{"text_format":"1","workbook":"xlsx","n_sheets":18,"sheets":["ChangeLog","Introduction","UserGuide","Admin","UserSettings&Results","ScenarioResults","ResultsAllYears","Calculation","EEUserSettings&Results","EETechData&Calculation","DataLog","OldData","TechData","TestTech","FuelPrices","EmissionPrices","EmissionFactors","CurrencyRates"],"not_rendered":{"charts":14,"images":0,"macros":1,"external_links":2,"defined_names":142,"comments":7,"pivot_tables":1},"unopened":[],"bounds":{"document_bytes":16777216,"sheet_cells":100000,"rows_first":2000,"rows_last":500,"rows_between":2000,"halvings":0,"cell_chars":16384,"cell_head_chars":4096},"cells_cut":0,"cells_raw":0,"read":"whole","date_system":"1900"}

{"sheet":"ChangeLog","index":0,"n_rows":36,"n_cols":5,"rows_kept":36,"cut":false,"hidden":true,"merged":[]}
["Dato","Person","Ark ","Celler","Ændring"]
["2018-09-19","FGB",null,null,"Ændring i forklarende tekst til figur \"Result: Levelised Cost of Energy\" under UserSettings&Results. VBA kode til automatisk nulstilling af cellrange \"TechYearsManual\" ved ændring af Technology year under UserSettings&Results."]
["2018-09-20","FGB",null,null,"ChangeLog fane tilføjet for at give overblik over ændringer."]
["2018-09-28","MKA",null,null,"Ændret levetid og konstruktionstid for 01 kulværker og 02 LTE af kulværker i \"TestTech\"."]
["2018-09-28","MKA",null,null,"Ændret effektiviteter for ombyggede kulværker til biomasse (03a, 03b, 03c) i \"TestTech\", så de er opdateret i overensstemmelse med LTE."]
["2018-10-01","Rin ","FuelPrices",null,"Ændret grønne fuelpricer Custumfuel2 og 3 - de trak til forkerte celler  "]
["2018-10-01","Rin ","FuelPrices",null,"Ændret gule fuelpricer i Custumfuel2  jeg tror det var sidsteårs priser - men det var ikke forklaret så jeg satte det hele til default   "]
["2018-10-01","Rin ","FuelPrices","C110, C148, 246","Ny forklaring på default "]
["2018-10-08","FGB","Calculations","D52","Enhed for var. O&M ændret fra DKK/MW/year til DKK/MWh"]
["2018-10-08","FGB","TechData","O28","Enhed for var. O&M ændret fra DKK/MW/year til DKK/MWh"]
["2018-10-08","FGB","TestTech","O63","Enhed for var. O&M ændret fra EUR/MWh/year til DKK/MWh"]
["2018-10-11","MKA","TestTech","N72/O72-N82/O82","Ændret D&V for ombyggede kulværker til biomasse (03a, 03b, 03c) i \"TestTech\", så de er opdateret i overensstemmelse med LTE."]
["2018-10-16","Rin ","TestTech","G68:H82","no investment cost in existing plant specified  also in name  "]
["2018-10-16","Rin ","TestTech","AP 72-82","Kommentar om O&M justeret "]
["2018-10-16","Rin ","Tech data ","række 172-187","02 og 03 kopieret over i Tech data  "]
["2018-10-16","Rin ","Tech data ","række 92-99","rækker slettet dupletter af 02 og  03"]
["2018-10-16","Rin ","Tech data ","række 188-191","rækker slettet dupletter af 02 og  03"]
["2018-10-16","Rin ","Tech data ","række 104-107","kul kopieret over fre test tech  - ny levetid "]
["2019-02-27","FGB","Admin","J22-J23","Mulighed for at vælge prisår 2018 og 2019 tilføjet."]
["2019-05-28","SWA","FuelPrices","D119-J141, M113-M141, S119-W141","Indsat opdaterede brændselspriser fra fremskrivningen i 2018 til brug for BF19."]
["2019-05-28","SWA","EmissionPrices","G116-G138, L116-M116","Indsat opdaterede kvotepriser og priser på emissioner fra fremskrivningen i 2018 til brug for BF19."]
["2019-05-28","SWA","Admin","AA4-AB39","Indsat opdateret deflator fra fremskrivningen af brædselspriser 2018 til brug for BF19, samt indsat formler i kolonnen Stigning i pct."]
["2019-05-29","SWA","FuelPrices","Række 142-176","De fremskrevne brændselspriser i 2040 fastholdes frem til 2075."]
["2019-05-29","SWA","EmissionPrices","D139-D173","De fremskrevne kvotepriser i 2040 fastholdes frem til 2075."]
["2019-05-29","CHWO","Admin","L7, L8","2040 som TechYear tilføjet og 2050 rykket ned; formel til navnet \"TechYears\" tilsvarende tilpasset"]
["2019-05-29","CHWO","TestTech","række 224:243","2019 havvind og landvind Tech Kat data tilføjet"]
["2019-05-29","CHWO","Tech Data","række 204:223","2019 havvind og landvind Tech Kat data tilføjet via makro"]
["2019-10-30","SWA","FuelPrices","D142:G161, H142:J151, M142:M151, S141:T161 og U142:W151","CustomFuel opdateret med brændselspriser fra fremskrivningen i 2018 forlænget frem til 2050 (biomassepriser) og 2060 (fossile priser)"]
["2019-10-30","SWA","FuelPrices","Række 181-312","Ændre CustomFuel 2 og 3 til at være lig default pris (WEO 2015 New Policies Scenario)"]
["2019-10-30","SWA","FuelPrices","Række 113-312","Opdatere farvekoder for priser i CustomFuel 1, 2 og 3: Grøn = default pris (WEO 2015 New Policies Scenario), Gul = ENS brændselsprisfremskrivning 2018 (til brug for BF19 og AF19), Orange = fastholdt ENS pris udenfor fremskrivningens periode."]
["2019-10-30","SWA","EmissionPrices","G117:G138","Opdatere kvotepriser, så de er lig den seneste fremskrivning fra FM fra september 2019, som også anvendes i AF19."]
["2019-10-30","SWA","EmissionPrices","H110:I173","Ændre CustomFuel 2 og 3 til at være lig default pris (WEO 2015 New Policies Scenario)"]
["2019-10-30","SWA","EmissionPrices","G110:G173 og L110:N173","Opdatere farvekoder for priser: Grøn = default pris (WEO 2015 New Policies Scenario), Gul = ENS brændselsprisfremskrivning 2018 (til brug for BF19 og AF19), Orange = fastholdt ENS pris udenfor fremskrivningens periode."]
["2019-12-09","FGB","UserSettings&Results",null,"Tilføjet mulighed for at se udvikling i LCoE (pivot-graf). Dertil er der tilføjet en makro som kan generere det nødvendige data (sub GetLcoeAllYears)."]
["2019-12-09","FGB","Techdata/oldtech",null,"Ældre teknologidata for vindmøller og solceller er flyttet fra techdata til oldtech, så der kun er et \"current\" datasæt for hver teknologi"]
["2020-01-14","FGB","Techdata","rows(92:123)","Total og elvirkningsgrader fikset - værdier var indsat som formel som gav error."]

{"sheet":"Introduction","index":1,"n_rows":54,"n_cols":5,"rows_kept":54,"cut":false,"hidden":false,"merged":[[8,1,16,12],[31,8,31,15],[29,7,29,14],[2,1,2,12],[3,1,3,12],[4,1,4,12],[5,1,5,12]]}
[]
[null,"Introduction"]
[null,"2018 profil costs for Danish technologies are deleted in Techdata and Testtech, are depending on the energysystem and eletricitymarked and should rather be considered by the analyst using the results   "]
[null,"Hvert år opdateres brændselspriserne ( i 2018frem til år 2040) i forhold til Energistyrelsen fremskrivning af  dansk brændselspriser  det gøres i fanen fuelprices  og i tabellen costum prices, det  er de celler, der er farvet gult  ( overvej om der skal opdateres i brændselsprisarket) "]
[null,"Hvert år opdateres deflatoren i arket Brændselspriser kolonne AJ"]
[null,"Hvert år opdateres CO2 priser  og det tjekkes det hvorvidt emissionspriser skal opdateres  arket emissionsprice  gult"]
[null,"Background"]
[]
[null,"This spreadsheet model was developed by Ea Energy Analyses to calculate the levelized cost of electricity production for a number of technologies. We have put effort in making assumptions and calculations comprehensible. However, especially discussions of different calculation options and the quality of data used in the calculations do not fit in a spreadsheet model. For explanations and discussions on the methods and assumptions applied, please see separate document: \"LCOE Calculator - Methodology, assumption and guideline\".\n\nImportant sources for assumptions are:\nDanish Energy Agency 2012: Socio-economic assumptions. Samfundsøkonomiske beregningsforudsætninger 2012 (excel-sheets). Forudsætninger for samfundsøkonomiske analyser på energiområdet, april 2011. To tillægsblade fra september 2011 og juni 2013.\nDanish Energy Agency 2014: Preliminary update of socio-economic assumptions regarding fuel and CO2-prices.\nDanish Energy Agency and Energinet.dk 2014: Technology Data for Energy Plants, 2012 (certain updates 2013 and 2014)"]
[]
[]
[]
[]
[]
[]
[]
[]
[null,"IEA, 2015. Projected Costs of Generating Electricity, 2015 edition. "]
[null,"EPRI, 2012. Power Generation Technology Data for Integrated Ressource Plan of South Africa. Palo Alto, CA: EPRI"]
[]
[null,"Definitions"]
[null,"Names in the sheets 'OldTech', 'TechData' and 'TestData' in collumn C follow the following system:"]
[]
[]
[null,"Letter 1-2:",null,"Year data is made"]
[null,"Letter 3-4:",null,"SMal, MEdium, LArge "]
[null,"Letter 5-10:",null,"Type of technology. The used abbreviations stands for"]
[null,null,null,"PVROOF?","Forslag til roof top tech…"]
[null,null,null,"PV","PhotoVoltaics"]
[null,null,null,"WINON","On shore wind"]
[null,null,null,"WINOF","Off shore wind"]
[null,null,null,"WIN_NS","Near shore wind"]
[null,null,null,"BP","Back Pressure"]
[null,null,null,"GT","Gas turbine singel cycle"]
[null,null,null,"GE","Gas Engine"]
[null,null,null,"AD "]
[null,null,null,"ENG = Engine internal combustion"]
[null,null,null,"STM = Steam turbine, "]
[null,null,null,"CCY = Combined cycle"]
[null,null,null,"DAM = Hydro Dam plant"]
[null,null,null,"ROR = Hydro run or river"]
[null,null,null,"CO"," Condensing plant "]
[null,null,null,"EX = Extraction plant"]
[]
[]
[null,"Letter 11-13:",null,"Type of fuel. The used abbreviations stands for"]
[null,null,null,"WCH","Wood chips"]
[null,null,null,"WPE","Wood pellets"]
[null,null,null,"STR","Straw"]
[null,null,null,"COA","Coal"]
[null,null,null,"DSL","Diesel"]
[null,null,null,"NGA","Natural gas"]
[null,null,null,"WST","Waste"]
[null,null,null,"Geo","Geothermal"]

{"sheet":"UserGuide","index":2,"n_rows":44,"n_cols":5,"rows_kept":44,"cut":false,"hidden":false,"merged":[[11,3,12,12],[7,1,7,12],[40,4,42,12],[43,4,44,12],[13,1,13,12],[16,1,16,12],[25,1,25,12],[37,1,38,12],[31,1,31,12]]}
[]
[null,"User Guide"]
[]
[null,"LCoE-calculations"]
[]
[null,"Basic user settings and result view"]
[]
[null,"The spreadsheet contains two sheets where the user has the option to see all input values and calculations. Also a number of parameters can be adjusted. "]
[]
[null,null,null,"On the calculation sheet all input values and calculation steps in the LCoE can be viewed. "]
[]
[null,null,null,"The user have the option to adjust a number of factors in the LCoE-calculations by use of the basic user settings. On the same sheet a graph with the results is found."]
[]
[]
[null,"Advanced user settings of existing data "]
[]
[null,"If the user wishes other input values than the predefined ones or wishes to change or update data, this can be done in the yellow data sheets."]
[]
[]
[]
[]
[]
[]
[null,"Inclusion of other technologies or fuels "]
[]
[null,"The user has the option of adding other technologies or new parameters than those already included in the LCOE-calculator. Moreover, new fuels can be defined. This is done in the TechData-sheet and FuelPrice-sheet respectively."]
[null," "]
[]
[]
[null,"Log-features"]
[]
[null,"The sheet offers some features to test, add and log technology updates. For this purpose, technology data is split into three \"databases\": TechData for main technology-assumptions, TestTech for evaluation of new technology data, and OldData for older technology definitions. New technology data can be added in the TestData sheet. When new technology-data is evaluated and confirmed, they can be transferred to the main database (TechData), where they can replace existing technologies, or added as new technology. After transferring data to the TechData-sheet, changes can be logged using the DataLog (accessible using ctrl-L). The logging feature compares the current TechData-values to the last time data was logged and any changes are logged in the datalog. Technologies logged in the DataLog can be accessed for evaluation using the OldData technology database."]
[]
[]
[]
[null,"LCoEE-calculations"]
[]
[null,"In the LCOEE-sheets levelized costs for energy efficiency investments are performed and compared to the costs of production. In this way the costs of saving one unit is balanced against the price of producing one unit. "]
[]
[]
[null,null,null,null,"In settings and results the user have the option to adjust a number of factors in the LCoEE-calculations by use of the basic user settings. Also a grapichal illustration of the results is given"]
[]
[]
[null,null,null,null,"In the data and calculation sheet the default data is given and the costs for energy efficiencys calculated. "]

{"sheet":"Admin","index":3,"n_rows":77,"n_cols":38,"rows_kept":77,"cut":false,"hidden":false,"merged":[[2,1,9,3]]}
[null,"Admin functions",null,null,null,"Definitions",null,null,null,null,null,null,null,null,null,null,"Scenario defintions",null,null,null,null,"Currency conversion",null,null,null,"Price adjustment",null,null,null,null,null,null,null,null,null,"Lists of technologies"]
[null,null,null,null,null,null,null,null,null,null,null,null,null,null,null,null,null,null,null,null,null,null,null,null,null," Source: ","LOFT27-fremskrivningen"]
[null,"Remove data for TestTech and Datalog, hide sheets and publish the LCOE spreadsheet. Current Sheet will be saved. Published sheet is saved under new name in same directory.",null,null,null,"Fuel scenarios","Tech scenarios","FLH scenarios","System integration cost scenarios","Price years","Calculation years","Technology years","TRUE/FALSE","Value heat production","Place",null,"Scenario","Price year","Price adjustment factor","Currency",null,"Currency (conversion to EUR)",null,null,null,null,{"$f":"\"Priceindex 2010 =1\"","v":"Priceindex 2010 =1"},"Stigning i %",null,"For discounting of prices","Discountet amount for prices",null,null,null,null,"OldTech","CurrentTech","TestTech"]
[null,null,null,null,null,"New Policy 2015","TechBase","Low","None",2000,2012,2015,"YES","Cost allocation","Factory",null,null,null,null,null,null,"DKK",{"$f":"CurrencyRates!E15","v":7.45},null,null,2000,0.78206850000000006,null,null,1,{"$f":"NPV(DiscountRate,OFFSET(AD4,0,0,IF(ISNUMBER(DiscountHorizon),DiscountHorizon,20)))","v":14.2124033019523},null,null,null,null,"16WIN_ON_in onshorewind incl. Grid","18Me BP WCH in_st 80 MW input, woodchips storage for 10 days  "]
[null,null,null,null,null,"450ppm 2015","TechHigh","Central","Central",2001,2013,2020,"NO","Heat value","Small entre-prise/private household",null,{"$f":"F4","v":"New Policy 2015"},2014,{"$f":"VLOOKUP(PriceYear,PriceAdjust,2,FALSE)/VLOOKUP(R5,PriceAdjust,2,FALSE)*VLOOKUP(chosencurrency,Currency,2,FALSE)/VLOOKUP(T5,Currency,2,FALSE)","v":1.0769543195754832},"EUR",null,"EUR",1,null,null,2001,0.80132230000000004,{"$f":"AA5/AA4-1","v":2.4619071091598776E-2},null,1,null,null,null,null,null,"17WIN_OF_in  Offshore wind large DK incl. Grid","18Me BP WPE in_st 80 MW input, woodpellets storage for 10 days  "]
[null,null,null,null,null,"Current Policies 2015","TechLow","High","Low",2002,2014,2025,null,null,null,null,{"$f":"F5","v":"450ppm 2015"},2014,1.0769543195754832,"EUR",null,"USD",{"$f":"CurrencyRates!E16","v":1.0775999999999999},"US dollar",null,2002,0.81945429999999997,{"$f":"AA6/AA5-1","v":2.2627599406630727E-2},null,1,null,null,null,null,null,"17WIN_NS_in  Wind Nearshore incl grid ","18La BP WPE in_st 800 MW input, woodpellets storage for 10 days  "]
[null,null,null,null,null,"CustomFuel",null,"CustomFLH","High",2003,2015,2030,null,null,null,null,{"$f":"F6","v":"Current Policies 2015"},2014,1.0769543195754832,"EUR",null,"Source: ECB","As of 7th May 2024",null,null,2003,0.83264819999999995,1.6100836861799417E-2,null,1,null,null,null,null,null,"17LaPV_IN Large Photo voltage incl. Grid","18 Me BP STR 80MW input, Straw CHP Medium, 2 days storage"]
[null,null,null,null,null,"CustomFuel2",null,null,null,2004,2016,2040,null,null,null,null,"CustomFuel",{"$f":"FuelPrices!E22","v":2023},{"$f":"VLOOKUP(PriceYear,PriceAdjust,2,FALSE)/VLOOKUP(R8,PriceAdjust,2,FALSE)*VLOOKUP(chosencurrency,Currency,2,FALSE)/VLOOKUP(T8,Currency,2,FALSE)","v":0.9215586174146938},{"$f":"FuelPrices!D22","v":"EUR"},null,null,null,null,null,2004,0.85316979999999998,2.4646183105902386E-2,null,1,null,null,null,null,null,"17WIN_OF_ex  Offshore wind large DK ex. Grid","16 ME BP SC NGA - Gas Turbine Single Cycle, medium,natural gas "]
[null,null,null,null,null,"CustomFuel3",null,null,null,2005,2017,2050,null,null,null,null,"CustomFuel2",{"$f":"FuelPrices!E23","v":2014},{"$f":"VLOOKUP(PriceYear,PriceAdjust,2,FALSE)/VLOOKUP(R9,PriceAdjust,2,FALSE)*VLOOKUP(chosencurrency,Currency,2,FALSE)/VLOOKUP(T9,Currency,2,FALSE)","v":1.0769543195754832},{"$f":"FuelPrices!D23","v":"EUR"},null,null,null,null,null,2005,0.87620480000000001,2.6999314790561169E-2,null,1,null,null,null,null,null,"17WIN_NS_ex  Wind nearshore ex grid ","16La EX CC NGA CC large CHP Gas Turbine combined Cycle natural Gas  \n"]
[null,null,null,null,null,null,null,null,null,2006,2018,null,null,null,null,null,"CustomFuel3",{"$f":"FuelPrices!E24","v":2014},1.0769543195754832,{"$f":"FuelPrices!D24","v":"EUR"},null,null,null,null,null,2006,0.8945457,2.0932206716968382E-2,null,1,null,null,null,null,null,"16WIN_ON_ex onshorewind excl. Grid","17La_EX_COA CHP coal 400-700 MWwe"]
[null,null,null,null,null,null,null,null,null,2007,2019,null,null,null,null,null,"EEinput",{"$f":"'EETechData&Calculation'!D17","v":2011},1.1310039154982301,{"$f":"'EETechData&Calculation'!C17","v":"EUR"},null,null,null,null,null,2007,0.91897430000000002,2.7308386815788177E-2,null,1,null,null,null,null,null,"15SmPV Small Photo Voltage residential systems","Coal FGD INT"]
[null,null,null,null,null,null,null,null,null,2008,2020,null,null,null,null,null,null,null,null,null,null,null,null,null,null,2008,0.96233429999999998,4.7183038742214967E-2,null,1,null,null,null,null,null,"15MePV Medium Photo Voltage commercial systems","Coal no FGD INT"]
[null,null,null,null,null,null,null,null,null,2009,2021,null,null,null,null,null,null,null,null,null,null,null,null,null,null,2009,0.96769170000000004,5.5670882769116581E-3,null,1,null,null,null,null,null,null,"Natural gas CCGT INT"]
[null,null,null,null,null,null,null,null,null,2010,2022,null,null,null,null,null,null,null,null,null,null,null,null,null,null,2010,1,3.3386976451280859E-2,null,1,null,null,null,null,null,null,"Nuclear INT"]
[null,null,null,null,null,null,null,null,null,2011,2023,null,null,null,null,null,null,null,null,null,null,null,null,null,null,2011,1.004305,4.3050000000000033E-3,null,1,null,null,null,null,null,null,"Solar PV INT"]
[null,null,null,null,null,null,null,null,null,2012,2024,null,null,null,null,null,null,null,null,null,null,null,null,null,null,2012,1.028743,2.4333245378644897E-2,null,1,null,null,null,null,null,null,"Solar PV INT(/DK)*"]
[null,null,null,null,null,null,null,null,null,2013,2025,null,null,null,null,null,null,null,null,null,null,null,null,null,null,2013,1.040165,1.1102870201789905E-2,null,1,null,null,null,null,null,null,"Wind onshore INT"]
[null,null,null,null,null,null,null,null,null,2014,2026,null,null,null,null,null,null,null,null,null,null,null,null,null,null,2014,1.0547085115013899,1.398192738785653E-2,null,1,null,null,null,null,null,null,"Biomass plant INT"]
[null,null,null,null,null,null,null,null,null,2015,2027,null,null,null,null,null,null,null,null,null,null,null,null,null,null,2015,1.0611849491367,6.1405000193759385E-3,null,1,null,null,null,null,null,null,"18La BP WCH in_st 600 MW input, woodchips storage for 10 days  "]
[null,null,null,null,null,null,null,null,null,2016,2028,null,null,null,null,null,null,null,null,null,null,null,null,null,null,2016,1.0646167199858401,3.2339045629434793E-3,null,1,null,null,null,null,null,null,"16 La EX LTE COA no_inv_exipla  - Coal CHP Life time extension of coal power plant no invest cost for existing plant "]
[null,null,null,null,null,null,null,null,null,2017,2029,null,null,null,null,null,null,null,null,null,null,null,null,null,null,2017,1.07783815708436,1.2418964356201156E-2,null,1,null,null,null,null,null,null,"16La REF_EX  WPE_COA_exibo_no_inv_exipla Woodpellets CHP  refurb.  \nCoal plants, existing Boiler,  no invest cost in existing plant"]
[null,null,null,null,null,null,null,null,null,2018,2030,null,null,null,null,null,null,null,null,null,null,null,null,null,null,2018,1.08617326442965,7.7331715253401434E-3,null,1,null,null,null,null,null,null,"16La REF_EX  WCH_COA_Newboi_ no_inv_exipla Wood chips CHP refurb.  \nCoal plants, new Boiler, no invest cost for existing plant "]
[null,null,null,null,null,null,null,null,null,2019,2031,null,null,null,null,null,null,null,null,null,null,null,null,null,null,2019,1.1012289063583101,1.3861178894479353E-2,null,1,null,null,null,null,null,null,"16La REF_EX WCH_COA_exi_exibo_no_inv_exipla Wood chips CHP refurb.  \nCoal plants, existing boiler, no invest cost for existing plant "]
[null,null,null,null,null,null,null,null,null,{"$f":"IF(ISNUMBER(J23),IF(YEAR(NOW())>=J23+1,J23+1,\"\"),\"\")","v":2020},2032,null,null,null,null,null,null,null,null,null,null,null,null,null,null,2020,1.1358728873544499,3.1459382146719284E-2,null,1,null,null,null,null,null,null,"18La_EX_EXI_COA ex_inv_cost - Coal CHP existing, no investment cost"]
[null,null,null,null,null,null,null,null,null,{"$f":"IF(ISNUMBER(J24),IF(YEAR(NOW())>=J24+1,J24+1,\"\"),\"\")","v":2021},2033,null,null,null,null,null,null,null,null,null,null,null,null,null,null,2021,1.1704995854056499,3.0484659363468669E-2,null,1,null,null,null,null,null,null,"18Sm_PV_roof"]
[null,null,null,null,null,null,null,null,null,{"$f":"IF(ISNUMBER(J25),IF(YEAR(NOW())>=J25+1,J25+1,\"\"),\"\")","v":2022},2034,null,null,null,null,null,null,null,null,null,null,"Specific factor",null,null,null,2022,1.26920254047671,8.4325493406179675E-2,null,1,null,null,null,null,null,null,"18Me_PV_roof"]
[null,null,null,null,null,null,null,null,null,{"$f":"IF(ISNUMBER(J26),IF(YEAR(NOW())>=J26+1,J26+1,\"\"),\"\")","v":2023},2035,null,null,null,null,null,null,null,null,null,null,"DKK2015->DKK2011",{"$f":"AA19/AA15","v":1.0566361305944907},null,null,2023,1.23255630829104,-2.8873431164032959E-2,null,1,null,null,null,null,null,null,"19PV_La_Utility scale PV"]
[null,null,null,null,null,null,null,null,null,{"$f":"IF(ISNUMBER(J27),IF(YEAR(NOW())>=J27+1,J27+1,\"\"),\"\")","v":2024},2036,null,null,null,null,null,null,null,null,null,null,null,null,null,null,2024,1.2641764052928499,2.5654079078668346E-2,null,1,null,null,null,null,null,null,"19PV_La_Utility scale PV_tracker"]
[null,null,null,null,null,null,null,null,null,2025,2037,null,null,null,null,null,null,null,null,null,null,null,null,null,null,2025,1.2927594414046899,2.2610006002460326E-2,null,1,null,null,null,null,null,null,"19WIN_ON_in Onshore wind incl. Grid"]
[null,null,null,null,null,null,null,null,null,"",2038,null,null,null,null,null,null,null,null,null,null,null,null,null,null,2026,1.3211784802820099,2.1983238309549957E-2,null,1,null,null,null,null,null,null,"24WIN_ON_in Onshore wind incl. Grid"]
[null,null,null,null,null,null,null,null,null,"",2039,null,null,null,null,null,null,null,null,null,null,null,null,null,null,2027,1.34883886943973,2.0936148726715453E-2,null,1,null,null,null,null,null,null,"19WIN_OF_in Offshore wind incl. Grid"]
[null,null,null,null,null,null,null,null,null,"",2040,null,null,null,null,null,null,null,null,null,null,null,null,null,null,2028,1.37570374575342,1.9917038960219902E-2,null,1,null,null,null,null,null,null,"19WIN_OF_ex Offshore wind excl. Grid"]
[null,null,null,null,null,null,null,null,null,"",2041,null,null,null,null,null,null,null,null,null,null,null,null,null,null,2029,1.40143550415803,1.8704432901371248E-2,null,1,null,null,null,null,null,null,"19WIN_NS_in Nearshore wind incl. Grid"]
[null,null,null,null,null,null,null,null,null,"",2042,null,null,null,null,null,null,null,null,null,null,null,null,null,null,2030,1.4285217760948199,1.93275194302025E-2,null,1,null,null,null,null,null,null,"19WIN_NS_ex Nearshore wind excl. Grid"]
[null,null,null,null,null,null,null,null,null,"",2043,null,null,null,null,null,null,null,null,null,null,null,null,null,null,2031,1.45825050676804,2.0810834787895249E-2,null,1,null,null,null,null,null,null,"22PV_Sm_roof residential"]
[null,null,null,null,null,null,null,null,null,"",2044,null,null,null,null,null,null,null,null,null,null,null,null,null,null,2032,1.48840543734775,2.0678841145437499E-2,null,1,null,null,null,null,null,null,"22PV_Me_roof commercial industrial"]
[null,null,null,null,null,null,null,null,null,"",2045,null,null,null,null,null,null,null,null,null,null,null,null,null,null,2033,1.5192300996422401,2.0709856011691175E-2,null,1,null,null,null,null,null,null,"22PV_La_Utility scale PV"]
[null,null,null,null,null,null,null,null,null,"",2046,null,null,null,null,null,null,null,null,null,null,null,null,null,null,2034,1.55054573841653,2.0612834607255603E-2,null,1,null,null,null,null,null,null,"22PV_La_Utility scale PV_tracker"]
[null,null,null,null,null,null,null,null,null,"",2047,null,null,null,null,null,null,null,null,null,null,null,null,null,null,2035,1.58235928852192,2.0517646991748295E-2,null,1,null,null,null,null,null,null,"25WIN_OF_in Offshore wind AC incl. Grid"]
[null,null,null,null,null,null,null,null,null,"",2048,null,null,null,null,null,null,null,null,null,null,null,null,null,null,2036,1.61486583485311,2.0543088138695875E-2,null,1,null,null,null,null,null,null,"25WIN_OF_ex Offshore wind AC excl. Grid"]
[null,null,null,null,null,null,null,null,null,"",2049,null,null,null,null,null,null,null,null,null,null,null,null,null,null,2037,1.64798775706881,2.051063407302367E-2,null,1,null,null,null,null,null,null,"25WIN_NS_in Nearshore wind incl. Grid"]
[null,null,null,null,null,null,null,null,null,"",2050,null,null,null,null,null,null,null,null,null,null,null,null,null,null,2038,1.68175055937797,2.0487289522837404E-2,null,1,null,null,null,null,null,null,"25WIN_NS_ex Nearshore wind excl. Grid"]
[null,null,null,null,null,null,null,null,null,"",2051,null,null,null,null,null,null,null,null,null,null,null,null,null,null,2039,1.71619281969783,2.0480005270578916E-2,null,1,null,null,null,null,null,null,"25WIN_FOA_in Floating offshore AC incl. Grid"]
[null,null,null,null,null,null,null,null,null,"",2052,null,null,null,null,null,null,null,null,null,null,null,null,null,null,2040,1.7512028443104699,2.0399820003211611E-2,null,1,null,null,null,null,null,null,"25WIN_FOA_ex Floating offshore AC excl. Grid"]
[null,null,null,null,null,null,null,null,null,"",2053,null,null,null,null,null,null,null,null,null,null,null,null,null,null,2041,1.7869634294451699,2.0420584200673053E-2,null,1,null,null,null,null,null,null,"25WIN_FSA_in Far Offshore AC incl. Grid"]
[null,null,null,null,null,null,null,null,null,"",2054,null,null,null,null,null,null,null,null,null,null,null,null,null,null,2042,1.82348380622978,2.0437114818823821E-2,null,1,null,null,null,null,null,null,"25WIN_FSA_ex Far Offshore AC excl. Grid"]
[null,null,null,null,null,null,null,null,null,"",2055,null,null,null,null,null,null,null,null,null,null,null,null,null,null,2043,1.86071360541158,2.0416852101788674E-2,null,1,null,null,null,null,null,null,"25WIN_FSA_in Far Offshore DC incl. Grid"]
[null,null,null,null,null,null,null,null,null,"",2056,null,null,null,null,null,null,null,null,null,null,null,null,null,null,2044,1.89854945826142,2.033405503125274E-2,null,1,null,null,null,null,null,null,"25WIN_FSA_ex Far Offshore DC excl. Grid"]
[null,null,null,null,null,null,null,null,null,"",2057,null,null,null,null,null,null,null,null,null,null,null,null,null,null,2045,1.9369498818743001,2.0226190814141232E-2,null,1,null,null,null,null,null,null,"25WIN_OF_in Offshore wind incl. Grid"]
[null,null,null,null,null,null,null,null,null,"",2058,null,null,null,null,null,null,null,null,null,null,null,null,null,null,2046,1.9761340920409001,2.0229852374230362E-2,null,1,null,null,null,null,null,null,"22WIN_OF_in Offshore wind incl. Grid"]
[null,null,null,null,null,null,null,null,null,"",2059,null,null,null,null,null,null,null,null,null,null,null,null,null,null,2047,2.0160232002002498,2.0185425837248472E-2,null,1,null,null,null,null,null,null,"22WIN_NS_ex Nearshore wind incl. Grid"]
[null,null,null,null,null,null,null,null,null,"",2060,null,null,null,null,null,null,null,null,null,null,null,null,null,null,2048,2.0567407366044801,2.0196958249382169E-2,null,1,null,null,null,null,null,null,"22WIN_OF_in Offshore wind excl. Grid"]
[null,null,null,null,null,null,null,null,null,"",2061,null,null,null,null,null,null,null,null,null,null,null,null,null,null,2049,2.0981888606508199,2.0152332916188342E-2,null,1,null,null,null,null,null,null,"22WIN_NS_ex Nearshore wind excl. Grid"]
[null,null,null,null,null,null,null,null,null,"",2062,null,null,null,null,null,null,null,null,null,null,null,null,null,null,2050,2.1404480323531501,2.0140785462573696E-2]
[null,null,null,null,null,null,null,null,null,null,2063]
[null,null,null,null,null,null,null,null,null,null,2064]
[null,null,null,null,null,null,null,null,null,null,2065]
[null,null,null,null,null,null,null,null,null,null,2066]
[null,null,null,null,null,null,null,null,null,null,2067]
[null,null,null,null,null,null,null,null,null,null,2068]
[null,null,null,null,null,null,null,null,null,null,2069]
[null,null,null,null,null,null,null,null,null,null,2070]
[null,null,null,null,null,null,null,null,null,null,2071]
[null,null,null,null,null,null,null,null,null,null,2072]
[null,null,null,null,null,null,null,null,null,null,2073]
[null,null,null,null,null,null,null,null,null,null,2074]
[null,null,null,null,null,null,null,null,null,null,2075]
[null,null,null,null,null,null,null,null,null,null,2076]
[null,null,null,null,null,null,null,null,null,null,2077]
[null,null,null,null,null,null,null,null,null,null,2078]
[null,null,null,null,null,null,null,null,null,null,2079]
[null,null,null,null,null,null,null,null,null,null,2080]
[null,null,null,null,null,null,null,null,null,null,2081]
[null,null,null,null,null,null,null,null,null,null,2082]
[null,null,null,null,null,null,null,null,null,null,2083]
[null,null,null,null,null,null,null,null,null,null,2084]
[null,null,null,null,null,null,null,null,null,null,2085]

{"sheet":"UserSettings&Results","index":4,"n_rows":77,"n_cols":30,"rows_kept":77,"cut":false,"hidden":false,"merged":[[45,1,50,1],[12,2,12,9],[14,2,14,8],[15,2,15,8],[16,2,16,8],[31,6,31,15]]}
[]
[null,"Basic user settings and result view"]
[]
[null,"User instruction"]
[null,"In this sheet the levelized cost of energy (LCoE) is visible in two graphs. The left figure is a stacked column graph that shows the cost elements for selected technologies for certain years, together with a table with the cost element. "]
[null,"A summery table of the LCoE-results gives the data input for the graph (from Row 61)"]
[null,"The right figure is a pivotchart. By default it shows projected development in LCOE for the technologies chosen in the pivotchart filter. This can be altered as desired, just like other pivotchart setup in the PivotTable Fields menu."]
[null,"Note that data for the pivotchart is not automatically re-calculated when altering the Basic user settings below. To re-calculate data for the pivotchart the \"Update pivotchart data\" must be clicked."]
[null,"Functions:"]
[]
[null,null,"In this table the user can adjust a number of the input parameters; some of them according to predefined options and others are free to set. "]
[]
[null,null,"The user can choose which technologies and cost elements to be viewed in the graph. "]
[]
[null,null,"In the calculation table, the technology in each column can be changed in the drop down function and thereby the order of the technologies can be swapped around in order to compare them better. Changes in the order will also appear in the graph in UserSettings&Results"]
[null,null,"The user can save the current scneario results and re-establish it later. The saved scenarios will appear in the sheet \"ScenarioResults\""]
[null,null,"The user can re-establish the options from a previously saved scenario"]
[]
[null,"Basic user settings"]
[null,null,"Default value","Override","Current value","Explanation"]
[null,"Result view"]
[null,"Currency","EUR",null,{"$f":"IF(ISBLANK(D22),C22,D22)","v":"EUR"},"(Predefined)","The results can be viewed in number of currencies. "]
[null,"Price year",2020,null,{"$f":"IF(ISBLANK(D23),C23,D23)","v":2020},"(Predefined) ","Price year for results "]
[null,"Financial settings"]
[null,"First year of production",{"$f":"YEAR(NOW())","v":2025},null,{"$f":"IF(ISBLANK(D25),C25,D25)","v":2025},"(Predefined) ","The first year of production should be related to the technology year."]
[null,"Lookout period (years)","Technical",null,"Technical","(Predefined) ","Period for discounting fuel and CO2 prices.  If you choose \"Technical\" the lookout period equals the technical lifetime of the specific technology"]
[null,"Depreciation period (years)","Technical",null,"Technical","(Predefined) ","Period for depreciation of investment cost.  If you choose \"Technical\" the period equals the technical lifetime of the specific technology"]
[null,"Discount rate",3.5000000000000003E-2,null,3.5000000000000003E-2,"(Free to set)","Set discount rate. Used for annuation of capital costs and discounting fuel and CO2-prices. The value 0 will not work. Choose instead a very small value"]
[null,"Discount prices","YES",null,"YES","(Predefined) ","Choose YES to discount prices for fuel, CO2-prices etc. through lookout period"]
[null,"Interest during construction","YES",null,"YES","(Predefined) ","Set to YES to take into account interest during construction"]
[null,"Scenarios"]
[null,"Fuel and CO2-price scenario","New Policy 2015","CustomFuel",{"$f":"IF(ISBLANK(D32),C32,D32)","v":"CustomFuel"},"(Predefined) ","Choose scenario for future fuel and CO2-prices. The IEA fuel and CO2 price projections (World Energy Outlook 2015) are predefined in the sheet \"FuelPrices\" and custom fuel and CO2-prices can be set"]
[null,"Technology scenario","TechBase",null,{"$f":"IF(ISBLANK(D33),C33,D33)","v":"TechBase"},"(Predefined) ","Choose scenario for technical data. See the TechData sheet for further information"]
[null,"Technology year",2020,2030,{"$f":"IF(ISBLANK(D34),C34,D34)","v":2030},"(Predefined) ","Year for technology data. Changing this value resets the manual settings for individual technologies in row 63"]
[null,"Heat value"]
[null,"Set methodology to value heat production","Cost allocation",null,{"$f":"IF(ISBLANK(D36),C36,D36)","v":"Cost allocation"},"(Predefined) ","Choose method to value heat from combined heat and power plants. Set to YES to use a cost allocation methodology. Otherwise a heat price will be used"]
[null,"Heat efficiency if cost allocation is selected",1.25,null,{"$f":"IF(ISBLANK(D37),C37,D37)","v":1.25},"(Free to set)","Set the efficiency of heat production used for allocation of fuel and CO2 costs. It is by default set to 125%. Other often used efficiencies are 150% and 200%."]
[null,"Heat price (EUR/GJ) if heat price is selected",6.7114000000000003,null,{"$f":"IF(ISBLANK(D38),C38,D38)*IF(C22=chosencurrency,1,VLOOKUP(chosencurrency,Currency,2,FALSE))","v":6.7114000000000003},"(Free to set)",{"$f":"\"Choose the price of heat. New values should be typed in the currency and price year shown in cell \"&ADDRESS(ROW(chosencurrency),COLUMN(chosencurrency),4,1)&\" and \"&ADDRESS(ROW(PriceYear),COLUMN(PriceYear),4,1)&\"  (currently \"&chosencurrency&PriceYear&\")/GJ. \"","v":"Choose the price of heat. New values should be typed in the currency and price year shown in cell E22 and E23  (currently EUR2020)/GJ. "}]
[null,"Inclusion of costs"]
[null,"Include air pollution","YES",null,{"$f":"IF(ISBLANK(D40),C40,D40)","v":"YES"},"(Predefined) ","Set to YES to include air pollution in the LCOE calculation"]
[null,"Profile cost","NO",null,{"$f":"IF(ISBLANK(D41),C41,D41)","v":"NO"},"(Predefined) ","Set to YES to include profile cost. Profile cost have to be defined in the technology data and try to take into account the value of different generation patterns"]
[null,"Graph options"]
[null,"Show grid cost for RES explicitly","NO",null,{"$f":"IF(ISBLANK(D43),C43,D43)","v":"NO"},"(Predefined) ","Set to YES to show grid cost part of investment  for Renewable Energy Sources (Offshore Wind, Nearshore Wind, Onshore Wind, Solar PV) as explicit number"]
[null,"Pivot chart"]
[null,"Update data for pivot chart (calculation time ca. 10 seconds)",null,null,null,"(Button)","By clicking this button the LCoE calculations are performed for alle technologies and the data for the Pivot chart below for projection of LCoE is updated. All LCoE calculations will use the chosen parameters in Basic user settings (to the left). NB: calculculation time is appr. 30 seconds, depending on computer speed"]
[]
[]
[]
[]
[]
[]
[]
[]
[]
[]
[]
[]
[]
[]
[]
[null,"Summary of the LCoE-calculation ","Database","CurrentTech","CurrentTech","CurrentTech","CurrentTech","CurrentTech","CurrentTech","CurrentTech","CurrentTech","CurrentTech","CurrentTech","CurrentTech","CurrentTech","CurrentTech","CurrentTech","CurrentTech","CurrentTech","CurrentTech","CurrentTech"]
[null,null,"Technology","25WIN_OF_in Offshore wind AC incl. Grid","25WIN_NS_in Nearshore wind incl. Grid","24WIN_ON_in Onshore wind incl. Grid","22PV_La_Utility scale PV","22PV_La_Utility scale PV_tracker","22PV_Me_roof commercial industrial","22PV_Sm_roof residential","18Me BP WPE in_st 80 MW input, woodpellets storage for 10 days  ","18Me BP WCH in_st 80 MW input, woodchips storage for 10 days  ","16La REF_EX  WCH_COA_Newboi_ no_inv_exipla Wood chips CHP refurb.  \nCoal plants, new Boiler, no invest cost for existing plant ","16La REF_EX WCH_COA_exi_exibo_no_inv_exipla Wood chips CHP refurb.  \nCoal plants, existing boiler, no invest cost for existing plant ","17La_EX_COA CHP coal 400-700 MWwe","16 La EX LTE COA no_inv_exipla  - Coal CHP Life time extension of coal power plant no invest cost for existing plant ","16La EX CC NGA CC large CHP Gas Turbine combined Cycle natural Gas  \n","Nuclear INT","Coal FGD INT","Natural gas CCGT INT","19WIN_ON_in Onshore wind incl. Grid"]
[null,null,"Technology year if not standard"]
[null,null,"First year of operation if not standard"]
[null,null,"Presentation name for graph (custom)"]
[null,null,"Reference",{"$f":"Calculation!E35","v":"Tech Cat 2025 Update"},{"$f":"Calculation!F35","v":"Tech Cat 2025 Update"},{"$f":"Calculation!G35","v":"Tech Cat 2024 Update"},{"$f":"Calculation!H35","v":"Tech Cat 2022 Update"},{"$f":"Calculation!I35","v":"Tech Cat 2022 Update"},{"$f":"Calculation!J35","v":"Tech Cat 2022 Update"},{"$f":"Calculation!K35","v":"Tech Cat 2022 Update"},{"$f":"Calculation!L35","v":"Tech Cat  2018 Update"},{"$f":"Calculation!M35","v":"Tech Cat  2018 Update"},{"$f":"Calculation!N35","v":"Tech Cat  Aug 2016, Coal Update 2017"},null,null,{"$f":"Calculation!Q35","v":"Tech Cat Aug 2016, coal note 2017 data for ex. Plant"},{"$f":"Calculation!R35","v":"Tech Cat 2016"},{"$f":"Calculation!S35","v":"IEA, 2015, Projected cost of generating electricity 2015” "},{"$f":"Calculation!T35","v":"IEA 2015, Projected cost of generating electricity 2015"},{"$f":"Calculation!U35","v":"IEA, 2015, Projected cost of generating electricity 2015” "},{"$f":"Calculation!V35","v":"Tech Cat 2019 Update"},{"$f":"Calculation!W35","v":""},{"$f":"Calculation!X35","v":""},{"$f":"Calculation!Y35","v":""},{"$f":"Calculation!Z35","v":""},{"$f":"Calculation!AA35","v":""},{"$f":"Calculation!AB35","v":""},{"$f":"Calculation!AC35","v":""},{"$f":"Calculation!AD35","v":""},{"$f":"Calculation!AE35","v":""}]
[null,{"$f":"PriceYear&\"-\"&chosencurrency&\"/MWh\"","v":"2020-EUR/MWh"},"Presentation name",{"$f":"IF(D65<>\"\",D65,D62)","v":"25WIN_OF_in Offshore wind AC incl. Grid"},"25WIN_NS_in Nearshore wind incl. Grid",{"$f":"IF(F65<>\"\",F65,F62)","v":"24WIN_ON_in Onshore wind incl. Grid"},"22PV_La_Utility scale PV","22PV_La_Utility scale PV_tracker","22PV_Me_roof commercial industrial","22PV_Sm_roof residential","18Me BP WPE in_st 80 MW input, woodpellets storage for 10 days  ","18Me BP WCH in_st 80 MW input, woodchips storage for 10 days  ","16La REF_EX  WCH_COA_Newboi_ no_inv_exipla Wood chips CHP refurb.  \nCoal plants, new Boiler, no invest cost for existing plant ",{"$f":"IF(N65<>\"\",N65,N62)","v":"16La REF_EX WCH_COA_exi_exibo_no_inv_exipla Wood chips CHP refurb.  \nCoal plants, existing boiler, no invest cost for existing plant "},"17La_EX_COA CHP coal 400-700 MWwe","16 La EX LTE COA no_inv_exipla  - Coal CHP Life time extension of coal power plant no invest cost for existing plant ",{"$f":"IF(Q65<>\"\",Q65,Q62)","v":"16La EX CC NGA CC large CHP Gas Turbine combined Cycle natural Gas  \n"},"Nuclear INT","Coal FGD INT","Natural gas CCGT INT","19WIN_ON_in Onshore wind incl. Grid",0,0,0,0,0,0,0,0,0]
[null,{"$f":"IF(GridCostView=\"YES\",\"Capital cost\",\"Capital cost incl. grid cost\")","v":"Capital cost incl. grid cost"},null,{"$f":"IF(D62<>\"\",IF(GridCostView=\"YES\",Calculation!E17,Calculation!E17+Calculation!E18),\"\")","v":30.393199794237752},{"$f":"IF(E62<>\"\",IF(GridCostView=\"YES\",Calculation!F17,Calculation!F17+Calculation!F18),\"\")","v":21.443384864729715},{"$f":"IF(F62<>\"\",IF(GridCostView=\"YES\",Calculation!G17,Calculation!G17+Calculation!G18),\"\")","v":17.774307365421802},{"$f":"IF(G62<>\"\",IF(GridCostView=\"YES\",Calculation!H17,Calculation!H17+Calculation!H18),\"\")","v":12.215707582717735},{"$f":"IF(H62<>\"\",IF(GridCostView=\"YES\",Calculation!I17,Calculation!I17+Calculation!I18),\"\")","v":12.538601920876152},{"$f":"IF(I62<>\"\",IF(GridCostView=\"YES\",Calculation!J17,Calculation!J17+Calculation!J18),\"\")","v":25.277914772509305},{"$f":"IF(J62<>\"\",IF(GridCostView=\"YES\",Calculation!K17,Calculation!K17+Calculation!K18),\"\")","v":33.861681380130939},{"$f":"IF(K62<>\"\",IF(GridCostView=\"YES\",Calculation!L17,Calculation!L17+Calculation!L18),\"\")","v":52.212824049047576},{"$f":"IF(L62<>\"\",IF(GridCostView=\"YES\",Calculation!M17,Calculation!M17+Calculation!M18),\"\")","v":61.24651552498662},{"$f":"IF(M62<>\"\",IF(GridCostView=\"YES\",Calculation!N17,Calculation!N17+Calculation!N18),\"\")","v":36.383266219895233},{"$f":"IF(N62<>\"\",IF(GridCostView=\"YES\",Calculation!O17,Calculation!O17+Calculation!O18),\"\")","v":36.067697369113738},{"$f":"IF(O62<>\"\",IF(GridCostView=\"YES\",Calculation!P17,Calculation!P17+Calculation!P18),\"\")","v":29.154942887087991},{"$f":"IF(P62<>\"\",IF(GridCostView=\"YES\",Calculation!Q17,Calculation!Q17+Calculation!Q18),\"\")","v":5.2012481997172353},{"$f":"IF(Q62<>\"\",IF(GridCostView=\"YES\",Calculation!R17,Calculation!R17+Calculation!R18),\"\")","v":11.457511472921791},{"$f":"IF(R62<>\"\",IF(GridCostView=\"YES\",Calculation!S17,Calculation!S17+Calculation!S18),\"\")","v":27.322002314206738},{"$f":"IF(S62<>\"\",IF(GridCostView=\"YES\",Calculation!T17,Calculation!T17+Calculation!T18),\"\")","v":19.169018920170224},{"$f":"IF(T62<>\"\",IF(GridCostView=\"YES\",Calculation!U17,Calculation!U17+Calculation!U18),\"\")","v":9.0472385369830413},{"$f":"IF(U62<>\"\",IF(GridCostView=\"YES\",Calculation!V17,Calculation!V17+Calculation!V18),\"\")","v":17.255825220469941},{"$f":"IF(V62<>\"\",IF(GridCostView=\"YES\",Calculation!W17,Calculation!W17+Calculation!W18),\"\")","v":""},{"$f":"IF(W62<>\"\",IF(GridCostView=\"YES\",Calculation!X17,Calculation!X17+Calculation!X18),\"\")","v":""},{"$f":"IF(X62<>\"\",IF(GridCostView=\"YES\",Calculation!Y17,Calculation!Y17+Calculation!Y18),\"\")","v":""},{"$f":"IF(Y62<>\"\",IF(GridCostView=\"YES\",Calculation!Z17,Calculation!Z17+Calculation!Z18),\"\")","v":""},{"$f":"IF(Z62<>\"\",IF(GridCostView=\"YES\",Calculation!AA17,Calculation!AA17+Calculation!AA18),\"\")","v":""},{"$f":"IF(AA62<>\"\",IF(GridCostView=\"YES\",Calculation!AB17,Calculation!AB17+Calculation!AB18),\"\")","v":""},{"$f":"IF(AB62<>\"\",IF(GridCostView=\"YES\",Calculation!AC17,Calculation!AC17+Calculation!AC18),\"\")","v":""},{"$f":"IF(AC62<>\"\",IF(GridCostView=\"YES\",Calculation!AD17,Calculation!AD17+Calculation!AD18),\"\")","v":""},{"$f":"IF(AD62<>\"\",IF(GridCostView=\"YES\",Calculation!AE17,Calculation!AE17+Calculation!AE18),\"\")","v":""}]
[null,{"$f":"IF(GridCostView=\"YES\",\"Capital cost grid\",\"\")","v":""},null,{"$f":"IF(D62<>\"\",IF(GridCostView=\"YES\",Calculation!E18,0),\"\")","v":0},{"$f":"IF(E62<>\"\",IF(GridCostView=\"YES\",Calculation!F18,0),\"\")","v":0},{"$f":"IF(F62<>\"\",IF(GridCostView=\"YES\",Calculation!G18,0),\"\")","v":0},{"$f":"IF(G62<>\"\",IF(GridCostView=\"YES\",Calculation!H18,0),\"\")","v":0},{"$f":"IF(H62<>\"\",IF(GridCostView=\"YES\",Calculation!I18,0),\"\")","v":0},{"$f":"IF(I62<>\"\",IF(GridCostView=\"YES\",Calculation!J18,0),\"\")","v":0},{"$f":"IF(J62<>\"\",IF(GridCostView=\"YES\",Calculation!K18,0),\"\")","v":0},{"$f":"IF(K62<>\"\",IF(GridCostView=\"YES\",Calculation!L18,0),\"\")","v":0},{"$f":"IF(L62<>\"\",IF(GridCostView=\"YES\",Calculation!M18,0),\"\")","v":0},{"$f":"IF(M62<>\"\",IF(GridCostView=\"YES\",Calculation!N18,0),\"\")","v":0},{"$f":"IF(N62<>\"\",IF(GridCostView=\"YES\",Calculation!O18,0),\"\")","v":0},{"$f":"IF(O62<>\"\",IF(GridCostView=\"YES\",Calculation!P18,0),\"\")","v":0},{"$f":"IF(P62<>\"\",IF(GridCostView=\"YES\",Calculation!Q18,0),\"\")","v":0},{"$f":"IF(Q62<>\"\",IF(GridCostView=\"YES\",Calculation!R18,0),\"\")","v":0},{"$f":"IF(R62<>\"\",IF(GridCostView=\"YES\",Calculation!S18,0),\"\")","v":0},{"$f":"IF(S62<>\"\",IF(GridCostView=\"YES\",Calculation!T18,0),\"\")","v":0},{"$f":"IF(T62<>\"\",IF(GridCostView=\"YES\",Calculation!U18,0),\"\")","v":0},{"$f":"IF(U62<>\"\",IF(GridCostView=\"YES\",Calculation!V18,0),\"\")","v":0},{"$f":"IF(V62<>\"\",IF(GridCostView=\"YES\",Calculation!W18,0),\"\")","v":""},{"$f":"IF(W62<>\"\",IF(GridCostView=\"YES\",Calculation!X18,0),\"\")","v":""},{"$f":"IF(X62<>\"\",IF(GridCostView=\"YES\",Calculation!Y18,0),\"\")","v":""},{"$f":"IF(Y62<>\"\",IF(GridCostView=\"YES\",Calculation!Z18,0),\"\")","v":""},{"$f":"IF(Z62<>\"\",IF(GridCostView=\"YES\",Calculation!AA18,0),\"\")","v":""},{"$f":"IF(AA62<>\"\",IF(GridCostView=\"YES\",Calculation!AB18,0),\"\")","v":""},{"$f":"IF(AB62<>\"\",IF(GridCostView=\"YES\",Calculation!AC18,0),\"\")","v":""},{"$f":"IF(AC62<>\"\",IF(GridCostView=\"YES\",Calculation!AD18,0),\"\")","v":""},{"$f":"IF(AD62<>\"\",IF(GridCostView=\"YES\",Calculation!AE18,0),\"\")","v":""}]
[null,"O&M costs",null,{"$f":"IF(D$62<>\"\",Calculation!E19,\"\")","v":10.91922620557642},{"$f":"IF(E$62<>\"\",Calculation!F19,\"\")","v":11.642771084337351},{"$f":"IF(F$62<>\"\",Calculation!G19,\"\")","v":6.6037033659707838},{"$f":"IF(G$62<>\"\",Calculation!H19,\"\")","v":6.4022535932648301},{"$f":"IF(H$62<>\"\",Calculation!I19,\"\")","v":6.0596768659059217},{"$f":"IF(I$62<>\"\",Calculation!J19,\"\")","v":7.2576743185850212},{"$f":"IF(J$62<>\"\",Calculation!K19,\"\")","v":9.1392935863663229},{"$f":"IF(K$62<>\"\",Calculation!L19,\"\")","v":34.833804147633515},{"$f":"IF(L$62<>\"\",Calculation!M19,\"\")","v":42.616070629382172},{"$f":"IF(M$62<>\"\",Calculation!N19,\"\")","v":13.635165429454595},{"$f":"IF(N$62<>\"\",Calculation!O19,\"\")","v":15.818392860053645},{"$f":"IF(O$62<>\"\",Calculation!P19,\"\")","v":10.287650459097694},{"$f":"IF(P$62<>\"\",Calculation!Q19,\"\")","v":10.805516876367744},{"$f":"IF(Q$62<>\"\",Calculation!R19,\"\")","v":10.551828157612819},{"$f":"IF(R$62<>\"\",Calculation!S19,\"\")","v":14.403542502888495},{"$f":"IF(S$62<>\"\",Calculation!T19,\"\")","v":8.5500061863444401},{"$f":"IF(T$62<>\"\",Calculation!U19,\"\")","v":6.8837334068520732},{"$f":"IF(U$62<>\"\",Calculation!V19,\"\")","v":5.1913509592750771},{"$f":"IF(V$62<>\"\",Calculation!W19,\"\")","v":""},{"$f":"IF(W$62<>\"\",Calculation!X19,\"\")","v":""},{"$f":"IF(X$62<>\"\",Calculation!Y19,\"\")","v":""},{"$f":"IF(Y$62<>\"\",Calculation!Z19,\"\")","v":""},{"$f":"IF(Z$62<>\"\",Calculation!AA19,\"\")","v":""},{"$f":"IF(AA$62<>\"\",Calculation!AB19,\"\")","v":""},{"$f":"IF(AB$62<>\"\",Calculation!AC19,\"\")","v":""},{"$f":"IF(AC$62<>\"\",Calculation!AD19,\"\")","v":""},{"$f":"IF(AD$62<>\"\",Calculation!AE19,\"\")","v":""}]
[null,"Other costs",null,{"$f":"IF(D$62<>\"\",Calculation!E20,\"\")","v":0},{"$f":"IF(E$62<>\"\",Calculation!F20,\"\")","v":0},{"$f":"IF(F$62<>\"\",Calculation!G20,\"\")","v":0},{"$f":"IF(G$62<>\"\",Calculation!H20,\"\")","v":0},{"$f":"IF(H$62<>\"\",Calculation!I20,\"\")","v":0},{"$f":"IF(I$62<>\"\",Calculation!J20,\"\")","v":0},{"$f":"IF(J$62<>\"\",Calculation!K20,\"\")","v":0},{"$f":"IF(K$62<>\"\",Calculation!L20,\"\")","v":0},{"$f":"IF(L$62<>\"\",Calculation!M20,\"\")","v":0},{"$f":"IF(M$62<>\"\",Calculation!N20,\"\")","v":0},{"$f":"IF(N$62<>\"\",Calculation!O20,\"\")","v":0},{"$f":"IF(O$62<>\"\",Calculation!P20,\"\")","v":0},{"$f":"IF(P$62<>\"\",Calculation!Q20,\"\")","v":0},{"$f":"IF(Q$62<>\"\",Calculation!R20,\"\")","v":0},{"$f":"IF(R$62<>\"\",Calculation!S20,\"\")","v":4.5240156619929204},{"$f":"IF(S$62<>\"\",Calculation!T20,\"\")","v":0},{"$f":"IF(T$62<>\"\",Calculation!U20,\"\")","v":0},{"$f":"IF(U$62<>\"\",Calculation!V20,\"\")","v":0},{"$f":"IF(V$62<>\"\",Calculation!W20,\"\")","v":""},{"$f":"IF(W$62<>\"\",Calculation!X20,\"\")","v":""},{"$f":"IF(X$62<>\"\",Calculation!Y20,\"\")","v":""},{"$f":"IF(Y$62<>\"\",Calculation!Z20,\"\")","v":""},{"$f":"IF(Z$62<>\"\",Calculation!AA20,\"\")","v":""},{"$f":"IF(AA$62<>\"\",Calculation!AB20,\"\")","v":""},{"$f":"IF(AB$62<>\"\",Calculation!AC20,\"\")","v":""},{"$f":"IF(AC$62<>\"\",Calculation!AD20,\"\")","v":""},{"$f":"IF(AD$62<>\"\",Calculation!AE20,\"\")","v":""}]
[null,"Fuel cost",null,{"$f":"IF(D$62<>\"\",Calculation!E21,\"\")","v":0},{"$f":"IF(E$62<>\"\",Calculation!F21,\"\")","v":0},{"$f":"IF(F$62<>\"\",Calculation!G21,\"\")","v":0},{"$f":"IF(G$62<>\"\",Calculation!H21,\"\")","v":0},{"$f":"IF(H$62<>\"\",Calculation!I21,\"\")","v":0},{"$f":"IF(I$62<>\"\",Calculation!J21,\"\")","v":0},{"$f":"IF(J$62<>\"\",Calculation!K21,\"\")","v":0},{"$f":"IF(K$62<>\"\",Calculation!L21,\"\")","v":61.740195348742432},{"$f":"IF(L$62<>\"\",Calculation!M21,\"\")","v":35.764191367942331},{"$f":"IF(M$62<>\"\",Calculation!N21,\"\")","v":51.35592459408717},{"$f":"IF(N$62<>\"\",Calculation!O21,\"\")","v":55.080528196219717},{"$f":"IF(O$62<>\"\",Calculation!P21,\"\")","v":18.690893274377704},{"$f":"IF(P$62<>\"\",Calculation!Q21,\"\")","v":21.999215534611658},{"$f":"IF(Q$62<>\"\",Calculation!R21,\"\")","v":47.39349026669138},{"$f":"IF(R$62<>\"\",Calculation!S21,\"\")","v":6.6407453840894117},{"$f":"IF(S$62<>\"\",Calculation!T21,\"\")","v":26.562997952084196},{"$f":"IF(T$62<>\"\",Calculation!U21,\"\")","v":57.017953809986274},{"$f":"IF(U$62<>\"\",Calculation!V21,\"\")","v":0},{"$f":"IF(V$62<>\"\",Calculation!W21,\"\")","v":""},{"$f":"IF(W$62<>\"\",Calculation!X21,\"\")","v":""},{"$f":"IF(X$62<>\"\",Calculation!Y21,\"\")","v":""},{"$f":"IF(Y$62<>\"\",Calculation!Z21,\"\")","v":""},{"$f":"IF(Z$62<>\"\",Calculation!AA21,\"\")","v":""},{"$f":"IF(AA$62<>\"\",Calculation!AB21,\"\")","v":""},{"$f":"IF(AB$62<>\"\",Calculation!AC21,\"\")","v":""},{"$f":"IF(AC$62<>\"\",Calculation!AD21,\"\")","v":""},{"$f":"IF(AD$62<>\"\",Calculation!AE21,\"\")","v":""}]
[null,"Climate externalities",null,{"$f":"IF(D$62<>\"\",Calculation!E22,\"\")","v":0},{"$f":"IF(E$62<>\"\",Calculation!F22,\"\")","v":0},{"$f":"IF(F$62<>\"\",Calculation!G22,\"\")","v":0},{"$f":"IF(G$62<>\"\",Calculation!H22,\"\")","v":0},{"$f":"IF(H$62<>\"\",Calculation!I22,\"\")","v":0},{"$f":"IF(I$62<>\"\",Calculation!J22,\"\")","v":0},{"$f":"IF(J$62<>\"\",Calculation!K22,\"\")","v":0},{"$f":"IF(K$62<>\"\",Calculation!L22,\"\")","v":0.16507821094746039},{"$f":"IF(L$62<>\"\",Calculation!M22,\"\")","v":8.1205797888543679E-2},{"$f":"IF(M$62<>\"\",Calculation!N22,\"\")","v":0.74799847984476564},{"$f":"IF(N$62<>\"\",Calculation!O22,\"\")","v":0.99606810019301639},{"$f":"IF(O$62<>\"\",Calculation!P22,\"\")","v":50.413719099285323},{"$f":"IF(P$62<>\"\",Calculation!Q22,\"\")","v":46.7956662585419},{"$f":"IF(Q$62<>\"\",Calculation!R22,\"\")","v":28.691555440384999},{"$f":"IF(R$62<>\"\",Calculation!S22,\"\")","v":0},{"$f":"IF(S$62<>\"\",Calculation!T22,\"\")","v":87.690202829385356},{"$f":"IF(T$62<>\"\",Calculation!U22,\"\")","v":37.329618780389325},{"$f":"IF(U$62<>\"\",Calculation!V22,\"\")","v":0},{"$f":"IF(V$62<>\"\",Calculation!W22,\"\")","v":""},{"$f":"IF(W$62<>\"\",Calculation!X22,\"\")","v":""},{"$f":"IF(X$62<>\"\",Calculation!Y22,\"\")","v":""},{"$f":"IF(Y$62<>\"\",Calculation!Z22,\"\")","v":""},{"$f":"IF(Z$62<>\"\",Calculation!AA22,\"\")","v":""},{"$f":"IF(AA$62<>\"\",Calculation!AB22,\"\")","v":""},{"$f":"IF(AB$62<>\"\",Calculation!AC22,\"\")","v":""},{"$f":"IF(AC$62<>\"\",Calculation!AD22,\"\")","v":""},{"$f":"IF(AD$62<>\"\",Calculation!AE22,\"\")","v":""}]
[null,"Air pollution ",null,{"$f":"IF(D$62<>\"\",Calculation!E23,\"\")","v":0},{"$f":"IF(E$62<>\"\",Calculation!F23,\"\")","v":0},{"$f":"IF(F$62<>\"\",Calculation!G23,\"\")","v":0},{"$f":"IF(G$62<>\"\",Calculation!H23,\"\")","v":0},{"$f":"IF(H$62<>\"\",Calculation!I23,\"\")","v":0},{"$f":"IF(I$62<>\"\",Calculation!J23,\"\")","v":0},{"$f":"IF(J$62<>\"\",Calculation!K23,\"\")","v":0},{"$f":"IF(K$62<>\"\",Calculation!L23,\"\")","v":4.4541028234001168},{"$f":"IF(L$62<>\"\",Calculation!M23,\"\")","v":3.913527361149685},{"$f":"IF(M$62<>\"\",Calculation!N23,\"\")","v":4.9037070270497543},{"$f":"IF(N$62<>\"\",Calculation!O23,\"\")","v":5.2451448352752799},{"$f":"IF(O$62<>\"\",Calculation!P23,\"\")","v":5.7330755904738133},{"$f":"IF(P$62<>\"\",Calculation!Q23,\"\")","v":6.511890325455437},{"$f":"IF(Q$62<>\"\",Calculation!R23,\"\")","v":1.1177729898573476},{"$f":"IF(R$62<>\"\",Calculation!S23,\"\")","v":0},{"$f":"IF(S$62<>\"\",Calculation!T23,\"\")","v":43.093747317190918},{"$f":"IF(T$62<>\"\",Calculation!U23,\"\")","v":5.2033243910265945},{"$f":"IF(U$62<>\"\",Calculation!V23,\"\")","v":0},{"$f":"IF(V$62<>\"\",Calculation!W23,\"\")","v":""},{"$f":"IF(W$62<>\"\",Calculation!X23,\"\")","v":""},{"$f":"IF(X$62<>\"\",Calculation!Y23,\"\")","v":""},{"$f":"IF(Y$62<>\"\",Calculation!Z23,\"\")","v":""},{"$f":"IF(Z$62<>\"\",Calculation!AA23,\"\")","v":""},{"$f":"IF(AA$62<>\"\",Calculation!AB23,\"\")","v":""},{"$f":"IF(AB$62<>\"\",Calculation!AC23,\"\")","v":""},{"$f":"IF(AC$62<>\"\",Calculation!AD23,\"\")","v":""},{"$f":"IF(AD$62<>\"\",Calculation!AE23,\"\")","v":""}]
[null,"System costs",null,{"$f":"IF(D$62<>\"\",Calculation!E24,\"\")","v":0},{"$f":"IF(E$62<>\"\",Calculation!F24,\"\")","v":0},{"$f":"IF(F$62<>\"\",Calculation!G24,\"\")","v":0},{"$f":"IF(G$62<>\"\",Calculation!H24,\"\")","v":0},{"$f":"IF(H$62<>\"\",Calculation!I24,\"\")","v":0},{"$f":"IF(I$62<>\"\",Calculation!J24,\"\")","v":0},{"$f":"IF(J$62<>\"\",Calculation!K24,\"\")","v":0},{"$f":"IF(K$62<>\"\",Calculation!L24,\"\")","v":0},{"$f":"IF(L$62<>\"\",Calculation!M24,\"\")","v":0},{"$f":"IF(M$62<>\"\",Calculation!N24,\"\")","v":0},{"$f":"IF(N$62<>\"\",Calculation!O24,\"\")","v":0},{"$f":"IF(O$62<>\"\",Calculation!P24,\"\")","v":0},{"$f":"IF(P$62<>\"\",Calculation!Q24,\"\")","v":0},{"$f":"IF(Q$62<>\"\",Calculation!R24,\"\")","v":0},{"$f":"IF(R$62<>\"\",Calculation!S24,\"\")","v":0},{"$f":"IF(S$62<>\"\",Calculation!T24,\"\")","v":0},{"$f":"IF(T$62<>\"\",Calculation!U24,\"\")","v":0},{"$f":"IF(U$62<>\"\",Calculation!V24,\"\")","v":0},{"$f":"IF(V$62<>\"\",Calculation!W24,\"\")","v":""},{"$f":"IF(W$62<>\"\",Calculation!X24,\"\")","v":""},{"$f":"IF(X$62<>\"\",Calculation!Y24,\"\")","v":""},{"$f":"IF(Y$62<>\"\",Calculation!Z24,\"\")","v":""},{"$f":"IF(Z$62<>\"\",Calculation!AA24,\"\")","v":""},{"$f":"IF(AA$62<>\"\",Calculation!AB24,\"\")","v":""},{"$f":"IF(AB$62<>\"\",Calculation!AC24,\"\")","v":""},{"$f":"IF(AC$62<>\"\",Calculation!AD24,\"\")","v":""},{"$f":"IF(AD$62<>\"\",Calculation!AE24,\"\")","v":""}]
[null,"Heat revenue",null,{"$f":"IF(D$62<>\"\",Calculation!E25,\"\")","v":0},{"$f":"IF(E$62<>\"\",Calculation!F25,\"\")","v":0},{"$f":"IF(F$62<>\"\",Calculation!G25,\"\")","v":0},{"$f":"IF(G$62<>\"\",Calculation!H25,\"\")","v":0},{"$f":"IF(H$62<>\"\",Calculation!I25,\"\")","v":0},{"$f":"IF(I$62<>\"\",Calculation!J25,\"\")","v":0},{"$f":"IF(J$62<>\"\",Calculation!K25,\"\")","v":0},{"$f":"IF(K$62<>\"\",Calculation!L25,\"\")","v":0},{"$f":"IF(L$62<>\"\",Calculation!M25,\"\")","v":0},{"$f":"IF(M$62<>\"\",Calculation!N25,\"\")","v":0},{"$f":"IF(N$62<>\"\",Calculation!O25,\"\")","v":0},{"$f":"IF(O$62<>\"\",Calculation!P25,\"\")","v":0},{"$f":"IF(P$62<>\"\",Calculation!Q25,\"\")","v":0},{"$f":"IF(Q$62<>\"\",Calculation!R25,\"\")","v":0},{"$f":"IF(R$62<>\"\",Calculation!S25,\"\")","v":0},{"$f":"IF(S$62<>\"\",Calculation!T25,\"\")","v":0},{"$f":"IF(T$62<>\"\",Calculation!U25,\"\")","v":0},{"$f":"IF(U$62<>\"\",Calculation!V25,\"\")","v":0},{"$f":"IF(V$62<>\"\",Calculation!W25,\"\")","v":""},{"$f":"IF(W$62<>\"\",Calculation!X25,\"\")","v":""},{"$f":"IF(X$62<>\"\",Calculation!Y25,\"\")","v":""},{"$f":"IF(Y$62<>\"\",Calculation!Z25,\"\")","v":""},{"$f":"IF(Z$62<>\"\",Calculation!AA25,\"\")","v":""},{"$f":"IF(AA$62<>\"\",Calculation!AB25,\"\")","v":""},{"$f":"IF(AB$62<>\"\",Calculation!AC25,\"\")","v":""},{"$f":"IF(AC$62<>\"\",Calculation!AD25,\"\")","v":""},{"$f":"IF(AD$62<>\"\",Calculation!AE25,\"\")","v":""}]
[null,{"$f":"\"Levelized cost of electricity production, \"&PriceYear&\"-\"&chosencurrency&\"/MWh\"","v":"Levelized cost of electricity production, 2020-EUR/MWh"},null,{"$f":"IF(D62<>\"\",SUM(D68:D76),\"\")","v":41.312425999814174},33.086155949067063,{"$f":"IF(F62<>\"\",SUM(F68:F76),\"\")","v":24.378010731392585},{"$f":"IF(G62<>\"\",SUM(G68:G76),\"\")","v":18.617961175982565},18.598278786782075,32.535589091094323,43.00097496649726,153.40600457977112,143.62151068134932,107.02606175033152,{"$f":"IF(N62<>\"\",SUM(N68:N76),\"\")","v":113.20783136085539},114.28028131032252,91.313537194693978,{"$f":"IF(Q62<>\"\",SUM(Q68:Q76),\"\")","v":99.21215832746833},52.890305863177566,185.06597320517514,115.48186892523731,22.447176179745018,"","","","","","","","",""]

{"sheet":"ScenarioResults","index":5,"n_rows":410,"n_cols":29,"rows_kept":410,"cut":false,"hidden":false,"merged":[]}
[]
[null,"Scenariosetting"]
[]
[null,"Basic user settings"]
[null,"Scenario slot number",1,2,3,4,5,6,7,8,9,10,11,12,13,14,15,16,17,18,19,20]
[null,"Custom name","toke ole ","VE vs. Kul 2030","UserSce","UserSce","UserSce","UserSce","UserSce","UserSce","UserSce","UserSce","Toke ole","UserSce","UserSce","UserSce","UserSce","UserSce","UserSce","UserSce","UserSce","UserSce"]
[null,{"$f":"IF('UserSettings&Results'!B21<>\"\",'UserSettings&Results'!B21,\"\")","v":"Result view"}]
[null,{"$f":"IF('UserSettings&Results'!B22<>\"\",'UserSettings&Results'!B22,\"\")","v":"Currency"},"EUR","EUR",null,null,null,null,null,null,null,null,"EUR"]
[null,{"$f":"IF('UserSettings&Results'!B23<>\"\",'UserSettings&Results'!B23,\"\")","v":"Price year"},2017,2015,null,null,null,null,null,null,null,null,2017]
[null,{"$f":"IF('UserSettings&Results'!B24<>\"\",'UserSettings&Results'!B24,\"\")","v":"Financial settings"}]
[null,{"$f":"IF('UserSettings&Results'!B25<>\"\",'UserSettings&Results'!B25,\"\")","v":"First year of production"},2022,2030,null,null,null,null,null,null,null,null,2022]
[null,{"$f":"IF('UserSettings&Results'!B26<>\"\",'UserSettings&Results'!B26,\"\")","v":"Lookout period (years)"},20,"Technical",null,null,null,null,null,null,null,null,20]
[null,{"$f":"IF('UserSettings&Results'!B27<>\"\",'UserSettings&Results'!B27,\"\")","v":"Depreciation period (years)"},"Technical","Technical",null,null,null,null,null,null,null,null,"Technical"]
[null,{"$f":"IF('UserSettings&Results'!B28<>\"\",'UserSettings&Results'!B28,\"\")","v":"Discount rate"},0.04,0.04,null,null,null,null,null,null,null,null,0.04]
[null,{"$f":"IF('UserSettings&Results'!B29<>\"\",'UserSettings&Results'!B29,\"\")","v":"Discount prices"},"YES","YES",null,null,null,null,null,null,null,null,"YES"]
[null,{"$f":"IF('UserSettings&Results'!B30<>\"\",'UserSettings&Results'!B30,\"\")","v":"Interest during construction"},"YES","YES",null,null,null,null,null,null,null,null,"YES"]
[null,{"$f":"IF('UserSettings&Results'!B31<>\"\",'UserSettings&Results'!B31,\"\")","v":"Scenarios"}]
[null,{"$f":"IF('UserSettings&Results'!B32<>\"\",'UserSettings&Results'!B32,\"\")","v":"Fuel and CO2-price scenario"},"CustomFuel2","CustomFuel",null,null,null,null,null,null,null,null,"CustomFuel2"]
[null,{"$f":"IF('UserSettings&Results'!B33<>\"\",'UserSettings&Results'!B33,\"\")","v":"Technology scenario"},"TechBase","TechBase",null,null,null,null,null,null,null,null,"TechBase"]
[null,{"$f":"IF('UserSettings&Results'!B34<>\"\",'UserSettings&Results'!B34,\"\")","v":"Technology year"},2020,2030,null,null,null,null,null,null,null,null,2020]
[null,{"$f":"IF('UserSettings&Results'!B35<>\"\",'UserSettings&Results'!B35,\"\")","v":"Heat value"}]
[null,{"$f":"IF('UserSettings&Results'!B36<>\"\",'UserSettings&Results'!B36,\"\")","v":"Set methodology to value heat production"},"Cost allocation","Cost allocation",null,null,null,null,null,null,null,null,"Cost allocation"]
[null,{"$f":"IF('UserSettings&Results'!B37<>\"\",'UserSettings&Results'!B37,\"\")","v":"Heat efficiency if cost allocation is selected"},1.25,1.25,null,null,null,null,null,null,null,null,1.25]
[null,{"$f":"IF('UserSettings&Results'!B38<>\"\",'UserSettings&Results'!B38,\"\")","v":"Heat price (EUR/GJ) if heat price is selected"},6.7114000000000003,6.7114000000000003,null,null,null,null,null,null,null,null,6.7114000000000003]
[null,{"$f":"IF('UserSettings&Results'!B39<>\"\",'UserSettings&Results'!B39,\"\")","v":"Inclusion of costs"}]
[null,{"$f":"IF('UserSettings&Results'!B40<>\"\",'UserSettings&Results'!B40,\"\")","v":"Include air pollution"},"YES","YES",null,null,null,null,null,null,null,null,"YES"]
[null,{"$f":"IF('UserSettings&Results'!B41<>\"\",'UserSettings&Results'!B41,\"\")","v":"Profile cost"},"NO","NO",null,null,null,null,null,null,null,null,"NO"]
[null,{"$f":"IF('UserSettings&Results'!B42<>\"\",'UserSettings&Results'!B42,\"\")","v":"Graph options"}]
[null,{"$f":"IF('UserSettings&Results'!B43<>\"\",'UserSettings&Results'!B43,\"\")","v":"Show grid cost for RES explicitly"},"NO","NO",null,null,null,null,null,null,null,null,"NO"]
[]
[]
[]
[1,"Database","CurrentTech","CurrentTech","CurrentTech","CurrentTech","CurrentTech","CurrentTech","OldTech","OldTech","CurrentTech","CurrentTech","CurrentTech","CurrentTech","CurrentTech","CurrentTech"]
["toke ole ","Technology","16WIN_ON_in onshorewind incl. Grid","17WIN_OF_in  Offshore wind large DK incl. Grid","17LaPV_IN Large Photo voltage incl. Grid","16La REF_EX  WPE_COA_exibo_no_inv_exipla Woodpellets CHP  refurb.  \nCoal plants, existing Boiler,  no invest cost in existing plant","17La_EX_COA CHP coal 400-700 MWwe","16La EX CC NGA CC large CHP Gas Turbine combined Cycle natural Gas  \n","17La EX WPE 800 MW input_2018-02-03","Large CHP - \nwood pellets_2017-08-01","17La_EX_COA CHP coal 400-700 MWwe","16La EX CC NGA CC large CHP Gas Turbine combined Cycle natural Gas  \n","16 La EX LTE COA no_inv_exipla  - Coal CHP Life time extension of coal power plant no invest cost for existing plant ","16La REF_EX  WPE_COA_exibo_no_inv_exipla Woodpellets CHP  refurb.  \nCoal plants, existing Boiler,  no invest cost in existing plant","16La REF_EX WCH_COA_exi_exibo_no_inv_exipla Wood chips CHP refurb.  \nCoal plants, existing boiler, no invest cost for existing plant ","16La REF_EX  WCH_COA_Newboi_ no_inv_exipla Wood chips CHP refurb.  \nCoal plants, new Boiler, no invest cost for existing plant "]
[null,"Technology year if not standard"]
[null,"First year of operation if not standard"]
[null,"Presentation name for graph (custom)"]
[null,"Reference","Tech Cat Aug 2016update ","Tech Cat Update June 2017","Tech Cat October 2017","Tech Cat  Aug 2016, Coal Update 2017","Tech Cat Oct. 2017 update","Tech Cat 2016",0,0,"Tech Cat Oct. 2017 update","Tech Cat 2016",null,null,"Tech Cat  Aug 2016, Coal Update 2017","Tech Cat  Aug 2016, Coal Update 2017","","","","","","","","","","","","",""]
["2017-EUR/MWh","Presentation name","16WIN_ON_in onshorewind incl. Grid","17WIN_OF_in  Offshore wind large DK incl. Grid","17LaPV_IN Large Photo voltage incl. Grid","16La REF_EX  WPE_COA_exibo_no_inv_exipla Woodpellets CHP  refurb.  \nCoal plants, existing Boiler,  no invest cost in existing plant","17La_EX_COA CHP coal 400-700 MWwe","16La EX CC NGA CC large CHP Gas Turbine combined Cycle natural Gas  \n","17La EX WPE 800 MW input_2018-02-03","Large CHP - \nwood pellets_2017-08-01","17La_EX_COA CHP coal 400-700 MWwe","16La EX CC NGA CC large CHP Gas Turbine combined Cycle natural Gas  \n","16 La EX LTE COA no_inv_exipla  - Coal CHP Life time extension of coal power plant no invest cost for existing plant ","16La REF_EX  WPE_COA_exibo_no_inv_exipla Woodpellets CHP  refurb.  \nCoal plants, existing Boiler,  no invest cost in existing plant","16La REF_EX WCH_COA_exi_exibo_no_inv_exipla Wood chips CHP refurb.  \nCoal plants, existing boiler, no invest cost for existing plant ","16La REF_EX  WCH_COA_Newboi_ no_inv_exipla Wood chips CHP refurb.  \nCoal plants, new Boiler, no invest cost for existing plant ",0,0,0,0,0,0,0,0,0,0,0,0,0]
["Capital cost incl. grid cost",null,20.013359741379059,33.357737022245693,33.053071313281862,12.478075702562389,30.707185820893262,12.276699439329034,40.45738094937289,27.317639283685988,30.707185820893262,12.276699439329034,5.169818105800295,12.478075702562389,36.064279642987863,36.424887499633392,"","","","","","","","","","","","",""]
["",null,0,0,0,0,0,0,0,0,0,0,0,0,0,0,"","","","","","","","","","","","",""]
["O&M costs",null,10.23081262243819,13.331449146563436,7.8240360889141778,11.838147948755813,10.09680366033631,10.539526866490256,18.085552464331982,17.353857555333011,10.09680366033631,10.539526866490256,10.65946685964053,11.838147948755813,15.630793284822936,13.463004657560752,"","","","","","","","","","","","",""]
["Other costs",null,0,0,0,0,0,0,0,0,0,0,0,0,0,0,"","","","","","","","","","","","",""]
["Fuel cost",null,0,0,0,65.44780098205473,17.977848922337728,37.729116176265848,60.980785219619499,56.4453319213385,17.977848922337728,37.729116176265848,20.284065095817361,65.44780098205473,54.566381775476643,50.648160861893679,"","","","","","","","","","","","",""]
["Climate externalities",null,0,0,0,5.6077826335332315E-2,14.479547849584947,8.0241220394283665,4.9289653230659446E-2,4.8364215045100127E-2,14.479547849584947,8.0241220394283665,16.336998514547087,"",0.4606515638740295,0.26099110917565305,"","","","","","","","","","","","",""]
["Air pollution ",null,0,0,0,2.7380394165504991,3.0559766541762148,0.82116824729988658,1.3845474043872432,3.0292585180290699,3.0559766541762148,0.82116824729988658,3.4480003504528289,2.7380394165504991,2.6066772327625505,2.4313510357915979,"","","","","","","","","","","","",""]
["System costs",null,0,0,0,0,0,0,0,0,0,0,0,0,0,0,"","","","","","","","","","","","",""]
["Heat revenue",null,0,0,0,0,0,0,0,0,0,0,0,0,0,0,"","","","","","","","","","","","",""]
["Levelized cost of electricity production, 2017-EUR/MWh",null,30.244172363817249,46.68918616880913,40.877107402196039,92.558141876258759,76.317362907328459,69.39063276881339,120.95755569094227,104.19445149343166,76.317362907328459,69.39063276881339,55.898348926258109,92.502064049923433,109.32878349992401,103.22839516405507,"","","","","","","","","","","","",""]
[]
[]
[2,"Database","CurrentTech","CurrentTech","CurrentTech","CurrentTech","TestTech","TestTech","CurrentTech","CurrentTech","CurrentTech","CurrentTech"]
["VE vs. Kul 2030","Technology","16WIN_ON_in onshorewind incl. Grid","17WIN_OF_in  Offshore wind large DK incl. Grid","17WIN_NS_in  Wind Nearshore incl grid ","17LaPV_IN Large Photo voltage incl. Grid","17La_EX_COA CHP coal 400-700 MWwe","16 La EX LTE COA ex_inv_cost  - Coal CHP Life time extension of coal power plant no invest cost exist ","New Technology 78","New Technology 78","New Technology 78","New Technology 86"]
[null,"Technology year if not standard"]
[null,"First year of operation if not standard"]
[null,"Presentation name for graph (custom)"]
[null,"Reference","Tech Cat Aug 2016update ","Tech Cat Update June 2017","Tech Cat Update June 2017","Tech Cat October 2017","Tech Cat Oct. 2017 update","Tech Cat Aug 2016, coal note 2017 data for ex. Plant","","","","",null,null,"","","","","","","","","","","","","","",""]
["2015-EUR/MWh","Presentation name","16WIN_ON_in onshorewind incl. Grid","17WIN_OF_in  Offshore wind large DK incl. Grid","17WIN_NS_in  Wind Nearshore incl grid ","17LaPV_IN Large Photo voltage incl. Grid","17La_EX_COA CHP coal 400-700 MWwe","16 La EX LTE COA ex_inv_cost  - Coal CHP Life time extension of coal power plant no invest cost exist ","New Technology 78","New Technology 78","New Technology 78","New Technology 86",0,0,0,0,0,0,0,0,0,0,0,0,0,0,0,0,0]
["Capital cost",null,16.875722832458433,26.006107954246275,22.604039709234222,24.577236992640046,22.935912271293915,3.0660417537127667,{"$error":"#VALUE!"},{"$error":"#VALUE!"},{"$error":"#VALUE!"},{"$error":"#VALUE!"},"","","","","","","","","","","","","","","","",""]
["",null,0,0,0,0,0,0,0,0,0,0,"","","","","","","","","","","","","","","","",""]
["O&M costs",null,9.2687500000000007,10.829032258064515,9.7161290322580651,6.0185185185185182,9.6111985334914021,10.09501327525382,{"$error":"#VALUE!"},{"$error":"#VALUE!"},{"$error":"#VALUE!"},{"$error":"#VALUE!"},"","","","","","","","","","","","","","","","",""]
["Other costs",null,0,0,0,0,0,0,"","","","","","","","","","","","","","","","","","","","",""]
["Fuel cost",null,0,0,0,0,18.252677393838972,20.73222853229046,{"$error":"#VALUE!"},{"$error":"#VALUE!"},{"$error":"#VALUE!"},{"$error":"#VALUE!"},"","","","","","","","","","","","","","","","",""]
["Climate externalities",null,0,0,0,0,16.83830576838081,19.125720339772712,{"$error":"#VALUE!"},{"$error":"#VALUE!"},{"$error":"#VALUE!"},{"$error":"#VALUE!"},"","","","","","","","","","","","","","","","",""]
["Air pollution ",null,0,0,0,0,2.8615172666156292,3.2502426159460409,{"$error":"#VALUE!"},{"$error":"#VALUE!"},{"$error":"#VALUE!"},{"$error":"#VALUE!"},"","","","","","","","","","","","","","","","",""]
["System costs",null,0,0,0,0,0,0,{"$error":"#VALUE!"},{"$error":"#VALUE!"},{"$error":"#VALUE!"},{"$error":"#VALUE!"},"","","","","","","","","","","","","","","","",""]
["Heat revenue",null,0,0,0,0,0,0,0,0,0,0,"","","","","","","","","","","","","","","","",""]
["Levelized cost of electricity production, 2015-EUR/MWh",null,26.144472832458433,36.83514021231079,32.320168741492289,30.595755511158565,70.49961123362074,56.269246516975805,{"$error":"#VALUE!"},{"$error":"#VALUE!"},{"$error":"#VALUE!"},{"$error":"#VALUE!"},"","","","","","","","","","","","","","","","",""]
[]
[]
[3,"Database"]
[null,"Technology"]
[null,"Technology year"]
[null,"First year of operation"]
[null,"Presentation name (custom)"]
[null,"Reference"]
["2015-EUR/MWh","Presentation name",null,null,null,null,null,null,null,null,null,null,null,null,0,0,0,0,0,0,0,0,0,0,0,0,0,0,0]
["Capital cost",null,null,null,null,null,null,null,null,null,null,null,null,null,"","","","","","","","","","","","","","",""]
["Capital cost grid",null,null,null,null,null,null,null,null,null,null,null,null,null,"","","","","","","","","","","","","","",""]
["O&M costs",null,null,null,null,null,null,null,null,null,null,null,null,null,"","","","","","","","","","","","","","",""]
["Other costs",null,null,null,null,null,null,null,null,null,null,null,null,null,"","","","","","","","","","","","","","",""]
["Fuel cost",null,null,null,null,null,null,null,null,null,null,null,null,null,"","","","","","","","","","","","","","",""]
["Climate externalities",null,null,null,null,null,null,null,null,null,null,null,null,null,"","","","","","","","","","","","","","",""]
["Air pollution ",null,null,null,null,null,null,null,null,null,null,null,null,null,"","","","","","","","","","","","","","",""]
["System costs",null,null,null,null,null,null,null,null,null,null,null,null,null,"","","","","","","","","","","","","","",""]
["Heat revenue",null,null,null,null,null,null,null,null,null,null,null,null,null,"","","","","","","","","","","","","","",""]
["Levelized cost of electricity production, 2015-EUR/MWh",null,null,null,null,null,null,null,null,null,null,null,null,null,"","","","","","","","","","","","","","",""]
[]
[]
[4,"Database"]
[null,"Technology"]
[null,"Technology year"]
[null,"First year of operation"]
[null,"Presentation name (custom)"]
[null,"Reference"]
["2015-EUR/MWh","Presentation name"]
["Capital cost"]
["Capital cost grid"]
["O&M costs"]
["Other costs"]
["Fuel cost"]
["Climate externalities"]
["Air pollution "]
["System costs"]
["Heat revenue"]
["Levelized cost of electricity production, 2015-EUR/MWh"]
[]
[]
[5,"Database"]
[null,"Technology"]
[null,"Technology year"]
[null,"First year of operation"]
[null,"Presentation name (custom)"]
[null,"Reference"]
["2015-DKK/MWh","Presentation name"]
["Capital cost"]
["Capital cost grid"]
["O&M costs"]
["Other costs"]
["Fuel cost"]
["Climate externalities"]
["Air pollution "]
["System costs"]
["Heat revenue"]
["Levelized cost of electricity production, 2015-DKK/MWh"]
[]
[]
[6,"Database"]
[null,"Technology"]
[null,"Technology year"]
[null,"First year of operation"]
[null,"Presentation name (custom)"]
[null,"Reference"]
[null,"Presentation name"]
["Capital cost"]
["Capital cost grid"]
["O&M costs"]
["Other costs"]
["Fuel cost"]
["Climate externalities"]
["Air pollution "]
["System costs"]
["Heat revenue"]
[]
[]
[]
[7,"Database"]
[null,"Technology"]
[null,"Technology year"]
[null,"First year of operation"]
[null,"Presentation name (custom)"]
[null,"Reference"]
[null,"Presentation name"]
["Capital cost"]
["Capital cost grid"]
["O&M costs"]
["Other costs"]
["Fuel cost"]
["Climate externalities"]
["Air pollution "]
["System costs"]
["Heat revenue"]
[]
[]
[]
[8,"Database"]
[null,"Technology"]
[null,"Technology year"]
[null,"First year of operation"]
[null,"Presentation name (custom)"]
[null,"Reference"]
[null,"Presentation name"]
["Capital cost"]
["Capital cost grid"]
["O&M costs"]
["Other costs"]
["Fuel cost"]
["Climate externalities"]
["Air pollution "]
["System costs"]
["Heat revenue"]
[]
[]
[]
[9,"Database"]
[null,"Technology"]
[null,"Technology year"]
[null,"First year of operation"]
[null,"Presentation name (custom)"]
[null,"Reference"]
[null,"Presentation name"]
["Capital cost"]
["Capital cost grid"]
["O&M costs"]
["Other costs"]
["Fuel cost"]
["Climate externalities"]
["Air pollution "]
["System costs"]
["Heat revenue"]
[]
[]
[]
[10,"Database"]
[null,"Technology"]
[null,"Technology year"]
[null,"First year of operation"]
[null,"Presentation name (custom)"]
[null,"Reference"]
[null,"Presentation name"]
["Capital cost"]
["Capital cost grid"]
["O&M costs"]
["Other costs"]
["Fuel cost"]
["Climate externalities"]
["Air pollution "]
["System costs"]
["Heat revenue"]
[]
[]
[]
[11,"Database","CurrentTech","CurrentTech","CurrentTech","CurrentTech","CurrentTech","CurrentTech","OldTech","OldTech","CurrentTech","CurrentTech","CurrentTech","CurrentTech","CurrentTech","CurrentTech"]
["Toke ole","Technology","16WIN_ON_in onshorewind incl. Grid","17WIN_OF_in  Offshore wind large DK incl. Grid","17LaPV_IN Large Photo voltage incl. Grid","16La REF_EX  WPE_COA_exibo_no_inv_exipla Woodpellets CHP  refurb.  \nCoal plants, existing Boiler,  no invest cost in existing plant","17La_EX_COA CHP coal 400-700 MWwe","16La EX CC NGA CC large CHP Gas Turbine combined Cycle natural Gas  \n","17La EX WPE 800 MW input_2018-02-03","Large CHP - \nwood pellets_2017-08-01","17La_EX_COA CHP coal 400-700 MWwe","16La EX CC NGA CC large CHP Gas Turbine combined Cycle natural Gas  \n","16 La EX LTE COA no_inv_exipla  - Coal CHP Life time extension of coal power plant no invest cost for existing plant ","16La REF_EX  WPE_COA_exibo_no_inv_exipla Woodpellets CHP  refurb.  \nCoal plants, existing Boiler,  no invest cost in existing plant","16La REF_EX WCH_COA_exi_exibo_no_inv_exipla Wood chips CHP refurb.  \nCoal plants, existing boiler, no invest cost for existing plant ","16La REF_EX  WCH_COA_Newboi_ no_inv_exipla Wood chips CHP refurb.  \nCoal plants, new Boiler, no invest cost for existing plant "]
[null,"Technology year if not standard"]
[null,"First year of operation if not standard"]
[null,"Presentation name for graph (custom)"]
[null,"Reference","Tech Cat Aug 2016update ","Tech Cat Update June 2017","Tech Cat October 2017","Tech Cat  Aug 2016, Coal Update 2017","Tech Cat Oct. 2017 update","Tech Cat 2016",0,0,"Tech Cat Oct. 2017 update","Tech Cat 2016",null,null,"Tech Cat  Aug 2016, Coal Update 2017","Tech Cat  Aug 2016, Coal Update 2017","","","","","","","","","","","","",""]
["2017-EUR/MWh","Presentation name","16WIN_ON_in onshorewind incl. Grid","17WIN_OF_in  Offshore wind large DK incl. Grid","17LaPV_IN Large Photo voltage incl. Grid","16La REF_EX  WPE_COA_exibo_no_inv_exipla Woodpellets CHP  refurb.  \nCoal plants, existing Boiler,  no invest cost in existing plant","17La_EX_COA CHP coal 400-700 MWwe","16La EX CC NGA CC large CHP Gas Turbine combined Cycle natural Gas  \n","17La EX WPE 800 MW input_2018-02-03","Large CHP - \nwood pellets_2017-08-01","17La_EX_COA CHP coal 400-700 MWwe","16La EX CC NGA CC large CHP Gas Turbine combined Cycle natural Gas  \n","16 La EX LTE COA no_inv_exipla  - Coal CHP Life time extension of coal power plant no invest cost for existing plant ","16La REF_EX  WPE_COA_exibo_no_inv_exipla Woodpellets CHP  refurb.  \nCoal plants, existing Boiler,  no invest cost in existing plant","16La REF_EX WCH_COA_exi_exibo_no_inv_exipla Wood chips CHP refurb.  \nCoal plants, existing boiler, no invest cost for existing plant ","16La REF_EX  WCH_COA_Newboi_ no_inv_exipla Wood chips CHP refurb.  \nCoal plants, new Boiler, no invest cost for existing plant ",0,0,0,0,0,0,0,0,0,0,0,0,0]
["Capital cost incl. grid cost",null,20.013359741379059,33.357737022245693,33.053071313281862,12.478075702562389,30.707185820893262,12.276699439329034,40.45738094937289,27.317639283685988,30.707185820893262,12.276699439329034,5.169818105800295,12.478075702562389,36.064279642987863,36.424887499633392,"","","","","","","","","","","","",""]
["",null,0,0,0,0,0,0,0,0,0,0,0,0,0,0,"","","","","","","","","","","","",""]
["O&M costs",null,10.23081262243819,13.331449146563436,7.8240360889141778,11.838147948755813,10.09680366033631,10.539526866490256,18.085552464331982,17.353857555333011,10.09680366033631,10.539526866490256,10.65946685964053,11.838147948755813,15.630793284822936,13.463004657560752,"","","","","","","","","","","","",""]
["Other costs",null,0,0,0,0,0,0,0,0,0,0,0,0,0,0,"","","","","","","","","","","","",""]
["Fuel cost",null,0,0,0,65.44780098205473,17.977848922337728,37.729116176265848,60.980785219619499,56.4453319213385,17.977848922337728,37.729116176265848,20.284065095817361,65.44780098205473,54.566381775476643,50.648160861893679,"","","","","","","","","","","","",""]
["Climate externalities",null,0,0,0,5.6077826335332315E-2,14.479547849584947,8.0241220394283665,4.9289653230659446E-2,4.8364215045100127E-2,14.479547849584947,8.0241220394283665,16.336998514547087,"",0.4606515638740295,0.26099110917565305,"","","","","","","","","","","","",""]
["Air pollution ",null,0,0,0,2.7380394165504991,3.0559766541762148,0.82116824729988658,1.3845474043872432,3.0292585180290699,3.0559766541762148,0.82116824729988658,3.4480003504528289,2.7380394165504991,2.6066772327625505,2.4313510357915979,"","","","","","","","","","","","",""]
["System costs",null,0,0,0,0,0,0,0,0,0,0,0,0,0,0,"","","","","","","","","","","","",""]
["Heat revenue",null,0,0,0,0,0,0,0,0,0,0,0,0,0,0,"","","","","","","","","","","","",""]
["Levelized cost of electricity production, 2017-EUR/MWh",null,30.244172363817249,46.68918616880913,40.877107402196039,92.558141876258759,76.317362907328459,69.39063276881339,120.95755569094227,104.19445149343166,76.317362907328459,69.39063276881339,55.898348926258109,92.502064049923433,109.32878349992401,103.22839516405507,"","","","","","","","","","","","",""]
[]
[]
[12,"Database"]
[null,"Technology"]
[null,"Technology year"]
[null,"First year of operation"]
[null,"Presentation name (custom)"]
[null,"Reference"]
[null,"Presentation name"]
["Capital cost"]
["Capital cost grid"]
["O&M costs"]
["Other costs"]
["Fuel cost"]
["Climate externalities"]
["Air pollution "]
["System costs"]
["Heat revenue"]
[]
[]
[]
[13,"Database"]
[null,"Technology"]
[null,"Technology year"]
[null,"First year of operation"]
[null,"Presentation name (custom)"]
[null,"Reference"]
[null,"Presentation name"]
["Capital cost"]
["Capital cost grid"]
["O&M costs"]
["Other costs"]
["Fuel cost"]
["Climate externalities"]
["Air pollution "]
["System costs"]
["Heat revenue"]
[]
[]
[]
[14,"Database"]
[null,"Technology"]
[null,"Technology year"]
[null,"First year of operation"]
[null,"Presentation name (custom)"]
[null,"Reference"]
[null,"Presentation name"]
["Capital cost"]
["Capital cost grid"]
["O&M costs"]
["Other costs"]
["Fuel cost"]
["Climate externalities"]
["Air pollution "]
["System costs"]
["Heat revenue"]
[]
[]
[]
[15,"Database"]
[null,"Technology"]
[null,"Technology year"]
[null,"First year of operation"]
[null,"Presentation name (custom)"]
[null,"Reference"]
[null,"Presentation name"]
["Capital cost"]
["Capital cost grid"]
["O&M costs"]
["Other costs"]
["Fuel cost"]
["Climate externalities"]
["Air pollution "]
["System costs"]
["Heat revenue"]
[]
[]
[]
[16,"Database"]
["test","Technology"]
[null,"Technology year if not standard"]
[null,"First year of operation if not standard"]
[null,"Presentation name for graph (custom)"]
[null,"Reference"]
["2015-EUR/MWh","Presentation name"]
["Capital cost"]
[""]
["O&M costs"]
["Other costs"]
["Fuel cost"]
["Climate externalities"]
["Air pollution "]
["System costs"]
["Heat revenue"]
["Levelized cost of electricity production, 2015-EUR/MWh"]
[]
[]
[17,"Database"]
[null,"Technology"]
[null,"Technology year"]
[null,"First year of operation"]
[null,"Presentation name (custom)"]
[null,"Reference"]
[null,"Presentation name"]
["Capital cost"]
["Capital cost grid"]
["O&M costs"]
["Other costs"]
["Fuel cost"]
["Climate externalities"]
["Air pollution "]
["System costs"]
["Heat revenue"]
[]
[]
[]
[18,"Database"]
[null,"Technology"]
[null,"Technology year"]
[null,"First year of operation"]
[null,"Presentation name (custom)"]
[null,"Reference"]
[null,"Presentation name"]
["Capital cost"]
["Capital cost grid"]
["O&M costs"]
["Other costs"]
["Fuel cost"]
["Climate externalities"]
["Air pollution "]
["System costs"]
["Heat revenue"]
[]
[]
[]
[19,"Database"]
[null,"Technology"]
[null,"Technology year"]
[null,"First year of operation"]
[null,"Presentation name (custom)"]
[null,"Reference"]
[null,"Presentation name"]
["Capital cost"]
["Capital cost grid"]
["O&M costs"]
["Other costs"]
["Fuel cost"]
["Climate externalities"]
["Air pollution "]
["System costs"]
["Heat revenue"]
[]
[]
[]
[20,"Database"]
[null,"Technology"]
[null,"Technology year"]
[null,"First year of operation"]
[null,"Presentation name (custom)"]
[null,"Reference"]
["2015-EUR/MWh","Presentation name"]
["Capital cost"]
["Capital cost grid"]
["O&M costs"]
["Other costs"]
["Fuel cost"]
["Climate externalities"]
["Air pollution "]
["System costs"]
["Heat revenue"]
["Levelized cost of electricity production, 2015-EUR/MWh"]

{"sheet":"ResultsAllYears","index":6,"n_rows":234,"n_cols":21,"rows_kept":234,"cut":false,"hidden":false,"merged":[]}
["Technology name","Year","Capital cost","Capital cost grid","O&M costs","Other costs","Fuel cost","Climate externalities","Air pollution","System costs","Heat revenue","LCoE"]
["18Me BP WCH in_st 80 MW input, woodchips storage for 10 days  ",2015,64.77344665156393,0,46.485135168489705,0,36.115891921012967,0.1007548953305409,8.8450759280475939,0,0,156.32030456444474,null,null,null,null,"Sum of LCoE","Column Labels"]
["18Me BP WCH in_st 80 MW input, woodchips storage for 10 days  ",2020,63.077806686863305,0,45.20067720932478,0,36.585176404979975,9.7369465660249357E-2,6.8751759254140765,0,0,151.8362056922424,null,null,null,null,"Row Labels","22PV_La_Utility scale PV","22PV_La_Utility scale PV_tracker","22PV_Sm_roof residential","22PV_Me_roof commercial industrial"]
["18Me BP WCH in_st 80 MW input, woodchips storage for 10 days  ",2030,61.24651552498662,0,42.616070629382172,0,36.223995135588169,0.11028189876364727,3.913527361149685,0,0,144.11039054987026,null,null,null,null,2020,29.495135984461118,29.082696795746333,71.714579720818037,49.089139482316455]
["18Me BP WCH in_st 80 MW input, woodchips storage for 10 days  ",2050,57.719584398409324,0,39.694907034506926,0,35.407048227495288,0.23720696664041768,2.2741964728511026,0,0,135.33294309990308,null,null,null,null,2025,23.644505793822088,23.433874607772196,56.243228058392489,40.574944745217046]
["18Me BP WPE in_st 80 MW input, woodpellets storage for 10 days  ",2015,53.887438078185909,0,36.819753038795625,0,62.767403837106237,0.12365171426633252,10.128749016234739,0,0,163.72699568458884,null,null,null,null,2030,18.617961175982565,18.598278786782075,43.00097496649726,32.535589091094323]
["18Me BP WPE in_st 80 MW input, woodpellets storage for 10 days  ",2020,52.5553433219171,0,35.814761048223403,0,62.658286856173859,0.15404220672496954,7.8140387267063689,0,0,158.99647215974568,null,null,null,null,2040,15.525325063734176,15.964289227272342,35.956367348207309,24.007463183527488]
["18Me BP WPE in_st 80 MW input, woodpellets storage for 10 days  ",2030,52.212824049047576,0,34.833804147633515,0,61.633353022623325,0.22418520624326224,4.4541028234001168,0,0,153.35826924894778,null,null,null,null,2050,13.989554055791974,14.722394428734926,32.559831510328422,21.564599612969843]
["18Me BP WPE in_st 80 MW input, woodpellets storage for 10 days  ",2050,47.395850037326028,0,31.484853958203448,0,59.171120915099564,0,2.5962115378912385,0,0,140.64803644852026]
["18La BP WPE in_st 800 MW input, woodpellets storage for 10 days  ",2015,43.540515047247347,0,19.708249837949573,0,65.328728643338891,0.15402895173257697,2.8198807942520063,0,0,131.5514032745204]
["18La BP WPE in_st 800 MW input, woodpellets storage for 10 days  ",2020,42.255936042034527,0,19.248948684653651,0,63.634554584249308,0.18070411219143309,2.9373995063629366,0,0,128.25754292949188]
["18La BP WPE in_st 800 MW input, woodpellets storage for 10 days  ",2030,38.735117961895263,0,17.828903524580898,0,64.263299484444019,0.26371802841963515,2.5315300663215576,0,0,123.62256906566137]
["18La BP WPE in_st 800 MW input, woodpellets storage for 10 days  ",2050,35.163729128948617,0,16.486653576714225,0,57.64598474732847,0,1.4032127083630626,0,0,110.69958016135438]
["18 Me BP STR 80MW input, Straw CHP Medium, 2 days storage",2015,63.38451489401416,0,42.307305530737366,0,36.26458693562067,0.13549516020023442,11.820378059873772,0,0,153.91228058044621]
["18 Me BP STR 80MW input, Straw CHP Medium, 2 days storage",2020,64.361724062863601,0,42.227432832965825,0,36.792421254046936,0.16987424801519518,9.5197649177917913,0,0,153.07121731568336]
["18 Me BP STR 80MW input, Straw CHP Medium, 2 days storage",2030,61.11494110282915,0,39.846550540727179,0,36.421353810834631,0.24722789560459235,6.5840754429510602,0,0,144.21414879294662]
["18 Me BP STR 80MW input, Straw CHP Medium, 2 days storage",2050,55.443664730807363,0,35.884615604333099,0,35.403476355652678,0.32166637950311755,3.8372999467015361,0,0,130.89072301699778]
["16 ME BP SC NGA - Gas Turbine Single Cycle, medium,natural gas ",2015,7.9986934367129008,0,9.0982439492449814,0,71.98354000836531,26.344238759389306,2.7857768272767118,0,0,118.2104929809892]
["16 ME BP SC NGA - Gas Turbine Single Cycle, medium,natural gas ",2020,7.8653818794343522,0,8.8841676210274514,0,74.28937174533074,33.256222290739892,2.1406724879920334,0,0,126.43581602452447]
["16 ME BP SC NGA - Gas Turbine Single Cycle, medium,natural gas ",2030,7.4654472075987082,0,8.4774225974141473,0,55.469685063312625,47.23532211681853,1.4004080063351876,0,0,120.04828499147921]
["16 ME BP SC NGA - Gas Turbine Single Cycle, medium,natural gas ",2050,6.9322009784845156,0,8.1349004722661,0,62.155164566630845,61.178960536511156,1.2784140615841568,0,0,139.67964061547679]
["16La EX CC NGA CC large CHP Gas Turbine combined Cycle natural Gas  \n",2015,12.518652001810732,0,11.402104786728597,0,57.707217171538069,22.274574959131808,2.2738900634405841,0,0,106.1764389826498]
["16La EX CC NGA CC large CHP Gas Turbine combined Cycle natural Gas  \n",2020,12.205559404334938,0,11.123069264902464,0,51.652124146561633,27.414122377051171,1.7190977630841029,0,0,104.11397295593432]
["16La EX CC NGA CC large CHP Gas Turbine combined Cycle natural Gas  \n",2030,11.457511472921791,0,10.551828157612819,0,44.696864034500294,38.964695806461656,1.1177729898573476,0,0,106.78867246135391]
["16La EX CC NGA CC large CHP Gas Turbine combined Cycle natural Gas  \n",2050,11.001909003061874,0,9.9243495385054619,0,50.268431176765908,49.419695689721038,0.82615112561442994,0,0,121.44053653366872]
["17La_EX_COA CHP coal 400-700 MWwe",2015,31.287361031011965,0,10.938477001422584,0,23.336819208087935,47.250942873030439,6.672323802544935,0,0,119.48592391609786]
["17La_EX_COA CHP coal 400-700 MWwe",2020,30.376187215029312,0,10.65583378558631,0,19.681064915802757,53.084444048494191,6.0367918861318337,0,0,119.83432185104441]
["17La_EX_COA CHP coal 400-700 MWwe",2030,29.154942887087991,0,10.287650459097694,0,17.032532578144966,72.812912767618599,5.7330755904738133,0,0,135.02111428242307]
["17La_EX_COA CHP coal 400-700 MWwe",2040,{"$error":"#VALUE!"},0,{"$error":"#VALUE!"},"",{"$error":"#VALUE!"},{"$error":"#VALUE!"},{"$error":"#VALUE!"},{"$error":"#VALUE!"},0,{"$error":"#VALUE!"}]
["17La_EX_COA CHP coal 400-700 MWwe",2050,27.954559136790266,0,9.8640815127385739,0,14.544445544060915,80.52284119049817,4.9116560663378852,0,0,137.7975834504258]
["Coal FGD INT",2015,19.885355882606429,0,8.8756818339660981,0,29.028700276199348,74.153161768656418,42.391509123702164,0,0,174.33440888513047]
["Coal FGD INT",2020,19.576257086503738,0,8.7316476598057324,0,26.853790561259807,85.163084289109349,43.093747317190918,0,0,183.41852691386956]
["Coal FGD INT",2030,19.169018920170224,0,8.5500061863444401,0,24.727253569337456,110.38626602513732,43.093747317190918,0,0,205.92629201818036]
["Coal FGD INT",2050,18.379781262938767,0,8.1979805099169045,0,23.530428654453825,98.862054231262533,35.220639947700171,0,0,184.19088460627219]
["Coal no FGD INT",2015,16.902552500215464,0,7.5443295588711843,0,29.028700276199348,74.209692480640356,80.409591445336346,0,0,208.09486626126269]
["Coal no FGD INT",2020,16.639818523528177,0,7.4219005108348721,0,26.853790561259807,85.22800842281832,78.83440876990467,0,0,214.97792678834583]
["Coal no FGD INT",2030,16.293666082144693,0,7.2675052583927737,0,24.727253569337456,110.47041906814735,78.83440876990467,0,0,237.59325274792695]
["Coal no FGD INT",2050,15.622814073497951,0,6.9682834334293702,0,23.530428654453825,98.937421783779342,66.559536662395431,0,0,211.6184846075559]
["Natural gas CCGT INT",2015,9.6934698610532557,0,7.3935314799839844,0,63.068509394519452,26.073897108938095,4.8990439704954074,0,0,111.1284518149902]
["Natural gas CCGT INT",2020,9.5319120300357021,0,7.2151508017068586,0,67.933219385626344,34.214448870099979,5.2187855844424176,0,0,124.11351667191128]
["Natural gas CCGT INT",2030,9.0472385369830413,0,6.8837334068520732,0,54.114372445284474,46.969618394686037,5.2033243910265945,0,0,122.21828717483223]
["Natural gas CCGT INT",2050,8.4010072129128233,0,6.6283478970956917,0,56.636100287319813,55.758731829362226,4.5430996968824715,0,0,131.96728692357303]
["Nuclear INT",2015,27.322002314206738,0,14.403542502888495,4.5240156619929204,6.6294032657551867,0,0,0,0,52.87896374484334]
["Nuclear INT",2020,27.322002314206738,0,14.403542502888495,4.5240156619929204,6.6489838571561926,0,0,0,0,52.898544336244342]
["Nuclear INT",2030,27.322002314206738,0,14.403542502888495,4.5240156619929204,6.6998598153821174,0,0,0,0,52.949420294470272]
["Nuclear INT",2050,27.322002314206738,0,14.403542502888495,4.5240156619929204,6.8728577940971229,0,0,0,0,53.122418273185275]
["Solar PV INT",2015,49.28715290985928,0,7.9835570505757421,0,0,0,0,0,0,57.27070996043502]
["Solar PV INT",2020,50.047020802049254,0,7.9618517476035713,0,0,0,0,0,0,58.008872549652821]
["Solar PV INT",2030,47.522355456200621,0,7.4906577391958349,0,0,0,0,0,0,55.013013195396454]
["Solar PV INT",2050,43.112428738148118,0,6.7045045288265479,0,0,0,0,0,0,49.816933266974665]
["Solar PV INT(/DK)*",2015,41.980807143057028,0,5.9815444649015443,0,0,0,0,0,0,47.962351607958574]
["Solar PV INT(/DK)*",2020,24.10009298953274,0,5.1000537016528957,0,0,0,0,0,0,29.200146691185637]
["Solar PV INT(/DK)*",2030,19.824270039776938,0,4.0926356865115832,0,0,0,0,0,0,23.916905726288519]
["Solar PV INT(/DK)*",2050,15.937158267271649,0,3.4629994270482625,0,0,0,0,0,0,19.400157694319912]
["Wind onshore INT",2015,30.864452202831231,0,17.710512696280528,0,0,0,0,0,0,48.574964899111762]
["Wind onshore INT",2020,27.992223379723061,0,16.140311457256715,0,0,0,0,0,0,44.132534836979772]
["Wind onshore INT",2030,22.591010479763508,0,14.831394365770263,0,0,0,0,0,0,37.422404845533769]
["Wind onshore INT",2050,18.504869007882526,0,13.635725953511605,0,0,0,0,0,0,32.140594961394129]
["Biomass plant INT",2015,28.687864251540386,0,22.302092076926002,0,63.801764401153967,0.32781771078054628,18.611410596559931,0,0,133.73094903696082]
["Biomass plant INT",2020,27.978701691565238,0,21.777228699625027,0,64.98343828046157,0.37649058608944025,19.281315653874771,0,0,134.39717491161605]
["Biomass plant INT",2030,27.796355921306862,0,21.297923846042284,0,66.667068836961747,0.487997708619196,19.281315653874771,0,0,135.53066196680487]
["Biomass plant INT",2050,25.231960554227697,0,19.548913595237099,0,57.766574617687063,0.38171079720665058,15.618742081579864,0,0,118.54790164593837]
["18La BP WCH in_st 600 MW input, woodchips storage for 10 days  ",2015,50.743861109196551,0,25.582121221994711,0,35.950226952283217,1.0751333577573563,2.8368125177637822,0,0,116.18815515899561]
["18La BP WCH in_st 600 MW input, woodchips storage for 10 days  ",2020,49.326434821230158,0,24.961299870163877,0,34.978858256549636,1.0024633856621497,2.300450545950639,0,0,112.56950687955647]
["18La BP WCH in_st 600 MW input, woodchips storage for 10 days  ",2030,46.378188142260093,0,23.719657166502209,0,35.554069509175967,1.092132043420748,1.9303391097015248,0,0,108.67438597106053]
["18La BP WCH in_st 600 MW input, woodchips storage for 10 days  ",2050,43.429941463290014,0,22.542237361305801,0,32.53905504839296,1.0418690815551683,1.0716000261613272,0,0,100.62470298070527]
["16 La EX LTE COA no_inv_exipla  - Coal CHP Life time extension of coal power plant no invest cost for existing plant ",2015,5.3059186313734612,0,11.674010116312163,0,26.618926881565432,32.906776387567277,6.7997300338963722,0,0,83.305362050714706]
["16 La EX LTE COA no_inv_exipla  - Coal CHP Life time extension of coal power plant no invest cost for existing plant ",2020,5.2605123032747034,0,11.249649980369313,0,28.022442836348919,45.24193324103981,6.7766912816748119,0,0,96.551229642707554]
["16 La EX LTE COA no_inv_exipla  - Coal CHP Life time extension of coal power plant no invest cost for existing plant ",2030,5.2012481997172353,0,10.805516876367744,0,19.339260333836418,60.380059378581834,6.511890325455437,0,0,102.23797511395867]
["16 La EX LTE COA no_inv_exipla  - Coal CHP Life time extension of coal power plant no invest cost for existing plant ",2050,{"$error":"#VALUE!"},0,{"$error":"#VALUE!"},"",{"$error":"#DIV/0!"},{"$error":"#DIV/0!"},{"$error":"#DIV/0!"},{"$error":"#VALUE!"},0,{"$error":"#VALUE!"}]
["16La REF_EX  WPE_COA_exibo_no_inv_exipla Woodpellets CHP  refurb.  \nCoal plants, existing Boiler,  no invest cost in existing plant",2015,12.993760157965307,0,12.972280196552614,0,73.062061642262634,0.12431477116687292,6.2289484606723491,0,0,105.38136522861979]
["16La REF_EX  WPE_COA_exibo_no_inv_exipla Woodpellets CHP  refurb.  \nCoal plants, existing Boiler,  no invest cost in existing plant",2020,12.650467555497741,0,12.493591151689262,0,73.16327981034749,0.15736994294224893,6.0586639410702121,0,0,104.52337240154695]
["16La REF_EX  WPE_COA_exibo_no_inv_exipla Woodpellets CHP  refurb.  \nCoal plants, existing Boiler,  no invest cost in existing plant",2030,12.277312229455944,0,11.99120452849273,0,64.87393447611646,0.21638608363749023,5.7846379352049944,0,0,95.143475252907621]
["16La REF_EX  WPE_COA_exibo_no_inv_exipla Woodpellets CHP  refurb.  \nCoal plants, existing Boiler,  no invest cost in existing plant",2050,{"$error":"#VALUE!"},0,{"$error":"#DIV/0!"},0,{"$error":"#DIV/0!"},{"$error":"#DIV/0!"},{"$error":"#DIV/0!"},0,0,{"$error":"#VALUE!"}]
["16La REF_EX  WCH_COA_Newboi_ no_inv_exipla Wood chips CHP refurb.  \nCoal plants, new Boiler, no invest cost for existing plant ",2015,37.270662956965857,0,14.756798294334146,0,58.031282578669234,0.63227200009357243,8.1794257786928011,0,0,118.87044160875563]
["16La REF_EX  WCH_COA_Newboi_ no_inv_exipla Wood chips CHP refurb.  \nCoal plants, new Boiler, no invest cost for existing plant ",2020,36.882426884497455,0,14.208411365777049,0,55.524207759417394,0.74121546124964877,5.1262440039459598,0,0,112.4825054748875]
["16La REF_EX  WCH_COA_Newboi_ no_inv_exipla Wood chips CHP refurb.  \nCoal plants, new Boiler, no invest cost for existing plant ",2030,36.383266219895233,0,13.635165429454595,0,51.857293497641628,1.0553284582508489,4.9037070270497543,0,0,107.83476063229206]
["16La REF_EX  WCH_COA_Newboi_ no_inv_exipla Wood chips CHP refurb.  \nCoal plants, new Boiler, no invest cost for existing plant ",2050,{"$error":"#DIV/0!"},0,{"$error":"#DIV/0!"},0,{"$error":"#DIV/0!"},{"$error":"#DIV/0!"},{"$error":"#DIV/0!"},0,0,{"$error":"#DIV/0!"}]
["16La REF_EX WCH_COA_exi_exibo_no_inv_exipla Wood chips CHP refurb.  \nCoal plants, existing boiler, no invest cost for existing plant ",2015,36.947397304945781,0,17.142025124362011,0,61.186997874778754,1.2727737314012504,5.8353503520242906,0,0,122.38454438751208]
["16La REF_EX WCH_COA_exi_exibo_no_inv_exipla Wood chips CHP refurb.  \nCoal plants, existing boiler, no invest cost for existing plant ",2020,36.562528583019265,0,16.496224031198405,0,62.021240279294759,1.2927161243665948,5.5079016599560466,0,0,121.88061067783507]
["16La REF_EX WCH_COA_exi_exibo_no_inv_exipla Wood chips CHP refurb.  \nCoal plants, existing boiler, no invest cost for existing plant ",2030,36.067697369113738,0,15.818392860053645,0,55.452996758705886,1.3436251008310398,5.2451448352752799,0,0,113.92785692397958]
["16La REF_EX WCH_COA_exi_exibo_no_inv_exipla Wood chips CHP refurb.  \nCoal plants, existing boiler, no invest cost for existing plant ",2050,{"$error":"#DIV/0!"},0,{"$error":"#DIV/0!"},0,{"$error":"#DIV/0!"},{"$error":"#DIV/0!"},{"$error":"#DIV/0!"},0,0,{"$error":"#DIV/0!"}]
["18La_EX_EXI_COA ex_inv_cost - Coal CHP existing, no investment cost",2015,{"$error":"#VALUE!"},0,{"$error":"#VALUE!"},"",{"$error":"#DIV/0!"},{"$error":"#DIV/0!"},{"$error":"#DIV/0!"},{"$error":"#VALUE!"},0,{"$error":"#VALUE!"}]
["18La_EX_EXI_COA ex_inv_cost - Coal CHP existing, no investment cost",2020,{"$error":"#VALUE!"},0,{"$error":"#VALUE!"},"",21.67902855589417,71.56716326370973,6.797732022880953,{"$error":"#VALUE!"},0,{"$error":"#VALUE!"}]
["18La_EX_EXI_COA ex_inv_cost - Coal CHP existing, no investment cost",2030,{"$error":"#VALUE!"},0,{"$error":"#VALUE!"},"",19.537950865650021,89.116517665813561,6.5800380149078785,{"$error":"#VALUE!"},0,{"$error":"#VALUE!"}]
["18La_EX_EXI_COA ex_inv_cost - Coal CHP existing, no investment cost",2050,{"$error":"#VALUE!"},0,{"$error":"#VALUE!"},"",{"$error":"#DIV/0!"},{"$error":"#DIV/0!"},{"$error":"#DIV/0!"},{"$error":"#VALUE!"},0,{"$error":"#VALUE!"}]
["18Sm_PV_roof",2015,94.510000796330914,0,17.177027045639111,0,0,0,0,0,0,111.68702784197002]
["18Sm_PV_roof",2020,58.43541728772076,0,13.799430548108727,0,0,0,0,0,0,72.234847835829484]
["18Sm_PV_roof",2030,40.813241737887154,0,10.747240510950371,0,0,0,0,0,0,51.560482248837523]
["18Sm_PV_roof",2050,26.419157359902709,0,8.696422451815593,0,0,0,0,0,0,35.115579811718305]
["18Me_PV_roof",2015,75.473972396900976,0,13.737387982459094,0,0,0,0,0,0,89.211360379360073]
["18Me_PV_roof",2020,38.418145710043845,0,10.842409716371145,0,0,0,0,0,0,49.260555426414989]
["18Me_PV_roof",2030,27.391496671301962,0,8.4820062911352778,0,0,0,0,0,0,35.873502962437243]
["18Me_PV_roof",2050,20.760814576389695,0,6.9476681729387018,0,0,0,0,0,0,27.708482749328397]
["19PV_La_Utility scale PV",2015,64.631857593601623,0,10.365571447841615,0,0,0,0,0,0,74.99742904144324]
["19PV_La_Utility scale PV",2020,21.262085813935283,0,6.9699269652218732,0,0,0,0,0,0,28.232012779157156]
["19PV_La_Utility scale PV",2030,12.822860601934932,0,5.2301714560306154,0,0,0,0,0,0,18.053032057965549]
["19PV_La_Utility scale PV",2040,11.106615818431418,0,4.7275189148037642,0,0,0,0,0,0,15.834134733235182]
["19PV_La_Utility scale PV",2050,10.066105760846487,0,4.4157658460711424,0,0,0,0,0,0,14.481871606917629]
["19PV_La_Utility scale PV_tracker",2015,{"$error":"#DIV/0!"},0,{"$error":"#DIV/0!"},0,{"$error":"#DIV/0!"},{"$error":"#DIV/0!"},{"$error":"#DIV/0!"},0,0,{"$error":"#DIV/0!"}]
["19PV_La_Utility scale PV_tracker",2020,22.326681553562679,0,6.6394167175595742,0,0,0,0,0,0,28.966098271122252]
["19PV_La_Utility scale PV_tracker",2030,13.479115435475585,0,5.035179191762821,0,0,0,0,0,0,18.514294627238407]
["19PV_La_Utility scale PV_tracker",2040,11.784953984576559,0,4.5804619776273086,0,0,0,0,0,0,16.365415962203869]
["19PV_La_Utility scale PV_tracker",2050,10.749160423470874,0,4.2974430199801352,0,0,0,0,0,0,15.046603443451009]
["19WIN_ON_in Onshore wind incl. Grid",2020,20.936085766731622,0,6.0130262778747099,0,0,0,0,0,0,26.949112044606331]
["19WIN_ON_in Onshore wind incl. Grid",2025,18.988031907623718,0,5.592744074682944,0,0,0,0,0,0,24.580775982306662]
["19WIN_ON_in Onshore wind incl. Grid",2030,17.255825220469941,0,5.1913509592750771,0,0,0,0,0,0,22.447176179745018]
["19WIN_ON_in Onshore wind incl. Grid",2040,15.820829360139797,0,4.6807499872427272,0,0,0,0,0,0,20.501579347382524]
["19WIN_ON_in Onshore wind incl. Grid",2050,15.090114362840112,0,4.5001097626358453,0,0,0,0,0,0,19.590224125475956]
["24WIN_ON_in Onshore wind incl. Grid",2020,19.30647608948075,0,6.9358954480745485,0,0,0,0,0,0,26.2423715375553]
["24WIN_ON_in Onshore wind incl. Grid",2025,20.097088421708403,0,7.0286127470678359,0,0,0,0,0,0,27.125701168776239]
["24WIN_ON_in Onshore wind incl. Grid",2030,17.774307365421802,0,6.6037033659707838,0,0,0,0,0,0,24.378010731392585]
["24WIN_ON_in Onshore wind incl. Grid",2040,16.736566330683576,0,6.2074899894870512,0,0,0,0,0,0,22.944056320170628]
["24WIN_ON_in Onshore wind incl. Grid",2050,16.011202426812861,0,5.955269345439258,0,0,0,0,0,0,21.96647177225212]
["19WIN_OF_in Offshore wind incl. Grid",2015,44.473464536443288,0,18.541929246295521,0,0,0,0,0,0,63.015393782738812]
["19WIN_OF_in Offshore wind incl. Grid",2020,30.611125794983572,0,12.739682292225147,0,0,0,0,0,0,43.350808087208719]
["19WIN_OF_in Offshore wind incl. Grid",2030,25.226969383831943,0,11.189056088169513,0,0,0,0,0,0,36.416025472001458]
["19WIN_OF_in Offshore wind incl. Grid",2040,23.406767480875487,0,10.229887858726791,0,0,0,0,0,0,33.636655339602278]
["19WIN_OF_in Offshore wind incl. Grid",2050,21.88776307797341,0,9.657026854939307,0,0,0,0,0,0,31.544789932912717]
["19WIN_OF_ex Offshore wind excl. Grid",2015,38.253399566311359,0,18.541929246295521,0,0,0,0,0,0,56.795328812606883]
["19WIN_OF_ex Offshore wind excl. Grid",2020,25.149985981794014,0,12.739682292225147,0,0,0,0,0,0,37.889668274019158]
["19WIN_OF_ex Offshore wind excl. Grid",2030,20.521420690474688,0,11.189056088169513,0,0,0,0,0,0,31.7104767786442]
["19WIN_OF_ex Offshore wind excl. Grid",2040,18.751277816170973,0,10.229887858726791,0,0,0,0,0,0,28.981165674897763]
["19WIN_OF_ex Offshore wind excl. Grid",2050,17.461024477933844,0,9.657026854939307,0,0,0,0,0,0,27.118051332873151]
["19WIN_NS_in Nearshore wind incl. Grid",2015,38.20302038915348,0,16.719847770898596,0,0,0,0,0,0,54.922868160052076]
["19WIN_NS_in Nearshore wind incl. Grid",2020,24.931848552199924,0,11.465690276743942,0,0,0,0,0,0,36.397538828943865]
["19WIN_NS_in Nearshore wind incl. Grid",2030,21.509612767456289,0,11.095138731274083,0,0,0,0,0,0,32.604751498730373]
["19WIN_NS_in Nearshore wind incl. Grid",2040,20.511602023823997,0,10.057032610729872,0,0,0,0,0,0,30.568634634553867]
["19WIN_NS_in Nearshore wind incl. Grid",2050,19.428463855729213,0,9.6766869258980606,0,0,0,0,0,0,29.105150781627273]
["19WIN_NS_ex Nearshore wind excl. Grid",2015,33.924282105568288,0,16.719847770898596,0,0,0,0,0,0,50.644129876466884]
["19WIN_NS_ex Nearshore wind excl. Grid",2020,21.085220489860507,0,11.465690276743942,0,0,0,0,0,0,32.550910766604446]
["19WIN_NS_ex Nearshore wind excl. Grid",2030,18.270213254285164,0,11.095138731274083,0,0,0,0,0,0,29.365351985559247]
["19WIN_NS_ex Nearshore wind excl. Grid",2040,17.306664207601496,0,10.057032610729872,0,0,0,0,0,0,27.36369681833137]
["19WIN_NS_ex Nearshore wind excl. Grid",2050,16.440415300702504,0,9.6766869258980606,0,0,0,0,0,0,26.117102226600565]
["22PV_Sm_roof residential",2020,59.045426732877488,0,12.669152987940549,0,0,0,0,0,0,71.714579720818037]
["22PV_Sm_roof residential",2025,45.42676370663731,0,10.816464351755181,0,0,0,0,0,0,56.243228058392489]
["22PV_Sm_roof residential",2030,33.861681380130939,0,9.1392935863663229,0,0,0,0,0,0,43.00097496649726]
["22PV_Sm_roof residential",2040,27.887618057547908,0,8.0687492906594009,0,0,0,0,0,0,35.956367348207309]
["22PV_Sm_roof residential",2050,25.100786057538038,0,7.4590454527903844,0,0,0,0,0,0,32.559831510328422]
["22PV_Me_roof commercial industrial",2020,39.587274741361043,0,9.501864740955412,0,0,0,0,0,0,49.089139482316455]
["22PV_Me_roof commercial industrial",2025,32.250970004953274,0,8.32397474026377,0,0,0,0,0,0,40.574944745217046]
["22PV_Me_roof commercial industrial",2030,25.277914772509305,0,7.2576743185850212,0,0,0,0,0,0,32.535589091094323]
["22PV_Me_roof commercial industrial",2040,17.53473023607544,0,6.4727329474520472,0,0,0,0,0,0,24.007463183527488]
["22PV_Me_roof commercial industrial",2050,15.597363250737535,0,5.9672363622323079,0,0,0,0,0,0,21.564599612969843]
["22PV_La_Utility scale PV",2020,21.120094946760034,0,8.3750410377010844,0,0,0,0,0,0,29.495135984461118]
["22PV_La_Utility scale PV",2025,16.304905679996384,0,7.3396001138257025,0,0,0,0,0,0,23.644505793822088]
["22PV_La_Utility scale PV",2030,12.215707582717735,0,6.4022535932648301,0,0,0,0,0,0,18.617961175982565]
["22PV_La_Utility scale PV",2040,10.106751059017849,0,5.4185740047163273,0,0,0,0,0,0,15.525325063734176]
["22PV_La_Utility scale PV",2050,9.1218612464797957,0,4.8676928093121772,0,0,0,0,0,0,13.989554055791974]
["22PV_La_Utility scale PV_tracker",2020,21.233624518867053,0,7.8490722768792791,0,0,0,0,0,0,29.082696795746333]
["22PV_La_Utility scale PV_tracker",2025,16.525477603197871,0,6.9083970045743257,0,0,0,0,0,0,23.433874607772196]
["22PV_La_Utility scale PV_tracker",2030,12.538601920876152,0,6.0596768659059217,0,0,0,0,0,0,18.598278786782075]
["22PV_La_Utility scale PV_tracker",2040,10.527592901470008,0,5.4366963258023349,0,0,0,0,0,0,15.964289227272342]
["22PV_La_Utility scale PV_tracker",2050,9.5569724350654095,0,5.1654219936695176,0,0,0,0,0,0,14.722394428734926]
["25WIN_OF_in Offshore wind AC incl. Grid",2020,29.055276403026248,0,16.363636363636363,0,0,0,0,0,0,45.418912766662615]
["25WIN_OF_in Offshore wind AC incl. Grid",2025,36.513098074740142,0,14.41306266548985,0,0,0,0,0,0,50.926160740229989]
["25WIN_OF_in Offshore wind AC incl. Grid",2030,30.393199794237752,0,10.91922620557642,0,0,0,0,0,0,41.312425999814174]
["25WIN_OF_in Offshore wind AC incl. Grid",2035,28.24246004513439,0,10.118151008561973,0,0,0,0,0,0,38.36061105369636]
["25WIN_OF_in Offshore wind AC incl. Grid",2040,26.600904557266084,0,9.4448884932035178,0,0,0,0,0,0,36.045793050469598]
["25WIN_OF_in Offshore wind AC incl. Grid",2050,24.676290051688564,0,8.8047364788407734,0,0,0,0,0,0,33.481026530529334]
["25WIN_OF_ex Offshore wind excl. Grid",2020,23.974587440495316,0,16.363636363636363,0,0,0,0,0,0,40.33822380413168]
["25WIN_OF_ex Offshore wind AC excl. Grid",2025,25.501211353786786,0,14.41306266548985,0,0,0,0,0,0,39.914274019276633]
["25WIN_OF_ex Offshore wind AC excl. Grid",2030,19.744342305843293,0,10.91922620557642,0,0,0,0,0,0,30.663568511419712]
["25WIN_OF_ex Offshore wind AC excl. Grid",2035,18.089709864021959,0,10.118151008561973,0,0,0,0,0,0,28.207860872583932]
["25WIN_OF_ex Offshore wind AC excl. Grid",2040,17.052415557687411,0,9.4448884932035178,0,0,0,0,0,0,26.497304050890929]
["25WIN_OF_ex Offshore wind AC excl. Grid",2050,15.999161853003216,0,8.8047364788407734,0,0,0,0,0,0,24.803898331843989]
["25WIN_NS_in Nearshore wind incl. Grid",2020,25.04985809711448,0,17.195121951219512,0,0,0,0,0,0,42.244980048333993]
["25WIN_NS_in Nearshore wind incl. Grid",2025,27.737157565286754,0,15.41,0,0,0,0,0,0,43.147157565286754]
["25WIN_NS_in Nearshore wind incl. Grid",2030,21.443384864729715,0,11.642771084337351,0,0,0,0,0,0,33.086155949067063]
["25WIN_NS_in Nearshore wind incl. Grid",2035,{"$error":"#VALUE!"},0,{"$error":"#VALUE!"},"",{"$error":"#DIV/0!"},{"$error":"#DIV/0!"},{"$error":"#DIV/0!"},{"$error":"#VALUE!"},0,{"$error":"#VALUE!"}]
["25WIN_NS_in Nearshore wind incl. Grid",2040,{"$error":"#VALUE!"},0,{"$error":"#VALUE!"},"",{"$error":"#DIV/0!"},{"$error":"#DIV/0!"},{"$error":"#DIV/0!"},{"$error":"#VALUE!"},0,{"$error":"#VALUE!"}]
["25WIN_NS_in Nearshore wind incl. Grid",2050,{"$error":"#VALUE!"},0,{"$error":"#VALUE!"},"",{"$error":"#DIV/0!"},{"$error":"#DIV/0!"},{"$error":"#DIV/0!"},{"$error":"#VALUE!"},0,{"$error":"#VALUE!"}]
["25WIN_NS_ex Nearshore wind excl. Grid",2020,23.900423389177355,0,17.195121951219512,0,0,0,0,0,0,41.095545340396868]
["25WIN_NS_ex Nearshore wind excl. Grid",2025,27.737157565286754,0,15.41,0,0,0,0,0,0,43.147157565286754]
["25WIN_NS_ex Nearshore wind excl. Grid",2030,21.443384864729715,0,11.642771084337351,0,0,0,0,0,0,33.086155949067063]
["25WIN_NS_ex Nearshore wind excl. Grid",2035,{"$error":"#VALUE!"},0,{"$error":"#VALUE!"},"",{"$error":"#DIV/0!"},{"$error":"#DIV/0!"},{"$error":"#DIV/0!"},{"$error":"#VALUE!"},0,{"$error":"#VALUE!"}]
["25WIN_NS_ex Nearshore wind excl. Grid",2040,{"$error":"#VALUE!"},0,{"$error":"#VALUE!"},"",{"$error":"#DIV/0!"},{"$error":"#DIV/0!"},{"$error":"#DIV/0!"},{"$error":"#VALUE!"},0,{"$error":"#VALUE!"}]
["25WIN_NS_ex Nearshore wind excl. Grid",2050,{"$error":"#VALUE!"},0,{"$error":"#VALUE!"},"",{"$error":"#DIV/0!"},{"$error":"#DIV/0!"},{"$error":"#DIV/0!"},{"$error":"#VALUE!"},0,{"$error":"#VALUE!"}]
["25WIN_FOA_in Floating offshore AC incl. Grid",2020,{"$error":"#DIV/0!"},0,{"$error":"#DIV/0!"},0,{"$error":"#DIV/0!"},{"$error":"#DIV/0!"},{"$error":"#DIV/0!"},0,0,{"$error":"#DIV/0!"}]
["25WIN_FOA_in Floating offshore AC incl. Grid",2025,{"$error":"#DIV/0!"},0,{"$error":"#DIV/0!"},0,{"$error":"#DIV/0!"},{"$error":"#DIV/0!"},{"$error":"#DIV/0!"},0,0,{"$error":"#DIV/0!"}]
["25WIN_FOA_in Floating offshore AC incl. Grid",2030,49.570422154829743,0,21.159759036144578,0,0,0,0,0,0,70.730181190974321]
["25WIN_FOA_in Floating offshore AC incl. Grid",2035,39.899681021493834,0,14.21,0,0,0,0,0,0,54.109681021493834]
["25WIN_FOA_in Floating offshore AC incl. Grid",2040,33.991614663341608,0,11.00470588235294,0,0,0,0,0,0,44.996320545694545]
["25WIN_FOA_in Floating offshore AC incl. Grid",2050,30.592453197007444,0,9.3782352941176477,0,0,0,0,0,0,39.970688491125088]
["25WIN_FOA_ex Floating offshore AC excl. Grid",2020,{"$error":"#DIV/0!"},0,{"$error":"#DIV/0!"},0,{"$error":"#DIV/0!"},{"$error":"#DIV/0!"},{"$error":"#DIV/0!"},0,0,{"$error":"#DIV/0!"}]
["25WIN_FOA_ex Floating offshore AC excl. Grid",2025,{"$error":"#DIV/0!"},0,{"$error":"#DIV/0!"},0,{"$error":"#DIV/0!"},{"$error":"#DIV/0!"},{"$error":"#DIV/0!"},0,0,{"$error":"#DIV/0!"}]
["25WIN_FOA_ex Floating offshore AC excl. Grid",2030,39.127215240188647,0,21.159759036144578,0,0,0,0,0,0,60.286974276333225]
["25WIN_FOA_ex Floating offshore AC excl. Grid",2035,29.993553319605713,0,14.21,0,0,0,0,0,0,44.203553319605717]
["25WIN_FOA_ex Floating offshore AC excl. Grid",2040,24.609929016259326,0,11.00470588235294,0,0,0,0,0,0,35.614634898612266]
["25WIN_FOA_ex Floating offshore AC excl. Grid",2050,22.162532760498728,0,9.3782352941176477,0,0,0,0,0,0,31.540768054616375]
["25WIN_FSA_in Far Offshore AC incl. Grid",2020,{"$error":"#DIV/0!"},0,{"$error":"#DIV/0!"},0,{"$error":"#DIV/0!"},{"$error":"#DIV/0!"},{"$error":"#DIV/0!"},0,0,{"$error":"#DIV/0!"}]
["25WIN_FSA_in Far Offshore AC incl. Grid",2025,49.310502338287556,0,14.187777777777779,0,0,0,0,0,0,63.498280116065331]
["25WIN_FSA_in Far Offshore AC incl. Grid",2030,42.74902420456381,0,10.761827956989247,0,0,0,0,0,0,53.510852161553061]
["25WIN_FSA_in Far Offshore AC incl. Grid",2035,39.835279482060756,0,9.9685106382978717,0,0,0,0,0,0,49.803790120358627]
["25WIN_FSA_in Far Offshore AC incl. Grid",2040,37.71280195280216,0,9.3057894736842108,0,0,0,0,0,0,47.018591426486367]
["25WIN_FSA_in Far Offshore AC incl. Grid",2050,34.914755356303942,0,8.6747368421052631,0,0,0,0,0,0,43.589492198409204]
["25WIN_FSA_ex Far Offshore AC excl. Grid",2020,{"$error":"#DIV/0!"},0,{"$error":"#DIV/0!"},0,{"$error":"#DIV/0!"},{"$error":"#DIV/0!"},{"$error":"#DIV/0!"},0,0,{"$error":"#DIV/0!"}]
["25WIN_FSA_ex Far Offshore AC excl. Grid",2025,25.554140534685477,0,14.187777777777779,0,0,0,0,0,0,39.741918312463255]
["25WIN_FSA_ex Far Offshore AC excl. Grid",2030,19.758996652690833,0,10.761827956989247,0,0,0,0,0,0,30.52082460968008]
["25WIN_FSA_ex Far Offshore AC excl. Grid",2035,18.07341383908312,0,9.9685106382978717,0,0,0,0,0,0,28.041924477380991]
["25WIN_FSA_ex Far Offshore AC excl. Grid",2040,17.031587978684847,0,9.3057894736842108,0,0,0,0,0,0,26.337377452369058]
["25WIN_FSA_ex Far Offshore AC excl. Grid",2050,16.058354379902859,0,8.6747368421052631,0,0,0,0,0,0,24.73309122200812]
["25WIN_FSA_in Far Offshore DC incl. Grid",2020,{"$error":"#DIV/0!"},0,{"$error":"#DIV/0!"},0,{"$error":"#DIV/0!"},{"$error":"#DIV/0!"},{"$error":"#DIV/0!"},0,0,{"$error":"#DIV/0!"}]
["25WIN_FSA_in Far Offshore DC incl. Grid",2025,{"$error":"#DIV/0!"},0,{"$error":"#DIV/0!"},0,{"$error":"#DIV/0!"},{"$error":"#DIV/0!"},{"$error":"#DIV/0!"},0,0,{"$error":"#DIV/0!"}]
["25WIN_FSA_in Far Offshore DC incl. Grid",2030,56.294499897288972,0,19.553333333333335,0,0,0,0,0,0,75.847833230622314]
["25WIN_FSA_in Far Offshore DC incl. Grid",2035,46.966286302923493,0,13.146170212765956,0,0,0,0,0,0,60.112456515689445]
["25WIN_FSA_in Far Offshore DC incl. Grid",2040,41.240773748386886,0,10.187368421052632,0,0,0,0,0,0,51.428142169439518]
["25WIN_FSA_in Far Offshore DC incl. Grid",2050,37.347839353258912,0,8.6847368421052629,0,0,0,0,0,0,46.032576195364172]
["25WIN_FSA_ex Far Offshore DC excl. Grid",2020,{"$error":"#DIV/0!"},0,{"$error":"#DIV/0!"},0,{"$error":"#DIV/0!"},{"$error":"#DIV/0!"},{"$error":"#DIV/0!"},0,0,{"$error":"#DIV/0!"}]
["25WIN_FSA_ex Far Offshore DC excl. Grid",2025,{"$error":"#DIV/0!"},0,{"$error":"#DIV/0!"},0,{"$error":"#DIV/0!"},{"$error":"#DIV/0!"},{"$error":"#DIV/0!"},0,0,{"$error":"#DIV/0!"}]
["25WIN_FSA_ex Far Offshore DC excl. Grid",2030,34.919987795007067,0,19.553333333333335,0,0,0,0,0,0,54.473321128340402]
["25WIN_FSA_ex Far Offshore DC excl. Grid",2035,26.802749774966809,0,13.146170212765956,0,0,0,0,0,0,39.948919987732765]
["25WIN_FSA_ex Far Offshore DC excl. Grid",2040,22.019410172442555,0,10.187368421052632,0,0,0,0,0,0,32.206778593495187]
["25WIN_FSA_ex Far Offshore DC excl. Grid",2050,19.829634575183071,0,8.6847368421052629,0,0,0,0,0,0,28.514371417288334]
["25WIN_OF_in Offshore wind incl. Grid",2020,29.055276403026248,0,16.363636363636363,0,0,0,0,0,0,45.418912766662615]
["22WIN_OF_in Offshore wind incl. Grid",2025,22.400632306242905,0,12.965811518324607,0,0,0,0,0,0,35.366443824567511]
["22WIN_OF_in Offshore wind incl. Grid",2030,21.239228671307373,0,12.015000000000001,0,0,0,0,0,0,33.254228671307374]
["22WIN_OF_in Offshore wind incl. Grid",2040,19.627301885498454,0,10.430309278350515,0,0,0,0,0,0,30.057611163848968]
["22WIN_OF_in Offshore wind incl. Grid",2050,18.871765257793157,0,9.9846938775510203,0,0,0,0,0,0,28.856459135344178]
["22WIN_NS_ex Nearshore wind incl. Grid",2020,25.04985809711448,0,17.195121951219512,0,0,0,0,0,0,42.244980048333993]
["22WIN_NS_ex Nearshore wind incl. Grid",2025,19.536283954514175,0,13.880982658959537,0,0,0,0,0,0,33.417266613473714]
["22WIN_NS_ex Nearshore wind incl. Grid",2030,17.664890128831161,0,12.654044943820224,0,0,0,0,0,0,30.318935072651385]
["22WIN_NS_ex Nearshore wind incl. Grid",2040,15.80269355234169,0,11.060449438202248,0,0,0,0,0,0,26.863142990543938]
["22WIN_NS_ex Nearshore wind incl. Grid",2050,15.000863952066636,0,10.665730337078653,0,0,0,0,0,0,25.666594289145287]
["22WIN_OF_in Offshore wind excl. Grid",2020,23.974587440495316,0,16.363636363636363,0,0,0,0,0,0,40.33822380413168]
["22WIN_OF_in Offshore wind excl. Grid",2025,18.188098882249889,0,12.965811518324607,0,0,0,0,0,0,31.153910400574496]
["22WIN_OF_in Offshore wind excl. Grid",2030,17.048758950691287,0,12.015000000000001,0,0,0,0,0,0,29.063758950691287]
["22WIN_OF_in Offshore wind excl. Grid",2040,15.358849625660447,0,10.430309278350515,0,0,0,0,0,0,25.789158904010961]
["22WIN_OF_in Offshore wind excl. Grid",2050,14.470610428434341,0,9.9846938775510203,0,0,0,0,0,0,24.455304305985361]
["22WIN_NS_ex Nearshore wind excl. Grid",2020,23.900423389177355,0,17.195121951219512,0,0,0,0,0,0,41.095545340396868]
["22WIN_NS_ex Nearshore wind excl. Grid",2025,18.57045628532595,0,13.880982658959537,0,0,0,0,0,0,32.451438944285485]
["22WIN_NS_ex Nearshore wind excl. Grid",2030,16.746753504651231,0,12.654044943820224,0,0,0,0,0,0,29.400798448471456]
["22WIN_NS_ex Nearshore wind excl. Grid",2040,14.921949857623288,0,11.060449438202248,0,0,0,0,0,0,25.982399295825537]
["22WIN_NS_ex Nearshore wind excl. Grid",2050,14.141762125825094,0,10.665730337078653,0,0,0,0,0,0,24.807492462903745]

{"sheet":"Calculation","index":7,"n_rows":278,"n_cols":32,"rows_kept":278,"cut":false,"hidden":false,"merged":[[29,14,29,26]]}
[]
[null,"Calculation"]
[]
[null,"User instruction"]
[null,"In this sheet the levelised cost of energy is calculated. "]
[null,"A summary of the calculation is shown at the top (white background)"]
[null,"The settings and data background table draws the UserSettings&Results sheet and other"]
[null,"background sheets to define data and settings to be used in the LCOE-calculation (blue background)"]
[null,"The actual LCOE calculations are shown at the bottom (yellow background)"]
[null,"To add new technologies or change existing technical data, go to the TechData sheet"]
[null,"No changes should bo done in this sheet."]
[]
[null,"Overview of the results"]
[]
[null,"Summary of the LCoE-calculation -more detailed overview can be found below in the complete calculation table "]
[null,null,null,null,{"$f":"E31","v":"25WIN_OF_in Offshore wind AC incl. Grid"},{"$f":"F31","v":"25WIN_NS_in Nearshore wind incl. Grid"},"24WIN_ON_in Onshore wind incl. Grid","22PV_La_Utility scale PV","22PV_La_Utility scale PV_tracker","22PV_Me_roof commercial industrial","22PV_Sm_roof residential","18Me BP WPE in_st 80 MW input, woodpellets storage for 10 days  ","18Me BP WCH in_st 80 MW input, woodchips storage for 10 days  ","16La REF_EX  WCH_COA_Newboi_ no_inv_exipla Wood chips CHP refurb.  \nCoal plants, new Boiler, no invest cost for existing plant ","16La REF_EX WCH_COA_exi_exibo_no_inv_exipla Wood chips CHP refurb.  \nCoal plants, existing boiler, no invest cost for existing plant ","17La_EX_COA CHP coal 400-700 MWwe","16 La EX LTE COA no_inv_exipla  - Coal CHP Life time extension of coal power plant no invest cost for existing plant ","16La EX CC NGA CC large CHP Gas Turbine combined Cycle natural Gas  \n","Nuclear INT","Coal FGD INT","Natural gas CCGT INT","19WIN_ON_in Onshore wind incl. Grid",0,0,0,0,0,0,0,0,{"$f":"AE31","v":0}]
[null,null,"Capital cost",null,{"$f":"E98","v":19.744342305843293},20.190200034972783,17.509576132742573,10.647643201620317,11.17887636342958,23.708085306055569,32.845249943796972,52.212824049047576,61.24651552498662,36.383266219895233,36.067697369113738,29.154942887087991,5.2012481997172353,11.457511472921791,27.322002314206738,19.169018920170224,9.0472385369830413,16.426218238716579,{"$error":"#VALUE!"},{"$error":"#VALUE!"},{"$error":"#VALUE!"},{"$error":"#VALUE!"},{"$error":"#VALUE!"},{"$error":"#VALUE!"},{"$error":"#VALUE!"},{"$error":"#VALUE!"},{"$error":"#VALUE!"}]
[null,null,"Capital cost grid",null,{"$f":"E99","v":10.648857488394457},{"$f":"F99","v":1.2531848297569312},0.26473123267922799,1.5680643810974186,1.3597255574465716,1.5698294664537376,1.0164314363339673,0,0,0,0,0,0,0,0,0,0,0.82960698175336267,{"$error":"#VALUE!"},{"$error":"#VALUE!"},{"$error":"#VALUE!"},{"$error":"#VALUE!"},{"$error":"#VALUE!"},{"$error":"#VALUE!"},{"$error":"#VALUE!"},{"$error":"#VALUE!"},{"$error":"#VALUE!"}]
[null,null,"O&M costs",null,{"$f":"E100+E101","v":10.91922620557642},11.642771084337351,6.6037033659707838,{"$f":"H100+H101","v":6.4022535932648301},6.0596768659059217,7.2576743185850212,9.1392935863663229,34.833804147633515,42.616070629382172,13.635165429454595,15.818392860053645,10.287650459097694,10.805516876367744,10.551828157612819,14.403542502888495,8.5500061863444401,6.8837334068520732,5.1913509592750771,{"$error":"#VALUE!"},{"$error":"#VALUE!"},{"$error":"#VALUE!"},{"$error":"#VALUE!"},{"$error":"#VALUE!"},{"$error":"#VALUE!"},{"$error":"#VALUE!"},{"$error":"#VALUE!"},{"$error":"#VALUE!"}]
[null,null,"Other costs",null,{"$f":"E102","v":0},0,0,0,0,0,0,0,0,0,0,0,0,0,4.5240156619929204,0,0,0,"","","","","","","","",""]
[null,null,"Fuel cost",null,{"$f":"E103","v":0},0,0,0,0,0,0,61.740195348742432,35.764191367942331,51.35592459408717,55.080528196219717,18.690893274377704,21.999215534611658,47.39349026669138,6.6407453840894117,26.562997952084196,57.017953809986274,0,{"$error":"#VALUE!"},{"$error":"#VALUE!"},{"$error":"#VALUE!"},{"$error":"#VALUE!"},{"$error":"#VALUE!"},{"$error":"#VALUE!"},{"$error":"#VALUE!"},{"$error":"#VALUE!"},{"$error":"#VALUE!"}]
[null,null,"Climate externalities",null,{"$f":"E104+E105+E106","v":0},0,0,0,0,0,0,0.16507821094746039,8.1205797888543679E-2,0.74799847984476564,0.99606810019301639,50.413719099285323,46.7956662585419,28.691555440384999,0,87.690202829385356,{"$f":"U104+U105+U106","v":37.329618780389325},0,{"$error":"#VALUE!"},{"$error":"#VALUE!"},{"$error":"#VALUE!"},{"$error":"#VALUE!"},{"$error":"#VALUE!"},{"$error":"#VALUE!"},{"$error":"#VALUE!"},{"$error":"#VALUE!"},{"$error":"#VALUE!"}]
[null,null,"Air pollution ",null,{"$f":"E107+E108+E109","v":0},0,0,0,0,0,0,4.4541028234001168,3.913527361149685,4.9037070270497543,5.2451448352752799,5.7330755904738133,6.511890325455437,1.1177729898573476,0,43.093747317190918,5.2033243910265945,0,{"$error":"#VALUE!"},{"$error":"#VALUE!"},{"$error":"#VALUE!"},{"$error":"#VALUE!"},{"$error":"#VALUE!"},{"$error":"#VALUE!"},{"$error":"#VALUE!"},{"$error":"#VALUE!"},{"$error":"#VALUE!"}]
[null,null,"System costs",null,{"$f":"E110+E111","v":0},{"$f":"F110+F111","v":0},0,0,0,0,0,0,0,0,0,0,0,0,0,0,0,0,{"$error":"#VALUE!"},{"$error":"#VALUE!"},{"$error":"#VALUE!"},{"$error":"#VALUE!"},{"$error":"#VALUE!"},{"$error":"#VALUE!"},{"$error":"#VALUE!"},{"$error":"#VALUE!"},{"$error":"#VALUE!"}]
[null,null,"Heat revenue",null,{"$f":"E112","v":0},{"$f":"F112","v":0},0,0,0,0,0,0,0,0,0,0,0,0,0,0,0,0,0,0,0,0,0,0,0,0,{"$f":"AE112","v":0}]
[null,"Total LCOE","Levelized cost of electricity prod.",{"$f":"PriceYear&\"-\"&chosencurrency&\"/MWh\"","v":"2020-EUR/MWh"},{"$f":"SUM(E17:E25)","v":41.312425999814174},{"$f":"SUM(F17:F25)","v":33.086155949067063},24.378010731392585,18.617961175982565,18.598278786782075,32.535589091094323,43.00097496649726,153.40600457977112,143.62151068134932,107.02606175033152,113.20783136085539,114.28028131032252,91.313537194693978,99.21215832746833,52.890305863177566,185.06597320517514,115.48186892523731,22.447176179745018,{"$error":"#VALUE!"},{"$error":"#VALUE!"},{"$error":"#VALUE!"},{"$error":"#VALUE!"},{"$error":"#VALUE!"},{"$error":"#VALUE!"},{"$error":"#VALUE!"},{"$error":"#VALUE!"},{"$error":"#VALUE!"}]
[]
[null,"Calculation of levelised cost of energy "]
[null,null,null,null,"TechBase - 18La_EX_EXI_COA ex_inv_cost - Coal CHP existing, no investment cost - 2030"]
[null,"Settings and data background"]
[null,null,null,null,{"$f":"'UserSettings&Results'!D62","v":"25WIN_OF_in Offshore wind AC incl. Grid"},{"$f":"'UserSettings&Results'!E62","v":"25WIN_NS_in Nearshore wind incl. Grid"},{"$f":"'UserSettings&Results'!F62","v":"24WIN_ON_in Onshore wind incl. Grid"},{"$f":"'UserSettings&Results'!G62","v":"22PV_La_Utility scale PV"},{"$f":"'UserSettings&Results'!H62","v":"22PV_La_Utility scale PV_tracker"},{"$f":"'UserSettings&Results'!I62","v":"22PV_Me_roof commercial industrial"},{"$f":"'UserSettings&Results'!J62","v":"22PV_Sm_roof residential"},{"$f":"'UserSettings&Results'!K62","v":"18Me BP WPE in_st 80 MW input, woodpellets storage for 10 days  "},{"$f":"'UserSettings&Results'!L62","v":"18Me BP WCH in_st 80 MW input, woodchips storage for 10 days  "},{"$f":"'UserSettings&Results'!M62","v":"16La REF_EX  WCH_COA_Newboi_ no_inv_exipla Wood chips CHP refurb.  \nCoal plants, new Boiler, no invest cost for existing plant "},{"$f":"'UserSettings&Results'!N62","v":"16La REF_EX WCH_COA_exi_exibo_no_inv_exipla Wood chips CHP refurb.  \nCoal plants, existing boiler, no invest cost for existing plant "},{"$f":"'UserSettings&Results'!O62","v":"17La_EX_COA CHP coal 400-700 MWwe"},{"$f":"'UserSettings&Results'!P62","v":"16 La EX LTE COA no_inv_exipla  - Coal CHP Life time extension of coal power plant no invest cost for existing plant "},{"$f":"'UserSettings&Results'!Q62","v":"16La EX CC NGA CC large CHP Gas Turbine combined Cycle natural Gas  \n"},{"$f":"'UserSettings&Results'!R62","v":"Nuclear INT"},{"$f":"'UserSettings&Results'!S62","v":"Coal FGD INT"},{"$f":"'UserSettings&Results'!T62","v":"Natural gas CCGT INT"},{"$f":"'UserSettings&Results'!U62","v":"19WIN_ON_in Onshore wind incl. Grid"},{"$f":"'UserSettings&Results'!V62","v":0},{"$f":"'UserSettings&Results'!W62","v":0},{"$f":"'UserSettings&Results'!X62","v":0},{"$f":"'UserSettings&Results'!Y62","v":0},{"$f":"'UserSettings&Results'!Z62","v":0},{"$f":"'UserSettings&Results'!AA62","v":0},{"$f":"'UserSettings&Results'!AB62","v":0},{"$f":"'UserSettings&Results'!AC62","v":0},{"$f":"'UserSettings&Results'!AD62","v":0}]
[null,null,"Lookup-name",null,{"$f":"IF('UserSettings&Results'!D61=\"CurrentTech\",TechScenario,\"Standard\")&\" - \"&E31&\" - \"&E33","v":"TechBase - 25WIN_OF_in Offshore wind AC incl. Grid - 2030"},{"$f":"IF('UserSettings&Results'!E61=\"CurrentTech\",TechScenario,\"Standard\")&\" - \"&F31&\" - \"&F33","v":"TechBase - 25WIN_NS_in Nearshore wind incl. Grid - 2030"},{"$f":"IF('UserSettings&Results'!F61=\"CurrentTech\",TechScenario,\"Standard\")&\" - \"&G31&\" - \"&G33","v":"TechBase - 24WIN_ON_in Onshore wind incl. Grid - 2030"},{"$f":"IF('UserSettings&Results'!G61=\"CurrentTech\",TechScenario,\"Standard\")&\" - \"&H31&\" - \"&H33","v":"TechBase - 22PV_La_Utility scale PV - 2030"},{"$f":"IF('UserSettings&Results'!H61=\"CurrentTech\",TechScenario,\"Standard\")&\" - \"&I31&\" - \"&I33","v":"TechBase - 22PV_La_Utility scale PV_tracker - 2030"},{"$f":"IF('UserSettings&Results'!I61=\"CurrentTech\",TechScenario,\"Standard\")&\" - \"&J31&\" - \"&J33","v":"TechBase - 22PV_Me_roof commercial industrial - 2030"},{"$f":"IF('UserSettings&Results'!J61=\"CurrentTech\",TechScenario,\"Standard\")&\" - \"&K31&\" - \"&K33","v":"TechBase - 22PV_Sm_roof residential - 2030"},{"$f":"IF('UserSettings&Results'!K61=\"CurrentTech\",TechScenario,\"Standard\")&\" - \"&L31&\" - \"&L33","v":"TechBase - 18Me BP WPE in_st 80 MW input, woodpellets storage for 10 days   - 2030"},{"$f":"IF('UserSettings&Results'!L61=\"CurrentTech\",TechScenario,\"Standard\")&\" - \"&M31&\" - \"&M33","v":"TechBase - 18Me BP WCH in_st 80 MW input, woodchips storage for 10 days   - 2030"},{"$f":"IF('UserSettings&Results'!M61=\"CurrentTech\",TechScenario,\"Standard\")&\" - \"&N31&\" - \"&N33","v":"TechBase - 16La REF_EX  WCH_COA_Newboi_ no_inv_exipla Wood chips CHP refurb.  \nCoal plants, new Boiler, no invest cost for existing plant  - 2030"},{"$f":"IF('UserSettings&Results'!N61=\"CurrentTech\",TechScenario,\"Standard\")&\" - \"&O31&\" - \"&O33","v":"TechBase - 16La REF_EX WCH_COA_exi_exibo_no_inv_exipla Wood chips CHP refurb.  \nCoal plants, existing boiler, no invest cost for existing plant  - 2030"},{"$f":"IF('UserSettings&Results'!O61=\"CurrentTech\",TechScenario,\"Standard\")&\" - \"&P31&\" - \"&P33","v":"TechBase - 17La_EX_COA CHP coal 400-700 MWwe - 2030"},{"$f":"IF('UserSettings&Results'!P61=\"CurrentTech\",TechScenario,\"Standard\")&\" - \"&Q31&\" - \"&Q33","v":"TechBase - 16 La EX LTE COA no_inv_exipla  - Coal CHP Life time extension of coal power plant no invest cost for existing plant  - 2030"},{"$f":"IF('UserSettings&Results'!Q61=\"CurrentTech\",TechScenario,\"Standard\")&\" - \"&R31&\" - \"&R33","v":"TechBase - 16La EX CC NGA CC large CHP Gas Turbine combined Cycle natural Gas  \n - 2030"},{"$f":"IF('UserSettings&Results'!R61=\"CurrentTech\",TechScenario,\"Standard\")&\" - \"&S31&\" - \"&S33","v":"TechBase - Nuclear INT - 2030"},{"$f":"IF('UserSettings&Results'!S61=\"CurrentTech\",TechScenario,\"Standard\")&\" - \"&T31&\" - \"&T33","v":"TechBase - Coal FGD INT - 2030"},{"$f":"IF('UserSettings&Results'!T61=\"CurrentTech\",TechScenario,\"Standard\")&\" - \"&U31&\" - \"&U33","v":"TechBase - Natural gas CCGT INT - 2030"},{"$f":"IF('UserSettings&Results'!U61=\"CurrentTech\",TechScenario,\"Standard\")&\" - \"&V31&\" - \"&V33","v":"TechBase - 19WIN_ON_in Onshore wind incl. Grid - 2030"},{"$f":"IF('UserSettings&Results'!V61=\"CurrentTech\",TechScenario,\"Standard\")&\" - \"&W31&\" - \"&W33","v":"Standard - 0 - 2030"},{"$f":"IF('UserSettings&Results'!W61=\"CurrentTech\",TechScenario,\"Standard\")&\" - \"&X31&\" - \"&X33","v":"Standard - 0 - 2030"},{"$f":"IF('UserSettings&Results'!X61=\"CurrentTech\",TechScenario,\"Standard\")&\" - \"&Y31&\" - \"&Y33","v":"Standard - 0 - 2030"},{"$f":"IF('UserSettings&Results'!Y61=\"CurrentTech\",TechScenario,\"Standard\")&\" - \"&Z31&\" - \"&Z33","v":"Standard - 0 - 2030"},{"$f":"IF('UserSettings&Results'!Z61=\"CurrentTech\",TechScenario,\"Standard\")&\" - \"&AA31&\" - \"&AA33","v":"Standard - 0 - 2030"},{"$f":"IF('UserSettings&Results'!AA61=\"CurrentTech\",TechScenario,\"Standard\")&\" - \"&AB31&\" - \"&AB33","v":"Standard - 0 - 2030"},{"$f":"IF('UserSettings&Results'!AB61=\"CurrentTech\",TechScenario,\"Standard\")&\" - \"&AC31&\" - \"&AC33","v":"Standard - 0 - 2030"},{"$f":"IF('UserSettings&Results'!AC61=\"CurrentTech\",TechScenario,\"Standard\")&\" - \"&AD31&\" - \"&AD33","v":"Standard - 0 - 2030"},{"$f":"IF('UserSettings&Results'!AD61=\"CurrentTech\",TechScenario,\"Standard\")&\" - \"&AE31&\" - \"&AE33","v":"Standard - 0 - 2030"}]
[null,null,"Chosen technology year",null,{"$f":"IF(ISNUMBER('UserSettings&Results'!D63),'UserSettings&Results'!D63,TechYear)","v":2030},{"$f":"IF(ISNUMBER('UserSettings&Results'!E63),'UserSettings&Results'!E63,TechYear)","v":2030},{"$f":"IF(ISNUMBER('UserSettings&Results'!F63),'UserSettings&Results'!F63,TechYear)","v":2030},{"$f":"IF(ISNUMBER('UserSettings&Results'!G63),'UserSettings&Results'!G63,TechYear)","v":2030},{"$f":"IF(ISNUMBER('UserSettings&Results'!H63),'UserSettings&Results'!H63,TechYear)","v":2030},{"$f":"IF(ISNUMBER('UserSettings&Results'!I63),'UserSettings&Results'!I63,TechYear)","v":2030},{"$f":"IF(ISNUMBER('UserSettings&Results'!J63),'UserSettings&Results'!J63,TechYear)","v":2030},{"$f":"IF(ISNUMBER('UserSettings&Results'!K63),'UserSettings&Results'!K63,TechYear)","v":2030},{"$f":"IF(ISNUMBER('UserSettings&Results'!L63),'UserSettings&Results'!L63,TechYear)","v":2030},{"$f":"IF(ISNUMBER('UserSettings&Results'!M63),'UserSettings&Results'!M63,TechYear)","v":2030},{"$f":"IF(ISNUMBER('UserSettings&Results'!N63),'UserSettings&Results'!N63,TechYear)","v":2030},{"$f":"IF(ISNUMBER('UserSettings&Results'!O63),'UserSettings&Results'!O63,TechYear)","v":2030},{"$f":"IF(ISNUMBER('UserSettings&Results'!P63),'UserSettings&Results'!P63,TechYear)","v":2030},{"$f":"IF(ISNUMBER('UserSettings&Results'!Q63),'UserSettings&Results'!Q63,TechYear)","v":2030},{"$f":"IF(ISNUMBER('UserSettings&Results'!R63),'UserSettings&Results'!R63,TechYear)","v":2030},{"$f":"IF(ISNUMBER('UserSettings&Results'!S63),'UserSettings&Results'!S63,TechYear)","v":2030},{"$f":"IF(ISNUMBER('UserSettings&Results'!T63),'UserSettings&Results'!T63,TechYear)","v":2030},{"$f":"IF(ISNUMBER('UserSettings&Results'!U63),'UserSettings&Results'!U63,TechYear)","v":2030},{"$f":"IF(ISNUMBER('UserSettings&Results'!V63),'UserSettings&Results'!V63,TechYear)","v":2030},{"$f":"IF(ISNUMBER('UserSettings&Results'!W63),'UserSettings&Results'!W63,TechYear)","v":2030},{"$f":"IF(ISNUMBER('UserSettings&Results'!X63),'UserSettings&Results'!X63,TechYear)","v":2030},{"$f":"IF(ISNUMBER('UserSettings&Results'!Y63),'UserSettings&Results'!Y63,TechYear)","v":2030},{"$f":"IF(ISNUMBER('UserSettings&Results'!Z63),'UserSettings&Results'!Z63,TechYear)","v":2030},{"$f":"IF(ISNUMBER('UserSettings&Results'!AA63),'UserSettings&Results'!AA63,TechYear)","v":2030},{"$f":"IF(ISNUMBER('UserSettings&Results'!AB63),'UserSettings&Results'!AB63,TechYear)","v":2030},{"$f":"IF(ISNUMBER('UserSettings&Results'!AC63),'UserSettings&Results'!AC63,TechYear)","v":2030},{"$f":"IF(ISNUMBER('UserSettings&Results'!AD63),'UserSettings&Results'!AD63,TechYear)","v":2030}]
[null,null,"Chosen first year of operation",null,{"$f":"IF(ISNUMBER('UserSettings&Results'!D64),'UserSettings&Results'!D64,CalcYear)","v":2025},{"$f":"IF(ISNUMBER('UserSettings&Results'!E64),'UserSettings&Results'!E64,CalcYear)","v":2025},{"$f":"IF(ISNUMBER('UserSettings&Results'!F64),'UserSettings&Results'!F64,CalcYear)","v":2025},{"$f":"IF(ISNUMBER('UserSettings&Results'!G64),'UserSettings&Results'!G64,CalcYear)","v":2025},{"$f":"IF(ISNUMBER('UserSettings&Results'!H64),'UserSettings&Results'!H64,CalcYear)","v":2025},{"$f":"IF(ISNUMBER('UserSettings&Results'!I64),'UserSettings&Results'!I64,CalcYear)","v":2025},{"$f":"IF(ISNUMBER('UserSettings&Results'!J64),'UserSettings&Results'!J64,CalcYear)","v":2025},{"$f":"IF(ISNUMBER('UserSettings&Results'!K64),'UserSettings&Results'!K64,CalcYear)","v":2025},{"$f":"IF(ISNUMBER('UserSettings&Results'!L64),'UserSettings&Results'!L64,CalcYear)","v":2025},{"$f":"IF(ISNUMBER('UserSettings&Results'!M64),'UserSettings&Results'!M64,CalcYear)","v":2025},{"$f":"IF(ISNUMBER('UserSettings&Results'!N64),'UserSettings&Results'!N64,CalcYear)","v":2025},{"$f":"IF(ISNUMBER('UserSettings&Results'!O64),'UserSettings&Results'!O64,CalcYear)","v":2025},{"$f":"IF(ISNUMBER('UserSettings&Results'!P64),'UserSettings&Results'!P64,CalcYear)","v":2025},{"$f":"IF(ISNUMBER('UserSettings&Results'!Q64),'UserSettings&Results'!Q64,CalcYear)","v":2025},{"$f":"IF(ISNUMBER('UserSettings&Results'!R64),'UserSettings&Results'!R64,CalcYear)","v":2025},{"$f":"IF(ISNUMBER('UserSettings&Results'!S64),'UserSettings&Results'!S64,CalcYear)","v":2025},{"$f":"IF(ISNUMBER('UserSettings&Results'!T64),'UserSettings&Results'!T64,CalcYear)","v":2025},{"$f":"IF(ISNUMBER('UserSettings&Results'!U64),'UserSettings&Results'!U64,CalcYear)","v":2025},{"$f":"IF(ISNUMBER('UserSettings&Results'!V64),'UserSettings&Results'!V64,CalcYear)","v":2025},{"$f":"IF(ISNUMBER('UserSettings&Results'!W64),'UserSettings&Results'!W64,CalcYear)","v":2025},{"$f":"IF(ISNUMBER('UserSettings&Results'!X64),'UserSettings&Results'!X64,CalcYear)","v":2025},{"$f":"IF(ISNUMBER('UserSettings&Results'!Y64),'UserSettings&Results'!Y64,CalcYear)","v":2025},{"$f":"IF(ISNUMBER('UserSettings&Results'!Z64),'UserSettings&Results'!Z64,CalcYear)","v":2025},{"$f":"IF(ISNUMBER('UserSettings&Results'!AA64),'UserSettings&Results'!AA64,CalcYear)","v":2025},{"$f":"IF(ISNUMBER('UserSettings&Results'!AB64),'UserSettings&Results'!AB64,CalcYear)","v":2025},{"$f":"IF(ISNUMBER('UserSettings&Results'!AC64),'UserSettings&Results'!AC64,CalcYear)","v":2025},{"$f":"IF(ISNUMBER('UserSettings&Results'!AD64),'UserSettings&Results'!AD64,CalcYear)","v":2025}]
[null,null,"Reference",null,{"$f":"IF('UserSettings&Results'!D$61=\"CurrentTech\",VLOOKUP(E$32,TechData,MATCH($C35,TechData_h,0),FALSE),IF('UserSettings&Results'!D$61=\"TestTech\",VLOOKUP(E$32,TestData,MATCH($C35,TechData_h,0),FALSE),VLOOKUP(E$32,OldTechData,MATCH($C35,TechData_h,0),FALSE)))","v":"Tech Cat 2025 Update"},{"$f":"IF('UserSettings&Results'!E$61=\"CurrentTech\",VLOOKUP(F$32,TechData,MATCH($C35,TechData_h,0),FALSE),IF('UserSettings&Results'!E$61=\"TestTech\",VLOOKUP(F$32,TestData,MATCH($C35,TechData_h,0),FALSE),VLOOKUP(F$32,OldTechData,MATCH($C35,TechData_h,0),FALSE)))","v":"Tech Cat 2025 Update"},{"$f":"IF('UserSettings&Results'!F$61=\"CurrentTech\",VLOOKUP(G$32,TechData,MATCH($C35,TechData_h,0),FALSE),IF('UserSettings&Results'!F$61=\"TestTech\",VLOOKUP(G$32,TestData,MATCH($C35,TechData_h,0),FALSE),VLOOKUP(G$32,OldTechData,MATCH($C35,TechData_h,0),FALSE)))","v":"Tech Cat 2024 Update"},{"$f":"IF('UserSettings&Results'!G$61=\"CurrentTech\",VLOOKUP(H$32,TechData,MATCH($C35,TechData_h,0),FALSE),IF('UserSettings&Results'!G$61=\"TestTech\",VLOOKUP(H$32,TestData,MATCH($C35,TechData_h,0),FALSE),VLOOKUP(H$32,OldTechData,MATCH($C35,TechData_h,0),FALSE)))","v":"Tech Cat 2022 Update"},{"$f":"IF('UserSettings&Results'!H$61=\"CurrentTech\",VLOOKUP(I$32,TechData,MATCH($C35,TechData_h,0),FALSE),IF('UserSettings&Results'!H$61=\"TestTech\",VLOOKUP(I$32,TestData,MATCH($C35,TechData_h,0),FALSE),VLOOKUP(I$32,OldTechData,MATCH($C35,TechData_h,0),FALSE)))","v":"Tech Cat 2022 Update"},{"$f":"IF('UserSettings&Results'!I$61=\"CurrentTech\",VLOOKUP(J$32,TechData,MATCH($C35,TechData_h,0),FALSE),IF('UserSettings&Results'!I$61=\"TestTech\",VLOOKUP(J$32,TestData,MATCH($C35,TechData_h,0),FALSE),VLOOKUP(J$32,OldTechData,MATCH($C35,TechData_h,0),FALSE)))","v":"Tech Cat 2022 Update"},{"$f":"IF('UserSettings&Results'!J$61=\"CurrentTech\",VLOOKUP(K$32,TechData,MATCH($C35,TechData_h,0),FALSE),IF('UserSettings&Results'!J$61=\"TestTech\",VLOOKUP(K$32,TestData,MATCH($C35,TechData_h,0),FALSE),VLOOKUP(K$32,OldTechData,MATCH($C35,TechData_h,0),FALSE)))","v":"Tech Cat 2022 Update"},{"$f":"IF('UserSettings&Results'!K$61=\"CurrentTech\",VLOOKUP(L$32,TechData,MATCH($C35,TechData_h,0),FALSE),IF('UserSettings&Results'!K$61=\"TestTech\",VLOOKUP(L$32,TestData,MATCH($C35,TechData_h,0),FALSE),VLOOKUP(L$32,OldTechData,MATCH($C35,TechData_h,0),FALSE)))","v":"Tech Cat  2018 Update"},{"$f":"IF('UserSettings&Results'!L$61=\"CurrentTech\",VLOOKUP(M$32,TechData,MATCH($C35,TechData_h,0),FALSE),IF('UserSettings&Results'!L$61=\"TestTech\",VLOOKUP(M$32,TestData,MATCH($C35,TechData_h,0),FALSE),VLOOKUP(M$32,OldTechData,MATCH($C35,TechData_h,0),FALSE)))","v":"Tech Cat  2018 Update"},{"$f":"IF('UserSettings&Results'!M$61=\"CurrentTech\",VLOOKUP(N$32,TechData,MATCH($C35,TechData_h,0),FALSE),IF('UserSettings&Results'!M$61=\"TestTech\",VLOOKUP(N$32,TestData,MATCH($C35,TechData_h,0),FALSE),VLOOKUP(N$32,OldTechData,MATCH($C35,TechData_h,0),FALSE)))","v":"Tech Cat  Aug 2016, Coal Update 2017"},{"$f":"IF('UserSettings&Results'!N$61=\"CurrentTech\",VLOOKUP(O$32,TechData,MATCH($C35,TechData_h,0),FALSE),IF('UserSettings&Results'!N$61=\"TestTech\",VLOOKUP(O$32,TestData,MATCH($C35,TechData_h,0),FALSE),VLOOKUP(O$32,OldTechData,MATCH($C35,TechData_h,0),FALSE)))","v":"Tech Cat  Aug 2016, Coal Update 2017"},{"$f":"IF('UserSettings&Results'!O$61=\"CurrentTech\",VLOOKUP(P$32,TechData,MATCH($C35,TechData_h,0),FALSE),IF('UserSettings&Results'!O$61=\"TestTech\",VLOOKUP(P$32,TestData,MATCH($C35,TechData_h,0),FALSE),VLOOKUP(P$32,OldTechData,MATCH($C35,TechData_h,0),FALSE)))","v":"Tech Cat Oct. 2017 update"},{"$f":"IF('UserSettings&Results'!P$61=\"CurrentTech\",VLOOKUP(Q$32,TechData,MATCH($C35,TechData_h,0),FALSE),IF('UserSettings&Results'!P$61=\"TestTech\",VLOOKUP(Q$32,TestData,MATCH($C35,TechData_h,0),FALSE),VLOOKUP(Q$32,OldTechData,MATCH($C35,TechData_h,0),FALSE)))","v":"Tech Cat Aug 2016, coal note 2017 data for ex. Plant"},{"$f":"IF('UserSettings&Results'!Q$61=\"CurrentTech\",VLOOKUP(R$32,TechData,MATCH($C35,TechData_h,0),FALSE),IF('UserSettings&Results'!Q$61=\"TestTech\",VLOOKUP(R$32,TestData,MATCH($C35,TechData_h,0),FALSE),VLOOKUP(R$32,OldTechData,MATCH($C35,TechData_h,0),FALSE)))","v":"Tech Cat 2016"},{"$f":"IF('UserSettings&Results'!R$61=\"CurrentTech\",VLOOKUP(S$32,TechData,MATCH($C35,TechData_h,0),FALSE),IF('UserSettings&Results'!R$61=\"TestTech\",VLOOKUP(S$32,TestData,MATCH($C35,TechData_h,0),FALSE),VLOOKUP(S$32,OldTechData,MATCH($C35,TechData_h,0),FALSE)))","v":"IEA, 2015, Projected cost of generating electricity 2015” "},{"$f":"IF('UserSettings&Results'!S$61=\"CurrentTech\",VLOOKUP(T$32,TechData,MATCH($C35,TechData_h,0),FALSE),IF('UserSettings&Results'!S$61=\"TestTech\",VLOOKUP(T$32,TestData,MATCH($C35,TechData_h,0),FALSE),VLOOKUP(T$32,OldTechData,MATCH($C35,TechData_h,0),FALSE)))","v":"IEA 2015, Projected cost of generating electricity 2015"},{"$f":"IF('UserSettings&Results'!T$61=\"CurrentTech\",VLOOKUP(U$32,TechData,MATCH($C35,TechData_h,0),FALSE),IF('UserSettings&Results'!T$61=\"TestTech\",VLOOKUP(U$32,TestData,MATCH($C35,TechData_h,0),FALSE),VLOOKUP(U$32,OldTechData,MATCH($C35,TechData_h,0),FALSE)))","v":"IEA, 2015, Projected cost of generating electricity 2015” "},{"$f":"IF('UserSettings&Results'!U$61=\"CurrentTech\",VLOOKUP(V$32,TechData,MATCH($C35,TechData_h,0),FALSE),IF('UserSettings&Results'!U$61=\"TestTech\",VLOOKUP(V$32,TestData,MATCH($C35,TechData_h,0),FALSE),VLOOKUP(V$32,OldTechData,MATCH($C35,TechData_h,0),FALSE)))","v":"Tech Cat 2019 Update"},{"$f":"IF('UserSettings&Results'!V$61=\"CurrentTech\",VLOOKUP(W$32,TechData,MATCH($C35,TechData_h,0),FALSE),IF('UserSettings&Results'!V$61=\"TestTech\",VLOOKUP(W$32,TestData,MATCH($C35,TechData_h,0),FALSE),VLOOKUP(W$32,OldTechData,MATCH($C35,TechData_h,0),FALSE)))","v":""},{"$f":"IF('UserSettings&Results'!W$61=\"CurrentTech\",VLOOKUP(X$32,TechData,MATCH($C35,TechData_h,0),FALSE),IF('UserSettings&Results'!W$61=\"TestTech\",VLOOKUP(X$32,TestData,MATCH($C35,TechData_h,0),FALSE),VLOOKUP(X$32,OldTechData,MATCH($C35,TechData_h,0),FALSE)))","v":""},{"$f":"IF('UserSettings&Results'!X$61=\"CurrentTech\",VLOOKUP(Y$32,TechData,MATCH($C35,TechData_h,0),FALSE),IF('UserSettings&Results'!X$61=\"TestTech\",VLOOKUP(Y$32,TestData,MATCH($C35,TechData_h,0),FALSE),VLOOKUP(Y$32,OldTechData,MATCH($C35,TechData_h,0),FALSE)))","v":""},{"$f":"IF('UserSettings&Results'!Y$61=\"CurrentTech\",VLOOKUP(Z$32,TechData,MATCH($C35,TechData_h,0),FALSE),IF('UserSettings&Results'!Y$61=\"TestTech\",VLOOKUP(Z$32,TestData,MATCH($C35,TechData_h,0),FALSE),VLOOKUP(Z$32,OldTechData,MATCH($C35,TechData_h,0),FALSE)))","v":""},{"$f":"IF('UserSettings&Results'!Z$61=\"CurrentTech\",VLOOKUP(AA$32,TechData,MATCH($C35,TechData_h,0),FALSE),IF('UserSettings&Results'!Z$61=\"TestTech\",VLOOKUP(AA$32,TestData,MATCH($C35,TechData_h,0),FALSE),VLOOKUP(AA$32,OldTechData,MATCH($C35,TechData_h,0),FALSE)))","v":""},{"$f":"IF('UserSettings&Results'!AA$61=\"CurrentTech\",VLOOKUP(AB$32,TechData,MATCH($C35,TechData_h,0),FALSE),IF('UserSettings&Results'!AA$61=\"TestTech\",VLOOKUP(AB$32,TestData,MATCH($C35,TechData_h,0),FALSE),VLOOKUP(AB$32,OldTechData,MATCH($C35,TechData_h,0),FALSE)))","v":""},{"$f":"IF('UserSettings&Results'!AB$61=\"CurrentTech\",VLOOKUP(AC$32,TechData,MATCH($C35,TechData_h,0),FALSE),IF('UserSettings&Results'!AB$61=\"TestTech\",VLOOKUP(AC$32,TestData,MATCH($C35,TechData_h,0),FALSE),VLOOKUP(AC$32,OldTechData,MATCH($C35,TechData_h,0),FALSE)))","v":""},{"$f":"IF('UserSettings&Results'!AC$61=\"CurrentTech\",VLOOKUP(AD$32,TechData,MATCH($C35,TechData_h,0),FALSE),IF('UserSettings&Results'!AC$61=\"TestTech\",VLOOKUP(AD$32,TestData,MATCH($C35,TechData_h,0),FALSE),VLOOKUP(AD$32,OldTechData,MATCH($C35,TechData_h,0),FALSE)))","v":""},{"$f":"IF('UserSettings&Results'!AD$61=\"CurrentTech\",VLOOKUP(AE$32,TechData,MATCH($C35,TechData_h,0),FALSE),IF('UserSettings&Results'!AD$61=\"TestTech\",VLOOKUP(AE$32,TestData,MATCH($C35,TechData_h,0),FALSE),VLOOKUP(AE$32,OldTechData,MATCH($C35,TechData_h,0),FALSE)))","v":""}]
[null,"Basic technology definitions","Combined heat and power (CHP)",null,{"$f":"IF('UserSettings&Results'!D$61=\"CurrentTech\",VLOOKUP(E$32,TechData,MATCH($C36,TechData_h,0),FALSE),IF('UserSettings&Results'!D$61=\"TestTech\",VLOOKUP(E$32,TestData,MATCH($C36,TechData_h,0),FALSE),VLOOKUP(E$32,OldTechData,MATCH($C36,TechData_h,0),FALSE)))","v":"NO"},{"$f":"IF('UserSettings&Results'!E$61=\"CurrentTech\",VLOOKUP(F$32,TechData,MATCH($C36,TechData_h,0),FALSE),IF('UserSettings&Results'!E$61=\"TestTech\",VLOOKUP(F$32,TestData,MATCH($C36,TechData_h,0),FALSE),VLOOKUP(F$32,OldTechData,MATCH($C36,TechData_h,0),FALSE)))","v":"NO"},{"$f":"IF('UserSettings&Results'!F$61=\"CurrentTech\",VLOOKUP(G$32,TechData,MATCH($C36,TechData_h,0),FALSE),IF('UserSettings&Results'!F$61=\"TestTech\",VLOOKUP(G$32,TestData,MATCH($C36,TechData_h,0),FALSE),VLOOKUP(G$32,OldTechData,MATCH($C36,TechData_h,0),FALSE)))","v":"NO"},{"$f":"IF('UserSettings&Results'!G$61=\"CurrentTech\",VLOOKUP(H$32,TechData,MATCH($C36,TechData_h,0),FALSE),IF('UserSettings&Results'!G$61=\"TestTech\",VLOOKUP(H$32,TestData,MATCH($C36,TechData_h,0),FALSE),VLOOKUP(H$32,OldTechData,MATCH($C36,TechData_h,0),FALSE)))","v":"NO"},{"$f":"IF('UserSettings&Results'!H$61=\"CurrentTech\",VLOOKUP(I$32,TechData,MATCH($C36,TechData_h,0),FALSE),IF('UserSettings&Results'!H$61=\"TestTech\",VLOOKUP(I$32,TestData,MATCH($C36,TechData_h,0),FALSE),VLOOKUP(I$32,OldTechData,MATCH($C36,TechData_h,0),FALSE)))","v":"NO"},{"$f":"IF('UserSettings&Results'!I$61=\"CurrentTech\",VLOOKUP(J$32,TechData,MATCH($C36,TechData_h,0),FALSE),IF('UserSettings&Results'!I$61=\"TestTech\",VLOOKUP(J$32,TestData,MATCH($C36,TechData_h,0),FALSE),VLOOKUP(J$32,OldTechData,MATCH($C36,TechData_h,0),FALSE)))","v":"NO"},{"$f":"IF('UserSettings&Results'!J$61=\"CurrentTech\",VLOOKUP(K$32,TechData,MATCH($C36,TechData_h,0),FALSE),IF('UserSettings&Results'!J$61=\"TestTech\",VLOOKUP(K$32,TestData,MATCH($C36,TechData_h,0),FALSE),VLOOKUP(K$32,OldTechData,MATCH($C36,TechData_h,0),FALSE)))","v":"NO"},{"$f":"IF('UserSettings&Results'!K$61=\"CurrentTech\",VLOOKUP(L$32,TechData,MATCH($C36,TechData_h,0),FALSE),IF('UserSettings&Results'!K$61=\"TestTech\",VLOOKUP(L$32,TestData,MATCH($C36,TechData_h,0),FALSE),VLOOKUP(L$32,OldTechData,MATCH($C36,TechData_h,0),FALSE)))","v":"YES"},{"$f":"IF('UserSettings&Results'!L$61=\"CurrentTech\",VLOOKUP(M$32,TechData,MATCH($C36,TechData_h,0),FALSE),IF('UserSettings&Results'!L$61=\"TestTech\",VLOOKUP(M$32,TestData,MATCH($C36,TechData_h,0),FALSE),VLOOKUP(M$32,OldTechData,MATCH($C36,TechData_h,0),FALSE)))","v":"YES"},{"$f":"IF('UserSettings&Results'!M$61=\"CurrentTech\",VLOOKUP(N$32,TechData,MATCH($C36,TechData_h,0),FALSE),IF('UserSettings&Results'!M$61=\"TestTech\",VLOOKUP(N$32,TestData,MATCH($C36,TechData_h,0),FALSE),VLOOKUP(N$32,OldTechData,MATCH($C36,TechData_h,0),FALSE)))","v":"YES"},{"$f":"IF('UserSettings&Results'!N$61=\"CurrentTech\",VLOOKUP(O$32,TechData,MATCH($C36,TechData_h,0),FALSE),IF('UserSettings&Results'!N$61=\"TestTech\",VLOOKUP(O$32,TestData,MATCH($C36,TechData_h,0),FALSE),VLOOKUP(O$32,OldTechData,MATCH($C36,TechData_h,0),FALSE)))","v":"YES"},{"$f":"IF('UserSettings&Results'!O$61=\"CurrentTech\",VLOOKUP(P$32,TechData,MATCH($C36,TechData_h,0),FALSE),IF('UserSettings&Results'!O$61=\"TestTech\",VLOOKUP(P$32,TestData,MATCH($C36,TechData_h,0),FALSE),VLOOKUP(P$32,OldTechData,MATCH($C36,TechData_h,0),FALSE)))","v":"YES"},{"$f":"IF('UserSettings&Results'!P$61=\"CurrentTech\",VLOOKUP(Q$32,TechData,MATCH($C36,TechData_h,0),FALSE),IF('UserSettings&Results'!P$61=\"TestTech\",VLOOKUP(Q$32,TestData,MATCH($C36,TechData_h,0),FALSE),VLOOKUP(Q$32,OldTechData,MATCH($C36,TechData_h,0),FALSE)))","v":"YES"},{"$f":"IF('UserSettings&Results'!Q$61=\"CurrentTech\",VLOOKUP(R$32,TechData,MATCH($C36,TechData_h,0),FALSE),IF('UserSettings&Results'!Q$61=\"TestTech\",VLOOKUP(R$32,TestData,MATCH($C36,TechData_h,0),FALSE),VLOOKUP(R$32,OldTechData,MATCH($C36,TechData_h,0),FALSE)))","v":"YES"},{"$f":"IF('UserSettings&Results'!R$61=\"CurrentTech\",VLOOKUP(S$32,TechData,MATCH($C36,TechData_h,0),FALSE),IF('UserSettings&Results'!R$61=\"TestTech\",VLOOKUP(S$32,TestData,MATCH($C36,TechData_h,0),FALSE),VLOOKUP(S$32,OldTechData,MATCH($C36,TechData_h,0),FALSE)))","v":"NO"},{"$f":"IF('UserSettings&Results'!S$61=\"CurrentTech\",VLOOKUP(T$32,TechData,MATCH($C36,TechData_h,0),FALSE),IF('UserSettings&Results'!S$61=\"TestTech\",VLOOKUP(T$32,TestData,MATCH($C36,TechData_h,0),FALSE),VLOOKUP(T$32,OldTechData,MATCH($C36,TechData_h,0),FALSE)))","v":"NO"},{"$f":"IF('UserSettings&Results'!T$61=\"CurrentTech\",VLOOKUP(U$32,TechData,MATCH($C36,TechData_h,0),FALSE),IF('UserSettings&Results'!T$61=\"TestTech\",VLOOKUP(U$32,TestData,MATCH($C36,TechData_h,0),FALSE),VLOOKUP(U$32,OldTechData,MATCH($C36,TechData_h,0),FALSE)))","v":"NO"},{"$f":"IF('UserSettings&Results'!U$61=\"CurrentTech\",VLOOKUP(V$32,TechData,MATCH($C36,TechData_h,0),FALSE),IF('UserSettings&Results'!U$61=\"TestTech\",VLOOKUP(V$32,TestData,MATCH($C36,TechData_h,0),FALSE),VLOOKUP(V$32,OldTechData,MATCH($C36,TechData_h,0),FALSE)))","v":"NO"},{"$f":"IF('UserSettings&Results'!V$61=\"CurrentTech\",VLOOKUP(W$32,TechData,MATCH($C36,TechData_h,0),FALSE),IF('UserSettings&Results'!V$61=\"TestTech\",VLOOKUP(W$32,TestData,MATCH($C36,TechData_h,0),FALSE),VLOOKUP(W$32,OldTechData,MATCH($C36,TechData_h,0),FALSE)))","v":""},{"$f":"IF('UserSettings&Results'!W$61=\"CurrentTech\",VLOOKUP(X$32,TechData,MATCH($C36,TechData_h,0),FALSE),IF('UserSettings&Results'!W$61=\"TestTech\",VLOOKUP(X$32,TestData,MATCH($C36,TechData_h,0),FALSE),VLOOKUP(X$32,OldTechData,MATCH($C36,TechData_h,0),FALSE)))","v":""},{"$f":"IF('UserSettings&Results'!X$61=\"CurrentTech\",VLOOKUP(Y$32,TechData,MATCH($C36,TechData_h,0),FALSE),IF('UserSettings&Results'!X$61=\"TestTech\",VLOOKUP(Y$32,TestData,MATCH($C36,TechData_h,0),FALSE),VLOOKUP(Y$32,OldTechData,MATCH($C36,TechData_h,0),FALSE)))","v":""},{"$f":"IF('UserSettings&Results'!Y$61=\"CurrentTech\",VLOOKUP(Z$32,TechData,MATCH($C36,TechData_h,0),FALSE),IF('UserSettings&Results'!Y$61=\"TestTech\",VLOOKUP(Z$32,TestData,MATCH($C36,TechData_h,0),FALSE),VLOOKUP(Z$32,OldTechData,MATCH($C36,TechData_h,0),FALSE)))","v":""},{"$f":"IF('UserSettings&Results'!Z$61=\"CurrentTech\",VLOOKUP(AA$32,TechData,MATCH($C36,TechData_h,0),FALSE),IF('UserSettings&Results'!Z$61=\"TestTech\",VLOOKUP(AA$32,TestData,MATCH($C36,TechData_h,0),FALSE),VLOOKUP(AA$32,OldTechData,MATCH($C36,TechData_h,0),FALSE)))","v":""},{"$f":"IF('UserSettings&Results'!AA$61=\"CurrentTech\",VLOOKUP(AB$32,TechData,MATCH($C36,TechData_h,0),FALSE),IF('UserSettings&Results'!AA$61=\"TestTech\",VLOOKUP(AB$32,TestData,MATCH($C36,TechData_h,0),FALSE),VLOOKUP(AB$32,OldTechData,MATCH($C36,TechData_h,0),FALSE)))","v":""},{"$f":"IF('UserSettings&Results'!AB$61=\"CurrentTech\",VLOOKUP(AC$32,TechData,MATCH($C36,TechData_h,0),FALSE),IF('UserSettings&Results'!AB$61=\"TestTech\",VLOOKUP(AC$32,TestData,MATCH($C36,TechData_h,0),FALSE),VLOOKUP(AC$32,OldTechData,MATCH($C36,TechData_h,0),FALSE)))","v":""},{"$f":"IF('UserSettings&Results'!AC$61=\"CurrentTech\",VLOOKUP(AD$32,TechData,MATCH($C36,TechData_h,0),FALSE),IF('UserSettings&Results'!AC$61=\"TestTech\",VLOOKUP(AD$32,TestData,MATCH($C36,TechData_h,0),FALSE),VLOOKUP(AD$32,OldTechData,MATCH($C36,TechData_h,0),FALSE)))","v":""},{"$f":"IF('UserSettings&Results'!AD$61=\"CurrentTech\",VLOOKUP(AE$32,TechData,MATCH($C36,TechData_h,0),FALSE),IF('UserSettings&Results'!AD$61=\"TestTech\",VLOOKUP(AE$32,TestData,MATCH($C36,TechData_h,0),FALSE),VLOOKUP(AE$32,OldTechData,MATCH($C36,TechData_h,0),FALSE)))","v":""},{"$f":"IF('UserSettings&Results'!#REF!=\"CurrentTech\",VLOOKUP(AF$32,TechData,MATCH($C36,TechData_h,0),FALSE),IF('UserSettings&Results'!#REF!=\"TestTech\",VLOOKUP(AF$32,TestData,MATCH($C36,TechData_h,0),FALSE),VLOOKUP(AF$32,OldTechData,MATCH($C36,TechData_h,0),FALSE)))","v":{"$error":"#REF!"}}]
[null,null,"Fuel",null,{"$f":"IF('UserSettings&Results'!D61=\"CurrentTech\",VLOOKUP(E$32,TechData,MATCH($C37,TechData_h,0),FALSE),IF('UserSettings&Results'!D61=\"TestTech\",VLOOKUP(E$32,TestData,MATCH($C37,TechData_h,0),FALSE),VLOOKUP(E$32,OldTechData,MATCH($C37,TechData_h,0),FALSE)))","v":"Wind"},{"$f":"IF('UserSettings&Results'!E61=\"CurrentTech\",VLOOKUP(F$32,TechData,MATCH($C37,TechData_h,0),FALSE),IF('UserSettings&Results'!E61=\"TestTech\",VLOOKUP(F$32,TestData,MATCH($C37,TechData_h,0),FALSE),VLOOKUP(F$32,OldTechData,MATCH($C37,TechData_h,0),FALSE)))","v":"Wind"},{"$f":"IF('UserSettings&Results'!F61=\"CurrentTech\",VLOOKUP(G$32,TechData,MATCH($C37,TechData_h,0),FALSE),IF('UserSettings&Results'!F61=\"TestTech\",VLOOKUP(G$32,TestData,MATCH($C37,TechData_h,0),FALSE),VLOOKUP(G$32,OldTechData,MATCH($C37,TechData_h,0),FALSE)))","v":"Wind"},{"$f":"IF('UserSettings&Results'!G61=\"CurrentTech\",VLOOKUP(H$32,TechData,MATCH($C37,TechData_h,0),FALSE),IF('UserSettings&Results'!G61=\"TestTech\",VLOOKUP(H$32,TestData,MATCH($C37,TechData_h,0),FALSE),VLOOKUP(H$32,OldTechData,MATCH($C37,TechData_h,0),FALSE)))","v":"solar"},{"$f":"IF('UserSettings&Results'!H61=\"CurrentTech\",VLOOKUP(I$32,TechData,MATCH($C37,TechData_h,0),FALSE),IF('UserSettings&Results'!H61=\"TestTech\",VLOOKUP(I$32,TestData,MATCH($C37,TechData_h,0),FALSE),VLOOKUP(I$32,OldTechData,MATCH($C37,TechData_h,0),FALSE)))","v":"solar"},{"$f":"IF('UserSettings&Results'!I61=\"CurrentTech\",VLOOKUP(J$32,TechData,MATCH($C37,TechData_h,0),FALSE),IF('UserSettings&Results'!I61=\"TestTech\",VLOOKUP(J$32,TestData,MATCH($C37,TechData_h,0),FALSE),VLOOKUP(J$32,OldTechData,MATCH($C37,TechData_h,0),FALSE)))","v":"solar"},{"$f":"IF('UserSettings&Results'!J61=\"CurrentTech\",VLOOKUP(K$32,TechData,MATCH($C37,TechData_h,0),FALSE),IF('UserSettings&Results'!J61=\"TestTech\",VLOOKUP(K$32,TestData,MATCH($C37,TechData_h,0),FALSE),VLOOKUP(K$32,OldTechData,MATCH($C37,TechData_h,0),FALSE)))","v":"solar"},{"$f":"IF('UserSettings&Results'!K61=\"CurrentTech\",VLOOKUP(L$32,TechData,MATCH($C37,TechData_h,0),FALSE),IF('UserSettings&Results'!K61=\"TestTech\",VLOOKUP(L$32,TestData,MATCH($C37,TechData_h,0),FALSE),VLOOKUP(L$32,OldTechData,MATCH($C37,TechData_h,0),FALSE)))","v":"Wood pellets"},{"$f":"IF('UserSettings&Results'!L61=\"CurrentTech\",VLOOKUP(M$32,TechData,MATCH($C37,TechData_h,0),FALSE),IF('UserSettings&Results'!L61=\"TestTech\",VLOOKUP(M$32,TestData,MATCH($C37,TechData_h,0),FALSE),VLOOKUP(M$32,OldTechData,MATCH($C37,TechData_h,0),FALSE)))","v":"Wood chips"},{"$f":"IF('UserSettings&Results'!M61=\"CurrentTech\",VLOOKUP(N$32,TechData,MATCH($C37,TechData_h,0),FALSE),IF('UserSettings&Results'!M61=\"TestTech\",VLOOKUP(N$32,TestData,MATCH($C37,TechData_h,0),FALSE),VLOOKUP(N$32,OldTechData,MATCH($C37,TechData_h,0),FALSE)))","v":"Wood chips"},{"$f":"IF('UserSettings&Results'!N61=\"CurrentTech\",VLOOKUP(O$32,TechData,MATCH($C37,TechData_h,0),FALSE),IF('UserSettings&Results'!N61=\"TestTech\",VLOOKUP(O$32,TestData,MATCH($C37,TechData_h,0),FALSE),VLOOKUP(O$32,OldTechData,MATCH($C37,TechData_h,0),FALSE)))","v":"Wood chips"},{"$f":"IF('UserSettings&Results'!O61=\"CurrentTech\",VLOOKUP(P$32,TechData,MATCH($C37,TechData_h,0),FALSE),IF('UserSettings&Results'!O61=\"TestTech\",VLOOKUP(P$32,TestData,MATCH($C37,TechData_h,0),FALSE),VLOOKUP(P$32,OldTechData,MATCH($C37,TechData_h,0),FALSE)))","v":"Coal"},{"$f":"IF('UserSettings&Results'!P61=\"CurrentTech\",VLOOKUP(Q$32,TechData,MATCH($C37,TechData_h,0),FALSE),IF('UserSettings&Results'!P61=\"TestTech\",VLOOKUP(Q$32,TestData,MATCH($C37,TechData_h,0),FALSE),VLOOKUP(Q$32,OldTechData,MATCH($C37,TechData_h,0),FALSE)))","v":"Coal"},{"$f":"IF('UserSettings&Results'!Q61=\"CurrentTech\",VLOOKUP(R$32,TechData,MATCH($C37,TechData_h,0),FALSE),IF('UserSettings&Results'!Q61=\"TestTech\",VLOOKUP(R$32,TestData,MATCH($C37,TechData_h,0),FALSE),VLOOKUP(R$32,OldTechData,MATCH($C37,TechData_h,0),FALSE)))","v":"Natural gas"},{"$f":"IF('UserSettings&Results'!R61=\"CurrentTech\",VLOOKUP(S$32,TechData,MATCH($C37,TechData_h,0),FALSE),IF('UserSettings&Results'!R61=\"TestTech\",VLOOKUP(S$32,TestData,MATCH($C37,TechData_h,0),FALSE),VLOOKUP(S$32,OldTechData,MATCH($C37,TechData_h,0),FALSE)))","v":"Uranium"},{"$f":"IF('UserSettings&Results'!S61=\"CurrentTech\",VLOOKUP(T$32,TechData,MATCH($C37,TechData_h,0),FALSE),IF('UserSettings&Results'!S61=\"TestTech\",VLOOKUP(T$32,TestData,MATCH($C37,TechData_h,0),FALSE),VLOOKUP(T$32,OldTechData,MATCH($C37,TechData_h,0),FALSE)))","v":"Coal"},{"$f":"IF('UserSettings&Results'!T61=\"CurrentTech\",VLOOKUP(U$32,TechData,MATCH($C37,TechData_h,0),FALSE),IF('UserSettings&Results'!T61=\"TestTech\",VLOOKUP(U$32,TestData,MATCH($C37,TechData_h,0),FALSE),VLOOKUP(U$32,OldTechData,MATCH($C37,TechData_h,0),FALSE)))","v":"Natural gas"},{"$f":"IF('UserSettings&Results'!U61=\"CurrentTech\",VLOOKUP(V$32,TechData,MATCH($C37,TechData_h,0),FALSE),IF('UserSettings&Results'!U61=\"TestTech\",VLOOKUP(V$32,TestData,MATCH($C37,TechData_h,0),FALSE),VLOOKUP(V$32,OldTechData,MATCH($C37,TechData_h,0),FALSE)))","v":"Wind"},{"$f":"IF('UserSettings&Results'!V61=\"CurrentTech\",VLOOKUP(W$32,TechData,MATCH($C37,TechData_h,0),FALSE),IF('UserSettings&Results'!V61=\"TestTech\",VLOOKUP(W$32,TestData,MATCH($C37,TechData_h,0),FALSE),VLOOKUP(W$32,OldTechData,MATCH($C37,TechData_h,0),FALSE)))","v":""},{"$f":"IF('UserSettings&Results'!W61=\"CurrentTech\",VLOOKUP(X$32,TechData,MATCH($C37,TechData_h,0),FALSE),IF('UserSettings&Results'!W61=\"TestTech\",VLOOKUP(X$32,TestData,MATCH($C37,TechData_h,0),FALSE),VLOOKUP(X$32,OldTechData,MATCH($C37,TechData_h,0),FALSE)))","v":""},{"$f":"IF('UserSettings&Results'!X61=\"CurrentTech\",VLOOKUP(Y$32,TechData,MATCH($C37,TechData_h,0),FALSE),IF('UserSettings&Results'!X61=\"TestTech\",VLOOKUP(Y$32,TestData,MATCH($C37,TechData_h,0),FALSE),VLOOKUP(Y$32,OldTechData,MATCH($C37,TechData_h,0),FALSE)))","v":""},{"$f":"IF('UserSettings&Results'!Y61=\"CurrentTech\",VLOOKUP(Z$32,TechData,MATCH($C37,TechData_h,0),FALSE),IF('UserSettings&Results'!Y61=\"TestTech\",VLOOKUP(Z$32,TestData,MATCH($C37,TechData_h,0),FALSE),VLOOKUP(Z$32,OldTechData,MATCH($C37,TechData_h,0),FALSE)))","v":""},{"$f":"IF('UserSettings&Results'!Z61=\"CurrentTech\",VLOOKUP(AA$32,TechData,MATCH($C37,TechData_h,0),FALSE),IF('UserSettings&Results'!Z61=\"TestTech\",VLOOKUP(AA$32,TestData,MATCH($C37,TechData_h,0),FALSE),VLOOKUP(AA$32,OldTechData,MATCH($C37,TechData_h,0),FALSE)))","v":""},{"$f":"IF('UserSettings&Results'!AA61=\"CurrentTech\",VLOOKUP(AB$32,TechData,MATCH($C37,TechData_h,0),FALSE),IF('UserSettings&Results'!AA61=\"TestTech\",VLOOKUP(AB$32,TestData,MATCH($C37,TechData_h,0),FALSE),VLOOKUP(AB$32,OldTechData,MATCH($C37,TechData_h,0),FALSE)))","v":""},{"$f":"IF('UserSettings&Results'!AB61=\"CurrentTech\",VLOOKUP(AC$32,TechData,MATCH($C37,TechData_h,0),FALSE),IF('UserSettings&Results'!AB61=\"TestTech\",VLOOKUP(AC$32,TestData,MATCH($C37,TechData_h,0),FALSE),VLOOKUP(AC$32,OldTechData,MATCH($C37,TechData_h,0),FALSE)))","v":""},{"$f":"IF('UserSettings&Results'!AC61=\"CurrentTech\",VLOOKUP(AD$32,TechData,MATCH($C37,TechData_h,0),FALSE),IF('UserSettings&Results'!AC61=\"TestTech\",VLOOKUP(AD$32,TestData,MATCH($C37,TechData_h,0),FALSE),VLOOKUP(AD$32,OldTechData,MATCH($C37,TechData_h,0),FALSE)))","v":""},{"$f":"IF('UserSettings&Results'!AD61=\"CurrentTech\",VLOOKUP(AE$32,TechData,MATCH($C37,TechData_h,0),FALSE),IF('UserSettings&Results'!AD61=\"TestTech\",VLOOKUP(AE$32,TestData,MATCH($C37,TechData_h,0),FALSE),VLOOKUP(AE$32,OldTechData,MATCH($C37,TechData_h,0),FALSE)))","v":""}]
[null,null,"Technical lifetime","years",{"$f":"IF('UserSettings&Results'!D61=\"CurrentTech\",VLOOKUP(E$32,TechData,MATCH($C38,TechData_h,0),FALSE),IF('UserSettings&Results'!D61=\"TestTech\",VLOOKUP(E$32,TestData,MATCH($C38,TechData_h,0),FALSE),VLOOKUP(E$32,OldTechData,MATCH($C38,TechData_h,0),FALSE)))","v":30},{"$f":"IF('UserSettings&Results'!E61=\"CurrentTech\",VLOOKUP(F$32,TechData,MATCH($C38,TechData_h,0),FALSE),IF('UserSettings&Results'!E61=\"TestTech\",VLOOKUP(F$32,TestData,MATCH($C38,TechData_h,0),FALSE),VLOOKUP(F$32,OldTechData,MATCH($C38,TechData_h,0),FALSE)))","v":30},{"$f":"IF('UserSettings&Results'!F61=\"CurrentTech\",VLOOKUP(G$32,TechData,MATCH($C38,TechData_h,0),FALSE),IF('UserSettings&Results'!F61=\"TestTech\",VLOOKUP(G$32,TestData,MATCH($C38,TechData_h,0),FALSE),VLOOKUP(G$32,OldTechData,MATCH($C38,TechData_h,0),FALSE)))","v":30},{"$f":"IF('UserSettings&Results'!G61=\"CurrentTech\",VLOOKUP(H$32,TechData,MATCH($C38,TechData_h,0),FALSE),IF('UserSettings&Results'!G61=\"TestTech\",VLOOKUP(H$32,TestData,MATCH($C38,TechData_h,0),FALSE),VLOOKUP(H$32,OldTechData,MATCH($C38,TechData_h,0),FALSE)))","v":40},{"$f":"IF('UserSettings&Results'!H61=\"CurrentTech\",VLOOKUP(I$32,TechData,MATCH($C38,TechData_h,0),FALSE),IF('UserSettings&Results'!H61=\"TestTech\",VLOOKUP(I$32,TestData,MATCH($C38,TechData_h,0),FALSE),VLOOKUP(I$32,OldTechData,MATCH($C38,TechData_h,0),FALSE)))","v":40},{"$f":"IF('UserSettings&Results'!I61=\"CurrentTech\",VLOOKUP(J$32,TechData,MATCH($C38,TechData_h,0),FALSE),IF('UserSettings&Results'!I61=\"TestTech\",VLOOKUP(J$32,TestData,MATCH($C38,TechData_h,0),FALSE),VLOOKUP(J$32,OldTechData,MATCH($C38,TechData_h,0),FALSE)))","v":30},{"$f":"IF('UserSettings&Results'!J61=\"CurrentTech\",VLOOKUP(K$32,TechData,MATCH($C38,TechData_h,0),FALSE),IF('UserSettings&Results'!J61=\"TestTech\",VLOOKUP(K$32,TestData,MATCH($C38,TechData_h,0),FALSE),VLOOKUP(K$32,OldTechData,MATCH($C38,TechData_h,0),FALSE)))","v":40},{"$f":"IF('UserSettings&Results'!K61=\"CurrentTech\",VLOOKUP(L$32,TechData,MATCH($C38,TechData_h,0),FALSE),IF('UserSettings&Results'!K61=\"TestTech\",VLOOKUP(L$32,TestData,MATCH($C38,TechData_h,0),FALSE),VLOOKUP(L$32,OldTechData,MATCH($C38,TechData_h,0),FALSE)))","v":25},{"$f":"IF('UserSettings&Results'!L61=\"CurrentTech\",VLOOKUP(M$32,TechData,MATCH($C38,TechData_h,0),FALSE),IF('UserSettings&Results'!L61=\"TestTech\",VLOOKUP(M$32,TestData,MATCH($C38,TechData_h,0),FALSE),VLOOKUP(M$32,OldTechData,MATCH($C38,TechData_h,0),FALSE)))","v":25},{"$f":"IF('UserSettings&Results'!M61=\"CurrentTech\",VLOOKUP(N$32,TechData,MATCH($C38,TechData_h,0),FALSE),IF('UserSettings&Results'!M61=\"TestTech\",VLOOKUP(N$32,TestData,MATCH($C38,TechData_h,0),FALSE),VLOOKUP(N$32,OldTechData,MATCH($C38,TechData_h,0),FALSE)))","v":15},{"$f":"IF('UserSettings&Results'!N61=\"CurrentTech\",VLOOKUP(O$32,TechData,MATCH($C38,TechData_h,0),FALSE),IF('UserSettings&Results'!N61=\"TestTech\",VLOOKUP(O$32,TestData,MATCH($C38,TechData_h,0),FALSE),VLOOKUP(O$32,OldTechData,MATCH($C38,TechData_h,0),FALSE)))","v":15},{"$f":"IF('UserSettings&Results'!O61=\"CurrentTech\",VLOOKUP(P$32,TechData,MATCH($C38,TechData_h,0),FALSE),IF('UserSettings&Results'!O61=\"TestTech\",VLOOKUP(P$32,TestData,MATCH($C38,TechData_h,0),FALSE),VLOOKUP(P$32,OldTechData,MATCH($C38,TechData_h,0),FALSE)))","v":25},{"$f":"IF('UserSettings&Results'!P61=\"CurrentTech\",VLOOKUP(Q$32,TechData,MATCH($C38,TechData_h,0),FALSE),IF('UserSettings&Results'!P61=\"TestTech\",VLOOKUP(Q$32,TestData,MATCH($C38,TechData_h,0),FALSE),VLOOKUP(Q$32,OldTechData,MATCH($C38,TechData_h,0),FALSE)))","v":15},{"$f":"IF('UserSettings&Results'!Q61=\"CurrentTech\",VLOOKUP(R$32,TechData,MATCH($C38,TechData_h,0),FALSE),IF('UserSettings&Results'!Q61=\"TestTech\",VLOOKUP(R$32,TestData,MATCH($C38,TechData_h,0),FALSE),VLOOKUP(R$32,OldTechData,MATCH($C38,TechData_h,0),FALSE)))","v":25},{"$f":"IF('UserSettings&Results'!R61=\"CurrentTech\",VLOOKUP(S$32,TechData,MATCH($C38,TechData_h,0),FALSE),IF('UserSettings&Results'!R61=\"TestTech\",VLOOKUP(S$32,TestData,MATCH($C38,TechData_h,0),FALSE),VLOOKUP(S$32,OldTechData,MATCH($C38,TechData_h,0),FALSE)))","v":60},{"$f":"IF('UserSettings&Results'!S61=\"CurrentTech\",VLOOKUP(T$32,TechData,MATCH($C38,TechData_h,0),FALSE),IF('UserSettings&Results'!S61=\"TestTech\",VLOOKUP(T$32,TestData,MATCH($C38,TechData_h,0),FALSE),VLOOKUP(T$32,OldTechData,MATCH($C38,TechData_h,0),FALSE)))","v":40},{"$f":"IF('UserSettings&Results'!T61=\"CurrentTech\",VLOOKUP(U$32,TechData,MATCH($C38,TechData_h,0),FALSE),IF('UserSettings&Results'!T61=\"TestTech\",VLOOKUP(U$32,TestData,MATCH($C38,TechData_h,0),FALSE),VLOOKUP(U$32,OldTechData,MATCH($C38,TechData_h,0),FALSE)))","v":30},{"$f":"IF('UserSettings&Results'!U61=\"CurrentTech\",VLOOKUP(V$32,TechData,MATCH($C38,TechData_h,0),FALSE),IF('UserSettings&Results'!U61=\"TestTech\",VLOOKUP(V$32,TestData,MATCH($C38,TechData_h,0),FALSE),VLOOKUP(V$32,OldTechData,MATCH($C38,TechData_h,0),FALSE)))","v":30},{"$f":"IF('UserSettings&Results'!V61=\"CurrentTech\",VLOOKUP(W$32,TechData,MATCH($C38,TechData_h,0),FALSE),IF('UserSettings&Results'!V61=\"TestTech\",VLOOKUP(W$32,TestData,MATCH($C38,TechData_h,0),FALSE),VLOOKUP(W$32,OldTechData,MATCH($C38,TechData_h,0),FALSE)))","v":""},{"$f":"IF('UserSettings&Results'!W61=\"CurrentTech\",VLOOKUP(X$32,TechData,MATCH($C38,TechData_h,0),FALSE),IF('UserSettings&Results'!W61=\"TestTech\",VLOOKUP(X$32,TestData,MATCH($C38,TechData_h,0),FALSE),VLOOKUP(X$32,OldTechData,MATCH($C38,TechData_h,0),FALSE)))","v":""},{"$f":"IF('UserSettings&Results'!X61=\"CurrentTech\",VLOOKUP(Y$32,TechData,MATCH($C38,TechData_h,0),FALSE),IF('UserSettings&Results'!X61=\"TestTech\",VLOOKUP(Y$32,TestData,MATCH($C38,TechData_h,0),FALSE),VLOOKUP(Y$32,OldTechData,MATCH($C38,TechData_h,0),FALSE)))","v":""},{"$f":"IF('UserSettings&Results'!Y61=\"CurrentTech\",VLOOKUP(Z$32,TechData,MATCH($C38,TechData_h,0),FALSE),IF('UserSettings&Results'!Y61=\"TestTech\",VLOOKUP(Z$32,TestData,MATCH($C38,TechData_h,0),FALSE),VLOOKUP(Z$32,OldTechData,MATCH($C38,TechData_h,0),FALSE)))","v":""},{"$f":"IF('UserSettings&Results'!Z61=\"CurrentTech\",VLOOKUP(AA$32,TechData,MATCH($C38,TechData_h,0),FALSE),IF('UserSettings&Results'!Z61=\"TestTech\",VLOOKUP(AA$32,TestData,MATCH($C38,TechData_h,0),FALSE),VLOOKUP(AA$32,OldTechData,MATCH($C38,TechData_h,0),FALSE)))","v":""},{"$f":"IF('UserSettings&Results'!AA61=\"CurrentTech\",VLOOKUP(AB$32,TechData,MATCH($C38,TechData_h,0),FALSE),IF('UserSettings&Results'!AA61=\"TestTech\",VLOOKUP(AB$32,TestData,MATCH($C38,TechData_h,0),FALSE),VLOOKUP(AB$32,OldTechData,MATCH($C38,TechData_h,0),FALSE)))","v":""},{"$f":"IF('UserSettings&Results'!AB61=\"CurrentTech\",VLOOKUP(AC$32,TechData,MATCH($C38,TechData_h,0),FALSE),IF('UserSettings&Results'!AB61=\"TestTech\",VLOOKUP(AC$32,TestData,MATCH($C38,TechData_h,0),FALSE),VLOOKUP(AC$32,OldTechData,MATCH($C38,TechData_h,0),FALSE)))","v":""},{"$f":"IF('UserSettings&Results'!AC61=\"CurrentTech\",VLOOKUP(AD$32,TechData,MATCH($C38,TechData_h,0),FALSE),IF('UserSettings&Results'!AC61=\"TestTech\",VLOOKUP(AD$32,TestData,MATCH($C38,TechData_h,0),FALSE),VLOOKUP(AD$32,OldTechData,MATCH($C38,TechData_h,0),FALSE)))","v":""},{"$f":"IF('UserSettings&Results'!AD61=\"CurrentTech\",VLOOKUP(AE$32,TechData,MATCH($C38,TechData_h,0),FALSE),IF('UserSettings&Results'!AD61=\"TestTech\",VLOOKUP(AE$32,TestData,MATCH($C38,TechData_h,0),FALSE),VLOOKUP(AE$32,OldTechData,MATCH($C38,TechData_h,0),FALSE)))","v":""}]
[null,null,"Economic lifetime","years",{"$f":"IF(ISNUMBER(DeprecPer),DeprecPer,E38)","v":30},{"$f":"IF(ISNUMBER(DeprecPer),DeprecPer,F38)","v":30},{"$f":"IF(ISNUMBER(DeprecPer),DeprecPer,G38)","v":30},{"$f":"IF(ISNUMBER(DeprecPer),DeprecPer,H38)","v":40},{"$f":"IF(ISNUMBER(DeprecPer),DeprecPer,I38)","v":40},{"$f":"IF(ISNUMBER(DeprecPer),DeprecPer,J38)","v":30},{"$f":"IF(ISNUMBER(DeprecPer),DeprecPer,K38)","v":40},{"$f":"IF(ISNUMBER(DeprecPer),DeprecPer,L38)","v":25},{"$f":"IF(ISNUMBER(DeprecPer),DeprecPer,M38)","v":25},{"$f":"IF(ISNUMBER(DeprecPer),DeprecPer,N38)","v":15},{"$f":"IF(ISNUMBER(DeprecPer),DeprecPer,O38)","v":15},{"$f":"IF(ISNUMBER(DeprecPer),DeprecPer,P38)","v":25},{"$f":"IF(ISNUMBER(DeprecPer),DeprecPer,Q38)","v":15},{"$f":"IF(ISNUMBER(DeprecPer),DeprecPer,R38)","v":25},{"$f":"IF(ISNUMBER(DeprecPer),DeprecPer,S38)","v":60},{"$f":"IF(ISNUMBER(DeprecPer),DeprecPer,T38)","v":40},{"$f":"IF(ISNUMBER(DeprecPer),DeprecPer,U38)","v":30},{"$f":"IF(ISNUMBER(DeprecPer),DeprecPer,V38)","v":30},{"$f":"IF(ISNUMBER(DeprecPer),DeprecPer,W38)","v":""},{"$f":"IF(ISNUMBER(DeprecPer),DeprecPer,X38)","v":""},{"$f":"IF(ISNUMBER(DeprecPer),DeprecPer,Y38)","v":""},{"$f":"IF(ISNUMBER(DeprecPer),DeprecPer,Z38)","v":""},{"$f":"IF(ISNUMBER(DeprecPer),DeprecPer,AA38)","v":""},{"$f":"IF(ISNUMBER(DeprecPer),DeprecPer,AB38)","v":""},{"$f":"IF(ISNUMBER(DeprecPer),DeprecPer,AC38)","v":""},{"$f":"IF(ISNUMBER(DeprecPer),DeprecPer,AD38)","v":""},{"$f":"IF(ISNUMBER(DeprecPer),DeprecPer,AE38)","v":""}]
[null,null,"Lookout period","years",{"$f":"IF(ISNUMBER(DiscountHorizon),DiscountHorizon,E38)","v":30},30,30,40,40,30,40,25,25,15,15,25,15,25,60,40,30,30,"","","","","","","","",""]
[null,null,"Discounted amount (economic lifetime)",null,{"$f":"NPV(DiscountRate,OFFSET(Admin!$AD$4,0,0,E$39,1))","v":18.39204541136283},{"$f":"NPV(DiscountRate,OFFSET(Admin!$AD$4,0,0,F$39,1))","v":18.39204541136283},{"$f":"NPV(DiscountRate,OFFSET(Admin!$AD$4,0,0,G$39,1))","v":18.39204541136283},{"$f":"NPV(DiscountRate,OFFSET(Admin!$AD$4,0,0,H$39,1))","v":21.355072337297553},{"$f":"NPV(DiscountRate,OFFSET(Admin!$AD$4,0,0,I$39,1))","v":21.355072337297553},{"$f":"NPV(DiscountRate,OFFSET(Admin!$AD$4,0,0,J$39,1))","v":18.39204541136283},{"$f":"NPV(DiscountRate,OFFSET(Admin!$AD$4,0,0,K$39,1))","v":21.355072337297553},{"$f":"NPV(DiscountRate,OFFSET(Admin!$AD$4,0,0,L$39,1))","v":16.481514592286072},{"$f":"NPV(DiscountRate,OFFSET(Admin!$AD$4,0,0,M$39,1))","v":16.481514592286072},{"$f":"NPV(DiscountRate,OFFSET(Admin!$AD$4,0,0,N$39,1))","v":11.517410896434169},{"$f":"NPV(DiscountRate,OFFSET(Admin!$AD$4,0,0,O$39,1))","v":11.517410896434169},{"$f":"NPV(DiscountRate,OFFSET(Admin!$AD$4,0,0,P$39,1))","v":16.481514592286072},{"$f":"NPV(DiscountRate,OFFSET(Admin!$AD$4,0,0,Q$39,1))","v":11.517410896434169},{"$f":"NPV(DiscountRate,OFFSET(Admin!$AD$4,0,0,R$39,1))","v":16.481514592286072},{"$f":"NPV(DiscountRate,OFFSET(Admin!$AD$4,0,0,S$39,1))","v":23.45561787062131},{"$f":"NPV(DiscountRate,OFFSET(Admin!$AD$4,0,0,T$39,1))","v":21.355072337297553},{"$f":"NPV(DiscountRate,OFFSET(Admin!$AD$4,0,0,U$39,1))","v":18.39204541136283},{"$f":"NPV(DiscountRate,OFFSET(Admin!$AD$4,0,0,V$39,1))","v":18.39204541136283},{"$f":"NPV(DiscountRate,OFFSET(Admin!$AD$4,0,0,W$39,1))","v":{"$error":"#VALUE!"}},{"$f":"NPV(DiscountRate,OFFSET(Admin!$AD$4,0,0,X$39,1))","v":{"$error":"#VALUE!"}},{"$f":"NPV(DiscountRate,OFFSET(Admin!$AD$4,0,0,Y$39,1))","v":{"$error":"#VALUE!"}},{"$f":"NPV(DiscountRate,OFFSET(Admin!$AD$4,0,0,Z$39,1))","v":{"$error":"#VALUE!"}},{"$f":"NPV(DiscountRate,OFFSET(Admin!$AD$4,0,0,AA$39,1))","v":{"$error":"#VALUE!"}},{"$f":"NPV(DiscountRate,OFFSET(Admin!$AD$4,0,0,AB$39,1))","v":{"$error":"#VALUE!"}},{"$f":"NPV(DiscountRate,OFFSET(Admin!$AD$4,0,0,AC$39,1))","v":{"$error":"#VALUE!"}},{"$f":"NPV(DiscountRate,OFFSET(Admin!$AD$4,0,0,AD$39,1))","v":{"$error":"#VALUE!"}},{"$f":"NPV(DiscountRate,OFFSET(Admin!$AD$4,0,0,AE$39,1))","v":{"$error":"#VALUE!"}}]
[null,null,"Discounted amount (lookout period)",null,{"$f":"NPV(DiscountRate,OFFSET(Admin!$AD$4,0,0,E$40,1))","v":18.39204541136283},{"$f":"NPV(DiscountRate,OFFSET(Admin!$AD$4,0,0,F$40,1))","v":18.39204541136283},{"$f":"NPV(DiscountRate,OFFSET(Admin!$AD$4,0,0,G$40,1))","v":18.39204541136283},{"$f":"NPV(DiscountRate,OFFSET(Admin!$AD$4,0,0,H$40,1))","v":21.355072337297553},{"$f":"NPV(DiscountRate,OFFSET(Admin!$AD$4,0,0,I$40,1))","v":21.355072337297553},{"$f":"NPV(DiscountRate,OFFSET(Admin!$AD$4,0,0,J$40,1))","v":18.39204541136283},{"$f":"NPV(DiscountRate,OFFSET(Admin!$AD$4,0,0,K$40,1))","v":21.355072337297553},{"$f":"NPV(DiscountRate,OFFSET(Admin!$AD$4,0,0,L$40,1))","v":16.481514592286072},{"$f":"NPV(DiscountRate,OFFSET(Admin!$AD$4,0,0,M$40,1))","v":16.481514592286072},{"$f":"NPV(DiscountRate,OFFSET(Admin!$AD$4,0,0,N$40,1))","v":11.517410896434169},{"$f":"NPV(DiscountRate,OFFSET(Admin!$AD$4,0,0,O$40,1))","v":11.517410896434169},{"$f":"NPV(DiscountRate,OFFSET(Admin!$AD$4,0,0,P$40,1))","v":16.481514592286072},{"$f":"NPV(DiscountRate,OFFSET(Admin!$AD$4,0,0,Q$40,1))","v":11.517410896434169},{"$f":"NPV(DiscountRate,OFFSET(Admin!$AD$4,0,0,R$40,1))","v":16.481514592286072},{"$f":"NPV(DiscountRate,OFFSET(Admin!$AD$4,0,0,S$40,1))","v":23.45561787062131},{"$f":"NPV(DiscountRate,OFFSET(Admin!$AD$4,0,0,T$40,1))","v":21.355072337297553},{"$f":"NPV(DiscountRate,OFFSET(Admin!$AD$4,0,0,U$40,1))","v":18.39204541136283},{"$f":"NPV(DiscountRate,OFFSET(Admin!$AD$4,0,0,V$40,1))","v":18.39204541136283},{"$f":"NPV(DiscountRate,OFFSET(Admin!$AD$4,0,0,W$40,1))","v":{"$error":"#VALUE!"}},{"$f":"NPV(DiscountRate,OFFSET(Admin!$AD$4,0,0,X$40,1))","v":{"$error":"#VALUE!"}},{"$f":"NPV(DiscountRate,OFFSET(Admin!$AD$4,0,0,Y$40,1))","v":{"$error":"#VALUE!"}},{"$f":"NPV(DiscountRate,OFFSET(Admin!$AD$4,0,0,Z$40,1))","v":{"$error":"#VALUE!"}},{"$f":"NPV(DiscountRate,OFFSET(Admin!$AD$4,0,0,AA$40,1))","v":{"$error":"#VALUE!"}},{"$f":"NPV(DiscountRate,OFFSET(Admin!$AD$4,0,0,AB$40,1))","v":{"$error":"#VALUE!"}},{"$f":"NPV(DiscountRate,OFFSET(Admin!$AD$4,0,0,AC$40,1))","v":{"$error":"#VALUE!"}},{"$f":"NPV(DiscountRate,OFFSET(Admin!$AD$4,0,0,AD$40,1))","v":{"$error":"#VALUE!"}},{"$f":"NPV(DiscountRate,OFFSET(Admin!$AD$4,0,0,AE$40,1))","v":{"$error":"#VALUE!"}}]
[null,null,"Construction time","years",{"$f":"IF('UserSettings&Results'!D61=\"CurrentTech\",VLOOKUP(E$32,TechData,MATCH($C43,TechData_h,0),FALSE),IF('UserSettings&Results'!D61=\"TestTech\",VLOOKUP(E$32,TestData,MATCH($C43,TechData_h,0),FALSE),VLOOKUP(E$32,OldTechData,MATCH($C43,TechData_h,0),FALSE)))","v":3.5},{"$f":"IF('UserSettings&Results'!E61=\"CurrentTech\",VLOOKUP(F$32,TechData,MATCH($C43,TechData_h,0),FALSE),IF('UserSettings&Results'!E61=\"TestTech\",VLOOKUP(F$32,TestData,MATCH($C43,TechData_h,0),FALSE),VLOOKUP(F$32,OldTechData,MATCH($C43,TechData_h,0),FALSE)))","v":3.5},{"$f":"IF('UserSettings&Results'!F61=\"CurrentTech\",VLOOKUP(G$32,TechData,MATCH($C43,TechData_h,0),FALSE),IF('UserSettings&Results'!F61=\"TestTech\",VLOOKUP(G$32,TestData,MATCH($C43,TechData_h,0),FALSE),VLOOKUP(G$32,OldTechData,MATCH($C43,TechData_h,0),FALSE)))","v":1.5},{"$f":"IF('UserSettings&Results'!G61=\"CurrentTech\",VLOOKUP(H$32,TechData,MATCH($C43,TechData_h,0),FALSE),IF('UserSettings&Results'!G61=\"TestTech\",VLOOKUP(H$32,TestData,MATCH($C43,TechData_h,0),FALSE),VLOOKUP(H$32,OldTechData,MATCH($C43,TechData_h,0),FALSE)))","v":0.5},{"$f":"IF('UserSettings&Results'!H61=\"CurrentTech\",VLOOKUP(I$32,TechData,MATCH($C43,TechData_h,0),FALSE),IF('UserSettings&Results'!H61=\"TestTech\",VLOOKUP(I$32,TestData,MATCH($C43,TechData_h,0),FALSE),VLOOKUP(I$32,OldTechData,MATCH($C43,TechData_h,0),FALSE)))","v":0.5},{"$f":"IF('UserSettings&Results'!I61=\"CurrentTech\",VLOOKUP(J$32,TechData,MATCH($C43,TechData_h,0),FALSE),IF('UserSettings&Results'!I61=\"TestTech\",VLOOKUP(J$32,TestData,MATCH($C43,TechData_h,0),FALSE),VLOOKUP(J$32,OldTechData,MATCH($C43,TechData_h,0),FALSE)))","v":0.5},{"$f":"IF('UserSettings&Results'!J61=\"CurrentTech\",VLOOKUP(K$32,TechData,MATCH($C43,TechData_h,0),FALSE),IF('UserSettings&Results'!J61=\"TestTech\",VLOOKUP(K$32,TestData,MATCH($C43,TechData_h,0),FALSE),VLOOKUP(K$32,OldTechData,MATCH($C43,TechData_h,0),FALSE)))","v":0.5},{"$f":"IF('UserSettings&Results'!K61=\"CurrentTech\",VLOOKUP(L$32,TechData,MATCH($C43,TechData_h,0),FALSE),IF('UserSettings&Results'!K61=\"TestTech\",VLOOKUP(L$32,TestData,MATCH($C43,TechData_h,0),FALSE),VLOOKUP(L$32,OldTechData,MATCH($C43,TechData_h,0),FALSE)))","v":2.5},{"$f":"IF('UserSettings&Results'!L61=\"CurrentTech\",VLOOKUP(M$32,TechData,MATCH($C43,TechData_h,0),FALSE),IF('UserSettings&Results'!L61=\"TestTech\",VLOOKUP(M$32,TestData,MATCH($C43,TechData_h,0),FALSE),VLOOKUP(M$32,OldTechData,MATCH($C43,TechData_h,0),FALSE)))","v":2.5},{"$f":"IF('UserSettings&Results'!M61=\"CurrentTech\",VLOOKUP(N$32,TechData,MATCH($C43,TechData_h,0),FALSE),IF('UserSettings&Results'!M61=\"TestTech\",VLOOKUP(N$32,TestData,MATCH($C43,TechData_h,0),FALSE),VLOOKUP(N$32,OldTechData,MATCH($C43,TechData_h,0),FALSE)))","v":2.5},{"$f":"IF('UserSettings&Results'!N61=\"CurrentTech\",VLOOKUP(O$32,TechData,MATCH($C43,TechData_h,0),FALSE),IF('UserSettings&Results'!N61=\"TestTech\",VLOOKUP(O$32,TestData,MATCH($C43,TechData_h,0),FALSE),VLOOKUP(O$32,OldTechData,MATCH($C43,TechData_h,0),FALSE)))","v":2},{"$f":"IF('UserSettings&Results'!O61=\"CurrentTech\",VLOOKUP(P$32,TechData,MATCH($C43,TechData_h,0),FALSE),IF('UserSettings&Results'!O61=\"TestTech\",VLOOKUP(P$32,TestData,MATCH($C43,TechData_h,0),FALSE),VLOOKUP(P$32,OldTechData,MATCH($C43,TechData_h,0),FALSE)))","v":4.5},{"$f":"IF('UserSettings&Results'!P61=\"CurrentTech\",VLOOKUP(Q$32,TechData,MATCH($C43,TechData_h,0),FALSE),IF('UserSettings&Results'!P61=\"TestTech\",VLOOKUP(Q$32,TestData,MATCH($C43,TechData_h,0),FALSE),VLOOKUP(Q$32,OldTechData,MATCH($C43,TechData_h,0),FALSE)))","v":0.5},{"$f":"IF('UserSettings&Results'!Q61=\"CurrentTech\",VLOOKUP(R$32,TechData,MATCH($C43,TechData_h,0),FALSE),IF('UserSettings&Results'!Q61=\"TestTech\",VLOOKUP(R$32,TestData,MATCH($C43,TechData_h,0),FALSE),VLOOKUP(R$32,OldTechData,MATCH($C43,TechData_h,0),FALSE)))","v":2.5},{"$f":"IF('UserSettings&Results'!R61=\"CurrentTech\",VLOOKUP(S$32,TechData,MATCH($C43,TechData_h,0),FALSE),IF('UserSettings&Results'!R61=\"TestTech\",VLOOKUP(S$32,TestData,MATCH($C43,TechData_h,0),FALSE),VLOOKUP(S$32,OldTechData,MATCH($C43,TechData_h,0),FALSE)))","v":7},{"$f":"IF('UserSettings&Results'!S61=\"CurrentTech\",VLOOKUP(T$32,TechData,MATCH($C43,TechData_h,0),FALSE),IF('UserSettings&Results'!S61=\"TestTech\",VLOOKUP(T$32,TestData,MATCH($C43,TechData_h,0),FALSE),VLOOKUP(T$32,OldTechData,MATCH($C43,TechData_h,0),FALSE)))","v":4},{"$f":"IF('UserSettings&Results'!T61=\"CurrentTech\",VLOOKUP(U$32,TechData,MATCH($C43,TechData_h,0),FALSE),IF('UserSettings&Results'!T61=\"TestTech\",VLOOKUP(U$32,TestData,MATCH($C43,TechData_h,0),FALSE),VLOOKUP(U$32,OldTechData,MATCH($C43,TechData_h,0),FALSE)))","v":2},{"$f":"IF('UserSettings&Results'!U61=\"CurrentTech\",VLOOKUP(V$32,TechData,MATCH($C43,TechData_h,0),FALSE),IF('UserSettings&Results'!U61=\"TestTech\",VLOOKUP(V$32,TestData,MATCH($C43,TechData_h,0),FALSE),VLOOKUP(V$32,OldTechData,MATCH($C43,TechData_h,0),FALSE)))","v":1.5},{"$f":"IF('UserSettings&Results'!V61=\"CurrentTech\",VLOOKUP(W$32,TechData,MATCH($C43,TechData_h,0),FALSE),IF('UserSettings&Results'!V61=\"TestTech\",VLOOKUP(W$32,TestData,MATCH($C43,TechData_h,0),FALSE),VLOOKUP(W$32,OldTechData,MATCH($C43,TechData_h,0),FALSE)))","v":""},{"$f":"IF('UserSettings&Results'!W61=\"CurrentTech\",VLOOKUP(X$32,TechData,MATCH($C43,TechData_h,0),FALSE),IF('UserSettings&Results'!W61=\"TestTech\",VLOOKUP(X$32,TestData,MATCH($C43,TechData_h,0),FALSE),VLOOKUP(X$32,OldTechData,MATCH($C43,TechData_h,0),FALSE)))","v":""},{"$f":"IF('UserSettings&Results'!X61=\"CurrentTech\",VLOOKUP(Y$32,TechData,MATCH($C43,TechData_h,0),FALSE),IF('UserSettings&Results'!X61=\"TestTech\",VLOOKUP(Y$32,TestData,MATCH($C43,TechData_h,0),FALSE),VLOOKUP(Y$32,OldTechData,MATCH($C43,TechData_h,0),FALSE)))","v":""},{"$f":"IF('UserSettings&Results'!Y61=\"CurrentTech\",VLOOKUP(Z$32,TechData,MATCH($C43,TechData_h,0),FALSE),IF('UserSettings&Results'!Y61=\"TestTech\",VLOOKUP(Z$32,TestData,MATCH($C43,TechData_h,0),FALSE),VLOOKUP(Z$32,OldTechData,MATCH($C43,TechData_h,0),FALSE)))","v":""},{"$f":"IF('UserSettings&Results'!Z61=\"CurrentTech\",VLOOKUP(AA$32,TechData,MATCH($C43,TechData_h,0),FALSE),IF('UserSettings&Results'!Z61=\"TestTech\",VLOOKUP(AA$32,TestData,MATCH($C43,TechData_h,0),FALSE),VLOOKUP(AA$32,OldTechData,MATCH($C43,TechData_h,0),FALSE)))","v":""},{"$f":"IF('UserSettings&Results'!AA61=\"CurrentTech\",VLOOKUP(AB$32,TechData,MATCH($C43,TechData_h,0),FALSE),IF('UserSettings&Results'!AA61=\"TestTech\",VLOOKUP(AB$32,TestData,MATCH($C43,TechData_h,0),FALSE),VLOOKUP(AB$32,OldTechData,MATCH($C43,TechData_h,0),FALSE)))","v":""},{"$f":"IF('UserSettings&Results'!AB61=\"CurrentTech\",VLOOKUP(AC$32,TechData,MATCH($C43,TechData_h,0),FALSE),IF('UserSettings&Results'!AB61=\"TestTech\",VLOOKUP(AC$32,TestData,MATCH($C43,TechData_h,0),FALSE),VLOOKUP(AC$32,OldTechData,MATCH($C43,TechData_h,0),FALSE)))","v":""},{"$f":"IF('UserSettings&Results'!AC61=\"CurrentTech\",VLOOKUP(AD$32,TechData,MATCH($C43,TechData_h,0),FALSE),IF('UserSettings&Results'!AC61=\"TestTech\",VLOOKUP(AD$32,TestData,MATCH($C43,TechData_h,0),FALSE),VLOOKUP(AD$32,OldTechData,MATCH($C43,TechData_h,0),FALSE)))","v":""},{"$f":"IF('UserSettings&Results'!AD61=\"CurrentTech\",VLOOKUP(AE$32,TechData,MATCH($C43,TechData_h,0),FALSE),IF('UserSettings&Results'!AD61=\"TestTech\",VLOOKUP(AE$32,TestData,MATCH($C43,TechData_h,0),FALSE),VLOOKUP(AE$32,OldTechData,MATCH($C43,TechData_h,0),FALSE)))","v":""}]
[null,null,"Geography",null,{"$f":"IF('UserSettings&Results'!D61=\"CurrentTech\",VLOOKUP(E$32,TechData,MATCH($C44,TechData_h,0),FALSE),IF('UserSettings&Results'!D61=\"TestTech\",VLOOKUP(E$32,TestData,MATCH($C44,TechData_h,0),FALSE),VLOOKUP(E$32,OldTechData,MATCH($C44,TechData_h,0),FALSE)))","v":"Central"},{"$f":"IF('UserSettings&Results'!E61=\"CurrentTech\",VLOOKUP(F$32,TechData,MATCH($C44,TechData_h,0),FALSE),IF('UserSettings&Results'!E61=\"TestTech\",VLOOKUP(F$32,TestData,MATCH($C44,TechData_h,0),FALSE),VLOOKUP(F$32,OldTechData,MATCH($C44,TechData_h,0),FALSE)))","v":"Central"},{"$f":"IF('UserSettings&Results'!F61=\"CurrentTech\",VLOOKUP(G$32,TechData,MATCH($C44,TechData_h,0),FALSE),IF('UserSettings&Results'!F61=\"TestTech\",VLOOKUP(G$32,TestData,MATCH($C44,TechData_h,0),FALSE),VLOOKUP(G$32,OldTechData,MATCH($C44,TechData_h,0),FALSE)))","v":"Central"},{"$f":"IF('UserSettings&Results'!G61=\"CurrentTech\",VLOOKUP(H$32,TechData,MATCH($C44,TechData_h,0),FALSE),IF('UserSettings&Results'!G61=\"TestTech\",VLOOKUP(H$32,TestData,MATCH($C44,TechData_h,0),FALSE),VLOOKUP(H$32,OldTechData,MATCH($C44,TechData_h,0),FALSE)))","v":"Decentral"},{"$f":"IF('UserSettings&Results'!H61=\"CurrentTech\",VLOOKUP(I$32,TechData,MATCH($C44,TechData_h,0),FALSE),IF('UserSettings&Results'!H61=\"TestTech\",VLOOKUP(I$32,TestData,MATCH($C44,TechData_h,0),FALSE),VLOOKUP(I$32,OldTechData,MATCH($C44,TechData_h,0),FALSE)))","v":"Decentral"},{"$f":"IF('UserSettings&Results'!I61=\"CurrentTech\",VLOOKUP(J$32,TechData,MATCH($C44,TechData_h,0),FALSE),IF('UserSettings&Results'!I61=\"TestTech\",VLOOKUP(J$32,TestData,MATCH($C44,TechData_h,0),FALSE),VLOOKUP(J$32,OldTechData,MATCH($C44,TechData_h,0),FALSE)))","v":"Decentral"},{"$f":"IF('UserSettings&Results'!J61=\"CurrentTech\",VLOOKUP(K$32,TechData,MATCH($C44,TechData_h,0),FALSE),IF('UserSettings&Results'!J61=\"TestTech\",VLOOKUP(K$32,TestData,MATCH($C44,TechData_h,0),FALSE),VLOOKUP(K$32,OldTechData,MATCH($C44,TechData_h,0),FALSE)))","v":"Decentral"},{"$f":"IF('UserSettings&Results'!K61=\"CurrentTech\",VLOOKUP(L$32,TechData,MATCH($C44,TechData_h,0),FALSE),IF('UserSettings&Results'!K61=\"TestTech\",VLOOKUP(L$32,TestData,MATCH($C44,TechData_h,0),FALSE),VLOOKUP(L$32,OldTechData,MATCH($C44,TechData_h,0),FALSE)))","v":"Decentral"},{"$f":"IF('UserSettings&Results'!L61=\"CurrentTech\",VLOOKUP(M$32,TechData,MATCH($C44,TechData_h,0),FALSE),IF('UserSettings&Results'!L61=\"TestTech\",VLOOKUP(M$32,TestData,MATCH($C44,TechData_h,0),FALSE),VLOOKUP(M$32,OldTechData,MATCH($C44,TechData_h,0),FALSE)))","v":"Central"},{"$f":"IF('UserSettings&Results'!M61=\"CurrentTech\",VLOOKUP(N$32,TechData,MATCH($C44,TechData_h,0),FALSE),IF('UserSettings&Results'!M61=\"TestTech\",VLOOKUP(N$32,TestData,MATCH($C44,TechData_h,0),FALSE),VLOOKUP(N$32,OldTechData,MATCH($C44,TechData_h,0),FALSE)))","v":"Central"},{"$f":"IF('UserSettings&Results'!N61=\"CurrentTech\",VLOOKUP(O$32,TechData,MATCH($C44,TechData_h,0),FALSE),IF('UserSettings&Results'!N61=\"TestTech\",VLOOKUP(O$32,TestData,MATCH($C44,TechData_h,0),FALSE),VLOOKUP(O$32,OldTechData,MATCH($C44,TechData_h,0),FALSE)))","v":"Central"},{"$f":"IF('UserSettings&Results'!O61=\"CurrentTech\",VLOOKUP(P$32,TechData,MATCH($C44,TechData_h,0),FALSE),IF('UserSettings&Results'!O61=\"TestTech\",VLOOKUP(P$32,TestData,MATCH($C44,TechData_h,0),FALSE),VLOOKUP(P$32,OldTechData,MATCH($C44,TechData_h,0),FALSE)))","v":"Central"},{"$f":"IF('UserSettings&Results'!P61=\"CurrentTech\",VLOOKUP(Q$32,TechData,MATCH($C44,TechData_h,0),FALSE),IF('UserSettings&Results'!P61=\"TestTech\",VLOOKUP(Q$32,TestData,MATCH($C44,TechData_h,0),FALSE),VLOOKUP(Q$32,OldTechData,MATCH($C44,TechData_h,0),FALSE)))","v":"Central"},{"$f":"IF('UserSettings&Results'!Q61=\"CurrentTech\",VLOOKUP(R$32,TechData,MATCH($C44,TechData_h,0),FALSE),IF('UserSettings&Results'!Q61=\"TestTech\",VLOOKUP(R$32,TestData,MATCH($C44,TechData_h,0),FALSE),VLOOKUP(R$32,OldTechData,MATCH($C44,TechData_h,0),FALSE)))","v":"Central"},{"$f":"IF('UserSettings&Results'!R61=\"CurrentTech\",VLOOKUP(S$32,TechData,MATCH($C44,TechData_h,0),FALSE),IF('UserSettings&Results'!R61=\"TestTech\",VLOOKUP(S$32,TestData,MATCH($C44,TechData_h,0),FALSE),VLOOKUP(S$32,OldTechData,MATCH($C44,TechData_h,0),FALSE)))","v":"Central"},{"$f":"IF('UserSettings&Results'!S61=\"CurrentTech\",VLOOKUP(T$32,TechData,MATCH($C44,TechData_h,0),FALSE),IF('UserSettings&Results'!S61=\"TestTech\",VLOOKUP(T$32,TestData,MATCH($C44,TechData_h,0),FALSE),VLOOKUP(T$32,OldTechData,MATCH($C44,TechData_h,0),FALSE)))","v":"Central"},{"$f":"IF('UserSettings&Results'!T61=\"CurrentTech\",VLOOKUP(U$32,TechData,MATCH($C44,TechData_h,0),FALSE),IF('UserSettings&Results'!T61=\"TestTech\",VLOOKUP(U$32,TestData,MATCH($C44,TechData_h,0),FALSE),VLOOKUP(U$32,OldTechData,MATCH($C44,TechData_h,0),FALSE)))","v":"Central"},{"$f":"IF('UserSettings&Results'!U61=\"CurrentTech\",VLOOKUP(V$32,TechData,MATCH($C44,TechData_h,0),FALSE),IF('UserSettings&Results'!U61=\"TestTech\",VLOOKUP(V$32,TestData,MATCH($C44,TechData_h,0),FALSE),VLOOKUP(V$32,OldTechData,MATCH($C44,TechData_h,0),FALSE)))","v":"Decentral"},{"$f":"IF('UserSettings&Results'!V61=\"CurrentTech\",VLOOKUP(W$32,TechData,MATCH($C44,TechData_h,0),FALSE),IF('UserSettings&Results'!V61=\"TestTech\",VLOOKUP(W$32,TestData,MATCH($C44,TechData_h,0),FALSE),VLOOKUP(W$32,OldTechData,MATCH($C44,TechData_h,0),FALSE)))","v":""},{"$f":"IF('UserSettings&Results'!W61=\"CurrentTech\",VLOOKUP(X$32,TechData,MATCH($C44,TechData_h,0),FALSE),IF('UserSettings&Results'!W61=\"TestTech\",VLOOKUP(X$32,TestData,MATCH($C44,TechData_h,0),FALSE),VLOOKUP(X$32,OldTechData,MATCH($C44,TechData_h,0),FALSE)))","v":""},{"$f":"IF('UserSettings&Results'!X61=\"CurrentTech\",VLOOKUP(Y$32,TechData,MATCH($C44,TechData_h,0),FALSE),IF('UserSettings&Results'!X61=\"TestTech\",VLOOKUP(Y$32,TestData,MATCH($C44,TechData_h,0),FALSE),VLOOKUP(Y$32,OldTechData,MATCH($C44,TechData_h,0),FALSE)))","v":""},{"$f":"IF('UserSettings&Results'!Y61=\"CurrentTech\",VLOOKUP(Z$32,TechData,MATCH($C44,TechData_h,0),FALSE),IF('UserSettings&Results'!Y61=\"TestTech\",VLOOKUP(Z$32,TestData,MATCH($C44,TechData_h,0),FALSE),VLOOKUP(Z$32,OldTechData,MATCH($C44,TechData_h,0),FALSE)))","v":""},{"$f":"IF('UserSettings&Results'!Z61=\"CurrentTech\",VLOOKUP(AA$32,TechData,MATCH($C44,TechData_h,0),FALSE),IF('UserSettings&Results'!Z61=\"TestTech\",VLOOKUP(AA$32,TestData,MATCH($C44,TechData_h,0),FALSE),VLOOKUP(AA$32,OldTechData,MATCH($C44,TechData_h,0),FALSE)))","v":""},{"$f":"IF('UserSettings&Results'!AA61=\"CurrentTech\",VLOOKUP(AB$32,TechData,MATCH($C44,TechData_h,0),FALSE),IF('UserSettings&Results'!AA61=\"TestTech\",VLOOKUP(AB$32,TestData,MATCH($C44,TechData_h,0),FALSE),VLOOKUP(AB$32,OldTechData,MATCH($C44,TechData_h,0),FALSE)))","v":""},{"$f":"IF('UserSettings&Results'!AB61=\"CurrentTech\",VLOOKUP(AC$32,TechData,MATCH($C44,TechData_h,0),FALSE),IF('UserSettings&Results'!AB61=\"TestTech\",VLOOKUP(AC$32,TestData,MATCH($C44,TechData_h,0),FALSE),VLOOKUP(AC$32,OldTechData,MATCH($C44,TechData_h,0),FALSE)))","v":""},{"$f":"IF('UserSettings&Results'!AC61=\"CurrentTech\",VLOOKUP(AD$32,TechData,MATCH($C44,TechData_h,0),FALSE),IF('UserSettings&Results'!AC61=\"TestTech\",VLOOKUP(AD$32,TestData,MATCH($C44,TechData_h,0),FALSE),VLOOKUP(AD$32,OldTechData,MATCH($C44,TechData_h,0),FALSE)))","v":""},{"$f":"IF('UserSettings&Results'!AD61=\"CurrentTech\",VLOOKUP(AE$32,TechData,MATCH($C44,TechData_h,0),FALSE),IF('UserSettings&Results'!AD61=\"TestTech\",VLOOKUP(AE$32,TestData,MATCH($C44,TechData_h,0),FALSE),VLOOKUP(AE$32,OldTechData,MATCH($C44,TechData_h,0),FALSE)))","v":""}]
[null,null,"Emission factor CO2","kg/GJ",{"$f":"IFERROR(VLOOKUP(E34,EmissionFactorsCO2,MATCH(E37,EmissionFactorsCO2_h,0),FALSE),0)","v":0},0,0,0,0,{"$f":"IFERROR(VLOOKUP(J34,EmissionFactorsCO2,MATCH(J37,EmissionFactorsCO2_h,0),FALSE),0)","v":0},{"$f":"IFERROR(VLOOKUP(K34,EmissionFactorsCO2,MATCH(K37,EmissionFactorsCO2_h,0),FALSE),0)","v":0},0,0,0,0,94.3,94.3,57,0,94.3,57,0,0,0,0,0,0,0,0,0,0]
[null,null,"Emission factor CH4","kg CO2-equivalent/GJ",{"$f":"IF('UserSettings&Results'!D61=\"CurrentTech\",VLOOKUP(E$32,TechData,MATCH($C46,TechData_h,0),FALSE),IF('UserSettings&Results'!D61=\"TestTech\",VLOOKUP(E$32,TestData,MATCH($C46,TechData_h,0),FALSE),VLOOKUP(E$32,OldTechData,MATCH($C46,TechData_h,0),FALSE)))/1000*VLOOKUP(E34,EmissionFactorsGHG,MATCH(\"CH4\",EmissionFactorsGHG_h,0),FALSE)","v":0},{"$f":"IF('UserSettings&Results'!E61=\"CurrentTech\",VLOOKUP(F$32,TechData,MATCH($C46,TechData_h,0),FALSE),IF('UserSettings&Results'!E61=\"TestTech\",VLOOKUP(F$32,TestData,MATCH($C46,TechData_h,0),FALSE),VLOOKUP(F$32,OldTechData,MATCH($C46,TechData_h,0),FALSE)))/1000*VLOOKUP(F34,EmissionFactorsGHG,MATCH(\"CH4\",EmissionFactorsGHG_h,0),FALSE)","v":0},{"$f":"IF('UserSettings&Results'!F61=\"CurrentTech\",VLOOKUP(G$32,TechData,MATCH($C46,TechData_h,0),FALSE),IF('UserSettings&Results'!F61=\"TestTech\",VLOOKUP(G$32,TestData,MATCH($C46,TechData_h,0),FALSE),VLOOKUP(G$32,OldTechData,MATCH($C46,TechData_h,0),FALSE)))/1000*VLOOKUP(G34,EmissionFactorsGHG,MATCH(\"CH4\",EmissionFactorsGHG_h,0),FALSE)","v":0},{"$f":"IF('UserSettings&Results'!G61=\"CurrentTech\",VLOOKUP(H$32,TechData,MATCH($C46,TechData_h,0),FALSE),IF('UserSettings&Results'!G61=\"TestTech\",VLOOKUP(H$32,TestData,MATCH($C46,TechData_h,0),FALSE),VLOOKUP(H$32,OldTechData,MATCH($C46,TechData_h,0),FALSE)))/1000*VLOOKUP(H34,EmissionFactorsGHG,MATCH(\"CH4\",EmissionFactorsGHG_h,0),FALSE)","v":0},{"$f":"IF('UserSettings&Results'!H61=\"CurrentTech\",VLOOKUP(I$32,TechData,MATCH($C46,TechData_h,0),FALSE),IF('UserSettings&Results'!H61=\"TestTech\",VLOOKUP(I$32,TestData,MATCH($C46,TechData_h,0),FALSE),VLOOKUP(I$32,OldTechData,MATCH($C46,TechData_h,0),FALSE)))/1000*VLOOKUP(I34,EmissionFactorsGHG,MATCH(\"CH4\",EmissionFactorsGHG_h,0),FALSE)","v":0},{"$f":"IF('UserSettings&Results'!I61=\"CurrentTech\",VLOOKUP(J$32,TechData,MATCH($C46,TechData_h,0),FALSE),IF('UserSettings&Results'!I61=\"TestTech\",VLOOKUP(J$32,TestData,MATCH($C46,TechData_h,0),FALSE),VLOOKUP(J$32,OldTechData,MATCH($C46,TechData_h,0),FALSE)))/1000*VLOOKUP(J34,EmissionFactorsGHG,MATCH(\"CH4\",EmissionFactorsGHG_h,0),FALSE)","v":0},{"$f":"IF('UserSettings&Results'!J61=\"CurrentTech\",VLOOKUP(K$32,TechData,MATCH($C46,TechData_h,0),FALSE),IF('UserSettings&Results'!J61=\"TestTech\",VLOOKUP(K$32,TestData,MATCH($C46,TechData_h,0),FALSE),VLOOKUP(K$32,OldTechData,MATCH($C46,TechData_h,0),FALSE)))/1000*VLOOKUP(K34,EmissionFactorsGHG,MATCH(\"CH4\",EmissionFactorsGHG_h,0),FALSE)","v":0},{"$f":"IF('UserSettings&Results'!K61=\"CurrentTech\",VLOOKUP(L$32,TechData,MATCH($C46,TechData_h,0),FALSE),IF('UserSettings&Results'!K61=\"TestTech\",VLOOKUP(L$32,TestData,MATCH($C46,TechData_h,0),FALSE),VLOOKUP(L$32,OldTechData,MATCH($C46,TechData_h,0),FALSE)))/1000*VLOOKUP(L34,EmissionFactorsGHG,MATCH(\"CH4\",EmissionFactorsGHG_h,0),FALSE)","v":0},{"$f":"IF('UserSettings&Results'!L61=\"CurrentTech\",VLOOKUP(M$32,TechData,MATCH($C46,TechData_h,0),FALSE),IF('UserSettings&Results'!L61=\"TestTech\",VLOOKUP(M$32,TestData,MATCH($C46,TechData_h,0),FALSE),VLOOKUP(M$32,OldTechData,MATCH($C46,TechData_h,0),FALSE)))/1000*VLOOKUP(M34,EmissionFactorsGHG,MATCH(\"CH4\",EmissionFactorsGHG_h,0),FALSE)","v":3.7975000000000002E-2},{"$f":"IF('UserSettings&Results'!M61=\"CurrentTech\",VLOOKUP(N$32,TechData,MATCH($C46,TechData_h,0),FALSE),IF('UserSettings&Results'!M61=\"TestTech\",VLOOKUP(N$32,TestData,MATCH($C46,TechData_h,0),FALSE),VLOOKUP(N$32,OldTechData,MATCH($C46,TechData_h,0),FALSE)))/1000*VLOOKUP(N34,EmissionFactorsGHG,MATCH(\"CH4\",EmissionFactorsGHG_h,0),FALSE)","v":1.2500000000000001E-2},{"$f":"IF('UserSettings&Results'!N61=\"CurrentTech\",VLOOKUP(O$32,TechData,MATCH($C46,TechData_h,0),FALSE),IF('UserSettings&Results'!N61=\"TestTech\",VLOOKUP(O$32,TestData,MATCH($C46,TechData_h,0),FALSE),VLOOKUP(O$32,OldTechData,MATCH($C46,TechData_h,0),FALSE)))/1000*VLOOKUP(O34,EmissionFactorsGHG,MATCH(\"CH4\",EmissionFactorsGHG_h,0),FALSE)","v":7.7499999999999999E-2},{"$f":"IF('UserSettings&Results'!O61=\"CurrentTech\",VLOOKUP(P$32,TechData,MATCH($C46,TechData_h,0),FALSE),IF('UserSettings&Results'!O61=\"TestTech\",VLOOKUP(P$32,TestData,MATCH($C46,TechData_h,0),FALSE),VLOOKUP(P$32,OldTechData,MATCH($C46,TechData_h,0),FALSE)))/1000*VLOOKUP(P34,EmissionFactorsGHG,MATCH(\"CH4\",EmissionFactorsGHG_h,0),FALSE)","v":3.7499999999999999E-2},{"$f":"IF('UserSettings&Results'!P61=\"CurrentTech\",VLOOKUP(Q$32,TechData,MATCH($C46,TechData_h,0),FALSE),IF('UserSettings&Results'!P61=\"TestTech\",VLOOKUP(Q$32,TestData,MATCH($C46,TechData_h,0),FALSE),VLOOKUP(Q$32,OldTechData,MATCH($C46,TechData_h,0),FALSE)))/1000*VLOOKUP(Q34,EmissionFactorsGHG,MATCH(\"CH4\",EmissionFactorsGHG_h,0),FALSE)","v":3.7499999999999999E-2},{"$f":"IF('UserSettings&Results'!Q61=\"CurrentTech\",VLOOKUP(R$32,TechData,MATCH($C46,TechData_h,0),FALSE),IF('UserSettings&Results'!Q61=\"TestTech\",VLOOKUP(R$32,TestData,MATCH($C46,TechData_h,0),FALSE),VLOOKUP(R$32,OldTechData,MATCH($C46,TechData_h,0),FALSE)))/1000*VLOOKUP(R34,EmissionFactorsGHG,MATCH(\"CH4\",EmissionFactorsGHG_h,0),FALSE)","v":3.7499999999999999E-2},{"$f":"IF('UserSettings&Results'!R61=\"CurrentTech\",VLOOKUP(S$32,TechData,MATCH($C46,TechData_h,0),FALSE),IF('UserSettings&Results'!R61=\"TestTech\",VLOOKUP(S$32,TestData,MATCH($C46,TechData_h,0),FALSE),VLOOKUP(S$32,OldTechData,MATCH($C46,TechData_h,0),FALSE)))/1000*VLOOKUP(S34,EmissionFactorsGHG,MATCH(\"CH4\",EmissionFactorsGHG_h,0),FALSE)","v":0},{"$f":"IF('UserSettings&Results'!S61=\"CurrentTech\",VLOOKUP(T$32,TechData,MATCH($C46,TechData_h,0),FALSE),IF('UserSettings&Results'!S61=\"TestTech\",VLOOKUP(T$32,TestData,MATCH($C46,TechData_h,0),FALSE),VLOOKUP(T$32,OldTechData,MATCH($C46,TechData_h,0),FALSE)))/1000*VLOOKUP(T34,EmissionFactorsGHG,MATCH(\"CH4\",EmissionFactorsGHG_h,0),FALSE)","v":3.7499999999999999E-2},{"$f":"IF('UserSettings&Results'!T61=\"CurrentTech\",VLOOKUP(U$32,TechData,MATCH($C46,TechData_h,0),FALSE),IF('UserSettings&Results'!T61=\"TestTech\",VLOOKUP(U$32,TestData,MATCH($C46,TechData_h,0),FALSE),VLOOKUP(U$32,OldTechData,MATCH($C46,TechData_h,0),FALSE)))/1000*VLOOKUP(U34,EmissionFactorsGHG,MATCH(\"CH4\",EmissionFactorsGHG_h,0),FALSE)","v":0.05},{"$f":"IF('UserSettings&Results'!U61=\"CurrentTech\",VLOOKUP(V$32,TechData,MATCH($C46,TechData_h,0),FALSE),IF('UserSettings&Results'!U61=\"TestTech\",VLOOKUP(V$32,TestData,MATCH($C46,TechData_h,0),FALSE),VLOOKUP(V$32,OldTechData,MATCH($C46,TechData_h,0),FALSE)))/1000*VLOOKUP(V34,EmissionFactorsGHG,MATCH(\"CH4\",EmissionFactorsGHG_h,0),FALSE)","v":0},{"$f":"IF('UserSettings&Results'!V61=\"CurrentTech\",VLOOKUP(W$32,TechData,MATCH($C46,TechData_h,0),FALSE),IF('UserSettings&Results'!V61=\"TestTech\",VLOOKUP(W$32,TestData,MATCH($C46,TechData_h,0),FALSE),VLOOKUP(W$32,OldTechData,MATCH($C46,TechData_h,0),FALSE)))/1000*VLOOKUP(W34,EmissionFactorsGHG,MATCH(\"CH4\",EmissionFactorsGHG_h,0),FALSE)","v":{"$error":"#VALUE!"}},{"$f":"IF('UserSettings&Results'!W61=\"CurrentTech\",VLOOKUP(X$32,TechData,MATCH($C46,TechData_h,0),FALSE),IF('UserSettings&Results'!W61=\"TestTech\",VLOOKUP(X$32,TestData,MATCH($C46,TechData_h,0),FALSE),VLOOKUP(X$32,OldTechData,MATCH($C46,TechData_h,0),FALSE)))/1000*VLOOKUP(X34,EmissionFactorsGHG,MATCH(\"CH4\",EmissionFactorsGHG_h,0),FALSE)","v":{"$error":"#VALUE!"}},{"$f":"IF('UserSettings&Results'!X61=\"CurrentTech\",VLOOKUP(Y$32,TechData,MATCH($C46,TechData_h,0),FALSE),IF('UserSettings&Results'!X61=\"TestTech\",VLOOKUP(Y$32,TestData,MATCH($C46,TechData_h,0),FALSE),VLOOKUP(Y$32,OldTechData,MATCH($C46,TechData_h,0),FALSE)))/1000*VLOOKUP(Y34,EmissionFactorsGHG,MATCH(\"CH4\",EmissionFactorsGHG_h,0),FALSE)","v":{"$error":"#VALUE!"}},{"$f":"IF('UserSettings&Results'!Y61=\"CurrentTech\",VLOOKUP(Z$32,TechData,MATCH($C46,TechData_h,0),FALSE),IF('UserSettings&Results'!Y61=\"TestTech\",VLOOKUP(Z$32,TestData,MATCH($C46,TechData_h,0),FALSE),VLOOKUP(Z$32,OldTechData,MATCH($C46,TechData_h,0),FALSE)))/1000*VLOOKUP(Z34,EmissionFactorsGHG,MATCH(\"CH4\",EmissionFactorsGHG_h,0),FALSE)","v":{"$error":"#VALUE!"}},{"$f":"IF('UserSettings&Results'!Z61=\"CurrentTech\",VLOOKUP(AA$32,TechData,MATCH($C46,TechData_h,0),FALSE),IF('UserSettings&Results'!Z61=\"TestTech\",VLOOKUP(AA$32,TestData,MATCH($C46,TechData_h,0),FALSE),VLOOKUP(AA$32,OldTechData,MATCH($C46,TechData_h,0),FALSE)))/1000*VLOOKUP(AA34,EmissionFactorsGHG,MATCH(\"CH4\",EmissionFactorsGHG_h,0),FALSE)","v":{"$error":"#VALUE!"}},{"$f":"IF('UserSettings&Results'!AA61=\"CurrentTech\",VLOOKUP(AB$32,TechData,MATCH($C46,TechData_h,0),FALSE),IF('UserSettings&Results'!AA61=\"TestTech\",VLOOKUP(AB$32,TestData,MATCH($C46,TechData_h,0),FALSE),VLOOKUP(AB$32,OldTechData,MATCH($C46,TechData_h,0),FALSE)))/1000*VLOOKUP(AB34,EmissionFactorsGHG,MATCH(\"CH4\",EmissionFactorsGHG_h,0),FALSE)","v":{"$error":"#VALUE!"}},{"$f":"IF('UserSettings&Results'!AB61=\"CurrentTech\",VLOOKUP(AC$32,TechData,MATCH($C46,TechData_h,0),FALSE),IF('UserSettings&Results'!AB61=\"TestTech\",VLOOKUP(AC$32,TestData,MATCH($C46,TechData_h,0),FALSE),VLOOKUP(AC$32,OldTechData,MATCH($C46,TechData_h,0),FALSE)))/1000*VLOOKUP(AC34,EmissionFactorsGHG,MATCH(\"CH4\",EmissionFactorsGHG_h,0),FALSE)","v":{"$error":"#VALUE!"}},{"$f":"IF('UserSettings&Results'!AC61=\"CurrentTech\",VLOOKUP(AD$32,TechData,MATCH($C46,TechData_h,0),FALSE),IF('UserSettings&Results'!AC61=\"TestTech\",VLOOKUP(AD$32,TestData,MATCH($C46,TechData_h,0),FALSE),VLOOKUP(AD$32,OldTechData,MATCH($C46,TechData_h,0),FALSE)))/1000*VLOOKUP(AD34,EmissionFactorsGHG,MATCH(\"CH4\",EmissionFactorsGHG_h,0),FALSE)","v":{"$error":"#VALUE!"}},{"$f":"IF('UserSettings&Results'!AD61=\"CurrentTech\",VLOOKUP(AE$32,TechData,MATCH($C46,TechData_h,0),FALSE),IF('UserSettings&Results'!AD61=\"TestTech\",VLOOKUP(AE$32,TestData,MATCH($C46,TechData_h,0),FALSE),VLOOKUP(AE$32,OldTechData,MATCH($C46,TechData_h,0),FALSE)))/1000*VLOOKUP(AE34,EmissionFactorsGHG,MATCH(\"CH4\",EmissionFactorsGHG_h,0),FALSE)","v":{"$error":"#VALUE!"}}]
[null,null,"Emission factor N2O","kg CO2-equivalent/GJ",{"$f":"IF('UserSettings&Results'!D61=\"CurrentTech\",VLOOKUP(E$32,TechData,MATCH($C47,TechData_h,0),FALSE),IF('UserSettings&Results'!D61=\"TestTech\",VLOOKUP(E$32,TestData,MATCH($C47,TechData_h,0),FALSE),VLOOKUP(E$32,OldTechData,MATCH($C47,TechData_h,0),FALSE)))/1000*VLOOKUP(E34,EmissionFactorsGHG,MATCH(\"N2O\",EmissionFactorsGHG_h,0),FALSE)","v":0},{"$f":"IF('UserSettings&Results'!E61=\"CurrentTech\",VLOOKUP(F$32,TechData,MATCH($C47,TechData_h,0),FALSE),IF('UserSettings&Results'!E61=\"TestTech\",VLOOKUP(F$32,TestData,MATCH($C47,TechData_h,0),FALSE),VLOOKUP(F$32,OldTechData,MATCH($C47,TechData_h,0),FALSE)))/1000*VLOOKUP(F34,EmissionFactorsGHG,MATCH(\"N2O\",EmissionFactorsGHG_h,0),FALSE)","v":0},{"$f":"IF('UserSettings&Results'!F61=\"CurrentTech\",VLOOKUP(G$32,TechData,MATCH($C47,TechData_h,0),FALSE),IF('UserSettings&Results'!F61=\"TestTech\",VLOOKUP(G$32,TestData,MATCH($C47,TechData_h,0),FALSE),VLOOKUP(G$32,OldTechData,MATCH($C47,TechData_h,0),FALSE)))/1000*VLOOKUP(G34,EmissionFactorsGHG,MATCH(\"N2O\",EmissionFactorsGHG_h,0),FALSE)","v":0},{"$f":"IF('UserSettings&Results'!G61=\"CurrentTech\",VLOOKUP(H$32,TechData,MATCH($C47,TechData_h,0),FALSE),IF('UserSettings&Results'!G61=\"TestTech\",VLOOKUP(H$32,TestData,MATCH($C47,TechData_h,0),FALSE),VLOOKUP(H$32,OldTechData,MATCH($C47,TechData_h,0),FALSE)))/1000*VLOOKUP(H34,EmissionFactorsGHG,MATCH(\"N2O\",EmissionFactorsGHG_h,0),FALSE)","v":0},{"$f":"IF('UserSettings&Results'!H61=\"CurrentTech\",VLOOKUP(I$32,TechData,MATCH($C47,TechData_h,0),FALSE),IF('UserSettings&Results'!H61=\"TestTech\",VLOOKUP(I$32,TestData,MATCH($C47,TechData_h,0),FALSE),VLOOKUP(I$32,OldTechData,MATCH($C47,TechData_h,0),FALSE)))/1000*VLOOKUP(I34,EmissionFactorsGHG,MATCH(\"N2O\",EmissionFactorsGHG_h,0),FALSE)","v":0},{"$f":"IF('UserSettings&Results'!I61=\"CurrentTech\",VLOOKUP(J$32,TechData,MATCH($C47,TechData_h,0),FALSE),IF('UserSettings&Results'!I61=\"TestTech\",VLOOKUP(J$32,TestData,MATCH($C47,TechData_h,0),FALSE),VLOOKUP(J$32,OldTechData,MATCH($C47,TechData_h,0),FALSE)))/1000*VLOOKUP(J34,EmissionFactorsGHG,MATCH(\"N2O\",EmissionFactorsGHG_h,0),FALSE)","v":0},{"$f":"IF('UserSettings&Results'!J61=\"CurrentTech\",VLOOKUP(K$32,TechData,MATCH($C47,TechData_h,0),FALSE),IF('UserSettings&Results'!J61=\"TestTech\",VLOOKUP(K$32,TestData,MATCH($C47,TechData_h,0),FALSE),VLOOKUP(K$32,OldTechData,MATCH($C47,TechData_h,0),FALSE)))/1000*VLOOKUP(K34,EmissionFactorsGHG,MATCH(\"N2O\",EmissionFactorsGHG_h,0),FALSE)","v":0},{"$f":"IF('UserSettings&Results'!K61=\"CurrentTech\",VLOOKUP(L$32,TechData,MATCH($C47,TechData_h,0),FALSE),IF('UserSettings&Results'!K61=\"TestTech\",VLOOKUP(L$32,TestData,MATCH($C47,TechData_h,0),FALSE),VLOOKUP(L$32,OldTechData,MATCH($C47,TechData_h,0),FALSE)))/1000*VLOOKUP(L34,EmissionFactorsGHG,MATCH(\"N2O\",EmissionFactorsGHG_h,0),FALSE)","v":0.29799999999999999},{"$f":"IF('UserSettings&Results'!L61=\"CurrentTech\",VLOOKUP(M$32,TechData,MATCH($C47,TechData_h,0),FALSE),IF('UserSettings&Results'!L61=\"TestTech\",VLOOKUP(M$32,TestData,MATCH($C47,TechData_h,0),FALSE),VLOOKUP(M$32,OldTechData,MATCH($C47,TechData_h,0),FALSE)))/1000*VLOOKUP(M34,EmissionFactorsGHG,MATCH(\"N2O\",EmissionFactorsGHG_h,0),FALSE)","v":0.15486464000000003},{"$f":"IF('UserSettings&Results'!M61=\"CurrentTech\",VLOOKUP(N$32,TechData,MATCH($C47,TechData_h,0),FALSE),IF('UserSettings&Results'!M61=\"TestTech\",VLOOKUP(N$32,TestData,MATCH($C47,TechData_h,0),FALSE),VLOOKUP(N$32,OldTechData,MATCH($C47,TechData_h,0),FALSE)))/1000*VLOOKUP(N34,EmissionFactorsGHG,MATCH(\"N2O\",EmissionFactorsGHG_h,0),FALSE)","v":1.49},{"$f":"IF('UserSettings&Results'!N61=\"CurrentTech\",VLOOKUP(O$32,TechData,MATCH($C47,TechData_h,0),FALSE),IF('UserSettings&Results'!N61=\"TestTech\",VLOOKUP(O$32,TestData,MATCH($C47,TechData_h,0),FALSE),VLOOKUP(O$32,OldTechData,MATCH($C47,TechData_h,0),FALSE)))/1000*VLOOKUP(O34,EmissionFactorsGHG,MATCH(\"N2O\",EmissionFactorsGHG_h,0),FALSE)","v":1.788},{"$f":"IF('UserSettings&Results'!O61=\"CurrentTech\",VLOOKUP(P$32,TechData,MATCH($C47,TechData_h,0),FALSE),IF('UserSettings&Results'!O61=\"TestTech\",VLOOKUP(P$32,TestData,MATCH($C47,TechData_h,0),FALSE),VLOOKUP(P$32,OldTechData,MATCH($C47,TechData_h,0),FALSE)))/1000*VLOOKUP(P34,EmissionFactorsGHG,MATCH(\"N2O\",EmissionFactorsGHG_h,0),FALSE)","v":0.2384},{"$f":"IF('UserSettings&Results'!P61=\"CurrentTech\",VLOOKUP(Q$32,TechData,MATCH($C47,TechData_h,0),FALSE),IF('UserSettings&Results'!P61=\"TestTech\",VLOOKUP(Q$32,TestData,MATCH($C47,TechData_h,0),FALSE),VLOOKUP(Q$32,OldTechData,MATCH($C47,TechData_h,0),FALSE)))/1000*VLOOKUP(Q34,EmissionFactorsGHG,MATCH(\"N2O\",EmissionFactorsGHG_h,0),FALSE)","v":0.2384},{"$f":"IF('UserSettings&Results'!Q61=\"CurrentTech\",VLOOKUP(R$32,TechData,MATCH($C47,TechData_h,0),FALSE),IF('UserSettings&Results'!Q61=\"TestTech\",VLOOKUP(R$32,TestData,MATCH($C47,TechData_h,0),FALSE),VLOOKUP(R$32,OldTechData,MATCH($C47,TechData_h,0),FALSE)))/1000*VLOOKUP(R34,EmissionFactorsGHG,MATCH(\"N2O\",EmissionFactorsGHG_h,0),FALSE)","v":0.29799999999999999},{"$f":"IF('UserSettings&Results'!R61=\"CurrentTech\",VLOOKUP(S$32,TechData,MATCH($C47,TechData_h,0),FALSE),IF('UserSettings&Results'!R61=\"TestTech\",VLOOKUP(S$32,TestData,MATCH($C47,TechData_h,0),FALSE),VLOOKUP(S$32,OldTechData,MATCH($C47,TechData_h,0),FALSE)))/1000*VLOOKUP(S34,EmissionFactorsGHG,MATCH(\"N2O\",EmissionFactorsGHG_h,0),FALSE)","v":0},{"$f":"IF('UserSettings&Results'!S61=\"CurrentTech\",VLOOKUP(T$32,TechData,MATCH($C47,TechData_h,0),FALSE),IF('UserSettings&Results'!S61=\"TestTech\",VLOOKUP(T$32,TestData,MATCH($C47,TechData_h,0),FALSE),VLOOKUP(T$32,OldTechData,MATCH($C47,TechData_h,0),FALSE)))/1000*VLOOKUP(T34,EmissionFactorsGHG,MATCH(\"N2O\",EmissionFactorsGHG_h,0),FALSE)","v":0.2384},{"$f":"IF('UserSettings&Results'!T61=\"CurrentTech\",VLOOKUP(U$32,TechData,MATCH($C47,TechData_h,0),FALSE),IF('UserSettings&Results'!T61=\"TestTech\",VLOOKUP(U$32,TestData,MATCH($C47,TechData_h,0),FALSE),VLOOKUP(U$32,OldTechData,MATCH($C47,TechData_h,0),FALSE)))/1000*VLOOKUP(U34,EmissionFactorsGHG,MATCH(\"N2O\",EmissionFactorsGHG_h,0),FALSE)","v":0.29799999999999999},{"$f":"IF('UserSettings&Results'!U61=\"CurrentTech\",VLOOKUP(V$32,TechData,MATCH($C47,TechData_h,0),FALSE),IF('UserSettings&Results'!U61=\"TestTech\",VLOOKUP(V$32,TestData,MATCH($C47,TechData_h,0),FALSE),VLOOKUP(V$32,OldTechData,MATCH($C47,TechData_h,0),FALSE)))/1000*VLOOKUP(V34,EmissionFactorsGHG,MATCH(\"N2O\",EmissionFactorsGHG_h,0),FALSE)","v":0},{"$f":"IF('UserSettings&Results'!V61=\"CurrentTech\",VLOOKUP(W$32,TechData,MATCH($C47,TechData_h,0),FALSE),IF('UserSettings&Results'!V61=\"TestTech\",VLOOKUP(W$32,TestData,MATCH($C47,TechData_h,0),FALSE),VLOOKUP(W$32,OldTechData,MATCH($C47,TechData_h,0),FALSE)))/1000*VLOOKUP(W34,EmissionFactorsGHG,MATCH(\"N2O\",EmissionFactorsGHG_h,0),FALSE)","v":{"$error":"#VALUE!"}},{"$f":"IF('UserSettings&Results'!W61=\"CurrentTech\",VLOOKUP(X$32,TechData,MATCH($C47,TechData_h,0),FALSE),IF('UserSettings&Results'!W61=\"TestTech\",VLOOKUP(X$32,TestData,MATCH($C47,TechData_h,0),FALSE),VLOOKUP(X$32,OldTechData,MATCH($C47,TechData_h,0),FALSE)))/1000*VLOOKUP(X34,EmissionFactorsGHG,MATCH(\"N2O\",EmissionFactorsGHG_h,0),FALSE)","v":{"$error":"#VALUE!"}},{"$f":"IF('UserSettings&Results'!X61=\"CurrentTech\",VLOOKUP(Y$32,TechData,MATCH($C47,TechData_h,0),FALSE),IF('UserSettings&Results'!X61=\"TestTech\",VLOOKUP(Y$32,TestData,MATCH($C47,TechData_h,0),FALSE),VLOOKUP(Y$32,OldTechData,MATCH($C47,TechData_h,0),FALSE)))/1000*VLOOKUP(Y34,EmissionFactorsGHG,MATCH(\"N2O\",EmissionFactorsGHG_h,0),FALSE)","v":{"$error":"#VALUE!"}},{"$f":"IF('UserSettings&Results'!Y61=\"CurrentTech\",VLOOKUP(Z$32,TechData,MATCH($C47,TechData_h,0),FALSE),IF('UserSettings&Results'!Y61=\"TestTech\",VLOOKUP(Z$32,TestData,MATCH($C47,TechData_h,0),FALSE),VLOOKUP(Z$32,OldTechData,MATCH($C47,TechData_h,0),FALSE)))/1000*VLOOKUP(Z34,EmissionFactorsGHG,MATCH(\"N2O\",EmissionFactorsGHG_h,0),FALSE)","v":{"$error":"#VALUE!"}},{"$f":"IF('UserSettings&Results'!Z61=\"CurrentTech\",VLOOKUP(AA$32,TechData,MATCH($C47,TechData_h,0),FALSE),IF('UserSettings&Results'!Z61=\"TestTech\",VLOOKUP(AA$32,TestData,MATCH($C47,TechData_h,0),FALSE),VLOOKUP(AA$32,OldTechData,MATCH($C47,TechData_h,0),FALSE)))/1000*VLOOKUP(AA34,EmissionFactorsGHG,MATCH(\"N2O\",EmissionFactorsGHG_h,0),FALSE)","v":{"$error":"#VALUE!"}},{"$f":"IF('UserSettings&Results'!AA61=\"CurrentTech\",VLOOKUP(AB$32,TechData,MATCH($C47,TechData_h,0),FALSE),IF('UserSettings&Results'!AA61=\"TestTech\",VLOOKUP(AB$32,TestData,MATCH($C47,TechData_h,0),FALSE),VLOOKUP(AB$32,OldTechData,MATCH($C47,TechData_h,0),FALSE)))/1000*VLOOKUP(AB34,EmissionFactorsGHG,MATCH(\"N2O\",EmissionFactorsGHG_h,0),FALSE)","v":{"$error":"#VALUE!"}},{"$f":"IF('UserSettings&Results'!AB61=\"CurrentTech\",VLOOKUP(AC$32,TechData,MATCH($C47,TechData_h,0),FALSE),IF('UserSettings&Results'!AB61=\"TestTech\",VLOOKUP(AC$32,TestData,MATCH($C47,TechData_h,0),FALSE),VLOOKUP(AC$32,OldTechData,MATCH($C47,TechData_h,0),FALSE)))/1000*VLOOKUP(AC34,EmissionFactorsGHG,MATCH(\"N2O\",EmissionFactorsGHG_h,0),FALSE)","v":{"$error":"#VALUE!"}},{"$f":"IF('UserSettings&Results'!AC61=\"CurrentTech\",VLOOKUP(AD$32,TechData,MATCH($C47,TechData_h,0),FALSE),IF('UserSettings&Results'!AC61=\"TestTech\",VLOOKUP(AD$32,TestData,MATCH($C47,TechData_h,0),FALSE),VLOOKUP(AD$32,OldTechData,MATCH($C47,TechData_h,0),FALSE)))/1000*VLOOKUP(AD34,EmissionFactorsGHG,MATCH(\"N2O\",EmissionFactorsGHG_h,0),FALSE)","v":{"$error":"#VALUE!"}},{"$f":"IF('UserSettings&Results'!AD61=\"CurrentTech\",VLOOKUP(AE$32,TechData,MATCH($C47,TechData_h,0),FALSE),IF('UserSettings&Results'!AD61=\"TestTech\",VLOOKUP(AE$32,TestData,MATCH($C47,TechData_h,0),FALSE),VLOOKUP(AE$32,OldTechData,MATCH($C47,TechData_h,0),FALSE)))/1000*VLOOKUP(AE34,EmissionFactorsGHG,MATCH(\"N2O\",EmissionFactorsGHG_h,0),FALSE)","v":{"$error":"#VALUE!"}}]
[null,null,"Desulphur","%",{"$f":"IF('UserSettings&Results'!D61=\"CurrentTech\",VLOOKUP(E$32,TechData,MATCH($C48,TechData_h,0),FALSE),IF('UserSettings&Results'!D61=\"TestTech\",VLOOKUP(E$32,TestData,MATCH($C48,TechData_h,0),FALSE),VLOOKUP(E$32,OldTechData,MATCH($C48,TechData_h,0),FALSE)))","v":0},{"$f":"IF('UserSettings&Results'!E61=\"CurrentTech\",VLOOKUP(F$32,TechData,MATCH($C48,TechData_h,0),FALSE),IF('UserSettings&Results'!E61=\"TestTech\",VLOOKUP(F$32,TestData,MATCH($C48,TechData_h,0),FALSE),VLOOKUP(F$32,OldTechData,MATCH($C48,TechData_h,0),FALSE)))","v":0},{"$f":"IF('UserSettings&Results'!F61=\"CurrentTech\",VLOOKUP(G$32,TechData,MATCH($C48,TechData_h,0),FALSE),IF('UserSettings&Results'!F61=\"TestTech\",VLOOKUP(G$32,TestData,MATCH($C48,TechData_h,0),FALSE),VLOOKUP(G$32,OldTechData,MATCH($C48,TechData_h,0),FALSE)))","v":0},{"$f":"IF('UserSettings&Results'!G61=\"CurrentTech\",VLOOKUP(H$32,TechData,MATCH($C48,TechData_h,0),FALSE),IF('UserSettings&Results'!G61=\"TestTech\",VLOOKUP(H$32,TestData,MATCH($C48,TechData_h,0),FALSE),VLOOKUP(H$32,OldTechData,MATCH($C48,TechData_h,0),FALSE)))","v":0},{"$f":"IF('UserSettings&Results'!H61=\"CurrentTech\",VLOOKUP(I$32,TechData,MATCH($C48,TechData_h,0),FALSE),IF('UserSettings&Results'!H61=\"TestTech\",VLOOKUP(I$32,TestData,MATCH($C48,TechData_h,0),FALSE),VLOOKUP(I$32,OldTechData,MATCH($C48,TechData_h,0),FALSE)))","v":0},{"$f":"IF('UserSettings&Results'!I61=\"CurrentTech\",VLOOKUP(J$32,TechData,MATCH($C48,TechData_h,0),FALSE),IF('UserSettings&Results'!I61=\"TestTech\",VLOOKUP(J$32,TestData,MATCH($C48,TechData_h,0),FALSE),VLOOKUP(J$32,OldTechData,MATCH($C48,TechData_h,0),FALSE)))","v":0},{"$f":"IF('UserSettings&Results'!J61=\"CurrentTech\",VLOOKUP(K$32,TechData,MATCH($C48,TechData_h,0),FALSE),IF('UserSettings&Results'!J61=\"TestTech\",VLOOKUP(K$32,TestData,MATCH($C48,TechData_h,0),FALSE),VLOOKUP(K$32,OldTechData,MATCH($C48,TechData_h,0),FALSE)))","v":0},{"$f":"IF('UserSettings&Results'!K61=\"CurrentTech\",VLOOKUP(L$32,TechData,MATCH($C48,TechData_h,0),FALSE),IF('UserSettings&Results'!K61=\"TestTech\",VLOOKUP(L$32,TestData,MATCH($C48,TechData_h,0),FALSE),VLOOKUP(L$32,OldTechData,MATCH($C48,TechData_h,0),FALSE)))","v":0.98250000000000004},{"$f":"IF('UserSettings&Results'!L61=\"CurrentTech\",VLOOKUP(M$32,TechData,MATCH($C48,TechData_h,0),FALSE),IF('UserSettings&Results'!L61=\"TestTech\",VLOOKUP(M$32,TestData,MATCH($C48,TechData_h,0),FALSE),VLOOKUP(M$32,OldTechData,MATCH($C48,TechData_h,0),FALSE)))","v":0.97970000000000002},{"$f":"IF('UserSettings&Results'!M61=\"CurrentTech\",VLOOKUP(N$32,TechData,MATCH($C48,TechData_h,0),FALSE),IF('UserSettings&Results'!M61=\"TestTech\",VLOOKUP(N$32,TestData,MATCH($C48,TechData_h,0),FALSE),VLOOKUP(N$32,OldTechData,MATCH($C48,TechData_h,0),FALSE)))","v":0.97},{"$f":"IF('UserSettings&Results'!N61=\"CurrentTech\",VLOOKUP(O$32,TechData,MATCH($C48,TechData_h,0),FALSE),IF('UserSettings&Results'!N61=\"TestTech\",VLOOKUP(O$32,TestData,MATCH($C48,TechData_h,0),FALSE),VLOOKUP(O$32,OldTechData,MATCH($C48,TechData_h,0),FALSE)))","v":1},{"$f":"IF('UserSettings&Results'!O61=\"CurrentTech\",VLOOKUP(P$32,TechData,MATCH($C48,TechData_h,0),FALSE),IF('UserSettings&Results'!O61=\"TestTech\",VLOOKUP(P$32,TestData,MATCH($C48,TechData_h,0),FALSE),VLOOKUP(P$32,OldTechData,MATCH($C48,TechData_h,0),FALSE)))","v":0.97},{"$f":"IF('UserSettings&Results'!P61=\"CurrentTech\",VLOOKUP(Q$32,TechData,MATCH($C48,TechData_h,0),FALSE),IF('UserSettings&Results'!P61=\"TestTech\",VLOOKUP(Q$32,TestData,MATCH($C48,TechData_h,0),FALSE),VLOOKUP(Q$32,OldTechData,MATCH($C48,TechData_h,0),FALSE)))","v":0.97},{"$f":"IF('UserSettings&Results'!Q61=\"CurrentTech\",VLOOKUP(R$32,TechData,MATCH($C48,TechData_h,0),FALSE),IF('UserSettings&Results'!Q61=\"TestTech\",VLOOKUP(R$32,TestData,MATCH($C48,TechData_h,0),FALSE),VLOOKUP(R$32,OldTechData,MATCH($C48,TechData_h,0),FALSE)))","v":0},{"$f":"IF('UserSettings&Results'!R61=\"CurrentTech\",VLOOKUP(S$32,TechData,MATCH($C48,TechData_h,0),FALSE),IF('UserSettings&Results'!R61=\"TestTech\",VLOOKUP(S$32,TestData,MATCH($C48,TechData_h,0),FALSE),VLOOKUP(S$32,OldTechData,MATCH($C48,TechData_h,0),FALSE)))","v":0},{"$f":"IF('UserSettings&Results'!S61=\"CurrentTech\",VLOOKUP(T$32,TechData,MATCH($C48,TechData_h,0),FALSE),IF('UserSettings&Results'!S61=\"TestTech\",VLOOKUP(T$32,TestData,MATCH($C48,TechData_h,0),FALSE),VLOOKUP(T$32,OldTechData,MATCH($C48,TechData_h,0),FALSE)))","v":0.95},{"$f":"IF('UserSettings&Results'!T61=\"CurrentTech\",VLOOKUP(U$32,TechData,MATCH($C48,TechData_h,0),FALSE),IF('UserSettings&Results'!T61=\"TestTech\",VLOOKUP(U$32,TestData,MATCH($C48,TechData_h,0),FALSE),VLOOKUP(U$32,OldTechData,MATCH($C48,TechData_h,0),FALSE)))","v":0},{"$f":"IF('UserSettings&Results'!U61=\"CurrentTech\",VLOOKUP(V$32,TechData,MATCH($C48,TechData_h,0),FALSE),IF('UserSettings&Results'!U61=\"TestTech\",VLOOKUP(V$32,TestData,MATCH($C48,TechData_h,0),FALSE),VLOOKUP(V$32,OldTechData,MATCH($C48,TechData_h,0),FALSE)))","v":0},{"$f":"IF('UserSettings&Results'!V61=\"CurrentTech\",VLOOKUP(W$32,TechData,MATCH($C48,TechData_h,0),FALSE),IF('UserSettings&Results'!V61=\"TestTech\",VLOOKUP(W$32,TestData,MATCH($C48,TechData_h,0),FALSE),VLOOKUP(W$32,OldTechData,MATCH($C48,TechData_h,0),FALSE)))","v":""},{"$f":"IF('UserSettings&Results'!W61=\"CurrentTech\",VLOOKUP(X$32,TechData,MATCH($C48,TechData_h,0),FALSE),IF('UserSettings&Results'!W61=\"TestTech\",VLOOKUP(X$32,TestData,MATCH($C48,TechData_h,0),FALSE),VLOOKUP(X$32,OldTechData,MATCH($C48,TechData_h,0),FALSE)))","v":""},{"$f":"IF('UserSettings&Results'!X61=\"CurrentTech\",VLOOKUP(Y$32,TechData,MATCH($C48,TechData_h,0),FALSE),IF('UserSettings&Results'!X61=\"TestTech\",VLOOKUP(Y$32,TestData,MATCH($C48,TechData_h,0),FALSE),VLOOKUP(Y$32,OldTechData,MATCH($C48,TechData_h,0),FALSE)))","v":""},{"$f":"IF('UserSettings&Results'!Y61=\"CurrentTech\",VLOOKUP(Z$32,TechData,MATCH($C48,TechData_h,0),FALSE),IF('UserSettings&Results'!Y61=\"TestTech\",VLOOKUP(Z$32,TestData,MATCH($C48,TechData_h,0),FALSE),VLOOKUP(Z$32,OldTechData,MATCH($C48,TechData_h,0),FALSE)))","v":""},{"$f":"IF('UserSettings&Results'!Z61=\"CurrentTech\",VLOOKUP(AA$32,TechData,MATCH($C48,TechData_h,0),FALSE),IF('UserSettings&Results'!Z61=\"TestTech\",VLOOKUP(AA$32,TestData,MATCH($C48,TechData_h,0),FALSE),VLOOKUP(AA$32,OldTechData,MATCH($C48,TechData_h,0),FALSE)))","v":""},{"$f":"IF('UserSettings&Results'!AA61=\"CurrentTech\",VLOOKUP(AB$32,TechData,MATCH($C48,TechData_h,0),FALSE),IF('UserSettings&Results'!AA61=\"TestTech\",VLOOKUP(AB$32,TestData,MATCH($C48,TechData_h,0),FALSE),VLOOKUP(AB$32,OldTechData,MATCH($C48,TechData_h,0),FALSE)))","v":""},{"$f":"IF('UserSettings&Results'!AB61=\"CurrentTech\",VLOOKUP(AC$32,TechData,MATCH($C48,TechData_h,0),FALSE),IF('UserSettings&Results'!AB61=\"TestTech\",VLOOKUP(AC$32,TestData,MATCH($C48,TechData_h,0),FALSE),VLOOKUP(AC$32,OldTechData,MATCH($C48,TechData_h,0),FALSE)))","v":""},{"$f":"IF('UserSettings&Results'!AC61=\"CurrentTech\",VLOOKUP(AD$32,TechData,MATCH($C48,TechData_h,0),FALSE),IF('UserSettings&Results'!AC61=\"TestTech\",VLOOKUP(AD$32,TestData,MATCH($C48,TechData_h,0),FALSE),VLOOKUP(AD$32,OldTechData,MATCH($C48,TechData_h,0),FALSE)))","v":""},{"$f":"IF('UserSettings&Results'!AD61=\"CurrentTech\",VLOOKUP(AE$32,TechData,MATCH($C48,TechData_h,0),FALSE),IF('UserSettings&Results'!AD61=\"TestTech\",VLOOKUP(AE$32,TestData,MATCH($C48,TechData_h,0),FALSE),VLOOKUP(AE$32,OldTechData,MATCH($C48,TechData_h,0),FALSE)))","v":""}]
[null,null,"Emission factor NOx","g/GJ",{"$f":"IF('UserSettings&Results'!D61=\"CurrentTech\",VLOOKUP(E$32,TechData,MATCH($C49,TechData_h,0),FALSE),IF('UserSettings&Results'!D61=\"TestTech\",VLOOKUP(E$32,TestData,MATCH($C49,TechData_h,0),FALSE),VLOOKUP(E$32,OldTechData,MATCH($C49,TechData_h,0),FALSE)))","v":0},{"$f":"IF('UserSettings&Results'!E61=\"CurrentTech\",VLOOKUP(F$32,TechData,MATCH($C49,TechData_h,0),FALSE),IF('UserSettings&Results'!E61=\"TestTech\",VLOOKUP(F$32,TestData,MATCH($C49,TechData_h,0),FALSE),VLOOKUP(F$32,OldTechData,MATCH($C49,TechData_h,0),FALSE)))","v":0},{"$f":"IF('UserSettings&Results'!F61=\"CurrentTech\",VLOOKUP(G$32,TechData,MATCH($C49,TechData_h,0),FALSE),IF('UserSettings&Results'!F61=\"TestTech\",VLOOKUP(G$32,TestData,MATCH($C49,TechData_h,0),FALSE),VLOOKUP(G$32,OldTechData,MATCH($C49,TechData_h,0),FALSE)))","v":0},{"$f":"IF('UserSettings&Results'!G61=\"CurrentTech\",VLOOKUP(H$32,TechData,MATCH($C49,TechData_h,0),FALSE),IF('UserSettings&Results'!G61=\"TestTech\",VLOOKUP(H$32,TestData,MATCH($C49,TechData_h,0),FALSE),VLOOKUP(H$32,OldTechData,MATCH($C49,TechData_h,0),FALSE)))","v":0},{"$f":"IF('UserSettings&Results'!H61=\"CurrentTech\",VLOOKUP(I$32,TechData,MATCH($C49,TechData_h,0),FALSE),IF('UserSettings&Results'!H61=\"TestTech\",VLOOKUP(I$32,TestData,MATCH($C49,TechData_h,0),FALSE),VLOOKUP(I$32,OldTechData,MATCH($C49,TechData_h,0),FALSE)))","v":0},{"$f":"IF('UserSettings&Results'!I61=\"CurrentTech\",VLOOKUP(J$32,TechData,MATCH($C49,TechData_h,0),FALSE),IF('UserSettings&Results'!I61=\"TestTech\",VLOOKUP(J$32,TestData,MATCH($C49,TechData_h,0),FALSE),VLOOKUP(J$32,OldTechData,MATCH($C49,TechData_h,0),FALSE)))","v":0},{"$f":"IF('UserSettings&Results'!J61=\"CurrentTech\",VLOOKUP(K$32,TechData,MATCH($C49,TechData_h,0),FALSE),IF('UserSettings&Results'!J61=\"TestTech\",VLOOKUP(K$32,TestData,MATCH($C49,TechData_h,0),FALSE),VLOOKUP(K$32,OldTechData,MATCH($C49,TechData_h,0),FALSE)))","v":0},{"$f":"IF('UserSettings&Results'!K61=\"CurrentTech\",VLOOKUP(L$32,TechData,MATCH($C49,TechData_h,0),FALSE),IF('UserSettings&Results'!K61=\"TestTech\",VLOOKUP(L$32,TestData,MATCH($C49,TechData_h,0),FALSE),VLOOKUP(L$32,OldTechData,MATCH($C49,TechData_h,0),FALSE)))","v":35},{"$f":"IF('UserSettings&Results'!L61=\"CurrentTech\",VLOOKUP(M$32,TechData,MATCH($C49,TechData_h,0),FALSE),IF('UserSettings&Results'!L61=\"TestTech\",VLOOKUP(M$32,TestData,MATCH($C49,TechData_h,0),FALSE),VLOOKUP(M$32,OldTechData,MATCH($C49,TechData_h,0),FALSE)))","v":40.6},{"$f":"IF('UserSettings&Results'!M61=\"CurrentTech\",VLOOKUP(N$32,TechData,MATCH($C49,TechData_h,0),FALSE),IF('UserSettings&Results'!M61=\"TestTech\",VLOOKUP(N$32,TestData,MATCH($C49,TechData_h,0),FALSE),VLOOKUP(N$32,OldTechData,MATCH($C49,TechData_h,0),FALSE)))","v":35},{"$f":"IF('UserSettings&Results'!N61=\"CurrentTech\",VLOOKUP(O$32,TechData,MATCH($C49,TechData_h,0),FALSE),IF('UserSettings&Results'!N61=\"TestTech\",VLOOKUP(O$32,TestData,MATCH($C49,TechData_h,0),FALSE),VLOOKUP(O$32,OldTechData,MATCH($C49,TechData_h,0),FALSE)))","v":35},{"$f":"IF('UserSettings&Results'!O61=\"CurrentTech\",VLOOKUP(P$32,TechData,MATCH($C49,TechData_h,0),FALSE),IF('UserSettings&Results'!O61=\"TestTech\",VLOOKUP(P$32,TestData,MATCH($C49,TechData_h,0),FALSE),VLOOKUP(P$32,OldTechData,MATCH($C49,TechData_h,0),FALSE)))","v":35},{"$f":"IF('UserSettings&Results'!P61=\"CurrentTech\",VLOOKUP(Q$32,TechData,MATCH($C49,TechData_h,0),FALSE),IF('UserSettings&Results'!P61=\"TestTech\",VLOOKUP(Q$32,TestData,MATCH($C49,TechData_h,0),FALSE),VLOOKUP(Q$32,OldTechData,MATCH($C49,TechData_h,0),FALSE)))","v":35},{"$f":"IF('UserSettings&Results'!Q61=\"CurrentTech\",VLOOKUP(R$32,TechData,MATCH($C49,TechData_h,0),FALSE),IF('UserSettings&Results'!Q61=\"TestTech\",VLOOKUP(R$32,TestData,MATCH($C49,TechData_h,0),FALSE),VLOOKUP(R$32,OldTechData,MATCH($C49,TechData_h,0),FALSE)))","v":10},{"$f":"IF('UserSettings&Results'!R61=\"CurrentTech\",VLOOKUP(S$32,TechData,MATCH($C49,TechData_h,0),FALSE),IF('UserSettings&Results'!R61=\"TestTech\",VLOOKUP(S$32,TestData,MATCH($C49,TechData_h,0),FALSE),VLOOKUP(S$32,OldTechData,MATCH($C49,TechData_h,0),FALSE)))","v":0},{"$f":"IF('UserSettings&Results'!S61=\"CurrentTech\",VLOOKUP(T$32,TechData,MATCH($C49,TechData_h,0),FALSE),IF('UserSettings&Results'!S61=\"TestTech\",VLOOKUP(T$32,TestData,MATCH($C49,TechData_h,0),FALSE),VLOOKUP(T$32,OldTechData,MATCH($C49,TechData_h,0),FALSE)))","v":196.30555555555557},{"$f":"IF('UserSettings&Results'!T61=\"CurrentTech\",VLOOKUP(U$32,TechData,MATCH($C49,TechData_h,0),FALSE),IF('UserSettings&Results'!T61=\"TestTech\",VLOOKUP(U$32,TestData,MATCH($C49,TechData_h,0),FALSE),VLOOKUP(U$32,OldTechData,MATCH($C49,TechData_h,0),FALSE)))","v":39},{"$f":"IF('UserSettings&Results'!U61=\"CurrentTech\",VLOOKUP(V$32,TechData,MATCH($C49,TechData_h,0),FALSE),IF('UserSettings&Results'!U61=\"TestTech\",VLOOKUP(V$32,TestData,MATCH($C49,TechData_h,0),FALSE),VLOOKUP(V$32,OldTechData,MATCH($C49,TechData_h,0),FALSE)))","v":0},{"$f":"IF('UserSettings&Results'!V61=\"CurrentTech\",VLOOKUP(W$32,TechData,MATCH($C49,TechData_h,0),FALSE),IF('UserSettings&Results'!V61=\"TestTech\",VLOOKUP(W$32,TestData,MATCH($C49,TechData_h,0),FALSE),VLOOKUP(W$32,OldTechData,MATCH($C49,TechData_h,0),FALSE)))","v":""},{"$f":"IF('UserSettings&Results'!W61=\"CurrentTech\",VLOOKUP(X$32,TechData,MATCH($C49,TechData_h,0),FALSE),IF('UserSettings&Results'!W61=\"TestTech\",VLOOKUP(X$32,TestData,MATCH($C49,TechData_h,0),FALSE),VLOOKUP(X$32,OldTechData,MATCH($C49,TechData_h,0),FALSE)))","v":""},{"$f":"IF('UserSettings&Results'!X61=\"CurrentTech\",VLOOKUP(Y$32,TechData,MATCH($C49,TechData_h,0),FALSE),IF('UserSettings&Results'!X61=\"TestTech\",VLOOKUP(Y$32,TestData,MATCH($C49,TechData_h,0),FALSE),VLOOKUP(Y$32,OldTechData,MATCH($C49,TechData_h,0),FALSE)))","v":""},{"$f":"IF('UserSettings&Results'!Y61=\"CurrentTech\",VLOOKUP(Z$32,TechData,MATCH($C49,TechData_h,0),FALSE),IF('UserSettings&Results'!Y61=\"TestTech\",VLOOKUP(Z$32,TestData,MATCH($C49,TechData_h,0),FALSE),VLOOKUP(Z$32,OldTechData,MATCH($C49,TechData_h,0),FALSE)))","v":""},{"$f":"IF('UserSettings&Results'!Z61=\"CurrentTech\",VLOOKUP(AA$32,TechData,MATCH($C49,TechData_h,0),FALSE),IF('UserSettings&Results'!Z61=\"TestTech\",VLOOKUP(AA$32,TestData,MATCH($C49,TechData_h,0),FALSE),VLOOKUP(AA$32,OldTechData,MATCH($C49,TechData_h,0),FALSE)))","v":""},{"$f":"IF('UserSettings&Results'!AA61=\"CurrentTech\",VLOOKUP(AB$32,TechData,MATCH($C49,TechData_h,0),FALSE),IF('UserSettings&Results'!AA61=\"TestTech\",VLOOKUP(AB$32,TestData,MATCH($C49,TechData_h,0),FALSE),VLOOKUP(AB$32,OldTechData,MATCH($C49,TechData_h,0),FALSE)))","v":""},{"$f":"IF('UserSettings&Results'!AB61=\"CurrentTech\",VLOOKUP(AC$32,TechData,MATCH($C49,TechData_h,0),FALSE),IF('UserSettings&Results'!AB61=\"TestTech\",VLOOKUP(AC$32,TestData,MATCH($C49,TechData_h,0),FALSE),VLOOKUP(AC$32,OldTechData,MATCH($C49,TechData_h,0),FALSE)))","v":""},{"$f":"IF('UserSettings&Results'!AC61=\"CurrentTech\",VLOOKUP(AD$32,TechData,MATCH($C49,TechData_h,0),FALSE),IF('UserSettings&Results'!AC61=\"TestTech\",VLOOKUP(AD$32,TestData,MATCH($C49,TechData_h,0),FALSE),VLOOKUP(AD$32,OldTechData,MATCH($C49,TechData_h,0),FALSE)))","v":""},{"$f":"IF('UserSettings&Results'!AD61=\"CurrentTech\",VLOOKUP(AE$32,TechData,MATCH($C49,TechData_h,0),FALSE),IF('UserSettings&Results'!AD61=\"TestTech\",VLOOKUP(AE$32,TestData,MATCH($C49,TechData_h,0),FALSE),VLOOKUP(AE$32,OldTechData,MATCH($C49,TechData_h,0),FALSE)))","v":""}]
[null,null,"Emission factor PM2,5","g/GJ",{"$f":"IF('UserSettings&Results'!D61=\"CurrentTech\",VLOOKUP(E$32,TechData,MATCH($C50,TechData_h,0),FALSE),IF('UserSettings&Results'!D61=\"TestTech\",VLOOKUP(E$32,TestData,MATCH($C50,TechData_h,0),FALSE),VLOOKUP(E$32,OldTechData,MATCH($C50,TechData_h,0),FALSE)))","v":0},{"$f":"IF('UserSettings&Results'!E61=\"CurrentTech\",VLOOKUP(F$32,TechData,MATCH($C50,TechData_h,0),FALSE),IF('UserSettings&Results'!E61=\"TestTech\",VLOOKUP(F$32,TestData,MATCH($C50,TechData_h,0),FALSE),VLOOKUP(F$32,OldTechData,MATCH($C50,TechData_h,0),FALSE)))","v":0},{"$f":"IF('UserSettings&Results'!F61=\"CurrentTech\",VLOOKUP(G$32,TechData,MATCH($C50,TechData_h,0),FALSE),IF('UserSettings&Results'!F61=\"TestTech\",VLOOKUP(G$32,TestData,MATCH($C50,TechData_h,0),FALSE),VLOOKUP(G$32,OldTechData,MATCH($C50,TechData_h,0),FALSE)))","v":0},{"$f":"IF('UserSettings&Results'!G61=\"CurrentTech\",VLOOKUP(H$32,TechData,MATCH($C50,TechData_h,0),FALSE),IF('UserSettings&Results'!G61=\"TestTech\",VLOOKUP(H$32,TestData,MATCH($C50,TechData_h,0),FALSE),VLOOKUP(H$32,OldTechData,MATCH($C50,TechData_h,0),FALSE)))","v":0},{"$f":"IF('UserSettings&Results'!H61=\"CurrentTech\",VLOOKUP(I$32,TechData,MATCH($C50,TechData_h,0),FALSE),IF('UserSettings&Results'!H61=\"TestTech\",VLOOKUP(I$32,TestData,MATCH($C50,TechData_h,0),FALSE),VLOOKUP(I$32,OldTechData,MATCH($C50,TechData_h,0),FALSE)))","v":0},{"$f":"IF('UserSettings&Results'!I61=\"CurrentTech\",VLOOKUP(J$32,TechData,MATCH($C50,TechData_h,0),FALSE),IF('UserSettings&Results'!I61=\"TestTech\",VLOOKUP(J$32,TestData,MATCH($C50,TechData_h,0),FALSE),VLOOKUP(J$32,OldTechData,MATCH($C50,TechData_h,0),FALSE)))","v":0},{"$f":"IF('UserSettings&Results'!J61=\"CurrentTech\",VLOOKUP(K$32,TechData,MATCH($C50,TechData_h,0),FALSE),IF('UserSettings&Results'!J61=\"TestTech\",VLOOKUP(K$32,TestData,MATCH($C50,TechData_h,0),FALSE),VLOOKUP(K$32,OldTechData,MATCH($C50,TechData_h,0),FALSE)))","v":0},{"$f":"IF('UserSettings&Results'!K61=\"CurrentTech\",VLOOKUP(L$32,TechData,MATCH($C50,TechData_h,0),FALSE),IF('UserSettings&Results'!K61=\"TestTech\",VLOOKUP(L$32,TestData,MATCH($C50,TechData_h,0),FALSE),VLOOKUP(L$32,OldTechData,MATCH($C50,TechData_h,0),FALSE)))","v":0.3},{"$f":"IF('UserSettings&Results'!L61=\"CurrentTech\",VLOOKUP(M$32,TechData,MATCH($C50,TechData_h,0),FALSE),IF('UserSettings&Results'!L61=\"TestTech\",VLOOKUP(M$32,TestData,MATCH($C50,TechData_h,0),FALSE),VLOOKUP(M$32,OldTechData,MATCH($C50,TechData_h,0),FALSE)))","v":0.3},{"$f":"IF('UserSettings&Results'!M61=\"CurrentTech\",VLOOKUP(N$32,TechData,MATCH($C50,TechData_h,0),FALSE),IF('UserSettings&Results'!M61=\"TestTech\",VLOOKUP(N$32,TestData,MATCH($C50,TechData_h,0),FALSE),VLOOKUP(N$32,OldTechData,MATCH($C50,TechData_h,0),FALSE)))","v":0.3},{"$f":"IF('UserSettings&Results'!N61=\"CurrentTech\",VLOOKUP(O$32,TechData,MATCH($C50,TechData_h,0),FALSE),IF('UserSettings&Results'!N61=\"TestTech\",VLOOKUP(O$32,TestData,MATCH($C50,TechData_h,0),FALSE),VLOOKUP(O$32,OldTechData,MATCH($C50,TechData_h,0),FALSE)))","v":0.3},{"$f":"IF('UserSettings&Results'!O61=\"CurrentTech\",VLOOKUP(P$32,TechData,MATCH($C50,TechData_h,0),FALSE),IF('UserSettings&Results'!O61=\"TestTech\",VLOOKUP(P$32,TestData,MATCH($C50,TechData_h,0),FALSE),VLOOKUP(P$32,OldTechData,MATCH($C50,TechData_h,0),FALSE)))","v":2.1},{"$f":"IF('UserSettings&Results'!P61=\"CurrentTech\",VLOOKUP(Q$32,TechData,MATCH($C50,TechData_h,0),FALSE),IF('UserSettings&Results'!P61=\"TestTech\",VLOOKUP(Q$32,TestData,MATCH($C50,TechData_h,0),FALSE),VLOOKUP(Q$32,OldTechData,MATCH($C50,TechData_h,0),FALSE)))","v":2.1},{"$f":"IF('UserSettings&Results'!Q61=\"CurrentTech\",VLOOKUP(R$32,TechData,MATCH($C50,TechData_h,0),FALSE),IF('UserSettings&Results'!Q61=\"TestTech\",VLOOKUP(R$32,TestData,MATCH($C50,TechData_h,0),FALSE),VLOOKUP(R$32,OldTechData,MATCH($C50,TechData_h,0),FALSE)))","v":0},{"$f":"IF('UserSettings&Results'!R61=\"CurrentTech\",VLOOKUP(S$32,TechData,MATCH($C50,TechData_h,0),FALSE),IF('UserSettings&Results'!R61=\"TestTech\",VLOOKUP(S$32,TestData,MATCH($C50,TechData_h,0),FALSE),VLOOKUP(S$32,OldTechData,MATCH($C50,TechData_h,0),FALSE)))","v":0},{"$f":"IF('UserSettings&Results'!S61=\"CurrentTech\",VLOOKUP(T$32,TechData,MATCH($C50,TechData_h,0),FALSE),IF('UserSettings&Results'!S61=\"TestTech\",VLOOKUP(T$32,TestData,MATCH($C50,TechData_h,0),FALSE),VLOOKUP(T$32,OldTechData,MATCH($C50,TechData_h,0),FALSE)))","v":13.361111111111111},{"$f":"IF('UserSettings&Results'!T61=\"CurrentTech\",VLOOKUP(U$32,TechData,MATCH($C50,TechData_h,0),FALSE),IF('UserSettings&Results'!T61=\"TestTech\",VLOOKUP(U$32,TestData,MATCH($C50,TechData_h,0),FALSE),VLOOKUP(U$32,OldTechData,MATCH($C50,TechData_h,0),FALSE)))","v":0},{"$f":"IF('UserSettings&Results'!U61=\"CurrentTech\",VLOOKUP(V$32,TechData,MATCH($C50,TechData_h,0),FALSE),IF('UserSettings&Results'!U61=\"TestTech\",VLOOKUP(V$32,TestData,MATCH($C50,TechData_h,0),FALSE),VLOOKUP(V$32,OldTechData,MATCH($C50,TechData_h,0),FALSE)))","v":0},{"$f":"IF('UserSettings&Results'!V61=\"CurrentTech\",VLOOKUP(W$32,TechData,MATCH($C50,TechData_h,0),FALSE),IF('UserSettings&Results'!V61=\"TestTech\",VLOOKUP(W$32,TestData,MATCH($C50,TechData_h,0),FALSE),VLOOKUP(W$32,OldTechData,MATCH($C50,TechData_h,0),FALSE)))","v":""},{"$f":"IF('UserSettings&Results'!W61=\"CurrentTech\",VLOOKUP(X$32,TechData,MATCH($C50,TechData_h,0),FALSE),IF('UserSettings&Results'!W61=\"TestTech\",VLOOKUP(X$32,TestData,MATCH($C50,TechData_h,0),FALSE),VLOOKUP(X$32,OldTechData,MATCH($C50,TechData_h,0),FALSE)))","v":""},{"$f":"IF('UserSettings&Results'!X61=\"CurrentTech\",VLOOKUP(Y$32,TechData,MATCH($C50,TechData_h,0),FALSE),IF('UserSettings&Results'!X61=\"TestTech\",VLOOKUP(Y$32,TestData,MATCH($C50,TechData_h,0),FALSE),VLOOKUP(Y$32,OldTechData,MATCH($C50,TechData_h,0),FALSE)))","v":""},{"$f":"IF('UserSettings&Results'!Y61=\"CurrentTech\",VLOOKUP(Z$32,TechData,MATCH($C50,TechData_h,0),FALSE),IF('UserSettings&Results'!Y61=\"TestTech\",VLOOKUP(Z$32,TestData,MATCH($C50,TechData_h,0),FALSE),VLOOKUP(Z$32,OldTechData,MATCH($C50,TechData_h,0),FALSE)))","v":""},{"$f":"IF('UserSettings&Results'!Z61=\"CurrentTech\",VLOOKUP(AA$32,TechData,MATCH($C50,TechData_h,0),FALSE),IF('UserSettings&Results'!Z61=\"TestTech\",VLOOKUP(AA$32,TestData,MATCH($C50,TechData_h,0),FALSE),VLOOKUP(AA$32,OldTechData,MATCH($C50,TechData_h,0),FALSE)))","v":""},{"$f":"IF('UserSettings&Results'!AA61=\"CurrentTech\",VLOOKUP(AB$32,TechData,MATCH($C50,TechData_h,0),FALSE),IF('UserSettings&Results'!AA61=\"TestTech\",VLOOKUP(AB$32,TestData,MATCH($C50,TechData_h,0),FALSE),VLOOKUP(AB$32,OldTechData,MATCH($C50,TechData_h,0),FALSE)))","v":""},{"$f":"IF('UserSettings&Results'!AB61=\"CurrentTech\",VLOOKUP(AC$32,TechData,MATCH($C50,TechData_h,0),FALSE),IF('UserSettings&Results'!AB61=\"TestTech\",VLOOKUP(AC$32,TestData,MATCH($C50,TechData_h,0),FALSE),VLOOKUP(AC$32,OldTechData,MATCH($C50,TechData_h,0),FALSE)))","v":""},{"$f":"IF('UserSettings&Results'!AC61=\"CurrentTech\",VLOOKUP(AD$32,TechData,MATCH($C50,TechData_h,0),FALSE),IF('UserSettings&Results'!AC61=\"TestTech\",VLOOKUP(AD$32,TestData,MATCH($C50,TechData_h,0),FALSE),VLOOKUP(AD$32,OldTechData,MATCH($C50,TechData_h,0),FALSE)))","v":""},{"$f":"IF('UserSettings&Results'!AD61=\"CurrentTech\",VLOOKUP(AE$32,TechData,MATCH($C50,TechData_h,0),FALSE),IF('UserSettings&Results'!AD61=\"TestTech\",VLOOKUP(AE$32,TestData,MATCH($C50,TechData_h,0),FALSE),VLOOKUP(AE$32,OldTechData,MATCH($C50,TechData_h,0),FALSE)))","v":""}]
[]
[null,"Economy data","Investment",{"$f":"\"mio.\"&chosencurrency&\"/MW\"","v":"mio.EUR/MW"},{"$f":"IF('UserSettings&Results'!D$61=\"CurrentTech\",VLOOKUP(E$32,TechData,MATCH($C52,TechData_h,0),FALSE),IF('UserSettings&Results'!D$61=\"TestTech\",VLOOKUP(E$32,TestData,MATCH($C52,TechData_h,0),FALSE),VLOOKUP(E$32,OldTechData,MATCH($C52,TechData_h,0),FALSE)))","v":1.5546525809093286},{"$f":"IF('UserSettings&Results'!E$61=\"CurrentTech\",VLOOKUP(F$32,TechData,MATCH($C52,TechData_h,0),FALSE),IF('UserSettings&Results'!E$61=\"TestTech\",VLOOKUP(F$32,TestData,MATCH($C52,TechData_h,0),FALSE),VLOOKUP(F$32,OldTechData,MATCH($C52,TechData_h,0),FALSE)))","v":1.45},{"$f":"IF('UserSettings&Results'!F$61=\"CurrentTech\",VLOOKUP(G$32,TechData,MATCH($C52,TechData_h,0),FALSE),IF('UserSettings&Results'!F$61=\"TestTech\",VLOOKUP(G$32,TestData,MATCH($C52,TechData_h,0),FALSE),VLOOKUP(G$32,OldTechData,MATCH($C52,TechData_h,0),FALSE)))","v":1.1295667254452977},{"$f":"IF('UserSettings&Results'!G$61=\"CurrentTech\",VLOOKUP(H$32,TechData,MATCH($C52,TechData_h,0),FALSE),IF('UserSettings&Results'!G$61=\"TestTech\",VLOOKUP(H$32,TestData,MATCH($C52,TechData_h,0),FALSE),VLOOKUP(H$32,OldTechData,MATCH($C52,TechData_h,0),FALSE)))","v":0.26757897585894125},{"$f":"IF('UserSettings&Results'!H$61=\"CurrentTech\",VLOOKUP(I$32,TechData,MATCH($C52,TechData_h,0),FALSE),IF('UserSettings&Results'!H$61=\"TestTech\",VLOOKUP(I$32,TestData,MATCH($C52,TechData_h,0),FALSE),VLOOKUP(I$32,OldTechData,MATCH($C52,TechData_h,0),FALSE)))","v":0.32414890376055078},{"$f":"IF('UserSettings&Results'!I$61=\"CurrentTech\",VLOOKUP(J$32,TechData,MATCH($C52,TechData_h,0),FALSE),IF('UserSettings&Results'!I$61=\"TestTech\",VLOOKUP(J$32,TestData,MATCH($C52,TechData_h,0),FALSE),VLOOKUP(J$32,OldTechData,MATCH($C52,TechData_h,0),FALSE)))","v":0.48242608897196271},{"$f":"IF('UserSettings&Results'!J$61=\"CurrentTech\",VLOOKUP(K$32,TechData,MATCH($C52,TechData_h,0),FALSE),IF('UserSettings&Results'!J$61=\"TestTech\",VLOOKUP(K$32,TestData,MATCH($C52,TechData_h,0),FALSE),VLOOKUP(K$32,OldTechData,MATCH($C52,TechData_h,0),FALSE)))","v":0.77602889450917067},{"$f":"IF('UserSettings&Results'!K$61=\"CurrentTech\",VLOOKUP(L$32,TechData,MATCH($C52,TechData_h,0),FALSE),IF('UserSettings&Results'!K$61=\"TestTech\",VLOOKUP(L$32,TestData,MATCH($C52,TechData_h,0),FALSE),VLOOKUP(L$32,OldTechData,MATCH($C52,TechData_h,0),FALSE)))","v":3.2959619645027192},{"$f":"IF('UserSettings&Results'!L$61=\"CurrentTech\",VLOOKUP(M$32,TechData,MATCH($C52,TechData_h,0),FALSE),IF('UserSettings&Results'!L$61=\"TestTech\",VLOOKUP(M$32,TestData,MATCH($C52,TechData_h,0),FALSE),VLOOKUP(M$32,OldTechData,MATCH($C52,TechData_h,0),FALSE)))","v":3.866218487608573},{"$f":"IF('UserSettings&Results'!M$61=\"CurrentTech\",VLOOKUP(N$32,TechData,MATCH($C52,TechData_h,0),FALSE),IF('UserSettings&Results'!M$61=\"TestTech\",VLOOKUP(N$32,TestData,MATCH($C52,TechData_h,0),FALSE),VLOOKUP(N$32,OldTechData,MATCH($C52,TechData_h,0),FALSE)))","v":1.7126106257402318},{"$f":"IF('UserSettings&Results'!N$61=\"CurrentTech\",VLOOKUP(O$32,TechData,MATCH($C52,TechData_h,0),FALSE),IF('UserSettings&Results'!N$61=\"TestTech\",VLOOKUP(O$32,TestData,MATCH($C52,TechData_h,0),FALSE),VLOOKUP(O$32,OldTechData,MATCH($C52,TechData_h,0),FALSE)))","v":1.7126106257402318},{"$f":"IF('UserSettings&Results'!O$61=\"CurrentTech\",VLOOKUP(P$32,TechData,MATCH($C52,TechData_h,0),FALSE),IF('UserSettings&Results'!O$61=\"TestTech\",VLOOKUP(P$32,TestData,MATCH($C52,TechData_h,0),FALSE),VLOOKUP(P$32,OldTechData,MATCH($C52,TechData_h,0),FALSE)))","v":1.9914182315024531},{"$f":"IF('UserSettings&Results'!P$61=\"CurrentTech\",VLOOKUP(Q$32,TechData,MATCH($C52,TechData_h,0),FALSE),IF('UserSettings&Results'!P$61=\"TestTech\",VLOOKUP(Q$32,TestData,MATCH($C52,TechData_h,0),FALSE),VLOOKUP(Q$32,OldTechData,MATCH($C52,TechData_h,0),FALSE)))","v":0.25689159386103472},{"$f":"IF('UserSettings&Results'!Q$61=\"CurrentTech\",VLOOKUP(R$32,TechData,MATCH($C52,TechData_h,0),FALSE),IF('UserSettings&Results'!Q$61=\"TestTech\",VLOOKUP(R$32,TestData,MATCH($C52,TechData_h,0),FALSE),VLOOKUP(R$32,OldTechData,MATCH($C52,TechData_h,0),FALSE)))","v":0.88841676210274512},{"$f":"IF('UserSettings&Results'!R$61=\"CurrentTech\",VLOOKUP(S$32,TechData,MATCH($C52,TechData_h,0),FALSE),IF('UserSettings&Results'!R$61=\"TestTech\",VLOOKUP(S$32,TestData,MATCH($C52,TechData_h,0),FALSE),VLOOKUP(S$32,OldTechData,MATCH($C52,TechData_h,0),FALSE)))","v":4.2189710320160154},{"$f":"IF('UserSettings&Results'!S$61=\"CurrentTech\",VLOOKUP(T$32,TechData,MATCH($C52,TechData_h,0),FALSE),IF('UserSettings&Results'!S$61=\"TestTech\",VLOOKUP(T$32,TestData,MATCH($C52,TechData_h,0),FALSE),VLOOKUP(T$32,OldTechData,MATCH($C52,TechData_h,0),FALSE)))","v":1.9089951176475433},{"$f":"IF('UserSettings&Results'!T$61=\"CurrentTech\",VLOOKUP(U$32,TechData,MATCH($C52,TechData_h,0),FALSE),IF('UserSettings&Results'!T$61=\"TestTech\",VLOOKUP(U$32,TestData,MATCH($C52,TechData_h,0),FALSE),VLOOKUP(U$32,OldTechData,MATCH($C52,TechData_h,0),FALSE)))","v":0.80361352990781243},{"$f":"IF('UserSettings&Results'!U$61=\"CurrentTech\",VLOOKUP(V$32,TechData,MATCH($C52,TechData_h,0),FALSE),IF('UserSettings&Results'!U$61=\"TestTech\",VLOOKUP(V$32,TestData,MATCH($C52,TechData_h,0),FALSE),VLOOKUP(V$32,OldTechData,MATCH($C52,TechData_h,0),FALSE)))","v":1.0596778246767684},{"$f":"IF('UserSettings&Results'!V$61=\"CurrentTech\",VLOOKUP(W$32,TechData,MATCH($C52,TechData_h,0),FALSE),IF('UserSettings&Results'!V$61=\"TestTech\",VLOOKUP(W$32,TestData,MATCH($C52,TechData_h,0),FALSE),VLOOKUP(W$32,OldTechData,MATCH($C52,TechData_h,0),FALSE)))","v":""},{"$f":"IF('UserSettings&Results'!W$61=\"CurrentTech\",VLOOKUP(X$32,TechData,MATCH($C52,TechData_h,0),FALSE),IF('UserSettings&Results'!W$61=\"TestTech\",VLOOKUP(X$32,TestData,MATCH($C52,TechData_h,0),FALSE),VLOOKUP(X$32,OldTechData,MATCH($C52,TechData_h,0),FALSE)))","v":""},{"$f":"IF('UserSettings&Results'!X$61=\"CurrentTech\",VLOOKUP(Y$32,TechData,MATCH($C52,TechData_h,0),FALSE),IF('UserSettings&Results'!X$61=\"TestTech\",VLOOKUP(Y$32,TestData,MATCH($C52,TechData_h,0),FALSE),VLOOKUP(Y$32,OldTechData,MATCH($C52,TechData_h,0),FALSE)))","v":""},{"$f":"IF('UserSettings&Results'!Y$61=\"CurrentTech\",VLOOKUP(Z$32,TechData,MATCH($C52,TechData_h,0),FALSE),IF('UserSettings&Results'!Y$61=\"TestTech\",VLOOKUP(Z$32,TestData,MATCH($C52,TechData_h,0),FALSE),VLOOKUP(Z$32,OldTechData,MATCH($C52,TechData_h,0),FALSE)))","v":""},{"$f":"IF('UserSettings&Results'!Z$61=\"CurrentTech\",VLOOKUP(AA$32,TechData,MATCH($C52,TechData_h,0),FALSE),IF('UserSettings&Results'!Z$61=\"TestTech\",VLOOKUP(AA$32,TestData,MATCH($C52,TechData_h,0),FALSE),VLOOKUP(AA$32,OldTechData,MATCH($C52,TechData_h,0),FALSE)))","v":""},{"$f":"IF('UserSettings&Results'!AA$61=\"CurrentTech\",VLOOKUP(AB$32,TechData,MATCH($C52,TechData_h,0),FALSE),IF('UserSettings&Results'!AA$61=\"TestTech\",VLOOKUP(AB$32,TestData,MATCH($C52,TechData_h,0),FALSE),VLOOKUP(AB$32,OldTechData,MATCH($C52,TechData_h,0),FALSE)))","v":""},{"$f":"IF('UserSettings&Results'!AB$61=\"CurrentTech\",VLOOKUP(AC$32,TechData,MATCH($C52,TechData_h,0),FALSE),IF('UserSettings&Results'!AB$61=\"TestTech\",VLOOKUP(AC$32,TestData,MATCH($C52,TechData_h,0),FALSE),VLOOKUP(AC$32,OldTechData,MATCH($C52,TechData_h,0),FALSE)))","v":""},{"$f":"IF('UserSettings&Results'!AC$61=\"CurrentTech\",VLOOKUP(AD$32,TechData,MATCH($C52,TechData_h,0),FALSE),IF('UserSettings&Results'!AC$61=\"TestTech\",VLOOKUP(AD$32,TestData,MATCH($C52,TechData_h,0),FALSE),VLOOKUP(AD$32,OldTechData,MATCH($C52,TechData_h,0),FALSE)))","v":""},{"$f":"IF('UserSettings&Results'!AD$61=\"CurrentTech\",VLOOKUP(AE$32,TechData,MATCH($C52,TechData_h,0),FALSE),IF('UserSettings&Results'!AD$61=\"TestTech\",VLOOKUP(AE$32,TestData,MATCH($C52,TechData_h,0),FALSE),VLOOKUP(AE$32,OldTechData,MATCH($C52,TechData_h,0),FALSE)))","v":""}]
[null,null,"Grid investment",{"$f":"\"mio.\"&chosencurrency&\"/MW\"","v":"mio.EUR/MW"},{"$f":"IF('UserSettings&Results'!D$61=\"CurrentTech\",VLOOKUP(E$32,TechData,MATCH($C53,TechData_h,0),FALSE),IF('UserSettings&Results'!D$61=\"TestTech\",VLOOKUP(E$32,TestData,MATCH($C53,TechData_h,0),FALSE),VLOOKUP(E$32,OldTechData,MATCH($C53,TechData_h,0),FALSE)))","v":0.83848190644307141},{"$f":"IF('UserSettings&Results'!E$61=\"CurrentTech\",VLOOKUP(F$32,TechData,MATCH($C53,TechData_h,0),FALSE),IF('UserSettings&Results'!E$61=\"TestTech\",VLOOKUP(F$32,TestData,MATCH($C53,TechData_h,0),FALSE),VLOOKUP(F$32,OldTechData,MATCH($C53,TechData_h,0),FALSE)))","v":0.09},{"$f":"IF('UserSettings&Results'!F$61=\"CurrentTech\",VLOOKUP(G$32,TechData,MATCH($C53,TechData_h,0),FALSE),IF('UserSettings&Results'!F$61=\"TestTech\",VLOOKUP(G$32,TestData,MATCH($C53,TechData_h,0),FALSE),VLOOKUP(G$32,OldTechData,MATCH($C53,TechData_h,0),FALSE)))","v":1.70781742147024E-2},{"$f":"IF('UserSettings&Results'!G$61=\"CurrentTech\",VLOOKUP(H$32,TechData,MATCH($C53,TechData_h,0),FALSE),IF('UserSettings&Results'!G$61=\"TestTech\",VLOOKUP(H$32,TestData,MATCH($C53,TechData_h,0),FALSE),VLOOKUP(H$32,OldTechData,MATCH($C53,TechData_h,0),FALSE)))","v":3.9406003115420092E-2},{"$f":"IF('UserSettings&Results'!H$61=\"CurrentTech\",VLOOKUP(I$32,TechData,MATCH($C53,TechData_h,0),FALSE),IF('UserSettings&Results'!H$61=\"TestTech\",VLOOKUP(I$32,TestData,MATCH($C53,TechData_h,0),FALSE),VLOOKUP(I$32,OldTechData,MATCH($C53,TechData_h,0),FALSE)))","v":3.9427356966160301E-2},{"$f":"IF('UserSettings&Results'!I$61=\"CurrentTech\",VLOOKUP(J$32,TechData,MATCH($C53,TechData_h,0),FALSE),IF('UserSettings&Results'!I$61=\"TestTech\",VLOOKUP(J$32,TestData,MATCH($C53,TechData_h,0),FALSE),VLOOKUP(J$32,OldTechData,MATCH($C53,TechData_h,0),FALSE)))","v":3.1943814950791558E-2},{"$f":"IF('UserSettings&Results'!J$61=\"CurrentTech\",VLOOKUP(K$32,TechData,MATCH($C53,TechData_h,0),FALSE),IF('UserSettings&Results'!J$61=\"TestTech\",VLOOKUP(K$32,TestData,MATCH($C53,TechData_h,0),FALSE),VLOOKUP(K$32,OldTechData,MATCH($C53,TechData_h,0),FALSE)))","v":2.4015045257147854E-2},{"$f":"IF('UserSettings&Results'!K$61=\"CurrentTech\",VLOOKUP(L$32,TechData,MATCH($C53,TechData_h,0),FALSE),IF('UserSettings&Results'!K$61=\"TestTech\",VLOOKUP(L$32,TestData,MATCH($C53,TechData_h,0),FALSE),VLOOKUP(L$32,OldTechData,MATCH($C53,TechData_h,0),FALSE)))","v":0},{"$f":"IF('UserSettings&Results'!L$61=\"CurrentTech\",VLOOKUP(M$32,TechData,MATCH($C53,TechData_h,0),FALSE),IF('UserSettings&Results'!L$61=\"TestTech\",VLOOKUP(M$32,TestData,MATCH($C53,TechData_h,0),FALSE),VLOOKUP(M$32,OldTechData,MATCH($C53,TechData_h,0),FALSE)))","v":0},{"$f":"IF('UserSettings&Results'!M$61=\"CurrentTech\",VLOOKUP(N$32,TechData,MATCH($C53,TechData_h,0),FALSE),IF('UserSettings&Results'!M$61=\"TestTech\",VLOOKUP(N$32,TestData,MATCH($C53,TechData_h,0),FALSE),VLOOKUP(N$32,OldTechData,MATCH($C53,TechData_h,0),FALSE)))","v":0},{"$f":"IF('UserSettings&Results'!N$61=\"CurrentTech\",VLOOKUP(O$32,TechData,MATCH($C53,TechData_h,0),FALSE),IF('UserSettings&Results'!N$61=\"TestTech\",VLOOKUP(O$32,TestData,MATCH($C53,TechData_h,0),FALSE),VLOOKUP(O$32,OldTechData,MATCH($C53,TechData_h,0),FALSE)))","v":0},{"$f":"IF('UserSettings&Results'!O$61=\"CurrentTech\",VLOOKUP(P$32,TechData,MATCH($C53,TechData_h,0),FALSE),IF('UserSettings&Results'!O$61=\"TestTech\",VLOOKUP(P$32,TestData,MATCH($C53,TechData_h,0),FALSE),VLOOKUP(P$32,OldTechData,MATCH($C53,TechData_h,0),FALSE)))","v":0},{"$f":"IF('UserSettings&Results'!P$61=\"CurrentTech\",VLOOKUP(Q$32,TechData,MATCH($C53,TechData_h,0),FALSE),IF('UserSettings&Results'!P$61=\"TestTech\",VLOOKUP(Q$32,TestData,MATCH($C53,TechData_h,0),FALSE),VLOOKUP(Q$32,OldTechData,MATCH($C53,TechData_h,0),FALSE)))","v":0},{"$f":"IF('UserSettings&Results'!Q$61=\"CurrentTech\",VLOOKUP(R$32,TechData,MATCH($C53,TechData_h,0),FALSE),IF('UserSettings&Results'!Q$61=\"TestTech\",VLOOKUP(R$32,TestData,MATCH($C53,TechData_h,0),FALSE),VLOOKUP(R$32,OldTechData,MATCH($C53,TechData_h,0),FALSE)))","v":0},{"$f":"IF('UserSettings&Results'!R$61=\"CurrentTech\",VLOOKUP(S$32,TechData,MATCH($C53,TechData_h,0),FALSE),IF('UserSettings&Results'!R$61=\"TestTech\",VLOOKUP(S$32,TestData,MATCH($C53,TechData_h,0),FALSE),VLOOKUP(S$32,OldTechData,MATCH($C53,TechData_h,0),FALSE)))","v":0},{"$f":"IF('UserSettings&Results'!S$61=\"CurrentTech\",VLOOKUP(T$32,TechData,MATCH($C53,TechData_h,0),FALSE),IF('UserSettings&Results'!S$61=\"TestTech\",VLOOKUP(T$32,TestData,MATCH($C53,TechData_h,0),FALSE),VLOOKUP(T$32,OldTechData,MATCH($C53,TechData_h,0),FALSE)))","v":0},{"$f":"IF('UserSettings&Results'!T$61=\"CurrentTech\",VLOOKUP(U$32,TechData,MATCH($C53,TechData_h,0),FALSE),IF('UserSettings&Results'!T$61=\"TestTech\",VLOOKUP(U$32,TestData,MATCH($C53,TechData_h,0),FALSE),VLOOKUP(U$32,OldTechData,MATCH($C53,TechData_h,0),FALSE)))","v":0},{"$f":"IF('UserSettings&Results'!U$61=\"CurrentTech\",VLOOKUP(V$32,TechData,MATCH($C53,TechData_h,0),FALSE),IF('UserSettings&Results'!U$61=\"TestTech\",VLOOKUP(V$32,TestData,MATCH($C53,TechData_h,0),FALSE),VLOOKUP(V$32,OldTechData,MATCH($C53,TechData_h,0),FALSE)))","v":5.3519082054382244E-2},{"$f":"IF('UserSettings&Results'!V$61=\"CurrentTech\",VLOOKUP(W$32,TechData,MATCH($C53,TechData_h,0),FALSE),IF('UserSettings&Results'!V$61=\"TestTech\",VLOOKUP(W$32,TestData,MATCH($C53,TechData_h,0),FALSE),VLOOKUP(W$32,OldTechData,MATCH($C53,TechData_h,0),FALSE)))","v":""},{"$f":"IF('UserSettings&Results'!W$61=\"CurrentTech\",VLOOKUP(X$32,TechData,MATCH($C53,TechData_h,0),FALSE),IF('UserSettings&Results'!W$61=\"TestTech\",VLOOKUP(X$32,TestData,MATCH($C53,TechData_h,0),FALSE),VLOOKUP(X$32,OldTechData,MATCH($C53,TechData_h,0),FALSE)))","v":""},{"$f":"IF('UserSettings&Results'!X$61=\"CurrentTech\",VLOOKUP(Y$32,TechData,MATCH($C53,TechData_h,0),FALSE),IF('UserSettings&Results'!X$61=\"TestTech\",VLOOKUP(Y$32,TestData,MATCH($C53,TechData_h,0),FALSE),VLOOKUP(Y$32,OldTechData,MATCH($C53,TechData_h,0),FALSE)))","v":""},{"$f":"IF('UserSettings&Results'!Y$61=\"CurrentTech\",VLOOKUP(Z$32,TechData,MATCH($C53,TechData_h,0),FALSE),IF('UserSettings&Results'!Y$61=\"TestTech\",VLOOKUP(Z$32,TestData,MATCH($C53,TechData_h,0),FALSE),VLOOKUP(Z$32,OldTechData,MATCH($C53,TechData_h,0),FALSE)))","v":""},{"$f":"IF('UserSettings&Results'!Z$61=\"CurrentTech\",VLOOKUP(AA$32,TechData,MATCH($C53,TechData_h,0),FALSE),IF('UserSettings&Results'!Z$61=\"TestTech\",VLOOKUP(AA$32,TestData,MATCH($C53,TechData_h,0),FALSE),VLOOKUP(AA$32,OldTechData,MATCH($C53,TechData_h,0),FALSE)))","v":""},{"$f":"IF('UserSettings&Results'!AA$61=\"CurrentTech\",VLOOKUP(AB$32,TechData,MATCH($C53,TechData_h,0),FALSE),IF('UserSettings&Results'!AA$61=\"TestTech\",VLOOKUP(AB$32,TestData,MATCH($C53,TechData_h,0),FALSE),VLOOKUP(AB$32,OldTechData,MATCH($C53,TechData_h,0),FALSE)))","v":""},{"$f":"IF('UserSettings&Results'!AB$61=\"CurrentTech\",VLOOKUP(AC$32,TechData,MATCH($C53,TechData_h,0),FALSE),IF('UserSettings&Results'!AB$61=\"TestTech\",VLOOKUP(AC$32,TestData,MATCH($C53,TechData_h,0),FALSE),VLOOKUP(AC$32,OldTechData,MATCH($C53,TechData_h,0),FALSE)))","v":""},{"$f":"IF('UserSettings&Results'!AC$61=\"CurrentTech\",VLOOKUP(AD$32,TechData,MATCH($C53,TechData_h,0),FALSE),IF('UserSettings&Results'!AC$61=\"TestTech\",VLOOKUP(AD$32,TestData,MATCH($C53,TechData_h,0),FALSE),VLOOKUP(AD$32,OldTechData,MATCH($C53,TechData_h,0),FALSE)))","v":""},{"$f":"IF('UserSettings&Results'!AD$61=\"CurrentTech\",VLOOKUP(AE$32,TechData,MATCH($C53,TechData_h,0),FALSE),IF('UserSettings&Results'!AD$61=\"TestTech\",VLOOKUP(AE$32,TestData,MATCH($C53,TechData_h,0),FALSE),VLOOKUP(AE$32,OldTechData,MATCH($C53,TechData_h,0),FALSE)))","v":""}]
[null,null,"Interest during construction","% of investment",{"$f":"IF(IDC=\"YES\",1*((1+DiscountRate)^E43-1)/(DiscountRate*E43)*(1+DiscountRate/2)-1,0)","v":6.2798044839332157E-2},{"$f":"IF(IDC=\"YES\",1*((1+DiscountRate)^F43-1)/(DiscountRate*F43)*(1+DiscountRate/2)-1,0)","v":6.2798044839332157E-2},2.6351860059072418E-2,8.7493528282314159E-3,8.7493528282314159E-3,8.7493528282314159E-3,8.7493528282314159E-3,4.4364505096681217E-2,4.4364505096681217E-2,4.4364505096681217E-2,3.5306249999998096E-2,8.1663537206771997E-2,8.7493528282314159E-3,4.4364505096681217E-2,0.130792448428523,7.2176093828122623E-2,3.5306249999998096E-2,2.6351860059072418E-2,{"$error":"#VALUE!"},{"$error":"#VALUE!"},{"$error":"#VALUE!"},{"$error":"#VALUE!"},{"$error":"#VALUE!"},{"$error":"#VALUE!"},{"$error":"#VALUE!"},{"$error":"#VALUE!"},{"$error":"#VALUE!"}]
[null,null,"Investment incl. IDC",{"$f":"\"mio.\"&chosencurrency&\"/MW\"","v":"mio.EUR/MW"},{"$f":"E52*(1+E$54)","v":1.6522817233948561},{"$f":"F52*(1+F$54)","v":1.5410571650170315},1.1593329097216167,0.26992011872814792,0.32698499688843624,0.48664700503792219,0.78281864511213384,3.4421856858753674,4.0377413574069667,1.7885897485745148,1.7730764846452696,2.1540444883449976,0.25913922905433162,0.92783093207302936,4.7707805831424022,2.0467789283763005,0.83198611009811863,1.0876023064203528,{"$error":"#VALUE!"},{"$error":"#VALUE!"},{"$error":"#VALUE!"},{"$error":"#VALUE!"},{"$error":"#VALUE!"},{"$error":"#VALUE!"},{"$error":"#VALUE!"},{"$error":"#VALUE!"},{"$error":"#VALUE!"}]
[null,null,"Grid Investment incl. IDC",{"$f":"\"mio.\"&chosencurrency&\"/MW\"","v":"mio.EUR/MW"},{"$f":"E53*(1+E$54)","v":0.8911369308008521},{"$f":"F53*(1+F$54)","v":9.5651824035539887E-2},1.7528215871672696E-2,3.9750780140227288E-2,3.9772320823341867E-2,3.2223302658475769E-2,2.4225161361288584E-2,0,0,0,0,0,0,0,0,0,0,5.4929409415169342E-2,{"$error":"#VALUE!"},{"$error":"#VALUE!"},{"$error":"#VALUE!"},{"$error":"#VALUE!"},{"$error":"#VALUE!"},{"$error":"#VALUE!"},{"$error":"#VALUE!"},{"$error":"#VALUE!"},{"$error":"#VALUE!"}]
[null,null,"Fixed O&M",{"$f":"chosencurrency&\"/MW electricty\"","v":"EUR/MW electricty"},{"$f":"IF('UserSettings&Results'!D61=\"CurrentTech\",VLOOKUP(E$32,TechData,MATCH($C57,TechData_h,0),FALSE),IF('UserSettings&Results'!D61=\"TestTech\",VLOOKUP(E$32,TestData,MATCH($C57,TechData_h,0),FALSE),VLOOKUP(E$32,OldTechData,MATCH($C57,TechData_h,0),FALSE)))","v":34000},{"$f":"IF('UserSettings&Results'!E61=\"CurrentTech\",VLOOKUP(F$32,TechData,MATCH($C57,TechData_h,0),FALSE),IF('UserSettings&Results'!E61=\"TestTech\",VLOOKUP(F$32,TestData,MATCH($C57,TechData_h,0),FALSE),VLOOKUP(F$32,OldTechData,MATCH($C57,TechData_h,0),FALSE)))","v":34000},{"$f":"IF('UserSettings&Results'!F61=\"CurrentTech\",VLOOKUP(G$32,TechData,MATCH($C57,TechData_h,0),FALSE),IF('UserSettings&Results'!F61=\"TestTech\",VLOOKUP(G$32,TestData,MATCH($C57,TechData_h,0),FALSE),VLOOKUP(G$32,OldTechData,MATCH($C57,TechData_h,0),FALSE)))","v":16662.667964091601},{"$f":"IF('UserSettings&Results'!G61=\"CurrentTech\",VLOOKUP(H$32,TechData,MATCH($C57,TechData_h,0),FALSE),IF('UserSettings&Results'!G61=\"TestTech\",VLOOKUP(H$32,TestData,MATCH($C57,TechData_h,0),FALSE),VLOOKUP(H$32,OldTechData,MATCH($C57,TechData_h,0),FALSE)))","v":7600},{"$f":"IF('UserSettings&Results'!H61=\"CurrentTech\",VLOOKUP(I$32,TechData,MATCH($C57,TechData_h,0),FALSE),IF('UserSettings&Results'!H61=\"TestTech\",VLOOKUP(I$32,TestData,MATCH($C57,TechData_h,0),FALSE),VLOOKUP(I$32,OldTechData,MATCH($C57,TechData_h,0),FALSE)))","v":8300},{"$f":"IF('UserSettings&Results'!I61=\"CurrentTech\",VLOOKUP(J$32,TechData,MATCH($C57,TechData_h,0),FALSE),IF('UserSettings&Results'!I61=\"TestTech\",VLOOKUP(J$32,TestData,MATCH($C57,TechData_h,0),FALSE),VLOOKUP(J$32,OldTechData,MATCH($C57,TechData_h,0),FALSE)))","v":8100},{"$f":"IF('UserSettings&Results'!J61=\"CurrentTech\",VLOOKUP(K$32,TechData,MATCH($C57,TechData_h,0),FALSE),IF('UserSettings&Results'!J61=\"TestTech\",VLOOKUP(K$32,TestData,MATCH($C57,TechData_h,0),FALSE),VLOOKUP(K$32,OldTechData,MATCH($C57,TechData_h,0),FALSE)))","v":10200},{"$f":"IF('UserSettings&Results'!K61=\"CurrentTech\",VLOOKUP(L$32,TechData,MATCH($C57,TechData_h,0),FALSE),IF('UserSettings&Results'!K61=\"TestTech\",VLOOKUP(L$32,TestData,MATCH($C57,TechData_h,0),FALSE),VLOOKUP(L$32,OldTechData,MATCH($C57,TechData_h,0),FALSE)))","v":132020.83990221791},{"$f":"IF('UserSettings&Results'!L61=\"CurrentTech\",VLOOKUP(M$32,TechData,MATCH($C57,TechData_h,0),FALSE),IF('UserSettings&Results'!L61=\"TestTech\",VLOOKUP(M$32,TestData,MATCH($C57,TechData_h,0),FALSE),VLOOKUP(M$32,OldTechData,MATCH($C57,TechData_h,0),FALSE)))","v":154134.95631662084},{"$f":"IF('UserSettings&Results'!M61=\"CurrentTech\",VLOOKUP(N$32,TechData,MATCH($C57,TechData_h,0),FALSE),IF('UserSettings&Results'!M61=\"TestTech\",VLOOKUP(N$32,TestData,MATCH($C57,TechData_h,0),FALSE),VLOOKUP(N$32,OldTechData,MATCH($C57,TechData_h,0),FALSE)))","v":38268.202943456658},{"$f":"IF('UserSettings&Results'!N61=\"CurrentTech\",VLOOKUP(O$32,TechData,MATCH($C57,TechData_h,0),FALSE),IF('UserSettings&Results'!N61=\"TestTech\",VLOOKUP(O$32,TestData,MATCH($C57,TechData_h,0),FALSE),VLOOKUP(O$32,OldTechData,MATCH($C57,TechData_h,0),FALSE)))","v":48251.212406967097},{"$f":"IF('UserSettings&Results'!O61=\"CurrentTech\",VLOOKUP(P$32,TechData,MATCH($C57,TechData_h,0),FALSE),IF('UserSettings&Results'!O61=\"TestTech\",VLOOKUP(P$32,TestData,MATCH($C57,TechData_h,0),FALSE),VLOOKUP(P$32,OldTechData,MATCH($C57,TechData_h,0),FALSE)))","v":32491.560619250533},{"$f":"IF('UserSettings&Results'!P61=\"CurrentTech\",VLOOKUP(Q$32,TechData,MATCH($C57,TechData_h,0),FALSE),IF('UserSettings&Results'!P61=\"TestTech\",VLOOKUP(Q$32,TestData,MATCH($C57,TechData_h,0),FALSE),VLOOKUP(Q$32,OldTechData,MATCH($C57,TechData_h,0),FALSE)))","v":33276.698211701441},{"$f":"IF('UserSettings&Results'!Q61=\"CurrentTech\",VLOOKUP(R$32,TechData,MATCH($C57,TechData_h,0),FALSE),IF('UserSettings&Results'!Q61=\"TestTech\",VLOOKUP(R$32,TestData,MATCH($C57,TechData_h,0),FALSE),VLOOKUP(R$32,OldTechData,MATCH($C57,TechData_h,0),FALSE)))","v":29756.609622236523},{"$f":"IF('UserSettings&Results'!R61=\"CurrentTech\",VLOOKUP(S$32,TechData,MATCH($C57,TechData_h,0),FALSE),IF('UserSettings&Results'!R61=\"TestTech\",VLOOKUP(S$32,TestData,MATCH($C57,TechData_h,0),FALSE),VLOOKUP(S$32,OldTechData,MATCH($C57,TechData_h,0),FALSE)))","v":59237.797347490174},{"$f":"IF('UserSettings&Results'!S61=\"CurrentTech\",VLOOKUP(T$32,TechData,MATCH($C57,TechData_h,0),FALSE),IF('UserSettings&Results'!S61=\"TestTech\",VLOOKUP(T$32,TestData,MATCH($C57,TechData_h,0),FALSE),VLOOKUP(T$32,OldTechData,MATCH($C57,TechData_h,0),FALSE)))","v":28660.206128631296},{"$f":"IF('UserSettings&Results'!T61=\"CurrentTech\",VLOOKUP(U$32,TechData,MATCH($C57,TechData_h,0),FALSE),IF('UserSettings&Results'!T61=\"TestTech\",VLOOKUP(U$32,TestData,MATCH($C57,TechData_h,0),FALSE),VLOOKUP(U$32,OldTechData,MATCH($C57,TechData_h,0),FALSE)))","v":23569.884380504896},{"$f":"IF('UserSettings&Results'!U61=\"CurrentTech\",VLOOKUP(V$32,TechData,MATCH($C57,TechData_h,0),FALSE),IF('UserSettings&Results'!U61=\"TestTech\",VLOOKUP(V$32,TestData,MATCH($C57,TechData_h,0),FALSE),VLOOKUP(V$32,OldTechData,MATCH($C57,TechData_h,0),FALSE)))","v":13486.808677704325},{"$f":"IF('UserSettings&Results'!V61=\"CurrentTech\",VLOOKUP(W$32,TechData,MATCH($C57,TechData_h,0),FALSE),IF('UserSettings&Results'!V61=\"TestTech\",VLOOKUP(W$32,TestData,MATCH($C57,TechData_h,0),FALSE),VLOOKUP(W$32,OldTechData,MATCH($C57,TechData_h,0),FALSE)))","v":""},{"$f":"IF('UserSettings&Results'!W61=\"CurrentTech\",VLOOKUP(X$32,TechData,MATCH($C57,TechData_h,0),FALSE),IF('UserSettings&Results'!W61=\"TestTech\",VLOOKUP(X$32,TestData,MATCH($C57,TechData_h,0),FALSE),VLOOKUP(X$32,OldTechData,MATCH($C57,TechData_h,0),FALSE)))","v":""},{"$f":"IF('UserSettings&Results'!X61=\"CurrentTech\",VLOOKUP(Y$32,TechData,MATCH($C57,TechData_h,0),FALSE),IF('UserSettings&Results'!X61=\"TestTech\",VLOOKUP(Y$32,TestData,MATCH($C57,TechData_h,0),FALSE),VLOOKUP(Y$32,OldTechData,MATCH($C57,TechData_h,0),FALSE)))","v":""},{"$f":"IF('UserSettings&Results'!Y61=\"CurrentTech\",VLOOKUP(Z$32,TechData,MATCH($C57,TechData_h,0),FALSE),IF('UserSettings&Results'!Y61=\"TestTech\",VLOOKUP(Z$32,TestData,MATCH($C57,TechData_h,0),FALSE),VLOOKUP(Z$32,OldTechData,MATCH($C57,TechData_h,0),FALSE)))","v":""},{"$f":"IF('UserSettings&Results'!Z61=\"CurrentTech\",VLOOKUP(AA$32,TechData,MATCH($C57,TechData_h,0),FALSE),IF('UserSettings&Results'!Z61=\"TestTech\",VLOOKUP(AA$32,TestData,MATCH($C57,TechData_h,0),FALSE),VLOOKUP(AA$32,OldTechData,MATCH($C57,TechData_h,0),FALSE)))","v":""},{"$f":"IF('UserSettings&Results'!AA61=\"CurrentTech\",VLOOKUP(AB$32,TechData,MATCH($C57,TechData_h,0),FALSE),IF('UserSettings&Results'!AA61=\"TestTech\",VLOOKUP(AB$32,TestData,MATCH($C57,TechData_h,0),FALSE),VLOOKUP(AB$32,OldTechData,MATCH($C57,TechData_h,0),FALSE)))","v":""},{"$f":"IF('UserSettings&Results'!AB61=\"CurrentTech\",VLOOKUP(AC$32,TechData,MATCH($C57,TechData_h,0),FALSE),IF('UserSettings&Results'!AB61=\"TestTech\",VLOOKUP(AC$32,TestData,MATCH($C57,TechData_h,0),FALSE),VLOOKUP(AC$32,OldTechData,MATCH($C57,TechData_h,0),FALSE)))","v":""},{"$f":"IF('UserSettings&Results'!AC61=\"CurrentTech\",VLOOKUP(AD$32,TechData,MATCH($C57,TechData_h,0),FALSE),IF('UserSettings&Results'!AC61=\"TestTech\",VLOOKUP(AD$32,TestData,MATCH($C57,TechData_h,0),FALSE),VLOOKUP(AD$32,OldTechData,MATCH($C57,TechData_h,0),FALSE)))","v":""},{"$f":"IF('UserSettings&Results'!AD61=\"CurrentTech\",VLOOKUP(AE$32,TechData,MATCH($C57,TechData_h,0),FALSE),IF('UserSettings&Results'!AD61=\"TestTech\",VLOOKUP(AE$32,TestData,MATCH($C57,TechData_h,0),FALSE),VLOOKUP(AE$32,OldTechData,MATCH($C57,TechData_h,0),FALSE)))","v":""}]
[null,null,"Var. O&M",{"$f":"chosencurrency&\"/MWh\"","v":"EUR/MWh"},{"$f":"IF('UserSettings&Results'!D61=\"CurrentTech\",VLOOKUP(E$32,TechData,MATCH($C58,TechData_h,0),FALSE),IF('UserSettings&Results'!D61=\"TestTech\",VLOOKUP(E$32,TestData,MATCH($C58,TechData_h,0),FALSE),VLOOKUP(E$32,OldTechData,MATCH($C58,TechData_h,0),FALSE)))","v":3.4466987330489469},{"$f":"IF('UserSettings&Results'!E61=\"CurrentTech\",VLOOKUP(F$32,TechData,MATCH($C58,TechData_h,0),FALSE),IF('UserSettings&Results'!E61=\"TestTech\",VLOOKUP(F$32,TestData,MATCH($C58,TechData_h,0),FALSE),VLOOKUP(F$32,OldTechData,MATCH($C58,TechData_h,0),FALSE)))","v":3.45},{"$f":"IF('UserSettings&Results'!F61=\"CurrentTech\",VLOOKUP(G$32,TechData,MATCH($C58,TechData_h,0),FALSE),IF('UserSettings&Results'!F61=\"TestTech\",VLOOKUP(G$32,TestData,MATCH($C58,TechData_h,0),FALSE),VLOOKUP(G$32,OldTechData,MATCH($C58,TechData_h,0),FALSE)))","v":1.9751844870564499},{"$f":"IF('UserSettings&Results'!G61=\"CurrentTech\",VLOOKUP(H$32,TechData,MATCH($C58,TechData_h,0),FALSE),IF('UserSettings&Results'!G61=\"TestTech\",VLOOKUP(H$32,TestData,MATCH($C58,TechData_h,0),FALSE),VLOOKUP(H$32,OldTechData,MATCH($C58,TechData_h,0),FALSE)))","v":0},{"$f":"IF('UserSettings&Results'!H61=\"CurrentTech\",VLOOKUP(I$32,TechData,MATCH($C58,TechData_h,0),FALSE),IF('UserSettings&Results'!H61=\"TestTech\",VLOOKUP(I$32,TestData,MATCH($C58,TechData_h,0),FALSE),VLOOKUP(I$32,OldTechData,MATCH($C58,TechData_h,0),FALSE)))","v":0},{"$f":"IF('UserSettings&Results'!I61=\"CurrentTech\",VLOOKUP(J$32,TechData,MATCH($C58,TechData_h,0),FALSE),IF('UserSettings&Results'!I61=\"TestTech\",VLOOKUP(J$32,TestData,MATCH($C58,TechData_h,0),FALSE),VLOOKUP(J$32,OldTechData,MATCH($C58,TechData_h,0),FALSE)))","v":0},{"$f":"IF('UserSettings&Results'!J61=\"CurrentTech\",VLOOKUP(K$32,TechData,MATCH($C58,TechData_h,0),FALSE),IF('UserSettings&Results'!J61=\"TestTech\",VLOOKUP(K$32,TestData,MATCH($C58,TechData_h,0),FALSE),VLOOKUP(K$32,OldTechData,MATCH($C58,TechData_h,0),FALSE)))","v":0},{"$f":"IF('UserSettings&Results'!K61=\"CurrentTech\",VLOOKUP(L$32,TechData,MATCH($C58,TechData_h,0),FALSE),IF('UserSettings&Results'!K61=\"TestTech\",VLOOKUP(L$32,TestData,MATCH($C58,TechData_h,0),FALSE),VLOOKUP(L$32,OldTechData,MATCH($C58,TechData_h,0),FALSE)))","v":1.8285941720790391},{"$f":"IF('UserSettings&Results'!L61=\"CurrentTech\",VLOOKUP(M$32,TechData,MATCH($C58,TechData_h,0),FALSE),IF('UserSettings&Results'!L61=\"TestTech\",VLOOKUP(M$32,TestData,MATCH($C58,TechData_h,0),FALSE),VLOOKUP(M$32,OldTechData,MATCH($C58,TechData_h,0),FALSE)))","v":4.0823315502269635},{"$f":"IF('UserSettings&Results'!M61=\"CurrentTech\",VLOOKUP(N$32,TechData,MATCH($C58,TechData_h,0),FALSE),IF('UserSettings&Results'!M61=\"TestTech\",VLOOKUP(N$32,TestData,MATCH($C58,TechData_h,0),FALSE),VLOOKUP(N$32,OldTechData,MATCH($C58,TechData_h,0),FALSE)))","v":4.6694721684161786},{"$f":"IF('UserSettings&Results'!N61=\"CurrentTech\",VLOOKUP(O$32,TechData,MATCH($C58,TechData_h,0),FALSE),IF('UserSettings&Results'!N61=\"TestTech\",VLOOKUP(O$32,TestData,MATCH($C58,TechData_h,0),FALSE),VLOOKUP(O$32,OldTechData,MATCH($C58,TechData_h,0),FALSE)))","v":4.5138230961356394},{"$f":"IF('UserSettings&Results'!O61=\"CurrentTech\",VLOOKUP(P$32,TechData,MATCH($C58,TechData_h,0),FALSE),IF('UserSettings&Results'!O61=\"TestTech\",VLOOKUP(P$32,TestData,MATCH($C58,TechData_h,0),FALSE),VLOOKUP(P$32,OldTechData,MATCH($C58,TechData_h,0),FALSE)))","v":3.0395330901879589},{"$f":"IF('UserSettings&Results'!P61=\"CurrentTech\",VLOOKUP(Q$32,TechData,MATCH($C58,TechData_h,0),FALSE),IF('UserSettings&Results'!P61=\"TestTech\",VLOOKUP(Q$32,TestData,MATCH($C58,TechData_h,0),FALSE),VLOOKUP(Q$32,OldTechData,MATCH($C58,TechData_h,0),FALSE)))","v":3.112981445610786},{"$f":"IF('UserSettings&Results'!Q61=\"CurrentTech\",VLOOKUP(R$32,TechData,MATCH($C58,TechData_h,0),FALSE),IF('UserSettings&Results'!Q61=\"TestTech\",VLOOKUP(R$32,TestData,MATCH($C58,TechData_h,0),FALSE),VLOOKUP(R$32,OldTechData,MATCH($C58,TechData_h,0),FALSE)))","v":4.4956028925681082},{"$f":"IF('UserSettings&Results'!R61=\"CurrentTech\",VLOOKUP(S$32,TechData,MATCH($C58,TechData_h,0),FALSE),IF('UserSettings&Results'!R61=\"TestTech\",VLOOKUP(S$32,TestData,MATCH($C58,TechData_h,0),FALSE),VLOOKUP(S$32,OldTechData,MATCH($C58,TechData_h,0),FALSE)))","v":5.9410000246756143},{"$f":"IF('UserSettings&Results'!S61=\"CurrentTech\",VLOOKUP(T$32,TechData,MATCH($C58,TechData_h,0),FALSE),IF('UserSettings&Results'!S61=\"TestTech\",VLOOKUP(T$32,TestData,MATCH($C58,TechData_h,0),FALSE),VLOOKUP(T$32,OldTechData,MATCH($C58,TechData_h,0),FALSE)))","v":2.81796496061818},{"$f":"IF('UserSettings&Results'!T61=\"CurrentTech\",VLOOKUP(U$32,TechData,MATCH($C58,TechData_h,0),FALSE),IF('UserSettings&Results'!T61=\"TestTech\",VLOOKUP(U$32,TestData,MATCH($C58,TechData_h,0),FALSE),VLOOKUP(U$32,OldTechData,MATCH($C58,TechData_h,0),FALSE)))","v":2.1697565307510938},{"$f":"IF('UserSettings&Results'!U61=\"CurrentTech\",VLOOKUP(V$32,TechData,MATCH($C58,TechData_h,0),FALSE),IF('UserSettings&Results'!U61=\"TestTech\",VLOOKUP(V$32,TestData,MATCH($C58,TechData_h,0),FALSE),VLOOKUP(V$32,OldTechData,MATCH($C58,TechData_h,0),FALSE)))","v":1.4450152154683205},{"$f":"IF('UserSettings&Results'!V61=\"CurrentTech\",VLOOKUP(W$32,TechData,MATCH($C58,TechData_h,0),FALSE),IF('UserSettings&Results'!V61=\"TestTech\",VLOOKUP(W$32,TestData,MATCH($C58,TechData_h,0),FALSE),VLOOKUP(W$32,OldTechData,MATCH($C58,TechData_h,0),FALSE)))","v":""},{"$f":"IF('UserSettings&Results'!W61=\"CurrentTech\",VLOOKUP(X$32,TechData,MATCH($C58,TechData_h,0),FALSE),IF('UserSettings&Results'!W61=\"TestTech\",VLOOKUP(X$32,TestData,MATCH($C58,TechData_h,0),FALSE),VLOOKUP(X$32,OldTechData,MATCH($C58,TechData_h,0),FALSE)))","v":""},{"$f":"IF('UserSettings&Results'!X61=\"CurrentTech\",VLOOKUP(Y$32,TechData,MATCH($C58,TechData_h,0),FALSE),IF('UserSettings&Results'!X61=\"TestTech\",VLOOKUP(Y$32,TestData,MATCH($C58,TechData_h,0),FALSE),VLOOKUP(Y$32,OldTechData,MATCH($C58,TechData_h,0),FALSE)))","v":""},{"$f":"IF('UserSettings&Results'!Y61=\"CurrentTech\",VLOOKUP(Z$32,TechData,MATCH($C58,TechData_h,0),FALSE),IF('UserSettings&Results'!Y61=\"TestTech\",VLOOKUP(Z$32,TestData,MATCH($C58,TechData_h,0),FALSE),VLOOKUP(Z$32,OldTechData,MATCH($C58,TechData_h,0),FALSE)))","v":""},{"$f":"IF('UserSettings&Results'!Z61=\"CurrentTech\",VLOOKUP(AA$32,TechData,MATCH($C58,TechData_h,0),FALSE),IF('UserSettings&Results'!Z61=\"TestTech\",VLOOKUP(AA$32,TestData,MATCH($C58,TechData_h,0),FALSE),VLOOKUP(AA$32,OldTechData,MATCH($C58,TechData_h,0),FALSE)))","v":""},{"$f":"IF('UserSettings&Results'!AA61=\"CurrentTech\",VLOOKUP(AB$32,TechData,MATCH($C58,TechData_h,0),FALSE),IF('UserSettings&Results'!AA61=\"TestTech\",VLOOKUP(AB$32,TestData,MATCH($C58,TechData_h,0),FALSE),VLOOKUP(AB$32,OldTechData,MATCH($C58,TechData_h,0),FALSE)))","v":""},{"$f":"IF('UserSettings&Results'!AB61=\"CurrentTech\",VLOOKUP(AC$32,TechData,MATCH($C58,TechData_h,0),FALSE),IF('UserSettings&Results'!AB61=\"TestTech\",VLOOKUP(AC$32,TestData,MATCH($C58,TechData_h,0),FALSE),VLOOKUP(AC$32,OldTechData,MATCH($C58,TechData_h,0),FALSE)))","v":""},{"$f":"IF('UserSettings&Results'!AC61=\"CurrentTech\",VLOOKUP(AD$32,TechData,MATCH($C58,TechData_h,0),FALSE),IF('UserSettings&Results'!AC61=\"TestTech\",VLOOKUP(AD$32,TestData,MATCH($C58,TechData_h,0),FALSE),VLOOKUP(AD$32,OldTechData,MATCH($C58,TechData_h,0),FALSE)))","v":""},{"$f":"IF('UserSettings&Results'!AD61=\"CurrentTech\",VLOOKUP(AE$32,TechData,MATCH($C58,TechData_h,0),FALSE),IF('UserSettings&Results'!AD61=\"TestTech\",VLOOKUP(AE$32,TestData,MATCH($C58,TechData_h,0),FALSE),VLOOKUP(AE$32,OldTechData,MATCH($C58,TechData_h,0),FALSE)))","v":""}]
[null,null,"Other costs",{"$f":"chosencurrency&\"/MWh\"","v":"EUR/MWh"},{"$f":"IF('UserSettings&Results'!D61=\"CurrentTech\",VLOOKUP(E$32,TechData,MATCH($C59,TechData_h,0),FALSE),IF('UserSettings&Results'!D61=\"TestTech\",VLOOKUP(E$32,TestData,MATCH($C59,TechData_h,0),FALSE),VLOOKUP(E$32,OldTechData,MATCH($C59,TechData_h,0),FALSE)))","v":0},{"$f":"IF('UserSettings&Results'!E61=\"CurrentTech\",VLOOKUP(F$32,TechData,MATCH($C59,TechData_h,0),FALSE),IF('UserSettings&Results'!E61=\"TestTech\",VLOOKUP(F$32,TestData,MATCH($C59,TechData_h,0),FALSE),VLOOKUP(F$32,OldTechData,MATCH($C59,TechData_h,0),FALSE)))","v":0},{"$f":"IF('UserSettings&Results'!F61=\"CurrentTech\",VLOOKUP(G$32,TechData,MATCH($C59,TechData_h,0),FALSE),IF('UserSettings&Results'!F61=\"TestTech\",VLOOKUP(G$32,TestData,MATCH($C59,TechData_h,0),FALSE),VLOOKUP(G$32,OldTechData,MATCH($C59,TechData_h,0),FALSE)))","v":0},{"$f":"IF('UserSettings&Results'!G61=\"CurrentTech\",VLOOKUP(H$32,TechData,MATCH($C59,TechData_h,0),FALSE),IF('UserSettings&Results'!G61=\"TestTech\",VLOOKUP(H$32,TestData,MATCH($C59,TechData_h,0),FALSE),VLOOKUP(H$32,OldTechData,MATCH($C59,TechData_h,0),FALSE)))","v":0},{"$f":"IF('UserSettings&Results'!H61=\"CurrentTech\",VLOOKUP(I$32,TechData,MATCH($C59,TechData_h,0),FALSE),IF('UserSettings&Results'!H61=\"TestTech\",VLOOKUP(I$32,TestData,MATCH($C59,TechData_h,0),FALSE),VLOOKUP(I$32,OldTechData,MATCH($C59,TechData_h,0),FALSE)))","v":0},{"$f":"IF('UserSettings&Results'!I61=\"CurrentTech\",VLOOKUP(J$32,TechData,MATCH($C59,TechData_h,0),FALSE),IF('UserSettings&Results'!I61=\"TestTech\",VLOOKUP(J$32,TestData,MATCH($C59,TechData_h,0),FALSE),VLOOKUP(J$32,OldTechData,MATCH($C59,TechData_h,0),FALSE)))","v":0},{"$f":"IF('UserSettings&Results'!J61=\"CurrentTech\",VLOOKUP(K$32,TechData,MATCH($C59,TechData_h,0),FALSE),IF('UserSettings&Results'!J61=\"TestTech\",VLOOKUP(K$32,TestData,MATCH($C59,TechData_h,0),FALSE),VLOOKUP(K$32,OldTechData,MATCH($C59,TechData_h,0),FALSE)))","v":0},{"$f":"IF('UserSettings&Results'!K61=\"CurrentTech\",VLOOKUP(L$32,TechData,MATCH($C59,TechData_h,0),FALSE),IF('UserSettings&Results'!K61=\"TestTech\",VLOOKUP(L$32,TestData,MATCH($C59,TechData_h,0),FALSE),VLOOKUP(L$32,OldTechData,MATCH($C59,TechData_h,0),FALSE)))","v":0},{"$f":"IF('UserSettings&Results'!L61=\"CurrentTech\",VLOOKUP(M$32,TechData,MATCH($C59,TechData_h,0),FALSE),IF('UserSettings&Results'!L61=\"TestTech\",VLOOKUP(M$32,TestData,MATCH($C59,TechData_h,0),FALSE),VLOOKUP(M$32,OldTechData,MATCH($C59,TechData_h,0),FALSE)))","v":0},{"$f":"IF('UserSettings&Results'!M61=\"CurrentTech\",VLOOKUP(N$32,TechData,MATCH($C59,TechData_h,0),FALSE),IF('UserSettings&Results'!M61=\"TestTech\",VLOOKUP(N$32,TestData,MATCH($C59,TechData_h,0),FALSE),VLOOKUP(N$32,OldTechData,MATCH($C59,TechData_h,0),FALSE)))","v":0},{"$f":"IF('UserSettings&Results'!N61=\"CurrentTech\",VLOOKUP(O$32,TechData,MATCH($C59,TechData_h,0),FALSE),IF('UserSettings&Results'!N61=\"TestTech\",VLOOKUP(O$32,TestData,MATCH($C59,TechData_h,0),FALSE),VLOOKUP(O$32,OldTechData,MATCH($C59,TechData_h,0),FALSE)))","v":0},{"$f":"IF('UserSettings&Results'!O61=\"CurrentTech\",VLOOKUP(P$32,TechData,MATCH($C59,TechData_h,0),FALSE),IF('UserSettings&Results'!O61=\"TestTech\",VLOOKUP(P$32,TestData,MATCH($C59,TechData_h,0),FALSE),VLOOKUP(P$32,OldTechData,MATCH($C59,TechData_h,0),FALSE)))","v":0},{"$f":"IF('UserSettings&Results'!P61=\"CurrentTech\",VLOOKUP(Q$32,TechData,MATCH($C59,TechData_h,0),FALSE),IF('UserSettings&Results'!P61=\"TestTech\",VLOOKUP(Q$32,TestData,MATCH($C59,TechData_h,0),FALSE),VLOOKUP(Q$32,OldTechData,MATCH($C59,TechData_h,0),FALSE)))","v":0},{"$f":"IF('UserSettings&Results'!Q61=\"CurrentTech\",VLOOKUP(R$32,TechData,MATCH($C59,TechData_h,0),FALSE),IF('UserSettings&Results'!Q61=\"TestTech\",VLOOKUP(R$32,TestData,MATCH($C59,TechData_h,0),FALSE),VLOOKUP(R$32,OldTechData,MATCH($C59,TechData_h,0),FALSE)))","v":0},{"$f":"IF('UserSettings&Results'!R61=\"CurrentTech\",VLOOKUP(S$32,TechData,MATCH($C59,TechData_h,0),FALSE),IF('UserSettings&Results'!R61=\"TestTech\",VLOOKUP(S$32,TestData,MATCH($C59,TechData_h,0),FALSE),VLOOKUP(S$32,OldTechData,MATCH($C59,TechData_h,0),FALSE)))","v":4.5240156619929204},{"$f":"IF('UserSettings&Results'!S61=\"CurrentTech\",VLOOKUP(T$32,TechData,MATCH($C59,TechData_h,0),FALSE),IF('UserSettings&Results'!S61=\"TestTech\",VLOOKUP(T$32,TestData,MATCH($C59,TechData_h,0),FALSE),VLOOKUP(T$32,OldTechData,MATCH($C59,TechData_h,0),FALSE)))","v":0},{"$f":"IF('UserSettings&Results'!T61=\"CurrentTech\",VLOOKUP(U$32,TechData,MATCH($C59,TechData_h,0),FALSE),IF('UserSettings&Results'!T61=\"TestTech\",VLOOKUP(U$32,TestData,MATCH($C59,TechData_h,0),FALSE),VLOOKUP(U$32,OldTechData,MATCH($C59,TechData_h,0),FALSE)))","v":0},{"$f":"IF('UserSettings&Results'!U61=\"CurrentTech\",VLOOKUP(V$32,TechData,MATCH($C59,TechData_h,0),FALSE),IF('UserSettings&Results'!U61=\"TestTech\",VLOOKUP(V$32,TestData,MATCH($C59,TechData_h,0),FALSE),VLOOKUP(V$32,OldTechData,MATCH($C59,TechData_h,0),FALSE)))","v":0},{"$f":"IF('UserSettings&Results'!V61=\"CurrentTech\",VLOOKUP(W$32,TechData,MATCH($C59,TechData_h,0),FALSE),IF('UserSettings&Results'!V61=\"TestTech\",VLOOKUP(W$32,TestData,MATCH($C59,TechData_h,0),FALSE),VLOOKUP(W$32,OldTechData,MATCH($C59,TechData_h,0),FALSE)))","v":""},{"$f":"IF('UserSettings&Results'!W61=\"CurrentTech\",VLOOKUP(X$32,TechData,MATCH($C59,TechData_h,0),FALSE),IF('UserSettings&Results'!W61=\"TestTech\",VLOOKUP(X$32,TestData,MATCH($C59,TechData_h,0),FALSE),VLOOKUP(X$32,OldTechData,MATCH($C59,TechData_h,0),FALSE)))","v":""},{"$f":"IF('UserSettings&Results'!X61=\"CurrentTech\",VLOOKUP(Y$32,TechData,MATCH($C59,TechData_h,0),FALSE),IF('UserSettings&Results'!X61=\"TestTech\",VLOOKUP(Y$32,TestData,MATCH($C59,TechData_h,0),FALSE),VLOOKUP(Y$32,OldTechData,MATCH($C59,TechData_h,0),FALSE)))","v":""},{"$f":"IF('UserSettings&Results'!Y61=\"CurrentTech\",VLOOKUP(Z$32,TechData,MATCH($C59,TechData_h,0),FALSE),IF('UserSettings&Results'!Y61=\"TestTech\",VLOOKUP(Z$32,TestData,MATCH($C59,TechData_h,0),FALSE),VLOOKUP(Z$32,OldTechData,MATCH($C59,TechData_h,0),FALSE)))","v":""},{"$f":"IF('UserSettings&Results'!Z61=\"CurrentTech\",VLOOKUP(AA$32,TechData,MATCH($C59,TechData_h,0),FALSE),IF('UserSettings&Results'!Z61=\"TestTech\",VLOOKUP(AA$32,TestData,MATCH($C59,TechData_h,0),FALSE),VLOOKUP(AA$32,OldTechData,MATCH($C59,TechData_h,0),FALSE)))","v":""},{"$f":"IF('UserSettings&Results'!AA61=\"CurrentTech\",VLOOKUP(AB$32,TechData,MATCH($C59,TechData_h,0),FALSE),IF('UserSettings&Results'!AA61=\"TestTech\",VLOOKUP(AB$32,TestData,MATCH($C59,TechData_h,0),FALSE),VLOOKUP(AB$32,OldTechData,MATCH($C59,TechData_h,0),FALSE)))","v":""},{"$f":"IF('UserSettings&Results'!AB61=\"CurrentTech\",VLOOKUP(AC$32,TechData,MATCH($C59,TechData_h,0),FALSE),IF('UserSettings&Results'!AB61=\"TestTech\",VLOOKUP(AC$32,TestData,MATCH($C59,TechData_h,0),FALSE),VLOOKUP(AC$32,OldTechData,MATCH($C59,TechData_h,0),FALSE)))","v":""},{"$f":"IF('UserSettings&Results'!AC61=\"CurrentTech\",VLOOKUP(AD$32,TechData,MATCH($C59,TechData_h,0),FALSE),IF('UserSettings&Results'!AC61=\"TestTech\",VLOOKUP(AD$32,TestData,MATCH($C59,TechData_h,0),FALSE),VLOOKUP(AD$32,OldTechData,MATCH($C59,TechData_h,0),FALSE)))","v":""},{"$f":"IF('UserSettings&Results'!AD61=\"CurrentTech\",VLOOKUP(AE$32,TechData,MATCH($C59,TechData_h,0),FALSE),IF('UserSettings&Results'!AD61=\"TestTech\",VLOOKUP(AE$32,TestData,MATCH($C59,TechData_h,0),FALSE),VLOOKUP(AE$32,OldTechData,MATCH($C59,TechData_h,0),FALSE)))","v":""}]
[null,null,"Profile costs",{"$f":"chosencurrency&\"/MWh\"","v":"EUR/MWh"},{"$f":"IF('UserSettings&Results'!D61=\"CurrentTech\",VLOOKUP(E$32,TechData,MATCH($C60,TechData_h,0),FALSE),IF('UserSettings&Results'!D61=\"TestTech\",VLOOKUP(E$32,TestData,MATCH($C60,TechData_h,0),FALSE),VLOOKUP(E$32,OldTechData,MATCH($C60,TechData_h,0),FALSE)))","v":0},{"$f":"IF('UserSettings&Results'!E61=\"CurrentTech\",VLOOKUP(F$32,TechData,MATCH($C60,TechData_h,0),FALSE),IF('UserSettings&Results'!E61=\"TestTech\",VLOOKUP(F$32,TestData,MATCH($C60,TechData_h,0),FALSE),VLOOKUP(F$32,OldTechData,MATCH($C60,TechData_h,0),FALSE)))","v":0},{"$f":"IF('UserSettings&Results'!F61=\"CurrentTech\",VLOOKUP(G$32,TechData,MATCH($C60,TechData_h,0),FALSE),IF('UserSettings&Results'!F61=\"TestTech\",VLOOKUP(G$32,TestData,MATCH($C60,TechData_h,0),FALSE),VLOOKUP(G$32,OldTechData,MATCH($C60,TechData_h,0),FALSE)))","v":0},{"$f":"IF('UserSettings&Results'!G61=\"CurrentTech\",VLOOKUP(H$32,TechData,MATCH($C60,TechData_h,0),FALSE),IF('UserSettings&Results'!G61=\"TestTech\",VLOOKUP(H$32,TestData,MATCH($C60,TechData_h,0),FALSE),VLOOKUP(H$32,OldTechData,MATCH($C60,TechData_h,0),FALSE)))","v":0},{"$f":"IF('UserSettings&Results'!H61=\"CurrentTech\",VLOOKUP(I$32,TechData,MATCH($C60,TechData_h,0),FALSE),IF('UserSettings&Results'!H61=\"TestTech\",VLOOKUP(I$32,TestData,MATCH($C60,TechData_h,0),FALSE),VLOOKUP(I$32,OldTechData,MATCH($C60,TechData_h,0),FALSE)))","v":0},{"$f":"IF('UserSettings&Results'!I61=\"CurrentTech\",VLOOKUP(J$32,TechData,MATCH($C60,TechData_h,0),FALSE),IF('UserSettings&Results'!I61=\"TestTech\",VLOOKUP(J$32,TestData,MATCH($C60,TechData_h,0),FALSE),VLOOKUP(J$32,OldTechData,MATCH($C60,TechData_h,0),FALSE)))","v":0},{"$f":"IF('UserSettings&Results'!J61=\"CurrentTech\",VLOOKUP(K$32,TechData,MATCH($C60,TechData_h,0),FALSE),IF('UserSettings&Results'!J61=\"TestTech\",VLOOKUP(K$32,TestData,MATCH($C60,TechData_h,0),FALSE),VLOOKUP(K$32,OldTechData,MATCH($C60,TechData_h,0),FALSE)))","v":0},{"$f":"IF('UserSettings&Results'!K61=\"CurrentTech\",VLOOKUP(L$32,TechData,MATCH($C60,TechData_h,0),FALSE),IF('UserSettings&Results'!K61=\"TestTech\",VLOOKUP(L$32,TestData,MATCH($C60,TechData_h,0),FALSE),VLOOKUP(L$32,OldTechData,MATCH($C60,TechData_h,0),FALSE)))","v":0},{"$f":"IF('UserSettings&Results'!L61=\"CurrentTech\",VLOOKUP(M$32,TechData,MATCH($C60,TechData_h,0),FALSE),IF('UserSettings&Results'!L61=\"TestTech\",VLOOKUP(M$32,TestData,MATCH($C60,TechData_h,0),FALSE),VLOOKUP(M$32,OldTechData,MATCH($C60,TechData_h,0),FALSE)))","v":0},{"$f":"IF('UserSettings&Results'!M61=\"CurrentTech\",VLOOKUP(N$32,TechData,MATCH($C60,TechData_h,0),FALSE),IF('UserSettings&Results'!M61=\"TestTech\",VLOOKUP(N$32,TestData,MATCH($C60,TechData_h,0),FALSE),VLOOKUP(N$32,OldTechData,MATCH($C60,TechData_h,0),FALSE)))","v":0},{"$f":"IF('UserSettings&Results'!N61=\"CurrentTech\",VLOOKUP(O$32,TechData,MATCH($C60,TechData_h,0),FALSE),IF('UserSettings&Results'!N61=\"TestTech\",VLOOKUP(O$32,TestData,MATCH($C60,TechData_h,0),FALSE),VLOOKUP(O$32,OldTechData,MATCH($C60,TechData_h,0),FALSE)))","v":0},{"$f":"IF('UserSettings&Results'!O61=\"CurrentTech\",VLOOKUP(P$32,TechData,MATCH($C60,TechData_h,0),FALSE),IF('UserSettings&Results'!O61=\"TestTech\",VLOOKUP(P$32,TestData,MATCH($C60,TechData_h,0),FALSE),VLOOKUP(P$32,OldTechData,MATCH($C60,TechData_h,0),FALSE)))","v":0},{"$f":"IF('UserSettings&Results'!P61=\"CurrentTech\",VLOOKUP(Q$32,TechData,MATCH($C60,TechData_h,0),FALSE),IF('UserSettings&Results'!P61=\"TestTech\",VLOOKUP(Q$32,TestData,MATCH($C60,TechData_h,0),FALSE),VLOOKUP(Q$32,OldTechData,MATCH($C60,TechData_h,0),FALSE)))","v":0},{"$f":"IF('UserSettings&Results'!Q61=\"CurrentTech\",VLOOKUP(R$32,TechData,MATCH($C60,TechData_h,0),FALSE),IF('UserSettings&Results'!Q61=\"TestTech\",VLOOKUP(R$32,TestData,MATCH($C60,TechData_h,0),FALSE),VLOOKUP(R$32,OldTechData,MATCH($C60,TechData_h,0),FALSE)))","v":0},{"$f":"IF('UserSettings&Results'!R61=\"CurrentTech\",VLOOKUP(S$32,TechData,MATCH($C60,TechData_h,0),FALSE),IF('UserSettings&Results'!R61=\"TestTech\",VLOOKUP(S$32,TestData,MATCH($C60,TechData_h,0),FALSE),VLOOKUP(S$32,OldTechData,MATCH($C60,TechData_h,0),FALSE)))","v":0},{"$f":"IF('UserSettings&Results'!S61=\"CurrentTech\",VLOOKUP(T$32,TechData,MATCH($C60,TechData_h,0),FALSE),IF('UserSettings&Results'!S61=\"TestTech\",VLOOKUP(T$32,TestData,MATCH($C60,TechData_h,0),FALSE),VLOOKUP(T$32,OldTechData,MATCH($C60,TechData_h,0),FALSE)))","v":0},{"$f":"IF('UserSettings&Results'!T61=\"CurrentTech\",VLOOKUP(U$32,TechData,MATCH($C60,TechData_h,0),FALSE),IF('UserSettings&Results'!T61=\"TestTech\",VLOOKUP(U$32,TestData,MATCH($C60,TechData_h,0),FALSE),VLOOKUP(U$32,OldTechData,MATCH($C60,TechData_h,0),FALSE)))","v":0},{"$f":"IF('UserSettings&Results'!U61=\"CurrentTech\",VLOOKUP(V$32,TechData,MATCH($C60,TechData_h,0),FALSE),IF('UserSettings&Results'!U61=\"TestTech\",VLOOKUP(V$32,TestData,MATCH($C60,TechData_h,0),FALSE),VLOOKUP(V$32,OldTechData,MATCH($C60,TechData_h,0),FALSE)))","v":0},{"$f":"IF('UserSettings&Results'!V61=\"CurrentTech\",VLOOKUP(W$32,TechData,MATCH($C60,TechData_h,0),FALSE),IF('UserSettings&Results'!V61=\"TestTech\",VLOOKUP(W$32,TestData,MATCH($C60,TechData_h,0),FALSE),VLOOKUP(W$32,OldTechData,MATCH($C60,TechData_h,0),FALSE)))","v":""},{"$f":"IF('UserSettings&Results'!W61=\"CurrentTech\",VLOOKUP(X$32,TechData,MATCH($C60,TechData_h,0),FALSE),IF('UserSettings&Results'!W61=\"TestTech\",VLOOKUP(X$32,TestData,MATCH($C60,TechData_h,0),FALSE),VLOOKUP(X$32,OldTechData,MATCH($C60,TechData_h,0),FALSE)))","v":""},{"$f":"IF('UserSettings&Results'!X61=\"CurrentTech\",VLOOKUP(Y$32,TechData,MATCH($C60,TechData_h,0),FALSE),IF('UserSettings&Results'!X61=\"TestTech\",VLOOKUP(Y$32,TestData,MATCH($C60,TechData_h,0),FALSE),VLOOKUP(Y$32,OldTechData,MATCH($C60,TechData_h,0),FALSE)))","v":""},{"$f":"IF('UserSettings&Results'!Y61=\"CurrentTech\",VLOOKUP(Z$32,TechData,MATCH($C60,TechData_h,0),FALSE),IF('UserSettings&Results'!Y61=\"TestTech\",VLOOKUP(Z$32,TestData,MATCH($C60,TechData_h,0),FALSE),VLOOKUP(Z$32,OldTechData,MATCH($C60,TechData_h,0),FALSE)))","v":""},{"$f":"IF('UserSettings&Results'!Z61=\"CurrentTech\",VLOOKUP(AA$32,TechData,MATCH($C60,TechData_h,0),FALSE),IF('UserSettings&Results'!Z61=\"TestTech\",VLOOKUP(AA$32,TestData,MATCH($C60,TechData_h,0),FALSE),VLOOKUP(AA$32,OldTechData,MATCH($C60,TechData_h,0),FALSE)))","v":""},{"$f":"IF('UserSettings&Results'!AA61=\"CurrentTech\",VLOOKUP(AB$32,TechData,MATCH($C60,TechData_h,0),FALSE),IF('UserSettings&Results'!AA61=\"TestTech\",VLOOKUP(AB$32,TestData,MATCH($C60,TechData_h,0),FALSE),VLOOKUP(AB$32,OldTechData,MATCH($C60,TechData_h,0),FALSE)))","v":""},{"$f":"IF('UserSettings&Results'!AB61=\"CurrentTech\",VLOOKUP(AC$32,TechData,MATCH($C60,TechData_h,0),FALSE),IF('UserSettings&Results'!AB61=\"TestTech\",VLOOKUP(AC$32,TestData,MATCH($C60,TechData_h,0),FALSE),VLOOKUP(AC$32,OldTechData,MATCH($C60,TechData_h,0),FALSE)))","v":""},{"$f":"IF('UserSettings&Results'!AC61=\"CurrentTech\",VLOOKUP(AD$32,TechData,MATCH($C60,TechData_h,0),FALSE),IF('UserSettings&Results'!AC61=\"TestTech\",VLOOKUP(AD$32,TestData,MATCH($C60,TechData_h,0),FALSE),VLOOKUP(AD$32,OldTechData,MATCH($C60,TechData_h,0),FALSE)))","v":""},{"$f":"IF('UserSettings&Results'!AD61=\"CurrentTech\",VLOOKUP(AE$32,TechData,MATCH($C60,TechData_h,0),FALSE),IF('UserSettings&Results'!AD61=\"TestTech\",VLOOKUP(AE$32,TestData,MATCH($C60,TechData_h,0),FALSE),VLOOKUP(AE$32,OldTechData,MATCH($C60,TechData_h,0),FALSE)))","v":""}]
[null,null,"Balancing costs",{"$f":"chosencurrency&\"/MWh\"","v":"EUR/MWh"},{"$f":"IF('UserSettings&Results'!D61=\"CurrentTech\",VLOOKUP(E$32,TechData,MATCH($C61,TechData_h,0),FALSE),IF('UserSettings&Results'!D61=\"TestTech\",VLOOKUP(E$32,TestData,MATCH($C61,TechData_h,0),FALSE),VLOOKUP(E$32,OldTechData,MATCH($C61,TechData_h,0),FALSE)))","v":0},{"$f":"IF('UserSettings&Results'!E61=\"CurrentTech\",VLOOKUP(F$32,TechData,MATCH($C61,TechData_h,0),FALSE),IF('UserSettings&Results'!E61=\"TestTech\",VLOOKUP(F$32,TestData,MATCH($C61,TechData_h,0),FALSE),VLOOKUP(F$32,OldTechData,MATCH($C61,TechData_h,0),FALSE)))","v":0},{"$f":"IF('UserSettings&Results'!F61=\"CurrentTech\",VLOOKUP(G$32,TechData,MATCH($C61,TechData_h,0),FALSE),IF('UserSettings&Results'!F61=\"TestTech\",VLOOKUP(G$32,TestData,MATCH($C61,TechData_h,0),FALSE),VLOOKUP(G$32,OldTechData,MATCH($C61,TechData_h,0),FALSE)))","v":0},{"$f":"IF('UserSettings&Results'!G61=\"CurrentTech\",VLOOKUP(H$32,TechData,MATCH($C61,TechData_h,0),FALSE),IF('UserSettings&Results'!G61=\"TestTech\",VLOOKUP(H$32,TestData,MATCH($C61,TechData_h,0),FALSE),VLOOKUP(H$32,OldTechData,MATCH($C61,TechData_h,0),FALSE)))","v":0},{"$f":"IF('UserSettings&Results'!H61=\"CurrentTech\",VLOOKUP(I$32,TechData,MATCH($C61,TechData_h,0),FALSE),IF('UserSettings&Results'!H61=\"TestTech\",VLOOKUP(I$32,TestData,MATCH($C61,TechData_h,0),FALSE),VLOOKUP(I$32,OldTechData,MATCH($C61,TechData_h,0),FALSE)))","v":0},{"$f":"IF('UserSettings&Results'!I61=\"CurrentTech\",VLOOKUP(J$32,TechData,MATCH($C61,TechData_h,0),FALSE),IF('UserSettings&Results'!I61=\"TestTech\",VLOOKUP(J$32,TestData,MATCH($C61,TechData_h,0),FALSE),VLOOKUP(J$32,OldTechData,MATCH($C61,TechData_h,0),FALSE)))","v":0},{"$f":"IF('UserSettings&Results'!J61=\"CurrentTech\",VLOOKUP(K$32,TechData,MATCH($C61,TechData_h,0),FALSE),IF('UserSettings&Results'!J61=\"TestTech\",VLOOKUP(K$32,TestData,MATCH($C61,TechData_h,0),FALSE),VLOOKUP(K$32,OldTechData,MATCH($C61,TechData_h,0),FALSE)))","v":0},{"$f":"IF('UserSettings&Results'!K61=\"CurrentTech\",VLOOKUP(L$32,TechData,MATCH($C61,TechData_h,0),FALSE),IF('UserSettings&Results'!K61=\"TestTech\",VLOOKUP(L$32,TestData,MATCH($C61,TechData_h,0),FALSE),VLOOKUP(L$32,OldTechData,MATCH($C61,TechData_h,0),FALSE)))","v":0},{"$f":"IF('UserSettings&Results'!L61=\"CurrentTech\",VLOOKUP(M$32,TechData,MATCH($C61,TechData_h,0),FALSE),IF('UserSettings&Results'!L61=\"TestTech\",VLOOKUP(M$32,TestData,MATCH($C61,TechData_h,0),FALSE),VLOOKUP(M$32,OldTechData,MATCH($C61,TechData_h,0),FALSE)))","v":0},{"$f":"IF('UserSettings&Results'!M61=\"CurrentTech\",VLOOKUP(N$32,TechData,MATCH($C61,TechData_h,0),FALSE),IF('UserSettings&Results'!M61=\"TestTech\",VLOOKUP(N$32,TestData,MATCH($C61,TechData_h,0),FALSE),VLOOKUP(N$32,OldTechData,MATCH($C61,TechData_h,0),FALSE)))","v":0},{"$f":"IF('UserSettings&Results'!N61=\"CurrentTech\",VLOOKUP(O$32,TechData,MATCH($C61,TechData_h,0),FALSE),IF('UserSettings&Results'!N61=\"TestTech\",VLOOKUP(O$32,TestData,MATCH($C61,TechData_h,0),FALSE),VLOOKUP(O$32,OldTechData,MATCH($C61,TechData_h,0),FALSE)))","v":0},{"$f":"IF('UserSettings&Results'!O61=\"CurrentTech\",VLOOKUP(P$32,TechData,MATCH($C61,TechData_h,0),FALSE),IF('UserSettings&Results'!O61=\"TestTech\",VLOOKUP(P$32,TestData,MATCH($C61,TechData_h,0),FALSE),VLOOKUP(P$32,OldTechData,MATCH($C61,TechData_h,0),FALSE)))","v":0},{"$f":"IF('UserSettings&Results'!P61=\"CurrentTech\",VLOOKUP(Q$32,TechData,MATCH($C61,TechData_h,0),FALSE),IF('UserSettings&Results'!P61=\"TestTech\",VLOOKUP(Q$32,TestData,MATCH($C61,TechData_h,0),FALSE),VLOOKUP(Q$32,OldTechData,MATCH($C61,TechData_h,0),FALSE)))","v":0},{"$f":"IF('UserSettings&Results'!Q61=\"CurrentTech\",VLOOKUP(R$32,TechData,MATCH($C61,TechData_h,0),FALSE),IF('UserSettings&Results'!Q61=\"TestTech\",VLOOKUP(R$32,TestData,MATCH($C61,TechData_h,0),FALSE),VLOOKUP(R$32,OldTechData,MATCH($C61,TechData_h,0),FALSE)))","v":0},{"$f":"IF('UserSettings&Results'!R61=\"CurrentTech\",VLOOKUP(S$32,TechData,MATCH($C61,TechData_h,0),FALSE),IF('UserSettings&Results'!R61=\"TestTech\",VLOOKUP(S$32,TestData,MATCH($C61,TechData_h,0),FALSE),VLOOKUP(S$32,OldTechData,MATCH($C61,TechData_h,0),FALSE)))","v":0},{"$f":"IF('UserSettings&Results'!S61=\"CurrentTech\",VLOOKUP(T$32,TechData,MATCH($C61,TechData_h,0),FALSE),IF('UserSettings&Results'!S61=\"TestTech\",VLOOKUP(T$32,TestData,MATCH($C61,TechData_h,0),FALSE),VLOOKUP(T$32,OldTechData,MATCH($C61,TechData_h,0),FALSE)))","v":0},{"$f":"IF('UserSettings&Results'!T61=\"CurrentTech\",VLOOKUP(U$32,TechData,MATCH($C61,TechData_h,0),FALSE),IF('UserSettings&Results'!T61=\"TestTech\",VLOOKUP(U$32,TestData,MATCH($C61,TechData_h,0),FALSE),VLOOKUP(U$32,OldTechData,MATCH($C61,TechData_h,0),FALSE)))","v":0},{"$f":"IF('UserSettings&Results'!U61=\"CurrentTech\",VLOOKUP(V$32,TechData,MATCH($C61,TechData_h,0),FALSE),IF('UserSettings&Results'!U61=\"TestTech\",VLOOKUP(V$32,TestData,MATCH($C61,TechData_h,0),FALSE),VLOOKUP(V$32,OldTechData,MATCH($C61,TechData_h,0),FALSE)))","v":0},{"$f":"IF('UserSettings&Results'!V61=\"CurrentTech\",VLOOKUP(W$32,TechData,MATCH($C61,TechData_h,0),FALSE),IF('UserSettings&Results'!V61=\"TestTech\",VLOOKUP(W$32,TestData,MATCH($C61,TechData_h,0),FALSE),VLOOKUP(W$32,OldTechData,MATCH($C61,TechData_h,0),FALSE)))","v":""},{"$f":"IF('UserSettings&Results'!W61=\"CurrentTech\",VLOOKUP(X$32,TechData,MATCH($C61,TechData_h,0),FALSE),IF('UserSettings&Results'!W61=\"TestTech\",VLOOKUP(X$32,TestData,MATCH($C61,TechData_h,0),FALSE),VLOOKUP(X$32,OldTechData,MATCH($C61,TechData_h,0),FALSE)))","v":""},{"$f":"IF('UserSettings&Results'!X61=\"CurrentTech\",VLOOKUP(Y$32,TechData,MATCH($C61,TechData_h,0),FALSE),IF('UserSettings&Results'!X61=\"TestTech\",VLOOKUP(Y$32,TestData,MATCH($C61,TechData_h,0),FALSE),VLOOKUP(Y$32,OldTechData,MATCH($C61,TechData_h,0),FALSE)))","v":""},{"$f":"IF('UserSettings&Results'!Y61=\"CurrentTech\",VLOOKUP(Z$32,TechData,MATCH($C61,TechData_h,0),FALSE),IF('UserSettings&Results'!Y61=\"TestTech\",VLOOKUP(Z$32,TestData,MATCH($C61,TechData_h,0),FALSE),VLOOKUP(Z$32,OldTechData,MATCH($C61,TechData_h,0),FALSE)))","v":""},{"$f":"IF('UserSettings&Results'!Z61=\"CurrentTech\",VLOOKUP(AA$32,TechData,MATCH($C61,TechData_h,0),FALSE),IF('UserSettings&Results'!Z61=\"TestTech\",VLOOKUP(AA$32,TestData,MATCH($C61,TechData_h,0),FALSE),VLOOKUP(AA$32,OldTechData,MATCH($C61,TechData_h,0),FALSE)))","v":""},{"$f":"IF('UserSettings&Results'!AA61=\"CurrentTech\",VLOOKUP(AB$32,TechData,MATCH($C61,TechData_h,0),FALSE),IF('UserSettings&Results'!AA61=\"TestTech\",VLOOKUP(AB$32,TestData,MATCH($C61,TechData_h,0),FALSE),VLOOKUP(AB$32,OldTechData,MATCH($C61,TechData_h,0),FALSE)))","v":""},{"$f":"IF('UserSettings&Results'!AB61=\"CurrentTech\",VLOOKUP(AC$32,TechData,MATCH($C61,TechData_h,0),FALSE),IF('UserSettings&Results'!AB61=\"TestTech\",VLOOKUP(AC$32,TestData,MATCH($C61,TechData_h,0),FALSE),VLOOKUP(AC$32,OldTechData,MATCH($C61,TechData_h,0),FALSE)))","v":""},{"$f":"IF('UserSettings&Results'!AC61=\"CurrentTech\",VLOOKUP(AD$32,TechData,MATCH($C61,TechData_h,0),FALSE),IF('UserSettings&Results'!AC61=\"TestTech\",VLOOKUP(AD$32,TestData,MATCH($C61,TechData_h,0),FALSE),VLOOKUP(AD$32,OldTechData,MATCH($C61,TechData_h,0),FALSE)))","v":""},{"$f":"IF('UserSettings&Results'!AD61=\"CurrentTech\",VLOOKUP(AE$32,TechData,MATCH($C61,TechData_h,0),FALSE),IF('UserSettings&Results'!AD61=\"TestTech\",VLOOKUP(AE$32,TestData,MATCH($C61,TechData_h,0),FALSE),VLOOKUP(AE$32,OldTechData,MATCH($C61,TechData_h,0),FALSE)))","v":""}]
[null,null,"Fuel price",{"$f":"chosencurrency&\"/GJ fuel\"","v":"EUR/GJ fuel"},{"$f":"IFERROR(IF(DiscountPrices=\"YES\",NPV(DiscountRate,OFFSET(FuelPrices!$C$42,MATCH(E34,FuelPrices_v,0)-1,MATCH(E44 &\"-\" &E37,FuelPrices_h,0)-1,Calculation!E$40,1))/E$42,VLOOKUP(E34,FuelPrices,MATCH(E44 &\"-\" &E37,FuelPrices_h,0),FALSE)),0)","v":0},{"$f":"IFERROR(IF(DiscountPrices=\"YES\",NPV(DiscountRate,OFFSET(FuelPrices!$C$42,MATCH(F34,FuelPrices_v,0)-1,MATCH(F44 &\"-\" &F37,FuelPrices_h,0)-1,Calculation!F$40,1))/F$42,VLOOKUP(F34,FuelPrices,MATCH(F44 &\"-\" &F37,FuelPrices_h,0),FALSE)),0)","v":0},{"$f":"IFERROR(IF(DiscountPrices=\"YES\",NPV(DiscountRate,OFFSET(FuelPrices!$C$42,MATCH(G34,FuelPrices_v,0)-1,MATCH(G44 &\"-\" &G37,FuelPrices_h,0)-1,Calculation!G$40,1))/G$42,VLOOKUP(G34,FuelPrices,MATCH(G44 &\"-\" &G37,FuelPrices_h,0),FALSE)),0)","v":0},{"$f":"IFERROR(IF(DiscountPrices=\"YES\",NPV(DiscountRate,OFFSET(FuelPrices!$C$42,MATCH(H34,FuelPrices_v,0)-1,MATCH(H44 &\"-\" &H37,FuelPrices_h,0)-1,Calculation!H$40,1))/H$42,VLOOKUP(H34,FuelPrices,MATCH(H44 &\"-\" &H37,FuelPrices_h,0),FALSE)),0)","v":0},{"$f":"IFERROR(IF(DiscountPrices=\"YES\",NPV(DiscountRate,OFFSET(FuelPrices!$C$42,MATCH(I34,FuelPrices_v,0)-1,MATCH(I44 &\"-\" &I37,FuelPrices_h,0)-1,Calculation!I$40,1))/I$42,VLOOKUP(I34,FuelPrices,MATCH(I44 &\"-\" &I37,FuelPrices_h,0),FALSE)),0)","v":0},{"$f":"IFERROR(IF(DiscountPrices=\"YES\",NPV(DiscountRate,OFFSET(FuelPrices!$C$42,MATCH(J34,FuelPrices_v,0)-1,MATCH(J44 &\"-\" &J37,FuelPrices_h,0)-1,Calculation!J$40,1))/J$42,VLOOKUP(J34,FuelPrices,MATCH(J44 &\"-\" &J37,FuelPrices_h,0),FALSE)),0)","v":0},{"$f":"IFERROR(IF(DiscountPrices=\"YES\",NPV(DiscountRate,OFFSET(FuelPrices!$C$42,MATCH(K34,FuelPrices_v,0)-1,MATCH(K44 &\"-\" &K37,FuelPrices_h,0)-1,Calculation!K$40,1))/K$42,VLOOKUP(K34,FuelPrices,MATCH(K44 &\"-\" &K37,FuelPrices_h,0),FALSE)),0)","v":0},{"$f":"IFERROR(IF(DiscountPrices=\"YES\",NPV(DiscountRate,OFFSET(FuelPrices!$C$42,MATCH(L34,FuelPrices_v,0)-1,MATCH(L44 &\"-\" &L37,FuelPrices_h,0)-1,Calculation!L$40,1))/L$42,VLOOKUP(L34,FuelPrices,MATCH(L44 &\"-\" &L37,FuelPrices_h,0),FALSE)),0)","v":10.78912986680481},{"$f":"IFERROR(IF(DiscountPrices=\"YES\",NPV(DiscountRate,OFFSET(FuelPrices!$C$42,MATCH(M34,FuelPrices_v,0)-1,MATCH(M44 &\"-\" &M37,FuelPrices_h,0)-1,Calculation!M$40,1))/M$42,VLOOKUP(M34,FuelPrices,MATCH(M44 &\"-\" &M37,FuelPrices_h,0),FALSE)),0)","v":8.2214722461203333},{"$f":"IFERROR(IF(DiscountPrices=\"YES\",NPV(DiscountRate,OFFSET(FuelPrices!$C$42,MATCH(N34,FuelPrices_v,0)-1,MATCH(N44 &\"-\" &N37,FuelPrices_h,0)-1,Calculation!N$40,1))/N$42,VLOOKUP(N34,FuelPrices,MATCH(N44 &\"-\" &N37,FuelPrices_h,0),FALSE)),0)","v":8.1608184615831103},{"$f":"IFERROR(IF(DiscountPrices=\"YES\",NPV(DiscountRate,OFFSET(FuelPrices!$C$42,MATCH(O34,FuelPrices_v,0)-1,MATCH(O44 &\"-\" &O37,FuelPrices_h,0)-1,Calculation!O$40,1))/O$42,VLOOKUP(O34,FuelPrices,MATCH(O44 &\"-\" &O37,FuelPrices_h,0),FALSE)),0)","v":8.1608184615831103},{"$f":"IFERROR(IF(DiscountPrices=\"YES\",NPV(DiscountRate,OFFSET(FuelPrices!$C$42,MATCH(P34,FuelPrices_v,0)-1,MATCH(P44 &\"-\" &P37,FuelPrices_h,0)-1,Calculation!P$40,1))/P$42,VLOOKUP(P34,FuelPrices,MATCH(P44 &\"-\" &P37,FuelPrices_h,0),FALSE)),0)","v":3.3943272763484122},{"$f":"IFERROR(IF(DiscountPrices=\"YES\",NPV(DiscountRate,OFFSET(FuelPrices!$C$42,MATCH(Q34,FuelPrices_v,0)-1,MATCH(Q44 &\"-\" &Q37,FuelPrices_h,0)-1,Calculation!Q$40,1))/Q$42,VLOOKUP(Q34,FuelPrices,MATCH(Q44 &\"-\" &Q37,FuelPrices_h,0),FALSE)),0)","v":3.5173164372198871},{"$f":"IFERROR(IF(DiscountPrices=\"YES\",NPV(DiscountRate,OFFSET(FuelPrices!$C$42,MATCH(R34,FuelPrices_v,0)-1,MATCH(R44 &\"-\" &R37,FuelPrices_h,0)-1,Calculation!R$40,1))/R$42,VLOOKUP(R34,FuelPrices,MATCH(R44 &\"-\" &R37,FuelPrices_h,0),FALSE)),0)","v":9.1681163289642225},{"$f":"IFERROR(IF(DiscountPrices=\"YES\",NPV(DiscountRate,OFFSET(FuelPrices!$C$42,MATCH(S34,FuelPrices_v,0)-1,MATCH(S44 &\"-\" &S37,FuelPrices_h,0)-1,Calculation!S$40,1))/S$42,VLOOKUP(S34,FuelPrices,MATCH(S44 &\"-\" &S37,FuelPrices_h,0),FALSE)),0)","v":1.8446514955803921},{"$f":"IFERROR(IF(DiscountPrices=\"YES\",NPV(DiscountRate,OFFSET(FuelPrices!$C$42,MATCH(T34,FuelPrices_v,0)-1,MATCH(T44 &\"-\" &T37,FuelPrices_h,0)-1,Calculation!T$40,1))/T$42,VLOOKUP(T34,FuelPrices,MATCH(T44 &\"-\" &T37,FuelPrices_h,0),FALSE)),0)","v":3.3203747440105245},{"$f":"IFERROR(IF(DiscountPrices=\"YES\",NPV(DiscountRate,OFFSET(FuelPrices!$C$42,MATCH(U34,FuelPrices_v,0)-1,MATCH(U44 &\"-\" &U37,FuelPrices_h,0)-1,Calculation!U$40,1))/U$42,VLOOKUP(U34,FuelPrices,MATCH(U44 &\"-\" &U37,FuelPrices_h,0),FALSE)),0)","v":9.2408169150517452},{"$f":"IFERROR(IF(DiscountPrices=\"YES\",NPV(DiscountRate,OFFSET(FuelPrices!$C$42,MATCH(V34,FuelPrices_v,0)-1,MATCH(V44 &\"-\" &V37,FuelPrices_h,0)-1,Calculation!V$40,1))/V$42,VLOOKUP(V34,FuelPrices,MATCH(V44 &\"-\" &V37,FuelPrices_h,0),FALSE)),0)","v":0},{"$f":"IFERROR(IF(DiscountPrices=\"YES\",NPV(DiscountRate,OFFSET(FuelPrices!$C$42,MATCH(W34,FuelPrices_v,0)-1,MATCH(W44 &\"-\" &W37,FuelPrices_h,0)-1,Calculation!W$40,1))/W$42,VLOOKUP(W34,FuelPrices,MATCH(W44 &\"-\" &W37,FuelPrices_h,0),FALSE)),0)","v":0},{"$f":"IFERROR(IF(DiscountPrices=\"YES\",NPV(DiscountRate,OFFSET(FuelPrices!$C$42,MATCH(X34,FuelPrices_v,0)-1,MATCH(X44 &\"-\" &X37,FuelPrices_h,0)-1,Calculation!X$40,1))/X$42,VLOOKUP(X34,FuelPrices,MATCH(X44 &\"-\" &X37,FuelPrices_h,0),FALSE)),0)","v":0},{"$f":"IFERROR(IF(DiscountPrices=\"YES\",NPV(DiscountRate,OFFSET(FuelPrices!$C$42,MATCH(Y34,FuelPrices_v,0)-1,MATCH(Y44 &\"-\" &Y37,FuelPrices_h,0)-1,Calculation!Y$40,1))/Y$42,VLOOKUP(Y34,FuelPrices,MATCH(Y44 &\"-\" &Y37,FuelPrices_h,0),FALSE)),0)","v":0},{"$f":"IFERROR(IF(DiscountPrices=\"YES\",NPV(DiscountRate,OFFSET(FuelPrices!$C$42,MATCH(Z34,FuelPrices_v,0)-1,MATCH(Z44 &\"-\" &Z37,FuelPrices_h,0)-1,Calculation!Z$40,1))/Z$42,VLOOKUP(Z34,FuelPrices,MATCH(Z44 &\"-\" &Z37,FuelPrices_h,0),FALSE)),0)","v":0},{"$f":"IFERROR(IF(DiscountPrices=\"YES\",NPV(DiscountRate,OFFSET(FuelPrices!$C$42,MATCH(AA34,FuelPrices_v,0)-1,MATCH(AA44 &\"-\" &AA37,FuelPrices_h,0)-1,Calculation!AA$40,1))/AA$42,VLOOKUP(AA34,FuelPrices,MATCH(AA44 &\"-\" &AA37,FuelPrices_h,0),FALSE)),0)","v":0},{"$f":"IFERROR(IF(DiscountPrices=\"YES\",NPV(DiscountRate,OFFSET(FuelPrices!$C$42,MATCH(AB34,FuelPrices_v,0)-1,MATCH(AB44 &\"-\" &AB37,FuelPrices_h,0)-1,Calculation!AB$40,1))/AB$42,VLOOKUP(AB34,FuelPrices,MATCH(AB44 &\"-\" &AB37,FuelPrices_h,0),FALSE)),0)","v":0},{"$f":"IFERROR(IF(DiscountPrices=\"YES\",NPV(DiscountRate,OFFSET(FuelPrices!$C$42,MATCH(AC34,FuelPrices_v,0)-1,MATCH(AC44 &\"-\" &AC37,FuelPrices_h,0)-1,Calculation!AC$40,1))/AC$42,VLOOKUP(AC34,FuelPrices,MATCH(AC44 &\"-\" &AC37,FuelPrices_h,0),FALSE)),0)","v":0},{"$f":"IFERROR(IF(DiscountPrices=\"YES\",NPV(DiscountRate,OFFSET(FuelPrices!$C$42,MATCH(AD34,FuelPrices_v,0)-1,MATCH(AD44 &\"-\" &AD37,FuelPrices_h,0)-1,Calculation!AD$40,1))/AD$42,VLOOKUP(AD34,FuelPrices,MATCH(AD44 &\"-\" &AD37,FuelPrices_h,0),FALSE)),0)","v":0},{"$f":"IFERROR(IF(DiscountPrices=\"YES\",NPV(DiscountRate,OFFSET(FuelPrices!$C$42,MATCH(AE34,FuelPrices_v,0)-1,MATCH(AE44 &\"-\" &AE37,FuelPrices_h,0)-1,Calculation!AE$40,1))/AE$42,VLOOKUP(AE34,FuelPrices,MATCH(AE44 &\"-\" &AE37,FuelPrices_h,0),FALSE)),0)","v":0}]
[null,null,"CO2-price",{"$f":"chosencurrency&\"/ton\"","v":"EUR/ton"},{"$f":"IF(DiscountPrices=\"YES\",NPV(DiscountRate,OFFSET(EmissionPrices!$C$38,MATCH(E34,EmissionPrices_v,0)-1,MATCH($C63,EmissionPrices_h,0)-1,E$40,1))/E$42,VLOOKUP(E34,EmissionPrices,MATCH($C63,EmissionPrices_h,0),FALSE))","v":105.49551977481592},{"$f":"IF(DiscountPrices=\"YES\",NPV(DiscountRate,OFFSET(EmissionPrices!$C$38,MATCH(F34,EmissionPrices_v,0)-1,MATCH($C63,EmissionPrices_h,0)-1,F$40,1))/F$42,VLOOKUP(F34,EmissionPrices,MATCH($C63,EmissionPrices_h,0),FALSE))","v":105.49551977481592},{"$f":"IF(DiscountPrices=\"YES\",NPV(DiscountRate,OFFSET(EmissionPrices!$C$38,MATCH(G34,EmissionPrices_v,0)-1,MATCH($C63,EmissionPrices_h,0)-1,G$40,1))/G$42,VLOOKUP(G34,EmissionPrices,MATCH($C63,EmissionPrices_h,0),FALSE))","v":105.49551977481592},{"$f":"IF(DiscountPrices=\"YES\",NPV(DiscountRate,OFFSET(EmissionPrices!$C$38,MATCH(H34,EmissionPrices_v,0)-1,MATCH($C63,EmissionPrices_h,0)-1,H$40,1))/H$42,VLOOKUP(H34,EmissionPrices,MATCH($C63,EmissionPrices_h,0),FALSE))","v":115.89924445522773},{"$f":"IF(DiscountPrices=\"YES\",NPV(DiscountRate,OFFSET(EmissionPrices!$C$38,MATCH(I34,EmissionPrices_v,0)-1,MATCH($C63,EmissionPrices_h,0)-1,I$40,1))/I$42,VLOOKUP(I34,EmissionPrices,MATCH($C63,EmissionPrices_h,0),FALSE))","v":115.89924445522773},{"$f":"IF(DiscountPrices=\"YES\",NPV(DiscountRate,OFFSET(EmissionPrices!$C$38,MATCH(J34,EmissionPrices_v,0)-1,MATCH($C63,EmissionPrices_h,0)-1,J$40,1))/J$42,VLOOKUP(J34,EmissionPrices,MATCH($C63,EmissionPrices_h,0),FALSE))","v":105.49551977481592},{"$f":"IF(DiscountPrices=\"YES\",NPV(DiscountRate,OFFSET(EmissionPrices!$C$38,MATCH(K34,EmissionPrices_v,0)-1,MATCH($C63,EmissionPrices_h,0)-1,K$40,1))/K$42,VLOOKUP(K34,EmissionPrices,MATCH($C63,EmissionPrices_h,0),FALSE))","v":115.89924445522773},{"$f":"IF(DiscountPrices=\"YES\",NPV(DiscountRate,OFFSET(EmissionPrices!$C$38,MATCH(L34,EmissionPrices_v,0)-1,MATCH($C63,EmissionPrices_h,0)-1,L$40,1))/L$42,VLOOKUP(L34,EmissionPrices,MATCH($C63,EmissionPrices_h,0),FALSE))","v":96.803689686409271},{"$f":"IF(DiscountPrices=\"YES\",NPV(DiscountRate,OFFSET(EmissionPrices!$C$38,MATCH(M34,EmissionPrices_v,0)-1,MATCH($C63,EmissionPrices_h,0)-1,M$40,1))/M$42,VLOOKUP(M34,EmissionPrices,MATCH($C63,EmissionPrices_h,0),FALSE))","v":96.803689686409271},{"$f":"IF(DiscountPrices=\"YES\",NPV(DiscountRate,OFFSET(EmissionPrices!$C$38,MATCH(N34,EmissionPrices_v,0)-1,MATCH($C63,EmissionPrices_h,0)-1,N$40,1))/N$42,VLOOKUP(N34,EmissionPrices,MATCH($C63,EmissionPrices_h,0),FALSE))","v":79.109638341533241},{"$f":"IF(DiscountPrices=\"YES\",NPV(DiscountRate,OFFSET(EmissionPrices!$C$38,MATCH(O34,EmissionPrices_v,0)-1,MATCH($C63,EmissionPrices_h,0)-1,O$40,1))/O$42,VLOOKUP(O34,EmissionPrices,MATCH($C63,EmissionPrices_h,0),FALSE))","v":79.109638341533241},{"$f":"IF(DiscountPrices=\"YES\",NPV(DiscountRate,OFFSET(EmissionPrices!$C$38,MATCH(P34,EmissionPrices_v,0)-1,MATCH($C63,EmissionPrices_h,0)-1,P$40,1))/P$42,VLOOKUP(P34,EmissionPrices,MATCH($C63,EmissionPrices_h,0),FALSE))","v":96.803689686409271},{"$f":"IF(DiscountPrices=\"YES\",NPV(DiscountRate,OFFSET(EmissionPrices!$C$38,MATCH(Q34,EmissionPrices_v,0)-1,MATCH($C63,EmissionPrices_h,0)-1,Q$40,1))/Q$42,VLOOKUP(Q34,EmissionPrices,MATCH($C63,EmissionPrices_h,0),FALSE))","v":79.109638341533241},{"$f":"IF(DiscountPrices=\"YES\",NPV(DiscountRate,OFFSET(EmissionPrices!$C$38,MATCH(R34,EmissionPrices_v,0)-1,MATCH($C63,EmissionPrices_h,0)-1,R$40,1))/R$42,VLOOKUP(R34,EmissionPrices,MATCH($C63,EmissionPrices_h,0),FALSE))","v":96.803689686409271},{"$f":"IF(DiscountPrices=\"YES\",NPV(DiscountRate,OFFSET(EmissionPrices!$C$38,MATCH(S34,EmissionPrices_v,0)-1,MATCH($C63,EmissionPrices_h,0)-1,S$40,1))/S$42,VLOOKUP(S34,EmissionPrices,MATCH($C63,EmissionPrices_h,0),FALSE))","v":123.14174777290938},{"$f":"IF(DiscountPrices=\"YES\",NPV(DiscountRate,OFFSET(EmissionPrices!$C$38,MATCH(T34,EmissionPrices_v,0)-1,MATCH($C63,EmissionPrices_h,0)-1,T$40,1))/T$42,VLOOKUP(T34,EmissionPrices,MATCH($C63,EmissionPrices_h,0),FALSE))","v":115.89924445522773},{"$f":"IF(DiscountPrices=\"YES\",NPV(DiscountRate,OFFSET(EmissionPrices!$C$38,MATCH(U34,EmissionPrices_v,0)-1,MATCH($C63,EmissionPrices_h,0)-1,U$40,1))/U$42,VLOOKUP(U34,EmissionPrices,MATCH($C63,EmissionPrices_h,0),FALSE))","v":105.49551977481592},{"$f":"IF(DiscountPrices=\"YES\",NPV(DiscountRate,OFFSET(EmissionPrices!$C$38,MATCH(V34,EmissionPrices_v,0)-1,MATCH($C63,EmissionPrices_h,0)-1,V$40,1))/V$42,VLOOKUP(V34,EmissionPrices,MATCH($C63,EmissionPrices_h,0),FALSE))","v":105.49551977481592},{"$f":"IF(DiscountPrices=\"YES\",NPV(DiscountRate,OFFSET(EmissionPrices!$C$38,MATCH(W34,EmissionPrices_v,0)-1,MATCH($C63,EmissionPrices_h,0)-1,W$40,1))/W$42,VLOOKUP(W34,EmissionPrices,MATCH($C63,EmissionPrices_h,0),FALSE))","v":{"$error":"#VALUE!"}},{"$f":"IF(DiscountPrices=\"YES\",NPV(DiscountRate,OFFSET(EmissionPrices!$C$38,MATCH(X34,EmissionPrices_v,0)-1,MATCH($C63,EmissionPrices_h,0)-1,X$40,1))/X$42,VLOOKUP(X34,EmissionPrices,MATCH($C63,EmissionPrices_h,0),FALSE))","v":{"$error":"#VALUE!"}},{"$f":"IF(DiscountPrices=\"YES\",NPV(DiscountRate,OFFSET(EmissionPrices!$C$38,MATCH(Y34,EmissionPrices_v,0)-1,MATCH($C63,EmissionPrices_h,0)-1,Y$40,1))/Y$42,VLOOKUP(Y34,EmissionPrices,MATCH($C63,EmissionPrices_h,0),FALSE))","v":{"$error":"#VALUE!"}},{"$f":"IF(DiscountPrices=\"YES\",NPV(DiscountRate,OFFSET(EmissionPrices!$C$38,MATCH(Z34,EmissionPrices_v,0)-1,MATCH($C63,EmissionPrices_h,0)-1,Z$40,1))/Z$42,VLOOKUP(Z34,EmissionPrices,MATCH($C63,EmissionPrices_h,0),FALSE))","v":{"$error":"#VALUE!"}},{"$f":"IF(DiscountPrices=\"YES\",NPV(DiscountRate,OFFSET(EmissionPrices!$C$38,MATCH(AA34,EmissionPrices_v,0)-1,MATCH($C63,EmissionPrices_h,0)-1,AA$40,1))/AA$42,VLOOKUP(AA34,EmissionPrices,MATCH($C63,EmissionPrices_h,0),FALSE))","v":{"$error":"#VALUE!"}},{"$f":"IF(DiscountPrices=\"YES\",NPV(DiscountRate,OFFSET(EmissionPrices!$C$38,MATCH(AB34,EmissionPrices_v,0)-1,MATCH($C63,EmissionPrices_h,0)-1,AB$40,1))/AB$42,VLOOKUP(AB34,EmissionPrices,MATCH($C63,EmissionPrices_h,0),FALSE))","v":{"$error":"#VALUE!"}},{"$f":"IF(DiscountPrices=\"YES\",NPV(DiscountRate,OFFSET(EmissionPrices!$C$38,MATCH(AC34,EmissionPrices_v,0)-1,MATCH($C63,EmissionPrices_h,0)-1,AC$40,1))/AC$42,VLOOKUP(AC34,EmissionPrices,MATCH($C63,EmissionPrices_h,0),FALSE))","v":{"$error":"#VALUE!"}},{"$f":"IF(DiscountPrices=\"YES\",NPV(DiscountRate,OFFSET(EmissionPrices!$C$38,MATCH(AD34,EmissionPrices_v,0)-1,MATCH($C63,EmissionPrices_h,0)-1,AD$40,1))/AD$42,VLOOKUP(AD34,EmissionPrices,MATCH($C63,EmissionPrices_h,0),FALSE))","v":{"$error":"#VALUE!"}},{"$f":"IF(DiscountPrices=\"YES\",NPV(DiscountRate,OFFSET(EmissionPrices!$C$38,MATCH(AE34,EmissionPrices_v,0)-1,MATCH($C63,EmissionPrices_h,0)-1,AE$40,1))/AE$42,VLOOKUP(AE34,EmissionPrices,MATCH($C63,EmissionPrices_h,0),FALSE))","v":{"$error":"#VALUE!"}}]
[null,null,"CO2-price",{"$f":"chosencurrency&\"/GJ fuel\"","v":"EUR/GJ fuel"},{"$f":"E63*E45/1000","v":0},{"$f":"F63*F45/1000","v":0},0,0,0,0,0,0,0,0,0,9.128587937428394,7.4600388956065844,5.517810312125329,0,10.929298752127973,6.0132446271645072,0,{"$error":"#VALUE!"},{"$error":"#VALUE!"},{"$error":"#VALUE!"},{"$error":"#VALUE!"},{"$error":"#VALUE!"},{"$error":"#VALUE!"},{"$error":"#VALUE!"},{"$error":"#VALUE!"},{"$error":"#VALUE!"}]
[null,null,"Fuel + CO2 price",{"$f":"chosencurrency&\"/GJ fuel\"","v":"EUR/GJ fuel"},{"$f":"E62+E64","v":0},{"$f":"F62+F64","v":0},0,0,0,0,0,10.78912986680481,8.2214722461203333,8.1608184615831103,8.1608184615831103,12.522915213776805,10.977355332826471,14.685926641089551,1.8446514955803921,14.249673496138499,15.254061542216252,0,{"$error":"#VALUE!"},{"$error":"#VALUE!"},{"$error":"#VALUE!"},{"$error":"#VALUE!"},{"$error":"#VALUE!"},{"$error":"#VALUE!"},{"$error":"#VALUE!"},{"$error":"#VALUE!"},{"$error":"#VALUE!"}]
[null,null,"CH4-price",{"$f":"chosencurrency&\"/GJ fuel\"","v":"EUR/GJ fuel"},{"$f":"IF('UserSettings&Results'!$E$40=\"YES\",E$63*E46/1000,0)","v":0},{"$f":"IF('UserSettings&Results'!$E$40=\"YES\",F$63*F46/1000,0)","v":0},{"$f":"IF('UserSettings&Results'!$E$40=\"YES\",G$63*G46/1000,0)","v":0},{"$f":"IF('UserSettings&Results'!$E$40=\"YES\",H$63*H46/1000,0)","v":0},{"$f":"IF('UserSettings&Results'!$E$40=\"YES\",I$63*I46/1000,0)","v":0},{"$f":"IF('UserSettings&Results'!$E$40=\"YES\",J$63*J46/1000,0)","v":0},{"$f":"IF('UserSettings&Results'!$E$40=\"YES\",K$63*K46/1000,0)","v":0},{"$f":"IF('UserSettings&Results'!$E$40=\"YES\",L$63*L46/1000,0)","v":0},{"$f":"IF('UserSettings&Results'!$E$40=\"YES\",M$63*M46/1000,0)","v":3.6761201158413922E-3},{"$f":"IF('UserSettings&Results'!$E$40=\"YES\",N$63*N46/1000,0)","v":9.8887047926916557E-4},{"$f":"IF('UserSettings&Results'!$E$40=\"YES\",O$63*O46/1000,0)","v":6.1309969714688261E-3},{"$f":"IF('UserSettings&Results'!$E$40=\"YES\",P$63*P46/1000,0)","v":3.6301383632403477E-3},{"$f":"IF('UserSettings&Results'!$E$40=\"YES\",Q$63*Q46/1000,0)","v":2.9666114378074965E-3},{"$f":"IF('UserSettings&Results'!$E$40=\"YES\",R$63*R46/1000,0)","v":3.6301383632403477E-3},{"$f":"IF('UserSettings&Results'!$E$40=\"YES\",S$63*S46/1000,0)","v":0},{"$f":"IF('UserSettings&Results'!$E$40=\"YES\",T$63*T46/1000,0)","v":4.3462216670710398E-3},{"$f":"IF('UserSettings&Results'!$E$40=\"YES\",U$63*U46/1000,0)","v":5.2747759887407956E-3},{"$f":"IF('UserSettings&Results'!$E$40=\"YES\",V$63*V46/1000,0)","v":0},{"$f":"IF('UserSettings&Results'!$E$40=\"YES\",W$63*W46/1000,0)","v":{"$error":"#VALUE!"}},{"$f":"IF('UserSettings&Results'!$E$40=\"YES\",X$63*X46/1000,0)","v":{"$error":"#VALUE!"}},{"$f":"IF('UserSettings&Results'!$E$40=\"YES\",Y$63*Y46/1000,0)","v":{"$error":"#VALUE!"}},{"$f":"IF('UserSettings&Results'!$E$40=\"YES\",Z$63*Z46/1000,0)","v":{"$error":"#VALUE!"}},{"$f":"IF('UserSettings&Results'!$E$40=\"YES\",AA$63*AA46/1000,0)","v":{"$error":"#VALUE!"}},{"$f":"IF('UserSettings&Results'!$E$40=\"YES\",AB$63*AB46/1000,0)","v":{"$error":"#VALUE!"}},{"$f":"IF('UserSettings&Results'!$E$40=\"YES\",AC$63*AC46/1000,0)","v":{"$error":"#VALUE!"}},{"$f":"IF('UserSettings&Results'!$E$40=\"YES\",AD$63*AD46/1000,0)","v":{"$error":"#VALUE!"}},{"$f":"IF('UserSettings&Results'!$E$40=\"YES\",AE$63*AE46/1000,0)","v":{"$error":"#VALUE!"}}]
[null,null,"N2O-price",{"$f":"chosencurrency&\"/GJ fuel\"","v":"EUR/GJ fuel"},{"$f":"IF('UserSettings&Results'!$E$40=\"YES\",E$63*E47/1000,0)","v":0},{"$f":"IF('UserSettings&Results'!$E$40=\"YES\",F$63*F47/1000,0)","v":0},{"$f":"IF('UserSettings&Results'!$E$40=\"YES\",G$63*G47/1000,0)","v":0},{"$f":"IF('UserSettings&Results'!$E$40=\"YES\",H$63*H47/1000,0)","v":0},{"$f":"IF('UserSettings&Results'!$E$40=\"YES\",I$63*I47/1000,0)","v":0},{"$f":"IF('UserSettings&Results'!$E$40=\"YES\",J$63*J47/1000,0)","v":0},{"$f":"IF('UserSettings&Results'!$E$40=\"YES\",K$63*K47/1000,0)","v":0},{"$f":"IF('UserSettings&Results'!$E$40=\"YES\",L$63*L47/1000,0)","v":2.8847499526549959E-2},{"$f":"IF('UserSettings&Results'!$E$40=\"YES\",M$63*M47/1000,0)","v":1.4991468553957487E-2},{"$f":"IF('UserSettings&Results'!$E$40=\"YES\",N$63*N47/1000,0)","v":0.11787336112888452},{"$f":"IF('UserSettings&Results'!$E$40=\"YES\",O$63*O47/1000,0)","v":0.14144803335466144},{"$f":"IF('UserSettings&Results'!$E$40=\"YES\",P$63*P47/1000,0)","v":2.3077999621239971E-2},{"$f":"IF('UserSettings&Results'!$E$40=\"YES\",Q$63*Q47/1000,0)","v":1.8859737780621527E-2},{"$f":"IF('UserSettings&Results'!$E$40=\"YES\",R$63*R47/1000,0)","v":2.8847499526549959E-2},{"$f":"IF('UserSettings&Results'!$E$40=\"YES\",S$63*S47/1000,0)","v":0},{"$f":"IF('UserSettings&Results'!$E$40=\"YES\",T$63*T47/1000,0)","v":2.763037987812629E-2},{"$f":"IF('UserSettings&Results'!$E$40=\"YES\",U$63*U47/1000,0)","v":3.1437664892895144E-2},{"$f":"IF('UserSettings&Results'!$E$40=\"YES\",V$63*V47/1000,0)","v":0},{"$f":"IF('UserSettings&Results'!$E$40=\"YES\",W$63*W47/1000,0)","v":{"$error":"#VALUE!"}},{"$f":"IF('UserSettings&Results'!$E$40=\"YES\",X$63*X47/1000,0)","v":{"$error":"#VALUE!"}},{"$f":"IF('UserSettings&Results'!$E$40=\"YES\",Y$63*Y47/1000,0)","v":{"$error":"#VALUE!"}},{"$f":"IF('UserSettings&Results'!$E$40=\"YES\",Z$63*Z47/1000,0)","v":{"$error":"#VALUE!"}},{"$f":"IF('UserSettings&Results'!$E$40=\"YES\",AA$63*AA47/1000,0)","v":{"$error":"#VALUE!"}},{"$f":"IF('UserSettings&Results'!$E$40=\"YES\",AB$63*AB47/1000,0)","v":{"$error":"#VALUE!"}},{"$f":"IF('UserSettings&Results'!$E$40=\"YES\",AC$63*AC47/1000,0)","v":{"$error":"#VALUE!"}},{"$f":"IF('UserSettings&Results'!$E$40=\"YES\",AD$63*AD47/1000,0)","v":{"$error":"#VALUE!"}},{"$f":"IF('UserSettings&Results'!$E$40=\"YES\",AE$63*AE47/1000,0)","v":{"$error":"#VALUE!"}}]
[null,null,"SO2-price",{"$f":"chosencurrency&\"/kg\"","v":"EUR/kg"},{"$f":"IF('UserSettings&Results'!$E$40=\"YES\",IF(DiscountPrices=\"YES\",NPV(DiscountRate,OFFSET(EmissionPrices!$C$38,MATCH(E34,EmissionPrices_v,0)-1,MATCH($C68,EmissionPrices_h,0)-1,E$40,1))/E$42,VLOOKUP(E34,EmissionPrices,MATCH($C68,EmissionPrices_h,0),FALSE)),0)","v":17.538618588486955},{"$f":"IF('UserSettings&Results'!$E$40=\"YES\",IF(DiscountPrices=\"YES\",NPV(DiscountRate,OFFSET(EmissionPrices!$C$38,MATCH(F34,EmissionPrices_v,0)-1,MATCH($C68,EmissionPrices_h,0)-1,F$40,1))/F$42,VLOOKUP(F34,EmissionPrices,MATCH($C68,EmissionPrices_h,0),FALSE)),0)","v":17.538618588486955},{"$f":"IF('UserSettings&Results'!$E$40=\"YES\",IF(DiscountPrices=\"YES\",NPV(DiscountRate,OFFSET(EmissionPrices!$C$38,MATCH(G34,EmissionPrices_v,0)-1,MATCH($C68,EmissionPrices_h,0)-1,G$40,1))/G$42,VLOOKUP(G34,EmissionPrices,MATCH($C68,EmissionPrices_h,0),FALSE)),0)","v":17.538618588486955},{"$f":"IF('UserSettings&Results'!$E$40=\"YES\",IF(DiscountPrices=\"YES\",NPV(DiscountRate,OFFSET(EmissionPrices!$C$38,MATCH(H34,EmissionPrices_v,0)-1,MATCH($C68,EmissionPrices_h,0)-1,H$40,1))/H$42,VLOOKUP(H34,EmissionPrices,MATCH($C68,EmissionPrices_h,0),FALSE)),0)","v":17.538618588486951},{"$f":"IF('UserSettings&Results'!$E$40=\"YES\",IF(DiscountPrices=\"YES\",NPV(DiscountRate,OFFSET(EmissionPrices!$C$38,MATCH(I34,EmissionPrices_v,0)-1,MATCH($C68,EmissionPrices_h,0)-1,I$40,1))/I$42,VLOOKUP(I34,EmissionPrices,MATCH($C68,EmissionPrices_h,0),FALSE)),0)","v":17.538618588486951},{"$f":"IF('UserSettings&Results'!$E$40=\"YES\",IF(DiscountPrices=\"YES\",NPV(DiscountRate,OFFSET(EmissionPrices!$C$38,MATCH(J34,EmissionPrices_v,0)-1,MATCH($C68,EmissionPrices_h,0)-1,J$40,1))/J$42,VLOOKUP(J34,EmissionPrices,MATCH($C68,EmissionPrices_h,0),FALSE)),0)","v":17.538618588486955},{"$f":"IF('UserSettings&Results'!$E$40=\"YES\",IF(DiscountPrices=\"YES\",NPV(DiscountRate,OFFSET(EmissionPrices!$C$38,MATCH(K34,EmissionPrices_v,0)-1,MATCH($C68,EmissionPrices_h,0)-1,K$40,1))/K$42,VLOOKUP(K34,EmissionPrices,MATCH($C68,EmissionPrices_h,0),FALSE)),0)","v":17.538618588486951},{"$f":"IF('UserSettings&Results'!$E$40=\"YES\",IF(DiscountPrices=\"YES\",NPV(DiscountRate,OFFSET(EmissionPrices!$C$38,MATCH(L34,EmissionPrices_v,0)-1,MATCH($C68,EmissionPrices_h,0)-1,L$40,1))/L$42,VLOOKUP(L34,EmissionPrices,MATCH($C68,EmissionPrices_h,0),FALSE)),0)","v":17.538618588486951},{"$f":"IF('UserSettings&Results'!$E$40=\"YES\",IF(DiscountPrices=\"YES\",NPV(DiscountRate,OFFSET(EmissionPrices!$C$38,MATCH(M34,EmissionPrices_v,0)-1,MATCH($C68,EmissionPrices_h,0)-1,M$40,1))/M$42,VLOOKUP(M34,EmissionPrices,MATCH($C68,EmissionPrices_h,0),FALSE)),0)","v":17.538618588486951},{"$f":"IF('UserSettings&Results'!$E$40=\"YES\",IF(DiscountPrices=\"YES\",NPV(DiscountRate,OFFSET(EmissionPrices!$C$38,MATCH(N34,EmissionPrices_v,0)-1,MATCH($C68,EmissionPrices_h,0)-1,N$40,1))/N$42,VLOOKUP(N34,EmissionPrices,MATCH($C68,EmissionPrices_h,0),FALSE)),0)","v":17.538618588486948},{"$f":"IF('UserSettings&Results'!$E$40=\"YES\",IF(DiscountPrices=\"YES\",NPV(DiscountRate,OFFSET(EmissionPrices!$C$38,MATCH(O34,EmissionPrices_v,0)-1,MATCH($C68,EmissionPrices_h,0)-1,O$40,1))/O$42,VLOOKUP(O34,EmissionPrices,MATCH($C68,EmissionPrices_h,0),FALSE)),0)","v":17.538618588486948},{"$f":"IF('UserSettings&Results'!$E$40=\"YES\",IF(DiscountPrices=\"YES\",NPV(DiscountRate,OFFSET(EmissionPrices!$C$38,MATCH(P34,EmissionPrices_v,0)-1,MATCH($C68,EmissionPrices_h,0)-1,P$40,1))/P$42,VLOOKUP(P34,EmissionPrices,MATCH($C68,EmissionPrices_h,0),FALSE)),0)","v":17.538618588486951},{"$f":"IF('UserSettings&Results'!$E$40=\"YES\",IF(DiscountPrices=\"YES\",NPV(DiscountRate,OFFSET(EmissionPrices!$C$38,MATCH(Q34,EmissionPrices_v,0)-1,MATCH($C68,EmissionPrices_h,0)-1,Q$40,1))/Q$42,VLOOKUP(Q34,EmissionPrices,MATCH($C68,EmissionPrices_h,0),FALSE)),0)","v":17.538618588486948},{"$f":"IF('UserSettings&Results'!$E$40=\"YES\",IF(DiscountPrices=\"YES\",NPV(DiscountRate,OFFSET(EmissionPrices!$C$38,MATCH(R34,EmissionPrices_v,0)-1,MATCH($C68,EmissionPrices_h,0)-1,R$40,1))/R$42,VLOOKUP(R34,EmissionPrices,MATCH($C68,EmissionPrices_h,0),FALSE)),0)","v":17.538618588486951},{"$f":"IF('UserSettings&Results'!$E$40=\"YES\",IF(DiscountPrices=\"YES\",NPV(DiscountRate,OFFSET(EmissionPrices!$C$38,MATCH(S34,EmissionPrices_v,0)-1,MATCH($C68,EmissionPrices_h,0)-1,S$40,1))/S$42,VLOOKUP(S34,EmissionPrices,MATCH($C68,EmissionPrices_h,0),FALSE)),0)","v":17.797936696024255},{"$f":"IF('UserSettings&Results'!$E$40=\"YES\",IF(DiscountPrices=\"YES\",NPV(DiscountRate,OFFSET(EmissionPrices!$C$38,MATCH(T34,EmissionPrices_v,0)-1,MATCH($C68,EmissionPrices_h,0)-1,T$40,1))/T$42,VLOOKUP(T34,EmissionPrices,MATCH($C68,EmissionPrices_h,0),FALSE)),0)","v":17.538618588486951},{"$f":"IF('UserSettings&Results'!$E$40=\"YES\",IF(DiscountPrices=\"YES\",NPV(DiscountRate,OFFSET(EmissionPrices!$C$38,MATCH(U34,EmissionPrices_v,0)-1,MATCH($C68,EmissionPrices_h,0)-1,U$40,1))/U$42,VLOOKUP(U34,EmissionPrices,MATCH($C68,EmissionPrices_h,0),FALSE)),0)","v":17.538618588486955},{"$f":"IF('UserSettings&Results'!$E$40=\"YES\",IF(DiscountPrices=\"YES\",NPV(DiscountRate,OFFSET(EmissionPrices!$C$38,MATCH(V34,EmissionPrices_v,0)-1,MATCH($C68,EmissionPrices_h,0)-1,V$40,1))/V$42,VLOOKUP(V34,EmissionPrices,MATCH($C68,EmissionPrices_h,0),FALSE)),0)","v":17.538618588486955},{"$f":"IF('UserSettings&Results'!$E$40=\"YES\",IF(DiscountPrices=\"YES\",NPV(DiscountRate,OFFSET(EmissionPrices!$C$38,MATCH(W34,EmissionPrices_v,0)-1,MATCH($C68,EmissionPrices_h,0)-1,W$40,1))/W$42,VLOOKUP(W34,EmissionPrices,MATCH($C68,EmissionPrices_h,0),FALSE)),0)","v":{"$error":"#VALUE!"}},{"$f":"IF('UserSettings&Results'!$E$40=\"YES\",IF(DiscountPrices=\"YES\",NPV(DiscountRate,OFFSET(EmissionPrices!$C$38,MATCH(X34,EmissionPrices_v,0)-1,MATCH($C68,EmissionPrices_h,0)-1,X$40,1))/X$42,VLOOKUP(X34,EmissionPrices,MATCH($C68,EmissionPrices_h,0),FALSE)),0)","v":{"$error":"#VALUE!"}},{"$f":"IF('UserSettings&Results'!$E$40=\"YES\",IF(DiscountPrices=\"YES\",NPV(DiscountRate,OFFSET(EmissionPrices!$C$38,MATCH(Y34,EmissionPrices_v,0)-1,MATCH($C68,EmissionPrices_h,0)-1,Y$40,1))/Y$42,VLOOKUP(Y34,EmissionPrices,MATCH($C68,EmissionPrices_h,0),FALSE)),0)","v":{"$error":"#VALUE!"}},{"$f":"IF('UserSettings&Results'!$E$40=\"YES\",IF(DiscountPrices=\"YES\",NPV(DiscountRate,OFFSET(EmissionPrices!$C$38,MATCH(Z34,EmissionPrices_v,0)-1,MATCH($C68,EmissionPrices_h,0)-1,Z$40,1))/Z$42,VLOOKUP(Z34,EmissionPrices,MATCH($C68,EmissionPrices_h,0),FALSE)),0)","v":{"$error":"#VALUE!"}},{"$f":"IF('UserSettings&Results'!$E$40=\"YES\",IF(DiscountPrices=\"YES\",NPV(DiscountRate,OFFSET(EmissionPrices!$C$38,MATCH(AA34,EmissionPrices_v,0)-1,MATCH($C68,EmissionPrices_h,0)-1,AA$40,1))/AA$42,VLOOKUP(AA34,EmissionPrices,MATCH($C68,EmissionPrices_h,0),FALSE)),0)","v":{"$error":"#VALUE!"}},{"$f":"IF('UserSettings&Results'!$E$40=\"YES\",IF(DiscountPrices=\"YES\",NPV(DiscountRate,OFFSET(EmissionPrices!$C$38,MATCH(AB34,EmissionPrices_v,0)-1,MATCH($C68,EmissionPrices_h,0)-1,AB$40,1))/AB$42,VLOOKUP(AB34,EmissionPrices,MATCH($C68,EmissionPrices_h,0),FALSE)),0)","v":{"$error":"#VALUE!"}},{"$f":"IF('UserSettings&Results'!$E$40=\"YES\",IF(DiscountPrices=\"YES\",NPV(DiscountRate,OFFSET(EmissionPrices!$C$38,MATCH(AC34,EmissionPrices_v,0)-1,MATCH($C68,EmissionPrices_h,0)-1,AC$40,1))/AC$42,VLOOKUP(AC34,EmissionPrices,MATCH($C68,EmissionPrices_h,0),FALSE)),0)","v":{"$error":"#VALUE!"}},{"$f":"IF('UserSettings&Results'!$E$40=\"YES\",IF(DiscountPrices=\"YES\",NPV(DiscountRate,OFFSET(EmissionPrices!$C$38,MATCH(AD34,EmissionPrices_v,0)-1,MATCH($C68,EmissionPrices_h,0)-1,AD$40,1))/AD$42,VLOOKUP(AD34,EmissionPrices,MATCH($C68,EmissionPrices_h,0),FALSE)),0)","v":{"$error":"#VALUE!"}},{"$f":"IF('UserSettings&Results'!$E$40=\"YES\",IF(DiscountPrices=\"YES\",NPV(DiscountRate,OFFSET(EmissionPrices!$C$38,MATCH(AE34,EmissionPrices_v,0)-1,MATCH($C68,EmissionPrices_h,0)-1,AE$40,1))/AE$42,VLOOKUP(AE34,EmissionPrices,MATCH($C68,EmissionPrices_h,0),FALSE)),0)","v":{"$error":"#VALUE!"}}]
[null,null,"SO2-price",{"$f":"chosencurrency&\"/GJ fuel\"","v":"EUR/GJ fuel"},{"$f":"E$68*(1-E48)*IFERROR(VLOOKUP(E34,EmissionFactorsSO2,MATCH(E$37,EmissionFactorsSO2_h,0),FALSE),0)","v":0},{"$f":"F$68*(1-F48)*IFERROR(VLOOKUP(F34,EmissionFactorsSO2,MATCH(F$37,EmissionFactorsSO2_h,0),FALSE),0)","v":0},0,0,0,0,0,1.2277033011940839E-3,1.4241358293851393E-3,2.104634230618436E-3,0,0.14206281056674441,0.14206281056674441,0,0,0.23677135094457408,0,0,{"$error":"#VALUE!"},{"$error":"#VALUE!"},{"$error":"#VALUE!"},{"$error":"#VALUE!"},{"$error":"#VALUE!"},{"$error":"#VALUE!"},{"$error":"#VALUE!"},{"$error":"#VALUE!"},{"$error":"#VALUE!"}]
[null,null,"NOx-price",{"$f":"chosencurrency&\"/kg\"","v":"EUR/kg"},{"$f":"IF('UserSettings&Results'!$E$40=\"YES\",IF(DiscountPrices=\"YES\",NPV(DiscountRate,OFFSET(EmissionPrices!$C$38,MATCH(E34,EmissionPrices_v,0)-1,MATCH($C70,EmissionPrices_h,0)-1,E$40,1))/E$42,VLOOKUP(E34,EmissionPrices,MATCH($C70,EmissionPrices_h,0),FALSE)),0)","v":21.62295442416195},{"$f":"IF('UserSettings&Results'!$E$40=\"YES\",IF(DiscountPrices=\"YES\",NPV(DiscountRate,OFFSET(EmissionPrices!$C$38,MATCH(F34,EmissionPrices_v,0)-1,MATCH($C70,EmissionPrices_h,0)-1,F$40,1))/F$42,VLOOKUP(F34,EmissionPrices,MATCH($C70,EmissionPrices_h,0),FALSE)),0)","v":21.62295442416195},{"$f":"IF('UserSettings&Results'!$E$40=\"YES\",IF(DiscountPrices=\"YES\",NPV(DiscountRate,OFFSET(EmissionPrices!$C$38,MATCH(G34,EmissionPrices_v,0)-1,MATCH($C70,EmissionPrices_h,0)-1,G$40,1))/G$42,VLOOKUP(G34,EmissionPrices,MATCH($C70,EmissionPrices_h,0),FALSE)),0)","v":21.62295442416195},{"$f":"IF('UserSettings&Results'!$E$40=\"YES\",IF(DiscountPrices=\"YES\",NPV(DiscountRate,OFFSET(EmissionPrices!$C$38,MATCH(H34,EmissionPrices_v,0)-1,MATCH($C70,EmissionPrices_h,0)-1,H$40,1))/H$42,VLOOKUP(H34,EmissionPrices,MATCH($C70,EmissionPrices_h,0),FALSE)),0)","v":21.622954424161946},{"$f":"IF('UserSettings&Results'!$E$40=\"YES\",IF(DiscountPrices=\"YES\",NPV(DiscountRate,OFFSET(EmissionPrices!$C$38,MATCH(I34,EmissionPrices_v,0)-1,MATCH($C70,EmissionPrices_h,0)-1,I$40,1))/I$42,VLOOKUP(I34,EmissionPrices,MATCH($C70,EmissionPrices_h,0),FALSE)),0)","v":21.622954424161946},{"$f":"IF('UserSettings&Results'!$E$40=\"YES\",IF(DiscountPrices=\"YES\",NPV(DiscountRate,OFFSET(EmissionPrices!$C$38,MATCH(J34,EmissionPrices_v,0)-1,MATCH($C70,EmissionPrices_h,0)-1,J$40,1))/J$42,VLOOKUP(J34,EmissionPrices,MATCH($C70,EmissionPrices_h,0),FALSE)),0)","v":21.62295442416195},{"$f":"IF('UserSettings&Results'!$E$40=\"YES\",IF(DiscountPrices=\"YES\",NPV(DiscountRate,OFFSET(EmissionPrices!$C$38,MATCH(K34,EmissionPrices_v,0)-1,MATCH($C70,EmissionPrices_h,0)-1,K$40,1))/K$42,VLOOKUP(K34,EmissionPrices,MATCH($C70,EmissionPrices_h,0),FALSE)),0)","v":21.622954424161946},{"$f":"IF('UserSettings&Results'!$E$40=\"YES\",IF(DiscountPrices=\"YES\",NPV(DiscountRate,OFFSET(EmissionPrices!$C$38,MATCH(L34,EmissionPrices_v,0)-1,MATCH($C70,EmissionPrices_h,0)-1,L$40,1))/L$42,VLOOKUP(L34,EmissionPrices,MATCH($C70,EmissionPrices_h,0),FALSE)),0)","v":21.622954424161954},{"$f":"IF('UserSettings&Results'!$E$40=\"YES\",IF(DiscountPrices=\"YES\",NPV(DiscountRate,OFFSET(EmissionPrices!$C$38,MATCH(M34,EmissionPrices_v,0)-1,MATCH($C70,EmissionPrices_h,0)-1,M$40,1))/M$42,VLOOKUP(M34,EmissionPrices,MATCH($C70,EmissionPrices_h,0),FALSE)),0)","v":21.622954424161954},{"$f":"IF('UserSettings&Results'!$E$40=\"YES\",IF(DiscountPrices=\"YES\",NPV(DiscountRate,OFFSET(EmissionPrices!$C$38,MATCH(N34,EmissionPrices_v,0)-1,MATCH($C70,EmissionPrices_h,0)-1,N$40,1))/N$42,VLOOKUP(N34,EmissionPrices,MATCH($C70,EmissionPrices_h,0),FALSE)),0)","v":21.622954424161946},{"$f":"IF('UserSettings&Results'!$E$40=\"YES\",IF(DiscountPrices=\"YES\",NPV(DiscountRate,OFFSET(EmissionPrices!$C$38,MATCH(O34,EmissionPrices_v,0)-1,MATCH($C70,EmissionPrices_h,0)-1,O$40,1))/O$42,VLOOKUP(O34,EmissionPrices,MATCH($C70,EmissionPrices_h,0),FALSE)),0)","v":21.622954424161946},{"$f":"IF('UserSettings&Results'!$E$40=\"YES\",IF(DiscountPrices=\"YES\",NPV(DiscountRate,OFFSET(EmissionPrices!$C$38,MATCH(P34,EmissionPrices_v,0)-1,MATCH($C70,EmissionPrices_h,0)-1,P$40,1))/P$42,VLOOKUP(P34,EmissionPrices,MATCH($C70,EmissionPrices_h,0),FALSE)),0)","v":21.622954424161954},{"$f":"IF('UserSettings&Results'!$E$40=\"YES\",IF(DiscountPrices=\"YES\",NPV(DiscountRate,OFFSET(EmissionPrices!$C$38,MATCH(Q34,EmissionPrices_v,0)-1,MATCH($C70,EmissionPrices_h,0)-1,Q$40,1))/Q$42,VLOOKUP(Q34,EmissionPrices,MATCH($C70,EmissionPrices_h,0),FALSE)),0)","v":21.622954424161946},{"$f":"IF('UserSettings&Results'!$E$40=\"YES\",IF(DiscountPrices=\"YES\",NPV(DiscountRate,OFFSET(EmissionPrices!$C$38,MATCH(R34,EmissionPrices_v,0)-1,MATCH($C70,EmissionPrices_h,0)-1,R$40,1))/R$42,VLOOKUP(R34,EmissionPrices,MATCH($C70,EmissionPrices_h,0),FALSE)),0)","v":21.622954424161954},{"$f":"IF('UserSettings&Results'!$E$40=\"YES\",IF(DiscountPrices=\"YES\",NPV(DiscountRate,OFFSET(EmissionPrices!$C$38,MATCH(S34,EmissionPrices_v,0)-1,MATCH($C70,EmissionPrices_h,0)-1,S$40,1))/S$42,VLOOKUP(S34,EmissionPrices,MATCH($C70,EmissionPrices_h,0),FALSE)),0)","v":21.912396815314501},{"$f":"IF('UserSettings&Results'!$E$40=\"YES\",IF(DiscountPrices=\"YES\",NPV(DiscountRate,OFFSET(EmissionPrices!$C$38,MATCH(T34,EmissionPrices_v,0)-1,MATCH($C70,EmissionPrices_h,0)-1,T$40,1))/T$42,VLOOKUP(T34,EmissionPrices,MATCH($C70,EmissionPrices_h,0),FALSE)),0)","v":21.622954424161946},{"$f":"IF('UserSettings&Results'!$E$40=\"YES\",IF(DiscountPrices=\"YES\",NPV(DiscountRate,OFFSET(EmissionPrices!$C$38,MATCH(U34,EmissionPrices_v,0)-1,MATCH($C70,EmissionPrices_h,0)-1,U$40,1))/U$42,VLOOKUP(U34,EmissionPrices,MATCH($C70,EmissionPrices_h,0),FALSE)),0)","v":21.62295442416195},{"$f":"IF('UserSettings&Results'!$E$40=\"YES\",IF(DiscountPrices=\"YES\",NPV(DiscountRate,OFFSET(EmissionPrices!$C$38,MATCH(V34,EmissionPrices_v,0)-1,MATCH($C70,EmissionPrices_h,0)-1,V$40,1))/V$42,VLOOKUP(V34,EmissionPrices,MATCH($C70,EmissionPrices_h,0),FALSE)),0)","v":21.62295442416195},{"$f":"IF('UserSettings&Results'!$E$40=\"YES\",IF(DiscountPrices=\"YES\",NPV(DiscountRate,OFFSET(EmissionPrices!$C$38,MATCH(W34,EmissionPrices_v,0)-1,MATCH($C70,EmissionPrices_h,0)-1,W$40,1))/W$42,VLOOKUP(W34,EmissionPrices,MATCH($C70,EmissionPrices_h,0),FALSE)),0)","v":{"$error":"#VALUE!"}},{"$f":"IF('UserSettings&Results'!$E$40=\"YES\",IF(DiscountPrices=\"YES\",NPV(DiscountRate,OFFSET(EmissionPrices!$C$38,MATCH(X34,EmissionPrices_v,0)-1,MATCH($C70,EmissionPrices_h,0)-1,X$40,1))/X$42,VLOOKUP(X34,EmissionPrices,MATCH($C70,EmissionPrices_h,0),FALSE)),0)","v":{"$error":"#VALUE!"}},{"$f":"IF('UserSettings&Results'!$E$40=\"YES\",IF(DiscountPrices=\"YES\",NPV(DiscountRate,OFFSET(EmissionPrices!$C$38,MATCH(Y34,EmissionPrices_v,0)-1,MATCH($C70,EmissionPrices_h,0)-1,Y$40,1))/Y$42,VLOOKUP(Y34,EmissionPrices,MATCH($C70,EmissionPrices_h,0),FALSE)),0)","v":{"$error":"#VALUE!"}},{"$f":"IF('UserSettings&Results'!$E$40=\"YES\",IF(DiscountPrices=\"YES\",NPV(DiscountRate,OFFSET(EmissionPrices!$C$38,MATCH(Z34,EmissionPrices_v,0)-1,MATCH($C70,EmissionPrices_h,0)-1,Z$40,1))/Z$42,VLOOKUP(Z34,EmissionPrices,MATCH($C70,EmissionPrices_h,0),FALSE)),0)","v":{"$error":"#VALUE!"}},{"$f":"IF('UserSettings&Results'!$E$40=\"YES\",IF(DiscountPrices=\"YES\",NPV(DiscountRate,OFFSET(EmissionPrices!$C$38,MATCH(AA34,EmissionPrices_v,0)-1,MATCH($C70,EmissionPrices_h,0)-1,AA$40,1))/AA$42,VLOOKUP(AA34,EmissionPrices,MATCH($C70,EmissionPrices_h,0),FALSE)),0)","v":{"$error":"#VALUE!"}},{"$f":"IF('UserSettings&Results'!$E$40=\"YES\",IF(DiscountPrices=\"YES\",NPV(DiscountRate,OFFSET(EmissionPrices!$C$38,MATCH(AB34,EmissionPrices_v,0)-1,MATCH($C70,EmissionPrices_h,0)-1,AB$40,1))/AB$42,VLOOKUP(AB34,EmissionPrices,MATCH($C70,EmissionPrices_h,0),FALSE)),0)","v":{"$error":"#VALUE!"}},{"$f":"IF('UserSettings&Results'!$E$40=\"YES\",IF(DiscountPrices=\"YES\",NPV(DiscountRate,OFFSET(EmissionPrices!$C$38,MATCH(AC34,EmissionPrices_v,0)-1,MATCH($C70,EmissionPrices_h,0)-1,AC$40,1))/AC$42,VLOOKUP(AC34,EmissionPrices,MATCH($C70,EmissionPrices_h,0),FALSE)),0)","v":{"$error":"#VALUE!"}},{"$f":"IF('UserSettings&Results'!$E$40=\"YES\",IF(DiscountPrices=\"YES\",NPV(DiscountRate,OFFSET(EmissionPrices!$C$38,MATCH(AD34,EmissionPrices_v,0)-1,MATCH($C70,EmissionPrices_h,0)-1,AD$40,1))/AD$42,VLOOKUP(AD34,EmissionPrices,MATCH($C70,EmissionPrices_h,0),FALSE)),0)","v":{"$error":"#VALUE!"}},{"$f":"IF('UserSettings&Results'!$E$40=\"YES\",IF(DiscountPrices=\"YES\",NPV(DiscountRate,OFFSET(EmissionPrices!$C$38,MATCH(AE34,EmissionPrices_v,0)-1,MATCH($C70,EmissionPrices_h,0)-1,AE$40,1))/AE$42,VLOOKUP(AE34,EmissionPrices,MATCH($C70,EmissionPrices_h,0),FALSE)),0)","v":{"$error":"#VALUE!"}}]
[null,null,"NOx-price",{"$f":"chosencurrency&\"/GJ fuel\"","v":"EUR/GJ fuel"},{"$f":"E$70*E49/1000","v":0},{"$f":"F$70*F49/1000","v":0},0,0,0,0,0,0.75680340484566844,0.87789194962097528,0.75680340484566822,0.75680340484566822,0.75680340484566844,0.75680340484566822,0.21622954424161953,0,4.2447060809875694,0.84329522254231604,0,{"$error":"#VALUE!"},{"$error":"#VALUE!"},{"$error":"#VALUE!"},{"$error":"#VALUE!"},{"$error":"#VALUE!"},{"$error":"#VALUE!"},{"$error":"#VALUE!"},{"$error":"#VALUE!"},{"$error":"#VALUE!"}]
[null,null,"PM2,5-price",{"$f":"chosencurrency&\"/kg\"","v":"EUR/kg"},{"$f":"IF('UserSettings&Results'!$E$40=\"YES\",IF(DiscountPrices=\"YES\",NPV(DiscountRate,OFFSET(EmissionPrices!$C$38,MATCH(E34,EmissionPrices_v,0)-1,MATCH($C72,EmissionPrices_h,0)-1,E$40,1))/E$42,VLOOKUP(E34,EmissionPrices,MATCH($C72,EmissionPrices_h,0),FALSE)),0)","v":67.751923862374198},{"$f":"IF('UserSettings&Results'!$E$40=\"YES\",IF(DiscountPrices=\"YES\",NPV(DiscountRate,OFFSET(EmissionPrices!$C$38,MATCH(F34,EmissionPrices_v,0)-1,MATCH($C72,EmissionPrices_h,0)-1,F$40,1))/F$42,VLOOKUP(F34,EmissionPrices,MATCH($C72,EmissionPrices_h,0),FALSE)),0)","v":67.751923862374198},{"$f":"IF('UserSettings&Results'!$E$40=\"YES\",IF(DiscountPrices=\"YES\",NPV(DiscountRate,OFFSET(EmissionPrices!$C$38,MATCH(G34,EmissionPrices_v,0)-1,MATCH($C72,EmissionPrices_h,0)-1,G$40,1))/G$42,VLOOKUP(G34,EmissionPrices,MATCH($C72,EmissionPrices_h,0),FALSE)),0)","v":67.751923862374198},{"$f":"IF('UserSettings&Results'!$E$40=\"YES\",IF(DiscountPrices=\"YES\",NPV(DiscountRate,OFFSET(EmissionPrices!$C$38,MATCH(H34,EmissionPrices_v,0)-1,MATCH($C72,EmissionPrices_h,0)-1,H$40,1))/H$42,VLOOKUP(H34,EmissionPrices,MATCH($C72,EmissionPrices_h,0),FALSE)),0)","v":67.751923862374184},{"$f":"IF('UserSettings&Results'!$E$40=\"YES\",IF(DiscountPrices=\"YES\",NPV(DiscountRate,OFFSET(EmissionPrices!$C$38,MATCH(I34,EmissionPrices_v,0)-1,MATCH($C72,EmissionPrices_h,0)-1,I$40,1))/I$42,VLOOKUP(I34,EmissionPrices,MATCH($C72,EmissionPrices_h,0),FALSE)),0)","v":67.751923862374184},{"$f":"IF('UserSettings&Results'!$E$40=\"YES\",IF(DiscountPrices=\"YES\",NPV(DiscountRate,OFFSET(EmissionPrices!$C$38,MATCH(J34,EmissionPrices_v,0)-1,MATCH($C72,EmissionPrices_h,0)-1,J$40,1))/J$42,VLOOKUP(J34,EmissionPrices,MATCH($C72,EmissionPrices_h,0),FALSE)),0)","v":67.751923862374198},{"$f":"IF('UserSettings&Results'!$E$40=\"YES\",IF(DiscountPrices=\"YES\",NPV(DiscountRate,OFFSET(EmissionPrices!$C$38,MATCH(K34,EmissionPrices_v,0)-1,MATCH($C72,EmissionPrices_h,0)-1,K$40,1))/K$42,VLOOKUP(K34,EmissionPrices,MATCH($C72,EmissionPrices_h,0),FALSE)),0)","v":67.751923862374184},{"$f":"IF('UserSettings&Results'!$E$40=\"YES\",IF(DiscountPrices=\"YES\",NPV(DiscountRate,OFFSET(EmissionPrices!$C$38,MATCH(L34,EmissionPrices_v,0)-1,MATCH($C72,EmissionPrices_h,0)-1,L$40,1))/L$42,VLOOKUP(L34,EmissionPrices,MATCH($C72,EmissionPrices_h,0),FALSE)),0)","v":67.751923862374198},{"$f":"IF('UserSettings&Results'!$E$40=\"YES\",IF(DiscountPrices=\"YES\",NPV(DiscountRate,OFFSET(EmissionPrices!$C$38,MATCH(M34,EmissionPrices_v,0)-1,MATCH($C72,EmissionPrices_h,0)-1,M$40,1))/M$42,VLOOKUP(M34,EmissionPrices,MATCH($C72,EmissionPrices_h,0),FALSE)),0)","v":67.751923862374198},{"$f":"IF('UserSettings&Results'!$E$40=\"YES\",IF(DiscountPrices=\"YES\",NPV(DiscountRate,OFFSET(EmissionPrices!$C$38,MATCH(N34,EmissionPrices_v,0)-1,MATCH($C72,EmissionPrices_h,0)-1,N$40,1))/N$42,VLOOKUP(N34,EmissionPrices,MATCH($C72,EmissionPrices_h,0),FALSE)),0)","v":67.751923862374198},{"$f":"IF('UserSettings&Results'!$E$40=\"YES\",IF(DiscountPrices=\"YES\",NPV(DiscountRate,OFFSET(EmissionPrices!$C$38,MATCH(O34,EmissionPrices_v,0)-1,MATCH($C72,EmissionPrices_h,0)-1,O$40,1))/O$42,VLOOKUP(O34,EmissionPrices,MATCH($C72,EmissionPrices_h,0),FALSE)),0)","v":67.751923862374198},{"$f":"IF('UserSettings&Results'!$E$40=\"YES\",IF(DiscountPrices=\"YES\",NPV(DiscountRate,OFFSET(EmissionPrices!$C$38,MATCH(P34,EmissionPrices_v,0)-1,MATCH($C72,EmissionPrices_h,0)-1,P$40,1))/P$42,VLOOKUP(P34,EmissionPrices,MATCH($C72,EmissionPrices_h,0),FALSE)),0)","v":67.751923862374198},{"$f":"IF('UserSettings&Results'!$E$40=\"YES\",IF(DiscountPrices=\"YES\",NPV(DiscountRate,OFFSET(EmissionPrices!$C$38,MATCH(Q34,EmissionPrices_v,0)-1,MATCH($C72,EmissionPrices_h,0)-1,Q$40,1))/Q$42,VLOOKUP(Q34,EmissionPrices,MATCH($C72,EmissionPrices_h,0),FALSE)),0)","v":67.751923862374198},{"$f":"IF('UserSettings&Results'!$E$40=\"YES\",IF(DiscountPrices=\"YES\",NPV(DiscountRate,OFFSET(EmissionPrices!$C$38,MATCH(R34,EmissionPrices_v,0)-1,MATCH($C72,EmissionPrices_h,0)-1,R$40,1))/R$42,VLOOKUP(R34,EmissionPrices,MATCH($C72,EmissionPrices_h,0),FALSE)),0)","v":67.751923862374198},{"$f":"IF('UserSettings&Results'!$E$40=\"YES\",IF(DiscountPrices=\"YES\",NPV(DiscountRate,OFFSET(EmissionPrices!$C$38,MATCH(S34,EmissionPrices_v,0)-1,MATCH($C72,EmissionPrices_h,0)-1,S$40,1))/S$42,VLOOKUP(S34,EmissionPrices,MATCH($C72,EmissionPrices_h,0),FALSE)),0)","v":68.379811793445512},{"$f":"IF('UserSettings&Results'!$E$40=\"YES\",IF(DiscountPrices=\"YES\",NPV(DiscountRate,OFFSET(EmissionPrices!$C$38,MATCH(T34,EmissionPrices_v,0)-1,MATCH($C72,EmissionPrices_h,0)-1,T$40,1))/T$42,VLOOKUP(T34,EmissionPrices,MATCH($C72,EmissionPrices_h,0),FALSE)),0)","v":67.751923862374184},{"$f":"IF('UserSettings&Results'!$E$40=\"YES\",IF(DiscountPrices=\"YES\",NPV(DiscountRate,OFFSET(EmissionPrices!$C$38,MATCH(U34,EmissionPrices_v,0)-1,MATCH($C72,EmissionPrices_h,0)-1,U$40,1))/U$42,VLOOKUP(U34,EmissionPrices,MATCH($C72,EmissionPrices_h,0),FALSE)),0)","v":67.751923862374198},{"$f":"IF('UserSettings&Results'!$E$40=\"YES\",IF(DiscountPrices=\"YES\",NPV(DiscountRate,OFFSET(EmissionPrices!$C$38,MATCH(V34,EmissionPrices_v,0)-1,MATCH($C72,EmissionPrices_h,0)-1,V$40,1))/V$42,VLOOKUP(V34,EmissionPrices,MATCH($C72,EmissionPrices_h,0),FALSE)),0)","v":67.751923862374198},{"$f":"IF('UserSettings&Results'!$E$40=\"YES\",IF(DiscountPrices=\"YES\",NPV(DiscountRate,OFFSET(EmissionPrices!$C$38,MATCH(W34,EmissionPrices_v,0)-1,MATCH($C72,EmissionPrices_h,0)-1,W$40,1))/W$42,VLOOKUP(W34,EmissionPrices,MATCH($C72,EmissionPrices_h,0),FALSE)),0)","v":{"$error":"#VALUE!"}},{"$f":"IF('UserSettings&Results'!$E$40=\"YES\",IF(DiscountPrices=\"YES\",NPV(DiscountRate,OFFSET(EmissionPrices!$C$38,MATCH(X34,EmissionPrices_v,0)-1,MATCH($C72,EmissionPrices_h,0)-1,X$40,1))/X$42,VLOOKUP(X34,EmissionPrices,MATCH($C72,EmissionPrices_h,0),FALSE)),0)","v":{"$error":"#VALUE!"}},{"$f":"IF('UserSettings&Results'!$E$40=\"YES\",IF(DiscountPrices=\"YES\",NPV(DiscountRate,OFFSET(EmissionPrices!$C$38,MATCH(Y34,EmissionPrices_v,0)-1,MATCH($C72,EmissionPrices_h,0)-1,Y$40,1))/Y$42,VLOOKUP(Y34,EmissionPrices,MATCH($C72,EmissionPrices_h,0),FALSE)),0)","v":{"$error":"#VALUE!"}},{"$f":"IF('UserSettings&Results'!$E$40=\"YES\",IF(DiscountPrices=\"YES\",NPV(DiscountRate,OFFSET(EmissionPrices!$C$38,MATCH(Z34,EmissionPrices_v,0)-1,MATCH($C72,EmissionPrices_h,0)-1,Z$40,1))/Z$42,VLOOKUP(Z34,EmissionPrices,MATCH($C72,EmissionPrices_h,0),FALSE)),0)","v":{"$error":"#VALUE!"}},{"$f":"IF('UserSettings&Results'!$E$40=\"YES\",IF(DiscountPrices=\"YES\",NPV(DiscountRate,OFFSET(EmissionPrices!$C$38,MATCH(AA34,EmissionPrices_v,0)-1,MATCH($C72,EmissionPrices_h,0)-1,AA$40,1))/AA$42,VLOOKUP(AA34,EmissionPrices,MATCH($C72,EmissionPrices_h,0),FALSE)),0)","v":{"$error":"#VALUE!"}},{"$f":"IF('UserSettings&Results'!$E$40=\"YES\",IF(DiscountPrices=\"YES\",NPV(DiscountRate,OFFSET(EmissionPrices!$C$38,MATCH(AB34,EmissionPrices_v,0)-1,MATCH($C72,EmissionPrices_h,0)-1,AB$40,1))/AB$42,VLOOKUP(AB34,EmissionPrices,MATCH($C72,EmissionPrices_h,0),FALSE)),0)","v":{"$error":"#VALUE!"}},{"$f":"IF('UserSettings&Results'!$E$40=\"YES\",IF(DiscountPrices=\"YES\",NPV(DiscountRate,OFFSET(EmissionPrices!$C$38,MATCH(AC34,EmissionPrices_v,0)-1,MATCH($C72,EmissionPrices_h,0)-1,AC$40,1))/AC$42,VLOOKUP(AC34,EmissionPrices,MATCH($C72,EmissionPrices_h,0),FALSE)),0)","v":{"$error":"#VALUE!"}},{"$f":"IF('UserSettings&Results'!$E$40=\"YES\",IF(DiscountPrices=\"YES\",NPV(DiscountRate,OFFSET(EmissionPrices!$C$38,MATCH(AD34,EmissionPrices_v,0)-1,MATCH($C72,EmissionPrices_h,0)-1,AD$40,1))/AD$42,VLOOKUP(AD34,EmissionPrices,MATCH($C72,EmissionPrices_h,0),FALSE)),0)","v":{"$error":"#VALUE!"}},{"$f":"IF('UserSettings&Results'!$E$40=\"YES\",IF(DiscountPrices=\"YES\",NPV(DiscountRate,OFFSET(EmissionPrices!$C$38,MATCH(AE34,EmissionPrices_v,0)-1,MATCH($C72,EmissionPrices_h,0)-1,AE$40,1))/AE$42,VLOOKUP(AE34,EmissionPrices,MATCH($C72,EmissionPrices_h,0),FALSE)),0)","v":{"$error":"#VALUE!"}}]
[null,null,"PM2,5-price",{"$f":"chosencurrency&\"/GJ fuel\"","v":"EUR/GJ fuel"},{"$f":"E$72*E50/1000","v":0},{"$f":"F$72*F50/1000","v":0},0,0,0,0,0,2.032557715871226E-2,2.032557715871226E-2,2.032557715871226E-2,2.032557715871226E-2,0.14227904011098583,0.14227904011098583,0,0,0.90524098271672171,0,0,{"$error":"#VALUE!"},{"$error":"#VALUE!"},{"$error":"#VALUE!"},{"$error":"#VALUE!"},{"$error":"#VALUE!"},{"$error":"#VALUE!"},{"$error":"#VALUE!"},{"$error":"#VALUE!"},{"$error":"#VALUE!"}]
[null,null,"Heat price",{"$f":"chosencurrency&\"/GJ heat\"","v":"EUR/GJ heat"},{"$f":"HeatPrice","v":6.7114000000000003},6.7114000000000003,6.7114000000000003,6.7114000000000003,6.7114000000000003,6.7114000000000003,6.7114000000000003,6.7114000000000003,6.7114000000000003,6.7114000000000003,6.7114000000000003,6.7114000000000003,6.7114000000000003,6.7114000000000003,6.7114000000000003,6.7114000000000003,6.7114000000000003,6.7114000000000003,6.7114000000000003,6.7114000000000003,6.7114000000000003,6.7114000000000003,6.7114000000000003,6.7114000000000003,6.7114000000000003,6.7114000000000003,6.7114000000000003]
[null,null,"Heat price",{"$f":"chosencurrency&\"/GJ fuel\"","v":"EUR/GJ fuel"},{"$f":"E74*E79","v":0},{"$f":"F74*F79","v":0},0,0,0,0,0,4.5584634545949525,5.5966699977799719,3.6012390243902441,3.4375463414634155,3.0085586206896586,3.3934044943820227,1.9041646511627905,0,0,0,0,{"$error":"#VALUE!"},{"$error":"#VALUE!"},{"$error":"#VALUE!"},{"$error":"#VALUE!"},{"$error":"#VALUE!"},{"$error":"#VALUE!"},{"$error":"#VALUE!"},{"$error":"#VALUE!"},{"$error":"#VALUE!"}]
[]
[null,"Technical data","Electric efficiency condensing","%",{"$f":"IF('UserSettings&Results'!D61=\"CurrentTech\",VLOOKUP(E$32,TechData,MATCH($C77,TechData_h,0),FALSE),IF('UserSettings&Results'!D61=\"TestTech\",VLOOKUP(E$32,TestData,MATCH($C77,TechData_h,0),FALSE),VLOOKUP(E$32,OldTechData,MATCH($C77,TechData_h,0),FALSE)))","v":1},{"$f":"IF('UserSettings&Results'!E61=\"CurrentTech\",VLOOKUP(F$32,TechData,MATCH($C77,TechData_h,0),FALSE),IF('UserSettings&Results'!E61=\"TestTech\",VLOOKUP(F$32,TestData,MATCH($C77,TechData_h,0),FALSE),VLOOKUP(F$32,OldTechData,MATCH($C77,TechData_h,0),FALSE)))","v":1},{"$f":"IF('UserSettings&Results'!F61=\"CurrentTech\",VLOOKUP(G$32,TechData,MATCH($C77,TechData_h,0),FALSE),IF('UserSettings&Results'!F61=\"TestTech\",VLOOKUP(G$32,TestData,MATCH($C77,TechData_h,0),FALSE),VLOOKUP(G$32,OldTechData,MATCH($C77,TechData_h,0),FALSE)))","v":1},{"$f":"IF('UserSettings&Results'!G61=\"CurrentTech\",VLOOKUP(H$32,TechData,MATCH($C77,TechData_h,0),FALSE),IF('UserSettings&Results'!G61=\"TestTech\",VLOOKUP(H$32,TestData,MATCH($C77,TechData_h,0),FALSE),VLOOKUP(H$32,OldTechData,MATCH($C77,TechData_h,0),FALSE)))","v":1},{"$f":"IF('UserSettings&Results'!H61=\"CurrentTech\",VLOOKUP(I$32,TechData,MATCH($C77,TechData_h,0),FALSE),IF('UserSettings&Results'!H61=\"TestTech\",VLOOKUP(I$32,TestData,MATCH($C77,TechData_h,0),FALSE),VLOOKUP(I$32,OldTechData,MATCH($C77,TechData_h,0),FALSE)))","v":1},{"$f":"IF('UserSettings&Results'!I61=\"CurrentTech\",VLOOKUP(J$32,TechData,MATCH($C77,TechData_h,0),FALSE),IF('UserSettings&Results'!I61=\"TestTech\",VLOOKUP(J$32,TestData,MATCH($C77,TechData_h,0),FALSE),VLOOKUP(J$32,OldTechData,MATCH($C77,TechData_h,0),FALSE)))","v":1},{"$f":"IF('UserSettings&Results'!J61=\"CurrentTech\",VLOOKUP(K$32,TechData,MATCH($C77,TechData_h,0),FALSE),IF('UserSettings&Results'!J61=\"TestTech\",VLOOKUP(K$32,TestData,MATCH($C77,TechData_h,0),FALSE),VLOOKUP(K$32,OldTechData,MATCH($C77,TechData_h,0),FALSE)))","v":1},{"$f":"IF('UserSettings&Results'!K61=\"CurrentTech\",VLOOKUP(L$32,TechData,MATCH($C77,TechData_h,0),FALSE),IF('UserSettings&Results'!K61=\"TestTech\",VLOOKUP(L$32,TestData,MATCH($C77,TechData_h,0),FALSE),VLOOKUP(L$32,OldTechData,MATCH($C77,TechData_h,0),FALSE)))","v":0.28726699999999999},{"$f":"IF('UserSettings&Results'!L61=\"CurrentTech\",VLOOKUP(M$32,TechData,MATCH($C77,TechData_h,0),FALSE),IF('UserSettings&Results'!L61=\"TestTech\",VLOOKUP(M$32,TestData,MATCH($C77,TechData_h,0),FALSE),VLOOKUP(M$32,OldTechData,MATCH($C77,TechData_h,0),FALSE)))","v":0.27547752526785418},{"$f":"IF('UserSettings&Results'!M61=\"CurrentTech\",VLOOKUP(N$32,TechData,MATCH($C77,TechData_h,0),FALSE),IF('UserSettings&Results'!M61=\"TestTech\",VLOOKUP(N$32,TestData,MATCH($C77,TechData_h,0),FALSE),VLOOKUP(N$32,OldTechData,MATCH($C77,TechData_h,0),FALSE)))","v":0.44},{"$f":"IF('UserSettings&Results'!N61=\"CurrentTech\",VLOOKUP(O$32,TechData,MATCH($C77,TechData_h,0),FALSE),IF('UserSettings&Results'!N61=\"TestTech\",VLOOKUP(O$32,TestData,MATCH($C77,TechData_h,0),FALSE),VLOOKUP(O$32,OldTechData,MATCH($C77,TechData_h,0),FALSE)))","v":0.42000000000000004},{"$f":"IF('UserSettings&Results'!O61=\"CurrentTech\",VLOOKUP(P$32,TechData,MATCH($C77,TechData_h,0),FALSE),IF('UserSettings&Results'!O61=\"TestTech\",VLOOKUP(P$32,TestData,MATCH($C77,TechData_h,0),FALSE),VLOOKUP(P$32,OldTechData,MATCH($C77,TechData_h,0),FALSE)))","v":0.52},{"$f":"IF('UserSettings&Results'!P61=\"CurrentTech\",VLOOKUP(Q$32,TechData,MATCH($C77,TechData_h,0),FALSE),IF('UserSettings&Results'!P61=\"TestTech\",VLOOKUP(Q$32,TestData,MATCH($C77,TechData_h,0),FALSE),VLOOKUP(Q$32,OldTechData,MATCH($C77,TechData_h,0),FALSE)))","v":0.45},{"$f":"IF('UserSettings&Results'!Q61=\"CurrentTech\",VLOOKUP(R$32,TechData,MATCH($C77,TechData_h,0),FALSE),IF('UserSettings&Results'!Q61=\"TestTech\",VLOOKUP(R$32,TestData,MATCH($C77,TechData_h,0),FALSE),VLOOKUP(R$32,OldTechData,MATCH($C77,TechData_h,0),FALSE)))","v":0.57999999999999996},{"$f":"IF('UserSettings&Results'!R61=\"CurrentTech\",VLOOKUP(S$32,TechData,MATCH($C77,TechData_h,0),FALSE),IF('UserSettings&Results'!R61=\"TestTech\",VLOOKUP(S$32,TestData,MATCH($C77,TechData_h,0),FALSE),VLOOKUP(S$32,OldTechData,MATCH($C77,TechData_h,0),FALSE)))","v":1},{"$f":"IF('UserSettings&Results'!S61=\"CurrentTech\",VLOOKUP(T$32,TechData,MATCH($C77,TechData_h,0),FALSE),IF('UserSettings&Results'!S61=\"TestTech\",VLOOKUP(T$32,TestData,MATCH($C77,TechData_h,0),FALSE),VLOOKUP(T$32,OldTechData,MATCH($C77,TechData_h,0),FALSE)))","v":0.45},{"$f":"IF('UserSettings&Results'!T61=\"CurrentTech\",VLOOKUP(U$32,TechData,MATCH($C77,TechData_h,0),FALSE),IF('UserSettings&Results'!T61=\"TestTech\",VLOOKUP(U$32,TestData,MATCH($C77,TechData_h,0),FALSE),VLOOKUP(U$32,OldTechData,MATCH($C77,TechData_h,0),FALSE)))","v":0.58344676845207699},{"$f":"IF('UserSettings&Results'!U61=\"CurrentTech\",VLOOKUP(V$32,TechData,MATCH($C77,TechData_h,0),FALSE),IF('UserSettings&Results'!U61=\"TestTech\",VLOOKUP(V$32,TestData,MATCH($C77,TechData_h,0),FALSE),VLOOKUP(V$32,OldTechData,MATCH($C77,TechData_h,0),FALSE)))","v":1},{"$f":"IF('UserSettings&Results'!V61=\"CurrentTech\",VLOOKUP(W$32,TechData,MATCH($C77,TechData_h,0),FALSE),IF('UserSettings&Results'!V61=\"TestTech\",VLOOKUP(W$32,TestData,MATCH($C77,TechData_h,0),FALSE),VLOOKUP(W$32,OldTechData,MATCH($C77,TechData_h,0),FALSE)))","v":""},{"$f":"IF('UserSettings&Results'!W61=\"CurrentTech\",VLOOKUP(X$32,TechData,MATCH($C77,TechData_h,0),FALSE),IF('UserSettings&Results'!W61=\"TestTech\",VLOOKUP(X$32,TestData,MATCH($C77,TechData_h,0),FALSE),VLOOKUP(X$32,OldTechData,MATCH($C77,TechData_h,0),FALSE)))","v":""},{"$f":"IF('UserSettings&Results'!X61=\"CurrentTech\",VLOOKUP(Y$32,TechData,MATCH($C77,TechData_h,0),FALSE),IF('UserSettings&Results'!X61=\"TestTech\",VLOOKUP(Y$32,TestData,MATCH($C77,TechData_h,0),FALSE),VLOOKUP(Y$32,OldTechData,MATCH($C77,TechData_h,0),FALSE)))","v":""},{"$f":"IF('UserSettings&Results'!Y61=\"CurrentTech\",VLOOKUP(Z$32,TechData,MATCH($C77,TechData_h,0),FALSE),IF('UserSettings&Results'!Y61=\"TestTech\",VLOOKUP(Z$32,TestData,MATCH($C77,TechData_h,0),FALSE),VLOOKUP(Z$32,OldTechData,MATCH($C77,TechData_h,0),FALSE)))","v":""},{"$f":"IF('UserSettings&Results'!Z61=\"CurrentTech\",VLOOKUP(AA$32,TechData,MATCH($C77,TechData_h,0),FALSE),IF('UserSettings&Results'!Z61=\"TestTech\",VLOOKUP(AA$32,TestData,MATCH($C77,TechData_h,0),FALSE),VLOOKUP(AA$32,OldTechData,MATCH($C77,TechData_h,0),FALSE)))","v":""},{"$f":"IF('UserSettings&Results'!AA61=\"CurrentTech\",VLOOKUP(AB$32,TechData,MATCH($C77,TechData_h,0),FALSE),IF('UserSettings&Results'!AA61=\"TestTech\",VLOOKUP(AB$32,TestData,MATCH($C77,TechData_h,0),FALSE),VLOOKUP(AB$32,OldTechData,MATCH($C77,TechData_h,0),FALSE)))","v":""},{"$f":"IF('UserSettings&Results'!AB61=\"CurrentTech\",VLOOKUP(AC$32,TechData,MATCH($C77,TechData_h,0),FALSE),IF('UserSettings&Results'!AB61=\"TestTech\",VLOOKUP(AC$32,TestData,MATCH($C77,TechData_h,0),FALSE),VLOOKUP(AC$32,OldTechData,MATCH($C77,TechData_h,0),FALSE)))","v":""},{"$f":"IF('UserSettings&Results'!AC61=\"CurrentTech\",VLOOKUP(AD$32,TechData,MATCH($C77,TechData_h,0),FALSE),IF('UserSettings&Results'!AC61=\"TestTech\",VLOOKUP(AD$32,TestData,MATCH($C77,TechData_h,0),FALSE),VLOOKUP(AD$32,OldTechData,MATCH($C77,TechData_h,0),FALSE)))","v":""},{"$f":"IF('UserSettings&Results'!AD61=\"CurrentTech\",VLOOKUP(AE$32,TechData,MATCH($C77,TechData_h,0),FALSE),IF('UserSettings&Results'!AD61=\"TestTech\",VLOOKUP(AE$32,TestData,MATCH($C77,TechData_h,0),FALSE),VLOOKUP(AE$32,OldTechData,MATCH($C77,TechData_h,0),FALSE)))","v":""}]
[null,null,"Electric efficiency CHP","%",{"$f":"IF('UserSettings&Results'!D61=\"CurrentTech\",VLOOKUP(E$32,TechData,MATCH($C78,TechData_h,0),FALSE),IF('UserSettings&Results'!D61=\"TestTech\",VLOOKUP(E$32,TestData,MATCH($C78,TechData_h,0),FALSE),VLOOKUP(E$32,OldTechData,MATCH($C78,TechData_h,0),FALSE)))","v":0},{"$f":"IF('UserSettings&Results'!E61=\"CurrentTech\",VLOOKUP(F$32,TechData,MATCH($C78,TechData_h,0),FALSE),IF('UserSettings&Results'!E61=\"TestTech\",VLOOKUP(F$32,TestData,MATCH($C78,TechData_h,0),FALSE),VLOOKUP(F$32,OldTechData,MATCH($C78,TechData_h,0),FALSE)))","v":0},{"$f":"IF('UserSettings&Results'!F61=\"CurrentTech\",VLOOKUP(G$32,TechData,MATCH($C78,TechData_h,0),FALSE),IF('UserSettings&Results'!F61=\"TestTech\",VLOOKUP(G$32,TestData,MATCH($C78,TechData_h,0),FALSE),VLOOKUP(G$32,OldTechData,MATCH($C78,TechData_h,0),FALSE)))","v":0},{"$f":"IF('UserSettings&Results'!G61=\"CurrentTech\",VLOOKUP(H$32,TechData,MATCH($C78,TechData_h,0),FALSE),IF('UserSettings&Results'!G61=\"TestTech\",VLOOKUP(H$32,TestData,MATCH($C78,TechData_h,0),FALSE),VLOOKUP(H$32,OldTechData,MATCH($C78,TechData_h,0),FALSE)))","v":0},{"$f":"IF('UserSettings&Results'!H61=\"CurrentTech\",VLOOKUP(I$32,TechData,MATCH($C78,TechData_h,0),FALSE),IF('UserSettings&Results'!H61=\"TestTech\",VLOOKUP(I$32,TestData,MATCH($C78,TechData_h,0),FALSE),VLOOKUP(I$32,OldTechData,MATCH($C78,TechData_h,0),FALSE)))","v":0},{"$f":"IF('UserSettings&Results'!I61=\"CurrentTech\",VLOOKUP(J$32,TechData,MATCH($C78,TechData_h,0),FALSE),IF('UserSettings&Results'!I61=\"TestTech\",VLOOKUP(J$32,TestData,MATCH($C78,TechData_h,0),FALSE),VLOOKUP(J$32,OldTechData,MATCH($C78,TechData_h,0),FALSE)))","v":0},{"$f":"IF('UserSettings&Results'!J61=\"CurrentTech\",VLOOKUP(K$32,TechData,MATCH($C78,TechData_h,0),FALSE),IF('UserSettings&Results'!J61=\"TestTech\",VLOOKUP(K$32,TestData,MATCH($C78,TechData_h,0),FALSE),VLOOKUP(K$32,OldTechData,MATCH($C78,TechData_h,0),FALSE)))","v":0},{"$f":"IF('UserSettings&Results'!K61=\"CurrentTech\",VLOOKUP(L$32,TechData,MATCH($C78,TechData_h,0),FALSE),IF('UserSettings&Results'!K61=\"TestTech\",VLOOKUP(L$32,TestData,MATCH($C78,TechData_h,0),FALSE),VLOOKUP(L$32,OldTechData,MATCH($C78,TechData_h,0),FALSE)))","v":0.28726699999999999},{"$f":"IF('UserSettings&Results'!L61=\"CurrentTech\",VLOOKUP(M$32,TechData,MATCH($C78,TechData_h,0),FALSE),IF('UserSettings&Results'!L61=\"TestTech\",VLOOKUP(M$32,TestData,MATCH($C78,TechData_h,0),FALSE),VLOOKUP(M$32,OldTechData,MATCH($C78,TechData_h,0),FALSE)))","v":0.27547752526785418},{"$f":"IF('UserSettings&Results'!M61=\"CurrentTech\",VLOOKUP(N$32,TechData,MATCH($C78,TechData_h,0),FALSE),IF('UserSettings&Results'!M61=\"TestTech\",VLOOKUP(N$32,TestData,MATCH($C78,TechData_h,0),FALSE),VLOOKUP(N$32,OldTechData,MATCH($C78,TechData_h,0),FALSE)))","v":0.35951219512195121},{"$f":"IF('UserSettings&Results'!N61=\"CurrentTech\",VLOOKUP(O$32,TechData,MATCH($C78,TechData_h,0),FALSE),IF('UserSettings&Results'!N61=\"TestTech\",VLOOKUP(O$32,TestData,MATCH($C78,TechData_h,0),FALSE),VLOOKUP(O$32,OldTechData,MATCH($C78,TechData_h,0),FALSE)))","v":0.3431707317073171},{"$f":"IF('UserSettings&Results'!O61=\"CurrentTech\",VLOOKUP(P$32,TechData,MATCH($C78,TechData_h,0),FALSE),IF('UserSettings&Results'!O61=\"TestTech\",VLOOKUP(P$32,TestData,MATCH($C78,TechData_h,0),FALSE),VLOOKUP(P$32,OldTechData,MATCH($C78,TechData_h,0),FALSE)))","v":0.452758620689655},{"$f":"IF('UserSettings&Results'!P61=\"CurrentTech\",VLOOKUP(Q$32,TechData,MATCH($C78,TechData_h,0),FALSE),IF('UserSettings&Results'!P61=\"TestTech\",VLOOKUP(Q$32,TestData,MATCH($C78,TechData_h,0),FALSE),VLOOKUP(Q$32,OldTechData,MATCH($C78,TechData_h,0),FALSE)))","v":0.37415730337078651},{"$f":"IF('UserSettings&Results'!Q61=\"CurrentTech\",VLOOKUP(R$32,TechData,MATCH($C78,TechData_h,0),FALSE),IF('UserSettings&Results'!Q61=\"TestTech\",VLOOKUP(R$32,TestData,MATCH($C78,TechData_h,0),FALSE),VLOOKUP(R$32,OldTechData,MATCH($C78,TechData_h,0),FALSE)))","v":0.56744186046511624},{"$f":"IF('UserSettings&Results'!R61=\"CurrentTech\",VLOOKUP(S$32,TechData,MATCH($C78,TechData_h,0),FALSE),IF('UserSettings&Results'!R61=\"TestTech\",VLOOKUP(S$32,TestData,MATCH($C78,TechData_h,0),FALSE),VLOOKUP(S$32,OldTechData,MATCH($C78,TechData_h,0),FALSE)))","v":0},{"$f":"IF('UserSettings&Results'!S61=\"CurrentTech\",VLOOKUP(T$32,TechData,MATCH($C78,TechData_h,0),FALSE),IF('UserSettings&Results'!S61=\"TestTech\",VLOOKUP(T$32,TestData,MATCH($C78,TechData_h,0),FALSE),VLOOKUP(T$32,OldTechData,MATCH($C78,TechData_h,0),FALSE)))","v":0},{"$f":"IF('UserSettings&Results'!T61=\"CurrentTech\",VLOOKUP(U$32,TechData,MATCH($C78,TechData_h,0),FALSE),IF('UserSettings&Results'!T61=\"TestTech\",VLOOKUP(U$32,TestData,MATCH($C78,TechData_h,0),FALSE),VLOOKUP(U$32,OldTechData,MATCH($C78,TechData_h,0),FALSE)))","v":0},{"$f":"IF('UserSettings&Results'!U61=\"CurrentTech\",VLOOKUP(V$32,TechData,MATCH($C78,TechData_h,0),FALSE),IF('UserSettings&Results'!U61=\"TestTech\",VLOOKUP(V$32,TestData,MATCH($C78,TechData_h,0),FALSE),VLOOKUP(V$32,OldTechData,MATCH($C78,TechData_h,0),FALSE)))","v":0},{"$f":"IF('UserSettings&Results'!V61=\"CurrentTech\",VLOOKUP(W$32,TechData,MATCH($C78,TechData_h,0),FALSE),IF('UserSettings&Results'!V61=\"TestTech\",VLOOKUP(W$32,TestData,MATCH($C78,TechData_h,0),FALSE),VLOOKUP(W$32,OldTechData,MATCH($C78,TechData_h,0),FALSE)))","v":""},{"$f":"IF('UserSettings&Results'!W61=\"CurrentTech\",VLOOKUP(X$32,TechData,MATCH($C78,TechData_h,0),FALSE),IF('UserSettings&Results'!W61=\"TestTech\",VLOOKUP(X$32,TestData,MATCH($C78,TechData_h,0),FALSE),VLOOKUP(X$32,OldTechData,MATCH($C78,TechData_h,0),FALSE)))","v":""},{"$f":"IF('UserSettings&Results'!X61=\"CurrentTech\",VLOOKUP(Y$32,TechData,MATCH($C78,TechData_h,0),FALSE),IF('UserSettings&Results'!X61=\"TestTech\",VLOOKUP(Y$32,TestData,MATCH($C78,TechData_h,0),FALSE),VLOOKUP(Y$32,OldTechData,MATCH($C78,TechData_h,0),FALSE)))","v":""},{"$f":"IF('UserSettings&Results'!Y61=\"CurrentTech\",VLOOKUP(Z$32,TechData,MATCH($C78,TechData_h,0),FALSE),IF('UserSettings&Results'!Y61=\"TestTech\",VLOOKUP(Z$32,TestData,MATCH($C78,TechData_h,0),FALSE),VLOOKUP(Z$32,OldTechData,MATCH($C78,TechData_h,0),FALSE)))","v":""},{"$f":"IF('UserSettings&Results'!Z61=\"CurrentTech\",VLOOKUP(AA$32,TechData,MATCH($C78,TechData_h,0),FALSE),IF('UserSettings&Results'!Z61=\"TestTech\",VLOOKUP(AA$32,TestData,MATCH($C78,TechData_h,0),FALSE),VLOOKUP(AA$32,OldTechData,MATCH($C78,TechData_h,0),FALSE)))","v":""},{"$f":"IF('UserSettings&Results'!AA61=\"CurrentTech\",VLOOKUP(AB$32,TechData,MATCH($C78,TechData_h,0),FALSE),IF('UserSettings&Results'!AA61=\"TestTech\",VLOOKUP(AB$32,TestData,MATCH($C78,TechData_h,0),FALSE),VLOOKUP(AB$32,OldTechData,MATCH($C78,TechData_h,0),FALSE)))","v":""},{"$f":"IF('UserSettings&Results'!AB61=\"CurrentTech\",VLOOKUP(AC$32,TechData,MATCH($C78,TechData_h,0),FALSE),IF('UserSettings&Results'!AB61=\"TestTech\",VLOOKUP(AC$32,TestData,MATCH($C78,TechData_h,0),FALSE),VLOOKUP(AC$32,OldTechData,MATCH($C78,TechData_h,0),FALSE)))","v":""},{"$f":"IF('UserSettings&Results'!AC61=\"CurrentTech\",VLOOKUP(AD$32,TechData,MATCH($C78,TechData_h,0),FALSE),IF('UserSettings&Results'!AC61=\"TestTech\",VLOOKUP(AD$32,TestData,MATCH($C78,TechData_h,0),FALSE),VLOOKUP(AD$32,OldTechData,MATCH($C78,TechData_h,0),FALSE)))","v":""},{"$f":"IF('UserSettings&Results'!AD61=\"CurrentTech\",VLOOKUP(AE$32,TechData,MATCH($C78,TechData_h,0),FALSE),IF('UserSettings&Results'!AD61=\"TestTech\",VLOOKUP(AE$32,TestData,MATCH($C78,TechData_h,0),FALSE),VLOOKUP(AE$32,OldTechData,MATCH($C78,TechData_h,0),FALSE)))","v":""}]
[null,null,"Heat efficiency","%",{"$f":"IF('UserSettings&Results'!D61=\"CurrentTech\",VLOOKUP(E$32,TechData,MATCH($C79,TechData_h,0),FALSE),IF('UserSettings&Results'!D61=\"TestTech\",VLOOKUP(E$32,TestData,MATCH($C79,TechData_h,0),FALSE),VLOOKUP(E$32,OldTechData,MATCH($C79,TechData_h,0),FALSE)))","v":0},{"$f":"IF('UserSettings&Results'!E61=\"CurrentTech\",VLOOKUP(F$32,TechData,MATCH($C79,TechData_h,0),FALSE),IF('UserSettings&Results'!E61=\"TestTech\",VLOOKUP(F$32,TestData,MATCH($C79,TechData_h,0),FALSE),VLOOKUP(F$32,OldTechData,MATCH($C79,TechData_h,0),FALSE)))","v":0},{"$f":"IF('UserSettings&Results'!F61=\"CurrentTech\",VLOOKUP(G$32,TechData,MATCH($C79,TechData_h,0),FALSE),IF('UserSettings&Results'!F61=\"TestTech\",VLOOKUP(G$32,TestData,MATCH($C79,TechData_h,0),FALSE),VLOOKUP(G$32,OldTechData,MATCH($C79,TechData_h,0),FALSE)))","v":0},{"$f":"IF('UserSettings&Results'!G61=\"CurrentTech\",VLOOKUP(H$32,TechData,MATCH($C79,TechData_h,0),FALSE),IF('UserSettings&Results'!G61=\"TestTech\",VLOOKUP(H$32,TestData,MATCH($C79,TechData_h,0),FALSE),VLOOKUP(H$32,OldTechData,MATCH($C79,TechData_h,0),FALSE)))","v":0},{"$f":"IF('UserSettings&Results'!H61=\"CurrentTech\",VLOOKUP(I$32,TechData,MATCH($C79,TechData_h,0),FALSE),IF('UserSettings&Results'!H61=\"TestTech\",VLOOKUP(I$32,TestData,MATCH($C79,TechData_h,0),FALSE),VLOOKUP(I$32,OldTechData,MATCH($C79,TechData_h,0),FALSE)))","v":0},{"$f":"IF('UserSettings&Results'!I61=\"CurrentTech\",VLOOKUP(J$32,TechData,MATCH($C79,TechData_h,0),FALSE),IF('UserSettings&Results'!I61=\"TestTech\",VLOOKUP(J$32,TestData,MATCH($C79,TechData_h,0),FALSE),VLOOKUP(J$32,OldTechData,MATCH($C79,TechData_h,0),FALSE)))","v":0},{"$f":"IF('UserSettings&Results'!J61=\"CurrentTech\",VLOOKUP(K$32,TechData,MATCH($C79,TechData_h,0),FALSE),IF('UserSettings&Results'!J61=\"TestTech\",VLOOKUP(K$32,TestData,MATCH($C79,TechData_h,0),FALSE),VLOOKUP(K$32,OldTechData,MATCH($C79,TechData_h,0),FALSE)))","v":0},{"$f":"IF('UserSettings&Results'!K61=\"CurrentTech\",VLOOKUP(L$32,TechData,MATCH($C79,TechData_h,0),FALSE),IF('UserSettings&Results'!K61=\"TestTech\",VLOOKUP(L$32,TestData,MATCH($C79,TechData_h,0),FALSE),VLOOKUP(L$32,OldTechData,MATCH($C79,TechData_h,0),FALSE)))","v":0.67921200563145578},{"$f":"IF('UserSettings&Results'!L61=\"CurrentTech\",VLOOKUP(M$32,TechData,MATCH($C79,TechData_h,0),FALSE),IF('UserSettings&Results'!L61=\"TestTech\",VLOOKUP(M$32,TestData,MATCH($C79,TechData_h,0),FALSE),VLOOKUP(M$32,OldTechData,MATCH($C79,TechData_h,0),FALSE)))","v":0.8339049971362118},{"$f":"IF('UserSettings&Results'!M61=\"CurrentTech\",VLOOKUP(N$32,TechData,MATCH($C79,TechData_h,0),FALSE),IF('UserSettings&Results'!M61=\"TestTech\",VLOOKUP(N$32,TestData,MATCH($C79,TechData_h,0),FALSE),VLOOKUP(N$32,OldTechData,MATCH($C79,TechData_h,0),FALSE)))","v":0.53658536585365857},{"$f":"IF('UserSettings&Results'!N61=\"CurrentTech\",VLOOKUP(O$32,TechData,MATCH($C79,TechData_h,0),FALSE),IF('UserSettings&Results'!N61=\"TestTech\",VLOOKUP(O$32,TestData,MATCH($C79,TechData_h,0),FALSE),VLOOKUP(O$32,OldTechData,MATCH($C79,TechData_h,0),FALSE)))","v":0.51219512195121963},{"$f":"IF('UserSettings&Results'!O61=\"CurrentTech\",VLOOKUP(P$32,TechData,MATCH($C79,TechData_h,0),FALSE),IF('UserSettings&Results'!O61=\"TestTech\",VLOOKUP(P$32,TestData,MATCH($C79,TechData_h,0),FALSE),VLOOKUP(P$32,OldTechData,MATCH($C79,TechData_h,0),FALSE)))","v":0.44827586206896602},{"$f":"IF('UserSettings&Results'!P61=\"CurrentTech\",VLOOKUP(Q$32,TechData,MATCH($C79,TechData_h,0),FALSE),IF('UserSettings&Results'!P61=\"TestTech\",VLOOKUP(Q$32,TestData,MATCH($C79,TechData_h,0),FALSE),VLOOKUP(Q$32,OldTechData,MATCH($C79,TechData_h,0),FALSE)))","v":0.5056179775280899},{"$f":"IF('UserSettings&Results'!Q61=\"CurrentTech\",VLOOKUP(R$32,TechData,MATCH($C79,TechData_h,0),FALSE),IF('UserSettings&Results'!Q61=\"TestTech\",VLOOKUP(R$32,TestData,MATCH($C79,TechData_h,0),FALSE),VLOOKUP(R$32,OldTechData,MATCH($C79,TechData_h,0),FALSE)))","v":0.28372093023255812},{"$f":"IF('UserSettings&Results'!R61=\"CurrentTech\",VLOOKUP(S$32,TechData,MATCH($C79,TechData_h,0),FALSE),IF('UserSettings&Results'!R61=\"TestTech\",VLOOKUP(S$32,TestData,MATCH($C79,TechData_h,0),FALSE),VLOOKUP(S$32,OldTechData,MATCH($C79,TechData_h,0),FALSE)))","v":0},{"$f":"IF('UserSettings&Results'!S61=\"CurrentTech\",VLOOKUP(T$32,TechData,MATCH($C79,TechData_h,0),FALSE),IF('UserSettings&Results'!S61=\"TestTech\",VLOOKUP(T$32,TestData,MATCH($C79,TechData_h,0),FALSE),VLOOKUP(T$32,OldTechData,MATCH($C79,TechData_h,0),FALSE)))","v":0},{"$f":"IF('UserSettings&Results'!T61=\"CurrentTech\",VLOOKUP(U$32,TechData,MATCH($C79,TechData_h,0),FALSE),IF('UserSettings&Results'!T61=\"TestTech\",VLOOKUP(U$32,TestData,MATCH($C79,TechData_h,0),FALSE),VLOOKUP(U$32,OldTechData,MATCH($C79,TechData_h,0),FALSE)))","v":0},{"$f":"IF('UserSettings&Results'!U61=\"CurrentTech\",VLOOKUP(V$32,TechData,MATCH($C79,TechData_h,0),FALSE),IF('UserSettings&Results'!U61=\"TestTech\",VLOOKUP(V$32,TestData,MATCH($C79,TechData_h,0),FALSE),VLOOKUP(V$32,OldTechData,MATCH($C79,TechData_h,0),FALSE)))","v":0},{"$f":"IF('UserSettings&Results'!V61=\"CurrentTech\",VLOOKUP(W$32,TechData,MATCH($C79,TechData_h,0),FALSE),IF('UserSettings&Results'!V61=\"TestTech\",VLOOKUP(W$32,TestData,MATCH($C79,TechData_h,0),FALSE),VLOOKUP(W$32,OldTechData,MATCH($C79,TechData_h,0),FALSE)))","v":""},{"$f":"IF('UserSettings&Results'!W61=\"CurrentTech\",VLOOKUP(X$32,TechData,MATCH($C79,TechData_h,0),FALSE),IF('UserSettings&Results'!W61=\"TestTech\",VLOOKUP(X$32,TestData,MATCH($C79,TechData_h,0),FALSE),VLOOKUP(X$32,OldTechData,MATCH($C79,TechData_h,0),FALSE)))","v":""},{"$f":"IF('UserSettings&Results'!X61=\"CurrentTech\",VLOOKUP(Y$32,TechData,MATCH($C79,TechData_h,0),FALSE),IF('UserSettings&Results'!X61=\"TestTech\",VLOOKUP(Y$32,TestData,MATCH($C79,TechData_h,0),FALSE),VLOOKUP(Y$32,OldTechData,MATCH($C79,TechData_h,0),FALSE)))","v":""},{"$f":"IF('UserSettings&Results'!Y61=\"CurrentTech\",VLOOKUP(Z$32,TechData,MATCH($C79,TechData_h,0),FALSE),IF('UserSettings&Results'!Y61=\"TestTech\",VLOOKUP(Z$32,TestData,MATCH($C79,TechData_h,0),FALSE),VLOOKUP(Z$32,OldTechData,MATCH($C79,TechData_h,0),FALSE)))","v":""},{"$f":"IF('UserSettings&Results'!Z61=\"CurrentTech\",VLOOKUP(AA$32,TechData,MATCH($C79,TechData_h,0),FALSE),IF('UserSettings&Results'!Z61=\"TestTech\",VLOOKUP(AA$32,TestData,MATCH($C79,TechData_h,0),FALSE),VLOOKUP(AA$32,OldTechData,MATCH($C79,TechData_h,0),FALSE)))","v":""},{"$f":"IF('UserSettings&Results'!AA61=\"CurrentTech\",VLOOKUP(AB$32,TechData,MATCH($C79,TechData_h,0),FALSE),IF('UserSettings&Results'!AA61=\"TestTech\",VLOOKUP(AB$32,TestData,MATCH($C79,TechData_h,0),FALSE),VLOOKUP(AB$32,OldTechData,MATCH($C79,TechData_h,0),FALSE)))","v":""},{"$f":"IF('UserSettings&Results'!AB61=\"CurrentTech\",VLOOKUP(AC$32,TechData,MATCH($C79,TechData_h,0),FALSE),IF('UserSettings&Results'!AB61=\"TestTech\",VLOOKUP(AC$32,TestData,MATCH($C79,TechData_h,0),FALSE),VLOOKUP(AC$32,OldTechData,MATCH($C79,TechData_h,0),FALSE)))","v":""},{"$f":"IF('UserSettings&Results'!AC61=\"CurrentTech\",VLOOKUP(AD$32,TechData,MATCH($C79,TechData_h,0),FALSE),IF('UserSettings&Results'!AC61=\"TestTech\",VLOOKUP(AD$32,TestData,MATCH($C79,TechData_h,0),FALSE),VLOOKUP(AD$32,OldTechData,MATCH($C79,TechData_h,0),FALSE)))","v":""},{"$f":"IF('UserSettings&Results'!AD61=\"CurrentTech\",VLOOKUP(AE$32,TechData,MATCH($C79,TechData_h,0),FALSE),IF('UserSettings&Results'!AD61=\"TestTech\",VLOOKUP(AE$32,TestData,MATCH($C79,TechData_h,0),FALSE),VLOOKUP(AE$32,OldTechData,MATCH($C79,TechData_h,0),FALSE)))","v":""}]
[null,null,"cv-value",null,{"$f":"IF(E78>0,(E77-E78)/E79,0)","v":0},0,0,0,0,{"$f":"IF(J78>0,(J77-J78)/J79,0)","v":0},{"$f":"IF(K78>0,(K77-K78)/K79,0)","v":0},0,0,0.15000000000000002,0.15,0.15000000000000024,0.15000000000000002,4.4262295081967204E-2,0,0,0,0,{"$error":"#VALUE!"},{"$error":"#VALUE!"},{"$error":"#VALUE!"},{"$error":"#VALUE!"},{"$error":"#VALUE!"},{"$error":"#VALUE!"},{"$error":"#VALUE!"},{"$error":"#VALUE!"},{"$error":"#VALUE!"}]
[null,null,"cm-value",null,{"$f":"IF(E78>0,E78/E79,0)","v":0},0,0,0,0,{"$f":"IF(J78>0,J78/J79,0)","v":0},{"$f":"IF(K78>0,K78/K79,0)","v":0},0.42294158174211172,0.3303464138167973,0.66999999999999993,0.66999999999999993,1.0099999999999985,0.74,2,0,0,0,0,{"$error":"#VALUE!"},{"$error":"#VALUE!"},{"$error":"#VALUE!"},{"$error":"#VALUE!"},{"$error":"#VALUE!"},{"$error":"#VALUE!"},{"$error":"#VALUE!"},{"$error":"#VALUE!"},{"$error":"#VALUE!"}]
[null,null,"Input capacity","MW",{"$f":"E83/E77","v":1},1,1,1,1,{"$f":"J83/J77","v":1},{"$f":"K83/K77","v":1},3.4810820595473899,3.6300601982962974,2.2727272727272729,2.3809523809523809,1.9230769230769229,2.2222222222222223,1.7241379310344829,1,2.2222222222222223,1.7139524187494712,1,{"$error":"#VALUE!"},{"$error":"#VALUE!"},{"$error":"#VALUE!"},{"$error":"#VALUE!"},{"$error":"#VALUE!"},{"$error":"#VALUE!"},{"$error":"#VALUE!"},{"$error":"#VALUE!"},{"$error":"#VALUE!"}]
[null,null,"Electric capacity condensing","MW",1,1,1,1,1,1,1,1,1,1,1,1,1,1,1,1,1,1,1,1,1,1,1,1,1,1,1]
[null,null,"Electric capacity CHP","MW",{"$f":"E82*E78","v":0},0,0,0,0,{"$f":"J82*J78","v":0},{"$f":"K82*K78","v":0},1,1,0.81707317073170738,0.81707317073170738,0.87068965517241337,0.8314606741573034,0.97834803528468328,0,0,0,0,{"$error":"#VALUE!"},{"$error":"#VALUE!"},{"$error":"#VALUE!"},{"$error":"#VALUE!"},{"$error":"#VALUE!"},{"$error":"#VALUE!"},{"$error":"#VALUE!"},{"$error":"#VALUE!"},{"$error":"#VALUE!"}]
[null,null,"Heat capacity","MW",{"$f":"E82*E79","v":0},0,0,0,0,{"$f":"J82*J79","v":0},{"$f":"K82*K79","v":0},2.3643927274328616,3.0271253392645505,1.2195121951219514,1.2195121951219514,0.86206896551724232,1.1235955056179776,0.48917401764234164,0,0,0,0,{"$error":"#VALUE!"},{"$error":"#VALUE!"},{"$error":"#VALUE!"},{"$error":"#VALUE!"},{"$error":"#VALUE!"},{"$error":"#VALUE!"},{"$error":"#VALUE!"},{"$error":"#VALUE!"},{"$error":"#VALUE!"}]
[]
[null,"Operational data","Full load hours","hours",{"$f":"IF('UserSettings&Results'!D61=\"CurrentTech\",VLOOKUP(E$32,TechData,MATCH($C87,TechData_h,0),FALSE),IF('UserSettings&Results'!D61=\"TestTech\",VLOOKUP(E$32,TestData,MATCH($C87,TechData_h,0),FALSE),VLOOKUP(E$32,OldTechData,MATCH($C87,TechData_h,0),FALSE)))","v":4550},{"$f":"IF('UserSettings&Results'!E61=\"CurrentTech\",VLOOKUP(F$32,TechData,MATCH($C87,TechData_h,0),FALSE),IF('UserSettings&Results'!E61=\"TestTech\",VLOOKUP(F$32,TestData,MATCH($C87,TechData_h,0),FALSE),VLOOKUP(F$32,OldTechData,MATCH($C87,TechData_h,0),FALSE)))","v":4150},{"$f":"IF('UserSettings&Results'!F61=\"CurrentTech\",VLOOKUP(G$32,TechData,MATCH($C87,TechData_h,0),FALSE),IF('UserSettings&Results'!F61=\"TestTech\",VLOOKUP(G$32,TestData,MATCH($C87,TechData_h,0),FALSE),VLOOKUP(G$32,OldTechData,MATCH($C87,TechData_h,0),FALSE)))","v":3600},{"$f":"IF('UserSettings&Results'!G61=\"CurrentTech\",VLOOKUP(H$32,TechData,MATCH($C87,TechData_h,0),FALSE),IF('UserSettings&Results'!G61=\"TestTech\",VLOOKUP(H$32,TestData,MATCH($C87,TechData_h,0),FALSE),VLOOKUP(H$32,OldTechData,MATCH($C87,TechData_h,0),FALSE)))","v":1187.0819999999999},{"$f":"IF('UserSettings&Results'!H61=\"CurrentTech\",VLOOKUP(I$32,TechData,MATCH($C87,TechData_h,0),FALSE),IF('UserSettings&Results'!H61=\"TestTech\",VLOOKUP(I$32,TestData,MATCH($C87,TechData_h,0),FALSE),VLOOKUP(I$32,OldTechData,MATCH($C87,TechData_h,0),FALSE)))","v":1369.71},{"$f":"IF('UserSettings&Results'!I61=\"CurrentTech\",VLOOKUP(J$32,TechData,MATCH($C87,TechData_h,0),FALSE),IF('UserSettings&Results'!I61=\"TestTech\",VLOOKUP(J$32,TestData,MATCH($C87,TechData_h,0),FALSE),VLOOKUP(J$32,OldTechData,MATCH($C87,TechData_h,0),FALSE)))","v":1116.0600000000002},{"$f":"IF('UserSettings&Results'!J61=\"CurrentTech\",VLOOKUP(K$32,TechData,MATCH($C87,TechData_h,0),FALSE),IF('UserSettings&Results'!J61=\"TestTech\",VLOOKUP(K$32,TestData,MATCH($C87,TechData_h,0),FALSE),VLOOKUP(K$32,OldTechData,MATCH($C87,TechData_h,0),FALSE)))","v":1116.0600000000002},{"$f":"IF('UserSettings&Results'!K61=\"CurrentTech\",VLOOKUP(L$32,TechData,MATCH($C87,TechData_h,0),FALSE),IF('UserSettings&Results'!K61=\"TestTech\",VLOOKUP(L$32,TestData,MATCH($C87,TechData_h,0),FALSE),VLOOKUP(L$32,OldTechData,MATCH($C87,TechData_h,0),FALSE)))","v":4000},{"$f":"IF('UserSettings&Results'!L61=\"CurrentTech\",VLOOKUP(M$32,TechData,MATCH($C87,TechData_h,0),FALSE),IF('UserSettings&Results'!L61=\"TestTech\",VLOOKUP(M$32,TestData,MATCH($C87,TechData_h,0),FALSE),VLOOKUP(M$32,OldTechData,MATCH($C87,TechData_h,0),FALSE)))","v":4000},{"$f":"IF('UserSettings&Results'!M61=\"CurrentTech\",VLOOKUP(N$32,TechData,MATCH($C87,TechData_h,0),FALSE),IF('UserSettings&Results'!M61=\"TestTech\",VLOOKUP(N$32,TestData,MATCH($C87,TechData_h,0),FALSE),VLOOKUP(N$32,OldTechData,MATCH($C87,TechData_h,0),FALSE)))","v":5000},{"$f":"IF('UserSettings&Results'!N61=\"CurrentTech\",VLOOKUP(O$32,TechData,MATCH($C87,TechData_h,0),FALSE),IF('UserSettings&Results'!N61=\"TestTech\",VLOOKUP(O$32,TestData,MATCH($C87,TechData_h,0),FALSE),VLOOKUP(O$32,OldTechData,MATCH($C87,TechData_h,0),FALSE)))","v":5000},{"$f":"IF('UserSettings&Results'!O61=\"CurrentTech\",VLOOKUP(P$32,TechData,MATCH($C87,TechData_h,0),FALSE),IF('UserSettings&Results'!O61=\"TestTech\",VLOOKUP(P$32,TestData,MATCH($C87,TechData_h,0),FALSE),VLOOKUP(P$32,OldTechData,MATCH($C87,TechData_h,0),FALSE)))","v":5000},{"$f":"IF('UserSettings&Results'!P61=\"CurrentTech\",VLOOKUP(Q$32,TechData,MATCH($C87,TechData_h,0),FALSE),IF('UserSettings&Results'!P61=\"TestTech\",VLOOKUP(Q$32,TestData,MATCH($C87,TechData_h,0),FALSE),VLOOKUP(Q$32,OldTechData,MATCH($C87,TechData_h,0),FALSE)))","v":5000},{"$f":"IF('UserSettings&Results'!Q61=\"CurrentTech\",VLOOKUP(R$32,TechData,MATCH($C87,TechData_h,0),FALSE),IF('UserSettings&Results'!Q61=\"TestTech\",VLOOKUP(R$32,TestData,MATCH($C87,TechData_h,0),FALSE),VLOOKUP(R$32,OldTechData,MATCH($C87,TechData_h,0),FALSE)))","v":5000},{"$f":"IF('UserSettings&Results'!R61=\"CurrentTech\",VLOOKUP(S$32,TechData,MATCH($C87,TechData_h,0),FALSE),IF('UserSettings&Results'!R61=\"TestTech\",VLOOKUP(S$32,TestData,MATCH($C87,TechData_h,0),FALSE),VLOOKUP(S$32,OldTechData,MATCH($C87,TechData_h,0),FALSE)))","v":7000},{"$f":"IF('UserSettings&Results'!S61=\"CurrentTech\",VLOOKUP(T$32,TechData,MATCH($C87,TechData_h,0),FALSE),IF('UserSettings&Results'!S61=\"TestTech\",VLOOKUP(T$32,TestData,MATCH($C87,TechData_h,0),FALSE),VLOOKUP(T$32,OldTechData,MATCH($C87,TechData_h,0),FALSE)))","v":5000},{"$f":"IF('UserSettings&Results'!T61=\"CurrentTech\",VLOOKUP(U$32,TechData,MATCH($C87,TechData_h,0),FALSE),IF('UserSettings&Results'!T61=\"TestTech\",VLOOKUP(U$32,TestData,MATCH($C87,TechData_h,0),FALSE),VLOOKUP(U$32,OldTechData,MATCH($C87,TechData_h,0),FALSE)))","v":5000},{"$f":"IF('UserSettings&Results'!U61=\"CurrentTech\",VLOOKUP(V$32,TechData,MATCH($C87,TechData_h,0),FALSE),IF('UserSettings&Results'!U61=\"TestTech\",VLOOKUP(V$32,TestData,MATCH($C87,TechData_h,0),FALSE),VLOOKUP(V$32,OldTechData,MATCH($C87,TechData_h,0),FALSE)))","v":3600},{"$f":"IF('UserSettings&Results'!V61=\"CurrentTech\",VLOOKUP(W$32,TechData,MATCH($C87,TechData_h,0),FALSE),IF('UserSettings&Results'!V61=\"TestTech\",VLOOKUP(W$32,TestData,MATCH($C87,TechData_h,0),FALSE),VLOOKUP(W$32,OldTechData,MATCH($C87,TechData_h,0),FALSE)))","v":""},{"$f":"IF('UserSettings&Results'!W61=\"CurrentTech\",VLOOKUP(X$32,TechData,MATCH($C87,TechData_h,0),FALSE),IF('UserSettings&Results'!W61=\"TestTech\",VLOOKUP(X$32,TestData,MATCH($C87,TechData_h,0),FALSE),VLOOKUP(X$32,OldTechData,MATCH($C87,TechData_h,0),FALSE)))","v":""},{"$f":"IF('UserSettings&Results'!X61=\"CurrentTech\",VLOOKUP(Y$32,TechData,MATCH($C87,TechData_h,0),FALSE),IF('UserSettings&Results'!X61=\"TestTech\",VLOOKUP(Y$32,TestData,MATCH($C87,TechData_h,0),FALSE),VLOOKUP(Y$32,OldTechData,MATCH($C87,TechData_h,0),FALSE)))","v":""},{"$f":"IF('UserSettings&Results'!Y61=\"CurrentTech\",VLOOKUP(Z$32,TechData,MATCH($C87,TechData_h,0),FALSE),IF('UserSettings&Results'!Y61=\"TestTech\",VLOOKUP(Z$32,TestData,MATCH($C87,TechData_h,0),FALSE),VLOOKUP(Z$32,OldTechData,MATCH($C87,TechData_h,0),FALSE)))","v":""},{"$f":"IF('UserSettings&Results'!Z61=\"CurrentTech\",VLOOKUP(AA$32,TechData,MATCH($C87,TechData_h,0),FALSE),IF('UserSettings&Results'!Z61=\"TestTech\",VLOOKUP(AA$32,TestData,MATCH($C87,TechData_h,0),FALSE),VLOOKUP(AA$32,OldTechData,MATCH($C87,TechData_h,0),FALSE)))","v":""},{"$f":"IF('UserSettings&Results'!AA61=\"CurrentTech\",VLOOKUP(AB$32,TechData,MATCH($C87,TechData_h,0),FALSE),IF('UserSettings&Results'!AA61=\"TestTech\",VLOOKUP(AB$32,TestData,MATCH($C87,TechData_h,0),FALSE),VLOOKUP(AB$32,OldTechData,MATCH($C87,TechData_h,0),FALSE)))","v":""},{"$f":"IF('UserSettings&Results'!AB61=\"CurrentTech\",VLOOKUP(AC$32,TechData,MATCH($C87,TechData_h,0),FALSE),IF('UserSettings&Results'!AB61=\"TestTech\",VLOOKUP(AC$32,TestData,MATCH($C87,TechData_h,0),FALSE),VLOOKUP(AC$32,OldTechData,MATCH($C87,TechData_h,0),FALSE)))","v":""},{"$f":"IF('UserSettings&Results'!AC61=\"CurrentTech\",VLOOKUP(AD$32,TechData,MATCH($C87,TechData_h,0),FALSE),IF('UserSettings&Results'!AC61=\"TestTech\",VLOOKUP(AD$32,TestData,MATCH($C87,TechData_h,0),FALSE),VLOOKUP(AD$32,OldTechData,MATCH($C87,TechData_h,0),FALSE)))","v":""},{"$f":"IF('UserSettings&Results'!AD61=\"CurrentTech\",VLOOKUP(AE$32,TechData,MATCH($C87,TechData_h,0),FALSE),IF('UserSettings&Results'!AD61=\"TestTech\",VLOOKUP(AE$32,TestData,MATCH($C87,TechData_h,0),FALSE),VLOOKUP(AE$32,OldTechData,MATCH($C87,TechData_h,0),FALSE)))","v":""}]
[null,null,"Condensing ratio","%",{"$f":"IF('UserSettings&Results'!D61=\"CurrentTech\",VLOOKUP(E$32,TechData,MATCH($C88,TechData_h,0),FALSE),IF('UserSettings&Results'!D61=\"TestTech\",VLOOKUP(E$32,TestData,MATCH($C88,TechData_h,0),FALSE),VLOOKUP(E$32,OldTechData,MATCH($C88,TechData_h,0),FALSE)))","v":0},{"$f":"IF('UserSettings&Results'!E61=\"CurrentTech\",VLOOKUP(F$32,TechData,MATCH($C88,TechData_h,0),FALSE),IF('UserSettings&Results'!E61=\"TestTech\",VLOOKUP(F$32,TestData,MATCH($C88,TechData_h,0),FALSE),VLOOKUP(F$32,OldTechData,MATCH($C88,TechData_h,0),FALSE)))","v":0},{"$f":"IF('UserSettings&Results'!F61=\"CurrentTech\",VLOOKUP(G$32,TechData,MATCH($C88,TechData_h,0),FALSE),IF('UserSettings&Results'!F61=\"TestTech\",VLOOKUP(G$32,TestData,MATCH($C88,TechData_h,0),FALSE),VLOOKUP(G$32,OldTechData,MATCH($C88,TechData_h,0),FALSE)))","v":0},{"$f":"IF('UserSettings&Results'!G61=\"CurrentTech\",VLOOKUP(H$32,TechData,MATCH($C88,TechData_h,0),FALSE),IF('UserSettings&Results'!G61=\"TestTech\",VLOOKUP(H$32,TestData,MATCH($C88,TechData_h,0),FALSE),VLOOKUP(H$32,OldTechData,MATCH($C88,TechData_h,0),FALSE)))","v":0},{"$f":"IF('UserSettings&Results'!H61=\"CurrentTech\",VLOOKUP(I$32,TechData,MATCH($C88,TechData_h,0),FALSE),IF('UserSettings&Results'!H61=\"TestTech\",VLOOKUP(I$32,TestData,MATCH($C88,TechData_h,0),FALSE),VLOOKUP(I$32,OldTechData,MATCH($C88,TechData_h,0),FALSE)))","v":0},{"$f":"IF('UserSettings&Results'!I61=\"CurrentTech\",VLOOKUP(J$32,TechData,MATCH($C88,TechData_h,0),FALSE),IF('UserSettings&Results'!I61=\"TestTech\",VLOOKUP(J$32,TestData,MATCH($C88,TechData_h,0),FALSE),VLOOKUP(J$32,OldTechData,MATCH($C88,TechData_h,0),FALSE)))","v":0},{"$f":"IF('UserSettings&Results'!J61=\"CurrentTech\",VLOOKUP(K$32,TechData,MATCH($C88,TechData_h,0),FALSE),IF('UserSettings&Results'!J61=\"TestTech\",VLOOKUP(K$32,TestData,MATCH($C88,TechData_h,0),FALSE),VLOOKUP(K$32,OldTechData,MATCH($C88,TechData_h,0),FALSE)))","v":0},{"$f":"IF('UserSettings&Results'!K61=\"CurrentTech\",VLOOKUP(L$32,TechData,MATCH($C88,TechData_h,0),FALSE),IF('UserSettings&Results'!K61=\"TestTech\",VLOOKUP(L$32,TestData,MATCH($C88,TechData_h,0),FALSE),VLOOKUP(L$32,OldTechData,MATCH($C88,TechData_h,0),FALSE)))","v":0},{"$f":"IF('UserSettings&Results'!L61=\"CurrentTech\",VLOOKUP(M$32,TechData,MATCH($C88,TechData_h,0),FALSE),IF('UserSettings&Results'!L61=\"TestTech\",VLOOKUP(M$32,TestData,MATCH($C88,TechData_h,0),FALSE),VLOOKUP(M$32,OldTechData,MATCH($C88,TechData_h,0),FALSE)))","v":0},{"$f":"IF('UserSettings&Results'!M61=\"CurrentTech\",VLOOKUP(N$32,TechData,MATCH($C88,TechData_h,0),FALSE),IF('UserSettings&Results'!M61=\"TestTech\",VLOOKUP(N$32,TestData,MATCH($C88,TechData_h,0),FALSE),VLOOKUP(N$32,OldTechData,MATCH($C88,TechData_h,0),FALSE)))","v":0.2},{"$f":"IF('UserSettings&Results'!N61=\"CurrentTech\",VLOOKUP(O$32,TechData,MATCH($C88,TechData_h,0),FALSE),IF('UserSettings&Results'!N61=\"TestTech\",VLOOKUP(O$32,TestData,MATCH($C88,TechData_h,0),FALSE),VLOOKUP(O$32,OldTechData,MATCH($C88,TechData_h,0),FALSE)))","v":0.2},{"$f":"IF('UserSettings&Results'!O61=\"CurrentTech\",VLOOKUP(P$32,TechData,MATCH($C88,TechData_h,0),FALSE),IF('UserSettings&Results'!O61=\"TestTech\",VLOOKUP(P$32,TestData,MATCH($C88,TechData_h,0),FALSE),VLOOKUP(P$32,OldTechData,MATCH($C88,TechData_h,0),FALSE)))","v":0.2},{"$f":"IF('UserSettings&Results'!P61=\"CurrentTech\",VLOOKUP(Q$32,TechData,MATCH($C88,TechData_h,0),FALSE),IF('UserSettings&Results'!P61=\"TestTech\",VLOOKUP(Q$32,TestData,MATCH($C88,TechData_h,0),FALSE),VLOOKUP(Q$32,OldTechData,MATCH($C88,TechData_h,0),FALSE)))","v":0.2},{"$f":"IF('UserSettings&Results'!Q61=\"CurrentTech\",VLOOKUP(R$32,TechData,MATCH($C88,TechData_h,0),FALSE),IF('UserSettings&Results'!Q61=\"TestTech\",VLOOKUP(R$32,TestData,MATCH($C88,TechData_h,0),FALSE),VLOOKUP(R$32,OldTechData,MATCH($C88,TechData_h,0),FALSE)))","v":0.2},{"$f":"IF('UserSettings&Results'!R61=\"CurrentTech\",VLOOKUP(S$32,TechData,MATCH($C88,TechData_h,0),FALSE),IF('UserSettings&Results'!R61=\"TestTech\",VLOOKUP(S$32,TestData,MATCH($C88,TechData_h,0),FALSE),VLOOKUP(S$32,OldTechData,MATCH($C88,TechData_h,0),FALSE)))","v":1},{"$f":"IF('UserSettings&Results'!S61=\"CurrentTech\",VLOOKUP(T$32,TechData,MATCH($C88,TechData_h,0),FALSE),IF('UserSettings&Results'!S61=\"TestTech\",VLOOKUP(T$32,TestData,MATCH($C88,TechData_h,0),FALSE),VLOOKUP(T$32,OldTechData,MATCH($C88,TechData_h,0),FALSE)))","v":1},{"$f":"IF('UserSettings&Results'!T61=\"CurrentTech\",VLOOKUP(U$32,TechData,MATCH($C88,TechData_h,0),FALSE),IF('UserSettings&Results'!T61=\"TestTech\",VLOOKUP(U$32,TestData,MATCH($C88,TechData_h,0),FALSE),VLOOKUP(U$32,OldTechData,MATCH($C88,TechData_h,0),FALSE)))","v":1},{"$f":"IF('UserSettings&Results'!U61=\"CurrentTech\",VLOOKUP(V$32,TechData,MATCH($C88,TechData_h,0),FALSE),IF('UserSettings&Results'!U61=\"TestTech\",VLOOKUP(V$32,TestData,MATCH($C88,TechData_h,0),FALSE),VLOOKUP(V$32,OldTechData,MATCH($C88,TechData_h,0),FALSE)))","v":0},{"$f":"IF('UserSettings&Results'!V61=\"CurrentTech\",VLOOKUP(W$32,TechData,MATCH($C88,TechData_h,0),FALSE),IF('UserSettings&Results'!V61=\"TestTech\",VLOOKUP(W$32,TestData,MATCH($C88,TechData_h,0),FALSE),VLOOKUP(W$32,OldTechData,MATCH($C88,TechData_h,0),FALSE)))","v":""},{"$f":"IF('UserSettings&Results'!W61=\"CurrentTech\",VLOOKUP(X$32,TechData,MATCH($C88,TechData_h,0),FALSE),IF('UserSettings&Results'!W61=\"TestTech\",VLOOKUP(X$32,TestData,MATCH($C88,TechData_h,0),FALSE),VLOOKUP(X$32,OldTechData,MATCH($C88,TechData_h,0),FALSE)))","v":""},{"$f":"IF('UserSettings&Results'!X61=\"CurrentTech\",VLOOKUP(Y$32,TechData,MATCH($C88,TechData_h,0),FALSE),IF('UserSettings&Results'!X61=\"TestTech\",VLOOKUP(Y$32,TestData,MATCH($C88,TechData_h,0),FALSE),VLOOKUP(Y$32,OldTechData,MATCH($C88,TechData_h,0),FALSE)))","v":""},{"$f":"IF('UserSettings&Results'!Y61=\"CurrentTech\",VLOOKUP(Z$32,TechData,MATCH($C88,TechData_h,0),FALSE),IF('UserSettings&Results'!Y61=\"TestTech\",VLOOKUP(Z$32,TestData,MATCH($C88,TechData_h,0),FALSE),VLOOKUP(Z$32,OldTechData,MATCH($C88,TechData_h,0),FALSE)))","v":""},{"$f":"IF('UserSettings&Results'!Z61=\"CurrentTech\",VLOOKUP(AA$32,TechData,MATCH($C88,TechData_h,0),FALSE),IF('UserSettings&Results'!Z61=\"TestTech\",VLOOKUP(AA$32,TestData,MATCH($C88,TechData_h,0),FALSE),VLOOKUP(AA$32,OldTechData,MATCH($C88,TechData_h,0),FALSE)))","v":""},{"$f":"IF('UserSettings&Results'!AA61=\"CurrentTech\",VLOOKUP(AB$32,TechData,MATCH($C88,TechData_h,0),FALSE),IF('UserSettings&Results'!AA61=\"TestTech\",VLOOKUP(AB$32,TestData,MATCH($C88,TechData_h,0),FALSE),VLOOKUP(AB$32,OldTechData,MATCH($C88,TechData_h,0),FALSE)))","v":""},{"$f":"IF('UserSettings&Results'!AB61=\"CurrentTech\",VLOOKUP(AC$32,TechData,MATCH($C88,TechData_h,0),FALSE),IF('UserSettings&Results'!AB61=\"TestTech\",VLOOKUP(AC$32,TestData,MATCH($C88,TechData_h,0),FALSE),VLOOKUP(AC$32,OldTechData,MATCH($C88,TechData_h,0),FALSE)))","v":""},{"$f":"IF('UserSettings&Results'!AC61=\"CurrentTech\",VLOOKUP(AD$32,TechData,MATCH($C88,TechData_h,0),FALSE),IF('UserSettings&Results'!AC61=\"TestTech\",VLOOKUP(AD$32,TestData,MATCH($C88,TechData_h,0),FALSE),VLOOKUP(AD$32,OldTechData,MATCH($C88,TechData_h,0),FALSE)))","v":""},{"$f":"IF('UserSettings&Results'!AD61=\"CurrentTech\",VLOOKUP(AE$32,TechData,MATCH($C88,TechData_h,0),FALSE),IF('UserSettings&Results'!AD61=\"TestTech\",VLOOKUP(AE$32,TestData,MATCH($C88,TechData_h,0),FALSE),VLOOKUP(AE$32,OldTechData,MATCH($C88,TechData_h,0),FALSE)))","v":""}]
[null,null,"Full load hours condensing","hours",{"$f":"IF(E36=\"YES\",E87*E88,E87)","v":4550},4150,3600,1187.0819999999999,1369.71,{"$f":"IF(J36=\"YES\",J87*J88,J87)","v":1116.0600000000002},{"$f":"IF(K36=\"YES\",K87*K88,K87)","v":1116.0600000000002},0,0,1000,1000,1000,1000,1000,7000,5000,5000,3600,"","","","","","","","",""]
[null,null,"Full load hours CHP","hours",{"$f":"E87-E89","v":0},0,0,0,0,{"$f":"J87-J89","v":0},{"$f":"K87-K89","v":0},4000,4000,4000,4000,4000,4000,4000,0,0,0,0,{"$error":"#VALUE!"},{"$error":"#VALUE!"},{"$error":"#VALUE!"},{"$error":"#VALUE!"},{"$error":"#VALUE!"},{"$error":"#VALUE!"},{"$error":"#VALUE!"},{"$error":"#VALUE!"},{"$error":"#VALUE!"}]
[]
[null,"LCOE-calculations"]
[null,"Production calculations","Electricity production","MWh/MW/year",{"$f":"E83*E89+E84*E90","v":4550},4150,3600,1187.0819999999999,{"$f":"I83*I89+I84*I90","v":1369.71},{"$f":"J83*J89+J84*J90","v":1116.0600000000002},{"$f":"K83*K89+K84*K90","v":1116.0600000000002},4000,4000,4268.292682926829,4268.292682926829,4482.758620689654,4325.8426966292136,4913.3921411387328,7000,5000,5000,3600,{"$error":"#VALUE!"},{"$error":"#VALUE!"},{"$error":"#VALUE!"},{"$error":"#VALUE!"},{"$error":"#VALUE!"},{"$error":"#VALUE!"},{"$error":"#VALUE!"},{"$error":"#VALUE!"},{"$error":"#VALUE!"}]
[null,"1 MW electric capacity (condensing)","Heat production","MWh/MW/year",{"$f":"E90*E85","v":0},0,0,0,0,{"$f":"J90*J85","v":0},{"$f":"K90*K85","v":0},9457.5709097314466,12108.501357058201,4878.0487804878057,4878.0487804878057,3448.2758620689692,4494.3820224719102,1956.6960705693666,0,0,0,0,{"$error":"#VALUE!"},{"$error":"#VALUE!"},{"$error":"#VALUE!"},{"$error":"#VALUE!"},{"$error":"#VALUE!"},{"$error":"#VALUE!"},{"$error":"#VALUE!"},{"$error":"#VALUE!"},{"$error":"#VALUE!"}]
[null,null,"Fuel consumption","MWh/MW/year",{"$f":"E83*E89/E77+IF(E90>0,E84*E90/E78)","v":4550},4150,3600,1187.0819999999999,1369.71,{"$f":"J83*J89/J77+IF(J90>0,J84*J90/J78)","v":1116.0600000000002},{"$f":"K83*K89/K77+IF(K90>0,K84*K90/K78)","v":1116.0600000000002},13924.328238189559,14520.240793185189,11363.636363636364,11904.761904761905,9615.3846153846152,11111.111111111111,8620.6896551724149,7000,11111.111111111111,8569.7620937473566,3600,{"$error":"#VALUE!"},{"$error":"#VALUE!"},{"$error":"#VALUE!"},{"$error":"#VALUE!"},{"$error":"#VALUE!"},{"$error":"#VALUE!"},{"$error":"#VALUE!"},{"$error":"#VALUE!"},{"$error":"#VALUE!"}]
[null,null,"Fuel consumption heat","MWh/MW/year"]
[]
[null,"Electricity production cost","Capital cost",{"$f":"chosencurrency&\"/MWh\"","v":"EUR/MWh"},{"$f":"-PMT(DiscountRate,E$39,E55)*1000000/E$93","v":19.744342305843293},20.190200034972783,17.509576132742573,10.647643201620317,11.17887636342958,{"$f":"-PMT(DiscountRate,J$39,J55)*1000000/J$93","v":23.708085306055569},{"$f":"-PMT(DiscountRate,K$39,K55)*1000000/K$93","v":32.845249943796972},52.212824049047576,61.24651552498662,36.383266219895233,36.067697369113738,29.154942887087991,5.2012481997172353,11.457511472921791,27.322002314206738,19.169018920170224,9.0472385369830413,16.426218238716579,{"$error":"#VALUE!"},{"$error":"#VALUE!"},{"$error":"#VALUE!"},{"$error":"#VALUE!"},{"$error":"#VALUE!"},{"$error":"#VALUE!"},{"$error":"#VALUE!"},{"$error":"#VALUE!"},{"$error":"#VALUE!"}]
[null,null,"Capital cost grid","EUR/MWh",{"$f":"-PMT(DiscountRate,E$39,E56)*1000000/E$93","v":10.648857488394457},1.2531848297569312,0.26473123267922799,1.5680643810974186,1.3597255574465716,{"$f":"-PMT(DiscountRate,J$39,J56)*1000000/J$93","v":1.5698294664537376},{"$f":"-PMT(DiscountRate,K$39,K56)*1000000/K$93","v":1.0164314363339673},0,0,0,0,0,0,0,0,0,0,0.82960698175336267,{"$error":"#VALUE!"},{"$error":"#VALUE!"},{"$error":"#VALUE!"},{"$error":"#VALUE!"},{"$error":"#VALUE!"},{"$error":"#VALUE!"},{"$error":"#VALUE!"},{"$error":"#VALUE!"},{"$error":"#VALUE!"}]
[null,null,"Fixed O&M","EUR/MWh",{"$f":"E57/E93","v":7.4725274725274726},8.19277108433735,4.6285188789143339,6.4022535932648301,6.0596768659059217,{"$f":"J57/J93","v":7.2576743185850212},{"$f":"K57/K93","v":9.1392935863663229},33.005209975554479,38.533739079155211,8.9656932610384175,11.304569763918007,7.2481173689097362,7.6925354307569567,6.056225265044711,8.4625424782128817,5.7320412257262596,4.713976876100979,3.7463357438067568,{"$error":"#VALUE!"},{"$error":"#VALUE!"},{"$error":"#VALUE!"},{"$error":"#VALUE!"},{"$error":"#VALUE!"},{"$error":"#VALUE!"},{"$error":"#VALUE!"},{"$error":"#VALUE!"},{"$error":"#VALUE!"}]
[null,null,"Var O&M","EUR/MWh",{"$f":"E58","v":3.4466987330489469},3.45,1.9751844870564499,0,0,{"$f":"J58","v":0},{"$f":"K58","v":0},1.8285941720790391,4.0823315502269635,4.6694721684161786,4.5138230961356394,3.0395330901879589,3.112981445610786,4.4956028925681082,5.9410000246756143,2.81796496061818,2.1697565307510938,1.4450152154683205,"","","","","","","","",""]
[null,null,"Other costs","EUR/MWh",{"$f":"E59","v":0},0,0,0,0,{"$f":"J59","v":0},{"$f":"K59","v":0},0,0,0,0,0,0,0,4.5240156619929204,0,0,0,"","","","","","","","",""]
[null,null,"Fuel cost","EUR/MWh",{"$f":"(E95-IF(rule120=\"Cost allocation\",E94/rule120factor,0))*E62*3.6/E93","v":0},0,0,0,0,{"$f":"(J95-IF(rule120=\"Cost allocation\",J94/rule120factor,0))*J62*3.6/J93","v":0},{"$f":"(K95-IF(rule120=\"Cost allocation\",K94/rule120factor,0))*K62*3.6/K93","v":0},61.740195348742432,35.764191367942331,51.35592459408717,55.080528196219717,18.690893274377704,21.999215534611658,47.39349026669138,6.6407453840894117,26.562997952084196,57.017953809986274,0,{"$error":"#VALUE!"},{"$error":"#VALUE!"},{"$error":"#VALUE!"},{"$error":"#VALUE!"},{"$error":"#VALUE!"},{"$error":"#VALUE!"},{"$error":"#VALUE!"},{"$error":"#VALUE!"},{"$error":"#VALUE!"}]
[null,null,"CO2-cost","EUR/MWh",{"$f":"(E$95-IF(rule120=\"Cost allocation\",E$94/rule120factor,0))*E64*3.6/E$93","v":0},0,0,0,0,{"$f":"(J$95-IF(rule120=\"Cost allocation\",J$94/rule120factor,0))*J64*3.6/J$93","v":0},{"$f":"(K$95-IF(rule120=\"Cost allocation\",K$94/rule120factor,0))*K64*3.6/K$93","v":0},0,0,0,0,50.266650500419303,46.659152365248453,28.523666142301803,0,87.434390017023787,37.103094623739132,0,{"$error":"#VALUE!"},{"$error":"#VALUE!"},{"$error":"#VALUE!"},{"$error":"#VALUE!"},{"$error":"#VALUE!"},{"$error":"#VALUE!"},{"$error":"#VALUE!"},{"$error":"#VALUE!"},{"$error":"#VALUE!"}]
[null,null,"CH4-cost","EUR/MWh",{"$f":"(E$95-IF(rule120=\"Cost allocation\",E$94/rule120factor,0))*E66*3.6/E$93","v":0},0,0,0,0,{"$f":"(J$95-IF(rule120=\"Cost allocation\",J$94/rule120factor,0))*J66*3.6/J$93","v":0},{"$f":"(K$95-IF(rule120=\"Cost allocation\",K$94/rule120factor,0))*K66*3.6/K$93","v":0},0,1.5991474443830356E-2,6.2229490835671022E-3,4.1380475885799392E-2,1.9989389117345959E-2,1.8554806083741434E-2,1.8765569830461709E-2,0,3.4769773336568326E-2,3.2546574231350114E-2,0,{"$error":"#VALUE!"},{"$error":"#VALUE!"},{"$error":"#VALUE!"},{"$error":"#VALUE!"},{"$error":"#VALUE!"},{"$error":"#VALUE!"},{"$error":"#VALUE!"},{"$error":"#VALUE!"},{"$error":"#VALUE!"}]
[null,null,"N20-cost","EUR/MWh",{"$f":"(E$95-IF(rule120=\"Cost allocation\",E$94/rule120factor,0))*E67*3.6/E$93","v":0},0,0,0,0,{"$f":"(J$95-IF(rule120=\"Cost allocation\",J$94/rule120factor,0))*J67*3.6/J$93","v":0},{"$f":"(K$95-IF(rule120=\"Cost allocation\",K$94/rule120factor,0))*K67*3.6/K$93","v":0},0.16507821094746039,6.5214323444713326E-2,0.74177553076119851,0.95468762430721699,0.12707920974867404,0.11795908720970556,0.1491237282527357,0,0.22104303902501032,0.19397758241884672,0,{"$error":"#VALUE!"},{"$error":"#VALUE!"},{"$error":"#VALUE!"},{"$error":"#VALUE!"},{"$error":"#VALUE!"},{"$error":"#VALUE!"},{"$error":"#VALUE!"},{"$error":"#VALUE!"},{"$error":"#VALUE!"}]
[null,null,"SO2-cost","EUR/MWh",{"$f":"(E$95-IF(rule120=\"Cost allocation\",E$94/rule120factor,0))*E69*3.6/E$93","v":0},0,0,0,0,{"$f":"(J$95-IF(rule120=\"Cost allocation\",J$94/rule120factor,0))*J69*3.6/J$93","v":0},{"$f":"(K$95-IF(rule120=\"Cost allocation\",K$94/rule120factor,0))*K69*3.6/K$93","v":0},7.0254638308906003E-3,6.195127200010731E-3,1.3244435880369734E-2,0,0.7822701272982977,0.88853830609018325,0,0,1.8941708075565931,0,0,{"$error":"#VALUE!"},{"$error":"#VALUE!"},{"$error":"#VALUE!"},{"$error":"#VALUE!"},{"$error":"#VALUE!"},{"$error":"#VALUE!"},{"$error":"#VALUE!"},{"$error":"#VALUE!"},{"$error":"#VALUE!"}]
[null,null,"NOx-cost","EUR/MWh",{"$f":"(E$95-IF(rule120=\"Cost allocation\",E$94/rule120factor,0))*E71*3.6/E$93","v":0},0,0,0,0,{"$f":"(J$95-IF(rule120=\"Cost allocation\",J$94/rule120factor,0))*J71*3.6/J$93","v":0},{"$f":"(K$95-IF(rule120=\"Cost allocation\",K$94/rule120factor,0))*K71*3.6/K$93","v":0},4.3307653752065365,3.8189140274038702,4.7625539980781433,5.107959633684886,4.1673446659726556,4.7334612957619973,1.1177729898573476,0,33.957648647900555,5.2033243910265945,0,{"$error":"#VALUE!"},{"$error":"#VALUE!"},{"$error":"#VALUE!"},{"$error":"#VALUE!"},{"$error":"#VALUE!"},{"$error":"#VALUE!"},{"$error":"#VALUE!"},{"$error":"#VALUE!"},{"$error":"#VALUE!"}]
[null,null,"PM2,5-cost","EUR/MWh",{"$f":"(E$95-IF(rule120=\"Cost allocation\",E$94/rule120factor,0))*E73*3.6/E$93","v":0},0,0,0,0,{"$f":"(J$95-IF(rule120=\"Cost allocation\",J$94/rule120factor,0))*J73*3.6/J$93","v":0},{"$f":"(K$95-IF(rule120=\"Cost allocation\",K$94/rule120factor,0))*K73*3.6/K$93","v":0},0.11631198436268995,8.8418206545803998E-2,0.12790859309124172,0.13718520159039424,0.78346079720286022,0.88989072360325672,0,0,7.2419278617337737,0,0,{"$error":"#VALUE!"},{"$error":"#VALUE!"},{"$error":"#VALUE!"},{"$error":"#VALUE!"},{"$error":"#VALUE!"},{"$error":"#VALUE!"},{"$error":"#VALUE!"},{"$error":"#VALUE!"},{"$error":"#VALUE!"}]
[null,null,"Balancing cost","EUR/MWh",{"$f":"E61","v":0},0,0,0,0,{"$f":"J61","v":0},{"$f":"K61","v":0},0,0,0,0,0,0,0,0,0,0,0,"","","","","","","","",""]
[null,null,"Profile costs","EUR/MWh",{"$f":"IF(ProfileCost=\"YES\",E60,0)","v":0},0,0,0,0,{"$f":"IF(ProfileCost=\"YES\",J60,0)","v":0},{"$f":"IF(ProfileCost=\"YES\",K60,0)","v":0},0,0,0,0,0,0,0,0,0,0,0,0,0,0,0,0,0,0,0,0]
[null,null,"Heat revenue","EUR/MWh",{"$f":"IF(rule120=\"Cost allocation\",0,-E94*E74*3.6/E93)","v":0},0,0,0,0,{"$f":"IF(rule120=\"Cost allocation\",0,-J94*J74*3.6/J93)","v":0},{"$f":"IF(rule120=\"Cost allocation\",0,-K94*K74*3.6/K93)","v":0},0,0,0,0,0,0,0,0,0,0,0,0,0,0,0,0,0,0,0,0]
[null,"Total LCOE","Levelized cost of electricity prod.","EUR/MWh",{"$f":"SUM(E98:E112)","v":41.312425999814174},33.08615594906707,24.378010731392585,18.617961175982565,18.598278786782075,{"$f":"SUM(J98:J112)","v":32.535589091094323},{"$f":"SUM(K98:K112)","v":43.00097496649726},153.40600457977109,143.62151068134938,107.02606175033154,113.20783136085539,114.28028131032252,91.313537194693978,99.21215832746833,52.890305863177574,185.06597320517517,115.48186892523732,22.447176179745018,{"$error":"#VALUE!"},{"$error":"#VALUE!"},{"$error":"#VALUE!"},{"$error":"#VALUE!"},{"$error":"#VALUE!"},{"$error":"#VALUE!"},{"$error":"#VALUE!"},{"$error":"#VALUE!"},{"$error":"#VALUE!"}]
[null,null,"Short run marginal cost","EUR/MWh",{"$f":"SUM(E101:E112)","v":3.4466987330489469},3.45,1.9751844870564499,0,0,{"$f":"SUM(J101:J112)","v":0},{"$f":"SUM(K101:K112)","v":0},68.187970555169059,43.841256077207518,61.677102269397857,65.835564227823667,77.877221054324792,78.419753564219789,81.698421589501834,17.105761070757946,160.16491305927866,101.72065351215331,1.4450152154683205,{"$error":"#VALUE!"},{"$error":"#VALUE!"},{"$error":"#VALUE!"},{"$error":"#VALUE!"},{"$error":"#VALUE!"},{"$error":"#VALUE!"},{"$error":"#VALUE!"},{"$error":"#VALUE!"},{"$error":"#VALUE!"}]
[]
[null,"Heat production cost based on lost electricity production","Heat production cost \nbased on SRMC",{"$f":"chosencurrency&\"/MWh\"","v":"EUR/MWh"}]
[null,null,"Heat production cost \nbased on LRMC",{"$f":"chosencurrency&\"/MWh\"","v":"EUR/MWh"}]
[]
[]
[]
[]
[]
[]
[]
[]
[]
[]
[]
[]
[]
[]
[]
[]
[]
[]
[]
[]
[]
[]
[]
[]
[]
[]
[]
[]
[]
[]
[]
[]
[]
[]
[]
[]
[]
[]
[]
[]
[]
[]
[]
[]
[]
[]
[]
[]
[]
[]
[]
[]
[]
[]
[]
[]
[]
[]
[]
[]
[]
[]
[]
[]
[]
[]
[]
[]
[]
[]
[]
[]
[]
[]
[]
[]
[]
[]
[]
[]
[]
[]
[null,null,null,null,null,null,null,null,null,null,null,null,null,null,null,null,null,null,null,null,null,null,null,null,null,null,null,null,null,null,null,{"$f":"IF(AF33=AF122,0,1)","v":0}]
[null,null,null,null,null,null,null,null,null,null,null,null,null,null,null,null,null,null,null,null,null,null,null,null,null,null,null,null,null,null,null,{"$f":"IF(AF36=AF123,0,1)","v":{"$error":"#REF!"}}]
[null,null,null,null,null,null,null,null,null,null,null,null,null,null,null,null,null,null,null,null,null,null,null,null,null,null,null,null,null,null,null,{"$f":"IF(AF37=AF124,0,1)","v":0}]
[null,null,null,null,null,null,null,null,null,null,null,null,null,null,null,null,null,null,null,null,null,null,null,null,null,null,null,null,null,null,null,{"$f":"IF(AF38=AF125,0,1)","v":0}]
[null,null,null,null,null,null,null,null,null,null,null,null,null,null,null,null,null,null,null,null,null,null,null,null,null,null,null,null,null,null,null,{"$f":"IF(AF39=AF126,0,1)","v":0}]
[null,null,null,null,null,null,null,null,null,null,null,null,null,null,null,null,null,null,null,null,null,null,null,null,null,null,null,null,null,null,null,{"$f":"IF(AF41=AF127,0,1)","v":0}]
[null,null,null,null,null,null,null,null,null,null,null,null,null,null,null,null,null,null,null,null,null,null,null,null,null,null,null,null,null,null,null,{"$f":"IF(AF43=AF128,0,1)","v":0}]
[null,null,null,null,null,null,null,null,null,null,null,null,null,null,null,null,null,null,null,null,null,null,null,null,null,null,null,null,null,null,null,{"$f":"IF(AF44=AF129,0,1)","v":0}]
[null,null,null,null,null,null,null,null,null,null,null,null,null,null,null,null,null,null,null,null,null,null,null,null,null,null,null,null,null,null,null,{"$f":"IF(AF45=AF130,0,1)","v":0}]
[null,null,null,null,null,null,null,null,null,null,null,null,null,null,null,null,null,null,null,null,null,null,null,null,null,null,null,null,null,null,null,{"$f":"IF(AF46=AF131,0,1)","v":0}]
[null,null,null,null,null,null,null,null,null,null,null,null,null,null,null,null,null,null,null,null,null,null,null,null,null,null,null,null,null,null,null,{"$f":"IF(AF47=AF132,0,1)","v":0}]
[null,null,null,null,null,null,null,null,null,null,null,null,null,null,null,null,null,null,null,null,null,null,null,null,null,null,null,null,null,null,null,{"$f":"IF(AF48=AF133,0,1)","v":0}]
[null,null,null,null,null,null,null,null,null,null,null,null,null,null,null,null,null,null,null,null,null,null,null,null,null,null,null,null,null,null,null,{"$f":"IF(AF49=AF134,0,1)","v":0}]
[null,null,null,null,null,null,null,null,null,null,null,null,null,null,null,null,null,null,null,null,null,null,null,null,null,null,null,null,null,null,null,{"$f":"IF(AF50=AF135,0,1)","v":0}]
[null,null,null,null,null,null,null,null,null,null,null,null,null,null,null,null,null,null,null,null,null,null,null,null,null,null,null,null,null,null,null,{"$f":"IF(AF51=AF136,0,1)","v":0}]
[null,null,null,null,null,null,null,null,null,null,null,null,null,null,null,null,null,null,null,null,null,null,null,null,null,null,null,null,null,null,null,{"$f":"IF(AF52=AF137,0,1)","v":0}]
[null,null,null,null,null,null,null,null,null,null,null,null,null,null,null,null,null,null,null,null,null,null,null,null,null,null,null,null,null,null,null,{"$f":"IF(AF53=AF138,0,1)","v":0}]
[null,null,null,null,null,null,null,null,null,null,null,null,null,null,null,null,null,null,null,null,null,null,null,null,null,null,null,null,null,null,null,{"$f":"IF(AF54=AF139,0,1)","v":0}]
[null,null,null,null,null,null,null,null,null,null,null,null,null,null,null,null,null,null,null,null,null,null,null,null,null,null,null,null,null,null,null,{"$f":"IF(AF55=AF140,0,1)","v":0}]
[null,null,null,null,null,null,null,null,null,null,null,null,null,null,null,null,null,null,null,null,null,null,null,null,null,null,null,null,null,null,null,{"$f":"IF(AF56=AF141,0,1)","v":0}]
[null,null,null,null,null,null,null,null,null,null,null,null,null,null,null,null,null,null,null,null,null,null,null,null,null,null,null,null,null,null,null,{"$f":"IF(AF57=AF142,0,1)","v":0}]
[null,null,null,null,null,null,null,null,null,null,null,null,null,null,null,null,null,null,null,null,null,null,null,null,null,null,null,null,null,null,null,{"$f":"IF(AF58=AF143,0,1)","v":0}]
[null,null,null,null,null,null,null,null,null,null,null,null,null,null,null,null,null,null,null,null,null,null,null,null,null,null,null,null,null,null,null,{"$f":"IF(AF59=AF144,0,1)","v":0}]
[null,null,null,null,null,null,null,null,null,null,null,null,null,null,null,null,null,null,null,null,null,null,null,null,null,null,null,null,null,null,null,{"$f":"IF(AF60=AF145,0,1)","v":0}]
[null,null,null,null,null,null,null,null,null,null,null,null,null,null,null,null,null,null,null,null,null,null,null,null,null,null,null,null,null,null,null,{"$f":"IF(AF61=AF146,0,1)","v":0}]
[null,null,null,null,null,null,null,null,null,null,null,null,null,null,null,null,null,null,null,null,null,null,null,null,null,null,null,null,null,null,null,{"$f":"IF(AF62=AF147,0,1)","v":0}]
[null,null,null,null,null,null,null,null,null,null,null,null,null,null,null,null,null,null,null,null,null,null,null,null,null,null,null,null,null,null,null,{"$f":"IF(AF63=AF148,0,1)","v":0}]
[null,null,null,null,null,null,null,null,null,null,null,null,null,null,null,null,null,null,null,null,null,null,null,null,null,null,null,null,null,null,null,{"$f":"IF(AF64=AF149,0,1)","v":0}]
[null,null,null,null,null,null,null,null,null,null,null,null,null,null,null,null,null,null,null,null,null,null,null,null,null,null,null,null,null,null,null,{"$f":"IF(AF65=AF150,0,1)","v":0}]
[null,null,null,null,null,null,null,null,null,null,null,null,null,null,null,null,null,null,null,null,null,null,null,null,null,null,null,null,null,null,null,{"$f":"IF(AF66=AF151,0,1)","v":0}]
[null,null,null,null,null,null,null,null,null,null,null,null,null,null,null,null,null,null,null,null,null,null,null,null,null,null,null,null,null,null,null,{"$f":"IF(AF67=AF152,0,1)","v":0}]
[null,null,null,null,null,null,null,null,null,null,null,null,null,null,null,null,null,null,null,null,null,null,null,null,null,null,null,null,null,null,null,{"$f":"IF(AF68=AF153,0,1)","v":0}]
[null,null,null,null,null,null,null,null,null,null,null,null,null,null,null,null,null,null,null,null,null,null,null,null,null,null,null,null,null,null,null,{"$f":"IF(AF69=AF154,0,1)","v":0}]
[null,null,null,null,null,null,null,null,null,null,null,null,null,null,null,null,null,null,null,null,null,null,null,null,null,null,null,null,null,null,null,{"$f":"IF(AF70=AF155,0,1)","v":0}]
[null,null,null,null,null,null,null,null,null,null,null,null,null,null,null,null,null,null,null,null,null,null,null,null,null,null,null,null,null,null,null,{"$f":"IF(AF71=AF156,0,1)","v":0}]
[null,null,null,null,null,null,null,null,null,null,null,null,null,null,null,null,null,null,null,null,null,null,null,null,null,null,null,null,null,null,null,{"$f":"IF(AF72=AF157,0,1)","v":0}]
[null,null,null,null,null,null,null,null,null,null,null,null,null,null,null,null,null,null,null,null,null,null,null,null,null,null,null,null,null,null,null,{"$f":"IF(AF73=AF158,0,1)","v":0}]
[null,null,null,null,null,null,null,null,null,null,null,null,null,null,null,null,null,null,null,null,null,null,null,null,null,null,null,null,null,null,null,{"$f":"IF(AF74=AF159,0,1)","v":0}]
[null,null,null,null,null,null,null,null,null,null,null,null,null,null,null,null,null,null,null,null,null,null,null,null,null,null,null,null,null,null,null,{"$f":"IF(AF75=AF160,0,1)","v":0}]
[null,null,null,null,null,null,null,null,null,null,null,null,null,null,null,null,null,null,null,null,null,null,null,null,null,null,null,null,null,null,null,{"$f":"IF(AF76=AF161,0,1)","v":0}]
[null,null,null,null,null,null,null,null,null,null,null,null,null,null,null,null,null,null,null,null,null,null,null,null,null,null,null,null,null,null,null,{"$f":"IF(AF77=AF162,0,1)","v":0}]
[null,null,null,null,null,null,null,null,null,null,null,null,null,null,null,null,null,null,null,null,null,null,null,null,null,null,null,null,null,null,null,{"$f":"IF(AF78=AF163,0,1)","v":0}]
[null,null,null,null,null,null,null,null,null,null,null,null,null,null,null,null,null,null,null,null,null,null,null,null,null,null,null,null,null,null,null,{"$f":"IF(AF79=AF164,0,1)","v":0}]
[null,null,null,null,null,null,null,null,null,null,null,null,null,null,null,null,null,null,null,null,null,null,null,null,null,null,null,null,null,null,null,{"$f":"IF(AF80=AF165,0,1)","v":0}]
[null,null,null,null,null,null,null,null,null,null,null,null,null,null,null,null,null,null,null,null,null,null,null,null,null,null,null,null,null,null,null,{"$f":"IF(AF81=AF166,0,1)","v":0}]
[null,null,null,null,null,null,null,null,null,null,null,null,null,null,null,null,null,null,null,null,null,null,null,null,null,null,null,null,null,null,null,{"$f":"IF(AF82=AF167,0,1)","v":0}]
[null,null,null,null,null,null,null,null,null,null,null,null,null,null,null,null,null,null,null,null,null,null,null,null,null,null,null,null,null,null,null,{"$f":"IF(AF83=AF168,0,1)","v":0}]
[null,null,null,null,null,null,null,null,null,null,null,null,null,null,null,null,null,null,null,null,null,null,null,null,null,null,null,null,null,null,null,{"$f":"IF(AF84=AF169,0,1)","v":0}]
[null,null,null,null,null,null,null,null,null,null,null,null,null,null,null,null,null,null,null,null,null,null,null,null,null,null,null,null,null,null,null,{"$f":"IF(AF85=AF170,0,1)","v":0}]
[null,null,null,null,null,null,null,null,null,null,null,null,null,null,null,null,null,null,null,null,null,null,null,null,null,null,null,null,null,null,null,{"$f":"IF(AF86=AF171,0,1)","v":0}]
[null,null,null,null,null,null,null,null,null,null,null,null,null,null,null,null,null,null,null,null,null,null,null,null,null,null,null,null,null,null,null,{"$f":"IF(AF87=AF172,0,1)","v":0}]
[null,null,null,null,null,null,null,null,null,null,null,null,null,null,null,null,null,null,null,null,null,null,null,null,null,null,null,null,null,null,null,{"$f":"IF(AF88=AF173,0,1)","v":0}]
[null,null,null,null,null,null,null,null,null,null,null,null,null,null,null,null,null,null,null,null,null,null,null,null,null,null,null,null,null,null,null,{"$f":"IF(AF89=AF174,0,1)","v":0}]
[null,null,null,null,null,null,null,null,null,null,null,null,null,null,null,null,null,null,null,null,null,null,null,null,null,null,null,null,null,null,null,{"$f":"IF(AF90=AF175,0,1)","v":0}]
[null,null,null,null,null,null,null,null,null,null,null,null,null,null,null,null,null,null,null,null,null,null,null,null,null,null,null,null,null,null,null,{"$f":"IF(AF91=AF176,0,1)","v":0}]
[null,null,null,null,null,null,null,null,null,null,null,null,null,null,null,null,null,null,null,null,null,null,null,null,null,null,null,null,null,null,null,{"$f":"IF(AF93=AF177,0,1)","v":0}]
[null,null,null,null,null,null,null,null,null,null,null,null,null,null,null,null,null,null,null,null,null,null,null,null,null,null,null,null,null,null,null,{"$f":"IF(AF94=AF178,0,1)","v":0}]
[null,null,null,null,null,null,null,null,null,null,null,null,null,null,null,null,null,null,null,null,null,null,null,null,null,null,null,null,null,null,null,{"$f":"IF(AF95=AF179,0,1)","v":0}]
[null,null,null,null,null,null,null,null,null,null,null,null,null,null,null,null,null,null,null,null,null,null,null,null,null,null,null,null,null,null,null,{"$f":"IF(AF96=AF180,0,1)","v":0}]
[null,null,null,null,null,null,null,null,null,null,null,null,null,null,null,null,null,null,null,null,null,null,null,null,null,null,null,null,null,null,null,{"$f":"IF(AF97=AF181,0,1)","v":0}]
[null,null,null,null,null,null,null,null,null,null,null,null,null,null,null,null,null,null,null,null,null,null,null,null,null,null,null,null,null,null,null,{"$f":"IF(AF98=AF182,0,1)","v":0}]
[null,null,null,null,null,null,null,null,null,null,null,null,null,null,null,null,null,null,null,null,null,null,null,null,null,null,null,null,null,null,null,{"$f":"IF(AF99=AF183,0,1)","v":0}]
[null,null,null,null,null,null,null,null,null,null,null,null,null,null,null,null,null,null,null,null,null,null,null,null,null,null,null,null,null,null,null,{"$f":"IF(AF100=AF184,0,1)","v":0}]
[null,null,null,null,null,null,null,null,null,null,null,null,null,null,null,null,null,null,null,null,null,null,null,null,null,null,null,null,null,null,null,{"$f":"IF(AF101=AF185,0,1)","v":0}]
[null,null,null,null,null,null,null,null,null,null,null,null,null,null,null,null,null,null,null,null,null,null,null,null,null,null,null,null,null,null,null,{"$f":"IF(AF102=AF186,0,1)","v":0}]
[null,null,null,null,null,null,null,null,null,null,null,null,null,null,null,null,null,null,null,null,null,null,null,null,null,null,null,null,null,null,null,{"$f":"IF(AF103=AF187,0,1)","v":0}]
[null,null,null,null,null,null,null,null,null,null,null,null,null,null,null,null,null,null,null,null,null,null,null,null,null,null,null,null,null,null,null,{"$f":"IF(AF104=AF188,0,1)","v":0}]
[null,null,null,null,null,null,null,null,null,null,null,null,null,null,null,null,null,null,null,null,null,null,null,null,null,null,null,null,null,null,null,{"$f":"IF(AF105=AF189,0,1)","v":0}]
[null,null,null,null,null,null,null,null,null,null,null,null,null,null,null,null,null,null,null,null,null,null,null,null,null,null,null,null,null,null,null,{"$f":"IF(AF106=AF190,0,1)","v":0}]
[null,null,null,null,null,null,null,null,null,null,null,null,null,null,null,null,null,null,null,null,null,null,null,null,null,null,null,null,null,null,null,{"$f":"IF(AF107=AF191,0,1)","v":0}]
[null,null,null,null,null,null,null,null,null,null,null,null,null,null,null,null,null,null,null,null,null,null,null,null,null,null,null,null,null,null,null,{"$f":"IF(AF108=AF192,0,1)","v":0}]
[null,null,null,null,null,null,null,null,null,null,null,null,null,null,null,null,null,null,null,null,null,null,null,null,null,null,null,null,null,null,null,{"$f":"IF(AF109=AF193,0,1)","v":0}]
[null,null,null,null,null,null,null,null,null,null,null,null,null,null,null,null,null,null,null,null,null,null,null,null,null,null,null,null,null,null,null,{"$f":"IF(AF110=AF194,0,1)","v":0}]
[null,null,null,null,null,null,null,null,null,null,null,null,null,null,null,null,null,null,null,null,null,null,null,null,null,null,null,null,null,null,null,{"$f":"IF(AF111=AF195,0,1)","v":0}]
[null,null,null,null,null,null,null,null,null,null,null,null,null,null,null,null,null,null,null,null,null,null,null,null,null,null,null,null,null,null,null,{"$f":"IF(AF112=AF196,0,1)","v":0}]
[null,null,null,null,null,null,null,null,null,null,null,null,null,null,null,null,null,null,null,null,null,null,null,null,null,null,null,null,null,null,null,{"$f":"IF(AF113=AF197,0,1)","v":0}]
[null,null,null,null,null,null,null,null,null,null,null,null,null,null,null,null,null,null,null,null,null,null,null,null,null,null,null,null,null,null,null,{"$f":"IF(AF114=AF198,0,1)","v":0}]
[null,null,null,null,null,null,null,null,null,null,null,null,null,null,null,null,null,null,null,null,null,null,null,null,null,null,null,null,null,null,null,{"$f":"IF(AF115=AF199,0,1)","v":0}]
[null,null,null,null,null,null,null,null,null,null,null,null,null,null,null,null,null,null,null,null,null,null,null,null,null,null,null,null,null,null,null,{"$f":"IF(AF116=AF200,0,1)","v":0}]

{"sheet":"EEUserSettings&Results","index":8,"n_rows":60,"n_cols":45,"rows_kept":60,"cut":false,"hidden":false,"merged":[[32,7,32,15],[27,7,27,20],[32,16,37,20],[13,2,14,12],[24,7,24,20],[22,7,23,20],[30,16,31,20],[28,7,29,16]]}
[]
[null,"Comparison of energy efficiency measures with cost of electricity production"]
[]
[null,"User instruction"]
[null,"In this sheet the cost of EE measures (LCoEE) is compared with the cost of levelized cost of electricity generation (LCoE). The levelized cost of electricity generation (LCoE) can be viewed in"]
[null,"The user selects which energy efficiency measures and which electricity generation technologies to be included in the comparison. Changes are done in the green cells. "]
[null,"It is recommended to add grid costs to the levelized cost of electricity to enable a fair comparison of supply and demand measures at the point of view of the electricity consumer."]
[null,"Functions:"]
[]
[null,null,"In this table the user can adjust a number of the input parameters; some of them according to predefined options and others are free to set. "]
[]
[null,null,"The user can choose which technologies (LCoE and LCoEE) to be viewed in the graph. More instructions follow below."]
[]
[null,null,"In the calculation table, the technology in each column can be changed in the drop down function and thereby the order of the technologies can be swapped around in order to compare them better. Changes in the order will also appear in the graph in UserSettings&Results"]
[]
[]
[null,"Basic user settings"]
[null,null,null,"Default\nvalue","Override","Current value","Explanation"]
[null,"Result view"]
[null,"Currency",null,null,null,{"$f":"chosencurrency","v":"EUR"},"(Predefined)","The results are viewed in the currency chosen for the LCoE calculation. "]
[null,"Price year",null,null,null,{"$f":"PriceYear","v":2020},"(Predefined) ","The price year for results is the year chosen for LCoE calculation."]
[null,"\nFinancial settings"]
[null,"Discount rate for EE measures",null,{"$f":"DiscountRate","v":3.5000000000000003E-2},null,{"$f":"IF(ISBLANK(E23),D23,E23)","v":3.5000000000000003E-2},"(Free to set)","Set discount rate. Used for annuation of capital costs. The value 0 will not work. Choose instead a very small value. As default set to the same discount rate as the production cost calculation (LCoE) (recommended)."]
[null,"Grid costs"]
[null,{"$f":"\"Grid costs for households and small enterprises (\" & chosencurrency & PriceYear &\"/MWh)\"","v":"Grid costs for households and small enterprises (EUR2020/MWh)"},null,50,null,{"$f":"IF(ISBLANK(E25),D25,E25)","v":50},"(Free to set)","Grid cost for households and small enterprises. Should reflect cost of both grid losses and infrastructure costs related to the distribution and transmission."]
[null,{"$f":"\"Grid costs for industry \" & chosencurrency & PriceYear &\"/MWh)\"","v":"Grid costs for industry EUR2020/MWh)"},null,20,null,{"$f":"IF(ISBLANK(E26),D26,E26)","v":20},"(Free to set)","Grid cost for industries. Should reflect cost of both grid losses and infrastructure costs related to distribution and transmission."]
[null,"Inclusion of grid cost",null,"YES",null,{"$f":"IF(ISBLANK(E27),D27,E27)","v":"YES"},"(Predefined) ","The user selects to include grid costs for households and small enterprises, industrial consumers or not to include grid costs at all. "]
[null,"Place of installation ",null,"Small entre-prise/private household",null,{"$f":"IF(ISBLANK(E28),D28,E28)","v":"Small entre-prise/private household"},"(Predefined) ","Choose whether the technology is installed a small enterprise/private household or in a factory. The applied grid cost is dependent on this setting."]
[]
[]
[null,null,null,null,null,null,null,null,null,null,null,null,null,null,null,null,"User instruction -selection of data in the graph"]
[]
[null,null,null,null,null,null,null,null,null,null,null,null,null,null,null,null,"Newer version of Excel: select the chart, click the filter, and (un)select the elements and categories to be viewed. \nAll versions of Excel: Hide the columns with technologies not wanted in the graph according to the summary table (D55 to AS62)."]
[]
[]
[]
[]
[]
[]
[]
[]
[]
[]
[]
[]
[]
[]
[]
[]
[]
[]
[]
[]
[null,"Data summary for graph presentation",null,null,null,null,null,null,null,null,null,null,null,null,null,null,null,null,"Generation technologies"]
[null,{"$f":"PriceYear&\"-\"&chosencurrency&\"/MWh\"","v":"2020-EUR/MWh"},null,"Office ventilation","Pumps","Industrial Electric Motor","Lighting in commercial buildings","Window in domestic building","Technology 1","Technology 2","Technology 3","Technology 4","Technology 5","Technology 6","Technology 7","Technology 8","Technology 9","Technology 10",{"$f":"'EETechData&Calculation'!S70","v":"25WIN_OF_in Offshore wind AC incl. Grid"},{"$f":"'EETechData&Calculation'!T70","v":"25WIN_NS_in Nearshore wind incl. Grid"},{"$f":"'EETechData&Calculation'!U70","v":"24WIN_ON_in Onshore wind incl. Grid"},{"$f":"'EETechData&Calculation'!V70","v":"22PV_La_Utility scale PV"},{"$f":"'EETechData&Calculation'!W70","v":"22PV_La_Utility scale PV_tracker"},{"$f":"'EETechData&Calculation'!X70","v":"22PV_Me_roof commercial industrial"},{"$f":"'EETechData&Calculation'!Y70","v":"22PV_Sm_roof residential"},{"$f":"'EETechData&Calculation'!Z70","v":"18Me BP WPE in_st 80 MW input, woodpellets storage for 10 days  "},{"$f":"'EETechData&Calculation'!AA70","v":"18Me BP WCH in_st 80 MW input, woodchips storage for 10 days  "},{"$f":"'EETechData&Calculation'!AB70","v":"16La REF_EX  WCH_COA_Newboi_ no_inv_exipla Wood chips CHP refurb.  \nCoal plants, new Boiler, no invest cost for existing plant "},{"$f":"'EETechData&Calculation'!AC70","v":"16La REF_EX WCH_COA_exi_exibo_no_inv_exipla Wood chips CHP refurb.  \nCoal plants, existing boiler, no invest cost for existing plant "},{"$f":"'EETechData&Calculation'!AD70","v":"17La_EX_COA CHP coal 400-700 MWwe"},{"$f":"'EETechData&Calculation'!AE70","v":"16 La EX LTE COA no_inv_exipla  - Coal CHP Life time extension of coal power plant no invest cost for existing plant "},{"$f":"'EETechData&Calculation'!AF70","v":"16La EX CC NGA CC large CHP Gas Turbine combined Cycle natural Gas  \n"},{"$f":"'EETechData&Calculation'!AG70","v":"Nuclear INT"},{"$f":"'EETechData&Calculation'!AH70","v":"Coal FGD INT"},{"$f":"'EETechData&Calculation'!AI70","v":"Natural gas CCGT INT"},{"$f":"'EETechData&Calculation'!AJ70","v":"19WIN_ON_in Onshore wind incl. Grid"},{"$f":"'EETechData&Calculation'!AK70","v":0},{"$f":"'EETechData&Calculation'!AL70","v":0},{"$f":"'EETechData&Calculation'!AM70","v":0},{"$f":"'EETechData&Calculation'!AN70","v":0},{"$f":"'EETechData&Calculation'!AO70","v":0},{"$f":"'EETechData&Calculation'!AP70","v":0},{"$f":"'EETechData&Calculation'!AQ70","v":0},{"$f":"'EETechData&Calculation'!AR70","v":0},{"$f":"'EETechData&Calculation'!AS70","v":0}]
[null,"Example low",null,{"$f":"HLOOKUP(D$55,'EETechData&Calculation'!$D$70:$AW$75,3,FALSE)","v":5.2764324032768943},{"$f":"HLOOKUP(E$55,'EETechData&Calculation'!$D$70:$AW$75,3,FALSE)","v":41.164844028746096},{"$f":"HLOOKUP(F$55,'EETechData&Calculation'!$D$70:$AW$75,3,FALSE)","v":26.236955297222075},{"$f":"HLOOKUP(G$55,'EETechData&Calculation'!$D$70:$AW$75,3,FALSE)","v":38.855273675109316},{"$f":"HLOOKUP(H$55,'EETechData&Calculation'!$D$70:$AW$75,3,FALSE)","v":141.38023704506298},{"$f":"HLOOKUP(I$55,'EETechData&Calculation'!$D$70:$AW$75,3,FALSE)","v":{"$error":"#VALUE!"}},{"$f":"HLOOKUP(J$55,'EETechData&Calculation'!$D$70:$AW$75,3,FALSE)","v":{"$error":"#VALUE!"}},{"$f":"HLOOKUP(K$55,'EETechData&Calculation'!$D$70:$AW$75,3,FALSE)","v":{"$error":"#VALUE!"}},{"$f":"HLOOKUP(L$55,'EETechData&Calculation'!$D$70:$AW$75,3,FALSE)","v":{"$error":"#VALUE!"}},{"$f":"HLOOKUP(M$55,'EETechData&Calculation'!$D$70:$AW$75,3,FALSE)","v":{"$error":"#VALUE!"}},{"$f":"HLOOKUP(N$55,'EETechData&Calculation'!$D$70:$AW$75,3,FALSE)","v":{"$error":"#VALUE!"}},{"$f":"HLOOKUP(O$55,'EETechData&Calculation'!$D$70:$AW$75,3,FALSE)","v":{"$error":"#VALUE!"}},{"$f":"HLOOKUP(P$55,'EETechData&Calculation'!$D$70:$AW$75,3,FALSE)","v":{"$error":"#VALUE!"}},{"$f":"HLOOKUP(Q$55,'EETechData&Calculation'!$D$70:$AW$75,3,FALSE)","v":{"$error":"#VALUE!"}},{"$f":"HLOOKUP(R$55,'EETechData&Calculation'!$D$70:$AW$75,3,FALSE)","v":{"$error":"#VALUE!"}}]
[null,"Example high (difference to low)",null,{"$f":"HLOOKUP(D$55,'EETechData&Calculation'!$D$70:$AW$75,4,FALSE)*IF(D56<0,-1,1)","v":7.5350700958891128},{"$f":"HLOOKUP(E$55,'EETechData&Calculation'!$D$70:$AW$75,4,FALSE)*IF(E56<0,-1,1)","v":0.5},{"$f":"HLOOKUP(F$55,'EETechData&Calculation'!$D$70:$AW$75,4,FALSE)*IF(F56<0,-1,1)","v":9.5180199666247347},{"$f":"HLOOKUP(G$55,'EETechData&Calculation'!$D$70:$AW$75,4,FALSE)*IF(G56<0,-1,1)","v":116.56582102532795},{"$f":"HLOOKUP(H$55,'EETechData&Calculation'!$D$70:$AW$75,4,FALSE)*IF(H56<0,-1,1)","v":1.6855114498796411},{"$f":"HLOOKUP(I$55,'EETechData&Calculation'!$D$70:$AW$75,4,FALSE)*IF(I56<0,-1,1)","v":{"$error":"#VALUE!"}},{"$f":"HLOOKUP(J$55,'EETechData&Calculation'!$D$70:$AW$75,4,FALSE)*IF(J56<0,-1,1)","v":{"$error":"#VALUE!"}},{"$f":"HLOOKUP(K$55,'EETechData&Calculation'!$D$70:$AW$75,4,FALSE)*IF(K56<0,-1,1)","v":{"$error":"#VALUE!"}},{"$f":"HLOOKUP(L$55,'EETechData&Calculation'!$D$70:$AW$75,4,FALSE)*IF(L56<0,-1,1)","v":{"$error":"#VALUE!"}},{"$f":"HLOOKUP(M$55,'EETechData&Calculation'!$D$70:$AW$75,4,FALSE)*IF(M56<0,-1,1)","v":{"$error":"#VALUE!"}},{"$f":"HLOOKUP(N$55,'EETechData&Calculation'!$D$70:$AW$75,4,FALSE)*IF(N56<0,-1,1)","v":{"$error":"#VALUE!"}},{"$f":"HLOOKUP(O$55,'EETechData&Calculation'!$D$70:$AW$75,4,FALSE)*IF(O56<0,-1,1)","v":{"$error":"#VALUE!"}},{"$f":"HLOOKUP(P$55,'EETechData&Calculation'!$D$70:$AW$75,4,FALSE)*IF(P56<0,-1,1)","v":{"$error":"#VALUE!"}},{"$f":"HLOOKUP(Q$55,'EETechData&Calculation'!$D$70:$AW$75,4,FALSE)*IF(Q56<0,-1,1)","v":{"$error":"#VALUE!"}},{"$f":"HLOOKUP(R$55,'EETechData&Calculation'!$D$70:$AW$75,4,FALSE)*IF(R56<0,-1,1)","v":{"$error":"#VALUE!"}}]
[null,"Production-cost (LCoE)",null,{"$f":"HLOOKUP(D$55,'EETechData&Calculation'!$D$70:$AW$75,5,FALSE)","v":0},{"$f":"HLOOKUP(E$55,'EETechData&Calculation'!$D$70:$AW$75,5,FALSE)","v":0},{"$f":"HLOOKUP(F$55,'EETechData&Calculation'!$D$70:$AW$75,5,FALSE)","v":0},{"$f":"HLOOKUP(G$55,'EETechData&Calculation'!$D$70:$AW$75,5,FALSE)","v":0},{"$f":"HLOOKUP(H$55,'EETechData&Calculation'!$D$70:$AW$75,5,FALSE)","v":0},{"$f":"HLOOKUP(I$55,'EETechData&Calculation'!$D$70:$AW$75,5,FALSE)","v":0},{"$f":"HLOOKUP(J$55,'EETechData&Calculation'!$D$70:$AW$75,5,FALSE)","v":0},{"$f":"HLOOKUP(K$55,'EETechData&Calculation'!$D$70:$AW$75,5,FALSE)","v":0},{"$f":"HLOOKUP(L$55,'EETechData&Calculation'!$D$70:$AW$75,5,FALSE)","v":0},{"$f":"HLOOKUP(M$55,'EETechData&Calculation'!$D$70:$AW$75,5,FALSE)","v":0},{"$f":"HLOOKUP(N$55,'EETechData&Calculation'!$D$70:$AW$75,5,FALSE)","v":0},{"$f":"HLOOKUP(O$55,'EETechData&Calculation'!$D$70:$AW$75,5,FALSE)","v":0},{"$f":"HLOOKUP(P$55,'EETechData&Calculation'!$D$70:$AW$75,5,FALSE)","v":0},{"$f":"HLOOKUP(Q$55,'EETechData&Calculation'!$D$70:$AW$75,5,FALSE)","v":0},{"$f":"HLOOKUP(R$55,'EETechData&Calculation'!$D$70:$AW$75,5,FALSE)","v":0},{"$f":"'EETechData&Calculation'!S74","v":41.312425999814174},{"$f":"'EETechData&Calculation'!T74","v":33.086155949067063},{"$f":"'EETechData&Calculation'!U74","v":24.378010731392585},{"$f":"'EETechData&Calculation'!V74","v":18.617961175982565},{"$f":"'EETechData&Calculation'!W74","v":18.598278786782075},{"$f":"'EETechData&Calculation'!X74","v":32.535589091094323},{"$f":"'EETechData&Calculation'!Y74","v":43.00097496649726},{"$f":"'EETechData&Calculation'!Z74","v":153.40600457977112},{"$f":"'EETechData&Calculation'!AA74","v":143.62151068134932},{"$f":"'EETechData&Calculation'!AB74","v":107.02606175033152},{"$f":"'EETechData&Calculation'!AC74","v":113.20783136085539},{"$f":"'EETechData&Calculation'!AD74","v":114.28028131032252},{"$f":"'EETechData&Calculation'!AE74","v":91.313537194693978},{"$f":"'EETechData&Calculation'!AF74","v":99.21215832746833},{"$f":"'EETechData&Calculation'!AG74","v":52.890305863177566},{"$f":"'EETechData&Calculation'!AH74","v":185.06597320517514},{"$f":"'EETechData&Calculation'!AI74","v":115.48186892523731},{"$f":"'EETechData&Calculation'!AJ74","v":22.447176179745018},{"$f":"'EETechData&Calculation'!AK74","v":""},{"$f":"'EETechData&Calculation'!AL74","v":""},{"$f":"'EETechData&Calculation'!AM74","v":""},{"$f":"'EETechData&Calculation'!AN74","v":""},{"$f":"'EETechData&Calculation'!AO74","v":""},{"$f":"'EETechData&Calculation'!AP74","v":""},{"$f":"'EETechData&Calculation'!AQ74","v":""},{"$f":"'EETechData&Calculation'!AR74","v":""},{"$f":"'EETechData&Calculation'!AS74","v":""}]
[null,"Network tariffs",null,{"$f":"HLOOKUP(D$55,'EETechData&Calculation'!$D$70:$AW$75,6,FALSE)","v":0},{"$f":"HLOOKUP(E$55,'EETechData&Calculation'!$D$70:$AW$75,6,FALSE)","v":0},{"$f":"HLOOKUP(F$55,'EETechData&Calculation'!$D$70:$AW$75,6,FALSE)","v":0},{"$f":"HLOOKUP(G$55,'EETechData&Calculation'!$D$70:$AW$75,6,FALSE)","v":0},{"$f":"HLOOKUP(H$55,'EETechData&Calculation'!$D$70:$AW$75,6,FALSE)","v":0},{"$f":"HLOOKUP(I$55,'EETechData&Calculation'!$D$70:$AW$75,6,FALSE)","v":0},{"$f":"HLOOKUP(J$55,'EETechData&Calculation'!$D$70:$AW$75,6,FALSE)","v":0},{"$f":"HLOOKUP(K$55,'EETechData&Calculation'!$D$70:$AW$75,6,FALSE)","v":0},{"$f":"HLOOKUP(L$55,'EETechData&Calculation'!$D$70:$AW$75,6,FALSE)","v":0},{"$f":"HLOOKUP(M$55,'EETechData&Calculation'!$D$70:$AW$75,6,FALSE)","v":0},{"$f":"HLOOKUP(N$55,'EETechData&Calculation'!$D$70:$AW$75,6,FALSE)","v":0},{"$f":"HLOOKUP(O$55,'EETechData&Calculation'!$D$70:$AW$75,6,FALSE)","v":0},{"$f":"HLOOKUP(P$55,'EETechData&Calculation'!$D$70:$AW$75,6,FALSE)","v":0},{"$f":"HLOOKUP(Q$55,'EETechData&Calculation'!$D$70:$AW$75,6,FALSE)","v":0},{"$f":"HLOOKUP(R$55,'EETechData&Calculation'!$D$70:$AW$75,6,FALSE)","v":0},{"$f":"'EETechData&Calculation'!S75","v":56.550195774911508},{"$f":"'EETechData&Calculation'!T75","v":56.550195774911508},{"$f":"'EETechData&Calculation'!U75","v":56.550195774911508},{"$f":"'EETechData&Calculation'!V75","v":56.550195774911508},{"$f":"'EETechData&Calculation'!W75","v":56.550195774911508},{"$f":"'EETechData&Calculation'!X75","v":56.550195774911508},{"$f":"'EETechData&Calculation'!Y75","v":56.550195774911508},{"$f":"'EETechData&Calculation'!Z75","v":56.550195774911508},{"$f":"'EETechData&Calculation'!AA75","v":56.550195774911508},{"$f":"'EETechData&Calculation'!AB75","v":56.550195774911508},{"$f":"'EETechData&Calculation'!AC75","v":56.550195774911508},{"$f":"'EETechData&Calculation'!AD75","v":56.550195774911508},{"$f":"'EETechData&Calculation'!AE75","v":56.550195774911508},{"$f":"'EETechData&Calculation'!AF75","v":56.550195774911508},{"$f":"'EETechData&Calculation'!AG75","v":56.550195774911508},{"$f":"'EETechData&Calculation'!AH75","v":56.550195774911508},{"$f":"'EETechData&Calculation'!AI75","v":56.550195774911508},{"$f":"'EETechData&Calculation'!AJ75","v":56.550195774911508},{"$f":"'EETechData&Calculation'!AK75","v":56.550195774911508},{"$f":"'EETechData&Calculation'!AL75","v":56.550195774911508},{"$f":"'EETechData&Calculation'!AM75","v":56.550195774911508},{"$f":"'EETechData&Calculation'!AN75","v":56.550195774911508},{"$f":"'EETechData&Calculation'!AO75","v":56.550195774911508},{"$f":"'EETechData&Calculation'!AP75","v":56.550195774911508},{"$f":"'EETechData&Calculation'!AQ75","v":56.550195774911508},{"$f":"'EETechData&Calculation'!AR75","v":56.550195774911508},{"$f":"'EETechData&Calculation'!AS75","v":56.550195774911508}]
[null,"Total ",null,{"$f":"ROUND(D56,0)&\"-\"&ROUND(D57+D56,0)","v":"5-13"},{"$f":"ROUND(E56,0)&\"-\"&ROUND(E57+E56,0)","v":"41-42"},"26-36","39-155","141-143",{"$error":"#VALUE!"},{"$error":"#VALUE!"},{"$error":"#VALUE!"},{"$error":"#VALUE!"},{"$error":"#VALUE!"},{"$error":"#VALUE!"},{"$error":"#VALUE!"},{"$error":"#VALUE!"},{"$error":"#VALUE!"},{"$error":"#VALUE!"},{"$f":"SUM(S58:S59)","v":97.862621774725682},{"$f":"SUM(T58:T59)","v":89.636351723978578},80.928206506304093,75.168156950894073,75.148474561693575,89.085784866005838,99.551170741408768,209.95620035468264,200.17170645626084,163.57625752524302,169.75802713576689,170.83047708523404,147.86373296960548,155.76235410237985,109.44050163808907,241.61616898008666,172.03206470014882,78.997371954656529,56.550195774911508,56.550195774911508,56.550195774911508,56.550195774911508,56.550195774911508,56.550195774911508,56.550195774911508,56.550195774911508,56.550195774911508]

{"sheet":"EETechData&Calculation","index":9,"n_rows":75,"n_cols":49,"rows_kept":75,"cut":false,"hidden":false,"merged":[[60,19,64,21],[23,19,23,21],[45,19,45,21],[22,1,22,2],[44,1,44,2],[60,4,64,6],[60,7,64,9],[60,10,64,12],[60,13,64,15],[60,16,64,18],[59,7,59,9],[59,10,59,12],[59,13,59,15],[59,16,59,18],[45,7,45,9],[45,10,45,12],[45,13,45,15],[45,16,45,18],[38,7,42,9],[38,10,42,12],[38,13,42,15],[37,7,37,9],[37,10,37,12],[37,13,37,15],[23,7,23,9],[23,10,23,12],[23,13,23,15],[45,4,45,6],[59,4,59,6],[37,4,37,6],[38,4,42,6],[23,4,23,6],[45,22,45,24],[59,22,59,24],[23,16,23,18],[37,16,37,18],[37,19,37,21],[59,19,59,21],[38,16,42,18],[38,19,42,21],[60,22,64,24],[23,25,23,27],[23,28,23,30],[23,31,23,33],[23,34,23,36],[38,25,42,27],[38,28,42,30],[38,31,42,33],[38,34,42,36],[59,25,59,27],[59,28,59,30],[59,31,59,33],[59,34,59,36],[23,22,23,24],[37,22,37,24],[38,22,42,24],[37,40,37,42],[37,43,37,45],[37,46,37,48],[23,37,23,39],[23,40,23,42],[23,43,23,45],[23,46,23,48],[37,25,37,27],[37,28,37,30],[37,31,37,33],[37,34,37,36],[37,37,37,39],[45,40,45,42],[45,43,45,45],[45,46,45,48],[38,37,42,39],[38,40,42,42],[38,43,42,45],[38,46,42,48],[45,25,45,27],[45,28,45,30],[45,31,45,33],[45,34,45,36],[45,37,45,39],[60,40,64,42],[60,43,64,45],[60,46,64,48],[59,37,59,39],[59,40,59,42],[59,43,59,45],[59,46,59,48],[60,25,64,27],[60,28,64,30],[60,31,64,33],[60,34,64,36],[60,37,64,39]]}
[]
[null,"Technology data and calculations"]
[]
[null,"User instruction"]
[null,"In this sheet the technology data is provided and calculations of the LCoEE done. The user have the option to change the given technology data and add new technologies with own data. Economic input values are stated in the currency and price year set below."]
[null,"For each technology two examples are given/recommended in order to develop an interval of cost. Data and calculations can be viewed in the Data and Calculation tables below. "]
[null,"If the user whises a signel value instead of an interval, this can be obtained be leaving out data in the example 2 table. "]
[null,"A summary table is given below with the inclusion of production costs. This is primarily used for the graphical illustration on "]
[]
[null,"Functions: "]
[]
[null,null,"Two data examples for five different technologies are given in the calculation tables (data in green marked cells). This can be changed be the user if wanted."]
[]
[null,null,"The user can also apply own technology data. The green marked cells should be filled out. A graphical illustration is given on "]
[]
[null,"Settings","Currency","Price year"]
[null,"Currency and priceyear for input ","EUR",2011]
[null,"Data sources:"]
[null,"[mangler]"]
[]
[null,"Calculation and technology data  "]
[]
[null,"Data and Calculation table -example 1"]
[null,null,null,null,"Office ventilation",null,null,"Pumps",null,null,"Industrial electric motor",null,null,"Lighting in commercial buildings",null,null,"Window in domestic building",null,null,"Technology 1",null,null,"Technology 2",null,null,"Technology 3",null,null,"Technology 4",null,null,"Technology 5",null,null,"Technology 6",null,null,"Technology 7",null,null,"Technology 8",null,null,"Technology 9",null,null,"Technology 10"]
[null,null,null,null,"Before","After","Difference","Before","After","Difference","Before","After","Difference","Before","After","Difference","Before","After","Difference","Before","After","Difference","Before","After","Difference","Before","After","Difference","Before","After","Difference","Before","After","Difference","Before","After","Difference","Before","After","Difference","Before","After","Difference","Before","After","Difference","Before","After","Difference"]
[null,"Basic technology definitions"]
[null,null,"Expected lifetime","years",5,15,null,5,10,null,5,15,null,5,10,null,5,40,null,"lifetime","lifetime",null,"lifetime","lifetime",null,"lifetime","lifetime",null,"lifetime","lifetime",null,"lifetime","lifetime",null,"lifetime","lifetime",null,"lifetime","lifetime",null,"lifetime","lifetime",null,"lifetime","lifetime",null,"lifetime","lifetime"]
[null,"Technical data","Electricity consumption","MWh/year",96.549000000000007,26.274000000000001,{"$f":"E28-F28","v":70.275000000000006},1073,670,{"$f":"H28-I28","v":403},{"$f":"8000*22/0.89/1000*0.8","v":158.20224719101122},{"$f":"22*8000/0.93/1000*0.8","v":151.3978494623656},{"$f":"K28-L28","v":6.8043977286456254},1,0.65,{"$f":"N28-O28","v":0.35},0.161,-2.9000000000000001E-2,{"$f":"Q28-R28","v":0.19},"Elec. Cons.","Elec. Cons.",{"$f":"T28-U28","v":{"$error":"#VALUE!"}},"Elec. Cons.","Elec. Cons.",{"$f":"W28-X28","v":{"$error":"#VALUE!"}},"Elec. Cons.","Elec. Cons.",{"$f":"Z28-AA28","v":{"$error":"#VALUE!"}},"Elec. Cons.","Elec. Cons.",{"$f":"AC28-AD28","v":{"$error":"#VALUE!"}},"Elec. Cons.","Elec. Cons.",{"$f":"AF28-AG28","v":{"$error":"#VALUE!"}},"Elec. Cons.","Elec. Cons.",{"$f":"AI28-AJ28","v":{"$error":"#VALUE!"}},"Elec. Cons.","Elec. Cons.",{"$f":"AL28-AM28","v":{"$error":"#VALUE!"}},"Elec. Cons.","Elec. Cons.",{"$f":"AO28-AP28","v":{"$error":"#VALUE!"}},"Elec. Cons.","Elec. Cons.",{"$f":"AR28-AS28","v":{"$error":"#VALUE!"}},"Elec. Cons.","Elec. Cons.",{"$f":"AU28-AV28","v":{"$error":"#VALUE!"}}]
[]
[null,"Economy data","Investment",{"$f":"D52","v":"EUR2011"},0,3776,null,0,122000,null,0,1818,null,0,{"$f":"3000/7.5","v":400},null,0,{"$f":"634*0.8","v":507.20000000000005},null,"Investment","Investment",null,"Investment","Investment",null,"Investment","Investment",null,"Investment","Investment",null,"Investment","Investment",null,"Investment","Investment",null,"Investment","Investment",null,"Investment","Investment",null,"Investment","Investment",null,"Investment","Investment"]
[null,null,"Fixed O&M",{"$f":"D53","v":"EUR2011/year"},0,0,null,2800,700,null,0,null,null,0,0,null,0,0,null,"Fixed O&M","Fixed O&M",null,"Fixed O&M","Fixed O&M",null,"Fixed O&M","Fixed O&M",null,"Fixed O&M","Fixed O&M",null,"Fixed O&M","Fixed O&M",null,"Fixed O&M","Fixed O&M",null,"Fixed O&M","Fixed O&M",null,"Fixed O&M","Fixed O&M",null,"Fixed O&M","Fixed O&M",null,"Fixed O&M","Fixed O&M"]
[null,null,"Var. O&M","EUR2011/MWh",0,0,null,0,0,null,0,0,null,0,0,null,0,0,null,"Var. O&M","Var. O&M",null,"Var. O&M","Var. O&M",null,"Var. O&M","Var. O&M",null,"Var. O&M","Var. O&M",null,"Var. O&M","Var. O&M",null,"Var. O&M","Var. O&M",null,"Var. O&M","Var. O&M",null,"Var. O&M","Var. O&M",null,"Var. O&M","Var. O&M",null,"Var. O&M","Var. O&M"]
[]
[null,"Electricity consumption costs","Capital cost",{"$f":"D56","v":"EUR2011/year"},{"$f":"-PMT(EEDiscountRate,E27,E30)","v":0},{"$f":"-PMT(EEDiscountRate,F27,F30)","v":327.85146192614047},{"$f":"F34-E34","v":327.85146192614047},{"$f":"-PMT(EEDiscountRate,H27,H30)","v":0},{"$f":"-PMT(EEDiscountRate,I27,I30)","v":14669.446879821737},{"$f":"I34-H34","v":14669.446879821737},{"$f":"-PMT(EEDiscountRate,K27,K30)","v":0},{"$f":"-PMT(EEDiscountRate,L27,L30)","v":157.84797610744795},{"$f":"L34-K34","v":157.84797610744795},{"$f":"-PMT(EEDiscountRate,N27,N30)","v":0},{"$f":"-PMT(EEDiscountRate,O27,O30)","v":48.09654714695651},{"$f":"O34-N34","v":48.09654714695651},{"$f":"-PMT(EEDiscountRate,Q27,Q30)","v":0},{"$f":"-PMT(EEDiscountRate,R27,R30)","v":23.750797561764941},{"$f":"R34-Q34","v":23.750797561764941},{"$f":"-PMT(EEDiscountRate,T27,T30)","v":{"$error":"#VALUE!"}},{"$f":"-PMT(EEDiscountRate,U27,U30)","v":{"$error":"#VALUE!"}},{"$f":"U34-T34","v":{"$error":"#VALUE!"}},{"$f":"-PMT(EEDiscountRate,W27,W30)","v":{"$error":"#VALUE!"}},{"$f":"-PMT(EEDiscountRate,X27,X30)","v":{"$error":"#VALUE!"}},{"$f":"X34-W34","v":{"$error":"#VALUE!"}},{"$f":"-PMT(EEDiscountRate,Z27,Z30)","v":{"$error":"#VALUE!"}},{"$f":"-PMT(EEDiscountRate,AA27,AA30)","v":{"$error":"#VALUE!"}},{"$f":"AA34-Z34","v":{"$error":"#VALUE!"}},{"$f":"-PMT(EEDiscountRate,AC27,AC30)","v":{"$error":"#VALUE!"}},{"$f":"-PMT(EEDiscountRate,AD27,AD30)","v":{"$error":"#VALUE!"}},{"$f":"AD34-AC34","v":{"$error":"#VALUE!"}},{"$f":"-PMT(EEDiscountRate,AF27,AF30)","v":{"$error":"#VALUE!"}},{"$f":"-PMT(EEDiscountRate,AG27,AG30)","v":{"$error":"#VALUE!"}},{"$f":"AG34-AF34","v":{"$error":"#VALUE!"}},{"$f":"-PMT(EEDiscountRate,AI27,AI30)","v":{"$error":"#VALUE!"}},{"$f":"-PMT(EEDiscountRate,AJ27,AJ30)","v":{"$error":"#VALUE!"}},{"$f":"AJ34-AI34","v":{"$error":"#VALUE!"}},{"$f":"-PMT(EEDiscountRate,AL27,AL30)","v":{"$error":"#VALUE!"}},{"$f":"-PMT(EEDiscountRate,AM27,AM30)","v":{"$error":"#VALUE!"}},{"$f":"AM34-AL34","v":{"$error":"#VALUE!"}},{"$f":"-PMT(EEDiscountRate,AO27,AO30)","v":{"$error":"#VALUE!"}},{"$f":"-PMT(EEDiscountRate,AP27,AP30)","v":{"$error":"#VALUE!"}},{"$f":"AP34-AO34","v":{"$error":"#VALUE!"}},{"$f":"-PMT(EEDiscountRate,AR27,AR30)","v":{"$error":"#VALUE!"}},{"$f":"-PMT(EEDiscountRate,AS27,AS30)","v":{"$error":"#VALUE!"}},{"$f":"AS34-AR34","v":{"$error":"#VALUE!"}},{"$f":"-PMT(EEDiscountRate,AU27,AU30)","v":{"$error":"#VALUE!"}},{"$f":"-PMT(EEDiscountRate,AV27,AV30)","v":{"$error":"#VALUE!"}},{"$f":"AV34-AU34","v":{"$error":"#VALUE!"}}]
[null,null,"Fixed O&M","EUR2011/year",{"$f":"E31/E28","v":0},{"$f":"F31/F28","v":0},{"$f":"F35-E35","v":0},{"$f":"H31/H28","v":2.6095060577819198},{"$f":"I31/I28","v":1.044776119402985},{"$f":"I35-H35","v":-1.5647299383789348},{"$f":"K31/K28","v":0},{"$f":"L31/L28","v":0},{"$f":"L35-K35","v":0},{"$f":"N31/N28","v":0},{"$f":"O31/O28","v":0},{"$f":"O35-N35","v":0},{"$f":"Q31/Q28","v":0},{"$f":"R31/R28","v":0},{"$f":"R35-Q35","v":0},{"$f":"T31/T28","v":{"$error":"#VALUE!"}},{"$f":"U31/U28","v":{"$error":"#VALUE!"}},{"$f":"U35-T35","v":{"$error":"#VALUE!"}},{"$f":"W31/W28","v":{"$error":"#VALUE!"}},{"$f":"X31/X28","v":{"$error":"#VALUE!"}},{"$f":"X35-W35","v":{"$error":"#VALUE!"}},{"$f":"Z31/Z28","v":{"$error":"#VALUE!"}},{"$f":"AA31/AA28","v":{"$error":"#VALUE!"}},{"$f":"AA35-Z35","v":{"$error":"#VALUE!"}},{"$f":"AC31/AC28","v":{"$error":"#VALUE!"}},{"$f":"AD31/AD28","v":{"$error":"#VALUE!"}},{"$f":"AD35-AC35","v":{"$error":"#VALUE!"}},{"$f":"AF31/AF28","v":{"$error":"#VALUE!"}},{"$f":"AG31/AG28","v":{"$error":"#VALUE!"}},{"$f":"AG35-AF35","v":{"$error":"#VALUE!"}},{"$f":"AI31/AI28","v":{"$error":"#VALUE!"}},{"$f":"AJ31/AJ28","v":{"$error":"#VALUE!"}},{"$f":"AJ35-AI35","v":{"$error":"#VALUE!"}},{"$f":"AL31/AL28","v":{"$error":"#VALUE!"}},{"$f":"AM31/AM28","v":{"$error":"#VALUE!"}},{"$f":"AM35-AL35","v":{"$error":"#VALUE!"}},{"$f":"AO31/AO28","v":{"$error":"#VALUE!"}},{"$f":"AP31/AP28","v":{"$error":"#VALUE!"}},{"$f":"AP35-AO35","v":{"$error":"#VALUE!"}},{"$f":"AR31/AR28","v":{"$error":"#VALUE!"}},{"$f":"AS31/AS28","v":{"$error":"#VALUE!"}},{"$f":"AS35-AR35","v":{"$error":"#VALUE!"}},{"$f":"AU31/AU28","v":{"$error":"#VALUE!"}},{"$f":"AV31/AV28","v":{"$error":"#VALUE!"}},{"$f":"AV35-AU35","v":{"$error":"#VALUE!"}}]
[null,null,"Var O&M","EUR2011/year",{"$f":"E32*E28","v":0},{"$f":"F32*F28","v":0},{"$f":"F36-E36","v":0},{"$f":"H32*H28","v":0},{"$f":"I32*I28","v":0},{"$f":"I36-H36","v":0},{"$f":"K32*K28","v":0},{"$f":"L32*L28","v":0},{"$f":"L36-K36","v":0},{"$f":"N32*N28","v":0},{"$f":"O32*O28","v":0},{"$f":"O36-N36","v":0},{"$f":"Q32*Q28","v":0},{"$f":"R32*R28","v":0},{"$f":"R36-Q36","v":0},{"$f":"T32*T28","v":{"$error":"#VALUE!"}},{"$f":"U32*U28","v":{"$error":"#VALUE!"}},{"$f":"U36-T36","v":{"$error":"#VALUE!"}},{"$f":"W32*W28","v":{"$error":"#VALUE!"}},{"$f":"X32*X28","v":{"$error":"#VALUE!"}},{"$f":"X36-W36","v":{"$error":"#VALUE!"}},{"$f":"Z32*Z28","v":{"$error":"#VALUE!"}},{"$f":"AA32*AA28","v":{"$error":"#VALUE!"}},{"$f":"AA36-Z36","v":{"$error":"#VALUE!"}},{"$f":"AC32*AC28","v":{"$error":"#VALUE!"}},{"$f":"AD32*AD28","v":{"$error":"#VALUE!"}},{"$f":"AD36-AC36","v":{"$error":"#VALUE!"}},{"$f":"AF32*AF28","v":{"$error":"#VALUE!"}},{"$f":"AG32*AG28","v":{"$error":"#VALUE!"}},{"$f":"AG36-AF36","v":{"$error":"#VALUE!"}},{"$f":"AI32*AI28","v":{"$error":"#VALUE!"}},{"$f":"AJ32*AJ28","v":{"$error":"#VALUE!"}},{"$f":"AJ36-AI36","v":{"$error":"#VALUE!"}},{"$f":"AL32*AL28","v":{"$error":"#VALUE!"}},{"$f":"AM32*AM28","v":{"$error":"#VALUE!"}},{"$f":"AM36-AL36","v":{"$error":"#VALUE!"}},{"$f":"AO32*AO28","v":{"$error":"#VALUE!"}},{"$f":"AP32*AP28","v":{"$error":"#VALUE!"}},{"$f":"AP36-AO36","v":{"$error":"#VALUE!"}},{"$f":"AR32*AR28","v":{"$error":"#VALUE!"}},{"$f":"AS32*AS28","v":{"$error":"#VALUE!"}},{"$f":"AS36-AR36","v":{"$error":"#VALUE!"}},{"$f":"AU32*AU28","v":{"$error":"#VALUE!"}},{"$f":"AV32*AV28","v":{"$error":"#VALUE!"}},{"$f":"AV36-AU36","v":{"$error":"#VALUE!"}}]
[]
[null,"Total LCoEE","Levelized cost of energy efficiency",{"$f":"D60","v":"EUR2011/MWh"},{"$f":"SUM(G34:G36)/(G28)","v":4.6652644884545067},null,null,{"$f":"SUM(J34:J36)/(J28)","v":36.396729900454986},null,null,{"$f":"SUM(M34:M36)/(M28)","v":23.19793498297852},null,null,{"$f":"SUM(P34:P36)/(P28)","v":137.41870613416145},null,null,{"$f":"SUM(S34:S36)/(S28)","v":125.00419769349969},null,null,{"$f":"SUM(V34:V36)/(V28)","v":{"$error":"#VALUE!"}},null,null,{"$f":"SUM(Y34:Y36)/(Y28)","v":{"$error":"#VALUE!"}},null,null,{"$f":"SUM(AB34:AB36)/(AB28)","v":{"$error":"#VALUE!"}},null,null,{"$f":"SUM(AE34:AE36)/(AE28)","v":{"$error":"#VALUE!"}},null,null,{"$f":"SUM(AH34:AH36)/(AH28)","v":{"$error":"#VALUE!"}},null,null,{"$f":"SUM(AK34:AK36)/(AK28)","v":{"$error":"#VALUE!"}},null,null,{"$f":"SUM(AN34:AN36)/(AN28)","v":{"$error":"#VALUE!"}},null,null,{"$f":"SUM(AQ34:AQ36)/(AQ28)","v":{"$error":"#VALUE!"}},null,null,{"$f":"SUM(AT34:AT36)/(AT28)","v":{"$error":"#VALUE!"}},null,null,{"$f":"SUM(AW34:AW36)/(AW28)","v":{"$error":"#VALUE!"}}]
[null,"Technology specific notes and calculations",null,null,"Option 1: Only a variable speed drive (VSD) has been added to the existing motor and fan system.",null,null,"Existing submersible pumps (2x55 kW and 4x45 kW) in a municipal water supply system is replaced by new pumps (6x37 kW) and a VFD and controller.",null,null,"A 22 kW motor with continous operation at 80 % load for  8000 hours per year is replaced by a \"Premium efficiency\" motor (IE3)",null,null,"Replacement of lighting solution with fluorescent lamps to LED lamps.",null,null,"A window in a domestic home is replaced by a new window with double layer pane. Electricity consumption for electric heating in a temperate climate (DK)"]
[]
[]
[]
[]
[]
[null,"Data and Calculation table -example 2"]
[null,null,null,null,{"$f":"E24","v":"Office ventilation"},null,null,{"$f":"H24","v":"Pumps"},null,null,{"$f":"K24","v":"Industrial electric motor"},null,null,{"$f":"N24","v":"Lighting in commercial buildings"},null,null,{"$f":"Q24","v":"Window in domestic building"},null,null,{"$f":"T24","v":"Technology 1"},null,null,{"$f":"W24","v":"Technology 2"},null,null,{"$f":"Z24","v":"Technology 3"},null,null,{"$f":"AC24","v":"Technology 4"},null,null,{"$f":"AF24","v":"Technology 5"},null,null,{"$f":"AI24","v":"Technology 6"},null,null,{"$f":"AL24","v":"Technology 7"},null,null,{"$f":"AO24","v":"Technology 8"},null,null,{"$f":"AR24","v":"Technology 9"},null,null,{"$f":"AU24","v":"Technology 10"}]
[null,null,null,null,"Before","After","Difference","Before","After","Difference","Before","After","Difference","Before","After","Difference","Before","After","Difference","Before","After","Difference","Before","After","Difference","Before","After","Difference","Before","After","Difference","Before","After","Difference","Before","After","Difference","Before","After","Difference","Before","After","Difference","Before","After","Difference","Before","After","Difference"]
[null,"Basic technology definitions"]
[null,null,"Expected lifetime","years",15,15,null,0,0,null,15,15,null,3,10,null,20,40,null,"lifetime","lifetime",null,"lifetime","lifetime",null,"lifetime","lifetime",null,"lifetime","lifetime",null,"lifetime","lifetime",null,"lifetime","lifetime",null,"lifetime","lifetime",null,"lifetime","lifetime",null,"lifetime","lifetime",null,"lifetime","lifetime"]
[null,"Technical data","Electricity consumption","MWh/year",96.545000000000002,17.78,{"$f":"E50-F50","v":78.765000000000001},0,0,{"$f":"H50-I50","v":0},{"$f":"8000*22/0.89/1000*0.8","v":158.20224719101122},{"$f":"22*8000/0.916/1000*0.8","v":153.7117903930131},{"$f":"K50-L50","v":4.4904567979981209},1,0.3,{"$f":"N50-O50","v":0.7},0.161,-7.0000000000000007E-2,{"$f":"Q50-R50","v":0.23100000000000001},"Elec. Cons.","Elec. Cons.",{"$f":"T50-U50","v":{"$error":"#VALUE!"}},"Elec. Cons.","Elec. Cons.",{"$f":"W50-X50","v":{"$error":"#VALUE!"}},"Elec. Cons.","Elec. Cons.",{"$f":"Z50-AA50","v":{"$error":"#VALUE!"}},"Elec. Cons.","Elec. Cons.",{"$f":"AC50-AD50","v":{"$error":"#VALUE!"}},"Elec. Cons.","Elec. Cons.",{"$f":"AF50-AG50","v":{"$error":"#VALUE!"}},"Elec. Cons.","Elec. Cons.",{"$f":"AI50-AJ50","v":{"$error":"#VALUE!"}},"Elec. Cons.","Elec. Cons.",{"$f":"AL50-AM50","v":{"$error":"#VALUE!"}},"Elec. Cons.","Elec. Cons.",{"$f":"AO50-AP50","v":{"$error":"#VALUE!"}},"Elec. Cons.","Elec. Cons.",{"$f":"AR50-AS50","v":{"$error":"#VALUE!"}},"Elec. Cons.","Elec. Cons.",{"$f":"AU50-AV50","v":{"$error":"#VALUE!"}}]
[]
[null,"Economy data","Investment",{"$f":"$C$17&$D$17","v":"EUR2011"},0,10276,null,0,0,null,0,1635,null,0,{"$f":"1500/7.5","v":200},null,0,{"$f":"780*0.8","v":624},null,"Investment","Investment",null,"Investment","Investment",null,"Investment","Investment",null,"Investment","Investment",null,"Investment","Investment",null,"Investment","Investment",null,"Investment","Investment",null,"Investment","Investment",null,"Investment","Investment",null,"Investment","Investment"]
[null,null,"Fixed O&M",{"$f":"$C$17&$D$17&\"/year\"","v":"EUR2011/year"},0,0,null,0,0,null,0,0,null,0,0,null,0,0,null,"Fixed O&M","Fixed O&M",null,"Fixed O&M","Fixed O&M",null,"Fixed O&M","Fixed O&M",null,"Fixed O&M","Fixed O&M",null,"Fixed O&M","Fixed O&M",null,"Fixed O&M","Fixed O&M",null,"Fixed O&M","Fixed O&M",null,"Fixed O&M","Fixed O&M",null,"Fixed O&M","Fixed O&M",null,"Fixed O&M","Fixed O&M"]
[null,null,"Var. O&M",{"$f":"$C$17&$D$17&\"/MWh\"","v":"EUR2011/MWh"},0,0,null,0,0,null,0,0,null,0,0,null,0,0,null,"Var. O&M","Var. O&M",null,"Var. O&M","Var. O&M",null,"Var. O&M","Var. O&M",null,"Var. O&M","Var. O&M",null,"Var. O&M","Var. O&M",null,"Var. O&M","Var. O&M",null,"Var. O&M","Var. O&M",null,"Var. O&M","Var. O&M",null,"Var. O&M","Var. O&M",null,"Var. O&M","Var. O&M"]
[]
[null,"Electricity consumption costs","Capital cost",{"$f":"$C$17&$D$17&\"/year\"","v":"EUR2011/year"},{"$f":"-PMT(EEDiscountRate,E49,E52)","v":0},{"$f":"-PMT(EEDiscountRate,F49,F52)","v":892.21441280535475},{"$f":"F56-E56","v":892.21441280535475},{"$f":"-PMT(EEDiscountRate,H49,H52)","v":{"$error":"#NUM!"}},{"$f":"-PMT(EEDiscountRate,I49,I52)","v":{"$error":"#NUM!"}},{"$f":"I56-H56","v":{"$error":"#NUM!"}},{"$f":"-PMT(EEDiscountRate,K49,K52)","v":0},{"$f":"-PMT(EEDiscountRate,L49,L52)","v":141.95898841346391},{"$f":"L56-K56","v":141.95898841346391},{"$f":"-PMT(EEDiscountRate,N49,N52)","v":0},{"$f":"-PMT(EEDiscountRate,O49,O52)","v":24.048273573478255},{"$f":"O56-N56","v":24.048273573478255},{"$f":"-PMT(EEDiscountRate,Q49,Q52)","v":0},{"$f":"-PMT(EEDiscountRate,R49,R52)","v":29.22022412961617},{"$f":"R56-Q56","v":29.22022412961617},{"$f":"-PMT(EEDiscountRate,T49,T52)","v":{"$error":"#VALUE!"}},{"$f":"-PMT(EEDiscountRate,U49,U52)","v":{"$error":"#VALUE!"}},{"$f":"U56-T56","v":{"$error":"#VALUE!"}},{"$f":"-PMT(EEDiscountRate,W49,W52)","v":{"$error":"#VALUE!"}},{"$f":"-PMT(EEDiscountRate,X49,X52)","v":{"$error":"#VALUE!"}},{"$f":"X56-W56","v":{"$error":"#VALUE!"}},{"$f":"-PMT(EEDiscountRate,Z49,Z52)","v":{"$error":"#VALUE!"}},{"$f":"-PMT(EEDiscountRate,AA49,AA52)","v":{"$error":"#VALUE!"}},{"$f":"AA56-Z56","v":{"$error":"#VALUE!"}},{"$f":"-PMT(EEDiscountRate,AC49,AC52)","v":{"$error":"#VALUE!"}},{"$f":"-PMT(EEDiscountRate,AD49,AD52)","v":{"$error":"#VALUE!"}},{"$f":"AD56-AC56","v":{"$error":"#VALUE!"}},{"$f":"-PMT(EEDiscountRate,AF49,AF52)","v":{"$error":"#VALUE!"}},{"$f":"-PMT(EEDiscountRate,AG49,AG52)","v":{"$error":"#VALUE!"}},{"$f":"AG56-AF56","v":{"$error":"#VALUE!"}},{"$f":"-PMT(EEDiscountRate,AI49,AI52)","v":{"$error":"#VALUE!"}},{"$f":"-PMT(EEDiscountRate,AJ49,AJ52)","v":{"$error":"#VALUE!"}},{"$f":"AJ56-AI56","v":{"$error":"#VALUE!"}},{"$f":"-PMT(EEDiscountRate,AL49,AL52)","v":{"$error":"#VALUE!"}},{"$f":"-PMT(EEDiscountRate,AM49,AM52)","v":{"$error":"#VALUE!"}},{"$f":"AM56-AL56","v":{"$error":"#VALUE!"}},{"$f":"-PMT(EEDiscountRate,AO49,AO52)","v":{"$error":"#VALUE!"}},{"$f":"-PMT(EEDiscountRate,AP49,AP52)","v":{"$error":"#VALUE!"}},{"$f":"AP56-AO56","v":{"$error":"#VALUE!"}},{"$f":"-PMT(EEDiscountRate,AR49,AR52)","v":{"$error":"#VALUE!"}},{"$f":"-PMT(EEDiscountRate,AS49,AS52)","v":{"$error":"#VALUE!"}},{"$f":"AS56-AR56","v":{"$error":"#VALUE!"}},{"$f":"-PMT(EEDiscountRate,AU49,AU52)","v":{"$error":"#VALUE!"}},{"$f":"-PMT(EEDiscountRate,AV49,AV52)","v":{"$error":"#VALUE!"}},{"$f":"AV56-AU56","v":{"$error":"#VALUE!"}}]
[null,null,"Fixed O&M","EUR2011/year",{"$f":"E53/E50","v":0},{"$f":"F53/F50","v":0},{"$f":"F57-E57","v":0},{"$f":"H53/H50","v":{"$error":"#DIV/0!"}},{"$f":"I53/I50","v":{"$error":"#DIV/0!"}},{"$f":"I57-H57","v":{"$error":"#DIV/0!"}},{"$f":"K53/K50","v":0},{"$f":"L53/L50","v":0},{"$f":"L57-K57","v":0},{"$f":"N53/N50","v":0},{"$f":"O53/O50","v":0},{"$f":"O57-N57","v":0},{"$f":"Q53/Q50","v":0},{"$f":"R53/R50","v":0},{"$f":"R57-Q57","v":0},{"$f":"T53/T50","v":{"$error":"#VALUE!"}},{"$f":"U53/U50","v":{"$error":"#VALUE!"}},{"$f":"U57-T57","v":{"$error":"#VALUE!"}},{"$f":"W53/W50","v":{"$error":"#VALUE!"}},{"$f":"X53/X50","v":{"$error":"#VALUE!"}},{"$f":"X57-W57","v":{"$error":"#VALUE!"}},{"$f":"Z53/Z50","v":{"$error":"#VALUE!"}},{"$f":"AA53/AA50","v":{"$error":"#VALUE!"}},{"$f":"AA57-Z57","v":{"$error":"#VALUE!"}},{"$f":"AC53/AC50","v":{"$error":"#VALUE!"}},{"$f":"AD53/AD50","v":{"$error":"#VALUE!"}},{"$f":"AD57-AC57","v":{"$error":"#VALUE!"}},{"$f":"AF53/AF50","v":{"$error":"#VALUE!"}},{"$f":"AG53/AG50","v":{"$error":"#VALUE!"}},{"$f":"AG57-AF57","v":{"$error":"#VALUE!"}},{"$f":"AI53/AI50","v":{"$error":"#VALUE!"}},{"$f":"AJ53/AJ50","v":{"$error":"#VALUE!"}},{"$f":"AJ57-AI57","v":{"$error":"#VALUE!"}},{"$f":"AL53/AL50","v":{"$error":"#VALUE!"}},{"$f":"AM53/AM50","v":{"$error":"#VALUE!"}},{"$f":"AM57-AL57","v":{"$error":"#VALUE!"}},{"$f":"AO53/AO50","v":{"$error":"#VALUE!"}},{"$f":"AP53/AP50","v":{"$error":"#VALUE!"}},{"$f":"AP57-AO57","v":{"$error":"#VALUE!"}},{"$f":"AR53/AR50","v":{"$error":"#VALUE!"}},{"$f":"AS53/AS50","v":{"$error":"#VALUE!"}},{"$f":"AS57-AR57","v":{"$error":"#VALUE!"}},{"$f":"AU53/AU50","v":{"$error":"#VALUE!"}},{"$f":"AV53/AV50","v":{"$error":"#VALUE!"}},{"$f":"AV57-AU57","v":{"$error":"#VALUE!"}}]
[null,null,"Var O&M","EUR2011/year",{"$f":"E54*E50","v":0},{"$f":"F54*F50","v":0},{"$f":"F58-E58","v":0},{"$f":"H54*H50","v":0},{"$f":"I54*I50","v":0},{"$f":"I58-H58","v":0},{"$f":"K54*K50","v":0},{"$f":"L54*L50","v":0},{"$f":"L58-K58","v":0},{"$f":"N54*N50","v":0},{"$f":"O54*O50","v":0},{"$f":"O58-N58","v":0},{"$f":"Q54*Q50","v":0},{"$f":"R54*R50","v":0},{"$f":"R58-Q58","v":0},{"$f":"T54*T50","v":{"$error":"#VALUE!"}},{"$f":"U54*U50","v":{"$error":"#VALUE!"}},{"$f":"U58-T58","v":{"$error":"#VALUE!"}},{"$f":"W54*W50","v":{"$error":"#VALUE!"}},{"$f":"X54*X50","v":{"$error":"#VALUE!"}},{"$f":"X58-W58","v":{"$error":"#VALUE!"}},{"$f":"Z54*Z50","v":{"$error":"#VALUE!"}},{"$f":"AA54*AA50","v":{"$error":"#VALUE!"}},{"$f":"AA58-Z58","v":{"$error":"#VALUE!"}},{"$f":"AC54*AC50","v":{"$error":"#VALUE!"}},{"$f":"AD54*AD50","v":{"$error":"#VALUE!"}},{"$f":"AD58-AC58","v":{"$error":"#VALUE!"}},{"$f":"AF54*AF50","v":{"$error":"#VALUE!"}},{"$f":"AG54*AG50","v":{"$error":"#VALUE!"}},{"$f":"AG58-AF58","v":{"$error":"#VALUE!"}},{"$f":"AI54*AI50","v":{"$error":"#VALUE!"}},{"$f":"AJ54*AJ50","v":{"$error":"#VALUE!"}},{"$f":"AJ58-AI58","v":{"$error":"#VALUE!"}},{"$f":"AL54*AL50","v":{"$error":"#VALUE!"}},{"$f":"AM54*AM50","v":{"$error":"#VALUE!"}},{"$f":"AM58-AL58","v":{"$error":"#VALUE!"}},{"$f":"AO54*AO50","v":{"$error":"#VALUE!"}},{"$f":"AP54*AP50","v":{"$error":"#VALUE!"}},{"$f":"AP58-AO58","v":{"$error":"#VALUE!"}},{"$f":"AR54*AR50","v":{"$error":"#VALUE!"}},{"$f":"AS54*AS50","v":{"$error":"#VALUE!"}},{"$f":"AS58-AR58","v":{"$error":"#VALUE!"}},{"$f":"AU54*AU50","v":{"$error":"#VALUE!"}},{"$f":"AV54*AV50","v":{"$error":"#VALUE!"}},{"$f":"AV58-AU58","v":{"$error":"#VALUE!"}}]
[]
[null,"Total LCoEE","Levelized cost of energy efficiency","EUR2011/MWh",{"$f":"SUM(G56:G58)/(G50)","v":11.327549200855136},null,null,{"$f":"SUM(J56:J58)/(J50)","v":{"$error":"#NUM!"}},null,null,{"$f":"SUM(M56:M58)/(M50)","v":31.613484952522043},null,null,{"$f":"SUM(P56:P58)/(P50)","v":34.354676533540363},null,null,{"$f":"SUM(S56:S58)/(S50)","v":126.49447675158514},null,null,{"$f":"SUM(V56:V58)/(V50)","v":{"$error":"#VALUE!"}},null,null,{"$f":"SUM(Y56:Y58)/(Y50)","v":{"$error":"#VALUE!"}},null,null,{"$f":"SUM(AB56:AB58)/(AB50)","v":{"$error":"#VALUE!"}},null,null,{"$f":"SUM(AE56:AE58)/(AE50)","v":{"$error":"#VALUE!"}},null,null,{"$f":"SUM(AH56:AH58)/(AH50)","v":{"$error":"#VALUE!"}},null,null,{"$f":"SUM(AK56:AK58)/(AK50)","v":{"$error":"#VALUE!"}},null,null,{"$f":"SUM(AN56:AN58)/(AN50)","v":{"$error":"#VALUE!"}},null,null,{"$f":"SUM(AQ56:AQ58)/(AQ50)","v":{"$error":"#VALUE!"}},null,null,{"$f":"SUM(AT56:AT58)/(AT50)","v":{"$error":"#VALUE!"}},null,null,{"$f":"SUM(AW56:AW58)/(AW50)","v":{"$error":"#VALUE!"}}]
[null,"Technology specific notes and calculations",null,null,"Option 3: Both the motor and fan is replaced with a new system based on a direct driven fan with a permanent magnet motor and a VSD.",null,null,null,null,null,"A 22 kW motor with continous operation at 80 % load for 8000 hours per year is replaced by a \"High efficiency\" motor (IE2)",null,null,"Replacement of lighting solution with halogen lamps to LED lamps.",null,null,"A window in a domestic home is replaced by a new window with triple layer pane. Electricity consumption for electric heating in a temperate climate (DK)"]
[]
[]
[]
[]
[]
[null,"Overview (for graphical representation on the EEUserSettings&Results-sheet)",null,null,null,null,null,null,null,null,null,null,null,null,null,null,null,null,"Generation technologies (setup in 'UserSetting&Results')"]
[null,"Price adjustment ",{"$f":"VLOOKUP(\"Eeinput\",ScenarioDef,3,FALSE)","v":1.1310039154982301}]
[null,"Summary of the LCoEE-calculation including production cost results from the LCoE-calculation"]
[null,{"$f":"PriceYear&\"-\"&chosencurrency&\"/MWh\"","v":"2020-EUR/MWh"},null,{"$f":"E24","v":"Office ventilation"},{"$f":"H24","v":"Pumps"},{"$f":"K24","v":"Industrial electric motor"},{"$f":"N24","v":"Lighting in commercial buildings"},{"$f":"Q24","v":"Window in domestic building"},{"$f":"T24","v":"Technology 1"},{"$f":"W24","v":"Technology 2"},{"$f":"Z24","v":"Technology 3"},{"$f":"AC24","v":"Technology 4"},{"$f":"AF24","v":"Technology 5"},{"$f":"AI24","v":"Technology 6"},{"$f":"AL24","v":"Technology 7"},{"$f":"AO24","v":"Technology 8"},{"$f":"AR24","v":"Technology 9"},{"$f":"AU24","v":"Technology 10"},{"$f":"'UserSettings&Results'!D67","v":"25WIN_OF_in Offshore wind AC incl. Grid"},{"$f":"'UserSettings&Results'!E67","v":"25WIN_NS_in Nearshore wind incl. Grid"},{"$f":"'UserSettings&Results'!F67","v":"24WIN_ON_in Onshore wind incl. Grid"},{"$f":"'UserSettings&Results'!G67","v":"22PV_La_Utility scale PV"},{"$f":"'UserSettings&Results'!H67","v":"22PV_La_Utility scale PV_tracker"},{"$f":"'UserSettings&Results'!I67","v":"22PV_Me_roof commercial industrial"},{"$f":"'UserSettings&Results'!J67","v":"22PV_Sm_roof residential"},{"$f":"'UserSettings&Results'!K67","v":"18Me BP WPE in_st 80 MW input, woodpellets storage for 10 days  "},{"$f":"'UserSettings&Results'!L67","v":"18Me BP WCH in_st 80 MW input, woodchips storage for 10 days  "},{"$f":"'UserSettings&Results'!M67","v":"16La REF_EX  WCH_COA_Newboi_ no_inv_exipla Wood chips CHP refurb.  \nCoal plants, new Boiler, no invest cost for existing plant "},{"$f":"'UserSettings&Results'!N67","v":"16La REF_EX WCH_COA_exi_exibo_no_inv_exipla Wood chips CHP refurb.  \nCoal plants, existing boiler, no invest cost for existing plant "},{"$f":"'UserSettings&Results'!O67","v":"17La_EX_COA CHP coal 400-700 MWwe"},{"$f":"'UserSettings&Results'!P67","v":"16 La EX LTE COA no_inv_exipla  - Coal CHP Life time extension of coal power plant no invest cost for existing plant "},{"$f":"'UserSettings&Results'!Q67","v":"16La EX CC NGA CC large CHP Gas Turbine combined Cycle natural Gas  \n"},{"$f":"'UserSettings&Results'!R67","v":"Nuclear INT"},{"$f":"'UserSettings&Results'!S67","v":"Coal FGD INT"},{"$f":"'UserSettings&Results'!T67","v":"Natural gas CCGT INT"},{"$f":"'UserSettings&Results'!U67","v":"19WIN_ON_in Onshore wind incl. Grid"},{"$f":"'UserSettings&Results'!V67","v":0},{"$f":"'UserSettings&Results'!W67","v":0},{"$f":"'UserSettings&Results'!X67","v":0},{"$f":"'UserSettings&Results'!Y67","v":0},{"$f":"'UserSettings&Results'!Z67","v":0},{"$f":"'UserSettings&Results'!AA67","v":0},{"$f":"'UserSettings&Results'!AB67","v":0},{"$f":"'UserSettings&Results'!AC67","v":0},{"$f":"'UserSettings&Results'!AD67","v":0}]
[null,null,"Maximum",{"$f":"IF(ISNUMBER(E60),MAX(E60,E38),IF(ISNUMBER(E38),0,E60))*$C$68","v":12.811502499166007},{"$f":"IF(ISNUMBER(H60),MAX(H60,H38),IF(ISNUMBER(H38),0,H60))*$C$68","v":0},{"$f":"IF(ISNUMBER(K60),MAX(K60,K38),IF(ISNUMBER(K38),0,K60))*$C$68","v":35.754975263846809},{"$f":"IF(ISNUMBER(N60),MAX(N60,N38),IF(ISNUMBER(N38),0,N60))*$C$68","v":155.42109470043727},{"$f":"IF(ISNUMBER(Q60),MAX(Q60,Q38),IF(ISNUMBER(Q38),0,Q60))*$C$68","v":143.06574849494262},{"$f":"IF(ISNUMBER(T60),MAX(T60,T38),IF(ISNUMBER(T38),0,T60))*$C$68","v":{"$error":"#VALUE!"}},{"$f":"IF(ISNUMBER(W60),MAX(W60,W38),IF(ISNUMBER(W38),0,W60))*$C$68","v":{"$error":"#VALUE!"}},{"$f":"IF(ISNUMBER(Z60),MAX(Z60,Z38),IF(ISNUMBER(Z38),0,Z60))*$C$68","v":{"$error":"#VALUE!"}},{"$f":"IF(ISNUMBER(AC60),MAX(AC60,AC38),IF(ISNUMBER(AC38),0,AC60))*$C$68","v":{"$error":"#VALUE!"}},{"$f":"IF(ISNUMBER(AF60),MAX(AF60,AF38),IF(ISNUMBER(AF38),0,AF60))*$C$68","v":{"$error":"#VALUE!"}},{"$f":"IF(ISNUMBER(AI60),MAX(AI60,AI38),IF(ISNUMBER(AI38),0,AI60))*$C$68","v":{"$error":"#VALUE!"}},{"$f":"IF(ISNUMBER(AL60),MAX(AL60,AL38),IF(ISNUMBER(AL38),0,AL60))*$C$68","v":{"$error":"#VALUE!"}},{"$f":"IF(ISNUMBER(AO60),MAX(AO60,AO38),IF(ISNUMBER(AO38),0,AO60))*$C$68","v":{"$error":"#VALUE!"}},{"$f":"IF(ISNUMBER(AR60),MAX(AR60,AR38),IF(ISNUMBER(AR38),0,AR60))*$C$68","v":{"$error":"#VALUE!"}},{"$f":"IF(ISNUMBER(AU60),MAX(AU60,AU38),IF(ISNUMBER(AU38),0,AU60))*$C$68","v":{"$error":"#VALUE!"}}]
[null,null,"Minimum",{"$f":"IF(ISNUMBER(E60),MIN(E60,E38),E38)*$C$68","v":5.2764324032768943},{"$f":"IF(ISNUMBER(H60),MIN(H60,H38),H38)*$C$68","v":41.164844028746096},{"$f":"IF(ISNUMBER(K60),MIN(K60,K38),K38)*$C$68","v":26.236955297222075},{"$f":"IF(ISNUMBER(N60),MIN(N60,N38),N38)*$C$68","v":38.855273675109316},{"$f":"IF(ISNUMBER(Q60),MIN(Q60,Q38),Q38)*$C$68","v":141.38023704506298},{"$f":"IF(ISNUMBER(T60),MIN(T60,T38),T38)*$C$68","v":{"$error":"#VALUE!"}},{"$f":"IF(ISNUMBER(W60),MIN(W60,W38),W38)*$C$68","v":{"$error":"#VALUE!"}},{"$f":"IF(ISNUMBER(Z60),MIN(Z60,Z38),Z38)*$C$68","v":{"$error":"#VALUE!"}},{"$f":"IF(ISNUMBER(AC60),MIN(AC60,AC38),AC38)*$C$68","v":{"$error":"#VALUE!"}},{"$f":"IF(ISNUMBER(AF60),MIN(AF60,AF38),AF38)*$C$68","v":{"$error":"#VALUE!"}},{"$f":"IF(ISNUMBER(AI60),MIN(AI60,AI38),AI38)*$C$68","v":{"$error":"#VALUE!"}},{"$f":"IF(ISNUMBER(AL60),MIN(AL60,AL38),AL38)*$C$68","v":{"$error":"#VALUE!"}},{"$f":"IF(ISNUMBER(AO60),MIN(AO60,AO38),AO38)*$C$68","v":{"$error":"#VALUE!"}},{"$f":"IF(ISNUMBER(AR60),MIN(AR60,AR38),AR38)*$C$68","v":{"$error":"#VALUE!"}},{"$f":"IF(ISNUMBER(AU60),MIN(AU60,AU38),AU38)*$C$68","v":{"$error":"#VALUE!"}}]
[null,null,"Interval (max-min)",{"$f":"IF(D71=0,0.5,ABS(ABS(D71)-ABS(D72)))","v":7.5350700958891128},0.5,9.5180199666247347,116.56582102532795,1.6855114498796411,{"$error":"#VALUE!"},{"$error":"#VALUE!"},{"$error":"#VALUE!"},{"$error":"#VALUE!"},{"$error":"#VALUE!"},{"$error":"#VALUE!"},{"$error":"#VALUE!"},{"$error":"#VALUE!"},{"$error":"#VALUE!"},{"$error":"#VALUE!"}]
[null,null,"Production-cost (LCoE)",null,null,null,null,null,null,null,null,null,null,null,null,null,null,null,{"$f":"'UserSettings&Results'!D77","v":41.312425999814174},{"$f":"'UserSettings&Results'!E77","v":33.086155949067063},{"$f":"'UserSettings&Results'!F77","v":24.378010731392585},{"$f":"'UserSettings&Results'!G77","v":18.617961175982565},{"$f":"'UserSettings&Results'!H77","v":18.598278786782075},{"$f":"'UserSettings&Results'!I77","v":32.535589091094323},{"$f":"'UserSettings&Results'!J77","v":43.00097496649726},{"$f":"'UserSettings&Results'!K77","v":153.40600457977112},{"$f":"'UserSettings&Results'!L77","v":143.62151068134932},{"$f":"'UserSettings&Results'!M77","v":107.02606175033152},{"$f":"'UserSettings&Results'!N77","v":113.20783136085539},{"$f":"'UserSettings&Results'!O77","v":114.28028131032252},{"$f":"'UserSettings&Results'!P77","v":91.313537194693978},{"$f":"'UserSettings&Results'!Q77","v":99.21215832746833},{"$f":"'UserSettings&Results'!R77","v":52.890305863177566},{"$f":"'UserSettings&Results'!S77","v":185.06597320517514},{"$f":"'UserSettings&Results'!T77","v":115.48186892523731},{"$f":"'UserSettings&Results'!U77","v":22.447176179745018},{"$f":"'UserSettings&Results'!V77","v":""},{"$f":"'UserSettings&Results'!W77","v":""},{"$f":"'UserSettings&Results'!X77","v":""},{"$f":"'UserSettings&Results'!Y77","v":""},{"$f":"'UserSettings&Results'!Z77","v":""},{"$f":"'UserSettings&Results'!AA77","v":""},{"$f":"'UserSettings&Results'!AB77","v":""},{"$f":"'UserSettings&Results'!AC77","v":""},{"$f":"'UserSettings&Results'!AD77","v":""}]
[null,null,"Grid costs",null,null,null,null,null,null,null,null,null,null,null,null,null,null,null,{"$f":"IF('EEUserSettings&Results'!$F$28=\"Small entre-prise/private household\",Gridcosts_ho,Gridcosts_in)*$C$68","v":56.550195774911508},{"$f":"IF('EEUserSettings&Results'!$F$28=\"Small entre-prise/private household\",Gridcosts_ho,Gridcosts_in)*$C$68","v":56.550195774911508},{"$f":"IF('EEUserSettings&Results'!$F$28=\"Small entre-prise/private household\",Gridcosts_ho,Gridcosts_in)*$C$68","v":56.550195774911508},{"$f":"IF('EEUserSettings&Results'!$F$28=\"Small entre-prise/private household\",Gridcosts_ho,Gridcosts_in)*$C$68","v":56.550195774911508},{"$f":"IF('EEUserSettings&Results'!$F$28=\"Small entre-prise/private household\",Gridcosts_ho,Gridcosts_in)*$C$68","v":56.550195774911508},{"$f":"IF('EEUserSettings&Results'!$F$28=\"Small entre-prise/private household\",Gridcosts_ho,Gridcosts_in)*$C$68","v":56.550195774911508},{"$f":"IF('EEUserSettings&Results'!$F$28=\"Small entre-prise/private household\",Gridcosts_ho,Gridcosts_in)*$C$68","v":56.550195774911508},{"$f":"IF('EEUserSettings&Results'!$F$28=\"Small entre-prise/private household\",Gridcosts_ho,Gridcosts_in)*$C$68","v":56.550195774911508},{"$f":"IF('EEUserSettings&Results'!$F$28=\"Small entre-prise/private household\",Gridcosts_ho,Gridcosts_in)*$C$68","v":56.550195774911508},{"$f":"IF('EEUserSettings&Results'!$F$28=\"Small entre-prise/private household\",Gridcosts_ho,Gridcosts_in)*$C$68","v":56.550195774911508},{"$f":"IF('EEUserSettings&Results'!$F$28=\"Small entre-prise/private household\",Gridcosts_ho,Gridcosts_in)*$C$68","v":56.550195774911508},{"$f":"IF('EEUserSettings&Results'!$F$28=\"Small entre-prise/private household\",Gridcosts_ho,Gridcosts_in)*$C$68","v":56.550195774911508},{"$f":"IF('EEUserSettings&Results'!$F$28=\"Small entre-prise/private household\",Gridcosts_ho,Gridcosts_in)*$C$68","v":56.550195774911508},{"$f":"IF('EEUserSettings&Results'!$F$28=\"Small entre-prise/private household\",Gridcosts_ho,Gridcosts_in)*$C$68","v":56.550195774911508},{"$f":"IF('EEUserSettings&Results'!$F$28=\"Small entre-prise/private household\",Gridcosts_ho,Gridcosts_in)*$C$68","v":56.550195774911508},{"$f":"IF('EEUserSettings&Results'!$F$28=\"Small entre-prise/private household\",Gridcosts_ho,Gridcosts_in)*$C$68","v":56.550195774911508},{"$f":"IF('EEUserSettings&Results'!$F$28=\"Small entre-prise/private household\",Gridcosts_ho,Gridcosts_in)*$C$68","v":56.550195774911508},{"$f":"IF('EEUserSettings&Results'!$F$28=\"Small entre-prise/private household\",Gridcosts_ho,Gridcosts_in)*$C$68","v":56.550195774911508},{"$f":"IF('EEUserSettings&Results'!$F$28=\"Small entre-prise/private household\",Gridcosts_ho,Gridcosts_in)*$C$68","v":56.550195774911508},{"$f":"IF('EEUserSettings&Results'!$F$28=\"Small entre-prise/private household\",Gridcosts_ho,Gridcosts_in)*$C$68","v":56.550195774911508},{"$f":"IF('EEUserSettings&Results'!$F$28=\"Small entre-prise/private household\",Gridcosts_ho,Gridcosts_in)*$C$68","v":56.550195774911508},{"$f":"IF('EEUserSettings&Results'!$F$28=\"Small entre-prise/private household\",Gridcosts_ho,Gridcosts_in)*$C$68","v":56.550195774911508},{"$f":"IF('EEUserSettings&Results'!$F$28=\"Small entre-prise/private household\",Gridcosts_ho,Gridcosts_in)*$C$68","v":56.550195774911508},{"$f":"IF('EEUserSettings&Results'!$F$28=\"Small entre-prise/private household\",Gridcosts_ho,Gridcosts_in)*$C$68","v":56.550195774911508},{"$f":"IF('EEUserSettings&Results'!$F$28=\"Small entre-prise/private household\",Gridcosts_ho,Gridcosts_in)*$C$68","v":56.550195774911508},{"$f":"IF('EEUserSettings&Results'!$F$28=\"Small entre-prise/private household\",Gridcosts_ho,Gridcosts_in)*$C$68","v":56.550195774911508},{"$f":"IF('EEUserSettings&Results'!$F$28=\"Small entre-prise/private household\",Gridcosts_ho,Gridcosts_in)*$C$68","v":56.550195774911508}]

{"sheet":"DataLog","index":10,"n_rows":28,"n_cols":84,"rows_kept":28,"cut":false,"hidden":true,"merged":[]}
[]
[null,null,"Log for changes in data"]
[]
[null,null,"Instructions"]
[]
[null,null,"This sheet is only used for logging data, in order to keep track of historical data. It should not be changed manually!"]
[]
[null,null,"When a changes is made/new technology is added in the 'TechData' sheet, the changes/ammendments should be logged by pressing the 'log'-button below. Can also be accessed by pressing ctrl-L "]
[null,null,"The sheet automatically finds changes made and adds these changes as a new line in the bottom of the log. "]
[]
[]
[]
[]
[]
[null,null,"Log"]
[]
[]
[null,null,"Counting and adjusting values "]
[null,null,"Number of logs",{"$f":"SUM(A30:A1048576)","v":0}]
[]
[]
[]
[]
[null,null,null,null,null,null,null,null,null,null,null,null,null,null,null,null,null,null,null,null,null,null,null,null,null,null,null,null,null,null,null,null,null,null,null,null,null,null,null,null,null,null,null,null,null,null,null,null,"Data from last log"]
[null,null,null,null,null,null,null,null,null,null,null,null,null,null,null,null,null,null,null,null,null,null,null,null,null,null,null,null,null,null,null,null,null,null,null,null,null,null,null,null,null,null,null,null,null,null,null,null,"Last log date","2018-11-14"]
["Changes",null,null,null,null,null,null,null,null,null,null,null,null,null,null,null,null,null,null,null,null,null,null,null,null,null,null,null,null,null,null,null,null,null,null,null,null,null,null,null,null,null,null,null,null,null,null,null,"TechBase"]
["Log counter","Log Date","Log value and new value",{"$f":"TechData!G62","v":"Technology"},{"$f":"TechData!H62","v":"Source name"},{"$f":"TechData!I62","v":"Year"},{"$f":"TechData!J62","v":"Combined heat and power (CHP)"},{"$f":"TechData!K62","v":"Fuel"},{"$f":"TechData!L62","v":"Investment"},{"$f":"TechData!M62","v":"Grid investment"},{"$f":"TechData!N62","v":"Fixed O&M"},{"$f":"TechData!O62","v":"Var. O&M"},{"$f":"TechData!P62","v":"Other costs"},{"$f":"TechData!Q62","v":"CV"},{"$f":"TechData!R62","v":"CB"},{"$f":"TechData!S62","v":"Total efficiency"},{"$f":"TechData!T62","v":"Electric efficiency condensing"},{"$f":"TechData!U62","v":"Electric efficiency CHP"},{"$f":"TechData!V62","v":"Heat efficiency"},{"$f":"TechData!W62","v":"Full load hours"},{"$f":"TechData!X62","v":"Profile costs"},{"$f":"TechData!Y62","v":"Balancing costs"},{"$f":"TechData!Z62","v":"Condensing ratio"},{"$f":"TechData!AA62","v":"Technical lifetime"},{"$f":"TechData!AB62","v":"Construction time"},{"$f":"TechData!AC62","v":"Desulphur"},{"$f":"TechData!AD62","v":"Emission factor NOx"},{"$f":"TechData!AE62","v":"Emission factor CH4"},{"$f":"TechData!AF62","v":"Emission factor N2O"},{"$f":"TechData!AG62","v":"Emission factor PM2,5"},{"$f":"TechData!AH62","v":"Geography"},{"$f":"TechData!AI62","v":"Date for data input/update"},{"$f":"TechData!AJ62","v":"Desk officer"},{"$f":"TechData!AK62","v":"QA date"},{"$f":"TechData!AL62","v":"QA officer"},{"$f":"TechData!AM62","v":"Reference"},{"$f":"TechData!AN62","v":"Price year in reference"},{"$f":"TechData!AO62","v":"Currency in reference"},"Comment","Desk officer for log","Comment for log",null,null,null,null,null,null,null,"Technology","Source name","Year","Combined heat and power (CHP)","Fuel","Investment","Grid investment","Fixed O&M","Var. O&M","Other costs","CV","CB","Total efficiency","Electric efficiency condensing","Electric efficiency CHP","Heat efficiency","Full load hours","Profile costs","Balancing costs","Condensing ratio","Technical lifetime","Construction time","Desulphur","Emission factor NOx","Emission factor CH4","Emission factor N2O","Emission factor PM2,5","Geography","Date for data input/update","Desk officer","QA date","QA officer","Reference","Price year in reference","Currency in reference","Comment"]
[null,null,null,{"$f":"IF(TechData!G63=\"\",\"\",TechData!G63)","v":""},{"$f":"IF(TechData!H63=\"\",\"\",TechData!H63)","v":""},{"$f":"IF(TechData!I63=\"\",\"\",TechData!I63)","v":""},{"$f":"IF(TechData!J63=\"\",\"\",TechData!J63)","v":""},{"$f":"IF(TechData!K63=\"\",\"\",TechData!K63)","v":""},{"$f":"IF(TechData!L63=\"\",\"\",TechData!L63)","v":"mio.EUR/MW"},{"$f":"IF(TechData!M63=\"\",\"\",TechData!M63)","v":"mio.EUR/MW"},{"$f":"IF(TechData!N63=\"\",\"\",TechData!N63)","v":"EUR/MW/år"},{"$f":"IF(TechData!O63=\"\",\"\",TechData!O63)","v":"EUR/MWh"},{"$f":"IF(TechData!P63=\"\",\"\",TechData!P63)","v":"EUR/MWh"},{"$f":"IF(TechData!Q63=\"\",\"\",TechData!Q63)","v":""},{"$f":"IF(TechData!R63=\"\",\"\",TechData!R63)","v":""},{"$f":"IF(TechData!S63=\"\",\"\",TechData!S63)","v":""},{"$f":"IF(TechData!T63=\"\",\"\",TechData!T63)","v":""},{"$f":"IF(TechData!U63=\"\",\"\",TechData!U63)","v":""},{"$f":"IF(TechData!V63=\"\",\"\",TechData!V63)","v":""},{"$f":"IF(TechData!W63=\"\",\"\",TechData!W63)","v":""},{"$f":"IF(TechData!X63=\"\",\"\",TechData!X63)","v":"EUR/MWh"},{"$f":"IF(TechData!Y63=\"\",\"\",TechData!Y63)","v":"EUR/MWh"},{"$f":"IF(TechData!Z63=\"\",\"\",TechData!Z63)","v":""},{"$f":"IF(TechData!AA63=\"\",\"\",TechData!AA63)","v":"years"},{"$f":"IF(TechData!AB63=\"\",\"\",TechData!AB63)","v":"years"},{"$f":"IF(TechData!AC63=\"\",\"\",TechData!AC63)","v":"%"},{"$f":"IF(TechData!AD63=\"\",\"\",TechData!AD63)","v":"g/GJ fuel"},{"$f":"IF(TechData!AE63=\"\",\"\",TechData!AE63)","v":"g/GJ fuel"},{"$f":"IF(TechData!AF63=\"\",\"\",TechData!AF63)","v":"g/GJ fuel"},{"$f":"IF(TechData!AG63=\"\",\"\",TechData!AG63)","v":"g/GJ fuel"},{"$f":"IF(TechData!AH63=\"\",\"\",TechData!AH63)","v":""},{"$f":"IF(TechData!AI63=\"\",\"\",TechData!AI63)","v":""},{"$f":"IF(TechData!AJ63=\"\",\"\",TechData!AJ63)","v":""},null,null,{"$f":"IF(TechData!AM63=\"\",\"\",TechData!AM63)","v":""},{"$f":"IF(TechData!AN63=\"\",\"\",TechData!AN63)","v":""},{"$f":"IF(TechData!AO63=\"\",\"\",TechData!AO63)","v":""},null,null,null,null,null,null,null,null,null,null,null,null,null,null,null,"M. EUR/MW","M. EUR/MW","EUR/MW/year","EUR/MWh/year","EUR/MWh",null,null,null,null,null,null,null,"EUR/MWh","EUR/MWh","%","years","years","%","g/GJ fuel","g/GJ fuel","g/GJ fuel","g/GJ fuel"]

{"sheet":"OldData","index":11,"n_rows":3513,"n_cols":42,"rows_kept":2250,"cut":true,"hidden":true,"merged":[],"bounds":{"rows_first":1000,"rows_last":250,"rows_between":1000,"halvings":1}}
[]
[null,null,null,null,null,null,"Old tech data - should not be changed!"]
[]
[null,null,null,null,null,null,"User instruction"]
[null,null,null,null,null,null,"In this sheet all the old data for the power generation technologies are listed. The data is kept to keep track of the historical development of the data."]
[null,null,null,null,null,null,"The technology names equal the original technology name appended the date, when the technology definitions were updated (logged in DataLog)"]
[]
[null,null,null,null,null,null,"No changes should be made in this sheet. The list of technologies is created from the DataLog"]
[]
[]
[]
[]
[]
[]
[]
[]
[null,null,null,null,null,null,"Applied data in the calculation"]
[]
[null,null,null,null,null,null,"Settings set in:"]
[null,null,null,null,null,null,"(Used to look up the data corresponding to chosen price scenario and price year"]
[null,null,null,null,null,null,"Current scenario","Standard"]
[null,null,null,null,null,null,"Price year",{"$f":"PriceYear","v":2020}]
[null,null,null,null,null,null,"Currency",{"$f":"chosencurrency","v":"EUR"}]
[]
[]
[null,null,null,null,null,null,"Applied data in the calculation sheet (this table displays the applied technical data according to technology year and price year)"]
[null,null,{"$f":"TechData!C27","v":"Tech scenario"},{"$f":"TechData!D27","v":"Full Name"},{"$f":"TechData!E27","v":"Row for lookup"},{"$f":"TechData!F27","v":"Adjustment for price level"},{"$f":"TechData!G27","v":"Technology"},{"$f":"TechData!H27","v":"Source name"},{"$f":"TechData!I27","v":"Year"},{"$f":"TechData!J27","v":"Combined heat and power (CHP)"},{"$f":"TechData!K27","v":"Fuel"},{"$f":"TechData!L27","v":"Investment"},{"$f":"TechData!M27","v":"Grid investment"},{"$f":"TechData!N27","v":"Fixed O&M"},{"$f":"TechData!O27","v":"Var. O&M"},{"$f":"TechData!P27","v":"Other costs"},{"$f":"TechData!Q27","v":"CV"},{"$f":"TechData!R27","v":"CB"},{"$f":"TechData!S27","v":"Total efficiency"},{"$f":"TechData!T27","v":"Electric efficiency condensing"},{"$f":"TechData!U27","v":"Electric efficiency CHP"},{"$f":"TechData!V27","v":"Heat efficiency"},{"$f":"TechData!W27","v":"Full load hours"},{"$f":"TechData!X27","v":"Profile costs"},{"$f":"TechData!Y27","v":"Balancing costs"},{"$f":"TechData!Z27","v":"Condensing ratio"},{"$f":"TechData!AA27","v":"Technical lifetime"},{"$f":"TechData!AB27","v":"Construction time"},{"$f":"TechData!AC27","v":"Desulphur"},{"$f":"TechData!AD27","v":"Emission factor NOx"},{"$f":"TechData!AE27","v":"Emission factor CH4"},{"$f":"TechData!AF27","v":"Emission factor N2O"},{"$f":"TechData!AG27","v":"Emission factor PM2,5"},{"$f":"TechData!AH27","v":"Geography"},{"$f":"TechData!AI27","v":"Date for data input/update"},{"$f":"TechData!AJ27","v":"Desk officer"},{"$f":"TechData!AK27","v":"QA date"},{"$f":"TechData!AL27","v":"QA officer"},{"$f":"TechData!AM27","v":"Reference"},{"$f":"TechData!AN27","v":"Price year in reference"},{"$f":"TechData!AO27","v":"Currency in reference"},{"$f":"TechData!AP27","v":"Comment"}]
[null,null,null,{"$f":"IF(TechData!D28=\"\",\"\",TechData!D28)","v":""},null,null,{"$f":"IF(TechData!G28=\"\",\"\",TechData!G28)","v":""},{"$f":"IF(TechData!H28=\"\",\"\",TechData!H28)","v":""},{"$f":"IF(TechData!I28=\"\",\"\",TechData!I28)","v":""},{"$f":"IF(TechData!J28=\"\",\"\",TechData!J28)","v":""},{"$f":"IF(TechData!K28=\"\",\"\",TechData!K28)","v":""},{"$f":"IF(TechData!L28=\"\",\"\",TechData!L28)","v":"mio.EUR/MW"},{"$f":"IF(TechData!M28=\"\",\"\",TechData!M28)","v":"mio.EUR/MW"},{"$f":"IF(TechData!N28=\"\",\"\",TechData!N28)","v":"EUR/MW/år"},{"$f":"IF(TechData!O28=\"\",\"\",TechData!O28)","v":"EUR/MWh"},{"$f":"IF(TechData!P28=\"\",\"\",TechData!P28)","v":"EUR/MWh"},{"$f":"IF(TechData!Q28=\"\",\"\",TechData!Q28)","v":""},{"$f":"IF(TechData!R28=\"\",\"\",TechData!R28)","v":""},{"$f":"IF(TechData!S28=\"\",\"\",TechData!S28)","v":""},{"$f":"IF(TechData!T28=\"\",\"\",TechData!T28)","v":""},{"$f":"IF(TechData!U28=\"\",\"\",TechData!U28)","v":""},{"$f":"IF(TechData!V28=\"\",\"\",TechData!V28)","v":""},{"$f":"IF(TechData!W28=\"\",\"\",TechData!W28)","v":""},{"$f":"IF(TechData!X28=\"\",\"\",TechData!X28)","v":"EUR/MWh"},{"$f":"IF(TechData!Y28=\"\",\"\",TechData!Y28)","v":"EUR/MWh"},{"$f":"IF(TechData!Z28=\"\",\"\",TechData!Z28)","v":""},{"$f":"IF(TechData!AA28=\"\",\"\",TechData!AA28)","v":"years"},{"$f":"IF(TechData!AB28=\"\",\"\",TechData!AB28)","v":"years"},{"$f":"IF(TechData!AC28=\"\",\"\",TechData!AC28)","v":"%"},{"$f":"IF(TechData!AD28=\"\",\"\",TechData!AD28)","v":"g/GJ fuel"},{"$f":"IF(TechData!AE28=\"\",\"\",TechData!AE28)","v":"g/GJ fuel"},{"$f":"IF(TechData!AF28=\"\",\"\",TechData!AF28)","v":"g/GJ fuel"},{"$f":"IF(TechData!AG28=\"\",\"\",TechData!AG28)","v":"g/GJ fuel"},{"$f":"IF(TechData!AH28=\"\",\"\",TechData!AH28)","v":""},{"$f":"IF(TechData!AI28=\"\",\"\",TechData!AI28)","v":""},{"$f":"IF(TechData!AJ28=\"\",\"\",TechData!AJ28)","v":""},null,null,{"$f":"IF(TechData!AM28=\"\",\"\",TechData!AM28)","v":""}]
[null,null,null,null,null,null,null,null,null,{"$f":"TechData!J29","v":"Text"},{"$f":"TechData!K29","v":"Text"},{"$f":"TechData!L29","v":"Economy"},{"$f":"TechData!M29","v":"Economy"},{"$f":"TechData!N29","v":"Economy"},{"$f":"TechData!O29","v":"Economy"},{"$f":"TechData!P29","v":"Economy"},{"$f":"TechData!Q29","v":"Technical"},{"$f":"TechData!R29","v":"Technical"},{"$f":"TechData!S29","v":"Technical"},{"$f":"TechData!T29","v":"Technical"},{"$f":"TechData!U29","v":"Technical"},{"$f":"TechData!V29","v":"Technical"},{"$f":"TechData!W29","v":"Technical"},{"$f":"TechData!X29","v":"Economy"},{"$f":"TechData!Y29","v":"Economy"},{"$f":"TechData!Z29","v":"Technical"},{"$f":"TechData!AA29","v":"Technical"},{"$f":"TechData!AB29","v":"Technical"},{"$f":"TechData!AC29","v":"Technical"},{"$f":"TechData!AD29","v":"Technical"},{"$f":"TechData!AE29","v":"Technical"},{"$f":"TechData!AF29","v":"Technical"},{"$f":"TechData!AG29","v":"Technical"},{"$f":"TechData!AH29","v":"Text"},{"$f":"TechData!AI29","v":"Text"},{"$f":"TechData!AJ29","v":"Text"},{"$f":"TechData!AK29","v":"Text"},{"$f":"TechData!AL29","v":"Text"},{"$f":"TechData!AM29","v":"Text"},{"$f":"TechData!AN29","v":"Technical"},{"$f":"TechData!AO29","v":"Text"},{"$f":"TechData!AP29","v":"Text"}]
[null,null,null,null,null,null,null,null,null,{"$f":"COLUMN(J$28)-COLUMN($D$28)+1","v":7},8,9,10,11,12,13,14,15,16,17,18,19,20,21,22,23,24,25,26,27,28,29,30,31,32,33,34,35,36,37,38,39]
[null,null,{"$f":"$H$21","v":"Standard"},{"$f":"C31&\" - \"&G31&\" - \"&I31","v":"Standard - 25WIN_OF_in Offshore wind AC incl. Grid - 2030"},{"$f":"IFERROR(MATCH(D31,INDEX(OldDataGross,,1),0),\"\")","v":""},{"$f":"IFERROR(VLOOKUP(PriceYear,PriceAdjust,2,FALSE)/VLOOKUP(AN31,PriceAdjust,2,FALSE)*VLOOKUP(chosencurrency,Currency,2,FALSE)/VLOOKUP(AO31,Currency,2,FALSE),\"\")","v":""},{"$f":"TRANSPOSE(CalcTech)","v":"25WIN_OF_in Offshore wind AC incl. Grid"},null,{"$f":"TRANSPOSE(CalcTechYear)","v":2030},{"$f":"IFERROR(IF(J$29=\"Text\",INDEX(OldDataGross,$E31,J$30),INDEX(OldDataGross,$E31,J$30)*IF(J$29=\"Economy\",$F31,1)),\"\")","v":""},"","","","","","","","","",{"$f":"IFERROR(IF(T$29=\"Text\",INDEX(OldDataGross,$E31,T$30),INDEX(OldDataGross,$E31,T$30)*IF(T$29=\"Economy\",$F31,1)),\"\")","v":""},"","","","","","","","","",{"$f":"IFERROR(IF(AD$29=\"Text\",INDEX(OldDataGross,$E31,AD$30),INDEX(OldDataGross,$E31,AD$30)*IF(AD$29=\"Economy\",$F31,1)),\"\")","v":""},"","","","","","","","","","","",""]
[null,null,"Standard","Standard - 25WIN_NS_in Nearshore wind incl. Grid - 2030","","","25WIN_NS_in Nearshore wind incl. Grid",null,2030,"","","","","","","","","","","","","","","","","","","","","","","","","","","","","","","","",""]
[null,null,"Standard","Standard - 24WIN_ON_in Onshore wind incl. Grid - 2030","","","24WIN_ON_in Onshore wind incl. Grid",null,2030,"","","","","","","","","","","","","","","","","","","","","","","","","","","","","","","","",""]
[null,null,"Standard","Standard - 22PV_La_Utility scale PV - 2030","","","22PV_La_Utility scale PV",null,2030,"","","","","","","","","","","","","","","","","","","","","","","","","","","","","","","","",""]
[null,null,"Standard","Standard - 22PV_La_Utility scale PV_tracker - 2030","","","22PV_La_Utility scale PV_tracker",null,2030,"","","","","","","","","","","","","","","","","","","","","","","","","","","","","","","","",""]
[null,null,"Standard","Standard - 22PV_Me_roof commercial industrial - 2030","","","22PV_Me_roof commercial industrial",null,2030,"","","","","","","","","","","","","","","","","","","","","","","","","","","","","","","","",""]
[null,null,"Standard","Standard - 22PV_Sm_roof residential - 2030","",{"$f":"IFERROR(VLOOKUP(PriceYear,PriceAdjust,2,FALSE)/VLOOKUP(AN37,PriceAdjust,2,FALSE)*VLOOKUP(chosencurrency,Currency,2,FALSE)/VLOOKUP(AO37,Currency,2,FALSE),\"\")","v":""},"22PV_Sm_roof residential",null,2030,"","","","","","","","","","","","","","","","","","","","","","","","","","","","","","","","",""]
[null,null,"Standard","Standard - 18Me BP WPE in_st 80 MW input, woodpellets storage for 10 days   - 2030","","","18Me BP WPE in_st 80 MW input, woodpellets storage for 10 days  ",null,2030,"","","","","","","","","","","","","","","","","","","","","","","","","","","","","","","","",""]
[null,null,"Standard","Standard - 18Me BP WCH in_st 80 MW input, woodchips storage for 10 days   - 2030","","","18Me BP WCH in_st 80 MW input, woodchips storage for 10 days  ",null,2030,"","","","","","","","","","","","","","","","","","","","","","","","","","","","","","","","",""]
[null,null,"Standard","Standard - 16La REF_EX  WCH_COA_Newboi_ no_inv_exipla Wood chips CHP refurb.  \nCoal plants, new Boiler, no invest cost for existing plant  - 2030","","","16La REF_EX  WCH_COA_Newboi_ no_inv_exipla Wood chips CHP refurb.  \nCoal plants, new Boiler, no invest cost for existing plant ",null,2030,"","","","","","","","","","","","","","","","","","","","","","","","","","","","","","","","",""]
[null,null,"Standard","Standard - 16La REF_EX WCH_COA_exi_exibo_no_inv_exipla Wood chips CHP refurb.  \nCoal plants, existing boiler, no invest cost for existing plant  - 2030","","","16La REF_EX WCH_COA_exi_exibo_no_inv_exipla Wood chips CHP refurb.  \nCoal plants, existing boiler, no invest cost for existing plant ",null,2030,{"$f":"IFERROR(IF(J$29=\"Text\",INDEX(OldDataGross,$E41,J$30),INDEX(OldDataGross,$E41,J$30)*IF(J$29=\"Economy\",$F41,1)),\"\")","v":""},"","","","","","","","","",{"$f":"IFERROR(IF(T$29=\"Text\",INDEX(OldDataGross,$E41,T$30),INDEX(OldDataGross,$E41,T$30)*IF(T$29=\"Economy\",$F41,1)),\"\")","v":""},"","","","","","","","","",{"$f":"IFERROR(IF(AD$29=\"Text\",INDEX(OldDataGross,$E41,AD$30),INDEX(OldDataGross,$E41,AD$30)*IF(AD$29=\"Economy\",$F41,1)),\"\")","v":""},"","","","","","","","","","","",""]
[null,null,"Standard","Standard - 17La_EX_COA CHP coal 400-700 MWwe - 2030","","","17La_EX_COA CHP coal 400-700 MWwe",null,2030,"","","","","","","","","","","","","","","","","","","","","","","","","","","","","","","","",""]
[null,null,"Standard","Standard - 16 La EX LTE COA no_inv_exipla  - Coal CHP Life time extension of coal power plant no invest cost for existing plant  - 2030","","","16 La EX LTE COA no_inv_exipla  - Coal CHP Life time extension of coal power plant no invest cost for existing plant ",null,2030,"","","","","","","","","","","","","","","","","","","","","","","","","","","","","","","","",""]
[null,null,"Standard","Standard - 16La EX CC NGA CC large CHP Gas Turbine combined Cycle natural Gas  \n - 2030","","","16La EX CC NGA CC large CHP Gas Turbine combined Cycle natural Gas  \n",null,2030,"","","","","","","","","","","","","","","","","","","","","","","","","","","","","","","","",""]
[null,null,"Standard","Standard - Nuclear INT - 2030","","","Nuclear INT",null,2030,"","","","","","","","","","","","","","","","","","","","","","","","","","","","","","","","",""]
[null,null,"Standard","Standard - Coal FGD INT - 2030","","","Coal FGD INT",null,2030,"","","","","","","","","","","","","","","","","","","","","","","","","","","","","","","","",""]
[null,null,"Standard","Standard - Natural gas CCGT INT - 2030","","","Natural gas CCGT INT",null,2030,"","","","","","","","","","","","","","","","","","","","","","","","","","","","","","","","",""]
[null,null,"Standard","Standard - 19WIN_ON_in Onshore wind incl. Grid - 2030","","","19WIN_ON_in Onshore wind incl. Grid",null,2030,"","","","","","","","","","","","","","","","","","","","","","","","","","","","","","","","",""]
[null,null,"Standard","Standard - 0 - 2030","","",0,null,2030,"","","","","","","","","","","","","","","","","","","","","","","","","","","","","","","","",""]
[null,null,"Standard","Standard - 0 - 2030","","",0,null,2030,"","","","","","","","","","","","","","","","","","","","","","","","","","","","","","","","",""]
[null,null,"Standard","Standard - 0 - 2030","","",0,null,2030,{"$f":"IFERROR(IF(J$29=\"Text\",INDEX(OldDataGross,$E51,J$30),INDEX(OldDataGross,$E51,J$30)*IF(J$29=\"Economy\",$F51,1)),\"\")","v":""},"","","","","","","","","",{"$f":"IFERROR(IF(T$29=\"Text\",INDEX(OldDataGross,$E51,T$30),INDEX(OldDataGross,$E51,T$30)*IF(T$29=\"Economy\",$F51,1)),\"\")","v":""},"","","","","","","","","",{"$f":"IFERROR(IF(AD$29=\"Text\",INDEX(OldDataGross,$E51,AD$30),INDEX(OldDataGross,$E51,AD$30)*IF(AD$29=\"Economy\",$F51,1)),\"\")","v":""},"","","","","","","","","","","",""]
[null,null,"Standard","Standard - 0 - 2030","","",0,null,2030,"","","","","","","","","","","","","","","","","","","","","","","","","","","","","","","","",""]
[null,null,"Standard","Standard - 0 - 2030","","",0,null,2030,"","","","","","","","","","","","","","","","","","","","","","","","","","","","","","","","",""]
[null,null,"Standard","Standard - 0 - 2030","","",0,null,2030,"","","","","","","","","","","","","","","","","","","","","","","","","","","","","","","","",""]
[null,null,"Standard","Standard - 0 - 2030","","",0,null,2030,"","","","","","","","","","","","","","","","","","","","","","","","","","","","","","","","",""]
[null,null,"Standard","Standard - 0 - 2030","","",0,null,2030,"","","","","","","","","","","","","","","","","","","","","","","","","","","","","","","","",""]
[null,null,"Standard","Standard - 0 - 2030","","",0,null,2030,"","","","","","","","","","","","","","","","","","","","","","","","","","","","","","","","",""]
[]
[null,"Data scenarios "]
[]
[null,null,null,null,null,null,"Standard-scenario (Data based on DataLog)"]
[null,null,{"$f":"C$27","v":"Tech scenario"},"Full Name","Row for lookup","Adjustment for price level","Technology","Source name","Year","Combined heat and power (CHP)","Fuel","Investment","Grid investment","Fixed O&M","Var. O&M","Other costs","CV","CB","Total efficiency","Electric efficiency condensing","Electric efficiency CHP","Heat efficiency","Full load hours","Profile costs","Balancing costs","Condensing ratio","Technical lifetime","Construction time","Desulphur","Emission factor NOx","Emission factor CH4","Emission factor N2O","Emission factor PM2,5","Geography","Date for data input/update","Desk officer","QA date","QA officer","Reference","Price year in reference","Currency in reference","Comment"]
[null,null,null,null,null,null,"2011-EUR",null,null,null,null,"M. EUR/MW","M. EUR/MW","EUR/MW/year","EUR/MWh/year","EUR/MWh",null,null,null,null,null,null,null,"EUR/MWh","EUR/MWh",null,"years","years","%","g/GJ fuel","g/GJ fuel","g/GJ fuel","g/GJ fuel"]
[null,"CustomTech",{"$f":"$H$21","v":"Standard"},{"$f":"C64&\" - \"&G64&\" - \"&I64","v":"Standard -  - "},null,null,{"$f":"IF(DataLog!$C30=\"Log value\",DataLog!D30&\"_\"&TEXT(DataLog!B30,\"åååå-mm-dd\"),\"\")","v":""},{"$f":"IF(DataLog!$C30=\"Log value\",DataLog!E30,\"\")","v":""},{"$f":"IF(DataLog!$C30=\"Log value\",DataLog!F30,\"\")","v":""},{"$f":"IF(DataLog!$C30=\"Log value\",DataLog!G30,\"\")","v":""},{"$f":"IF(DataLog!$C30=\"Log value\",DataLog!H30,\"\")","v":""},{"$f":"IF(DataLog!$C30=\"Log value\",DataLog!I30,\"\")","v":""},{"$f":"IF(DataLog!$C30=\"Log value\",DataLog!J30,\"\")","v":""},{"$f":"IF(DataLog!$C30=\"Log value\",DataLog!K30,\"\")","v":""},{"$f":"IF(DataLog!$C30=\"Log value\",DataLog!L30,\"\")","v":""},{"$f":"IF(DataLog!$C30=\"Log value\",DataLog!M30,\"\")","v":""},{"$f":"IF(DataLog!$C30=\"Log value\",DataLog!N30,\"\")","v":""},{"$f":"IF(DataLog!$C30=\"Log value\",DataLog!O30,\"\")","v":""},{"$f":"IF(DataLog!$C30=\"Log value\",DataLog!P30,\"\")","v":""},{"$f":"IF(DataLog!$C30=\"Log value\",DataLog!Q30,\"\")","v":""},{"$f":"IF(DataLog!$C30=\"Log value\",DataLog!R30,\"\")","v":""},{"$f":"IF(DataLog!$C30=\"Log value\",DataLog!S30,\"\")","v":""},{"$f":"IF(DataLog!$C30=\"Log value\",DataLog!T30,\"\")","v":""},{"$f":"IF(DataLog!$C30=\"Log value\",DataLog!U30,\"\")","v":""},{"$f":"IF(DataLog!$C30=\"Log value\",DataLog!V30,\"\")","v":""},{"$f":"IF(DataLog!$C30=\"Log value\",DataLog!W30,\"\")","v":""},{"$f":"IF(DataLog!$C30=\"Log value\",DataLog!X30,\"\")","v":""},{"$f":"IF(DataLog!$C30=\"Log value\",DataLog!Y30,\"\")","v":""},{"$f":"IF(DataLog!$C30=\"Log value\",DataLog!Z30,\"\")","v":""},{"$f":"IF(DataLog!$C30=\"Log value\",DataLog!AA30,\"\")","v":""},{"$f":"IF(DataLog!$C30=\"Log value\",DataLog!AB30,\"\")","v":""},{"$f":"IF(DataLog!$C30=\"Log value\",DataLog!AC30,\"\")","v":""},{"$f":"IF(DataLog!$C30=\"Log value\",DataLog!AD30,\"\")","v":""},{"$f":"IF(DataLog!$C30=\"Log value\",DataLog!AE30,\"\")","v":""},{"$f":"IF(DataLog!$C30=\"Log value\",DataLog!AF30,\"\")","v":""},{"$f":"IF(DataLog!$C30=\"Log value\",DataLog!AG30,\"\")","v":""},{"$f":"IF(DataLog!$C30=\"Log value\",DataLog!AH30,\"\")","v":""},{"$f":"IF(DataLog!$C30=\"Log value\",DataLog!AI30,\"\")","v":""},{"$f":"IF(DataLog!$C30=\"Log value\",DataLog!AJ30,\"\")","v":""},{"$f":"IF(DataLog!$C30=\"Log value\",DataLog!AK30,\"\")","v":""},{"$f":"IF(DataLog!$C30=\"Log value\",DataLog!AL30,\"\")","v":""},{"$f":"IF(DataLog!$C30=\"Log value\",DataLog!AM30,\"\")","v":""}]
[null,null,"Standard","Standard -  - ",null,null,{"$f":"IF(DataLog!$C31=\"Log value\",DataLog!D31&\"_\"&TEXT(DataLog!B31,\"åååå-mm-dd\"),\"\")","v":""},{"$f":"IF(DataLog!$C31=\"Log value\",DataLog!E31,\"\")","v":""},{"$f":"IF(DataLog!$C31=\"Log value\",DataLog!F31,\"\")","v":""},{"$f":"IF(DataLog!$C31=\"Log value\",DataLog!G31,\"\")","v":""},{"$f":"IF(DataLog!$C31=\"Log value\",DataLog!H31,\"\")","v":""},{"$f":"IF(DataLog!$C31=\"Log value\",DataLog!I31,\"\")","v":""},{"$f":"IF(DataLog!$C31=\"Log value\",DataLog!J31,\"\")","v":""},{"$f":"IF(DataLog!$C31=\"Log value\",DataLog!K31,\"\")","v":""},{"$f":"IF(DataLog!$C31=\"Log value\",DataLog!L31,\"\")","v":""},{"$f":"IF(DataLog!$C31=\"Log value\",DataLog!M31,\"\")","v":""},{"$f":"IF(DataLog!$C31=\"Log value\",DataLog!N31,\"\")","v":""},{"$f":"IF(DataLog!$C31=\"Log value\",DataLog!O31,\"\")","v":""},{"$f":"IF(DataLog!$C31=\"Log value\",DataLog!P31,\"\")","v":""},{"$f":"IF(DataLog!$C31=\"Log value\",DataLog!Q31,\"\")","v":""},{"$f":"IF(DataLog!$C31=\"Log value\",DataLog!R31,\"\")","v":""},{"$f":"IF(DataLog!$C31=\"Log value\",DataLog!S31,\"\")","v":""},{"$f":"IF(DataLog!$C31=\"Log value\",DataLog!T31,\"\")","v":""},{"$f":"IF(DataLog!$C31=\"Log value\",DataLog!U31,\"\")","v":""},{"$f":"IF(DataLog!$C31=\"Log value\",DataLog!V31,\"\")","v":""},{"$f":"IF(DataLog!$C31=\"Log value\",DataLog!W31,\"\")","v":""},{"$f":"IF(DataLog!$C31=\"Log value\",DataLog!X31,\"\")","v":""},{"$f":"IF(DataLog!$C31=\"Log value\",DataLog!Y31,\"\")","v":""},{"$f":"IF(DataLog!$C31=\"Log value\",DataLog!Z31,\"\")","v":""},{"$f":"IF(DataLog!$C31=\"Log value\",DataLog!AA31,\"\")","v":""},{"$f":"IF(DataLog!$C31=\"Log value\",DataLog!AB31,\"\")","v":""},{"$f":"IF(DataLog!$C31=\"Log value\",DataLog!AC31,\"\")","v":""},{"$f":"IF(DataLog!$C31=\"Log value\",DataLog!AD31,\"\")","v":""},{"$f":"IF(DataLog!$C31=\"Log value\",DataLog!AE31,\"\")","v":""},{"$f":"IF(DataLog!$C31=\"Log value\",DataLog!AF31,\"\")","v":""},{"$f":"IF(DataLog!$C31=\"Log value\",DataLog!AG31,\"\")","v":""},{"$f":"IF(DataLog!$C31=\"Log value\",DataLog!AH31,\"\")","v":""},{"$f":"IF(DataLog!$C31=\"Log value\",DataLog!AI31,\"\")","v":""},{"$f":"IF(DataLog!$C31=\"Log value\",DataLog!AJ31,\"\")","v":""},{"$f":"IF(DataLog!$C31=\"Log value\",DataLog!AK31,\"\")","v":""},{"$f":"IF(DataLog!$C31=\"Log value\",DataLog!AL31,\"\")","v":""},{"$f":"IF(DataLog!$C31=\"Log value\",DataLog!AM31,\"\")","v":""}]
[null,null,"Standard","Standard -  - ",null,null,{"$f":"IF(DataLog!$C32=\"Log value\",DataLog!D32&\"_\"&TEXT(DataLog!B32,\"åååå-mm-dd\"),\"\")","v":""},{"$f":"IF(DataLog!$C32=\"Log value\",DataLog!E32,\"\")","v":""},{"$f":"IF(DataLog!$C32=\"Log value\",DataLog!F32,\"\")","v":""},{"$f":"IF(DataLog!$C32=\"Log value\",DataLog!G32,\"\")","v":""},{"$f":"IF(DataLog!$C32=\"Log value\",DataLog!H32,\"\")","v":""},{"$f":"IF(DataLog!$C32=\"Log value\",DataLog!I32,\"\")","v":""},{"$f":"IF(DataLog!$C32=\"Log value\",DataLog!J32,\"\")","v":""},{"$f":"IF(DataLog!$C32=\"Log value\",DataLog!K32,\"\")","v":""},{"$f":"IF(DataLog!$C32=\"Log value\",DataLog!L32,\"\")","v":""},{"$f":"IF(DataLog!$C32=\"Log value\",DataLog!M32,\"\")","v":""},{"$f":"IF(DataLog!$C32=\"Log value\",DataLog!N32,\"\")","v":""},{"$f":"IF(DataLog!$C32=\"Log value\",DataLog!O32,\"\")","v":""},{"$f":"IF(DataLog!$C32=\"Log value\",DataLog!P32,\"\")","v":""},{"$f":"IF(DataLog!$C32=\"Log value\",DataLog!Q32,\"\")","v":""},{"$f":"IF(DataLog!$C32=\"Log value\",DataLog!R32,\"\")","v":""},{"$f":"IF(DataLog!$C32=\"Log value\",DataLog!S32,\"\")","v":""},{"$f":"IF(DataLog!$C32=\"Log value\",DataLog!T32,\"\")","v":""},{"$f":"IF(DataLog!$C32=\"Log value\",DataLog!U32,\"\")","v":""},{"$f":"IF(DataLog!$C32=\"Log value\",DataLog!V32,\"\")","v":""},{"$f":"IF(DataLog!$C32=\"Log value\",DataLog!W32,\"\")","v":""},{"$f":"IF(DataLog!$C32=\"Log value\",DataLog!X32,\"\")","v":""},{"$f":"IF(DataLog!$C32=\"Log value\",DataLog!Y32,\"\")","v":""},{"$f":"IF(DataLog!$C32=\"Log value\",DataLog!Z32,\"\")","v":""},{"$f":"IF(DataLog!$C32=\"Log value\",DataLog!AA32,\"\")","v":""},{"$f":"IF(DataLog!$C32=\"Log value\",DataLog!AB32,\"\")","v":""},{"$f":"IF(DataLog!$C32=\"Log value\",DataLog!AC32,\"\")","v":""},{"$f":"IF(DataLog!$C32=\"Log value\",DataLog!AD32,\"\")","v":""},{"$f":"IF(DataLog!$C32=\"Log value\",DataLog!AE32,\"\")","v":""},{"$f":"IF(DataLog!$C32=\"Log value\",DataLog!AF32,\"\")","v":""},{"$f":"IF(DataLog!$C32=\"Log value\",DataLog!AG32,\"\")","v":""},{"$f":"IF(DataLog!$C32=\"Log value\",DataLog!AH32,\"\")","v":""},{"$f":"IF(DataLog!$C32=\"Log value\",DataLog!AI32,\"\")","v":""},{"$f":"IF(DataLog!$C32=\"Log value\",DataLog!AJ32,\"\")","v":""},{"$f":"IF(DataLog!$C32=\"Log value\",DataLog!AK32,\"\")","v":""},{"$f":"IF(DataLog!$C32=\"Log value\",DataLog!AL32,\"\")","v":""},{"$f":"IF(DataLog!$C32=\"Log value\",DataLog!AM32,\"\")","v":""}]
[null,null,"Standard","Standard -  - ",null,null,{"$f":"IF(DataLog!$C33=\"Log value\",DataLog!D33&\"_\"&TEXT(DataLog!B33,\"åååå-mm-dd\"),\"\")","v":""},{"$f":"IF(DataLog!$C33=\"Log value\",DataLog!E33,\"\")","v":""},{"$f":"IF(DataLog!$C33=\"Log value\",DataLog!F33,\"\")","v":""},{"$f":"IF(DataLog!$C33=\"Log value\",DataLog!G33,\"\")","v":""},{"$f":"IF(DataLog!$C33=\"Log value\",DataLog!H33,\"\")","v":""},{"$f":"IF(DataLog!$C33=\"Log value\",DataLog!I33,\"\")","v":""},{"$f":"IF(DataLog!$C33=\"Log value\",DataLog!J33,\"\")","v":""},{"$f":"IF(DataLog!$C33=\"Log value\",DataLog!K33,\"\")","v":""},{"$f":"IF(DataLog!$C33=\"Log value\",DataLog!L33,\"\")","v":""},{"$f":"IF(DataLog!$C33=\"Log value\",DataLog!M33,\"\")","v":""},{"$f":"IF(DataLog!$C33=\"Log value\",DataLog!N33,\"\")","v":""},{"$f":"IF(DataLog!$C33=\"Log value\",DataLog!O33,\"\")","v":""},{"$f":"IF(DataLog!$C33=\"Log value\",DataLog!P33,\"\")","v":""},{"$f":"IF(DataLog!$C33=\"Log value\",DataLog!Q33,\"\")","v":""},{"$f":"IF(DataLog!$C33=\"Log value\",DataLog!R33,\"\")","v":""},{"$f":"IF(DataLog!$C33=\"Log value\",DataLog!S33,\"\")","v":""},{"$f":"IF(DataLog!$C33=\"Log value\",DataLog!T33,\"\")","v":""},{"$f":"IF(DataLog!$C33=\"Log value\",DataLog!U33,\"\")","v":""},{"$f":"IF(DataLog!$C33=\"Log value\",DataLog!V33,\"\")","v":""},{"$f":"IF(DataLog!$C33=\"Log value\",DataLog!W33,\"\")","v":""},{"$f":"IF(DataLog!$C33=\"Log value\",DataLog!X33,\"\")","v":""},{"$f":"IF(DataLog!$C33=\"Log value\",DataLog!Y33,\"\")","v":""},{"$f":"IF(DataLog!$C33=\"Log value\",DataLog!Z33,\"\")","v":""},{"$f":"IF(DataLog!$C33=\"Log value\",DataLog!AA33,\"\")","v":""},{"$f":"IF(DataLog!$C33=\"Log value\",DataLog!AB33,\"\")","v":""},{"$f":"IF(DataLog!$C33=\"Log value\",DataLog!AC33,\"\")","v":""},{"$f":"IF(DataLog!$C33=\"Log value\",DataLog!AD33,\"\")","v":""},{"$f":"IF(DataLog!$C33=\"Log value\",DataLog!AE33,\"\")","v":""},{"$f":"IF(DataLog!$C33=\"Log value\",DataLog!AF33,\"\")","v":""},{"$f":"IF(DataLog!$C33=\"Log value\",DataLog!AG33,\"\")","v":""},{"$f":"IF(DataLog!$C33=\"Log value\",DataLog!AH33,\"\")","v":""},{"$f":"IF(DataLog!$C33=\"Log value\",DataLog!AI33,\"\")","v":""},{"$f":"IF(DataLog!$C33=\"Log value\",DataLog!AJ33,\"\")","v":""},{"$f":"IF(DataLog!$C33=\"Log value\",DataLog!AK33,\"\")","v":""},{"$f":"IF(DataLog!$C33=\"Log value\",DataLog!AL33,\"\")","v":""},{"$f":"IF(DataLog!$C33=\"Log value\",DataLog!AM33,\"\")","v":""}]
[null,null,"Standard","Standard -  - ",null,null,{"$f":"IF(DataLog!$C34=\"Log value\",DataLog!D34&\"_\"&TEXT(DataLog!B34,\"åååå-mm-dd\"),\"\")","v":""},{"$f":"IF(DataLog!$C34=\"Log value\",DataLog!E34,\"\")","v":""},{"$f":"IF(DataLog!$C34=\"Log value\",DataLog!F34,\"\")","v":""},{"$f":"IF(DataLog!$C34=\"Log value\",DataLog!G34,\"\")","v":""},{"$f":"IF(DataLog!$C34=\"Log value\",DataLog!H34,\"\")","v":""},{"$f":"IF(DataLog!$C34=\"Log value\",DataLog!I34,\"\")","v":""},{"$f":"IF(DataLog!$C34=\"Log value\",DataLog!J34,\"\")","v":""},{"$f":"IF(DataLog!$C34=\"Log value\",DataLog!K34,\"\")","v":""},{"$f":"IF(DataLog!$C34=\"Log value\",DataLog!L34,\"\")","v":""},{"$f":"IF(DataLog!$C34=\"Log value\",DataLog!M34,\"\")","v":""},{"$f":"IF(DataLog!$C34=\"Log value\",DataLog!N34,\"\")","v":""},{"$f":"IF(DataLog!$C34=\"Log value\",DataLog!O34,\"\")","v":""},{"$f":"IF(DataLog!$C34=\"Log value\",DataLog!P34,\"\")","v":""},{"$f":"IF(DataLog!$C34=\"Log value\",DataLog!Q34,\"\")","v":""},{"$f":"IF(DataLog!$C34=\"Log value\",DataLog!R34,\"\")","v":""},{"$f":"IF(DataLog!$C34=\"Log value\",DataLog!S34,\"\")","v":""},{"$f":"IF(DataLog!$C34=\"Log value\",DataLog!T34,\"\")","v":""},{"$f":"IF(DataLog!$C34=\"Log value\",DataLog!U34,\"\")","v":""},{"$f":"IF(DataLog!$C34=\"Log value\",DataLog!V34,\"\")","v":""},{"$f":"IF(DataLog!$C34=\"Log value\",DataLog!W34,\"\")","v":""},{"$f":"IF(DataLog!$C34=\"Log value\",DataLog!X34,\"\")","v":""},{"$f":"IF(DataLog!$C34=\"Log value\",DataLog!Y34,\"\")","v":""},{"$f":"IF(DataLog!$C34=\"Log value\",DataLog!Z34,\"\")","v":""},{"$f":"IF(DataLog!$C34=\"Log value\",DataLog!AA34,\"\")","v":""},{"$f":"IF(DataLog!$C34=\"Log value\",DataLog!AB34,\"\")","v":""},{"$f":"IF(DataLog!$C34=\"Log value\",DataLog!AC34,\"\")","v":""},{"$f":"IF(DataLog!$C34=\"Log value\",DataLog!AD34,\"\")","v":""},{"$f":"IF(DataLog!$C34=\"Log value\",DataLog!AE34,\"\")","v":""},{"$f":"IF(DataLog!$C34=\"Log value\",DataLog!AF34,\"\")","v":""},{"$f":"IF(DataLog!$C34=\"Log value\",DataLog!AG34,\"\")","v":""},{"$f":"IF(DataLog!$C34=\"Log value\",DataLog!AH34,\"\")","v":""},{"$f":"IF(DataLog!$C34=\"Log value\",DataLog!AI34,\"\")","v":""},{"$f":"IF(DataLog!$C34=\"Log value\",DataLog!AJ34,\"\")","v":""},{"$f":"IF(DataLog!$C34=\"Log value\",DataLog!AK34,\"\")","v":""},{"$f":"IF(DataLog!$C34=\"Log value\",DataLog!AL34,\"\")","v":""},{"$f":"IF(DataLog!$C34=\"Log value\",DataLog!AM34,\"\")","v":""}]
[null,null,"Standard","Standard -  - ",null,null,{"$f":"IF(DataLog!$C35=\"Log value\",DataLog!D35&\"_\"&TEXT(DataLog!B35,\"åååå-mm-dd\"),\"\")","v":""},{"$f":"IF(DataLog!$C35=\"Log value\",DataLog!E35,\"\")","v":""},{"$f":"IF(DataLog!$C35=\"Log value\",DataLog!F35,\"\")","v":""},{"$f":"IF(DataLog!$C35=\"Log value\",DataLog!G35,\"\")","v":""},{"$f":"IF(DataLog!$C35=\"Log value\",DataLog!H35,\"\")","v":""},{"$f":"IF(DataLog!$C35=\"Log value\",DataLog!I35,\"\")","v":""},{"$f":"IF(DataLog!$C35=\"Log value\",DataLog!J35,\"\")","v":""},{"$f":"IF(DataLog!$C35=\"Log value\",DataLog!K35,\"\")","v":""},{"$f":"IF(DataLog!$C35=\"Log value\",DataLog!L35,\"\")","v":""},{"$f":"IF(DataLog!$C35=\"Log value\",DataLog!M35,\"\")","v":""},{"$f":"IF(DataLog!$C35=\"Log value\",DataLog!N35,\"\")","v":""},{"$f":"IF(DataLog!$C35=\"Log value\",DataLog!O35,\"\")","v":""},{"$f":"IF(DataLog!$C35=\"Log value\",DataLog!P35,\"\")","v":""},{"$f":"IF(DataLog!$C35=\"Log value\",DataLog!Q35,\"\")","v":""},{"$f":"IF(DataLog!$C35=\"Log value\",DataLog!R35,\"\")","v":""},{"$f":"IF(DataLog!$C35=\"Log value\",DataLog!S35,\"\")","v":""},{"$f":"IF(DataLog!$C35=\"Log value\",DataLog!T35,\"\")","v":""},{"$f":"IF(DataLog!$C35=\"Log value\",DataLog!U35,\"\")","v":""},{"$f":"IF(DataLog!$C35=\"Log value\",DataLog!V35,\"\")","v":""},{"$f":"IF(DataLog!$C35=\"Log value\",DataLog!W35,\"\")","v":""},{"$f":"IF(DataLog!$C35=\"Log value\",DataLog!X35,\"\")","v":""},{"$f":"IF(DataLog!$C35=\"Log value\",DataLog!Y35,\"\")","v":""},{"$f":"IF(DataLog!$C35=\"Log value\",DataLog!Z35,\"\")","v":""},{"$f":"IF(DataLog!$C35=\"Log value\",DataLog!AA35,\"\")","v":""},{"$f":"IF(DataLog!$C35=\"Log value\",DataLog!AB35,\"\")","v":""},{"$f":"IF(DataLog!$C35=\"Log value\",DataLog!AC35,\"\")","v":""},{"$f":"IF(DataLog!$C35=\"Log value\",DataLog!AD35,\"\")","v":""},{"$f":"IF(DataLog!$C35=\"Log value\",DataLog!AE35,\"\")","v":""},{"$f":"IF(DataLog!$C35=\"Log value\",DataLog!AF35,\"\")","v":""},{"$f":"IF(DataLog!$C35=\"Log value\",DataLog!AG35,\"\")","v":""},{"$f":"IF(DataLog!$C35=\"Log value\",DataLog!AH35,\"\")","v":""},{"$f":"IF(DataLog!$C35=\"Log value\",DataLog!AI35,\"\")","v":""},{"$f":"IF(DataLog!$C35=\"Log value\",DataLog!AJ35,\"\")","v":""},{"$f":"IF(DataLog!$C35=\"Log value\",DataLog!AK35,\"\")","v":""},{"$f":"IF(DataLog!$C35=\"Log value\",DataLog!AL35,\"\")","v":""},{"$f":"IF(DataLog!$C35=\"Log value\",DataLog!AM35,\"\")","v":""}]
[null,null,"Standard","Standard -  - ",null,null,{"$f":"IF(DataLog!$C36=\"Log value\",DataLog!D36&\"_\"&TEXT(DataLog!B36,\"åååå-mm-dd\"),\"\")","v":""},{"$f":"IF(DataLog!$C36=\"Log value\",DataLog!E36,\"\")","v":""},{"$f":"IF(DataLog!$C36=\"Log value\",DataLog!F36,\"\")","v":""},{"$f":"IF(DataLog!$C36=\"Log value\",DataLog!G36,\"\")","v":""},{"$f":"IF(DataLog!$C36=\"Log value\",DataLog!H36,\"\")","v":""},{"$f":"IF(DataLog!$C36=\"Log value\",DataLog!I36,\"\")","v":""},{"$f":"IF(DataLog!$C36=\"Log value\",DataLog!J36,\"\")","v":""},{"$f":"IF(DataLog!$C36=\"Log value\",DataLog!K36,\"\")","v":""},{"$f":"IF(DataLog!$C36=\"Log value\",DataLog!L36,\"\")","v":""},{"$f":"IF(DataLog!$C36=\"Log value\",DataLog!M36,\"\")","v":""},{"$f":"IF(DataLog!$C36=\"Log value\",DataLog!N36,\"\")","v":""},{"$f":"IF(DataLog!$C36=\"Log value\",DataLog!O36,\"\")","v":""},{"$f":"IF(DataLog!$C36=\"Log value\",DataLog!P36,\"\")","v":""},{"$f":"IF(DataLog!$C36=\"Log value\",DataLog!Q36,\"\")","v":""},{"$f":"IF(DataLog!$C36=\"Log value\",DataLog!R36,\"\")","v":""},{"$f":"IF(DataLog!$C36=\"Log value\",DataLog!S36,\"\")","v":""},{"$f":"IF(DataLog!$C36=\"Log value\",DataLog!T36,\"\")","v":""},{"$f":"IF(DataLog!$C36=\"Log value\",DataLog!U36,\"\")","v":""},{"$f":"IF(DataLog!$C36=\"Log value\",DataLog!V36,\"\")","v":""},{"$f":"IF(DataLog!$C36=\"Log value\",DataLog!W36,\"\")","v":""},{"$f":"IF(DataLog!$C36=\"Log value\",DataLog!X36,\"\")","v":""},{"$f":"IF(DataLog!$C36=\"Log value\",DataLog!Y36,\"\")","v":""},{"$f":"IF(DataLog!$C36=\"Log value\",DataLog!Z36,\"\")","v":""},{"$f":"IF(DataLog!$C36=\"Log value\",DataLog!AA36,\"\")","v":""},{"$f":"IF(DataLog!$C36=\"Log value\",DataLog!AB36,\"\")","v":""},{"$f":"IF(DataLog!$C36=\"Log value\",DataLog!AC36,\"\")","v":""},{"$f":"IF(DataLog!$C36=\"Log value\",DataLog!AD36,\"\")","v":""},{"$f":"IF(DataLog!$C36=\"Log value\",DataLog!AE36,\"\")","v":""},{"$f":"IF(DataLog!$C36=\"Log value\",DataLog!AF36,\"\")","v":""},{"$f":"IF(DataLog!$C36=\"Log value\",DataLog!AG36,\"\")","v":""},{"$f":"IF(DataLog!$C36=\"Log value\",DataLog!AH36,\"\")","v":""},{"$f":"IF(DataLog!$C36=\"Log value\",DataLog!AI36,\"\")","v":""},{"$f":"IF(DataLog!$C36=\"Log value\",DataLog!AJ36,\"\")","v":""},{"$f":"IF(DataLog!$C36=\"Log value\",DataLog!AK36,\"\")","v":""},{"$f":"IF(DataLog!$C36=\"Log value\",DataLog!AL36,\"\")","v":""},{"$f":"IF(DataLog!$C36=\"Log value\",DataLog!AM36,\"\")","v":""}]
[null,null,"Standard","Standard -  - ",null,null,{"$f":"IF(DataLog!$C37=\"Log value\",DataLog!D37&\"_\"&TEXT(DataLog!B37,\"åååå-mm-dd\"),\"\")","v":""},{"$f":"IF(DataLog!$C37=\"Log value\",DataLog!E37,\"\")","v":""},{"$f":"IF(DataLog!$C37=\"Log value\",DataLog!F37,\"\")","v":""},{"$f":"IF(DataLog!$C37=\"Log value\",DataLog!G37,\"\")","v":""},{"$f":"IF(DataLog!$C37=\"Log value\",DataLog!H37,\"\")","v":""},{"$f":"IF(DataLog!$C37=\"Log value\",DataLog!I37,\"\")","v":""},{"$f":"IF(DataLog!$C37=\"Log value\",DataLog!J37,\"\")","v":""},{"$f":"IF(DataLog!$C37=\"Log value\",DataLog!K37,\"\")","v":""},{"$f":"IF(DataLog!$C37=\"Log value\",DataLog!L37,\"\")","v":""},{"$f":"IF(DataLog!$C37=\"Log value\",DataLog!M37,\"\")","v":""},{"$f":"IF(DataLog!$C37=\"Log value\",DataLog!N37,\"\")","v":""},{"$f":"IF(DataLog!$C37=\"Log value\",DataLog!O37,\"\")","v":""},{"$f":"IF(DataLog!$C37=\"Log value\",DataLog!P37,\"\")","v":""},{"$f":"IF(DataLog!$C37=\"Log value\",DataLog!Q37,\"\")","v":""},{"$f":"IF(DataLog!$C37=\"Log value\",DataLog!R37,\"\")","v":""},{"$f":"IF(DataLog!$C37=\"Log value\",DataLog!S37,\"\")","v":""},{"$f":"IF(DataLog!$C37=\"Log value\",DataLog!T37,\"\")","v":""},{"$f":"IF(DataLog!$C37=\"Log value\",DataLog!U37,\"\")","v":""},{"$f":"IF(DataLog!$C37=\"Log value\",DataLog!V37,\"\")","v":""},{"$f":"IF(DataLog!$C37=\"Log value\",DataLog!W37,\"\")","v":""},{"$f":"IF(DataLog!$C37=\"Log value\",DataLog!X37,\"\")","v":""},{"$f":"IF(DataLog!$C37=\"Log value\",DataLog!Y37,\"\")","v":""},{"$f":"IF(DataLog!$C37=\"Log value\",DataLog!Z37,\"\")","v":""},{"$f":"IF(DataLog!$C37=\"Log value\",DataLog!AA37,\"\")","v":""},{"$f":"IF(DataLog!$C37=\"Log value\",DataLog!AB37,\"\")","v":""},{"$f":"IF(DataLog!$C37=\"Log value\",DataLog!AC37,\"\")","v":""},{"$f":"IF(DataLog!$C37=\"Log value\",DataLog!AD37,\"\")","v":""},{"$f":"IF(DataLog!$C37=\"Log value\",DataLog!AE37,\"\")","v":""},{"$f":"IF(DataLog!$C37=\"Log value\",DataLog!AF37,\"\")","v":""},{"$f":"IF(DataLog!$C37=\"Log value\",DataLog!AG37,\"\")","v":""},{"$f":"IF(DataLog!$C37=\"Log value\",DataLog!AH37,\"\")","v":""},{"$f":"IF(DataLog!$C37=\"Log value\",DataLog!AI37,\"\")","v":""},{"$f":"IF(DataLog!$C37=\"Log value\",DataLog!AJ37,\"\")","v":""},{"$f":"IF(DataLog!$C37=\"Log value\",DataLog!AK37,\"\")","v":""},{"$f":"IF(DataLog!$C37=\"Log value\",DataLog!AL37,\"\")","v":""},{"$f":"IF(DataLog!$C37=\"Log value\",DataLog!AM37,\"\")","v":""}]
[null,null,"Standard","Standard -  - ",null,null,{"$f":"IF(DataLog!$C38=\"Log value\",DataLog!D38&\"_\"&TEXT(DataLog!B38,\"åååå-mm-dd\"),\"\")","v":""},{"$f":"IF(DataLog!$C38=\"Log value\",DataLog!E38,\"\")","v":""},{"$f":"IF(DataLog!$C38=\"Log value\",DataLog!F38,\"\")","v":""},{"$f":"IF(DataLog!$C38=\"Log value\",DataLog!G38,\"\")","v":""},{"$f":"IF(DataLog!$C38=\"Log value\",DataLog!H38,\"\")","v":""},{"$f":"IF(DataLog!$C38=\"Log value\",DataLog!I38,\"\")","v":""},{"$f":"IF(DataLog!$C38=\"Log value\",DataLog!J38,\"\")","v":""},{"$f":"IF(DataLog!$C38=\"Log value\",DataLog!K38,\"\")","v":""},{"$f":"IF(DataLog!$C38=\"Log value\",DataLog!L38,\"\")","v":""},{"$f":"IF(DataLog!$C38=\"Log value\",DataLog!M38,\"\")","v":""},{"$f":"IF(DataLog!$C38=\"Log value\",DataLog!N38,\"\")","v":""},{"$f":"IF(DataLog!$C38=\"Log value\",DataLog!O38,\"\")","v":""},{"$f":"IF(DataLog!$C38=\"Log value\",DataLog!P38,\"\")","v":""},{"$f":"IF(DataLog!$C38=\"Log value\",DataLog!Q38,\"\")","v":""},{"$f":"IF(DataLog!$C38=\"Log value\",DataLog!R38,\"\")","v":""},{"$f":"IF(DataLog!$C38=\"Log value\",DataLog!S38,\"\")","v":""},{"$f":"IF(DataLog!$C38=\"Log value\",DataLog!T38,\"\")","v":""},{"$f":"IF(DataLog!$C38=\"Log value\",DataLog!U38,\"\")","v":""},{"$f":"IF(DataLog!$C38=\"Log value\",DataLog!V38,\"\")","v":""},{"$f":"IF(DataLog!$C38=\"Log value\",DataLog!W38,\"\")","v":""},{"$f":"IF(DataLog!$C38=\"Log value\",DataLog!X38,\"\")","v":""},{"$f":"IF(DataLog!$C38=\"Log value\",DataLog!Y38,\"\")","v":""},{"$f":"IF(DataLog!$C38=\"Log value\",DataLog!Z38,\"\")","v":""},{"$f":"IF(DataLog!$C38=\"Log value\",DataLog!AA38,\"\")","v":""},{"$f":"IF(DataLog!$C38=\"Log value\",DataLog!AB38,\"\")","v":""},{"$f":"IF(DataLog!$C38=\"Log value\",DataLog!AC38,\"\")","v":""},{"$f":"IF(DataLog!$C38=\"Log value\",DataLog!AD38,\"\")","v":""},{"$f":"IF(DataLog!$C38=\"Log value\",DataLog!AE38,\"\")","v":""},{"$f":"IF(DataLog!$C38=\"Log value\",DataLog!AF38,\"\")","v":""},{"$f":"IF(DataLog!$C38=\"Log value\",DataLog!AG38,\"\")","v":""},{"$f":"IF(DataLog!$C38=\"Log value\",DataLog!AH38,\"\")","v":""},{"$f":"IF(DataLog!$C38=\"Log value\",DataLog!AI38,\"\")","v":""},{"$f":"IF(DataLog!$C38=\"Log value\",DataLog!AJ38,\"\")","v":""},{"$f":"IF(DataLog!$C38=\"Log value\",DataLog!AK38,\"\")","v":""},{"$f":"IF(DataLog!$C38=\"Log value\",DataLog!AL38,\"\")","v":""},{"$f":"IF(DataLog!$C38=\"Log value\",DataLog!AM38,\"\")","v":""}]
[null,null,"Standard","Standard -  - ",null,null,{"$f":"IF(DataLog!$C39=\"Log value\",DataLog!D39&\"_\"&TEXT(DataLog!B39,\"åååå-mm-dd\"),\"\")","v":""},{"$f":"IF(DataLog!$C39=\"Log value\",DataLog!E39,\"\")","v":""},{"$f":"IF(DataLog!$C39=\"Log value\",DataLog!F39,\"\")","v":""},{"$f":"IF(DataLog!$C39=\"Log value\",DataLog!G39,\"\")","v":""},{"$f":"IF(DataLog!$C39=\"Log value\",DataLog!H39,\"\")","v":""},{"$f":"IF(DataLog!$C39=\"Log value\",DataLog!I39,\"\")","v":""},{"$f":"IF(DataLog!$C39=\"Log value\",DataLog!J39,\"\")","v":""},{"$f":"IF(DataLog!$C39=\"Log value\",DataLog!K39,\"\")","v":""},{"$f":"IF(DataLog!$C39=\"Log value\",DataLog!L39,\"\")","v":""},{"$f":"IF(DataLog!$C39=\"Log value\",DataLog!M39,\"\")","v":""},{"$f":"IF(DataLog!$C39=\"Log value\",DataLog!N39,\"\")","v":""},{"$f":"IF(DataLog!$C39=\"Log value\",DataLog!O39,\"\")","v":""},{"$f":"IF(DataLog!$C39=\"Log value\",DataLog!P39,\"\")","v":""},{"$f":"IF(DataLog!$C39=\"Log value\",DataLog!Q39,\"\")","v":""},{"$f":"IF(DataLog!$C39=\"Log value\",DataLog!R39,\"\")","v":""},{"$f":"IF(DataLog!$C39=\"Log value\",DataLog!S39,\"\")","v":""},{"$f":"IF(DataLog!$C39=\"Log value\",DataLog!T39,\"\")","v":""},{"$f":"IF(DataLog!$C39=\"Log value\",DataLog!U39,\"\")","v":""},{"$f":"IF(DataLog!$C39=\"Log value\",DataLog!V39,\"\")","v":""},{"$f":"IF(DataLog!$C39=\"Log value\",DataLog!W39,\"\")","v":""},{"$f":"IF(DataLog!$C39=\"Log value\",DataLog!X39,\"\")","v":""},{"$f":"IF(DataLog!$C39=\"Log value\",DataLog!Y39,\"\")","v":""},{"$f":"IF(DataLog!$C39=\"Log value\",DataLog!Z39,\"\")","v":""},{"$f":"IF(DataLog!$C39=\"Log value\",DataLog!AA39,\"\")","v":""},{"$f":"IF(DataLog!$C39=\"Log value\",DataLog!AB39,\"\")","v":""},{"$f":"IF(DataLog!$C39=\"Log value\",DataLog!AC39,\"\")","v":""},{"$f":"IF(DataLog!$C39=\"Log value\",DataLog!AD39,\"\")","v":""},{"$f":"IF(DataLog!$C39=\"Log value\",DataLog!AE39,\"\")","v":""},{"$f":"IF(DataLog!$C39=\"Log value\",DataLog!AF39,\"\")","v":""},{"$f":"IF(DataLog!$C39=\"Log value\",DataLog!AG39,\"\")","v":""},{"$f":"IF(DataLog!$C39=\"Log value\",DataLog!AH39,\"\")","v":""},{"$f":"IF(DataLog!$C39=\"Log value\",DataLog!AI39,\"\")","v":""},{"$f":"IF(DataLog!$C39=\"Log value\",DataLog!AJ39,\"\")","v":""},{"$f":"IF(DataLog!$C39=\"Log value\",DataLog!AK39,\"\")","v":""},{"$f":"IF(DataLog!$C39=\"Log value\",DataLog!AL39,\"\")","v":""},{"$f":"IF(DataLog!$C39=\"Log value\",DataLog!AM39,\"\")","v":""}]
[null,null,"Standard","Standard -  - ",null,null,{"$f":"IF(DataLog!$C40=\"Log value\",DataLog!D40&\"_\"&TEXT(DataLog!B40,\"åååå-mm-dd\"),\"\")","v":""},{"$f":"IF(DataLog!$C40=\"Log value\",DataLog!E40,\"\")","v":""},{"$f":"IF(DataLog!$C40=\"Log value\",DataLog!F40,\"\")","v":""},{"$f":"IF(DataLog!$C40=\"Log value\",DataLog!G40,\"\")","v":""},{"$f":"IF(DataLog!$C40=\"Log value\",DataLog!H40,\"\")","v":""},{"$f":"IF(DataLog!$C40=\"Log value\",DataLog!I40,\"\")","v":""},{"$f":"IF(DataLog!$C40=\"Log value\",DataLog!J40,\"\")","v":""},{"$f":"IF(DataLog!$C40=\"Log value\",DataLog!K40,\"\")","v":""},{"$f":"IF(DataLog!$C40=\"Log value\",DataLog!L40,\"\")","v":""},{"$f":"IF(DataLog!$C40=\"Log value\",DataLog!M40,\"\")","v":""},{"$f":"IF(DataLog!$C40=\"Log value\",DataLog!N40,\"\")","v":""},{"$f":"IF(DataLog!$C40=\"Log value\",DataLog!O40,\"\")","v":""},{"$f":"IF(DataLog!$C40=\"Log value\",DataLog!P40,\"\")","v":""},{"$f":"IF(DataLog!$C40=\"Log value\",DataLog!Q40,\"\")","v":""},{"$f":"IF(DataLog!$C40=\"Log value\",DataLog!R40,\"\")","v":""},{"$f":"IF(DataLog!$C40=\"Log value\",DataLog!S40,\"\")","v":""},{"$f":"IF(DataLog!$C40=\"Log value\",DataLog!T40,\"\")","v":""},{"$f":"IF(DataLog!$C40=\"Log value\",DataLog!U40,\"\")","v":""},{"$f":"IF(DataLog!$C40=\"Log value\",DataLog!V40,\"\")","v":""},{"$f":"IF(DataLog!$C40=\"Log value\",DataLog!W40,\"\")","v":""},{"$f":"IF(DataLog!$C40=\"Log value\",DataLog!X40,\"\")","v":""},{"$f":"IF(DataLog!$C40=\"Log value\",DataLog!Y40,\"\")","v":""},{"$f":"IF(DataLog!$C40=\"Log value\",DataLog!Z40,\"\")","v":""},{"$f":"IF(DataLog!$C40=\"Log value\",DataLog!AA40,\"\")","v":""},{"$f":"IF(DataLog!$C40=\"Log value\",DataLog!AB40,\"\")","v":""},{"$f":"IF(DataLog!$C40=\"Log value\",DataLog!AC40,\"\")","v":""},{"$f":"IF(DataLog!$C40=\"Log value\",DataLog!AD40,\"\")","v":""},{"$f":"IF(DataLog!$C40=\"Log value\",DataLog!AE40,\"\")","v":""},{"$f":"IF(DataLog!$C40=\"Log value\",DataLog!AF40,\"\")","v":""},{"$f":"IF(DataLog!$C40=\"Log value\",DataLog!AG40,\"\")","v":""},{"$f":"IF(DataLog!$C40=\"Log value\",DataLog!AH40,\"\")","v":""},{"$f":"IF(DataLog!$C40=\"Log value\",DataLog!AI40,\"\")","v":""},{"$f":"IF(DataLog!$C40=\"Log value\",DataLog!AJ40,\"\")","v":""},{"$f":"IF(DataLog!$C40=\"Log value\",DataLog!AK40,\"\")","v":""},{"$f":"IF(DataLog!$C40=\"Log value\",DataLog!AL40,\"\")","v":""},{"$f":"IF(DataLog!$C40=\"Log value\",DataLog!AM40,\"\")","v":""}]
[null,null,"Standard","Standard -  - ",null,null,{"$f":"IF(DataLog!$C41=\"Log value\",DataLog!D41&\"_\"&TEXT(DataLog!B41,\"åååå-mm-dd\"),\"\")","v":""},{"$f":"IF(DataLog!$C41=\"Log value\",DataLog!E41,\"\")","v":""},{"$f":"IF(DataLog!$C41=\"Log value\",DataLog!F41,\"\")","v":""},{"$f":"IF(DataLog!$C41=\"Log value\",DataLog!G41,\"\")","v":""},{"$f":"IF(DataLog!$C41=\"Log value\",DataLog!H41,\"\")","v":""},{"$f":"IF(DataLog!$C41=\"Log value\",DataLog!I41,\"\")","v":""},{"$f":"IF(DataLog!$C41=\"Log value\",DataLog!J41,\"\")","v":""},{"$f":"IF(DataLog!$C41=\"Log value\",DataLog!K41,\"\")","v":""},{"$f":"IF(DataLog!$C41=\"Log value\",DataLog!L41,\"\")","v":""},{"$f":"IF(DataLog!$C41=\"Log value\",DataLog!M41,\"\")","v":""},{"$f":"IF(DataLog!$C41=\"Log value\",DataLog!N41,\"\")","v":""},{"$f":"IF(DataLog!$C41=\"Log value\",DataLog!O41,\"\")","v":""},{"$f":"IF(DataLog!$C41=\"Log value\",DataLog!P41,\"\")","v":""},{"$f":"IF(DataLog!$C41=\"Log value\",DataLog!Q41,\"\")","v":""},{"$f":"IF(DataLog!$C41=\"Log value\",DataLog!R41,\"\")","v":""},{"$f":"IF(DataLog!$C41=\"Log value\",DataLog!S41,\"\")","v":""},{"$f":"IF(DataLog!$C41=\"Log value\",DataLog!T41,\"\")","v":""},{"$f":"IF(DataLog!$C41=\"Log value\",DataLog!U41,\"\")","v":""},{"$f":"IF(DataLog!$C41=\"Log value\",DataLog!V41,\"\")","v":""},{"$f":"IF(DataLog!$C41=\"Log value\",DataLog!W41,\"\")","v":""},{"$f":"IF(DataLog!$C41=\"Log value\",DataLog!X41,\"\")","v":""},{"$f":"IF(DataLog!$C41=\"Log value\",DataLog!Y41,\"\")","v":""},{"$f":"IF(DataLog!$C41=\"Log value\",DataLog!Z41,\"\")","v":""},{"$f":"IF(DataLog!$C41=\"Log value\",DataLog!AA41,\"\")","v":""},{"$f":"IF(DataLog!$C41=\"Log value\",DataLog!AB41,\"\")","v":""},{"$f":"IF(DataLog!$C41=\"Log value\",DataLog!AC41,\"\")","v":""},{"$f":"IF(DataLog!$C41=\"Log value\",DataLog!AD41,\"\")","v":""},{"$f":"IF(DataLog!$C41=\"Log value\",DataLog!AE41,\"\")","v":""},{"$f":"IF(DataLog!$C41=\"Log value\",DataLog!AF41,\"\")","v":""},{"$f":"IF(DataLog!$C41=\"Log value\",DataLog!AG41,\"\")","v":""},{"$f":"IF(DataLog!$C41=\"Log value\",DataLog!AH41,\"\")","v":""},{"$f":"IF(DataLog!$C41=\"Log value\",DataLog!AI41,\"\")","v":""},{"$f":"IF(DataLog!$C41=\"Log value\",DataLog!AJ41,\"\")","v":""},{"$f":"IF(DataLog!$C41=\"Log value\",DataLog!AK41,\"\")","v":""},{"$f":"IF(DataLog!$C41=\"Log value\",DataLog!AL41,\"\")","v":""},{"$f":"IF(DataLog!$C41=\"Log value\",DataLog!AM41,\"\")","v":""}]
[null,null,"Standard","Standard -  - ",null,null,{"$f":"IF(DataLog!$C42=\"Log value\",DataLog!D42&\"_\"&TEXT(DataLog!B42,\"åååå-mm-dd\"),\"\")","v":""},{"$f":"IF(DataLog!$C42=\"Log value\",DataLog!E42,\"\")","v":""},{"$f":"IF(DataLog!$C42=\"Log value\",DataLog!F42,\"\")","v":""},{"$f":"IF(DataLog!$C42=\"Log value\",DataLog!G42,\"\")","v":""},{"$f":"IF(DataLog!$C42=\"Log value\",DataLog!H42,\"\")","v":""},{"$f":"IF(DataLog!$C42=\"Log value\",DataLog!I42,\"\")","v":""},{"$f":"IF(DataLog!$C42=\"Log value\",DataLog!J42,\"\")","v":""},{"$f":"IF(DataLog!$C42=\"Log value\",DataLog!K42,\"\")","v":""},{"$f":"IF(DataLog!$C42=\"Log value\",DataLog!L42,\"\")","v":""},{"$f":"IF(DataLog!$C42=\"Log value\",DataLog!M42,\"\")","v":""},{"$f":"IF(DataLog!$C42=\"Log value\",DataLog!N42,\"\")","v":""},{"$f":"IF(DataLog!$C42=\"Log value\",DataLog!O42,\"\")","v":""},{"$f":"IF(DataLog!$C42=\"Log value\",DataLog!P42,\"\")","v":""},{"$f":"IF(DataLog!$C42=\"Log value\",DataLog!Q42,\"\")","v":""},{"$f":"IF(DataLog!$C42=\"Log value\",DataLog!R42,\"\")","v":""},{"$f":"IF(DataLog!$C42=\"Log value\",DataLog!S42,\"\")","v":""},{"$f":"IF(DataLog!$C42=\"Log value\",DataLog!T42,\"\")","v":""},{"$f":"IF(DataLog!$C42=\"Log value\",DataLog!U42,\"\")","v":""},{"$f":"IF(DataLog!$C42=\"Log value\",DataLog!V42,\"\")","v":""},{"$f":"IF(DataLog!$C42=\"Log value\",DataLog!W42,\"\")","v":""},{"$f":"IF(DataLog!$C42=\"Log value\",DataLog!X42,\"\")","v":""},{"$f":"IF(DataLog!$C42=\"Log value\",DataLog!Y42,\"\")","v":""},{"$f":"IF(DataLog!$C42=\"Log value\",DataLog!Z42,\"\")","v":""},{"$f":"IF(DataLog!$C42=\"Log value\",DataLog!AA42,\"\")","v":""},{"$f":"IF(DataLog!$C42=\"Log value\",DataLog!AB42,\"\")","v":""},{"$f":"IF(DataLog!$C42=\"Log value\",DataLog!AC42,\"\")","v":""},{"$f":"IF(DataLog!$C42=\"Log value\",DataLog!AD42,\"\")","v":""},{"$f":"IF(DataLog!$C42=\"Log value\",DataLog!AE42,\"\")","v":""},{"$f":"IF(DataLog!$C42=\"Log value\",DataLog!AF42,\"\")","v":""},{"$f":"IF(DataLog!$C42=\"Log value\",DataLog!AG42,\"\")","v":""},{"$f":"IF(DataLog!$C42=\"Log value\",DataLog!AH42,\"\")","v":""},{"$f":"IF(DataLog!$C42=\"Log value\",DataLog!AI42,\"\")","v":""},{"$f":"IF(DataLog!$C42=\"Log value\",DataLog!AJ42,\"\")","v":""},{"$f":"IF(DataLog!$C42=\"Log value\",DataLog!AK42,\"\")","v":""},{"$f":"IF(DataLog!$C42=\"Log value\",DataLog!AL42,\"\")","v":""},{"$f":"IF(DataLog!$C42=\"Log value\",DataLog!AM42,\"\")","v":""}]
[null,null,"Standard","Standard -  - ",null,null,{"$f":"IF(DataLog!$C43=\"Log value\",DataLog!D43&\"_\"&TEXT(DataLog!B43,\"åååå-mm-dd\"),\"\")","v":""},{"$f":"IF(DataLog!$C43=\"Log value\",DataLog!E43,\"\")","v":""},{"$f":"IF(DataLog!$C43=\"Log value\",DataLog!F43,\"\")","v":""},{"$f":"IF(DataLog!$C43=\"Log value\",DataLog!G43,\"\")","v":""},{"$f":"IF(DataLog!$C43=\"Log value\",DataLog!H43,\"\")","v":""},{"$f":"IF(DataLog!$C43=\"Log value\",DataLog!I43,\"\")","v":""},{"$f":"IF(DataLog!$C43=\"Log value\",DataLog!J43,\"\")","v":""},{"$f":"IF(DataLog!$C43=\"Log value\",DataLog!K43,\"\")","v":""},{"$f":"IF(DataLog!$C43=\"Log value\",DataLog!L43,\"\")","v":""},{"$f":"IF(DataLog!$C43=\"Log value\",DataLog!M43,\"\")","v":""},{"$f":"IF(DataLog!$C43=\"Log value\",DataLog!N43,\"\")","v":""},{"$f":"IF(DataLog!$C43=\"Log value\",DataLog!O43,\"\")","v":""},{"$f":"IF(DataLog!$C43=\"Log value\",DataLog!P43,\"\")","v":""},{"$f":"IF(DataLog!$C43=\"Log value\",DataLog!Q43,\"\")","v":""},{"$f":"IF(DataLog!$C43=\"Log value\",DataLog!R43,\"\")","v":""},{"$f":"IF(DataLog!$C43=\"Log value\",DataLog!S43,\"\")","v":""},{"$f":"IF(DataLog!$C43=\"Log value\",DataLog!T43,\"\")","v":""},{"$f":"IF(DataLog!$C43=\"Log value\",DataLog!U43,\"\")","v":""},{"$f":"IF(DataLog!$C43=\"Log value\",DataLog!V43,\"\")","v":""},{"$f":"IF(DataLog!$C43=\"Log value\",DataLog!W43,\"\")","v":""},{"$f":"IF(DataLog!$C43=\"Log value\",DataLog!X43,\"\")","v":""},{"$f":"IF(DataLog!$C43=\"Log value\",DataLog!Y43,\"\")","v":""},{"$f":"IF(DataLog!$C43=\"Log value\",DataLog!Z43,\"\")","v":""},{"$f":"IF(DataLog!$C43=\"Log value\",DataLog!AA43,\"\")","v":""},{"$f":"IF(DataLog!$C43=\"Log value\",DataLog!AB43,\"\")","v":""},{"$f":"IF(DataLog!$C43=\"Log value\",DataLog!AC43,\"\")","v":""},{"$f":"IF(DataLog!$C43=\"Log value\",DataLog!AD43,\"\")","v":""},{"$f":"IF(DataLog!$C43=\"Log value\",DataLog!AE43,\"\")","v":""},{"$f":"IF(DataLog!$C43=\"Log value\",DataLog!AF43,\"\")","v":""},{"$f":"IF(DataLog!$C43=\"Log value\",DataLog!AG43,\"\")","v":""},{"$f":"IF(DataLog!$C43=\"Log value\",DataLog!AH43,\"\")","v":""},{"$f":"IF(DataLog!$C43=\"Log value\",DataLog!AI43,\"\")","v":""},{"$f":"IF(DataLog!$C43=\"Log value\",DataLog!AJ43,\"\")","v":""},{"$f":"IF(DataLog!$C43=\"Log value\",DataLog!AK43,\"\")","v":""},{"$f":"IF(DataLog!$C43=\"Log value\",DataLog!AL43,\"\")","v":""},{"$f":"IF(DataLog!$C43=\"Log value\",DataLog!AM43,\"\")","v":""}]
[null,null,"Standard","Standard -  - ",null,null,{"$f":"IF(DataLog!$C44=\"Log value\",DataLog!D44&\"_\"&TEXT(DataLog!B44,\"åååå-mm-dd\"),\"\")","v":""},{"$f":"IF(DataLog!$C44=\"Log value\",DataLog!E44,\"\")","v":""},{"$f":"IF(DataLog!$C44=\"Log value\",DataLog!F44,\"\")","v":""},{"$f":"IF(DataLog!$C44=\"Log value\",DataLog!G44,\"\")","v":""},{"$f":"IF(DataLog!$C44=\"Log value\",DataLog!H44,\"\")","v":""},{"$f":"IF(DataLog!$C44=\"Log value\",DataLog!I44,\"\")","v":""},{"$f":"IF(DataLog!$C44=\"Log value\",DataLog!J44,\"\")","v":""},{"$f":"IF(DataLog!$C44=\"Log value\",DataLog!K44,\"\")","v":""},{"$f":"IF(DataLog!$C44=\"Log value\",DataLog!L44,\"\")","v":""},{"$f":"IF(DataLog!$C44=\"Log value\",DataLog!M44,\"\")","v":""},{"$f":"IF(DataLog!$C44=\"Log value\",DataLog!N44,\"\")","v":""},{"$f":"IF(DataLog!$C44=\"Log value\",DataLog!O44,\"\")","v":""},{"$f":"IF(DataLog!$C44=\"Log value\",DataLog!P44,\"\")","v":""},{"$f":"IF(DataLog!$C44=\"Log value\",DataLog!Q44,\"\")","v":""},{"$f":"IF(DataLog!$C44=\"Log value\",DataLog!R44,\"\")","v":""},{"$f":"IF(DataLog!$C44=\"Log value\",DataLog!S44,\"\")","v":""},{"$f":"IF(DataLog!$C44=\"Log value\",DataLog!T44,\"\")","v":""},{"$f":"IF(DataLog!$C44=\"Log value\",DataLog!U44,\"\")","v":""},{"$f":"IF(DataLog!$C44=\"Log value\",DataLog!V44,\"\")","v":""},{"$f":"IF(DataLog!$C44=\"Log value\",DataLog!W44,\"\")","v":""},{"$f":"IF(DataLog!$C44=\"Log value\",DataLog!X44,\"\")","v":""},{"$f":"IF(DataLog!$C44=\"Log value\",DataLog!Y44,\"\")","v":""},{"$f":"IF(DataLog!$C44=\"Log value\",DataLog!Z44,\"\")","v":""},{"$f":"IF(DataLog!$C44=\"Log value\",DataLog!AA44,\"\")","v":""},{"$f":"IF(DataLog!$C44=\"Log value\",DataLog!AB44,\"\")","v":""},{"$f":"IF(DataLog!$C44=\"Log value\",DataLog!AC44,\"\")","v":""},{"$f":"IF(DataLog!$C44=\"Log value\",DataLog!AD44,\"\")","v":""},{"$f":"IF(DataLog!$C44=\"Log value\",DataLog!AE44,\"\")","v":""},{"$f":"IF(DataLog!$C44=\"Log value\",DataLog!AF44,\"\")","v":""},{"$f":"IF(DataLog!$C44=\"Log value\",DataLog!AG44,\"\")","v":""},{"$f":"IF(DataLog!$C44=\"Log value\",DataLog!AH44,\"\")","v":""},{"$f":"IF(DataLog!$C44=\"Log value\",DataLog!AI44,\"\")","v":""},{"$f":"IF(DataLog!$C44=\"Log value\",DataLog!AJ44,\"\")","v":""},{"$f":"IF(DataLog!$C44=\"Log value\",DataLog!AK44,\"\")","v":""},{"$f":"IF(DataLog!$C44=\"Log value\",DataLog!AL44,\"\")","v":""},{"$f":"IF(DataLog!$C44=\"Log value\",DataLog!AM44,\"\")","v":""}]
[null,null,"Standard","Standard -  - ",null,null,{"$f":"IF(DataLog!$C45=\"Log value\",DataLog!D45&\"_\"&TEXT(DataLog!B45,\"åååå-mm-dd\"),\"\")","v":""},{"$f":"IF(DataLog!$C45=\"Log value\",DataLog!E45,\"\")","v":""},{"$f":"IF(DataLog!$C45=\"Log value\",DataLog!F45,\"\")","v":""},{"$f":"IF(DataLog!$C45=\"Log value\",DataLog!G45,\"\")","v":""},{"$f":"IF(DataLog!$C45=\"Log value\",DataLog!H45,\"\")","v":""},{"$f":"IF(DataLog!$C45=\"Log value\",DataLog!I45,\"\")","v":""},{"$f":"IF(DataLog!$C45=\"Log value\",DataLog!J45,\"\")","v":""},{"$f":"IF(DataLog!$C45=\"Log value\",DataLog!K45,\"\")","v":""},{"$f":"IF(DataLog!$C45=\"Log value\",DataLog!L45,\"\")","v":""},{"$f":"IF(DataLog!$C45=\"Log value\",DataLog!M45,\"\")","v":""},{"$f":"IF(DataLog!$C45=\"Log value\",DataLog!N45,\"\")","v":""},{"$f":"IF(DataLog!$C45=\"Log value\",DataLog!O45,\"\")","v":""},{"$f":"IF(DataLog!$C45=\"Log value\",DataLog!P45,\"\")","v":""},{"$f":"IF(DataLog!$C45=\"Log value\",DataLog!Q45,\"\")","v":""},{"$f":"IF(DataLog!$C45=\"Log value\",DataLog!R45,\"\")","v":""},{"$f":"IF(DataLog!$C45=\"Log value\",DataLog!S45,\"\")","v":""},{"$f":"IF(DataLog!$C45=\"Log value\",DataLog!T45,\"\")","v":""},{"$f":"IF(DataLog!$C45=\"Log value\",DataLog!U45,\"\")","v":""},{"$f":"IF(DataLog!$C45=\"Log value\",DataLog!V45,\"\")","v":""},{"$f":"IF(DataLog!$C45=\"Log value\",DataLog!W45,\"\")","v":""},{"$f":"IF(DataLog!$C45=\"Log value\",DataLog!X45,\"\")","v":""},{"$f":"IF(DataLog!$C45=\"Log value\",DataLog!Y45,\"\")","v":""},{"$f":"IF(DataLog!$C45=\"Log value\",DataLog!Z45,\"\")","v":""},{"$f":"IF(DataLog!$C45=\"Log value\",DataLog!AA45,\"\")","v":""},{"$f":"IF(DataLog!$C45=\"Log value\",DataLog!AB45,\"\")","v":""},{"$f":"IF(DataLog!$C45=\"Log value\",DataLog!AC45,\"\")","v":""},{"$f":"IF(DataLog!$C45=\"Log value\",DataLog!AD45,\"\")","v":""},{"$f":"IF(DataLog!$C45=\"Log value\",DataLog!AE45,\"\")","v":""},{"$f":"IF(DataLog!$C45=\"Log value\",DataLog!AF45,\"\")","v":""},{"$f":"IF(DataLog!$C45=\"Log value\",DataLog!AG45,\"\")","v":""},{"$f":"IF(DataLog!$C45=\"Log value\",DataLog!AH45,\"\")","v":""},{"$f":"IF(DataLog!$C45=\"Log value\",DataLog!AI45,\"\")","v":""},{"$f":"IF(DataLog!$C45=\"Log value\",DataLog!AJ45,\"\")","v":""},{"$f":"IF(DataLog!$C45=\"Log value\",DataLog!AK45,\"\")","v":""},{"$f":"IF(DataLog!$C45=\"Log value\",DataLog!AL45,\"\")","v":""},{"$f":"IF(DataLog!$C45=\"Log value\",DataLog!AM45,\"\")","v":""}]
[null,null,"Standard","Standard -  - ",null,null,{"$f":"IF(DataLog!$C46=\"Log value\",DataLog!D46&\"_\"&TEXT(DataLog!B46,\"åååå-mm-dd\"),\"\")","v":""},{"$f":"IF(DataLog!$C46=\"Log value\",DataLog!E46,\"\")","v":""},{"$f":"IF(DataLog!$C46=\"Log value\",DataLog!F46,\"\")","v":""},{"$f":"IF(DataLog!$C46=\"Log value\",DataLog!G46,\"\")","v":""},{"$f":"IF(DataLog!$C46=\"Log value\",DataLog!H46,\"\")","v":""},{"$f":"IF(DataLog!$C46=\"Log value\",DataLog!I46,\"\")","v":""},{"$f":"IF(DataLog!$C46=\"Log value\",DataLog!J46,\"\")","v":""},{"$f":"IF(DataLog!$C46=\"Log value\",DataLog!K46,\"\")","v":""},{"$f":"IF(DataLog!$C46=\"Log value\",DataLog!L46,\"\")","v":""},{"$f":"IF(DataLog!$C46=\"Log value\",DataLog!M46,\"\")","v":""},{"$f":"IF(DataLog!$C46=\"Log value\",DataLog!N46,\"\")","v":""},{"$f":"IF(DataLog!$C46=\"Log value\",DataLog!O46,\"\")","v":""},{"$f":"IF(DataLog!$C46=\"Log value\",DataLog!P46,\"\")","v":""},{"$f":"IF(DataLog!$C46=\"Log value\",DataLog!Q46,\"\")","v":""},{"$f":"IF(DataLog!$C46=\"Log value\",DataLog!R46,\"\")","v":""},{"$f":"IF(DataLog!$C46=\"Log value\",DataLog!S46,\"\")","v":""},{"$f":"IF(DataLog!$C46=\"Log value\",DataLog!T46,\"\")","v":""},{"$f":"IF(DataLog!$C46=\"Log value\",DataLog!U46,\"\")","v":""},{"$f":"IF(DataLog!$C46=\"Log value\",DataLog!V46,\"\")","v":""},{"$f":"IF(DataLog!$C46=\"Log value\",DataLog!W46,\"\")","v":""},{"$f":"IF(DataLog!$C46=\"Log value\",DataLog!X46,\"\")","v":""},{"$f":"IF(DataLog!$C46=\"Log value\",DataLog!Y46,\"\")","v":""},{"$f":"IF(DataLog!$C46=\"Log value\",DataLog!Z46,\"\")","v":""},{"$f":"IF(DataLog!$C46=\"Log value\",DataLog!AA46,\"\")","v":""},{"$f":"IF(DataLog!$C46=\"Log value\",DataLog!AB46,\"\")","v":""},{"$f":"IF(DataLog!$C46=\"Log value\",DataLog!AC46,\"\")","v":""},{"$f":"IF(DataLog!$C46=\"Log value\",DataLog!AD46,\"\")","v":""},{"$f":"IF(DataLog!$C46=\"Log value\",DataLog!AE46,\"\")","v":""},{"$f":"IF(DataLog!$C46=\"Log value\",DataLog!AF46,\"\")","v":""},{"$f":"IF(DataLog!$C46=\"Log value\",DataLog!AG46,\"\")","v":""},{"$f":"IF(DataLog!$C46=\"Log value\",DataLog!AH46,\"\")","v":""},{"$f":"IF(DataLog!$C46=\"Log value\",DataLog!AI46,\"\")","v":""},{"$f":"IF(DataLog!$C46=\"Log value\",DataLog!AJ46,\"\")","v":""},{"$f":"IF(DataLog!$C46=\"Log value\",DataLog!AK46,\"\")","v":""},{"$f":"IF(DataLog!$C46=\"Log value\",DataLog!AL46,\"\")","v":""},{"$f":"IF(DataLog!$C46=\"Log value\",DataLog!AM46,\"\")","v":""}]
[null,null,"Standard","Standard -  - ",null,null,{"$f":"IF(DataLog!$C47=\"Log value\",DataLog!D47&\"_\"&TEXT(DataLog!B47,\"åååå-mm-dd\"),\"\")","v":""},{"$f":"IF(DataLog!$C47=\"Log value\",DataLog!E47,\"\")","v":""},{"$f":"IF(DataLog!$C47=\"Log value\",DataLog!F47,\"\")","v":""},{"$f":"IF(DataLog!$C47=\"Log value\",DataLog!G47,\"\")","v":""},{"$f":"IF(DataLog!$C47=\"Log value\",DataLog!H47,\"\")","v":""},{"$f":"IF(DataLog!$C47=\"Log value\",DataLog!I47,\"\")","v":""},{"$f":"IF(DataLog!$C47=\"Log value\",DataLog!J47,\"\")","v":""},{"$f":"IF(DataLog!$C47=\"Log value\",DataLog!K47,\"\")","v":""},{"$f":"IF(DataLog!$C47=\"Log value\",DataLog!L47,\"\")","v":""},{"$f":"IF(DataLog!$C47=\"Log value\",DataLog!M47,\"\")","v":""},{"$f":"IF(DataLog!$C47=\"Log value\",DataLog!N47,\"\")","v":""},{"$f":"IF(DataLog!$C47=\"Log value\",DataLog!O47,\"\")","v":""},{"$f":"IF(DataLog!$C47=\"Log value\",DataLog!P47,\"\")","v":""},{"$f":"IF(DataLog!$C47=\"Log value\",DataLog!Q47,\"\")","v":""},{"$f":"IF(DataLog!$C47=\"Log value\",DataLog!R47,\"\")","v":""},{"$f":"IF(DataLog!$C47=\"Log value\",DataLog!S47,\"\")","v":""},{"$f":"IF(DataLog!$C47=\"Log value\",DataLog!T47,\"\")","v":""},{"$f":"IF(DataLog!$C47=\"Log value\",DataLog!U47,\"\")","v":""},{"$f":"IF(DataLog!$C47=\"Log value\",DataLog!V47,\"\")","v":""},{"$f":"IF(DataLog!$C47=\"Log value\",DataLog!W47,\"\")","v":""},{"$f":"IF(DataLog!$C47=\"Log value\",DataLog!X47,\"\")","v":""},{"$f":"IF(DataLog!$C47=\"Log value\",DataLog!Y47,\"\")","v":""},{"$f":"IF(DataLog!$C47=\"Log value\",DataLog!Z47,\"\")","v":""},{"$f":"IF(DataLog!$C47=\"Log value\",DataLog!AA47,\"\")","v":""},{"$f":"IF(DataLog!$C47=\"Log value\",DataLog!AB47,\"\")","v":""},{"$f":"IF(DataLog!$C47=\"Log value\",DataLog!AC47,\"\")","v":""},{"$f":"IF(DataLog!$C47=\"Log value\",DataLog!AD47,\"\")","v":""},{"$f":"IF(DataLog!$C47=\"Log value\",DataLog!AE47,\"\")","v":""},{"$f":"IF(DataLog!$C47=\"Log value\",DataLog!AF47,\"\")","v":""},{"$f":"IF(DataLog!$C47=\"Log value\",DataLog!AG47,\"\")","v":""},{"$f":"IF(DataLog!$C47=\"Log value\",DataLog!AH47,\"\")","v":""},{"$f":"IF(DataLog!$C47=\"Log value\",DataLog!AI47,\"\")","v":""},{"$f":"IF(DataLog!$C47=\"Log value\",DataLog!AJ47,\"\")","v":""},{"$f":"IF(DataLog!$C47=\"Log value\",DataLog!AK47,\"\")","v":""},{"$f":"IF(DataLog!$C47=\"Log value\",DataLog!AL47,\"\")","v":""},{"$f":"IF(DataLog!$C47=\"Log value\",DataLog!AM47,\"\")","v":""}]
[null,null,"Standard","Standard -  - ",null,null,{"$f":"IF(DataLog!$C48=\"Log value\",DataLog!D48&\"_\"&TEXT(DataLog!B48,\"åååå-mm-dd\"),\"\")","v":""},{"$f":"IF(DataLog!$C48=\"Log value\",DataLog!E48,\"\")","v":""},{"$f":"IF(DataLog!$C48=\"Log value\",DataLog!F48,\"\")","v":""},{"$f":"IF(DataLog!$C48=\"Log value\",DataLog!G48,\"\")","v":""},{"$f":"IF(DataLog!$C48=\"Log value\",DataLog!H48,\"\")","v":""},{"$f":"IF(DataLog!$C48=\"Log value\",DataLog!I48,\"\")","v":""},{"$f":"IF(DataLog!$C48=\"Log value\",DataLog!J48,\"\")","v":""},{"$f":"IF(DataLog!$C48=\"Log value\",DataLog!K48,\"\")","v":""},{"$f":"IF(DataLog!$C48=\"Log value\",DataLog!L48,\"\")","v":""},{"$f":"IF(DataLog!$C48=\"Log value\",DataLog!M48,\"\")","v":""},{"$f":"IF(DataLog!$C48=\"Log value\",DataLog!N48,\"\")","v":""},{"$f":"IF(DataLog!$C48=\"Log value\",DataLog!O48,\"\")","v":""},{"$f":"IF(DataLog!$C48=\"Log value\",DataLog!P48,\"\")","v":""},{"$f":"IF(DataLog!$C48=\"Log value\",DataLog!Q48,\"\")","v":""},{"$f":"IF(DataLog!$C48=\"Log value\",DataLog!R48,\"\")","v":""},{"$f":"IF(DataLog!$C48=\"Log value\",DataLog!S48,\"\")","v":""},{"$f":"IF(DataLog!$C48=\"Log value\",DataLog!T48,\"\")","v":""},{"$f":"IF(DataLog!$C48=\"Log value\",DataLog!U48,\"\")","v":""},{"$f":"IF(DataLog!$C48=\"Log value\",DataLog!V48,\"\")","v":""},{"$f":"IF(DataLog!$C48=\"Log value\",DataLog!W48,\"\")","v":""},{"$f":"IF(DataLog!$C48=\"Log value\",DataLog!X48,\"\")","v":""},{"$f":"IF(DataLog!$C48=\"Log value\",DataLog!Y48,\"\")","v":""},{"$f":"IF(DataLog!$C48=\"Log value\",DataLog!Z48,\"\")","v":""},{"$f":"IF(DataLog!$C48=\"Log value\",DataLog!AA48,\"\")","v":""},{"$f":"IF(DataLog!$C48=\"Log value\",DataLog!AB48,\"\")","v":""},{"$f":"IF(DataLog!$C48=\"Log value\",DataLog!AC48,\"\")","v":""},{"$f":"IF(DataLog!$C48=\"Log value\",DataLog!AD48,\"\")","v":""},{"$f":"IF(DataLog!$C48=\"Log value\",DataLog!AE48,\"\")","v":""},{"$f":"IF(DataLog!$C48=\"Log value\",DataLog!AF48,\"\")","v":""},{"$f":"IF(DataLog!$C48=\"Log value\",DataLog!AG48,\"\")","v":""},{"$f":"IF(DataLog!$C48=\"Log value\",DataLog!AH48,\"\")","v":""},{"$f":"IF(DataLog!$C48=\"Log value\",DataLog!AI48,\"\")","v":""},{"$f":"IF(DataLog!$C48=\"Log value\",DataLog!AJ48,\"\")","v":""},{"$f":"IF(DataLog!$C48=\"Log value\",DataLog!AK48,\"\")","v":""},{"$f":"IF(DataLog!$C48=\"Log value\",DataLog!AL48,\"\")","v":""},{"$f":"IF(DataLog!$C48=\"Log value\",DataLog!AM48,\"\")","v":""}]
[null,null,"Standard","Standard -  - ",null,null,{"$f":"IF(DataLog!$C49=\"Log value\",DataLog!D49&\"_\"&TEXT(DataLog!B49,\"åååå-mm-dd\"),\"\")","v":""},{"$f":"IF(DataLog!$C49=\"Log value\",DataLog!E49,\"\")","v":""},{"$f":"IF(DataLog!$C49=\"Log value\",DataLog!F49,\"\")","v":""},{"$f":"IF(DataLog!$C49=\"Log value\",DataLog!G49,\"\")","v":""},{"$f":"IF(DataLog!$C49=\"Log value\",DataLog!H49,\"\")","v":""},{"$f":"IF(DataLog!$C49=\"Log value\",DataLog!I49,\"\")","v":""},{"$f":"IF(DataLog!$C49=\"Log value\",DataLog!J49,\"\")","v":""},{"$f":"IF(DataLog!$C49=\"Log value\",DataLog!K49,\"\")","v":""},{"$f":"IF(DataLog!$C49=\"Log value\",DataLog!L49,\"\")","v":""},{"$f":"IF(DataLog!$C49=\"Log value\",DataLog!M49,\"\")","v":""},{"$f":"IF(DataLog!$C49=\"Log value\",DataLog!N49,\"\")","v":""},{"$f":"IF(DataLog!$C49=\"Log value\",DataLog!O49,\"\")","v":""},{"$f":"IF(DataLog!$C49=\"Log value\",DataLog!P49,\"\")","v":""},{"$f":"IF(DataLog!$C49=\"Log value\",DataLog!Q49,\"\")","v":""},{"$f":"IF(DataLog!$C49=\"Log value\",DataLog!R49,\"\")","v":""},{"$f":"IF(DataLog!$C49=\"Log value\",DataLog!S49,\"\")","v":""},{"$f":"IF(DataLog!$C49=\"Log value\",DataLog!T49,\"\")","v":""},{"$f":"IF(DataLog!$C49=\"Log value\",DataLog!U49,\"\")","v":""},{"$f":"IF(DataLog!$C49=\"Log value\",DataLog!V49,\"\")","v":""},{"$f":"IF(DataLog!$C49=\"Log value\",DataLog!W49,\"\")","v":""},{"$f":"IF(DataLog!$C49=\"Log value\",DataLog!X49,\"\")","v":""},{"$f":"IF(DataLog!$C49=\"Log value\",DataLog!Y49,\"\")","v":""},{"$f":"IF(DataLog!$C49=\"Log value\",DataLog!Z49,\"\")","v":""},{"$f":"IF(DataLog!$C49=\"Log value\",DataLog!AA49,\"\")","v":""},{"$f":"IF(DataLog!$C49=\"Log value\",DataLog!AB49,\"\")","v":""},{"$f":"IF(DataLog!$C49=\"Log value\",DataLog!AC49,\"\")","v":""},{"$f":"IF(DataLog!$C49=\"Log value\",DataLog!AD49,\"\")","v":""},{"$f":"IF(DataLog!$C49=\"Log value\",DataLog!AE49,\"\")","v":""},{"$f":"IF(DataLog!$C49=\"Log value\",DataLog!AF49,\"\")","v":""},{"$f":"IF(DataLog!$C49=\"Log value\",DataLog!AG49,\"\")","v":""},{"$f":"IF(DataLog!$C49=\"Log value\",DataLog!AH49,\"\")","v":""},{"$f":"IF(DataLog!$C49=\"Log value\",DataLog!AI49,\"\")","v":""},{"$f":"IF(DataLog!$C49=\"Log value\",DataLog!AJ49,\"\")","v":""},{"$f":"IF(DataLog!$C49=\"Log value\",DataLog!AK49,\"\")","v":""},{"$f":"IF(DataLog!$C49=\"Log value\",DataLog!AL49,\"\")","v":""},{"$f":"IF(DataLog!$C49=\"Log value\",DataLog!AM49,\"\")","v":""}]
[null,null,"Standard","Standard -  - ",null,null,{"$f":"IF(DataLog!$C50=\"Log value\",DataLog!D50&\"_\"&TEXT(DataLog!B50,\"åååå-mm-dd\"),\"\")","v":""},{"$f":"IF(DataLog!$C50=\"Log value\",DataLog!E50,\"\")","v":""},{"$f":"IF(DataLog!$C50=\"Log value\",DataLog!F50,\"\")","v":""},{"$f":"IF(DataLog!$C50=\"Log value\",DataLog!G50,\"\")","v":""},{"$f":"IF(DataLog!$C50=\"Log value\",DataLog!H50,\"\")","v":""},{"$f":"IF(DataLog!$C50=\"Log value\",DataLog!I50,\"\")","v":""},{"$f":"IF(DataLog!$C50=\"Log value\",DataLog!J50,\"\")","v":""},{"$f":"IF(DataLog!$C50=\"Log value\",DataLog!K50,\"\")","v":""},{"$f":"IF(DataLog!$C50=\"Log value\",DataLog!L50,\"\")","v":""},{"$f":"IF(DataLog!$C50=\"Log value\",DataLog!M50,\"\")","v":""},{"$f":"IF(DataLog!$C50=\"Log value\",DataLog!N50,\"\")","v":""},{"$f":"IF(DataLog!$C50=\"Log value\",DataLog!O50,\"\")","v":""},{"$f":"IF(DataLog!$C50=\"Log value\",DataLog!P50,\"\")","v":""},{"$f":"IF(DataLog!$C50=\"Log value\",DataLog!Q50,\"\")","v":""},{"$f":"IF(DataLog!$C50=\"Log value\",DataLog!R50,\"\")","v":""},{"$f":"IF(DataLog!$C50=\"Log value\",DataLog!S50,\"\")","v":""},{"$f":"IF(DataLog!$C50=\"Log value\",DataLog!T50,\"\")","v":""},{"$f":"IF(DataLog!$C50=\"Log value\",DataLog!U50,\"\")","v":""},{"$f":"IF(DataLog!$C50=\"Log value\",DataLog!V50,\"\")","v":""},{"$f":"IF(DataLog!$C50=\"Log value\",DataLog!W50,\"\")","v":""},{"$f":"IF(DataLog!$C50=\"Log value\",DataLog!X50,\"\")","v":""},{"$f":"IF(DataLog!$C50=\"Log value\",DataLog!Y50,\"\")","v":""},{"$f":"IF(DataLog!$C50=\"Log value\",DataLog!Z50,\"\")","v":""},{"$f":"IF(DataLog!$C50=\"Log value\",DataLog!AA50,\"\")","v":""},{"$f":"IF(DataLog!$C50=\"Log value\",DataLog!AB50,\"\")","v":""},{"$f":"IF(DataLog!$C50=\"Log value\",DataLog!AC50,\"\")","v":""},{"$f":"IF(DataLog!$C50=\"Log value\",DataLog!AD50,\"\")","v":""},{"$f":"IF(DataLog!$C50=\"Log value\",DataLog!AE50,\"\")","v":""},{"$f":"IF(DataLog!$C50=\"Log value\",DataLog!AF50,\"\")","v":""},{"$f":"IF(DataLog!$C50=\"Log value\",DataLog!AG50,\"\")","v":""},{"$f":"IF(DataLog!$C50=\"Log value\",DataLog!AH50,\"\")","v":""},{"$f":"IF(DataLog!$C50=\"Log value\",DataLog!AI50,\"\")","v":""},{"$f":"IF(DataLog!$C50=\"Log value\",DataLog!AJ50,\"\")","v":""},{"$f":"IF(DataLog!$C50=\"Log value\",DataLog!AK50,\"\")","v":""},{"$f":"IF(DataLog!$C50=\"Log value\",DataLog!AL50,\"\")","v":""},{"$f":"IF(DataLog!$C50=\"Log value\",DataLog!AM50,\"\")","v":""}]
[null,null,"Standard","Standard -  - ",null,null,{"$f":"IF(DataLog!$C51=\"Log value\",DataLog!D51&\"_\"&TEXT(DataLog!B51,\"åååå-mm-dd\"),\"\")","v":""},{"$f":"IF(DataLog!$C51=\"Log value\",DataLog!E51,\"\")","v":""},{"$f":"IF(DataLog!$C51=\"Log value\",DataLog!F51,\"\")","v":""},{"$f":"IF(DataLog!$C51=\"Log value\",DataLog!G51,\"\")","v":""},{"$f":"IF(DataLog!$C51=\"Log value\",DataLog!H51,\"\")","v":""},{"$f":"IF(DataLog!$C51=\"Log value\",DataLog!I51,\"\")","v":""},{"$f":"IF(DataLog!$C51=\"Log value\",DataLog!J51,\"\")","v":""},{"$f":"IF(DataLog!$C51=\"Log value\",DataLog!K51,\"\")","v":""},{"$f":"IF(DataLog!$C51=\"Log value\",DataLog!L51,\"\")","v":""},{"$f":"IF(DataLog!$C51=\"Log value\",DataLog!M51,\"\")","v":""},{"$f":"IF(DataLog!$C51=\"Log value\",DataLog!N51,\"\")","v":""},{"$f":"IF(DataLog!$C51=\"Log value\",DataLog!O51,\"\")","v":""},{"$f":"IF(DataLog!$C51=\"Log value\",DataLog!P51,\"\")","v":""},{"$f":"IF(DataLog!$C51=\"Log value\",DataLog!Q51,\"\")","v":""},{"$f":"IF(DataLog!$C51=\"Log value\",DataLog!R51,\"\")","v":""},{"$f":"IF(DataLog!$C51=\"Log value\",DataLog!S51,\"\")","v":""},{"$f":"IF(DataLog!$C51=\"Log value\",DataLog!T51,\"\")","v":""},{"$f":"IF(DataLog!$C51=\"Log value\",DataLog!U51,\"\")","v":""},{"$f":"IF(DataLog!$C51=\"Log value\",DataLog!V51,\"\")","v":""},{"$f":"IF(DataLog!$C51=\"Log value\",DataLog!W51,\"\")","v":""},{"$f":"IF(DataLog!$C51=\"Log value\",DataLog!X51,\"\")","v":""},{"$f":"IF(DataLog!$C51=\"Log value\",DataLog!Y51,\"\")","v":""},{"$f":"IF(DataLog!$C51=\"Log value\",DataLog!Z51,\"\")","v":""},{"$f":"IF(DataLog!$C51=\"Log value\",DataLog!AA51,\"\")","v":""},{"$f":"IF(DataLog!$C51=\"Log value\",DataLog!AB51,\"\")","v":""},{"$f":"IF(DataLog!$C51=\"Log value\",DataLog!AC51,\"\")","v":""},{"$f":"IF(DataLog!$C51=\"Log value\",DataLog!AD51,\"\")","v":""},{"$f":"IF(DataLog!$C51=\"Log value\",DataLog!AE51,\"\")","v":""},{"$f":"IF(DataLog!$C51=\"Log value\",DataLog!AF51,\"\")","v":""},{"$f":"IF(DataLog!$C51=\"Log value\",DataLog!AG51,\"\")","v":""},{"$f":"IF(DataLog!$C51=\"Log value\",DataLog!AH51,\"\")","v":""},{"$f":"IF(DataLog!$C51=\"Log value\",DataLog!AI51,\"\")","v":""},{"$f":"IF(DataLog!$C51=\"Log value\",DataLog!AJ51,\"\")","v":""},{"$f":"IF(DataLog!$C51=\"Log value\",DataLog!AK51,\"\")","v":""},{"$f":"IF(DataLog!$C51=\"Log value\",DataLog!AL51,\"\")","v":""},{"$f":"IF(DataLog!$C51=\"Log value\",DataLog!AM51,\"\")","v":""}]
[null,null,"Standard","Standard -  - ",null,null,{"$f":"IF(DataLog!$C52=\"Log value\",DataLog!D52&\"_\"&TEXT(DataLog!B52,\"åååå-mm-dd\"),\"\")","v":""},{"$f":"IF(DataLog!$C52=\"Log value\",DataLog!E52,\"\")","v":""},{"$f":"IF(DataLog!$C52=\"Log value\",DataLog!F52,\"\")","v":""},{"$f":"IF(DataLog!$C52=\"Log value\",DataLog!G52,\"\")","v":""},{"$f":"IF(DataLog!$C52=\"Log value\",DataLog!H52,\"\")","v":""},{"$f":"IF(DataLog!$C52=\"Log value\",DataLog!I52,\"\")","v":""},{"$f":"IF(DataLog!$C52=\"Log value\",DataLog!J52,\"\")","v":""},{"$f":"IF(DataLog!$C52=\"Log value\",DataLog!K52,\"\")","v":""},{"$f":"IF(DataLog!$C52=\"Log value\",DataLog!L52,\"\")","v":""},{"$f":"IF(DataLog!$C52=\"Log value\",DataLog!M52,\"\")","v":""},{"$f":"IF(DataLog!$C52=\"Log value\",DataLog!N52,\"\")","v":""},{"$f":"IF(DataLog!$C52=\"Log value\",DataLog!O52,\"\")","v":""},{"$f":"IF(DataLog!$C52=\"Log value\",DataLog!P52,\"\")","v":""},{"$f":"IF(DataLog!$C52=\"Log value\",DataLog!Q52,\"\")","v":""},{"$f":"IF(DataLog!$C52=\"Log value\",DataLog!R52,\"\")","v":""},{"$f":"IF(DataLog!$C52=\"Log value\",DataLog!S52,\"\")","v":""},{"$f":"IF(DataLog!$C52=\"Log value\",DataLog!T52,\"\")","v":""},{"$f":"IF(DataLog!$C52=\"Log value\",DataLog!U52,\"\")","v":""},{"$f":"IF(DataLog!$C52=\"Log value\",DataLog!V52,\"\")","v":""},{"$f":"IF(DataLog!$C52=\"Log value\",DataLog!W52,\"\")","v":""},{"$f":"IF(DataLog!$C52=\"Log value\",DataLog!X52,\"\")","v":""},{"$f":"IF(DataLog!$C52=\"Log value\",DataLog!Y52,\"\")","v":""},{"$f":"IF(DataLog!$C52=\"Log value\",DataLog!Z52,\"\")","v":""},{"$f":"IF(DataLog!$C52=\"Log value\",DataLog!AA52,\"\")","v":""},{"$f":"IF(DataLog!$C52=\"Log value\",DataLog!AB52,\"\")","v":""},{"$f":"IF(DataLog!$C52=\"Log value\",DataLog!AC52,\"\")","v":""},{"$f":"IF(DataLog!$C52=\"Log value\",DataLog!AD52,\"\")","v":""},{"$f":"IF(DataLog!$C52=\"Log value\",DataLog!AE52,\"\")","v":""},{"$f":"IF(DataLog!$C52=\"Log value\",DataLog!AF52,\"\")","v":""},{"$f":"IF(DataLog!$C52=\"Log value\",DataLog!AG52,\"\")","v":""},{"$f":"IF(DataLog!$C52=\"Log value\",DataLog!AH52,\"\")","v":""},{"$f":"IF(DataLog!$C52=\"Log value\",DataLog!AI52,\"\")","v":""},{"$f":"IF(DataLog!$C52=\"Log value\",DataLog!AJ52,\"\")","v":""},{"$f":"IF(DataLog!$C52=\"Log value\",DataLog!AK52,\"\")","v":""},{"$f":"IF(DataLog!$C52=\"Log value\",DataLog!AL52,\"\")","v":""},{"$f":"IF(DataLog!$C52=\"Log value\",DataLog!AM52,\"\")","v":""}]
[null,null,"Standard","Standard -  - ",null,null,{"$f":"IF(DataLog!$C53=\"Log value\",DataLog!D53&\"_\"&TEXT(DataLog!B53,\"åååå-mm-dd\"),\"\")","v":""},{"$f":"IF(DataLog!$C53=\"Log value\",DataLog!E53,\"\")","v":""},{"$f":"IF(DataLog!$C53=\"Log value\",DataLog!F53,\"\")","v":""},{"$f":"IF(DataLog!$C53=\"Log value\",DataLog!G53,\"\")","v":""},{"$f":"IF(DataLog!$C53=\"Log value\",DataLog!H53,\"\")","v":""},{"$f":"IF(DataLog!$C53=\"Log value\",DataLog!I53,\"\")","v":""},{"$f":"IF(DataLog!$C53=\"Log value\",DataLog!J53,\"\")","v":""},{"$f":"IF(DataLog!$C53=\"Log value\",DataLog!K53,\"\")","v":""},{"$f":"IF(DataLog!$C53=\"Log value\",DataLog!L53,\"\")","v":""},{"$f":"IF(DataLog!$C53=\"Log value\",DataLog!M53,\"\")","v":""},{"$f":"IF(DataLog!$C53=\"Log value\",DataLog!N53,\"\")","v":""},{"$f":"IF(DataLog!$C53=\"Log value\",DataLog!O53,\"\")","v":""},{"$f":"IF(DataLog!$C53=\"Log value\",DataLog!P53,\"\")","v":""},{"$f":"IF(DataLog!$C53=\"Log value\",DataLog!Q53,\"\")","v":""},{"$f":"IF(DataLog!$C53=\"Log value\",DataLog!R53,\"\")","v":""},{"$f":"IF(DataLog!$C53=\"Log value\",DataLog!S53,\"\")","v":""},{"$f":"IF(DataLog!$C53=\"Log value\",DataLog!T53,\"\")","v":""},{"$f":"IF(DataLog!$C53=\"Log value\",DataLog!U53,\"\")","v":""},{"$f":"IF(DataLog!$C53=\"Log value\",DataLog!V53,\"\")","v":""},{"$f":"IF(DataLog!$C53=\"Log value\",DataLog!W53,\"\")","v":""},{"$f":"IF(DataLog!$C53=\"Log value\",DataLog!X53,\"\")","v":""},{"$f":"IF(DataLog!$C53=\"Log value\",DataLog!Y53,\"\")","v":""},{"$f":"IF(DataLog!$C53=\"Log value\",DataLog!Z53,\"\")","v":""},{"$f":"IF(DataLog!$C53=\"Log value\",DataLog!AA53,\"\")","v":""},{"$f":"IF(DataLog!$C53=\"Log value\",DataLog!AB53,\"\")","v":""},{"$f":"IF(DataLog!$C53=\"Log value\",DataLog!AC53,\"\")","v":""},{"$f":"IF(DataLog!$C53=\"Log value\",DataLog!AD53,\"\")","v":""},{"$f":"IF(DataLog!$C53=\"Log value\",DataLog!AE53,\"\")","v":""},{"$f":"IF(DataLog!$C53=\"Log value\",DataLog!AF53,\"\")","v":""},{"$f":"IF(DataLog!$C53=\"Log value\",DataLog!AG53,\"\")","v":""},{"$f":"IF(DataLog!$C53=\"Log value\",DataLog!AH53,\"\")","v":""},{"$f":"IF(DataLog!$C53=\"Log value\",DataLog!AI53,\"\")","v":""},{"$f":"IF(DataLog!$C53=\"Log value\",DataLog!AJ53,\"\")","v":""},{"$f":"IF(DataLog!$C53=\"Log value\",DataLog!AK53,\"\")","v":""},{"$f":"IF(DataLog!$C53=\"Log value\",DataLog!AL53,\"\")","v":""},{"$f":"IF(DataLog!$C53=\"Log value\",DataLog!AM53,\"\")","v":""}]
[null,null,"Standard","Standard -  - ",null,null,{"$f":"IF(DataLog!$C54=\"Log value\",DataLog!D54&\"_\"&TEXT(DataLog!B54,\"åååå-mm-dd\"),\"\")","v":""},{"$f":"IF(DataLog!$C54=\"Log value\",DataLog!E54,\"\")","v":""},{"$f":"IF(DataLog!$C54=\"Log value\",DataLog!F54,\"\")","v":""},{"$f":"IF(DataLog!$C54=\"Log value\",DataLog!G54,\"\")","v":""},{"$f":"IF(DataLog!$C54=\"Log value\",DataLog!H54,\"\")","v":""},{"$f":"IF(DataLog!$C54=\"Log value\",DataLog!I54,\"\")","v":""},{"$f":"IF(DataLog!$C54=\"Log value\",DataLog!J54,\"\")","v":""},{"$f":"IF(DataLog!$C54=\"Log value\",DataLog!K54,\"\")","v":""},{"$f":"IF(DataLog!$C54=\"Log value\",DataLog!L54,\"\")","v":""},{"$f":"IF(DataLog!$C54=\"Log value\",DataLog!M54,\"\")","v":""},{"$f":"IF(DataLog!$C54=\"Log value\",DataLog!N54,\"\")","v":""},{"$f":"IF(DataLog!$C54=\"Log value\",DataLog!O54,\"\")","v":""},{"$f":"IF(DataLog!$C54=\"Log value\",DataLog!P54,\"\")","v":""},{"$f":"IF(DataLog!$C54=\"Log value\",DataLog!Q54,\"\")","v":""},{"$f":"IF(DataLog!$C54=\"Log value\",DataLog!R54,\"\")","v":""},{"$f":"IF(DataLog!$C54=\"Log value\",DataLog!S54,\"\")","v":""},{"$f":"IF(DataLog!$C54=\"Log value\",DataLog!T54,\"\")","v":""},{"$f":"IF(DataLog!$C54=\"Log value\",DataLog!U54,\"\")","v":""},{"$f":"IF(DataLog!$C54=\"Log value\",DataLog!V54,\"\")","v":""},{"$f":"IF(DataLog!$C54=\"Log value\",DataLog!W54,\"\")","v":""},{"$f":"IF(DataLog!$C54=\"Log value\",DataLog!X54,\"\")","v":""},{"$f":"IF(DataLog!$C54=\"Log value\",DataLog!Y54,\"\")","v":""},{"$f":"IF(DataLog!$C54=\"Log value\",DataLog!Z54,\"\")","v":""},{"$f":"IF(DataLog!$C54=\"Log value\",DataLog!AA54,\"\")","v":""},{"$f":"IF(DataLog!$C54=\"Log value\",DataLog!AB54,\"\")","v":""},{"$f":"IF(DataLog!$C54=\"Log value\",DataLog!AC54,\"\")","v":""},{"$f":"IF(DataLog!$C54=\"Log value\",DataLog!AD54,\"\")","v":""},{"$f":"IF(DataLog!$C54=\"Log value\",DataLog!AE54,\"\")","v":""},{"$f":"IF(DataLog!$C54=\"Log value\",DataLog!AF54,\"\")","v":""},{"$f":"IF(DataLog!$C54=\"Log value\",DataLog!AG54,\"\")","v":""},{"$f":"IF(DataLog!$C54=\"Log value\",DataLog!AH54,\"\")","v":""},{"$f":"IF(DataLog!$C54=\"Log value\",DataLog!AI54,\"\")","v":""},{"$f":"IF(DataLog!$C54=\"Log value\",DataLog!AJ54,\"\")","v":""},{"$f":"IF(DataLog!$C54=\"Log value\",DataLog!AK54,\"\")","v":""},{"$f":"IF(DataLog!$C54=\"Log value\",DataLog!AL54,\"\")","v":""},{"$f":"IF(DataLog!$C54=\"Log value\",DataLog!AM54,\"\")","v":""}]
[null,null,"Standard","Standard -  - ",null,null,{"$f":"IF(DataLog!$C55=\"Log value\",DataLog!D55&\"_\"&TEXT(DataLog!B55,\"åååå-mm-dd\"),\"\")","v":""},{"$f":"IF(DataLog!$C55=\"Log value\",DataLog!E55,\"\")","v":""},{"$f":"IF(DataLog!$C55=\"Log value\",DataLog!F55,\"\")","v":""},{"$f":"IF(DataLog!$C55=\"Log value\",DataLog!G55,\"\")","v":""},{"$f":"IF(DataLog!$C55=\"Log value\",DataLog!H55,\"\")","v":""},{"$f":"IF(DataLog!$C55=\"Log value\",DataLog!I55,\"\")","v":""},{"$f":"IF(DataLog!$C55=\"Log value\",DataLog!J55,\"\")","v":""},{"$f":"IF(DataLog!$C55=\"Log value\",DataLog!K55,\"\")","v":""},{"$f":"IF(DataLog!$C55=\"Log value\",DataLog!L55,\"\")","v":""},{"$f":"IF(DataLog!$C55=\"Log value\",DataLog!M55,\"\")","v":""},{"$f":"IF(DataLog!$C55=\"Log value\",DataLog!N55,\"\")","v":""},{"$f":"IF(DataLog!$C55=\"Log value\",DataLog!O55,\"\")","v":""},{"$f":"IF(DataLog!$C55=\"Log value\",DataLog!P55,\"\")","v":""},{"$f":"IF(DataLog!$C55=\"Log value\",DataLog!Q55,\"\")","v":""},{"$f":"IF(DataLog!$C55=\"Log value\",DataLog!R55,\"\")","v":""},{"$f":"IF(DataLog!$C55=\"Log value\",DataLog!S55,\"\")","v":""},{"$f":"IF(DataLog!$C55=\"Log value\",DataLog!T55,\"\")","v":""},{"$f":"IF(DataLog!$C55=\"Log value\",DataLog!U55,\"\")","v":""},{"$f":"IF(DataLog!$C55=\"Log value\",DataLog!V55,\"\")","v":""},{"$f":"IF(DataLog!$C55=\"Log value\",DataLog!W55,\"\")","v":""},{"$f":"IF(DataLog!$C55=\"Log value\",DataLog!X55,\"\")","v":""},{"$f":"IF(DataLog!$C55=\"Log value\",DataLog!Y55,\"\")","v":""},{"$f":"IF(DataLog!$C55=\"Log value\",DataLog!Z55,\"\")","v":""},{"$f":"IF(DataLog!$C55=\"Log value\",DataLog!AA55,\"\")","v":""},{"$f":"IF(DataLog!$C55=\"Log value\",DataLog!AB55,\"\")","v":""},{"$f":"IF(DataLog!$C55=\"Log value\",DataLog!AC55,\"\")","v":""},{"$f":"IF(DataLog!$C55=\"Log value\",DataLog!AD55,\"\")","v":""},{"$f":"IF(DataLog!$C55=\"Log value\",DataLog!AE55,\"\")","v":""},{"$f":"IF(DataLog!$C55=\"Log value\",DataLog!AF55,\"\")","v":""},{"$f":"IF(DataLog!$C55=\"Log value\",DataLog!AG55,\"\")","v":""},{"$f":"IF(DataLog!$C55=\"Log value\",DataLog!AH55,\"\")","v":""},{"$f":"IF(DataLog!$C55=\"Log value\",DataLog!AI55,\"\")","v":""},{"$f":"IF(DataLog!$C55=\"Log value\",DataLog!AJ55,\"\")","v":""},{"$f":"IF(DataLog!$C55=\"Log value\",DataLog!AK55,\"\")","v":""},{"$f":"IF(DataLog!$C55=\"Log value\",DataLog!AL55,\"\")","v":""},{"$f":"IF(DataLog!$C55=\"Log value\",DataLog!AM55,\"\")","v":""}]
[null,null,"Standard","Standard -  - ",null,null,{"$f":"IF(DataLog!$C56=\"Log value\",DataLog!D56&\"_\"&TEXT(DataLog!B56,\"åååå-mm-dd\"),\"\")","v":""},{"$f":"IF(DataLog!$C56=\"Log value\",DataLog!E56,\"\")","v":""},{"$f":"IF(DataLog!$C56=\"Log value\",DataLog!F56,\"\")","v":""},{"$f":"IF(DataLog!$C56=\"Log value\",DataLog!G56,\"\")","v":""},{"$f":"IF(DataLog!$C56=\"Log value\",DataLog!H56,\"\")","v":""},{"$f":"IF(DataLog!$C56=\"Log value\",DataLog!I56,\"\")","v":""},{"$f":"IF(DataLog!$C56=\"Log value\",DataLog!J56,\"\")","v":""},{"$f":"IF(DataLog!$C56=\"Log value\",DataLog!K56,\"\")","v":""},{"$f":"IF(DataLog!$C56=\"Log value\",DataLog!L56,\"\")","v":""},{"$f":"IF(DataLog!$C56=\"Log value\",DataLog!M56,\"\")","v":""},{"$f":"IF(DataLog!$C56=\"Log value\",DataLog!N56,\"\")","v":""},{"$f":"IF(DataLog!$C56=\"Log value\",DataLog!O56,\"\")","v":""},{"$f":"IF(DataLog!$C56=\"Log value\",DataLog!P56,\"\")","v":""},{"$f":"IF(DataLog!$C56=\"Log value\",DataLog!Q56,\"\")","v":""},{"$f":"IF(DataLog!$C56=\"Log value\",DataLog!R56,\"\")","v":""},{"$f":"IF(DataLog!$C56=\"Log value\",DataLog!S56,\"\")","v":""},{"$f":"IF(DataLog!$C56=\"Log value\",DataLog!T56,\"\")","v":""},{"$f":"IF(DataLog!$C56=\"Log value\",DataLog!U56,\"\")","v":""},{"$f":"IF(DataLog!$C56=\"Log value\",DataLog!V56,\"\")","v":""},{"$f":"IF(DataLog!$C56=\"Log value\",DataLog!W56,\"\")","v":""},{"$f":"IF(DataLog!$C56=\"Log value\",DataLog!X56,\"\")","v":""},{"$f":"IF(DataLog!$C56=\"Log value\",DataLog!Y56,\"\")","v":""},{"$f":"IF(DataLog!$C56=\"Log value\",DataLog!Z56,\"\")","v":""},{"$f":"IF(DataLog!$C56=\"Log value\",DataLog!AA56,\"\")","v":""},{"$f":"IF(DataLog!$C56=\"Log value\",DataLog!AB56,\"\")","v":""},{"$f":"IF(DataLog!$C56=\"Log value\",DataLog!AC56,\"\")","v":""},{"$f":"IF(DataLog!$C56=\"Log value\",DataLog!AD56,\"\")","v":""},{"$f":"IF(DataLog!$C56=\"Log value\",DataLog!AE56,\"\")","v":""},{"$f":"IF(DataLog!$C56=\"Log value\",DataLog!AF56,\"\")","v":""},{"$f":"IF(DataLog!$C56=\"Log value\",DataLog!AG56,\"\")","v":""},{"$f":"IF(DataLog!$C56=\"Log value\",DataLog!AH56,\"\")","v":""},{"$f":"IF(DataLog!$C56=\"Log value\",DataLog!AI56,\"\")","v":""},{"$f":"IF(DataLog!$C56=\"Log value\",DataLog!AJ56,\"\")","v":""},{"$f":"IF(DataLog!$C56=\"Log value\",DataLog!AK56,\"\")","v":""},{"$f":"IF(DataLog!$C56=\"Log value\",DataLog!AL56,\"\")","v":""},{"$f":"IF(DataLog!$C56=\"Log value\",DataLog!AM56,\"\")","v":""}]
[null,null,"Standard","Standard -  - ",null,null,{"$f":"IF(DataLog!$C57=\"Log value\",DataLog!D57&\"_\"&TEXT(DataLog!B57,\"åååå-mm-dd\"),\"\")","v":""},{"$f":"IF(DataLog!$C57=\"Log value\",DataLog!E57,\"\")","v":""},{"$f":"IF(DataLog!$C57=\"Log value\",DataLog!F57,\"\")","v":""},{"$f":"IF(DataLog!$C57=\"Log value\",DataLog!G57,\"\")","v":""},{"$f":"IF(DataLog!$C57=\"Log value\",DataLog!H57,\"\")","v":""},{"$f":"IF(DataLog!$C57=\"Log value\",DataLog!I57,\"\")","v":""},{"$f":"IF(DataLog!$C57=\"Log value\",DataLog!J57,\"\")","v":""},{"$f":"IF(DataLog!$C57=\"Log value\",DataLog!K57,\"\")","v":""},{"$f":"IF(DataLog!$C57=\"Log value\",DataLog!L57,\"\")","v":""},{"$f":"IF(DataLog!$C57=\"Log value\",DataLog!M57,\"\")","v":""},{"$f":"IF(DataLog!$C57=\"Log value\",DataLog!N57,\"\")","v":""},{"$f":"IF(DataLog!$C57=\"Log value\",DataLog!O57,\"\")","v":""},{"$f":"IF(DataLog!$C57=\"Log value\",DataLog!P57,\"\")","v":""},{"$f":"IF(DataLog!$C57=\"Log value\",DataLog!Q57,\"\")","v":""},{"$f":"IF(DataLog!$C57=\"Log value\",DataLog!R57,\"\")","v":""},{"$f":"IF(DataLog!$C57=\"Log value\",DataLog!S57,\"\")","v":""},{"$f":"IF(DataLog!$C57=\"Log value\",DataLog!T57,\"\")","v":""},{"$f":"IF(DataLog!$C57=\"Log value\",DataLog!U57,\"\")","v":""},{"$f":"IF(DataLog!$C57=\"Log value\",DataLog!V57,\"\")","v":""},{"$f":"IF(DataLog!$C57=\"Log value\",DataLog!W57,\"\")","v":""},{"$f":"IF(DataLog!$C57=\"Log value\",DataLog!X57,\"\")","v":""},{"$f":"IF(DataLog!$C57=\"Log value\",DataLog!Y57,\"\")","v":""},{"$f":"IF(DataLog!$C57=\"Log value\",DataLog!Z57,\"\")","v":""},{"$f":"IF(DataLog!$C57=\"Log value\",DataLog!AA57,\"\")","v":""},{"$f":"IF(DataLog!$C57=\"Log value\",DataLog!AB57,\"\")","v":""},{"$f":"IF(DataLog!$C57=\"Log value\",DataLog!AC57,\"\")","v":""},{"$f":"IF(DataLog!$C57=\"Log value\",DataLog!AD57,\"\")","v":""},{"$f":"IF(DataLog!$C57=\"Log value\",DataLog!AE57,\"\")","v":""},{"$f":"IF(DataLog!$C57=\"Log value\",DataLog!AF57,\"\")","v":""},{"$f":"IF(DataLog!$C57=\"Log value\",DataLog!AG57,\"\")","v":""},{"$f":"IF(DataLog!$C57=\"Log value\",DataLog!AH57,\"\")","v":""},{"$f":"IF(DataLog!$C57=\"Log value\",DataLog!AI57,\"\")","v":""},{"$f":"IF(DataLog!$C57=\"Log value\",DataLog!AJ57,\"\")","v":""},{"$f":"IF(DataLog!$C57=\"Log value\",DataLog!AK57,\"\")","v":""},{"$f":"IF(DataLog!$C57=\"Log value\",DataLog!AL57,\"\")","v":""},{"$f":"IF(DataLog!$C57=\"Log value\",DataLog!AM57,\"\")","v":""}]
[null,null,"Standard","Standard -  - ",null,null,{"$f":"IF(DataLog!$C58=\"Log value\",DataLog!D58&\"_\"&TEXT(DataLog!B58,\"åååå-mm-dd\"),\"\")","v":""},{"$f":"IF(DataLog!$C58=\"Log value\",DataLog!E58,\"\")","v":""},{"$f":"IF(DataLog!$C58=\"Log value\",DataLog!F58,\"\")","v":""},{"$f":"IF(DataLog!$C58=\"Log value\",DataLog!G58,\"\")","v":""},{"$f":"IF(DataLog!$C58=\"Log value\",DataLog!H58,\"\")","v":""},{"$f":"IF(DataLog!$C58=\"Log value\",DataLog!I58,\"\")","v":""},{"$f":"IF(DataLog!$C58=\"Log value\",DataLog!J58,\"\")","v":""},{"$f":"IF(DataLog!$C58=\"Log value\",DataLog!K58,\"\")","v":""},{"$f":"IF(DataLog!$C58=\"Log value\",DataLog!L58,\"\")","v":""},{"$f":"IF(DataLog!$C58=\"Log value\",DataLog!M58,\"\")","v":""},{"$f":"IF(DataLog!$C58=\"Log value\",DataLog!N58,\"\")","v":""},{"$f":"IF(DataLog!$C58=\"Log value\",DataLog!O58,\"\")","v":""},{"$f":"IF(DataLog!$C58=\"Log value\",DataLog!P58,\"\")","v":""},{"$f":"IF(DataLog!$C58=\"Log value\",DataLog!Q58,\"\")","v":""},{"$f":"IF(DataLog!$C58=\"Log value\",DataLog!R58,\"\")","v":""},{"$f":"IF(DataLog!$C58=\"Log value\",DataLog!S58,\"\")","v":""},{"$f":"IF(DataLog!$C58=\"Log value\",DataLog!T58,\"\")","v":""},{"$f":"IF(DataLog!$C58=\"Log value\",DataLog!U58,\"\")","v":""},{"$f":"IF(DataLog!$C58=\"Log value\",DataLog!V58,\"\")","v":""},{"$f":"IF(DataLog!$C58=\"Log value\",DataLog!W58,\"\")","v":""},{"$f":"IF(DataLog!$C58=\"Log value\",DataLog!X58,\"\")","v":""},{"$f":"IF(DataLog!$C58=\"Log value\",DataLog!Y58,\"\")","v":""},{"$f":"IF(DataLog!$C58=\"Log value\",DataLog!Z58,\"\")","v":""},{"$f":"IF(DataLog!$C58=\"Log value\",DataLog!AA58,\"\")","v":""},{"$f":"IF(DataLog!$C58=\"Log value\",DataLog!AB58,\"\")","v":""},{"$f":"IF(DataLog!$C58=\"Log value\",DataLog!AC58,\"\")","v":""},{"$f":"IF(DataLog!$C58=\"Log value\",DataLog!AD58,\"\")","v":""},{"$f":"IF(DataLog!$C58=\"Log value\",DataLog!AE58,\"\")","v":""},{"$f":"IF(DataLog!$C58=\"Log value\",DataLog!AF58,\"\")","v":""},{"$f":"IF(DataLog!$C58=\"Log value\",DataLog!AG58,\"\")","v":""},{"$f":"IF(DataLog!$C58=\"Log value\",DataLog!AH58,\"\")","v":""},{"$f":"IF(DataLog!$C58=\"Log value\",DataLog!AI58,\"\")","v":""},{"$f":"IF(DataLog!$C58=\"Log value\",DataLog!AJ58,\"\")","v":""},{"$f":"IF(DataLog!$C58=\"Log value\",DataLog!AK58,\"\")","v":""},{"$f":"IF(DataLog!$C58=\"Log value\",DataLog!AL58,\"\")","v":""},{"$f":"IF(DataLog!$C58=\"Log value\",DataLog!AM58,\"\")","v":""}]
[null,null,"Standard","Standard -  - ",null,null,{"$f":"IF(DataLog!$C59=\"Log value\",DataLog!D59&\"_\"&TEXT(DataLog!B59,\"åååå-mm-dd\"),\"\")","v":""},{"$f":"IF(DataLog!$C59=\"Log value\",DataLog!E59,\"\")","v":""},{"$f":"IF(DataLog!$C59=\"Log value\",DataLog!F59,\"\")","v":""},{"$f":"IF(DataLog!$C59=\"Log value\",DataLog!G59,\"\")","v":""},{"$f":"IF(DataLog!$C59=\"Log value\",DataLog!H59,\"\")","v":""},{"$f":"IF(DataLog!$C59=\"Log value\",DataLog!I59,\"\")","v":""},{"$f":"IF(DataLog!$C59=\"Log value\",DataLog!J59,\"\")","v":""},{"$f":"IF(DataLog!$C59=\"Log value\",DataLog!K59,\"\")","v":""},{"$f":"IF(DataLog!$C59=\"Log value\",DataLog!L59,\"\")","v":""},{"$f":"IF(DataLog!$C59=\"Log value\",DataLog!M59,\"\")","v":""},{"$f":"IF(DataLog!$C59=\"Log value\",DataLog!N59,\"\")","v":""},{"$f":"IF(DataLog!$C59=\"Log value\",DataLog!O59,\"\")","v":""},{"$f":"IF(DataLog!$C59=\"Log value\",DataLog!P59,\"\")","v":""},{"$f":"IF(DataLog!$C59=\"Log value\",DataLog!Q59,\"\")","v":""},{"$f":"IF(DataLog!$C59=\"Log value\",DataLog!R59,\"\")","v":""},{"$f":"IF(DataLog!$C59=\"Log value\",DataLog!S59,\"\")","v":""},{"$f":"IF(DataLog!$C59=\"Log value\",DataLog!T59,\"\")","v":""},{"$f":"IF(DataLog!$C59=\"Log value\",DataLog!U59,\"\")","v":""},{"$f":"IF(DataLog!$C59=\"Log value\",DataLog!V59,\"\")","v":""},{"$f":"IF(DataLog!$C59=\"Log value\",DataLog!W59,\"\")","v":""},{"$f":"IF(DataLog!$C59=\"Log value\",DataLog!X59,\"\")","v":""},{"$f":"IF(DataLog!$C59=\"Log value\",DataLog!Y59,\"\")","v":""},{"$f":"IF(DataLog!$C59=\"Log value\",DataLog!Z59,\"\")","v":""},{"$f":"IF(DataLog!$C59=\"Log value\",DataLog!AA59,\"\")","v":""},{"$f":"IF(DataLog!$C59=\"Log value\",DataLog!AB59,\"\")","v":""},{"$f":"IF(DataLog!$C59=\"Log value\",DataLog!AC59,\"\")","v":""},{"$f":"IF(DataLog!$C59=\"Log value\",DataLog!AD59,\"\")","v":""},{"$f":"IF(DataLog!$C59=\"Log value\",DataLog!AE59,\"\")","v":""},{"$f":"IF(DataLog!$C59=\"Log value\",DataLog!AF59,\"\")","v":""},{"$f":"IF(DataLog!$C59=\"Log value\",DataLog!AG59,\"\")","v":""},{"$f":"IF(DataLog!$C59=\"Log value\",DataLog!AH59,\"\")","v":""},{"$f":"IF(DataLog!$C59=\"Log value\",DataLog!AI59,\"\")","v":""},{"$f":"IF(DataLog!$C59=\"Log value\",DataLog!AJ59,\"\")","v":""},{"$f":"IF(DataLog!$C59=\"Log value\",DataLog!AK59,\"\")","v":""},{"$f":"IF(DataLog!$C59=\"Log value\",DataLog!AL59,\"\")","v":""},{"$f":"IF(DataLog!$C59=\"Log value\",DataLog!AM59,\"\")","v":""}]
[null,null,"Standard","Standard -  - ",null,null,{"$f":"IF(DataLog!$C60=\"Log value\",DataLog!D60&\"_\"&TEXT(DataLog!B60,\"åååå-mm-dd\"),\"\")","v":""},{"$f":"IF(DataLog!$C60=\"Log value\",DataLog!E60,\"\")","v":""},{"$f":"IF(DataLog!$C60=\"Log value\",DataLog!F60,\"\")","v":""},{"$f":"IF(DataLog!$C60=\"Log value\",DataLog!G60,\"\")","v":""},{"$f":"IF(DataLog!$C60=\"Log value\",DataLog!H60,\"\")","v":""},{"$f":"IF(DataLog!$C60=\"Log value\",DataLog!I60,\"\")","v":""},{"$f":"IF(DataLog!$C60=\"Log value\",DataLog!J60,\"\")","v":""},{"$f":"IF(DataLog!$C60=\"Log value\",DataLog!K60,\"\")","v":""},{"$f":"IF(DataLog!$C60=\"Log value\",DataLog!L60,\"\")","v":""},{"$f":"IF(DataLog!$C60=\"Log value\",DataLog!M60,\"\")","v":""},{"$f":"IF(DataLog!$C60=\"Log value\",DataLog!N60,\"\")","v":""},{"$f":"IF(DataLog!$C60=\"Log value\",DataLog!O60,\"\")","v":""},{"$f":"IF(DataLog!$C60=\"Log value\",DataLog!P60,\"\")","v":""},{"$f":"IF(DataLog!$C60=\"Log value\",DataLog!Q60,\"\")","v":""},{"$f":"IF(DataLog!$C60=\"Log value\",DataLog!R60,\"\")","v":""},{"$f":"IF(DataLog!$C60=\"Log value\",DataLog!S60,\"\")","v":""},{"$f":"IF(DataLog!$C60=\"Log value\",DataLog!T60,\"\")","v":""},{"$f":"IF(DataLog!$C60=\"Log value\",DataLog!U60,\"\")","v":""},{"$f":"IF(DataLog!$C60=\"Log value\",DataLog!V60,\"\")","v":""},{"$f":"IF(DataLog!$C60=\"Log value\",DataLog!W60,\"\")","v":""},{"$f":"IF(DataLog!$C60=\"Log value\",DataLog!X60,\"\")","v":""},{"$f":"IF(DataLog!$C60=\"Log value\",DataLog!Y60,\"\")","v":""},{"$f":"IF(DataLog!$C60=\"Log value\",DataLog!Z60,\"\")","v":""},{"$f":"IF(DataLog!$C60=\"Log value\",DataLog!AA60,\"\")","v":""},{"$f":"IF(DataLog!$C60=\"Log value\",DataLog!AB60,\"\")","v":""},{"$f":"IF(DataLog!$C60=\"Log value\",DataLog!AC60,\"\")","v":""},{"$f":"IF(DataLog!$C60=\"Log value\",DataLog!AD60,\"\")","v":""},{"$f":"IF(DataLog!$C60=\"Log value\",DataLog!AE60,\"\")","v":""},{"$f":"IF(DataLog!$C60=\"Log value\",DataLog!AF60,\"\")","v":""},{"$f":"IF(DataLog!$C60=\"Log value\",DataLog!AG60,\"\")","v":""},{"$f":"IF(DataLog!$C60=\"Log value\",DataLog!AH60,\"\")","v":""},{"$f":"IF(DataLog!$C60=\"Log value\",DataLog!AI60,\"\")","v":""},{"$f":"IF(DataLog!$C60=\"Log value\",DataLog!AJ60,\"\")","v":""},{"$f":"IF(DataLog!$C60=\"Log value\",DataLog!AK60,\"\")","v":""},{"$f":"IF(DataLog!$C60=\"Log value\",DataLog!AL60,\"\")","v":""},{"$f":"IF(DataLog!$C60=\"Log value\",DataLog!AM60,\"\")","v":""}]
[null,null,"Standard","Standard -  - ",null,null,{"$f":"IF(DataLog!$C61=\"Log value\",DataLog!D61&\"_\"&TEXT(DataLog!B61,\"åååå-mm-dd\"),\"\")","v":""},{"$f":"IF(DataLog!$C61=\"Log value\",DataLog!E61,\"\")","v":""},{"$f":"IF(DataLog!$C61=\"Log value\",DataLog!F61,\"\")","v":""},{"$f":"IF(DataLog!$C61=\"Log value\",DataLog!G61,\"\")","v":""},{"$f":"IF(DataLog!$C61=\"Log value\",DataLog!H61,\"\")","v":""},{"$f":"IF(DataLog!$C61=\"Log value\",DataLog!I61,\"\")","v":""},{"$f":"IF(DataLog!$C61=\"Log value\",DataLog!J61,\"\")","v":""},{"$f":"IF(DataLog!$C61=\"Log value\",DataLog!K61,\"\")","v":""},{"$f":"IF(DataLog!$C61=\"Log value\",DataLog!L61,\"\")","v":""},{"$f":"IF(DataLog!$C61=\"Log value\",DataLog!M61,\"\")","v":""},{"$f":"IF(DataLog!$C61=\"Log value\",DataLog!N61,\"\")","v":""},{"$f":"IF(DataLog!$C61=\"Log value\",DataLog!O61,\"\")","v":""},{"$f":"IF(DataLog!$C61=\"Log value\",DataLog!P61,\"\")","v":""},{"$f":"IF(DataLog!$C61=\"Log value\",DataLog!Q61,\"\")","v":""},{"$f":"IF(DataLog!$C61=\"Log value\",DataLog!R61,\"\")","v":""},{"$f":"IF(DataLog!$C61=\"Log value\",DataLog!S61,\"\")","v":""},{"$f":"IF(DataLog!$C61=\"Log value\",DataLog!T61,\"\")","v":""},{"$f":"IF(DataLog!$C61=\"Log value\",DataLog!U61,\"\")","v":""},{"$f":"IF(DataLog!$C61=\"Log value\",DataLog!V61,\"\")","v":""},{"$f":"IF(DataLog!$C61=\"Log value\",DataLog!W61,\"\")","v":""},{"$f":"IF(DataLog!$C61=\"Log value\",DataLog!X61,\"\")","v":""},{"$f":"IF(DataLog!$C61=\"Log value\",DataLog!Y61,\"\")","v":""},{"$f":"IF(DataLog!$C61=\"Log value\",DataLog!Z61,\"\")","v":""},{"$f":"IF(DataLog!$C61=\"Log value\",DataLog!AA61,\"\")","v":""},{"$f":"IF(DataLog!$C61=\"Log value\",DataLog!AB61,\"\")","v":""},{"$f":"IF(DataLog!$C61=\"Log value\",DataLog!AC61,\"\")","v":""},{"$f":"IF(DataLog!$C61=\"Log value\",DataLog!AD61,\"\")","v":""},{"$f":"IF(DataLog!$C61=\"Log value\",DataLog!AE61,\"\")","v":""},{"$f":"IF(DataLog!$C61=\"Log value\",DataLog!AF61,\"\")","v":""},{"$f":"IF(DataLog!$C61=\"Log value\",DataLog!AG61,\"\")","v":""},{"$f":"IF(DataLog!$C61=\"Log value\",DataLog!AH61,\"\")","v":""},{"$f":"IF(DataLog!$C61=\"Log value\",DataLog!AI61,\"\")","v":""},{"$f":"IF(DataLog!$C61=\"Log value\",DataLog!AJ61,\"\")","v":""},{"$f":"IF(DataLog!$C61=\"Log value\",DataLog!AK61,\"\")","v":""},{"$f":"IF(DataLog!$C61=\"Log value\",DataLog!AL61,\"\")","v":""},{"$f":"IF(DataLog!$C61=\"Log value\",DataLog!AM61,\"\")","v":""}]
[null,null,"Standard","Standard -  - ",null,null,{"$f":"IF(DataLog!$C62=\"Log value\",DataLog!D62&\"_\"&TEXT(DataLog!B62,\"åååå-mm-dd\"),\"\")","v":""},{"$f":"IF(DataLog!$C62=\"Log value\",DataLog!E62,\"\")","v":""},{"$f":"IF(DataLog!$C62=\"Log value\",DataLog!F62,\"\")","v":""},{"$f":"IF(DataLog!$C62=\"Log value\",DataLog!G62,\"\")","v":""},{"$f":"IF(DataLog!$C62=\"Log value\",DataLog!H62,\"\")","v":""},{"$f":"IF(DataLog!$C62=\"Log value\",DataLog!I62,\"\")","v":""},{"$f":"IF(DataLog!$C62=\"Log value\",DataLog!J62,\"\")","v":""},{"$f":"IF(DataLog!$C62=\"Log value\",DataLog!K62,\"\")","v":""},{"$f":"IF(DataLog!$C62=\"Log value\",DataLog!L62,\"\")","v":""},{"$f":"IF(DataLog!$C62=\"Log value\",DataLog!M62,\"\")","v":""},{"$f":"IF(DataLog!$C62=\"Log value\",DataLog!N62,\"\")","v":""},{"$f":"IF(DataLog!$C62=\"Log value\",DataLog!O62,\"\")","v":""},{"$f":"IF(DataLog!$C62=\"Log value\",DataLog!P62,\"\")","v":""},{"$f":"IF(DataLog!$C62=\"Log value\",DataLog!Q62,\"\")","v":""},{"$f":"IF(DataLog!$C62=\"Log value\",DataLog!R62,\"\")","v":""},{"$f":"IF(DataLog!$C62=\"Log value\",DataLog!S62,\"\")","v":""},{"$f":"IF(DataLog!$C62=\"Log value\",DataLog!T62,\"\")","v":""},{"$f":"IF(DataLog!$C62=\"Log value\",DataLog!U62,\"\")","v":""},{"$f":"IF(DataLog!$C62=\"Log value\",DataLog!V62,\"\")","v":""},{"$f":"IF(DataLog!$C62=\"Log value\",DataLog!W62,\"\")","v":""},{"$f":"IF(DataLog!$C62=\"Log value\",DataLog!X62,\"\")","v":""},{"$f":"IF(DataLog!$C62=\"Log value\",DataLog!Y62,\"\")","v":""},{"$f":"IF(DataLog!$C62=\"Log value\",DataLog!Z62,\"\")","v":""},{"$f":"IF(DataLog!$C62=\"Log value\",DataLog!AA62,\"\")","v":""},{"$f":"IF(DataLog!$C62=\"Log value\",DataLog!AB62,\"\")","v":""},{"$f":"IF(DataLog!$C62=\"Log value\",DataLog!AC62,\"\")","v":""},{"$f":"IF(DataLog!$C62=\"Log value\",DataLog!AD62,\"\")","v":""},{"$f":"IF(DataLog!$C62=\"Log value\",DataLog!AE62,\"\")","v":""},{"$f":"IF(DataLog!$C62=\"Log value\",DataLog!AF62,\"\")","v":""},{"$f":"IF(DataLog!$C62=\"Log value\",DataLog!AG62,\"\")","v":""},{"$f":"IF(DataLog!$C62=\"Log value\",DataLog!AH62,\"\")","v":""},{"$f":"IF(DataLog!$C62=\"Log value\",DataLog!AI62,\"\")","v":""},{"$f":"IF(DataLog!$C62=\"Log value\",DataLog!AJ62,\"\")","v":""},{"$f":"IF(DataLog!$C62=\"Log value\",DataLog!AK62,\"\")","v":""},{"$f":"IF(DataLog!$C62=\"Log value\",DataLog!AL62,\"\")","v":""},{"$f":"IF(DataLog!$C62=\"Log value\",DataLog!AM62,\"\")","v":""}]
[null,null,"Standard","Standard -  - ",null,null,{"$f":"IF(DataLog!$C63=\"Log value\",DataLog!D63&\"_\"&TEXT(DataLog!B63,\"åååå-mm-dd\"),\"\")","v":""},{"$f":"IF(DataLog!$C63=\"Log value\",DataLog!E63,\"\")","v":""},{"$f":"IF(DataLog!$C63=\"Log value\",DataLog!F63,\"\")","v":""},{"$f":"IF(DataLog!$C63=\"Log value\",DataLog!G63,\"\")","v":""},{"$f":"IF(DataLog!$C63=\"Log value\",DataLog!H63,\"\")","v":""},{"$f":"IF(DataLog!$C63=\"Log value\",DataLog!I63,\"\")","v":""},{"$f":"IF(DataLog!$C63=\"Log value\",DataLog!J63,\"\")","v":""},{"$f":"IF(DataLog!$C63=\"Log value\",DataLog!K63,\"\")","v":""},{"$f":"IF(DataLog!$C63=\"Log value\",DataLog!L63,\"\")","v":""},{"$f":"IF(DataLog!$C63=\"Log value\",DataLog!M63,\"\")","v":""},{"$f":"IF(DataLog!$C63=\"Log value\",DataLog!N63,\"\")","v":""},{"$f":"IF(DataLog!$C63=\"Log value\",DataLog!O63,\"\")","v":""},{"$f":"IF(DataLog!$C63=\"Log value\",DataLog!P63,\"\")","v":""},{"$f":"IF(DataLog!$C63=\"Log value\",DataLog!Q63,\"\")","v":""},{"$f":"IF(DataLog!$C63=\"Log value\",DataLog!R63,\"\")","v":""},{"$f":"IF(DataLog!$C63=\"Log value\",DataLog!S63,\"\")","v":""},{"$f":"IF(DataLog!$C63=\"Log value\",DataLog!T63,\"\")","v":""},{"$f":"IF(DataLog!$C63=\"Log value\",DataLog!U63,\"\")","v":""},{"$f":"IF(DataLog!$C63=\"Log value\",DataLog!V63,\"\")","v":""},{"$f":"IF(DataLog!$C63=\"Log value\",DataLog!W63,\"\")","v":""},{"$f":"IF(DataLog!$C63=\"Log value\",DataLog!X63,\"\")","v":""},{"$f":"IF(DataLog!$C63=\"Log value\",DataLog!Y63,\"\")","v":""},{"$f":"IF(DataLog!$C63=\"Log value\",DataLog!Z63,\"\")","v":""},{"$f":"IF(DataLog!$C63=\"Log value\",DataLog!AA63,\"\")","v":""},{"$f":"IF(DataLog!$C63=\"Log value\",DataLog!AB63,\"\")","v":""},{"$f":"IF(DataLog!$C63=\"Log value\",DataLog!AC63,\"\")","v":""},{"$f":"IF(DataLog!$C63=\"Log value\",DataLog!AD63,\"\")","v":""},{"$f":"IF(DataLog!$C63=\"Log value\",DataLog!AE63,\"\")","v":""},{"$f":"IF(DataLog!$C63=\"Log value\",DataLog!AF63,\"\")","v":""},{"$f":"IF(DataLog!$C63=\"Log value\",DataLog!AG63,\"\")","v":""},{"$f":"IF(DataLog!$C63=\"Log value\",DataLog!AH63,\"\")","v":""},{"$f":"IF(DataLog!$C63=\"Log value\",DataLog!AI63,\"\")","v":""},{"$f":"IF(DataLog!$C63=\"Log value\",DataLog!AJ63,\"\")","v":""},{"$f":"IF(DataLog!$C63=\"Log value\",DataLog!AK63,\"\")","v":""},{"$f":"IF(DataLog!$C63=\"Log value\",DataLog!AL63,\"\")","v":""},{"$f":"IF(DataLog!$C63=\"Log value\",DataLog!AM63,\"\")","v":""}]
[null,null,"Standard","Standard -  - ",null,null,{"$f":"IF(DataLog!$C64=\"Log value\",DataLog!D64&\"_\"&TEXT(DataLog!B64,\"åååå-mm-dd\"),\"\")","v":""},{"$f":"IF(DataLog!$C64=\"Log value\",DataLog!E64,\"\")","v":""},{"$f":"IF(DataLog!$C64=\"Log value\",DataLog!F64,\"\")","v":""},{"$f":"IF(DataLog!$C64=\"Log value\",DataLog!G64,\"\")","v":""},{"$f":"IF(DataLog!$C64=\"Log value\",DataLog!H64,\"\")","v":""},{"$f":"IF(DataLog!$C64=\"Log value\",DataLog!I64,\"\")","v":""},{"$f":"IF(DataLog!$C64=\"Log value\",DataLog!J64,\"\")","v":""},{"$f":"IF(DataLog!$C64=\"Log value\",DataLog!K64,\"\")","v":""},{"$f":"IF(DataLog!$C64=\"Log value\",DataLog!L64,\"\")","v":""},{"$f":"IF(DataLog!$C64=\"Log value\",DataLog!M64,\"\")","v":""},{"$f":"IF(DataLog!$C64=\"Log value\",DataLog!N64,\"\")","v":""},{"$f":"IF(DataLog!$C64=\"Log value\",DataLog!O64,\"\")","v":""},{"$f":"IF(DataLog!$C64=\"Log value\",DataLog!P64,\"\")","v":""},{"$f":"IF(DataLog!$C64=\"Log value\",DataLog!Q64,\"\")","v":""},{"$f":"IF(DataLog!$C64=\"Log value\",DataLog!R64,\"\")","v":""},{"$f":"IF(DataLog!$C64=\"Log value\",DataLog!S64,\"\")","v":""},{"$f":"IF(DataLog!$C64=\"Log value\",DataLog!T64,\"\")","v":""},{"$f":"IF(DataLog!$C64=\"Log value\",DataLog!U64,\"\")","v":""},{"$f":"IF(DataLog!$C64=\"Log value\",DataLog!V64,\"\")","v":""},{"$f":"IF(DataLog!$C64=\"Log value\",DataLog!W64,\"\")","v":""},{"$f":"IF(DataLog!$C64=\"Log value\",DataLog!X64,\"\")","v":""},{"$f":"IF(DataLog!$C64=\"Log value\",DataLog!Y64,\"\")","v":""},{"$f":"IF(DataLog!$C64=\"Log value\",DataLog!Z64,\"\")","v":""},{"$f":"IF(DataLog!$C64=\"Log value\",DataLog!AA64,\"\")","v":""},{"$f":"IF(DataLog!$C64=\"Log value\",DataLog!AB64,\"\")","v":""},{"$f":"IF(DataLog!$C64=\"Log value\",DataLog!AC64,\"\")","v":""},{"$f":"IF(DataLog!$C64=\"Log value\",DataLog!AD64,\"\")","v":""},{"$f":"IF(DataLog!$C64=\"Log value\",DataLog!AE64,\"\")","v":""},{"$f":"IF(DataLog!$C64=\"Log value\",DataLog!AF64,\"\")","v":""},{"$f":"IF(DataLog!$C64=\"Log value\",DataLog!AG64,\"\")","v":""},{"$f":"IF(DataLog!$C64=\"Log value\",DataLog!AH64,\"\")","v":""},{"$f":"IF(DataLog!$C64=\"Log value\",DataLog!AI64,\"\")","v":""},{"$f":"IF(DataLog!$C64=\"Log value\",DataLog!AJ64,\"\")","v":""},{"$f":"IF(DataLog!$C64=\"Log value\",DataLog!AK64,\"\")","v":""},{"$f":"IF(DataLog!$C64=\"Log value\",DataLog!AL64,\"\")","v":""},{"$f":"IF(DataLog!$C64=\"Log value\",DataLog!AM64,\"\")","v":""}]
[null,null,"Standard","Standard -  - ",null,null,{"$f":"IF(DataLog!$C65=\"Log value\",DataLog!D65&\"_\"&TEXT(DataLog!B65,\"åååå-mm-dd\"),\"\")","v":""},{"$f":"IF(DataLog!$C65=\"Log value\",DataLog!E65,\"\")","v":""},{"$f":"IF(DataLog!$C65=\"Log value\",DataLog!F65,\"\")","v":""},{"$f":"IF(DataLog!$C65=\"Log value\",DataLog!G65,\"\")","v":""},{"$f":"IF(DataLog!$C65=\"Log value\",DataLog!H65,\"\")","v":""},{"$f":"IF(DataLog!$C65=\"Log value\",DataLog!I65,\"\")","v":""},{"$f":"IF(DataLog!$C65=\"Log value\",DataLog!J65,\"\")","v":""},{"$f":"IF(DataLog!$C65=\"Log value\",DataLog!K65,\"\")","v":""},{"$f":"IF(DataLog!$C65=\"Log value\",DataLog!L65,\"\")","v":""},{"$f":"IF(DataLog!$C65=\"Log value\",DataLog!M65,\"\")","v":""},{"$f":"IF(DataLog!$C65=\"Log value\",DataLog!N65,\"\")","v":""},{"$f":"IF(DataLog!$C65=\"Log value\",DataLog!O65,\"\")","v":""},{"$f":"IF(DataLog!$C65=\"Log value\",DataLog!P65,\"\")","v":""},{"$f":"IF(DataLog!$C65=\"Log value\",DataLog!Q65,\"\")","v":""},{"$f":"IF(DataLog!$C65=\"Log value\",DataLog!R65,\"\")","v":""},{"$f":"IF(DataLog!$C65=\"Log value\",DataLog!S65,\"\")","v":""},{"$f":"IF(DataLog!$C65=\"Log value\",DataLog!T65,\"\")","v":""},{"$f":"IF(DataLog!$C65=\"Log value\",DataLog!U65,\"\")","v":""},{"$f":"IF(DataLog!$C65=\"Log value\",DataLog!V65,\"\")","v":""},{"$f":"IF(DataLog!$C65=\"Log value\",DataLog!W65,\"\")","v":""},{"$f":"IF(DataLog!$C65=\"Log value\",DataLog!X65,\"\")","v":""},{"$f":"IF(DataLog!$C65=\"Log value\",DataLog!Y65,\"\")","v":""},{"$f":"IF(DataLog!$C65=\"Log value\",DataLog!Z65,\"\")","v":""},{"$f":"IF(DataLog!$C65=\"Log value\",DataLog!AA65,\"\")","v":""},{"$f":"IF(DataLog!$C65=\"Log value\",DataLog!AB65,\"\")","v":""},{"$f":"IF(DataLog!$C65=\"Log value\",DataLog!AC65,\"\")","v":""},{"$f":"IF(DataLog!$C65=\"Log value\",DataLog!AD65,\"\")","v":""},{"$f":"IF(DataLog!$C65=\"Log value\",DataLog!AE65,\"\")","v":""},{"$f":"IF(DataLog!$C65=\"Log value\",DataLog!AF65,\"\")","v":""},{"$f":"IF(DataLog!$C65=\"Log value\",DataLog!AG65,\"\")","v":""},{"$f":"IF(DataLog!$C65=\"Log value\",DataLog!AH65,\"\")","v":""},{"$f":"IF(DataLog!$C65=\"Log value\",DataLog!AI65,\"\")","v":""},{"$f":"IF(DataLog!$C65=\"Log value\",DataLog!AJ65,\"\")","v":""},{"$f":"IF(DataLog!$C65=\"Log value\",DataLog!AK65,\"\")","v":""},{"$f":"IF(DataLog!$C65=\"Log value\",DataLog!AL65,\"\")","v":""},{"$f":"IF(DataLog!$C65=\"Log value\",DataLog!AM65,\"\")","v":""}]
[null,null,"Standard","Standard -  - ",null,null,{"$f":"IF(DataLog!$C66=\"Log value\",DataLog!D66&\"_\"&TEXT(DataLog!B66,\"åååå-mm-dd\"),\"\")","v":""},{"$f":"IF(DataLog!$C66=\"Log value\",DataLog!E66,\"\")","v":""},{"$f":"IF(DataLog!$C66=\"Log value\",DataLog!F66,\"\")","v":""},{"$f":"IF(DataLog!$C66=\"Log value\",DataLog!G66,\"\")","v":""},{"$f":"IF(DataLog!$C66=\"Log value\",DataLog!H66,\"\")","v":""},{"$f":"IF(DataLog!$C66=\"Log value\",DataLog!I66,\"\")","v":""},{"$f":"IF(DataLog!$C66=\"Log value\",DataLog!J66,\"\")","v":""},{"$f":"IF(DataLog!$C66=\"Log value\",DataLog!K66,\"\")","v":""},{"$f":"IF(DataLog!$C66=\"Log value\",DataLog!L66,\"\")","v":""},{"$f":"IF(DataLog!$C66=\"Log value\",DataLog!M66,\"\")","v":""},{"$f":"IF(DataLog!$C66=\"Log value\",DataLog!N66,\"\")","v":""},{"$f":"IF(DataLog!$C66=\"Log value\",DataLog!O66,\"\")","v":""},{"$f":"IF(DataLog!$C66=\"Log value\",DataLog!P66,\"\")","v":""},{"$f":"IF(DataLog!$C66=\"Log value\",DataLog!Q66,\"\")","v":""},{"$f":"IF(DataLog!$C66=\"Log value\",DataLog!R66,\"\")","v":""},{"$f":"IF(DataLog!$C66=\"Log value\",DataLog!S66,\"\")","v":""},{"$f":"IF(DataLog!$C66=\"Log value\",DataLog!T66,\"\")","v":""},{"$f":"IF(DataLog!$C66=\"Log value\",DataLog!U66,\"\")","v":""},{"$f":"IF(DataLog!$C66=\"Log value\",DataLog!V66,\"\")","v":""},{"$f":"IF(DataLog!$C66=\"Log value\",DataLog!W66,\"\")","v":""},{"$f":"IF(DataLog!$C66=\"Log value\",DataLog!X66,\"\")","v":""},{"$f":"IF(DataLog!$C66=\"Log value\",DataLog!Y66,\"\")","v":""},{"$f":"IF(DataLog!$C66=\"Log value\",DataLog!Z66,\"\")","v":""},{"$f":"IF(DataLog!$C66=\"Log value\",DataLog!AA66,\"\")","v":""},{"$f":"IF(DataLog!$C66=\"Log value\",DataLog!AB66,\"\")","v":""},{"$f":"IF(DataLog!$C66=\"Log value\",DataLog!AC66,\"\")","v":""},{"$f":"IF(DataLog!$C66=\"Log value\",DataLog!AD66,\"\")","v":""},{"$f":"IF(DataLog!$C66=\"Log value\",DataLog!AE66,\"\")","v":""},{"$f":"IF(DataLog!$C66=\"Log value\",DataLog!AF66,\"\")","v":""},{"$f":"IF(DataLog!$C66=\"Log value\",DataLog!AG66,\"\")","v":""},{"$f":"IF(DataLog!$C66=\"Log value\",DataLog!AH66,\"\")","v":""},{"$f":"IF(DataLog!$C66=\"Log value\",DataLog!AI66,\"\")","v":""},{"$f":"IF(DataLog!$C66=\"Log value\",DataLog!AJ66,\"\")","v":""},{"$f":"IF(DataLog!$C66=\"Log value\",DataLog!AK66,\"\")","v":""},{"$f":"IF(DataLog!$C66=\"Log value\",DataLog!AL66,\"\")","v":""},{"$f":"IF(DataLog!$C66=\"Log value\",DataLog!AM66,\"\")","v":""}]
[null,null,"Standard","Standard -  - ",null,null,{"$f":"IF(DataLog!$C67=\"Log value\",DataLog!D67&\"_\"&TEXT(DataLog!B67,\"åååå-mm-dd\"),\"\")","v":""},{"$f":"IF(DataLog!$C67=\"Log value\",DataLog!E67,\"\")","v":""},{"$f":"IF(DataLog!$C67=\"Log value\",DataLog!F67,\"\")","v":""},{"$f":"IF(DataLog!$C67=\"Log value\",DataLog!G67,\"\")","v":""},{"$f":"IF(DataLog!$C67=\"Log value\",DataLog!H67,\"\")","v":""},{"$f":"IF(DataLog!$C67=\"Log value\",DataLog!I67,\"\")","v":""},{"$f":"IF(DataLog!$C67=\"Log value\",DataLog!J67,\"\")","v":""},{"$f":"IF(DataLog!$C67=\"Log value\",DataLog!K67,\"\")","v":""},{"$f":"IF(DataLog!$C67=\"Log value\",DataLog!L67,\"\")","v":""},{"$f":"IF(DataLog!$C67=\"Log value\",DataLog!M67,\"\")","v":""},{"$f":"IF(DataLog!$C67=\"Log value\",DataLog!N67,\"\")","v":""},{"$f":"IF(DataLog!$C67=\"Log value\",DataLog!O67,\"\")","v":""},{"$f":"IF(DataLog!$C67=\"Log value\",DataLog!P67,\"\")","v":""},{"$f":"IF(DataLog!$C67=\"Log value\",DataLog!Q67,\"\")","v":""},{"$f":"IF(DataLog!$C67=\"Log value\",DataLog!R67,\"\")","v":""},{"$f":"IF(DataLog!$C67=\"Log value\",DataLog!S67,\"\")","v":""},{"$f":"IF(DataLog!$C67=\"Log value\",DataLog!T67,\"\")","v":""},{"$f":"IF(DataLog!$C67=\"Log value\",DataLog!U67,\"\")","v":""},{"$f":"IF(DataLog!$C67=\"Log value\",DataLog!V67,\"\")","v":""},{"$f":"IF(DataLog!$C67=\"Log value\",DataLog!W67,\"\")","v":""},{"$f":"IF(DataLog!$C67=\"Log value\",DataLog!X67,\"\")","v":""},{"$f":"IF(DataLog!$C67=\"Log value\",DataLog!Y67,\"\")","v":""},{"$f":"IF(DataLog!$C67=\"Log value\",DataLog!Z67,\"\")","v":""},{"$f":"IF(DataLog!$C67=\"Log value\",DataLog!AA67,\"\")","v":""},{"$f":"IF(DataLog!$C67=\"Log value\",DataLog!AB67,\"\")","v":""},{"$f":"IF(DataLog!$C67=\"Log value\",DataLog!AC67,\"\")","v":""},{"$f":"IF(DataLog!$C67=\"Log value\",DataLog!AD67,\"\")","v":""},{"$f":"IF(DataLog!$C67=\"Log value\",DataLog!AE67,\"\")","v":""},{"$f":"IF(DataLog!$C67=\"Log value\",DataLog!AF67,\"\")","v":""},{"$f":"IF(DataLog!$C67=\"Log value\",DataLog!AG67,\"\")","v":""},{"$f":"IF(DataLog!$C67=\"Log value\",DataLog!AH67,\"\")","v":""},{"$f":"IF(DataLog!$C67=\"Log value\",DataLog!AI67,\"\")","v":""},{"$f":"IF(DataLog!$C67=\"Log value\",DataLog!AJ67,\"\")","v":""},{"$f":"IF(DataLog!$C67=\"Log value\",DataLog!AK67,\"\")","v":""},{"$f":"IF(DataLog!$C67=\"Log value\",DataLog!AL67,\"\")","v":""},{"$f":"IF(DataLog!$C67=\"Log value\",DataLog!AM67,\"\")","v":""}]
[null,null,"Standard","Standard -  - ",null,null,{"$f":"IF(DataLog!$C68=\"Log value\",DataLog!D68&\"_\"&TEXT(DataLog!B68,\"åååå-mm-dd\"),\"\")","v":""},{"$f":"IF(DataLog!$C68=\"Log value\",DataLog!E68,\"\")","v":""},{"$f":"IF(DataLog!$C68=\"Log value\",DataLog!F68,\"\")","v":""},{"$f":"IF(DataLog!$C68=\"Log value\",DataLog!G68,\"\")","v":""},{"$f":"IF(DataLog!$C68=\"Log value\",DataLog!H68,\"\")","v":""},{"$f":"IF(DataLog!$C68=\"Log value\",DataLog!I68,\"\")","v":""},{"$f":"IF(DataLog!$C68=\"Log value\",DataLog!J68,\"\")","v":""},{"$f":"IF(DataLog!$C68=\"Log value\",DataLog!K68,\"\")","v":""},{"$f":"IF(DataLog!$C68=\"Log value\",DataLog!L68,\"\")","v":""},{"$f":"IF(DataLog!$C68=\"Log value\",DataLog!M68,\"\")","v":""},{"$f":"IF(DataLog!$C68=\"Log value\",DataLog!N68,\"\")","v":""},{"$f":"IF(DataLog!$C68=\"Log value\",DataLog!O68,\"\")","v":""},{"$f":"IF(DataLog!$C68=\"Log value\",DataLog!P68,\"\")","v":""},{"$f":"IF(DataLog!$C68=\"Log value\",DataLog!Q68,\"\")","v":""},{"$f":"IF(DataLog!$C68=\"Log value\",DataLog!R68,\"\")","v":""},{"$f":"IF(DataLog!$C68=\"Log value\",DataLog!S68,\"\")","v":""},{"$f":"IF(DataLog!$C68=\"Log value\",DataLog!T68,\"\")","v":""},{"$f":"IF(DataLog!$C68=\"Log value\",DataLog!U68,\"\")","v":""},{"$f":"IF(DataLog!$C68=\"Log value\",DataLog!V68,\"\")","v":""},{"$f":"IF(DataLog!$C68=\"Log value\",DataLog!W68,\"\")","v":""},{"$f":"IF(DataLog!$C68=\"Log value\",DataLog!X68,\"\")","v":""},{"$f":"IF(DataLog!$C68=\"Log value\",DataLog!Y68,\"\")","v":""},{"$f":"IF(DataLog!$C68=\"Log value\",DataLog!Z68,\"\")","v":""},{"$f":"IF(DataLog!$C68=\"Log value\",DataLog!AA68,\"\")","v":""},{"$f":"IF(DataLog!$C68=\"Log value\",DataLog!AB68,\"\")","v":""},{"$f":"IF(DataLog!$C68=\"Log value\",DataLog!AC68,\"\")","v":""},{"$f":"IF(DataLog!$C68=\"Log value\",DataLog!AD68,\"\")","v":""},{"$f":"IF(DataLog!$C68=\"Log value\",DataLog!AE68,\"\")","v":""},{"$f":"IF(DataLog!$C68=\"Log value\",DataLog!AF68,\"\")","v":""},{"$f":"IF(DataLog!$C68=\"Log value\",DataLog!AG68,\"\")","v":""},{"$f":"IF(DataLog!$C68=\"Log value\",DataLog!AH68,\"\")","v":""},{"$f":"IF(DataLog!$C68=\"Log value\",DataLog!AI68,\"\")","v":""},{"$f":"IF(DataLog!$C68=\"Log value\",DataLog!AJ68,\"\")","v":""},{"$f":"IF(DataLog!$C68=\"Log value\",DataLog!AK68,\"\")","v":""},{"$f":"IF(DataLog!$C68=\"Log value\",DataLog!AL68,\"\")","v":""},{"$f":"IF(DataLog!$C68=\"Log value\",DataLog!AM68,\"\")","v":""}]
[null,null,"Standard","Standard -  - ",null,null,{"$f":"IF(DataLog!$C69=\"Log value\",DataLog!D69&\"_\"&TEXT(DataLog!B69,\"åååå-mm-dd\"),\"\")","v":""},{"$f":"IF(DataLog!$C69=\"Log value\",DataLog!E69,\"\")","v":""},{"$f":"IF(DataLog!$C69=\"Log value\",DataLog!F69,\"\")","v":""},{"$f":"IF(DataLog!$C69=\"Log value\",DataLog!G69,\"\")","v":""},{"$f":"IF(DataLog!$C69=\"Log value\",DataLog!H69,\"\")","v":""},{"$f":"IF(DataLog!$C69=\"Log value\",DataLog!I69,\"\")","v":""},{"$f":"IF(DataLog!$C69=\"Log value\",DataLog!J69,\"\")","v":""},{"$f":"IF(DataLog!$C69=\"Log value\",DataLog!K69,\"\")","v":""},{"$f":"IF(DataLog!$C69=\"Log value\",DataLog!L69,\"\")","v":""},{"$f":"IF(DataLog!$C69=\"Log value\",DataLog!M69,\"\")","v":""},{"$f":"IF(DataLog!$C69=\"Log value\",DataLog!N69,\"\")","v":""},{"$f":"IF(DataLog!$C69=\"Log value\",DataLog!O69,\"\")","v":""},{"$f":"IF(DataLog!$C69=\"Log value\",DataLog!P69,\"\")","v":""},{"$f":"IF(DataLog!$C69=\"Log value\",DataLog!Q69,\"\")","v":""},{"$f":"IF(DataLog!$C69=\"Log value\",DataLog!R69,\"\")","v":""},{"$f":"IF(DataLog!$C69=\"Log value\",DataLog!S69,\"\")","v":""},{"$f":"IF(DataLog!$C69=\"Log value\",DataLog!T69,\"\")","v":""},{"$f":"IF(DataLog!$C69=\"Log value\",DataLog!U69,\"\")","v":""},{"$f":"IF(DataLog!$C69=\"Log value\",DataLog!V69,\"\")","v":""},{"$f":"IF(DataLog!$C69=\"Log value\",DataLog!W69,\"\")","v":""},{"$f":"IF(DataLog!$C69=\"Log value\",DataLog!X69,\"\")","v":""},{"$f":"IF(DataLog!$C69=\"Log value\",DataLog!Y69,\"\")","v":""},{"$f":"IF(DataLog!$C69=\"Log value\",DataLog!Z69,\"\")","v":""},{"$f":"IF(DataLog!$C69=\"Log value\",DataLog!AA69,\"\")","v":""},{"$f":"IF(DataLog!$C69=\"Log value\",DataLog!AB69,\"\")","v":""},{"$f":"IF(DataLog!$C69=\"Log value\",DataLog!AC69,\"\")","v":""},{"$f":"IF(DataLog!$C69=\"Log value\",DataLog!AD69,\"\")","v":""},{"$f":"IF(DataLog!$C69=\"Log value\",DataLog!AE69,\"\")","v":""},{"$f":"IF(DataLog!$C69=\"Log value\",DataLog!AF69,\"\")","v":""},{"$f":"IF(DataLog!$C69=\"Log value\",DataLog!AG69,\"\")","v":""},{"$f":"IF(DataLog!$C69=\"Log value\",DataLog!AH69,\"\")","v":""},{"$f":"IF(DataLog!$C69=\"Log value\",DataLog!AI69,\"\")","v":""},{"$f":"IF(DataLog!$C69=\"Log value\",DataLog!AJ69,\"\")","v":""},{"$f":"IF(DataLog!$C69=\"Log value\",DataLog!AK69,\"\")","v":""},{"$f":"IF(DataLog!$C69=\"Log value\",DataLog!AL69,\"\")","v":""},{"$f":"IF(DataLog!$C69=\"Log value\",DataLog!AM69,\"\")","v":""}]
[null,null,"Standard","Standard -  - ",null,null,{"$f":"IF(DataLog!$C70=\"Log value\",DataLog!D70&\"_\"&TEXT(DataLog!B70,\"åååå-mm-dd\"),\"\")","v":""},{"$f":"IF(DataLog!$C70=\"Log value\",DataLog!E70,\"\")","v":""},{"$f":"IF(DataLog!$C70=\"Log value\",DataLog!F70,\"\")","v":""},{"$f":"IF(DataLog!$C70=\"Log value\",DataLog!G70,\"\")","v":""},{"$f":"IF(DataLog!$C70=\"Log value\",DataLog!H70,\"\")","v":""},{"$f":"IF(DataLog!$C70=\"Log value\",DataLog!I70,\"\")","v":""},{"$f":"IF(DataLog!$C70=\"Log value\",DataLog!J70,\"\")","v":""},{"$f":"IF(DataLog!$C70=\"Log value\",DataLog!K70,\"\")","v":""},{"$f":"IF(DataLog!$C70=\"Log value\",DataLog!L70,\"\")","v":""},{"$f":"IF(DataLog!$C70=\"Log value\",DataLog!M70,\"\")","v":""},{"$f":"IF(DataLog!$C70=\"Log value\",DataLog!N70,\"\")","v":""},{"$f":"IF(DataLog!$C70=\"Log value\",DataLog!O70,\"\")","v":""},{"$f":"IF(DataLog!$C70=\"Log value\",DataLog!P70,\"\")","v":""},{"$f":"IF(DataLog!$C70=\"Log value\",DataLog!Q70,\"\")","v":""},{"$f":"IF(DataLog!$C70=\"Log value\",DataLog!R70,\"\")","v":""},{"$f":"IF(DataLog!$C70=\"Log value\",DataLog!S70,\"\")","v":""},{"$f":"IF(DataLog!$C70=\"Log value\",DataLog!T70,\"\")","v":""},{"$f":"IF(DataLog!$C70=\"Log value\",DataLog!U70,\"\")","v":""},{"$f":"IF(DataLog!$C70=\"Log value\",DataLog!V70,\"\")","v":""},{"$f":"IF(DataLog!$C70=\"Log value\",DataLog!W70,\"\")","v":""},{"$f":"IF(DataLog!$C70=\"Log value\",DataLog!X70,\"\")","v":""},{"$f":"IF(DataLog!$C70=\"Log value\",DataLog!Y70,\"\")","v":""},{"$f":"IF(DataLog!$C70=\"Log value\",DataLog!Z70,\"\")","v":""},{"$f":"IF(DataLog!$C70=\"Log value\",DataLog!AA70,\"\")","v":""},{"$f":"IF(DataLog!$C70=\"Log value\",DataLog!AB70,\"\")","v":""},{"$f":"IF(DataLog!$C70=\"Log value\",DataLog!AC70,\"\")","v":""},{"$f":"IF(DataLog!$C70=\"Log value\",DataLog!AD70,\"\")","v":""},{"$f":"IF(DataLog!$C70=\"Log value\",DataLog!AE70,\"\")","v":""},{"$f":"IF(DataLog!$C70=\"Log value\",DataLog!AF70,\"\")","v":""},{"$f":"IF(DataLog!$C70=\"Log value\",DataLog!AG70,\"\")","v":""},{"$f":"IF(DataLog!$C70=\"Log value\",DataLog!AH70,\"\")","v":""},{"$f":"IF(DataLog!$C70=\"Log value\",DataLog!AI70,\"\")","v":""},{"$f":"IF(DataLog!$C70=\"Log value\",DataLog!AJ70,\"\")","v":""},{"$f":"IF(DataLog!$C70=\"Log value\",DataLog!AK70,\"\")","v":""},{"$f":"IF(DataLog!$C70=\"Log value\",DataLog!AL70,\"\")","v":""},{"$f":"IF(DataLog!$C70=\"Log value\",DataLog!AM70,\"\")","v":""}]
[null,null,"Standard","Standard -  - ",null,null,{"$f":"IF(DataLog!$C71=\"Log value\",DataLog!D71&\"_\"&TEXT(DataLog!B71,\"åååå-mm-dd\"),\"\")","v":""},{"$f":"IF(DataLog!$C71=\"Log value\",DataLog!E71,\"\")","v":""},{"$f":"IF(DataLog!$C71=\"Log value\",DataLog!F71,\"\")","v":""},{"$f":"IF(DataLog!$C71=\"Log value\",DataLog!G71,\"\")","v":""},{"$f":"IF(DataLog!$C71=\"Log value\",DataLog!H71,\"\")","v":""},{"$f":"IF(DataLog!$C71=\"Log value\",DataLog!I71,\"\")","v":""},{"$f":"IF(DataLog!$C71=\"Log value\",DataLog!J71,\"\")","v":""},{"$f":"IF(DataLog!$C71=\"Log value\",DataLog!K71,\"\")","v":""},{"$f":"IF(DataLog!$C71=\"Log value\",DataLog!L71,\"\")","v":""},{"$f":"IF(DataLog!$C71=\"Log value\",DataLog!M71,\"\")","v":""},{"$f":"IF(DataLog!$C71=\"Log value\",DataLog!N71,\"\")","v":""},{"$f":"IF(DataLog!$C71=\"Log value\",DataLog!O71,\"\")","v":""},{"$f":"IF(DataLog!$C71=\"Log value\",DataLog!P71,\"\")","v":""},{"$f":"IF(DataLog!$C71=\"Log value\",DataLog!Q71,\"\")","v":""},{"$f":"IF(DataLog!$C71=\"Log value\",DataLog!R71,\"\")","v":""},{"$f":"IF(DataLog!$C71=\"Log value\",DataLog!S71,\"\")","v":""},{"$f":"IF(DataLog!$C71=\"Log value\",DataLog!T71,\"\")","v":""},{"$f":"IF(DataLog!$C71=\"Log value\",DataLog!U71,\"\")","v":""},{"$f":"IF(DataLog!$C71=\"Log value\",DataLog!V71,\"\")","v":""},{"$f":"IF(DataLog!$C71=\"Log value\",DataLog!W71,\"\")","v":""},{"$f":"IF(DataLog!$C71=\"Log value\",DataLog!X71,\"\")","v":""},{"$f":"IF(DataLog!$C71=\"Log value\",DataLog!Y71,\"\")","v":""},{"$f":"IF(DataLog!$C71=\"Log value\",DataLog!Z71,\"\")","v":""},{"$f":"IF(DataLog!$C71=\"Log value\",DataLog!AA71,\"\")","v":""},{"$f":"IF(DataLog!$C71=\"Log value\",DataLog!AB71,\"\")","v":""},{"$f":"IF(DataLog!$C71=\"Log value\",DataLog!AC71,\"\")","v":""},{"$f":"IF(DataLog!$C71=\"Log value\",DataLog!AD71,\"\")","v":""},{"$f":"IF(DataLog!$C71=\"Log value\",DataLog!AE71,\"\")","v":""},{"$f":"IF(DataLog!$C71=\"Log value\",DataLog!AF71,\"\")","v":""},{"$f":"IF(DataLog!$C71=\"Log value\",DataLog!AG71,\"\")","v":""},{"$f":"IF(DataLog!$C71=\"Log value\",DataLog!AH71,\"\")","v":""},{"$f":"IF(DataLog!$C71=\"Log value\",DataLog!AI71,\"\")","v":""},{"$f":"IF(DataLog!$C71=\"Log value\",DataLog!AJ71,\"\")","v":""},{"$f":"IF(DataLog!$C71=\"Log value\",DataLog!AK71,\"\")","v":""},{"$f":"IF(DataLog!$C71=\"Log value\",DataLog!AL71,\"\")","v":""},{"$f":"IF(DataLog!$C71=\"Log value\",DataLog!AM71,\"\")","v":""}]
[null,null,"Standard","Standard -  - ",null,null,{"$f":"IF(DataLog!$C72=\"Log value\",DataLog!D72&\"_\"&TEXT(DataLog!B72,\"åååå-mm-dd\"),\"\")","v":""},{"$f":"IF(DataLog!$C72=\"Log value\",DataLog!E72,\"\")","v":""},{"$f":"IF(DataLog!$C72=\"Log value\",DataLog!F72,\"\")","v":""},{"$f":"IF(DataLog!$C72=\"Log value\",DataLog!G72,\"\")","v":""},{"$f":"IF(DataLog!$C72=\"Log value\",DataLog!H72,\"\")","v":""},{"$f":"IF(DataLog!$C72=\"Log value\",DataLog!I72,\"\")","v":""},{"$f":"IF(DataLog!$C72=\"Log value\",DataLog!J72,\"\")","v":""},{"$f":"IF(DataLog!$C72=\"Log value\",DataLog!K72,\"\")","v":""},{"$f":"IF(DataLog!$C72=\"Log value\",DataLog!L72,\"\")","v":""},{"$f":"IF(DataLog!$C72=\"Log value\",DataLog!M72,\"\")","v":""},{"$f":"IF(DataLog!$C72=\"Log value\",DataLog!N72,\"\")","v":""},{"$f":"IF(DataLog!$C72=\"Log value\",DataLog!O72,\"\")","v":""},{"$f":"IF(DataLog!$C72=\"Log value\",DataLog!P72,\"\")","v":""},{"$f":"IF(DataLog!$C72=\"Log value\",DataLog!Q72,\"\")","v":""},{"$f":"IF(DataLog!$C72=\"Log value\",DataLog!R72,\"\")","v":""},{"$f":"IF(DataLog!$C72=\"Log value\",DataLog!S72,\"\")","v":""},{"$f":"IF(DataLog!$C72=\"Log value\",DataLog!T72,\"\")","v":""},{"$f":"IF(DataLog!$C72=\"Log value\",DataLog!U72,\"\")","v":""},{"$f":"IF(DataLog!$C72=\"Log value\",DataLog!V72,\"\")","v":""},{"$f":"IF(DataLog!$C72=\"Log value\",DataLog!W72,\"\")","v":""},{"$f":"IF(DataLog!$C72=\"Log value\",DataLog!X72,\"\")","v":""},{"$f":"IF(DataLog!$C72=\"Log value\",DataLog!Y72,\"\")","v":""},{"$f":"IF(DataLog!$C72=\"Log value\",DataLog!Z72,\"\")","v":""},{"$f":"IF(DataLog!$C72=\"Log value\",DataLog!AA72,\"\")","v":""},{"$f":"IF(DataLog!$C72=\"Log value\",DataLog!AB72,\"\")","v":""},{"$f":"IF(DataLog!$C72=\"Log value\",DataLog!AC72,\"\")","v":""},{"$f":"IF(DataLog!$C72=\"Log value\",DataLog!AD72,\"\")","v":""},{"$f":"IF(DataLog!$C72=\"Log value\",DataLog!AE72,\"\")","v":""},{"$f":"IF(DataLog!$C72=\"Log value\",DataLog!AF72,\"\")","v":""},{"$f":"IF(DataLog!$C72=\"Log value\",DataLog!AG72,\"\")","v":""},{"$f":"IF(DataLog!$C72=\"Log value\",DataLog!AH72,\"\")","v":""},{"$f":"IF(DataLog!$C72=\"Log value\",DataLog!AI72,\"\")","v":""},{"$f":"IF(DataLog!$C72=\"Log value\",DataLog!AJ72,\"\")","v":""},{"$f":"IF(DataLog!$C72=\"Log value\",DataLog!AK72,\"\")","v":""},{"$f":"IF(DataLog!$C72=\"Log value\",DataLog!AL72,\"\")","v":""},{"$f":"IF(DataLog!$C72=\"Log value\",DataLog!AM72,\"\")","v":""}]
[null,null,"Standard","Standard -  - ",null,null,{"$f":"IF(DataLog!$C73=\"Log value\",DataLog!D73&\"_\"&TEXT(DataLog!B73,\"åååå-mm-dd\"),\"\")","v":""},{"$f":"IF(DataLog!$C73=\"Log value\",DataLog!E73,\"\")","v":""},{"$f":"IF(DataLog!$C73=\"Log value\",DataLog!F73,\"\")","v":""},{"$f":"IF(DataLog!$C73=\"Log value\",DataLog!G73,\"\")","v":""},{"$f":"IF(DataLog!$C73=\"Log value\",DataLog!H73,\"\")","v":""},{"$f":"IF(DataLog!$C73=\"Log value\",DataLog!I73,\"\")","v":""},{"$f":"IF(DataLog!$C73=\"Log value\",DataLog!J73,\"\")","v":""},{"$f":"IF(DataLog!$C73=\"Log value\",DataLog!K73,\"\")","v":""},{"$f":"IF(DataLog!$C73=\"Log value\",DataLog!L73,\"\")","v":""},{"$f":"IF(DataLog!$C73=\"Log value\",DataLog!M73,\"\")","v":""},{"$f":"IF(DataLog!$C73=\"Log value\",DataLog!N73,\"\")","v":""},{"$f":"IF(DataLog!$C73=\"Log value\",DataLog!O73,\"\")","v":""},{"$f":"IF(DataLog!$C73=\"Log value\",DataLog!P73,\"\")","v":""},{"$f":"IF(DataLog!$C73=\"Log value\",DataLog!Q73,\"\")","v":""},{"$f":"IF(DataLog!$C73=\"Log value\",DataLog!R73,\"\")","v":""},{"$f":"IF(DataLog!$C73=\"Log value\",DataLog!S73,\"\")","v":""},{"$f":"IF(DataLog!$C73=\"Log value\",DataLog!T73,\"\")","v":""},{"$f":"IF(DataLog!$C73=\"Log value\",DataLog!U73,\"\")","v":""},{"$f":"IF(DataLog!$C73=\"Log value\",DataLog!V73,\"\")","v":""},{"$f":"IF(DataLog!$C73=\"Log value\",DataLog!W73,\"\")","v":""},{"$f":"IF(DataLog!$C73=\"Log value\",DataLog!X73,\"\")","v":""},{"$f":"IF(DataLog!$C73=\"Log value\",DataLog!Y73,\"\")","v":""},{"$f":"IF(DataLog!$C73=\"Log value\",DataLog!Z73,\"\")","v":""},{"$f":"IF(DataLog!$C73=\"Log value\",DataLog!AA73,\"\")","v":""},{"$f":"IF(DataLog!$C73=\"Log value\",DataLog!AB73,\"\")","v":""},{"$f":"IF(DataLog!$C73=\"Log value\",DataLog!AC73,\"\")","v":""},{"$f":"IF(DataLog!$C73=\"Log value\",DataLog!AD73,\"\")","v":""},{"$f":"IF(DataLog!$C73=\"Log value\",DataLog!AE73,\"\")","v":""},{"$f":"IF(DataLog!$C73=\"Log value\",DataLog!AF73,\"\")","v":""},{"$f":"IF(DataLog!$C73=\"Log value\",DataLog!AG73,\"\")","v":""},{"$f":"IF(DataLog!$C73=\"Log value\",DataLog!AH73,\"\")","v":""},{"$f":"IF(DataLog!$C73=\"Log value\",DataLog!AI73,\"\")","v":""},{"$f":"IF(DataLog!$C73=\"Log value\",DataLog!AJ73,\"\")","v":""},{"$f":"IF(DataLog!$C73=\"Log value\",DataLog!AK73,\"\")","v":""},{"$f":"IF(DataLog!$C73=\"Log value\",DataLog!AL73,\"\")","v":""},{"$f":"IF(DataLog!$C73=\"Log value\",DataLog!AM73,\"\")","v":""}]
[null,null,"Standard","Standard -  - ",null,null,{"$f":"IF(DataLog!$C74=\"Log value\",DataLog!D74&\"_\"&TEXT(DataLog!B74,\"åååå-mm-dd\"),\"\")","v":""},{"$f":"IF(DataLog!$C74=\"Log value\",DataLog!E74,\"\")","v":""},{"$f":"IF(DataLog!$C74=\"Log value\",DataLog!F74,\"\")","v":""},{"$f":"IF(DataLog!$C74=\"Log value\",DataLog!G74,\"\")","v":""},{"$f":"IF(DataLog!$C74=\"Log value\",DataLog!H74,\"\")","v":""},{"$f":"IF(DataLog!$C74=\"Log value\",DataLog!I74,\"\")","v":""},{"$f":"IF(DataLog!$C74=\"Log value\",DataLog!J74,\"\")","v":""},{"$f":"IF(DataLog!$C74=\"Log value\",DataLog!K74,\"\")","v":""},{"$f":"IF(DataLog!$C74=\"Log value\",DataLog!L74,\"\")","v":""},{"$f":"IF(DataLog!$C74=\"Log value\",DataLog!M74,\"\")","v":""},{"$f":"IF(DataLog!$C74=\"Log value\",DataLog!N74,\"\")","v":""},{"$f":"IF(DataLog!$C74=\"Log value\",DataLog!O74,\"\")","v":""},{"$f":"IF(DataLog!$C74=\"Log value\",DataLog!P74,\"\")","v":""},{"$f":"IF(DataLog!$C74=\"Log value\",DataLog!Q74,\"\")","v":""},{"$f":"IF(DataLog!$C74=\"Log value\",DataLog!R74,\"\")","v":""},{"$f":"IF(DataLog!$C74=\"Log value\",DataLog!S74,\"\")","v":""},{"$f":"IF(DataLog!$C74=\"Log value\",DataLog!T74,\"\")","v":""},{"$f":"IF(DataLog!$C74=\"Log value\",DataLog!U74,\"\")","v":""},{"$f":"IF(DataLog!$C74=\"Log value\",DataLog!V74,\"\")","v":""},{"$f":"IF(DataLog!$C74=\"Log value\",DataLog!W74,\"\")","v":""},{"$f":"IF(DataLog!$C74=\"Log value\",DataLog!X74,\"\")","v":""},{"$f":"IF(DataLog!$C74=\"Log value\",DataLog!Y74,\"\")","v":""},{"$f":"IF(DataLog!$C74=\"Log value\",DataLog!Z74,\"\")","v":""},{"$f":"IF(DataLog!$C74=\"Log value\",DataLog!AA74,\"\")","v":""},{"$f":"IF(DataLog!$C74=\"Log value\",DataLog!AB74,\"\")","v":""},{"$f":"IF(DataLog!$C74=\"Log value\",DataLog!AC74,\"\")","v":""},{"$f":"IF(DataLog!$C74=\"Log value\",DataLog!AD74,\"\")","v":""},{"$f":"IF(DataLog!$C74=\"Log value\",DataLog!AE74,\"\")","v":""},{"$f":"IF(DataLog!$C74=\"Log value\",DataLog!AF74,\"\")","v":""},{"$f":"IF(DataLog!$C74=\"Log value\",DataLog!AG74,\"\")","v":""},{"$f":"IF(DataLog!$C74=\"Log value\",DataLog!AH74,\"\")","v":""},{"$f":"IF(DataLog!$C74=\"Log value\",DataLog!AI74,\"\")","v":""},{"$f":"IF(DataLog!$C74=\"Log value\",DataLog!AJ74,\"\")","v":""},{"$f":"IF(DataLog!$C74=\"Log value\",DataLog!AK74,\"\")","v":""},{"$f":"IF(DataLog!$C74=\"Log value\",DataLog!AL74,\"\")","v":""},{"$f":"IF(DataLog!$C74=\"Log value\",DataLog!AM74,\"\")","v":""}]
[null,null,"Standard","Standard -  - ",null,null,{"$f":"IF(DataLog!$C75=\"Log value\",DataLog!D75&\"_\"&TEXT(DataLog!B75,\"åååå-mm-dd\"),\"\")","v":""},{"$f":"IF(DataLog!$C75=\"Log value\",DataLog!E75,\"\")","v":""},{"$f":"IF(DataLog!$C75=\"Log value\",DataLog!F75,\"\")","v":""},{"$f":"IF(DataLog!$C75=\"Log value\",DataLog!G75,\"\")","v":""},{"$f":"IF(DataLog!$C75=\"Log value\",DataLog!H75,\"\")","v":""},{"$f":"IF(DataLog!$C75=\"Log value\",DataLog!I75,\"\")","v":""},{"$f":"IF(DataLog!$C75=\"Log value\",DataLog!J75,\"\")","v":""},{"$f":"IF(DataLog!$C75=\"Log value\",DataLog!K75,\"\")","v":""},{"$f":"IF(DataLog!$C75=\"Log value\",DataLog!L75,\"\")","v":""},{"$f":"IF(DataLog!$C75=\"Log value\",DataLog!M75,\"\")","v":""},{"$f":"IF(DataLog!$C75=\"Log value\",DataLog!N75,\"\")","v":""},{"$f":"IF(DataLog!$C75=\"Log value\",DataLog!O75,\"\")","v":""},{"$f":"IF(DataLog!$C75=\"Log value\",DataLog!P75,\"\")","v":""},{"$f":"IF(DataLog!$C75=\"Log value\",DataLog!Q75,\"\")","v":""},{"$f":"IF(DataLog!$C75=\"Log value\",DataLog!R75,\"\")","v":""},{"$f":"IF(DataLog!$C75=\"Log value\",DataLog!S75,\"\")","v":""},{"$f":"IF(DataLog!$C75=\"Log value\",DataLog!T75,\"\")","v":""},{"$f":"IF(DataLog!$C75=\"Log value\",DataLog!U75,\"\")","v":""},{"$f":"IF(DataLog!$C75=\"Log value\",DataLog!V75,\"\")","v":""},{"$f":"IF(DataLog!$C75=\"Log value\",DataLog!W75,\"\")","v":""},{"$f":"IF(DataLog!$C75=\"Log value\",DataLog!X75,\"\")","v":""},{"$f":"IF(DataLog!$C75=\"Log value\",DataLog!Y75,\"\")","v":""},{"$f":"IF(DataLog!$C75=\"Log value\",DataLog!Z75,\"\")","v":""},{"$f":"IF(DataLog!$C75=\"Log value\",DataLog!AA75,\"\")","v":""},{"$f":"IF(DataLog!$C75=\"Log value\",DataLog!AB75,\"\")","v":""},{"$f":"IF(DataLog!$C75=\"Log value\",DataLog!AC75,\"\")","v":""},{"$f":"IF(DataLog!$C75=\"Log value\",DataLog!AD75,\"\")","v":""},{"$f":"IF(DataLog!$C75=\"Log value\",DataLog!AE75,\"\")","v":""},{"$f":"IF(DataLog!$C75=\"Log value\",DataLog!AF75,\"\")","v":""},{"$f":"IF(DataLog!$C75=\"Log value\",DataLog!AG75,\"\")","v":""},{"$f":"IF(DataLog!$C75=\"Log value\",DataLog!AH75,\"\")","v":""},{"$f":"IF(DataLog!$C75=\"Log value\",DataLog!AI75,\"\")","v":""},{"$f":"IF(DataLog!$C75=\"Log value\",DataLog!AJ75,\"\")","v":""},{"$f":"IF(DataLog!$C75=\"Log value\",DataLog!AK75,\"\")","v":""},{"$f":"IF(DataLog!$C75=\"Log value\",DataLog!AL75,\"\")","v":""},{"$f":"IF(DataLog!$C75=\"Log value\",DataLog!AM75,\"\")","v":""}]
[null,null,"Standard","Standard -  - ",null,null,{"$f":"IF(DataLog!$C76=\"Log value\",DataLog!D76&\"_\"&TEXT(DataLog!B76,\"åååå-mm-dd\"),\"\")","v":""},{"$f":"IF(DataLog!$C76=\"Log value\",DataLog!E76,\"\")","v":""},{"$f":"IF(DataLog!$C76=\"Log value\",DataLog!F76,\"\")","v":""},{"$f":"IF(DataLog!$C76=\"Log value\",DataLog!G76,\"\")","v":""},{"$f":"IF(DataLog!$C76=\"Log value\",DataLog!H76,\"\")","v":""},{"$f":"IF(DataLog!$C76=\"Log value\",DataLog!I76,\"\")","v":""},{"$f":"IF(DataLog!$C76=\"Log value\",DataLog!J76,\"\")","v":""},{"$f":"IF(DataLog!$C76=\"Log value\",DataLog!K76,\"\")","v":""},{"$f":"IF(DataLog!$C76=\"Log value\",DataLog!L76,\"\")","v":""},{"$f":"IF(DataLog!$C76=\"Log value\",DataLog!M76,\"\")","v":""},{"$f":"IF(DataLog!$C76=\"Log value\",DataLog!N76,\"\")","v":""},{"$f":"IF(DataLog!$C76=\"Log value\",DataLog!O76,\"\")","v":""},{"$f":"IF(DataLog!$C76=\"Log value\",DataLog!P76,\"\")","v":""},{"$f":"IF(DataLog!$C76=\"Log value\",DataLog!Q76,\"\")","v":""},{"$f":"IF(DataLog!$C76=\"Log value\",DataLog!R76,\"\")","v":""},{"$f":"IF(DataLog!$C76=\"Log value\",DataLog!S76,\"\")","v":""},{"$f":"IF(DataLog!$C76=\"Log value\",DataLog!T76,\"\")","v":""},{"$f":"IF(DataLog!$C76=\"Log value\",DataLog!U76,\"\")","v":""},{"$f":"IF(DataLog!$C76=\"Log value\",DataLog!V76,\"\")","v":""},{"$f":"IF(DataLog!$C76=\"Log value\",DataLog!W76,\"\")","v":""},{"$f":"IF(DataLog!$C76=\"Log value\",DataLog!X76,\"\")","v":""},{"$f":"IF(DataLog!$C76=\"Log value\",DataLog!Y76,\"\")","v":""},{"$f":"IF(DataLog!$C76=\"Log value\",DataLog!Z76,\"\")","v":""},{"$f":"IF(DataLog!$C76=\"Log value\",DataLog!AA76,\"\")","v":""},{"$f":"IF(DataLog!$C76=\"Log value\",DataLog!AB76,\"\")","v":""},{"$f":"IF(DataLog!$C76=\"Log value\",DataLog!AC76,\"\")","v":""},{"$f":"IF(DataLog!$C76=\"Log value\",DataLog!AD76,\"\")","v":""},{"$f":"IF(DataLog!$C76=\"Log value\",DataLog!AE76,\"\")","v":""},{"$f":"IF(DataLog!$C76=\"Log value\",DataLog!AF76,\"\")","v":""},{"$f":"IF(DataLog!$C76=\"Log value\",DataLog!AG76,\"\")","v":""},{"$f":"IF(DataLog!$C76=\"Log value\",DataLog!AH76,\"\")","v":""},{"$f":"IF(DataLog!$C76=\"Log value\",DataLog!AI76,\"\")","v":""},{"$f":"IF(DataLog!$C76=\"Log value\",DataLog!AJ76,\"\")","v":""},{"$f":"IF(DataLog!$C76=\"Log value\",DataLog!AK76,\"\")","v":""},{"$f":"IF(DataLog!$C76=\"Log value\",DataLog!AL76,\"\")","v":""},{"$f":"IF(DataLog!$C76=\"Log value\",DataLog!AM76,\"\")","v":""}]
[null,null,"Standard","Standard -  - ",null,null,{"$f":"IF(DataLog!$C77=\"Log value\",DataLog!D77&\"_\"&TEXT(DataLog!B77,\"åååå-mm-dd\"),\"\")","v":""},{"$f":"IF(DataLog!$C77=\"Log value\",DataLog!E77,\"\")","v":""},{"$f":"IF(DataLog!$C77=\"Log value\",DataLog!F77,\"\")","v":""},{"$f":"IF(DataLog!$C77=\"Log value\",DataLog!G77,\"\")","v":""},{"$f":"IF(DataLog!$C77=\"Log value\",DataLog!H77,\"\")","v":""},{"$f":"IF(DataLog!$C77=\"Log value\",DataLog!I77,\"\")","v":""},{"$f":"IF(DataLog!$C77=\"Log value\",DataLog!J77,\"\")","v":""},{"$f":"IF(DataLog!$C77=\"Log value\",DataLog!K77,\"\")","v":""},{"$f":"IF(DataLog!$C77=\"Log value\",DataLog!L77,\"\")","v":""},{"$f":"IF(DataLog!$C77=\"Log value\",DataLog!M77,\"\")","v":""},{"$f":"IF(DataLog!$C77=\"Log value\",DataLog!N77,\"\")","v":""},{"$f":"IF(DataLog!$C77=\"Log value\",DataLog!O77,\"\")","v":""},{"$f":"IF(DataLog!$C77=\"Log value\",DataLog!P77,\"\")","v":""},{"$f":"IF(DataLog!$C77=\"Log value\",DataLog!Q77,\"\")","v":""},{"$f":"IF(DataLog!$C77=\"Log value\",DataLog!R77,\"\")","v":""},{"$f":"IF(DataLog!$C77=\"Log value\",DataLog!S77,\"\")","v":""},{"$f":"IF(DataLog!$C77=\"Log value\",DataLog!T77,\"\")","v":""},{"$f":"IF(DataLog!$C77=\"Log value\",DataLog!U77,\"\")","v":""},{"$f":"IF(DataLog!$C77=\"Log value\",DataLog!V77,\"\")","v":""},{"$f":"IF(DataLog!$C77=\"Log value\",DataLog!W77,\"\")","v":""},{"$f":"IF(DataLog!$C77=\"Log value\",DataLog!X77,\"\")","v":""},{"$f":"IF(DataLog!$C77=\"Log value\",DataLog!Y77,\"\")","v":""},{"$f":"IF(DataLog!$C77=\"Log value\",DataLog!Z77,\"\")","v":""},{"$f":"IF(DataLog!$C77=\"Log value\",DataLog!AA77,\"\")","v":""},{"$f":"IF(DataLog!$C77=\"Log value\",DataLog!AB77,\"\")","v":""},{"$f":"IF(DataLog!$C77=\"Log value\",DataLog!AC77,\"\")","v":""},{"$f":"IF(DataLog!$C77=\"Log value\",DataLog!AD77,\"\")","v":""},{"$f":"IF(DataLog!$C77=\"Log value\",DataLog!AE77,\"\")","v":""},{"$f":"IF(DataLog!$C77=\"Log value\",DataLog!AF77,\"\")","v":""},{"$f":"IF(DataLog!$C77=\"Log value\",DataLog!AG77,\"\")","v":""},{"$f":"IF(DataLog!$C77=\"Log value\",DataLog!AH77,\"\")","v":""},{"$f":"IF(DataLog!$C77=\"Log value\",DataLog!AI77,\"\")","v":""},{"$f":"IF(DataLog!$C77=\"Log value\",DataLog!AJ77,\"\")","v":""},{"$f":"IF(DataLog!$C77=\"Log value\",DataLog!AK77,\"\")","v":""},{"$f":"IF(DataLog!$C77=\"Log value\",DataLog!AL77,\"\")","v":""},{"$f":"IF(DataLog!$C77=\"Log value\",DataLog!AM77,\"\")","v":""}]
[null,null,"Standard","Standard -  - ",null,null,{"$f":"IF(DataLog!$C78=\"Log value\",DataLog!D78&\"_\"&TEXT(DataLog!B78,\"åååå-mm-dd\"),\"\")","v":""},{"$f":"IF(DataLog!$C78=\"Log value\",DataLog!E78,\"\")","v":""},{"$f":"IF(DataLog!$C78=\"Log value\",DataLog!F78,\"\")","v":""},{"$f":"IF(DataLog!$C78=\"Log value\",DataLog!G78,\"\")","v":""},{"$f":"IF(DataLog!$C78=\"Log value\",DataLog!H78,\"\")","v":""},{"$f":"IF(DataLog!$C78=\"Log value\",DataLog!I78,\"\")","v":""},{"$f":"IF(DataLog!$C78=\"Log value\",DataLog!J78,\"\")","v":""},{"$f":"IF(DataLog!$C78=\"Log value\",DataLog!K78,\"\")","v":""},{"$f":"IF(DataLog!$C78=\"Log value\",DataLog!L78,\"\")","v":""},{"$f":"IF(DataLog!$C78=\"Log value\",DataLog!M78,\"\")","v":""},{"$f":"IF(DataLog!$C78=\"Log value\",DataLog!N78,\"\")","v":""},{"$f":"IF(DataLog!$C78=\"Log value\",DataLog!O78,\"\")","v":""},{"$f":"IF(DataLog!$C78=\"Log value\",DataLog!P78,\"\")","v":""},{"$f":"IF(DataLog!$C78=\"Log value\",DataLog!Q78,\"\")","v":""},{"$f":"IF(DataLog!$C78=\"Log value\",DataLog!R78,\"\")","v":""},{"$f":"IF(DataLog!$C78=\"Log value\",DataLog!S78,\"\")","v":""},{"$f":"IF(DataLog!$C78=\"Log value\",DataLog!T78,\"\")","v":""},{"$f":"IF(DataLog!$C78=\"Log value\",DataLog!U78,\"\")","v":""},{"$f":"IF(DataLog!$C78=\"Log value\",DataLog!V78,\"\")","v":""},{"$f":"IF(DataLog!$C78=\"Log value\",DataLog!W78,\"\")","v":""},{"$f":"IF(DataLog!$C78=\"Log value\",DataLog!X78,\"\")","v":""},{"$f":"IF(DataLog!$C78=\"Log value\",DataLog!Y78,\"\")","v":""},{"$f":"IF(DataLog!$C78=\"Log value\",DataLog!Z78,\"\")","v":""},{"$f":"IF(DataLog!$C78=\"Log value\",DataLog!AA78,\"\")","v":""},{"$f":"IF(DataLog!$C78=\"Log value\",DataLog!AB78,\"\")","v":""},{"$f":"IF(DataLog!$C78=\"Log value\",DataLog!AC78,\"\")","v":""},{"$f":"IF(DataLog!$C78=\"Log value\",DataLog!AD78,\"\")","v":""},{"$f":"IF(DataLog!$C78=\"Log value\",DataLog!AE78,\"\")","v":""},{"$f":"IF(DataLog!$C78=\"Log value\",DataLog!AF78,\"\")","v":""},{"$f":"IF(DataLog!$C78=\"Log value\",DataLog!AG78,\"\")","v":""},{"$f":"IF(DataLog!$C78=\"Log value\",DataLog!AH78,\"\")","v":""},{"$f":"IF(DataLog!$C78=\"Log value\",DataLog!AI78,\"\")","v":""},{"$f":"IF(DataLog!$C78=\"Log value\",DataLog!AJ78,\"\")","v":""},{"$f":"IF(DataLog!$C78=\"Log value\",DataLog!AK78,\"\")","v":""},{"$f":"IF(DataLog!$C78=\"Log value\",DataLog!AL78,\"\")","v":""},{"$f":"IF(DataLog!$C78=\"Log value\",DataLog!AM78,\"\")","v":""}]
[null,null,"Standard","Standard -  - ",null,null,{"$f":"IF(DataLog!$C79=\"Log value\",DataLog!D79&\"_\"&TEXT(DataLog!B79,\"åååå-mm-dd\"),\"\")","v":""},{"$f":"IF(DataLog!$C79=\"Log value\",DataLog!E79,\"\")","v":""},{"$f":"IF(DataLog!$C79=\"Log value\",DataLog!F79,\"\")","v":""},{"$f":"IF(DataLog!$C79=\"Log value\",DataLog!G79,\"\")","v":""},{"$f":"IF(DataLog!$C79=\"Log value\",DataLog!H79,\"\")","v":""},{"$f":"IF(DataLog!$C79=\"Log value\",DataLog!I79,\"\")","v":""},{"$f":"IF(DataLog!$C79=\"Log value\",DataLog!J79,\"\")","v":""},{"$f":"IF(DataLog!$C79=\"Log value\",DataLog!K79,\"\")","v":""},{"$f":"IF(DataLog!$C79=\"Log value\",DataLog!L79,\"\")","v":""},{"$f":"IF(DataLog!$C79=\"Log value\",DataLog!M79,\"\")","v":""},{"$f":"IF(DataLog!$C79=\"Log value\",DataLog!N79,\"\")","v":""},{"$f":"IF(DataLog!$C79=\"Log value\",DataLog!O79,\"\")","v":""},{"$f":"IF(DataLog!$C79=\"Log value\",DataLog!P79,\"\")","v":""},{"$f":"IF(DataLog!$C79=\"Log value\",DataLog!Q79,\"\")","v":""},{"$f":"IF(DataLog!$C79=\"Log value\",DataLog!R79,\"\")","v":""},{"$f":"IF(DataLog!$C79=\"Log value\",DataLog!S79,\"\")","v":""},{"$f":"IF(DataLog!$C79=\"Log value\",DataLog!T79,\"\")","v":""},{"$f":"IF(DataLog!$C79=\"Log value\",DataLog!U79,\"\")","v":""},{"$f":"IF(DataLog!$C79=\"Log value\",DataLog!V79,\"\")","v":""},{"$f":"IF(DataLog!$C79=\"Log value\",DataLog!W79,\"\")","v":""},{"$f":"IF(DataLog!$C79=\"Log value\",DataLog!X79,\"\")","v":""},{"$f":"IF(DataLog!$C79=\"Log value\",DataLog!Y79,\"\")","v":""},{"$f":"IF(DataLog!$C79=\"Log value\",DataLog!Z79,\"\")","v":""},{"$f":"IF(DataLog!$C79=\"Log value\",DataLog!AA79,\"\")","v":""},{"$f":"IF(DataLog!$C79=\"Log value\",DataLog!AB79,\"\")","v":""},{"$f":"IF(DataLog!$C79=\"Log value\",DataLog!AC79,\"\")","v":""},{"$f":"IF(DataLog!$C79=\"Log value\",DataLog!AD79,\"\")","v":""},{"$f":"IF(DataLog!$C79=\"Log value\",DataLog!AE79,\"\")","v":""},{"$f":"IF(DataLog!$C79=\"Log value\",DataLog!AF79,\"\")","v":""},{"$f":"IF(DataLog!$C79=\"Log value\",DataLog!AG79,\"\")","v":""},{"$f":"IF(DataLog!$C79=\"Log value\",DataLog!AH79,\"\")","v":""},{"$f":"IF(DataLog!$C79=\"Log value\",DataLog!AI79,\"\")","v":""},{"$f":"IF(DataLog!$C79=\"Log value\",DataLog!AJ79,\"\")","v":""},{"$f":"IF(DataLog!$C79=\"Log value\",DataLog!AK79,\"\")","v":""},{"$f":"IF(DataLog!$C79=\"Log value\",DataLog!AL79,\"\")","v":""},{"$f":"IF(DataLog!$C79=\"Log value\",DataLog!AM79,\"\")","v":""}]
[null,null,"Standard","Standard -  - ",null,null,{"$f":"IF(DataLog!$C80=\"Log value\",DataLog!D80&\"_\"&TEXT(DataLog!B80,\"åååå-mm-dd\"),\"\")","v":""},{"$f":"IF(DataLog!$C80=\"Log value\",DataLog!E80,\"\")","v":""},{"$f":"IF(DataLog!$C80=\"Log value\",DataLog!F80,\"\")","v":""},{"$f":"IF(DataLog!$C80=\"Log value\",DataLog!G80,\"\")","v":""},{"$f":"IF(DataLog!$C80=\"Log value\",DataLog!H80,\"\")","v":""},{"$f":"IF(DataLog!$C80=\"Log value\",DataLog!I80,\"\")","v":""},{"$f":"IF(DataLog!$C80=\"Log value\",DataLog!J80,\"\")","v":""},{"$f":"IF(DataLog!$C80=\"Log value\",DataLog!K80,\"\")","v":""},{"$f":"IF(DataLog!$C80=\"Log value\",DataLog!L80,\"\")","v":""},{"$f":"IF(DataLog!$C80=\"Log value\",DataLog!M80,\"\")","v":""},{"$f":"IF(DataLog!$C80=\"Log value\",DataLog!N80,\"\")","v":""},{"$f":"IF(DataLog!$C80=\"Log value\",DataLog!O80,\"\")","v":""},{"$f":"IF(DataLog!$C80=\"Log value\",DataLog!P80,\"\")","v":""},{"$f":"IF(DataLog!$C80=\"Log value\",DataLog!Q80,\"\")","v":""},{"$f":"IF(DataLog!$C80=\"Log value\",DataLog!R80,\"\")","v":""},{"$f":"IF(DataLog!$C80=\"Log value\",DataLog!S80,\"\")","v":""},{"$f":"IF(DataLog!$C80=\"Log value\",DataLog!T80,\"\")","v":""},{"$f":"IF(DataLog!$C80=\"Log value\",DataLog!U80,\"\")","v":""},{"$f":"IF(DataLog!$C80=\"Log value\",DataLog!V80,\"\")","v":""},{"$f":"IF(DataLog!$C80=\"Log value\",DataLog!W80,\"\")","v":""},{"$f":"IF(DataLog!$C80=\"Log value\",DataLog!X80,\"\")","v":""},{"$f":"IF(DataLog!$C80=\"Log value\",DataLog!Y80,\"\")","v":""},{"$f":"IF(DataLog!$C80=\"Log value\",DataLog!Z80,\"\")","v":""},{"$f":"IF(DataLog!$C80=\"Log value\",DataLog!AA80,\"\")","v":""},{"$f":"IF(DataLog!$C80=\"Log value\",DataLog!AB80,\"\")","v":""},{"$f":"IF(DataLog!$C80=\"Log value\",DataLog!AC80,\"\")","v":""},{"$f":"IF(DataLog!$C80=\"Log value\",DataLog!AD80,\"\")","v":""},{"$f":"IF(DataLog!$C80=\"Log value\",DataLog!AE80,\"\")","v":""},{"$f":"IF(DataLog!$C80=\"Log value\",DataLog!AF80,\"\")","v":""},{"$f":"IF(DataLog!$C80=\"Log value\",DataLog!AG80,\"\")","v":""},{"$f":"IF(DataLog!$C80=\"Log value\",DataLog!AH80,\"\")","v":""},{"$f":"IF(DataLog!$C80=\"Log value\",DataLog!AI80,\"\")","v":""},{"$f":"IF(DataLog!$C80=\"Log value\",DataLog!AJ80,\"\")","v":""},{"$f":"IF(DataLog!$C80=\"Log value\",DataLog!AK80,\"\")","v":""},{"$f":"IF(DataLog!$C80=\"Log value\",DataLog!AL80,\"\")","v":""},{"$f":"IF(DataLog!$C80=\"Log value\",DataLog!AM80,\"\")","v":""}]
[null,null,"Standard","Standard -  - ",null,null,{"$f":"IF(DataLog!$C81=\"Log value\",DataLog!D81&\"_\"&TEXT(DataLog!B81,\"åååå-mm-dd\"),\"\")","v":""},{"$f":"IF(DataLog!$C81=\"Log value\",DataLog!E81,\"\")","v":""},{"$f":"IF(DataLog!$C81=\"Log value\",DataLog!F81,\"\")","v":""},{"$f":"IF(DataLog!$C81=\"Log value\",DataLog!G81,\"\")","v":""},{"$f":"IF(DataLog!$C81=\"Log value\",DataLog!H81,\"\")","v":""},{"$f":"IF(DataLog!$C81=\"Log value\",DataLog!I81,\"\")","v":""},{"$f":"IF(DataLog!$C81=\"Log value\",DataLog!J81,\"\")","v":""},{"$f":"IF(DataLog!$C81=\"Log value\",DataLog!K81,\"\")","v":""},{"$f":"IF(DataLog!$C81=\"Log value\",DataLog!L81,\"\")","v":""},{"$f":"IF(DataLog!$C81=\"Log value\",DataLog!M81,\"\")","v":""},{"$f":"IF(DataLog!$C81=\"Log value\",DataLog!N81,\"\")","v":""},{"$f":"IF(DataLog!$C81=\"Log value\",DataLog!O81,\"\")","v":""},{"$f":"IF(DataLog!$C81=\"Log value\",DataLog!P81,\"\")","v":""},{"$f":"IF(DataLog!$C81=\"Log value\",DataLog!Q81,\"\")","v":""},{"$f":"IF(DataLog!$C81=\"Log value\",DataLog!R81,\"\")","v":""},{"$f":"IF(DataLog!$C81=\"Log value\",DataLog!S81,\"\")","v":""},{"$f":"IF(DataLog!$C81=\"Log value\",DataLog!T81,\"\")","v":""},{"$f":"IF(DataLog!$C81=\"Log value\",DataLog!U81,\"\")","v":""},{"$f":"IF(DataLog!$C81=\"Log value\",DataLog!V81,\"\")","v":""},{"$f":"IF(DataLog!$C81=\"Log value\",DataLog!W81,\"\")","v":""},{"$f":"IF(DataLog!$C81=\"Log value\",DataLog!X81,\"\")","v":""},{"$f":"IF(DataLog!$C81=\"Log value\",DataLog!Y81,\"\")","v":""},{"$f":"IF(DataLog!$C81=\"Log value\",DataLog!Z81,\"\")","v":""},{"$f":"IF(DataLog!$C81=\"Log value\",DataLog!AA81,\"\")","v":""},{"$f":"IF(DataLog!$C81=\"Log value\",DataLog!AB81,\"\")","v":""},{"$f":"IF(DataLog!$C81=\"Log value\",DataLog!AC81,\"\")","v":""},{"$f":"IF(DataLog!$C81=\"Log value\",DataLog!AD81,\"\")","v":""},{"$f":"IF(DataLog!$C81=\"Log value\",DataLog!AE81,\"\")","v":""},{"$f":"IF(DataLog!$C81=\"Log value\",DataLog!AF81,\"\")","v":""},{"$f":"IF(DataLog!$C81=\"Log value\",DataLog!AG81,\"\")","v":""},{"$f":"IF(DataLog!$C81=\"Log value\",DataLog!AH81,\"\")","v":""},{"$f":"IF(DataLog!$C81=\"Log value\",DataLog!AI81,\"\")","v":""},{"$f":"IF(DataLog!$C81=\"Log value\",DataLog!AJ81,\"\")","v":""},{"$f":"IF(DataLog!$C81=\"Log value\",DataLog!AK81,\"\")","v":""},{"$f":"IF(DataLog!$C81=\"Log value\",DataLog!AL81,\"\")","v":""},{"$f":"IF(DataLog!$C81=\"Log value\",DataLog!AM81,\"\")","v":""}]
[null,null,"Standard","Standard -  - ",null,null,{"$f":"IF(DataLog!$C82=\"Log value\",DataLog!D82&\"_\"&TEXT(DataLog!B82,\"åååå-mm-dd\"),\"\")","v":""},{"$f":"IF(DataLog!$C82=\"Log value\",DataLog!E82,\"\")","v":""},{"$f":"IF(DataLog!$C82=\"Log value\",DataLog!F82,\"\")","v":""},{"$f":"IF(DataLog!$C82=\"Log value\",DataLog!G82,\"\")","v":""},{"$f":"IF(DataLog!$C82=\"Log value\",DataLog!H82,\"\")","v":""},{"$f":"IF(DataLog!$C82=\"Log value\",DataLog!I82,\"\")","v":""},{"$f":"IF(DataLog!$C82=\"Log value\",DataLog!J82,\"\")","v":""},{"$f":"IF(DataLog!$C82=\"Log value\",DataLog!K82,\"\")","v":""},{"$f":"IF(DataLog!$C82=\"Log value\",DataLog!L82,\"\")","v":""},{"$f":"IF(DataLog!$C82=\"Log value\",DataLog!M82,\"\")","v":""},{"$f":"IF(DataLog!$C82=\"Log value\",DataLog!N82,\"\")","v":""},{"$f":"IF(DataLog!$C82=\"Log value\",DataLog!O82,\"\")","v":""},{"$f":"IF(DataLog!$C82=\"Log value\",DataLog!P82,\"\")","v":""},{"$f":"IF(DataLog!$C82=\"Log value\",DataLog!Q82,\"\")","v":""},{"$f":"IF(DataLog!$C82=\"Log value\",DataLog!R82,\"\")","v":""},{"$f":"IF(DataLog!$C82=\"Log value\",DataLog!S82,\"\")","v":""},{"$f":"IF(DataLog!$C82=\"Log value\",DataLog!T82,\"\")","v":""},{"$f":"IF(DataLog!$C82=\"Log value\",DataLog!U82,\"\")","v":""},{"$f":"IF(DataLog!$C82=\"Log value\",DataLog!V82,\"\")","v":""},{"$f":"IF(DataLog!$C82=\"Log value\",DataLog!W82,\"\")","v":""},{"$f":"IF(DataLog!$C82=\"Log value\",DataLog!X82,\"\")","v":""},{"$f":"IF(DataLog!$C82=\"Log value\",DataLog!Y82,\"\")","v":""},{"$f":"IF(DataLog!$C82=\"Log value\",DataLog!Z82,\"\")","v":""},{"$f":"IF(DataLog!$C82=\"Log value\",DataLog!AA82,\"\")","v":""},{"$f":"IF(DataLog!$C82=\"Log value\",DataLog!AB82,\"\")","v":""},{"$f":"IF(DataLog!$C82=\"Log value\",DataLog!AC82,\"\")","v":""},{"$f":"IF(DataLog!$C82=\"Log value\",DataLog!AD82,\"\")","v":""},{"$f":"IF(DataLog!$C82=\"Log value\",DataLog!AE82,\"\")","v":""},{"$f":"IF(DataLog!$C82=\"Log value\",DataLog!AF82,\"\")","v":""},{"$f":"IF(DataLog!$C82=\"Log value\",DataLog!AG82,\"\")","v":""},{"$f":"IF(DataLog!$C82=\"Log value\",DataLog!AH82,\"\")","v":""},{"$f":"IF(DataLog!$C82=\"Log value\",DataLog!AI82,\"\")","v":""},{"$f":"IF(DataLog!$C82=\"Log value\",DataLog!AJ82,\"\")","v":""},{"$f":"IF(DataLog!$C82=\"Log value\",DataLog!AK82,\"\")","v":""},{"$f":"IF(DataLog!$C82=\"Log value\",DataLog!AL82,\"\")","v":""},{"$f":"IF(DataLog!$C82=\"Log value\",DataLog!AM82,\"\")","v":""}]
[null,null,"Standard","Standard -  - ",null,null,{"$f":"IF(DataLog!$C83=\"Log value\",DataLog!D83&\"_\"&TEXT(DataLog!B83,\"åååå-mm-dd\"),\"\")","v":""},{"$f":"IF(DataLog!$C83=\"Log value\",DataLog!E83,\"\")","v":""},{"$f":"IF(DataLog!$C83=\"Log value\",DataLog!F83,\"\")","v":""},{"$f":"IF(DataLog!$C83=\"Log value\",DataLog!G83,\"\")","v":""},{"$f":"IF(DataLog!$C83=\"Log value\",DataLog!H83,\"\")","v":""},{"$f":"IF(DataLog!$C83=\"Log value\",DataLog!I83,\"\")","v":""},{"$f":"IF(DataLog!$C83=\"Log value\",DataLog!J83,\"\")","v":""},{"$f":"IF(DataLog!$C83=\"Log value\",DataLog!K83,\"\")","v":""},{"$f":"IF(DataLog!$C83=\"Log value\",DataLog!L83,\"\")","v":""},{"$f":"IF(DataLog!$C83=\"Log value\",DataLog!M83,\"\")","v":""},{"$f":"IF(DataLog!$C83=\"Log value\",DataLog!N83,\"\")","v":""},{"$f":"IF(DataLog!$C83=\"Log value\",DataLog!O83,\"\")","v":""},{"$f":"IF(DataLog!$C83=\"Log value\",DataLog!P83,\"\")","v":""},{"$f":"IF(DataLog!$C83=\"Log value\",DataLog!Q83,\"\")","v":""},{"$f":"IF(DataLog!$C83=\"Log value\",DataLog!R83,\"\")","v":""},{"$f":"IF(DataLog!$C83=\"Log value\",DataLog!S83,\"\")","v":""},{"$f":"IF(DataLog!$C83=\"Log value\",DataLog!T83,\"\")","v":""},{"$f":"IF(DataLog!$C83=\"Log value\",DataLog!U83,\"\")","v":""},{"$f":"IF(DataLog!$C83=\"Log value\",DataLog!V83,\"\")","v":""},{"$f":"IF(DataLog!$C83=\"Log value\",DataLog!W83,\"\")","v":""},{"$f":"IF(DataLog!$C83=\"Log value\",DataLog!X83,\"\")","v":""},{"$f":"IF(DataLog!$C83=\"Log value\",DataLog!Y83,\"\")","v":""},{"$f":"IF(DataLog!$C83=\"Log value\",DataLog!Z83,\"\")","v":""},{"$f":"IF(DataLog!$C83=\"Log value\",DataLog!AA83,\"\")","v":""},{"$f":"IF(DataLog!$C83=\"Log value\",DataLog!AB83,\"\")","v":""},{"$f":"IF(DataLog!$C83=\"Log value\",DataLog!AC83,\"\")","v":""},{"$f":"IF(DataLog!$C83=\"Log value\",DataLog!AD83,\"\")","v":""},{"$f":"IF(DataLog!$C83=\"Log value\",DataLog!AE83,\"\")","v":""},{"$f":"IF(DataLog!$C83=\"Log value\",DataLog!AF83,\"\")","v":""},{"$f":"IF(DataLog!$C83=\"Log value\",DataLog!AG83,\"\")","v":""},{"$f":"IF(DataLog!$C83=\"Log value\",DataLog!AH83,\"\")","v":""},{"$f":"IF(DataLog!$C83=\"Log value\",DataLog!AI83,\"\")","v":""},{"$f":"IF(DataLog!$C83=\"Log value\",DataLog!AJ83,\"\")","v":""},{"$f":"IF(DataLog!$C83=\"Log value\",DataLog!AK83,\"\")","v":""},{"$f":"IF(DataLog!$C83=\"Log value\",DataLog!AL83,\"\")","v":""},{"$f":"IF(DataLog!$C83=\"Log value\",DataLog!AM83,\"\")","v":""}]
[null,null,"Standard","Standard -  - ",null,null,{"$f":"IF(DataLog!$C84=\"Log value\",DataLog!D84&\"_\"&TEXT(DataLog!B84,\"åååå-mm-dd\"),\"\")","v":""},{"$f":"IF(DataLog!$C84=\"Log value\",DataLog!E84,\"\")","v":""},{"$f":"IF(DataLog!$C84=\"Log value\",DataLog!F84,\"\")","v":""},{"$f":"IF(DataLog!$C84=\"Log value\",DataLog!G84,\"\")","v":""},{"$f":"IF(DataLog!$C84=\"Log value\",DataLog!H84,\"\")","v":""},{"$f":"IF(DataLog!$C84=\"Log value\",DataLog!I84,\"\")","v":""},{"$f":"IF(DataLog!$C84=\"Log value\",DataLog!J84,\"\")","v":""},{"$f":"IF(DataLog!$C84=\"Log value\",DataLog!K84,\"\")","v":""},{"$f":"IF(DataLog!$C84=\"Log value\",DataLog!L84,\"\")","v":""},{"$f":"IF(DataLog!$C84=\"Log value\",DataLog!M84,\"\")","v":""},{"$f":"IF(DataLog!$C84=\"Log value\",DataLog!N84,\"\")","v":""},{"$f":"IF(DataLog!$C84=\"Log value\",DataLog!O84,\"\")","v":""},{"$f":"IF(DataLog!$C84=\"Log value\",DataLog!P84,\"\")","v":""},{"$f":"IF(DataLog!$C84=\"Log value\",DataLog!Q84,\"\")","v":""},{"$f":"IF(DataLog!$C84=\"Log value\",DataLog!R84,\"\")","v":""},{"$f":"IF(DataLog!$C84=\"Log value\",DataLog!S84,\"\")","v":""},{"$f":"IF(DataLog!$C84=\"Log value\",DataLog!T84,\"\")","v":""},{"$f":"IF(DataLog!$C84=\"Log value\",DataLog!U84,\"\")","v":""},{"$f":"IF(DataLog!$C84=\"Log value\",DataLog!V84,\"\")","v":""},{"$f":"IF(DataLog!$C84=\"Log value\",DataLog!W84,\"\")","v":""},{"$f":"IF(DataLog!$C84=\"Log value\",DataLog!X84,\"\")","v":""},{"$f":"IF(DataLog!$C84=\"Log value\",DataLog!Y84,\"\")","v":""},{"$f":"IF(DataLog!$C84=\"Log value\",DataLog!Z84,\"\")","v":""},{"$f":"IF(DataLog!$C84=\"Log value\",DataLog!AA84,\"\")","v":""},{"$f":"IF(DataLog!$C84=\"Log value\",DataLog!AB84,\"\")","v":""},{"$f":"IF(DataLog!$C84=\"Log value\",DataLog!AC84,\"\")","v":""},{"$f":"IF(DataLog!$C84=\"Log value\",DataLog!AD84,\"\")","v":""},{"$f":"IF(DataLog!$C84=\"Log value\",DataLog!AE84,\"\")","v":""},{"$f":"IF(DataLog!$C84=\"Log value\",DataLog!AF84,\"\")","v":""},{"$f":"IF(DataLog!$C84=\"Log value\",DataLog!AG84,\"\")","v":""},{"$f":"IF(DataLog!$C84=\"Log value\",DataLog!AH84,\"\")","v":""},{"$f":"IF(DataLog!$C84=\"Log value\",DataLog!AI84,\"\")","v":""},{"$f":"IF(DataLog!$C84=\"Log value\",DataLog!AJ84,\"\")","v":""},{"$f":"IF(DataLog!$C84=\"Log value\",DataLog!AK84,\"\")","v":""},{"$f":"IF(DataLog!$C84=\"Log value\",DataLog!AL84,\"\")","v":""},{"$f":"IF(DataLog!$C84=\"Log value\",DataLog!AM84,\"\")","v":""}]
[null,null,"Standard","Standard -  - ",null,null,{"$f":"IF(DataLog!$C85=\"Log value\",DataLog!D85&\"_\"&TEXT(DataLog!B85,\"åååå-mm-dd\"),\"\")","v":""},{"$f":"IF(DataLog!$C85=\"Log value\",DataLog!E85,\"\")","v":""},{"$f":"IF(DataLog!$C85=\"Log value\",DataLog!F85,\"\")","v":""},{"$f":"IF(DataLog!$C85=\"Log value\",DataLog!G85,\"\")","v":""},{"$f":"IF(DataLog!$C85=\"Log value\",DataLog!H85,\"\")","v":""},{"$f":"IF(DataLog!$C85=\"Log value\",DataLog!I85,\"\")","v":""},{"$f":"IF(DataLog!$C85=\"Log value\",DataLog!J85,\"\")","v":""},{"$f":"IF(DataLog!$C85=\"Log value\",DataLog!K85,\"\")","v":""},{"$f":"IF(DataLog!$C85=\"Log value\",DataLog!L85,\"\")","v":""},{"$f":"IF(DataLog!$C85=\"Log value\",DataLog!M85,\"\")","v":""},{"$f":"IF(DataLog!$C85=\"Log value\",DataLog!N85,\"\")","v":""},{"$f":"IF(DataLog!$C85=\"Log value\",DataLog!O85,\"\")","v":""},{"$f":"IF(DataLog!$C85=\"Log value\",DataLog!P85,\"\")","v":""},{"$f":"IF(DataLog!$C85=\"Log value\",DataLog!Q85,\"\")","v":""},{"$f":"IF(DataLog!$C85=\"Log value\",DataLog!R85,\"\")","v":""},{"$f":"IF(DataLog!$C85=\"Log value\",DataLog!S85,\"\")","v":""},{"$f":"IF(DataLog!$C85=\"Log value\",DataLog!T85,\"\")","v":""},{"$f":"IF(DataLog!$C85=\"Log value\",DataLog!U85,\"\")","v":""},{"$f":"IF(DataLog!$C85=\"Log value\",DataLog!V85,\"\")","v":""},{"$f":"IF(DataLog!$C85=\"Log value\",DataLog!W85,\"\")","v":""},{"$f":"IF(DataLog!$C85=\"Log value\",DataLog!X85,\"\")","v":""},{"$f":"IF(DataLog!$C85=\"Log value\",DataLog!Y85,\"\")","v":""},{"$f":"IF(DataLog!$C85=\"Log value\",DataLog!Z85,\"\")","v":""},{"$f":"IF(DataLog!$C85=\"Log value\",DataLog!AA85,\"\")","v":""},{"$f":"IF(DataLog!$C85=\"Log value\",DataLog!AB85,\"\")","v":""},{"$f":"IF(DataLog!$C85=\"Log value\",DataLog!AC85,\"\")","v":""},{"$f":"IF(DataLog!$C85=\"Log value\",DataLog!AD85,\"\")","v":""},{"$f":"IF(DataLog!$C85=\"Log value\",DataLog!AE85,\"\")","v":""},{"$f":"IF(DataLog!$C85=\"Log value\",DataLog!AF85,\"\")","v":""},{"$f":"IF(DataLog!$C85=\"Log value\",DataLog!AG85,\"\")","v":""},{"$f":"IF(DataLog!$C85=\"Log value\",DataLog!AH85,\"\")","v":""},{"$f":"IF(DataLog!$C85=\"Log value\",DataLog!AI85,\"\")","v":""},{"$f":"IF(DataLog!$C85=\"Log value\",DataLog!AJ85,\"\")","v":""},{"$f":"IF(DataLog!$C85=\"Log value\",DataLog!AK85,\"\")","v":""},{"$f":"IF(DataLog!$C85=\"Log value\",DataLog!AL85,\"\")","v":""},{"$f":"IF(DataLog!$C85=\"Log value\",DataLog!AM85,\"\")","v":""}]
[null,null,"Standard","Standard -  - ",null,null,{"$f":"IF(DataLog!$C86=\"Log value\",DataLog!D86&\"_\"&TEXT(DataLog!B86,\"åååå-mm-dd\"),\"\")","v":""},{"$f":"IF(DataLog!$C86=\"Log value\",DataLog!E86,\"\")","v":""},{"$f":"IF(DataLog!$C86=\"Log value\",DataLog!F86,\"\")","v":""},{"$f":"IF(DataLog!$C86=\"Log value\",DataLog!G86,\"\")","v":""},{"$f":"IF(DataLog!$C86=\"Log value\",DataLog!H86,\"\")","v":""},{"$f":"IF(DataLog!$C86=\"Log value\",DataLog!I86,\"\")","v":""},{"$f":"IF(DataLog!$C86=\"Log value\",DataLog!J86,\"\")","v":""},{"$f":"IF(DataLog!$C86=\"Log value\",DataLog!K86,\"\")","v":""},{"$f":"IF(DataLog!$C86=\"Log value\",DataLog!L86,\"\")","v":""},{"$f":"IF(DataLog!$C86=\"Log value\",DataLog!M86,\"\")","v":""},{"$f":"IF(DataLog!$C86=\"Log value\",DataLog!N86,\"\")","v":""},{"$f":"IF(DataLog!$C86=\"Log value\",DataLog!O86,\"\")","v":""},{"$f":"IF(DataLog!$C86=\"Log value\",DataLog!P86,\"\")","v":""},{"$f":"IF(DataLog!$C86=\"Log value\",DataLog!Q86,\"\")","v":""},{"$f":"IF(DataLog!$C86=\"Log value\",DataLog!R86,\"\")","v":""},{"$f":"IF(DataLog!$C86=\"Log value\",DataLog!S86,\"\")","v":""},{"$f":"IF(DataLog!$C86=\"Log value\",DataLog!T86,\"\")","v":""},{"$f":"IF(DataLog!$C86=\"Log value\",DataLog!U86,\"\")","v":""},{"$f":"IF(DataLog!$C86=\"Log value\",DataLog!V86,\"\")","v":""},{"$f":"IF(DataLog!$C86=\"Log value\",DataLog!W86,\"\")","v":""},{"$f":"IF(DataLog!$C86=\"Log value\",DataLog!X86,\"\")","v":""},{"$f":"IF(DataLog!$C86=\"Log value\",DataLog!Y86,\"\")","v":""},{"$f":"IF(DataLog!$C86=\"Log value\",DataLog!Z86,\"\")","v":""},{"$f":"IF(DataLog!$C86=\"Log value\",DataLog!AA86,\"\")","v":""},{"$f":"IF(DataLog!$C86=\"Log value\",DataLog!AB86,\"\")","v":""},{"$f":"IF(DataLog!$C86=\"Log value\",DataLog!AC86,\"\")","v":""},{"$f":"IF(DataLog!$C86=\"Log value\",DataLog!AD86,\"\")","v":""},{"$f":"IF(DataLog!$C86=\"Log value\",DataLog!AE86,\"\")","v":""},{"$f":"IF(DataLog!$C86=\"Log value\",DataLog!AF86,\"\")","v":""},{"$f":"IF(DataLog!$C86=\"Log value\",DataLog!AG86,\"\")","v":""},{"$f":"IF(DataLog!$C86=\"Log value\",DataLog!AH86,\"\")","v":""},{"$f":"IF(DataLog!$C86=\"Log value\",DataLog!AI86,\"\")","v":""},{"$f":"IF(DataLog!$C86=\"Log value\",DataLog!AJ86,\"\")","v":""},{"$f":"IF(DataLog!$C86=\"Log value\",DataLog!AK86,\"\")","v":""},{"$f":"IF(DataLog!$C86=\"Log value\",DataLog!AL86,\"\")","v":""},{"$f":"IF(DataLog!$C86=\"Log value\",DataLog!AM86,\"\")","v":""}]
[null,null,"Standard","Standard -  - ",null,null,{"$f":"IF(DataLog!$C87=\"Log value\",DataLog!D87&\"_\"&TEXT(DataLog!B87,\"åååå-mm-dd\"),\"\")","v":""},{"$f":"IF(DataLog!$C87=\"Log value\",DataLog!E87,\"\")","v":""},{"$f":"IF(DataLog!$C87=\"Log value\",DataLog!F87,\"\")","v":""},{"$f":"IF(DataLog!$C87=\"Log value\",DataLog!G87,\"\")","v":""},{"$f":"IF(DataLog!$C87=\"Log value\",DataLog!H87,\"\")","v":""},{"$f":"IF(DataLog!$C87=\"Log value\",DataLog!I87,\"\")","v":""},{"$f":"IF(DataLog!$C87=\"Log value\",DataLog!J87,\"\")","v":""},{"$f":"IF(DataLog!$C87=\"Log value\",DataLog!K87,\"\")","v":""},{"$f":"IF(DataLog!$C87=\"Log value\",DataLog!L87,\"\")","v":""},{"$f":"IF(DataLog!$C87=\"Log value\",DataLog!M87,\"\")","v":""},{"$f":"IF(DataLog!$C87=\"Log value\",DataLog!N87,\"\")","v":""},{"$f":"IF(DataLog!$C87=\"Log value\",DataLog!O87,\"\")","v":""},{"$f":"IF(DataLog!$C87=\"Log value\",DataLog!P87,\"\")","v":""},{"$f":"IF(DataLog!$C87=\"Log value\",DataLog!Q87,\"\")","v":""},{"$f":"IF(DataLog!$C87=\"Log value\",DataLog!R87,\"\")","v":""},{"$f":"IF(DataLog!$C87=\"Log value\",DataLog!S87,\"\")","v":""},{"$f":"IF(DataLog!$C87=\"Log value\",DataLog!T87,\"\")","v":""},{"$f":"IF(DataLog!$C87=\"Log value\",DataLog!U87,\"\")","v":""},{"$f":"IF(DataLog!$C87=\"Log value\",DataLog!V87,\"\")","v":""},{"$f":"IF(DataLog!$C87=\"Log value\",DataLog!W87,\"\")","v":""},{"$f":"IF(DataLog!$C87=\"Log value\",DataLog!X87,\"\")","v":""},{"$f":"IF(DataLog!$C87=\"Log value\",DataLog!Y87,\"\")","v":""},{"$f":"IF(DataLog!$C87=\"Log value\",DataLog!Z87,\"\")","v":""},{"$f":"IF(DataLog!$C87=\"Log value\",DataLog!AA87,\"\")","v":""},{"$f":"IF(DataLog!$C87=\"Log value\",DataLog!AB87,\"\")","v":""},{"$f":"IF(DataLog!$C87=\"Log value\",DataLog!AC87,\"\")","v":""},{"$f":"IF(DataLog!$C87=\"Log value\",DataLog!AD87,\"\")","v":""},{"$f":"IF(DataLog!$C87=\"Log value\",DataLog!AE87,\"\")","v":""},{"$f":"IF(DataLog!$C87=\"Log value\",DataLog!AF87,\"\")","v":""},{"$f":"IF(DataLog!$C87=\"Log value\",DataLog!AG87,\"\")","v":""},{"$f":"IF(DataLog!$C87=\"Log value\",DataLog!AH87,\"\")","v":""},{"$f":"IF(DataLog!$C87=\"Log value\",DataLog!AI87,\"\")","v":""},{"$f":"IF(DataLog!$C87=\"Log value\",DataLog!AJ87,\"\")","v":""},{"$f":"IF(DataLog!$C87=\"Log value\",DataLog!AK87,\"\")","v":""},{"$f":"IF(DataLog!$C87=\"Log value\",DataLog!AL87,\"\")","v":""},{"$f":"IF(DataLog!$C87=\"Log value\",DataLog!AM87,\"\")","v":""}]
[null,null,"Standard","Standard -  - ",null,null,{"$f":"IF(DataLog!$C88=\"Log value\",DataLog!D88&\"_\"&TEXT(DataLog!B88,\"åååå-mm-dd\"),\"\")","v":""},{"$f":"IF(DataLog!$C88=\"Log value\",DataLog!E88,\"\")","v":""},{"$f":"IF(DataLog!$C88=\"Log value\",DataLog!F88,\"\")","v":""},{"$f":"IF(DataLog!$C88=\"Log value\",DataLog!G88,\"\")","v":""},{"$f":"IF(DataLog!$C88=\"Log value\",DataLog!H88,\"\")","v":""},{"$f":"IF(DataLog!$C88=\"Log value\",DataLog!I88,\"\")","v":""},{"$f":"IF(DataLog!$C88=\"Log value\",DataLog!J88,\"\")","v":""},{"$f":"IF(DataLog!$C88=\"Log value\",DataLog!K88,\"\")","v":""},{"$f":"IF(DataLog!$C88=\"Log value\",DataLog!L88,\"\")","v":""},{"$f":"IF(DataLog!$C88=\"Log value\",DataLog!M88,\"\")","v":""},{"$f":"IF(DataLog!$C88=\"Log value\",DataLog!N88,\"\")","v":""},{"$f":"IF(DataLog!$C88=\"Log value\",DataLog!O88,\"\")","v":""},{"$f":"IF(DataLog!$C88=\"Log value\",DataLog!P88,\"\")","v":""},{"$f":"IF(DataLog!$C88=\"Log value\",DataLog!Q88,\"\")","v":""},{"$f":"IF(DataLog!$C88=\"Log value\",DataLog!R88,\"\")","v":""},{"$f":"IF(DataLog!$C88=\"Log value\",DataLog!S88,\"\")","v":""},{"$f":"IF(DataLog!$C88=\"Log value\",DataLog!T88,\"\")","v":""},{"$f":"IF(DataLog!$C88=\"Log value\",DataLog!U88,\"\")","v":""},{"$f":"IF(DataLog!$C88=\"Log value\",DataLog!V88,\"\")","v":""},{"$f":"IF(DataLog!$C88=\"Log value\",DataLog!W88,\"\")","v":""},{"$f":"IF(DataLog!$C88=\"Log value\",DataLog!X88,\"\")","v":""},{"$f":"IF(DataLog!$C88=\"Log value\",DataLog!Y88,\"\")","v":""},{"$f":"IF(DataLog!$C88=\"Log value\",DataLog!Z88,\"\")","v":""},{"$f":"IF(DataLog!$C88=\"Log value\",DataLog!AA88,\"\")","v":""},{"$f":"IF(DataLog!$C88=\"Log value\",DataLog!AB88,\"\")","v":""},{"$f":"IF(DataLog!$C88=\"Log value\",DataLog!AC88,\"\")","v":""},{"$f":"IF(DataLog!$C88=\"Log value\",DataLog!AD88,\"\")","v":""},{"$f":"IF(DataLog!$C88=\"Log value\",DataLog!AE88,\"\")","v":""},{"$f":"IF(DataLog!$C88=\"Log value\",DataLog!AF88,\"\")","v":""},{"$f":"IF(DataLog!$C88=\"Log value\",DataLog!AG88,\"\")","v":""},{"$f":"IF(DataLog!$C88=\"Log value\",DataLog!AH88,\"\")","v":""},{"$f":"IF(DataLog!$C88=\"Log value\",DataLog!AI88,\"\")","v":""},{"$f":"IF(DataLog!$C88=\"Log value\",DataLog!AJ88,\"\")","v":""},{"$f":"IF(DataLog!$C88=\"Log value\",DataLog!AK88,\"\")","v":""},{"$f":"IF(DataLog!$C88=\"Log value\",DataLog!AL88,\"\")","v":""},{"$f":"IF(DataLog!$C88=\"Log value\",DataLog!AM88,\"\")","v":""}]
[null,null,"Standard","Standard -  - ",null,null,{"$f":"IF(DataLog!$C89=\"Log value\",DataLog!D89&\"_\"&TEXT(DataLog!B89,\"åååå-mm-dd\"),\"\")","v":""},{"$f":"IF(DataLog!$C89=\"Log value\",DataLog!E89,\"\")","v":""},{"$f":"IF(DataLog!$C89=\"Log value\",DataLog!F89,\"\")","v":""},{"$f":"IF(DataLog!$C89=\"Log value\",DataLog!G89,\"\")","v":""},{"$f":"IF(DataLog!$C89=\"Log value\",DataLog!H89,\"\")","v":""},{"$f":"IF(DataLog!$C89=\"Log value\",DataLog!I89,\"\")","v":""},{"$f":"IF(DataLog!$C89=\"Log value\",DataLog!J89,\"\")","v":""},{"$f":"IF(DataLog!$C89=\"Log value\",DataLog!K89,\"\")","v":""},{"$f":"IF(DataLog!$C89=\"Log value\",DataLog!L89,\"\")","v":""},{"$f":"IF(DataLog!$C89=\"Log value\",DataLog!M89,\"\")","v":""},{"$f":"IF(DataLog!$C89=\"Log value\",DataLog!N89,\"\")","v":""},{"$f":"IF(DataLog!$C89=\"Log value\",DataLog!O89,\"\")","v":""},{"$f":"IF(DataLog!$C89=\"Log value\",DataLog!P89,\"\")","v":""},{"$f":"IF(DataLog!$C89=\"Log value\",DataLog!Q89,\"\")","v":""},{"$f":"IF(DataLog!$C89=\"Log value\",DataLog!R89,\"\")","v":""},{"$f":"IF(DataLog!$C89=\"Log value\",DataLog!S89,\"\")","v":""},{"$f":"IF(DataLog!$C89=\"Log value\",DataLog!T89,\"\")","v":""},{"$f":"IF(DataLog!$C89=\"Log value\",DataLog!U89,\"\")","v":""},{"$f":"IF(DataLog!$C89=\"Log value\",DataLog!V89,\"\")","v":""},{"$f":"IF(DataLog!$C89=\"Log value\",DataLog!W89,\"\")","v":""},{"$f":"IF(DataLog!$C89=\"Log value\",DataLog!X89,\"\")","v":""},{"$f":"IF(DataLog!$C89=\"Log value\",DataLog!Y89,\"\")","v":""},{"$f":"IF(DataLog!$C89=\"Log value\",DataLog!Z89,\"\")","v":""},{"$f":"IF(DataLog!$C89=\"Log value\",DataLog!AA89,\"\")","v":""},{"$f":"IF(DataLog!$C89=\"Log value\",DataLog!AB89,\"\")","v":""},{"$f":"IF(DataLog!$C89=\"Log value\",DataLog!AC89,\"\")","v":""},{"$f":"IF(DataLog!$C89=\"Log value\",DataLog!AD89,\"\")","v":""},{"$f":"IF(DataLog!$C89=\"Log value\",DataLog!AE89,\"\")","v":""},{"$f":"IF(DataLog!$C89=\"Log value\",DataLog!AF89,\"\")","v":""},{"$f":"IF(DataLog!$C89=\"Log value\",DataLog!AG89,\"\")","v":""},{"$f":"IF(DataLog!$C89=\"Log value\",DataLog!AH89,\"\")","v":""},{"$f":"IF(DataLog!$C89=\"Log value\",DataLog!AI89,\"\")","v":""},{"$f":"IF(DataLog!$C89=\"Log value\",DataLog!AJ89,\"\")","v":""},{"$f":"IF(DataLog!$C89=\"Log value\",DataLog!AK89,\"\")","v":""},{"$f":"IF(DataLog!$C89=\"Log value\",DataLog!AL89,\"\")","v":""},{"$f":"IF(DataLog!$C89=\"Log value\",DataLog!AM89,\"\")","v":""}]
[null,null,"Standard","Standard -  - ",null,null,{"$f":"IF(DataLog!$C90=\"Log value\",DataLog!D90&\"_\"&TEXT(DataLog!B90,\"åååå-mm-dd\"),\"\")","v":""},{"$f":"IF(DataLog!$C90=\"Log value\",DataLog!E90,\"\")","v":""},{"$f":"IF(DataLog!$C90=\"Log value\",DataLog!F90,\"\")","v":""},{"$f":"IF(DataLog!$C90=\"Log value\",DataLog!G90,\"\")","v":""},{"$f":"IF(DataLog!$C90=\"Log value\",DataLog!H90,\"\")","v":""},{"$f":"IF(DataLog!$C90=\"Log value\",DataLog!I90,\"\")","v":""},{"$f":"IF(DataLog!$C90=\"Log value\",DataLog!J90,\"\")","v":""},{"$f":"IF(DataLog!$C90=\"Log value\",DataLog!K90,\"\")","v":""},{"$f":"IF(DataLog!$C90=\"Log value\",DataLog!L90,\"\")","v":""},{"$f":"IF(DataLog!$C90=\"Log value\",DataLog!M90,\"\")","v":""},{"$f":"IF(DataLog!$C90=\"Log value\",DataLog!N90,\"\")","v":""},{"$f":"IF(DataLog!$C90=\"Log value\",DataLog!O90,\"\")","v":""},{"$f":"IF(DataLog!$C90=\"Log value\",DataLog!P90,\"\")","v":""},{"$f":"IF(DataLog!$C90=\"Log value\",DataLog!Q90,\"\")","v":""},{"$f":"IF(DataLog!$C90=\"Log value\",DataLog!R90,\"\")","v":""},{"$f":"IF(DataLog!$C90=\"Log value\",DataLog!S90,\"\")","v":""},{"$f":"IF(DataLog!$C90=\"Log value\",DataLog!T90,\"\")","v":""},{"$f":"IF(DataLog!$C90=\"Log value\",DataLog!U90,\"\")","v":""},{"$f":"IF(DataLog!$C90=\"Log value\",DataLog!V90,\"\")","v":""},{"$f":"IF(DataLog!$C90=\"Log value\",DataLog!W90,\"\")","v":""},{"$f":"IF(DataLog!$C90=\"Log value\",DataLog!X90,\"\")","v":""},{"$f":"IF(DataLog!$C90=\"Log value\",DataLog!Y90,\"\")","v":""},{"$f":"IF(DataLog!$C90=\"Log value\",DataLog!Z90,\"\")","v":""},{"$f":"IF(DataLog!$C90=\"Log value\",DataLog!AA90,\"\")","v":""},{"$f":"IF(DataLog!$C90=\"Log value\",DataLog!AB90,\"\")","v":""},{"$f":"IF(DataLog!$C90=\"Log value\",DataLog!AC90,\"\")","v":""},{"$f":"IF(DataLog!$C90=\"Log value\",DataLog!AD90,\"\")","v":""},{"$f":"IF(DataLog!$C90=\"Log value\",DataLog!AE90,\"\")","v":""},{"$f":"IF(DataLog!$C90=\"Log value\",DataLog!AF90,\"\")","v":""},{"$f":"IF(DataLog!$C90=\"Log value\",DataLog!AG90,\"\")","v":""},{"$f":"IF(DataLog!$C90=\"Log value\",DataLog!AH90,\"\")","v":""},{"$f":"IF(DataLog!$C90=\"Log value\",DataLog!AI90,\"\")","v":""},{"$f":"IF(DataLog!$C90=\"Log value\",DataLog!AJ90,\"\")","v":""},{"$f":"IF(DataLog!$C90=\"Log value\",DataLog!AK90,\"\")","v":""},{"$f":"IF(DataLog!$C90=\"Log value\",DataLog!AL90,\"\")","v":""},{"$f":"IF(DataLog!$C90=\"Log value\",DataLog!AM90,\"\")","v":""}]
[null,null,"Standard","Standard -  - ",null,null,{"$f":"IF(DataLog!$C91=\"Log value\",DataLog!D91&\"_\"&TEXT(DataLog!B91,\"åååå-mm-dd\"),\"\")","v":""},{"$f":"IF(DataLog!$C91=\"Log value\",DataLog!E91,\"\")","v":""},{"$f":"IF(DataLog!$C91=\"Log value\",DataLog!F91,\"\")","v":""},{"$f":"IF(DataLog!$C91=\"Log value\",DataLog!G91,\"\")","v":""},{"$f":"IF(DataLog!$C91=\"Log value\",DataLog!H91,\"\")","v":""},{"$f":"IF(DataLog!$C91=\"Log value\",DataLog!I91,\"\")","v":""},{"$f":"IF(DataLog!$C91=\"Log value\",DataLog!J91,\"\")","v":""},{"$f":"IF(DataLog!$C91=\"Log value\",DataLog!K91,\"\")","v":""},{"$f":"IF(DataLog!$C91=\"Log value\",DataLog!L91,\"\")","v":""},{"$f":"IF(DataLog!$C91=\"Log value\",DataLog!M91,\"\")","v":""},{"$f":"IF(DataLog!$C91=\"Log value\",DataLog!N91,\"\")","v":""},{"$f":"IF(DataLog!$C91=\"Log value\",DataLog!O91,\"\")","v":""},{"$f":"IF(DataLog!$C91=\"Log value\",DataLog!P91,\"\")","v":""},{"$f":"IF(DataLog!$C91=\"Log value\",DataLog!Q91,\"\")","v":""},{"$f":"IF(DataLog!$C91=\"Log value\",DataLog!R91,\"\")","v":""},{"$f":"IF(DataLog!$C91=\"Log value\",DataLog!S91,\"\")","v":""},{"$f":"IF(DataLog!$C91=\"Log value\",DataLog!T91,\"\")","v":""},{"$f":"IF(DataLog!$C91=\"Log value\",DataLog!U91,\"\")","v":""},{"$f":"IF(DataLog!$C91=\"Log value\",DataLog!V91,\"\")","v":""},{"$f":"IF(DataLog!$C91=\"Log value\",DataLog!W91,\"\")","v":""},{"$f":"IF(DataLog!$C91=\"Log value\",DataLog!X91,\"\")","v":""},{"$f":"IF(DataLog!$C91=\"Log value\",DataLog!Y91,\"\")","v":""},{"$f":"IF(DataLog!$C91=\"Log value\",DataLog!Z91,\"\")","v":""},{"$f":"IF(DataLog!$C91=\"Log value\",DataLog!AA91,\"\")","v":""},{"$f":"IF(DataLog!$C91=\"Log value\",DataLog!AB91,\"\")","v":""},{"$f":"IF(DataLog!$C91=\"Log value\",DataLog!AC91,\"\")","v":""},{"$f":"IF(DataLog!$C91=\"Log value\",DataLog!AD91,\"\")","v":""},{"$f":"IF(DataLog!$C91=\"Log value\",DataLog!AE91,\"\")","v":""},{"$f":"IF(DataLog!$C91=\"Log value\",DataLog!AF91,\"\")","v":""},{"$f":"IF(DataLog!$C91=\"Log value\",DataLog!AG91,\"\")","v":""},{"$f":"IF(DataLog!$C91=\"Log value\",DataLog!AH91,\"\")","v":""},{"$f":"IF(DataLog!$C91=\"Log value\",DataLog!AI91,\"\")","v":""},{"$f":"IF(DataLog!$C91=\"Log value\",DataLog!AJ91,\"\")","v":""},{"$f":"IF(DataLog!$C91=\"Log value\",DataLog!AK91,\"\")","v":""},{"$f":"IF(DataLog!$C91=\"Log value\",DataLog!AL91,\"\")","v":""},{"$f":"IF(DataLog!$C91=\"Log value\",DataLog!AM91,\"\")","v":""}]
[null,null,"Standard","Standard -  - ",null,null,{"$f":"IF(DataLog!$C92=\"Log value\",DataLog!D92&\"_\"&TEXT(DataLog!B92,\"åååå-mm-dd\"),\"\")","v":""},{"$f":"IF(DataLog!$C92=\"Log value\",DataLog!E92,\"\")","v":""},{"$f":"IF(DataLog!$C92=\"Log value\",DataLog!F92,\"\")","v":""},{"$f":"IF(DataLog!$C92=\"Log value\",DataLog!G92,\"\")","v":""},{"$f":"IF(DataLog!$C92=\"Log value\",DataLog!H92,\"\")","v":""},{"$f":"IF(DataLog!$C92=\"Log value\",DataLog!I92,\"\")","v":""},{"$f":"IF(DataLog!$C92=\"Log value\",DataLog!J92,\"\")","v":""},{"$f":"IF(DataLog!$C92=\"Log value\",DataLog!K92,\"\")","v":""},{"$f":"IF(DataLog!$C92=\"Log value\",DataLog!L92,\"\")","v":""},{"$f":"IF(DataLog!$C92=\"Log value\",DataLog!M92,\"\")","v":""},{"$f":"IF(DataLog!$C92=\"Log value\",DataLog!N92,\"\")","v":""},{"$f":"IF(DataLog!$C92=\"Log value\",DataLog!O92,\"\")","v":""},{"$f":"IF(DataLog!$C92=\"Log value\",DataLog!P92,\"\")","v":""},{"$f":"IF(DataLog!$C92=\"Log value\",DataLog!Q92,\"\")","v":""},{"$f":"IF(DataLog!$C92=\"Log value\",DataLog!R92,\"\")","v":""},{"$f":"IF(DataLog!$C92=\"Log value\",DataLog!S92,\"\")","v":""},{"$f":"IF(DataLog!$C92=\"Log value\",DataLog!T92,\"\")","v":""},{"$f":"IF(DataLog!$C92=\"Log value\",DataLog!U92,\"\")","v":""},{"$f":"IF(DataLog!$C92=\"Log value\",DataLog!V92,\"\")","v":""},{"$f":"IF(DataLog!$C92=\"Log value\",DataLog!W92,\"\")","v":""},{"$f":"IF(DataLog!$C92=\"Log value\",DataLog!X92,\"\")","v":""},{"$f":"IF(DataLog!$C92=\"Log value\",DataLog!Y92,\"\")","v":""},{"$f":"IF(DataLog!$C92=\"Log value\",DataLog!Z92,\"\")","v":""},{"$f":"IF(DataLog!$C92=\"Log value\",DataLog!AA92,\"\")","v":""},{"$f":"IF(DataLog!$C92=\"Log value\",DataLog!AB92,\"\")","v":""},{"$f":"IF(DataLog!$C92=\"Log value\",DataLog!AC92,\"\")","v":""},{"$f":"IF(DataLog!$C92=\"Log value\",DataLog!AD92,\"\")","v":""},{"$f":"IF(DataLog!$C92=\"Log value\",DataLog!AE92,\"\")","v":""},{"$f":"IF(DataLog!$C92=\"Log value\",DataLog!AF92,\"\")","v":""},{"$f":"IF(DataLog!$C92=\"Log value\",DataLog!AG92,\"\")","v":""},{"$f":"IF(DataLog!$C92=\"Log value\",DataLog!AH92,\"\")","v":""},{"$f":"IF(DataLog!$C92=\"Log value\",DataLog!AI92,\"\")","v":""},{"$f":"IF(DataLog!$C92=\"Log value\",DataLog!AJ92,\"\")","v":""},{"$f":"IF(DataLog!$C92=\"Log value\",DataLog!AK92,\"\")","v":""},{"$f":"IF(DataLog!$C92=\"Log value\",DataLog!AL92,\"\")","v":""},{"$f":"IF(DataLog!$C92=\"Log value\",DataLog!AM92,\"\")","v":""}]
[null,null,"Standard","Standard -  - ",null,null,{"$f":"IF(DataLog!$C93=\"Log value\",DataLog!D93&\"_\"&TEXT(DataLog!B93,\"åååå-mm-dd\"),\"\")","v":""},{"$f":"IF(DataLog!$C93=\"Log value\",DataLog!E93,\"\")","v":""},{"$f":"IF(DataLog!$C93=\"Log value\",DataLog!F93,\"\")","v":""},{"$f":"IF(DataLog!$C93=\"Log value\",DataLog!G93,\"\")","v":""},{"$f":"IF(DataLog!$C93=\"Log value\",DataLog!H93,\"\")","v":""},{"$f":"IF(DataLog!$C93=\"Log value\",DataLog!I93,\"\")","v":""},{"$f":"IF(DataLog!$C93=\"Log value\",DataLog!J93,\"\")","v":""},{"$f":"IF(DataLog!$C93=\"Log value\",DataLog!K93,\"\")","v":""},{"$f":"IF(DataLog!$C93=\"Log value\",DataLog!L93,\"\")","v":""},{"$f":"IF(DataLog!$C93=\"Log value\",DataLog!M93,\"\")","v":""},{"$f":"IF(DataLog!$C93=\"Log value\",DataLog!N93,\"\")","v":""},{"$f":"IF(DataLog!$C93=\"Log value\",DataLog!O93,\"\")","v":""},{"$f":"IF(DataLog!$C93=\"Log value\",DataLog!P93,\"\")","v":""},{"$f":"IF(DataLog!$C93=\"Log value\",DataLog!Q93,\"\")","v":""},{"$f":"IF(DataLog!$C93=\"Log value\",DataLog!R93,\"\")","v":""},{"$f":"IF(DataLog!$C93=\"Log value\",DataLog!S93,\"\")","v":""},{"$f":"IF(DataLog!$C93=\"Log value\",DataLog!T93,\"\")","v":""},{"$f":"IF(DataLog!$C93=\"Log value\",DataLog!U93,\"\")","v":""},{"$f":"IF(DataLog!$C93=\"Log value\",DataLog!V93,\"\")","v":""},{"$f":"IF(DataLog!$C93=\"Log value\",DataLog!W93,\"\")","v":""},{"$f":"IF(DataLog!$C93=\"Log value\",DataLog!X93,\"\")","v":""},{"$f":"IF(DataLog!$C93=\"Log value\",DataLog!Y93,\"\")","v":""},{"$f":"IF(DataLog!$C93=\"Log value\",DataLog!Z93,\"\")","v":""},{"$f":"IF(DataLog!$C93=\"Log value\",DataLog!AA93,\"\")","v":""},{"$f":"IF(DataLog!$C93=\"Log value\",DataLog!AB93,\"\")","v":""},{"$f":"IF(DataLog!$C93=\"Log value\",DataLog!AC93,\"\")","v":""},{"$f":"IF(DataLog!$C93=\"Log value\",DataLog!AD93,\"\")","v":""},{"$f":"IF(DataLog!$C93=\"Log value\",DataLog!AE93,\"\")","v":""},{"$f":"IF(DataLog!$C93=\"Log value\",DataLog!AF93,\"\")","v":""},{"$f":"IF(DataLog!$C93=\"Log value\",DataLog!AG93,\"\")","v":""},{"$f":"IF(DataLog!$C93=\"Log value\",DataLog!AH93,\"\")","v":""},{"$f":"IF(DataLog!$C93=\"Log value\",DataLog!AI93,\"\")","v":""},{"$f":"IF(DataLog!$C93=\"Log value\",DataLog!AJ93,\"\")","v":""},{"$f":"IF(DataLog!$C93=\"Log value\",DataLog!AK93,\"\")","v":""},{"$f":"IF(DataLog!$C93=\"Log value\",DataLog!AL93,\"\")","v":""},{"$f":"IF(DataLog!$C93=\"Log value\",DataLog!AM93,\"\")","v":""}]
[null,null,{"$f":"$H$21","v":"Standard"},{"$f":"C128&\" - \"&G128&\" - \"&I128","v":"Standard -  - "},null,null,{"$f":"IF(DataLog!$C94=\"Log value\",DataLog!D94&\"_\"&TEXT(DataLog!B94,\"åååå-mm-dd\"),\"\")","v":""},{"$f":"IF(DataLog!$C94=\"Log value\",DataLog!E94,\"\")","v":""},{"$f":"IF(DataLog!$C94=\"Log value\",DataLog!F94,\"\")","v":""},{"$f":"IF(DataLog!$C94=\"Log value\",DataLog!G94,\"\")","v":""},{"$f":"IF(DataLog!$C94=\"Log value\",DataLog!H94,\"\")","v":""},{"$f":"IF(DataLog!$C94=\"Log value\",DataLog!I94,\"\")","v":""},{"$f":"IF(DataLog!$C94=\"Log value\",DataLog!J94,\"\")","v":""},{"$f":"IF(DataLog!$C94=\"Log value\",DataLog!K94,\"\")","v":""},{"$f":"IF(DataLog!$C94=\"Log value\",DataLog!L94,\"\")","v":""},{"$f":"IF(DataLog!$C94=\"Log value\",DataLog!M94,\"\")","v":""},{"$f":"IF(DataLog!$C94=\"Log value\",DataLog!N94,\"\")","v":""},{"$f":"IF(DataLog!$C94=\"Log value\",DataLog!O94,\"\")","v":""},{"$f":"IF(DataLog!$C94=\"Log value\",DataLog!P94,\"\")","v":""},{"$f":"IF(DataLog!$C94=\"Log value\",DataLog!Q94,\"\")","v":""},{"$f":"IF(DataLog!$C94=\"Log value\",DataLog!R94,\"\")","v":""},{"$f":"IF(DataLog!$C94=\"Log value\",DataLog!S94,\"\")","v":""},{"$f":"IF(DataLog!$C94=\"Log value\",DataLog!T94,\"\")","v":""},{"$f":"IF(DataLog!$C94=\"Log value\",DataLog!U94,\"\")","v":""},{"$f":"IF(DataLog!$C94=\"Log value\",DataLog!V94,\"\")","v":""},{"$f":"IF(DataLog!$C94=\"Log value\",DataLog!W94,\"\")","v":""},{"$f":"IF(DataLog!$C94=\"Log value\",DataLog!X94,\"\")","v":""},{"$f":"IF(DataLog!$C94=\"Log value\",DataLog!Y94,\"\")","v":""},{"$f":"IF(DataLog!$C94=\"Log value\",DataLog!Z94,\"\")","v":""},{"$f":"IF(DataLog!$C94=\"Log value\",DataLog!AA94,\"\")","v":""},{"$f":"IF(DataLog!$C94=\"Log value\",DataLog!AB94,\"\")","v":""},{"$f":"IF(DataLog!$C94=\"Log value\",DataLog!AC94,\"\")","v":""},{"$f":"IF(DataLog!$C94=\"Log value\",DataLog!AD94,\"\")","v":""},{"$f":"IF(DataLog!$C94=\"Log value\",DataLog!AE94,\"\")","v":""},{"$f":"IF(DataLog!$C94=\"Log value\",DataLog!AF94,\"\")","v":""},{"$f":"IF(DataLog!$C94=\"Log value\",DataLog!AG94,\"\")","v":""},{"$f":"IF(DataLog!$C94=\"Log value\",DataLog!AH94,\"\")","v":""},{"$f":"IF(DataLog!$C94=\"Log value\",DataLog!AI94,\"\")","v":""},{"$f":"IF(DataLog!$C94=\"Log value\",DataLog!AJ94,\"\")","v":""},{"$f":"IF(DataLog!$C94=\"Log value\",DataLog!AK94,\"\")","v":""},{"$f":"IF(DataLog!$C94=\"Log value\",DataLog!AL94,\"\")","v":""},{"$f":"IF(DataLog!$C94=\"Log value\",DataLog!AM94,\"\")","v":""}]
[null,null,"Standard","Standard -  - ",null,null,{"$f":"IF(DataLog!$C95=\"Log value\",DataLog!D95&\"_\"&TEXT(DataLog!B95,\"åååå-mm-dd\"),\"\")","v":""},{"$f":"IF(DataLog!$C95=\"Log value\",DataLog!E95,\"\")","v":""},{"$f":"IF(DataLog!$C95=\"Log value\",DataLog!F95,\"\")","v":""},{"$f":"IF(DataLog!$C95=\"Log value\",DataLog!G95,\"\")","v":""},{"$f":"IF(DataLog!$C95=\"Log value\",DataLog!H95,\"\")","v":""},{"$f":"IF(DataLog!$C95=\"Log value\",DataLog!I95,\"\")","v":""},{"$f":"IF(DataLog!$C95=\"Log value\",DataLog!J95,\"\")","v":""},{"$f":"IF(DataLog!$C95=\"Log value\",DataLog!K95,\"\")","v":""},{"$f":"IF(DataLog!$C95=\"Log value\",DataLog!L95,\"\")","v":""},{"$f":"IF(DataLog!$C95=\"Log value\",DataLog!M95,\"\")","v":""},{"$f":"IF(DataLog!$C95=\"Log value\",DataLog!N95,\"\")","v":""},{"$f":"IF(DataLog!$C95=\"Log value\",DataLog!O95,\"\")","v":""},{"$f":"IF(DataLog!$C95=\"Log value\",DataLog!P95,\"\")","v":""},{"$f":"IF(DataLog!$C95=\"Log value\",DataLog!Q95,\"\")","v":""},{"$f":"IF(DataLog!$C95=\"Log value\",DataLog!R95,\"\")","v":""},{"$f":"IF(DataLog!$C95=\"Log value\",DataLog!S95,\"\")","v":""},{"$f":"IF(DataLog!$C95=\"Log value\",DataLog!T95,\"\")","v":""},{"$f":"IF(DataLog!$C95=\"Log value\",DataLog!U95,\"\")","v":""},{"$f":"IF(DataLog!$C95=\"Log value\",DataLog!V95,\"\")","v":""},{"$f":"IF(DataLog!$C95=\"Log value\",DataLog!W95,\"\")","v":""},{"$f":"IF(DataLog!$C95=\"Log value\",DataLog!X95,\"\")","v":""},{"$f":"IF(DataLog!$C95=\"Log value\",DataLog!Y95,\"\")","v":""},{"$f":"IF(DataLog!$C95=\"Log value\",DataLog!Z95,\"\")","v":""},{"$f":"IF(DataLog!$C95=\"Log value\",DataLog!AA95,\"\")","v":""},{"$f":"IF(DataLog!$C95=\"Log value\",DataLog!AB95,\"\")","v":""},{"$f":"IF(DataLog!$C95=\"Log value\",DataLog!AC95,\"\")","v":""},{"$f":"IF(DataLog!$C95=\"Log value\",DataLog!AD95,\"\")","v":""},{"$f":"IF(DataLog!$C95=\"Log value\",DataLog!AE95,\"\")","v":""},{"$f":"IF(DataLog!$C95=\"Log value\",DataLog!AF95,\"\")","v":""},{"$f":"IF(DataLog!$C95=\"Log value\",DataLog!AG95,\"\")","v":""},{"$f":"IF(DataLog!$C95=\"Log value\",DataLog!AH95,\"\")","v":""},{"$f":"IF(DataLog!$C95=\"Log value\",DataLog!AI95,\"\")","v":""},{"$f":"IF(DataLog!$C95=\"Log value\",DataLog!AJ95,\"\")","v":""},{"$f":"IF(DataLog!$C95=\"Log value\",DataLog!AK95,\"\")","v":""},{"$f":"IF(DataLog!$C95=\"Log value\",DataLog!AL95,\"\")","v":""},{"$f":"IF(DataLog!$C95=\"Log value\",DataLog!AM95,\"\")","v":""}]
[null,null,"Standard","Standard -  - ",null,null,{"$f":"IF(DataLog!$C96=\"Log value\",DataLog!D96&\"_\"&TEXT(DataLog!B96,\"åååå-mm-dd\"),\"\")","v":""},{"$f":"IF(DataLog!$C96=\"Log value\",DataLog!E96,\"\")","v":""},{"$f":"IF(DataLog!$C96=\"Log value\",DataLog!F96,\"\")","v":""},{"$f":"IF(DataLog!$C96=\"Log value\",DataLog!G96,\"\")","v":""},{"$f":"IF(DataLog!$C96=\"Log value\",DataLog!H96,\"\")","v":""},{"$f":"IF(DataLog!$C96=\"Log value\",DataLog!I96,\"\")","v":""},{"$f":"IF(DataLog!$C96=\"Log value\",DataLog!J96,\"\")","v":""},{"$f":"IF(DataLog!$C96=\"Log value\",DataLog!K96,\"\")","v":""},{"$f":"IF(DataLog!$C96=\"Log value\",DataLog!L96,\"\")","v":""},{"$f":"IF(DataLog!$C96=\"Log value\",DataLog!M96,\"\")","v":""},{"$f":"IF(DataLog!$C96=\"Log value\",DataLog!N96,\"\")","v":""},{"$f":"IF(DataLog!$C96=\"Log value\",DataLog!O96,\"\")","v":""},{"$f":"IF(DataLog!$C96=\"Log value\",DataLog!P96,\"\")","v":""},{"$f":"IF(DataLog!$C96=\"Log value\",DataLog!Q96,\"\")","v":""},{"$f":"IF(DataLog!$C96=\"Log value\",DataLog!R96,\"\")","v":""},{"$f":"IF(DataLog!$C96=\"Log value\",DataLog!S96,\"\")","v":""},{"$f":"IF(DataLog!$C96=\"Log value\",DataLog!T96,\"\")","v":""},{"$f":"IF(DataLog!$C96=\"Log value\",DataLog!U96,\"\")","v":""},{"$f":"IF(DataLog!$C96=\"Log value\",DataLog!V96,\"\")","v":""},{"$f":"IF(DataLog!$C96=\"Log value\",DataLog!W96,\"\")","v":""},{"$f":"IF(DataLog!$C96=\"Log value\",DataLog!X96,\"\")","v":""},{"$f":"IF(DataLog!$C96=\"Log value\",DataLog!Y96,\"\")","v":""},{"$f":"IF(DataLog!$C96=\"Log value\",DataLog!Z96,\"\")","v":""},{"$f":"IF(DataLog!$C96=\"Log value\",DataLog!AA96,\"\")","v":""},{"$f":"IF(DataLog!$C96=\"Log value\",DataLog!AB96,\"\")","v":""},{"$f":"IF(DataLog!$C96=\"Log value\",DataLog!AC96,\"\")","v":""},{"$f":"IF(DataLog!$C96=\"Log value\",DataLog!AD96,\"\")","v":""},{"$f":"IF(DataLog!$C96=\"Log value\",DataLog!AE96,\"\")","v":""},{"$f":"IF(DataLog!$C96=\"Log value\",DataLog!AF96,\"\")","v":""},{"$f":"IF(DataLog!$C96=\"Log value\",DataLog!AG96,\"\")","v":""},{"$f":"IF(DataLog!$C96=\"Log value\",DataLog!AH96,\"\")","v":""},{"$f":"IF(DataLog!$C96=\"Log value\",DataLog!AI96,\"\")","v":""},{"$f":"IF(DataLog!$C96=\"Log value\",DataLog!AJ96,\"\")","v":""},{"$f":"IF(DataLog!$C96=\"Log value\",DataLog!AK96,\"\")","v":""},{"$f":"IF(DataLog!$C96=\"Log value\",DataLog!AL96,\"\")","v":""},{"$f":"IF(DataLog!$C96=\"Log value\",DataLog!AM96,\"\")","v":""}]
[null,null,"Standard","Standard -  - ",null,null,{"$f":"IF(DataLog!$C97=\"Log value\",DataLog!D97&\"_\"&TEXT(DataLog!B97,\"åååå-mm-dd\"),\"\")","v":""},{"$f":"IF(DataLog!$C97=\"Log value\",DataLog!E97,\"\")","v":""},{"$f":"IF(DataLog!$C97=\"Log value\",DataLog!F97,\"\")","v":""},{"$f":"IF(DataLog!$C97=\"Log value\",DataLog!G97,\"\")","v":""},{"$f":"IF(DataLog!$C97=\"Log value\",DataLog!H97,\"\")","v":""},{"$f":"IF(DataLog!$C97=\"Log value\",DataLog!I97,\"\")","v":""},{"$f":"IF(DataLog!$C97=\"Log value\",DataLog!J97,\"\")","v":""},{"$f":"IF(DataLog!$C97=\"Log value\",DataLog!K97,\"\")","v":""},{"$f":"IF(DataLog!$C97=\"Log value\",DataLog!L97,\"\")","v":""},{"$f":"IF(DataLog!$C97=\"Log value\",DataLog!M97,\"\")","v":""},{"$f":"IF(DataLog!$C97=\"Log value\",DataLog!N97,\"\")","v":""},{"$f":"IF(DataLog!$C97=\"Log value\",DataLog!O97,\"\")","v":""},{"$f":"IF(DataLog!$C97=\"Log value\",DataLog!P97,\"\")","v":""},{"$f":"IF(DataLog!$C97=\"Log value\",DataLog!Q97,\"\")","v":""},{"$f":"IF(DataLog!$C97=\"Log value\",DataLog!R97,\"\")","v":""},{"$f":"IF(DataLog!$C97=\"Log value\",DataLog!S97,\"\")","v":""},{"$f":"IF(DataLog!$C97=\"Log value\",DataLog!T97,\"\")","v":""},{"$f":"IF(DataLog!$C97=\"Log value\",DataLog!U97,\"\")","v":""},{"$f":"IF(DataLog!$C97=\"Log value\",DataLog!V97,\"\")","v":""},{"$f":"IF(DataLog!$C97=\"Log value\",DataLog!W97,\"\")","v":""},{"$f":"IF(DataLog!$C97=\"Log value\",DataLog!X97,\"\")","v":""},{"$f":"IF(DataLog!$C97=\"Log value\",DataLog!Y97,\"\")","v":""},{"$f":"IF(DataLog!$C97=\"Log value\",DataLog!Z97,\"\")","v":""},{"$f":"IF(DataLog!$C97=\"Log value\",DataLog!AA97,\"\")","v":""},{"$f":"IF(DataLog!$C97=\"Log value\",DataLog!AB97,\"\")","v":""},{"$f":"IF(DataLog!$C97=\"Log value\",DataLog!AC97,\"\")","v":""},{"$f":"IF(DataLog!$C97=\"Log value\",DataLog!AD97,\"\")","v":""},{"$f":"IF(DataLog!$C97=\"Log value\",DataLog!AE97,\"\")","v":""},{"$f":"IF(DataLog!$C97=\"Log value\",DataLog!AF97,\"\")","v":""},{"$f":"IF(DataLog!$C97=\"Log value\",DataLog!AG97,\"\")","v":""},{"$f":"IF(DataLog!$C97=\"Log value\",DataLog!AH97,\"\")","v":""},{"$f":"IF(DataLog!$C97=\"Log value\",DataLog!AI97,\"\")","v":""},{"$f":"IF(DataLog!$C97=\"Log value\",DataLog!AJ97,\"\")","v":""},{"$f":"IF(DataLog!$C97=\"Log value\",DataLog!AK97,\"\")","v":""},{"$f":"IF(DataLog!$C97=\"Log value\",DataLog!AL97,\"\")","v":""},{"$f":"IF(DataLog!$C97=\"Log value\",DataLog!AM97,\"\")","v":""}]
[null,null,"Standard","Standard -  - ",null,null,{"$f":"IF(DataLog!$C98=\"Log value\",DataLog!D98&\"_\"&TEXT(DataLog!B98,\"åååå-mm-dd\"),\"\")","v":""},{"$f":"IF(DataLog!$C98=\"Log value\",DataLog!E98,\"\")","v":""},{"$f":"IF(DataLog!$C98=\"Log value\",DataLog!F98,\"\")","v":""},{"$f":"IF(DataLog!$C98=\"Log value\",DataLog!G98,\"\")","v":""},{"$f":"IF(DataLog!$C98=\"Log value\",DataLog!H98,\"\")","v":""},{"$f":"IF(DataLog!$C98=\"Log value\",DataLog!I98,\"\")","v":""},{"$f":"IF(DataLog!$C98=\"Log value\",DataLog!J98,\"\")","v":""},{"$f":"IF(DataLog!$C98=\"Log value\",DataLog!K98,\"\")","v":""},{"$f":"IF(DataLog!$C98=\"Log value\",DataLog!L98,\"\")","v":""},{"$f":"IF(DataLog!$C98=\"Log value\",DataLog!M98,\"\")","v":""},{"$f":"IF(DataLog!$C98=\"Log value\",DataLog!N98,\"\")","v":""},{"$f":"IF(DataLog!$C98=\"Log value\",DataLog!O98,\"\")","v":""},{"$f":"IF(DataLog!$C98=\"Log value\",DataLog!P98,\"\")","v":""},{"$f":"IF(DataLog!$C98=\"Log value\",DataLog!Q98,\"\")","v":""},{"$f":"IF(DataLog!$C98=\"Log value\",DataLog!R98,\"\")","v":""},{"$f":"IF(DataLog!$C98=\"Log value\",DataLog!S98,\"\")","v":""},{"$f":"IF(DataLog!$C98=\"Log value\",DataLog!T98,\"\")","v":""},{"$f":"IF(DataLog!$C98=\"Log value\",DataLog!U98,\"\")","v":""},{"$f":"IF(DataLog!$C98=\"Log value\",DataLog!V98,\"\")","v":""},{"$f":"IF(DataLog!$C98=\"Log value\",DataLog!W98,\"\")","v":""},{"$f":"IF(DataLog!$C98=\"Log value\",DataLog!X98,\"\")","v":""},{"$f":"IF(DataLog!$C98=\"Log value\",DataLog!Y98,\"\")","v":""},{"$f":"IF(DataLog!$C98=\"Log value\",DataLog!Z98,\"\")","v":""},{"$f":"IF(DataLog!$C98=\"Log value\",DataLog!AA98,\"\")","v":""},{"$f":"IF(DataLog!$C98=\"Log value\",DataLog!AB98,\"\")","v":""},{"$f":"IF(DataLog!$C98=\"Log value\",DataLog!AC98,\"\")","v":""},{"$f":"IF(DataLog!$C98=\"Log value\",DataLog!AD98,\"\")","v":""},{"$f":"IF(DataLog!$C98=\"Log value\",DataLog!AE98,\"\")","v":""},{"$f":"IF(DataLog!$C98=\"Log value\",DataLog!AF98,\"\")","v":""},{"$f":"IF(DataLog!$C98=\"Log value\",DataLog!AG98,\"\")","v":""},{"$f":"IF(DataLog!$C98=\"Log value\",DataLog!AH98,\"\")","v":""},{"$f":"IF(DataLog!$C98=\"Log value\",DataLog!AI98,\"\")","v":""},{"$f":"IF(DataLog!$C98=\"Log value\",DataLog!AJ98,\"\")","v":""},{"$f":"IF(DataLog!$C98=\"Log value\",DataLog!AK98,\"\")","v":""},{"$f":"IF(DataLog!$C98=\"Log value\",DataLog!AL98,\"\")","v":""},{"$f":"IF(DataLog!$C98=\"Log value\",DataLog!AM98,\"\")","v":""}]
[null,null,"Standard","Standard -  - ",null,null,{"$f":"IF(DataLog!$C99=\"Log value\",DataLog!D99&\"_\"&TEXT(DataLog!B99,\"åååå-mm-dd\"),\"\")","v":""},{"$f":"IF(DataLog!$C99=\"Log value\",DataLog!E99,\"\")","v":""},{"$f":"IF(DataLog!$C99=\"Log value\",DataLog!F99,\"\")","v":""},{"$f":"IF(DataLog!$C99=\"Log value\",DataLog!G99,\"\")","v":""},{"$f":"IF(DataLog!$C99=\"Log value\",DataLog!H99,\"\")","v":""},{"$f":"IF(DataLog!$C99=\"Log value\",DataLog!I99,\"\")","v":""},{"$f":"IF(DataLog!$C99=\"Log value\",DataLog!J99,\"\")","v":""},{"$f":"IF(DataLog!$C99=\"Log value\",DataLog!K99,\"\")","v":""},{"$f":"IF(DataLog!$C99=\"Log value\",DataLog!L99,\"\")","v":""},{"$f":"IF(DataLog!$C99=\"Log value\",DataLog!M99,\"\")","v":""},{"$f":"IF(DataLog!$C99=\"Log value\",DataLog!N99,\"\")","v":""},{"$f":"IF(DataLog!$C99=\"Log value\",DataLog!O99,\"\")","v":""},{"$f":"IF(DataLog!$C99=\"Log value\",DataLog!P99,\"\")","v":""},{"$f":"IF(DataLog!$C99=\"Log value\",DataLog!Q99,\"\")","v":""},{"$f":"IF(DataLog!$C99=\"Log value\",DataLog!R99,\"\")","v":""},{"$f":"IF(DataLog!$C99=\"Log value\",DataLog!S99,\"\")","v":""},{"$f":"IF(DataLog!$C99=\"Log value\",DataLog!T99,\"\")","v":""},{"$f":"IF(DataLog!$C99=\"Log value\",DataLog!U99,\"\")","v":""},{"$f":"IF(DataLog!$C99=\"Log value\",DataLog!V99,\"\")","v":""},{"$f":"IF(DataLog!$C99=\"Log value\",DataLog!W99,\"\")","v":""},{"$f":"IF(DataLog!$C99=\"Log value\",DataLog!X99,\"\")","v":""},{"$f":"IF(DataLog!$C99=\"Log value\",DataLog!Y99,\"\")","v":""},{"$f":"IF(DataLog!$C99=\"Log value\",DataLog!Z99,\"\")","v":""},{"$f":"IF(DataLog!$C99=\"Log value\",DataLog!AA99,\"\")","v":""},{"$f":"IF(DataLog!$C99=\"Log value\",DataLog!AB99,\"\")","v":""},{"$f":"IF(DataLog!$C99=\"Log value\",DataLog!AC99,\"\")","v":""},{"$f":"IF(DataLog!$C99=\"Log value\",DataLog!AD99,\"\")","v":""},{"$f":"IF(DataLog!$C99=\"Log value\",DataLog!AE99,\"\")","v":""},{"$f":"IF(DataLog!$C99=\"Log value\",DataLog!AF99,\"\")","v":""},{"$f":"IF(DataLog!$C99=\"Log value\",DataLog!AG99,\"\")","v":""},{"$f":"IF(DataLog!$C99=\"Log value\",DataLog!AH99,\"\")","v":""},{"$f":"IF(DataLog!$C99=\"Log value\",DataLog!AI99,\"\")","v":""},{"$f":"IF(DataLog!$C99=\"Log value\",DataLog!AJ99,\"\")","v":""},{"$f":"IF(DataLog!$C99=\"Log value\",DataLog!AK99,\"\")","v":""},{"$f":"IF(DataLog!$C99=\"Log value\",DataLog!AL99,\"\")","v":""},{"$f":"IF(DataLog!$C99=\"Log value\",DataLog!AM99,\"\")","v":""}]
[null,null,"Standard","Standard -  - ",null,null,{"$f":"IF(DataLog!$C100=\"Log value\",DataLog!D100&\"_\"&TEXT(DataLog!B100,\"åååå-mm-dd\"),\"\")","v":""},{"$f":"IF(DataLog!$C100=\"Log value\",DataLog!E100,\"\")","v":""},{"$f":"IF(DataLog!$C100=\"Log value\",DataLog!F100,\"\")","v":""},{"$f":"IF(DataLog!$C100=\"Log value\",DataLog!G100,\"\")","v":""},{"$f":"IF(DataLog!$C100=\"Log value\",DataLog!H100,\"\")","v":""},{"$f":"IF(DataLog!$C100=\"Log value\",DataLog!I100,\"\")","v":""},{"$f":"IF(DataLog!$C100=\"Log value\",DataLog!J100,\"\")","v":""},{"$f":"IF(DataLog!$C100=\"Log value\",DataLog!K100,\"\")","v":""},{"$f":"IF(DataLog!$C100=\"Log value\",DataLog!L100,\"\")","v":""},{"$f":"IF(DataLog!$C100=\"Log value\",DataLog!M100,\"\")","v":""},{"$f":"IF(DataLog!$C100=\"Log value\",DataLog!N100,\"\")","v":""},{"$f":"IF(DataLog!$C100=\"Log value\",DataLog!O100,\"\")","v":""},{"$f":"IF(DataLog!$C100=\"Log value\",DataLog!P100,\"\")","v":""},{"$f":"IF(DataLog!$C100=\"Log value\",DataLog!Q100,\"\")","v":""},{"$f":"IF(DataLog!$C100=\"Log value\",DataLog!R100,\"\")","v":""},{"$f":"IF(DataLog!$C100=\"Log value\",DataLog!S100,\"\")","v":""},{"$f":"IF(DataLog!$C100=\"Log value\",DataLog!T100,\"\")","v":""},{"$f":"IF(DataLog!$C100=\"Log value\",DataLog!U100,\"\")","v":""},{"$f":"IF(DataLog!$C100=\"Log value\",DataLog!V100,\"\")","v":""},{"$f":"IF(DataLog!$C100=\"Log value\",DataLog!W100,\"\")","v":""},{"$f":"IF(DataLog!$C100=\"Log value\",DataLog!X100,\"\")","v":""},{"$f":"IF(DataLog!$C100=\"Log value\",DataLog!Y100,\"\")","v":""},{"$f":"IF(DataLog!$C100=\"Log value\",DataLog!Z100,\"\")","v":""},{"$f":"IF(DataLog!$C100=\"Log value\",DataLog!AA100,\"\")","v":""},{"$f":"IF(DataLog!$C100=\"Log value\",DataLog!AB100,\"\")","v":""},{"$f":"IF(DataLog!$C100=\"Log value\",DataLog!AC100,\"\")","v":""},{"$f":"IF(DataLog!$C100=\"Log value\",DataLog!AD100,\"\")","v":""},{"$f":"IF(DataLog!$C100=\"Log value\",DataLog!AE100,\"\")","v":""},{"$f":"IF(DataLog!$C100=\"Log value\",DataLog!AF100,\"\")","v":""},{"$f":"IF(DataLog!$C100=\"Log value\",DataLog!AG100,\"\")","v":""},{"$f":"IF(DataLog!$C100=\"Log value\",DataLog!AH100,\"\")","v":""},{"$f":"IF(DataLog!$C100=\"Log value\",DataLog!AI100,\"\")","v":""},{"$f":"IF(DataLog!$C100=\"Log value\",DataLog!AJ100,\"\")","v":""},{"$f":"IF(DataLog!$C100=\"Log value\",DataLog!AK100,\"\")","v":""},{"$f":"IF(DataLog!$C100=\"Log value\",DataLog!AL100,\"\")","v":""},{"$f":"IF(DataLog!$C100=\"Log value\",DataLog!AM100,\"\")","v":""}]
[null,null,"Standard","Standard -  - ",null,null,{"$f":"IF(DataLog!$C101=\"Log value\",DataLog!D101&\"_\"&TEXT(DataLog!B101,\"åååå-mm-dd\"),\"\")","v":""},{"$f":"IF(DataLog!$C101=\"Log value\",DataLog!E101,\"\")","v":""},{"$f":"IF(DataLog!$C101=\"Log value\",DataLog!F101,\"\")","v":""},{"$f":"IF(DataLog!$C101=\"Log value\",DataLog!G101,\"\")","v":""},{"$f":"IF(DataLog!$C101=\"Log value\",DataLog!H101,\"\")","v":""},{"$f":"IF(DataLog!$C101=\"Log value\",DataLog!I101,\"\")","v":""},{"$f":"IF(DataLog!$C101=\"Log value\",DataLog!J101,\"\")","v":""},{"$f":"IF(DataLog!$C101=\"Log value\",DataLog!K101,\"\")","v":""},{"$f":"IF(DataLog!$C101=\"Log value\",DataLog!L101,\"\")","v":""},{"$f":"IF(DataLog!$C101=\"Log value\",DataLog!M101,\"\")","v":""},{"$f":"IF(DataLog!$C101=\"Log value\",DataLog!N101,\"\")","v":""},{"$f":"IF(DataLog!$C101=\"Log value\",DataLog!O101,\"\")","v":""},{"$f":"IF(DataLog!$C101=\"Log value\",DataLog!P101,\"\")","v":""},{"$f":"IF(DataLog!$C101=\"Log value\",DataLog!Q101,\"\")","v":""},{"$f":"IF(DataLog!$C101=\"Log value\",DataLog!R101,\"\")","v":""},{"$f":"IF(DataLog!$C101=\"Log value\",DataLog!S101,\"\")","v":""},{"$f":"IF(DataLog!$C101=\"Log value\",DataLog!T101,\"\")","v":""},{"$f":"IF(DataLog!$C101=\"Log value\",DataLog!U101,\"\")","v":""},{"$f":"IF(DataLog!$C101=\"Log value\",DataLog!V101,\"\")","v":""},{"$f":"IF(DataLog!$C101=\"Log value\",DataLog!W101,\"\")","v":""},{"$f":"IF(DataLog!$C101=\"Log value\",DataLog!X101,\"\")","v":""},{"$f":"IF(DataLog!$C101=\"Log value\",DataLog!Y101,\"\")","v":""},{"$f":"IF(DataLog!$C101=\"Log value\",DataLog!Z101,\"\")","v":""},{"$f":"IF(DataLog!$C101=\"Log value\",DataLog!AA101,\"\")","v":""},{"$f":"IF(DataLog!$C101=\"Log value\",DataLog!AB101,\"\")","v":""},{"$f":"IF(DataLog!$C101=\"Log value\",DataLog!AC101,\"\")","v":""},{"$f":"IF(DataLog!$C101=\"Log value\",DataLog!AD101,\"\")","v":""},{"$f":"IF(DataLog!$C101=\"Log value\",DataLog!AE101,\"\")","v":""},{"$f":"IF(DataLog!$C101=\"Log value\",DataLog!AF101,\"\")","v":""},{"$f":"IF(DataLog!$C101=\"Log value\",DataLog!AG101,\"\")","v":""},{"$f":"IF(DataLog!$C101=\"Log value\",DataLog!AH101,\"\")","v":""},{"$f":"IF(DataLog!$C101=\"Log value\",DataLog!AI101,\"\")","v":""},{"$f":"IF(DataLog!$C101=\"Log value\",DataLog!AJ101,\"\")","v":""},{"$f":"IF(DataLog!$C101=\"Log value\",DataLog!AK101,\"\")","v":""},{"$f":"IF(DataLog!$C101=\"Log value\",DataLog!AL101,\"\")","v":""},{"$f":"IF(DataLog!$C101=\"Log value\",DataLog!AM101,\"\")","v":""}]
[null,null,"Standard","Standard -  - ",null,null,{"$f":"IF(DataLog!$C102=\"Log value\",DataLog!D102&\"_\"&TEXT(DataLog!B102,\"åååå-mm-dd\"),\"\")","v":""},{"$f":"IF(DataLog!$C102=\"Log value\",DataLog!E102,\"\")","v":""},{"$f":"IF(DataLog!$C102=\"Log value\",DataLog!F102,\"\")","v":""},{"$f":"IF(DataLog!$C102=\"Log value\",DataLog!G102,\"\")","v":""},{"$f":"IF(DataLog!$C102=\"Log value\",DataLog!H102,\"\")","v":""},{"$f":"IF(DataLog!$C102=\"Log value\",DataLog!I102,\"\")","v":""},{"$f":"IF(DataLog!$C102=\"Log value\",DataLog!J102,\"\")","v":""},{"$f":"IF(DataLog!$C102=\"Log value\",DataLog!K102,\"\")","v":""},{"$f":"IF(DataLog!$C102=\"Log value\",DataLog!L102,\"\")","v":""},{"$f":"IF(DataLog!$C102=\"Log value\",DataLog!M102,\"\")","v":""},{"$f":"IF(DataLog!$C102=\"Log value\",DataLog!N102,\"\")","v":""},{"$f":"IF(DataLog!$C102=\"Log value\",DataLog!O102,\"\")","v":""},{"$f":"IF(DataLog!$C102=\"Log value\",DataLog!P102,\"\")","v":""},{"$f":"IF(DataLog!$C102=\"Log value\",DataLog!Q102,\"\")","v":""},{"$f":"IF(DataLog!$C102=\"Log value\",DataLog!R102,\"\")","v":""},{"$f":"IF(DataLog!$C102=\"Log value\",DataLog!S102,\"\")","v":""},{"$f":"IF(DataLog!$C102=\"Log value\",DataLog!T102,\"\")","v":""},{"$f":"IF(DataLog!$C102=\"Log value\",DataLog!U102,\"\")","v":""},{"$f":"IF(DataLog!$C102=\"Log value\",DataLog!V102,\"\")","v":""},{"$f":"IF(DataLog!$C102=\"Log value\",DataLog!W102,\"\")","v":""},{"$f":"IF(DataLog!$C102=\"Log value\",DataLog!X102,\"\")","v":""},{"$f":"IF(DataLog!$C102=\"Log value\",DataLog!Y102,\"\")","v":""},{"$f":"IF(DataLog!$C102=\"Log value\",DataLog!Z102,\"\")","v":""},{"$f":"IF(DataLog!$C102=\"Log value\",DataLog!AA102,\"\")","v":""},{"$f":"IF(DataLog!$C102=\"Log value\",DataLog!AB102,\"\")","v":""},{"$f":"IF(DataLog!$C102=\"Log value\",DataLog!AC102,\"\")","v":""},{"$f":"IF(DataLog!$C102=\"Log value\",DataLog!AD102,\"\")","v":""},{"$f":"IF(DataLog!$C102=\"Log value\",DataLog!AE102,\"\")","v":""},{"$f":"IF(DataLog!$C102=\"Log value\",DataLog!AF102,\"\")","v":""},{"$f":"IF(DataLog!$C102=\"Log value\",DataLog!AG102,\"\")","v":""},{"$f":"IF(DataLog!$C102=\"Log value\",DataLog!AH102,\"\")","v":""},{"$f":"IF(DataLog!$C102=\"Log value\",DataLog!AI102,\"\")","v":""},{"$f":"IF(DataLog!$C102=\"Log value\",DataLog!AJ102,\"\")","v":""},{"$f":"IF(DataLog!$C102=\"Log value\",DataLog!AK102,\"\")","v":""},{"$f":"IF(DataLog!$C102=\"Log value\",DataLog!AL102,\"\")","v":""},{"$f":"IF(DataLog!$C102=\"Log value\",DataLog!AM102,\"\")","v":""}]
[null,null,"Standard","Standard -  - ",null,null,{"$f":"IF(DataLog!$C103=\"Log value\",DataLog!D103&\"_\"&TEXT(DataLog!B103,\"åååå-mm-dd\"),\"\")","v":""},{"$f":"IF(DataLog!$C103=\"Log value\",DataLog!E103,\"\")","v":""},{"$f":"IF(DataLog!$C103=\"Log value\",DataLog!F103,\"\")","v":""},{"$f":"IF(DataLog!$C103=\"Log value\",DataLog!G103,\"\")","v":""},{"$f":"IF(DataLog!$C103=\"Log value\",DataLog!H103,\"\")","v":""},{"$f":"IF(DataLog!$C103=\"Log value\",DataLog!I103,\"\")","v":""},{"$f":"IF(DataLog!$C103=\"Log value\",DataLog!J103,\"\")","v":""},{"$f":"IF(DataLog!$C103=\"Log value\",DataLog!K103,\"\")","v":""},{"$f":"IF(DataLog!$C103=\"Log value\",DataLog!L103,\"\")","v":""},{"$f":"IF(DataLog!$C103=\"Log value\",DataLog!M103,\"\")","v":""},{"$f":"IF(DataLog!$C103=\"Log value\",DataLog!N103,\"\")","v":""},{"$f":"IF(DataLog!$C103=\"Log value\",DataLog!O103,\"\")","v":""},{"$f":"IF(DataLog!$C103=\"Log value\",DataLog!P103,\"\")","v":""},{"$f":"IF(DataLog!$C103=\"Log value\",DataLog!Q103,\"\")","v":""},{"$f":"IF(DataLog!$C103=\"Log value\",DataLog!R103,\"\")","v":""},{"$f":"IF(DataLog!$C103=\"Log value\",DataLog!S103,\"\")","v":""},{"$f":"IF(DataLog!$C103=\"Log value\",DataLog!T103,\"\")","v":""},{"$f":"IF(DataLog!$C103=\"Log value\",DataLog!U103,\"\")","v":""},{"$f":"IF(DataLog!$C103=\"Log value\",DataLog!V103,\"\")","v":""},{"$f":"IF(DataLog!$C103=\"Log value\",DataLog!W103,\"\")","v":""},{"$f":"IF(DataLog!$C103=\"Log value\",DataLog!X103,\"\")","v":""},{"$f":"IF(DataLog!$C103=\"Log value\",DataLog!Y103,\"\")","v":""},{"$f":"IF(DataLog!$C103=\"Log value\",DataLog!Z103,\"\")","v":""},{"$f":"IF(DataLog!$C103=\"Log value\",DataLog!AA103,\"\")","v":""},{"$f":"IF(DataLog!$C103=\"Log value\",DataLog!AB103,\"\")","v":""},{"$f":"IF(DataLog!$C103=\"Log value\",DataLog!AC103,\"\")","v":""},{"$f":"IF(DataLog!$C103=\"Log value\",DataLog!AD103,\"\")","v":""},{"$f":"IF(DataLog!$C103=\"Log value\",DataLog!AE103,\"\")","v":""},{"$f":"IF(DataLog!$C103=\"Log value\",DataLog!AF103,\"\")","v":""},{"$f":"IF(DataLog!$C103=\"Log value\",DataLog!AG103,\"\")","v":""},{"$f":"IF(DataLog!$C103=\"Log value\",DataLog!AH103,\"\")","v":""},{"$f":"IF(DataLog!$C103=\"Log value\",DataLog!AI103,\"\")","v":""},{"$f":"IF(DataLog!$C103=\"Log value\",DataLog!AJ103,\"\")","v":""},{"$f":"IF(DataLog!$C103=\"Log value\",DataLog!AK103,\"\")","v":""},{"$f":"IF(DataLog!$C103=\"Log value\",DataLog!AL103,\"\")","v":""},{"$f":"IF(DataLog!$C103=\"Log value\",DataLog!AM103,\"\")","v":""}]
[null,null,"Standard","Standard -  - ",null,null,{"$f":"IF(DataLog!$C104=\"Log value\",DataLog!D104&\"_\"&TEXT(DataLog!B104,\"åååå-mm-dd\"),\"\")","v":""},{"$f":"IF(DataLog!$C104=\"Log value\",DataLog!E104,\"\")","v":""},{"$f":"IF(DataLog!$C104=\"Log value\",DataLog!F104,\"\")","v":""},{"$f":"IF(DataLog!$C104=\"Log value\",DataLog!G104,\"\")","v":""},{"$f":"IF(DataLog!$C104=\"Log value\",DataLog!H104,\"\")","v":""},{"$f":"IF(DataLog!$C104=\"Log value\",DataLog!I104,\"\")","v":""},{"$f":"IF(DataLog!$C104=\"Log value\",DataLog!J104,\"\")","v":""},{"$f":"IF(DataLog!$C104=\"Log value\",DataLog!K104,\"\")","v":""},{"$f":"IF(DataLog!$C104=\"Log value\",DataLog!L104,\"\")","v":""},{"$f":"IF(DataLog!$C104=\"Log value\",DataLog!M104,\"\")","v":""},{"$f":"IF(DataLog!$C104=\"Log value\",DataLog!N104,\"\")","v":""},{"$f":"IF(DataLog!$C104=\"Log value\",DataLog!O104,\"\")","v":""},{"$f":"IF(DataLog!$C104=\"Log value\",DataLog!P104,\"\")","v":""},{"$f":"IF(DataLog!$C104=\"Log value\",DataLog!Q104,\"\")","v":""},{"$f":"IF(DataLog!$C104=\"Log value\",DataLog!R104,\"\")","v":""},{"$f":"IF(DataLog!$C104=\"Log value\",DataLog!S104,\"\")","v":""},{"$f":"IF(DataLog!$C104=\"Log value\",DataLog!T104,\"\")","v":""},{"$f":"IF(DataLog!$C104=\"Log value\",DataLog!U104,\"\")","v":""},{"$f":"IF(DataLog!$C104=\"Log value\",DataLog!V104,\"\")","v":""},{"$f":"IF(DataLog!$C104=\"Log value\",DataLog!W104,\"\")","v":""},{"$f":"IF(DataLog!$C104=\"Log value\",DataLog!X104,\"\")","v":""},{"$f":"IF(DataLog!$C104=\"Log value\",DataLog!Y104,\"\")","v":""},{"$f":"IF(DataLog!$C104=\"Log value\",DataLog!Z104,\"\")","v":""},{"$f":"IF(DataLog!$C104=\"Log value\",DataLog!AA104,\"\")","v":""},{"$f":"IF(DataLog!$C104=\"Log value\",DataLog!AB104,\"\")","v":""},{"$f":"IF(DataLog!$C104=\"Log value\",DataLog!AC104,\"\")","v":""},{"$f":"IF(DataLog!$C104=\"Log value\",DataLog!AD104,\"\")","v":""},{"$f":"IF(DataLog!$C104=\"Log value\",DataLog!AE104,\"\")","v":""},{"$f":"IF(DataLog!$C104=\"Log value\",DataLog!AF104,\"\")","v":""},{"$f":"IF(DataLog!$C104=\"Log value\",DataLog!AG104,\"\")","v":""},{"$f":"IF(DataLog!$C104=\"Log value\",DataLog!AH104,\"\")","v":""},{"$f":"IF(DataLog!$C104=\"Log value\",DataLog!AI104,\"\")","v":""},{"$f":"IF(DataLog!$C104=\"Log value\",DataLog!AJ104,\"\")","v":""},{"$f":"IF(DataLog!$C104=\"Log value\",DataLog!AK104,\"\")","v":""},{"$f":"IF(DataLog!$C104=\"Log value\",DataLog!AL104,\"\")","v":""},{"$f":"IF(DataLog!$C104=\"Log value\",DataLog!AM104,\"\")","v":""}]
[null,null,"Standard","Standard -  - ",null,null,{"$f":"IF(DataLog!$C105=\"Log value\",DataLog!D105&\"_\"&TEXT(DataLog!B105,\"åååå-mm-dd\"),\"\")","v":""},{"$f":"IF(DataLog!$C105=\"Log value\",DataLog!E105,\"\")","v":""},{"$f":"IF(DataLog!$C105=\"Log value\",DataLog!F105,\"\")","v":""},{"$f":"IF(DataLog!$C105=\"Log value\",DataLog!G105,\"\")","v":""},{"$f":"IF(DataLog!$C105=\"Log value\",DataLog!H105,\"\")","v":""},{"$f":"IF(DataLog!$C105=\"Log value\",DataLog!I105,\"\")","v":""},{"$f":"IF(DataLog!$C105=\"Log value\",DataLog!J105,\"\")","v":""},{"$f":"IF(DataLog!$C105=\"Log value\",DataLog!K105,\"\")","v":""},{"$f":"IF(DataLog!$C105=\"Log value\",DataLog!L105,\"\")","v":""},{"$f":"IF(DataLog!$C105=\"Log value\",DataLog!M105,\"\")","v":""},{"$f":"IF(DataLog!$C105=\"Log value\",DataLog!N105,\"\")","v":""},{"$f":"IF(DataLog!$C105=\"Log value\",DataLog!O105,\"\")","v":""},{"$f":"IF(DataLog!$C105=\"Log value\",DataLog!P105,\"\")","v":""},{"$f":"IF(DataLog!$C105=\"Log value\",DataLog!Q105,\"\")","v":""},{"$f":"IF(DataLog!$C105=\"Log value\",DataLog!R105,\"\")","v":""},{"$f":"IF(DataLog!$C105=\"Log value\",DataLog!S105,\"\")","v":""},{"$f":"IF(DataLog!$C105=\"Log value\",DataLog!T105,\"\")","v":""},{"$f":"IF(DataLog!$C105=\"Log value\",DataLog!U105,\"\")","v":""},{"$f":"IF(DataLog!$C105=\"Log value\",DataLog!V105,\"\")","v":""},{"$f":"IF(DataLog!$C105=\"Log value\",DataLog!W105,\"\")","v":""},{"$f":"IF(DataLog!$C105=\"Log value\",DataLog!X105,\"\")","v":""},{"$f":"IF(DataLog!$C105=\"Log value\",DataLog!Y105,\"\")","v":""},{"$f":"IF(DataLog!$C105=\"Log value\",DataLog!Z105,\"\")","v":""},{"$f":"IF(DataLog!$C105=\"Log value\",DataLog!AA105,\"\")","v":""},{"$f":"IF(DataLog!$C105=\"Log value\",DataLog!AB105,\"\")","v":""},{"$f":"IF(DataLog!$C105=\"Log value\",DataLog!AC105,\"\")","v":""},{"$f":"IF(DataLog!$C105=\"Log value\",DataLog!AD105,\"\")","v":""},{"$f":"IF(DataLog!$C105=\"Log value\",DataLog!AE105,\"\")","v":""},{"$f":"IF(DataLog!$C105=\"Log value\",DataLog!AF105,\"\")","v":""},{"$f":"IF(DataLog!$C105=\"Log value\",DataLog!AG105,\"\")","v":""},{"$f":"IF(DataLog!$C105=\"Log value\",DataLog!AH105,\"\")","v":""},{"$f":"IF(DataLog!$C105=\"Log value\",DataLog!AI105,\"\")","v":""},{"$f":"IF(DataLog!$C105=\"Log value\",DataLog!AJ105,\"\")","v":""},{"$f":"IF(DataLog!$C105=\"Log value\",DataLog!AK105,\"\")","v":""},{"$f":"IF(DataLog!$C105=\"Log value\",DataLog!AL105,\"\")","v":""},{"$f":"IF(DataLog!$C105=\"Log value\",DataLog!AM105,\"\")","v":""}]
[null,null,"Standard","Standard -  - ",null,null,{"$f":"IF(DataLog!$C106=\"Log value\",DataLog!D106&\"_\"&TEXT(DataLog!B106,\"åååå-mm-dd\"),\"\")","v":""},{"$f":"IF(DataLog!$C106=\"Log value\",DataLog!E106,\"\")","v":""},{"$f":"IF(DataLog!$C106=\"Log value\",DataLog!F106,\"\")","v":""},{"$f":"IF(DataLog!$C106=\"Log value\",DataLog!G106,\"\")","v":""},{"$f":"IF(DataLog!$C106=\"Log value\",DataLog!H106,\"\")","v":""},{"$f":"IF(DataLog!$C106=\"Log value\",DataLog!I106,\"\")","v":""},{"$f":"IF(DataLog!$C106=\"Log value\",DataLog!J106,\"\")","v":""},{"$f":"IF(DataLog!$C106=\"Log value\",DataLog!K106,\"\")","v":""},{"$f":"IF(DataLog!$C106=\"Log value\",DataLog!L106,\"\")","v":""},{"$f":"IF(DataLog!$C106=\"Log value\",DataLog!M106,\"\")","v":""},{"$f":"IF(DataLog!$C106=\"Log value\",DataLog!N106,\"\")","v":""},{"$f":"IF(DataLog!$C106=\"Log value\",DataLog!O106,\"\")","v":""},{"$f":"IF(DataLog!$C106=\"Log value\",DataLog!P106,\"\")","v":""},{"$f":"IF(DataLog!$C106=\"Log value\",DataLog!Q106,\"\")","v":""},{"$f":"IF(DataLog!$C106=\"Log value\",DataLog!R106,\"\")","v":""},{"$f":"IF(DataLog!$C106=\"Log value\",DataLog!S106,\"\")","v":""},{"$f":"IF(DataLog!$C106=\"Log value\",DataLog!T106,\"\")","v":""},{"$f":"IF(DataLog!$C106=\"Log value\",DataLog!U106,\"\")","v":""},{"$f":"IF(DataLog!$C106=\"Log value\",DataLog!V106,\"\")","v":""},{"$f":"IF(DataLog!$C106=\"Log value\",DataLog!W106,\"\")","v":""},{"$f":"IF(DataLog!$C106=\"Log value\",DataLog!X106,\"\")","v":""},{"$f":"IF(DataLog!$C106=\"Log value\",DataLog!Y106,\"\")","v":""},{"$f":"IF(DataLog!$C106=\"Log value\",DataLog!Z106,\"\")","v":""},{"$f":"IF(DataLog!$C106=\"Log value\",DataLog!AA106,\"\")","v":""},{"$f":"IF(DataLog!$C106=\"Log value\",DataLog!AB106,\"\")","v":""},{"$f":"IF(DataLog!$C106=\"Log value\",DataLog!AC106,\"\")","v":""},{"$f":"IF(DataLog!$C106=\"Log value\",DataLog!AD106,\"\")","v":""},{"$f":"IF(DataLog!$C106=\"Log value\",DataLog!AE106,\"\")","v":""},{"$f":"IF(DataLog!$C106=\"Log value\",DataLog!AF106,\"\")","v":""},{"$f":"IF(DataLog!$C106=\"Log value\",DataLog!AG106,\"\")","v":""},{"$f":"IF(DataLog!$C106=\"Log value\",DataLog!AH106,\"\")","v":""},{"$f":"IF(DataLog!$C106=\"Log value\",DataLog!AI106,\"\")","v":""},{"$f":"IF(DataLog!$C106=\"Log value\",DataLog!AJ106,\"\")","v":""},{"$f":"IF(DataLog!$C106=\"Log value\",DataLog!AK106,\"\")","v":""},{"$f":"IF(DataLog!$C106=\"Log value\",DataLog!AL106,\"\")","v":""},{"$f":"IF(DataLog!$C106=\"Log value\",DataLog!AM106,\"\")","v":""}]
[null,null,"Standard","Standard -  - ",null,null,{"$f":"IF(DataLog!$C107=\"Log value\",DataLog!D107&\"_\"&TEXT(DataLog!B107,\"åååå-mm-dd\"),\"\")","v":""},{"$f":"IF(DataLog!$C107=\"Log value\",DataLog!E107,\"\")","v":""},{"$f":"IF(DataLog!$C107=\"Log value\",DataLog!F107,\"\")","v":""},{"$f":"IF(DataLog!$C107=\"Log value\",DataLog!G107,\"\")","v":""},{"$f":"IF(DataLog!$C107=\"Log value\",DataLog!H107,\"\")","v":""},{"$f":"IF(DataLog!$C107=\"Log value\",DataLog!I107,\"\")","v":""},{"$f":"IF(DataLog!$C107=\"Log value\",DataLog!J107,\"\")","v":""},{"$f":"IF(DataLog!$C107=\"Log value\",DataLog!K107,\"\")","v":""},{"$f":"IF(DataLog!$C107=\"Log value\",DataLog!L107,\"\")","v":""},{"$f":"IF(DataLog!$C107=\"Log value\",DataLog!M107,\"\")","v":""},{"$f":"IF(DataLog!$C107=\"Log value\",DataLog!N107,\"\")","v":""},{"$f":"IF(DataLog!$C107=\"Log value\",DataLog!O107,\"\")","v":""},{"$f":"IF(DataLog!$C107=\"Log value\",DataLog!P107,\"\")","v":""},{"$f":"IF(DataLog!$C107=\"Log value\",DataLog!Q107,\"\")","v":""},{"$f":"IF(DataLog!$C107=\"Log value\",DataLog!R107,\"\")","v":""},{"$f":"IF(DataLog!$C107=\"Log value\",DataLog!S107,\"\")","v":""},{"$f":"IF(DataLog!$C107=\"Log value\",DataLog!T107,\"\")","v":""},{"$f":"IF(DataLog!$C107=\"Log value\",DataLog!U107,\"\")","v":""},{"$f":"IF(DataLog!$C107=\"Log value\",DataLog!V107,\"\")","v":""},{"$f":"IF(DataLog!$C107=\"Log value\",DataLog!W107,\"\")","v":""},{"$f":"IF(DataLog!$C107=\"Log value\",DataLog!X107,\"\")","v":""},{"$f":"IF(DataLog!$C107=\"Log value\",DataLog!Y107,\"\")","v":""},{"$f":"IF(DataLog!$C107=\"Log value\",DataLog!Z107,\"\")","v":""},{"$f":"IF(DataLog!$C107=\"Log value\",DataLog!AA107,\"\")","v":""},{"$f":"IF(DataLog!$C107=\"Log value\",DataLog!AB107,\"\")","v":""},{"$f":"IF(DataLog!$C107=\"Log value\",DataLog!AC107,\"\")","v":""},{"$f":"IF(DataLog!$C107=\"Log value\",DataLog!AD107,\"\")","v":""},{"$f":"IF(DataLog!$C107=\"Log value\",DataLog!AE107,\"\")","v":""},{"$f":"IF(DataLog!$C107=\"Log value\",DataLog!AF107,\"\")","v":""},{"$f":"IF(DataLog!$C107=\"Log value\",DataLog!AG107,\"\")","v":""},{"$f":"IF(DataLog!$C107=\"Log value\",DataLog!AH107,\"\")","v":""},{"$f":"IF(DataLog!$C107=\"Log value\",DataLog!AI107,\"\")","v":""},{"$f":"IF(DataLog!$C107=\"Log value\",DataLog!AJ107,\"\")","v":""},{"$f":"IF(DataLog!$C107=\"Log value\",DataLog!AK107,\"\")","v":""},{"$f":"IF(DataLog!$C107=\"Log value\",DataLog!AL107,\"\")","v":""},{"$f":"IF(DataLog!$C107=\"Log value\",DataLog!AM107,\"\")","v":""}]
[null,null,"Standard","Standard -  - ",null,null,{"$f":"IF(DataLog!$C108=\"Log value\",DataLog!D108&\"_\"&TEXT(DataLog!B108,\"åååå-mm-dd\"),\"\")","v":""},{"$f":"IF(DataLog!$C108=\"Log value\",DataLog!E108,\"\")","v":""},{"$f":"IF(DataLog!$C108=\"Log value\",DataLog!F108,\"\")","v":""},{"$f":"IF(DataLog!$C108=\"Log value\",DataLog!G108,\"\")","v":""},{"$f":"IF(DataLog!$C108=\"Log value\",DataLog!H108,\"\")","v":""},{"$f":"IF(DataLog!$C108=\"Log value\",DataLog!I108,\"\")","v":""},{"$f":"IF(DataLog!$C108=\"Log value\",DataLog!J108,\"\")","v":""},{"$f":"IF(DataLog!$C108=\"Log value\",DataLog!K108,\"\")","v":""},{"$f":"IF(DataLog!$C108=\"Log value\",DataLog!L108,\"\")","v":""},{"$f":"IF(DataLog!$C108=\"Log value\",DataLog!M108,\"\")","v":""},{"$f":"IF(DataLog!$C108=\"Log value\",DataLog!N108,\"\")","v":""},{"$f":"IF(DataLog!$C108=\"Log value\",DataLog!O108,\"\")","v":""},{"$f":"IF(DataLog!$C108=\"Log value\",DataLog!P108,\"\")","v":""},{"$f":"IF(DataLog!$C108=\"Log value\",DataLog!Q108,\"\")","v":""},{"$f":"IF(DataLog!$C108=\"Log value\",DataLog!R108,\"\")","v":""},{"$f":"IF(DataLog!$C108=\"Log value\",DataLog!S108,\"\")","v":""},{"$f":"IF(DataLog!$C108=\"Log value\",DataLog!T108,\"\")","v":""},{"$f":"IF(DataLog!$C108=\"Log value\",DataLog!U108,\"\")","v":""},{"$f":"IF(DataLog!$C108=\"Log value\",DataLog!V108,\"\")","v":""},{"$f":"IF(DataLog!$C108=\"Log value\",DataLog!W108,\"\")","v":""},{"$f":"IF(DataLog!$C108=\"Log value\",DataLog!X108,\"\")","v":""},{"$f":"IF(DataLog!$C108=\"Log value\",DataLog!Y108,\"\")","v":""},{"$f":"IF(DataLog!$C108=\"Log value\",DataLog!Z108,\"\")","v":""},{"$f":"IF(DataLog!$C108=\"Log value\",DataLog!AA108,\"\")","v":""},{"$f":"IF(DataLog!$C108=\"Log value\",DataLog!AB108,\"\")","v":""},{"$f":"IF(DataLog!$C108=\"Log value\",DataLog!AC108,\"\")","v":""},{"$f":"IF(DataLog!$C108=\"Log value\",DataLog!AD108,\"\")","v":""},{"$f":"IF(DataLog!$C108=\"Log value\",DataLog!AE108,\"\")","v":""},{"$f":"IF(DataLog!$C108=\"Log value\",DataLog!AF108,\"\")","v":""},{"$f":"IF(DataLog!$C108=\"Log value\",DataLog!AG108,\"\")","v":""},{"$f":"IF(DataLog!$C108=\"Log value\",DataLog!AH108,\"\")","v":""},{"$f":"IF(DataLog!$C108=\"Log value\",DataLog!AI108,\"\")","v":""},{"$f":"IF(DataLog!$C108=\"Log value\",DataLog!AJ108,\"\")","v":""},{"$f":"IF(DataLog!$C108=\"Log value\",DataLog!AK108,\"\")","v":""},{"$f":"IF(DataLog!$C108=\"Log value\",DataLog!AL108,\"\")","v":""},{"$f":"IF(DataLog!$C108=\"Log value\",DataLog!AM108,\"\")","v":""}]
[null,null,"Standard","Standard -  - ",null,null,{"$f":"IF(DataLog!$C109=\"Log value\",DataLog!D109&\"_\"&TEXT(DataLog!B109,\"åååå-mm-dd\"),\"\")","v":""},{"$f":"IF(DataLog!$C109=\"Log value\",DataLog!E109,\"\")","v":""},{"$f":"IF(DataLog!$C109=\"Log value\",DataLog!F109,\"\")","v":""},{"$f":"IF(DataLog!$C109=\"Log value\",DataLog!G109,\"\")","v":""},{"$f":"IF(DataLog!$C109=\"Log value\",DataLog!H109,\"\")","v":""},{"$f":"IF(DataLog!$C109=\"Log value\",DataLog!I109,\"\")","v":""},{"$f":"IF(DataLog!$C109=\"Log value\",DataLog!J109,\"\")","v":""},{"$f":"IF(DataLog!$C109=\"Log value\",DataLog!K109,\"\")","v":""},{"$f":"IF(DataLog!$C109=\"Log value\",DataLog!L109,\"\")","v":""},{"$f":"IF(DataLog!$C109=\"Log value\",DataLog!M109,\"\")","v":""},{"$f":"IF(DataLog!$C109=\"Log value\",DataLog!N109,\"\")","v":""},{"$f":"IF(DataLog!$C109=\"Log value\",DataLog!O109,\"\")","v":""},{"$f":"IF(DataLog!$C109=\"Log value\",DataLog!P109,\"\")","v":""},{"$f":"IF(DataLog!$C109=\"Log value\",DataLog!Q109,\"\")","v":""},{"$f":"IF(DataLog!$C109=\"Log value\",DataLog!R109,\"\")","v":""},{"$f":"IF(DataLog!$C109=\"Log value\",DataLog!S109,\"\")","v":""},{"$f":"IF(DataLog!$C109=\"Log value\",DataLog!T109,\"\")","v":""},{"$f":"IF(DataLog!$C109=\"Log value\",DataLog!U109,\"\")","v":""},{"$f":"IF(DataLog!$C109=\"Log value\",DataLog!V109,\"\")","v":""},{"$f":"IF(DataLog!$C109=\"Log value\",DataLog!W109,\"\")","v":""},{"$f":"IF(DataLog!$C109=\"Log value\",DataLog!X109,\"\")","v":""},{"$f":"IF(DataLog!$C109=\"Log value\",DataLog!Y109,\"\")","v":""},{"$f":"IF(DataLog!$C109=\"Log value\",DataLog!Z109,\"\")","v":""},{"$f":"IF(DataLog!$C109=\"Log value\",DataLog!AA109,\"\")","v":""},{"$f":"IF(DataLog!$C109=\"Log value\",DataLog!AB109,\"\")","v":""},{"$f":"IF(DataLog!$C109=\"Log value\",DataLog!AC109,\"\")","v":""},{"$f":"IF(DataLog!$C109=\"Log value\",DataLog!AD109,\"\")","v":""},{"$f":"IF(DataLog!$C109=\"Log value\",DataLog!AE109,\"\")","v":""},{"$f":"IF(DataLog!$C109=\"Log value\",DataLog!AF109,\"\")","v":""},{"$f":"IF(DataLog!$C109=\"Log value\",DataLog!AG109,\"\")","v":""},{"$f":"IF(DataLog!$C109=\"Log value\",DataLog!AH109,\"\")","v":""},{"$f":"IF(DataLog!$C109=\"Log value\",DataLog!AI109,\"\")","v":""},{"$f":"IF(DataLog!$C109=\"Log value\",DataLog!AJ109,\"\")","v":""},{"$f":"IF(DataLog!$C109=\"Log value\",DataLog!AK109,\"\")","v":""},{"$f":"IF(DataLog!$C109=\"Log value\",DataLog!AL109,\"\")","v":""},{"$f":"IF(DataLog!$C109=\"Log value\",DataLog!AM109,\"\")","v":""}]
[null,null,"Standard","Standard -  - ",null,null,{"$f":"IF(DataLog!$C110=\"Log value\",DataLog!D110&\"_\"&TEXT(DataLog!B110,\"åååå-mm-dd\"),\"\")","v":""},{"$f":"IF(DataLog!$C110=\"Log value\",DataLog!E110,\"\")","v":""},{"$f":"IF(DataLog!$C110=\"Log value\",DataLog!F110,\"\")","v":""},{"$f":"IF(DataLog!$C110=\"Log value\",DataLog!G110,\"\")","v":""},{"$f":"IF(DataLog!$C110=\"Log value\",DataLog!H110,\"\")","v":""},{"$f":"IF(DataLog!$C110=\"Log value\",DataLog!I110,\"\")","v":""},{"$f":"IF(DataLog!$C110=\"Log value\",DataLog!J110,\"\")","v":""},{"$f":"IF(DataLog!$C110=\"Log value\",DataLog!K110,\"\")","v":""},{"$f":"IF(DataLog!$C110=\"Log value\",DataLog!L110,\"\")","v":""},{"$f":"IF(DataLog!$C110=\"Log value\",DataLog!M110,\"\")","v":""},{"$f":"IF(DataLog!$C110=\"Log value\",DataLog!N110,\"\")","v":""},{"$f":"IF(DataLog!$C110=\"Log value\",DataLog!O110,\"\")","v":""},{"$f":"IF(DataLog!$C110=\"Log value\",DataLog!P110,\"\")","v":""},{"$f":"IF(DataLog!$C110=\"Log value\",DataLog!Q110,\"\")","v":""},{"$f":"IF(DataLog!$C110=\"Log value\",DataLog!R110,\"\")","v":""},{"$f":"IF(DataLog!$C110=\"Log value\",DataLog!S110,\"\")","v":""},{"$f":"IF(DataLog!$C110=\"Log value\",DataLog!T110,\"\")","v":""},{"$f":"IF(DataLog!$C110=\"Log value\",DataLog!U110,\"\")","v":""},{"$f":"IF(DataLog!$C110=\"Log value\",DataLog!V110,\"\")","v":""},{"$f":"IF(DataLog!$C110=\"Log value\",DataLog!W110,\"\")","v":""},{"$f":"IF(DataLog!$C110=\"Log value\",DataLog!X110,\"\")","v":""},{"$f":"IF(DataLog!$C110=\"Log value\",DataLog!Y110,\"\")","v":""},{"$f":"IF(DataLog!$C110=\"Log value\",DataLog!Z110,\"\")","v":""},{"$f":"IF(DataLog!$C110=\"Log value\",DataLog!AA110,\"\")","v":""},{"$f":"IF(DataLog!$C110=\"Log value\",DataLog!AB110,\"\")","v":""},{"$f":"IF(DataLog!$C110=\"Log value\",DataLog!AC110,\"\")","v":""},{"$f":"IF(DataLog!$C110=\"Log value\",DataLog!AD110,\"\")","v":""},{"$f":"IF(DataLog!$C110=\"Log value\",DataLog!AE110,\"\")","v":""},{"$f":"IF(DataLog!$C110=\"Log value\",DataLog!AF110,\"\")","v":""},{"$f":"IF(DataLog!$C110=\"Log value\",DataLog!AG110,\"\")","v":""},{"$f":"IF(DataLog!$C110=\"Log value\",DataLog!AH110,\"\")","v":""},{"$f":"IF(DataLog!$C110=\"Log value\",DataLog!AI110,\"\")","v":""},{"$f":"IF(DataLog!$C110=\"Log value\",DataLog!AJ110,\"\")","v":""},{"$f":"IF(DataLog!$C110=\"Log value\",DataLog!AK110,\"\")","v":""},{"$f":"IF(DataLog!$C110=\"Log value\",DataLog!AL110,\"\")","v":""},{"$f":"IF(DataLog!$C110=\"Log value\",DataLog!AM110,\"\")","v":""}]
[null,null,"Standard","Standard -  - ",null,null,{"$f":"IF(DataLog!$C111=\"Log value\",DataLog!D111&\"_\"&TEXT(DataLog!B111,\"åååå-mm-dd\"),\"\")","v":""},{"$f":"IF(DataLog!$C111=\"Log value\",DataLog!E111,\"\")","v":""},{"$f":"IF(DataLog!$C111=\"Log value\",DataLog!F111,\"\")","v":""},{"$f":"IF(DataLog!$C111=\"Log value\",DataLog!G111,\"\")","v":""},{"$f":"IF(DataLog!$C111=\"Log value\",DataLog!H111,\"\")","v":""},{"$f":"IF(DataLog!$C111=\"Log value\",DataLog!I111,\"\")","v":""},{"$f":"IF(DataLog!$C111=\"Log value\",DataLog!J111,\"\")","v":""},{"$f":"IF(DataLog!$C111=\"Log value\",DataLog!K111,\"\")","v":""},{"$f":"IF(DataLog!$C111=\"Log value\",DataLog!L111,\"\")","v":""},{"$f":"IF(DataLog!$C111=\"Log value\",DataLog!M111,\"\")","v":""},{"$f":"IF(DataLog!$C111=\"Log value\",DataLog!N111,\"\")","v":""},{"$f":"IF(DataLog!$C111=\"Log value\",DataLog!O111,\"\")","v":""},{"$f":"IF(DataLog!$C111=\"Log value\",DataLog!P111,\"\")","v":""},{"$f":"IF(DataLog!$C111=\"Log value\",DataLog!Q111,\"\")","v":""},{"$f":"IF(DataLog!$C111=\"Log value\",DataLog!R111,\"\")","v":""},{"$f":"IF(DataLog!$C111=\"Log value\",DataLog!S111,\"\")","v":""},{"$f":"IF(DataLog!$C111=\"Log value\",DataLog!T111,\"\")","v":""},{"$f":"IF(DataLog!$C111=\"Log value\",DataLog!U111,\"\")","v":""},{"$f":"IF(DataLog!$C111=\"Log value\",DataLog!V111,\"\")","v":""},{"$f":"IF(DataLog!$C111=\"Log value\",DataLog!W111,\"\")","v":""},{"$f":"IF(DataLog!$C111=\"Log value\",DataLog!X111,\"\")","v":""},{"$f":"IF(DataLog!$C111=\"Log value\",DataLog!Y111,\"\")","v":""},{"$f":"IF(DataLog!$C111=\"Log value\",DataLog!Z111,\"\")","v":""},{"$f":"IF(DataLog!$C111=\"Log value\",DataLog!AA111,\"\")","v":""},{"$f":"IF(DataLog!$C111=\"Log value\",DataLog!AB111,\"\")","v":""},{"$f":"IF(DataLog!$C111=\"Log value\",DataLog!AC111,\"\")","v":""},{"$f":"IF(DataLog!$C111=\"Log value\",DataLog!AD111,\"\")","v":""},{"$f":"IF(DataLog!$C111=\"Log value\",DataLog!AE111,\"\")","v":""},{"$f":"IF(DataLog!$C111=\"Log value\",DataLog!AF111,\"\")","v":""},{"$f":"IF(DataLog!$C111=\"Log value\",DataLog!AG111,\"\")","v":""},{"$f":"IF(DataLog!$C111=\"Log value\",DataLog!AH111,\"\")","v":""},{"$f":"IF(DataLog!$C111=\"Log value\",DataLog!AI111,\"\")","v":""},{"$f":"IF(DataLog!$C111=\"Log value\",DataLog!AJ111,\"\")","v":""},{"$f":"IF(DataLog!$C111=\"Log value\",DataLog!AK111,\"\")","v":""},{"$f":"IF(DataLog!$C111=\"Log value\",DataLog!AL111,\"\")","v":""},{"$f":"IF(DataLog!$C111=\"Log value\",DataLog!AM111,\"\")","v":""}]
[null,null,"Standard","Standard -  - ",null,null,{"$f":"IF(DataLog!$C112=\"Log value\",DataLog!D112&\"_\"&TEXT(DataLog!B112,\"åååå-mm-dd\"),\"\")","v":""},{"$f":"IF(DataLog!$C112=\"Log value\",DataLog!E112,\"\")","v":""},{"$f":"IF(DataLog!$C112=\"Log value\",DataLog!F112,\"\")","v":""},{"$f":"IF(DataLog!$C112=\"Log value\",DataLog!G112,\"\")","v":""},{"$f":"IF(DataLog!$C112=\"Log value\",DataLog!H112,\"\")","v":""},{"$f":"IF(DataLog!$C112=\"Log value\",DataLog!I112,\"\")","v":""},{"$f":"IF(DataLog!$C112=\"Log value\",DataLog!J112,\"\")","v":""},{"$f":"IF(DataLog!$C112=\"Log value\",DataLog!K112,\"\")","v":""},{"$f":"IF(DataLog!$C112=\"Log value\",DataLog!L112,\"\")","v":""},{"$f":"IF(DataLog!$C112=\"Log value\",DataLog!M112,\"\")","v":""},{"$f":"IF(DataLog!$C112=\"Log value\",DataLog!N112,\"\")","v":""},{"$f":"IF(DataLog!$C112=\"Log value\",DataLog!O112,\"\")","v":""},{"$f":"IF(DataLog!$C112=\"Log value\",DataLog!P112,\"\")","v":""},{"$f":"IF(DataLog!$C112=\"Log value\",DataLog!Q112,\"\")","v":""},{"$f":"IF(DataLog!$C112=\"Log value\",DataLog!R112,\"\")","v":""},{"$f":"IF(DataLog!$C112=\"Log value\",DataLog!S112,\"\")","v":""},{"$f":"IF(DataLog!$C112=\"Log value\",DataLog!T112,\"\")","v":""},{"$f":"IF(DataLog!$C112=\"Log value\",DataLog!U112,\"\")","v":""},{"$f":"IF(DataLog!$C112=\"Log value\",DataLog!V112,\"\")","v":""},{"$f":"IF(DataLog!$C112=\"Log value\",DataLog!W112,\"\")","v":""},{"$f":"IF(DataLog!$C112=\"Log value\",DataLog!X112,\"\")","v":""},{"$f":"IF(DataLog!$C112=\"Log value\",DataLog!Y112,\"\")","v":""},{"$f":"IF(DataLog!$C112=\"Log value\",DataLog!Z112,\"\")","v":""},{"$f":"IF(DataLog!$C112=\"Log value\",DataLog!AA112,\"\")","v":""},{"$f":"IF(DataLog!$C112=\"Log value\",DataLog!AB112,\"\")","v":""},{"$f":"IF(DataLog!$C112=\"Log value\",DataLog!AC112,\"\")","v":""},{"$f":"IF(DataLog!$C112=\"Log value\",DataLog!AD112,\"\")","v":""},{"$f":"IF(DataLog!$C112=\"Log value\",DataLog!AE112,\"\")","v":""},{"$f":"IF(DataLog!$C112=\"Log value\",DataLog!AF112,\"\")","v":""},{"$f":"IF(DataLog!$C112=\"Log value\",DataLog!AG112,\"\")","v":""},{"$f":"IF(DataLog!$C112=\"Log value\",DataLog!AH112,\"\")","v":""},{"$f":"IF(DataLog!$C112=\"Log value\",DataLog!AI112,\"\")","v":""},{"$f":"IF(DataLog!$C112=\"Log value\",DataLog!AJ112,\"\")","v":""},{"$f":"IF(DataLog!$C112=\"Log value\",DataLog!AK112,\"\")","v":""},{"$f":"IF(DataLog!$C112=\"Log value\",DataLog!AL112,\"\")","v":""},{"$f":"IF(DataLog!$C112=\"Log value\",DataLog!AM112,\"\")","v":""}]
[null,null,"Standard","Standard -  - ",null,null,{"$f":"IF(DataLog!$C113=\"Log value\",DataLog!D113&\"_\"&TEXT(DataLog!B113,\"åååå-mm-dd\"),\"\")","v":""},{"$f":"IF(DataLog!$C113=\"Log value\",DataLog!E113,\"\")","v":""},{"$f":"IF(DataLog!$C113=\"Log value\",DataLog!F113,\"\")","v":""},{"$f":"IF(DataLog!$C113=\"Log value\",DataLog!G113,\"\")","v":""},{"$f":"IF(DataLog!$C113=\"Log value\",DataLog!H113,\"\")","v":""},{"$f":"IF(DataLog!$C113=\"Log value\",DataLog!I113,\"\")","v":""},{"$f":"IF(DataLog!$C113=\"Log value\",DataLog!J113,\"\")","v":""},{"$f":"IF(DataLog!$C113=\"Log value\",DataLog!K113,\"\")","v":""},{"$f":"IF(DataLog!$C113=\"Log value\",DataLog!L113,\"\")","v":""},{"$f":"IF(DataLog!$C113=\"Log value\",DataLog!M113,\"\")","v":""},{"$f":"IF(DataLog!$C113=\"Log value\",DataLog!N113,\"\")","v":""},{"$f":"IF(DataLog!$C113=\"Log value\",DataLog!O113,\"\")","v":""},{"$f":"IF(DataLog!$C113=\"Log value\",DataLog!P113,\"\")","v":""},{"$f":"IF(DataLog!$C113=\"Log value\",DataLog!Q113,\"\")","v":""},{"$f":"IF(DataLog!$C113=\"Log value\",DataLog!R113,\"\")","v":""},{"$f":"IF(DataLog!$C113=\"Log value\",DataLog!S113,\"\")","v":""},{"$f":"IF(DataLog!$C113=\"Log value\",DataLog!T113,\"\")","v":""},{"$f":"IF(DataLog!$C113=\"Log value\",DataLog!U113,\"\")","v":""},{"$f":"IF(DataLog!$C113=\"Log value\",DataLog!V113,\"\")","v":""},{"$f":"IF(DataLog!$C113=\"Log value\",DataLog!W113,\"\")","v":""},{"$f":"IF(DataLog!$C113=\"Log value\",DataLog!X113,\"\")","v":""},{"$f":"IF(DataLog!$C113=\"Log value\",DataLog!Y113,\"\")","v":""},{"$f":"IF(DataLog!$C113=\"Log value\",DataLog!Z113,\"\")","v":""},{"$f":"IF(DataLog!$C113=\"Log value\",DataLog!AA113,\"\")","v":""},{"$f":"IF(DataLog!$C113=\"Log value\",DataLog!AB113,\"\")","v":""},{"$f":"IF(DataLog!$C113=\"Log value\",DataLog!AC113,\"\")","v":""},{"$f":"IF(DataLog!$C113=\"Log value\",DataLog!AD113,\"\")","v":""},{"$f":"IF(DataLog!$C113=\"Log value\",DataLog!AE113,\"\")","v":""},{"$f":"IF(DataLog!$C113=\"Log value\",DataLog!AF113,\"\")","v":""},{"$f":"IF(DataLog!$C113=\"Log value\",DataLog!AG113,\"\")","v":""},{"$f":"IF(DataLog!$C113=\"Log value\",DataLog!AH113,\"\")","v":""},{"$f":"IF(DataLog!$C113=\"Log value\",DataLog!AI113,\"\")","v":""},{"$f":"IF(DataLog!$C113=\"Log value\",DataLog!AJ113,\"\")","v":""},{"$f":"IF(DataLog!$C113=\"Log value\",DataLog!AK113,\"\")","v":""},{"$f":"IF(DataLog!$C113=\"Log value\",DataLog!AL113,\"\")","v":""},{"$f":"IF(DataLog!$C113=\"Log value\",DataLog!AM113,\"\")","v":""}]
[null,null,"Standard","Standard -  - ",null,null,{"$f":"IF(DataLog!$C114=\"Log value\",DataLog!D114&\"_\"&TEXT(DataLog!B114,\"åååå-mm-dd\"),\"\")","v":""},{"$f":"IF(DataLog!$C114=\"Log value\",DataLog!E114,\"\")","v":""},{"$f":"IF(DataLog!$C114=\"Log value\",DataLog!F114,\"\")","v":""},{"$f":"IF(DataLog!$C114=\"Log value\",DataLog!G114,\"\")","v":""},{"$f":"IF(DataLog!$C114=\"Log value\",DataLog!H114,\"\")","v":""},{"$f":"IF(DataLog!$C114=\"Log value\",DataLog!I114,\"\")","v":""},{"$f":"IF(DataLog!$C114=\"Log value\",DataLog!J114,\"\")","v":""},{"$f":"IF(DataLog!$C114=\"Log value\",DataLog!K114,\"\")","v":""},{"$f":"IF(DataLog!$C114=\"Log value\",DataLog!L114,\"\")","v":""},{"$f":"IF(DataLog!$C114=\"Log value\",DataLog!M114,\"\")","v":""},{"$f":"IF(DataLog!$C114=\"Log value\",DataLog!N114,\"\")","v":""},{"$f":"IF(DataLog!$C114=\"Log value\",DataLog!O114,\"\")","v":""},{"$f":"IF(DataLog!$C114=\"Log value\",DataLog!P114,\"\")","v":""},{"$f":"IF(DataLog!$C114=\"Log value\",DataLog!Q114,\"\")","v":""},{"$f":"IF(DataLog!$C114=\"Log value\",DataLog!R114,\"\")","v":""},{"$f":"IF(DataLog!$C114=\"Log value\",DataLog!S114,\"\")","v":""},{"$f":"IF(DataLog!$C114=\"Log value\",DataLog!T114,\"\")","v":""},{"$f":"IF(DataLog!$C114=\"Log value\",DataLog!U114,\"\")","v":""},{"$f":"IF(DataLog!$C114=\"Log value\",DataLog!V114,\"\")","v":""},{"$f":"IF(DataLog!$C114=\"Log value\",DataLog!W114,\"\")","v":""},{"$f":"IF(DataLog!$C114=\"Log value\",DataLog!X114,\"\")","v":""},{"$f":"IF(DataLog!$C114=\"Log value\",DataLog!Y114,\"\")","v":""},{"$f":"IF(DataLog!$C114=\"Log value\",DataLog!Z114,\"\")","v":""},{"$f":"IF(DataLog!$C114=\"Log value\",DataLog!AA114,\"\")","v":""},{"$f":"IF(DataLog!$C114=\"Log value\",DataLog!AB114,\"\")","v":""},{"$f":"IF(DataLog!$C114=\"Log value\",DataLog!AC114,\"\")","v":""},{"$f":"IF(DataLog!$C114=\"Log value\",DataLog!AD114,\"\")","v":""},{"$f":"IF(DataLog!$C114=\"Log value\",DataLog!AE114,\"\")","v":""},{"$f":"IF(DataLog!$C114=\"Log value\",DataLog!AF114,\"\")","v":""},{"$f":"IF(DataLog!$C114=\"Log value\",DataLog!AG114,\"\")","v":""},{"$f":"IF(DataLog!$C114=\"Log value\",DataLog!AH114,\"\")","v":""},{"$f":"IF(DataLog!$C114=\"Log value\",DataLog!AI114,\"\")","v":""},{"$f":"IF(DataLog!$C114=\"Log value\",DataLog!AJ114,\"\")","v":""},{"$f":"IF(DataLog!$C114=\"Log value\",DataLog!AK114,\"\")","v":""},{"$f":"IF(DataLog!$C114=\"Log value\",DataLog!AL114,\"\")","v":""},{"$f":"IF(DataLog!$C114=\"Log value\",DataLog!AM114,\"\")","v":""}]
[null,null,"Standard","Standard -  - ",null,null,{"$f":"IF(DataLog!$C115=\"Log value\",DataLog!D115&\"_\"&TEXT(DataLog!B115,\"åååå-mm-dd\"),\"\")","v":""},{"$f":"IF(DataLog!$C115=\"Log value\",DataLog!E115,\"\")","v":""},{"$f":"IF(DataLog!$C115=\"Log value\",DataLog!F115,\"\")","v":""},{"$f":"IF(DataLog!$C115=\"Log value\",DataLog!G115,\"\")","v":""},{"$f":"IF(DataLog!$C115=\"Log value\",DataLog!H115,\"\")","v":""},{"$f":"IF(DataLog!$C115=\"Log value\",DataLog!I115,\"\")","v":""},{"$f":"IF(DataLog!$C115=\"Log value\",DataLog!J115,\"\")","v":""},{"$f":"IF(DataLog!$C115=\"Log value\",DataLog!K115,\"\")","v":""},{"$f":"IF(DataLog!$C115=\"Log value\",DataLog!L115,\"\")","v":""},{"$f":"IF(DataLog!$C115=\"Log value\",DataLog!M115,\"\")","v":""},{"$f":"IF(DataLog!$C115=\"Log value\",DataLog!N115,\"\")","v":""},{"$f":"IF(DataLog!$C115=\"Log value\",DataLog!O115,\"\")","v":""},{"$f":"IF(DataLog!$C115=\"Log value\",DataLog!P115,\"\")","v":""},{"$f":"IF(DataLog!$C115=\"Log value\",DataLog!Q115,\"\")","v":""},{"$f":"IF(DataLog!$C115=\"Log value\",DataLog!R115,\"\")","v":""},{"$f":"IF(DataLog!$C115=\"Log value\",DataLog!S115,\"\")","v":""},{"$f":"IF(DataLog!$C115=\"Log value\",DataLog!T115,\"\")","v":""},{"$f":"IF(DataLog!$C115=\"Log value\",DataLog!U115,\"\")","v":""},{"$f":"IF(DataLog!$C115=\"Log value\",DataLog!V115,\"\")","v":""},{"$f":"IF(DataLog!$C115=\"Log value\",DataLog!W115,\"\")","v":""},{"$f":"IF(DataLog!$C115=\"Log value\",DataLog!X115,\"\")","v":""},{"$f":"IF(DataLog!$C115=\"Log value\",DataLog!Y115,\"\")","v":""},{"$f":"IF(DataLog!$C115=\"Log value\",DataLog!Z115,\"\")","v":""},{"$f":"IF(DataLog!$C115=\"Log value\",DataLog!AA115,\"\")","v":""},{"$f":"IF(DataLog!$C115=\"Log value\",DataLog!AB115,\"\")","v":""},{"$f":"IF(DataLog!$C115=\"Log value\",DataLog!AC115,\"\")","v":""},{"$f":"IF(DataLog!$C115=\"Log value\",DataLog!AD115,\"\")","v":""},{"$f":"IF(DataLog!$C115=\"Log value\",DataLog!AE115,\"\")","v":""},{"$f":"IF(DataLog!$C115=\"Log value\",DataLog!AF115,\"\")","v":""},{"$f":"IF(DataLog!$C115=\"Log value\",DataLog!AG115,\"\")","v":""},{"$f":"IF(DataLog!$C115=\"Log value\",DataLog!AH115,\"\")","v":""},{"$f":"IF(DataLog!$C115=\"Log value\",DataLog!AI115,\"\")","v":""},{"$f":"IF(DataLog!$C115=\"Log value\",DataLog!AJ115,\"\")","v":""},{"$f":"IF(DataLog!$C115=\"Log value\",DataLog!AK115,\"\")","v":""},{"$f":"IF(DataLog!$C115=\"Log value\",DataLog!AL115,\"\")","v":""},{"$f":"IF(DataLog!$C115=\"Log value\",DataLog!AM115,\"\")","v":""}]
[null,null,"Standard","Standard -  - ",null,null,{"$f":"IF(DataLog!$C116=\"Log value\",DataLog!D116&\"_\"&TEXT(DataLog!B116,\"åååå-mm-dd\"),\"\")","v":""},{"$f":"IF(DataLog!$C116=\"Log value\",DataLog!E116,\"\")","v":""},{"$f":"IF(DataLog!$C116=\"Log value\",DataLog!F116,\"\")","v":""},{"$f":"IF(DataLog!$C116=\"Log value\",DataLog!G116,\"\")","v":""},{"$f":"IF(DataLog!$C116=\"Log value\",DataLog!H116,\"\")","v":""},{"$f":"IF(DataLog!$C116=\"Log value\",DataLog!I116,\"\")","v":""},{"$f":"IF(DataLog!$C116=\"Log value\",DataLog!J116,\"\")","v":""},{"$f":"IF(DataLog!$C116=\"Log value\",DataLog!K116,\"\")","v":""},{"$f":"IF(DataLog!$C116=\"Log value\",DataLog!L116,\"\")","v":""},{"$f":"IF(DataLog!$C116=\"Log value\",DataLog!M116,\"\")","v":""},{"$f":"IF(DataLog!$C116=\"Log value\",DataLog!N116,\"\")","v":""},{"$f":"IF(DataLog!$C116=\"Log value\",DataLog!O116,\"\")","v":""},{"$f":"IF(DataLog!$C116=\"Log value\",DataLog!P116,\"\")","v":""},{"$f":"IF(DataLog!$C116=\"Log value\",DataLog!Q116,\"\")","v":""},{"$f":"IF(DataLog!$C116=\"Log value\",DataLog!R116,\"\")","v":""},{"$f":"IF(DataLog!$C116=\"Log value\",DataLog!S116,\"\")","v":""},{"$f":"IF(DataLog!$C116=\"Log value\",DataLog!T116,\"\")","v":""},{"$f":"IF(DataLog!$C116=\"Log value\",DataLog!U116,\"\")","v":""},{"$f":"IF(DataLog!$C116=\"Log value\",DataLog!V116,\"\")","v":""},{"$f":"IF(DataLog!$C116=\"Log value\",DataLog!W116,\"\")","v":""},{"$f":"IF(DataLog!$C116=\"Log value\",DataLog!X116,\"\")","v":""},{"$f":"IF(DataLog!$C116=\"Log value\",DataLog!Y116,\"\")","v":""},{"$f":"IF(DataLog!$C116=\"Log value\",DataLog!Z116,\"\")","v":""},{"$f":"IF(DataLog!$C116=\"Log value\",DataLog!AA116,\"\")","v":""},{"$f":"IF(DataLog!$C116=\"Log value\",DataLog!AB116,\"\")","v":""},{"$f":"IF(DataLog!$C116=\"Log value\",DataLog!AC116,\"\")","v":""},{"$f":"IF(DataLog!$C116=\"Log value\",DataLog!AD116,\"\")","v":""},{"$f":"IF(DataLog!$C116=\"Log value\",DataLog!AE116,\"\")","v":""},{"$f":"IF(DataLog!$C116=\"Log value\",DataLog!AF116,\"\")","v":""},{"$f":"IF(DataLog!$C116=\"Log value\",DataLog!AG116,\"\")","v":""},{"$f":"IF(DataLog!$C116=\"Log value\",DataLog!AH116,\"\")","v":""},{"$f":"IF(DataLog!$C116=\"Log value\",DataLog!AI116,\"\")","v":""},{"$f":"IF(DataLog!$C116=\"Log value\",DataLog!AJ116,\"\")","v":""},{"$f":"IF(DataLog!$C116=\"Log value\",DataLog!AK116,\"\")","v":""},{"$f":"IF(DataLog!$C116=\"Log value\",DataLog!AL116,\"\")","v":""},{"$f":"IF(DataLog!$C116=\"Log value\",DataLog!AM116,\"\")","v":""}]
[null,null,"Standard","Standard -  - ",null,null,{"$f":"IF(DataLog!$C117=\"Log value\",DataLog!D117&\"_\"&TEXT(DataLog!B117,\"åååå-mm-dd\"),\"\")","v":""},{"$f":"IF(DataLog!$C117=\"Log value\",DataLog!E117,\"\")","v":""},{"$f":"IF(DataLog!$C117=\"Log value\",DataLog!F117,\"\")","v":""},{"$f":"IF(DataLog!$C117=\"Log value\",DataLog!G117,\"\")","v":""},{"$f":"IF(DataLog!$C117=\"Log value\",DataLog!H117,\"\")","v":""},{"$f":"IF(DataLog!$C117=\"Log value\",DataLog!I117,\"\")","v":""},{"$f":"IF(DataLog!$C117=\"Log value\",DataLog!J117,\"\")","v":""},{"$f":"IF(DataLog!$C117=\"Log value\",DataLog!K117,\"\")","v":""},{"$f":"IF(DataLog!$C117=\"Log value\",DataLog!L117,\"\")","v":""},{"$f":"IF(DataLog!$C117=\"Log value\",DataLog!M117,\"\")","v":""},{"$f":"IF(DataLog!$C117=\"Log value\",DataLog!N117,\"\")","v":""},{"$f":"IF(DataLog!$C117=\"Log value\",DataLog!O117,\"\")","v":""},{"$f":"IF(DataLog!$C117=\"Log value\",DataLog!P117,\"\")","v":""},{"$f":"IF(DataLog!$C117=\"Log value\",DataLog!Q117,\"\")","v":""},{"$f":"IF(DataLog!$C117=\"Log value\",DataLog!R117,\"\")","v":""},{"$f":"IF(DataLog!$C117=\"Log value\",DataLog!S117,\"\")","v":""},{"$f":"IF(DataLog!$C117=\"Log value\",DataLog!T117,\"\")","v":""},{"$f":"IF(DataLog!$C117=\"Log value\",DataLog!U117,\"\")","v":""},{"$f":"IF(DataLog!$C117=\"Log value\",DataLog!V117,\"\")","v":""},{"$f":"IF(DataLog!$C117=\"Log value\",DataLog!W117,\"\")","v":""},{"$f":"IF(DataLog!$C117=\"Log value\",DataLog!X117,\"\")","v":""},{"$f":"IF(DataLog!$C117=\"Log value\",DataLog!Y117,\"\")","v":""},{"$f":"IF(DataLog!$C117=\"Log value\",DataLog!Z117,\"\")","v":""},{"$f":"IF(DataLog!$C117=\"Log value\",DataLog!AA117,\"\")","v":""},{"$f":"IF(DataLog!$C117=\"Log value\",DataLog!AB117,\"\")","v":""},{"$f":"IF(DataLog!$C117=\"Log value\",DataLog!AC117,\"\")","v":""},{"$f":"IF(DataLog!$C117=\"Log value\",DataLog!AD117,\"\")","v":""},{"$f":"IF(DataLog!$C117=\"Log value\",DataLog!AE117,\"\")","v":""},{"$f":"IF(DataLog!$C117=\"Log value\",DataLog!AF117,\"\")","v":""},{"$f":"IF(DataLog!$C117=\"Log value\",DataLog!AG117,\"\")","v":""},{"$f":"IF(DataLog!$C117=\"Log value\",DataLog!AH117,\"\")","v":""},{"$f":"IF(DataLog!$C117=\"Log value\",DataLog!AI117,\"\")","v":""},{"$f":"IF(DataLog!$C117=\"Log value\",DataLog!AJ117,\"\")","v":""},{"$f":"IF(DataLog!$C117=\"Log value\",DataLog!AK117,\"\")","v":""},{"$f":"IF(DataLog!$C117=\"Log value\",DataLog!AL117,\"\")","v":""},{"$f":"IF(DataLog!$C117=\"Log value\",DataLog!AM117,\"\")","v":""}]
[null,null,"Standard","Standard -  - ",null,null,{"$f":"IF(DataLog!$C118=\"Log value\",DataLog!D118&\"_\"&TEXT(DataLog!B118,\"åååå-mm-dd\"),\"\")","v":""},{"$f":"IF(DataLog!$C118=\"Log value\",DataLog!E118,\"\")","v":""},{"$f":"IF(DataLog!$C118=\"Log value\",DataLog!F118,\"\")","v":""},{"$f":"IF(DataLog!$C118=\"Log value\",DataLog!G118,\"\")","v":""},{"$f":"IF(DataLog!$C118=\"Log value\",DataLog!H118,\"\")","v":""},{"$f":"IF(DataLog!$C118=\"Log value\",DataLog!I118,\"\")","v":""},{"$f":"IF(DataLog!$C118=\"Log value\",DataLog!J118,\"\")","v":""},{"$f":"IF(DataLog!$C118=\"Log value\",DataLog!K118,\"\")","v":""},{"$f":"IF(DataLog!$C118=\"Log value\",DataLog!L118,\"\")","v":""},{"$f":"IF(DataLog!$C118=\"Log value\",DataLog!M118,\"\")","v":""},{"$f":"IF(DataLog!$C118=\"Log value\",DataLog!N118,\"\")","v":""},{"$f":"IF(DataLog!$C118=\"Log value\",DataLog!O118,\"\")","v":""},{"$f":"IF(DataLog!$C118=\"Log value\",DataLog!P118,\"\")","v":""},{"$f":"IF(DataLog!$C118=\"Log value\",DataLog!Q118,\"\")","v":""},{"$f":"IF(DataLog!$C118=\"Log value\",DataLog!R118,\"\")","v":""},{"$f":"IF(DataLog!$C118=\"Log value\",DataLog!S118,\"\")","v":""},{"$f":"IF(DataLog!$C118=\"Log value\",DataLog!T118,\"\")","v":""},{"$f":"IF(DataLog!$C118=\"Log value\",DataLog!U118,\"\")","v":""},{"$f":"IF(DataLog!$C118=\"Log value\",DataLog!V118,\"\")","v":""},{"$f":"IF(DataLog!$C118=\"Log value\",DataLog!W118,\"\")","v":""},{"$f":"IF(DataLog!$C118=\"Log value\",DataLog!X118,\"\")","v":""},{"$f":"IF(DataLog!$C118=\"Log value\",DataLog!Y118,\"\")","v":""},{"$f":"IF(DataLog!$C118=\"Log value\",DataLog!Z118,\"\")","v":""},{"$f":"IF(DataLog!$C118=\"Log value\",DataLog!AA118,\"\")","v":""},{"$f":"IF(DataLog!$C118=\"Log value\",DataLog!AB118,\"\")","v":""},{"$f":"IF(DataLog!$C118=\"Log value\",DataLog!AC118,\"\")","v":""},{"$f":"IF(DataLog!$C118=\"Log value\",DataLog!AD118,\"\")","v":""},{"$f":"IF(DataLog!$C118=\"Log value\",DataLog!AE118,\"\")","v":""},{"$f":"IF(DataLog!$C118=\"Log value\",DataLog!AF118,\"\")","v":""},{"$f":"IF(DataLog!$C118=\"Log value\",DataLog!AG118,\"\")","v":""},{"$f":"IF(DataLog!$C118=\"Log value\",DataLog!AH118,\"\")","v":""},{"$f":"IF(DataLog!$C118=\"Log value\",DataLog!AI118,\"\")","v":""},{"$f":"IF(DataLog!$C118=\"Log value\",DataLog!AJ118,\"\")","v":""},{"$f":"IF(DataLog!$C118=\"Log value\",DataLog!AK118,\"\")","v":""},{"$f":"IF(DataLog!$C118=\"Log value\",DataLog!AL118,\"\")","v":""},{"$f":"IF(DataLog!$C118=\"Log value\",DataLog!AM118,\"\")","v":""}]
[null,null,"Standard","Standard -  - ",null,null,{"$f":"IF(DataLog!$C119=\"Log value\",DataLog!D119&\"_\"&TEXT(DataLog!B119,\"åååå-mm-dd\"),\"\")","v":""},{"$f":"IF(DataLog!$C119=\"Log value\",DataLog!E119,\"\")","v":""},{"$f":"IF(DataLog!$C119=\"Log value\",DataLog!F119,\"\")","v":""},{"$f":"IF(DataLog!$C119=\"Log value\",DataLog!G119,\"\")","v":""},{"$f":"IF(DataLog!$C119=\"Log value\",DataLog!H119,\"\")","v":""},{"$f":"IF(DataLog!$C119=\"Log value\",DataLog!I119,\"\")","v":""},{"$f":"IF(DataLog!$C119=\"Log value\",DataLog!J119,\"\")","v":""},{"$f":"IF(DataLog!$C119=\"Log value\",DataLog!K119,\"\")","v":""},{"$f":"IF(DataLog!$C119=\"Log value\",DataLog!L119,\"\")","v":""},{"$f":"IF(DataLog!$C119=\"Log value\",DataLog!M119,\"\")","v":""},{"$f":"IF(DataLog!$C119=\"Log value\",DataLog!N119,\"\")","v":""},{"$f":"IF(DataLog!$C119=\"Log value\",DataLog!O119,\"\")","v":""},{"$f":"IF(DataLog!$C119=\"Log value\",DataLog!P119,\"\")","v":""},{"$f":"IF(DataLog!$C119=\"Log value\",DataLog!Q119,\"\")","v":""},{"$f":"IF(DataLog!$C119=\"Log value\",DataLog!R119,\"\")","v":""},{"$f":"IF(DataLog!$C119=\"Log value\",DataLog!S119,\"\")","v":""},{"$f":"IF(DataLog!$C119=\"Log value\",DataLog!T119,\"\")","v":""},{"$f":"IF(DataLog!$C119=\"Log value\",DataLog!U119,\"\")","v":""},{"$f":"IF(DataLog!$C119=\"Log value\",DataLog!V119,\"\")","v":""},{"$f":"IF(DataLog!$C119=\"Log value\",DataLog!W119,\"\")","v":""},{"$f":"IF(DataLog!$C119=\"Log value\",DataLog!X119,\"\")","v":""},{"$f":"IF(DataLog!$C119=\"Log value\",DataLog!Y119,\"\")","v":""},{"$f":"IF(DataLog!$C119=\"Log value\",DataLog!Z119,\"\")","v":""},{"$f":"IF(DataLog!$C119=\"Log value\",DataLog!AA119,\"\")","v":""},{"$f":"IF(DataLog!$C119=\"Log value\",DataLog!AB119,\"\")","v":""},{"$f":"IF(DataLog!$C119=\"Log value\",DataLog!AC119,\"\")","v":""},{"$f":"IF(DataLog!$C119=\"Log value\",DataLog!AD119,\"\")","v":""},{"$f":"IF(DataLog!$C119=\"Log value\",DataLog!AE119,\"\")","v":""},{"$f":"IF(DataLog!$C119=\"Log value\",DataLog!AF119,\"\")","v":""},{"$f":"IF(DataLog!$C119=\"Log value\",DataLog!AG119,\"\")","v":""},{"$f":"IF(DataLog!$C119=\"Log value\",DataLog!AH119,\"\")","v":""},{"$f":"IF(DataLog!$C119=\"Log value\",DataLog!AI119,\"\")","v":""},{"$f":"IF(DataLog!$C119=\"Log value\",DataLog!AJ119,\"\")","v":""},{"$f":"IF(DataLog!$C119=\"Log value\",DataLog!AK119,\"\")","v":""},{"$f":"IF(DataLog!$C119=\"Log value\",DataLog!AL119,\"\")","v":""},{"$f":"IF(DataLog!$C119=\"Log value\",DataLog!AM119,\"\")","v":""}]
[null,null,"Standard","Standard -  - ",null,null,{"$f":"IF(DataLog!$C120=\"Log value\",DataLog!D120&\"_\"&TEXT(DataLog!B120,\"åååå-mm-dd\"),\"\")","v":""},{"$f":"IF(DataLog!$C120=\"Log value\",DataLog!E120,\"\")","v":""},{"$f":"IF(DataLog!$C120=\"Log value\",DataLog!F120,\"\")","v":""},{"$f":"IF(DataLog!$C120=\"Log value\",DataLog!G120,\"\")","v":""},{"$f":"IF(DataLog!$C120=\"Log value\",DataLog!H120,\"\")","v":""},{"$f":"IF(DataLog!$C120=\"Log value\",DataLog!I120,\"\")","v":""},{"$f":"IF(DataLog!$C120=\"Log value\",DataLog!J120,\"\")","v":""},{"$f":"IF(DataLog!$C120=\"Log value\",DataLog!K120,\"\")","v":""},{"$f":"IF(DataLog!$C120=\"Log value\",DataLog!L120,\"\")","v":""},{"$f":"IF(DataLog!$C120=\"Log value\",DataLog!M120,\"\")","v":""},{"$f":"IF(DataLog!$C120=\"Log value\",DataLog!N120,\"\")","v":""},{"$f":"IF(DataLog!$C120=\"Log value\",DataLog!O120,\"\")","v":""},{"$f":"IF(DataLog!$C120=\"Log value\",DataLog!P120,\"\")","v":""},{"$f":"IF(DataLog!$C120=\"Log value\",DataLog!Q120,\"\")","v":""},{"$f":"IF(DataLog!$C120=\"Log value\",DataLog!R120,\"\")","v":""},{"$f":"IF(DataLog!$C120=\"Log value\",DataLog!S120,\"\")","v":""},{"$f":"IF(DataLog!$C120=\"Log value\",DataLog!T120,\"\")","v":""},{"$f":"IF(DataLog!$C120=\"Log value\",DataLog!U120,\"\")","v":""},{"$f":"IF(DataLog!$C120=\"Log value\",DataLog!V120,\"\")","v":""},{"$f":"IF(DataLog!$C120=\"Log value\",DataLog!W120,\"\")","v":""},{"$f":"IF(DataLog!$C120=\"Log value\",DataLog!X120,\"\")","v":""},{"$f":"IF(DataLog!$C120=\"Log value\",DataLog!Y120,\"\")","v":""},{"$f":"IF(DataLog!$C120=\"Log value\",DataLog!Z120,\"\")","v":""},{"$f":"IF(DataLog!$C120=\"Log value\",DataLog!AA120,\"\")","v":""},{"$f":"IF(DataLog!$C120=\"Log value\",DataLog!AB120,\"\")","v":""},{"$f":"IF(DataLog!$C120=\"Log value\",DataLog!AC120,\"\")","v":""},{"$f":"IF(DataLog!$C120=\"Log value\",DataLog!AD120,\"\")","v":""},{"$f":"IF(DataLog!$C120=\"Log value\",DataLog!AE120,\"\")","v":""},{"$f":"IF(DataLog!$C120=\"Log value\",DataLog!AF120,\"\")","v":""},{"$f":"IF(DataLog!$C120=\"Log value\",DataLog!AG120,\"\")","v":""},{"$f":"IF(DataLog!$C120=\"Log value\",DataLog!AH120,\"\")","v":""},{"$f":"IF(DataLog!$C120=\"Log value\",DataLog!AI120,\"\")","v":""},{"$f":"IF(DataLog!$C120=\"Log value\",DataLog!AJ120,\"\")","v":""},{"$f":"IF(DataLog!$C120=\"Log value\",DataLog!AK120,\"\")","v":""},{"$f":"IF(DataLog!$C120=\"Log value\",DataLog!AL120,\"\")","v":""},{"$f":"IF(DataLog!$C120=\"Log value\",DataLog!AM120,\"\")","v":""}]
[null,null,"Standard","Standard -  - ",null,null,{"$f":"IF(DataLog!$C121=\"Log value\",DataLog!D121&\"_\"&TEXT(DataLog!B121,\"åååå-mm-dd\"),\"\")","v":""},{"$f":"IF(DataLog!$C121=\"Log value\",DataLog!E121,\"\")","v":""},{"$f":"IF(DataLog!$C121=\"Log value\",DataLog!F121,\"\")","v":""},{"$f":"IF(DataLog!$C121=\"Log value\",DataLog!G121,\"\")","v":""},{"$f":"IF(DataLog!$C121=\"Log value\",DataLog!H121,\"\")","v":""},{"$f":"IF(DataLog!$C121=\"Log value\",DataLog!I121,\"\")","v":""},{"$f":"IF(DataLog!$C121=\"Log value\",DataLog!J121,\"\")","v":""},{"$f":"IF(DataLog!$C121=\"Log value\",DataLog!K121,\"\")","v":""},{"$f":"IF(DataLog!$C121=\"Log value\",DataLog!L121,\"\")","v":""},{"$f":"IF(DataLog!$C121=\"Log value\",DataLog!M121,\"\")","v":""},{"$f":"IF(DataLog!$C121=\"Log value\",DataLog!N121,\"\")","v":""},{"$f":"IF(DataLog!$C121=\"Log value\",DataLog!O121,\"\")","v":""},{"$f":"IF(DataLog!$C121=\"Log value\",DataLog!P121,\"\")","v":""},{"$f":"IF(DataLog!$C121=\"Log value\",DataLog!Q121,\"\")","v":""},{"$f":"IF(DataLog!$C121=\"Log value\",DataLog!R121,\"\")","v":""},{"$f":"IF(DataLog!$C121=\"Log value\",DataLog!S121,\"\")","v":""},{"$f":"IF(DataLog!$C121=\"Log value\",DataLog!T121,\"\")","v":""},{"$f":"IF(DataLog!$C121=\"Log value\",DataLog!U121,\"\")","v":""},{"$f":"IF(DataLog!$C121=\"Log value\",DataLog!V121,\"\")","v":""},{"$f":"IF(DataLog!$C121=\"Log value\",DataLog!W121,\"\")","v":""},{"$f":"IF(DataLog!$C121=\"Log value\",DataLog!X121,\"\")","v":""},{"$f":"IF(DataLog!$C121=\"Log value\",DataLog!Y121,\"\")","v":""},{"$f":"IF(DataLog!$C121=\"Log value\",DataLog!Z121,\"\")","v":""},{"$f":"IF(DataLog!$C121=\"Log value\",DataLog!AA121,\"\")","v":""},{"$f":"IF(DataLog!$C121=\"Log value\",DataLog!AB121,\"\")","v":""},{"$f":"IF(DataLog!$C121=\"Log value\",DataLog!AC121,\"\")","v":""},{"$f":"IF(DataLog!$C121=\"Log value\",DataLog!AD121,\"\")","v":""},{"$f":"IF(DataLog!$C121=\"Log value\",DataLog!AE121,\"\")","v":""},{"$f":"IF(DataLog!$C121=\"Log value\",DataLog!AF121,\"\")","v":""},{"$f":"IF(DataLog!$C121=\"Log value\",DataLog!AG121,\"\")","v":""},{"$f":"IF(DataLog!$C121=\"Log value\",DataLog!AH121,\"\")","v":""},{"$f":"IF(DataLog!$C121=\"Log value\",DataLog!AI121,\"\")","v":""},{"$f":"IF(DataLog!$C121=\"Log value\",DataLog!AJ121,\"\")","v":""},{"$f":"IF(DataLog!$C121=\"Log value\",DataLog!AK121,\"\")","v":""},{"$f":"IF(DataLog!$C121=\"Log value\",DataLog!AL121,\"\")","v":""},{"$f":"IF(DataLog!$C121=\"Log value\",DataLog!AM121,\"\")","v":""}]
[null,null,"Standard","Standard -  - ",null,null,{"$f":"IF(DataLog!$C122=\"Log value\",DataLog!D122&\"_\"&TEXT(DataLog!B122,\"åååå-mm-dd\"),\"\")","v":""},{"$f":"IF(DataLog!$C122=\"Log value\",DataLog!E122,\"\")","v":""},{"$f":"IF(DataLog!$C122=\"Log value\",DataLog!F122,\"\")","v":""},{"$f":"IF(DataLog!$C122=\"Log value\",DataLog!G122,\"\")","v":""},{"$f":"IF(DataLog!$C122=\"Log value\",DataLog!H122,\"\")","v":""},{"$f":"IF(DataLog!$C122=\"Log value\",DataLog!I122,\"\")","v":""},{"$f":"IF(DataLog!$C122=\"Log value\",DataLog!J122,\"\")","v":""},{"$f":"IF(DataLog!$C122=\"Log value\",DataLog!K122,\"\")","v":""},{"$f":"IF(DataLog!$C122=\"Log value\",DataLog!L122,\"\")","v":""},{"$f":"IF(DataLog!$C122=\"Log value\",DataLog!M122,\"\")","v":""},{"$f":"IF(DataLog!$C122=\"Log value\",DataLog!N122,\"\")","v":""},{"$f":"IF(DataLog!$C122=\"Log value\",DataLog!O122,\"\")","v":""},{"$f":"IF(DataLog!$C122=\"Log value\",DataLog!P122,\"\")","v":""},{"$f":"IF(DataLog!$C122=\"Log value\",DataLog!Q122,\"\")","v":""},{"$f":"IF(DataLog!$C122=\"Log value\",DataLog!R122,\"\")","v":""},{"$f":"IF(DataLog!$C122=\"Log value\",DataLog!S122,\"\")","v":""},{"$f":"IF(DataLog!$C122=\"Log value\",DataLog!T122,\"\")","v":""},{"$f":"IF(DataLog!$C122=\"Log value\",DataLog!U122,\"\")","v":""},{"$f":"IF(DataLog!$C122=\"Log value\",DataLog!V122,\"\")","v":""},{"$f":"IF(DataLog!$C122=\"Log value\",DataLog!W122,\"\")","v":""},{"$f":"IF(DataLog!$C122=\"Log value\",DataLog!X122,\"\")","v":""},{"$f":"IF(DataLog!$C122=\"Log value\",DataLog!Y122,\"\")","v":""},{"$f":"IF(DataLog!$C122=\"Log value\",DataLog!Z122,\"\")","v":""},{"$f":"IF(DataLog!$C122=\"Log value\",DataLog!AA122,\"\")","v":""},{"$f":"IF(DataLog!$C122=\"Log value\",DataLog!AB122,\"\")","v":""},{"$f":"IF(DataLog!$C122=\"Log value\",DataLog!AC122,\"\")","v":""},{"$f":"IF(DataLog!$C122=\"Log value\",DataLog!AD122,\"\")","v":""},{"$f":"IF(DataLog!$C122=\"Log value\",DataLog!AE122,\"\")","v":""},{"$f":"IF(DataLog!$C122=\"Log value\",DataLog!AF122,\"\")","v":""},{"$f":"IF(DataLog!$C122=\"Log value\",DataLog!AG122,\"\")","v":""},{"$f":"IF(DataLog!$C122=\"Log value\",DataLog!AH122,\"\")","v":""},{"$f":"IF(DataLog!$C122=\"Log value\",DataLog!AI122,\"\")","v":""},{"$f":"IF(DataLog!$C122=\"Log value\",DataLog!AJ122,\"\")","v":""},{"$f":"IF(DataLog!$C122=\"Log value\",DataLog!AK122,\"\")","v":""},{"$f":"IF(DataLog!$C122=\"Log value\",DataLog!AL122,\"\")","v":""},{"$f":"IF(DataLog!$C122=\"Log value\",DataLog!AM122,\"\")","v":""}]
[null,null,"Standard","Standard -  - ",null,null,{"$f":"IF(DataLog!$C123=\"Log value\",DataLog!D123&\"_\"&TEXT(DataLog!B123,\"åååå-mm-dd\"),\"\")","v":""},{"$f":"IF(DataLog!$C123=\"Log value\",DataLog!E123,\"\")","v":""},{"$f":"IF(DataLog!$C123=\"Log value\",DataLog!F123,\"\")","v":""},{"$f":"IF(DataLog!$C123=\"Log value\",DataLog!G123,\"\")","v":""},{"$f":"IF(DataLog!$C123=\"Log value\",DataLog!H123,\"\")","v":""},{"$f":"IF(DataLog!$C123=\"Log value\",DataLog!I123,\"\")","v":""},{"$f":"IF(DataLog!$C123=\"Log value\",DataLog!J123,\"\")","v":""},{"$f":"IF(DataLog!$C123=\"Log value\",DataLog!K123,\"\")","v":""},{"$f":"IF(DataLog!$C123=\"Log value\",DataLog!L123,\"\")","v":""},{"$f":"IF(DataLog!$C123=\"Log value\",DataLog!M123,\"\")","v":""},{"$f":"IF(DataLog!$C123=\"Log value\",DataLog!N123,\"\")","v":""},{"$f":"IF(DataLog!$C123=\"Log value\",DataLog!O123,\"\")","v":""},{"$f":"IF(DataLog!$C123=\"Log value\",DataLog!P123,\"\")","v":""},{"$f":"IF(DataLog!$C123=\"Log value\",DataLog!Q123,\"\")","v":""},{"$f":"IF(DataLog!$C123=\"Log value\",DataLog!R123,\"\")","v":""},{"$f":"IF(DataLog!$C123=\"Log value\",DataLog!S123,\"\")","v":""},{"$f":"IF(DataLog!$C123=\"Log value\",DataLog!T123,\"\")","v":""},{"$f":"IF(DataLog!$C123=\"Log value\",DataLog!U123,\"\")","v":""},{"$f":"IF(DataLog!$C123=\"Log value\",DataLog!V123,\"\")","v":""},{"$f":"IF(DataLog!$C123=\"Log value\",DataLog!W123,\"\")","v":""},{"$f":"IF(DataLog!$C123=\"Log value\",DataLog!X123,\"\")","v":""},{"$f":"IF(DataLog!$C123=\"Log value\",DataLog!Y123,\"\")","v":""},{"$f":"IF(DataLog!$C123=\"Log value\",DataLog!Z123,\"\")","v":""},{"$f":"IF(DataLog!$C123=\"Log value\",DataLog!AA123,\"\")","v":""},{"$f":"IF(DataLog!$C123=\"Log value\",DataLog!AB123,\"\")","v":""},{"$f":"IF(DataLog!$C123=\"Log value\",DataLog!AC123,\"\")","v":""},{"$f":"IF(DataLog!$C123=\"Log value\",DataLog!AD123,\"\")","v":""},{"$f":"IF(DataLog!$C123=\"Log value\",DataLog!AE123,\"\")","v":""},{"$f":"IF(DataLog!$C123=\"Log value\",DataLog!AF123,\"\")","v":""},{"$f":"IF(DataLog!$C123=\"Log value\",DataLog!AG123,\"\")","v":""},{"$f":"IF(DataLog!$C123=\"Log value\",DataLog!AH123,\"\")","v":""},{"$f":"IF(DataLog!$C123=\"Log value\",DataLog!AI123,\"\")","v":""},{"$f":"IF(DataLog!$C123=\"Log value\",DataLog!AJ123,\"\")","v":""},{"$f":"IF(DataLog!$C123=\"Log value\",DataLog!AK123,\"\")","v":""},{"$f":"IF(DataLog!$C123=\"Log value\",DataLog!AL123,\"\")","v":""},{"$f":"IF(DataLog!$C123=\"Log value\",DataLog!AM123,\"\")","v":""}]
[null,null,"Standard","Standard -  - ",null,null,{"$f":"IF(DataLog!$C124=\"Log value\",DataLog!D124&\"_\"&TEXT(DataLog!B124,\"åååå-mm-dd\"),\"\")","v":""},{"$f":"IF(DataLog!$C124=\"Log value\",DataLog!E124,\"\")","v":""},{"$f":"IF(DataLog!$C124=\"Log value\",DataLog!F124,\"\")","v":""},{"$f":"IF(DataLog!$C124=\"Log value\",DataLog!G124,\"\")","v":""},{"$f":"IF(DataLog!$C124=\"Log value\",DataLog!H124,\"\")","v":""},{"$f":"IF(DataLog!$C124=\"Log value\",DataLog!I124,\"\")","v":""},{"$f":"IF(DataLog!$C124=\"Log value\",DataLog!J124,\"\")","v":""},{"$f":"IF(DataLog!$C124=\"Log value\",DataLog!K124,\"\")","v":""},{"$f":"IF(DataLog!$C124=\"Log value\",DataLog!L124,\"\")","v":""},{"$f":"IF(DataLog!$C124=\"Log value\",DataLog!M124,\"\")","v":""},{"$f":"IF(DataLog!$C124=\"Log value\",DataLog!N124,\"\")","v":""},{"$f":"IF(DataLog!$C124=\"Log value\",DataLog!O124,\"\")","v":""},{"$f":"IF(DataLog!$C124=\"Log value\",DataLog!P124,\"\")","v":""},{"$f":"IF(DataLog!$C124=\"Log value\",DataLog!Q124,\"\")","v":""},{"$f":"IF(DataLog!$C124=\"Log value\",DataLog!R124,\"\")","v":""},{"$f":"IF(DataLog!$C124=\"Log value\",DataLog!S124,\"\")","v":""},{"$f":"IF(DataLog!$C124=\"Log value\",DataLog!T124,\"\")","v":""},{"$f":"IF(DataLog!$C124=\"Log value\",DataLog!U124,\"\")","v":""},{"$f":"IF(DataLog!$C124=\"Log value\",DataLog!V124,\"\")","v":""},{"$f":"IF(DataLog!$C124=\"Log value\",DataLog!W124,\"\")","v":""},{"$f":"IF(DataLog!$C124=\"Log value\",DataLog!X124,\"\")","v":""},{"$f":"IF(DataLog!$C124=\"Log value\",DataLog!Y124,\"\")","v":""},{"$f":"IF(DataLog!$C124=\"Log value\",DataLog!Z124,\"\")","v":""},{"$f":"IF(DataLog!$C124=\"Log value\",DataLog!AA124,\"\")","v":""},{"$f":"IF(DataLog!$C124=\"Log value\",DataLog!AB124,\"\")","v":""},{"$f":"IF(DataLog!$C124=\"Log value\",DataLog!AC124,\"\")","v":""},{"$f":"IF(DataLog!$C124=\"Log value\",DataLog!AD124,\"\")","v":""},{"$f":"IF(DataLog!$C124=\"Log value\",DataLog!AE124,\"\")","v":""},{"$f":"IF(DataLog!$C124=\"Log value\",DataLog!AF124,\"\")","v":""},{"$f":"IF(DataLog!$C124=\"Log value\",DataLog!AG124,\"\")","v":""},{"$f":"IF(DataLog!$C124=\"Log value\",DataLog!AH124,\"\")","v":""},{"$f":"IF(DataLog!$C124=\"Log value\",DataLog!AI124,\"\")","v":""},{"$f":"IF(DataLog!$C124=\"Log value\",DataLog!AJ124,\"\")","v":""},{"$f":"IF(DataLog!$C124=\"Log value\",DataLog!AK124,\"\")","v":""},{"$f":"IF(DataLog!$C124=\"Log value\",DataLog!AL124,\"\")","v":""},{"$f":"IF(DataLog!$C124=\"Log value\",DataLog!AM124,\"\")","v":""}]
[null,null,"Standard","Standard -  - ",null,null,{"$f":"IF(DataLog!$C125=\"Log value\",DataLog!D125&\"_\"&TEXT(DataLog!B125,\"åååå-mm-dd\"),\"\")","v":""},{"$f":"IF(DataLog!$C125=\"Log value\",DataLog!E125,\"\")","v":""},{"$f":"IF(DataLog!$C125=\"Log value\",DataLog!F125,\"\")","v":""},{"$f":"IF(DataLog!$C125=\"Log value\",DataLog!G125,\"\")","v":""},{"$f":"IF(DataLog!$C125=\"Log value\",DataLog!H125,\"\")","v":""},{"$f":"IF(DataLog!$C125=\"Log value\",DataLog!I125,\"\")","v":""},{"$f":"IF(DataLog!$C125=\"Log value\",DataLog!J125,\"\")","v":""},{"$f":"IF(DataLog!$C125=\"Log value\",DataLog!K125,\"\")","v":""},{"$f":"IF(DataLog!$C125=\"Log value\",DataLog!L125,\"\")","v":""},{"$f":"IF(DataLog!$C125=\"Log value\",DataLog!M125,\"\")","v":""},{"$f":"IF(DataLog!$C125=\"Log value\",DataLog!N125,\"\")","v":""},{"$f":"IF(DataLog!$C125=\"Log value\",DataLog!O125,\"\")","v":""},{"$f":"IF(DataLog!$C125=\"Log value\",DataLog!P125,\"\")","v":""},{"$f":"IF(DataLog!$C125=\"Log value\",DataLog!Q125,\"\")","v":""},{"$f":"IF(DataLog!$C125=\"Log value\",DataLog!R125,\"\")","v":""},{"$f":"IF(DataLog!$C125=\"Log value\",DataLog!S125,\"\")","v":""},{"$f":"IF(DataLog!$C125=\"Log value\",DataLog!T125,\"\")","v":""},{"$f":"IF(DataLog!$C125=\"Log value\",DataLog!U125,\"\")","v":""},{"$f":"IF(DataLog!$C125=\"Log value\",DataLog!V125,\"\")","v":""},{"$f":"IF(DataLog!$C125=\"Log value\",DataLog!W125,\"\")","v":""},{"$f":"IF(DataLog!$C125=\"Log value\",DataLog!X125,\"\")","v":""},{"$f":"IF(DataLog!$C125=\"Log value\",DataLog!Y125,\"\")","v":""},{"$f":"IF(DataLog!$C125=\"Log value\",DataLog!Z125,\"\")","v":""},{"$f":"IF(DataLog!$C125=\"Log value\",DataLog!AA125,\"\")","v":""},{"$f":"IF(DataLog!$C125=\"Log value\",DataLog!AB125,\"\")","v":""},{"$f":"IF(DataLog!$C125=\"Log value\",DataLog!AC125,\"\")","v":""},{"$f":"IF(DataLog!$C125=\"Log value\",DataLog!AD125,\"\")","v":""},{"$f":"IF(DataLog!$C125=\"Log value\",DataLog!AE125,\"\")","v":""},{"$f":"IF(DataLog!$C125=\"Log value\",DataLog!AF125,\"\")","v":""},{"$f":"IF(DataLog!$C125=\"Log value\",DataLog!AG125,\"\")","v":""},{"$f":"IF(DataLog!$C125=\"Log value\",DataLog!AH125,\"\")","v":""},{"$f":"IF(DataLog!$C125=\"Log value\",DataLog!AI125,\"\")","v":""},{"$f":"IF(DataLog!$C125=\"Log value\",DataLog!AJ125,\"\")","v":""},{"$f":"IF(DataLog!$C125=\"Log value\",DataLog!AK125,\"\")","v":""},{"$f":"IF(DataLog!$C125=\"Log value\",DataLog!AL125,\"\")","v":""},{"$f":"IF(DataLog!$C125=\"Log value\",DataLog!AM125,\"\")","v":""}]
[null,null,"Standard","Standard -  - ",null,null,{"$f":"IF(DataLog!$C126=\"Log value\",DataLog!D126&\"_\"&TEXT(DataLog!B126,\"åååå-mm-dd\"),\"\")","v":""},{"$f":"IF(DataLog!$C126=\"Log value\",DataLog!E126,\"\")","v":""},{"$f":"IF(DataLog!$C126=\"Log value\",DataLog!F126,\"\")","v":""},{"$f":"IF(DataLog!$C126=\"Log value\",DataLog!G126,\"\")","v":""},{"$f":"IF(DataLog!$C126=\"Log value\",DataLog!H126,\"\")","v":""},{"$f":"IF(DataLog!$C126=\"Log value\",DataLog!I126,\"\")","v":""},{"$f":"IF(DataLog!$C126=\"Log value\",DataLog!J126,\"\")","v":""},{"$f":"IF(DataLog!$C126=\"Log value\",DataLog!K126,\"\")","v":""},{"$f":"IF(DataLog!$C126=\"Log value\",DataLog!L126,\"\")","v":""},{"$f":"IF(DataLog!$C126=\"Log value\",DataLog!M126,\"\")","v":""},{"$f":"IF(DataLog!$C126=\"Log value\",DataLog!N126,\"\")","v":""},{"$f":"IF(DataLog!$C126=\"Log value\",DataLog!O126,\"\")","v":""},{"$f":"IF(DataLog!$C126=\"Log value\",DataLog!P126,\"\")","v":""},{"$f":"IF(DataLog!$C126=\"Log value\",DataLog!Q126,\"\")","v":""},{"$f":"IF(DataLog!$C126=\"Log value\",DataLog!R126,\"\")","v":""},{"$f":"IF(DataLog!$C126=\"Log value\",DataLog!S126,\"\")","v":""},{"$f":"IF(DataLog!$C126=\"Log value\",DataLog!T126,\"\")","v":""},{"$f":"IF(DataLog!$C126=\"Log value\",DataLog!U126,\"\")","v":""},{"$f":"IF(DataLog!$C126=\"Log value\",DataLog!V126,\"\")","v":""},{"$f":"IF(DataLog!$C126=\"Log value\",DataLog!W126,\"\")","v":""},{"$f":"IF(DataLog!$C126=\"Log value\",DataLog!X126,\"\")","v":""},{"$f":"IF(DataLog!$C126=\"Log value\",DataLog!Y126,\"\")","v":""},{"$f":"IF(DataLog!$C126=\"Log value\",DataLog!Z126,\"\")","v":""},{"$f":"IF(DataLog!$C126=\"Log value\",DataLog!AA126,\"\")","v":""},{"$f":"IF(DataLog!$C126=\"Log value\",DataLog!AB126,\"\")","v":""},{"$f":"IF(DataLog!$C126=\"Log value\",DataLog!AC126,\"\")","v":""},{"$f":"IF(DataLog!$C126=\"Log value\",DataLog!AD126,\"\")","v":""},{"$f":"IF(DataLog!$C126=\"Log value\",DataLog!AE126,\"\")","v":""},{"$f":"IF(DataLog!$C126=\"Log value\",DataLog!AF126,\"\")","v":""},{"$f":"IF(DataLog!$C126=\"Log value\",DataLog!AG126,\"\")","v":""},{"$f":"IF(DataLog!$C126=\"Log value\",DataLog!AH126,\"\")","v":""},{"$f":"IF(DataLog!$C126=\"Log value\",DataLog!AI126,\"\")","v":""},{"$f":"IF(DataLog!$C126=\"Log value\",DataLog!AJ126,\"\")","v":""},{"$f":"IF(DataLog!$C126=\"Log value\",DataLog!AK126,\"\")","v":""},{"$f":"IF(DataLog!$C126=\"Log value\",DataLog!AL126,\"\")","v":""},{"$f":"IF(DataLog!$C126=\"Log value\",DataLog!AM126,\"\")","v":""}]
[null,null,"Standard","Standard -  - ",null,null,{"$f":"IF(DataLog!$C127=\"Log value\",DataLog!D127&\"_\"&TEXT(DataLog!B127,\"åååå-mm-dd\"),\"\")","v":""},{"$f":"IF(DataLog!$C127=\"Log value\",DataLog!E127,\"\")","v":""},{"$f":"IF(DataLog!$C127=\"Log value\",DataLog!F127,\"\")","v":""},{"$f":"IF(DataLog!$C127=\"Log value\",DataLog!G127,\"\")","v":""},{"$f":"IF(DataLog!$C127=\"Log value\",DataLog!H127,\"\")","v":""},{"$f":"IF(DataLog!$C127=\"Log value\",DataLog!I127,\"\")","v":""},{"$f":"IF(DataLog!$C127=\"Log value\",DataLog!J127,\"\")","v":""},{"$f":"IF(DataLog!$C127=\"Log value\",DataLog!K127,\"\")","v":""},{"$f":"IF(DataLog!$C127=\"Log value\",DataLog!L127,\"\")","v":""},{"$f":"IF(DataLog!$C127=\"Log value\",DataLog!M127,\"\")","v":""},{"$f":"IF(DataLog!$C127=\"Log value\",DataLog!N127,\"\")","v":""},{"$f":"IF(DataLog!$C127=\"Log value\",DataLog!O127,\"\")","v":""},{"$f":"IF(DataLog!$C127=\"Log value\",DataLog!P127,\"\")","v":""},{"$f":"IF(DataLog!$C127=\"Log value\",DataLog!Q127,\"\")","v":""},{"$f":"IF(DataLog!$C127=\"Log value\",DataLog!R127,\"\")","v":""},{"$f":"IF(DataLog!$C127=\"Log value\",DataLog!S127,\"\")","v":""},{"$f":"IF(DataLog!$C127=\"Log value\",DataLog!T127,\"\")","v":""},{"$f":"IF(DataLog!$C127=\"Log value\",DataLog!U127,\"\")","v":""},{"$f":"IF(DataLog!$C127=\"Log value\",DataLog!V127,\"\")","v":""},{"$f":"IF(DataLog!$C127=\"Log value\",DataLog!W127,\"\")","v":""},{"$f":"IF(DataLog!$C127=\"Log value\",DataLog!X127,\"\")","v":""},{"$f":"IF(DataLog!$C127=\"Log value\",DataLog!Y127,\"\")","v":""},{"$f":"IF(DataLog!$C127=\"Log value\",DataLog!Z127,\"\")","v":""},{"$f":"IF(DataLog!$C127=\"Log value\",DataLog!AA127,\"\")","v":""},{"$f":"IF(DataLog!$C127=\"Log value\",DataLog!AB127,\"\")","v":""},{"$f":"IF(DataLog!$C127=\"Log value\",DataLog!AC127,\"\")","v":""},{"$f":"IF(DataLog!$C127=\"Log value\",DataLog!AD127,\"\")","v":""},{"$f":"IF(DataLog!$C127=\"Log value\",DataLog!AE127,\"\")","v":""},{"$f":"IF(DataLog!$C127=\"Log value\",DataLog!AF127,\"\")","v":""},{"$f":"IF(DataLog!$C127=\"Log value\",DataLog!AG127,\"\")","v":""},{"$f":"IF(DataLog!$C127=\"Log value\",DataLog!AH127,\"\")","v":""},{"$f":"IF(DataLog!$C127=\"Log value\",DataLog!AI127,\"\")","v":""},{"$f":"IF(DataLog!$C127=\"Log value\",DataLog!AJ127,\"\")","v":""},{"$f":"IF(DataLog!$C127=\"Log value\",DataLog!AK127,\"\")","v":""},{"$f":"IF(DataLog!$C127=\"Log value\",DataLog!AL127,\"\")","v":""},{"$f":"IF(DataLog!$C127=\"Log value\",DataLog!AM127,\"\")","v":""}]
[null,null,"Standard","Standard -  - ",null,null,{"$f":"IF(DataLog!$C128=\"Log value\",DataLog!D128&\"_\"&TEXT(DataLog!B128,\"åååå-mm-dd\"),\"\")","v":""},{"$f":"IF(DataLog!$C128=\"Log value\",DataLog!E128,\"\")","v":""},{"$f":"IF(DataLog!$C128=\"Log value\",DataLog!F128,\"\")","v":""},{"$f":"IF(DataLog!$C128=\"Log value\",DataLog!G128,\"\")","v":""},{"$f":"IF(DataLog!$C128=\"Log value\",DataLog!H128,\"\")","v":""},{"$f":"IF(DataLog!$C128=\"Log value\",DataLog!I128,\"\")","v":""},{"$f":"IF(DataLog!$C128=\"Log value\",DataLog!J128,\"\")","v":""},{"$f":"IF(DataLog!$C128=\"Log value\",DataLog!K128,\"\")","v":""},{"$f":"IF(DataLog!$C128=\"Log value\",DataLog!L128,\"\")","v":""},{"$f":"IF(DataLog!$C128=\"Log value\",DataLog!M128,\"\")","v":""},{"$f":"IF(DataLog!$C128=\"Log value\",DataLog!N128,\"\")","v":""},{"$f":"IF(DataLog!$C128=\"Log value\",DataLog!O128,\"\")","v":""},{"$f":"IF(DataLog!$C128=\"Log value\",DataLog!P128,\"\")","v":""},{"$f":"IF(DataLog!$C128=\"Log value\",DataLog!Q128,\"\")","v":""},{"$f":"IF(DataLog!$C128=\"Log value\",DataLog!R128,\"\")","v":""},{"$f":"IF(DataLog!$C128=\"Log value\",DataLog!S128,\"\")","v":""},{"$f":"IF(DataLog!$C128=\"Log value\",DataLog!T128,\"\")","v":""},{"$f":"IF(DataLog!$C128=\"Log value\",DataLog!U128,\"\")","v":""},{"$f":"IF(DataLog!$C128=\"Log value\",DataLog!V128,\"\")","v":""},{"$f":"IF(DataLog!$C128=\"Log value\",DataLog!W128,\"\")","v":""},{"$f":"IF(DataLog!$C128=\"Log value\",DataLog!X128,\"\")","v":""},{"$f":"IF(DataLog!$C128=\"Log value\",DataLog!Y128,\"\")","v":""},{"$f":"IF(DataLog!$C128=\"Log value\",DataLog!Z128,\"\")","v":""},{"$f":"IF(DataLog!$C128=\"Log value\",DataLog!AA128,\"\")","v":""},{"$f":"IF(DataLog!$C128=\"Log value\",DataLog!AB128,\"\")","v":""},{"$f":"IF(DataLog!$C128=\"Log value\",DataLog!AC128,\"\")","v":""},{"$f":"IF(DataLog!$C128=\"Log value\",DataLog!AD128,\"\")","v":""},{"$f":"IF(DataLog!$C128=\"Log value\",DataLog!AE128,\"\")","v":""},{"$f":"IF(DataLog!$C128=\"Log value\",DataLog!AF128,\"\")","v":""},{"$f":"IF(DataLog!$C128=\"Log value\",DataLog!AG128,\"\")","v":""},{"$f":"IF(DataLog!$C128=\"Log value\",DataLog!AH128,\"\")","v":""},{"$f":"IF(DataLog!$C128=\"Log value\",DataLog!AI128,\"\")","v":""},{"$f":"IF(DataLog!$C128=\"Log value\",DataLog!AJ128,\"\")","v":""},{"$f":"IF(DataLog!$C128=\"Log value\",DataLog!AK128,\"\")","v":""},{"$f":"IF(DataLog!$C128=\"Log value\",DataLog!AL128,\"\")","v":""},{"$f":"IF(DataLog!$C128=\"Log value\",DataLog!AM128,\"\")","v":""}]
[null,null,"Standard","Standard -  - ",null,null,{"$f":"IF(DataLog!$C129=\"Log value\",DataLog!D129&\"_\"&TEXT(DataLog!B129,\"åååå-mm-dd\"),\"\")","v":""},{"$f":"IF(DataLog!$C129=\"Log value\",DataLog!E129,\"\")","v":""},{"$f":"IF(DataLog!$C129=\"Log value\",DataLog!F129,\"\")","v":""},{"$f":"IF(DataLog!$C129=\"Log value\",DataLog!G129,\"\")","v":""},{"$f":"IF(DataLog!$C129=\"Log value\",DataLog!H129,\"\")","v":""},{"$f":"IF(DataLog!$C129=\"Log value\",DataLog!I129,\"\")","v":""},{"$f":"IF(DataLog!$C129=\"Log value\",DataLog!J129,\"\")","v":""},{"$f":"IF(DataLog!$C129=\"Log value\",DataLog!K129,\"\")","v":""},{"$f":"IF(DataLog!$C129=\"Log value\",DataLog!L129,\"\")","v":""},{"$f":"IF(DataLog!$C129=\"Log value\",DataLog!M129,\"\")","v":""},{"$f":"IF(DataLog!$C129=\"Log value\",DataLog!N129,\"\")","v":""},{"$f":"IF(DataLog!$C129=\"Log value\",DataLog!O129,\"\")","v":""},{"$f":"IF(DataLog!$C129=\"Log value\",DataLog!P129,\"\")","v":""},{"$f":"IF(DataLog!$C129=\"Log value\",DataLog!Q129,\"\")","v":""},{"$f":"IF(DataLog!$C129=\"Log value\",DataLog!R129,\"\")","v":""},{"$f":"IF(DataLog!$C129=\"Log value\",DataLog!S129,\"\")","v":""},{"$f":"IF(DataLog!$C129=\"Log value\",DataLog!T129,\"\")","v":""},{"$f":"IF(DataLog!$C129=\"Log value\",DataLog!U129,\"\")","v":""},{"$f":"IF(DataLog!$C129=\"Log value\",DataLog!V129,\"\")","v":""},{"$f":"IF(DataLog!$C129=\"Log value\",DataLog!W129,\"\")","v":""},{"$f":"IF(DataLog!$C129=\"Log value\",DataLog!X129,\"\")","v":""},{"$f":"IF(DataLog!$C129=\"Log value\",DataLog!Y129,\"\")","v":""},{"$f":"IF(DataLog!$C129=\"Log value\",DataLog!Z129,\"\")","v":""},{"$f":"IF(DataLog!$C129=\"Log value\",DataLog!AA129,\"\")","v":""},{"$f":"IF(DataLog!$C129=\"Log value\",DataLog!AB129,\"\")","v":""},{"$f":"IF(DataLog!$C129=\"Log value\",DataLog!AC129,\"\")","v":""},{"$f":"IF(DataLog!$C129=\"Log value\",DataLog!AD129,\"\")","v":""},{"$f":"IF(DataLog!$C129=\"Log value\",DataLog!AE129,\"\")","v":""},{"$f":"IF(DataLog!$C129=\"Log value\",DataLog!AF129,\"\")","v":""},{"$f":"IF(DataLog!$C129=\"Log value\",DataLog!AG129,\"\")","v":""},{"$f":"IF(DataLog!$C129=\"Log value\",DataLog!AH129,\"\")","v":""},{"$f":"IF(DataLog!$C129=\"Log value\",DataLog!AI129,\"\")","v":""},{"$f":"IF(DataLog!$C129=\"Log value\",DataLog!AJ129,\"\")","v":""},{"$f":"IF(DataLog!$C129=\"Log value\",DataLog!AK129,\"\")","v":""},{"$f":"IF(DataLog!$C129=\"Log value\",DataLog!AL129,\"\")","v":""},{"$f":"IF(DataLog!$C129=\"Log value\",DataLog!AM129,\"\")","v":""}]
[null,null,"Standard","Standard -  - ",null,null,{"$f":"IF(DataLog!$C130=\"Log value\",DataLog!D130&\"_\"&TEXT(DataLog!B130,\"åååå-mm-dd\"),\"\")","v":""},{"$f":"IF(DataLog!$C130=\"Log value\",DataLog!E130,\"\")","v":""},{"$f":"IF(DataLog!$C130=\"Log value\",DataLog!F130,\"\")","v":""},{"$f":"IF(DataLog!$C130=\"Log value\",DataLog!G130,\"\")","v":""},{"$f":"IF(DataLog!$C130=\"Log value\",DataLog!H130,\"\")","v":""},{"$f":"IF(DataLog!$C130=\"Log value\",DataLog!I130,\"\")","v":""},{"$f":"IF(DataLog!$C130=\"Log value\",DataLog!J130,\"\")","v":""},{"$f":"IF(DataLog!$C130=\"Log value\",DataLog!K130,\"\")","v":""},{"$f":"IF(DataLog!$C130=\"Log value\",DataLog!L130,\"\")","v":""},{"$f":"IF(DataLog!$C130=\"Log value\",DataLog!M130,\"\")","v":""},{"$f":"IF(DataLog!$C130=\"Log value\",DataLog!N130,\"\")","v":""},{"$f":"IF(DataLog!$C130=\"Log value\",DataLog!O130,\"\")","v":""},{"$f":"IF(DataLog!$C130=\"Log value\",DataLog!P130,\"\")","v":""},{"$f":"IF(DataLog!$C130=\"Log value\",DataLog!Q130,\"\")","v":""},{"$f":"IF(DataLog!$C130=\"Log value\",DataLog!R130,\"\")","v":""},{"$f":"IF(DataLog!$C130=\"Log value\",DataLog!S130,\"\")","v":""},{"$f":"IF(DataLog!$C130=\"Log value\",DataLog!T130,\"\")","v":""},{"$f":"IF(DataLog!$C130=\"Log value\",DataLog!U130,\"\")","v":""},{"$f":"IF(DataLog!$C130=\"Log value\",DataLog!V130,\"\")","v":""},{"$f":"IF(DataLog!$C130=\"Log value\",DataLog!W130,\"\")","v":""},{"$f":"IF(DataLog!$C130=\"Log value\",DataLog!X130,\"\")","v":""},{"$f":"IF(DataLog!$C130=\"Log value\",DataLog!Y130,\"\")","v":""},{"$f":"IF(DataLog!$C130=\"Log value\",DataLog!Z130,\"\")","v":""},{"$f":"IF(DataLog!$C130=\"Log value\",DataLog!AA130,\"\")","v":""},{"$f":"IF(DataLog!$C130=\"Log value\",DataLog!AB130,\"\")","v":""},{"$f":"IF(DataLog!$C130=\"Log value\",DataLog!AC130,\"\")","v":""},{"$f":"IF(DataLog!$C130=\"Log value\",DataLog!AD130,\"\")","v":""},{"$f":"IF(DataLog!$C130=\"Log value\",DataLog!AE130,\"\")","v":""},{"$f":"IF(DataLog!$C130=\"Log value\",DataLog!AF130,\"\")","v":""},{"$f":"IF(DataLog!$C130=\"Log value\",DataLog!AG130,\"\")","v":""},{"$f":"IF(DataLog!$C130=\"Log value\",DataLog!AH130,\"\")","v":""},{"$f":"IF(DataLog!$C130=\"Log value\",DataLog!AI130,\"\")","v":""},{"$f":"IF(DataLog!$C130=\"Log value\",DataLog!AJ130,\"\")","v":""},{"$f":"IF(DataLog!$C130=\"Log value\",DataLog!AK130,\"\")","v":""},{"$f":"IF(DataLog!$C130=\"Log value\",DataLog!AL130,\"\")","v":""},{"$f":"IF(DataLog!$C130=\"Log value\",DataLog!AM130,\"\")","v":""}]
[null,null,"Standard","Standard -  - ",null,null,{"$f":"IF(DataLog!$C131=\"Log value\",DataLog!D131&\"_\"&TEXT(DataLog!B131,\"åååå-mm-dd\"),\"\")","v":""},{"$f":"IF(DataLog!$C131=\"Log value\",DataLog!E131,\"\")","v":""},{"$f":"IF(DataLog!$C131=\"Log value\",DataLog!F131,\"\")","v":""},{"$f":"IF(DataLog!$C131=\"Log value\",DataLog!G131,\"\")","v":""},{"$f":"IF(DataLog!$C131=\"Log value\",DataLog!H131,\"\")","v":""},{"$f":"IF(DataLog!$C131=\"Log value\",DataLog!I131,\"\")","v":""},{"$f":"IF(DataLog!$C131=\"Log value\",DataLog!J131,\"\")","v":""},{"$f":"IF(DataLog!$C131=\"Log value\",DataLog!K131,\"\")","v":""},{"$f":"IF(DataLog!$C131=\"Log value\",DataLog!L131,\"\")","v":""},{"$f":"IF(DataLog!$C131=\"Log value\",DataLog!M131,\"\")","v":""},{"$f":"IF(DataLog!$C131=\"Log value\",DataLog!N131,\"\")","v":""},{"$f":"IF(DataLog!$C131=\"Log value\",DataLog!O131,\"\")","v":""},{"$f":"IF(DataLog!$C131=\"Log value\",DataLog!P131,\"\")","v":""},{"$f":"IF(DataLog!$C131=\"Log value\",DataLog!Q131,\"\")","v":""},{"$f":"IF(DataLog!$C131=\"Log value\",DataLog!R131,\"\")","v":""},{"$f":"IF(DataLog!$C131=\"Log value\",DataLog!S131,\"\")","v":""},{"$f":"IF(DataLog!$C131=\"Log value\",DataLog!T131,\"\")","v":""},{"$f":"IF(DataLog!$C131=\"Log value\",DataLog!U131,\"\")","v":""},{"$f":"IF(DataLog!$C131=\"Log value\",DataLog!V131,\"\")","v":""},{"$f":"IF(DataLog!$C131=\"Log value\",DataLog!W131,\"\")","v":""},{"$f":"IF(DataLog!$C131=\"Log value\",DataLog!X131,\"\")","v":""},{"$f":"IF(DataLog!$C131=\"Log value\",DataLog!Y131,\"\")","v":""},{"$f":"IF(DataLog!$C131=\"Log value\",DataLog!Z131,\"\")","v":""},{"$f":"IF(DataLog!$C131=\"Log value\",DataLog!AA131,\"\")","v":""},{"$f":"IF(DataLog!$C131=\"Log value\",DataLog!AB131,\"\")","v":""},{"$f":"IF(DataLog!$C131=\"Log value\",DataLog!AC131,\"\")","v":""},{"$f":"IF(DataLog!$C131=\"Log value\",DataLog!AD131,\"\")","v":""},{"$f":"IF(DataLog!$C131=\"Log value\",DataLog!AE131,\"\")","v":""},{"$f":"IF(DataLog!$C131=\"Log value\",DataLog!AF131,\"\")","v":""},{"$f":"IF(DataLog!$C131=\"Log value\",DataLog!AG131,\"\")","v":""},{"$f":"IF(DataLog!$C131=\"Log value\",DataLog!AH131,\"\")","v":""},{"$f":"IF(DataLog!$C131=\"Log value\",DataLog!AI131,\"\")","v":""},{"$f":"IF(DataLog!$C131=\"Log value\",DataLog!AJ131,\"\")","v":""},{"$f":"IF(DataLog!$C131=\"Log value\",DataLog!AK131,\"\")","v":""},{"$f":"IF(DataLog!$C131=\"Log value\",DataLog!AL131,\"\")","v":""},{"$f":"IF(DataLog!$C131=\"Log value\",DataLog!AM131,\"\")","v":""}]
[null,null,"Standard","Standard -  - ",null,null,{"$f":"IF(DataLog!$C132=\"Log value\",DataLog!D132&\"_\"&TEXT(DataLog!B132,\"åååå-mm-dd\"),\"\")","v":""},{"$f":"IF(DataLog!$C132=\"Log value\",DataLog!E132,\"\")","v":""},{"$f":"IF(DataLog!$C132=\"Log value\",DataLog!F132,\"\")","v":""},{"$f":"IF(DataLog!$C132=\"Log value\",DataLog!G132,\"\")","v":""},{"$f":"IF(DataLog!$C132=\"Log value\",DataLog!H132,\"\")","v":""},{"$f":"IF(DataLog!$C132=\"Log value\",DataLog!I132,\"\")","v":""},{"$f":"IF(DataLog!$C132=\"Log value\",DataLog!J132,\"\")","v":""},{"$f":"IF(DataLog!$C132=\"Log value\",DataLog!K132,\"\")","v":""},{"$f":"IF(DataLog!$C132=\"Log value\",DataLog!L132,\"\")","v":""},{"$f":"IF(DataLog!$C132=\"Log value\",DataLog!M132,\"\")","v":""},{"$f":"IF(DataLog!$C132=\"Log value\",DataLog!N132,\"\")","v":""},{"$f":"IF(DataLog!$C132=\"Log value\",DataLog!O132,\"\")","v":""},{"$f":"IF(DataLog!$C132=\"Log value\",DataLog!P132,\"\")","v":""},{"$f":"IF(DataLog!$C132=\"Log value\",DataLog!Q132,\"\")","v":""},{"$f":"IF(DataLog!$C132=\"Log value\",DataLog!R132,\"\")","v":""},{"$f":"IF(DataLog!$C132=\"Log value\",DataLog!S132,\"\")","v":""},{"$f":"IF(DataLog!$C132=\"Log value\",DataLog!T132,\"\")","v":""},{"$f":"IF(DataLog!$C132=\"Log value\",DataLog!U132,\"\")","v":""},{"$f":"IF(DataLog!$C132=\"Log value\",DataLog!V132,\"\")","v":""},{"$f":"IF(DataLog!$C132=\"Log value\",DataLog!W132,\"\")","v":""},{"$f":"IF(DataLog!$C132=\"Log value\",DataLog!X132,\"\")","v":""},{"$f":"IF(DataLog!$C132=\"Log value\",DataLog!Y132,\"\")","v":""},{"$f":"IF(DataLog!$C132=\"Log value\",DataLog!Z132,\"\")","v":""},{"$f":"IF(DataLog!$C132=\"Log value\",DataLog!AA132,\"\")","v":""},{"$f":"IF(DataLog!$C132=\"Log value\",DataLog!AB132,\"\")","v":""},{"$f":"IF(DataLog!$C132=\"Log value\",DataLog!AC132,\"\")","v":""},{"$f":"IF(DataLog!$C132=\"Log value\",DataLog!AD132,\"\")","v":""},{"$f":"IF(DataLog!$C132=\"Log value\",DataLog!AE132,\"\")","v":""},{"$f":"IF(DataLog!$C132=\"Log value\",DataLog!AF132,\"\")","v":""},{"$f":"IF(DataLog!$C132=\"Log value\",DataLog!AG132,\"\")","v":""},{"$f":"IF(DataLog!$C132=\"Log value\",DataLog!AH132,\"\")","v":""},{"$f":"IF(DataLog!$C132=\"Log value\",DataLog!AI132,\"\")","v":""},{"$f":"IF(DataLog!$C132=\"Log value\",DataLog!AJ132,\"\")","v":""},{"$f":"IF(DataLog!$C132=\"Log value\",DataLog!AK132,\"\")","v":""},{"$f":"IF(DataLog!$C132=\"Log value\",DataLog!AL132,\"\")","v":""},{"$f":"IF(DataLog!$C132=\"Log value\",DataLog!AM132,\"\")","v":""}]
[null,null,"Standard","Standard -  - ",null,null,{"$f":"IF(DataLog!$C133=\"Log value\",DataLog!D133&\"_\"&TEXT(DataLog!B133,\"åååå-mm-dd\"),\"\")","v":""},{"$f":"IF(DataLog!$C133=\"Log value\",DataLog!E133,\"\")","v":""},{"$f":"IF(DataLog!$C133=\"Log value\",DataLog!F133,\"\")","v":""},{"$f":"IF(DataLog!$C133=\"Log value\",DataLog!G133,\"\")","v":""},{"$f":"IF(DataLog!$C133=\"Log value\",DataLog!H133,\"\")","v":""},{"$f":"IF(DataLog!$C133=\"Log value\",DataLog!I133,\"\")","v":""},{"$f":"IF(DataLog!$C133=\"Log value\",DataLog!J133,\"\")","v":""},{"$f":"IF(DataLog!$C133=\"Log value\",DataLog!K133,\"\")","v":""},{"$f":"IF(DataLog!$C133=\"Log value\",DataLog!L133,\"\")","v":""},{"$f":"IF(DataLog!$C133=\"Log value\",DataLog!M133,\"\")","v":""},{"$f":"IF(DataLog!$C133=\"Log value\",DataLog!N133,\"\")","v":""},{"$f":"IF(DataLog!$C133=\"Log value\",DataLog!O133,\"\")","v":""},{"$f":"IF(DataLog!$C133=\"Log value\",DataLog!P133,\"\")","v":""},{"$f":"IF(DataLog!$C133=\"Log value\",DataLog!Q133,\"\")","v":""},{"$f":"IF(DataLog!$C133=\"Log value\",DataLog!R133,\"\")","v":""},{"$f":"IF(DataLog!$C133=\"Log value\",DataLog!S133,\"\")","v":""},{"$f":"IF(DataLog!$C133=\"Log value\",DataLog!T133,\"\")","v":""},{"$f":"IF(DataLog!$C133=\"Log value\",DataLog!U133,\"\")","v":""},{"$f":"IF(DataLog!$C133=\"Log value\",DataLog!V133,\"\")","v":""},{"$f":"IF(DataLog!$C133=\"Log value\",DataLog!W133,\"\")","v":""},{"$f":"IF(DataLog!$C133=\"Log value\",DataLog!X133,\"\")","v":""},{"$f":"IF(DataLog!$C133=\"Log value\",DataLog!Y133,\"\")","v":""},{"$f":"IF(DataLog!$C133=\"Log value\",DataLog!Z133,\"\")","v":""},{"$f":"IF(DataLog!$C133=\"Log value\",DataLog!AA133,\"\")","v":""},{"$f":"IF(DataLog!$C133=\"Log value\",DataLog!AB133,\"\")","v":""},{"$f":"IF(DataLog!$C133=\"Log value\",DataLog!AC133,\"\")","v":""},{"$f":"IF(DataLog!$C133=\"Log value\",DataLog!AD133,\"\")","v":""},{"$f":"IF(DataLog!$C133=\"Log value\",DataLog!AE133,\"\")","v":""},{"$f":"IF(DataLog!$C133=\"Log value\",DataLog!AF133,\"\")","v":""},{"$f":"IF(DataLog!$C133=\"Log value\",DataLog!AG133,\"\")","v":""},{"$f":"IF(DataLog!$C133=\"Log value\",DataLog!AH133,\"\")","v":""},{"$f":"IF(DataLog!$C133=\"Log value\",DataLog!AI133,\"\")","v":""},{"$f":"IF(DataLog!$C133=\"Log value\",DataLog!AJ133,\"\")","v":""},{"$f":"IF(DataLog!$C133=\"Log value\",DataLog!AK133,\"\")","v":""},{"$f":"IF(DataLog!$C133=\"Log value\",DataLog!AL133,\"\")","v":""},{"$f":"IF(DataLog!$C133=\"Log value\",DataLog!AM133,\"\")","v":""}]
[null,null,"Standard","Standard -  - ",null,null,{"$f":"IF(DataLog!$C134=\"Log value\",DataLog!D134&\"_\"&TEXT(DataLog!B134,\"åååå-mm-dd\"),\"\")","v":""},{"$f":"IF(DataLog!$C134=\"Log value\",DataLog!E134,\"\")","v":""},{"$f":"IF(DataLog!$C134=\"Log value\",DataLog!F134,\"\")","v":""},{"$f":"IF(DataLog!$C134=\"Log value\",DataLog!G134,\"\")","v":""},{"$f":"IF(DataLog!$C134=\"Log value\",DataLog!H134,\"\")","v":""},{"$f":"IF(DataLog!$C134=\"Log value\",DataLog!I134,\"\")","v":""},{"$f":"IF(DataLog!$C134=\"Log value\",DataLog!J134,\"\")","v":""},{"$f":"IF(DataLog!$C134=\"Log value\",DataLog!K134,\"\")","v":""},{"$f":"IF(DataLog!$C134=\"Log value\",DataLog!L134,\"\")","v":""},{"$f":"IF(DataLog!$C134=\"Log value\",DataLog!M134,\"\")","v":""},{"$f":"IF(DataLog!$C134=\"Log value\",DataLog!N134,\"\")","v":""},{"$f":"IF(DataLog!$C134=\"Log value\",DataLog!O134,\"\")","v":""},{"$f":"IF(DataLog!$C134=\"Log value\",DataLog!P134,\"\")","v":""},{"$f":"IF(DataLog!$C134=\"Log value\",DataLog!Q134,\"\")","v":""},{"$f":"IF(DataLog!$C134=\"Log value\",DataLog!R134,\"\")","v":""},{"$f":"IF(DataLog!$C134=\"Log value\",DataLog!S134,\"\")","v":""},{"$f":"IF(DataLog!$C134=\"Log value\",DataLog!T134,\"\")","v":""},{"$f":"IF(DataLog!$C134=\"Log value\",DataLog!U134,\"\")","v":""},{"$f":"IF(DataLog!$C134=\"Log value\",DataLog!V134,\"\")","v":""},{"$f":"IF(DataLog!$C134=\"Log value\",DataLog!W134,\"\")","v":""},{"$f":"IF(DataLog!$C134=\"Log value\",DataLog!X134,\"\")","v":""},{"$f":"IF(DataLog!$C134=\"Log value\",DataLog!Y134,\"\")","v":""},{"$f":"IF(DataLog!$C134=\"Log value\",DataLog!Z134,\"\")","v":""},{"$f":"IF(DataLog!$C134=\"Log value\",DataLog!AA134,\"\")","v":""},{"$f":"IF(DataLog!$C134=\"Log value\",DataLog!AB134,\"\")","v":""},{"$f":"IF(DataLog!$C134=\"Log value\",DataLog!AC134,\"\")","v":""},{"$f":"IF(DataLog!$C134=\"Log value\",DataLog!AD134,\"\")","v":""},{"$f":"IF(DataLog!$C134=\"Log value\",DataLog!AE134,\"\")","v":""},{"$f":"IF(DataLog!$C134=\"Log value\",DataLog!AF134,\"\")","v":""},{"$f":"IF(DataLog!$C134=\"Log value\",DataLog!AG134,\"\")","v":""},{"$f":"IF(DataLog!$C134=\"Log value\",DataLog!AH134,\"\")","v":""},{"$f":"IF(DataLog!$C134=\"Log value\",DataLog!AI134,\"\")","v":""},{"$f":"IF(DataLog!$C134=\"Log value\",DataLog!AJ134,\"\")","v":""},{"$f":"IF(DataLog!$C134=\"Log value\",DataLog!AK134,\"\")","v":""},{"$f":"IF(DataLog!$C134=\"Log value\",DataLog!AL134,\"\")","v":""},{"$f":"IF(DataLog!$C134=\"Log value\",DataLog!AM134,\"\")","v":""}]
[null,null,"Standard","Standard -  - ",null,null,{"$f":"IF(DataLog!$C135=\"Log value\",DataLog!D135&\"_\"&TEXT(DataLog!B135,\"åååå-mm-dd\"),\"\")","v":""},{"$f":"IF(DataLog!$C135=\"Log value\",DataLog!E135,\"\")","v":""},{"$f":"IF(DataLog!$C135=\"Log value\",DataLog!F135,\"\")","v":""},{"$f":"IF(DataLog!$C135=\"Log value\",DataLog!G135,\"\")","v":""},{"$f":"IF(DataLog!$C135=\"Log value\",DataLog!H135,\"\")","v":""},{"$f":"IF(DataLog!$C135=\"Log value\",DataLog!I135,\"\")","v":""},{"$f":"IF(DataLog!$C135=\"Log value\",DataLog!J135,\"\")","v":""},{"$f":"IF(DataLog!$C135=\"Log value\",DataLog!K135,\"\")","v":""},{"$f":"IF(DataLog!$C135=\"Log value\",DataLog!L135,\"\")","v":""},{"$f":"IF(DataLog!$C135=\"Log value\",DataLog!M135,\"\")","v":""},{"$f":"IF(DataLog!$C135=\"Log value\",DataLog!N135,\"\")","v":""},{"$f":"IF(DataLog!$C135=\"Log value\",DataLog!O135,\"\")","v":""},{"$f":"IF(DataLog!$C135=\"Log value\",DataLog!P135,\"\")","v":""},{"$f":"IF(DataLog!$C135=\"Log value\",DataLog!Q135,\"\")","v":""},{"$f":"IF(DataLog!$C135=\"Log value\",DataLog!R135,\"\")","v":""},{"$f":"IF(DataLog!$C135=\"Log value\",DataLog!S135,\"\")","v":""},{"$f":"IF(DataLog!$C135=\"Log value\",DataLog!T135,\"\")","v":""},{"$f":"IF(DataLog!$C135=\"Log value\",DataLog!U135,\"\")","v":""},{"$f":"IF(DataLog!$C135=\"Log value\",DataLog!V135,\"\")","v":""},{"$f":"IF(DataLog!$C135=\"Log value\",DataLog!W135,\"\")","v":""},{"$f":"IF(DataLog!$C135=\"Log value\",DataLog!X135,\"\")","v":""},{"$f":"IF(DataLog!$C135=\"Log value\",DataLog!Y135,\"\")","v":""},{"$f":"IF(DataLog!$C135=\"Log value\",DataLog!Z135,\"\")","v":""},{"$f":"IF(DataLog!$C135=\"Log value\",DataLog!AA135,\"\")","v":""},{"$f":"IF(DataLog!$C135=\"Log value\",DataLog!AB135,\"\")","v":""},{"$f":"IF(DataLog!$C135=\"Log value\",DataLog!AC135,\"\")","v":""},{"$f":"IF(DataLog!$C135=\"Log value\",DataLog!AD135,\"\")","v":""},{"$f":"IF(DataLog!$C135=\"Log value\",DataLog!AE135,\"\")","v":""},{"$f":"IF(DataLog!$C135=\"Log value\",DataLog!AF135,\"\")","v":""},{"$f":"IF(DataLog!$C135=\"Log value\",DataLog!AG135,\"\")","v":""},{"$f":"IF(DataLog!$C135=\"Log value\",DataLog!AH135,\"\")","v":""},{"$f":"IF(DataLog!$C135=\"Log value\",DataLog!AI135,\"\")","v":""},{"$f":"IF(DataLog!$C135=\"Log value\",DataLog!AJ135,\"\")","v":""},{"$f":"IF(DataLog!$C135=\"Log value\",DataLog!AK135,\"\")","v":""},{"$f":"IF(DataLog!$C135=\"Log value\",DataLog!AL135,\"\")","v":""},{"$f":"IF(DataLog!$C135=\"Log value\",DataLog!AM135,\"\")","v":""}]
[null,null,"Standard","Standard -  - ",null,null,{"$f":"IF(DataLog!$C136=\"Log value\",DataLog!D136&\"_\"&TEXT(DataLog!B136,\"åååå-mm-dd\"),\"\")","v":""},{"$f":"IF(DataLog!$C136=\"Log value\",DataLog!E136,\"\")","v":""},{"$f":"IF(DataLog!$C136=\"Log value\",DataLog!F136,\"\")","v":""},{"$f":"IF(DataLog!$C136=\"Log value\",DataLog!G136,\"\")","v":""},{"$f":"IF(DataLog!$C136=\"Log value\",DataLog!H136,\"\")","v":""},{"$f":"IF(DataLog!$C136=\"Log value\",DataLog!I136,\"\")","v":""},{"$f":"IF(DataLog!$C136=\"Log value\",DataLog!J136,\"\")","v":""},{"$f":"IF(DataLog!$C136=\"Log value\",DataLog!K136,\"\")","v":""},{"$f":"IF(DataLog!$C136=\"Log value\",DataLog!L136,\"\")","v":""},{"$f":"IF(DataLog!$C136=\"Log value\",DataLog!M136,\"\")","v":""},{"$f":"IF(DataLog!$C136=\"Log value\",DataLog!N136,\"\")","v":""},{"$f":"IF(DataLog!$C136=\"Log value\",DataLog!O136,\"\")","v":""},{"$f":"IF(DataLog!$C136=\"Log value\",DataLog!P136,\"\")","v":""},{"$f":"IF(DataLog!$C136=\"Log value\",DataLog!Q136,\"\")","v":""},{"$f":"IF(DataLog!$C136=\"Log value\",DataLog!R136,\"\")","v":""},{"$f":"IF(DataLog!$C136=\"Log value\",DataLog!S136,\"\")","v":""},{"$f":"IF(DataLog!$C136=\"Log value\",DataLog!T136,\"\")","v":""},{"$f":"IF(DataLog!$C136=\"Log value\",DataLog!U136,\"\")","v":""},{"$f":"IF(DataLog!$C136=\"Log value\",DataLog!V136,\"\")","v":""},{"$f":"IF(DataLog!$C136=\"Log value\",DataLog!W136,\"\")","v":""},{"$f":"IF(DataLog!$C136=\"Log value\",DataLog!X136,\"\")","v":""},{"$f":"IF(DataLog!$C136=\"Log value\",DataLog!Y136,\"\")","v":""},{"$f":"IF(DataLog!$C136=\"Log value\",DataLog!Z136,\"\")","v":""},{"$f":"IF(DataLog!$C136=\"Log value\",DataLog!AA136,\"\")","v":""},{"$f":"IF(DataLog!$C136=\"Log value\",DataLog!AB136,\"\")","v":""},{"$f":"IF(DataLog!$C136=\"Log value\",DataLog!AC136,\"\")","v":""},{"$f":"IF(DataLog!$C136=\"Log value\",DataLog!AD136,\"\")","v":""},{"$f":"IF(DataLog!$C136=\"Log value\",DataLog!AE136,\"\")","v":""},{"$f":"IF(DataLog!$C136=\"Log value\",DataLog!AF136,\"\")","v":""},{"$f":"IF(DataLog!$C136=\"Log value\",DataLog!AG136,\"\")","v":""},{"$f":"IF(DataLog!$C136=\"Log value\",DataLog!AH136,\"\")","v":""},{"$f":"IF(DataLog!$C136=\"Log value\",DataLog!AI136,\"\")","v":""},{"$f":"IF(DataLog!$C136=\"Log value\",DataLog!AJ136,\"\")","v":""},{"$f":"IF(DataLog!$C136=\"Log value\",DataLog!AK136,\"\")","v":""},{"$f":"IF(DataLog!$C136=\"Log value\",DataLog!AL136,\"\")","v":""},{"$f":"IF(DataLog!$C136=\"Log value\",DataLog!AM136,\"\")","v":""}]
[null,null,"Standard","Standard -  - ",null,null,{"$f":"IF(DataLog!$C137=\"Log value\",DataLog!D137&\"_\"&TEXT(DataLog!B137,\"åååå-mm-dd\"),\"\")","v":""},{"$f":"IF(DataLog!$C137=\"Log value\",DataLog!E137,\"\")","v":""},{"$f":"IF(DataLog!$C137=\"Log value\",DataLog!F137,\"\")","v":""},{"$f":"IF(DataLog!$C137=\"Log value\",DataLog!G137,\"\")","v":""},{"$f":"IF(DataLog!$C137=\"Log value\",DataLog!H137,\"\")","v":""},{"$f":"IF(DataLog!$C137=\"Log value\",DataLog!I137,\"\")","v":""},{"$f":"IF(DataLog!$C137=\"Log value\",DataLog!J137,\"\")","v":""},{"$f":"IF(DataLog!$C137=\"Log value\",DataLog!K137,\"\")","v":""},{"$f":"IF(DataLog!$C137=\"Log value\",DataLog!L137,\"\")","v":""},{"$f":"IF(DataLog!$C137=\"Log value\",DataLog!M137,\"\")","v":""},{"$f":"IF(DataLog!$C137=\"Log value\",DataLog!N137,\"\")","v":""},{"$f":"IF(DataLog!$C137=\"Log value\",DataLog!O137,\"\")","v":""},{"$f":"IF(DataLog!$C137=\"Log value\",DataLog!P137,\"\")","v":""},{"$f":"IF(DataLog!$C137=\"Log value\",DataLog!Q137,\"\")","v":""},{"$f":"IF(DataLog!$C137=\"Log value\",DataLog!R137,\"\")","v":""},{"$f":"IF(DataLog!$C137=\"Log value\",DataLog!S137,\"\")","v":""},{"$f":"IF(DataLog!$C137=\"Log value\",DataLog!T137,\"\")","v":""},{"$f":"IF(DataLog!$C137=\"Log value\",DataLog!U137,\"\")","v":""},{"$f":"IF(DataLog!$C137=\"Log value\",DataLog!V137,\"\")","v":""},{"$f":"IF(DataLog!$C137=\"Log value\",DataLog!W137,\"\")","v":""},{"$f":"IF(DataLog!$C137=\"Log value\",DataLog!X137,\"\")","v":""},{"$f":"IF(DataLog!$C137=\"Log value\",DataLog!Y137,\"\")","v":""},{"$f":"IF(DataLog!$C137=\"Log value\",DataLog!Z137,\"\")","v":""},{"$f":"IF(DataLog!$C137=\"Log value\",DataLog!AA137,\"\")","v":""},{"$f":"IF(DataLog!$C137=\"Log value\",DataLog!AB137,\"\")","v":""},{"$f":"IF(DataLog!$C137=\"Log value\",DataLog!AC137,\"\")","v":""},{"$f":"IF(DataLog!$C137=\"Log value\",DataLog!AD137,\"\")","v":""},{"$f":"IF(DataLog!$C137=\"Log value\",DataLog!AE137,\"\")","v":""},{"$f":"IF(DataLog!$C137=\"Log value\",DataLog!AF137,\"\")","v":""},{"$f":"IF(DataLog!$C137=\"Log value\",DataLog!AG137,\"\")","v":""},{"$f":"IF(DataLog!$C137=\"Log value\",DataLog!AH137,\"\")","v":""},{"$f":"IF(DataLog!$C137=\"Log value\",DataLog!AI137,\"\")","v":""},{"$f":"IF(DataLog!$C137=\"Log value\",DataLog!AJ137,\"\")","v":""},{"$f":"IF(DataLog!$C137=\"Log value\",DataLog!AK137,\"\")","v":""},{"$f":"IF(DataLog!$C137=\"Log value\",DataLog!AL137,\"\")","v":""},{"$f":"IF(DataLog!$C137=\"Log value\",DataLog!AM137,\"\")","v":""}]
[null,null,"Standard","Standard -  - ",null,null,{"$f":"IF(DataLog!$C138=\"Log value\",DataLog!D138&\"_\"&TEXT(DataLog!B138,\"åååå-mm-dd\"),\"\")","v":""},{"$f":"IF(DataLog!$C138=\"Log value\",DataLog!E138,\"\")","v":""},{"$f":"IF(DataLog!$C138=\"Log value\",DataLog!F138,\"\")","v":""},{"$f":"IF(DataLog!$C138=\"Log value\",DataLog!G138,\"\")","v":""},{"$f":"IF(DataLog!$C138=\"Log value\",DataLog!H138,\"\")","v":""},{"$f":"IF(DataLog!$C138=\"Log value\",DataLog!I138,\"\")","v":""},{"$f":"IF(DataLog!$C138=\"Log value\",DataLog!J138,\"\")","v":""},{"$f":"IF(DataLog!$C138=\"Log value\",DataLog!K138,\"\")","v":""},{"$f":"IF(DataLog!$C138=\"Log value\",DataLog!L138,\"\")","v":""},{"$f":"IF(DataLog!$C138=\"Log value\",DataLog!M138,\"\")","v":""},{"$f":"IF(DataLog!$C138=\"Log value\",DataLog!N138,\"\")","v":""},{"$f":"IF(DataLog!$C138=\"Log value\",DataLog!O138,\"\")","v":""},{"$f":"IF(DataLog!$C138=\"Log value\",DataLog!P138,\"\")","v":""},{"$f":"IF(DataLog!$C138=\"Log value\",DataLog!Q138,\"\")","v":""},{"$f":"IF(DataLog!$C138=\"Log value\",DataLog!R138,\"\")","v":""},{"$f":"IF(DataLog!$C138=\"Log value\",DataLog!S138,\"\")","v":""},{"$f":"IF(DataLog!$C138=\"Log value\",DataLog!T138,\"\")","v":""},{"$f":"IF(DataLog!$C138=\"Log value\",DataLog!U138,\"\")","v":""},{"$f":"IF(DataLog!$C138=\"Log value\",DataLog!V138,\"\")","v":""},{"$f":"IF(DataLog!$C138=\"Log value\",DataLog!W138,\"\")","v":""},{"$f":"IF(DataLog!$C138=\"Log value\",DataLog!X138,\"\")","v":""},{"$f":"IF(DataLog!$C138=\"Log value\",DataLog!Y138,\"\")","v":""},{"$f":"IF(DataLog!$C138=\"Log value\",DataLog!Z138,\"\")","v":""},{"$f":"IF(DataLog!$C138=\"Log value\",DataLog!AA138,\"\")","v":""},{"$f":"IF(DataLog!$C138=\"Log value\",DataLog!AB138,\"\")","v":""},{"$f":"IF(DataLog!$C138=\"Log value\",DataLog!AC138,\"\")","v":""},{"$f":"IF(DataLog!$C138=\"Log value\",DataLog!AD138,\"\")","v":""},{"$f":"IF(DataLog!$C138=\"Log value\",DataLog!AE138,\"\")","v":""},{"$f":"IF(DataLog!$C138=\"Log value\",DataLog!AF138,\"\")","v":""},{"$f":"IF(DataLog!$C138=\"Log value\",DataLog!AG138,\"\")","v":""},{"$f":"IF(DataLog!$C138=\"Log value\",DataLog!AH138,\"\")","v":""},{"$f":"IF(DataLog!$C138=\"Log value\",DataLog!AI138,\"\")","v":""},{"$f":"IF(DataLog!$C138=\"Log value\",DataLog!AJ138,\"\")","v":""},{"$f":"IF(DataLog!$C138=\"Log value\",DataLog!AK138,\"\")","v":""},{"$f":"IF(DataLog!$C138=\"Log value\",DataLog!AL138,\"\")","v":""},{"$f":"IF(DataLog!$C138=\"Log value\",DataLog!AM138,\"\")","v":""}]
[null,null,"Standard","Standard -  - ",null,null,{"$f":"IF(DataLog!$C139=\"Log value\",DataLog!D139&\"_\"&TEXT(DataLog!B139,\"åååå-mm-dd\"),\"\")","v":""},{"$f":"IF(DataLog!$C139=\"Log value\",DataLog!E139,\"\")","v":""},{"$f":"IF(DataLog!$C139=\"Log value\",DataLog!F139,\"\")","v":""},{"$f":"IF(DataLog!$C139=\"Log value\",DataLog!G139,\"\")","v":""},{"$f":"IF(DataLog!$C139=\"Log value\",DataLog!H139,\"\")","v":""},{"$f":"IF(DataLog!$C139=\"Log value\",DataLog!I139,\"\")","v":""},{"$f":"IF(DataLog!$C139=\"Log value\",DataLog!J139,\"\")","v":""},{"$f":"IF(DataLog!$C139=\"Log value\",DataLog!K139,\"\")","v":""},{"$f":"IF(DataLog!$C139=\"Log value\",DataLog!L139,\"\")","v":""},{"$f":"IF(DataLog!$C139=\"Log value\",DataLog!M139,\"\")","v":""},{"$f":"IF(DataLog!$C139=\"Log value\",DataLog!N139,\"\")","v":""},{"$f":"IF(DataLog!$C139=\"Log value\",DataLog!O139,\"\")","v":""},{"$f":"IF(DataLog!$C139=\"Log value\",DataLog!P139,\"\")","v":""},{"$f":"IF(DataLog!$C139=\"Log value\",DataLog!Q139,\"\")","v":""},{"$f":"IF(DataLog!$C139=\"Log value\",DataLog!R139,\"\")","v":""},{"$f":"IF(DataLog!$C139=\"Log value\",DataLog!S139,\"\")","v":""},{"$f":"IF(DataLog!$C139=\"Log value\",DataLog!T139,\"\")","v":""},{"$f":"IF(DataLog!$C139=\"Log value\",DataLog!U139,\"\")","v":""},{"$f":"IF(DataLog!$C139=\"Log value\",DataLog!V139,\"\")","v":""},{"$f":"IF(DataLog!$C139=\"Log value\",DataLog!W139,\"\")","v":""},{"$f":"IF(DataLog!$C139=\"Log value\",DataLog!X139,\"\")","v":""},{"$f":"IF(DataLog!$C139=\"Log value\",DataLog!Y139,\"\")","v":""},{"$f":"IF(DataLog!$C139=\"Log value\",DataLog!Z139,\"\")","v":""},{"$f":"IF(DataLog!$C139=\"Log value\",DataLog!AA139,\"\")","v":""},{"$f":"IF(DataLog!$C139=\"Log value\",DataLog!AB139,\"\")","v":""},{"$f":"IF(DataLog!$C139=\"Log value\",DataLog!AC139,\"\")","v":""},{"$f":"IF(DataLog!$C139=\"Log value\",DataLog!AD139,\"\")","v":""},{"$f":"IF(DataLog!$C139=\"Log value\",DataLog!AE139,\"\")","v":""},{"$f":"IF(DataLog!$C139=\"Log value\",DataLog!AF139,\"\")","v":""},{"$f":"IF(DataLog!$C139=\"Log value\",DataLog!AG139,\"\")","v":""},{"$f":"IF(DataLog!$C139=\"Log value\",DataLog!AH139,\"\")","v":""},{"$f":"IF(DataLog!$C139=\"Log value\",DataLog!AI139,\"\")","v":""},{"$f":"IF(DataLog!$C139=\"Log value\",DataLog!AJ139,\"\")","v":""},{"$f":"IF(DataLog!$C139=\"Log value\",DataLog!AK139,\"\")","v":""},{"$f":"IF(DataLog!$C139=\"Log value\",DataLog!AL139,\"\")","v":""},{"$f":"IF(DataLog!$C139=\"Log value\",DataLog!AM139,\"\")","v":""}]
[null,null,"Standard","Standard -  - ",null,null,{"$f":"IF(DataLog!$C140=\"Log value\",DataLog!D140&\"_\"&TEXT(DataLog!B140,\"åååå-mm-dd\"),\"\")","v":""},{"$f":"IF(DataLog!$C140=\"Log value\",DataLog!E140,\"\")","v":""},{"$f":"IF(DataLog!$C140=\"Log value\",DataLog!F140,\"\")","v":""},{"$f":"IF(DataLog!$C140=\"Log value\",DataLog!G140,\"\")","v":""},{"$f":"IF(DataLog!$C140=\"Log value\",DataLog!H140,\"\")","v":""},{"$f":"IF(DataLog!$C140=\"Log value\",DataLog!I140,\"\")","v":""},{"$f":"IF(DataLog!$C140=\"Log value\",DataLog!J140,\"\")","v":""},{"$f":"IF(DataLog!$C140=\"Log value\",DataLog!K140,\"\")","v":""},{"$f":"IF(DataLog!$C140=\"Log value\",DataLog!L140,\"\")","v":""},{"$f":"IF(DataLog!$C140=\"Log value\",DataLog!M140,\"\")","v":""},{"$f":"IF(DataLog!$C140=\"Log value\",DataLog!N140,\"\")","v":""},{"$f":"IF(DataLog!$C140=\"Log value\",DataLog!O140,\"\")","v":""},{"$f":"IF(DataLog!$C140=\"Log value\",DataLog!P140,\"\")","v":""},{"$f":"IF(DataLog!$C140=\"Log value\",DataLog!Q140,\"\")","v":""},{"$f":"IF(DataLog!$C140=\"Log value\",DataLog!R140,\"\")","v":""},{"$f":"IF(DataLog!$C140=\"Log value\",DataLog!S140,\"\")","v":""},{"$f":"IF(DataLog!$C140=\"Log value\",DataLog!T140,\"\")","v":""},{"$f":"IF(DataLog!$C140=\"Log value\",DataLog!U140,\"\")","v":""},{"$f":"IF(DataLog!$C140=\"Log value\",DataLog!V140,\"\")","v":""},{"$f":"IF(DataLog!$C140=\"Log value\",DataLog!W140,\"\")","v":""},{"$f":"IF(DataLog!$C140=\"Log value\",DataLog!X140,\"\")","v":""},{"$f":"IF(DataLog!$C140=\"Log value\",DataLog!Y140,\"\")","v":""},{"$f":"IF(DataLog!$C140=\"Log value\",DataLog!Z140,\"\")","v":""},{"$f":"IF(DataLog!$C140=\"Log value\",DataLog!AA140,\"\")","v":""},{"$f":"IF(DataLog!$C140=\"Log value\",DataLog!AB140,\"\")","v":""},{"$f":"IF(DataLog!$C140=\"Log value\",DataLog!AC140,\"\")","v":""},{"$f":"IF(DataLog!$C140=\"Log value\",DataLog!AD140,\"\")","v":""},{"$f":"IF(DataLog!$C140=\"Log value\",DataLog!AE140,\"\")","v":""},{"$f":"IF(DataLog!$C140=\"Log value\",DataLog!AF140,\"\")","v":""},{"$f":"IF(DataLog!$C140=\"Log value\",DataLog!AG140,\"\")","v":""},{"$f":"IF(DataLog!$C140=\"Log value\",DataLog!AH140,\"\")","v":""},{"$f":"IF(DataLog!$C140=\"Log value\",DataLog!AI140,\"\")","v":""},{"$f":"IF(DataLog!$C140=\"Log value\",DataLog!AJ140,\"\")","v":""},{"$f":"IF(DataLog!$C140=\"Log value\",DataLog!AK140,\"\")","v":""},{"$f":"IF(DataLog!$C140=\"Log value\",DataLog!AL140,\"\")","v":""},{"$f":"IF(DataLog!$C140=\"Log value\",DataLog!AM140,\"\")","v":""}]
[null,null,"Standard","Standard -  - ",null,null,{"$f":"IF(DataLog!$C141=\"Log value\",DataLog!D141&\"_\"&TEXT(DataLog!B141,\"åååå-mm-dd\"),\"\")","v":""},{"$f":"IF(DataLog!$C141=\"Log value\",DataLog!E141,\"\")","v":""},{"$f":"IF(DataLog!$C141=\"Log value\",DataLog!F141,\"\")","v":""},{"$f":"IF(DataLog!$C141=\"Log value\",DataLog!G141,\"\")","v":""},{"$f":"IF(DataLog!$C141=\"Log value\",DataLog!H141,\"\")","v":""},{"$f":"IF(DataLog!$C141=\"Log value\",DataLog!I141,\"\")","v":""},{"$f":"IF(DataLog!$C141=\"Log value\",DataLog!J141,\"\")","v":""},{"$f":"IF(DataLog!$C141=\"Log value\",DataLog!K141,\"\")","v":""},{"$f":"IF(DataLog!$C141=\"Log value\",DataLog!L141,\"\")","v":""},{"$f":"IF(DataLog!$C141=\"Log value\",DataLog!M141,\"\")","v":""},{"$f":"IF(DataLog!$C141=\"Log value\",DataLog!N141,\"\")","v":""},{"$f":"IF(DataLog!$C141=\"Log value\",DataLog!O141,\"\")","v":""},{"$f":"IF(DataLog!$C141=\"Log value\",DataLog!P141,\"\")","v":""},{"$f":"IF(DataLog!$C141=\"Log value\",DataLog!Q141,\"\")","v":""},{"$f":"IF(DataLog!$C141=\"Log value\",DataLog!R141,\"\")","v":""},{"$f":"IF(DataLog!$C141=\"Log value\",DataLog!S141,\"\")","v":""},{"$f":"IF(DataLog!$C141=\"Log value\",DataLog!T141,\"\")","v":""},{"$f":"IF(DataLog!$C141=\"Log value\",DataLog!U141,\"\")","v":""},{"$f":"IF(DataLog!$C141=\"Log value\",DataLog!V141,\"\")","v":""},{"$f":"IF(DataLog!$C141=\"Log value\",DataLog!W141,\"\")","v":""},{"$f":"IF(DataLog!$C141=\"Log value\",DataLog!X141,\"\")","v":""},{"$f":"IF(DataLog!$C141=\"Log value\",DataLog!Y141,\"\")","v":""},{"$f":"IF(DataLog!$C141=\"Log value\",DataLog!Z141,\"\")","v":""},{"$f":"IF(DataLog!$C141=\"Log value\",DataLog!AA141,\"\")","v":""},{"$f":"IF(DataLog!$C141=\"Log value\",DataLog!AB141,\"\")","v":""},{"$f":"IF(DataLog!$C141=\"Log value\",DataLog!AC141,\"\")","v":""},{"$f":"IF(DataLog!$C141=\"Log value\",DataLog!AD141,\"\")","v":""},{"$f":"IF(DataLog!$C141=\"Log value\",DataLog!AE141,\"\")","v":""},{"$f":"IF(DataLog!$C141=\"Log value\",DataLog!AF141,\"\")","v":""},{"$f":"IF(DataLog!$C141=\"Log value\",DataLog!AG141,\"\")","v":""},{"$f":"IF(DataLog!$C141=\"Log value\",DataLog!AH141,\"\")","v":""},{"$f":"IF(DataLog!$C141=\"Log value\",DataLog!AI141,\"\")","v":""},{"$f":"IF(DataLog!$C141=\"Log value\",DataLog!AJ141,\"\")","v":""},{"$f":"IF(DataLog!$C141=\"Log value\",DataLog!AK141,\"\")","v":""},{"$f":"IF(DataLog!$C141=\"Log value\",DataLog!AL141,\"\")","v":""},{"$f":"IF(DataLog!$C141=\"Log value\",DataLog!AM141,\"\")","v":""}]
[null,null,"Standard","Standard -  - ",null,null,{"$f":"IF(DataLog!$C142=\"Log value\",DataLog!D142&\"_\"&TEXT(DataLog!B142,\"åååå-mm-dd\"),\"\")","v":""},{"$f":"IF(DataLog!$C142=\"Log value\",DataLog!E142,\"\")","v":""},{"$f":"IF(DataLog!$C142=\"Log value\",DataLog!F142,\"\")","v":""},{"$f":"IF(DataLog!$C142=\"Log value\",DataLog!G142,\"\")","v":""},{"$f":"IF(DataLog!$C142=\"Log value\",DataLog!H142,\"\")","v":""},{"$f":"IF(DataLog!$C142=\"Log value\",DataLog!I142,\"\")","v":""},{"$f":"IF(DataLog!$C142=\"Log value\",DataLog!J142,\"\")","v":""},{"$f":"IF(DataLog!$C142=\"Log value\",DataLog!K142,\"\")","v":""},{"$f":"IF(DataLog!$C142=\"Log value\",DataLog!L142,\"\")","v":""},{"$f":"IF(DataLog!$C142=\"Log value\",DataLog!M142,\"\")","v":""},{"$f":"IF(DataLog!$C142=\"Log value\",DataLog!N142,\"\")","v":""},{"$f":"IF(DataLog!$C142=\"Log value\",DataLog!O142,\"\")","v":""},{"$f":"IF(DataLog!$C142=\"Log value\",DataLog!P142,\"\")","v":""},{"$f":"IF(DataLog!$C142=\"Log value\",DataLog!Q142,\"\")","v":""},{"$f":"IF(DataLog!$C142=\"Log value\",DataLog!R142,\"\")","v":""},{"$f":"IF(DataLog!$C142=\"Log value\",DataLog!S142,\"\")","v":""},{"$f":"IF(DataLog!$C142=\"Log value\",DataLog!T142,\"\")","v":""},{"$f":"IF(DataLog!$C142=\"Log value\",DataLog!U142,\"\")","v":""},{"$f":"IF(DataLog!$C142=\"Log value\",DataLog!V142,\"\")","v":""},{"$f":"IF(DataLog!$C142=\"Log value\",DataLog!W142,\"\")","v":""},{"$f":"IF(DataLog!$C142=\"Log value\",DataLog!X142,\"\")","v":""},{"$f":"IF(DataLog!$C142=\"Log value\",DataLog!Y142,\"\")","v":""},{"$f":"IF(DataLog!$C142=\"Log value\",DataLog!Z142,\"\")","v":""},{"$f":"IF(DataLog!$C142=\"Log value\",DataLog!AA142,\"\")","v":""},{"$f":"IF(DataLog!$C142=\"Log value\",DataLog!AB142,\"\")","v":""},{"$f":"IF(DataLog!$C142=\"Log value\",DataLog!AC142,\"\")","v":""},{"$f":"IF(DataLog!$C142=\"Log value\",DataLog!AD142,\"\")","v":""},{"$f":"IF(DataLog!$C142=\"Log value\",DataLog!AE142,\"\")","v":""},{"$f":"IF(DataLog!$C142=\"Log value\",DataLog!AF142,\"\")","v":""},{"$f":"IF(DataLog!$C142=\"Log value\",DataLog!AG142,\"\")","v":""},{"$f":"IF(DataLog!$C142=\"Log value\",DataLog!AH142,\"\")","v":""},{"$f":"IF(DataLog!$C142=\"Log value\",DataLog!AI142,\"\")","v":""},{"$f":"IF(DataLog!$C142=\"Log value\",DataLog!AJ142,\"\")","v":""},{"$f":"IF(DataLog!$C142=\"Log value\",DataLog!AK142,\"\")","v":""},{"$f":"IF(DataLog!$C142=\"Log value\",DataLog!AL142,\"\")","v":""},{"$f":"IF(DataLog!$C142=\"Log value\",DataLog!AM142,\"\")","v":""}]
[null,null,"Standard","Standard -  - ",null,null,{"$f":"IF(DataLog!$C143=\"Log value\",DataLog!D143&\"_\"&TEXT(DataLog!B143,\"åååå-mm-dd\"),\"\")","v":""},{"$f":"IF(DataLog!$C143=\"Log value\",DataLog!E143,\"\")","v":""},{"$f":"IF(DataLog!$C143=\"Log value\",DataLog!F143,\"\")","v":""},{"$f":"IF(DataLog!$C143=\"Log value\",DataLog!G143,\"\")","v":""},{"$f":"IF(DataLog!$C143=\"Log value\",DataLog!H143,\"\")","v":""},{"$f":"IF(DataLog!$C143=\"Log value\",DataLog!I143,\"\")","v":""},{"$f":"IF(DataLog!$C143=\"Log value\",DataLog!J143,\"\")","v":""},{"$f":"IF(DataLog!$C143=\"Log value\",DataLog!K143,\"\")","v":""},{"$f":"IF(DataLog!$C143=\"Log value\",DataLog!L143,\"\")","v":""},{"$f":"IF(DataLog!$C143=\"Log value\",DataLog!M143,\"\")","v":""},{"$f":"IF(DataLog!$C143=\"Log value\",DataLog!N143,\"\")","v":""},{"$f":"IF(DataLog!$C143=\"Log value\",DataLog!O143,\"\")","v":""},{"$f":"IF(DataLog!$C143=\"Log value\",DataLog!P143,\"\")","v":""},{"$f":"IF(DataLog!$C143=\"Log value\",DataLog!Q143,\"\")","v":""},{"$f":"IF(DataLog!$C143=\"Log value\",DataLog!R143,\"\")","v":""},{"$f":"IF(DataLog!$C143=\"Log value\",DataLog!S143,\"\")","v":""},{"$f":"IF(DataLog!$C143=\"Log value\",DataLog!T143,\"\")","v":""},{"$f":"IF(DataLog!$C143=\"Log value\",DataLog!U143,\"\")","v":""},{"$f":"IF(DataLog!$C143=\"Log value\",DataLog!V143,\"\")","v":""},{"$f":"IF(DataLog!$C143=\"Log value\",DataLog!W143,\"\")","v":""},{"$f":"IF(DataLog!$C143=\"Log value\",DataLog!X143,\"\")","v":""},{"$f":"IF(DataLog!$C143=\"Log value\",DataLog!Y143,\"\")","v":""},{"$f":"IF(DataLog!$C143=\"Log value\",DataLog!Z143,\"\")","v":""},{"$f":"IF(DataLog!$C143=\"Log value\",DataLog!AA143,\"\")","v":""},{"$f":"IF(DataLog!$C143=\"Log value\",DataLog!AB143,\"\")","v":""},{"$f":"IF(DataLog!$C143=\"Log value\",DataLog!AC143,\"\")","v":""},{"$f":"IF(DataLog!$C143=\"Log value\",DataLog!AD143,\"\")","v":""},{"$f":"IF(DataLog!$C143=\"Log value\",DataLog!AE143,\"\")","v":""},{"$f":"IF(DataLog!$C143=\"Log value\",DataLog!AF143,\"\")","v":""},{"$f":"IF(DataLog!$C143=\"Log value\",DataLog!AG143,\"\")","v":""},{"$f":"IF(DataLog!$C143=\"Log value\",DataLog!AH143,\"\")","v":""},{"$f":"IF(DataLog!$C143=\"Log value\",DataLog!AI143,\"\")","v":""},{"$f":"IF(DataLog!$C143=\"Log value\",DataLog!AJ143,\"\")","v":""},{"$f":"IF(DataLog!$C143=\"Log value\",DataLog!AK143,\"\")","v":""},{"$f":"IF(DataLog!$C143=\"Log value\",DataLog!AL143,\"\")","v":""},{"$f":"IF(DataLog!$C143=\"Log value\",DataLog!AM143,\"\")","v":""}]
[null,null,"Standard","Standard -  - ",null,null,{"$f":"IF(DataLog!$C144=\"Log value\",DataLog!D144&\"_\"&TEXT(DataLog!B144,\"åååå-mm-dd\"),\"\")","v":""},{"$f":"IF(DataLog!$C144=\"Log value\",DataLog!E144,\"\")","v":""},{"$f":"IF(DataLog!$C144=\"Log value\",DataLog!F144,\"\")","v":""},{"$f":"IF(DataLog!$C144=\"Log value\",DataLog!G144,\"\")","v":""},{"$f":"IF(DataLog!$C144=\"Log value\",DataLog!H144,\"\")","v":""},{"$f":"IF(DataLog!$C144=\"Log value\",DataLog!I144,\"\")","v":""},{"$f":"IF(DataLog!$C144=\"Log value\",DataLog!J144,\"\")","v":""},{"$f":"IF(DataLog!$C144=\"Log value\",DataLog!K144,\"\")","v":""},{"$f":"IF(DataLog!$C144=\"Log value\",DataLog!L144,\"\")","v":""},{"$f":"IF(DataLog!$C144=\"Log value\",DataLog!M144,\"\")","v":""},{"$f":"IF(DataLog!$C144=\"Log value\",DataLog!N144,\"\")","v":""},{"$f":"IF(DataLog!$C144=\"Log value\",DataLog!O144,\"\")","v":""},{"$f":"IF(DataLog!$C144=\"Log value\",DataLog!P144,\"\")","v":""},{"$f":"IF(DataLog!$C144=\"Log value\",DataLog!Q144,\"\")","v":""},{"$f":"IF(DataLog!$C144=\"Log value\",DataLog!R144,\"\")","v":""},{"$f":"IF(DataLog!$C144=\"Log value\",DataLog!S144,\"\")","v":""},{"$f":"IF(DataLog!$C144=\"Log value\",DataLog!T144,\"\")","v":""},{"$f":"IF(DataLog!$C144=\"Log value\",DataLog!U144,\"\")","v":""},{"$f":"IF(DataLog!$C144=\"Log value\",DataLog!V144,\"\")","v":""},{"$f":"IF(DataLog!$C144=\"Log value\",DataLog!W144,\"\")","v":""},{"$f":"IF(DataLog!$C144=\"Log value\",DataLog!X144,\"\")","v":""},{"$f":"IF(DataLog!$C144=\"Log value\",DataLog!Y144,\"\")","v":""},{"$f":"IF(DataLog!$C144=\"Log value\",DataLog!Z144,\"\")","v":""},{"$f":"IF(DataLog!$C144=\"Log value\",DataLog!AA144,\"\")","v":""},{"$f":"IF(DataLog!$C144=\"Log value\",DataLog!AB144,\"\")","v":""},{"$f":"IF(DataLog!$C144=\"Log value\",DataLog!AC144,\"\")","v":""},{"$f":"IF(DataLog!$C144=\"Log value\",DataLog!AD144,\"\")","v":""},{"$f":"IF(DataLog!$C144=\"Log value\",DataLog!AE144,\"\")","v":""},{"$f":"IF(DataLog!$C144=\"Log value\",DataLog!AF144,\"\")","v":""},{"$f":"IF(DataLog!$C144=\"Log value\",DataLog!AG144,\"\")","v":""},{"$f":"IF(DataLog!$C144=\"Log value\",DataLog!AH144,\"\")","v":""},{"$f":"IF(DataLog!$C144=\"Log value\",DataLog!AI144,\"\")","v":""},{"$f":"IF(DataLog!$C144=\"Log value\",DataLog!AJ144,\"\")","v":""},{"$f":"IF(DataLog!$C144=\"Log value\",DataLog!AK144,\"\")","v":""},{"$f":"IF(DataLog!$C144=\"Log value\",DataLog!AL144,\"\")","v":""},{"$f":"IF(DataLog!$C144=\"Log value\",DataLog!AM144,\"\")","v":""}]
[null,null,"Standard","Standard -  - ",null,null,{"$f":"IF(DataLog!$C145=\"Log value\",DataLog!D145&\"_\"&TEXT(DataLog!B145,\"åååå-mm-dd\"),\"\")","v":""},{"$f":"IF(DataLog!$C145=\"Log value\",DataLog!E145,\"\")","v":""},{"$f":"IF(DataLog!$C145=\"Log value\",DataLog!F145,\"\")","v":""},{"$f":"IF(DataLog!$C145=\"Log value\",DataLog!G145,\"\")","v":""},{"$f":"IF(DataLog!$C145=\"Log value\",DataLog!H145,\"\")","v":""},{"$f":"IF(DataLog!$C145=\"Log value\",DataLog!I145,\"\")","v":""},{"$f":"IF(DataLog!$C145=\"Log value\",DataLog!J145,\"\")","v":""},{"$f":"IF(DataLog!$C145=\"Log value\",DataLog!K145,\"\")","v":""},{"$f":"IF(DataLog!$C145=\"Log value\",DataLog!L145,\"\")","v":""},{"$f":"IF(DataLog!$C145=\"Log value\",DataLog!M145,\"\")","v":""},{"$f":"IF(DataLog!$C145=\"Log value\",DataLog!N145,\"\")","v":""},{"$f":"IF(DataLog!$C145=\"Log value\",DataLog!O145,\"\")","v":""},{"$f":"IF(DataLog!$C145=\"Log value\",DataLog!P145,\"\")","v":""},{"$f":"IF(DataLog!$C145=\"Log value\",DataLog!Q145,\"\")","v":""},{"$f":"IF(DataLog!$C145=\"Log value\",DataLog!R145,\"\")","v":""},{"$f":"IF(DataLog!$C145=\"Log value\",DataLog!S145,\"\")","v":""},{"$f":"IF(DataLog!$C145=\"Log value\",DataLog!T145,\"\")","v":""},{"$f":"IF(DataLog!$C145=\"Log value\",DataLog!U145,\"\")","v":""},{"$f":"IF(DataLog!$C145=\"Log value\",DataLog!V145,\"\")","v":""},{"$f":"IF(DataLog!$C145=\"Log value\",DataLog!W145,\"\")","v":""},{"$f":"IF(DataLog!$C145=\"Log value\",DataLog!X145,\"\")","v":""},{"$f":"IF(DataLog!$C145=\"Log value\",DataLog!Y145,\"\")","v":""},{"$f":"IF(DataLog!$C145=\"Log value\",DataLog!Z145,\"\")","v":""},{"$f":"IF(DataLog!$C145=\"Log value\",DataLog!AA145,\"\")","v":""},{"$f":"IF(DataLog!$C145=\"Log value\",DataLog!AB145,\"\")","v":""},{"$f":"IF(DataLog!$C145=\"Log value\",DataLog!AC145,\"\")","v":""},{"$f":"IF(DataLog!$C145=\"Log value\",DataLog!AD145,\"\")","v":""},{"$f":"IF(DataLog!$C145=\"Log value\",DataLog!AE145,\"\")","v":""},{"$f":"IF(DataLog!$C145=\"Log value\",DataLog!AF145,\"\")","v":""},{"$f":"IF(DataLog!$C145=\"Log value\",DataLog!AG145,\"\")","v":""},{"$f":"IF(DataLog!$C145=\"Log value\",DataLog!AH145,\"\")","v":""},{"$f":"IF(DataLog!$C145=\"Log value\",DataLog!AI145,\"\")","v":""},{"$f":"IF(DataLog!$C145=\"Log value\",DataLog!AJ145,\"\")","v":""},{"$f":"IF(DataLog!$C145=\"Log value\",DataLog!AK145,\"\")","v":""},{"$f":"IF(DataLog!$C145=\"Log value\",DataLog!AL145,\"\")","v":""},{"$f":"IF(DataLog!$C145=\"Log value\",DataLog!AM145,\"\")","v":""}]
[null,null,"Standard","Standard -  - ",null,null,{"$f":"IF(DataLog!$C146=\"Log value\",DataLog!D146&\"_\"&TEXT(DataLog!B146,\"åååå-mm-dd\"),\"\")","v":""},{"$f":"IF(DataLog!$C146=\"Log value\",DataLog!E146,\"\")","v":""},{"$f":"IF(DataLog!$C146=\"Log value\",DataLog!F146,\"\")","v":""},{"$f":"IF(DataLog!$C146=\"Log value\",DataLog!G146,\"\")","v":""},{"$f":"IF(DataLog!$C146=\"Log value\",DataLog!H146,\"\")","v":""},{"$f":"IF(DataLog!$C146=\"Log value\",DataLog!I146,\"\")","v":""},{"$f":"IF(DataLog!$C146=\"Log value\",DataLog!J146,\"\")","v":""},{"$f":"IF(DataLog!$C146=\"Log value\",DataLog!K146,\"\")","v":""},{"$f":"IF(DataLog!$C146=\"Log value\",DataLog!L146,\"\")","v":""},{"$f":"IF(DataLog!$C146=\"Log value\",DataLog!M146,\"\")","v":""},{"$f":"IF(DataLog!$C146=\"Log value\",DataLog!N146,\"\")","v":""},{"$f":"IF(DataLog!$C146=\"Log value\",DataLog!O146,\"\")","v":""},{"$f":"IF(DataLog!$C146=\"Log value\",DataLog!P146,\"\")","v":""},{"$f":"IF(DataLog!$C146=\"Log value\",DataLog!Q146,\"\")","v":""},{"$f":"IF(DataLog!$C146=\"Log value\",DataLog!R146,\"\")","v":""},{"$f":"IF(DataLog!$C146=\"Log value\",DataLog!S146,\"\")","v":""},{"$f":"IF(DataLog!$C146=\"Log value\",DataLog!T146,\"\")","v":""},{"$f":"IF(DataLog!$C146=\"Log value\",DataLog!U146,\"\")","v":""},{"$f":"IF(DataLog!$C146=\"Log value\",DataLog!V146,\"\")","v":""},{"$f":"IF(DataLog!$C146=\"Log value\",DataLog!W146,\"\")","v":""},{"$f":"IF(DataLog!$C146=\"Log value\",DataLog!X146,\"\")","v":""},{"$f":"IF(DataLog!$C146=\"Log value\",DataLog!Y146,\"\")","v":""},{"$f":"IF(DataLog!$C146=\"Log value\",DataLog!Z146,\"\")","v":""},{"$f":"IF(DataLog!$C146=\"Log value\",DataLog!AA146,\"\")","v":""},{"$f":"IF(DataLog!$C146=\"Log value\",DataLog!AB146,\"\")","v":""},{"$f":"IF(DataLog!$C146=\"Log value\",DataLog!AC146,\"\")","v":""},{"$f":"IF(DataLog!$C146=\"Log value\",DataLog!AD146,\"\")","v":""},{"$f":"IF(DataLog!$C146=\"Log value\",DataLog!AE146,\"\")","v":""},{"$f":"IF(DataLog!$C146=\"Log value\",DataLog!AF146,\"\")","v":""},{"$f":"IF(DataLog!$C146=\"Log value\",DataLog!AG146,\"\")","v":""},{"$f":"IF(DataLog!$C146=\"Log value\",DataLog!AH146,\"\")","v":""},{"$f":"IF(DataLog!$C146=\"Log value\",DataLog!AI146,\"\")","v":""},{"$f":"IF(DataLog!$C146=\"Log value\",DataLog!AJ146,\"\")","v":""},{"$f":"IF(DataLog!$C146=\"Log value\",DataLog!AK146,\"\")","v":""},{"$f":"IF(DataLog!$C146=\"Log value\",DataLog!AL146,\"\")","v":""},{"$f":"IF(DataLog!$C146=\"Log value\",DataLog!AM146,\"\")","v":""}]
[null,null,"Standard","Standard -  - ",null,null,{"$f":"IF(DataLog!$C147=\"Log value\",DataLog!D147&\"_\"&TEXT(DataLog!B147,\"åååå-mm-dd\"),\"\")","v":""},{"$f":"IF(DataLog!$C147=\"Log value\",DataLog!E147,\"\")","v":""},{"$f":"IF(DataLog!$C147=\"Log value\",DataLog!F147,\"\")","v":""},{"$f":"IF(DataLog!$C147=\"Log value\",DataLog!G147,\"\")","v":""},{"$f":"IF(DataLog!$C147=\"Log value\",DataLog!H147,\"\")","v":""},{"$f":"IF(DataLog!$C147=\"Log value\",DataLog!I147,\"\")","v":""},{"$f":"IF(DataLog!$C147=\"Log value\",DataLog!J147,\"\")","v":""},{"$f":"IF(DataLog!$C147=\"Log value\",DataLog!K147,\"\")","v":""},{"$f":"IF(DataLog!$C147=\"Log value\",DataLog!L147,\"\")","v":""},{"$f":"IF(DataLog!$C147=\"Log value\",DataLog!M147,\"\")","v":""},{"$f":"IF(DataLog!$C147=\"Log value\",DataLog!N147,\"\")","v":""},{"$f":"IF(DataLog!$C147=\"Log value\",DataLog!O147,\"\")","v":""},{"$f":"IF(DataLog!$C147=\"Log value\",DataLog!P147,\"\")","v":""},{"$f":"IF(DataLog!$C147=\"Log value\",DataLog!Q147,\"\")","v":""},{"$f":"IF(DataLog!$C147=\"Log value\",DataLog!R147,\"\")","v":""},{"$f":"IF(DataLog!$C147=\"Log value\",DataLog!S147,\"\")","v":""},{"$f":"IF(DataLog!$C147=\"Log value\",DataLog!T147,\"\")","v":""},{"$f":"IF(DataLog!$C147=\"Log value\",DataLog!U147,\"\")","v":""},{"$f":"IF(DataLog!$C147=\"Log value\",DataLog!V147,\"\")","v":""},{"$f":"IF(DataLog!$C147=\"Log value\",DataLog!W147,\"\")","v":""},{"$f":"IF(DataLog!$C147=\"Log value\",DataLog!X147,\"\")","v":""},{"$f":"IF(DataLog!$C147=\"Log value\",DataLog!Y147,\"\")","v":""},{"$f":"IF(DataLog!$C147=\"Log value\",DataLog!Z147,\"\")","v":""},{"$f":"IF(DataLog!$C147=\"Log value\",DataLog!AA147,\"\")","v":""},{"$f":"IF(DataLog!$C147=\"Log value\",DataLog!AB147,\"\")","v":""},{"$f":"IF(DataLog!$C147=\"Log value\",DataLog!AC147,\"\")","v":""},{"$f":"IF(DataLog!$C147=\"Log value\",DataLog!AD147,\"\")","v":""},{"$f":"IF(DataLog!$C147=\"Log value\",DataLog!AE147,\"\")","v":""},{"$f":"IF(DataLog!$C147=\"Log value\",DataLog!AF147,\"\")","v":""},{"$f":"IF(DataLog!$C147=\"Log value\",DataLog!AG147,\"\")","v":""},{"$f":"IF(DataLog!$C147=\"Log value\",DataLog!AH147,\"\")","v":""},{"$f":"IF(DataLog!$C147=\"Log value\",DataLog!AI147,\"\")","v":""},{"$f":"IF(DataLog!$C147=\"Log value\",DataLog!AJ147,\"\")","v":""},{"$f":"IF(DataLog!$C147=\"Log value\",DataLog!AK147,\"\")","v":""},{"$f":"IF(DataLog!$C147=\"Log value\",DataLog!AL147,\"\")","v":""},{"$f":"IF(DataLog!$C147=\"Log value\",DataLog!AM147,\"\")","v":""}]
[null,null,"Standard","Standard -  - ",null,null,{"$f":"IF(DataLog!$C148=\"Log value\",DataLog!D148&\"_\"&TEXT(DataLog!B148,\"åååå-mm-dd\"),\"\")","v":""},{"$f":"IF(DataLog!$C148=\"Log value\",DataLog!E148,\"\")","v":""},{"$f":"IF(DataLog!$C148=\"Log value\",DataLog!F148,\"\")","v":""},{"$f":"IF(DataLog!$C148=\"Log value\",DataLog!G148,\"\")","v":""},{"$f":"IF(DataLog!$C148=\"Log value\",DataLog!H148,\"\")","v":""},{"$f":"IF(DataLog!$C148=\"Log value\",DataLog!I148,\"\")","v":""},{"$f":"IF(DataLog!$C148=\"Log value\",DataLog!J148,\"\")","v":""},{"$f":"IF(DataLog!$C148=\"Log value\",DataLog!K148,\"\")","v":""},{"$f":"IF(DataLog!$C148=\"Log value\",DataLog!L148,\"\")","v":""},{"$f":"IF(DataLog!$C148=\"Log value\",DataLog!M148,\"\")","v":""},{"$f":"IF(DataLog!$C148=\"Log value\",DataLog!N148,\"\")","v":""},{"$f":"IF(DataLog!$C148=\"Log value\",DataLog!O148,\"\")","v":""},{"$f":"IF(DataLog!$C148=\"Log value\",DataLog!P148,\"\")","v":""},{"$f":"IF(DataLog!$C148=\"Log value\",DataLog!Q148,\"\")","v":""},{"$f":"IF(DataLog!$C148=\"Log value\",DataLog!R148,\"\")","v":""},{"$f":"IF(DataLog!$C148=\"Log value\",DataLog!S148,\"\")","v":""},{"$f":"IF(DataLog!$C148=\"Log value\",DataLog!T148,\"\")","v":""},{"$f":"IF(DataLog!$C148=\"Log value\",DataLog!U148,\"\")","v":""},{"$f":"IF(DataLog!$C148=\"Log value\",DataLog!V148,\"\")","v":""},{"$f":"IF(DataLog!$C148=\"Log value\",DataLog!W148,\"\")","v":""},{"$f":"IF(DataLog!$C148=\"Log value\",DataLog!X148,\"\")","v":""},{"$f":"IF(DataLog!$C148=\"Log value\",DataLog!Y148,\"\")","v":""},{"$f":"IF(DataLog!$C148=\"Log value\",DataLog!Z148,\"\")","v":""},{"$f":"IF(DataLog!$C148=\"Log value\",DataLog!AA148,\"\")","v":""},{"$f":"IF(DataLog!$C148=\"Log value\",DataLog!AB148,\"\")","v":""},{"$f":"IF(DataLog!$C148=\"Log value\",DataLog!AC148,\"\")","v":""},{"$f":"IF(DataLog!$C148=\"Log value\",DataLog!AD148,\"\")","v":""},{"$f":"IF(DataLog!$C148=\"Log value\",DataLog!AE148,\"\")","v":""},{"$f":"IF(DataLog!$C148=\"Log value\",DataLog!AF148,\"\")","v":""},{"$f":"IF(DataLog!$C148=\"Log value\",DataLog!AG148,\"\")","v":""},{"$f":"IF(DataLog!$C148=\"Log value\",DataLog!AH148,\"\")","v":""},{"$f":"IF(DataLog!$C148=\"Log value\",DataLog!AI148,\"\")","v":""},{"$f":"IF(DataLog!$C148=\"Log value\",DataLog!AJ148,\"\")","v":""},{"$f":"IF(DataLog!$C148=\"Log value\",DataLog!AK148,\"\")","v":""},{"$f":"IF(DataLog!$C148=\"Log value\",DataLog!AL148,\"\")","v":""},{"$f":"IF(DataLog!$C148=\"Log value\",DataLog!AM148,\"\")","v":""}]
[null,null,"Standard","Standard -  - ",null,null,{"$f":"IF(DataLog!$C149=\"Log value\",DataLog!D149&\"_\"&TEXT(DataLog!B149,\"åååå-mm-dd\"),\"\")","v":""},{"$f":"IF(DataLog!$C149=\"Log value\",DataLog!E149,\"\")","v":""},{"$f":"IF(DataLog!$C149=\"Log value\",DataLog!F149,\"\")","v":""},{"$f":"IF(DataLog!$C149=\"Log value\",DataLog!G149,\"\")","v":""},{"$f":"IF(DataLog!$C149=\"Log value\",DataLog!H149,\"\")","v":""},{"$f":"IF(DataLog!$C149=\"Log value\",DataLog!I149,\"\")","v":""},{"$f":"IF(DataLog!$C149=\"Log value\",DataLog!J149,\"\")","v":""},{"$f":"IF(DataLog!$C149=\"Log value\",DataLog!K149,\"\")","v":""},{"$f":"IF(DataLog!$C149=\"Log value\",DataLog!L149,\"\")","v":""},{"$f":"IF(DataLog!$C149=\"Log value\",DataLog!M149,\"\")","v":""},{"$f":"IF(DataLog!$C149=\"Log value\",DataLog!N149,\"\")","v":""},{"$f":"IF(DataLog!$C149=\"Log value\",DataLog!O149,\"\")","v":""},{"$f":"IF(DataLog!$C149=\"Log value\",DataLog!P149,\"\")","v":""},{"$f":"IF(DataLog!$C149=\"Log value\",DataLog!Q149,\"\")","v":""},{"$f":"IF(DataLog!$C149=\"Log value\",DataLog!R149,\"\")","v":""},{"$f":"IF(DataLog!$C149=\"Log value\",DataLog!S149,\"\")","v":""},{"$f":"IF(DataLog!$C149=\"Log value\",DataLog!T149,\"\")","v":""},{"$f":"IF(DataLog!$C149=\"Log value\",DataLog!U149,\"\")","v":""},{"$f":"IF(DataLog!$C149=\"Log value\",DataLog!V149,\"\")","v":""},{"$f":"IF(DataLog!$C149=\"Log value\",DataLog!W149,\"\")","v":""},{"$f":"IF(DataLog!$C149=\"Log value\",DataLog!X149,\"\")","v":""},{"$f":"IF(DataLog!$C149=\"Log value\",DataLog!Y149,\"\")","v":""},{"$f":"IF(DataLog!$C149=\"Log value\",DataLog!Z149,\"\")","v":""},{"$f":"IF(DataLog!$C149=\"Log value\",DataLog!AA149,\"\")","v":""},{"$f":"IF(DataLog!$C149=\"Log value\",DataLog!AB149,\"\")","v":""},{"$f":"IF(DataLog!$C149=\"Log value\",DataLog!AC149,\"\")","v":""},{"$f":"IF(DataLog!$C149=\"Log value\",DataLog!AD149,\"\")","v":""},{"$f":"IF(DataLog!$C149=\"Log value\",DataLog!AE149,\"\")","v":""},{"$f":"IF(DataLog!$C149=\"Log value\",DataLog!AF149,\"\")","v":""},{"$f":"IF(DataLog!$C149=\"Log value\",DataLog!AG149,\"\")","v":""},{"$f":"IF(DataLog!$C149=\"Log value\",DataLog!AH149,\"\")","v":""},{"$f":"IF(DataLog!$C149=\"Log value\",DataLog!AI149,\"\")","v":""},{"$f":"IF(DataLog!$C149=\"Log value\",DataLog!AJ149,\"\")","v":""},{"$f":"IF(DataLog!$C149=\"Log value\",DataLog!AK149,\"\")","v":""},{"$f":"IF(DataLog!$C149=\"Log value\",DataLog!AL149,\"\")","v":""},{"$f":"IF(DataLog!$C149=\"Log value\",DataLog!AM149,\"\")","v":""}]
[null,null,"Standard","Standard -  - ",null,null,{"$f":"IF(DataLog!$C150=\"Log value\",DataLog!D150&\"_\"&TEXT(DataLog!B150,\"åååå-mm-dd\"),\"\")","v":""},{"$f":"IF(DataLog!$C150=\"Log value\",DataLog!E150,\"\")","v":""},{"$f":"IF(DataLog!$C150=\"Log value\",DataLog!F150,\"\")","v":""},{"$f":"IF(DataLog!$C150=\"Log value\",DataLog!G150,\"\")","v":""},{"$f":"IF(DataLog!$C150=\"Log value\",DataLog!H150,\"\")","v":""},{"$f":"IF(DataLog!$C150=\"Log value\",DataLog!I150,\"\")","v":""},{"$f":"IF(DataLog!$C150=\"Log value\",DataLog!J150,\"\")","v":""},{"$f":"IF(DataLog!$C150=\"Log value\",DataLog!K150,\"\")","v":""},{"$f":"IF(DataLog!$C150=\"Log value\",DataLog!L150,\"\")","v":""},{"$f":"IF(DataLog!$C150=\"Log value\",DataLog!M150,\"\")","v":""},{"$f":"IF(DataLog!$C150=\"Log value\",DataLog!N150,\"\")","v":""},{"$f":"IF(DataLog!$C150=\"Log value\",DataLog!O150,\"\")","v":""},{"$f":"IF(DataLog!$C150=\"Log value\",DataLog!P150,\"\")","v":""},{"$f":"IF(DataLog!$C150=\"Log value\",DataLog!Q150,\"\")","v":""},{"$f":"IF(DataLog!$C150=\"Log value\",DataLog!R150,\"\")","v":""},{"$f":"IF(DataLog!$C150=\"Log value\",DataLog!S150,\"\")","v":""},{"$f":"IF(DataLog!$C150=\"Log value\",DataLog!T150,\"\")","v":""},{"$f":"IF(DataLog!$C150=\"Log value\",DataLog!U150,\"\")","v":""},{"$f":"IF(DataLog!$C150=\"Log value\",DataLog!V150,\"\")","v":""},{"$f":"IF(DataLog!$C150=\"Log value\",DataLog!W150,\"\")","v":""},{"$f":"IF(DataLog!$C150=\"Log value\",DataLog!X150,\"\")","v":""},{"$f":"IF(DataLog!$C150=\"Log value\",DataLog!Y150,\"\")","v":""},{"$f":"IF(DataLog!$C150=\"Log value\",DataLog!Z150,\"\")","v":""},{"$f":"IF(DataLog!$C150=\"Log value\",DataLog!AA150,\"\")","v":""},{"$f":"IF(DataLog!$C150=\"Log value\",DataLog!AB150,\"\")","v":""},{"$f":"IF(DataLog!$C150=\"Log value\",DataLog!AC150,\"\")","v":""},{"$f":"IF(DataLog!$C150=\"Log value\",DataLog!AD150,\"\")","v":""},{"$f":"IF(DataLog!$C150=\"Log value\",DataLog!AE150,\"\")","v":""},{"$f":"IF(DataLog!$C150=\"Log value\",DataLog!AF150,\"\")","v":""},{"$f":"IF(DataLog!$C150=\"Log value\",DataLog!AG150,\"\")","v":""},{"$f":"IF(DataLog!$C150=\"Log value\",DataLog!AH150,\"\")","v":""},{"$f":"IF(DataLog!$C150=\"Log value\",DataLog!AI150,\"\")","v":""},{"$f":"IF(DataLog!$C150=\"Log value\",DataLog!AJ150,\"\")","v":""},{"$f":"IF(DataLog!$C150=\"Log value\",DataLog!AK150,\"\")","v":""},{"$f":"IF(DataLog!$C150=\"Log value\",DataLog!AL150,\"\")","v":""},{"$f":"IF(DataLog!$C150=\"Log value\",DataLog!AM150,\"\")","v":""}]
[null,null,"Standard","Standard -  - ",null,null,{"$f":"IF(DataLog!$C151=\"Log value\",DataLog!D151&\"_\"&TEXT(DataLog!B151,\"åååå-mm-dd\"),\"\")","v":""},{"$f":"IF(DataLog!$C151=\"Log value\",DataLog!E151,\"\")","v":""},{"$f":"IF(DataLog!$C151=\"Log value\",DataLog!F151,\"\")","v":""},{"$f":"IF(DataLog!$C151=\"Log value\",DataLog!G151,\"\")","v":""},{"$f":"IF(DataLog!$C151=\"Log value\",DataLog!H151,\"\")","v":""},{"$f":"IF(DataLog!$C151=\"Log value\",DataLog!I151,\"\")","v":""},{"$f":"IF(DataLog!$C151=\"Log value\",DataLog!J151,\"\")","v":""},{"$f":"IF(DataLog!$C151=\"Log value\",DataLog!K151,\"\")","v":""},{"$f":"IF(DataLog!$C151=\"Log value\",DataLog!L151,\"\")","v":""},{"$f":"IF(DataLog!$C151=\"Log value\",DataLog!M151,\"\")","v":""},{"$f":"IF(DataLog!$C151=\"Log value\",DataLog!N151,\"\")","v":""},{"$f":"IF(DataLog!$C151=\"Log value\",DataLog!O151,\"\")","v":""},{"$f":"IF(DataLog!$C151=\"Log value\",DataLog!P151,\"\")","v":""},{"$f":"IF(DataLog!$C151=\"Log value\",DataLog!Q151,\"\")","v":""},{"$f":"IF(DataLog!$C151=\"Log value\",DataLog!R151,\"\")","v":""},{"$f":"IF(DataLog!$C151=\"Log value\",DataLog!S151,\"\")","v":""},{"$f":"IF(DataLog!$C151=\"Log value\",DataLog!T151,\"\")","v":""},{"$f":"IF(DataLog!$C151=\"Log value\",DataLog!U151,\"\")","v":""},{"$f":"IF(DataLog!$C151=\"Log value\",DataLog!V151,\"\")","v":""},{"$f":"IF(DataLog!$C151=\"Log value\",DataLog!W151,\"\")","v":""},{"$f":"IF(DataLog!$C151=\"Log value\",DataLog!X151,\"\")","v":""},{"$f":"IF(DataLog!$C151=\"Log value\",DataLog!Y151,\"\")","v":""},{"$f":"IF(DataLog!$C151=\"Log value\",DataLog!Z151,\"\")","v":""},{"$f":"IF(DataLog!$C151=\"Log value\",DataLog!AA151,\"\")","v":""},{"$f":"IF(DataLog!$C151=\"Log value\",DataLog!AB151,\"\")","v":""},{"$f":"IF(DataLog!$C151=\"Log value\",DataLog!AC151,\"\")","v":""},{"$f":"IF(DataLog!$C151=\"Log value\",DataLog!AD151,\"\")","v":""},{"$f":"IF(DataLog!$C151=\"Log value\",DataLog!AE151,\"\")","v":""},{"$f":"IF(DataLog!$C151=\"Log value\",DataLog!AF151,\"\")","v":""},{"$f":"IF(DataLog!$C151=\"Log value\",DataLog!AG151,\"\")","v":""},{"$f":"IF(DataLog!$C151=\"Log value\",DataLog!AH151,\"\")","v":""},{"$f":"IF(DataLog!$C151=\"Log value\",DataLog!AI151,\"\")","v":""},{"$f":"IF(DataLog!$C151=\"Log value\",DataLog!AJ151,\"\")","v":""},{"$f":"IF(DataLog!$C151=\"Log value\",DataLog!AK151,\"\")","v":""},{"$f":"IF(DataLog!$C151=\"Log value\",DataLog!AL151,\"\")","v":""},{"$f":"IF(DataLog!$C151=\"Log value\",DataLog!AM151,\"\")","v":""}]
[null,null,"Standard","Standard -  - ",null,null,{"$f":"IF(DataLog!$C152=\"Log value\",DataLog!D152&\"_\"&TEXT(DataLog!B152,\"åååå-mm-dd\"),\"\")","v":""},{"$f":"IF(DataLog!$C152=\"Log value\",DataLog!E152,\"\")","v":""},{"$f":"IF(DataLog!$C152=\"Log value\",DataLog!F152,\"\")","v":""},{"$f":"IF(DataLog!$C152=\"Log value\",DataLog!G152,\"\")","v":""},{"$f":"IF(DataLog!$C152=\"Log value\",DataLog!H152,\"\")","v":""},{"$f":"IF(DataLog!$C152=\"Log value\",DataLog!I152,\"\")","v":""},{"$f":"IF(DataLog!$C152=\"Log value\",DataLog!J152,\"\")","v":""},{"$f":"IF(DataLog!$C152=\"Log value\",DataLog!K152,\"\")","v":""},{"$f":"IF(DataLog!$C152=\"Log value\",DataLog!L152,\"\")","v":""},{"$f":"IF(DataLog!$C152=\"Log value\",DataLog!M152,\"\")","v":""},{"$f":"IF(DataLog!$C152=\"Log value\",DataLog!N152,\"\")","v":""},{"$f":"IF(DataLog!$C152=\"Log value\",DataLog!O152,\"\")","v":""},{"$f":"IF(DataLog!$C152=\"Log value\",DataLog!P152,\"\")","v":""},{"$f":"IF(DataLog!$C152=\"Log value\",DataLog!Q152,\"\")","v":""},{"$f":"IF(DataLog!$C152=\"Log value\",DataLog!R152,\"\")","v":""},{"$f":"IF(DataLog!$C152=\"Log value\",DataLog!S152,\"\")","v":""},{"$f":"IF(DataLog!$C152=\"Log value\",DataLog!T152,\"\")","v":""},{"$f":"IF(DataLog!$C152=\"Log value\",DataLog!U152,\"\")","v":""},{"$f":"IF(DataLog!$C152=\"Log value\",DataLog!V152,\"\")","v":""},{"$f":"IF(DataLog!$C152=\"Log value\",DataLog!W152,\"\")","v":""},{"$f":"IF(DataLog!$C152=\"Log value\",DataLog!X152,\"\")","v":""},{"$f":"IF(DataLog!$C152=\"Log value\",DataLog!Y152,\"\")","v":""},{"$f":"IF(DataLog!$C152=\"Log value\",DataLog!Z152,\"\")","v":""},{"$f":"IF(DataLog!$C152=\"Log value\",DataLog!AA152,\"\")","v":""},{"$f":"IF(DataLog!$C152=\"Log value\",DataLog!AB152,\"\")","v":""},{"$f":"IF(DataLog!$C152=\"Log value\",DataLog!AC152,\"\")","v":""},{"$f":"IF(DataLog!$C152=\"Log value\",DataLog!AD152,\"\")","v":""},{"$f":"IF(DataLog!$C152=\"Log value\",DataLog!AE152,\"\")","v":""},{"$f":"IF(DataLog!$C152=\"Log value\",DataLog!AF152,\"\")","v":""},{"$f":"IF(DataLog!$C152=\"Log value\",DataLog!AG152,\"\")","v":""},{"$f":"IF(DataLog!$C152=\"Log value\",DataLog!AH152,\"\")","v":""},{"$f":"IF(DataLog!$C152=\"Log value\",DataLog!AI152,\"\")","v":""},{"$f":"IF(DataLog!$C152=\"Log value\",DataLog!AJ152,\"\")","v":""},{"$f":"IF(DataLog!$C152=\"Log value\",DataLog!AK152,\"\")","v":""},{"$f":"IF(DataLog!$C152=\"Log value\",DataLog!AL152,\"\")","v":""},{"$f":"IF(DataLog!$C152=\"Log value\",DataLog!AM152,\"\")","v":""}]
[null,null,"Standard","Standard -  - ",null,null,{"$f":"IF(DataLog!$C153=\"Log value\",DataLog!D153&\"_\"&TEXT(DataLog!B153,\"åååå-mm-dd\"),\"\")","v":""},{"$f":"IF(DataLog!$C153=\"Log value\",DataLog!E153,\"\")","v":""},{"$f":"IF(DataLog!$C153=\"Log value\",DataLog!F153,\"\")","v":""},{"$f":"IF(DataLog!$C153=\"Log value\",DataLog!G153,\"\")","v":""},{"$f":"IF(DataLog!$C153=\"Log value\",DataLog!H153,\"\")","v":""},{"$f":"IF(DataLog!$C153=\"Log value\",DataLog!I153,\"\")","v":""},{"$f":"IF(DataLog!$C153=\"Log value\",DataLog!J153,\"\")","v":""},{"$f":"IF(DataLog!$C153=\"Log value\",DataLog!K153,\"\")","v":""},{"$f":"IF(DataLog!$C153=\"Log value\",DataLog!L153,\"\")","v":""},{"$f":"IF(DataLog!$C153=\"Log value\",DataLog!M153,\"\")","v":""},{"$f":"IF(DataLog!$C153=\"Log value\",DataLog!N153,\"\")","v":""},{"$f":"IF(DataLog!$C153=\"Log value\",DataLog!O153,\"\")","v":""},{"$f":"IF(DataLog!$C153=\"Log value\",DataLog!P153,\"\")","v":""},{"$f":"IF(DataLog!$C153=\"Log value\",DataLog!Q153,\"\")","v":""},{"$f":"IF(DataLog!$C153=\"Log value\",DataLog!R153,\"\")","v":""},{"$f":"IF(DataLog!$C153=\"Log value\",DataLog!S153,\"\")","v":""},{"$f":"IF(DataLog!$C153=\"Log value\",DataLog!T153,\"\")","v":""},{"$f":"IF(DataLog!$C153=\"Log value\",DataLog!U153,\"\")","v":""},{"$f":"IF(DataLog!$C153=\"Log value\",DataLog!V153,\"\")","v":""},{"$f":"IF(DataLog!$C153=\"Log value\",DataLog!W153,\"\")","v":""},{"$f":"IF(DataLog!$C153=\"Log value\",DataLog!X153,\"\")","v":""},{"$f":"IF(DataLog!$C153=\"Log value\",DataLog!Y153,\"\")","v":""},{"$f":"IF(DataLog!$C153=\"Log value\",DataLog!Z153,\"\")","v":""},{"$f":"IF(DataLog!$C153=\"Log value\",DataLog!AA153,\"\")","v":""},{"$f":"IF(DataLog!$C153=\"Log value\",DataLog!AB153,\"\")","v":""},{"$f":"IF(DataLog!$C153=\"Log value\",DataLog!AC153,\"\")","v":""},{"$f":"IF(DataLog!$C153=\"Log value\",DataLog!AD153,\"\")","v":""},{"$f":"IF(DataLog!$C153=\"Log value\",DataLog!AE153,\"\")","v":""},{"$f":"IF(DataLog!$C153=\"Log value\",DataLog!AF153,\"\")","v":""},{"$f":"IF(DataLog!$C153=\"Log value\",DataLog!AG153,\"\")","v":""},{"$f":"IF(DataLog!$C153=\"Log value\",DataLog!AH153,\"\")","v":""},{"$f":"IF(DataLog!$C153=\"Log value\",DataLog!AI153,\"\")","v":""},{"$f":"IF(DataLog!$C153=\"Log value\",DataLog!AJ153,\"\")","v":""},{"$f":"IF(DataLog!$C153=\"Log value\",DataLog!AK153,\"\")","v":""},{"$f":"IF(DataLog!$C153=\"Log value\",DataLog!AL153,\"\")","v":""},{"$f":"IF(DataLog!$C153=\"Log value\",DataLog!AM153,\"\")","v":""}]
[null,null,"Standard","Standard -  - ",null,null,{"$f":"IF(DataLog!$C154=\"Log value\",DataLog!D154&\"_\"&TEXT(DataLog!B154,\"åååå-mm-dd\"),\"\")","v":""},{"$f":"IF(DataLog!$C154=\"Log value\",DataLog!E154,\"\")","v":""},{"$f":"IF(DataLog!$C154=\"Log value\",DataLog!F154,\"\")","v":""},{"$f":"IF(DataLog!$C154=\"Log value\",DataLog!G154,\"\")","v":""},{"$f":"IF(DataLog!$C154=\"Log value\",DataLog!H154,\"\")","v":""},{"$f":"IF(DataLog!$C154=\"Log value\",DataLog!I154,\"\")","v":""},{"$f":"IF(DataLog!$C154=\"Log value\",DataLog!J154,\"\")","v":""},{"$f":"IF(DataLog!$C154=\"Log value\",DataLog!K154,\"\")","v":""},{"$f":"IF(DataLog!$C154=\"Log value\",DataLog!L154,\"\")","v":""},{"$f":"IF(DataLog!$C154=\"Log value\",DataLog!M154,\"\")","v":""},{"$f":"IF(DataLog!$C154=\"Log value\",DataLog!N154,\"\")","v":""},{"$f":"IF(DataLog!$C154=\"Log value\",DataLog!O154,\"\")","v":""},{"$f":"IF(DataLog!$C154=\"Log value\",DataLog!P154,\"\")","v":""},{"$f":"IF(DataLog!$C154=\"Log value\",DataLog!Q154,\"\")","v":""},{"$f":"IF(DataLog!$C154=\"Log value\",DataLog!R154,\"\")","v":""},{"$f":"IF(DataLog!$C154=\"Log value\",DataLog!S154,\"\")","v":""},{"$f":"IF(DataLog!$C154=\"Log value\",DataLog!T154,\"\")","v":""},{"$f":"IF(DataLog!$C154=\"Log value\",DataLog!U154,\"\")","v":""},{"$f":"IF(DataLog!$C154=\"Log value\",DataLog!V154,\"\")","v":""},{"$f":"IF(DataLog!$C154=\"Log value\",DataLog!W154,\"\")","v":""},{"$f":"IF(DataLog!$C154=\"Log value\",DataLog!X154,\"\")","v":""},{"$f":"IF(DataLog!$C154=\"Log value\",DataLog!Y154,\"\")","v":""},{"$f":"IF(DataLog!$C154=\"Log value\",DataLog!Z154,\"\")","v":""},{"$f":"IF(DataLog!$C154=\"Log value\",DataLog!AA154,\"\")","v":""},{"$f":"IF(DataLog!$C154=\"Log value\",DataLog!AB154,\"\")","v":""},{"$f":"IF(DataLog!$C154=\"Log value\",DataLog!AC154,\"\")","v":""},{"$f":"IF(DataLog!$C154=\"Log value\",DataLog!AD154,\"\")","v":""},{"$f":"IF(DataLog!$C154=\"Log value\",DataLog!AE154,\"\")","v":""},{"$f":"IF(DataLog!$C154=\"Log value\",DataLog!AF154,\"\")","v":""},{"$f":"IF(DataLog!$C154=\"Log value\",DataLog!AG154,\"\")","v":""},{"$f":"IF(DataLog!$C154=\"Log value\",DataLog!AH154,\"\")","v":""},{"$f":"IF(DataLog!$C154=\"Log value\",DataLog!AI154,\"\")","v":""},{"$f":"IF(DataLog!$C154=\"Log value\",DataLog!AJ154,\"\")","v":""},{"$f":"IF(DataLog!$C154=\"Log value\",DataLog!AK154,\"\")","v":""},{"$f":"IF(DataLog!$C154=\"Log value\",DataLog!AL154,\"\")","v":""},{"$f":"IF(DataLog!$C154=\"Log value\",DataLog!AM154,\"\")","v":""}]
[null,null,"Standard","Standard -  - ",null,null,{"$f":"IF(DataLog!$C155=\"Log value\",DataLog!D155&\"_\"&TEXT(DataLog!B155,\"åååå-mm-dd\"),\"\")","v":""},{"$f":"IF(DataLog!$C155=\"Log value\",DataLog!E155,\"\")","v":""},{"$f":"IF(DataLog!$C155=\"Log value\",DataLog!F155,\"\")","v":""},{"$f":"IF(DataLog!$C155=\"Log value\",DataLog!G155,\"\")","v":""},{"$f":"IF(DataLog!$C155=\"Log value\",DataLog!H155,\"\")","v":""},{"$f":"IF(DataLog!$C155=\"Log value\",DataLog!I155,\"\")","v":""},{"$f":"IF(DataLog!$C155=\"Log value\",DataLog!J155,\"\")","v":""},{"$f":"IF(DataLog!$C155=\"Log value\",DataLog!K155,\"\")","v":""},{"$f":"IF(DataLog!$C155=\"Log value\",DataLog!L155,\"\")","v":""},{"$f":"IF(DataLog!$C155=\"Log value\",DataLog!M155,\"\")","v":""},{"$f":"IF(DataLog!$C155=\"Log value\",DataLog!N155,\"\")","v":""},{"$f":"IF(DataLog!$C155=\"Log value\",DataLog!O155,\"\")","v":""},{"$f":"IF(DataLog!$C155=\"Log value\",DataLog!P155,\"\")","v":""},{"$f":"IF(DataLog!$C155=\"Log value\",DataLog!Q155,\"\")","v":""},{"$f":"IF(DataLog!$C155=\"Log value\",DataLog!R155,\"\")","v":""},{"$f":"IF(DataLog!$C155=\"Log value\",DataLog!S155,\"\")","v":""},{"$f":"IF(DataLog!$C155=\"Log value\",DataLog!T155,\"\")","v":""},{"$f":"IF(DataLog!$C155=\"Log value\",DataLog!U155,\"\")","v":""},{"$f":"IF(DataLog!$C155=\"Log value\",DataLog!V155,\"\")","v":""},{"$f":"IF(DataLog!$C155=\"Log value\",DataLog!W155,\"\")","v":""},{"$f":"IF(DataLog!$C155=\"Log value\",DataLog!X155,\"\")","v":""},{"$f":"IF(DataLog!$C155=\"Log value\",DataLog!Y155,\"\")","v":""},{"$f":"IF(DataLog!$C155=\"Log value\",DataLog!Z155,\"\")","v":""},{"$f":"IF(DataLog!$C155=\"Log value\",DataLog!AA155,\"\")","v":""},{"$f":"IF(DataLog!$C155=\"Log value\",DataLog!AB155,\"\")","v":""},{"$f":"IF(DataLog!$C155=\"Log value\",DataLog!AC155,\"\")","v":""},{"$f":"IF(DataLog!$C155=\"Log value\",DataLog!AD155,\"\")","v":""},{"$f":"IF(DataLog!$C155=\"Log value\",DataLog!AE155,\"\")","v":""},{"$f":"IF(DataLog!$C155=\"Log value\",DataLog!AF155,\"\")","v":""},{"$f":"IF(DataLog!$C155=\"Log value\",DataLog!AG155,\"\")","v":""},{"$f":"IF(DataLog!$C155=\"Log value\",DataLog!AH155,\"\")","v":""},{"$f":"IF(DataLog!$C155=\"Log value\",DataLog!AI155,\"\")","v":""},{"$f":"IF(DataLog!$C155=\"Log value\",DataLog!AJ155,\"\")","v":""},{"$f":"IF(DataLog!$C155=\"Log value\",DataLog!AK155,\"\")","v":""},{"$f":"IF(DataLog!$C155=\"Log value\",DataLog!AL155,\"\")","v":""},{"$f":"IF(DataLog!$C155=\"Log value\",DataLog!AM155,\"\")","v":""}]
[null,null,"Standard","Standard -  - ",null,null,{"$f":"IF(DataLog!$C156=\"Log value\",DataLog!D156&\"_\"&TEXT(DataLog!B156,\"åååå-mm-dd\"),\"\")","v":""},{"$f":"IF(DataLog!$C156=\"Log value\",DataLog!E156,\"\")","v":""},{"$f":"IF(DataLog!$C156=\"Log value\",DataLog!F156,\"\")","v":""},{"$f":"IF(DataLog!$C156=\"Log value\",DataLog!G156,\"\")","v":""},{"$f":"IF(DataLog!$C156=\"Log value\",DataLog!H156,\"\")","v":""},{"$f":"IF(DataLog!$C156=\"Log value\",DataLog!I156,\"\")","v":""},{"$f":"IF(DataLog!$C156=\"Log value\",DataLog!J156,\"\")","v":""},{"$f":"IF(DataLog!$C156=\"Log value\",DataLog!K156,\"\")","v":""},{"$f":"IF(DataLog!$C156=\"Log value\",DataLog!L156,\"\")","v":""},{"$f":"IF(DataLog!$C156=\"Log value\",DataLog!M156,\"\")","v":""},{"$f":"IF(DataLog!$C156=\"Log value\",DataLog!N156,\"\")","v":""},{"$f":"IF(DataLog!$C156=\"Log value\",DataLog!O156,\"\")","v":""},{"$f":"IF(DataLog!$C156=\"Log value\",DataLog!P156,\"\")","v":""},{"$f":"IF(DataLog!$C156=\"Log value\",DataLog!Q156,\"\")","v":""},{"$f":"IF(DataLog!$C156=\"Log value\",DataLog!R156,\"\")","v":""},{"$f":"IF(DataLog!$C156=\"Log value\",DataLog!S156,\"\")","v":""},{"$f":"IF(DataLog!$C156=\"Log value\",DataLog!T156,\"\")","v":""},{"$f":"IF(DataLog!$C156=\"Log value\",DataLog!U156,\"\")","v":""},{"$f":"IF(DataLog!$C156=\"Log value\",DataLog!V156,\"\")","v":""},{"$f":"IF(DataLog!$C156=\"Log value\",DataLog!W156,\"\")","v":""},{"$f":"IF(DataLog!$C156=\"Log value\",DataLog!X156,\"\")","v":""},{"$f":"IF(DataLog!$C156=\"Log value\",DataLog!Y156,\"\")","v":""},{"$f":"IF(DataLog!$C156=\"Log value\",DataLog!Z156,\"\")","v":""},{"$f":"IF(DataLog!$C156=\"Log value\",DataLog!AA156,\"\")","v":""},{"$f":"IF(DataLog!$C156=\"Log value\",DataLog!AB156,\"\")","v":""},{"$f":"IF(DataLog!$C156=\"Log value\",DataLog!AC156,\"\")","v":""},{"$f":"IF(DataLog!$C156=\"Log value\",DataLog!AD156,\"\")","v":""},{"$f":"IF(DataLog!$C156=\"Log value\",DataLog!AE156,\"\")","v":""},{"$f":"IF(DataLog!$C156=\"Log value\",DataLog!AF156,\"\")","v":""},{"$f":"IF(DataLog!$C156=\"Log value\",DataLog!AG156,\"\")","v":""},{"$f":"IF(DataLog!$C156=\"Log value\",DataLog!AH156,\"\")","v":""},{"$f":"IF(DataLog!$C156=\"Log value\",DataLog!AI156,\"\")","v":""},{"$f":"IF(DataLog!$C156=\"Log value\",DataLog!AJ156,\"\")","v":""},{"$f":"IF(DataLog!$C156=\"Log value\",DataLog!AK156,\"\")","v":""},{"$f":"IF(DataLog!$C156=\"Log value\",DataLog!AL156,\"\")","v":""},{"$f":"IF(DataLog!$C156=\"Log value\",DataLog!AM156,\"\")","v":""}]
[null,null,"Standard","Standard -  - ",null,null,{"$f":"IF(DataLog!$C157=\"Log value\",DataLog!D157&\"_\"&TEXT(DataLog!B157,\"åååå-mm-dd\"),\"\")","v":""},{"$f":"IF(DataLog!$C157=\"Log value\",DataLog!E157,\"\")","v":""},{"$f":"IF(DataLog!$C157=\"Log value\",DataLog!F157,\"\")","v":""},{"$f":"IF(DataLog!$C157=\"Log value\",DataLog!G157,\"\")","v":""},{"$f":"IF(DataLog!$C157=\"Log value\",DataLog!H157,\"\")","v":""},{"$f":"IF(DataLog!$C157=\"Log value\",DataLog!I157,\"\")","v":""},{"$f":"IF(DataLog!$C157=\"Log value\",DataLog!J157,\"\")","v":""},{"$f":"IF(DataLog!$C157=\"Log value\",DataLog!K157,\"\")","v":""},{"$f":"IF(DataLog!$C157=\"Log value\",DataLog!L157,\"\")","v":""},{"$f":"IF(DataLog!$C157=\"Log value\",DataLog!M157,\"\")","v":""},{"$f":"IF(DataLog!$C157=\"Log value\",DataLog!N157,\"\")","v":""},{"$f":"IF(DataLog!$C157=\"Log value\",DataLog!O157,\"\")","v":""},{"$f":"IF(DataLog!$C157=\"Log value\",DataLog!P157,\"\")","v":""},{"$f":"IF(DataLog!$C157=\"Log value\",DataLog!Q157,\"\")","v":""},{"$f":"IF(DataLog!$C157=\"Log value\",DataLog!R157,\"\")","v":""},{"$f":"IF(DataLog!$C157=\"Log value\",DataLog!S157,\"\")","v":""},{"$f":"IF(DataLog!$C157=\"Log value\",DataLog!T157,\"\")","v":""},{"$f":"IF(DataLog!$C157=\"Log value\",DataLog!U157,\"\")","v":""},{"$f":"IF(DataLog!$C157=\"Log value\",DataLog!V157,\"\")","v":""},{"$f":"IF(DataLog!$C157=\"Log value\",DataLog!W157,\"\")","v":""},{"$f":"IF(DataLog!$C157=\"Log value\",DataLog!X157,\"\")","v":""},{"$f":"IF(DataLog!$C157=\"Log value\",DataLog!Y157,\"\")","v":""},{"$f":"IF(DataLog!$C157=\"Log value\",DataLog!Z157,\"\")","v":""},{"$f":"IF(DataLog!$C157=\"Log value\",DataLog!AA157,\"\")","v":""},{"$f":"IF(DataLog!$C157=\"Log value\",DataLog!AB157,\"\")","v":""},{"$f":"IF(DataLog!$C157=\"Log value\",DataLog!AC157,\"\")","v":""},{"$f":"IF(DataLog!$C157=\"Log value\",DataLog!AD157,\"\")","v":""},{"$f":"IF(DataLog!$C157=\"Log value\",DataLog!AE157,\"\")","v":""},{"$f":"IF(DataLog!$C157=\"Log value\",DataLog!AF157,\"\")","v":""},{"$f":"IF(DataLog!$C157=\"Log value\",DataLog!AG157,\"\")","v":""},{"$f":"IF(DataLog!$C157=\"Log value\",DataLog!AH157,\"\")","v":""},{"$f":"IF(DataLog!$C157=\"Log value\",DataLog!AI157,\"\")","v":""},{"$f":"IF(DataLog!$C157=\"Log value\",DataLog!AJ157,\"\")","v":""},{"$f":"IF(DataLog!$C157=\"Log value\",DataLog!AK157,\"\")","v":""},{"$f":"IF(DataLog!$C157=\"Log value\",DataLog!AL157,\"\")","v":""},{"$f":"IF(DataLog!$C157=\"Log value\",DataLog!AM157,\"\")","v":""}]
[null,null,{"$f":"$H$21","v":"Standard"},{"$f":"C192&\" - \"&G192&\" - \"&I192","v":"Standard -  - "},null,null,{"$f":"IF(DataLog!$C158=\"Log value\",DataLog!D158&\"_\"&TEXT(DataLog!B158,\"åååå-mm-dd\"),\"\")","v":""},{"$f":"IF(DataLog!$C158=\"Log value\",DataLog!E158,\"\")","v":""},{"$f":"IF(DataLog!$C158=\"Log value\",DataLog!F158,\"\")","v":""},{"$f":"IF(DataLog!$C158=\"Log value\",DataLog!G158,\"\")","v":""},{"$f":"IF(DataLog!$C158=\"Log value\",DataLog!H158,\"\")","v":""},{"$f":"IF(DataLog!$C158=\"Log value\",DataLog!I158,\"\")","v":""},{"$f":"IF(DataLog!$C158=\"Log value\",DataLog!J158,\"\")","v":""},{"$f":"IF(DataLog!$C158=\"Log value\",DataLog!K158,\"\")","v":""},{"$f":"IF(DataLog!$C158=\"Log value\",DataLog!L158,\"\")","v":""},{"$f":"IF(DataLog!$C158=\"Log value\",DataLog!M158,\"\")","v":""},{"$f":"IF(DataLog!$C158=\"Log value\",DataLog!N158,\"\")","v":""},{"$f":"IF(DataLog!$C158=\"Log value\",DataLog!O158,\"\")","v":""},{"$f":"IF(DataLog!$C158=\"Log value\",DataLog!P158,\"\")","v":""},{"$f":"IF(DataLog!$C158=\"Log value\",DataLog!Q158,\"\")","v":""},{"$f":"IF(DataLog!$C158=\"Log value\",DataLog!R158,\"\")","v":""},{"$f":"IF(DataLog!$C158=\"Log value\",DataLog!S158,\"\")","v":""},{"$f":"IF(DataLog!$C158=\"Log value\",DataLog!T158,\"\")","v":""},{"$f":"IF(DataLog!$C158=\"Log value\",DataLog!U158,\"\")","v":""},{"$f":"IF(DataLog!$C158=\"Log value\",DataLog!V158,\"\")","v":""},{"$f":"IF(DataLog!$C158=\"Log value\",DataLog!W158,\"\")","v":""},{"$f":"IF(DataLog!$C158=\"Log value\",DataLog!X158,\"\")","v":""},{"$f":"IF(DataLog!$C158=\"Log value\",DataLog!Y158,\"\")","v":""},{"$f":"IF(DataLog!$C158=\"Log value\",DataLog!Z158,\"\")","v":""},{"$f":"IF(DataLog!$C158=\"Log value\",DataLog!AA158,\"\")","v":""},{"$f":"IF(DataLog!$C158=\"Log value\",DataLog!AB158,\"\")","v":""},{"$f":"IF(DataLog!$C158=\"Log value\",DataLog!AC158,\"\")","v":""},{"$f":"IF(DataLog!$C158=\"Log value\",DataLog!AD158,\"\")","v":""},{"$f":"IF(DataLog!$C158=\"Log value\",DataLog!AE158,\"\")","v":""},{"$f":"IF(DataLog!$C158=\"Log value\",DataLog!AF158,\"\")","v":""},{"$f":"IF(DataLog!$C158=\"Log value\",DataLog!AG158,\"\")","v":""},{"$f":"IF(DataLog!$C158=\"Log value\",DataLog!AH158,\"\")","v":""},{"$f":"IF(DataLog!$C158=\"Log value\",DataLog!AI158,\"\")","v":""},{"$f":"IF(DataLog!$C158=\"Log value\",DataLog!AJ158,\"\")","v":""},{"$f":"IF(DataLog!$C158=\"Log value\",DataLog!AK158,\"\")","v":""},{"$f":"IF(DataLog!$C158=\"Log value\",DataLog!AL158,\"\")","v":""},{"$f":"IF(DataLog!$C158=\"Log value\",DataLog!AM158,\"\")","v":""}]
[null,null,"Standard","Standard -  - ",null,null,{"$f":"IF(DataLog!$C159=\"Log value\",DataLog!D159&\"_\"&TEXT(DataLog!B159,\"åååå-mm-dd\"),\"\")","v":""},{"$f":"IF(DataLog!$C159=\"Log value\",DataLog!E159,\"\")","v":""},{"$f":"IF(DataLog!$C159=\"Log value\",DataLog!F159,\"\")","v":""},{"$f":"IF(DataLog!$C159=\"Log value\",DataLog!G159,\"\")","v":""},{"$f":"IF(DataLog!$C159=\"Log value\",DataLog!H159,\"\")","v":""},{"$f":"IF(DataLog!$C159=\"Log value\",DataLog!I159,\"\")","v":""},{"$f":"IF(DataLog!$C159=\"Log value\",DataLog!J159,\"\")","v":""},{"$f":"IF(DataLog!$C159=\"Log value\",DataLog!K159,\"\")","v":""},{"$f":"IF(DataLog!$C159=\"Log value\",DataLog!L159,\"\")","v":""},{"$f":"IF(DataLog!$C159=\"Log value\",DataLog!M159,\"\")","v":""},{"$f":"IF(DataLog!$C159=\"Log value\",DataLog!N159,\"\")","v":""},{"$f":"IF(DataLog!$C159=\"Log value\",DataLog!O159,\"\")","v":""},{"$f":"IF(DataLog!$C159=\"Log value\",DataLog!P159,\"\")","v":""},{"$f":"IF(DataLog!$C159=\"Log value\",DataLog!Q159,\"\")","v":""},{"$f":"IF(DataLog!$C159=\"Log value\",DataLog!R159,\"\")","v":""},{"$f":"IF(DataLog!$C159=\"Log value\",DataLog!S159,\"\")","v":""},{"$f":"IF(DataLog!$C159=\"Log value\",DataLog!T159,\"\")","v":""},{"$f":"IF(DataLog!$C159=\"Log value\",DataLog!U159,\"\")","v":""},{"$f":"IF(DataLog!$C159=\"Log value\",DataLog!V159,\"\")","v":""},{"$f":"IF(DataLog!$C159=\"Log value\",DataLog!W159,\"\")","v":""},{"$f":"IF(DataLog!$C159=\"Log value\",DataLog!X159,\"\")","v":""},{"$f":"IF(DataLog!$C159=\"Log value\",DataLog!Y159,\"\")","v":""},{"$f":"IF(DataLog!$C159=\"Log value\",DataLog!Z159,\"\")","v":""},{"$f":"IF(DataLog!$C159=\"Log value\",DataLog!AA159,\"\")","v":""},{"$f":"IF(DataLog!$C159=\"Log value\",DataLog!AB159,\"\")","v":""},{"$f":"IF(DataLog!$C159=\"Log value\",DataLog!AC159,\"\")","v":""},{"$f":"IF(DataLog!$C159=\"Log value\",DataLog!AD159,\"\")","v":""},{"$f":"IF(DataLog!$C159=\"Log value\",DataLog!AE159,\"\")","v":""},{"$f":"IF(DataLog!$C159=\"Log value\",DataLog!AF159,\"\")","v":""},{"$f":"IF(DataLog!$C159=\"Log value\",DataLog!AG159,\"\")","v":""},{"$f":"IF(DataLog!$C159=\"Log value\",DataLog!AH159,\"\")","v":""},{"$f":"IF(DataLog!$C159=\"Log value\",DataLog!AI159,\"\")","v":""},{"$f":"IF(DataLog!$C159=\"Log value\",DataLog!AJ159,\"\")","v":""},{"$f":"IF(DataLog!$C159=\"Log value\",DataLog!AK159,\"\")","v":""},{"$f":"IF(DataLog!$C159=\"Log value\",DataLog!AL159,\"\")","v":""},{"$f":"IF(DataLog!$C159=\"Log value\",DataLog!AM159,\"\")","v":""}]
[null,null,"Standard","Standard -  - ",null,null,{"$f":"IF(DataLog!$C160=\"Log value\",DataLog!D160&\"_\"&TEXT(DataLog!B160,\"åååå-mm-dd\"),\"\")","v":""},{"$f":"IF(DataLog!$C160=\"Log value\",DataLog!E160,\"\")","v":""},{"$f":"IF(DataLog!$C160=\"Log value\",DataLog!F160,\"\")","v":""},{"$f":"IF(DataLog!$C160=\"Log value\",DataLog!G160,\"\")","v":""},{"$f":"IF(DataLog!$C160=\"Log value\",DataLog!H160,\"\")","v":""},{"$f":"IF(DataLog!$C160=\"Log value\",DataLog!I160,\"\")","v":""},{"$f":"IF(DataLog!$C160=\"Log value\",DataLog!J160,\"\")","v":""},{"$f":"IF(DataLog!$C160=\"Log value\",DataLog!K160,\"\")","v":""},{"$f":"IF(DataLog!$C160=\"Log value\",DataLog!L160,\"\")","v":""},{"$f":"IF(DataLog!$C160=\"Log value\",DataLog!M160,\"\")","v":""},{"$f":"IF(DataLog!$C160=\"Log value\",DataLog!N160,\"\")","v":""},{"$f":"IF(DataLog!$C160=\"Log value\",DataLog!O160,\"\")","v":""},{"$f":"IF(DataLog!$C160=\"Log value\",DataLog!P160,\"\")","v":""},{"$f":"IF(DataLog!$C160=\"Log value\",DataLog!Q160,\"\")","v":""},{"$f":"IF(DataLog!$C160=\"Log value\",DataLog!R160,\"\")","v":""},{"$f":"IF(DataLog!$C160=\"Log value\",DataLog!S160,\"\")","v":""},{"$f":"IF(DataLog!$C160=\"Log value\",DataLog!T160,\"\")","v":""},{"$f":"IF(DataLog!$C160=\"Log value\",DataLog!U160,\"\")","v":""},{"$f":"IF(DataLog!$C160=\"Log value\",DataLog!V160,\"\")","v":""},{"$f":"IF(DataLog!$C160=\"Log value\",DataLog!W160,\"\")","v":""},{"$f":"IF(DataLog!$C160=\"Log value\",DataLog!X160,\"\")","v":""},{"$f":"IF(DataLog!$C160=\"Log value\",DataLog!Y160,\"\")","v":""},{"$f":"IF(DataLog!$C160=\"Log value\",DataLog!Z160,\"\")","v":""},{"$f":"IF(DataLog!$C160=\"Log value\",DataLog!AA160,\"\")","v":""},{"$f":"IF(DataLog!$C160=\"Log value\",DataLog!AB160,\"\")","v":""},{"$f":"IF(DataLog!$C160=\"Log value\",DataLog!AC160,\"\")","v":""},{"$f":"IF(DataLog!$C160=\"Log value\",DataLog!AD160,\"\")","v":""},{"$f":"IF(DataLog!$C160=\"Log value\",DataLog!AE160,\"\")","v":""},{"$f":"IF(DataLog!$C160=\"Log value\",DataLog!AF160,\"\")","v":""},{"$f":"IF(DataLog!$C160=\"Log value\",DataLog!AG160,\"\")","v":""},{"$f":"IF(DataLog!$C160=\"Log value\",DataLog!AH160,\"\")","v":""},{"$f":"IF(DataLog!$C160=\"Log value\",DataLog!AI160,\"\")","v":""},{"$f":"IF(DataLog!$C160=\"Log value\",DataLog!AJ160,\"\")","v":""},{"$f":"IF(DataLog!$C160=\"Log value\",DataLog!AK160,\"\")","v":""},{"$f":"IF(DataLog!$C160=\"Log value\",DataLog!AL160,\"\")","v":""},{"$f":"IF(DataLog!$C160=\"Log value\",DataLog!AM160,\"\")","v":""}]
[null,null,"Standard","Standard -  - ",null,null,{"$f":"IF(DataLog!$C161=\"Log value\",DataLog!D161&\"_\"&TEXT(DataLog!B161,\"åååå-mm-dd\"),\"\")","v":""},{"$f":"IF(DataLog!$C161=\"Log value\",DataLog!E161,\"\")","v":""},{"$f":"IF(DataLog!$C161=\"Log value\",DataLog!F161,\"\")","v":""},{"$f":"IF(DataLog!$C161=\"Log value\",DataLog!G161,\"\")","v":""},{"$f":"IF(DataLog!$C161=\"Log value\",DataLog!H161,\"\")","v":""},{"$f":"IF(DataLog!$C161=\"Log value\",DataLog!I161,\"\")","v":""},{"$f":"IF(DataLog!$C161=\"Log value\",DataLog!J161,\"\")","v":""},{"$f":"IF(DataLog!$C161=\"Log value\",DataLog!K161,\"\")","v":""},{"$f":"IF(DataLog!$C161=\"Log value\",DataLog!L161,\"\")","v":""},{"$f":"IF(DataLog!$C161=\"Log value\",DataLog!M161,\"\")","v":""},{"$f":"IF(DataLog!$C161=\"Log value\",DataLog!N161,\"\")","v":""},{"$f":"IF(DataLog!$C161=\"Log value\",DataLog!O161,\"\")","v":""},{"$f":"IF(DataLog!$C161=\"Log value\",DataLog!P161,\"\")","v":""},{"$f":"IF(DataLog!$C161=\"Log value\",DataLog!Q161,\"\")","v":""},{"$f":"IF(DataLog!$C161=\"Log value\",DataLog!R161,\"\")","v":""},{"$f":"IF(DataLog!$C161=\"Log value\",DataLog!S161,\"\")","v":""},{"$f":"IF(DataLog!$C161=\"Log value\",DataLog!T161,\"\")","v":""},{"$f":"IF(DataLog!$C161=\"Log value\",DataLog!U161,\"\")","v":""},{"$f":"IF(DataLog!$C161=\"Log value\",DataLog!V161,\"\")","v":""},{"$f":"IF(DataLog!$C161=\"Log value\",DataLog!W161,\"\")","v":""},{"$f":"IF(DataLog!$C161=\"Log value\",DataLog!X161,\"\")","v":""},{"$f":"IF(DataLog!$C161=\"Log value\",DataLog!Y161,\"\")","v":""},{"$f":"IF(DataLog!$C161=\"Log value\",DataLog!Z161,\"\")","v":""},{"$f":"IF(DataLog!$C161=\"Log value\",DataLog!AA161,\"\")","v":""},{"$f":"IF(DataLog!$C161=\"Log value\",DataLog!AB161,\"\")","v":""},{"$f":"IF(DataLog!$C161=\"Log value\",DataLog!AC161,\"\")","v":""},{"$f":"IF(DataLog!$C161=\"Log value\",DataLog!AD161,\"\")","v":""},{"$f":"IF(DataLog!$C161=\"Log value\",DataLog!AE161,\"\")","v":""},{"$f":"IF(DataLog!$C161=\"Log value\",DataLog!AF161,\"\")","v":""},{"$f":"IF(DataLog!$C161=\"Log value\",DataLog!AG161,\"\")","v":""},{"$f":"IF(DataLog!$C161=\"Log value\",DataLog!AH161,\"\")","v":""},{"$f":"IF(DataLog!$C161=\"Log value\",DataLog!AI161,\"\")","v":""},{"$f":"IF(DataLog!$C161=\"Log value\",DataLog!AJ161,\"\")","v":""},{"$f":"IF(DataLog!$C161=\"Log value\",DataLog!AK161,\"\")","v":""},{"$f":"IF(DataLog!$C161=\"Log value\",DataLog!AL161,\"\")","v":""},{"$f":"IF(DataLog!$C161=\"Log value\",DataLog!AM161,\"\")","v":""}]
[null,null,"Standard","Standard -  - ",null,null,{"$f":"IF(DataLog!$C162=\"Log value\",DataLog!D162&\"_\"&TEXT(DataLog!B162,\"åååå-mm-dd\"),\"\")","v":""},{"$f":"IF(DataLog!$C162=\"Log value\",DataLog!E162,\"\")","v":""},{"$f":"IF(DataLog!$C162=\"Log value\",DataLog!F162,\"\")","v":""},{"$f":"IF(DataLog!$C162=\"Log value\",DataLog!G162,\"\")","v":""},{"$f":"IF(DataLog!$C162=\"Log value\",DataLog!H162,\"\")","v":""},{"$f":"IF(DataLog!$C162=\"Log value\",DataLog!I162,\"\")","v":""},{"$f":"IF(DataLog!$C162=\"Log value\",DataLog!J162,\"\")","v":""},{"$f":"IF(DataLog!$C162=\"Log value\",DataLog!K162,\"\")","v":""},{"$f":"IF(DataLog!$C162=\"Log value\",DataLog!L162,\"\")","v":""},{"$f":"IF(DataLog!$C162=\"Log value\",DataLog!M162,\"\")","v":""},{"$f":"IF(DataLog!$C162=\"Log value\",DataLog!N162,\"\")","v":""},{"$f":"IF(DataLog!$C162=\"Log value\",DataLog!O162,\"\")","v":""},{"$f":"IF(DataLog!$C162=\"Log value\",DataLog!P162,\"\")","v":""},{"$f":"IF(DataLog!$C162=\"Log value\",DataLog!Q162,\"\")","v":""},{"$f":"IF(DataLog!$C162=\"Log value\",DataLog!R162,\"\")","v":""},{"$f":"IF(DataLog!$C162=\"Log value\",DataLog!S162,\"\")","v":""},{"$f":"IF(DataLog!$C162=\"Log value\",DataLog!T162,\"\")","v":""},{"$f":"IF(DataLog!$C162=\"Log value\",DataLog!U162,\"\")","v":""},{"$f":"IF(DataLog!$C162=\"Log value\",DataLog!V162,\"\")","v":""},{"$f":"IF(DataLog!$C162=\"Log value\",DataLog!W162,\"\")","v":""},{"$f":"IF(DataLog!$C162=\"Log value\",DataLog!X162,\"\")","v":""},{"$f":"IF(DataLog!$C162=\"Log value\",DataLog!Y162,\"\")","v":""},{"$f":"IF(DataLog!$C162=\"Log value\",DataLog!Z162,\"\")","v":""},{"$f":"IF(DataLog!$C162=\"Log value\",DataLog!AA162,\"\")","v":""},{"$f":"IF(DataLog!$C162=\"Log value\",DataLog!AB162,\"\")","v":""},{"$f":"IF(DataLog!$C162=\"Log value\",DataLog!AC162,\"\")","v":""},{"$f":"IF(DataLog!$C162=\"Log value\",DataLog!AD162,\"\")","v":""},{"$f":"IF(DataLog!$C162=\"Log value\",DataLog!AE162,\"\")","v":""},{"$f":"IF(DataLog!$C162=\"Log value\",DataLog!AF162,\"\")","v":""},{"$f":"IF(DataLog!$C162=\"Log value\",DataLog!AG162,\"\")","v":""},{"$f":"IF(DataLog!$C162=\"Log value\",DataLog!AH162,\"\")","v":""},{"$f":"IF(DataLog!$C162=\"Log value\",DataLog!AI162,\"\")","v":""},{"$f":"IF(DataLog!$C162=\"Log value\",DataLog!AJ162,\"\")","v":""},{"$f":"IF(DataLog!$C162=\"Log value\",DataLog!AK162,\"\")","v":""},{"$f":"IF(DataLog!$C162=\"Log value\",DataLog!AL162,\"\")","v":""},{"$f":"IF(DataLog!$C162=\"Log value\",DataLog!AM162,\"\")","v":""}]
[null,null,"Standard","Standard -  - ",null,null,{"$f":"IF(DataLog!$C163=\"Log value\",DataLog!D163&\"_\"&TEXT(DataLog!B163,\"åååå-mm-dd\"),\"\")","v":""},{"$f":"IF(DataLog!$C163=\"Log value\",DataLog!E163,\"\")","v":""},{"$f":"IF(DataLog!$C163=\"Log value\",DataLog!F163,\"\")","v":""},{"$f":"IF(DataLog!$C163=\"Log value\",DataLog!G163,\"\")","v":""},{"$f":"IF(DataLog!$C163=\"Log value\",DataLog!H163,\"\")","v":""},{"$f":"IF(DataLog!$C163=\"Log value\",DataLog!I163,\"\")","v":""},{"$f":"IF(DataLog!$C163=\"Log value\",DataLog!J163,\"\")","v":""},{"$f":"IF(DataLog!$C163=\"Log value\",DataLog!K163,\"\")","v":""},{"$f":"IF(DataLog!$C163=\"Log value\",DataLog!L163,\"\")","v":""},{"$f":"IF(DataLog!$C163=\"Log value\",DataLog!M163,\"\")","v":""},{"$f":"IF(DataLog!$C163=\"Log value\",DataLog!N163,\"\")","v":""},{"$f":"IF(DataLog!$C163=\"Log value\",DataLog!O163,\"\")","v":""},{"$f":"IF(DataLog!$C163=\"Log value\",DataLog!P163,\"\")","v":""},{"$f":"IF(DataLog!$C163=\"Log value\",DataLog!Q163,\"\")","v":""},{"$f":"IF(DataLog!$C163=\"Log value\",DataLog!R163,\"\")","v":""},{"$f":"IF(DataLog!$C163=\"Log value\",DataLog!S163,\"\")","v":""},{"$f":"IF(DataLog!$C163=\"Log value\",DataLog!T163,\"\")","v":""},{"$f":"IF(DataLog!$C163=\"Log value\",DataLog!U163,\"\")","v":""},{"$f":"IF(DataLog!$C163=\"Log value\",DataLog!V163,\"\")","v":""},{"$f":"IF(DataLog!$C163=\"Log value\",DataLog!W163,\"\")","v":""},{"$f":"IF(DataLog!$C163=\"Log value\",DataLog!X163,\"\")","v":""},{"$f":"IF(DataLog!$C163=\"Log value\",DataLog!Y163,\"\")","v":""},{"$f":"IF(DataLog!$C163=\"Log value\",DataLog!Z163,\"\")","v":""},{"$f":"IF(DataLog!$C163=\"Log value\",DataLog!AA163,\"\")","v":""},{"$f":"IF(DataLog!$C163=\"Log value\",DataLog!AB163,\"\")","v":""},{"$f":"IF(DataLog!$C163=\"Log value\",DataLog!AC163,\"\")","v":""},{"$f":"IF(DataLog!$C163=\"Log value\",DataLog!AD163,\"\")","v":""},{"$f":"IF(DataLog!$C163=\"Log value\",DataLog!AE163,\"\")","v":""},{"$f":"IF(DataLog!$C163=\"Log value\",DataLog!AF163,\"\")","v":""},{"$f":"IF(DataLog!$C163=\"Log value\",DataLog!AG163,\"\")","v":""},{"$f":"IF(DataLog!$C163=\"Log value\",DataLog!AH163,\"\")","v":""},{"$f":"IF(DataLog!$C163=\"Log value\",DataLog!AI163,\"\")","v":""},{"$f":"IF(DataLog!$C163=\"Log value\",DataLog!AJ163,\"\")","v":""},{"$f":"IF(DataLog!$C163=\"Log value\",DataLog!AK163,\"\")","v":""},{"$f":"IF(DataLog!$C163=\"Log value\",DataLog!AL163,\"\")","v":""},{"$f":"IF(DataLog!$C163=\"Log value\",DataLog!AM163,\"\")","v":""}]
[null,null,"Standard","Standard -  - ",null,null,{"$f":"IF(DataLog!$C164=\"Log value\",DataLog!D164&\"_\"&TEXT(DataLog!B164,\"åååå-mm-dd\"),\"\")","v":""},{"$f":"IF(DataLog!$C164=\"Log value\",DataLog!E164,\"\")","v":""},{"$f":"IF(DataLog!$C164=\"Log value\",DataLog!F164,\"\")","v":""},{"$f":"IF(DataLog!$C164=\"Log value\",DataLog!G164,\"\")","v":""},{"$f":"IF(DataLog!$C164=\"Log value\",DataLog!H164,\"\")","v":""},{"$f":"IF(DataLog!$C164=\"Log value\",DataLog!I164,\"\")","v":""},{"$f":"IF(DataLog!$C164=\"Log value\",DataLog!J164,\"\")","v":""},{"$f":"IF(DataLog!$C164=\"Log value\",DataLog!K164,\"\")","v":""},{"$f":"IF(DataLog!$C164=\"Log value\",DataLog!L164,\"\")","v":""},{"$f":"IF(DataLog!$C164=\"Log value\",DataLog!M164,\"\")","v":""},{"$f":"IF(DataLog!$C164=\"Log value\",DataLog!N164,\"\")","v":""},{"$f":"IF(DataLog!$C164=\"Log value\",DataLog!O164,\"\")","v":""},{"$f":"IF(DataLog!$C164=\"Log value\",DataLog!P164,\"\")","v":""},{"$f":"IF(DataLog!$C164=\"Log value\",DataLog!Q164,\"\")","v":""},{"$f":"IF(DataLog!$C164=\"Log value\",DataLog!R164,\"\")","v":""},{"$f":"IF(DataLog!$C164=\"Log value\",DataLog!S164,\"\")","v":""},{"$f":"IF(DataLog!$C164=\"Log value\",DataLog!T164,\"\")","v":""},{"$f":"IF(DataLog!$C164=\"Log value\",DataLog!U164,\"\")","v":""},{"$f":"IF(DataLog!$C164=\"Log value\",DataLog!V164,\"\")","v":""},{"$f":"IF(DataLog!$C164=\"Log value\",DataLog!W164,\"\")","v":""},{"$f":"IF(DataLog!$C164=\"Log value\",DataLog!X164,\"\")","v":""},{"$f":"IF(DataLog!$C164=\"Log value\",DataLog!Y164,\"\")","v":""},{"$f":"IF(DataLog!$C164=\"Log value\",DataLog!Z164,\"\")","v":""},{"$f":"IF(DataLog!$C164=\"Log value\",DataLog!AA164,\"\")","v":""},{"$f":"IF(DataLog!$C164=\"Log value\",DataLog!AB164,\"\")","v":""},{"$f":"IF(DataLog!$C164=\"Log value\",DataLog!AC164,\"\")","v":""},{"$f":"IF(DataLog!$C164=\"Log value\",DataLog!AD164,\"\")","v":""},{"$f":"IF(DataLog!$C164=\"Log value\",DataLog!AE164,\"\")","v":""},{"$f":"IF(DataLog!$C164=\"Log value\",DataLog!AF164,\"\")","v":""},{"$f":"IF(DataLog!$C164=\"Log value\",DataLog!AG164,\"\")","v":""},{"$f":"IF(DataLog!$C164=\"Log value\",DataLog!AH164,\"\")","v":""},{"$f":"IF(DataLog!$C164=\"Log value\",DataLog!AI164,\"\")","v":""},{"$f":"IF(DataLog!$C164=\"Log value\",DataLog!AJ164,\"\")","v":""},{"$f":"IF(DataLog!$C164=\"Log value\",DataLog!AK164,\"\")","v":""},{"$f":"IF(DataLog!$C164=\"Log value\",DataLog!AL164,\"\")","v":""},{"$f":"IF(DataLog!$C164=\"Log value\",DataLog!AM164,\"\")","v":""}]
[null,null,"Standard","Standard -  - ",null,null,{"$f":"IF(DataLog!$C165=\"Log value\",DataLog!D165&\"_\"&TEXT(DataLog!B165,\"åååå-mm-dd\"),\"\")","v":""},{"$f":"IF(DataLog!$C165=\"Log value\",DataLog!E165,\"\")","v":""},{"$f":"IF(DataLog!$C165=\"Log value\",DataLog!F165,\"\")","v":""},{"$f":"IF(DataLog!$C165=\"Log value\",DataLog!G165,\"\")","v":""},{"$f":"IF(DataLog!$C165=\"Log value\",DataLog!H165,\"\")","v":""},{"$f":"IF(DataLog!$C165=\"Log value\",DataLog!I165,\"\")","v":""},{"$f":"IF(DataLog!$C165=\"Log value\",DataLog!J165,\"\")","v":""},{"$f":"IF(DataLog!$C165=\"Log value\",DataLog!K165,\"\")","v":""},{"$f":"IF(DataLog!$C165=\"Log value\",DataLog!L165,\"\")","v":""},{"$f":"IF(DataLog!$C165=\"Log value\",DataLog!M165,\"\")","v":""},{"$f":"IF(DataLog!$C165=\"Log value\",DataLog!N165,\"\")","v":""},{"$f":"IF(DataLog!$C165=\"Log value\",DataLog!O165,\"\")","v":""},{"$f":"IF(DataLog!$C165=\"Log value\",DataLog!P165,\"\")","v":""},{"$f":"IF(DataLog!$C165=\"Log value\",DataLog!Q165,\"\")","v":""},{"$f":"IF(DataLog!$C165=\"Log value\",DataLog!R165,\"\")","v":""},{"$f":"IF(DataLog!$C165=\"Log value\",DataLog!S165,\"\")","v":""},{"$f":"IF(DataLog!$C165=\"Log value\",DataLog!T165,\"\")","v":""},{"$f":"IF(DataLog!$C165=\"Log value\",DataLog!U165,\"\")","v":""},{"$f":"IF(DataLog!$C165=\"Log value\",DataLog!V165,\"\")","v":""},{"$f":"IF(DataLog!$C165=\"Log value\",DataLog!W165,\"\")","v":""},{"$f":"IF(DataLog!$C165=\"Log value\",DataLog!X165,\"\")","v":""},{"$f":"IF(DataLog!$C165=\"Log value\",DataLog!Y165,\"\")","v":""},{"$f":"IF(DataLog!$C165=\"Log value\",DataLog!Z165,\"\")","v":""},{"$f":"IF(DataLog!$C165=\"Log value\",DataLog!AA165,\"\")","v":""},{"$f":"IF(DataLog!$C165=\"Log value\",DataLog!AB165,\"\")","v":""},{"$f":"IF(DataLog!$C165=\"Log value\",DataLog!AC165,\"\")","v":""},{"$f":"IF(DataLog!$C165=\"Log value\",DataLog!AD165,\"\")","v":""},{"$f":"IF(DataLog!$C165=\"Log value\",DataLog!AE165,\"\")","v":""},{"$f":"IF(DataLog!$C165=\"Log value\",DataLog!AF165,\"\")","v":""},{"$f":"IF(DataLog!$C165=\"Log value\",DataLog!AG165,\"\")","v":""},{"$f":"IF(DataLog!$C165=\"Log value\",DataLog!AH165,\"\")","v":""},{"$f":"IF(DataLog!$C165=\"Log value\",DataLog!AI165,\"\")","v":""},{"$f":"IF(DataLog!$C165=\"Log value\",DataLog!AJ165,\"\")","v":""},{"$f":"IF(DataLog!$C165=\"Log value\",DataLog!AK165,\"\")","v":""},{"$f":"IF(DataLog!$C165=\"Log value\",DataLog!AL165,\"\")","v":""},{"$f":"IF(DataLog!$C165=\"Log value\",DataLog!AM165,\"\")","v":""}]
[null,null,"Standard","Standard -  - ",null,null,{"$f":"IF(DataLog!$C166=\"Log value\",DataLog!D166&\"_\"&TEXT(DataLog!B166,\"åååå-mm-dd\"),\"\")","v":""},{"$f":"IF(DataLog!$C166=\"Log value\",DataLog!E166,\"\")","v":""},{"$f":"IF(DataLog!$C166=\"Log value\",DataLog!F166,\"\")","v":""},{"$f":"IF(DataLog!$C166=\"Log value\",DataLog!G166,\"\")","v":""},{"$f":"IF(DataLog!$C166=\"Log value\",DataLog!H166,\"\")","v":""},{"$f":"IF(DataLog!$C166=\"Log value\",DataLog!I166,\"\")","v":""},{"$f":"IF(DataLog!$C166=\"Log value\",DataLog!J166,\"\")","v":""},{"$f":"IF(DataLog!$C166=\"Log value\",DataLog!K166,\"\")","v":""},{"$f":"IF(DataLog!$C166=\"Log value\",DataLog!L166,\"\")","v":""},{"$f":"IF(DataLog!$C166=\"Log value\",DataLog!M166,\"\")","v":""},{"$f":"IF(DataLog!$C166=\"Log value\",DataLog!N166,\"\")","v":""},{"$f":"IF(DataLog!$C166=\"Log value\",DataLog!O166,\"\")","v":""},{"$f":"IF(DataLog!$C166=\"Log value\",DataLog!P166,\"\")","v":""},{"$f":"IF(DataLog!$C166=\"Log value\",DataLog!Q166,\"\")","v":""},{"$f":"IF(DataLog!$C166=\"Log value\",DataLog!R166,\"\")","v":""},{"$f":"IF(DataLog!$C166=\"Log value\",DataLog!S166,\"\")","v":""},{"$f":"IF(DataLog!$C166=\"Log value\",DataLog!T166,\"\")","v":""},{"$f":"IF(DataLog!$C166=\"Log value\",DataLog!U166,\"\")","v":""},{"$f":"IF(DataLog!$C166=\"Log value\",DataLog!V166,\"\")","v":""},{"$f":"IF(DataLog!$C166=\"Log value\",DataLog!W166,\"\")","v":""},{"$f":"IF(DataLog!$C166=\"Log value\",DataLog!X166,\"\")","v":""},{"$f":"IF(DataLog!$C166=\"Log value\",DataLog!Y166,\"\")","v":""},{"$f":"IF(DataLog!$C166=\"Log value\",DataLog!Z166,\"\")","v":""},{"$f":"IF(DataLog!$C166=\"Log value\",DataLog!AA166,\"\")","v":""},{"$f":"IF(DataLog!$C166=\"Log value\",DataLog!AB166,\"\")","v":""},{"$f":"IF(DataLog!$C166=\"Log value\",DataLog!AC166,\"\")","v":""},{"$f":"IF(DataLog!$C166=\"Log value\",DataLog!AD166,\"\")","v":""},{"$f":"IF(DataLog!$C166=\"Log value\",DataLog!AE166,\"\")","v":""},{"$f":"IF(DataLog!$C166=\"Log value\",DataLog!AF166,\"\")","v":""},{"$f":"IF(DataLog!$C166=\"Log value\",DataLog!AG166,\"\")","v":""},{"$f":"IF(DataLog!$C166=\"Log value\",DataLog!AH166,\"\")","v":""},{"$f":"IF(DataLog!$C166=\"Log value\",DataLog!AI166,\"\")","v":""},{"$f":"IF(DataLog!$C166=\"Log value\",DataLog!AJ166,\"\")","v":""},{"$f":"IF(DataLog!$C166=\"Log value\",DataLog!AK166,\"\")","v":""},{"$f":"IF(DataLog!$C166=\"Log value\",DataLog!AL166,\"\")","v":""},{"$f":"IF(DataLog!$C166=\"Log value\",DataLog!AM166,\"\")","v":""}]
[null,null,"Standard","Standard -  - ",null,null,{"$f":"IF(DataLog!$C167=\"Log value\",DataLog!D167&\"_\"&TEXT(DataLog!B167,\"åååå-mm-dd\"),\"\")","v":""},{"$f":"IF(DataLog!$C167=\"Log value\",DataLog!E167,\"\")","v":""},{"$f":"IF(DataLog!$C167=\"Log value\",DataLog!F167,\"\")","v":""},{"$f":"IF(DataLog!$C167=\"Log value\",DataLog!G167,\"\")","v":""},{"$f":"IF(DataLog!$C167=\"Log value\",DataLog!H167,\"\")","v":""},{"$f":"IF(DataLog!$C167=\"Log value\",DataLog!I167,\"\")","v":""},{"$f":"IF(DataLog!$C167=\"Log value\",DataLog!J167,\"\")","v":""},{"$f":"IF(DataLog!$C167=\"Log value\",DataLog!K167,\"\")","v":""},{"$f":"IF(DataLog!$C167=\"Log value\",DataLog!L167,\"\")","v":""},{"$f":"IF(DataLog!$C167=\"Log value\",DataLog!M167,\"\")","v":""},{"$f":"IF(DataLog!$C167=\"Log value\",DataLog!N167,\"\")","v":""},{"$f":"IF(DataLog!$C167=\"Log value\",DataLog!O167,\"\")","v":""},{"$f":"IF(DataLog!$C167=\"Log value\",DataLog!P167,\"\")","v":""},{"$f":"IF(DataLog!$C167=\"Log value\",DataLog!Q167,\"\")","v":""},{"$f":"IF(DataLog!$C167=\"Log value\",DataLog!R167,\"\")","v":""},{"$f":"IF(DataLog!$C167=\"Log value\",DataLog!S167,\"\")","v":""},{"$f":"IF(DataLog!$C167=\"Log value\",DataLog!T167,\"\")","v":""},{"$f":"IF(DataLog!$C167=\"Log value\",DataLog!U167,\"\")","v":""},{"$f":"IF(DataLog!$C167=\"Log value\",DataLog!V167,\"\")","v":""},{"$f":"IF(DataLog!$C167=\"Log value\",DataLog!W167,\"\")","v":""},{"$f":"IF(DataLog!$C167=\"Log value\",DataLog!X167,\"\")","v":""},{"$f":"IF(DataLog!$C167=\"Log value\",DataLog!Y167,\"\")","v":""},{"$f":"IF(DataLog!$C167=\"Log value\",DataLog!Z167,\"\")","v":""},{"$f":"IF(DataLog!$C167=\"Log value\",DataLog!AA167,\"\")","v":""},{"$f":"IF(DataLog!$C167=\"Log value\",DataLog!AB167,\"\")","v":""},{"$f":"IF(DataLog!$C167=\"Log value\",DataLog!AC167,\"\")","v":""},{"$f":"IF(DataLog!$C167=\"Log value\",DataLog!AD167,\"\")","v":""},{"$f":"IF(DataLog!$C167=\"Log value\",DataLog!AE167,\"\")","v":""},{"$f":"IF(DataLog!$C167=\"Log value\",DataLog!AF167,\"\")","v":""},{"$f":"IF(DataLog!$C167=\"Log value\",DataLog!AG167,\"\")","v":""},{"$f":"IF(DataLog!$C167=\"Log value\",DataLog!AH167,\"\")","v":""},{"$f":"IF(DataLog!$C167=\"Log value\",DataLog!AI167,\"\")","v":""},{"$f":"IF(DataLog!$C167=\"Log value\",DataLog!AJ167,\"\")","v":""},{"$f":"IF(DataLog!$C167=\"Log value\",DataLog!AK167,\"\")","v":""},{"$f":"IF(DataLog!$C167=\"Log value\",DataLog!AL167,\"\")","v":""},{"$f":"IF(DataLog!$C167=\"Log value\",DataLog!AM167,\"\")","v":""}]
[null,null,"Standard","Standard -  - ",null,null,{"$f":"IF(DataLog!$C168=\"Log value\",DataLog!D168&\"_\"&TEXT(DataLog!B168,\"åååå-mm-dd\"),\"\")","v":""},{"$f":"IF(DataLog!$C168=\"Log value\",DataLog!E168,\"\")","v":""},{"$f":"IF(DataLog!$C168=\"Log value\",DataLog!F168,\"\")","v":""},{"$f":"IF(DataLog!$C168=\"Log value\",DataLog!G168,\"\")","v":""},{"$f":"IF(DataLog!$C168=\"Log value\",DataLog!H168,\"\")","v":""},{"$f":"IF(DataLog!$C168=\"Log value\",DataLog!I168,\"\")","v":""},{"$f":"IF(DataLog!$C168=\"Log value\",DataLog!J168,\"\")","v":""},{"$f":"IF(DataLog!$C168=\"Log value\",DataLog!K168,\"\")","v":""},{"$f":"IF(DataLog!$C168=\"Log value\",DataLog!L168,\"\")","v":""},{"$f":"IF(DataLog!$C168=\"Log value\",DataLog!M168,\"\")","v":""},{"$f":"IF(DataLog!$C168=\"Log value\",DataLog!N168,\"\")","v":""},{"$f":"IF(DataLog!$C168=\"Log value\",DataLog!O168,\"\")","v":""},{"$f":"IF(DataLog!$C168=\"Log value\",DataLog!P168,\"\")","v":""},{"$f":"IF(DataLog!$C168=\"Log value\",DataLog!Q168,\"\")","v":""},{"$f":"IF(DataLog!$C168=\"Log value\",DataLog!R168,\"\")","v":""},{"$f":"IF(DataLog!$C168=\"Log value\",DataLog!S168,\"\")","v":""},{"$f":"IF(DataLog!$C168=\"Log value\",DataLog!T168,\"\")","v":""},{"$f":"IF(DataLog!$C168=\"Log value\",DataLog!U168,\"\")","v":""},{"$f":"IF(DataLog!$C168=\"Log value\",DataLog!V168,\"\")","v":""},{"$f":"IF(DataLog!$C168=\"Log value\",DataLog!W168,\"\")","v":""},{"$f":"IF(DataLog!$C168=\"Log value\",DataLog!X168,\"\")","v":""},{"$f":"IF(DataLog!$C168=\"Log value\",DataLog!Y168,\"\")","v":""},{"$f":"IF(DataLog!$C168=\"Log value\",DataLog!Z168,\"\")","v":""},{"$f":"IF(DataLog!$C168=\"Log value\",DataLog!AA168,\"\")","v":""},{"$f":"IF(DataLog!$C168=\"Log value\",DataLog!AB168,\"\")","v":""},{"$f":"IF(DataLog!$C168=\"Log value\",DataLog!AC168,\"\")","v":""},{"$f":"IF(DataLog!$C168=\"Log value\",DataLog!AD168,\"\")","v":""},{"$f":"IF(DataLog!$C168=\"Log value\",DataLog!AE168,\"\")","v":""},{"$f":"IF(DataLog!$C168=\"Log value\",DataLog!AF168,\"\")","v":""},{"$f":"IF(DataLog!$C168=\"Log value\",DataLog!AG168,\"\")","v":""},{"$f":"IF(DataLog!$C168=\"Log value\",DataLog!AH168,\"\")","v":""},{"$f":"IF(DataLog!$C168=\"Log value\",DataLog!AI168,\"\")","v":""},{"$f":"IF(DataLog!$C168=\"Log value\",DataLog!AJ168,\"\")","v":""},{"$f":"IF(DataLog!$C168=\"Log value\",DataLog!AK168,\"\")","v":""},{"$f":"IF(DataLog!$C168=\"Log value\",DataLog!AL168,\"\")","v":""},{"$f":"IF(DataLog!$C168=\"Log value\",DataLog!AM168,\"\")","v":""}]
[null,null,"Standard","Standard -  - ",null,null,{"$f":"IF(DataLog!$C169=\"Log value\",DataLog!D169&\"_\"&TEXT(DataLog!B169,\"åååå-mm-dd\"),\"\")","v":""},{"$f":"IF(DataLog!$C169=\"Log value\",DataLog!E169,\"\")","v":""},{"$f":"IF(DataLog!$C169=\"Log value\",DataLog!F169,\"\")","v":""},{"$f":"IF(DataLog!$C169=\"Log value\",DataLog!G169,\"\")","v":""},{"$f":"IF(DataLog!$C169=\"Log value\",DataLog!H169,\"\")","v":""},{"$f":"IF(DataLog!$C169=\"Log value\",DataLog!I169,\"\")","v":""},{"$f":"IF(DataLog!$C169=\"Log value\",DataLog!J169,\"\")","v":""},{"$f":"IF(DataLog!$C169=\"Log value\",DataLog!K169,\"\")","v":""},{"$f":"IF(DataLog!$C169=\"Log value\",DataLog!L169,\"\")","v":""},{"$f":"IF(DataLog!$C169=\"Log value\",DataLog!M169,\"\")","v":""},{"$f":"IF(DataLog!$C169=\"Log value\",DataLog!N169,\"\")","v":""},{"$f":"IF(DataLog!$C169=\"Log value\",DataLog!O169,\"\")","v":""},{"$f":"IF(DataLog!$C169=\"Log value\",DataLog!P169,\"\")","v":""},{"$f":"IF(DataLog!$C169=\"Log value\",DataLog!Q169,\"\")","v":""},{"$f":"IF(DataLog!$C169=\"Log value\",DataLog!R169,\"\")","v":""},{"$f":"IF(DataLog!$C169=\"Log value\",DataLog!S169,\"\")","v":""},{"$f":"IF(DataLog!$C169=\"Log value\",DataLog!T169,\"\")","v":""},{"$f":"IF(DataLog!$C169=\"Log value\",DataLog!U169,\"\")","v":""},{"$f":"IF(DataLog!$C169=\"Log value\",DataLog!V169,\"\")","v":""},{"$f":"IF(DataLog!$C169=\"Log value\",DataLog!W169,\"\")","v":""},{"$f":"IF(DataLog!$C169=\"Log value\",DataLog!X169,\"\")","v":""},{"$f":"IF(DataLog!$C169=\"Log value\",DataLog!Y169,\"\")","v":""},{"$f":"IF(DataLog!$C169=\"Log value\",DataLog!Z169,\"\")","v":""},{"$f":"IF(DataLog!$C169=\"Log value\",DataLog!AA169,\"\")","v":""},{"$f":"IF(DataLog!$C169=\"Log value\",DataLog!AB169,\"\")","v":""},{"$f":"IF(DataLog!$C169=\"Log value\",DataLog!AC169,\"\")","v":""},{"$f":"IF(DataLog!$C169=\"Log value\",DataLog!AD169,\"\")","v":""},{"$f":"IF(DataLog!$C169=\"Log value\",DataLog!AE169,\"\")","v":""},{"$f":"IF(DataLog!$C169=\"Log value\",DataLog!AF169,\"\")","v":""},{"$f":"IF(DataLog!$C169=\"Log value\",DataLog!AG169,\"\")","v":""},{"$f":"IF(DataLog!$C169=\"Log value\",DataLog!AH169,\"\")","v":""},{"$f":"IF(DataLog!$C169=\"Log value\",DataLog!AI169,\"\")","v":""},{"$f":"IF(DataLog!$C169=\"Log value\",DataLog!AJ169,\"\")","v":""},{"$f":"IF(DataLog!$C169=\"Log value\",DataLog!AK169,\"\")","v":""},{"$f":"IF(DataLog!$C169=\"Log value\",DataLog!AL169,\"\")","v":""},{"$f":"IF(DataLog!$C169=\"Log value\",DataLog!AM169,\"\")","v":""}]
[null,null,"Standard","Standard -  - ",null,null,{"$f":"IF(DataLog!$C170=\"Log value\",DataLog!D170&\"_\"&TEXT(DataLog!B170,\"åååå-mm-dd\"),\"\")","v":""},{"$f":"IF(DataLog!$C170=\"Log value\",DataLog!E170,\"\")","v":""},{"$f":"IF(DataLog!$C170=\"Log value\",DataLog!F170,\"\")","v":""},{"$f":"IF(DataLog!$C170=\"Log value\",DataLog!G170,\"\")","v":""},{"$f":"IF(DataLog!$C170=\"Log value\",DataLog!H170,\"\")","v":""},{"$f":"IF(DataLog!$C170=\"Log value\",DataLog!I170,\"\")","v":""},{"$f":"IF(DataLog!$C170=\"Log value\",DataLog!J170,\"\")","v":""},{"$f":"IF(DataLog!$C170=\"Log value\",DataLog!K170,\"\")","v":""},{"$f":"IF(DataLog!$C170=\"Log value\",DataLog!L170,\"\")","v":""},{"$f":"IF(DataLog!$C170=\"Log value\",DataLog!M170,\"\")","v":""},{"$f":"IF(DataLog!$C170=\"Log value\",DataLog!N170,\"\")","v":""},{"$f":"IF(DataLog!$C170=\"Log value\",DataLog!O170,\"\")","v":""},{"$f":"IF(DataLog!$C170=\"Log value\",DataLog!P170,\"\")","v":""},{"$f":"IF(DataLog!$C170=\"Log value\",DataLog!Q170,\"\")","v":""},{"$f":"IF(DataLog!$C170=\"Log value\",DataLog!R170,\"\")","v":""},{"$f":"IF(DataLog!$C170=\"Log value\",DataLog!S170,\"\")","v":""},{"$f":"IF(DataLog!$C170=\"Log value\",DataLog!T170,\"\")","v":""},{"$f":"IF(DataLog!$C170=\"Log value\",DataLog!U170,\"\")","v":""},{"$f":"IF(DataLog!$C170=\"Log value\",DataLog!V170,\"\")","v":""},{"$f":"IF(DataLog!$C170=\"Log value\",DataLog!W170,\"\")","v":""},{"$f":"IF(DataLog!$C170=\"Log value\",DataLog!X170,\"\")","v":""},{"$f":"IF(DataLog!$C170=\"Log value\",DataLog!Y170,\"\")","v":""},{"$f":"IF(DataLog!$C170=\"Log value\",DataLog!Z170,\"\")","v":""},{"$f":"IF(DataLog!$C170=\"Log value\",DataLog!AA170,\"\")","v":""},{"$f":"IF(DataLog!$C170=\"Log value\",DataLog!AB170,\"\")","v":""},{"$f":"IF(DataLog!$C170=\"Log value\",DataLog!AC170,\"\")","v":""},{"$f":"IF(DataLog!$C170=\"Log value\",DataLog!AD170,\"\")","v":""},{"$f":"IF(DataLog!$C170=\"Log value\",DataLog!AE170,\"\")","v":""},{"$f":"IF(DataLog!$C170=\"Log value\",DataLog!AF170,\"\")","v":""},{"$f":"IF(DataLog!$C170=\"Log value\",DataLog!AG170,\"\")","v":""},{"$f":"IF(DataLog!$C170=\"Log value\",DataLog!AH170,\"\")","v":""},{"$f":"IF(DataLog!$C170=\"Log value\",DataLog!AI170,\"\")","v":""},{"$f":"IF(DataLog!$C170=\"Log value\",DataLog!AJ170,\"\")","v":""},{"$f":"IF(DataLog!$C170=\"Log value\",DataLog!AK170,\"\")","v":""},{"$f":"IF(DataLog!$C170=\"Log value\",DataLog!AL170,\"\")","v":""},{"$f":"IF(DataLog!$C170=\"Log value\",DataLog!AM170,\"\")","v":""}]
[null,null,"Standard","Standard -  - ",null,null,{"$f":"IF(DataLog!$C171=\"Log value\",DataLog!D171&\"_\"&TEXT(DataLog!B171,\"åååå-mm-dd\"),\"\")","v":""},{"$f":"IF(DataLog!$C171=\"Log value\",DataLog!E171,\"\")","v":""},{"$f":"IF(DataLog!$C171=\"Log value\",DataLog!F171,\"\")","v":""},{"$f":"IF(DataLog!$C171=\"Log value\",DataLog!G171,\"\")","v":""},{"$f":"IF(DataLog!$C171=\"Log value\",DataLog!H171,\"\")","v":""},{"$f":"IF(DataLog!$C171=\"Log value\",DataLog!I171,\"\")","v":""},{"$f":"IF(DataLog!$C171=\"Log value\",DataLog!J171,\"\")","v":""},{"$f":"IF(DataLog!$C171=\"Log value\",DataLog!K171,\"\")","v":""},{"$f":"IF(DataLog!$C171=\"Log value\",DataLog!L171,\"\")","v":""},{"$f":"IF(DataLog!$C171=\"Log value\",DataLog!M171,\"\")","v":""},{"$f":"IF(DataLog!$C171=\"Log value\",DataLog!N171,\"\")","v":""},{"$f":"IF(DataLog!$C171=\"Log value\",DataLog!O171,\"\")","v":""},{"$f":"IF(DataLog!$C171=\"Log value\",DataLog!P171,\"\")","v":""},{"$f":"IF(DataLog!$C171=\"Log value\",DataLog!Q171,\"\")","v":""},{"$f":"IF(DataLog!$C171=\"Log value\",DataLog!R171,\"\")","v":""},{"$f":"IF(DataLog!$C171=\"Log value\",DataLog!S171,\"\")","v":""},{"$f":"IF(DataLog!$C171=\"Log value\",DataLog!T171,\"\")","v":""},{"$f":"IF(DataLog!$C171=\"Log value\",DataLog!U171,\"\")","v":""},{"$f":"IF(DataLog!$C171=\"Log value\",DataLog!V171,\"\")","v":""},{"$f":"IF(DataLog!$C171=\"Log value\",DataLog!W171,\"\")","v":""},{"$f":"IF(DataLog!$C171=\"Log value\",DataLog!X171,\"\")","v":""},{"$f":"IF(DataLog!$C171=\"Log value\",DataLog!Y171,\"\")","v":""},{"$f":"IF(DataLog!$C171=\"Log value\",DataLog!Z171,\"\")","v":""},{"$f":"IF(DataLog!$C171=\"Log value\",DataLog!AA171,\"\")","v":""},{"$f":"IF(DataLog!$C171=\"Log value\",DataLog!AB171,\"\")","v":""},{"$f":"IF(DataLog!$C171=\"Log value\",DataLog!AC171,\"\")","v":""},{"$f":"IF(DataLog!$C171=\"Log value\",DataLog!AD171,\"\")","v":""},{"$f":"IF(DataLog!$C171=\"Log value\",DataLog!AE171,\"\")","v":""},{"$f":"IF(DataLog!$C171=\"Log value\",DataLog!AF171,\"\")","v":""},{"$f":"IF(DataLog!$C171=\"Log value\",DataLog!AG171,\"\")","v":""},{"$f":"IF(DataLog!$C171=\"Log value\",DataLog!AH171,\"\")","v":""},{"$f":"IF(DataLog!$C171=\"Log value\",DataLog!AI171,\"\")","v":""},{"$f":"IF(DataLog!$C171=\"Log value\",DataLog!AJ171,\"\")","v":""},{"$f":"IF(DataLog!$C171=\"Log value\",DataLog!AK171,\"\")","v":""},{"$f":"IF(DataLog!$C171=\"Log value\",DataLog!AL171,\"\")","v":""},{"$f":"IF(DataLog!$C171=\"Log value\",DataLog!AM171,\"\")","v":""}]
[null,null,"Standard","Standard -  - ",null,null,{"$f":"IF(DataLog!$C172=\"Log value\",DataLog!D172&\"_\"&TEXT(DataLog!B172,\"åååå-mm-dd\"),\"\")","v":""},{"$f":"IF(DataLog!$C172=\"Log value\",DataLog!E172,\"\")","v":""},{"$f":"IF(DataLog!$C172=\"Log value\",DataLog!F172,\"\")","v":""},{"$f":"IF(DataLog!$C172=\"Log value\",DataLog!G172,\"\")","v":""},{"$f":"IF(DataLog!$C172=\"Log value\",DataLog!H172,\"\")","v":""},{"$f":"IF(DataLog!$C172=\"Log value\",DataLog!I172,\"\")","v":""},{"$f":"IF(DataLog!$C172=\"Log value\",DataLog!J172,\"\")","v":""},{"$f":"IF(DataLog!$C172=\"Log value\",DataLog!K172,\"\")","v":""},{"$f":"IF(DataLog!$C172=\"Log value\",DataLog!L172,\"\")","v":""},{"$f":"IF(DataLog!$C172=\"Log value\",DataLog!M172,\"\")","v":""},{"$f":"IF(DataLog!$C172=\"Log value\",DataLog!N172,\"\")","v":""},{"$f":"IF(DataLog!$C172=\"Log value\",DataLog!O172,\"\")","v":""},{"$f":"IF(DataLog!$C172=\"Log value\",DataLog!P172,\"\")","v":""},{"$f":"IF(DataLog!$C172=\"Log value\",DataLog!Q172,\"\")","v":""},{"$f":"IF(DataLog!$C172=\"Log value\",DataLog!R172,\"\")","v":""},{"$f":"IF(DataLog!$C172=\"Log value\",DataLog!S172,\"\")","v":""},{"$f":"IF(DataLog!$C172=\"Log value\",DataLog!T172,\"\")","v":""},{"$f":"IF(DataLog!$C172=\"Log value\",DataLog!U172,\"\")","v":""},{"$f":"IF(DataLog!$C172=\"Log value\",DataLog!V172,\"\")","v":""},{"$f":"IF(DataLog!$C172=\"Log value\",DataLog!W172,\"\")","v":""},{"$f":"IF(DataLog!$C172=\"Log value\",DataLog!X172,\"\")","v":""},{"$f":"IF(DataLog!$C172=\"Log value\",DataLog!Y172,\"\")","v":""},{"$f":"IF(DataLog!$C172=\"Log value\",DataLog!Z172,\"\")","v":""},{"$f":"IF(DataLog!$C172=\"Log value\",DataLog!AA172,\"\")","v":""},{"$f":"IF(DataLog!$C172=\"Log value\",DataLog!AB172,\"\")","v":""},{"$f":"IF(DataLog!$C172=\"Log value\",DataLog!AC172,\"\")","v":""},{"$f":"IF(DataLog!$C172=\"Log value\",DataLog!AD172,\"\")","v":""},{"$f":"IF(DataLog!$C172=\"Log value\",DataLog!AE172,\"\")","v":""},{"$f":"IF(DataLog!$C172=\"Log value\",DataLog!AF172,\"\")","v":""},{"$f":"IF(DataLog!$C172=\"Log value\",DataLog!AG172,\"\")","v":""},{"$f":"IF(DataLog!$C172=\"Log value\",DataLog!AH172,\"\")","v":""},{"$f":"IF(DataLog!$C172=\"Log value\",DataLog!AI172,\"\")","v":""},{"$f":"IF(DataLog!$C172=\"Log value\",DataLog!AJ172,\"\")","v":""},{"$f":"IF(DataLog!$C172=\"Log value\",DataLog!AK172,\"\")","v":""},{"$f":"IF(DataLog!$C172=\"Log value\",DataLog!AL172,\"\")","v":""},{"$f":"IF(DataLog!$C172=\"Log value\",DataLog!AM172,\"\")","v":""}]
[null,null,"Standard","Standard -  - ",null,null,{"$f":"IF(DataLog!$C173=\"Log value\",DataLog!D173&\"_\"&TEXT(DataLog!B173,\"åååå-mm-dd\"),\"\")","v":""},{"$f":"IF(DataLog!$C173=\"Log value\",DataLog!E173,\"\")","v":""},{"$f":"IF(DataLog!$C173=\"Log value\",DataLog!F173,\"\")","v":""},{"$f":"IF(DataLog!$C173=\"Log value\",DataLog!G173,\"\")","v":""},{"$f":"IF(DataLog!$C173=\"Log value\",DataLog!H173,\"\")","v":""},{"$f":"IF(DataLog!$C173=\"Log value\",DataLog!I173,\"\")","v":""},{"$f":"IF(DataLog!$C173=\"Log value\",DataLog!J173,\"\")","v":""},{"$f":"IF(DataLog!$C173=\"Log value\",DataLog!K173,\"\")","v":""},{"$f":"IF(DataLog!$C173=\"Log value\",DataLog!L173,\"\")","v":""},{"$f":"IF(DataLog!$C173=\"Log value\",DataLog!M173,\"\")","v":""},{"$f":"IF(DataLog!$C173=\"Log value\",DataLog!N173,\"\")","v":""},{"$f":"IF(DataLog!$C173=\"Log value\",DataLog!O173,\"\")","v":""},{"$f":"IF(DataLog!$C173=\"Log value\",DataLog!P173,\"\")","v":""},{"$f":"IF(DataLog!$C173=\"Log value\",DataLog!Q173,\"\")","v":""},{"$f":"IF(DataLog!$C173=\"Log value\",DataLog!R173,\"\")","v":""},{"$f":"IF(DataLog!$C173=\"Log value\",DataLog!S173,\"\")","v":""},{"$f":"IF(DataLog!$C173=\"Log value\",DataLog!T173,\"\")","v":""},{"$f":"IF(DataLog!$C173=\"Log value\",DataLog!U173,\"\")","v":""},{"$f":"IF(DataLog!$C173=\"Log value\",DataLog!V173,\"\")","v":""},{"$f":"IF(DataLog!$C173=\"Log value\",DataLog!W173,\"\")","v":""},{"$f":"IF(DataLog!$C173=\"Log value\",DataLog!X173,\"\")","v":""},{"$f":"IF(DataLog!$C173=\"Log value\",DataLog!Y173,\"\")","v":""},{"$f":"IF(DataLog!$C173=\"Log value\",DataLog!Z173,\"\")","v":""},{"$f":"IF(DataLog!$C173=\"Log value\",DataLog!AA173,\"\")","v":""},{"$f":"IF(DataLog!$C173=\"Log value\",DataLog!AB173,\"\")","v":""},{"$f":"IF(DataLog!$C173=\"Log value\",DataLog!AC173,\"\")","v":""},{"$f":"IF(DataLog!$C173=\"Log value\",DataLog!AD173,\"\")","v":""},{"$f":"IF(DataLog!$C173=\"Log value\",DataLog!AE173,\"\")","v":""},{"$f":"IF(DataLog!$C173=\"Log value\",DataLog!AF173,\"\")","v":""},{"$f":"IF(DataLog!$C173=\"Log value\",DataLog!AG173,\"\")","v":""},{"$f":"IF(DataLog!$C173=\"Log value\",DataLog!AH173,\"\")","v":""},{"$f":"IF(DataLog!$C173=\"Log value\",DataLog!AI173,\"\")","v":""},{"$f":"IF(DataLog!$C173=\"Log value\",DataLog!AJ173,\"\")","v":""},{"$f":"IF(DataLog!$C173=\"Log value\",DataLog!AK173,\"\")","v":""},{"$f":"IF(DataLog!$C173=\"Log value\",DataLog!AL173,\"\")","v":""},{"$f":"IF(DataLog!$C173=\"Log value\",DataLog!AM173,\"\")","v":""}]
[null,null,"Standard","Standard -  - ",null,null,{"$f":"IF(DataLog!$C174=\"Log value\",DataLog!D174&\"_\"&TEXT(DataLog!B174,\"åååå-mm-dd\"),\"\")","v":""},{"$f":"IF(DataLog!$C174=\"Log value\",DataLog!E174,\"\")","v":""},{"$f":"IF(DataLog!$C174=\"Log value\",DataLog!F174,\"\")","v":""},{"$f":"IF(DataLog!$C174=\"Log value\",DataLog!G174,\"\")","v":""},{"$f":"IF(DataLog!$C174=\"Log value\",DataLog!H174,\"\")","v":""},{"$f":"IF(DataLog!$C174=\"Log value\",DataLog!I174,\"\")","v":""},{"$f":"IF(DataLog!$C174=\"Log value\",DataLog!J174,\"\")","v":""},{"$f":"IF(DataLog!$C174=\"Log value\",DataLog!K174,\"\")","v":""},{"$f":"IF(DataLog!$C174=\"Log value\",DataLog!L174,\"\")","v":""},{"$f":"IF(DataLog!$C174=\"Log value\",DataLog!M174,\"\")","v":""},{"$f":"IF(DataLog!$C174=\"Log value\",DataLog!N174,\"\")","v":""},{"$f":"IF(DataLog!$C174=\"Log value\",DataLog!O174,\"\")","v":""},{"$f":"IF(DataLog!$C174=\"Log value\",DataLog!P174,\"\")","v":""},{"$f":"IF(DataLog!$C174=\"Log value\",DataLog!Q174,\"\")","v":""},{"$f":"IF(DataLog!$C174=\"Log value\",DataLog!R174,\"\")","v":""},{"$f":"IF(DataLog!$C174=\"Log value\",DataLog!S174,\"\")","v":""},{"$f":"IF(DataLog!$C174=\"Log value\",DataLog!T174,\"\")","v":""},{"$f":"IF(DataLog!$C174=\"Log value\",DataLog!U174,\"\")","v":""},{"$f":"IF(DataLog!$C174=\"Log value\",DataLog!V174,\"\")","v":""},{"$f":"IF(DataLog!$C174=\"Log value\",DataLog!W174,\"\")","v":""},{"$f":"IF(DataLog!$C174=\"Log value\",DataLog!X174,\"\")","v":""},{"$f":"IF(DataLog!$C174=\"Log value\",DataLog!Y174,\"\")","v":""},{"$f":"IF(DataLog!$C174=\"Log value\",DataLog!Z174,\"\")","v":""},{"$f":"IF(DataLog!$C174=\"Log value\",DataLog!AA174,\"\")","v":""},{"$f":"IF(DataLog!$C174=\"Log value\",DataLog!AB174,\"\")","v":""},{"$f":"IF(DataLog!$C174=\"Log value\",DataLog!AC174,\"\")","v":""},{"$f":"IF(DataLog!$C174=\"Log value\",DataLog!AD174,\"\")","v":""},{"$f":"IF(DataLog!$C174=\"Log value\",DataLog!AE174,\"\")","v":""},{"$f":"IF(DataLog!$C174=\"Log value\",DataLog!AF174,\"\")","v":""},{"$f":"IF(DataLog!$C174=\"Log value\",DataLog!AG174,\"\")","v":""},{"$f":"IF(DataLog!$C174=\"Log value\",DataLog!AH174,\"\")","v":""},{"$f":"IF(DataLog!$C174=\"Log value\",DataLog!AI174,\"\")","v":""},{"$f":"IF(DataLog!$C174=\"Log value\",DataLog!AJ174,\"\")","v":""},{"$f":"IF(DataLog!$C174=\"Log value\",DataLog!AK174,\"\")","v":""},{"$f":"IF(DataLog!$C174=\"Log value\",DataLog!AL174,\"\")","v":""},{"$f":"IF(DataLog!$C174=\"Log value\",DataLog!AM174,\"\")","v":""}]
[null,null,"Standard","Standard -  - ",null,null,{"$f":"IF(DataLog!$C175=\"Log value\",DataLog!D175&\"_\"&TEXT(DataLog!B175,\"åååå-mm-dd\"),\"\")","v":""},{"$f":"IF(DataLog!$C175=\"Log value\",DataLog!E175,\"\")","v":""},{"$f":"IF(DataLog!$C175=\"Log value\",DataLog!F175,\"\")","v":""},{"$f":"IF(DataLog!$C175=\"Log value\",DataLog!G175,\"\")","v":""},{"$f":"IF(DataLog!$C175=\"Log value\",DataLog!H175,\"\")","v":""},{"$f":"IF(DataLog!$C175=\"Log value\",DataLog!I175,\"\")","v":""},{"$f":"IF(DataLog!$C175=\"Log value\",DataLog!J175,\"\")","v":""},{"$f":"IF(DataLog!$C175=\"Log value\",DataLog!K175,\"\")","v":""},{"$f":"IF(DataLog!$C175=\"Log value\",DataLog!L175,\"\")","v":""},{"$f":"IF(DataLog!$C175=\"Log value\",DataLog!M175,\"\")","v":""},{"$f":"IF(DataLog!$C175=\"Log value\",DataLog!N175,\"\")","v":""},{"$f":"IF(DataLog!$C175=\"Log value\",DataLog!O175,\"\")","v":""},{"$f":"IF(DataLog!$C175=\"Log value\",DataLog!P175,\"\")","v":""},{"$f":"IF(DataLog!$C175=\"Log value\",DataLog!Q175,\"\")","v":""},{"$f":"IF(DataLog!$C175=\"Log value\",DataLog!R175,\"\")","v":""},{"$f":"IF(DataLog!$C175=\"Log value\",DataLog!S175,\"\")","v":""},{"$f":"IF(DataLog!$C175=\"Log value\",DataLog!T175,\"\")","v":""},{"$f":"IF(DataLog!$C175=\"Log value\",DataLog!U175,\"\")","v":""},{"$f":"IF(DataLog!$C175=\"Log value\",DataLog!V175,\"\")","v":""},{"$f":"IF(DataLog!$C175=\"Log value\",DataLog!W175,\"\")","v":""},{"$f":"IF(DataLog!$C175=\"Log value\",DataLog!X175,\"\")","v":""},{"$f":"IF(DataLog!$C175=\"Log value\",DataLog!Y175,\"\")","v":""},{"$f":"IF(DataLog!$C175=\"Log value\",DataLog!Z175,\"\")","v":""},{"$f":"IF(DataLog!$C175=\"Log value\",DataLog!AA175,\"\")","v":""},{"$f":"IF(DataLog!$C175=\"Log value\",DataLog!AB175,\"\")","v":""},{"$f":"IF(DataLog!$C175=\"Log value\",DataLog!AC175,\"\")","v":""},{"$f":"IF(DataLog!$C175=\"Log value\",DataLog!AD175,\"\")","v":""},{"$f":"IF(DataLog!$C175=\"Log value\",DataLog!AE175,\"\")","v":""},{"$f":"IF(DataLog!$C175=\"Log value\",DataLog!AF175,\"\")","v":""},{"$f":"IF(DataLog!$C175=\"Log value\",DataLog!AG175,\"\")","v":""},{"$f":"IF(DataLog!$C175=\"Log value\",DataLog!AH175,\"\")","v":""},{"$f":"IF(DataLog!$C175=\"Log value\",DataLog!AI175,\"\")","v":""},{"$f":"IF(DataLog!$C175=\"Log value\",DataLog!AJ175,\"\")","v":""},{"$f":"IF(DataLog!$C175=\"Log value\",DataLog!AK175,\"\")","v":""},{"$f":"IF(DataLog!$C175=\"Log value\",DataLog!AL175,\"\")","v":""},{"$f":"IF(DataLog!$C175=\"Log value\",DataLog!AM175,\"\")","v":""}]
[null,null,"Standard","Standard -  - ",null,null,{"$f":"IF(DataLog!$C176=\"Log value\",DataLog!D176&\"_\"&TEXT(DataLog!B176,\"åååå-mm-dd\"),\"\")","v":""},{"$f":"IF(DataLog!$C176=\"Log value\",DataLog!E176,\"\")","v":""},{"$f":"IF(DataLog!$C176=\"Log value\",DataLog!F176,\"\")","v":""},{"$f":"IF(DataLog!$C176=\"Log value\",DataLog!G176,\"\")","v":""},{"$f":"IF(DataLog!$C176=\"Log value\",DataLog!H176,\"\")","v":""},{"$f":"IF(DataLog!$C176=\"Log value\",DataLog!I176,\"\")","v":""},{"$f":"IF(DataLog!$C176=\"Log value\",DataLog!J176,\"\")","v":""},{"$f":"IF(DataLog!$C176=\"Log value\",DataLog!K176,\"\")","v":""},{"$f":"IF(DataLog!$C176=\"Log value\",DataLog!L176,\"\")","v":""},{"$f":"IF(DataLog!$C176=\"Log value\",DataLog!M176,\"\")","v":""},{"$f":"IF(DataLog!$C176=\"Log value\",DataLog!N176,\"\")","v":""},{"$f":"IF(DataLog!$C176=\"Log value\",DataLog!O176,\"\")","v":""},{"$f":"IF(DataLog!$C176=\"Log value\",DataLog!P176,\"\")","v":""},{"$f":"IF(DataLog!$C176=\"Log value\",DataLog!Q176,\"\")","v":""},{"$f":"IF(DataLog!$C176=\"Log value\",DataLog!R176,\"\")","v":""},{"$f":"IF(DataLog!$C176=\"Log value\",DataLog!S176,\"\")","v":""},{"$f":"IF(DataLog!$C176=\"Log value\",DataLog!T176,\"\")","v":""},{"$f":"IF(DataLog!$C176=\"Log value\",DataLog!U176,\"\")","v":""},{"$f":"IF(DataLog!$C176=\"Log value\",DataLog!V176,\"\")","v":""},{"$f":"IF(DataLog!$C176=\"Log value\",DataLog!W176,\"\")","v":""},{"$f":"IF(DataLog!$C176=\"Log value\",DataLog!X176,\"\")","v":""},{"$f":"IF(DataLog!$C176=\"Log value\",DataLog!Y176,\"\")","v":""},{"$f":"IF(DataLog!$C176=\"Log value\",DataLog!Z176,\"\")","v":""},{"$f":"IF(DataLog!$C176=\"Log value\",DataLog!AA176,\"\")","v":""},{"$f":"IF(DataLog!$C176=\"Log value\",DataLog!AB176,\"\")","v":""},{"$f":"IF(DataLog!$C176=\"Log value\",DataLog!AC176,\"\")","v":""},{"$f":"IF(DataLog!$C176=\"Log value\",DataLog!AD176,\"\")","v":""},{"$f":"IF(DataLog!$C176=\"Log value\",DataLog!AE176,\"\")","v":""},{"$f":"IF(DataLog!$C176=\"Log value\",DataLog!AF176,\"\")","v":""},{"$f":"IF(DataLog!$C176=\"Log value\",DataLog!AG176,\"\")","v":""},{"$f":"IF(DataLog!$C176=\"Log value\",DataLog!AH176,\"\")","v":""},{"$f":"IF(DataLog!$C176=\"Log value\",DataLog!AI176,\"\")","v":""},{"$f":"IF(DataLog!$C176=\"Log value\",DataLog!AJ176,\"\")","v":""},{"$f":"IF(DataLog!$C176=\"Log value\",DataLog!AK176,\"\")","v":""},{"$f":"IF(DataLog!$C176=\"Log value\",DataLog!AL176,\"\")","v":""},{"$f":"IF(DataLog!$C176=\"Log value\",DataLog!AM176,\"\")","v":""}]
[null,null,"Standard","Standard -  - ",null,null,{"$f":"IF(DataLog!$C177=\"Log value\",DataLog!D177&\"_\"&TEXT(DataLog!B177,\"åååå-mm-dd\"),\"\")","v":""},{"$f":"IF(DataLog!$C177=\"Log value\",DataLog!E177,\"\")","v":""},{"$f":"IF(DataLog!$C177=\"Log value\",DataLog!F177,\"\")","v":""},{"$f":"IF(DataLog!$C177=\"Log value\",DataLog!G177,\"\")","v":""},{"$f":"IF(DataLog!$C177=\"Log value\",DataLog!H177,\"\")","v":""},{"$f":"IF(DataLog!$C177=\"Log value\",DataLog!I177,\"\")","v":""},{"$f":"IF(DataLog!$C177=\"Log value\",DataLog!J177,\"\")","v":""},{"$f":"IF(DataLog!$C177=\"Log value\",DataLog!K177,\"\")","v":""},{"$f":"IF(DataLog!$C177=\"Log value\",DataLog!L177,\"\")","v":""},{"$f":"IF(DataLog!$C177=\"Log value\",DataLog!M177,\"\")","v":""},{"$f":"IF(DataLog!$C177=\"Log value\",DataLog!N177,\"\")","v":""},{"$f":"IF(DataLog!$C177=\"Log value\",DataLog!O177,\"\")","v":""},{"$f":"IF(DataLog!$C177=\"Log value\",DataLog!P177,\"\")","v":""},{"$f":"IF(DataLog!$C177=\"Log value\",DataLog!Q177,\"\")","v":""},{"$f":"IF(DataLog!$C177=\"Log value\",DataLog!R177,\"\")","v":""},{"$f":"IF(DataLog!$C177=\"Log value\",DataLog!S177,\"\")","v":""},{"$f":"IF(DataLog!$C177=\"Log value\",DataLog!T177,\"\")","v":""},{"$f":"IF(DataLog!$C177=\"Log value\",DataLog!U177,\"\")","v":""},{"$f":"IF(DataLog!$C177=\"Log value\",DataLog!V177,\"\")","v":""},{"$f":"IF(DataLog!$C177=\"Log value\",DataLog!W177,\"\")","v":""},{"$f":"IF(DataLog!$C177=\"Log value\",DataLog!X177,\"\")","v":""},{"$f":"IF(DataLog!$C177=\"Log value\",DataLog!Y177,\"\")","v":""},{"$f":"IF(DataLog!$C177=\"Log value\",DataLog!Z177,\"\")","v":""},{"$f":"IF(DataLog!$C177=\"Log value\",DataLog!AA177,\"\")","v":""},{"$f":"IF(DataLog!$C177=\"Log value\",DataLog!AB177,\"\")","v":""},{"$f":"IF(DataLog!$C177=\"Log value\",DataLog!AC177,\"\")","v":""},{"$f":"IF(DataLog!$C177=\"Log value\",DataLog!AD177,\"\")","v":""},{"$f":"IF(DataLog!$C177=\"Log value\",DataLog!AE177,\"\")","v":""},{"$f":"IF(DataLog!$C177=\"Log value\",DataLog!AF177,\"\")","v":""},{"$f":"IF(DataLog!$C177=\"Log value\",DataLog!AG177,\"\")","v":""},{"$f":"IF(DataLog!$C177=\"Log value\",DataLog!AH177,\"\")","v":""},{"$f":"IF(DataLog!$C177=\"Log value\",DataLog!AI177,\"\")","v":""},{"$f":"IF(DataLog!$C177=\"Log value\",DataLog!AJ177,\"\")","v":""},{"$f":"IF(DataLog!$C177=\"Log value\",DataLog!AK177,\"\")","v":""},{"$f":"IF(DataLog!$C177=\"Log value\",DataLog!AL177,\"\")","v":""},{"$f":"IF(DataLog!$C177=\"Log value\",DataLog!AM177,\"\")","v":""}]
[null,null,"Standard","Standard -  - ",null,null,{"$f":"IF(DataLog!$C178=\"Log value\",DataLog!D178&\"_\"&TEXT(DataLog!B178,\"åååå-mm-dd\"),\"\")","v":""},{"$f":"IF(DataLog!$C178=\"Log value\",DataLog!E178,\"\")","v":""},{"$f":"IF(DataLog!$C178=\"Log value\",DataLog!F178,\"\")","v":""},{"$f":"IF(DataLog!$C178=\"Log value\",DataLog!G178,\"\")","v":""},{"$f":"IF(DataLog!$C178=\"Log value\",DataLog!H178,\"\")","v":""},{"$f":"IF(DataLog!$C178=\"Log value\",DataLog!I178,\"\")","v":""},{"$f":"IF(DataLog!$C178=\"Log value\",DataLog!J178,\"\")","v":""},{"$f":"IF(DataLog!$C178=\"Log value\",DataLog!K178,\"\")","v":""},{"$f":"IF(DataLog!$C178=\"Log value\",DataLog!L178,\"\")","v":""},{"$f":"IF(DataLog!$C178=\"Log value\",DataLog!M178,\"\")","v":""},{"$f":"IF(DataLog!$C178=\"Log value\",DataLog!N178,\"\")","v":""},{"$f":"IF(DataLog!$C178=\"Log value\",DataLog!O178,\"\")","v":""},{"$f":"IF(DataLog!$C178=\"Log value\",DataLog!P178,\"\")","v":""},{"$f":"IF(DataLog!$C178=\"Log value\",DataLog!Q178,\"\")","v":""},{"$f":"IF(DataLog!$C178=\"Log value\",DataLog!R178,\"\")","v":""},{"$f":"IF(DataLog!$C178=\"Log value\",DataLog!S178,\"\")","v":""},{"$f":"IF(DataLog!$C178=\"Log value\",DataLog!T178,\"\")","v":""},{"$f":"IF(DataLog!$C178=\"Log value\",DataLog!U178,\"\")","v":""},{"$f":"IF(DataLog!$C178=\"Log value\",DataLog!V178,\"\")","v":""},{"$f":"IF(DataLog!$C178=\"Log value\",DataLog!W178,\"\")","v":""},{"$f":"IF(DataLog!$C178=\"Log value\",DataLog!X178,\"\")","v":""},{"$f":"IF(DataLog!$C178=\"Log value\",DataLog!Y178,\"\")","v":""},{"$f":"IF(DataLog!$C178=\"Log value\",DataLog!Z178,\"\")","v":""},{"$f":"IF(DataLog!$C178=\"Log value\",DataLog!AA178,\"\")","v":""},{"$f":"IF(DataLog!$C178=\"Log value\",DataLog!AB178,\"\")","v":""},{"$f":"IF(DataLog!$C178=\"Log value\",DataLog!AC178,\"\")","v":""},{"$f":"IF(DataLog!$C178=\"Log value\",DataLog!AD178,\"\")","v":""},{"$f":"IF(DataLog!$C178=\"Log value\",DataLog!AE178,\"\")","v":""},{"$f":"IF(DataLog!$C178=\"Log value\",DataLog!AF178,\"\")","v":""},{"$f":"IF(DataLog!$C178=\"Log value\",DataLog!AG178,\"\")","v":""},{"$f":"IF(DataLog!$C178=\"Log value\",DataLog!AH178,\"\")","v":""},{"$f":"IF(DataLog!$C178=\"Log value\",DataLog!AI178,\"\")","v":""},{"$f":"IF(DataLog!$C178=\"Log value\",DataLog!AJ178,\"\")","v":""},{"$f":"IF(DataLog!$C178=\"Log value\",DataLog!AK178,\"\")","v":""},{"$f":"IF(DataLog!$C178=\"Log value\",DataLog!AL178,\"\")","v":""},{"$f":"IF(DataLog!$C178=\"Log value\",DataLog!AM178,\"\")","v":""}]
[null,null,"Standard","Standard -  - ",null,null,{"$f":"IF(DataLog!$C179=\"Log value\",DataLog!D179&\"_\"&TEXT(DataLog!B179,\"åååå-mm-dd\"),\"\")","v":""},{"$f":"IF(DataLog!$C179=\"Log value\",DataLog!E179,\"\")","v":""},{"$f":"IF(DataLog!$C179=\"Log value\",DataLog!F179,\"\")","v":""},{"$f":"IF(DataLog!$C179=\"Log value\",DataLog!G179,\"\")","v":""},{"$f":"IF(DataLog!$C179=\"Log value\",DataLog!H179,\"\")","v":""},{"$f":"IF(DataLog!$C179=\"Log value\",DataLog!I179,\"\")","v":""},{"$f":"IF(DataLog!$C179=\"Log value\",DataLog!J179,\"\")","v":""},{"$f":"IF(DataLog!$C179=\"Log value\",DataLog!K179,\"\")","v":""},{"$f":"IF(DataLog!$C179=\"Log value\",DataLog!L179,\"\")","v":""},{"$f":"IF(DataLog!$C179=\"Log value\",DataLog!M179,\"\")","v":""},{"$f":"IF(DataLog!$C179=\"Log value\",DataLog!N179,\"\")","v":""},{"$f":"IF(DataLog!$C179=\"Log value\",DataLog!O179,\"\")","v":""},{"$f":"IF(DataLog!$C179=\"Log value\",DataLog!P179,\"\")","v":""},{"$f":"IF(DataLog!$C179=\"Log value\",DataLog!Q179,\"\")","v":""},{"$f":"IF(DataLog!$C179=\"Log value\",DataLog!R179,\"\")","v":""},{"$f":"IF(DataLog!$C179=\"Log value\",DataLog!S179,\"\")","v":""},{"$f":"IF(DataLog!$C179=\"Log value\",DataLog!T179,\"\")","v":""},{"$f":"IF(DataLog!$C179=\"Log value\",DataLog!U179,\"\")","v":""},{"$f":"IF(DataLog!$C179=\"Log value\",DataLog!V179,\"\")","v":""},{"$f":"IF(DataLog!$C179=\"Log value\",DataLog!W179,\"\")","v":""},{"$f":"IF(DataLog!$C179=\"Log value\",DataLog!X179,\"\")","v":""},{"$f":"IF(DataLog!$C179=\"Log value\",DataLog!Y179,\"\")","v":""},{"$f":"IF(DataLog!$C179=\"Log value\",DataLog!Z179,\"\")","v":""},{"$f":"IF(DataLog!$C179=\"Log value\",DataLog!AA179,\"\")","v":""},{"$f":"IF(DataLog!$C179=\"Log value\",DataLog!AB179,\"\")","v":""},{"$f":"IF(DataLog!$C179=\"Log value\",DataLog!AC179,\"\")","v":""},{"$f":"IF(DataLog!$C179=\"Log value\",DataLog!AD179,\"\")","v":""},{"$f":"IF(DataLog!$C179=\"Log value\",DataLog!AE179,\"\")","v":""},{"$f":"IF(DataLog!$C179=\"Log value\",DataLog!AF179,\"\")","v":""},{"$f":"IF(DataLog!$C179=\"Log value\",DataLog!AG179,\"\")","v":""},{"$f":"IF(DataLog!$C179=\"Log value\",DataLog!AH179,\"\")","v":""},{"$f":"IF(DataLog!$C179=\"Log value\",DataLog!AI179,\"\")","v":""},{"$f":"IF(DataLog!$C179=\"Log value\",DataLog!AJ179,\"\")","v":""},{"$f":"IF(DataLog!$C179=\"Log value\",DataLog!AK179,\"\")","v":""},{"$f":"IF(DataLog!$C179=\"Log value\",DataLog!AL179,\"\")","v":""},{"$f":"IF(DataLog!$C179=\"Log value\",DataLog!AM179,\"\")","v":""}]
[null,null,"Standard","Standard -  - ",null,null,{"$f":"IF(DataLog!$C180=\"Log value\",DataLog!D180&\"_\"&TEXT(DataLog!B180,\"åååå-mm-dd\"),\"\")","v":""},{"$f":"IF(DataLog!$C180=\"Log value\",DataLog!E180,\"\")","v":""},{"$f":"IF(DataLog!$C180=\"Log value\",DataLog!F180,\"\")","v":""},{"$f":"IF(DataLog!$C180=\"Log value\",DataLog!G180,\"\")","v":""},{"$f":"IF(DataLog!$C180=\"Log value\",DataLog!H180,\"\")","v":""},{"$f":"IF(DataLog!$C180=\"Log value\",DataLog!I180,\"\")","v":""},{"$f":"IF(DataLog!$C180=\"Log value\",DataLog!J180,\"\")","v":""},{"$f":"IF(DataLog!$C180=\"Log value\",DataLog!K180,\"\")","v":""},{"$f":"IF(DataLog!$C180=\"Log value\",DataLog!L180,\"\")","v":""},{"$f":"IF(DataLog!$C180=\"Log value\",DataLog!M180,\"\")","v":""},{"$f":"IF(DataLog!$C180=\"Log value\",DataLog!N180,\"\")","v":""},{"$f":"IF(DataLog!$C180=\"Log value\",DataLog!O180,\"\")","v":""},{"$f":"IF(DataLog!$C180=\"Log value\",DataLog!P180,\"\")","v":""},{"$f":"IF(DataLog!$C180=\"Log value\",DataLog!Q180,\"\")","v":""},{"$f":"IF(DataLog!$C180=\"Log value\",DataLog!R180,\"\")","v":""},{"$f":"IF(DataLog!$C180=\"Log value\",DataLog!S180,\"\")","v":""},{"$f":"IF(DataLog!$C180=\"Log value\",DataLog!T180,\"\")","v":""},{"$f":"IF(DataLog!$C180=\"Log value\",DataLog!U180,\"\")","v":""},{"$f":"IF(DataLog!$C180=\"Log value\",DataLog!V180,\"\")","v":""},{"$f":"IF(DataLog!$C180=\"Log value\",DataLog!W180,\"\")","v":""},{"$f":"IF(DataLog!$C180=\"Log value\",DataLog!X180,\"\")","v":""},{"$f":"IF(DataLog!$C180=\"Log value\",DataLog!Y180,\"\")","v":""},{"$f":"IF(DataLog!$C180=\"Log value\",DataLog!Z180,\"\")","v":""},{"$f":"IF(DataLog!$C180=\"Log value\",DataLog!AA180,\"\")","v":""},{"$f":"IF(DataLog!$C180=\"Log value\",DataLog!AB180,\"\")","v":""},{"$f":"IF(DataLog!$C180=\"Log value\",DataLog!AC180,\"\")","v":""},{"$f":"IF(DataLog!$C180=\"Log value\",DataLog!AD180,\"\")","v":""},{"$f":"IF(DataLog!$C180=\"Log value\",DataLog!AE180,\"\")","v":""},{"$f":"IF(DataLog!$C180=\"Log value\",DataLog!AF180,\"\")","v":""},{"$f":"IF(DataLog!$C180=\"Log value\",DataLog!AG180,\"\")","v":""},{"$f":"IF(DataLog!$C180=\"Log value\",DataLog!AH180,\"\")","v":""},{"$f":"IF(DataLog!$C180=\"Log value\",DataLog!AI180,\"\")","v":""},{"$f":"IF(DataLog!$C180=\"Log value\",DataLog!AJ180,\"\")","v":""},{"$f":"IF(DataLog!$C180=\"Log value\",DataLog!AK180,\"\")","v":""},{"$f":"IF(DataLog!$C180=\"Log value\",DataLog!AL180,\"\")","v":""},{"$f":"IF(DataLog!$C180=\"Log value\",DataLog!AM180,\"\")","v":""}]
[null,null,"Standard","Standard -  - ",null,null,{"$f":"IF(DataLog!$C181=\"Log value\",DataLog!D181&\"_\"&TEXT(DataLog!B181,\"åååå-mm-dd\"),\"\")","v":""},{"$f":"IF(DataLog!$C181=\"Log value\",DataLog!E181,\"\")","v":""},{"$f":"IF(DataLog!$C181=\"Log value\",DataLog!F181,\"\")","v":""},{"$f":"IF(DataLog!$C181=\"Log value\",DataLog!G181,\"\")","v":""},{"$f":"IF(DataLog!$C181=\"Log value\",DataLog!H181,\"\")","v":""},{"$f":"IF(DataLog!$C181=\"Log value\",DataLog!I181,\"\")","v":""},{"$f":"IF(DataLog!$C181=\"Log value\",DataLog!J181,\"\")","v":""},{"$f":"IF(DataLog!$C181=\"Log value\",DataLog!K181,\"\")","v":""},{"$f":"IF(DataLog!$C181=\"Log value\",DataLog!L181,\"\")","v":""},{"$f":"IF(DataLog!$C181=\"Log value\",DataLog!M181,\"\")","v":""},{"$f":"IF(DataLog!$C181=\"Log value\",DataLog!N181,\"\")","v":""},{"$f":"IF(DataLog!$C181=\"Log value\",DataLog!O181,\"\")","v":""},{"$f":"IF(DataLog!$C181=\"Log value\",DataLog!P181,\"\")","v":""},{"$f":"IF(DataLog!$C181=\"Log value\",DataLog!Q181,\"\")","v":""},{"$f":"IF(DataLog!$C181=\"Log value\",DataLog!R181,\"\")","v":""},{"$f":"IF(DataLog!$C181=\"Log value\",DataLog!S181,\"\")","v":""},{"$f":"IF(DataLog!$C181=\"Log value\",DataLog!T181,\"\")","v":""},{"$f":"IF(DataLog!$C181=\"Log value\",DataLog!U181,\"\")","v":""},{"$f":"IF(DataLog!$C181=\"Log value\",DataLog!V181,\"\")","v":""},{"$f":"IF(DataLog!$C181=\"Log value\",DataLog!W181,\"\")","v":""},{"$f":"IF(DataLog!$C181=\"Log value\",DataLog!X181,\"\")","v":""},{"$f":"IF(DataLog!$C181=\"Log value\",DataLog!Y181,\"\")","v":""},{"$f":"IF(DataLog!$C181=\"Log value\",DataLog!Z181,\"\")","v":""},{"$f":"IF(DataLog!$C181=\"Log value\",DataLog!AA181,\"\")","v":""},{"$f":"IF(DataLog!$C181=\"Log value\",DataLog!AB181,\"\")","v":""},{"$f":"IF(DataLog!$C181=\"Log value\",DataLog!AC181,\"\")","v":""},{"$f":"IF(DataLog!$C181=\"Log value\",DataLog!AD181,\"\")","v":""},{"$f":"IF(DataLog!$C181=\"Log value\",DataLog!AE181,\"\")","v":""},{"$f":"IF(DataLog!$C181=\"Log value\",DataLog!AF181,\"\")","v":""},{"$f":"IF(DataLog!$C181=\"Log value\",DataLog!AG181,\"\")","v":""},{"$f":"IF(DataLog!$C181=\"Log value\",DataLog!AH181,\"\")","v":""},{"$f":"IF(DataLog!$C181=\"Log value\",DataLog!AI181,\"\")","v":""},{"$f":"IF(DataLog!$C181=\"Log value\",DataLog!AJ181,\"\")","v":""},{"$f":"IF(DataLog!$C181=\"Log value\",DataLog!AK181,\"\")","v":""},{"$f":"IF(DataLog!$C181=\"Log value\",DataLog!AL181,\"\")","v":""},{"$f":"IF(DataLog!$C181=\"Log value\",DataLog!AM181,\"\")","v":""}]
[null,null,"Standard","Standard -  - ",null,null,{"$f":"IF(DataLog!$C182=\"Log value\",DataLog!D182&\"_\"&TEXT(DataLog!B182,\"åååå-mm-dd\"),\"\")","v":""},{"$f":"IF(DataLog!$C182=\"Log value\",DataLog!E182,\"\")","v":""},{"$f":"IF(DataLog!$C182=\"Log value\",DataLog!F182,\"\")","v":""},{"$f":"IF(DataLog!$C182=\"Log value\",DataLog!G182,\"\")","v":""},{"$f":"IF(DataLog!$C182=\"Log value\",DataLog!H182,\"\")","v":""},{"$f":"IF(DataLog!$C182=\"Log value\",DataLog!I182,\"\")","v":""},{"$f":"IF(DataLog!$C182=\"Log value\",DataLog!J182,\"\")","v":""},{"$f":"IF(DataLog!$C182=\"Log value\",DataLog!K182,\"\")","v":""},{"$f":"IF(DataLog!$C182=\"Log value\",DataLog!L182,\"\")","v":""},{"$f":"IF(DataLog!$C182=\"Log value\",DataLog!M182,\"\")","v":""},{"$f":"IF(DataLog!$C182=\"Log value\",DataLog!N182,\"\")","v":""},{"$f":"IF(DataLog!$C182=\"Log value\",DataLog!O182,\"\")","v":""},{"$f":"IF(DataLog!$C182=\"Log value\",DataLog!P182,\"\")","v":""},{"$f":"IF(DataLog!$C182=\"Log value\",DataLog!Q182,\"\")","v":""},{"$f":"IF(DataLog!$C182=\"Log value\",DataLog!R182,\"\")","v":""},{"$f":"IF(DataLog!$C182=\"Log value\",DataLog!S182,\"\")","v":""},{"$f":"IF(DataLog!$C182=\"Log value\",DataLog!T182,\"\")","v":""},{"$f":"IF(DataLog!$C182=\"Log value\",DataLog!U182,\"\")","v":""},{"$f":"IF(DataLog!$C182=\"Log value\",DataLog!V182,\"\")","v":""},{"$f":"IF(DataLog!$C182=\"Log value\",DataLog!W182,\"\")","v":""},{"$f":"IF(DataLog!$C182=\"Log value\",DataLog!X182,\"\")","v":""},{"$f":"IF(DataLog!$C182=\"Log value\",DataLog!Y182,\"\")","v":""},{"$f":"IF(DataLog!$C182=\"Log value\",DataLog!Z182,\"\")","v":""},{"$f":"IF(DataLog!$C182=\"Log value\",DataLog!AA182,\"\")","v":""},{"$f":"IF(DataLog!$C182=\"Log value\",DataLog!AB182,\"\")","v":""},{"$f":"IF(DataLog!$C182=\"Log value\",DataLog!AC182,\"\")","v":""},{"$f":"IF(DataLog!$C182=\"Log value\",DataLog!AD182,\"\")","v":""},{"$f":"IF(DataLog!$C182=\"Log value\",DataLog!AE182,\"\")","v":""},{"$f":"IF(DataLog!$C182=\"Log value\",DataLog!AF182,\"\")","v":""},{"$f":"IF(DataLog!$C182=\"Log value\",DataLog!AG182,\"\")","v":""},{"$f":"IF(DataLog!$C182=\"Log value\",DataLog!AH182,\"\")","v":""},{"$f":"IF(DataLog!$C182=\"Log value\",DataLog!AI182,\"\")","v":""},{"$f":"IF(DataLog!$C182=\"Log value\",DataLog!AJ182,\"\")","v":""},{"$f":"IF(DataLog!$C182=\"Log value\",DataLog!AK182,\"\")","v":""},{"$f":"IF(DataLog!$C182=\"Log value\",DataLog!AL182,\"\")","v":""},{"$f":"IF(DataLog!$C182=\"Log value\",DataLog!AM182,\"\")","v":""}]
[null,null,"Standard","Standard -  - ",null,null,{"$f":"IF(DataLog!$C183=\"Log value\",DataLog!D183&\"_\"&TEXT(DataLog!B183,\"åååå-mm-dd\"),\"\")","v":""},{"$f":"IF(DataLog!$C183=\"Log value\",DataLog!E183,\"\")","v":""},{"$f":"IF(DataLog!$C183=\"Log value\",DataLog!F183,\"\")","v":""},{"$f":"IF(DataLog!$C183=\"Log value\",DataLog!G183,\"\")","v":""},{"$f":"IF(DataLog!$C183=\"Log value\",DataLog!H183,\"\")","v":""},{"$f":"IF(DataLog!$C183=\"Log value\",DataLog!I183,\"\")","v":""},{"$f":"IF(DataLog!$C183=\"Log value\",DataLog!J183,\"\")","v":""},{"$f":"IF(DataLog!$C183=\"Log value\",DataLog!K183,\"\")","v":""},{"$f":"IF(DataLog!$C183=\"Log value\",DataLog!L183,\"\")","v":""},{"$f":"IF(DataLog!$C183=\"Log value\",DataLog!M183,\"\")","v":""},{"$f":"IF(DataLog!$C183=\"Log value\",DataLog!N183,\"\")","v":""},{"$f":"IF(DataLog!$C183=\"Log value\",DataLog!O183,\"\")","v":""},{"$f":"IF(DataLog!$C183=\"Log value\",DataLog!P183,\"\")","v":""},{"$f":"IF(DataLog!$C183=\"Log value\",DataLog!Q183,\"\")","v":""},{"$f":"IF(DataLog!$C183=\"Log value\",DataLog!R183,\"\")","v":""},{"$f":"IF(DataLog!$C183=\"Log value\",DataLog!S183,\"\")","v":""},{"$f":"IF(DataLog!$C183=\"Log value\",DataLog!T183,\"\")","v":""},{"$f":"IF(DataLog!$C183=\"Log value\",DataLog!U183,\"\")","v":""},{"$f":"IF(DataLog!$C183=\"Log value\",DataLog!V183,\"\")","v":""},{"$f":"IF(DataLog!$C183=\"Log value\",DataLog!W183,\"\")","v":""},{"$f":"IF(DataLog!$C183=\"Log value\",DataLog!X183,\"\")","v":""},{"$f":"IF(DataLog!$C183=\"Log value\",DataLog!Y183,\"\")","v":""},{"$f":"IF(DataLog!$C183=\"Log value\",DataLog!Z183,\"\")","v":""},{"$f":"IF(DataLog!$C183=\"Log value\",DataLog!AA183,\"\")","v":""},{"$f":"IF(DataLog!$C183=\"Log value\",DataLog!AB183,\"\")","v":""},{"$f":"IF(DataLog!$C183=\"Log value\",DataLog!AC183,\"\")","v":""},{"$f":"IF(DataLog!$C183=\"Log value\",DataLog!AD183,\"\")","v":""},{"$f":"IF(DataLog!$C183=\"Log value\",DataLog!AE183,\"\")","v":""},{"$f":"IF(DataLog!$C183=\"Log value\",DataLog!AF183,\"\")","v":""},{"$f":"IF(DataLog!$C183=\"Log value\",DataLog!AG183,\"\")","v":""},{"$f":"IF(DataLog!$C183=\"Log value\",DataLog!AH183,\"\")","v":""},{"$f":"IF(DataLog!$C183=\"Log value\",DataLog!AI183,\"\")","v":""},{"$f":"IF(DataLog!$C183=\"Log value\",DataLog!AJ183,\"\")","v":""},{"$f":"IF(DataLog!$C183=\"Log value\",DataLog!AK183,\"\")","v":""},{"$f":"IF(DataLog!$C183=\"Log value\",DataLog!AL183,\"\")","v":""},{"$f":"IF(DataLog!$C183=\"Log value\",DataLog!AM183,\"\")","v":""}]
[null,null,"Standard","Standard -  - ",null,null,{"$f":"IF(DataLog!$C184=\"Log value\",DataLog!D184&\"_\"&TEXT(DataLog!B184,\"åååå-mm-dd\"),\"\")","v":""},{"$f":"IF(DataLog!$C184=\"Log value\",DataLog!E184,\"\")","v":""},{"$f":"IF(DataLog!$C184=\"Log value\",DataLog!F184,\"\")","v":""},{"$f":"IF(DataLog!$C184=\"Log value\",DataLog!G184,\"\")","v":""},{"$f":"IF(DataLog!$C184=\"Log value\",DataLog!H184,\"\")","v":""},{"$f":"IF(DataLog!$C184=\"Log value\",DataLog!I184,\"\")","v":""},{"$f":"IF(DataLog!$C184=\"Log value\",DataLog!J184,\"\")","v":""},{"$f":"IF(DataLog!$C184=\"Log value\",DataLog!K184,\"\")","v":""},{"$f":"IF(DataLog!$C184=\"Log value\",DataLog!L184,\"\")","v":""},{"$f":"IF(DataLog!$C184=\"Log value\",DataLog!M184,\"\")","v":""},{"$f":"IF(DataLog!$C184=\"Log value\",DataLog!N184,\"\")","v":""},{"$f":"IF(DataLog!$C184=\"Log value\",DataLog!O184,\"\")","v":""},{"$f":"IF(DataLog!$C184=\"Log value\",DataLog!P184,\"\")","v":""},{"$f":"IF(DataLog!$C184=\"Log value\",DataLog!Q184,\"\")","v":""},{"$f":"IF(DataLog!$C184=\"Log value\",DataLog!R184,\"\")","v":""},{"$f":"IF(DataLog!$C184=\"Log value\",DataLog!S184,\"\")","v":""},{"$f":"IF(DataLog!$C184=\"Log value\",DataLog!T184,\"\")","v":""},{"$f":"IF(DataLog!$C184=\"Log value\",DataLog!U184,\"\")","v":""},{"$f":"IF(DataLog!$C184=\"Log value\",DataLog!V184,\"\")","v":""},{"$f":"IF(DataLog!$C184=\"Log value\",DataLog!W184,\"\")","v":""},{"$f":"IF(DataLog!$C184=\"Log value\",DataLog!X184,\"\")","v":""},{"$f":"IF(DataLog!$C184=\"Log value\",DataLog!Y184,\"\")","v":""},{"$f":"IF(DataLog!$C184=\"Log value\",DataLog!Z184,\"\")","v":""},{"$f":"IF(DataLog!$C184=\"Log value\",DataLog!AA184,\"\")","v":""},{"$f":"IF(DataLog!$C184=\"Log value\",DataLog!AB184,\"\")","v":""},{"$f":"IF(DataLog!$C184=\"Log value\",DataLog!AC184,\"\")","v":""},{"$f":"IF(DataLog!$C184=\"Log value\",DataLog!AD184,\"\")","v":""},{"$f":"IF(DataLog!$C184=\"Log value\",DataLog!AE184,\"\")","v":""},{"$f":"IF(DataLog!$C184=\"Log value\",DataLog!AF184,\"\")","v":""},{"$f":"IF(DataLog!$C184=\"Log value\",DataLog!AG184,\"\")","v":""},{"$f":"IF(DataLog!$C184=\"Log value\",DataLog!AH184,\"\")","v":""},{"$f":"IF(DataLog!$C184=\"Log value\",DataLog!AI184,\"\")","v":""},{"$f":"IF(DataLog!$C184=\"Log value\",DataLog!AJ184,\"\")","v":""},{"$f":"IF(DataLog!$C184=\"Log value\",DataLog!AK184,\"\")","v":""},{"$f":"IF(DataLog!$C184=\"Log value\",DataLog!AL184,\"\")","v":""},{"$f":"IF(DataLog!$C184=\"Log value\",DataLog!AM184,\"\")","v":""}]
[null,null,"Standard","Standard -  - ",null,null,{"$f":"IF(DataLog!$C185=\"Log value\",DataLog!D185&\"_\"&TEXT(DataLog!B185,\"åååå-mm-dd\"),\"\")","v":""},{"$f":"IF(DataLog!$C185=\"Log value\",DataLog!E185,\"\")","v":""},{"$f":"IF(DataLog!$C185=\"Log value\",DataLog!F185,\"\")","v":""},{"$f":"IF(DataLog!$C185=\"Log value\",DataLog!G185,\"\")","v":""},{"$f":"IF(DataLog!$C185=\"Log value\",DataLog!H185,\"\")","v":""},{"$f":"IF(DataLog!$C185=\"Log value\",DataLog!I185,\"\")","v":""},{"$f":"IF(DataLog!$C185=\"Log value\",DataLog!J185,\"\")","v":""},{"$f":"IF(DataLog!$C185=\"Log value\",DataLog!K185,\"\")","v":""},{"$f":"IF(DataLog!$C185=\"Log value\",DataLog!L185,\"\")","v":""},{"$f":"IF(DataLog!$C185=\"Log value\",DataLog!M185,\"\")","v":""},{"$f":"IF(DataLog!$C185=\"Log value\",DataLog!N185,\"\")","v":""},{"$f":"IF(DataLog!$C185=\"Log value\",DataLog!O185,\"\")","v":""},{"$f":"IF(DataLog!$C185=\"Log value\",DataLog!P185,\"\")","v":""},{"$f":"IF(DataLog!$C185=\"Log value\",DataLog!Q185,\"\")","v":""},{"$f":"IF(DataLog!$C185=\"Log value\",DataLog!R185,\"\")","v":""},{"$f":"IF(DataLog!$C185=\"Log value\",DataLog!S185,\"\")","v":""},{"$f":"IF(DataLog!$C185=\"Log value\",DataLog!T185,\"\")","v":""},{"$f":"IF(DataLog!$C185=\"Log value\",DataLog!U185,\"\")","v":""},{"$f":"IF(DataLog!$C185=\"Log value\",DataLog!V185,\"\")","v":""},{"$f":"IF(DataLog!$C185=\"Log value\",DataLog!W185,\"\")","v":""},{"$f":"IF(DataLog!$C185=\"Log value\",DataLog!X185,\"\")","v":""},{"$f":"IF(DataLog!$C185=\"Log value\",DataLog!Y185,\"\")","v":""},{"$f":"IF(DataLog!$C185=\"Log value\",DataLog!Z185,\"\")","v":""},{"$f":"IF(DataLog!$C185=\"Log value\",DataLog!AA185,\"\")","v":""},{"$f":"IF(DataLog!$C185=\"Log value\",DataLog!AB185,\"\")","v":""},{"$f":"IF(DataLog!$C185=\"Log value\",DataLog!AC185,\"\")","v":""},{"$f":"IF(DataLog!$C185=\"Log value\",DataLog!AD185,\"\")","v":""},{"$f":"IF(DataLog!$C185=\"Log value\",DataLog!AE185,\"\")","v":""},{"$f":"IF(DataLog!$C185=\"Log value\",DataLog!AF185,\"\")","v":""},{"$f":"IF(DataLog!$C185=\"Log value\",DataLog!AG185,\"\")","v":""},{"$f":"IF(DataLog!$C185=\"Log value\",DataLog!AH185,\"\")","v":""},{"$f":"IF(DataLog!$C185=\"Log value\",DataLog!AI185,\"\")","v":""},{"$f":"IF(DataLog!$C185=\"Log value\",DataLog!AJ185,\"\")","v":""},{"$f":"IF(DataLog!$C185=\"Log value\",DataLog!AK185,\"\")","v":""},{"$f":"IF(DataLog!$C185=\"Log value\",DataLog!AL185,\"\")","v":""},{"$f":"IF(DataLog!$C185=\"Log value\",DataLog!AM185,\"\")","v":""}]
[null,null,"Standard","Standard -  - ",null,null,{"$f":"IF(DataLog!$C186=\"Log value\",DataLog!D186&\"_\"&TEXT(DataLog!B186,\"åååå-mm-dd\"),\"\")","v":""},{"$f":"IF(DataLog!$C186=\"Log value\",DataLog!E186,\"\")","v":""},{"$f":"IF(DataLog!$C186=\"Log value\",DataLog!F186,\"\")","v":""},{"$f":"IF(DataLog!$C186=\"Log value\",DataLog!G186,\"\")","v":""},{"$f":"IF(DataLog!$C186=\"Log value\",DataLog!H186,\"\")","v":""},{"$f":"IF(DataLog!$C186=\"Log value\",DataLog!I186,\"\")","v":""},{"$f":"IF(DataLog!$C186=\"Log value\",DataLog!J186,\"\")","v":""},{"$f":"IF(DataLog!$C186=\"Log value\",DataLog!K186,\"\")","v":""},{"$f":"IF(DataLog!$C186=\"Log value\",DataLog!L186,\"\")","v":""},{"$f":"IF(DataLog!$C186=\"Log value\",DataLog!M186,\"\")","v":""},{"$f":"IF(DataLog!$C186=\"Log value\",DataLog!N186,\"\")","v":""},{"$f":"IF(DataLog!$C186=\"Log value\",DataLog!O186,\"\")","v":""},{"$f":"IF(DataLog!$C186=\"Log value\",DataLog!P186,\"\")","v":""},{"$f":"IF(DataLog!$C186=\"Log value\",DataLog!Q186,\"\")","v":""},{"$f":"IF(DataLog!$C186=\"Log value\",DataLog!R186,\"\")","v":""},{"$f":"IF(DataLog!$C186=\"Log value\",DataLog!S186,\"\")","v":""},{"$f":"IF(DataLog!$C186=\"Log value\",DataLog!T186,\"\")","v":""},{"$f":"IF(DataLog!$C186=\"Log value\",DataLog!U186,\"\")","v":""},{"$f":"IF(DataLog!$C186=\"Log value\",DataLog!V186,\"\")","v":""},{"$f":"IF(DataLog!$C186=\"Log value\",DataLog!W186,\"\")","v":""},{"$f":"IF(DataLog!$C186=\"Log value\",DataLog!X186,\"\")","v":""},{"$f":"IF(DataLog!$C186=\"Log value\",DataLog!Y186,\"\")","v":""},{"$f":"IF(DataLog!$C186=\"Log value\",DataLog!Z186,\"\")","v":""},{"$f":"IF(DataLog!$C186=\"Log value\",DataLog!AA186,\"\")","v":""},{"$f":"IF(DataLog!$C186=\"Log value\",DataLog!AB186,\"\")","v":""},{"$f":"IF(DataLog!$C186=\"Log value\",DataLog!AC186,\"\")","v":""},{"$f":"IF(DataLog!$C186=\"Log value\",DataLog!AD186,\"\")","v":""},{"$f":"IF(DataLog!$C186=\"Log value\",DataLog!AE186,\"\")","v":""},{"$f":"IF(DataLog!$C186=\"Log value\",DataLog!AF186,\"\")","v":""},{"$f":"IF(DataLog!$C186=\"Log value\",DataLog!AG186,\"\")","v":""},{"$f":"IF(DataLog!$C186=\"Log value\",DataLog!AH186,\"\")","v":""},{"$f":"IF(DataLog!$C186=\"Log value\",DataLog!AI186,\"\")","v":""},{"$f":"IF(DataLog!$C186=\"Log value\",DataLog!AJ186,\"\")","v":""},{"$f":"IF(DataLog!$C186=\"Log value\",DataLog!AK186,\"\")","v":""},{"$f":"IF(DataLog!$C186=\"Log value\",DataLog!AL186,\"\")","v":""},{"$f":"IF(DataLog!$C186=\"Log value\",DataLog!AM186,\"\")","v":""}]
[null,null,"Standard","Standard -  - ",null,null,{"$f":"IF(DataLog!$C187=\"Log value\",DataLog!D187&\"_\"&TEXT(DataLog!B187,\"åååå-mm-dd\"),\"\")","v":""},{"$f":"IF(DataLog!$C187=\"Log value\",DataLog!E187,\"\")","v":""},{"$f":"IF(DataLog!$C187=\"Log value\",DataLog!F187,\"\")","v":""},{"$f":"IF(DataLog!$C187=\"Log value\",DataLog!G187,\"\")","v":""},{"$f":"IF(DataLog!$C187=\"Log value\",DataLog!H187,\"\")","v":""},{"$f":"IF(DataLog!$C187=\"Log value\",DataLog!I187,\"\")","v":""},{"$f":"IF(DataLog!$C187=\"Log value\",DataLog!J187,\"\")","v":""},{"$f":"IF(DataLog!$C187=\"Log value\",DataLog!K187,\"\")","v":""},{"$f":"IF(DataLog!$C187=\"Log value\",DataLog!L187,\"\")","v":""},{"$f":"IF(DataLog!$C187=\"Log value\",DataLog!M187,\"\")","v":""},{"$f":"IF(DataLog!$C187=\"Log value\",DataLog!N187,\"\")","v":""},{"$f":"IF(DataLog!$C187=\"Log value\",DataLog!O187,\"\")","v":""},{"$f":"IF(DataLog!$C187=\"Log value\",DataLog!P187,\"\")","v":""},{"$f":"IF(DataLog!$C187=\"Log value\",DataLog!Q187,\"\")","v":""},{"$f":"IF(DataLog!$C187=\"Log value\",DataLog!R187,\"\")","v":""},{"$f":"IF(DataLog!$C187=\"Log value\",DataLog!S187,\"\")","v":""},{"$f":"IF(DataLog!$C187=\"Log value\",DataLog!T187,\"\")","v":""},{"$f":"IF(DataLog!$C187=\"Log value\",DataLog!U187,\"\")","v":""},{"$f":"IF(DataLog!$C187=\"Log value\",DataLog!V187,\"\")","v":""},{"$f":"IF(DataLog!$C187=\"Log value\",DataLog!W187,\"\")","v":""},{"$f":"IF(DataLog!$C187=\"Log value\",DataLog!X187,\"\")","v":""},{"$f":"IF(DataLog!$C187=\"Log value\",DataLog!Y187,\"\")","v":""},{"$f":"IF(DataLog!$C187=\"Log value\",DataLog!Z187,\"\")","v":""},{"$f":"IF(DataLog!$C187=\"Log value\",DataLog!AA187,\"\")","v":""},{"$f":"IF(DataLog!$C187=\"Log value\",DataLog!AB187,\"\")","v":""},{"$f":"IF(DataLog!$C187=\"Log value\",DataLog!AC187,\"\")","v":""},{"$f":"IF(DataLog!$C187=\"Log value\",DataLog!AD187,\"\")","v":""},{"$f":"IF(DataLog!$C187=\"Log value\",DataLog!AE187,\"\")","v":""},{"$f":"IF(DataLog!$C187=\"Log value\",DataLog!AF187,\"\")","v":""},{"$f":"IF(DataLog!$C187=\"Log value\",DataLog!AG187,\"\")","v":""},{"$f":"IF(DataLog!$C187=\"Log value\",DataLog!AH187,\"\")","v":""},{"$f":"IF(DataLog!$C187=\"Log value\",DataLog!AI187,\"\")","v":""},{"$f":"IF(DataLog!$C187=\"Log value\",DataLog!AJ187,\"\")","v":""},{"$f":"IF(DataLog!$C187=\"Log value\",DataLog!AK187,\"\")","v":""},{"$f":"IF(DataLog!$C187=\"Log value\",DataLog!AL187,\"\")","v":""},{"$f":"IF(DataLog!$C187=\"Log value\",DataLog!AM187,\"\")","v":""}]
[null,null,"Standard","Standard -  - ",null,null,{"$f":"IF(DataLog!$C188=\"Log value\",DataLog!D188&\"_\"&TEXT(DataLog!B188,\"åååå-mm-dd\"),\"\")","v":""},{"$f":"IF(DataLog!$C188=\"Log value\",DataLog!E188,\"\")","v":""},{"$f":"IF(DataLog!$C188=\"Log value\",DataLog!F188,\"\")","v":""},{"$f":"IF(DataLog!$C188=\"Log value\",DataLog!G188,\"\")","v":""},{"$f":"IF(DataLog!$C188=\"Log value\",DataLog!H188,\"\")","v":""},{"$f":"IF(DataLog!$C188=\"Log value\",DataLog!I188,\"\")","v":""},{"$f":"IF(DataLog!$C188=\"Log value\",DataLog!J188,\"\")","v":""},{"$f":"IF(DataLog!$C188=\"Log value\",DataLog!K188,\"\")","v":""},{"$f":"IF(DataLog!$C188=\"Log value\",DataLog!L188,\"\")","v":""},{"$f":"IF(DataLog!$C188=\"Log value\",DataLog!M188,\"\")","v":""},{"$f":"IF(DataLog!$C188=\"Log value\",DataLog!N188,\"\")","v":""},{"$f":"IF(DataLog!$C188=\"Log value\",DataLog!O188,\"\")","v":""},{"$f":"IF(DataLog!$C188=\"Log value\",DataLog!P188,\"\")","v":""},{"$f":"IF(DataLog!$C188=\"Log value\",DataLog!Q188,\"\")","v":""},{"$f":"IF(DataLog!$C188=\"Log value\",DataLog!R188,\"\")","v":""},{"$f":"IF(DataLog!$C188=\"Log value\",DataLog!S188,\"\")","v":""},{"$f":"IF(DataLog!$C188=\"Log value\",DataLog!T188,\"\")","v":""},{"$f":"IF(DataLog!$C188=\"Log value\",DataLog!U188,\"\")","v":""},{"$f":"IF(DataLog!$C188=\"Log value\",DataLog!V188,\"\")","v":""},{"$f":"IF(DataLog!$C188=\"Log value\",DataLog!W188,\"\")","v":""},{"$f":"IF(DataLog!$C188=\"Log value\",DataLog!X188,\"\")","v":""},{"$f":"IF(DataLog!$C188=\"Log value\",DataLog!Y188,\"\")","v":""},{"$f":"IF(DataLog!$C188=\"Log value\",DataLog!Z188,\"\")","v":""},{"$f":"IF(DataLog!$C188=\"Log value\",DataLog!AA188,\"\")","v":""},{"$f":"IF(DataLog!$C188=\"Log value\",DataLog!AB188,\"\")","v":""},{"$f":"IF(DataLog!$C188=\"Log value\",DataLog!AC188,\"\")","v":""},{"$f":"IF(DataLog!$C188=\"Log value\",DataLog!AD188,\"\")","v":""},{"$f":"IF(DataLog!$C188=\"Log value\",DataLog!AE188,\"\")","v":""},{"$f":"IF(DataLog!$C188=\"Log value\",DataLog!AF188,\"\")","v":""},{"$f":"IF(DataLog!$C188=\"Log value\",DataLog!AG188,\"\")","v":""},{"$f":"IF(DataLog!$C188=\"Log value\",DataLog!AH188,\"\")","v":""},{"$f":"IF(DataLog!$C188=\"Log value\",DataLog!AI188,\"\")","v":""},{"$f":"IF(DataLog!$C188=\"Log value\",DataLog!AJ188,\"\")","v":""},{"$f":"IF(DataLog!$C188=\"Log value\",DataLog!AK188,\"\")","v":""},{"$f":"IF(DataLog!$C188=\"Log value\",DataLog!AL188,\"\")","v":""},{"$f":"IF(DataLog!$C188=\"Log value\",DataLog!AM188,\"\")","v":""}]
[null,null,"Standard","Standard -  - ",null,null,{"$f":"IF(DataLog!$C189=\"Log value\",DataLog!D189&\"_\"&TEXT(DataLog!B189,\"åååå-mm-dd\"),\"\")","v":""},{"$f":"IF(DataLog!$C189=\"Log value\",DataLog!E189,\"\")","v":""},{"$f":"IF(DataLog!$C189=\"Log value\",DataLog!F189,\"\")","v":""},{"$f":"IF(DataLog!$C189=\"Log value\",DataLog!G189,\"\")","v":""},{"$f":"IF(DataLog!$C189=\"Log value\",DataLog!H189,\"\")","v":""},{"$f":"IF(DataLog!$C189=\"Log value\",DataLog!I189,\"\")","v":""},{"$f":"IF(DataLog!$C189=\"Log value\",DataLog!J189,\"\")","v":""},{"$f":"IF(DataLog!$C189=\"Log value\",DataLog!K189,\"\")","v":""},{"$f":"IF(DataLog!$C189=\"Log value\",DataLog!L189,\"\")","v":""},{"$f":"IF(DataLog!$C189=\"Log value\",DataLog!M189,\"\")","v":""},{"$f":"IF(DataLog!$C189=\"Log value\",DataLog!N189,\"\")","v":""},{"$f":"IF(DataLog!$C189=\"Log value\",DataLog!O189,\"\")","v":""},{"$f":"IF(DataLog!$C189=\"Log value\",DataLog!P189,\"\")","v":""},{"$f":"IF(DataLog!$C189=\"Log value\",DataLog!Q189,\"\")","v":""},{"$f":"IF(DataLog!$C189=\"Log value\",DataLog!R189,\"\")","v":""},{"$f":"IF(DataLog!$C189=\"Log value\",DataLog!S189,\"\")","v":""},{"$f":"IF(DataLog!$C189=\"Log value\",DataLog!T189,\"\")","v":""},{"$f":"IF(DataLog!$C189=\"Log value\",DataLog!U189,\"\")","v":""},{"$f":"IF(DataLog!$C189=\"Log value\",DataLog!V189,\"\")","v":""},{"$f":"IF(DataLog!$C189=\"Log value\",DataLog!W189,\"\")","v":""},{"$f":"IF(DataLog!$C189=\"Log value\",DataLog!X189,\"\")","v":""},{"$f":"IF(DataLog!$C189=\"Log value\",DataLog!Y189,\"\")","v":""},{"$f":"IF(DataLog!$C189=\"Log value\",DataLog!Z189,\"\")","v":""},{"$f":"IF(DataLog!$C189=\"Log value\",DataLog!AA189,\"\")","v":""},{"$f":"IF(DataLog!$C189=\"Log value\",DataLog!AB189,\"\")","v":""},{"$f":"IF(DataLog!$C189=\"Log value\",DataLog!AC189,\"\")","v":""},{"$f":"IF(DataLog!$C189=\"Log value\",DataLog!AD189,\"\")","v":""},{"$f":"IF(DataLog!$C189=\"Log value\",DataLog!AE189,\"\")","v":""},{"$f":"IF(DataLog!$C189=\"Log value\",DataLog!AF189,\"\")","v":""},{"$f":"IF(DataLog!$C189=\"Log value\",DataLog!AG189,\"\")","v":""},{"$f":"IF(DataLog!$C189=\"Log value\",DataLog!AH189,\"\")","v":""},{"$f":"IF(DataLog!$C189=\"Log value\",DataLog!AI189,\"\")","v":""},{"$f":"IF(DataLog!$C189=\"Log value\",DataLog!AJ189,\"\")","v":""},{"$f":"IF(DataLog!$C189=\"Log value\",DataLog!AK189,\"\")","v":""},{"$f":"IF(DataLog!$C189=\"Log value\",DataLog!AL189,\"\")","v":""},{"$f":"IF(DataLog!$C189=\"Log value\",DataLog!AM189,\"\")","v":""}]
[null,null,"Standard","Standard -  - ",null,null,{"$f":"IF(DataLog!$C190=\"Log value\",DataLog!D190&\"_\"&TEXT(DataLog!B190,\"åååå-mm-dd\"),\"\")","v":""},{"$f":"IF(DataLog!$C190=\"Log value\",DataLog!E190,\"\")","v":""},{"$f":"IF(DataLog!$C190=\"Log value\",DataLog!F190,\"\")","v":""},{"$f":"IF(DataLog!$C190=\"Log value\",DataLog!G190,\"\")","v":""},{"$f":"IF(DataLog!$C190=\"Log value\",DataLog!H190,\"\")","v":""},{"$f":"IF(DataLog!$C190=\"Log value\",DataLog!I190,\"\")","v":""},{"$f":"IF(DataLog!$C190=\"Log value\",DataLog!J190,\"\")","v":""},{"$f":"IF(DataLog!$C190=\"Log value\",DataLog!K190,\"\")","v":""},{"$f":"IF(DataLog!$C190=\"Log value\",DataLog!L190,\"\")","v":""},{"$f":"IF(DataLog!$C190=\"Log value\",DataLog!M190,\"\")","v":""},{"$f":"IF(DataLog!$C190=\"Log value\",DataLog!N190,\"\")","v":""},{"$f":"IF(DataLog!$C190=\"Log value\",DataLog!O190,\"\")","v":""},{"$f":"IF(DataLog!$C190=\"Log value\",DataLog!P190,\"\")","v":""},{"$f":"IF(DataLog!$C190=\"Log value\",DataLog!Q190,\"\")","v":""},{"$f":"IF(DataLog!$C190=\"Log value\",DataLog!R190,\"\")","v":""},{"$f":"IF(DataLog!$C190=\"Log value\",DataLog!S190,\"\")","v":""},{"$f":"IF(DataLog!$C190=\"Log value\",DataLog!T190,\"\")","v":""},{"$f":"IF(DataLog!$C190=\"Log value\",DataLog!U190,\"\")","v":""},{"$f":"IF(DataLog!$C190=\"Log value\",DataLog!V190,\"\")","v":""},{"$f":"IF(DataLog!$C190=\"Log value\",DataLog!W190,\"\")","v":""},{"$f":"IF(DataLog!$C190=\"Log value\",DataLog!X190,\"\")","v":""},{"$f":"IF(DataLog!$C190=\"Log value\",DataLog!Y190,\"\")","v":""},{"$f":"IF(DataLog!$C190=\"Log value\",DataLog!Z190,\"\")","v":""},{"$f":"IF(DataLog!$C190=\"Log value\",DataLog!AA190,\"\")","v":""},{"$f":"IF(DataLog!$C190=\"Log value\",DataLog!AB190,\"\")","v":""},{"$f":"IF(DataLog!$C190=\"Log value\",DataLog!AC190,\"\")","v":""},{"$f":"IF(DataLog!$C190=\"Log value\",DataLog!AD190,\"\")","v":""},{"$f":"IF(DataLog!$C190=\"Log value\",DataLog!AE190,\"\")","v":""},{"$f":"IF(DataLog!$C190=\"Log value\",DataLog!AF190,\"\")","v":""},{"$f":"IF(DataLog!$C190=\"Log value\",DataLog!AG190,\"\")","v":""},{"$f":"IF(DataLog!$C190=\"Log value\",DataLog!AH190,\"\")","v":""},{"$f":"IF(DataLog!$C190=\"Log value\",DataLog!AI190,\"\")","v":""},{"$f":"IF(DataLog!$C190=\"Log value\",DataLog!AJ190,\"\")","v":""},{"$f":"IF(DataLog!$C190=\"Log value\",DataLog!AK190,\"\")","v":""},{"$f":"IF(DataLog!$C190=\"Log value\",DataLog!AL190,\"\")","v":""},{"$f":"IF(DataLog!$C190=\"Log value\",DataLog!AM190,\"\")","v":""}]
[null,null,"Standard","Standard -  - ",null,null,{"$f":"IF(DataLog!$C191=\"Log value\",DataLog!D191&\"_\"&TEXT(DataLog!B191,\"åååå-mm-dd\"),\"\")","v":""},{"$f":"IF(DataLog!$C191=\"Log value\",DataLog!E191,\"\")","v":""},{"$f":"IF(DataLog!$C191=\"Log value\",DataLog!F191,\"\")","v":""},{"$f":"IF(DataLog!$C191=\"Log value\",DataLog!G191,\"\")","v":""},{"$f":"IF(DataLog!$C191=\"Log value\",DataLog!H191,\"\")","v":""},{"$f":"IF(DataLog!$C191=\"Log value\",DataLog!I191,\"\")","v":""},{"$f":"IF(DataLog!$C191=\"Log value\",DataLog!J191,\"\")","v":""},{"$f":"IF(DataLog!$C191=\"Log value\",DataLog!K191,\"\")","v":""},{"$f":"IF(DataLog!$C191=\"Log value\",DataLog!L191,\"\")","v":""},{"$f":"IF(DataLog!$C191=\"Log value\",DataLog!M191,\"\")","v":""},{"$f":"IF(DataLog!$C191=\"Log value\",DataLog!N191,\"\")","v":""},{"$f":"IF(DataLog!$C191=\"Log value\",DataLog!O191,\"\")","v":""},{"$f":"IF(DataLog!$C191=\"Log value\",DataLog!P191,\"\")","v":""},{"$f":"IF(DataLog!$C191=\"Log value\",DataLog!Q191,\"\")","v":""},{"$f":"IF(DataLog!$C191=\"Log value\",DataLog!R191,\"\")","v":""},{"$f":"IF(DataLog!$C191=\"Log value\",DataLog!S191,\"\")","v":""},{"$f":"IF(DataLog!$C191=\"Log value\",DataLog!T191,\"\")","v":""},{"$f":"IF(DataLog!$C191=\"Log value\",DataLog!U191,\"\")","v":""},{"$f":"IF(DataLog!$C191=\"Log value\",DataLog!V191,\"\")","v":""},{"$f":"IF(DataLog!$C191=\"Log value\",DataLog!W191,\"\")","v":""},{"$f":"IF(DataLog!$C191=\"Log value\",DataLog!X191,\"\")","v":""},{"$f":"IF(DataLog!$C191=\"Log value\",DataLog!Y191,\"\")","v":""},{"$f":"IF(DataLog!$C191=\"Log value\",DataLog!Z191,\"\")","v":""},{"$f":"IF(DataLog!$C191=\"Log value\",DataLog!AA191,\"\")","v":""},{"$f":"IF(DataLog!$C191=\"Log value\",DataLog!AB191,\"\")","v":""},{"$f":"IF(DataLog!$C191=\"Log value\",DataLog!AC191,\"\")","v":""},{"$f":"IF(DataLog!$C191=\"Log value\",DataLog!AD191,\"\")","v":""},{"$f":"IF(DataLog!$C191=\"Log value\",DataLog!AE191,\"\")","v":""},{"$f":"IF(DataLog!$C191=\"Log value\",DataLog!AF191,\"\")","v":""},{"$f":"IF(DataLog!$C191=\"Log value\",DataLog!AG191,\"\")","v":""},{"$f":"IF(DataLog!$C191=\"Log value\",DataLog!AH191,\"\")","v":""},{"$f":"IF(DataLog!$C191=\"Log value\",DataLog!AI191,\"\")","v":""},{"$f":"IF(DataLog!$C191=\"Log value\",DataLog!AJ191,\"\")","v":""},{"$f":"IF(DataLog!$C191=\"Log value\",DataLog!AK191,\"\")","v":""},{"$f":"IF(DataLog!$C191=\"Log value\",DataLog!AL191,\"\")","v":""},{"$f":"IF(DataLog!$C191=\"Log value\",DataLog!AM191,\"\")","v":""}]
[null,null,"Standard","Standard -  - ",null,null,{"$f":"IF(DataLog!$C192=\"Log value\",DataLog!D192&\"_\"&TEXT(DataLog!B192,\"åååå-mm-dd\"),\"\")","v":""},{"$f":"IF(DataLog!$C192=\"Log value\",DataLog!E192,\"\")","v":""},{"$f":"IF(DataLog!$C192=\"Log value\",DataLog!F192,\"\")","v":""},{"$f":"IF(DataLog!$C192=\"Log value\",DataLog!G192,\"\")","v":""},{"$f":"IF(DataLog!$C192=\"Log value\",DataLog!H192,\"\")","v":""},{"$f":"IF(DataLog!$C192=\"Log value\",DataLog!I192,\"\")","v":""},{"$f":"IF(DataLog!$C192=\"Log value\",DataLog!J192,\"\")","v":""},{"$f":"IF(DataLog!$C192=\"Log value\",DataLog!K192,\"\")","v":""},{"$f":"IF(DataLog!$C192=\"Log value\",DataLog!L192,\"\")","v":""},{"$f":"IF(DataLog!$C192=\"Log value\",DataLog!M192,\"\")","v":""},{"$f":"IF(DataLog!$C192=\"Log value\",DataLog!N192,\"\")","v":""},{"$f":"IF(DataLog!$C192=\"Log value\",DataLog!O192,\"\")","v":""},{"$f":"IF(DataLog!$C192=\"Log value\",DataLog!P192,\"\")","v":""},{"$f":"IF(DataLog!$C192=\"Log value\",DataLog!Q192,\"\")","v":""},{"$f":"IF(DataLog!$C192=\"Log value\",DataLog!R192,\"\")","v":""},{"$f":"IF(DataLog!$C192=\"Log value\",DataLog!S192,\"\")","v":""},{"$f":"IF(DataLog!$C192=\"Log value\",DataLog!T192,\"\")","v":""},{"$f":"IF(DataLog!$C192=\"Log value\",DataLog!U192,\"\")","v":""},{"$f":"IF(DataLog!$C192=\"Log value\",DataLog!V192,\"\")","v":""},{"$f":"IF(DataLog!$C192=\"Log value\",DataLog!W192,\"\")","v":""},{"$f":"IF(DataLog!$C192=\"Log value\",DataLog!X192,\"\")","v":""},{"$f":"IF(DataLog!$C192=\"Log value\",DataLog!Y192,\"\")","v":""},{"$f":"IF(DataLog!$C192=\"Log value\",DataLog!Z192,\"\")","v":""},{"$f":"IF(DataLog!$C192=\"Log value\",DataLog!AA192,\"\")","v":""},{"$f":"IF(DataLog!$C192=\"Log value\",DataLog!AB192,\"\")","v":""},{"$f":"IF(DataLog!$C192=\"Log value\",DataLog!AC192,\"\")","v":""},{"$f":"IF(DataLog!$C192=\"Log value\",DataLog!AD192,\"\")","v":""},{"$f":"IF(DataLog!$C192=\"Log value\",DataLog!AE192,\"\")","v":""},{"$f":"IF(DataLog!$C192=\"Log value\",DataLog!AF192,\"\")","v":""},{"$f":"IF(DataLog!$C192=\"Log value\",DataLog!AG192,\"\")","v":""},{"$f":"IF(DataLog!$C192=\"Log value\",DataLog!AH192,\"\")","v":""},{"$f":"IF(DataLog!$C192=\"Log value\",DataLog!AI192,\"\")","v":""},{"$f":"IF(DataLog!$C192=\"Log value\",DataLog!AJ192,\"\")","v":""},{"$f":"IF(DataLog!$C192=\"Log value\",DataLog!AK192,\"\")","v":""},{"$f":"IF(DataLog!$C192=\"Log value\",DataLog!AL192,\"\")","v":""},{"$f":"IF(DataLog!$C192=\"Log value\",DataLog!AM192,\"\")","v":""}]
[null,null,"Standard","Standard -  - ",null,null,{"$f":"IF(DataLog!$C193=\"Log value\",DataLog!D193&\"_\"&TEXT(DataLog!B193,\"åååå-mm-dd\"),\"\")","v":""},{"$f":"IF(DataLog!$C193=\"Log value\",DataLog!E193,\"\")","v":""},{"$f":"IF(DataLog!$C193=\"Log value\",DataLog!F193,\"\")","v":""},{"$f":"IF(DataLog!$C193=\"Log value\",DataLog!G193,\"\")","v":""},{"$f":"IF(DataLog!$C193=\"Log value\",DataLog!H193,\"\")","v":""},{"$f":"IF(DataLog!$C193=\"Log value\",DataLog!I193,\"\")","v":""},{"$f":"IF(DataLog!$C193=\"Log value\",DataLog!J193,\"\")","v":""},{"$f":"IF(DataLog!$C193=\"Log value\",DataLog!K193,\"\")","v":""},{"$f":"IF(DataLog!$C193=\"Log value\",DataLog!L193,\"\")","v":""},{"$f":"IF(DataLog!$C193=\"Log value\",DataLog!M193,\"\")","v":""},{"$f":"IF(DataLog!$C193=\"Log value\",DataLog!N193,\"\")","v":""},{"$f":"IF(DataLog!$C193=\"Log value\",DataLog!O193,\"\")","v":""},{"$f":"IF(DataLog!$C193=\"Log value\",DataLog!P193,\"\")","v":""},{"$f":"IF(DataLog!$C193=\"Log value\",DataLog!Q193,\"\")","v":""},{"$f":"IF(DataLog!$C193=\"Log value\",DataLog!R193,\"\")","v":""},{"$f":"IF(DataLog!$C193=\"Log value\",DataLog!S193,\"\")","v":""},{"$f":"IF(DataLog!$C193=\"Log value\",DataLog!T193,\"\")","v":""},{"$f":"IF(DataLog!$C193=\"Log value\",DataLog!U193,\"\")","v":""},{"$f":"IF(DataLog!$C193=\"Log value\",DataLog!V193,\"\")","v":""},{"$f":"IF(DataLog!$C193=\"Log value\",DataLog!W193,\"\")","v":""},{"$f":"IF(DataLog!$C193=\"Log value\",DataLog!X193,\"\")","v":""},{"$f":"IF(DataLog!$C193=\"Log value\",DataLog!Y193,\"\")","v":""},{"$f":"IF(DataLog!$C193=\"Log value\",DataLog!Z193,\"\")","v":""},{"$f":"IF(DataLog!$C193=\"Log value\",DataLog!AA193,\"\")","v":""},{"$f":"IF(DataLog!$C193=\"Log value\",DataLog!AB193,\"\")","v":""},{"$f":"IF(DataLog!$C193=\"Log value\",DataLog!AC193,\"\")","v":""},{"$f":"IF(DataLog!$C193=\"Log value\",DataLog!AD193,\"\")","v":""},{"$f":"IF(DataLog!$C193=\"Log value\",DataLog!AE193,\"\")","v":""},{"$f":"IF(DataLog!$C193=\"Log value\",DataLog!AF193,\"\")","v":""},{"$f":"IF(DataLog!$C193=\"Log value\",DataLog!AG193,\"\")","v":""},{"$f":"IF(DataLog!$C193=\"Log value\",DataLog!AH193,\"\")","v":""},{"$f":"IF(DataLog!$C193=\"Log value\",DataLog!AI193,\"\")","v":""},{"$f":"IF(DataLog!$C193=\"Log value\",DataLog!AJ193,\"\")","v":""},{"$f":"IF(DataLog!$C193=\"Log value\",DataLog!AK193,\"\")","v":""},{"$f":"IF(DataLog!$C193=\"Log value\",DataLog!AL193,\"\")","v":""},{"$f":"IF(DataLog!$C193=\"Log value\",DataLog!AM193,\"\")","v":""}]
[null,null,"Standard","Standard -  - ",null,null,{"$f":"IF(DataLog!$C194=\"Log value\",DataLog!D194&\"_\"&TEXT(DataLog!B194,\"åååå-mm-dd\"),\"\")","v":""},{"$f":"IF(DataLog!$C194=\"Log value\",DataLog!E194,\"\")","v":""},{"$f":"IF(DataLog!$C194=\"Log value\",DataLog!F194,\"\")","v":""},{"$f":"IF(DataLog!$C194=\"Log value\",DataLog!G194,\"\")","v":""},{"$f":"IF(DataLog!$C194=\"Log value\",DataLog!H194,\"\")","v":""},{"$f":"IF(DataLog!$C194=\"Log value\",DataLog!I194,\"\")","v":""},{"$f":"IF(DataLog!$C194=\"Log value\",DataLog!J194,\"\")","v":""},{"$f":"IF(DataLog!$C194=\"Log value\",DataLog!K194,\"\")","v":""},{"$f":"IF(DataLog!$C194=\"Log value\",DataLog!L194,\"\")","v":""},{"$f":"IF(DataLog!$C194=\"Log value\",DataLog!M194,\"\")","v":""},{"$f":"IF(DataLog!$C194=\"Log value\",DataLog!N194,\"\")","v":""},{"$f":"IF(DataLog!$C194=\"Log value\",DataLog!O194,\"\")","v":""},{"$f":"IF(DataLog!$C194=\"Log value\",DataLog!P194,\"\")","v":""},{"$f":"IF(DataLog!$C194=\"Log value\",DataLog!Q194,\"\")","v":""},{"$f":"IF(DataLog!$C194=\"Log value\",DataLog!R194,\"\")","v":""},{"$f":"IF(DataLog!$C194=\"Log value\",DataLog!S194,\"\")","v":""},{"$f":"IF(DataLog!$C194=\"Log value\",DataLog!T194,\"\")","v":""},{"$f":"IF(DataLog!$C194=\"Log value\",DataLog!U194,\"\")","v":""},{"$f":"IF(DataLog!$C194=\"Log value\",DataLog!V194,\"\")","v":""},{"$f":"IF(DataLog!$C194=\"Log value\",DataLog!W194,\"\")","v":""},{"$f":"IF(DataLog!$C194=\"Log value\",DataLog!X194,\"\")","v":""},{"$f":"IF(DataLog!$C194=\"Log value\",DataLog!Y194,\"\")","v":""},{"$f":"IF(DataLog!$C194=\"Log value\",DataLog!Z194,\"\")","v":""},{"$f":"IF(DataLog!$C194=\"Log value\",DataLog!AA194,\"\")","v":""},{"$f":"IF(DataLog!$C194=\"Log value\",DataLog!AB194,\"\")","v":""},{"$f":"IF(DataLog!$C194=\"Log value\",DataLog!AC194,\"\")","v":""},{"$f":"IF(DataLog!$C194=\"Log value\",DataLog!AD194,\"\")","v":""},{"$f":"IF(DataLog!$C194=\"Log value\",DataLog!AE194,\"\")","v":""},{"$f":"IF(DataLog!$C194=\"Log value\",DataLog!AF194,\"\")","v":""},{"$f":"IF(DataLog!$C194=\"Log value\",DataLog!AG194,\"\")","v":""},{"$f":"IF(DataLog!$C194=\"Log value\",DataLog!AH194,\"\")","v":""},{"$f":"IF(DataLog!$C194=\"Log value\",DataLog!AI194,\"\")","v":""},{"$f":"IF(DataLog!$C194=\"Log value\",DataLog!AJ194,\"\")","v":""},{"$f":"IF(DataLog!$C194=\"Log value\",DataLog!AK194,\"\")","v":""},{"$f":"IF(DataLog!$C194=\"Log value\",DataLog!AL194,\"\")","v":""},{"$f":"IF(DataLog!$C194=\"Log value\",DataLog!AM194,\"\")","v":""}]
[null,null,"Standard","Standard -  - ",null,null,{"$f":"IF(DataLog!$C195=\"Log value\",DataLog!D195&\"_\"&TEXT(DataLog!B195,\"åååå-mm-dd\"),\"\")","v":""},{"$f":"IF(DataLog!$C195=\"Log value\",DataLog!E195,\"\")","v":""},{"$f":"IF(DataLog!$C195=\"Log value\",DataLog!F195,\"\")","v":""},{"$f":"IF(DataLog!$C195=\"Log value\",DataLog!G195,\"\")","v":""},{"$f":"IF(DataLog!$C195=\"Log value\",DataLog!H195,\"\")","v":""},{"$f":"IF(DataLog!$C195=\"Log value\",DataLog!I195,\"\")","v":""},{"$f":"IF(DataLog!$C195=\"Log value\",DataLog!J195,\"\")","v":""},{"$f":"IF(DataLog!$C195=\"Log value\",DataLog!K195,\"\")","v":""},{"$f":"IF(DataLog!$C195=\"Log value\",DataLog!L195,\"\")","v":""},{"$f":"IF(DataLog!$C195=\"Log value\",DataLog!M195,\"\")","v":""},{"$f":"IF(DataLog!$C195=\"Log value\",DataLog!N195,\"\")","v":""},{"$f":"IF(DataLog!$C195=\"Log value\",DataLog!O195,\"\")","v":""},{"$f":"IF(DataLog!$C195=\"Log value\",DataLog!P195,\"\")","v":""},{"$f":"IF(DataLog!$C195=\"Log value\",DataLog!Q195,\"\")","v":""},{"$f":"IF(DataLog!$C195=\"Log value\",DataLog!R195,\"\")","v":""},{"$f":"IF(DataLog!$C195=\"Log value\",DataLog!S195,\"\")","v":""},{"$f":"IF(DataLog!$C195=\"Log value\",DataLog!T195,\"\")","v":""},{"$f":"IF(DataLog!$C195=\"Log value\",DataLog!U195,\"\")","v":""},{"$f":"IF(DataLog!$C195=\"Log value\",DataLog!V195,\"\")","v":""},{"$f":"IF(DataLog!$C195=\"Log value\",DataLog!W195,\"\")","v":""},{"$f":"IF(DataLog!$C195=\"Log value\",DataLog!X195,\"\")","v":""},{"$f":"IF(DataLog!$C195=\"Log value\",DataLog!Y195,\"\")","v":""},{"$f":"IF(DataLog!$C195=\"Log value\",DataLog!Z195,\"\")","v":""},{"$f":"IF(DataLog!$C195=\"Log value\",DataLog!AA195,\"\")","v":""},{"$f":"IF(DataLog!$C195=\"Log value\",DataLog!AB195,\"\")","v":""},{"$f":"IF(DataLog!$C195=\"Log value\",DataLog!AC195,\"\")","v":""},{"$f":"IF(DataLog!$C195=\"Log value\",DataLog!AD195,\"\")","v":""},{"$f":"IF(DataLog!$C195=\"Log value\",DataLog!AE195,\"\")","v":""},{"$f":"IF(DataLog!$C195=\"Log value\",DataLog!AF195,\"\")","v":""},{"$f":"IF(DataLog!$C195=\"Log value\",DataLog!AG195,\"\")","v":""},{"$f":"IF(DataLog!$C195=\"Log value\",DataLog!AH195,\"\")","v":""},{"$f":"IF(DataLog!$C195=\"Log value\",DataLog!AI195,\"\")","v":""},{"$f":"IF(DataLog!$C195=\"Log value\",DataLog!AJ195,\"\")","v":""},{"$f":"IF(DataLog!$C195=\"Log value\",DataLog!AK195,\"\")","v":""},{"$f":"IF(DataLog!$C195=\"Log value\",DataLog!AL195,\"\")","v":""},{"$f":"IF(DataLog!$C195=\"Log value\",DataLog!AM195,\"\")","v":""}]
[null,null,"Standard","Standard -  - ",null,null,{"$f":"IF(DataLog!$C196=\"Log value\",DataLog!D196&\"_\"&TEXT(DataLog!B196,\"åååå-mm-dd\"),\"\")","v":""},{"$f":"IF(DataLog!$C196=\"Log value\",DataLog!E196,\"\")","v":""},{"$f":"IF(DataLog!$C196=\"Log value\",DataLog!F196,\"\")","v":""},{"$f":"IF(DataLog!$C196=\"Log value\",DataLog!G196,\"\")","v":""},{"$f":"IF(DataLog!$C196=\"Log value\",DataLog!H196,\"\")","v":""},{"$f":"IF(DataLog!$C196=\"Log value\",DataLog!I196,\"\")","v":""},{"$f":"IF(DataLog!$C196=\"Log value\",DataLog!J196,\"\")","v":""},{"$f":"IF(DataLog!$C196=\"Log value\",DataLog!K196,\"\")","v":""},{"$f":"IF(DataLog!$C196=\"Log value\",DataLog!L196,\"\")","v":""},{"$f":"IF(DataLog!$C196=\"Log value\",DataLog!M196,\"\")","v":""},{"$f":"IF(DataLog!$C196=\"Log value\",DataLog!N196,\"\")","v":""},{"$f":"IF(DataLog!$C196=\"Log value\",DataLog!O196,\"\")","v":""},{"$f":"IF(DataLog!$C196=\"Log value\",DataLog!P196,\"\")","v":""},{"$f":"IF(DataLog!$C196=\"Log value\",DataLog!Q196,\"\")","v":""},{"$f":"IF(DataLog!$C196=\"Log value\",DataLog!R196,\"\")","v":""},{"$f":"IF(DataLog!$C196=\"Log value\",DataLog!S196,\"\")","v":""},{"$f":"IF(DataLog!$C196=\"Log value\",DataLog!T196,\"\")","v":""},{"$f":"IF(DataLog!$C196=\"Log value\",DataLog!U196,\"\")","v":""},{"$f":"IF(DataLog!$C196=\"Log value\",DataLog!V196,\"\")","v":""},{"$f":"IF(DataLog!$C196=\"Log value\",DataLog!W196,\"\")","v":""},{"$f":"IF(DataLog!$C196=\"Log value\",DataLog!X196,\"\")","v":""},{"$f":"IF(DataLog!$C196=\"Log value\",DataLog!Y196,\"\")","v":""},{"$f":"IF(DataLog!$C196=\"Log value\",DataLog!Z196,\"\")","v":""},{"$f":"IF(DataLog!$C196=\"Log value\",DataLog!AA196,\"\")","v":""},{"$f":"IF(DataLog!$C196=\"Log value\",DataLog!AB196,\"\")","v":""},{"$f":"IF(DataLog!$C196=\"Log value\",DataLog!AC196,\"\")","v":""},{"$f":"IF(DataLog!$C196=\"Log value\",DataLog!AD196,\"\")","v":""},{"$f":"IF(DataLog!$C196=\"Log value\",DataLog!AE196,\"\")","v":""},{"$f":"IF(DataLog!$C196=\"Log value\",DataLog!AF196,\"\")","v":""},{"$f":"IF(DataLog!$C196=\"Log value\",DataLog!AG196,\"\")","v":""},{"$f":"IF(DataLog!$C196=\"Log value\",DataLog!AH196,\"\")","v":""},{"$f":"IF(DataLog!$C196=\"Log value\",DataLog!AI196,\"\")","v":""},{"$f":"IF(DataLog!$C196=\"Log value\",DataLog!AJ196,\"\")","v":""},{"$f":"IF(DataLog!$C196=\"Log value\",DataLog!AK196,\"\")","v":""},{"$f":"IF(DataLog!$C196=\"Log value\",DataLog!AL196,\"\")","v":""},{"$f":"IF(DataLog!$C196=\"Log value\",DataLog!AM196,\"\")","v":""}]
[null,null,"Standard","Standard -  - ",null,null,{"$f":"IF(DataLog!$C197=\"Log value\",DataLog!D197&\"_\"&TEXT(DataLog!B197,\"åååå-mm-dd\"),\"\")","v":""},{"$f":"IF(DataLog!$C197=\"Log value\",DataLog!E197,\"\")","v":""},{"$f":"IF(DataLog!$C197=\"Log value\",DataLog!F197,\"\")","v":""},{"$f":"IF(DataLog!$C197=\"Log value\",DataLog!G197,\"\")","v":""},{"$f":"IF(DataLog!$C197=\"Log value\",DataLog!H197,\"\")","v":""},{"$f":"IF(DataLog!$C197=\"Log value\",DataLog!I197,\"\")","v":""},{"$f":"IF(DataLog!$C197=\"Log value\",DataLog!J197,\"\")","v":""},{"$f":"IF(DataLog!$C197=\"Log value\",DataLog!K197,\"\")","v":""},{"$f":"IF(DataLog!$C197=\"Log value\",DataLog!L197,\"\")","v":""},{"$f":"IF(DataLog!$C197=\"Log value\",DataLog!M197,\"\")","v":""},{"$f":"IF(DataLog!$C197=\"Log value\",DataLog!N197,\"\")","v":""},{"$f":"IF(DataLog!$C197=\"Log value\",DataLog!O197,\"\")","v":""},{"$f":"IF(DataLog!$C197=\"Log value\",DataLog!P197,\"\")","v":""},{"$f":"IF(DataLog!$C197=\"Log value\",DataLog!Q197,\"\")","v":""},{"$f":"IF(DataLog!$C197=\"Log value\",DataLog!R197,\"\")","v":""},{"$f":"IF(DataLog!$C197=\"Log value\",DataLog!S197,\"\")","v":""},{"$f":"IF(DataLog!$C197=\"Log value\",DataLog!T197,\"\")","v":""},{"$f":"IF(DataLog!$C197=\"Log value\",DataLog!U197,\"\")","v":""},{"$f":"IF(DataLog!$C197=\"Log value\",DataLog!V197,\"\")","v":""},{"$f":"IF(DataLog!$C197=\"Log value\",DataLog!W197,\"\")","v":""},{"$f":"IF(DataLog!$C197=\"Log value\",DataLog!X197,\"\")","v":""},{"$f":"IF(DataLog!$C197=\"Log value\",DataLog!Y197,\"\")","v":""},{"$f":"IF(DataLog!$C197=\"Log value\",DataLog!Z197,\"\")","v":""},{"$f":"IF(DataLog!$C197=\"Log value\",DataLog!AA197,\"\")","v":""},{"$f":"IF(DataLog!$C197=\"Log value\",DataLog!AB197,\"\")","v":""},{"$f":"IF(DataLog!$C197=\"Log value\",DataLog!AC197,\"\")","v":""},{"$f":"IF(DataLog!$C197=\"Log value\",DataLog!AD197,\"\")","v":""},{"$f":"IF(DataLog!$C197=\"Log value\",DataLog!AE197,\"\")","v":""},{"$f":"IF(DataLog!$C197=\"Log value\",DataLog!AF197,\"\")","v":""},{"$f":"IF(DataLog!$C197=\"Log value\",DataLog!AG197,\"\")","v":""},{"$f":"IF(DataLog!$C197=\"Log value\",DataLog!AH197,\"\")","v":""},{"$f":"IF(DataLog!$C197=\"Log value\",DataLog!AI197,\"\")","v":""},{"$f":"IF(DataLog!$C197=\"Log value\",DataLog!AJ197,\"\")","v":""},{"$f":"IF(DataLog!$C197=\"Log value\",DataLog!AK197,\"\")","v":""},{"$f":"IF(DataLog!$C197=\"Log value\",DataLog!AL197,\"\")","v":""},{"$f":"IF(DataLog!$C197=\"Log value\",DataLog!AM197,\"\")","v":""}]
[null,null,"Standard","Standard -  - ",null,null,{"$f":"IF(DataLog!$C198=\"Log value\",DataLog!D198&\"_\"&TEXT(DataLog!B198,\"åååå-mm-dd\"),\"\")","v":""},{"$f":"IF(DataLog!$C198=\"Log value\",DataLog!E198,\"\")","v":""},{"$f":"IF(DataLog!$C198=\"Log value\",DataLog!F198,\"\")","v":""},{"$f":"IF(DataLog!$C198=\"Log value\",DataLog!G198,\"\")","v":""},{"$f":"IF(DataLog!$C198=\"Log value\",DataLog!H198,\"\")","v":""},{"$f":"IF(DataLog!$C198=\"Log value\",DataLog!I198,\"\")","v":""},{"$f":"IF(DataLog!$C198=\"Log value\",DataLog!J198,\"\")","v":""},{"$f":"IF(DataLog!$C198=\"Log value\",DataLog!K198,\"\")","v":""},{"$f":"IF(DataLog!$C198=\"Log value\",DataLog!L198,\"\")","v":""},{"$f":"IF(DataLog!$C198=\"Log value\",DataLog!M198,\"\")","v":""},{"$f":"IF(DataLog!$C198=\"Log value\",DataLog!N198,\"\")","v":""},{"$f":"IF(DataLog!$C198=\"Log value\",DataLog!O198,\"\")","v":""},{"$f":"IF(DataLog!$C198=\"Log value\",DataLog!P198,\"\")","v":""},{"$f":"IF(DataLog!$C198=\"Log value\",DataLog!Q198,\"\")","v":""},{"$f":"IF(DataLog!$C198=\"Log value\",DataLog!R198,\"\")","v":""},{"$f":"IF(DataLog!$C198=\"Log value\",DataLog!S198,\"\")","v":""},{"$f":"IF(DataLog!$C198=\"Log value\",DataLog!T198,\"\")","v":""},{"$f":"IF(DataLog!$C198=\"Log value\",DataLog!U198,\"\")","v":""},{"$f":"IF(DataLog!$C198=\"Log value\",DataLog!V198,\"\")","v":""},{"$f":"IF(DataLog!$C198=\"Log value\",DataLog!W198,\"\")","v":""},{"$f":"IF(DataLog!$C198=\"Log value\",DataLog!X198,\"\")","v":""},{"$f":"IF(DataLog!$C198=\"Log value\",DataLog!Y198,\"\")","v":""},{"$f":"IF(DataLog!$C198=\"Log value\",DataLog!Z198,\"\")","v":""},{"$f":"IF(DataLog!$C198=\"Log value\",DataLog!AA198,\"\")","v":""},{"$f":"IF(DataLog!$C198=\"Log value\",DataLog!AB198,\"\")","v":""},{"$f":"IF(DataLog!$C198=\"Log value\",DataLog!AC198,\"\")","v":""},{"$f":"IF(DataLog!$C198=\"Log value\",DataLog!AD198,\"\")","v":""},{"$f":"IF(DataLog!$C198=\"Log value\",DataLog!AE198,\"\")","v":""},{"$f":"IF(DataLog!$C198=\"Log value\",DataLog!AF198,\"\")","v":""},{"$f":"IF(DataLog!$C198=\"Log value\",DataLog!AG198,\"\")","v":""},{"$f":"IF(DataLog!$C198=\"Log value\",DataLog!AH198,\"\")","v":""},{"$f":"IF(DataLog!$C198=\"Log value\",DataLog!AI198,\"\")","v":""},{"$f":"IF(DataLog!$C198=\"Log value\",DataLog!AJ198,\"\")","v":""},{"$f":"IF(DataLog!$C198=\"Log value\",DataLog!AK198,\"\")","v":""},{"$f":"IF(DataLog!$C198=\"Log value\",DataLog!AL198,\"\")","v":""},{"$f":"IF(DataLog!$C198=\"Log value\",DataLog!AM198,\"\")","v":""}]
[null,null,"Standard","Standard -  - ",null,null,{"$f":"IF(DataLog!$C199=\"Log value\",DataLog!D199&\"_\"&TEXT(DataLog!B199,\"åååå-mm-dd\"),\"\")","v":""},{"$f":"IF(DataLog!$C199=\"Log value\",DataLog!E199,\"\")","v":""},{"$f":"IF(DataLog!$C199=\"Log value\",DataLog!F199,\"\")","v":""},{"$f":"IF(DataLog!$C199=\"Log value\",DataLog!G199,\"\")","v":""},{"$f":"IF(DataLog!$C199=\"Log value\",DataLog!H199,\"\")","v":""},{"$f":"IF(DataLog!$C199=\"Log value\",DataLog!I199,\"\")","v":""},{"$f":"IF(DataLog!$C199=\"Log value\",DataLog!J199,\"\")","v":""},{"$f":"IF(DataLog!$C199=\"Log value\",DataLog!K199,\"\")","v":""},{"$f":"IF(DataLog!$C199=\"Log value\",DataLog!L199,\"\")","v":""},{"$f":"IF(DataLog!$C199=\"Log value\",DataLog!M199,\"\")","v":""},{"$f":"IF(DataLog!$C199=\"Log value\",DataLog!N199,\"\")","v":""},{"$f":"IF(DataLog!$C199=\"Log value\",DataLog!O199,\"\")","v":""},{"$f":"IF(DataLog!$C199=\"Log value\",DataLog!P199,\"\")","v":""},{"$f":"IF(DataLog!$C199=\"Log value\",DataLog!Q199,\"\")","v":""},{"$f":"IF(DataLog!$C199=\"Log value\",DataLog!R199,\"\")","v":""},{"$f":"IF(DataLog!$C199=\"Log value\",DataLog!S199,\"\")","v":""},{"$f":"IF(DataLog!$C199=\"Log value\",DataLog!T199,\"\")","v":""},{"$f":"IF(DataLog!$C199=\"Log value\",DataLog!U199,\"\")","v":""},{"$f":"IF(DataLog!$C199=\"Log value\",DataLog!V199,\"\")","v":""},{"$f":"IF(DataLog!$C199=\"Log value\",DataLog!W199,\"\")","v":""},{"$f":"IF(DataLog!$C199=\"Log value\",DataLog!X199,\"\")","v":""},{"$f":"IF(DataLog!$C199=\"Log value\",DataLog!Y199,\"\")","v":""},{"$f":"IF(DataLog!$C199=\"Log value\",DataLog!Z199,\"\")","v":""},{"$f":"IF(DataLog!$C199=\"Log value\",DataLog!AA199,\"\")","v":""},{"$f":"IF(DataLog!$C199=\"Log value\",DataLog!AB199,\"\")","v":""},{"$f":"IF(DataLog!$C199=\"Log value\",DataLog!AC199,\"\")","v":""},{"$f":"IF(DataLog!$C199=\"Log value\",DataLog!AD199,\"\")","v":""},{"$f":"IF(DataLog!$C199=\"Log value\",DataLog!AE199,\"\")","v":""},{"$f":"IF(DataLog!$C199=\"Log value\",DataLog!AF199,\"\")","v":""},{"$f":"IF(DataLog!$C199=\"Log value\",DataLog!AG199,\"\")","v":""},{"$f":"IF(DataLog!$C199=\"Log value\",DataLog!AH199,\"\")","v":""},{"$f":"IF(DataLog!$C199=\"Log value\",DataLog!AI199,\"\")","v":""},{"$f":"IF(DataLog!$C199=\"Log value\",DataLog!AJ199,\"\")","v":""},{"$f":"IF(DataLog!$C199=\"Log value\",DataLog!AK199,\"\")","v":""},{"$f":"IF(DataLog!$C199=\"Log value\",DataLog!AL199,\"\")","v":""},{"$f":"IF(DataLog!$C199=\"Log value\",DataLog!AM199,\"\")","v":""}]
[null,null,"Standard","Standard -  - ",null,null,{"$f":"IF(DataLog!$C200=\"Log value\",DataLog!D200&\"_\"&TEXT(DataLog!B200,\"åååå-mm-dd\"),\"\")","v":""},{"$f":"IF(DataLog!$C200=\"Log value\",DataLog!E200,\"\")","v":""},{"$f":"IF(DataLog!$C200=\"Log value\",DataLog!F200,\"\")","v":""},{"$f":"IF(DataLog!$C200=\"Log value\",DataLog!G200,\"\")","v":""},{"$f":"IF(DataLog!$C200=\"Log value\",DataLog!H200,\"\")","v":""},{"$f":"IF(DataLog!$C200=\"Log value\",DataLog!I200,\"\")","v":""},{"$f":"IF(DataLog!$C200=\"Log value\",DataLog!J200,\"\")","v":""},{"$f":"IF(DataLog!$C200=\"Log value\",DataLog!K200,\"\")","v":""},{"$f":"IF(DataLog!$C200=\"Log value\",DataLog!L200,\"\")","v":""},{"$f":"IF(DataLog!$C200=\"Log value\",DataLog!M200,\"\")","v":""},{"$f":"IF(DataLog!$C200=\"Log value\",DataLog!N200,\"\")","v":""},{"$f":"IF(DataLog!$C200=\"Log value\",DataLog!O200,\"\")","v":""},{"$f":"IF(DataLog!$C200=\"Log value\",DataLog!P200,\"\")","v":""},{"$f":"IF(DataLog!$C200=\"Log value\",DataLog!Q200,\"\")","v":""},{"$f":"IF(DataLog!$C200=\"Log value\",DataLog!R200,\"\")","v":""},{"$f":"IF(DataLog!$C200=\"Log value\",DataLog!S200,\"\")","v":""},{"$f":"IF(DataLog!$C200=\"Log value\",DataLog!T200,\"\")","v":""},{"$f":"IF(DataLog!$C200=\"Log value\",DataLog!U200,\"\")","v":""},{"$f":"IF(DataLog!$C200=\"Log value\",DataLog!V200,\"\")","v":""},{"$f":"IF(DataLog!$C200=\"Log value\",DataLog!W200,\"\")","v":""},{"$f":"IF(DataLog!$C200=\"Log value\",DataLog!X200,\"\")","v":""},{"$f":"IF(DataLog!$C200=\"Log value\",DataLog!Y200,\"\")","v":""},{"$f":"IF(DataLog!$C200=\"Log value\",DataLog!Z200,\"\")","v":""},{"$f":"IF(DataLog!$C200=\"Log value\",DataLog!AA200,\"\")","v":""},{"$f":"IF(DataLog!$C200=\"Log value\",DataLog!AB200,\"\")","v":""},{"$f":"IF(DataLog!$C200=\"Log value\",DataLog!AC200,\"\")","v":""},{"$f":"IF(DataLog!$C200=\"Log value\",DataLog!AD200,\"\")","v":""},{"$f":"IF(DataLog!$C200=\"Log value\",DataLog!AE200,\"\")","v":""},{"$f":"IF(DataLog!$C200=\"Log value\",DataLog!AF200,\"\")","v":""},{"$f":"IF(DataLog!$C200=\"Log value\",DataLog!AG200,\"\")","v":""},{"$f":"IF(DataLog!$C200=\"Log value\",DataLog!AH200,\"\")","v":""},{"$f":"IF(DataLog!$C200=\"Log value\",DataLog!AI200,\"\")","v":""},{"$f":"IF(DataLog!$C200=\"Log value\",DataLog!AJ200,\"\")","v":""},{"$f":"IF(DataLog!$C200=\"Log value\",DataLog!AK200,\"\")","v":""},{"$f":"IF(DataLog!$C200=\"Log value\",DataLog!AL200,\"\")","v":""},{"$f":"IF(DataLog!$C200=\"Log value\",DataLog!AM200,\"\")","v":""}]
[null,null,"Standard","Standard -  - ",null,null,{"$f":"IF(DataLog!$C201=\"Log value\",DataLog!D201&\"_\"&TEXT(DataLog!B201,\"åååå-mm-dd\"),\"\")","v":""},{"$f":"IF(DataLog!$C201=\"Log value\",DataLog!E201,\"\")","v":""},{"$f":"IF(DataLog!$C201=\"Log value\",DataLog!F201,\"\")","v":""},{"$f":"IF(DataLog!$C201=\"Log value\",DataLog!G201,\"\")","v":""},{"$f":"IF(DataLog!$C201=\"Log value\",DataLog!H201,\"\")","v":""},{"$f":"IF(DataLog!$C201=\"Log value\",DataLog!I201,\"\")","v":""},{"$f":"IF(DataLog!$C201=\"Log value\",DataLog!J201,\"\")","v":""},{"$f":"IF(DataLog!$C201=\"Log value\",DataLog!K201,\"\")","v":""},{"$f":"IF(DataLog!$C201=\"Log value\",DataLog!L201,\"\")","v":""},{"$f":"IF(DataLog!$C201=\"Log value\",DataLog!M201,\"\")","v":""},{"$f":"IF(DataLog!$C201=\"Log value\",DataLog!N201,\"\")","v":""},{"$f":"IF(DataLog!$C201=\"Log value\",DataLog!O201,\"\")","v":""},{"$f":"IF(DataLog!$C201=\"Log value\",DataLog!P201,\"\")","v":""},{"$f":"IF(DataLog!$C201=\"Log value\",DataLog!Q201,\"\")","v":""},{"$f":"IF(DataLog!$C201=\"Log value\",DataLog!R201,\"\")","v":""},{"$f":"IF(DataLog!$C201=\"Log value\",DataLog!S201,\"\")","v":""},{"$f":"IF(DataLog!$C201=\"Log value\",DataLog!T201,\"\")","v":""},{"$f":"IF(DataLog!$C201=\"Log value\",DataLog!U201,\"\")","v":""},{"$f":"IF(DataLog!$C201=\"Log value\",DataLog!V201,\"\")","v":""},{"$f":"IF(DataLog!$C201=\"Log value\",DataLog!W201,\"\")","v":""},{"$f":"IF(DataLog!$C201=\"Log value\",DataLog!X201,\"\")","v":""},{"$f":"IF(DataLog!$C201=\"Log value\",DataLog!Y201,\"\")","v":""},{"$f":"IF(DataLog!$C201=\"Log value\",DataLog!Z201,\"\")","v":""},{"$f":"IF(DataLog!$C201=\"Log value\",DataLog!AA201,\"\")","v":""},{"$f":"IF(DataLog!$C201=\"Log value\",DataLog!AB201,\"\")","v":""},{"$f":"IF(DataLog!$C201=\"Log value\",DataLog!AC201,\"\")","v":""},{"$f":"IF(DataLog!$C201=\"Log value\",DataLog!AD201,\"\")","v":""},{"$f":"IF(DataLog!$C201=\"Log value\",DataLog!AE201,\"\")","v":""},{"$f":"IF(DataLog!$C201=\"Log value\",DataLog!AF201,\"\")","v":""},{"$f":"IF(DataLog!$C201=\"Log value\",DataLog!AG201,\"\")","v":""},{"$f":"IF(DataLog!$C201=\"Log value\",DataLog!AH201,\"\")","v":""},{"$f":"IF(DataLog!$C201=\"Log value\",DataLog!AI201,\"\")","v":""},{"$f":"IF(DataLog!$C201=\"Log value\",DataLog!AJ201,\"\")","v":""},{"$f":"IF(DataLog!$C201=\"Log value\",DataLog!AK201,\"\")","v":""},{"$f":"IF(DataLog!$C201=\"Log value\",DataLog!AL201,\"\")","v":""},{"$f":"IF(DataLog!$C201=\"Log value\",DataLog!AM201,\"\")","v":""}]
[null,null,"Standard","Standard -  - ",null,null,{"$f":"IF(DataLog!$C202=\"Log value\",DataLog!D202&\"_\"&TEXT(DataLog!B202,\"åååå-mm-dd\"),\"\")","v":""},{"$f":"IF(DataLog!$C202=\"Log value\",DataLog!E202,\"\")","v":""},{"$f":"IF(DataLog!$C202=\"Log value\",DataLog!F202,\"\")","v":""},{"$f":"IF(DataLog!$C202=\"Log value\",DataLog!G202,\"\")","v":""},{"$f":"IF(DataLog!$C202=\"Log value\",DataLog!H202,\"\")","v":""},{"$f":"IF(DataLog!$C202=\"Log value\",DataLog!I202,\"\")","v":""},{"$f":"IF(DataLog!$C202=\"Log value\",DataLog!J202,\"\")","v":""},{"$f":"IF(DataLog!$C202=\"Log value\",DataLog!K202,\"\")","v":""},{"$f":"IF(DataLog!$C202=\"Log value\",DataLog!L202,\"\")","v":""},{"$f":"IF(DataLog!$C202=\"Log value\",DataLog!M202,\"\")","v":""},{"$f":"IF(DataLog!$C202=\"Log value\",DataLog!N202,\"\")","v":""},{"$f":"IF(DataLog!$C202=\"Log value\",DataLog!O202,\"\")","v":""},{"$f":"IF(DataLog!$C202=\"Log value\",DataLog!P202,\"\")","v":""},{"$f":"IF(DataLog!$C202=\"Log value\",DataLog!Q202,\"\")","v":""},{"$f":"IF(DataLog!$C202=\"Log value\",DataLog!R202,\"\")","v":""},{"$f":"IF(DataLog!$C202=\"Log value\",DataLog!S202,\"\")","v":""},{"$f":"IF(DataLog!$C202=\"Log value\",DataLog!T202,\"\")","v":""},{"$f":"IF(DataLog!$C202=\"Log value\",DataLog!U202,\"\")","v":""},{"$f":"IF(DataLog!$C202=\"Log value\",DataLog!V202,\"\")","v":""},{"$f":"IF(DataLog!$C202=\"Log value\",DataLog!W202,\"\")","v":""},{"$f":"IF(DataLog!$C202=\"Log value\",DataLog!X202,\"\")","v":""},{"$f":"IF(DataLog!$C202=\"Log value\",DataLog!Y202,\"\")","v":""},{"$f":"IF(DataLog!$C202=\"Log value\",DataLog!Z202,\"\")","v":""},{"$f":"IF(DataLog!$C202=\"Log value\",DataLog!AA202,\"\")","v":""},{"$f":"IF(DataLog!$C202=\"Log value\",DataLog!AB202,\"\")","v":""},{"$f":"IF(DataLog!$C202=\"Log value\",DataLog!AC202,\"\")","v":""},{"$f":"IF(DataLog!$C202=\"Log value\",DataLog!AD202,\"\")","v":""},{"$f":"IF(DataLog!$C202=\"Log value\",DataLog!AE202,\"\")","v":""},{"$f":"IF(DataLog!$C202=\"Log value\",DataLog!AF202,\"\")","v":""},{"$f":"IF(DataLog!$C202=\"Log value\",DataLog!AG202,\"\")","v":""},{"$f":"IF(DataLog!$C202=\"Log value\",DataLog!AH202,\"\")","v":""},{"$f":"IF(DataLog!$C202=\"Log value\",DataLog!AI202,\"\")","v":""},{"$f":"IF(DataLog!$C202=\"Log value\",DataLog!AJ202,\"\")","v":""},{"$f":"IF(DataLog!$C202=\"Log value\",DataLog!AK202,\"\")","v":""},{"$f":"IF(DataLog!$C202=\"Log value\",DataLog!AL202,\"\")","v":""},{"$f":"IF(DataLog!$C202=\"Log value\",DataLog!AM202,\"\")","v":""}]
[null,null,"Standard","Standard -  - ",null,null,{"$f":"IF(DataLog!$C203=\"Log value\",DataLog!D203&\"_\"&TEXT(DataLog!B203,\"åååå-mm-dd\"),\"\")","v":""},{"$f":"IF(DataLog!$C203=\"Log value\",DataLog!E203,\"\")","v":""},{"$f":"IF(DataLog!$C203=\"Log value\",DataLog!F203,\"\")","v":""},{"$f":"IF(DataLog!$C203=\"Log value\",DataLog!G203,\"\")","v":""},{"$f":"IF(DataLog!$C203=\"Log value\",DataLog!H203,\"\")","v":""},{"$f":"IF(DataLog!$C203=\"Log value\",DataLog!I203,\"\")","v":""},{"$f":"IF(DataLog!$C203=\"Log value\",DataLog!J203,\"\")","v":""},{"$f":"IF(DataLog!$C203=\"Log value\",DataLog!K203,\"\")","v":""},{"$f":"IF(DataLog!$C203=\"Log value\",DataLog!L203,\"\")","v":""},{"$f":"IF(DataLog!$C203=\"Log value\",DataLog!M203,\"\")","v":""},{"$f":"IF(DataLog!$C203=\"Log value\",DataLog!N203,\"\")","v":""},{"$f":"IF(DataLog!$C203=\"Log value\",DataLog!O203,\"\")","v":""},{"$f":"IF(DataLog!$C203=\"Log value\",DataLog!P203,\"\")","v":""},{"$f":"IF(DataLog!$C203=\"Log value\",DataLog!Q203,\"\")","v":""},{"$f":"IF(DataLog!$C203=\"Log value\",DataLog!R203,\"\")","v":""},{"$f":"IF(DataLog!$C203=\"Log value\",DataLog!S203,\"\")","v":""},{"$f":"IF(DataLog!$C203=\"Log value\",DataLog!T203,\"\")","v":""},{"$f":"IF(DataLog!$C203=\"Log value\",DataLog!U203,\"\")","v":""},{"$f":"IF(DataLog!$C203=\"Log value\",DataLog!V203,\"\")","v":""},{"$f":"IF(DataLog!$C203=\"Log value\",DataLog!W203,\"\")","v":""},{"$f":"IF(DataLog!$C203=\"Log value\",DataLog!X203,\"\")","v":""},{"$f":"IF(DataLog!$C203=\"Log value\",DataLog!Y203,\"\")","v":""},{"$f":"IF(DataLog!$C203=\"Log value\",DataLog!Z203,\"\")","v":""},{"$f":"IF(DataLog!$C203=\"Log value\",DataLog!AA203,\"\")","v":""},{"$f":"IF(DataLog!$C203=\"Log value\",DataLog!AB203,\"\")","v":""},{"$f":"IF(DataLog!$C203=\"Log value\",DataLog!AC203,\"\")","v":""},{"$f":"IF(DataLog!$C203=\"Log value\",DataLog!AD203,\"\")","v":""},{"$f":"IF(DataLog!$C203=\"Log value\",DataLog!AE203,\"\")","v":""},{"$f":"IF(DataLog!$C203=\"Log value\",DataLog!AF203,\"\")","v":""},{"$f":"IF(DataLog!$C203=\"Log value\",DataLog!AG203,\"\")","v":""},{"$f":"IF(DataLog!$C203=\"Log value\",DataLog!AH203,\"\")","v":""},{"$f":"IF(DataLog!$C203=\"Log value\",DataLog!AI203,\"\")","v":""},{"$f":"IF(DataLog!$C203=\"Log value\",DataLog!AJ203,\"\")","v":""},{"$f":"IF(DataLog!$C203=\"Log value\",DataLog!AK203,\"\")","v":""},{"$f":"IF(DataLog!$C203=\"Log value\",DataLog!AL203,\"\")","v":""},{"$f":"IF(DataLog!$C203=\"Log value\",DataLog!AM203,\"\")","v":""}]
[null,null,"Standard","Standard -  - ",null,null,{"$f":"IF(DataLog!$C204=\"Log value\",DataLog!D204&\"_\"&TEXT(DataLog!B204,\"åååå-mm-dd\"),\"\")","v":""},{"$f":"IF(DataLog!$C204=\"Log value\",DataLog!E204,\"\")","v":""},{"$f":"IF(DataLog!$C204=\"Log value\",DataLog!F204,\"\")","v":""},{"$f":"IF(DataLog!$C204=\"Log value\",DataLog!G204,\"\")","v":""},{"$f":"IF(DataLog!$C204=\"Log value\",DataLog!H204,\"\")","v":""},{"$f":"IF(DataLog!$C204=\"Log value\",DataLog!I204,\"\")","v":""},{"$f":"IF(DataLog!$C204=\"Log value\",DataLog!J204,\"\")","v":""},{"$f":"IF(DataLog!$C204=\"Log value\",DataLog!K204,\"\")","v":""},{"$f":"IF(DataLog!$C204=\"Log value\",DataLog!L204,\"\")","v":""},{"$f":"IF(DataLog!$C204=\"Log value\",DataLog!M204,\"\")","v":""},{"$f":"IF(DataLog!$C204=\"Log value\",DataLog!N204,\"\")","v":""},{"$f":"IF(DataLog!$C204=\"Log value\",DataLog!O204,\"\")","v":""},{"$f":"IF(DataLog!$C204=\"Log value\",DataLog!P204,\"\")","v":""},{"$f":"IF(DataLog!$C204=\"Log value\",DataLog!Q204,\"\")","v":""},{"$f":"IF(DataLog!$C204=\"Log value\",DataLog!R204,\"\")","v":""},{"$f":"IF(DataLog!$C204=\"Log value\",DataLog!S204,\"\")","v":""},{"$f":"IF(DataLog!$C204=\"Log value\",DataLog!T204,\"\")","v":""},{"$f":"IF(DataLog!$C204=\"Log value\",DataLog!U204,\"\")","v":""},{"$f":"IF(DataLog!$C204=\"Log value\",DataLog!V204,\"\")","v":""},{"$f":"IF(DataLog!$C204=\"Log value\",DataLog!W204,\"\")","v":""},{"$f":"IF(DataLog!$C204=\"Log value\",DataLog!X204,\"\")","v":""},{"$f":"IF(DataLog!$C204=\"Log value\",DataLog!Y204,\"\")","v":""},{"$f":"IF(DataLog!$C204=\"Log value\",DataLog!Z204,\"\")","v":""},{"$f":"IF(DataLog!$C204=\"Log value\",DataLog!AA204,\"\")","v":""},{"$f":"IF(DataLog!$C204=\"Log value\",DataLog!AB204,\"\")","v":""},{"$f":"IF(DataLog!$C204=\"Log value\",DataLog!AC204,\"\")","v":""},{"$f":"IF(DataLog!$C204=\"Log value\",DataLog!AD204,\"\")","v":""},{"$f":"IF(DataLog!$C204=\"Log value\",DataLog!AE204,\"\")","v":""},{"$f":"IF(DataLog!$C204=\"Log value\",DataLog!AF204,\"\")","v":""},{"$f":"IF(DataLog!$C204=\"Log value\",DataLog!AG204,\"\")","v":""},{"$f":"IF(DataLog!$C204=\"Log value\",DataLog!AH204,\"\")","v":""},{"$f":"IF(DataLog!$C204=\"Log value\",DataLog!AI204,\"\")","v":""},{"$f":"IF(DataLog!$C204=\"Log value\",DataLog!AJ204,\"\")","v":""},{"$f":"IF(DataLog!$C204=\"Log value\",DataLog!AK204,\"\")","v":""},{"$f":"IF(DataLog!$C204=\"Log value\",DataLog!AL204,\"\")","v":""},{"$f":"IF(DataLog!$C204=\"Log value\",DataLog!AM204,\"\")","v":""}]
[null,null,"Standard","Standard -  - ",null,null,{"$f":"IF(DataLog!$C205=\"Log value\",DataLog!D205&\"_\"&TEXT(DataLog!B205,\"åååå-mm-dd\"),\"\")","v":""},{"$f":"IF(DataLog!$C205=\"Log value\",DataLog!E205,\"\")","v":""},{"$f":"IF(DataLog!$C205=\"Log value\",DataLog!F205,\"\")","v":""},{"$f":"IF(DataLog!$C205=\"Log value\",DataLog!G205,\"\")","v":""},{"$f":"IF(DataLog!$C205=\"Log value\",DataLog!H205,\"\")","v":""},{"$f":"IF(DataLog!$C205=\"Log value\",DataLog!I205,\"\")","v":""},{"$f":"IF(DataLog!$C205=\"Log value\",DataLog!J205,\"\")","v":""},{"$f":"IF(DataLog!$C205=\"Log value\",DataLog!K205,\"\")","v":""},{"$f":"IF(DataLog!$C205=\"Log value\",DataLog!L205,\"\")","v":""},{"$f":"IF(DataLog!$C205=\"Log value\",DataLog!M205,\"\")","v":""},{"$f":"IF(DataLog!$C205=\"Log value\",DataLog!N205,\"\")","v":""},{"$f":"IF(DataLog!$C205=\"Log value\",DataLog!O205,\"\")","v":""},{"$f":"IF(DataLog!$C205=\"Log value\",DataLog!P205,\"\")","v":""},{"$f":"IF(DataLog!$C205=\"Log value\",DataLog!Q205,\"\")","v":""},{"$f":"IF(DataLog!$C205=\"Log value\",DataLog!R205,\"\")","v":""},{"$f":"IF(DataLog!$C205=\"Log value\",DataLog!S205,\"\")","v":""},{"$f":"IF(DataLog!$C205=\"Log value\",DataLog!T205,\"\")","v":""},{"$f":"IF(DataLog!$C205=\"Log value\",DataLog!U205,\"\")","v":""},{"$f":"IF(DataLog!$C205=\"Log value\",DataLog!V205,\"\")","v":""},{"$f":"IF(DataLog!$C205=\"Log value\",DataLog!W205,\"\")","v":""},{"$f":"IF(DataLog!$C205=\"Log value\",DataLog!X205,\"\")","v":""},{"$f":"IF(DataLog!$C205=\"Log value\",DataLog!Y205,\"\")","v":""},{"$f":"IF(DataLog!$C205=\"Log value\",DataLog!Z205,\"\")","v":""},{"$f":"IF(DataLog!$C205=\"Log value\",DataLog!AA205,\"\")","v":""},{"$f":"IF(DataLog!$C205=\"Log value\",DataLog!AB205,\"\")","v":""},{"$f":"IF(DataLog!$C205=\"Log value\",DataLog!AC205,\"\")","v":""},{"$f":"IF(DataLog!$C205=\"Log value\",DataLog!AD205,\"\")","v":""},{"$f":"IF(DataLog!$C205=\"Log value\",DataLog!AE205,\"\")","v":""},{"$f":"IF(DataLog!$C205=\"Log value\",DataLog!AF205,\"\")","v":""},{"$f":"IF(DataLog!$C205=\"Log value\",DataLog!AG205,\"\")","v":""},{"$f":"IF(DataLog!$C205=\"Log value\",DataLog!AH205,\"\")","v":""},{"$f":"IF(DataLog!$C205=\"Log value\",DataLog!AI205,\"\")","v":""},{"$f":"IF(DataLog!$C205=\"Log value\",DataLog!AJ205,\"\")","v":""},{"$f":"IF(DataLog!$C205=\"Log value\",DataLog!AK205,\"\")","v":""},{"$f":"IF(DataLog!$C205=\"Log value\",DataLog!AL205,\"\")","v":""},{"$f":"IF(DataLog!$C205=\"Log value\",DataLog!AM205,\"\")","v":""}]
[null,null,"Standard","Standard -  - ",null,null,{"$f":"IF(DataLog!$C206=\"Log value\",DataLog!D206&\"_\"&TEXT(DataLog!B206,\"åååå-mm-dd\"),\"\")","v":""},{"$f":"IF(DataLog!$C206=\"Log value\",DataLog!E206,\"\")","v":""},{"$f":"IF(DataLog!$C206=\"Log value\",DataLog!F206,\"\")","v":""},{"$f":"IF(DataLog!$C206=\"Log value\",DataLog!G206,\"\")","v":""},{"$f":"IF(DataLog!$C206=\"Log value\",DataLog!H206,\"\")","v":""},{"$f":"IF(DataLog!$C206=\"Log value\",DataLog!I206,\"\")","v":""},{"$f":"IF(DataLog!$C206=\"Log value\",DataLog!J206,\"\")","v":""},{"$f":"IF(DataLog!$C206=\"Log value\",DataLog!K206,\"\")","v":""},{"$f":"IF(DataLog!$C206=\"Log value\",DataLog!L206,\"\")","v":""},{"$f":"IF(DataLog!$C206=\"Log value\",DataLog!M206,\"\")","v":""},{"$f":"IF(DataLog!$C206=\"Log value\",DataLog!N206,\"\")","v":""},{"$f":"IF(DataLog!$C206=\"Log value\",DataLog!O206,\"\")","v":""},{"$f":"IF(DataLog!$C206=\"Log value\",DataLog!P206,\"\")","v":""},{"$f":"IF(DataLog!$C206=\"Log value\",DataLog!Q206,\"\")","v":""},{"$f":"IF(DataLog!$C206=\"Log value\",DataLog!R206,\"\")","v":""},{"$f":"IF(DataLog!$C206=\"Log value\",DataLog!S206,\"\")","v":""},{"$f":"IF(DataLog!$C206=\"Log value\",DataLog!T206,\"\")","v":""},{"$f":"IF(DataLog!$C206=\"Log value\",DataLog!U206,\"\")","v":""},{"$f":"IF(DataLog!$C206=\"Log value\",DataLog!V206,\"\")","v":""},{"$f":"IF(DataLog!$C206=\"Log value\",DataLog!W206,\"\")","v":""},{"$f":"IF(DataLog!$C206=\"Log value\",DataLog!X206,\"\")","v":""},{"$f":"IF(DataLog!$C206=\"Log value\",DataLog!Y206,\"\")","v":""},{"$f":"IF(DataLog!$C206=\"Log value\",DataLog!Z206,\"\")","v":""},{"$f":"IF(DataLog!$C206=\"Log value\",DataLog!AA206,\"\")","v":""},{"$f":"IF(DataLog!$C206=\"Log value\",DataLog!AB206,\"\")","v":""},{"$f":"IF(DataLog!$C206=\"Log value\",DataLog!AC206,\"\")","v":""},{"$f":"IF(DataLog!$C206=\"Log value\",DataLog!AD206,\"\")","v":""},{"$f":"IF(DataLog!$C206=\"Log value\",DataLog!AE206,\"\")","v":""},{"$f":"IF(DataLog!$C206=\"Log value\",DataLog!AF206,\"\")","v":""},{"$f":"IF(DataLog!$C206=\"Log value\",DataLog!AG206,\"\")","v":""},{"$f":"IF(DataLog!$C206=\"Log value\",DataLog!AH206,\"\")","v":""},{"$f":"IF(DataLog!$C206=\"Log value\",DataLog!AI206,\"\")","v":""},{"$f":"IF(DataLog!$C206=\"Log value\",DataLog!AJ206,\"\")","v":""},{"$f":"IF(DataLog!$C206=\"Log value\",DataLog!AK206,\"\")","v":""},{"$f":"IF(DataLog!$C206=\"Log value\",DataLog!AL206,\"\")","v":""},{"$f":"IF(DataLog!$C206=\"Log value\",DataLog!AM206,\"\")","v":""}]
[null,null,"Standard","Standard -  - ",null,null,{"$f":"IF(DataLog!$C207=\"Log value\",DataLog!D207&\"_\"&TEXT(DataLog!B207,\"åååå-mm-dd\"),\"\")","v":""},{"$f":"IF(DataLog!$C207=\"Log value\",DataLog!E207,\"\")","v":""},{"$f":"IF(DataLog!$C207=\"Log value\",DataLog!F207,\"\")","v":""},{"$f":"IF(DataLog!$C207=\"Log value\",DataLog!G207,\"\")","v":""},{"$f":"IF(DataLog!$C207=\"Log value\",DataLog!H207,\"\")","v":""},{"$f":"IF(DataLog!$C207=\"Log value\",DataLog!I207,\"\")","v":""},{"$f":"IF(DataLog!$C207=\"Log value\",DataLog!J207,\"\")","v":""},{"$f":"IF(DataLog!$C207=\"Log value\",DataLog!K207,\"\")","v":""},{"$f":"IF(DataLog!$C207=\"Log value\",DataLog!L207,\"\")","v":""},{"$f":"IF(DataLog!$C207=\"Log value\",DataLog!M207,\"\")","v":""},{"$f":"IF(DataLog!$C207=\"Log value\",DataLog!N207,\"\")","v":""},{"$f":"IF(DataLog!$C207=\"Log value\",DataLog!O207,\"\")","v":""},{"$f":"IF(DataLog!$C207=\"Log value\",DataLog!P207,\"\")","v":""},{"$f":"IF(DataLog!$C207=\"Log value\",DataLog!Q207,\"\")","v":""},{"$f":"IF(DataLog!$C207=\"Log value\",DataLog!R207,\"\")","v":""},{"$f":"IF(DataLog!$C207=\"Log value\",DataLog!S207,\"\")","v":""},{"$f":"IF(DataLog!$C207=\"Log value\",DataLog!T207,\"\")","v":""},{"$f":"IF(DataLog!$C207=\"Log value\",DataLog!U207,\"\")","v":""},{"$f":"IF(DataLog!$C207=\"Log value\",DataLog!V207,\"\")","v":""},{"$f":"IF(DataLog!$C207=\"Log value\",DataLog!W207,\"\")","v":""},{"$f":"IF(DataLog!$C207=\"Log value\",DataLog!X207,\"\")","v":""},{"$f":"IF(DataLog!$C207=\"Log value\",DataLog!Y207,\"\")","v":""},{"$f":"IF(DataLog!$C207=\"Log value\",DataLog!Z207,\"\")","v":""},{"$f":"IF(DataLog!$C207=\"Log value\",DataLog!AA207,\"\")","v":""},{"$f":"IF(DataLog!$C207=\"Log value\",DataLog!AB207,\"\")","v":""},{"$f":"IF(DataLog!$C207=\"Log value\",DataLog!AC207,\"\")","v":""},{"$f":"IF(DataLog!$C207=\"Log value\",DataLog!AD207,\"\")","v":""},{"$f":"IF(DataLog!$C207=\"Log value\",DataLog!AE207,\"\")","v":""},{"$f":"IF(DataLog!$C207=\"Log value\",DataLog!AF207,\"\")","v":""},{"$f":"IF(DataLog!$C207=\"Log value\",DataLog!AG207,\"\")","v":""},{"$f":"IF(DataLog!$C207=\"Log value\",DataLog!AH207,\"\")","v":""},{"$f":"IF(DataLog!$C207=\"Log value\",DataLog!AI207,\"\")","v":""},{"$f":"IF(DataLog!$C207=\"Log value\",DataLog!AJ207,\"\")","v":""},{"$f":"IF(DataLog!$C207=\"Log value\",DataLog!AK207,\"\")","v":""},{"$f":"IF(DataLog!$C207=\"Log value\",DataLog!AL207,\"\")","v":""},{"$f":"IF(DataLog!$C207=\"Log value\",DataLog!AM207,\"\")","v":""}]
[null,null,"Standard","Standard -  - ",null,null,{"$f":"IF(DataLog!$C208=\"Log value\",DataLog!D208&\"_\"&TEXT(DataLog!B208,\"åååå-mm-dd\"),\"\")","v":""},{"$f":"IF(DataLog!$C208=\"Log value\",DataLog!E208,\"\")","v":""},{"$f":"IF(DataLog!$C208=\"Log value\",DataLog!F208,\"\")","v":""},{"$f":"IF(DataLog!$C208=\"Log value\",DataLog!G208,\"\")","v":""},{"$f":"IF(DataLog!$C208=\"Log value\",DataLog!H208,\"\")","v":""},{"$f":"IF(DataLog!$C208=\"Log value\",DataLog!I208,\"\")","v":""},{"$f":"IF(DataLog!$C208=\"Log value\",DataLog!J208,\"\")","v":""},{"$f":"IF(DataLog!$C208=\"Log value\",DataLog!K208,\"\")","v":""},{"$f":"IF(DataLog!$C208=\"Log value\",DataLog!L208,\"\")","v":""},{"$f":"IF(DataLog!$C208=\"Log value\",DataLog!M208,\"\")","v":""},{"$f":"IF(DataLog!$C208=\"Log value\",DataLog!N208,\"\")","v":""},{"$f":"IF(DataLog!$C208=\"Log value\",DataLog!O208,\"\")","v":""},{"$f":"IF(DataLog!$C208=\"Log value\",DataLog!P208,\"\")","v":""},{"$f":"IF(DataLog!$C208=\"Log value\",DataLog!Q208,\"\")","v":""},{"$f":"IF(DataLog!$C208=\"Log value\",DataLog!R208,\"\")","v":""},{"$f":"IF(DataLog!$C208=\"Log value\",DataLog!S208,\"\")","v":""},{"$f":"IF(DataLog!$C208=\"Log value\",DataLog!T208,\"\")","v":""},{"$f":"IF(DataLog!$C208=\"Log value\",DataLog!U208,\"\")","v":""},{"$f":"IF(DataLog!$C208=\"Log value\",DataLog!V208,\"\")","v":""},{"$f":"IF(DataLog!$C208=\"Log value\",DataLog!W208,\"\")","v":""},{"$f":"IF(DataLog!$C208=\"Log value\",DataLog!X208,\"\")","v":""},{"$f":"IF(DataLog!$C208=\"Log value\",DataLog!Y208,\"\")","v":""},{"$f":"IF(DataLog!$C208=\"Log value\",DataLog!Z208,\"\")","v":""},{"$f":"IF(DataLog!$C208=\"Log value\",DataLog!AA208,\"\")","v":""},{"$f":"IF(DataLog!$C208=\"Log value\",DataLog!AB208,\"\")","v":""},{"$f":"IF(DataLog!$C208=\"Log value\",DataLog!AC208,\"\")","v":""},{"$f":"IF(DataLog!$C208=\"Log value\",DataLog!AD208,\"\")","v":""},{"$f":"IF(DataLog!$C208=\"Log value\",DataLog!AE208,\"\")","v":""},{"$f":"IF(DataLog!$C208=\"Log value\",DataLog!AF208,\"\")","v":""},{"$f":"IF(DataLog!$C208=\"Log value\",DataLog!AG208,\"\")","v":""},{"$f":"IF(DataLog!$C208=\"Log value\",DataLog!AH208,\"\")","v":""},{"$f":"IF(DataLog!$C208=\"Log value\",DataLog!AI208,\"\")","v":""},{"$f":"IF(DataLog!$C208=\"Log value\",DataLog!AJ208,\"\")","v":""},{"$f":"IF(DataLog!$C208=\"Log value\",DataLog!AK208,\"\")","v":""},{"$f":"IF(DataLog!$C208=\"Log value\",DataLog!AL208,\"\")","v":""},{"$f":"IF(DataLog!$C208=\"Log value\",DataLog!AM208,\"\")","v":""}]
[null,null,"Standard","Standard -  - ",null,null,{"$f":"IF(DataLog!$C209=\"Log value\",DataLog!D209&\"_\"&TEXT(DataLog!B209,\"åååå-mm-dd\"),\"\")","v":""},{"$f":"IF(DataLog!$C209=\"Log value\",DataLog!E209,\"\")","v":""},{"$f":"IF(DataLog!$C209=\"Log value\",DataLog!F209,\"\")","v":""},{"$f":"IF(DataLog!$C209=\"Log value\",DataLog!G209,\"\")","v":""},{"$f":"IF(DataLog!$C209=\"Log value\",DataLog!H209,\"\")","v":""},{"$f":"IF(DataLog!$C209=\"Log value\",DataLog!I209,\"\")","v":""},{"$f":"IF(DataLog!$C209=\"Log value\",DataLog!J209,\"\")","v":""},{"$f":"IF(DataLog!$C209=\"Log value\",DataLog!K209,\"\")","v":""},{"$f":"IF(DataLog!$C209=\"Log value\",DataLog!L209,\"\")","v":""},{"$f":"IF(DataLog!$C209=\"Log value\",DataLog!M209,\"\")","v":""},{"$f":"IF(DataLog!$C209=\"Log value\",DataLog!N209,\"\")","v":""},{"$f":"IF(DataLog!$C209=\"Log value\",DataLog!O209,\"\")","v":""},{"$f":"IF(DataLog!$C209=\"Log value\",DataLog!P209,\"\")","v":""},{"$f":"IF(DataLog!$C209=\"Log value\",DataLog!Q209,\"\")","v":""},{"$f":"IF(DataLog!$C209=\"Log value\",DataLog!R209,\"\")","v":""},{"$f":"IF(DataLog!$C209=\"Log value\",DataLog!S209,\"\")","v":""},{"$f":"IF(DataLog!$C209=\"Log value\",DataLog!T209,\"\")","v":""},{"$f":"IF(DataLog!$C209=\"Log value\",DataLog!U209,\"\")","v":""},{"$f":"IF(DataLog!$C209=\"Log value\",DataLog!V209,\"\")","v":""},{"$f":"IF(DataLog!$C209=\"Log value\",DataLog!W209,\"\")","v":""},{"$f":"IF(DataLog!$C209=\"Log value\",DataLog!X209,\"\")","v":""},{"$f":"IF(DataLog!$C209=\"Log value\",DataLog!Y209,\"\")","v":""},{"$f":"IF(DataLog!$C209=\"Log value\",DataLog!Z209,\"\")","v":""},{"$f":"IF(DataLog!$C209=\"Log value\",DataLog!AA209,\"\")","v":""},{"$f":"IF(DataLog!$C209=\"Log value\",DataLog!AB209,\"\")","v":""},{"$f":"IF(DataLog!$C209=\"Log value\",DataLog!AC209,\"\")","v":""},{"$f":"IF(DataLog!$C209=\"Log value\",DataLog!AD209,\"\")","v":""},{"$f":"IF(DataLog!$C209=\"Log value\",DataLog!AE209,\"\")","v":""},{"$f":"IF(DataLog!$C209=\"Log value\",DataLog!AF209,\"\")","v":""},{"$f":"IF(DataLog!$C209=\"Log value\",DataLog!AG209,\"\")","v":""},{"$f":"IF(DataLog!$C209=\"Log value\",DataLog!AH209,\"\")","v":""},{"$f":"IF(DataLog!$C209=\"Log value\",DataLog!AI209,\"\")","v":""},{"$f":"IF(DataLog!$C209=\"Log value\",DataLog!AJ209,\"\")","v":""},{"$f":"IF(DataLog!$C209=\"Log value\",DataLog!AK209,\"\")","v":""},{"$f":"IF(DataLog!$C209=\"Log value\",DataLog!AL209,\"\")","v":""},{"$f":"IF(DataLog!$C209=\"Log value\",DataLog!AM209,\"\")","v":""}]
[null,null,"Standard","Standard -  - ",null,null,{"$f":"IF(DataLog!$C210=\"Log value\",DataLog!D210&\"_\"&TEXT(DataLog!B210,\"åååå-mm-dd\"),\"\")","v":""},{"$f":"IF(DataLog!$C210=\"Log value\",DataLog!E210,\"\")","v":""},{"$f":"IF(DataLog!$C210=\"Log value\",DataLog!F210,\"\")","v":""},{"$f":"IF(DataLog!$C210=\"Log value\",DataLog!G210,\"\")","v":""},{"$f":"IF(DataLog!$C210=\"Log value\",DataLog!H210,\"\")","v":""},{"$f":"IF(DataLog!$C210=\"Log value\",DataLog!I210,\"\")","v":""},{"$f":"IF(DataLog!$C210=\"Log value\",DataLog!J210,\"\")","v":""},{"$f":"IF(DataLog!$C210=\"Log value\",DataLog!K210,\"\")","v":""},{"$f":"IF(DataLog!$C210=\"Log value\",DataLog!L210,\"\")","v":""},{"$f":"IF(DataLog!$C210=\"Log value\",DataLog!M210,\"\")","v":""},{"$f":"IF(DataLog!$C210=\"Log value\",DataLog!N210,\"\")","v":""},{"$f":"IF(DataLog!$C210=\"Log value\",DataLog!O210,\"\")","v":""},{"$f":"IF(DataLog!$C210=\"Log value\",DataLog!P210,\"\")","v":""},{"$f":"IF(DataLog!$C210=\"Log value\",DataLog!Q210,\"\")","v":""},{"$f":"IF(DataLog!$C210=\"Log value\",DataLog!R210,\"\")","v":""},{"$f":"IF(DataLog!$C210=\"Log value\",DataLog!S210,\"\")","v":""},{"$f":"IF(DataLog!$C210=\"Log value\",DataLog!T210,\"\")","v":""},{"$f":"IF(DataLog!$C210=\"Log value\",DataLog!U210,\"\")","v":""},{"$f":"IF(DataLog!$C210=\"Log value\",DataLog!V210,\"\")","v":""},{"$f":"IF(DataLog!$C210=\"Log value\",DataLog!W210,\"\")","v":""},{"$f":"IF(DataLog!$C210=\"Log value\",DataLog!X210,\"\")","v":""},{"$f":"IF(DataLog!$C210=\"Log value\",DataLog!Y210,\"\")","v":""},{"$f":"IF(DataLog!$C210=\"Log value\",DataLog!Z210,\"\")","v":""},{"$f":"IF(DataLog!$C210=\"Log value\",DataLog!AA210,\"\")","v":""},{"$f":"IF(DataLog!$C210=\"Log value\",DataLog!AB210,\"\")","v":""},{"$f":"IF(DataLog!$C210=\"Log value\",DataLog!AC210,\"\")","v":""},{"$f":"IF(DataLog!$C210=\"Log value\",DataLog!AD210,\"\")","v":""},{"$f":"IF(DataLog!$C210=\"Log value\",DataLog!AE210,\"\")","v":""},{"$f":"IF(DataLog!$C210=\"Log value\",DataLog!AF210,\"\")","v":""},{"$f":"IF(DataLog!$C210=\"Log value\",DataLog!AG210,\"\")","v":""},{"$f":"IF(DataLog!$C210=\"Log value\",DataLog!AH210,\"\")","v":""},{"$f":"IF(DataLog!$C210=\"Log value\",DataLog!AI210,\"\")","v":""},{"$f":"IF(DataLog!$C210=\"Log value\",DataLog!AJ210,\"\")","v":""},{"$f":"IF(DataLog!$C210=\"Log value\",DataLog!AK210,\"\")","v":""},{"$f":"IF(DataLog!$C210=\"Log value\",DataLog!AL210,\"\")","v":""},{"$f":"IF(DataLog!$C210=\"Log value\",DataLog!AM210,\"\")","v":""}]
[null,null,"Standard","Standard -  - ",null,null,{"$f":"IF(DataLog!$C211=\"Log value\",DataLog!D211&\"_\"&TEXT(DataLog!B211,\"åååå-mm-dd\"),\"\")","v":""},{"$f":"IF(DataLog!$C211=\"Log value\",DataLog!E211,\"\")","v":""},{"$f":"IF(DataLog!$C211=\"Log value\",DataLog!F211,\"\")","v":""},{"$f":"IF(DataLog!$C211=\"Log value\",DataLog!G211,\"\")","v":""},{"$f":"IF(DataLog!$C211=\"Log value\",DataLog!H211,\"\")","v":""},{"$f":"IF(DataLog!$C211=\"Log value\",DataLog!I211,\"\")","v":""},{"$f":"IF(DataLog!$C211=\"Log value\",DataLog!J211,\"\")","v":""},{"$f":"IF(DataLog!$C211=\"Log value\",DataLog!K211,\"\")","v":""},{"$f":"IF(DataLog!$C211=\"Log value\",DataLog!L211,\"\")","v":""},{"$f":"IF(DataLog!$C211=\"Log value\",DataLog!M211,\"\")","v":""},{"$f":"IF(DataLog!$C211=\"Log value\",DataLog!N211,\"\")","v":""},{"$f":"IF(DataLog!$C211=\"Log value\",DataLog!O211,\"\")","v":""},{"$f":"IF(DataLog!$C211=\"Log value\",DataLog!P211,\"\")","v":""},{"$f":"IF(DataLog!$C211=\"Log value\",DataLog!Q211,\"\")","v":""},{"$f":"IF(DataLog!$C211=\"Log value\",DataLog!R211,\"\")","v":""},{"$f":"IF(DataLog!$C211=\"Log value\",DataLog!S211,\"\")","v":""},{"$f":"IF(DataLog!$C211=\"Log value\",DataLog!T211,\"\")","v":""},{"$f":"IF(DataLog!$C211=\"Log value\",DataLog!U211,\"\")","v":""},{"$f":"IF(DataLog!$C211=\"Log value\",DataLog!V211,\"\")","v":""},{"$f":"IF(DataLog!$C211=\"Log value\",DataLog!W211,\"\")","v":""},{"$f":"IF(DataLog!$C211=\"Log value\",DataLog!X211,\"\")","v":""},{"$f":"IF(DataLog!$C211=\"Log value\",DataLog!Y211,\"\")","v":""},{"$f":"IF(DataLog!$C211=\"Log value\",DataLog!Z211,\"\")","v":""},{"$f":"IF(DataLog!$C211=\"Log value\",DataLog!AA211,\"\")","v":""},{"$f":"IF(DataLog!$C211=\"Log value\",DataLog!AB211,\"\")","v":""},{"$f":"IF(DataLog!$C211=\"Log value\",DataLog!AC211,\"\")","v":""},{"$f":"IF(DataLog!$C211=\"Log value\",DataLog!AD211,\"\")","v":""},{"$f":"IF(DataLog!$C211=\"Log value\",DataLog!AE211,\"\")","v":""},{"$f":"IF(DataLog!$C211=\"Log value\",DataLog!AF211,\"\")","v":""},{"$f":"IF(DataLog!$C211=\"Log value\",DataLog!AG211,\"\")","v":""},{"$f":"IF(DataLog!$C211=\"Log value\",DataLog!AH211,\"\")","v":""},{"$f":"IF(DataLog!$C211=\"Log value\",DataLog!AI211,\"\")","v":""},{"$f":"IF(DataLog!$C211=\"Log value\",DataLog!AJ211,\"\")","v":""},{"$f":"IF(DataLog!$C211=\"Log value\",DataLog!AK211,\"\")","v":""},{"$f":"IF(DataLog!$C211=\"Log value\",DataLog!AL211,\"\")","v":""},{"$f":"IF(DataLog!$C211=\"Log value\",DataLog!AM211,\"\")","v":""}]
[null,null,"Standard","Standard -  - ",null,null,{"$f":"IF(DataLog!$C212=\"Log value\",DataLog!D212&\"_\"&TEXT(DataLog!B212,\"åååå-mm-dd\"),\"\")","v":""},{"$f":"IF(DataLog!$C212=\"Log value\",DataLog!E212,\"\")","v":""},{"$f":"IF(DataLog!$C212=\"Log value\",DataLog!F212,\"\")","v":""},{"$f":"IF(DataLog!$C212=\"Log value\",DataLog!G212,\"\")","v":""},{"$f":"IF(DataLog!$C212=\"Log value\",DataLog!H212,\"\")","v":""},{"$f":"IF(DataLog!$C212=\"Log value\",DataLog!I212,\"\")","v":""},{"$f":"IF(DataLog!$C212=\"Log value\",DataLog!J212,\"\")","v":""},{"$f":"IF(DataLog!$C212=\"Log value\",DataLog!K212,\"\")","v":""},{"$f":"IF(DataLog!$C212=\"Log value\",DataLog!L212,\"\")","v":""},{"$f":"IF(DataLog!$C212=\"Log value\",DataLog!M212,\"\")","v":""},{"$f":"IF(DataLog!$C212=\"Log value\",DataLog!N212,\"\")","v":""},{"$f":"IF(DataLog!$C212=\"Log value\",DataLog!O212,\"\")","v":""},{"$f":"IF(DataLog!$C212=\"Log value\",DataLog!P212,\"\")","v":""},{"$f":"IF(DataLog!$C212=\"Log value\",DataLog!Q212,\"\")","v":""},{"$f":"IF(DataLog!$C212=\"Log value\",DataLog!R212,\"\")","v":""},{"$f":"IF(DataLog!$C212=\"Log value\",DataLog!S212,\"\")","v":""},{"$f":"IF(DataLog!$C212=\"Log value\",DataLog!T212,\"\")","v":""},{"$f":"IF(DataLog!$C212=\"Log value\",DataLog!U212,\"\")","v":""},{"$f":"IF(DataLog!$C212=\"Log value\",DataLog!V212,\"\")","v":""},{"$f":"IF(DataLog!$C212=\"Log value\",DataLog!W212,\"\")","v":""},{"$f":"IF(DataLog!$C212=\"Log value\",DataLog!X212,\"\")","v":""},{"$f":"IF(DataLog!$C212=\"Log value\",DataLog!Y212,\"\")","v":""},{"$f":"IF(DataLog!$C212=\"Log value\",DataLog!Z212,\"\")","v":""},{"$f":"IF(DataLog!$C212=\"Log value\",DataLog!AA212,\"\")","v":""},{"$f":"IF(DataLog!$C212=\"Log value\",DataLog!AB212,\"\")","v":""},{"$f":"IF(DataLog!$C212=\"Log value\",DataLog!AC212,\"\")","v":""},{"$f":"IF(DataLog!$C212=\"Log value\",DataLog!AD212,\"\")","v":""},{"$f":"IF(DataLog!$C212=\"Log value\",DataLog!AE212,\"\")","v":""},{"$f":"IF(DataLog!$C212=\"Log value\",DataLog!AF212,\"\")","v":""},{"$f":"IF(DataLog!$C212=\"Log value\",DataLog!AG212,\"\")","v":""},{"$f":"IF(DataLog!$C212=\"Log value\",DataLog!AH212,\"\")","v":""},{"$f":"IF(DataLog!$C212=\"Log value\",DataLog!AI212,\"\")","v":""},{"$f":"IF(DataLog!$C212=\"Log value\",DataLog!AJ212,\"\")","v":""},{"$f":"IF(DataLog!$C212=\"Log value\",DataLog!AK212,\"\")","v":""},{"$f":"IF(DataLog!$C212=\"Log value\",DataLog!AL212,\"\")","v":""},{"$f":"IF(DataLog!$C212=\"Log value\",DataLog!AM212,\"\")","v":""}]
[null,null,"Standard","Standard -  - ",null,null,{"$f":"IF(DataLog!$C213=\"Log value\",DataLog!D213&\"_\"&TEXT(DataLog!B213,\"åååå-mm-dd\"),\"\")","v":""},{"$f":"IF(DataLog!$C213=\"Log value\",DataLog!E213,\"\")","v":""},{"$f":"IF(DataLog!$C213=\"Log value\",DataLog!F213,\"\")","v":""},{"$f":"IF(DataLog!$C213=\"Log value\",DataLog!G213,\"\")","v":""},{"$f":"IF(DataLog!$C213=\"Log value\",DataLog!H213,\"\")","v":""},{"$f":"IF(DataLog!$C213=\"Log value\",DataLog!I213,\"\")","v":""},{"$f":"IF(DataLog!$C213=\"Log value\",DataLog!J213,\"\")","v":""},{"$f":"IF(DataLog!$C213=\"Log value\",DataLog!K213,\"\")","v":""},{"$f":"IF(DataLog!$C213=\"Log value\",DataLog!L213,\"\")","v":""},{"$f":"IF(DataLog!$C213=\"Log value\",DataLog!M213,\"\")","v":""},{"$f":"IF(DataLog!$C213=\"Log value\",DataLog!N213,\"\")","v":""},{"$f":"IF(DataLog!$C213=\"Log value\",DataLog!O213,\"\")","v":""},{"$f":"IF(DataLog!$C213=\"Log value\",DataLog!P213,\"\")","v":""},{"$f":"IF(DataLog!$C213=\"Log value\",DataLog!Q213,\"\")","v":""},{"$f":"IF(DataLog!$C213=\"Log value\",DataLog!R213,\"\")","v":""},{"$f":"IF(DataLog!$C213=\"Log value\",DataLog!S213,\"\")","v":""},{"$f":"IF(DataLog!$C213=\"Log value\",DataLog!T213,\"\")","v":""},{"$f":"IF(DataLog!$C213=\"Log value\",DataLog!U213,\"\")","v":""},{"$f":"IF(DataLog!$C213=\"Log value\",DataLog!V213,\"\")","v":""},{"$f":"IF(DataLog!$C213=\"Log value\",DataLog!W213,\"\")","v":""},{"$f":"IF(DataLog!$C213=\"Log value\",DataLog!X213,\"\")","v":""},{"$f":"IF(DataLog!$C213=\"Log value\",DataLog!Y213,\"\")","v":""},{"$f":"IF(DataLog!$C213=\"Log value\",DataLog!Z213,\"\")","v":""},{"$f":"IF(DataLog!$C213=\"Log value\",DataLog!AA213,\"\")","v":""},{"$f":"IF(DataLog!$C213=\"Log value\",DataLog!AB213,\"\")","v":""},{"$f":"IF(DataLog!$C213=\"Log value\",DataLog!AC213,\"\")","v":""},{"$f":"IF(DataLog!$C213=\"Log value\",DataLog!AD213,\"\")","v":""},{"$f":"IF(DataLog!$C213=\"Log value\",DataLog!AE213,\"\")","v":""},{"$f":"IF(DataLog!$C213=\"Log value\",DataLog!AF213,\"\")","v":""},{"$f":"IF(DataLog!$C213=\"Log value\",DataLog!AG213,\"\")","v":""},{"$f":"IF(DataLog!$C213=\"Log value\",DataLog!AH213,\"\")","v":""},{"$f":"IF(DataLog!$C213=\"Log value\",DataLog!AI213,\"\")","v":""},{"$f":"IF(DataLog!$C213=\"Log value\",DataLog!AJ213,\"\")","v":""},{"$f":"IF(DataLog!$C213=\"Log value\",DataLog!AK213,\"\")","v":""},{"$f":"IF(DataLog!$C213=\"Log value\",DataLog!AL213,\"\")","v":""},{"$f":"IF(DataLog!$C213=\"Log value\",DataLog!AM213,\"\")","v":""}]
[null,null,"Standard","Standard -  - ",null,null,{"$f":"IF(DataLog!$C214=\"Log value\",DataLog!D214&\"_\"&TEXT(DataLog!B214,\"åååå-mm-dd\"),\"\")","v":""},{"$f":"IF(DataLog!$C214=\"Log value\",DataLog!E214,\"\")","v":""},{"$f":"IF(DataLog!$C214=\"Log value\",DataLog!F214,\"\")","v":""},{"$f":"IF(DataLog!$C214=\"Log value\",DataLog!G214,\"\")","v":""},{"$f":"IF(DataLog!$C214=\"Log value\",DataLog!H214,\"\")","v":""},{"$f":"IF(DataLog!$C214=\"Log value\",DataLog!I214,\"\")","v":""},{"$f":"IF(DataLog!$C214=\"Log value\",DataLog!J214,\"\")","v":""},{"$f":"IF(DataLog!$C214=\"Log value\",DataLog!K214,\"\")","v":""},{"$f":"IF(DataLog!$C214=\"Log value\",DataLog!L214,\"\")","v":""},{"$f":"IF(DataLog!$C214=\"Log value\",DataLog!M214,\"\")","v":""},{"$f":"IF(DataLog!$C214=\"Log value\",DataLog!N214,\"\")","v":""},{"$f":"IF(DataLog!$C214=\"Log value\",DataLog!O214,\"\")","v":""},{"$f":"IF(DataLog!$C214=\"Log value\",DataLog!P214,\"\")","v":""},{"$f":"IF(DataLog!$C214=\"Log value\",DataLog!Q214,\"\")","v":""},{"$f":"IF(DataLog!$C214=\"Log value\",DataLog!R214,\"\")","v":""},{"$f":"IF(DataLog!$C214=\"Log value\",DataLog!S214,\"\")","v":""},{"$f":"IF(DataLog!$C214=\"Log value\",DataLog!T214,\"\")","v":""},{"$f":"IF(DataLog!$C214=\"Log value\",DataLog!U214,\"\")","v":""},{"$f":"IF(DataLog!$C214=\"Log value\",DataLog!V214,\"\")","v":""},{"$f":"IF(DataLog!$C214=\"Log value\",DataLog!W214,\"\")","v":""},{"$f":"IF(DataLog!$C214=\"Log value\",DataLog!X214,\"\")","v":""},{"$f":"IF(DataLog!$C214=\"Log value\",DataLog!Y214,\"\")","v":""},{"$f":"IF(DataLog!$C214=\"Log value\",DataLog!Z214,\"\")","v":""},{"$f":"IF(DataLog!$C214=\"Log value\",DataLog!AA214,\"\")","v":""},{"$f":"IF(DataLog!$C214=\"Log value\",DataLog!AB214,\"\")","v":""},{"$f":"IF(DataLog!$C214=\"Log value\",DataLog!AC214,\"\")","v":""},{"$f":"IF(DataLog!$C214=\"Log value\",DataLog!AD214,\"\")","v":""},{"$f":"IF(DataLog!$C214=\"Log value\",DataLog!AE214,\"\")","v":""},{"$f":"IF(DataLog!$C214=\"Log value\",DataLog!AF214,\"\")","v":""},{"$f":"IF(DataLog!$C214=\"Log value\",DataLog!AG214,\"\")","v":""},{"$f":"IF(DataLog!$C214=\"Log value\",DataLog!AH214,\"\")","v":""},{"$f":"IF(DataLog!$C214=\"Log value\",DataLog!AI214,\"\")","v":""},{"$f":"IF(DataLog!$C214=\"Log value\",DataLog!AJ214,\"\")","v":""},{"$f":"IF(DataLog!$C214=\"Log value\",DataLog!AK214,\"\")","v":""},{"$f":"IF(DataLog!$C214=\"Log value\",DataLog!AL214,\"\")","v":""},{"$f":"IF(DataLog!$C214=\"Log value\",DataLog!AM214,\"\")","v":""}]
[null,null,"Standard","Standard -  - ",null,null,{"$f":"IF(DataLog!$C215=\"Log value\",DataLog!D215&\"_\"&TEXT(DataLog!B215,\"åååå-mm-dd\"),\"\")","v":""},{"$f":"IF(DataLog!$C215=\"Log value\",DataLog!E215,\"\")","v":""},{"$f":"IF(DataLog!$C215=\"Log value\",DataLog!F215,\"\")","v":""},{"$f":"IF(DataLog!$C215=\"Log value\",DataLog!G215,\"\")","v":""},{"$f":"IF(DataLog!$C215=\"Log value\",DataLog!H215,\"\")","v":""},{"$f":"IF(DataLog!$C215=\"Log value\",DataLog!I215,\"\")","v":""},{"$f":"IF(DataLog!$C215=\"Log value\",DataLog!J215,\"\")","v":""},{"$f":"IF(DataLog!$C215=\"Log value\",DataLog!K215,\"\")","v":""},{"$f":"IF(DataLog!$C215=\"Log value\",DataLog!L215,\"\")","v":""},{"$f":"IF(DataLog!$C215=\"Log value\",DataLog!M215,\"\")","v":""},{"$f":"IF(DataLog!$C215=\"Log value\",DataLog!N215,\"\")","v":""},{"$f":"IF(DataLog!$C215=\"Log value\",DataLog!O215,\"\")","v":""},{"$f":"IF(DataLog!$C215=\"Log value\",DataLog!P215,\"\")","v":""},{"$f":"IF(DataLog!$C215=\"Log value\",DataLog!Q215,\"\")","v":""},{"$f":"IF(DataLog!$C215=\"Log value\",DataLog!R215,\"\")","v":""},{"$f":"IF(DataLog!$C215=\"Log value\",DataLog!S215,\"\")","v":""},{"$f":"IF(DataLog!$C215=\"Log value\",DataLog!T215,\"\")","v":""},{"$f":"IF(DataLog!$C215=\"Log value\",DataLog!U215,\"\")","v":""},{"$f":"IF(DataLog!$C215=\"Log value\",DataLog!V215,\"\")","v":""},{"$f":"IF(DataLog!$C215=\"Log value\",DataLog!W215,\"\")","v":""},{"$f":"IF(DataLog!$C215=\"Log value\",DataLog!X215,\"\")","v":""},{"$f":"IF(DataLog!$C215=\"Log value\",DataLog!Y215,\"\")","v":""},{"$f":"IF(DataLog!$C215=\"Log value\",DataLog!Z215,\"\")","v":""},{"$f":"IF(DataLog!$C215=\"Log value\",DataLog!AA215,\"\")","v":""},{"$f":"IF(DataLog!$C215=\"Log value\",DataLog!AB215,\"\")","v":""},{"$f":"IF(DataLog!$C215=\"Log value\",DataLog!AC215,\"\")","v":""},{"$f":"IF(DataLog!$C215=\"Log value\",DataLog!AD215,\"\")","v":""},{"$f":"IF(DataLog!$C215=\"Log value\",DataLog!AE215,\"\")","v":""},{"$f":"IF(DataLog!$C215=\"Log value\",DataLog!AF215,\"\")","v":""},{"$f":"IF(DataLog!$C215=\"Log value\",DataLog!AG215,\"\")","v":""},{"$f":"IF(DataLog!$C215=\"Log value\",DataLog!AH215,\"\")","v":""},{"$f":"IF(DataLog!$C215=\"Log value\",DataLog!AI215,\"\")","v":""},{"$f":"IF(DataLog!$C215=\"Log value\",DataLog!AJ215,\"\")","v":""},{"$f":"IF(DataLog!$C215=\"Log value\",DataLog!AK215,\"\")","v":""},{"$f":"IF(DataLog!$C215=\"Log value\",DataLog!AL215,\"\")","v":""},{"$f":"IF(DataLog!$C215=\"Log value\",DataLog!AM215,\"\")","v":""}]
[null,null,"Standard","Standard -  - ",null,null,{"$f":"IF(DataLog!$C216=\"Log value\",DataLog!D216&\"_\"&TEXT(DataLog!B216,\"åååå-mm-dd\"),\"\")","v":""},{"$f":"IF(DataLog!$C216=\"Log value\",DataLog!E216,\"\")","v":""},{"$f":"IF(DataLog!$C216=\"Log value\",DataLog!F216,\"\")","v":""},{"$f":"IF(DataLog!$C216=\"Log value\",DataLog!G216,\"\")","v":""},{"$f":"IF(DataLog!$C216=\"Log value\",DataLog!H216,\"\")","v":""},{"$f":"IF(DataLog!$C216=\"Log value\",DataLog!I216,\"\")","v":""},{"$f":"IF(DataLog!$C216=\"Log value\",DataLog!J216,\"\")","v":""},{"$f":"IF(DataLog!$C216=\"Log value\",DataLog!K216,\"\")","v":""},{"$f":"IF(DataLog!$C216=\"Log value\",DataLog!L216,\"\")","v":""},{"$f":"IF(DataLog!$C216=\"Log value\",DataLog!M216,\"\")","v":""},{"$f":"IF(DataLog!$C216=\"Log value\",DataLog!N216,\"\")","v":""},{"$f":"IF(DataLog!$C216=\"Log value\",DataLog!O216,\"\")","v":""},{"$f":"IF(DataLog!$C216=\"Log value\",DataLog!P216,\"\")","v":""},{"$f":"IF(DataLog!$C216=\"Log value\",DataLog!Q216,\"\")","v":""},{"$f":"IF(DataLog!$C216=\"Log value\",DataLog!R216,\"\")","v":""},{"$f":"IF(DataLog!$C216=\"Log value\",DataLog!S216,\"\")","v":""},{"$f":"IF(DataLog!$C216=\"Log value\",DataLog!T216,\"\")","v":""},{"$f":"IF(DataLog!$C216=\"Log value\",DataLog!U216,\"\")","v":""},{"$f":"IF(DataLog!$C216=\"Log value\",DataLog!V216,\"\")","v":""},{"$f":"IF(DataLog!$C216=\"Log value\",DataLog!W216,\"\")","v":""},{"$f":"IF(DataLog!$C216=\"Log value\",DataLog!X216,\"\")","v":""},{"$f":"IF(DataLog!$C216=\"Log value\",DataLog!Y216,\"\")","v":""},{"$f":"IF(DataLog!$C216=\"Log value\",DataLog!Z216,\"\")","v":""},{"$f":"IF(DataLog!$C216=\"Log value\",DataLog!AA216,\"\")","v":""},{"$f":"IF(DataLog!$C216=\"Log value\",DataLog!AB216,\"\")","v":""},{"$f":"IF(DataLog!$C216=\"Log value\",DataLog!AC216,\"\")","v":""},{"$f":"IF(DataLog!$C216=\"Log value\",DataLog!AD216,\"\")","v":""},{"$f":"IF(DataLog!$C216=\"Log value\",DataLog!AE216,\"\")","v":""},{"$f":"IF(DataLog!$C216=\"Log value\",DataLog!AF216,\"\")","v":""},{"$f":"IF(DataLog!$C216=\"Log value\",DataLog!AG216,\"\")","v":""},{"$f":"IF(DataLog!$C216=\"Log value\",DataLog!AH216,\"\")","v":""},{"$f":"IF(DataLog!$C216=\"Log value\",DataLog!AI216,\"\")","v":""},{"$f":"IF(DataLog!$C216=\"Log value\",DataLog!AJ216,\"\")","v":""},{"$f":"IF(DataLog!$C216=\"Log value\",DataLog!AK216,\"\")","v":""},{"$f":"IF(DataLog!$C216=\"Log value\",DataLog!AL216,\"\")","v":""},{"$f":"IF(DataLog!$C216=\"Log value\",DataLog!AM216,\"\")","v":""}]
[null,null,"Standard","Standard -  - ",null,null,{"$f":"IF(DataLog!$C217=\"Log value\",DataLog!D217&\"_\"&TEXT(DataLog!B217,\"åååå-mm-dd\"),\"\")","v":""},{"$f":"IF(DataLog!$C217=\"Log value\",DataLog!E217,\"\")","v":""},{"$f":"IF(DataLog!$C217=\"Log value\",DataLog!F217,\"\")","v":""},{"$f":"IF(DataLog!$C217=\"Log value\",DataLog!G217,\"\")","v":""},{"$f":"IF(DataLog!$C217=\"Log value\",DataLog!H217,\"\")","v":""},{"$f":"IF(DataLog!$C217=\"Log value\",DataLog!I217,\"\")","v":""},{"$f":"IF(DataLog!$C217=\"Log value\",DataLog!J217,\"\")","v":""},{"$f":"IF(DataLog!$C217=\"Log value\",DataLog!K217,\"\")","v":""},{"$f":"IF(DataLog!$C217=\"Log value\",DataLog!L217,\"\")","v":""},{"$f":"IF(DataLog!$C217=\"Log value\",DataLog!M217,\"\")","v":""},{"$f":"IF(DataLog!$C217=\"Log value\",DataLog!N217,\"\")","v":""},{"$f":"IF(DataLog!$C217=\"Log value\",DataLog!O217,\"\")","v":""},{"$f":"IF(DataLog!$C217=\"Log value\",DataLog!P217,\"\")","v":""},{"$f":"IF(DataLog!$C217=\"Log value\",DataLog!Q217,\"\")","v":""},{"$f":"IF(DataLog!$C217=\"Log value\",DataLog!R217,\"\")","v":""},{"$f":"IF(DataLog!$C217=\"Log value\",DataLog!S217,\"\")","v":""},{"$f":"IF(DataLog!$C217=\"Log value\",DataLog!T217,\"\")","v":""},{"$f":"IF(DataLog!$C217=\"Log value\",DataLog!U217,\"\")","v":""},{"$f":"IF(DataLog!$C217=\"Log value\",DataLog!V217,\"\")","v":""},{"$f":"IF(DataLog!$C217=\"Log value\",DataLog!W217,\"\")","v":""},{"$f":"IF(DataLog!$C217=\"Log value\",DataLog!X217,\"\")","v":""},{"$f":"IF(DataLog!$C217=\"Log value\",DataLog!Y217,\"\")","v":""},{"$f":"IF(DataLog!$C217=\"Log value\",DataLog!Z217,\"\")","v":""},{"$f":"IF(DataLog!$C217=\"Log value\",DataLog!AA217,\"\")","v":""},{"$f":"IF(DataLog!$C217=\"Log value\",DataLog!AB217,\"\")","v":""},{"$f":"IF(DataLog!$C217=\"Log value\",DataLog!AC217,\"\")","v":""},{"$f":"IF(DataLog!$C217=\"Log value\",DataLog!AD217,\"\")","v":""},{"$f":"IF(DataLog!$C217=\"Log value\",DataLog!AE217,\"\")","v":""},{"$f":"IF(DataLog!$C217=\"Log value\",DataLog!AF217,\"\")","v":""},{"$f":"IF(DataLog!$C217=\"Log value\",DataLog!AG217,\"\")","v":""},{"$f":"IF(DataLog!$C217=\"Log value\",DataLog!AH217,\"\")","v":""},{"$f":"IF(DataLog!$C217=\"Log value\",DataLog!AI217,\"\")","v":""},{"$f":"IF(DataLog!$C217=\"Log value\",DataLog!AJ217,\"\")","v":""},{"$f":"IF(DataLog!$C217=\"Log value\",DataLog!AK217,\"\")","v":""},{"$f":"IF(DataLog!$C217=\"Log value\",DataLog!AL217,\"\")","v":""},{"$f":"IF(DataLog!$C217=\"Log value\",DataLog!AM217,\"\")","v":""}]
[null,null,"Standard","Standard -  - ",null,null,{"$f":"IF(DataLog!$C218=\"Log value\",DataLog!D218&\"_\"&TEXT(DataLog!B218,\"åååå-mm-dd\"),\"\")","v":""},{"$f":"IF(DataLog!$C218=\"Log value\",DataLog!E218,\"\")","v":""},{"$f":"IF(DataLog!$C218=\"Log value\",DataLog!F218,\"\")","v":""},{"$f":"IF(DataLog!$C218=\"Log value\",DataLog!G218,\"\")","v":""},{"$f":"IF(DataLog!$C218=\"Log value\",DataLog!H218,\"\")","v":""},{"$f":"IF(DataLog!$C218=\"Log value\",DataLog!I218,\"\")","v":""},{"$f":"IF(DataLog!$C218=\"Log value\",DataLog!J218,\"\")","v":""},{"$f":"IF(DataLog!$C218=\"Log value\",DataLog!K218,\"\")","v":""},{"$f":"IF(DataLog!$C218=\"Log value\",DataLog!L218,\"\")","v":""},{"$f":"IF(DataLog!$C218=\"Log value\",DataLog!M218,\"\")","v":""},{"$f":"IF(DataLog!$C218=\"Log value\",DataLog!N218,\"\")","v":""},{"$f":"IF(DataLog!$C218=\"Log value\",DataLog!O218,\"\")","v":""},{"$f":"IF(DataLog!$C218=\"Log value\",DataLog!P218,\"\")","v":""},{"$f":"IF(DataLog!$C218=\"Log value\",DataLog!Q218,\"\")","v":""},{"$f":"IF(DataLog!$C218=\"Log value\",DataLog!R218,\"\")","v":""},{"$f":"IF(DataLog!$C218=\"Log value\",DataLog!S218,\"\")","v":""},{"$f":"IF(DataLog!$C218=\"Log value\",DataLog!T218,\"\")","v":""},{"$f":"IF(DataLog!$C218=\"Log value\",DataLog!U218,\"\")","v":""},{"$f":"IF(DataLog!$C218=\"Log value\",DataLog!V218,\"\")","v":""},{"$f":"IF(DataLog!$C218=\"Log value\",DataLog!W218,\"\")","v":""},{"$f":"IF(DataLog!$C218=\"Log value\",DataLog!X218,\"\")","v":""},{"$f":"IF(DataLog!$C218=\"Log value\",DataLog!Y218,\"\")","v":""},{"$f":"IF(DataLog!$C218=\"Log value\",DataLog!Z218,\"\")","v":""},{"$f":"IF(DataLog!$C218=\"Log value\",DataLog!AA218,\"\")","v":""},{"$f":"IF(DataLog!$C218=\"Log value\",DataLog!AB218,\"\")","v":""},{"$f":"IF(DataLog!$C218=\"Log value\",DataLog!AC218,\"\")","v":""},{"$f":"IF(DataLog!$C218=\"Log value\",DataLog!AD218,\"\")","v":""},{"$f":"IF(DataLog!$C218=\"Log value\",DataLog!AE218,\"\")","v":""},{"$f":"IF(DataLog!$C218=\"Log value\",DataLog!AF218,\"\")","v":""},{"$f":"IF(DataLog!$C218=\"Log value\",DataLog!AG218,\"\")","v":""},{"$f":"IF(DataLog!$C218=\"Log value\",DataLog!AH218,\"\")","v":""},{"$f":"IF(DataLog!$C218=\"Log value\",DataLog!AI218,\"\")","v":""},{"$f":"IF(DataLog!$C218=\"Log value\",DataLog!AJ218,\"\")","v":""},{"$f":"IF(DataLog!$C218=\"Log value\",DataLog!AK218,\"\")","v":""},{"$f":"IF(DataLog!$C218=\"Log value\",DataLog!AL218,\"\")","v":""},{"$f":"IF(DataLog!$C218=\"Log value\",DataLog!AM218,\"\")","v":""}]
[null,null,"Standard","Standard -  - ",null,null,{"$f":"IF(DataLog!$C219=\"Log value\",DataLog!D219&\"_\"&TEXT(DataLog!B219,\"åååå-mm-dd\"),\"\")","v":""},{"$f":"IF(DataLog!$C219=\"Log value\",DataLog!E219,\"\")","v":""},{"$f":"IF(DataLog!$C219=\"Log value\",DataLog!F219,\"\")","v":""},{"$f":"IF(DataLog!$C219=\"Log value\",DataLog!G219,\"\")","v":""},{"$f":"IF(DataLog!$C219=\"Log value\",DataLog!H219,\"\")","v":""},{"$f":"IF(DataLog!$C219=\"Log value\",DataLog!I219,\"\")","v":""},{"$f":"IF(DataLog!$C219=\"Log value\",DataLog!J219,\"\")","v":""},{"$f":"IF(DataLog!$C219=\"Log value\",DataLog!K219,\"\")","v":""},{"$f":"IF(DataLog!$C219=\"Log value\",DataLog!L219,\"\")","v":""},{"$f":"IF(DataLog!$C219=\"Log value\",DataLog!M219,\"\")","v":""},{"$f":"IF(DataLog!$C219=\"Log value\",DataLog!N219,\"\")","v":""},{"$f":"IF(DataLog!$C219=\"Log value\",DataLog!O219,\"\")","v":""},{"$f":"IF(DataLog!$C219=\"Log value\",DataLog!P219,\"\")","v":""},{"$f":"IF(DataLog!$C219=\"Log value\",DataLog!Q219,\"\")","v":""},{"$f":"IF(DataLog!$C219=\"Log value\",DataLog!R219,\"\")","v":""},{"$f":"IF(DataLog!$C219=\"Log value\",DataLog!S219,\"\")","v":""},{"$f":"IF(DataLog!$C219=\"Log value\",DataLog!T219,\"\")","v":""},{"$f":"IF(DataLog!$C219=\"Log value\",DataLog!U219,\"\")","v":""},{"$f":"IF(DataLog!$C219=\"Log value\",DataLog!V219,\"\")","v":""},{"$f":"IF(DataLog!$C219=\"Log value\",DataLog!W219,\"\")","v":""},{"$f":"IF(DataLog!$C219=\"Log value\",DataLog!X219,\"\")","v":""},{"$f":"IF(DataLog!$C219=\"Log value\",DataLog!Y219,\"\")","v":""},{"$f":"IF(DataLog!$C219=\"Log value\",DataLog!Z219,\"\")","v":""},{"$f":"IF(DataLog!$C219=\"Log value\",DataLog!AA219,\"\")","v":""},{"$f":"IF(DataLog!$C219=\"Log value\",DataLog!AB219,\"\")","v":""},{"$f":"IF(DataLog!$C219=\"Log value\",DataLog!AC219,\"\")","v":""},{"$f":"IF(DataLog!$C219=\"Log value\",DataLog!AD219,\"\")","v":""},{"$f":"IF(DataLog!$C219=\"Log value\",DataLog!AE219,\"\")","v":""},{"$f":"IF(DataLog!$C219=\"Log value\",DataLog!AF219,\"\")","v":""},{"$f":"IF(DataLog!$C219=\"Log value\",DataLog!AG219,\"\")","v":""},{"$f":"IF(DataLog!$C219=\"Log value\",DataLog!AH219,\"\")","v":""},{"$f":"IF(DataLog!$C219=\"Log value\",DataLog!AI219,\"\")","v":""},{"$f":"IF(DataLog!$C219=\"Log value\",DataLog!AJ219,\"\")","v":""},{"$f":"IF(DataLog!$C219=\"Log value\",DataLog!AK219,\"\")","v":""},{"$f":"IF(DataLog!$C219=\"Log value\",DataLog!AL219,\"\")","v":""},{"$f":"IF(DataLog!$C219=\"Log value\",DataLog!AM219,\"\")","v":""}]
[null,null,"Standard","Standard -  - ",null,null,{"$f":"IF(DataLog!$C220=\"Log value\",DataLog!D220&\"_\"&TEXT(DataLog!B220,\"åååå-mm-dd\"),\"\")","v":""},{"$f":"IF(DataLog!$C220=\"Log value\",DataLog!E220,\"\")","v":""},{"$f":"IF(DataLog!$C220=\"Log value\",DataLog!F220,\"\")","v":""},{"$f":"IF(DataLog!$C220=\"Log value\",DataLog!G220,\"\")","v":""},{"$f":"IF(DataLog!$C220=\"Log value\",DataLog!H220,\"\")","v":""},{"$f":"IF(DataLog!$C220=\"Log value\",DataLog!I220,\"\")","v":""},{"$f":"IF(DataLog!$C220=\"Log value\",DataLog!J220,\"\")","v":""},{"$f":"IF(DataLog!$C220=\"Log value\",DataLog!K220,\"\")","v":""},{"$f":"IF(DataLog!$C220=\"Log value\",DataLog!L220,\"\")","v":""},{"$f":"IF(DataLog!$C220=\"Log value\",DataLog!M220,\"\")","v":""},{"$f":"IF(DataLog!$C220=\"Log value\",DataLog!N220,\"\")","v":""},{"$f":"IF(DataLog!$C220=\"Log value\",DataLog!O220,\"\")","v":""},{"$f":"IF(DataLog!$C220=\"Log value\",DataLog!P220,\"\")","v":""},{"$f":"IF(DataLog!$C220=\"Log value\",DataLog!Q220,\"\")","v":""},{"$f":"IF(DataLog!$C220=\"Log value\",DataLog!R220,\"\")","v":""},{"$f":"IF(DataLog!$C220=\"Log value\",DataLog!S220,\"\")","v":""},{"$f":"IF(DataLog!$C220=\"Log value\",DataLog!T220,\"\")","v":""},{"$f":"IF(DataLog!$C220=\"Log value\",DataLog!U220,\"\")","v":""},{"$f":"IF(DataLog!$C220=\"Log value\",DataLog!V220,\"\")","v":""},{"$f":"IF(DataLog!$C220=\"Log value\",DataLog!W220,\"\")","v":""},{"$f":"IF(DataLog!$C220=\"Log value\",DataLog!X220,\"\")","v":""},{"$f":"IF(DataLog!$C220=\"Log value\",DataLog!Y220,\"\")","v":""},{"$f":"IF(DataLog!$C220=\"Log value\",DataLog!Z220,\"\")","v":""},{"$f":"IF(DataLog!$C220=\"Log value\",DataLog!AA220,\"\")","v":""},{"$f":"IF(DataLog!$C220=\"Log value\",DataLog!AB220,\"\")","v":""},{"$f":"IF(DataLog!$C220=\"Log value\",DataLog!AC220,\"\")","v":""},{"$f":"IF(DataLog!$C220=\"Log value\",DataLog!AD220,\"\")","v":""},{"$f":"IF(DataLog!$C220=\"Log value\",DataLog!AE220,\"\")","v":""},{"$f":"IF(DataLog!$C220=\"Log value\",DataLog!AF220,\"\")","v":""},{"$f":"IF(DataLog!$C220=\"Log value\",DataLog!AG220,\"\")","v":""},{"$f":"IF(DataLog!$C220=\"Log value\",DataLog!AH220,\"\")","v":""},{"$f":"IF(DataLog!$C220=\"Log value\",DataLog!AI220,\"\")","v":""},{"$f":"IF(DataLog!$C220=\"Log value\",DataLog!AJ220,\"\")","v":""},{"$f":"IF(DataLog!$C220=\"Log value\",DataLog!AK220,\"\")","v":""},{"$f":"IF(DataLog!$C220=\"Log value\",DataLog!AL220,\"\")","v":""},{"$f":"IF(DataLog!$C220=\"Log value\",DataLog!AM220,\"\")","v":""}]
[null,null,"Standard","Standard -  - ",null,null,{"$f":"IF(DataLog!$C221=\"Log value\",DataLog!D221&\"_\"&TEXT(DataLog!B221,\"åååå-mm-dd\"),\"\")","v":""},{"$f":"IF(DataLog!$C221=\"Log value\",DataLog!E221,\"\")","v":""},{"$f":"IF(DataLog!$C221=\"Log value\",DataLog!F221,\"\")","v":""},{"$f":"IF(DataLog!$C221=\"Log value\",DataLog!G221,\"\")","v":""},{"$f":"IF(DataLog!$C221=\"Log value\",DataLog!H221,\"\")","v":""},{"$f":"IF(DataLog!$C221=\"Log value\",DataLog!I221,\"\")","v":""},{"$f":"IF(DataLog!$C221=\"Log value\",DataLog!J221,\"\")","v":""},{"$f":"IF(DataLog!$C221=\"Log value\",DataLog!K221,\"\")","v":""},{"$f":"IF(DataLog!$C221=\"Log value\",DataLog!L221,\"\")","v":""},{"$f":"IF(DataLog!$C221=\"Log value\",DataLog!M221,\"\")","v":""},{"$f":"IF(DataLog!$C221=\"Log value\",DataLog!N221,\"\")","v":""},{"$f":"IF(DataLog!$C221=\"Log value\",DataLog!O221,\"\")","v":""},{"$f":"IF(DataLog!$C221=\"Log value\",DataLog!P221,\"\")","v":""},{"$f":"IF(DataLog!$C221=\"Log value\",DataLog!Q221,\"\")","v":""},{"$f":"IF(DataLog!$C221=\"Log value\",DataLog!R221,\"\")","v":""},{"$f":"IF(DataLog!$C221=\"Log value\",DataLog!S221,\"\")","v":""},{"$f":"IF(DataLog!$C221=\"Log value\",DataLog!T221,\"\")","v":""},{"$f":"IF(DataLog!$C221=\"Log value\",DataLog!U221,\"\")","v":""},{"$f":"IF(DataLog!$C221=\"Log value\",DataLog!V221,\"\")","v":""},{"$f":"IF(DataLog!$C221=\"Log value\",DataLog!W221,\"\")","v":""},{"$f":"IF(DataLog!$C221=\"Log value\",DataLog!X221,\"\")","v":""},{"$f":"IF(DataLog!$C221=\"Log value\",DataLog!Y221,\"\")","v":""},{"$f":"IF(DataLog!$C221=\"Log value\",DataLog!Z221,\"\")","v":""},{"$f":"IF(DataLog!$C221=\"Log value\",DataLog!AA221,\"\")","v":""},{"$f":"IF(DataLog!$C221=\"Log value\",DataLog!AB221,\"\")","v":""},{"$f":"IF(DataLog!$C221=\"Log value\",DataLog!AC221,\"\")","v":""},{"$f":"IF(DataLog!$C221=\"Log value\",DataLog!AD221,\"\")","v":""},{"$f":"IF(DataLog!$C221=\"Log value\",DataLog!AE221,\"\")","v":""},{"$f":"IF(DataLog!$C221=\"Log value\",DataLog!AF221,\"\")","v":""},{"$f":"IF(DataLog!$C221=\"Log value\",DataLog!AG221,\"\")","v":""},{"$f":"IF(DataLog!$C221=\"Log value\",DataLog!AH221,\"\")","v":""},{"$f":"IF(DataLog!$C221=\"Log value\",DataLog!AI221,\"\")","v":""},{"$f":"IF(DataLog!$C221=\"Log value\",DataLog!AJ221,\"\")","v":""},{"$f":"IF(DataLog!$C221=\"Log value\",DataLog!AK221,\"\")","v":""},{"$f":"IF(DataLog!$C221=\"Log value\",DataLog!AL221,\"\")","v":""},{"$f":"IF(DataLog!$C221=\"Log value\",DataLog!AM221,\"\")","v":""}]
[null,null,{"$f":"$H$21","v":"Standard"},{"$f":"C256&\" - \"&G256&\" - \"&I256","v":"Standard -  - "},null,null,{"$f":"IF(DataLog!$C222=\"Log value\",DataLog!D222&\"_\"&TEXT(DataLog!B222,\"åååå-mm-dd\"),\"\")","v":""},{"$f":"IF(DataLog!$C222=\"Log value\",DataLog!E222,\"\")","v":""},{"$f":"IF(DataLog!$C222=\"Log value\",DataLog!F222,\"\")","v":""},{"$f":"IF(DataLog!$C222=\"Log value\",DataLog!G222,\"\")","v":""},{"$f":"IF(DataLog!$C222=\"Log value\",DataLog!H222,\"\")","v":""},{"$f":"IF(DataLog!$C222=\"Log value\",DataLog!I222,\"\")","v":""},{"$f":"IF(DataLog!$C222=\"Log value\",DataLog!J222,\"\")","v":""},{"$f":"IF(DataLog!$C222=\"Log value\",DataLog!K222,\"\")","v":""},{"$f":"IF(DataLog!$C222=\"Log value\",DataLog!L222,\"\")","v":""},{"$f":"IF(DataLog!$C222=\"Log value\",DataLog!M222,\"\")","v":""},{"$f":"IF(DataLog!$C222=\"Log value\",DataLog!N222,\"\")","v":""},{"$f":"IF(DataLog!$C222=\"Log value\",DataLog!O222,\"\")","v":""},{"$f":"IF(DataLog!$C222=\"Log value\",DataLog!P222,\"\")","v":""},{"$f":"IF(DataLog!$C222=\"Log value\",DataLog!Q222,\"\")","v":""},{"$f":"IF(DataLog!$C222=\"Log value\",DataLog!R222,\"\")","v":""},{"$f":"IF(DataLog!$C222=\"Log value\",DataLog!S222,\"\")","v":""},{"$f":"IF(DataLog!$C222=\"Log value\",DataLog!T222,\"\")","v":""},{"$f":"IF(DataLog!$C222=\"Log value\",DataLog!U222,\"\")","v":""},{"$f":"IF(DataLog!$C222=\"Log value\",DataLog!V222,\"\")","v":""},{"$f":"IF(DataLog!$C222=\"Log value\",DataLog!W222,\"\")","v":""},{"$f":"IF(DataLog!$C222=\"Log value\",DataLog!X222,\"\")","v":""},{"$f":"IF(DataLog!$C222=\"Log value\",DataLog!Y222,\"\")","v":""},{"$f":"IF(DataLog!$C222=\"Log value\",DataLog!Z222,\"\")","v":""},{"$f":"IF(DataLog!$C222=\"Log value\",DataLog!AA222,\"\")","v":""},{"$f":"IF(DataLog!$C222=\"Log value\",DataLog!AB222,\"\")","v":""},{"$f":"IF(DataLog!$C222=\"Log value\",DataLog!AC222,\"\")","v":""},{"$f":"IF(DataLog!$C222=\"Log value\",DataLog!AD222,\"\")","v":""},{"$f":"IF(DataLog!$C222=\"Log value\",DataLog!AE222,\"\")","v":""},{"$f":"IF(DataLog!$C222=\"Log value\",DataLog!AF222,\"\")","v":""},{"$f":"IF(DataLog!$C222=\"Log value\",DataLog!AG222,\"\")","v":""},{"$f":"IF(DataLog!$C222=\"Log value\",DataLog!AH222,\"\")","v":""},{"$f":"IF(DataLog!$C222=\"Log value\",DataLog!AI222,\"\")","v":""},{"$f":"IF(DataLog!$C222=\"Log value\",DataLog!AJ222,\"\")","v":""},{"$f":"IF(DataLog!$C222=\"Log value\",DataLog!AK222,\"\")","v":""},{"$f":"IF(DataLog!$C222=\"Log value\",DataLog!AL222,\"\")","v":""},{"$f":"IF(DataLog!$C222=\"Log value\",DataLog!AM222,\"\")","v":""}]
[null,null,"Standard","Standard -  - ",null,null,{"$f":"IF(DataLog!$C223=\"Log value\",DataLog!D223&\"_\"&TEXT(DataLog!B223,\"åååå-mm-dd\"),\"\")","v":""},{"$f":"IF(DataLog!$C223=\"Log value\",DataLog!E223,\"\")","v":""},{"$f":"IF(DataLog!$C223=\"Log value\",DataLog!F223,\"\")","v":""},{"$f":"IF(DataLog!$C223=\"Log value\",DataLog!G223,\"\")","v":""},{"$f":"IF(DataLog!$C223=\"Log value\",DataLog!H223,\"\")","v":""},{"$f":"IF(DataLog!$C223=\"Log value\",DataLog!I223,\"\")","v":""},{"$f":"IF(DataLog!$C223=\"Log value\",DataLog!J223,\"\")","v":""},{"$f":"IF(DataLog!$C223=\"Log value\",DataLog!K223,\"\")","v":""},{"$f":"IF(DataLog!$C223=\"Log value\",DataLog!L223,\"\")","v":""},{"$f":"IF(DataLog!$C223=\"Log value\",DataLog!M223,\"\")","v":""},{"$f":"IF(DataLog!$C223=\"Log value\",DataLog!N223,\"\")","v":""},{"$f":"IF(DataLog!$C223=\"Log value\",DataLog!O223,\"\")","v":""},{"$f":"IF(DataLog!$C223=\"Log value\",DataLog!P223,\"\")","v":""},{"$f":"IF(DataLog!$C223=\"Log value\",DataLog!Q223,\"\")","v":""},{"$f":"IF(DataLog!$C223=\"Log value\",DataLog!R223,\"\")","v":""},{"$f":"IF(DataLog!$C223=\"Log value\",DataLog!S223,\"\")","v":""},{"$f":"IF(DataLog!$C223=\"Log value\",DataLog!T223,\"\")","v":""},{"$f":"IF(DataLog!$C223=\"Log value\",DataLog!U223,\"\")","v":""},{"$f":"IF(DataLog!$C223=\"Log value\",DataLog!V223,\"\")","v":""},{"$f":"IF(DataLog!$C223=\"Log value\",DataLog!W223,\"\")","v":""},{"$f":"IF(DataLog!$C223=\"Log value\",DataLog!X223,\"\")","v":""},{"$f":"IF(DataLog!$C223=\"Log value\",DataLog!Y223,\"\")","v":""},{"$f":"IF(DataLog!$C223=\"Log value\",DataLog!Z223,\"\")","v":""},{"$f":"IF(DataLog!$C223=\"Log value\",DataLog!AA223,\"\")","v":""},{"$f":"IF(DataLog!$C223=\"Log value\",DataLog!AB223,\"\")","v":""},{"$f":"IF(DataLog!$C223=\"Log value\",DataLog!AC223,\"\")","v":""},{"$f":"IF(DataLog!$C223=\"Log value\",DataLog!AD223,\"\")","v":""},{"$f":"IF(DataLog!$C223=\"Log value\",DataLog!AE223,\"\")","v":""},{"$f":"IF(DataLog!$C223=\"Log value\",DataLog!AF223,\"\")","v":""},{"$f":"IF(DataLog!$C223=\"Log value\",DataLog!AG223,\"\")","v":""},{"$f":"IF(DataLog!$C223=\"Log value\",DataLog!AH223,\"\")","v":""},{"$f":"IF(DataLog!$C223=\"Log value\",DataLog!AI223,\"\")","v":""},{"$f":"IF(DataLog!$C223=\"Log value\",DataLog!AJ223,\"\")","v":""},{"$f":"IF(DataLog!$C223=\"Log value\",DataLog!AK223,\"\")","v":""},{"$f":"IF(DataLog!$C223=\"Log value\",DataLog!AL223,\"\")","v":""},{"$f":"IF(DataLog!$C223=\"Log value\",DataLog!AM223,\"\")","v":""}]
[null,null,"Standard","Standard -  - ",null,null,{"$f":"IF(DataLog!$C224=\"Log value\",DataLog!D224&\"_\"&TEXT(DataLog!B224,\"åååå-mm-dd\"),\"\")","v":""},{"$f":"IF(DataLog!$C224=\"Log value\",DataLog!E224,\"\")","v":""},{"$f":"IF(DataLog!$C224=\"Log value\",DataLog!F224,\"\")","v":""},{"$f":"IF(DataLog!$C224=\"Log value\",DataLog!G224,\"\")","v":""},{"$f":"IF(DataLog!$C224=\"Log value\",DataLog!H224,\"\")","v":""},{"$f":"IF(DataLog!$C224=\"Log value\",DataLog!I224,\"\")","v":""},{"$f":"IF(DataLog!$C224=\"Log value\",DataLog!J224,\"\")","v":""},{"$f":"IF(DataLog!$C224=\"Log value\",DataLog!K224,\"\")","v":""},{"$f":"IF(DataLog!$C224=\"Log value\",DataLog!L224,\"\")","v":""},{"$f":"IF(DataLog!$C224=\"Log value\",DataLog!M224,\"\")","v":""},{"$f":"IF(DataLog!$C224=\"Log value\",DataLog!N224,\"\")","v":""},{"$f":"IF(DataLog!$C224=\"Log value\",DataLog!O224,\"\")","v":""},{"$f":"IF(DataLog!$C224=\"Log value\",DataLog!P224,\"\")","v":""},{"$f":"IF(DataLog!$C224=\"Log value\",DataLog!Q224,\"\")","v":""},{"$f":"IF(DataLog!$C224=\"Log value\",DataLog!R224,\"\")","v":""},{"$f":"IF(DataLog!$C224=\"Log value\",DataLog!S224,\"\")","v":""},{"$f":"IF(DataLog!$C224=\"Log value\",DataLog!T224,\"\")","v":""},{"$f":"IF(DataLog!$C224=\"Log value\",DataLog!U224,\"\")","v":""},{"$f":"IF(DataLog!$C224=\"Log value\",DataLog!V224,\"\")","v":""},{"$f":"IF(DataLog!$C224=\"Log value\",DataLog!W224,\"\")","v":""},{"$f":"IF(DataLog!$C224=\"Log value\",DataLog!X224,\"\")","v":""},{"$f":"IF(DataLog!$C224=\"Log value\",DataLog!Y224,\"\")","v":""},{"$f":"IF(DataLog!$C224=\"Log value\",DataLog!Z224,\"\")","v":""},{"$f":"IF(DataLog!$C224=\"Log value\",DataLog!AA224,\"\")","v":""},{"$f":"IF(DataLog!$C224=\"Log value\",DataLog!AB224,\"\")","v":""},{"$f":"IF(DataLog!$C224=\"Log value\",DataLog!AC224,\"\")","v":""},{"$f":"IF(DataLog!$C224=\"Log value\",DataLog!AD224,\"\")","v":""},{"$f":"IF(DataLog!$C224=\"Log value\",DataLog!AE224,\"\")","v":""},{"$f":"IF(DataLog!$C224=\"Log value\",DataLog!AF224,\"\")","v":""},{"$f":"IF(DataLog!$C224=\"Log value\",DataLog!AG224,\"\")","v":""},{"$f":"IF(DataLog!$C224=\"Log value\",DataLog!AH224,\"\")","v":""},{"$f":"IF(DataLog!$C224=\"Log value\",DataLog!AI224,\"\")","v":""},{"$f":"IF(DataLog!$C224=\"Log value\",DataLog!AJ224,\"\")","v":""},{"$f":"IF(DataLog!$C224=\"Log value\",DataLog!AK224,\"\")","v":""},{"$f":"IF(DataLog!$C224=\"Log value\",DataLog!AL224,\"\")","v":""},{"$f":"IF(DataLog!$C224=\"Log value\",DataLog!AM224,\"\")","v":""}]
[null,null,"Standard","Standard -  - ",null,null,{"$f":"IF(DataLog!$C225=\"Log value\",DataLog!D225&\"_\"&TEXT(DataLog!B225,\"åååå-mm-dd\"),\"\")","v":""},{"$f":"IF(DataLog!$C225=\"Log value\",DataLog!E225,\"\")","v":""},{"$f":"IF(DataLog!$C225=\"Log value\",DataLog!F225,\"\")","v":""},{"$f":"IF(DataLog!$C225=\"Log value\",DataLog!G225,\"\")","v":""},{"$f":"IF(DataLog!$C225=\"Log value\",DataLog!H225,\"\")","v":""},{"$f":"IF(DataLog!$C225=\"Log value\",DataLog!I225,\"\")","v":""},{"$f":"IF(DataLog!$C225=\"Log value\",DataLog!J225,\"\")","v":""},{"$f":"IF(DataLog!$C225=\"Log value\",DataLog!K225,\"\")","v":""},{"$f":"IF(DataLog!$C225=\"Log value\",DataLog!L225,\"\")","v":""},{"$f":"IF(DataLog!$C225=\"Log value\",DataLog!M225,\"\")","v":""},{"$f":"IF(DataLog!$C225=\"Log value\",DataLog!N225,\"\")","v":""},{"$f":"IF(DataLog!$C225=\"Log value\",DataLog!O225,\"\")","v":""},{"$f":"IF(DataLog!$C225=\"Log value\",DataLog!P225,\"\")","v":""},{"$f":"IF(DataLog!$C225=\"Log value\",DataLog!Q225,\"\")","v":""},{"$f":"IF(DataLog!$C225=\"Log value\",DataLog!R225,\"\")","v":""},{"$f":"IF(DataLog!$C225=\"Log value\",DataLog!S225,\"\")","v":""},{"$f":"IF(DataLog!$C225=\"Log value\",DataLog!T225,\"\")","v":""},{"$f":"IF(DataLog!$C225=\"Log value\",DataLog!U225,\"\")","v":""},{"$f":"IF(DataLog!$C225=\"Log value\",DataLog!V225,\"\")","v":""},{"$f":"IF(DataLog!$C225=\"Log value\",DataLog!W225,\"\")","v":""},{"$f":"IF(DataLog!$C225=\"Log value\",DataLog!X225,\"\")","v":""},{"$f":"IF(DataLog!$C225=\"Log value\",DataLog!Y225,\"\")","v":""},{"$f":"IF(DataLog!$C225=\"Log value\",DataLog!Z225,\"\")","v":""},{"$f":"IF(DataLog!$C225=\"Log value\",DataLog!AA225,\"\")","v":""},{"$f":"IF(DataLog!$C225=\"Log value\",DataLog!AB225,\"\")","v":""},{"$f":"IF(DataLog!$C225=\"Log value\",DataLog!AC225,\"\")","v":""},{"$f":"IF(DataLog!$C225=\"Log value\",DataLog!AD225,\"\")","v":""},{"$f":"IF(DataLog!$C225=\"Log value\",DataLog!AE225,\"\")","v":""},{"$f":"IF(DataLog!$C225=\"Log value\",DataLog!AF225,\"\")","v":""},{"$f":"IF(DataLog!$C225=\"Log value\",DataLog!AG225,\"\")","v":""},{"$f":"IF(DataLog!$C225=\"Log value\",DataLog!AH225,\"\")","v":""},{"$f":"IF(DataLog!$C225=\"Log value\",DataLog!AI225,\"\")","v":""},{"$f":"IF(DataLog!$C225=\"Log value\",DataLog!AJ225,\"\")","v":""},{"$f":"IF(DataLog!$C225=\"Log value\",DataLog!AK225,\"\")","v":""},{"$f":"IF(DataLog!$C225=\"Log value\",DataLog!AL225,\"\")","v":""},{"$f":"IF(DataLog!$C225=\"Log value\",DataLog!AM225,\"\")","v":""}]
[null,null,"Standard","Standard -  - ",null,null,{"$f":"IF(DataLog!$C226=\"Log value\",DataLog!D226&\"_\"&TEXT(DataLog!B226,\"åååå-mm-dd\"),\"\")","v":""},{"$f":"IF(DataLog!$C226=\"Log value\",DataLog!E226,\"\")","v":""},{"$f":"IF(DataLog!$C226=\"Log value\",DataLog!F226,\"\")","v":""},{"$f":"IF(DataLog!$C226=\"Log value\",DataLog!G226,\"\")","v":""},{"$f":"IF(DataLog!$C226=\"Log value\",DataLog!H226,\"\")","v":""},{"$f":"IF(DataLog!$C226=\"Log value\",DataLog!I226,\"\")","v":""},{"$f":"IF(DataLog!$C226=\"Log value\",DataLog!J226,\"\")","v":""},{"$f":"IF(DataLog!$C226=\"Log value\",DataLog!K226,\"\")","v":""},{"$f":"IF(DataLog!$C226=\"Log value\",DataLog!L226,\"\")","v":""},{"$f":"IF(DataLog!$C226=\"Log value\",DataLog!M226,\"\")","v":""},{"$f":"IF(DataLog!$C226=\"Log value\",DataLog!N226,\"\")","v":""},{"$f":"IF(DataLog!$C226=\"Log value\",DataLog!O226,\"\")","v":""},{"$f":"IF(DataLog!$C226=\"Log value\",DataLog!P226,\"\")","v":""},{"$f":"IF(DataLog!$C226=\"Log value\",DataLog!Q226,\"\")","v":""},{"$f":"IF(DataLog!$C226=\"Log value\",DataLog!R226,\"\")","v":""},{"$f":"IF(DataLog!$C226=\"Log value\",DataLog!S226,\"\")","v":""},{"$f":"IF(DataLog!$C226=\"Log value\",DataLog!T226,\"\")","v":""},{"$f":"IF(DataLog!$C226=\"Log value\",DataLog!U226,\"\")","v":""},{"$f":"IF(DataLog!$C226=\"Log value\",DataLog!V226,\"\")","v":""},{"$f":"IF(DataLog!$C226=\"Log value\",DataLog!W226,\"\")","v":""},{"$f":"IF(DataLog!$C226=\"Log value\",DataLog!X226,\"\")","v":""},{"$f":"IF(DataLog!$C226=\"Log value\",DataLog!Y226,\"\")","v":""},{"$f":"IF(DataLog!$C226=\"Log value\",DataLog!Z226,\"\")","v":""},{"$f":"IF(DataLog!$C226=\"Log value\",DataLog!AA226,\"\")","v":""},{"$f":"IF(DataLog!$C226=\"Log value\",DataLog!AB226,\"\")","v":""},{"$f":"IF(DataLog!$C226=\"Log value\",DataLog!AC226,\"\")","v":""},{"$f":"IF(DataLog!$C226=\"Log value\",DataLog!AD226,\"\")","v":""},{"$f":"IF(DataLog!$C226=\"Log value\",DataLog!AE226,\"\")","v":""},{"$f":"IF(DataLog!$C226=\"Log value\",DataLog!AF226,\"\")","v":""},{"$f":"IF(DataLog!$C226=\"Log value\",DataLog!AG226,\"\")","v":""},{"$f":"IF(DataLog!$C226=\"Log value\",DataLog!AH226,\"\")","v":""},{"$f":"IF(DataLog!$C226=\"Log value\",DataLog!AI226,\"\")","v":""},{"$f":"IF(DataLog!$C226=\"Log value\",DataLog!AJ226,\"\")","v":""},{"$f":"IF(DataLog!$C226=\"Log value\",DataLog!AK226,\"\")","v":""},{"$f":"IF(DataLog!$C226=\"Log value\",DataLog!AL226,\"\")","v":""},{"$f":"IF(DataLog!$C226=\"Log value\",DataLog!AM226,\"\")","v":""}]
[null,null,"Standard","Standard -  - ",null,null,{"$f":"IF(DataLog!$C227=\"Log value\",DataLog!D227&\"_\"&TEXT(DataLog!B227,\"åååå-mm-dd\"),\"\")","v":""},{"$f":"IF(DataLog!$C227=\"Log value\",DataLog!E227,\"\")","v":""},{"$f":"IF(DataLog!$C227=\"Log value\",DataLog!F227,\"\")","v":""},{"$f":"IF(DataLog!$C227=\"Log value\",DataLog!G227,\"\")","v":""},{"$f":"IF(DataLog!$C227=\"Log value\",DataLog!H227,\"\")","v":""},{"$f":"IF(DataLog!$C227=\"Log value\",DataLog!I227,\"\")","v":""},{"$f":"IF(DataLog!$C227=\"Log value\",DataLog!J227,\"\")","v":""},{"$f":"IF(DataLog!$C227=\"Log value\",DataLog!K227,\"\")","v":""},{"$f":"IF(DataLog!$C227=\"Log value\",DataLog!L227,\"\")","v":""},{"$f":"IF(DataLog!$C227=\"Log value\",DataLog!M227,\"\")","v":""},{"$f":"IF(DataLog!$C227=\"Log value\",DataLog!N227,\"\")","v":""},{"$f":"IF(DataLog!$C227=\"Log value\",DataLog!O227,\"\")","v":""},{"$f":"IF(DataLog!$C227=\"Log value\",DataLog!P227,\"\")","v":""},{"$f":"IF(DataLog!$C227=\"Log value\",DataLog!Q227,\"\")","v":""},{"$f":"IF(DataLog!$C227=\"Log value\",DataLog!R227,\"\")","v":""},{"$f":"IF(DataLog!$C227=\"Log value\",DataLog!S227,\"\")","v":""},{"$f":"IF(DataLog!$C227=\"Log value\",DataLog!T227,\"\")","v":""},{"$f":"IF(DataLog!$C227=\"Log value\",DataLog!U227,\"\")","v":""},{"$f":"IF(DataLog!$C227=\"Log value\",DataLog!V227,\"\")","v":""},{"$f":"IF(DataLog!$C227=\"Log value\",DataLog!W227,\"\")","v":""},{"$f":"IF(DataLog!$C227=\"Log value\",DataLog!X227,\"\")","v":""},{"$f":"IF(DataLog!$C227=\"Log value\",DataLog!Y227,\"\")","v":""},{"$f":"IF(DataLog!$C227=\"Log value\",DataLog!Z227,\"\")","v":""},{"$f":"IF(DataLog!$C227=\"Log value\",DataLog!AA227,\"\")","v":""},{"$f":"IF(DataLog!$C227=\"Log value\",DataLog!AB227,\"\")","v":""},{"$f":"IF(DataLog!$C227=\"Log value\",DataLog!AC227,\"\")","v":""},{"$f":"IF(DataLog!$C227=\"Log value\",DataLog!AD227,\"\")","v":""},{"$f":"IF(DataLog!$C227=\"Log value\",DataLog!AE227,\"\")","v":""},{"$f":"IF(DataLog!$C227=\"Log value\",DataLog!AF227,\"\")","v":""},{"$f":"IF(DataLog!$C227=\"Log value\",DataLog!AG227,\"\")","v":""},{"$f":"IF(DataLog!$C227=\"Log value\",DataLog!AH227,\"\")","v":""},{"$f":"IF(DataLog!$C227=\"Log value\",DataLog!AI227,\"\")","v":""},{"$f":"IF(DataLog!$C227=\"Log value\",DataLog!AJ227,\"\")","v":""},{"$f":"IF(DataLog!$C227=\"Log value\",DataLog!AK227,\"\")","v":""},{"$f":"IF(DataLog!$C227=\"Log value\",DataLog!AL227,\"\")","v":""},{"$f":"IF(DataLog!$C227=\"Log value\",DataLog!AM227,\"\")","v":""}]
[null,null,"Standard","Standard -  - ",null,null,{"$f":"IF(DataLog!$C228=\"Log value\",DataLog!D228&\"_\"&TEXT(DataLog!B228,\"åååå-mm-dd\"),\"\")","v":""},{"$f":"IF(DataLog!$C228=\"Log value\",DataLog!E228,\"\")","v":""},{"$f":"IF(DataLog!$C228=\"Log value\",DataLog!F228,\"\")","v":""},{"$f":"IF(DataLog!$C228=\"Log value\",DataLog!G228,\"\")","v":""},{"$f":"IF(DataLog!$C228=\"Log value\",DataLog!H228,\"\")","v":""},{"$f":"IF(DataLog!$C228=\"Log value\",DataLog!I228,\"\")","v":""},{"$f":"IF(DataLog!$C228=\"Log value\",DataLog!J228,\"\")","v":""},{"$f":"IF(DataLog!$C228=\"Log value\",DataLog!K228,\"\")","v":""},{"$f":"IF(DataLog!$C228=\"Log value\",DataLog!L228,\"\")","v":""},{"$f":"IF(DataLog!$C228=\"Log value\",DataLog!M228,\"\")","v":""},{"$f":"IF(DataLog!$C228=\"Log value\",DataLog!N228,\"\")","v":""},{"$f":"IF(DataLog!$C228=\"Log value\",DataLog!O228,\"\")","v":""},{"$f":"IF(DataLog!$C228=\"Log value\",DataLog!P228,\"\")","v":""},{"$f":"IF(DataLog!$C228=\"Log value\",DataLog!Q228,\"\")","v":""},{"$f":"IF(DataLog!$C228=\"Log value\",DataLog!R228,\"\")","v":""},{"$f":"IF(DataLog!$C228=\"Log value\",DataLog!S228,\"\")","v":""},{"$f":"IF(DataLog!$C228=\"Log value\",DataLog!T228,\"\")","v":""},{"$f":"IF(DataLog!$C228=\"Log value\",DataLog!U228,\"\")","v":""},{"$f":"IF(DataLog!$C228=\"Log value\",DataLog!V228,\"\")","v":""},{"$f":"IF(DataLog!$C228=\"Log value\",DataLog!W228,\"\")","v":""},{"$f":"IF(DataLog!$C228=\"Log value\",DataLog!X228,\"\")","v":""},{"$f":"IF(DataLog!$C228=\"Log value\",DataLog!Y228,\"\")","v":""},{"$f":"IF(DataLog!$C228=\"Log value\",DataLog!Z228,\"\")","v":""},{"$f":"IF(DataLog!$C228=\"Log value\",DataLog!AA228,\"\")","v":""},{"$f":"IF(DataLog!$C228=\"Log value\",DataLog!AB228,\"\")","v":""},{"$f":"IF(DataLog!$C228=\"Log value\",DataLog!AC228,\"\")","v":""},{"$f":"IF(DataLog!$C228=\"Log value\",DataLog!AD228,\"\")","v":""},{"$f":"IF(DataLog!$C228=\"Log value\",DataLog!AE228,\"\")","v":""},{"$f":"IF(DataLog!$C228=\"Log value\",DataLog!AF228,\"\")","v":""},{"$f":"IF(DataLog!$C228=\"Log value\",DataLog!AG228,\"\")","v":""},{"$f":"IF(DataLog!$C228=\"Log value\",DataLog!AH228,\"\")","v":""},{"$f":"IF(DataLog!$C228=\"Log value\",DataLog!AI228,\"\")","v":""},{"$f":"IF(DataLog!$C228=\"Log value\",DataLog!AJ228,\"\")","v":""},{"$f":"IF(DataLog!$C228=\"Log value\",DataLog!AK228,\"\")","v":""},{"$f":"IF(DataLog!$C228=\"Log value\",DataLog!AL228,\"\")","v":""},{"$f":"IF(DataLog!$C228=\"Log value\",DataLog!AM228,\"\")","v":""}]
[null,null,"Standard","Standard -  - ",null,null,{"$f":"IF(DataLog!$C229=\"Log value\",DataLog!D229&\"_\"&TEXT(DataLog!B229,\"åååå-mm-dd\"),\"\")","v":""},{"$f":"IF(DataLog!$C229=\"Log value\",DataLog!E229,\"\")","v":""},{"$f":"IF(DataLog!$C229=\"Log value\",DataLog!F229,\"\")","v":""},{"$f":"IF(DataLog!$C229=\"Log value\",DataLog!G229,\"\")","v":""},{"$f":"IF(DataLog!$C229=\"Log value\",DataLog!H229,\"\")","v":""},{"$f":"IF(DataLog!$C229=\"Log value\",DataLog!I229,\"\")","v":""},{"$f":"IF(DataLog!$C229=\"Log value\",DataLog!J229,\"\")","v":""},{"$f":"IF(DataLog!$C229=\"Log value\",DataLog!K229,\"\")","v":""},{"$f":"IF(DataLog!$C229=\"Log value\",DataLog!L229,\"\")","v":""},{"$f":"IF(DataLog!$C229=\"Log value\",DataLog!M229,\"\")","v":""},{"$f":"IF(DataLog!$C229=\"Log value\",DataLog!N229,\"\")","v":""},{"$f":"IF(DataLog!$C229=\"Log value\",DataLog!O229,\"\")","v":""},{"$f":"IF(DataLog!$C229=\"Log value\",DataLog!P229,\"\")","v":""},{"$f":"IF(DataLog!$C229=\"Log value\",DataLog!Q229,\"\")","v":""},{"$f":"IF(DataLog!$C229=\"Log value\",DataLog!R229,\"\")","v":""},{"$f":"IF(DataLog!$C229=\"Log value\",DataLog!S229,\"\")","v":""},{"$f":"IF(DataLog!$C229=\"Log value\",DataLog!T229,\"\")","v":""},{"$f":"IF(DataLog!$C229=\"Log value\",DataLog!U229,\"\")","v":""},{"$f":"IF(DataLog!$C229=\"Log value\",DataLog!V229,\"\")","v":""},{"$f":"IF(DataLog!$C229=\"Log value\",DataLog!W229,\"\")","v":""},{"$f":"IF(DataLog!$C229=\"Log value\",DataLog!X229,\"\")","v":""},{"$f":"IF(DataLog!$C229=\"Log value\",DataLog!Y229,\"\")","v":""},{"$f":"IF(DataLog!$C229=\"Log value\",DataLog!Z229,\"\")","v":""},{"$f":"IF(DataLog!$C229=\"Log value\",DataLog!AA229,\"\")","v":""},{"$f":"IF(DataLog!$C229=\"Log value\",DataLog!AB229,\"\")","v":""},{"$f":"IF(DataLog!$C229=\"Log value\",DataLog!AC229,\"\")","v":""},{"$f":"IF(DataLog!$C229=\"Log value\",DataLog!AD229,\"\")","v":""},{"$f":"IF(DataLog!$C229=\"Log value\",DataLog!AE229,\"\")","v":""},{"$f":"IF(DataLog!$C229=\"Log value\",DataLog!AF229,\"\")","v":""},{"$f":"IF(DataLog!$C229=\"Log value\",DataLog!AG229,\"\")","v":""},{"$f":"IF(DataLog!$C229=\"Log value\",DataLog!AH229,\"\")","v":""},{"$f":"IF(DataLog!$C229=\"Log value\",DataLog!AI229,\"\")","v":""},{"$f":"IF(DataLog!$C229=\"Log value\",DataLog!AJ229,\"\")","v":""},{"$f":"IF(DataLog!$C229=\"Log value\",DataLog!AK229,\"\")","v":""},{"$f":"IF(DataLog!$C229=\"Log value\",DataLog!AL229,\"\")","v":""},{"$f":"IF(DataLog!$C229=\"Log value\",DataLog!AM229,\"\")","v":""}]
[null,null,"Standard","Standard -  - ",null,null,{"$f":"IF(DataLog!$C230=\"Log value\",DataLog!D230&\"_\"&TEXT(DataLog!B230,\"åååå-mm-dd\"),\"\")","v":""},{"$f":"IF(DataLog!$C230=\"Log value\",DataLog!E230,\"\")","v":""},{"$f":"IF(DataLog!$C230=\"Log value\",DataLog!F230,\"\")","v":""},{"$f":"IF(DataLog!$C230=\"Log value\",DataLog!G230,\"\")","v":""},{"$f":"IF(DataLog!$C230=\"Log value\",DataLog!H230,\"\")","v":""},{"$f":"IF(DataLog!$C230=\"Log value\",DataLog!I230,\"\")","v":""},{"$f":"IF(DataLog!$C230=\"Log value\",DataLog!J230,\"\")","v":""},{"$f":"IF(DataLog!$C230=\"Log value\",DataLog!K230,\"\")","v":""},{"$f":"IF(DataLog!$C230=\"Log value\",DataLog!L230,\"\")","v":""},{"$f":"IF(DataLog!$C230=\"Log value\",DataLog!M230,\"\")","v":""},{"$f":"IF(DataLog!$C230=\"Log value\",DataLog!N230,\"\")","v":""},{"$f":"IF(DataLog!$C230=\"Log value\",DataLog!O230,\"\")","v":""},{"$f":"IF(DataLog!$C230=\"Log value\",DataLog!P230,\"\")","v":""},{"$f":"IF(DataLog!$C230=\"Log value\",DataLog!Q230,\"\")","v":""},{"$f":"IF(DataLog!$C230=\"Log value\",DataLog!R230,\"\")","v":""},{"$f":"IF(DataLog!$C230=\"Log value\",DataLog!S230,\"\")","v":""},{"$f":"IF(DataLog!$C230=\"Log value\",DataLog!T230,\"\")","v":""},{"$f":"IF(DataLog!$C230=\"Log value\",DataLog!U230,\"\")","v":""},{"$f":"IF(DataLog!$C230=\"Log value\",DataLog!V230,\"\")","v":""},{"$f":"IF(DataLog!$C230=\"Log value\",DataLog!W230,\"\")","v":""},{"$f":"IF(DataLog!$C230=\"Log value\",DataLog!X230,\"\")","v":""},{"$f":"IF(DataLog!$C230=\"Log value\",DataLog!Y230,\"\")","v":""},{"$f":"IF(DataLog!$C230=\"Log value\",DataLog!Z230,\"\")","v":""},{"$f":"IF(DataLog!$C230=\"Log value\",DataLog!AA230,\"\")","v":""},{"$f":"IF(DataLog!$C230=\"Log value\",DataLog!AB230,\"\")","v":""},{"$f":"IF(DataLog!$C230=\"Log value\",DataLog!AC230,\"\")","v":""},{"$f":"IF(DataLog!$C230=\"Log value\",DataLog!AD230,\"\")","v":""},{"$f":"IF(DataLog!$C230=\"Log value\",DataLog!AE230,\"\")","v":""},{"$f":"IF(DataLog!$C230=\"Log value\",DataLog!AF230,\"\")","v":""},{"$f":"IF(DataLog!$C230=\"Log value\",DataLog!AG230,\"\")","v":""},{"$f":"IF(DataLog!$C230=\"Log value\",DataLog!AH230,\"\")","v":""},{"$f":"IF(DataLog!$C230=\"Log value\",DataLog!AI230,\"\")","v":""},{"$f":"IF(DataLog!$C230=\"Log value\",DataLog!AJ230,\"\")","v":""},{"$f":"IF(DataLog!$C230=\"Log value\",DataLog!AK230,\"\")","v":""},{"$f":"IF(DataLog!$C230=\"Log value\",DataLog!AL230,\"\")","v":""},{"$f":"IF(DataLog!$C230=\"Log value\",DataLog!AM230,\"\")","v":""}]
[null,null,"Standard","Standard -  - ",null,null,{"$f":"IF(DataLog!$C231=\"Log value\",DataLog!D231&\"_\"&TEXT(DataLog!B231,\"åååå-mm-dd\"),\"\")","v":""},{"$f":"IF(DataLog!$C231=\"Log value\",DataLog!E231,\"\")","v":""},{"$f":"IF(DataLog!$C231=\"Log value\",DataLog!F231,\"\")","v":""},{"$f":"IF(DataLog!$C231=\"Log value\",DataLog!G231,\"\")","v":""},{"$f":"IF(DataLog!$C231=\"Log value\",DataLog!H231,\"\")","v":""},{"$f":"IF(DataLog!$C231=\"Log value\",DataLog!I231,\"\")","v":""},{"$f":"IF(DataLog!$C231=\"Log value\",DataLog!J231,\"\")","v":""},{"$f":"IF(DataLog!$C231=\"Log value\",DataLog!K231,\"\")","v":""},{"$f":"IF(DataLog!$C231=\"Log value\",DataLog!L231,\"\")","v":""},{"$f":"IF(DataLog!$C231=\"Log value\",DataLog!M231,\"\")","v":""},{"$f":"IF(DataLog!$C231=\"Log value\",DataLog!N231,\"\")","v":""},{"$f":"IF(DataLog!$C231=\"Log value\",DataLog!O231,\"\")","v":""},{"$f":"IF(DataLog!$C231=\"Log value\",DataLog!P231,\"\")","v":""},{"$f":"IF(DataLog!$C231=\"Log value\",DataLog!Q231,\"\")","v":""},{"$f":"IF(DataLog!$C231=\"Log value\",DataLog!R231,\"\")","v":""},{"$f":"IF(DataLog!$C231=\"Log value\",DataLog!S231,\"\")","v":""},{"$f":"IF(DataLog!$C231=\"Log value\",DataLog!T231,\"\")","v":""},{"$f":"IF(DataLog!$C231=\"Log value\",DataLog!U231,\"\")","v":""},{"$f":"IF(DataLog!$C231=\"Log value\",DataLog!V231,\"\")","v":""},{"$f":"IF(DataLog!$C231=\"Log value\",DataLog!W231,\"\")","v":""},{"$f":"IF(DataLog!$C231=\"Log value\",DataLog!X231,\"\")","v":""},{"$f":"IF(DataLog!$C231=\"Log value\",DataLog!Y231,\"\")","v":""},{"$f":"IF(DataLog!$C231=\"Log value\",DataLog!Z231,\"\")","v":""},{"$f":"IF(DataLog!$C231=\"Log value\",DataLog!AA231,\"\")","v":""},{"$f":"IF(DataLog!$C231=\"Log value\",DataLog!AB231,\"\")","v":""},{"$f":"IF(DataLog!$C231=\"Log value\",DataLog!AC231,\"\")","v":""},{"$f":"IF(DataLog!$C231=\"Log value\",DataLog!AD231,\"\")","v":""},{"$f":"IF(DataLog!$C231=\"Log value\",DataLog!AE231,\"\")","v":""},{"$f":"IF(DataLog!$C231=\"Log value\",DataLog!AF231,\"\")","v":""},{"$f":"IF(DataLog!$C231=\"Log value\",DataLog!AG231,\"\")","v":""},{"$f":"IF(DataLog!$C231=\"Log value\",DataLog!AH231,\"\")","v":""},{"$f":"IF(DataLog!$C231=\"Log value\",DataLog!AI231,\"\")","v":""},{"$f":"IF(DataLog!$C231=\"Log value\",DataLog!AJ231,\"\")","v":""},{"$f":"IF(DataLog!$C231=\"Log value\",DataLog!AK231,\"\")","v":""},{"$f":"IF(DataLog!$C231=\"Log value\",DataLog!AL231,\"\")","v":""},{"$f":"IF(DataLog!$C231=\"Log value\",DataLog!AM231,\"\")","v":""}]
[null,null,"Standard","Standard -  - ",null,null,{"$f":"IF(DataLog!$C232=\"Log value\",DataLog!D232&\"_\"&TEXT(DataLog!B232,\"åååå-mm-dd\"),\"\")","v":""},{"$f":"IF(DataLog!$C232=\"Log value\",DataLog!E232,\"\")","v":""},{"$f":"IF(DataLog!$C232=\"Log value\",DataLog!F232,\"\")","v":""},{"$f":"IF(DataLog!$C232=\"Log value\",DataLog!G232,\"\")","v":""},{"$f":"IF(DataLog!$C232=\"Log value\",DataLog!H232,\"\")","v":""},{"$f":"IF(DataLog!$C232=\"Log value\",DataLog!I232,\"\")","v":""},{"$f":"IF(DataLog!$C232=\"Log value\",DataLog!J232,\"\")","v":""},{"$f":"IF(DataLog!$C232=\"Log value\",DataLog!K232,\"\")","v":""},{"$f":"IF(DataLog!$C232=\"Log value\",DataLog!L232,\"\")","v":""},{"$f":"IF(DataLog!$C232=\"Log value\",DataLog!M232,\"\")","v":""},{"$f":"IF(DataLog!$C232=\"Log value\",DataLog!N232,\"\")","v":""},{"$f":"IF(DataLog!$C232=\"Log value\",DataLog!O232,\"\")","v":""},{"$f":"IF(DataLog!$C232=\"Log value\",DataLog!P232,\"\")","v":""},{"$f":"IF(DataLog!$C232=\"Log value\",DataLog!Q232,\"\")","v":""},{"$f":"IF(DataLog!$C232=\"Log value\",DataLog!R232,\"\")","v":""},{"$f":"IF(DataLog!$C232=\"Log value\",DataLog!S232,\"\")","v":""},{"$f":"IF(DataLog!$C232=\"Log value\",DataLog!T232,\"\")","v":""},{"$f":"IF(DataLog!$C232=\"Log value\",DataLog!U232,\"\")","v":""},{"$f":"IF(DataLog!$C232=\"Log value\",DataLog!V232,\"\")","v":""},{"$f":"IF(DataLog!$C232=\"Log value\",DataLog!W232,\"\")","v":""},{"$f":"IF(DataLog!$C232=\"Log value\",DataLog!X232,\"\")","v":""},{"$f":"IF(DataLog!$C232=\"Log value\",DataLog!Y232,\"\")","v":""},{"$f":"IF(DataLog!$C232=\"Log value\",DataLog!Z232,\"\")","v":""},{"$f":"IF(DataLog!$C232=\"Log value\",DataLog!AA232,\"\")","v":""},{"$f":"IF(DataLog!$C232=\"Log value\",DataLog!AB232,\"\")","v":""},{"$f":"IF(DataLog!$C232=\"Log value\",DataLog!AC232,\"\")","v":""},{"$f":"IF(DataLog!$C232=\"Log value\",DataLog!AD232,\"\")","v":""},{"$f":"IF(DataLog!$C232=\"Log value\",DataLog!AE232,\"\")","v":""},{"$f":"IF(DataLog!$C232=\"Log value\",DataLog!AF232,\"\")","v":""},{"$f":"IF(DataLog!$C232=\"Log value\",DataLog!AG232,\"\")","v":""},{"$f":"IF(DataLog!$C232=\"Log value\",DataLog!AH232,\"\")","v":""},{"$f":"IF(DataLog!$C232=\"Log value\",DataLog!AI232,\"\")","v":""},{"$f":"IF(DataLog!$C232=\"Log value\",DataLog!AJ232,\"\")","v":""},{"$f":"IF(DataLog!$C232=\"Log value\",DataLog!AK232,\"\")","v":""},{"$f":"IF(DataLog!$C232=\"Log value\",DataLog!AL232,\"\")","v":""},{"$f":"IF(DataLog!$C232=\"Log value\",DataLog!AM232,\"\")","v":""}]
[null,null,"Standard","Standard -  - ",null,null,{"$f":"IF(DataLog!$C233=\"Log value\",DataLog!D233&\"_\"&TEXT(DataLog!B233,\"åååå-mm-dd\"),\"\")","v":""},{"$f":"IF(DataLog!$C233=\"Log value\",DataLog!E233,\"\")","v":""},{"$f":"IF(DataLog!$C233=\"Log value\",DataLog!F233,\"\")","v":""},{"$f":"IF(DataLog!$C233=\"Log value\",DataLog!G233,\"\")","v":""},{"$f":"IF(DataLog!$C233=\"Log value\",DataLog!H233,\"\")","v":""},{"$f":"IF(DataLog!$C233=\"Log value\",DataLog!I233,\"\")","v":""},{"$f":"IF(DataLog!$C233=\"Log value\",DataLog!J233,\"\")","v":""},{"$f":"IF(DataLog!$C233=\"Log value\",DataLog!K233,\"\")","v":""},{"$f":"IF(DataLog!$C233=\"Log value\",DataLog!L233,\"\")","v":""},{"$f":"IF(DataLog!$C233=\"Log value\",DataLog!M233,\"\")","v":""},{"$f":"IF(DataLog!$C233=\"Log value\",DataLog!N233,\"\")","v":""},{"$f":"IF(DataLog!$C233=\"Log value\",DataLog!O233,\"\")","v":""},{"$f":"IF(DataLog!$C233=\"Log value\",DataLog!P233,\"\")","v":""},{"$f":"IF(DataLog!$C233=\"Log value\",DataLog!Q233,\"\")","v":""},{"$f":"IF(DataLog!$C233=\"Log value\",DataLog!R233,\"\")","v":""},{"$f":"IF(DataLog!$C233=\"Log value\",DataLog!S233,\"\")","v":""},{"$f":"IF(DataLog!$C233=\"Log value\",DataLog!T233,\"\")","v":""},{"$f":"IF(DataLog!$C233=\"Log value\",DataLog!U233,\"\")","v":""},{"$f":"IF(DataLog!$C233=\"Log value\",DataLog!V233,\"\")","v":""},{"$f":"IF(DataLog!$C233=\"Log value\",DataLog!W233,\"\")","v":""},{"$f":"IF(DataLog!$C233=\"Log value\",DataLog!X233,\"\")","v":""},{"$f":"IF(DataLog!$C233=\"Log value\",DataLog!Y233,\"\")","v":""},{"$f":"IF(DataLog!$C233=\"Log value\",DataLog!Z233,\"\")","v":""},{"$f":"IF(DataLog!$C233=\"Log value\",DataLog!AA233,\"\")","v":""},{"$f":"IF(DataLog!$C233=\"Log value\",DataLog!AB233,\"\")","v":""},{"$f":"IF(DataLog!$C233=\"Log value\",DataLog!AC233,\"\")","v":""},{"$f":"IF(DataLog!$C233=\"Log value\",DataLog!AD233,\"\")","v":""},{"$f":"IF(DataLog!$C233=\"Log value\",DataLog!AE233,\"\")","v":""},{"$f":"IF(DataLog!$C233=\"Log value\",DataLog!AF233,\"\")","v":""},{"$f":"IF(DataLog!$C233=\"Log value\",DataLog!AG233,\"\")","v":""},{"$f":"IF(DataLog!$C233=\"Log value\",DataLog!AH233,\"\")","v":""},{"$f":"IF(DataLog!$C233=\"Log value\",DataLog!AI233,\"\")","v":""},{"$f":"IF(DataLog!$C233=\"Log value\",DataLog!AJ233,\"\")","v":""},{"$f":"IF(DataLog!$C233=\"Log value\",DataLog!AK233,\"\")","v":""},{"$f":"IF(DataLog!$C233=\"Log value\",DataLog!AL233,\"\")","v":""},{"$f":"IF(DataLog!$C233=\"Log value\",DataLog!AM233,\"\")","v":""}]
[null,null,"Standard","Standard -  - ",null,null,{"$f":"IF(DataLog!$C234=\"Log value\",DataLog!D234&\"_\"&TEXT(DataLog!B234,\"åååå-mm-dd\"),\"\")","v":""},{"$f":"IF(DataLog!$C234=\"Log value\",DataLog!E234,\"\")","v":""},{"$f":"IF(DataLog!$C234=\"Log value\",DataLog!F234,\"\")","v":""},{"$f":"IF(DataLog!$C234=\"Log value\",DataLog!G234,\"\")","v":""},{"$f":"IF(DataLog!$C234=\"Log value\",DataLog!H234,\"\")","v":""},{"$f":"IF(DataLog!$C234=\"Log value\",DataLog!I234,\"\")","v":""},{"$f":"IF(DataLog!$C234=\"Log value\",DataLog!J234,\"\")","v":""},{"$f":"IF(DataLog!$C234=\"Log value\",DataLog!K234,\"\")","v":""},{"$f":"IF(DataLog!$C234=\"Log value\",DataLog!L234,\"\")","v":""},{"$f":"IF(DataLog!$C234=\"Log value\",DataLog!M234,\"\")","v":""},{"$f":"IF(DataLog!$C234=\"Log value\",DataLog!N234,\"\")","v":""},{"$f":"IF(DataLog!$C234=\"Log value\",DataLog!O234,\"\")","v":""},{"$f":"IF(DataLog!$C234=\"Log value\",DataLog!P234,\"\")","v":""},{"$f":"IF(DataLog!$C234=\"Log value\",DataLog!Q234,\"\")","v":""},{"$f":"IF(DataLog!$C234=\"Log value\",DataLog!R234,\"\")","v":""},{"$f":"IF(DataLog!$C234=\"Log value\",DataLog!S234,\"\")","v":""},{"$f":"IF(DataLog!$C234=\"Log value\",DataLog!T234,\"\")","v":""},{"$f":"IF(DataLog!$C234=\"Log value\",DataLog!U234,\"\")","v":""},{"$f":"IF(DataLog!$C234=\"Log value\",DataLog!V234,\"\")","v":""},{"$f":"IF(DataLog!$C234=\"Log value\",DataLog!W234,\"\")","v":""},{"$f":"IF(DataLog!$C234=\"Log value\",DataLog!X234,\"\")","v":""},{"$f":"IF(DataLog!$C234=\"Log value\",DataLog!Y234,\"\")","v":""},{"$f":"IF(DataLog!$C234=\"Log value\",DataLog!Z234,\"\")","v":""},{"$f":"IF(DataLog!$C234=\"Log value\",DataLog!AA234,\"\")","v":""},{"$f":"IF(DataLog!$C234=\"Log value\",DataLog!AB234,\"\")","v":""},{"$f":"IF(DataLog!$C234=\"Log value\",DataLog!AC234,\"\")","v":""},{"$f":"IF(DataLog!$C234=\"Log value\",DataLog!AD234,\"\")","v":""},{"$f":"IF(DataLog!$C234=\"Log value\",DataLog!AE234,\"\")","v":""},{"$f":"IF(DataLog!$C234=\"Log value\",DataLog!AF234,\"\")","v":""},{"$f":"IF(DataLog!$C234=\"Log value\",DataLog!AG234,\"\")","v":""},{"$f":"IF(DataLog!$C234=\"Log value\",DataLog!AH234,\"\")","v":""},{"$f":"IF(DataLog!$C234=\"Log value\",DataLog!AI234,\"\")","v":""},{"$f":"IF(DataLog!$C234=\"Log value\",DataLog!AJ234,\"\")","v":""},{"$f":"IF(DataLog!$C234=\"Log value\",DataLog!AK234,\"\")","v":""},{"$f":"IF(DataLog!$C234=\"Log value\",DataLog!AL234,\"\")","v":""},{"$f":"IF(DataLog!$C234=\"Log value\",DataLog!AM234,\"\")","v":""}]
[null,null,"Standard","Standard -  - ",null,null,{"$f":"IF(DataLog!$C235=\"Log value\",DataLog!D235&\"_\"&TEXT(DataLog!B235,\"åååå-mm-dd\"),\"\")","v":""},{"$f":"IF(DataLog!$C235=\"Log value\",DataLog!E235,\"\")","v":""},{"$f":"IF(DataLog!$C235=\"Log value\",DataLog!F235,\"\")","v":""},{"$f":"IF(DataLog!$C235=\"Log value\",DataLog!G235,\"\")","v":""},{"$f":"IF(DataLog!$C235=\"Log value\",DataLog!H235,\"\")","v":""},{"$f":"IF(DataLog!$C235=\"Log value\",DataLog!I235,\"\")","v":""},{"$f":"IF(DataLog!$C235=\"Log value\",DataLog!J235,\"\")","v":""},{"$f":"IF(DataLog!$C235=\"Log value\",DataLog!K235,\"\")","v":""},{"$f":"IF(DataLog!$C235=\"Log value\",DataLog!L235,\"\")","v":""},{"$f":"IF(DataLog!$C235=\"Log value\",DataLog!M235,\"\")","v":""},{"$f":"IF(DataLog!$C235=\"Log value\",DataLog!N235,\"\")","v":""},{"$f":"IF(DataLog!$C235=\"Log value\",DataLog!O235,\"\")","v":""},{"$f":"IF(DataLog!$C235=\"Log value\",DataLog!P235,\"\")","v":""},{"$f":"IF(DataLog!$C235=\"Log value\",DataLog!Q235,\"\")","v":""},{"$f":"IF(DataLog!$C235=\"Log value\",DataLog!R235,\"\")","v":""},{"$f":"IF(DataLog!$C235=\"Log value\",DataLog!S235,\"\")","v":""},{"$f":"IF(DataLog!$C235=\"Log value\",DataLog!T235,\"\")","v":""},{"$f":"IF(DataLog!$C235=\"Log value\",DataLog!U235,\"\")","v":""},{"$f":"IF(DataLog!$C235=\"Log value\",DataLog!V235,\"\")","v":""},{"$f":"IF(DataLog!$C235=\"Log value\",DataLog!W235,\"\")","v":""},{"$f":"IF(DataLog!$C235=\"Log value\",DataLog!X235,\"\")","v":""},{"$f":"IF(DataLog!$C235=\"Log value\",DataLog!Y235,\"\")","v":""},{"$f":"IF(DataLog!$C235=\"Log value\",DataLog!Z235,\"\")","v":""},{"$f":"IF(DataLog!$C235=\"Log value\",DataLog!AA235,\"\")","v":""},{"$f":"IF(DataLog!$C235=\"Log value\",DataLog!AB235,\"\")","v":""},{"$f":"IF(DataLog!$C235=\"Log value\",DataLog!AC235,\"\")","v":""},{"$f":"IF(DataLog!$C235=\"Log value\",DataLog!AD235,\"\")","v":""},{"$f":"IF(DataLog!$C235=\"Log value\",DataLog!AE235,\"\")","v":""},{"$f":"IF(DataLog!$C235=\"Log value\",DataLog!AF235,\"\")","v":""},{"$f":"IF(DataLog!$C235=\"Log value\",DataLog!AG235,\"\")","v":""},{"$f":"IF(DataLog!$C235=\"Log value\",DataLog!AH235,\"\")","v":""},{"$f":"IF(DataLog!$C235=\"Log value\",DataLog!AI235,\"\")","v":""},{"$f":"IF(DataLog!$C235=\"Log value\",DataLog!AJ235,\"\")","v":""},{"$f":"IF(DataLog!$C235=\"Log value\",DataLog!AK235,\"\")","v":""},{"$f":"IF(DataLog!$C235=\"Log value\",DataLog!AL235,\"\")","v":""},{"$f":"IF(DataLog!$C235=\"Log value\",DataLog!AM235,\"\")","v":""}]
[null,null,"Standard","Standard -  - ",null,null,{"$f":"IF(DataLog!$C236=\"Log value\",DataLog!D236&\"_\"&TEXT(DataLog!B236,\"åååå-mm-dd\"),\"\")","v":""},{"$f":"IF(DataLog!$C236=\"Log value\",DataLog!E236,\"\")","v":""},{"$f":"IF(DataLog!$C236=\"Log value\",DataLog!F236,\"\")","v":""},{"$f":"IF(DataLog!$C236=\"Log value\",DataLog!G236,\"\")","v":""},{"$f":"IF(DataLog!$C236=\"Log value\",DataLog!H236,\"\")","v":""},{"$f":"IF(DataLog!$C236=\"Log value\",DataLog!I236,\"\")","v":""},{"$f":"IF(DataLog!$C236=\"Log value\",DataLog!J236,\"\")","v":""},{"$f":"IF(DataLog!$C236=\"Log value\",DataLog!K236,\"\")","v":""},{"$f":"IF(DataLog!$C236=\"Log value\",DataLog!L236,\"\")","v":""},{"$f":"IF(DataLog!$C236=\"Log value\",DataLog!M236,\"\")","v":""},{"$f":"IF(DataLog!$C236=\"Log value\",DataLog!N236,\"\")","v":""},{"$f":"IF(DataLog!$C236=\"Log value\",DataLog!O236,\"\")","v":""},{"$f":"IF(DataLog!$C236=\"Log value\",DataLog!P236,\"\")","v":""},{"$f":"IF(DataLog!$C236=\"Log value\",DataLog!Q236,\"\")","v":""},{"$f":"IF(DataLog!$C236=\"Log value\",DataLog!R236,\"\")","v":""},{"$f":"IF(DataLog!$C236=\"Log value\",DataLog!S236,\"\")","v":""},{"$f":"IF(DataLog!$C236=\"Log value\",DataLog!T236,\"\")","v":""},{"$f":"IF(DataLog!$C236=\"Log value\",DataLog!U236,\"\")","v":""},{"$f":"IF(DataLog!$C236=\"Log value\",DataLog!V236,\"\")","v":""},{"$f":"IF(DataLog!$C236=\"Log value\",DataLog!W236,\"\")","v":""},{"$f":"IF(DataLog!$C236=\"Log value\",DataLog!X236,\"\")","v":""},{"$f":"IF(DataLog!$C236=\"Log value\",DataLog!Y236,\"\")","v":""},{"$f":"IF(DataLog!$C236=\"Log value\",DataLog!Z236,\"\")","v":""},{"$f":"IF(DataLog!$C236=\"Log value\",DataLog!AA236,\"\")","v":""},{"$f":"IF(DataLog!$C236=\"Log value\",DataLog!AB236,\"\")","v":""},{"$f":"IF(DataLog!$C236=\"Log value\",DataLog!AC236,\"\")","v":""},{"$f":"IF(DataLog!$C236=\"Log value\",DataLog!AD236,\"\")","v":""},{"$f":"IF(DataLog!$C236=\"Log value\",DataLog!AE236,\"\")","v":""},{"$f":"IF(DataLog!$C236=\"Log value\",DataLog!AF236,\"\")","v":""},{"$f":"IF(DataLog!$C236=\"Log value\",DataLog!AG236,\"\")","v":""},{"$f":"IF(DataLog!$C236=\"Log value\",DataLog!AH236,\"\")","v":""},{"$f":"IF(DataLog!$C236=\"Log value\",DataLog!AI236,\"\")","v":""},{"$f":"IF(DataLog!$C236=\"Log value\",DataLog!AJ236,\"\")","v":""},{"$f":"IF(DataLog!$C236=\"Log value\",DataLog!AK236,\"\")","v":""},{"$f":"IF(DataLog!$C236=\"Log value\",DataLog!AL236,\"\")","v":""},{"$f":"IF(DataLog!$C236=\"Log value\",DataLog!AM236,\"\")","v":""}]
[null,null,"Standard","Standard -  - ",null,null,{"$f":"IF(DataLog!$C237=\"Log value\",DataLog!D237&\"_\"&TEXT(DataLog!B237,\"åååå-mm-dd\"),\"\")","v":""},{"$f":"IF(DataLog!$C237=\"Log value\",DataLog!E237,\"\")","v":""},{"$f":"IF(DataLog!$C237=\"Log value\",DataLog!F237,\"\")","v":""},{"$f":"IF(DataLog!$C237=\"Log value\",DataLog!G237,\"\")","v":""},{"$f":"IF(DataLog!$C237=\"Log value\",DataLog!H237,\"\")","v":""},{"$f":"IF(DataLog!$C237=\"Log value\",DataLog!I237,\"\")","v":""},{"$f":"IF(DataLog!$C237=\"Log value\",DataLog!J237,\"\")","v":""},{"$f":"IF(DataLog!$C237=\"Log value\",DataLog!K237,\"\")","v":""},{"$f":"IF(DataLog!$C237=\"Log value\",DataLog!L237,\"\")","v":""},{"$f":"IF(DataLog!$C237=\"Log value\",DataLog!M237,\"\")","v":""},{"$f":"IF(DataLog!$C237=\"Log value\",DataLog!N237,\"\")","v":""},{"$f":"IF(DataLog!$C237=\"Log value\",DataLog!O237,\"\")","v":""},{"$f":"IF(DataLog!$C237=\"Log value\",DataLog!P237,\"\")","v":""},{"$f":"IF(DataLog!$C237=\"Log value\",DataLog!Q237,\"\")","v":""},{"$f":"IF(DataLog!$C237=\"Log value\",DataLog!R237,\"\")","v":""},{"$f":"IF(DataLog!$C237=\"Log value\",DataLog!S237,\"\")","v":""},{"$f":"IF(DataLog!$C237=\"Log value\",DataLog!T237,\"\")","v":""},{"$f":"IF(DataLog!$C237=\"Log value\",DataLog!U237,\"\")","v":""},{"$f":"IF(DataLog!$C237=\"Log value\",DataLog!V237,\"\")","v":""},{"$f":"IF(DataLog!$C237=\"Log value\",DataLog!W237,\"\")","v":""},{"$f":"IF(DataLog!$C237=\"Log value\",DataLog!X237,\"\")","v":""},{"$f":"IF(DataLog!$C237=\"Log value\",DataLog!Y237,\"\")","v":""},{"$f":"IF(DataLog!$C237=\"Log value\",DataLog!Z237,\"\")","v":""},{"$f":"IF(DataLog!$C237=\"Log value\",DataLog!AA237,\"\")","v":""},{"$f":"IF(DataLog!$C237=\"Log value\",DataLog!AB237,\"\")","v":""},{"$f":"IF(DataLog!$C237=\"Log value\",DataLog!AC237,\"\")","v":""},{"$f":"IF(DataLog!$C237=\"Log value\",DataLog!AD237,\"\")","v":""},{"$f":"IF(DataLog!$C237=\"Log value\",DataLog!AE237,\"\")","v":""},{"$f":"IF(DataLog!$C237=\"Log value\",DataLog!AF237,\"\")","v":""},{"$f":"IF(DataLog!$C237=\"Log value\",DataLog!AG237,\"\")","v":""},{"$f":"IF(DataLog!$C237=\"Log value\",DataLog!AH237,\"\")","v":""},{"$f":"IF(DataLog!$C237=\"Log value\",DataLog!AI237,\"\")","v":""},{"$f":"IF(DataLog!$C237=\"Log value\",DataLog!AJ237,\"\")","v":""},{"$f":"IF(DataLog!$C237=\"Log value\",DataLog!AK237,\"\")","v":""},{"$f":"IF(DataLog!$C237=\"Log value\",DataLog!AL237,\"\")","v":""},{"$f":"IF(DataLog!$C237=\"Log value\",DataLog!AM237,\"\")","v":""}]
[null,null,"Standard","Standard -  - ",null,null,{"$f":"IF(DataLog!$C238=\"Log value\",DataLog!D238&\"_\"&TEXT(DataLog!B238,\"åååå-mm-dd\"),\"\")","v":""},{"$f":"IF(DataLog!$C238=\"Log value\",DataLog!E238,\"\")","v":""},{"$f":"IF(DataLog!$C238=\"Log value\",DataLog!F238,\"\")","v":""},{"$f":"IF(DataLog!$C238=\"Log value\",DataLog!G238,\"\")","v":""},{"$f":"IF(DataLog!$C238=\"Log value\",DataLog!H238,\"\")","v":""},{"$f":"IF(DataLog!$C238=\"Log value\",DataLog!I238,\"\")","v":""},{"$f":"IF(DataLog!$C238=\"Log value\",DataLog!J238,\"\")","v":""},{"$f":"IF(DataLog!$C238=\"Log value\",DataLog!K238,\"\")","v":""},{"$f":"IF(DataLog!$C238=\"Log value\",DataLog!L238,\"\")","v":""},{"$f":"IF(DataLog!$C238=\"Log value\",DataLog!M238,\"\")","v":""},{"$f":"IF(DataLog!$C238=\"Log value\",DataLog!N238,\"\")","v":""},{"$f":"IF(DataLog!$C238=\"Log value\",DataLog!O238,\"\")","v":""},{"$f":"IF(DataLog!$C238=\"Log value\",DataLog!P238,\"\")","v":""},{"$f":"IF(DataLog!$C238=\"Log value\",DataLog!Q238,\"\")","v":""},{"$f":"IF(DataLog!$C238=\"Log value\",DataLog!R238,\"\")","v":""},{"$f":"IF(DataLog!$C238=\"Log value\",DataLog!S238,\"\")","v":""},{"$f":"IF(DataLog!$C238=\"Log value\",DataLog!T238,\"\")","v":""},{"$f":"IF(DataLog!$C238=\"Log value\",DataLog!U238,\"\")","v":""},{"$f":"IF(DataLog!$C238=\"Log value\",DataLog!V238,\"\")","v":""},{"$f":"IF(DataLog!$C238=\"Log value\",DataLog!W238,\"\")","v":""},{"$f":"IF(DataLog!$C238=\"Log value\",DataLog!X238,\"\")","v":""},{"$f":"IF(DataLog!$C238=\"Log value\",DataLog!Y238,\"\")","v":""},{"$f":"IF(DataLog!$C238=\"Log value\",DataLog!Z238,\"\")","v":""},{"$f":"IF(DataLog!$C238=\"Log value\",DataLog!AA238,\"\")","v":""},{"$f":"IF(DataLog!$C238=\"Log value\",DataLog!AB238,\"\")","v":""},{"$f":"IF(DataLog!$C238=\"Log value\",DataLog!AC238,\"\")","v":""},{"$f":"IF(DataLog!$C238=\"Log value\",DataLog!AD238,\"\")","v":""},{"$f":"IF(DataLog!$C238=\"Log value\",DataLog!AE238,\"\")","v":""},{"$f":"IF(DataLog!$C238=\"Log value\",DataLog!AF238,\"\")","v":""},{"$f":"IF(DataLog!$C238=\"Log value\",DataLog!AG238,\"\")","v":""},{"$f":"IF(DataLog!$C238=\"Log value\",DataLog!AH238,\"\")","v":""},{"$f":"IF(DataLog!$C238=\"Log value\",DataLog!AI238,\"\")","v":""},{"$f":"IF(DataLog!$C238=\"Log value\",DataLog!AJ238,\"\")","v":""},{"$f":"IF(DataLog!$C238=\"Log value\",DataLog!AK238,\"\")","v":""},{"$f":"IF(DataLog!$C238=\"Log value\",DataLog!AL238,\"\")","v":""},{"$f":"IF(DataLog!$C238=\"Log value\",DataLog!AM238,\"\")","v":""}]
[null,null,"Standard","Standard -  - ",null,null,{"$f":"IF(DataLog!$C239=\"Log value\",DataLog!D239&\"_\"&TEXT(DataLog!B239,\"åååå-mm-dd\"),\"\")","v":""},{"$f":"IF(DataLog!$C239=\"Log value\",DataLog!E239,\"\")","v":""},{"$f":"IF(DataLog!$C239=\"Log value\",DataLog!F239,\"\")","v":""},{"$f":"IF(DataLog!$C239=\"Log value\",DataLog!G239,\"\")","v":""},{"$f":"IF(DataLog!$C239=\"Log value\",DataLog!H239,\"\")","v":""},{"$f":"IF(DataLog!$C239=\"Log value\",DataLog!I239,\"\")","v":""},{"$f":"IF(DataLog!$C239=\"Log value\",DataLog!J239,\"\")","v":""},{"$f":"IF(DataLog!$C239=\"Log value\",DataLog!K239,\"\")","v":""},{"$f":"IF(DataLog!$C239=\"Log value\",DataLog!L239,\"\")","v":""},{"$f":"IF(DataLog!$C239=\"Log value\",DataLog!M239,\"\")","v":""},{"$f":"IF(DataLog!$C239=\"Log value\",DataLog!N239,\"\")","v":""},{"$f":"IF(DataLog!$C239=\"Log value\",DataLog!O239,\"\")","v":""},{"$f":"IF(DataLog!$C239=\"Log value\",DataLog!P239,\"\")","v":""},{"$f":"IF(DataLog!$C239=\"Log value\",DataLog!Q239,\"\")","v":""},{"$f":"IF(DataLog!$C239=\"Log value\",DataLog!R239,\"\")","v":""},{"$f":"IF(DataLog!$C239=\"Log value\",DataLog!S239,\"\")","v":""},{"$f":"IF(DataLog!$C239=\"Log value\",DataLog!T239,\"\")","v":""},{"$f":"IF(DataLog!$C239=\"Log value\",DataLog!U239,\"\")","v":""},{"$f":"IF(DataLog!$C239=\"Log value\",DataLog!V239,\"\")","v":""},{"$f":"IF(DataLog!$C239=\"Log value\",DataLog!W239,\"\")","v":""},{"$f":"IF(DataLog!$C239=\"Log value\",DataLog!X239,\"\")","v":""},{"$f":"IF(DataLog!$C239=\"Log value\",DataLog!Y239,\"\")","v":""},{"$f":"IF(DataLog!$C239=\"Log value\",DataLog!Z239,\"\")","v":""},{"$f":"IF(DataLog!$C239=\"Log value\",DataLog!AA239,\"\")","v":""},{"$f":"IF(DataLog!$C239=\"Log value\",DataLog!AB239,\"\")","v":""},{"$f":"IF(DataLog!$C239=\"Log value\",DataLog!AC239,\"\")","v":""},{"$f":"IF(DataLog!$C239=\"Log value\",DataLog!AD239,\"\")","v":""},{"$f":"IF(DataLog!$C239=\"Log value\",DataLog!AE239,\"\")","v":""},{"$f":"IF(DataLog!$C239=\"Log value\",DataLog!AF239,\"\")","v":""},{"$f":"IF(DataLog!$C239=\"Log value\",DataLog!AG239,\"\")","v":""},{"$f":"IF(DataLog!$C239=\"Log value\",DataLog!AH239,\"\")","v":""},{"$f":"IF(DataLog!$C239=\"Log value\",DataLog!AI239,\"\")","v":""},{"$f":"IF(DataLog!$C239=\"Log value\",DataLog!AJ239,\"\")","v":""},{"$f":"IF(DataLog!$C239=\"Log value\",DataLog!AK239,\"\")","v":""},{"$f":"IF(DataLog!$C239=\"Log value\",DataLog!AL239,\"\")","v":""},{"$f":"IF(DataLog!$C239=\"Log value\",DataLog!AM239,\"\")","v":""}]
[null,null,"Standard","Standard -  - ",null,null,{"$f":"IF(DataLog!$C240=\"Log value\",DataLog!D240&\"_\"&TEXT(DataLog!B240,\"åååå-mm-dd\"),\"\")","v":""},{"$f":"IF(DataLog!$C240=\"Log value\",DataLog!E240,\"\")","v":""},{"$f":"IF(DataLog!$C240=\"Log value\",DataLog!F240,\"\")","v":""},{"$f":"IF(DataLog!$C240=\"Log value\",DataLog!G240,\"\")","v":""},{"$f":"IF(DataLog!$C240=\"Log value\",DataLog!H240,\"\")","v":""},{"$f":"IF(DataLog!$C240=\"Log value\",DataLog!I240,\"\")","v":""},{"$f":"IF(DataLog!$C240=\"Log value\",DataLog!J240,\"\")","v":""},{"$f":"IF(DataLog!$C240=\"Log value\",DataLog!K240,\"\")","v":""},{"$f":"IF(DataLog!$C240=\"Log value\",DataLog!L240,\"\")","v":""},{"$f":"IF(DataLog!$C240=\"Log value\",DataLog!M240,\"\")","v":""},{"$f":"IF(DataLog!$C240=\"Log value\",DataLog!N240,\"\")","v":""},{"$f":"IF(DataLog!$C240=\"Log value\",DataLog!O240,\"\")","v":""},{"$f":"IF(DataLog!$C240=\"Log value\",DataLog!P240,\"\")","v":""},{"$f":"IF(DataLog!$C240=\"Log value\",DataLog!Q240,\"\")","v":""},{"$f":"IF(DataLog!$C240=\"Log value\",DataLog!R240,\"\")","v":""},{"$f":"IF(DataLog!$C240=\"Log value\",DataLog!S240,\"\")","v":""},{"$f":"IF(DataLog!$C240=\"Log value\",DataLog!T240,\"\")","v":""},{"$f":"IF(DataLog!$C240=\"Log value\",DataLog!U240,\"\")","v":""},{"$f":"IF(DataLog!$C240=\"Log value\",DataLog!V240,\"\")","v":""},{"$f":"IF(DataLog!$C240=\"Log value\",DataLog!W240,\"\")","v":""},{"$f":"IF(DataLog!$C240=\"Log value\",DataLog!X240,\"\")","v":""},{"$f":"IF(DataLog!$C240=\"Log value\",DataLog!Y240,\"\")","v":""},{"$f":"IF(DataLog!$C240=\"Log value\",DataLog!Z240,\"\")","v":""},{"$f":"IF(DataLog!$C240=\"Log value\",DataLog!AA240,\"\")","v":""},{"$f":"IF(DataLog!$C240=\"Log value\",DataLog!AB240,\"\")","v":""},{"$f":"IF(DataLog!$C240=\"Log value\",DataLog!AC240,\"\")","v":""},{"$f":"IF(DataLog!$C240=\"Log value\",DataLog!AD240,\"\")","v":""},{"$f":"IF(DataLog!$C240=\"Log value\",DataLog!AE240,\"\")","v":""},{"$f":"IF(DataLog!$C240=\"Log value\",DataLog!AF240,\"\")","v":""},{"$f":"IF(DataLog!$C240=\"Log value\",DataLog!AG240,\"\")","v":""},{"$f":"IF(DataLog!$C240=\"Log value\",DataLog!AH240,\"\")","v":""},{"$f":"IF(DataLog!$C240=\"Log value\",DataLog!AI240,\"\")","v":""},{"$f":"IF(DataLog!$C240=\"Log value\",DataLog!AJ240,\"\")","v":""},{"$f":"IF(DataLog!$C240=\"Log value\",DataLog!AK240,\"\")","v":""},{"$f":"IF(DataLog!$C240=\"Log value\",DataLog!AL240,\"\")","v":""},{"$f":"IF(DataLog!$C240=\"Log value\",DataLog!AM240,\"\")","v":""}]
[null,null,"Standard","Standard -  - ",null,null,{"$f":"IF(DataLog!$C241=\"Log value\",DataLog!D241&\"_\"&TEXT(DataLog!B241,\"åååå-mm-dd\"),\"\")","v":""},{"$f":"IF(DataLog!$C241=\"Log value\",DataLog!E241,\"\")","v":""},{"$f":"IF(DataLog!$C241=\"Log value\",DataLog!F241,\"\")","v":""},{"$f":"IF(DataLog!$C241=\"Log value\",DataLog!G241,\"\")","v":""},{"$f":"IF(DataLog!$C241=\"Log value\",DataLog!H241,\"\")","v":""},{"$f":"IF(DataLog!$C241=\"Log value\",DataLog!I241,\"\")","v":""},{"$f":"IF(DataLog!$C241=\"Log value\",DataLog!J241,\"\")","v":""},{"$f":"IF(DataLog!$C241=\"Log value\",DataLog!K241,\"\")","v":""},{"$f":"IF(DataLog!$C241=\"Log value\",DataLog!L241,\"\")","v":""},{"$f":"IF(DataLog!$C241=\"Log value\",DataLog!M241,\"\")","v":""},{"$f":"IF(DataLog!$C241=\"Log value\",DataLog!N241,\"\")","v":""},{"$f":"IF(DataLog!$C241=\"Log value\",DataLog!O241,\"\")","v":""},{"$f":"IF(DataLog!$C241=\"Log value\",DataLog!P241,\"\")","v":""},{"$f":"IF(DataLog!$C241=\"Log value\",DataLog!Q241,\"\")","v":""},{"$f":"IF(DataLog!$C241=\"Log value\",DataLog!R241,\"\")","v":""},{"$f":"IF(DataLog!$C241=\"Log value\",DataLog!S241,\"\")","v":""},{"$f":"IF(DataLog!$C241=\"Log value\",DataLog!T241,\"\")","v":""},{"$f":"IF(DataLog!$C241=\"Log value\",DataLog!U241,\"\")","v":""},{"$f":"IF(DataLog!$C241=\"Log value\",DataLog!V241,\"\")","v":""},{"$f":"IF(DataLog!$C241=\"Log value\",DataLog!W241,\"\")","v":""},{"$f":"IF(DataLog!$C241=\"Log value\",DataLog!X241,\"\")","v":""},{"$f":"IF(DataLog!$C241=\"Log value\",DataLog!Y241,\"\")","v":""},{"$f":"IF(DataLog!$C241=\"Log value\",DataLog!Z241,\"\")","v":""},{"$f":"IF(DataLog!$C241=\"Log value\",DataLog!AA241,\"\")","v":""},{"$f":"IF(DataLog!$C241=\"Log value\",DataLog!AB241,\"\")","v":""},{"$f":"IF(DataLog!$C241=\"Log value\",DataLog!AC241,\"\")","v":""},{"$f":"IF(DataLog!$C241=\"Log value\",DataLog!AD241,\"\")","v":""},{"$f":"IF(DataLog!$C241=\"Log value\",DataLog!AE241,\"\")","v":""},{"$f":"IF(DataLog!$C241=\"Log value\",DataLog!AF241,\"\")","v":""},{"$f":"IF(DataLog!$C241=\"Log value\",DataLog!AG241,\"\")","v":""},{"$f":"IF(DataLog!$C241=\"Log value\",DataLog!AH241,\"\")","v":""},{"$f":"IF(DataLog!$C241=\"Log value\",DataLog!AI241,\"\")","v":""},{"$f":"IF(DataLog!$C241=\"Log value\",DataLog!AJ241,\"\")","v":""},{"$f":"IF(DataLog!$C241=\"Log value\",DataLog!AK241,\"\")","v":""},{"$f":"IF(DataLog!$C241=\"Log value\",DataLog!AL241,\"\")","v":""},{"$f":"IF(DataLog!$C241=\"Log value\",DataLog!AM241,\"\")","v":""}]
[null,null,"Standard","Standard -  - ",null,null,{"$f":"IF(DataLog!$C242=\"Log value\",DataLog!D242&\"_\"&TEXT(DataLog!B242,\"åååå-mm-dd\"),\"\")","v":""},{"$f":"IF(DataLog!$C242=\"Log value\",DataLog!E242,\"\")","v":""},{"$f":"IF(DataLog!$C242=\"Log value\",DataLog!F242,\"\")","v":""},{"$f":"IF(DataLog!$C242=\"Log value\",DataLog!G242,\"\")","v":""},{"$f":"IF(DataLog!$C242=\"Log value\",DataLog!H242,\"\")","v":""},{"$f":"IF(DataLog!$C242=\"Log value\",DataLog!I242,\"\")","v":""},{"$f":"IF(DataLog!$C242=\"Log value\",DataLog!J242,\"\")","v":""},{"$f":"IF(DataLog!$C242=\"Log value\",DataLog!K242,\"\")","v":""},{"$f":"IF(DataLog!$C242=\"Log value\",DataLog!L242,\"\")","v":""},{"$f":"IF(DataLog!$C242=\"Log value\",DataLog!M242,\"\")","v":""},{"$f":"IF(DataLog!$C242=\"Log value\",DataLog!N242,\"\")","v":""},{"$f":"IF(DataLog!$C242=\"Log value\",DataLog!O242,\"\")","v":""},{"$f":"IF(DataLog!$C242=\"Log value\",DataLog!P242,\"\")","v":""},{"$f":"IF(DataLog!$C242=\"Log value\",DataLog!Q242,\"\")","v":""},{"$f":"IF(DataLog!$C242=\"Log value\",DataLog!R242,\"\")","v":""},{"$f":"IF(DataLog!$C242=\"Log value\",DataLog!S242,\"\")","v":""},{"$f":"IF(DataLog!$C242=\"Log value\",DataLog!T242,\"\")","v":""},{"$f":"IF(DataLog!$C242=\"Log value\",DataLog!U242,\"\")","v":""},{"$f":"IF(DataLog!$C242=\"Log value\",DataLog!V242,\"\")","v":""},{"$f":"IF(DataLog!$C242=\"Log value\",DataLog!W242,\"\")","v":""},{"$f":"IF(DataLog!$C242=\"Log value\",DataLog!X242,\"\")","v":""},{"$f":"IF(DataLog!$C242=\"Log value\",DataLog!Y242,\"\")","v":""},{"$f":"IF(DataLog!$C242=\"Log value\",DataLog!Z242,\"\")","v":""},{"$f":"IF(DataLog!$C242=\"Log value\",DataLog!AA242,\"\")","v":""},{"$f":"IF(DataLog!$C242=\"Log value\",DataLog!AB242,\"\")","v":""},{"$f":"IF(DataLog!$C242=\"Log value\",DataLog!AC242,\"\")","v":""},{"$f":"IF(DataLog!$C242=\"Log value\",DataLog!AD242,\"\")","v":""},{"$f":"IF(DataLog!$C242=\"Log value\",DataLog!AE242,\"\")","v":""},{"$f":"IF(DataLog!$C242=\"Log value\",DataLog!AF242,\"\")","v":""},{"$f":"IF(DataLog!$C242=\"Log value\",DataLog!AG242,\"\")","v":""},{"$f":"IF(DataLog!$C242=\"Log value\",DataLog!AH242,\"\")","v":""},{"$f":"IF(DataLog!$C242=\"Log value\",DataLog!AI242,\"\")","v":""},{"$f":"IF(DataLog!$C242=\"Log value\",DataLog!AJ242,\"\")","v":""},{"$f":"IF(DataLog!$C242=\"Log value\",DataLog!AK242,\"\")","v":""},{"$f":"IF(DataLog!$C242=\"Log value\",DataLog!AL242,\"\")","v":""},{"$f":"IF(DataLog!$C242=\"Log value\",DataLog!AM242,\"\")","v":""}]
[null,null,"Standard","Standard -  - ",null,null,{"$f":"IF(DataLog!$C243=\"Log value\",DataLog!D243&\"_\"&TEXT(DataLog!B243,\"åååå-mm-dd\"),\"\")","v":""},{"$f":"IF(DataLog!$C243=\"Log value\",DataLog!E243,\"\")","v":""},{"$f":"IF(DataLog!$C243=\"Log value\",DataLog!F243,\"\")","v":""},{"$f":"IF(DataLog!$C243=\"Log value\",DataLog!G243,\"\")","v":""},{"$f":"IF(DataLog!$C243=\"Log value\",DataLog!H243,\"\")","v":""},{"$f":"IF(DataLog!$C243=\"Log value\",DataLog!I243,\"\")","v":""},{"$f":"IF(DataLog!$C243=\"Log value\",DataLog!J243,\"\")","v":""},{"$f":"IF(DataLog!$C243=\"Log value\",DataLog!K243,\"\")","v":""},{"$f":"IF(DataLog!$C243=\"Log value\",DataLog!L243,\"\")","v":""},{"$f":"IF(DataLog!$C243=\"Log value\",DataLog!M243,\"\")","v":""},{"$f":"IF(DataLog!$C243=\"Log value\",DataLog!N243,\"\")","v":""},{"$f":"IF(DataLog!$C243=\"Log value\",DataLog!O243,\"\")","v":""},{"$f":"IF(DataLog!$C243=\"Log value\",DataLog!P243,\"\")","v":""},{"$f":"IF(DataLog!$C243=\"Log value\",DataLog!Q243,\"\")","v":""},{"$f":"IF(DataLog!$C243=\"Log value\",DataLog!R243,\"\")","v":""},{"$f":"IF(DataLog!$C243=\"Log value\",DataLog!S243,\"\")","v":""},{"$f":"IF(DataLog!$C243=\"Log value\",DataLog!T243,\"\")","v":""},{"$f":"IF(DataLog!$C243=\"Log value\",DataLog!U243,\"\")","v":""},{"$f":"IF(DataLog!$C243=\"Log value\",DataLog!V243,\"\")","v":""},{"$f":"IF(DataLog!$C243=\"Log value\",DataLog!W243,\"\")","v":""},{"$f":"IF(DataLog!$C243=\"Log value\",DataLog!X243,\"\")","v":""},{"$f":"IF(DataLog!$C243=\"Log value\",DataLog!Y243,\"\")","v":""},{"$f":"IF(DataLog!$C243=\"Log value\",DataLog!Z243,\"\")","v":""},{"$f":"IF(DataLog!$C243=\"Log value\",DataLog!AA243,\"\")","v":""},{"$f":"IF(DataLog!$C243=\"Log value\",DataLog!AB243,\"\")","v":""},{"$f":"IF(DataLog!$C243=\"Log value\",DataLog!AC243,\"\")","v":""},{"$f":"IF(DataLog!$C243=\"Log value\",DataLog!AD243,\"\")","v":""},{"$f":"IF(DataLog!$C243=\"Log value\",DataLog!AE243,\"\")","v":""},{"$f":"IF(DataLog!$C243=\"Log value\",DataLog!AF243,\"\")","v":""},{"$f":"IF(DataLog!$C243=\"Log value\",DataLog!AG243,\"\")","v":""},{"$f":"IF(DataLog!$C243=\"Log value\",DataLog!AH243,\"\")","v":""},{"$f":"IF(DataLog!$C243=\"Log value\",DataLog!AI243,\"\")","v":""},{"$f":"IF(DataLog!$C243=\"Log value\",DataLog!AJ243,\"\")","v":""},{"$f":"IF(DataLog!$C243=\"Log value\",DataLog!AK243,\"\")","v":""},{"$f":"IF(DataLog!$C243=\"Log value\",DataLog!AL243,\"\")","v":""},{"$f":"IF(DataLog!$C243=\"Log value\",DataLog!AM243,\"\")","v":""}]
[null,null,"Standard","Standard -  - ",null,null,{"$f":"IF(DataLog!$C244=\"Log value\",DataLog!D244&\"_\"&TEXT(DataLog!B244,\"åååå-mm-dd\"),\"\")","v":""},{"$f":"IF(DataLog!$C244=\"Log value\",DataLog!E244,\"\")","v":""},{"$f":"IF(DataLog!$C244=\"Log value\",DataLog!F244,\"\")","v":""},{"$f":"IF(DataLog!$C244=\"Log value\",DataLog!G244,\"\")","v":""},{"$f":"IF(DataLog!$C244=\"Log value\",DataLog!H244,\"\")","v":""},{"$f":"IF(DataLog!$C244=\"Log value\",DataLog!I244,\"\")","v":""},{"$f":"IF(DataLog!$C244=\"Log value\",DataLog!J244,\"\")","v":""},{"$f":"IF(DataLog!$C244=\"Log value\",DataLog!K244,\"\")","v":""},{"$f":"IF(DataLog!$C244=\"Log value\",DataLog!L244,\"\")","v":""},{"$f":"IF(DataLog!$C244=\"Log value\",DataLog!M244,\"\")","v":""},{"$f":"IF(DataLog!$C244=\"Log value\",DataLog!N244,\"\")","v":""},{"$f":"IF(DataLog!$C244=\"Log value\",DataLog!O244,\"\")","v":""},{"$f":"IF(DataLog!$C244=\"Log value\",DataLog!P244,\"\")","v":""},{"$f":"IF(DataLog!$C244=\"Log value\",DataLog!Q244,\"\")","v":""},{"$f":"IF(DataLog!$C244=\"Log value\",DataLog!R244,\"\")","v":""},{"$f":"IF(DataLog!$C244=\"Log value\",DataLog!S244,\"\")","v":""},{"$f":"IF(DataLog!$C244=\"Log value\",DataLog!T244,\"\")","v":""},{"$f":"IF(DataLog!$C244=\"Log value\",DataLog!U244,\"\")","v":""},{"$f":"IF(DataLog!$C244=\"Log value\",DataLog!V244,\"\")","v":""},{"$f":"IF(DataLog!$C244=\"Log value\",DataLog!W244,\"\")","v":""},{"$f":"IF(DataLog!$C244=\"Log value\",DataLog!X244,\"\")","v":""},{"$f":"IF(DataLog!$C244=\"Log value\",DataLog!Y244,\"\")","v":""},{"$f":"IF(DataLog!$C244=\"Log value\",DataLog!Z244,\"\")","v":""},{"$f":"IF(DataLog!$C244=\"Log value\",DataLog!AA244,\"\")","v":""},{"$f":"IF(DataLog!$C244=\"Log value\",DataLog!AB244,\"\")","v":""},{"$f":"IF(DataLog!$C244=\"Log value\",DataLog!AC244,\"\")","v":""},{"$f":"IF(DataLog!$C244=\"Log value\",DataLog!AD244,\"\")","v":""},{"$f":"IF(DataLog!$C244=\"Log value\",DataLog!AE244,\"\")","v":""},{"$f":"IF(DataLog!$C244=\"Log value\",DataLog!AF244,\"\")","v":""},{"$f":"IF(DataLog!$C244=\"Log value\",DataLog!AG244,\"\")","v":""},{"$f":"IF(DataLog!$C244=\"Log value\",DataLog!AH244,\"\")","v":""},{"$f":"IF(DataLog!$C244=\"Log value\",DataLog!AI244,\"\")","v":""},{"$f":"IF(DataLog!$C244=\"Log value\",DataLog!AJ244,\"\")","v":""},{"$f":"IF(DataLog!$C244=\"Log value\",DataLog!AK244,\"\")","v":""},{"$f":"IF(DataLog!$C244=\"Log value\",DataLog!AL244,\"\")","v":""},{"$f":"IF(DataLog!$C244=\"Log value\",DataLog!AM244,\"\")","v":""}]
[null,null,"Standard","Standard -  - ",null,null,{"$f":"IF(DataLog!$C245=\"Log value\",DataLog!D245&\"_\"&TEXT(DataLog!B245,\"åååå-mm-dd\"),\"\")","v":""},{"$f":"IF(DataLog!$C245=\"Log value\",DataLog!E245,\"\")","v":""},{"$f":"IF(DataLog!$C245=\"Log value\",DataLog!F245,\"\")","v":""},{"$f":"IF(DataLog!$C245=\"Log value\",DataLog!G245,\"\")","v":""},{"$f":"IF(DataLog!$C245=\"Log value\",DataLog!H245,\"\")","v":""},{"$f":"IF(DataLog!$C245=\"Log value\",DataLog!I245,\"\")","v":""},{"$f":"IF(DataLog!$C245=\"Log value\",DataLog!J245,\"\")","v":""},{"$f":"IF(DataLog!$C245=\"Log value\",DataLog!K245,\"\")","v":""},{"$f":"IF(DataLog!$C245=\"Log value\",DataLog!L245,\"\")","v":""},{"$f":"IF(DataLog!$C245=\"Log value\",DataLog!M245,\"\")","v":""},{"$f":"IF(DataLog!$C245=\"Log value\",DataLog!N245,\"\")","v":""},{"$f":"IF(DataLog!$C245=\"Log value\",DataLog!O245,\"\")","v":""},{"$f":"IF(DataLog!$C245=\"Log value\",DataLog!P245,\"\")","v":""},{"$f":"IF(DataLog!$C245=\"Log value\",DataLog!Q245,\"\")","v":""},{"$f":"IF(DataLog!$C245=\"Log value\",DataLog!R245,\"\")","v":""},{"$f":"IF(DataLog!$C245=\"Log value\",DataLog!S245,\"\")","v":""},{"$f":"IF(DataLog!$C245=\"Log value\",DataLog!T245,\"\")","v":""},{"$f":"IF(DataLog!$C245=\"Log value\",DataLog!U245,\"\")","v":""},{"$f":"IF(DataLog!$C245=\"Log value\",DataLog!V245,\"\")","v":""},{"$f":"IF(DataLog!$C245=\"Log value\",DataLog!W245,\"\")","v":""},{"$f":"IF(DataLog!$C245=\"Log value\",DataLog!X245,\"\")","v":""},{"$f":"IF(DataLog!$C245=\"Log value\",DataLog!Y245,\"\")","v":""},{"$f":"IF(DataLog!$C245=\"Log value\",DataLog!Z245,\"\")","v":""},{"$f":"IF(DataLog!$C245=\"Log value\",DataLog!AA245,\"\")","v":""},{"$f":"IF(DataLog!$C245=\"Log value\",DataLog!AB245,\"\")","v":""},{"$f":"IF(DataLog!$C245=\"Log value\",DataLog!AC245,\"\")","v":""},{"$f":"IF(DataLog!$C245=\"Log value\",DataLog!AD245,\"\")","v":""},{"$f":"IF(DataLog!$C245=\"Log value\",DataLog!AE245,\"\")","v":""},{"$f":"IF(DataLog!$C245=\"Log value\",DataLog!AF245,\"\")","v":""},{"$f":"IF(DataLog!$C245=\"Log value\",DataLog!AG245,\"\")","v":""},{"$f":"IF(DataLog!$C245=\"Log value\",DataLog!AH245,\"\")","v":""},{"$f":"IF(DataLog!$C245=\"Log value\",DataLog!AI245,\"\")","v":""},{"$f":"IF(DataLog!$C245=\"Log value\",DataLog!AJ245,\"\")","v":""},{"$f":"IF(DataLog!$C245=\"Log value\",DataLog!AK245,\"\")","v":""},{"$f":"IF(DataLog!$C245=\"Log value\",DataLog!AL245,\"\")","v":""},{"$f":"IF(DataLog!$C245=\"Log value\",DataLog!AM245,\"\")","v":""}]
[null,null,"Standard","Standard -  - ",null,null,{"$f":"IF(DataLog!$C246=\"Log value\",DataLog!D246&\"_\"&TEXT(DataLog!B246,\"åååå-mm-dd\"),\"\")","v":""},{"$f":"IF(DataLog!$C246=\"Log value\",DataLog!E246,\"\")","v":""},{"$f":"IF(DataLog!$C246=\"Log value\",DataLog!F246,\"\")","v":""},{"$f":"IF(DataLog!$C246=\"Log value\",DataLog!G246,\"\")","v":""},{"$f":"IF(DataLog!$C246=\"Log value\",DataLog!H246,\"\")","v":""},{"$f":"IF(DataLog!$C246=\"Log value\",DataLog!I246,\"\")","v":""},{"$f":"IF(DataLog!$C246=\"Log value\",DataLog!J246,\"\")","v":""},{"$f":"IF(DataLog!$C246=\"Log value\",DataLog!K246,\"\")","v":""},{"$f":"IF(DataLog!$C246=\"Log value\",DataLog!L246,\"\")","v":""},{"$f":"IF(DataLog!$C246=\"Log value\",DataLog!M246,\"\")","v":""},{"$f":"IF(DataLog!$C246=\"Log value\",DataLog!N246,\"\")","v":""},{"$f":"IF(DataLog!$C246=\"Log value\",DataLog!O246,\"\")","v":""},{"$f":"IF(DataLog!$C246=\"Log value\",DataLog!P246,\"\")","v":""},{"$f":"IF(DataLog!$C246=\"Log value\",DataLog!Q246,\"\")","v":""},{"$f":"IF(DataLog!$C246=\"Log value\",DataLog!R246,\"\")","v":""},{"$f":"IF(DataLog!$C246=\"Log value\",DataLog!S246,\"\")","v":""},{"$f":"IF(DataLog!$C246=\"Log value\",DataLog!T246,\"\")","v":""},{"$f":"IF(DataLog!$C246=\"Log value\",DataLog!U246,\"\")","v":""},{"$f":"IF(DataLog!$C246=\"Log value\",DataLog!V246,\"\")","v":""},{"$f":"IF(DataLog!$C246=\"Log value\",DataLog!W246,\"\")","v":""},{"$f":"IF(DataLog!$C246=\"Log value\",DataLog!X246,\"\")","v":""},{"$f":"IF(DataLog!$C246=\"Log value\",DataLog!Y246,\"\")","v":""},{"$f":"IF(DataLog!$C246=\"Log value\",DataLog!Z246,\"\")","v":""},{"$f":"IF(DataLog!$C246=\"Log value\",DataLog!AA246,\"\")","v":""},{"$f":"IF(DataLog!$C246=\"Log value\",DataLog!AB246,\"\")","v":""},{"$f":"IF(DataLog!$C246=\"Log value\",DataLog!AC246,\"\")","v":""},{"$f":"IF(DataLog!$C246=\"Log value\",DataLog!AD246,\"\")","v":""},{"$f":"IF(DataLog!$C246=\"Log value\",DataLog!AE246,\"\")","v":""},{"$f":"IF(DataLog!$C246=\"Log value\",DataLog!AF246,\"\")","v":""},{"$f":"IF(DataLog!$C246=\"Log value\",DataLog!AG246,\"\")","v":""},{"$f":"IF(DataLog!$C246=\"Log value\",DataLog!AH246,\"\")","v":""},{"$f":"IF(DataLog!$C246=\"Log value\",DataLog!AI246,\"\")","v":""},{"$f":"IF(DataLog!$C246=\"Log value\",DataLog!AJ246,\"\")","v":""},{"$f":"IF(DataLog!$C246=\"Log value\",DataLog!AK246,\"\")","v":""},{"$f":"IF(DataLog!$C246=\"Log value\",DataLog!AL246,\"\")","v":""},{"$f":"IF(DataLog!$C246=\"Log value\",DataLog!AM246,\"\")","v":""}]
[null,null,"Standard","Standard -  - ",null,null,{"$f":"IF(DataLog!$C247=\"Log value\",DataLog!D247&\"_\"&TEXT(DataLog!B247,\"åååå-mm-dd\"),\"\")","v":""},{"$f":"IF(DataLog!$C247=\"Log value\",DataLog!E247,\"\")","v":""},{"$f":"IF(DataLog!$C247=\"Log value\",DataLog!F247,\"\")","v":""},{"$f":"IF(DataLog!$C247=\"Log value\",DataLog!G247,\"\")","v":""},{"$f":"IF(DataLog!$C247=\"Log value\",DataLog!H247,\"\")","v":""},{"$f":"IF(DataLog!$C247=\"Log value\",DataLog!I247,\"\")","v":""},{"$f":"IF(DataLog!$C247=\"Log value\",DataLog!J247,\"\")","v":""},{"$f":"IF(DataLog!$C247=\"Log value\",DataLog!K247,\"\")","v":""},{"$f":"IF(DataLog!$C247=\"Log value\",DataLog!L247,\"\")","v":""},{"$f":"IF(DataLog!$C247=\"Log value\",DataLog!M247,\"\")","v":""},{"$f":"IF(DataLog!$C247=\"Log value\",DataLog!N247,\"\")","v":""},{"$f":"IF(DataLog!$C247=\"Log value\",DataLog!O247,\"\")","v":""},{"$f":"IF(DataLog!$C247=\"Log value\",DataLog!P247,\"\")","v":""},{"$f":"IF(DataLog!$C247=\"Log value\",DataLog!Q247,\"\")","v":""},{"$f":"IF(DataLog!$C247=\"Log value\",DataLog!R247,\"\")","v":""},{"$f":"IF(DataLog!$C247=\"Log value\",DataLog!S247,\"\")","v":""},{"$f":"IF(DataLog!$C247=\"Log value\",DataLog!T247,\"\")","v":""},{"$f":"IF(DataLog!$C247=\"Log value\",DataLog!U247,\"\")","v":""},{"$f":"IF(DataLog!$C247=\"Log value\",DataLog!V247,\"\")","v":""},{"$f":"IF(DataLog!$C247=\"Log value\",DataLog!W247,\"\")","v":""},{"$f":"IF(DataLog!$C247=\"Log value\",DataLog!X247,\"\")","v":""},{"$f":"IF(DataLog!$C247=\"Log value\",DataLog!Y247,\"\")","v":""},{"$f":"IF(DataLog!$C247=\"Log value\",DataLog!Z247,\"\")","v":""},{"$f":"IF(DataLog!$C247=\"Log value\",DataLog!AA247,\"\")","v":""},{"$f":"IF(DataLog!$C247=\"Log value\",DataLog!AB247,\"\")","v":""},{"$f":"IF(DataLog!$C247=\"Log value\",DataLog!AC247,\"\")","v":""},{"$f":"IF(DataLog!$C247=\"Log value\",DataLog!AD247,\"\")","v":""},{"$f":"IF(DataLog!$C247=\"Log value\",DataLog!AE247,\"\")","v":""},{"$f":"IF(DataLog!$C247=\"Log value\",DataLog!AF247,\"\")","v":""},{"$f":"IF(DataLog!$C247=\"Log value\",DataLog!AG247,\"\")","v":""},{"$f":"IF(DataLog!$C247=\"Log value\",DataLog!AH247,\"\")","v":""},{"$f":"IF(DataLog!$C247=\"Log value\",DataLog!AI247,\"\")","v":""},{"$f":"IF(DataLog!$C247=\"Log value\",DataLog!AJ247,\"\")","v":""},{"$f":"IF(DataLog!$C247=\"Log value\",DataLog!AK247,\"\")","v":""},{"$f":"IF(DataLog!$C247=\"Log value\",DataLog!AL247,\"\")","v":""},{"$f":"IF(DataLog!$C247=\"Log value\",DataLog!AM247,\"\")","v":""}]
[null,null,"Standard","Standard -  - ",null,null,{"$f":"IF(DataLog!$C248=\"Log value\",DataLog!D248&\"_\"&TEXT(DataLog!B248,\"åååå-mm-dd\"),\"\")","v":""},{"$f":"IF(DataLog!$C248=\"Log value\",DataLog!E248,\"\")","v":""},{"$f":"IF(DataLog!$C248=\"Log value\",DataLog!F248,\"\")","v":""},{"$f":"IF(DataLog!$C248=\"Log value\",DataLog!G248,\"\")","v":""},{"$f":"IF(DataLog!$C248=\"Log value\",DataLog!H248,\"\")","v":""},{"$f":"IF(DataLog!$C248=\"Log value\",DataLog!I248,\"\")","v":""},{"$f":"IF(DataLog!$C248=\"Log value\",DataLog!J248,\"\")","v":""},{"$f":"IF(DataLog!$C248=\"Log value\",DataLog!K248,\"\")","v":""},{"$f":"IF(DataLog!$C248=\"Log value\",DataLog!L248,\"\")","v":""},{"$f":"IF(DataLog!$C248=\"Log value\",DataLog!M248,\"\")","v":""},{"$f":"IF(DataLog!$C248=\"Log value\",DataLog!N248,\"\")","v":""},{"$f":"IF(DataLog!$C248=\"Log value\",DataLog!O248,\"\")","v":""},{"$f":"IF(DataLog!$C248=\"Log value\",DataLog!P248,\"\")","v":""},{"$f":"IF(DataLog!$C248=\"Log value\",DataLog!Q248,\"\")","v":""},{"$f":"IF(DataLog!$C248=\"Log value\",DataLog!R248,\"\")","v":""},{"$f":"IF(DataLog!$C248=\"Log value\",DataLog!S248,\"\")","v":""},{"$f":"IF(DataLog!$C248=\"Log value\",DataLog!T248,\"\")","v":""},{"$f":"IF(DataLog!$C248=\"Log value\",DataLog!U248,\"\")","v":""},{"$f":"IF(DataLog!$C248=\"Log value\",DataLog!V248,\"\")","v":""},{"$f":"IF(DataLog!$C248=\"Log value\",DataLog!W248,\"\")","v":""},{"$f":"IF(DataLog!$C248=\"Log value\",DataLog!X248,\"\")","v":""},{"$f":"IF(DataLog!$C248=\"Log value\",DataLog!Y248,\"\")","v":""},{"$f":"IF(DataLog!$C248=\"Log value\",DataLog!Z248,\"\")","v":""},{"$f":"IF(DataLog!$C248=\"Log value\",DataLog!AA248,\"\")","v":""},{"$f":"IF(DataLog!$C248=\"Log value\",DataLog!AB248,\"\")","v":""},{"$f":"IF(DataLog!$C248=\"Log value\",DataLog!AC248,\"\")","v":""},{"$f":"IF(DataLog!$C248=\"Log value\",DataLog!AD248,\"\")","v":""},{"$f":"IF(DataLog!$C248=\"Log value\",DataLog!AE248,\"\")","v":""},{"$f":"IF(DataLog!$C248=\"Log value\",DataLog!AF248,\"\")","v":""},{"$f":"IF(DataLog!$C248=\"Log value\",DataLog!AG248,\"\")","v":""},{"$f":"IF(DataLog!$C248=\"Log value\",DataLog!AH248,\"\")","v":""},{"$f":"IF(DataLog!$C248=\"Log value\",DataLog!AI248,\"\")","v":""},{"$f":"IF(DataLog!$C248=\"Log value\",DataLog!AJ248,\"\")","v":""},{"$f":"IF(DataLog!$C248=\"Log value\",DataLog!AK248,\"\")","v":""},{"$f":"IF(DataLog!$C248=\"Log value\",DataLog!AL248,\"\")","v":""},{"$f":"IF(DataLog!$C248=\"Log value\",DataLog!AM248,\"\")","v":""}]
[null,null,"Standard","Standard -  - ",null,null,{"$f":"IF(DataLog!$C249=\"Log value\",DataLog!D249&\"_\"&TEXT(DataLog!B249,\"åååå-mm-dd\"),\"\")","v":""},{"$f":"IF(DataLog!$C249=\"Log value\",DataLog!E249,\"\")","v":""},{"$f":"IF(DataLog!$C249=\"Log value\",DataLog!F249,\"\")","v":""},{"$f":"IF(DataLog!$C249=\"Log value\",DataLog!G249,\"\")","v":""},{"$f":"IF(DataLog!$C249=\"Log value\",DataLog!H249,\"\")","v":""},{"$f":"IF(DataLog!$C249=\"Log value\",DataLog!I249,\"\")","v":""},{"$f":"IF(DataLog!$C249=\"Log value\",DataLog!J249,\"\")","v":""},{"$f":"IF(DataLog!$C249=\"Log value\",DataLog!K249,\"\")","v":""},{"$f":"IF(DataLog!$C249=\"Log value\",DataLog!L249,\"\")","v":""},{"$f":"IF(DataLog!$C249=\"Log value\",DataLog!M249,\"\")","v":""},{"$f":"IF(DataLog!$C249=\"Log value\",DataLog!N249,\"\")","v":""},{"$f":"IF(DataLog!$C249=\"Log value\",DataLog!O249,\"\")","v":""},{"$f":"IF(DataLog!$C249=\"Log value\",DataLog!P249,\"\")","v":""},{"$f":"IF(DataLog!$C249=\"Log value\",DataLog!Q249,\"\")","v":""},{"$f":"IF(DataLog!$C249=\"Log value\",DataLog!R249,\"\")","v":""},{"$f":"IF(DataLog!$C249=\"Log value\",DataLog!S249,\"\")","v":""},{"$f":"IF(DataLog!$C249=\"Log value\",DataLog!T249,\"\")","v":""},{"$f":"IF(DataLog!$C249=\"Log value\",DataLog!U249,\"\")","v":""},{"$f":"IF(DataLog!$C249=\"Log value\",DataLog!V249,\"\")","v":""},{"$f":"IF(DataLog!$C249=\"Log value\",DataLog!W249,\"\")","v":""},{"$f":"IF(DataLog!$C249=\"Log value\",DataLog!X249,\"\")","v":""},{"$f":"IF(DataLog!$C249=\"Log value\",DataLog!Y249,\"\")","v":""},{"$f":"IF(DataLog!$C249=\"Log value\",DataLog!Z249,\"\")","v":""},{"$f":"IF(DataLog!$C249=\"Log value\",DataLog!AA249,\"\")","v":""},{"$f":"IF(DataLog!$C249=\"Log value\",DataLog!AB249,\"\")","v":""},{"$f":"IF(DataLog!$C249=\"Log value\",DataLog!AC249,\"\")","v":""},{"$f":"IF(DataLog!$C249=\"Log value\",DataLog!AD249,\"\")","v":""},{"$f":"IF(DataLog!$C249=\"Log value\",DataLog!AE249,\"\")","v":""},{"$f":"IF(DataLog!$C249=\"Log value\",DataLog!AF249,\"\")","v":""},{"$f":"IF(DataLog!$C249=\"Log value\",DataLog!AG249,\"\")","v":""},{"$f":"IF(DataLog!$C249=\"Log value\",DataLog!AH249,\"\")","v":""},{"$f":"IF(DataLog!$C249=\"Log value\",DataLog!AI249,\"\")","v":""},{"$f":"IF(DataLog!$C249=\"Log value\",DataLog!AJ249,\"\")","v":""},{"$f":"IF(DataLog!$C249=\"Log value\",DataLog!AK249,\"\")","v":""},{"$f":"IF(DataLog!$C249=\"Log value\",DataLog!AL249,\"\")","v":""},{"$f":"IF(DataLog!$C249=\"Log value\",DataLog!AM249,\"\")","v":""}]
[null,null,"Standard","Standard -  - ",null,null,{"$f":"IF(DataLog!$C250=\"Log value\",DataLog!D250&\"_\"&TEXT(DataLog!B250,\"åååå-mm-dd\"),\"\")","v":""},{"$f":"IF(DataLog!$C250=\"Log value\",DataLog!E250,\"\")","v":""},{"$f":"IF(DataLog!$C250=\"Log value\",DataLog!F250,\"\")","v":""},{"$f":"IF(DataLog!$C250=\"Log value\",DataLog!G250,\"\")","v":""},{"$f":"IF(DataLog!$C250=\"Log value\",DataLog!H250,\"\")","v":""},{"$f":"IF(DataLog!$C250=\"Log value\",DataLog!I250,\"\")","v":""},{"$f":"IF(DataLog!$C250=\"Log value\",DataLog!J250,\"\")","v":""},{"$f":"IF(DataLog!$C250=\"Log value\",DataLog!K250,\"\")","v":""},{"$f":"IF(DataLog!$C250=\"Log value\",DataLog!L250,\"\")","v":""},{"$f":"IF(DataLog!$C250=\"Log value\",DataLog!M250,\"\")","v":""},{"$f":"IF(DataLog!$C250=\"Log value\",DataLog!N250,\"\")","v":""},{"$f":"IF(DataLog!$C250=\"Log value\",DataLog!O250,\"\")","v":""},{"$f":"IF(DataLog!$C250=\"Log value\",DataLog!P250,\"\")","v":""},{"$f":"IF(DataLog!$C250=\"Log value\",DataLog!Q250,\"\")","v":""},{"$f":"IF(DataLog!$C250=\"Log value\",DataLog!R250,\"\")","v":""},{"$f":"IF(DataLog!$C250=\"Log value\",DataLog!S250,\"\")","v":""},{"$f":"IF(DataLog!$C250=\"Log value\",DataLog!T250,\"\")","v":""},{"$f":"IF(DataLog!$C250=\"Log value\",DataLog!U250,\"\")","v":""},{"$f":"IF(DataLog!$C250=\"Log value\",DataLog!V250,\"\")","v":""},{"$f":"IF(DataLog!$C250=\"Log value\",DataLog!W250,\"\")","v":""},{"$f":"IF(DataLog!$C250=\"Log value\",DataLog!X250,\"\")","v":""},{"$f":"IF(DataLog!$C250=\"Log value\",DataLog!Y250,\"\")","v":""},{"$f":"IF(DataLog!$C250=\"Log value\",DataLog!Z250,\"\")","v":""},{"$f":"IF(DataLog!$C250=\"Log value\",DataLog!AA250,\"\")","v":""},{"$f":"IF(DataLog!$C250=\"Log value\",DataLog!AB250,\"\")","v":""},{"$f":"IF(DataLog!$C250=\"Log value\",DataLog!AC250,\"\")","v":""},{"$f":"IF(DataLog!$C250=\"Log value\",DataLog!AD250,\"\")","v":""},{"$f":"IF(DataLog!$C250=\"Log value\",DataLog!AE250,\"\")","v":""},{"$f":"IF(DataLog!$C250=\"Log value\",DataLog!AF250,\"\")","v":""},{"$f":"IF(DataLog!$C250=\"Log value\",DataLog!AG250,\"\")","v":""},{"$f":"IF(DataLog!$C250=\"Log value\",DataLog!AH250,\"\")","v":""},{"$f":"IF(DataLog!$C250=\"Log value\",DataLog!AI250,\"\")","v":""},{"$f":"IF(DataLog!$C250=\"Log value\",DataLog!AJ250,\"\")","v":""},{"$f":"IF(DataLog!$C250=\"Log value\",DataLog!AK250,\"\")","v":""},{"$f":"IF(DataLog!$C250=\"Log value\",DataLog!AL250,\"\")","v":""},{"$f":"IF(DataLog!$C250=\"Log value\",DataLog!AM250,\"\")","v":""}]
[null,null,"Standard","Standard -  - ",null,null,{"$f":"IF(DataLog!$C251=\"Log value\",DataLog!D251&\"_\"&TEXT(DataLog!B251,\"åååå-mm-dd\"),\"\")","v":""},{"$f":"IF(DataLog!$C251=\"Log value\",DataLog!E251,\"\")","v":""},{"$f":"IF(DataLog!$C251=\"Log value\",DataLog!F251,\"\")","v":""},{"$f":"IF(DataLog!$C251=\"Log value\",DataLog!G251,\"\")","v":""},{"$f":"IF(DataLog!$C251=\"Log value\",DataLog!H251,\"\")","v":""},{"$f":"IF(DataLog!$C251=\"Log value\",DataLog!I251,\"\")","v":""},{"$f":"IF(DataLog!$C251=\"Log value\",DataLog!J251,\"\")","v":""},{"$f":"IF(DataLog!$C251=\"Log value\",DataLog!K251,\"\")","v":""},{"$f":"IF(DataLog!$C251=\"Log value\",DataLog!L251,\"\")","v":""},{"$f":"IF(DataLog!$C251=\"Log value\",DataLog!M251,\"\")","v":""},{"$f":"IF(DataLog!$C251=\"Log value\",DataLog!N251,\"\")","v":""},{"$f":"IF(DataLog!$C251=\"Log value\",DataLog!O251,\"\")","v":""},{"$f":"IF(DataLog!$C251=\"Log value\",DataLog!P251,\"\")","v":""},{"$f":"IF(DataLog!$C251=\"Log value\",DataLog!Q251,\"\")","v":""},{"$f":"IF(DataLog!$C251=\"Log value\",DataLog!R251,\"\")","v":""},{"$f":"IF(DataLog!$C251=\"Log value\",DataLog!S251,\"\")","v":""},{"$f":"IF(DataLog!$C251=\"Log value\",DataLog!T251,\"\")","v":""},{"$f":"IF(DataLog!$C251=\"Log value\",DataLog!U251,\"\")","v":""},{"$f":"IF(DataLog!$C251=\"Log value\",DataLog!V251,\"\")","v":""},{"$f":"IF(DataLog!$C251=\"Log value\",DataLog!W251,\"\")","v":""},{"$f":"IF(DataLog!$C251=\"Log value\",DataLog!X251,\"\")","v":""},{"$f":"IF(DataLog!$C251=\"Log value\",DataLog!Y251,\"\")","v":""},{"$f":"IF(DataLog!$C251=\"Log value\",DataLog!Z251,\"\")","v":""},{"$f":"IF(DataLog!$C251=\"Log value\",DataLog!AA251,\"\")","v":""},{"$f":"IF(DataLog!$C251=\"Log value\",DataLog!AB251,\"\")","v":""},{"$f":"IF(DataLog!$C251=\"Log value\",DataLog!AC251,\"\")","v":""},{"$f":"IF(DataLog!$C251=\"Log value\",DataLog!AD251,\"\")","v":""},{"$f":"IF(DataLog!$C251=\"Log value\",DataLog!AE251,\"\")","v":""},{"$f":"IF(DataLog!$C251=\"Log value\",DataLog!AF251,\"\")","v":""},{"$f":"IF(DataLog!$C251=\"Log value\",DataLog!AG251,\"\")","v":""},{"$f":"IF(DataLog!$C251=\"Log value\",DataLog!AH251,\"\")","v":""},{"$f":"IF(DataLog!$C251=\"Log value\",DataLog!AI251,\"\")","v":""},{"$f":"IF(DataLog!$C251=\"Log value\",DataLog!AJ251,\"\")","v":""},{"$f":"IF(DataLog!$C251=\"Log value\",DataLog!AK251,\"\")","v":""},{"$f":"IF(DataLog!$C251=\"Log value\",DataLog!AL251,\"\")","v":""},{"$f":"IF(DataLog!$C251=\"Log value\",DataLog!AM251,\"\")","v":""}]
[null,null,"Standard","Standard -  - ",null,null,{"$f":"IF(DataLog!$C252=\"Log value\",DataLog!D252&\"_\"&TEXT(DataLog!B252,\"åååå-mm-dd\"),\"\")","v":""},{"$f":"IF(DataLog!$C252=\"Log value\",DataLog!E252,\"\")","v":""},{"$f":"IF(DataLog!$C252=\"Log value\",DataLog!F252,\"\")","v":""},{"$f":"IF(DataLog!$C252=\"Log value\",DataLog!G252,\"\")","v":""},{"$f":"IF(DataLog!$C252=\"Log value\",DataLog!H252,\"\")","v":""},{"$f":"IF(DataLog!$C252=\"Log value\",DataLog!I252,\"\")","v":""},{"$f":"IF(DataLog!$C252=\"Log value\",DataLog!J252,\"\")","v":""},{"$f":"IF(DataLog!$C252=\"Log value\",DataLog!K252,\"\")","v":""},{"$f":"IF(DataLog!$C252=\"Log value\",DataLog!L252,\"\")","v":""},{"$f":"IF(DataLog!$C252=\"Log value\",DataLog!M252,\"\")","v":""},{"$f":"IF(DataLog!$C252=\"Log value\",DataLog!N252,\"\")","v":""},{"$f":"IF(DataLog!$C252=\"Log value\",DataLog!O252,\"\")","v":""},{"$f":"IF(DataLog!$C252=\"Log value\",DataLog!P252,\"\")","v":""},{"$f":"IF(DataLog!$C252=\"Log value\",DataLog!Q252,\"\")","v":""},{"$f":"IF(DataLog!$C252=\"Log value\",DataLog!R252,\"\")","v":""},{"$f":"IF(DataLog!$C252=\"Log value\",DataLog!S252,\"\")","v":""},{"$f":"IF(DataLog!$C252=\"Log value\",DataLog!T252,\"\")","v":""},{"$f":"IF(DataLog!$C252=\"Log value\",DataLog!U252,\"\")","v":""},{"$f":"IF(DataLog!$C252=\"Log value\",DataLog!V252,\"\")","v":""},{"$f":"IF(DataLog!$C252=\"Log value\",DataLog!W252,\"\")","v":""},{"$f":"IF(DataLog!$C252=\"Log value\",DataLog!X252,\"\")","v":""},{"$f":"IF(DataLog!$C252=\"Log value\",DataLog!Y252,\"\")","v":""},{"$f":"IF(DataLog!$C252=\"Log value\",DataLog!Z252,\"\")","v":""},{"$f":"IF(DataLog!$C252=\"Log value\",DataLog!AA252,\"\")","v":""},{"$f":"IF(DataLog!$C252=\"Log value\",DataLog!AB252,\"\")","v":""},{"$f":"IF(DataLog!$C252=\"Log value\",DataLog!AC252,\"\")","v":""},{"$f":"IF(DataLog!$C252=\"Log value\",DataLog!AD252,\"\")","v":""},{"$f":"IF(DataLog!$C252=\"Log value\",DataLog!AE252,\"\")","v":""},{"$f":"IF(DataLog!$C252=\"Log value\",DataLog!AF252,\"\")","v":""},{"$f":"IF(DataLog!$C252=\"Log value\",DataLog!AG252,\"\")","v":""},{"$f":"IF(DataLog!$C252=\"Log value\",DataLog!AH252,\"\")","v":""},{"$f":"IF(DataLog!$C252=\"Log value\",DataLog!AI252,\"\")","v":""},{"$f":"IF(DataLog!$C252=\"Log value\",DataLog!AJ252,\"\")","v":""},{"$f":"IF(DataLog!$C252=\"Log value\",DataLog!AK252,\"\")","v":""},{"$f":"IF(DataLog!$C252=\"Log value\",DataLog!AL252,\"\")","v":""},{"$f":"IF(DataLog!$C252=\"Log value\",DataLog!AM252,\"\")","v":""}]
[null,null,"Standard","Standard -  - ",null,null,{"$f":"IF(DataLog!$C253=\"Log value\",DataLog!D253&\"_\"&TEXT(DataLog!B253,\"åååå-mm-dd\"),\"\")","v":""},{"$f":"IF(DataLog!$C253=\"Log value\",DataLog!E253,\"\")","v":""},{"$f":"IF(DataLog!$C253=\"Log value\",DataLog!F253,\"\")","v":""},{"$f":"IF(DataLog!$C253=\"Log value\",DataLog!G253,\"\")","v":""},{"$f":"IF(DataLog!$C253=\"Log value\",DataLog!H253,\"\")","v":""},{"$f":"IF(DataLog!$C253=\"Log value\",DataLog!I253,\"\")","v":""},{"$f":"IF(DataLog!$C253=\"Log value\",DataLog!J253,\"\")","v":""},{"$f":"IF(DataLog!$C253=\"Log value\",DataLog!K253,\"\")","v":""},{"$f":"IF(DataLog!$C253=\"Log value\",DataLog!L253,\"\")","v":""},{"$f":"IF(DataLog!$C253=\"Log value\",DataLog!M253,\"\")","v":""},{"$f":"IF(DataLog!$C253=\"Log value\",DataLog!N253,\"\")","v":""},{"$f":"IF(DataLog!$C253=\"Log value\",DataLog!O253,\"\")","v":""},{"$f":"IF(DataLog!$C253=\"Log value\",DataLog!P253,\"\")","v":""},{"$f":"IF(DataLog!$C253=\"Log value\",DataLog!Q253,\"\")","v":""},{"$f":"IF(DataLog!$C253=\"Log value\",DataLog!R253,\"\")","v":""},{"$f":"IF(DataLog!$C253=\"Log value\",DataLog!S253,\"\")","v":""},{"$f":"IF(DataLog!$C253=\"Log value\",DataLog!T253,\"\")","v":""},{"$f":"IF(DataLog!$C253=\"Log value\",DataLog!U253,\"\")","v":""},{"$f":"IF(DataLog!$C253=\"Log value\",DataLog!V253,\"\")","v":""},{"$f":"IF(DataLog!$C253=\"Log value\",DataLog!W253,\"\")","v":""},{"$f":"IF(DataLog!$C253=\"Log value\",DataLog!X253,\"\")","v":""},{"$f":"IF(DataLog!$C253=\"Log value\",DataLog!Y253,\"\")","v":""},{"$f":"IF(DataLog!$C253=\"Log value\",DataLog!Z253,\"\")","v":""},{"$f":"IF(DataLog!$C253=\"Log value\",DataLog!AA253,\"\")","v":""},{"$f":"IF(DataLog!$C253=\"Log value\",DataLog!AB253,\"\")","v":""},{"$f":"IF(DataLog!$C253=\"Log value\",DataLog!AC253,\"\")","v":""},{"$f":"IF(DataLog!$C253=\"Log value\",DataLog!AD253,\"\")","v":""},{"$f":"IF(DataLog!$C253=\"Log value\",DataLog!AE253,\"\")","v":""},{"$f":"IF(DataLog!$C253=\"Log value\",DataLog!AF253,\"\")","v":""},{"$f":"IF(DataLog!$C253=\"Log value\",DataLog!AG253,\"\")","v":""},{"$f":"IF(DataLog!$C253=\"Log value\",DataLog!AH253,\"\")","v":""},{"$f":"IF(DataLog!$C253=\"Log value\",DataLog!AI253,\"\")","v":""},{"$f":"IF(DataLog!$C253=\"Log value\",DataLog!AJ253,\"\")","v":""},{"$f":"IF(DataLog!$C253=\"Log value\",DataLog!AK253,\"\")","v":""},{"$f":"IF(DataLog!$C253=\"Log value\",DataLog!AL253,\"\")","v":""},{"$f":"IF(DataLog!$C253=\"Log value\",DataLog!AM253,\"\")","v":""}]
[null,null,"Standard","Standard -  - ",null,null,{"$f":"IF(DataLog!$C254=\"Log value\",DataLog!D254&\"_\"&TEXT(DataLog!B254,\"åååå-mm-dd\"),\"\")","v":""},{"$f":"IF(DataLog!$C254=\"Log value\",DataLog!E254,\"\")","v":""},{"$f":"IF(DataLog!$C254=\"Log value\",DataLog!F254,\"\")","v":""},{"$f":"IF(DataLog!$C254=\"Log value\",DataLog!G254,\"\")","v":""},{"$f":"IF(DataLog!$C254=\"Log value\",DataLog!H254,\"\")","v":""},{"$f":"IF(DataLog!$C254=\"Log value\",DataLog!I254,\"\")","v":""},{"$f":"IF(DataLog!$C254=\"Log value\",DataLog!J254,\"\")","v":""},{"$f":"IF(DataLog!$C254=\"Log value\",DataLog!K254,\"\")","v":""},{"$f":"IF(DataLog!$C254=\"Log value\",DataLog!L254,\"\")","v":""},{"$f":"IF(DataLog!$C254=\"Log value\",DataLog!M254,\"\")","v":""},{"$f":"IF(DataLog!$C254=\"Log value\",DataLog!N254,\"\")","v":""},{"$f":"IF(DataLog!$C254=\"Log value\",DataLog!O254,\"\")","v":""},{"$f":"IF(DataLog!$C254=\"Log value\",DataLog!P254,\"\")","v":""},{"$f":"IF(DataLog!$C254=\"Log value\",DataLog!Q254,\"\")","v":""},{"$f":"IF(DataLog!$C254=\"Log value\",DataLog!R254,\"\")","v":""},{"$f":"IF(DataLog!$C254=\"Log value\",DataLog!S254,\"\")","v":""},{"$f":"IF(DataLog!$C254=\"Log value\",DataLog!T254,\"\")","v":""},{"$f":"IF(DataLog!$C254=\"Log value\",DataLog!U254,\"\")","v":""},{"$f":"IF(DataLog!$C254=\"Log value\",DataLog!V254,\"\")","v":""},{"$f":"IF(DataLog!$C254=\"Log value\",DataLog!W254,\"\")","v":""},{"$f":"IF(DataLog!$C254=\"Log value\",DataLog!X254,\"\")","v":""},{"$f":"IF(DataLog!$C254=\"Log value\",DataLog!Y254,\"\")","v":""},{"$f":"IF(DataLog!$C254=\"Log value\",DataLog!Z254,\"\")","v":""},{"$f":"IF(DataLog!$C254=\"Log value\",DataLog!AA254,\"\")","v":""},{"$f":"IF(DataLog!$C254=\"Log value\",DataLog!AB254,\"\")","v":""},{"$f":"IF(DataLog!$C254=\"Log value\",DataLog!AC254,\"\")","v":""},{"$f":"IF(DataLog!$C254=\"Log value\",DataLog!AD254,\"\")","v":""},{"$f":"IF(DataLog!$C254=\"Log value\",DataLog!AE254,\"\")","v":""},{"$f":"IF(DataLog!$C254=\"Log value\",DataLog!AF254,\"\")","v":""},{"$f":"IF(DataLog!$C254=\"Log value\",DataLog!AG254,\"\")","v":""},{"$f":"IF(DataLog!$C254=\"Log value\",DataLog!AH254,\"\")","v":""},{"$f":"IF(DataLog!$C254=\"Log value\",DataLog!AI254,\"\")","v":""},{"$f":"IF(DataLog!$C254=\"Log value\",DataLog!AJ254,\"\")","v":""},{"$f":"IF(DataLog!$C254=\"Log value\",DataLog!AK254,\"\")","v":""},{"$f":"IF(DataLog!$C254=\"Log value\",DataLog!AL254,\"\")","v":""},{"$f":"IF(DataLog!$C254=\"Log value\",DataLog!AM254,\"\")","v":""}]
[null,null,"Standard","Standard -  - ",null,null,{"$f":"IF(DataLog!$C255=\"Log value\",DataLog!D255&\"_\"&TEXT(DataLog!B255,\"åååå-mm-dd\"),\"\")","v":""},{"$f":"IF(DataLog!$C255=\"Log value\",DataLog!E255,\"\")","v":""},{"$f":"IF(DataLog!$C255=\"Log value\",DataLog!F255,\"\")","v":""},{"$f":"IF(DataLog!$C255=\"Log value\",DataLog!G255,\"\")","v":""},{"$f":"IF(DataLog!$C255=\"Log value\",DataLog!H255,\"\")","v":""},{"$f":"IF(DataLog!$C255=\"Log value\",DataLog!I255,\"\")","v":""},{"$f":"IF(DataLog!$C255=\"Log value\",DataLog!J255,\"\")","v":""},{"$f":"IF(DataLog!$C255=\"Log value\",DataLog!K255,\"\")","v":""},{"$f":"IF(DataLog!$C255=\"Log value\",DataLog!L255,\"\")","v":""},{"$f":"IF(DataLog!$C255=\"Log value\",DataLog!M255,\"\")","v":""},{"$f":"IF(DataLog!$C255=\"Log value\",DataLog!N255,\"\")","v":""},{"$f":"IF(DataLog!$C255=\"Log value\",DataLog!O255,\"\")","v":""},{"$f":"IF(DataLog!$C255=\"Log value\",DataLog!P255,\"\")","v":""},{"$f":"IF(DataLog!$C255=\"Log value\",DataLog!Q255,\"\")","v":""},{"$f":"IF(DataLog!$C255=\"Log value\",DataLog!R255,\"\")","v":""},{"$f":"IF(DataLog!$C255=\"Log value\",DataLog!S255,\"\")","v":""},{"$f":"IF(DataLog!$C255=\"Log value\",DataLog!T255,\"\")","v":""},{"$f":"IF(DataLog!$C255=\"Log value\",DataLog!U255,\"\")","v":""},{"$f":"IF(DataLog!$C255=\"Log value\",DataLog!V255,\"\")","v":""},{"$f":"IF(DataLog!$C255=\"Log value\",DataLog!W255,\"\")","v":""},{"$f":"IF(DataLog!$C255=\"Log value\",DataLog!X255,\"\")","v":""},{"$f":"IF(DataLog!$C255=\"Log value\",DataLog!Y255,\"\")","v":""},{"$f":"IF(DataLog!$C255=\"Log value\",DataLog!Z255,\"\")","v":""},{"$f":"IF(DataLog!$C255=\"Log value\",DataLog!AA255,\"\")","v":""},{"$f":"IF(DataLog!$C255=\"Log value\",DataLog!AB255,\"\")","v":""},{"$f":"IF(DataLog!$C255=\"Log value\",DataLog!AC255,\"\")","v":""},{"$f":"IF(DataLog!$C255=\"Log value\",DataLog!AD255,\"\")","v":""},{"$f":"IF(DataLog!$C255=\"Log value\",DataLog!AE255,\"\")","v":""},{"$f":"IF(DataLog!$C255=\"Log value\",DataLog!AF255,\"\")","v":""},{"$f":"IF(DataLog!$C255=\"Log value\",DataLog!AG255,\"\")","v":""},{"$f":"IF(DataLog!$C255=\"Log value\",DataLog!AH255,\"\")","v":""},{"$f":"IF(DataLog!$C255=\"Log value\",DataLog!AI255,\"\")","v":""},{"$f":"IF(DataLog!$C255=\"Log value\",DataLog!AJ255,\"\")","v":""},{"$f":"IF(DataLog!$C255=\"Log value\",DataLog!AK255,\"\")","v":""},{"$f":"IF(DataLog!$C255=\"Log value\",DataLog!AL255,\"\")","v":""},{"$f":"IF(DataLog!$C255=\"Log value\",DataLog!AM255,\"\")","v":""}]
[null,null,"Standard","Standard -  - ",null,null,{"$f":"IF(DataLog!$C256=\"Log value\",DataLog!D256&\"_\"&TEXT(DataLog!B256,\"åååå-mm-dd\"),\"\")","v":""},{"$f":"IF(DataLog!$C256=\"Log value\",DataLog!E256,\"\")","v":""},{"$f":"IF(DataLog!$C256=\"Log value\",DataLog!F256,\"\")","v":""},{"$f":"IF(DataLog!$C256=\"Log value\",DataLog!G256,\"\")","v":""},{"$f":"IF(DataLog!$C256=\"Log value\",DataLog!H256,\"\")","v":""},{"$f":"IF(DataLog!$C256=\"Log value\",DataLog!I256,\"\")","v":""},{"$f":"IF(DataLog!$C256=\"Log value\",DataLog!J256,\"\")","v":""},{"$f":"IF(DataLog!$C256=\"Log value\",DataLog!K256,\"\")","v":""},{"$f":"IF(DataLog!$C256=\"Log value\",DataLog!L256,\"\")","v":""},{"$f":"IF(DataLog!$C256=\"Log value\",DataLog!M256,\"\")","v":""},{"$f":"IF(DataLog!$C256=\"Log value\",DataLog!N256,\"\")","v":""},{"$f":"IF(DataLog!$C256=\"Log value\",DataLog!O256,\"\")","v":""},{"$f":"IF(DataLog!$C256=\"Log value\",DataLog!P256,\"\")","v":""},{"$f":"IF(DataLog!$C256=\"Log value\",DataLog!Q256,\"\")","v":""},{"$f":"IF(DataLog!$C256=\"Log value\",DataLog!R256,\"\")","v":""},{"$f":"IF(DataLog!$C256=\"Log value\",DataLog!S256,\"\")","v":""},{"$f":"IF(DataLog!$C256=\"Log value\",DataLog!T256,\"\")","v":""},{"$f":"IF(DataLog!$C256=\"Log value\",DataLog!U256,\"\")","v":""},{"$f":"IF(DataLog!$C256=\"Log value\",DataLog!V256,\"\")","v":""},{"$f":"IF(DataLog!$C256=\"Log value\",DataLog!W256,\"\")","v":""},{"$f":"IF(DataLog!$C256=\"Log value\",DataLog!X256,\"\")","v":""},{"$f":"IF(DataLog!$C256=\"Log value\",DataLog!Y256,\"\")","v":""},{"$f":"IF(DataLog!$C256=\"Log value\",DataLog!Z256,\"\")","v":""},{"$f":"IF(DataLog!$C256=\"Log value\",DataLog!AA256,\"\")","v":""},{"$f":"IF(DataLog!$C256=\"Log value\",DataLog!AB256,\"\")","v":""},{"$f":"IF(DataLog!$C256=\"Log value\",DataLog!AC256,\"\")","v":""},{"$f":"IF(DataLog!$C256=\"Log value\",DataLog!AD256,\"\")","v":""},{"$f":"IF(DataLog!$C256=\"Log value\",DataLog!AE256,\"\")","v":""},{"$f":"IF(DataLog!$C256=\"Log value\",DataLog!AF256,\"\")","v":""},{"$f":"IF(DataLog!$C256=\"Log value\",DataLog!AG256,\"\")","v":""},{"$f":"IF(DataLog!$C256=\"Log value\",DataLog!AH256,\"\")","v":""},{"$f":"IF(DataLog!$C256=\"Log value\",DataLog!AI256,\"\")","v":""},{"$f":"IF(DataLog!$C256=\"Log value\",DataLog!AJ256,\"\")","v":""},{"$f":"IF(DataLog!$C256=\"Log value\",DataLog!AK256,\"\")","v":""},{"$f":"IF(DataLog!$C256=\"Log value\",DataLog!AL256,\"\")","v":""},{"$f":"IF(DataLog!$C256=\"Log value\",DataLog!AM256,\"\")","v":""}]
[null,null,"Standard","Standard -  - ",null,null,{"$f":"IF(DataLog!$C257=\"Log value\",DataLog!D257&\"_\"&TEXT(DataLog!B257,\"åååå-mm-dd\"),\"\")","v":""},{"$f":"IF(DataLog!$C257=\"Log value\",DataLog!E257,\"\")","v":""},{"$f":"IF(DataLog!$C257=\"Log value\",DataLog!F257,\"\")","v":""},{"$f":"IF(DataLog!$C257=\"Log value\",DataLog!G257,\"\")","v":""},{"$f":"IF(DataLog!$C257=\"Log value\",DataLog!H257,\"\")","v":""},{"$f":"IF(DataLog!$C257=\"Log value\",DataLog!I257,\"\")","v":""},{"$f":"IF(DataLog!$C257=\"Log value\",DataLog!J257,\"\")","v":""},{"$f":"IF(DataLog!$C257=\"Log value\",DataLog!K257,\"\")","v":""},{"$f":"IF(DataLog!$C257=\"Log value\",DataLog!L257,\"\")","v":""},{"$f":"IF(DataLog!$C257=\"Log value\",DataLog!M257,\"\")","v":""},{"$f":"IF(DataLog!$C257=\"Log value\",DataLog!N257,\"\")","v":""},{"$f":"IF(DataLog!$C257=\"Log value\",DataLog!O257,\"\")","v":""},{"$f":"IF(DataLog!$C257=\"Log value\",DataLog!P257,\"\")","v":""},{"$f":"IF(DataLog!$C257=\"Log value\",DataLog!Q257,\"\")","v":""},{"$f":"IF(DataLog!$C257=\"Log value\",DataLog!R257,\"\")","v":""},{"$f":"IF(DataLog!$C257=\"Log value\",DataLog!S257,\"\")","v":""},{"$f":"IF(DataLog!$C257=\"Log value\",DataLog!T257,\"\")","v":""},{"$f":"IF(DataLog!$C257=\"Log value\",DataLog!U257,\"\")","v":""},{"$f":"IF(DataLog!$C257=\"Log value\",DataLog!V257,\"\")","v":""},{"$f":"IF(DataLog!$C257=\"Log value\",DataLog!W257,\"\")","v":""},{"$f":"IF(DataLog!$C257=\"Log value\",DataLog!X257,\"\")","v":""},{"$f":"IF(DataLog!$C257=\"Log value\",DataLog!Y257,\"\")","v":""},{"$f":"IF(DataLog!$C257=\"Log value\",DataLog!Z257,\"\")","v":""},{"$f":"IF(DataLog!$C257=\"Log value\",DataLog!AA257,\"\")","v":""},{"$f":"IF(DataLog!$C257=\"Log value\",DataLog!AB257,\"\")","v":""},{"$f":"IF(DataLog!$C257=\"Log value\",DataLog!AC257,\"\")","v":""},{"$f":"IF(DataLog!$C257=\"Log value\",DataLog!AD257,\"\")","v":""},{"$f":"IF(DataLog!$C257=\"Log value\",DataLog!AE257,\"\")","v":""},{"$f":"IF(DataLog!$C257=\"Log value\",DataLog!AF257,\"\")","v":""},{"$f":"IF(DataLog!$C257=\"Log value\",DataLog!AG257,\"\")","v":""},{"$f":"IF(DataLog!$C257=\"Log value\",DataLog!AH257,\"\")","v":""},{"$f":"IF(DataLog!$C257=\"Log value\",DataLog!AI257,\"\")","v":""},{"$f":"IF(DataLog!$C257=\"Log value\",DataLog!AJ257,\"\")","v":""},{"$f":"IF(DataLog!$C257=\"Log value\",DataLog!AK257,\"\")","v":""},{"$f":"IF(DataLog!$C257=\"Log value\",DataLog!AL257,\"\")","v":""},{"$f":"IF(DataLog!$C257=\"Log value\",DataLog!AM257,\"\")","v":""}]
[null,null,"Standard","Standard -  - ",null,null,{"$f":"IF(DataLog!$C258=\"Log value\",DataLog!D258&\"_\"&TEXT(DataLog!B258,\"åååå-mm-dd\"),\"\")","v":""},{"$f":"IF(DataLog!$C258=\"Log value\",DataLog!E258,\"\")","v":""},{"$f":"IF(DataLog!$C258=\"Log value\",DataLog!F258,\"\")","v":""},{"$f":"IF(DataLog!$C258=\"Log value\",DataLog!G258,\"\")","v":""},{"$f":"IF(DataLog!$C258=\"Log value\",DataLog!H258,\"\")","v":""},{"$f":"IF(DataLog!$C258=\"Log value\",DataLog!I258,\"\")","v":""},{"$f":"IF(DataLog!$C258=\"Log value\",DataLog!J258,\"\")","v":""},{"$f":"IF(DataLog!$C258=\"Log value\",DataLog!K258,\"\")","v":""},{"$f":"IF(DataLog!$C258=\"Log value\",DataLog!L258,\"\")","v":""},{"$f":"IF(DataLog!$C258=\"Log value\",DataLog!M258,\"\")","v":""},{"$f":"IF(DataLog!$C258=\"Log value\",DataLog!N258,\"\")","v":""},{"$f":"IF(DataLog!$C258=\"Log value\",DataLog!O258,\"\")","v":""},{"$f":"IF(DataLog!$C258=\"Log value\",DataLog!P258,\"\")","v":""},{"$f":"IF(DataLog!$C258=\"Log value\",DataLog!Q258,\"\")","v":""},{"$f":"IF(DataLog!$C258=\"Log value\",DataLog!R258,\"\")","v":""},{"$f":"IF(DataLog!$C258=\"Log value\",DataLog!S258,\"\")","v":""},{"$f":"IF(DataLog!$C258=\"Log value\",DataLog!T258,\"\")","v":""},{"$f":"IF(DataLog!$C258=\"Log value\",DataLog!U258,\"\")","v":""},{"$f":"IF(DataLog!$C258=\"Log value\",DataLog!V258,\"\")","v":""},{"$f":"IF(DataLog!$C258=\"Log value\",DataLog!W258,\"\")","v":""},{"$f":"IF(DataLog!$C258=\"Log value\",DataLog!X258,\"\")","v":""},{"$f":"IF(DataLog!$C258=\"Log value\",DataLog!Y258,\"\")","v":""},{"$f":"IF(DataLog!$C258=\"Log value\",DataLog!Z258,\"\")","v":""},{"$f":"IF(DataLog!$C258=\"Log value\",DataLog!AA258,\"\")","v":""},{"$f":"IF(DataLog!$C258=\"Log value\",DataLog!AB258,\"\")","v":""},{"$f":"IF(DataLog!$C258=\"Log value\",DataLog!AC258,\"\")","v":""},{"$f":"IF(DataLog!$C258=\"Log value\",DataLog!AD258,\"\")","v":""},{"$f":"IF(DataLog!$C258=\"Log value\",DataLog!AE258,\"\")","v":""},{"$f":"IF(DataLog!$C258=\"Log value\",DataLog!AF258,\"\")","v":""},{"$f":"IF(DataLog!$C258=\"Log value\",DataLog!AG258,\"\")","v":""},{"$f":"IF(DataLog!$C258=\"Log value\",DataLog!AH258,\"\")","v":""},{"$f":"IF(DataLog!$C258=\"Log value\",DataLog!AI258,\"\")","v":""},{"$f":"IF(DataLog!$C258=\"Log value\",DataLog!AJ258,\"\")","v":""},{"$f":"IF(DataLog!$C258=\"Log value\",DataLog!AK258,\"\")","v":""},{"$f":"IF(DataLog!$C258=\"Log value\",DataLog!AL258,\"\")","v":""},{"$f":"IF(DataLog!$C258=\"Log value\",DataLog!AM258,\"\")","v":""}]
[null,null,"Standard","Standard -  - ",null,null,{"$f":"IF(DataLog!$C259=\"Log value\",DataLog!D259&\"_\"&TEXT(DataLog!B259,\"åååå-mm-dd\"),\"\")","v":""},{"$f":"IF(DataLog!$C259=\"Log value\",DataLog!E259,\"\")","v":""},{"$f":"IF(DataLog!$C259=\"Log value\",DataLog!F259,\"\")","v":""},{"$f":"IF(DataLog!$C259=\"Log value\",DataLog!G259,\"\")","v":""},{"$f":"IF(DataLog!$C259=\"Log value\",DataLog!H259,\"\")","v":""},{"$f":"IF(DataLog!$C259=\"Log value\",DataLog!I259,\"\")","v":""},{"$f":"IF(DataLog!$C259=\"Log value\",DataLog!J259,\"\")","v":""},{"$f":"IF(DataLog!$C259=\"Log value\",DataLog!K259,\"\")","v":""},{"$f":"IF(DataLog!$C259=\"Log value\",DataLog!L259,\"\")","v":""},{"$f":"IF(DataLog!$C259=\"Log value\",DataLog!M259,\"\")","v":""},{"$f":"IF(DataLog!$C259=\"Log value\",DataLog!N259,\"\")","v":""},{"$f":"IF(DataLog!$C259=\"Log value\",DataLog!O259,\"\")","v":""},{"$f":"IF(DataLog!$C259=\"Log value\",DataLog!P259,\"\")","v":""},{"$f":"IF(DataLog!$C259=\"Log value\",DataLog!Q259,\"\")","v":""},{"$f":"IF(DataLog!$C259=\"Log value\",DataLog!R259,\"\")","v":""},{"$f":"IF(DataLog!$C259=\"Log value\",DataLog!S259,\"\")","v":""},{"$f":"IF(DataLog!$C259=\"Log value\",DataLog!T259,\"\")","v":""},{"$f":"IF(DataLog!$C259=\"Log value\",DataLog!U259,\"\")","v":""},{"$f":"IF(DataLog!$C259=\"Log value\",DataLog!V259,\"\")","v":""},{"$f":"IF(DataLog!$C259=\"Log value\",DataLog!W259,\"\")","v":""},{"$f":"IF(DataLog!$C259=\"Log value\",DataLog!X259,\"\")","v":""},{"$f":"IF(DataLog!$C259=\"Log value\",DataLog!Y259,\"\")","v":""},{"$f":"IF(DataLog!$C259=\"Log value\",DataLog!Z259,\"\")","v":""},{"$f":"IF(DataLog!$C259=\"Log value\",DataLog!AA259,\"\")","v":""},{"$f":"IF(DataLog!$C259=\"Log value\",DataLog!AB259,\"\")","v":""},{"$f":"IF(DataLog!$C259=\"Log value\",DataLog!AC259,\"\")","v":""},{"$f":"IF(DataLog!$C259=\"Log value\",DataLog!AD259,\"\")","v":""},{"$f":"IF(DataLog!$C259=\"Log value\",DataLog!AE259,\"\")","v":""},{"$f":"IF(DataLog!$C259=\"Log value\",DataLog!AF259,\"\")","v":""},{"$f":"IF(DataLog!$C259=\"Log value\",DataLog!AG259,\"\")","v":""},{"$f":"IF(DataLog!$C259=\"Log value\",DataLog!AH259,\"\")","v":""},{"$f":"IF(DataLog!$C259=\"Log value\",DataLog!AI259,\"\")","v":""},{"$f":"IF(DataLog!$C259=\"Log value\",DataLog!AJ259,\"\")","v":""},{"$f":"IF(DataLog!$C259=\"Log value\",DataLog!AK259,\"\")","v":""},{"$f":"IF(DataLog!$C259=\"Log value\",DataLog!AL259,\"\")","v":""},{"$f":"IF(DataLog!$C259=\"Log value\",DataLog!AM259,\"\")","v":""}]
[null,null,"Standard","Standard -  - ",null,null,{"$f":"IF(DataLog!$C260=\"Log value\",DataLog!D260&\"_\"&TEXT(DataLog!B260,\"åååå-mm-dd\"),\"\")","v":""},{"$f":"IF(DataLog!$C260=\"Log value\",DataLog!E260,\"\")","v":""},{"$f":"IF(DataLog!$C260=\"Log value\",DataLog!F260,\"\")","v":""},{"$f":"IF(DataLog!$C260=\"Log value\",DataLog!G260,\"\")","v":""},{"$f":"IF(DataLog!$C260=\"Log value\",DataLog!H260,\"\")","v":""},{"$f":"IF(DataLog!$C260=\"Log value\",DataLog!I260,\"\")","v":""},{"$f":"IF(DataLog!$C260=\"Log value\",DataLog!J260,\"\")","v":""},{"$f":"IF(DataLog!$C260=\"Log value\",DataLog!K260,\"\")","v":""},{"$f":"IF(DataLog!$C260=\"Log value\",DataLog!L260,\"\")","v":""},{"$f":"IF(DataLog!$C260=\"Log value\",DataLog!M260,\"\")","v":""},{"$f":"IF(DataLog!$C260=\"Log value\",DataLog!N260,\"\")","v":""},{"$f":"IF(DataLog!$C260=\"Log value\",DataLog!O260,\"\")","v":""},{"$f":"IF(DataLog!$C260=\"Log value\",DataLog!P260,\"\")","v":""},{"$f":"IF(DataLog!$C260=\"Log value\",DataLog!Q260,\"\")","v":""},{"$f":"IF(DataLog!$C260=\"Log value\",DataLog!R260,\"\")","v":""},{"$f":"IF(DataLog!$C260=\"Log value\",DataLog!S260,\"\")","v":""},{"$f":"IF(DataLog!$C260=\"Log value\",DataLog!T260,\"\")","v":""},{"$f":"IF(DataLog!$C260=\"Log value\",DataLog!U260,\"\")","v":""},{"$f":"IF(DataLog!$C260=\"Log value\",DataLog!V260,\"\")","v":""},{"$f":"IF(DataLog!$C260=\"Log value\",DataLog!W260,\"\")","v":""},{"$f":"IF(DataLog!$C260=\"Log value\",DataLog!X260,\"\")","v":""},{"$f":"IF(DataLog!$C260=\"Log value\",DataLog!Y260,\"\")","v":""},{"$f":"IF(DataLog!$C260=\"Log value\",DataLog!Z260,\"\")","v":""},{"$f":"IF(DataLog!$C260=\"Log value\",DataLog!AA260,\"\")","v":""},{"$f":"IF(DataLog!$C260=\"Log value\",DataLog!AB260,\"\")","v":""},{"$f":"IF(DataLog!$C260=\"Log value\",DataLog!AC260,\"\")","v":""},{"$f":"IF(DataLog!$C260=\"Log value\",DataLog!AD260,\"\")","v":""},{"$f":"IF(DataLog!$C260=\"Log value\",DataLog!AE260,\"\")","v":""},{"$f":"IF(DataLog!$C260=\"Log value\",DataLog!AF260,\"\")","v":""},{"$f":"IF(DataLog!$C260=\"Log value\",DataLog!AG260,\"\")","v":""},{"$f":"IF(DataLog!$C260=\"Log value\",DataLog!AH260,\"\")","v":""},{"$f":"IF(DataLog!$C260=\"Log value\",DataLog!AI260,\"\")","v":""},{"$f":"IF(DataLog!$C260=\"Log value\",DataLog!AJ260,\"\")","v":""},{"$f":"IF(DataLog!$C260=\"Log value\",DataLog!AK260,\"\")","v":""},{"$f":"IF(DataLog!$C260=\"Log value\",DataLog!AL260,\"\")","v":""},{"$f":"IF(DataLog!$C260=\"Log value\",DataLog!AM260,\"\")","v":""}]
[null,null,"Standard","Standard -  - ",null,null,{"$f":"IF(DataLog!$C261=\"Log value\",DataLog!D261&\"_\"&TEXT(DataLog!B261,\"åååå-mm-dd\"),\"\")","v":""},{"$f":"IF(DataLog!$C261=\"Log value\",DataLog!E261,\"\")","v":""},{"$f":"IF(DataLog!$C261=\"Log value\",DataLog!F261,\"\")","v":""},{"$f":"IF(DataLog!$C261=\"Log value\",DataLog!G261,\"\")","v":""},{"$f":"IF(DataLog!$C261=\"Log value\",DataLog!H261,\"\")","v":""},{"$f":"IF(DataLog!$C261=\"Log value\",DataLog!I261,\"\")","v":""},{"$f":"IF(DataLog!$C261=\"Log value\",DataLog!J261,\"\")","v":""},{"$f":"IF(DataLog!$C261=\"Log value\",DataLog!K261,\"\")","v":""},{"$f":"IF(DataLog!$C261=\"Log value\",DataLog!L261,\"\")","v":""},{"$f":"IF(DataLog!$C261=\"Log value\",DataLog!M261,\"\")","v":""},{"$f":"IF(DataLog!$C261=\"Log value\",DataLog!N261,\"\")","v":""},{"$f":"IF(DataLog!$C261=\"Log value\",DataLog!O261,\"\")","v":""},{"$f":"IF(DataLog!$C261=\"Log value\",DataLog!P261,\"\")","v":""},{"$f":"IF(DataLog!$C261=\"Log value\",DataLog!Q261,\"\")","v":""},{"$f":"IF(DataLog!$C261=\"Log value\",DataLog!R261,\"\")","v":""},{"$f":"IF(DataLog!$C261=\"Log value\",DataLog!S261,\"\")","v":""},{"$f":"IF(DataLog!$C261=\"Log value\",DataLog!T261,\"\")","v":""},{"$f":"IF(DataLog!$C261=\"Log value\",DataLog!U261,\"\")","v":""},{"$f":"IF(DataLog!$C261=\"Log value\",DataLog!V261,\"\")","v":""},{"$f":"IF(DataLog!$C261=\"Log value\",DataLog!W261,\"\")","v":""},{"$f":"IF(DataLog!$C261=\"Log value\",DataLog!X261,\"\")","v":""},{"$f":"IF(DataLog!$C261=\"Log value\",DataLog!Y261,\"\")","v":""},{"$f":"IF(DataLog!$C261=\"Log value\",DataLog!Z261,\"\")","v":""},{"$f":"IF(DataLog!$C261=\"Log value\",DataLog!AA261,\"\")","v":""},{"$f":"IF(DataLog!$C261=\"Log value\",DataLog!AB261,\"\")","v":""},{"$f":"IF(DataLog!$C261=\"Log value\",DataLog!AC261,\"\")","v":""},{"$f":"IF(DataLog!$C261=\"Log value\",DataLog!AD261,\"\")","v":""},{"$f":"IF(DataLog!$C261=\"Log value\",DataLog!AE261,\"\")","v":""},{"$f":"IF(DataLog!$C261=\"Log value\",DataLog!AF261,\"\")","v":""},{"$f":"IF(DataLog!$C261=\"Log value\",DataLog!AG261,\"\")","v":""},{"$f":"IF(DataLog!$C261=\"Log value\",DataLog!AH261,\"\")","v":""},{"$f":"IF(DataLog!$C261=\"Log value\",DataLog!AI261,\"\")","v":""},{"$f":"IF(DataLog!$C261=\"Log value\",DataLog!AJ261,\"\")","v":""},{"$f":"IF(DataLog!$C261=\"Log value\",DataLog!AK261,\"\")","v":""},{"$f":"IF(DataLog!$C261=\"Log value\",DataLog!AL261,\"\")","v":""},{"$f":"IF(DataLog!$C261=\"Log value\",DataLog!AM261,\"\")","v":""}]
[null,null,"Standard","Standard -  - ",null,null,{"$f":"IF(DataLog!$C262=\"Log value\",DataLog!D262&\"_\"&TEXT(DataLog!B262,\"åååå-mm-dd\"),\"\")","v":""},{"$f":"IF(DataLog!$C262=\"Log value\",DataLog!E262,\"\")","v":""},{"$f":"IF(DataLog!$C262=\"Log value\",DataLog!F262,\"\")","v":""},{"$f":"IF(DataLog!$C262=\"Log value\",DataLog!G262,\"\")","v":""},{"$f":"IF(DataLog!$C262=\"Log value\",DataLog!H262,\"\")","v":""},{"$f":"IF(DataLog!$C262=\"Log value\",DataLog!I262,\"\")","v":""},{"$f":"IF(DataLog!$C262=\"Log value\",DataLog!J262,\"\")","v":""},{"$f":"IF(DataLog!$C262=\"Log value\",DataLog!K262,\"\")","v":""},{"$f":"IF(DataLog!$C262=\"Log value\",DataLog!L262,\"\")","v":""},{"$f":"IF(DataLog!$C262=\"Log value\",DataLog!M262,\"\")","v":""},{"$f":"IF(DataLog!$C262=\"Log value\",DataLog!N262,\"\")","v":""},{"$f":"IF(DataLog!$C262=\"Log value\",DataLog!O262,\"\")","v":""},{"$f":"IF(DataLog!$C262=\"Log value\",DataLog!P262,\"\")","v":""},{"$f":"IF(DataLog!$C262=\"Log value\",DataLog!Q262,\"\")","v":""},{"$f":"IF(DataLog!$C262=\"Log value\",DataLog!R262,\"\")","v":""},{"$f":"IF(DataLog!$C262=\"Log value\",DataLog!S262,\"\")","v":""},{"$f":"IF(DataLog!$C262=\"Log value\",DataLog!T262,\"\")","v":""},{"$f":"IF(DataLog!$C262=\"Log value\",DataLog!U262,\"\")","v":""},{"$f":"IF(DataLog!$C262=\"Log value\",DataLog!V262,\"\")","v":""},{"$f":"IF(DataLog!$C262=\"Log value\",DataLog!W262,\"\")","v":""},{"$f":"IF(DataLog!$C262=\"Log value\",DataLog!X262,\"\")","v":""},{"$f":"IF(DataLog!$C262=\"Log value\",DataLog!Y262,\"\")","v":""},{"$f":"IF(DataLog!$C262=\"Log value\",DataLog!Z262,\"\")","v":""},{"$f":"IF(DataLog!$C262=\"Log value\",DataLog!AA262,\"\")","v":""},{"$f":"IF(DataLog!$C262=\"Log value\",DataLog!AB262,\"\")","v":""},{"$f":"IF(DataLog!$C262=\"Log value\",DataLog!AC262,\"\")","v":""},{"$f":"IF(DataLog!$C262=\"Log value\",DataLog!AD262,\"\")","v":""},{"$f":"IF(DataLog!$C262=\"Log value\",DataLog!AE262,\"\")","v":""},{"$f":"IF(DataLog!$C262=\"Log value\",DataLog!AF262,\"\")","v":""},{"$f":"IF(DataLog!$C262=\"Log value\",DataLog!AG262,\"\")","v":""},{"$f":"IF(DataLog!$C262=\"Log value\",DataLog!AH262,\"\")","v":""},{"$f":"IF(DataLog!$C262=\"Log value\",DataLog!AI262,\"\")","v":""},{"$f":"IF(DataLog!$C262=\"Log value\",DataLog!AJ262,\"\")","v":""},{"$f":"IF(DataLog!$C262=\"Log value\",DataLog!AK262,\"\")","v":""},{"$f":"IF(DataLog!$C262=\"Log value\",DataLog!AL262,\"\")","v":""},{"$f":"IF(DataLog!$C262=\"Log value\",DataLog!AM262,\"\")","v":""}]
[null,null,"Standard","Standard -  - ",null,null,{"$f":"IF(DataLog!$C263=\"Log value\",DataLog!D263&\"_\"&TEXT(DataLog!B263,\"åååå-mm-dd\"),\"\")","v":""},{"$f":"IF(DataLog!$C263=\"Log value\",DataLog!E263,\"\")","v":""},{"$f":"IF(DataLog!$C263=\"Log value\",DataLog!F263,\"\")","v":""},{"$f":"IF(DataLog!$C263=\"Log value\",DataLog!G263,\"\")","v":""},{"$f":"IF(DataLog!$C263=\"Log value\",DataLog!H263,\"\")","v":""},{"$f":"IF(DataLog!$C263=\"Log value\",DataLog!I263,\"\")","v":""},{"$f":"IF(DataLog!$C263=\"Log value\",DataLog!J263,\"\")","v":""},{"$f":"IF(DataLog!$C263=\"Log value\",DataLog!K263,\"\")","v":""},{"$f":"IF(DataLog!$C263=\"Log value\",DataLog!L263,\"\")","v":""},{"$f":"IF(DataLog!$C263=\"Log value\",DataLog!M263,\"\")","v":""},{"$f":"IF(DataLog!$C263=\"Log value\",DataLog!N263,\"\")","v":""},{"$f":"IF(DataLog!$C263=\"Log value\",DataLog!O263,\"\")","v":""},{"$f":"IF(DataLog!$C263=\"Log value\",DataLog!P263,\"\")","v":""},{"$f":"IF(DataLog!$C263=\"Log value\",DataLog!Q263,\"\")","v":""},{"$f":"IF(DataLog!$C263=\"Log value\",DataLog!R263,\"\")","v":""},{"$f":"IF(DataLog!$C263=\"Log value\",DataLog!S263,\"\")","v":""},{"$f":"IF(DataLog!$C263=\"Log value\",DataLog!T263,\"\")","v":""},{"$f":"IF(DataLog!$C263=\"Log value\",DataLog!U263,\"\")","v":""},{"$f":"IF(DataLog!$C263=\"Log value\",DataLog!V263,\"\")","v":""},{"$f":"IF(DataLog!$C263=\"Log value\",DataLog!W263,\"\")","v":""},{"$f":"IF(DataLog!$C263=\"Log value\",DataLog!X263,\"\")","v":""},{"$f":"IF(DataLog!$C263=\"Log value\",DataLog!Y263,\"\")","v":""},{"$f":"IF(DataLog!$C263=\"Log value\",DataLog!Z263,\"\")","v":""},{"$f":"IF(DataLog!$C263=\"Log value\",DataLog!AA263,\"\")","v":""},{"$f":"IF(DataLog!$C263=\"Log value\",DataLog!AB263,\"\")","v":""},{"$f":"IF(DataLog!$C263=\"Log value\",DataLog!AC263,\"\")","v":""},{"$f":"IF(DataLog!$C263=\"Log value\",DataLog!AD263,\"\")","v":""},{"$f":"IF(DataLog!$C263=\"Log value\",DataLog!AE263,\"\")","v":""},{"$f":"IF(DataLog!$C263=\"Log value\",DataLog!AF263,\"\")","v":""},{"$f":"IF(DataLog!$C263=\"Log value\",DataLog!AG263,\"\")","v":""},{"$f":"IF(DataLog!$C263=\"Log value\",DataLog!AH263,\"\")","v":""},{"$f":"IF(DataLog!$C263=\"Log value\",DataLog!AI263,\"\")","v":""},{"$f":"IF(DataLog!$C263=\"Log value\",DataLog!AJ263,\"\")","v":""},{"$f":"IF(DataLog!$C263=\"Log value\",DataLog!AK263,\"\")","v":""},{"$f":"IF(DataLog!$C263=\"Log value\",DataLog!AL263,\"\")","v":""},{"$f":"IF(DataLog!$C263=\"Log value\",DataLog!AM263,\"\")","v":""}]
[null,null,"Standard","Standard -  - ",null,null,{"$f":"IF(DataLog!$C264=\"Log value\",DataLog!D264&\"_\"&TEXT(DataLog!B264,\"åååå-mm-dd\"),\"\")","v":""},{"$f":"IF(DataLog!$C264=\"Log value\",DataLog!E264,\"\")","v":""},{"$f":"IF(DataLog!$C264=\"Log value\",DataLog!F264,\"\")","v":""},{"$f":"IF(DataLog!$C264=\"Log value\",DataLog!G264,\"\")","v":""},{"$f":"IF(DataLog!$C264=\"Log value\",DataLog!H264,\"\")","v":""},{"$f":"IF(DataLog!$C264=\"Log value\",DataLog!I264,\"\")","v":""},{"$f":"IF(DataLog!$C264=\"Log value\",DataLog!J264,\"\")","v":""},{"$f":"IF(DataLog!$C264=\"Log value\",DataLog!K264,\"\")","v":""},{"$f":"IF(DataLog!$C264=\"Log value\",DataLog!L264,\"\")","v":""},{"$f":"IF(DataLog!$C264=\"Log value\",DataLog!M264,\"\")","v":""},{"$f":"IF(DataLog!$C264=\"Log value\",DataLog!N264,\"\")","v":""},{"$f":"IF(DataLog!$C264=\"Log value\",DataLog!O264,\"\")","v":""},{"$f":"IF(DataLog!$C264=\"Log value\",DataLog!P264,\"\")","v":""},{"$f":"IF(DataLog!$C264=\"Log value\",DataLog!Q264,\"\")","v":""},{"$f":"IF(DataLog!$C264=\"Log value\",DataLog!R264,\"\")","v":""},{"$f":"IF(DataLog!$C264=\"Log value\",DataLog!S264,\"\")","v":""},{"$f":"IF(DataLog!$C264=\"Log value\",DataLog!T264,\"\")","v":""},{"$f":"IF(DataLog!$C264=\"Log value\",DataLog!U264,\"\")","v":""},{"$f":"IF(DataLog!$C264=\"Log value\",DataLog!V264,\"\")","v":""},{"$f":"IF(DataLog!$C264=\"Log value\",DataLog!W264,\"\")","v":""},{"$f":"IF(DataLog!$C264=\"Log value\",DataLog!X264,\"\")","v":""},{"$f":"IF(DataLog!$C264=\"Log value\",DataLog!Y264,\"\")","v":""},{"$f":"IF(DataLog!$C264=\"Log value\",DataLog!Z264,\"\")","v":""},{"$f":"IF(DataLog!$C264=\"Log value\",DataLog!AA264,\"\")","v":""},{"$f":"IF(DataLog!$C264=\"Log value\",DataLog!AB264,\"\")","v":""},{"$f":"IF(DataLog!$C264=\"Log value\",DataLog!AC264,\"\")","v":""},{"$f":"IF(DataLog!$C264=\"Log value\",DataLog!AD264,\"\")","v":""},{"$f":"IF(DataLog!$C264=\"Log value\",DataLog!AE264,\"\")","v":""},{"$f":"IF(DataLog!$C264=\"Log value\",DataLog!AF264,\"\")","v":""},{"$f":"IF(DataLog!$C264=\"Log value\",DataLog!AG264,\"\")","v":""},{"$f":"IF(DataLog!$C264=\"Log value\",DataLog!AH264,\"\")","v":""},{"$f":"IF(DataLog!$C264=\"Log value\",DataLog!AI264,\"\")","v":""},{"$f":"IF(DataLog!$C264=\"Log value\",DataLog!AJ264,\"\")","v":""},{"$f":"IF(DataLog!$C264=\"Log value\",DataLog!AK264,\"\")","v":""},{"$f":"IF(DataLog!$C264=\"Log value\",DataLog!AL264,\"\")","v":""},{"$f":"IF(DataLog!$C264=\"Log value\",DataLog!AM264,\"\")","v":""}]
[null,null,"Standard","Standard -  - ",null,null,{"$f":"IF(DataLog!$C265=\"Log value\",DataLog!D265&\"_\"&TEXT(DataLog!B265,\"åååå-mm-dd\"),\"\")","v":""},{"$f":"IF(DataLog!$C265=\"Log value\",DataLog!E265,\"\")","v":""},{"$f":"IF(DataLog!$C265=\"Log value\",DataLog!F265,\"\")","v":""},{"$f":"IF(DataLog!$C265=\"Log value\",DataLog!G265,\"\")","v":""},{"$f":"IF(DataLog!$C265=\"Log value\",DataLog!H265,\"\")","v":""},{"$f":"IF(DataLog!$C265=\"Log value\",DataLog!I265,\"\")","v":""},{"$f":"IF(DataLog!$C265=\"Log value\",DataLog!J265,\"\")","v":""},{"$f":"IF(DataLog!$C265=\"Log value\",DataLog!K265,\"\")","v":""},{"$f":"IF(DataLog!$C265=\"Log value\",DataLog!L265,\"\")","v":""},{"$f":"IF(DataLog!$C265=\"Log value\",DataLog!M265,\"\")","v":""},{"$f":"IF(DataLog!$C265=\"Log value\",DataLog!N265,\"\")","v":""},{"$f":"IF(DataLog!$C265=\"Log value\",DataLog!O265,\"\")","v":""},{"$f":"IF(DataLog!$C265=\"Log value\",DataLog!P265,\"\")","v":""},{"$f":"IF(DataLog!$C265=\"Log value\",DataLog!Q265,\"\")","v":""},{"$f":"IF(DataLog!$C265=\"Log value\",DataLog!R265,\"\")","v":""},{"$f":"IF(DataLog!$C265=\"Log value\",DataLog!S265,\"\")","v":""},{"$f":"IF(DataLog!$C265=\"Log value\",DataLog!T265,\"\")","v":""},{"$f":"IF(DataLog!$C265=\"Log value\",DataLog!U265,\"\")","v":""},{"$f":"IF(DataLog!$C265=\"Log value\",DataLog!V265,\"\")","v":""},{"$f":"IF(DataLog!$C265=\"Log value\",DataLog!W265,\"\")","v":""},{"$f":"IF(DataLog!$C265=\"Log value\",DataLog!X265,\"\")","v":""},{"$f":"IF(DataLog!$C265=\"Log value\",DataLog!Y265,\"\")","v":""},{"$f":"IF(DataLog!$C265=\"Log value\",DataLog!Z265,\"\")","v":""},{"$f":"IF(DataLog!$C265=\"Log value\",DataLog!AA265,\"\")","v":""},{"$f":"IF(DataLog!$C265=\"Log value\",DataLog!AB265,\"\")","v":""},{"$f":"IF(DataLog!$C265=\"Log value\",DataLog!AC265,\"\")","v":""},{"$f":"IF(DataLog!$C265=\"Log value\",DataLog!AD265,\"\")","v":""},{"$f":"IF(DataLog!$C265=\"Log value\",DataLog!AE265,\"\")","v":""},{"$f":"IF(DataLog!$C265=\"Log value\",DataLog!AF265,\"\")","v":""},{"$f":"IF(DataLog!$C265=\"Log value\",DataLog!AG265,\"\")","v":""},{"$f":"IF(DataLog!$C265=\"Log value\",DataLog!AH265,\"\")","v":""},{"$f":"IF(DataLog!$C265=\"Log value\",DataLog!AI265,\"\")","v":""},{"$f":"IF(DataLog!$C265=\"Log value\",DataLog!AJ265,\"\")","v":""},{"$f":"IF(DataLog!$C265=\"Log value\",DataLog!AK265,\"\")","v":""},{"$f":"IF(DataLog!$C265=\"Log value\",DataLog!AL265,\"\")","v":""},{"$f":"IF(DataLog!$C265=\"Log value\",DataLog!AM265,\"\")","v":""}]
[null,null,"Standard","Standard -  - ",null,null,{"$f":"IF(DataLog!$C266=\"Log value\",DataLog!D266&\"_\"&TEXT(DataLog!B266,\"åååå-mm-dd\"),\"\")","v":""},{"$f":"IF(DataLog!$C266=\"Log value\",DataLog!E266,\"\")","v":""},{"$f":"IF(DataLog!$C266=\"Log value\",DataLog!F266,\"\")","v":""},{"$f":"IF(DataLog!$C266=\"Log value\",DataLog!G266,\"\")","v":""},{"$f":"IF(DataLog!$C266=\"Log value\",DataLog!H266,\"\")","v":""},{"$f":"IF(DataLog!$C266=\"Log value\",DataLog!I266,\"\")","v":""},{"$f":"IF(DataLog!$C266=\"Log value\",DataLog!J266,\"\")","v":""},{"$f":"IF(DataLog!$C266=\"Log value\",DataLog!K266,\"\")","v":""},{"$f":"IF(DataLog!$C266=\"Log value\",DataLog!L266,\"\")","v":""},{"$f":"IF(DataLog!$C266=\"Log value\",DataLog!M266,\"\")","v":""},{"$f":"IF(DataLog!$C266=\"Log value\",DataLog!N266,\"\")","v":""},{"$f":"IF(DataLog!$C266=\"Log value\",DataLog!O266,\"\")","v":""},{"$f":"IF(DataLog!$C266=\"Log value\",DataLog!P266,\"\")","v":""},{"$f":"IF(DataLog!$C266=\"Log value\",DataLog!Q266,\"\")","v":""},{"$f":"IF(DataLog!$C266=\"Log value\",DataLog!R266,\"\")","v":""},{"$f":"IF(DataLog!$C266=\"Log value\",DataLog!S266,\"\")","v":""},{"$f":"IF(DataLog!$C266=\"Log value\",DataLog!T266,\"\")","v":""},{"$f":"IF(DataLog!$C266=\"Log value\",DataLog!U266,\"\")","v":""},{"$f":"IF(DataLog!$C266=\"Log value\",DataLog!V266,\"\")","v":""},{"$f":"IF(DataLog!$C266=\"Log value\",DataLog!W266,\"\")","v":""},{"$f":"IF(DataLog!$C266=\"Log value\",DataLog!X266,\"\")","v":""},{"$f":"IF(DataLog!$C266=\"Log value\",DataLog!Y266,\"\")","v":""},{"$f":"IF(DataLog!$C266=\"Log value\",DataLog!Z266,\"\")","v":""},{"$f":"IF(DataLog!$C266=\"Log value\",DataLog!AA266,\"\")","v":""},{"$f":"IF(DataLog!$C266=\"Log value\",DataLog!AB266,\"\")","v":""},{"$f":"IF(DataLog!$C266=\"Log value\",DataLog!AC266,\"\")","v":""},{"$f":"IF(DataLog!$C266=\"Log value\",DataLog!AD266,\"\")","v":""},{"$f":"IF(DataLog!$C266=\"Log value\",DataLog!AE266,\"\")","v":""},{"$f":"IF(DataLog!$C266=\"Log value\",DataLog!AF266,\"\")","v":""},{"$f":"IF(DataLog!$C266=\"Log value\",DataLog!AG266,\"\")","v":""},{"$f":"IF(DataLog!$C266=\"Log value\",DataLog!AH266,\"\")","v":""},{"$f":"IF(DataLog!$C266=\"Log value\",DataLog!AI266,\"\")","v":""},{"$f":"IF(DataLog!$C266=\"Log value\",DataLog!AJ266,\"\")","v":""},{"$f":"IF(DataLog!$C266=\"Log value\",DataLog!AK266,\"\")","v":""},{"$f":"IF(DataLog!$C266=\"Log value\",DataLog!AL266,\"\")","v":""},{"$f":"IF(DataLog!$C266=\"Log value\",DataLog!AM266,\"\")","v":""}]
[null,null,"Standard","Standard -  - ",null,null,{"$f":"IF(DataLog!$C267=\"Log value\",DataLog!D267&\"_\"&TEXT(DataLog!B267,\"åååå-mm-dd\"),\"\")","v":""},{"$f":"IF(DataLog!$C267=\"Log value\",DataLog!E267,\"\")","v":""},{"$f":"IF(DataLog!$C267=\"Log value\",DataLog!F267,\"\")","v":""},{"$f":"IF(DataLog!$C267=\"Log value\",DataLog!G267,\"\")","v":""},{"$f":"IF(DataLog!$C267=\"Log value\",DataLog!H267,\"\")","v":""},{"$f":"IF(DataLog!$C267=\"Log value\",DataLog!I267,\"\")","v":""},{"$f":"IF(DataLog!$C267=\"Log value\",DataLog!J267,\"\")","v":""},{"$f":"IF(DataLog!$C267=\"Log value\",DataLog!K267,\"\")","v":""},{"$f":"IF(DataLog!$C267=\"Log value\",DataLog!L267,\"\")","v":""},{"$f":"IF(DataLog!$C267=\"Log value\",DataLog!M267,\"\")","v":""},{"$f":"IF(DataLog!$C267=\"Log value\",DataLog!N267,\"\")","v":""},{"$f":"IF(DataLog!$C267=\"Log value\",DataLog!O267,\"\")","v":""},{"$f":"IF(DataLog!$C267=\"Log value\",DataLog!P267,\"\")","v":""},{"$f":"IF(DataLog!$C267=\"Log value\",DataLog!Q267,\"\")","v":""},{"$f":"IF(DataLog!$C267=\"Log value\",DataLog!R267,\"\")","v":""},{"$f":"IF(DataLog!$C267=\"Log value\",DataLog!S267,\"\")","v":""},{"$f":"IF(DataLog!$C267=\"Log value\",DataLog!T267,\"\")","v":""},{"$f":"IF(DataLog!$C267=\"Log value\",DataLog!U267,\"\")","v":""},{"$f":"IF(DataLog!$C267=\"Log value\",DataLog!V267,\"\")","v":""},{"$f":"IF(DataLog!$C267=\"Log value\",DataLog!W267,\"\")","v":""},{"$f":"IF(DataLog!$C267=\"Log value\",DataLog!X267,\"\")","v":""},{"$f":"IF(DataLog!$C267=\"Log value\",DataLog!Y267,\"\")","v":""},{"$f":"IF(DataLog!$C267=\"Log value\",DataLog!Z267,\"\")","v":""},{"$f":"IF(DataLog!$C267=\"Log value\",DataLog!AA267,\"\")","v":""},{"$f":"IF(DataLog!$C267=\"Log value\",DataLog!AB267,\"\")","v":""},{"$f":"IF(DataLog!$C267=\"Log value\",DataLog!AC267,\"\")","v":""},{"$f":"IF(DataLog!$C267=\"Log value\",DataLog!AD267,\"\")","v":""},{"$f":"IF(DataLog!$C267=\"Log value\",DataLog!AE267,\"\")","v":""},{"$f":"IF(DataLog!$C267=\"Log value\",DataLog!AF267,\"\")","v":""},{"$f":"IF(DataLog!$C267=\"Log value\",DataLog!AG267,\"\")","v":""},{"$f":"IF(DataLog!$C267=\"Log value\",DataLog!AH267,\"\")","v":""},{"$f":"IF(DataLog!$C267=\"Log value\",DataLog!AI267,\"\")","v":""},{"$f":"IF(DataLog!$C267=\"Log value\",DataLog!AJ267,\"\")","v":""},{"$f":"IF(DataLog!$C267=\"Log value\",DataLog!AK267,\"\")","v":""},{"$f":"IF(DataLog!$C267=\"Log value\",DataLog!AL267,\"\")","v":""},{"$f":"IF(DataLog!$C267=\"Log value\",DataLog!AM267,\"\")","v":""}]
[null,null,"Standard","Standard -  - ",null,null,{"$f":"IF(DataLog!$C268=\"Log value\",DataLog!D268&\"_\"&TEXT(DataLog!B268,\"åååå-mm-dd\"),\"\")","v":""},{"$f":"IF(DataLog!$C268=\"Log value\",DataLog!E268,\"\")","v":""},{"$f":"IF(DataLog!$C268=\"Log value\",DataLog!F268,\"\")","v":""},{"$f":"IF(DataLog!$C268=\"Log value\",DataLog!G268,\"\")","v":""},{"$f":"IF(DataLog!$C268=\"Log value\",DataLog!H268,\"\")","v":""},{"$f":"IF(DataLog!$C268=\"Log value\",DataLog!I268,\"\")","v":""},{"$f":"IF(DataLog!$C268=\"Log value\",DataLog!J268,\"\")","v":""},{"$f":"IF(DataLog!$C268=\"Log value\",DataLog!K268,\"\")","v":""},{"$f":"IF(DataLog!$C268=\"Log value\",DataLog!L268,\"\")","v":""},{"$f":"IF(DataLog!$C268=\"Log value\",DataLog!M268,\"\")","v":""},{"$f":"IF(DataLog!$C268=\"Log value\",DataLog!N268,\"\")","v":""},{"$f":"IF(DataLog!$C268=\"Log value\",DataLog!O268,\"\")","v":""},{"$f":"IF(DataLog!$C268=\"Log value\",DataLog!P268,\"\")","v":""},{"$f":"IF(DataLog!$C268=\"Log value\",DataLog!Q268,\"\")","v":""},{"$f":"IF(DataLog!$C268=\"Log value\",DataLog!R268,\"\")","v":""},{"$f":"IF(DataLog!$C268=\"Log value\",DataLog!S268,\"\")","v":""},{"$f":"IF(DataLog!$C268=\"Log value\",DataLog!T268,\"\")","v":""},{"$f":"IF(DataLog!$C268=\"Log value\",DataLog!U268,\"\")","v":""},{"$f":"IF(DataLog!$C268=\"Log value\",DataLog!V268,\"\")","v":""},{"$f":"IF(DataLog!$C268=\"Log value\",DataLog!W268,\"\")","v":""},{"$f":"IF(DataLog!$C268=\"Log value\",DataLog!X268,\"\")","v":""},{"$f":"IF(DataLog!$C268=\"Log value\",DataLog!Y268,\"\")","v":""},{"$f":"IF(DataLog!$C268=\"Log value\",DataLog!Z268,\"\")","v":""},{"$f":"IF(DataLog!$C268=\"Log value\",DataLog!AA268,\"\")","v":""},{"$f":"IF(DataLog!$C268=\"Log value\",DataLog!AB268,\"\")","v":""},{"$f":"IF(DataLog!$C268=\"Log value\",DataLog!AC268,\"\")","v":""},{"$f":"IF(DataLog!$C268=\"Log value\",DataLog!AD268,\"\")","v":""},{"$f":"IF(DataLog!$C268=\"Log value\",DataLog!AE268,\"\")","v":""},{"$f":"IF(DataLog!$C268=\"Log value\",DataLog!AF268,\"\")","v":""},{"$f":"IF(DataLog!$C268=\"Log value\",DataLog!AG268,\"\")","v":""},{"$f":"IF(DataLog!$C268=\"Log value\",DataLog!AH268,\"\")","v":""},{"$f":"IF(DataLog!$C268=\"Log value\",DataLog!AI268,\"\")","v":""},{"$f":"IF(DataLog!$C268=\"Log value\",DataLog!AJ268,\"\")","v":""},{"$f":"IF(DataLog!$C268=\"Log value\",DataLog!AK268,\"\")","v":""},{"$f":"IF(DataLog!$C268=\"Log value\",DataLog!AL268,\"\")","v":""},{"$f":"IF(DataLog!$C268=\"Log value\",DataLog!AM268,\"\")","v":""}]
[null,null,"Standard","Standard -  - ",null,null,{"$f":"IF(DataLog!$C269=\"Log value\",DataLog!D269&\"_\"&TEXT(DataLog!B269,\"åååå-mm-dd\"),\"\")","v":""},{"$f":"IF(DataLog!$C269=\"Log value\",DataLog!E269,\"\")","v":""},{"$f":"IF(DataLog!$C269=\"Log value\",DataLog!F269,\"\")","v":""},{"$f":"IF(DataLog!$C269=\"Log value\",DataLog!G269,\"\")","v":""},{"$f":"IF(DataLog!$C269=\"Log value\",DataLog!H269,\"\")","v":""},{"$f":"IF(DataLog!$C269=\"Log value\",DataLog!I269,\"\")","v":""},{"$f":"IF(DataLog!$C269=\"Log value\",DataLog!J269,\"\")","v":""},{"$f":"IF(DataLog!$C269=\"Log value\",DataLog!K269,\"\")","v":""},{"$f":"IF(DataLog!$C269=\"Log value\",DataLog!L269,\"\")","v":""},{"$f":"IF(DataLog!$C269=\"Log value\",DataLog!M269,\"\")","v":""},{"$f":"IF(DataLog!$C269=\"Log value\",DataLog!N269,\"\")","v":""},{"$f":"IF(DataLog!$C269=\"Log value\",DataLog!O269,\"\")","v":""},{"$f":"IF(DataLog!$C269=\"Log value\",DataLog!P269,\"\")","v":""},{"$f":"IF(DataLog!$C269=\"Log value\",DataLog!Q269,\"\")","v":""},{"$f":"IF(DataLog!$C269=\"Log value\",DataLog!R269,\"\")","v":""},{"$f":"IF(DataLog!$C269=\"Log value\",DataLog!S269,\"\")","v":""},{"$f":"IF(DataLog!$C269=\"Log value\",DataLog!T269,\"\")","v":""},{"$f":"IF(DataLog!$C269=\"Log value\",DataLog!U269,\"\")","v":""},{"$f":"IF(DataLog!$C269=\"Log value\",DataLog!V269,\"\")","v":""},{"$f":"IF(DataLog!$C269=\"Log value\",DataLog!W269,\"\")","v":""},{"$f":"IF(DataLog!$C269=\"Log value\",DataLog!X269,\"\")","v":""},{"$f":"IF(DataLog!$C269=\"Log value\",DataLog!Y269,\"\")","v":""},{"$f":"IF(DataLog!$C269=\"Log value\",DataLog!Z269,\"\")","v":""},{"$f":"IF(DataLog!$C269=\"Log value\",DataLog!AA269,\"\")","v":""},{"$f":"IF(DataLog!$C269=\"Log value\",DataLog!AB269,\"\")","v":""},{"$f":"IF(DataLog!$C269=\"Log value\",DataLog!AC269,\"\")","v":""},{"$f":"IF(DataLog!$C269=\"Log value\",DataLog!AD269,\"\")","v":""},{"$f":"IF(DataLog!$C269=\"Log value\",DataLog!AE269,\"\")","v":""},{"$f":"IF(DataLog!$C269=\"Log value\",DataLog!AF269,\"\")","v":""},{"$f":"IF(DataLog!$C269=\"Log value\",DataLog!AG269,\"\")","v":""},{"$f":"IF(DataLog!$C269=\"Log value\",DataLog!AH269,\"\")","v":""},{"$f":"IF(DataLog!$C269=\"Log value\",DataLog!AI269,\"\")","v":""},{"$f":"IF(DataLog!$C269=\"Log value\",DataLog!AJ269,\"\")","v":""},{"$f":"IF(DataLog!$C269=\"Log value\",DataLog!AK269,\"\")","v":""},{"$f":"IF(DataLog!$C269=\"Log value\",DataLog!AL269,\"\")","v":""},{"$f":"IF(DataLog!$C269=\"Log value\",DataLog!AM269,\"\")","v":""}]
[null,null,"Standard","Standard -  - ",null,null,{"$f":"IF(DataLog!$C270=\"Log value\",DataLog!D270&\"_\"&TEXT(DataLog!B270,\"åååå-mm-dd\"),\"\")","v":""},{"$f":"IF(DataLog!$C270=\"Log value\",DataLog!E270,\"\")","v":""},{"$f":"IF(DataLog!$C270=\"Log value\",DataLog!F270,\"\")","v":""},{"$f":"IF(DataLog!$C270=\"Log value\",DataLog!G270,\"\")","v":""},{"$f":"IF(DataLog!$C270=\"Log value\",DataLog!H270,\"\")","v":""},{"$f":"IF(DataLog!$C270=\"Log value\",DataLog!I270,\"\")","v":""},{"$f":"IF(DataLog!$C270=\"Log value\",DataLog!J270,\"\")","v":""},{"$f":"IF(DataLog!$C270=\"Log value\",DataLog!K270,\"\")","v":""},{"$f":"IF(DataLog!$C270=\"Log value\",DataLog!L270,\"\")","v":""},{"$f":"IF(DataLog!$C270=\"Log value\",DataLog!M270,\"\")","v":""},{"$f":"IF(DataLog!$C270=\"Log value\",DataLog!N270,\"\")","v":""},{"$f":"IF(DataLog!$C270=\"Log value\",DataLog!O270,\"\")","v":""},{"$f":"IF(DataLog!$C270=\"Log value\",DataLog!P270,\"\")","v":""},{"$f":"IF(DataLog!$C270=\"Log value\",DataLog!Q270,\"\")","v":""},{"$f":"IF(DataLog!$C270=\"Log value\",DataLog!R270,\"\")","v":""},{"$f":"IF(DataLog!$C270=\"Log value\",DataLog!S270,\"\")","v":""},{"$f":"IF(DataLog!$C270=\"Log value\",DataLog!T270,\"\")","v":""},{"$f":"IF(DataLog!$C270=\"Log value\",DataLog!U270,\"\")","v":""},{"$f":"IF(DataLog!$C270=\"Log value\",DataLog!V270,\"\")","v":""},{"$f":"IF(DataLog!$C270=\"Log value\",DataLog!W270,\"\")","v":""},{"$f":"IF(DataLog!$C270=\"Log value\",DataLog!X270,\"\")","v":""},{"$f":"IF(DataLog!$C270=\"Log value\",DataLog!Y270,\"\")","v":""},{"$f":"IF(DataLog!$C270=\"Log value\",DataLog!Z270,\"\")","v":""},{"$f":"IF(DataLog!$C270=\"Log value\",DataLog!AA270,\"\")","v":""},{"$f":"IF(DataLog!$C270=\"Log value\",DataLog!AB270,\"\")","v":""},{"$f":"IF(DataLog!$C270=\"Log value\",DataLog!AC270,\"\")","v":""},{"$f":"IF(DataLog!$C270=\"Log value\",DataLog!AD270,\"\")","v":""},{"$f":"IF(DataLog!$C270=\"Log value\",DataLog!AE270,\"\")","v":""},{"$f":"IF(DataLog!$C270=\"Log value\",DataLog!AF270,\"\")","v":""},{"$f":"IF(DataLog!$C270=\"Log value\",DataLog!AG270,\"\")","v":""},{"$f":"IF(DataLog!$C270=\"Log value\",DataLog!AH270,\"\")","v":""},{"$f":"IF(DataLog!$C270=\"Log value\",DataLog!AI270,\"\")","v":""},{"$f":"IF(DataLog!$C270=\"Log value\",DataLog!AJ270,\"\")","v":""},{"$f":"IF(DataLog!$C270=\"Log value\",DataLog!AK270,\"\")","v":""},{"$f":"IF(DataLog!$C270=\"Log value\",DataLog!AL270,\"\")","v":""},{"$f":"IF(DataLog!$C270=\"Log value\",DataLog!AM270,\"\")","v":""}]
[null,null,"Standard","Standard -  - ",null,null,{"$f":"IF(DataLog!$C271=\"Log value\",DataLog!D271&\"_\"&TEXT(DataLog!B271,\"åååå-mm-dd\"),\"\")","v":""},{"$f":"IF(DataLog!$C271=\"Log value\",DataLog!E271,\"\")","v":""},{"$f":"IF(DataLog!$C271=\"Log value\",DataLog!F271,\"\")","v":""},{"$f":"IF(DataLog!$C271=\"Log value\",DataLog!G271,\"\")","v":""},{"$f":"IF(DataLog!$C271=\"Log value\",DataLog!H271,\"\")","v":""},{"$f":"IF(DataLog!$C271=\"Log value\",DataLog!I271,\"\")","v":""},{"$f":"IF(DataLog!$C271=\"Log value\",DataLog!J271,\"\")","v":""},{"$f":"IF(DataLog!$C271=\"Log value\",DataLog!K271,\"\")","v":""},{"$f":"IF(DataLog!$C271=\"Log value\",DataLog!L271,\"\")","v":""},{"$f":"IF(DataLog!$C271=\"Log value\",DataLog!M271,\"\")","v":""},{"$f":"IF(DataLog!$C271=\"Log value\",DataLog!N271,\"\")","v":""},{"$f":"IF(DataLog!$C271=\"Log value\",DataLog!O271,\"\")","v":""},{"$f":"IF(DataLog!$C271=\"Log value\",DataLog!P271,\"\")","v":""},{"$f":"IF(DataLog!$C271=\"Log value\",DataLog!Q271,\"\")","v":""},{"$f":"IF(DataLog!$C271=\"Log value\",DataLog!R271,\"\")","v":""},{"$f":"IF(DataLog!$C271=\"Log value\",DataLog!S271,\"\")","v":""},{"$f":"IF(DataLog!$C271=\"Log value\",DataLog!T271,\"\")","v":""},{"$f":"IF(DataLog!$C271=\"Log value\",DataLog!U271,\"\")","v":""},{"$f":"IF(DataLog!$C271=\"Log value\",DataLog!V271,\"\")","v":""},{"$f":"IF(DataLog!$C271=\"Log value\",DataLog!W271,\"\")","v":""},{"$f":"IF(DataLog!$C271=\"Log value\",DataLog!X271,\"\")","v":""},{"$f":"IF(DataLog!$C271=\"Log value\",DataLog!Y271,\"\")","v":""},{"$f":"IF(DataLog!$C271=\"Log value\",DataLog!Z271,\"\")","v":""},{"$f":"IF(DataLog!$C271=\"Log value\",DataLog!AA271,\"\")","v":""},{"$f":"IF(DataLog!$C271=\"Log value\",DataLog!AB271,\"\")","v":""},{"$f":"IF(DataLog!$C271=\"Log value\",DataLog!AC271,\"\")","v":""},{"$f":"IF(DataLog!$C271=\"Log value\",DataLog!AD271,\"\")","v":""},{"$f":"IF(DataLog!$C271=\"Log value\",DataLog!AE271,\"\")","v":""},{"$f":"IF(DataLog!$C271=\"Log value\",DataLog!AF271,\"\")","v":""},{"$f":"IF(DataLog!$C271=\"Log value\",DataLog!AG271,\"\")","v":""},{"$f":"IF(DataLog!$C271=\"Log value\",DataLog!AH271,\"\")","v":""},{"$f":"IF(DataLog!$C271=\"Log value\",DataLog!AI271,\"\")","v":""},{"$f":"IF(DataLog!$C271=\"Log value\",DataLog!AJ271,\"\")","v":""},{"$f":"IF(DataLog!$C271=\"Log value\",DataLog!AK271,\"\")","v":""},{"$f":"IF(DataLog!$C271=\"Log value\",DataLog!AL271,\"\")","v":""},{"$f":"IF(DataLog!$C271=\"Log value\",DataLog!AM271,\"\")","v":""}]
[null,null,"Standard","Standard -  - ",null,null,{"$f":"IF(DataLog!$C272=\"Log value\",DataLog!D272&\"_\"&TEXT(DataLog!B272,\"åååå-mm-dd\"),\"\")","v":""},{"$f":"IF(DataLog!$C272=\"Log value\",DataLog!E272,\"\")","v":""},{"$f":"IF(DataLog!$C272=\"Log value\",DataLog!F272,\"\")","v":""},{"$f":"IF(DataLog!$C272=\"Log value\",DataLog!G272,\"\")","v":""},{"$f":"IF(DataLog!$C272=\"Log value\",DataLog!H272,\"\")","v":""},{"$f":"IF(DataLog!$C272=\"Log value\",DataLog!I272,\"\")","v":""},{"$f":"IF(DataLog!$C272=\"Log value\",DataLog!J272,\"\")","v":""},{"$f":"IF(DataLog!$C272=\"Log value\",DataLog!K272,\"\")","v":""},{"$f":"IF(DataLog!$C272=\"Log value\",DataLog!L272,\"\")","v":""},{"$f":"IF(DataLog!$C272=\"Log value\",DataLog!M272,\"\")","v":""},{"$f":"IF(DataLog!$C272=\"Log value\",DataLog!N272,\"\")","v":""},{"$f":"IF(DataLog!$C272=\"Log value\",DataLog!O272,\"\")","v":""},{"$f":"IF(DataLog!$C272=\"Log value\",DataLog!P272,\"\")","v":""},{"$f":"IF(DataLog!$C272=\"Log value\",DataLog!Q272,\"\")","v":""},{"$f":"IF(DataLog!$C272=\"Log value\",DataLog!R272,\"\")","v":""},{"$f":"IF(DataLog!$C272=\"Log value\",DataLog!S272,\"\")","v":""},{"$f":"IF(DataLog!$C272=\"Log value\",DataLog!T272,\"\")","v":""},{"$f":"IF(DataLog!$C272=\"Log value\",DataLog!U272,\"\")","v":""},{"$f":"IF(DataLog!$C272=\"Log value\",DataLog!V272,\"\")","v":""},{"$f":"IF(DataLog!$C272=\"Log value\",DataLog!W272,\"\")","v":""},{"$f":"IF(DataLog!$C272=\"Log value\",DataLog!X272,\"\")","v":""},{"$f":"IF(DataLog!$C272=\"Log value\",DataLog!Y272,\"\")","v":""},{"$f":"IF(DataLog!$C272=\"Log value\",DataLog!Z272,\"\")","v":""},{"$f":"IF(DataLog!$C272=\"Log value\",DataLog!AA272,\"\")","v":""},{"$f":"IF(DataLog!$C272=\"Log value\",DataLog!AB272,\"\")","v":""},{"$f":"IF(DataLog!$C272=\"Log value\",DataLog!AC272,\"\")","v":""},{"$f":"IF(DataLog!$C272=\"Log value\",DataLog!AD272,\"\")","v":""},{"$f":"IF(DataLog!$C272=\"Log value\",DataLog!AE272,\"\")","v":""},{"$f":"IF(DataLog!$C272=\"Log value\",DataLog!AF272,\"\")","v":""},{"$f":"IF(DataLog!$C272=\"Log value\",DataLog!AG272,\"\")","v":""},{"$f":"IF(DataLog!$C272=\"Log value\",DataLog!AH272,\"\")","v":""},{"$f":"IF(DataLog!$C272=\"Log value\",DataLog!AI272,\"\")","v":""},{"$f":"IF(DataLog!$C272=\"Log value\",DataLog!AJ272,\"\")","v":""},{"$f":"IF(DataLog!$C272=\"Log value\",DataLog!AK272,\"\")","v":""},{"$f":"IF(DataLog!$C272=\"Log value\",DataLog!AL272,\"\")","v":""},{"$f":"IF(DataLog!$C272=\"Log value\",DataLog!AM272,\"\")","v":""}]
[null,null,"Standard","Standard -  - ",null,null,{"$f":"IF(DataLog!$C273=\"Log value\",DataLog!D273&\"_\"&TEXT(DataLog!B273,\"åååå-mm-dd\"),\"\")","v":""},{"$f":"IF(DataLog!$C273=\"Log value\",DataLog!E273,\"\")","v":""},{"$f":"IF(DataLog!$C273=\"Log value\",DataLog!F273,\"\")","v":""},{"$f":"IF(DataLog!$C273=\"Log value\",DataLog!G273,\"\")","v":""},{"$f":"IF(DataLog!$C273=\"Log value\",DataLog!H273,\"\")","v":""},{"$f":"IF(DataLog!$C273=\"Log value\",DataLog!I273,\"\")","v":""},{"$f":"IF(DataLog!$C273=\"Log value\",DataLog!J273,\"\")","v":""},{"$f":"IF(DataLog!$C273=\"Log value\",DataLog!K273,\"\")","v":""},{"$f":"IF(DataLog!$C273=\"Log value\",DataLog!L273,\"\")","v":""},{"$f":"IF(DataLog!$C273=\"Log value\",DataLog!M273,\"\")","v":""},{"$f":"IF(DataLog!$C273=\"Log value\",DataLog!N273,\"\")","v":""},{"$f":"IF(DataLog!$C273=\"Log value\",DataLog!O273,\"\")","v":""},{"$f":"IF(DataLog!$C273=\"Log value\",DataLog!P273,\"\")","v":""},{"$f":"IF(DataLog!$C273=\"Log value\",DataLog!Q273,\"\")","v":""},{"$f":"IF(DataLog!$C273=\"Log value\",DataLog!R273,\"\")","v":""},{"$f":"IF(DataLog!$C273=\"Log value\",DataLog!S273,\"\")","v":""},{"$f":"IF(DataLog!$C273=\"Log value\",DataLog!T273,\"\")","v":""},{"$f":"IF(DataLog!$C273=\"Log value\",DataLog!U273,\"\")","v":""},{"$f":"IF(DataLog!$C273=\"Log value\",DataLog!V273,\"\")","v":""},{"$f":"IF(DataLog!$C273=\"Log value\",DataLog!W273,\"\")","v":""},{"$f":"IF(DataLog!$C273=\"Log value\",DataLog!X273,\"\")","v":""},{"$f":"IF(DataLog!$C273=\"Log value\",DataLog!Y273,\"\")","v":""},{"$f":"IF(DataLog!$C273=\"Log value\",DataLog!Z273,\"\")","v":""},{"$f":"IF(DataLog!$C273=\"Log value\",DataLog!AA273,\"\")","v":""},{"$f":"IF(DataLog!$C273=\"Log value\",DataLog!AB273,\"\")","v":""},{"$f":"IF(DataLog!$C273=\"Log value\",DataLog!AC273,\"\")","v":""},{"$f":"IF(DataLog!$C273=\"Log value\",DataLog!AD273,\"\")","v":""},{"$f":"IF(DataLog!$C273=\"Log value\",DataLog!AE273,\"\")","v":""},{"$f":"IF(DataLog!$C273=\"Log value\",DataLog!AF273,\"\")","v":""},{"$f":"IF(DataLog!$C273=\"Log value\",DataLog!AG273,\"\")","v":""},{"$f":"IF(DataLog!$C273=\"Log value\",DataLog!AH273,\"\")","v":""},{"$f":"IF(DataLog!$C273=\"Log value\",DataLog!AI273,\"\")","v":""},{"$f":"IF(DataLog!$C273=\"Log value\",DataLog!AJ273,\"\")","v":""},{"$f":"IF(DataLog!$C273=\"Log value\",DataLog!AK273,\"\")","v":""},{"$f":"IF(DataLog!$C273=\"Log value\",DataLog!AL273,\"\")","v":""},{"$f":"IF(DataLog!$C273=\"Log value\",DataLog!AM273,\"\")","v":""}]
[null,null,"Standard","Standard -  - ",null,null,{"$f":"IF(DataLog!$C274=\"Log value\",DataLog!D274&\"_\"&TEXT(DataLog!B274,\"åååå-mm-dd\"),\"\")","v":""},{"$f":"IF(DataLog!$C274=\"Log value\",DataLog!E274,\"\")","v":""},{"$f":"IF(DataLog!$C274=\"Log value\",DataLog!F274,\"\")","v":""},{"$f":"IF(DataLog!$C274=\"Log value\",DataLog!G274,\"\")","v":""},{"$f":"IF(DataLog!$C274=\"Log value\",DataLog!H274,\"\")","v":""},{"$f":"IF(DataLog!$C274=\"Log value\",DataLog!I274,\"\")","v":""},{"$f":"IF(DataLog!$C274=\"Log value\",DataLog!J274,\"\")","v":""},{"$f":"IF(DataLog!$C274=\"Log value\",DataLog!K274,\"\")","v":""},{"$f":"IF(DataLog!$C274=\"Log value\",DataLog!L274,\"\")","v":""},{"$f":"IF(DataLog!$C274=\"Log value\",DataLog!M274,\"\")","v":""},{"$f":"IF(DataLog!$C274=\"Log value\",DataLog!N274,\"\")","v":""},{"$f":"IF(DataLog!$C274=\"Log value\",DataLog!O274,\"\")","v":""},{"$f":"IF(DataLog!$C274=\"Log value\",DataLog!P274,\"\")","v":""},{"$f":"IF(DataLog!$C274=\"Log value\",DataLog!Q274,\"\")","v":""},{"$f":"IF(DataLog!$C274=\"Log value\",DataLog!R274,\"\")","v":""},{"$f":"IF(DataLog!$C274=\"Log value\",DataLog!S274,\"\")","v":""},{"$f":"IF(DataLog!$C274=\"Log value\",DataLog!T274,\"\")","v":""},{"$f":"IF(DataLog!$C274=\"Log value\",DataLog!U274,\"\")","v":""},{"$f":"IF(DataLog!$C274=\"Log value\",DataLog!V274,\"\")","v":""},{"$f":"IF(DataLog!$C274=\"Log value\",DataLog!W274,\"\")","v":""},{"$f":"IF(DataLog!$C274=\"Log value\",DataLog!X274,\"\")","v":""},{"$f":"IF(DataLog!$C274=\"Log value\",DataLog!Y274,\"\")","v":""},{"$f":"IF(DataLog!$C274=\"Log value\",DataLog!Z274,\"\")","v":""},{"$f":"IF(DataLog!$C274=\"Log value\",DataLog!AA274,\"\")","v":""},{"$f":"IF(DataLog!$C274=\"Log value\",DataLog!AB274,\"\")","v":""},{"$f":"IF(DataLog!$C274=\"Log value\",DataLog!AC274,\"\")","v":""},{"$f":"IF(DataLog!$C274=\"Log value\",DataLog!AD274,\"\")","v":""},{"$f":"IF(DataLog!$C274=\"Log value\",DataLog!AE274,\"\")","v":""},{"$f":"IF(DataLog!$C274=\"Log value\",DataLog!AF274,\"\")","v":""},{"$f":"IF(DataLog!$C274=\"Log value\",DataLog!AG274,\"\")","v":""},{"$f":"IF(DataLog!$C274=\"Log value\",DataLog!AH274,\"\")","v":""},{"$f":"IF(DataLog!$C274=\"Log value\",DataLog!AI274,\"\")","v":""},{"$f":"IF(DataLog!$C274=\"Log value\",DataLog!AJ274,\"\")","v":""},{"$f":"IF(DataLog!$C274=\"Log value\",DataLog!AK274,\"\")","v":""},{"$f":"IF(DataLog!$C274=\"Log value\",DataLog!AL274,\"\")","v":""},{"$f":"IF(DataLog!$C274=\"Log value\",DataLog!AM274,\"\")","v":""}]
[null,null,"Standard","Standard -  - ",null,null,{"$f":"IF(DataLog!$C275=\"Log value\",DataLog!D275&\"_\"&TEXT(DataLog!B275,\"åååå-mm-dd\"),\"\")","v":""},{"$f":"IF(DataLog!$C275=\"Log value\",DataLog!E275,\"\")","v":""},{"$f":"IF(DataLog!$C275=\"Log value\",DataLog!F275,\"\")","v":""},{"$f":"IF(DataLog!$C275=\"Log value\",DataLog!G275,\"\")","v":""},{"$f":"IF(DataLog!$C275=\"Log value\",DataLog!H275,\"\")","v":""},{"$f":"IF(DataLog!$C275=\"Log value\",DataLog!I275,\"\")","v":""},{"$f":"IF(DataLog!$C275=\"Log value\",DataLog!J275,\"\")","v":""},{"$f":"IF(DataLog!$C275=\"Log value\",DataLog!K275,\"\")","v":""},{"$f":"IF(DataLog!$C275=\"Log value\",DataLog!L275,\"\")","v":""},{"$f":"IF(DataLog!$C275=\"Log value\",DataLog!M275,\"\")","v":""},{"$f":"IF(DataLog!$C275=\"Log value\",DataLog!N275,\"\")","v":""},{"$f":"IF(DataLog!$C275=\"Log value\",DataLog!O275,\"\")","v":""},{"$f":"IF(DataLog!$C275=\"Log value\",DataLog!P275,\"\")","v":""},{"$f":"IF(DataLog!$C275=\"Log value\",DataLog!Q275,\"\")","v":""},{"$f":"IF(DataLog!$C275=\"Log value\",DataLog!R275,\"\")","v":""},{"$f":"IF(DataLog!$C275=\"Log value\",DataLog!S275,\"\")","v":""},{"$f":"IF(DataLog!$C275=\"Log value\",DataLog!T275,\"\")","v":""},{"$f":"IF(DataLog!$C275=\"Log value\",DataLog!U275,\"\")","v":""},{"$f":"IF(DataLog!$C275=\"Log value\",DataLog!V275,\"\")","v":""},{"$f":"IF(DataLog!$C275=\"Log value\",DataLog!W275,\"\")","v":""},{"$f":"IF(DataLog!$C275=\"Log value\",DataLog!X275,\"\")","v":""},{"$f":"IF(DataLog!$C275=\"Log value\",DataLog!Y275,\"\")","v":""},{"$f":"IF(DataLog!$C275=\"Log value\",DataLog!Z275,\"\")","v":""},{"$f":"IF(DataLog!$C275=\"Log value\",DataLog!AA275,\"\")","v":""},{"$f":"IF(DataLog!$C275=\"Log value\",DataLog!AB275,\"\")","v":""},{"$f":"IF(DataLog!$C275=\"Log value\",DataLog!AC275,\"\")","v":""},{"$f":"IF(DataLog!$C275=\"Log value\",DataLog!AD275,\"\")","v":""},{"$f":"IF(DataLog!$C275=\"Log value\",DataLog!AE275,\"\")","v":""},{"$f":"IF(DataLog!$C275=\"Log value\",DataLog!AF275,\"\")","v":""},{"$f":"IF(DataLog!$C275=\"Log value\",DataLog!AG275,\"\")","v":""},{"$f":"IF(DataLog!$C275=\"Log value\",DataLog!AH275,\"\")","v":""},{"$f":"IF(DataLog!$C275=\"Log value\",DataLog!AI275,\"\")","v":""},{"$f":"IF(DataLog!$C275=\"Log value\",DataLog!AJ275,\"\")","v":""},{"$f":"IF(DataLog!$C275=\"Log value\",DataLog!AK275,\"\")","v":""},{"$f":"IF(DataLog!$C275=\"Log value\",DataLog!AL275,\"\")","v":""},{"$f":"IF(DataLog!$C275=\"Log value\",DataLog!AM275,\"\")","v":""}]
[null,null,"Standard","Standard -  - ",null,null,{"$f":"IF(DataLog!$C276=\"Log value\",DataLog!D276&\"_\"&TEXT(DataLog!B276,\"åååå-mm-dd\"),\"\")","v":""},{"$f":"IF(DataLog!$C276=\"Log value\",DataLog!E276,\"\")","v":""},{"$f":"IF(DataLog!$C276=\"Log value\",DataLog!F276,\"\")","v":""},{"$f":"IF(DataLog!$C276=\"Log value\",DataLog!G276,\"\")","v":""},{"$f":"IF(DataLog!$C276=\"Log value\",DataLog!H276,\"\")","v":""},{"$f":"IF(DataLog!$C276=\"Log value\",DataLog!I276,\"\")","v":""},{"$f":"IF(DataLog!$C276=\"Log value\",DataLog!J276,\"\")","v":""},{"$f":"IF(DataLog!$C276=\"Log value\",DataLog!K276,\"\")","v":""},{"$f":"IF(DataLog!$C276=\"Log value\",DataLog!L276,\"\")","v":""},{"$f":"IF(DataLog!$C276=\"Log value\",DataLog!M276,\"\")","v":""},{"$f":"IF(DataLog!$C276=\"Log value\",DataLog!N276,\"\")","v":""},{"$f":"IF(DataLog!$C276=\"Log value\",DataLog!O276,\"\")","v":""},{"$f":"IF(DataLog!$C276=\"Log value\",DataLog!P276,\"\")","v":""},{"$f":"IF(DataLog!$C276=\"Log value\",DataLog!Q276,\"\")","v":""},{"$f":"IF(DataLog!$C276=\"Log value\",DataLog!R276,\"\")","v":""},{"$f":"IF(DataLog!$C276=\"Log value\",DataLog!S276,\"\")","v":""},{"$f":"IF(DataLog!$C276=\"Log value\",DataLog!T276,\"\")","v":""},{"$f":"IF(DataLog!$C276=\"Log value\",DataLog!U276,\"\")","v":""},{"$f":"IF(DataLog!$C276=\"Log value\",DataLog!V276,\"\")","v":""},{"$f":"IF(DataLog!$C276=\"Log value\",DataLog!W276,\"\")","v":""},{"$f":"IF(DataLog!$C276=\"Log value\",DataLog!X276,\"\")","v":""},{"$f":"IF(DataLog!$C276=\"Log value\",DataLog!Y276,\"\")","v":""},{"$f":"IF(DataLog!$C276=\"Log value\",DataLog!Z276,\"\")","v":""},{"$f":"IF(DataLog!$C276=\"Log value\",DataLog!AA276,\"\")","v":""},{"$f":"IF(DataLog!$C276=\"Log value\",DataLog!AB276,\"\")","v":""},{"$f":"IF(DataLog!$C276=\"Log value\",DataLog!AC276,\"\")","v":""},{"$f":"IF(DataLog!$C276=\"Log value\",DataLog!AD276,\"\")","v":""},{"$f":"IF(DataLog!$C276=\"Log value\",DataLog!AE276,\"\")","v":""},{"$f":"IF(DataLog!$C276=\"Log value\",DataLog!AF276,\"\")","v":""},{"$f":"IF(DataLog!$C276=\"Log value\",DataLog!AG276,\"\")","v":""},{"$f":"IF(DataLog!$C276=\"Log value\",DataLog!AH276,\"\")","v":""},{"$f":"IF(DataLog!$C276=\"Log value\",DataLog!AI276,\"\")","v":""},{"$f":"IF(DataLog!$C276=\"Log value\",DataLog!AJ276,\"\")","v":""},{"$f":"IF(DataLog!$C276=\"Log value\",DataLog!AK276,\"\")","v":""},{"$f":"IF(DataLog!$C276=\"Log value\",DataLog!AL276,\"\")","v":""},{"$f":"IF(DataLog!$C276=\"Log value\",DataLog!AM276,\"\")","v":""}]
[null,null,"Standard","Standard -  - ",null,null,{"$f":"IF(DataLog!$C277=\"Log value\",DataLog!D277&\"_\"&TEXT(DataLog!B277,\"åååå-mm-dd\"),\"\")","v":""},{"$f":"IF(DataLog!$C277=\"Log value\",DataLog!E277,\"\")","v":""},{"$f":"IF(DataLog!$C277=\"Log value\",DataLog!F277,\"\")","v":""},{"$f":"IF(DataLog!$C277=\"Log value\",DataLog!G277,\"\")","v":""},{"$f":"IF(DataLog!$C277=\"Log value\",DataLog!H277,\"\")","v":""},{"$f":"IF(DataLog!$C277=\"Log value\",DataLog!I277,\"\")","v":""},{"$f":"IF(DataLog!$C277=\"Log value\",DataLog!J277,\"\")","v":""},{"$f":"IF(DataLog!$C277=\"Log value\",DataLog!K277,\"\")","v":""},{"$f":"IF(DataLog!$C277=\"Log value\",DataLog!L277,\"\")","v":""},{"$f":"IF(DataLog!$C277=\"Log value\",DataLog!M277,\"\")","v":""},{"$f":"IF(DataLog!$C277=\"Log value\",DataLog!N277,\"\")","v":""},{"$f":"IF(DataLog!$C277=\"Log value\",DataLog!O277,\"\")","v":""},{"$f":"IF(DataLog!$C277=\"Log value\",DataLog!P277,\"\")","v":""},{"$f":"IF(DataLog!$C277=\"Log value\",DataLog!Q277,\"\")","v":""},{"$f":"IF(DataLog!$C277=\"Log value\",DataLog!R277,\"\")","v":""},{"$f":"IF(DataLog!$C277=\"Log value\",DataLog!S277,\"\")","v":""},{"$f":"IF(DataLog!$C277=\"Log value\",DataLog!T277,\"\")","v":""},{"$f":"IF(DataLog!$C277=\"Log value\",DataLog!U277,\"\")","v":""},{"$f":"IF(DataLog!$C277=\"Log value\",DataLog!V277,\"\")","v":""},{"$f":"IF(DataLog!$C277=\"Log value\",DataLog!W277,\"\")","v":""},{"$f":"IF(DataLog!$C277=\"Log value\",DataLog!X277,\"\")","v":""},{"$f":"IF(DataLog!$C277=\"Log value\",DataLog!Y277,\"\")","v":""},{"$f":"IF(DataLog!$C277=\"Log value\",DataLog!Z277,\"\")","v":""},{"$f":"IF(DataLog!$C277=\"Log value\",DataLog!AA277,\"\")","v":""},{"$f":"IF(DataLog!$C277=\"Log value\",DataLog!AB277,\"\")","v":""},{"$f":"IF(DataLog!$C277=\"Log value\",DataLog!AC277,\"\")","v":""},{"$f":"IF(DataLog!$C277=\"Log value\",DataLog!AD277,\"\")","v":""},{"$f":"IF(DataLog!$C277=\"Log value\",DataLog!AE277,\"\")","v":""},{"$f":"IF(DataLog!$C277=\"Log value\",DataLog!AF277,\"\")","v":""},{"$f":"IF(DataLog!$C277=\"Log value\",DataLog!AG277,\"\")","v":""},{"$f":"IF(DataLog!$C277=\"Log value\",DataLog!AH277,\"\")","v":""},{"$f":"IF(DataLog!$C277=\"Log value\",DataLog!AI277,\"\")","v":""},{"$f":"IF(DataLog!$C277=\"Log value\",DataLog!AJ277,\"\")","v":""},{"$f":"IF(DataLog!$C277=\"Log value\",DataLog!AK277,\"\")","v":""},{"$f":"IF(DataLog!$C277=\"Log value\",DataLog!AL277,\"\")","v":""},{"$f":"IF(DataLog!$C277=\"Log value\",DataLog!AM277,\"\")","v":""}]
[null,null,"Standard","Standard -  - ",null,null,{"$f":"IF(DataLog!$C278=\"Log value\",DataLog!D278&\"_\"&TEXT(DataLog!B278,\"åååå-mm-dd\"),\"\")","v":""},{"$f":"IF(DataLog!$C278=\"Log value\",DataLog!E278,\"\")","v":""},{"$f":"IF(DataLog!$C278=\"Log value\",DataLog!F278,\"\")","v":""},{"$f":"IF(DataLog!$C278=\"Log value\",DataLog!G278,\"\")","v":""},{"$f":"IF(DataLog!$C278=\"Log value\",DataLog!H278,\"\")","v":""},{"$f":"IF(DataLog!$C278=\"Log value\",DataLog!I278,\"\")","v":""},{"$f":"IF(DataLog!$C278=\"Log value\",DataLog!J278,\"\")","v":""},{"$f":"IF(DataLog!$C278=\"Log value\",DataLog!K278,\"\")","v":""},{"$f":"IF(DataLog!$C278=\"Log value\",DataLog!L278,\"\")","v":""},{"$f":"IF(DataLog!$C278=\"Log value\",DataLog!M278,\"\")","v":""},{"$f":"IF(DataLog!$C278=\"Log value\",DataLog!N278,\"\")","v":""},{"$f":"IF(DataLog!$C278=\"Log value\",DataLog!O278,\"\")","v":""},{"$f":"IF(DataLog!$C278=\"Log value\",DataLog!P278,\"\")","v":""},{"$f":"IF(DataLog!$C278=\"Log value\",DataLog!Q278,\"\")","v":""},{"$f":"IF(DataLog!$C278=\"Log value\",DataLog!R278,\"\")","v":""},{"$f":"IF(DataLog!$C278=\"Log value\",DataLog!S278,\"\")","v":""},{"$f":"IF(DataLog!$C278=\"Log value\",DataLog!T278,\"\")","v":""},{"$f":"IF(DataLog!$C278=\"Log value\",DataLog!U278,\"\")","v":""},{"$f":"IF(DataLog!$C278=\"Log value\",DataLog!V278,\"\")","v":""},{"$f":"IF(DataLog!$C278=\"Log value\",DataLog!W278,\"\")","v":""},{"$f":"IF(DataLog!$C278=\"Log value\",DataLog!X278,\"\")","v":""},{"$f":"IF(DataLog!$C278=\"Log value\",DataLog!Y278,\"\")","v":""},{"$f":"IF(DataLog!$C278=\"Log value\",DataLog!Z278,\"\")","v":""},{"$f":"IF(DataLog!$C278=\"Log value\",DataLog!AA278,\"\")","v":""},{"$f":"IF(DataLog!$C278=\"Log value\",DataLog!AB278,\"\")","v":""},{"$f":"IF(DataLog!$C278=\"Log value\",DataLog!AC278,\"\")","v":""},{"$f":"IF(DataLog!$C278=\"Log value\",DataLog!AD278,\"\")","v":""},{"$f":"IF(DataLog!$C278=\"Log value\",DataLog!AE278,\"\")","v":""},{"$f":"IF(DataLog!$C278=\"Log value\",DataLog!AF278,\"\")","v":""},{"$f":"IF(DataLog!$C278=\"Log value\",DataLog!AG278,\"\")","v":""},{"$f":"IF(DataLog!$C278=\"Log value\",DataLog!AH278,\"\")","v":""},{"$f":"IF(DataLog!$C278=\"Log value\",DataLog!AI278,\"\")","v":""},{"$f":"IF(DataLog!$C278=\"Log value\",DataLog!AJ278,\"\")","v":""},{"$f":"IF(DataLog!$C278=\"Log value\",DataLog!AK278,\"\")","v":""},{"$f":"IF(DataLog!$C278=\"Log value\",DataLog!AL278,\"\")","v":""},{"$f":"IF(DataLog!$C278=\"Log value\",DataLog!AM278,\"\")","v":""}]
[null,null,"Standard","Standard -  - ",null,null,{"$f":"IF(DataLog!$C279=\"Log value\",DataLog!D279&\"_\"&TEXT(DataLog!B279,\"åååå-mm-dd\"),\"\")","v":""},{"$f":"IF(DataLog!$C279=\"Log value\",DataLog!E279,\"\")","v":""},{"$f":"IF(DataLog!$C279=\"Log value\",DataLog!F279,\"\")","v":""},{"$f":"IF(DataLog!$C279=\"Log value\",DataLog!G279,\"\")","v":""},{"$f":"IF(DataLog!$C279=\"Log value\",DataLog!H279,\"\")","v":""},{"$f":"IF(DataLog!$C279=\"Log value\",DataLog!I279,\"\")","v":""},{"$f":"IF(DataLog!$C279=\"Log value\",DataLog!J279,\"\")","v":""},{"$f":"IF(DataLog!$C279=\"Log value\",DataLog!K279,\"\")","v":""},{"$f":"IF(DataLog!$C279=\"Log value\",DataLog!L279,\"\")","v":""},{"$f":"IF(DataLog!$C279=\"Log value\",DataLog!M279,\"\")","v":""},{"$f":"IF(DataLog!$C279=\"Log value\",DataLog!N279,\"\")","v":""},{"$f":"IF(DataLog!$C279=\"Log value\",DataLog!O279,\"\")","v":""},{"$f":"IF(DataLog!$C279=\"Log value\",DataLog!P279,\"\")","v":""},{"$f":"IF(DataLog!$C279=\"Log value\",DataLog!Q279,\"\")","v":""},{"$f":"IF(DataLog!$C279=\"Log value\",DataLog!R279,\"\")","v":""},{"$f":"IF(DataLog!$C279=\"Log value\",DataLog!S279,\"\")","v":""},{"$f":"IF(DataLog!$C279=\"Log value\",DataLog!T279,\"\")","v":""},{"$f":"IF(DataLog!$C279=\"Log value\",DataLog!U279,\"\")","v":""},{"$f":"IF(DataLog!$C279=\"Log value\",DataLog!V279,\"\")","v":""},{"$f":"IF(DataLog!$C279=\"Log value\",DataLog!W279,\"\")","v":""},{"$f":"IF(DataLog!$C279=\"Log value\",DataLog!X279,\"\")","v":""},{"$f":"IF(DataLog!$C279=\"Log value\",DataLog!Y279,\"\")","v":""},{"$f":"IF(DataLog!$C279=\"Log value\",DataLog!Z279,\"\")","v":""},{"$f":"IF(DataLog!$C279=\"Log value\",DataLog!AA279,\"\")","v":""},{"$f":"IF(DataLog!$C279=\"Log value\",DataLog!AB279,\"\")","v":""},{"$f":"IF(DataLog!$C279=\"Log value\",DataLog!AC279,\"\")","v":""},{"$f":"IF(DataLog!$C279=\"Log value\",DataLog!AD279,\"\")","v":""},{"$f":"IF(DataLog!$C279=\"Log value\",DataLog!AE279,\"\")","v":""},{"$f":"IF(DataLog!$C279=\"Log value\",DataLog!AF279,\"\")","v":""},{"$f":"IF(DataLog!$C279=\"Log value\",DataLog!AG279,\"\")","v":""},{"$f":"IF(DataLog!$C279=\"Log value\",DataLog!AH279,\"\")","v":""},{"$f":"IF(DataLog!$C279=\"Log value\",DataLog!AI279,\"\")","v":""},{"$f":"IF(DataLog!$C279=\"Log value\",DataLog!AJ279,\"\")","v":""},{"$f":"IF(DataLog!$C279=\"Log value\",DataLog!AK279,\"\")","v":""},{"$f":"IF(DataLog!$C279=\"Log value\",DataLog!AL279,\"\")","v":""},{"$f":"IF(DataLog!$C279=\"Log value\",DataLog!AM279,\"\")","v":""}]
[null,null,"Standard","Standard -  - ",null,null,{"$f":"IF(DataLog!$C280=\"Log value\",DataLog!D280&\"_\"&TEXT(DataLog!B280,\"åååå-mm-dd\"),\"\")","v":""},{"$f":"IF(DataLog!$C280=\"Log value\",DataLog!E280,\"\")","v":""},{"$f":"IF(DataLog!$C280=\"Log value\",DataLog!F280,\"\")","v":""},{"$f":"IF(DataLog!$C280=\"Log value\",DataLog!G280,\"\")","v":""},{"$f":"IF(DataLog!$C280=\"Log value\",DataLog!H280,\"\")","v":""},{"$f":"IF(DataLog!$C280=\"Log value\",DataLog!I280,\"\")","v":""},{"$f":"IF(DataLog!$C280=\"Log value\",DataLog!J280,\"\")","v":""},{"$f":"IF(DataLog!$C280=\"Log value\",DataLog!K280,\"\")","v":""},{"$f":"IF(DataLog!$C280=\"Log value\",DataLog!L280,\"\")","v":""},{"$f":"IF(DataLog!$C280=\"Log value\",DataLog!M280,\"\")","v":""},{"$f":"IF(DataLog!$C280=\"Log value\",DataLog!N280,\"\")","v":""},{"$f":"IF(DataLog!$C280=\"Log value\",DataLog!O280,\"\")","v":""},{"$f":"IF(DataLog!$C280=\"Log value\",DataLog!P280,\"\")","v":""},{"$f":"IF(DataLog!$C280=\"Log value\",DataLog!Q280,\"\")","v":""},{"$f":"IF(DataLog!$C280=\"Log value\",DataLog!R280,\"\")","v":""},{"$f":"IF(DataLog!$C280=\"Log value\",DataLog!S280,\"\")","v":""},{"$f":"IF(DataLog!$C280=\"Log value\",DataLog!T280,\"\")","v":""},{"$f":"IF(DataLog!$C280=\"Log value\",DataLog!U280,\"\")","v":""},{"$f":"IF(DataLog!$C280=\"Log value\",DataLog!V280,\"\")","v":""},{"$f":"IF(DataLog!$C280=\"Log value\",DataLog!W280,\"\")","v":""},{"$f":"IF(DataLog!$C280=\"Log value\",DataLog!X280,\"\")","v":""},{"$f":"IF(DataLog!$C280=\"Log value\",DataLog!Y280,\"\")","v":""},{"$f":"IF(DataLog!$C280=\"Log value\",DataLog!Z280,\"\")","v":""},{"$f":"IF(DataLog!$C280=\"Log value\",DataLog!AA280,\"\")","v":""},{"$f":"IF(DataLog!$C280=\"Log value\",DataLog!AB280,\"\")","v":""},{"$f":"IF(DataLog!$C280=\"Log value\",DataLog!AC280,\"\")","v":""},{"$f":"IF(DataLog!$C280=\"Log value\",DataLog!AD280,\"\")","v":""},{"$f":"IF(DataLog!$C280=\"Log value\",DataLog!AE280,\"\")","v":""},{"$f":"IF(DataLog!$C280=\"Log value\",DataLog!AF280,\"\")","v":""},{"$f":"IF(DataLog!$C280=\"Log value\",DataLog!AG280,\"\")","v":""},{"$f":"IF(DataLog!$C280=\"Log value\",DataLog!AH280,\"\")","v":""},{"$f":"IF(DataLog!$C280=\"Log value\",DataLog!AI280,\"\")","v":""},{"$f":"IF(DataLog!$C280=\"Log value\",DataLog!AJ280,\"\")","v":""},{"$f":"IF(DataLog!$C280=\"Log value\",DataLog!AK280,\"\")","v":""},{"$f":"IF(DataLog!$C280=\"Log value\",DataLog!AL280,\"\")","v":""},{"$f":"IF(DataLog!$C280=\"Log value\",DataLog!AM280,\"\")","v":""}]
[null,null,"Standard","Standard -  - ",null,null,{"$f":"IF(DataLog!$C281=\"Log value\",DataLog!D281&\"_\"&TEXT(DataLog!B281,\"åååå-mm-dd\"),\"\")","v":""},{"$f":"IF(DataLog!$C281=\"Log value\",DataLog!E281,\"\")","v":""},{"$f":"IF(DataLog!$C281=\"Log value\",DataLog!F281,\"\")","v":""},{"$f":"IF(DataLog!$C281=\"Log value\",DataLog!G281,\"\")","v":""},{"$f":"IF(DataLog!$C281=\"Log value\",DataLog!H281,\"\")","v":""},{"$f":"IF(DataLog!$C281=\"Log value\",DataLog!I281,\"\")","v":""},{"$f":"IF(DataLog!$C281=\"Log value\",DataLog!J281,\"\")","v":""},{"$f":"IF(DataLog!$C281=\"Log value\",DataLog!K281,\"\")","v":""},{"$f":"IF(DataLog!$C281=\"Log value\",DataLog!L281,\"\")","v":""},{"$f":"IF(DataLog!$C281=\"Log value\",DataLog!M281,\"\")","v":""},{"$f":"IF(DataLog!$C281=\"Log value\",DataLog!N281,\"\")","v":""},{"$f":"IF(DataLog!$C281=\"Log value\",DataLog!O281,\"\")","v":""},{"$f":"IF(DataLog!$C281=\"Log value\",DataLog!P281,\"\")","v":""},{"$f":"IF(DataLog!$C281=\"Log value\",DataLog!Q281,\"\")","v":""},{"$f":"IF(DataLog!$C281=\"Log value\",DataLog!R281,\"\")","v":""},{"$f":"IF(DataLog!$C281=\"Log value\",DataLog!S281,\"\")","v":""},{"$f":"IF(DataLog!$C281=\"Log value\",DataLog!T281,\"\")","v":""},{"$f":"IF(DataLog!$C281=\"Log value\",DataLog!U281,\"\")","v":""},{"$f":"IF(DataLog!$C281=\"Log value\",DataLog!V281,\"\")","v":""},{"$f":"IF(DataLog!$C281=\"Log value\",DataLog!W281,\"\")","v":""},{"$f":"IF(DataLog!$C281=\"Log value\",DataLog!X281,\"\")","v":""},{"$f":"IF(DataLog!$C281=\"Log value\",DataLog!Y281,\"\")","v":""},{"$f":"IF(DataLog!$C281=\"Log value\",DataLog!Z281,\"\")","v":""},{"$f":"IF(DataLog!$C281=\"Log value\",DataLog!AA281,\"\")","v":""},{"$f":"IF(DataLog!$C281=\"Log value\",DataLog!AB281,\"\")","v":""},{"$f":"IF(DataLog!$C281=\"Log value\",DataLog!AC281,\"\")","v":""},{"$f":"IF(DataLog!$C281=\"Log value\",DataLog!AD281,\"\")","v":""},{"$f":"IF(DataLog!$C281=\"Log value\",DataLog!AE281,\"\")","v":""},{"$f":"IF(DataLog!$C281=\"Log value\",DataLog!AF281,\"\")","v":""},{"$f":"IF(DataLog!$C281=\"Log value\",DataLog!AG281,\"\")","v":""},{"$f":"IF(DataLog!$C281=\"Log value\",DataLog!AH281,\"\")","v":""},{"$f":"IF(DataLog!$C281=\"Log value\",DataLog!AI281,\"\")","v":""},{"$f":"IF(DataLog!$C281=\"Log value\",DataLog!AJ281,\"\")","v":""},{"$f":"IF(DataLog!$C281=\"Log value\",DataLog!AK281,\"\")","v":""},{"$f":"IF(DataLog!$C281=\"Log value\",DataLog!AL281,\"\")","v":""},{"$f":"IF(DataLog!$C281=\"Log value\",DataLog!AM281,\"\")","v":""}]
[null,null,"Standard","Standard -  - ",null,null,{"$f":"IF(DataLog!$C282=\"Log value\",DataLog!D282&\"_\"&TEXT(DataLog!B282,\"åååå-mm-dd\"),\"\")","v":""},{"$f":"IF(DataLog!$C282=\"Log value\",DataLog!E282,\"\")","v":""},{"$f":"IF(DataLog!$C282=\"Log value\",DataLog!F282,\"\")","v":""},{"$f":"IF(DataLog!$C282=\"Log value\",DataLog!G282,\"\")","v":""},{"$f":"IF(DataLog!$C282=\"Log value\",DataLog!H282,\"\")","v":""},{"$f":"IF(DataLog!$C282=\"Log value\",DataLog!I282,\"\")","v":""},{"$f":"IF(DataLog!$C282=\"Log value\",DataLog!J282,\"\")","v":""},{"$f":"IF(DataLog!$C282=\"Log value\",DataLog!K282,\"\")","v":""},{"$f":"IF(DataLog!$C282=\"Log value\",DataLog!L282,\"\")","v":""},{"$f":"IF(DataLog!$C282=\"Log value\",DataLog!M282,\"\")","v":""},{"$f":"IF(DataLog!$C282=\"Log value\",DataLog!N282,\"\")","v":""},{"$f":"IF(DataLog!$C282=\"Log value\",DataLog!O282,\"\")","v":""},{"$f":"IF(DataLog!$C282=\"Log value\",DataLog!P282,\"\")","v":""},{"$f":"IF(DataLog!$C282=\"Log value\",DataLog!Q282,\"\")","v":""},{"$f":"IF(DataLog!$C282=\"Log value\",DataLog!R282,\"\")","v":""},{"$f":"IF(DataLog!$C282=\"Log value\",DataLog!S282,\"\")","v":""},{"$f":"IF(DataLog!$C282=\"Log value\",DataLog!T282,\"\")","v":""},{"$f":"IF(DataLog!$C282=\"Log value\",DataLog!U282,\"\")","v":""},{"$f":"IF(DataLog!$C282=\"Log value\",DataLog!V282,\"\")","v":""},{"$f":"IF(DataLog!$C282=\"Log value\",DataLog!W282,\"\")","v":""},{"$f":"IF(DataLog!$C282=\"Log value\",DataLog!X282,\"\")","v":""},{"$f":"IF(DataLog!$C282=\"Log value\",DataLog!Y282,\"\")","v":""},{"$f":"IF(DataLog!$C282=\"Log value\",DataLog!Z282,\"\")","v":""},{"$f":"IF(DataLog!$C282=\"Log value\",DataLog!AA282,\"\")","v":""},{"$f":"IF(DataLog!$C282=\"Log value\",DataLog!AB282,\"\")","v":""},{"$f":"IF(DataLog!$C282=\"Log value\",DataLog!AC282,\"\")","v":""},{"$f":"IF(DataLog!$C282=\"Log value\",DataLog!AD282,\"\")","v":""},{"$f":"IF(DataLog!$C282=\"Log value\",DataLog!AE282,\"\")","v":""},{"$f":"IF(DataLog!$C282=\"Log value\",DataLog!AF282,\"\")","v":""},{"$f":"IF(DataLog!$C282=\"Log value\",DataLog!AG282,\"\")","v":""},{"$f":"IF(DataLog!$C282=\"Log value\",DataLog!AH282,\"\")","v":""},{"$f":"IF(DataLog!$C282=\"Log value\",DataLog!AI282,\"\")","v":""},{"$f":"IF(DataLog!$C282=\"Log value\",DataLog!AJ282,\"\")","v":""},{"$f":"IF(DataLog!$C282=\"Log value\",DataLog!AK282,\"\")","v":""},{"$f":"IF(DataLog!$C282=\"Log value\",DataLog!AL282,\"\")","v":""},{"$f":"IF(DataLog!$C282=\"Log value\",DataLog!AM282,\"\")","v":""}]
[null,null,"Standard","Standard -  - ",null,null,{"$f":"IF(DataLog!$C283=\"Log value\",DataLog!D283&\"_\"&TEXT(DataLog!B283,\"åååå-mm-dd\"),\"\")","v":""},{"$f":"IF(DataLog!$C283=\"Log value\",DataLog!E283,\"\")","v":""},{"$f":"IF(DataLog!$C283=\"Log value\",DataLog!F283,\"\")","v":""},{"$f":"IF(DataLog!$C283=\"Log value\",DataLog!G283,\"\")","v":""},{"$f":"IF(DataLog!$C283=\"Log value\",DataLog!H283,\"\")","v":""},{"$f":"IF(DataLog!$C283=\"Log value\",DataLog!I283,\"\")","v":""},{"$f":"IF(DataLog!$C283=\"Log value\",DataLog!J283,\"\")","v":""},{"$f":"IF(DataLog!$C283=\"Log value\",DataLog!K283,\"\")","v":""},{"$f":"IF(DataLog!$C283=\"Log value\",DataLog!L283,\"\")","v":""},{"$f":"IF(DataLog!$C283=\"Log value\",DataLog!M283,\"\")","v":""},{"$f":"IF(DataLog!$C283=\"Log value\",DataLog!N283,\"\")","v":""},{"$f":"IF(DataLog!$C283=\"Log value\",DataLog!O283,\"\")","v":""},{"$f":"IF(DataLog!$C283=\"Log value\",DataLog!P283,\"\")","v":""},{"$f":"IF(DataLog!$C283=\"Log value\",DataLog!Q283,\"\")","v":""},{"$f":"IF(DataLog!$C283=\"Log value\",DataLog!R283,\"\")","v":""},{"$f":"IF(DataLog!$C283=\"Log value\",DataLog!S283,\"\")","v":""},{"$f":"IF(DataLog!$C283=\"Log value\",DataLog!T283,\"\")","v":""},{"$f":"IF(DataLog!$C283=\"Log value\",DataLog!U283,\"\")","v":""},{"$f":"IF(DataLog!$C283=\"Log value\",DataLog!V283,\"\")","v":""},{"$f":"IF(DataLog!$C283=\"Log value\",DataLog!W283,\"\")","v":""},{"$f":"IF(DataLog!$C283=\"Log value\",DataLog!X283,\"\")","v":""},{"$f":"IF(DataLog!$C283=\"Log value\",DataLog!Y283,\"\")","v":""},{"$f":"IF(DataLog!$C283=\"Log value\",DataLog!Z283,\"\")","v":""},{"$f":"IF(DataLog!$C283=\"Log value\",DataLog!AA283,\"\")","v":""},{"$f":"IF(DataLog!$C283=\"Log value\",DataLog!AB283,\"\")","v":""},{"$f":"IF(DataLog!$C283=\"Log value\",DataLog!AC283,\"\")","v":""},{"$f":"IF(DataLog!$C283=\"Log value\",DataLog!AD283,\"\")","v":""},{"$f":"IF(DataLog!$C283=\"Log value\",DataLog!AE283,\"\")","v":""},{"$f":"IF(DataLog!$C283=\"Log value\",DataLog!AF283,\"\")","v":""},{"$f":"IF(DataLog!$C283=\"Log value\",DataLog!AG283,\"\")","v":""},{"$f":"IF(DataLog!$C283=\"Log value\",DataLog!AH283,\"\")","v":""},{"$f":"IF(DataLog!$C283=\"Log value\",DataLog!AI283,\"\")","v":""},{"$f":"IF(DataLog!$C283=\"Log value\",DataLog!AJ283,\"\")","v":""},{"$f":"IF(DataLog!$C283=\"Log value\",DataLog!AK283,\"\")","v":""},{"$f":"IF(DataLog!$C283=\"Log value\",DataLog!AL283,\"\")","v":""},{"$f":"IF(DataLog!$C283=\"Log value\",DataLog!AM283,\"\")","v":""}]
[null,null,"Standard","Standard -  - ",null,null,{"$f":"IF(DataLog!$C284=\"Log value\",DataLog!D284&\"_\"&TEXT(DataLog!B284,\"åååå-mm-dd\"),\"\")","v":""},{"$f":"IF(DataLog!$C284=\"Log value\",DataLog!E284,\"\")","v":""},{"$f":"IF(DataLog!$C284=\"Log value\",DataLog!F284,\"\")","v":""},{"$f":"IF(DataLog!$C284=\"Log value\",DataLog!G284,\"\")","v":""},{"$f":"IF(DataLog!$C284=\"Log value\",DataLog!H284,\"\")","v":""},{"$f":"IF(DataLog!$C284=\"Log value\",DataLog!I284,\"\")","v":""},{"$f":"IF(DataLog!$C284=\"Log value\",DataLog!J284,\"\")","v":""},{"$f":"IF(DataLog!$C284=\"Log value\",DataLog!K284,\"\")","v":""},{"$f":"IF(DataLog!$C284=\"Log value\",DataLog!L284,\"\")","v":""},{"$f":"IF(DataLog!$C284=\"Log value\",DataLog!M284,\"\")","v":""},{"$f":"IF(DataLog!$C284=\"Log value\",DataLog!N284,\"\")","v":""},{"$f":"IF(DataLog!$C284=\"Log value\",DataLog!O284,\"\")","v":""},{"$f":"IF(DataLog!$C284=\"Log value\",DataLog!P284,\"\")","v":""},{"$f":"IF(DataLog!$C284=\"Log value\",DataLog!Q284,\"\")","v":""},{"$f":"IF(DataLog!$C284=\"Log value\",DataLog!R284,\"\")","v":""},{"$f":"IF(DataLog!$C284=\"Log value\",DataLog!S284,\"\")","v":""},{"$f":"IF(DataLog!$C284=\"Log value\",DataLog!T284,\"\")","v":""},{"$f":"IF(DataLog!$C284=\"Log value\",DataLog!U284,\"\")","v":""},{"$f":"IF(DataLog!$C284=\"Log value\",DataLog!V284,\"\")","v":""},{"$f":"IF(DataLog!$C284=\"Log value\",DataLog!W284,\"\")","v":""},{"$f":"IF(DataLog!$C284=\"Log value\",DataLog!X284,\"\")","v":""},{"$f":"IF(DataLog!$C284=\"Log value\",DataLog!Y284,\"\")","v":""},{"$f":"IF(DataLog!$C284=\"Log value\",DataLog!Z284,\"\")","v":""},{"$f":"IF(DataLog!$C284=\"Log value\",DataLog!AA284,\"\")","v":""},{"$f":"IF(DataLog!$C284=\"Log value\",DataLog!AB284,\"\")","v":""},{"$f":"IF(DataLog!$C284=\"Log value\",DataLog!AC284,\"\")","v":""},{"$f":"IF(DataLog!$C284=\"Log value\",DataLog!AD284,\"\")","v":""},{"$f":"IF(DataLog!$C284=\"Log value\",DataLog!AE284,\"\")","v":""},{"$f":"IF(DataLog!$C284=\"Log value\",DataLog!AF284,\"\")","v":""},{"$f":"IF(DataLog!$C284=\"Log value\",DataLog!AG284,\"\")","v":""},{"$f":"IF(DataLog!$C284=\"Log value\",DataLog!AH284,\"\")","v":""},{"$f":"IF(DataLog!$C284=\"Log value\",DataLog!AI284,\"\")","v":""},{"$f":"IF(DataLog!$C284=\"Log value\",DataLog!AJ284,\"\")","v":""},{"$f":"IF(DataLog!$C284=\"Log value\",DataLog!AK284,\"\")","v":""},{"$f":"IF(DataLog!$C284=\"Log value\",DataLog!AL284,\"\")","v":""},{"$f":"IF(DataLog!$C284=\"Log value\",DataLog!AM284,\"\")","v":""}]
[null,null,"Standard","Standard -  - ",null,null,{"$f":"IF(DataLog!$C285=\"Log value\",DataLog!D285&\"_\"&TEXT(DataLog!B285,\"åååå-mm-dd\"),\"\")","v":""},{"$f":"IF(DataLog!$C285=\"Log value\",DataLog!E285,\"\")","v":""},{"$f":"IF(DataLog!$C285=\"Log value\",DataLog!F285,\"\")","v":""},{"$f":"IF(DataLog!$C285=\"Log value\",DataLog!G285,\"\")","v":""},{"$f":"IF(DataLog!$C285=\"Log value\",DataLog!H285,\"\")","v":""},{"$f":"IF(DataLog!$C285=\"Log value\",DataLog!I285,\"\")","v":""},{"$f":"IF(DataLog!$C285=\"Log value\",DataLog!J285,\"\")","v":""},{"$f":"IF(DataLog!$C285=\"Log value\",DataLog!K285,\"\")","v":""},{"$f":"IF(DataLog!$C285=\"Log value\",DataLog!L285,\"\")","v":""},{"$f":"IF(DataLog!$C285=\"Log value\",DataLog!M285,\"\")","v":""},{"$f":"IF(DataLog!$C285=\"Log value\",DataLog!N285,\"\")","v":""},{"$f":"IF(DataLog!$C285=\"Log value\",DataLog!O285,\"\")","v":""},{"$f":"IF(DataLog!$C285=\"Log value\",DataLog!P285,\"\")","v":""},{"$f":"IF(DataLog!$C285=\"Log value\",DataLog!Q285,\"\")","v":""},{"$f":"IF(DataLog!$C285=\"Log value\",DataLog!R285,\"\")","v":""},{"$f":"IF(DataLog!$C285=\"Log value\",DataLog!S285,\"\")","v":""},{"$f":"IF(DataLog!$C285=\"Log value\",DataLog!T285,\"\")","v":""},{"$f":"IF(DataLog!$C285=\"Log value\",DataLog!U285,\"\")","v":""},{"$f":"IF(DataLog!$C285=\"Log value\",DataLog!V285,\"\")","v":""},{"$f":"IF(DataLog!$C285=\"Log value\",DataLog!W285,\"\")","v":""},{"$f":"IF(DataLog!$C285=\"Log value\",DataLog!X285,\"\")","v":""},{"$f":"IF(DataLog!$C285=\"Log value\",DataLog!Y285,\"\")","v":""},{"$f":"IF(DataLog!$C285=\"Log value\",DataLog!Z285,\"\")","v":""},{"$f":"IF(DataLog!$C285=\"Log value\",DataLog!AA285,\"\")","v":""},{"$f":"IF(DataLog!$C285=\"Log value\",DataLog!AB285,\"\")","v":""},{"$f":"IF(DataLog!$C285=\"Log value\",DataLog!AC285,\"\")","v":""},{"$f":"IF(DataLog!$C285=\"Log value\",DataLog!AD285,\"\")","v":""},{"$f":"IF(DataLog!$C285=\"Log value\",DataLog!AE285,\"\")","v":""},{"$f":"IF(DataLog!$C285=\"Log value\",DataLog!AF285,\"\")","v":""},{"$f":"IF(DataLog!$C285=\"Log value\",DataLog!AG285,\"\")","v":""},{"$f":"IF(DataLog!$C285=\"Log value\",DataLog!AH285,\"\")","v":""},{"$f":"IF(DataLog!$C285=\"Log value\",DataLog!AI285,\"\")","v":""},{"$f":"IF(DataLog!$C285=\"Log value\",DataLog!AJ285,\"\")","v":""},{"$f":"IF(DataLog!$C285=\"Log value\",DataLog!AK285,\"\")","v":""},{"$f":"IF(DataLog!$C285=\"Log value\",DataLog!AL285,\"\")","v":""},{"$f":"IF(DataLog!$C285=\"Log value\",DataLog!AM285,\"\")","v":""}]
[null,null,{"$f":"$H$21","v":"Standard"},{"$f":"C320&\" - \"&G320&\" - \"&I320","v":"Standard -  - "},null,null,{"$f":"IF(DataLog!$C286=\"Log value\",DataLog!D286&\"_\"&TEXT(DataLog!B286,\"åååå-mm-dd\"),\"\")","v":""},{"$f":"IF(DataLog!$C286=\"Log value\",DataLog!E286,\"\")","v":""},{"$f":"IF(DataLog!$C286=\"Log value\",DataLog!F286,\"\")","v":""},{"$f":"IF(DataLog!$C286=\"Log value\",DataLog!G286,\"\")","v":""},{"$f":"IF(DataLog!$C286=\"Log value\",DataLog!H286,\"\")","v":""},{"$f":"IF(DataLog!$C286=\"Log value\",DataLog!I286,\"\")","v":""},{"$f":"IF(DataLog!$C286=\"Log value\",DataLog!J286,\"\")","v":""},{"$f":"IF(DataLog!$C286=\"Log value\",DataLog!K286,\"\")","v":""},{"$f":"IF(DataLog!$C286=\"Log value\",DataLog!L286,\"\")","v":""},{"$f":"IF(DataLog!$C286=\"Log value\",DataLog!M286,\"\")","v":""},{"$f":"IF(DataLog!$C286=\"Log value\",DataLog!N286,\"\")","v":""},{"$f":"IF(DataLog!$C286=\"Log value\",DataLog!O286,\"\")","v":""},{"$f":"IF(DataLog!$C286=\"Log value\",DataLog!P286,\"\")","v":""},{"$f":"IF(DataLog!$C286=\"Log value\",DataLog!Q286,\"\")","v":""},{"$f":"IF(DataLog!$C286=\"Log value\",DataLog!R286,\"\")","v":""},{"$f":"IF(DataLog!$C286=\"Log value\",DataLog!S286,\"\")","v":""},{"$f":"IF(DataLog!$C286=\"Log value\",DataLog!T286,\"\")","v":""},{"$f":"IF(DataLog!$C286=\"Log value\",DataLog!U286,\"\")","v":""},{"$f":"IF(DataLog!$C286=\"Log value\",DataLog!V286,\"\")","v":""},{"$f":"IF(DataLog!$C286=\"Log value\",DataLog!W286,\"\")","v":""},{"$f":"IF(DataLog!$C286=\"Log value\",DataLog!X286,\"\")","v":""},{"$f":"IF(DataLog!$C286=\"Log value\",DataLog!Y286,\"\")","v":""},{"$f":"IF(DataLog!$C286=\"Log value\",DataLog!Z286,\"\")","v":""},{"$f":"IF(DataLog!$C286=\"Log value\",DataLog!AA286,\"\")","v":""},{"$f":"IF(DataLog!$C286=\"Log value\",DataLog!AB286,\"\")","v":""},{"$f":"IF(DataLog!$C286=\"Log value\",DataLog!AC286,\"\")","v":""},{"$f":"IF(DataLog!$C286=\"Log value\",DataLog!AD286,\"\")","v":""},{"$f":"IF(DataLog!$C286=\"Log value\",DataLog!AE286,\"\")","v":""},{"$f":"IF(DataLog!$C286=\"Log value\",DataLog!AF286,\"\")","v":""},{"$f":"IF(DataLog!$C286=\"Log value\",DataLog!AG286,\"\")","v":""},{"$f":"IF(DataLog!$C286=\"Log value\",DataLog!AH286,\"\")","v":""},{"$f":"IF(DataLog!$C286=\"Log value\",DataLog!AI286,\"\")","v":""},{"$f":"IF(DataLog!$C286=\"Log value\",DataLog!AJ286,\"\")","v":""},{"$f":"IF(DataLog!$C286=\"Log value\",DataLog!AK286,\"\")","v":""},{"$f":"IF(DataLog!$C286=\"Log value\",DataLog!AL286,\"\")","v":""},{"$f":"IF(DataLog!$C286=\"Log value\",DataLog!AM286,\"\")","v":""}]
[null,null,"Standard","Standard -  - ",null,null,{"$f":"IF(DataLog!$C287=\"Log value\",DataLog!D287&\"_\"&TEXT(DataLog!B287,\"åååå-mm-dd\"),\"\")","v":""},{"$f":"IF(DataLog!$C287=\"Log value\",DataLog!E287,\"\")","v":""},{"$f":"IF(DataLog!$C287=\"Log value\",DataLog!F287,\"\")","v":""},{"$f":"IF(DataLog!$C287=\"Log value\",DataLog!G287,\"\")","v":""},{"$f":"IF(DataLog!$C287=\"Log value\",DataLog!H287,\"\")","v":""},{"$f":"IF(DataLog!$C287=\"Log value\",DataLog!I287,\"\")","v":""},{"$f":"IF(DataLog!$C287=\"Log value\",DataLog!J287,\"\")","v":""},{"$f":"IF(DataLog!$C287=\"Log value\",DataLog!K287,\"\")","v":""},{"$f":"IF(DataLog!$C287=\"Log value\",DataLog!L287,\"\")","v":""},{"$f":"IF(DataLog!$C287=\"Log value\",DataLog!M287,\"\")","v":""},{"$f":"IF(DataLog!$C287=\"Log value\",DataLog!N287,\"\")","v":""},{"$f":"IF(DataLog!$C287=\"Log value\",DataLog!O287,\"\")","v":""},{"$f":"IF(DataLog!$C287=\"Log value\",DataLog!P287,\"\")","v":""},{"$f":"IF(DataLog!$C287=\"Log value\",DataLog!Q287,\"\")","v":""},{"$f":"IF(DataLog!$C287=\"Log value\",DataLog!R287,\"\")","v":""},{"$f":"IF(DataLog!$C287=\"Log value\",DataLog!S287,\"\")","v":""},{"$f":"IF(DataLog!$C287=\"Log value\",DataLog!T287,\"\")","v":""},{"$f":"IF(DataLog!$C287=\"Log value\",DataLog!U287,\"\")","v":""},{"$f":"IF(DataLog!$C287=\"Log value\",DataLog!V287,\"\")","v":""},{"$f":"IF(DataLog!$C287=\"Log value\",DataLog!W287,\"\")","v":""},{"$f":"IF(DataLog!$C287=\"Log value\",DataLog!X287,\"\")","v":""},{"$f":"IF(DataLog!$C287=\"Log value\",DataLog!Y287,\"\")","v":""},{"$f":"IF(DataLog!$C287=\"Log value\",DataLog!Z287,\"\")","v":""},{"$f":"IF(DataLog!$C287=\"Log value\",DataLog!AA287,\"\")","v":""},{"$f":"IF(DataLog!$C287=\"Log value\",DataLog!AB287,\"\")","v":""},{"$f":"IF(DataLog!$C287=\"Log value\",DataLog!AC287,\"\")","v":""},{"$f":"IF(DataLog!$C287=\"Log value\",DataLog!AD287,\"\")","v":""},{"$f":"IF(DataLog!$C287=\"Log value\",DataLog!AE287,\"\")","v":""},{"$f":"IF(DataLog!$C287=\"Log value\",DataLog!AF287,\"\")","v":""},{"$f":"IF(DataLog!$C287=\"Log value\",DataLog!AG287,\"\")","v":""},{"$f":"IF(DataLog!$C287=\"Log value\",DataLog!AH287,\"\")","v":""},{"$f":"IF(DataLog!$C287=\"Log value\",DataLog!AI287,\"\")","v":""},{"$f":"IF(DataLog!$C287=\"Log value\",DataLog!AJ287,\"\")","v":""},{"$f":"IF(DataLog!$C287=\"Log value\",DataLog!AK287,\"\")","v":""},{"$f":"IF(DataLog!$C287=\"Log value\",DataLog!AL287,\"\")","v":""},{"$f":"IF(DataLog!$C287=\"Log value\",DataLog!AM287,\"\")","v":""}]
[null,null,"Standard","Standard -  - ",null,null,{"$f":"IF(DataLog!$C288=\"Log value\",DataLog!D288&\"_\"&TEXT(DataLog!B288,\"åååå-mm-dd\"),\"\")","v":""},{"$f":"IF(DataLog!$C288=\"Log value\",DataLog!E288,\"\")","v":""},{"$f":"IF(DataLog!$C288=\"Log value\",DataLog!F288,\"\")","v":""},{"$f":"IF(DataLog!$C288=\"Log value\",DataLog!G288,\"\")","v":""},{"$f":"IF(DataLog!$C288=\"Log value\",DataLog!H288,\"\")","v":""},{"$f":"IF(DataLog!$C288=\"Log value\",DataLog!I288,\"\")","v":""},{"$f":"IF(DataLog!$C288=\"Log value\",DataLog!J288,\"\")","v":""},{"$f":"IF(DataLog!$C288=\"Log value\",DataLog!K288,\"\")","v":""},{"$f":"IF(DataLog!$C288=\"Log value\",DataLog!L288,\"\")","v":""},{"$f":"IF(DataLog!$C288=\"Log value\",DataLog!M288,\"\")","v":""},{"$f":"IF(DataLog!$C288=\"Log value\",DataLog!N288,\"\")","v":""},{"$f":"IF(DataLog!$C288=\"Log value\",DataLog!O288,\"\")","v":""},{"$f":"IF(DataLog!$C288=\"Log value\",DataLog!P288,\"\")","v":""},{"$f":"IF(DataLog!$C288=\"Log value\",DataLog!Q288,\"\")","v":""},{"$f":"IF(DataLog!$C288=\"Log value\",DataLog!R288,\"\")","v":""},{"$f":"IF(DataLog!$C288=\"Log value\",DataLog!S288,\"\")","v":""},{"$f":"IF(DataLog!$C288=\"Log value\",DataLog!T288,\"\")","v":""},{"$f":"IF(DataLog!$C288=\"Log value\",DataLog!U288,\"\")","v":""},{"$f":"IF(DataLog!$C288=\"Log value\",DataLog!V288,\"\")","v":""},{"$f":"IF(DataLog!$C288=\"Log value\",DataLog!W288,\"\")","v":""},{"$f":"IF(DataLog!$C288=\"Log value\",DataLog!X288,\"\")","v":""},{"$f":"IF(DataLog!$C288=\"Log value\",DataLog!Y288,\"\")","v":""},{"$f":"IF(DataLog!$C288=\"Log value\",DataLog!Z288,\"\")","v":""},{"$f":"IF(DataLog!$C288=\"Log value\",DataLog!AA288,\"\")","v":""},{"$f":"IF(DataLog!$C288=\"Log value\",DataLog!AB288,\"\")","v":""},{"$f":"IF(DataLog!$C288=\"Log value\",DataLog!AC288,\"\")","v":""},{"$f":"IF(DataLog!$C288=\"Log value\",DataLog!AD288,\"\")","v":""},{"$f":"IF(DataLog!$C288=\"Log value\",DataLog!AE288,\"\")","v":""},{"$f":"IF(DataLog!$C288=\"Log value\",DataLog!AF288,\"\")","v":""},{"$f":"IF(DataLog!$C288=\"Log value\",DataLog!AG288,\"\")","v":""},{"$f":"IF(DataLog!$C288=\"Log value\",DataLog!AH288,\"\")","v":""},{"$f":"IF(DataLog!$C288=\"Log value\",DataLog!AI288,\"\")","v":""},{"$f":"IF(DataLog!$C288=\"Log value\",DataLog!AJ288,\"\")","v":""},{"$f":"IF(DataLog!$C288=\"Log value\",DataLog!AK288,\"\")","v":""},{"$f":"IF(DataLog!$C288=\"Log value\",DataLog!AL288,\"\")","v":""},{"$f":"IF(DataLog!$C288=\"Log value\",DataLog!AM288,\"\")","v":""}]
[null,null,"Standard","Standard -  - ",null,null,{"$f":"IF(DataLog!$C289=\"Log value\",DataLog!D289&\"_\"&TEXT(DataLog!B289,\"åååå-mm-dd\"),\"\")","v":""},{"$f":"IF(DataLog!$C289=\"Log value\",DataLog!E289,\"\")","v":""},{"$f":"IF(DataLog!$C289=\"Log value\",DataLog!F289,\"\")","v":""},{"$f":"IF(DataLog!$C289=\"Log value\",DataLog!G289,\"\")","v":""},{"$f":"IF(DataLog!$C289=\"Log value\",DataLog!H289,\"\")","v":""},{"$f":"IF(DataLog!$C289=\"Log value\",DataLog!I289,\"\")","v":""},{"$f":"IF(DataLog!$C289=\"Log value\",DataLog!J289,\"\")","v":""},{"$f":"IF(DataLog!$C289=\"Log value\",DataLog!K289,\"\")","v":""},{"$f":"IF(DataLog!$C289=\"Log value\",DataLog!L289,\"\")","v":""},{"$f":"IF(DataLog!$C289=\"Log value\",DataLog!M289,\"\")","v":""},{"$f":"IF(DataLog!$C289=\"Log value\",DataLog!N289,\"\")","v":""},{"$f":"IF(DataLog!$C289=\"Log value\",DataLog!O289,\"\")","v":""},{"$f":"IF(DataLog!$C289=\"Log value\",DataLog!P289,\"\")","v":""},{"$f":"IF(DataLog!$C289=\"Log value\",DataLog!Q289,\"\")","v":""},{"$f":"IF(DataLog!$C289=\"Log value\",DataLog!R289,\"\")","v":""},{"$f":"IF(DataLog!$C289=\"Log value\",DataLog!S289,\"\")","v":""},{"$f":"IF(DataLog!$C289=\"Log value\",DataLog!T289,\"\")","v":""},{"$f":"IF(DataLog!$C289=\"Log value\",DataLog!U289,\"\")","v":""},{"$f":"IF(DataLog!$C289=\"Log value\",DataLog!V289,\"\")","v":""},{"$f":"IF(DataLog!$C289=\"Log value\",DataLog!W289,\"\")","v":""},{"$f":"IF(DataLog!$C289=\"Log value\",DataLog!X289,\"\")","v":""},{"$f":"IF(DataLog!$C289=\"Log value\",DataLog!Y289,\"\")","v":""},{"$f":"IF(DataLog!$C289=\"Log value\",DataLog!Z289,\"\")","v":""},{"$f":"IF(DataLog!$C289=\"Log value\",DataLog!AA289,\"\")","v":""},{"$f":"IF(DataLog!$C289=\"Log value\",DataLog!AB289,\"\")","v":""},{"$f":"IF(DataLog!$C289=\"Log value\",DataLog!AC289,\"\")","v":""},{"$f":"IF(DataLog!$C289=\"Log value\",DataLog!AD289,\"\")","v":""},{"$f":"IF(DataLog!$C289=\"Log value\",DataLog!AE289,\"\")","v":""},{"$f":"IF(DataLog!$C289=\"Log value\",DataLog!AF289,\"\")","v":""},{"$f":"IF(DataLog!$C289=\"Log value\",DataLog!AG289,\"\")","v":""},{"$f":"IF(DataLog!$C289=\"Log value\",DataLog!AH289,\"\")","v":""},{"$f":"IF(DataLog!$C289=\"Log value\",DataLog!AI289,\"\")","v":""},{"$f":"IF(DataLog!$C289=\"Log value\",DataLog!AJ289,\"\")","v":""},{"$f":"IF(DataLog!$C289=\"Log value\",DataLog!AK289,\"\")","v":""},{"$f":"IF(DataLog!$C289=\"Log value\",DataLog!AL289,\"\")","v":""},{"$f":"IF(DataLog!$C289=\"Log value\",DataLog!AM289,\"\")","v":""}]
[null,null,"Standard","Standard -  - ",null,null,{"$f":"IF(DataLog!$C290=\"Log value\",DataLog!D290&\"_\"&TEXT(DataLog!B290,\"åååå-mm-dd\"),\"\")","v":""},{"$f":"IF(DataLog!$C290=\"Log value\",DataLog!E290,\"\")","v":""},{"$f":"IF(DataLog!$C290=\"Log value\",DataLog!F290,\"\")","v":""},{"$f":"IF(DataLog!$C290=\"Log value\",DataLog!G290,\"\")","v":""},{"$f":"IF(DataLog!$C290=\"Log value\",DataLog!H290,\"\")","v":""},{"$f":"IF(DataLog!$C290=\"Log value\",DataLog!I290,\"\")","v":""},{"$f":"IF(DataLog!$C290=\"Log value\",DataLog!J290,\"\")","v":""},{"$f":"IF(DataLog!$C290=\"Log value\",DataLog!K290,\"\")","v":""},{"$f":"IF(DataLog!$C290=\"Log value\",DataLog!L290,\"\")","v":""},{"$f":"IF(DataLog!$C290=\"Log value\",DataLog!M290,\"\")","v":""},{"$f":"IF(DataLog!$C290=\"Log value\",DataLog!N290,\"\")","v":""},{"$f":"IF(DataLog!$C290=\"Log value\",DataLog!O290,\"\")","v":""},{"$f":"IF(DataLog!$C290=\"Log value\",DataLog!P290,\"\")","v":""},{"$f":"IF(DataLog!$C290=\"Log value\",DataLog!Q290,\"\")","v":""},{"$f":"IF(DataLog!$C290=\"Log value\",DataLog!R290,\"\")","v":""},{"$f":"IF(DataLog!$C290=\"Log value\",DataLog!S290,\"\")","v":""},{"$f":"IF(DataLog!$C290=\"Log value\",DataLog!T290,\"\")","v":""},{"$f":"IF(DataLog!$C290=\"Log value\",DataLog!U290,\"\")","v":""},{"$f":"IF(DataLog!$C290=\"Log value\",DataLog!V290,\"\")","v":""},{"$f":"IF(DataLog!$C290=\"Log value\",DataLog!W290,\"\")","v":""},{"$f":"IF(DataLog!$C290=\"Log value\",DataLog!X290,\"\")","v":""},{"$f":"IF(DataLog!$C290=\"Log value\",DataLog!Y290,\"\")","v":""},{"$f":"IF(DataLog!$C290=\"Log value\",DataLog!Z290,\"\")","v":""},{"$f":"IF(DataLog!$C290=\"Log value\",DataLog!AA290,\"\")","v":""},{"$f":"IF(DataLog!$C290=\"Log value\",DataLog!AB290,\"\")","v":""},{"$f":"IF(DataLog!$C290=\"Log value\",DataLog!AC290,\"\")","v":""},{"$f":"IF(DataLog!$C290=\"Log value\",DataLog!AD290,\"\")","v":""},{"$f":"IF(DataLog!$C290=\"Log value\",DataLog!AE290,\"\")","v":""},{"$f":"IF(DataLog!$C290=\"Log value\",DataLog!AF290,\"\")","v":""},{"$f":"IF(DataLog!$C290=\"Log value\",DataLog!AG290,\"\")","v":""},{"$f":"IF(DataLog!$C290=\"Log value\",DataLog!AH290,\"\")","v":""},{"$f":"IF(DataLog!$C290=\"Log value\",DataLog!AI290,\"\")","v":""},{"$f":"IF(DataLog!$C290=\"Log value\",DataLog!AJ290,\"\")","v":""},{"$f":"IF(DataLog!$C290=\"Log value\",DataLog!AK290,\"\")","v":""},{"$f":"IF(DataLog!$C290=\"Log value\",DataLog!AL290,\"\")","v":""},{"$f":"IF(DataLog!$C290=\"Log value\",DataLog!AM290,\"\")","v":""}]
[null,null,"Standard","Standard -  - ",null,null,{"$f":"IF(DataLog!$C291=\"Log value\",DataLog!D291&\"_\"&TEXT(DataLog!B291,\"åååå-mm-dd\"),\"\")","v":""},{"$f":"IF(DataLog!$C291=\"Log value\",DataLog!E291,\"\")","v":""},{"$f":"IF(DataLog!$C291=\"Log value\",DataLog!F291,\"\")","v":""},{"$f":"IF(DataLog!$C291=\"Log value\",DataLog!G291,\"\")","v":""},{"$f":"IF(DataLog!$C291=\"Log value\",DataLog!H291,\"\")","v":""},{"$f":"IF(DataLog!$C291=\"Log value\",DataLog!I291,\"\")","v":""},{"$f":"IF(DataLog!$C291=\"Log value\",DataLog!J291,\"\")","v":""},{"$f":"IF(DataLog!$C291=\"Log value\",DataLog!K291,\"\")","v":""},{"$f":"IF(DataLog!$C291=\"Log value\",DataLog!L291,\"\")","v":""},{"$f":"IF(DataLog!$C291=\"Log value\",DataLog!M291,\"\")","v":""},{"$f":"IF(DataLog!$C291=\"Log value\",DataLog!N291,\"\")","v":""},{"$f":"IF(DataLog!$C291=\"Log value\",DataLog!O291,\"\")","v":""},{"$f":"IF(DataLog!$C291=\"Log value\",DataLog!P291,\"\")","v":""},{"$f":"IF(DataLog!$C291=\"Log value\",DataLog!Q291,\"\")","v":""},{"$f":"IF(DataLog!$C291=\"Log value\",DataLog!R291,\"\")","v":""},{"$f":"IF(DataLog!$C291=\"Log value\",DataLog!S291,\"\")","v":""},{"$f":"IF(DataLog!$C291=\"Log value\",DataLog!T291,\"\")","v":""},{"$f":"IF(DataLog!$C291=\"Log value\",DataLog!U291,\"\")","v":""},{"$f":"IF(DataLog!$C291=\"Log value\",DataLog!V291,\"\")","v":""},{"$f":"IF(DataLog!$C291=\"Log value\",DataLog!W291,\"\")","v":""},{"$f":"IF(DataLog!$C291=\"Log value\",DataLog!X291,\"\")","v":""},{"$f":"IF(DataLog!$C291=\"Log value\",DataLog!Y291,\"\")","v":""},{"$f":"IF(DataLog!$C291=\"Log value\",DataLog!Z291,\"\")","v":""},{"$f":"IF(DataLog!$C291=\"Log value\",DataLog!AA291,\"\")","v":""},{"$f":"IF(DataLog!$C291=\"Log value\",DataLog!AB291,\"\")","v":""},{"$f":"IF(DataLog!$C291=\"Log value\",DataLog!AC291,\"\")","v":""},{"$f":"IF(DataLog!$C291=\"Log value\",DataLog!AD291,\"\")","v":""},{"$f":"IF(DataLog!$C291=\"Log value\",DataLog!AE291,\"\")","v":""},{"$f":"IF(DataLog!$C291=\"Log value\",DataLog!AF291,\"\")","v":""},{"$f":"IF(DataLog!$C291=\"Log value\",DataLog!AG291,\"\")","v":""},{"$f":"IF(DataLog!$C291=\"Log value\",DataLog!AH291,\"\")","v":""},{"$f":"IF(DataLog!$C291=\"Log value\",DataLog!AI291,\"\")","v":""},{"$f":"IF(DataLog!$C291=\"Log value\",DataLog!AJ291,\"\")","v":""},{"$f":"IF(DataLog!$C291=\"Log value\",DataLog!AK291,\"\")","v":""},{"$f":"IF(DataLog!$C291=\"Log value\",DataLog!AL291,\"\")","v":""},{"$f":"IF(DataLog!$C291=\"Log value\",DataLog!AM291,\"\")","v":""}]
[null,null,"Standard","Standard -  - ",null,null,{"$f":"IF(DataLog!$C292=\"Log value\",DataLog!D292&\"_\"&TEXT(DataLog!B292,\"åååå-mm-dd\"),\"\")","v":""},{"$f":"IF(DataLog!$C292=\"Log value\",DataLog!E292,\"\")","v":""},{"$f":"IF(DataLog!$C292=\"Log value\",DataLog!F292,\"\")","v":""},{"$f":"IF(DataLog!$C292=\"Log value\",DataLog!G292,\"\")","v":""},{"$f":"IF(DataLog!$C292=\"Log value\",DataLog!H292,\"\")","v":""},{"$f":"IF(DataLog!$C292=\"Log value\",DataLog!I292,\"\")","v":""},{"$f":"IF(DataLog!$C292=\"Log value\",DataLog!J292,\"\")","v":""},{"$f":"IF(DataLog!$C292=\"Log value\",DataLog!K292,\"\")","v":""},{"$f":"IF(DataLog!$C292=\"Log value\",DataLog!L292,\"\")","v":""},{"$f":"IF(DataLog!$C292=\"Log value\",DataLog!M292,\"\")","v":""},{"$f":"IF(DataLog!$C292=\"Log value\",DataLog!N292,\"\")","v":""},{"$f":"IF(DataLog!$C292=\"Log value\",DataLog!O292,\"\")","v":""},{"$f":"IF(DataLog!$C292=\"Log value\",DataLog!P292,\"\")","v":""},{"$f":"IF(DataLog!$C292=\"Log value\",DataLog!Q292,\"\")","v":""},{"$f":"IF(DataLog!$C292=\"Log value\",DataLog!R292,\"\")","v":""},{"$f":"IF(DataLog!$C292=\"Log value\",DataLog!S292,\"\")","v":""},{"$f":"IF(DataLog!$C292=\"Log value\",DataLog!T292,\"\")","v":""},{"$f":"IF(DataLog!$C292=\"Log value\",DataLog!U292,\"\")","v":""},{"$f":"IF(DataLog!$C292=\"Log value\",DataLog!V292,\"\")","v":""},{"$f":"IF(DataLog!$C292=\"Log value\",DataLog!W292,\"\")","v":""},{"$f":"IF(DataLog!$C292=\"Log value\",DataLog!X292,\"\")","v":""},{"$f":"IF(DataLog!$C292=\"Log value\",DataLog!Y292,\"\")","v":""},{"$f":"IF(DataLog!$C292=\"Log value\",DataLog!Z292,\"\")","v":""},{"$f":"IF(DataLog!$C292=\"Log value\",DataLog!AA292,\"\")","v":""},{"$f":"IF(DataLog!$C292=\"Log value\",DataLog!AB292,\"\")","v":""},{"$f":"IF(DataLog!$C292=\"Log value\",DataLog!AC292,\"\")","v":""},{"$f":"IF(DataLog!$C292=\"Log value\",DataLog!AD292,\"\")","v":""},{"$f":"IF(DataLog!$C292=\"Log value\",DataLog!AE292,\"\")","v":""},{"$f":"IF(DataLog!$C292=\"Log value\",DataLog!AF292,\"\")","v":""},{"$f":"IF(DataLog!$C292=\"Log value\",DataLog!AG292,\"\")","v":""},{"$f":"IF(DataLog!$C292=\"Log value\",DataLog!AH292,\"\")","v":""},{"$f":"IF(DataLog!$C292=\"Log value\",DataLog!AI292,\"\")","v":""},{"$f":"IF(DataLog!$C292=\"Log value\",DataLog!AJ292,\"\")","v":""},{"$f":"IF(DataLog!$C292=\"Log value\",DataLog!AK292,\"\")","v":""},{"$f":"IF(DataLog!$C292=\"Log value\",DataLog!AL292,\"\")","v":""},{"$f":"IF(DataLog!$C292=\"Log value\",DataLog!AM292,\"\")","v":""}]
[null,null,"Standard","Standard -  - ",null,null,{"$f":"IF(DataLog!$C293=\"Log value\",DataLog!D293&\"_\"&TEXT(DataLog!B293,\"åååå-mm-dd\"),\"\")","v":""},{"$f":"IF(DataLog!$C293=\"Log value\",DataLog!E293,\"\")","v":""},{"$f":"IF(DataLog!$C293=\"Log value\",DataLog!F293,\"\")","v":""},{"$f":"IF(DataLog!$C293=\"Log value\",DataLog!G293,\"\")","v":""},{"$f":"IF(DataLog!$C293=\"Log value\",DataLog!H293,\"\")","v":""},{"$f":"IF(DataLog!$C293=\"Log value\",DataLog!I293,\"\")","v":""},{"$f":"IF(DataLog!$C293=\"Log value\",DataLog!J293,\"\")","v":""},{"$f":"IF(DataLog!$C293=\"Log value\",DataLog!K293,\"\")","v":""},{"$f":"IF(DataLog!$C293=\"Log value\",DataLog!L293,\"\")","v":""},{"$f":"IF(DataLog!$C293=\"Log value\",DataLog!M293,\"\")","v":""},{"$f":"IF(DataLog!$C293=\"Log value\",DataLog!N293,\"\")","v":""},{"$f":"IF(DataLog!$C293=\"Log value\",DataLog!O293,\"\")","v":""},{"$f":"IF(DataLog!$C293=\"Log value\",DataLog!P293,\"\")","v":""},{"$f":"IF(DataLog!$C293=\"Log value\",DataLog!Q293,\"\")","v":""},{"$f":"IF(DataLog!$C293=\"Log value\",DataLog!R293,\"\")","v":""},{"$f":"IF(DataLog!$C293=\"Log value\",DataLog!S293,\"\")","v":""},{"$f":"IF(DataLog!$C293=\"Log value\",DataLog!T293,\"\")","v":""},{"$f":"IF(DataLog!$C293=\"Log value\",DataLog!U293,\"\")","v":""},{"$f":"IF(DataLog!$C293=\"Log value\",DataLog!V293,\"\")","v":""},{"$f":"IF(DataLog!$C293=\"Log value\",DataLog!W293,\"\")","v":""},{"$f":"IF(DataLog!$C293=\"Log value\",DataLog!X293,\"\")","v":""},{"$f":"IF(DataLog!$C293=\"Log value\",DataLog!Y293,\"\")","v":""},{"$f":"IF(DataLog!$C293=\"Log value\",DataLog!Z293,\"\")","v":""},{"$f":"IF(DataLog!$C293=\"Log value\",DataLog!AA293,\"\")","v":""},{"$f":"IF(DataLog!$C293=\"Log value\",DataLog!AB293,\"\")","v":""},{"$f":"IF(DataLog!$C293=\"Log value\",DataLog!AC293,\"\")","v":""},{"$f":"IF(DataLog!$C293=\"Log value\",DataLog!AD293,\"\")","v":""},{"$f":"IF(DataLog!$C293=\"Log value\",DataLog!AE293,\"\")","v":""},{"$f":"IF(DataLog!$C293=\"Log value\",DataLog!AF293,\"\")","v":""},{"$f":"IF(DataLog!$C293=\"Log value\",DataLog!AG293,\"\")","v":""},{"$f":"IF(DataLog!$C293=\"Log value\",DataLog!AH293,\"\")","v":""},{"$f":"IF(DataLog!$C293=\"Log value\",DataLog!AI293,\"\")","v":""},{"$f":"IF(DataLog!$C293=\"Log value\",DataLog!AJ293,\"\")","v":""},{"$f":"IF(DataLog!$C293=\"Log value\",DataLog!AK293,\"\")","v":""},{"$f":"IF(DataLog!$C293=\"Log value\",DataLog!AL293,\"\")","v":""},{"$f":"IF(DataLog!$C293=\"Log value\",DataLog!AM293,\"\")","v":""}]
[null,null,"Standard","Standard -  - ",null,null,{"$f":"IF(DataLog!$C294=\"Log value\",DataLog!D294&\"_\"&TEXT(DataLog!B294,\"åååå-mm-dd\"),\"\")","v":""},{"$f":"IF(DataLog!$C294=\"Log value\",DataLog!E294,\"\")","v":""},{"$f":"IF(DataLog!$C294=\"Log value\",DataLog!F294,\"\")","v":""},{"$f":"IF(DataLog!$C294=\"Log value\",DataLog!G294,\"\")","v":""},{"$f":"IF(DataLog!$C294=\"Log value\",DataLog!H294,\"\")","v":""},{"$f":"IF(DataLog!$C294=\"Log value\",DataLog!I294,\"\")","v":""},{"$f":"IF(DataLog!$C294=\"Log value\",DataLog!J294,\"\")","v":""},{"$f":"IF(DataLog!$C294=\"Log value\",DataLog!K294,\"\")","v":""},{"$f":"IF(DataLog!$C294=\"Log value\",DataLog!L294,\"\")","v":""},{"$f":"IF(DataLog!$C294=\"Log value\",DataLog!M294,\"\")","v":""},{"$f":"IF(DataLog!$C294=\"Log value\",DataLog!N294,\"\")","v":""},{"$f":"IF(DataLog!$C294=\"Log value\",DataLog!O294,\"\")","v":""},{"$f":"IF(DataLog!$C294=\"Log value\",DataLog!P294,\"\")","v":""},{"$f":"IF(DataLog!$C294=\"Log value\",DataLog!Q294,\"\")","v":""},{"$f":"IF(DataLog!$C294=\"Log value\",DataLog!R294,\"\")","v":""},{"$f":"IF(DataLog!$C294=\"Log value\",DataLog!S294,\"\")","v":""},{"$f":"IF(DataLog!$C294=\"Log value\",DataLog!T294,\"\")","v":""},{"$f":"IF(DataLog!$C294=\"Log value\",DataLog!U294,\"\")","v":""},{"$f":"IF(DataLog!$C294=\"Log value\",DataLog!V294,\"\")","v":""},{"$f":"IF(DataLog!$C294=\"Log value\",DataLog!W294,\"\")","v":""},{"$f":"IF(DataLog!$C294=\"Log value\",DataLog!X294,\"\")","v":""},{"$f":"IF(DataLog!$C294=\"Log value\",DataLog!Y294,\"\")","v":""},{"$f":"IF(DataLog!$C294=\"Log value\",DataLog!Z294,\"\")","v":""},{"$f":"IF(DataLog!$C294=\"Log value\",DataLog!AA294,\"\")","v":""},{"$f":"IF(DataLog!$C294=\"Log value\",DataLog!AB294,\"\")","v":""},{"$f":"IF(DataLog!$C294=\"Log value\",DataLog!AC294,\"\")","v":""},{"$f":"IF(DataLog!$C294=\"Log value\",DataLog!AD294,\"\")","v":""},{"$f":"IF(DataLog!$C294=\"Log value\",DataLog!AE294,\"\")","v":""},{"$f":"IF(DataLog!$C294=\"Log value\",DataLog!AF294,\"\")","v":""},{"$f":"IF(DataLog!$C294=\"Log value\",DataLog!AG294,\"\")","v":""},{"$f":"IF(DataLog!$C294=\"Log value\",DataLog!AH294,\"\")","v":""},{"$f":"IF(DataLog!$C294=\"Log value\",DataLog!AI294,\"\")","v":""},{"$f":"IF(DataLog!$C294=\"Log value\",DataLog!AJ294,\"\")","v":""},{"$f":"IF(DataLog!$C294=\"Log value\",DataLog!AK294,\"\")","v":""},{"$f":"IF(DataLog!$C294=\"Log value\",DataLog!AL294,\"\")","v":""},{"$f":"IF(DataLog!$C294=\"Log value\",DataLog!AM294,\"\")","v":""}]
[null,null,"Standard","Standard -  - ",null,null,{"$f":"IF(DataLog!$C295=\"Log value\",DataLog!D295&\"_\"&TEXT(DataLog!B295,\"åååå-mm-dd\"),\"\")","v":""},{"$f":"IF(DataLog!$C295=\"Log value\",DataLog!E295,\"\")","v":""},{"$f":"IF(DataLog!$C295=\"Log value\",DataLog!F295,\"\")","v":""},{"$f":"IF(DataLog!$C295=\"Log value\",DataLog!G295,\"\")","v":""},{"$f":"IF(DataLog!$C295=\"Log value\",DataLog!H295,\"\")","v":""},{"$f":"IF(DataLog!$C295=\"Log value\",DataLog!I295,\"\")","v":""},{"$f":"IF(DataLog!$C295=\"Log value\",DataLog!J295,\"\")","v":""},{"$f":"IF(DataLog!$C295=\"Log value\",DataLog!K295,\"\")","v":""},{"$f":"IF(DataLog!$C295=\"Log value\",DataLog!L295,\"\")","v":""},{"$f":"IF(DataLog!$C295=\"Log value\",DataLog!M295,\"\")","v":""},{"$f":"IF(DataLog!$C295=\"Log value\",DataLog!N295,\"\")","v":""},{"$f":"IF(DataLog!$C295=\"Log value\",DataLog!O295,\"\")","v":""},{"$f":"IF(DataLog!$C295=\"Log value\",DataLog!P295,\"\")","v":""},{"$f":"IF(DataLog!$C295=\"Log value\",DataLog!Q295,\"\")","v":""},{"$f":"IF(DataLog!$C295=\"Log value\",DataLog!R295,\"\")","v":""},{"$f":"IF(DataLog!$C295=\"Log value\",DataLog!S295,\"\")","v":""},{"$f":"IF(DataLog!$C295=\"Log value\",DataLog!T295,\"\")","v":""},{"$f":"IF(DataLog!$C295=\"Log value\",DataLog!U295,\"\")","v":""},{"$f":"IF(DataLog!$C295=\"Log value\",DataLog!V295,\"\")","v":""},{"$f":"IF(DataLog!$C295=\"Log value\",DataLog!W295,\"\")","v":""},{"$f":"IF(DataLog!$C295=\"Log value\",DataLog!X295,\"\")","v":""},{"$f":"IF(DataLog!$C295=\"Log value\",DataLog!Y295,\"\")","v":""},{"$f":"IF(DataLog!$C295=\"Log value\",DataLog!Z295,\"\")","v":""},{"$f":"IF(DataLog!$C295=\"Log value\",DataLog!AA295,\"\")","v":""},{"$f":"IF(DataLog!$C295=\"Log value\",DataLog!AB295,\"\")","v":""},{"$f":"IF(DataLog!$C295=\"Log value\",DataLog!AC295,\"\")","v":""},{"$f":"IF(DataLog!$C295=\"Log value\",DataLog!AD295,\"\")","v":""},{"$f":"IF(DataLog!$C295=\"Log value\",DataLog!AE295,\"\")","v":""},{"$f":"IF(DataLog!$C295=\"Log value\",DataLog!AF295,\"\")","v":""},{"$f":"IF(DataLog!$C295=\"Log value\",DataLog!AG295,\"\")","v":""},{"$f":"IF(DataLog!$C295=\"Log value\",DataLog!AH295,\"\")","v":""},{"$f":"IF(DataLog!$C295=\"Log value\",DataLog!AI295,\"\")","v":""},{"$f":"IF(DataLog!$C295=\"Log value\",DataLog!AJ295,\"\")","v":""},{"$f":"IF(DataLog!$C295=\"Log value\",DataLog!AK295,\"\")","v":""},{"$f":"IF(DataLog!$C295=\"Log value\",DataLog!AL295,\"\")","v":""},{"$f":"IF(DataLog!$C295=\"Log value\",DataLog!AM295,\"\")","v":""}]
[null,null,"Standard","Standard -  - ",null,null,{"$f":"IF(DataLog!$C296=\"Log value\",DataLog!D296&\"_\"&TEXT(DataLog!B296,\"åååå-mm-dd\"),\"\")","v":""},{"$f":"IF(DataLog!$C296=\"Log value\",DataLog!E296,\"\")","v":""},{"$f":"IF(DataLog!$C296=\"Log value\",DataLog!F296,\"\")","v":""},{"$f":"IF(DataLog!$C296=\"Log value\",DataLog!G296,\"\")","v":""},{"$f":"IF(DataLog!$C296=\"Log value\",DataLog!H296,\"\")","v":""},{"$f":"IF(DataLog!$C296=\"Log value\",DataLog!I296,\"\")","v":""},{"$f":"IF(DataLog!$C296=\"Log value\",DataLog!J296,\"\")","v":""},{"$f":"IF(DataLog!$C296=\"Log value\",DataLog!K296,\"\")","v":""},{"$f":"IF(DataLog!$C296=\"Log value\",DataLog!L296,\"\")","v":""},{"$f":"IF(DataLog!$C296=\"Log value\",DataLog!M296,\"\")","v":""},{"$f":"IF(DataLog!$C296=\"Log value\",DataLog!N296,\"\")","v":""},{"$f":"IF(DataLog!$C296=\"Log value\",DataLog!O296,\"\")","v":""},{"$f":"IF(DataLog!$C296=\"Log value\",DataLog!P296,\"\")","v":""},{"$f":"IF(DataLog!$C296=\"Log value\",DataLog!Q296,\"\")","v":""},{"$f":"IF(DataLog!$C296=\"Log value\",DataLog!R296,\"\")","v":""},{"$f":"IF(DataLog!$C296=\"Log value\",DataLog!S296,\"\")","v":""},{"$f":"IF(DataLog!$C296=\"Log value\",DataLog!T296,\"\")","v":""},{"$f":"IF(DataLog!$C296=\"Log value\",DataLog!U296,\"\")","v":""},{"$f":"IF(DataLog!$C296=\"Log value\",DataLog!V296,\"\")","v":""},{"$f":"IF(DataLog!$C296=\"Log value\",DataLog!W296,\"\")","v":""},{"$f":"IF(DataLog!$C296=\"Log value\",DataLog!X296,\"\")","v":""},{"$f":"IF(DataLog!$C296=\"Log value\",DataLog!Y296,\"\")","v":""},{"$f":"IF(DataLog!$C296=\"Log value\",DataLog!Z296,\"\")","v":""},{"$f":"IF(DataLog!$C296=\"Log value\",DataLog!AA296,\"\")","v":""},{"$f":"IF(DataLog!$C296=\"Log value\",DataLog!AB296,\"\")","v":""},{"$f":"IF(DataLog!$C296=\"Log value\",DataLog!AC296,\"\")","v":""},{"$f":"IF(DataLog!$C296=\"Log value\",DataLog!AD296,\"\")","v":""},{"$f":"IF(DataLog!$C296=\"Log value\",DataLog!AE296,\"\")","v":""},{"$f":"IF(DataLog!$C296=\"Log value\",DataLog!AF296,\"\")","v":""},{"$f":"IF(DataLog!$C296=\"Log value\",DataLog!AG296,\"\")","v":""},{"$f":"IF(DataLog!$C296=\"Log value\",DataLog!AH296,\"\")","v":""},{"$f":"IF(DataLog!$C296=\"Log value\",DataLog!AI296,\"\")","v":""},{"$f":"IF(DataLog!$C296=\"Log value\",DataLog!AJ296,\"\")","v":""},{"$f":"IF(DataLog!$C296=\"Log value\",DataLog!AK296,\"\")","v":""},{"$f":"IF(DataLog!$C296=\"Log value\",DataLog!AL296,\"\")","v":""},{"$f":"IF(DataLog!$C296=\"Log value\",DataLog!AM296,\"\")","v":""}]
[null,null,"Standard","Standard -  - ",null,null,{"$f":"IF(DataLog!$C297=\"Log value\",DataLog!D297&\"_\"&TEXT(DataLog!B297,\"åååå-mm-dd\"),\"\")","v":""},{"$f":"IF(DataLog!$C297=\"Log value\",DataLog!E297,\"\")","v":""},{"$f":"IF(DataLog!$C297=\"Log value\",DataLog!F297,\"\")","v":""},{"$f":"IF(DataLog!$C297=\"Log value\",DataLog!G297,\"\")","v":""},{"$f":"IF(DataLog!$C297=\"Log value\",DataLog!H297,\"\")","v":""},{"$f":"IF(DataLog!$C297=\"Log value\",DataLog!I297,\"\")","v":""},{"$f":"IF(DataLog!$C297=\"Log value\",DataLog!J297,\"\")","v":""},{"$f":"IF(DataLog!$C297=\"Log value\",DataLog!K297,\"\")","v":""},{"$f":"IF(DataLog!$C297=\"Log value\",DataLog!L297,\"\")","v":""},{"$f":"IF(DataLog!$C297=\"Log value\",DataLog!M297,\"\")","v":""},{"$f":"IF(DataLog!$C297=\"Log value\",DataLog!N297,\"\")","v":""},{"$f":"IF(DataLog!$C297=\"Log value\",DataLog!O297,\"\")","v":""},{"$f":"IF(DataLog!$C297=\"Log value\",DataLog!P297,\"\")","v":""},{"$f":"IF(DataLog!$C297=\"Log value\",DataLog!Q297,\"\")","v":""},{"$f":"IF(DataLog!$C297=\"Log value\",DataLog!R297,\"\")","v":""},{"$f":"IF(DataLog!$C297=\"Log value\",DataLog!S297,\"\")","v":""},{"$f":"IF(DataLog!$C297=\"Log value\",DataLog!T297,\"\")","v":""},{"$f":"IF(DataLog!$C297=\"Log value\",DataLog!U297,\"\")","v":""},{"$f":"IF(DataLog!$C297=\"Log value\",DataLog!V297,\"\")","v":""},{"$f":"IF(DataLog!$C297=\"Log value\",DataLog!W297,\"\")","v":""},{"$f":"IF(DataLog!$C297=\"Log value\",DataLog!X297,\"\")","v":""},{"$f":"IF(DataLog!$C297=\"Log value\",DataLog!Y297,\"\")","v":""},{"$f":"IF(DataLog!$C297=\"Log value\",DataLog!Z297,\"\")","v":""},{"$f":"IF(DataLog!$C297=\"Log value\",DataLog!AA297,\"\")","v":""},{"$f":"IF(DataLog!$C297=\"Log value\",DataLog!AB297,\"\")","v":""},{"$f":"IF(DataLog!$C297=\"Log value\",DataLog!AC297,\"\")","v":""},{"$f":"IF(DataLog!$C297=\"Log value\",DataLog!AD297,\"\")","v":""},{"$f":"IF(DataLog!$C297=\"Log value\",DataLog!AE297,\"\")","v":""},{"$f":"IF(DataLog!$C297=\"Log value\",DataLog!AF297,\"\")","v":""},{"$f":"IF(DataLog!$C297=\"Log value\",DataLog!AG297,\"\")","v":""},{"$f":"IF(DataLog!$C297=\"Log value\",DataLog!AH297,\"\")","v":""},{"$f":"IF(DataLog!$C297=\"Log value\",DataLog!AI297,\"\")","v":""},{"$f":"IF(DataLog!$C297=\"Log value\",DataLog!AJ297,\"\")","v":""},{"$f":"IF(DataLog!$C297=\"Log value\",DataLog!AK297,\"\")","v":""},{"$f":"IF(DataLog!$C297=\"Log value\",DataLog!AL297,\"\")","v":""},{"$f":"IF(DataLog!$C297=\"Log value\",DataLog!AM297,\"\")","v":""}]
[null,null,"Standard","Standard -  - ",null,null,{"$f":"IF(DataLog!$C298=\"Log value\",DataLog!D298&\"_\"&TEXT(DataLog!B298,\"åååå-mm-dd\"),\"\")","v":""},{"$f":"IF(DataLog!$C298=\"Log value\",DataLog!E298,\"\")","v":""},{"$f":"IF(DataLog!$C298=\"Log value\",DataLog!F298,\"\")","v":""},{"$f":"IF(DataLog!$C298=\"Log value\",DataLog!G298,\"\")","v":""},{"$f":"IF(DataLog!$C298=\"Log value\",DataLog!H298,\"\")","v":""},{"$f":"IF(DataLog!$C298=\"Log value\",DataLog!I298,\"\")","v":""},{"$f":"IF(DataLog!$C298=\"Log value\",DataLog!J298,\"\")","v":""},{"$f":"IF(DataLog!$C298=\"Log value\",DataLog!K298,\"\")","v":""},{"$f":"IF(DataLog!$C298=\"Log value\",DataLog!L298,\"\")","v":""},{"$f":"IF(DataLog!$C298=\"Log value\",DataLog!M298,\"\")","v":""},{"$f":"IF(DataLog!$C298=\"Log value\",DataLog!N298,\"\")","v":""},{"$f":"IF(DataLog!$C298=\"Log value\",DataLog!O298,\"\")","v":""},{"$f":"IF(DataLog!$C298=\"Log value\",DataLog!P298,\"\")","v":""},{"$f":"IF(DataLog!$C298=\"Log value\",DataLog!Q298,\"\")","v":""},{"$f":"IF(DataLog!$C298=\"Log value\",DataLog!R298,\"\")","v":""},{"$f":"IF(DataLog!$C298=\"Log value\",DataLog!S298,\"\")","v":""},{"$f":"IF(DataLog!$C298=\"Log value\",DataLog!T298,\"\")","v":""},{"$f":"IF(DataLog!$C298=\"Log value\",DataLog!U298,\"\")","v":""},{"$f":"IF(DataLog!$C298=\"Log value\",DataLog!V298,\"\")","v":""},{"$f":"IF(DataLog!$C298=\"Log value\",DataLog!W298,\"\")","v":""},{"$f":"IF(DataLog!$C298=\"Log value\",DataLog!X298,\"\")","v":""},{"$f":"IF(DataLog!$C298=\"Log value\",DataLog!Y298,\"\")","v":""},{"$f":"IF(DataLog!$C298=\"Log value\",DataLog!Z298,\"\")","v":""},{"$f":"IF(DataLog!$C298=\"Log value\",DataLog!AA298,\"\")","v":""},{"$f":"IF(DataLog!$C298=\"Log value\",DataLog!AB298,\"\")","v":""},{"$f":"IF(DataLog!$C298=\"Log value\",DataLog!AC298,\"\")","v":""},{"$f":"IF(DataLog!$C298=\"Log value\",DataLog!AD298,\"\")","v":""},{"$f":"IF(DataLog!$C298=\"Log value\",DataLog!AE298,\"\")","v":""},{"$f":"IF(DataLog!$C298=\"Log value\",DataLog!AF298,\"\")","v":""},{"$f":"IF(DataLog!$C298=\"Log value\",DataLog!AG298,\"\")","v":""},{"$f":"IF(DataLog!$C298=\"Log value\",DataLog!AH298,\"\")","v":""},{"$f":"IF(DataLog!$C298=\"Log value\",DataLog!AI298,\"\")","v":""},{"$f":"IF(DataLog!$C298=\"Log value\",DataLog!AJ298,\"\")","v":""},{"$f":"IF(DataLog!$C298=\"Log value\",DataLog!AK298,\"\")","v":""},{"$f":"IF(DataLog!$C298=\"Log value\",DataLog!AL298,\"\")","v":""},{"$f":"IF(DataLog!$C298=\"Log value\",DataLog!AM298,\"\")","v":""}]
[null,null,"Standard","Standard -  - ",null,null,{"$f":"IF(DataLog!$C299=\"Log value\",DataLog!D299&\"_\"&TEXT(DataLog!B299,\"åååå-mm-dd\"),\"\")","v":""},{"$f":"IF(DataLog!$C299=\"Log value\",DataLog!E299,\"\")","v":""},{"$f":"IF(DataLog!$C299=\"Log value\",DataLog!F299,\"\")","v":""},{"$f":"IF(DataLog!$C299=\"Log value\",DataLog!G299,\"\")","v":""},{"$f":"IF(DataLog!$C299=\"Log value\",DataLog!H299,\"\")","v":""},{"$f":"IF(DataLog!$C299=\"Log value\",DataLog!I299,\"\")","v":""},{"$f":"IF(DataLog!$C299=\"Log value\",DataLog!J299,\"\")","v":""},{"$f":"IF(DataLog!$C299=\"Log value\",DataLog!K299,\"\")","v":""},{"$f":"IF(DataLog!$C299=\"Log value\",DataLog!L299,\"\")","v":""},{"$f":"IF(DataLog!$C299=\"Log value\",DataLog!M299,\"\")","v":""},{"$f":"IF(DataLog!$C299=\"Log value\",DataLog!N299,\"\")","v":""},{"$f":"IF(DataLog!$C299=\"Log value\",DataLog!O299,\"\")","v":""},{"$f":"IF(DataLog!$C299=\"Log value\",DataLog!P299,\"\")","v":""},{"$f":"IF(DataLog!$C299=\"Log value\",DataLog!Q299,\"\")","v":""},{"$f":"IF(DataLog!$C299=\"Log value\",DataLog!R299,\"\")","v":""},{"$f":"IF(DataLog!$C299=\"Log value\",DataLog!S299,\"\")","v":""},{"$f":"IF(DataLog!$C299=\"Log value\",DataLog!T299,\"\")","v":""},{"$f":"IF(DataLog!$C299=\"Log value\",DataLog!U299,\"\")","v":""},{"$f":"IF(DataLog!$C299=\"Log value\",DataLog!V299,\"\")","v":""},{"$f":"IF(DataLog!$C299=\"Log value\",DataLog!W299,\"\")","v":""},{"$f":"IF(DataLog!$C299=\"Log value\",DataLog!X299,\"\")","v":""},{"$f":"IF(DataLog!$C299=\"Log value\",DataLog!Y299,\"\")","v":""},{"$f":"IF(DataLog!$C299=\"Log value\",DataLog!Z299,\"\")","v":""},{"$f":"IF(DataLog!$C299=\"Log value\",DataLog!AA299,\"\")","v":""},{"$f":"IF(DataLog!$C299=\"Log value\",DataLog!AB299,\"\")","v":""},{"$f":"IF(DataLog!$C299=\"Log value\",DataLog!AC299,\"\")","v":""},{"$f":"IF(DataLog!$C299=\"Log value\",DataLog!AD299,\"\")","v":""},{"$f":"IF(DataLog!$C299=\"Log value\",DataLog!AE299,\"\")","v":""},{"$f":"IF(DataLog!$C299=\"Log value\",DataLog!AF299,\"\")","v":""},{"$f":"IF(DataLog!$C299=\"Log value\",DataLog!AG299,\"\")","v":""},{"$f":"IF(DataLog!$C299=\"Log value\",DataLog!AH299,\"\")","v":""},{"$f":"IF(DataLog!$C299=\"Log value\",DataLog!AI299,\"\")","v":""},{"$f":"IF(DataLog!$C299=\"Log value\",DataLog!AJ299,\"\")","v":""},{"$f":"IF(DataLog!$C299=\"Log value\",DataLog!AK299,\"\")","v":""},{"$f":"IF(DataLog!$C299=\"Log value\",DataLog!AL299,\"\")","v":""},{"$f":"IF(DataLog!$C299=\"Log value\",DataLog!AM299,\"\")","v":""}]
[null,null,"Standard","Standard -  - ",null,null,{"$f":"IF(DataLog!$C300=\"Log value\",DataLog!D300&\"_\"&TEXT(DataLog!B300,\"åååå-mm-dd\"),\"\")","v":""},{"$f":"IF(DataLog!$C300=\"Log value\",DataLog!E300,\"\")","v":""},{"$f":"IF(DataLog!$C300=\"Log value\",DataLog!F300,\"\")","v":""},{"$f":"IF(DataLog!$C300=\"Log value\",DataLog!G300,\"\")","v":""},{"$f":"IF(DataLog!$C300=\"Log value\",DataLog!H300,\"\")","v":""},{"$f":"IF(DataLog!$C300=\"Log value\",DataLog!I300,\"\")","v":""},{"$f":"IF(DataLog!$C300=\"Log value\",DataLog!J300,\"\")","v":""},{"$f":"IF(DataLog!$C300=\"Log value\",DataLog!K300,\"\")","v":""},{"$f":"IF(DataLog!$C300=\"Log value\",DataLog!L300,\"\")","v":""},{"$f":"IF(DataLog!$C300=\"Log value\",DataLog!M300,\"\")","v":""},{"$f":"IF(DataLog!$C300=\"Log value\",DataLog!N300,\"\")","v":""},{"$f":"IF(DataLog!$C300=\"Log value\",DataLog!O300,\"\")","v":""},{"$f":"IF(DataLog!$C300=\"Log value\",DataLog!P300,\"\")","v":""},{"$f":"IF(DataLog!$C300=\"Log value\",DataLog!Q300,\"\")","v":""},{"$f":"IF(DataLog!$C300=\"Log value\",DataLog!R300,\"\")","v":""},{"$f":"IF(DataLog!$C300=\"Log value\",DataLog!S300,\"\")","v":""},{"$f":"IF(DataLog!$C300=\"Log value\",DataLog!T300,\"\")","v":""},{"$f":"IF(DataLog!$C300=\"Log value\",DataLog!U300,\"\")","v":""},{"$f":"IF(DataLog!$C300=\"Log value\",DataLog!V300,\"\")","v":""},{"$f":"IF(DataLog!$C300=\"Log value\",DataLog!W300,\"\")","v":""},{"$f":"IF(DataLog!$C300=\"Log value\",DataLog!X300,\"\")","v":""},{"$f":"IF(DataLog!$C300=\"Log value\",DataLog!Y300,\"\")","v":""},{"$f":"IF(DataLog!$C300=\"Log value\",DataLog!Z300,\"\")","v":""},{"$f":"IF(DataLog!$C300=\"Log value\",DataLog!AA300,\"\")","v":""},{"$f":"IF(DataLog!$C300=\"Log value\",DataLog!AB300,\"\")","v":""},{"$f":"IF(DataLog!$C300=\"Log value\",DataLog!AC300,\"\")","v":""},{"$f":"IF(DataLog!$C300=\"Log value\",DataLog!AD300,\"\")","v":""},{"$f":"IF(DataLog!$C300=\"Log value\",DataLog!AE300,\"\")","v":""},{"$f":"IF(DataLog!$C300=\"Log value\",DataLog!AF300,\"\")","v":""},{"$f":"IF(DataLog!$C300=\"Log value\",DataLog!AG300,\"\")","v":""},{"$f":"IF(DataLog!$C300=\"Log value\",DataLog!AH300,\"\")","v":""},{"$f":"IF(DataLog!$C300=\"Log value\",DataLog!AI300,\"\")","v":""},{"$f":"IF(DataLog!$C300=\"Log value\",DataLog!AJ300,\"\")","v":""},{"$f":"IF(DataLog!$C300=\"Log value\",DataLog!AK300,\"\")","v":""},{"$f":"IF(DataLog!$C300=\"Log value\",DataLog!AL300,\"\")","v":""},{"$f":"IF(DataLog!$C300=\"Log value\",DataLog!AM300,\"\")","v":""}]
[null,null,"Standard","Standard -  - ",null,null,{"$f":"IF(DataLog!$C301=\"Log value\",DataLog!D301&\"_\"&TEXT(DataLog!B301,\"åååå-mm-dd\"),\"\")","v":""},{"$f":"IF(DataLog!$C301=\"Log value\",DataLog!E301,\"\")","v":""},{"$f":"IF(DataLog!$C301=\"Log value\",DataLog!F301,\"\")","v":""},{"$f":"IF(DataLog!$C301=\"Log value\",DataLog!G301,\"\")","v":""},{"$f":"IF(DataLog!$C301=\"Log value\",DataLog!H301,\"\")","v":""},{"$f":"IF(DataLog!$C301=\"Log value\",DataLog!I301,\"\")","v":""},{"$f":"IF(DataLog!$C301=\"Log value\",DataLog!J301,\"\")","v":""},{"$f":"IF(DataLog!$C301=\"Log value\",DataLog!K301,\"\")","v":""},{"$f":"IF(DataLog!$C301=\"Log value\",DataLog!L301,\"\")","v":""},{"$f":"IF(DataLog!$C301=\"Log value\",DataLog!M301,\"\")","v":""},{"$f":"IF(DataLog!$C301=\"Log value\",DataLog!N301,\"\")","v":""},{"$f":"IF(DataLog!$C301=\"Log value\",DataLog!O301,\"\")","v":""},{"$f":"IF(DataLog!$C301=\"Log value\",DataLog!P301,\"\")","v":""},{"$f":"IF(DataLog!$C301=\"Log value\",DataLog!Q301,\"\")","v":""},{"$f":"IF(DataLog!$C301=\"Log value\",DataLog!R301,\"\")","v":""},{"$f":"IF(DataLog!$C301=\"Log value\",DataLog!S301,\"\")","v":""},{"$f":"IF(DataLog!$C301=\"Log value\",DataLog!T301,\"\")","v":""},{"$f":"IF(DataLog!$C301=\"Log value\",DataLog!U301,\"\")","v":""},{"$f":"IF(DataLog!$C301=\"Log value\",DataLog!V301,\"\")","v":""},{"$f":"IF(DataLog!$C301=\"Log value\",DataLog!W301,\"\")","v":""},{"$f":"IF(DataLog!$C301=\"Log value\",DataLog!X301,\"\")","v":""},{"$f":"IF(DataLog!$C301=\"Log value\",DataLog!Y301,\"\")","v":""},{"$f":"IF(DataLog!$C301=\"Log value\",DataLog!Z301,\"\")","v":""},{"$f":"IF(DataLog!$C301=\"Log value\",DataLog!AA301,\"\")","v":""},{"$f":"IF(DataLog!$C301=\"Log value\",DataLog!AB301,\"\")","v":""},{"$f":"IF(DataLog!$C301=\"Log value\",DataLog!AC301,\"\")","v":""},{"$f":"IF(DataLog!$C301=\"Log value\",DataLog!AD301,\"\")","v":""},{"$f":"IF(DataLog!$C301=\"Log value\",DataLog!AE301,\"\")","v":""},{"$f":"IF(DataLog!$C301=\"Log value\",DataLog!AF301,\"\")","v":""},{"$f":"IF(DataLog!$C301=\"Log value\",DataLog!AG301,\"\")","v":""},{"$f":"IF(DataLog!$C301=\"Log value\",DataLog!AH301,\"\")","v":""},{"$f":"IF(DataLog!$C301=\"Log value\",DataLog!AI301,\"\")","v":""},{"$f":"IF(DataLog!$C301=\"Log value\",DataLog!AJ301,\"\")","v":""},{"$f":"IF(DataLog!$C301=\"Log value\",DataLog!AK301,\"\")","v":""},{"$f":"IF(DataLog!$C301=\"Log value\",DataLog!AL301,\"\")","v":""},{"$f":"IF(DataLog!$C301=\"Log value\",DataLog!AM301,\"\")","v":""}]
[null,null,"Standard","Standard -  - ",null,null,{"$f":"IF(DataLog!$C302=\"Log value\",DataLog!D302&\"_\"&TEXT(DataLog!B302,\"åååå-mm-dd\"),\"\")","v":""},{"$f":"IF(DataLog!$C302=\"Log value\",DataLog!E302,\"\")","v":""},{"$f":"IF(DataLog!$C302=\"Log value\",DataLog!F302,\"\")","v":""},{"$f":"IF(DataLog!$C302=\"Log value\",DataLog!G302,\"\")","v":""},{"$f":"IF(DataLog!$C302=\"Log value\",DataLog!H302,\"\")","v":""},{"$f":"IF(DataLog!$C302=\"Log value\",DataLog!I302,\"\")","v":""},{"$f":"IF(DataLog!$C302=\"Log value\",DataLog!J302,\"\")","v":""},{"$f":"IF(DataLog!$C302=\"Log value\",DataLog!K302,\"\")","v":""},{"$f":"IF(DataLog!$C302=\"Log value\",DataLog!L302,\"\")","v":""},{"$f":"IF(DataLog!$C302=\"Log value\",DataLog!M302,\"\")","v":""},{"$f":"IF(DataLog!$C302=\"Log value\",DataLog!N302,\"\")","v":""},{"$f":"IF(DataLog!$C302=\"Log value\",DataLog!O302,\"\")","v":""},{"$f":"IF(DataLog!$C302=\"Log value\",DataLog!P302,\"\")","v":""},{"$f":"IF(DataLog!$C302=\"Log value\",DataLog!Q302,\"\")","v":""},{"$f":"IF(DataLog!$C302=\"Log value\",DataLog!R302,\"\")","v":""},{"$f":"IF(DataLog!$C302=\"Log value\",DataLog!S302,\"\")","v":""},{"$f":"IF(DataLog!$C302=\"Log value\",DataLog!T302,\"\")","v":""},{"$f":"IF(DataLog!$C302=\"Log value\",DataLog!U302,\"\")","v":""},{"$f":"IF(DataLog!$C302=\"Log value\",DataLog!V302,\"\")","v":""},{"$f":"IF(DataLog!$C302=\"Log value\",DataLog!W302,\"\")","v":""},{"$f":"IF(DataLog!$C302=\"Log value\",DataLog!X302,\"\")","v":""},{"$f":"IF(DataLog!$C302=\"Log value\",DataLog!Y302,\"\")","v":""},{"$f":"IF(DataLog!$C302=\"Log value\",DataLog!Z302,\"\")","v":""},{"$f":"IF(DataLog!$C302=\"Log value\",DataLog!AA302,\"\")","v":""},{"$f":"IF(DataLog!$C302=\"Log value\",DataLog!AB302,\"\")","v":""},{"$f":"IF(DataLog!$C302=\"Log value\",DataLog!AC302,\"\")","v":""},{"$f":"IF(DataLog!$C302=\"Log value\",DataLog!AD302,\"\")","v":""},{"$f":"IF(DataLog!$C302=\"Log value\",DataLog!AE302,\"\")","v":""},{"$f":"IF(DataLog!$C302=\"Log value\",DataLog!AF302,\"\")","v":""},{"$f":"IF(DataLog!$C302=\"Log value\",DataLog!AG302,\"\")","v":""},{"$f":"IF(DataLog!$C302=\"Log value\",DataLog!AH302,\"\")","v":""},{"$f":"IF(DataLog!$C302=\"Log value\",DataLog!AI302,\"\")","v":""},{"$f":"IF(DataLog!$C302=\"Log value\",DataLog!AJ302,\"\")","v":""},{"$f":"IF(DataLog!$C302=\"Log value\",DataLog!AK302,\"\")","v":""},{"$f":"IF(DataLog!$C302=\"Log value\",DataLog!AL302,\"\")","v":""},{"$f":"IF(DataLog!$C302=\"Log value\",DataLog!AM302,\"\")","v":""}]
[null,null,"Standard","Standard -  - ",null,null,{"$f":"IF(DataLog!$C303=\"Log value\",DataLog!D303&\"_\"&TEXT(DataLog!B303,\"åååå-mm-dd\"),\"\")","v":""},{"$f":"IF(DataLog!$C303=\"Log value\",DataLog!E303,\"\")","v":""},{"$f":"IF(DataLog!$C303=\"Log value\",DataLog!F303,\"\")","v":""},{"$f":"IF(DataLog!$C303=\"Log value\",DataLog!G303,\"\")","v":""},{"$f":"IF(DataLog!$C303=\"Log value\",DataLog!H303,\"\")","v":""},{"$f":"IF(DataLog!$C303=\"Log value\",DataLog!I303,\"\")","v":""},{"$f":"IF(DataLog!$C303=\"Log value\",DataLog!J303,\"\")","v":""},{"$f":"IF(DataLog!$C303=\"Log value\",DataLog!K303,\"\")","v":""},{"$f":"IF(DataLog!$C303=\"Log value\",DataLog!L303,\"\")","v":""},{"$f":"IF(DataLog!$C303=\"Log value\",DataLog!M303,\"\")","v":""},{"$f":"IF(DataLog!$C303=\"Log value\",DataLog!N303,\"\")","v":""},{"$f":"IF(DataLog!$C303=\"Log value\",DataLog!O303,\"\")","v":""},{"$f":"IF(DataLog!$C303=\"Log value\",DataLog!P303,\"\")","v":""},{"$f":"IF(DataLog!$C303=\"Log value\",DataLog!Q303,\"\")","v":""},{"$f":"IF(DataLog!$C303=\"Log value\",DataLog!R303,\"\")","v":""},{"$f":"IF(DataLog!$C303=\"Log value\",DataLog!S303,\"\")","v":""},{"$f":"IF(DataLog!$C303=\"Log value\",DataLog!T303,\"\")","v":""},{"$f":"IF(DataLog!$C303=\"Log value\",DataLog!U303,\"\")","v":""},{"$f":"IF(DataLog!$C303=\"Log value\",DataLog!V303,\"\")","v":""},{"$f":"IF(DataLog!$C303=\"Log value\",DataLog!W303,\"\")","v":""},{"$f":"IF(DataLog!$C303=\"Log value\",DataLog!X303,\"\")","v":""},{"$f":"IF(DataLog!$C303=\"Log value\",DataLog!Y303,\"\")","v":""},{"$f":"IF(DataLog!$C303=\"Log value\",DataLog!Z303,\"\")","v":""},{"$f":"IF(DataLog!$C303=\"Log value\",DataLog!AA303,\"\")","v":""},{"$f":"IF(DataLog!$C303=\"Log value\",DataLog!AB303,\"\")","v":""},{"$f":"IF(DataLog!$C303=\"Log value\",DataLog!AC303,\"\")","v":""},{"$f":"IF(DataLog!$C303=\"Log value\",DataLog!AD303,\"\")","v":""},{"$f":"IF(DataLog!$C303=\"Log value\",DataLog!AE303,\"\")","v":""},{"$f":"IF(DataLog!$C303=\"Log value\",DataLog!AF303,\"\")","v":""},{"$f":"IF(DataLog!$C303=\"Log value\",DataLog!AG303,\"\")","v":""},{"$f":"IF(DataLog!$C303=\"Log value\",DataLog!AH303,\"\")","v":""},{"$f":"IF(DataLog!$C303=\"Log value\",DataLog!AI303,\"\")","v":""},{"$f":"IF(DataLog!$C303=\"Log value\",DataLog!AJ303,\"\")","v":""},{"$f":"IF(DataLog!$C303=\"Log value\",DataLog!AK303,\"\")","v":""},{"$f":"IF(DataLog!$C303=\"Log value\",DataLog!AL303,\"\")","v":""},{"$f":"IF(DataLog!$C303=\"Log value\",DataLog!AM303,\"\")","v":""}]
[null,null,"Standard","Standard -  - ",null,null,{"$f":"IF(DataLog!$C304=\"Log value\",DataLog!D304&\"_\"&TEXT(DataLog!B304,\"åååå-mm-dd\"),\"\")","v":""},{"$f":"IF(DataLog!$C304=\"Log value\",DataLog!E304,\"\")","v":""},{"$f":"IF(DataLog!$C304=\"Log value\",DataLog!F304,\"\")","v":""},{"$f":"IF(DataLog!$C304=\"Log value\",DataLog!G304,\"\")","v":""},{"$f":"IF(DataLog!$C304=\"Log value\",DataLog!H304,\"\")","v":""},{"$f":"IF(DataLog!$C304=\"Log value\",DataLog!I304,\"\")","v":""},{"$f":"IF(DataLog!$C304=\"Log value\",DataLog!J304,\"\")","v":""},{"$f":"IF(DataLog!$C304=\"Log value\",DataLog!K304,\"\")","v":""},{"$f":"IF(DataLog!$C304=\"Log value\",DataLog!L304,\"\")","v":""},{"$f":"IF(DataLog!$C304=\"Log value\",DataLog!M304,\"\")","v":""},{"$f":"IF(DataLog!$C304=\"Log value\",DataLog!N304,\"\")","v":""},{"$f":"IF(DataLog!$C304=\"Log value\",DataLog!O304,\"\")","v":""},{"$f":"IF(DataLog!$C304=\"Log value\",DataLog!P304,\"\")","v":""},{"$f":"IF(DataLog!$C304=\"Log value\",DataLog!Q304,\"\")","v":""},{"$f":"IF(DataLog!$C304=\"Log value\",DataLog!R304,\"\")","v":""},{"$f":"IF(DataLog!$C304=\"Log value\",DataLog!S304,\"\")","v":""},{"$f":"IF(DataLog!$C304=\"Log value\",DataLog!T304,\"\")","v":""},{"$f":"IF(DataLog!$C304=\"Log value\",DataLog!U304,\"\")","v":""},{"$f":"IF(DataLog!$C304=\"Log value\",DataLog!V304,\"\")","v":""},{"$f":"IF(DataLog!$C304=\"Log value\",DataLog!W304,\"\")","v":""},{"$f":"IF(DataLog!$C304=\"Log value\",DataLog!X304,\"\")","v":""},{"$f":"IF(DataLog!$C304=\"Log value\",DataLog!Y304,\"\")","v":""},{"$f":"IF(DataLog!$C304=\"Log value\",DataLog!Z304,\"\")","v":""},{"$f":"IF(DataLog!$C304=\"Log value\",DataLog!AA304,\"\")","v":""},{"$f":"IF(DataLog!$C304=\"Log value\",DataLog!AB304,\"\")","v":""},{"$f":"IF(DataLog!$C304=\"Log value\",DataLog!AC304,\"\")","v":""},{"$f":"IF(DataLog!$C304=\"Log value\",DataLog!AD304,\"\")","v":""},{"$f":"IF(DataLog!$C304=\"Log value\",DataLog!AE304,\"\")","v":""},{"$f":"IF(DataLog!$C304=\"Log value\",DataLog!AF304,\"\")","v":""},{"$f":"IF(DataLog!$C304=\"Log value\",DataLog!AG304,\"\")","v":""},{"$f":"IF(DataLog!$C304=\"Log value\",DataLog!AH304,\"\")","v":""},{"$f":"IF(DataLog!$C304=\"Log value\",DataLog!AI304,\"\")","v":""},{"$f":"IF(DataLog!$C304=\"Log value\",DataLog!AJ304,\"\")","v":""},{"$f":"IF(DataLog!$C304=\"Log value\",DataLog!AK304,\"\")","v":""},{"$f":"IF(DataLog!$C304=\"Log value\",DataLog!AL304,\"\")","v":""},{"$f":"IF(DataLog!$C304=\"Log value\",DataLog!AM304,\"\")","v":""}]
[null,null,"Standard","Standard -  - ",null,null,{"$f":"IF(DataLog!$C305=\"Log value\",DataLog!D305&\"_\"&TEXT(DataLog!B305,\"åååå-mm-dd\"),\"\")","v":""},{"$f":"IF(DataLog!$C305=\"Log value\",DataLog!E305,\"\")","v":""},{"$f":"IF(DataLog!$C305=\"Log value\",DataLog!F305,\"\")","v":""},{"$f":"IF(DataLog!$C305=\"Log value\",DataLog!G305,\"\")","v":""},{"$f":"IF(DataLog!$C305=\"Log value\",DataLog!H305,\"\")","v":""},{"$f":"IF(DataLog!$C305=\"Log value\",DataLog!I305,\"\")","v":""},{"$f":"IF(DataLog!$C305=\"Log value\",DataLog!J305,\"\")","v":""},{"$f":"IF(DataLog!$C305=\"Log value\",DataLog!K305,\"\")","v":""},{"$f":"IF(DataLog!$C305=\"Log value\",DataLog!L305,\"\")","v":""},{"$f":"IF(DataLog!$C305=\"Log value\",DataLog!M305,\"\")","v":""},{"$f":"IF(DataLog!$C305=\"Log value\",DataLog!N305,\"\")","v":""},{"$f":"IF(DataLog!$C305=\"Log value\",DataLog!O305,\"\")","v":""},{"$f":"IF(DataLog!$C305=\"Log value\",DataLog!P305,\"\")","v":""},{"$f":"IF(DataLog!$C305=\"Log value\",DataLog!Q305,\"\")","v":""},{"$f":"IF(DataLog!$C305=\"Log value\",DataLog!R305,\"\")","v":""},{"$f":"IF(DataLog!$C305=\"Log value\",DataLog!S305,\"\")","v":""},{"$f":"IF(DataLog!$C305=\"Log value\",DataLog!T305,\"\")","v":""},{"$f":"IF(DataLog!$C305=\"Log value\",DataLog!U305,\"\")","v":""},{"$f":"IF(DataLog!$C305=\"Log value\",DataLog!V305,\"\")","v":""},{"$f":"IF(DataLog!$C305=\"Log value\",DataLog!W305,\"\")","v":""},{"$f":"IF(DataLog!$C305=\"Log value\",DataLog!X305,\"\")","v":""},{"$f":"IF(DataLog!$C305=\"Log value\",DataLog!Y305,\"\")","v":""},{"$f":"IF(DataLog!$C305=\"Log value\",DataLog!Z305,\"\")","v":""},{"$f":"IF(DataLog!$C305=\"Log value\",DataLog!AA305,\"\")","v":""},{"$f":"IF(DataLog!$C305=\"Log value\",DataLog!AB305,\"\")","v":""},{"$f":"IF(DataLog!$C305=\"Log value\",DataLog!AC305,\"\")","v":""},{"$f":"IF(DataLog!$C305=\"Log value\",DataLog!AD305,\"\")","v":""},{"$f":"IF(DataLog!$C305=\"Log value\",DataLog!AE305,\"\")","v":""},{"$f":"IF(DataLog!$C305=\"Log value\",DataLog!AF305,\"\")","v":""},{"$f":"IF(DataLog!$C305=\"Log value\",DataLog!AG305,\"\")","v":""},{"$f":"IF(DataLog!$C305=\"Log value\",DataLog!AH305,\"\")","v":""},{"$f":"IF(DataLog!$C305=\"Log value\",DataLog!AI305,\"\")","v":""},{"$f":"IF(DataLog!$C305=\"Log value\",DataLog!AJ305,\"\")","v":""},{"$f":"IF(DataLog!$C305=\"Log value\",DataLog!AK305,\"\")","v":""},{"$f":"IF(DataLog!$C305=\"Log value\",DataLog!AL305,\"\")","v":""},{"$f":"IF(DataLog!$C305=\"Log value\",DataLog!AM305,\"\")","v":""}]
[null,null,"Standard","Standard -  - ",null,null,{"$f":"IF(DataLog!$C306=\"Log value\",DataLog!D306&\"_\"&TEXT(DataLog!B306,\"åååå-mm-dd\"),\"\")","v":""},{"$f":"IF(DataLog!$C306=\"Log value\",DataLog!E306,\"\")","v":""},{"$f":"IF(DataLog!$C306=\"Log value\",DataLog!F306,\"\")","v":""},{"$f":"IF(DataLog!$C306=\"Log value\",DataLog!G306,\"\")","v":""},{"$f":"IF(DataLog!$C306=\"Log value\",DataLog!H306,\"\")","v":""},{"$f":"IF(DataLog!$C306=\"Log value\",DataLog!I306,\"\")","v":""},{"$f":"IF(DataLog!$C306=\"Log value\",DataLog!J306,\"\")","v":""},{"$f":"IF(DataLog!$C306=\"Log value\",DataLog!K306,\"\")","v":""},{"$f":"IF(DataLog!$C306=\"Log value\",DataLog!L306,\"\")","v":""},{"$f":"IF(DataLog!$C306=\"Log value\",DataLog!M306,\"\")","v":""},{"$f":"IF(DataLog!$C306=\"Log value\",DataLog!N306,\"\")","v":""},{"$f":"IF(DataLog!$C306=\"Log value\",DataLog!O306,\"\")","v":""},{"$f":"IF(DataLog!$C306=\"Log value\",DataLog!P306,\"\")","v":""},{"$f":"IF(DataLog!$C306=\"Log value\",DataLog!Q306,\"\")","v":""},{"$f":"IF(DataLog!$C306=\"Log value\",DataLog!R306,\"\")","v":""},{"$f":"IF(DataLog!$C306=\"Log value\",DataLog!S306,\"\")","v":""},{"$f":"IF(DataLog!$C306=\"Log value\",DataLog!T306,\"\")","v":""},{"$f":"IF(DataLog!$C306=\"Log value\",DataLog!U306,\"\")","v":""},{"$f":"IF(DataLog!$C306=\"Log value\",DataLog!V306,\"\")","v":""},{"$f":"IF(DataLog!$C306=\"Log value\",DataLog!W306,\"\")","v":""},{"$f":"IF(DataLog!$C306=\"Log value\",DataLog!X306,\"\")","v":""},{"$f":"IF(DataLog!$C306=\"Log value\",DataLog!Y306,\"\")","v":""},{"$f":"IF(DataLog!$C306=\"Log value\",DataLog!Z306,\"\")","v":""},{"$f":"IF(DataLog!$C306=\"Log value\",DataLog!AA306,\"\")","v":""},{"$f":"IF(DataLog!$C306=\"Log value\",DataLog!AB306,\"\")","v":""},{"$f":"IF(DataLog!$C306=\"Log value\",DataLog!AC306,\"\")","v":""},{"$f":"IF(DataLog!$C306=\"Log value\",DataLog!AD306,\"\")","v":""},{"$f":"IF(DataLog!$C306=\"Log value\",DataLog!AE306,\"\")","v":""},{"$f":"IF(DataLog!$C306=\"Log value\",DataLog!AF306,\"\")","v":""},{"$f":"IF(DataLog!$C306=\"Log value\",DataLog!AG306,\"\")","v":""},{"$f":"IF(DataLog!$C306=\"Log value\",DataLog!AH306,\"\")","v":""},{"$f":"IF(DataLog!$C306=\"Log value\",DataLog!AI306,\"\")","v":""},{"$f":"IF(DataLog!$C306=\"Log value\",DataLog!AJ306,\"\")","v":""},{"$f":"IF(DataLog!$C306=\"Log value\",DataLog!AK306,\"\")","v":""},{"$f":"IF(DataLog!$C306=\"Log value\",DataLog!AL306,\"\")","v":""},{"$f":"IF(DataLog!$C306=\"Log value\",DataLog!AM306,\"\")","v":""}]
[null,null,"Standard","Standard -  - ",null,null,{"$f":"IF(DataLog!$C307=\"Log value\",DataLog!D307&\"_\"&TEXT(DataLog!B307,\"åååå-mm-dd\"),\"\")","v":""},{"$f":"IF(DataLog!$C307=\"Log value\",DataLog!E307,\"\")","v":""},{"$f":"IF(DataLog!$C307=\"Log value\",DataLog!F307,\"\")","v":""},{"$f":"IF(DataLog!$C307=\"Log value\",DataLog!G307,\"\")","v":""},{"$f":"IF(DataLog!$C307=\"Log value\",DataLog!H307,\"\")","v":""},{"$f":"IF(DataLog!$C307=\"Log value\",DataLog!I307,\"\")","v":""},{"$f":"IF(DataLog!$C307=\"Log value\",DataLog!J307,\"\")","v":""},{"$f":"IF(DataLog!$C307=\"Log value\",DataLog!K307,\"\")","v":""},{"$f":"IF(DataLog!$C307=\"Log value\",DataLog!L307,\"\")","v":""},{"$f":"IF(DataLog!$C307=\"Log value\",DataLog!M307,\"\")","v":""},{"$f":"IF(DataLog!$C307=\"Log value\",DataLog!N307,\"\")","v":""},{"$f":"IF(DataLog!$C307=\"Log value\",DataLog!O307,\"\")","v":""},{"$f":"IF(DataLog!$C307=\"Log value\",DataLog!P307,\"\")","v":""},{"$f":"IF(DataLog!$C307=\"Log value\",DataLog!Q307,\"\")","v":""},{"$f":"IF(DataLog!$C307=\"Log value\",DataLog!R307,\"\")","v":""},{"$f":"IF(DataLog!$C307=\"Log value\",DataLog!S307,\"\")","v":""},{"$f":"IF(DataLog!$C307=\"Log value\",DataLog!T307,\"\")","v":""},{"$f":"IF(DataLog!$C307=\"Log value\",DataLog!U307,\"\")","v":""},{"$f":"IF(DataLog!$C307=\"Log value\",DataLog!V307,\"\")","v":""},{"$f":"IF(DataLog!$C307=\"Log value\",DataLog!W307,\"\")","v":""},{"$f":"IF(DataLog!$C307=\"Log value\",DataLog!X307,\"\")","v":""},{"$f":"IF(DataLog!$C307=\"Log value\",DataLog!Y307,\"\")","v":""},{"$f":"IF(DataLog!$C307=\"Log value\",DataLog!Z307,\"\")","v":""},{"$f":"IF(DataLog!$C307=\"Log value\",DataLog!AA307,\"\")","v":""},{"$f":"IF(DataLog!$C307=\"Log value\",DataLog!AB307,\"\")","v":""},{"$f":"IF(DataLog!$C307=\"Log value\",DataLog!AC307,\"\")","v":""},{"$f":"IF(DataLog!$C307=\"Log value\",DataLog!AD307,\"\")","v":""},{"$f":"IF(DataLog!$C307=\"Log value\",DataLog!AE307,\"\")","v":""},{"$f":"IF(DataLog!$C307=\"Log value\",DataLog!AF307,\"\")","v":""},{"$f":"IF(DataLog!$C307=\"Log value\",DataLog!AG307,\"\")","v":""},{"$f":"IF(DataLog!$C307=\"Log value\",DataLog!AH307,\"\")","v":""},{"$f":"IF(DataLog!$C307=\"Log value\",DataLog!AI307,\"\")","v":""},{"$f":"IF(DataLog!$C307=\"Log value\",DataLog!AJ307,\"\")","v":""},{"$f":"IF(DataLog!$C307=\"Log value\",DataLog!AK307,\"\")","v":""},{"$f":"IF(DataLog!$C307=\"Log value\",DataLog!AL307,\"\")","v":""},{"$f":"IF(DataLog!$C307=\"Log value\",DataLog!AM307,\"\")","v":""}]
[null,null,"Standard","Standard -  - ",null,null,{"$f":"IF(DataLog!$C308=\"Log value\",DataLog!D308&\"_\"&TEXT(DataLog!B308,\"åååå-mm-dd\"),\"\")","v":""},{"$f":"IF(DataLog!$C308=\"Log value\",DataLog!E308,\"\")","v":""},{"$f":"IF(DataLog!$C308=\"Log value\",DataLog!F308,\"\")","v":""},{"$f":"IF(DataLog!$C308=\"Log value\",DataLog!G308,\"\")","v":""},{"$f":"IF(DataLog!$C308=\"Log value\",DataLog!H308,\"\")","v":""},{"$f":"IF(DataLog!$C308=\"Log value\",DataLog!I308,\"\")","v":""},{"$f":"IF(DataLog!$C308=\"Log value\",DataLog!J308,\"\")","v":""},{"$f":"IF(DataLog!$C308=\"Log value\",DataLog!K308,\"\")","v":""},{"$f":"IF(DataLog!$C308=\"Log value\",DataLog!L308,\"\")","v":""},{"$f":"IF(DataLog!$C308=\"Log value\",DataLog!M308,\"\")","v":""},{"$f":"IF(DataLog!$C308=\"Log value\",DataLog!N308,\"\")","v":""},{"$f":"IF(DataLog!$C308=\"Log value\",DataLog!O308,\"\")","v":""},{"$f":"IF(DataLog!$C308=\"Log value\",DataLog!P308,\"\")","v":""},{"$f":"IF(DataLog!$C308=\"Log value\",DataLog!Q308,\"\")","v":""},{"$f":"IF(DataLog!$C308=\"Log value\",DataLog!R308,\"\")","v":""},{"$f":"IF(DataLog!$C308=\"Log value\",DataLog!S308,\"\")","v":""},{"$f":"IF(DataLog!$C308=\"Log value\",DataLog!T308,\"\")","v":""},{"$f":"IF(DataLog!$C308=\"Log value\",DataLog!U308,\"\")","v":""},{"$f":"IF(DataLog!$C308=\"Log value\",DataLog!V308,\"\")","v":""},{"$f":"IF(DataLog!$C308=\"Log value\",DataLog!W308,\"\")","v":""},{"$f":"IF(DataLog!$C308=\"Log value\",DataLog!X308,\"\")","v":""},{"$f":"IF(DataLog!$C308=\"Log value\",DataLog!Y308,\"\")","v":""},{"$f":"IF(DataLog!$C308=\"Log value\",DataLog!Z308,\"\")","v":""},{"$f":"IF(DataLog!$C308=\"Log value\",DataLog!AA308,\"\")","v":""},{"$f":"IF(DataLog!$C308=\"Log value\",DataLog!AB308,\"\")","v":""},{"$f":"IF(DataLog!$C308=\"Log value\",DataLog!AC308,\"\")","v":""},{"$f":"IF(DataLog!$C308=\"Log value\",DataLog!AD308,\"\")","v":""},{"$f":"IF(DataLog!$C308=\"Log value\",DataLog!AE308,\"\")","v":""},{"$f":"IF(DataLog!$C308=\"Log value\",DataLog!AF308,\"\")","v":""},{"$f":"IF(DataLog!$C308=\"Log value\",DataLog!AG308,\"\")","v":""},{"$f":"IF(DataLog!$C308=\"Log value\",DataLog!AH308,\"\")","v":""},{"$f":"IF(DataLog!$C308=\"Log value\",DataLog!AI308,\"\")","v":""},{"$f":"IF(DataLog!$C308=\"Log value\",DataLog!AJ308,\"\")","v":""},{"$f":"IF(DataLog!$C308=\"Log value\",DataLog!AK308,\"\")","v":""},{"$f":"IF(DataLog!$C308=\"Log value\",DataLog!AL308,\"\")","v":""},{"$f":"IF(DataLog!$C308=\"Log value\",DataLog!AM308,\"\")","v":""}]
[null,null,"Standard","Standard -  - ",null,null,{"$f":"IF(DataLog!$C309=\"Log value\",DataLog!D309&\"_\"&TEXT(DataLog!B309,\"åååå-mm-dd\"),\"\")","v":""},{"$f":"IF(DataLog!$C309=\"Log value\",DataLog!E309,\"\")","v":""},{"$f":"IF(DataLog!$C309=\"Log value\",DataLog!F309,\"\")","v":""},{"$f":"IF(DataLog!$C309=\"Log value\",DataLog!G309,\"\")","v":""},{"$f":"IF(DataLog!$C309=\"Log value\",DataLog!H309,\"\")","v":""},{"$f":"IF(DataLog!$C309=\"Log value\",DataLog!I309,\"\")","v":""},{"$f":"IF(DataLog!$C309=\"Log value\",DataLog!J309,\"\")","v":""},{"$f":"IF(DataLog!$C309=\"Log value\",DataLog!K309,\"\")","v":""},{"$f":"IF(DataLog!$C309=\"Log value\",DataLog!L309,\"\")","v":""},{"$f":"IF(DataLog!$C309=\"Log value\",DataLog!M309,\"\")","v":""},{"$f":"IF(DataLog!$C309=\"Log value\",DataLog!N309,\"\")","v":""},{"$f":"IF(DataLog!$C309=\"Log value\",DataLog!O309,\"\")","v":""},{"$f":"IF(DataLog!$C309=\"Log value\",DataLog!P309,\"\")","v":""},{"$f":"IF(DataLog!$C309=\"Log value\",DataLog!Q309,\"\")","v":""},{"$f":"IF(DataLog!$C309=\"Log value\",DataLog!R309,\"\")","v":""},{"$f":"IF(DataLog!$C309=\"Log value\",DataLog!S309,\"\")","v":""},{"$f":"IF(DataLog!$C309=\"Log value\",DataLog!T309,\"\")","v":""},{"$f":"IF(DataLog!$C309=\"Log value\",DataLog!U309,\"\")","v":""},{"$f":"IF(DataLog!$C309=\"Log value\",DataLog!V309,\"\")","v":""},{"$f":"IF(DataLog!$C309=\"Log value\",DataLog!W309,\"\")","v":""},{"$f":"IF(DataLog!$C309=\"Log value\",DataLog!X309,\"\")","v":""},{"$f":"IF(DataLog!$C309=\"Log value\",DataLog!Y309,\"\")","v":""},{"$f":"IF(DataLog!$C309=\"Log value\",DataLog!Z309,\"\")","v":""},{"$f":"IF(DataLog!$C309=\"Log value\",DataLog!AA309,\"\")","v":""},{"$f":"IF(DataLog!$C309=\"Log value\",DataLog!AB309,\"\")","v":""},{"$f":"IF(DataLog!$C309=\"Log value\",DataLog!AC309,\"\")","v":""},{"$f":"IF(DataLog!$C309=\"Log value\",DataLog!AD309,\"\")","v":""},{"$f":"IF(DataLog!$C309=\"Log value\",DataLog!AE309,\"\")","v":""},{"$f":"IF(DataLog!$C309=\"Log value\",DataLog!AF309,\"\")","v":""},{"$f":"IF(DataLog!$C309=\"Log value\",DataLog!AG309,\"\")","v":""},{"$f":"IF(DataLog!$C309=\"Log value\",DataLog!AH309,\"\")","v":""},{"$f":"IF(DataLog!$C309=\"Log value\",DataLog!AI309,\"\")","v":""},{"$f":"IF(DataLog!$C309=\"Log value\",DataLog!AJ309,\"\")","v":""},{"$f":"IF(DataLog!$C309=\"Log value\",DataLog!AK309,\"\")","v":""},{"$f":"IF(DataLog!$C309=\"Log value\",DataLog!AL309,\"\")","v":""},{"$f":"IF(DataLog!$C309=\"Log value\",DataLog!AM309,\"\")","v":""}]
[null,null,"Standard","Standard -  - ",null,null,{"$f":"IF(DataLog!$C310=\"Log value\",DataLog!D310&\"_\"&TEXT(DataLog!B310,\"åååå-mm-dd\"),\"\")","v":""},{"$f":"IF(DataLog!$C310=\"Log value\",DataLog!E310,\"\")","v":""},{"$f":"IF(DataLog!$C310=\"Log value\",DataLog!F310,\"\")","v":""},{"$f":"IF(DataLog!$C310=\"Log value\",DataLog!G310,\"\")","v":""},{"$f":"IF(DataLog!$C310=\"Log value\",DataLog!H310,\"\")","v":""},{"$f":"IF(DataLog!$C310=\"Log value\",DataLog!I310,\"\")","v":""},{"$f":"IF(DataLog!$C310=\"Log value\",DataLog!J310,\"\")","v":""},{"$f":"IF(DataLog!$C310=\"Log value\",DataLog!K310,\"\")","v":""},{"$f":"IF(DataLog!$C310=\"Log value\",DataLog!L310,\"\")","v":""},{"$f":"IF(DataLog!$C310=\"Log value\",DataLog!M310,\"\")","v":""},{"$f":"IF(DataLog!$C310=\"Log value\",DataLog!N310,\"\")","v":""},{"$f":"IF(DataLog!$C310=\"Log value\",DataLog!O310,\"\")","v":""},{"$f":"IF(DataLog!$C310=\"Log value\",DataLog!P310,\"\")","v":""},{"$f":"IF(DataLog!$C310=\"Log value\",DataLog!Q310,\"\")","v":""},{"$f":"IF(DataLog!$C310=\"Log value\",DataLog!R310,\"\")","v":""},{"$f":"IF(DataLog!$C310=\"Log value\",DataLog!S310,\"\")","v":""},{"$f":"IF(DataLog!$C310=\"Log value\",DataLog!T310,\"\")","v":""},{"$f":"IF(DataLog!$C310=\"Log value\",DataLog!U310,\"\")","v":""},{"$f":"IF(DataLog!$C310=\"Log value\",DataLog!V310,\"\")","v":""},{"$f":"IF(DataLog!$C310=\"Log value\",DataLog!W310,\"\")","v":""},{"$f":"IF(DataLog!$C310=\"Log value\",DataLog!X310,\"\")","v":""},{"$f":"IF(DataLog!$C310=\"Log value\",DataLog!Y310,\"\")","v":""},{"$f":"IF(DataLog!$C310=\"Log value\",DataLog!Z310,\"\")","v":""},{"$f":"IF(DataLog!$C310=\"Log value\",DataLog!AA310,\"\")","v":""},{"$f":"IF(DataLog!$C310=\"Log value\",DataLog!AB310,\"\")","v":""},{"$f":"IF(DataLog!$C310=\"Log value\",DataLog!AC310,\"\")","v":""},{"$f":"IF(DataLog!$C310=\"Log value\",DataLog!AD310,\"\")","v":""},{"$f":"IF(DataLog!$C310=\"Log value\",DataLog!AE310,\"\")","v":""},{"$f":"IF(DataLog!$C310=\"Log value\",DataLog!AF310,\"\")","v":""},{"$f":"IF(DataLog!$C310=\"Log value\",DataLog!AG310,\"\")","v":""},{"$f":"IF(DataLog!$C310=\"Log value\",DataLog!AH310,\"\")","v":""},{"$f":"IF(DataLog!$C310=\"Log value\",DataLog!AI310,\"\")","v":""},{"$f":"IF(DataLog!$C310=\"Log value\",DataLog!AJ310,\"\")","v":""},{"$f":"IF(DataLog!$C310=\"Log value\",DataLog!AK310,\"\")","v":""},{"$f":"IF(DataLog!$C310=\"Log value\",DataLog!AL310,\"\")","v":""},{"$f":"IF(DataLog!$C310=\"Log value\",DataLog!AM310,\"\")","v":""}]
[null,null,"Standard","Standard -  - ",null,null,{"$f":"IF(DataLog!$C311=\"Log value\",DataLog!D311&\"_\"&TEXT(DataLog!B311,\"åååå-mm-dd\"),\"\")","v":""},{"$f":"IF(DataLog!$C311=\"Log value\",DataLog!E311,\"\")","v":""},{"$f":"IF(DataLog!$C311=\"Log value\",DataLog!F311,\"\")","v":""},{"$f":"IF(DataLog!$C311=\"Log value\",DataLog!G311,\"\")","v":""},{"$f":"IF(DataLog!$C311=\"Log value\",DataLog!H311,\"\")","v":""},{"$f":"IF(DataLog!$C311=\"Log value\",DataLog!I311,\"\")","v":""},{"$f":"IF(DataLog!$C311=\"Log value\",DataLog!J311,\"\")","v":""},{"$f":"IF(DataLog!$C311=\"Log value\",DataLog!K311,\"\")","v":""},{"$f":"IF(DataLog!$C311=\"Log value\",DataLog!L311,\"\")","v":""},{"$f":"IF(DataLog!$C311=\"Log value\",DataLog!M311,\"\")","v":""},{"$f":"IF(DataLog!$C311=\"Log value\",DataLog!N311,\"\")","v":""},{"$f":"IF(DataLog!$C311=\"Log value\",DataLog!O311,\"\")","v":""},{"$f":"IF(DataLog!$C311=\"Log value\",DataLog!P311,\"\")","v":""},{"$f":"IF(DataLog!$C311=\"Log value\",DataLog!Q311,\"\")","v":""},{"$f":"IF(DataLog!$C311=\"Log value\",DataLog!R311,\"\")","v":""},{"$f":"IF(DataLog!$C311=\"Log value\",DataLog!S311,\"\")","v":""},{"$f":"IF(DataLog!$C311=\"Log value\",DataLog!T311,\"\")","v":""},{"$f":"IF(DataLog!$C311=\"Log value\",DataLog!U311,\"\")","v":""},{"$f":"IF(DataLog!$C311=\"Log value\",DataLog!V311,\"\")","v":""},{"$f":"IF(DataLog!$C311=\"Log value\",DataLog!W311,\"\")","v":""},{"$f":"IF(DataLog!$C311=\"Log value\",DataLog!X311,\"\")","v":""},{"$f":"IF(DataLog!$C311=\"Log value\",DataLog!Y311,\"\")","v":""},{"$f":"IF(DataLog!$C311=\"Log value\",DataLog!Z311,\"\")","v":""},{"$f":"IF(DataLog!$C311=\"Log value\",DataLog!AA311,\"\")","v":""},{"$f":"IF(DataLog!$C311=\"Log value\",DataLog!AB311,\"\")","v":""},{"$f":"IF(DataLog!$C311=\"Log value\",DataLog!AC311,\"\")","v":""},{"$f":"IF(DataLog!$C311=\"Log value\",DataLog!AD311,\"\")","v":""},{"$f":"IF(DataLog!$C311=\"Log value\",DataLog!AE311,\"\")","v":""},{"$f":"IF(DataLog!$C311=\"Log value\",DataLog!AF311,\"\")","v":""},{"$f":"IF(DataLog!$C311=\"Log value\",DataLog!AG311,\"\")","v":""},{"$f":"IF(DataLog!$C311=\"Log value\",DataLog!AH311,\"\")","v":""},{"$f":"IF(DataLog!$C311=\"Log value\",DataLog!AI311,\"\")","v":""},{"$f":"IF(DataLog!$C311=\"Log value\",DataLog!AJ311,\"\")","v":""},{"$f":"IF(DataLog!$C311=\"Log value\",DataLog!AK311,\"\")","v":""},{"$f":"IF(DataLog!$C311=\"Log value\",DataLog!AL311,\"\")","v":""},{"$f":"IF(DataLog!$C311=\"Log value\",DataLog!AM311,\"\")","v":""}]
[null,null,"Standard","Standard -  - ",null,null,{"$f":"IF(DataLog!$C312=\"Log value\",DataLog!D312&\"_\"&TEXT(DataLog!B312,\"åååå-mm-dd\"),\"\")","v":""},{"$f":"IF(DataLog!$C312=\"Log value\",DataLog!E312,\"\")","v":""},{"$f":"IF(DataLog!$C312=\"Log value\",DataLog!F312,\"\")","v":""},{"$f":"IF(DataLog!$C312=\"Log value\",DataLog!G312,\"\")","v":""},{"$f":"IF(DataLog!$C312=\"Log value\",DataLog!H312,\"\")","v":""},{"$f":"IF(DataLog!$C312=\"Log value\",DataLog!I312,\"\")","v":""},{"$f":"IF(DataLog!$C312=\"Log value\",DataLog!J312,\"\")","v":""},{"$f":"IF(DataLog!$C312=\"Log value\",DataLog!K312,\"\")","v":""},{"$f":"IF(DataLog!$C312=\"Log value\",DataLog!L312,\"\")","v":""},{"$f":"IF(DataLog!$C312=\"Log value\",DataLog!M312,\"\")","v":""},{"$f":"IF(DataLog!$C312=\"Log value\",DataLog!N312,\"\")","v":""},{"$f":"IF(DataLog!$C312=\"Log value\",DataLog!O312,\"\")","v":""},{"$f":"IF(DataLog!$C312=\"Log value\",DataLog!P312,\"\")","v":""},{"$f":"IF(DataLog!$C312=\"Log value\",DataLog!Q312,\"\")","v":""},{"$f":"IF(DataLog!$C312=\"Log value\",DataLog!R312,\"\")","v":""},{"$f":"IF(DataLog!$C312=\"Log value\",DataLog!S312,\"\")","v":""},{"$f":"IF(DataLog!$C312=\"Log value\",DataLog!T312,\"\")","v":""},{"$f":"IF(DataLog!$C312=\"Log value\",DataLog!U312,\"\")","v":""},{"$f":"IF(DataLog!$C312=\"Log value\",DataLog!V312,\"\")","v":""},{"$f":"IF(DataLog!$C312=\"Log value\",DataLog!W312,\"\")","v":""},{"$f":"IF(DataLog!$C312=\"Log value\",DataLog!X312,\"\")","v":""},{"$f":"IF(DataLog!$C312=\"Log value\",DataLog!Y312,\"\")","v":""},{"$f":"IF(DataLog!$C312=\"Log value\",DataLog!Z312,\"\")","v":""},{"$f":"IF(DataLog!$C312=\"Log value\",DataLog!AA312,\"\")","v":""},{"$f":"IF(DataLog!$C312=\"Log value\",DataLog!AB312,\"\")","v":""},{"$f":"IF(DataLog!$C312=\"Log value\",DataLog!AC312,\"\")","v":""},{"$f":"IF(DataLog!$C312=\"Log value\",DataLog!AD312,\"\")","v":""},{"$f":"IF(DataLog!$C312=\"Log value\",DataLog!AE312,\"\")","v":""},{"$f":"IF(DataLog!$C312=\"Log value\",DataLog!AF312,\"\")","v":""},{"$f":"IF(DataLog!$C312=\"Log value\",DataLog!AG312,\"\")","v":""},{"$f":"IF(DataLog!$C312=\"Log value\",DataLog!AH312,\"\")","v":""},{"$f":"IF(DataLog!$C312=\"Log value\",DataLog!AI312,\"\")","v":""},{"$f":"IF(DataLog!$C312=\"Log value\",DataLog!AJ312,\"\")","v":""},{"$f":"IF(DataLog!$C312=\"Log value\",DataLog!AK312,\"\")","v":""},{"$f":"IF(DataLog!$C312=\"Log value\",DataLog!AL312,\"\")","v":""},{"$f":"IF(DataLog!$C312=\"Log value\",DataLog!AM312,\"\")","v":""}]
[null,null,"Standard","Standard -  - ",null,null,{"$f":"IF(DataLog!$C313=\"Log value\",DataLog!D313&\"_\"&TEXT(DataLog!B313,\"åååå-mm-dd\"),\"\")","v":""},{"$f":"IF(DataLog!$C313=\"Log value\",DataLog!E313,\"\")","v":""},{"$f":"IF(DataLog!$C313=\"Log value\",DataLog!F313,\"\")","v":""},{"$f":"IF(DataLog!$C313=\"Log value\",DataLog!G313,\"\")","v":""},{"$f":"IF(DataLog!$C313=\"Log value\",DataLog!H313,\"\")","v":""},{"$f":"IF(DataLog!$C313=\"Log value\",DataLog!I313,\"\")","v":""},{"$f":"IF(DataLog!$C313=\"Log value\",DataLog!J313,\"\")","v":""},{"$f":"IF(DataLog!$C313=\"Log value\",DataLog!K313,\"\")","v":""},{"$f":"IF(DataLog!$C313=\"Log value\",DataLog!L313,\"\")","v":""},{"$f":"IF(DataLog!$C313=\"Log value\",DataLog!M313,\"\")","v":""},{"$f":"IF(DataLog!$C313=\"Log value\",DataLog!N313,\"\")","v":""},{"$f":"IF(DataLog!$C313=\"Log value\",DataLog!O313,\"\")","v":""},{"$f":"IF(DataLog!$C313=\"Log value\",DataLog!P313,\"\")","v":""},{"$f":"IF(DataLog!$C313=\"Log value\",DataLog!Q313,\"\")","v":""},{"$f":"IF(DataLog!$C313=\"Log value\",DataLog!R313,\"\")","v":""},{"$f":"IF(DataLog!$C313=\"Log value\",DataLog!S313,\"\")","v":""},{"$f":"IF(DataLog!$C313=\"Log value\",DataLog!T313,\"\")","v":""},{"$f":"IF(DataLog!$C313=\"Log value\",DataLog!U313,\"\")","v":""},{"$f":"IF(DataLog!$C313=\"Log value\",DataLog!V313,\"\")","v":""},{"$f":"IF(DataLog!$C313=\"Log value\",DataLog!W313,\"\")","v":""},{"$f":"IF(DataLog!$C313=\"Log value\",DataLog!X313,\"\")","v":""},{"$f":"IF(DataLog!$C313=\"Log value\",DataLog!Y313,\"\")","v":""},{"$f":"IF(DataLog!$C313=\"Log value\",DataLog!Z313,\"\")","v":""},{"$f":"IF(DataLog!$C313=\"Log value\",DataLog!AA313,\"\")","v":""},{"$f":"IF(DataLog!$C313=\"Log value\",DataLog!AB313,\"\")","v":""},{"$f":"IF(DataLog!$C313=\"Log value\",DataLog!AC313,\"\")","v":""},{"$f":"IF(DataLog!$C313=\"Log value\",DataLog!AD313,\"\")","v":""},{"$f":"IF(DataLog!$C313=\"Log value\",DataLog!AE313,\"\")","v":""},{"$f":"IF(DataLog!$C313=\"Log value\",DataLog!AF313,\"\")","v":""},{"$f":"IF(DataLog!$C313=\"Log value\",DataLog!AG313,\"\")","v":""},{"$f":"IF(DataLog!$C313=\"Log value\",DataLog!AH313,\"\")","v":""},{"$f":"IF(DataLog!$C313=\"Log value\",DataLog!AI313,\"\")","v":""},{"$f":"IF(DataLog!$C313=\"Log value\",DataLog!AJ313,\"\")","v":""},{"$f":"IF(DataLog!$C313=\"Log value\",DataLog!AK313,\"\")","v":""},{"$f":"IF(DataLog!$C313=\"Log value\",DataLog!AL313,\"\")","v":""},{"$f":"IF(DataLog!$C313=\"Log value\",DataLog!AM313,\"\")","v":""}]
[null,null,"Standard","Standard -  - ",null,null,{"$f":"IF(DataLog!$C314=\"Log value\",DataLog!D314&\"_\"&TEXT(DataLog!B314,\"åååå-mm-dd\"),\"\")","v":""},{"$f":"IF(DataLog!$C314=\"Log value\",DataLog!E314,\"\")","v":""},{"$f":"IF(DataLog!$C314=\"Log value\",DataLog!F314,\"\")","v":""},{"$f":"IF(DataLog!$C314=\"Log value\",DataLog!G314,\"\")","v":""},{"$f":"IF(DataLog!$C314=\"Log value\",DataLog!H314,\"\")","v":""},{"$f":"IF(DataLog!$C314=\"Log value\",DataLog!I314,\"\")","v":""},{"$f":"IF(DataLog!$C314=\"Log value\",DataLog!J314,\"\")","v":""},{"$f":"IF(DataLog!$C314=\"Log value\",DataLog!K314,\"\")","v":""},{"$f":"IF(DataLog!$C314=\"Log value\",DataLog!L314,\"\")","v":""},{"$f":"IF(DataLog!$C314=\"Log value\",DataLog!M314,\"\")","v":""},{"$f":"IF(DataLog!$C314=\"Log value\",DataLog!N314,\"\")","v":""},{"$f":"IF(DataLog!$C314=\"Log value\",DataLog!O314,\"\")","v":""},{"$f":"IF(DataLog!$C314=\"Log value\",DataLog!P314,\"\")","v":""},{"$f":"IF(DataLog!$C314=\"Log value\",DataLog!Q314,\"\")","v":""},{"$f":"IF(DataLog!$C314=\"Log value\",DataLog!R314,\"\")","v":""},{"$f":"IF(DataLog!$C314=\"Log value\",DataLog!S314,\"\")","v":""},{"$f":"IF(DataLog!$C314=\"Log value\",DataLog!T314,\"\")","v":""},{"$f":"IF(DataLog!$C314=\"Log value\",DataLog!U314,\"\")","v":""},{"$f":"IF(DataLog!$C314=\"Log value\",DataLog!V314,\"\")","v":""},{"$f":"IF(DataLog!$C314=\"Log value\",DataLog!W314,\"\")","v":""},{"$f":"IF(DataLog!$C314=\"Log value\",DataLog!X314,\"\")","v":""},{"$f":"IF(DataLog!$C314=\"Log value\",DataLog!Y314,\"\")","v":""},{"$f":"IF(DataLog!$C314=\"Log value\",DataLog!Z314,\"\")","v":""},{"$f":"IF(DataLog!$C314=\"Log value\",DataLog!AA314,\"\")","v":""},{"$f":"IF(DataLog!$C314=\"Log value\",DataLog!AB314,\"\")","v":""},{"$f":"IF(DataLog!$C314=\"Log value\",DataLog!AC314,\"\")","v":""},{"$f":"IF(DataLog!$C314=\"Log value\",DataLog!AD314,\"\")","v":""},{"$f":"IF(DataLog!$C314=\"Log value\",DataLog!AE314,\"\")","v":""},{"$f":"IF(DataLog!$C314=\"Log value\",DataLog!AF314,\"\")","v":""},{"$f":"IF(DataLog!$C314=\"Log value\",DataLog!AG314,\"\")","v":""},{"$f":"IF(DataLog!$C314=\"Log value\",DataLog!AH314,\"\")","v":""},{"$f":"IF(DataLog!$C314=\"Log value\",DataLog!AI314,\"\")","v":""},{"$f":"IF(DataLog!$C314=\"Log value\",DataLog!AJ314,\"\")","v":""},{"$f":"IF(DataLog!$C314=\"Log value\",DataLog!AK314,\"\")","v":""},{"$f":"IF(DataLog!$C314=\"Log value\",DataLog!AL314,\"\")","v":""},{"$f":"IF(DataLog!$C314=\"Log value\",DataLog!AM314,\"\")","v":""}]
[null,null,"Standard","Standard -  - ",null,null,{"$f":"IF(DataLog!$C315=\"Log value\",DataLog!D315&\"_\"&TEXT(DataLog!B315,\"åååå-mm-dd\"),\"\")","v":""},{"$f":"IF(DataLog!$C315=\"Log value\",DataLog!E315,\"\")","v":""},{"$f":"IF(DataLog!$C315=\"Log value\",DataLog!F315,\"\")","v":""},{"$f":"IF(DataLog!$C315=\"Log value\",DataLog!G315,\"\")","v":""},{"$f":"IF(DataLog!$C315=\"Log value\",DataLog!H315,\"\")","v":""},{"$f":"IF(DataLog!$C315=\"Log value\",DataLog!I315,\"\")","v":""},{"$f":"IF(DataLog!$C315=\"Log value\",DataLog!J315,\"\")","v":""},{"$f":"IF(DataLog!$C315=\"Log value\",DataLog!K315,\"\")","v":""},{"$f":"IF(DataLog!$C315=\"Log value\",DataLog!L315,\"\")","v":""},{"$f":"IF(DataLog!$C315=\"Log value\",DataLog!M315,\"\")","v":""},{"$f":"IF(DataLog!$C315=\"Log value\",DataLog!N315,\"\")","v":""},{"$f":"IF(DataLog!$C315=\"Log value\",DataLog!O315,\"\")","v":""},{"$f":"IF(DataLog!$C315=\"Log value\",DataLog!P315,\"\")","v":""},{"$f":"IF(DataLog!$C315=\"Log value\",DataLog!Q315,\"\")","v":""},{"$f":"IF(DataLog!$C315=\"Log value\",DataLog!R315,\"\")","v":""},{"$f":"IF(DataLog!$C315=\"Log value\",DataLog!S315,\"\")","v":""},{"$f":"IF(DataLog!$C315=\"Log value\",DataLog!T315,\"\")","v":""},{"$f":"IF(DataLog!$C315=\"Log value\",DataLog!U315,\"\")","v":""},{"$f":"IF(DataLog!$C315=\"Log value\",DataLog!V315,\"\")","v":""},{"$f":"IF(DataLog!$C315=\"Log value\",DataLog!W315,\"\")","v":""},{"$f":"IF(DataLog!$C315=\"Log value\",DataLog!X315,\"\")","v":""},{"$f":"IF(DataLog!$C315=\"Log value\",DataLog!Y315,\"\")","v":""},{"$f":"IF(DataLog!$C315=\"Log value\",DataLog!Z315,\"\")","v":""},{"$f":"IF(DataLog!$C315=\"Log value\",DataLog!AA315,\"\")","v":""},{"$f":"IF(DataLog!$C315=\"Log value\",DataLog!AB315,\"\")","v":""},{"$f":"IF(DataLog!$C315=\"Log value\",DataLog!AC315,\"\")","v":""},{"$f":"IF(DataLog!$C315=\"Log value\",DataLog!AD315,\"\")","v":""},{"$f":"IF(DataLog!$C315=\"Log value\",DataLog!AE315,\"\")","v":""},{"$f":"IF(DataLog!$C315=\"Log value\",DataLog!AF315,\"\")","v":""},{"$f":"IF(DataLog!$C315=\"Log value\",DataLog!AG315,\"\")","v":""},{"$f":"IF(DataLog!$C315=\"Log value\",DataLog!AH315,\"\")","v":""},{"$f":"IF(DataLog!$C315=\"Log value\",DataLog!AI315,\"\")","v":""},{"$f":"IF(DataLog!$C315=\"Log value\",DataLog!AJ315,\"\")","v":""},{"$f":"IF(DataLog!$C315=\"Log value\",DataLog!AK315,\"\")","v":""},{"$f":"IF(DataLog!$C315=\"Log value\",DataLog!AL315,\"\")","v":""},{"$f":"IF(DataLog!$C315=\"Log value\",DataLog!AM315,\"\")","v":""}]
[null,null,"Standard","Standard -  - ",null,null,{"$f":"IF(DataLog!$C316=\"Log value\",DataLog!D316&\"_\"&TEXT(DataLog!B316,\"åååå-mm-dd\"),\"\")","v":""},{"$f":"IF(DataLog!$C316=\"Log value\",DataLog!E316,\"\")","v":""},{"$f":"IF(DataLog!$C316=\"Log value\",DataLog!F316,\"\")","v":""},{"$f":"IF(DataLog!$C316=\"Log value\",DataLog!G316,\"\")","v":""},{"$f":"IF(DataLog!$C316=\"Log value\",DataLog!H316,\"\")","v":""},{"$f":"IF(DataLog!$C316=\"Log value\",DataLog!I316,\"\")","v":""},{"$f":"IF(DataLog!$C316=\"Log value\",DataLog!J316,\"\")","v":""},{"$f":"IF(DataLog!$C316=\"Log value\",DataLog!K316,\"\")","v":""},{"$f":"IF(DataLog!$C316=\"Log value\",DataLog!L316,\"\")","v":""},{"$f":"IF(DataLog!$C316=\"Log value\",DataLog!M316,\"\")","v":""},{"$f":"IF(DataLog!$C316=\"Log value\",DataLog!N316,\"\")","v":""},{"$f":"IF(DataLog!$C316=\"Log value\",DataLog!O316,\"\")","v":""},{"$f":"IF(DataLog!$C316=\"Log value\",DataLog!P316,\"\")","v":""},{"$f":"IF(DataLog!$C316=\"Log value\",DataLog!Q316,\"\")","v":""},{"$f":"IF(DataLog!$C316=\"Log value\",DataLog!R316,\"\")","v":""},{"$f":"IF(DataLog!$C316=\"Log value\",DataLog!S316,\"\")","v":""},{"$f":"IF(DataLog!$C316=\"Log value\",DataLog!T316,\"\")","v":""},{"$f":"IF(DataLog!$C316=\"Log value\",DataLog!U316,\"\")","v":""},{"$f":"IF(DataLog!$C316=\"Log value\",DataLog!V316,\"\")","v":""},{"$f":"IF(DataLog!$C316=\"Log value\",DataLog!W316,\"\")","v":""},{"$f":"IF(DataLog!$C316=\"Log value\",DataLog!X316,\"\")","v":""},{"$f":"IF(DataLog!$C316=\"Log value\",DataLog!Y316,\"\")","v":""},{"$f":"IF(DataLog!$C316=\"Log value\",DataLog!Z316,\"\")","v":""},{"$f":"IF(DataLog!$C316=\"Log value\",DataLog!AA316,\"\")","v":""},{"$f":"IF(DataLog!$C316=\"Log value\",DataLog!AB316,\"\")","v":""},{"$f":"IF(DataLog!$C316=\"Log value\",DataLog!AC316,\"\")","v":""},{"$f":"IF(DataLog!$C316=\"Log value\",DataLog!AD316,\"\")","v":""},{"$f":"IF(DataLog!$C316=\"Log value\",DataLog!AE316,\"\")","v":""},{"$f":"IF(DataLog!$C316=\"Log value\",DataLog!AF316,\"\")","v":""},{"$f":"IF(DataLog!$C316=\"Log value\",DataLog!AG316,\"\")","v":""},{"$f":"IF(DataLog!$C316=\"Log value\",DataLog!AH316,\"\")","v":""},{"$f":"IF(DataLog!$C316=\"Log value\",DataLog!AI316,\"\")","v":""},{"$f":"IF(DataLog!$C316=\"Log value\",DataLog!AJ316,\"\")","v":""},{"$f":"IF(DataLog!$C316=\"Log value\",DataLog!AK316,\"\")","v":""},{"$f":"IF(DataLog!$C316=\"Log value\",DataLog!AL316,\"\")","v":""},{"$f":"IF(DataLog!$C316=\"Log value\",DataLog!AM316,\"\")","v":""}]
[null,null,"Standard","Standard -  - ",null,null,{"$f":"IF(DataLog!$C317=\"Log value\",DataLog!D317&\"_\"&TEXT(DataLog!B317,\"åååå-mm-dd\"),\"\")","v":""},{"$f":"IF(DataLog!$C317=\"Log value\",DataLog!E317,\"\")","v":""},{"$f":"IF(DataLog!$C317=\"Log value\",DataLog!F317,\"\")","v":""},{"$f":"IF(DataLog!$C317=\"Log value\",DataLog!G317,\"\")","v":""},{"$f":"IF(DataLog!$C317=\"Log value\",DataLog!H317,\"\")","v":""},{"$f":"IF(DataLog!$C317=\"Log value\",DataLog!I317,\"\")","v":""},{"$f":"IF(DataLog!$C317=\"Log value\",DataLog!J317,\"\")","v":""},{"$f":"IF(DataLog!$C317=\"Log value\",DataLog!K317,\"\")","v":""},{"$f":"IF(DataLog!$C317=\"Log value\",DataLog!L317,\"\")","v":""},{"$f":"IF(DataLog!$C317=\"Log value\",DataLog!M317,\"\")","v":""},{"$f":"IF(DataLog!$C317=\"Log value\",DataLog!N317,\"\")","v":""},{"$f":"IF(DataLog!$C317=\"Log value\",DataLog!O317,\"\")","v":""},{"$f":"IF(DataLog!$C317=\"Log value\",DataLog!P317,\"\")","v":""},{"$f":"IF(DataLog!$C317=\"Log value\",DataLog!Q317,\"\")","v":""},{"$f":"IF(DataLog!$C317=\"Log value\",DataLog!R317,\"\")","v":""},{"$f":"IF(DataLog!$C317=\"Log value\",DataLog!S317,\"\")","v":""},{"$f":"IF(DataLog!$C317=\"Log value\",DataLog!T317,\"\")","v":""},{"$f":"IF(DataLog!$C317=\"Log value\",DataLog!U317,\"\")","v":""},{"$f":"IF(DataLog!$C317=\"Log value\",DataLog!V317,\"\")","v":""},{"$f":"IF(DataLog!$C317=\"Log value\",DataLog!W317,\"\")","v":""},{"$f":"IF(DataLog!$C317=\"Log value\",DataLog!X317,\"\")","v":""},{"$f":"IF(DataLog!$C317=\"Log value\",DataLog!Y317,\"\")","v":""},{"$f":"IF(DataLog!$C317=\"Log value\",DataLog!Z317,\"\")","v":""},{"$f":"IF(DataLog!$C317=\"Log value\",DataLog!AA317,\"\")","v":""},{"$f":"IF(DataLog!$C317=\"Log value\",DataLog!AB317,\"\")","v":""},{"$f":"IF(DataLog!$C317=\"Log value\",DataLog!AC317,\"\")","v":""},{"$f":"IF(DataLog!$C317=\"Log value\",DataLog!AD317,\"\")","v":""},{"$f":"IF(DataLog!$C317=\"Log value\",DataLog!AE317,\"\")","v":""},{"$f":"IF(DataLog!$C317=\"Log value\",DataLog!AF317,\"\")","v":""},{"$f":"IF(DataLog!$C317=\"Log value\",DataLog!AG317,\"\")","v":""},{"$f":"IF(DataLog!$C317=\"Log value\",DataLog!AH317,\"\")","v":""},{"$f":"IF(DataLog!$C317=\"Log value\",DataLog!AI317,\"\")","v":""},{"$f":"IF(DataLog!$C317=\"Log value\",DataLog!AJ317,\"\")","v":""},{"$f":"IF(DataLog!$C317=\"Log value\",DataLog!AK317,\"\")","v":""},{"$f":"IF(DataLog!$C317=\"Log value\",DataLog!AL317,\"\")","v":""},{"$f":"IF(DataLog!$C317=\"Log value\",DataLog!AM317,\"\")","v":""}]
[null,null,"Standard","Standard -  - ",null,null,{"$f":"IF(DataLog!$C318=\"Log value\",DataLog!D318&\"_\"&TEXT(DataLog!B318,\"åååå-mm-dd\"),\"\")","v":""},{"$f":"IF(DataLog!$C318=\"Log value\",DataLog!E318,\"\")","v":""},{"$f":"IF(DataLog!$C318=\"Log value\",DataLog!F318,\"\")","v":""},{"$f":"IF(DataLog!$C318=\"Log value\",DataLog!G318,\"\")","v":""},{"$f":"IF(DataLog!$C318=\"Log value\",DataLog!H318,\"\")","v":""},{"$f":"IF(DataLog!$C318=\"Log value\",DataLog!I318,\"\")","v":""},{"$f":"IF(DataLog!$C318=\"Log value\",DataLog!J318,\"\")","v":""},{"$f":"IF(DataLog!$C318=\"Log value\",DataLog!K318,\"\")","v":""},{"$f":"IF(DataLog!$C318=\"Log value\",DataLog!L318,\"\")","v":""},{"$f":"IF(DataLog!$C318=\"Log value\",DataLog!M318,\"\")","v":""},{"$f":"IF(DataLog!$C318=\"Log value\",DataLog!N318,\"\")","v":""},{"$f":"IF(DataLog!$C318=\"Log value\",DataLog!O318,\"\")","v":""},{"$f":"IF(DataLog!$C318=\"Log value\",DataLog!P318,\"\")","v":""},{"$f":"IF(DataLog!$C318=\"Log value\",DataLog!Q318,\"\")","v":""},{"$f":"IF(DataLog!$C318=\"Log value\",DataLog!R318,\"\")","v":""},{"$f":"IF(DataLog!$C318=\"Log value\",DataLog!S318,\"\")","v":""},{"$f":"IF(DataLog!$C318=\"Log value\",DataLog!T318,\"\")","v":""},{"$f":"IF(DataLog!$C318=\"Log value\",DataLog!U318,\"\")","v":""},{"$f":"IF(DataLog!$C318=\"Log value\",DataLog!V318,\"\")","v":""},{"$f":"IF(DataLog!$C318=\"Log value\",DataLog!W318,\"\")","v":""},{"$f":"IF(DataLog!$C318=\"Log value\",DataLog!X318,\"\")","v":""},{"$f":"IF(DataLog!$C318=\"Log value\",DataLog!Y318,\"\")","v":""},{"$f":"IF(DataLog!$C318=\"Log value\",DataLog!Z318,\"\")","v":""},{"$f":"IF(DataLog!$C318=\"Log value\",DataLog!AA318,\"\")","v":""},{"$f":"IF(DataLog!$C318=\"Log value\",DataLog!AB318,\"\")","v":""},{"$f":"IF(DataLog!$C318=\"Log value\",DataLog!AC318,\"\")","v":""},{"$f":"IF(DataLog!$C318=\"Log value\",DataLog!AD318,\"\")","v":""},{"$f":"IF(DataLog!$C318=\"Log value\",DataLog!AE318,\"\")","v":""},{"$f":"IF(DataLog!$C318=\"Log value\",DataLog!AF318,\"\")","v":""},{"$f":"IF(DataLog!$C318=\"Log value\",DataLog!AG318,\"\")","v":""},{"$f":"IF(DataLog!$C318=\"Log value\",DataLog!AH318,\"\")","v":""},{"$f":"IF(DataLog!$C318=\"Log value\",DataLog!AI318,\"\")","v":""},{"$f":"IF(DataLog!$C318=\"Log value\",DataLog!AJ318,\"\")","v":""},{"$f":"IF(DataLog!$C318=\"Log value\",DataLog!AK318,\"\")","v":""},{"$f":"IF(DataLog!$C318=\"Log value\",DataLog!AL318,\"\")","v":""},{"$f":"IF(DataLog!$C318=\"Log value\",DataLog!AM318,\"\")","v":""}]
[null,null,"Standard","Standard -  - ",null,null,{"$f":"IF(DataLog!$C319=\"Log value\",DataLog!D319&\"_\"&TEXT(DataLog!B319,\"åååå-mm-dd\"),\"\")","v":""},{"$f":"IF(DataLog!$C319=\"Log value\",DataLog!E319,\"\")","v":""},{"$f":"IF(DataLog!$C319=\"Log value\",DataLog!F319,\"\")","v":""},{"$f":"IF(DataLog!$C319=\"Log value\",DataLog!G319,\"\")","v":""},{"$f":"IF(DataLog!$C319=\"Log value\",DataLog!H319,\"\")","v":""},{"$f":"IF(DataLog!$C319=\"Log value\",DataLog!I319,\"\")","v":""},{"$f":"IF(DataLog!$C319=\"Log value\",DataLog!J319,\"\")","v":""},{"$f":"IF(DataLog!$C319=\"Log value\",DataLog!K319,\"\")","v":""},{"$f":"IF(DataLog!$C319=\"Log value\",DataLog!L319,\"\")","v":""},{"$f":"IF(DataLog!$C319=\"Log value\",DataLog!M319,\"\")","v":""},{"$f":"IF(DataLog!$C319=\"Log value\",DataLog!N319,\"\")","v":""},{"$f":"IF(DataLog!$C319=\"Log value\",DataLog!O319,\"\")","v":""},{"$f":"IF(DataLog!$C319=\"Log value\",DataLog!P319,\"\")","v":""},{"$f":"IF(DataLog!$C319=\"Log value\",DataLog!Q319,\"\")","v":""},{"$f":"IF(DataLog!$C319=\"Log value\",DataLog!R319,\"\")","v":""},{"$f":"IF(DataLog!$C319=\"Log value\",DataLog!S319,\"\")","v":""},{"$f":"IF(DataLog!$C319=\"Log value\",DataLog!T319,\"\")","v":""},{"$f":"IF(DataLog!$C319=\"Log value\",DataLog!U319,\"\")","v":""},{"$f":"IF(DataLog!$C319=\"Log value\",DataLog!V319,\"\")","v":""},{"$f":"IF(DataLog!$C319=\"Log value\",DataLog!W319,\"\")","v":""},{"$f":"IF(DataLog!$C319=\"Log value\",DataLog!X319,\"\")","v":""},{"$f":"IF(DataLog!$C319=\"Log value\",DataLog!Y319,\"\")","v":""},{"$f":"IF(DataLog!$C319=\"Log value\",DataLog!Z319,\"\")","v":""},{"$f":"IF(DataLog!$C319=\"Log value\",DataLog!AA319,\"\")","v":""},{"$f":"IF(DataLog!$C319=\"Log value\",DataLog!AB319,\"\")","v":""},{"$f":"IF(DataLog!$C319=\"Log value\",DataLog!AC319,\"\")","v":""},{"$f":"IF(DataLog!$C319=\"Log value\",DataLog!AD319,\"\")","v":""},{"$f":"IF(DataLog!$C319=\"Log value\",DataLog!AE319,\"\")","v":""},{"$f":"IF(DataLog!$C319=\"Log value\",DataLog!AF319,\"\")","v":""},{"$f":"IF(DataLog!$C319=\"Log value\",DataLog!AG319,\"\")","v":""},{"$f":"IF(DataLog!$C319=\"Log value\",DataLog!AH319,\"\")","v":""},{"$f":"IF(DataLog!$C319=\"Log value\",DataLog!AI319,\"\")","v":""},{"$f":"IF(DataLog!$C319=\"Log value\",DataLog!AJ319,\"\")","v":""},{"$f":"IF(DataLog!$C319=\"Log value\",DataLog!AK319,\"\")","v":""},{"$f":"IF(DataLog!$C319=\"Log value\",DataLog!AL319,\"\")","v":""},{"$f":"IF(DataLog!$C319=\"Log value\",DataLog!AM319,\"\")","v":""}]
[null,null,"Standard","Standard -  - ",null,null,{"$f":"IF(DataLog!$C320=\"Log value\",DataLog!D320&\"_\"&TEXT(DataLog!B320,\"åååå-mm-dd\"),\"\")","v":""},{"$f":"IF(DataLog!$C320=\"Log value\",DataLog!E320,\"\")","v":""},{"$f":"IF(DataLog!$C320=\"Log value\",DataLog!F320,\"\")","v":""},{"$f":"IF(DataLog!$C320=\"Log value\",DataLog!G320,\"\")","v":""},{"$f":"IF(DataLog!$C320=\"Log value\",DataLog!H320,\"\")","v":""},{"$f":"IF(DataLog!$C320=\"Log value\",DataLog!I320,\"\")","v":""},{"$f":"IF(DataLog!$C320=\"Log value\",DataLog!J320,\"\")","v":""},{"$f":"IF(DataLog!$C320=\"Log value\",DataLog!K320,\"\")","v":""},{"$f":"IF(DataLog!$C320=\"Log value\",DataLog!L320,\"\")","v":""},{"$f":"IF(DataLog!$C320=\"Log value\",DataLog!M320,\"\")","v":""},{"$f":"IF(DataLog!$C320=\"Log value\",DataLog!N320,\"\")","v":""},{"$f":"IF(DataLog!$C320=\"Log value\",DataLog!O320,\"\")","v":""},{"$f":"IF(DataLog!$C320=\"Log value\",DataLog!P320,\"\")","v":""},{"$f":"IF(DataLog!$C320=\"Log value\",DataLog!Q320,\"\")","v":""},{"$f":"IF(DataLog!$C320=\"Log value\",DataLog!R320,\"\")","v":""},{"$f":"IF(DataLog!$C320=\"Log value\",DataLog!S320,\"\")","v":""},{"$f":"IF(DataLog!$C320=\"Log value\",DataLog!T320,\"\")","v":""},{"$f":"IF(DataLog!$C320=\"Log value\",DataLog!U320,\"\")","v":""},{"$f":"IF(DataLog!$C320=\"Log value\",DataLog!V320,\"\")","v":""},{"$f":"IF(DataLog!$C320=\"Log value\",DataLog!W320,\"\")","v":""},{"$f":"IF(DataLog!$C320=\"Log value\",DataLog!X320,\"\")","v":""},{"$f":"IF(DataLog!$C320=\"Log value\",DataLog!Y320,\"\")","v":""},{"$f":"IF(DataLog!$C320=\"Log value\",DataLog!Z320,\"\")","v":""},{"$f":"IF(DataLog!$C320=\"Log value\",DataLog!AA320,\"\")","v":""},{"$f":"IF(DataLog!$C320=\"Log value\",DataLog!AB320,\"\")","v":""},{"$f":"IF(DataLog!$C320=\"Log value\",DataLog!AC320,\"\")","v":""},{"$f":"IF(DataLog!$C320=\"Log value\",DataLog!AD320,\"\")","v":""},{"$f":"IF(DataLog!$C320=\"Log value\",DataLog!AE320,\"\")","v":""},{"$f":"IF(DataLog!$C320=\"Log value\",DataLog!AF320,\"\")","v":""},{"$f":"IF(DataLog!$C320=\"Log value\",DataLog!AG320,\"\")","v":""},{"$f":"IF(DataLog!$C320=\"Log value\",DataLog!AH320,\"\")","v":""},{"$f":"IF(DataLog!$C320=\"Log value\",DataLog!AI320,\"\")","v":""},{"$f":"IF(DataLog!$C320=\"Log value\",DataLog!AJ320,\"\")","v":""},{"$f":"IF(DataLog!$C320=\"Log value\",DataLog!AK320,\"\")","v":""},{"$f":"IF(DataLog!$C320=\"Log value\",DataLog!AL320,\"\")","v":""},{"$f":"IF(DataLog!$C320=\"Log value\",DataLog!AM320,\"\")","v":""}]
[null,null,"Standard","Standard -  - ",null,null,{"$f":"IF(DataLog!$C321=\"Log value\",DataLog!D321&\"_\"&TEXT(DataLog!B321,\"åååå-mm-dd\"),\"\")","v":""},{"$f":"IF(DataLog!$C321=\"Log value\",DataLog!E321,\"\")","v":""},{"$f":"IF(DataLog!$C321=\"Log value\",DataLog!F321,\"\")","v":""},{"$f":"IF(DataLog!$C321=\"Log value\",DataLog!G321,\"\")","v":""},{"$f":"IF(DataLog!$C321=\"Log value\",DataLog!H321,\"\")","v":""},{"$f":"IF(DataLog!$C321=\"Log value\",DataLog!I321,\"\")","v":""},{"$f":"IF(DataLog!$C321=\"Log value\",DataLog!J321,\"\")","v":""},{"$f":"IF(DataLog!$C321=\"Log value\",DataLog!K321,\"\")","v":""},{"$f":"IF(DataLog!$C321=\"Log value\",DataLog!L321,\"\")","v":""},{"$f":"IF(DataLog!$C321=\"Log value\",DataLog!M321,\"\")","v":""},{"$f":"IF(DataLog!$C321=\"Log value\",DataLog!N321,\"\")","v":""},{"$f":"IF(DataLog!$C321=\"Log value\",DataLog!O321,\"\")","v":""},{"$f":"IF(DataLog!$C321=\"Log value\",DataLog!P321,\"\")","v":""},{"$f":"IF(DataLog!$C321=\"Log value\",DataLog!Q321,\"\")","v":""},{"$f":"IF(DataLog!$C321=\"Log value\",DataLog!R321,\"\")","v":""},{"$f":"IF(DataLog!$C321=\"Log value\",DataLog!S321,\"\")","v":""},{"$f":"IF(DataLog!$C321=\"Log value\",DataLog!T321,\"\")","v":""},{"$f":"IF(DataLog!$C321=\"Log value\",DataLog!U321,\"\")","v":""},{"$f":"IF(DataLog!$C321=\"Log value\",DataLog!V321,\"\")","v":""},{"$f":"IF(DataLog!$C321=\"Log value\",DataLog!W321,\"\")","v":""},{"$f":"IF(DataLog!$C321=\"Log value\",DataLog!X321,\"\")","v":""},{"$f":"IF(DataLog!$C321=\"Log value\",DataLog!Y321,\"\")","v":""},{"$f":"IF(DataLog!$C321=\"Log value\",DataLog!Z321,\"\")","v":""},{"$f":"IF(DataLog!$C321=\"Log value\",DataLog!AA321,\"\")","v":""},{"$f":"IF(DataLog!$C321=\"Log value\",DataLog!AB321,\"\")","v":""},{"$f":"IF(DataLog!$C321=\"Log value\",DataLog!AC321,\"\")","v":""},{"$f":"IF(DataLog!$C321=\"Log value\",DataLog!AD321,\"\")","v":""},{"$f":"IF(DataLog!$C321=\"Log value\",DataLog!AE321,\"\")","v":""},{"$f":"IF(DataLog!$C321=\"Log value\",DataLog!AF321,\"\")","v":""},{"$f":"IF(DataLog!$C321=\"Log value\",DataLog!AG321,\"\")","v":""},{"$f":"IF(DataLog!$C321=\"Log value\",DataLog!AH321,\"\")","v":""},{"$f":"IF(DataLog!$C321=\"Log value\",DataLog!AI321,\"\")","v":""},{"$f":"IF(DataLog!$C321=\"Log value\",DataLog!AJ321,\"\")","v":""},{"$f":"IF(DataLog!$C321=\"Log value\",DataLog!AK321,\"\")","v":""},{"$f":"IF(DataLog!$C321=\"Log value\",DataLog!AL321,\"\")","v":""},{"$f":"IF(DataLog!$C321=\"Log value\",DataLog!AM321,\"\")","v":""}]
[null,null,"Standard","Standard -  - ",null,null,{"$f":"IF(DataLog!$C322=\"Log value\",DataLog!D322&\"_\"&TEXT(DataLog!B322,\"åååå-mm-dd\"),\"\")","v":""},{"$f":"IF(DataLog!$C322=\"Log value\",DataLog!E322,\"\")","v":""},{"$f":"IF(DataLog!$C322=\"Log value\",DataLog!F322,\"\")","v":""},{"$f":"IF(DataLog!$C322=\"Log value\",DataLog!G322,\"\")","v":""},{"$f":"IF(DataLog!$C322=\"Log value\",DataLog!H322,\"\")","v":""},{"$f":"IF(DataLog!$C322=\"Log value\",DataLog!I322,\"\")","v":""},{"$f":"IF(DataLog!$C322=\"Log value\",DataLog!J322,\"\")","v":""},{"$f":"IF(DataLog!$C322=\"Log value\",DataLog!K322,\"\")","v":""},{"$f":"IF(DataLog!$C322=\"Log value\",DataLog!L322,\"\")","v":""},{"$f":"IF(DataLog!$C322=\"Log value\",DataLog!M322,\"\")","v":""},{"$f":"IF(DataLog!$C322=\"Log value\",DataLog!N322,\"\")","v":""},{"$f":"IF(DataLog!$C322=\"Log value\",DataLog!O322,\"\")","v":""},{"$f":"IF(DataLog!$C322=\"Log value\",DataLog!P322,\"\")","v":""},{"$f":"IF(DataLog!$C322=\"Log value\",DataLog!Q322,\"\")","v":""},{"$f":"IF(DataLog!$C322=\"Log value\",DataLog!R322,\"\")","v":""},{"$f":"IF(DataLog!$C322=\"Log value\",DataLog!S322,\"\")","v":""},{"$f":"IF(DataLog!$C322=\"Log value\",DataLog!T322,\"\")","v":""},{"$f":"IF(DataLog!$C322=\"Log value\",DataLog!U322,\"\")","v":""},{"$f":"IF(DataLog!$C322=\"Log value\",DataLog!V322,\"\")","v":""},{"$f":"IF(DataLog!$C322=\"Log value\",DataLog!W322,\"\")","v":""},{"$f":"IF(DataLog!$C322=\"Log value\",DataLog!X322,\"\")","v":""},{"$f":"IF(DataLog!$C322=\"Log value\",DataLog!Y322,\"\")","v":""},{"$f":"IF(DataLog!$C322=\"Log value\",DataLog!Z322,\"\")","v":""},{"$f":"IF(DataLog!$C322=\"Log value\",DataLog!AA322,\"\")","v":""},{"$f":"IF(DataLog!$C322=\"Log value\",DataLog!AB322,\"\")","v":""},{"$f":"IF(DataLog!$C322=\"Log value\",DataLog!AC322,\"\")","v":""},{"$f":"IF(DataLog!$C322=\"Log value\",DataLog!AD322,\"\")","v":""},{"$f":"IF(DataLog!$C322=\"Log value\",DataLog!AE322,\"\")","v":""},{"$f":"IF(DataLog!$C322=\"Log value\",DataLog!AF322,\"\")","v":""},{"$f":"IF(DataLog!$C322=\"Log value\",DataLog!AG322,\"\")","v":""},{"$f":"IF(DataLog!$C322=\"Log value\",DataLog!AH322,\"\")","v":""},{"$f":"IF(DataLog!$C322=\"Log value\",DataLog!AI322,\"\")","v":""},{"$f":"IF(DataLog!$C322=\"Log value\",DataLog!AJ322,\"\")","v":""},{"$f":"IF(DataLog!$C322=\"Log value\",DataLog!AK322,\"\")","v":""},{"$f":"IF(DataLog!$C322=\"Log value\",DataLog!AL322,\"\")","v":""},{"$f":"IF(DataLog!$C322=\"Log value\",DataLog!AM322,\"\")","v":""}]
[null,null,"Standard","Standard -  - ",null,null,{"$f":"IF(DataLog!$C323=\"Log value\",DataLog!D323&\"_\"&TEXT(DataLog!B323,\"åååå-mm-dd\"),\"\")","v":""},{"$f":"IF(DataLog!$C323=\"Log value\",DataLog!E323,\"\")","v":""},{"$f":"IF(DataLog!$C323=\"Log value\",DataLog!F323,\"\")","v":""},{"$f":"IF(DataLog!$C323=\"Log value\",DataLog!G323,\"\")","v":""},{"$f":"IF(DataLog!$C323=\"Log value\",DataLog!H323,\"\")","v":""},{"$f":"IF(DataLog!$C323=\"Log value\",DataLog!I323,\"\")","v":""},{"$f":"IF(DataLog!$C323=\"Log value\",DataLog!J323,\"\")","v":""},{"$f":"IF(DataLog!$C323=\"Log value\",DataLog!K323,\"\")","v":""},{"$f":"IF(DataLog!$C323=\"Log value\",DataLog!L323,\"\")","v":""},{"$f":"IF(DataLog!$C323=\"Log value\",DataLog!M323,\"\")","v":""},{"$f":"IF(DataLog!$C323=\"Log value\",DataLog!N323,\"\")","v":""},{"$f":"IF(DataLog!$C323=\"Log value\",DataLog!O323,\"\")","v":""},{"$f":"IF(DataLog!$C323=\"Log value\",DataLog!P323,\"\")","v":""},{"$f":"IF(DataLog!$C323=\"Log value\",DataLog!Q323,\"\")","v":""},{"$f":"IF(DataLog!$C323=\"Log value\",DataLog!R323,\"\")","v":""},{"$f":"IF(DataLog!$C323=\"Log value\",DataLog!S323,\"\")","v":""},{"$f":"IF(DataLog!$C323=\"Log value\",DataLog!T323,\"\")","v":""},{"$f":"IF(DataLog!$C323=\"Log value\",DataLog!U323,\"\")","v":""},{"$f":"IF(DataLog!$C323=\"Log value\",DataLog!V323,\"\")","v":""},{"$f":"IF(DataLog!$C323=\"Log value\",DataLog!W323,\"\")","v":""},{"$f":"IF(DataLog!$C323=\"Log value\",DataLog!X323,\"\")","v":""},{"$f":"IF(DataLog!$C323=\"Log value\",DataLog!Y323,\"\")","v":""},{"$f":"IF(DataLog!$C323=\"Log value\",DataLog!Z323,\"\")","v":""},{"$f":"IF(DataLog!$C323=\"Log value\",DataLog!AA323,\"\")","v":""},{"$f":"IF(DataLog!$C323=\"Log value\",DataLog!AB323,\"\")","v":""},{"$f":"IF(DataLog!$C323=\"Log value\",DataLog!AC323,\"\")","v":""},{"$f":"IF(DataLog!$C323=\"Log value\",DataLog!AD323,\"\")","v":""},{"$f":"IF(DataLog!$C323=\"Log value\",DataLog!AE323,\"\")","v":""},{"$f":"IF(DataLog!$C323=\"Log value\",DataLog!AF323,\"\")","v":""},{"$f":"IF(DataLog!$C323=\"Log value\",DataLog!AG323,\"\")","v":""},{"$f":"IF(DataLog!$C323=\"Log value\",DataLog!AH323,\"\")","v":""},{"$f":"IF(DataLog!$C323=\"Log value\",DataLog!AI323,\"\")","v":""},{"$f":"IF(DataLog!$C323=\"Log value\",DataLog!AJ323,\"\")","v":""},{"$f":"IF(DataLog!$C323=\"Log value\",DataLog!AK323,\"\")","v":""},{"$f":"IF(DataLog!$C323=\"Log value\",DataLog!AL323,\"\")","v":""},{"$f":"IF(DataLog!$C323=\"Log value\",DataLog!AM323,\"\")","v":""}]
[null,null,"Standard",{"$f":"C358&\" - \"&G358&\" - \"&I358","v":"Standard -  - "},null,null,{"$f":"IF(DataLog!$C324=\"Log value\",DataLog!D324&\"_\"&TEXT(DataLog!B324,\"åååå-mm-dd\"),\"\")","v":""},{"$f":"IF(DataLog!$C324=\"Log value\",DataLog!E324,\"\")","v":""},{"$f":"IF(DataLog!$C324=\"Log value\",DataLog!F324,\"\")","v":""},{"$f":"IF(DataLog!$C324=\"Log value\",DataLog!G324,\"\")","v":""},{"$f":"IF(DataLog!$C324=\"Log value\",DataLog!H324,\"\")","v":""},{"$f":"IF(DataLog!$C324=\"Log value\",DataLog!I324,\"\")","v":""},{"$f":"IF(DataLog!$C324=\"Log value\",DataLog!J324,\"\")","v":""},{"$f":"IF(DataLog!$C324=\"Log value\",DataLog!K324,\"\")","v":""},{"$f":"IF(DataLog!$C324=\"Log value\",DataLog!L324,\"\")","v":""},{"$f":"IF(DataLog!$C324=\"Log value\",DataLog!M324,\"\")","v":""},{"$f":"IF(DataLog!$C324=\"Log value\",DataLog!N324,\"\")","v":""},{"$f":"IF(DataLog!$C324=\"Log value\",DataLog!O324,\"\")","v":""},{"$f":"IF(DataLog!$C324=\"Log value\",DataLog!P324,\"\")","v":""},{"$f":"IF(DataLog!$C324=\"Log value\",DataLog!Q324,\"\")","v":""},{"$f":"IF(DataLog!$C324=\"Log value\",DataLog!R324,\"\")","v":""},{"$f":"IF(DataLog!$C324=\"Log value\",DataLog!S324,\"\")","v":""},{"$f":"IF(DataLog!$C324=\"Log value\",DataLog!T324,\"\")","v":""},{"$f":"IF(DataLog!$C324=\"Log value\",DataLog!U324,\"\")","v":""},{"$f":"IF(DataLog!$C324=\"Log value\",DataLog!V324,\"\")","v":""},{"$f":"IF(DataLog!$C324=\"Log value\",DataLog!W324,\"\")","v":""},{"$f":"IF(DataLog!$C324=\"Log value\",DataLog!X324,\"\")","v":""},{"$f":"IF(DataLog!$C324=\"Log value\",DataLog!Y324,\"\")","v":""},{"$f":"IF(DataLog!$C324=\"Log value\",DataLog!Z324,\"\")","v":""},{"$f":"IF(DataLog!$C324=\"Log value\",DataLog!AA324,\"\")","v":""},{"$f":"IF(DataLog!$C324=\"Log value\",DataLog!AB324,\"\")","v":""},{"$f":"IF(DataLog!$C324=\"Log value\",DataLog!AC324,\"\")","v":""},{"$f":"IF(DataLog!$C324=\"Log value\",DataLog!AD324,\"\")","v":""},{"$f":"IF(DataLog!$C324=\"Log value\",DataLog!AE324,\"\")","v":""},{"$f":"IF(DataLog!$C324=\"Log value\",DataLog!AF324,\"\")","v":""},{"$f":"IF(DataLog!$C324=\"Log value\",DataLog!AG324,\"\")","v":""},{"$f":"IF(DataLog!$C324=\"Log value\",DataLog!AH324,\"\")","v":""},{"$f":"IF(DataLog!$C324=\"Log value\",DataLog!AI324,\"\")","v":""},{"$f":"IF(DataLog!$C324=\"Log value\",DataLog!AJ324,\"\")","v":""},{"$f":"IF(DataLog!$C324=\"Log value\",DataLog!AK324,\"\")","v":""},{"$f":"IF(DataLog!$C324=\"Log value\",DataLog!AL324,\"\")","v":""},{"$f":"IF(DataLog!$C324=\"Log value\",DataLog!AM324,\"\")","v":""}]
[null,null,"Standard","Standard -  - ",null,null,{"$f":"IF(DataLog!$C325=\"Log value\",DataLog!D325&\"_\"&TEXT(DataLog!B325,\"åååå-mm-dd\"),\"\")","v":""},{"$f":"IF(DataLog!$C325=\"Log value\",DataLog!E325,\"\")","v":""},{"$f":"IF(DataLog!$C325=\"Log value\",DataLog!F325,\"\")","v":""},{"$f":"IF(DataLog!$C325=\"Log value\",DataLog!G325,\"\")","v":""},{"$f":"IF(DataLog!$C325=\"Log value\",DataLog!H325,\"\")","v":""},{"$f":"IF(DataLog!$C325=\"Log value\",DataLog!I325,\"\")","v":""},{"$f":"IF(DataLog!$C325=\"Log value\",DataLog!J325,\"\")","v":""},{"$f":"IF(DataLog!$C325=\"Log value\",DataLog!K325,\"\")","v":""},{"$f":"IF(DataLog!$C325=\"Log value\",DataLog!L325,\"\")","v":""},{"$f":"IF(DataLog!$C325=\"Log value\",DataLog!M325,\"\")","v":""},{"$f":"IF(DataLog!$C325=\"Log value\",DataLog!N325,\"\")","v":""},{"$f":"IF(DataLog!$C325=\"Log value\",DataLog!O325,\"\")","v":""},{"$f":"IF(DataLog!$C325=\"Log value\",DataLog!P325,\"\")","v":""},{"$f":"IF(DataLog!$C325=\"Log value\",DataLog!Q325,\"\")","v":""},{"$f":"IF(DataLog!$C325=\"Log value\",DataLog!R325,\"\")","v":""},{"$f":"IF(DataLog!$C325=\"Log value\",DataLog!S325,\"\")","v":""},{"$f":"IF(DataLog!$C325=\"Log value\",DataLog!T325,\"\")","v":""},{"$f":"IF(DataLog!$C325=\"Log value\",DataLog!U325,\"\")","v":""},{"$f":"IF(DataLog!$C325=\"Log value\",DataLog!V325,\"\")","v":""},{"$f":"IF(DataLog!$C325=\"Log value\",DataLog!W325,\"\")","v":""},{"$f":"IF(DataLog!$C325=\"Log value\",DataLog!X325,\"\")","v":""},{"$f":"IF(DataLog!$C325=\"Log value\",DataLog!Y325,\"\")","v":""},{"$f":"IF(DataLog!$C325=\"Log value\",DataLog!Z325,\"\")","v":""},{"$f":"IF(DataLog!$C325=\"Log value\",DataLog!AA325,\"\")","v":""},{"$f":"IF(DataLog!$C325=\"Log value\",DataLog!AB325,\"\")","v":""},{"$f":"IF(DataLog!$C325=\"Log value\",DataLog!AC325,\"\")","v":""},{"$f":"IF(DataLog!$C325=\"Log value\",DataLog!AD325,\"\")","v":""},{"$f":"IF(DataLog!$C325=\"Log value\",DataLog!AE325,\"\")","v":""},{"$f":"IF(DataLog!$C325=\"Log value\",DataLog!AF325,\"\")","v":""},{"$f":"IF(DataLog!$C325=\"Log value\",DataLog!AG325,\"\")","v":""},{"$f":"IF(DataLog!$C325=\"Log value\",DataLog!AH325,\"\")","v":""},{"$f":"IF(DataLog!$C325=\"Log value\",DataLog!AI325,\"\")","v":""},{"$f":"IF(DataLog!$C325=\"Log value\",DataLog!AJ325,\"\")","v":""},{"$f":"IF(DataLog!$C325=\"Log value\",DataLog!AK325,\"\")","v":""},{"$f":"IF(DataLog!$C325=\"Log value\",DataLog!AL325,\"\")","v":""},{"$f":"IF(DataLog!$C325=\"Log value\",DataLog!AM325,\"\")","v":""}]
[null,null,"Standard","Standard -  - ",null,null,{"$f":"IF(DataLog!$C326=\"Log value\",DataLog!D326&\"_\"&TEXT(DataLog!B326,\"åååå-mm-dd\"),\"\")","v":""},{"$f":"IF(DataLog!$C326=\"Log value\",DataLog!E326,\"\")","v":""},{"$f":"IF(DataLog!$C326=\"Log value\",DataLog!F326,\"\")","v":""},{"$f":"IF(DataLog!$C326=\"Log value\",DataLog!G326,\"\")","v":""},{"$f":"IF(DataLog!$C326=\"Log value\",DataLog!H326,\"\")","v":""},{"$f":"IF(DataLog!$C326=\"Log value\",DataLog!I326,\"\")","v":""},{"$f":"IF(DataLog!$C326=\"Log value\",DataLog!J326,\"\")","v":""},{"$f":"IF(DataLog!$C326=\"Log value\",DataLog!K326,\"\")","v":""},{"$f":"IF(DataLog!$C326=\"Log value\",DataLog!L326,\"\")","v":""},{"$f":"IF(DataLog!$C326=\"Log value\",DataLog!M326,\"\")","v":""},{"$f":"IF(DataLog!$C326=\"Log value\",DataLog!N326,\"\")","v":""},{"$f":"IF(DataLog!$C326=\"Log value\",DataLog!O326,\"\")","v":""},{"$f":"IF(DataLog!$C326=\"Log value\",DataLog!P326,\"\")","v":""},{"$f":"IF(DataLog!$C326=\"Log value\",DataLog!Q326,\"\")","v":""},{"$f":"IF(DataLog!$C326=\"Log value\",DataLog!R326,\"\")","v":""},{"$f":"IF(DataLog!$C326=\"Log value\",DataLog!S326,\"\")","v":""},{"$f":"IF(DataLog!$C326=\"Log value\",DataLog!T326,\"\")","v":""},{"$f":"IF(DataLog!$C326=\"Log value\",DataLog!U326,\"\")","v":""},{"$f":"IF(DataLog!$C326=\"Log value\",DataLog!V326,\"\")","v":""},{"$f":"IF(DataLog!$C326=\"Log value\",DataLog!W326,\"\")","v":""},{"$f":"IF(DataLog!$C326=\"Log value\",DataLog!X326,\"\")","v":""},{"$f":"IF(DataLog!$C326=\"Log value\",DataLog!Y326,\"\")","v":""},{"$f":"IF(DataLog!$C326=\"Log value\",DataLog!Z326,\"\")","v":""},{"$f":"IF(DataLog!$C326=\"Log value\",DataLog!AA326,\"\")","v":""},{"$f":"IF(DataLog!$C326=\"Log value\",DataLog!AB326,\"\")","v":""},{"$f":"IF(DataLog!$C326=\"Log value\",DataLog!AC326,\"\")","v":""},{"$f":"IF(DataLog!$C326=\"Log value\",DataLog!AD326,\"\")","v":""},{"$f":"IF(DataLog!$C326=\"Log value\",DataLog!AE326,\"\")","v":""},{"$f":"IF(DataLog!$C326=\"Log value\",DataLog!AF326,\"\")","v":""},{"$f":"IF(DataLog!$C326=\"Log value\",DataLog!AG326,\"\")","v":""},{"$f":"IF(DataLog!$C326=\"Log value\",DataLog!AH326,\"\")","v":""},{"$f":"IF(DataLog!$C326=\"Log value\",DataLog!AI326,\"\")","v":""},{"$f":"IF(DataLog!$C326=\"Log value\",DataLog!AJ326,\"\")","v":""},{"$f":"IF(DataLog!$C326=\"Log value\",DataLog!AK326,\"\")","v":""},{"$f":"IF(DataLog!$C326=\"Log value\",DataLog!AL326,\"\")","v":""},{"$f":"IF(DataLog!$C326=\"Log value\",DataLog!AM326,\"\")","v":""}]
[null,null,"Standard","Standard -  - ",null,null,{"$f":"IF(DataLog!$C327=\"Log value\",DataLog!D327&\"_\"&TEXT(DataLog!B327,\"åååå-mm-dd\"),\"\")","v":""},{"$f":"IF(DataLog!$C327=\"Log value\",DataLog!E327,\"\")","v":""},{"$f":"IF(DataLog!$C327=\"Log value\",DataLog!F327,\"\")","v":""},{"$f":"IF(DataLog!$C327=\"Log value\",DataLog!G327,\"\")","v":""},{"$f":"IF(DataLog!$C327=\"Log value\",DataLog!H327,\"\")","v":""},{"$f":"IF(DataLog!$C327=\"Log value\",DataLog!I327,\"\")","v":""},{"$f":"IF(DataLog!$C327=\"Log value\",DataLog!J327,\"\")","v":""},{"$f":"IF(DataLog!$C327=\"Log value\",DataLog!K327,\"\")","v":""},{"$f":"IF(DataLog!$C327=\"Log value\",DataLog!L327,\"\")","v":""},{"$f":"IF(DataLog!$C327=\"Log value\",DataLog!M327,\"\")","v":""},{"$f":"IF(DataLog!$C327=\"Log value\",DataLog!N327,\"\")","v":""},{"$f":"IF(DataLog!$C327=\"Log value\",DataLog!O327,\"\")","v":""},{"$f":"IF(DataLog!$C327=\"Log value\",DataLog!P327,\"\")","v":""},{"$f":"IF(DataLog!$C327=\"Log value\",DataLog!Q327,\"\")","v":""},{"$f":"IF(DataLog!$C327=\"Log value\",DataLog!R327,\"\")","v":""},{"$f":"IF(DataLog!$C327=\"Log value\",DataLog!S327,\"\")","v":""},{"$f":"IF(DataLog!$C327=\"Log value\",DataLog!T327,\"\")","v":""},{"$f":"IF(DataLog!$C327=\"Log value\",DataLog!U327,\"\")","v":""},{"$f":"IF(DataLog!$C327=\"Log value\",DataLog!V327,\"\")","v":""},{"$f":"IF(DataLog!$C327=\"Log value\",DataLog!W327,\"\")","v":""},{"$f":"IF(DataLog!$C327=\"Log value\",DataLog!X327,\"\")","v":""},{"$f":"IF(DataLog!$C327=\"Log value\",DataLog!Y327,\"\")","v":""},{"$f":"IF(DataLog!$C327=\"Log value\",DataLog!Z327,\"\")","v":""},{"$f":"IF(DataLog!$C327=\"Log value\",DataLog!AA327,\"\")","v":""},{"$f":"IF(DataLog!$C327=\"Log value\",DataLog!AB327,\"\")","v":""},{"$f":"IF(DataLog!$C327=\"Log value\",DataLog!AC327,\"\")","v":""},{"$f":"IF(DataLog!$C327=\"Log value\",DataLog!AD327,\"\")","v":""},{"$f":"IF(DataLog!$C327=\"Log value\",DataLog!AE327,\"\")","v":""},{"$f":"IF(DataLog!$C327=\"Log value\",DataLog!AF327,\"\")","v":""},{"$f":"IF(DataLog!$C327=\"Log value\",DataLog!AG327,\"\")","v":""},{"$f":"IF(DataLog!$C327=\"Log value\",DataLog!AH327,\"\")","v":""},{"$f":"IF(DataLog!$C327=\"Log value\",DataLog!AI327,\"\")","v":""},{"$f":"IF(DataLog!$C327=\"Log value\",DataLog!AJ327,\"\")","v":""},{"$f":"IF(DataLog!$C327=\"Log value\",DataLog!AK327,\"\")","v":""},{"$f":"IF(DataLog!$C327=\"Log value\",DataLog!AL327,\"\")","v":""},{"$f":"IF(DataLog!$C327=\"Log value\",DataLog!AM327,\"\")","v":""}]
[null,null,"Standard","Standard -  - ",null,null,{"$f":"IF(DataLog!$C328=\"Log value\",DataLog!D328&\"_\"&TEXT(DataLog!B328,\"åååå-mm-dd\"),\"\")","v":""},{"$f":"IF(DataLog!$C328=\"Log value\",DataLog!E328,\"\")","v":""},{"$f":"IF(DataLog!$C328=\"Log value\",DataLog!F328,\"\")","v":""},{"$f":"IF(DataLog!$C328=\"Log value\",DataLog!G328,\"\")","v":""},{"$f":"IF(DataLog!$C328=\"Log value\",DataLog!H328,\"\")","v":""},{"$f":"IF(DataLog!$C328=\"Log value\",DataLog!I328,\"\")","v":""},{"$f":"IF(DataLog!$C328=\"Log value\",DataLog!J328,\"\")","v":""},{"$f":"IF(DataLog!$C328=\"Log value\",DataLog!K328,\"\")","v":""},{"$f":"IF(DataLog!$C328=\"Log value\",DataLog!L328,\"\")","v":""},{"$f":"IF(DataLog!$C328=\"Log value\",DataLog!M328,\"\")","v":""},{"$f":"IF(DataLog!$C328=\"Log value\",DataLog!N328,\"\")","v":""},{"$f":"IF(DataLog!$C328=\"Log value\",DataLog!O328,\"\")","v":""},{"$f":"IF(DataLog!$C328=\"Log value\",DataLog!P328,\"\")","v":""},{"$f":"IF(DataLog!$C328=\"Log value\",DataLog!Q328,\"\")","v":""},{"$f":"IF(DataLog!$C328=\"Log value\",DataLog!R328,\"\")","v":""},{"$f":"IF(DataLog!$C328=\"Log value\",DataLog!S328,\"\")","v":""},{"$f":"IF(DataLog!$C328=\"Log value\",DataLog!T328,\"\")","v":""},{"$f":"IF(DataLog!$C328=\"Log value\",DataLog!U328,\"\")","v":""},{"$f":"IF(DataLog!$C328=\"Log value\",DataLog!V328,\"\")","v":""},{"$f":"IF(DataLog!$C328=\"Log value\",DataLog!W328,\"\")","v":""},{"$f":"IF(DataLog!$C328=\"Log value\",DataLog!X328,\"\")","v":""},{"$f":"IF(DataLog!$C328=\"Log value\",DataLog!Y328,\"\")","v":""},{"$f":"IF(DataLog!$C328=\"Log value\",DataLog!Z328,\"\")","v":""},{"$f":"IF(DataLog!$C328=\"Log value\",DataLog!AA328,\"\")","v":""},{"$f":"IF(DataLog!$C328=\"Log value\",DataLog!AB328,\"\")","v":""},{"$f":"IF(DataLog!$C328=\"Log value\",DataLog!AC328,\"\")","v":""},{"$f":"IF(DataLog!$C328=\"Log value\",DataLog!AD328,\"\")","v":""},{"$f":"IF(DataLog!$C328=\"Log value\",DataLog!AE328,\"\")","v":""},{"$f":"IF(DataLog!$C328=\"Log value\",DataLog!AF328,\"\")","v":""},{"$f":"IF(DataLog!$C328=\"Log value\",DataLog!AG328,\"\")","v":""},{"$f":"IF(DataLog!$C328=\"Log value\",DataLog!AH328,\"\")","v":""},{"$f":"IF(DataLog!$C328=\"Log value\",DataLog!AI328,\"\")","v":""},{"$f":"IF(DataLog!$C328=\"Log value\",DataLog!AJ328,\"\")","v":""},{"$f":"IF(DataLog!$C328=\"Log value\",DataLog!AK328,\"\")","v":""},{"$f":"IF(DataLog!$C328=\"Log value\",DataLog!AL328,\"\")","v":""},{"$f":"IF(DataLog!$C328=\"Log value\",DataLog!AM328,\"\")","v":""}]
[null,null,"Standard","Standard -  - ",null,null,{"$f":"IF(DataLog!$C329=\"Log value\",DataLog!D329&\"_\"&TEXT(DataLog!B329,\"åååå-mm-dd\"),\"\")","v":""},{"$f":"IF(DataLog!$C329=\"Log value\",DataLog!E329,\"\")","v":""},{"$f":"IF(DataLog!$C329=\"Log value\",DataLog!F329,\"\")","v":""},{"$f":"IF(DataLog!$C329=\"Log value\",DataLog!G329,\"\")","v":""},{"$f":"IF(DataLog!$C329=\"Log value\",DataLog!H329,\"\")","v":""},{"$f":"IF(DataLog!$C329=\"Log value\",DataLog!I329,\"\")","v":""},{"$f":"IF(DataLog!$C329=\"Log value\",DataLog!J329,\"\")","v":""},{"$f":"IF(DataLog!$C329=\"Log value\",DataLog!K329,\"\")","v":""},{"$f":"IF(DataLog!$C329=\"Log value\",DataLog!L329,\"\")","v":""},{"$f":"IF(DataLog!$C329=\"Log value\",DataLog!M329,\"\")","v":""},{"$f":"IF(DataLog!$C329=\"Log value\",DataLog!N329,\"\")","v":""},{"$f":"IF(DataLog!$C329=\"Log value\",DataLog!O329,\"\")","v":""},{"$f":"IF(DataLog!$C329=\"Log value\",DataLog!P329,\"\")","v":""},{"$f":"IF(DataLog!$C329=\"Log value\",DataLog!Q329,\"\")","v":""},{"$f":"IF(DataLog!$C329=\"Log value\",DataLog!R329,\"\")","v":""},{"$f":"IF(DataLog!$C329=\"Log value\",DataLog!S329,\"\")","v":""},{"$f":"IF(DataLog!$C329=\"Log value\",DataLog!T329,\"\")","v":""},{"$f":"IF(DataLog!$C329=\"Log value\",DataLog!U329,\"\")","v":""},{"$f":"IF(DataLog!$C329=\"Log value\",DataLog!V329,\"\")","v":""},{"$f":"IF(DataLog!$C329=\"Log value\",DataLog!W329,\"\")","v":""},{"$f":"IF(DataLog!$C329=\"Log value\",DataLog!X329,\"\")","v":""},{"$f":"IF(DataLog!$C329=\"Log value\",DataLog!Y329,\"\")","v":""},{"$f":"IF(DataLog!$C329=\"Log value\",DataLog!Z329,\"\")","v":""},{"$f":"IF(DataLog!$C329=\"Log value\",DataLog!AA329,\"\")","v":""},{"$f":"IF(DataLog!$C329=\"Log value\",DataLog!AB329,\"\")","v":""},{"$f":"IF(DataLog!$C329=\"Log value\",DataLog!AC329,\"\")","v":""},{"$f":"IF(DataLog!$C329=\"Log value\",DataLog!AD329,\"\")","v":""},{"$f":"IF(DataLog!$C329=\"Log value\",DataLog!AE329,\"\")","v":""},{"$f":"IF(DataLog!$C329=\"Log value\",DataLog!AF329,\"\")","v":""},{"$f":"IF(DataLog!$C329=\"Log value\",DataLog!AG329,\"\")","v":""},{"$f":"IF(DataLog!$C329=\"Log value\",DataLog!AH329,\"\")","v":""},{"$f":"IF(DataLog!$C329=\"Log value\",DataLog!AI329,\"\")","v":""},{"$f":"IF(DataLog!$C329=\"Log value\",DataLog!AJ329,\"\")","v":""},{"$f":"IF(DataLog!$C329=\"Log value\",DataLog!AK329,\"\")","v":""},{"$f":"IF(DataLog!$C329=\"Log value\",DataLog!AL329,\"\")","v":""},{"$f":"IF(DataLog!$C329=\"Log value\",DataLog!AM329,\"\")","v":""}]
[null,null,"Standard","Standard -  - ",null,null,{"$f":"IF(DataLog!$C330=\"Log value\",DataLog!D330&\"_\"&TEXT(DataLog!B330,\"åååå-mm-dd\"),\"\")","v":""},{"$f":"IF(DataLog!$C330=\"Log value\",DataLog!E330,\"\")","v":""},{"$f":"IF(DataLog!$C330=\"Log value\",DataLog!F330,\"\")","v":""},{"$f":"IF(DataLog!$C330=\"Log value\",DataLog!G330,\"\")","v":""},{"$f":"IF(DataLog!$C330=\"Log value\",DataLog!H330,\"\")","v":""},{"$f":"IF(DataLog!$C330=\"Log value\",DataLog!I330,\"\")","v":""},{"$f":"IF(DataLog!$C330=\"Log value\",DataLog!J330,\"\")","v":""},{"$f":"IF(DataLog!$C330=\"Log value\",DataLog!K330,\"\")","v":""},{"$f":"IF(DataLog!$C330=\"Log value\",DataLog!L330,\"\")","v":""},{"$f":"IF(DataLog!$C330=\"Log value\",DataLog!M330,\"\")","v":""},{"$f":"IF(DataLog!$C330=\"Log value\",DataLog!N330,\"\")","v":""},{"$f":"IF(DataLog!$C330=\"Log value\",DataLog!O330,\"\")","v":""},{"$f":"IF(DataLog!$C330=\"Log value\",DataLog!P330,\"\")","v":""},{"$f":"IF(DataLog!$C330=\"Log value\",DataLog!Q330,\"\")","v":""},{"$f":"IF(DataLog!$C330=\"Log value\",DataLog!R330,\"\")","v":""},{"$f":"IF(DataLog!$C330=\"Log value\",DataLog!S330,\"\")","v":""},{"$f":"IF(DataLog!$C330=\"Log value\",DataLog!T330,\"\")","v":""},{"$f":"IF(DataLog!$C330=\"Log value\",DataLog!U330,\"\")","v":""},{"$f":"IF(DataLog!$C330=\"Log value\",DataLog!V330,\"\")","v":""},{"$f":"IF(DataLog!$C330=\"Log value\",DataLog!W330,\"\")","v":""},{"$f":"IF(DataLog!$C330=\"Log value\",DataLog!X330,\"\")","v":""},{"$f":"IF(DataLog!$C330=\"Log value\",DataLog!Y330,\"\")","v":""},{"$f":"IF(DataLog!$C330=\"Log value\",DataLog!Z330,\"\")","v":""},{"$f":"IF(DataLog!$C330=\"Log value\",DataLog!AA330,\"\")","v":""},{"$f":"IF(DataLog!$C330=\"Log value\",DataLog!AB330,\"\")","v":""},{"$f":"IF(DataLog!$C330=\"Log value\",DataLog!AC330,\"\")","v":""},{"$f":"IF(DataLog!$C330=\"Log value\",DataLog!AD330,\"\")","v":""},{"$f":"IF(DataLog!$C330=\"Log value\",DataLog!AE330,\"\")","v":""},{"$f":"IF(DataLog!$C330=\"Log value\",DataLog!AF330,\"\")","v":""},{"$f":"IF(DataLog!$C330=\"Log value\",DataLog!AG330,\"\")","v":""},{"$f":"IF(DataLog!$C330=\"Log value\",DataLog!AH330,\"\")","v":""},{"$f":"IF(DataLog!$C330=\"Log value\",DataLog!AI330,\"\")","v":""},{"$f":"IF(DataLog!$C330=\"Log value\",DataLog!AJ330,\"\")","v":""},{"$f":"IF(DataLog!$C330=\"Log value\",DataLog!AK330,\"\")","v":""},{"$f":"IF(DataLog!$C330=\"Log value\",DataLog!AL330,\"\")","v":""},{"$f":"IF(DataLog!$C330=\"Log value\",DataLog!AM330,\"\")","v":""}]
[null,null,"Standard","Standard -  - ",null,null,{"$f":"IF(DataLog!$C331=\"Log value\",DataLog!D331&\"_\"&TEXT(DataLog!B331,\"åååå-mm-dd\"),\"\")","v":""},{"$f":"IF(DataLog!$C331=\"Log value\",DataLog!E331,\"\")","v":""},{"$f":"IF(DataLog!$C331=\"Log value\",DataLog!F331,\"\")","v":""},{"$f":"IF(DataLog!$C331=\"Log value\",DataLog!G331,\"\")","v":""},{"$f":"IF(DataLog!$C331=\"Log value\",DataLog!H331,\"\")","v":""},{"$f":"IF(DataLog!$C331=\"Log value\",DataLog!I331,\"\")","v":""},{"$f":"IF(DataLog!$C331=\"Log value\",DataLog!J331,\"\")","v":""},{"$f":"IF(DataLog!$C331=\"Log value\",DataLog!K331,\"\")","v":""},{"$f":"IF(DataLog!$C331=\"Log value\",DataLog!L331,\"\")","v":""},{"$f":"IF(DataLog!$C331=\"Log value\",DataLog!M331,\"\")","v":""},{"$f":"IF(DataLog!$C331=\"Log value\",DataLog!N331,\"\")","v":""},{"$f":"IF(DataLog!$C331=\"Log value\",DataLog!O331,\"\")","v":""},{"$f":"IF(DataLog!$C331=\"Log value\",DataLog!P331,\"\")","v":""},{"$f":"IF(DataLog!$C331=\"Log value\",DataLog!Q331,\"\")","v":""},{"$f":"IF(DataLog!$C331=\"Log value\",DataLog!R331,\"\")","v":""},{"$f":"IF(DataLog!$C331=\"Log value\",DataLog!S331,\"\")","v":""},{"$f":"IF(DataLog!$C331=\"Log value\",DataLog!T331,\"\")","v":""},{"$f":"IF(DataLog!$C331=\"Log value\",DataLog!U331,\"\")","v":""},{"$f":"IF(DataLog!$C331=\"Log value\",DataLog!V331,\"\")","v":""},{"$f":"IF(DataLog!$C331=\"Log value\",DataLog!W331,\"\")","v":""},{"$f":"IF(DataLog!$C331=\"Log value\",DataLog!X331,\"\")","v":""},{"$f":"IF(DataLog!$C331=\"Log value\",DataLog!Y331,\"\")","v":""},{"$f":"IF(DataLog!$C331=\"Log value\",DataLog!Z331,\"\")","v":""},{"$f":"IF(DataLog!$C331=\"Log value\",DataLog!AA331,\"\")","v":""},{"$f":"IF(DataLog!$C331=\"Log value\",DataLog!AB331,\"\")","v":""},{"$f":"IF(DataLog!$C331=\"Log value\",DataLog!AC331,\"\")","v":""},{"$f":"IF(DataLog!$C331=\"Log value\",DataLog!AD331,\"\")","v":""},{"$f":"IF(DataLog!$C331=\"Log value\",DataLog!AE331,\"\")","v":""},{"$f":"IF(DataLog!$C331=\"Log value\",DataLog!AF331,\"\")","v":""},{"$f":"IF(DataLog!$C331=\"Log value\",DataLog!AG331,\"\")","v":""},{"$f":"IF(DataLog!$C331=\"Log value\",DataLog!AH331,\"\")","v":""},{"$f":"IF(DataLog!$C331=\"Log value\",DataLog!AI331,\"\")","v":""},{"$f":"IF(DataLog!$C331=\"Log value\",DataLog!AJ331,\"\")","v":""},{"$f":"IF(DataLog!$C331=\"Log value\",DataLog!AK331,\"\")","v":""},{"$f":"IF(DataLog!$C331=\"Log value\",DataLog!AL331,\"\")","v":""},{"$f":"IF(DataLog!$C331=\"Log value\",DataLog!AM331,\"\")","v":""}]
[null,null,"Standard","Standard -  - ",null,null,{"$f":"IF(DataLog!$C332=\"Log value\",DataLog!D332&\"_\"&TEXT(DataLog!B332,\"åååå-mm-dd\"),\"\")","v":""},{"$f":"IF(DataLog!$C332=\"Log value\",DataLog!E332,\"\")","v":""},{"$f":"IF(DataLog!$C332=\"Log value\",DataLog!F332,\"\")","v":""},{"$f":"IF(DataLog!$C332=\"Log value\",DataLog!G332,\"\")","v":""},{"$f":"IF(DataLog!$C332=\"Log value\",DataLog!H332,\"\")","v":""},{"$f":"IF(DataLog!$C332=\"Log value\",DataLog!I332,\"\")","v":""},{"$f":"IF(DataLog!$C332=\"Log value\",DataLog!J332,\"\")","v":""},{"$f":"IF(DataLog!$C332=\"Log value\",DataLog!K332,\"\")","v":""},{"$f":"IF(DataLog!$C332=\"Log value\",DataLog!L332,\"\")","v":""},{"$f":"IF(DataLog!$C332=\"Log value\",DataLog!M332,\"\")","v":""},{"$f":"IF(DataLog!$C332=\"Log value\",DataLog!N332,\"\")","v":""},{"$f":"IF(DataLog!$C332=\"Log value\",DataLog!O332,\"\")","v":""},{"$f":"IF(DataLog!$C332=\"Log value\",DataLog!P332,\"\")","v":""},{"$f":"IF(DataLog!$C332=\"Log value\",DataLog!Q332,\"\")","v":""},{"$f":"IF(DataLog!$C332=\"Log value\",DataLog!R332,\"\")","v":""},{"$f":"IF(DataLog!$C332=\"Log value\",DataLog!S332,\"\")","v":""},{"$f":"IF(DataLog!$C332=\"Log value\",DataLog!T332,\"\")","v":""},{"$f":"IF(DataLog!$C332=\"Log value\",DataLog!U332,\"\")","v":""},{"$f":"IF(DataLog!$C332=\"Log value\",DataLog!V332,\"\")","v":""},{"$f":"IF(DataLog!$C332=\"Log value\",DataLog!W332,\"\")","v":""},{"$f":"IF(DataLog!$C332=\"Log value\",DataLog!X332,\"\")","v":""},{"$f":"IF(DataLog!$C332=\"Log value\",DataLog!Y332,\"\")","v":""},{"$f":"IF(DataLog!$C332=\"Log value\",DataLog!Z332,\"\")","v":""},{"$f":"IF(DataLog!$C332=\"Log value\",DataLog!AA332,\"\")","v":""},{"$f":"IF(DataLog!$C332=\"Log value\",DataLog!AB332,\"\")","v":""},{"$f":"IF(DataLog!$C332=\"Log value\",DataLog!AC332,\"\")","v":""},{"$f":"IF(DataLog!$C332=\"Log value\",DataLog!AD332,\"\")","v":""},{"$f":"IF(DataLog!$C332=\"Log value\",DataLog!AE332,\"\")","v":""},{"$f":"IF(DataLog!$C332=\"Log value\",DataLog!AF332,\"\")","v":""},{"$f":"IF(DataLog!$C332=\"Log value\",DataLog!AG332,\"\")","v":""},{"$f":"IF(DataLog!$C332=\"Log value\",DataLog!AH332,\"\")","v":""},{"$f":"IF(DataLog!$C332=\"Log value\",DataLog!AI332,\"\")","v":""},{"$f":"IF(DataLog!$C332=\"Log value\",DataLog!AJ332,\"\")","v":""},{"$f":"IF(DataLog!$C332=\"Log value\",DataLog!AK332,\"\")","v":""},{"$f":"IF(DataLog!$C332=\"Log value\",DataLog!AL332,\"\")","v":""},{"$f":"IF(DataLog!$C332=\"Log value\",DataLog!AM332,\"\")","v":""}]
[null,null,"Standard","Standard -  - ",null,null,{"$f":"IF(DataLog!$C333=\"Log value\",DataLog!D333&\"_\"&TEXT(DataLog!B333,\"åååå-mm-dd\"),\"\")","v":""},{"$f":"IF(DataLog!$C333=\"Log value\",DataLog!E333,\"\")","v":""},{"$f":"IF(DataLog!$C333=\"Log value\",DataLog!F333,\"\")","v":""},{"$f":"IF(DataLog!$C333=\"Log value\",DataLog!G333,\"\")","v":""},{"$f":"IF(DataLog!$C333=\"Log value\",DataLog!H333,\"\")","v":""},{"$f":"IF(DataLog!$C333=\"Log value\",DataLog!I333,\"\")","v":""},{"$f":"IF(DataLog!$C333=\"Log value\",DataLog!J333,\"\")","v":""},{"$f":"IF(DataLog!$C333=\"Log value\",DataLog!K333,\"\")","v":""},{"$f":"IF(DataLog!$C333=\"Log value\",DataLog!L333,\"\")","v":""},{"$f":"IF(DataLog!$C333=\"Log value\",DataLog!M333,\"\")","v":""},{"$f":"IF(DataLog!$C333=\"Log value\",DataLog!N333,\"\")","v":""},{"$f":"IF(DataLog!$C333=\"Log value\",DataLog!O333,\"\")","v":""},{"$f":"IF(DataLog!$C333=\"Log value\",DataLog!P333,\"\")","v":""},{"$f":"IF(DataLog!$C333=\"Log value\",DataLog!Q333,\"\")","v":""},{"$f":"IF(DataLog!$C333=\"Log value\",DataLog!R333,\"\")","v":""},{"$f":"IF(DataLog!$C333=\"Log value\",DataLog!S333,\"\")","v":""},{"$f":"IF(DataLog!$C333=\"Log value\",DataLog!T333,\"\")","v":""},{"$f":"IF(DataLog!$C333=\"Log value\",DataLog!U333,\"\")","v":""},{"$f":"IF(DataLog!$C333=\"Log value\",DataLog!V333,\"\")","v":""},{"$f":"IF(DataLog!$C333=\"Log value\",DataLog!W333,\"\")","v":""},{"$f":"IF(DataLog!$C333=\"Log value\",DataLog!X333,\"\")","v":""},{"$f":"IF(DataLog!$C333=\"Log value\",DataLog!Y333,\"\")","v":""},{"$f":"IF(DataLog!$C333=\"Log value\",DataLog!Z333,\"\")","v":""},{"$f":"IF(DataLog!$C333=\"Log value\",DataLog!AA333,\"\")","v":""},{"$f":"IF(DataLog!$C333=\"Log value\",DataLog!AB333,\"\")","v":""},{"$f":"IF(DataLog!$C333=\"Log value\",DataLog!AC333,\"\")","v":""},{"$f":"IF(DataLog!$C333=\"Log value\",DataLog!AD333,\"\")","v":""},{"$f":"IF(DataLog!$C333=\"Log value\",DataLog!AE333,\"\")","v":""},{"$f":"IF(DataLog!$C333=\"Log value\",DataLog!AF333,\"\")","v":""},{"$f":"IF(DataLog!$C333=\"Log value\",DataLog!AG333,\"\")","v":""},{"$f":"IF(DataLog!$C333=\"Log value\",DataLog!AH333,\"\")","v":""},{"$f":"IF(DataLog!$C333=\"Log value\",DataLog!AI333,\"\")","v":""},{"$f":"IF(DataLog!$C333=\"Log value\",DataLog!AJ333,\"\")","v":""},{"$f":"IF(DataLog!$C333=\"Log value\",DataLog!AK333,\"\")","v":""},{"$f":"IF(DataLog!$C333=\"Log value\",DataLog!AL333,\"\")","v":""},{"$f":"IF(DataLog!$C333=\"Log value\",DataLog!AM333,\"\")","v":""}]
[null,null,"Standard","Standard -  - ",null,null,{"$f":"IF(DataLog!$C334=\"Log value\",DataLog!D334&\"_\"&TEXT(DataLog!B334,\"åååå-mm-dd\"),\"\")","v":""},{"$f":"IF(DataLog!$C334=\"Log value\",DataLog!E334,\"\")","v":""},{"$f":"IF(DataLog!$C334=\"Log value\",DataLog!F334,\"\")","v":""},{"$f":"IF(DataLog!$C334=\"Log value\",DataLog!G334,\"\")","v":""},{"$f":"IF(DataLog!$C334=\"Log value\",DataLog!H334,\"\")","v":""},{"$f":"IF(DataLog!$C334=\"Log value\",DataLog!I334,\"\")","v":""},{"$f":"IF(DataLog!$C334=\"Log value\",DataLog!J334,\"\")","v":""},{"$f":"IF(DataLog!$C334=\"Log value\",DataLog!K334,\"\")","v":""},{"$f":"IF(DataLog!$C334=\"Log value\",DataLog!L334,\"\")","v":""},{"$f":"IF(DataLog!$C334=\"Log value\",DataLog!M334,\"\")","v":""},{"$f":"IF(DataLog!$C334=\"Log value\",DataLog!N334,\"\")","v":""},{"$f":"IF(DataLog!$C334=\"Log value\",DataLog!O334,\"\")","v":""},{"$f":"IF(DataLog!$C334=\"Log value\",DataLog!P334,\"\")","v":""},{"$f":"IF(DataLog!$C334=\"Log value\",DataLog!Q334,\"\")","v":""},{"$f":"IF(DataLog!$C334=\"Log value\",DataLog!R334,\"\")","v":""},{"$f":"IF(DataLog!$C334=\"Log value\",DataLog!S334,\"\")","v":""},{"$f":"IF(DataLog!$C334=\"Log value\",DataLog!T334,\"\")","v":""},{"$f":"IF(DataLog!$C334=\"Log value\",DataLog!U334,\"\")","v":""},{"$f":"IF(DataLog!$C334=\"Log value\",DataLog!V334,\"\")","v":""},{"$f":"IF(DataLog!$C334=\"Log value\",DataLog!W334,\"\")","v":""},{"$f":"IF(DataLog!$C334=\"Log value\",DataLog!X334,\"\")","v":""},{"$f":"IF(DataLog!$C334=\"Log value\",DataLog!Y334,\"\")","v":""},{"$f":"IF(DataLog!$C334=\"Log value\",DataLog!Z334,\"\")","v":""},{"$f":"IF(DataLog!$C334=\"Log value\",DataLog!AA334,\"\")","v":""},{"$f":"IF(DataLog!$C334=\"Log value\",DataLog!AB334,\"\")","v":""},{"$f":"IF(DataLog!$C334=\"Log value\",DataLog!AC334,\"\")","v":""},{"$f":"IF(DataLog!$C334=\"Log value\",DataLog!AD334,\"\")","v":""},{"$f":"IF(DataLog!$C334=\"Log value\",DataLog!AE334,\"\")","v":""},{"$f":"IF(DataLog!$C334=\"Log value\",DataLog!AF334,\"\")","v":""},{"$f":"IF(DataLog!$C334=\"Log value\",DataLog!AG334,\"\")","v":""},{"$f":"IF(DataLog!$C334=\"Log value\",DataLog!AH334,\"\")","v":""},{"$f":"IF(DataLog!$C334=\"Log value\",DataLog!AI334,\"\")","v":""},{"$f":"IF(DataLog!$C334=\"Log value\",DataLog!AJ334,\"\")","v":""},{"$f":"IF(DataLog!$C334=\"Log value\",DataLog!AK334,\"\")","v":""},{"$f":"IF(DataLog!$C334=\"Log value\",DataLog!AL334,\"\")","v":""},{"$f":"IF(DataLog!$C334=\"Log value\",DataLog!AM334,\"\")","v":""}]
[null,null,"Standard","Standard -  - ",null,null,{"$f":"IF(DataLog!$C335=\"Log value\",DataLog!D335&\"_\"&TEXT(DataLog!B335,\"åååå-mm-dd\"),\"\")","v":""},{"$f":"IF(DataLog!$C335=\"Log value\",DataLog!E335,\"\")","v":""},{"$f":"IF(DataLog!$C335=\"Log value\",DataLog!F335,\"\")","v":""},{"$f":"IF(DataLog!$C335=\"Log value\",DataLog!G335,\"\")","v":""},{"$f":"IF(DataLog!$C335=\"Log value\",DataLog!H335,\"\")","v":""},{"$f":"IF(DataLog!$C335=\"Log value\",DataLog!I335,\"\")","v":""},{"$f":"IF(DataLog!$C335=\"Log value\",DataLog!J335,\"\")","v":""},{"$f":"IF(DataLog!$C335=\"Log value\",DataLog!K335,\"\")","v":""},{"$f":"IF(DataLog!$C335=\"Log value\",DataLog!L335,\"\")","v":""},{"$f":"IF(DataLog!$C335=\"Log value\",DataLog!M335,\"\")","v":""},{"$f":"IF(DataLog!$C335=\"Log value\",DataLog!N335,\"\")","v":""},{"$f":"IF(DataLog!$C335=\"Log value\",DataLog!O335,\"\")","v":""},{"$f":"IF(DataLog!$C335=\"Log value\",DataLog!P335,\"\")","v":""},{"$f":"IF(DataLog!$C335=\"Log value\",DataLog!Q335,\"\")","v":""},{"$f":"IF(DataLog!$C335=\"Log value\",DataLog!R335,\"\")","v":""},{"$f":"IF(DataLog!$C335=\"Log value\",DataLog!S335,\"\")","v":""},{"$f":"IF(DataLog!$C335=\"Log value\",DataLog!T335,\"\")","v":""},{"$f":"IF(DataLog!$C335=\"Log value\",DataLog!U335,\"\")","v":""},{"$f":"IF(DataLog!$C335=\"Log value\",DataLog!V335,\"\")","v":""},{"$f":"IF(DataLog!$C335=\"Log value\",DataLog!W335,\"\")","v":""},{"$f":"IF(DataLog!$C335=\"Log value\",DataLog!X335,\"\")","v":""},{"$f":"IF(DataLog!$C335=\"Log value\",DataLog!Y335,\"\")","v":""},{"$f":"IF(DataLog!$C335=\"Log value\",DataLog!Z335,\"\")","v":""},{"$f":"IF(DataLog!$C335=\"Log value\",DataLog!AA335,\"\")","v":""},{"$f":"IF(DataLog!$C335=\"Log value\",DataLog!AB335,\"\")","v":""},{"$f":"IF(DataLog!$C335=\"Log value\",DataLog!AC335,\"\")","v":""},{"$f":"IF(DataLog!$C335=\"Log value\",DataLog!AD335,\"\")","v":""},{"$f":"IF(DataLog!$C335=\"Log value\",DataLog!AE335,\"\")","v":""},{"$f":"IF(DataLog!$C335=\"Log value\",DataLog!AF335,\"\")","v":""},{"$f":"IF(DataLog!$C335=\"Log value\",DataLog!AG335,\"\")","v":""},{"$f":"IF(DataLog!$C335=\"Log value\",DataLog!AH335,\"\")","v":""},{"$f":"IF(DataLog!$C335=\"Log value\",DataLog!AI335,\"\")","v":""},{"$f":"IF(DataLog!$C335=\"Log value\",DataLog!AJ335,\"\")","v":""},{"$f":"IF(DataLog!$C335=\"Log value\",DataLog!AK335,\"\")","v":""},{"$f":"IF(DataLog!$C335=\"Log value\",DataLog!AL335,\"\")","v":""},{"$f":"IF(DataLog!$C335=\"Log value\",DataLog!AM335,\"\")","v":""}]
[null,null,"Standard","Standard -  - ",null,null,{"$f":"IF(DataLog!$C336=\"Log value\",DataLog!D336&\"_\"&TEXT(DataLog!B336,\"åååå-mm-dd\"),\"\")","v":""},{"$f":"IF(DataLog!$C336=\"Log value\",DataLog!E336,\"\")","v":""},{"$f":"IF(DataLog!$C336=\"Log value\",DataLog!F336,\"\")","v":""},{"$f":"IF(DataLog!$C336=\"Log value\",DataLog!G336,\"\")","v":""},{"$f":"IF(DataLog!$C336=\"Log value\",DataLog!H336,\"\")","v":""},{"$f":"IF(DataLog!$C336=\"Log value\",DataLog!I336,\"\")","v":""},{"$f":"IF(DataLog!$C336=\"Log value\",DataLog!J336,\"\")","v":""},{"$f":"IF(DataLog!$C336=\"Log value\",DataLog!K336,\"\")","v":""},{"$f":"IF(DataLog!$C336=\"Log value\",DataLog!L336,\"\")","v":""},{"$f":"IF(DataLog!$C336=\"Log value\",DataLog!M336,\"\")","v":""},{"$f":"IF(DataLog!$C336=\"Log value\",DataLog!N336,\"\")","v":""},{"$f":"IF(DataLog!$C336=\"Log value\",DataLog!O336,\"\")","v":""},{"$f":"IF(DataLog!$C336=\"Log value\",DataLog!P336,\"\")","v":""},{"$f":"IF(DataLog!$C336=\"Log value\",DataLog!Q336,\"\")","v":""},{"$f":"IF(DataLog!$C336=\"Log value\",DataLog!R336,\"\")","v":""},{"$f":"IF(DataLog!$C336=\"Log value\",DataLog!S336,\"\")","v":""},{"$f":"IF(DataLog!$C336=\"Log value\",DataLog!T336,\"\")","v":""},{"$f":"IF(DataLog!$C336=\"Log value\",DataLog!U336,\"\")","v":""},{"$f":"IF(DataLog!$C336=\"Log value\",DataLog!V336,\"\")","v":""},{"$f":"IF(DataLog!$C336=\"Log value\",DataLog!W336,\"\")","v":""},{"$f":"IF(DataLog!$C336=\"Log value\",DataLog!X336,\"\")","v":""},{"$f":"IF(DataLog!$C336=\"Log value\",DataLog!Y336,\"\")","v":""},{"$f":"IF(DataLog!$C336=\"Log value\",DataLog!Z336,\"\")","v":""},{"$f":"IF(DataLog!$C336=\"Log value\",DataLog!AA336,\"\")","v":""},{"$f":"IF(DataLog!$C336=\"Log value\",DataLog!AB336,\"\")","v":""},{"$f":"IF(DataLog!$C336=\"Log value\",DataLog!AC336,\"\")","v":""},{"$f":"IF(DataLog!$C336=\"Log value\",DataLog!AD336,\"\")","v":""},{"$f":"IF(DataLog!$C336=\"Log value\",DataLog!AE336,\"\")","v":""},{"$f":"IF(DataLog!$C336=\"Log value\",DataLog!AF336,\"\")","v":""},{"$f":"IF(DataLog!$C336=\"Log value\",DataLog!AG336,\"\")","v":""},{"$f":"IF(DataLog!$C336=\"Log value\",DataLog!AH336,\"\")","v":""},{"$f":"IF(DataLog!$C336=\"Log value\",DataLog!AI336,\"\")","v":""},{"$f":"IF(DataLog!$C336=\"Log value\",DataLog!AJ336,\"\")","v":""},{"$f":"IF(DataLog!$C336=\"Log value\",DataLog!AK336,\"\")","v":""},{"$f":"IF(DataLog!$C336=\"Log value\",DataLog!AL336,\"\")","v":""},{"$f":"IF(DataLog!$C336=\"Log value\",DataLog!AM336,\"\")","v":""}]
[null,null,"Standard","Standard -  - ",null,null,{"$f":"IF(DataLog!$C337=\"Log value\",DataLog!D337&\"_\"&TEXT(DataLog!B337,\"åååå-mm-dd\"),\"\")","v":""},{"$f":"IF(DataLog!$C337=\"Log value\",DataLog!E337,\"\")","v":""},{"$f":"IF(DataLog!$C337=\"Log value\",DataLog!F337,\"\")","v":""},{"$f":"IF(DataLog!$C337=\"Log value\",DataLog!G337,\"\")","v":""},{"$f":"IF(DataLog!$C337=\"Log value\",DataLog!H337,\"\")","v":""},{"$f":"IF(DataLog!$C337=\"Log value\",DataLog!I337,\"\")","v":""},{"$f":"IF(DataLog!$C337=\"Log value\",DataLog!J337,\"\")","v":""},{"$f":"IF(DataLog!$C337=\"Log value\",DataLog!K337,\"\")","v":""},{"$f":"IF(DataLog!$C337=\"Log value\",DataLog!L337,\"\")","v":""},{"$f":"IF(DataLog!$C337=\"Log value\",DataLog!M337,\"\")","v":""},{"$f":"IF(DataLog!$C337=\"Log value\",DataLog!N337,\"\")","v":""},{"$f":"IF(DataLog!$C337=\"Log value\",DataLog!O337,\"\")","v":""},{"$f":"IF(DataLog!$C337=\"Log value\",DataLog!P337,\"\")","v":""},{"$f":"IF(DataLog!$C337=\"Log value\",DataLog!Q337,\"\")","v":""},{"$f":"IF(DataLog!$C337=\"Log value\",DataLog!R337,\"\")","v":""},{"$f":"IF(DataLog!$C337=\"Log value\",DataLog!S337,\"\")","v":""},{"$f":"IF(DataLog!$C337=\"Log value\",DataLog!T337,\"\")","v":""},{"$f":"IF(DataLog!$C337=\"Log value\",DataLog!U337,\"\")","v":""},{"$f":"IF(DataLog!$C337=\"Log value\",DataLog!V337,\"\")","v":""},{"$f":"IF(DataLog!$C337=\"Log value\",DataLog!W337,\"\")","v":""},{"$f":"IF(DataLog!$C337=\"Log value\",DataLog!X337,\"\")","v":""},{"$f":"IF(DataLog!$C337=\"Log value\",DataLog!Y337,\"\")","v":""},{"$f":"IF(DataLog!$C337=\"Log value\",DataLog!Z337,\"\")","v":""},{"$f":"IF(DataLog!$C337=\"Log value\",DataLog!AA337,\"\")","v":""},{"$f":"IF(DataLog!$C337=\"Log value\",DataLog!AB337,\"\")","v":""},{"$f":"IF(DataLog!$C337=\"Log value\",DataLog!AC337,\"\")","v":""},{"$f":"IF(DataLog!$C337=\"Log value\",DataLog!AD337,\"\")","v":""},{"$f":"IF(DataLog!$C337=\"Log value\",DataLog!AE337,\"\")","v":""},{"$f":"IF(DataLog!$C337=\"Log value\",DataLog!AF337,\"\")","v":""},{"$f":"IF(DataLog!$C337=\"Log value\",DataLog!AG337,\"\")","v":""},{"$f":"IF(DataLog!$C337=\"Log value\",DataLog!AH337,\"\")","v":""},{"$f":"IF(DataLog!$C337=\"Log value\",DataLog!AI337,\"\")","v":""},{"$f":"IF(DataLog!$C337=\"Log value\",DataLog!AJ337,\"\")","v":""},{"$f":"IF(DataLog!$C337=\"Log value\",DataLog!AK337,\"\")","v":""},{"$f":"IF(DataLog!$C337=\"Log value\",DataLog!AL337,\"\")","v":""},{"$f":"IF(DataLog!$C337=\"Log value\",DataLog!AM337,\"\")","v":""}]
[null,null,"Standard","Standard -  - ",null,null,{"$f":"IF(DataLog!$C338=\"Log value\",DataLog!D338&\"_\"&TEXT(DataLog!B338,\"åååå-mm-dd\"),\"\")","v":""},{"$f":"IF(DataLog!$C338=\"Log value\",DataLog!E338,\"\")","v":""},{"$f":"IF(DataLog!$C338=\"Log value\",DataLog!F338,\"\")","v":""},{"$f":"IF(DataLog!$C338=\"Log value\",DataLog!G338,\"\")","v":""},{"$f":"IF(DataLog!$C338=\"Log value\",DataLog!H338,\"\")","v":""},{"$f":"IF(DataLog!$C338=\"Log value\",DataLog!I338,\"\")","v":""},{"$f":"IF(DataLog!$C338=\"Log value\",DataLog!J338,\"\")","v":""},{"$f":"IF(DataLog!$C338=\"Log value\",DataLog!K338,\"\")","v":""},{"$f":"IF(DataLog!$C338=\"Log value\",DataLog!L338,\"\")","v":""},{"$f":"IF(DataLog!$C338=\"Log value\",DataLog!M338,\"\")","v":""},{"$f":"IF(DataLog!$C338=\"Log value\",DataLog!N338,\"\")","v":""},{"$f":"IF(DataLog!$C338=\"Log value\",DataLog!O338,\"\")","v":""},{"$f":"IF(DataLog!$C338=\"Log value\",DataLog!P338,\"\")","v":""},{"$f":"IF(DataLog!$C338=\"Log value\",DataLog!Q338,\"\")","v":""},{"$f":"IF(DataLog!$C338=\"Log value\",DataLog!R338,\"\")","v":""},{"$f":"IF(DataLog!$C338=\"Log value\",DataLog!S338,\"\")","v":""},{"$f":"IF(DataLog!$C338=\"Log value\",DataLog!T338,\"\")","v":""},{"$f":"IF(DataLog!$C338=\"Log value\",DataLog!U338,\"\")","v":""},{"$f":"IF(DataLog!$C338=\"Log value\",DataLog!V338,\"\")","v":""},{"$f":"IF(DataLog!$C338=\"Log value\",DataLog!W338,\"\")","v":""},{"$f":"IF(DataLog!$C338=\"Log value\",DataLog!X338,\"\")","v":""},{"$f":"IF(DataLog!$C338=\"Log value\",DataLog!Y338,\"\")","v":""},{"$f":"IF(DataLog!$C338=\"Log value\",DataLog!Z338,\"\")","v":""},{"$f":"IF(DataLog!$C338=\"Log value\",DataLog!AA338,\"\")","v":""},{"$f":"IF(DataLog!$C338=\"Log value\",DataLog!AB338,\"\")","v":""},{"$f":"IF(DataLog!$C338=\"Log value\",DataLog!AC338,\"\")","v":""},{"$f":"IF(DataLog!$C338=\"Log value\",DataLog!AD338,\"\")","v":""},{"$f":"IF(DataLog!$C338=\"Log value\",DataLog!AE338,\"\")","v":""},{"$f":"IF(DataLog!$C338=\"Log value\",DataLog!AF338,\"\")","v":""},{"$f":"IF(DataLog!$C338=\"Log value\",DataLog!AG338,\"\")","v":""},{"$f":"IF(DataLog!$C338=\"Log value\",DataLog!AH338,\"\")","v":""},{"$f":"IF(DataLog!$C338=\"Log value\",DataLog!AI338,\"\")","v":""},{"$f":"IF(DataLog!$C338=\"Log value\",DataLog!AJ338,\"\")","v":""},{"$f":"IF(DataLog!$C338=\"Log value\",DataLog!AK338,\"\")","v":""},{"$f":"IF(DataLog!$C338=\"Log value\",DataLog!AL338,\"\")","v":""},{"$f":"IF(DataLog!$C338=\"Log value\",DataLog!AM338,\"\")","v":""}]
[null,null,"Standard","Standard -  - ",null,null,{"$f":"IF(DataLog!$C339=\"Log value\",DataLog!D339&\"_\"&TEXT(DataLog!B339,\"åååå-mm-dd\"),\"\")","v":""},{"$f":"IF(DataLog!$C339=\"Log value\",DataLog!E339,\"\")","v":""},{"$f":"IF(DataLog!$C339=\"Log value\",DataLog!F339,\"\")","v":""},{"$f":"IF(DataLog!$C339=\"Log value\",DataLog!G339,\"\")","v":""},{"$f":"IF(DataLog!$C339=\"Log value\",DataLog!H339,\"\")","v":""},{"$f":"IF(DataLog!$C339=\"Log value\",DataLog!I339,\"\")","v":""},{"$f":"IF(DataLog!$C339=\"Log value\",DataLog!J339,\"\")","v":""},{"$f":"IF(DataLog!$C339=\"Log value\",DataLog!K339,\"\")","v":""},{"$f":"IF(DataLog!$C339=\"Log value\",DataLog!L339,\"\")","v":""},{"$f":"IF(DataLog!$C339=\"Log value\",DataLog!M339,\"\")","v":""},{"$f":"IF(DataLog!$C339=\"Log value\",DataLog!N339,\"\")","v":""},{"$f":"IF(DataLog!$C339=\"Log value\",DataLog!O339,\"\")","v":""},{"$f":"IF(DataLog!$C339=\"Log value\",DataLog!P339,\"\")","v":""},{"$f":"IF(DataLog!$C339=\"Log value\",DataLog!Q339,\"\")","v":""},{"$f":"IF(DataLog!$C339=\"Log value\",DataLog!R339,\"\")","v":""},{"$f":"IF(DataLog!$C339=\"Log value\",DataLog!S339,\"\")","v":""},{"$f":"IF(DataLog!$C339=\"Log value\",DataLog!T339,\"\")","v":""},{"$f":"IF(DataLog!$C339=\"Log value\",DataLog!U339,\"\")","v":""},{"$f":"IF(DataLog!$C339=\"Log value\",DataLog!V339,\"\")","v":""},{"$f":"IF(DataLog!$C339=\"Log value\",DataLog!W339,\"\")","v":""},{"$f":"IF(DataLog!$C339=\"Log value\",DataLog!X339,\"\")","v":""},{"$f":"IF(DataLog!$C339=\"Log value\",DataLog!Y339,\"\")","v":""},{"$f":"IF(DataLog!$C339=\"Log value\",DataLog!Z339,\"\")","v":""},{"$f":"IF(DataLog!$C339=\"Log value\",DataLog!AA339,\"\")","v":""},{"$f":"IF(DataLog!$C339=\"Log value\",DataLog!AB339,\"\")","v":""},{"$f":"IF(DataLog!$C339=\"Log value\",DataLog!AC339,\"\")","v":""},{"$f":"IF(DataLog!$C339=\"Log value\",DataLog!AD339,\"\")","v":""},{"$f":"IF(DataLog!$C339=\"Log value\",DataLog!AE339,\"\")","v":""},{"$f":"IF(DataLog!$C339=\"Log value\",DataLog!AF339,\"\")","v":""},{"$f":"IF(DataLog!$C339=\"Log value\",DataLog!AG339,\"\")","v":""},{"$f":"IF(DataLog!$C339=\"Log value\",DataLog!AH339,\"\")","v":""},{"$f":"IF(DataLog!$C339=\"Log value\",DataLog!AI339,\"\")","v":""},{"$f":"IF(DataLog!$C339=\"Log value\",DataLog!AJ339,\"\")","v":""},{"$f":"IF(DataLog!$C339=\"Log value\",DataLog!AK339,\"\")","v":""},{"$f":"IF(DataLog!$C339=\"Log value\",DataLog!AL339,\"\")","v":""},{"$f":"IF(DataLog!$C339=\"Log value\",DataLog!AM339,\"\")","v":""}]
[null,null,"Standard","Standard -  - ",null,null,{"$f":"IF(DataLog!$C340=\"Log value\",DataLog!D340&\"_\"&TEXT(DataLog!B340,\"åååå-mm-dd\"),\"\")","v":""},{"$f":"IF(DataLog!$C340=\"Log value\",DataLog!E340,\"\")","v":""},{"$f":"IF(DataLog!$C340=\"Log value\",DataLog!F340,\"\")","v":""},{"$f":"IF(DataLog!$C340=\"Log value\",DataLog!G340,\"\")","v":""},{"$f":"IF(DataLog!$C340=\"Log value\",DataLog!H340,\"\")","v":""},{"$f":"IF(DataLog!$C340=\"Log value\",DataLog!I340,\"\")","v":""},{"$f":"IF(DataLog!$C340=\"Log value\",DataLog!J340,\"\")","v":""},{"$f":"IF(DataLog!$C340=\"Log value\",DataLog!K340,\"\")","v":""},{"$f":"IF(DataLog!$C340=\"Log value\",DataLog!L340,\"\")","v":""},{"$f":"IF(DataLog!$C340=\"Log value\",DataLog!M340,\"\")","v":""},{"$f":"IF(DataLog!$C340=\"Log value\",DataLog!N340,\"\")","v":""},{"$f":"IF(DataLog!$C340=\"Log value\",DataLog!O340,\"\")","v":""},{"$f":"IF(DataLog!$C340=\"Log value\",DataLog!P340,\"\")","v":""},{"$f":"IF(DataLog!$C340=\"Log value\",DataLog!Q340,\"\")","v":""},{"$f":"IF(DataLog!$C340=\"Log value\",DataLog!R340,\"\")","v":""},{"$f":"IF(DataLog!$C340=\"Log value\",DataLog!S340,\"\")","v":""},{"$f":"IF(DataLog!$C340=\"Log value\",DataLog!T340,\"\")","v":""},{"$f":"IF(DataLog!$C340=\"Log value\",DataLog!U340,\"\")","v":""},{"$f":"IF(DataLog!$C340=\"Log value\",DataLog!V340,\"\")","v":""},{"$f":"IF(DataLog!$C340=\"Log value\",DataLog!W340,\"\")","v":""},{"$f":"IF(DataLog!$C340=\"Log value\",DataLog!X340,\"\")","v":""},{"$f":"IF(DataLog!$C340=\"Log value\",DataLog!Y340,\"\")","v":""},{"$f":"IF(DataLog!$C340=\"Log value\",DataLog!Z340,\"\")","v":""},{"$f":"IF(DataLog!$C340=\"Log value\",DataLog!AA340,\"\")","v":""},{"$f":"IF(DataLog!$C340=\"Log value\",DataLog!AB340,\"\")","v":""},{"$f":"IF(DataLog!$C340=\"Log value\",DataLog!AC340,\"\")","v":""},{"$f":"IF(DataLog!$C340=\"Log value\",DataLog!AD340,\"\")","v":""},{"$f":"IF(DataLog!$C340=\"Log value\",DataLog!AE340,\"\")","v":""},{"$f":"IF(DataLog!$C340=\"Log value\",DataLog!AF340,\"\")","v":""},{"$f":"IF(DataLog!$C340=\"Log value\",DataLog!AG340,\"\")","v":""},{"$f":"IF(DataLog!$C340=\"Log value\",DataLog!AH340,\"\")","v":""},{"$f":"IF(DataLog!$C340=\"Log value\",DataLog!AI340,\"\")","v":""},{"$f":"IF(DataLog!$C340=\"Log value\",DataLog!AJ340,\"\")","v":""},{"$f":"IF(DataLog!$C340=\"Log value\",DataLog!AK340,\"\")","v":""},{"$f":"IF(DataLog!$C340=\"Log value\",DataLog!AL340,\"\")","v":""},{"$f":"IF(DataLog!$C340=\"Log value\",DataLog!AM340,\"\")","v":""}]
[null,null,"Standard","Standard -  - ",null,null,{"$f":"IF(DataLog!$C341=\"Log value\",DataLog!D341&\"_\"&TEXT(DataLog!B341,\"åååå-mm-dd\"),\"\")","v":""},{"$f":"IF(DataLog!$C341=\"Log value\",DataLog!E341,\"\")","v":""},{"$f":"IF(DataLog!$C341=\"Log value\",DataLog!F341,\"\")","v":""},{"$f":"IF(DataLog!$C341=\"Log value\",DataLog!G341,\"\")","v":""},{"$f":"IF(DataLog!$C341=\"Log value\",DataLog!H341,\"\")","v":""},{"$f":"IF(DataLog!$C341=\"Log value\",DataLog!I341,\"\")","v":""},{"$f":"IF(DataLog!$C341=\"Log value\",DataLog!J341,\"\")","v":""},{"$f":"IF(DataLog!$C341=\"Log value\",DataLog!K341,\"\")","v":""},{"$f":"IF(DataLog!$C341=\"Log value\",DataLog!L341,\"\")","v":""},{"$f":"IF(DataLog!$C341=\"Log value\",DataLog!M341,\"\")","v":""},{"$f":"IF(DataLog!$C341=\"Log value\",DataLog!N341,\"\")","v":""},{"$f":"IF(DataLog!$C341=\"Log value\",DataLog!O341,\"\")","v":""},{"$f":"IF(DataLog!$C341=\"Log value\",DataLog!P341,\"\")","v":""},{"$f":"IF(DataLog!$C341=\"Log value\",DataLog!Q341,\"\")","v":""},{"$f":"IF(DataLog!$C341=\"Log value\",DataLog!R341,\"\")","v":""},{"$f":"IF(DataLog!$C341=\"Log value\",DataLog!S341,\"\")","v":""},{"$f":"IF(DataLog!$C341=\"Log value\",DataLog!T341,\"\")","v":""},{"$f":"IF(DataLog!$C341=\"Log value\",DataLog!U341,\"\")","v":""},{"$f":"IF(DataLog!$C341=\"Log value\",DataLog!V341,\"\")","v":""},{"$f":"IF(DataLog!$C341=\"Log value\",DataLog!W341,\"\")","v":""},{"$f":"IF(DataLog!$C341=\"Log value\",DataLog!X341,\"\")","v":""},{"$f":"IF(DataLog!$C341=\"Log value\",DataLog!Y341,\"\")","v":""},{"$f":"IF(DataLog!$C341=\"Log value\",DataLog!Z341,\"\")","v":""},{"$f":"IF(DataLog!$C341=\"Log value\",DataLog!AA341,\"\")","v":""},{"$f":"IF(DataLog!$C341=\"Log value\",DataLog!AB341,\"\")","v":""},{"$f":"IF(DataLog!$C341=\"Log value\",DataLog!AC341,\"\")","v":""},{"$f":"IF(DataLog!$C341=\"Log value\",DataLog!AD341,\"\")","v":""},{"$f":"IF(DataLog!$C341=\"Log value\",DataLog!AE341,\"\")","v":""},{"$f":"IF(DataLog!$C341=\"Log value\",DataLog!AF341,\"\")","v":""},{"$f":"IF(DataLog!$C341=\"Log value\",DataLog!AG341,\"\")","v":""},{"$f":"IF(DataLog!$C341=\"Log value\",DataLog!AH341,\"\")","v":""},{"$f":"IF(DataLog!$C341=\"Log value\",DataLog!AI341,\"\")","v":""},{"$f":"IF(DataLog!$C341=\"Log value\",DataLog!AJ341,\"\")","v":""},{"$f":"IF(DataLog!$C341=\"Log value\",DataLog!AK341,\"\")","v":""},{"$f":"IF(DataLog!$C341=\"Log value\",DataLog!AL341,\"\")","v":""},{"$f":"IF(DataLog!$C341=\"Log value\",DataLog!AM341,\"\")","v":""}]
[null,null,"Standard","Standard -  - ",null,null,{"$f":"IF(DataLog!$C342=\"Log value\",DataLog!D342&\"_\"&TEXT(DataLog!B342,\"åååå-mm-dd\"),\"\")","v":""},{"$f":"IF(DataLog!$C342=\"Log value\",DataLog!E342,\"\")","v":""},{"$f":"IF(DataLog!$C342=\"Log value\",DataLog!F342,\"\")","v":""},{"$f":"IF(DataLog!$C342=\"Log value\",DataLog!G342,\"\")","v":""},{"$f":"IF(DataLog!$C342=\"Log value\",DataLog!H342,\"\")","v":""},{"$f":"IF(DataLog!$C342=\"Log value\",DataLog!I342,\"\")","v":""},{"$f":"IF(DataLog!$C342=\"Log value\",DataLog!J342,\"\")","v":""},{"$f":"IF(DataLog!$C342=\"Log value\",DataLog!K342,\"\")","v":""},{"$f":"IF(DataLog!$C342=\"Log value\",DataLog!L342,\"\")","v":""},{"$f":"IF(DataLog!$C342=\"Log value\",DataLog!M342,\"\")","v":""},{"$f":"IF(DataLog!$C342=\"Log value\",DataLog!N342,\"\")","v":""},{"$f":"IF(DataLog!$C342=\"Log value\",DataLog!O342,\"\")","v":""},{"$f":"IF(DataLog!$C342=\"Log value\",DataLog!P342,\"\")","v":""},{"$f":"IF(DataLog!$C342=\"Log value\",DataLog!Q342,\"\")","v":""},{"$f":"IF(DataLog!$C342=\"Log value\",DataLog!R342,\"\")","v":""},{"$f":"IF(DataLog!$C342=\"Log value\",DataLog!S342,\"\")","v":""},{"$f":"IF(DataLog!$C342=\"Log value\",DataLog!T342,\"\")","v":""},{"$f":"IF(DataLog!$C342=\"Log value\",DataLog!U342,\"\")","v":""},{"$f":"IF(DataLog!$C342=\"Log value\",DataLog!V342,\"\")","v":""},{"$f":"IF(DataLog!$C342=\"Log value\",DataLog!W342,\"\")","v":""},{"$f":"IF(DataLog!$C342=\"Log value\",DataLog!X342,\"\")","v":""},{"$f":"IF(DataLog!$C342=\"Log value\",DataLog!Y342,\"\")","v":""},{"$f":"IF(DataLog!$C342=\"Log value\",DataLog!Z342,\"\")","v":""},{"$f":"IF(DataLog!$C342=\"Log value\",DataLog!AA342,\"\")","v":""},{"$f":"IF(DataLog!$C342=\"Log value\",DataLog!AB342,\"\")","v":""},{"$f":"IF(DataLog!$C342=\"Log value\",DataLog!AC342,\"\")","v":""},{"$f":"IF(DataLog!$C342=\"Log value\",DataLog!AD342,\"\")","v":""},{"$f":"IF(DataLog!$C342=\"Log value\",DataLog!AE342,\"\")","v":""},{"$f":"IF(DataLog!$C342=\"Log value\",DataLog!AF342,\"\")","v":""},{"$f":"IF(DataLog!$C342=\"Log value\",DataLog!AG342,\"\")","v":""},{"$f":"IF(DataLog!$C342=\"Log value\",DataLog!AH342,\"\")","v":""},{"$f":"IF(DataLog!$C342=\"Log value\",DataLog!AI342,\"\")","v":""},{"$f":"IF(DataLog!$C342=\"Log value\",DataLog!AJ342,\"\")","v":""},{"$f":"IF(DataLog!$C342=\"Log value\",DataLog!AK342,\"\")","v":""},{"$f":"IF(DataLog!$C342=\"Log value\",DataLog!AL342,\"\")","v":""},{"$f":"IF(DataLog!$C342=\"Log value\",DataLog!AM342,\"\")","v":""}]
[null,null,"Standard","Standard -  - ",null,null,{"$f":"IF(DataLog!$C343=\"Log value\",DataLog!D343&\"_\"&TEXT(DataLog!B343,\"åååå-mm-dd\"),\"\")","v":""},{"$f":"IF(DataLog!$C343=\"Log value\",DataLog!E343,\"\")","v":""},{"$f":"IF(DataLog!$C343=\"Log value\",DataLog!F343,\"\")","v":""},{"$f":"IF(DataLog!$C343=\"Log value\",DataLog!G343,\"\")","v":""},{"$f":"IF(DataLog!$C343=\"Log value\",DataLog!H343,\"\")","v":""},{"$f":"IF(DataLog!$C343=\"Log value\",DataLog!I343,\"\")","v":""},{"$f":"IF(DataLog!$C343=\"Log value\",DataLog!J343,\"\")","v":""},{"$f":"IF(DataLog!$C343=\"Log value\",DataLog!K343,\"\")","v":""},{"$f":"IF(DataLog!$C343=\"Log value\",DataLog!L343,\"\")","v":""},{"$f":"IF(DataLog!$C343=\"Log value\",DataLog!M343,\"\")","v":""},{"$f":"IF(DataLog!$C343=\"Log value\",DataLog!N343,\"\")","v":""},{"$f":"IF(DataLog!$C343=\"Log value\",DataLog!O343,\"\")","v":""},{"$f":"IF(DataLog!$C343=\"Log value\",DataLog!P343,\"\")","v":""},{"$f":"IF(DataLog!$C343=\"Log value\",DataLog!Q343,\"\")","v":""},{"$f":"IF(DataLog!$C343=\"Log value\",DataLog!R343,\"\")","v":""},{"$f":"IF(DataLog!$C343=\"Log value\",DataLog!S343,\"\")","v":""},{"$f":"IF(DataLog!$C343=\"Log value\",DataLog!T343,\"\")","v":""},{"$f":"IF(DataLog!$C343=\"Log value\",DataLog!U343,\"\")","v":""},{"$f":"IF(DataLog!$C343=\"Log value\",DataLog!V343,\"\")","v":""},{"$f":"IF(DataLog!$C343=\"Log value\",DataLog!W343,\"\")","v":""},{"$f":"IF(DataLog!$C343=\"Log value\",DataLog!X343,\"\")","v":""},{"$f":"IF(DataLog!$C343=\"Log value\",DataLog!Y343,\"\")","v":""},{"$f":"IF(DataLog!$C343=\"Log value\",DataLog!Z343,\"\")","v":""},{"$f":"IF(DataLog!$C343=\"Log value\",DataLog!AA343,\"\")","v":""},{"$f":"IF(DataLog!$C343=\"Log value\",DataLog!AB343,\"\")","v":""},{"$f":"IF(DataLog!$C343=\"Log value\",DataLog!AC343,\"\")","v":""},{"$f":"IF(DataLog!$C343=\"Log value\",DataLog!AD343,\"\")","v":""},{"$f":"IF(DataLog!$C343=\"Log value\",DataLog!AE343,\"\")","v":""},{"$f":"IF(DataLog!$C343=\"Log value\",DataLog!AF343,\"\")","v":""},{"$f":"IF(DataLog!$C343=\"Log value\",DataLog!AG343,\"\")","v":""},{"$f":"IF(DataLog!$C343=\"Log value\",DataLog!AH343,\"\")","v":""},{"$f":"IF(DataLog!$C343=\"Log value\",DataLog!AI343,\"\")","v":""},{"$f":"IF(DataLog!$C343=\"Log value\",DataLog!AJ343,\"\")","v":""},{"$f":"IF(DataLog!$C343=\"Log value\",DataLog!AK343,\"\")","v":""},{"$f":"IF(DataLog!$C343=\"Log value\",DataLog!AL343,\"\")","v":""},{"$f":"IF(DataLog!$C343=\"Log value\",DataLog!AM343,\"\")","v":""}]
[null,null,"Standard","Standard -  - ",null,null,{"$f":"IF(DataLog!$C344=\"Log value\",DataLog!D344&\"_\"&TEXT(DataLog!B344,\"åååå-mm-dd\"),\"\")","v":""},{"$f":"IF(DataLog!$C344=\"Log value\",DataLog!E344,\"\")","v":""},{"$f":"IF(DataLog!$C344=\"Log value\",DataLog!F344,\"\")","v":""},{"$f":"IF(DataLog!$C344=\"Log value\",DataLog!G344,\"\")","v":""},{"$f":"IF(DataLog!$C344=\"Log value\",DataLog!H344,\"\")","v":""},{"$f":"IF(DataLog!$C344=\"Log value\",DataLog!I344,\"\")","v":""},{"$f":"IF(DataLog!$C344=\"Log value\",DataLog!J344,\"\")","v":""},{"$f":"IF(DataLog!$C344=\"Log value\",DataLog!K344,\"\")","v":""},{"$f":"IF(DataLog!$C344=\"Log value\",DataLog!L344,\"\")","v":""},{"$f":"IF(DataLog!$C344=\"Log value\",DataLog!M344,\"\")","v":""},{"$f":"IF(DataLog!$C344=\"Log value\",DataLog!N344,\"\")","v":""},{"$f":"IF(DataLog!$C344=\"Log value\",DataLog!O344,\"\")","v":""},{"$f":"IF(DataLog!$C344=\"Log value\",DataLog!P344,\"\")","v":""},{"$f":"IF(DataLog!$C344=\"Log value\",DataLog!Q344,\"\")","v":""},{"$f":"IF(DataLog!$C344=\"Log value\",DataLog!R344,\"\")","v":""},{"$f":"IF(DataLog!$C344=\"Log value\",DataLog!S344,\"\")","v":""},{"$f":"IF(DataLog!$C344=\"Log value\",DataLog!T344,\"\")","v":""},{"$f":"IF(DataLog!$C344=\"Log value\",DataLog!U344,\"\")","v":""},{"$f":"IF(DataLog!$C344=\"Log value\",DataLog!V344,\"\")","v":""},{"$f":"IF(DataLog!$C344=\"Log value\",DataLog!W344,\"\")","v":""},{"$f":"IF(DataLog!$C344=\"Log value\",DataLog!X344,\"\")","v":""},{"$f":"IF(DataLog!$C344=\"Log value\",DataLog!Y344,\"\")","v":""},{"$f":"IF(DataLog!$C344=\"Log value\",DataLog!Z344,\"\")","v":""},{"$f":"IF(DataLog!$C344=\"Log value\",DataLog!AA344,\"\")","v":""},{"$f":"IF(DataLog!$C344=\"Log value\",DataLog!AB344,\"\")","v":""},{"$f":"IF(DataLog!$C344=\"Log value\",DataLog!AC344,\"\")","v":""},{"$f":"IF(DataLog!$C344=\"Log value\",DataLog!AD344,\"\")","v":""},{"$f":"IF(DataLog!$C344=\"Log value\",DataLog!AE344,\"\")","v":""},{"$f":"IF(DataLog!$C344=\"Log value\",DataLog!AF344,\"\")","v":""},{"$f":"IF(DataLog!$C344=\"Log value\",DataLog!AG344,\"\")","v":""},{"$f":"IF(DataLog!$C344=\"Log value\",DataLog!AH344,\"\")","v":""},{"$f":"IF(DataLog!$C344=\"Log value\",DataLog!AI344,\"\")","v":""},{"$f":"IF(DataLog!$C344=\"Log value\",DataLog!AJ344,\"\")","v":""},{"$f":"IF(DataLog!$C344=\"Log value\",DataLog!AK344,\"\")","v":""},{"$f":"IF(DataLog!$C344=\"Log value\",DataLog!AL344,\"\")","v":""},{"$f":"IF(DataLog!$C344=\"Log value\",DataLog!AM344,\"\")","v":""}]
[null,null,"Standard","Standard -  - ",null,null,{"$f":"IF(DataLog!$C345=\"Log value\",DataLog!D345&\"_\"&TEXT(DataLog!B345,\"åååå-mm-dd\"),\"\")","v":""},{"$f":"IF(DataLog!$C345=\"Log value\",DataLog!E345,\"\")","v":""},{"$f":"IF(DataLog!$C345=\"Log value\",DataLog!F345,\"\")","v":""},{"$f":"IF(DataLog!$C345=\"Log value\",DataLog!G345,\"\")","v":""},{"$f":"IF(DataLog!$C345=\"Log value\",DataLog!H345,\"\")","v":""},{"$f":"IF(DataLog!$C345=\"Log value\",DataLog!I345,\"\")","v":""},{"$f":"IF(DataLog!$C345=\"Log value\",DataLog!J345,\"\")","v":""},{"$f":"IF(DataLog!$C345=\"Log value\",DataLog!K345,\"\")","v":""},{"$f":"IF(DataLog!$C345=\"Log value\",DataLog!L345,\"\")","v":""},{"$f":"IF(DataLog!$C345=\"Log value\",DataLog!M345,\"\")","v":""},{"$f":"IF(DataLog!$C345=\"Log value\",DataLog!N345,\"\")","v":""},{"$f":"IF(DataLog!$C345=\"Log value\",DataLog!O345,\"\")","v":""},{"$f":"IF(DataLog!$C345=\"Log value\",DataLog!P345,\"\")","v":""},{"$f":"IF(DataLog!$C345=\"Log value\",DataLog!Q345,\"\")","v":""},{"$f":"IF(DataLog!$C345=\"Log value\",DataLog!R345,\"\")","v":""},{"$f":"IF(DataLog!$C345=\"Log value\",DataLog!S345,\"\")","v":""},{"$f":"IF(DataLog!$C345=\"Log value\",DataLog!T345,\"\")","v":""},{"$f":"IF(DataLog!$C345=\"Log value\",DataLog!U345,\"\")","v":""},{"$f":"IF(DataLog!$C345=\"Log value\",DataLog!V345,\"\")","v":""},{"$f":"IF(DataLog!$C345=\"Log value\",DataLog!W345,\"\")","v":""},{"$f":"IF(DataLog!$C345=\"Log value\",DataLog!X345,\"\")","v":""},{"$f":"IF(DataLog!$C345=\"Log value\",DataLog!Y345,\"\")","v":""},{"$f":"IF(DataLog!$C345=\"Log value\",DataLog!Z345,\"\")","v":""},{"$f":"IF(DataLog!$C345=\"Log value\",DataLog!AA345,\"\")","v":""},{"$f":"IF(DataLog!$C345=\"Log value\",DataLog!AB345,\"\")","v":""},{"$f":"IF(DataLog!$C345=\"Log value\",DataLog!AC345,\"\")","v":""},{"$f":"IF(DataLog!$C345=\"Log value\",DataLog!AD345,\"\")","v":""},{"$f":"IF(DataLog!$C345=\"Log value\",DataLog!AE345,\"\")","v":""},{"$f":"IF(DataLog!$C345=\"Log value\",DataLog!AF345,\"\")","v":""},{"$f":"IF(DataLog!$C345=\"Log value\",DataLog!AG345,\"\")","v":""},{"$f":"IF(DataLog!$C345=\"Log value\",DataLog!AH345,\"\")","v":""},{"$f":"IF(DataLog!$C345=\"Log value\",DataLog!AI345,\"\")","v":""},{"$f":"IF(DataLog!$C345=\"Log value\",DataLog!AJ345,\"\")","v":""},{"$f":"IF(DataLog!$C345=\"Log value\",DataLog!AK345,\"\")","v":""},{"$f":"IF(DataLog!$C345=\"Log value\",DataLog!AL345,\"\")","v":""},{"$f":"IF(DataLog!$C345=\"Log value\",DataLog!AM345,\"\")","v":""}]
[null,null,"Standard","Standard -  - ",null,null,{"$f":"IF(DataLog!$C346=\"Log value\",DataLog!D346&\"_\"&TEXT(DataLog!B346,\"åååå-mm-dd\"),\"\")","v":""},{"$f":"IF(DataLog!$C346=\"Log value\",DataLog!E346,\"\")","v":""},{"$f":"IF(DataLog!$C346=\"Log value\",DataLog!F346,\"\")","v":""},{"$f":"IF(DataLog!$C346=\"Log value\",DataLog!G346,\"\")","v":""},{"$f":"IF(DataLog!$C346=\"Log value\",DataLog!H346,\"\")","v":""},{"$f":"IF(DataLog!$C346=\"Log value\",DataLog!I346,\"\")","v":""},{"$f":"IF(DataLog!$C346=\"Log value\",DataLog!J346,\"\")","v":""},{"$f":"IF(DataLog!$C346=\"Log value\",DataLog!K346,\"\")","v":""},{"$f":"IF(DataLog!$C346=\"Log value\",DataLog!L346,\"\")","v":""},{"$f":"IF(DataLog!$C346=\"Log value\",DataLog!M346,\"\")","v":""},{"$f":"IF(DataLog!$C346=\"Log value\",DataLog!N346,\"\")","v":""},{"$f":"IF(DataLog!$C346=\"Log value\",DataLog!O346,\"\")","v":""},{"$f":"IF(DataLog!$C346=\"Log value\",DataLog!P346,\"\")","v":""},{"$f":"IF(DataLog!$C346=\"Log value\",DataLog!Q346,\"\")","v":""},{"$f":"IF(DataLog!$C346=\"Log value\",DataLog!R346,\"\")","v":""},{"$f":"IF(DataLog!$C346=\"Log value\",DataLog!S346,\"\")","v":""},{"$f":"IF(DataLog!$C346=\"Log value\",DataLog!T346,\"\")","v":""},{"$f":"IF(DataLog!$C346=\"Log value\",DataLog!U346,\"\")","v":""},{"$f":"IF(DataLog!$C346=\"Log value\",DataLog!V346,\"\")","v":""},{"$f":"IF(DataLog!$C346=\"Log value\",DataLog!W346,\"\")","v":""},{"$f":"IF(DataLog!$C346=\"Log value\",DataLog!X346,\"\")","v":""},{"$f":"IF(DataLog!$C346=\"Log value\",DataLog!Y346,\"\")","v":""},{"$f":"IF(DataLog!$C346=\"Log value\",DataLog!Z346,\"\")","v":""},{"$f":"IF(DataLog!$C346=\"Log value\",DataLog!AA346,\"\")","v":""},{"$f":"IF(DataLog!$C346=\"Log value\",DataLog!AB346,\"\")","v":""},{"$f":"IF(DataLog!$C346=\"Log value\",DataLog!AC346,\"\")","v":""},{"$f":"IF(DataLog!$C346=\"Log value\",DataLog!AD346,\"\")","v":""},{"$f":"IF(DataLog!$C346=\"Log value\",DataLog!AE346,\"\")","v":""},{"$f":"IF(DataLog!$C346=\"Log value\",DataLog!AF346,\"\")","v":""},{"$f":"IF(DataLog!$C346=\"Log value\",DataLog!AG346,\"\")","v":""},{"$f":"IF(DataLog!$C346=\"Log value\",DataLog!AH346,\"\")","v":""},{"$f":"IF(DataLog!$C346=\"Log value\",DataLog!AI346,\"\")","v":""},{"$f":"IF(DataLog!$C346=\"Log value\",DataLog!AJ346,\"\")","v":""},{"$f":"IF(DataLog!$C346=\"Log value\",DataLog!AK346,\"\")","v":""},{"$f":"IF(DataLog!$C346=\"Log value\",DataLog!AL346,\"\")","v":""},{"$f":"IF(DataLog!$C346=\"Log value\",DataLog!AM346,\"\")","v":""}]
[null,null,"Standard","Standard -  - ",null,null,{"$f":"IF(DataLog!$C347=\"Log value\",DataLog!D347&\"_\"&TEXT(DataLog!B347,\"åååå-mm-dd\"),\"\")","v":""},{"$f":"IF(DataLog!$C347=\"Log value\",DataLog!E347,\"\")","v":""},{"$f":"IF(DataLog!$C347=\"Log value\",DataLog!F347,\"\")","v":""},{"$f":"IF(DataLog!$C347=\"Log value\",DataLog!G347,\"\")","v":""},{"$f":"IF(DataLog!$C347=\"Log value\",DataLog!H347,\"\")","v":""},{"$f":"IF(DataLog!$C347=\"Log value\",DataLog!I347,\"\")","v":""},{"$f":"IF(DataLog!$C347=\"Log value\",DataLog!J347,\"\")","v":""},{"$f":"IF(DataLog!$C347=\"Log value\",DataLog!K347,\"\")","v":""},{"$f":"IF(DataLog!$C347=\"Log value\",DataLog!L347,\"\")","v":""},{"$f":"IF(DataLog!$C347=\"Log value\",DataLog!M347,\"\")","v":""},{"$f":"IF(DataLog!$C347=\"Log value\",DataLog!N347,\"\")","v":""},{"$f":"IF(DataLog!$C347=\"Log value\",DataLog!O347,\"\")","v":""},{"$f":"IF(DataLog!$C347=\"Log value\",DataLog!P347,\"\")","v":""},{"$f":"IF(DataLog!$C347=\"Log value\",DataLog!Q347,\"\")","v":""},{"$f":"IF(DataLog!$C347=\"Log value\",DataLog!R347,\"\")","v":""},{"$f":"IF(DataLog!$C347=\"Log value\",DataLog!S347,\"\")","v":""},{"$f":"IF(DataLog!$C347=\"Log value\",DataLog!T347,\"\")","v":""},{"$f":"IF(DataLog!$C347=\"Log value\",DataLog!U347,\"\")","v":""},{"$f":"IF(DataLog!$C347=\"Log value\",DataLog!V347,\"\")","v":""},{"$f":"IF(DataLog!$C347=\"Log value\",DataLog!W347,\"\")","v":""},{"$f":"IF(DataLog!$C347=\"Log value\",DataLog!X347,\"\")","v":""},{"$f":"IF(DataLog!$C347=\"Log value\",DataLog!Y347,\"\")","v":""},{"$f":"IF(DataLog!$C347=\"Log value\",DataLog!Z347,\"\")","v":""},{"$f":"IF(DataLog!$C347=\"Log value\",DataLog!AA347,\"\")","v":""},{"$f":"IF(DataLog!$C347=\"Log value\",DataLog!AB347,\"\")","v":""},{"$f":"IF(DataLog!$C347=\"Log value\",DataLog!AC347,\"\")","v":""},{"$f":"IF(DataLog!$C347=\"Log value\",DataLog!AD347,\"\")","v":""},{"$f":"IF(DataLog!$C347=\"Log value\",DataLog!AE347,\"\")","v":""},{"$f":"IF(DataLog!$C347=\"Log value\",DataLog!AF347,\"\")","v":""},{"$f":"IF(DataLog!$C347=\"Log value\",DataLog!AG347,\"\")","v":""},{"$f":"IF(DataLog!$C347=\"Log value\",DataLog!AH347,\"\")","v":""},{"$f":"IF(DataLog!$C347=\"Log value\",DataLog!AI347,\"\")","v":""},{"$f":"IF(DataLog!$C347=\"Log value\",DataLog!AJ347,\"\")","v":""},{"$f":"IF(DataLog!$C347=\"Log value\",DataLog!AK347,\"\")","v":""},{"$f":"IF(DataLog!$C347=\"Log value\",DataLog!AL347,\"\")","v":""},{"$f":"IF(DataLog!$C347=\"Log value\",DataLog!AM347,\"\")","v":""}]
[null,null,"Standard","Standard -  - ",null,null,{"$f":"IF(DataLog!$C348=\"Log value\",DataLog!D348&\"_\"&TEXT(DataLog!B348,\"åååå-mm-dd\"),\"\")","v":""},{"$f":"IF(DataLog!$C348=\"Log value\",DataLog!E348,\"\")","v":""},{"$f":"IF(DataLog!$C348=\"Log value\",DataLog!F348,\"\")","v":""},{"$f":"IF(DataLog!$C348=\"Log value\",DataLog!G348,\"\")","v":""},{"$f":"IF(DataLog!$C348=\"Log value\",DataLog!H348,\"\")","v":""},{"$f":"IF(DataLog!$C348=\"Log value\",DataLog!I348,\"\")","v":""},{"$f":"IF(DataLog!$C348=\"Log value\",DataLog!J348,\"\")","v":""},{"$f":"IF(DataLog!$C348=\"Log value\",DataLog!K348,\"\")","v":""},{"$f":"IF(DataLog!$C348=\"Log value\",DataLog!L348,\"\")","v":""},{"$f":"IF(DataLog!$C348=\"Log value\",DataLog!M348,\"\")","v":""},{"$f":"IF(DataLog!$C348=\"Log value\",DataLog!N348,\"\")","v":""},{"$f":"IF(DataLog!$C348=\"Log value\",DataLog!O348,\"\")","v":""},{"$f":"IF(DataLog!$C348=\"Log value\",DataLog!P348,\"\")","v":""},{"$f":"IF(DataLog!$C348=\"Log value\",DataLog!Q348,\"\")","v":""},{"$f":"IF(DataLog!$C348=\"Log value\",DataLog!R348,\"\")","v":""},{"$f":"IF(DataLog!$C348=\"Log value\",DataLog!S348,\"\")","v":""},{"$f":"IF(DataLog!$C348=\"Log value\",DataLog!T348,\"\")","v":""},{"$f":"IF(DataLog!$C348=\"Log value\",DataLog!U348,\"\")","v":""},{"$f":"IF(DataLog!$C348=\"Log value\",DataLog!V348,\"\")","v":""},{"$f":"IF(DataLog!$C348=\"Log value\",DataLog!W348,\"\")","v":""},{"$f":"IF(DataLog!$C348=\"Log value\",DataLog!X348,\"\")","v":""},{"$f":"IF(DataLog!$C348=\"Log value\",DataLog!Y348,\"\")","v":""},{"$f":"IF(DataLog!$C348=\"Log value\",DataLog!Z348,\"\")","v":""},{"$f":"IF(DataLog!$C348=\"Log value\",DataLog!AA348,\"\")","v":""},{"$f":"IF(DataLog!$C348=\"Log value\",DataLog!AB348,\"\")","v":""},{"$f":"IF(DataLog!$C348=\"Log value\",DataLog!AC348,\"\")","v":""},{"$f":"IF(DataLog!$C348=\"Log value\",DataLog!AD348,\"\")","v":""},{"$f":"IF(DataLog!$C348=\"Log value\",DataLog!AE348,\"\")","v":""},{"$f":"IF(DataLog!$C348=\"Log value\",DataLog!AF348,\"\")","v":""},{"$f":"IF(DataLog!$C348=\"Log value\",DataLog!AG348,\"\")","v":""},{"$f":"IF(DataLog!$C348=\"Log value\",DataLog!AH348,\"\")","v":""},{"$f":"IF(DataLog!$C348=\"Log value\",DataLog!AI348,\"\")","v":""},{"$f":"IF(DataLog!$C348=\"Log value\",DataLog!AJ348,\"\")","v":""},{"$f":"IF(DataLog!$C348=\"Log value\",DataLog!AK348,\"\")","v":""},{"$f":"IF(DataLog!$C348=\"Log value\",DataLog!AL348,\"\")","v":""},{"$f":"IF(DataLog!$C348=\"Log value\",DataLog!AM348,\"\")","v":""}]
[null,null,"Standard","Standard -  - ",null,null,{"$f":"IF(DataLog!$C349=\"Log value\",DataLog!D349&\"_\"&TEXT(DataLog!B349,\"åååå-mm-dd\"),\"\")","v":""},{"$f":"IF(DataLog!$C349=\"Log value\",DataLog!E349,\"\")","v":""},{"$f":"IF(DataLog!$C349=\"Log value\",DataLog!F349,\"\")","v":""},{"$f":"IF(DataLog!$C349=\"Log value\",DataLog!G349,\"\")","v":""},{"$f":"IF(DataLog!$C349=\"Log value\",DataLog!H349,\"\")","v":""},{"$f":"IF(DataLog!$C349=\"Log value\",DataLog!I349,\"\")","v":""},{"$f":"IF(DataLog!$C349=\"Log value\",DataLog!J349,\"\")","v":""},{"$f":"IF(DataLog!$C349=\"Log value\",DataLog!K349,\"\")","v":""},{"$f":"IF(DataLog!$C349=\"Log value\",DataLog!L349,\"\")","v":""},{"$f":"IF(DataLog!$C349=\"Log value\",DataLog!M349,\"\")","v":""},{"$f":"IF(DataLog!$C349=\"Log value\",DataLog!N349,\"\")","v":""},{"$f":"IF(DataLog!$C349=\"Log value\",DataLog!O349,\"\")","v":""},{"$f":"IF(DataLog!$C349=\"Log value\",DataLog!P349,\"\")","v":""},{"$f":"IF(DataLog!$C349=\"Log value\",DataLog!Q349,\"\")","v":""},{"$f":"IF(DataLog!$C349=\"Log value\",DataLog!R349,\"\")","v":""},{"$f":"IF(DataLog!$C349=\"Log value\",DataLog!S349,\"\")","v":""},{"$f":"IF(DataLog!$C349=\"Log value\",DataLog!T349,\"\")","v":""},{"$f":"IF(DataLog!$C349=\"Log value\",DataLog!U349,\"\")","v":""},{"$f":"IF(DataLog!$C349=\"Log value\",DataLog!V349,\"\")","v":""},{"$f":"IF(DataLog!$C349=\"Log value\",DataLog!W349,\"\")","v":""},{"$f":"IF(DataLog!$C349=\"Log value\",DataLog!X349,\"\")","v":""},{"$f":"IF(DataLog!$C349=\"Log value\",DataLog!Y349,\"\")","v":""},{"$f":"IF(DataLog!$C349=\"Log value\",DataLog!Z349,\"\")","v":""},{"$f":"IF(DataLog!$C349=\"Log value\",DataLog!AA349,\"\")","v":""},{"$f":"IF(DataLog!$C349=\"Log value\",DataLog!AB349,\"\")","v":""},{"$f":"IF(DataLog!$C349=\"Log value\",DataLog!AC349,\"\")","v":""},{"$f":"IF(DataLog!$C349=\"Log value\",DataLog!AD349,\"\")","v":""},{"$f":"IF(DataLog!$C349=\"Log value\",DataLog!AE349,\"\")","v":""},{"$f":"IF(DataLog!$C349=\"Log value\",DataLog!AF349,\"\")","v":""},{"$f":"IF(DataLog!$C349=\"Log value\",DataLog!AG349,\"\")","v":""},{"$f":"IF(DataLog!$C349=\"Log value\",DataLog!AH349,\"\")","v":""},{"$f":"IF(DataLog!$C349=\"Log value\",DataLog!AI349,\"\")","v":""},{"$f":"IF(DataLog!$C349=\"Log value\",DataLog!AJ349,\"\")","v":""},{"$f":"IF(DataLog!$C349=\"Log value\",DataLog!AK349,\"\")","v":""},{"$f":"IF(DataLog!$C349=\"Log value\",DataLog!AL349,\"\")","v":""},{"$f":"IF(DataLog!$C349=\"Log value\",DataLog!AM349,\"\")","v":""}]
[null,null,"Standard","Standard -  - ",null,null,{"$f":"IF(DataLog!$C350=\"Log value\",DataLog!D350&\"_\"&TEXT(DataLog!B350,\"åååå-mm-dd\"),\"\")","v":""},{"$f":"IF(DataLog!$C350=\"Log value\",DataLog!E350,\"\")","v":""},{"$f":"IF(DataLog!$C350=\"Log value\",DataLog!F350,\"\")","v":""},{"$f":"IF(DataLog!$C350=\"Log value\",DataLog!G350,\"\")","v":""},{"$f":"IF(DataLog!$C350=\"Log value\",DataLog!H350,\"\")","v":""},{"$f":"IF(DataLog!$C350=\"Log value\",DataLog!I350,\"\")","v":""},{"$f":"IF(DataLog!$C350=\"Log value\",DataLog!J350,\"\")","v":""},{"$f":"IF(DataLog!$C350=\"Log value\",DataLog!K350,\"\")","v":""},{"$f":"IF(DataLog!$C350=\"Log value\",DataLog!L350,\"\")","v":""},{"$f":"IF(DataLog!$C350=\"Log value\",DataLog!M350,\"\")","v":""},{"$f":"IF(DataLog!$C350=\"Log value\",DataLog!N350,\"\")","v":""},{"$f":"IF(DataLog!$C350=\"Log value\",DataLog!O350,\"\")","v":""},{"$f":"IF(DataLog!$C350=\"Log value\",DataLog!P350,\"\")","v":""},{"$f":"IF(DataLog!$C350=\"Log value\",DataLog!Q350,\"\")","v":""},{"$f":"IF(DataLog!$C350=\"Log value\",DataLog!R350,\"\")","v":""},{"$f":"IF(DataLog!$C350=\"Log value\",DataLog!S350,\"\")","v":""},{"$f":"IF(DataLog!$C350=\"Log value\",DataLog!T350,\"\")","v":""},{"$f":"IF(DataLog!$C350=\"Log value\",DataLog!U350,\"\")","v":""},{"$f":"IF(DataLog!$C350=\"Log value\",DataLog!V350,\"\")","v":""},{"$f":"IF(DataLog!$C350=\"Log value\",DataLog!W350,\"\")","v":""},{"$f":"IF(DataLog!$C350=\"Log value\",DataLog!X350,\"\")","v":""},{"$f":"IF(DataLog!$C350=\"Log value\",DataLog!Y350,\"\")","v":""},{"$f":"IF(DataLog!$C350=\"Log value\",DataLog!Z350,\"\")","v":""},{"$f":"IF(DataLog!$C350=\"Log value\",DataLog!AA350,\"\")","v":""},{"$f":"IF(DataLog!$C350=\"Log value\",DataLog!AB350,\"\")","v":""},{"$f":"IF(DataLog!$C350=\"Log value\",DataLog!AC350,\"\")","v":""},{"$f":"IF(DataLog!$C350=\"Log value\",DataLog!AD350,\"\")","v":""},{"$f":"IF(DataLog!$C350=\"Log value\",DataLog!AE350,\"\")","v":""},{"$f":"IF(DataLog!$C350=\"Log value\",DataLog!AF350,\"\")","v":""},{"$f":"IF(DataLog!$C350=\"Log value\",DataLog!AG350,\"\")","v":""},{"$f":"IF(DataLog!$C350=\"Log value\",DataLog!AH350,\"\")","v":""},{"$f":"IF(DataLog!$C350=\"Log value\",DataLog!AI350,\"\")","v":""},{"$f":"IF(DataLog!$C350=\"Log value\",DataLog!AJ350,\"\")","v":""},{"$f":"IF(DataLog!$C350=\"Log value\",DataLog!AK350,\"\")","v":""},{"$f":"IF(DataLog!$C350=\"Log value\",DataLog!AL350,\"\")","v":""},{"$f":"IF(DataLog!$C350=\"Log value\",DataLog!AM350,\"\")","v":""}]
[null,null,"Standard","Standard -  - ",null,null,{"$f":"IF(DataLog!$C351=\"Log value\",DataLog!D351&\"_\"&TEXT(DataLog!B351,\"åååå-mm-dd\"),\"\")","v":""},{"$f":"IF(DataLog!$C351=\"Log value\",DataLog!E351,\"\")","v":""},{"$f":"IF(DataLog!$C351=\"Log value\",DataLog!F351,\"\")","v":""},{"$f":"IF(DataLog!$C351=\"Log value\",DataLog!G351,\"\")","v":""},{"$f":"IF(DataLog!$C351=\"Log value\",DataLog!H351,\"\")","v":""},{"$f":"IF(DataLog!$C351=\"Log value\",DataLog!I351,\"\")","v":""},{"$f":"IF(DataLog!$C351=\"Log value\",DataLog!J351,\"\")","v":""},{"$f":"IF(DataLog!$C351=\"Log value\",DataLog!K351,\"\")","v":""},{"$f":"IF(DataLog!$C351=\"Log value\",DataLog!L351,\"\")","v":""},{"$f":"IF(DataLog!$C351=\"Log value\",DataLog!M351,\"\")","v":""},{"$f":"IF(DataLog!$C351=\"Log value\",DataLog!N351,\"\")","v":""},{"$f":"IF(DataLog!$C351=\"Log value\",DataLog!O351,\"\")","v":""},{"$f":"IF(DataLog!$C351=\"Log value\",DataLog!P351,\"\")","v":""},{"$f":"IF(DataLog!$C351=\"Log value\",DataLog!Q351,\"\")","v":""},{"$f":"IF(DataLog!$C351=\"Log value\",DataLog!R351,\"\")","v":""},{"$f":"IF(DataLog!$C351=\"Log value\",DataLog!S351,\"\")","v":""},{"$f":"IF(DataLog!$C351=\"Log value\",DataLog!T351,\"\")","v":""},{"$f":"IF(DataLog!$C351=\"Log value\",DataLog!U351,\"\")","v":""},{"$f":"IF(DataLog!$C351=\"Log value\",DataLog!V351,\"\")","v":""},{"$f":"IF(DataLog!$C351=\"Log value\",DataLog!W351,\"\")","v":""},{"$f":"IF(DataLog!$C351=\"Log value\",DataLog!X351,\"\")","v":""},{"$f":"IF(DataLog!$C351=\"Log value\",DataLog!Y351,\"\")","v":""},{"$f":"IF(DataLog!$C351=\"Log value\",DataLog!Z351,\"\")","v":""},{"$f":"IF(DataLog!$C351=\"Log value\",DataLog!AA351,\"\")","v":""},{"$f":"IF(DataLog!$C351=\"Log value\",DataLog!AB351,\"\")","v":""},{"$f":"IF(DataLog!$C351=\"Log value\",DataLog!AC351,\"\")","v":""},{"$f":"IF(DataLog!$C351=\"Log value\",DataLog!AD351,\"\")","v":""},{"$f":"IF(DataLog!$C351=\"Log value\",DataLog!AE351,\"\")","v":""},{"$f":"IF(DataLog!$C351=\"Log value\",DataLog!AF351,\"\")","v":""},{"$f":"IF(DataLog!$C351=\"Log value\",DataLog!AG351,\"\")","v":""},{"$f":"IF(DataLog!$C351=\"Log value\",DataLog!AH351,\"\")","v":""},{"$f":"IF(DataLog!$C351=\"Log value\",DataLog!AI351,\"\")","v":""},{"$f":"IF(DataLog!$C351=\"Log value\",DataLog!AJ351,\"\")","v":""},{"$f":"IF(DataLog!$C351=\"Log value\",DataLog!AK351,\"\")","v":""},{"$f":"IF(DataLog!$C351=\"Log value\",DataLog!AL351,\"\")","v":""},{"$f":"IF(DataLog!$C351=\"Log value\",DataLog!AM351,\"\")","v":""}]
[null,null,"Standard","Standard -  - ",null,null,{"$f":"IF(DataLog!$C352=\"Log value\",DataLog!D352&\"_\"&TEXT(DataLog!B352,\"åååå-mm-dd\"),\"\")","v":""},{"$f":"IF(DataLog!$C352=\"Log value\",DataLog!E352,\"\")","v":""},{"$f":"IF(DataLog!$C352=\"Log value\",DataLog!F352,\"\")","v":""},{"$f":"IF(DataLog!$C352=\"Log value\",DataLog!G352,\"\")","v":""},{"$f":"IF(DataLog!$C352=\"Log value\",DataLog!H352,\"\")","v":""},{"$f":"IF(DataLog!$C352=\"Log value\",DataLog!I352,\"\")","v":""},{"$f":"IF(DataLog!$C352=\"Log value\",DataLog!J352,\"\")","v":""},{"$f":"IF(DataLog!$C352=\"Log value\",DataLog!K352,\"\")","v":""},{"$f":"IF(DataLog!$C352=\"Log value\",DataLog!L352,\"\")","v":""},{"$f":"IF(DataLog!$C352=\"Log value\",DataLog!M352,\"\")","v":""},{"$f":"IF(DataLog!$C352=\"Log value\",DataLog!N352,\"\")","v":""},{"$f":"IF(DataLog!$C352=\"Log value\",DataLog!O352,\"\")","v":""},{"$f":"IF(DataLog!$C352=\"Log value\",DataLog!P352,\"\")","v":""},{"$f":"IF(DataLog!$C352=\"Log value\",DataLog!Q352,\"\")","v":""},{"$f":"IF(DataLog!$C352=\"Log value\",DataLog!R352,\"\")","v":""},{"$f":"IF(DataLog!$C352=\"Log value\",DataLog!S352,\"\")","v":""},{"$f":"IF(DataLog!$C352=\"Log value\",DataLog!T352,\"\")","v":""},{"$f":"IF(DataLog!$C352=\"Log value\",DataLog!U352,\"\")","v":""},{"$f":"IF(DataLog!$C352=\"Log value\",DataLog!V352,\"\")","v":""},{"$f":"IF(DataLog!$C352=\"Log value\",DataLog!W352,\"\")","v":""},{"$f":"IF(DataLog!$C352=\"Log value\",DataLog!X352,\"\")","v":""},{"$f":"IF(DataLog!$C352=\"Log value\",DataLog!Y352,\"\")","v":""},{"$f":"IF(DataLog!$C352=\"Log value\",DataLog!Z352,\"\")","v":""},{"$f":"IF(DataLog!$C352=\"Log value\",DataLog!AA352,\"\")","v":""},{"$f":"IF(DataLog!$C352=\"Log value\",DataLog!AB352,\"\")","v":""},{"$f":"IF(DataLog!$C352=\"Log value\",DataLog!AC352,\"\")","v":""},{"$f":"IF(DataLog!$C352=\"Log value\",DataLog!AD352,\"\")","v":""},{"$f":"IF(DataLog!$C352=\"Log value\",DataLog!AE352,\"\")","v":""},{"$f":"IF(DataLog!$C352=\"Log value\",DataLog!AF352,\"\")","v":""},{"$f":"IF(DataLog!$C352=\"Log value\",DataLog!AG352,\"\")","v":""},{"$f":"IF(DataLog!$C352=\"Log value\",DataLog!AH352,\"\")","v":""},{"$f":"IF(DataLog!$C352=\"Log value\",DataLog!AI352,\"\")","v":""},{"$f":"IF(DataLog!$C352=\"Log value\",DataLog!AJ352,\"\")","v":""},{"$f":"IF(DataLog!$C352=\"Log value\",DataLog!AK352,\"\")","v":""},{"$f":"IF(DataLog!$C352=\"Log value\",DataLog!AL352,\"\")","v":""},{"$f":"IF(DataLog!$C352=\"Log value\",DataLog!AM352,\"\")","v":""}]
[null,null,"Standard","Standard -  - ",null,null,{"$f":"IF(DataLog!$C353=\"Log value\",DataLog!D353&\"_\"&TEXT(DataLog!B353,\"åååå-mm-dd\"),\"\")","v":""},{"$f":"IF(DataLog!$C353=\"Log value\",DataLog!E353,\"\")","v":""},{"$f":"IF(DataLog!$C353=\"Log value\",DataLog!F353,\"\")","v":""},{"$f":"IF(DataLog!$C353=\"Log value\",DataLog!G353,\"\")","v":""},{"$f":"IF(DataLog!$C353=\"Log value\",DataLog!H353,\"\")","v":""},{"$f":"IF(DataLog!$C353=\"Log value\",DataLog!I353,\"\")","v":""},{"$f":"IF(DataLog!$C353=\"Log value\",DataLog!J353,\"\")","v":""},{"$f":"IF(DataLog!$C353=\"Log value\",DataLog!K353,\"\")","v":""},{"$f":"IF(DataLog!$C353=\"Log value\",DataLog!L353,\"\")","v":""},{"$f":"IF(DataLog!$C353=\"Log value\",DataLog!M353,\"\")","v":""},{"$f":"IF(DataLog!$C353=\"Log value\",DataLog!N353,\"\")","v":""},{"$f":"IF(DataLog!$C353=\"Log value\",DataLog!O353,\"\")","v":""},{"$f":"IF(DataLog!$C353=\"Log value\",DataLog!P353,\"\")","v":""},{"$f":"IF(DataLog!$C353=\"Log value\",DataLog!Q353,\"\")","v":""},{"$f":"IF(DataLog!$C353=\"Log value\",DataLog!R353,\"\")","v":""},{"$f":"IF(DataLog!$C353=\"Log value\",DataLog!S353,\"\")","v":""},{"$f":"IF(DataLog!$C353=\"Log value\",DataLog!T353,\"\")","v":""},{"$f":"IF(DataLog!$C353=\"Log value\",DataLog!U353,\"\")","v":""},{"$f":"IF(DataLog!$C353=\"Log value\",DataLog!V353,\"\")","v":""},{"$f":"IF(DataLog!$C353=\"Log value\",DataLog!W353,\"\")","v":""},{"$f":"IF(DataLog!$C353=\"Log value\",DataLog!X353,\"\")","v":""},{"$f":"IF(DataLog!$C353=\"Log value\",DataLog!Y353,\"\")","v":""},{"$f":"IF(DataLog!$C353=\"Log value\",DataLog!Z353,\"\")","v":""},{"$f":"IF(DataLog!$C353=\"Log value\",DataLog!AA353,\"\")","v":""},{"$f":"IF(DataLog!$C353=\"Log value\",DataLog!AB353,\"\")","v":""},{"$f":"IF(DataLog!$C353=\"Log value\",DataLog!AC353,\"\")","v":""},{"$f":"IF(DataLog!$C353=\"Log value\",DataLog!AD353,\"\")","v":""},{"$f":"IF(DataLog!$C353=\"Log value\",DataLog!AE353,\"\")","v":""},{"$f":"IF(DataLog!$C353=\"Log value\",DataLog!AF353,\"\")","v":""},{"$f":"IF(DataLog!$C353=\"Log value\",DataLog!AG353,\"\")","v":""},{"$f":"IF(DataLog!$C353=\"Log value\",DataLog!AH353,\"\")","v":""},{"$f":"IF(DataLog!$C353=\"Log value\",DataLog!AI353,\"\")","v":""},{"$f":"IF(DataLog!$C353=\"Log value\",DataLog!AJ353,\"\")","v":""},{"$f":"IF(DataLog!$C353=\"Log value\",DataLog!AK353,\"\")","v":""},{"$f":"IF(DataLog!$C353=\"Log value\",DataLog!AL353,\"\")","v":""},{"$f":"IF(DataLog!$C353=\"Log value\",DataLog!AM353,\"\")","v":""}]
[null,null,"Standard","Standard -  - ",null,null,{"$f":"IF(DataLog!$C354=\"Log value\",DataLog!D354&\"_\"&TEXT(DataLog!B354,\"åååå-mm-dd\"),\"\")","v":""},{"$f":"IF(DataLog!$C354=\"Log value\",DataLog!E354,\"\")","v":""},{"$f":"IF(DataLog!$C354=\"Log value\",DataLog!F354,\"\")","v":""},{"$f":"IF(DataLog!$C354=\"Log value\",DataLog!G354,\"\")","v":""},{"$f":"IF(DataLog!$C354=\"Log value\",DataLog!H354,\"\")","v":""},{"$f":"IF(DataLog!$C354=\"Log value\",DataLog!I354,\"\")","v":""},{"$f":"IF(DataLog!$C354=\"Log value\",DataLog!J354,\"\")","v":""},{"$f":"IF(DataLog!$C354=\"Log value\",DataLog!K354,\"\")","v":""},{"$f":"IF(DataLog!$C354=\"Log value\",DataLog!L354,\"\")","v":""},{"$f":"IF(DataLog!$C354=\"Log value\",DataLog!M354,\"\")","v":""},{"$f":"IF(DataLog!$C354=\"Log value\",DataLog!N354,\"\")","v":""},{"$f":"IF(DataLog!$C354=\"Log value\",DataLog!O354,\"\")","v":""},{"$f":"IF(DataLog!$C354=\"Log value\",DataLog!P354,\"\")","v":""},{"$f":"IF(DataLog!$C354=\"Log value\",DataLog!Q354,\"\")","v":""},{"$f":"IF(DataLog!$C354=\"Log value\",DataLog!R354,\"\")","v":""},{"$f":"IF(DataLog!$C354=\"Log value\",DataLog!S354,\"\")","v":""},{"$f":"IF(DataLog!$C354=\"Log value\",DataLog!T354,\"\")","v":""},{"$f":"IF(DataLog!$C354=\"Log value\",DataLog!U354,\"\")","v":""},{"$f":"IF(DataLog!$C354=\"Log value\",DataLog!V354,\"\")","v":""},{"$f":"IF(DataLog!$C354=\"Log value\",DataLog!W354,\"\")","v":""},{"$f":"IF(DataLog!$C354=\"Log value\",DataLog!X354,\"\")","v":""},{"$f":"IF(DataLog!$C354=\"Log value\",DataLog!Y354,\"\")","v":""},{"$f":"IF(DataLog!$C354=\"Log value\",DataLog!Z354,\"\")","v":""},{"$f":"IF(DataLog!$C354=\"Log value\",DataLog!AA354,\"\")","v":""},{"$f":"IF(DataLog!$C354=\"Log value\",DataLog!AB354,\"\")","v":""},{"$f":"IF(DataLog!$C354=\"Log value\",DataLog!AC354,\"\")","v":""},{"$f":"IF(DataLog!$C354=\"Log value\",DataLog!AD354,\"\")","v":""},{"$f":"IF(DataLog!$C354=\"Log value\",DataLog!AE354,\"\")","v":""},{"$f":"IF(DataLog!$C354=\"Log value\",DataLog!AF354,\"\")","v":""},{"$f":"IF(DataLog!$C354=\"Log value\",DataLog!AG354,\"\")","v":""},{"$f":"IF(DataLog!$C354=\"Log value\",DataLog!AH354,\"\")","v":""},{"$f":"IF(DataLog!$C354=\"Log value\",DataLog!AI354,\"\")","v":""},{"$f":"IF(DataLog!$C354=\"Log value\",DataLog!AJ354,\"\")","v":""},{"$f":"IF(DataLog!$C354=\"Log value\",DataLog!AK354,\"\")","v":""},{"$f":"IF(DataLog!$C354=\"Log value\",DataLog!AL354,\"\")","v":""},{"$f":"IF(DataLog!$C354=\"Log value\",DataLog!AM354,\"\")","v":""}]
[null,null,"Standard","Standard -  - ",null,null,{"$f":"IF(DataLog!$C355=\"Log value\",DataLog!D355&\"_\"&TEXT(DataLog!B355,\"åååå-mm-dd\"),\"\")","v":""},{"$f":"IF(DataLog!$C355=\"Log value\",DataLog!E355,\"\")","v":""},{"$f":"IF(DataLog!$C355=\"Log value\",DataLog!F355,\"\")","v":""},{"$f":"IF(DataLog!$C355=\"Log value\",DataLog!G355,\"\")","v":""},{"$f":"IF(DataLog!$C355=\"Log value\",DataLog!H355,\"\")","v":""},{"$f":"IF(DataLog!$C355=\"Log value\",DataLog!I355,\"\")","v":""},{"$f":"IF(DataLog!$C355=\"Log value\",DataLog!J355,\"\")","v":""},{"$f":"IF(DataLog!$C355=\"Log value\",DataLog!K355,\"\")","v":""},{"$f":"IF(DataLog!$C355=\"Log value\",DataLog!L355,\"\")","v":""},{"$f":"IF(DataLog!$C355=\"Log value\",DataLog!M355,\"\")","v":""},{"$f":"IF(DataLog!$C355=\"Log value\",DataLog!N355,\"\")","v":""},{"$f":"IF(DataLog!$C355=\"Log value\",DataLog!O355,\"\")","v":""},{"$f":"IF(DataLog!$C355=\"Log value\",DataLog!P355,\"\")","v":""},{"$f":"IF(DataLog!$C355=\"Log value\",DataLog!Q355,\"\")","v":""},{"$f":"IF(DataLog!$C355=\"Log value\",DataLog!R355,\"\")","v":""},{"$f":"IF(DataLog!$C355=\"Log value\",DataLog!S355,\"\")","v":""},{"$f":"IF(DataLog!$C355=\"Log value\",DataLog!T355,\"\")","v":""},{"$f":"IF(DataLog!$C355=\"Log value\",DataLog!U355,\"\")","v":""},{"$f":"IF(DataLog!$C355=\"Log value\",DataLog!V355,\"\")","v":""},{"$f":"IF(DataLog!$C355=\"Log value\",DataLog!W355,\"\")","v":""},{"$f":"IF(DataLog!$C355=\"Log value\",DataLog!X355,\"\")","v":""},{"$f":"IF(DataLog!$C355=\"Log value\",DataLog!Y355,\"\")","v":""},{"$f":"IF(DataLog!$C355=\"Log value\",DataLog!Z355,\"\")","v":""},{"$f":"IF(DataLog!$C355=\"Log value\",DataLog!AA355,\"\")","v":""},{"$f":"IF(DataLog!$C355=\"Log value\",DataLog!AB355,\"\")","v":""},{"$f":"IF(DataLog!$C355=\"Log value\",DataLog!AC355,\"\")","v":""},{"$f":"IF(DataLog!$C355=\"Log value\",DataLog!AD355,\"\")","v":""},{"$f":"IF(DataLog!$C355=\"Log value\",DataLog!AE355,\"\")","v":""},{"$f":"IF(DataLog!$C355=\"Log value\",DataLog!AF355,\"\")","v":""},{"$f":"IF(DataLog!$C355=\"Log value\",DataLog!AG355,\"\")","v":""},{"$f":"IF(DataLog!$C355=\"Log value\",DataLog!AH355,\"\")","v":""},{"$f":"IF(DataLog!$C355=\"Log value\",DataLog!AI355,\"\")","v":""},{"$f":"IF(DataLog!$C355=\"Log value\",DataLog!AJ355,\"\")","v":""},{"$f":"IF(DataLog!$C355=\"Log value\",DataLog!AK355,\"\")","v":""},{"$f":"IF(DataLog!$C355=\"Log value\",DataLog!AL355,\"\")","v":""},{"$f":"IF(DataLog!$C355=\"Log value\",DataLog!AM355,\"\")","v":""}]
[null,null,"Standard","Standard -  - ",null,null,{"$f":"IF(DataLog!$C356=\"Log value\",DataLog!D356&\"_\"&TEXT(DataLog!B356,\"åååå-mm-dd\"),\"\")","v":""},{"$f":"IF(DataLog!$C356=\"Log value\",DataLog!E356,\"\")","v":""},{"$f":"IF(DataLog!$C356=\"Log value\",DataLog!F356,\"\")","v":""},{"$f":"IF(DataLog!$C356=\"Log value\",DataLog!G356,\"\")","v":""},{"$f":"IF(DataLog!$C356=\"Log value\",DataLog!H356,\"\")","v":""},{"$f":"IF(DataLog!$C356=\"Log value\",DataLog!I356,\"\")","v":""},{"$f":"IF(DataLog!$C356=\"Log value\",DataLog!J356,\"\")","v":""},{"$f":"IF(DataLog!$C356=\"Log value\",DataLog!K356,\"\")","v":""},{"$f":"IF(DataLog!$C356=\"Log value\",DataLog!L356,\"\")","v":""},{"$f":"IF(DataLog!$C356=\"Log value\",DataLog!M356,\"\")","v":""},{"$f":"IF(DataLog!$C356=\"Log value\",DataLog!N356,\"\")","v":""},{"$f":"IF(DataLog!$C356=\"Log value\",DataLog!O356,\"\")","v":""},{"$f":"IF(DataLog!$C356=\"Log value\",DataLog!P356,\"\")","v":""},{"$f":"IF(DataLog!$C356=\"Log value\",DataLog!Q356,\"\")","v":""},{"$f":"IF(DataLog!$C356=\"Log value\",DataLog!R356,\"\")","v":""},{"$f":"IF(DataLog!$C356=\"Log value\",DataLog!S356,\"\")","v":""},{"$f":"IF(DataLog!$C356=\"Log value\",DataLog!T356,\"\")","v":""},{"$f":"IF(DataLog!$C356=\"Log value\",DataLog!U356,\"\")","v":""},{"$f":"IF(DataLog!$C356=\"Log value\",DataLog!V356,\"\")","v":""},{"$f":"IF(DataLog!$C356=\"Log value\",DataLog!W356,\"\")","v":""},{"$f":"IF(DataLog!$C356=\"Log value\",DataLog!X356,\"\")","v":""},{"$f":"IF(DataLog!$C356=\"Log value\",DataLog!Y356,\"\")","v":""},{"$f":"IF(DataLog!$C356=\"Log value\",DataLog!Z356,\"\")","v":""},{"$f":"IF(DataLog!$C356=\"Log value\",DataLog!AA356,\"\")","v":""},{"$f":"IF(DataLog!$C356=\"Log value\",DataLog!AB356,\"\")","v":""},{"$f":"IF(DataLog!$C356=\"Log value\",DataLog!AC356,\"\")","v":""},{"$f":"IF(DataLog!$C356=\"Log value\",DataLog!AD356,\"\")","v":""},{"$f":"IF(DataLog!$C356=\"Log value\",DataLog!AE356,\"\")","v":""},{"$f":"IF(DataLog!$C356=\"Log value\",DataLog!AF356,\"\")","v":""},{"$f":"IF(DataLog!$C356=\"Log value\",DataLog!AG356,\"\")","v":""},{"$f":"IF(DataLog!$C356=\"Log value\",DataLog!AH356,\"\")","v":""},{"$f":"IF(DataLog!$C356=\"Log value\",DataLog!AI356,\"\")","v":""},{"$f":"IF(DataLog!$C356=\"Log value\",DataLog!AJ356,\"\")","v":""},{"$f":"IF(DataLog!$C356=\"Log value\",DataLog!AK356,\"\")","v":""},{"$f":"IF(DataLog!$C356=\"Log value\",DataLog!AL356,\"\")","v":""},{"$f":"IF(DataLog!$C356=\"Log value\",DataLog!AM356,\"\")","v":""}]
[null,null,"Standard","Standard -  - ",null,null,{"$f":"IF(DataLog!$C357=\"Log value\",DataLog!D357&\"_\"&TEXT(DataLog!B357,\"åååå-mm-dd\"),\"\")","v":""},{"$f":"IF(DataLog!$C357=\"Log value\",DataLog!E357,\"\")","v":""},{"$f":"IF(DataLog!$C357=\"Log value\",DataLog!F357,\"\")","v":""},{"$f":"IF(DataLog!$C357=\"Log value\",DataLog!G357,\"\")","v":""},{"$f":"IF(DataLog!$C357=\"Log value\",DataLog!H357,\"\")","v":""},{"$f":"IF(DataLog!$C357=\"Log value\",DataLog!I357,\"\")","v":""},{"$f":"IF(DataLog!$C357=\"Log value\",DataLog!J357,\"\")","v":""},{"$f":"IF(DataLog!$C357=\"Log value\",DataLog!K357,\"\")","v":""},{"$f":"IF(DataLog!$C357=\"Log value\",DataLog!L357,\"\")","v":""},{"$f":"IF(DataLog!$C357=\"Log value\",DataLog!M357,\"\")","v":""},{"$f":"IF(DataLog!$C357=\"Log value\",DataLog!N357,\"\")","v":""},{"$f":"IF(DataLog!$C357=\"Log value\",DataLog!O357,\"\")","v":""},{"$f":"IF(DataLog!$C357=\"Log value\",DataLog!P357,\"\")","v":""},{"$f":"IF(DataLog!$C357=\"Log value\",DataLog!Q357,\"\")","v":""},{"$f":"IF(DataLog!$C357=\"Log value\",DataLog!R357,\"\")","v":""},{"$f":"IF(DataLog!$C357=\"Log value\",DataLog!S357,\"\")","v":""},{"$f":"IF(DataLog!$C357=\"Log value\",DataLog!T357,\"\")","v":""},{"$f":"IF(DataLog!$C357=\"Log value\",DataLog!U357,\"\")","v":""},{"$f":"IF(DataLog!$C357=\"Log value\",DataLog!V357,\"\")","v":""},{"$f":"IF(DataLog!$C357=\"Log value\",DataLog!W357,\"\")","v":""},{"$f":"IF(DataLog!$C357=\"Log value\",DataLog!X357,\"\")","v":""},{"$f":"IF(DataLog!$C357=\"Log value\",DataLog!Y357,\"\")","v":""},{"$f":"IF(DataLog!$C357=\"Log value\",DataLog!Z357,\"\")","v":""},{"$f":"IF(DataLog!$C357=\"Log value\",DataLog!AA357,\"\")","v":""},{"$f":"IF(DataLog!$C357=\"Log value\",DataLog!AB357,\"\")","v":""},{"$f":"IF(DataLog!$C357=\"Log value\",DataLog!AC357,\"\")","v":""},{"$f":"IF(DataLog!$C357=\"Log value\",DataLog!AD357,\"\")","v":""},{"$f":"IF(DataLog!$C357=\"Log value\",DataLog!AE357,\"\")","v":""},{"$f":"IF(DataLog!$C357=\"Log value\",DataLog!AF357,\"\")","v":""},{"$f":"IF(DataLog!$C357=\"Log value\",DataLog!AG357,\"\")","v":""},{"$f":"IF(DataLog!$C357=\"Log value\",DataLog!AH357,\"\")","v":""},{"$f":"IF(DataLog!$C357=\"Log value\",DataLog!AI357,\"\")","v":""},{"$f":"IF(DataLog!$C357=\"Log value\",DataLog!AJ357,\"\")","v":""},{"$f":"IF(DataLog!$C357=\"Log value\",DataLog!AK357,\"\")","v":""},{"$f":"IF(DataLog!$C357=\"Log value\",DataLog!AL357,\"\")","v":""},{"$f":"IF(DataLog!$C357=\"Log value\",DataLog!AM357,\"\")","v":""}]
[null,null,"Standard","Standard -  - ",null,null,{"$f":"IF(DataLog!$C358=\"Log value\",DataLog!D358&\"_\"&TEXT(DataLog!B358,\"åååå-mm-dd\"),\"\")","v":""},{"$f":"IF(DataLog!$C358=\"Log value\",DataLog!E358,\"\")","v":""},{"$f":"IF(DataLog!$C358=\"Log value\",DataLog!F358,\"\")","v":""},{"$f":"IF(DataLog!$C358=\"Log value\",DataLog!G358,\"\")","v":""},{"$f":"IF(DataLog!$C358=\"Log value\",DataLog!H358,\"\")","v":""},{"$f":"IF(DataLog!$C358=\"Log value\",DataLog!I358,\"\")","v":""},{"$f":"IF(DataLog!$C358=\"Log value\",DataLog!J358,\"\")","v":""},{"$f":"IF(DataLog!$C358=\"Log value\",DataLog!K358,\"\")","v":""},{"$f":"IF(DataLog!$C358=\"Log value\",DataLog!L358,\"\")","v":""},{"$f":"IF(DataLog!$C358=\"Log value\",DataLog!M358,\"\")","v":""},{"$f":"IF(DataLog!$C358=\"Log value\",DataLog!N358,\"\")","v":""},{"$f":"IF(DataLog!$C358=\"Log value\",DataLog!O358,\"\")","v":""},{"$f":"IF(DataLog!$C358=\"Log value\",DataLog!P358,\"\")","v":""},{"$f":"IF(DataLog!$C358=\"Log value\",DataLog!Q358,\"\")","v":""},{"$f":"IF(DataLog!$C358=\"Log value\",DataLog!R358,\"\")","v":""},{"$f":"IF(DataLog!$C358=\"Log value\",DataLog!S358,\"\")","v":""},{"$f":"IF(DataLog!$C358=\"Log value\",DataLog!T358,\"\")","v":""},{"$f":"IF(DataLog!$C358=\"Log value\",DataLog!U358,\"\")","v":""},{"$f":"IF(DataLog!$C358=\"Log value\",DataLog!V358,\"\")","v":""},{"$f":"IF(DataLog!$C358=\"Log value\",DataLog!W358,\"\")","v":""},{"$f":"IF(DataLog!$C358=\"Log value\",DataLog!X358,\"\")","v":""},{"$f":"IF(DataLog!$C358=\"Log value\",DataLog!Y358,\"\")","v":""},{"$f":"IF(DataLog!$C358=\"Log value\",DataLog!Z358,\"\")","v":""},{"$f":"IF(DataLog!$C358=\"Log value\",DataLog!AA358,\"\")","v":""},{"$f":"IF(DataLog!$C358=\"Log value\",DataLog!AB358,\"\")","v":""},{"$f":"IF(DataLog!$C358=\"Log value\",DataLog!AC358,\"\")","v":""},{"$f":"IF(DataLog!$C358=\"Log value\",DataLog!AD358,\"\")","v":""},{"$f":"IF(DataLog!$C358=\"Log value\",DataLog!AE358,\"\")","v":""},{"$f":"IF(DataLog!$C358=\"Log value\",DataLog!AF358,\"\")","v":""},{"$f":"IF(DataLog!$C358=\"Log value\",DataLog!AG358,\"\")","v":""},{"$f":"IF(DataLog!$C358=\"Log value\",DataLog!AH358,\"\")","v":""},{"$f":"IF(DataLog!$C358=\"Log value\",DataLog!AI358,\"\")","v":""},{"$f":"IF(DataLog!$C358=\"Log value\",DataLog!AJ358,\"\")","v":""},{"$f":"IF(DataLog!$C358=\"Log value\",DataLog!AK358,\"\")","v":""},{"$f":"IF(DataLog!$C358=\"Log value\",DataLog!AL358,\"\")","v":""},{"$f":"IF(DataLog!$C358=\"Log value\",DataLog!AM358,\"\")","v":""}]
[null,null,"Standard","Standard -  - ",null,null,{"$f":"IF(DataLog!$C359=\"Log value\",DataLog!D359&\"_\"&TEXT(DataLog!B359,\"åååå-mm-dd\"),\"\")","v":""},{"$f":"IF(DataLog!$C359=\"Log value\",DataLog!E359,\"\")","v":""},{"$f":"IF(DataLog!$C359=\"Log value\",DataLog!F359,\"\")","v":""},{"$f":"IF(DataLog!$C359=\"Log value\",DataLog!G359,\"\")","v":""},{"$f":"IF(DataLog!$C359=\"Log value\",DataLog!H359,\"\")","v":""},{"$f":"IF(DataLog!$C359=\"Log value\",DataLog!I359,\"\")","v":""},{"$f":"IF(DataLog!$C359=\"Log value\",DataLog!J359,\"\")","v":""},{"$f":"IF(DataLog!$C359=\"Log value\",DataLog!K359,\"\")","v":""},{"$f":"IF(DataLog!$C359=\"Log value\",DataLog!L359,\"\")","v":""},{"$f":"IF(DataLog!$C359=\"Log value\",DataLog!M359,\"\")","v":""},{"$f":"IF(DataLog!$C359=\"Log value\",DataLog!N359,\"\")","v":""},{"$f":"IF(DataLog!$C359=\"Log value\",DataLog!O359,\"\")","v":""},{"$f":"IF(DataLog!$C359=\"Log value\",DataLog!P359,\"\")","v":""},{"$f":"IF(DataLog!$C359=\"Log value\",DataLog!Q359,\"\")","v":""},{"$f":"IF(DataLog!$C359=\"Log value\",DataLog!R359,\"\")","v":""},{"$f":"IF(DataLog!$C359=\"Log value\",DataLog!S359,\"\")","v":""},{"$f":"IF(DataLog!$C359=\"Log value\",DataLog!T359,\"\")","v":""},{"$f":"IF(DataLog!$C359=\"Log value\",DataLog!U359,\"\")","v":""},{"$f":"IF(DataLog!$C359=\"Log value\",DataLog!V359,\"\")","v":""},{"$f":"IF(DataLog!$C359=\"Log value\",DataLog!W359,\"\")","v":""},{"$f":"IF(DataLog!$C359=\"Log value\",DataLog!X359,\"\")","v":""},{"$f":"IF(DataLog!$C359=\"Log value\",DataLog!Y359,\"\")","v":""},{"$f":"IF(DataLog!$C359=\"Log value\",DataLog!Z359,\"\")","v":""},{"$f":"IF(DataLog!$C359=\"Log value\",DataLog!AA359,\"\")","v":""},{"$f":"IF(DataLog!$C359=\"Log value\",DataLog!AB359,\"\")","v":""},{"$f":"IF(DataLog!$C359=\"Log value\",DataLog!AC359,\"\")","v":""},{"$f":"IF(DataLog!$C359=\"Log value\",DataLog!AD359,\"\")","v":""},{"$f":"IF(DataLog!$C359=\"Log value\",DataLog!AE359,\"\")","v":""},{"$f":"IF(DataLog!$C359=\"Log value\",DataLog!AF359,\"\")","v":""},{"$f":"IF(DataLog!$C359=\"Log value\",DataLog!AG359,\"\")","v":""},{"$f":"IF(DataLog!$C359=\"Log value\",DataLog!AH359,\"\")","v":""},{"$f":"IF(DataLog!$C359=\"Log value\",DataLog!AI359,\"\")","v":""},{"$f":"IF(DataLog!$C359=\"Log value\",DataLog!AJ359,\"\")","v":""},{"$f":"IF(DataLog!$C359=\"Log value\",DataLog!AK359,\"\")","v":""},{"$f":"IF(DataLog!$C359=\"Log value\",DataLog!AL359,\"\")","v":""},{"$f":"IF(DataLog!$C359=\"Log value\",DataLog!AM359,\"\")","v":""}]
[null,null,"Standard","Standard -  - ",null,null,{"$f":"IF(DataLog!$C360=\"Log value\",DataLog!D360&\"_\"&TEXT(DataLog!B360,\"åååå-mm-dd\"),\"\")","v":""},{"$f":"IF(DataLog!$C360=\"Log value\",DataLog!E360,\"\")","v":""},{"$f":"IF(DataLog!$C360=\"Log value\",DataLog!F360,\"\")","v":""},{"$f":"IF(DataLog!$C360=\"Log value\",DataLog!G360,\"\")","v":""},{"$f":"IF(DataLog!$C360=\"Log value\",DataLog!H360,\"\")","v":""},{"$f":"IF(DataLog!$C360=\"Log value\",DataLog!I360,\"\")","v":""},{"$f":"IF(DataLog!$C360=\"Log value\",DataLog!J360,\"\")","v":""},{"$f":"IF(DataLog!$C360=\"Log value\",DataLog!K360,\"\")","v":""},{"$f":"IF(DataLog!$C360=\"Log value\",DataLog!L360,\"\")","v":""},{"$f":"IF(DataLog!$C360=\"Log value\",DataLog!M360,\"\")","v":""},{"$f":"IF(DataLog!$C360=\"Log value\",DataLog!N360,\"\")","v":""},{"$f":"IF(DataLog!$C360=\"Log value\",DataLog!O360,\"\")","v":""},{"$f":"IF(DataLog!$C360=\"Log value\",DataLog!P360,\"\")","v":""},{"$f":"IF(DataLog!$C360=\"Log value\",DataLog!Q360,\"\")","v":""},{"$f":"IF(DataLog!$C360=\"Log value\",DataLog!R360,\"\")","v":""},{"$f":"IF(DataLog!$C360=\"Log value\",DataLog!S360,\"\")","v":""},{"$f":"IF(DataLog!$C360=\"Log value\",DataLog!T360,\"\")","v":""},{"$f":"IF(DataLog!$C360=\"Log value\",DataLog!U360,\"\")","v":""},{"$f":"IF(DataLog!$C360=\"Log value\",DataLog!V360,\"\")","v":""},{"$f":"IF(DataLog!$C360=\"Log value\",DataLog!W360,\"\")","v":""},{"$f":"IF(DataLog!$C360=\"Log value\",DataLog!X360,\"\")","v":""},{"$f":"IF(DataLog!$C360=\"Log value\",DataLog!Y360,\"\")","v":""},{"$f":"IF(DataLog!$C360=\"Log value\",DataLog!Z360,\"\")","v":""},{"$f":"IF(DataLog!$C360=\"Log value\",DataLog!AA360,\"\")","v":""},{"$f":"IF(DataLog!$C360=\"Log value\",DataLog!AB360,\"\")","v":""},{"$f":"IF(DataLog!$C360=\"Log value\",DataLog!AC360,\"\")","v":""},{"$f":"IF(DataLog!$C360=\"Log value\",DataLog!AD360,\"\")","v":""},{"$f":"IF(DataLog!$C360=\"Log value\",DataLog!AE360,\"\")","v":""},{"$f":"IF(DataLog!$C360=\"Log value\",DataLog!AF360,\"\")","v":""},{"$f":"IF(DataLog!$C360=\"Log value\",DataLog!AG360,\"\")","v":""},{"$f":"IF(DataLog!$C360=\"Log value\",DataLog!AH360,\"\")","v":""},{"$f":"IF(DataLog!$C360=\"Log value\",DataLog!AI360,\"\")","v":""},{"$f":"IF(DataLog!$C360=\"Log value\",DataLog!AJ360,\"\")","v":""},{"$f":"IF(DataLog!$C360=\"Log value\",DataLog!AK360,\"\")","v":""},{"$f":"IF(DataLog!$C360=\"Log value\",DataLog!AL360,\"\")","v":""},{"$f":"IF(DataLog!$C360=\"Log value\",DataLog!AM360,\"\")","v":""}]
[null,null,"Standard","Standard -  - ",null,null,{"$f":"IF(DataLog!$C361=\"Log value\",DataLog!D361&\"_\"&TEXT(DataLog!B361,\"åååå-mm-dd\"),\"\")","v":""},{"$f":"IF(DataLog!$C361=\"Log value\",DataLog!E361,\"\")","v":""},{"$f":"IF(DataLog!$C361=\"Log value\",DataLog!F361,\"\")","v":""},{"$f":"IF(DataLog!$C361=\"Log value\",DataLog!G361,\"\")","v":""},{"$f":"IF(DataLog!$C361=\"Log value\",DataLog!H361,\"\")","v":""},{"$f":"IF(DataLog!$C361=\"Log value\",DataLog!I361,\"\")","v":""},{"$f":"IF(DataLog!$C361=\"Log value\",DataLog!J361,\"\")","v":""},{"$f":"IF(DataLog!$C361=\"Log value\",DataLog!K361,\"\")","v":""},{"$f":"IF(DataLog!$C361=\"Log value\",DataLog!L361,\"\")","v":""},{"$f":"IF(DataLog!$C361=\"Log value\",DataLog!M361,\"\")","v":""},{"$f":"IF(DataLog!$C361=\"Log value\",DataLog!N361,\"\")","v":""},{"$f":"IF(DataLog!$C361=\"Log value\",DataLog!O361,\"\")","v":""},{"$f":"IF(DataLog!$C361=\"Log value\",DataLog!P361,\"\")","v":""},{"$f":"IF(DataLog!$C361=\"Log value\",DataLog!Q361,\"\")","v":""},{"$f":"IF(DataLog!$C361=\"Log value\",DataLog!R361,\"\")","v":""},{"$f":"IF(DataLog!$C361=\"Log value\",DataLog!S361,\"\")","v":""},{"$f":"IF(DataLog!$C361=\"Log value\",DataLog!T361,\"\")","v":""},{"$f":"IF(DataLog!$C361=\"Log value\",DataLog!U361,\"\")","v":""},{"$f":"IF(DataLog!$C361=\"Log value\",DataLog!V361,\"\")","v":""},{"$f":"IF(DataLog!$C361=\"Log value\",DataLog!W361,\"\")","v":""},{"$f":"IF(DataLog!$C361=\"Log value\",DataLog!X361,\"\")","v":""},{"$f":"IF(DataLog!$C361=\"Log value\",DataLog!Y361,\"\")","v":""},{"$f":"IF(DataLog!$C361=\"Log value\",DataLog!Z361,\"\")","v":""},{"$f":"IF(DataLog!$C361=\"Log value\",DataLog!AA361,\"\")","v":""},{"$f":"IF(DataLog!$C361=\"Log value\",DataLog!AB361,\"\")","v":""},{"$f":"IF(DataLog!$C361=\"Log value\",DataLog!AC361,\"\")","v":""},{"$f":"IF(DataLog!$C361=\"Log value\",DataLog!AD361,\"\")","v":""},{"$f":"IF(DataLog!$C361=\"Log value\",DataLog!AE361,\"\")","v":""},{"$f":"IF(DataLog!$C361=\"Log value\",DataLog!AF361,\"\")","v":""},{"$f":"IF(DataLog!$C361=\"Log value\",DataLog!AG361,\"\")","v":""},{"$f":"IF(DataLog!$C361=\"Log value\",DataLog!AH361,\"\")","v":""},{"$f":"IF(DataLog!$C361=\"Log value\",DataLog!AI361,\"\")","v":""},{"$f":"IF(DataLog!$C361=\"Log value\",DataLog!AJ361,\"\")","v":""},{"$f":"IF(DataLog!$C361=\"Log value\",DataLog!AK361,\"\")","v":""},{"$f":"IF(DataLog!$C361=\"Log value\",DataLog!AL361,\"\")","v":""},{"$f":"IF(DataLog!$C361=\"Log value\",DataLog!AM361,\"\")","v":""}]
[null,null,"Standard","Standard -  - ",null,null,{"$f":"IF(DataLog!$C362=\"Log value\",DataLog!D362&\"_\"&TEXT(DataLog!B362,\"åååå-mm-dd\"),\"\")","v":""},{"$f":"IF(DataLog!$C362=\"Log value\",DataLog!E362,\"\")","v":""},{"$f":"IF(DataLog!$C362=\"Log value\",DataLog!F362,\"\")","v":""},{"$f":"IF(DataLog!$C362=\"Log value\",DataLog!G362,\"\")","v":""},{"$f":"IF(DataLog!$C362=\"Log value\",DataLog!H362,\"\")","v":""},{"$f":"IF(DataLog!$C362=\"Log value\",DataLog!I362,\"\")","v":""},{"$f":"IF(DataLog!$C362=\"Log value\",DataLog!J362,\"\")","v":""},{"$f":"IF(DataLog!$C362=\"Log value\",DataLog!K362,\"\")","v":""},{"$f":"IF(DataLog!$C362=\"Log value\",DataLog!L362,\"\")","v":""},{"$f":"IF(DataLog!$C362=\"Log value\",DataLog!M362,\"\")","v":""},{"$f":"IF(DataLog!$C362=\"Log value\",DataLog!N362,\"\")","v":""},{"$f":"IF(DataLog!$C362=\"Log value\",DataLog!O362,\"\")","v":""},{"$f":"IF(DataLog!$C362=\"Log value\",DataLog!P362,\"\")","v":""},{"$f":"IF(DataLog!$C362=\"Log value\",DataLog!Q362,\"\")","v":""},{"$f":"IF(DataLog!$C362=\"Log value\",DataLog!R362,\"\")","v":""},{"$f":"IF(DataLog!$C362=\"Log value\",DataLog!S362,\"\")","v":""},{"$f":"IF(DataLog!$C362=\"Log value\",DataLog!T362,\"\")","v":""},{"$f":"IF(DataLog!$C362=\"Log value\",DataLog!U362,\"\")","v":""},{"$f":"IF(DataLog!$C362=\"Log value\",DataLog!V362,\"\")","v":""},{"$f":"IF(DataLog!$C362=\"Log value\",DataLog!W362,\"\")","v":""},{"$f":"IF(DataLog!$C362=\"Log value\",DataLog!X362,\"\")","v":""},{"$f":"IF(DataLog!$C362=\"Log value\",DataLog!Y362,\"\")","v":""},{"$f":"IF(DataLog!$C362=\"Log value\",DataLog!Z362,\"\")","v":""},{"$f":"IF(DataLog!$C362=\"Log value\",DataLog!AA362,\"\")","v":""},{"$f":"IF(DataLog!$C362=\"Log value\",DataLog!AB362,\"\")","v":""},{"$f":"IF(DataLog!$C362=\"Log value\",DataLog!AC362,\"\")","v":""},{"$f":"IF(DataLog!$C362=\"Log value\",DataLog!AD362,\"\")","v":""},{"$f":"IF(DataLog!$C362=\"Log value\",DataLog!AE362,\"\")","v":""},{"$f":"IF(DataLog!$C362=\"Log value\",DataLog!AF362,\"\")","v":""},{"$f":"IF(DataLog!$C362=\"Log value\",DataLog!AG362,\"\")","v":""},{"$f":"IF(DataLog!$C362=\"Log value\",DataLog!AH362,\"\")","v":""},{"$f":"IF(DataLog!$C362=\"Log value\",DataLog!AI362,\"\")","v":""},{"$f":"IF(DataLog!$C362=\"Log value\",DataLog!AJ362,\"\")","v":""},{"$f":"IF(DataLog!$C362=\"Log value\",DataLog!AK362,\"\")","v":""},{"$f":"IF(DataLog!$C362=\"Log value\",DataLog!AL362,\"\")","v":""},{"$f":"IF(DataLog!$C362=\"Log value\",DataLog!AM362,\"\")","v":""}]
[null,null,"Standard","Standard -  - ",null,null,{"$f":"IF(DataLog!$C363=\"Log value\",DataLog!D363&\"_\"&TEXT(DataLog!B363,\"åååå-mm-dd\"),\"\")","v":""},{"$f":"IF(DataLog!$C363=\"Log value\",DataLog!E363,\"\")","v":""},{"$f":"IF(DataLog!$C363=\"Log value\",DataLog!F363,\"\")","v":""},{"$f":"IF(DataLog!$C363=\"Log value\",DataLog!G363,\"\")","v":""},{"$f":"IF(DataLog!$C363=\"Log value\",DataLog!H363,\"\")","v":""},{"$f":"IF(DataLog!$C363=\"Log value\",DataLog!I363,\"\")","v":""},{"$f":"IF(DataLog!$C363=\"Log value\",DataLog!J363,\"\")","v":""},{"$f":"IF(DataLog!$C363=\"Log value\",DataLog!K363,\"\")","v":""},{"$f":"IF(DataLog!$C363=\"Log value\",DataLog!L363,\"\")","v":""},{"$f":"IF(DataLog!$C363=\"Log value\",DataLog!M363,\"\")","v":""},{"$f":"IF(DataLog!$C363=\"Log value\",DataLog!N363,\"\")","v":""},{"$f":"IF(DataLog!$C363=\"Log value\",DataLog!O363,\"\")","v":""},{"$f":"IF(DataLog!$C363=\"Log value\",DataLog!P363,\"\")","v":""},{"$f":"IF(DataLog!$C363=\"Log value\",DataLog!Q363,\"\")","v":""},{"$f":"IF(DataLog!$C363=\"Log value\",DataLog!R363,\"\")","v":""},{"$f":"IF(DataLog!$C363=\"Log value\",DataLog!S363,\"\")","v":""},{"$f":"IF(DataLog!$C363=\"Log value\",DataLog!T363,\"\")","v":""},{"$f":"IF(DataLog!$C363=\"Log value\",DataLog!U363,\"\")","v":""},{"$f":"IF(DataLog!$C363=\"Log value\",DataLog!V363,\"\")","v":""},{"$f":"IF(DataLog!$C363=\"Log value\",DataLog!W363,\"\")","v":""},{"$f":"IF(DataLog!$C363=\"Log value\",DataLog!X363,\"\")","v":""},{"$f":"IF(DataLog!$C363=\"Log value\",DataLog!Y363,\"\")","v":""},{"$f":"IF(DataLog!$C363=\"Log value\",DataLog!Z363,\"\")","v":""},{"$f":"IF(DataLog!$C363=\"Log value\",DataLog!AA363,\"\")","v":""},{"$f":"IF(DataLog!$C363=\"Log value\",DataLog!AB363,\"\")","v":""},{"$f":"IF(DataLog!$C363=\"Log value\",DataLog!AC363,\"\")","v":""},{"$f":"IF(DataLog!$C363=\"Log value\",DataLog!AD363,\"\")","v":""},{"$f":"IF(DataLog!$C363=\"Log value\",DataLog!AE363,\"\")","v":""},{"$f":"IF(DataLog!$C363=\"Log value\",DataLog!AF363,\"\")","v":""},{"$f":"IF(DataLog!$C363=\"Log value\",DataLog!AG363,\"\")","v":""},{"$f":"IF(DataLog!$C363=\"Log value\",DataLog!AH363,\"\")","v":""},{"$f":"IF(DataLog!$C363=\"Log value\",DataLog!AI363,\"\")","v":""},{"$f":"IF(DataLog!$C363=\"Log value\",DataLog!AJ363,\"\")","v":""},{"$f":"IF(DataLog!$C363=\"Log value\",DataLog!AK363,\"\")","v":""},{"$f":"IF(DataLog!$C363=\"Log value\",DataLog!AL363,\"\")","v":""},{"$f":"IF(DataLog!$C363=\"Log value\",DataLog!AM363,\"\")","v":""}]
[null,null,"Standard","Standard -  - ",null,null,{"$f":"IF(DataLog!$C364=\"Log value\",DataLog!D364&\"_\"&TEXT(DataLog!B364,\"åååå-mm-dd\"),\"\")","v":""},{"$f":"IF(DataLog!$C364=\"Log value\",DataLog!E364,\"\")","v":""},{"$f":"IF(DataLog!$C364=\"Log value\",DataLog!F364,\"\")","v":""},{"$f":"IF(DataLog!$C364=\"Log value\",DataLog!G364,\"\")","v":""},{"$f":"IF(DataLog!$C364=\"Log value\",DataLog!H364,\"\")","v":""},{"$f":"IF(DataLog!$C364=\"Log value\",DataLog!I364,\"\")","v":""},{"$f":"IF(DataLog!$C364=\"Log value\",DataLog!J364,\"\")","v":""},{"$f":"IF(DataLog!$C364=\"Log value\",DataLog!K364,\"\")","v":""},{"$f":"IF(DataLog!$C364=\"Log value\",DataLog!L364,\"\")","v":""},{"$f":"IF(DataLog!$C364=\"Log value\",DataLog!M364,\"\")","v":""},{"$f":"IF(DataLog!$C364=\"Log value\",DataLog!N364,\"\")","v":""},{"$f":"IF(DataLog!$C364=\"Log value\",DataLog!O364,\"\")","v":""},{"$f":"IF(DataLog!$C364=\"Log value\",DataLog!P364,\"\")","v":""},{"$f":"IF(DataLog!$C364=\"Log value\",DataLog!Q364,\"\")","v":""},{"$f":"IF(DataLog!$C364=\"Log value\",DataLog!R364,\"\")","v":""},{"$f":"IF(DataLog!$C364=\"Log value\",DataLog!S364,\"\")","v":""},{"$f":"IF(DataLog!$C364=\"Log value\",DataLog!T364,\"\")","v":""},{"$f":"IF(DataLog!$C364=\"Log value\",DataLog!U364,\"\")","v":""},{"$f":"IF(DataLog!$C364=\"Log value\",DataLog!V364,\"\")","v":""},{"$f":"IF(DataLog!$C364=\"Log value\",DataLog!W364,\"\")","v":""},{"$f":"IF(DataLog!$C364=\"Log value\",DataLog!X364,\"\")","v":""},{"$f":"IF(DataLog!$C364=\"Log value\",DataLog!Y364,\"\")","v":""},{"$f":"IF(DataLog!$C364=\"Log value\",DataLog!Z364,\"\")","v":""},{"$f":"IF(DataLog!$C364=\"Log value\",DataLog!AA364,\"\")","v":""},{"$f":"IF(DataLog!$C364=\"Log value\",DataLog!AB364,\"\")","v":""},{"$f":"IF(DataLog!$C364=\"Log value\",DataLog!AC364,\"\")","v":""},{"$f":"IF(DataLog!$C364=\"Log value\",DataLog!AD364,\"\")","v":""},{"$f":"IF(DataLog!$C364=\"Log value\",DataLog!AE364,\"\")","v":""},{"$f":"IF(DataLog!$C364=\"Log value\",DataLog!AF364,\"\")","v":""},{"$f":"IF(DataLog!$C364=\"Log value\",DataLog!AG364,\"\")","v":""},{"$f":"IF(DataLog!$C364=\"Log value\",DataLog!AH364,\"\")","v":""},{"$f":"IF(DataLog!$C364=\"Log value\",DataLog!AI364,\"\")","v":""},{"$f":"IF(DataLog!$C364=\"Log value\",DataLog!AJ364,\"\")","v":""},{"$f":"IF(DataLog!$C364=\"Log value\",DataLog!AK364,\"\")","v":""},{"$f":"IF(DataLog!$C364=\"Log value\",DataLog!AL364,\"\")","v":""},{"$f":"IF(DataLog!$C364=\"Log value\",DataLog!AM364,\"\")","v":""}]
[null,null,"Standard","Standard -  - ",null,null,{"$f":"IF(DataLog!$C365=\"Log value\",DataLog!D365&\"_\"&TEXT(DataLog!B365,\"åååå-mm-dd\"),\"\")","v":""},{"$f":"IF(DataLog!$C365=\"Log value\",DataLog!E365,\"\")","v":""},{"$f":"IF(DataLog!$C365=\"Log value\",DataLog!F365,\"\")","v":""},{"$f":"IF(DataLog!$C365=\"Log value\",DataLog!G365,\"\")","v":""},{"$f":"IF(DataLog!$C365=\"Log value\",DataLog!H365,\"\")","v":""},{"$f":"IF(DataLog!$C365=\"Log value\",DataLog!I365,\"\")","v":""},{"$f":"IF(DataLog!$C365=\"Log value\",DataLog!J365,\"\")","v":""},{"$f":"IF(DataLog!$C365=\"Log value\",DataLog!K365,\"\")","v":""},{"$f":"IF(DataLog!$C365=\"Log value\",DataLog!L365,\"\")","v":""},{"$f":"IF(DataLog!$C365=\"Log value\",DataLog!M365,\"\")","v":""},{"$f":"IF(DataLog!$C365=\"Log value\",DataLog!N365,\"\")","v":""},{"$f":"IF(DataLog!$C365=\"Log value\",DataLog!O365,\"\")","v":""},{"$f":"IF(DataLog!$C365=\"Log value\",DataLog!P365,\"\")","v":""},{"$f":"IF(DataLog!$C365=\"Log value\",DataLog!Q365,\"\")","v":""},{"$f":"IF(DataLog!$C365=\"Log value\",DataLog!R365,\"\")","v":""},{"$f":"IF(DataLog!$C365=\"Log value\",DataLog!S365,\"\")","v":""},{"$f":"IF(DataLog!$C365=\"Log value\",DataLog!T365,\"\")","v":""},{"$f":"IF(DataLog!$C365=\"Log value\",DataLog!U365,\"\")","v":""},{"$f":"IF(DataLog!$C365=\"Log value\",DataLog!V365,\"\")","v":""},{"$f":"IF(DataLog!$C365=\"Log value\",DataLog!W365,\"\")","v":""},{"$f":"IF(DataLog!$C365=\"Log value\",DataLog!X365,\"\")","v":""},{"$f":"IF(DataLog!$C365=\"Log value\",DataLog!Y365,\"\")","v":""},{"$f":"IF(DataLog!$C365=\"Log value\",DataLog!Z365,\"\")","v":""},{"$f":"IF(DataLog!$C365=\"Log value\",DataLog!AA365,\"\")","v":""},{"$f":"IF(DataLog!$C365=\"Log value\",DataLog!AB365,\"\")","v":""},{"$f":"IF(DataLog!$C365=\"Log value\",DataLog!AC365,\"\")","v":""},{"$f":"IF(DataLog!$C365=\"Log value\",DataLog!AD365,\"\")","v":""},{"$f":"IF(DataLog!$C365=\"Log value\",DataLog!AE365,\"\")","v":""},{"$f":"IF(DataLog!$C365=\"Log value\",DataLog!AF365,\"\")","v":""},{"$f":"IF(DataLog!$C365=\"Log value\",DataLog!AG365,\"\")","v":""},{"$f":"IF(DataLog!$C365=\"Log value\",DataLog!AH365,\"\")","v":""},{"$f":"IF(DataLog!$C365=\"Log value\",DataLog!AI365,\"\")","v":""},{"$f":"IF(DataLog!$C365=\"Log value\",DataLog!AJ365,\"\")","v":""},{"$f":"IF(DataLog!$C365=\"Log value\",DataLog!AK365,\"\")","v":""},{"$f":"IF(DataLog!$C365=\"Log value\",DataLog!AL365,\"\")","v":""},{"$f":"IF(DataLog!$C365=\"Log value\",DataLog!AM365,\"\")","v":""}]
[null,null,"Standard","Standard -  - ",null,null,{"$f":"IF(DataLog!$C366=\"Log value\",DataLog!D366&\"_\"&TEXT(DataLog!B366,\"åååå-mm-dd\"),\"\")","v":""},{"$f":"IF(DataLog!$C366=\"Log value\",DataLog!E366,\"\")","v":""},{"$f":"IF(DataLog!$C366=\"Log value\",DataLog!F366,\"\")","v":""},{"$f":"IF(DataLog!$C366=\"Log value\",DataLog!G366,\"\")","v":""},{"$f":"IF(DataLog!$C366=\"Log value\",DataLog!H366,\"\")","v":""},{"$f":"IF(DataLog!$C366=\"Log value\",DataLog!I366,\"\")","v":""},{"$f":"IF(DataLog!$C366=\"Log value\",DataLog!J366,\"\")","v":""},{"$f":"IF(DataLog!$C366=\"Log value\",DataLog!K366,\"\")","v":""},{"$f":"IF(DataLog!$C366=\"Log value\",DataLog!L366,\"\")","v":""},{"$f":"IF(DataLog!$C366=\"Log value\",DataLog!M366,\"\")","v":""},{"$f":"IF(DataLog!$C366=\"Log value\",DataLog!N366,\"\")","v":""},{"$f":"IF(DataLog!$C366=\"Log value\",DataLog!O366,\"\")","v":""},{"$f":"IF(DataLog!$C366=\"Log value\",DataLog!P366,\"\")","v":""},{"$f":"IF(DataLog!$C366=\"Log value\",DataLog!Q366,\"\")","v":""},{"$f":"IF(DataLog!$C366=\"Log value\",DataLog!R366,\"\")","v":""},{"$f":"IF(DataLog!$C366=\"Log value\",DataLog!S366,\"\")","v":""},{"$f":"IF(DataLog!$C366=\"Log value\",DataLog!T366,\"\")","v":""},{"$f":"IF(DataLog!$C366=\"Log value\",DataLog!U366,\"\")","v":""},{"$f":"IF(DataLog!$C366=\"Log value\",DataLog!V366,\"\")","v":""},{"$f":"IF(DataLog!$C366=\"Log value\",DataLog!W366,\"\")","v":""},{"$f":"IF(DataLog!$C366=\"Log value\",DataLog!X366,\"\")","v":""},{"$f":"IF(DataLog!$C366=\"Log value\",DataLog!Y366,\"\")","v":""},{"$f":"IF(DataLog!$C366=\"Log value\",DataLog!Z366,\"\")","v":""},{"$f":"IF(DataLog!$C366=\"Log value\",DataLog!AA366,\"\")","v":""},{"$f":"IF(DataLog!$C366=\"Log value\",DataLog!AB366,\"\")","v":""},{"$f":"IF(DataLog!$C366=\"Log value\",DataLog!AC366,\"\")","v":""},{"$f":"IF(DataLog!$C366=\"Log value\",DataLog!AD366,\"\")","v":""},{"$f":"IF(DataLog!$C366=\"Log value\",DataLog!AE366,\"\")","v":""},{"$f":"IF(DataLog!$C366=\"Log value\",DataLog!AF366,\"\")","v":""},{"$f":"IF(DataLog!$C366=\"Log value\",DataLog!AG366,\"\")","v":""},{"$f":"IF(DataLog!$C366=\"Log value\",DataLog!AH366,\"\")","v":""},{"$f":"IF(DataLog!$C366=\"Log value\",DataLog!AI366,\"\")","v":""},{"$f":"IF(DataLog!$C366=\"Log value\",DataLog!AJ366,\"\")","v":""},{"$f":"IF(DataLog!$C366=\"Log value\",DataLog!AK366,\"\")","v":""},{"$f":"IF(DataLog!$C366=\"Log value\",DataLog!AL366,\"\")","v":""},{"$f":"IF(DataLog!$C366=\"Log value\",DataLog!AM366,\"\")","v":""}]
[null,null,"Standard","Standard -  - ",null,null,{"$f":"IF(DataLog!$C367=\"Log value\",DataLog!D367&\"_\"&TEXT(DataLog!B367,\"åååå-mm-dd\"),\"\")","v":""},{"$f":"IF(DataLog!$C367=\"Log value\",DataLog!E367,\"\")","v":""},{"$f":"IF(DataLog!$C367=\"Log value\",DataLog!F367,\"\")","v":""},{"$f":"IF(DataLog!$C367=\"Log value\",DataLog!G367,\"\")","v":""},{"$f":"IF(DataLog!$C367=\"Log value\",DataLog!H367,\"\")","v":""},{"$f":"IF(DataLog!$C367=\"Log value\",DataLog!I367,\"\")","v":""},{"$f":"IF(DataLog!$C367=\"Log value\",DataLog!J367,\"\")","v":""},{"$f":"IF(DataLog!$C367=\"Log value\",DataLog!K367,\"\")","v":""},{"$f":"IF(DataLog!$C367=\"Log value\",DataLog!L367,\"\")","v":""},{"$f":"IF(DataLog!$C367=\"Log value\",DataLog!M367,\"\")","v":""},{"$f":"IF(DataLog!$C367=\"Log value\",DataLog!N367,\"\")","v":""},{"$f":"IF(DataLog!$C367=\"Log value\",DataLog!O367,\"\")","v":""},{"$f":"IF(DataLog!$C367=\"Log value\",DataLog!P367,\"\")","v":""},{"$f":"IF(DataLog!$C367=\"Log value\",DataLog!Q367,\"\")","v":""},{"$f":"IF(DataLog!$C367=\"Log value\",DataLog!R367,\"\")","v":""},{"$f":"IF(DataLog!$C367=\"Log value\",DataLog!S367,\"\")","v":""},{"$f":"IF(DataLog!$C367=\"Log value\",DataLog!T367,\"\")","v":""},{"$f":"IF(DataLog!$C367=\"Log value\",DataLog!U367,\"\")","v":""},{"$f":"IF(DataLog!$C367=\"Log value\",DataLog!V367,\"\")","v":""},{"$f":"IF(DataLog!$C367=\"Log value\",DataLog!W367,\"\")","v":""},{"$f":"IF(DataLog!$C367=\"Log value\",DataLog!X367,\"\")","v":""},{"$f":"IF(DataLog!$C367=\"Log value\",DataLog!Y367,\"\")","v":""},{"$f":"IF(DataLog!$C367=\"Log value\",DataLog!Z367,\"\")","v":""},{"$f":"IF(DataLog!$C367=\"Log value\",DataLog!AA367,\"\")","v":""},{"$f":"IF(DataLog!$C367=\"Log value\",DataLog!AB367,\"\")","v":""},{"$f":"IF(DataLog!$C367=\"Log value\",DataLog!AC367,\"\")","v":""},{"$f":"IF(DataLog!$C367=\"Log value\",DataLog!AD367,\"\")","v":""},{"$f":"IF(DataLog!$C367=\"Log value\",DataLog!AE367,\"\")","v":""},{"$f":"IF(DataLog!$C367=\"Log value\",DataLog!AF367,\"\")","v":""},{"$f":"IF(DataLog!$C367=\"Log value\",DataLog!AG367,\"\")","v":""},{"$f":"IF(DataLog!$C367=\"Log value\",DataLog!AH367,\"\")","v":""},{"$f":"IF(DataLog!$C367=\"Log value\",DataLog!AI367,\"\")","v":""},{"$f":"IF(DataLog!$C367=\"Log value\",DataLog!AJ367,\"\")","v":""},{"$f":"IF(DataLog!$C367=\"Log value\",DataLog!AK367,\"\")","v":""},{"$f":"IF(DataLog!$C367=\"Log value\",DataLog!AL367,\"\")","v":""},{"$f":"IF(DataLog!$C367=\"Log value\",DataLog!AM367,\"\")","v":""}]
[null,null,"Standard","Standard -  - ",null,null,{"$f":"IF(DataLog!$C368=\"Log value\",DataLog!D368&\"_\"&TEXT(DataLog!B368,\"åååå-mm-dd\"),\"\")","v":""},{"$f":"IF(DataLog!$C368=\"Log value\",DataLog!E368,\"\")","v":""},{"$f":"IF(DataLog!$C368=\"Log value\",DataLog!F368,\"\")","v":""},{"$f":"IF(DataLog!$C368=\"Log value\",DataLog!G368,\"\")","v":""},{"$f":"IF(DataLog!$C368=\"Log value\",DataLog!H368,\"\")","v":""},{"$f":"IF(DataLog!$C368=\"Log value\",DataLog!I368,\"\")","v":""},{"$f":"IF(DataLog!$C368=\"Log value\",DataLog!J368,\"\")","v":""},{"$f":"IF(DataLog!$C368=\"Log value\",DataLog!K368,\"\")","v":""},{"$f":"IF(DataLog!$C368=\"Log value\",DataLog!L368,\"\")","v":""},{"$f":"IF(DataLog!$C368=\"Log value\",DataLog!M368,\"\")","v":""},{"$f":"IF(DataLog!$C368=\"Log value\",DataLog!N368,\"\")","v":""},{"$f":"IF(DataLog!$C368=\"Log value\",DataLog!O368,\"\")","v":""},{"$f":"IF(DataLog!$C368=\"Log value\",DataLog!P368,\"\")","v":""},{"$f":"IF(DataLog!$C368=\"Log value\",DataLog!Q368,\"\")","v":""},{"$f":"IF(DataLog!$C368=\"Log value\",DataLog!R368,\"\")","v":""},{"$f":"IF(DataLog!$C368=\"Log value\",DataLog!S368,\"\")","v":""},{"$f":"IF(DataLog!$C368=\"Log value\",DataLog!T368,\"\")","v":""},{"$f":"IF(DataLog!$C368=\"Log value\",DataLog!U368,\"\")","v":""},{"$f":"IF(DataLog!$C368=\"Log value\",DataLog!V368,\"\")","v":""},{"$f":"IF(DataLog!$C368=\"Log value\",DataLog!W368,\"\")","v":""},{"$f":"IF(DataLog!$C368=\"Log value\",DataLog!X368,\"\")","v":""},{"$f":"IF(DataLog!$C368=\"Log value\",DataLog!Y368,\"\")","v":""},{"$f":"IF(DataLog!$C368=\"Log value\",DataLog!Z368,\"\")","v":""},{"$f":"IF(DataLog!$C368=\"Log value\",DataLog!AA368,\"\")","v":""},{"$f":"IF(DataLog!$C368=\"Log value\",DataLog!AB368,\"\")","v":""},{"$f":"IF(DataLog!$C368=\"Log value\",DataLog!AC368,\"\")","v":""},{"$f":"IF(DataLog!$C368=\"Log value\",DataLog!AD368,\"\")","v":""},{"$f":"IF(DataLog!$C368=\"Log value\",DataLog!AE368,\"\")","v":""},{"$f":"IF(DataLog!$C368=\"Log value\",DataLog!AF368,\"\")","v":""},{"$f":"IF(DataLog!$C368=\"Log value\",DataLog!AG368,\"\")","v":""},{"$f":"IF(DataLog!$C368=\"Log value\",DataLog!AH368,\"\")","v":""},{"$f":"IF(DataLog!$C368=\"Log value\",DataLog!AI368,\"\")","v":""},{"$f":"IF(DataLog!$C368=\"Log value\",DataLog!AJ368,\"\")","v":""},{"$f":"IF(DataLog!$C368=\"Log value\",DataLog!AK368,\"\")","v":""},{"$f":"IF(DataLog!$C368=\"Log value\",DataLog!AL368,\"\")","v":""},{"$f":"IF(DataLog!$C368=\"Log value\",DataLog!AM368,\"\")","v":""}]
[null,null,"Standard","Standard -  - ",null,null,{"$f":"IF(DataLog!$C369=\"Log value\",DataLog!D369&\"_\"&TEXT(DataLog!B369,\"åååå-mm-dd\"),\"\")","v":""},{"$f":"IF(DataLog!$C369=\"Log value\",DataLog!E369,\"\")","v":""},{"$f":"IF(DataLog!$C369=\"Log value\",DataLog!F369,\"\")","v":""},{"$f":"IF(DataLog!$C369=\"Log value\",DataLog!G369,\"\")","v":""},{"$f":"IF(DataLog!$C369=\"Log value\",DataLog!H369,\"\")","v":""},{"$f":"IF(DataLog!$C369=\"Log value\",DataLog!I369,\"\")","v":""},{"$f":"IF(DataLog!$C369=\"Log value\",DataLog!J369,\"\")","v":""},{"$f":"IF(DataLog!$C369=\"Log value\",DataLog!K369,\"\")","v":""},{"$f":"IF(DataLog!$C369=\"Log value\",DataLog!L369,\"\")","v":""},{"$f":"IF(DataLog!$C369=\"Log value\",DataLog!M369,\"\")","v":""},{"$f":"IF(DataLog!$C369=\"Log value\",DataLog!N369,\"\")","v":""},{"$f":"IF(DataLog!$C369=\"Log value\",DataLog!O369,\"\")","v":""},{"$f":"IF(DataLog!$C369=\"Log value\",DataLog!P369,\"\")","v":""},{"$f":"IF(DataLog!$C369=\"Log value\",DataLog!Q369,\"\")","v":""},{"$f":"IF(DataLog!$C369=\"Log value\",DataLog!R369,\"\")","v":""},{"$f":"IF(DataLog!$C369=\"Log value\",DataLog!S369,\"\")","v":""},{"$f":"IF(DataLog!$C369=\"Log value\",DataLog!T369,\"\")","v":""},{"$f":"IF(DataLog!$C369=\"Log value\",DataLog!U369,\"\")","v":""},{"$f":"IF(DataLog!$C369=\"Log value\",DataLog!V369,\"\")","v":""},{"$f":"IF(DataLog!$C369=\"Log value\",DataLog!W369,\"\")","v":""},{"$f":"IF(DataLog!$C369=\"Log value\",DataLog!X369,\"\")","v":""},{"$f":"IF(DataLog!$C369=\"Log value\",DataLog!Y369,\"\")","v":""},{"$f":"IF(DataLog!$C369=\"Log value\",DataLog!Z369,\"\")","v":""},{"$f":"IF(DataLog!$C369=\"Log value\",DataLog!AA369,\"\")","v":""},{"$f":"IF(DataLog!$C369=\"Log value\",DataLog!AB369,\"\")","v":""},{"$f":"IF(DataLog!$C369=\"Log value\",DataLog!AC369,\"\")","v":""},{"$f":"IF(DataLog!$C369=\"Log value\",DataLog!AD369,\"\")","v":""},{"$f":"IF(DataLog!$C369=\"Log value\",DataLog!AE369,\"\")","v":""},{"$f":"IF(DataLog!$C369=\"Log value\",DataLog!AF369,\"\")","v":""},{"$f":"IF(DataLog!$C369=\"Log value\",DataLog!AG369,\"\")","v":""},{"$f":"IF(DataLog!$C369=\"Log value\",DataLog!AH369,\"\")","v":""},{"$f":"IF(DataLog!$C369=\"Log value\",DataLog!AI369,\"\")","v":""},{"$f":"IF(DataLog!$C369=\"Log value\",DataLog!AJ369,\"\")","v":""},{"$f":"IF(DataLog!$C369=\"Log value\",DataLog!AK369,\"\")","v":""},{"$f":"IF(DataLog!$C369=\"Log value\",DataLog!AL369,\"\")","v":""},{"$f":"IF(DataLog!$C369=\"Log value\",DataLog!AM369,\"\")","v":""}]
[null,null,"Standard","Standard -  - ",null,null,{"$f":"IF(DataLog!$C370=\"Log value\",DataLog!D370&\"_\"&TEXT(DataLog!B370,\"åååå-mm-dd\"),\"\")","v":""},{"$f":"IF(DataLog!$C370=\"Log value\",DataLog!E370,\"\")","v":""},{"$f":"IF(DataLog!$C370=\"Log value\",DataLog!F370,\"\")","v":""},{"$f":"IF(DataLog!$C370=\"Log value\",DataLog!G370,\"\")","v":""},{"$f":"IF(DataLog!$C370=\"Log value\",DataLog!H370,\"\")","v":""},{"$f":"IF(DataLog!$C370=\"Log value\",DataLog!I370,\"\")","v":""},{"$f":"IF(DataLog!$C370=\"Log value\",DataLog!J370,\"\")","v":""},{"$f":"IF(DataLog!$C370=\"Log value\",DataLog!K370,\"\")","v":""},{"$f":"IF(DataLog!$C370=\"Log value\",DataLog!L370,\"\")","v":""},{"$f":"IF(DataLog!$C370=\"Log value\",DataLog!M370,\"\")","v":""},{"$f":"IF(DataLog!$C370=\"Log value\",DataLog!N370,\"\")","v":""},{"$f":"IF(DataLog!$C370=\"Log value\",DataLog!O370,\"\")","v":""},{"$f":"IF(DataLog!$C370=\"Log value\",DataLog!P370,\"\")","v":""},{"$f":"IF(DataLog!$C370=\"Log value\",DataLog!Q370,\"\")","v":""},{"$f":"IF(DataLog!$C370=\"Log value\",DataLog!R370,\"\")","v":""},{"$f":"IF(DataLog!$C370=\"Log value\",DataLog!S370,\"\")","v":""},{"$f":"IF(DataLog!$C370=\"Log value\",DataLog!T370,\"\")","v":""},{"$f":"IF(DataLog!$C370=\"Log value\",DataLog!U370,\"\")","v":""},{"$f":"IF(DataLog!$C370=\"Log value\",DataLog!V370,\"\")","v":""},{"$f":"IF(DataLog!$C370=\"Log value\",DataLog!W370,\"\")","v":""},{"$f":"IF(DataLog!$C370=\"Log value\",DataLog!X370,\"\")","v":""},{"$f":"IF(DataLog!$C370=\"Log value\",DataLog!Y370,\"\")","v":""},{"$f":"IF(DataLog!$C370=\"Log value\",DataLog!Z370,\"\")","v":""},{"$f":"IF(DataLog!$C370=\"Log value\",DataLog!AA370,\"\")","v":""},{"$f":"IF(DataLog!$C370=\"Log value\",DataLog!AB370,\"\")","v":""},{"$f":"IF(DataLog!$C370=\"Log value\",DataLog!AC370,\"\")","v":""},{"$f":"IF(DataLog!$C370=\"Log value\",DataLog!AD370,\"\")","v":""},{"$f":"IF(DataLog!$C370=\"Log value\",DataLog!AE370,\"\")","v":""},{"$f":"IF(DataLog!$C370=\"Log value\",DataLog!AF370,\"\")","v":""},{"$f":"IF(DataLog!$C370=\"Log value\",DataLog!AG370,\"\")","v":""},{"$f":"IF(DataLog!$C370=\"Log value\",DataLog!AH370,\"\")","v":""},{"$f":"IF(DataLog!$C370=\"Log value\",DataLog!AI370,\"\")","v":""},{"$f":"IF(DataLog!$C370=\"Log value\",DataLog!AJ370,\"\")","v":""},{"$f":"IF(DataLog!$C370=\"Log value\",DataLog!AK370,\"\")","v":""},{"$f":"IF(DataLog!$C370=\"Log value\",DataLog!AL370,\"\")","v":""},{"$f":"IF(DataLog!$C370=\"Log value\",DataLog!AM370,\"\")","v":""}]
[null,null,"Standard","Standard -  - ",null,null,{"$f":"IF(DataLog!$C371=\"Log value\",DataLog!D371&\"_\"&TEXT(DataLog!B371,\"åååå-mm-dd\"),\"\")","v":""},{"$f":"IF(DataLog!$C371=\"Log value\",DataLog!E371,\"\")","v":""},{"$f":"IF(DataLog!$C371=\"Log value\",DataLog!F371,\"\")","v":""},{"$f":"IF(DataLog!$C371=\"Log value\",DataLog!G371,\"\")","v":""},{"$f":"IF(DataLog!$C371=\"Log value\",DataLog!H371,\"\")","v":""},{"$f":"IF(DataLog!$C371=\"Log value\",DataLog!I371,\"\")","v":""},{"$f":"IF(DataLog!$C371=\"Log value\",DataLog!J371,\"\")","v":""},{"$f":"IF(DataLog!$C371=\"Log value\",DataLog!K371,\"\")","v":""},{"$f":"IF(DataLog!$C371=\"Log value\",DataLog!L371,\"\")","v":""},{"$f":"IF(DataLog!$C371=\"Log value\",DataLog!M371,\"\")","v":""},{"$f":"IF(DataLog!$C371=\"Log value\",DataLog!N371,\"\")","v":""},{"$f":"IF(DataLog!$C371=\"Log value\",DataLog!O371,\"\")","v":""},{"$f":"IF(DataLog!$C371=\"Log value\",DataLog!P371,\"\")","v":""},{"$f":"IF(DataLog!$C371=\"Log value\",DataLog!Q371,\"\")","v":""},{"$f":"IF(DataLog!$C371=\"Log value\",DataLog!R371,\"\")","v":""},{"$f":"IF(DataLog!$C371=\"Log value\",DataLog!S371,\"\")","v":""},{"$f":"IF(DataLog!$C371=\"Log value\",DataLog!T371,\"\")","v":""},{"$f":"IF(DataLog!$C371=\"Log value\",DataLog!U371,\"\")","v":""},{"$f":"IF(DataLog!$C371=\"Log value\",DataLog!V371,\"\")","v":""},{"$f":"IF(DataLog!$C371=\"Log value\",DataLog!W371,\"\")","v":""},{"$f":"IF(DataLog!$C371=\"Log value\",DataLog!X371,\"\")","v":""},{"$f":"IF(DataLog!$C371=\"Log value\",DataLog!Y371,\"\")","v":""},{"$f":"IF(DataLog!$C371=\"Log value\",DataLog!Z371,\"\")","v":""},{"$f":"IF(DataLog!$C371=\"Log value\",DataLog!AA371,\"\")","v":""},{"$f":"IF(DataLog!$C371=\"Log value\",DataLog!AB371,\"\")","v":""},{"$f":"IF(DataLog!$C371=\"Log value\",DataLog!AC371,\"\")","v":""},{"$f":"IF(DataLog!$C371=\"Log value\",DataLog!AD371,\"\")","v":""},{"$f":"IF(DataLog!$C371=\"Log value\",DataLog!AE371,\"\")","v":""},{"$f":"IF(DataLog!$C371=\"Log value\",DataLog!AF371,\"\")","v":""},{"$f":"IF(DataLog!$C371=\"Log value\",DataLog!AG371,\"\")","v":""},{"$f":"IF(DataLog!$C371=\"Log value\",DataLog!AH371,\"\")","v":""},{"$f":"IF(DataLog!$C371=\"Log value\",DataLog!AI371,\"\")","v":""},{"$f":"IF(DataLog!$C371=\"Log value\",DataLog!AJ371,\"\")","v":""},{"$f":"IF(DataLog!$C371=\"Log value\",DataLog!AK371,\"\")","v":""},{"$f":"IF(DataLog!$C371=\"Log value\",DataLog!AL371,\"\")","v":""},{"$f":"IF(DataLog!$C371=\"Log value\",DataLog!AM371,\"\")","v":""}]
[null,null,"Standard","Standard -  - ",null,null,{"$f":"IF(DataLog!$C372=\"Log value\",DataLog!D372&\"_\"&TEXT(DataLog!B372,\"åååå-mm-dd\"),\"\")","v":""},{"$f":"IF(DataLog!$C372=\"Log value\",DataLog!E372,\"\")","v":""},{"$f":"IF(DataLog!$C372=\"Log value\",DataLog!F372,\"\")","v":""},{"$f":"IF(DataLog!$C372=\"Log value\",DataLog!G372,\"\")","v":""},{"$f":"IF(DataLog!$C372=\"Log value\",DataLog!H372,\"\")","v":""},{"$f":"IF(DataLog!$C372=\"Log value\",DataLog!I372,\"\")","v":""},{"$f":"IF(DataLog!$C372=\"Log value\",DataLog!J372,\"\")","v":""},{"$f":"IF(DataLog!$C372=\"Log value\",DataLog!K372,\"\")","v":""},{"$f":"IF(DataLog!$C372=\"Log value\",DataLog!L372,\"\")","v":""},{"$f":"IF(DataLog!$C372=\"Log value\",DataLog!M372,\"\")","v":""},{"$f":"IF(DataLog!$C372=\"Log value\",DataLog!N372,\"\")","v":""},{"$f":"IF(DataLog!$C372=\"Log value\",DataLog!O372,\"\")","v":""},{"$f":"IF(DataLog!$C372=\"Log value\",DataLog!P372,\"\")","v":""},{"$f":"IF(DataLog!$C372=\"Log value\",DataLog!Q372,\"\")","v":""},{"$f":"IF(DataLog!$C372=\"Log value\",DataLog!R372,\"\")","v":""},{"$f":"IF(DataLog!$C372=\"Log value\",DataLog!S372,\"\")","v":""},{"$f":"IF(DataLog!$C372=\"Log value\",DataLog!T372,\"\")","v":""},{"$f":"IF(DataLog!$C372=\"Log value\",DataLog!U372,\"\")","v":""},{"$f":"IF(DataLog!$C372=\"Log value\",DataLog!V372,\"\")","v":""},{"$f":"IF(DataLog!$C372=\"Log value\",DataLog!W372,\"\")","v":""},{"$f":"IF(DataLog!$C372=\"Log value\",DataLog!X372,\"\")","v":""},{"$f":"IF(DataLog!$C372=\"Log value\",DataLog!Y372,\"\")","v":""},{"$f":"IF(DataLog!$C372=\"Log value\",DataLog!Z372,\"\")","v":""},{"$f":"IF(DataLog!$C372=\"Log value\",DataLog!AA372,\"\")","v":""},{"$f":"IF(DataLog!$C372=\"Log value\",DataLog!AB372,\"\")","v":""},{"$f":"IF(DataLog!$C372=\"Log value\",DataLog!AC372,\"\")","v":""},{"$f":"IF(DataLog!$C372=\"Log value\",DataLog!AD372,\"\")","v":""},{"$f":"IF(DataLog!$C372=\"Log value\",DataLog!AE372,\"\")","v":""},{"$f":"IF(DataLog!$C372=\"Log value\",DataLog!AF372,\"\")","v":""},{"$f":"IF(DataLog!$C372=\"Log value\",DataLog!AG372,\"\")","v":""},{"$f":"IF(DataLog!$C372=\"Log value\",DataLog!AH372,\"\")","v":""},{"$f":"IF(DataLog!$C372=\"Log value\",DataLog!AI372,\"\")","v":""},{"$f":"IF(DataLog!$C372=\"Log value\",DataLog!AJ372,\"\")","v":""},{"$f":"IF(DataLog!$C372=\"Log value\",DataLog!AK372,\"\")","v":""},{"$f":"IF(DataLog!$C372=\"Log value\",DataLog!AL372,\"\")","v":""},{"$f":"IF(DataLog!$C372=\"Log value\",DataLog!AM372,\"\")","v":""}]
[null,null,"Standard","Standard -  - ",null,null,{"$f":"IF(DataLog!$C373=\"Log value\",DataLog!D373&\"_\"&TEXT(DataLog!B373,\"åååå-mm-dd\"),\"\")","v":""},{"$f":"IF(DataLog!$C373=\"Log value\",DataLog!E373,\"\")","v":""},{"$f":"IF(DataLog!$C373=\"Log value\",DataLog!F373,\"\")","v":""},{"$f":"IF(DataLog!$C373=\"Log value\",DataLog!G373,\"\")","v":""},{"$f":"IF(DataLog!$C373=\"Log value\",DataLog!H373,\"\")","v":""},{"$f":"IF(DataLog!$C373=\"Log value\",DataLog!I373,\"\")","v":""},{"$f":"IF(DataLog!$C373=\"Log value\",DataLog!J373,\"\")","v":""},{"$f":"IF(DataLog!$C373=\"Log value\",DataLog!K373,\"\")","v":""},{"$f":"IF(DataLog!$C373=\"Log value\",DataLog!L373,\"\")","v":""},{"$f":"IF(DataLog!$C373=\"Log value\",DataLog!M373,\"\")","v":""},{"$f":"IF(DataLog!$C373=\"Log value\",DataLog!N373,\"\")","v":""},{"$f":"IF(DataLog!$C373=\"Log value\",DataLog!O373,\"\")","v":""},{"$f":"IF(DataLog!$C373=\"Log value\",DataLog!P373,\"\")","v":""},{"$f":"IF(DataLog!$C373=\"Log value\",DataLog!Q373,\"\")","v":""},{"$f":"IF(DataLog!$C373=\"Log value\",DataLog!R373,\"\")","v":""},{"$f":"IF(DataLog!$C373=\"Log value\",DataLog!S373,\"\")","v":""},{"$f":"IF(DataLog!$C373=\"Log value\",DataLog!T373,\"\")","v":""},{"$f":"IF(DataLog!$C373=\"Log value\",DataLog!U373,\"\")","v":""},{"$f":"IF(DataLog!$C373=\"Log value\",DataLog!V373,\"\")","v":""},{"$f":"IF(DataLog!$C373=\"Log value\",DataLog!W373,\"\")","v":""},{"$f":"IF(DataLog!$C373=\"Log value\",DataLog!X373,\"\")","v":""},{"$f":"IF(DataLog!$C373=\"Log value\",DataLog!Y373,\"\")","v":""},{"$f":"IF(DataLog!$C373=\"Log value\",DataLog!Z373,\"\")","v":""},{"$f":"IF(DataLog!$C373=\"Log value\",DataLog!AA373,\"\")","v":""},{"$f":"IF(DataLog!$C373=\"Log value\",DataLog!AB373,\"\")","v":""},{"$f":"IF(DataLog!$C373=\"Log value\",DataLog!AC373,\"\")","v":""},{"$f":"IF(DataLog!$C373=\"Log value\",DataLog!AD373,\"\")","v":""},{"$f":"IF(DataLog!$C373=\"Log value\",DataLog!AE373,\"\")","v":""},{"$f":"IF(DataLog!$C373=\"Log value\",DataLog!AF373,\"\")","v":""},{"$f":"IF(DataLog!$C373=\"Log value\",DataLog!AG373,\"\")","v":""},{"$f":"IF(DataLog!$C373=\"Log value\",DataLog!AH373,\"\")","v":""},{"$f":"IF(DataLog!$C373=\"Log value\",DataLog!AI373,\"\")","v":""},{"$f":"IF(DataLog!$C373=\"Log value\",DataLog!AJ373,\"\")","v":""},{"$f":"IF(DataLog!$C373=\"Log value\",DataLog!AK373,\"\")","v":""},{"$f":"IF(DataLog!$C373=\"Log value\",DataLog!AL373,\"\")","v":""},{"$f":"IF(DataLog!$C373=\"Log value\",DataLog!AM373,\"\")","v":""}]
[null,null,"Standard","Standard -  - ",null,null,{"$f":"IF(DataLog!$C374=\"Log value\",DataLog!D374&\"_\"&TEXT(DataLog!B374,\"åååå-mm-dd\"),\"\")","v":""},{"$f":"IF(DataLog!$C374=\"Log value\",DataLog!E374,\"\")","v":""},{"$f":"IF(DataLog!$C374=\"Log value\",DataLog!F374,\"\")","v":""},{"$f":"IF(DataLog!$C374=\"Log value\",DataLog!G374,\"\")","v":""},{"$f":"IF(DataLog!$C374=\"Log value\",DataLog!H374,\"\")","v":""},{"$f":"IF(DataLog!$C374=\"Log value\",DataLog!I374,\"\")","v":""},{"$f":"IF(DataLog!$C374=\"Log value\",DataLog!J374,\"\")","v":""},{"$f":"IF(DataLog!$C374=\"Log value\",DataLog!K374,\"\")","v":""},{"$f":"IF(DataLog!$C374=\"Log value\",DataLog!L374,\"\")","v":""},{"$f":"IF(DataLog!$C374=\"Log value\",DataLog!M374,\"\")","v":""},{"$f":"IF(DataLog!$C374=\"Log value\",DataLog!N374,\"\")","v":""},{"$f":"IF(DataLog!$C374=\"Log value\",DataLog!O374,\"\")","v":""},{"$f":"IF(DataLog!$C374=\"Log value\",DataLog!P374,\"\")","v":""},{"$f":"IF(DataLog!$C374=\"Log value\",DataLog!Q374,\"\")","v":""},{"$f":"IF(DataLog!$C374=\"Log value\",DataLog!R374,\"\")","v":""},{"$f":"IF(DataLog!$C374=\"Log value\",DataLog!S374,\"\")","v":""},{"$f":"IF(DataLog!$C374=\"Log value\",DataLog!T374,\"\")","v":""},{"$f":"IF(DataLog!$C374=\"Log value\",DataLog!U374,\"\")","v":""},{"$f":"IF(DataLog!$C374=\"Log value\",DataLog!V374,\"\")","v":""},{"$f":"IF(DataLog!$C374=\"Log value\",DataLog!W374,\"\")","v":""},{"$f":"IF(DataLog!$C374=\"Log value\",DataLog!X374,\"\")","v":""},{"$f":"IF(DataLog!$C374=\"Log value\",DataLog!Y374,\"\")","v":""},{"$f":"IF(DataLog!$C374=\"Log value\",DataLog!Z374,\"\")","v":""},{"$f":"IF(DataLog!$C374=\"Log value\",DataLog!AA374,\"\")","v":""},{"$f":"IF(DataLog!$C374=\"Log value\",DataLog!AB374,\"\")","v":""},{"$f":"IF(DataLog!$C374=\"Log value\",DataLog!AC374,\"\")","v":""},{"$f":"IF(DataLog!$C374=\"Log value\",DataLog!AD374,\"\")","v":""},{"$f":"IF(DataLog!$C374=\"Log value\",DataLog!AE374,\"\")","v":""},{"$f":"IF(DataLog!$C374=\"Log value\",DataLog!AF374,\"\")","v":""},{"$f":"IF(DataLog!$C374=\"Log value\",DataLog!AG374,\"\")","v":""},{"$f":"IF(DataLog!$C374=\"Log value\",DataLog!AH374,\"\")","v":""},{"$f":"IF(DataLog!$C374=\"Log value\",DataLog!AI374,\"\")","v":""},{"$f":"IF(DataLog!$C374=\"Log value\",DataLog!AJ374,\"\")","v":""},{"$f":"IF(DataLog!$C374=\"Log value\",DataLog!AK374,\"\")","v":""},{"$f":"IF(DataLog!$C374=\"Log value\",DataLog!AL374,\"\")","v":""},{"$f":"IF(DataLog!$C374=\"Log value\",DataLog!AM374,\"\")","v":""}]
[null,null,"Standard","Standard -  - ",null,null,{"$f":"IF(DataLog!$C375=\"Log value\",DataLog!D375&\"_\"&TEXT(DataLog!B375,\"åååå-mm-dd\"),\"\")","v":""},{"$f":"IF(DataLog!$C375=\"Log value\",DataLog!E375,\"\")","v":""},{"$f":"IF(DataLog!$C375=\"Log value\",DataLog!F375,\"\")","v":""},{"$f":"IF(DataLog!$C375=\"Log value\",DataLog!G375,\"\")","v":""},{"$f":"IF(DataLog!$C375=\"Log value\",DataLog!H375,\"\")","v":""},{"$f":"IF(DataLog!$C375=\"Log value\",DataLog!I375,\"\")","v":""},{"$f":"IF(DataLog!$C375=\"Log value\",DataLog!J375,\"\")","v":""},{"$f":"IF(DataLog!$C375=\"Log value\",DataLog!K375,\"\")","v":""},{"$f":"IF(DataLog!$C375=\"Log value\",DataLog!L375,\"\")","v":""},{"$f":"IF(DataLog!$C375=\"Log value\",DataLog!M375,\"\")","v":""},{"$f":"IF(DataLog!$C375=\"Log value\",DataLog!N375,\"\")","v":""},{"$f":"IF(DataLog!$C375=\"Log value\",DataLog!O375,\"\")","v":""},{"$f":"IF(DataLog!$C375=\"Log value\",DataLog!P375,\"\")","v":""},{"$f":"IF(DataLog!$C375=\"Log value\",DataLog!Q375,\"\")","v":""},{"$f":"IF(DataLog!$C375=\"Log value\",DataLog!R375,\"\")","v":""},{"$f":"IF(DataLog!$C375=\"Log value\",DataLog!S375,\"\")","v":""},{"$f":"IF(DataLog!$C375=\"Log value\",DataLog!T375,\"\")","v":""},{"$f":"IF(DataLog!$C375=\"Log value\",DataLog!U375,\"\")","v":""},{"$f":"IF(DataLog!$C375=\"Log value\",DataLog!V375,\"\")","v":""},{"$f":"IF(DataLog!$C375=\"Log value\",DataLog!W375,\"\")","v":""},{"$f":"IF(DataLog!$C375=\"Log value\",DataLog!X375,\"\")","v":""},{"$f":"IF(DataLog!$C375=\"Log value\",DataLog!Y375,\"\")","v":""},{"$f":"IF(DataLog!$C375=\"Log value\",DataLog!Z375,\"\")","v":""},{"$f":"IF(DataLog!$C375=\"Log value\",DataLog!AA375,\"\")","v":""},{"$f":"IF(DataLog!$C375=\"Log value\",DataLog!AB375,\"\")","v":""},{"$f":"IF(DataLog!$C375=\"Log value\",DataLog!AC375,\"\")","v":""},{"$f":"IF(DataLog!$C375=\"Log value\",DataLog!AD375,\"\")","v":""},{"$f":"IF(DataLog!$C375=\"Log value\",DataLog!AE375,\"\")","v":""},{"$f":"IF(DataLog!$C375=\"Log value\",DataLog!AF375,\"\")","v":""},{"$f":"IF(DataLog!$C375=\"Log value\",DataLog!AG375,\"\")","v":""},{"$f":"IF(DataLog!$C375=\"Log value\",DataLog!AH375,\"\")","v":""},{"$f":"IF(DataLog!$C375=\"Log value\",DataLog!AI375,\"\")","v":""},{"$f":"IF(DataLog!$C375=\"Log value\",DataLog!AJ375,\"\")","v":""},{"$f":"IF(DataLog!$C375=\"Log value\",DataLog!AK375,\"\")","v":""},{"$f":"IF(DataLog!$C375=\"Log value\",DataLog!AL375,\"\")","v":""},{"$f":"IF(DataLog!$C375=\"Log value\",DataLog!AM375,\"\")","v":""}]
[null,null,"Standard","Standard -  - ",null,null,{"$f":"IF(DataLog!$C376=\"Log value\",DataLog!D376&\"_\"&TEXT(DataLog!B376,\"åååå-mm-dd\"),\"\")","v":""},{"$f":"IF(DataLog!$C376=\"Log value\",DataLog!E376,\"\")","v":""},{"$f":"IF(DataLog!$C376=\"Log value\",DataLog!F376,\"\")","v":""},{"$f":"IF(DataLog!$C376=\"Log value\",DataLog!G376,\"\")","v":""},{"$f":"IF(DataLog!$C376=\"Log value\",DataLog!H376,\"\")","v":""},{"$f":"IF(DataLog!$C376=\"Log value\",DataLog!I376,\"\")","v":""},{"$f":"IF(DataLog!$C376=\"Log value\",DataLog!J376,\"\")","v":""},{"$f":"IF(DataLog!$C376=\"Log value\",DataLog!K376,\"\")","v":""},{"$f":"IF(DataLog!$C376=\"Log value\",DataLog!L376,\"\")","v":""},{"$f":"IF(DataLog!$C376=\"Log value\",DataLog!M376,\"\")","v":""},{"$f":"IF(DataLog!$C376=\"Log value\",DataLog!N376,\"\")","v":""},{"$f":"IF(DataLog!$C376=\"Log value\",DataLog!O376,\"\")","v":""},{"$f":"IF(DataLog!$C376=\"Log value\",DataLog!P376,\"\")","v":""},{"$f":"IF(DataLog!$C376=\"Log value\",DataLog!Q376,\"\")","v":""},{"$f":"IF(DataLog!$C376=\"Log value\",DataLog!R376,\"\")","v":""},{"$f":"IF(DataLog!$C376=\"Log value\",DataLog!S376,\"\")","v":""},{"$f":"IF(DataLog!$C376=\"Log value\",DataLog!T376,\"\")","v":""},{"$f":"IF(DataLog!$C376=\"Log value\",DataLog!U376,\"\")","v":""},{"$f":"IF(DataLog!$C376=\"Log value\",DataLog!V376,\"\")","v":""},{"$f":"IF(DataLog!$C376=\"Log value\",DataLog!W376,\"\")","v":""},{"$f":"IF(DataLog!$C376=\"Log value\",DataLog!X376,\"\")","v":""},{"$f":"IF(DataLog!$C376=\"Log value\",DataLog!Y376,\"\")","v":""},{"$f":"IF(DataLog!$C376=\"Log value\",DataLog!Z376,\"\")","v":""},{"$f":"IF(DataLog!$C376=\"Log value\",DataLog!AA376,\"\")","v":""},{"$f":"IF(DataLog!$C376=\"Log value\",DataLog!AB376,\"\")","v":""},{"$f":"IF(DataLog!$C376=\"Log value\",DataLog!AC376,\"\")","v":""},{"$f":"IF(DataLog!$C376=\"Log value\",DataLog!AD376,\"\")","v":""},{"$f":"IF(DataLog!$C376=\"Log value\",DataLog!AE376,\"\")","v":""},{"$f":"IF(DataLog!$C376=\"Log value\",DataLog!AF376,\"\")","v":""},{"$f":"IF(DataLog!$C376=\"Log value\",DataLog!AG376,\"\")","v":""},{"$f":"IF(DataLog!$C376=\"Log value\",DataLog!AH376,\"\")","v":""},{"$f":"IF(DataLog!$C376=\"Log value\",DataLog!AI376,\"\")","v":""},{"$f":"IF(DataLog!$C376=\"Log value\",DataLog!AJ376,\"\")","v":""},{"$f":"IF(DataLog!$C376=\"Log value\",DataLog!AK376,\"\")","v":""},{"$f":"IF(DataLog!$C376=\"Log value\",DataLog!AL376,\"\")","v":""},{"$f":"IF(DataLog!$C376=\"Log value\",DataLog!AM376,\"\")","v":""}]
[null,null,"Standard","Standard -  - ",null,null,{"$f":"IF(DataLog!$C377=\"Log value\",DataLog!D377&\"_\"&TEXT(DataLog!B377,\"åååå-mm-dd\"),\"\")","v":""},{"$f":"IF(DataLog!$C377=\"Log value\",DataLog!E377,\"\")","v":""},{"$f":"IF(DataLog!$C377=\"Log value\",DataLog!F377,\"\")","v":""},{"$f":"IF(DataLog!$C377=\"Log value\",DataLog!G377,\"\")","v":""},{"$f":"IF(DataLog!$C377=\"Log value\",DataLog!H377,\"\")","v":""},{"$f":"IF(DataLog!$C377=\"Log value\",DataLog!I377,\"\")","v":""},{"$f":"IF(DataLog!$C377=\"Log value\",DataLog!J377,\"\")","v":""},{"$f":"IF(DataLog!$C377=\"Log value\",DataLog!K377,\"\")","v":""},{"$f":"IF(DataLog!$C377=\"Log value\",DataLog!L377,\"\")","v":""},{"$f":"IF(DataLog!$C377=\"Log value\",DataLog!M377,\"\")","v":""},{"$f":"IF(DataLog!$C377=\"Log value\",DataLog!N377,\"\")","v":""},{"$f":"IF(DataLog!$C377=\"Log value\",DataLog!O377,\"\")","v":""},{"$f":"IF(DataLog!$C377=\"Log value\",DataLog!P377,\"\")","v":""},{"$f":"IF(DataLog!$C377=\"Log value\",DataLog!Q377,\"\")","v":""},{"$f":"IF(DataLog!$C377=\"Log value\",DataLog!R377,\"\")","v":""},{"$f":"IF(DataLog!$C377=\"Log value\",DataLog!S377,\"\")","v":""},{"$f":"IF(DataLog!$C377=\"Log value\",DataLog!T377,\"\")","v":""},{"$f":"IF(DataLog!$C377=\"Log value\",DataLog!U377,\"\")","v":""},{"$f":"IF(DataLog!$C377=\"Log value\",DataLog!V377,\"\")","v":""},{"$f":"IF(DataLog!$C377=\"Log value\",DataLog!W377,\"\")","v":""},{"$f":"IF(DataLog!$C377=\"Log value\",DataLog!X377,\"\")","v":""},{"$f":"IF(DataLog!$C377=\"Log value\",DataLog!Y377,\"\")","v":""},{"$f":"IF(DataLog!$C377=\"Log value\",DataLog!Z377,\"\")","v":""},{"$f":"IF(DataLog!$C377=\"Log value\",DataLog!AA377,\"\")","v":""},{"$f":"IF(DataLog!$C377=\"Log value\",DataLog!AB377,\"\")","v":""},{"$f":"IF(DataLog!$C377=\"Log value\",DataLog!AC377,\"\")","v":""},{"$f":"IF(DataLog!$C377=\"Log value\",DataLog!AD377,\"\")","v":""},{"$f":"IF(DataLog!$C377=\"Log value\",DataLog!AE377,\"\")","v":""},{"$f":"IF(DataLog!$C377=\"Log value\",DataLog!AF377,\"\")","v":""},{"$f":"IF(DataLog!$C377=\"Log value\",DataLog!AG377,\"\")","v":""},{"$f":"IF(DataLog!$C377=\"Log value\",DataLog!AH377,\"\")","v":""},{"$f":"IF(DataLog!$C377=\"Log value\",DataLog!AI377,\"\")","v":""},{"$f":"IF(DataLog!$C377=\"Log value\",DataLog!AJ377,\"\")","v":""},{"$f":"IF(DataLog!$C377=\"Log value\",DataLog!AK377,\"\")","v":""},{"$f":"IF(DataLog!$C377=\"Log value\",DataLog!AL377,\"\")","v":""},{"$f":"IF(DataLog!$C377=\"Log value\",DataLog!AM377,\"\")","v":""}]
[null,null,"Standard","Standard -  - ",null,null,{"$f":"IF(DataLog!$C378=\"Log value\",DataLog!D378&\"_\"&TEXT(DataLog!B378,\"åååå-mm-dd\"),\"\")","v":""},{"$f":"IF(DataLog!$C378=\"Log value\",DataLog!E378,\"\")","v":""},{"$f":"IF(DataLog!$C378=\"Log value\",DataLog!F378,\"\")","v":""},{"$f":"IF(DataLog!$C378=\"Log value\",DataLog!G378,\"\")","v":""},{"$f":"IF(DataLog!$C378=\"Log value\",DataLog!H378,\"\")","v":""},{"$f":"IF(DataLog!$C378=\"Log value\",DataLog!I378,\"\")","v":""},{"$f":"IF(DataLog!$C378=\"Log value\",DataLog!J378,\"\")","v":""},{"$f":"IF(DataLog!$C378=\"Log value\",DataLog!K378,\"\")","v":""},{"$f":"IF(DataLog!$C378=\"Log value\",DataLog!L378,\"\")","v":""},{"$f":"IF(DataLog!$C378=\"Log value\",DataLog!M378,\"\")","v":""},{"$f":"IF(DataLog!$C378=\"Log value\",DataLog!N378,\"\")","v":""},{"$f":"IF(DataLog!$C378=\"Log value\",DataLog!O378,\"\")","v":""},{"$f":"IF(DataLog!$C378=\"Log value\",DataLog!P378,\"\")","v":""},{"$f":"IF(DataLog!$C378=\"Log value\",DataLog!Q378,\"\")","v":""},{"$f":"IF(DataLog!$C378=\"Log value\",DataLog!R378,\"\")","v":""},{"$f":"IF(DataLog!$C378=\"Log value\",DataLog!S378,\"\")","v":""},{"$f":"IF(DataLog!$C378=\"Log value\",DataLog!T378,\"\")","v":""},{"$f":"IF(DataLog!$C378=\"Log value\",DataLog!U378,\"\")","v":""},{"$f":"IF(DataLog!$C378=\"Log value\",DataLog!V378,\"\")","v":""},{"$f":"IF(DataLog!$C378=\"Log value\",DataLog!W378,\"\")","v":""},{"$f":"IF(DataLog!$C378=\"Log value\",DataLog!X378,\"\")","v":""},{"$f":"IF(DataLog!$C378=\"Log value\",DataLog!Y378,\"\")","v":""},{"$f":"IF(DataLog!$C378=\"Log value\",DataLog!Z378,\"\")","v":""},{"$f":"IF(DataLog!$C378=\"Log value\",DataLog!AA378,\"\")","v":""},{"$f":"IF(DataLog!$C378=\"Log value\",DataLog!AB378,\"\")","v":""},{"$f":"IF(DataLog!$C378=\"Log value\",DataLog!AC378,\"\")","v":""},{"$f":"IF(DataLog!$C378=\"Log value\",DataLog!AD378,\"\")","v":""},{"$f":"IF(DataLog!$C378=\"Log value\",DataLog!AE378,\"\")","v":""},{"$f":"IF(DataLog!$C378=\"Log value\",DataLog!AF378,\"\")","v":""},{"$f":"IF(DataLog!$C378=\"Log value\",DataLog!AG378,\"\")","v":""},{"$f":"IF(DataLog!$C378=\"Log value\",DataLog!AH378,\"\")","v":""},{"$f":"IF(DataLog!$C378=\"Log value\",DataLog!AI378,\"\")","v":""},{"$f":"IF(DataLog!$C378=\"Log value\",DataLog!AJ378,\"\")","v":""},{"$f":"IF(DataLog!$C378=\"Log value\",DataLog!AK378,\"\")","v":""},{"$f":"IF(DataLog!$C378=\"Log value\",DataLog!AL378,\"\")","v":""},{"$f":"IF(DataLog!$C378=\"Log value\",DataLog!AM378,\"\")","v":""}]
[null,null,"Standard","Standard -  - ",null,null,{"$f":"IF(DataLog!$C379=\"Log value\",DataLog!D379&\"_\"&TEXT(DataLog!B379,\"åååå-mm-dd\"),\"\")","v":""},{"$f":"IF(DataLog!$C379=\"Log value\",DataLog!E379,\"\")","v":""},{"$f":"IF(DataLog!$C379=\"Log value\",DataLog!F379,\"\")","v":""},{"$f":"IF(DataLog!$C379=\"Log value\",DataLog!G379,\"\")","v":""},{"$f":"IF(DataLog!$C379=\"Log value\",DataLog!H379,\"\")","v":""},{"$f":"IF(DataLog!$C379=\"Log value\",DataLog!I379,\"\")","v":""},{"$f":"IF(DataLog!$C379=\"Log value\",DataLog!J379,\"\")","v":""},{"$f":"IF(DataLog!$C379=\"Log value\",DataLog!K379,\"\")","v":""},{"$f":"IF(DataLog!$C379=\"Log value\",DataLog!L379,\"\")","v":""},{"$f":"IF(DataLog!$C379=\"Log value\",DataLog!M379,\"\")","v":""},{"$f":"IF(DataLog!$C379=\"Log value\",DataLog!N379,\"\")","v":""},{"$f":"IF(DataLog!$C379=\"Log value\",DataLog!O379,\"\")","v":""},{"$f":"IF(DataLog!$C379=\"Log value\",DataLog!P379,\"\")","v":""},{"$f":"IF(DataLog!$C379=\"Log value\",DataLog!Q379,\"\")","v":""},{"$f":"IF(DataLog!$C379=\"Log value\",DataLog!R379,\"\")","v":""},{"$f":"IF(DataLog!$C379=\"Log value\",DataLog!S379,\"\")","v":""},{"$f":"IF(DataLog!$C379=\"Log value\",DataLog!T379,\"\")","v":""},{"$f":"IF(DataLog!$C379=\"Log value\",DataLog!U379,\"\")","v":""},{"$f":"IF(DataLog!$C379=\"Log value\",DataLog!V379,\"\")","v":""},{"$f":"IF(DataLog!$C379=\"Log value\",DataLog!W379,\"\")","v":""},{"$f":"IF(DataLog!$C379=\"Log value\",DataLog!X379,\"\")","v":""},{"$f":"IF(DataLog!$C379=\"Log value\",DataLog!Y379,\"\")","v":""},{"$f":"IF(DataLog!$C379=\"Log value\",DataLog!Z379,\"\")","v":""},{"$f":"IF(DataLog!$C379=\"Log value\",DataLog!AA379,\"\")","v":""},{"$f":"IF(DataLog!$C379=\"Log value\",DataLog!AB379,\"\")","v":""},{"$f":"IF(DataLog!$C379=\"Log value\",DataLog!AC379,\"\")","v":""},{"$f":"IF(DataLog!$C379=\"Log value\",DataLog!AD379,\"\")","v":""},{"$f":"IF(DataLog!$C379=\"Log value\",DataLog!AE379,\"\")","v":""},{"$f":"IF(DataLog!$C379=\"Log value\",DataLog!AF379,\"\")","v":""},{"$f":"IF(DataLog!$C379=\"Log value\",DataLog!AG379,\"\")","v":""},{"$f":"IF(DataLog!$C379=\"Log value\",DataLog!AH379,\"\")","v":""},{"$f":"IF(DataLog!$C379=\"Log value\",DataLog!AI379,\"\")","v":""},{"$f":"IF(DataLog!$C379=\"Log value\",DataLog!AJ379,\"\")","v":""},{"$f":"IF(DataLog!$C379=\"Log value\",DataLog!AK379,\"\")","v":""},{"$f":"IF(DataLog!$C379=\"Log value\",DataLog!AL379,\"\")","v":""},{"$f":"IF(DataLog!$C379=\"Log value\",DataLog!AM379,\"\")","v":""}]
[null,null,"Standard","Standard -  - ",null,null,{"$f":"IF(DataLog!$C380=\"Log value\",DataLog!D380&\"_\"&TEXT(DataLog!B380,\"åååå-mm-dd\"),\"\")","v":""},{"$f":"IF(DataLog!$C380=\"Log value\",DataLog!E380,\"\")","v":""},{"$f":"IF(DataLog!$C380=\"Log value\",DataLog!F380,\"\")","v":""},{"$f":"IF(DataLog!$C380=\"Log value\",DataLog!G380,\"\")","v":""},{"$f":"IF(DataLog!$C380=\"Log value\",DataLog!H380,\"\")","v":""},{"$f":"IF(DataLog!$C380=\"Log value\",DataLog!I380,\"\")","v":""},{"$f":"IF(DataLog!$C380=\"Log value\",DataLog!J380,\"\")","v":""},{"$f":"IF(DataLog!$C380=\"Log value\",DataLog!K380,\"\")","v":""},{"$f":"IF(DataLog!$C380=\"Log value\",DataLog!L380,\"\")","v":""},{"$f":"IF(DataLog!$C380=\"Log value\",DataLog!M380,\"\")","v":""},{"$f":"IF(DataLog!$C380=\"Log value\",DataLog!N380,\"\")","v":""},{"$f":"IF(DataLog!$C380=\"Log value\",DataLog!O380,\"\")","v":""},{"$f":"IF(DataLog!$C380=\"Log value\",DataLog!P380,\"\")","v":""},{"$f":"IF(DataLog!$C380=\"Log value\",DataLog!Q380,\"\")","v":""},{"$f":"IF(DataLog!$C380=\"Log value\",DataLog!R380,\"\")","v":""},{"$f":"IF(DataLog!$C380=\"Log value\",DataLog!S380,\"\")","v":""},{"$f":"IF(DataLog!$C380=\"Log value\",DataLog!T380,\"\")","v":""},{"$f":"IF(DataLog!$C380=\"Log value\",DataLog!U380,\"\")","v":""},{"$f":"IF(DataLog!$C380=\"Log value\",DataLog!V380,\"\")","v":""},{"$f":"IF(DataLog!$C380=\"Log value\",DataLog!W380,\"\")","v":""},{"$f":"IF(DataLog!$C380=\"Log value\",DataLog!X380,\"\")","v":""},{"$f":"IF(DataLog!$C380=\"Log value\",DataLog!Y380,\"\")","v":""},{"$f":"IF(DataLog!$C380=\"Log value\",DataLog!Z380,\"\")","v":""},{"$f":"IF(DataLog!$C380=\"Log value\",DataLog!AA380,\"\")","v":""},{"$f":"IF(DataLog!$C380=\"Log value\",DataLog!AB380,\"\")","v":""},{"$f":"IF(DataLog!$C380=\"Log value\",DataLog!AC380,\"\")","v":""},{"$f":"IF(DataLog!$C380=\"Log value\",DataLog!AD380,\"\")","v":""},{"$f":"IF(DataLog!$C380=\"Log value\",DataLog!AE380,\"\")","v":""},{"$f":"IF(DataLog!$C380=\"Log value\",DataLog!AF380,\"\")","v":""},{"$f":"IF(DataLog!$C380=\"Log value\",DataLog!AG380,\"\")","v":""},{"$f":"IF(DataLog!$C380=\"Log value\",DataLog!AH380,\"\")","v":""},{"$f":"IF(DataLog!$C380=\"Log value\",DataLog!AI380,\"\")","v":""},{"$f":"IF(DataLog!$C380=\"Log value\",DataLog!AJ380,\"\")","v":""},{"$f":"IF(DataLog!$C380=\"Log value\",DataLog!AK380,\"\")","v":""},{"$f":"IF(DataLog!$C380=\"Log value\",DataLog!AL380,\"\")","v":""},{"$f":"IF(DataLog!$C380=\"Log value\",DataLog!AM380,\"\")","v":""}]
[null,null,"Standard","Standard -  - ",null,null,{"$f":"IF(DataLog!$C381=\"Log value\",DataLog!D381&\"_\"&TEXT(DataLog!B381,\"åååå-mm-dd\"),\"\")","v":""},{"$f":"IF(DataLog!$C381=\"Log value\",DataLog!E381,\"\")","v":""},{"$f":"IF(DataLog!$C381=\"Log value\",DataLog!F381,\"\")","v":""},{"$f":"IF(DataLog!$C381=\"Log value\",DataLog!G381,\"\")","v":""},{"$f":"IF(DataLog!$C381=\"Log value\",DataLog!H381,\"\")","v":""},{"$f":"IF(DataLog!$C381=\"Log value\",DataLog!I381,\"\")","v":""},{"$f":"IF(DataLog!$C381=\"Log value\",DataLog!J381,\"\")","v":""},{"$f":"IF(DataLog!$C381=\"Log value\",DataLog!K381,\"\")","v":""},{"$f":"IF(DataLog!$C381=\"Log value\",DataLog!L381,\"\")","v":""},{"$f":"IF(DataLog!$C381=\"Log value\",DataLog!M381,\"\")","v":""},{"$f":"IF(DataLog!$C381=\"Log value\",DataLog!N381,\"\")","v":""},{"$f":"IF(DataLog!$C381=\"Log value\",DataLog!O381,\"\")","v":""},{"$f":"IF(DataLog!$C381=\"Log value\",DataLog!P381,\"\")","v":""},{"$f":"IF(DataLog!$C381=\"Log value\",DataLog!Q381,\"\")","v":""},{"$f":"IF(DataLog!$C381=\"Log value\",DataLog!R381,\"\")","v":""},{"$f":"IF(DataLog!$C381=\"Log value\",DataLog!S381,\"\")","v":""},{"$f":"IF(DataLog!$C381=\"Log value\",DataLog!T381,\"\")","v":""},{"$f":"IF(DataLog!$C381=\"Log value\",DataLog!U381,\"\")","v":""},{"$f":"IF(DataLog!$C381=\"Log value\",DataLog!V381,\"\")","v":""},{"$f":"IF(DataLog!$C381=\"Log value\",DataLog!W381,\"\")","v":""},{"$f":"IF(DataLog!$C381=\"Log value\",DataLog!X381,\"\")","v":""},{"$f":"IF(DataLog!$C381=\"Log value\",DataLog!Y381,\"\")","v":""},{"$f":"IF(DataLog!$C381=\"Log value\",DataLog!Z381,\"\")","v":""},{"$f":"IF(DataLog!$C381=\"Log value\",DataLog!AA381,\"\")","v":""},{"$f":"IF(DataLog!$C381=\"Log value\",DataLog!AB381,\"\")","v":""},{"$f":"IF(DataLog!$C381=\"Log value\",DataLog!AC381,\"\")","v":""},{"$f":"IF(DataLog!$C381=\"Log value\",DataLog!AD381,\"\")","v":""},{"$f":"IF(DataLog!$C381=\"Log value\",DataLog!AE381,\"\")","v":""},{"$f":"IF(DataLog!$C381=\"Log value\",DataLog!AF381,\"\")","v":""},{"$f":"IF(DataLog!$C381=\"Log value\",DataLog!AG381,\"\")","v":""},{"$f":"IF(DataLog!$C381=\"Log value\",DataLog!AH381,\"\")","v":""},{"$f":"IF(DataLog!$C381=\"Log value\",DataLog!AI381,\"\")","v":""},{"$f":"IF(DataLog!$C381=\"Log value\",DataLog!AJ381,\"\")","v":""},{"$f":"IF(DataLog!$C381=\"Log value\",DataLog!AK381,\"\")","v":""},{"$f":"IF(DataLog!$C381=\"Log value\",DataLog!AL381,\"\")","v":""},{"$f":"IF(DataLog!$C381=\"Log value\",DataLog!AM381,\"\")","v":""}]
[null,null,"Standard","Standard -  - ",null,null,{"$f":"IF(DataLog!$C382=\"Log value\",DataLog!D382&\"_\"&TEXT(DataLog!B382,\"åååå-mm-dd\"),\"\")","v":""},{"$f":"IF(DataLog!$C382=\"Log value\",DataLog!E382,\"\")","v":""},{"$f":"IF(DataLog!$C382=\"Log value\",DataLog!F382,\"\")","v":""},{"$f":"IF(DataLog!$C382=\"Log value\",DataLog!G382,\"\")","v":""},{"$f":"IF(DataLog!$C382=\"Log value\",DataLog!H382,\"\")","v":""},{"$f":"IF(DataLog!$C382=\"Log value\",DataLog!I382,\"\")","v":""},{"$f":"IF(DataLog!$C382=\"Log value\",DataLog!J382,\"\")","v":""},{"$f":"IF(DataLog!$C382=\"Log value\",DataLog!K382,\"\")","v":""},{"$f":"IF(DataLog!$C382=\"Log value\",DataLog!L382,\"\")","v":""},{"$f":"IF(DataLog!$C382=\"Log value\",DataLog!M382,\"\")","v":""},{"$f":"IF(DataLog!$C382=\"Log value\",DataLog!N382,\"\")","v":""},{"$f":"IF(DataLog!$C382=\"Log value\",DataLog!O382,\"\")","v":""},{"$f":"IF(DataLog!$C382=\"Log value\",DataLog!P382,\"\")","v":""},{"$f":"IF(DataLog!$C382=\"Log value\",DataLog!Q382,\"\")","v":""},{"$f":"IF(DataLog!$C382=\"Log value\",DataLog!R382,\"\")","v":""},{"$f":"IF(DataLog!$C382=\"Log value\",DataLog!S382,\"\")","v":""},{"$f":"IF(DataLog!$C382=\"Log value\",DataLog!T382,\"\")","v":""},{"$f":"IF(DataLog!$C382=\"Log value\",DataLog!U382,\"\")","v":""},{"$f":"IF(DataLog!$C382=\"Log value\",DataLog!V382,\"\")","v":""},{"$f":"IF(DataLog!$C382=\"Log value\",DataLog!W382,\"\")","v":""},{"$f":"IF(DataLog!$C382=\"Log value\",DataLog!X382,\"\")","v":""},{"$f":"IF(DataLog!$C382=\"Log value\",DataLog!Y382,\"\")","v":""},{"$f":"IF(DataLog!$C382=\"Log value\",DataLog!Z382,\"\")","v":""},{"$f":"IF(DataLog!$C382=\"Log value\",DataLog!AA382,\"\")","v":""},{"$f":"IF(DataLog!$C382=\"Log value\",DataLog!AB382,\"\")","v":""},{"$f":"IF(DataLog!$C382=\"Log value\",DataLog!AC382,\"\")","v":""},{"$f":"IF(DataLog!$C382=\"Log value\",DataLog!AD382,\"\")","v":""},{"$f":"IF(DataLog!$C382=\"Log value\",DataLog!AE382,\"\")","v":""},{"$f":"IF(DataLog!$C382=\"Log value\",DataLog!AF382,\"\")","v":""},{"$f":"IF(DataLog!$C382=\"Log value\",DataLog!AG382,\"\")","v":""},{"$f":"IF(DataLog!$C382=\"Log value\",DataLog!AH382,\"\")","v":""},{"$f":"IF(DataLog!$C382=\"Log value\",DataLog!AI382,\"\")","v":""},{"$f":"IF(DataLog!$C382=\"Log value\",DataLog!AJ382,\"\")","v":""},{"$f":"IF(DataLog!$C382=\"Log value\",DataLog!AK382,\"\")","v":""},{"$f":"IF(DataLog!$C382=\"Log value\",DataLog!AL382,\"\")","v":""},{"$f":"IF(DataLog!$C382=\"Log value\",DataLog!AM382,\"\")","v":""}]
[null,null,"Standard","Standard -  - ",null,null,{"$f":"IF(DataLog!$C383=\"Log value\",DataLog!D383&\"_\"&TEXT(DataLog!B383,\"åååå-mm-dd\"),\"\")","v":""},{"$f":"IF(DataLog!$C383=\"Log value\",DataLog!E383,\"\")","v":""},{"$f":"IF(DataLog!$C383=\"Log value\",DataLog!F383,\"\")","v":""},{"$f":"IF(DataLog!$C383=\"Log value\",DataLog!G383,\"\")","v":""},{"$f":"IF(DataLog!$C383=\"Log value\",DataLog!H383,\"\")","v":""},{"$f":"IF(DataLog!$C383=\"Log value\",DataLog!I383,\"\")","v":""},{"$f":"IF(DataLog!$C383=\"Log value\",DataLog!J383,\"\")","v":""},{"$f":"IF(DataLog!$C383=\"Log value\",DataLog!K383,\"\")","v":""},{"$f":"IF(DataLog!$C383=\"Log value\",DataLog!L383,\"\")","v":""},{"$f":"IF(DataLog!$C383=\"Log value\",DataLog!M383,\"\")","v":""},{"$f":"IF(DataLog!$C383=\"Log value\",DataLog!N383,\"\")","v":""},{"$f":"IF(DataLog!$C383=\"Log value\",DataLog!O383,\"\")","v":""},{"$f":"IF(DataLog!$C383=\"Log value\",DataLog!P383,\"\")","v":""},{"$f":"IF(DataLog!$C383=\"Log value\",DataLog!Q383,\"\")","v":""},{"$f":"IF(DataLog!$C383=\"Log value\",DataLog!R383,\"\")","v":""},{"$f":"IF(DataLog!$C383=\"Log value\",DataLog!S383,\"\")","v":""},{"$f":"IF(DataLog!$C383=\"Log value\",DataLog!T383,\"\")","v":""},{"$f":"IF(DataLog!$C383=\"Log value\",DataLog!U383,\"\")","v":""},{"$f":"IF(DataLog!$C383=\"Log value\",DataLog!V383,\"\")","v":""},{"$f":"IF(DataLog!$C383=\"Log value\",DataLog!W383,\"\")","v":""},{"$f":"IF(DataLog!$C383=\"Log value\",DataLog!X383,\"\")","v":""},{"$f":"IF(DataLog!$C383=\"Log value\",DataLog!Y383,\"\")","v":""},{"$f":"IF(DataLog!$C383=\"Log value\",DataLog!Z383,\"\")","v":""},{"$f":"IF(DataLog!$C383=\"Log value\",DataLog!AA383,\"\")","v":""},{"$f":"IF(DataLog!$C383=\"Log value\",DataLog!AB383,\"\")","v":""},{"$f":"IF(DataLog!$C383=\"Log value\",DataLog!AC383,\"\")","v":""},{"$f":"IF(DataLog!$C383=\"Log value\",DataLog!AD383,\"\")","v":""},{"$f":"IF(DataLog!$C383=\"Log value\",DataLog!AE383,\"\")","v":""},{"$f":"IF(DataLog!$C383=\"Log value\",DataLog!AF383,\"\")","v":""},{"$f":"IF(DataLog!$C383=\"Log value\",DataLog!AG383,\"\")","v":""},{"$f":"IF(DataLog!$C383=\"Log value\",DataLog!AH383,\"\")","v":""},{"$f":"IF(DataLog!$C383=\"Log value\",DataLog!AI383,\"\")","v":""},{"$f":"IF(DataLog!$C383=\"Log value\",DataLog!AJ383,\"\")","v":""},{"$f":"IF(DataLog!$C383=\"Log value\",DataLog!AK383,\"\")","v":""},{"$f":"IF(DataLog!$C383=\"Log value\",DataLog!AL383,\"\")","v":""},{"$f":"IF(DataLog!$C383=\"Log value\",DataLog!AM383,\"\")","v":""}]
[null,null,"Standard","Standard -  - ",null,null,{"$f":"IF(DataLog!$C384=\"Log value\",DataLog!D384&\"_\"&TEXT(DataLog!B384,\"åååå-mm-dd\"),\"\")","v":""},{"$f":"IF(DataLog!$C384=\"Log value\",DataLog!E384,\"\")","v":""},{"$f":"IF(DataLog!$C384=\"Log value\",DataLog!F384,\"\")","v":""},{"$f":"IF(DataLog!$C384=\"Log value\",DataLog!G384,\"\")","v":""},{"$f":"IF(DataLog!$C384=\"Log value\",DataLog!H384,\"\")","v":""},{"$f":"IF(DataLog!$C384=\"Log value\",DataLog!I384,\"\")","v":""},{"$f":"IF(DataLog!$C384=\"Log value\",DataLog!J384,\"\")","v":""},{"$f":"IF(DataLog!$C384=\"Log value\",DataLog!K384,\"\")","v":""},{"$f":"IF(DataLog!$C384=\"Log value\",DataLog!L384,\"\")","v":""},{"$f":"IF(DataLog!$C384=\"Log value\",DataLog!M384,\"\")","v":""},{"$f":"IF(DataLog!$C384=\"Log value\",DataLog!N384,\"\")","v":""},{"$f":"IF(DataLog!$C384=\"Log value\",DataLog!O384,\"\")","v":""},{"$f":"IF(DataLog!$C384=\"Log value\",DataLog!P384,\"\")","v":""},{"$f":"IF(DataLog!$C384=\"Log value\",DataLog!Q384,\"\")","v":""},{"$f":"IF(DataLog!$C384=\"Log value\",DataLog!R384,\"\")","v":""},{"$f":"IF(DataLog!$C384=\"Log value\",DataLog!S384,\"\")","v":""},{"$f":"IF(DataLog!$C384=\"Log value\",DataLog!T384,\"\")","v":""},{"$f":"IF(DataLog!$C384=\"Log value\",DataLog!U384,\"\")","v":""},{"$f":"IF(DataLog!$C384=\"Log value\",DataLog!V384,\"\")","v":""},{"$f":"IF(DataLog!$C384=\"Log value\",DataLog!W384,\"\")","v":""},{"$f":"IF(DataLog!$C384=\"Log value\",DataLog!X384,\"\")","v":""},{"$f":"IF(DataLog!$C384=\"Log value\",DataLog!Y384,\"\")","v":""},{"$f":"IF(DataLog!$C384=\"Log value\",DataLog!Z384,\"\")","v":""},{"$f":"IF(DataLog!$C384=\"Log value\",DataLog!AA384,\"\")","v":""},{"$f":"IF(DataLog!$C384=\"Log value\",DataLog!AB384,\"\")","v":""},{"$f":"IF(DataLog!$C384=\"Log value\",DataLog!AC384,\"\")","v":""},{"$f":"IF(DataLog!$C384=\"Log value\",DataLog!AD384,\"\")","v":""},{"$f":"IF(DataLog!$C384=\"Log value\",DataLog!AE384,\"\")","v":""},{"$f":"IF(DataLog!$C384=\"Log value\",DataLog!AF384,\"\")","v":""},{"$f":"IF(DataLog!$C384=\"Log value\",DataLog!AG384,\"\")","v":""},{"$f":"IF(DataLog!$C384=\"Log value\",DataLog!AH384,\"\")","v":""},{"$f":"IF(DataLog!$C384=\"Log value\",DataLog!AI384,\"\")","v":""},{"$f":"IF(DataLog!$C384=\"Log value\",DataLog!AJ384,\"\")","v":""},{"$f":"IF(DataLog!$C384=\"Log value\",DataLog!AK384,\"\")","v":""},{"$f":"IF(DataLog!$C384=\"Log value\",DataLog!AL384,\"\")","v":""},{"$f":"IF(DataLog!$C384=\"Log value\",DataLog!AM384,\"\")","v":""}]
[null,null,"Standard","Standard -  - ",null,null,{"$f":"IF(DataLog!$C385=\"Log value\",DataLog!D385&\"_\"&TEXT(DataLog!B385,\"åååå-mm-dd\"),\"\")","v":""},{"$f":"IF(DataLog!$C385=\"Log value\",DataLog!E385,\"\")","v":""},{"$f":"IF(DataLog!$C385=\"Log value\",DataLog!F385,\"\")","v":""},{"$f":"IF(DataLog!$C385=\"Log value\",DataLog!G385,\"\")","v":""},{"$f":"IF(DataLog!$C385=\"Log value\",DataLog!H385,\"\")","v":""},{"$f":"IF(DataLog!$C385=\"Log value\",DataLog!I385,\"\")","v":""},{"$f":"IF(DataLog!$C385=\"Log value\",DataLog!J385,\"\")","v":""},{"$f":"IF(DataLog!$C385=\"Log value\",DataLog!K385,\"\")","v":""},{"$f":"IF(DataLog!$C385=\"Log value\",DataLog!L385,\"\")","v":""},{"$f":"IF(DataLog!$C385=\"Log value\",DataLog!M385,\"\")","v":""},{"$f":"IF(DataLog!$C385=\"Log value\",DataLog!N385,\"\")","v":""},{"$f":"IF(DataLog!$C385=\"Log value\",DataLog!O385,\"\")","v":""},{"$f":"IF(DataLog!$C385=\"Log value\",DataLog!P385,\"\")","v":""},{"$f":"IF(DataLog!$C385=\"Log value\",DataLog!Q385,\"\")","v":""},{"$f":"IF(DataLog!$C385=\"Log value\",DataLog!R385,\"\")","v":""},{"$f":"IF(DataLog!$C385=\"Log value\",DataLog!S385,\"\")","v":""},{"$f":"IF(DataLog!$C385=\"Log value\",DataLog!T385,\"\")","v":""},{"$f":"IF(DataLog!$C385=\"Log value\",DataLog!U385,\"\")","v":""},{"$f":"IF(DataLog!$C385=\"Log value\",DataLog!V385,\"\")","v":""},{"$f":"IF(DataLog!$C385=\"Log value\",DataLog!W385,\"\")","v":""},{"$f":"IF(DataLog!$C385=\"Log value\",DataLog!X385,\"\")","v":""},{"$f":"IF(DataLog!$C385=\"Log value\",DataLog!Y385,\"\")","v":""},{"$f":"IF(DataLog!$C385=\"Log value\",DataLog!Z385,\"\")","v":""},{"$f":"IF(DataLog!$C385=\"Log value\",DataLog!AA385,\"\")","v":""},{"$f":"IF(DataLog!$C385=\"Log value\",DataLog!AB385,\"\")","v":""},{"$f":"IF(DataLog!$C385=\"Log value\",DataLog!AC385,\"\")","v":""},{"$f":"IF(DataLog!$C385=\"Log value\",DataLog!AD385,\"\")","v":""},{"$f":"IF(DataLog!$C385=\"Log value\",DataLog!AE385,\"\")","v":""},{"$f":"IF(DataLog!$C385=\"Log value\",DataLog!AF385,\"\")","v":""},{"$f":"IF(DataLog!$C385=\"Log value\",DataLog!AG385,\"\")","v":""},{"$f":"IF(DataLog!$C385=\"Log value\",DataLog!AH385,\"\")","v":""},{"$f":"IF(DataLog!$C385=\"Log value\",DataLog!AI385,\"\")","v":""},{"$f":"IF(DataLog!$C385=\"Log value\",DataLog!AJ385,\"\")","v":""},{"$f":"IF(DataLog!$C385=\"Log value\",DataLog!AK385,\"\")","v":""},{"$f":"IF(DataLog!$C385=\"Log value\",DataLog!AL385,\"\")","v":""},{"$f":"IF(DataLog!$C385=\"Log value\",DataLog!AM385,\"\")","v":""}]
[null,null,"Standard","Standard -  - ",null,null,{"$f":"IF(DataLog!$C386=\"Log value\",DataLog!D386&\"_\"&TEXT(DataLog!B386,\"åååå-mm-dd\"),\"\")","v":""},{"$f":"IF(DataLog!$C386=\"Log value\",DataLog!E386,\"\")","v":""},{"$f":"IF(DataLog!$C386=\"Log value\",DataLog!F386,\"\")","v":""},{"$f":"IF(DataLog!$C386=\"Log value\",DataLog!G386,\"\")","v":""},{"$f":"IF(DataLog!$C386=\"Log value\",DataLog!H386,\"\")","v":""},{"$f":"IF(DataLog!$C386=\"Log value\",DataLog!I386,\"\")","v":""},{"$f":"IF(DataLog!$C386=\"Log value\",DataLog!J386,\"\")","v":""},{"$f":"IF(DataLog!$C386=\"Log value\",DataLog!K386,\"\")","v":""},{"$f":"IF(DataLog!$C386=\"Log value\",DataLog!L386,\"\")","v":""},{"$f":"IF(DataLog!$C386=\"Log value\",DataLog!M386,\"\")","v":""},{"$f":"IF(DataLog!$C386=\"Log value\",DataLog!N386,\"\")","v":""},{"$f":"IF(DataLog!$C386=\"Log value\",DataLog!O386,\"\")","v":""},{"$f":"IF(DataLog!$C386=\"Log value\",DataLog!P386,\"\")","v":""},{"$f":"IF(DataLog!$C386=\"Log value\",DataLog!Q386,\"\")","v":""},{"$f":"IF(DataLog!$C386=\"Log value\",DataLog!R386,\"\")","v":""},{"$f":"IF(DataLog!$C386=\"Log value\",DataLog!S386,\"\")","v":""},{"$f":"IF(DataLog!$C386=\"Log value\",DataLog!T386,\"\")","v":""},{"$f":"IF(DataLog!$C386=\"Log value\",DataLog!U386,\"\")","v":""},{"$f":"IF(DataLog!$C386=\"Log value\",DataLog!V386,\"\")","v":""},{"$f":"IF(DataLog!$C386=\"Log value\",DataLog!W386,\"\")","v":""},{"$f":"IF(DataLog!$C386=\"Log value\",DataLog!X386,\"\")","v":""},{"$f":"IF(DataLog!$C386=\"Log value\",DataLog!Y386,\"\")","v":""},{"$f":"IF(DataLog!$C386=\"Log value\",DataLog!Z386,\"\")","v":""},{"$f":"IF(DataLog!$C386=\"Log value\",DataLog!AA386,\"\")","v":""},{"$f":"IF(DataLog!$C386=\"Log value\",DataLog!AB386,\"\")","v":""},{"$f":"IF(DataLog!$C386=\"Log value\",DataLog!AC386,\"\")","v":""},{"$f":"IF(DataLog!$C386=\"Log value\",DataLog!AD386,\"\")","v":""},{"$f":"IF(DataLog!$C386=\"Log value\",DataLog!AE386,\"\")","v":""},{"$f":"IF(DataLog!$C386=\"Log value\",DataLog!AF386,\"\")","v":""},{"$f":"IF(DataLog!$C386=\"Log value\",DataLog!AG386,\"\")","v":""},{"$f":"IF(DataLog!$C386=\"Log value\",DataLog!AH386,\"\")","v":""},{"$f":"IF(DataLog!$C386=\"Log value\",DataLog!AI386,\"\")","v":""},{"$f":"IF(DataLog!$C386=\"Log value\",DataLog!AJ386,\"\")","v":""},{"$f":"IF(DataLog!$C386=\"Log value\",DataLog!AK386,\"\")","v":""},{"$f":"IF(DataLog!$C386=\"Log value\",DataLog!AL386,\"\")","v":""},{"$f":"IF(DataLog!$C386=\"Log value\",DataLog!AM386,\"\")","v":""}]
[null,null,"Standard","Standard -  - ",null,null,{"$f":"IF(DataLog!$C387=\"Log value\",DataLog!D387&\"_\"&TEXT(DataLog!B387,\"åååå-mm-dd\"),\"\")","v":""},{"$f":"IF(DataLog!$C387=\"Log value\",DataLog!E387,\"\")","v":""},{"$f":"IF(DataLog!$C387=\"Log value\",DataLog!F387,\"\")","v":""},{"$f":"IF(DataLog!$C387=\"Log value\",DataLog!G387,\"\")","v":""},{"$f":"IF(DataLog!$C387=\"Log value\",DataLog!H387,\"\")","v":""},{"$f":"IF(DataLog!$C387=\"Log value\",DataLog!I387,\"\")","v":""},{"$f":"IF(DataLog!$C387=\"Log value\",DataLog!J387,\"\")","v":""},{"$f":"IF(DataLog!$C387=\"Log value\",DataLog!K387,\"\")","v":""},{"$f":"IF(DataLog!$C387=\"Log value\",DataLog!L387,\"\")","v":""},{"$f":"IF(DataLog!$C387=\"Log value\",DataLog!M387,\"\")","v":""},{"$f":"IF(DataLog!$C387=\"Log value\",DataLog!N387,\"\")","v":""},{"$f":"IF(DataLog!$C387=\"Log value\",DataLog!O387,\"\")","v":""},{"$f":"IF(DataLog!$C387=\"Log value\",DataLog!P387,\"\")","v":""},{"$f":"IF(DataLog!$C387=\"Log value\",DataLog!Q387,\"\")","v":""},{"$f":"IF(DataLog!$C387=\"Log value\",DataLog!R387,\"\")","v":""},{"$f":"IF(DataLog!$C387=\"Log value\",DataLog!S387,\"\")","v":""},{"$f":"IF(DataLog!$C387=\"Log value\",DataLog!T387,\"\")","v":""},{"$f":"IF(DataLog!$C387=\"Log value\",DataLog!U387,\"\")","v":""},{"$f":"IF(DataLog!$C387=\"Log value\",DataLog!V387,\"\")","v":""},{"$f":"IF(DataLog!$C387=\"Log value\",DataLog!W387,\"\")","v":""},{"$f":"IF(DataLog!$C387=\"Log value\",DataLog!X387,\"\")","v":""},{"$f":"IF(DataLog!$C387=\"Log value\",DataLog!Y387,\"\")","v":""},{"$f":"IF(DataLog!$C387=\"Log value\",DataLog!Z387,\"\")","v":""},{"$f":"IF(DataLog!$C387=\"Log value\",DataLog!AA387,\"\")","v":""},{"$f":"IF(DataLog!$C387=\"Log value\",DataLog!AB387,\"\")","v":""},{"$f":"IF(DataLog!$C387=\"Log value\",DataLog!AC387,\"\")","v":""},{"$f":"IF(DataLog!$C387=\"Log value\",DataLog!AD387,\"\")","v":""},{"$f":"IF(DataLog!$C387=\"Log value\",DataLog!AE387,\"\")","v":""},{"$f":"IF(DataLog!$C387=\"Log value\",DataLog!AF387,\"\")","v":""},{"$f":"IF(DataLog!$C387=\"Log value\",DataLog!AG387,\"\")","v":""},{"$f":"IF(DataLog!$C387=\"Log value\",DataLog!AH387,\"\")","v":""},{"$f":"IF(DataLog!$C387=\"Log value\",DataLog!AI387,\"\")","v":""},{"$f":"IF(DataLog!$C387=\"Log value\",DataLog!AJ387,\"\")","v":""},{"$f":"IF(DataLog!$C387=\"Log value\",DataLog!AK387,\"\")","v":""},{"$f":"IF(DataLog!$C387=\"Log value\",DataLog!AL387,\"\")","v":""},{"$f":"IF(DataLog!$C387=\"Log value\",DataLog!AM387,\"\")","v":""}]
[null,null,"Standard",{"$f":"C422&\" - \"&G422&\" - \"&I422","v":"Standard -  - "},null,null,{"$f":"IF(DataLog!$C388=\"Log value\",DataLog!D388&\"_\"&TEXT(DataLog!B388,\"åååå-mm-dd\"),\"\")","v":""},{"$f":"IF(DataLog!$C388=\"Log value\",DataLog!E388,\"\")","v":""},{"$f":"IF(DataLog!$C388=\"Log value\",DataLog!F388,\"\")","v":""},{"$f":"IF(DataLog!$C388=\"Log value\",DataLog!G388,\"\")","v":""},{"$f":"IF(DataLog!$C388=\"Log value\",DataLog!H388,\"\")","v":""},{"$f":"IF(DataLog!$C388=\"Log value\",DataLog!I388,\"\")","v":""},{"$f":"IF(DataLog!$C388=\"Log value\",DataLog!J388,\"\")","v":""},{"$f":"IF(DataLog!$C388=\"Log value\",DataLog!K388,\"\")","v":""},{"$f":"IF(DataLog!$C388=\"Log value\",DataLog!L388,\"\")","v":""},{"$f":"IF(DataLog!$C388=\"Log value\",DataLog!M388,\"\")","v":""},{"$f":"IF(DataLog!$C388=\"Log value\",DataLog!N388,\"\")","v":""},{"$f":"IF(DataLog!$C388=\"Log value\",DataLog!O388,\"\")","v":""},{"$f":"IF(DataLog!$C388=\"Log value\",DataLog!P388,\"\")","v":""},{"$f":"IF(DataLog!$C388=\"Log value\",DataLog!Q388,\"\")","v":""},{"$f":"IF(DataLog!$C388=\"Log value\",DataLog!R388,\"\")","v":""},{"$f":"IF(DataLog!$C388=\"Log value\",DataLog!S388,\"\")","v":""},{"$f":"IF(DataLog!$C388=\"Log value\",DataLog!T388,\"\")","v":""},{"$f":"IF(DataLog!$C388=\"Log value\",DataLog!U388,\"\")","v":""},{"$f":"IF(DataLog!$C388=\"Log value\",DataLog!V388,\"\")","v":""},{"$f":"IF(DataLog!$C388=\"Log value\",DataLog!W388,\"\")","v":""},{"$f":"IF(DataLog!$C388=\"Log value\",DataLog!X388,\"\")","v":""},{"$f":"IF(DataLog!$C388=\"Log value\",DataLog!Y388,\"\")","v":""},{"$f":"IF(DataLog!$C388=\"Log value\",DataLog!Z388,\"\")","v":""},{"$f":"IF(DataLog!$C388=\"Log value\",DataLog!AA388,\"\")","v":""},{"$f":"IF(DataLog!$C388=\"Log value\",DataLog!AB388,\"\")","v":""},{"$f":"IF(DataLog!$C388=\"Log value\",DataLog!AC388,\"\")","v":""},{"$f":"IF(DataLog!$C388=\"Log value\",DataLog!AD388,\"\")","v":""},{"$f":"IF(DataLog!$C388=\"Log value\",DataLog!AE388,\"\")","v":""},{"$f":"IF(DataLog!$C388=\"Log value\",DataLog!AF388,\"\")","v":""},{"$f":"IF(DataLog!$C388=\"Log value\",DataLog!AG388,\"\")","v":""},{"$f":"IF(DataLog!$C388=\"Log value\",DataLog!AH388,\"\")","v":""},{"$f":"IF(DataLog!$C388=\"Log value\",DataLog!AI388,\"\")","v":""},{"$f":"IF(DataLog!$C388=\"Log value\",DataLog!AJ388,\"\")","v":""},{"$f":"IF(DataLog!$C388=\"Log value\",DataLog!AK388,\"\")","v":""},{"$f":"IF(DataLog!$C388=\"Log value\",DataLog!AL388,\"\")","v":""},{"$f":"IF(DataLog!$C388=\"Log value\",DataLog!AM388,\"\")","v":""}]
[null,null,"Standard","Standard -  - ",null,null,{"$f":"IF(DataLog!$C389=\"Log value\",DataLog!D389&\"_\"&TEXT(DataLog!B389,\"åååå-mm-dd\"),\"\")","v":""},{"$f":"IF(DataLog!$C389=\"Log value\",DataLog!E389,\"\")","v":""},{"$f":"IF(DataLog!$C389=\"Log value\",DataLog!F389,\"\")","v":""},{"$f":"IF(DataLog!$C389=\"Log value\",DataLog!G389,\"\")","v":""},{"$f":"IF(DataLog!$C389=\"Log value\",DataLog!H389,\"\")","v":""},{"$f":"IF(DataLog!$C389=\"Log value\",DataLog!I389,\"\")","v":""},{"$f":"IF(DataLog!$C389=\"Log value\",DataLog!J389,\"\")","v":""},{"$f":"IF(DataLog!$C389=\"Log value\",DataLog!K389,\"\")","v":""},{"$f":"IF(DataLog!$C389=\"Log value\",DataLog!L389,\"\")","v":""},{"$f":"IF(DataLog!$C389=\"Log value\",DataLog!M389,\"\")","v":""},{"$f":"IF(DataLog!$C389=\"Log value\",DataLog!N389,\"\")","v":""},{"$f":"IF(DataLog!$C389=\"Log value\",DataLog!O389,\"\")","v":""},{"$f":"IF(DataLog!$C389=\"Log value\",DataLog!P389,\"\")","v":""},{"$f":"IF(DataLog!$C389=\"Log value\",DataLog!Q389,\"\")","v":""},{"$f":"IF(DataLog!$C389=\"Log value\",DataLog!R389,\"\")","v":""},{"$f":"IF(DataLog!$C389=\"Log value\",DataLog!S389,\"\")","v":""},{"$f":"IF(DataLog!$C389=\"Log value\",DataLog!T389,\"\")","v":""},{"$f":"IF(DataLog!$C389=\"Log value\",DataLog!U389,\"\")","v":""},{"$f":"IF(DataLog!$C389=\"Log value\",DataLog!V389,\"\")","v":""},{"$f":"IF(DataLog!$C389=\"Log value\",DataLog!W389,\"\")","v":""},{"$f":"IF(DataLog!$C389=\"Log value\",DataLog!X389,\"\")","v":""},{"$f":"IF(DataLog!$C389=\"Log value\",DataLog!Y389,\"\")","v":""},{"$f":"IF(DataLog!$C389=\"Log value\",DataLog!Z389,\"\")","v":""},{"$f":"IF(DataLog!$C389=\"Log value\",DataLog!AA389,\"\")","v":""},{"$f":"IF(DataLog!$C389=\"Log value\",DataLog!AB389,\"\")","v":""},{"$f":"IF(DataLog!$C389=\"Log value\",DataLog!AC389,\"\")","v":""},{"$f":"IF(DataLog!$C389=\"Log value\",DataLog!AD389,\"\")","v":""},{"$f":"IF(DataLog!$C389=\"Log value\",DataLog!AE389,\"\")","v":""},{"$f":"IF(DataLog!$C389=\"Log value\",DataLog!AF389,\"\")","v":""},{"$f":"IF(DataLog!$C389=\"Log value\",DataLog!AG389,\"\")","v":""},{"$f":"IF(DataLog!$C389=\"Log value\",DataLog!AH389,\"\")","v":""},{"$f":"IF(DataLog!$C389=\"Log value\",DataLog!AI389,\"\")","v":""},{"$f":"IF(DataLog!$C389=\"Log value\",DataLog!AJ389,\"\")","v":""},{"$f":"IF(DataLog!$C389=\"Log value\",DataLog!AK389,\"\")","v":""},{"$f":"IF(DataLog!$C389=\"Log value\",DataLog!AL389,\"\")","v":""},{"$f":"IF(DataLog!$C389=\"Log value\",DataLog!AM389,\"\")","v":""}]
[null,null,"Standard","Standard -  - ",null,null,{"$f":"IF(DataLog!$C390=\"Log value\",DataLog!D390&\"_\"&TEXT(DataLog!B390,\"åååå-mm-dd\"),\"\")","v":""},{"$f":"IF(DataLog!$C390=\"Log value\",DataLog!E390,\"\")","v":""},{"$f":"IF(DataLog!$C390=\"Log value\",DataLog!F390,\"\")","v":""},{"$f":"IF(DataLog!$C390=\"Log value\",DataLog!G390,\"\")","v":""},{"$f":"IF(DataLog!$C390=\"Log value\",DataLog!H390,\"\")","v":""},{"$f":"IF(DataLog!$C390=\"Log value\",DataLog!I390,\"\")","v":""},{"$f":"IF(DataLog!$C390=\"Log value\",DataLog!J390,\"\")","v":""},{"$f":"IF(DataLog!$C390=\"Log value\",DataLog!K390,\"\")","v":""},{"$f":"IF(DataLog!$C390=\"Log value\",DataLog!L390,\"\")","v":""},{"$f":"IF(DataLog!$C390=\"Log value\",DataLog!M390,\"\")","v":""},{"$f":"IF(DataLog!$C390=\"Log value\",DataLog!N390,\"\")","v":""},{"$f":"IF(DataLog!$C390=\"Log value\",DataLog!O390,\"\")","v":""},{"$f":"IF(DataLog!$C390=\"Log value\",DataLog!P390,\"\")","v":""},{"$f":"IF(DataLog!$C390=\"Log value\",DataLog!Q390,\"\")","v":""},{"$f":"IF(DataLog!$C390=\"Log value\",DataLog!R390,\"\")","v":""},{"$f":"IF(DataLog!$C390=\"Log value\",DataLog!S390,\"\")","v":""},{"$f":"IF(DataLog!$C390=\"Log value\",DataLog!T390,\"\")","v":""},{"$f":"IF(DataLog!$C390=\"Log value\",DataLog!U390,\"\")","v":""},{"$f":"IF(DataLog!$C390=\"Log value\",DataLog!V390,\"\")","v":""},{"$f":"IF(DataLog!$C390=\"Log value\",DataLog!W390,\"\")","v":""},{"$f":"IF(DataLog!$C390=\"Log value\",DataLog!X390,\"\")","v":""},{"$f":"IF(DataLog!$C390=\"Log value\",DataLog!Y390,\"\")","v":""},{"$f":"IF(DataLog!$C390=\"Log value\",DataLog!Z390,\"\")","v":""},{"$f":"IF(DataLog!$C390=\"Log value\",DataLog!AA390,\"\")","v":""},{"$f":"IF(DataLog!$C390=\"Log value\",DataLog!AB390,\"\")","v":""},{"$f":"IF(DataLog!$C390=\"Log value\",DataLog!AC390,\"\")","v":""},{"$f":"IF(DataLog!$C390=\"Log value\",DataLog!AD390,\"\")","v":""},{"$f":"IF(DataLog!$C390=\"Log value\",DataLog!AE390,\"\")","v":""},{"$f":"IF(DataLog!$C390=\"Log value\",DataLog!AF390,\"\")","v":""},{"$f":"IF(DataLog!$C390=\"Log value\",DataLog!AG390,\"\")","v":""},{"$f":"IF(DataLog!$C390=\"Log value\",DataLog!AH390,\"\")","v":""},{"$f":"IF(DataLog!$C390=\"Log value\",DataLog!AI390,\"\")","v":""},{"$f":"IF(DataLog!$C390=\"Log value\",DataLog!AJ390,\"\")","v":""},{"$f":"IF(DataLog!$C390=\"Log value\",DataLog!AK390,\"\")","v":""},{"$f":"IF(DataLog!$C390=\"Log value\",DataLog!AL390,\"\")","v":""},{"$f":"IF(DataLog!$C390=\"Log value\",DataLog!AM390,\"\")","v":""}]
[null,null,"Standard","Standard -  - ",null,null,{"$f":"IF(DataLog!$C391=\"Log value\",DataLog!D391&\"_\"&TEXT(DataLog!B391,\"åååå-mm-dd\"),\"\")","v":""},{"$f":"IF(DataLog!$C391=\"Log value\",DataLog!E391,\"\")","v":""},{"$f":"IF(DataLog!$C391=\"Log value\",DataLog!F391,\"\")","v":""},{"$f":"IF(DataLog!$C391=\"Log value\",DataLog!G391,\"\")","v":""},{"$f":"IF(DataLog!$C391=\"Log value\",DataLog!H391,\"\")","v":""},{"$f":"IF(DataLog!$C391=\"Log value\",DataLog!I391,\"\")","v":""},{"$f":"IF(DataLog!$C391=\"Log value\",DataLog!J391,\"\")","v":""},{"$f":"IF(DataLog!$C391=\"Log value\",DataLog!K391,\"\")","v":""},{"$f":"IF(DataLog!$C391=\"Log value\",DataLog!L391,\"\")","v":""},{"$f":"IF(DataLog!$C391=\"Log value\",DataLog!M391,\"\")","v":""},{"$f":"IF(DataLog!$C391=\"Log value\",DataLog!N391,\"\")","v":""},{"$f":"IF(DataLog!$C391=\"Log value\",DataLog!O391,\"\")","v":""},{"$f":"IF(DataLog!$C391=\"Log value\",DataLog!P391,\"\")","v":""},{"$f":"IF(DataLog!$C391=\"Log value\",DataLog!Q391,\"\")","v":""},{"$f":"IF(DataLog!$C391=\"Log value\",DataLog!R391,\"\")","v":""},{"$f":"IF(DataLog!$C391=\"Log value\",DataLog!S391,\"\")","v":""},{"$f":"IF(DataLog!$C391=\"Log value\",DataLog!T391,\"\")","v":""},{"$f":"IF(DataLog!$C391=\"Log value\",DataLog!U391,\"\")","v":""},{"$f":"IF(DataLog!$C391=\"Log value\",DataLog!V391,\"\")","v":""},{"$f":"IF(DataLog!$C391=\"Log value\",DataLog!W391,\"\")","v":""},{"$f":"IF(DataLog!$C391=\"Log value\",DataLog!X391,\"\")","v":""},{"$f":"IF(DataLog!$C391=\"Log value\",DataLog!Y391,\"\")","v":""},{"$f":"IF(DataLog!$C391=\"Log value\",DataLog!Z391,\"\")","v":""},{"$f":"IF(DataLog!$C391=\"Log value\",DataLog!AA391,\"\")","v":""},{"$f":"IF(DataLog!$C391=\"Log value\",DataLog!AB391,\"\")","v":""},{"$f":"IF(DataLog!$C391=\"Log value\",DataLog!AC391,\"\")","v":""},{"$f":"IF(DataLog!$C391=\"Log value\",DataLog!AD391,\"\")","v":""},{"$f":"IF(DataLog!$C391=\"Log value\",DataLog!AE391,\"\")","v":""},{"$f":"IF(DataLog!$C391=\"Log value\",DataLog!AF391,\"\")","v":""},{"$f":"IF(DataLog!$C391=\"Log value\",DataLog!AG391,\"\")","v":""},{"$f":"IF(DataLog!$C391=\"Log value\",DataLog!AH391,\"\")","v":""},{"$f":"IF(DataLog!$C391=\"Log value\",DataLog!AI391,\"\")","v":""},{"$f":"IF(DataLog!$C391=\"Log value\",DataLog!AJ391,\"\")","v":""},{"$f":"IF(DataLog!$C391=\"Log value\",DataLog!AK391,\"\")","v":""},{"$f":"IF(DataLog!$C391=\"Log value\",DataLog!AL391,\"\")","v":""},{"$f":"IF(DataLog!$C391=\"Log value\",DataLog!AM391,\"\")","v":""}]
[null,null,"Standard","Standard -  - ",null,null,{"$f":"IF(DataLog!$C392=\"Log value\",DataLog!D392&\"_\"&TEXT(DataLog!B392,\"åååå-mm-dd\"),\"\")","v":""},{"$f":"IF(DataLog!$C392=\"Log value\",DataLog!E392,\"\")","v":""},{"$f":"IF(DataLog!$C392=\"Log value\",DataLog!F392,\"\")","v":""},{"$f":"IF(DataLog!$C392=\"Log value\",DataLog!G392,\"\")","v":""},{"$f":"IF(DataLog!$C392=\"Log value\",DataLog!H392,\"\")","v":""},{"$f":"IF(DataLog!$C392=\"Log value\",DataLog!I392,\"\")","v":""},{"$f":"IF(DataLog!$C392=\"Log value\",DataLog!J392,\"\")","v":""},{"$f":"IF(DataLog!$C392=\"Log value\",DataLog!K392,\"\")","v":""},{"$f":"IF(DataLog!$C392=\"Log value\",DataLog!L392,\"\")","v":""},{"$f":"IF(DataLog!$C392=\"Log value\",DataLog!M392,\"\")","v":""},{"$f":"IF(DataLog!$C392=\"Log value\",DataLog!N392,\"\")","v":""},{"$f":"IF(DataLog!$C392=\"Log value\",DataLog!O392,\"\")","v":""},{"$f":"IF(DataLog!$C392=\"Log value\",DataLog!P392,\"\")","v":""},{"$f":"IF(DataLog!$C392=\"Log value\",DataLog!Q392,\"\")","v":""},{"$f":"IF(DataLog!$C392=\"Log value\",DataLog!R392,\"\")","v":""},{"$f":"IF(DataLog!$C392=\"Log value\",DataLog!S392,\"\")","v":""},{"$f":"IF(DataLog!$C392=\"Log value\",DataLog!T392,\"\")","v":""},{"$f":"IF(DataLog!$C392=\"Log value\",DataLog!U392,\"\")","v":""},{"$f":"IF(DataLog!$C392=\"Log value\",DataLog!V392,\"\")","v":""},{"$f":"IF(DataLog!$C392=\"Log value\",DataLog!W392,\"\")","v":""},{"$f":"IF(DataLog!$C392=\"Log value\",DataLog!X392,\"\")","v":""},{"$f":"IF(DataLog!$C392=\"Log value\",DataLog!Y392,\"\")","v":""},{"$f":"IF(DataLog!$C392=\"Log value\",DataLog!Z392,\"\")","v":""},{"$f":"IF(DataLog!$C392=\"Log value\",DataLog!AA392,\"\")","v":""},{"$f":"IF(DataLog!$C392=\"Log value\",DataLog!AB392,\"\")","v":""},{"$f":"IF(DataLog!$C392=\"Log value\",DataLog!AC392,\"\")","v":""},{"$f":"IF(DataLog!$C392=\"Log value\",DataLog!AD392,\"\")","v":""},{"$f":"IF(DataLog!$C392=\"Log value\",DataLog!AE392,\"\")","v":""},{"$f":"IF(DataLog!$C392=\"Log value\",DataLog!AF392,\"\")","v":""},{"$f":"IF(DataLog!$C392=\"Log value\",DataLog!AG392,\"\")","v":""},{"$f":"IF(DataLog!$C392=\"Log value\",DataLog!AH392,\"\")","v":""},{"$f":"IF(DataLog!$C392=\"Log value\",DataLog!AI392,\"\")","v":""},{"$f":"IF(DataLog!$C392=\"Log value\",DataLog!AJ392,\"\")","v":""},{"$f":"IF(DataLog!$C392=\"Log value\",DataLog!AK392,\"\")","v":""},{"$f":"IF(DataLog!$C392=\"Log value\",DataLog!AL392,\"\")","v":""},{"$f":"IF(DataLog!$C392=\"Log value\",DataLog!AM392,\"\")","v":""}]
[null,null,"Standard","Standard -  - ",null,null,{"$f":"IF(DataLog!$C393=\"Log value\",DataLog!D393&\"_\"&TEXT(DataLog!B393,\"åååå-mm-dd\"),\"\")","v":""},{"$f":"IF(DataLog!$C393=\"Log value\",DataLog!E393,\"\")","v":""},{"$f":"IF(DataLog!$C393=\"Log value\",DataLog!F393,\"\")","v":""},{"$f":"IF(DataLog!$C393=\"Log value\",DataLog!G393,\"\")","v":""},{"$f":"IF(DataLog!$C393=\"Log value\",DataLog!H393,\"\")","v":""},{"$f":"IF(DataLog!$C393=\"Log value\",DataLog!I393,\"\")","v":""},{"$f":"IF(DataLog!$C393=\"Log value\",DataLog!J393,\"\")","v":""},{"$f":"IF(DataLog!$C393=\"Log value\",DataLog!K393,\"\")","v":""},{"$f":"IF(DataLog!$C393=\"Log value\",DataLog!L393,\"\")","v":""},{"$f":"IF(DataLog!$C393=\"Log value\",DataLog!M393,\"\")","v":""},{"$f":"IF(DataLog!$C393=\"Log value\",DataLog!N393,\"\")","v":""},{"$f":"IF(DataLog!$C393=\"Log value\",DataLog!O393,\"\")","v":""},{"$f":"IF(DataLog!$C393=\"Log value\",DataLog!P393,\"\")","v":""},{"$f":"IF(DataLog!$C393=\"Log value\",DataLog!Q393,\"\")","v":""},{"$f":"IF(DataLog!$C393=\"Log value\",DataLog!R393,\"\")","v":""},{"$f":"IF(DataLog!$C393=\"Log value\",DataLog!S393,\"\")","v":""},{"$f":"IF(DataLog!$C393=\"Log value\",DataLog!T393,\"\")","v":""},{"$f":"IF(DataLog!$C393=\"Log value\",DataLog!U393,\"\")","v":""},{"$f":"IF(DataLog!$C393=\"Log value\",DataLog!V393,\"\")","v":""},{"$f":"IF(DataLog!$C393=\"Log value\",DataLog!W393,\"\")","v":""},{"$f":"IF(DataLog!$C393=\"Log value\",DataLog!X393,\"\")","v":""},{"$f":"IF(DataLog!$C393=\"Log value\",DataLog!Y393,\"\")","v":""},{"$f":"IF(DataLog!$C393=\"Log value\",DataLog!Z393,\"\")","v":""},{"$f":"IF(DataLog!$C393=\"Log value\",DataLog!AA393,\"\")","v":""},{"$f":"IF(DataLog!$C393=\"Log value\",DataLog!AB393,\"\")","v":""},{"$f":"IF(DataLog!$C393=\"Log value\",DataLog!AC393,\"\")","v":""},{"$f":"IF(DataLog!$C393=\"Log value\",DataLog!AD393,\"\")","v":""},{"$f":"IF(DataLog!$C393=\"Log value\",DataLog!AE393,\"\")","v":""},{"$f":"IF(DataLog!$C393=\"Log value\",DataLog!AF393,\"\")","v":""},{"$f":"IF(DataLog!$C393=\"Log value\",DataLog!AG393,\"\")","v":""},{"$f":"IF(DataLog!$C393=\"Log value\",DataLog!AH393,\"\")","v":""},{"$f":"IF(DataLog!$C393=\"Log value\",DataLog!AI393,\"\")","v":""},{"$f":"IF(DataLog!$C393=\"Log value\",DataLog!AJ393,\"\")","v":""},{"$f":"IF(DataLog!$C393=\"Log value\",DataLog!AK393,\"\")","v":""},{"$f":"IF(DataLog!$C393=\"Log value\",DataLog!AL393,\"\")","v":""},{"$f":"IF(DataLog!$C393=\"Log value\",DataLog!AM393,\"\")","v":""}]
[null,null,"Standard","Standard -  - ",null,null,{"$f":"IF(DataLog!$C394=\"Log value\",DataLog!D394&\"_\"&TEXT(DataLog!B394,\"åååå-mm-dd\"),\"\")","v":""},{"$f":"IF(DataLog!$C394=\"Log value\",DataLog!E394,\"\")","v":""},{"$f":"IF(DataLog!$C394=\"Log value\",DataLog!F394,\"\")","v":""},{"$f":"IF(DataLog!$C394=\"Log value\",DataLog!G394,\"\")","v":""},{"$f":"IF(DataLog!$C394=\"Log value\",DataLog!H394,\"\")","v":""},{"$f":"IF(DataLog!$C394=\"Log value\",DataLog!I394,\"\")","v":""},{"$f":"IF(DataLog!$C394=\"Log value\",DataLog!J394,\"\")","v":""},{"$f":"IF(DataLog!$C394=\"Log value\",DataLog!K394,\"\")","v":""},{"$f":"IF(DataLog!$C394=\"Log value\",DataLog!L394,\"\")","v":""},{"$f":"IF(DataLog!$C394=\"Log value\",DataLog!M394,\"\")","v":""},{"$f":"IF(DataLog!$C394=\"Log value\",DataLog!N394,\"\")","v":""},{"$f":"IF(DataLog!$C394=\"Log value\",DataLog!O394,\"\")","v":""},{"$f":"IF(DataLog!$C394=\"Log value\",DataLog!P394,\"\")","v":""},{"$f":"IF(DataLog!$C394=\"Log value\",DataLog!Q394,\"\")","v":""},{"$f":"IF(DataLog!$C394=\"Log value\",DataLog!R394,\"\")","v":""},{"$f":"IF(DataLog!$C394=\"Log value\",DataLog!S394,\"\")","v":""},{"$f":"IF(DataLog!$C394=\"Log value\",DataLog!T394,\"\")","v":""},{"$f":"IF(DataLog!$C394=\"Log value\",DataLog!U394,\"\")","v":""},{"$f":"IF(DataLog!$C394=\"Log value\",DataLog!V394,\"\")","v":""},{"$f":"IF(DataLog!$C394=\"Log value\",DataLog!W394,\"\")","v":""},{"$f":"IF(DataLog!$C394=\"Log value\",DataLog!X394,\"\")","v":""},{"$f":"IF(DataLog!$C394=\"Log value\",DataLog!Y394,\"\")","v":""},{"$f":"IF(DataLog!$C394=\"Log value\",DataLog!Z394,\"\")","v":""},{"$f":"IF(DataLog!$C394=\"Log value\",DataLog!AA394,\"\")","v":""},{"$f":"IF(DataLog!$C394=\"Log value\",DataLog!AB394,\"\")","v":""},{"$f":"IF(DataLog!$C394=\"Log value\",DataLog!AC394,\"\")","v":""},{"$f":"IF(DataLog!$C394=\"Log value\",DataLog!AD394,\"\")","v":""},{"$f":"IF(DataLog!$C394=\"Log value\",DataLog!AE394,\"\")","v":""},{"$f":"IF(DataLog!$C394=\"Log value\",DataLog!AF394,\"\")","v":""},{"$f":"IF(DataLog!$C394=\"Log value\",DataLog!AG394,\"\")","v":""},{"$f":"IF(DataLog!$C394=\"Log value\",DataLog!AH394,\"\")","v":""},{"$f":"IF(DataLog!$C394=\"Log value\",DataLog!AI394,\"\")","v":""},{"$f":"IF(DataLog!$C394=\"Log value\",DataLog!AJ394,\"\")","v":""},{"$f":"IF(DataLog!$C394=\"Log value\",DataLog!AK394,\"\")","v":""},{"$f":"IF(DataLog!$C394=\"Log value\",DataLog!AL394,\"\")","v":""},{"$f":"IF(DataLog!$C394=\"Log value\",DataLog!AM394,\"\")","v":""}]
[null,null,"Standard","Standard -  - ",null,null,{"$f":"IF(DataLog!$C395=\"Log value\",DataLog!D395&\"_\"&TEXT(DataLog!B395,\"åååå-mm-dd\"),\"\")","v":""},{"$f":"IF(DataLog!$C395=\"Log value\",DataLog!E395,\"\")","v":""},{"$f":"IF(DataLog!$C395=\"Log value\",DataLog!F395,\"\")","v":""},{"$f":"IF(DataLog!$C395=\"Log value\",DataLog!G395,\"\")","v":""},{"$f":"IF(DataLog!$C395=\"Log value\",DataLog!H395,\"\")","v":""},{"$f":"IF(DataLog!$C395=\"Log value\",DataLog!I395,\"\")","v":""},{"$f":"IF(DataLog!$C395=\"Log value\",DataLog!J395,\"\")","v":""},{"$f":"IF(DataLog!$C395=\"Log value\",DataLog!K395,\"\")","v":""},{"$f":"IF(DataLog!$C395=\"Log value\",DataLog!L395,\"\")","v":""},{"$f":"IF(DataLog!$C395=\"Log value\",DataLog!M395,\"\")","v":""},{"$f":"IF(DataLog!$C395=\"Log value\",DataLog!N395,\"\")","v":""},{"$f":"IF(DataLog!$C395=\"Log value\",DataLog!O395,\"\")","v":""},{"$f":"IF(DataLog!$C395=\"Log value\",DataLog!P395,\"\")","v":""},{"$f":"IF(DataLog!$C395=\"Log value\",DataLog!Q395,\"\")","v":""},{"$f":"IF(DataLog!$C395=\"Log value\",DataLog!R395,\"\")","v":""},{"$f":"IF(DataLog!$C395=\"Log value\",DataLog!S395,\"\")","v":""},{"$f":"IF(DataLog!$C395=\"Log value\",DataLog!T395,\"\")","v":""},{"$f":"IF(DataLog!$C395=\"Log value\",DataLog!U395,\"\")","v":""},{"$f":"IF(DataLog!$C395=\"Log value\",DataLog!V395,\"\")","v":""},{"$f":"IF(DataLog!$C395=\"Log value\",DataLog!W395,\"\")","v":""},{"$f":"IF(DataLog!$C395=\"Log value\",DataLog!X395,\"\")","v":""},{"$f":"IF(DataLog!$C395=\"Log value\",DataLog!Y395,\"\")","v":""},{"$f":"IF(DataLog!$C395=\"Log value\",DataLog!Z395,\"\")","v":""},{"$f":"IF(DataLog!$C395=\"Log value\",DataLog!AA395,\"\")","v":""},{"$f":"IF(DataLog!$C395=\"Log value\",DataLog!AB395,\"\")","v":""},{"$f":"IF(DataLog!$C395=\"Log value\",DataLog!AC395,\"\")","v":""},{"$f":"IF(DataLog!$C395=\"Log value\",DataLog!AD395,\"\")","v":""},{"$f":"IF(DataLog!$C395=\"Log value\",DataLog!AE395,\"\")","v":""},{"$f":"IF(DataLog!$C395=\"Log value\",DataLog!AF395,\"\")","v":""},{"$f":"IF(DataLog!$C395=\"Log value\",DataLog!AG395,\"\")","v":""},{"$f":"IF(DataLog!$C395=\"Log value\",DataLog!AH395,\"\")","v":""},{"$f":"IF(DataLog!$C395=\"Log value\",DataLog!AI395,\"\")","v":""},{"$f":"IF(DataLog!$C395=\"Log value\",DataLog!AJ395,\"\")","v":""},{"$f":"IF(DataLog!$C395=\"Log value\",DataLog!AK395,\"\")","v":""},{"$f":"IF(DataLog!$C395=\"Log value\",DataLog!AL395,\"\")","v":""},{"$f":"IF(DataLog!$C395=\"Log value\",DataLog!AM395,\"\")","v":""}]
[null,null,"Standard","Standard -  - ",null,null,{"$f":"IF(DataLog!$C396=\"Log value\",DataLog!D396&\"_\"&TEXT(DataLog!B396,\"åååå-mm-dd\"),\"\")","v":""},{"$f":"IF(DataLog!$C396=\"Log value\",DataLog!E396,\"\")","v":""},{"$f":"IF(DataLog!$C396=\"Log value\",DataLog!F396,\"\")","v":""},{"$f":"IF(DataLog!$C396=\"Log value\",DataLog!G396,\"\")","v":""},{"$f":"IF(DataLog!$C396=\"Log value\",DataLog!H396,\"\")","v":""},{"$f":"IF(DataLog!$C396=\"Log value\",DataLog!I396,\"\")","v":""},{"$f":"IF(DataLog!$C396=\"Log value\",DataLog!J396,\"\")","v":""},{"$f":"IF(DataLog!$C396=\"Log value\",DataLog!K396,\"\")","v":""},{"$f":"IF(DataLog!$C396=\"Log value\",DataLog!L396,\"\")","v":""},{"$f":"IF(DataLog!$C396=\"Log value\",DataLog!M396,\"\")","v":""},{"$f":"IF(DataLog!$C396=\"Log value\",DataLog!N396,\"\")","v":""},{"$f":"IF(DataLog!$C396=\"Log value\",DataLog!O396,\"\")","v":""},{"$f":"IF(DataLog!$C396=\"Log value\",DataLog!P396,\"\")","v":""},{"$f":"IF(DataLog!$C396=\"Log value\",DataLog!Q396,\"\")","v":""},{"$f":"IF(DataLog!$C396=\"Log value\",DataLog!R396,\"\")","v":""},{"$f":"IF(DataLog!$C396=\"Log value\",DataLog!S396,\"\")","v":""},{"$f":"IF(DataLog!$C396=\"Log value\",DataLog!T396,\"\")","v":""},{"$f":"IF(DataLog!$C396=\"Log value\",DataLog!U396,\"\")","v":""},{"$f":"IF(DataLog!$C396=\"Log value\",DataLog!V396,\"\")","v":""},{"$f":"IF(DataLog!$C396=\"Log value\",DataLog!W396,\"\")","v":""},{"$f":"IF(DataLog!$C396=\"Log value\",DataLog!X396,\"\")","v":""},{"$f":"IF(DataLog!$C396=\"Log value\",DataLog!Y396,\"\")","v":""},{"$f":"IF(DataLog!$C396=\"Log value\",DataLog!Z396,\"\")","v":""},{"$f":"IF(DataLog!$C396=\"Log value\",DataLog!AA396,\"\")","v":""},{"$f":"IF(DataLog!$C396=\"Log value\",DataLog!AB396,\"\")","v":""},{"$f":"IF(DataLog!$C396=\"Log value\",DataLog!AC396,\"\")","v":""},{"$f":"IF(DataLog!$C396=\"Log value\",DataLog!AD396,\"\")","v":""},{"$f":"IF(DataLog!$C396=\"Log value\",DataLog!AE396,\"\")","v":""},{"$f":"IF(DataLog!$C396=\"Log value\",DataLog!AF396,\"\")","v":""},{"$f":"IF(DataLog!$C396=\"Log value\",DataLog!AG396,\"\")","v":""},{"$f":"IF(DataLog!$C396=\"Log value\",DataLog!AH396,\"\")","v":""},{"$f":"IF(DataLog!$C396=\"Log value\",DataLog!AI396,\"\")","v":""},{"$f":"IF(DataLog!$C396=\"Log value\",DataLog!AJ396,\"\")","v":""},{"$f":"IF(DataLog!$C396=\"Log value\",DataLog!AK396,\"\")","v":""},{"$f":"IF(DataLog!$C396=\"Log value\",DataLog!AL396,\"\")","v":""},{"$f":"IF(DataLog!$C396=\"Log value\",DataLog!AM396,\"\")","v":""}]
[null,null,"Standard","Standard -  - ",null,null,{"$f":"IF(DataLog!$C397=\"Log value\",DataLog!D397&\"_\"&TEXT(DataLog!B397,\"åååå-mm-dd\"),\"\")","v":""},{"$f":"IF(DataLog!$C397=\"Log value\",DataLog!E397,\"\")","v":""},{"$f":"IF(DataLog!$C397=\"Log value\",DataLog!F397,\"\")","v":""},{"$f":"IF(DataLog!$C397=\"Log value\",DataLog!G397,\"\")","v":""},{"$f":"IF(DataLog!$C397=\"Log value\",DataLog!H397,\"\")","v":""},{"$f":"IF(DataLog!$C397=\"Log value\",DataLog!I397,\"\")","v":""},{"$f":"IF(DataLog!$C397=\"Log value\",DataLog!J397,\"\")","v":""},{"$f":"IF(DataLog!$C397=\"Log value\",DataLog!K397,\"\")","v":""},{"$f":"IF(DataLog!$C397=\"Log value\",DataLog!L397,\"\")","v":""},{"$f":"IF(DataLog!$C397=\"Log value\",DataLog!M397,\"\")","v":""},{"$f":"IF(DataLog!$C397=\"Log value\",DataLog!N397,\"\")","v":""},{"$f":"IF(DataLog!$C397=\"Log value\",DataLog!O397,\"\")","v":""},{"$f":"IF(DataLog!$C397=\"Log value\",DataLog!P397,\"\")","v":""},{"$f":"IF(DataLog!$C397=\"Log value\",DataLog!Q397,\"\")","v":""},{"$f":"IF(DataLog!$C397=\"Log value\",DataLog!R397,\"\")","v":""},{"$f":"IF(DataLog!$C397=\"Log value\",DataLog!S397,\"\")","v":""},{"$f":"IF(DataLog!$C397=\"Log value\",DataLog!T397,\"\")","v":""},{"$f":"IF(DataLog!$C397=\"Log value\",DataLog!U397,\"\")","v":""},{"$f":"IF(DataLog!$C397=\"Log value\",DataLog!V397,\"\")","v":""},{"$f":"IF(DataLog!$C397=\"Log value\",DataLog!W397,\"\")","v":""},{"$f":"IF(DataLog!$C397=\"Log value\",DataLog!X397,\"\")","v":""},{"$f":"IF(DataLog!$C397=\"Log value\",DataLog!Y397,\"\")","v":""},{"$f":"IF(DataLog!$C397=\"Log value\",DataLog!Z397,\"\")","v":""},{"$f":"IF(DataLog!$C397=\"Log value\",DataLog!AA397,\"\")","v":""},{"$f":"IF(DataLog!$C397=\"Log value\",DataLog!AB397,\"\")","v":""},{"$f":"IF(DataLog!$C397=\"Log value\",DataLog!AC397,\"\")","v":""},{"$f":"IF(DataLog!$C397=\"Log value\",DataLog!AD397,\"\")","v":""},{"$f":"IF(DataLog!$C397=\"Log value\",DataLog!AE397,\"\")","v":""},{"$f":"IF(DataLog!$C397=\"Log value\",DataLog!AF397,\"\")","v":""},{"$f":"IF(DataLog!$C397=\"Log value\",DataLog!AG397,\"\")","v":""},{"$f":"IF(DataLog!$C397=\"Log value\",DataLog!AH397,\"\")","v":""},{"$f":"IF(DataLog!$C397=\"Log value\",DataLog!AI397,\"\")","v":""},{"$f":"IF(DataLog!$C397=\"Log value\",DataLog!AJ397,\"\")","v":""},{"$f":"IF(DataLog!$C397=\"Log value\",DataLog!AK397,\"\")","v":""},{"$f":"IF(DataLog!$C397=\"Log value\",DataLog!AL397,\"\")","v":""},{"$f":"IF(DataLog!$C397=\"Log value\",DataLog!AM397,\"\")","v":""}]
[null,null,"Standard","Standard -  - ",null,null,{"$f":"IF(DataLog!$C398=\"Log value\",DataLog!D398&\"_\"&TEXT(DataLog!B398,\"åååå-mm-dd\"),\"\")","v":""},{"$f":"IF(DataLog!$C398=\"Log value\",DataLog!E398,\"\")","v":""},{"$f":"IF(DataLog!$C398=\"Log value\",DataLog!F398,\"\")","v":""},{"$f":"IF(DataLog!$C398=\"Log value\",DataLog!G398,\"\")","v":""},{"$f":"IF(DataLog!$C398=\"Log value\",DataLog!H398,\"\")","v":""},{"$f":"IF(DataLog!$C398=\"Log value\",DataLog!I398,\"\")","v":""},{"$f":"IF(DataLog!$C398=\"Log value\",DataLog!J398,\"\")","v":""},{"$f":"IF(DataLog!$C398=\"Log value\",DataLog!K398,\"\")","v":""},{"$f":"IF(DataLog!$C398=\"Log value\",DataLog!L398,\"\")","v":""},{"$f":"IF(DataLog!$C398=\"Log value\",DataLog!M398,\"\")","v":""},{"$f":"IF(DataLog!$C398=\"Log value\",DataLog!N398,\"\")","v":""},{"$f":"IF(DataLog!$C398=\"Log value\",DataLog!O398,\"\")","v":""},{"$f":"IF(DataLog!$C398=\"Log value\",DataLog!P398,\"\")","v":""},{"$f":"IF(DataLog!$C398=\"Log value\",DataLog!Q398,\"\")","v":""},{"$f":"IF(DataLog!$C398=\"Log value\",DataLog!R398,\"\")","v":""},{"$f":"IF(DataLog!$C398=\"Log value\",DataLog!S398,\"\")","v":""},{"$f":"IF(DataLog!$C398=\"Log value\",DataLog!T398,\"\")","v":""},{"$f":"IF(DataLog!$C398=\"Log value\",DataLog!U398,\"\")","v":""},{"$f":"IF(DataLog!$C398=\"Log value\",DataLog!V398,\"\")","v":""},{"$f":"IF(DataLog!$C398=\"Log value\",DataLog!W398,\"\")","v":""},{"$f":"IF(DataLog!$C398=\"Log value\",DataLog!X398,\"\")","v":""},{"$f":"IF(DataLog!$C398=\"Log value\",DataLog!Y398,\"\")","v":""},{"$f":"IF(DataLog!$C398=\"Log value\",DataLog!Z398,\"\")","v":""},{"$f":"IF(DataLog!$C398=\"Log value\",DataLog!AA398,\"\")","v":""},{"$f":"IF(DataLog!$C398=\"Log value\",DataLog!AB398,\"\")","v":""},{"$f":"IF(DataLog!$C398=\"Log value\",DataLog!AC398,\"\")","v":""},{"$f":"IF(DataLog!$C398=\"Log value\",DataLog!AD398,\"\")","v":""},{"$f":"IF(DataLog!$C398=\"Log value\",DataLog!AE398,\"\")","v":""},{"$f":"IF(DataLog!$C398=\"Log value\",DataLog!AF398,\"\")","v":""},{"$f":"IF(DataLog!$C398=\"Log value\",DataLog!AG398,\"\")","v":""},{"$f":"IF(DataLog!$C398=\"Log value\",DataLog!AH398,\"\")","v":""},{"$f":"IF(DataLog!$C398=\"Log value\",DataLog!AI398,\"\")","v":""},{"$f":"IF(DataLog!$C398=\"Log value\",DataLog!AJ398,\"\")","v":""},{"$f":"IF(DataLog!$C398=\"Log value\",DataLog!AK398,\"\")","v":""},{"$f":"IF(DataLog!$C398=\"Log value\",DataLog!AL398,\"\")","v":""},{"$f":"IF(DataLog!$C398=\"Log value\",DataLog!AM398,\"\")","v":""}]
[null,null,"Standard","Standard -  - ",null,null,{"$f":"IF(DataLog!$C399=\"Log value\",DataLog!D399&\"_\"&TEXT(DataLog!B399,\"åååå-mm-dd\"),\"\")","v":""},{"$f":"IF(DataLog!$C399=\"Log value\",DataLog!E399,\"\")","v":""},{"$f":"IF(DataLog!$C399=\"Log value\",DataLog!F399,\"\")","v":""},{"$f":"IF(DataLog!$C399=\"Log value\",DataLog!G399,\"\")","v":""},{"$f":"IF(DataLog!$C399=\"Log value\",DataLog!H399,\"\")","v":""},{"$f":"IF(DataLog!$C399=\"Log value\",DataLog!I399,\"\")","v":""},{"$f":"IF(DataLog!$C399=\"Log value\",DataLog!J399,\"\")","v":""},{"$f":"IF(DataLog!$C399=\"Log value\",DataLog!K399,\"\")","v":""},{"$f":"IF(DataLog!$C399=\"Log value\",DataLog!L399,\"\")","v":""},{"$f":"IF(DataLog!$C399=\"Log value\",DataLog!M399,\"\")","v":""},{"$f":"IF(DataLog!$C399=\"Log value\",DataLog!N399,\"\")","v":""},{"$f":"IF(DataLog!$C399=\"Log value\",DataLog!O399,\"\")","v":""},{"$f":"IF(DataLog!$C399=\"Log value\",DataLog!P399,\"\")","v":""},{"$f":"IF(DataLog!$C399=\"Log value\",DataLog!Q399,\"\")","v":""},{"$f":"IF(DataLog!$C399=\"Log value\",DataLog!R399,\"\")","v":""},{"$f":"IF(DataLog!$C399=\"Log value\",DataLog!S399,\"\")","v":""},{"$f":"IF(DataLog!$C399=\"Log value\",DataLog!T399,\"\")","v":""},{"$f":"IF(DataLog!$C399=\"Log value\",DataLog!U399,\"\")","v":""},{"$f":"IF(DataLog!$C399=\"Log value\",DataLog!V399,\"\")","v":""},{"$f":"IF(DataLog!$C399=\"Log value\",DataLog!W399,\"\")","v":""},{"$f":"IF(DataLog!$C399=\"Log value\",DataLog!X399,\"\")","v":""},{"$f":"IF(DataLog!$C399=\"Log value\",DataLog!Y399,\"\")","v":""},{"$f":"IF(DataLog!$C399=\"Log value\",DataLog!Z399,\"\")","v":""},{"$f":"IF(DataLog!$C399=\"Log value\",DataLog!AA399,\"\")","v":""},{"$f":"IF(DataLog!$C399=\"Log value\",DataLog!AB399,\"\")","v":""},{"$f":"IF(DataLog!$C399=\"Log value\",DataLog!AC399,\"\")","v":""},{"$f":"IF(DataLog!$C399=\"Log value\",DataLog!AD399,\"\")","v":""},{"$f":"IF(DataLog!$C399=\"Log value\",DataLog!AE399,\"\")","v":""},{"$f":"IF(DataLog!$C399=\"Log value\",DataLog!AF399,\"\")","v":""},{"$f":"IF(DataLog!$C399=\"Log value\",DataLog!AG399,\"\")","v":""},{"$f":"IF(DataLog!$C399=\"Log value\",DataLog!AH399,\"\")","v":""},{"$f":"IF(DataLog!$C399=\"Log value\",DataLog!AI399,\"\")","v":""},{"$f":"IF(DataLog!$C399=\"Log value\",DataLog!AJ399,\"\")","v":""},{"$f":"IF(DataLog!$C399=\"Log value\",DataLog!AK399,\"\")","v":""},{"$f":"IF(DataLog!$C399=\"Log value\",DataLog!AL399,\"\")","v":""},{"$f":"IF(DataLog!$C399=\"Log value\",DataLog!AM399,\"\")","v":""}]
[null,null,"Standard","Standard -  - ",null,null,{"$f":"IF(DataLog!$C400=\"Log value\",DataLog!D400&\"_\"&TEXT(DataLog!B400,\"åååå-mm-dd\"),\"\")","v":""},{"$f":"IF(DataLog!$C400=\"Log value\",DataLog!E400,\"\")","v":""},{"$f":"IF(DataLog!$C400=\"Log value\",DataLog!F400,\"\")","v":""},{"$f":"IF(DataLog!$C400=\"Log value\",DataLog!G400,\"\")","v":""},{"$f":"IF(DataLog!$C400=\"Log value\",DataLog!H400,\"\")","v":""},{"$f":"IF(DataLog!$C400=\"Log value\",DataLog!I400,\"\")","v":""},{"$f":"IF(DataLog!$C400=\"Log value\",DataLog!J400,\"\")","v":""},{"$f":"IF(DataLog!$C400=\"Log value\",DataLog!K400,\"\")","v":""},{"$f":"IF(DataLog!$C400=\"Log value\",DataLog!L400,\"\")","v":""},{"$f":"IF(DataLog!$C400=\"Log value\",DataLog!M400,\"\")","v":""},{"$f":"IF(DataLog!$C400=\"Log value\",DataLog!N400,\"\")","v":""},{"$f":"IF(DataLog!$C400=\"Log value\",DataLog!O400,\"\")","v":""},{"$f":"IF(DataLog!$C400=\"Log value\",DataLog!P400,\"\")","v":""},{"$f":"IF(DataLog!$C400=\"Log value\",DataLog!Q400,\"\")","v":""},{"$f":"IF(DataLog!$C400=\"Log value\",DataLog!R400,\"\")","v":""},{"$f":"IF(DataLog!$C400=\"Log value\",DataLog!S400,\"\")","v":""},{"$f":"IF(DataLog!$C400=\"Log value\",DataLog!T400,\"\")","v":""},{"$f":"IF(DataLog!$C400=\"Log value\",DataLog!U400,\"\")","v":""},{"$f":"IF(DataLog!$C400=\"Log value\",DataLog!V400,\"\")","v":""},{"$f":"IF(DataLog!$C400=\"Log value\",DataLog!W400,\"\")","v":""},{"$f":"IF(DataLog!$C400=\"Log value\",DataLog!X400,\"\")","v":""},{"$f":"IF(DataLog!$C400=\"Log value\",DataLog!Y400,\"\")","v":""},{"$f":"IF(DataLog!$C400=\"Log value\",DataLog!Z400,\"\")","v":""},{"$f":"IF(DataLog!$C400=\"Log value\",DataLog!AA400,\"\")","v":""},{"$f":"IF(DataLog!$C400=\"Log value\",DataLog!AB400,\"\")","v":""},{"$f":"IF(DataLog!$C400=\"Log value\",DataLog!AC400,\"\")","v":""},{"$f":"IF(DataLog!$C400=\"Log value\",DataLog!AD400,\"\")","v":""},{"$f":"IF(DataLog!$C400=\"Log value\",DataLog!AE400,\"\")","v":""},{"$f":"IF(DataLog!$C400=\"Log value\",DataLog!AF400,\"\")","v":""},{"$f":"IF(DataLog!$C400=\"Log value\",DataLog!AG400,\"\")","v":""},{"$f":"IF(DataLog!$C400=\"Log value\",DataLog!AH400,\"\")","v":""},{"$f":"IF(DataLog!$C400=\"Log value\",DataLog!AI400,\"\")","v":""},{"$f":"IF(DataLog!$C400=\"Log value\",DataLog!AJ400,\"\")","v":""},{"$f":"IF(DataLog!$C400=\"Log value\",DataLog!AK400,\"\")","v":""},{"$f":"IF(DataLog!$C400=\"Log value\",DataLog!AL400,\"\")","v":""},{"$f":"IF(DataLog!$C400=\"Log value\",DataLog!AM400,\"\")","v":""}]
[null,null,"Standard","Standard -  - ",null,null,{"$f":"IF(DataLog!$C401=\"Log value\",DataLog!D401&\"_\"&TEXT(DataLog!B401,\"åååå-mm-dd\"),\"\")","v":""},{"$f":"IF(DataLog!$C401=\"Log value\",DataLog!E401,\"\")","v":""},{"$f":"IF(DataLog!$C401=\"Log value\",DataLog!F401,\"\")","v":""},{"$f":"IF(DataLog!$C401=\"Log value\",DataLog!G401,\"\")","v":""},{"$f":"IF(DataLog!$C401=\"Log value\",DataLog!H401,\"\")","v":""},{"$f":"IF(DataLog!$C401=\"Log value\",DataLog!I401,\"\")","v":""},{"$f":"IF(DataLog!$C401=\"Log value\",DataLog!J401,\"\")","v":""},{"$f":"IF(DataLog!$C401=\"Log value\",DataLog!K401,\"\")","v":""},{"$f":"IF(DataLog!$C401=\"Log value\",DataLog!L401,\"\")","v":""},{"$f":"IF(DataLog!$C401=\"Log value\",DataLog!M401,\"\")","v":""},{"$f":"IF(DataLog!$C401=\"Log value\",DataLog!N401,\"\")","v":""},{"$f":"IF(DataLog!$C401=\"Log value\",DataLog!O401,\"\")","v":""},{"$f":"IF(DataLog!$C401=\"Log value\",DataLog!P401,\"\")","v":""},{"$f":"IF(DataLog!$C401=\"Log value\",DataLog!Q401,\"\")","v":""},{"$f":"IF(DataLog!$C401=\"Log value\",DataLog!R401,\"\")","v":""},{"$f":"IF(DataLog!$C401=\"Log value\",DataLog!S401,\"\")","v":""},{"$f":"IF(DataLog!$C401=\"Log value\",DataLog!T401,\"\")","v":""},{"$f":"IF(DataLog!$C401=\"Log value\",DataLog!U401,\"\")","v":""},{"$f":"IF(DataLog!$C401=\"Log value\",DataLog!V401,\"\")","v":""},{"$f":"IF(DataLog!$C401=\"Log value\",DataLog!W401,\"\")","v":""},{"$f":"IF(DataLog!$C401=\"Log value\",DataLog!X401,\"\")","v":""},{"$f":"IF(DataLog!$C401=\"Log value\",DataLog!Y401,\"\")","v":""},{"$f":"IF(DataLog!$C401=\"Log value\",DataLog!Z401,\"\")","v":""},{"$f":"IF(DataLog!$C401=\"Log value\",DataLog!AA401,\"\")","v":""},{"$f":"IF(DataLog!$C401=\"Log value\",DataLog!AB401,\"\")","v":""},{"$f":"IF(DataLog!$C401=\"Log value\",DataLog!AC401,\"\")","v":""},{"$f":"IF(DataLog!$C401=\"Log value\",DataLog!AD401,\"\")","v":""},{"$f":"IF(DataLog!$C401=\"Log value\",DataLog!AE401,\"\")","v":""},{"$f":"IF(DataLog!$C401=\"Log value\",DataLog!AF401,\"\")","v":""},{"$f":"IF(DataLog!$C401=\"Log value\",DataLog!AG401,\"\")","v":""},{"$f":"IF(DataLog!$C401=\"Log value\",DataLog!AH401,\"\")","v":""},{"$f":"IF(DataLog!$C401=\"Log value\",DataLog!AI401,\"\")","v":""},{"$f":"IF(DataLog!$C401=\"Log value\",DataLog!AJ401,\"\")","v":""},{"$f":"IF(DataLog!$C401=\"Log value\",DataLog!AK401,\"\")","v":""},{"$f":"IF(DataLog!$C401=\"Log value\",DataLog!AL401,\"\")","v":""},{"$f":"IF(DataLog!$C401=\"Log value\",DataLog!AM401,\"\")","v":""}]
[null,null,"Standard","Standard -  - ",null,null,{"$f":"IF(DataLog!$C402=\"Log value\",DataLog!D402&\"_\"&TEXT(DataLog!B402,\"åååå-mm-dd\"),\"\")","v":""},{"$f":"IF(DataLog!$C402=\"Log value\",DataLog!E402,\"\")","v":""},{"$f":"IF(DataLog!$C402=\"Log value\",DataLog!F402,\"\")","v":""},{"$f":"IF(DataLog!$C402=\"Log value\",DataLog!G402,\"\")","v":""},{"$f":"IF(DataLog!$C402=\"Log value\",DataLog!H402,\"\")","v":""},{"$f":"IF(DataLog!$C402=\"Log value\",DataLog!I402,\"\")","v":""},{"$f":"IF(DataLog!$C402=\"Log value\",DataLog!J402,\"\")","v":""},{"$f":"IF(DataLog!$C402=\"Log value\",DataLog!K402,\"\")","v":""},{"$f":"IF(DataLog!$C402=\"Log value\",DataLog!L402,\"\")","v":""},{"$f":"IF(DataLog!$C402=\"Log value\",DataLog!M402,\"\")","v":""},{"$f":"IF(DataLog!$C402=\"Log value\",DataLog!N402,\"\")","v":""},{"$f":"IF(DataLog!$C402=\"Log value\",DataLog!O402,\"\")","v":""},{"$f":"IF(DataLog!$C402=\"Log value\",DataLog!P402,\"\")","v":""},{"$f":"IF(DataLog!$C402=\"Log value\",DataLog!Q402,\"\")","v":""},{"$f":"IF(DataLog!$C402=\"Log value\",DataLog!R402,\"\")","v":""},{"$f":"IF(DataLog!$C402=\"Log value\",DataLog!S402,\"\")","v":""},{"$f":"IF(DataLog!$C402=\"Log value\",DataLog!T402,\"\")","v":""},{"$f":"IF(DataLog!$C402=\"Log value\",DataLog!U402,\"\")","v":""},{"$f":"IF(DataLog!$C402=\"Log value\",DataLog!V402,\"\")","v":""},{"$f":"IF(DataLog!$C402=\"Log value\",DataLog!W402,\"\")","v":""},{"$f":"IF(DataLog!$C402=\"Log value\",DataLog!X402,\"\")","v":""},{"$f":"IF(DataLog!$C402=\"Log value\",DataLog!Y402,\"\")","v":""},{"$f":"IF(DataLog!$C402=\"Log value\",DataLog!Z402,\"\")","v":""},{"$f":"IF(DataLog!$C402=\"Log value\",DataLog!AA402,\"\")","v":""},{"$f":"IF(DataLog!$C402=\"Log value\",DataLog!AB402,\"\")","v":""},{"$f":"IF(DataLog!$C402=\"Log value\",DataLog!AC402,\"\")","v":""},{"$f":"IF(DataLog!$C402=\"Log value\",DataLog!AD402,\"\")","v":""},{"$f":"IF(DataLog!$C402=\"Log value\",DataLog!AE402,\"\")","v":""},{"$f":"IF(DataLog!$C402=\"Log value\",DataLog!AF402,\"\")","v":""},{"$f":"IF(DataLog!$C402=\"Log value\",DataLog!AG402,\"\")","v":""},{"$f":"IF(DataLog!$C402=\"Log value\",DataLog!AH402,\"\")","v":""},{"$f":"IF(DataLog!$C402=\"Log value\",DataLog!AI402,\"\")","v":""},{"$f":"IF(DataLog!$C402=\"Log value\",DataLog!AJ402,\"\")","v":""},{"$f":"IF(DataLog!$C402=\"Log value\",DataLog!AK402,\"\")","v":""},{"$f":"IF(DataLog!$C402=\"Log value\",DataLog!AL402,\"\")","v":""},{"$f":"IF(DataLog!$C402=\"Log value\",DataLog!AM402,\"\")","v":""}]
[null,null,"Standard","Standard -  - ",null,null,{"$f":"IF(DataLog!$C403=\"Log value\",DataLog!D403&\"_\"&TEXT(DataLog!B403,\"åååå-mm-dd\"),\"\")","v":""},{"$f":"IF(DataLog!$C403=\"Log value\",DataLog!E403,\"\")","v":""},{"$f":"IF(DataLog!$C403=\"Log value\",DataLog!F403,\"\")","v":""},{"$f":"IF(DataLog!$C403=\"Log value\",DataLog!G403,\"\")","v":""},{"$f":"IF(DataLog!$C403=\"Log value\",DataLog!H403,\"\")","v":""},{"$f":"IF(DataLog!$C403=\"Log value\",DataLog!I403,\"\")","v":""},{"$f":"IF(DataLog!$C403=\"Log value\",DataLog!J403,\"\")","v":""},{"$f":"IF(DataLog!$C403=\"Log value\",DataLog!K403,\"\")","v":""},{"$f":"IF(DataLog!$C403=\"Log value\",DataLog!L403,\"\")","v":""},{"$f":"IF(DataLog!$C403=\"Log value\",DataLog!M403,\"\")","v":""},{"$f":"IF(DataLog!$C403=\"Log value\",DataLog!N403,\"\")","v":""},{"$f":"IF(DataLog!$C403=\"Log value\",DataLog!O403,\"\")","v":""},{"$f":"IF(DataLog!$C403=\"Log value\",DataLog!P403,\"\")","v":""},{"$f":"IF(DataLog!$C403=\"Log value\",DataLog!Q403,\"\")","v":""},{"$f":"IF(DataLog!$C403=\"Log value\",DataLog!R403,\"\")","v":""},{"$f":"IF(DataLog!$C403=\"Log value\",DataLog!S403,\"\")","v":""},{"$f":"IF(DataLog!$C403=\"Log value\",DataLog!T403,\"\")","v":""},{"$f":"IF(DataLog!$C403=\"Log value\",DataLog!U403,\"\")","v":""},{"$f":"IF(DataLog!$C403=\"Log value\",DataLog!V403,\"\")","v":""},{"$f":"IF(DataLog!$C403=\"Log value\",DataLog!W403,\"\")","v":""},{"$f":"IF(DataLog!$C403=\"Log value\",DataLog!X403,\"\")","v":""},{"$f":"IF(DataLog!$C403=\"Log value\",DataLog!Y403,\"\")","v":""},{"$f":"IF(DataLog!$C403=\"Log value\",DataLog!Z403,\"\")","v":""},{"$f":"IF(DataLog!$C403=\"Log value\",DataLog!AA403,\"\")","v":""},{"$f":"IF(DataLog!$C403=\"Log value\",DataLog!AB403,\"\")","v":""},{"$f":"IF(DataLog!$C403=\"Log value\",DataLog!AC403,\"\")","v":""},{"$f":"IF(DataLog!$C403=\"Log value\",DataLog!AD403,\"\")","v":""},{"$f":"IF(DataLog!$C403=\"Log value\",DataLog!AE403,\"\")","v":""},{"$f":"IF(DataLog!$C403=\"Log value\",DataLog!AF403,\"\")","v":""},{"$f":"IF(DataLog!$C403=\"Log value\",DataLog!AG403,\"\")","v":""},{"$f":"IF(DataLog!$C403=\"Log value\",DataLog!AH403,\"\")","v":""},{"$f":"IF(DataLog!$C403=\"Log value\",DataLog!AI403,\"\")","v":""},{"$f":"IF(DataLog!$C403=\"Log value\",DataLog!AJ403,\"\")","v":""},{"$f":"IF(DataLog!$C403=\"Log value\",DataLog!AK403,\"\")","v":""},{"$f":"IF(DataLog!$C403=\"Log value\",DataLog!AL403,\"\")","v":""},{"$f":"IF(DataLog!$C403=\"Log value\",DataLog!AM403,\"\")","v":""}]
[null,null,"Standard","Standard -  - ",null,null,{"$f":"IF(DataLog!$C404=\"Log value\",DataLog!D404&\"_\"&TEXT(DataLog!B404,\"åååå-mm-dd\"),\"\")","v":""},{"$f":"IF(DataLog!$C404=\"Log value\",DataLog!E404,\"\")","v":""},{"$f":"IF(DataLog!$C404=\"Log value\",DataLog!F404,\"\")","v":""},{"$f":"IF(DataLog!$C404=\"Log value\",DataLog!G404,\"\")","v":""},{"$f":"IF(DataLog!$C404=\"Log value\",DataLog!H404,\"\")","v":""},{"$f":"IF(DataLog!$C404=\"Log value\",DataLog!I404,\"\")","v":""},{"$f":"IF(DataLog!$C404=\"Log value\",DataLog!J404,\"\")","v":""},{"$f":"IF(DataLog!$C404=\"Log value\",DataLog!K404,\"\")","v":""},{"$f":"IF(DataLog!$C404=\"Log value\",DataLog!L404,\"\")","v":""},{"$f":"IF(DataLog!$C404=\"Log value\",DataLog!M404,\"\")","v":""},{"$f":"IF(DataLog!$C404=\"Log value\",DataLog!N404,\"\")","v":""},{"$f":"IF(DataLog!$C404=\"Log value\",DataLog!O404,\"\")","v":""},{"$f":"IF(DataLog!$C404=\"Log value\",DataLog!P404,\"\")","v":""},{"$f":"IF(DataLog!$C404=\"Log value\",DataLog!Q404,\"\")","v":""},{"$f":"IF(DataLog!$C404=\"Log value\",DataLog!R404,\"\")","v":""},{"$f":"IF(DataLog!$C404=\"Log value\",DataLog!S404,\"\")","v":""},{"$f":"IF(DataLog!$C404=\"Log value\",DataLog!T404,\"\")","v":""},{"$f":"IF(DataLog!$C404=\"Log value\",DataLog!U404,\"\")","v":""},{"$f":"IF(DataLog!$C404=\"Log value\",DataLog!V404,\"\")","v":""},{"$f":"IF(DataLog!$C404=\"Log value\",DataLog!W404,\"\")","v":""},{"$f":"IF(DataLog!$C404=\"Log value\",DataLog!X404,\"\")","v":""},{"$f":"IF(DataLog!$C404=\"Log value\",DataLog!Y404,\"\")","v":""},{"$f":"IF(DataLog!$C404=\"Log value\",DataLog!Z404,\"\")","v":""},{"$f":"IF(DataLog!$C404=\"Log value\",DataLog!AA404,\"\")","v":""},{"$f":"IF(DataLog!$C404=\"Log value\",DataLog!AB404,\"\")","v":""},{"$f":"IF(DataLog!$C404=\"Log value\",DataLog!AC404,\"\")","v":""},{"$f":"IF(DataLog!$C404=\"Log value\",DataLog!AD404,\"\")","v":""},{"$f":"IF(DataLog!$C404=\"Log value\",DataLog!AE404,\"\")","v":""},{"$f":"IF(DataLog!$C404=\"Log value\",DataLog!AF404,\"\")","v":""},{"$f":"IF(DataLog!$C404=\"Log value\",DataLog!AG404,\"\")","v":""},{"$f":"IF(DataLog!$C404=\"Log value\",DataLog!AH404,\"\")","v":""},{"$f":"IF(DataLog!$C404=\"Log value\",DataLog!AI404,\"\")","v":""},{"$f":"IF(DataLog!$C404=\"Log value\",DataLog!AJ404,\"\")","v":""},{"$f":"IF(DataLog!$C404=\"Log value\",DataLog!AK404,\"\")","v":""},{"$f":"IF(DataLog!$C404=\"Log value\",DataLog!AL404,\"\")","v":""},{"$f":"IF(DataLog!$C404=\"Log value\",DataLog!AM404,\"\")","v":""}]
[null,null,"Standard","Standard -  - ",null,null,{"$f":"IF(DataLog!$C405=\"Log value\",DataLog!D405&\"_\"&TEXT(DataLog!B405,\"åååå-mm-dd\"),\"\")","v":""},{"$f":"IF(DataLog!$C405=\"Log value\",DataLog!E405,\"\")","v":""},{"$f":"IF(DataLog!$C405=\"Log value\",DataLog!F405,\"\")","v":""},{"$f":"IF(DataLog!$C405=\"Log value\",DataLog!G405,\"\")","v":""},{"$f":"IF(DataLog!$C405=\"Log value\",DataLog!H405,\"\")","v":""},{"$f":"IF(DataLog!$C405=\"Log value\",DataLog!I405,\"\")","v":""},{"$f":"IF(DataLog!$C405=\"Log value\",DataLog!J405,\"\")","v":""},{"$f":"IF(DataLog!$C405=\"Log value\",DataLog!K405,\"\")","v":""},{"$f":"IF(DataLog!$C405=\"Log value\",DataLog!L405,\"\")","v":""},{"$f":"IF(DataLog!$C405=\"Log value\",DataLog!M405,\"\")","v":""},{"$f":"IF(DataLog!$C405=\"Log value\",DataLog!N405,\"\")","v":""},{"$f":"IF(DataLog!$C405=\"Log value\",DataLog!O405,\"\")","v":""},{"$f":"IF(DataLog!$C405=\"Log value\",DataLog!P405,\"\")","v":""},{"$f":"IF(DataLog!$C405=\"Log value\",DataLog!Q405,\"\")","v":""},{"$f":"IF(DataLog!$C405=\"Log value\",DataLog!R405,\"\")","v":""},{"$f":"IF(DataLog!$C405=\"Log value\",DataLog!S405,\"\")","v":""},{"$f":"IF(DataLog!$C405=\"Log value\",DataLog!T405,\"\")","v":""},{"$f":"IF(DataLog!$C405=\"Log value\",DataLog!U405,\"\")","v":""},{"$f":"IF(DataLog!$C405=\"Log value\",DataLog!V405,\"\")","v":""},{"$f":"IF(DataLog!$C405=\"Log value\",DataLog!W405,\"\")","v":""},{"$f":"IF(DataLog!$C405=\"Log value\",DataLog!X405,\"\")","v":""},{"$f":"IF(DataLog!$C405=\"Log value\",DataLog!Y405,\"\")","v":""},{"$f":"IF(DataLog!$C405=\"Log value\",DataLog!Z405,\"\")","v":""},{"$f":"IF(DataLog!$C405=\"Log value\",DataLog!AA405,\"\")","v":""},{"$f":"IF(DataLog!$C405=\"Log value\",DataLog!AB405,\"\")","v":""},{"$f":"IF(DataLog!$C405=\"Log value\",DataLog!AC405,\"\")","v":""},{"$f":"IF(DataLog!$C405=\"Log value\",DataLog!AD405,\"\")","v":""},{"$f":"IF(DataLog!$C405=\"Log value\",DataLog!AE405,\"\")","v":""},{"$f":"IF(DataLog!$C405=\"Log value\",DataLog!AF405,\"\")","v":""},{"$f":"IF(DataLog!$C405=\"Log value\",DataLog!AG405,\"\")","v":""},{"$f":"IF(DataLog!$C405=\"Log value\",DataLog!AH405,\"\")","v":""},{"$f":"IF(DataLog!$C405=\"Log value\",DataLog!AI405,\"\")","v":""},{"$f":"IF(DataLog!$C405=\"Log value\",DataLog!AJ405,\"\")","v":""},{"$f":"IF(DataLog!$C405=\"Log value\",DataLog!AK405,\"\")","v":""},{"$f":"IF(DataLog!$C405=\"Log value\",DataLog!AL405,\"\")","v":""},{"$f":"IF(DataLog!$C405=\"Log value\",DataLog!AM405,\"\")","v":""}]
[null,null,"Standard","Standard -  - ",null,null,{"$f":"IF(DataLog!$C406=\"Log value\",DataLog!D406&\"_\"&TEXT(DataLog!B406,\"åååå-mm-dd\"),\"\")","v":""},{"$f":"IF(DataLog!$C406=\"Log value\",DataLog!E406,\"\")","v":""},{"$f":"IF(DataLog!$C406=\"Log value\",DataLog!F406,\"\")","v":""},{"$f":"IF(DataLog!$C406=\"Log value\",DataLog!G406,\"\")","v":""},{"$f":"IF(DataLog!$C406=\"Log value\",DataLog!H406,\"\")","v":""},{"$f":"IF(DataLog!$C406=\"Log value\",DataLog!I406,\"\")","v":""},{"$f":"IF(DataLog!$C406=\"Log value\",DataLog!J406,\"\")","v":""},{"$f":"IF(DataLog!$C406=\"Log value\",DataLog!K406,\"\")","v":""},{"$f":"IF(DataLog!$C406=\"Log value\",DataLog!L406,\"\")","v":""},{"$f":"IF(DataLog!$C406=\"Log value\",DataLog!M406,\"\")","v":""},{"$f":"IF(DataLog!$C406=\"Log value\",DataLog!N406,\"\")","v":""},{"$f":"IF(DataLog!$C406=\"Log value\",DataLog!O406,\"\")","v":""},{"$f":"IF(DataLog!$C406=\"Log value\",DataLog!P406,\"\")","v":""},{"$f":"IF(DataLog!$C406=\"Log value\",DataLog!Q406,\"\")","v":""},{"$f":"IF(DataLog!$C406=\"Log value\",DataLog!R406,\"\")","v":""},{"$f":"IF(DataLog!$C406=\"Log value\",DataLog!S406,\"\")","v":""},{"$f":"IF(DataLog!$C406=\"Log value\",DataLog!T406,\"\")","v":""},{"$f":"IF(DataLog!$C406=\"Log value\",DataLog!U406,\"\")","v":""},{"$f":"IF(DataLog!$C406=\"Log value\",DataLog!V406,\"\")","v":""},{"$f":"IF(DataLog!$C406=\"Log value\",DataLog!W406,\"\")","v":""},{"$f":"IF(DataLog!$C406=\"Log value\",DataLog!X406,\"\")","v":""},{"$f":"IF(DataLog!$C406=\"Log value\",DataLog!Y406,\"\")","v":""},{"$f":"IF(DataLog!$C406=\"Log value\",DataLog!Z406,\"\")","v":""},{"$f":"IF(DataLog!$C406=\"Log value\",DataLog!AA406,\"\")","v":""},{"$f":"IF(DataLog!$C406=\"Log value\",DataLog!AB406,\"\")","v":""},{"$f":"IF(DataLog!$C406=\"Log value\",DataLog!AC406,\"\")","v":""},{"$f":"IF(DataLog!$C406=\"Log value\",DataLog!AD406,\"\")","v":""},{"$f":"IF(DataLog!$C406=\"Log value\",DataLog!AE406,\"\")","v":""},{"$f":"IF(DataLog!$C406=\"Log value\",DataLog!AF406,\"\")","v":""},{"$f":"IF(DataLog!$C406=\"Log value\",DataLog!AG406,\"\")","v":""},{"$f":"IF(DataLog!$C406=\"Log value\",DataLog!AH406,\"\")","v":""},{"$f":"IF(DataLog!$C406=\"Log value\",DataLog!AI406,\"\")","v":""},{"$f":"IF(DataLog!$C406=\"Log value\",DataLog!AJ406,\"\")","v":""},{"$f":"IF(DataLog!$C406=\"Log value\",DataLog!AK406,\"\")","v":""},{"$f":"IF(DataLog!$C406=\"Log value\",DataLog!AL406,\"\")","v":""},{"$f":"IF(DataLog!$C406=\"Log value\",DataLog!AM406,\"\")","v":""}]
[null,null,"Standard","Standard -  - ",null,null,{"$f":"IF(DataLog!$C407=\"Log value\",DataLog!D407&\"_\"&TEXT(DataLog!B407,\"åååå-mm-dd\"),\"\")","v":""},{"$f":"IF(DataLog!$C407=\"Log value\",DataLog!E407,\"\")","v":""},{"$f":"IF(DataLog!$C407=\"Log value\",DataLog!F407,\"\")","v":""},{"$f":"IF(DataLog!$C407=\"Log value\",DataLog!G407,\"\")","v":""},{"$f":"IF(DataLog!$C407=\"Log value\",DataLog!H407,\"\")","v":""},{"$f":"IF(DataLog!$C407=\"Log value\",DataLog!I407,\"\")","v":""},{"$f":"IF(DataLog!$C407=\"Log value\",DataLog!J407,\"\")","v":""},{"$f":"IF(DataLog!$C407=\"Log value\",DataLog!K407,\"\")","v":""},{"$f":"IF(DataLog!$C407=\"Log value\",DataLog!L407,\"\")","v":""},{"$f":"IF(DataLog!$C407=\"Log value\",DataLog!M407,\"\")","v":""},{"$f":"IF(DataLog!$C407=\"Log value\",DataLog!N407,\"\")","v":""},{"$f":"IF(DataLog!$C407=\"Log value\",DataLog!O407,\"\")","v":""},{"$f":"IF(DataLog!$C407=\"Log value\",DataLog!P407,\"\")","v":""},{"$f":"IF(DataLog!$C407=\"Log value\",DataLog!Q407,\"\")","v":""},{"$f":"IF(DataLog!$C407=\"Log value\",DataLog!R407,\"\")","v":""},{"$f":"IF(DataLog!$C407=\"Log value\",DataLog!S407,\"\")","v":""},{"$f":"IF(DataLog!$C407=\"Log value\",DataLog!T407,\"\")","v":""},{"$f":"IF(DataLog!$C407=\"Log value\",DataLog!U407,\"\")","v":""},{"$f":"IF(DataLog!$C407=\"Log value\",DataLog!V407,\"\")","v":""},{"$f":"IF(DataLog!$C407=\"Log value\",DataLog!W407,\"\")","v":""},{"$f":"IF(DataLog!$C407=\"Log value\",DataLog!X407,\"\")","v":""},{"$f":"IF(DataLog!$C407=\"Log value\",DataLog!Y407,\"\")","v":""},{"$f":"IF(DataLog!$C407=\"Log value\",DataLog!Z407,\"\")","v":""},{"$f":"IF(DataLog!$C407=\"Log value\",DataLog!AA407,\"\")","v":""},{"$f":"IF(DataLog!$C407=\"Log value\",DataLog!AB407,\"\")","v":""},{"$f":"IF(DataLog!$C407=\"Log value\",DataLog!AC407,\"\")","v":""},{"$f":"IF(DataLog!$C407=\"Log value\",DataLog!AD407,\"\")","v":""},{"$f":"IF(DataLog!$C407=\"Log value\",DataLog!AE407,\"\")","v":""},{"$f":"IF(DataLog!$C407=\"Log value\",DataLog!AF407,\"\")","v":""},{"$f":"IF(DataLog!$C407=\"Log value\",DataLog!AG407,\"\")","v":""},{"$f":"IF(DataLog!$C407=\"Log value\",DataLog!AH407,\"\")","v":""},{"$f":"IF(DataLog!$C407=\"Log value\",DataLog!AI407,\"\")","v":""},{"$f":"IF(DataLog!$C407=\"Log value\",DataLog!AJ407,\"\")","v":""},{"$f":"IF(DataLog!$C407=\"Log value\",DataLog!AK407,\"\")","v":""},{"$f":"IF(DataLog!$C407=\"Log value\",DataLog!AL407,\"\")","v":""},{"$f":"IF(DataLog!$C407=\"Log value\",DataLog!AM407,\"\")","v":""}]
[null,null,"Standard","Standard -  - ",null,null,{"$f":"IF(DataLog!$C408=\"Log value\",DataLog!D408&\"_\"&TEXT(DataLog!B408,\"åååå-mm-dd\"),\"\")","v":""},{"$f":"IF(DataLog!$C408=\"Log value\",DataLog!E408,\"\")","v":""},{"$f":"IF(DataLog!$C408=\"Log value\",DataLog!F408,\"\")","v":""},{"$f":"IF(DataLog!$C408=\"Log value\",DataLog!G408,\"\")","v":""},{"$f":"IF(DataLog!$C408=\"Log value\",DataLog!H408,\"\")","v":""},{"$f":"IF(DataLog!$C408=\"Log value\",DataLog!I408,\"\")","v":""},{"$f":"IF(DataLog!$C408=\"Log value\",DataLog!J408,\"\")","v":""},{"$f":"IF(DataLog!$C408=\"Log value\",DataLog!K408,\"\")","v":""},{"$f":"IF(DataLog!$C408=\"Log value\",DataLog!L408,\"\")","v":""},{"$f":"IF(DataLog!$C408=\"Log value\",DataLog!M408,\"\")","v":""},{"$f":"IF(DataLog!$C408=\"Log value\",DataLog!N408,\"\")","v":""},{"$f":"IF(DataLog!$C408=\"Log value\",DataLog!O408,\"\")","v":""},{"$f":"IF(DataLog!$C408=\"Log value\",DataLog!P408,\"\")","v":""},{"$f":"IF(DataLog!$C408=\"Log value\",DataLog!Q408,\"\")","v":""},{"$f":"IF(DataLog!$C408=\"Log value\",DataLog!R408,\"\")","v":""},{"$f":"IF(DataLog!$C408=\"Log value\",DataLog!S408,\"\")","v":""},{"$f":"IF(DataLog!$C408=\"Log value\",DataLog!T408,\"\")","v":""},{"$f":"IF(DataLog!$C408=\"Log value\",DataLog!U408,\"\")","v":""},{"$f":"IF(DataLog!$C408=\"Log value\",DataLog!V408,\"\")","v":""},{"$f":"IF(DataLog!$C408=\"Log value\",DataLog!W408,\"\")","v":""},{"$f":"IF(DataLog!$C408=\"Log value\",DataLog!X408,\"\")","v":""},{"$f":"IF(DataLog!$C408=\"Log value\",DataLog!Y408,\"\")","v":""},{"$f":"IF(DataLog!$C408=\"Log value\",DataLog!Z408,\"\")","v":""},{"$f":"IF(DataLog!$C408=\"Log value\",DataLog!AA408,\"\")","v":""},{"$f":"IF(DataLog!$C408=\"Log value\",DataLog!AB408,\"\")","v":""},{"$f":"IF(DataLog!$C408=\"Log value\",DataLog!AC408,\"\")","v":""},{"$f":"IF(DataLog!$C408=\"Log value\",DataLog!AD408,\"\")","v":""},{"$f":"IF(DataLog!$C408=\"Log value\",DataLog!AE408,\"\")","v":""},{"$f":"IF(DataLog!$C408=\"Log value\",DataLog!AF408,\"\")","v":""},{"$f":"IF(DataLog!$C408=\"Log value\",DataLog!AG408,\"\")","v":""},{"$f":"IF(DataLog!$C408=\"Log value\",DataLog!AH408,\"\")","v":""},{"$f":"IF(DataLog!$C408=\"Log value\",DataLog!AI408,\"\")","v":""},{"$f":"IF(DataLog!$C408=\"Log value\",DataLog!AJ408,\"\")","v":""},{"$f":"IF(DataLog!$C408=\"Log value\",DataLog!AK408,\"\")","v":""},{"$f":"IF(DataLog!$C408=\"Log value\",DataLog!AL408,\"\")","v":""},{"$f":"IF(DataLog!$C408=\"Log value\",DataLog!AM408,\"\")","v":""}]
[null,null,"Standard","Standard -  - ",null,null,{"$f":"IF(DataLog!$C409=\"Log value\",DataLog!D409&\"_\"&TEXT(DataLog!B409,\"åååå-mm-dd\"),\"\")","v":""},{"$f":"IF(DataLog!$C409=\"Log value\",DataLog!E409,\"\")","v":""},{"$f":"IF(DataLog!$C409=\"Log value\",DataLog!F409,\"\")","v":""},{"$f":"IF(DataLog!$C409=\"Log value\",DataLog!G409,\"\")","v":""},{"$f":"IF(DataLog!$C409=\"Log value\",DataLog!H409,\"\")","v":""},{"$f":"IF(DataLog!$C409=\"Log value\",DataLog!I409,\"\")","v":""},{"$f":"IF(DataLog!$C409=\"Log value\",DataLog!J409,\"\")","v":""},{"$f":"IF(DataLog!$C409=\"Log value\",DataLog!K409,\"\")","v":""},{"$f":"IF(DataLog!$C409=\"Log value\",DataLog!L409,\"\")","v":""},{"$f":"IF(DataLog!$C409=\"Log value\",DataLog!M409,\"\")","v":""},{"$f":"IF(DataLog!$C409=\"Log value\",DataLog!N409,\"\")","v":""},{"$f":"IF(DataLog!$C409=\"Log value\",DataLog!O409,\"\")","v":""},{"$f":"IF(DataLog!$C409=\"Log value\",DataLog!P409,\"\")","v":""},{"$f":"IF(DataLog!$C409=\"Log value\",DataLog!Q409,\"\")","v":""},{"$f":"IF(DataLog!$C409=\"Log value\",DataLog!R409,\"\")","v":""},{"$f":"IF(DataLog!$C409=\"Log value\",DataLog!S409,\"\")","v":""},{"$f":"IF(DataLog!$C409=\"Log value\",DataLog!T409,\"\")","v":""},{"$f":"IF(DataLog!$C409=\"Log value\",DataLog!U409,\"\")","v":""},{"$f":"IF(DataLog!$C409=\"Log value\",DataLog!V409,\"\")","v":""},{"$f":"IF(DataLog!$C409=\"Log value\",DataLog!W409,\"\")","v":""},{"$f":"IF(DataLog!$C409=\"Log value\",DataLog!X409,\"\")","v":""},{"$f":"IF(DataLog!$C409=\"Log value\",DataLog!Y409,\"\")","v":""},{"$f":"IF(DataLog!$C409=\"Log value\",DataLog!Z409,\"\")","v":""},{"$f":"IF(DataLog!$C409=\"Log value\",DataLog!AA409,\"\")","v":""},{"$f":"IF(DataLog!$C409=\"Log value\",DataLog!AB409,\"\")","v":""},{"$f":"IF(DataLog!$C409=\"Log value\",DataLog!AC409,\"\")","v":""},{"$f":"IF(DataLog!$C409=\"Log value\",DataLog!AD409,\"\")","v":""},{"$f":"IF(DataLog!$C409=\"Log value\",DataLog!AE409,\"\")","v":""},{"$f":"IF(DataLog!$C409=\"Log value\",DataLog!AF409,\"\")","v":""},{"$f":"IF(DataLog!$C409=\"Log value\",DataLog!AG409,\"\")","v":""},{"$f":"IF(DataLog!$C409=\"Log value\",DataLog!AH409,\"\")","v":""},{"$f":"IF(DataLog!$C409=\"Log value\",DataLog!AI409,\"\")","v":""},{"$f":"IF(DataLog!$C409=\"Log value\",DataLog!AJ409,\"\")","v":""},{"$f":"IF(DataLog!$C409=\"Log value\",DataLog!AK409,\"\")","v":""},{"$f":"IF(DataLog!$C409=\"Log value\",DataLog!AL409,\"\")","v":""},{"$f":"IF(DataLog!$C409=\"Log value\",DataLog!AM409,\"\")","v":""}]
[null,null,"Standard","Standard -  - ",null,null,{"$f":"IF(DataLog!$C410=\"Log value\",DataLog!D410&\"_\"&TEXT(DataLog!B410,\"åååå-mm-dd\"),\"\")","v":""},{"$f":"IF(DataLog!$C410=\"Log value\",DataLog!E410,\"\")","v":""},{"$f":"IF(DataLog!$C410=\"Log value\",DataLog!F410,\"\")","v":""},{"$f":"IF(DataLog!$C410=\"Log value\",DataLog!G410,\"\")","v":""},{"$f":"IF(DataLog!$C410=\"Log value\",DataLog!H410,\"\")","v":""},{"$f":"IF(DataLog!$C410=\"Log value\",DataLog!I410,\"\")","v":""},{"$f":"IF(DataLog!$C410=\"Log value\",DataLog!J410,\"\")","v":""},{"$f":"IF(DataLog!$C410=\"Log value\",DataLog!K410,\"\")","v":""},{"$f":"IF(DataLog!$C410=\"Log value\",DataLog!L410,\"\")","v":""},{"$f":"IF(DataLog!$C410=\"Log value\",DataLog!M410,\"\")","v":""},{"$f":"IF(DataLog!$C410=\"Log value\",DataLog!N410,\"\")","v":""},{"$f":"IF(DataLog!$C410=\"Log value\",DataLog!O410,\"\")","v":""},{"$f":"IF(DataLog!$C410=\"Log value\",DataLog!P410,\"\")","v":""},{"$f":"IF(DataLog!$C410=\"Log value\",DataLog!Q410,\"\")","v":""},{"$f":"IF(DataLog!$C410=\"Log value\",DataLog!R410,\"\")","v":""},{"$f":"IF(DataLog!$C410=\"Log value\",DataLog!S410,\"\")","v":""},{"$f":"IF(DataLog!$C410=\"Log value\",DataLog!T410,\"\")","v":""},{"$f":"IF(DataLog!$C410=\"Log value\",DataLog!U410,\"\")","v":""},{"$f":"IF(DataLog!$C410=\"Log value\",DataLog!V410,\"\")","v":""},{"$f":"IF(DataLog!$C410=\"Log value\",DataLog!W410,\"\")","v":""},{"$f":"IF(DataLog!$C410=\"Log value\",DataLog!X410,\"\")","v":""},{"$f":"IF(DataLog!$C410=\"Log value\",DataLog!Y410,\"\")","v":""},{"$f":"IF(DataLog!$C410=\"Log value\",DataLog!Z410,\"\")","v":""},{"$f":"IF(DataLog!$C410=\"Log value\",DataLog!AA410,\"\")","v":""},{"$f":"IF(DataLog!$C410=\"Log value\",DataLog!AB410,\"\")","v":""},{"$f":"IF(DataLog!$C410=\"Log value\",DataLog!AC410,\"\")","v":""},{"$f":"IF(DataLog!$C410=\"Log value\",DataLog!AD410,\"\")","v":""},{"$f":"IF(DataLog!$C410=\"Log value\",DataLog!AE410,\"\")","v":""},{"$f":"IF(DataLog!$C410=\"Log value\",DataLog!AF410,\"\")","v":""},{"$f":"IF(DataLog!$C410=\"Log value\",DataLog!AG410,\"\")","v":""},{"$f":"IF(DataLog!$C410=\"Log value\",DataLog!AH410,\"\")","v":""},{"$f":"IF(DataLog!$C410=\"Log value\",DataLog!AI410,\"\")","v":""},{"$f":"IF(DataLog!$C410=\"Log value\",DataLog!AJ410,\"\")","v":""},{"$f":"IF(DataLog!$C410=\"Log value\",DataLog!AK410,\"\")","v":""},{"$f":"IF(DataLog!$C410=\"Log value\",DataLog!AL410,\"\")","v":""},{"$f":"IF(DataLog!$C410=\"Log value\",DataLog!AM410,\"\")","v":""}]
[null,null,"Standard","Standard -  - ",null,null,{"$f":"IF(DataLog!$C411=\"Log value\",DataLog!D411&\"_\"&TEXT(DataLog!B411,\"åååå-mm-dd\"),\"\")","v":""},{"$f":"IF(DataLog!$C411=\"Log value\",DataLog!E411,\"\")","v":""},{"$f":"IF(DataLog!$C411=\"Log value\",DataLog!F411,\"\")","v":""},{"$f":"IF(DataLog!$C411=\"Log value\",DataLog!G411,\"\")","v":""},{"$f":"IF(DataLog!$C411=\"Log value\",DataLog!H411,\"\")","v":""},{"$f":"IF(DataLog!$C411=\"Log value\",DataLog!I411,\"\")","v":""},{"$f":"IF(DataLog!$C411=\"Log value\",DataLog!J411,\"\")","v":""},{"$f":"IF(DataLog!$C411=\"Log value\",DataLog!K411,\"\")","v":""},{"$f":"IF(DataLog!$C411=\"Log value\",DataLog!L411,\"\")","v":""},{"$f":"IF(DataLog!$C411=\"Log value\",DataLog!M411,\"\")","v":""},{"$f":"IF(DataLog!$C411=\"Log value\",DataLog!N411,\"\")","v":""},{"$f":"IF(DataLog!$C411=\"Log value\",DataLog!O411,\"\")","v":""},{"$f":"IF(DataLog!$C411=\"Log value\",DataLog!P411,\"\")","v":""},{"$f":"IF(DataLog!$C411=\"Log value\",DataLog!Q411,\"\")","v":""},{"$f":"IF(DataLog!$C411=\"Log value\",DataLog!R411,\"\")","v":""},{"$f":"IF(DataLog!$C411=\"Log value\",DataLog!S411,\"\")","v":""},{"$f":"IF(DataLog!$C411=\"Log value\",DataLog!T411,\"\")","v":""},{"$f":"IF(DataLog!$C411=\"Log value\",DataLog!U411,\"\")","v":""},{"$f":"IF(DataLog!$C411=\"Log value\",DataLog!V411,\"\")","v":""},{"$f":"IF(DataLog!$C411=\"Log value\",DataLog!W411,\"\")","v":""},{"$f":"IF(DataLog!$C411=\"Log value\",DataLog!X411,\"\")","v":""},{"$f":"IF(DataLog!$C411=\"Log value\",DataLog!Y411,\"\")","v":""},{"$f":"IF(DataLog!$C411=\"Log value\",DataLog!Z411,\"\")","v":""},{"$f":"IF(DataLog!$C411=\"Log value\",DataLog!AA411,\"\")","v":""},{"$f":"IF(DataLog!$C411=\"Log value\",DataLog!AB411,\"\")","v":""},{"$f":"IF(DataLog!$C411=\"Log value\",DataLog!AC411,\"\")","v":""},{"$f":"IF(DataLog!$C411=\"Log value\",DataLog!AD411,\"\")","v":""},{"$f":"IF(DataLog!$C411=\"Log value\",DataLog!AE411,\"\")","v":""},{"$f":"IF(DataLog!$C411=\"Log value\",DataLog!AF411,\"\")","v":""},{"$f":"IF(DataLog!$C411=\"Log value\",DataLog!AG411,\"\")","v":""},{"$f":"IF(DataLog!$C411=\"Log value\",DataLog!AH411,\"\")","v":""},{"$f":"IF(DataLog!$C411=\"Log value\",DataLog!AI411,\"\")","v":""},{"$f":"IF(DataLog!$C411=\"Log value\",DataLog!AJ411,\"\")","v":""},{"$f":"IF(DataLog!$C411=\"Log value\",DataLog!AK411,\"\")","v":""},{"$f":"IF(DataLog!$C411=\"Log value\",DataLog!AL411,\"\")","v":""},{"$f":"IF(DataLog!$C411=\"Log value\",DataLog!AM411,\"\")","v":""}]
[null,null,"Standard","Standard -  - ",null,null,{"$f":"IF(DataLog!$C412=\"Log value\",DataLog!D412&\"_\"&TEXT(DataLog!B412,\"åååå-mm-dd\"),\"\")","v":""},{"$f":"IF(DataLog!$C412=\"Log value\",DataLog!E412,\"\")","v":""},{"$f":"IF(DataLog!$C412=\"Log value\",DataLog!F412,\"\")","v":""},{"$f":"IF(DataLog!$C412=\"Log value\",DataLog!G412,\"\")","v":""},{"$f":"IF(DataLog!$C412=\"Log value\",DataLog!H412,\"\")","v":""},{"$f":"IF(DataLog!$C412=\"Log value\",DataLog!I412,\"\")","v":""},{"$f":"IF(DataLog!$C412=\"Log value\",DataLog!J412,\"\")","v":""},{"$f":"IF(DataLog!$C412=\"Log value\",DataLog!K412,\"\")","v":""},{"$f":"IF(DataLog!$C412=\"Log value\",DataLog!L412,\"\")","v":""},{"$f":"IF(DataLog!$C412=\"Log value\",DataLog!M412,\"\")","v":""},{"$f":"IF(DataLog!$C412=\"Log value\",DataLog!N412,\"\")","v":""},{"$f":"IF(DataLog!$C412=\"Log value\",DataLog!O412,\"\")","v":""},{"$f":"IF(DataLog!$C412=\"Log value\",DataLog!P412,\"\")","v":""},{"$f":"IF(DataLog!$C412=\"Log value\",DataLog!Q412,\"\")","v":""},{"$f":"IF(DataLog!$C412=\"Log value\",DataLog!R412,\"\")","v":""},{"$f":"IF(DataLog!$C412=\"Log value\",DataLog!S412,\"\")","v":""},{"$f":"IF(DataLog!$C412=\"Log value\",DataLog!T412,\"\")","v":""},{"$f":"IF(DataLog!$C412=\"Log value\",DataLog!U412,\"\")","v":""},{"$f":"IF(DataLog!$C412=\"Log value\",DataLog!V412,\"\")","v":""},{"$f":"IF(DataLog!$C412=\"Log value\",DataLog!W412,\"\")","v":""},{"$f":"IF(DataLog!$C412=\"Log value\",DataLog!X412,\"\")","v":""},{"$f":"IF(DataLog!$C412=\"Log value\",DataLog!Y412,\"\")","v":""},{"$f":"IF(DataLog!$C412=\"Log value\",DataLog!Z412,\"\")","v":""},{"$f":"IF(DataLog!$C412=\"Log value\",DataLog!AA412,\"\")","v":""},{"$f":"IF(DataLog!$C412=\"Log value\",DataLog!AB412,\"\")","v":""},{"$f":"IF(DataLog!$C412=\"Log value\",DataLog!AC412,\"\")","v":""},{"$f":"IF(DataLog!$C412=\"Log value\",DataLog!AD412,\"\")","v":""},{"$f":"IF(DataLog!$C412=\"Log value\",DataLog!AE412,\"\")","v":""},{"$f":"IF(DataLog!$C412=\"Log value\",DataLog!AF412,\"\")","v":""},{"$f":"IF(DataLog!$C412=\"Log value\",DataLog!AG412,\"\")","v":""},{"$f":"IF(DataLog!$C412=\"Log value\",DataLog!AH412,\"\")","v":""},{"$f":"IF(DataLog!$C412=\"Log value\",DataLog!AI412,\"\")","v":""},{"$f":"IF(DataLog!$C412=\"Log value\",DataLog!AJ412,\"\")","v":""},{"$f":"IF(DataLog!$C412=\"Log value\",DataLog!AK412,\"\")","v":""},{"$f":"IF(DataLog!$C412=\"Log value\",DataLog!AL412,\"\")","v":""},{"$f":"IF(DataLog!$C412=\"Log value\",DataLog!AM412,\"\")","v":""}]
[null,null,"Standard","Standard -  - ",null,null,{"$f":"IF(DataLog!$C413=\"Log value\",DataLog!D413&\"_\"&TEXT(DataLog!B413,\"åååå-mm-dd\"),\"\")","v":""},{"$f":"IF(DataLog!$C413=\"Log value\",DataLog!E413,\"\")","v":""},{"$f":"IF(DataLog!$C413=\"Log value\",DataLog!F413,\"\")","v":""},{"$f":"IF(DataLog!$C413=\"Log value\",DataLog!G413,\"\")","v":""},{"$f":"IF(DataLog!$C413=\"Log value\",DataLog!H413,\"\")","v":""},{"$f":"IF(DataLog!$C413=\"Log value\",DataLog!I413,\"\")","v":""},{"$f":"IF(DataLog!$C413=\"Log value\",DataLog!J413,\"\")","v":""},{"$f":"IF(DataLog!$C413=\"Log value\",DataLog!K413,\"\")","v":""},{"$f":"IF(DataLog!$C413=\"Log value\",DataLog!L413,\"\")","v":""},{"$f":"IF(DataLog!$C413=\"Log value\",DataLog!M413,\"\")","v":""},{"$f":"IF(DataLog!$C413=\"Log value\",DataLog!N413,\"\")","v":""},{"$f":"IF(DataLog!$C413=\"Log value\",DataLog!O413,\"\")","v":""},{"$f":"IF(DataLog!$C413=\"Log value\",DataLog!P413,\"\")","v":""},{"$f":"IF(DataLog!$C413=\"Log value\",DataLog!Q413,\"\")","v":""},{"$f":"IF(DataLog!$C413=\"Log value\",DataLog!R413,\"\")","v":""},{"$f":"IF(DataLog!$C413=\"Log value\",DataLog!S413,\"\")","v":""},{"$f":"IF(DataLog!$C413=\"Log value\",DataLog!T413,\"\")","v":""},{"$f":"IF(DataLog!$C413=\"Log value\",DataLog!U413,\"\")","v":""},{"$f":"IF(DataLog!$C413=\"Log value\",DataLog!V413,\"\")","v":""},{"$f":"IF(DataLog!$C413=\"Log value\",DataLog!W413,\"\")","v":""},{"$f":"IF(DataLog!$C413=\"Log value\",DataLog!X413,\"\")","v":""},{"$f":"IF(DataLog!$C413=\"Log value\",DataLog!Y413,\"\")","v":""},{"$f":"IF(DataLog!$C413=\"Log value\",DataLog!Z413,\"\")","v":""},{"$f":"IF(DataLog!$C413=\"Log value\",DataLog!AA413,\"\")","v":""},{"$f":"IF(DataLog!$C413=\"Log value\",DataLog!AB413,\"\")","v":""},{"$f":"IF(DataLog!$C413=\"Log value\",DataLog!AC413,\"\")","v":""},{"$f":"IF(DataLog!$C413=\"Log value\",DataLog!AD413,\"\")","v":""},{"$f":"IF(DataLog!$C413=\"Log value\",DataLog!AE413,\"\")","v":""},{"$f":"IF(DataLog!$C413=\"Log value\",DataLog!AF413,\"\")","v":""},{"$f":"IF(DataLog!$C413=\"Log value\",DataLog!AG413,\"\")","v":""},{"$f":"IF(DataLog!$C413=\"Log value\",DataLog!AH413,\"\")","v":""},{"$f":"IF(DataLog!$C413=\"Log value\",DataLog!AI413,\"\")","v":""},{"$f":"IF(DataLog!$C413=\"Log value\",DataLog!AJ413,\"\")","v":""},{"$f":"IF(DataLog!$C413=\"Log value\",DataLog!AK413,\"\")","v":""},{"$f":"IF(DataLog!$C413=\"Log value\",DataLog!AL413,\"\")","v":""},{"$f":"IF(DataLog!$C413=\"Log value\",DataLog!AM413,\"\")","v":""}]
[null,null,"Standard","Standard -  - ",null,null,{"$f":"IF(DataLog!$C414=\"Log value\",DataLog!D414&\"_\"&TEXT(DataLog!B414,\"åååå-mm-dd\"),\"\")","v":""},{"$f":"IF(DataLog!$C414=\"Log value\",DataLog!E414,\"\")","v":""},{"$f":"IF(DataLog!$C414=\"Log value\",DataLog!F414,\"\")","v":""},{"$f":"IF(DataLog!$C414=\"Log value\",DataLog!G414,\"\")","v":""},{"$f":"IF(DataLog!$C414=\"Log value\",DataLog!H414,\"\")","v":""},{"$f":"IF(DataLog!$C414=\"Log value\",DataLog!I414,\"\")","v":""},{"$f":"IF(DataLog!$C414=\"Log value\",DataLog!J414,\"\")","v":""},{"$f":"IF(DataLog!$C414=\"Log value\",DataLog!K414,\"\")","v":""},{"$f":"IF(DataLog!$C414=\"Log value\",DataLog!L414,\"\")","v":""},{"$f":"IF(DataLog!$C414=\"Log value\",DataLog!M414,\"\")","v":""},{"$f":"IF(DataLog!$C414=\"Log value\",DataLog!N414,\"\")","v":""},{"$f":"IF(DataLog!$C414=\"Log value\",DataLog!O414,\"\")","v":""},{"$f":"IF(DataLog!$C414=\"Log value\",DataLog!P414,\"\")","v":""},{"$f":"IF(DataLog!$C414=\"Log value\",DataLog!Q414,\"\")","v":""},{"$f":"IF(DataLog!$C414=\"Log value\",DataLog!R414,\"\")","v":""},{"$f":"IF(DataLog!$C414=\"Log value\",DataLog!S414,\"\")","v":""},{"$f":"IF(DataLog!$C414=\"Log value\",DataLog!T414,\"\")","v":""},{"$f":"IF(DataLog!$C414=\"Log value\",DataLog!U414,\"\")","v":""},{"$f":"IF(DataLog!$C414=\"Log value\",DataLog!V414,\"\")","v":""},{"$f":"IF(DataLog!$C414=\"Log value\",DataLog!W414,\"\")","v":""},{"$f":"IF(DataLog!$C414=\"Log value\",DataLog!X414,\"\")","v":""},{"$f":"IF(DataLog!$C414=\"Log value\",DataLog!Y414,\"\")","v":""},{"$f":"IF(DataLog!$C414=\"Log value\",DataLog!Z414,\"\")","v":""},{"$f":"IF(DataLog!$C414=\"Log value\",DataLog!AA414,\"\")","v":""},{"$f":"IF(DataLog!$C414=\"Log value\",DataLog!AB414,\"\")","v":""},{"$f":"IF(DataLog!$C414=\"Log value\",DataLog!AC414,\"\")","v":""},{"$f":"IF(DataLog!$C414=\"Log value\",DataLog!AD414,\"\")","v":""},{"$f":"IF(DataLog!$C414=\"Log value\",DataLog!AE414,\"\")","v":""},{"$f":"IF(DataLog!$C414=\"Log value\",DataLog!AF414,\"\")","v":""},{"$f":"IF(DataLog!$C414=\"Log value\",DataLog!AG414,\"\")","v":""},{"$f":"IF(DataLog!$C414=\"Log value\",DataLog!AH414,\"\")","v":""},{"$f":"IF(DataLog!$C414=\"Log value\",DataLog!AI414,\"\")","v":""},{"$f":"IF(DataLog!$C414=\"Log value\",DataLog!AJ414,\"\")","v":""},{"$f":"IF(DataLog!$C414=\"Log value\",DataLog!AK414,\"\")","v":""},{"$f":"IF(DataLog!$C414=\"Log value\",DataLog!AL414,\"\")","v":""},{"$f":"IF(DataLog!$C414=\"Log value\",DataLog!AM414,\"\")","v":""}]
[null,null,"Standard","Standard -  - ",null,null,{"$f":"IF(DataLog!$C415=\"Log value\",DataLog!D415&\"_\"&TEXT(DataLog!B415,\"åååå-mm-dd\"),\"\")","v":""},{"$f":"IF(DataLog!$C415=\"Log value\",DataLog!E415,\"\")","v":""},{"$f":"IF(DataLog!$C415=\"Log value\",DataLog!F415,\"\")","v":""},{"$f":"IF(DataLog!$C415=\"Log value\",DataLog!G415,\"\")","v":""},{"$f":"IF(DataLog!$C415=\"Log value\",DataLog!H415,\"\")","v":""},{"$f":"IF(DataLog!$C415=\"Log value\",DataLog!I415,\"\")","v":""},{"$f":"IF(DataLog!$C415=\"Log value\",DataLog!J415,\"\")","v":""},{"$f":"IF(DataLog!$C415=\"Log value\",DataLog!K415,\"\")","v":""},{"$f":"IF(DataLog!$C415=\"Log value\",DataLog!L415,\"\")","v":""},{"$f":"IF(DataLog!$C415=\"Log value\",DataLog!M415,\"\")","v":""},{"$f":"IF(DataLog!$C415=\"Log value\",DataLog!N415,\"\")","v":""},{"$f":"IF(DataLog!$C415=\"Log value\",DataLog!O415,\"\")","v":""},{"$f":"IF(DataLog!$C415=\"Log value\",DataLog!P415,\"\")","v":""},{"$f":"IF(DataLog!$C415=\"Log value\",DataLog!Q415,\"\")","v":""},{"$f":"IF(DataLog!$C415=\"Log value\",DataLog!R415,\"\")","v":""},{"$f":"IF(DataLog!$C415=\"Log value\",DataLog!S415,\"\")","v":""},{"$f":"IF(DataLog!$C415=\"Log value\",DataLog!T415,\"\")","v":""},{"$f":"IF(DataLog!$C415=\"Log value\",DataLog!U415,\"\")","v":""},{"$f":"IF(DataLog!$C415=\"Log value\",DataLog!V415,\"\")","v":""},{"$f":"IF(DataLog!$C415=\"Log value\",DataLog!W415,\"\")","v":""},{"$f":"IF(DataLog!$C415=\"Log value\",DataLog!X415,\"\")","v":""},{"$f":"IF(DataLog!$C415=\"Log value\",DataLog!Y415,\"\")","v":""},{"$f":"IF(DataLog!$C415=\"Log value\",DataLog!Z415,\"\")","v":""},{"$f":"IF(DataLog!$C415=\"Log value\",DataLog!AA415,\"\")","v":""},{"$f":"IF(DataLog!$C415=\"Log value\",DataLog!AB415,\"\")","v":""},{"$f":"IF(DataLog!$C415=\"Log value\",DataLog!AC415,\"\")","v":""},{"$f":"IF(DataLog!$C415=\"Log value\",DataLog!AD415,\"\")","v":""},{"$f":"IF(DataLog!$C415=\"Log value\",DataLog!AE415,\"\")","v":""},{"$f":"IF(DataLog!$C415=\"Log value\",DataLog!AF415,\"\")","v":""},{"$f":"IF(DataLog!$C415=\"Log value\",DataLog!AG415,\"\")","v":""},{"$f":"IF(DataLog!$C415=\"Log value\",DataLog!AH415,\"\")","v":""},{"$f":"IF(DataLog!$C415=\"Log value\",DataLog!AI415,\"\")","v":""},{"$f":"IF(DataLog!$C415=\"Log value\",DataLog!AJ415,\"\")","v":""},{"$f":"IF(DataLog!$C415=\"Log value\",DataLog!AK415,\"\")","v":""},{"$f":"IF(DataLog!$C415=\"Log value\",DataLog!AL415,\"\")","v":""},{"$f":"IF(DataLog!$C415=\"Log value\",DataLog!AM415,\"\")","v":""}]
[null,null,"Standard","Standard -  - ",null,null,{"$f":"IF(DataLog!$C416=\"Log value\",DataLog!D416&\"_\"&TEXT(DataLog!B416,\"åååå-mm-dd\"),\"\")","v":""},{"$f":"IF(DataLog!$C416=\"Log value\",DataLog!E416,\"\")","v":""},{"$f":"IF(DataLog!$C416=\"Log value\",DataLog!F416,\"\")","v":""},{"$f":"IF(DataLog!$C416=\"Log value\",DataLog!G416,\"\")","v":""},{"$f":"IF(DataLog!$C416=\"Log value\",DataLog!H416,\"\")","v":""},{"$f":"IF(DataLog!$C416=\"Log value\",DataLog!I416,\"\")","v":""},{"$f":"IF(DataLog!$C416=\"Log value\",DataLog!J416,\"\")","v":""},{"$f":"IF(DataLog!$C416=\"Log value\",DataLog!K416,\"\")","v":""},{"$f":"IF(DataLog!$C416=\"Log value\",DataLog!L416,\"\")","v":""},{"$f":"IF(DataLog!$C416=\"Log value\",DataLog!M416,\"\")","v":""},{"$f":"IF(DataLog!$C416=\"Log value\",DataLog!N416,\"\")","v":""},{"$f":"IF(DataLog!$C416=\"Log value\",DataLog!O416,\"\")","v":""},{"$f":"IF(DataLog!$C416=\"Log value\",DataLog!P416,\"\")","v":""},{"$f":"IF(DataLog!$C416=\"Log value\",DataLog!Q416,\"\")","v":""},{"$f":"IF(DataLog!$C416=\"Log value\",DataLog!R416,\"\")","v":""},{"$f":"IF(DataLog!$C416=\"Log value\",DataLog!S416,\"\")","v":""},{"$f":"IF(DataLog!$C416=\"Log value\",DataLog!T416,\"\")","v":""},{"$f":"IF(DataLog!$C416=\"Log value\",DataLog!U416,\"\")","v":""},{"$f":"IF(DataLog!$C416=\"Log value\",DataLog!V416,\"\")","v":""},{"$f":"IF(DataLog!$C416=\"Log value\",DataLog!W416,\"\")","v":""},{"$f":"IF(DataLog!$C416=\"Log value\",DataLog!X416,\"\")","v":""},{"$f":"IF(DataLog!$C416=\"Log value\",DataLog!Y416,\"\")","v":""},{"$f":"IF(DataLog!$C416=\"Log value\",DataLog!Z416,\"\")","v":""},{"$f":"IF(DataLog!$C416=\"Log value\",DataLog!AA416,\"\")","v":""},{"$f":"IF(DataLog!$C416=\"Log value\",DataLog!AB416,\"\")","v":""},{"$f":"IF(DataLog!$C416=\"Log value\",DataLog!AC416,\"\")","v":""},{"$f":"IF(DataLog!$C416=\"Log value\",DataLog!AD416,\"\")","v":""},{"$f":"IF(DataLog!$C416=\"Log value\",DataLog!AE416,\"\")","v":""},{"$f":"IF(DataLog!$C416=\"Log value\",DataLog!AF416,\"\")","v":""},{"$f":"IF(DataLog!$C416=\"Log value\",DataLog!AG416,\"\")","v":""},{"$f":"IF(DataLog!$C416=\"Log value\",DataLog!AH416,\"\")","v":""},{"$f":"IF(DataLog!$C416=\"Log value\",DataLog!AI416,\"\")","v":""},{"$f":"IF(DataLog!$C416=\"Log value\",DataLog!AJ416,\"\")","v":""},{"$f":"IF(DataLog!$C416=\"Log value\",DataLog!AK416,\"\")","v":""},{"$f":"IF(DataLog!$C416=\"Log value\",DataLog!AL416,\"\")","v":""},{"$f":"IF(DataLog!$C416=\"Log value\",DataLog!AM416,\"\")","v":""}]
[null,null,"Standard","Standard -  - ",null,null,{"$f":"IF(DataLog!$C417=\"Log value\",DataLog!D417&\"_\"&TEXT(DataLog!B417,\"åååå-mm-dd\"),\"\")","v":""},{"$f":"IF(DataLog!$C417=\"Log value\",DataLog!E417,\"\")","v":""},{"$f":"IF(DataLog!$C417=\"Log value\",DataLog!F417,\"\")","v":""},{"$f":"IF(DataLog!$C417=\"Log value\",DataLog!G417,\"\")","v":""},{"$f":"IF(DataLog!$C417=\"Log value\",DataLog!H417,\"\")","v":""},{"$f":"IF(DataLog!$C417=\"Log value\",DataLog!I417,\"\")","v":""},{"$f":"IF(DataLog!$C417=\"Log value\",DataLog!J417,\"\")","v":""},{"$f":"IF(DataLog!$C417=\"Log value\",DataLog!K417,\"\")","v":""},{"$f":"IF(DataLog!$C417=\"Log value\",DataLog!L417,\"\")","v":""},{"$f":"IF(DataLog!$C417=\"Log value\",DataLog!M417,\"\")","v":""},{"$f":"IF(DataLog!$C417=\"Log value\",DataLog!N417,\"\")","v":""},{"$f":"IF(DataLog!$C417=\"Log value\",DataLog!O417,\"\")","v":""},{"$f":"IF(DataLog!$C417=\"Log value\",DataLog!P417,\"\")","v":""},{"$f":"IF(DataLog!$C417=\"Log value\",DataLog!Q417,\"\")","v":""},{"$f":"IF(DataLog!$C417=\"Log value\",DataLog!R417,\"\")","v":""},{"$f":"IF(DataLog!$C417=\"Log value\",DataLog!S417,\"\")","v":""},{"$f":"IF(DataLog!$C417=\"Log value\",DataLog!T417,\"\")","v":""},{"$f":"IF(DataLog!$C417=\"Log value\",DataLog!U417,\"\")","v":""},{"$f":"IF(DataLog!$C417=\"Log value\",DataLog!V417,\"\")","v":""},{"$f":"IF(DataLog!$C417=\"Log value\",DataLog!W417,\"\")","v":""},{"$f":"IF(DataLog!$C417=\"Log value\",DataLog!X417,\"\")","v":""},{"$f":"IF(DataLog!$C417=\"Log value\",DataLog!Y417,\"\")","v":""},{"$f":"IF(DataLog!$C417=\"Log value\",DataLog!Z417,\"\")","v":""},{"$f":"IF(DataLog!$C417=\"Log value\",DataLog!AA417,\"\")","v":""},{"$f":"IF(DataLog!$C417=\"Log value\",DataLog!AB417,\"\")","v":""},{"$f":"IF(DataLog!$C417=\"Log value\",DataLog!AC417,\"\")","v":""},{"$f":"IF(DataLog!$C417=\"Log value\",DataLog!AD417,\"\")","v":""},{"$f":"IF(DataLog!$C417=\"Log value\",DataLog!AE417,\"\")","v":""},{"$f":"IF(DataLog!$C417=\"Log value\",DataLog!AF417,\"\")","v":""},{"$f":"IF(DataLog!$C417=\"Log value\",DataLog!AG417,\"\")","v":""},{"$f":"IF(DataLog!$C417=\"Log value\",DataLog!AH417,\"\")","v":""},{"$f":"IF(DataLog!$C417=\"Log value\",DataLog!AI417,\"\")","v":""},{"$f":"IF(DataLog!$C417=\"Log value\",DataLog!AJ417,\"\")","v":""},{"$f":"IF(DataLog!$C417=\"Log value\",DataLog!AK417,\"\")","v":""},{"$f":"IF(DataLog!$C417=\"Log value\",DataLog!AL417,\"\")","v":""},{"$f":"IF(DataLog!$C417=\"Log value\",DataLog!AM417,\"\")","v":""}]
[null,null,"Standard","Standard -  - ",null,null,{"$f":"IF(DataLog!$C418=\"Log value\",DataLog!D418&\"_\"&TEXT(DataLog!B418,\"åååå-mm-dd\"),\"\")","v":""},{"$f":"IF(DataLog!$C418=\"Log value\",DataLog!E418,\"\")","v":""},{"$f":"IF(DataLog!$C418=\"Log value\",DataLog!F418,\"\")","v":""},{"$f":"IF(DataLog!$C418=\"Log value\",DataLog!G418,\"\")","v":""},{"$f":"IF(DataLog!$C418=\"Log value\",DataLog!H418,\"\")","v":""},{"$f":"IF(DataLog!$C418=\"Log value\",DataLog!I418,\"\")","v":""},{"$f":"IF(DataLog!$C418=\"Log value\",DataLog!J418,\"\")","v":""},{"$f":"IF(DataLog!$C418=\"Log value\",DataLog!K418,\"\")","v":""},{"$f":"IF(DataLog!$C418=\"Log value\",DataLog!L418,\"\")","v":""},{"$f":"IF(DataLog!$C418=\"Log value\",DataLog!M418,\"\")","v":""},{"$f":"IF(DataLog!$C418=\"Log value\",DataLog!N418,\"\")","v":""},{"$f":"IF(DataLog!$C418=\"Log value\",DataLog!O418,\"\")","v":""},{"$f":"IF(DataLog!$C418=\"Log value\",DataLog!P418,\"\")","v":""},{"$f":"IF(DataLog!$C418=\"Log value\",DataLog!Q418,\"\")","v":""},{"$f":"IF(DataLog!$C418=\"Log value\",DataLog!R418,\"\")","v":""},{"$f":"IF(DataLog!$C418=\"Log value\",DataLog!S418,\"\")","v":""},{"$f":"IF(DataLog!$C418=\"Log value\",DataLog!T418,\"\")","v":""},{"$f":"IF(DataLog!$C418=\"Log value\",DataLog!U418,\"\")","v":""},{"$f":"IF(DataLog!$C418=\"Log value\",DataLog!V418,\"\")","v":""},{"$f":"IF(DataLog!$C418=\"Log value\",DataLog!W418,\"\")","v":""},{"$f":"IF(DataLog!$C418=\"Log value\",DataLog!X418,\"\")","v":""},{"$f":"IF(DataLog!$C418=\"Log value\",DataLog!Y418,\"\")","v":""},{"$f":"IF(DataLog!$C418=\"Log value\",DataLog!Z418,\"\")","v":""},{"$f":"IF(DataLog!$C418=\"Log value\",DataLog!AA418,\"\")","v":""},{"$f":"IF(DataLog!$C418=\"Log value\",DataLog!AB418,\"\")","v":""},{"$f":"IF(DataLog!$C418=\"Log value\",DataLog!AC418,\"\")","v":""},{"$f":"IF(DataLog!$C418=\"Log value\",DataLog!AD418,\"\")","v":""},{"$f":"IF(DataLog!$C418=\"Log value\",DataLog!AE418,\"\")","v":""},{"$f":"IF(DataLog!$C418=\"Log value\",DataLog!AF418,\"\")","v":""},{"$f":"IF(DataLog!$C418=\"Log value\",DataLog!AG418,\"\")","v":""},{"$f":"IF(DataLog!$C418=\"Log value\",DataLog!AH418,\"\")","v":""},{"$f":"IF(DataLog!$C418=\"Log value\",DataLog!AI418,\"\")","v":""},{"$f":"IF(DataLog!$C418=\"Log value\",DataLog!AJ418,\"\")","v":""},{"$f":"IF(DataLog!$C418=\"Log value\",DataLog!AK418,\"\")","v":""},{"$f":"IF(DataLog!$C418=\"Log value\",DataLog!AL418,\"\")","v":""},{"$f":"IF(DataLog!$C418=\"Log value\",DataLog!AM418,\"\")","v":""}]
[null,null,"Standard","Standard -  - ",null,null,{"$f":"IF(DataLog!$C419=\"Log value\",DataLog!D419&\"_\"&TEXT(DataLog!B419,\"åååå-mm-dd\"),\"\")","v":""},{"$f":"IF(DataLog!$C419=\"Log value\",DataLog!E419,\"\")","v":""},{"$f":"IF(DataLog!$C419=\"Log value\",DataLog!F419,\"\")","v":""},{"$f":"IF(DataLog!$C419=\"Log value\",DataLog!G419,\"\")","v":""},{"$f":"IF(DataLog!$C419=\"Log value\",DataLog!H419,\"\")","v":""},{"$f":"IF(DataLog!$C419=\"Log value\",DataLog!I419,\"\")","v":""},{"$f":"IF(DataLog!$C419=\"Log value\",DataLog!J419,\"\")","v":""},{"$f":"IF(DataLog!$C419=\"Log value\",DataLog!K419,\"\")","v":""},{"$f":"IF(DataLog!$C419=\"Log value\",DataLog!L419,\"\")","v":""},{"$f":"IF(DataLog!$C419=\"Log value\",DataLog!M419,\"\")","v":""},{"$f":"IF(DataLog!$C419=\"Log value\",DataLog!N419,\"\")","v":""},{"$f":"IF(DataLog!$C419=\"Log value\",DataLog!O419,\"\")","v":""},{"$f":"IF(DataLog!$C419=\"Log value\",DataLog!P419,\"\")","v":""},{"$f":"IF(DataLog!$C419=\"Log value\",DataLog!Q419,\"\")","v":""},{"$f":"IF(DataLog!$C419=\"Log value\",DataLog!R419,\"\")","v":""},{"$f":"IF(DataLog!$C419=\"Log value\",DataLog!S419,\"\")","v":""},{"$f":"IF(DataLog!$C419=\"Log value\",DataLog!T419,\"\")","v":""},{"$f":"IF(DataLog!$C419=\"Log value\",DataLog!U419,\"\")","v":""},{"$f":"IF(DataLog!$C419=\"Log value\",DataLog!V419,\"\")","v":""},{"$f":"IF(DataLog!$C419=\"Log value\",DataLog!W419,\"\")","v":""},{"$f":"IF(DataLog!$C419=\"Log value\",DataLog!X419,\"\")","v":""},{"$f":"IF(DataLog!$C419=\"Log value\",DataLog!Y419,\"\")","v":""},{"$f":"IF(DataLog!$C419=\"Log value\",DataLog!Z419,\"\")","v":""},{"$f":"IF(DataLog!$C419=\"Log value\",DataLog!AA419,\"\")","v":""},{"$f":"IF(DataLog!$C419=\"Log value\",DataLog!AB419,\"\")","v":""},{"$f":"IF(DataLog!$C419=\"Log value\",DataLog!AC419,\"\")","v":""},{"$f":"IF(DataLog!$C419=\"Log value\",DataLog!AD419,\"\")","v":""},{"$f":"IF(DataLog!$C419=\"Log value\",DataLog!AE419,\"\")","v":""},{"$f":"IF(DataLog!$C419=\"Log value\",DataLog!AF419,\"\")","v":""},{"$f":"IF(DataLog!$C419=\"Log value\",DataLog!AG419,\"\")","v":""},{"$f":"IF(DataLog!$C419=\"Log value\",DataLog!AH419,\"\")","v":""},{"$f":"IF(DataLog!$C419=\"Log value\",DataLog!AI419,\"\")","v":""},{"$f":"IF(DataLog!$C419=\"Log value\",DataLog!AJ419,\"\")","v":""},{"$f":"IF(DataLog!$C419=\"Log value\",DataLog!AK419,\"\")","v":""},{"$f":"IF(DataLog!$C419=\"Log value\",DataLog!AL419,\"\")","v":""},{"$f":"IF(DataLog!$C419=\"Log value\",DataLog!AM419,\"\")","v":""}]
[null,null,"Standard","Standard -  - ",null,null,{"$f":"IF(DataLog!$C420=\"Log value\",DataLog!D420&\"_\"&TEXT(DataLog!B420,\"åååå-mm-dd\"),\"\")","v":""},{"$f":"IF(DataLog!$C420=\"Log value\",DataLog!E420,\"\")","v":""},{"$f":"IF(DataLog!$C420=\"Log value\",DataLog!F420,\"\")","v":""},{"$f":"IF(DataLog!$C420=\"Log value\",DataLog!G420,\"\")","v":""},{"$f":"IF(DataLog!$C420=\"Log value\",DataLog!H420,\"\")","v":""},{"$f":"IF(DataLog!$C420=\"Log value\",DataLog!I420,\"\")","v":""},{"$f":"IF(DataLog!$C420=\"Log value\",DataLog!J420,\"\")","v":""},{"$f":"IF(DataLog!$C420=\"Log value\",DataLog!K420,\"\")","v":""},{"$f":"IF(DataLog!$C420=\"Log value\",DataLog!L420,\"\")","v":""},{"$f":"IF(DataLog!$C420=\"Log value\",DataLog!M420,\"\")","v":""},{"$f":"IF(DataLog!$C420=\"Log value\",DataLog!N420,\"\")","v":""},{"$f":"IF(DataLog!$C420=\"Log value\",DataLog!O420,\"\")","v":""},{"$f":"IF(DataLog!$C420=\"Log value\",DataLog!P420,\"\")","v":""},{"$f":"IF(DataLog!$C420=\"Log value\",DataLog!Q420,\"\")","v":""},{"$f":"IF(DataLog!$C420=\"Log value\",DataLog!R420,\"\")","v":""},{"$f":"IF(DataLog!$C420=\"Log value\",DataLog!S420,\"\")","v":""},{"$f":"IF(DataLog!$C420=\"Log value\",DataLog!T420,\"\")","v":""},{"$f":"IF(DataLog!$C420=\"Log value\",DataLog!U420,\"\")","v":""},{"$f":"IF(DataLog!$C420=\"Log value\",DataLog!V420,\"\")","v":""},{"$f":"IF(DataLog!$C420=\"Log value\",DataLog!W420,\"\")","v":""},{"$f":"IF(DataLog!$C420=\"Log value\",DataLog!X420,\"\")","v":""},{"$f":"IF(DataLog!$C420=\"Log value\",DataLog!Y420,\"\")","v":""},{"$f":"IF(DataLog!$C420=\"Log value\",DataLog!Z420,\"\")","v":""},{"$f":"IF(DataLog!$C420=\"Log value\",DataLog!AA420,\"\")","v":""},{"$f":"IF(DataLog!$C420=\"Log value\",DataLog!AB420,\"\")","v":""},{"$f":"IF(DataLog!$C420=\"Log value\",DataLog!AC420,\"\")","v":""},{"$f":"IF(DataLog!$C420=\"Log value\",DataLog!AD420,\"\")","v":""},{"$f":"IF(DataLog!$C420=\"Log value\",DataLog!AE420,\"\")","v":""},{"$f":"IF(DataLog!$C420=\"Log value\",DataLog!AF420,\"\")","v":""},{"$f":"IF(DataLog!$C420=\"Log value\",DataLog!AG420,\"\")","v":""},{"$f":"IF(DataLog!$C420=\"Log value\",DataLog!AH420,\"\")","v":""},{"$f":"IF(DataLog!$C420=\"Log value\",DataLog!AI420,\"\")","v":""},{"$f":"IF(DataLog!$C420=\"Log value\",DataLog!AJ420,\"\")","v":""},{"$f":"IF(DataLog!$C420=\"Log value\",DataLog!AK420,\"\")","v":""},{"$f":"IF(DataLog!$C420=\"Log value\",DataLog!AL420,\"\")","v":""},{"$f":"IF(DataLog!$C420=\"Log value\",DataLog!AM420,\"\")","v":""}]
[null,null,"Standard","Standard -  - ",null,null,{"$f":"IF(DataLog!$C421=\"Log value\",DataLog!D421&\"_\"&TEXT(DataLog!B421,\"åååå-mm-dd\"),\"\")","v":""},{"$f":"IF(DataLog!$C421=\"Log value\",DataLog!E421,\"\")","v":""},{"$f":"IF(DataLog!$C421=\"Log value\",DataLog!F421,\"\")","v":""},{"$f":"IF(DataLog!$C421=\"Log value\",DataLog!G421,\"\")","v":""},{"$f":"IF(DataLog!$C421=\"Log value\",DataLog!H421,\"\")","v":""},{"$f":"IF(DataLog!$C421=\"Log value\",DataLog!I421,\"\")","v":""},{"$f":"IF(DataLog!$C421=\"Log value\",DataLog!J421,\"\")","v":""},{"$f":"IF(DataLog!$C421=\"Log value\",DataLog!K421,\"\")","v":""},{"$f":"IF(DataLog!$C421=\"Log value\",DataLog!L421,\"\")","v":""},{"$f":"IF(DataLog!$C421=\"Log value\",DataLog!M421,\"\")","v":""},{"$f":"IF(DataLog!$C421=\"Log value\",DataLog!N421,\"\")","v":""},{"$f":"IF(DataLog!$C421=\"Log value\",DataLog!O421,\"\")","v":""},{"$f":"IF(DataLog!$C421=\"Log value\",DataLog!P421,\"\")","v":""},{"$f":"IF(DataLog!$C421=\"Log value\",DataLog!Q421,\"\")","v":""},{"$f":"IF(DataLog!$C421=\"Log value\",DataLog!R421,\"\")","v":""},{"$f":"IF(DataLog!$C421=\"Log value\",DataLog!S421,\"\")","v":""},{"$f":"IF(DataLog!$C421=\"Log value\",DataLog!T421,\"\")","v":""},{"$f":"IF(DataLog!$C421=\"Log value\",DataLog!U421,\"\")","v":""},{"$f":"IF(DataLog!$C421=\"Log value\",DataLog!V421,\"\")","v":""},{"$f":"IF(DataLog!$C421=\"Log value\",DataLog!W421,\"\")","v":""},{"$f":"IF(DataLog!$C421=\"Log value\",DataLog!X421,\"\")","v":""},{"$f":"IF(DataLog!$C421=\"Log value\",DataLog!Y421,\"\")","v":""},{"$f":"IF(DataLog!$C421=\"Log value\",DataLog!Z421,\"\")","v":""},{"$f":"IF(DataLog!$C421=\"Log value\",DataLog!AA421,\"\")","v":""},{"$f":"IF(DataLog!$C421=\"Log value\",DataLog!AB421,\"\")","v":""},{"$f":"IF(DataLog!$C421=\"Log value\",DataLog!AC421,\"\")","v":""},{"$f":"IF(DataLog!$C421=\"Log value\",DataLog!AD421,\"\")","v":""},{"$f":"IF(DataLog!$C421=\"Log value\",DataLog!AE421,\"\")","v":""},{"$f":"IF(DataLog!$C421=\"Log value\",DataLog!AF421,\"\")","v":""},{"$f":"IF(DataLog!$C421=\"Log value\",DataLog!AG421,\"\")","v":""},{"$f":"IF(DataLog!$C421=\"Log value\",DataLog!AH421,\"\")","v":""},{"$f":"IF(DataLog!$C421=\"Log value\",DataLog!AI421,\"\")","v":""},{"$f":"IF(DataLog!$C421=\"Log value\",DataLog!AJ421,\"\")","v":""},{"$f":"IF(DataLog!$C421=\"Log value\",DataLog!AK421,\"\")","v":""},{"$f":"IF(DataLog!$C421=\"Log value\",DataLog!AL421,\"\")","v":""},{"$f":"IF(DataLog!$C421=\"Log value\",DataLog!AM421,\"\")","v":""}]
[null,null,"Standard","Standard -  - ",null,null,{"$f":"IF(DataLog!$C422=\"Log value\",DataLog!D422&\"_\"&TEXT(DataLog!B422,\"åååå-mm-dd\"),\"\")","v":""},{"$f":"IF(DataLog!$C422=\"Log value\",DataLog!E422,\"\")","v":""},{"$f":"IF(DataLog!$C422=\"Log value\",DataLog!F422,\"\")","v":""},{"$f":"IF(DataLog!$C422=\"Log value\",DataLog!G422,\"\")","v":""},{"$f":"IF(DataLog!$C422=\"Log value\",DataLog!H422,\"\")","v":""},{"$f":"IF(DataLog!$C422=\"Log value\",DataLog!I422,\"\")","v":""},{"$f":"IF(DataLog!$C422=\"Log value\",DataLog!J422,\"\")","v":""},{"$f":"IF(DataLog!$C422=\"Log value\",DataLog!K422,\"\")","v":""},{"$f":"IF(DataLog!$C422=\"Log value\",DataLog!L422,\"\")","v":""},{"$f":"IF(DataLog!$C422=\"Log value\",DataLog!M422,\"\")","v":""},{"$f":"IF(DataLog!$C422=\"Log value\",DataLog!N422,\"\")","v":""},{"$f":"IF(DataLog!$C422=\"Log value\",DataLog!O422,\"\")","v":""},{"$f":"IF(DataLog!$C422=\"Log value\",DataLog!P422,\"\")","v":""},{"$f":"IF(DataLog!$C422=\"Log value\",DataLog!Q422,\"\")","v":""},{"$f":"IF(DataLog!$C422=\"Log value\",DataLog!R422,\"\")","v":""},{"$f":"IF(DataLog!$C422=\"Log value\",DataLog!S422,\"\")","v":""},{"$f":"IF(DataLog!$C422=\"Log value\",DataLog!T422,\"\")","v":""},{"$f":"IF(DataLog!$C422=\"Log value\",DataLog!U422,\"\")","v":""},{"$f":"IF(DataLog!$C422=\"Log value\",DataLog!V422,\"\")","v":""},{"$f":"IF(DataLog!$C422=\"Log value\",DataLog!W422,\"\")","v":""},{"$f":"IF(DataLog!$C422=\"Log value\",DataLog!X422,\"\")","v":""},{"$f":"IF(DataLog!$C422=\"Log value\",DataLog!Y422,\"\")","v":""},{"$f":"IF(DataLog!$C422=\"Log value\",DataLog!Z422,\"\")","v":""},{"$f":"IF(DataLog!$C422=\"Log value\",DataLog!AA422,\"\")","v":""},{"$f":"IF(DataLog!$C422=\"Log value\",DataLog!AB422,\"\")","v":""},{"$f":"IF(DataLog!$C422=\"Log value\",DataLog!AC422,\"\")","v":""},{"$f":"IF(DataLog!$C422=\"Log value\",DataLog!AD422,\"\")","v":""},{"$f":"IF(DataLog!$C422=\"Log value\",DataLog!AE422,\"\")","v":""},{"$f":"IF(DataLog!$C422=\"Log value\",DataLog!AF422,\"\")","v":""},{"$f":"IF(DataLog!$C422=\"Log value\",DataLog!AG422,\"\")","v":""},{"$f":"IF(DataLog!$C422=\"Log value\",DataLog!AH422,\"\")","v":""},{"$f":"IF(DataLog!$C422=\"Log value\",DataLog!AI422,\"\")","v":""},{"$f":"IF(DataLog!$C422=\"Log value\",DataLog!AJ422,\"\")","v":""},{"$f":"IF(DataLog!$C422=\"Log value\",DataLog!AK422,\"\")","v":""},{"$f":"IF(DataLog!$C422=\"Log value\",DataLog!AL422,\"\")","v":""},{"$f":"IF(DataLog!$C422=\"Log value\",DataLog!AM422,\"\")","v":""}]
[null,null,"Standard","Standard -  - ",null,null,{"$f":"IF(DataLog!$C423=\"Log value\",DataLog!D423&\"_\"&TEXT(DataLog!B423,\"åååå-mm-dd\"),\"\")","v":""},{"$f":"IF(DataLog!$C423=\"Log value\",DataLog!E423,\"\")","v":""},{"$f":"IF(DataLog!$C423=\"Log value\",DataLog!F423,\"\")","v":""},{"$f":"IF(DataLog!$C423=\"Log value\",DataLog!G423,\"\")","v":""},{"$f":"IF(DataLog!$C423=\"Log value\",DataLog!H423,\"\")","v":""},{"$f":"IF(DataLog!$C423=\"Log value\",DataLog!I423,\"\")","v":""},{"$f":"IF(DataLog!$C423=\"Log value\",DataLog!J423,\"\")","v":""},{"$f":"IF(DataLog!$C423=\"Log value\",DataLog!K423,\"\")","v":""},{"$f":"IF(DataLog!$C423=\"Log value\",DataLog!L423,\"\")","v":""},{"$f":"IF(DataLog!$C423=\"Log value\",DataLog!M423,\"\")","v":""},{"$f":"IF(DataLog!$C423=\"Log value\",DataLog!N423,\"\")","v":""},{"$f":"IF(DataLog!$C423=\"Log value\",DataLog!O423,\"\")","v":""},{"$f":"IF(DataLog!$C423=\"Log value\",DataLog!P423,\"\")","v":""},{"$f":"IF(DataLog!$C423=\"Log value\",DataLog!Q423,\"\")","v":""},{"$f":"IF(DataLog!$C423=\"Log value\",DataLog!R423,\"\")","v":""},{"$f":"IF(DataLog!$C423=\"Log value\",DataLog!S423,\"\")","v":""},{"$f":"IF(DataLog!$C423=\"Log value\",DataLog!T423,\"\")","v":""},{"$f":"IF(DataLog!$C423=\"Log value\",DataLog!U423,\"\")","v":""},{"$f":"IF(DataLog!$C423=\"Log value\",DataLog!V423,\"\")","v":""},{"$f":"IF(DataLog!$C423=\"Log value\",DataLog!W423,\"\")","v":""},{"$f":"IF(DataLog!$C423=\"Log value\",DataLog!X423,\"\")","v":""},{"$f":"IF(DataLog!$C423=\"Log value\",DataLog!Y423,\"\")","v":""},{"$f":"IF(DataLog!$C423=\"Log value\",DataLog!Z423,\"\")","v":""},{"$f":"IF(DataLog!$C423=\"Log value\",DataLog!AA423,\"\")","v":""},{"$f":"IF(DataLog!$C423=\"Log value\",DataLog!AB423,\"\")","v":""},{"$f":"IF(DataLog!$C423=\"Log value\",DataLog!AC423,\"\")","v":""},{"$f":"IF(DataLog!$C423=\"Log value\",DataLog!AD423,\"\")","v":""},{"$f":"IF(DataLog!$C423=\"Log value\",DataLog!AE423,\"\")","v":""},{"$f":"IF(DataLog!$C423=\"Log value\",DataLog!AF423,\"\")","v":""},{"$f":"IF(DataLog!$C423=\"Log value\",DataLog!AG423,\"\")","v":""},{"$f":"IF(DataLog!$C423=\"Log value\",DataLog!AH423,\"\")","v":""},{"$f":"IF(DataLog!$C423=\"Log value\",DataLog!AI423,\"\")","v":""},{"$f":"IF(DataLog!$C423=\"Log value\",DataLog!AJ423,\"\")","v":""},{"$f":"IF(DataLog!$C423=\"Log value\",DataLog!AK423,\"\")","v":""},{"$f":"IF(DataLog!$C423=\"Log value\",DataLog!AL423,\"\")","v":""},{"$f":"IF(DataLog!$C423=\"Log value\",DataLog!AM423,\"\")","v":""}]
[null,null,"Standard","Standard -  - ",null,null,{"$f":"IF(DataLog!$C424=\"Log value\",DataLog!D424&\"_\"&TEXT(DataLog!B424,\"åååå-mm-dd\"),\"\")","v":""},{"$f":"IF(DataLog!$C424=\"Log value\",DataLog!E424,\"\")","v":""},{"$f":"IF(DataLog!$C424=\"Log value\",DataLog!F424,\"\")","v":""},{"$f":"IF(DataLog!$C424=\"Log value\",DataLog!G424,\"\")","v":""},{"$f":"IF(DataLog!$C424=\"Log value\",DataLog!H424,\"\")","v":""},{"$f":"IF(DataLog!$C424=\"Log value\",DataLog!I424,\"\")","v":""},{"$f":"IF(DataLog!$C424=\"Log value\",DataLog!J424,\"\")","v":""},{"$f":"IF(DataLog!$C424=\"Log value\",DataLog!K424,\"\")","v":""},{"$f":"IF(DataLog!$C424=\"Log value\",DataLog!L424,\"\")","v":""},{"$f":"IF(DataLog!$C424=\"Log value\",DataLog!M424,\"\")","v":""},{"$f":"IF(DataLog!$C424=\"Log value\",DataLog!N424,\"\")","v":""},{"$f":"IF(DataLog!$C424=\"Log value\",DataLog!O424,\"\")","v":""},{"$f":"IF(DataLog!$C424=\"Log value\",DataLog!P424,\"\")","v":""},{"$f":"IF(DataLog!$C424=\"Log value\",DataLog!Q424,\"\")","v":""},{"$f":"IF(DataLog!$C424=\"Log value\",DataLog!R424,\"\")","v":""},{"$f":"IF(DataLog!$C424=\"Log value\",DataLog!S424,\"\")","v":""},{"$f":"IF(DataLog!$C424=\"Log value\",DataLog!T424,\"\")","v":""},{"$f":"IF(DataLog!$C424=\"Log value\",DataLog!U424,\"\")","v":""},{"$f":"IF(DataLog!$C424=\"Log value\",DataLog!V424,\"\")","v":""},{"$f":"IF(DataLog!$C424=\"Log value\",DataLog!W424,\"\")","v":""},{"$f":"IF(DataLog!$C424=\"Log value\",DataLog!X424,\"\")","v":""},{"$f":"IF(DataLog!$C424=\"Log value\",DataLog!Y424,\"\")","v":""},{"$f":"IF(DataLog!$C424=\"Log value\",DataLog!Z424,\"\")","v":""},{"$f":"IF(DataLog!$C424=\"Log value\",DataLog!AA424,\"\")","v":""},{"$f":"IF(DataLog!$C424=\"Log value\",DataLog!AB424,\"\")","v":""},{"$f":"IF(DataLog!$C424=\"Log value\",DataLog!AC424,\"\")","v":""},{"$f":"IF(DataLog!$C424=\"Log value\",DataLog!AD424,\"\")","v":""},{"$f":"IF(DataLog!$C424=\"Log value\",DataLog!AE424,\"\")","v":""},{"$f":"IF(DataLog!$C424=\"Log value\",DataLog!AF424,\"\")","v":""},{"$f":"IF(DataLog!$C424=\"Log value\",DataLog!AG424,\"\")","v":""},{"$f":"IF(DataLog!$C424=\"Log value\",DataLog!AH424,\"\")","v":""},{"$f":"IF(DataLog!$C424=\"Log value\",DataLog!AI424,\"\")","v":""},{"$f":"IF(DataLog!$C424=\"Log value\",DataLog!AJ424,\"\")","v":""},{"$f":"IF(DataLog!$C424=\"Log value\",DataLog!AK424,\"\")","v":""},{"$f":"IF(DataLog!$C424=\"Log value\",DataLog!AL424,\"\")","v":""},{"$f":"IF(DataLog!$C424=\"Log value\",DataLog!AM424,\"\")","v":""}]
[null,null,"Standard","Standard -  - ",null,null,{"$f":"IF(DataLog!$C425=\"Log value\",DataLog!D425&\"_\"&TEXT(DataLog!B425,\"åååå-mm-dd\"),\"\")","v":""},{"$f":"IF(DataLog!$C425=\"Log value\",DataLog!E425,\"\")","v":""},{"$f":"IF(DataLog!$C425=\"Log value\",DataLog!F425,\"\")","v":""},{"$f":"IF(DataLog!$C425=\"Log value\",DataLog!G425,\"\")","v":""},{"$f":"IF(DataLog!$C425=\"Log value\",DataLog!H425,\"\")","v":""},{"$f":"IF(DataLog!$C425=\"Log value\",DataLog!I425,\"\")","v":""},{"$f":"IF(DataLog!$C425=\"Log value\",DataLog!J425,\"\")","v":""},{"$f":"IF(DataLog!$C425=\"Log value\",DataLog!K425,\"\")","v":""},{"$f":"IF(DataLog!$C425=\"Log value\",DataLog!L425,\"\")","v":""},{"$f":"IF(DataLog!$C425=\"Log value\",DataLog!M425,\"\")","v":""},{"$f":"IF(DataLog!$C425=\"Log value\",DataLog!N425,\"\")","v":""},{"$f":"IF(DataLog!$C425=\"Log value\",DataLog!O425,\"\")","v":""},{"$f":"IF(DataLog!$C425=\"Log value\",DataLog!P425,\"\")","v":""},{"$f":"IF(DataLog!$C425=\"Log value\",DataLog!Q425,\"\")","v":""},{"$f":"IF(DataLog!$C425=\"Log value\",DataLog!R425,\"\")","v":""},{"$f":"IF(DataLog!$C425=\"Log value\",DataLog!S425,\"\")","v":""},{"$f":"IF(DataLog!$C425=\"Log value\",DataLog!T425,\"\")","v":""},{"$f":"IF(DataLog!$C425=\"Log value\",DataLog!U425,\"\")","v":""},{"$f":"IF(DataLog!$C425=\"Log value\",DataLog!V425,\"\")","v":""},{"$f":"IF(DataLog!$C425=\"Log value\",DataLog!W425,\"\")","v":""},{"$f":"IF(DataLog!$C425=\"Log value\",DataLog!X425,\"\")","v":""},{"$f":"IF(DataLog!$C425=\"Log value\",DataLog!Y425,\"\")","v":""},{"$f":"IF(DataLog!$C425=\"Log value\",DataLog!Z425,\"\")","v":""},{"$f":"IF(DataLog!$C425=\"Log value\",DataLog!AA425,\"\")","v":""},{"$f":"IF(DataLog!$C425=\"Log value\",DataLog!AB425,\"\")","v":""},{"$f":"IF(DataLog!$C425=\"Log value\",DataLog!AC425,\"\")","v":""},{"$f":"IF(DataLog!$C425=\"Log value\",DataLog!AD425,\"\")","v":""},{"$f":"IF(DataLog!$C425=\"Log value\",DataLog!AE425,\"\")","v":""},{"$f":"IF(DataLog!$C425=\"Log value\",DataLog!AF425,\"\")","v":""},{"$f":"IF(DataLog!$C425=\"Log value\",DataLog!AG425,\"\")","v":""},{"$f":"IF(DataLog!$C425=\"Log value\",DataLog!AH425,\"\")","v":""},{"$f":"IF(DataLog!$C425=\"Log value\",DataLog!AI425,\"\")","v":""},{"$f":"IF(DataLog!$C425=\"Log value\",DataLog!AJ425,\"\")","v":""},{"$f":"IF(DataLog!$C425=\"Log value\",DataLog!AK425,\"\")","v":""},{"$f":"IF(DataLog!$C425=\"Log value\",DataLog!AL425,\"\")","v":""},{"$f":"IF(DataLog!$C425=\"Log value\",DataLog!AM425,\"\")","v":""}]
[null,null,"Standard","Standard -  - ",null,null,{"$f":"IF(DataLog!$C426=\"Log value\",DataLog!D426&\"_\"&TEXT(DataLog!B426,\"åååå-mm-dd\"),\"\")","v":""},{"$f":"IF(DataLog!$C426=\"Log value\",DataLog!E426,\"\")","v":""},{"$f":"IF(DataLog!$C426=\"Log value\",DataLog!F426,\"\")","v":""},{"$f":"IF(DataLog!$C426=\"Log value\",DataLog!G426,\"\")","v":""},{"$f":"IF(DataLog!$C426=\"Log value\",DataLog!H426,\"\")","v":""},{"$f":"IF(DataLog!$C426=\"Log value\",DataLog!I426,\"\")","v":""},{"$f":"IF(DataLog!$C426=\"Log value\",DataLog!J426,\"\")","v":""},{"$f":"IF(DataLog!$C426=\"Log value\",DataLog!K426,\"\")","v":""},{"$f":"IF(DataLog!$C426=\"Log value\",DataLog!L426,\"\")","v":""},{"$f":"IF(DataLog!$C426=\"Log value\",DataLog!M426,\"\")","v":""},{"$f":"IF(DataLog!$C426=\"Log value\",DataLog!N426,\"\")","v":""},{"$f":"IF(DataLog!$C426=\"Log value\",DataLog!O426,\"\")","v":""},{"$f":"IF(DataLog!$C426=\"Log value\",DataLog!P426,\"\")","v":""},{"$f":"IF(DataLog!$C426=\"Log value\",DataLog!Q426,\"\")","v":""},{"$f":"IF(DataLog!$C426=\"Log value\",DataLog!R426,\"\")","v":""},{"$f":"IF(DataLog!$C426=\"Log value\",DataLog!S426,\"\")","v":""},{"$f":"IF(DataLog!$C426=\"Log value\",DataLog!T426,\"\")","v":""},{"$f":"IF(DataLog!$C426=\"Log value\",DataLog!U426,\"\")","v":""},{"$f":"IF(DataLog!$C426=\"Log value\",DataLog!V426,\"\")","v":""},{"$f":"IF(DataLog!$C426=\"Log value\",DataLog!W426,\"\")","v":""},{"$f":"IF(DataLog!$C426=\"Log value\",DataLog!X426,\"\")","v":""},{"$f":"IF(DataLog!$C426=\"Log value\",DataLog!Y426,\"\")","v":""},{"$f":"IF(DataLog!$C426=\"Log value\",DataLog!Z426,\"\")","v":""},{"$f":"IF(DataLog!$C426=\"Log value\",DataLog!AA426,\"\")","v":""},{"$f":"IF(DataLog!$C426=\"Log value\",DataLog!AB426,\"\")","v":""},{"$f":"IF(DataLog!$C426=\"Log value\",DataLog!AC426,\"\")","v":""},{"$f":"IF(DataLog!$C426=\"Log value\",DataLog!AD426,\"\")","v":""},{"$f":"IF(DataLog!$C426=\"Log value\",DataLog!AE426,\"\")","v":""},{"$f":"IF(DataLog!$C426=\"Log value\",DataLog!AF426,\"\")","v":""},{"$f":"IF(DataLog!$C426=\"Log value\",DataLog!AG426,\"\")","v":""},{"$f":"IF(DataLog!$C426=\"Log value\",DataLog!AH426,\"\")","v":""},{"$f":"IF(DataLog!$C426=\"Log value\",DataLog!AI426,\"\")","v":""},{"$f":"IF(DataLog!$C426=\"Log value\",DataLog!AJ426,\"\")","v":""},{"$f":"IF(DataLog!$C426=\"Log value\",DataLog!AK426,\"\")","v":""},{"$f":"IF(DataLog!$C426=\"Log value\",DataLog!AL426,\"\")","v":""},{"$f":"IF(DataLog!$C426=\"Log value\",DataLog!AM426,\"\")","v":""}]
[null,null,"Standard","Standard -  - ",null,null,{"$f":"IF(DataLog!$C427=\"Log value\",DataLog!D427&\"_\"&TEXT(DataLog!B427,\"åååå-mm-dd\"),\"\")","v":""},{"$f":"IF(DataLog!$C427=\"Log value\",DataLog!E427,\"\")","v":""},{"$f":"IF(DataLog!$C427=\"Log value\",DataLog!F427,\"\")","v":""},{"$f":"IF(DataLog!$C427=\"Log value\",DataLog!G427,\"\")","v":""},{"$f":"IF(DataLog!$C427=\"Log value\",DataLog!H427,\"\")","v":""},{"$f":"IF(DataLog!$C427=\"Log value\",DataLog!I427,\"\")","v":""},{"$f":"IF(DataLog!$C427=\"Log value\",DataLog!J427,\"\")","v":""},{"$f":"IF(DataLog!$C427=\"Log value\",DataLog!K427,\"\")","v":""},{"$f":"IF(DataLog!$C427=\"Log value\",DataLog!L427,\"\")","v":""},{"$f":"IF(DataLog!$C427=\"Log value\",DataLog!M427,\"\")","v":""},{"$f":"IF(DataLog!$C427=\"Log value\",DataLog!N427,\"\")","v":""},{"$f":"IF(DataLog!$C427=\"Log value\",DataLog!O427,\"\")","v":""},{"$f":"IF(DataLog!$C427=\"Log value\",DataLog!P427,\"\")","v":""},{"$f":"IF(DataLog!$C427=\"Log value\",DataLog!Q427,\"\")","v":""},{"$f":"IF(DataLog!$C427=\"Log value\",DataLog!R427,\"\")","v":""},{"$f":"IF(DataLog!$C427=\"Log value\",DataLog!S427,\"\")","v":""},{"$f":"IF(DataLog!$C427=\"Log value\",DataLog!T427,\"\")","v":""},{"$f":"IF(DataLog!$C427=\"Log value\",DataLog!U427,\"\")","v":""},{"$f":"IF(DataLog!$C427=\"Log value\",DataLog!V427,\"\")","v":""},{"$f":"IF(DataLog!$C427=\"Log value\",DataLog!W427,\"\")","v":""},{"$f":"IF(DataLog!$C427=\"Log value\",DataLog!X427,\"\")","v":""},{"$f":"IF(DataLog!$C427=\"Log value\",DataLog!Y427,\"\")","v":""},{"$f":"IF(DataLog!$C427=\"Log value\",DataLog!Z427,\"\")","v":""},{"$f":"IF(DataLog!$C427=\"Log value\",DataLog!AA427,\"\")","v":""},{"$f":"IF(DataLog!$C427=\"Log value\",DataLog!AB427,\"\")","v":""},{"$f":"IF(DataLog!$C427=\"Log value\",DataLog!AC427,\"\")","v":""},{"$f":"IF(DataLog!$C427=\"Log value\",DataLog!AD427,\"\")","v":""},{"$f":"IF(DataLog!$C427=\"Log value\",DataLog!AE427,\"\")","v":""},{"$f":"IF(DataLog!$C427=\"Log value\",DataLog!AF427,\"\")","v":""},{"$f":"IF(DataLog!$C427=\"Log value\",DataLog!AG427,\"\")","v":""},{"$f":"IF(DataLog!$C427=\"Log value\",DataLog!AH427,\"\")","v":""},{"$f":"IF(DataLog!$C427=\"Log value\",DataLog!AI427,\"\")","v":""},{"$f":"IF(DataLog!$C427=\"Log value\",DataLog!AJ427,\"\")","v":""},{"$f":"IF(DataLog!$C427=\"Log value\",DataLog!AK427,\"\")","v":""},{"$f":"IF(DataLog!$C427=\"Log value\",DataLog!AL427,\"\")","v":""},{"$f":"IF(DataLog!$C427=\"Log value\",DataLog!AM427,\"\")","v":""}]
[null,null,"Standard","Standard -  - ",null,null,{"$f":"IF(DataLog!$C428=\"Log value\",DataLog!D428&\"_\"&TEXT(DataLog!B428,\"åååå-mm-dd\"),\"\")","v":""},{"$f":"IF(DataLog!$C428=\"Log value\",DataLog!E428,\"\")","v":""},{"$f":"IF(DataLog!$C428=\"Log value\",DataLog!F428,\"\")","v":""},{"$f":"IF(DataLog!$C428=\"Log value\",DataLog!G428,\"\")","v":""},{"$f":"IF(DataLog!$C428=\"Log value\",DataLog!H428,\"\")","v":""},{"$f":"IF(DataLog!$C428=\"Log value\",DataLog!I428,\"\")","v":""},{"$f":"IF(DataLog!$C428=\"Log value\",DataLog!J428,\"\")","v":""},{"$f":"IF(DataLog!$C428=\"Log value\",DataLog!K428,\"\")","v":""},{"$f":"IF(DataLog!$C428=\"Log value\",DataLog!L428,\"\")","v":""},{"$f":"IF(DataLog!$C428=\"Log value\",DataLog!M428,\"\")","v":""},{"$f":"IF(DataLog!$C428=\"Log value\",DataLog!N428,\"\")","v":""},{"$f":"IF(DataLog!$C428=\"Log value\",DataLog!O428,\"\")","v":""},{"$f":"IF(DataLog!$C428=\"Log value\",DataLog!P428,\"\")","v":""},{"$f":"IF(DataLog!$C428=\"Log value\",DataLog!Q428,\"\")","v":""},{"$f":"IF(DataLog!$C428=\"Log value\",DataLog!R428,\"\")","v":""},{"$f":"IF(DataLog!$C428=\"Log value\",DataLog!S428,\"\")","v":""},{"$f":"IF(DataLog!$C428=\"Log value\",DataLog!T428,\"\")","v":""},{"$f":"IF(DataLog!$C428=\"Log value\",DataLog!U428,\"\")","v":""},{"$f":"IF(DataLog!$C428=\"Log value\",DataLog!V428,\"\")","v":""},{"$f":"IF(DataLog!$C428=\"Log value\",DataLog!W428,\"\")","v":""},{"$f":"IF(DataLog!$C428=\"Log value\",DataLog!X428,\"\")","v":""},{"$f":"IF(DataLog!$C428=\"Log value\",DataLog!Y428,\"\")","v":""},{"$f":"IF(DataLog!$C428=\"Log value\",DataLog!Z428,\"\")","v":""},{"$f":"IF(DataLog!$C428=\"Log value\",DataLog!AA428,\"\")","v":""},{"$f":"IF(DataLog!$C428=\"Log value\",DataLog!AB428,\"\")","v":""},{"$f":"IF(DataLog!$C428=\"Log value\",DataLog!AC428,\"\")","v":""},{"$f":"IF(DataLog!$C428=\"Log value\",DataLog!AD428,\"\")","v":""},{"$f":"IF(DataLog!$C428=\"Log value\",DataLog!AE428,\"\")","v":""},{"$f":"IF(DataLog!$C428=\"Log value\",DataLog!AF428,\"\")","v":""},{"$f":"IF(DataLog!$C428=\"Log value\",DataLog!AG428,\"\")","v":""},{"$f":"IF(DataLog!$C428=\"Log value\",DataLog!AH428,\"\")","v":""},{"$f":"IF(DataLog!$C428=\"Log value\",DataLog!AI428,\"\")","v":""},{"$f":"IF(DataLog!$C428=\"Log value\",DataLog!AJ428,\"\")","v":""},{"$f":"IF(DataLog!$C428=\"Log value\",DataLog!AK428,\"\")","v":""},{"$f":"IF(DataLog!$C428=\"Log value\",DataLog!AL428,\"\")","v":""},{"$f":"IF(DataLog!$C428=\"Log value\",DataLog!AM428,\"\")","v":""}]
[null,null,"Standard","Standard -  - ",null,null,{"$f":"IF(DataLog!$C429=\"Log value\",DataLog!D429&\"_\"&TEXT(DataLog!B429,\"åååå-mm-dd\"),\"\")","v":""},{"$f":"IF(DataLog!$C429=\"Log value\",DataLog!E429,\"\")","v":""},{"$f":"IF(DataLog!$C429=\"Log value\",DataLog!F429,\"\")","v":""},{"$f":"IF(DataLog!$C429=\"Log value\",DataLog!G429,\"\")","v":""},{"$f":"IF(DataLog!$C429=\"Log value\",DataLog!H429,\"\")","v":""},{"$f":"IF(DataLog!$C429=\"Log value\",DataLog!I429,\"\")","v":""},{"$f":"IF(DataLog!$C429=\"Log value\",DataLog!J429,\"\")","v":""},{"$f":"IF(DataLog!$C429=\"Log value\",DataLog!K429,\"\")","v":""},{"$f":"IF(DataLog!$C429=\"Log value\",DataLog!L429,\"\")","v":""},{"$f":"IF(DataLog!$C429=\"Log value\",DataLog!M429,\"\")","v":""},{"$f":"IF(DataLog!$C429=\"Log value\",DataLog!N429,\"\")","v":""},{"$f":"IF(DataLog!$C429=\"Log value\",DataLog!O429,\"\")","v":""},{"$f":"IF(DataLog!$C429=\"Log value\",DataLog!P429,\"\")","v":""},{"$f":"IF(DataLog!$C429=\"Log value\",DataLog!Q429,\"\")","v":""},{"$f":"IF(DataLog!$C429=\"Log value\",DataLog!R429,\"\")","v":""},{"$f":"IF(DataLog!$C429=\"Log value\",DataLog!S429,\"\")","v":""},{"$f":"IF(DataLog!$C429=\"Log value\",DataLog!T429,\"\")","v":""},{"$f":"IF(DataLog!$C429=\"Log value\",DataLog!U429,\"\")","v":""},{"$f":"IF(DataLog!$C429=\"Log value\",DataLog!V429,\"\")","v":""},{"$f":"IF(DataLog!$C429=\"Log value\",DataLog!W429,\"\")","v":""},{"$f":"IF(DataLog!$C429=\"Log value\",DataLog!X429,\"\")","v":""},{"$f":"IF(DataLog!$C429=\"Log value\",DataLog!Y429,\"\")","v":""},{"$f":"IF(DataLog!$C429=\"Log value\",DataLog!Z429,\"\")","v":""},{"$f":"IF(DataLog!$C429=\"Log value\",DataLog!AA429,\"\")","v":""},{"$f":"IF(DataLog!$C429=\"Log value\",DataLog!AB429,\"\")","v":""},{"$f":"IF(DataLog!$C429=\"Log value\",DataLog!AC429,\"\")","v":""},{"$f":"IF(DataLog!$C429=\"Log value\",DataLog!AD429,\"\")","v":""},{"$f":"IF(DataLog!$C429=\"Log value\",DataLog!AE429,\"\")","v":""},{"$f":"IF(DataLog!$C429=\"Log value\",DataLog!AF429,\"\")","v":""},{"$f":"IF(DataLog!$C429=\"Log value\",DataLog!AG429,\"\")","v":""},{"$f":"IF(DataLog!$C429=\"Log value\",DataLog!AH429,\"\")","v":""},{"$f":"IF(DataLog!$C429=\"Log value\",DataLog!AI429,\"\")","v":""},{"$f":"IF(DataLog!$C429=\"Log value\",DataLog!AJ429,\"\")","v":""},{"$f":"IF(DataLog!$C429=\"Log value\",DataLog!AK429,\"\")","v":""},{"$f":"IF(DataLog!$C429=\"Log value\",DataLog!AL429,\"\")","v":""},{"$f":"IF(DataLog!$C429=\"Log value\",DataLog!AM429,\"\")","v":""}]
[null,null,"Standard","Standard -  - ",null,null,{"$f":"IF(DataLog!$C430=\"Log value\",DataLog!D430&\"_\"&TEXT(DataLog!B430,\"åååå-mm-dd\"),\"\")","v":""},{"$f":"IF(DataLog!$C430=\"Log value\",DataLog!E430,\"\")","v":""},{"$f":"IF(DataLog!$C430=\"Log value\",DataLog!F430,\"\")","v":""},{"$f":"IF(DataLog!$C430=\"Log value\",DataLog!G430,\"\")","v":""},{"$f":"IF(DataLog!$C430=\"Log value\",DataLog!H430,\"\")","v":""},{"$f":"IF(DataLog!$C430=\"Log value\",DataLog!I430,\"\")","v":""},{"$f":"IF(DataLog!$C430=\"Log value\",DataLog!J430,\"\")","v":""},{"$f":"IF(DataLog!$C430=\"Log value\",DataLog!K430,\"\")","v":""},{"$f":"IF(DataLog!$C430=\"Log value\",DataLog!L430,\"\")","v":""},{"$f":"IF(DataLog!$C430=\"Log value\",DataLog!M430,\"\")","v":""},{"$f":"IF(DataLog!$C430=\"Log value\",DataLog!N430,\"\")","v":""},{"$f":"IF(DataLog!$C430=\"Log value\",DataLog!O430,\"\")","v":""},{"$f":"IF(DataLog!$C430=\"Log value\",DataLog!P430,\"\")","v":""},{"$f":"IF(DataLog!$C430=\"Log value\",DataLog!Q430,\"\")","v":""},{"$f":"IF(DataLog!$C430=\"Log value\",DataLog!R430,\"\")","v":""},{"$f":"IF(DataLog!$C430=\"Log value\",DataLog!S430,\"\")","v":""},{"$f":"IF(DataLog!$C430=\"Log value\",DataLog!T430,\"\")","v":""},{"$f":"IF(DataLog!$C430=\"Log value\",DataLog!U430,\"\")","v":""},{"$f":"IF(DataLog!$C430=\"Log value\",DataLog!V430,\"\")","v":""},{"$f":"IF(DataLog!$C430=\"Log value\",DataLog!W430,\"\")","v":""},{"$f":"IF(DataLog!$C430=\"Log value\",DataLog!X430,\"\")","v":""},{"$f":"IF(DataLog!$C430=\"Log value\",DataLog!Y430,\"\")","v":""},{"$f":"IF(DataLog!$C430=\"Log value\",DataLog!Z430,\"\")","v":""},{"$f":"IF(DataLog!$C430=\"Log value\",DataLog!AA430,\"\")","v":""},{"$f":"IF(DataLog!$C430=\"Log value\",DataLog!AB430,\"\")","v":""},{"$f":"IF(DataLog!$C430=\"Log value\",DataLog!AC430,\"\")","v":""},{"$f":"IF(DataLog!$C430=\"Log value\",DataLog!AD430,\"\")","v":""},{"$f":"IF(DataLog!$C430=\"Log value\",DataLog!AE430,\"\")","v":""},{"$f":"IF(DataLog!$C430=\"Log value\",DataLog!AF430,\"\")","v":""},{"$f":"IF(DataLog!$C430=\"Log value\",DataLog!AG430,\"\")","v":""},{"$f":"IF(DataLog!$C430=\"Log value\",DataLog!AH430,\"\")","v":""},{"$f":"IF(DataLog!$C430=\"Log value\",DataLog!AI430,\"\")","v":""},{"$f":"IF(DataLog!$C430=\"Log value\",DataLog!AJ430,\"\")","v":""},{"$f":"IF(DataLog!$C430=\"Log value\",DataLog!AK430,\"\")","v":""},{"$f":"IF(DataLog!$C430=\"Log value\",DataLog!AL430,\"\")","v":""},{"$f":"IF(DataLog!$C430=\"Log value\",DataLog!AM430,\"\")","v":""}]
[null,null,"Standard","Standard -  - ",null,null,{"$f":"IF(DataLog!$C431=\"Log value\",DataLog!D431&\"_\"&TEXT(DataLog!B431,\"åååå-mm-dd\"),\"\")","v":""},{"$f":"IF(DataLog!$C431=\"Log value\",DataLog!E431,\"\")","v":""},{"$f":"IF(DataLog!$C431=\"Log value\",DataLog!F431,\"\")","v":""},{"$f":"IF(DataLog!$C431=\"Log value\",DataLog!G431,\"\")","v":""},{"$f":"IF(DataLog!$C431=\"Log value\",DataLog!H431,\"\")","v":""},{"$f":"IF(DataLog!$C431=\"Log value\",DataLog!I431,\"\")","v":""},{"$f":"IF(DataLog!$C431=\"Log value\",DataLog!J431,\"\")","v":""},{"$f":"IF(DataLog!$C431=\"Log value\",DataLog!K431,\"\")","v":""},{"$f":"IF(DataLog!$C431=\"Log value\",DataLog!L431,\"\")","v":""},{"$f":"IF(DataLog!$C431=\"Log value\",DataLog!M431,\"\")","v":""},{"$f":"IF(DataLog!$C431=\"Log value\",DataLog!N431,\"\")","v":""},{"$f":"IF(DataLog!$C431=\"Log value\",DataLog!O431,\"\")","v":""},{"$f":"IF(DataLog!$C431=\"Log value\",DataLog!P431,\"\")","v":""},{"$f":"IF(DataLog!$C431=\"Log value\",DataLog!Q431,\"\")","v":""},{"$f":"IF(DataLog!$C431=\"Log value\",DataLog!R431,\"\")","v":""},{"$f":"IF(DataLog!$C431=\"Log value\",DataLog!S431,\"\")","v":""},{"$f":"IF(DataLog!$C431=\"Log value\",DataLog!T431,\"\")","v":""},{"$f":"IF(DataLog!$C431=\"Log value\",DataLog!U431,\"\")","v":""},{"$f":"IF(DataLog!$C431=\"Log value\",DataLog!V431,\"\")","v":""},{"$f":"IF(DataLog!$C431=\"Log value\",DataLog!W431,\"\")","v":""},{"$f":"IF(DataLog!$C431=\"Log value\",DataLog!X431,\"\")","v":""},{"$f":"IF(DataLog!$C431=\"Log value\",DataLog!Y431,\"\")","v":""},{"$f":"IF(DataLog!$C431=\"Log value\",DataLog!Z431,\"\")","v":""},{"$f":"IF(DataLog!$C431=\"Log value\",DataLog!AA431,\"\")","v":""},{"$f":"IF(DataLog!$C431=\"Log value\",DataLog!AB431,\"\")","v":""},{"$f":"IF(DataLog!$C431=\"Log value\",DataLog!AC431,\"\")","v":""},{"$f":"IF(DataLog!$C431=\"Log value\",DataLog!AD431,\"\")","v":""},{"$f":"IF(DataLog!$C431=\"Log value\",DataLog!AE431,\"\")","v":""},{"$f":"IF(DataLog!$C431=\"Log value\",DataLog!AF431,\"\")","v":""},{"$f":"IF(DataLog!$C431=\"Log value\",DataLog!AG431,\"\")","v":""},{"$f":"IF(DataLog!$C431=\"Log value\",DataLog!AH431,\"\")","v":""},{"$f":"IF(DataLog!$C431=\"Log value\",DataLog!AI431,\"\")","v":""},{"$f":"IF(DataLog!$C431=\"Log value\",DataLog!AJ431,\"\")","v":""},{"$f":"IF(DataLog!$C431=\"Log value\",DataLog!AK431,\"\")","v":""},{"$f":"IF(DataLog!$C431=\"Log value\",DataLog!AL431,\"\")","v":""},{"$f":"IF(DataLog!$C431=\"Log value\",DataLog!AM431,\"\")","v":""}]
[null,null,"Standard","Standard -  - ",null,null,{"$f":"IF(DataLog!$C432=\"Log value\",DataLog!D432&\"_\"&TEXT(DataLog!B432,\"åååå-mm-dd\"),\"\")","v":""},{"$f":"IF(DataLog!$C432=\"Log value\",DataLog!E432,\"\")","v":""},{"$f":"IF(DataLog!$C432=\"Log value\",DataLog!F432,\"\")","v":""},{"$f":"IF(DataLog!$C432=\"Log value\",DataLog!G432,\"\")","v":""},{"$f":"IF(DataLog!$C432=\"Log value\",DataLog!H432,\"\")","v":""},{"$f":"IF(DataLog!$C432=\"Log value\",DataLog!I432,\"\")","v":""},{"$f":"IF(DataLog!$C432=\"Log value\",DataLog!J432,\"\")","v":""},{"$f":"IF(DataLog!$C432=\"Log value\",DataLog!K432,\"\")","v":""},{"$f":"IF(DataLog!$C432=\"Log value\",DataLog!L432,\"\")","v":""},{"$f":"IF(DataLog!$C432=\"Log value\",DataLog!M432,\"\")","v":""},{"$f":"IF(DataLog!$C432=\"Log value\",DataLog!N432,\"\")","v":""},{"$f":"IF(DataLog!$C432=\"Log value\",DataLog!O432,\"\")","v":""},{"$f":"IF(DataLog!$C432=\"Log value\",DataLog!P432,\"\")","v":""},{"$f":"IF(DataLog!$C432=\"Log value\",DataLog!Q432,\"\")","v":""},{"$f":"IF(DataLog!$C432=\"Log value\",DataLog!R432,\"\")","v":""},{"$f":"IF(DataLog!$C432=\"Log value\",DataLog!S432,\"\")","v":""},{"$f":"IF(DataLog!$C432=\"Log value\",DataLog!T432,\"\")","v":""},{"$f":"IF(DataLog!$C432=\"Log value\",DataLog!U432,\"\")","v":""},{"$f":"IF(DataLog!$C432=\"Log value\",DataLog!V432,\"\")","v":""},{"$f":"IF(DataLog!$C432=\"Log value\",DataLog!W432,\"\")","v":""},{"$f":"IF(DataLog!$C432=\"Log value\",DataLog!X432,\"\")","v":""},{"$f":"IF(DataLog!$C432=\"Log value\",DataLog!Y432,\"\")","v":""},{"$f":"IF(DataLog!$C432=\"Log value\",DataLog!Z432,\"\")","v":""},{"$f":"IF(DataLog!$C432=\"Log value\",DataLog!AA432,\"\")","v":""},{"$f":"IF(DataLog!$C432=\"Log value\",DataLog!AB432,\"\")","v":""},{"$f":"IF(DataLog!$C432=\"Log value\",DataLog!AC432,\"\")","v":""},{"$f":"IF(DataLog!$C432=\"Log value\",DataLog!AD432,\"\")","v":""},{"$f":"IF(DataLog!$C432=\"Log value\",DataLog!AE432,\"\")","v":""},{"$f":"IF(DataLog!$C432=\"Log value\",DataLog!AF432,\"\")","v":""},{"$f":"IF(DataLog!$C432=\"Log value\",DataLog!AG432,\"\")","v":""},{"$f":"IF(DataLog!$C432=\"Log value\",DataLog!AH432,\"\")","v":""},{"$f":"IF(DataLog!$C432=\"Log value\",DataLog!AI432,\"\")","v":""},{"$f":"IF(DataLog!$C432=\"Log value\",DataLog!AJ432,\"\")","v":""},{"$f":"IF(DataLog!$C432=\"Log value\",DataLog!AK432,\"\")","v":""},{"$f":"IF(DataLog!$C432=\"Log value\",DataLog!AL432,\"\")","v":""},{"$f":"IF(DataLog!$C432=\"Log value\",DataLog!AM432,\"\")","v":""}]
[null,null,"Standard","Standard -  - ",null,null,{"$f":"IF(DataLog!$C433=\"Log value\",DataLog!D433&\"_\"&TEXT(DataLog!B433,\"åååå-mm-dd\"),\"\")","v":""},{"$f":"IF(DataLog!$C433=\"Log value\",DataLog!E433,\"\")","v":""},{"$f":"IF(DataLog!$C433=\"Log value\",DataLog!F433,\"\")","v":""},{"$f":"IF(DataLog!$C433=\"Log value\",DataLog!G433,\"\")","v":""},{"$f":"IF(DataLog!$C433=\"Log value\",DataLog!H433,\"\")","v":""},{"$f":"IF(DataLog!$C433=\"Log value\",DataLog!I433,\"\")","v":""},{"$f":"IF(DataLog!$C433=\"Log value\",DataLog!J433,\"\")","v":""},{"$f":"IF(DataLog!$C433=\"Log value\",DataLog!K433,\"\")","v":""},{"$f":"IF(DataLog!$C433=\"Log value\",DataLog!L433,\"\")","v":""},{"$f":"IF(DataLog!$C433=\"Log value\",DataLog!M433,\"\")","v":""},{"$f":"IF(DataLog!$C433=\"Log value\",DataLog!N433,\"\")","v":""},{"$f":"IF(DataLog!$C433=\"Log value\",DataLog!O433,\"\")","v":""},{"$f":"IF(DataLog!$C433=\"Log value\",DataLog!P433,\"\")","v":""},{"$f":"IF(DataLog!$C433=\"Log value\",DataLog!Q433,\"\")","v":""},{"$f":"IF(DataLog!$C433=\"Log value\",DataLog!R433,\"\")","v":""},{"$f":"IF(DataLog!$C433=\"Log value\",DataLog!S433,\"\")","v":""},{"$f":"IF(DataLog!$C433=\"Log value\",DataLog!T433,\"\")","v":""},{"$f":"IF(DataLog!$C433=\"Log value\",DataLog!U433,\"\")","v":""},{"$f":"IF(DataLog!$C433=\"Log value\",DataLog!V433,\"\")","v":""},{"$f":"IF(DataLog!$C433=\"Log value\",DataLog!W433,\"\")","v":""},{"$f":"IF(DataLog!$C433=\"Log value\",DataLog!X433,\"\")","v":""},{"$f":"IF(DataLog!$C433=\"Log value\",DataLog!Y433,\"\")","v":""},{"$f":"IF(DataLog!$C433=\"Log value\",DataLog!Z433,\"\")","v":""},{"$f":"IF(DataLog!$C433=\"Log value\",DataLog!AA433,\"\")","v":""},{"$f":"IF(DataLog!$C433=\"Log value\",DataLog!AB433,\"\")","v":""},{"$f":"IF(DataLog!$C433=\"Log value\",DataLog!AC433,\"\")","v":""},{"$f":"IF(DataLog!$C433=\"Log value\",DataLog!AD433,\"\")","v":""},{"$f":"IF(DataLog!$C433=\"Log value\",DataLog!AE433,\"\")","v":""},{"$f":"IF(DataLog!$C433=\"Log value\",DataLog!AF433,\"\")","v":""},{"$f":"IF(DataLog!$C433=\"Log value\",DataLog!AG433,\"\")","v":""},{"$f":"IF(DataLog!$C433=\"Log value\",DataLog!AH433,\"\")","v":""},{"$f":"IF(DataLog!$C433=\"Log value\",DataLog!AI433,\"\")","v":""},{"$f":"IF(DataLog!$C433=\"Log value\",DataLog!AJ433,\"\")","v":""},{"$f":"IF(DataLog!$C433=\"Log value\",DataLog!AK433,\"\")","v":""},{"$f":"IF(DataLog!$C433=\"Log value\",DataLog!AL433,\"\")","v":""},{"$f":"IF(DataLog!$C433=\"Log value\",DataLog!AM433,\"\")","v":""}]
[null,null,"Standard","Standard -  - ",null,null,{"$f":"IF(DataLog!$C434=\"Log value\",DataLog!D434&\"_\"&TEXT(DataLog!B434,\"åååå-mm-dd\"),\"\")","v":""},{"$f":"IF(DataLog!$C434=\"Log value\",DataLog!E434,\"\")","v":""},{"$f":"IF(DataLog!$C434=\"Log value\",DataLog!F434,\"\")","v":""},{"$f":"IF(DataLog!$C434=\"Log value\",DataLog!G434,\"\")","v":""},{"$f":"IF(DataLog!$C434=\"Log value\",DataLog!H434,\"\")","v":""},{"$f":"IF(DataLog!$C434=\"Log value\",DataLog!I434,\"\")","v":""},{"$f":"IF(DataLog!$C434=\"Log value\",DataLog!J434,\"\")","v":""},{"$f":"IF(DataLog!$C434=\"Log value\",DataLog!K434,\"\")","v":""},{"$f":"IF(DataLog!$C434=\"Log value\",DataLog!L434,\"\")","v":""},{"$f":"IF(DataLog!$C434=\"Log value\",DataLog!M434,\"\")","v":""},{"$f":"IF(DataLog!$C434=\"Log value\",DataLog!N434,\"\")","v":""},{"$f":"IF(DataLog!$C434=\"Log value\",DataLog!O434,\"\")","v":""},{"$f":"IF(DataLog!$C434=\"Log value\",DataLog!P434,\"\")","v":""},{"$f":"IF(DataLog!$C434=\"Log value\",DataLog!Q434,\"\")","v":""},{"$f":"IF(DataLog!$C434=\"Log value\",DataLog!R434,\"\")","v":""},{"$f":"IF(DataLog!$C434=\"Log value\",DataLog!S434,\"\")","v":""},{"$f":"IF(DataLog!$C434=\"Log value\",DataLog!T434,\"\")","v":""},{"$f":"IF(DataLog!$C434=\"Log value\",DataLog!U434,\"\")","v":""},{"$f":"IF(DataLog!$C434=\"Log value\",DataLog!V434,\"\")","v":""},{"$f":"IF(DataLog!$C434=\"Log value\",DataLog!W434,\"\")","v":""},{"$f":"IF(DataLog!$C434=\"Log value\",DataLog!X434,\"\")","v":""},{"$f":"IF(DataLog!$C434=\"Log value\",DataLog!Y434,\"\")","v":""},{"$f":"IF(DataLog!$C434=\"Log value\",DataLog!Z434,\"\")","v":""},{"$f":"IF(DataLog!$C434=\"Log value\",DataLog!AA434,\"\")","v":""},{"$f":"IF(DataLog!$C434=\"Log value\",DataLog!AB434,\"\")","v":""},{"$f":"IF(DataLog!$C434=\"Log value\",DataLog!AC434,\"\")","v":""},{"$f":"IF(DataLog!$C434=\"Log value\",DataLog!AD434,\"\")","v":""},{"$f":"IF(DataLog!$C434=\"Log value\",DataLog!AE434,\"\")","v":""},{"$f":"IF(DataLog!$C434=\"Log value\",DataLog!AF434,\"\")","v":""},{"$f":"IF(DataLog!$C434=\"Log value\",DataLog!AG434,\"\")","v":""},{"$f":"IF(DataLog!$C434=\"Log value\",DataLog!AH434,\"\")","v":""},{"$f":"IF(DataLog!$C434=\"Log value\",DataLog!AI434,\"\")","v":""},{"$f":"IF(DataLog!$C434=\"Log value\",DataLog!AJ434,\"\")","v":""},{"$f":"IF(DataLog!$C434=\"Log value\",DataLog!AK434,\"\")","v":""},{"$f":"IF(DataLog!$C434=\"Log value\",DataLog!AL434,\"\")","v":""},{"$f":"IF(DataLog!$C434=\"Log value\",DataLog!AM434,\"\")","v":""}]
[null,null,"Standard","Standard -  - ",null,null,{"$f":"IF(DataLog!$C435=\"Log value\",DataLog!D435&\"_\"&TEXT(DataLog!B435,\"åååå-mm-dd\"),\"\")","v":""},{"$f":"IF(DataLog!$C435=\"Log value\",DataLog!E435,\"\")","v":""},{"$f":"IF(DataLog!$C435=\"Log value\",DataLog!F435,\"\")","v":""},{"$f":"IF(DataLog!$C435=\"Log value\",DataLog!G435,\"\")","v":""},{"$f":"IF(DataLog!$C435=\"Log value\",DataLog!H435,\"\")","v":""},{"$f":"IF(DataLog!$C435=\"Log value\",DataLog!I435,\"\")","v":""},{"$f":"IF(DataLog!$C435=\"Log value\",DataLog!J435,\"\")","v":""},{"$f":"IF(DataLog!$C435=\"Log value\",DataLog!K435,\"\")","v":""},{"$f":"IF(DataLog!$C435=\"Log value\",DataLog!L435,\"\")","v":""},{"$f":"IF(DataLog!$C435=\"Log value\",DataLog!M435,\"\")","v":""},{"$f":"IF(DataLog!$C435=\"Log value\",DataLog!N435,\"\")","v":""},{"$f":"IF(DataLog!$C435=\"Log value\",DataLog!O435,\"\")","v":""},{"$f":"IF(DataLog!$C435=\"Log value\",DataLog!P435,\"\")","v":""},{"$f":"IF(DataLog!$C435=\"Log value\",DataLog!Q435,\"\")","v":""},{"$f":"IF(DataLog!$C435=\"Log value\",DataLog!R435,\"\")","v":""},{"$f":"IF(DataLog!$C435=\"Log value\",DataLog!S435,\"\")","v":""},{"$f":"IF(DataLog!$C435=\"Log value\",DataLog!T435,\"\")","v":""},{"$f":"IF(DataLog!$C435=\"Log value\",DataLog!U435,\"\")","v":""},{"$f":"IF(DataLog!$C435=\"Log value\",DataLog!V435,\"\")","v":""},{"$f":"IF(DataLog!$C435=\"Log value\",DataLog!W435,\"\")","v":""},{"$f":"IF(DataLog!$C435=\"Log value\",DataLog!X435,\"\")","v":""},{"$f":"IF(DataLog!$C435=\"Log value\",DataLog!Y435,\"\")","v":""},{"$f":"IF(DataLog!$C435=\"Log value\",DataLog!Z435,\"\")","v":""},{"$f":"IF(DataLog!$C435=\"Log value\",DataLog!AA435,\"\")","v":""},{"$f":"IF(DataLog!$C435=\"Log value\",DataLog!AB435,\"\")","v":""},{"$f":"IF(DataLog!$C435=\"Log value\",DataLog!AC435,\"\")","v":""},{"$f":"IF(DataLog!$C435=\"Log value\",DataLog!AD435,\"\")","v":""},{"$f":"IF(DataLog!$C435=\"Log value\",DataLog!AE435,\"\")","v":""},{"$f":"IF(DataLog!$C435=\"Log value\",DataLog!AF435,\"\")","v":""},{"$f":"IF(DataLog!$C435=\"Log value\",DataLog!AG435,\"\")","v":""},{"$f":"IF(DataLog!$C435=\"Log value\",DataLog!AH435,\"\")","v":""},{"$f":"IF(DataLog!$C435=\"Log value\",DataLog!AI435,\"\")","v":""},{"$f":"IF(DataLog!$C435=\"Log value\",DataLog!AJ435,\"\")","v":""},{"$f":"IF(DataLog!$C435=\"Log value\",DataLog!AK435,\"\")","v":""},{"$f":"IF(DataLog!$C435=\"Log value\",DataLog!AL435,\"\")","v":""},{"$f":"IF(DataLog!$C435=\"Log value\",DataLog!AM435,\"\")","v":""}]
[null,null,"Standard","Standard -  - ",null,null,{"$f":"IF(DataLog!$C436=\"Log value\",DataLog!D436&\"_\"&TEXT(DataLog!B436,\"åååå-mm-dd\"),\"\")","v":""},{"$f":"IF(DataLog!$C436=\"Log value\",DataLog!E436,\"\")","v":""},{"$f":"IF(DataLog!$C436=\"Log value\",DataLog!F436,\"\")","v":""},{"$f":"IF(DataLog!$C436=\"Log value\",DataLog!G436,\"\")","v":""},{"$f":"IF(DataLog!$C436=\"Log value\",DataLog!H436,\"\")","v":""},{"$f":"IF(DataLog!$C436=\"Log value\",DataLog!I436,\"\")","v":""},{"$f":"IF(DataLog!$C436=\"Log value\",DataLog!J436,\"\")","v":""},{"$f":"IF(DataLog!$C436=\"Log value\",DataLog!K436,\"\")","v":""},{"$f":"IF(DataLog!$C436=\"Log value\",DataLog!L436,\"\")","v":""},{"$f":"IF(DataLog!$C436=\"Log value\",DataLog!M436,\"\")","v":""},{"$f":"IF(DataLog!$C436=\"Log value\",DataLog!N436,\"\")","v":""},{"$f":"IF(DataLog!$C436=\"Log value\",DataLog!O436,\"\")","v":""},{"$f":"IF(DataLog!$C436=\"Log value\",DataLog!P436,\"\")","v":""},{"$f":"IF(DataLog!$C436=\"Log value\",DataLog!Q436,\"\")","v":""},{"$f":"IF(DataLog!$C436=\"Log value\",DataLog!R436,\"\")","v":""},{"$f":"IF(DataLog!$C436=\"Log value\",DataLog!S436,\"\")","v":""},{"$f":"IF(DataLog!$C436=\"Log value\",DataLog!T436,\"\")","v":""},{"$f":"IF(DataLog!$C436=\"Log value\",DataLog!U436,\"\")","v":""},{"$f":"IF(DataLog!$C436=\"Log value\",DataLog!V436,\"\")","v":""},{"$f":"IF(DataLog!$C436=\"Log value\",DataLog!W436,\"\")","v":""},{"$f":"IF(DataLog!$C436=\"Log value\",DataLog!X436,\"\")","v":""},{"$f":"IF(DataLog!$C436=\"Log value\",DataLog!Y436,\"\")","v":""},{"$f":"IF(DataLog!$C436=\"Log value\",DataLog!Z436,\"\")","v":""},{"$f":"IF(DataLog!$C436=\"Log value\",DataLog!AA436,\"\")","v":""},{"$f":"IF(DataLog!$C436=\"Log value\",DataLog!AB436,\"\")","v":""},{"$f":"IF(DataLog!$C436=\"Log value\",DataLog!AC436,\"\")","v":""},{"$f":"IF(DataLog!$C436=\"Log value\",DataLog!AD436,\"\")","v":""},{"$f":"IF(DataLog!$C436=\"Log value\",DataLog!AE436,\"\")","v":""},{"$f":"IF(DataLog!$C436=\"Log value\",DataLog!AF436,\"\")","v":""},{"$f":"IF(DataLog!$C436=\"Log value\",DataLog!AG436,\"\")","v":""},{"$f":"IF(DataLog!$C436=\"Log value\",DataLog!AH436,\"\")","v":""},{"$f":"IF(DataLog!$C436=\"Log value\",DataLog!AI436,\"\")","v":""},{"$f":"IF(DataLog!$C436=\"Log value\",DataLog!AJ436,\"\")","v":""},{"$f":"IF(DataLog!$C436=\"Log value\",DataLog!AK436,\"\")","v":""},{"$f":"IF(DataLog!$C436=\"Log value\",DataLog!AL436,\"\")","v":""},{"$f":"IF(DataLog!$C436=\"Log value\",DataLog!AM436,\"\")","v":""}]
[null,null,"Standard","Standard -  - ",null,null,{"$f":"IF(DataLog!$C437=\"Log value\",DataLog!D437&\"_\"&TEXT(DataLog!B437,\"åååå-mm-dd\"),\"\")","v":""},{"$f":"IF(DataLog!$C437=\"Log value\",DataLog!E437,\"\")","v":""},{"$f":"IF(DataLog!$C437=\"Log value\",DataLog!F437,\"\")","v":""},{"$f":"IF(DataLog!$C437=\"Log value\",DataLog!G437,\"\")","v":""},{"$f":"IF(DataLog!$C437=\"Log value\",DataLog!H437,\"\")","v":""},{"$f":"IF(DataLog!$C437=\"Log value\",DataLog!I437,\"\")","v":""},{"$f":"IF(DataLog!$C437=\"Log value\",DataLog!J437,\"\")","v":""},{"$f":"IF(DataLog!$C437=\"Log value\",DataLog!K437,\"\")","v":""},{"$f":"IF(DataLog!$C437=\"Log value\",DataLog!L437,\"\")","v":""},{"$f":"IF(DataLog!$C437=\"Log value\",DataLog!M437,\"\")","v":""},{"$f":"IF(DataLog!$C437=\"Log value\",DataLog!N437,\"\")","v":""},{"$f":"IF(DataLog!$C437=\"Log value\",DataLog!O437,\"\")","v":""},{"$f":"IF(DataLog!$C437=\"Log value\",DataLog!P437,\"\")","v":""},{"$f":"IF(DataLog!$C437=\"Log value\",DataLog!Q437,\"\")","v":""},{"$f":"IF(DataLog!$C437=\"Log value\",DataLog!R437,\"\")","v":""},{"$f":"IF(DataLog!$C437=\"Log value\",DataLog!S437,\"\")","v":""},{"$f":"IF(DataLog!$C437=\"Log value\",DataLog!T437,\"\")","v":""},{"$f":"IF(DataLog!$C437=\"Log value\",DataLog!U437,\"\")","v":""},{"$f":"IF(DataLog!$C437=\"Log value\",DataLog!V437,\"\")","v":""},{"$f":"IF(DataLog!$C437=\"Log value\",DataLog!W437,\"\")","v":""},{"$f":"IF(DataLog!$C437=\"Log value\",DataLog!X437,\"\")","v":""},{"$f":"IF(DataLog!$C437=\"Log value\",DataLog!Y437,\"\")","v":""},{"$f":"IF(DataLog!$C437=\"Log value\",DataLog!Z437,\"\")","v":""},{"$f":"IF(DataLog!$C437=\"Log value\",DataLog!AA437,\"\")","v":""},{"$f":"IF(DataLog!$C437=\"Log value\",DataLog!AB437,\"\")","v":""},{"$f":"IF(DataLog!$C437=\"Log value\",DataLog!AC437,\"\")","v":""},{"$f":"IF(DataLog!$C437=\"Log value\",DataLog!AD437,\"\")","v":""},{"$f":"IF(DataLog!$C437=\"Log value\",DataLog!AE437,\"\")","v":""},{"$f":"IF(DataLog!$C437=\"Log value\",DataLog!AF437,\"\")","v":""},{"$f":"IF(DataLog!$C437=\"Log value\",DataLog!AG437,\"\")","v":""},{"$f":"IF(DataLog!$C437=\"Log value\",DataLog!AH437,\"\")","v":""},{"$f":"IF(DataLog!$C437=\"Log value\",DataLog!AI437,\"\")","v":""},{"$f":"IF(DataLog!$C437=\"Log value\",DataLog!AJ437,\"\")","v":""},{"$f":"IF(DataLog!$C437=\"Log value\",DataLog!AK437,\"\")","v":""},{"$f":"IF(DataLog!$C437=\"Log value\",DataLog!AL437,\"\")","v":""},{"$f":"IF(DataLog!$C437=\"Log value\",DataLog!AM437,\"\")","v":""}]
[null,null,"Standard","Standard -  - ",null,null,{"$f":"IF(DataLog!$C438=\"Log value\",DataLog!D438&\"_\"&TEXT(DataLog!B438,\"åååå-mm-dd\"),\"\")","v":""},{"$f":"IF(DataLog!$C438=\"Log value\",DataLog!E438,\"\")","v":""},{"$f":"IF(DataLog!$C438=\"Log value\",DataLog!F438,\"\")","v":""},{"$f":"IF(DataLog!$C438=\"Log value\",DataLog!G438,\"\")","v":""},{"$f":"IF(DataLog!$C438=\"Log value\",DataLog!H438,\"\")","v":""},{"$f":"IF(DataLog!$C438=\"Log value\",DataLog!I438,\"\")","v":""},{"$f":"IF(DataLog!$C438=\"Log value\",DataLog!J438,\"\")","v":""},{"$f":"IF(DataLog!$C438=\"Log value\",DataLog!K438,\"\")","v":""},{"$f":"IF(DataLog!$C438=\"Log value\",DataLog!L438,\"\")","v":""},{"$f":"IF(DataLog!$C438=\"Log value\",DataLog!M438,\"\")","v":""},{"$f":"IF(DataLog!$C438=\"Log value\",DataLog!N438,\"\")","v":""},{"$f":"IF(DataLog!$C438=\"Log value\",DataLog!O438,\"\")","v":""},{"$f":"IF(DataLog!$C438=\"Log value\",DataLog!P438,\"\")","v":""},{"$f":"IF(DataLog!$C438=\"Log value\",DataLog!Q438,\"\")","v":""},{"$f":"IF(DataLog!$C438=\"Log value\",DataLog!R438,\"\")","v":""},{"$f":"IF(DataLog!$C438=\"Log value\",DataLog!S438,\"\")","v":""},{"$f":"IF(DataLog!$C438=\"Log value\",DataLog!T438,\"\")","v":""},{"$f":"IF(DataLog!$C438=\"Log value\",DataLog!U438,\"\")","v":""},{"$f":"IF(DataLog!$C438=\"Log value\",DataLog!V438,\"\")","v":""},{"$f":"IF(DataLog!$C438=\"Log value\",DataLog!W438,\"\")","v":""},{"$f":"IF(DataLog!$C438=\"Log value\",DataLog!X438,\"\")","v":""},{"$f":"IF(DataLog!$C438=\"Log value\",DataLog!Y438,\"\")","v":""},{"$f":"IF(DataLog!$C438=\"Log value\",DataLog!Z438,\"\")","v":""},{"$f":"IF(DataLog!$C438=\"Log value\",DataLog!AA438,\"\")","v":""},{"$f":"IF(DataLog!$C438=\"Log value\",DataLog!AB438,\"\")","v":""},{"$f":"IF(DataLog!$C438=\"Log value\",DataLog!AC438,\"\")","v":""},{"$f":"IF(DataLog!$C438=\"Log value\",DataLog!AD438,\"\")","v":""},{"$f":"IF(DataLog!$C438=\"Log value\",DataLog!AE438,\"\")","v":""},{"$f":"IF(DataLog!$C438=\"Log value\",DataLog!AF438,\"\")","v":""},{"$f":"IF(DataLog!$C438=\"Log value\",DataLog!AG438,\"\")","v":""},{"$f":"IF(DataLog!$C438=\"Log value\",DataLog!AH438,\"\")","v":""},{"$f":"IF(DataLog!$C438=\"Log value\",DataLog!AI438,\"\")","v":""},{"$f":"IF(DataLog!$C438=\"Log value\",DataLog!AJ438,\"\")","v":""},{"$f":"IF(DataLog!$C438=\"Log value\",DataLog!AK438,\"\")","v":""},{"$f":"IF(DataLog!$C438=\"Log value\",DataLog!AL438,\"\")","v":""},{"$f":"IF(DataLog!$C438=\"Log value\",DataLog!AM438,\"\")","v":""}]
[null,null,"Standard","Standard -  - ",null,null,{"$f":"IF(DataLog!$C439=\"Log value\",DataLog!D439&\"_\"&TEXT(DataLog!B439,\"åååå-mm-dd\"),\"\")","v":""},{"$f":"IF(DataLog!$C439=\"Log value\",DataLog!E439,\"\")","v":""},{"$f":"IF(DataLog!$C439=\"Log value\",DataLog!F439,\"\")","v":""},{"$f":"IF(DataLog!$C439=\"Log value\",DataLog!G439,\"\")","v":""},{"$f":"IF(DataLog!$C439=\"Log value\",DataLog!H439,\"\")","v":""},{"$f":"IF(DataLog!$C439=\"Log value\",DataLog!I439,\"\")","v":""},{"$f":"IF(DataLog!$C439=\"Log value\",DataLog!J439,\"\")","v":""},{"$f":"IF(DataLog!$C439=\"Log value\",DataLog!K439,\"\")","v":""},{"$f":"IF(DataLog!$C439=\"Log value\",DataLog!L439,\"\")","v":""},{"$f":"IF(DataLog!$C439=\"Log value\",DataLog!M439,\"\")","v":""},{"$f":"IF(DataLog!$C439=\"Log value\",DataLog!N439,\"\")","v":""},{"$f":"IF(DataLog!$C439=\"Log value\",DataLog!O439,\"\")","v":""},{"$f":"IF(DataLog!$C439=\"Log value\",DataLog!P439,\"\")","v":""},{"$f":"IF(DataLog!$C439=\"Log value\",DataLog!Q439,\"\")","v":""},{"$f":"IF(DataLog!$C439=\"Log value\",DataLog!R439,\"\")","v":""},{"$f":"IF(DataLog!$C439=\"Log value\",DataLog!S439,\"\")","v":""},{"$f":"IF(DataLog!$C439=\"Log value\",DataLog!T439,\"\")","v":""},{"$f":"IF(DataLog!$C439=\"Log value\",DataLog!U439,\"\")","v":""},{"$f":"IF(DataLog!$C439=\"Log value\",DataLog!V439,\"\")","v":""},{"$f":"IF(DataLog!$C439=\"Log value\",DataLog!W439,\"\")","v":""},{"$f":"IF(DataLog!$C439=\"Log value\",DataLog!X439,\"\")","v":""},{"$f":"IF(DataLog!$C439=\"Log value\",DataLog!Y439,\"\")","v":""},{"$f":"IF(DataLog!$C439=\"Log value\",DataLog!Z439,\"\")","v":""},{"$f":"IF(DataLog!$C439=\"Log value\",DataLog!AA439,\"\")","v":""},{"$f":"IF(DataLog!$C439=\"Log value\",DataLog!AB439,\"\")","v":""},{"$f":"IF(DataLog!$C439=\"Log value\",DataLog!AC439,\"\")","v":""},{"$f":"IF(DataLog!$C439=\"Log value\",DataLog!AD439,\"\")","v":""},{"$f":"IF(DataLog!$C439=\"Log value\",DataLog!AE439,\"\")","v":""},{"$f":"IF(DataLog!$C439=\"Log value\",DataLog!AF439,\"\")","v":""},{"$f":"IF(DataLog!$C439=\"Log value\",DataLog!AG439,\"\")","v":""},{"$f":"IF(DataLog!$C439=\"Log value\",DataLog!AH439,\"\")","v":""},{"$f":"IF(DataLog!$C439=\"Log value\",DataLog!AI439,\"\")","v":""},{"$f":"IF(DataLog!$C439=\"Log value\",DataLog!AJ439,\"\")","v":""},{"$f":"IF(DataLog!$C439=\"Log value\",DataLog!AK439,\"\")","v":""},{"$f":"IF(DataLog!$C439=\"Log value\",DataLog!AL439,\"\")","v":""},{"$f":"IF(DataLog!$C439=\"Log value\",DataLog!AM439,\"\")","v":""}]
[null,null,"Standard","Standard -  - ",null,null,{"$f":"IF(DataLog!$C440=\"Log value\",DataLog!D440&\"_\"&TEXT(DataLog!B440,\"åååå-mm-dd\"),\"\")","v":""},{"$f":"IF(DataLog!$C440=\"Log value\",DataLog!E440,\"\")","v":""},{"$f":"IF(DataLog!$C440=\"Log value\",DataLog!F440,\"\")","v":""},{"$f":"IF(DataLog!$C440=\"Log value\",DataLog!G440,\"\")","v":""},{"$f":"IF(DataLog!$C440=\"Log value\",DataLog!H440,\"\")","v":""},{"$f":"IF(DataLog!$C440=\"Log value\",DataLog!I440,\"\")","v":""},{"$f":"IF(DataLog!$C440=\"Log value\",DataLog!J440,\"\")","v":""},{"$f":"IF(DataLog!$C440=\"Log value\",DataLog!K440,\"\")","v":""},{"$f":"IF(DataLog!$C440=\"Log value\",DataLog!L440,\"\")","v":""},{"$f":"IF(DataLog!$C440=\"Log value\",DataLog!M440,\"\")","v":""},{"$f":"IF(DataLog!$C440=\"Log value\",DataLog!N440,\"\")","v":""},{"$f":"IF(DataLog!$C440=\"Log value\",DataLog!O440,\"\")","v":""},{"$f":"IF(DataLog!$C440=\"Log value\",DataLog!P440,\"\")","v":""},{"$f":"IF(DataLog!$C440=\"Log value\",DataLog!Q440,\"\")","v":""},{"$f":"IF(DataLog!$C440=\"Log value\",DataLog!R440,\"\")","v":""},{"$f":"IF(DataLog!$C440=\"Log value\",DataLog!S440,\"\")","v":""},{"$f":"IF(DataLog!$C440=\"Log value\",DataLog!T440,\"\")","v":""},{"$f":"IF(DataLog!$C440=\"Log value\",DataLog!U440,\"\")","v":""},{"$f":"IF(DataLog!$C440=\"Log value\",DataLog!V440,\"\")","v":""},{"$f":"IF(DataLog!$C440=\"Log value\",DataLog!W440,\"\")","v":""},{"$f":"IF(DataLog!$C440=\"Log value\",DataLog!X440,\"\")","v":""},{"$f":"IF(DataLog!$C440=\"Log value\",DataLog!Y440,\"\")","v":""},{"$f":"IF(DataLog!$C440=\"Log value\",DataLog!Z440,\"\")","v":""},{"$f":"IF(DataLog!$C440=\"Log value\",DataLog!AA440,\"\")","v":""},{"$f":"IF(DataLog!$C440=\"Log value\",DataLog!AB440,\"\")","v":""},{"$f":"IF(DataLog!$C440=\"Log value\",DataLog!AC440,\"\")","v":""},{"$f":"IF(DataLog!$C440=\"Log value\",DataLog!AD440,\"\")","v":""},{"$f":"IF(DataLog!$C440=\"Log value\",DataLog!AE440,\"\")","v":""},{"$f":"IF(DataLog!$C440=\"Log value\",DataLog!AF440,\"\")","v":""},{"$f":"IF(DataLog!$C440=\"Log value\",DataLog!AG440,\"\")","v":""},{"$f":"IF(DataLog!$C440=\"Log value\",DataLog!AH440,\"\")","v":""},{"$f":"IF(DataLog!$C440=\"Log value\",DataLog!AI440,\"\")","v":""},{"$f":"IF(DataLog!$C440=\"Log value\",DataLog!AJ440,\"\")","v":""},{"$f":"IF(DataLog!$C440=\"Log value\",DataLog!AK440,\"\")","v":""},{"$f":"IF(DataLog!$C440=\"Log value\",DataLog!AL440,\"\")","v":""},{"$f":"IF(DataLog!$C440=\"Log value\",DataLog!AM440,\"\")","v":""}]
[null,null,"Standard","Standard -  - ",null,null,{"$f":"IF(DataLog!$C441=\"Log value\",DataLog!D441&\"_\"&TEXT(DataLog!B441,\"åååå-mm-dd\"),\"\")","v":""},{"$f":"IF(DataLog!$C441=\"Log value\",DataLog!E441,\"\")","v":""},{"$f":"IF(DataLog!$C441=\"Log value\",DataLog!F441,\"\")","v":""},{"$f":"IF(DataLog!$C441=\"Log value\",DataLog!G441,\"\")","v":""},{"$f":"IF(DataLog!$C441=\"Log value\",DataLog!H441,\"\")","v":""},{"$f":"IF(DataLog!$C441=\"Log value\",DataLog!I441,\"\")","v":""},{"$f":"IF(DataLog!$C441=\"Log value\",DataLog!J441,\"\")","v":""},{"$f":"IF(DataLog!$C441=\"Log value\",DataLog!K441,\"\")","v":""},{"$f":"IF(DataLog!$C441=\"Log value\",DataLog!L441,\"\")","v":""},{"$f":"IF(DataLog!$C441=\"Log value\",DataLog!M441,\"\")","v":""},{"$f":"IF(DataLog!$C441=\"Log value\",DataLog!N441,\"\")","v":""},{"$f":"IF(DataLog!$C441=\"Log value\",DataLog!O441,\"\")","v":""},{"$f":"IF(DataLog!$C441=\"Log value\",DataLog!P441,\"\")","v":""},{"$f":"IF(DataLog!$C441=\"Log value\",DataLog!Q441,\"\")","v":""},{"$f":"IF(DataLog!$C441=\"Log value\",DataLog!R441,\"\")","v":""},{"$f":"IF(DataLog!$C441=\"Log value\",DataLog!S441,\"\")","v":""},{"$f":"IF(DataLog!$C441=\"Log value\",DataLog!T441,\"\")","v":""},{"$f":"IF(DataLog!$C441=\"Log value\",DataLog!U441,\"\")","v":""},{"$f":"IF(DataLog!$C441=\"Log value\",DataLog!V441,\"\")","v":""},{"$f":"IF(DataLog!$C441=\"Log value\",DataLog!W441,\"\")","v":""},{"$f":"IF(DataLog!$C441=\"Log value\",DataLog!X441,\"\")","v":""},{"$f":"IF(DataLog!$C441=\"Log value\",DataLog!Y441,\"\")","v":""},{"$f":"IF(DataLog!$C441=\"Log value\",DataLog!Z441,\"\")","v":""},{"$f":"IF(DataLog!$C441=\"Log value\",DataLog!AA441,\"\")","v":""},{"$f":"IF(DataLog!$C441=\"Log value\",DataLog!AB441,\"\")","v":""},{"$f":"IF(DataLog!$C441=\"Log value\",DataLog!AC441,\"\")","v":""},{"$f":"IF(DataLog!$C441=\"Log value\",DataLog!AD441,\"\")","v":""},{"$f":"IF(DataLog!$C441=\"Log value\",DataLog!AE441,\"\")","v":""},{"$f":"IF(DataLog!$C441=\"Log value\",DataLog!AF441,\"\")","v":""},{"$f":"IF(DataLog!$C441=\"Log value\",DataLog!AG441,\"\")","v":""},{"$f":"IF(DataLog!$C441=\"Log value\",DataLog!AH441,\"\")","v":""},{"$f":"IF(DataLog!$C441=\"Log value\",DataLog!AI441,\"\")","v":""},{"$f":"IF(DataLog!$C441=\"Log value\",DataLog!AJ441,\"\")","v":""},{"$f":"IF(DataLog!$C441=\"Log value\",DataLog!AK441,\"\")","v":""},{"$f":"IF(DataLog!$C441=\"Log value\",DataLog!AL441,\"\")","v":""},{"$f":"IF(DataLog!$C441=\"Log value\",DataLog!AM441,\"\")","v":""}]
[null,null,"Standard","Standard -  - ",null,null,{"$f":"IF(DataLog!$C442=\"Log value\",DataLog!D442&\"_\"&TEXT(DataLog!B442,\"åååå-mm-dd\"),\"\")","v":""},{"$f":"IF(DataLog!$C442=\"Log value\",DataLog!E442,\"\")","v":""},{"$f":"IF(DataLog!$C442=\"Log value\",DataLog!F442,\"\")","v":""},{"$f":"IF(DataLog!$C442=\"Log value\",DataLog!G442,\"\")","v":""},{"$f":"IF(DataLog!$C442=\"Log value\",DataLog!H442,\"\")","v":""},{"$f":"IF(DataLog!$C442=\"Log value\",DataLog!I442,\"\")","v":""},{"$f":"IF(DataLog!$C442=\"Log value\",DataLog!J442,\"\")","v":""},{"$f":"IF(DataLog!$C442=\"Log value\",DataLog!K442,\"\")","v":""},{"$f":"IF(DataLog!$C442=\"Log value\",DataLog!L442,\"\")","v":""},{"$f":"IF(DataLog!$C442=\"Log value\",DataLog!M442,\"\")","v":""},{"$f":"IF(DataLog!$C442=\"Log value\",DataLog!N442,\"\")","v":""},{"$f":"IF(DataLog!$C442=\"Log value\",DataLog!O442,\"\")","v":""},{"$f":"IF(DataLog!$C442=\"Log value\",DataLog!P442,\"\")","v":""},{"$f":"IF(DataLog!$C442=\"Log value\",DataLog!Q442,\"\")","v":""},{"$f":"IF(DataLog!$C442=\"Log value\",DataLog!R442,\"\")","v":""},{"$f":"IF(DataLog!$C442=\"Log value\",DataLog!S442,\"\")","v":""},{"$f":"IF(DataLog!$C442=\"Log value\",DataLog!T442,\"\")","v":""},{"$f":"IF(DataLog!$C442=\"Log value\",DataLog!U442,\"\")","v":""},{"$f":"IF(DataLog!$C442=\"Log value\",DataLog!V442,\"\")","v":""},{"$f":"IF(DataLog!$C442=\"Log value\",DataLog!W442,\"\")","v":""},{"$f":"IF(DataLog!$C442=\"Log value\",DataLog!X442,\"\")","v":""},{"$f":"IF(DataLog!$C442=\"Log value\",DataLog!Y442,\"\")","v":""},{"$f":"IF(DataLog!$C442=\"Log value\",DataLog!Z442,\"\")","v":""},{"$f":"IF(DataLog!$C442=\"Log value\",DataLog!AA442,\"\")","v":""},{"$f":"IF(DataLog!$C442=\"Log value\",DataLog!AB442,\"\")","v":""},{"$f":"IF(DataLog!$C442=\"Log value\",DataLog!AC442,\"\")","v":""},{"$f":"IF(DataLog!$C442=\"Log value\",DataLog!AD442,\"\")","v":""},{"$f":"IF(DataLog!$C442=\"Log value\",DataLog!AE442,\"\")","v":""},{"$f":"IF(DataLog!$C442=\"Log value\",DataLog!AF442,\"\")","v":""},{"$f":"IF(DataLog!$C442=\"Log value\",DataLog!AG442,\"\")","v":""},{"$f":"IF(DataLog!$C442=\"Log value\",DataLog!AH442,\"\")","v":""},{"$f":"IF(DataLog!$C442=\"Log value\",DataLog!AI442,\"\")","v":""},{"$f":"IF(DataLog!$C442=\"Log value\",DataLog!AJ442,\"\")","v":""},{"$f":"IF(DataLog!$C442=\"Log value\",DataLog!AK442,\"\")","v":""},{"$f":"IF(DataLog!$C442=\"Log value\",DataLog!AL442,\"\")","v":""},{"$f":"IF(DataLog!$C442=\"Log value\",DataLog!AM442,\"\")","v":""}]
[null,null,"Standard","Standard -  - ",null,null,{"$f":"IF(DataLog!$C443=\"Log value\",DataLog!D443&\"_\"&TEXT(DataLog!B443,\"åååå-mm-dd\"),\"\")","v":""},{"$f":"IF(DataLog!$C443=\"Log value\",DataLog!E443,\"\")","v":""},{"$f":"IF(DataLog!$C443=\"Log value\",DataLog!F443,\"\")","v":""},{"$f":"IF(DataLog!$C443=\"Log value\",DataLog!G443,\"\")","v":""},{"$f":"IF(DataLog!$C443=\"Log value\",DataLog!H443,\"\")","v":""},{"$f":"IF(DataLog!$C443=\"Log value\",DataLog!I443,\"\")","v":""},{"$f":"IF(DataLog!$C443=\"Log value\",DataLog!J443,\"\")","v":""},{"$f":"IF(DataLog!$C443=\"Log value\",DataLog!K443,\"\")","v":""},{"$f":"IF(DataLog!$C443=\"Log value\",DataLog!L443,\"\")","v":""},{"$f":"IF(DataLog!$C443=\"Log value\",DataLog!M443,\"\")","v":""},{"$f":"IF(DataLog!$C443=\"Log value\",DataLog!N443,\"\")","v":""},{"$f":"IF(DataLog!$C443=\"Log value\",DataLog!O443,\"\")","v":""},{"$f":"IF(DataLog!$C443=\"Log value\",DataLog!P443,\"\")","v":""},{"$f":"IF(DataLog!$C443=\"Log value\",DataLog!Q443,\"\")","v":""},{"$f":"IF(DataLog!$C443=\"Log value\",DataLog!R443,\"\")","v":""},{"$f":"IF(DataLog!$C443=\"Log value\",DataLog!S443,\"\")","v":""},{"$f":"IF(DataLog!$C443=\"Log value\",DataLog!T443,\"\")","v":""},{"$f":"IF(DataLog!$C443=\"Log value\",DataLog!U443,\"\")","v":""},{"$f":"IF(DataLog!$C443=\"Log value\",DataLog!V443,\"\")","v":""},{"$f":"IF(DataLog!$C443=\"Log value\",DataLog!W443,\"\")","v":""},{"$f":"IF(DataLog!$C443=\"Log value\",DataLog!X443,\"\")","v":""},{"$f":"IF(DataLog!$C443=\"Log value\",DataLog!Y443,\"\")","v":""},{"$f":"IF(DataLog!$C443=\"Log value\",DataLog!Z443,\"\")","v":""},{"$f":"IF(DataLog!$C443=\"Log value\",DataLog!AA443,\"\")","v":""},{"$f":"IF(DataLog!$C443=\"Log value\",DataLog!AB443,\"\")","v":""},{"$f":"IF(DataLog!$C443=\"Log value\",DataLog!AC443,\"\")","v":""},{"$f":"IF(DataLog!$C443=\"Log value\",DataLog!AD443,\"\")","v":""},{"$f":"IF(DataLog!$C443=\"Log value\",DataLog!AE443,\"\")","v":""},{"$f":"IF(DataLog!$C443=\"Log value\",DataLog!AF443,\"\")","v":""},{"$f":"IF(DataLog!$C443=\"Log value\",DataLog!AG443,\"\")","v":""},{"$f":"IF(DataLog!$C443=\"Log value\",DataLog!AH443,\"\")","v":""},{"$f":"IF(DataLog!$C443=\"Log value\",DataLog!AI443,\"\")","v":""},{"$f":"IF(DataLog!$C443=\"Log value\",DataLog!AJ443,\"\")","v":""},{"$f":"IF(DataLog!$C443=\"Log value\",DataLog!AK443,\"\")","v":""},{"$f":"IF(DataLog!$C443=\"Log value\",DataLog!AL443,\"\")","v":""},{"$f":"IF(DataLog!$C443=\"Log value\",DataLog!AM443,\"\")","v":""}]
[null,null,"Standard","Standard -  - ",null,null,{"$f":"IF(DataLog!$C444=\"Log value\",DataLog!D444&\"_\"&TEXT(DataLog!B444,\"åååå-mm-dd\"),\"\")","v":""},{"$f":"IF(DataLog!$C444=\"Log value\",DataLog!E444,\"\")","v":""},{"$f":"IF(DataLog!$C444=\"Log value\",DataLog!F444,\"\")","v":""},{"$f":"IF(DataLog!$C444=\"Log value\",DataLog!G444,\"\")","v":""},{"$f":"IF(DataLog!$C444=\"Log value\",DataLog!H444,\"\")","v":""},{"$f":"IF(DataLog!$C444=\"Log value\",DataLog!I444,\"\")","v":""},{"$f":"IF(DataLog!$C444=\"Log value\",DataLog!J444,\"\")","v":""},{"$f":"IF(DataLog!$C444=\"Log value\",DataLog!K444,\"\")","v":""},{"$f":"IF(DataLog!$C444=\"Log value\",DataLog!L444,\"\")","v":""},{"$f":"IF(DataLog!$C444=\"Log value\",DataLog!M444,\"\")","v":""},{"$f":"IF(DataLog!$C444=\"Log value\",DataLog!N444,\"\")","v":""},{"$f":"IF(DataLog!$C444=\"Log value\",DataLog!O444,\"\")","v":""},{"$f":"IF(DataLog!$C444=\"Log value\",DataLog!P444,\"\")","v":""},{"$f":"IF(DataLog!$C444=\"Log value\",DataLog!Q444,\"\")","v":""},{"$f":"IF(DataLog!$C444=\"Log value\",DataLog!R444,\"\")","v":""},{"$f":"IF(DataLog!$C444=\"Log value\",DataLog!S444,\"\")","v":""},{"$f":"IF(DataLog!$C444=\"Log value\",DataLog!T444,\"\")","v":""},{"$f":"IF(DataLog!$C444=\"Log value\",DataLog!U444,\"\")","v":""},{"$f":"IF(DataLog!$C444=\"Log value\",DataLog!V444,\"\")","v":""},{"$f":"IF(DataLog!$C444=\"Log value\",DataLog!W444,\"\")","v":""},{"$f":"IF(DataLog!$C444=\"Log value\",DataLog!X444,\"\")","v":""},{"$f":"IF(DataLog!$C444=\"Log value\",DataLog!Y444,\"\")","v":""},{"$f":"IF(DataLog!$C444=\"Log value\",DataLog!Z444,\"\")","v":""},{"$f":"IF(DataLog!$C444=\"Log value\",DataLog!AA444,\"\")","v":""},{"$f":"IF(DataLog!$C444=\"Log value\",DataLog!AB444,\"\")","v":""},{"$f":"IF(DataLog!$C444=\"Log value\",DataLog!AC444,\"\")","v":""},{"$f":"IF(DataLog!$C444=\"Log value\",DataLog!AD444,\"\")","v":""},{"$f":"IF(DataLog!$C444=\"Log value\",DataLog!AE444,\"\")","v":""},{"$f":"IF(DataLog!$C444=\"Log value\",DataLog!AF444,\"\")","v":""},{"$f":"IF(DataLog!$C444=\"Log value\",DataLog!AG444,\"\")","v":""},{"$f":"IF(DataLog!$C444=\"Log value\",DataLog!AH444,\"\")","v":""},{"$f":"IF(DataLog!$C444=\"Log value\",DataLog!AI444,\"\")","v":""},{"$f":"IF(DataLog!$C444=\"Log value\",DataLog!AJ444,\"\")","v":""},{"$f":"IF(DataLog!$C444=\"Log value\",DataLog!AK444,\"\")","v":""},{"$f":"IF(DataLog!$C444=\"Log value\",DataLog!AL444,\"\")","v":""},{"$f":"IF(DataLog!$C444=\"Log value\",DataLog!AM444,\"\")","v":""}]
[null,null,"Standard","Standard -  - ",null,null,{"$f":"IF(DataLog!$C445=\"Log value\",DataLog!D445&\"_\"&TEXT(DataLog!B445,\"åååå-mm-dd\"),\"\")","v":""},{"$f":"IF(DataLog!$C445=\"Log value\",DataLog!E445,\"\")","v":""},{"$f":"IF(DataLog!$C445=\"Log value\",DataLog!F445,\"\")","v":""},{"$f":"IF(DataLog!$C445=\"Log value\",DataLog!G445,\"\")","v":""},{"$f":"IF(DataLog!$C445=\"Log value\",DataLog!H445,\"\")","v":""},{"$f":"IF(DataLog!$C445=\"Log value\",DataLog!I445,\"\")","v":""},{"$f":"IF(DataLog!$C445=\"Log value\",DataLog!J445,\"\")","v":""},{"$f":"IF(DataLog!$C445=\"Log value\",DataLog!K445,\"\")","v":""},{"$f":"IF(DataLog!$C445=\"Log value\",DataLog!L445,\"\")","v":""},{"$f":"IF(DataLog!$C445=\"Log value\",DataLog!M445,\"\")","v":""},{"$f":"IF(DataLog!$C445=\"Log value\",DataLog!N445,\"\")","v":""},{"$f":"IF(DataLog!$C445=\"Log value\",DataLog!O445,\"\")","v":""},{"$f":"IF(DataLog!$C445=\"Log value\",DataLog!P445,\"\")","v":""},{"$f":"IF(DataLog!$C445=\"Log value\",DataLog!Q445,\"\")","v":""},{"$f":"IF(DataLog!$C445=\"Log value\",DataLog!R445,\"\")","v":""},{"$f":"IF(DataLog!$C445=\"Log value\",DataLog!S445,\"\")","v":""},{"$f":"IF(DataLog!$C445=\"Log value\",DataLog!T445,\"\")","v":""},{"$f":"IF(DataLog!$C445=\"Log value\",DataLog!U445,\"\")","v":""},{"$f":"IF(DataLog!$C445=\"Log value\",DataLog!V445,\"\")","v":""},{"$f":"IF(DataLog!$C445=\"Log value\",DataLog!W445,\"\")","v":""},{"$f":"IF(DataLog!$C445=\"Log value\",DataLog!X445,\"\")","v":""},{"$f":"IF(DataLog!$C445=\"Log value\",DataLog!Y445,\"\")","v":""},{"$f":"IF(DataLog!$C445=\"Log value\",DataLog!Z445,\"\")","v":""},{"$f":"IF(DataLog!$C445=\"Log value\",DataLog!AA445,\"\")","v":""},{"$f":"IF(DataLog!$C445=\"Log value\",DataLog!AB445,\"\")","v":""},{"$f":"IF(DataLog!$C445=\"Log value\",DataLog!AC445,\"\")","v":""},{"$f":"IF(DataLog!$C445=\"Log value\",DataLog!AD445,\"\")","v":""},{"$f":"IF(DataLog!$C445=\"Log value\",DataLog!AE445,\"\")","v":""},{"$f":"IF(DataLog!$C445=\"Log value\",DataLog!AF445,\"\")","v":""},{"$f":"IF(DataLog!$C445=\"Log value\",DataLog!AG445,\"\")","v":""},{"$f":"IF(DataLog!$C445=\"Log value\",DataLog!AH445,\"\")","v":""},{"$f":"IF(DataLog!$C445=\"Log value\",DataLog!AI445,\"\")","v":""},{"$f":"IF(DataLog!$C445=\"Log value\",DataLog!AJ445,\"\")","v":""},{"$f":"IF(DataLog!$C445=\"Log value\",DataLog!AK445,\"\")","v":""},{"$f":"IF(DataLog!$C445=\"Log value\",DataLog!AL445,\"\")","v":""},{"$f":"IF(DataLog!$C445=\"Log value\",DataLog!AM445,\"\")","v":""}]
[null,null,"Standard","Standard -  - ",null,null,{"$f":"IF(DataLog!$C446=\"Log value\",DataLog!D446&\"_\"&TEXT(DataLog!B446,\"åååå-mm-dd\"),\"\")","v":""},{"$f":"IF(DataLog!$C446=\"Log value\",DataLog!E446,\"\")","v":""},{"$f":"IF(DataLog!$C446=\"Log value\",DataLog!F446,\"\")","v":""},{"$f":"IF(DataLog!$C446=\"Log value\",DataLog!G446,\"\")","v":""},{"$f":"IF(DataLog!$C446=\"Log value\",DataLog!H446,\"\")","v":""},{"$f":"IF(DataLog!$C446=\"Log value\",DataLog!I446,\"\")","v":""},{"$f":"IF(DataLog!$C446=\"Log value\",DataLog!J446,\"\")","v":""},{"$f":"IF(DataLog!$C446=\"Log value\",DataLog!K446,\"\")","v":""},{"$f":"IF(DataLog!$C446=\"Log value\",DataLog!L446,\"\")","v":""},{"$f":"IF(DataLog!$C446=\"Log value\",DataLog!M446,\"\")","v":""},{"$f":"IF(DataLog!$C446=\"Log value\",DataLog!N446,\"\")","v":""},{"$f":"IF(DataLog!$C446=\"Log value\",DataLog!O446,\"\")","v":""},{"$f":"IF(DataLog!$C446=\"Log value\",DataLog!P446,\"\")","v":""},{"$f":"IF(DataLog!$C446=\"Log value\",DataLog!Q446,\"\")","v":""},{"$f":"IF(DataLog!$C446=\"Log value\",DataLog!R446,\"\")","v":""},{"$f":"IF(DataLog!$C446=\"Log value\",DataLog!S446,\"\")","v":""},{"$f":"IF(DataLog!$C446=\"Log value\",DataLog!T446,\"\")","v":""},{"$f":"IF(DataLog!$C446=\"Log value\",DataLog!U446,\"\")","v":""},{"$f":"IF(DataLog!$C446=\"Log value\",DataLog!V446,\"\")","v":""},{"$f":"IF(DataLog!$C446=\"Log value\",DataLog!W446,\"\")","v":""},{"$f":"IF(DataLog!$C446=\"Log value\",DataLog!X446,\"\")","v":""},{"$f":"IF(DataLog!$C446=\"Log value\",DataLog!Y446,\"\")","v":""},{"$f":"IF(DataLog!$C446=\"Log value\",DataLog!Z446,\"\")","v":""},{"$f":"IF(DataLog!$C446=\"Log value\",DataLog!AA446,\"\")","v":""},{"$f":"IF(DataLog!$C446=\"Log value\",DataLog!AB446,\"\")","v":""},{"$f":"IF(DataLog!$C446=\"Log value\",DataLog!AC446,\"\")","v":""},{"$f":"IF(DataLog!$C446=\"Log value\",DataLog!AD446,\"\")","v":""},{"$f":"IF(DataLog!$C446=\"Log value\",DataLog!AE446,\"\")","v":""},{"$f":"IF(DataLog!$C446=\"Log value\",DataLog!AF446,\"\")","v":""},{"$f":"IF(DataLog!$C446=\"Log value\",DataLog!AG446,\"\")","v":""},{"$f":"IF(DataLog!$C446=\"Log value\",DataLog!AH446,\"\")","v":""},{"$f":"IF(DataLog!$C446=\"Log value\",DataLog!AI446,\"\")","v":""},{"$f":"IF(DataLog!$C446=\"Log value\",DataLog!AJ446,\"\")","v":""},{"$f":"IF(DataLog!$C446=\"Log value\",DataLog!AK446,\"\")","v":""},{"$f":"IF(DataLog!$C446=\"Log value\",DataLog!AL446,\"\")","v":""},{"$f":"IF(DataLog!$C446=\"Log value\",DataLog!AM446,\"\")","v":""}]
[null,null,"Standard","Standard -  - ",null,null,{"$f":"IF(DataLog!$C447=\"Log value\",DataLog!D447&\"_\"&TEXT(DataLog!B447,\"åååå-mm-dd\"),\"\")","v":""},{"$f":"IF(DataLog!$C447=\"Log value\",DataLog!E447,\"\")","v":""},{"$f":"IF(DataLog!$C447=\"Log value\",DataLog!F447,\"\")","v":""},{"$f":"IF(DataLog!$C447=\"Log value\",DataLog!G447,\"\")","v":""},{"$f":"IF(DataLog!$C447=\"Log value\",DataLog!H447,\"\")","v":""},{"$f":"IF(DataLog!$C447=\"Log value\",DataLog!I447,\"\")","v":""},{"$f":"IF(DataLog!$C447=\"Log value\",DataLog!J447,\"\")","v":""},{"$f":"IF(DataLog!$C447=\"Log value\",DataLog!K447,\"\")","v":""},{"$f":"IF(DataLog!$C447=\"Log value\",DataLog!L447,\"\")","v":""},{"$f":"IF(DataLog!$C447=\"Log value\",DataLog!M447,\"\")","v":""},{"$f":"IF(DataLog!$C447=\"Log value\",DataLog!N447,\"\")","v":""},{"$f":"IF(DataLog!$C447=\"Log value\",DataLog!O447,\"\")","v":""},{"$f":"IF(DataLog!$C447=\"Log value\",DataLog!P447,\"\")","v":""},{"$f":"IF(DataLog!$C447=\"Log value\",DataLog!Q447,\"\")","v":""},{"$f":"IF(DataLog!$C447=\"Log value\",DataLog!R447,\"\")","v":""},{"$f":"IF(DataLog!$C447=\"Log value\",DataLog!S447,\"\")","v":""},{"$f":"IF(DataLog!$C447=\"Log value\",DataLog!T447,\"\")","v":""},{"$f":"IF(DataLog!$C447=\"Log value\",DataLog!U447,\"\")","v":""},{"$f":"IF(DataLog!$C447=\"Log value\",DataLog!V447,\"\")","v":""},{"$f":"IF(DataLog!$C447=\"Log value\",DataLog!W447,\"\")","v":""},{"$f":"IF(DataLog!$C447=\"Log value\",DataLog!X447,\"\")","v":""},{"$f":"IF(DataLog!$C447=\"Log value\",DataLog!Y447,\"\")","v":""},{"$f":"IF(DataLog!$C447=\"Log value\",DataLog!Z447,\"\")","v":""},{"$f":"IF(DataLog!$C447=\"Log value\",DataLog!AA447,\"\")","v":""},{"$f":"IF(DataLog!$C447=\"Log value\",DataLog!AB447,\"\")","v":""},{"$f":"IF(DataLog!$C447=\"Log value\",DataLog!AC447,\"\")","v":""},{"$f":"IF(DataLog!$C447=\"Log value\",DataLog!AD447,\"\")","v":""},{"$f":"IF(DataLog!$C447=\"Log value\",DataLog!AE447,\"\")","v":""},{"$f":"IF(DataLog!$C447=\"Log value\",DataLog!AF447,\"\")","v":""},{"$f":"IF(DataLog!$C447=\"Log value\",DataLog!AG447,\"\")","v":""},{"$f":"IF(DataLog!$C447=\"Log value\",DataLog!AH447,\"\")","v":""},{"$f":"IF(DataLog!$C447=\"Log value\",DataLog!AI447,\"\")","v":""},{"$f":"IF(DataLog!$C447=\"Log value\",DataLog!AJ447,\"\")","v":""},{"$f":"IF(DataLog!$C447=\"Log value\",DataLog!AK447,\"\")","v":""},{"$f":"IF(DataLog!$C447=\"Log value\",DataLog!AL447,\"\")","v":""},{"$f":"IF(DataLog!$C447=\"Log value\",DataLog!AM447,\"\")","v":""}]
[null,null,"Standard","Standard -  - ",null,null,{"$f":"IF(DataLog!$C448=\"Log value\",DataLog!D448&\"_\"&TEXT(DataLog!B448,\"åååå-mm-dd\"),\"\")","v":""},{"$f":"IF(DataLog!$C448=\"Log value\",DataLog!E448,\"\")","v":""},{"$f":"IF(DataLog!$C448=\"Log value\",DataLog!F448,\"\")","v":""},{"$f":"IF(DataLog!$C448=\"Log value\",DataLog!G448,\"\")","v":""},{"$f":"IF(DataLog!$C448=\"Log value\",DataLog!H448,\"\")","v":""},{"$f":"IF(DataLog!$C448=\"Log value\",DataLog!I448,\"\")","v":""},{"$f":"IF(DataLog!$C448=\"Log value\",DataLog!J448,\"\")","v":""},{"$f":"IF(DataLog!$C448=\"Log value\",DataLog!K448,\"\")","v":""},{"$f":"IF(DataLog!$C448=\"Log value\",DataLog!L448,\"\")","v":""},{"$f":"IF(DataLog!$C448=\"Log value\",DataLog!M448,\"\")","v":""},{"$f":"IF(DataLog!$C448=\"Log value\",DataLog!N448,\"\")","v":""},{"$f":"IF(DataLog!$C448=\"Log value\",DataLog!O448,\"\")","v":""},{"$f":"IF(DataLog!$C448=\"Log value\",DataLog!P448,\"\")","v":""},{"$f":"IF(DataLog!$C448=\"Log value\",DataLog!Q448,\"\")","v":""},{"$f":"IF(DataLog!$C448=\"Log value\",DataLog!R448,\"\")","v":""},{"$f":"IF(DataLog!$C448=\"Log value\",DataLog!S448,\"\")","v":""},{"$f":"IF(DataLog!$C448=\"Log value\",DataLog!T448,\"\")","v":""},{"$f":"IF(DataLog!$C448=\"Log value\",DataLog!U448,\"\")","v":""},{"$f":"IF(DataLog!$C448=\"Log value\",DataLog!V448,\"\")","v":""},{"$f":"IF(DataLog!$C448=\"Log value\",DataLog!W448,\"\")","v":""},{"$f":"IF(DataLog!$C448=\"Log value\",DataLog!X448,\"\")","v":""},{"$f":"IF(DataLog!$C448=\"Log value\",DataLog!Y448,\"\")","v":""},{"$f":"IF(DataLog!$C448=\"Log value\",DataLog!Z448,\"\")","v":""},{"$f":"IF(DataLog!$C448=\"Log value\",DataLog!AA448,\"\")","v":""},{"$f":"IF(DataLog!$C448=\"Log value\",DataLog!AB448,\"\")","v":""},{"$f":"IF(DataLog!$C448=\"Log value\",DataLog!AC448,\"\")","v":""},{"$f":"IF(DataLog!$C448=\"Log value\",DataLog!AD448,\"\")","v":""},{"$f":"IF(DataLog!$C448=\"Log value\",DataLog!AE448,\"\")","v":""},{"$f":"IF(DataLog!$C448=\"Log value\",DataLog!AF448,\"\")","v":""},{"$f":"IF(DataLog!$C448=\"Log value\",DataLog!AG448,\"\")","v":""},{"$f":"IF(DataLog!$C448=\"Log value\",DataLog!AH448,\"\")","v":""},{"$f":"IF(DataLog!$C448=\"Log value\",DataLog!AI448,\"\")","v":""},{"$f":"IF(DataLog!$C448=\"Log value\",DataLog!AJ448,\"\")","v":""},{"$f":"IF(DataLog!$C448=\"Log value\",DataLog!AK448,\"\")","v":""},{"$f":"IF(DataLog!$C448=\"Log value\",DataLog!AL448,\"\")","v":""},{"$f":"IF(DataLog!$C448=\"Log value\",DataLog!AM448,\"\")","v":""}]
[null,null,"Standard","Standard -  - ",null,null,{"$f":"IF(DataLog!$C449=\"Log value\",DataLog!D449&\"_\"&TEXT(DataLog!B449,\"åååå-mm-dd\"),\"\")","v":""},{"$f":"IF(DataLog!$C449=\"Log value\",DataLog!E449,\"\")","v":""},{"$f":"IF(DataLog!$C449=\"Log value\",DataLog!F449,\"\")","v":""},{"$f":"IF(DataLog!$C449=\"Log value\",DataLog!G449,\"\")","v":""},{"$f":"IF(DataLog!$C449=\"Log value\",DataLog!H449,\"\")","v":""},{"$f":"IF(DataLog!$C449=\"Log value\",DataLog!I449,\"\")","v":""},{"$f":"IF(DataLog!$C449=\"Log value\",DataLog!J449,\"\")","v":""},{"$f":"IF(DataLog!$C449=\"Log value\",DataLog!K449,\"\")","v":""},{"$f":"IF(DataLog!$C449=\"Log value\",DataLog!L449,\"\")","v":""},{"$f":"IF(DataLog!$C449=\"Log value\",DataLog!M449,\"\")","v":""},{"$f":"IF(DataLog!$C449=\"Log value\",DataLog!N449,\"\")","v":""},{"$f":"IF(DataLog!$C449=\"Log value\",DataLog!O449,\"\")","v":""},{"$f":"IF(DataLog!$C449=\"Log value\",DataLog!P449,\"\")","v":""},{"$f":"IF(DataLog!$C449=\"Log value\",DataLog!Q449,\"\")","v":""},{"$f":"IF(DataLog!$C449=\"Log value\",DataLog!R449,\"\")","v":""},{"$f":"IF(DataLog!$C449=\"Log value\",DataLog!S449,\"\")","v":""},{"$f":"IF(DataLog!$C449=\"Log value\",DataLog!T449,\"\")","v":""},{"$f":"IF(DataLog!$C449=\"Log value\",DataLog!U449,\"\")","v":""},{"$f":"IF(DataLog!$C449=\"Log value\",DataLog!V449,\"\")","v":""},{"$f":"IF(DataLog!$C449=\"Log value\",DataLog!W449,\"\")","v":""},{"$f":"IF(DataLog!$C449=\"Log value\",DataLog!X449,\"\")","v":""},{"$f":"IF(DataLog!$C449=\"Log value\",DataLog!Y449,\"\")","v":""},{"$f":"IF(DataLog!$C449=\"Log value\",DataLog!Z449,\"\")","v":""},{"$f":"IF(DataLog!$C449=\"Log value\",DataLog!AA449,\"\")","v":""},{"$f":"IF(DataLog!$C449=\"Log value\",DataLog!AB449,\"\")","v":""},{"$f":"IF(DataLog!$C449=\"Log value\",DataLog!AC449,\"\")","v":""},{"$f":"IF(DataLog!$C449=\"Log value\",DataLog!AD449,\"\")","v":""},{"$f":"IF(DataLog!$C449=\"Log value\",DataLog!AE449,\"\")","v":""},{"$f":"IF(DataLog!$C449=\"Log value\",DataLog!AF449,\"\")","v":""},{"$f":"IF(DataLog!$C449=\"Log value\",DataLog!AG449,\"\")","v":""},{"$f":"IF(DataLog!$C449=\"Log value\",DataLog!AH449,\"\")","v":""},{"$f":"IF(DataLog!$C449=\"Log value\",DataLog!AI449,\"\")","v":""},{"$f":"IF(DataLog!$C449=\"Log value\",DataLog!AJ449,\"\")","v":""},{"$f":"IF(DataLog!$C449=\"Log value\",DataLog!AK449,\"\")","v":""},{"$f":"IF(DataLog!$C449=\"Log value\",DataLog!AL449,\"\")","v":""},{"$f":"IF(DataLog!$C449=\"Log value\",DataLog!AM449,\"\")","v":""}]
[null,null,"Standard","Standard -  - ",null,null,{"$f":"IF(DataLog!$C450=\"Log value\",DataLog!D450&\"_\"&TEXT(DataLog!B450,\"åååå-mm-dd\"),\"\")","v":""},{"$f":"IF(DataLog!$C450=\"Log value\",DataLog!E450,\"\")","v":""},{"$f":"IF(DataLog!$C450=\"Log value\",DataLog!F450,\"\")","v":""},{"$f":"IF(DataLog!$C450=\"Log value\",DataLog!G450,\"\")","v":""},{"$f":"IF(DataLog!$C450=\"Log value\",DataLog!H450,\"\")","v":""},{"$f":"IF(DataLog!$C450=\"Log value\",DataLog!I450,\"\")","v":""},{"$f":"IF(DataLog!$C450=\"Log value\",DataLog!J450,\"\")","v":""},{"$f":"IF(DataLog!$C450=\"Log value\",DataLog!K450,\"\")","v":""},{"$f":"IF(DataLog!$C450=\"Log value\",DataLog!L450,\"\")","v":""},{"$f":"IF(DataLog!$C450=\"Log value\",DataLog!M450,\"\")","v":""},{"$f":"IF(DataLog!$C450=\"Log value\",DataLog!N450,\"\")","v":""},{"$f":"IF(DataLog!$C450=\"Log value\",DataLog!O450,\"\")","v":""},{"$f":"IF(DataLog!$C450=\"Log value\",DataLog!P450,\"\")","v":""},{"$f":"IF(DataLog!$C450=\"Log value\",DataLog!Q450,\"\")","v":""},{"$f":"IF(DataLog!$C450=\"Log value\",DataLog!R450,\"\")","v":""},{"$f":"IF(DataLog!$C450=\"Log value\",DataLog!S450,\"\")","v":""},{"$f":"IF(DataLog!$C450=\"Log value\",DataLog!T450,\"\")","v":""},{"$f":"IF(DataLog!$C450=\"Log value\",DataLog!U450,\"\")","v":""},{"$f":"IF(DataLog!$C450=\"Log value\",DataLog!V450,\"\")","v":""},{"$f":"IF(DataLog!$C450=\"Log value\",DataLog!W450,\"\")","v":""},{"$f":"IF(DataLog!$C450=\"Log value\",DataLog!X450,\"\")","v":""},{"$f":"IF(DataLog!$C450=\"Log value\",DataLog!Y450,\"\")","v":""},{"$f":"IF(DataLog!$C450=\"Log value\",DataLog!Z450,\"\")","v":""},{"$f":"IF(DataLog!$C450=\"Log value\",DataLog!AA450,\"\")","v":""},{"$f":"IF(DataLog!$C450=\"Log value\",DataLog!AB450,\"\")","v":""},{"$f":"IF(DataLog!$C450=\"Log value\",DataLog!AC450,\"\")","v":""},{"$f":"IF(DataLog!$C450=\"Log value\",DataLog!AD450,\"\")","v":""},{"$f":"IF(DataLog!$C450=\"Log value\",DataLog!AE450,\"\")","v":""},{"$f":"IF(DataLog!$C450=\"Log value\",DataLog!AF450,\"\")","v":""},{"$f":"IF(DataLog!$C450=\"Log value\",DataLog!AG450,\"\")","v":""},{"$f":"IF(DataLog!$C450=\"Log value\",DataLog!AH450,\"\")","v":""},{"$f":"IF(DataLog!$C450=\"Log value\",DataLog!AI450,\"\")","v":""},{"$f":"IF(DataLog!$C450=\"Log value\",DataLog!AJ450,\"\")","v":""},{"$f":"IF(DataLog!$C450=\"Log value\",DataLog!AK450,\"\")","v":""},{"$f":"IF(DataLog!$C450=\"Log value\",DataLog!AL450,\"\")","v":""},{"$f":"IF(DataLog!$C450=\"Log value\",DataLog!AM450,\"\")","v":""}]
[null,null,"Standard","Standard -  - ",null,null,{"$f":"IF(DataLog!$C451=\"Log value\",DataLog!D451&\"_\"&TEXT(DataLog!B451,\"åååå-mm-dd\"),\"\")","v":""},{"$f":"IF(DataLog!$C451=\"Log value\",DataLog!E451,\"\")","v":""},{"$f":"IF(DataLog!$C451=\"Log value\",DataLog!F451,\"\")","v":""},{"$f":"IF(DataLog!$C451=\"Log value\",DataLog!G451,\"\")","v":""},{"$f":"IF(DataLog!$C451=\"Log value\",DataLog!H451,\"\")","v":""},{"$f":"IF(DataLog!$C451=\"Log value\",DataLog!I451,\"\")","v":""},{"$f":"IF(DataLog!$C451=\"Log value\",DataLog!J451,\"\")","v":""},{"$f":"IF(DataLog!$C451=\"Log value\",DataLog!K451,\"\")","v":""},{"$f":"IF(DataLog!$C451=\"Log value\",DataLog!L451,\"\")","v":""},{"$f":"IF(DataLog!$C451=\"Log value\",DataLog!M451,\"\")","v":""},{"$f":"IF(DataLog!$C451=\"Log value\",DataLog!N451,\"\")","v":""},{"$f":"IF(DataLog!$C451=\"Log value\",DataLog!O451,\"\")","v":""},{"$f":"IF(DataLog!$C451=\"Log value\",DataLog!P451,\"\")","v":""},{"$f":"IF(DataLog!$C451=\"Log value\",DataLog!Q451,\"\")","v":""},{"$f":"IF(DataLog!$C451=\"Log value\",DataLog!R451,\"\")","v":""},{"$f":"IF(DataLog!$C451=\"Log value\",DataLog!S451,\"\")","v":""},{"$f":"IF(DataLog!$C451=\"Log value\",DataLog!T451,\"\")","v":""},{"$f":"IF(DataLog!$C451=\"Log value\",DataLog!U451,\"\")","v":""},{"$f":"IF(DataLog!$C451=\"Log value\",DataLog!V451,\"\")","v":""},{"$f":"IF(DataLog!$C451=\"Log value\",DataLog!W451,\"\")","v":""},{"$f":"IF(DataLog!$C451=\"Log value\",DataLog!X451,\"\")","v":""},{"$f":"IF(DataLog!$C451=\"Log value\",DataLog!Y451,\"\")","v":""},{"$f":"IF(DataLog!$C451=\"Log value\",DataLog!Z451,\"\")","v":""},{"$f":"IF(DataLog!$C451=\"Log value\",DataLog!AA451,\"\")","v":""},{"$f":"IF(DataLog!$C451=\"Log value\",DataLog!AB451,\"\")","v":""},{"$f":"IF(DataLog!$C451=\"Log value\",DataLog!AC451,\"\")","v":""},{"$f":"IF(DataLog!$C451=\"Log value\",DataLog!AD451,\"\")","v":""},{"$f":"IF(DataLog!$C451=\"Log value\",DataLog!AE451,\"\")","v":""},{"$f":"IF(DataLog!$C451=\"Log value\",DataLog!AF451,\"\")","v":""},{"$f":"IF(DataLog!$C451=\"Log value\",DataLog!AG451,\"\")","v":""},{"$f":"IF(DataLog!$C451=\"Log value\",DataLog!AH451,\"\")","v":""},{"$f":"IF(DataLog!$C451=\"Log value\",DataLog!AI451,\"\")","v":""},{"$f":"IF(DataLog!$C451=\"Log value\",DataLog!AJ451,\"\")","v":""},{"$f":"IF(DataLog!$C451=\"Log value\",DataLog!AK451,\"\")","v":""},{"$f":"IF(DataLog!$C451=\"Log value\",DataLog!AL451,\"\")","v":""},{"$f":"IF(DataLog!$C451=\"Log value\",DataLog!AM451,\"\")","v":""}]
[null,null,"Standard",{"$f":"C486&\" - \"&G486&\" - \"&I486","v":"Standard -  - "},null,null,{"$f":"IF(DataLog!$C452=\"Log value\",DataLog!D452&\"_\"&TEXT(DataLog!B452,\"åååå-mm-dd\"),\"\")","v":""},{"$f":"IF(DataLog!$C452=\"Log value\",DataLog!E452,\"\")","v":""},{"$f":"IF(DataLog!$C452=\"Log value\",DataLog!F452,\"\")","v":""},{"$f":"IF(DataLog!$C452=\"Log value\",DataLog!G452,\"\")","v":""},{"$f":"IF(DataLog!$C452=\"Log value\",DataLog!H452,\"\")","v":""},{"$f":"IF(DataLog!$C452=\"Log value\",DataLog!I452,\"\")","v":""},{"$f":"IF(DataLog!$C452=\"Log value\",DataLog!J452,\"\")","v":""},{"$f":"IF(DataLog!$C452=\"Log value\",DataLog!K452,\"\")","v":""},{"$f":"IF(DataLog!$C452=\"Log value\",DataLog!L452,\"\")","v":""},{"$f":"IF(DataLog!$C452=\"Log value\",DataLog!M452,\"\")","v":""},{"$f":"IF(DataLog!$C452=\"Log value\",DataLog!N452,\"\")","v":""},{"$f":"IF(DataLog!$C452=\"Log value\",DataLog!O452,\"\")","v":""},{"$f":"IF(DataLog!$C452=\"Log value\",DataLog!P452,\"\")","v":""},{"$f":"IF(DataLog!$C452=\"Log value\",DataLog!Q452,\"\")","v":""},{"$f":"IF(DataLog!$C452=\"Log value\",DataLog!R452,\"\")","v":""},{"$f":"IF(DataLog!$C452=\"Log value\",DataLog!S452,\"\")","v":""},{"$f":"IF(DataLog!$C452=\"Log value\",DataLog!T452,\"\")","v":""},{"$f":"IF(DataLog!$C452=\"Log value\",DataLog!U452,\"\")","v":""},{"$f":"IF(DataLog!$C452=\"Log value\",DataLog!V452,\"\")","v":""},{"$f":"IF(DataLog!$C452=\"Log value\",DataLog!W452,\"\")","v":""},{"$f":"IF(DataLog!$C452=\"Log value\",DataLog!X452,\"\")","v":""},{"$f":"IF(DataLog!$C452=\"Log value\",DataLog!Y452,\"\")","v":""},{"$f":"IF(DataLog!$C452=\"Log value\",DataLog!Z452,\"\")","v":""},{"$f":"IF(DataLog!$C452=\"Log value\",DataLog!AA452,\"\")","v":""},{"$f":"IF(DataLog!$C452=\"Log value\",DataLog!AB452,\"\")","v":""},{"$f":"IF(DataLog!$C452=\"Log value\",DataLog!AC452,\"\")","v":""},{"$f":"IF(DataLog!$C452=\"Log value\",DataLog!AD452,\"\")","v":""},{"$f":"IF(DataLog!$C452=\"Log value\",DataLog!AE452,\"\")","v":""},{"$f":"IF(DataLog!$C452=\"Log value\",DataLog!AF452,\"\")","v":""},{"$f":"IF(DataLog!$C452=\"Log value\",DataLog!AG452,\"\")","v":""},{"$f":"IF(DataLog!$C452=\"Log value\",DataLog!AH452,\"\")","v":""},{"$f":"IF(DataLog!$C452=\"Log value\",DataLog!AI452,\"\")","v":""},{"$f":"IF(DataLog!$C452=\"Log value\",DataLog!AJ452,\"\")","v":""},{"$f":"IF(DataLog!$C452=\"Log value\",DataLog!AK452,\"\")","v":""},{"$f":"IF(DataLog!$C452=\"Log value\",DataLog!AL452,\"\")","v":""},{"$f":"IF(DataLog!$C452=\"Log value\",DataLog!AM452,\"\")","v":""}]
[null,null,"Standard","Standard -  - ",null,null,{"$f":"IF(DataLog!$C453=\"Log value\",DataLog!D453&\"_\"&TEXT(DataLog!B453,\"åååå-mm-dd\"),\"\")","v":""},{"$f":"IF(DataLog!$C453=\"Log value\",DataLog!E453,\"\")","v":""},{"$f":"IF(DataLog!$C453=\"Log value\",DataLog!F453,\"\")","v":""},{"$f":"IF(DataLog!$C453=\"Log value\",DataLog!G453,\"\")","v":""},{"$f":"IF(DataLog!$C453=\"Log value\",DataLog!H453,\"\")","v":""},{"$f":"IF(DataLog!$C453=\"Log value\",DataLog!I453,\"\")","v":""},{"$f":"IF(DataLog!$C453=\"Log value\",DataLog!J453,\"\")","v":""},{"$f":"IF(DataLog!$C453=\"Log value\",DataLog!K453,\"\")","v":""},{"$f":"IF(DataLog!$C453=\"Log value\",DataLog!L453,\"\")","v":""},{"$f":"IF(DataLog!$C453=\"Log value\",DataLog!M453,\"\")","v":""},{"$f":"IF(DataLog!$C453=\"Log value\",DataLog!N453,\"\")","v":""},{"$f":"IF(DataLog!$C453=\"Log value\",DataLog!O453,\"\")","v":""},{"$f":"IF(DataLog!$C453=\"Log value\",DataLog!P453,\"\")","v":""},{"$f":"IF(DataLog!$C453=\"Log value\",DataLog!Q453,\"\")","v":""},{"$f":"IF(DataLog!$C453=\"Log value\",DataLog!R453,\"\")","v":""},{"$f":"IF(DataLog!$C453=\"Log value\",DataLog!S453,\"\")","v":""},{"$f":"IF(DataLog!$C453=\"Log value\",DataLog!T453,\"\")","v":""},{"$f":"IF(DataLog!$C453=\"Log value\",DataLog!U453,\"\")","v":""},{"$f":"IF(DataLog!$C453=\"Log value\",DataLog!V453,\"\")","v":""},{"$f":"IF(DataLog!$C453=\"Log value\",DataLog!W453,\"\")","v":""},{"$f":"IF(DataLog!$C453=\"Log value\",DataLog!X453,\"\")","v":""},{"$f":"IF(DataLog!$C453=\"Log value\",DataLog!Y453,\"\")","v":""},{"$f":"IF(DataLog!$C453=\"Log value\",DataLog!Z453,\"\")","v":""},{"$f":"IF(DataLog!$C453=\"Log value\",DataLog!AA453,\"\")","v":""},{"$f":"IF(DataLog!$C453=\"Log value\",DataLog!AB453,\"\")","v":""},{"$f":"IF(DataLog!$C453=\"Log value\",DataLog!AC453,\"\")","v":""},{"$f":"IF(DataLog!$C453=\"Log value\",DataLog!AD453,\"\")","v":""},{"$f":"IF(DataLog!$C453=\"Log value\",DataLog!AE453,\"\")","v":""},{"$f":"IF(DataLog!$C453=\"Log value\",DataLog!AF453,\"\")","v":""},{"$f":"IF(DataLog!$C453=\"Log value\",DataLog!AG453,\"\")","v":""},{"$f":"IF(DataLog!$C453=\"Log value\",DataLog!AH453,\"\")","v":""},{"$f":"IF(DataLog!$C453=\"Log value\",DataLog!AI453,\"\")","v":""},{"$f":"IF(DataLog!$C453=\"Log value\",DataLog!AJ453,\"\")","v":""},{"$f":"IF(DataLog!$C453=\"Log value\",DataLog!AK453,\"\")","v":""},{"$f":"IF(DataLog!$C453=\"Log value\",DataLog!AL453,\"\")","v":""},{"$f":"IF(DataLog!$C453=\"Log value\",DataLog!AM453,\"\")","v":""}]
[null,null,"Standard","Standard -  - ",null,null,{"$f":"IF(DataLog!$C454=\"Log value\",DataLog!D454&\"_\"&TEXT(DataLog!B454,\"åååå-mm-dd\"),\"\")","v":""},{"$f":"IF(DataLog!$C454=\"Log value\",DataLog!E454,\"\")","v":""},{"$f":"IF(DataLog!$C454=\"Log value\",DataLog!F454,\"\")","v":""},{"$f":"IF(DataLog!$C454=\"Log value\",DataLog!G454,\"\")","v":""},{"$f":"IF(DataLog!$C454=\"Log value\",DataLog!H454,\"\")","v":""},{"$f":"IF(DataLog!$C454=\"Log value\",DataLog!I454,\"\")","v":""},{"$f":"IF(DataLog!$C454=\"Log value\",DataLog!J454,\"\")","v":""},{"$f":"IF(DataLog!$C454=\"Log value\",DataLog!K454,\"\")","v":""},{"$f":"IF(DataLog!$C454=\"Log value\",DataLog!L454,\"\")","v":""},{"$f":"IF(DataLog!$C454=\"Log value\",DataLog!M454,\"\")","v":""},{"$f":"IF(DataLog!$C454=\"Log value\",DataLog!N454,\"\")","v":""},{"$f":"IF(DataLog!$C454=\"Log value\",DataLog!O454,\"\")","v":""},{"$f":"IF(DataLog!$C454=\"Log value\",DataLog!P454,\"\")","v":""},{"$f":"IF(DataLog!$C454=\"Log value\",DataLog!Q454,\"\")","v":""},{"$f":"IF(DataLog!$C454=\"Log value\",DataLog!R454,\"\")","v":""},{"$f":"IF(DataLog!$C454=\"Log value\",DataLog!S454,\"\")","v":""},{"$f":"IF(DataLog!$C454=\"Log value\",DataLog!T454,\"\")","v":""},{"$f":"IF(DataLog!$C454=\"Log value\",DataLog!U454,\"\")","v":""},{"$f":"IF(DataLog!$C454=\"Log value\",DataLog!V454,\"\")","v":""},{"$f":"IF(DataLog!$C454=\"Log value\",DataLog!W454,\"\")","v":""},{"$f":"IF(DataLog!$C454=\"Log value\",DataLog!X454,\"\")","v":""},{"$f":"IF(DataLog!$C454=\"Log value\",DataLog!Y454,\"\")","v":""},{"$f":"IF(DataLog!$C454=\"Log value\",DataLog!Z454,\"\")","v":""},{"$f":"IF(DataLog!$C454=\"Log value\",DataLog!AA454,\"\")","v":""},{"$f":"IF(DataLog!$C454=\"Log value\",DataLog!AB454,\"\")","v":""},{"$f":"IF(DataLog!$C454=\"Log value\",DataLog!AC454,\"\")","v":""},{"$f":"IF(DataLog!$C454=\"Log value\",DataLog!AD454,\"\")","v":""},{"$f":"IF(DataLog!$C454=\"Log value\",DataLog!AE454,\"\")","v":""},{"$f":"IF(DataLog!$C454=\"Log value\",DataLog!AF454,\"\")","v":""},{"$f":"IF(DataLog!$C454=\"Log value\",DataLog!AG454,\"\")","v":""},{"$f":"IF(DataLog!$C454=\"Log value\",DataLog!AH454,\"\")","v":""},{"$f":"IF(DataLog!$C454=\"Log value\",DataLog!AI454,\"\")","v":""},{"$f":"IF(DataLog!$C454=\"Log value\",DataLog!AJ454,\"\")","v":""},{"$f":"IF(DataLog!$C454=\"Log value\",DataLog!AK454,\"\")","v":""},{"$f":"IF(DataLog!$C454=\"Log value\",DataLog!AL454,\"\")","v":""},{"$f":"IF(DataLog!$C454=\"Log value\",DataLog!AM454,\"\")","v":""}]
[null,null,"Standard","Standard -  - ",null,null,{"$f":"IF(DataLog!$C455=\"Log value\",DataLog!D455&\"_\"&TEXT(DataLog!B455,\"åååå-mm-dd\"),\"\")","v":""},{"$f":"IF(DataLog!$C455=\"Log value\",DataLog!E455,\"\")","v":""},{"$f":"IF(DataLog!$C455=\"Log value\",DataLog!F455,\"\")","v":""},{"$f":"IF(DataLog!$C455=\"Log value\",DataLog!G455,\"\")","v":""},{"$f":"IF(DataLog!$C455=\"Log value\",DataLog!H455,\"\")","v":""},{"$f":"IF(DataLog!$C455=\"Log value\",DataLog!I455,\"\")","v":""},{"$f":"IF(DataLog!$C455=\"Log value\",DataLog!J455,\"\")","v":""},{"$f":"IF(DataLog!$C455=\"Log value\",DataLog!K455,\"\")","v":""},{"$f":"IF(DataLog!$C455=\"Log value\",DataLog!L455,\"\")","v":""},{"$f":"IF(DataLog!$C455=\"Log value\",DataLog!M455,\"\")","v":""},{"$f":"IF(DataLog!$C455=\"Log value\",DataLog!N455,\"\")","v":""},{"$f":"IF(DataLog!$C455=\"Log value\",DataLog!O455,\"\")","v":""},{"$f":"IF(DataLog!$C455=\"Log value\",DataLog!P455,\"\")","v":""},{"$f":"IF(DataLog!$C455=\"Log value\",DataLog!Q455,\"\")","v":""},{"$f":"IF(DataLog!$C455=\"Log value\",DataLog!R455,\"\")","v":""},{"$f":"IF(DataLog!$C455=\"Log value\",DataLog!S455,\"\")","v":""},{"$f":"IF(DataLog!$C455=\"Log value\",DataLog!T455,\"\")","v":""},{"$f":"IF(DataLog!$C455=\"Log value\",DataLog!U455,\"\")","v":""},{"$f":"IF(DataLog!$C455=\"Log value\",DataLog!V455,\"\")","v":""},{"$f":"IF(DataLog!$C455=\"Log value\",DataLog!W455,\"\")","v":""},{"$f":"IF(DataLog!$C455=\"Log value\",DataLog!X455,\"\")","v":""},{"$f":"IF(DataLog!$C455=\"Log value\",DataLog!Y455,\"\")","v":""},{"$f":"IF(DataLog!$C455=\"Log value\",DataLog!Z455,\"\")","v":""},{"$f":"IF(DataLog!$C455=\"Log value\",DataLog!AA455,\"\")","v":""},{"$f":"IF(DataLog!$C455=\"Log value\",DataLog!AB455,\"\")","v":""},{"$f":"IF(DataLog!$C455=\"Log value\",DataLog!AC455,\"\")","v":""},{"$f":"IF(DataLog!$C455=\"Log value\",DataLog!AD455,\"\")","v":""},{"$f":"IF(DataLog!$C455=\"Log value\",DataLog!AE455,\"\")","v":""},{"$f":"IF(DataLog!$C455=\"Log value\",DataLog!AF455,\"\")","v":""},{"$f":"IF(DataLog!$C455=\"Log value\",DataLog!AG455,\"\")","v":""},{"$f":"IF(DataLog!$C455=\"Log value\",DataLog!AH455,\"\")","v":""},{"$f":"IF(DataLog!$C455=\"Log value\",DataLog!AI455,\"\")","v":""},{"$f":"IF(DataLog!$C455=\"Log value\",DataLog!AJ455,\"\")","v":""},{"$f":"IF(DataLog!$C455=\"Log value\",DataLog!AK455,\"\")","v":""},{"$f":"IF(DataLog!$C455=\"Log value\",DataLog!AL455,\"\")","v":""},{"$f":"IF(DataLog!$C455=\"Log value\",DataLog!AM455,\"\")","v":""}]
[null,null,"Standard","Standard -  - ",null,null,{"$f":"IF(DataLog!$C456=\"Log value\",DataLog!D456&\"_\"&TEXT(DataLog!B456,\"åååå-mm-dd\"),\"\")","v":""},{"$f":"IF(DataLog!$C456=\"Log value\",DataLog!E456,\"\")","v":""},{"$f":"IF(DataLog!$C456=\"Log value\",DataLog!F456,\"\")","v":""},{"$f":"IF(DataLog!$C456=\"Log value\",DataLog!G456,\"\")","v":""},{"$f":"IF(DataLog!$C456=\"Log value\",DataLog!H456,\"\")","v":""},{"$f":"IF(DataLog!$C456=\"Log value\",DataLog!I456,\"\")","v":""},{"$f":"IF(DataLog!$C456=\"Log value\",DataLog!J456,\"\")","v":""},{"$f":"IF(DataLog!$C456=\"Log value\",DataLog!K456,\"\")","v":""},{"$f":"IF(DataLog!$C456=\"Log value\",DataLog!L456,\"\")","v":""},{"$f":"IF(DataLog!$C456=\"Log value\",DataLog!M456,\"\")","v":""},{"$f":"IF(DataLog!$C456=\"Log value\",DataLog!N456,\"\")","v":""},{"$f":"IF(DataLog!$C456=\"Log value\",DataLog!O456,\"\")","v":""},{"$f":"IF(DataLog!$C456=\"Log value\",DataLog!P456,\"\")","v":""},{"$f":"IF(DataLog!$C456=\"Log value\",DataLog!Q456,\"\")","v":""},{"$f":"IF(DataLog!$C456=\"Log value\",DataLog!R456,\"\")","v":""},{"$f":"IF(DataLog!$C456=\"Log value\",DataLog!S456,\"\")","v":""},{"$f":"IF(DataLog!$C456=\"Log value\",DataLog!T456,\"\")","v":""},{"$f":"IF(DataLog!$C456=\"Log value\",DataLog!U456,\"\")","v":""},{"$f":"IF(DataLog!$C456=\"Log value\",DataLog!V456,\"\")","v":""},{"$f":"IF(DataLog!$C456=\"Log value\",DataLog!W456,\"\")","v":""},{"$f":"IF(DataLog!$C456=\"Log value\",DataLog!X456,\"\")","v":""},{"$f":"IF(DataLog!$C456=\"Log value\",DataLog!Y456,\"\")","v":""},{"$f":"IF(DataLog!$C456=\"Log value\",DataLog!Z456,\"\")","v":""},{"$f":"IF(DataLog!$C456=\"Log value\",DataLog!AA456,\"\")","v":""},{"$f":"IF(DataLog!$C456=\"Log value\",DataLog!AB456,\"\")","v":""},{"$f":"IF(DataLog!$C456=\"Log value\",DataLog!AC456,\"\")","v":""},{"$f":"IF(DataLog!$C456=\"Log value\",DataLog!AD456,\"\")","v":""},{"$f":"IF(DataLog!$C456=\"Log value\",DataLog!AE456,\"\")","v":""},{"$f":"IF(DataLog!$C456=\"Log value\",DataLog!AF456,\"\")","v":""},{"$f":"IF(DataLog!$C456=\"Log value\",DataLog!AG456,\"\")","v":""},{"$f":"IF(DataLog!$C456=\"Log value\",DataLog!AH456,\"\")","v":""},{"$f":"IF(DataLog!$C456=\"Log value\",DataLog!AI456,\"\")","v":""},{"$f":"IF(DataLog!$C456=\"Log value\",DataLog!AJ456,\"\")","v":""},{"$f":"IF(DataLog!$C456=\"Log value\",DataLog!AK456,\"\")","v":""},{"$f":"IF(DataLog!$C456=\"Log value\",DataLog!AL456,\"\")","v":""},{"$f":"IF(DataLog!$C456=\"Log value\",DataLog!AM456,\"\")","v":""}]
[null,null,"Standard","Standard -  - ",null,null,{"$f":"IF(DataLog!$C457=\"Log value\",DataLog!D457&\"_\"&TEXT(DataLog!B457,\"åååå-mm-dd\"),\"\")","v":""},{"$f":"IF(DataLog!$C457=\"Log value\",DataLog!E457,\"\")","v":""},{"$f":"IF(DataLog!$C457=\"Log value\",DataLog!F457,\"\")","v":""},{"$f":"IF(DataLog!$C457=\"Log value\",DataLog!G457,\"\")","v":""},{"$f":"IF(DataLog!$C457=\"Log value\",DataLog!H457,\"\")","v":""},{"$f":"IF(DataLog!$C457=\"Log value\",DataLog!I457,\"\")","v":""},{"$f":"IF(DataLog!$C457=\"Log value\",DataLog!J457,\"\")","v":""},{"$f":"IF(DataLog!$C457=\"Log value\",DataLog!K457,\"\")","v":""},{"$f":"IF(DataLog!$C457=\"Log value\",DataLog!L457,\"\")","v":""},{"$f":"IF(DataLog!$C457=\"Log value\",DataLog!M457,\"\")","v":""},{"$f":"IF(DataLog!$C457=\"Log value\",DataLog!N457,\"\")","v":""},{"$f":"IF(DataLog!$C457=\"Log value\",DataLog!O457,\"\")","v":""},{"$f":"IF(DataLog!$C457=\"Log value\",DataLog!P457,\"\")","v":""},{"$f":"IF(DataLog!$C457=\"Log value\",DataLog!Q457,\"\")","v":""},{"$f":"IF(DataLog!$C457=\"Log value\",DataLog!R457,\"\")","v":""},{"$f":"IF(DataLog!$C457=\"Log value\",DataLog!S457,\"\")","v":""},{"$f":"IF(DataLog!$C457=\"Log value\",DataLog!T457,\"\")","v":""},{"$f":"IF(DataLog!$C457=\"Log value\",DataLog!U457,\"\")","v":""},{"$f":"IF(DataLog!$C457=\"Log value\",DataLog!V457,\"\")","v":""},{"$f":"IF(DataLog!$C457=\"Log value\",DataLog!W457,\"\")","v":""},{"$f":"IF(DataLog!$C457=\"Log value\",DataLog!X457,\"\")","v":""},{"$f":"IF(DataLog!$C457=\"Log value\",DataLog!Y457,\"\")","v":""},{"$f":"IF(DataLog!$C457=\"Log value\",DataLog!Z457,\"\")","v":""},{"$f":"IF(DataLog!$C457=\"Log value\",DataLog!AA457,\"\")","v":""},{"$f":"IF(DataLog!$C457=\"Log value\",DataLog!AB457,\"\")","v":""},{"$f":"IF(DataLog!$C457=\"Log value\",DataLog!AC457,\"\")","v":""},{"$f":"IF(DataLog!$C457=\"Log value\",DataLog!AD457,\"\")","v":""},{"$f":"IF(DataLog!$C457=\"Log value\",DataLog!AE457,\"\")","v":""},{"$f":"IF(DataLog!$C457=\"Log value\",DataLog!AF457,\"\")","v":""},{"$f":"IF(DataLog!$C457=\"Log value\",DataLog!AG457,\"\")","v":""},{"$f":"IF(DataLog!$C457=\"Log value\",DataLog!AH457,\"\")","v":""},{"$f":"IF(DataLog!$C457=\"Log value\",DataLog!AI457,\"\")","v":""},{"$f":"IF(DataLog!$C457=\"Log value\",DataLog!AJ457,\"\")","v":""},{"$f":"IF(DataLog!$C457=\"Log value\",DataLog!AK457,\"\")","v":""},{"$f":"IF(DataLog!$C457=\"Log value\",DataLog!AL457,\"\")","v":""},{"$f":"IF(DataLog!$C457=\"Log value\",DataLog!AM457,\"\")","v":""}]
[null,null,"Standard","Standard -  - ",null,null,{"$f":"IF(DataLog!$C458=\"Log value\",DataLog!D458&\"_\"&TEXT(DataLog!B458,\"åååå-mm-dd\"),\"\")","v":""},{"$f":"IF(DataLog!$C458=\"Log value\",DataLog!E458,\"\")","v":""},{"$f":"IF(DataLog!$C458=\"Log value\",DataLog!F458,\"\")","v":""},{"$f":"IF(DataLog!$C458=\"Log value\",DataLog!G458,\"\")","v":""},{"$f":"IF(DataLog!$C458=\"Log value\",DataLog!H458,\"\")","v":""},{"$f":"IF(DataLog!$C458=\"Log value\",DataLog!I458,\"\")","v":""},{"$f":"IF(DataLog!$C458=\"Log value\",DataLog!J458,\"\")","v":""},{"$f":"IF(DataLog!$C458=\"Log value\",DataLog!K458,\"\")","v":""},{"$f":"IF(DataLog!$C458=\"Log value\",DataLog!L458,\"\")","v":""},{"$f":"IF(DataLog!$C458=\"Log value\",DataLog!M458,\"\")","v":""},{"$f":"IF(DataLog!$C458=\"Log value\",DataLog!N458,\"\")","v":""},{"$f":"IF(DataLog!$C458=\"Log value\",DataLog!O458,\"\")","v":""},{"$f":"IF(DataLog!$C458=\"Log value\",DataLog!P458,\"\")","v":""},{"$f":"IF(DataLog!$C458=\"Log value\",DataLog!Q458,\"\")","v":""},{"$f":"IF(DataLog!$C458=\"Log value\",DataLog!R458,\"\")","v":""},{"$f":"IF(DataLog!$C458=\"Log value\",DataLog!S458,\"\")","v":""},{"$f":"IF(DataLog!$C458=\"Log value\",DataLog!T458,\"\")","v":""},{"$f":"IF(DataLog!$C458=\"Log value\",DataLog!U458,\"\")","v":""},{"$f":"IF(DataLog!$C458=\"Log value\",DataLog!V458,\"\")","v":""},{"$f":"IF(DataLog!$C458=\"Log value\",DataLog!W458,\"\")","v":""},{"$f":"IF(DataLog!$C458=\"Log value\",DataLog!X458,\"\")","v":""},{"$f":"IF(DataLog!$C458=\"Log value\",DataLog!Y458,\"\")","v":""},{"$f":"IF(DataLog!$C458=\"Log value\",DataLog!Z458,\"\")","v":""},{"$f":"IF(DataLog!$C458=\"Log value\",DataLog!AA458,\"\")","v":""},{"$f":"IF(DataLog!$C458=\"Log value\",DataLog!AB458,\"\")","v":""},{"$f":"IF(DataLog!$C458=\"Log value\",DataLog!AC458,\"\")","v":""},{"$f":"IF(DataLog!$C458=\"Log value\",DataLog!AD458,\"\")","v":""},{"$f":"IF(DataLog!$C458=\"Log value\",DataLog!AE458,\"\")","v":""},{"$f":"IF(DataLog!$C458=\"Log value\",DataLog!AF458,\"\")","v":""},{"$f":"IF(DataLog!$C458=\"Log value\",DataLog!AG458,\"\")","v":""},{"$f":"IF(DataLog!$C458=\"Log value\",DataLog!AH458,\"\")","v":""},{"$f":"IF(DataLog!$C458=\"Log value\",DataLog!AI458,\"\")","v":""},{"$f":"IF(DataLog!$C458=\"Log value\",DataLog!AJ458,\"\")","v":""},{"$f":"IF(DataLog!$C458=\"Log value\",DataLog!AK458,\"\")","v":""},{"$f":"IF(DataLog!$C458=\"Log value\",DataLog!AL458,\"\")","v":""},{"$f":"IF(DataLog!$C458=\"Log value\",DataLog!AM458,\"\")","v":""}]
[null,null,"Standard","Standard -  - ",null,null,{"$f":"IF(DataLog!$C459=\"Log value\",DataLog!D459&\"_\"&TEXT(DataLog!B459,\"åååå-mm-dd\"),\"\")","v":""},{"$f":"IF(DataLog!$C459=\"Log value\",DataLog!E459,\"\")","v":""},{"$f":"IF(DataLog!$C459=\"Log value\",DataLog!F459,\"\")","v":""},{"$f":"IF(DataLog!$C459=\"Log value\",DataLog!G459,\"\")","v":""},{"$f":"IF(DataLog!$C459=\"Log value\",DataLog!H459,\"\")","v":""},{"$f":"IF(DataLog!$C459=\"Log value\",DataLog!I459,\"\")","v":""},{"$f":"IF(DataLog!$C459=\"Log value\",DataLog!J459,\"\")","v":""},{"$f":"IF(DataLog!$C459=\"Log value\",DataLog!K459,\"\")","v":""},{"$f":"IF(DataLog!$C459=\"Log value\",DataLog!L459,\"\")","v":""},{"$f":"IF(DataLog!$C459=\"Log value\",DataLog!M459,\"\")","v":""},{"$f":"IF(DataLog!$C459=\"Log value\",DataLog!N459,\"\")","v":""},{"$f":"IF(DataLog!$C459=\"Log value\",DataLog!O459,\"\")","v":""},{"$f":"IF(DataLog!$C459=\"Log value\",DataLog!P459,\"\")","v":""},{"$f":"IF(DataLog!$C459=\"Log value\",DataLog!Q459,\"\")","v":""},{"$f":"IF(DataLog!$C459=\"Log value\",DataLog!R459,\"\")","v":""},{"$f":"IF(DataLog!$C459=\"Log value\",DataLog!S459,\"\")","v":""},{"$f":"IF(DataLog!$C459=\"Log value\",DataLog!T459,\"\")","v":""},{"$f":"IF(DataLog!$C459=\"Log value\",DataLog!U459,\"\")","v":""},{"$f":"IF(DataLog!$C459=\"Log value\",DataLog!V459,\"\")","v":""},{"$f":"IF(DataLog!$C459=\"Log value\",DataLog!W459,\"\")","v":""},{"$f":"IF(DataLog!$C459=\"Log value\",DataLog!X459,\"\")","v":""},{"$f":"IF(DataLog!$C459=\"Log value\",DataLog!Y459,\"\")","v":""},{"$f":"IF(DataLog!$C459=\"Log value\",DataLog!Z459,\"\")","v":""},{"$f":"IF(DataLog!$C459=\"Log value\",DataLog!AA459,\"\")","v":""},{"$f":"IF(DataLog!$C459=\"Log value\",DataLog!AB459,\"\")","v":""},{"$f":"IF(DataLog!$C459=\"Log value\",DataLog!AC459,\"\")","v":""},{"$f":"IF(DataLog!$C459=\"Log value\",DataLog!AD459,\"\")","v":""},{"$f":"IF(DataLog!$C459=\"Log value\",DataLog!AE459,\"\")","v":""},{"$f":"IF(DataLog!$C459=\"Log value\",DataLog!AF459,\"\")","v":""},{"$f":"IF(DataLog!$C459=\"Log value\",DataLog!AG459,\"\")","v":""},{"$f":"IF(DataLog!$C459=\"Log value\",DataLog!AH459,\"\")","v":""},{"$f":"IF(DataLog!$C459=\"Log value\",DataLog!AI459,\"\")","v":""},{"$f":"IF(DataLog!$C459=\"Log value\",DataLog!AJ459,\"\")","v":""},{"$f":"IF(DataLog!$C459=\"Log value\",DataLog!AK459,\"\")","v":""},{"$f":"IF(DataLog!$C459=\"Log value\",DataLog!AL459,\"\")","v":""},{"$f":"IF(DataLog!$C459=\"Log value\",DataLog!AM459,\"\")","v":""}]
[null,null,"Standard","Standard -  - ",null,null,{"$f":"IF(DataLog!$C460=\"Log value\",DataLog!D460&\"_\"&TEXT(DataLog!B460,\"åååå-mm-dd\"),\"\")","v":""},{"$f":"IF(DataLog!$C460=\"Log value\",DataLog!E460,\"\")","v":""},{"$f":"IF(DataLog!$C460=\"Log value\",DataLog!F460,\"\")","v":""},{"$f":"IF(DataLog!$C460=\"Log value\",DataLog!G460,\"\")","v":""},{"$f":"IF(DataLog!$C460=\"Log value\",DataLog!H460,\"\")","v":""},{"$f":"IF(DataLog!$C460=\"Log value\",DataLog!I460,\"\")","v":""},{"$f":"IF(DataLog!$C460=\"Log value\",DataLog!J460,\"\")","v":""},{"$f":"IF(DataLog!$C460=\"Log value\",DataLog!K460,\"\")","v":""},{"$f":"IF(DataLog!$C460=\"Log value\",DataLog!L460,\"\")","v":""},{"$f":"IF(DataLog!$C460=\"Log value\",DataLog!M460,\"\")","v":""},{"$f":"IF(DataLog!$C460=\"Log value\",DataLog!N460,\"\")","v":""},{"$f":"IF(DataLog!$C460=\"Log value\",DataLog!O460,\"\")","v":""},{"$f":"IF(DataLog!$C460=\"Log value\",DataLog!P460,\"\")","v":""},{"$f":"IF(DataLog!$C460=\"Log value\",DataLog!Q460,\"\")","v":""},{"$f":"IF(DataLog!$C460=\"Log value\",DataLog!R460,\"\")","v":""},{"$f":"IF(DataLog!$C460=\"Log value\",DataLog!S460,\"\")","v":""},{"$f":"IF(DataLog!$C460=\"Log value\",DataLog!T460,\"\")","v":""},{"$f":"IF(DataLog!$C460=\"Log value\",DataLog!U460,\"\")","v":""},{"$f":"IF(DataLog!$C460=\"Log value\",DataLog!V460,\"\")","v":""},{"$f":"IF(DataLog!$C460=\"Log value\",DataLog!W460,\"\")","v":""},{"$f":"IF(DataLog!$C460=\"Log value\",DataLog!X460,\"\")","v":""},{"$f":"IF(DataLog!$C460=\"Log value\",DataLog!Y460,\"\")","v":""},{"$f":"IF(DataLog!$C460=\"Log value\",DataLog!Z460,\"\")","v":""},{"$f":"IF(DataLog!$C460=\"Log value\",DataLog!AA460,\"\")","v":""},{"$f":"IF(DataLog!$C460=\"Log value\",DataLog!AB460,\"\")","v":""},{"$f":"IF(DataLog!$C460=\"Log value\",DataLog!AC460,\"\")","v":""},{"$f":"IF(DataLog!$C460=\"Log value\",DataLog!AD460,\"\")","v":""},{"$f":"IF(DataLog!$C460=\"Log value\",DataLog!AE460,\"\")","v":""},{"$f":"IF(DataLog!$C460=\"Log value\",DataLog!AF460,\"\")","v":""},{"$f":"IF(DataLog!$C460=\"Log value\",DataLog!AG460,\"\")","v":""},{"$f":"IF(DataLog!$C460=\"Log value\",DataLog!AH460,\"\")","v":""},{"$f":"IF(DataLog!$C460=\"Log value\",DataLog!AI460,\"\")","v":""},{"$f":"IF(DataLog!$C460=\"Log value\",DataLog!AJ460,\"\")","v":""},{"$f":"IF(DataLog!$C460=\"Log value\",DataLog!AK460,\"\")","v":""},{"$f":"IF(DataLog!$C460=\"Log value\",DataLog!AL460,\"\")","v":""},{"$f":"IF(DataLog!$C460=\"Log value\",DataLog!AM460,\"\")","v":""}]
[null,null,"Standard","Standard -  - ",null,null,{"$f":"IF(DataLog!$C461=\"Log value\",DataLog!D461&\"_\"&TEXT(DataLog!B461,\"åååå-mm-dd\"),\"\")","v":""},{"$f":"IF(DataLog!$C461=\"Log value\",DataLog!E461,\"\")","v":""},{"$f":"IF(DataLog!$C461=\"Log value\",DataLog!F461,\"\")","v":""},{"$f":"IF(DataLog!$C461=\"Log value\",DataLog!G461,\"\")","v":""},{"$f":"IF(DataLog!$C461=\"Log value\",DataLog!H461,\"\")","v":""},{"$f":"IF(DataLog!$C461=\"Log value\",DataLog!I461,\"\")","v":""},{"$f":"IF(DataLog!$C461=\"Log value\",DataLog!J461,\"\")","v":""},{"$f":"IF(DataLog!$C461=\"Log value\",DataLog!K461,\"\")","v":""},{"$f":"IF(DataLog!$C461=\"Log value\",DataLog!L461,\"\")","v":""},{"$f":"IF(DataLog!$C461=\"Log value\",DataLog!M461,\"\")","v":""},{"$f":"IF(DataLog!$C461=\"Log value\",DataLog!N461,\"\")","v":""},{"$f":"IF(DataLog!$C461=\"Log value\",DataLog!O461,\"\")","v":""},{"$f":"IF(DataLog!$C461=\"Log value\",DataLog!P461,\"\")","v":""},{"$f":"IF(DataLog!$C461=\"Log value\",DataLog!Q461,\"\")","v":""},{"$f":"IF(DataLog!$C461=\"Log value\",DataLog!R461,\"\")","v":""},{"$f":"IF(DataLog!$C461=\"Log value\",DataLog!S461,\"\")","v":""},{"$f":"IF(DataLog!$C461=\"Log value\",DataLog!T461,\"\")","v":""},{"$f":"IF(DataLog!$C461=\"Log value\",DataLog!U461,\"\")","v":""},{"$f":"IF(DataLog!$C461=\"Log value\",DataLog!V461,\"\")","v":""},{"$f":"IF(DataLog!$C461=\"Log value\",DataLog!W461,\"\")","v":""},{"$f":"IF(DataLog!$C461=\"Log value\",DataLog!X461,\"\")","v":""},{"$f":"IF(DataLog!$C461=\"Log value\",DataLog!Y461,\"\")","v":""},{"$f":"IF(DataLog!$C461=\"Log value\",DataLog!Z461,\"\")","v":""},{"$f":"IF(DataLog!$C461=\"Log value\",DataLog!AA461,\"\")","v":""},{"$f":"IF(DataLog!$C461=\"Log value\",DataLog!AB461,\"\")","v":""},{"$f":"IF(DataLog!$C461=\"Log value\",DataLog!AC461,\"\")","v":""},{"$f":"IF(DataLog!$C461=\"Log value\",DataLog!AD461,\"\")","v":""},{"$f":"IF(DataLog!$C461=\"Log value\",DataLog!AE461,\"\")","v":""},{"$f":"IF(DataLog!$C461=\"Log value\",DataLog!AF461,\"\")","v":""},{"$f":"IF(DataLog!$C461=\"Log value\",DataLog!AG461,\"\")","v":""},{"$f":"IF(DataLog!$C461=\"Log value\",DataLog!AH461,\"\")","v":""},{"$f":"IF(DataLog!$C461=\"Log value\",DataLog!AI461,\"\")","v":""},{"$f":"IF(DataLog!$C461=\"Log value\",DataLog!AJ461,\"\")","v":""},{"$f":"IF(DataLog!$C461=\"Log value\",DataLog!AK461,\"\")","v":""},{"$f":"IF(DataLog!$C461=\"Log value\",DataLog!AL461,\"\")","v":""},{"$f":"IF(DataLog!$C461=\"Log value\",DataLog!AM461,\"\")","v":""}]
[null,null,"Standard","Standard -  - ",null,null,{"$f":"IF(DataLog!$C462=\"Log value\",DataLog!D462&\"_\"&TEXT(DataLog!B462,\"åååå-mm-dd\"),\"\")","v":""},{"$f":"IF(DataLog!$C462=\"Log value\",DataLog!E462,\"\")","v":""},{"$f":"IF(DataLog!$C462=\"Log value\",DataLog!F462,\"\")","v":""},{"$f":"IF(DataLog!$C462=\"Log value\",DataLog!G462,\"\")","v":""},{"$f":"IF(DataLog!$C462=\"Log value\",DataLog!H462,\"\")","v":""},{"$f":"IF(DataLog!$C462=\"Log value\",DataLog!I462,\"\")","v":""},{"$f":"IF(DataLog!$C462=\"Log value\",DataLog!J462,\"\")","v":""},{"$f":"IF(DataLog!$C462=\"Log value\",DataLog!K462,\"\")","v":""},{"$f":"IF(DataLog!$C462=\"Log value\",DataLog!L462,\"\")","v":""},{"$f":"IF(DataLog!$C462=\"Log value\",DataLog!M462,\"\")","v":""},{"$f":"IF(DataLog!$C462=\"Log value\",DataLog!N462,\"\")","v":""},{"$f":"IF(DataLog!$C462=\"Log value\",DataLog!O462,\"\")","v":""},{"$f":"IF(DataLog!$C462=\"Log value\",DataLog!P462,\"\")","v":""},{"$f":"IF(DataLog!$C462=\"Log value\",DataLog!Q462,\"\")","v":""},{"$f":"IF(DataLog!$C462=\"Log value\",DataLog!R462,\"\")","v":""},{"$f":"IF(DataLog!$C462=\"Log value\",DataLog!S462,\"\")","v":""},{"$f":"IF(DataLog!$C462=\"Log value\",DataLog!T462,\"\")","v":""},{"$f":"IF(DataLog!$C462=\"Log value\",DataLog!U462,\"\")","v":""},{"$f":"IF(DataLog!$C462=\"Log value\",DataLog!V462,\"\")","v":""},{"$f":"IF(DataLog!$C462=\"Log value\",DataLog!W462,\"\")","v":""},{"$f":"IF(DataLog!$C462=\"Log value\",DataLog!X462,\"\")","v":""},{"$f":"IF(DataLog!$C462=\"Log value\",DataLog!Y462,\"\")","v":""},{"$f":"IF(DataLog!$C462=\"Log value\",DataLog!Z462,\"\")","v":""},{"$f":"IF(DataLog!$C462=\"Log value\",DataLog!AA462,\"\")","v":""},{"$f":"IF(DataLog!$C462=\"Log value\",DataLog!AB462,\"\")","v":""},{"$f":"IF(DataLog!$C462=\"Log value\",DataLog!AC462,\"\")","v":""},{"$f":"IF(DataLog!$C462=\"Log value\",DataLog!AD462,\"\")","v":""},{"$f":"IF(DataLog!$C462=\"Log value\",DataLog!AE462,\"\")","v":""},{"$f":"IF(DataLog!$C462=\"Log value\",DataLog!AF462,\"\")","v":""},{"$f":"IF(DataLog!$C462=\"Log value\",DataLog!AG462,\"\")","v":""},{"$f":"IF(DataLog!$C462=\"Log value\",DataLog!AH462,\"\")","v":""},{"$f":"IF(DataLog!$C462=\"Log value\",DataLog!AI462,\"\")","v":""},{"$f":"IF(DataLog!$C462=\"Log value\",DataLog!AJ462,\"\")","v":""},{"$f":"IF(DataLog!$C462=\"Log value\",DataLog!AK462,\"\")","v":""},{"$f":"IF(DataLog!$C462=\"Log value\",DataLog!AL462,\"\")","v":""},{"$f":"IF(DataLog!$C462=\"Log value\",DataLog!AM462,\"\")","v":""}]
[null,null,"Standard","Standard -  - ",null,null,{"$f":"IF(DataLog!$C463=\"Log value\",DataLog!D463&\"_\"&TEXT(DataLog!B463,\"åååå-mm-dd\"),\"\")","v":""},{"$f":"IF(DataLog!$C463=\"Log value\",DataLog!E463,\"\")","v":""},{"$f":"IF(DataLog!$C463=\"Log value\",DataLog!F463,\"\")","v":""},{"$f":"IF(DataLog!$C463=\"Log value\",DataLog!G463,\"\")","v":""},{"$f":"IF(DataLog!$C463=\"Log value\",DataLog!H463,\"\")","v":""},{"$f":"IF(DataLog!$C463=\"Log value\",DataLog!I463,\"\")","v":""},{"$f":"IF(DataLog!$C463=\"Log value\",DataLog!J463,\"\")","v":""},{"$f":"IF(DataLog!$C463=\"Log value\",DataLog!K463,\"\")","v":""},{"$f":"IF(DataLog!$C463=\"Log value\",DataLog!L463,\"\")","v":""},{"$f":"IF(DataLog!$C463=\"Log value\",DataLog!M463,\"\")","v":""},{"$f":"IF(DataLog!$C463=\"Log value\",DataLog!N463,\"\")","v":""},{"$f":"IF(DataLog!$C463=\"Log value\",DataLog!O463,\"\")","v":""},{"$f":"IF(DataLog!$C463=\"Log value\",DataLog!P463,\"\")","v":""},{"$f":"IF(DataLog!$C463=\"Log value\",DataLog!Q463,\"\")","v":""},{"$f":"IF(DataLog!$C463=\"Log value\",DataLog!R463,\"\")","v":""},{"$f":"IF(DataLog!$C463=\"Log value\",DataLog!S463,\"\")","v":""},{"$f":"IF(DataLog!$C463=\"Log value\",DataLog!T463,\"\")","v":""},{"$f":"IF(DataLog!$C463=\"Log value\",DataLog!U463,\"\")","v":""},{"$f":"IF(DataLog!$C463=\"Log value\",DataLog!V463,\"\")","v":""},{"$f":"IF(DataLog!$C463=\"Log value\",DataLog!W463,\"\")","v":""},{"$f":"IF(DataLog!$C463=\"Log value\",DataLog!X463,\"\")","v":""},{"$f":"IF(DataLog!$C463=\"Log value\",DataLog!Y463,\"\")","v":""},{"$f":"IF(DataLog!$C463=\"Log value\",DataLog!Z463,\"\")","v":""},{"$f":"IF(DataLog!$C463=\"Log value\",DataLog!AA463,\"\")","v":""},{"$f":"IF(DataLog!$C463=\"Log value\",DataLog!AB463,\"\")","v":""},{"$f":"IF(DataLog!$C463=\"Log value\",DataLog!AC463,\"\")","v":""},{"$f":"IF(DataLog!$C463=\"Log value\",DataLog!AD463,\"\")","v":""},{"$f":"IF(DataLog!$C463=\"Log value\",DataLog!AE463,\"\")","v":""},{"$f":"IF(DataLog!$C463=\"Log value\",DataLog!AF463,\"\")","v":""},{"$f":"IF(DataLog!$C463=\"Log value\",DataLog!AG463,\"\")","v":""},{"$f":"IF(DataLog!$C463=\"Log value\",DataLog!AH463,\"\")","v":""},{"$f":"IF(DataLog!$C463=\"Log value\",DataLog!AI463,\"\")","v":""},{"$f":"IF(DataLog!$C463=\"Log value\",DataLog!AJ463,\"\")","v":""},{"$f":"IF(DataLog!$C463=\"Log value\",DataLog!AK463,\"\")","v":""},{"$f":"IF(DataLog!$C463=\"Log value\",DataLog!AL463,\"\")","v":""},{"$f":"IF(DataLog!$C463=\"Log value\",DataLog!AM463,\"\")","v":""}]
[null,null,"Standard","Standard -  - ",null,null,{"$f":"IF(DataLog!$C464=\"Log value\",DataLog!D464&\"_\"&TEXT(DataLog!B464,\"åååå-mm-dd\"),\"\")","v":""},{"$f":"IF(DataLog!$C464=\"Log value\",DataLog!E464,\"\")","v":""},{"$f":"IF(DataLog!$C464=\"Log value\",DataLog!F464,\"\")","v":""},{"$f":"IF(DataLog!$C464=\"Log value\",DataLog!G464,\"\")","v":""},{"$f":"IF(DataLog!$C464=\"Log value\",DataLog!H464,\"\")","v":""},{"$f":"IF(DataLog!$C464=\"Log value\",DataLog!I464,\"\")","v":""},{"$f":"IF(DataLog!$C464=\"Log value\",DataLog!J464,\"\")","v":""},{"$f":"IF(DataLog!$C464=\"Log value\",DataLog!K464,\"\")","v":""},{"$f":"IF(DataLog!$C464=\"Log value\",DataLog!L464,\"\")","v":""},{"$f":"IF(DataLog!$C464=\"Log value\",DataLog!M464,\"\")","v":""},{"$f":"IF(DataLog!$C464=\"Log value\",DataLog!N464,\"\")","v":""},{"$f":"IF(DataLog!$C464=\"Log value\",DataLog!O464,\"\")","v":""},{"$f":"IF(DataLog!$C464=\"Log value\",DataLog!P464,\"\")","v":""},{"$f":"IF(DataLog!$C464=\"Log value\",DataLog!Q464,\"\")","v":""},{"$f":"IF(DataLog!$C464=\"Log value\",DataLog!R464,\"\")","v":""},{"$f":"IF(DataLog!$C464=\"Log value\",DataLog!S464,\"\")","v":""},{"$f":"IF(DataLog!$C464=\"Log value\",DataLog!T464,\"\")","v":""},{"$f":"IF(DataLog!$C464=\"Log value\",DataLog!U464,\"\")","v":""},{"$f":"IF(DataLog!$C464=\"Log value\",DataLog!V464,\"\")","v":""},{"$f":"IF(DataLog!$C464=\"Log value\",DataLog!W464,\"\")","v":""},{"$f":"IF(DataLog!$C464=\"Log value\",DataLog!X464,\"\")","v":""},{"$f":"IF(DataLog!$C464=\"Log value\",DataLog!Y464,\"\")","v":""},{"$f":"IF(DataLog!$C464=\"Log value\",DataLog!Z464,\"\")","v":""},{"$f":"IF(DataLog!$C464=\"Log value\",DataLog!AA464,\"\")","v":""},{"$f":"IF(DataLog!$C464=\"Log value\",DataLog!AB464,\"\")","v":""},{"$f":"IF(DataLog!$C464=\"Log value\",DataLog!AC464,\"\")","v":""},{"$f":"IF(DataLog!$C464=\"Log value\",DataLog!AD464,\"\")","v":""},{"$f":"IF(DataLog!$C464=\"Log value\",DataLog!AE464,\"\")","v":""},{"$f":"IF(DataLog!$C464=\"Log value\",DataLog!AF464,\"\")","v":""},{"$f":"IF(DataLog!$C464=\"Log value\",DataLog!AG464,\"\")","v":""},{"$f":"IF(DataLog!$C464=\"Log value\",DataLog!AH464,\"\")","v":""},{"$f":"IF(DataLog!$C464=\"Log value\",DataLog!AI464,\"\")","v":""},{"$f":"IF(DataLog!$C464=\"Log value\",DataLog!AJ464,\"\")","v":""},{"$f":"IF(DataLog!$C464=\"Log value\",DataLog!AK464,\"\")","v":""},{"$f":"IF(DataLog!$C464=\"Log value\",DataLog!AL464,\"\")","v":""},{"$f":"IF(DataLog!$C464=\"Log value\",DataLog!AM464,\"\")","v":""}]
[null,null,"Standard","Standard -  - ",null,null,{"$f":"IF(DataLog!$C465=\"Log value\",DataLog!D465&\"_\"&TEXT(DataLog!B465,\"åååå-mm-dd\"),\"\")","v":""},{"$f":"IF(DataLog!$C465=\"Log value\",DataLog!E465,\"\")","v":""},{"$f":"IF(DataLog!$C465=\"Log value\",DataLog!F465,\"\")","v":""},{"$f":"IF(DataLog!$C465=\"Log value\",DataLog!G465,\"\")","v":""},{"$f":"IF(DataLog!$C465=\"Log value\",DataLog!H465,\"\")","v":""},{"$f":"IF(DataLog!$C465=\"Log value\",DataLog!I465,\"\")","v":""},{"$f":"IF(DataLog!$C465=\"Log value\",DataLog!J465,\"\")","v":""},{"$f":"IF(DataLog!$C465=\"Log value\",DataLog!K465,\"\")","v":""},{"$f":"IF(DataLog!$C465=\"Log value\",DataLog!L465,\"\")","v":""},{"$f":"IF(DataLog!$C465=\"Log value\",DataLog!M465,\"\")","v":""},{"$f":"IF(DataLog!$C465=\"Log value\",DataLog!N465,\"\")","v":""},{"$f":"IF(DataLog!$C465=\"Log value\",DataLog!O465,\"\")","v":""},{"$f":"IF(DataLog!$C465=\"Log value\",DataLog!P465,\"\")","v":""},{"$f":"IF(DataLog!$C465=\"Log value\",DataLog!Q465,\"\")","v":""},{"$f":"IF(DataLog!$C465=\"Log value\",DataLog!R465,\"\")","v":""},{"$f":"IF(DataLog!$C465=\"Log value\",DataLog!S465,\"\")","v":""},{"$f":"IF(DataLog!$C465=\"Log value\",DataLog!T465,\"\")","v":""},{"$f":"IF(DataLog!$C465=\"Log value\",DataLog!U465,\"\")","v":""},{"$f":"IF(DataLog!$C465=\"Log value\",DataLog!V465,\"\")","v":""},{"$f":"IF(DataLog!$C465=\"Log value\",DataLog!W465,\"\")","v":""},{"$f":"IF(DataLog!$C465=\"Log value\",DataLog!X465,\"\")","v":""},{"$f":"IF(DataLog!$C465=\"Log value\",DataLog!Y465,\"\")","v":""},{"$f":"IF(DataLog!$C465=\"Log value\",DataLog!Z465,\"\")","v":""},{"$f":"IF(DataLog!$C465=\"Log value\",DataLog!AA465,\"\")","v":""},{"$f":"IF(DataLog!$C465=\"Log value\",DataLog!AB465,\"\")","v":""},{"$f":"IF(DataLog!$C465=\"Log value\",DataLog!AC465,\"\")","v":""},{"$f":"IF(DataLog!$C465=\"Log value\",DataLog!AD465,\"\")","v":""},{"$f":"IF(DataLog!$C465=\"Log value\",DataLog!AE465,\"\")","v":""},{"$f":"IF(DataLog!$C465=\"Log value\",DataLog!AF465,\"\")","v":""},{"$f":"IF(DataLog!$C465=\"Log value\",DataLog!AG465,\"\")","v":""},{"$f":"IF(DataLog!$C465=\"Log value\",DataLog!AH465,\"\")","v":""},{"$f":"IF(DataLog!$C465=\"Log value\",DataLog!AI465,\"\")","v":""},{"$f":"IF(DataLog!$C465=\"Log value\",DataLog!AJ465,\"\")","v":""},{"$f":"IF(DataLog!$C465=\"Log value\",DataLog!AK465,\"\")","v":""},{"$f":"IF(DataLog!$C465=\"Log value\",DataLog!AL465,\"\")","v":""},{"$f":"IF(DataLog!$C465=\"Log value\",DataLog!AM465,\"\")","v":""}]
[null,null,"Standard","Standard -  - ",null,null,{"$f":"IF(DataLog!$C466=\"Log value\",DataLog!D466&\"_\"&TEXT(DataLog!B466,\"åååå-mm-dd\"),\"\")","v":""},{"$f":"IF(DataLog!$C466=\"Log value\",DataLog!E466,\"\")","v":""},{"$f":"IF(DataLog!$C466=\"Log value\",DataLog!F466,\"\")","v":""},{"$f":"IF(DataLog!$C466=\"Log value\",DataLog!G466,\"\")","v":""},{"$f":"IF(DataLog!$C466=\"Log value\",DataLog!H466,\"\")","v":""},{"$f":"IF(DataLog!$C466=\"Log value\",DataLog!I466,\"\")","v":""},{"$f":"IF(DataLog!$C466=\"Log value\",DataLog!J466,\"\")","v":""},{"$f":"IF(DataLog!$C466=\"Log value\",DataLog!K466,\"\")","v":""},{"$f":"IF(DataLog!$C466=\"Log value\",DataLog!L466,\"\")","v":""},{"$f":"IF(DataLog!$C466=\"Log value\",DataLog!M466,\"\")","v":""},{"$f":"IF(DataLog!$C466=\"Log value\",DataLog!N466,\"\")","v":""},{"$f":"IF(DataLog!$C466=\"Log value\",DataLog!O466,\"\")","v":""},{"$f":"IF(DataLog!$C466=\"Log value\",DataLog!P466,\"\")","v":""},{"$f":"IF(DataLog!$C466=\"Log value\",DataLog!Q466,\"\")","v":""},{"$f":"IF(DataLog!$C466=\"Log value\",DataLog!R466,\"\")","v":""},{"$f":"IF(DataLog!$C466=\"Log value\",DataLog!S466,\"\")","v":""},{"$f":"IF(DataLog!$C466=\"Log value\",DataLog!T466,\"\")","v":""},{"$f":"IF(DataLog!$C466=\"Log value\",DataLog!U466,\"\")","v":""},{"$f":"IF(DataLog!$C466=\"Log value\",DataLog!V466,\"\")","v":""},{"$f":"IF(DataLog!$C466=\"Log value\",DataLog!W466,\"\")","v":""},{"$f":"IF(DataLog!$C466=\"Log value\",DataLog!X466,\"\")","v":""},{"$f":"IF(DataLog!$C466=\"Log value\",DataLog!Y466,\"\")","v":""},{"$f":"IF(DataLog!$C466=\"Log value\",DataLog!Z466,\"\")","v":""},{"$f":"IF(DataLog!$C466=\"Log value\",DataLog!AA466,\"\")","v":""},{"$f":"IF(DataLog!$C466=\"Log value\",DataLog!AB466,\"\")","v":""},{"$f":"IF(DataLog!$C466=\"Log value\",DataLog!AC466,\"\")","v":""},{"$f":"IF(DataLog!$C466=\"Log value\",DataLog!AD466,\"\")","v":""},{"$f":"IF(DataLog!$C466=\"Log value\",DataLog!AE466,\"\")","v":""},{"$f":"IF(DataLog!$C466=\"Log value\",DataLog!AF466,\"\")","v":""},{"$f":"IF(DataLog!$C466=\"Log value\",DataLog!AG466,\"\")","v":""},{"$f":"IF(DataLog!$C466=\"Log value\",DataLog!AH466,\"\")","v":""},{"$f":"IF(DataLog!$C466=\"Log value\",DataLog!AI466,\"\")","v":""},{"$f":"IF(DataLog!$C466=\"Log value\",DataLog!AJ466,\"\")","v":""},{"$f":"IF(DataLog!$C466=\"Log value\",DataLog!AK466,\"\")","v":""},{"$f":"IF(DataLog!$C466=\"Log value\",DataLog!AL466,\"\")","v":""},{"$f":"IF(DataLog!$C466=\"Log value\",DataLog!AM466,\"\")","v":""}]
[null,null,"Standard","Standard -  - ",null,null,{"$f":"IF(DataLog!$C467=\"Log value\",DataLog!D467&\"_\"&TEXT(DataLog!B467,\"åååå-mm-dd\"),\"\")","v":""},{"$f":"IF(DataLog!$C467=\"Log value\",DataLog!E467,\"\")","v":""},{"$f":"IF(DataLog!$C467=\"Log value\",DataLog!F467,\"\")","v":""},{"$f":"IF(DataLog!$C467=\"Log value\",DataLog!G467,\"\")","v":""},{"$f":"IF(DataLog!$C467=\"Log value\",DataLog!H467,\"\")","v":""},{"$f":"IF(DataLog!$C467=\"Log value\",DataLog!I467,\"\")","v":""},{"$f":"IF(DataLog!$C467=\"Log value\",DataLog!J467,\"\")","v":""},{"$f":"IF(DataLog!$C467=\"Log value\",DataLog!K467,\"\")","v":""},{"$f":"IF(DataLog!$C467=\"Log value\",DataLog!L467,\"\")","v":""},{"$f":"IF(DataLog!$C467=\"Log value\",DataLog!M467,\"\")","v":""},{"$f":"IF(DataLog!$C467=\"Log value\",DataLog!N467,\"\")","v":""},{"$f":"IF(DataLog!$C467=\"Log value\",DataLog!O467,\"\")","v":""},{"$f":"IF(DataLog!$C467=\"Log value\",DataLog!P467,\"\")","v":""},{"$f":"IF(DataLog!$C467=\"Log value\",DataLog!Q467,\"\")","v":""},{"$f":"IF(DataLog!$C467=\"Log value\",DataLog!R467,\"\")","v":""},{"$f":"IF(DataLog!$C467=\"Log value\",DataLog!S467,\"\")","v":""},{"$f":"IF(DataLog!$C467=\"Log value\",DataLog!T467,\"\")","v":""},{"$f":"IF(DataLog!$C467=\"Log value\",DataLog!U467,\"\")","v":""},{"$f":"IF(DataLog!$C467=\"Log value\",DataLog!V467,\"\")","v":""},{"$f":"IF(DataLog!$C467=\"Log value\",DataLog!W467,\"\")","v":""},{"$f":"IF(DataLog!$C467=\"Log value\",DataLog!X467,\"\")","v":""},{"$f":"IF(DataLog!$C467=\"Log value\",DataLog!Y467,\"\")","v":""},{"$f":"IF(DataLog!$C467=\"Log value\",DataLog!Z467,\"\")","v":""},{"$f":"IF(DataLog!$C467=\"Log value\",DataLog!AA467,\"\")","v":""},{"$f":"IF(DataLog!$C467=\"Log value\",DataLog!AB467,\"\")","v":""},{"$f":"IF(DataLog!$C467=\"Log value\",DataLog!AC467,\"\")","v":""},{"$f":"IF(DataLog!$C467=\"Log value\",DataLog!AD467,\"\")","v":""},{"$f":"IF(DataLog!$C467=\"Log value\",DataLog!AE467,\"\")","v":""},{"$f":"IF(DataLog!$C467=\"Log value\",DataLog!AF467,\"\")","v":""},{"$f":"IF(DataLog!$C467=\"Log value\",DataLog!AG467,\"\")","v":""},{"$f":"IF(DataLog!$C467=\"Log value\",DataLog!AH467,\"\")","v":""},{"$f":"IF(DataLog!$C467=\"Log value\",DataLog!AI467,\"\")","v":""},{"$f":"IF(DataLog!$C467=\"Log value\",DataLog!AJ467,\"\")","v":""},{"$f":"IF(DataLog!$C467=\"Log value\",DataLog!AK467,\"\")","v":""},{"$f":"IF(DataLog!$C467=\"Log value\",DataLog!AL467,\"\")","v":""},{"$f":"IF(DataLog!$C467=\"Log value\",DataLog!AM467,\"\")","v":""}]
[null,null,"Standard","Standard -  - ",null,null,{"$f":"IF(DataLog!$C468=\"Log value\",DataLog!D468&\"_\"&TEXT(DataLog!B468,\"åååå-mm-dd\"),\"\")","v":""},{"$f":"IF(DataLog!$C468=\"Log value\",DataLog!E468,\"\")","v":""},{"$f":"IF(DataLog!$C468=\"Log value\",DataLog!F468,\"\")","v":""},{"$f":"IF(DataLog!$C468=\"Log value\",DataLog!G468,\"\")","v":""},{"$f":"IF(DataLog!$C468=\"Log value\",DataLog!H468,\"\")","v":""},{"$f":"IF(DataLog!$C468=\"Log value\",DataLog!I468,\"\")","v":""},{"$f":"IF(DataLog!$C468=\"Log value\",DataLog!J468,\"\")","v":""},{"$f":"IF(DataLog!$C468=\"Log value\",DataLog!K468,\"\")","v":""},{"$f":"IF(DataLog!$C468=\"Log value\",DataLog!L468,\"\")","v":""},{"$f":"IF(DataLog!$C468=\"Log value\",DataLog!M468,\"\")","v":""},{"$f":"IF(DataLog!$C468=\"Log value\",DataLog!N468,\"\")","v":""},{"$f":"IF(DataLog!$C468=\"Log value\",DataLog!O468,\"\")","v":""},{"$f":"IF(DataLog!$C468=\"Log value\",DataLog!P468,\"\")","v":""},{"$f":"IF(DataLog!$C468=\"Log value\",DataLog!Q468,\"\")","v":""},{"$f":"IF(DataLog!$C468=\"Log value\",DataLog!R468,\"\")","v":""},{"$f":"IF(DataLog!$C468=\"Log value\",DataLog!S468,\"\")","v":""},{"$f":"IF(DataLog!$C468=\"Log value\",DataLog!T468,\"\")","v":""},{"$f":"IF(DataLog!$C468=\"Log value\",DataLog!U468,\"\")","v":""},{"$f":"IF(DataLog!$C468=\"Log value\",DataLog!V468,\"\")","v":""},{"$f":"IF(DataLog!$C468=\"Log value\",DataLog!W468,\"\")","v":""},{"$f":"IF(DataLog!$C468=\"Log value\",DataLog!X468,\"\")","v":""},{"$f":"IF(DataLog!$C468=\"Log value\",DataLog!Y468,\"\")","v":""},{"$f":"IF(DataLog!$C468=\"Log value\",DataLog!Z468,\"\")","v":""},{"$f":"IF(DataLog!$C468=\"Log value\",DataLog!AA468,\"\")","v":""},{"$f":"IF(DataLog!$C468=\"Log value\",DataLog!AB468,\"\")","v":""},{"$f":"IF(DataLog!$C468=\"Log value\",DataLog!AC468,\"\")","v":""},{"$f":"IF(DataLog!$C468=\"Log value\",DataLog!AD468,\"\")","v":""},{"$f":"IF(DataLog!$C468=\"Log value\",DataLog!AE468,\"\")","v":""},{"$f":"IF(DataLog!$C468=\"Log value\",DataLog!AF468,\"\")","v":""},{"$f":"IF(DataLog!$C468=\"Log value\",DataLog!AG468,\"\")","v":""},{"$f":"IF(DataLog!$C468=\"Log value\",DataLog!AH468,\"\")","v":""},{"$f":"IF(DataLog!$C468=\"Log value\",DataLog!AI468,\"\")","v":""},{"$f":"IF(DataLog!$C468=\"Log value\",DataLog!AJ468,\"\")","v":""},{"$f":"IF(DataLog!$C468=\"Log value\",DataLog!AK468,\"\")","v":""},{"$f":"IF(DataLog!$C468=\"Log value\",DataLog!AL468,\"\")","v":""},{"$f":"IF(DataLog!$C468=\"Log value\",DataLog!AM468,\"\")","v":""}]
[null,null,"Standard","Standard -  - ",null,null,{"$f":"IF(DataLog!$C469=\"Log value\",DataLog!D469&\"_\"&TEXT(DataLog!B469,\"åååå-mm-dd\"),\"\")","v":""},{"$f":"IF(DataLog!$C469=\"Log value\",DataLog!E469,\"\")","v":""},{"$f":"IF(DataLog!$C469=\"Log value\",DataLog!F469,\"\")","v":""},{"$f":"IF(DataLog!$C469=\"Log value\",DataLog!G469,\"\")","v":""},{"$f":"IF(DataLog!$C469=\"Log value\",DataLog!H469,\"\")","v":""},{"$f":"IF(DataLog!$C469=\"Log value\",DataLog!I469,\"\")","v":""},{"$f":"IF(DataLog!$C469=\"Log value\",DataLog!J469,\"\")","v":""},{"$f":"IF(DataLog!$C469=\"Log value\",DataLog!K469,\"\")","v":""},{"$f":"IF(DataLog!$C469=\"Log value\",DataLog!L469,\"\")","v":""},{"$f":"IF(DataLog!$C469=\"Log value\",DataLog!M469,\"\")","v":""},{"$f":"IF(DataLog!$C469=\"Log value\",DataLog!N469,\"\")","v":""},{"$f":"IF(DataLog!$C469=\"Log value\",DataLog!O469,\"\")","v":""},{"$f":"IF(DataLog!$C469=\"Log value\",DataLog!P469,\"\")","v":""},{"$f":"IF(DataLog!$C469=\"Log value\",DataLog!Q469,\"\")","v":""},{"$f":"IF(DataLog!$C469=\"Log value\",DataLog!R469,\"\")","v":""},{"$f":"IF(DataLog!$C469=\"Log value\",DataLog!S469,\"\")","v":""},{"$f":"IF(DataLog!$C469=\"Log value\",DataLog!T469,\"\")","v":""},{"$f":"IF(DataLog!$C469=\"Log value\",DataLog!U469,\"\")","v":""},{"$f":"IF(DataLog!$C469=\"Log value\",DataLog!V469,\"\")","v":""},{"$f":"IF(DataLog!$C469=\"Log value\",DataLog!W469,\"\")","v":""},{"$f":"IF(DataLog!$C469=\"Log value\",DataLog!X469,\"\")","v":""},{"$f":"IF(DataLog!$C469=\"Log value\",DataLog!Y469,\"\")","v":""},{"$f":"IF(DataLog!$C469=\"Log value\",DataLog!Z469,\"\")","v":""},{"$f":"IF(DataLog!$C469=\"Log value\",DataLog!AA469,\"\")","v":""},{"$f":"IF(DataLog!$C469=\"Log value\",DataLog!AB469,\"\")","v":""},{"$f":"IF(DataLog!$C469=\"Log value\",DataLog!AC469,\"\")","v":""},{"$f":"IF(DataLog!$C469=\"Log value\",DataLog!AD469,\"\")","v":""},{"$f":"IF(DataLog!$C469=\"Log value\",DataLog!AE469,\"\")","v":""},{"$f":"IF(DataLog!$C469=\"Log value\",DataLog!AF469,\"\")","v":""},{"$f":"IF(DataLog!$C469=\"Log value\",DataLog!AG469,\"\")","v":""},{"$f":"IF(DataLog!$C469=\"Log value\",DataLog!AH469,\"\")","v":""},{"$f":"IF(DataLog!$C469=\"Log value\",DataLog!AI469,\"\")","v":""},{"$f":"IF(DataLog!$C469=\"Log value\",DataLog!AJ469,\"\")","v":""},{"$f":"IF(DataLog!$C469=\"Log value\",DataLog!AK469,\"\")","v":""},{"$f":"IF(DataLog!$C469=\"Log value\",DataLog!AL469,\"\")","v":""},{"$f":"IF(DataLog!$C469=\"Log value\",DataLog!AM469,\"\")","v":""}]
[null,null,"Standard","Standard -  - ",null,null,{"$f":"IF(DataLog!$C470=\"Log value\",DataLog!D470&\"_\"&TEXT(DataLog!B470,\"åååå-mm-dd\"),\"\")","v":""},{"$f":"IF(DataLog!$C470=\"Log value\",DataLog!E470,\"\")","v":""},{"$f":"IF(DataLog!$C470=\"Log value\",DataLog!F470,\"\")","v":""},{"$f":"IF(DataLog!$C470=\"Log value\",DataLog!G470,\"\")","v":""},{"$f":"IF(DataLog!$C470=\"Log value\",DataLog!H470,\"\")","v":""},{"$f":"IF(DataLog!$C470=\"Log value\",DataLog!I470,\"\")","v":""},{"$f":"IF(DataLog!$C470=\"Log value\",DataLog!J470,\"\")","v":""},{"$f":"IF(DataLog!$C470=\"Log value\",DataLog!K470,\"\")","v":""},{"$f":"IF(DataLog!$C470=\"Log value\",DataLog!L470,\"\")","v":""},{"$f":"IF(DataLog!$C470=\"Log value\",DataLog!M470,\"\")","v":""},{"$f":"IF(DataLog!$C470=\"Log value\",DataLog!N470,\"\")","v":""},{"$f":"IF(DataLog!$C470=\"Log value\",DataLog!O470,\"\")","v":""},{"$f":"IF(DataLog!$C470=\"Log value\",DataLog!P470,\"\")","v":""},{"$f":"IF(DataLog!$C470=\"Log value\",DataLog!Q470,\"\")","v":""},{"$f":"IF(DataLog!$C470=\"Log value\",DataLog!R470,\"\")","v":""},{"$f":"IF(DataLog!$C470=\"Log value\",DataLog!S470,\"\")","v":""},{"$f":"IF(DataLog!$C470=\"Log value\",DataLog!T470,\"\")","v":""},{"$f":"IF(DataLog!$C470=\"Log value\",DataLog!U470,\"\")","v":""},{"$f":"IF(DataLog!$C470=\"Log value\",DataLog!V470,\"\")","v":""},{"$f":"IF(DataLog!$C470=\"Log value\",DataLog!W470,\"\")","v":""},{"$f":"IF(DataLog!$C470=\"Log value\",DataLog!X470,\"\")","v":""},{"$f":"IF(DataLog!$C470=\"Log value\",DataLog!Y470,\"\")","v":""},{"$f":"IF(DataLog!$C470=\"Log value\",DataLog!Z470,\"\")","v":""},{"$f":"IF(DataLog!$C470=\"Log value\",DataLog!AA470,\"\")","v":""},{"$f":"IF(DataLog!$C470=\"Log value\",DataLog!AB470,\"\")","v":""},{"$f":"IF(DataLog!$C470=\"Log value\",DataLog!AC470,\"\")","v":""},{"$f":"IF(DataLog!$C470=\"Log value\",DataLog!AD470,\"\")","v":""},{"$f":"IF(DataLog!$C470=\"Log value\",DataLog!AE470,\"\")","v":""},{"$f":"IF(DataLog!$C470=\"Log value\",DataLog!AF470,\"\")","v":""},{"$f":"IF(DataLog!$C470=\"Log value\",DataLog!AG470,\"\")","v":""},{"$f":"IF(DataLog!$C470=\"Log value\",DataLog!AH470,\"\")","v":""},{"$f":"IF(DataLog!$C470=\"Log value\",DataLog!AI470,\"\")","v":""},{"$f":"IF(DataLog!$C470=\"Log value\",DataLog!AJ470,\"\")","v":""},{"$f":"IF(DataLog!$C470=\"Log value\",DataLog!AK470,\"\")","v":""},{"$f":"IF(DataLog!$C470=\"Log value\",DataLog!AL470,\"\")","v":""},{"$f":"IF(DataLog!$C470=\"Log value\",DataLog!AM470,\"\")","v":""}]
[null,null,"Standard","Standard -  - ",null,null,{"$f":"IF(DataLog!$C471=\"Log value\",DataLog!D471&\"_\"&TEXT(DataLog!B471,\"åååå-mm-dd\"),\"\")","v":""},{"$f":"IF(DataLog!$C471=\"Log value\",DataLog!E471,\"\")","v":""},{"$f":"IF(DataLog!$C471=\"Log value\",DataLog!F471,\"\")","v":""},{"$f":"IF(DataLog!$C471=\"Log value\",DataLog!G471,\"\")","v":""},{"$f":"IF(DataLog!$C471=\"Log value\",DataLog!H471,\"\")","v":""},{"$f":"IF(DataLog!$C471=\"Log value\",DataLog!I471,\"\")","v":""},{"$f":"IF(DataLog!$C471=\"Log value\",DataLog!J471,\"\")","v":""},{"$f":"IF(DataLog!$C471=\"Log value\",DataLog!K471,\"\")","v":""},{"$f":"IF(DataLog!$C471=\"Log value\",DataLog!L471,\"\")","v":""},{"$f":"IF(DataLog!$C471=\"Log value\",DataLog!M471,\"\")","v":""},{"$f":"IF(DataLog!$C471=\"Log value\",DataLog!N471,\"\")","v":""},{"$f":"IF(DataLog!$C471=\"Log value\",DataLog!O471,\"\")","v":""},{"$f":"IF(DataLog!$C471=\"Log value\",DataLog!P471,\"\")","v":""},{"$f":"IF(DataLog!$C471=\"Log value\",DataLog!Q471,\"\")","v":""},{"$f":"IF(DataLog!$C471=\"Log value\",DataLog!R471,\"\")","v":""},{"$f":"IF(DataLog!$C471=\"Log value\",DataLog!S471,\"\")","v":""},{"$f":"IF(DataLog!$C471=\"Log value\",DataLog!T471,\"\")","v":""},{"$f":"IF(DataLog!$C471=\"Log value\",DataLog!U471,\"\")","v":""},{"$f":"IF(DataLog!$C471=\"Log value\",DataLog!V471,\"\")","v":""},{"$f":"IF(DataLog!$C471=\"Log value\",DataLog!W471,\"\")","v":""},{"$f":"IF(DataLog!$C471=\"Log value\",DataLog!X471,\"\")","v":""},{"$f":"IF(DataLog!$C471=\"Log value\",DataLog!Y471,\"\")","v":""},{"$f":"IF(DataLog!$C471=\"Log value\",DataLog!Z471,\"\")","v":""},{"$f":"IF(DataLog!$C471=\"Log value\",DataLog!AA471,\"\")","v":""},{"$f":"IF(DataLog!$C471=\"Log value\",DataLog!AB471,\"\")","v":""},{"$f":"IF(DataLog!$C471=\"Log value\",DataLog!AC471,\"\")","v":""},{"$f":"IF(DataLog!$C471=\"Log value\",DataLog!AD471,\"\")","v":""},{"$f":"IF(DataLog!$C471=\"Log value\",DataLog!AE471,\"\")","v":""},{"$f":"IF(DataLog!$C471=\"Log value\",DataLog!AF471,\"\")","v":""},{"$f":"IF(DataLog!$C471=\"Log value\",DataLog!AG471,\"\")","v":""},{"$f":"IF(DataLog!$C471=\"Log value\",DataLog!AH471,\"\")","v":""},{"$f":"IF(DataLog!$C471=\"Log value\",DataLog!AI471,\"\")","v":""},{"$f":"IF(DataLog!$C471=\"Log value\",DataLog!AJ471,\"\")","v":""},{"$f":"IF(DataLog!$C471=\"Log value\",DataLog!AK471,\"\")","v":""},{"$f":"IF(DataLog!$C471=\"Log value\",DataLog!AL471,\"\")","v":""},{"$f":"IF(DataLog!$C471=\"Log value\",DataLog!AM471,\"\")","v":""}]
[null,null,"Standard","Standard -  - ",null,null,{"$f":"IF(DataLog!$C472=\"Log value\",DataLog!D472&\"_\"&TEXT(DataLog!B472,\"åååå-mm-dd\"),\"\")","v":""},{"$f":"IF(DataLog!$C472=\"Log value\",DataLog!E472,\"\")","v":""},{"$f":"IF(DataLog!$C472=\"Log value\",DataLog!F472,\"\")","v":""},{"$f":"IF(DataLog!$C472=\"Log value\",DataLog!G472,\"\")","v":""},{"$f":"IF(DataLog!$C472=\"Log value\",DataLog!H472,\"\")","v":""},{"$f":"IF(DataLog!$C472=\"Log value\",DataLog!I472,\"\")","v":""},{"$f":"IF(DataLog!$C472=\"Log value\",DataLog!J472,\"\")","v":""},{"$f":"IF(DataLog!$C472=\"Log value\",DataLog!K472,\"\")","v":""},{"$f":"IF(DataLog!$C472=\"Log value\",DataLog!L472,\"\")","v":""},{"$f":"IF(DataLog!$C472=\"Log value\",DataLog!M472,\"\")","v":""},{"$f":"IF(DataLog!$C472=\"Log value\",DataLog!N472,\"\")","v":""},{"$f":"IF(DataLog!$C472=\"Log value\",DataLog!O472,\"\")","v":""},{"$f":"IF(DataLog!$C472=\"Log value\",DataLog!P472,\"\")","v":""},{"$f":"IF(DataLog!$C472=\"Log value\",DataLog!Q472,\"\")","v":""},{"$f":"IF(DataLog!$C472=\"Log value\",DataLog!R472,\"\")","v":""},{"$f":"IF(DataLog!$C472=\"Log value\",DataLog!S472,\"\")","v":""},{"$f":"IF(DataLog!$C472=\"Log value\",DataLog!T472,\"\")","v":""},{"$f":"IF(DataLog!$C472=\"Log value\",DataLog!U472,\"\")","v":""},{"$f":"IF(DataLog!$C472=\"Log value\",DataLog!V472,\"\")","v":""},{"$f":"IF(DataLog!$C472=\"Log value\",DataLog!W472,\"\")","v":""},{"$f":"IF(DataLog!$C472=\"Log value\",DataLog!X472,\"\")","v":""},{"$f":"IF(DataLog!$C472=\"Log value\",DataLog!Y472,\"\")","v":""},{"$f":"IF(DataLog!$C472=\"Log value\",DataLog!Z472,\"\")","v":""},{"$f":"IF(DataLog!$C472=\"Log value\",DataLog!AA472,\"\")","v":""},{"$f":"IF(DataLog!$C472=\"Log value\",DataLog!AB472,\"\")","v":""},{"$f":"IF(DataLog!$C472=\"Log value\",DataLog!AC472,\"\")","v":""},{"$f":"IF(DataLog!$C472=\"Log value\",DataLog!AD472,\"\")","v":""},{"$f":"IF(DataLog!$C472=\"Log value\",DataLog!AE472,\"\")","v":""},{"$f":"IF(DataLog!$C472=\"Log value\",DataLog!AF472,\"\")","v":""},{"$f":"IF(DataLog!$C472=\"Log value\",DataLog!AG472,\"\")","v":""},{"$f":"IF(DataLog!$C472=\"Log value\",DataLog!AH472,\"\")","v":""},{"$f":"IF(DataLog!$C472=\"Log value\",DataLog!AI472,\"\")","v":""},{"$f":"IF(DataLog!$C472=\"Log value\",DataLog!AJ472,\"\")","v":""},{"$f":"IF(DataLog!$C472=\"Log value\",DataLog!AK472,\"\")","v":""},{"$f":"IF(DataLog!$C472=\"Log value\",DataLog!AL472,\"\")","v":""},{"$f":"IF(DataLog!$C472=\"Log value\",DataLog!AM472,\"\")","v":""}]
[null,null,"Standard","Standard -  - ",null,null,{"$f":"IF(DataLog!$C473=\"Log value\",DataLog!D473&\"_\"&TEXT(DataLog!B473,\"åååå-mm-dd\"),\"\")","v":""},{"$f":"IF(DataLog!$C473=\"Log value\",DataLog!E473,\"\")","v":""},{"$f":"IF(DataLog!$C473=\"Log value\",DataLog!F473,\"\")","v":""},{"$f":"IF(DataLog!$C473=\"Log value\",DataLog!G473,\"\")","v":""},{"$f":"IF(DataLog!$C473=\"Log value\",DataLog!H473,\"\")","v":""},{"$f":"IF(DataLog!$C473=\"Log value\",DataLog!I473,\"\")","v":""},{"$f":"IF(DataLog!$C473=\"Log value\",DataLog!J473,\"\")","v":""},{"$f":"IF(DataLog!$C473=\"Log value\",DataLog!K473,\"\")","v":""},{"$f":"IF(DataLog!$C473=\"Log value\",DataLog!L473,\"\")","v":""},{"$f":"IF(DataLog!$C473=\"Log value\",DataLog!M473,\"\")","v":""},{"$f":"IF(DataLog!$C473=\"Log value\",DataLog!N473,\"\")","v":""},{"$f":"IF(DataLog!$C473=\"Log value\",DataLog!O473,\"\")","v":""},{"$f":"IF(DataLog!$C473=\"Log value\",DataLog!P473,\"\")","v":""},{"$f":"IF(DataLog!$C473=\"Log value\",DataLog!Q473,\"\")","v":""},{"$f":"IF(DataLog!$C473=\"Log value\",DataLog!R473,\"\")","v":""},{"$f":"IF(DataLog!$C473=\"Log value\",DataLog!S473,\"\")","v":""},{"$f":"IF(DataLog!$C473=\"Log value\",DataLog!T473,\"\")","v":""},{"$f":"IF(DataLog!$C473=\"Log value\",DataLog!U473,\"\")","v":""},{"$f":"IF(DataLog!$C473=\"Log value\",DataLog!V473,\"\")","v":""},{"$f":"IF(DataLog!$C473=\"Log value\",DataLog!W473,\"\")","v":""},{"$f":"IF(DataLog!$C473=\"Log value\",DataLog!X473,\"\")","v":""},{"$f":"IF(DataLog!$C473=\"Log value\",DataLog!Y473,\"\")","v":""},{"$f":"IF(DataLog!$C473=\"Log value\",DataLog!Z473,\"\")","v":""},{"$f":"IF(DataLog!$C473=\"Log value\",DataLog!AA473,\"\")","v":""},{"$f":"IF(DataLog!$C473=\"Log value\",DataLog!AB473,\"\")","v":""},{"$f":"IF(DataLog!$C473=\"Log value\",DataLog!AC473,\"\")","v":""},{"$f":"IF(DataLog!$C473=\"Log value\",DataLog!AD473,\"\")","v":""},{"$f":"IF(DataLog!$C473=\"Log value\",DataLog!AE473,\"\")","v":""},{"$f":"IF(DataLog!$C473=\"Log value\",DataLog!AF473,\"\")","v":""},{"$f":"IF(DataLog!$C473=\"Log value\",DataLog!AG473,\"\")","v":""},{"$f":"IF(DataLog!$C473=\"Log value\",DataLog!AH473,\"\")","v":""},{"$f":"IF(DataLog!$C473=\"Log value\",DataLog!AI473,\"\")","v":""},{"$f":"IF(DataLog!$C473=\"Log value\",DataLog!AJ473,\"\")","v":""},{"$f":"IF(DataLog!$C473=\"Log value\",DataLog!AK473,\"\")","v":""},{"$f":"IF(DataLog!$C473=\"Log value\",DataLog!AL473,\"\")","v":""},{"$f":"IF(DataLog!$C473=\"Log value\",DataLog!AM473,\"\")","v":""}]
[null,null,"Standard","Standard -  - ",null,null,{"$f":"IF(DataLog!$C474=\"Log value\",DataLog!D474&\"_\"&TEXT(DataLog!B474,\"åååå-mm-dd\"),\"\")","v":""},{"$f":"IF(DataLog!$C474=\"Log value\",DataLog!E474,\"\")","v":""},{"$f":"IF(DataLog!$C474=\"Log value\",DataLog!F474,\"\")","v":""},{"$f":"IF(DataLog!$C474=\"Log value\",DataLog!G474,\"\")","v":""},{"$f":"IF(DataLog!$C474=\"Log value\",DataLog!H474,\"\")","v":""},{"$f":"IF(DataLog!$C474=\"Log value\",DataLog!I474,\"\")","v":""},{"$f":"IF(DataLog!$C474=\"Log value\",DataLog!J474,\"\")","v":""},{"$f":"IF(DataLog!$C474=\"Log value\",DataLog!K474,\"\")","v":""},{"$f":"IF(DataLog!$C474=\"Log value\",DataLog!L474,\"\")","v":""},{"$f":"IF(DataLog!$C474=\"Log value\",DataLog!M474,\"\")","v":""},{"$f":"IF(DataLog!$C474=\"Log value\",DataLog!N474,\"\")","v":""},{"$f":"IF(DataLog!$C474=\"Log value\",DataLog!O474,\"\")","v":""},{"$f":"IF(DataLog!$C474=\"Log value\",DataLog!P474,\"\")","v":""},{"$f":"IF(DataLog!$C474=\"Log value\",DataLog!Q474,\"\")","v":""},{"$f":"IF(DataLog!$C474=\"Log value\",DataLog!R474,\"\")","v":""},{"$f":"IF(DataLog!$C474=\"Log value\",DataLog!S474,\"\")","v":""},{"$f":"IF(DataLog!$C474=\"Log value\",DataLog!T474,\"\")","v":""},{"$f":"IF(DataLog!$C474=\"Log value\",DataLog!U474,\"\")","v":""},{"$f":"IF(DataLog!$C474=\"Log value\",DataLog!V474,\"\")","v":""},{"$f":"IF(DataLog!$C474=\"Log value\",DataLog!W474,\"\")","v":""},{"$f":"IF(DataLog!$C474=\"Log value\",DataLog!X474,\"\")","v":""},{"$f":"IF(DataLog!$C474=\"Log value\",DataLog!Y474,\"\")","v":""},{"$f":"IF(DataLog!$C474=\"Log value\",DataLog!Z474,\"\")","v":""},{"$f":"IF(DataLog!$C474=\"Log value\",DataLog!AA474,\"\")","v":""},{"$f":"IF(DataLog!$C474=\"Log value\",DataLog!AB474,\"\")","v":""},{"$f":"IF(DataLog!$C474=\"Log value\",DataLog!AC474,\"\")","v":""},{"$f":"IF(DataLog!$C474=\"Log value\",DataLog!AD474,\"\")","v":""},{"$f":"IF(DataLog!$C474=\"Log value\",DataLog!AE474,\"\")","v":""},{"$f":"IF(DataLog!$C474=\"Log value\",DataLog!AF474,\"\")","v":""},{"$f":"IF(DataLog!$C474=\"Log value\",DataLog!AG474,\"\")","v":""},{"$f":"IF(DataLog!$C474=\"Log value\",DataLog!AH474,\"\")","v":""},{"$f":"IF(DataLog!$C474=\"Log value\",DataLog!AI474,\"\")","v":""},{"$f":"IF(DataLog!$C474=\"Log value\",DataLog!AJ474,\"\")","v":""},{"$f":"IF(DataLog!$C474=\"Log value\",DataLog!AK474,\"\")","v":""},{"$f":"IF(DataLog!$C474=\"Log value\",DataLog!AL474,\"\")","v":""},{"$f":"IF(DataLog!$C474=\"Log value\",DataLog!AM474,\"\")","v":""}]
[null,null,"Standard","Standard -  - ",null,null,{"$f":"IF(DataLog!$C475=\"Log value\",DataLog!D475&\"_\"&TEXT(DataLog!B475,\"åååå-mm-dd\"),\"\")","v":""},{"$f":"IF(DataLog!$C475=\"Log value\",DataLog!E475,\"\")","v":""},{"$f":"IF(DataLog!$C475=\"Log value\",DataLog!F475,\"\")","v":""},{"$f":"IF(DataLog!$C475=\"Log value\",DataLog!G475,\"\")","v":""},{"$f":"IF(DataLog!$C475=\"Log value\",DataLog!H475,\"\")","v":""},{"$f":"IF(DataLog!$C475=\"Log value\",DataLog!I475,\"\")","v":""},{"$f":"IF(DataLog!$C475=\"Log value\",DataLog!J475,\"\")","v":""},{"$f":"IF(DataLog!$C475=\"Log value\",DataLog!K475,\"\")","v":""},{"$f":"IF(DataLog!$C475=\"Log value\",DataLog!L475,\"\")","v":""},{"$f":"IF(DataLog!$C475=\"Log value\",DataLog!M475,\"\")","v":""},{"$f":"IF(DataLog!$C475=\"Log value\",DataLog!N475,\"\")","v":""},{"$f":"IF(DataLog!$C475=\"Log value\",DataLog!O475,\"\")","v":""},{"$f":"IF(DataLog!$C475=\"Log value\",DataLog!P475,\"\")","v":""},{"$f":"IF(DataLog!$C475=\"Log value\",DataLog!Q475,\"\")","v":""},{"$f":"IF(DataLog!$C475=\"Log value\",DataLog!R475,\"\")","v":""},{"$f":"IF(DataLog!$C475=\"Log value\",DataLog!S475,\"\")","v":""},{"$f":"IF(DataLog!$C475=\"Log value\",DataLog!T475,\"\")","v":""},{"$f":"IF(DataLog!$C475=\"Log value\",DataLog!U475,\"\")","v":""},{"$f":"IF(DataLog!$C475=\"Log value\",DataLog!V475,\"\")","v":""},{"$f":"IF(DataLog!$C475=\"Log value\",DataLog!W475,\"\")","v":""},{"$f":"IF(DataLog!$C475=\"Log value\",DataLog!X475,\"\")","v":""},{"$f":"IF(DataLog!$C475=\"Log value\",DataLog!Y475,\"\")","v":""},{"$f":"IF(DataLog!$C475=\"Log value\",DataLog!Z475,\"\")","v":""},{"$f":"IF(DataLog!$C475=\"Log value\",DataLog!AA475,\"\")","v":""},{"$f":"IF(DataLog!$C475=\"Log value\",DataLog!AB475,\"\")","v":""},{"$f":"IF(DataLog!$C475=\"Log value\",DataLog!AC475,\"\")","v":""},{"$f":"IF(DataLog!$C475=\"Log value\",DataLog!AD475,\"\")","v":""},{"$f":"IF(DataLog!$C475=\"Log value\",DataLog!AE475,\"\")","v":""},{"$f":"IF(DataLog!$C475=\"Log value\",DataLog!AF475,\"\")","v":""},{"$f":"IF(DataLog!$C475=\"Log value\",DataLog!AG475,\"\")","v":""},{"$f":"IF(DataLog!$C475=\"Log value\",DataLog!AH475,\"\")","v":""},{"$f":"IF(DataLog!$C475=\"Log value\",DataLog!AI475,\"\")","v":""},{"$f":"IF(DataLog!$C475=\"Log value\",DataLog!AJ475,\"\")","v":""},{"$f":"IF(DataLog!$C475=\"Log value\",DataLog!AK475,\"\")","v":""},{"$f":"IF(DataLog!$C475=\"Log value\",DataLog!AL475,\"\")","v":""},{"$f":"IF(DataLog!$C475=\"Log value\",DataLog!AM475,\"\")","v":""}]
[null,null,"Standard","Standard -  - ",null,null,{"$f":"IF(DataLog!$C476=\"Log value\",DataLog!D476&\"_\"&TEXT(DataLog!B476,\"åååå-mm-dd\"),\"\")","v":""},{"$f":"IF(DataLog!$C476=\"Log value\",DataLog!E476,\"\")","v":""},{"$f":"IF(DataLog!$C476=\"Log value\",DataLog!F476,\"\")","v":""},{"$f":"IF(DataLog!$C476=\"Log value\",DataLog!G476,\"\")","v":""},{"$f":"IF(DataLog!$C476=\"Log value\",DataLog!H476,\"\")","v":""},{"$f":"IF(DataLog!$C476=\"Log value\",DataLog!I476,\"\")","v":""},{"$f":"IF(DataLog!$C476=\"Log value\",DataLog!J476,\"\")","v":""},{"$f":"IF(DataLog!$C476=\"Log value\",DataLog!K476,\"\")","v":""},{"$f":"IF(DataLog!$C476=\"Log value\",DataLog!L476,\"\")","v":""},{"$f":"IF(DataLog!$C476=\"Log value\",DataLog!M476,\"\")","v":""},{"$f":"IF(DataLog!$C476=\"Log value\",DataLog!N476,\"\")","v":""},{"$f":"IF(DataLog!$C476=\"Log value\",DataLog!O476,\"\")","v":""},{"$f":"IF(DataLog!$C476=\"Log value\",DataLog!P476,\"\")","v":""},{"$f":"IF(DataLog!$C476=\"Log value\",DataLog!Q476,\"\")","v":""},{"$f":"IF(DataLog!$C476=\"Log value\",DataLog!R476,\"\")","v":""},{"$f":"IF(DataLog!$C476=\"Log value\",DataLog!S476,\"\")","v":""},{"$f":"IF(DataLog!$C476=\"Log value\",DataLog!T476,\"\")","v":""},{"$f":"IF(DataLog!$C476=\"Log value\",DataLog!U476,\"\")","v":""},{"$f":"IF(DataLog!$C476=\"Log value\",DataLog!V476,\"\")","v":""},{"$f":"IF(DataLog!$C476=\"Log value\",DataLog!W476,\"\")","v":""},{"$f":"IF(DataLog!$C476=\"Log value\",DataLog!X476,\"\")","v":""},{"$f":"IF(DataLog!$C476=\"Log value\",DataLog!Y476,\"\")","v":""},{"$f":"IF(DataLog!$C476=\"Log value\",DataLog!Z476,\"\")","v":""},{"$f":"IF(DataLog!$C476=\"Log value\",DataLog!AA476,\"\")","v":""},{"$f":"IF(DataLog!$C476=\"Log value\",DataLog!AB476,\"\")","v":""},{"$f":"IF(DataLog!$C476=\"Log value\",DataLog!AC476,\"\")","v":""},{"$f":"IF(DataLog!$C476=\"Log value\",DataLog!AD476,\"\")","v":""},{"$f":"IF(DataLog!$C476=\"Log value\",DataLog!AE476,\"\")","v":""},{"$f":"IF(DataLog!$C476=\"Log value\",DataLog!AF476,\"\")","v":""},{"$f":"IF(DataLog!$C476=\"Log value\",DataLog!AG476,\"\")","v":""},{"$f":"IF(DataLog!$C476=\"Log value\",DataLog!AH476,\"\")","v":""},{"$f":"IF(DataLog!$C476=\"Log value\",DataLog!AI476,\"\")","v":""},{"$f":"IF(DataLog!$C476=\"Log value\",DataLog!AJ476,\"\")","v":""},{"$f":"IF(DataLog!$C476=\"Log value\",DataLog!AK476,\"\")","v":""},{"$f":"IF(DataLog!$C476=\"Log value\",DataLog!AL476,\"\")","v":""},{"$f":"IF(DataLog!$C476=\"Log value\",DataLog!AM476,\"\")","v":""}]
[null,null,"Standard","Standard -  - ",null,null,{"$f":"IF(DataLog!$C477=\"Log value\",DataLog!D477&\"_\"&TEXT(DataLog!B477,\"åååå-mm-dd\"),\"\")","v":""},{"$f":"IF(DataLog!$C477=\"Log value\",DataLog!E477,\"\")","v":""},{"$f":"IF(DataLog!$C477=\"Log value\",DataLog!F477,\"\")","v":""},{"$f":"IF(DataLog!$C477=\"Log value\",DataLog!G477,\"\")","v":""},{"$f":"IF(DataLog!$C477=\"Log value\",DataLog!H477,\"\")","v":""},{"$f":"IF(DataLog!$C477=\"Log value\",DataLog!I477,\"\")","v":""},{"$f":"IF(DataLog!$C477=\"Log value\",DataLog!J477,\"\")","v":""},{"$f":"IF(DataLog!$C477=\"Log value\",DataLog!K477,\"\")","v":""},{"$f":"IF(DataLog!$C477=\"Log value\",DataLog!L477,\"\")","v":""},{"$f":"IF(DataLog!$C477=\"Log value\",DataLog!M477,\"\")","v":""},{"$f":"IF(DataLog!$C477=\"Log value\",DataLog!N477,\"\")","v":""},{"$f":"IF(DataLog!$C477=\"Log value\",DataLog!O477,\"\")","v":""},{"$f":"IF(DataLog!$C477=\"Log value\",DataLog!P477,\"\")","v":""},{"$f":"IF(DataLog!$C477=\"Log value\",DataLog!Q477,\"\")","v":""},{"$f":"IF(DataLog!$C477=\"Log value\",DataLog!R477,\"\")","v":""},{"$f":"IF(DataLog!$C477=\"Log value\",DataLog!S477,\"\")","v":""},{"$f":"IF(DataLog!$C477=\"Log value\",DataLog!T477,\"\")","v":""},{"$f":"IF(DataLog!$C477=\"Log value\",DataLog!U477,\"\")","v":""},{"$f":"IF(DataLog!$C477=\"Log value\",DataLog!V477,\"\")","v":""},{"$f":"IF(DataLog!$C477=\"Log value\",DataLog!W477,\"\")","v":""},{"$f":"IF(DataLog!$C477=\"Log value\",DataLog!X477,\"\")","v":""},{"$f":"IF(DataLog!$C477=\"Log value\",DataLog!Y477,\"\")","v":""},{"$f":"IF(DataLog!$C477=\"Log value\",DataLog!Z477,\"\")","v":""},{"$f":"IF(DataLog!$C477=\"Log value\",DataLog!AA477,\"\")","v":""},{"$f":"IF(DataLog!$C477=\"Log value\",DataLog!AB477,\"\")","v":""},{"$f":"IF(DataLog!$C477=\"Log value\",DataLog!AC477,\"\")","v":""},{"$f":"IF(DataLog!$C477=\"Log value\",DataLog!AD477,\"\")","v":""},{"$f":"IF(DataLog!$C477=\"Log value\",DataLog!AE477,\"\")","v":""},{"$f":"IF(DataLog!$C477=\"Log value\",DataLog!AF477,\"\")","v":""},{"$f":"IF(DataLog!$C477=\"Log value\",DataLog!AG477,\"\")","v":""},{"$f":"IF(DataLog!$C477=\"Log value\",DataLog!AH477,\"\")","v":""},{"$f":"IF(DataLog!$C477=\"Log value\",DataLog!AI477,\"\")","v":""},{"$f":"IF(DataLog!$C477=\"Log value\",DataLog!AJ477,\"\")","v":""},{"$f":"IF(DataLog!$C477=\"Log value\",DataLog!AK477,\"\")","v":""},{"$f":"IF(DataLog!$C477=\"Log value\",DataLog!AL477,\"\")","v":""},{"$f":"IF(DataLog!$C477=\"Log value\",DataLog!AM477,\"\")","v":""}]
[null,null,"Standard","Standard -  - ",null,null,{"$f":"IF(DataLog!$C478=\"Log value\",DataLog!D478&\"_\"&TEXT(DataLog!B478,\"åååå-mm-dd\"),\"\")","v":""},{"$f":"IF(DataLog!$C478=\"Log value\",DataLog!E478,\"\")","v":""},{"$f":"IF(DataLog!$C478=\"Log value\",DataLog!F478,\"\")","v":""},{"$f":"IF(DataLog!$C478=\"Log value\",DataLog!G478,\"\")","v":""},{"$f":"IF(DataLog!$C478=\"Log value\",DataLog!H478,\"\")","v":""},{"$f":"IF(DataLog!$C478=\"Log value\",DataLog!I478,\"\")","v":""},{"$f":"IF(DataLog!$C478=\"Log value\",DataLog!J478,\"\")","v":""},{"$f":"IF(DataLog!$C478=\"Log value\",DataLog!K478,\"\")","v":""},{"$f":"IF(DataLog!$C478=\"Log value\",DataLog!L478,\"\")","v":""},{"$f":"IF(DataLog!$C478=\"Log value\",DataLog!M478,\"\")","v":""},{"$f":"IF(DataLog!$C478=\"Log value\",DataLog!N478,\"\")","v":""},{"$f":"IF(DataLog!$C478=\"Log value\",DataLog!O478,\"\")","v":""},{"$f":"IF(DataLog!$C478=\"Log value\",DataLog!P478,\"\")","v":""},{"$f":"IF(DataLog!$C478=\"Log value\",DataLog!Q478,\"\")","v":""},{"$f":"IF(DataLog!$C478=\"Log value\",DataLog!R478,\"\")","v":""},{"$f":"IF(DataLog!$C478=\"Log value\",DataLog!S478,\"\")","v":""},{"$f":"IF(DataLog!$C478=\"Log value\",DataLog!T478,\"\")","v":""},{"$f":"IF(DataLog!$C478=\"Log value\",DataLog!U478,\"\")","v":""},{"$f":"IF(DataLog!$C478=\"Log value\",DataLog!V478,\"\")","v":""},{"$f":"IF(DataLog!$C478=\"Log value\",DataLog!W478,\"\")","v":""},{"$f":"IF(DataLog!$C478=\"Log value\",DataLog!X478,\"\")","v":""},{"$f":"IF(DataLog!$C478=\"Log value\",DataLog!Y478,\"\")","v":""},{"$f":"IF(DataLog!$C478=\"Log value\",DataLog!Z478,\"\")","v":""},{"$f":"IF(DataLog!$C478=\"Log value\",DataLog!AA478,\"\")","v":""},{"$f":"IF(DataLog!$C478=\"Log value\",DataLog!AB478,\"\")","v":""},{"$f":"IF(DataLog!$C478=\"Log value\",DataLog!AC478,\"\")","v":""},{"$f":"IF(DataLog!$C478=\"Log value\",DataLog!AD478,\"\")","v":""},{"$f":"IF(DataLog!$C478=\"Log value\",DataLog!AE478,\"\")","v":""},{"$f":"IF(DataLog!$C478=\"Log value\",DataLog!AF478,\"\")","v":""},{"$f":"IF(DataLog!$C478=\"Log value\",DataLog!AG478,\"\")","v":""},{"$f":"IF(DataLog!$C478=\"Log value\",DataLog!AH478,\"\")","v":""},{"$f":"IF(DataLog!$C478=\"Log value\",DataLog!AI478,\"\")","v":""},{"$f":"IF(DataLog!$C478=\"Log value\",DataLog!AJ478,\"\")","v":""},{"$f":"IF(DataLog!$C478=\"Log value\",DataLog!AK478,\"\")","v":""},{"$f":"IF(DataLog!$C478=\"Log value\",DataLog!AL478,\"\")","v":""},{"$f":"IF(DataLog!$C478=\"Log value\",DataLog!AM478,\"\")","v":""}]
[null,null,"Standard","Standard -  - ",null,null,{"$f":"IF(DataLog!$C479=\"Log value\",DataLog!D479&\"_\"&TEXT(DataLog!B479,\"åååå-mm-dd\"),\"\")","v":""},{"$f":"IF(DataLog!$C479=\"Log value\",DataLog!E479,\"\")","v":""},{"$f":"IF(DataLog!$C479=\"Log value\",DataLog!F479,\"\")","v":""},{"$f":"IF(DataLog!$C479=\"Log value\",DataLog!G479,\"\")","v":""},{"$f":"IF(DataLog!$C479=\"Log value\",DataLog!H479,\"\")","v":""},{"$f":"IF(DataLog!$C479=\"Log value\",DataLog!I479,\"\")","v":""},{"$f":"IF(DataLog!$C479=\"Log value\",DataLog!J479,\"\")","v":""},{"$f":"IF(DataLog!$C479=\"Log value\",DataLog!K479,\"\")","v":""},{"$f":"IF(DataLog!$C479=\"Log value\",DataLog!L479,\"\")","v":""},{"$f":"IF(DataLog!$C479=\"Log value\",DataLog!M479,\"\")","v":""},{"$f":"IF(DataLog!$C479=\"Log value\",DataLog!N479,\"\")","v":""},{"$f":"IF(DataLog!$C479=\"Log value\",DataLog!O479,\"\")","v":""},{"$f":"IF(DataLog!$C479=\"Log value\",DataLog!P479,\"\")","v":""},{"$f":"IF(DataLog!$C479=\"Log value\",DataLog!Q479,\"\")","v":""},{"$f":"IF(DataLog!$C479=\"Log value\",DataLog!R479,\"\")","v":""},{"$f":"IF(DataLog!$C479=\"Log value\",DataLog!S479,\"\")","v":""},{"$f":"IF(DataLog!$C479=\"Log value\",DataLog!T479,\"\")","v":""},{"$f":"IF(DataLog!$C479=\"Log value\",DataLog!U479,\"\")","v":""},{"$f":"IF(DataLog!$C479=\"Log value\",DataLog!V479,\"\")","v":""},{"$f":"IF(DataLog!$C479=\"Log value\",DataLog!W479,\"\")","v":""},{"$f":"IF(DataLog!$C479=\"Log value\",DataLog!X479,\"\")","v":""},{"$f":"IF(DataLog!$C479=\"Log value\",DataLog!Y479,\"\")","v":""},{"$f":"IF(DataLog!$C479=\"Log value\",DataLog!Z479,\"\")","v":""},{"$f":"IF(DataLog!$C479=\"Log value\",DataLog!AA479,\"\")","v":""},{"$f":"IF(DataLog!$C479=\"Log value\",DataLog!AB479,\"\")","v":""},{"$f":"IF(DataLog!$C479=\"Log value\",DataLog!AC479,\"\")","v":""},{"$f":"IF(DataLog!$C479=\"Log value\",DataLog!AD479,\"\")","v":""},{"$f":"IF(DataLog!$C479=\"Log value\",DataLog!AE479,\"\")","v":""},{"$f":"IF(DataLog!$C479=\"Log value\",DataLog!AF479,\"\")","v":""},{"$f":"IF(DataLog!$C479=\"Log value\",DataLog!AG479,\"\")","v":""},{"$f":"IF(DataLog!$C479=\"Log value\",DataLog!AH479,\"\")","v":""},{"$f":"IF(DataLog!$C479=\"Log value\",DataLog!AI479,\"\")","v":""},{"$f":"IF(DataLog!$C479=\"Log value\",DataLog!AJ479,\"\")","v":""},{"$f":"IF(DataLog!$C479=\"Log value\",DataLog!AK479,\"\")","v":""},{"$f":"IF(DataLog!$C479=\"Log value\",DataLog!AL479,\"\")","v":""},{"$f":"IF(DataLog!$C479=\"Log value\",DataLog!AM479,\"\")","v":""}]
[null,null,"Standard","Standard -  - ",null,null,{"$f":"IF(DataLog!$C480=\"Log value\",DataLog!D480&\"_\"&TEXT(DataLog!B480,\"åååå-mm-dd\"),\"\")","v":""},{"$f":"IF(DataLog!$C480=\"Log value\",DataLog!E480,\"\")","v":""},{"$f":"IF(DataLog!$C480=\"Log value\",DataLog!F480,\"\")","v":""},{"$f":"IF(DataLog!$C480=\"Log value\",DataLog!G480,\"\")","v":""},{"$f":"IF(DataLog!$C480=\"Log value\",DataLog!H480,\"\")","v":""},{"$f":"IF(DataLog!$C480=\"Log value\",DataLog!I480,\"\")","v":""},{"$f":"IF(DataLog!$C480=\"Log value\",DataLog!J480,\"\")","v":""},{"$f":"IF(DataLog!$C480=\"Log value\",DataLog!K480,\"\")","v":""},{"$f":"IF(DataLog!$C480=\"Log value\",DataLog!L480,\"\")","v":""},{"$f":"IF(DataLog!$C480=\"Log value\",DataLog!M480,\"\")","v":""},{"$f":"IF(DataLog!$C480=\"Log value\",DataLog!N480,\"\")","v":""},{"$f":"IF(DataLog!$C480=\"Log value\",DataLog!O480,\"\")","v":""},{"$f":"IF(DataLog!$C480=\"Log value\",DataLog!P480,\"\")","v":""},{"$f":"IF(DataLog!$C480=\"Log value\",DataLog!Q480,\"\")","v":""},{"$f":"IF(DataLog!$C480=\"Log value\",DataLog!R480,\"\")","v":""},{"$f":"IF(DataLog!$C480=\"Log value\",DataLog!S480,\"\")","v":""},{"$f":"IF(DataLog!$C480=\"Log value\",DataLog!T480,\"\")","v":""},{"$f":"IF(DataLog!$C480=\"Log value\",DataLog!U480,\"\")","v":""},{"$f":"IF(DataLog!$C480=\"Log value\",DataLog!V480,\"\")","v":""},{"$f":"IF(DataLog!$C480=\"Log value\",DataLog!W480,\"\")","v":""},{"$f":"IF(DataLog!$C480=\"Log value\",DataLog!X480,\"\")","v":""},{"$f":"IF(DataLog!$C480=\"Log value\",DataLog!Y480,\"\")","v":""},{"$f":"IF(DataLog!$C480=\"Log value\",DataLog!Z480,\"\")","v":""},{"$f":"IF(DataLog!$C480=\"Log value\",DataLog!AA480,\"\")","v":""},{"$f":"IF(DataLog!$C480=\"Log value\",DataLog!AB480,\"\")","v":""},{"$f":"IF(DataLog!$C480=\"Log value\",DataLog!AC480,\"\")","v":""},{"$f":"IF(DataLog!$C480=\"Log value\",DataLog!AD480,\"\")","v":""},{"$f":"IF(DataLog!$C480=\"Log value\",DataLog!AE480,\"\")","v":""},{"$f":"IF(DataLog!$C480=\"Log value\",DataLog!AF480,\"\")","v":""},{"$f":"IF(DataLog!$C480=\"Log value\",DataLog!AG480,\"\")","v":""},{"$f":"IF(DataLog!$C480=\"Log value\",DataLog!AH480,\"\")","v":""},{"$f":"IF(DataLog!$C480=\"Log value\",DataLog!AI480,\"\")","v":""},{"$f":"IF(DataLog!$C480=\"Log value\",DataLog!AJ480,\"\")","v":""},{"$f":"IF(DataLog!$C480=\"Log value\",DataLog!AK480,\"\")","v":""},{"$f":"IF(DataLog!$C480=\"Log value\",DataLog!AL480,\"\")","v":""},{"$f":"IF(DataLog!$C480=\"Log value\",DataLog!AM480,\"\")","v":""}]
[null,null,"Standard","Standard -  - ",null,null,{"$f":"IF(DataLog!$C481=\"Log value\",DataLog!D481&\"_\"&TEXT(DataLog!B481,\"åååå-mm-dd\"),\"\")","v":""},{"$f":"IF(DataLog!$C481=\"Log value\",DataLog!E481,\"\")","v":""},{"$f":"IF(DataLog!$C481=\"Log value\",DataLog!F481,\"\")","v":""},{"$f":"IF(DataLog!$C481=\"Log value\",DataLog!G481,\"\")","v":""},{"$f":"IF(DataLog!$C481=\"Log value\",DataLog!H481,\"\")","v":""},{"$f":"IF(DataLog!$C481=\"Log value\",DataLog!I481,\"\")","v":""},{"$f":"IF(DataLog!$C481=\"Log value\",DataLog!J481,\"\")","v":""},{"$f":"IF(DataLog!$C481=\"Log value\",DataLog!K481,\"\")","v":""},{"$f":"IF(DataLog!$C481=\"Log value\",DataLog!L481,\"\")","v":""},{"$f":"IF(DataLog!$C481=\"Log value\",DataLog!M481,\"\")","v":""},{"$f":"IF(DataLog!$C481=\"Log value\",DataLog!N481,\"\")","v":""},{"$f":"IF(DataLog!$C481=\"Log value\",DataLog!O481,\"\")","v":""},{"$f":"IF(DataLog!$C481=\"Log value\",DataLog!P481,\"\")","v":""},{"$f":"IF(DataLog!$C481=\"Log value\",DataLog!Q481,\"\")","v":""},{"$f":"IF(DataLog!$C481=\"Log value\",DataLog!R481,\"\")","v":""},{"$f":"IF(DataLog!$C481=\"Log value\",DataLog!S481,\"\")","v":""},{"$f":"IF(DataLog!$C481=\"Log value\",DataLog!T481,\"\")","v":""},{"$f":"IF(DataLog!$C481=\"Log value\",DataLog!U481,\"\")","v":""},{"$f":"IF(DataLog!$C481=\"Log value\",DataLog!V481,\"\")","v":""},{"$f":"IF(DataLog!$C481=\"Log value\",DataLog!W481,\"\")","v":""},{"$f":"IF(DataLog!$C481=\"Log value\",DataLog!X481,\"\")","v":""},{"$f":"IF(DataLog!$C481=\"Log value\",DataLog!Y481,\"\")","v":""},{"$f":"IF(DataLog!$C481=\"Log value\",DataLog!Z481,\"\")","v":""},{"$f":"IF(DataLog!$C481=\"Log value\",DataLog!AA481,\"\")","v":""},{"$f":"IF(DataLog!$C481=\"Log value\",DataLog!AB481,\"\")","v":""},{"$f":"IF(DataLog!$C481=\"Log value\",DataLog!AC481,\"\")","v":""},{"$f":"IF(DataLog!$C481=\"Log value\",DataLog!AD481,\"\")","v":""},{"$f":"IF(DataLog!$C481=\"Log value\",DataLog!AE481,\"\")","v":""},{"$f":"IF(DataLog!$C481=\"Log value\",DataLog!AF481,\"\")","v":""},{"$f":"IF(DataLog!$C481=\"Log value\",DataLog!AG481,\"\")","v":""},{"$f":"IF(DataLog!$C481=\"Log value\",DataLog!AH481,\"\")","v":""},{"$f":"IF(DataLog!$C481=\"Log value\",DataLog!AI481,\"\")","v":""},{"$f":"IF(DataLog!$C481=\"Log value\",DataLog!AJ481,\"\")","v":""},{"$f":"IF(DataLog!$C481=\"Log value\",DataLog!AK481,\"\")","v":""},{"$f":"IF(DataLog!$C481=\"Log value\",DataLog!AL481,\"\")","v":""},{"$f":"IF(DataLog!$C481=\"Log value\",DataLog!AM481,\"\")","v":""}]
[null,null,"Standard","Standard -  - ",null,null,{"$f":"IF(DataLog!$C482=\"Log value\",DataLog!D482&\"_\"&TEXT(DataLog!B482,\"åååå-mm-dd\"),\"\")","v":""},{"$f":"IF(DataLog!$C482=\"Log value\",DataLog!E482,\"\")","v":""},{"$f":"IF(DataLog!$C482=\"Log value\",DataLog!F482,\"\")","v":""},{"$f":"IF(DataLog!$C482=\"Log value\",DataLog!G482,\"\")","v":""},{"$f":"IF(DataLog!$C482=\"Log value\",DataLog!H482,\"\")","v":""},{"$f":"IF(DataLog!$C482=\"Log value\",DataLog!I482,\"\")","v":""},{"$f":"IF(DataLog!$C482=\"Log value\",DataLog!J482,\"\")","v":""},{"$f":"IF(DataLog!$C482=\"Log value\",DataLog!K482,\"\")","v":""},{"$f":"IF(DataLog!$C482=\"Log value\",DataLog!L482,\"\")","v":""},{"$f":"IF(DataLog!$C482=\"Log value\",DataLog!M482,\"\")","v":""},{"$f":"IF(DataLog!$C482=\"Log value\",DataLog!N482,\"\")","v":""},{"$f":"IF(DataLog!$C482=\"Log value\",DataLog!O482,\"\")","v":""},{"$f":"IF(DataLog!$C482=\"Log value\",DataLog!P482,\"\")","v":""},{"$f":"IF(DataLog!$C482=\"Log value\",DataLog!Q482,\"\")","v":""},{"$f":"IF(DataLog!$C482=\"Log value\",DataLog!R482,\"\")","v":""},{"$f":"IF(DataLog!$C482=\"Log value\",DataLog!S482,\"\")","v":""},{"$f":"IF(DataLog!$C482=\"Log value\",DataLog!T482,\"\")","v":""},{"$f":"IF(DataLog!$C482=\"Log value\",DataLog!U482,\"\")","v":""},{"$f":"IF(DataLog!$C482=\"Log value\",DataLog!V482,\"\")","v":""},{"$f":"IF(DataLog!$C482=\"Log value\",DataLog!W482,\"\")","v":""},{"$f":"IF(DataLog!$C482=\"Log value\",DataLog!X482,\"\")","v":""},{"$f":"IF(DataLog!$C482=\"Log value\",DataLog!Y482,\"\")","v":""},{"$f":"IF(DataLog!$C482=\"Log value\",DataLog!Z482,\"\")","v":""},{"$f":"IF(DataLog!$C482=\"Log value\",DataLog!AA482,\"\")","v":""},{"$f":"IF(DataLog!$C482=\"Log value\",DataLog!AB482,\"\")","v":""},{"$f":"IF(DataLog!$C482=\"Log value\",DataLog!AC482,\"\")","v":""},{"$f":"IF(DataLog!$C482=\"Log value\",DataLog!AD482,\"\")","v":""},{"$f":"IF(DataLog!$C482=\"Log value\",DataLog!AE482,\"\")","v":""},{"$f":"IF(DataLog!$C482=\"Log value\",DataLog!AF482,\"\")","v":""},{"$f":"IF(DataLog!$C482=\"Log value\",DataLog!AG482,\"\")","v":""},{"$f":"IF(DataLog!$C482=\"Log value\",DataLog!AH482,\"\")","v":""},{"$f":"IF(DataLog!$C482=\"Log value\",DataLog!AI482,\"\")","v":""},{"$f":"IF(DataLog!$C482=\"Log value\",DataLog!AJ482,\"\")","v":""},{"$f":"IF(DataLog!$C482=\"Log value\",DataLog!AK482,\"\")","v":""},{"$f":"IF(DataLog!$C482=\"Log value\",DataLog!AL482,\"\")","v":""},{"$f":"IF(DataLog!$C482=\"Log value\",DataLog!AM482,\"\")","v":""}]
[null,null,"Standard","Standard -  - ",null,null,{"$f":"IF(DataLog!$C483=\"Log value\",DataLog!D483&\"_\"&TEXT(DataLog!B483,\"åååå-mm-dd\"),\"\")","v":""},{"$f":"IF(DataLog!$C483=\"Log value\",DataLog!E483,\"\")","v":""},{"$f":"IF(DataLog!$C483=\"Log value\",DataLog!F483,\"\")","v":""},{"$f":"IF(DataLog!$C483=\"Log value\",DataLog!G483,\"\")","v":""},{"$f":"IF(DataLog!$C483=\"Log value\",DataLog!H483,\"\")","v":""},{"$f":"IF(DataLog!$C483=\"Log value\",DataLog!I483,\"\")","v":""},{"$f":"IF(DataLog!$C483=\"Log value\",DataLog!J483,\"\")","v":""},{"$f":"IF(DataLog!$C483=\"Log value\",DataLog!K483,\"\")","v":""},{"$f":"IF(DataLog!$C483=\"Log value\",DataLog!L483,\"\")","v":""},{"$f":"IF(DataLog!$C483=\"Log value\",DataLog!M483,\"\")","v":""},{"$f":"IF(DataLog!$C483=\"Log value\",DataLog!N483,\"\")","v":""},{"$f":"IF(DataLog!$C483=\"Log value\",DataLog!O483,\"\")","v":""},{"$f":"IF(DataLog!$C483=\"Log value\",DataLog!P483,\"\")","v":""},{"$f":"IF(DataLog!$C483=\"Log value\",DataLog!Q483,\"\")","v":""},{"$f":"IF(DataLog!$C483=\"Log value\",DataLog!R483,\"\")","v":""},{"$f":"IF(DataLog!$C483=\"Log value\",DataLog!S483,\"\")","v":""},{"$f":"IF(DataLog!$C483=\"Log value\",DataLog!T483,\"\")","v":""},{"$f":"IF(DataLog!$C483=\"Log value\",DataLog!U483,\"\")","v":""},{"$f":"IF(DataLog!$C483=\"Log value\",DataLog!V483,\"\")","v":""},{"$f":"IF(DataLog!$C483=\"Log value\",DataLog!W483,\"\")","v":""},{"$f":"IF(DataLog!$C483=\"Log value\",DataLog!X483,\"\")","v":""},{"$f":"IF(DataLog!$C483=\"Log value\",DataLog!Y483,\"\")","v":""},{"$f":"IF(DataLog!$C483=\"Log value\",DataLog!Z483,\"\")","v":""},{"$f":"IF(DataLog!$C483=\"Log value\",DataLog!AA483,\"\")","v":""},{"$f":"IF(DataLog!$C483=\"Log value\",DataLog!AB483,\"\")","v":""},{"$f":"IF(DataLog!$C483=\"Log value\",DataLog!AC483,\"\")","v":""},{"$f":"IF(DataLog!$C483=\"Log value\",DataLog!AD483,\"\")","v":""},{"$f":"IF(DataLog!$C483=\"Log value\",DataLog!AE483,\"\")","v":""},{"$f":"IF(DataLog!$C483=\"Log value\",DataLog!AF483,\"\")","v":""},{"$f":"IF(DataLog!$C483=\"Log value\",DataLog!AG483,\"\")","v":""},{"$f":"IF(DataLog!$C483=\"Log value\",DataLog!AH483,\"\")","v":""},{"$f":"IF(DataLog!$C483=\"Log value\",DataLog!AI483,\"\")","v":""},{"$f":"IF(DataLog!$C483=\"Log value\",DataLog!AJ483,\"\")","v":""},{"$f":"IF(DataLog!$C483=\"Log value\",DataLog!AK483,\"\")","v":""},{"$f":"IF(DataLog!$C483=\"Log value\",DataLog!AL483,\"\")","v":""},{"$f":"IF(DataLog!$C483=\"Log value\",DataLog!AM483,\"\")","v":""}]
[null,null,"Standard","Standard -  - ",null,null,{"$f":"IF(DataLog!$C484=\"Log value\",DataLog!D484&\"_\"&TEXT(DataLog!B484,\"åååå-mm-dd\"),\"\")","v":""},{"$f":"IF(DataLog!$C484=\"Log value\",DataLog!E484,\"\")","v":""},{"$f":"IF(DataLog!$C484=\"Log value\",DataLog!F484,\"\")","v":""},{"$f":"IF(DataLog!$C484=\"Log value\",DataLog!G484,\"\")","v":""},{"$f":"IF(DataLog!$C484=\"Log value\",DataLog!H484,\"\")","v":""},{"$f":"IF(DataLog!$C484=\"Log value\",DataLog!I484,\"\")","v":""},{"$f":"IF(DataLog!$C484=\"Log value\",DataLog!J484,\"\")","v":""},{"$f":"IF(DataLog!$C484=\"Log value\",DataLog!K484,\"\")","v":""},{"$f":"IF(DataLog!$C484=\"Log value\",DataLog!L484,\"\")","v":""},{"$f":"IF(DataLog!$C484=\"Log value\",DataLog!M484,\"\")","v":""},{"$f":"IF(DataLog!$C484=\"Log value\",DataLog!N484,\"\")","v":""},{"$f":"IF(DataLog!$C484=\"Log value\",DataLog!O484,\"\")","v":""},{"$f":"IF(DataLog!$C484=\"Log value\",DataLog!P484,\"\")","v":""},{"$f":"IF(DataLog!$C484=\"Log value\",DataLog!Q484,\"\")","v":""},{"$f":"IF(DataLog!$C484=\"Log value\",DataLog!R484,\"\")","v":""},{"$f":"IF(DataLog!$C484=\"Log value\",DataLog!S484,\"\")","v":""},{"$f":"IF(DataLog!$C484=\"Log value\",DataLog!T484,\"\")","v":""},{"$f":"IF(DataLog!$C484=\"Log value\",DataLog!U484,\"\")","v":""},{"$f":"IF(DataLog!$C484=\"Log value\",DataLog!V484,\"\")","v":""},{"$f":"IF(DataLog!$C484=\"Log value\",DataLog!W484,\"\")","v":""},{"$f":"IF(DataLog!$C484=\"Log value\",DataLog!X484,\"\")","v":""},{"$f":"IF(DataLog!$C484=\"Log value\",DataLog!Y484,\"\")","v":""},{"$f":"IF(DataLog!$C484=\"Log value\",DataLog!Z484,\"\")","v":""},{"$f":"IF(DataLog!$C484=\"Log value\",DataLog!AA484,\"\")","v":""},{"$f":"IF(DataLog!$C484=\"Log value\",DataLog!AB484,\"\")","v":""},{"$f":"IF(DataLog!$C484=\"Log value\",DataLog!AC484,\"\")","v":""},{"$f":"IF(DataLog!$C484=\"Log value\",DataLog!AD484,\"\")","v":""},{"$f":"IF(DataLog!$C484=\"Log value\",DataLog!AE484,\"\")","v":""},{"$f":"IF(DataLog!$C484=\"Log value\",DataLog!AF484,\"\")","v":""},{"$f":"IF(DataLog!$C484=\"Log value\",DataLog!AG484,\"\")","v":""},{"$f":"IF(DataLog!$C484=\"Log value\",DataLog!AH484,\"\")","v":""},{"$f":"IF(DataLog!$C484=\"Log value\",DataLog!AI484,\"\")","v":""},{"$f":"IF(DataLog!$C484=\"Log value\",DataLog!AJ484,\"\")","v":""},{"$f":"IF(DataLog!$C484=\"Log value\",DataLog!AK484,\"\")","v":""},{"$f":"IF(DataLog!$C484=\"Log value\",DataLog!AL484,\"\")","v":""},{"$f":"IF(DataLog!$C484=\"Log value\",DataLog!AM484,\"\")","v":""}]
[null,null,"Standard","Standard -  - ",null,null,{"$f":"IF(DataLog!$C485=\"Log value\",DataLog!D485&\"_\"&TEXT(DataLog!B485,\"åååå-mm-dd\"),\"\")","v":""},{"$f":"IF(DataLog!$C485=\"Log value\",DataLog!E485,\"\")","v":""},{"$f":"IF(DataLog!$C485=\"Log value\",DataLog!F485,\"\")","v":""},{"$f":"IF(DataLog!$C485=\"Log value\",DataLog!G485,\"\")","v":""},{"$f":"IF(DataLog!$C485=\"Log value\",DataLog!H485,\"\")","v":""},{"$f":"IF(DataLog!$C485=\"Log value\",DataLog!I485,\"\")","v":""},{"$f":"IF(DataLog!$C485=\"Log value\",DataLog!J485,\"\")","v":""},{"$f":"IF(DataLog!$C485=\"Log value\",DataLog!K485,\"\")","v":""},{"$f":"IF(DataLog!$C485=\"Log value\",DataLog!L485,\"\")","v":""},{"$f":"IF(DataLog!$C485=\"Log value\",DataLog!M485,\"\")","v":""},{"$f":"IF(DataLog!$C485=\"Log value\",DataLog!N485,\"\")","v":""},{"$f":"IF(DataLog!$C485=\"Log value\",DataLog!O485,\"\")","v":""},{"$f":"IF(DataLog!$C485=\"Log value\",DataLog!P485,\"\")","v":""},{"$f":"IF(DataLog!$C485=\"Log value\",DataLog!Q485,\"\")","v":""},{"$f":"IF(DataLog!$C485=\"Log value\",DataLog!R485,\"\")","v":""},{"$f":"IF(DataLog!$C485=\"Log value\",DataLog!S485,\"\")","v":""},{"$f":"IF(DataLog!$C485=\"Log value\",DataLog!T485,\"\")","v":""},{"$f":"IF(DataLog!$C485=\"Log value\",DataLog!U485,\"\")","v":""},{"$f":"IF(DataLog!$C485=\"Log value\",DataLog!V485,\"\")","v":""},{"$f":"IF(DataLog!$C485=\"Log value\",DataLog!W485,\"\")","v":""},{"$f":"IF(DataLog!$C485=\"Log value\",DataLog!X485,\"\")","v":""},{"$f":"IF(DataLog!$C485=\"Log value\",DataLog!Y485,\"\")","v":""},{"$f":"IF(DataLog!$C485=\"Log value\",DataLog!Z485,\"\")","v":""},{"$f":"IF(DataLog!$C485=\"Log value\",DataLog!AA485,\"\")","v":""},{"$f":"IF(DataLog!$C485=\"Log value\",DataLog!AB485,\"\")","v":""},{"$f":"IF(DataLog!$C485=\"Log value\",DataLog!AC485,\"\")","v":""},{"$f":"IF(DataLog!$C485=\"Log value\",DataLog!AD485,\"\")","v":""},{"$f":"IF(DataLog!$C485=\"Log value\",DataLog!AE485,\"\")","v":""},{"$f":"IF(DataLog!$C485=\"Log value\",DataLog!AF485,\"\")","v":""},{"$f":"IF(DataLog!$C485=\"Log value\",DataLog!AG485,\"\")","v":""},{"$f":"IF(DataLog!$C485=\"Log value\",DataLog!AH485,\"\")","v":""},{"$f":"IF(DataLog!$C485=\"Log value\",DataLog!AI485,\"\")","v":""},{"$f":"IF(DataLog!$C485=\"Log value\",DataLog!AJ485,\"\")","v":""},{"$f":"IF(DataLog!$C485=\"Log value\",DataLog!AK485,\"\")","v":""},{"$f":"IF(DataLog!$C485=\"Log value\",DataLog!AL485,\"\")","v":""},{"$f":"IF(DataLog!$C485=\"Log value\",DataLog!AM485,\"\")","v":""}]
[null,null,"Standard","Standard -  - ",null,null,{"$f":"IF(DataLog!$C486=\"Log value\",DataLog!D486&\"_\"&TEXT(DataLog!B486,\"åååå-mm-dd\"),\"\")","v":""},{"$f":"IF(DataLog!$C486=\"Log value\",DataLog!E486,\"\")","v":""},{"$f":"IF(DataLog!$C486=\"Log value\",DataLog!F486,\"\")","v":""},{"$f":"IF(DataLog!$C486=\"Log value\",DataLog!G486,\"\")","v":""},{"$f":"IF(DataLog!$C486=\"Log value\",DataLog!H486,\"\")","v":""},{"$f":"IF(DataLog!$C486=\"Log value\",DataLog!I486,\"\")","v":""},{"$f":"IF(DataLog!$C486=\"Log value\",DataLog!J486,\"\")","v":""},{"$f":"IF(DataLog!$C486=\"Log value\",DataLog!K486,\"\")","v":""},{"$f":"IF(DataLog!$C486=\"Log value\",DataLog!L486,\"\")","v":""},{"$f":"IF(DataLog!$C486=\"Log value\",DataLog!M486,\"\")","v":""},{"$f":"IF(DataLog!$C486=\"Log value\",DataLog!N486,\"\")","v":""},{"$f":"IF(DataLog!$C486=\"Log value\",DataLog!O486,\"\")","v":""},{"$f":"IF(DataLog!$C486=\"Log value\",DataLog!P486,\"\")","v":""},{"$f":"IF(DataLog!$C486=\"Log value\",DataLog!Q486,\"\")","v":""},{"$f":"IF(DataLog!$C486=\"Log value\",DataLog!R486,\"\")","v":""},{"$f":"IF(DataLog!$C486=\"Log value\",DataLog!S486,\"\")","v":""},{"$f":"IF(DataLog!$C486=\"Log value\",DataLog!T486,\"\")","v":""},{"$f":"IF(DataLog!$C486=\"Log value\",DataLog!U486,\"\")","v":""},{"$f":"IF(DataLog!$C486=\"Log value\",DataLog!V486,\"\")","v":""},{"$f":"IF(DataLog!$C486=\"Log value\",DataLog!W486,\"\")","v":""},{"$f":"IF(DataLog!$C486=\"Log value\",DataLog!X486,\"\")","v":""},{"$f":"IF(DataLog!$C486=\"Log value\",DataLog!Y486,\"\")","v":""},{"$f":"IF(DataLog!$C486=\"Log value\",DataLog!Z486,\"\")","v":""},{"$f":"IF(DataLog!$C486=\"Log value\",DataLog!AA486,\"\")","v":""},{"$f":"IF(DataLog!$C486=\"Log value\",DataLog!AB486,\"\")","v":""},{"$f":"IF(DataLog!$C486=\"Log value\",DataLog!AC486,\"\")","v":""},{"$f":"IF(DataLog!$C486=\"Log value\",DataLog!AD486,\"\")","v":""},{"$f":"IF(DataLog!$C486=\"Log value\",DataLog!AE486,\"\")","v":""},{"$f":"IF(DataLog!$C486=\"Log value\",DataLog!AF486,\"\")","v":""},{"$f":"IF(DataLog!$C486=\"Log value\",DataLog!AG486,\"\")","v":""},{"$f":"IF(DataLog!$C486=\"Log value\",DataLog!AH486,\"\")","v":""},{"$f":"IF(DataLog!$C486=\"Log value\",DataLog!AI486,\"\")","v":""},{"$f":"IF(DataLog!$C486=\"Log value\",DataLog!AJ486,\"\")","v":""},{"$f":"IF(DataLog!$C486=\"Log value\",DataLog!AK486,\"\")","v":""},{"$f":"IF(DataLog!$C486=\"Log value\",DataLog!AL486,\"\")","v":""},{"$f":"IF(DataLog!$C486=\"Log value\",DataLog!AM486,\"\")","v":""}]
[null,null,"Standard","Standard -  - ",null,null,{"$f":"IF(DataLog!$C487=\"Log value\",DataLog!D487&\"_\"&TEXT(DataLog!B487,\"åååå-mm-dd\"),\"\")","v":""},{"$f":"IF(DataLog!$C487=\"Log value\",DataLog!E487,\"\")","v":""},{"$f":"IF(DataLog!$C487=\"Log value\",DataLog!F487,\"\")","v":""},{"$f":"IF(DataLog!$C487=\"Log value\",DataLog!G487,\"\")","v":""},{"$f":"IF(DataLog!$C487=\"Log value\",DataLog!H487,\"\")","v":""},{"$f":"IF(DataLog!$C487=\"Log value\",DataLog!I487,\"\")","v":""},{"$f":"IF(DataLog!$C487=\"Log value\",DataLog!J487,\"\")","v":""},{"$f":"IF(DataLog!$C487=\"Log value\",DataLog!K487,\"\")","v":""},{"$f":"IF(DataLog!$C487=\"Log value\",DataLog!L487,\"\")","v":""},{"$f":"IF(DataLog!$C487=\"Log value\",DataLog!M487,\"\")","v":""},{"$f":"IF(DataLog!$C487=\"Log value\",DataLog!N487,\"\")","v":""},{"$f":"IF(DataLog!$C487=\"Log value\",DataLog!O487,\"\")","v":""},{"$f":"IF(DataLog!$C487=\"Log value\",DataLog!P487,\"\")","v":""},{"$f":"IF(DataLog!$C487=\"Log value\",DataLog!Q487,\"\")","v":""},{"$f":"IF(DataLog!$C487=\"Log value\",DataLog!R487,\"\")","v":""},{"$f":"IF(DataLog!$C487=\"Log value\",DataLog!S487,\"\")","v":""},{"$f":"IF(DataLog!$C487=\"Log value\",DataLog!T487,\"\")","v":""},{"$f":"IF(DataLog!$C487=\"Log value\",DataLog!U487,\"\")","v":""},{"$f":"IF(DataLog!$C487=\"Log value\",DataLog!V487,\"\")","v":""},{"$f":"IF(DataLog!$C487=\"Log value\",DataLog!W487,\"\")","v":""},{"$f":"IF(DataLog!$C487=\"Log value\",DataLog!X487,\"\")","v":""},{"$f":"IF(DataLog!$C487=\"Log value\",DataLog!Y487,\"\")","v":""},{"$f":"IF(DataLog!$C487=\"Log value\",DataLog!Z487,\"\")","v":""},{"$f":"IF(DataLog!$C487=\"Log value\",DataLog!AA487,\"\")","v":""},{"$f":"IF(DataLog!$C487=\"Log value\",DataLog!AB487,\"\")","v":""},{"$f":"IF(DataLog!$C487=\"Log value\",DataLog!AC487,\"\")","v":""},{"$f":"IF(DataLog!$C487=\"Log value\",DataLog!AD487,\"\")","v":""},{"$f":"IF(DataLog!$C487=\"Log value\",DataLog!AE487,\"\")","v":""},{"$f":"IF(DataLog!$C487=\"Log value\",DataLog!AF487,\"\")","v":""},{"$f":"IF(DataLog!$C487=\"Log value\",DataLog!AG487,\"\")","v":""},{"$f":"IF(DataLog!$C487=\"Log value\",DataLog!AH487,\"\")","v":""},{"$f":"IF(DataLog!$C487=\"Log value\",DataLog!AI487,\"\")","v":""},{"$f":"IF(DataLog!$C487=\"Log value\",DataLog!AJ487,\"\")","v":""},{"$f":"IF(DataLog!$C487=\"Log value\",DataLog!AK487,\"\")","v":""},{"$f":"IF(DataLog!$C487=\"Log value\",DataLog!AL487,\"\")","v":""},{"$f":"IF(DataLog!$C487=\"Log value\",DataLog!AM487,\"\")","v":""}]
[null,null,"Standard","Standard -  - ",null,null,{"$f":"IF(DataLog!$C488=\"Log value\",DataLog!D488&\"_\"&TEXT(DataLog!B488,\"åååå-mm-dd\"),\"\")","v":""},{"$f":"IF(DataLog!$C488=\"Log value\",DataLog!E488,\"\")","v":""},{"$f":"IF(DataLog!$C488=\"Log value\",DataLog!F488,\"\")","v":""},{"$f":"IF(DataLog!$C488=\"Log value\",DataLog!G488,\"\")","v":""},{"$f":"IF(DataLog!$C488=\"Log value\",DataLog!H488,\"\")","v":""},{"$f":"IF(DataLog!$C488=\"Log value\",DataLog!I488,\"\")","v":""},{"$f":"IF(DataLog!$C488=\"Log value\",DataLog!J488,\"\")","v":""},{"$f":"IF(DataLog!$C488=\"Log value\",DataLog!K488,\"\")","v":""},{"$f":"IF(DataLog!$C488=\"Log value\",DataLog!L488,\"\")","v":""},{"$f":"IF(DataLog!$C488=\"Log value\",DataLog!M488,\"\")","v":""},{"$f":"IF(DataLog!$C488=\"Log value\",DataLog!N488,\"\")","v":""},{"$f":"IF(DataLog!$C488=\"Log value\",DataLog!O488,\"\")","v":""},{"$f":"IF(DataLog!$C488=\"Log value\",DataLog!P488,\"\")","v":""},{"$f":"IF(DataLog!$C488=\"Log value\",DataLog!Q488,\"\")","v":""},{"$f":"IF(DataLog!$C488=\"Log value\",DataLog!R488,\"\")","v":""},{"$f":"IF(DataLog!$C488=\"Log value\",DataLog!S488,\"\")","v":""},{"$f":"IF(DataLog!$C488=\"Log value\",DataLog!T488,\"\")","v":""},{"$f":"IF(DataLog!$C488=\"Log value\",DataLog!U488,\"\")","v":""},{"$f":"IF(DataLog!$C488=\"Log value\",DataLog!V488,\"\")","v":""},{"$f":"IF(DataLog!$C488=\"Log value\",DataLog!W488,\"\")","v":""},{"$f":"IF(DataLog!$C488=\"Log value\",DataLog!X488,\"\")","v":""},{"$f":"IF(DataLog!$C488=\"Log value\",DataLog!Y488,\"\")","v":""},{"$f":"IF(DataLog!$C488=\"Log value\",DataLog!Z488,\"\")","v":""},{"$f":"IF(DataLog!$C488=\"Log value\",DataLog!AA488,\"\")","v":""},{"$f":"IF(DataLog!$C488=\"Log value\",DataLog!AB488,\"\")","v":""},{"$f":"IF(DataLog!$C488=\"Log value\",DataLog!AC488,\"\")","v":""},{"$f":"IF(DataLog!$C488=\"Log value\",DataLog!AD488,\"\")","v":""},{"$f":"IF(DataLog!$C488=\"Log value\",DataLog!AE488,\"\")","v":""},{"$f":"IF(DataLog!$C488=\"Log value\",DataLog!AF488,\"\")","v":""},{"$f":"IF(DataLog!$C488=\"Log value\",DataLog!AG488,\"\")","v":""},{"$f":"IF(DataLog!$C488=\"Log value\",DataLog!AH488,\"\")","v":""},{"$f":"IF(DataLog!$C488=\"Log value\",DataLog!AI488,\"\")","v":""},{"$f":"IF(DataLog!$C488=\"Log value\",DataLog!AJ488,\"\")","v":""},{"$f":"IF(DataLog!$C488=\"Log value\",DataLog!AK488,\"\")","v":""},{"$f":"IF(DataLog!$C488=\"Log value\",DataLog!AL488,\"\")","v":""},{"$f":"IF(DataLog!$C488=\"Log value\",DataLog!AM488,\"\")","v":""}]
[null,null,"Standard","Standard -  - ",null,null,{"$f":"IF(DataLog!$C489=\"Log value\",DataLog!D489&\"_\"&TEXT(DataLog!B489,\"åååå-mm-dd\"),\"\")","v":""},{"$f":"IF(DataLog!$C489=\"Log value\",DataLog!E489,\"\")","v":""},{"$f":"IF(DataLog!$C489=\"Log value\",DataLog!F489,\"\")","v":""},{"$f":"IF(DataLog!$C489=\"Log value\",DataLog!G489,\"\")","v":""},{"$f":"IF(DataLog!$C489=\"Log value\",DataLog!H489,\"\")","v":""},{"$f":"IF(DataLog!$C489=\"Log value\",DataLog!I489,\"\")","v":""},{"$f":"IF(DataLog!$C489=\"Log value\",DataLog!J489,\"\")","v":""},{"$f":"IF(DataLog!$C489=\"Log value\",DataLog!K489,\"\")","v":""},{"$f":"IF(DataLog!$C489=\"Log value\",DataLog!L489,\"\")","v":""},{"$f":"IF(DataLog!$C489=\"Log value\",DataLog!M489,\"\")","v":""},{"$f":"IF(DataLog!$C489=\"Log value\",DataLog!N489,\"\")","v":""},{"$f":"IF(DataLog!$C489=\"Log value\",DataLog!O489,\"\")","v":""},{"$f":"IF(DataLog!$C489=\"Log value\",DataLog!P489,\"\")","v":""},{"$f":"IF(DataLog!$C489=\"Log value\",DataLog!Q489,\"\")","v":""},{"$f":"IF(DataLog!$C489=\"Log value\",DataLog!R489,\"\")","v":""},{"$f":"IF(DataLog!$C489=\"Log value\",DataLog!S489,\"\")","v":""},{"$f":"IF(DataLog!$C489=\"Log value\",DataLog!T489,\"\")","v":""},{"$f":"IF(DataLog!$C489=\"Log value\",DataLog!U489,\"\")","v":""},{"$f":"IF(DataLog!$C489=\"Log value\",DataLog!V489,\"\")","v":""},{"$f":"IF(DataLog!$C489=\"Log value\",DataLog!W489,\"\")","v":""},{"$f":"IF(DataLog!$C489=\"Log value\",DataLog!X489,\"\")","v":""},{"$f":"IF(DataLog!$C489=\"Log value\",DataLog!Y489,\"\")","v":""},{"$f":"IF(DataLog!$C489=\"Log value\",DataLog!Z489,\"\")","v":""},{"$f":"IF(DataLog!$C489=\"Log value\",DataLog!AA489,\"\")","v":""},{"$f":"IF(DataLog!$C489=\"Log value\",DataLog!AB489,\"\")","v":""},{"$f":"IF(DataLog!$C489=\"Log value\",DataLog!AC489,\"\")","v":""},{"$f":"IF(DataLog!$C489=\"Log value\",DataLog!AD489,\"\")","v":""},{"$f":"IF(DataLog!$C489=\"Log value\",DataLog!AE489,\"\")","v":""},{"$f":"IF(DataLog!$C489=\"Log value\",DataLog!AF489,\"\")","v":""},{"$f":"IF(DataLog!$C489=\"Log value\",DataLog!AG489,\"\")","v":""},{"$f":"IF(DataLog!$C489=\"Log value\",DataLog!AH489,\"\")","v":""},{"$f":"IF(DataLog!$C489=\"Log value\",DataLog!AI489,\"\")","v":""},{"$f":"IF(DataLog!$C489=\"Log value\",DataLog!AJ489,\"\")","v":""},{"$f":"IF(DataLog!$C489=\"Log value\",DataLog!AK489,\"\")","v":""},{"$f":"IF(DataLog!$C489=\"Log value\",DataLog!AL489,\"\")","v":""},{"$f":"IF(DataLog!$C489=\"Log value\",DataLog!AM489,\"\")","v":""}]
[null,null,"Standard","Standard -  - ",null,null,{"$f":"IF(DataLog!$C490=\"Log value\",DataLog!D490&\"_\"&TEXT(DataLog!B490,\"åååå-mm-dd\"),\"\")","v":""},{"$f":"IF(DataLog!$C490=\"Log value\",DataLog!E490,\"\")","v":""},{"$f":"IF(DataLog!$C490=\"Log value\",DataLog!F490,\"\")","v":""},{"$f":"IF(DataLog!$C490=\"Log value\",DataLog!G490,\"\")","v":""},{"$f":"IF(DataLog!$C490=\"Log value\",DataLog!H490,\"\")","v":""},{"$f":"IF(DataLog!$C490=\"Log value\",DataLog!I490,\"\")","v":""},{"$f":"IF(DataLog!$C490=\"Log value\",DataLog!J490,\"\")","v":""},{"$f":"IF(DataLog!$C490=\"Log value\",DataLog!K490,\"\")","v":""},{"$f":"IF(DataLog!$C490=\"Log value\",DataLog!L490,\"\")","v":""},{"$f":"IF(DataLog!$C490=\"Log value\",DataLog!M490,\"\")","v":""},{"$f":"IF(DataLog!$C490=\"Log value\",DataLog!N490,\"\")","v":""},{"$f":"IF(DataLog!$C490=\"Log value\",DataLog!O490,\"\")","v":""},{"$f":"IF(DataLog!$C490=\"Log value\",DataLog!P490,\"\")","v":""},{"$f":"IF(DataLog!$C490=\"Log value\",DataLog!Q490,\"\")","v":""},{"$f":"IF(DataLog!$C490=\"Log value\",DataLog!R490,\"\")","v":""},{"$f":"IF(DataLog!$C490=\"Log value\",DataLog!S490,\"\")","v":""},{"$f":"IF(DataLog!$C490=\"Log value\",DataLog!T490,\"\")","v":""},{"$f":"IF(DataLog!$C490=\"Log value\",DataLog!U490,\"\")","v":""},{"$f":"IF(DataLog!$C490=\"Log value\",DataLog!V490,\"\")","v":""},{"$f":"IF(DataLog!$C490=\"Log value\",DataLog!W490,\"\")","v":""},{"$f":"IF(DataLog!$C490=\"Log value\",DataLog!X490,\"\")","v":""},{"$f":"IF(DataLog!$C490=\"Log value\",DataLog!Y490,\"\")","v":""},{"$f":"IF(DataLog!$C490=\"Log value\",DataLog!Z490,\"\")","v":""},{"$f":"IF(DataLog!$C490=\"Log value\",DataLog!AA490,\"\")","v":""},{"$f":"IF(DataLog!$C490=\"Log value\",DataLog!AB490,\"\")","v":""},{"$f":"IF(DataLog!$C490=\"Log value\",DataLog!AC490,\"\")","v":""},{"$f":"IF(DataLog!$C490=\"Log value\",DataLog!AD490,\"\")","v":""},{"$f":"IF(DataLog!$C490=\"Log value\",DataLog!AE490,\"\")","v":""},{"$f":"IF(DataLog!$C490=\"Log value\",DataLog!AF490,\"\")","v":""},{"$f":"IF(DataLog!$C490=\"Log value\",DataLog!AG490,\"\")","v":""},{"$f":"IF(DataLog!$C490=\"Log value\",DataLog!AH490,\"\")","v":""},{"$f":"IF(DataLog!$C490=\"Log value\",DataLog!AI490,\"\")","v":""},{"$f":"IF(DataLog!$C490=\"Log value\",DataLog!AJ490,\"\")","v":""},{"$f":"IF(DataLog!$C490=\"Log value\",DataLog!AK490,\"\")","v":""},{"$f":"IF(DataLog!$C490=\"Log value\",DataLog!AL490,\"\")","v":""},{"$f":"IF(DataLog!$C490=\"Log value\",DataLog!AM490,\"\")","v":""}]
[null,null,"Standard","Standard -  - ",null,null,{"$f":"IF(DataLog!$C491=\"Log value\",DataLog!D491&\"_\"&TEXT(DataLog!B491,\"åååå-mm-dd\"),\"\")","v":""},{"$f":"IF(DataLog!$C491=\"Log value\",DataLog!E491,\"\")","v":""},{"$f":"IF(DataLog!$C491=\"Log value\",DataLog!F491,\"\")","v":""},{"$f":"IF(DataLog!$C491=\"Log value\",DataLog!G491,\"\")","v":""},{"$f":"IF(DataLog!$C491=\"Log value\",DataLog!H491,\"\")","v":""},{"$f":"IF(DataLog!$C491=\"Log value\",DataLog!I491,\"\")","v":""},{"$f":"IF(DataLog!$C491=\"Log value\",DataLog!J491,\"\")","v":""},{"$f":"IF(DataLog!$C491=\"Log value\",DataLog!K491,\"\")","v":""},{"$f":"IF(DataLog!$C491=\"Log value\",DataLog!L491,\"\")","v":""},{"$f":"IF(DataLog!$C491=\"Log value\",DataLog!M491,\"\")","v":""},{"$f":"IF(DataLog!$C491=\"Log value\",DataLog!N491,\"\")","v":""},{"$f":"IF(DataLog!$C491=\"Log value\",DataLog!O491,\"\")","v":""},{"$f":"IF(DataLog!$C491=\"Log value\",DataLog!P491,\"\")","v":""},{"$f":"IF(DataLog!$C491=\"Log value\",DataLog!Q491,\"\")","v":""},{"$f":"IF(DataLog!$C491=\"Log value\",DataLog!R491,\"\")","v":""},{"$f":"IF(DataLog!$C491=\"Log value\",DataLog!S491,\"\")","v":""},{"$f":"IF(DataLog!$C491=\"Log value\",DataLog!T491,\"\")","v":""},{"$f":"IF(DataLog!$C491=\"Log value\",DataLog!U491,\"\")","v":""},{"$f":"IF(DataLog!$C491=\"Log value\",DataLog!V491,\"\")","v":""},{"$f":"IF(DataLog!$C491=\"Log value\",DataLog!W491,\"\")","v":""},{"$f":"IF(DataLog!$C491=\"Log value\",DataLog!X491,\"\")","v":""},{"$f":"IF(DataLog!$C491=\"Log value\",DataLog!Y491,\"\")","v":""},{"$f":"IF(DataLog!$C491=\"Log value\",DataLog!Z491,\"\")","v":""},{"$f":"IF(DataLog!$C491=\"Log value\",DataLog!AA491,\"\")","v":""},{"$f":"IF(DataLog!$C491=\"Log value\",DataLog!AB491,\"\")","v":""},{"$f":"IF(DataLog!$C491=\"Log value\",DataLog!AC491,\"\")","v":""},{"$f":"IF(DataLog!$C491=\"Log value\",DataLog!AD491,\"\")","v":""},{"$f":"IF(DataLog!$C491=\"Log value\",DataLog!AE491,\"\")","v":""},{"$f":"IF(DataLog!$C491=\"Log value\",DataLog!AF491,\"\")","v":""},{"$f":"IF(DataLog!$C491=\"Log value\",DataLog!AG491,\"\")","v":""},{"$f":"IF(DataLog!$C491=\"Log value\",DataLog!AH491,\"\")","v":""},{"$f":"IF(DataLog!$C491=\"Log value\",DataLog!AI491,\"\")","v":""},{"$f":"IF(DataLog!$C491=\"Log value\",DataLog!AJ491,\"\")","v":""},{"$f":"IF(DataLog!$C491=\"Log value\",DataLog!AK491,\"\")","v":""},{"$f":"IF(DataLog!$C491=\"Log value\",DataLog!AL491,\"\")","v":""},{"$f":"IF(DataLog!$C491=\"Log value\",DataLog!AM491,\"\")","v":""}]
[null,null,"Standard","Standard -  - ",null,null,{"$f":"IF(DataLog!$C492=\"Log value\",DataLog!D492&\"_\"&TEXT(DataLog!B492,\"åååå-mm-dd\"),\"\")","v":""},{"$f":"IF(DataLog!$C492=\"Log value\",DataLog!E492,\"\")","v":""},{"$f":"IF(DataLog!$C492=\"Log value\",DataLog!F492,\"\")","v":""},{"$f":"IF(DataLog!$C492=\"Log value\",DataLog!G492,\"\")","v":""},{"$f":"IF(DataLog!$C492=\"Log value\",DataLog!H492,\"\")","v":""},{"$f":"IF(DataLog!$C492=\"Log value\",DataLog!I492,\"\")","v":""},{"$f":"IF(DataLog!$C492=\"Log value\",DataLog!J492,\"\")","v":""},{"$f":"IF(DataLog!$C492=\"Log value\",DataLog!K492,\"\")","v":""},{"$f":"IF(DataLog!$C492=\"Log value\",DataLog!L492,\"\")","v":""},{"$f":"IF(DataLog!$C492=\"Log value\",DataLog!M492,\"\")","v":""},{"$f":"IF(DataLog!$C492=\"Log value\",DataLog!N492,\"\")","v":""},{"$f":"IF(DataLog!$C492=\"Log value\",DataLog!O492,\"\")","v":""},{"$f":"IF(DataLog!$C492=\"Log value\",DataLog!P492,\"\")","v":""},{"$f":"IF(DataLog!$C492=\"Log value\",DataLog!Q492,\"\")","v":""},{"$f":"IF(DataLog!$C492=\"Log value\",DataLog!R492,\"\")","v":""},{"$f":"IF(DataLog!$C492=\"Log value\",DataLog!S492,\"\")","v":""},{"$f":"IF(DataLog!$C492=\"Log value\",DataLog!T492,\"\")","v":""},{"$f":"IF(DataLog!$C492=\"Log value\",DataLog!U492,\"\")","v":""},{"$f":"IF(DataLog!$C492=\"Log value\",DataLog!V492,\"\")","v":""},{"$f":"IF(DataLog!$C492=\"Log value\",DataLog!W492,\"\")","v":""},{"$f":"IF(DataLog!$C492=\"Log value\",DataLog!X492,\"\")","v":""},{"$f":"IF(DataLog!$C492=\"Log value\",DataLog!Y492,\"\")","v":""},{"$f":"IF(DataLog!$C492=\"Log value\",DataLog!Z492,\"\")","v":""},{"$f":"IF(DataLog!$C492=\"Log value\",DataLog!AA492,\"\")","v":""},{"$f":"IF(DataLog!$C492=\"Log value\",DataLog!AB492,\"\")","v":""},{"$f":"IF(DataLog!$C492=\"Log value\",DataLog!AC492,\"\")","v":""},{"$f":"IF(DataLog!$C492=\"Log value\",DataLog!AD492,\"\")","v":""},{"$f":"IF(DataLog!$C492=\"Log value\",DataLog!AE492,\"\")","v":""},{"$f":"IF(DataLog!$C492=\"Log value\",DataLog!AF492,\"\")","v":""},{"$f":"IF(DataLog!$C492=\"Log value\",DataLog!AG492,\"\")","v":""},{"$f":"IF(DataLog!$C492=\"Log value\",DataLog!AH492,\"\")","v":""},{"$f":"IF(DataLog!$C492=\"Log value\",DataLog!AI492,\"\")","v":""},{"$f":"IF(DataLog!$C492=\"Log value\",DataLog!AJ492,\"\")","v":""},{"$f":"IF(DataLog!$C492=\"Log value\",DataLog!AK492,\"\")","v":""},{"$f":"IF(DataLog!$C492=\"Log value\",DataLog!AL492,\"\")","v":""},{"$f":"IF(DataLog!$C492=\"Log value\",DataLog!AM492,\"\")","v":""}]
[null,null,"Standard","Standard -  - ",null,null,{"$f":"IF(DataLog!$C493=\"Log value\",DataLog!D493&\"_\"&TEXT(DataLog!B493,\"åååå-mm-dd\"),\"\")","v":""},{"$f":"IF(DataLog!$C493=\"Log value\",DataLog!E493,\"\")","v":""},{"$f":"IF(DataLog!$C493=\"Log value\",DataLog!F493,\"\")","v":""},{"$f":"IF(DataLog!$C493=\"Log value\",DataLog!G493,\"\")","v":""},{"$f":"IF(DataLog!$C493=\"Log value\",DataLog!H493,\"\")","v":""},{"$f":"IF(DataLog!$C493=\"Log value\",DataLog!I493,\"\")","v":""},{"$f":"IF(DataLog!$C493=\"Log value\",DataLog!J493,\"\")","v":""},{"$f":"IF(DataLog!$C493=\"Log value\",DataLog!K493,\"\")","v":""},{"$f":"IF(DataLog!$C493=\"Log value\",DataLog!L493,\"\")","v":""},{"$f":"IF(DataLog!$C493=\"Log value\",DataLog!M493,\"\")","v":""},{"$f":"IF(DataLog!$C493=\"Log value\",DataLog!N493,\"\")","v":""},{"$f":"IF(DataLog!$C493=\"Log value\",DataLog!O493,\"\")","v":""},{"$f":"IF(DataLog!$C493=\"Log value\",DataLog!P493,\"\")","v":""},{"$f":"IF(DataLog!$C493=\"Log value\",DataLog!Q493,\"\")","v":""},{"$f":"IF(DataLog!$C493=\"Log value\",DataLog!R493,\"\")","v":""},{"$f":"IF(DataLog!$C493=\"Log value\",DataLog!S493,\"\")","v":""},{"$f":"IF(DataLog!$C493=\"Log value\",DataLog!T493,\"\")","v":""},{"$f":"IF(DataLog!$C493=\"Log value\",DataLog!U493,\"\")","v":""},{"$f":"IF(DataLog!$C493=\"Log value\",DataLog!V493,\"\")","v":""},{"$f":"IF(DataLog!$C493=\"Log value\",DataLog!W493,\"\")","v":""},{"$f":"IF(DataLog!$C493=\"Log value\",DataLog!X493,\"\")","v":""},{"$f":"IF(DataLog!$C493=\"Log value\",DataLog!Y493,\"\")","v":""},{"$f":"IF(DataLog!$C493=\"Log value\",DataLog!Z493,\"\")","v":""},{"$f":"IF(DataLog!$C493=\"Log value\",DataLog!AA493,\"\")","v":""},{"$f":"IF(DataLog!$C493=\"Log value\",DataLog!AB493,\"\")","v":""},{"$f":"IF(DataLog!$C493=\"Log value\",DataLog!AC493,\"\")","v":""},{"$f":"IF(DataLog!$C493=\"Log value\",DataLog!AD493,\"\")","v":""},{"$f":"IF(DataLog!$C493=\"Log value\",DataLog!AE493,\"\")","v":""},{"$f":"IF(DataLog!$C493=\"Log value\",DataLog!AF493,\"\")","v":""},{"$f":"IF(DataLog!$C493=\"Log value\",DataLog!AG493,\"\")","v":""},{"$f":"IF(DataLog!$C493=\"Log value\",DataLog!AH493,\"\")","v":""},{"$f":"IF(DataLog!$C493=\"Log value\",DataLog!AI493,\"\")","v":""},{"$f":"IF(DataLog!$C493=\"Log value\",DataLog!AJ493,\"\")","v":""},{"$f":"IF(DataLog!$C493=\"Log value\",DataLog!AK493,\"\")","v":""},{"$f":"IF(DataLog!$C493=\"Log value\",DataLog!AL493,\"\")","v":""},{"$f":"IF(DataLog!$C493=\"Log value\",DataLog!AM493,\"\")","v":""}]
[null,null,{"$f":"$H$21","v":"Standard"},"Standard -  - ",null,null,{"$f":"IF(DataLog!$C494=\"Log value\",DataLog!D494&\"_\"&TEXT(DataLog!B494,\"åååå-mm-dd\"),\"\")","v":""},{"$f":"IF(DataLog!$C494=\"Log value\",DataLog!E494,\"\")","v":""},{"$f":"IF(DataLog!$C494=\"Log value\",DataLog!F494,\"\")","v":""},{"$f":"IF(DataLog!$C494=\"Log value\",DataLog!G494,\"\")","v":""},{"$f":"IF(DataLog!$C494=\"Log value\",DataLog!H494,\"\")","v":""},{"$f":"IF(DataLog!$C494=\"Log value\",DataLog!I494,\"\")","v":""},{"$f":"IF(DataLog!$C494=\"Log value\",DataLog!J494,\"\")","v":""},{"$f":"IF(DataLog!$C494=\"Log value\",DataLog!K494,\"\")","v":""},{"$f":"IF(DataLog!$C494=\"Log value\",DataLog!L494,\"\")","v":""},{"$f":"IF(DataLog!$C494=\"Log value\",DataLog!M494,\"\")","v":""},{"$f":"IF(DataLog!$C494=\"Log value\",DataLog!N494,\"\")","v":""},{"$f":"IF(DataLog!$C494=\"Log value\",DataLog!O494,\"\")","v":""},{"$f":"IF(DataLog!$C494=\"Log value\",DataLog!P494,\"\")","v":""},{"$f":"IF(DataLog!$C494=\"Log value\",DataLog!Q494,\"\")","v":""},{"$f":"IF(DataLog!$C494=\"Log value\",DataLog!R494,\"\")","v":""},{"$f":"IF(DataLog!$C494=\"Log value\",DataLog!S494,\"\")","v":""},{"$f":"IF(DataLog!$C494=\"Log value\",DataLog!T494,\"\")","v":""},{"$f":"IF(DataLog!$C494=\"Log value\",DataLog!U494,\"\")","v":""},{"$f":"IF(DataLog!$C494=\"Log value\",DataLog!V494,\"\")","v":""},{"$f":"IF(DataLog!$C494=\"Log value\",DataLog!W494,\"\")","v":""},{"$f":"IF(DataLog!$C494=\"Log value\",DataLog!X494,\"\")","v":""},{"$f":"IF(DataLog!$C494=\"Log value\",DataLog!Y494,\"\")","v":""},{"$f":"IF(DataLog!$C494=\"Log value\",DataLog!Z494,\"\")","v":""},{"$f":"IF(DataLog!$C494=\"Log value\",DataLog!AA494,\"\")","v":""},{"$f":"IF(DataLog!$C494=\"Log value\",DataLog!AB494,\"\")","v":""},{"$f":"IF(DataLog!$C494=\"Log value\",DataLog!AC494,\"\")","v":""},{"$f":"IF(DataLog!$C494=\"Log value\",DataLog!AD494,\"\")","v":""},{"$f":"IF(DataLog!$C494=\"Log value\",DataLog!AE494,\"\")","v":""},{"$f":"IF(DataLog!$C494=\"Log value\",DataLog!AF494,\"\")","v":""},{"$f":"IF(DataLog!$C494=\"Log value\",DataLog!AG494,\"\")","v":""},{"$f":"IF(DataLog!$C494=\"Log value\",DataLog!AH494,\"\")","v":""},{"$f":"IF(DataLog!$C494=\"Log value\",DataLog!AI494,\"\")","v":""},{"$f":"IF(DataLog!$C494=\"Log value\",DataLog!AJ494,\"\")","v":""},{"$f":"IF(DataLog!$C494=\"Log value\",DataLog!AK494,\"\")","v":""},{"$f":"IF(DataLog!$C494=\"Log value\",DataLog!AL494,\"\")","v":""},{"$f":"IF(DataLog!$C494=\"Log value\",DataLog!AM494,\"\")","v":""}]
[null,null,"Standard","Standard -  - ",null,null,{"$f":"IF(DataLog!$C495=\"Log value\",DataLog!D495&\"_\"&TEXT(DataLog!B495,\"åååå-mm-dd\"),\"\")","v":""},{"$f":"IF(DataLog!$C495=\"Log value\",DataLog!E495,\"\")","v":""},{"$f":"IF(DataLog!$C495=\"Log value\",DataLog!F495,\"\")","v":""},{"$f":"IF(DataLog!$C495=\"Log value\",DataLog!G495,\"\")","v":""},{"$f":"IF(DataLog!$C495=\"Log value\",DataLog!H495,\"\")","v":""},{"$f":"IF(DataLog!$C495=\"Log value\",DataLog!I495,\"\")","v":""},{"$f":"IF(DataLog!$C495=\"Log value\",DataLog!J495,\"\")","v":""},{"$f":"IF(DataLog!$C495=\"Log value\",DataLog!K495,\"\")","v":""},{"$f":"IF(DataLog!$C495=\"Log value\",DataLog!L495,\"\")","v":""},{"$f":"IF(DataLog!$C495=\"Log value\",DataLog!M495,\"\")","v":""},{"$f":"IF(DataLog!$C495=\"Log value\",DataLog!N495,\"\")","v":""},{"$f":"IF(DataLog!$C495=\"Log value\",DataLog!O495,\"\")","v":""},{"$f":"IF(DataLog!$C495=\"Log value\",DataLog!P495,\"\")","v":""},{"$f":"IF(DataLog!$C495=\"Log value\",DataLog!Q495,\"\")","v":""},{"$f":"IF(DataLog!$C495=\"Log value\",DataLog!R495,\"\")","v":""},{"$f":"IF(DataLog!$C495=\"Log value\",DataLog!S495,\"\")","v":""},{"$f":"IF(DataLog!$C495=\"Log value\",DataLog!T495,\"\")","v":""},{"$f":"IF(DataLog!$C495=\"Log value\",DataLog!U495,\"\")","v":""},{"$f":"IF(DataLog!$C495=\"Log value\",DataLog!V495,\"\")","v":""},{"$f":"IF(DataLog!$C495=\"Log value\",DataLog!W495,\"\")","v":""},{"$f":"IF(DataLog!$C495=\"Log value\",DataLog!X495,\"\")","v":""},{"$f":"IF(DataLog!$C495=\"Log value\",DataLog!Y495,\"\")","v":""},{"$f":"IF(DataLog!$C495=\"Log value\",DataLog!Z495,\"\")","v":""},{"$f":"IF(DataLog!$C495=\"Log value\",DataLog!AA495,\"\")","v":""},{"$f":"IF(DataLog!$C495=\"Log value\",DataLog!AB495,\"\")","v":""},{"$f":"IF(DataLog!$C495=\"Log value\",DataLog!AC495,\"\")","v":""},{"$f":"IF(DataLog!$C495=\"Log value\",DataLog!AD495,\"\")","v":""},{"$f":"IF(DataLog!$C495=\"Log value\",DataLog!AE495,\"\")","v":""},{"$f":"IF(DataLog!$C495=\"Log value\",DataLog!AF495,\"\")","v":""},{"$f":"IF(DataLog!$C495=\"Log value\",DataLog!AG495,\"\")","v":""},{"$f":"IF(DataLog!$C495=\"Log value\",DataLog!AH495,\"\")","v":""},{"$f":"IF(DataLog!$C495=\"Log value\",DataLog!AI495,\"\")","v":""},{"$f":"IF(DataLog!$C495=\"Log value\",DataLog!AJ495,\"\")","v":""},{"$f":"IF(DataLog!$C495=\"Log value\",DataLog!AK495,\"\")","v":""},{"$f":"IF(DataLog!$C495=\"Log value\",DataLog!AL495,\"\")","v":""},{"$f":"IF(DataLog!$C495=\"Log value\",DataLog!AM495,\"\")","v":""}]
[null,null,"Standard","Standard -  - ",null,null,{"$f":"IF(DataLog!$C496=\"Log value\",DataLog!D496&\"_\"&TEXT(DataLog!B496,\"åååå-mm-dd\"),\"\")","v":""},{"$f":"IF(DataLog!$C496=\"Log value\",DataLog!E496,\"\")","v":""},{"$f":"IF(DataLog!$C496=\"Log value\",DataLog!F496,\"\")","v":""},{"$f":"IF(DataLog!$C496=\"Log value\",DataLog!G496,\"\")","v":""},{"$f":"IF(DataLog!$C496=\"Log value\",DataLog!H496,\"\")","v":""},{"$f":"IF(DataLog!$C496=\"Log value\",DataLog!I496,\"\")","v":""},{"$f":"IF(DataLog!$C496=\"Log value\",DataLog!J496,\"\")","v":""},{"$f":"IF(DataLog!$C496=\"Log value\",DataLog!K496,\"\")","v":""},{"$f":"IF(DataLog!$C496=\"Log value\",DataLog!L496,\"\")","v":""},{"$f":"IF(DataLog!$C496=\"Log value\",DataLog!M496,\"\")","v":""},{"$f":"IF(DataLog!$C496=\"Log value\",DataLog!N496,\"\")","v":""},{"$f":"IF(DataLog!$C496=\"Log value\",DataLog!O496,\"\")","v":""},{"$f":"IF(DataLog!$C496=\"Log value\",DataLog!P496,\"\")","v":""},{"$f":"IF(DataLog!$C496=\"Log value\",DataLog!Q496,\"\")","v":""},{"$f":"IF(DataLog!$C496=\"Log value\",DataLog!R496,\"\")","v":""},{"$f":"IF(DataLog!$C496=\"Log value\",DataLog!S496,\"\")","v":""},{"$f":"IF(DataLog!$C496=\"Log value\",DataLog!T496,\"\")","v":""},{"$f":"IF(DataLog!$C496=\"Log value\",DataLog!U496,\"\")","v":""},{"$f":"IF(DataLog!$C496=\"Log value\",DataLog!V496,\"\")","v":""},{"$f":"IF(DataLog!$C496=\"Log value\",DataLog!W496,\"\")","v":""},{"$f":"IF(DataLog!$C496=\"Log value\",DataLog!X496,\"\")","v":""},{"$f":"IF(DataLog!$C496=\"Log value\",DataLog!Y496,\"\")","v":""},{"$f":"IF(DataLog!$C496=\"Log value\",DataLog!Z496,\"\")","v":""},{"$f":"IF(DataLog!$C496=\"Log value\",DataLog!AA496,\"\")","v":""},{"$f":"IF(DataLog!$C496=\"Log value\",DataLog!AB496,\"\")","v":""},{"$f":"IF(DataLog!$C496=\"Log value\",DataLog!AC496,\"\")","v":""},{"$f":"IF(DataLog!$C496=\"Log value\",DataLog!AD496,\"\")","v":""},{"$f":"IF(DataLog!$C496=\"Log value\",DataLog!AE496,\"\")","v":""},{"$f":"IF(DataLog!$C496=\"Log value\",DataLog!AF496,\"\")","v":""},{"$f":"IF(DataLog!$C496=\"Log value\",DataLog!AG496,\"\")","v":""},{"$f":"IF(DataLog!$C496=\"Log value\",DataLog!AH496,\"\")","v":""},{"$f":"IF(DataLog!$C496=\"Log value\",DataLog!AI496,\"\")","v":""},{"$f":"IF(DataLog!$C496=\"Log value\",DataLog!AJ496,\"\")","v":""},{"$f":"IF(DataLog!$C496=\"Log value\",DataLog!AK496,\"\")","v":""},{"$f":"IF(DataLog!$C496=\"Log value\",DataLog!AL496,\"\")","v":""},{"$f":"IF(DataLog!$C496=\"Log value\",DataLog!AM496,\"\")","v":""}]
[null,null,"Standard","Standard -  - ",null,null,{"$f":"IF(DataLog!$C497=\"Log value\",DataLog!D497&\"_\"&TEXT(DataLog!B497,\"åååå-mm-dd\"),\"\")","v":""},{"$f":"IF(DataLog!$C497=\"Log value\",DataLog!E497,\"\")","v":""},{"$f":"IF(DataLog!$C497=\"Log value\",DataLog!F497,\"\")","v":""},{"$f":"IF(DataLog!$C497=\"Log value\",DataLog!G497,\"\")","v":""},{"$f":"IF(DataLog!$C497=\"Log value\",DataLog!H497,\"\")","v":""},{"$f":"IF(DataLog!$C497=\"Log value\",DataLog!I497,\"\")","v":""},{"$f":"IF(DataLog!$C497=\"Log value\",DataLog!J497,\"\")","v":""},{"$f":"IF(DataLog!$C497=\"Log value\",DataLog!K497,\"\")","v":""},{"$f":"IF(DataLog!$C497=\"Log value\",DataLog!L497,\"\")","v":""},{"$f":"IF(DataLog!$C497=\"Log value\",DataLog!M497,\"\")","v":""},{"$f":"IF(DataLog!$C497=\"Log value\",DataLog!N497,\"\")","v":""},{"$f":"IF(DataLog!$C497=\"Log value\",DataLog!O497,\"\")","v":""},{"$f":"IF(DataLog!$C497=\"Log value\",DataLog!P497,\"\")","v":""},{"$f":"IF(DataLog!$C497=\"Log value\",DataLog!Q497,\"\")","v":""},{"$f":"IF(DataLog!$C497=\"Log value\",DataLog!R497,\"\")","v":""},{"$f":"IF(DataLog!$C497=\"Log value\",DataLog!S497,\"\")","v":""},{"$f":"IF(DataLog!$C497=\"Log value\",DataLog!T497,\"\")","v":""},{"$f":"IF(DataLog!$C497=\"Log value\",DataLog!U497,\"\")","v":""},{"$f":"IF(DataLog!$C497=\"Log value\",DataLog!V497,\"\")","v":""},{"$f":"IF(DataLog!$C497=\"Log value\",DataLog!W497,\"\")","v":""},{"$f":"IF(DataLog!$C497=\"Log value\",DataLog!X497,\"\")","v":""},{"$f":"IF(DataLog!$C497=\"Log value\",DataLog!Y497,\"\")","v":""},{"$f":"IF(DataLog!$C497=\"Log value\",DataLog!Z497,\"\")","v":""},{"$f":"IF(DataLog!$C497=\"Log value\",DataLog!AA497,\"\")","v":""},{"$f":"IF(DataLog!$C497=\"Log value\",DataLog!AB497,\"\")","v":""},{"$f":"IF(DataLog!$C497=\"Log value\",DataLog!AC497,\"\")","v":""},{"$f":"IF(DataLog!$C497=\"Log value\",DataLog!AD497,\"\")","v":""},{"$f":"IF(DataLog!$C497=\"Log value\",DataLog!AE497,\"\")","v":""},{"$f":"IF(DataLog!$C497=\"Log value\",DataLog!AF497,\"\")","v":""},{"$f":"IF(DataLog!$C497=\"Log value\",DataLog!AG497,\"\")","v":""},{"$f":"IF(DataLog!$C497=\"Log value\",DataLog!AH497,\"\")","v":""},{"$f":"IF(DataLog!$C497=\"Log value\",DataLog!AI497,\"\")","v":""},{"$f":"IF(DataLog!$C497=\"Log value\",DataLog!AJ497,\"\")","v":""},{"$f":"IF(DataLog!$C497=\"Log value\",DataLog!AK497,\"\")","v":""},{"$f":"IF(DataLog!$C497=\"Log value\",DataLog!AL497,\"\")","v":""},{"$f":"IF(DataLog!$C497=\"Log value\",DataLog!AM497,\"\")","v":""}]
[null,null,"Standard","Standard -  - ",null,null,{"$f":"IF(DataLog!$C498=\"Log value\",DataLog!D498&\"_\"&TEXT(DataLog!B498,\"åååå-mm-dd\"),\"\")","v":""},{"$f":"IF(DataLog!$C498=\"Log value\",DataLog!E498,\"\")","v":""},{"$f":"IF(DataLog!$C498=\"Log value\",DataLog!F498,\"\")","v":""},{"$f":"IF(DataLog!$C498=\"Log value\",DataLog!G498,\"\")","v":""},{"$f":"IF(DataLog!$C498=\"Log value\",DataLog!H498,\"\")","v":""},{"$f":"IF(DataLog!$C498=\"Log value\",DataLog!I498,\"\")","v":""},{"$f":"IF(DataLog!$C498=\"Log value\",DataLog!J498,\"\")","v":""},{"$f":"IF(DataLog!$C498=\"Log value\",DataLog!K498,\"\")","v":""},{"$f":"IF(DataLog!$C498=\"Log value\",DataLog!L498,\"\")","v":""},{"$f":"IF(DataLog!$C498=\"Log value\",DataLog!M498,\"\")","v":""},{"$f":"IF(DataLog!$C498=\"Log value\",DataLog!N498,\"\")","v":""},{"$f":"IF(DataLog!$C498=\"Log value\",DataLog!O498,\"\")","v":""},{"$f":"IF(DataLog!$C498=\"Log value\",DataLog!P498,\"\")","v":""},{"$f":"IF(DataLog!$C498=\"Log value\",DataLog!Q498,\"\")","v":""},{"$f":"IF(DataLog!$C498=\"Log value\",DataLog!R498,\"\")","v":""},{"$f":"IF(DataLog!$C498=\"Log value\",DataLog!S498,\"\")","v":""},{"$f":"IF(DataLog!$C498=\"Log value\",DataLog!T498,\"\")","v":""},{"$f":"IF(DataLog!$C498=\"Log value\",DataLog!U498,\"\")","v":""},{"$f":"IF(DataLog!$C498=\"Log value\",DataLog!V498,\"\")","v":""},{"$f":"IF(DataLog!$C498=\"Log value\",DataLog!W498,\"\")","v":""},{"$f":"IF(DataLog!$C498=\"Log value\",DataLog!X498,\"\")","v":""},{"$f":"IF(DataLog!$C498=\"Log value\",DataLog!Y498,\"\")","v":""},{"$f":"IF(DataLog!$C498=\"Log value\",DataLog!Z498,\"\")","v":""},{"$f":"IF(DataLog!$C498=\"Log value\",DataLog!AA498,\"\")","v":""},{"$f":"IF(DataLog!$C498=\"Log value\",DataLog!AB498,\"\")","v":""},{"$f":"IF(DataLog!$C498=\"Log value\",DataLog!AC498,\"\")","v":""},{"$f":"IF(DataLog!$C498=\"Log value\",DataLog!AD498,\"\")","v":""},{"$f":"IF(DataLog!$C498=\"Log value\",DataLog!AE498,\"\")","v":""},{"$f":"IF(DataLog!$C498=\"Log value\",DataLog!AF498,\"\")","v":""},{"$f":"IF(DataLog!$C498=\"Log value\",DataLog!AG498,\"\")","v":""},{"$f":"IF(DataLog!$C498=\"Log value\",DataLog!AH498,\"\")","v":""},{"$f":"IF(DataLog!$C498=\"Log value\",DataLog!AI498,\"\")","v":""},{"$f":"IF(DataLog!$C498=\"Log value\",DataLog!AJ498,\"\")","v":""},{"$f":"IF(DataLog!$C498=\"Log value\",DataLog!AK498,\"\")","v":""},{"$f":"IF(DataLog!$C498=\"Log value\",DataLog!AL498,\"\")","v":""},{"$f":"IF(DataLog!$C498=\"Log value\",DataLog!AM498,\"\")","v":""}]
[null,null,"Standard","Standard -  - ",null,null,{"$f":"IF(DataLog!$C499=\"Log value\",DataLog!D499&\"_\"&TEXT(DataLog!B499,\"åååå-mm-dd\"),\"\")","v":""},{"$f":"IF(DataLog!$C499=\"Log value\",DataLog!E499,\"\")","v":""},{"$f":"IF(DataLog!$C499=\"Log value\",DataLog!F499,\"\")","v":""},{"$f":"IF(DataLog!$C499=\"Log value\",DataLog!G499,\"\")","v":""},{"$f":"IF(DataLog!$C499=\"Log value\",DataLog!H499,\"\")","v":""},{"$f":"IF(DataLog!$C499=\"Log value\",DataLog!I499,\"\")","v":""},{"$f":"IF(DataLog!$C499=\"Log value\",DataLog!J499,\"\")","v":""},{"$f":"IF(DataLog!$C499=\"Log value\",DataLog!K499,\"\")","v":""},{"$f":"IF(DataLog!$C499=\"Log value\",DataLog!L499,\"\")","v":""},{"$f":"IF(DataLog!$C499=\"Log value\",DataLog!M499,\"\")","v":""},{"$f":"IF(DataLog!$C499=\"Log value\",DataLog!N499,\"\")","v":""},{"$f":"IF(DataLog!$C499=\"Log value\",DataLog!O499,\"\")","v":""},{"$f":"IF(DataLog!$C499=\"Log value\",DataLog!P499,\"\")","v":""},{"$f":"IF(DataLog!$C499=\"Log value\",DataLog!Q499,\"\")","v":""},{"$f":"IF(DataLog!$C499=\"Log value\",DataLog!R499,\"\")","v":""},{"$f":"IF(DataLog!$C499=\"Log value\",DataLog!S499,\"\")","v":""},{"$f":"IF(DataLog!$C499=\"Log value\",DataLog!T499,\"\")","v":""},{"$f":"IF(DataLog!$C499=\"Log value\",DataLog!U499,\"\")","v":""},{"$f":"IF(DataLog!$C499=\"Log value\",DataLog!V499,\"\")","v":""},{"$f":"IF(DataLog!$C499=\"Log value\",DataLog!W499,\"\")","v":""},{"$f":"IF(DataLog!$C499=\"Log value\",DataLog!X499,\"\")","v":""},{"$f":"IF(DataLog!$C499=\"Log value\",DataLog!Y499,\"\")","v":""},{"$f":"IF(DataLog!$C499=\"Log value\",DataLog!Z499,\"\")","v":""},{"$f":"IF(DataLog!$C499=\"Log value\",DataLog!AA499,\"\")","v":""},{"$f":"IF(DataLog!$C499=\"Log value\",DataLog!AB499,\"\")","v":""},{"$f":"IF(DataLog!$C499=\"Log value\",DataLog!AC499,\"\")","v":""},{"$f":"IF(DataLog!$C499=\"Log value\",DataLog!AD499,\"\")","v":""},{"$f":"IF(DataLog!$C499=\"Log value\",DataLog!AE499,\"\")","v":""},{"$f":"IF(DataLog!$C499=\"Log value\",DataLog!AF499,\"\")","v":""},{"$f":"IF(DataLog!$C499=\"Log value\",DataLog!AG499,\"\")","v":""},{"$f":"IF(DataLog!$C499=\"Log value\",DataLog!AH499,\"\")","v":""},{"$f":"IF(DataLog!$C499=\"Log value\",DataLog!AI499,\"\")","v":""},{"$f":"IF(DataLog!$C499=\"Log value\",DataLog!AJ499,\"\")","v":""},{"$f":"IF(DataLog!$C499=\"Log value\",DataLog!AK499,\"\")","v":""},{"$f":"IF(DataLog!$C499=\"Log value\",DataLog!AL499,\"\")","v":""},{"$f":"IF(DataLog!$C499=\"Log value\",DataLog!AM499,\"\")","v":""}]
[null,null,null,null,null,null,{"$f":"IF(DataLog!$C500=\"Log value\",DataLog!D500&\"_\"&TEXT(DataLog!B500,\"åååå-mm-dd\"),\"\")","v":""},{"$f":"IF(DataLog!$C500=\"Log value\",DataLog!E500,\"\")","v":""},{"$f":"IF(DataLog!$C500=\"Log value\",DataLog!F500,\"\")","v":""},{"$f":"IF(DataLog!$C500=\"Log value\",DataLog!G500,\"\")","v":""},{"$f":"IF(DataLog!$C500=\"Log value\",DataLog!H500,\"\")","v":""},{"$f":"IF(DataLog!$C500=\"Log value\",DataLog!I500,\"\")","v":""},{"$f":"IF(DataLog!$C500=\"Log value\",DataLog!J500,\"\")","v":""},{"$f":"IF(DataLog!$C500=\"Log value\",DataLog!K500,\"\")","v":""},{"$f":"IF(DataLog!$C500=\"Log value\",DataLog!L500,\"\")","v":""},{"$f":"IF(DataLog!$C500=\"Log value\",DataLog!M500,\"\")","v":""},{"$f":"IF(DataLog!$C500=\"Log value\",DataLog!N500,\"\")","v":""},{"$f":"IF(DataLog!$C500=\"Log value\",DataLog!O500,\"\")","v":""},{"$f":"IF(DataLog!$C500=\"Log value\",DataLog!P500,\"\")","v":""},{"$f":"IF(DataLog!$C500=\"Log value\",DataLog!Q500,\"\")","v":""},{"$f":"IF(DataLog!$C500=\"Log value\",DataLog!R500,\"\")","v":""},{"$f":"IF(DataLog!$C500=\"Log value\",DataLog!S500,\"\")","v":""},{"$f":"IF(DataLog!$C500=\"Log value\",DataLog!T500,\"\")","v":""},{"$f":"IF(DataLog!$C500=\"Log value\",DataLog!U500,\"\")","v":""},{"$f":"IF(DataLog!$C500=\"Log value\",DataLog!V500,\"\")","v":""},{"$f":"IF(DataLog!$C500=\"Log value\",DataLog!W500,\"\")","v":""},{"$f":"IF(DataLog!$C500=\"Log value\",DataLog!X500,\"\")","v":""},{"$f":"IF(DataLog!$C500=\"Log value\",DataLog!Y500,\"\")","v":""},{"$f":"IF(DataLog!$C500=\"Log value\",DataLog!Z500,\"\")","v":""},{"$f":"IF(DataLog!$C500=\"Log value\",DataLog!AA500,\"\")","v":""},{"$f":"IF(DataLog!$C500=\"Log value\",DataLog!AB500,\"\")","v":""},{"$f":"IF(DataLog!$C500=\"Log value\",DataLog!AC500,\"\")","v":""},{"$f":"IF(DataLog!$C500=\"Log value\",DataLog!AD500,\"\")","v":""},{"$f":"IF(DataLog!$C500=\"Log value\",DataLog!AE500,\"\")","v":""},{"$f":"IF(DataLog!$C500=\"Log value\",DataLog!AF500,\"\")","v":""},{"$f":"IF(DataLog!$C500=\"Log value\",DataLog!AG500,\"\")","v":""},{"$f":"IF(DataLog!$C500=\"Log value\",DataLog!AH500,\"\")","v":""},{"$f":"IF(DataLog!$C500=\"Log value\",DataLog!AI500,\"\")","v":""},{"$f":"IF(DataLog!$C500=\"Log value\",DataLog!AJ500,\"\")","v":""},{"$f":"IF(DataLog!$C500=\"Log value\",DataLog!AK500,\"\")","v":""},{"$f":"IF(DataLog!$C500=\"Log value\",DataLog!AL500,\"\")","v":""},{"$f":"IF(DataLog!$C500=\"Log value\",DataLog!AM500,\"\")","v":""}]
[null,null,null,null,null,null,{"$f":"IF(DataLog!$C501=\"Log value\",DataLog!D501&\"_\"&TEXT(DataLog!B501,\"åååå-mm-dd\"),\"\")","v":""},{"$f":"IF(DataLog!$C501=\"Log value\",DataLog!E501,\"\")","v":""},{"$f":"IF(DataLog!$C501=\"Log value\",DataLog!F501,\"\")","v":""},{"$f":"IF(DataLog!$C501=\"Log value\",DataLog!G501,\"\")","v":""},{"$f":"IF(DataLog!$C501=\"Log value\",DataLog!H501,\"\")","v":""},{"$f":"IF(DataLog!$C501=\"Log value\",DataLog!I501,\"\")","v":""},{"$f":"IF(DataLog!$C501=\"Log value\",DataLog!J501,\"\")","v":""},{"$f":"IF(DataLog!$C501=\"Log value\",DataLog!K501,\"\")","v":""},{"$f":"IF(DataLog!$C501=\"Log value\",DataLog!L501,\"\")","v":""},{"$f":"IF(DataLog!$C501=\"Log value\",DataLog!M501,\"\")","v":""},{"$f":"IF(DataLog!$C501=\"Log value\",DataLog!N501,\"\")","v":""},{"$f":"IF(DataLog!$C501=\"Log value\",DataLog!O501,\"\")","v":""},{"$f":"IF(DataLog!$C501=\"Log value\",DataLog!P501,\"\")","v":""},{"$f":"IF(DataLog!$C501=\"Log value\",DataLog!Q501,\"\")","v":""},{"$f":"IF(DataLog!$C501=\"Log value\",DataLog!R501,\"\")","v":""},{"$f":"IF(DataLog!$C501=\"Log value\",DataLog!S501,\"\")","v":""},{"$f":"IF(DataLog!$C501=\"Log value\",DataLog!T501,\"\")","v":""},{"$f":"IF(DataLog!$C501=\"Log value\",DataLog!U501,\"\")","v":""},{"$f":"IF(DataLog!$C501=\"Log value\",DataLog!V501,\"\")","v":""},{"$f":"IF(DataLog!$C501=\"Log value\",DataLog!W501,\"\")","v":""},{"$f":"IF(DataLog!$C501=\"Log value\",DataLog!X501,\"\")","v":""},{"$f":"IF(DataLog!$C501=\"Log value\",DataLog!Y501,\"\")","v":""},{"$f":"IF(DataLog!$C501=\"Log value\",DataLog!Z501,\"\")","v":""},{"$f":"IF(DataLog!$C501=\"Log value\",DataLog!AA501,\"\")","v":""},{"$f":"IF(DataLog!$C501=\"Log value\",DataLog!AB501,\"\")","v":""},{"$f":"IF(DataLog!$C501=\"Log value\",DataLog!AC501,\"\")","v":""},{"$f":"IF(DataLog!$C501=\"Log value\",DataLog!AD501,\"\")","v":""},{"$f":"IF(DataLog!$C501=\"Log value\",DataLog!AE501,\"\")","v":""},{"$f":"IF(DataLog!$C501=\"Log value\",DataLog!AF501,\"\")","v":""},{"$f":"IF(DataLog!$C501=\"Log value\",DataLog!AG501,\"\")","v":""},{"$f":"IF(DataLog!$C501=\"Log value\",DataLog!AH501,\"\")","v":""},{"$f":"IF(DataLog!$C501=\"Log value\",DataLog!AI501,\"\")","v":""},{"$f":"IF(DataLog!$C501=\"Log value\",DataLog!AJ501,\"\")","v":""},{"$f":"IF(DataLog!$C501=\"Log value\",DataLog!AK501,\"\")","v":""},{"$f":"IF(DataLog!$C501=\"Log value\",DataLog!AL501,\"\")","v":""},{"$f":"IF(DataLog!$C501=\"Log value\",DataLog!AM501,\"\")","v":""}]
[null,null,null,null,null,null,{"$f":"IF(DataLog!$C502=\"Log value\",DataLog!D502&\"_\"&TEXT(DataLog!B502,\"åååå-mm-dd\"),\"\")","v":""},{"$f":"IF(DataLog!$C502=\"Log value\",DataLog!E502,\"\")","v":""},{"$f":"IF(DataLog!$C502=\"Log value\",DataLog!F502,\"\")","v":""},{"$f":"IF(DataLog!$C502=\"Log value\",DataLog!G502,\"\")","v":""},{"$f":"IF(DataLog!$C502=\"Log value\",DataLog!H502,\"\")","v":""},{"$f":"IF(DataLog!$C502=\"Log value\",DataLog!I502,\"\")","v":""},{"$f":"IF(DataLog!$C502=\"Log value\",DataLog!J502,\"\")","v":""},{"$f":"IF(DataLog!$C502=\"Log value\",DataLog!K502,\"\")","v":""},{"$f":"IF(DataLog!$C502=\"Log value\",DataLog!L502,\"\")","v":""},{"$f":"IF(DataLog!$C502=\"Log value\",DataLog!M502,\"\")","v":""},{"$f":"IF(DataLog!$C502=\"Log value\",DataLog!N502,\"\")","v":""},{"$f":"IF(DataLog!$C502=\"Log value\",DataLog!O502,\"\")","v":""},{"$f":"IF(DataLog!$C502=\"Log value\",DataLog!P502,\"\")","v":""},{"$f":"IF(DataLog!$C502=\"Log value\",DataLog!Q502,\"\")","v":""},{"$f":"IF(DataLog!$C502=\"Log value\",DataLog!R502,\"\")","v":""},{"$f":"IF(DataLog!$C502=\"Log value\",DataLog!S502,\"\")","v":""},{"$f":"IF(DataLog!$C502=\"Log value\",DataLog!T502,\"\")","v":""},{"$f":"IF(DataLog!$C502=\"Log value\",DataLog!U502,\"\")","v":""},{"$f":"IF(DataLog!$C502=\"Log value\",DataLog!V502,\"\")","v":""},{"$f":"IF(DataLog!$C502=\"Log value\",DataLog!W502,\"\")","v":""},{"$f":"IF(DataLog!$C502=\"Log value\",DataLog!X502,\"\")","v":""},{"$f":"IF(DataLog!$C502=\"Log value\",DataLog!Y502,\"\")","v":""},{"$f":"IF(DataLog!$C502=\"Log value\",DataLog!Z502,\"\")","v":""},{"$f":"IF(DataLog!$C502=\"Log value\",DataLog!AA502,\"\")","v":""},{"$f":"IF(DataLog!$C502=\"Log value\",DataLog!AB502,\"\")","v":""},{"$f":"IF(DataLog!$C502=\"Log value\",DataLog!AC502,\"\")","v":""},{"$f":"IF(DataLog!$C502=\"Log value\",DataLog!AD502,\"\")","v":""},{"$f":"IF(DataLog!$C502=\"Log value\",DataLog!AE502,\"\")","v":""},{"$f":"IF(DataLog!$C502=\"Log value\",DataLog!AF502,\"\")","v":""},{"$f":"IF(DataLog!$C502=\"Log value\",DataLog!AG502,\"\")","v":""},{"$f":"IF(DataLog!$C502=\"Log value\",DataLog!AH502,\"\")","v":""},{"$f":"IF(DataLog!$C502=\"Log value\",DataLog!AI502,\"\")","v":""},{"$f":"IF(DataLog!$C502=\"Log value\",DataLog!AJ502,\"\")","v":""},{"$f":"IF(DataLog!$C502=\"Log value\",DataLog!AK502,\"\")","v":""},{"$f":"IF(DataLog!$C502=\"Log value\",DataLog!AL502,\"\")","v":""},{"$f":"IF(DataLog!$C502=\"Log value\",DataLog!AM502,\"\")","v":""}]
[null,null,null,null,null,null,{"$f":"IF(DataLog!$C503=\"Log value\",DataLog!D503&\"_\"&TEXT(DataLog!B503,\"åååå-mm-dd\"),\"\")","v":""},{"$f":"IF(DataLog!$C503=\"Log value\",DataLog!E503,\"\")","v":""},{"$f":"IF(DataLog!$C503=\"Log value\",DataLog!F503,\"\")","v":""},{"$f":"IF(DataLog!$C503=\"Log value\",DataLog!G503,\"\")","v":""},{"$f":"IF(DataLog!$C503=\"Log value\",DataLog!H503,\"\")","v":""},{"$f":"IF(DataLog!$C503=\"Log value\",DataLog!I503,\"\")","v":""},{"$f":"IF(DataLog!$C503=\"Log value\",DataLog!J503,\"\")","v":""},{"$f":"IF(DataLog!$C503=\"Log value\",DataLog!K503,\"\")","v":""},{"$f":"IF(DataLog!$C503=\"Log value\",DataLog!L503,\"\")","v":""},{"$f":"IF(DataLog!$C503=\"Log value\",DataLog!M503,\"\")","v":""},{"$f":"IF(DataLog!$C503=\"Log value\",DataLog!N503,\"\")","v":""},{"$f":"IF(DataLog!$C503=\"Log value\",DataLog!O503,\"\")","v":""},{"$f":"IF(DataLog!$C503=\"Log value\",DataLog!P503,\"\")","v":""},{"$f":"IF(DataLog!$C503=\"Log value\",DataLog!Q503,\"\")","v":""},{"$f":"IF(DataLog!$C503=\"Log value\",DataLog!R503,\"\")","v":""},{"$f":"IF(DataLog!$C503=\"Log value\",DataLog!S503,\"\")","v":""},{"$f":"IF(DataLog!$C503=\"Log value\",DataLog!T503,\"\")","v":""},{"$f":"IF(DataLog!$C503=\"Log value\",DataLog!U503,\"\")","v":""},{"$f":"IF(DataLog!$C503=\"Log value\",DataLog!V503,\"\")","v":""},{"$f":"IF(DataLog!$C503=\"Log value\",DataLog!W503,\"\")","v":""},{"$f":"IF(DataLog!$C503=\"Log value\",DataLog!X503,\"\")","v":""},{"$f":"IF(DataLog!$C503=\"Log value\",DataLog!Y503,\"\")","v":""},{"$f":"IF(DataLog!$C503=\"Log value\",DataLog!Z503,\"\")","v":""},{"$f":"IF(DataLog!$C503=\"Log value\",DataLog!AA503,\"\")","v":""},{"$f":"IF(DataLog!$C503=\"Log value\",DataLog!AB503,\"\")","v":""},{"$f":"IF(DataLog!$C503=\"Log value\",DataLog!AC503,\"\")","v":""},{"$f":"IF(DataLog!$C503=\"Log value\",DataLog!AD503,\"\")","v":""},{"$f":"IF(DataLog!$C503=\"Log value\",DataLog!AE503,\"\")","v":""},{"$f":"IF(DataLog!$C503=\"Log value\",DataLog!AF503,\"\")","v":""},{"$f":"IF(DataLog!$C503=\"Log value\",DataLog!AG503,\"\")","v":""},{"$f":"IF(DataLog!$C503=\"Log value\",DataLog!AH503,\"\")","v":""},{"$f":"IF(DataLog!$C503=\"Log value\",DataLog!AI503,\"\")","v":""},{"$f":"IF(DataLog!$C503=\"Log value\",DataLog!AJ503,\"\")","v":""},{"$f":"IF(DataLog!$C503=\"Log value\",DataLog!AK503,\"\")","v":""},{"$f":"IF(DataLog!$C503=\"Log value\",DataLog!AL503,\"\")","v":""},{"$f":"IF(DataLog!$C503=\"Log value\",DataLog!AM503,\"\")","v":""}]
[null,null,null,null,null,null,{"$f":"IF(DataLog!$C504=\"Log value\",DataLog!D504&\"_\"&TEXT(DataLog!B504,\"åååå-mm-dd\"),\"\")","v":""},{"$f":"IF(DataLog!$C504=\"Log value\",DataLog!E504,\"\")","v":""},{"$f":"IF(DataLog!$C504=\"Log value\",DataLog!F504,\"\")","v":""},{"$f":"IF(DataLog!$C504=\"Log value\",DataLog!G504,\"\")","v":""},{"$f":"IF(DataLog!$C504=\"Log value\",DataLog!H504,\"\")","v":""},{"$f":"IF(DataLog!$C504=\"Log value\",DataLog!I504,\"\")","v":""},{"$f":"IF(DataLog!$C504=\"Log value\",DataLog!J504,\"\")","v":""},{"$f":"IF(DataLog!$C504=\"Log value\",DataLog!K504,\"\")","v":""},{"$f":"IF(DataLog!$C504=\"Log value\",DataLog!L504,\"\")","v":""},{"$f":"IF(DataLog!$C504=\"Log value\",DataLog!M504,\"\")","v":""},{"$f":"IF(DataLog!$C504=\"Log value\",DataLog!N504,\"\")","v":""},{"$f":"IF(DataLog!$C504=\"Log value\",DataLog!O504,\"\")","v":""},{"$f":"IF(DataLog!$C504=\"Log value\",DataLog!P504,\"\")","v":""},{"$f":"IF(DataLog!$C504=\"Log value\",DataLog!Q504,\"\")","v":""},{"$f":"IF(DataLog!$C504=\"Log value\",DataLog!R504,\"\")","v":""},{"$f":"IF(DataLog!$C504=\"Log value\",DataLog!S504,\"\")","v":""},{"$f":"IF(DataLog!$C504=\"Log value\",DataLog!T504,\"\")","v":""},{"$f":"IF(DataLog!$C504=\"Log value\",DataLog!U504,\"\")","v":""},{"$f":"IF(DataLog!$C504=\"Log value\",DataLog!V504,\"\")","v":""},{"$f":"IF(DataLog!$C504=\"Log value\",DataLog!W504,\"\")","v":""},{"$f":"IF(DataLog!$C504=\"Log value\",DataLog!X504,\"\")","v":""},{"$f":"IF(DataLog!$C504=\"Log value\",DataLog!Y504,\"\")","v":""},{"$f":"IF(DataLog!$C504=\"Log value\",DataLog!Z504,\"\")","v":""},{"$f":"IF(DataLog!$C504=\"Log value\",DataLog!AA504,\"\")","v":""},{"$f":"IF(DataLog!$C504=\"Log value\",DataLog!AB504,\"\")","v":""},{"$f":"IF(DataLog!$C504=\"Log value\",DataLog!AC504,\"\")","v":""},{"$f":"IF(DataLog!$C504=\"Log value\",DataLog!AD504,\"\")","v":""},{"$f":"IF(DataLog!$C504=\"Log value\",DataLog!AE504,\"\")","v":""},{"$f":"IF(DataLog!$C504=\"Log value\",DataLog!AF504,\"\")","v":""},{"$f":"IF(DataLog!$C504=\"Log value\",DataLog!AG504,\"\")","v":""},{"$f":"IF(DataLog!$C504=\"Log value\",DataLog!AH504,\"\")","v":""},{"$f":"IF(DataLog!$C504=\"Log value\",DataLog!AI504,\"\")","v":""},{"$f":"IF(DataLog!$C504=\"Log value\",DataLog!AJ504,\"\")","v":""},{"$f":"IF(DataLog!$C504=\"Log value\",DataLog!AK504,\"\")","v":""},{"$f":"IF(DataLog!$C504=\"Log value\",DataLog!AL504,\"\")","v":""},{"$f":"IF(DataLog!$C504=\"Log value\",DataLog!AM504,\"\")","v":""}]
[null,null,null,null,null,null,{"$f":"IF(DataLog!$C505=\"Log value\",DataLog!D505&\"_\"&TEXT(DataLog!B505,\"åååå-mm-dd\"),\"\")","v":""},{"$f":"IF(DataLog!$C505=\"Log value\",DataLog!E505,\"\")","v":""},{"$f":"IF(DataLog!$C505=\"Log value\",DataLog!F505,\"\")","v":""},{"$f":"IF(DataLog!$C505=\"Log value\",DataLog!G505,\"\")","v":""},{"$f":"IF(DataLog!$C505=\"Log value\",DataLog!H505,\"\")","v":""},{"$f":"IF(DataLog!$C505=\"Log value\",DataLog!I505,\"\")","v":""},{"$f":"IF(DataLog!$C505=\"Log value\",DataLog!J505,\"\")","v":""},{"$f":"IF(DataLog!$C505=\"Log value\",DataLog!K505,\"\")","v":""},{"$f":"IF(DataLog!$C505=\"Log value\",DataLog!L505,\"\")","v":""},{"$f":"IF(DataLog!$C505=\"Log value\",DataLog!M505,\"\")","v":""},{"$f":"IF(DataLog!$C505=\"Log value\",DataLog!N505,\"\")","v":""},{"$f":"IF(DataLog!$C505=\"Log value\",DataLog!O505,\"\")","v":""},{"$f":"IF(DataLog!$C505=\"Log value\",DataLog!P505,\"\")","v":""},{"$f":"IF(DataLog!$C505=\"Log value\",DataLog!Q505,\"\")","v":""},{"$f":"IF(DataLog!$C505=\"Log value\",DataLog!R505,\"\")","v":""},{"$f":"IF(DataLog!$C505=\"Log value\",DataLog!S505,\"\")","v":""},{"$f":"IF(DataLog!$C505=\"Log value\",DataLog!T505,\"\")","v":""},{"$f":"IF(DataLog!$C505=\"Log value\",DataLog!U505,\"\")","v":""},{"$f":"IF(DataLog!$C505=\"Log value\",DataLog!V505,\"\")","v":""},{"$f":"IF(DataLog!$C505=\"Log value\",DataLog!W505,\"\")","v":""},{"$f":"IF(DataLog!$C505=\"Log value\",DataLog!X505,\"\")","v":""},{"$f":"IF(DataLog!$C505=\"Log value\",DataLog!Y505,\"\")","v":""},{"$f":"IF(DataLog!$C505=\"Log value\",DataLog!Z505,\"\")","v":""},{"$f":"IF(DataLog!$C505=\"Log value\",DataLog!AA505,\"\")","v":""},{"$f":"IF(DataLog!$C505=\"Log value\",DataLog!AB505,\"\")","v":""},{"$f":"IF(DataLog!$C505=\"Log value\",DataLog!AC505,\"\")","v":""},{"$f":"IF(DataLog!$C505=\"Log value\",DataLog!AD505,\"\")","v":""},{"$f":"IF(DataLog!$C505=\"Log value\",DataLog!AE505,\"\")","v":""},{"$f":"IF(DataLog!$C505=\"Log value\",DataLog!AF505,\"\")","v":""},{"$f":"IF(DataLog!$C505=\"Log value\",DataLog!AG505,\"\")","v":""},{"$f":"IF(DataLog!$C505=\"Log value\",DataLog!AH505,\"\")","v":""},{"$f":"IF(DataLog!$C505=\"Log value\",DataLog!AI505,\"\")","v":""},{"$f":"IF(DataLog!$C505=\"Log value\",DataLog!AJ505,\"\")","v":""},{"$f":"IF(DataLog!$C505=\"Log value\",DataLog!AK505,\"\")","v":""},{"$f":"IF(DataLog!$C505=\"Log value\",DataLog!AL505,\"\")","v":""},{"$f":"IF(DataLog!$C505=\"Log value\",DataLog!AM505,\"\")","v":""}]
[null,null,null,null,null,null,{"$f":"IF(DataLog!$C506=\"Log value\",DataLog!D506&\"_\"&TEXT(DataLog!B506,\"åååå-mm-dd\"),\"\")","v":""},{"$f":"IF(DataLog!$C506=\"Log value\",DataLog!E506,\"\")","v":""},{"$f":"IF(DataLog!$C506=\"Log value\",DataLog!F506,\"\")","v":""},{"$f":"IF(DataLog!$C506=\"Log value\",DataLog!G506,\"\")","v":""},{"$f":"IF(DataLog!$C506=\"Log value\",DataLog!H506,\"\")","v":""},{"$f":"IF(DataLog!$C506=\"Log value\",DataLog!I506,\"\")","v":""},{"$f":"IF(DataLog!$C506=\"Log value\",DataLog!J506,\"\")","v":""},{"$f":"IF(DataLog!$C506=\"Log value\",DataLog!K506,\"\")","v":""},{"$f":"IF(DataLog!$C506=\"Log value\",DataLog!L506,\"\")","v":""},{"$f":"IF(DataLog!$C506=\"Log value\",DataLog!M506,\"\")","v":""},{"$f":"IF(DataLog!$C506=\"Log value\",DataLog!N506,\"\")","v":""},{"$f":"IF(DataLog!$C506=\"Log value\",DataLog!O506,\"\")","v":""},{"$f":"IF(DataLog!$C506=\"Log value\",DataLog!P506,\"\")","v":""},{"$f":"IF(DataLog!$C506=\"Log value\",DataLog!Q506,\"\")","v":""},{"$f":"IF(DataLog!$C506=\"Log value\",DataLog!R506,\"\")","v":""},{"$f":"IF(DataLog!$C506=\"Log value\",DataLog!S506,\"\")","v":""},{"$f":"IF(DataLog!$C506=\"Log value\",DataLog!T506,\"\")","v":""},{"$f":"IF(DataLog!$C506=\"Log value\",DataLog!U506,\"\")","v":""},{"$f":"IF(DataLog!$C506=\"Log value\",DataLog!V506,\"\")","v":""},{"$f":"IF(DataLog!$C506=\"Log value\",DataLog!W506,\"\")","v":""},{"$f":"IF(DataLog!$C506=\"Log value\",DataLog!X506,\"\")","v":""},{"$f":"IF(DataLog!$C506=\"Log value\",DataLog!Y506,\"\")","v":""},{"$f":"IF(DataLog!$C506=\"Log value\",DataLog!Z506,\"\")","v":""},{"$f":"IF(DataLog!$C506=\"Log value\",DataLog!AA506,\"\")","v":""},{"$f":"IF(DataLog!$C506=\"Log value\",DataLog!AB506,\"\")","v":""},{"$f":"IF(DataLog!$C506=\"Log value\",DataLog!AC506,\"\")","v":""},{"$f":"IF(DataLog!$C506=\"Log value\",DataLog!AD506,\"\")","v":""},{"$f":"IF(DataLog!$C506=\"Log value\",DataLog!AE506,\"\")","v":""},{"$f":"IF(DataLog!$C506=\"Log value\",DataLog!AF506,\"\")","v":""},{"$f":"IF(DataLog!$C506=\"Log value\",DataLog!AG506,\"\")","v":""},{"$f":"IF(DataLog!$C506=\"Log value\",DataLog!AH506,\"\")","v":""},{"$f":"IF(DataLog!$C506=\"Log value\",DataLog!AI506,\"\")","v":""},{"$f":"IF(DataLog!$C506=\"Log value\",DataLog!AJ506,\"\")","v":""},{"$f":"IF(DataLog!$C506=\"Log value\",DataLog!AK506,\"\")","v":""},{"$f":"IF(DataLog!$C506=\"Log value\",DataLog!AL506,\"\")","v":""},{"$f":"IF(DataLog!$C506=\"Log value\",DataLog!AM506,\"\")","v":""}]
[null,null,null,null,null,null,{"$f":"IF(DataLog!$C507=\"Log value\",DataLog!D507&\"_\"&TEXT(DataLog!B507,\"åååå-mm-dd\"),\"\")","v":""},{"$f":"IF(DataLog!$C507=\"Log value\",DataLog!E507,\"\")","v":""},{"$f":"IF(DataLog!$C507=\"Log value\",DataLog!F507,\"\")","v":""},{"$f":"IF(DataLog!$C507=\"Log value\",DataLog!G507,\"\")","v":""},{"$f":"IF(DataLog!$C507=\"Log value\",DataLog!H507,\"\")","v":""},{"$f":"IF(DataLog!$C507=\"Log value\",DataLog!I507,\"\")","v":""},{"$f":"IF(DataLog!$C507=\"Log value\",DataLog!J507,\"\")","v":""},{"$f":"IF(DataLog!$C507=\"Log value\",DataLog!K507,\"\")","v":""},{"$f":"IF(DataLog!$C507=\"Log value\",DataLog!L507,\"\")","v":""},{"$f":"IF(DataLog!$C507=\"Log value\",DataLog!M507,\"\")","v":""},{"$f":"IF(DataLog!$C507=\"Log value\",DataLog!N507,\"\")","v":""},{"$f":"IF(DataLog!$C507=\"Log value\",DataLog!O507,\"\")","v":""},{"$f":"IF(DataLog!$C507=\"Log value\",DataLog!P507,\"\")","v":""},{"$f":"IF(DataLog!$C507=\"Log value\",DataLog!Q507,\"\")","v":""},{"$f":"IF(DataLog!$C507=\"Log value\",DataLog!R507,\"\")","v":""},{"$f":"IF(DataLog!$C507=\"Log value\",DataLog!S507,\"\")","v":""},{"$f":"IF(DataLog!$C507=\"Log value\",DataLog!T507,\"\")","v":""},{"$f":"IF(DataLog!$C507=\"Log value\",DataLog!U507,\"\")","v":""},{"$f":"IF(DataLog!$C507=\"Log value\",DataLog!V507,\"\")","v":""},{"$f":"IF(DataLog!$C507=\"Log value\",DataLog!W507,\"\")","v":""},{"$f":"IF(DataLog!$C507=\"Log value\",DataLog!X507,\"\")","v":""},{"$f":"IF(DataLog!$C507=\"Log value\",DataLog!Y507,\"\")","v":""},{"$f":"IF(DataLog!$C507=\"Log value\",DataLog!Z507,\"\")","v":""},{"$f":"IF(DataLog!$C507=\"Log value\",DataLog!AA507,\"\")","v":""},{"$f":"IF(DataLog!$C507=\"Log value\",DataLog!AB507,\"\")","v":""},{"$f":"IF(DataLog!$C507=\"Log value\",DataLog!AC507,\"\")","v":""},{"$f":"IF(DataLog!$C507=\"Log value\",DataLog!AD507,\"\")","v":""},{"$f":"IF(DataLog!$C507=\"Log value\",DataLog!AE507,\"\")","v":""},{"$f":"IF(DataLog!$C507=\"Log value\",DataLog!AF507,\"\")","v":""},{"$f":"IF(DataLog!$C507=\"Log value\",DataLog!AG507,\"\")","v":""},{"$f":"IF(DataLog!$C507=\"Log value\",DataLog!AH507,\"\")","v":""},{"$f":"IF(DataLog!$C507=\"Log value\",DataLog!AI507,\"\")","v":""},{"$f":"IF(DataLog!$C507=\"Log value\",DataLog!AJ507,\"\")","v":""},{"$f":"IF(DataLog!$C507=\"Log value\",DataLog!AK507,\"\")","v":""},{"$f":"IF(DataLog!$C507=\"Log value\",DataLog!AL507,\"\")","v":""},{"$f":"IF(DataLog!$C507=\"Log value\",DataLog!AM507,\"\")","v":""}]
[null,null,null,null,null,null,"16WIN_ON_in onshorewind incl. Grid","20 Wind Turbines, Onshore, Tech kat update 2016",2015,"NO","Wind",1.02,5.1000000000000156E-2,25600,2.8,null,null,null,1,1,null,0,3100,null,null,0,25,1.5,null,null,null,null,null,"Central","02.03-18","mka",null,null,"Tech Cat Aug 2016update ",2015,"EUR",{"$f":"IF(DataLog!$C508=\"Log value\",DataLog!AM508,\"\")","v":""}]
[null,null,null,null,null,null,"16WIN_ON_in onshorewind incl. Grid","20 Wind Turbines, Onshore, Tech kat update 2016",2020,"NO","Wind",0.94,4.5320000000000249E-2,23900,2.5,null,null,null,1,1,null,0,3150,null,null,0,27,1.5,null,null,null,null,null,"Central","02.03-18","mka",null,null,"Tech Cat Aug 2016update ",2015,"EUR",{"$f":"IF(DataLog!$C509=\"Log value\",DataLog!AM509,\"\")","v":""}]
[null,null,null,null,null,null,"16WIN_ON_in onshorewind incl. Grid","20 Wind Turbines, Onshore, Tech kat update 2016",2030,"NO","Wind",0.86,4.6494400000000269E-2,22300,2.2999999999999998,null,null,null,1,1,null,0,3200,null,null,0,30,1.5,null,null,null,null,null,"Central","02.03-18","mka",null,null,"Tech Cat Aug 2016update ",2015,"EUR",{"$f":"IF(DataLog!$C510=\"Log value\",DataLog!AM510,\"\")","v":""}]
[null,null,null,null,null,null,"16WIN_ON_in onshorewind incl. Grid","20 Wind Turbines, Onshore, Tech kat update 2016",2050,"NO","Wind",0.79,4.3974848000000288E-2,21200,2.1,null,null,null,1,1,null,0,3300,null,null,0,30,1.5,null,null,null,null,null,"Central","02.03-18","mka",null,null,"Tech Cat Aug 2016update ",2015,"EUR",{"$f":"IF(DataLog!$C511=\"Log value\",DataLog!AM511,\"\")","v":""}]
[null,null,null,null,null,null,"17WIN_OF_in  Offshore wind large DK incl. Grid","21  Wind Turbines Offshore, incl.grid, Tech Cat update Juni2017",2015,"NO","Wind",2.46,0.4,57300,4.3,null,0,null,1,1,0,0,4400,null,null,0,25,3,null,null,null,null,null,"Central","02.03-18","mka",null,null,"Tech Cat Update June 2017",2015,"EUR",{"$f":"IF(DataLog!$C512=\"Log value\",DataLog!AM512,\"\")","v":""}]
[null,null,null,null,null,null,"17WIN_OF_in  Offshore wind large DK incl. Grid","21  Wind Turbines Offshore, incl.grid, Tech Cat update Juni2017",2020,"NO","Wind",1.92,0.38,44300,3.3,null,0,null,1,1,0,0,4500,null,null,0,27,2.5,null,null,null,null,null,"Central","02.03-18","mka",null,null,"Tech Cat Update June 2017",2015,"EUR",{"$f":"IF(DataLog!$C513=\"Log value\",DataLog!AM513,\"\")","v":""}]
[null,null,null,null,null,null,"17WIN_OF_in  Offshore wind large DK incl. Grid","21  Wind Turbines Offshore, incl.grid, Tech Cat update Juni2017",2030,"NO","Wind",1.64,0.35,37800,2.7,null,0,null,1,1,0,0,4650,null,null,0,30,2.5,null,null,null,null,null,"Central","02.03-18","mka",null,null,"Tech Cat Update June 2017",2015,"EUR",{"$f":"IF(DataLog!$C514=\"Log value\",DataLog!AM514,\"\")","v":""}]
[null,null,null,null,null,null,"17WIN_OF_in  Offshore wind large DK incl. Grid","21  Wind Turbines Offshore, incl.grid, Tech Cat update Juni2017",2050,"NO","Wind",1.39,0.32,32100,2.2000000000000002,null,0,null,1,1,0,0,4900,null,null,0,30,2,null,null,null,null,null,"Central","02.03-18","mka",null,null,"Tech Cat Update June 2017",2015,"EUR",{"$f":"IF(DataLog!$C515=\"Log value\",DataLog!AM515,\"\")","v":""}]
[null,null,null,null,null,null,"17WIN_NS_in  Wind Nearshore incl grid ","21 Wind Turbine Near shore, Tech kat 2017 June update",2015,"NO","Wind",2.21,0.28000000000000003,51570,3.9,null,null,null,1,1,0,0,4400,null,null,0,25,2,null,null,null,null,null,"Central","2018-04-13","rin",null,null,"Tech Cat Update June 2017",2015,"EUR",{"$f":"IF(DataLog!$C516=\"Log value\",DataLog!AM516,\"\")","v":""}]
[null,null,null,null,null,null,"17WIN_NS_in  Wind Nearshore incl grid ","21 Wind Turbine Near shore, Tech kat 2017 June update",2020,"NO","Wind",1.73,0.26627721397199999,39870,3,null,null,null,1,1,0,0,4500,null,null,0,27,2,null,null,null,null,null,"Central","2018-04-13","rin",null,null,"Tech Cat Update June 2017",2015,"EUR",{"$f":"IF(DataLog!$C517=\"Log value\",DataLog!AM517,\"\")","v":""}]
[null,null,null,null,null,null,"17WIN_NS_in  Wind Nearshore incl grid ","21 Wind Turbine Near shore, Tech kat 2017 June update",2030,"NO","Wind",1.5,0.24696713218428751,34020,2.4,null,null,null,1,1,0,0,4650,null,null,0,30,2,null,null,null,null,null,"Central","2018-04-13","rin",null,null,"Tech Cat Update June 2017",2015,"EUR",{"$f":"IF(DataLog!$C518=\"Log value\",DataLog!AM518,\"\")","v":""}]
[null,null,null,null,null,null,"17WIN_NS_in  Wind Nearshore incl grid ","21 Wind Turbine Near shore, Tech kat 2017 June update",2050,"NO","Wind",1.2749999999999999,0.22340905605727332,28890,2,null,null,null,1,1,0,0,4900,null,null,0,30,2,null,null,null,null,null,"Central","2018-04-13","rin",null,null,"Tech Cat Update June 2017",2015,"EUR",{"$f":"IF(DataLog!$C519=\"Log value\",DataLog!AM519,\"\")","v":""}]
[null,null,null,null,null,null,"17LaPV_IN Large Photo voltage incl. Grid","22 PV Large, Tech Cat October 2017",2015,"NO","solar",1.08,null,9500,null,null,null,null,1,1,null,0,990,null,null,0,30,1.5,null,null,null,null,null,null,"02.03-18","mka",null,null,"Tech Cat October 2017",2015,"EUR",{"$f":"IF(DataLog!$C520=\"Log value\",DataLog!AM520,\"\")","v":""}]
[null,null,null,null,null,null,"17LaPV_IN Large Photo voltage incl. Grid","22 PV Large, Tech Cat October 2017",2020,"NO","solar",0.62,null,8100,null,null,null,null,1,1,null,0,1050,null,null,0,35,1.5,null,null,null,null,null,null,"02.03-18","mka",null,null,"Tech Cat October 2017",2015,"EUR",{"$f":"IF(DataLog!$C521=\"Log value\",DataLog!AM521,\"\")","v":""}]
[null,null,null,null,null,null,"17LaPV_IN Large Photo voltage incl. Grid","22 PV Large, Tech Cat October 2017",2030,"NO","solar",0.51,null,6500,null,null,null,null,1,1,null,0,1080,null,null,0,40,1.5,null,null,null,null,null,null,"02.03-18","mka",null,null,"Tech Cat October 2017",2015,"EUR",{"$f":"IF(DataLog!$C522=\"Log value\",DataLog!AM522,\"\")","v":""}]
[null,null,null,null,null,null,"17LaPV_IN Large Photo voltage incl. Grid","22 PV Large, Tech Cat October 2017",2050,"NO","solar",0.41,null,5500,null,null,null,null,1,1,null,0,1120,null,null,0,40,1.5,null,null,null,null,null,null,"02.03-18","mka",null,null,"Tech Cat October 2017",2015,"EUR",{"$f":"IF(DataLog!$C523=\"Log value\",DataLog!AM523,\"\")","v":""}]
[null,null,null,null,null,null,"17WIN_OF_ex  Offshore wind large DK ex. Grid","21  Wind Turbines Offshore, ex.grid, Tech Cat update juni2017",2015,"NO","Wind",2.46,null,57300,4.3,null,0,null,1,1,0,0,4400,null,null,0,25,3,null,null,null,null,null,"Central","02.03-18","mka",null,null,"Tech Cat Update June 2017",2015,"EUR"]
[null,null,null,null,null,null,"17WIN_OF_ex  Offshore wind large DK ex. Grid","21  Wind Turbines Offshore, ex.grid, Tech Cat update juni2017",2020,"NO","Wind",1.92,null,44300,3.3,null,0,null,1,1,0,0,4500,null,null,0,27,2.5,null,null,null,null,null,"Central","02.03-18","mka",null,null,"Tech Cat Update June 2017",2015,"EUR"]
[null,null,null,null,null,null,"17WIN_OF_ex  Offshore wind large DK ex. Grid","21  Wind Turbines Offshore, ex.grid, Tech Cat update juni2017",2030,"NO","Wind",1.64,null,37800,2.7,null,0,null,1,1,0,0,4650,null,null,0,30,2.5,null,null,null,null,null,"Central","02.03-18","mka",null,null,"Tech Cat Update June 2017",2015,"EUR"]
[null,null,null,null,null,null,"17WIN_OF_ex  Offshore wind large DK ex. Grid","21  Wind Turbines Offshore, ex.grid, Tech Cat update juni2017",2050,"NO","Wind",1.39,null,32100,2.2000000000000002,null,0,null,1,1,0,0,4900,null,null,0,30,2,null,null,null,null,null,"Central","02.03-18","mka",null,null,"Tech Cat Update June 2017",2015,"EUR"]
[null,null,null,null,null,null,"17WIN_NS_ex  Wind nearshore ex grid ","21 Wind Turbines, Near shore, ex.grid, Tech Cat update juni2017 ",2015,"NO","Wind",2.21,null,51570,3.9,null,null,null,1,1,0,0,4400,null,null,0,25,2,null,null,null,null,null,"Central","02.03-18","mka",null,null,"Tech Cat Update June 2017",2015,"EUR"]
[null,null,null,null,null,null,"17WIN_NS_ex  Wind nearshore ex grid ","21 Wind Turbines, Near shore, ex.grid, Tech Cat update juni2017 ",2020,"NO","Wind",1.73,null,39870,3,null,null,null,1,1,0,0,4500,null,null,0,27,2,null,null,null,null,null,"Central","02.03-18","mka",null,null,"Tech Cat Update June 2017",2015,"EUR"]
[null,null,null,null,null,null,"17WIN_NS_ex  Wind nearshore ex grid ","21 Wind Turbines, Near shore, ex.grid, Tech Cat update juni2017 ",2030,"NO","Wind",1.5,null,34020,2.4,null,null,null,1,1,0,0,4650,null,null,0,30,2,null,null,null,null,null,"Central","02.03-18","mka",null,null,"Tech Cat Update June 2017",2015,"EUR"]
[null,null,null,null,null,null,"17WIN_NS_ex  Wind nearshore ex grid ","21 Wind Turbines, Near shore, ex.grid, Tech Cat update juni2017 ",2050,"NO","Wind",1.2749999999999999,null,28890,2,null,null,null,1,1,0,0,4900,null,null,0,30,2,null,null,null,null,null,"Central","02.03-18","mka",null,null,"Tech Cat Update June 2017",2015,"EUR"]
[null,null,null,null,null,null,"16WIN_ON_ex onshorewind excl. Grid","20 Wind Turbines, Onshore, Tech kat update 2016",2015,"NO","Wind",1.02,null,25600,2.8,null,null,null,1,1,0,0,3100,null,null,0,25,1.5,null,null,null,null,null,"Central","02.03-18","mka",null,null,"Tech Cat Aug 2016update ",2015,"EUR"]
[null,null,null,null,null,null,"16WIN_ON_ex onshorewind excl. Grid","20 Wind Turbines, Onshore, Tech kat update 2016",2020,"NO","Wind",0.94,null,23900,2.5,null,null,null,1,1,0,0,3150,null,null,0,27,1.5,null,null,null,null,null,"Central","02.03-18","mka",null,null,"Tech Cat Aug 2016update ",2015,"EUR"]
[null,null,null,null,null,null,"16WIN_ON_ex onshorewind excl. Grid","20 Wind Turbines, Onshore, Tech kat update 2016",2030,"NO","Wind",0.86,null,22300,2.2999999999999998,null,null,null,1,1,0,0,3200,null,null,0,30,1.5,null,null,null,null,null,"Central","02.03-18","mka",null,null,"Tech Cat Aug 2016update ",2015,"EUR"]
[null,null,null,null,null,null,"16WIN_ON_ex onshorewind excl. Grid","20 Wind Turbines, Onshore, Tech kat update 2016",2050,"NO","Wind",0.79,null,21200,2.1,null,null,null,1,1,0,0,3300,null,null,0,30,1.5,null,null,null,null,null,"Central","02.03-18","mka",null,null,"Tech Cat Aug 2016update ",2015,"EUR"]
[null,null,null,null,null,null,"15SmPV Small Photo Voltage residential systems","22 PV small, Tech Cat 2015",2015,"NO","solar",1.47,null,14700,null,null,null,null,1,1,0,0,961.2395735250002,null,null,0,30,0.2,null,null,null,null,null,"Decentral","2018-02-01","mka",null,null,"Tec Cat 2015",2011,"EUR"]
[null,null,null,null,null,null,"15SmPV Small Photo Voltage residential systems","22 PV small, Tech Cat 2015",2020,"NO","solar",1.2495000000000001,null,12500,null,null,null,null,1,1,0,0,1021.0269069000002,null,null,0,35,0.2,null,null,null,null,null,"Decentral","2018-02-01","mka",null,null,"Tec Cat 2015",2011,"EUR"]
[null,null,null,null,null,null,"15SmPV Small Photo Voltage residential systems","22 PV small, Tech Cat 2015",2030,"NO","solar",0.99960000000000004,null,10000,null,null,null,null,1,1,0,0,1054.9421363250001,null,null,0,40,0.2,null,null,null,null,null,"Decentral","2018-02-01","mka",null,null,"Tec Cat 2015",2011,"EUR"]
[null,null,null,null,null,null,"15SmPV Small Photo Voltage residential systems","22 PV small, Tech Cat 2015",2050,"NO","solar",0.84965999999999997,null,8500,null,null,null,null,1,1,0,0,1101.2020380900001,null,null,0,40,0.2,null,null,null,null,null,"Decentral","2018-02-01","mka",null,null,"Tec Cat 2015",2011,"EUR"]
[null,null,null,null,null,null,"15MePV Medium Photo Voltage commercial systems","22 PV Medium, Tech Cat 2015",2015,"NO","solar",1.254,null,12540,null,null,null,null,1,1,0,0,1024.1119531500001,null,null,0,30,0.3,null,null,null,null,null,"Decentral","2018-02-01","mka",null,null,"Tec Cat 2015",2011,"EUR"]
[null,null,null,null,null,null,"15MePV Medium Photo Voltage commercial systems","22 PV Medium, Tech Cat 2015",2020,"NO","solar",1.0658999999999998,null,10660,null,null,null,null,1,1,0,0,1106.1124824750002,null,null,0,35,0.3,null,null,null,null,null,"Decentral","2018-02-01","mka",null,null,"Tec Cat 2015",2011,"EUR"]
[null,null,null,null,null,null,"15MePV Medium Photo Voltage commercial systems","22 PV Medium, Tech Cat 2015",2030,"NO","solar",0.85271999999999992,null,8530,null,null,null,null,1,1,0,0,1142.0167253550001,null,null,0,40,0.3,null,null,null,null,null,"Decentral","2018-02-01","mka",null,null,"Tec Cat 2015",2011,"EUR"]
[null,null,null,null,null,null,"15MePV Medium Photo Voltage commercial systems","22 PV Medium, Tech Cat 2015",2050,"NO","solar",0.7248119999999999,null,7250,null,null,null,null,1,1,0,0,1178.4496977000001,null,null,0,40,0.3,null,null,null,null,null,"Decentral","2018-02-01","mka",null,null,"Tec Cat 2015",2011,"EUR"]
[null,null,null,null,null,null,{"$f":"IF(DataLog!$C544=\"Log value\",DataLog!D544&\"_\"&TEXT(DataLog!B544,\"åååå-mm-dd\"),\"\")","v":""},{"$f":"IF(DataLog!$C544=\"Log value\",DataLog!E544,\"\")","v":""},{"$f":"IF(DataLog!$C544=\"Log value\",DataLog!F544,\"\")","v":""},{"$f":"IF(DataLog!$C544=\"Log value\",DataLog!G544,\"\")","v":""},{"$f":"IF(DataLog!$C544=\"Log value\",DataLog!H544,\"\")","v":""},{"$f":"IF(DataLog!$C544=\"Log value\",DataLog!I544,\"\")","v":""},{"$f":"IF(DataLog!$C544=\"Log value\",DataLog!J544,\"\")","v":""},{"$f":"IF(DataLog!$C544=\"Log value\",DataLog!K544,\"\")","v":""},{"$f":"IF(DataLog!$C544=\"Log value\",DataLog!L544,\"\")","v":""},{"$f":"IF(DataLog!$C544=\"Log value\",DataLog!M544,\"\")","v":""},{"$f":"IF(DataLog!$C544=\"Log value\",DataLog!N544,\"\")","v":""},{"$f":"IF(DataLog!$C544=\"Log value\",DataLog!O544,\"\")","v":""},{"$f":"IF(DataLog!$C544=\"Log value\",DataLog!P544,\"\")","v":""},{"$f":"IF(DataLog!$C544=\"Log value\",DataLog!Q544,\"\")","v":""},{"$f":"IF(DataLog!$C544=\"Log value\",DataLog!R544,\"\")","v":""},{"$f":"IF(DataLog!$C544=\"Log value\",DataLog!S544,\"\")","v":""},{"$f":"IF(DataLog!$C544=\"Log value\",DataLog!T544,\"\")","v":""},{"$f":"IF(DataLog!$C544=\"Log value\",DataLog!U544,\"\")","v":""},{"$f":"IF(DataLog!$C544=\"Log value\",DataLog!V544,\"\")","v":""},{"$f":"IF(DataLog!$C544=\"Log value\",DataLog!W544,\"\")","v":""},{"$f":"IF(DataLog!$C544=\"Log value\",DataLog!X544,\"\")","v":""},{"$f":"IF(DataLog!$C544=\"Log value\",DataLog!Y544,\"\")","v":""},{"$f":"IF(DataLog!$C544=\"Log value\",DataLog!Z544,\"\")","v":""},{"$f":"IF(DataLog!$C544=\"Log value\",DataLog!AA544,\"\")","v":""},{"$f":"IF(DataLog!$C544=\"Log value\",DataLog!AB544,\"\")","v":""},{"$f":"IF(DataLog!$C544=\"Log value\",DataLog!AC544,\"\")","v":""},{"$f":"IF(DataLog!$C544=\"Log value\",DataLog!AD544,\"\")","v":""},{"$f":"IF(DataLog!$C544=\"Log value\",DataLog!AE544,\"\")","v":""},{"$f":"IF(DataLog!$C544=\"Log value\",DataLog!AF544,\"\")","v":""},{"$f":"IF(DataLog!$C544=\"Log value\",DataLog!AG544,\"\")","v":""},{"$f":"IF(DataLog!$C544=\"Log value\",DataLog!AH544,\"\")","v":""},{"$f":"IF(DataLog!$C544=\"Log value\",DataLog!AI544,\"\")","v":""},{"$f":"IF(DataLog!$C544=\"Log value\",DataLog!AJ544,\"\")","v":""},{"$f":"IF(DataLog!$C544=\"Log value\",DataLog!AK544,\"\")","v":""},{"$f":"IF(DataLog!$C544=\"Log value\",DataLog!AL544,\"\")","v":""},{"$f":"IF(DataLog!$C544=\"Log value\",DataLog!AM544,\"\")","v":""}]
[null,null,null,null,null,null,{"$f":"IF(DataLog!$C545=\"Log value\",DataLog!D545&\"_\"&TEXT(DataLog!B545,\"åååå-mm-dd\"),\"\")","v":""},{"$f":"IF(DataLog!$C545=\"Log value\",DataLog!E545,\"\")","v":""},{"$f":"IF(DataLog!$C545=\"Log value\",DataLog!F545,\"\")","v":""},{"$f":"IF(DataLog!$C545=\"Log value\",DataLog!G545,\"\")","v":""},{"$f":"IF(DataLog!$C545=\"Log value\",DataLog!H545,\"\")","v":""},{"$f":"IF(DataLog!$C545=\"Log value\",DataLog!I545,\"\")","v":""},{"$f":"IF(DataLog!$C545=\"Log value\",DataLog!J545,\"\")","v":""},{"$f":"IF(DataLog!$C545=\"Log value\",DataLog!K545,\"\")","v":""},{"$f":"IF(DataLog!$C545=\"Log value\",DataLog!L545,\"\")","v":""},{"$f":"IF(DataLog!$C545=\"Log value\",DataLog!M545,\"\")","v":""},{"$f":"IF(DataLog!$C545=\"Log value\",DataLog!N545,\"\")","v":""},{"$f":"IF(DataLog!$C545=\"Log value\",DataLog!O545,\"\")","v":""},{"$f":"IF(DataLog!$C545=\"Log value\",DataLog!P545,\"\")","v":""},{"$f":"IF(DataLog!$C545=\"Log value\",DataLog!Q545,\"\")","v":""},{"$f":"IF(DataLog!$C545=\"Log value\",DataLog!R545,\"\")","v":""},{"$f":"IF(DataLog!$C545=\"Log value\",DataLog!S545,\"\")","v":""},{"$f":"IF(DataLog!$C545=\"Log value\",DataLog!T545,\"\")","v":""},{"$f":"IF(DataLog!$C545=\"Log value\",DataLog!U545,\"\")","v":""},{"$f":"IF(DataLog!$C545=\"Log value\",DataLog!V545,\"\")","v":""},{"$f":"IF(DataLog!$C545=\"Log value\",DataLog!W545,\"\")","v":""},{"$f":"IF(DataLog!$C545=\"Log value\",DataLog!X545,\"\")","v":""},{"$f":"IF(DataLog!$C545=\"Log value\",DataLog!Y545,\"\")","v":""},{"$f":"IF(DataLog!$C545=\"Log value\",DataLog!Z545,\"\")","v":""},{"$f":"IF(DataLog!$C545=\"Log value\",DataLog!AA545,\"\")","v":""},{"$f":"IF(DataLog!$C545=\"Log value\",DataLog!AB545,\"\")","v":""},{"$f":"IF(DataLog!$C545=\"Log value\",DataLog!AC545,\"\")","v":""},{"$f":"IF(DataLog!$C545=\"Log value\",DataLog!AD545,\"\")","v":""},{"$f":"IF(DataLog!$C545=\"Log value\",DataLog!AE545,\"\")","v":""},{"$f":"IF(DataLog!$C545=\"Log value\",DataLog!AF545,\"\")","v":""},{"$f":"IF(DataLog!$C545=\"Log value\",DataLog!AG545,\"\")","v":""},{"$f":"IF(DataLog!$C545=\"Log value\",DataLog!AH545,\"\")","v":""},{"$f":"IF(DataLog!$C545=\"Log value\",DataLog!AI545,\"\")","v":""},{"$f":"IF(DataLog!$C545=\"Log value\",DataLog!AJ545,\"\")","v":""},{"$f":"IF(DataLog!$C545=\"Log value\",DataLog!AK545,\"\")","v":""},{"$f":"IF(DataLog!$C545=\"Log value\",DataLog!AL545,\"\")","v":""},{"$f":"IF(DataLog!$C545=\"Log value\",DataLog!AM545,\"\")","v":""}]
[null,null,null,null,null,null,{"$f":"IF(DataLog!$C546=\"Log value\",DataLog!D546&\"_\"&TEXT(DataLog!B546,\"åååå-mm-dd\"),\"\")","v":""},{"$f":"IF(DataLog!$C546=\"Log value\",DataLog!E546,\"\")","v":""},{"$f":"IF(DataLog!$C546=\"Log value\",DataLog!F546,\"\")","v":""},{"$f":"IF(DataLog!$C546=\"Log value\",DataLog!G546,\"\")","v":""},{"$f":"IF(DataLog!$C546=\"Log value\",DataLog!H546,\"\")","v":""},{"$f":"IF(DataLog!$C546=\"Log value\",DataLog!I546,\"\")","v":""},{"$f":"IF(DataLog!$C546=\"Log value\",DataLog!J546,\"\")","v":""},{"$f":"IF(DataLog!$C546=\"Log value\",DataLog!K546,\"\")","v":""},{"$f":"IF(DataLog!$C546=\"Log value\",DataLog!L546,\"\")","v":""},{"$f":"IF(DataLog!$C546=\"Log value\",DataLog!M546,\"\")","v":""},{"$f":"IF(DataLog!$C546=\"Log value\",DataLog!N546,\"\")","v":""},{"$f":"IF(DataLog!$C546=\"Log value\",DataLog!O546,\"\")","v":""},{"$f":"IF(DataLog!$C546=\"Log value\",DataLog!P546,\"\")","v":""},{"$f":"IF(DataLog!$C546=\"Log value\",DataLog!Q546,\"\")","v":""},{"$f":"IF(DataLog!$C546=\"Log value\",DataLog!R546,\"\")","v":""},{"$f":"IF(DataLog!$C546=\"Log value\",DataLog!S546,\"\")","v":""},{"$f":"IF(DataLog!$C546=\"Log value\",DataLog!T546,\"\")","v":""},{"$f":"IF(DataLog!$C546=\"Log value\",DataLog!U546,\"\")","v":""},{"$f":"IF(DataLog!$C546=\"Log value\",DataLog!V546,\"\")","v":""},{"$f":"IF(DataLog!$C546=\"Log value\",DataLog!W546,\"\")","v":""},{"$f":"IF(DataLog!$C546=\"Log value\",DataLog!X546,\"\")","v":""},{"$f":"IF(DataLog!$C546=\"Log value\",DataLog!Y546,\"\")","v":""},{"$f":"IF(DataLog!$C546=\"Log value\",DataLog!Z546,\"\")","v":""},{"$f":"IF(DataLog!$C546=\"Log value\",DataLog!AA546,\"\")","v":""},{"$f":"IF(DataLog!$C546=\"Log value\",DataLog!AB546,\"\")","v":""},{"$f":"IF(DataLog!$C546=\"Log value\",DataLog!AC546,\"\")","v":""},{"$f":"IF(DataLog!$C546=\"Log value\",DataLog!AD546,\"\")","v":""},{"$f":"IF(DataLog!$C546=\"Log value\",DataLog!AE546,\"\")","v":""},{"$f":"IF(DataLog!$C546=\"Log value\",DataLog!AF546,\"\")","v":""},{"$f":"IF(DataLog!$C546=\"Log value\",DataLog!AG546,\"\")","v":""},{"$f":"IF(DataLog!$C546=\"Log value\",DataLog!AH546,\"\")","v":""},{"$f":"IF(DataLog!$C546=\"Log value\",DataLog!AI546,\"\")","v":""},{"$f":"IF(DataLog!$C546=\"Log value\",DataLog!AJ546,\"\")","v":""},{"$f":"IF(DataLog!$C546=\"Log value\",DataLog!AK546,\"\")","v":""},{"$f":"IF(DataLog!$C546=\"Log value\",DataLog!AL546,\"\")","v":""},{"$f":"IF(DataLog!$C546=\"Log value\",DataLog!AM546,\"\")","v":""}]
[null,null,null,null,null,null,{"$f":"IF(DataLog!$C547=\"Log value\",DataLog!D547&\"_\"&TEXT(DataLog!B547,\"åååå-mm-dd\"),\"\")","v":""},{"$f":"IF(DataLog!$C547=\"Log value\",DataLog!E547,\"\")","v":""},{"$f":"IF(DataLog!$C547=\"Log value\",DataLog!F547,\"\")","v":""},{"$f":"IF(DataLog!$C547=\"Log value\",DataLog!G547,\"\")","v":""},{"$f":"IF(DataLog!$C547=\"Log value\",DataLog!H547,\"\")","v":""},{"$f":"IF(DataLog!$C547=\"Log value\",DataLog!I547,\"\")","v":""},{"$f":"IF(DataLog!$C547=\"Log value\",DataLog!J547,\"\")","v":""},{"$f":"IF(DataLog!$C547=\"Log value\",DataLog!K547,\"\")","v":""},{"$f":"IF(DataLog!$C547=\"Log value\",DataLog!L547,\"\")","v":""},{"$f":"IF(DataLog!$C547=\"Log value\",DataLog!M547,\"\")","v":""},{"$f":"IF(DataLog!$C547=\"Log value\",DataLog!N547,\"\")","v":""},{"$f":"IF(DataLog!$C547=\"Log value\",DataLog!O547,\"\")","v":""},{"$f":"IF(DataLog!$C547=\"Log value\",DataLog!P547,\"\")","v":""},{"$f":"IF(DataLog!$C547=\"Log value\",DataLog!Q547,\"\")","v":""},{"$f":"IF(DataLog!$C547=\"Log value\",DataLog!R547,\"\")","v":""},{"$f":"IF(DataLog!$C547=\"Log value\",DataLog!S547,\"\")","v":""},{"$f":"IF(DataLog!$C547=\"Log value\",DataLog!T547,\"\")","v":""},{"$f":"IF(DataLog!$C547=\"Log value\",DataLog!U547,\"\")","v":""},{"$f":"IF(DataLog!$C547=\"Log value\",DataLog!V547,\"\")","v":""},{"$f":"IF(DataLog!$C547=\"Log value\",DataLog!W547,\"\")","v":""},{"$f":"IF(DataLog!$C547=\"Log value\",DataLog!X547,\"\")","v":""},{"$f":"IF(DataLog!$C547=\"Log value\",DataLog!Y547,\"\")","v":""},{"$f":"IF(DataLog!$C547=\"Log value\",DataLog!Z547,\"\")","v":""},{"$f":"IF(DataLog!$C547=\"Log value\",DataLog!AA547,\"\")","v":""},{"$f":"IF(DataLog!$C547=\"Log value\",DataLog!AB547,\"\")","v":""},{"$f":"IF(DataLog!$C547=\"Log value\",DataLog!AC547,\"\")","v":""},{"$f":"IF(DataLog!$C547=\"Log value\",DataLog!AD547,\"\")","v":""},{"$f":"IF(DataLog!$C547=\"Log value\",DataLog!AE547,\"\")","v":""},{"$f":"IF(DataLog!$C547=\"Log value\",DataLog!AF547,\"\")","v":""},{"$f":"IF(DataLog!$C547=\"Log value\",DataLog!AG547,\"\")","v":""},{"$f":"IF(DataLog!$C547=\"Log value\",DataLog!AH547,\"\")","v":""},{"$f":"IF(DataLog!$C547=\"Log value\",DataLog!AI547,\"\")","v":""},{"$f":"IF(DataLog!$C547=\"Log value\",DataLog!AJ547,\"\")","v":""},{"$f":"IF(DataLog!$C547=\"Log value\",DataLog!AK547,\"\")","v":""},{"$f":"IF(DataLog!$C547=\"Log value\",DataLog!AL547,\"\")","v":""},{"$f":"IF(DataLog!$C547=\"Log value\",DataLog!AM547,\"\")","v":""}]
[null,null,null,null,null,null,{"$f":"IF(DataLog!$C548=\"Log value\",DataLog!D548&\"_\"&TEXT(DataLog!B548,\"åååå-mm-dd\"),\"\")","v":""},{"$f":"IF(DataLog!$C548=\"Log value\",DataLog!E548,\"\")","v":""},{"$f":"IF(DataLog!$C548=\"Log value\",DataLog!F548,\"\")","v":""},{"$f":"IF(DataLog!$C548=\"Log value\",DataLog!G548,\"\")","v":""},{"$f":"IF(DataLog!$C548=\"Log value\",DataLog!H548,\"\")","v":""},{"$f":"IF(DataLog!$C548=\"Log value\",DataLog!I548,\"\")","v":""},{"$f":"IF(DataLog!$C548=\"Log value\",DataLog!J548,\"\")","v":""},{"$f":"IF(DataLog!$C548=\"Log value\",DataLog!K548,\"\")","v":""},{"$f":"IF(DataLog!$C548=\"Log value\",DataLog!L548,\"\")","v":""},{"$f":"IF(DataLog!$C548=\"Log value\",DataLog!M548,\"\")","v":""},{"$f":"IF(DataLog!$C548=\"Log value\",DataLog!N548,\"\")","v":""},{"$f":"IF(DataLog!$C548=\"Log value\",DataLog!O548,\"\")","v":""},{"$f":"IF(DataLog!$C548=\"Log value\",DataLog!P548,\"\")","v":""},{"$f":"IF(DataLog!$C548=\"Log value\",DataLog!Q548,\"\")","v":""},{"$f":"IF(DataLog!$C548=\"Log value\",DataLog!R548,\"\")","v":""},{"$f":"IF(DataLog!$C548=\"Log value\",DataLog!S548,\"\")","v":""},{"$f":"IF(DataLog!$C548=\"Log value\",DataLog!T548,\"\")","v":""},{"$f":"IF(DataLog!$C548=\"Log value\",DataLog!U548,\"\")","v":""},{"$f":"IF(DataLog!$C548=\"Log value\",DataLog!V548,\"\")","v":""},{"$f":"IF(DataLog!$C548=\"Log value\",DataLog!W548,\"\")","v":""},{"$f":"IF(DataLog!$C548=\"Log value\",DataLog!X548,\"\")","v":""},{"$f":"IF(DataLog!$C548=\"Log value\",DataLog!Y548,\"\")","v":""},{"$f":"IF(DataLog!$C548=\"Log value\",DataLog!Z548,\"\")","v":""},{"$f":"IF(DataLog!$C548=\"Log value\",DataLog!AA548,\"\")","v":""},{"$f":"IF(DataLog!$C548=\"Log value\",DataLog!AB548,\"\")","v":""},{"$f":"IF(DataLog!$C548=\"Log value\",DataLog!AC548,\"\")","v":""},{"$f":"IF(DataLog!$C548=\"Log value\",DataLog!AD548,\"\")","v":""},{"$f":"IF(DataLog!$C548=\"Log value\",DataLog!AE548,\"\")","v":""},{"$f":"IF(DataLog!$C548=\"Log value\",DataLog!AF548,\"\")","v":""},{"$f":"IF(DataLog!$C548=\"Log value\",DataLog!AG548,\"\")","v":""},{"$f":"IF(DataLog!$C548=\"Log value\",DataLog!AH548,\"\")","v":""},{"$f":"IF(DataLog!$C548=\"Log value\",DataLog!AI548,\"\")","v":""},{"$f":"IF(DataLog!$C548=\"Log value\",DataLog!AJ548,\"\")","v":""},{"$f":"IF(DataLog!$C548=\"Log value\",DataLog!AK548,\"\")","v":""},{"$f":"IF(DataLog!$C548=\"Log value\",DataLog!AL548,\"\")","v":""},{"$f":"IF(DataLog!$C548=\"Log value\",DataLog!AM548,\"\")","v":""}]
[null,null,null,null,null,null,{"$f":"IF(DataLog!$C549=\"Log value\",DataLog!D549&\"_\"&TEXT(DataLog!B549,\"åååå-mm-dd\"),\"\")","v":""},{"$f":"IF(DataLog!$C549=\"Log value\",DataLog!E549,\"\")","v":""},{"$f":"IF(DataLog!$C549=\"Log value\",DataLog!F549,\"\")","v":""},{"$f":"IF(DataLog!$C549=\"Log value\",DataLog!G549,\"\")","v":""},{"$f":"IF(DataLog!$C549=\"Log value\",DataLog!H549,\"\")","v":""},{"$f":"IF(DataLog!$C549=\"Log value\",DataLog!I549,\"\")","v":""},{"$f":"IF(DataLog!$C549=\"Log value\",DataLog!J549,\"\")","v":""},{"$f":"IF(DataLog!$C549=\"Log value\",DataLog!K549,\"\")","v":""},{"$f":"IF(DataLog!$C549=\"Log value\",DataLog!L549,\"\")","v":""},{"$f":"IF(DataLog!$C549=\"Log value\",DataLog!M549,\"\")","v":""},{"$f":"IF(DataLog!$C549=\"Log value\",DataLog!N549,\"\")","v":""},{"$f":"IF(DataLog!$C549=\"Log value\",DataLog!O549,\"\")","v":""},{"$f":"IF(DataLog!$C549=\"Log value\",DataLog!P549,\"\")","v":""},{"$f":"IF(DataLog!$C549=\"Log value\",DataLog!Q549,\"\")","v":""},{"$f":"IF(DataLog!$C549=\"Log value\",DataLog!R549,\"\")","v":""},{"$f":"IF(DataLog!$C549=\"Log value\",DataLog!S549,\"\")","v":""},{"$f":"IF(DataLog!$C549=\"Log value\",DataLog!T549,\"\")","v":""},{"$f":"IF(DataLog!$C549=\"Log value\",DataLog!U549,\"\")","v":""},{"$f":"IF(DataLog!$C549=\"Log value\",DataLog!V549,\"\")","v":""},{"$f":"IF(DataLog!$C549=\"Log value\",DataLog!W549,\"\")","v":""},{"$f":"IF(DataLog!$C549=\"Log value\",DataLog!X549,\"\")","v":""},{"$f":"IF(DataLog!$C549=\"Log value\",DataLog!Y549,\"\")","v":""},{"$f":"IF(DataLog!$C549=\"Log value\",DataLog!Z549,\"\")","v":""},{"$f":"IF(DataLog!$C549=\"Log value\",DataLog!AA549,\"\")","v":""},{"$f":"IF(DataLog!$C549=\"Log value\",DataLog!AB549,\"\")","v":""},{"$f":"IF(DataLog!$C549=\"Log value\",DataLog!AC549,\"\")","v":""},{"$f":"IF(DataLog!$C549=\"Log value\",DataLog!AD549,\"\")","v":""},{"$f":"IF(DataLog!$C549=\"Log value\",DataLog!AE549,\"\")","v":""},{"$f":"IF(DataLog!$C549=\"Log value\",DataLog!AF549,\"\")","v":""},{"$f":"IF(DataLog!$C549=\"Log value\",DataLog!AG549,\"\")","v":""},{"$f":"IF(DataLog!$C549=\"Log value\",DataLog!AH549,\"\")","v":""},{"$f":"IF(DataLog!$C549=\"Log value\",DataLog!AI549,\"\")","v":""},{"$f":"IF(DataLog!$C549=\"Log value\",DataLog!AJ549,\"\")","v":""},{"$f":"IF(DataLog!$C549=\"Log value\",DataLog!AK549,\"\")","v":""},{"$f":"IF(DataLog!$C549=\"Log value\",DataLog!AL549,\"\")","v":""},{"$f":"IF(DataLog!$C549=\"Log value\",DataLog!AM549,\"\")","v":""}]
[null,null,null,null,null,null,{"$f":"IF(DataLog!$C550=\"Log value\",DataLog!D550&\"_\"&TEXT(DataLog!B550,\"åååå-mm-dd\"),\"\")","v":""},{"$f":"IF(DataLog!$C550=\"Log value\",DataLog!E550,\"\")","v":""},{"$f":"IF(DataLog!$C550=\"Log value\",DataLog!F550,\"\")","v":""},{"$f":"IF(DataLog!$C550=\"Log value\",DataLog!G550,\"\")","v":""},{"$f":"IF(DataLog!$C550=\"Log value\",DataLog!H550,\"\")","v":""},{"$f":"IF(DataLog!$C550=\"Log value\",DataLog!I550,\"\")","v":""},{"$f":"IF(DataLog!$C550=\"Log value\",DataLog!J550,\"\")","v":""},{"$f":"IF(DataLog!$C550=\"Log value\",DataLog!K550,\"\")","v":""},{"$f":"IF(DataLog!$C550=\"Log value\",DataLog!L550,\"\")","v":""},{"$f":"IF(DataLog!$C550=\"Log value\",DataLog!M550,\"\")","v":""},{"$f":"IF(DataLog!$C550=\"Log value\",DataLog!N550,\"\")","v":""},{"$f":"IF(DataLog!$C550=\"Log value\",DataLog!O550,\"\")","v":""},{"$f":"IF(DataLog!$C550=\"Log value\",DataLog!P550,\"\")","v":""},{"$f":"IF(DataLog!$C550=\"Log value\",DataLog!Q550,\"\")","v":""},{"$f":"IF(DataLog!$C550=\"Log value\",DataLog!R550,\"\")","v":""},{"$f":"IF(DataLog!$C550=\"Log value\",DataLog!S550,\"\")","v":""},{"$f":"IF(DataLog!$C550=\"Log value\",DataLog!T550,\"\")","v":""},{"$f":"IF(DataLog!$C550=\"Log value\",DataLog!U550,\"\")","v":""},{"$f":"IF(DataLog!$C550=\"Log value\",DataLog!V550,\"\")","v":""},{"$f":"IF(DataLog!$C550=\"Log value\",DataLog!W550,\"\")","v":""},{"$f":"IF(DataLog!$C550=\"Log value\",DataLog!X550,\"\")","v":""},{"$f":"IF(DataLog!$C550=\"Log value\",DataLog!Y550,\"\")","v":""},{"$f":"IF(DataLog!$C550=\"Log value\",DataLog!Z550,\"\")","v":""},{"$f":"IF(DataLog!$C550=\"Log value\",DataLog!AA550,\"\")","v":""},{"$f":"IF(DataLog!$C550=\"Log value\",DataLog!AB550,\"\")","v":""},{"$f":"IF(DataLog!$C550=\"Log value\",DataLog!AC550,\"\")","v":""},{"$f":"IF(DataLog!$C550=\"Log value\",DataLog!AD550,\"\")","v":""},{"$f":"IF(DataLog!$C550=\"Log value\",DataLog!AE550,\"\")","v":""},{"$f":"IF(DataLog!$C550=\"Log value\",DataLog!AF550,\"\")","v":""},{"$f":"IF(DataLog!$C550=\"Log value\",DataLog!AG550,\"\")","v":""},{"$f":"IF(DataLog!$C550=\"Log value\",DataLog!AH550,\"\")","v":""},{"$f":"IF(DataLog!$C550=\"Log value\",DataLog!AI550,\"\")","v":""},{"$f":"IF(DataLog!$C550=\"Log value\",DataLog!AJ550,\"\")","v":""},{"$f":"IF(DataLog!$C550=\"Log value\",DataLog!AK550,\"\")","v":""},{"$f":"IF(DataLog!$C550=\"Log value\",DataLog!AL550,\"\")","v":""},{"$f":"IF(DataLog!$C550=\"Log value\",DataLog!AM550,\"\")","v":""}]
[null,null,null,null,null,null,{"$f":"IF(DataLog!$C551=\"Log value\",DataLog!D551&\"_\"&TEXT(DataLog!B551,\"åååå-mm-dd\"),\"\")","v":""},{"$f":"IF(DataLog!$C551=\"Log value\",DataLog!E551,\"\")","v":""},{"$f":"IF(DataLog!$C551=\"Log value\",DataLog!F551,\"\")","v":""},{"$f":"IF(DataLog!$C551=\"Log value\",DataLog!G551,\"\")","v":""},{"$f":"IF(DataLog!$C551=\"Log value\",DataLog!H551,\"\")","v":""},{"$f":"IF(DataLog!$C551=\"Log value\",DataLog!I551,\"\")","v":""},{"$f":"IF(DataLog!$C551=\"Log value\",DataLog!J551,\"\")","v":""},{"$f":"IF(DataLog!$C551=\"Log value\",DataLog!K551,\"\")","v":""},{"$f":"IF(DataLog!$C551=\"Log value\",DataLog!L551,\"\")","v":""},{"$f":"IF(DataLog!$C551=\"Log value\",DataLog!M551,\"\")","v":""},{"$f":"IF(DataLog!$C551=\"Log value\",DataLog!N551,\"\")","v":""},{"$f":"IF(DataLog!$C551=\"Log value\",DataLog!O551,\"\")","v":""},{"$f":"IF(DataLog!$C551=\"Log value\",DataLog!P551,\"\")","v":""},{"$f":"IF(DataLog!$C551=\"Log value\",DataLog!Q551,\"\")","v":""},{"$f":"IF(DataLog!$C551=\"Log value\",DataLog!R551,\"\")","v":""},{"$f":"IF(DataLog!$C551=\"Log value\",DataLog!S551,\"\")","v":""},{"$f":"IF(DataLog!$C551=\"Log value\",DataLog!T551,\"\")","v":""},{"$f":"IF(DataLog!$C551=\"Log value\",DataLog!U551,\"\")","v":""},{"$f":"IF(DataLog!$C551=\"Log value\",DataLog!V551,\"\")","v":""},{"$f":"IF(DataLog!$C551=\"Log value\",DataLog!W551,\"\")","v":""},{"$f":"IF(DataLog!$C551=\"Log value\",DataLog!X551,\"\")","v":""},{"$f":"IF(DataLog!$C551=\"Log value\",DataLog!Y551,\"\")","v":""},{"$f":"IF(DataLog!$C551=\"Log value\",DataLog!Z551,\"\")","v":""},{"$f":"IF(DataLog!$C551=\"Log value\",DataLog!AA551,\"\")","v":""},{"$f":"IF(DataLog!$C551=\"Log value\",DataLog!AB551,\"\")","v":""},{"$f":"IF(DataLog!$C551=\"Log value\",DataLog!AC551,\"\")","v":""},{"$f":"IF(DataLog!$C551=\"Log value\",DataLog!AD551,\"\")","v":""},{"$f":"IF(DataLog!$C551=\"Log value\",DataLog!AE551,\"\")","v":""},{"$f":"IF(DataLog!$C551=\"Log value\",DataLog!AF551,\"\")","v":""},{"$f":"IF(DataLog!$C551=\"Log value\",DataLog!AG551,\"\")","v":""},{"$f":"IF(DataLog!$C551=\"Log value\",DataLog!AH551,\"\")","v":""},{"$f":"IF(DataLog!$C551=\"Log value\",DataLog!AI551,\"\")","v":""},{"$f":"IF(DataLog!$C551=\"Log value\",DataLog!AJ551,\"\")","v":""},{"$f":"IF(DataLog!$C551=\"Log value\",DataLog!AK551,\"\")","v":""},{"$f":"IF(DataLog!$C551=\"Log value\",DataLog!AL551,\"\")","v":""},{"$f":"IF(DataLog!$C551=\"Log value\",DataLog!AM551,\"\")","v":""}]
[null,null,null,null,null,null,{"$f":"IF(DataLog!$C552=\"Log value\",DataLog!D552&\"_\"&TEXT(DataLog!B552,\"åååå-mm-dd\"),\"\")","v":""},{"$f":"IF(DataLog!$C552=\"Log value\",DataLog!E552,\"\")","v":""},{"$f":"IF(DataLog!$C552=\"Log value\",DataLog!F552,\"\")","v":""},{"$f":"IF(DataLog!$C552=\"Log value\",DataLog!G552,\"\")","v":""},{"$f":"IF(DataLog!$C552=\"Log value\",DataLog!H552,\"\")","v":""},{"$f":"IF(DataLog!$C552=\"Log value\",DataLog!I552,\"\")","v":""},{"$f":"IF(DataLog!$C552=\"Log value\",DataLog!J552,\"\")","v":""},{"$f":"IF(DataLog!$C552=\"Log value\",DataLog!K552,\"\")","v":""},{"$f":"IF(DataLog!$C552=\"Log value\",DataLog!L552,\"\")","v":""},{"$f":"IF(DataLog!$C552=\"Log value\",DataLog!M552,\"\")","v":""},{"$f":"IF(DataLog!$C552=\"Log value\",DataLog!N552,\"\")","v":""},{"$f":"IF(DataLog!$C552=\"Log value\",DataLog!O552,\"\")","v":""},{"$f":"IF(DataLog!$C552=\"Log value\",DataLog!P552,\"\")","v":""},{"$f":"IF(DataLog!$C552=\"Log value\",DataLog!Q552,\"\")","v":""},{"$f":"IF(DataLog!$C552=\"Log value\",DataLog!R552,\"\")","v":""},{"$f":"IF(DataLog!$C552=\"Log value\",DataLog!S552,\"\")","v":""},{"$f":"IF(DataLog!$C552=\"Log value\",DataLog!T552,\"\")","v":""},{"$f":"IF(DataLog!$C552=\"Log value\",DataLog!U552,\"\")","v":""},{"$f":"IF(DataLog!$C552=\"Log value\",DataLog!V552,\"\")","v":""},{"$f":"IF(DataLog!$C552=\"Log value\",DataLog!W552,\"\")","v":""},{"$f":"IF(DataLog!$C552=\"Log value\",DataLog!X552,\"\")","v":""},{"$f":"IF(DataLog!$C552=\"Log value\",DataLog!Y552,\"\")","v":""},{"$f":"IF(DataLog!$C552=\"Log value\",DataLog!Z552,\"\")","v":""},{"$f":"IF(DataLog!$C552=\"Log value\",DataLog!AA552,\"\")","v":""},{"$f":"IF(DataLog!$C552=\"Log value\",DataLog!AB552,\"\")","v":""},{"$f":"IF(DataLog!$C552=\"Log value\",DataLog!AC552,\"\")","v":""},{"$f":"IF(DataLog!$C552=\"Log value\",DataLog!AD552,\"\")","v":""},{"$f":"IF(DataLog!$C552=\"Log value\",DataLog!AE552,\"\")","v":""},{"$f":"IF(DataLog!$C552=\"Log value\",DataLog!AF552,\"\")","v":""},{"$f":"IF(DataLog!$C552=\"Log value\",DataLog!AG552,\"\")","v":""},{"$f":"IF(DataLog!$C552=\"Log value\",DataLog!AH552,\"\")","v":""},{"$f":"IF(DataLog!$C552=\"Log value\",DataLog!AI552,\"\")","v":""},{"$f":"IF(DataLog!$C552=\"Log value\",DataLog!AJ552,\"\")","v":""},{"$f":"IF(DataLog!$C552=\"Log value\",DataLog!AK552,\"\")","v":""},{"$f":"IF(DataLog!$C552=\"Log value\",DataLog!AL552,\"\")","v":""},{"$f":"IF(DataLog!$C552=\"Log value\",DataLog!AM552,\"\")","v":""}]
[null,null,null,null,null,null,{"$f":"IF(DataLog!$C553=\"Log value\",DataLog!D553&\"_\"&TEXT(DataLog!B553,\"åååå-mm-dd\"),\"\")","v":""},{"$f":"IF(DataLog!$C553=\"Log value\",DataLog!E553,\"\")","v":""},{"$f":"IF(DataLog!$C553=\"Log value\",DataLog!F553,\"\")","v":""},{"$f":"IF(DataLog!$C553=\"Log value\",DataLog!G553,\"\")","v":""},{"$f":"IF(DataLog!$C553=\"Log value\",DataLog!H553,\"\")","v":""},{"$f":"IF(DataLog!$C553=\"Log value\",DataLog!I553,\"\")","v":""},{"$f":"IF(DataLog!$C553=\"Log value\",DataLog!J553,\"\")","v":""},{"$f":"IF(DataLog!$C553=\"Log value\",DataLog!K553,\"\")","v":""},{"$f":"IF(DataLog!$C553=\"Log value\",DataLog!L553,\"\")","v":""},{"$f":"IF(DataLog!$C553=\"Log value\",DataLog!M553,\"\")","v":""},{"$f":"IF(DataLog!$C553=\"Log value\",DataLog!N553,\"\")","v":""},{"$f":"IF(DataLog!$C553=\"Log value\",DataLog!O553,\"\")","v":""},{"$f":"IF(DataLog!$C553=\"Log value\",DataLog!P553,\"\")","v":""},{"$f":"IF(DataLog!$C553=\"Log value\",DataLog!Q553,\"\")","v":""},{"$f":"IF(DataLog!$C553=\"Log value\",DataLog!R553,\"\")","v":""},{"$f":"IF(DataLog!$C553=\"Log value\",DataLog!S553,\"\")","v":""},{"$f":"IF(DataLog!$C553=\"Log value\",DataLog!T553,\"\")","v":""},{"$f":"IF(DataLog!$C553=\"Log value\",DataLog!U553,\"\")","v":""},{"$f":"IF(DataLog!$C553=\"Log value\",DataLog!V553,\"\")","v":""},{"$f":"IF(DataLog!$C553=\"Log value\",DataLog!W553,\"\")","v":""},{"$f":"IF(DataLog!$C553=\"Log value\",DataLog!X553,\"\")","v":""},{"$f":"IF(DataLog!$C553=\"Log value\",DataLog!Y553,\"\")","v":""},{"$f":"IF(DataLog!$C553=\"Log value\",DataLog!Z553,\"\")","v":""},{"$f":"IF(DataLog!$C553=\"Log value\",DataLog!AA553,\"\")","v":""},{"$f":"IF(DataLog!$C553=\"Log value\",DataLog!AB553,\"\")","v":""},{"$f":"IF(DataLog!$C553=\"Log value\",DataLog!AC553,\"\")","v":""},{"$f":"IF(DataLog!$C553=\"Log value\",DataLog!AD553,\"\")","v":""},{"$f":"IF(DataLog!$C553=\"Log value\",DataLog!AE553,\"\")","v":""},{"$f":"IF(DataLog!$C553=\"Log value\",DataLog!AF553,\"\")","v":""},{"$f":"IF(DataLog!$C553=\"Log value\",DataLog!AG553,\"\")","v":""},{"$f":"IF(DataLog!$C553=\"Log value\",DataLog!AH553,\"\")","v":""},{"$f":"IF(DataLog!$C553=\"Log value\",DataLog!AI553,\"\")","v":""},{"$f":"IF(DataLog!$C553=\"Log value\",DataLog!AJ553,\"\")","v":""},{"$f":"IF(DataLog!$C553=\"Log value\",DataLog!AK553,\"\")","v":""},{"$f":"IF(DataLog!$C553=\"Log value\",DataLog!AL553,\"\")","v":""},{"$f":"IF(DataLog!$C553=\"Log value\",DataLog!AM553,\"\")","v":""}]
[null,null,null,null,null,null,{"$f":"IF(DataLog!$C554=\"Log value\",DataLog!D554&\"_\"&TEXT(DataLog!B554,\"åååå-mm-dd\"),\"\")","v":""},{"$f":"IF(DataLog!$C554=\"Log value\",DataLog!E554,\"\")","v":""},{"$f":"IF(DataLog!$C554=\"Log value\",DataLog!F554,\"\")","v":""},{"$f":"IF(DataLog!$C554=\"Log value\",DataLog!G554,\"\")","v":""},{"$f":"IF(DataLog!$C554=\"Log value\",DataLog!H554,\"\")","v":""},{"$f":"IF(DataLog!$C554=\"Log value\",DataLog!I554,\"\")","v":""},{"$f":"IF(DataLog!$C554=\"Log value\",DataLog!J554,\"\")","v":""},{"$f":"IF(DataLog!$C554=\"Log value\",DataLog!K554,\"\")","v":""},{"$f":"IF(DataLog!$C554=\"Log value\",DataLog!L554,\"\")","v":""},{"$f":"IF(DataLog!$C554=\"Log value\",DataLog!M554,\"\")","v":""},{"$f":"IF(DataLog!$C554=\"Log value\",DataLog!N554,\"\")","v":""},{"$f":"IF(DataLog!$C554=\"Log value\",DataLog!O554,\"\")","v":""},{"$f":"IF(DataLog!$C554=\"Log value\",DataLog!P554,\"\")","v":""},{"$f":"IF(DataLog!$C554=\"Log value\",DataLog!Q554,\"\")","v":""},{"$f":"IF(DataLog!$C554=\"Log value\",DataLog!R554,\"\")","v":""},{"$f":"IF(DataLog!$C554=\"Log value\",DataLog!S554,\"\")","v":""},{"$f":"IF(DataLog!$C554=\"Log value\",DataLog!T554,\"\")","v":""},{"$f":"IF(DataLog!$C554=\"Log value\",DataLog!U554,\"\")","v":""},{"$f":"IF(DataLog!$C554=\"Log value\",DataLog!V554,\"\")","v":""},{"$f":"IF(DataLog!$C554=\"Log value\",DataLog!W554,\"\")","v":""},{"$f":"IF(DataLog!$C554=\"Log value\",DataLog!X554,\"\")","v":""},{"$f":"IF(DataLog!$C554=\"Log value\",DataLog!Y554,\"\")","v":""},{"$f":"IF(DataLog!$C554=\"Log value\",DataLog!Z554,\"\")","v":""},{"$f":"IF(DataLog!$C554=\"Log value\",DataLog!AA554,\"\")","v":""},{"$f":"IF(DataLog!$C554=\"Log value\",DataLog!AB554,\"\")","v":""},{"$f":"IF(DataLog!$C554=\"Log value\",DataLog!AC554,\"\")","v":""},{"$f":"IF(DataLog!$C554=\"Log value\",DataLog!AD554,\"\")","v":""},{"$f":"IF(DataLog!$C554=\"Log value\",DataLog!AE554,\"\")","v":""},{"$f":"IF(DataLog!$C554=\"Log value\",DataLog!AF554,\"\")","v":""},{"$f":"IF(DataLog!$C554=\"Log value\",DataLog!AG554,\"\")","v":""},{"$f":"IF(DataLog!$C554=\"Log value\",DataLog!AH554,\"\")","v":""},{"$f":"IF(DataLog!$C554=\"Log value\",DataLog!AI554,\"\")","v":""},{"$f":"IF(DataLog!$C554=\"Log value\",DataLog!AJ554,\"\")","v":""},{"$f":"IF(DataLog!$C554=\"Log value\",DataLog!AK554,\"\")","v":""},{"$f":"IF(DataLog!$C554=\"Log value\",DataLog!AL554,\"\")","v":""},{"$f":"IF(DataLog!$C554=\"Log value\",DataLog!AM554,\"\")","v":""}]
[null,null,null,null,null,null,{"$f":"IF(DataLog!$C555=\"Log value\",DataLog!D555&\"_\"&TEXT(DataLog!B555,\"åååå-mm-dd\"),\"\")","v":""},{"$f":"IF(DataLog!$C555=\"Log value\",DataLog!E555,\"\")","v":""},{"$f":"IF(DataLog!$C555=\"Log value\",DataLog!F555,\"\")","v":""},{"$f":"IF(DataLog!$C555=\"Log value\",DataLog!G555,\"\")","v":""},{"$f":"IF(DataLog!$C555=\"Log value\",DataLog!H555,\"\")","v":""},{"$f":"IF(DataLog!$C555=\"Log value\",DataLog!I555,\"\")","v":""},{"$f":"IF(DataLog!$C555=\"Log value\",DataLog!J555,\"\")","v":""},{"$f":"IF(DataLog!$C555=\"Log value\",DataLog!K555,\"\")","v":""},{"$f":"IF(DataLog!$C555=\"Log value\",DataLog!L555,\"\")","v":""},{"$f":"IF(DataLog!$C555=\"Log value\",DataLog!M555,\"\")","v":""},{"$f":"IF(DataLog!$C555=\"Log value\",DataLog!N555,\"\")","v":""},{"$f":"IF(DataLog!$C555=\"Log value\",DataLog!O555,\"\")","v":""},{"$f":"IF(DataLog!$C555=\"Log value\",DataLog!P555,\"\")","v":""},{"$f":"IF(DataLog!$C555=\"Log value\",DataLog!Q555,\"\")","v":""},{"$f":"IF(DataLog!$C555=\"Log value\",DataLog!R555,\"\")","v":""},{"$f":"IF(DataLog!$C555=\"Log value\",DataLog!S555,\"\")","v":""},{"$f":"IF(DataLog!$C555=\"Log value\",DataLog!T555,\"\")","v":""},{"$f":"IF(DataLog!$C555=\"Log value\",DataLog!U555,\"\")","v":""},{"$f":"IF(DataLog!$C555=\"Log value\",DataLog!V555,\"\")","v":""},{"$f":"IF(DataLog!$C555=\"Log value\",DataLog!W555,\"\")","v":""},{"$f":"IF(DataLog!$C555=\"Log value\",DataLog!X555,\"\")","v":""},{"$f":"IF(DataLog!$C555=\"Log value\",DataLog!Y555,\"\")","v":""},{"$f":"IF(DataLog!$C555=\"Log value\",DataLog!Z555,\"\")","v":""},{"$f":"IF(DataLog!$C555=\"Log value\",DataLog!AA555,\"\")","v":""},{"$f":"IF(DataLog!$C555=\"Log value\",DataLog!AB555,\"\")","v":""},{"$f":"IF(DataLog!$C555=\"Log value\",DataLog!AC555,\"\")","v":""},{"$f":"IF(DataLog!$C555=\"Log value\",DataLog!AD555,\"\")","v":""},{"$f":"IF(DataLog!$C555=\"Log value\",DataLog!AE555,\"\")","v":""},{"$f":"IF(DataLog!$C555=\"Log value\",DataLog!AF555,\"\")","v":""},{"$f":"IF(DataLog!$C555=\"Log value\",DataLog!AG555,\"\")","v":""},{"$f":"IF(DataLog!$C555=\"Log value\",DataLog!AH555,\"\")","v":""},{"$f":"IF(DataLog!$C555=\"Log value\",DataLog!AI555,\"\")","v":""},{"$f":"IF(DataLog!$C555=\"Log value\",DataLog!AJ555,\"\")","v":""},{"$f":"IF(DataLog!$C555=\"Log value\",DataLog!AK555,\"\")","v":""},{"$f":"IF(DataLog!$C555=\"Log value\",DataLog!AL555,\"\")","v":""},{"$f":"IF(DataLog!$C555=\"Log value\",DataLog!AM555,\"\")","v":""}]
[null,null,null,null,null,null,{"$f":"IF(DataLog!$C556=\"Log value\",DataLog!D556&\"_\"&TEXT(DataLog!B556,\"åååå-mm-dd\"),\"\")","v":""},{"$f":"IF(DataLog!$C556=\"Log value\",DataLog!E556,\"\")","v":""},{"$f":"IF(DataLog!$C556=\"Log value\",DataLog!F556,\"\")","v":""},{"$f":"IF(DataLog!$C556=\"Log value\",DataLog!G556,\"\")","v":""},{"$f":"IF(DataLog!$C556=\"Log value\",DataLog!H556,\"\")","v":""},{"$f":"IF(DataLog!$C556=\"Log value\",DataLog!I556,\"\")","v":""},{"$f":"IF(DataLog!$C556=\"Log value\",DataLog!J556,\"\")","v":""},{"$f":"IF(DataLog!$C556=\"Log value\",DataLog!K556,\"\")","v":""},{"$f":"IF(DataLog!$C556=\"Log value\",DataLog!L556,\"\")","v":""},{"$f":"IF(DataLog!$C556=\"Log value\",DataLog!M556,\"\")","v":""},{"$f":"IF(DataLog!$C556=\"Log value\",DataLog!N556,\"\")","v":""},{"$f":"IF(DataLog!$C556=\"Log value\",DataLog!O556,\"\")","v":""},{"$f":"IF(DataLog!$C556=\"Log value\",DataLog!P556,\"\")","v":""},{"$f":"IF(DataLog!$C556=\"Log value\",DataLog!Q556,\"\")","v":""},{"$f":"IF(DataLog!$C556=\"Log value\",DataLog!R556,\"\")","v":""},{"$f":"IF(DataLog!$C556=\"Log value\",DataLog!S556,\"\")","v":""},{"$f":"IF(DataLog!$C556=\"Log value\",DataLog!T556,\"\")","v":""},{"$f":"IF(DataLog!$C556=\"Log value\",DataLog!U556,\"\")","v":""},{"$f":"IF(DataLog!$C556=\"Log value\",DataLog!V556,\"\")","v":""},{"$f":"IF(DataLog!$C556=\"Log value\",DataLog!W556,\"\")","v":""},{"$f":"IF(DataLog!$C556=\"Log value\",DataLog!X556,\"\")","v":""},{"$f":"IF(DataLog!$C556=\"Log value\",DataLog!Y556,\"\")","v":""},{"$f":"IF(DataLog!$C556=\"Log value\",DataLog!Z556,\"\")","v":""},{"$f":"IF(DataLog!$C556=\"Log value\",DataLog!AA556,\"\")","v":""},{"$f":"IF(DataLog!$C556=\"Log value\",DataLog!AB556,\"\")","v":""},{"$f":"IF(DataLog!$C556=\"Log value\",DataLog!AC556,\"\")","v":""},{"$f":"IF(DataLog!$C556=\"Log value\",DataLog!AD556,\"\")","v":""},{"$f":"IF(DataLog!$C556=\"Log value\",DataLog!AE556,\"\")","v":""},{"$f":"IF(DataLog!$C556=\"Log value\",DataLog!AF556,\"\")","v":""},{"$f":"IF(DataLog!$C556=\"Log value\",DataLog!AG556,\"\")","v":""},{"$f":"IF(DataLog!$C556=\"Log value\",DataLog!AH556,\"\")","v":""},{"$f":"IF(DataLog!$C556=\"Log value\",DataLog!AI556,\"\")","v":""},{"$f":"IF(DataLog!$C556=\"Log value\",DataLog!AJ556,\"\")","v":""},{"$f":"IF(DataLog!$C556=\"Log value\",DataLog!AK556,\"\")","v":""},{"$f":"IF(DataLog!$C556=\"Log value\",DataLog!AL556,\"\")","v":""},{"$f":"IF(DataLog!$C556=\"Log value\",DataLog!AM556,\"\")","v":""}]
[null,null,null,null,null,null,{"$f":"IF(DataLog!$C557=\"Log value\",DataLog!D557&\"_\"&TEXT(DataLog!B557,\"åååå-mm-dd\"),\"\")","v":""},{"$f":"IF(DataLog!$C557=\"Log value\",DataLog!E557,\"\")","v":""},{"$f":"IF(DataLog!$C557=\"Log value\",DataLog!F557,\"\")","v":""},{"$f":"IF(DataLog!$C557=\"Log value\",DataLog!G557,\"\")","v":""},{"$f":"IF(DataLog!$C557=\"Log value\",DataLog!H557,\"\")","v":""},{"$f":"IF(DataLog!$C557=\"Log value\",DataLog!I557,\"\")","v":""},{"$f":"IF(DataLog!$C557=\"Log value\",DataLog!J557,\"\")","v":""},{"$f":"IF(DataLog!$C557=\"Log value\",DataLog!K557,\"\")","v":""},{"$f":"IF(DataLog!$C557=\"Log value\",DataLog!L557,\"\")","v":""},{"$f":"IF(DataLog!$C557=\"Log value\",DataLog!M557,\"\")","v":""},{"$f":"IF(DataLog!$C557=\"Log value\",DataLog!N557,\"\")","v":""},{"$f":"IF(DataLog!$C557=\"Log value\",DataLog!O557,\"\")","v":""},{"$f":"IF(DataLog!$C557=\"Log value\",DataLog!P557,\"\")","v":""},{"$f":"IF(DataLog!$C557=\"Log value\",DataLog!Q557,\"\")","v":""},{"$f":"IF(DataLog!$C557=\"Log value\",DataLog!R557,\"\")","v":""},{"$f":"IF(DataLog!$C557=\"Log value\",DataLog!S557,\"\")","v":""},{"$f":"IF(DataLog!$C557=\"Log value\",DataLog!T557,\"\")","v":""},{"$f":"IF(DataLog!$C557=\"Log value\",DataLog!U557,\"\")","v":""},{"$f":"IF(DataLog!$C557=\"Log value\",DataLog!V557,\"\")","v":""},{"$f":"IF(DataLog!$C557=\"Log value\",DataLog!W557,\"\")","v":""},{"$f":"IF(DataLog!$C557=\"Log value\",DataLog!X557,\"\")","v":""},{"$f":"IF(DataLog!$C557=\"Log value\",DataLog!Y557,\"\")","v":""},{"$f":"IF(DataLog!$C557=\"Log value\",DataLog!Z557,\"\")","v":""},{"$f":"IF(DataLog!$C557=\"Log value\",DataLog!AA557,\"\")","v":""},{"$f":"IF(DataLog!$C557=\"Log value\",DataLog!AB557,\"\")","v":""},{"$f":"IF(DataLog!$C557=\"Log value\",DataLog!AC557,\"\")","v":""},{"$f":"IF(DataLog!$C557=\"Log value\",DataLog!AD557,\"\")","v":""},{"$f":"IF(DataLog!$C557=\"Log value\",DataLog!AE557,\"\")","v":""},{"$f":"IF(DataLog!$C557=\"Log value\",DataLog!AF557,\"\")","v":""},{"$f":"IF(DataLog!$C557=\"Log value\",DataLog!AG557,\"\")","v":""},{"$f":"IF(DataLog!$C557=\"Log value\",DataLog!AH557,\"\")","v":""},{"$f":"IF(DataLog!$C557=\"Log value\",DataLog!AI557,\"\")","v":""},{"$f":"IF(DataLog!$C557=\"Log value\",DataLog!AJ557,\"\")","v":""},{"$f":"IF(DataLog!$C557=\"Log value\",DataLog!AK557,\"\")","v":""},{"$f":"IF(DataLog!$C557=\"Log value\",DataLog!AL557,\"\")","v":""},{"$f":"IF(DataLog!$C557=\"Log value\",DataLog!AM557,\"\")","v":""}]
[null,null,null,null,null,null,{"$f":"IF(DataLog!$C558=\"Log value\",DataLog!D558&\"_\"&TEXT(DataLog!B558,\"åååå-mm-dd\"),\"\")","v":""},{"$f":"IF(DataLog!$C558=\"Log value\",DataLog!E558,\"\")","v":""},{"$f":"IF(DataLog!$C558=\"Log value\",DataLog!F558,\"\")","v":""},{"$f":"IF(DataLog!$C558=\"Log value\",DataLog!G558,\"\")","v":""},{"$f":"IF(DataLog!$C558=\"Log value\",DataLog!H558,\"\")","v":""},{"$f":"IF(DataLog!$C558=\"Log value\",DataLog!I558,\"\")","v":""},{"$f":"IF(DataLog!$C558=\"Log value\",DataLog!J558,\"\")","v":""},{"$f":"IF(DataLog!$C558=\"Log value\",DataLog!K558,\"\")","v":""},{"$f":"IF(DataLog!$C558=\"Log value\",DataLog!L558,\"\")","v":""},{"$f":"IF(DataLog!$C558=\"Log value\",DataLog!M558,\"\")","v":""},{"$f":"IF(DataLog!$C558=\"Log value\",DataLog!N558,\"\")","v":""},{"$f":"IF(DataLog!$C558=\"Log value\",DataLog!O558,\"\")","v":""},{"$f":"IF(DataLog!$C558=\"Log value\",DataLog!P558,\"\")","v":""},{"$f":"IF(DataLog!$C558=\"Log value\",DataLog!Q558,\"\")","v":""},{"$f":"IF(DataLog!$C558=\"Log value\",DataLog!R558,\"\")","v":""},{"$f":"IF(DataLog!$C558=\"Log value\",DataLog!S558,\"\")","v":""},{"$f":"IF(DataLog!$C558=\"Log value\",DataLog!T558,\"\")","v":""},{"$f":"IF(DataLog!$C558=\"Log value\",DataLog!U558,\"\")","v":""},{"$f":"IF(DataLog!$C558=\"Log value\",DataLog!V558,\"\")","v":""},{"$f":"IF(DataLog!$C558=\"Log value\",DataLog!W558,\"\")","v":""},{"$f":"IF(DataLog!$C558=\"Log value\",DataLog!X558,\"\")","v":""},{"$f":"IF(DataLog!$C558=\"Log value\",DataLog!Y558,\"\")","v":""},{"$f":"IF(DataLog!$C558=\"Log value\",DataLog!Z558,\"\")","v":""},{"$f":"IF(DataLog!$C558=\"Log value\",DataLog!AA558,\"\")","v":""},{"$f":"IF(DataLog!$C558=\"Log value\",DataLog!AB558,\"\")","v":""},{"$f":"IF(DataLog!$C558=\"Log value\",DataLog!AC558,\"\")","v":""},{"$f":"IF(DataLog!$C558=\"Log value\",DataLog!AD558,\"\")","v":""},{"$f":"IF(DataLog!$C558=\"Log value\",DataLog!AE558,\"\")","v":""},{"$f":"IF(DataLog!$C558=\"Log value\",DataLog!AF558,\"\")","v":""},{"$f":"IF(DataLog!$C558=\"Log value\",DataLog!AG558,\"\")","v":""},{"$f":"IF(DataLog!$C558=\"Log value\",DataLog!AH558,\"\")","v":""},{"$f":"IF(DataLog!$C558=\"Log value\",DataLog!AI558,\"\")","v":""},{"$f":"IF(DataLog!$C558=\"Log value\",DataLog!AJ558,\"\")","v":""},{"$f":"IF(DataLog!$C558=\"Log value\",DataLog!AK558,\"\")","v":""},{"$f":"IF(DataLog!$C558=\"Log value\",DataLog!AL558,\"\")","v":""},{"$f":"IF(DataLog!$C558=\"Log value\",DataLog!AM558,\"\")","v":""}]
[null,null,null,null,null,null,{"$f":"IF(DataLog!$C559=\"Log value\",DataLog!D559&\"_\"&TEXT(DataLog!B559,\"åååå-mm-dd\"),\"\")","v":""},{"$f":"IF(DataLog!$C559=\"Log value\",DataLog!E559,\"\")","v":""},{"$f":"IF(DataLog!$C559=\"Log value\",DataLog!F559,\"\")","v":""},{"$f":"IF(DataLog!$C559=\"Log value\",DataLog!G559,\"\")","v":""},{"$f":"IF(DataLog!$C559=\"Log value\",DataLog!H559,\"\")","v":""},{"$f":"IF(DataLog!$C559=\"Log value\",DataLog!I559,\"\")","v":""},{"$f":"IF(DataLog!$C559=\"Log value\",DataLog!J559,\"\")","v":""},{"$f":"IF(DataLog!$C559=\"Log value\",DataLog!K559,\"\")","v":""},{"$f":"IF(DataLog!$C559=\"Log value\",DataLog!L559,\"\")","v":""},{"$f":"IF(DataLog!$C559=\"Log value\",DataLog!M559,\"\")","v":""},{"$f":"IF(DataLog!$C559=\"Log value\",DataLog!N559,\"\")","v":""},{"$f":"IF(DataLog!$C559=\"Log value\",DataLog!O559,\"\")","v":""},{"$f":"IF(DataLog!$C559=\"Log value\",DataLog!P559,\"\")","v":""},{"$f":"IF(DataLog!$C559=\"Log value\",DataLog!Q559,\"\")","v":""},{"$f":"IF(DataLog!$C559=\"Log value\",DataLog!R559,\"\")","v":""},{"$f":"IF(DataLog!$C559=\"Log value\",DataLog!S559,\"\")","v":""},{"$f":"IF(DataLog!$C559=\"Log value\",DataLog!T559,\"\")","v":""},{"$f":"IF(DataLog!$C559=\"Log value\",DataLog!U559,\"\")","v":""},{"$f":"IF(DataLog!$C559=\"Log value\",DataLog!V559,\"\")","v":""},{"$f":"IF(DataLog!$C559=\"Log value\",DataLog!W559,\"\")","v":""},{"$f":"IF(DataLog!$C559=\"Log value\",DataLog!X559,\"\")","v":""},{"$f":"IF(DataLog!$C559=\"Log value\",DataLog!Y559,\"\")","v":""},{"$f":"IF(DataLog!$C559=\"Log value\",DataLog!Z559,\"\")","v":""},{"$f":"IF(DataLog!$C559=\"Log value\",DataLog!AA559,\"\")","v":""},{"$f":"IF(DataLog!$C559=\"Log value\",DataLog!AB559,\"\")","v":""},{"$f":"IF(DataLog!$C559=\"Log value\",DataLog!AC559,\"\")","v":""},{"$f":"IF(DataLog!$C559=\"Log value\",DataLog!AD559,\"\")","v":""},{"$f":"IF(DataLog!$C559=\"Log value\",DataLog!AE559,\"\")","v":""},{"$f":"IF(DataLog!$C559=\"Log value\",DataLog!AF559,\"\")","v":""},{"$f":"IF(DataLog!$C559=\"Log value\",DataLog!AG559,\"\")","v":""},{"$f":"IF(DataLog!$C559=\"Log value\",DataLog!AH559,\"\")","v":""},{"$f":"IF(DataLog!$C559=\"Log value\",DataLog!AI559,\"\")","v":""},{"$f":"IF(DataLog!$C559=\"Log value\",DataLog!AJ559,\"\")","v":""},{"$f":"IF(DataLog!$C559=\"Log value\",DataLog!AK559,\"\")","v":""},{"$f":"IF(DataLog!$C559=\"Log value\",DataLog!AL559,\"\")","v":""},{"$f":"IF(DataLog!$C559=\"Log value\",DataLog!AM559,\"\")","v":""}]
[null,null,null,null,null,null,{"$f":"IF(DataLog!$C560=\"Log value\",DataLog!D560&\"_\"&TEXT(DataLog!B560,\"åååå-mm-dd\"),\"\")","v":""},{"$f":"IF(DataLog!$C560=\"Log value\",DataLog!E560,\"\")","v":""},{"$f":"IF(DataLog!$C560=\"Log value\",DataLog!F560,\"\")","v":""},{"$f":"IF(DataLog!$C560=\"Log value\",DataLog!G560,\"\")","v":""},{"$f":"IF(DataLog!$C560=\"Log value\",DataLog!H560,\"\")","v":""},{"$f":"IF(DataLog!$C560=\"Log value\",DataLog!I560,\"\")","v":""},{"$f":"IF(DataLog!$C560=\"Log value\",DataLog!J560,\"\")","v":""},{"$f":"IF(DataLog!$C560=\"Log value\",DataLog!K560,\"\")","v":""},{"$f":"IF(DataLog!$C560=\"Log value\",DataLog!L560,\"\")","v":""},{"$f":"IF(DataLog!$C560=\"Log value\",DataLog!M560,\"\")","v":""},{"$f":"IF(DataLog!$C560=\"Log value\",DataLog!N560,\"\")","v":""},{"$f":"IF(DataLog!$C560=\"Log value\",DataLog!O560,\"\")","v":""},{"$f":"IF(DataLog!$C560=\"Log value\",DataLog!P560,\"\")","v":""},{"$f":"IF(DataLog!$C560=\"Log value\",DataLog!Q560,\"\")","v":""},{"$f":"IF(DataLog!$C560=\"Log value\",DataLog!R560,\"\")","v":""},{"$f":"IF(DataLog!$C560=\"Log value\",DataLog!S560,\"\")","v":""},{"$f":"IF(DataLog!$C560=\"Log value\",DataLog!T560,\"\")","v":""},{"$f":"IF(DataLog!$C560=\"Log value\",DataLog!U560,\"\")","v":""},{"$f":"IF(DataLog!$C560=\"Log value\",DataLog!V560,\"\")","v":""},{"$f":"IF(DataLog!$C560=\"Log value\",DataLog!W560,\"\")","v":""},{"$f":"IF(DataLog!$C560=\"Log value\",DataLog!X560,\"\")","v":""},{"$f":"IF(DataLog!$C560=\"Log value\",DataLog!Y560,\"\")","v":""},{"$f":"IF(DataLog!$C560=\"Log value\",DataLog!Z560,\"\")","v":""},{"$f":"IF(DataLog!$C560=\"Log value\",DataLog!AA560,\"\")","v":""},{"$f":"IF(DataLog!$C560=\"Log value\",DataLog!AB560,\"\")","v":""},{"$f":"IF(DataLog!$C560=\"Log value\",DataLog!AC560,\"\")","v":""},{"$f":"IF(DataLog!$C560=\"Log value\",DataLog!AD560,\"\")","v":""},{"$f":"IF(DataLog!$C560=\"Log value\",DataLog!AE560,\"\")","v":""},{"$f":"IF(DataLog!$C560=\"Log value\",DataLog!AF560,\"\")","v":""},{"$f":"IF(DataLog!$C560=\"Log value\",DataLog!AG560,\"\")","v":""},{"$f":"IF(DataLog!$C560=\"Log value\",DataLog!AH560,\"\")","v":""},{"$f":"IF(DataLog!$C560=\"Log value\",DataLog!AI560,\"\")","v":""},{"$f":"IF(DataLog!$C560=\"Log value\",DataLog!AJ560,\"\")","v":""},{"$f":"IF(DataLog!$C560=\"Log value\",DataLog!AK560,\"\")","v":""},{"$f":"IF(DataLog!$C560=\"Log value\",DataLog!AL560,\"\")","v":""},{"$f":"IF(DataLog!$C560=\"Log value\",DataLog!AM560,\"\")","v":""}]
[null,null,null,null,null,null,{"$f":"IF(DataLog!$C561=\"Log value\",DataLog!D561&\"_\"&TEXT(DataLog!B561,\"åååå-mm-dd\"),\"\")","v":""},{"$f":"IF(DataLog!$C561=\"Log value\",DataLog!E561,\"\")","v":""},{"$f":"IF(DataLog!$C561=\"Log value\",DataLog!F561,\"\")","v":""},{"$f":"IF(DataLog!$C561=\"Log value\",DataLog!G561,\"\")","v":""},{"$f":"IF(DataLog!$C561=\"Log value\",DataLog!H561,\"\")","v":""},{"$f":"IF(DataLog!$C561=\"Log value\",DataLog!I561,\"\")","v":""},{"$f":"IF(DataLog!$C561=\"Log value\",DataLog!J561,\"\")","v":""},{"$f":"IF(DataLog!$C561=\"Log value\",DataLog!K561,\"\")","v":""},{"$f":"IF(DataLog!$C561=\"Log value\",DataLog!L561,\"\")","v":""},{"$f":"IF(DataLog!$C561=\"Log value\",DataLog!M561,\"\")","v":""},{"$f":"IF(DataLog!$C561=\"Log value\",DataLog!N561,\"\")","v":""},{"$f":"IF(DataLog!$C561=\"Log value\",DataLog!O561,\"\")","v":""},{"$f":"IF(DataLog!$C561=\"Log value\",DataLog!P561,\"\")","v":""},{"$f":"IF(DataLog!$C561=\"Log value\",DataLog!Q561,\"\")","v":""},{"$f":"IF(DataLog!$C561=\"Log value\",DataLog!R561,\"\")","v":""},{"$f":"IF(DataLog!$C561=\"Log value\",DataLog!S561,\"\")","v":""},{"$f":"IF(DataLog!$C561=\"Log value\",DataLog!T561,\"\")","v":""},{"$f":"IF(DataLog!$C561=\"Log value\",DataLog!U561,\"\")","v":""},{"$f":"IF(DataLog!$C561=\"Log value\",DataLog!V561,\"\")","v":""},{"$f":"IF(DataLog!$C561=\"Log value\",DataLog!W561,\"\")","v":""},{"$f":"IF(DataLog!$C561=\"Log value\",DataLog!X561,\"\")","v":""},{"$f":"IF(DataLog!$C561=\"Log value\",DataLog!Y561,\"\")","v":""},{"$f":"IF(DataLog!$C561=\"Log value\",DataLog!Z561,\"\")","v":""},{"$f":"IF(DataLog!$C561=\"Log value\",DataLog!AA561,\"\")","v":""},{"$f":"IF(DataLog!$C561=\"Log value\",DataLog!AB561,\"\")","v":""},{"$f":"IF(DataLog!$C561=\"Log value\",DataLog!AC561,\"\")","v":""},{"$f":"IF(DataLog!$C561=\"Log value\",DataLog!AD561,\"\")","v":""},{"$f":"IF(DataLog!$C561=\"Log value\",DataLog!AE561,\"\")","v":""},{"$f":"IF(DataLog!$C561=\"Log value\",DataLog!AF561,\"\")","v":""},{"$f":"IF(DataLog!$C561=\"Log value\",DataLog!AG561,\"\")","v":""},{"$f":"IF(DataLog!$C561=\"Log value\",DataLog!AH561,\"\")","v":""},{"$f":"IF(DataLog!$C561=\"Log value\",DataLog!AI561,\"\")","v":""},{"$f":"IF(DataLog!$C561=\"Log value\",DataLog!AJ561,\"\")","v":""},{"$f":"IF(DataLog!$C561=\"Log value\",DataLog!AK561,\"\")","v":""},{"$f":"IF(DataLog!$C561=\"Log value\",DataLog!AL561,\"\")","v":""},{"$f":"IF(DataLog!$C561=\"Log value\",DataLog!AM561,\"\")","v":""}]
[null,null,null,null,null,null,{"$f":"IF(DataLog!$C562=\"Log value\",DataLog!D562&\"_\"&TEXT(DataLog!B562,\"åååå-mm-dd\"),\"\")","v":""},{"$f":"IF(DataLog!$C562=\"Log value\",DataLog!E562,\"\")","v":""},{"$f":"IF(DataLog!$C562=\"Log value\",DataLog!F562,\"\")","v":""},{"$f":"IF(DataLog!$C562=\"Log value\",DataLog!G562,\"\")","v":""},{"$f":"IF(DataLog!$C562=\"Log value\",DataLog!H562,\"\")","v":""},{"$f":"IF(DataLog!$C562=\"Log value\",DataLog!I562,\"\")","v":""},{"$f":"IF(DataLog!$C562=\"Log value\",DataLog!J562,\"\")","v":""},{"$f":"IF(DataLog!$C562=\"Log value\",DataLog!K562,\"\")","v":""},{"$f":"IF(DataLog!$C562=\"Log value\",DataLog!L562,\"\")","v":""},{"$f":"IF(DataLog!$C562=\"Log value\",DataLog!M562,\"\")","v":""},{"$f":"IF(DataLog!$C562=\"Log value\",DataLog!N562,\"\")","v":""},{"$f":"IF(DataLog!$C562=\"Log value\",DataLog!O562,\"\")","v":""},{"$f":"IF(DataLog!$C562=\"Log value\",DataLog!P562,\"\")","v":""},{"$f":"IF(DataLog!$C562=\"Log value\",DataLog!Q562,\"\")","v":""},{"$f":"IF(DataLog!$C562=\"Log value\",DataLog!R562,\"\")","v":""},{"$f":"IF(DataLog!$C562=\"Log value\",DataLog!S562,\"\")","v":""},{"$f":"IF(DataLog!$C562=\"Log value\",DataLog!T562,\"\")","v":""},{"$f":"IF(DataLog!$C562=\"Log value\",DataLog!U562,\"\")","v":""},{"$f":"IF(DataLog!$C562=\"Log value\",DataLog!V562,\"\")","v":""},{"$f":"IF(DataLog!$C562=\"Log value\",DataLog!W562,\"\")","v":""},{"$f":"IF(DataLog!$C562=\"Log value\",DataLog!X562,\"\")","v":""},{"$f":"IF(DataLog!$C562=\"Log value\",DataLog!Y562,\"\")","v":""},{"$f":"IF(DataLog!$C562=\"Log value\",DataLog!Z562,\"\")","v":""},{"$f":"IF(DataLog!$C562=\"Log value\",DataLog!AA562,\"\")","v":""},{"$f":"IF(DataLog!$C562=\"Log value\",DataLog!AB562,\"\")","v":""},{"$f":"IF(DataLog!$C562=\"Log value\",DataLog!AC562,\"\")","v":""},{"$f":"IF(DataLog!$C562=\"Log value\",DataLog!AD562,\"\")","v":""},{"$f":"IF(DataLog!$C562=\"Log value\",DataLog!AE562,\"\")","v":""},{"$f":"IF(DataLog!$C562=\"Log value\",DataLog!AF562,\"\")","v":""},{"$f":"IF(DataLog!$C562=\"Log value\",DataLog!AG562,\"\")","v":""},{"$f":"IF(DataLog!$C562=\"Log value\",DataLog!AH562,\"\")","v":""},{"$f":"IF(DataLog!$C562=\"Log value\",DataLog!AI562,\"\")","v":""},{"$f":"IF(DataLog!$C562=\"Log value\",DataLog!AJ562,\"\")","v":""},{"$f":"IF(DataLog!$C562=\"Log value\",DataLog!AK562,\"\")","v":""},{"$f":"IF(DataLog!$C562=\"Log value\",DataLog!AL562,\"\")","v":""},{"$f":"IF(DataLog!$C562=\"Log value\",DataLog!AM562,\"\")","v":""}]
[null,null,null,null,null,null,{"$f":"IF(DataLog!$C563=\"Log value\",DataLog!D563&\"_\"&TEXT(DataLog!B563,\"åååå-mm-dd\"),\"\")","v":""},{"$f":"IF(DataLog!$C563=\"Log value\",DataLog!E563,\"\")","v":""},{"$f":"IF(DataLog!$C563=\"Log value\",DataLog!F563,\"\")","v":""},{"$f":"IF(DataLog!$C563=\"Log value\",DataLog!G563,\"\")","v":""},{"$f":"IF(DataLog!$C563=\"Log value\",DataLog!H563,\"\")","v":""},{"$f":"IF(DataLog!$C563=\"Log value\",DataLog!I563,\"\")","v":""},{"$f":"IF(DataLog!$C563=\"Log value\",DataLog!J563,\"\")","v":""},{"$f":"IF(DataLog!$C563=\"Log value\",DataLog!K563,\"\")","v":""},{"$f":"IF(DataLog!$C563=\"Log value\",DataLog!L563,\"\")","v":""},{"$f":"IF(DataLog!$C563=\"Log value\",DataLog!M563,\"\")","v":""},{"$f":"IF(DataLog!$C563=\"Log value\",DataLog!N563,\"\")","v":""},{"$f":"IF(DataLog!$C563=\"Log value\",DataLog!O563,\"\")","v":""},{"$f":"IF(DataLog!$C563=\"Log value\",DataLog!P563,\"\")","v":""},{"$f":"IF(DataLog!$C563=\"Log value\",DataLog!Q563,\"\")","v":""},{"$f":"IF(DataLog!$C563=\"Log value\",DataLog!R563,\"\")","v":""},{"$f":"IF(DataLog!$C563=\"Log value\",DataLog!S563,\"\")","v":""},{"$f":"IF(DataLog!$C563=\"Log value\",DataLog!T563,\"\")","v":""},{"$f":"IF(DataLog!$C563=\"Log value\",DataLog!U563,\"\")","v":""},{"$f":"IF(DataLog!$C563=\"Log value\",DataLog!V563,\"\")","v":""},{"$f":"IF(DataLog!$C563=\"Log value\",DataLog!W563,\"\")","v":""},{"$f":"IF(DataLog!$C563=\"Log value\",DataLog!X563,\"\")","v":""},{"$f":"IF(DataLog!$C563=\"Log value\",DataLog!Y563,\"\")","v":""},{"$f":"IF(DataLog!$C563=\"Log value\",DataLog!Z563,\"\")","v":""},{"$f":"IF(DataLog!$C563=\"Log value\",DataLog!AA563,\"\")","v":""},{"$f":"IF(DataLog!$C563=\"Log value\",DataLog!AB563,\"\")","v":""},{"$f":"IF(DataLog!$C563=\"Log value\",DataLog!AC563,\"\")","v":""},{"$f":"IF(DataLog!$C563=\"Log value\",DataLog!AD563,\"\")","v":""},{"$f":"IF(DataLog!$C563=\"Log value\",DataLog!AE563,\"\")","v":""},{"$f":"IF(DataLog!$C563=\"Log value\",DataLog!AF563,\"\")","v":""},{"$f":"IF(DataLog!$C563=\"Log value\",DataLog!AG563,\"\")","v":""},{"$f":"IF(DataLog!$C563=\"Log value\",DataLog!AH563,\"\")","v":""},{"$f":"IF(DataLog!$C563=\"Log value\",DataLog!AI563,\"\")","v":""},{"$f":"IF(DataLog!$C563=\"Log value\",DataLog!AJ563,\"\")","v":""},{"$f":"IF(DataLog!$C563=\"Log value\",DataLog!AK563,\"\")","v":""},{"$f":"IF(DataLog!$C563=\"Log value\",DataLog!AL563,\"\")","v":""},{"$f":"IF(DataLog!$C563=\"Log value\",DataLog!AM563,\"\")","v":""}]
[null,null,null,null,null,null,{"$f":"IF(DataLog!$C564=\"Log value\",DataLog!D564&\"_\"&TEXT(DataLog!B564,\"åååå-mm-dd\"),\"\")","v":""},{"$f":"IF(DataLog!$C564=\"Log value\",DataLog!E564,\"\")","v":""},{"$f":"IF(DataLog!$C564=\"Log value\",DataLog!F564,\"\")","v":""},{"$f":"IF(DataLog!$C564=\"Log value\",DataLog!G564,\"\")","v":""},{"$f":"IF(DataLog!$C564=\"Log value\",DataLog!H564,\"\")","v":""},{"$f":"IF(DataLog!$C564=\"Log value\",DataLog!I564,\"\")","v":""},{"$f":"IF(DataLog!$C564=\"Log value\",DataLog!J564,\"\")","v":""},{"$f":"IF(DataLog!$C564=\"Log value\",DataLog!K564,\"\")","v":""},{"$f":"IF(DataLog!$C564=\"Log value\",DataLog!L564,\"\")","v":""},{"$f":"IF(DataLog!$C564=\"Log value\",DataLog!M564,\"\")","v":""},{"$f":"IF(DataLog!$C564=\"Log value\",DataLog!N564,\"\")","v":""},{"$f":"IF(DataLog!$C564=\"Log value\",DataLog!O564,\"\")","v":""},{"$f":"IF(DataLog!$C564=\"Log value\",DataLog!P564,\"\")","v":""},{"$f":"IF(DataLog!$C564=\"Log value\",DataLog!Q564,\"\")","v":""},{"$f":"IF(DataLog!$C564=\"Log value\",DataLog!R564,\"\")","v":""},{"$f":"IF(DataLog!$C564=\"Log value\",DataLog!S564,\"\")","v":""},{"$f":"IF(DataLog!$C564=\"Log value\",DataLog!T564,\"\")","v":""},{"$f":"IF(DataLog!$C564=\"Log value\",DataLog!U564,\"\")","v":""},{"$f":"IF(DataLog!$C564=\"Log value\",DataLog!V564,\"\")","v":""},{"$f":"IF(DataLog!$C564=\"Log value\",DataLog!W564,\"\")","v":""},{"$f":"IF(DataLog!$C564=\"Log value\",DataLog!X564,\"\")","v":""},{"$f":"IF(DataLog!$C564=\"Log value\",DataLog!Y564,\"\")","v":""},{"$f":"IF(DataLog!$C564=\"Log value\",DataLog!Z564,\"\")","v":""},{"$f":"IF(DataLog!$C564=\"Log value\",DataLog!AA564,\"\")","v":""},{"$f":"IF(DataLog!$C564=\"Log value\",DataLog!AB564,\"\")","v":""},{"$f":"IF(DataLog!$C564=\"Log value\",DataLog!AC564,\"\")","v":""},{"$f":"IF(DataLog!$C564=\"Log value\",DataLog!AD564,\"\")","v":""},{"$f":"IF(DataLog!$C564=\"Log value\",DataLog!AE564,\"\")","v":""},{"$f":"IF(DataLog!$C564=\"Log value\",DataLog!AF564,\"\")","v":""},{"$f":"IF(DataLog!$C564=\"Log value\",DataLog!AG564,\"\")","v":""},{"$f":"IF(DataLog!$C564=\"Log value\",DataLog!AH564,\"\")","v":""},{"$f":"IF(DataLog!$C564=\"Log value\",DataLog!AI564,\"\")","v":""},{"$f":"IF(DataLog!$C564=\"Log value\",DataLog!AJ564,\"\")","v":""},{"$f":"IF(DataLog!$C564=\"Log value\",DataLog!AK564,\"\")","v":""},{"$f":"IF(DataLog!$C564=\"Log value\",DataLog!AL564,\"\")","v":""},{"$f":"IF(DataLog!$C564=\"Log value\",DataLog!AM564,\"\")","v":""}]
[null,null,null,null,null,null,{"$f":"IF(DataLog!$C565=\"Log value\",DataLog!D565&\"_\"&TEXT(DataLog!B565,\"åååå-mm-dd\"),\"\")","v":""},{"$f":"IF(DataLog!$C565=\"Log value\",DataLog!E565,\"\")","v":""},{"$f":"IF(DataLog!$C565=\"Log value\",DataLog!F565,\"\")","v":""},{"$f":"IF(DataLog!$C565=\"Log value\",DataLog!G565,\"\")","v":""},{"$f":"IF(DataLog!$C565=\"Log value\",DataLog!H565,\"\")","v":""},{"$f":"IF(DataLog!$C565=\"Log value\",DataLog!I565,\"\")","v":""},{"$f":"IF(DataLog!$C565=\"Log value\",DataLog!J565,\"\")","v":""},{"$f":"IF(DataLog!$C565=\"Log value\",DataLog!K565,\"\")","v":""},{"$f":"IF(DataLog!$C565=\"Log value\",DataLog!L565,\"\")","v":""},{"$f":"IF(DataLog!$C565=\"Log value\",DataLog!M565,\"\")","v":""},{"$f":"IF(DataLog!$C565=\"Log value\",DataLog!N565,\"\")","v":""},{"$f":"IF(DataLog!$C565=\"Log value\",DataLog!O565,\"\")","v":""},{"$f":"IF(DataLog!$C565=\"Log value\",DataLog!P565,\"\")","v":""},{"$f":"IF(DataLog!$C565=\"Log value\",DataLog!Q565,\"\")","v":""},{"$f":"IF(DataLog!$C565=\"Log value\",DataLog!R565,\"\")","v":""},{"$f":"IF(DataLog!$C565=\"Log value\",DataLog!S565,\"\")","v":""},{"$f":"IF(DataLog!$C565=\"Log value\",DataLog!T565,\"\")","v":""},{"$f":"IF(DataLog!$C565=\"Log value\",DataLog!U565,\"\")","v":""},{"$f":"IF(DataLog!$C565=\"Log value\",DataLog!V565,\"\")","v":""},{"$f":"IF(DataLog!$C565=\"Log value\",DataLog!W565,\"\")","v":""},{"$f":"IF(DataLog!$C565=\"Log value\",DataLog!X565,\"\")","v":""},{"$f":"IF(DataLog!$C565=\"Log value\",DataLog!Y565,\"\")","v":""},{"$f":"IF(DataLog!$C565=\"Log value\",DataLog!Z565,\"\")","v":""},{"$f":"IF(DataLog!$C565=\"Log value\",DataLog!AA565,\"\")","v":""},{"$f":"IF(DataLog!$C565=\"Log value\",DataLog!AB565,\"\")","v":""},{"$f":"IF(DataLog!$C565=\"Log value\",DataLog!AC565,\"\")","v":""},{"$f":"IF(DataLog!$C565=\"Log value\",DataLog!AD565,\"\")","v":""},{"$f":"IF(DataLog!$C565=\"Log value\",DataLog!AE565,\"\")","v":""},{"$f":"IF(DataLog!$C565=\"Log value\",DataLog!AF565,\"\")","v":""},{"$f":"IF(DataLog!$C565=\"Log value\",DataLog!AG565,\"\")","v":""},{"$f":"IF(DataLog!$C565=\"Log value\",DataLog!AH565,\"\")","v":""},{"$f":"IF(DataLog!$C565=\"Log value\",DataLog!AI565,\"\")","v":""},{"$f":"IF(DataLog!$C565=\"Log value\",DataLog!AJ565,\"\")","v":""},{"$f":"IF(DataLog!$C565=\"Log value\",DataLog!AK565,\"\")","v":""},{"$f":"IF(DataLog!$C565=\"Log value\",DataLog!AL565,\"\")","v":""},{"$f":"IF(DataLog!$C565=\"Log value\",DataLog!AM565,\"\")","v":""}]
[null,null,null,null,null,null,{"$f":"IF(DataLog!$C566=\"Log value\",DataLog!D566&\"_\"&TEXT(DataLog!B566,\"åååå-mm-dd\"),\"\")","v":""},{"$f":"IF(DataLog!$C566=\"Log value\",DataLog!E566,\"\")","v":""},{"$f":"IF(DataLog!$C566=\"Log value\",DataLog!F566,\"\")","v":""},{"$f":"IF(DataLog!$C566=\"Log value\",DataLog!G566,\"\")","v":""},{"$f":"IF(DataLog!$C566=\"Log value\",DataLog!H566,\"\")","v":""},{"$f":"IF(DataLog!$C566=\"Log value\",DataLog!I566,\"\")","v":""},{"$f":"IF(DataLog!$C566=\"Log value\",DataLog!J566,\"\")","v":""},{"$f":"IF(DataLog!$C566=\"Log value\",DataLog!K566,\"\")","v":""},{"$f":"IF(DataLog!$C566=\"Log value\",DataLog!L566,\"\")","v":""},{"$f":"IF(DataLog!$C566=\"Log value\",DataLog!M566,\"\")","v":""},{"$f":"IF(DataLog!$C566=\"Log value\",DataLog!N566,\"\")","v":""},{"$f":"IF(DataLog!$C566=\"Log value\",DataLog!O566,\"\")","v":""},{"$f":"IF(DataLog!$C566=\"Log value\",DataLog!P566,\"\")","v":""},{"$f":"IF(DataLog!$C566=\"Log value\",DataLog!Q566,\"\")","v":""},{"$f":"IF(DataLog!$C566=\"Log value\",DataLog!R566,\"\")","v":""},{"$f":"IF(DataLog!$C566=\"Log value\",DataLog!S566,\"\")","v":""},{"$f":"IF(DataLog!$C566=\"Log value\",DataLog!T566,\"\")","v":""},{"$f":"IF(DataLog!$C566=\"Log value\",DataLog!U566,\"\")","v":""},{"$f":"IF(DataLog!$C566=\"Log value\",DataLog!V566,\"\")","v":""},{"$f":"IF(DataLog!$C566=\"Log value\",DataLog!W566,\"\")","v":""},{"$f":"IF(DataLog!$C566=\"Log value\",DataLog!X566,\"\")","v":""},{"$f":"IF(DataLog!$C566=\"Log value\",DataLog!Y566,\"\")","v":""},{"$f":"IF(DataLog!$C566=\"Log value\",DataLog!Z566,\"\")","v":""},{"$f":"IF(DataLog!$C566=\"Log value\",DataLog!AA566,\"\")","v":""},{"$f":"IF(DataLog!$C566=\"Log value\",DataLog!AB566,\"\")","v":""},{"$f":"IF(DataLog!$C566=\"Log value\",DataLog!AC566,\"\")","v":""},{"$f":"IF(DataLog!$C566=\"Log value\",DataLog!AD566,\"\")","v":""},{"$f":"IF(DataLog!$C566=\"Log value\",DataLog!AE566,\"\")","v":""},{"$f":"IF(DataLog!$C566=\"Log value\",DataLog!AF566,\"\")","v":""},{"$f":"IF(DataLog!$C566=\"Log value\",DataLog!AG566,\"\")","v":""},{"$f":"IF(DataLog!$C566=\"Log value\",DataLog!AH566,\"\")","v":""},{"$f":"IF(DataLog!$C566=\"Log value\",DataLog!AI566,\"\")","v":""},{"$f":"IF(DataLog!$C566=\"Log value\",DataLog!AJ566,\"\")","v":""},{"$f":"IF(DataLog!$C566=\"Log value\",DataLog!AK566,\"\")","v":""},{"$f":"IF(DataLog!$C566=\"Log value\",DataLog!AL566,\"\")","v":""},{"$f":"IF(DataLog!$C566=\"Log value\",DataLog!AM566,\"\")","v":""}]
[null,null,null,null,null,null,{"$f":"IF(DataLog!$C567=\"Log value\",DataLog!D567&\"_\"&TEXT(DataLog!B567,\"åååå-mm-dd\"),\"\")","v":""},{"$f":"IF(DataLog!$C567=\"Log value\",DataLog!E567,\"\")","v":""},{"$f":"IF(DataLog!$C567=\"Log value\",DataLog!F567,\"\")","v":""},{"$f":"IF(DataLog!$C567=\"Log value\",DataLog!G567,\"\")","v":""},{"$f":"IF(DataLog!$C567=\"Log value\",DataLog!H567,\"\")","v":""},{"$f":"IF(DataLog!$C567=\"Log value\",DataLog!I567,\"\")","v":""},{"$f":"IF(DataLog!$C567=\"Log value\",DataLog!J567,\"\")","v":""},{"$f":"IF(DataLog!$C567=\"Log value\",DataLog!K567,\"\")","v":""},{"$f":"IF(DataLog!$C567=\"Log value\",DataLog!L567,\"\")","v":""},{"$f":"IF(DataLog!$C567=\"Log value\",DataLog!M567,\"\")","v":""},{"$f":"IF(DataLog!$C567=\"Log value\",DataLog!N567,\"\")","v":""},{"$f":"IF(DataLog!$C567=\"Log value\",DataLog!O567,\"\")","v":""},{"$f":"IF(DataLog!$C567=\"Log value\",DataLog!P567,\"\")","v":""},{"$f":"IF(DataLog!$C567=\"Log value\",DataLog!Q567,\"\")","v":""},{"$f":"IF(DataLog!$C567=\"Log value\",DataLog!R567,\"\")","v":""},{"$f":"IF(DataLog!$C567=\"Log value\",DataLog!S567,\"\")","v":""},{"$f":"IF(DataLog!$C567=\"Log value\",DataLog!T567,\"\")","v":""},{"$f":"IF(DataLog!$C567=\"Log value\",DataLog!U567,\"\")","v":""},{"$f":"IF(DataLog!$C567=\"Log value\",DataLog!V567,\"\")","v":""},{"$f":"IF(DataLog!$C567=\"Log value\",DataLog!W567,\"\")","v":""},{"$f":"IF(DataLog!$C567=\"Log value\",DataLog!X567,\"\")","v":""},{"$f":"IF(DataLog!$C567=\"Log value\",DataLog!Y567,\"\")","v":""},{"$f":"IF(DataLog!$C567=\"Log value\",DataLog!Z567,\"\")","v":""},{"$f":"IF(DataLog!$C567=\"Log value\",DataLog!AA567,\"\")","v":""},{"$f":"IF(DataLog!$C567=\"Log value\",DataLog!AB567,\"\")","v":""},{"$f":"IF(DataLog!$C567=\"Log value\",DataLog!AC567,\"\")","v":""},{"$f":"IF(DataLog!$C567=\"Log value\",DataLog!AD567,\"\")","v":""},{"$f":"IF(DataLog!$C567=\"Log value\",DataLog!AE567,\"\")","v":""},{"$f":"IF(DataLog!$C567=\"Log value\",DataLog!AF567,\"\")","v":""},{"$f":"IF(DataLog!$C567=\"Log value\",DataLog!AG567,\"\")","v":""},{"$f":"IF(DataLog!$C567=\"Log value\",DataLog!AH567,\"\")","v":""},{"$f":"IF(DataLog!$C567=\"Log value\",DataLog!AI567,\"\")","v":""},{"$f":"IF(DataLog!$C567=\"Log value\",DataLog!AJ567,\"\")","v":""},{"$f":"IF(DataLog!$C567=\"Log value\",DataLog!AK567,\"\")","v":""},{"$f":"IF(DataLog!$C567=\"Log value\",DataLog!AL567,\"\")","v":""},{"$f":"IF(DataLog!$C567=\"Log value\",DataLog!AM567,\"\")","v":""}]
[null,null,null,null,null,null,{"$f":"IF(DataLog!$C568=\"Log value\",DataLog!D568&\"_\"&TEXT(DataLog!B568,\"åååå-mm-dd\"),\"\")","v":""},{"$f":"IF(DataLog!$C568=\"Log value\",DataLog!E568,\"\")","v":""},{"$f":"IF(DataLog!$C568=\"Log value\",DataLog!F568,\"\")","v":""},{"$f":"IF(DataLog!$C568=\"Log value\",DataLog!G568,\"\")","v":""},{"$f":"IF(DataLog!$C568=\"Log value\",DataLog!H568,\"\")","v":""},{"$f":"IF(DataLog!$C568=\"Log value\",DataLog!I568,\"\")","v":""},{"$f":"IF(DataLog!$C568=\"Log value\",DataLog!J568,\"\")","v":""},{"$f":"IF(DataLog!$C568=\"Log value\",DataLog!K568,\"\")","v":""},{"$f":"IF(DataLog!$C568=\"Log value\",DataLog!L568,\"\")","v":""},{"$f":"IF(DataLog!$C568=\"Log value\",DataLog!M568,\"\")","v":""},{"$f":"IF(DataLog!$C568=\"Log value\",DataLog!N568,\"\")","v":""},{"$f":"IF(DataLog!$C568=\"Log value\",DataLog!O568,\"\")","v":""},{"$f":"IF(DataLog!$C568=\"Log value\",DataLog!P568,\"\")","v":""},{"$f":"IF(DataLog!$C568=\"Log value\",DataLog!Q568,\"\")","v":""},{"$f":"IF(DataLog!$C568=\"Log value\",DataLog!R568,\"\")","v":""},{"$f":"IF(DataLog!$C568=\"Log value\",DataLog!S568,\"\")","v":""},{"$f":"IF(DataLog!$C568=\"Log value\",DataLog!T568,\"\")","v":""},{"$f":"IF(DataLog!$C568=\"Log value\",DataLog!U568,\"\")","v":""},{"$f":"IF(DataLog!$C568=\"Log value\",DataLog!V568,\"\")","v":""},{"$f":"IF(DataLog!$C568=\"Log value\",DataLog!W568,\"\")","v":""},{"$f":"IF(DataLog!$C568=\"Log value\",DataLog!X568,\"\")","v":""},{"$f":"IF(DataLog!$C568=\"Log value\",DataLog!Y568,\"\")","v":""},{"$f":"IF(DataLog!$C568=\"Log value\",DataLog!Z568,\"\")","v":""},{"$f":"IF(DataLog!$C568=\"Log value\",DataLog!AA568,\"\")","v":""},{"$f":"IF(DataLog!$C568=\"Log value\",DataLog!AB568,\"\")","v":""},{"$f":"IF(DataLog!$C568=\"Log value\",DataLog!AC568,\"\")","v":""},{"$f":"IF(DataLog!$C568=\"Log value\",DataLog!AD568,\"\")","v":""},{"$f":"IF(DataLog!$C568=\"Log value\",DataLog!AE568,\"\")","v":""},{"$f":"IF(DataLog!$C568=\"Log value\",DataLog!AF568,\"\")","v":""},{"$f":"IF(DataLog!$C568=\"Log value\",DataLog!AG568,\"\")","v":""},{"$f":"IF(DataLog!$C568=\"Log value\",DataLog!AH568,\"\")","v":""},{"$f":"IF(DataLog!$C568=\"Log value\",DataLog!AI568,\"\")","v":""},{"$f":"IF(DataLog!$C568=\"Log value\",DataLog!AJ568,\"\")","v":""},{"$f":"IF(DataLog!$C568=\"Log value\",DataLog!AK568,\"\")","v":""},{"$f":"IF(DataLog!$C568=\"Log value\",DataLog!AL568,\"\")","v":""},{"$f":"IF(DataLog!$C568=\"Log value\",DataLog!AM568,\"\")","v":""}]
[null,null,null,null,null,null,{"$f":"IF(DataLog!$C569=\"Log value\",DataLog!D569&\"_\"&TEXT(DataLog!B569,\"åååå-mm-dd\"),\"\")","v":""},{"$f":"IF(DataLog!$C569=\"Log value\",DataLog!E569,\"\")","v":""},{"$f":"IF(DataLog!$C569=\"Log value\",DataLog!F569,\"\")","v":""},{"$f":"IF(DataLog!$C569=\"Log value\",DataLog!G569,\"\")","v":""},{"$f":"IF(DataLog!$C569=\"Log value\",DataLog!H569,\"\")","v":""},{"$f":"IF(DataLog!$C569=\"Log value\",DataLog!I569,\"\")","v":""},{"$f":"IF(DataLog!$C569=\"Log value\",DataLog!J569,\"\")","v":""},{"$f":"IF(DataLog!$C569=\"Log value\",DataLog!K569,\"\")","v":""},{"$f":"IF(DataLog!$C569=\"Log value\",DataLog!L569,\"\")","v":""},{"$f":"IF(DataLog!$C569=\"Log value\",DataLog!M569,\"\")","v":""},{"$f":"IF(DataLog!$C569=\"Log value\",DataLog!N569,\"\")","v":""},{"$f":"IF(DataLog!$C569=\"Log value\",DataLog!O569,\"\")","v":""},{"$f":"IF(DataLog!$C569=\"Log value\",DataLog!P569,\"\")","v":""},{"$f":"IF(DataLog!$C569=\"Log value\",DataLog!Q569,\"\")","v":""},{"$f":"IF(DataLog!$C569=\"Log value\",DataLog!R569,\"\")","v":""},{"$f":"IF(DataLog!$C569=\"Log value\",DataLog!S569,\"\")","v":""},{"$f":"IF(DataLog!$C569=\"Log value\",DataLog!T569,\"\")","v":""},{"$f":"IF(DataLog!$C569=\"Log value\",DataLog!U569,\"\")","v":""},{"$f":"IF(DataLog!$C569=\"Log value\",DataLog!V569,\"\")","v":""},{"$f":"IF(DataLog!$C569=\"Log value\",DataLog!W569,\"\")","v":""},{"$f":"IF(DataLog!$C569=\"Log value\",DataLog!X569,\"\")","v":""},{"$f":"IF(DataLog!$C569=\"Log value\",DataLog!Y569,\"\")","v":""},{"$f":"IF(DataLog!$C569=\"Log value\",DataLog!Z569,\"\")","v":""},{"$f":"IF(DataLog!$C569=\"Log value\",DataLog!AA569,\"\")","v":""},{"$f":"IF(DataLog!$C569=\"Log value\",DataLog!AB569,\"\")","v":""},{"$f":"IF(DataLog!$C569=\"Log value\",DataLog!AC569,\"\")","v":""},{"$f":"IF(DataLog!$C569=\"Log value\",DataLog!AD569,\"\")","v":""},{"$f":"IF(DataLog!$C569=\"Log value\",DataLog!AE569,\"\")","v":""},{"$f":"IF(DataLog!$C569=\"Log value\",DataLog!AF569,\"\")","v":""},{"$f":"IF(DataLog!$C569=\"Log value\",DataLog!AG569,\"\")","v":""},{"$f":"IF(DataLog!$C569=\"Log value\",DataLog!AH569,\"\")","v":""},{"$f":"IF(DataLog!$C569=\"Log value\",DataLog!AI569,\"\")","v":""},{"$f":"IF(DataLog!$C569=\"Log value\",DataLog!AJ569,\"\")","v":""},{"$f":"IF(DataLog!$C569=\"Log value\",DataLog!AK569,\"\")","v":""},{"$f":"IF(DataLog!$C569=\"Log value\",DataLog!AL569,\"\")","v":""},{"$f":"IF(DataLog!$C569=\"Log value\",DataLog!AM569,\"\")","v":""}]
[null,null,null,null,null,null,{"$f":"IF(DataLog!$C570=\"Log value\",DataLog!D570&\"_\"&TEXT(DataLog!B570,\"åååå-mm-dd\"),\"\")","v":""},{"$f":"IF(DataLog!$C570=\"Log value\",DataLog!E570,\"\")","v":""},{"$f":"IF(DataLog!$C570=\"Log value\",DataLog!F570,\"\")","v":""},{"$f":"IF(DataLog!$C570=\"Log value\",DataLog!G570,\"\")","v":""},{"$f":"IF(DataLog!$C570=\"Log value\",DataLog!H570,\"\")","v":""},{"$f":"IF(DataLog!$C570=\"Log value\",DataLog!I570,\"\")","v":""},{"$f":"IF(DataLog!$C570=\"Log value\",DataLog!J570,\"\")","v":""},{"$f":"IF(DataLog!$C570=\"Log value\",DataLog!K570,\"\")","v":""},{"$f":"IF(DataLog!$C570=\"Log value\",DataLog!L570,\"\")","v":""},{"$f":"IF(DataLog!$C570=\"Log value\",DataLog!M570,\"\")","v":""},{"$f":"IF(DataLog!$C570=\"Log value\",DataLog!N570,\"\")","v":""},{"$f":"IF(DataLog!$C570=\"Log value\",DataLog!O570,\"\")","v":""},{"$f":"IF(DataLog!$C570=\"Log value\",DataLog!P570,\"\")","v":""},{"$f":"IF(DataLog!$C570=\"Log value\",DataLog!Q570,\"\")","v":""},{"$f":"IF(DataLog!$C570=\"Log value\",DataLog!R570,\"\")","v":""},{"$f":"IF(DataLog!$C570=\"Log value\",DataLog!S570,\"\")","v":""},{"$f":"IF(DataLog!$C570=\"Log value\",DataLog!T570,\"\")","v":""},{"$f":"IF(DataLog!$C570=\"Log value\",DataLog!U570,\"\")","v":""},{"$f":"IF(DataLog!$C570=\"Log value\",DataLog!V570,\"\")","v":""},{"$f":"IF(DataLog!$C570=\"Log value\",DataLog!W570,\"\")","v":""},{"$f":"IF(DataLog!$C570=\"Log value\",DataLog!X570,\"\")","v":""},{"$f":"IF(DataLog!$C570=\"Log value\",DataLog!Y570,\"\")","v":""},{"$f":"IF(DataLog!$C570=\"Log value\",DataLog!Z570,\"\")","v":""},{"$f":"IF(DataLog!$C570=\"Log value\",DataLog!AA570,\"\")","v":""},{"$f":"IF(DataLog!$C570=\"Log value\",DataLog!AB570,\"\")","v":""},{"$f":"IF(DataLog!$C570=\"Log value\",DataLog!AC570,\"\")","v":""},{"$f":"IF(DataLog!$C570=\"Log value\",DataLog!AD570,\"\")","v":""},{"$f":"IF(DataLog!$C570=\"Log value\",DataLog!AE570,\"\")","v":""},{"$f":"IF(DataLog!$C570=\"Log value\",DataLog!AF570,\"\")","v":""},{"$f":"IF(DataLog!$C570=\"Log value\",DataLog!AG570,\"\")","v":""},{"$f":"IF(DataLog!$C570=\"Log value\",DataLog!AH570,\"\")","v":""},{"$f":"IF(DataLog!$C570=\"Log value\",DataLog!AI570,\"\")","v":""},{"$f":"IF(DataLog!$C570=\"Log value\",DataLog!AJ570,\"\")","v":""},{"$f":"IF(DataLog!$C570=\"Log value\",DataLog!AK570,\"\")","v":""},{"$f":"IF(DataLog!$C570=\"Log value\",DataLog!AL570,\"\")","v":""},{"$f":"IF(DataLog!$C570=\"Log value\",DataLog!AM570,\"\")","v":""}]
[null,null,null,null,null,null,{"$f":"IF(DataLog!$C571=\"Log value\",DataLog!D571&\"_\"&TEXT(DataLog!B571,\"åååå-mm-dd\"),\"\")","v":""},{"$f":"IF(DataLog!$C571=\"Log value\",DataLog!E571,\"\")","v":""},{"$f":"IF(DataLog!$C571=\"Log value\",DataLog!F571,\"\")","v":""},{"$f":"IF(DataLog!$C571=\"Log value\",DataLog!G571,\"\")","v":""},{"$f":"IF(DataLog!$C571=\"Log value\",DataLog!H571,\"\")","v":""},{"$f":"IF(DataLog!$C571=\"Log value\",DataLog!I571,\"\")","v":""},{"$f":"IF(DataLog!$C571=\"Log value\",DataLog!J571,\"\")","v":""},{"$f":"IF(DataLog!$C571=\"Log value\",DataLog!K571,\"\")","v":""},{"$f":"IF(DataLog!$C571=\"Log value\",DataLog!L571,\"\")","v":""},{"$f":"IF(DataLog!$C571=\"Log value\",DataLog!M571,\"\")","v":""},{"$f":"IF(DataLog!$C571=\"Log value\",DataLog!N571,\"\")","v":""},{"$f":"IF(DataLog!$C571=\"Log value\",DataLog!O571,\"\")","v":""},{"$f":"IF(DataLog!$C571=\"Log value\",DataLog!P571,\"\")","v":""},{"$f":"IF(DataLog!$C571=\"Log value\",DataLog!Q571,\"\")","v":""},{"$f":"IF(DataLog!$C571=\"Log value\",DataLog!R571,\"\")","v":""},{"$f":"IF(DataLog!$C571=\"Log value\",DataLog!S571,\"\")","v":""},{"$f":"IF(DataLog!$C571=\"Log value\",DataLog!T571,\"\")","v":""},{"$f":"IF(DataLog!$C571=\"Log value\",DataLog!U571,\"\")","v":""},{"$f":"IF(DataLog!$C571=\"Log value\",DataLog!V571,\"\")","v":""},{"$f":"IF(DataLog!$C571=\"Log value\",DataLog!W571,\"\")","v":""},{"$f":"IF(DataLog!$C571=\"Log value\",DataLog!X571,\"\")","v":""},{"$f":"IF(DataLog!$C571=\"Log value\",DataLog!Y571,\"\")","v":""},{"$f":"IF(DataLog!$C571=\"Log value\",DataLog!Z571,\"\")","v":""},{"$f":"IF(DataLog!$C571=\"Log value\",DataLog!AA571,\"\")","v":""},{"$f":"IF(DataLog!$C571=\"Log value\",DataLog!AB571,\"\")","v":""},{"$f":"IF(DataLog!$C571=\"Log value\",DataLog!AC571,\"\")","v":""},{"$f":"IF(DataLog!$C571=\"Log value\",DataLog!AD571,\"\")","v":""},{"$f":"IF(DataLog!$C571=\"Log value\",DataLog!AE571,\"\")","v":""},{"$f":"IF(DataLog!$C571=\"Log value\",DataLog!AF571,\"\")","v":""},{"$f":"IF(DataLog!$C571=\"Log value\",DataLog!AG571,\"\")","v":""},{"$f":"IF(DataLog!$C571=\"Log value\",DataLog!AH571,\"\")","v":""},{"$f":"IF(DataLog!$C571=\"Log value\",DataLog!AI571,\"\")","v":""},{"$f":"IF(DataLog!$C571=\"Log value\",DataLog!AJ571,\"\")","v":""},{"$f":"IF(DataLog!$C571=\"Log value\",DataLog!AK571,\"\")","v":""},{"$f":"IF(DataLog!$C571=\"Log value\",DataLog!AL571,\"\")","v":""},{"$f":"IF(DataLog!$C571=\"Log value\",DataLog!AM571,\"\")","v":""}]
[null,null,null,null,null,null,{"$f":"IF(DataLog!$C572=\"Log value\",DataLog!D572&\"_\"&TEXT(DataLog!B572,\"åååå-mm-dd\"),\"\")","v":""},{"$f":"IF(DataLog!$C572=\"Log value\",DataLog!E572,\"\")","v":""},{"$f":"IF(DataLog!$C572=\"Log value\",DataLog!F572,\"\")","v":""},{"$f":"IF(DataLog!$C572=\"Log value\",DataLog!G572,\"\")","v":""},{"$f":"IF(DataLog!$C572=\"Log value\",DataLog!H572,\"\")","v":""},{"$f":"IF(DataLog!$C572=\"Log value\",DataLog!I572,\"\")","v":""},{"$f":"IF(DataLog!$C572=\"Log value\",DataLog!J572,\"\")","v":""},{"$f":"IF(DataLog!$C572=\"Log value\",DataLog!K572,\"\")","v":""},{"$f":"IF(DataLog!$C572=\"Log value\",DataLog!L572,\"\")","v":""},{"$f":"IF(DataLog!$C572=\"Log value\",DataLog!M572,\"\")","v":""},{"$f":"IF(DataLog!$C572=\"Log value\",DataLog!N572,\"\")","v":""},{"$f":"IF(DataLog!$C572=\"Log value\",DataLog!O572,\"\")","v":""},{"$f":"IF(DataLog!$C572=\"Log value\",DataLog!P572,\"\")","v":""},{"$f":"IF(DataLog!$C572=\"Log value\",DataLog!Q572,\"\")","v":""},{"$f":"IF(DataLog!$C572=\"Log value\",DataLog!R572,\"\")","v":""},{"$f":"IF(DataLog!$C572=\"Log value\",DataLog!S572,\"\")","v":""},{"$f":"IF(DataLog!$C572=\"Log value\",DataLog!T572,\"\")","v":""},{"$f":"IF(DataLog!$C572=\"Log value\",DataLog!U572,\"\")","v":""},{"$f":"IF(DataLog!$C572=\"Log value\",DataLog!V572,\"\")","v":""},{"$f":"IF(DataLog!$C572=\"Log value\",DataLog!W572,\"\")","v":""},{"$f":"IF(DataLog!$C572=\"Log value\",DataLog!X572,\"\")","v":""},{"$f":"IF(DataLog!$C572=\"Log value\",DataLog!Y572,\"\")","v":""},{"$f":"IF(DataLog!$C572=\"Log value\",DataLog!Z572,\"\")","v":""},{"$f":"IF(DataLog!$C572=\"Log value\",DataLog!AA572,\"\")","v":""},{"$f":"IF(DataLog!$C572=\"Log value\",DataLog!AB572,\"\")","v":""},{"$f":"IF(DataLog!$C572=\"Log value\",DataLog!AC572,\"\")","v":""},{"$f":"IF(DataLog!$C572=\"Log value\",DataLog!AD572,\"\")","v":""},{"$f":"IF(DataLog!$C572=\"Log value\",DataLog!AE572,\"\")","v":""},{"$f":"IF(DataLog!$C572=\"Log value\",DataLog!AF572,\"\")","v":""},{"$f":"IF(DataLog!$C572=\"Log value\",DataLog!AG572,\"\")","v":""},{"$f":"IF(DataLog!$C572=\"Log value\",DataLog!AH572,\"\")","v":""},{"$f":"IF(DataLog!$C572=\"Log value\",DataLog!AI572,\"\")","v":""},{"$f":"IF(DataLog!$C572=\"Log value\",DataLog!AJ572,\"\")","v":""},{"$f":"IF(DataLog!$C572=\"Log value\",DataLog!AK572,\"\")","v":""},{"$f":"IF(DataLog!$C572=\"Log value\",DataLog!AL572,\"\")","v":""},{"$f":"IF(DataLog!$C572=\"Log value\",DataLog!AM572,\"\")","v":""}]
[null,null,null,null,null,null,{"$f":"IF(DataLog!$C573=\"Log value\",DataLog!D573&\"_\"&TEXT(DataLog!B573,\"åååå-mm-dd\"),\"\")","v":""},{"$f":"IF(DataLog!$C573=\"Log value\",DataLog!E573,\"\")","v":""},{"$f":"IF(DataLog!$C573=\"Log value\",DataLog!F573,\"\")","v":""},{"$f":"IF(DataLog!$C573=\"Log value\",DataLog!G573,\"\")","v":""},{"$f":"IF(DataLog!$C573=\"Log value\",DataLog!H573,\"\")","v":""},{"$f":"IF(DataLog!$C573=\"Log value\",DataLog!I573,\"\")","v":""},{"$f":"IF(DataLog!$C573=\"Log value\",DataLog!J573,\"\")","v":""},{"$f":"IF(DataLog!$C573=\"Log value\",DataLog!K573,\"\")","v":""},{"$f":"IF(DataLog!$C573=\"Log value\",DataLog!L573,\"\")","v":""},{"$f":"IF(DataLog!$C573=\"Log value\",DataLog!M573,\"\")","v":""},{"$f":"IF(DataLog!$C573=\"Log value\",DataLog!N573,\"\")","v":""},{"$f":"IF(DataLog!$C573=\"Log value\",DataLog!O573,\"\")","v":""},{"$f":"IF(DataLog!$C573=\"Log value\",DataLog!P573,\"\")","v":""},{"$f":"IF(DataLog!$C573=\"Log value\",DataLog!Q573,\"\")","v":""},{"$f":"IF(DataLog!$C573=\"Log value\",DataLog!R573,\"\")","v":""},{"$f":"IF(DataLog!$C573=\"Log value\",DataLog!S573,\"\")","v":""},{"$f":"IF(DataLog!$C573=\"Log value\",DataLog!T573,\"\")","v":""},{"$f":"IF(DataLog!$C573=\"Log value\",DataLog!U573,\"\")","v":""},{"$f":"IF(DataLog!$C573=\"Log value\",DataLog!V573,\"\")","v":""},{"$f":"IF(DataLog!$C573=\"Log value\",DataLog!W573,\"\")","v":""},{"$f":"IF(DataLog!$C573=\"Log value\",DataLog!X573,\"\")","v":""},{"$f":"IF(DataLog!$C573=\"Log value\",DataLog!Y573,\"\")","v":""},{"$f":"IF(DataLog!$C573=\"Log value\",DataLog!Z573,\"\")","v":""},{"$f":"IF(DataLog!$C573=\"Log value\",DataLog!AA573,\"\")","v":""},{"$f":"IF(DataLog!$C573=\"Log value\",DataLog!AB573,\"\")","v":""},{"$f":"IF(DataLog!$C573=\"Log value\",DataLog!AC573,\"\")","v":""},{"$f":"IF(DataLog!$C573=\"Log value\",DataLog!AD573,\"\")","v":""},{"$f":"IF(DataLog!$C573=\"Log value\",DataLog!AE573,\"\")","v":""},{"$f":"IF(DataLog!$C573=\"Log value\",DataLog!AF573,\"\")","v":""},{"$f":"IF(DataLog!$C573=\"Log value\",DataLog!AG573,\"\")","v":""},{"$f":"IF(DataLog!$C573=\"Log value\",DataLog!AH573,\"\")","v":""},{"$f":"IF(DataLog!$C573=\"Log value\",DataLog!AI573,\"\")","v":""},{"$f":"IF(DataLog!$C573=\"Log value\",DataLog!AJ573,\"\")","v":""},{"$f":"IF(DataLog!$C573=\"Log value\",DataLog!AK573,\"\")","v":""},{"$f":"IF(DataLog!$C573=\"Log value\",DataLog!AL573,\"\")","v":""},{"$f":"IF(DataLog!$C573=\"Log value\",DataLog!AM573,\"\")","v":""}]
[null,null,null,null,null,null,{"$f":"IF(DataLog!$C574=\"Log value\",DataLog!D574&\"_\"&TEXT(DataLog!B574,\"åååå-mm-dd\"),\"\")","v":""},{"$f":"IF(DataLog!$C574=\"Log value\",DataLog!E574,\"\")","v":""},{"$f":"IF(DataLog!$C574=\"Log value\",DataLog!F574,\"\")","v":""},{"$f":"IF(DataLog!$C574=\"Log value\",DataLog!G574,\"\")","v":""},{"$f":"IF(DataLog!$C574=\"Log value\",DataLog!H574,\"\")","v":""},{"$f":"IF(DataLog!$C574=\"Log value\",DataLog!I574,\"\")","v":""},{"$f":"IF(DataLog!$C574=\"Log value\",DataLog!J574,\"\")","v":""},{"$f":"IF(DataLog!$C574=\"Log value\",DataLog!K574,\"\")","v":""},{"$f":"IF(DataLog!$C574=\"Log value\",DataLog!L574,\"\")","v":""},{"$f":"IF(DataLog!$C574=\"Log value\",DataLog!M574,\"\")","v":""},{"$f":"IF(DataLog!$C574=\"Log value\",DataLog!N574,\"\")","v":""},{"$f":"IF(DataLog!$C574=\"Log value\",DataLog!O574,\"\")","v":""},{"$f":"IF(DataLog!$C574=\"Log value\",DataLog!P574,\"\")","v":""},{"$f":"IF(DataLog!$C574=\"Log value\",DataLog!Q574,\"\")","v":""},{"$f":"IF(DataLog!$C574=\"Log value\",DataLog!R574,\"\")","v":""},{"$f":"IF(DataLog!$C574=\"Log value\",DataLog!S574,\"\")","v":""},{"$f":"IF(DataLog!$C574=\"Log value\",DataLog!T574,\"\")","v":""},{"$f":"IF(DataLog!$C574=\"Log value\",DataLog!U574,\"\")","v":""},{"$f":"IF(DataLog!$C574=\"Log value\",DataLog!V574,\"\")","v":""},{"$f":"IF(DataLog!$C574=\"Log value\",DataLog!W574,\"\")","v":""},{"$f":"IF(DataLog!$C574=\"Log value\",DataLog!X574,\"\")","v":""},{"$f":"IF(DataLog!$C574=\"Log value\",DataLog!Y574,\"\")","v":""},{"$f":"IF(DataLog!$C574=\"Log value\",DataLog!Z574,\"\")","v":""},{"$f":"IF(DataLog!$C574=\"Log value\",DataLog!AA574,\"\")","v":""},{"$f":"IF(DataLog!$C574=\"Log value\",DataLog!AB574,\"\")","v":""},{"$f":"IF(DataLog!$C574=\"Log value\",DataLog!AC574,\"\")","v":""},{"$f":"IF(DataLog!$C574=\"Log value\",DataLog!AD574,\"\")","v":""},{"$f":"IF(DataLog!$C574=\"Log value\",DataLog!AE574,\"\")","v":""},{"$f":"IF(DataLog!$C574=\"Log value\",DataLog!AF574,\"\")","v":""},{"$f":"IF(DataLog!$C574=\"Log value\",DataLog!AG574,\"\")","v":""},{"$f":"IF(DataLog!$C574=\"Log value\",DataLog!AH574,\"\")","v":""},{"$f":"IF(DataLog!$C574=\"Log value\",DataLog!AI574,\"\")","v":""},{"$f":"IF(DataLog!$C574=\"Log value\",DataLog!AJ574,\"\")","v":""},{"$f":"IF(DataLog!$C574=\"Log value\",DataLog!AK574,\"\")","v":""},{"$f":"IF(DataLog!$C574=\"Log value\",DataLog!AL574,\"\")","v":""},{"$f":"IF(DataLog!$C574=\"Log value\",DataLog!AM574,\"\")","v":""}]
[null,null,null,null,null,null,{"$f":"IF(DataLog!$C575=\"Log value\",DataLog!D575&\"_\"&TEXT(DataLog!B575,\"åååå-mm-dd\"),\"\")","v":""},{"$f":"IF(DataLog!$C575=\"Log value\",DataLog!E575,\"\")","v":""},{"$f":"IF(DataLog!$C575=\"Log value\",DataLog!F575,\"\")","v":""},{"$f":"IF(DataLog!$C575=\"Log value\",DataLog!G575,\"\")","v":""},{"$f":"IF(DataLog!$C575=\"Log value\",DataLog!H575,\"\")","v":""},{"$f":"IF(DataLog!$C575=\"Log value\",DataLog!I575,\"\")","v":""},{"$f":"IF(DataLog!$C575=\"Log value\",DataLog!J575,\"\")","v":""},{"$f":"IF(DataLog!$C575=\"Log value\",DataLog!K575,\"\")","v":""},{"$f":"IF(DataLog!$C575=\"Log value\",DataLog!L575,\"\")","v":""},{"$f":"IF(DataLog!$C575=\"Log value\",DataLog!M575,\"\")","v":""},{"$f":"IF(DataLog!$C575=\"Log value\",DataLog!N575,\"\")","v":""},{"$f":"IF(DataLog!$C575=\"Log value\",DataLog!O575,\"\")","v":""},{"$f":"IF(DataLog!$C575=\"Log value\",DataLog!P575,\"\")","v":""},{"$f":"IF(DataLog!$C575=\"Log value\",DataLog!Q575,\"\")","v":""},{"$f":"IF(DataLog!$C575=\"Log value\",DataLog!R575,\"\")","v":""},{"$f":"IF(DataLog!$C575=\"Log value\",DataLog!S575,\"\")","v":""},{"$f":"IF(DataLog!$C575=\"Log value\",DataLog!T575,\"\")","v":""},{"$f":"IF(DataLog!$C575=\"Log value\",DataLog!U575,\"\")","v":""},{"$f":"IF(DataLog!$C575=\"Log value\",DataLog!V575,\"\")","v":""},{"$f":"IF(DataLog!$C575=\"Log value\",DataLog!W575,\"\")","v":""},{"$f":"IF(DataLog!$C575=\"Log value\",DataLog!X575,\"\")","v":""},{"$f":"IF(DataLog!$C575=\"Log value\",DataLog!Y575,\"\")","v":""},{"$f":"IF(DataLog!$C575=\"Log value\",DataLog!Z575,\"\")","v":""},{"$f":"IF(DataLog!$C575=\"Log value\",DataLog!AA575,\"\")","v":""},{"$f":"IF(DataLog!$C575=\"Log value\",DataLog!AB575,\"\")","v":""},{"$f":"IF(DataLog!$C575=\"Log value\",DataLog!AC575,\"\")","v":""},{"$f":"IF(DataLog!$C575=\"Log value\",DataLog!AD575,\"\")","v":""},{"$f":"IF(DataLog!$C575=\"Log value\",DataLog!AE575,\"\")","v":""},{"$f":"IF(DataLog!$C575=\"Log value\",DataLog!AF575,\"\")","v":""},{"$f":"IF(DataLog!$C575=\"Log value\",DataLog!AG575,\"\")","v":""},{"$f":"IF(DataLog!$C575=\"Log value\",DataLog!AH575,\"\")","v":""},{"$f":"IF(DataLog!$C575=\"Log value\",DataLog!AI575,\"\")","v":""},{"$f":"IF(DataLog!$C575=\"Log value\",DataLog!AJ575,\"\")","v":""},{"$f":"IF(DataLog!$C575=\"Log value\",DataLog!AK575,\"\")","v":""},{"$f":"IF(DataLog!$C575=\"Log value\",DataLog!AL575,\"\")","v":""},{"$f":"IF(DataLog!$C575=\"Log value\",DataLog!AM575,\"\")","v":""}]
[null,null,null,null,null,null,{"$f":"IF(DataLog!$C576=\"Log value\",DataLog!D576&\"_\"&TEXT(DataLog!B576,\"åååå-mm-dd\"),\"\")","v":""},{"$f":"IF(DataLog!$C576=\"Log value\",DataLog!E576,\"\")","v":""},{"$f":"IF(DataLog!$C576=\"Log value\",DataLog!F576,\"\")","v":""},{"$f":"IF(DataLog!$C576=\"Log value\",DataLog!G576,\"\")","v":""},{"$f":"IF(DataLog!$C576=\"Log value\",DataLog!H576,\"\")","v":""},{"$f":"IF(DataLog!$C576=\"Log value\",DataLog!I576,\"\")","v":""},{"$f":"IF(DataLog!$C576=\"Log value\",DataLog!J576,\"\")","v":""},{"$f":"IF(DataLog!$C576=\"Log value\",DataLog!K576,\"\")","v":""},{"$f":"IF(DataLog!$C576=\"Log value\",DataLog!L576,\"\")","v":""},{"$f":"IF(DataLog!$C576=\"Log value\",DataLog!M576,\"\")","v":""},{"$f":"IF(DataLog!$C576=\"Log value\",DataLog!N576,\"\")","v":""},{"$f":"IF(DataLog!$C576=\"Log value\",DataLog!O576,\"\")","v":""},{"$f":"IF(DataLog!$C576=\"Log value\",DataLog!P576,\"\")","v":""},{"$f":"IF(DataLog!$C576=\"Log value\",DataLog!Q576,\"\")","v":""},{"$f":"IF(DataLog!$C576=\"Log value\",DataLog!R576,\"\")","v":""},{"$f":"IF(DataLog!$C576=\"Log value\",DataLog!S576,\"\")","v":""},{"$f":"IF(DataLog!$C576=\"Log value\",DataLog!T576,\"\")","v":""},{"$f":"IF(DataLog!$C576=\"Log value\",DataLog!U576,\"\")","v":""},{"$f":"IF(DataLog!$C576=\"Log value\",DataLog!V576,\"\")","v":""},{"$f":"IF(DataLog!$C576=\"Log value\",DataLog!W576,\"\")","v":""},{"$f":"IF(DataLog!$C576=\"Log value\",DataLog!X576,\"\")","v":""},{"$f":"IF(DataLog!$C576=\"Log value\",DataLog!Y576,\"\")","v":""},{"$f":"IF(DataLog!$C576=\"Log value\",DataLog!Z576,\"\")","v":""},{"$f":"IF(DataLog!$C576=\"Log value\",DataLog!AA576,\"\")","v":""},{"$f":"IF(DataLog!$C576=\"Log value\",DataLog!AB576,\"\")","v":""},{"$f":"IF(DataLog!$C576=\"Log value\",DataLog!AC576,\"\")","v":""},{"$f":"IF(DataLog!$C576=\"Log value\",DataLog!AD576,\"\")","v":""},{"$f":"IF(DataLog!$C576=\"Log value\",DataLog!AE576,\"\")","v":""},{"$f":"IF(DataLog!$C576=\"Log value\",DataLog!AF576,\"\")","v":""},{"$f":"IF(DataLog!$C576=\"Log value\",DataLog!AG576,\"\")","v":""},{"$f":"IF(DataLog!$C576=\"Log value\",DataLog!AH576,\"\")","v":""},{"$f":"IF(DataLog!$C576=\"Log value\",DataLog!AI576,\"\")","v":""},{"$f":"IF(DataLog!$C576=\"Log value\",DataLog!AJ576,\"\")","v":""},{"$f":"IF(DataLog!$C576=\"Log value\",DataLog!AK576,\"\")","v":""},{"$f":"IF(DataLog!$C576=\"Log value\",DataLog!AL576,\"\")","v":""},{"$f":"IF(DataLog!$C576=\"Log value\",DataLog!AM576,\"\")","v":""}]
[null,null,null,null,null,null,{"$f":"IF(DataLog!$C577=\"Log value\",DataLog!D577&\"_\"&TEXT(DataLog!B577,\"åååå-mm-dd\"),\"\")","v":""},{"$f":"IF(DataLog!$C577=\"Log value\",DataLog!E577,\"\")","v":""},{"$f":"IF(DataLog!$C577=\"Log value\",DataLog!F577,\"\")","v":""},{"$f":"IF(DataLog!$C577=\"Log value\",DataLog!G577,\"\")","v":""},{"$f":"IF(DataLog!$C577=\"Log value\",DataLog!H577,\"\")","v":""},{"$f":"IF(DataLog!$C577=\"Log value\",DataLog!I577,\"\")","v":""},{"$f":"IF(DataLog!$C577=\"Log value\",DataLog!J577,\"\")","v":""},{"$f":"IF(DataLog!$C577=\"Log value\",DataLog!K577,\"\")","v":""},{"$f":"IF(DataLog!$C577=\"Log value\",DataLog!L577,\"\")","v":""},{"$f":"IF(DataLog!$C577=\"Log value\",DataLog!M577,\"\")","v":""},{"$f":"IF(DataLog!$C577=\"Log value\",DataLog!N577,\"\")","v":""},{"$f":"IF(DataLog!$C577=\"Log value\",DataLog!O577,\"\")","v":""},{"$f":"IF(DataLog!$C577=\"Log value\",DataLog!P577,\"\")","v":""},{"$f":"IF(DataLog!$C577=\"Log value\",DataLog!Q577,\"\")","v":""},{"$f":"IF(DataLog!$C577=\"Log value\",DataLog!R577,\"\")","v":""},{"$f":"IF(DataLog!$C577=\"Log value\",DataLog!S577,\"\")","v":""},{"$f":"IF(DataLog!$C577=\"Log value\",DataLog!T577,\"\")","v":""},{"$f":"IF(DataLog!$C577=\"Log value\",DataLog!U577,\"\")","v":""},{"$f":"IF(DataLog!$C577=\"Log value\",DataLog!V577,\"\")","v":""},{"$f":"IF(DataLog!$C577=\"Log value\",DataLog!W577,\"\")","v":""},{"$f":"IF(DataLog!$C577=\"Log value\",DataLog!X577,\"\")","v":""},{"$f":"IF(DataLog!$C577=\"Log value\",DataLog!Y577,\"\")","v":""},{"$f":"IF(DataLog!$C577=\"Log value\",DataLog!Z577,\"\")","v":""},{"$f":"IF(DataLog!$C577=\"Log value\",DataLog!AA577,\"\")","v":""},{"$f":"IF(DataLog!$C577=\"Log value\",DataLog!AB577,\"\")","v":""},{"$f":"IF(DataLog!$C577=\"Log value\",DataLog!AC577,\"\")","v":""},{"$f":"IF(DataLog!$C577=\"Log value\",DataLog!AD577,\"\")","v":""},{"$f":"IF(DataLog!$C577=\"Log value\",DataLog!AE577,\"\")","v":""},{"$f":"IF(DataLog!$C577=\"Log value\",DataLog!AF577,\"\")","v":""},{"$f":"IF(DataLog!$C577=\"Log value\",DataLog!AG577,\"\")","v":""},{"$f":"IF(DataLog!$C577=\"Log value\",DataLog!AH577,\"\")","v":""},{"$f":"IF(DataLog!$C577=\"Log value\",DataLog!AI577,\"\")","v":""},{"$f":"IF(DataLog!$C577=\"Log value\",DataLog!AJ577,\"\")","v":""},{"$f":"IF(DataLog!$C577=\"Log value\",DataLog!AK577,\"\")","v":""},{"$f":"IF(DataLog!$C577=\"Log value\",DataLog!AL577,\"\")","v":""},{"$f":"IF(DataLog!$C577=\"Log value\",DataLog!AM577,\"\")","v":""}]
[null,null,null,null,null,null,{"$f":"IF(DataLog!$C578=\"Log value\",DataLog!D578&\"_\"&TEXT(DataLog!B578,\"åååå-mm-dd\"),\"\")","v":""},{"$f":"IF(DataLog!$C578=\"Log value\",DataLog!E578,\"\")","v":""},{"$f":"IF(DataLog!$C578=\"Log value\",DataLog!F578,\"\")","v":""},{"$f":"IF(DataLog!$C578=\"Log value\",DataLog!G578,\"\")","v":""},{"$f":"IF(DataLog!$C578=\"Log value\",DataLog!H578,\"\")","v":""},{"$f":"IF(DataLog!$C578=\"Log value\",DataLog!I578,\"\")","v":""},{"$f":"IF(DataLog!$C578=\"Log value\",DataLog!J578,\"\")","v":""},{"$f":"IF(DataLog!$C578=\"Log value\",DataLog!K578,\"\")","v":""},{"$f":"IF(DataLog!$C578=\"Log value\",DataLog!L578,\"\")","v":""},{"$f":"IF(DataLog!$C578=\"Log value\",DataLog!M578,\"\")","v":""},{"$f":"IF(DataLog!$C578=\"Log value\",DataLog!N578,\"\")","v":""},{"$f":"IF(DataLog!$C578=\"Log value\",DataLog!O578,\"\")","v":""},{"$f":"IF(DataLog!$C578=\"Log value\",DataLog!P578,\"\")","v":""},{"$f":"IF(DataLog!$C578=\"Log value\",DataLog!Q578,\"\")","v":""},{"$f":"IF(DataLog!$C578=\"Log value\",DataLog!R578,\"\")","v":""},{"$f":"IF(DataLog!$C578=\"Log value\",DataLog!S578,\"\")","v":""},{"$f":"IF(DataLog!$C578=\"Log value\",DataLog!T578,\"\")","v":""},{"$f":"IF(DataLog!$C578=\"Log value\",DataLog!U578,\"\")","v":""},{"$f":"IF(DataLog!$C578=\"Log value\",DataLog!V578,\"\")","v":""},{"$f":"IF(DataLog!$C578=\"Log value\",DataLog!W578,\"\")","v":""},{"$f":"IF(DataLog!$C578=\"Log value\",DataLog!X578,\"\")","v":""},{"$f":"IF(DataLog!$C578=\"Log value\",DataLog!Y578,\"\")","v":""},{"$f":"IF(DataLog!$C578=\"Log value\",DataLog!Z578,\"\")","v":""},{"$f":"IF(DataLog!$C578=\"Log value\",DataLog!AA578,\"\")","v":""},{"$f":"IF(DataLog!$C578=\"Log value\",DataLog!AB578,\"\")","v":""},{"$f":"IF(DataLog!$C578=\"Log value\",DataLog!AC578,\"\")","v":""},{"$f":"IF(DataLog!$C578=\"Log value\",DataLog!AD578,\"\")","v":""},{"$f":"IF(DataLog!$C578=\"Log value\",DataLog!AE578,\"\")","v":""},{"$f":"IF(DataLog!$C578=\"Log value\",DataLog!AF578,\"\")","v":""},{"$f":"IF(DataLog!$C578=\"Log value\",DataLog!AG578,\"\")","v":""},{"$f":"IF(DataLog!$C578=\"Log value\",DataLog!AH578,\"\")","v":""},{"$f":"IF(DataLog!$C578=\"Log value\",DataLog!AI578,\"\")","v":""},{"$f":"IF(DataLog!$C578=\"Log value\",DataLog!AJ578,\"\")","v":""},{"$f":"IF(DataLog!$C578=\"Log value\",DataLog!AK578,\"\")","v":""},{"$f":"IF(DataLog!$C578=\"Log value\",DataLog!AL578,\"\")","v":""},{"$f":"IF(DataLog!$C578=\"Log value\",DataLog!AM578,\"\")","v":""}]
[null,null,null,null,null,null,{"$f":"IF(DataLog!$C579=\"Log value\",DataLog!D579&\"_\"&TEXT(DataLog!B579,\"åååå-mm-dd\"),\"\")","v":""},{"$f":"IF(DataLog!$C579=\"Log value\",DataLog!E579,\"\")","v":""},{"$f":"IF(DataLog!$C579=\"Log value\",DataLog!F579,\"\")","v":""},{"$f":"IF(DataLog!$C579=\"Log value\",DataLog!G579,\"\")","v":""},{"$f":"IF(DataLog!$C579=\"Log value\",DataLog!H579,\"\")","v":""},{"$f":"IF(DataLog!$C579=\"Log value\",DataLog!I579,\"\")","v":""},{"$f":"IF(DataLog!$C579=\"Log value\",DataLog!J579,\"\")","v":""},{"$f":"IF(DataLog!$C579=\"Log value\",DataLog!K579,\"\")","v":""},{"$f":"IF(DataLog!$C579=\"Log value\",DataLog!L579,\"\")","v":""},{"$f":"IF(DataLog!$C579=\"Log value\",DataLog!M579,\"\")","v":""},{"$f":"IF(DataLog!$C579=\"Log value\",DataLog!N579,\"\")","v":""},{"$f":"IF(DataLog!$C579=\"Log value\",DataLog!O579,\"\")","v":""},{"$f":"IF(DataLog!$C579=\"Log value\",DataLog!P579,\"\")","v":""},{"$f":"IF(DataLog!$C579=\"Log value\",DataLog!Q579,\"\")","v":""},{"$f":"IF(DataLog!$C579=\"Log value\",DataLog!R579,\"\")","v":""},{"$f":"IF(DataLog!$C579=\"Log value\",DataLog!S579,\"\")","v":""},{"$f":"IF(DataLog!$C579=\"Log value\",DataLog!T579,\"\")","v":""},{"$f":"IF(DataLog!$C579=\"Log value\",DataLog!U579,\"\")","v":""},{"$f":"IF(DataLog!$C579=\"Log value\",DataLog!V579,\"\")","v":""},{"$f":"IF(DataLog!$C579=\"Log value\",DataLog!W579,\"\")","v":""},{"$f":"IF(DataLog!$C579=\"Log value\",DataLog!X579,\"\")","v":""},{"$f":"IF(DataLog!$C579=\"Log value\",DataLog!Y579,\"\")","v":""},{"$f":"IF(DataLog!$C579=\"Log value\",DataLog!Z579,\"\")","v":""},{"$f":"IF(DataLog!$C579=\"Log value\",DataLog!AA579,\"\")","v":""},{"$f":"IF(DataLog!$C579=\"Log value\",DataLog!AB579,\"\")","v":""},{"$f":"IF(DataLog!$C579=\"Log value\",DataLog!AC579,\"\")","v":""},{"$f":"IF(DataLog!$C579=\"Log value\",DataLog!AD579,\"\")","v":""},{"$f":"IF(DataLog!$C579=\"Log value\",DataLog!AE579,\"\")","v":""},{"$f":"IF(DataLog!$C579=\"Log value\",DataLog!AF579,\"\")","v":""},{"$f":"IF(DataLog!$C579=\"Log value\",DataLog!AG579,\"\")","v":""},{"$f":"IF(DataLog!$C579=\"Log value\",DataLog!AH579,\"\")","v":""},{"$f":"IF(DataLog!$C579=\"Log value\",DataLog!AI579,\"\")","v":""},{"$f":"IF(DataLog!$C579=\"Log value\",DataLog!AJ579,\"\")","v":""},{"$f":"IF(DataLog!$C579=\"Log value\",DataLog!AK579,\"\")","v":""},{"$f":"IF(DataLog!$C579=\"Log value\",DataLog!AL579,\"\")","v":""},{"$f":"IF(DataLog!$C579=\"Log value\",DataLog!AM579,\"\")","v":""}]
[null,null,null,null,null,null,{"$f":"IF(DataLog!$C580=\"Log value\",DataLog!D580&\"_\"&TEXT(DataLog!B580,\"åååå-mm-dd\"),\"\")","v":""},{"$f":"IF(DataLog!$C580=\"Log value\",DataLog!E580,\"\")","v":""},{"$f":"IF(DataLog!$C580=\"Log value\",DataLog!F580,\"\")","v":""},{"$f":"IF(DataLog!$C580=\"Log value\",DataLog!G580,\"\")","v":""},{"$f":"IF(DataLog!$C580=\"Log value\",DataLog!H580,\"\")","v":""},{"$f":"IF(DataLog!$C580=\"Log value\",DataLog!I580,\"\")","v":""},{"$f":"IF(DataLog!$C580=\"Log value\",DataLog!J580,\"\")","v":""},{"$f":"IF(DataLog!$C580=\"Log value\",DataLog!K580,\"\")","v":""},{"$f":"IF(DataLog!$C580=\"Log value\",DataLog!L580,\"\")","v":""},{"$f":"IF(DataLog!$C580=\"Log value\",DataLog!M580,\"\")","v":""},{"$f":"IF(DataLog!$C580=\"Log value\",DataLog!N580,\"\")","v":""},{"$f":"IF(DataLog!$C580=\"Log value\",DataLog!O580,\"\")","v":""},{"$f":"IF(DataLog!$C580=\"Log value\",DataLog!P580,\"\")","v":""},{"$f":"IF(DataLog!$C580=\"Log value\",DataLog!Q580,\"\")","v":""},{"$f":"IF(DataLog!$C580=\"Log value\",DataLog!R580,\"\")","v":""},{"$f":"IF(DataLog!$C580=\"Log value\",DataLog!S580,\"\")","v":""},{"$f":"IF(DataLog!$C580=\"Log value\",DataLog!T580,\"\")","v":""},{"$f":"IF(DataLog!$C580=\"Log value\",DataLog!U580,\"\")","v":""},{"$f":"IF(DataLog!$C580=\"Log value\",DataLog!V580,\"\")","v":""},{"$f":"IF(DataLog!$C580=\"Log value\",DataLog!W580,\"\")","v":""},{"$f":"IF(DataLog!$C580=\"Log value\",DataLog!X580,\"\")","v":""},{"$f":"IF(DataLog!$C580=\"Log value\",DataLog!Y580,\"\")","v":""},{"$f":"IF(DataLog!$C580=\"Log value\",DataLog!Z580,\"\")","v":""},{"$f":"IF(DataLog!$C580=\"Log value\",DataLog!AA580,\"\")","v":""},{"$f":"IF(DataLog!$C580=\"Log value\",DataLog!AB580,\"\")","v":""},{"$f":"IF(DataLog!$C580=\"Log value\",DataLog!AC580,\"\")","v":""},{"$f":"IF(DataLog!$C580=\"Log value\",DataLog!AD580,\"\")","v":""},{"$f":"IF(DataLog!$C580=\"Log value\",DataLog!AE580,\"\")","v":""},{"$f":"IF(DataLog!$C580=\"Log value\",DataLog!AF580,\"\")","v":""},{"$f":"IF(DataLog!$C580=\"Log value\",DataLog!AG580,\"\")","v":""},{"$f":"IF(DataLog!$C580=\"Log value\",DataLog!AH580,\"\")","v":""},{"$f":"IF(DataLog!$C580=\"Log value\",DataLog!AI580,\"\")","v":""},{"$f":"IF(DataLog!$C580=\"Log value\",DataLog!AJ580,\"\")","v":""},{"$f":"IF(DataLog!$C580=\"Log value\",DataLog!AK580,\"\")","v":""},{"$f":"IF(DataLog!$C580=\"Log value\",DataLog!AL580,\"\")","v":""},{"$f":"IF(DataLog!$C580=\"Log value\",DataLog!AM580,\"\")","v":""}]
[null,null,null,null,null,null,{"$f":"IF(DataLog!$C581=\"Log value\",DataLog!D581&\"_\"&TEXT(DataLog!B581,\"åååå-mm-dd\"),\"\")","v":""},{"$f":"IF(DataLog!$C581=\"Log value\",DataLog!E581,\"\")","v":""},{"$f":"IF(DataLog!$C581=\"Log value\",DataLog!F581,\"\")","v":""},{"$f":"IF(DataLog!$C581=\"Log value\",DataLog!G581,\"\")","v":""},{"$f":"IF(DataLog!$C581=\"Log value\",DataLog!H581,\"\")","v":""},{"$f":"IF(DataLog!$C581=\"Log value\",DataLog!I581,\"\")","v":""},{"$f":"IF(DataLog!$C581=\"Log value\",DataLog!J581,\"\")","v":""},{"$f":"IF(DataLog!$C581=\"Log value\",DataLog!K581,\"\")","v":""},{"$f":"IF(DataLog!$C581=\"Log value\",DataLog!L581,\"\")","v":""},{"$f":"IF(DataLog!$C581=\"Log value\",DataLog!M581,\"\")","v":""},{"$f":"IF(DataLog!$C581=\"Log value\",DataLog!N581,\"\")","v":""},{"$f":"IF(DataLog!$C581=\"Log value\",DataLog!O581,\"\")","v":""},{"$f":"IF(DataLog!$C581=\"Log value\",DataLog!P581,\"\")","v":""},{"$f":"IF(DataLog!$C581=\"Log value\",DataLog!Q581,\"\")","v":""},{"$f":"IF(DataLog!$C581=\"Log value\",DataLog!R581,\"\")","v":""},{"$f":"IF(DataLog!$C581=\"Log value\",DataLog!S581,\"\")","v":""},{"$f":"IF(DataLog!$C581=\"Log value\",DataLog!T581,\"\")","v":""},{"$f":"IF(DataLog!$C581=\"Log value\",DataLog!U581,\"\")","v":""},{"$f":"IF(DataLog!$C581=\"Log value\",DataLog!V581,\"\")","v":""},{"$f":"IF(DataLog!$C581=\"Log value\",DataLog!W581,\"\")","v":""},{"$f":"IF(DataLog!$C581=\"Log value\",DataLog!X581,\"\")","v":""},{"$f":"IF(DataLog!$C581=\"Log value\",DataLog!Y581,\"\")","v":""},{"$f":"IF(DataLog!$C581=\"Log value\",DataLog!Z581,\"\")","v":""},{"$f":"IF(DataLog!$C581=\"Log value\",DataLog!AA581,\"\")","v":""},{"$f":"IF(DataLog!$C581=\"Log value\",DataLog!AB581,\"\")","v":""},{"$f":"IF(DataLog!$C581=\"Log value\",DataLog!AC581,\"\")","v":""},{"$f":"IF(DataLog!$C581=\"Log value\",DataLog!AD581,\"\")","v":""},{"$f":"IF(DataLog!$C581=\"Log value\",DataLog!AE581,\"\")","v":""},{"$f":"IF(DataLog!$C581=\"Log value\",DataLog!AF581,\"\")","v":""},{"$f":"IF(DataLog!$C581=\"Log value\",DataLog!AG581,\"\")","v":""},{"$f":"IF(DataLog!$C581=\"Log value\",DataLog!AH581,\"\")","v":""},{"$f":"IF(DataLog!$C581=\"Log value\",DataLog!AI581,\"\")","v":""},{"$f":"IF(DataLog!$C581=\"Log value\",DataLog!AJ581,\"\")","v":""},{"$f":"IF(DataLog!$C581=\"Log value\",DataLog!AK581,\"\")","v":""},{"$f":"IF(DataLog!$C581=\"Log value\",DataLog!AL581,\"\")","v":""},{"$f":"IF(DataLog!$C581=\"Log value\",DataLog!AM581,\"\")","v":""}]
[null,null,null,null,null,null,{"$f":"IF(DataLog!$C582=\"Log value\",DataLog!D582&\"_\"&TEXT(DataLog!B582,\"åååå-mm-dd\"),\"\")","v":""},{"$f":"IF(DataLog!$C582=\"Log value\",DataLog!E582,\"\")","v":""},{"$f":"IF(DataLog!$C582=\"Log value\",DataLog!F582,\"\")","v":""},{"$f":"IF(DataLog!$C582=\"Log value\",DataLog!G582,\"\")","v":""},{"$f":"IF(DataLog!$C582=\"Log value\",DataLog!H582,\"\")","v":""},{"$f":"IF(DataLog!$C582=\"Log value\",DataLog!I582,\"\")","v":""},{"$f":"IF(DataLog!$C582=\"Log value\",DataLog!J582,\"\")","v":""},{"$f":"IF(DataLog!$C582=\"Log value\",DataLog!K582,\"\")","v":""},{"$f":"IF(DataLog!$C582=\"Log value\",DataLog!L582,\"\")","v":""},{"$f":"IF(DataLog!$C582=\"Log value\",DataLog!M582,\"\")","v":""},{"$f":"IF(DataLog!$C582=\"Log value\",DataLog!N582,\"\")","v":""},{"$f":"IF(DataLog!$C582=\"Log value\",DataLog!O582,\"\")","v":""},{"$f":"IF(DataLog!$C582=\"Log value\",DataLog!P582,\"\")","v":""},{"$f":"IF(DataLog!$C582=\"Log value\",DataLog!Q582,\"\")","v":""},{"$f":"IF(DataLog!$C582=\"Log value\",DataLog!R582,\"\")","v":""},{"$f":"IF(DataLog!$C582=\"Log value\",DataLog!S582,\"\")","v":""},{"$f":"IF(DataLog!$C582=\"Log value\",DataLog!T582,\"\")","v":""},{"$f":"IF(DataLog!$C582=\"Log value\",DataLog!U582,\"\")","v":""},{"$f":"IF(DataLog!$C582=\"Log value\",DataLog!V582,\"\")","v":""},{"$f":"IF(DataLog!$C582=\"Log value\",DataLog!W582,\"\")","v":""},{"$f":"IF(DataLog!$C582=\"Log value\",DataLog!X582,\"\")","v":""},{"$f":"IF(DataLog!$C582=\"Log value\",DataLog!Y582,\"\")","v":""},{"$f":"IF(DataLog!$C582=\"Log value\",DataLog!Z582,\"\")","v":""},{"$f":"IF(DataLog!$C582=\"Log value\",DataLog!AA582,\"\")","v":""},{"$f":"IF(DataLog!$C582=\"Log value\",DataLog!AB582,\"\")","v":""},{"$f":"IF(DataLog!$C582=\"Log value\",DataLog!AC582,\"\")","v":""},{"$f":"IF(DataLog!$C582=\"Log value\",DataLog!AD582,\"\")","v":""},{"$f":"IF(DataLog!$C582=\"Log value\",DataLog!AE582,\"\")","v":""},{"$f":"IF(DataLog!$C582=\"Log value\",DataLog!AF582,\"\")","v":""},{"$f":"IF(DataLog!$C582=\"Log value\",DataLog!AG582,\"\")","v":""},{"$f":"IF(DataLog!$C582=\"Log value\",DataLog!AH582,\"\")","v":""},{"$f":"IF(DataLog!$C582=\"Log value\",DataLog!AI582,\"\")","v":""},{"$f":"IF(DataLog!$C582=\"Log value\",DataLog!AJ582,\"\")","v":""},{"$f":"IF(DataLog!$C582=\"Log value\",DataLog!AK582,\"\")","v":""},{"$f":"IF(DataLog!$C582=\"Log value\",DataLog!AL582,\"\")","v":""},{"$f":"IF(DataLog!$C582=\"Log value\",DataLog!AM582,\"\")","v":""}]
[null,null,null,null,null,null,{"$f":"IF(DataLog!$C583=\"Log value\",DataLog!D583&\"_\"&TEXT(DataLog!B583,\"åååå-mm-dd\"),\"\")","v":""},{"$f":"IF(DataLog!$C583=\"Log value\",DataLog!E583,\"\")","v":""},{"$f":"IF(DataLog!$C583=\"Log value\",DataLog!F583,\"\")","v":""},{"$f":"IF(DataLog!$C583=\"Log value\",DataLog!G583,\"\")","v":""},{"$f":"IF(DataLog!$C583=\"Log value\",DataLog!H583,\"\")","v":""},{"$f":"IF(DataLog!$C583=\"Log value\",DataLog!I583,\"\")","v":""},{"$f":"IF(DataLog!$C583=\"Log value\",DataLog!J583,\"\")","v":""},{"$f":"IF(DataLog!$C583=\"Log value\",DataLog!K583,\"\")","v":""},{"$f":"IF(DataLog!$C583=\"Log value\",DataLog!L583,\"\")","v":""},{"$f":"IF(DataLog!$C583=\"Log value\",DataLog!M583,\"\")","v":""},{"$f":"IF(DataLog!$C583=\"Log value\",DataLog!N583,\"\")","v":""},{"$f":"IF(DataLog!$C583=\"Log value\",DataLog!O583,\"\")","v":""},{"$f":"IF(DataLog!$C583=\"Log value\",DataLog!P583,\"\")","v":""},{"$f":"IF(DataLog!$C583=\"Log value\",DataLog!Q583,\"\")","v":""},{"$f":"IF(DataLog!$C583=\"Log value\",DataLog!R583,\"\")","v":""},{"$f":"IF(DataLog!$C583=\"Log value\",DataLog!S583,\"\")","v":""},{"$f":"IF(DataLog!$C583=\"Log value\",DataLog!T583,\"\")","v":""},{"$f":"IF(DataLog!$C583=\"Log value\",DataLog!U583,\"\")","v":""},{"$f":"IF(DataLog!$C583=\"Log value\",DataLog!V583,\"\")","v":""},{"$f":"IF(DataLog!$C583=\"Log value\",DataLog!W583,\"\")","v":""},{"$f":"IF(DataLog!$C583=\"Log value\",DataLog!X583,\"\")","v":""},{"$f":"IF(DataLog!$C583=\"Log value\",DataLog!Y583,\"\")","v":""},{"$f":"IF(DataLog!$C583=\"Log value\",DataLog!Z583,\"\")","v":""},{"$f":"IF(DataLog!$C583=\"Log value\",DataLog!AA583,\"\")","v":""},{"$f":"IF(DataLog!$C583=\"Log value\",DataLog!AB583,\"\")","v":""},{"$f":"IF(DataLog!$C583=\"Log value\",DataLog!AC583,\"\")","v":""},{"$f":"IF(DataLog!$C583=\"Log value\",DataLog!AD583,\"\")","v":""},{"$f":"IF(DataLog!$C583=\"Log value\",DataLog!AE583,\"\")","v":""},{"$f":"IF(DataLog!$C583=\"Log value\",DataLog!AF583,\"\")","v":""},{"$f":"IF(DataLog!$C583=\"Log value\",DataLog!AG583,\"\")","v":""},{"$f":"IF(DataLog!$C583=\"Log value\",DataLog!AH583,\"\")","v":""},{"$f":"IF(DataLog!$C583=\"Log value\",DataLog!AI583,\"\")","v":""},{"$f":"IF(DataLog!$C583=\"Log value\",DataLog!AJ583,\"\")","v":""},{"$f":"IF(DataLog!$C583=\"Log value\",DataLog!AK583,\"\")","v":""},{"$f":"IF(DataLog!$C583=\"Log value\",DataLog!AL583,\"\")","v":""},{"$f":"IF(DataLog!$C583=\"Log value\",DataLog!AM583,\"\")","v":""}]
[null,null,null,null,null,null,{"$f":"IF(DataLog!$C584=\"Log value\",DataLog!D584&\"_\"&TEXT(DataLog!B584,\"åååå-mm-dd\"),\"\")","v":""},{"$f":"IF(DataLog!$C584=\"Log value\",DataLog!E584,\"\")","v":""},{"$f":"IF(DataLog!$C584=\"Log value\",DataLog!F584,\"\")","v":""},{"$f":"IF(DataLog!$C584=\"Log value\",DataLog!G584,\"\")","v":""},{"$f":"IF(DataLog!$C584=\"Log value\",DataLog!H584,\"\")","v":""},{"$f":"IF(DataLog!$C584=\"Log value\",DataLog!I584,\"\")","v":""},{"$f":"IF(DataLog!$C584=\"Log value\",DataLog!J584,\"\")","v":""},{"$f":"IF(DataLog!$C584=\"Log value\",DataLog!K584,\"\")","v":""},{"$f":"IF(DataLog!$C584=\"Log value\",DataLog!L584,\"\")","v":""},{"$f":"IF(DataLog!$C584=\"Log value\",DataLog!M584,\"\")","v":""},{"$f":"IF(DataLog!$C584=\"Log value\",DataLog!N584,\"\")","v":""},{"$f":"IF(DataLog!$C584=\"Log value\",DataLog!O584,\"\")","v":""},{"$f":"IF(DataLog!$C584=\"Log value\",DataLog!P584,\"\")","v":""},{"$f":"IF(DataLog!$C584=\"Log value\",DataLog!Q584,\"\")","v":""},{"$f":"IF(DataLog!$C584=\"Log value\",DataLog!R584,\"\")","v":""},{"$f":"IF(DataLog!$C584=\"Log value\",DataLog!S584,\"\")","v":""},{"$f":"IF(DataLog!$C584=\"Log value\",DataLog!T584,\"\")","v":""},{"$f":"IF(DataLog!$C584=\"Log value\",DataLog!U584,\"\")","v":""},{"$f":"IF(DataLog!$C584=\"Log value\",DataLog!V584,\"\")","v":""},{"$f":"IF(DataLog!$C584=\"Log value\",DataLog!W584,\"\")","v":""},{"$f":"IF(DataLog!$C584=\"Log value\",DataLog!X584,\"\")","v":""},{"$f":"IF(DataLog!$C584=\"Log value\",DataLog!Y584,\"\")","v":""},{"$f":"IF(DataLog!$C584=\"Log value\",DataLog!Z584,\"\")","v":""},{"$f":"IF(DataLog!$C584=\"Log value\",DataLog!AA584,\"\")","v":""},{"$f":"IF(DataLog!$C584=\"Log value\",DataLog!AB584,\"\")","v":""},{"$f":"IF(DataLog!$C584=\"Log value\",DataLog!AC584,\"\")","v":""},{"$f":"IF(DataLog!$C584=\"Log value\",DataLog!AD584,\"\")","v":""},{"$f":"IF(DataLog!$C584=\"Log value\",DataLog!AE584,\"\")","v":""},{"$f":"IF(DataLog!$C584=\"Log value\",DataLog!AF584,\"\")","v":""},{"$f":"IF(DataLog!$C584=\"Log value\",DataLog!AG584,\"\")","v":""},{"$f":"IF(DataLog!$C584=\"Log value\",DataLog!AH584,\"\")","v":""},{"$f":"IF(DataLog!$C584=\"Log value\",DataLog!AI584,\"\")","v":""},{"$f":"IF(DataLog!$C584=\"Log value\",DataLog!AJ584,\"\")","v":""},{"$f":"IF(DataLog!$C584=\"Log value\",DataLog!AK584,\"\")","v":""},{"$f":"IF(DataLog!$C584=\"Log value\",DataLog!AL584,\"\")","v":""},{"$f":"IF(DataLog!$C584=\"Log value\",DataLog!AM584,\"\")","v":""}]
[null,null,null,null,null,null,{"$f":"IF(DataLog!$C585=\"Log value\",DataLog!D585&\"_\"&TEXT(DataLog!B585,\"åååå-mm-dd\"),\"\")","v":""},{"$f":"IF(DataLog!$C585=\"Log value\",DataLog!E585,\"\")","v":""},{"$f":"IF(DataLog!$C585=\"Log value\",DataLog!F585,\"\")","v":""},{"$f":"IF(DataLog!$C585=\"Log value\",DataLog!G585,\"\")","v":""},{"$f":"IF(DataLog!$C585=\"Log value\",DataLog!H585,\"\")","v":""},{"$f":"IF(DataLog!$C585=\"Log value\",DataLog!I585,\"\")","v":""},{"$f":"IF(DataLog!$C585=\"Log value\",DataLog!J585,\"\")","v":""},{"$f":"IF(DataLog!$C585=\"Log value\",DataLog!K585,\"\")","v":""},{"$f":"IF(DataLog!$C585=\"Log value\",DataLog!L585,\"\")","v":""},{"$f":"IF(DataLog!$C585=\"Log value\",DataLog!M585,\"\")","v":""},{"$f":"IF(DataLog!$C585=\"Log value\",DataLog!N585,\"\")","v":""},{"$f":"IF(DataLog!$C585=\"Log value\",DataLog!O585,\"\")","v":""},{"$f":"IF(DataLog!$C585=\"Log value\",DataLog!P585,\"\")","v":""},{"$f":"IF(DataLog!$C585=\"Log value\",DataLog!Q585,\"\")","v":""},{"$f":"IF(DataLog!$C585=\"Log value\",DataLog!R585,\"\")","v":""},{"$f":"IF(DataLog!$C585=\"Log value\",DataLog!S585,\"\")","v":""},{"$f":"IF(DataLog!$C585=\"Log value\",DataLog!T585,\"\")","v":""},{"$f":"IF(DataLog!$C585=\"Log value\",DataLog!U585,\"\")","v":""},{"$f":"IF(DataLog!$C585=\"Log value\",DataLog!V585,\"\")","v":""},{"$f":"IF(DataLog!$C585=\"Log value\",DataLog!W585,\"\")","v":""},{"$f":"IF(DataLog!$C585=\"Log value\",DataLog!X585,\"\")","v":""},{"$f":"IF(DataLog!$C585=\"Log value\",DataLog!Y585,\"\")","v":""},{"$f":"IF(DataLog!$C585=\"Log value\",DataLog!Z585,\"\")","v":""},{"$f":"IF(DataLog!$C585=\"Log value\",DataLog!AA585,\"\")","v":""},{"$f":"IF(DataLog!$C585=\"Log value\",DataLog!AB585,\"\")","v":""},{"$f":"IF(DataLog!$C585=\"Log value\",DataLog!AC585,\"\")","v":""},{"$f":"IF(DataLog!$C585=\"Log value\",DataLog!AD585,\"\")","v":""},{"$f":"IF(DataLog!$C585=\"Log value\",DataLog!AE585,\"\")","v":""},{"$f":"IF(DataLog!$C585=\"Log value\",DataLog!AF585,\"\")","v":""},{"$f":"IF(DataLog!$C585=\"Log value\",DataLog!AG585,\"\")","v":""},{"$f":"IF(DataLog!$C585=\"Log value\",DataLog!AH585,\"\")","v":""},{"$f":"IF(DataLog!$C585=\"Log value\",DataLog!AI585,\"\")","v":""},{"$f":"IF(DataLog!$C585=\"Log value\",DataLog!AJ585,\"\")","v":""},{"$f":"IF(DataLog!$C585=\"Log value\",DataLog!AK585,\"\")","v":""},{"$f":"IF(DataLog!$C585=\"Log value\",DataLog!AL585,\"\")","v":""},{"$f":"IF(DataLog!$C585=\"Log value\",DataLog!AM585,\"\")","v":""}]
[null,null,null,null,null,null,{"$f":"IF(DataLog!$C586=\"Log value\",DataLog!D586&\"_\"&TEXT(DataLog!B586,\"åååå-mm-dd\"),\"\")","v":""},{"$f":"IF(DataLog!$C586=\"Log value\",DataLog!E586,\"\")","v":""},{"$f":"IF(DataLog!$C586=\"Log value\",DataLog!F586,\"\")","v":""},{"$f":"IF(DataLog!$C586=\"Log value\",DataLog!G586,\"\")","v":""},{"$f":"IF(DataLog!$C586=\"Log value\",DataLog!H586,\"\")","v":""},{"$f":"IF(DataLog!$C586=\"Log value\",DataLog!I586,\"\")","v":""},{"$f":"IF(DataLog!$C586=\"Log value\",DataLog!J586,\"\")","v":""},{"$f":"IF(DataLog!$C586=\"Log value\",DataLog!K586,\"\")","v":""},{"$f":"IF(DataLog!$C586=\"Log value\",DataLog!L586,\"\")","v":""},{"$f":"IF(DataLog!$C586=\"Log value\",DataLog!M586,\"\")","v":""},{"$f":"IF(DataLog!$C586=\"Log value\",DataLog!N586,\"\")","v":""},{"$f":"IF(DataLog!$C586=\"Log value\",DataLog!O586,\"\")","v":""},{"$f":"IF(DataLog!$C586=\"Log value\",DataLog!P586,\"\")","v":""},{"$f":"IF(DataLog!$C586=\"Log value\",DataLog!Q586,\"\")","v":""},{"$f":"IF(DataLog!$C586=\"Log value\",DataLog!R586,\"\")","v":""},{"$f":"IF(DataLog!$C586=\"Log value\",DataLog!S586,\"\")","v":""},{"$f":"IF(DataLog!$C586=\"Log value\",DataLog!T586,\"\")","v":""},{"$f":"IF(DataLog!$C586=\"Log value\",DataLog!U586,\"\")","v":""},{"$f":"IF(DataLog!$C586=\"Log value\",DataLog!V586,\"\")","v":""},{"$f":"IF(DataLog!$C586=\"Log value\",DataLog!W586,\"\")","v":""},{"$f":"IF(DataLog!$C586=\"Log value\",DataLog!X586,\"\")","v":""},{"$f":"IF(DataLog!$C586=\"Log value\",DataLog!Y586,\"\")","v":""},{"$f":"IF(DataLog!$C586=\"Log value\",DataLog!Z586,\"\")","v":""},{"$f":"IF(DataLog!$C586=\"Log value\",DataLog!AA586,\"\")","v":""},{"$f":"IF(DataLog!$C586=\"Log value\",DataLog!AB586,\"\")","v":""},{"$f":"IF(DataLog!$C586=\"Log value\",DataLog!AC586,\"\")","v":""},{"$f":"IF(DataLog!$C586=\"Log value\",DataLog!AD586,\"\")","v":""},{"$f":"IF(DataLog!$C586=\"Log value\",DataLog!AE586,\"\")","v":""},{"$f":"IF(DataLog!$C586=\"Log value\",DataLog!AF586,\"\")","v":""},{"$f":"IF(DataLog!$C586=\"Log value\",DataLog!AG586,\"\")","v":""},{"$f":"IF(DataLog!$C586=\"Log value\",DataLog!AH586,\"\")","v":""},{"$f":"IF(DataLog!$C586=\"Log value\",DataLog!AI586,\"\")","v":""},{"$f":"IF(DataLog!$C586=\"Log value\",DataLog!AJ586,\"\")","v":""},{"$f":"IF(DataLog!$C586=\"Log value\",DataLog!AK586,\"\")","v":""},{"$f":"IF(DataLog!$C586=\"Log value\",DataLog!AL586,\"\")","v":""},{"$f":"IF(DataLog!$C586=\"Log value\",DataLog!AM586,\"\")","v":""}]
[null,null,null,null,null,null,{"$f":"IF(DataLog!$C587=\"Log value\",DataLog!D587&\"_\"&TEXT(DataLog!B587,\"åååå-mm-dd\"),\"\")","v":""},{"$f":"IF(DataLog!$C587=\"Log value\",DataLog!E587,\"\")","v":""},{"$f":"IF(DataLog!$C587=\"Log value\",DataLog!F587,\"\")","v":""},{"$f":"IF(DataLog!$C587=\"Log value\",DataLog!G587,\"\")","v":""},{"$f":"IF(DataLog!$C587=\"Log value\",DataLog!H587,\"\")","v":""},{"$f":"IF(DataLog!$C587=\"Log value\",DataLog!I587,\"\")","v":""},{"$f":"IF(DataLog!$C587=\"Log value\",DataLog!J587,\"\")","v":""},{"$f":"IF(DataLog!$C587=\"Log value\",DataLog!K587,\"\")","v":""},{"$f":"IF(DataLog!$C587=\"Log value\",DataLog!L587,\"\")","v":""},{"$f":"IF(DataLog!$C587=\"Log value\",DataLog!M587,\"\")","v":""},{"$f":"IF(DataLog!$C587=\"Log value\",DataLog!N587,\"\")","v":""},{"$f":"IF(DataLog!$C587=\"Log value\",DataLog!O587,\"\")","v":""},{"$f":"IF(DataLog!$C587=\"Log value\",DataLog!P587,\"\")","v":""},{"$f":"IF(DataLog!$C587=\"Log value\",DataLog!Q587,\"\")","v":""},{"$f":"IF(DataLog!$C587=\"Log value\",DataLog!R587,\"\")","v":""},{"$f":"IF(DataLog!$C587=\"Log value\",DataLog!S587,\"\")","v":""},{"$f":"IF(DataLog!$C587=\"Log value\",DataLog!T587,\"\")","v":""},{"$f":"IF(DataLog!$C587=\"Log value\",DataLog!U587,\"\")","v":""},{"$f":"IF(DataLog!$C587=\"Log value\",DataLog!V587,\"\")","v":""},{"$f":"IF(DataLog!$C587=\"Log value\",DataLog!W587,\"\")","v":""},{"$f":"IF(DataLog!$C587=\"Log value\",DataLog!X587,\"\")","v":""},{"$f":"IF(DataLog!$C587=\"Log value\",DataLog!Y587,\"\")","v":""},{"$f":"IF(DataLog!$C587=\"Log value\",DataLog!Z587,\"\")","v":""},{"$f":"IF(DataLog!$C587=\"Log value\",DataLog!AA587,\"\")","v":""},{"$f":"IF(DataLog!$C587=\"Log value\",DataLog!AB587,\"\")","v":""},{"$f":"IF(DataLog!$C587=\"Log value\",DataLog!AC587,\"\")","v":""},{"$f":"IF(DataLog!$C587=\"Log value\",DataLog!AD587,\"\")","v":""},{"$f":"IF(DataLog!$C587=\"Log value\",DataLog!AE587,\"\")","v":""},{"$f":"IF(DataLog!$C587=\"Log value\",DataLog!AF587,\"\")","v":""},{"$f":"IF(DataLog!$C587=\"Log value\",DataLog!AG587,\"\")","v":""},{"$f":"IF(DataLog!$C587=\"Log value\",DataLog!AH587,\"\")","v":""},{"$f":"IF(DataLog!$C587=\"Log value\",DataLog!AI587,\"\")","v":""},{"$f":"IF(DataLog!$C587=\"Log value\",DataLog!AJ587,\"\")","v":""},{"$f":"IF(DataLog!$C587=\"Log value\",DataLog!AK587,\"\")","v":""},{"$f":"IF(DataLog!$C587=\"Log value\",DataLog!AL587,\"\")","v":""},{"$f":"IF(DataLog!$C587=\"Log value\",DataLog!AM587,\"\")","v":""}]
[null,null,null,null,null,null,{"$f":"IF(DataLog!$C588=\"Log value\",DataLog!D588&\"_\"&TEXT(DataLog!B588,\"åååå-mm-dd\"),\"\")","v":""},{"$f":"IF(DataLog!$C588=\"Log value\",DataLog!E588,\"\")","v":""},{"$f":"IF(DataLog!$C588=\"Log value\",DataLog!F588,\"\")","v":""},{"$f":"IF(DataLog!$C588=\"Log value\",DataLog!G588,\"\")","v":""},{"$f":"IF(DataLog!$C588=\"Log value\",DataLog!H588,\"\")","v":""},{"$f":"IF(DataLog!$C588=\"Log value\",DataLog!I588,\"\")","v":""},{"$f":"IF(DataLog!$C588=\"Log value\",DataLog!J588,\"\")","v":""},{"$f":"IF(DataLog!$C588=\"Log value\",DataLog!K588,\"\")","v":""},{"$f":"IF(DataLog!$C588=\"Log value\",DataLog!L588,\"\")","v":""},{"$f":"IF(DataLog!$C588=\"Log value\",DataLog!M588,\"\")","v":""},{"$f":"IF(DataLog!$C588=\"Log value\",DataLog!N588,\"\")","v":""},{"$f":"IF(DataLog!$C588=\"Log value\",DataLog!O588,\"\")","v":""},{"$f":"IF(DataLog!$C588=\"Log value\",DataLog!P588,\"\")","v":""},{"$f":"IF(DataLog!$C588=\"Log value\",DataLog!Q588,\"\")","v":""},{"$f":"IF(DataLog!$C588=\"Log value\",DataLog!R588,\"\")","v":""},{"$f":"IF(DataLog!$C588=\"Log value\",DataLog!S588,\"\")","v":""},{"$f":"IF(DataLog!$C588=\"Log value\",DataLog!T588,\"\")","v":""},{"$f":"IF(DataLog!$C588=\"Log value\",DataLog!U588,\"\")","v":""},{"$f":"IF(DataLog!$C588=\"Log value\",DataLog!V588,\"\")","v":""},{"$f":"IF(DataLog!$C588=\"Log value\",DataLog!W588,\"\")","v":""},{"$f":"IF(DataLog!$C588=\"Log value\",DataLog!X588,\"\")","v":""},{"$f":"IF(DataLog!$C588=\"Log value\",DataLog!Y588,\"\")","v":""},{"$f":"IF(DataLog!$C588=\"Log value\",DataLog!Z588,\"\")","v":""},{"$f":"IF(DataLog!$C588=\"Log value\",DataLog!AA588,\"\")","v":""},{"$f":"IF(DataLog!$C588=\"Log value\",DataLog!AB588,\"\")","v":""},{"$f":"IF(DataLog!$C588=\"Log value\",DataLog!AC588,\"\")","v":""},{"$f":"IF(DataLog!$C588=\"Log value\",DataLog!AD588,\"\")","v":""},{"$f":"IF(DataLog!$C588=\"Log value\",DataLog!AE588,\"\")","v":""},{"$f":"IF(DataLog!$C588=\"Log value\",DataLog!AF588,\"\")","v":""},{"$f":"IF(DataLog!$C588=\"Log value\",DataLog!AG588,\"\")","v":""},{"$f":"IF(DataLog!$C588=\"Log value\",DataLog!AH588,\"\")","v":""},{"$f":"IF(DataLog!$C588=\"Log value\",DataLog!AI588,\"\")","v":""},{"$f":"IF(DataLog!$C588=\"Log value\",DataLog!AJ588,\"\")","v":""},{"$f":"IF(DataLog!$C588=\"Log value\",DataLog!AK588,\"\")","v":""},{"$f":"IF(DataLog!$C588=\"Log value\",DataLog!AL588,\"\")","v":""},{"$f":"IF(DataLog!$C588=\"Log value\",DataLog!AM588,\"\")","v":""}]
[null,null,null,null,null,null,{"$f":"IF(DataLog!$C589=\"Log value\",DataLog!D589&\"_\"&TEXT(DataLog!B589,\"åååå-mm-dd\"),\"\")","v":""},{"$f":"IF(DataLog!$C589=\"Log value\",DataLog!E589,\"\")","v":""},{"$f":"IF(DataLog!$C589=\"Log value\",DataLog!F589,\"\")","v":""},{"$f":"IF(DataLog!$C589=\"Log value\",DataLog!G589,\"\")","v":""},{"$f":"IF(DataLog!$C589=\"Log value\",DataLog!H589,\"\")","v":""},{"$f":"IF(DataLog!$C589=\"Log value\",DataLog!I589,\"\")","v":""},{"$f":"IF(DataLog!$C589=\"Log value\",DataLog!J589,\"\")","v":""},{"$f":"IF(DataLog!$C589=\"Log value\",DataLog!K589,\"\")","v":""},{"$f":"IF(DataLog!$C589=\"Log value\",DataLog!L589,\"\")","v":""},{"$f":"IF(DataLog!$C589=\"Log value\",DataLog!M589,\"\")","v":""},{"$f":"IF(DataLog!$C589=\"Log value\",DataLog!N589,\"\")","v":""},{"$f":"IF(DataLog!$C589=\"Log value\",DataLog!O589,\"\")","v":""},{"$f":"IF(DataLog!$C589=\"Log value\",DataLog!P589,\"\")","v":""},{"$f":"IF(DataLog!$C589=\"Log value\",DataLog!Q589,\"\")","v":""},{"$f":"IF(DataLog!$C589=\"Log value\",DataLog!R589,\"\")","v":""},{"$f":"IF(DataLog!$C589=\"Log value\",DataLog!S589,\"\")","v":""},{"$f":"IF(DataLog!$C589=\"Log value\",DataLog!T589,\"\")","v":""},{"$f":"IF(DataLog!$C589=\"Log value\",DataLog!U589,\"\")","v":""},{"$f":"IF(DataLog!$C589=\"Log value\",DataLog!V589,\"\")","v":""},{"$f":"IF(DataLog!$C589=\"Log value\",DataLog!W589,\"\")","v":""},{"$f":"IF(DataLog!$C589=\"Log value\",DataLog!X589,\"\")","v":""},{"$f":"IF(DataLog!$C589=\"Log value\",DataLog!Y589,\"\")","v":""},{"$f":"IF(DataLog!$C589=\"Log value\",DataLog!Z589,\"\")","v":""},{"$f":"IF(DataLog!$C589=\"Log value\",DataLog!AA589,\"\")","v":""},{"$f":"IF(DataLog!$C589=\"Log value\",DataLog!AB589,\"\")","v":""},{"$f":"IF(DataLog!$C589=\"Log value\",DataLog!AC589,\"\")","v":""},{"$f":"IF(DataLog!$C589=\"Log value\",DataLog!AD589,\"\")","v":""},{"$f":"IF(DataLog!$C589=\"Log value\",DataLog!AE589,\"\")","v":""},{"$f":"IF(DataLog!$C589=\"Log value\",DataLog!AF589,\"\")","v":""},{"$f":"IF(DataLog!$C589=\"Log value\",DataLog!AG589,\"\")","v":""},{"$f":"IF(DataLog!$C589=\"Log value\",DataLog!AH589,\"\")","v":""},{"$f":"IF(DataLog!$C589=\"Log value\",DataLog!AI589,\"\")","v":""},{"$f":"IF(DataLog!$C589=\"Log value\",DataLog!AJ589,\"\")","v":""},{"$f":"IF(DataLog!$C589=\"Log value\",DataLog!AK589,\"\")","v":""},{"$f":"IF(DataLog!$C589=\"Log value\",DataLog!AL589,\"\")","v":""},{"$f":"IF(DataLog!$C589=\"Log value\",DataLog!AM589,\"\")","v":""}]
[null,null,null,null,null,null,{"$f":"IF(DataLog!$C590=\"Log value\",DataLog!D590&\"_\"&TEXT(DataLog!B590,\"åååå-mm-dd\"),\"\")","v":""},{"$f":"IF(DataLog!$C590=\"Log value\",DataLog!E590,\"\")","v":""},{"$f":"IF(DataLog!$C590=\"Log value\",DataLog!F590,\"\")","v":""},{"$f":"IF(DataLog!$C590=\"Log value\",DataLog!G590,\"\")","v":""},{"$f":"IF(DataLog!$C590=\"Log value\",DataLog!H590,\"\")","v":""},{"$f":"IF(DataLog!$C590=\"Log value\",DataLog!I590,\"\")","v":""},{"$f":"IF(DataLog!$C590=\"Log value\",DataLog!J590,\"\")","v":""},{"$f":"IF(DataLog!$C590=\"Log value\",DataLog!K590,\"\")","v":""},{"$f":"IF(DataLog!$C590=\"Log value\",DataLog!L590,\"\")","v":""},{"$f":"IF(DataLog!$C590=\"Log value\",DataLog!M590,\"\")","v":""},{"$f":"IF(DataLog!$C590=\"Log value\",DataLog!N590,\"\")","v":""},{"$f":"IF(DataLog!$C590=\"Log value\",DataLog!O590,\"\")","v":""},{"$f":"IF(DataLog!$C590=\"Log value\",DataLog!P590,\"\")","v":""},{"$f":"IF(DataLog!$C590=\"Log value\",DataLog!Q590,\"\")","v":""},{"$f":"IF(DataLog!$C590=\"Log value\",DataLog!R590,\"\")","v":""},{"$f":"IF(DataLog!$C590=\"Log value\",DataLog!S590,\"\")","v":""},{"$f":"IF(DataLog!$C590=\"Log value\",DataLog!T590,\"\")","v":""},{"$f":"IF(DataLog!$C590=\"Log value\",DataLog!U590,\"\")","v":""},{"$f":"IF(DataLog!$C590=\"Log value\",DataLog!V590,\"\")","v":""},{"$f":"IF(DataLog!$C590=\"Log value\",DataLog!W590,\"\")","v":""},{"$f":"IF(DataLog!$C590=\"Log value\",DataLog!X590,\"\")","v":""},{"$f":"IF(DataLog!$C590=\"Log value\",DataLog!Y590,\"\")","v":""},{"$f":"IF(DataLog!$C590=\"Log value\",DataLog!Z590,\"\")","v":""},{"$f":"IF(DataLog!$C590=\"Log value\",DataLog!AA590,\"\")","v":""},{"$f":"IF(DataLog!$C590=\"Log value\",DataLog!AB590,\"\")","v":""},{"$f":"IF(DataLog!$C590=\"Log value\",DataLog!AC590,\"\")","v":""},{"$f":"IF(DataLog!$C590=\"Log value\",DataLog!AD590,\"\")","v":""},{"$f":"IF(DataLog!$C590=\"Log value\",DataLog!AE590,\"\")","v":""},{"$f":"IF(DataLog!$C590=\"Log value\",DataLog!AF590,\"\")","v":""},{"$f":"IF(DataLog!$C590=\"Log value\",DataLog!AG590,\"\")","v":""},{"$f":"IF(DataLog!$C590=\"Log value\",DataLog!AH590,\"\")","v":""},{"$f":"IF(DataLog!$C590=\"Log value\",DataLog!AI590,\"\")","v":""},{"$f":"IF(DataLog!$C590=\"Log value\",DataLog!AJ590,\"\")","v":""},{"$f":"IF(DataLog!$C590=\"Log value\",DataLog!AK590,\"\")","v":""},{"$f":"IF(DataLog!$C590=\"Log value\",DataLog!AL590,\"\")","v":""},{"$f":"IF(DataLog!$C590=\"Log value\",DataLog!AM590,\"\")","v":""}]
[null,null,null,null,null,null,{"$f":"IF(DataLog!$C591=\"Log value\",DataLog!D591&\"_\"&TEXT(DataLog!B591,\"åååå-mm-dd\"),\"\")","v":""},{"$f":"IF(DataLog!$C591=\"Log value\",DataLog!E591,\"\")","v":""},{"$f":"IF(DataLog!$C591=\"Log value\",DataLog!F591,\"\")","v":""},{"$f":"IF(DataLog!$C591=\"Log value\",DataLog!G591,\"\")","v":""},{"$f":"IF(DataLog!$C591=\"Log value\",DataLog!H591,\"\")","v":""},{"$f":"IF(DataLog!$C591=\"Log value\",DataLog!I591,\"\")","v":""},{"$f":"IF(DataLog!$C591=\"Log value\",DataLog!J591,\"\")","v":""},{"$f":"IF(DataLog!$C591=\"Log value\",DataLog!K591,\"\")","v":""},{"$f":"IF(DataLog!$C591=\"Log value\",DataLog!L591,\"\")","v":""},{"$f":"IF(DataLog!$C591=\"Log value\",DataLog!M591,\"\")","v":""},{"$f":"IF(DataLog!$C591=\"Log value\",DataLog!N591,\"\")","v":""},{"$f":"IF(DataLog!$C591=\"Log value\",DataLog!O591,\"\")","v":""},{"$f":"IF(DataLog!$C591=\"Log value\",DataLog!P591,\"\")","v":""},{"$f":"IF(DataLog!$C591=\"Log value\",DataLog!Q591,\"\")","v":""},{"$f":"IF(DataLog!$C591=\"Log value\",DataLog!R591,\"\")","v":""},{"$f":"IF(DataLog!$C591=\"Log value\",DataLog!S591,\"\")","v":""},{"$f":"IF(DataLog!$C591=\"Log value\",DataLog!T591,\"\")","v":""},{"$f":"IF(DataLog!$C591=\"Log value\",DataLog!U591,\"\")","v":""},{"$f":"IF(DataLog!$C591=\"Log value\",DataLog!V591,\"\")","v":""},{"$f":"IF(DataLog!$C591=\"Log value\",DataLog!W591,\"\")","v":""},{"$f":"IF(DataLog!$C591=\"Log value\",DataLog!X591,\"\")","v":""},{"$f":"IF(DataLog!$C591=\"Log value\",DataLog!Y591,\"\")","v":""},{"$f":"IF(DataLog!$C591=\"Log value\",DataLog!Z591,\"\")","v":""},{"$f":"IF(DataLog!$C591=\"Log value\",DataLog!AA591,\"\")","v":""},{"$f":"IF(DataLog!$C591=\"Log value\",DataLog!AB591,\"\")","v":""},{"$f":"IF(DataLog!$C591=\"Log value\",DataLog!AC591,\"\")","v":""},{"$f":"IF(DataLog!$C591=\"Log value\",DataLog!AD591,\"\")","v":""},{"$f":"IF(DataLog!$C591=\"Log value\",DataLog!AE591,\"\")","v":""},{"$f":"IF(DataLog!$C591=\"Log value\",DataLog!AF591,\"\")","v":""},{"$f":"IF(DataLog!$C591=\"Log value\",DataLog!AG591,\"\")","v":""},{"$f":"IF(DataLog!$C591=\"Log value\",DataLog!AH591,\"\")","v":""},{"$f":"IF(DataLog!$C591=\"Log value\",DataLog!AI591,\"\")","v":""},{"$f":"IF(DataLog!$C591=\"Log value\",DataLog!AJ591,\"\")","v":""},{"$f":"IF(DataLog!$C591=\"Log value\",DataLog!AK591,\"\")","v":""},{"$f":"IF(DataLog!$C591=\"Log value\",DataLog!AL591,\"\")","v":""},{"$f":"IF(DataLog!$C591=\"Log value\",DataLog!AM591,\"\")","v":""}]
[null,null,null,null,null,null,{"$f":"IF(DataLog!$C592=\"Log value\",DataLog!D592&\"_\"&TEXT(DataLog!B592,\"åååå-mm-dd\"),\"\")","v":""},{"$f":"IF(DataLog!$C592=\"Log value\",DataLog!E592,\"\")","v":""},{"$f":"IF(DataLog!$C592=\"Log value\",DataLog!F592,\"\")","v":""},{"$f":"IF(DataLog!$C592=\"Log value\",DataLog!G592,\"\")","v":""},{"$f":"IF(DataLog!$C592=\"Log value\",DataLog!H592,\"\")","v":""},{"$f":"IF(DataLog!$C592=\"Log value\",DataLog!I592,\"\")","v":""},{"$f":"IF(DataLog!$C592=\"Log value\",DataLog!J592,\"\")","v":""},{"$f":"IF(DataLog!$C592=\"Log value\",DataLog!K592,\"\")","v":""},{"$f":"IF(DataLog!$C592=\"Log value\",DataLog!L592,\"\")","v":""},{"$f":"IF(DataLog!$C592=\"Log value\",DataLog!M592,\"\")","v":""},{"$f":"IF(DataLog!$C592=\"Log value\",DataLog!N592,\"\")","v":""},{"$f":"IF(DataLog!$C592=\"Log value\",DataLog!O592,\"\")","v":""},{"$f":"IF(DataLog!$C592=\"Log value\",DataLog!P592,\"\")","v":""},{"$f":"IF(DataLog!$C592=\"Log value\",DataLog!Q592,\"\")","v":""},{"$f":"IF(DataLog!$C592=\"Log value\",DataLog!R592,\"\")","v":""},{"$f":"IF(DataLog!$C592=\"Log value\",DataLog!S592,\"\")","v":""},{"$f":"IF(DataLog!$C592=\"Log value\",DataLog!T592,\"\")","v":""},{"$f":"IF(DataLog!$C592=\"Log value\",DataLog!U592,\"\")","v":""},{"$f":"IF(DataLog!$C592=\"Log value\",DataLog!V592,\"\")","v":""},{"$f":"IF(DataLog!$C592=\"Log value\",DataLog!W592,\"\")","v":""},{"$f":"IF(DataLog!$C592=\"Log value\",DataLog!X592,\"\")","v":""},{"$f":"IF(DataLog!$C592=\"Log value\",DataLog!Y592,\"\")","v":""},{"$f":"IF(DataLog!$C592=\"Log value\",DataLog!Z592,\"\")","v":""},{"$f":"IF(DataLog!$C592=\"Log value\",DataLog!AA592,\"\")","v":""},{"$f":"IF(DataLog!$C592=\"Log value\",DataLog!AB592,\"\")","v":""},{"$f":"IF(DataLog!$C592=\"Log value\",DataLog!AC592,\"\")","v":""},{"$f":"IF(DataLog!$C592=\"Log value\",DataLog!AD592,\"\")","v":""},{"$f":"IF(DataLog!$C592=\"Log value\",DataLog!AE592,\"\")","v":""},{"$f":"IF(DataLog!$C592=\"Log value\",DataLog!AF592,\"\")","v":""},{"$f":"IF(DataLog!$C592=\"Log value\",DataLog!AG592,\"\")","v":""},{"$f":"IF(DataLog!$C592=\"Log value\",DataLog!AH592,\"\")","v":""},{"$f":"IF(DataLog!$C592=\"Log value\",DataLog!AI592,\"\")","v":""},{"$f":"IF(DataLog!$C592=\"Log value\",DataLog!AJ592,\"\")","v":""},{"$f":"IF(DataLog!$C592=\"Log value\",DataLog!AK592,\"\")","v":""},{"$f":"IF(DataLog!$C592=\"Log value\",DataLog!AL592,\"\")","v":""},{"$f":"IF(DataLog!$C592=\"Log value\",DataLog!AM592,\"\")","v":""}]
[null,null,null,null,null,null,{"$f":"IF(DataLog!$C593=\"Log value\",DataLog!D593&\"_\"&TEXT(DataLog!B593,\"åååå-mm-dd\"),\"\")","v":""},{"$f":"IF(DataLog!$C593=\"Log value\",DataLog!E593,\"\")","v":""},{"$f":"IF(DataLog!$C593=\"Log value\",DataLog!F593,\"\")","v":""},{"$f":"IF(DataLog!$C593=\"Log value\",DataLog!G593,\"\")","v":""},{"$f":"IF(DataLog!$C593=\"Log value\",DataLog!H593,\"\")","v":""},{"$f":"IF(DataLog!$C593=\"Log value\",DataLog!I593,\"\")","v":""},{"$f":"IF(DataLog!$C593=\"Log value\",DataLog!J593,\"\")","v":""},{"$f":"IF(DataLog!$C593=\"Log value\",DataLog!K593,\"\")","v":""},{"$f":"IF(DataLog!$C593=\"Log value\",DataLog!L593,\"\")","v":""},{"$f":"IF(DataLog!$C593=\"Log value\",DataLog!M593,\"\")","v":""},{"$f":"IF(DataLog!$C593=\"Log value\",DataLog!N593,\"\")","v":""},{"$f":"IF(DataLog!$C593=\"Log value\",DataLog!O593,\"\")","v":""},{"$f":"IF(DataLog!$C593=\"Log value\",DataLog!P593,\"\")","v":""},{"$f":"IF(DataLog!$C593=\"Log value\",DataLog!Q593,\"\")","v":""},{"$f":"IF(DataLog!$C593=\"Log value\",DataLog!R593,\"\")","v":""},{"$f":"IF(DataLog!$C593=\"Log value\",DataLog!S593,\"\")","v":""},{"$f":"IF(DataLog!$C593=\"Log value\",DataLog!T593,\"\")","v":""},{"$f":"IF(DataLog!$C593=\"Log value\",DataLog!U593,\"\")","v":""},{"$f":"IF(DataLog!$C593=\"Log value\",DataLog!V593,\"\")","v":""},{"$f":"IF(DataLog!$C593=\"Log value\",DataLog!W593,\"\")","v":""},{"$f":"IF(DataLog!$C593=\"Log value\",DataLog!X593,\"\")","v":""},{"$f":"IF(DataLog!$C593=\"Log value\",DataLog!Y593,\"\")","v":""},{"$f":"IF(DataLog!$C593=\"Log value\",DataLog!Z593,\"\")","v":""},{"$f":"IF(DataLog!$C593=\"Log value\",DataLog!AA593,\"\")","v":""},{"$f":"IF(DataLog!$C593=\"Log value\",DataLog!AB593,\"\")","v":""},{"$f":"IF(DataLog!$C593=\"Log value\",DataLog!AC593,\"\")","v":""},{"$f":"IF(DataLog!$C593=\"Log value\",DataLog!AD593,\"\")","v":""},{"$f":"IF(DataLog!$C593=\"Log value\",DataLog!AE593,\"\")","v":""},{"$f":"IF(DataLog!$C593=\"Log value\",DataLog!AF593,\"\")","v":""},{"$f":"IF(DataLog!$C593=\"Log value\",DataLog!AG593,\"\")","v":""},{"$f":"IF(DataLog!$C593=\"Log value\",DataLog!AH593,\"\")","v":""},{"$f":"IF(DataLog!$C593=\"Log value\",DataLog!AI593,\"\")","v":""},{"$f":"IF(DataLog!$C593=\"Log value\",DataLog!AJ593,\"\")","v":""},{"$f":"IF(DataLog!$C593=\"Log value\",DataLog!AK593,\"\")","v":""},{"$f":"IF(DataLog!$C593=\"Log value\",DataLog!AL593,\"\")","v":""},{"$f":"IF(DataLog!$C593=\"Log value\",DataLog!AM593,\"\")","v":""}]
[null,null,null,null,null,null,{"$f":"IF(DataLog!$C594=\"Log value\",DataLog!D594&\"_\"&TEXT(DataLog!B594,\"åååå-mm-dd\"),\"\")","v":""},{"$f":"IF(DataLog!$C594=\"Log value\",DataLog!E594,\"\")","v":""},{"$f":"IF(DataLog!$C594=\"Log value\",DataLog!F594,\"\")","v":""},{"$f":"IF(DataLog!$C594=\"Log value\",DataLog!G594,\"\")","v":""},{"$f":"IF(DataLog!$C594=\"Log value\",DataLog!H594,\"\")","v":""},{"$f":"IF(DataLog!$C594=\"Log value\",DataLog!I594,\"\")","v":""},{"$f":"IF(DataLog!$C594=\"Log value\",DataLog!J594,\"\")","v":""},{"$f":"IF(DataLog!$C594=\"Log value\",DataLog!K594,\"\")","v":""},{"$f":"IF(DataLog!$C594=\"Log value\",DataLog!L594,\"\")","v":""},{"$f":"IF(DataLog!$C594=\"Log value\",DataLog!M594,\"\")","v":""},{"$f":"IF(DataLog!$C594=\"Log value\",DataLog!N594,\"\")","v":""},{"$f":"IF(DataLog!$C594=\"Log value\",DataLog!O594,\"\")","v":""},{"$f":"IF(DataLog!$C594=\"Log value\",DataLog!P594,\"\")","v":""},{"$f":"IF(DataLog!$C594=\"Log value\",DataLog!Q594,\"\")","v":""},{"$f":"IF(DataLog!$C594=\"Log value\",DataLog!R594,\"\")","v":""},{"$f":"IF(DataLog!$C594=\"Log value\",DataLog!S594,\"\")","v":""},{"$f":"IF(DataLog!$C594=\"Log value\",DataLog!T594,\"\")","v":""},{"$f":"IF(DataLog!$C594=\"Log value\",DataLog!U594,\"\")","v":""},{"$f":"IF(DataLog!$C594=\"Log value\",DataLog!V594,\"\")","v":""},{"$f":"IF(DataLog!$C594=\"Log value\",DataLog!W594,\"\")","v":""},{"$f":"IF(DataLog!$C594=\"Log value\",DataLog!X594,\"\")","v":""},{"$f":"IF(DataLog!$C594=\"Log value\",DataLog!Y594,\"\")","v":""},{"$f":"IF(DataLog!$C594=\"Log value\",DataLog!Z594,\"\")","v":""},{"$f":"IF(DataLog!$C594=\"Log value\",DataLog!AA594,\"\")","v":""},{"$f":"IF(DataLog!$C594=\"Log value\",DataLog!AB594,\"\")","v":""},{"$f":"IF(DataLog!$C594=\"Log value\",DataLog!AC594,\"\")","v":""},{"$f":"IF(DataLog!$C594=\"Log value\",DataLog!AD594,\"\")","v":""},{"$f":"IF(DataLog!$C594=\"Log value\",DataLog!AE594,\"\")","v":""},{"$f":"IF(DataLog!$C594=\"Log value\",DataLog!AF594,\"\")","v":""},{"$f":"IF(DataLog!$C594=\"Log value\",DataLog!AG594,\"\")","v":""},{"$f":"IF(DataLog!$C594=\"Log value\",DataLog!AH594,\"\")","v":""},{"$f":"IF(DataLog!$C594=\"Log value\",DataLog!AI594,\"\")","v":""},{"$f":"IF(DataLog!$C594=\"Log value\",DataLog!AJ594,\"\")","v":""},{"$f":"IF(DataLog!$C594=\"Log value\",DataLog!AK594,\"\")","v":""},{"$f":"IF(DataLog!$C594=\"Log value\",DataLog!AL594,\"\")","v":""},{"$f":"IF(DataLog!$C594=\"Log value\",DataLog!AM594,\"\")","v":""}]
[null,null,null,null,null,null,{"$f":"IF(DataLog!$C595=\"Log value\",DataLog!D595&\"_\"&TEXT(DataLog!B595,\"åååå-mm-dd\"),\"\")","v":""},{"$f":"IF(DataLog!$C595=\"Log value\",DataLog!E595,\"\")","v":""},{"$f":"IF(DataLog!$C595=\"Log value\",DataLog!F595,\"\")","v":""},{"$f":"IF(DataLog!$C595=\"Log value\",DataLog!G595,\"\")","v":""},{"$f":"IF(DataLog!$C595=\"Log value\",DataLog!H595,\"\")","v":""},{"$f":"IF(DataLog!$C595=\"Log value\",DataLog!I595,\"\")","v":""},{"$f":"IF(DataLog!$C595=\"Log value\",DataLog!J595,\"\")","v":""},{"$f":"IF(DataLog!$C595=\"Log value\",DataLog!K595,\"\")","v":""},{"$f":"IF(DataLog!$C595=\"Log value\",DataLog!L595,\"\")","v":""},{"$f":"IF(DataLog!$C595=\"Log value\",DataLog!M595,\"\")","v":""},{"$f":"IF(DataLog!$C595=\"Log value\",DataLog!N595,\"\")","v":""},{"$f":"IF(DataLog!$C595=\"Log value\",DataLog!O595,\"\")","v":""},{"$f":"IF(DataLog!$C595=\"Log value\",DataLog!P595,\"\")","v":""},{"$f":"IF(DataLog!$C595=\"Log value\",DataLog!Q595,\"\")","v":""},{"$f":"IF(DataLog!$C595=\"Log value\",DataLog!R595,\"\")","v":""},{"$f":"IF(DataLog!$C595=\"Log value\",DataLog!S595,\"\")","v":""},{"$f":"IF(DataLog!$C595=\"Log value\",DataLog!T595,\"\")","v":""},{"$f":"IF(DataLog!$C595=\"Log value\",DataLog!U595,\"\")","v":""},{"$f":"IF(DataLog!$C595=\"Log value\",DataLog!V595,\"\")","v":""},{"$f":"IF(DataLog!$C595=\"Log value\",DataLog!W595,\"\")","v":""},{"$f":"IF(DataLog!$C595=\"Log value\",DataLog!X595,\"\")","v":""},{"$f":"IF(DataLog!$C595=\"Log value\",DataLog!Y595,\"\")","v":""},{"$f":"IF(DataLog!$C595=\"Log value\",DataLog!Z595,\"\")","v":""},{"$f":"IF(DataLog!$C595=\"Log value\",DataLog!AA595,\"\")","v":""},{"$f":"IF(DataLog!$C595=\"Log value\",DataLog!AB595,\"\")","v":""},{"$f":"IF(DataLog!$C595=\"Log value\",DataLog!AC595,\"\")","v":""},{"$f":"IF(DataLog!$C595=\"Log value\",DataLog!AD595,\"\")","v":""},{"$f":"IF(DataLog!$C595=\"Log value\",DataLog!AE595,\"\")","v":""},{"$f":"IF(DataLog!$C595=\"Log value\",DataLog!AF595,\"\")","v":""},{"$f":"IF(DataLog!$C595=\"Log value\",DataLog!AG595,\"\")","v":""},{"$f":"IF(DataLog!$C595=\"Log value\",DataLog!AH595,\"\")","v":""},{"$f":"IF(DataLog!$C595=\"Log value\",DataLog!AI595,\"\")","v":""},{"$f":"IF(DataLog!$C595=\"Log value\",DataLog!AJ595,\"\")","v":""},{"$f":"IF(DataLog!$C595=\"Log value\",DataLog!AK595,\"\")","v":""},{"$f":"IF(DataLog!$C595=\"Log value\",DataLog!AL595,\"\")","v":""},{"$f":"IF(DataLog!$C595=\"Log value\",DataLog!AM595,\"\")","v":""}]
[null,null,null,null,null,null,{"$f":"IF(DataLog!$C596=\"Log value\",DataLog!D596&\"_\"&TEXT(DataLog!B596,\"åååå-mm-dd\"),\"\")","v":""},{"$f":"IF(DataLog!$C596=\"Log value\",DataLog!E596,\"\")","v":""},{"$f":"IF(DataLog!$C596=\"Log value\",DataLog!F596,\"\")","v":""},{"$f":"IF(DataLog!$C596=\"Log value\",DataLog!G596,\"\")","v":""},{"$f":"IF(DataLog!$C596=\"Log value\",DataLog!H596,\"\")","v":""},{"$f":"IF(DataLog!$C596=\"Log value\",DataLog!I596,\"\")","v":""},{"$f":"IF(DataLog!$C596=\"Log value\",DataLog!J596,\"\")","v":""},{"$f":"IF(DataLog!$C596=\"Log value\",DataLog!K596,\"\")","v":""},{"$f":"IF(DataLog!$C596=\"Log value\",DataLog!L596,\"\")","v":""},{"$f":"IF(DataLog!$C596=\"Log value\",DataLog!M596,\"\")","v":""},{"$f":"IF(DataLog!$C596=\"Log value\",DataLog!N596,\"\")","v":""},{"$f":"IF(DataLog!$C596=\"Log value\",DataLog!O596,\"\")","v":""},{"$f":"IF(DataLog!$C596=\"Log value\",DataLog!P596,\"\")","v":""},{"$f":"IF(DataLog!$C596=\"Log value\",DataLog!Q596,\"\")","v":""},{"$f":"IF(DataLog!$C596=\"Log value\",DataLog!R596,\"\")","v":""},{"$f":"IF(DataLog!$C596=\"Log value\",DataLog!S596,\"\")","v":""},{"$f":"IF(DataLog!$C596=\"Log value\",DataLog!T596,\"\")","v":""},{"$f":"IF(DataLog!$C596=\"Log value\",DataLog!U596,\"\")","v":""},{"$f":"IF(DataLog!$C596=\"Log value\",DataLog!V596,\"\")","v":""},{"$f":"IF(DataLog!$C596=\"Log value\",DataLog!W596,\"\")","v":""},{"$f":"IF(DataLog!$C596=\"Log value\",DataLog!X596,\"\")","v":""},{"$f":"IF(DataLog!$C596=\"Log value\",DataLog!Y596,\"\")","v":""},{"$f":"IF(DataLog!$C596=\"Log value\",DataLog!Z596,\"\")","v":""},{"$f":"IF(DataLog!$C596=\"Log value\",DataLog!AA596,\"\")","v":""},{"$f":"IF(DataLog!$C596=\"Log value\",DataLog!AB596,\"\")","v":""},{"$f":"IF(DataLog!$C596=\"Log value\",DataLog!AC596,\"\")","v":""},{"$f":"IF(DataLog!$C596=\"Log value\",DataLog!AD596,\"\")","v":""},{"$f":"IF(DataLog!$C596=\"Log value\",DataLog!AE596,\"\")","v":""},{"$f":"IF(DataLog!$C596=\"Log value\",DataLog!AF596,\"\")","v":""},{"$f":"IF(DataLog!$C596=\"Log value\",DataLog!AG596,\"\")","v":""},{"$f":"IF(DataLog!$C596=\"Log value\",DataLog!AH596,\"\")","v":""},{"$f":"IF(DataLog!$C596=\"Log value\",DataLog!AI596,\"\")","v":""},{"$f":"IF(DataLog!$C596=\"Log value\",DataLog!AJ596,\"\")","v":""},{"$f":"IF(DataLog!$C596=\"Log value\",DataLog!AK596,\"\")","v":""},{"$f":"IF(DataLog!$C596=\"Log value\",DataLog!AL596,\"\")","v":""},{"$f":"IF(DataLog!$C596=\"Log value\",DataLog!AM596,\"\")","v":""}]
[null,null,null,null,null,null,{"$f":"IF(DataLog!$C597=\"Log value\",DataLog!D597&\"_\"&TEXT(DataLog!B597,\"åååå-mm-dd\"),\"\")","v":""},{"$f":"IF(DataLog!$C597=\"Log value\",DataLog!E597,\"\")","v":""},{"$f":"IF(DataLog!$C597=\"Log value\",DataLog!F597,\"\")","v":""},{"$f":"IF(DataLog!$C597=\"Log value\",DataLog!G597,\"\")","v":""},{"$f":"IF(DataLog!$C597=\"Log value\",DataLog!H597,\"\")","v":""},{"$f":"IF(DataLog!$C597=\"Log value\",DataLog!I597,\"\")","v":""},{"$f":"IF(DataLog!$C597=\"Log value\",DataLog!J597,\"\")","v":""},{"$f":"IF(DataLog!$C597=\"Log value\",DataLog!K597,\"\")","v":""},{"$f":"IF(DataLog!$C597=\"Log value\",DataLog!L597,\"\")","v":""},{"$f":"IF(DataLog!$C597=\"Log value\",DataLog!M597,\"\")","v":""},{"$f":"IF(DataLog!$C597=\"Log value\",DataLog!N597,\"\")","v":""},{"$f":"IF(DataLog!$C597=\"Log value\",DataLog!O597,\"\")","v":""},{"$f":"IF(DataLog!$C597=\"Log value\",DataLog!P597,\"\")","v":""},{"$f":"IF(DataLog!$C597=\"Log value\",DataLog!Q597,\"\")","v":""},{"$f":"IF(DataLog!$C597=\"Log value\",DataLog!R597,\"\")","v":""},{"$f":"IF(DataLog!$C597=\"Log value\",DataLog!S597,\"\")","v":""},{"$f":"IF(DataLog!$C597=\"Log value\",DataLog!T597,\"\")","v":""},{"$f":"IF(DataLog!$C597=\"Log value\",DataLog!U597,\"\")","v":""},{"$f":"IF(DataLog!$C597=\"Log value\",DataLog!V597,\"\")","v":""},{"$f":"IF(DataLog!$C597=\"Log value\",DataLog!W597,\"\")","v":""},{"$f":"IF(DataLog!$C597=\"Log value\",DataLog!X597,\"\")","v":""},{"$f":"IF(DataLog!$C597=\"Log value\",DataLog!Y597,\"\")","v":""},{"$f":"IF(DataLog!$C597=\"Log value\",DataLog!Z597,\"\")","v":""},{"$f":"IF(DataLog!$C597=\"Log value\",DataLog!AA597,\"\")","v":""},{"$f":"IF(DataLog!$C597=\"Log value\",DataLog!AB597,\"\")","v":""},{"$f":"IF(DataLog!$C597=\"Log value\",DataLog!AC597,\"\")","v":""},{"$f":"IF(DataLog!$C597=\"Log value\",DataLog!AD597,\"\")","v":""},{"$f":"IF(DataLog!$C597=\"Log value\",DataLog!AE597,\"\")","v":""},{"$f":"IF(DataLog!$C597=\"Log value\",DataLog!AF597,\"\")","v":""},{"$f":"IF(DataLog!$C597=\"Log value\",DataLog!AG597,\"\")","v":""},{"$f":"IF(DataLog!$C597=\"Log value\",DataLog!AH597,\"\")","v":""},{"$f":"IF(DataLog!$C597=\"Log value\",DataLog!AI597,\"\")","v":""},{"$f":"IF(DataLog!$C597=\"Log value\",DataLog!AJ597,\"\")","v":""},{"$f":"IF(DataLog!$C597=\"Log value\",DataLog!AK597,\"\")","v":""},{"$f":"IF(DataLog!$C597=\"Log value\",DataLog!AL597,\"\")","v":""},{"$f":"IF(DataLog!$C597=\"Log value\",DataLog!AM597,\"\")","v":""}]
[null,null,null,null,null,null,{"$f":"IF(DataLog!$C598=\"Log value\",DataLog!D598&\"_\"&TEXT(DataLog!B598,\"åååå-mm-dd\"),\"\")","v":""},{"$f":"IF(DataLog!$C598=\"Log value\",DataLog!E598,\"\")","v":""},{"$f":"IF(DataLog!$C598=\"Log value\",DataLog!F598,\"\")","v":""},{"$f":"IF(DataLog!$C598=\"Log value\",DataLog!G598,\"\")","v":""},{"$f":"IF(DataLog!$C598=\"Log value\",DataLog!H598,\"\")","v":""},{"$f":"IF(DataLog!$C598=\"Log value\",DataLog!I598,\"\")","v":""},{"$f":"IF(DataLog!$C598=\"Log value\",DataLog!J598,\"\")","v":""},{"$f":"IF(DataLog!$C598=\"Log value\",DataLog!K598,\"\")","v":""},{"$f":"IF(DataLog!$C598=\"Log value\",DataLog!L598,\"\")","v":""},{"$f":"IF(DataLog!$C598=\"Log value\",DataLog!M598,\"\")","v":""},{"$f":"IF(DataLog!$C598=\"Log value\",DataLog!N598,\"\")","v":""},{"$f":"IF(DataLog!$C598=\"Log value\",DataLog!O598,\"\")","v":""},{"$f":"IF(DataLog!$C598=\"Log value\",DataLog!P598,\"\")","v":""},{"$f":"IF(DataLog!$C598=\"Log value\",DataLog!Q598,\"\")","v":""},{"$f":"IF(DataLog!$C598=\"Log value\",DataLog!R598,\"\")","v":""},{"$f":"IF(DataLog!$C598=\"Log value\",DataLog!S598,\"\")","v":""},{"$f":"IF(DataLog!$C598=\"Log value\",DataLog!T598,\"\")","v":""},{"$f":"IF(DataLog!$C598=\"Log value\",DataLog!U598,\"\")","v":""},{"$f":"IF(DataLog!$C598=\"Log value\",DataLog!V598,\"\")","v":""},{"$f":"IF(DataLog!$C598=\"Log value\",DataLog!W598,\"\")","v":""},{"$f":"IF(DataLog!$C598=\"Log value\",DataLog!X598,\"\")","v":""},{"$f":"IF(DataLog!$C598=\"Log value\",DataLog!Y598,\"\")","v":""},{"$f":"IF(DataLog!$C598=\"Log value\",DataLog!Z598,\"\")","v":""},{"$f":"IF(DataLog!$C598=\"Log value\",DataLog!AA598,\"\")","v":""},{"$f":"IF(DataLog!$C598=\"Log value\",DataLog!AB598,\"\")","v":""},{"$f":"IF(DataLog!$C598=\"Log value\",DataLog!AC598,\"\")","v":""},{"$f":"IF(DataLog!$C598=\"Log value\",DataLog!AD598,\"\")","v":""},{"$f":"IF(DataLog!$C598=\"Log value\",DataLog!AE598,\"\")","v":""},{"$f":"IF(DataLog!$C598=\"Log value\",DataLog!AF598,\"\")","v":""},{"$f":"IF(DataLog!$C598=\"Log value\",DataLog!AG598,\"\")","v":""},{"$f":"IF(DataLog!$C598=\"Log value\",DataLog!AH598,\"\")","v":""},{"$f":"IF(DataLog!$C598=\"Log value\",DataLog!AI598,\"\")","v":""},{"$f":"IF(DataLog!$C598=\"Log value\",DataLog!AJ598,\"\")","v":""},{"$f":"IF(DataLog!$C598=\"Log value\",DataLog!AK598,\"\")","v":""},{"$f":"IF(DataLog!$C598=\"Log value\",DataLog!AL598,\"\")","v":""},{"$f":"IF(DataLog!$C598=\"Log value\",DataLog!AM598,\"\")","v":""}]
[null,null,null,null,null,null,{"$f":"IF(DataLog!$C599=\"Log value\",DataLog!D599&\"_\"&TEXT(DataLog!B599,\"åååå-mm-dd\"),\"\")","v":""},{"$f":"IF(DataLog!$C599=\"Log value\",DataLog!E599,\"\")","v":""},{"$f":"IF(DataLog!$C599=\"Log value\",DataLog!F599,\"\")","v":""},{"$f":"IF(DataLog!$C599=\"Log value\",DataLog!G599,\"\")","v":""},{"$f":"IF(DataLog!$C599=\"Log value\",DataLog!H599,\"\")","v":""},{"$f":"IF(DataLog!$C599=\"Log value\",DataLog!I599,\"\")","v":""},{"$f":"IF(DataLog!$C599=\"Log value\",DataLog!J599,\"\")","v":""},{"$f":"IF(DataLog!$C599=\"Log value\",DataLog!K599,\"\")","v":""},{"$f":"IF(DataLog!$C599=\"Log value\",DataLog!L599,\"\")","v":""},{"$f":"IF(DataLog!$C599=\"Log value\",DataLog!M599,\"\")","v":""},{"$f":"IF(DataLog!$C599=\"Log value\",DataLog!N599,\"\")","v":""},{"$f":"IF(DataLog!$C599=\"Log value\",DataLog!O599,\"\")","v":""},{"$f":"IF(DataLog!$C599=\"Log value\",DataLog!P599,\"\")","v":""},{"$f":"IF(DataLog!$C599=\"Log value\",DataLog!Q599,\"\")","v":""},{"$f":"IF(DataLog!$C599=\"Log value\",DataLog!R599,\"\")","v":""},{"$f":"IF(DataLog!$C599=\"Log value\",DataLog!S599,\"\")","v":""},{"$f":"IF(DataLog!$C599=\"Log value\",DataLog!T599,\"\")","v":""},{"$f":"IF(DataLog!$C599=\"Log value\",DataLog!U599,\"\")","v":""},{"$f":"IF(DataLog!$C599=\"Log value\",DataLog!V599,\"\")","v":""},{"$f":"IF(DataLog!$C599=\"Log value\",DataLog!W599,\"\")","v":""},{"$f":"IF(DataLog!$C599=\"Log value\",DataLog!X599,\"\")","v":""},{"$f":"IF(DataLog!$C599=\"Log value\",DataLog!Y599,\"\")","v":""},{"$f":"IF(DataLog!$C599=\"Log value\",DataLog!Z599,\"\")","v":""},{"$f":"IF(DataLog!$C599=\"Log value\",DataLog!AA599,\"\")","v":""},{"$f":"IF(DataLog!$C599=\"Log value\",DataLog!AB599,\"\")","v":""},{"$f":"IF(DataLog!$C599=\"Log value\",DataLog!AC599,\"\")","v":""},{"$f":"IF(DataLog!$C599=\"Log value\",DataLog!AD599,\"\")","v":""},{"$f":"IF(DataLog!$C599=\"Log value\",DataLog!AE599,\"\")","v":""},{"$f":"IF(DataLog!$C599=\"Log value\",DataLog!AF599,\"\")","v":""},{"$f":"IF(DataLog!$C599=\"Log value\",DataLog!AG599,\"\")","v":""},{"$f":"IF(DataLog!$C599=\"Log value\",DataLog!AH599,\"\")","v":""},{"$f":"IF(DataLog!$C599=\"Log value\",DataLog!AI599,\"\")","v":""},{"$f":"IF(DataLog!$C599=\"Log value\",DataLog!AJ599,\"\")","v":""},{"$f":"IF(DataLog!$C599=\"Log value\",DataLog!AK599,\"\")","v":""},{"$f":"IF(DataLog!$C599=\"Log value\",DataLog!AL599,\"\")","v":""},{"$f":"IF(DataLog!$C599=\"Log value\",DataLog!AM599,\"\")","v":""}]
[null,null,null,null,null,null,{"$f":"IF(DataLog!$C600=\"Log value\",DataLog!D600&\"_\"&TEXT(DataLog!B600,\"åååå-mm-dd\"),\"\")","v":""},{"$f":"IF(DataLog!$C600=\"Log value\",DataLog!E600,\"\")","v":""},{"$f":"IF(DataLog!$C600=\"Log value\",DataLog!F600,\"\")","v":""},{"$f":"IF(DataLog!$C600=\"Log value\",DataLog!G600,\"\")","v":""},{"$f":"IF(DataLog!$C600=\"Log value\",DataLog!H600,\"\")","v":""},{"$f":"IF(DataLog!$C600=\"Log value\",DataLog!I600,\"\")","v":""},{"$f":"IF(DataLog!$C600=\"Log value\",DataLog!J600,\"\")","v":""},{"$f":"IF(DataLog!$C600=\"Log value\",DataLog!K600,\"\")","v":""},{"$f":"IF(DataLog!$C600=\"Log value\",DataLog!L600,\"\")","v":""},{"$f":"IF(DataLog!$C600=\"Log value\",DataLog!M600,\"\")","v":""},{"$f":"IF(DataLog!$C600=\"Log value\",DataLog!N600,\"\")","v":""},{"$f":"IF(DataLog!$C600=\"Log value\",DataLog!O600,\"\")","v":""},{"$f":"IF(DataLog!$C600=\"Log value\",DataLog!P600,\"\")","v":""},{"$f":"IF(DataLog!$C600=\"Log value\",DataLog!Q600,\"\")","v":""},{"$f":"IF(DataLog!$C600=\"Log value\",DataLog!R600,\"\")","v":""},{"$f":"IF(DataLog!$C600=\"Log value\",DataLog!S600,\"\")","v":""},{"$f":"IF(DataLog!$C600=\"Log value\",DataLog!T600,\"\")","v":""},{"$f":"IF(DataLog!$C600=\"Log value\",DataLog!U600,\"\")","v":""},{"$f":"IF(DataLog!$C600=\"Log value\",DataLog!V600,\"\")","v":""},{"$f":"IF(DataLog!$C600=\"Log value\",DataLog!W600,\"\")","v":""},{"$f":"IF(DataLog!$C600=\"Log value\",DataLog!X600,\"\")","v":""},{"$f":"IF(DataLog!$C600=\"Log value\",DataLog!Y600,\"\")","v":""},{"$f":"IF(DataLog!$C600=\"Log value\",DataLog!Z600,\"\")","v":""},{"$f":"IF(DataLog!$C600=\"Log value\",DataLog!AA600,\"\")","v":""},{"$f":"IF(DataLog!$C600=\"Log value\",DataLog!AB600,\"\")","v":""},{"$f":"IF(DataLog!$C600=\"Log value\",DataLog!AC600,\"\")","v":""},{"$f":"IF(DataLog!$C600=\"Log value\",DataLog!AD600,\"\")","v":""},{"$f":"IF(DataLog!$C600=\"Log value\",DataLog!AE600,\"\")","v":""},{"$f":"IF(DataLog!$C600=\"Log value\",DataLog!AF600,\"\")","v":""},{"$f":"IF(DataLog!$C600=\"Log value\",DataLog!AG600,\"\")","v":""},{"$f":"IF(DataLog!$C600=\"Log value\",DataLog!AH600,\"\")","v":""},{"$f":"IF(DataLog!$C600=\"Log value\",DataLog!AI600,\"\")","v":""},{"$f":"IF(DataLog!$C600=\"Log value\",DataLog!AJ600,\"\")","v":""},{"$f":"IF(DataLog!$C600=\"Log value\",DataLog!AK600,\"\")","v":""},{"$f":"IF(DataLog!$C600=\"Log value\",DataLog!AL600,\"\")","v":""},{"$f":"IF(DataLog!$C600=\"Log value\",DataLog!AM600,\"\")","v":""}]
[null,null,null,null,null,null,{"$f":"IF(DataLog!$C601=\"Log value\",DataLog!D601&\"_\"&TEXT(DataLog!B601,\"åååå-mm-dd\"),\"\")","v":""},{"$f":"IF(DataLog!$C601=\"Log value\",DataLog!E601,\"\")","v":""},{"$f":"IF(DataLog!$C601=\"Log value\",DataLog!F601,\"\")","v":""},{"$f":"IF(DataLog!$C601=\"Log value\",DataLog!G601,\"\")","v":""},{"$f":"IF(DataLog!$C601=\"Log value\",DataLog!H601,\"\")","v":""},{"$f":"IF(DataLog!$C601=\"Log value\",DataLog!I601,\"\")","v":""},{"$f":"IF(DataLog!$C601=\"Log value\",DataLog!J601,\"\")","v":""},{"$f":"IF(DataLog!$C601=\"Log value\",DataLog!K601,\"\")","v":""},{"$f":"IF(DataLog!$C601=\"Log value\",DataLog!L601,\"\")","v":""},{"$f":"IF(DataLog!$C601=\"Log value\",DataLog!M601,\"\")","v":""},{"$f":"IF(DataLog!$C601=\"Log value\",DataLog!N601,\"\")","v":""},{"$f":"IF(DataLog!$C601=\"Log value\",DataLog!O601,\"\")","v":""},{"$f":"IF(DataLog!$C601=\"Log value\",DataLog!P601,\"\")","v":""},{"$f":"IF(DataLog!$C601=\"Log value\",DataLog!Q601,\"\")","v":""},{"$f":"IF(DataLog!$C601=\"Log value\",DataLog!R601,\"\")","v":""},{"$f":"IF(DataLog!$C601=\"Log value\",DataLog!S601,\"\")","v":""},{"$f":"IF(DataLog!$C601=\"Log value\",DataLog!T601,\"\")","v":""},{"$f":"IF(DataLog!$C601=\"Log value\",DataLog!U601,\"\")","v":""},{"$f":"IF(DataLog!$C601=\"Log value\",DataLog!V601,\"\")","v":""},{"$f":"IF(DataLog!$C601=\"Log value\",DataLog!W601,\"\")","v":""},{"$f":"IF(DataLog!$C601=\"Log value\",DataLog!X601,\"\")","v":""},{"$f":"IF(DataLog!$C601=\"Log value\",DataLog!Y601,\"\")","v":""},{"$f":"IF(DataLog!$C601=\"Log value\",DataLog!Z601,\"\")","v":""},{"$f":"IF(DataLog!$C601=\"Log value\",DataLog!AA601,\"\")","v":""},{"$f":"IF(DataLog!$C601=\"Log value\",DataLog!AB601,\"\")","v":""},{"$f":"IF(DataLog!$C601=\"Log value\",DataLog!AC601,\"\")","v":""},{"$f":"IF(DataLog!$C601=\"Log value\",DataLog!AD601,\"\")","v":""},{"$f":"IF(DataLog!$C601=\"Log value\",DataLog!AE601,\"\")","v":""},{"$f":"IF(DataLog!$C601=\"Log value\",DataLog!AF601,\"\")","v":""},{"$f":"IF(DataLog!$C601=\"Log value\",DataLog!AG601,\"\")","v":""},{"$f":"IF(DataLog!$C601=\"Log value\",DataLog!AH601,\"\")","v":""},{"$f":"IF(DataLog!$C601=\"Log value\",DataLog!AI601,\"\")","v":""},{"$f":"IF(DataLog!$C601=\"Log value\",DataLog!AJ601,\"\")","v":""},{"$f":"IF(DataLog!$C601=\"Log value\",DataLog!AK601,\"\")","v":""},{"$f":"IF(DataLog!$C601=\"Log value\",DataLog!AL601,\"\")","v":""},{"$f":"IF(DataLog!$C601=\"Log value\",DataLog!AM601,\"\")","v":""}]
[null,null,null,null,null,null,{"$f":"IF(DataLog!$C602=\"Log value\",DataLog!D602&\"_\"&TEXT(DataLog!B602,\"åååå-mm-dd\"),\"\")","v":""},{"$f":"IF(DataLog!$C602=\"Log value\",DataLog!E602,\"\")","v":""},{"$f":"IF(DataLog!$C602=\"Log value\",DataLog!F602,\"\")","v":""},{"$f":"IF(DataLog!$C602=\"Log value\",DataLog!G602,\"\")","v":""},{"$f":"IF(DataLog!$C602=\"Log value\",DataLog!H602,\"\")","v":""},{"$f":"IF(DataLog!$C602=\"Log value\",DataLog!I602,\"\")","v":""},{"$f":"IF(DataLog!$C602=\"Log value\",DataLog!J602,\"\")","v":""},{"$f":"IF(DataLog!$C602=\"Log value\",DataLog!K602,\"\")","v":""},{"$f":"IF(DataLog!$C602=\"Log value\",DataLog!L602,\"\")","v":""},{"$f":"IF(DataLog!$C602=\"Log value\",DataLog!M602,\"\")","v":""},{"$f":"IF(DataLog!$C602=\"Log value\",DataLog!N602,\"\")","v":""},{"$f":"IF(DataLog!$C602=\"Log value\",DataLog!O602,\"\")","v":""},{"$f":"IF(DataLog!$C602=\"Log value\",DataLog!P602,\"\")","v":""},{"$f":"IF(DataLog!$C602=\"Log value\",DataLog!Q602,\"\")","v":""},{"$f":"IF(DataLog!$C602=\"Log value\",DataLog!R602,\"\")","v":""},{"$f":"IF(DataLog!$C602=\"Log value\",DataLog!S602,\"\")","v":""},{"$f":"IF(DataLog!$C602=\"Log value\",DataLog!T602,\"\")","v":""},{"$f":"IF(DataLog!$C602=\"Log value\",DataLog!U602,\"\")","v":""},{"$f":"IF(DataLog!$C602=\"Log value\",DataLog!V602,\"\")","v":""},{"$f":"IF(DataLog!$C602=\"Log value\",DataLog!W602,\"\")","v":""},{"$f":"IF(DataLog!$C602=\"Log value\",DataLog!X602,\"\")","v":""},{"$f":"IF(DataLog!$C602=\"Log value\",DataLog!Y602,\"\")","v":""},{"$f":"IF(DataLog!$C602=\"Log value\",DataLog!Z602,\"\")","v":""},{"$f":"IF(DataLog!$C602=\"Log value\",DataLog!AA602,\"\")","v":""},{"$f":"IF(DataLog!$C602=\"Log value\",DataLog!AB602,\"\")","v":""},{"$f":"IF(DataLog!$C602=\"Log value\",DataLog!AC602,\"\")","v":""},{"$f":"IF(DataLog!$C602=\"Log value\",DataLog!AD602,\"\")","v":""},{"$f":"IF(DataLog!$C602=\"Log value\",DataLog!AE602,\"\")","v":""},{"$f":"IF(DataLog!$C602=\"Log value\",DataLog!AF602,\"\")","v":""},{"$f":"IF(DataLog!$C602=\"Log value\",DataLog!AG602,\"\")","v":""},{"$f":"IF(DataLog!$C602=\"Log value\",DataLog!AH602,\"\")","v":""},{"$f":"IF(DataLog!$C602=\"Log value\",DataLog!AI602,\"\")","v":""},{"$f":"IF(DataLog!$C602=\"Log value\",DataLog!AJ602,\"\")","v":""},{"$f":"IF(DataLog!$C602=\"Log value\",DataLog!AK602,\"\")","v":""},{"$f":"IF(DataLog!$C602=\"Log value\",DataLog!AL602,\"\")","v":""},{"$f":"IF(DataLog!$C602=\"Log value\",DataLog!AM602,\"\")","v":""}]
[null,null,null,null,null,null,{"$f":"IF(DataLog!$C603=\"Log value\",DataLog!D603&\"_\"&TEXT(DataLog!B603,\"åååå-mm-dd\"),\"\")","v":""},{"$f":"IF(DataLog!$C603=\"Log value\",DataLog!E603,\"\")","v":""},{"$f":"IF(DataLog!$C603=\"Log value\",DataLog!F603,\"\")","v":""},{"$f":"IF(DataLog!$C603=\"Log value\",DataLog!G603,\"\")","v":""},{"$f":"IF(DataLog!$C603=\"Log value\",DataLog!H603,\"\")","v":""},{"$f":"IF(DataLog!$C603=\"Log value\",DataLog!I603,\"\")","v":""},{"$f":"IF(DataLog!$C603=\"Log value\",DataLog!J603,\"\")","v":""},{"$f":"IF(DataLog!$C603=\"Log value\",DataLog!K603,\"\")","v":""},{"$f":"IF(DataLog!$C603=\"Log value\",DataLog!L603,\"\")","v":""},{"$f":"IF(DataLog!$C603=\"Log value\",DataLog!M603,\"\")","v":""},{"$f":"IF(DataLog!$C603=\"Log value\",DataLog!N603,\"\")","v":""},{"$f":"IF(DataLog!$C603=\"Log value\",DataLog!O603,\"\")","v":""},{"$f":"IF(DataLog!$C603=\"Log value\",DataLog!P603,\"\")","v":""},{"$f":"IF(DataLog!$C603=\"Log value\",DataLog!Q603,\"\")","v":""},{"$f":"IF(DataLog!$C603=\"Log value\",DataLog!R603,\"\")","v":""},{"$f":"IF(DataLog!$C603=\"Log value\",DataLog!S603,\"\")","v":""},{"$f":"IF(DataLog!$C603=\"Log value\",DataLog!T603,\"\")","v":""},{"$f":"IF(DataLog!$C603=\"Log value\",DataLog!U603,\"\")","v":""},{"$f":"IF(DataLog!$C603=\"Log value\",DataLog!V603,\"\")","v":""},{"$f":"IF(DataLog!$C603=\"Log value\",DataLog!W603,\"\")","v":""},{"$f":"IF(DataLog!$C603=\"Log value\",DataLog!X603,\"\")","v":""},{"$f":"IF(DataLog!$C603=\"Log value\",DataLog!Y603,\"\")","v":""},{"$f":"IF(DataLog!$C603=\"Log value\",DataLog!Z603,\"\")","v":""},{"$f":"IF(DataLog!$C603=\"Log value\",DataLog!AA603,\"\")","v":""},{"$f":"IF(DataLog!$C603=\"Log value\",DataLog!AB603,\"\")","v":""},{"$f":"IF(DataLog!$C603=\"Log value\",DataLog!AC603,\"\")","v":""},{"$f":"IF(DataLog!$C603=\"Log value\",DataLog!AD603,\"\")","v":""},{"$f":"IF(DataLog!$C603=\"Log value\",DataLog!AE603,\"\")","v":""},{"$f":"IF(DataLog!$C603=\"Log value\",DataLog!AF603,\"\")","v":""},{"$f":"IF(DataLog!$C603=\"Log value\",DataLog!AG603,\"\")","v":""},{"$f":"IF(DataLog!$C603=\"Log value\",DataLog!AH603,\"\")","v":""},{"$f":"IF(DataLog!$C603=\"Log value\",DataLog!AI603,\"\")","v":""},{"$f":"IF(DataLog!$C603=\"Log value\",DataLog!AJ603,\"\")","v":""},{"$f":"IF(DataLog!$C603=\"Log value\",DataLog!AK603,\"\")","v":""},{"$f":"IF(DataLog!$C603=\"Log value\",DataLog!AL603,\"\")","v":""},{"$f":"IF(DataLog!$C603=\"Log value\",DataLog!AM603,\"\")","v":""}]
[null,null,null,null,null,null,{"$f":"IF(DataLog!$C604=\"Log value\",DataLog!D604&\"_\"&TEXT(DataLog!B604,\"åååå-mm-dd\"),\"\")","v":""},{"$f":"IF(DataLog!$C604=\"Log value\",DataLog!E604,\"\")","v":""},{"$f":"IF(DataLog!$C604=\"Log value\",DataLog!F604,\"\")","v":""},{"$f":"IF(DataLog!$C604=\"Log value\",DataLog!G604,\"\")","v":""},{"$f":"IF(DataLog!$C604=\"Log value\",DataLog!H604,\"\")","v":""},{"$f":"IF(DataLog!$C604=\"Log value\",DataLog!I604,\"\")","v":""},{"$f":"IF(DataLog!$C604=\"Log value\",DataLog!J604,\"\")","v":""},{"$f":"IF(DataLog!$C604=\"Log value\",DataLog!K604,\"\")","v":""},{"$f":"IF(DataLog!$C604=\"Log value\",DataLog!L604,\"\")","v":""},{"$f":"IF(DataLog!$C604=\"Log value\",DataLog!M604,\"\")","v":""},{"$f":"IF(DataLog!$C604=\"Log value\",DataLog!N604,\"\")","v":""},{"$f":"IF(DataLog!$C604=\"Log value\",DataLog!O604,\"\")","v":""},{"$f":"IF(DataLog!$C604=\"Log value\",DataLog!P604,\"\")","v":""},{"$f":"IF(DataLog!$C604=\"Log value\",DataLog!Q604,\"\")","v":""},{"$f":"IF(DataLog!$C604=\"Log value\",DataLog!R604,\"\")","v":""},{"$f":"IF(DataLog!$C604=\"Log value\",DataLog!S604,\"\")","v":""},{"$f":"IF(DataLog!$C604=\"Log value\",DataLog!T604,\"\")","v":""},{"$f":"IF(DataLog!$C604=\"Log value\",DataLog!U604,\"\")","v":""},{"$f":"IF(DataLog!$C604=\"Log value\",DataLog!V604,\"\")","v":""},{"$f":"IF(DataLog!$C604=\"Log value\",DataLog!W604,\"\")","v":""},{"$f":"IF(DataLog!$C604=\"Log value\",DataLog!X604,\"\")","v":""},{"$f":"IF(DataLog!$C604=\"Log value\",DataLog!Y604,\"\")","v":""},{"$f":"IF(DataLog!$C604=\"Log value\",DataLog!Z604,\"\")","v":""},{"$f":"IF(DataLog!$C604=\"Log value\",DataLog!AA604,\"\")","v":""},{"$f":"IF(DataLog!$C604=\"Log value\",DataLog!AB604,\"\")","v":""},{"$f":"IF(DataLog!$C604=\"Log value\",DataLog!AC604,\"\")","v":""},{"$f":"IF(DataLog!$C604=\"Log value\",DataLog!AD604,\"\")","v":""},{"$f":"IF(DataLog!$C604=\"Log value\",DataLog!AE604,\"\")","v":""},{"$f":"IF(DataLog!$C604=\"Log value\",DataLog!AF604,\"\")","v":""},{"$f":"IF(DataLog!$C604=\"Log value\",DataLog!AG604,\"\")","v":""},{"$f":"IF(DataLog!$C604=\"Log value\",DataLog!AH604,\"\")","v":""},{"$f":"IF(DataLog!$C604=\"Log value\",DataLog!AI604,\"\")","v":""},{"$f":"IF(DataLog!$C604=\"Log value\",DataLog!AJ604,\"\")","v":""},{"$f":"IF(DataLog!$C604=\"Log value\",DataLog!AK604,\"\")","v":""},{"$f":"IF(DataLog!$C604=\"Log value\",DataLog!AL604,\"\")","v":""},{"$f":"IF(DataLog!$C604=\"Log value\",DataLog!AM604,\"\")","v":""}]
[null,null,null,null,null,null,{"$f":"IF(DataLog!$C605=\"Log value\",DataLog!D605&\"_\"&TEXT(DataLog!B605,\"åååå-mm-dd\"),\"\")","v":""},{"$f":"IF(DataLog!$C605=\"Log value\",DataLog!E605,\"\")","v":""},{"$f":"IF(DataLog!$C605=\"Log value\",DataLog!F605,\"\")","v":""},{"$f":"IF(DataLog!$C605=\"Log value\",DataLog!G605,\"\")","v":""},{"$f":"IF(DataLog!$C605=\"Log value\",DataLog!H605,\"\")","v":""},{"$f":"IF(DataLog!$C605=\"Log value\",DataLog!I605,\"\")","v":""},{"$f":"IF(DataLog!$C605=\"Log value\",DataLog!J605,\"\")","v":""},{"$f":"IF(DataLog!$C605=\"Log value\",DataLog!K605,\"\")","v":""},{"$f":"IF(DataLog!$C605=\"Log value\",DataLog!L605,\"\")","v":""},{"$f":"IF(DataLog!$C605=\"Log value\",DataLog!M605,\"\")","v":""},{"$f":"IF(DataLog!$C605=\"Log value\",DataLog!N605,\"\")","v":""},{"$f":"IF(DataLog!$C605=\"Log value\",DataLog!O605,\"\")","v":""},{"$f":"IF(DataLog!$C605=\"Log value\",DataLog!P605,\"\")","v":""},{"$f":"IF(DataLog!$C605=\"Log value\",DataLog!Q605,\"\")","v":""},{"$f":"IF(DataLog!$C605=\"Log value\",DataLog!R605,\"\")","v":""},{"$f":"IF(DataLog!$C605=\"Log value\",DataLog!S605,\"\")","v":""},{"$f":"IF(DataLog!$C605=\"Log value\",DataLog!T605,\"\")","v":""},{"$f":"IF(DataLog!$C605=\"Log value\",DataLog!U605,\"\")","v":""},{"$f":"IF(DataLog!$C605=\"Log value\",DataLog!V605,\"\")","v":""},{"$f":"IF(DataLog!$C605=\"Log value\",DataLog!W605,\"\")","v":""},{"$f":"IF(DataLog!$C605=\"Log value\",DataLog!X605,\"\")","v":""},{"$f":"IF(DataLog!$C605=\"Log value\",DataLog!Y605,\"\")","v":""},{"$f":"IF(DataLog!$C605=\"Log value\",DataLog!Z605,\"\")","v":""},{"$f":"IF(DataLog!$C605=\"Log value\",DataLog!AA605,\"\")","v":""},{"$f":"IF(DataLog!$C605=\"Log value\",DataLog!AB605,\"\")","v":""},{"$f":"IF(DataLog!$C605=\"Log value\",DataLog!AC605,\"\")","v":""},{"$f":"IF(DataLog!$C605=\"Log value\",DataLog!AD605,\"\")","v":""},{"$f":"IF(DataLog!$C605=\"Log value\",DataLog!AE605,\"\")","v":""},{"$f":"IF(DataLog!$C605=\"Log value\",DataLog!AF605,\"\")","v":""},{"$f":"IF(DataLog!$C605=\"Log value\",DataLog!AG605,\"\")","v":""},{"$f":"IF(DataLog!$C605=\"Log value\",DataLog!AH605,\"\")","v":""},{"$f":"IF(DataLog!$C605=\"Log value\",DataLog!AI605,\"\")","v":""},{"$f":"IF(DataLog!$C605=\"Log value\",DataLog!AJ605,\"\")","v":""},{"$f":"IF(DataLog!$C605=\"Log value\",DataLog!AK605,\"\")","v":""},{"$f":"IF(DataLog!$C605=\"Log value\",DataLog!AL605,\"\")","v":""},{"$f":"IF(DataLog!$C605=\"Log value\",DataLog!AM605,\"\")","v":""}]
[null,null,null,null,null,null,{"$f":"IF(DataLog!$C606=\"Log value\",DataLog!D606&\"_\"&TEXT(DataLog!B606,\"åååå-mm-dd\"),\"\")","v":""},{"$f":"IF(DataLog!$C606=\"Log value\",DataLog!E606,\"\")","v":""},{"$f":"IF(DataLog!$C606=\"Log value\",DataLog!F606,\"\")","v":""},{"$f":"IF(DataLog!$C606=\"Log value\",DataLog!G606,\"\")","v":""},{"$f":"IF(DataLog!$C606=\"Log value\",DataLog!H606,\"\")","v":""},{"$f":"IF(DataLog!$C606=\"Log value\",DataLog!I606,\"\")","v":""},{"$f":"IF(DataLog!$C606=\"Log value\",DataLog!J606,\"\")","v":""},{"$f":"IF(DataLog!$C606=\"Log value\",DataLog!K606,\"\")","v":""},{"$f":"IF(DataLog!$C606=\"Log value\",DataLog!L606,\"\")","v":""},{"$f":"IF(DataLog!$C606=\"Log value\",DataLog!M606,\"\")","v":""},{"$f":"IF(DataLog!$C606=\"Log value\",DataLog!N606,\"\")","v":""},{"$f":"IF(DataLog!$C606=\"Log value\",DataLog!O606,\"\")","v":""},{"$f":"IF(DataLog!$C606=\"Log value\",DataLog!P606,\"\")","v":""},{"$f":"IF(DataLog!$C606=\"Log value\",DataLog!Q606,\"\")","v":""},{"$f":"IF(DataLog!$C606=\"Log value\",DataLog!R606,\"\")","v":""},{"$f":"IF(DataLog!$C606=\"Log value\",DataLog!S606,\"\")","v":""},{"$f":"IF(DataLog!$C606=\"Log value\",DataLog!T606,\"\")","v":""},{"$f":"IF(DataLog!$C606=\"Log value\",DataLog!U606,\"\")","v":""},{"$f":"IF(DataLog!$C606=\"Log value\",DataLog!V606,\"\")","v":""},{"$f":"IF(DataLog!$C606=\"Log value\",DataLog!W606,\"\")","v":""},{"$f":"IF(DataLog!$C606=\"Log value\",DataLog!X606,\"\")","v":""},{"$f":"IF(DataLog!$C606=\"Log value\",DataLog!Y606,\"\")","v":""},{"$f":"IF(DataLog!$C606=\"Log value\",DataLog!Z606,\"\")","v":""},{"$f":"IF(DataLog!$C606=\"Log value\",DataLog!AA606,\"\")","v":""},{"$f":"IF(DataLog!$C606=\"Log value\",DataLog!AB606,\"\")","v":""},{"$f":"IF(DataLog!$C606=\"Log value\",DataLog!AC606,\"\")","v":""},{"$f":"IF(DataLog!$C606=\"Log value\",DataLog!AD606,\"\")","v":""},{"$f":"IF(DataLog!$C606=\"Log value\",DataLog!AE606,\"\")","v":""},{"$f":"IF(DataLog!$C606=\"Log value\",DataLog!AF606,\"\")","v":""},{"$f":"IF(DataLog!$C606=\"Log value\",DataLog!AG606,\"\")","v":""},{"$f":"IF(DataLog!$C606=\"Log value\",DataLog!AH606,\"\")","v":""},{"$f":"IF(DataLog!$C606=\"Log value\",DataLog!AI606,\"\")","v":""},{"$f":"IF(DataLog!$C606=\"Log value\",DataLog!AJ606,\"\")","v":""},{"$f":"IF(DataLog!$C606=\"Log value\",DataLog!AK606,\"\")","v":""},{"$f":"IF(DataLog!$C606=\"Log value\",DataLog!AL606,\"\")","v":""},{"$f":"IF(DataLog!$C606=\"Log value\",DataLog!AM606,\"\")","v":""}]
[null,null,null,null,null,null,{"$f":"IF(DataLog!$C607=\"Log value\",DataLog!D607&\"_\"&TEXT(DataLog!B607,\"åååå-mm-dd\"),\"\")","v":""},{"$f":"IF(DataLog!$C607=\"Log value\",DataLog!E607,\"\")","v":""},{"$f":"IF(DataLog!$C607=\"Log value\",DataLog!F607,\"\")","v":""},{"$f":"IF(DataLog!$C607=\"Log value\",DataLog!G607,\"\")","v":""},{"$f":"IF(DataLog!$C607=\"Log value\",DataLog!H607,\"\")","v":""},{"$f":"IF(DataLog!$C607=\"Log value\",DataLog!I607,\"\")","v":""},{"$f":"IF(DataLog!$C607=\"Log value\",DataLog!J607,\"\")","v":""},{"$f":"IF(DataLog!$C607=\"Log value\",DataLog!K607,\"\")","v":""},{"$f":"IF(DataLog!$C607=\"Log value\",DataLog!L607,\"\")","v":""},{"$f":"IF(DataLog!$C607=\"Log value\",DataLog!M607,\"\")","v":""},{"$f":"IF(DataLog!$C607=\"Log value\",DataLog!N607,\"\")","v":""},{"$f":"IF(DataLog!$C607=\"Log value\",DataLog!O607,\"\")","v":""},{"$f":"IF(DataLog!$C607=\"Log value\",DataLog!P607,\"\")","v":""},{"$f":"IF(DataLog!$C607=\"Log value\",DataLog!Q607,\"\")","v":""},{"$f":"IF(DataLog!$C607=\"Log value\",DataLog!R607,\"\")","v":""},{"$f":"IF(DataLog!$C607=\"Log value\",DataLog!S607,\"\")","v":""},{"$f":"IF(DataLog!$C607=\"Log value\",DataLog!T607,\"\")","v":""},{"$f":"IF(DataLog!$C607=\"Log value\",DataLog!U607,\"\")","v":""},{"$f":"IF(DataLog!$C607=\"Log value\",DataLog!V607,\"\")","v":""},{"$f":"IF(DataLog!$C607=\"Log value\",DataLog!W607,\"\")","v":""},{"$f":"IF(DataLog!$C607=\"Log value\",DataLog!X607,\"\")","v":""},{"$f":"IF(DataLog!$C607=\"Log value\",DataLog!Y607,\"\")","v":""},{"$f":"IF(DataLog!$C607=\"Log value\",DataLog!Z607,\"\")","v":""},{"$f":"IF(DataLog!$C607=\"Log value\",DataLog!AA607,\"\")","v":""},{"$f":"IF(DataLog!$C607=\"Log value\",DataLog!AB607,\"\")","v":""},{"$f":"IF(DataLog!$C607=\"Log value\",DataLog!AC607,\"\")","v":""},{"$f":"IF(DataLog!$C607=\"Log value\",DataLog!AD607,\"\")","v":""},{"$f":"IF(DataLog!$C607=\"Log value\",DataLog!AE607,\"\")","v":""},{"$f":"IF(DataLog!$C607=\"Log value\",DataLog!AF607,\"\")","v":""},{"$f":"IF(DataLog!$C607=\"Log value\",DataLog!AG607,\"\")","v":""},{"$f":"IF(DataLog!$C607=\"Log value\",DataLog!AH607,\"\")","v":""},{"$f":"IF(DataLog!$C607=\"Log value\",DataLog!AI607,\"\")","v":""},{"$f":"IF(DataLog!$C607=\"Log value\",DataLog!AJ607,\"\")","v":""},{"$f":"IF(DataLog!$C607=\"Log value\",DataLog!AK607,\"\")","v":""},{"$f":"IF(DataLog!$C607=\"Log value\",DataLog!AL607,\"\")","v":""},{"$f":"IF(DataLog!$C607=\"Log value\",DataLog!AM607,\"\")","v":""}]
[null,null,null,null,null,null,{"$f":"IF(DataLog!$C608=\"Log value\",DataLog!D608&\"_\"&TEXT(DataLog!B608,\"åååå-mm-dd\"),\"\")","v":""},{"$f":"IF(DataLog!$C608=\"Log value\",DataLog!E608,\"\")","v":""},{"$f":"IF(DataLog!$C608=\"Log value\",DataLog!F608,\"\")","v":""},{"$f":"IF(DataLog!$C608=\"Log value\",DataLog!G608,\"\")","v":""},{"$f":"IF(DataLog!$C608=\"Log value\",DataLog!H608,\"\")","v":""},{"$f":"IF(DataLog!$C608=\"Log value\",DataLog!I608,\"\")","v":""},{"$f":"IF(DataLog!$C608=\"Log value\",DataLog!J608,\"\")","v":""},{"$f":"IF(DataLog!$C608=\"Log value\",DataLog!K608,\"\")","v":""},{"$f":"IF(DataLog!$C608=\"Log value\",DataLog!L608,\"\")","v":""},{"$f":"IF(DataLog!$C608=\"Log value\",DataLog!M608,\"\")","v":""},{"$f":"IF(DataLog!$C608=\"Log value\",DataLog!N608,\"\")","v":""},{"$f":"IF(DataLog!$C608=\"Log value\",DataLog!O608,\"\")","v":""},{"$f":"IF(DataLog!$C608=\"Log value\",DataLog!P608,\"\")","v":""},{"$f":"IF(DataLog!$C608=\"Log value\",DataLog!Q608,\"\")","v":""},{"$f":"IF(DataLog!$C608=\"Log value\",DataLog!R608,\"\")","v":""},{"$f":"IF(DataLog!$C608=\"Log value\",DataLog!S608,\"\")","v":""},{"$f":"IF(DataLog!$C608=\"Log value\",DataLog!T608,\"\")","v":""},{"$f":"IF(DataLog!$C608=\"Log value\",DataLog!U608,\"\")","v":""},{"$f":"IF(DataLog!$C608=\"Log value\",DataLog!V608,\"\")","v":""},{"$f":"IF(DataLog!$C608=\"Log value\",DataLog!W608,\"\")","v":""},{"$f":"IF(DataLog!$C608=\"Log value\",DataLog!X608,\"\")","v":""},{"$f":"IF(DataLog!$C608=\"Log value\",DataLog!Y608,\"\")","v":""},{"$f":"IF(DataLog!$C608=\"Log value\",DataLog!Z608,\"\")","v":""},{"$f":"IF(DataLog!$C608=\"Log value\",DataLog!AA608,\"\")","v":""},{"$f":"IF(DataLog!$C608=\"Log value\",DataLog!AB608,\"\")","v":""},{"$f":"IF(DataLog!$C608=\"Log value\",DataLog!AC608,\"\")","v":""},{"$f":"IF(DataLog!$C608=\"Log value\",DataLog!AD608,\"\")","v":""},{"$f":"IF(DataLog!$C608=\"Log value\",DataLog!AE608,\"\")","v":""},{"$f":"IF(DataLog!$C608=\"Log value\",DataLog!AF608,\"\")","v":""},{"$f":"IF(DataLog!$C608=\"Log value\",DataLog!AG608,\"\")","v":""},{"$f":"IF(DataLog!$C608=\"Log value\",DataLog!AH608,\"\")","v":""},{"$f":"IF(DataLog!$C608=\"Log value\",DataLog!AI608,\"\")","v":""},{"$f":"IF(DataLog!$C608=\"Log value\",DataLog!AJ608,\"\")","v":""},{"$f":"IF(DataLog!$C608=\"Log value\",DataLog!AK608,\"\")","v":""},{"$f":"IF(DataLog!$C608=\"Log value\",DataLog!AL608,\"\")","v":""},{"$f":"IF(DataLog!$C608=\"Log value\",DataLog!AM608,\"\")","v":""}]
[null,null,null,null,null,null,{"$f":"IF(DataLog!$C609=\"Log value\",DataLog!D609&\"_\"&TEXT(DataLog!B609,\"åååå-mm-dd\"),\"\")","v":""},{"$f":"IF(DataLog!$C609=\"Log value\",DataLog!E609,\"\")","v":""},{"$f":"IF(DataLog!$C609=\"Log value\",DataLog!F609,\"\")","v":""},{"$f":"IF(DataLog!$C609=\"Log value\",DataLog!G609,\"\")","v":""},{"$f":"IF(DataLog!$C609=\"Log value\",DataLog!H609,\"\")","v":""},{"$f":"IF(DataLog!$C609=\"Log value\",DataLog!I609,\"\")","v":""},{"$f":"IF(DataLog!$C609=\"Log value\",DataLog!J609,\"\")","v":""},{"$f":"IF(DataLog!$C609=\"Log value\",DataLog!K609,\"\")","v":""},{"$f":"IF(DataLog!$C609=\"Log value\",DataLog!L609,\"\")","v":""},{"$f":"IF(DataLog!$C609=\"Log value\",DataLog!M609,\"\")","v":""},{"$f":"IF(DataLog!$C609=\"Log value\",DataLog!N609,\"\")","v":""},{"$f":"IF(DataLog!$C609=\"Log value\",DataLog!O609,\"\")","v":""},{"$f":"IF(DataLog!$C609=\"Log value\",DataLog!P609,\"\")","v":""},{"$f":"IF(DataLog!$C609=\"Log value\",DataLog!Q609,\"\")","v":""},{"$f":"IF(DataLog!$C609=\"Log value\",DataLog!R609,\"\")","v":""},{"$f":"IF(DataLog!$C609=\"Log value\",DataLog!S609,\"\")","v":""},{"$f":"IF(DataLog!$C609=\"Log value\",DataLog!T609,\"\")","v":""},{"$f":"IF(DataLog!$C609=\"Log value\",DataLog!U609,\"\")","v":""},{"$f":"IF(DataLog!$C609=\"Log value\",DataLog!V609,\"\")","v":""},{"$f":"IF(DataLog!$C609=\"Log value\",DataLog!W609,\"\")","v":""},{"$f":"IF(DataLog!$C609=\"Log value\",DataLog!X609,\"\")","v":""},{"$f":"IF(DataLog!$C609=\"Log value\",DataLog!Y609,\"\")","v":""},{"$f":"IF(DataLog!$C609=\"Log value\",DataLog!Z609,\"\")","v":""},{"$f":"IF(DataLog!$C609=\"Log value\",DataLog!AA609,\"\")","v":""},{"$f":"IF(DataLog!$C609=\"Log value\",DataLog!AB609,\"\")","v":""},{"$f":"IF(DataLog!$C609=\"Log value\",DataLog!AC609,\"\")","v":""},{"$f":"IF(DataLog!$C609=\"Log value\",DataLog!AD609,\"\")","v":""},{"$f":"IF(DataLog!$C609=\"Log value\",DataLog!AE609,\"\")","v":""},{"$f":"IF(DataLog!$C609=\"Log value\",DataLog!AF609,\"\")","v":""},{"$f":"IF(DataLog!$C609=\"Log value\",DataLog!AG609,\"\")","v":""},{"$f":"IF(DataLog!$C609=\"Log value\",DataLog!AH609,\"\")","v":""},{"$f":"IF(DataLog!$C609=\"Log value\",DataLog!AI609,\"\")","v":""},{"$f":"IF(DataLog!$C609=\"Log value\",DataLog!AJ609,\"\")","v":""},{"$f":"IF(DataLog!$C609=\"Log value\",DataLog!AK609,\"\")","v":""},{"$f":"IF(DataLog!$C609=\"Log value\",DataLog!AL609,\"\")","v":""},{"$f":"IF(DataLog!$C609=\"Log value\",DataLog!AM609,\"\")","v":""}]
[null,null,null,null,null,null,{"$f":"IF(DataLog!$C610=\"Log value\",DataLog!D610&\"_\"&TEXT(DataLog!B610,\"åååå-mm-dd\"),\"\")","v":""},{"$f":"IF(DataLog!$C610=\"Log value\",DataLog!E610,\"\")","v":""},{"$f":"IF(DataLog!$C610=\"Log value\",DataLog!F610,\"\")","v":""},{"$f":"IF(DataLog!$C610=\"Log value\",DataLog!G610,\"\")","v":""},{"$f":"IF(DataLog!$C610=\"Log value\",DataLog!H610,\"\")","v":""},{"$f":"IF(DataLog!$C610=\"Log value\",DataLog!I610,\"\")","v":""},{"$f":"IF(DataLog!$C610=\"Log value\",DataLog!J610,\"\")","v":""},{"$f":"IF(DataLog!$C610=\"Log value\",DataLog!K610,\"\")","v":""},{"$f":"IF(DataLog!$C610=\"Log value\",DataLog!L610,\"\")","v":""},{"$f":"IF(DataLog!$C610=\"Log value\",DataLog!M610,\"\")","v":""},{"$f":"IF(DataLog!$C610=\"Log value\",DataLog!N610,\"\")","v":""},{"$f":"IF(DataLog!$C610=\"Log value\",DataLog!O610,\"\")","v":""},{"$f":"IF(DataLog!$C610=\"Log value\",DataLog!P610,\"\")","v":""},{"$f":"IF(DataLog!$C610=\"Log value\",DataLog!Q610,\"\")","v":""},{"$f":"IF(DataLog!$C610=\"Log value\",DataLog!R610,\"\")","v":""},{"$f":"IF(DataLog!$C610=\"Log value\",DataLog!S610,\"\")","v":""},{"$f":"IF(DataLog!$C610=\"Log value\",DataLog!T610,\"\")","v":""},{"$f":"IF(DataLog!$C610=\"Log value\",DataLog!U610,\"\")","v":""},{"$f":"IF(DataLog!$C610=\"Log value\",DataLog!V610,\"\")","v":""},{"$f":"IF(DataLog!$C610=\"Log value\",DataLog!W610,\"\")","v":""},{"$f":"IF(DataLog!$C610=\"Log value\",DataLog!X610,\"\")","v":""},{"$f":"IF(DataLog!$C610=\"Log value\",DataLog!Y610,\"\")","v":""},{"$f":"IF(DataLog!$C610=\"Log value\",DataLog!Z610,\"\")","v":""},{"$f":"IF(DataLog!$C610=\"Log value\",DataLog!AA610,\"\")","v":""},{"$f":"IF(DataLog!$C610=\"Log value\",DataLog!AB610,\"\")","v":""},{"$f":"IF(DataLog!$C610=\"Log value\",DataLog!AC610,\"\")","v":""},{"$f":"IF(DataLog!$C610=\"Log value\",DataLog!AD610,\"\")","v":""},{"$f":"IF(DataLog!$C610=\"Log value\",DataLog!AE610,\"\")","v":""},{"$f":"IF(DataLog!$C610=\"Log value\",DataLog!AF610,\"\")","v":""},{"$f":"IF(DataLog!$C610=\"Log value\",DataLog!AG610,\"\")","v":""},{"$f":"IF(DataLog!$C610=\"Log value\",DataLog!AH610,\"\")","v":""},{"$f":"IF(DataLog!$C610=\"Log value\",DataLog!AI610,\"\")","v":""},{"$f":"IF(DataLog!$C610=\"Log value\",DataLog!AJ610,\"\")","v":""},{"$f":"IF(DataLog!$C610=\"Log value\",DataLog!AK610,\"\")","v":""},{"$f":"IF(DataLog!$C610=\"Log value\",DataLog!AL610,\"\")","v":""},{"$f":"IF(DataLog!$C610=\"Log value\",DataLog!AM610,\"\")","v":""}]
[null,null,null,null,null,null,{"$f":"IF(DataLog!$C611=\"Log value\",DataLog!D611&\"_\"&TEXT(DataLog!B611,\"åååå-mm-dd\"),\"\")","v":""},{"$f":"IF(DataLog!$C611=\"Log value\",DataLog!E611,\"\")","v":""},{"$f":"IF(DataLog!$C611=\"Log value\",DataLog!F611,\"\")","v":""},{"$f":"IF(DataLog!$C611=\"Log value\",DataLog!G611,\"\")","v":""},{"$f":"IF(DataLog!$C611=\"Log value\",DataLog!H611,\"\")","v":""},{"$f":"IF(DataLog!$C611=\"Log value\",DataLog!I611,\"\")","v":""},{"$f":"IF(DataLog!$C611=\"Log value\",DataLog!J611,\"\")","v":""},{"$f":"IF(DataLog!$C611=\"Log value\",DataLog!K611,\"\")","v":""},{"$f":"IF(DataLog!$C611=\"Log value\",DataLog!L611,\"\")","v":""},{"$f":"IF(DataLog!$C611=\"Log value\",DataLog!M611,\"\")","v":""},{"$f":"IF(DataLog!$C611=\"Log value\",DataLog!N611,\"\")","v":""},{"$f":"IF(DataLog!$C611=\"Log value\",DataLog!O611,\"\")","v":""},{"$f":"IF(DataLog!$C611=\"Log value\",DataLog!P611,\"\")","v":""},{"$f":"IF(DataLog!$C611=\"Log value\",DataLog!Q611,\"\")","v":""},{"$f":"IF(DataLog!$C611=\"Log value\",DataLog!R611,\"\")","v":""},{"$f":"IF(DataLog!$C611=\"Log value\",DataLog!S611,\"\")","v":""},{"$f":"IF(DataLog!$C611=\"Log value\",DataLog!T611,\"\")","v":""},{"$f":"IF(DataLog!$C611=\"Log value\",DataLog!U611,\"\")","v":""},{"$f":"IF(DataLog!$C611=\"Log value\",DataLog!V611,\"\")","v":""},{"$f":"IF(DataLog!$C611=\"Log value\",DataLog!W611,\"\")","v":""},{"$f":"IF(DataLog!$C611=\"Log value\",DataLog!X611,\"\")","v":""},{"$f":"IF(DataLog!$C611=\"Log value\",DataLog!Y611,\"\")","v":""},{"$f":"IF(DataLog!$C611=\"Log value\",DataLog!Z611,\"\")","v":""},{"$f":"IF(DataLog!$C611=\"Log value\",DataLog!AA611,\"\")","v":""},{"$f":"IF(DataLog!$C611=\"Log value\",DataLog!AB611,\"\")","v":""},{"$f":"IF(DataLog!$C611=\"Log value\",DataLog!AC611,\"\")","v":""},{"$f":"IF(DataLog!$C611=\"Log value\",DataLog!AD611,\"\")","v":""},{"$f":"IF(DataLog!$C611=\"Log value\",DataLog!AE611,\"\")","v":""},{"$f":"IF(DataLog!$C611=\"Log value\",DataLog!AF611,\"\")","v":""},{"$f":"IF(DataLog!$C611=\"Log value\",DataLog!AG611,\"\")","v":""},{"$f":"IF(DataLog!$C611=\"Log value\",DataLog!AH611,\"\")","v":""},{"$f":"IF(DataLog!$C611=\"Log value\",DataLog!AI611,\"\")","v":""},{"$f":"IF(DataLog!$C611=\"Log value\",DataLog!AJ611,\"\")","v":""},{"$f":"IF(DataLog!$C611=\"Log value\",DataLog!AK611,\"\")","v":""},{"$f":"IF(DataLog!$C611=\"Log value\",DataLog!AL611,\"\")","v":""},{"$f":"IF(DataLog!$C611=\"Log value\",DataLog!AM611,\"\")","v":""}]
[null,null,null,null,null,null,{"$f":"IF(DataLog!$C612=\"Log value\",DataLog!D612&\"_\"&TEXT(DataLog!B612,\"åååå-mm-dd\"),\"\")","v":""},{"$f":"IF(DataLog!$C612=\"Log value\",DataLog!E612,\"\")","v":""},{"$f":"IF(DataLog!$C612=\"Log value\",DataLog!F612,\"\")","v":""},{"$f":"IF(DataLog!$C612=\"Log value\",DataLog!G612,\"\")","v":""},{"$f":"IF(DataLog!$C612=\"Log value\",DataLog!H612,\"\")","v":""},{"$f":"IF(DataLog!$C612=\"Log value\",DataLog!I612,\"\")","v":""},{"$f":"IF(DataLog!$C612=\"Log value\",DataLog!J612,\"\")","v":""},{"$f":"IF(DataLog!$C612=\"Log value\",DataLog!K612,\"\")","v":""},{"$f":"IF(DataLog!$C612=\"Log value\",DataLog!L612,\"\")","v":""},{"$f":"IF(DataLog!$C612=\"Log value\",DataLog!M612,\"\")","v":""},{"$f":"IF(DataLog!$C612=\"Log value\",DataLog!N612,\"\")","v":""},{"$f":"IF(DataLog!$C612=\"Log value\",DataLog!O612,\"\")","v":""},{"$f":"IF(DataLog!$C612=\"Log value\",DataLog!P612,\"\")","v":""},{"$f":"IF(DataLog!$C612=\"Log value\",DataLog!Q612,\"\")","v":""},{"$f":"IF(DataLog!$C612=\"Log value\",DataLog!R612,\"\")","v":""},{"$f":"IF(DataLog!$C612=\"Log value\",DataLog!S612,\"\")","v":""},{"$f":"IF(DataLog!$C612=\"Log value\",DataLog!T612,\"\")","v":""},{"$f":"IF(DataLog!$C612=\"Log value\",DataLog!U612,\"\")","v":""},{"$f":"IF(DataLog!$C612=\"Log value\",DataLog!V612,\"\")","v":""},{"$f":"IF(DataLog!$C612=\"Log value\",DataLog!W612,\"\")","v":""},{"$f":"IF(DataLog!$C612=\"Log value\",DataLog!X612,\"\")","v":""},{"$f":"IF(DataLog!$C612=\"Log value\",DataLog!Y612,\"\")","v":""},{"$f":"IF(DataLog!$C612=\"Log value\",DataLog!Z612,\"\")","v":""},{"$f":"IF(DataLog!$C612=\"Log value\",DataLog!AA612,\"\")","v":""},{"$f":"IF(DataLog!$C612=\"Log value\",DataLog!AB612,\"\")","v":""},{"$f":"IF(DataLog!$C612=\"Log value\",DataLog!AC612,\"\")","v":""},{"$f":"IF(DataLog!$C612=\"Log value\",DataLog!AD612,\"\")","v":""},{"$f":"IF(DataLog!$C612=\"Log value\",DataLog!AE612,\"\")","v":""},{"$f":"IF(DataLog!$C612=\"Log value\",DataLog!AF612,\"\")","v":""},{"$f":"IF(DataLog!$C612=\"Log value\",DataLog!AG612,\"\")","v":""},{"$f":"IF(DataLog!$C612=\"Log value\",DataLog!AH612,\"\")","v":""},{"$f":"IF(DataLog!$C612=\"Log value\",DataLog!AI612,\"\")","v":""},{"$f":"IF(DataLog!$C612=\"Log value\",DataLog!AJ612,\"\")","v":""},{"$f":"IF(DataLog!$C612=\"Log value\",DataLog!AK612,\"\")","v":""},{"$f":"IF(DataLog!$C612=\"Log value\",DataLog!AL612,\"\")","v":""},{"$f":"IF(DataLog!$C612=\"Log value\",DataLog!AM612,\"\")","v":""}]
[null,null,null,null,null,null,{"$f":"IF(DataLog!$C613=\"Log value\",DataLog!D613&\"_\"&TEXT(DataLog!B613,\"åååå-mm-dd\"),\"\")","v":""},{"$f":"IF(DataLog!$C613=\"Log value\",DataLog!E613,\"\")","v":""},{"$f":"IF(DataLog!$C613=\"Log value\",DataLog!F613,\"\")","v":""},{"$f":"IF(DataLog!$C613=\"Log value\",DataLog!G613,\"\")","v":""},{"$f":"IF(DataLog!$C613=\"Log value\",DataLog!H613,\"\")","v":""},{"$f":"IF(DataLog!$C613=\"Log value\",DataLog!I613,\"\")","v":""},{"$f":"IF(DataLog!$C613=\"Log value\",DataLog!J613,\"\")","v":""},{"$f":"IF(DataLog!$C613=\"Log value\",DataLog!K613,\"\")","v":""},{"$f":"IF(DataLog!$C613=\"Log value\",DataLog!L613,\"\")","v":""},{"$f":"IF(DataLog!$C613=\"Log value\",DataLog!M613,\"\")","v":""},{"$f":"IF(DataLog!$C613=\"Log value\",DataLog!N613,\"\")","v":""},{"$f":"IF(DataLog!$C613=\"Log value\",DataLog!O613,\"\")","v":""},{"$f":"IF(DataLog!$C613=\"Log value\",DataLog!P613,\"\")","v":""},{"$f":"IF(DataLog!$C613=\"Log value\",DataLog!Q613,\"\")","v":""},{"$f":"IF(DataLog!$C613=\"Log value\",DataLog!R613,\"\")","v":""},{"$f":"IF(DataLog!$C613=\"Log value\",DataLog!S613,\"\")","v":""},{"$f":"IF(DataLog!$C613=\"Log value\",DataLog!T613,\"\")","v":""},{"$f":"IF(DataLog!$C613=\"Log value\",DataLog!U613,\"\")","v":""},{"$f":"IF(DataLog!$C613=\"Log value\",DataLog!V613,\"\")","v":""},{"$f":"IF(DataLog!$C613=\"Log value\",DataLog!W613,\"\")","v":""},{"$f":"IF(DataLog!$C613=\"Log value\",DataLog!X613,\"\")","v":""},{"$f":"IF(DataLog!$C613=\"Log value\",DataLog!Y613,\"\")","v":""},{"$f":"IF(DataLog!$C613=\"Log value\",DataLog!Z613,\"\")","v":""},{"$f":"IF(DataLog!$C613=\"Log value\",DataLog!AA613,\"\")","v":""},{"$f":"IF(DataLog!$C613=\"Log value\",DataLog!AB613,\"\")","v":""},{"$f":"IF(DataLog!$C613=\"Log value\",DataLog!AC613,\"\")","v":""},{"$f":"IF(DataLog!$C613=\"Log value\",DataLog!AD613,\"\")","v":""},{"$f":"IF(DataLog!$C613=\"Log value\",DataLog!AE613,\"\")","v":""},{"$f":"IF(DataLog!$C613=\"Log value\",DataLog!AF613,\"\")","v":""},{"$f":"IF(DataLog!$C613=\"Log value\",DataLog!AG613,\"\")","v":""},{"$f":"IF(DataLog!$C613=\"Log value\",DataLog!AH613,\"\")","v":""},{"$f":"IF(DataLog!$C613=\"Log value\",DataLog!AI613,\"\")","v":""},{"$f":"IF(DataLog!$C613=\"Log value\",DataLog!AJ613,\"\")","v":""},{"$f":"IF(DataLog!$C613=\"Log value\",DataLog!AK613,\"\")","v":""},{"$f":"IF(DataLog!$C613=\"Log value\",DataLog!AL613,\"\")","v":""},{"$f":"IF(DataLog!$C613=\"Log value\",DataLog!AM613,\"\")","v":""}]
[null,null,null,null,null,null,{"$f":"IF(DataLog!$C614=\"Log value\",DataLog!D614&\"_\"&TEXT(DataLog!B614,\"åååå-mm-dd\"),\"\")","v":""},{"$f":"IF(DataLog!$C614=\"Log value\",DataLog!E614,\"\")","v":""},{"$f":"IF(DataLog!$C614=\"Log value\",DataLog!F614,\"\")","v":""},{"$f":"IF(DataLog!$C614=\"Log value\",DataLog!G614,\"\")","v":""},{"$f":"IF(DataLog!$C614=\"Log value\",DataLog!H614,\"\")","v":""},{"$f":"IF(DataLog!$C614=\"Log value\",DataLog!I614,\"\")","v":""},{"$f":"IF(DataLog!$C614=\"Log value\",DataLog!J614,\"\")","v":""},{"$f":"IF(DataLog!$C614=\"Log value\",DataLog!K614,\"\")","v":""},{"$f":"IF(DataLog!$C614=\"Log value\",DataLog!L614,\"\")","v":""},{"$f":"IF(DataLog!$C614=\"Log value\",DataLog!M614,\"\")","v":""},{"$f":"IF(DataLog!$C614=\"Log value\",DataLog!N614,\"\")","v":""},{"$f":"IF(DataLog!$C614=\"Log value\",DataLog!O614,\"\")","v":""},{"$f":"IF(DataLog!$C614=\"Log value\",DataLog!P614,\"\")","v":""},{"$f":"IF(DataLog!$C614=\"Log value\",DataLog!Q614,\"\")","v":""},{"$f":"IF(DataLog!$C614=\"Log value\",DataLog!R614,\"\")","v":""},{"$f":"IF(DataLog!$C614=\"Log value\",DataLog!S614,\"\")","v":""},{"$f":"IF(DataLog!$C614=\"Log value\",DataLog!T614,\"\")","v":""},{"$f":"IF(DataLog!$C614=\"Log value\",DataLog!U614,\"\")","v":""},{"$f":"IF(DataLog!$C614=\"Log value\",DataLog!V614,\"\")","v":""},{"$f":"IF(DataLog!$C614=\"Log value\",DataLog!W614,\"\")","v":""},{"$f":"IF(DataLog!$C614=\"Log value\",DataLog!X614,\"\")","v":""},{"$f":"IF(DataLog!$C614=\"Log value\",DataLog!Y614,\"\")","v":""},{"$f":"IF(DataLog!$C614=\"Log value\",DataLog!Z614,\"\")","v":""},{"$f":"IF(DataLog!$C614=\"Log value\",DataLog!AA614,\"\")","v":""},{"$f":"IF(DataLog!$C614=\"Log value\",DataLog!AB614,\"\")","v":""},{"$f":"IF(DataLog!$C614=\"Log value\",DataLog!AC614,\"\")","v":""},{"$f":"IF(DataLog!$C614=\"Log value\",DataLog!AD614,\"\")","v":""},{"$f":"IF(DataLog!$C614=\"Log value\",DataLog!AE614,\"\")","v":""},{"$f":"IF(DataLog!$C614=\"Log value\",DataLog!AF614,\"\")","v":""},{"$f":"IF(DataLog!$C614=\"Log value\",DataLog!AG614,\"\")","v":""},{"$f":"IF(DataLog!$C614=\"Log value\",DataLog!AH614,\"\")","v":""},{"$f":"IF(DataLog!$C614=\"Log value\",DataLog!AI614,\"\")","v":""},{"$f":"IF(DataLog!$C614=\"Log value\",DataLog!AJ614,\"\")","v":""},{"$f":"IF(DataLog!$C614=\"Log value\",DataLog!AK614,\"\")","v":""},{"$f":"IF(DataLog!$C614=\"Log value\",DataLog!AL614,\"\")","v":""},{"$f":"IF(DataLog!$C614=\"Log value\",DataLog!AM614,\"\")","v":""}]
[null,null,null,null,null,null,{"$f":"IF(DataLog!$C615=\"Log value\",DataLog!D615&\"_\"&TEXT(DataLog!B615,\"åååå-mm-dd\"),\"\")","v":""},{"$f":"IF(DataLog!$C615=\"Log value\",DataLog!E615,\"\")","v":""},{"$f":"IF(DataLog!$C615=\"Log value\",DataLog!F615,\"\")","v":""},{"$f":"IF(DataLog!$C615=\"Log value\",DataLog!G615,\"\")","v":""},{"$f":"IF(DataLog!$C615=\"Log value\",DataLog!H615,\"\")","v":""},{"$f":"IF(DataLog!$C615=\"Log value\",DataLog!I615,\"\")","v":""},{"$f":"IF(DataLog!$C615=\"Log value\",DataLog!J615,\"\")","v":""},{"$f":"IF(DataLog!$C615=\"Log value\",DataLog!K615,\"\")","v":""},{"$f":"IF(DataLog!$C615=\"Log value\",DataLog!L615,\"\")","v":""},{"$f":"IF(DataLog!$C615=\"Log value\",DataLog!M615,\"\")","v":""},{"$f":"IF(DataLog!$C615=\"Log value\",DataLog!N615,\"\")","v":""},{"$f":"IF(DataLog!$C615=\"Log value\",DataLog!O615,\"\")","v":""},{"$f":"IF(DataLog!$C615=\"Log value\",DataLog!P615,\"\")","v":""},{"$f":"IF(DataLog!$C615=\"Log value\",DataLog!Q615,\"\")","v":""},{"$f":"IF(DataLog!$C615=\"Log value\",DataLog!R615,\"\")","v":""},{"$f":"IF(DataLog!$C615=\"Log value\",DataLog!S615,\"\")","v":""},{"$f":"IF(DataLog!$C615=\"Log value\",DataLog!T615,\"\")","v":""},{"$f":"IF(DataLog!$C615=\"Log value\",DataLog!U615,\"\")","v":""},{"$f":"IF(DataLog!$C615=\"Log value\",DataLog!V615,\"\")","v":""},{"$f":"IF(DataLog!$C615=\"Log value\",DataLog!W615,\"\")","v":""},{"$f":"IF(DataLog!$C615=\"Log value\",DataLog!X615,\"\")","v":""},{"$f":"IF(DataLog!$C615=\"Log value\",DataLog!Y615,\"\")","v":""},{"$f":"IF(DataLog!$C615=\"Log value\",DataLog!Z615,\"\")","v":""},{"$f":"IF(DataLog!$C615=\"Log value\",DataLog!AA615,\"\")","v":""},{"$f":"IF(DataLog!$C615=\"Log value\",DataLog!AB615,\"\")","v":""},{"$f":"IF(DataLog!$C615=\"Log value\",DataLog!AC615,\"\")","v":""},{"$f":"IF(DataLog!$C615=\"Log value\",DataLog!AD615,\"\")","v":""},{"$f":"IF(DataLog!$C615=\"Log value\",DataLog!AE615,\"\")","v":""},{"$f":"IF(DataLog!$C615=\"Log value\",DataLog!AF615,\"\")","v":""},{"$f":"IF(DataLog!$C615=\"Log value\",DataLog!AG615,\"\")","v":""},{"$f":"IF(DataLog!$C615=\"Log value\",DataLog!AH615,\"\")","v":""},{"$f":"IF(DataLog!$C615=\"Log value\",DataLog!AI615,\"\")","v":""},{"$f":"IF(DataLog!$C615=\"Log value\",DataLog!AJ615,\"\")","v":""},{"$f":"IF(DataLog!$C615=\"Log value\",DataLog!AK615,\"\")","v":""},{"$f":"IF(DataLog!$C615=\"Log value\",DataLog!AL615,\"\")","v":""},{"$f":"IF(DataLog!$C615=\"Log value\",DataLog!AM615,\"\")","v":""}]
[null,null,null,null,null,null,{"$f":"IF(DataLog!$C616=\"Log value\",DataLog!D616&\"_\"&TEXT(DataLog!B616,\"åååå-mm-dd\"),\"\")","v":""},{"$f":"IF(DataLog!$C616=\"Log value\",DataLog!E616,\"\")","v":""},{"$f":"IF(DataLog!$C616=\"Log value\",DataLog!F616,\"\")","v":""},{"$f":"IF(DataLog!$C616=\"Log value\",DataLog!G616,\"\")","v":""},{"$f":"IF(DataLog!$C616=\"Log value\",DataLog!H616,\"\")","v":""},{"$f":"IF(DataLog!$C616=\"Log value\",DataLog!I616,\"\")","v":""},{"$f":"IF(DataLog!$C616=\"Log value\",DataLog!J616,\"\")","v":""},{"$f":"IF(DataLog!$C616=\"Log value\",DataLog!K616,\"\")","v":""},{"$f":"IF(DataLog!$C616=\"Log value\",DataLog!L616,\"\")","v":""},{"$f":"IF(DataLog!$C616=\"Log value\",DataLog!M616,\"\")","v":""},{"$f":"IF(DataLog!$C616=\"Log value\",DataLog!N616,\"\")","v":""},{"$f":"IF(DataLog!$C616=\"Log value\",DataLog!O616,\"\")","v":""},{"$f":"IF(DataLog!$C616=\"Log value\",DataLog!P616,\"\")","v":""},{"$f":"IF(DataLog!$C616=\"Log value\",DataLog!Q616,\"\")","v":""},{"$f":"IF(DataLog!$C616=\"Log value\",DataLog!R616,\"\")","v":""},{"$f":"IF(DataLog!$C616=\"Log value\",DataLog!S616,\"\")","v":""},{"$f":"IF(DataLog!$C616=\"Log value\",DataLog!T616,\"\")","v":""},{"$f":"IF(DataLog!$C616=\"Log value\",DataLog!U616,\"\")","v":""},{"$f":"IF(DataLog!$C616=\"Log value\",DataLog!V616,\"\")","v":""},{"$f":"IF(DataLog!$C616=\"Log value\",DataLog!W616,\"\")","v":""},{"$f":"IF(DataLog!$C616=\"Log value\",DataLog!X616,\"\")","v":""},{"$f":"IF(DataLog!$C616=\"Log value\",DataLog!Y616,\"\")","v":""},{"$f":"IF(DataLog!$C616=\"Log value\",DataLog!Z616,\"\")","v":""},{"$f":"IF(DataLog!$C616=\"Log value\",DataLog!AA616,\"\")","v":""},{"$f":"IF(DataLog!$C616=\"Log value\",DataLog!AB616,\"\")","v":""},{"$f":"IF(DataLog!$C616=\"Log value\",DataLog!AC616,\"\")","v":""},{"$f":"IF(DataLog!$C616=\"Log value\",DataLog!AD616,\"\")","v":""},{"$f":"IF(DataLog!$C616=\"Log value\",DataLog!AE616,\"\")","v":""},{"$f":"IF(DataLog!$C616=\"Log value\",DataLog!AF616,\"\")","v":""},{"$f":"IF(DataLog!$C616=\"Log value\",DataLog!AG616,\"\")","v":""},{"$f":"IF(DataLog!$C616=\"Log value\",DataLog!AH616,\"\")","v":""},{"$f":"IF(DataLog!$C616=\"Log value\",DataLog!AI616,\"\")","v":""},{"$f":"IF(DataLog!$C616=\"Log value\",DataLog!AJ616,\"\")","v":""},{"$f":"IF(DataLog!$C616=\"Log value\",DataLog!AK616,\"\")","v":""},{"$f":"IF(DataLog!$C616=\"Log value\",DataLog!AL616,\"\")","v":""},{"$f":"IF(DataLog!$C616=\"Log value\",DataLog!AM616,\"\")","v":""}]
[null,null,null,null,null,null,{"$f":"IF(DataLog!$C617=\"Log value\",DataLog!D617&\"_\"&TEXT(DataLog!B617,\"åååå-mm-dd\"),\"\")","v":""},{"$f":"IF(DataLog!$C617=\"Log value\",DataLog!E617,\"\")","v":""},{"$f":"IF(DataLog!$C617=\"Log value\",DataLog!F617,\"\")","v":""},{"$f":"IF(DataLog!$C617=\"Log value\",DataLog!G617,\"\")","v":""},{"$f":"IF(DataLog!$C617=\"Log value\",DataLog!H617,\"\")","v":""},{"$f":"IF(DataLog!$C617=\"Log value\",DataLog!I617,\"\")","v":""},{"$f":"IF(DataLog!$C617=\"Log value\",DataLog!J617,\"\")","v":""},{"$f":"IF(DataLog!$C617=\"Log value\",DataLog!K617,\"\")","v":""},{"$f":"IF(DataLog!$C617=\"Log value\",DataLog!L617,\"\")","v":""},{"$f":"IF(DataLog!$C617=\"Log value\",DataLog!M617,\"\")","v":""},{"$f":"IF(DataLog!$C617=\"Log value\",DataLog!N617,\"\")","v":""},{"$f":"IF(DataLog!$C617=\"Log value\",DataLog!O617,\"\")","v":""},{"$f":"IF(DataLog!$C617=\"Log value\",DataLog!P617,\"\")","v":""},{"$f":"IF(DataLog!$C617=\"Log value\",DataLog!Q617,\"\")","v":""},{"$f":"IF(DataLog!$C617=\"Log value\",DataLog!R617,\"\")","v":""},{"$f":"IF(DataLog!$C617=\"Log value\",DataLog!S617,\"\")","v":""},{"$f":"IF(DataLog!$C617=\"Log value\",DataLog!T617,\"\")","v":""},{"$f":"IF(DataLog!$C617=\"Log value\",DataLog!U617,\"\")","v":""},{"$f":"IF(DataLog!$C617=\"Log value\",DataLog!V617,\"\")","v":""},{"$f":"IF(DataLog!$C617=\"Log value\",DataLog!W617,\"\")","v":""},{"$f":"IF(DataLog!$C617=\"Log value\",DataLog!X617,\"\")","v":""},{"$f":"IF(DataLog!$C617=\"Log value\",DataLog!Y617,\"\")","v":""},{"$f":"IF(DataLog!$C617=\"Log value\",DataLog!Z617,\"\")","v":""},{"$f":"IF(DataLog!$C617=\"Log value\",DataLog!AA617,\"\")","v":""},{"$f":"IF(DataLog!$C617=\"Log value\",DataLog!AB617,\"\")","v":""},{"$f":"IF(DataLog!$C617=\"Log value\",DataLog!AC617,\"\")","v":""},{"$f":"IF(DataLog!$C617=\"Log value\",DataLog!AD617,\"\")","v":""},{"$f":"IF(DataLog!$C617=\"Log value\",DataLog!AE617,\"\")","v":""},{"$f":"IF(DataLog!$C617=\"Log value\",DataLog!AF617,\"\")","v":""},{"$f":"IF(DataLog!$C617=\"Log value\",DataLog!AG617,\"\")","v":""},{"$f":"IF(DataLog!$C617=\"Log value\",DataLog!AH617,\"\")","v":""},{"$f":"IF(DataLog!$C617=\"Log value\",DataLog!AI617,\"\")","v":""},{"$f":"IF(DataLog!$C617=\"Log value\",DataLog!AJ617,\"\")","v":""},{"$f":"IF(DataLog!$C617=\"Log value\",DataLog!AK617,\"\")","v":""},{"$f":"IF(DataLog!$C617=\"Log value\",DataLog!AL617,\"\")","v":""},{"$f":"IF(DataLog!$C617=\"Log value\",DataLog!AM617,\"\")","v":""}]
[null,null,null,null,null,null,{"$f":"IF(DataLog!$C618=\"Log value\",DataLog!D618&\"_\"&TEXT(DataLog!B618,\"åååå-mm-dd\"),\"\")","v":""},{"$f":"IF(DataLog!$C618=\"Log value\",DataLog!E618,\"\")","v":""},{"$f":"IF(DataLog!$C618=\"Log value\",DataLog!F618,\"\")","v":""},{"$f":"IF(DataLog!$C618=\"Log value\",DataLog!G618,\"\")","v":""},{"$f":"IF(DataLog!$C618=\"Log value\",DataLog!H618,\"\")","v":""},{"$f":"IF(DataLog!$C618=\"Log value\",DataLog!I618,\"\")","v":""},{"$f":"IF(DataLog!$C618=\"Log value\",DataLog!J618,\"\")","v":""},{"$f":"IF(DataLog!$C618=\"Log value\",DataLog!K618,\"\")","v":""},{"$f":"IF(DataLog!$C618=\"Log value\",DataLog!L618,\"\")","v":""},{"$f":"IF(DataLog!$C618=\"Log value\",DataLog!M618,\"\")","v":""},{"$f":"IF(DataLog!$C618=\"Log value\",DataLog!N618,\"\")","v":""},{"$f":"IF(DataLog!$C618=\"Log value\",DataLog!O618,\"\")","v":""},{"$f":"IF(DataLog!$C618=\"Log value\",DataLog!P618,\"\")","v":""},{"$f":"IF(DataLog!$C618=\"Log value\",DataLog!Q618,\"\")","v":""},{"$f":"IF(DataLog!$C618=\"Log value\",DataLog!R618,\"\")","v":""},{"$f":"IF(DataLog!$C618=\"Log value\",DataLog!S618,\"\")","v":""},{"$f":"IF(DataLog!$C618=\"Log value\",DataLog!T618,\"\")","v":""},{"$f":"IF(DataLog!$C618=\"Log value\",DataLog!U618,\"\")","v":""},{"$f":"IF(DataLog!$C618=\"Log value\",DataLog!V618,\"\")","v":""},{"$f":"IF(DataLog!$C618=\"Log value\",DataLog!W618,\"\")","v":""},{"$f":"IF(DataLog!$C618=\"Log value\",DataLog!X618,\"\")","v":""},{"$f":"IF(DataLog!$C618=\"Log value\",DataLog!Y618,\"\")","v":""},{"$f":"IF(DataLog!$C618=\"Log value\",DataLog!Z618,\"\")","v":""},{"$f":"IF(DataLog!$C618=\"Log value\",DataLog!AA618,\"\")","v":""},{"$f":"IF(DataLog!$C618=\"Log value\",DataLog!AB618,\"\")","v":""},{"$f":"IF(DataLog!$C618=\"Log value\",DataLog!AC618,\"\")","v":""},{"$f":"IF(DataLog!$C618=\"Log value\",DataLog!AD618,\"\")","v":""},{"$f":"IF(DataLog!$C618=\"Log value\",DataLog!AE618,\"\")","v":""},{"$f":"IF(DataLog!$C618=\"Log value\",DataLog!AF618,\"\")","v":""},{"$f":"IF(DataLog!$C618=\"Log value\",DataLog!AG618,\"\")","v":""},{"$f":"IF(DataLog!$C618=\"Log value\",DataLog!AH618,\"\")","v":""},{"$f":"IF(DataLog!$C618=\"Log value\",DataLog!AI618,\"\")","v":""},{"$f":"IF(DataLog!$C618=\"Log value\",DataLog!AJ618,\"\")","v":""},{"$f":"IF(DataLog!$C618=\"Log value\",DataLog!AK618,\"\")","v":""},{"$f":"IF(DataLog!$C618=\"Log value\",DataLog!AL618,\"\")","v":""},{"$f":"IF(DataLog!$C618=\"Log value\",DataLog!AM618,\"\")","v":""}]
[null,null,null,null,null,null,{"$f":"IF(DataLog!$C619=\"Log value\",DataLog!D619&\"_\"&TEXT(DataLog!B619,\"åååå-mm-dd\"),\"\")","v":""},{"$f":"IF(DataLog!$C619=\"Log value\",DataLog!E619,\"\")","v":""},{"$f":"IF(DataLog!$C619=\"Log value\",DataLog!F619,\"\")","v":""},{"$f":"IF(DataLog!$C619=\"Log value\",DataLog!G619,\"\")","v":""},{"$f":"IF(DataLog!$C619=\"Log value\",DataLog!H619,\"\")","v":""},{"$f":"IF(DataLog!$C619=\"Log value\",DataLog!I619,\"\")","v":""},{"$f":"IF(DataLog!$C619=\"Log value\",DataLog!J619,\"\")","v":""},{"$f":"IF(DataLog!$C619=\"Log value\",DataLog!K619,\"\")","v":""},{"$f":"IF(DataLog!$C619=\"Log value\",DataLog!L619,\"\")","v":""},{"$f":"IF(DataLog!$C619=\"Log value\",DataLog!M619,\"\")","v":""},{"$f":"IF(DataLog!$C619=\"Log value\",DataLog!N619,\"\")","v":""},{"$f":"IF(DataLog!$C619=\"Log value\",DataLog!O619,\"\")","v":""},{"$f":"IF(DataLog!$C619=\"Log value\",DataLog!P619,\"\")","v":""},{"$f":"IF(DataLog!$C619=\"Log value\",DataLog!Q619,\"\")","v":""},{"$f":"IF(DataLog!$C619=\"Log value\",DataLog!R619,\"\")","v":""},{"$f":"IF(DataLog!$C619=\"Log value\",DataLog!S619,\"\")","v":""},{"$f":"IF(DataLog!$C619=\"Log value\",DataLog!T619,\"\")","v":""},{"$f":"IF(DataLog!$C619=\"Log value\",DataLog!U619,\"\")","v":""},{"$f":"IF(DataLog!$C619=\"Log value\",DataLog!V619,\"\")","v":""},{"$f":"IF(DataLog!$C619=\"Log value\",DataLog!W619,\"\")","v":""},{"$f":"IF(DataLog!$C619=\"Log value\",DataLog!X619,\"\")","v":""},{"$f":"IF(DataLog!$C619=\"Log value\",DataLog!Y619,\"\")","v":""},{"$f":"IF(DataLog!$C619=\"Log value\",DataLog!Z619,\"\")","v":""},{"$f":"IF(DataLog!$C619=\"Log value\",DataLog!AA619,\"\")","v":""},{"$f":"IF(DataLog!$C619=\"Log value\",DataLog!AB619,\"\")","v":""},{"$f":"IF(DataLog!$C619=\"Log value\",DataLog!AC619,\"\")","v":""},{"$f":"IF(DataLog!$C619=\"Log value\",DataLog!AD619,\"\")","v":""},{"$f":"IF(DataLog!$C619=\"Log value\",DataLog!AE619,\"\")","v":""},{"$f":"IF(DataLog!$C619=\"Log value\",DataLog!AF619,\"\")","v":""},{"$f":"IF(DataLog!$C619=\"Log value\",DataLog!AG619,\"\")","v":""},{"$f":"IF(DataLog!$C619=\"Log value\",DataLog!AH619,\"\")","v":""},{"$f":"IF(DataLog!$C619=\"Log value\",DataLog!AI619,\"\")","v":""},{"$f":"IF(DataLog!$C619=\"Log value\",DataLog!AJ619,\"\")","v":""},{"$f":"IF(DataLog!$C619=\"Log value\",DataLog!AK619,\"\")","v":""},{"$f":"IF(DataLog!$C619=\"Log value\",DataLog!AL619,\"\")","v":""},{"$f":"IF(DataLog!$C619=\"Log value\",DataLog!AM619,\"\")","v":""}]
[null,null,null,null,null,null,{"$f":"IF(DataLog!$C620=\"Log value\",DataLog!D620&\"_\"&TEXT(DataLog!B620,\"åååå-mm-dd\"),\"\")","v":""},{"$f":"IF(DataLog!$C620=\"Log value\",DataLog!E620,\"\")","v":""},{"$f":"IF(DataLog!$C620=\"Log value\",DataLog!F620,\"\")","v":""},{"$f":"IF(DataLog!$C620=\"Log value\",DataLog!G620,\"\")","v":""},{"$f":"IF(DataLog!$C620=\"Log value\",DataLog!H620,\"\")","v":""},{"$f":"IF(DataLog!$C620=\"Log value\",DataLog!I620,\"\")","v":""},{"$f":"IF(DataLog!$C620=\"Log value\",DataLog!J620,\"\")","v":""},{"$f":"IF(DataLog!$C620=\"Log value\",DataLog!K620,\"\")","v":""},{"$f":"IF(DataLog!$C620=\"Log value\",DataLog!L620,\"\")","v":""},{"$f":"IF(DataLog!$C620=\"Log value\",DataLog!M620,\"\")","v":""},{"$f":"IF(DataLog!$C620=\"Log value\",DataLog!N620,\"\")","v":""},{"$f":"IF(DataLog!$C620=\"Log value\",DataLog!O620,\"\")","v":""},{"$f":"IF(DataLog!$C620=\"Log value\",DataLog!P620,\"\")","v":""},{"$f":"IF(DataLog!$C620=\"Log value\",DataLog!Q620,\"\")","v":""},{"$f":"IF(DataLog!$C620=\"Log value\",DataLog!R620,\"\")","v":""},{"$f":"IF(DataLog!$C620=\"Log value\",DataLog!S620,\"\")","v":""},{"$f":"IF(DataLog!$C620=\"Log value\",DataLog!T620,\"\")","v":""},{"$f":"IF(DataLog!$C620=\"Log value\",DataLog!U620,\"\")","v":""},{"$f":"IF(DataLog!$C620=\"Log value\",DataLog!V620,\"\")","v":""},{"$f":"IF(DataLog!$C620=\"Log value\",DataLog!W620,\"\")","v":""},{"$f":"IF(DataLog!$C620=\"Log value\",DataLog!X620,\"\")","v":""},{"$f":"IF(DataLog!$C620=\"Log value\",DataLog!Y620,\"\")","v":""},{"$f":"IF(DataLog!$C620=\"Log value\",DataLog!Z620,\"\")","v":""},{"$f":"IF(DataLog!$C620=\"Log value\",DataLog!AA620,\"\")","v":""},{"$f":"IF(DataLog!$C620=\"Log value\",DataLog!AB620,\"\")","v":""},{"$f":"IF(DataLog!$C620=\"Log value\",DataLog!AC620,\"\")","v":""},{"$f":"IF(DataLog!$C620=\"Log value\",DataLog!AD620,\"\")","v":""},{"$f":"IF(DataLog!$C620=\"Log value\",DataLog!AE620,\"\")","v":""},{"$f":"IF(DataLog!$C620=\"Log value\",DataLog!AF620,\"\")","v":""},{"$f":"IF(DataLog!$C620=\"Log value\",DataLog!AG620,\"\")","v":""},{"$f":"IF(DataLog!$C620=\"Log value\",DataLog!AH620,\"\")","v":""},{"$f":"IF(DataLog!$C620=\"Log value\",DataLog!AI620,\"\")","v":""},{"$f":"IF(DataLog!$C620=\"Log value\",DataLog!AJ620,\"\")","v":""},{"$f":"IF(DataLog!$C620=\"Log value\",DataLog!AK620,\"\")","v":""},{"$f":"IF(DataLog!$C620=\"Log value\",DataLog!AL620,\"\")","v":""},{"$f":"IF(DataLog!$C620=\"Log value\",DataLog!AM620,\"\")","v":""}]
[null,null,null,null,null,null,{"$f":"IF(DataLog!$C621=\"Log value\",DataLog!D621&\"_\"&TEXT(DataLog!B621,\"åååå-mm-dd\"),\"\")","v":""},{"$f":"IF(DataLog!$C621=\"Log value\",DataLog!E621,\"\")","v":""},{"$f":"IF(DataLog!$C621=\"Log value\",DataLog!F621,\"\")","v":""},{"$f":"IF(DataLog!$C621=\"Log value\",DataLog!G621,\"\")","v":""},{"$f":"IF(DataLog!$C621=\"Log value\",DataLog!H621,\"\")","v":""},{"$f":"IF(DataLog!$C621=\"Log value\",DataLog!I621,\"\")","v":""},{"$f":"IF(DataLog!$C621=\"Log value\",DataLog!J621,\"\")","v":""},{"$f":"IF(DataLog!$C621=\"Log value\",DataLog!K621,\"\")","v":""},{"$f":"IF(DataLog!$C621=\"Log value\",DataLog!L621,\"\")","v":""},{"$f":"IF(DataLog!$C621=\"Log value\",DataLog!M621,\"\")","v":""},{"$f":"IF(DataLog!$C621=\"Log value\",DataLog!N621,\"\")","v":""},{"$f":"IF(DataLog!$C621=\"Log value\",DataLog!O621,\"\")","v":""},{"$f":"IF(DataLog!$C621=\"Log value\",DataLog!P621,\"\")","v":""},{"$f":"IF(DataLog!$C621=\"Log value\",DataLog!Q621,\"\")","v":""},{"$f":"IF(DataLog!$C621=\"Log value\",DataLog!R621,\"\")","v":""},{"$f":"IF(DataLog!$C621=\"Log value\",DataLog!S621,\"\")","v":""},{"$f":"IF(DataLog!$C621=\"Log value\",DataLog!T621,\"\")","v":""},{"$f":"IF(DataLog!$C621=\"Log value\",DataLog!U621,\"\")","v":""},{"$f":"IF(DataLog!$C621=\"Log value\",DataLog!V621,\"\")","v":""},{"$f":"IF(DataLog!$C621=\"Log value\",DataLog!W621,\"\")","v":""},{"$f":"IF(DataLog!$C621=\"Log value\",DataLog!X621,\"\")","v":""},{"$f":"IF(DataLog!$C621=\"Log value\",DataLog!Y621,\"\")","v":""},{"$f":"IF(DataLog!$C621=\"Log value\",DataLog!Z621,\"\")","v":""},{"$f":"IF(DataLog!$C621=\"Log value\",DataLog!AA621,\"\")","v":""},{"$f":"IF(DataLog!$C621=\"Log value\",DataLog!AB621,\"\")","v":""},{"$f":"IF(DataLog!$C621=\"Log value\",DataLog!AC621,\"\")","v":""},{"$f":"IF(DataLog!$C621=\"Log value\",DataLog!AD621,\"\")","v":""},{"$f":"IF(DataLog!$C621=\"Log value\",DataLog!AE621,\"\")","v":""},{"$f":"IF(DataLog!$C621=\"Log value\",DataLog!AF621,\"\")","v":""},{"$f":"IF(DataLog!$C621=\"Log value\",DataLog!AG621,\"\")","v":""},{"$f":"IF(DataLog!$C621=\"Log value\",DataLog!AH621,\"\")","v":""},{"$f":"IF(DataLog!$C621=\"Log value\",DataLog!AI621,\"\")","v":""},{"$f":"IF(DataLog!$C621=\"Log value\",DataLog!AJ621,\"\")","v":""},{"$f":"IF(DataLog!$C621=\"Log value\",DataLog!AK621,\"\")","v":""},{"$f":"IF(DataLog!$C621=\"Log value\",DataLog!AL621,\"\")","v":""},{"$f":"IF(DataLog!$C621=\"Log value\",DataLog!AM621,\"\")","v":""}]
[null,null,null,null,null,null,{"$f":"IF(DataLog!$C622=\"Log value\",DataLog!D622&\"_\"&TEXT(DataLog!B622,\"åååå-mm-dd\"),\"\")","v":""},{"$f":"IF(DataLog!$C622=\"Log value\",DataLog!E622,\"\")","v":""},{"$f":"IF(DataLog!$C622=\"Log value\",DataLog!F622,\"\")","v":""},{"$f":"IF(DataLog!$C622=\"Log value\",DataLog!G622,\"\")","v":""},{"$f":"IF(DataLog!$C622=\"Log value\",DataLog!H622,\"\")","v":""},{"$f":"IF(DataLog!$C622=\"Log value\",DataLog!I622,\"\")","v":""},{"$f":"IF(DataLog!$C622=\"Log value\",DataLog!J622,\"\")","v":""},{"$f":"IF(DataLog!$C622=\"Log value\",DataLog!K622,\"\")","v":""},{"$f":"IF(DataLog!$C622=\"Log value\",DataLog!L622,\"\")","v":""},{"$f":"IF(DataLog!$C622=\"Log value\",DataLog!M622,\"\")","v":""},{"$f":"IF(DataLog!$C622=\"Log value\",DataLog!N622,\"\")","v":""},{"$f":"IF(DataLog!$C622=\"Log value\",DataLog!O622,\"\")","v":""},{"$f":"IF(DataLog!$C622=\"Log value\",DataLog!P622,\"\")","v":""},{"$f":"IF(DataLog!$C622=\"Log value\",DataLog!Q622,\"\")","v":""},{"$f":"IF(DataLog!$C622=\"Log value\",DataLog!R622,\"\")","v":""},{"$f":"IF(DataLog!$C622=\"Log value\",DataLog!S622,\"\")","v":""},{"$f":"IF(DataLog!$C622=\"Log value\",DataLog!T622,\"\")","v":""},{"$f":"IF(DataLog!$C622=\"Log value\",DataLog!U622,\"\")","v":""},{"$f":"IF(DataLog!$C622=\"Log value\",DataLog!V622,\"\")","v":""},{"$f":"IF(DataLog!$C622=\"Log value\",DataLog!W622,\"\")","v":""},{"$f":"IF(DataLog!$C622=\"Log value\",DataLog!X622,\"\")","v":""},{"$f":"IF(DataLog!$C622=\"Log value\",DataLog!Y622,\"\")","v":""},{"$f":"IF(DataLog!$C622=\"Log value\",DataLog!Z622,\"\")","v":""},{"$f":"IF(DataLog!$C622=\"Log value\",DataLog!AA622,\"\")","v":""},{"$f":"IF(DataLog!$C622=\"Log value\",DataLog!AB622,\"\")","v":""},{"$f":"IF(DataLog!$C622=\"Log value\",DataLog!AC622,\"\")","v":""},{"$f":"IF(DataLog!$C622=\"Log value\",DataLog!AD622,\"\")","v":""},{"$f":"IF(DataLog!$C622=\"Log value\",DataLog!AE622,\"\")","v":""},{"$f":"IF(DataLog!$C622=\"Log value\",DataLog!AF622,\"\")","v":""},{"$f":"IF(DataLog!$C622=\"Log value\",DataLog!AG622,\"\")","v":""},{"$f":"IF(DataLog!$C622=\"Log value\",DataLog!AH622,\"\")","v":""},{"$f":"IF(DataLog!$C622=\"Log value\",DataLog!AI622,\"\")","v":""},{"$f":"IF(DataLog!$C622=\"Log value\",DataLog!AJ622,\"\")","v":""},{"$f":"IF(DataLog!$C622=\"Log value\",DataLog!AK622,\"\")","v":""},{"$f":"IF(DataLog!$C622=\"Log value\",DataLog!AL622,\"\")","v":""},{"$f":"IF(DataLog!$C622=\"Log value\",DataLog!AM622,\"\")","v":""}]
[null,null,null,null,null,null,{"$f":"IF(DataLog!$C623=\"Log value\",DataLog!D623&\"_\"&TEXT(DataLog!B623,\"åååå-mm-dd\"),\"\")","v":""},{"$f":"IF(DataLog!$C623=\"Log value\",DataLog!E623,\"\")","v":""},{"$f":"IF(DataLog!$C623=\"Log value\",DataLog!F623,\"\")","v":""},{"$f":"IF(DataLog!$C623=\"Log value\",DataLog!G623,\"\")","v":""},{"$f":"IF(DataLog!$C623=\"Log value\",DataLog!H623,\"\")","v":""},{"$f":"IF(DataLog!$C623=\"Log value\",DataLog!I623,\"\")","v":""},{"$f":"IF(DataLog!$C623=\"Log value\",DataLog!J623,\"\")","v":""},{"$f":"IF(DataLog!$C623=\"Log value\",DataLog!K623,\"\")","v":""},{"$f":"IF(DataLog!$C623=\"Log value\",DataLog!L623,\"\")","v":""},{"$f":"IF(DataLog!$C623=\"Log value\",DataLog!M623,\"\")","v":""},{"$f":"IF(DataLog!$C623=\"Log value\",DataLog!N623,\"\")","v":""},{"$f":"IF(DataLog!$C623=\"Log value\",DataLog!O623,\"\")","v":""},{"$f":"IF(DataLog!$C623=\"Log value\",DataLog!P623,\"\")","v":""},{"$f":"IF(DataLog!$C623=\"Log value\",DataLog!Q623,\"\")","v":""},{"$f":"IF(DataLog!$C623=\"Log value\",DataLog!R623,\"\")","v":""},{"$f":"IF(DataLog!$C623=\"Log value\",DataLog!S623,\"\")","v":""},{"$f":"IF(DataLog!$C623=\"Log value\",DataLog!T623,\"\")","v":""},{"$f":"IF(DataLog!$C623=\"Log value\",DataLog!U623,\"\")","v":""},{"$f":"IF(DataLog!$C623=\"Log value\",DataLog!V623,\"\")","v":""},{"$f":"IF(DataLog!$C623=\"Log value\",DataLog!W623,\"\")","v":""},{"$f":"IF(DataLog!$C623=\"Log value\",DataLog!X623,\"\")","v":""},{"$f":"IF(DataLog!$C623=\"Log value\",DataLog!Y623,\"\")","v":""},{"$f":"IF(DataLog!$C623=\"Log value\",DataLog!Z623,\"\")","v":""},{"$f":"IF(DataLog!$C623=\"Log value\",DataLog!AA623,\"\")","v":""},{"$f":"IF(DataLog!$C623=\"Log value\",DataLog!AB623,\"\")","v":""},{"$f":"IF(DataLog!$C623=\"Log value\",DataLog!AC623,\"\")","v":""},{"$f":"IF(DataLog!$C623=\"Log value\",DataLog!AD623,\"\")","v":""},{"$f":"IF(DataLog!$C623=\"Log value\",DataLog!AE623,\"\")","v":""},{"$f":"IF(DataLog!$C623=\"Log value\",DataLog!AF623,\"\")","v":""},{"$f":"IF(DataLog!$C623=\"Log value\",DataLog!AG623,\"\")","v":""},{"$f":"IF(DataLog!$C623=\"Log value\",DataLog!AH623,\"\")","v":""},{"$f":"IF(DataLog!$C623=\"Log value\",DataLog!AI623,\"\")","v":""},{"$f":"IF(DataLog!$C623=\"Log value\",DataLog!AJ623,\"\")","v":""},{"$f":"IF(DataLog!$C623=\"Log value\",DataLog!AK623,\"\")","v":""},{"$f":"IF(DataLog!$C623=\"Log value\",DataLog!AL623,\"\")","v":""},{"$f":"IF(DataLog!$C623=\"Log value\",DataLog!AM623,\"\")","v":""}]
[null,null,null,null,null,null,{"$f":"IF(DataLog!$C624=\"Log value\",DataLog!D624&\"_\"&TEXT(DataLog!B624,\"åååå-mm-dd\"),\"\")","v":""},{"$f":"IF(DataLog!$C624=\"Log value\",DataLog!E624,\"\")","v":""},{"$f":"IF(DataLog!$C624=\"Log value\",DataLog!F624,\"\")","v":""},{"$f":"IF(DataLog!$C624=\"Log value\",DataLog!G624,\"\")","v":""},{"$f":"IF(DataLog!$C624=\"Log value\",DataLog!H624,\"\")","v":""},{"$f":"IF(DataLog!$C624=\"Log value\",DataLog!I624,\"\")","v":""},{"$f":"IF(DataLog!$C624=\"Log value\",DataLog!J624,\"\")","v":""},{"$f":"IF(DataLog!$C624=\"Log value\",DataLog!K624,\"\")","v":""},{"$f":"IF(DataLog!$C624=\"Log value\",DataLog!L624,\"\")","v":""},{"$f":"IF(DataLog!$C624=\"Log value\",DataLog!M624,\"\")","v":""},{"$f":"IF(DataLog!$C624=\"Log value\",DataLog!N624,\"\")","v":""},{"$f":"IF(DataLog!$C624=\"Log value\",DataLog!O624,\"\")","v":""},{"$f":"IF(DataLog!$C624=\"Log value\",DataLog!P624,\"\")","v":""},{"$f":"IF(DataLog!$C624=\"Log value\",DataLog!Q624,\"\")","v":""},{"$f":"IF(DataLog!$C624=\"Log value\",DataLog!R624,\"\")","v":""},{"$f":"IF(DataLog!$C624=\"Log value\",DataLog!S624,\"\")","v":""},{"$f":"IF(DataLog!$C624=\"Log value\",DataLog!T624,\"\")","v":""},{"$f":"IF(DataLog!$C624=\"Log value\",DataLog!U624,\"\")","v":""},{"$f":"IF(DataLog!$C624=\"Log value\",DataLog!V624,\"\")","v":""},{"$f":"IF(DataLog!$C624=\"Log value\",DataLog!W624,\"\")","v":""},{"$f":"IF(DataLog!$C624=\"Log value\",DataLog!X624,\"\")","v":""},{"$f":"IF(DataLog!$C624=\"Log value\",DataLog!Y624,\"\")","v":""},{"$f":"IF(DataLog!$C624=\"Log value\",DataLog!Z624,\"\")","v":""},{"$f":"IF(DataLog!$C624=\"Log value\",DataLog!AA624,\"\")","v":""},{"$f":"IF(DataLog!$C624=\"Log value\",DataLog!AB624,\"\")","v":""},{"$f":"IF(DataLog!$C624=\"Log value\",DataLog!AC624,\"\")","v":""},{"$f":"IF(DataLog!$C624=\"Log value\",DataLog!AD624,\"\")","v":""},{"$f":"IF(DataLog!$C624=\"Log value\",DataLog!AE624,\"\")","v":""},{"$f":"IF(DataLog!$C624=\"Log value\",DataLog!AF624,\"\")","v":""},{"$f":"IF(DataLog!$C624=\"Log value\",DataLog!AG624,\"\")","v":""},{"$f":"IF(DataLog!$C624=\"Log value\",DataLog!AH624,\"\")","v":""},{"$f":"IF(DataLog!$C624=\"Log value\",DataLog!AI624,\"\")","v":""},{"$f":"IF(DataLog!$C624=\"Log value\",DataLog!AJ624,\"\")","v":""},{"$f":"IF(DataLog!$C624=\"Log value\",DataLog!AK624,\"\")","v":""},{"$f":"IF(DataLog!$C624=\"Log value\",DataLog!AL624,\"\")","v":""},{"$f":"IF(DataLog!$C624=\"Log value\",DataLog!AM624,\"\")","v":""}]
[null,null,null,null,null,null,{"$f":"IF(DataLog!$C625=\"Log value\",DataLog!D625&\"_\"&TEXT(DataLog!B625,\"åååå-mm-dd\"),\"\")","v":""},{"$f":"IF(DataLog!$C625=\"Log value\",DataLog!E625,\"\")","v":""},{"$f":"IF(DataLog!$C625=\"Log value\",DataLog!F625,\"\")","v":""},{"$f":"IF(DataLog!$C625=\"Log value\",DataLog!G625,\"\")","v":""},{"$f":"IF(DataLog!$C625=\"Log value\",DataLog!H625,\"\")","v":""},{"$f":"IF(DataLog!$C625=\"Log value\",DataLog!I625,\"\")","v":""},{"$f":"IF(DataLog!$C625=\"Log value\",DataLog!J625,\"\")","v":""},{"$f":"IF(DataLog!$C625=\"Log value\",DataLog!K625,\"\")","v":""},{"$f":"IF(DataLog!$C625=\"Log value\",DataLog!L625,\"\")","v":""},{"$f":"IF(DataLog!$C625=\"Log value\",DataLog!M625,\"\")","v":""},{"$f":"IF(DataLog!$C625=\"Log value\",DataLog!N625,\"\")","v":""},{"$f":"IF(DataLog!$C625=\"Log value\",DataLog!O625,\"\")","v":""},{"$f":"IF(DataLog!$C625=\"Log value\",DataLog!P625,\"\")","v":""},{"$f":"IF(DataLog!$C625=\"Log value\",DataLog!Q625,\"\")","v":""},{"$f":"IF(DataLog!$C625=\"Log value\",DataLog!R625,\"\")","v":""},{"$f":"IF(DataLog!$C625=\"Log value\",DataLog!S625,\"\")","v":""},{"$f":"IF(DataLog!$C625=\"Log value\",DataLog!T625,\"\")","v":""},{"$f":"IF(DataLog!$C625=\"Log value\",DataLog!U625,\"\")","v":""},{"$f":"IF(DataLog!$C625=\"Log value\",DataLog!V625,\"\")","v":""},{"$f":"IF(DataLog!$C625=\"Log value\",DataLog!W625,\"\")","v":""},{"$f":"IF(DataLog!$C625=\"Log value\",DataLog!X625,\"\")","v":""},{"$f":"IF(DataLog!$C625=\"Log value\",DataLog!Y625,\"\")","v":""},{"$f":"IF(DataLog!$C625=\"Log value\",DataLog!Z625,\"\")","v":""},{"$f":"IF(DataLog!$C625=\"Log value\",DataLog!AA625,\"\")","v":""},{"$f":"IF(DataLog!$C625=\"Log value\",DataLog!AB625,\"\")","v":""},{"$f":"IF(DataLog!$C625=\"Log value\",DataLog!AC625,\"\")","v":""},{"$f":"IF(DataLog!$C625=\"Log value\",DataLog!AD625,\"\")","v":""},{"$f":"IF(DataLog!$C625=\"Log value\",DataLog!AE625,\"\")","v":""},{"$f":"IF(DataLog!$C625=\"Log value\",DataLog!AF625,\"\")","v":""},{"$f":"IF(DataLog!$C625=\"Log value\",DataLog!AG625,\"\")","v":""},{"$f":"IF(DataLog!$C625=\"Log value\",DataLog!AH625,\"\")","v":""},{"$f":"IF(DataLog!$C625=\"Log value\",DataLog!AI625,\"\")","v":""},{"$f":"IF(DataLog!$C625=\"Log value\",DataLog!AJ625,\"\")","v":""},{"$f":"IF(DataLog!$C625=\"Log value\",DataLog!AK625,\"\")","v":""},{"$f":"IF(DataLog!$C625=\"Log value\",DataLog!AL625,\"\")","v":""},{"$f":"IF(DataLog!$C625=\"Log value\",DataLog!AM625,\"\")","v":""}]
[null,null,null,null,null,null,{"$f":"IF(DataLog!$C626=\"Log value\",DataLog!D626&\"_\"&TEXT(DataLog!B626,\"åååå-mm-dd\"),\"\")","v":""},{"$f":"IF(DataLog!$C626=\"Log value\",DataLog!E626,\"\")","v":""},{"$f":"IF(DataLog!$C626=\"Log value\",DataLog!F626,\"\")","v":""},{"$f":"IF(DataLog!$C626=\"Log value\",DataLog!G626,\"\")","v":""},{"$f":"IF(DataLog!$C626=\"Log value\",DataLog!H626,\"\")","v":""},{"$f":"IF(DataLog!$C626=\"Log value\",DataLog!I626,\"\")","v":""},{"$f":"IF(DataLog!$C626=\"Log value\",DataLog!J626,\"\")","v":""},{"$f":"IF(DataLog!$C626=\"Log value\",DataLog!K626,\"\")","v":""},{"$f":"IF(DataLog!$C626=\"Log value\",DataLog!L626,\"\")","v":""},{"$f":"IF(DataLog!$C626=\"Log value\",DataLog!M626,\"\")","v":""},{"$f":"IF(DataLog!$C626=\"Log value\",DataLog!N626,\"\")","v":""},{"$f":"IF(DataLog!$C626=\"Log value\",DataLog!O626,\"\")","v":""},{"$f":"IF(DataLog!$C626=\"Log value\",DataLog!P626,\"\")","v":""},{"$f":"IF(DataLog!$C626=\"Log value\",DataLog!Q626,\"\")","v":""},{"$f":"IF(DataLog!$C626=\"Log value\",DataLog!R626,\"\")","v":""},{"$f":"IF(DataLog!$C626=\"Log value\",DataLog!S626,\"\")","v":""},{"$f":"IF(DataLog!$C626=\"Log value\",DataLog!T626,\"\")","v":""},{"$f":"IF(DataLog!$C626=\"Log value\",DataLog!U626,\"\")","v":""},{"$f":"IF(DataLog!$C626=\"Log value\",DataLog!V626,\"\")","v":""},{"$f":"IF(DataLog!$C626=\"Log value\",DataLog!W626,\"\")","v":""},{"$f":"IF(DataLog!$C626=\"Log value\",DataLog!X626,\"\")","v":""},{"$f":"IF(DataLog!$C626=\"Log value\",DataLog!Y626,\"\")","v":""},{"$f":"IF(DataLog!$C626=\"Log value\",DataLog!Z626,\"\")","v":""},{"$f":"IF(DataLog!$C626=\"Log value\",DataLog!AA626,\"\")","v":""},{"$f":"IF(DataLog!$C626=\"Log value\",DataLog!AB626,\"\")","v":""},{"$f":"IF(DataLog!$C626=\"Log value\",DataLog!AC626,\"\")","v":""},{"$f":"IF(DataLog!$C626=\"Log value\",DataLog!AD626,\"\")","v":""},{"$f":"IF(DataLog!$C626=\"Log value\",DataLog!AE626,\"\")","v":""},{"$f":"IF(DataLog!$C626=\"Log value\",DataLog!AF626,\"\")","v":""},{"$f":"IF(DataLog!$C626=\"Log value\",DataLog!AG626,\"\")","v":""},{"$f":"IF(DataLog!$C626=\"Log value\",DataLog!AH626,\"\")","v":""},{"$f":"IF(DataLog!$C626=\"Log value\",DataLog!AI626,\"\")","v":""},{"$f":"IF(DataLog!$C626=\"Log value\",DataLog!AJ626,\"\")","v":""},{"$f":"IF(DataLog!$C626=\"Log value\",DataLog!AK626,\"\")","v":""},{"$f":"IF(DataLog!$C626=\"Log value\",DataLog!AL626,\"\")","v":""},{"$f":"IF(DataLog!$C626=\"Log value\",DataLog!AM626,\"\")","v":""}]
[null,null,null,null,null,null,{"$f":"IF(DataLog!$C627=\"Log value\",DataLog!D627&\"_\"&TEXT(DataLog!B627,\"åååå-mm-dd\"),\"\")","v":""},{"$f":"IF(DataLog!$C627=\"Log value\",DataLog!E627,\"\")","v":""},{"$f":"IF(DataLog!$C627=\"Log value\",DataLog!F627,\"\")","v":""},{"$f":"IF(DataLog!$C627=\"Log value\",DataLog!G627,\"\")","v":""},{"$f":"IF(DataLog!$C627=\"Log value\",DataLog!H627,\"\")","v":""},{"$f":"IF(DataLog!$C627=\"Log value\",DataLog!I627,\"\")","v":""},{"$f":"IF(DataLog!$C627=\"Log value\",DataLog!J627,\"\")","v":""},{"$f":"IF(DataLog!$C627=\"Log value\",DataLog!K627,\"\")","v":""},{"$f":"IF(DataLog!$C627=\"Log value\",DataLog!L627,\"\")","v":""},{"$f":"IF(DataLog!$C627=\"Log value\",DataLog!M627,\"\")","v":""},{"$f":"IF(DataLog!$C627=\"Log value\",DataLog!N627,\"\")","v":""},{"$f":"IF(DataLog!$C627=\"Log value\",DataLog!O627,\"\")","v":""},{"$f":"IF(DataLog!$C627=\"Log value\",DataLog!P627,\"\")","v":""},{"$f":"IF(DataLog!$C627=\"Log value\",DataLog!Q627,\"\")","v":""},{"$f":"IF(DataLog!$C627=\"Log value\",DataLog!R627,\"\")","v":""},{"$f":"IF(DataLog!$C627=\"Log value\",DataLog!S627,\"\")","v":""},{"$f":"IF(DataLog!$C627=\"Log value\",DataLog!T627,\"\")","v":""},{"$f":"IF(DataLog!$C627=\"Log value\",DataLog!U627,\"\")","v":""},{"$f":"IF(DataLog!$C627=\"Log value\",DataLog!V627,\"\")","v":""},{"$f":"IF(DataLog!$C627=\"Log value\",DataLog!W627,\"\")","v":""},{"$f":"IF(DataLog!$C627=\"Log value\",DataLog!X627,\"\")","v":""},{"$f":"IF(DataLog!$C627=\"Log value\",DataLog!Y627,\"\")","v":""},{"$f":"IF(DataLog!$C627=\"Log value\",DataLog!Z627,\"\")","v":""},{"$f":"IF(DataLog!$C627=\"Log value\",DataLog!AA627,\"\")","v":""},{"$f":"IF(DataLog!$C627=\"Log value\",DataLog!AB627,\"\")","v":""},{"$f":"IF(DataLog!$C627=\"Log value\",DataLog!AC627,\"\")","v":""},{"$f":"IF(DataLog!$C627=\"Log value\",DataLog!AD627,\"\")","v":""},{"$f":"IF(DataLog!$C627=\"Log value\",DataLog!AE627,\"\")","v":""},{"$f":"IF(DataLog!$C627=\"Log value\",DataLog!AF627,\"\")","v":""},{"$f":"IF(DataLog!$C627=\"Log value\",DataLog!AG627,\"\")","v":""},{"$f":"IF(DataLog!$C627=\"Log value\",DataLog!AH627,\"\")","v":""},{"$f":"IF(DataLog!$C627=\"Log value\",DataLog!AI627,\"\")","v":""},{"$f":"IF(DataLog!$C627=\"Log value\",DataLog!AJ627,\"\")","v":""},{"$f":"IF(DataLog!$C627=\"Log value\",DataLog!AK627,\"\")","v":""},{"$f":"IF(DataLog!$C627=\"Log value\",DataLog!AL627,\"\")","v":""},{"$f":"IF(DataLog!$C627=\"Log value\",DataLog!AM627,\"\")","v":""}]
[null,null,null,null,null,null,{"$f":"IF(DataLog!$C628=\"Log value\",DataLog!D628&\"_\"&TEXT(DataLog!B628,\"åååå-mm-dd\"),\"\")","v":""},{"$f":"IF(DataLog!$C628=\"Log value\",DataLog!E628,\"\")","v":""},{"$f":"IF(DataLog!$C628=\"Log value\",DataLog!F628,\"\")","v":""},{"$f":"IF(DataLog!$C628=\"Log value\",DataLog!G628,\"\")","v":""},{"$f":"IF(DataLog!$C628=\"Log value\",DataLog!H628,\"\")","v":""},{"$f":"IF(DataLog!$C628=\"Log value\",DataLog!I628,\"\")","v":""},{"$f":"IF(DataLog!$C628=\"Log value\",DataLog!J628,\"\")","v":""},{"$f":"IF(DataLog!$C628=\"Log value\",DataLog!K628,\"\")","v":""},{"$f":"IF(DataLog!$C628=\"Log value\",DataLog!L628,\"\")","v":""},{"$f":"IF(DataLog!$C628=\"Log value\",DataLog!M628,\"\")","v":""},{"$f":"IF(DataLog!$C628=\"Log value\",DataLog!N628,\"\")","v":""},{"$f":"IF(DataLog!$C628=\"Log value\",DataLog!O628,\"\")","v":""},{"$f":"IF(DataLog!$C628=\"Log value\",DataLog!P628,\"\")","v":""},{"$f":"IF(DataLog!$C628=\"Log value\",DataLog!Q628,\"\")","v":""},{"$f":"IF(DataLog!$C628=\"Log value\",DataLog!R628,\"\")","v":""},{"$f":"IF(DataLog!$C628=\"Log value\",DataLog!S628,\"\")","v":""},{"$f":"IF(DataLog!$C628=\"Log value\",DataLog!T628,\"\")","v":""},{"$f":"IF(DataLog!$C628=\"Log value\",DataLog!U628,\"\")","v":""},{"$f":"IF(DataLog!$C628=\"Log value\",DataLog!V628,\"\")","v":""},{"$f":"IF(DataLog!$C628=\"Log value\",DataLog!W628,\"\")","v":""},{"$f":"IF(DataLog!$C628=\"Log value\",DataLog!X628,\"\")","v":""},{"$f":"IF(DataLog!$C628=\"Log value\",DataLog!Y628,\"\")","v":""},{"$f":"IF(DataLog!$C628=\"Log value\",DataLog!Z628,\"\")","v":""},{"$f":"IF(DataLog!$C628=\"Log value\",DataLog!AA628,\"\")","v":""},{"$f":"IF(DataLog!$C628=\"Log value\",DataLog!AB628,\"\")","v":""},{"$f":"IF(DataLog!$C628=\"Log value\",DataLog!AC628,\"\")","v":""},{"$f":"IF(DataLog!$C628=\"Log value\",DataLog!AD628,\"\")","v":""},{"$f":"IF(DataLog!$C628=\"Log value\",DataLog!AE628,\"\")","v":""},{"$f":"IF(DataLog!$C628=\"Log value\",DataLog!AF628,\"\")","v":""},{"$f":"IF(DataLog!$C628=\"Log value\",DataLog!AG628,\"\")","v":""},{"$f":"IF(DataLog!$C628=\"Log value\",DataLog!AH628,\"\")","v":""},{"$f":"IF(DataLog!$C628=\"Log value\",DataLog!AI628,\"\")","v":""},{"$f":"IF(DataLog!$C628=\"Log value\",DataLog!AJ628,\"\")","v":""},{"$f":"IF(DataLog!$C628=\"Log value\",DataLog!AK628,\"\")","v":""},{"$f":"IF(DataLog!$C628=\"Log value\",DataLog!AL628,\"\")","v":""},{"$f":"IF(DataLog!$C628=\"Log value\",DataLog!AM628,\"\")","v":""}]
[null,null,null,null,null,null,{"$f":"IF(DataLog!$C629=\"Log value\",DataLog!D629&\"_\"&TEXT(DataLog!B629,\"åååå-mm-dd\"),\"\")","v":""},{"$f":"IF(DataLog!$C629=\"Log value\",DataLog!E629,\"\")","v":""},{"$f":"IF(DataLog!$C629=\"Log value\",DataLog!F629,\"\")","v":""},{"$f":"IF(DataLog!$C629=\"Log value\",DataLog!G629,\"\")","v":""},{"$f":"IF(DataLog!$C629=\"Log value\",DataLog!H629,\"\")","v":""},{"$f":"IF(DataLog!$C629=\"Log value\",DataLog!I629,\"\")","v":""},{"$f":"IF(DataLog!$C629=\"Log value\",DataLog!J629,\"\")","v":""},{"$f":"IF(DataLog!$C629=\"Log value\",DataLog!K629,\"\")","v":""},{"$f":"IF(DataLog!$C629=\"Log value\",DataLog!L629,\"\")","v":""},{"$f":"IF(DataLog!$C629=\"Log value\",DataLog!M629,\"\")","v":""},{"$f":"IF(DataLog!$C629=\"Log value\",DataLog!N629,\"\")","v":""},{"$f":"IF(DataLog!$C629=\"Log value\",DataLog!O629,\"\")","v":""},{"$f":"IF(DataLog!$C629=\"Log value\",DataLog!P629,\"\")","v":""},{"$f":"IF(DataLog!$C629=\"Log value\",DataLog!Q629,\"\")","v":""},{"$f":"IF(DataLog!$C629=\"Log value\",DataLog!R629,\"\")","v":""},{"$f":"IF(DataLog!$C629=\"Log value\",DataLog!S629,\"\")","v":""},{"$f":"IF(DataLog!$C629=\"Log value\",DataLog!T629,\"\")","v":""},{"$f":"IF(DataLog!$C629=\"Log value\",DataLog!U629,\"\")","v":""},{"$f":"IF(DataLog!$C629=\"Log value\",DataLog!V629,\"\")","v":""},{"$f":"IF(DataLog!$C629=\"Log value\",DataLog!W629,\"\")","v":""},{"$f":"IF(DataLog!$C629=\"Log value\",DataLog!X629,\"\")","v":""},{"$f":"IF(DataLog!$C629=\"Log value\",DataLog!Y629,\"\")","v":""},{"$f":"IF(DataLog!$C629=\"Log value\",DataLog!Z629,\"\")","v":""},{"$f":"IF(DataLog!$C629=\"Log value\",DataLog!AA629,\"\")","v":""},{"$f":"IF(DataLog!$C629=\"Log value\",DataLog!AB629,\"\")","v":""},{"$f":"IF(DataLog!$C629=\"Log value\",DataLog!AC629,\"\")","v":""},{"$f":"IF(DataLog!$C629=\"Log value\",DataLog!AD629,\"\")","v":""},{"$f":"IF(DataLog!$C629=\"Log value\",DataLog!AE629,\"\")","v":""},{"$f":"IF(DataLog!$C629=\"Log value\",DataLog!AF629,\"\")","v":""},{"$f":"IF(DataLog!$C629=\"Log value\",DataLog!AG629,\"\")","v":""},{"$f":"IF(DataLog!$C629=\"Log value\",DataLog!AH629,\"\")","v":""},{"$f":"IF(DataLog!$C629=\"Log value\",DataLog!AI629,\"\")","v":""},{"$f":"IF(DataLog!$C629=\"Log value\",DataLog!AJ629,\"\")","v":""},{"$f":"IF(DataLog!$C629=\"Log value\",DataLog!AK629,\"\")","v":""},{"$f":"IF(DataLog!$C629=\"Log value\",DataLog!AL629,\"\")","v":""},{"$f":"IF(DataLog!$C629=\"Log value\",DataLog!AM629,\"\")","v":""}]
[null,null,null,null,null,null,{"$f":"IF(DataLog!$C630=\"Log value\",DataLog!D630&\"_\"&TEXT(DataLog!B630,\"åååå-mm-dd\"),\"\")","v":""},{"$f":"IF(DataLog!$C630=\"Log value\",DataLog!E630,\"\")","v":""},{"$f":"IF(DataLog!$C630=\"Log value\",DataLog!F630,\"\")","v":""},{"$f":"IF(DataLog!$C630=\"Log value\",DataLog!G630,\"\")","v":""},{"$f":"IF(DataLog!$C630=\"Log value\",DataLog!H630,\"\")","v":""},{"$f":"IF(DataLog!$C630=\"Log value\",DataLog!I630,\"\")","v":""},{"$f":"IF(DataLog!$C630=\"Log value\",DataLog!J630,\"\")","v":""},{"$f":"IF(DataLog!$C630=\"Log value\",DataLog!K630,\"\")","v":""},{"$f":"IF(DataLog!$C630=\"Log value\",DataLog!L630,\"\")","v":""},{"$f":"IF(DataLog!$C630=\"Log value\",DataLog!M630,\"\")","v":""},{"$f":"IF(DataLog!$C630=\"Log value\",DataLog!N630,\"\")","v":""},{"$f":"IF(DataLog!$C630=\"Log value\",DataLog!O630,\"\")","v":""},{"$f":"IF(DataLog!$C630=\"Log value\",DataLog!P630,\"\")","v":""},{"$f":"IF(DataLog!$C630=\"Log value\",DataLog!Q630,\"\")","v":""},{"$f":"IF(DataLog!$C630=\"Log value\",DataLog!R630,\"\")","v":""},{"$f":"IF(DataLog!$C630=\"Log value\",DataLog!S630,\"\")","v":""},{"$f":"IF(DataLog!$C630=\"Log value\",DataLog!T630,\"\")","v":""},{"$f":"IF(DataLog!$C630=\"Log value\",DataLog!U630,\"\")","v":""},{"$f":"IF(DataLog!$C630=\"Log value\",DataLog!V630,\"\")","v":""},{"$f":"IF(DataLog!$C630=\"Log value\",DataLog!W630,\"\")","v":""},{"$f":"IF(DataLog!$C630=\"Log value\",DataLog!X630,\"\")","v":""},{"$f":"IF(DataLog!$C630=\"Log value\",DataLog!Y630,\"\")","v":""},{"$f":"IF(DataLog!$C630=\"Log value\",DataLog!Z630,\"\")","v":""},{"$f":"IF(DataLog!$C630=\"Log value\",DataLog!AA630,\"\")","v":""},{"$f":"IF(DataLog!$C630=\"Log value\",DataLog!AB630,\"\")","v":""},{"$f":"IF(DataLog!$C630=\"Log value\",DataLog!AC630,\"\")","v":""},{"$f":"IF(DataLog!$C630=\"Log value\",DataLog!AD630,\"\")","v":""},{"$f":"IF(DataLog!$C630=\"Log value\",DataLog!AE630,\"\")","v":""},{"$f":"IF(DataLog!$C630=\"Log value\",DataLog!AF630,\"\")","v":""},{"$f":"IF(DataLog!$C630=\"Log value\",DataLog!AG630,\"\")","v":""},{"$f":"IF(DataLog!$C630=\"Log value\",DataLog!AH630,\"\")","v":""},{"$f":"IF(DataLog!$C630=\"Log value\",DataLog!AI630,\"\")","v":""},{"$f":"IF(DataLog!$C630=\"Log value\",DataLog!AJ630,\"\")","v":""},{"$f":"IF(DataLog!$C630=\"Log value\",DataLog!AK630,\"\")","v":""},{"$f":"IF(DataLog!$C630=\"Log value\",DataLog!AL630,\"\")","v":""},{"$f":"IF(DataLog!$C630=\"Log value\",DataLog!AM630,\"\")","v":""}]
[null,null,null,null,null,null,{"$f":"IF(DataLog!$C631=\"Log value\",DataLog!D631&\"_\"&TEXT(DataLog!B631,\"åååå-mm-dd\"),\"\")","v":""},{"$f":"IF(DataLog!$C631=\"Log value\",DataLog!E631,\"\")","v":""},{"$f":"IF(DataLog!$C631=\"Log value\",DataLog!F631,\"\")","v":""},{"$f":"IF(DataLog!$C631=\"Log value\",DataLog!G631,\"\")","v":""},{"$f":"IF(DataLog!$C631=\"Log value\",DataLog!H631,\"\")","v":""},{"$f":"IF(DataLog!$C631=\"Log value\",DataLog!I631,\"\")","v":""},{"$f":"IF(DataLog!$C631=\"Log value\",DataLog!J631,\"\")","v":""},{"$f":"IF(DataLog!$C631=\"Log value\",DataLog!K631,\"\")","v":""},{"$f":"IF(DataLog!$C631=\"Log value\",DataLog!L631,\"\")","v":""},{"$f":"IF(DataLog!$C631=\"Log value\",DataLog!M631,\"\")","v":""},{"$f":"IF(DataLog!$C631=\"Log value\",DataLog!N631,\"\")","v":""},{"$f":"IF(DataLog!$C631=\"Log value\",DataLog!O631,\"\")","v":""},{"$f":"IF(DataLog!$C631=\"Log value\",DataLog!P631,\"\")","v":""},{"$f":"IF(DataLog!$C631=\"Log value\",DataLog!Q631,\"\")","v":""},{"$f":"IF(DataLog!$C631=\"Log value\",DataLog!R631,\"\")","v":""},{"$f":"IF(DataLog!$C631=\"Log value\",DataLog!S631,\"\")","v":""},{"$f":"IF(DataLog!$C631=\"Log value\",DataLog!T631,\"\")","v":""},{"$f":"IF(DataLog!$C631=\"Log value\",DataLog!U631,\"\")","v":""},{"$f":"IF(DataLog!$C631=\"Log value\",DataLog!V631,\"\")","v":""},{"$f":"IF(DataLog!$C631=\"Log value\",DataLog!W631,\"\")","v":""},{"$f":"IF(DataLog!$C631=\"Log value\",DataLog!X631,\"\")","v":""},{"$f":"IF(DataLog!$C631=\"Log value\",DataLog!Y631,\"\")","v":""},{"$f":"IF(DataLog!$C631=\"Log value\",DataLog!Z631,\"\")","v":""},{"$f":"IF(DataLog!$C631=\"Log value\",DataLog!AA631,\"\")","v":""},{"$f":"IF(DataLog!$C631=\"Log value\",DataLog!AB631,\"\")","v":""},{"$f":"IF(DataLog!$C631=\"Log value\",DataLog!AC631,\"\")","v":""},{"$f":"IF(DataLog!$C631=\"Log value\",DataLog!AD631,\"\")","v":""},{"$f":"IF(DataLog!$C631=\"Log value\",DataLog!AE631,\"\")","v":""},{"$f":"IF(DataLog!$C631=\"Log value\",DataLog!AF631,\"\")","v":""},{"$f":"IF(DataLog!$C631=\"Log value\",DataLog!AG631,\"\")","v":""},{"$f":"IF(DataLog!$C631=\"Log value\",DataLog!AH631,\"\")","v":""},{"$f":"IF(DataLog!$C631=\"Log value\",DataLog!AI631,\"\")","v":""},{"$f":"IF(DataLog!$C631=\"Log value\",DataLog!AJ631,\"\")","v":""},{"$f":"IF(DataLog!$C631=\"Log value\",DataLog!AK631,\"\")","v":""},{"$f":"IF(DataLog!$C631=\"Log value\",DataLog!AL631,\"\")","v":""},{"$f":"IF(DataLog!$C631=\"Log value\",DataLog!AM631,\"\")","v":""}]
[null,null,null,null,null,null,{"$f":"IF(DataLog!$C632=\"Log value\",DataLog!D632&\"_\"&TEXT(DataLog!B632,\"åååå-mm-dd\"),\"\")","v":""},{"$f":"IF(DataLog!$C632=\"Log value\",DataLog!E632,\"\")","v":""},{"$f":"IF(DataLog!$C632=\"Log value\",DataLog!F632,\"\")","v":""},{"$f":"IF(DataLog!$C632=\"Log value\",DataLog!G632,\"\")","v":""},{"$f":"IF(DataLog!$C632=\"Log value\",DataLog!H632,\"\")","v":""},{"$f":"IF(DataLog!$C632=\"Log value\",DataLog!I632,\"\")","v":""},{"$f":"IF(DataLog!$C632=\"Log value\",DataLog!J632,\"\")","v":""},{"$f":"IF(DataLog!$C632=\"Log value\",DataLog!K632,\"\")","v":""},{"$f":"IF(DataLog!$C632=\"Log value\",DataLog!L632,\"\")","v":""},{"$f":"IF(DataLog!$C632=\"Log value\",DataLog!M632,\"\")","v":""},{"$f":"IF(DataLog!$C632=\"Log value\",DataLog!N632,\"\")","v":""},{"$f":"IF(DataLog!$C632=\"Log value\",DataLog!O632,\"\")","v":""},{"$f":"IF(DataLog!$C632=\"Log value\",DataLog!P632,\"\")","v":""},{"$f":"IF(DataLog!$C632=\"Log value\",DataLog!Q632,\"\")","v":""},{"$f":"IF(DataLog!$C632=\"Log value\",DataLog!R632,\"\")","v":""},{"$f":"IF(DataLog!$C632=\"Log value\",DataLog!S632,\"\")","v":""},{"$f":"IF(DataLog!$C632=\"Log value\",DataLog!T632,\"\")","v":""},{"$f":"IF(DataLog!$C632=\"Log value\",DataLog!U632,\"\")","v":""},{"$f":"IF(DataLog!$C632=\"Log value\",DataLog!V632,\"\")","v":""},{"$f":"IF(DataLog!$C632=\"Log value\",DataLog!W632,\"\")","v":""},{"$f":"IF(DataLog!$C632=\"Log value\",DataLog!X632,\"\")","v":""},{"$f":"IF(DataLog!$C632=\"Log value\",DataLog!Y632,\"\")","v":""},{"$f":"IF(DataLog!$C632=\"Log value\",DataLog!Z632,\"\")","v":""},{"$f":"IF(DataLog!$C632=\"Log value\",DataLog!AA632,\"\")","v":""},{"$f":"IF(DataLog!$C632=\"Log value\",DataLog!AB632,\"\")","v":""},{"$f":"IF(DataLog!$C632=\"Log value\",DataLog!AC632,\"\")","v":""},{"$f":"IF(DataLog!$C632=\"Log value\",DataLog!AD632,\"\")","v":""},{"$f":"IF(DataLog!$C632=\"Log value\",DataLog!AE632,\"\")","v":""},{"$f":"IF(DataLog!$C632=\"Log value\",DataLog!AF632,\"\")","v":""},{"$f":"IF(DataLog!$C632=\"Log value\",DataLog!AG632,\"\")","v":""},{"$f":"IF(DataLog!$C632=\"Log value\",DataLog!AH632,\"\")","v":""},{"$f":"IF(DataLog!$C632=\"Log value\",DataLog!AI632,\"\")","v":""},{"$f":"IF(DataLog!$C632=\"Log value\",DataLog!AJ632,\"\")","v":""},{"$f":"IF(DataLog!$C632=\"Log value\",DataLog!AK632,\"\")","v":""},{"$f":"IF(DataLog!$C632=\"Log value\",DataLog!AL632,\"\")","v":""},{"$f":"IF(DataLog!$C632=\"Log value\",DataLog!AM632,\"\")","v":""}]
[null,null,null,null,null,null,{"$f":"IF(DataLog!$C633=\"Log value\",DataLog!D633&\"_\"&TEXT(DataLog!B633,\"åååå-mm-dd\"),\"\")","v":""},{"$f":"IF(DataLog!$C633=\"Log value\",DataLog!E633,\"\")","v":""},{"$f":"IF(DataLog!$C633=\"Log value\",DataLog!F633,\"\")","v":""},{"$f":"IF(DataLog!$C633=\"Log value\",DataLog!G633,\"\")","v":""},{"$f":"IF(DataLog!$C633=\"Log value\",DataLog!H633,\"\")","v":""},{"$f":"IF(DataLog!$C633=\"Log value\",DataLog!I633,\"\")","v":""},{"$f":"IF(DataLog!$C633=\"Log value\",DataLog!J633,\"\")","v":""},{"$f":"IF(DataLog!$C633=\"Log value\",DataLog!K633,\"\")","v":""},{"$f":"IF(DataLog!$C633=\"Log value\",DataLog!L633,\"\")","v":""},{"$f":"IF(DataLog!$C633=\"Log value\",DataLog!M633,\"\")","v":""},{"$f":"IF(DataLog!$C633=\"Log value\",DataLog!N633,\"\")","v":""},{"$f":"IF(DataLog!$C633=\"Log value\",DataLog!O633,\"\")","v":""},{"$f":"IF(DataLog!$C633=\"Log value\",DataLog!P633,\"\")","v":""},{"$f":"IF(DataLog!$C633=\"Log value\",DataLog!Q633,\"\")","v":""},{"$f":"IF(DataLog!$C633=\"Log value\",DataLog!R633,\"\")","v":""},{"$f":"IF(DataLog!$C633=\"Log value\",DataLog!S633,\"\")","v":""},{"$f":"IF(DataLog!$C633=\"Log value\",DataLog!T633,\"\")","v":""},{"$f":"IF(DataLog!$C633=\"Log value\",DataLog!U633,\"\")","v":""},{"$f":"IF(DataLog!$C633=\"Log value\",DataLog!V633,\"\")","v":""},{"$f":"IF(DataLog!$C633=\"Log value\",DataLog!W633,\"\")","v":""},{"$f":"IF(DataLog!$C633=\"Log value\",DataLog!X633,\"\")","v":""},{"$f":"IF(DataLog!$C633=\"Log value\",DataLog!Y633,\"\")","v":""},{"$f":"IF(DataLog!$C633=\"Log value\",DataLog!Z633,\"\")","v":""},{"$f":"IF(DataLog!$C633=\"Log value\",DataLog!AA633,\"\")","v":""},{"$f":"IF(DataLog!$C633=\"Log value\",DataLog!AB633,\"\")","v":""},{"$f":"IF(DataLog!$C633=\"Log value\",DataLog!AC633,\"\")","v":""},{"$f":"IF(DataLog!$C633=\"Log value\",DataLog!AD633,\"\")","v":""},{"$f":"IF(DataLog!$C633=\"Log value\",DataLog!AE633,\"\")","v":""},{"$f":"IF(DataLog!$C633=\"Log value\",DataLog!AF633,\"\")","v":""},{"$f":"IF(DataLog!$C633=\"Log value\",DataLog!AG633,\"\")","v":""},{"$f":"IF(DataLog!$C633=\"Log value\",DataLog!AH633,\"\")","v":""},{"$f":"IF(DataLog!$C633=\"Log value\",DataLog!AI633,\"\")","v":""},{"$f":"IF(DataLog!$C633=\"Log value\",DataLog!AJ633,\"\")","v":""},{"$f":"IF(DataLog!$C633=\"Log value\",DataLog!AK633,\"\")","v":""},{"$f":"IF(DataLog!$C633=\"Log value\",DataLog!AL633,\"\")","v":""},{"$f":"IF(DataLog!$C633=\"Log value\",DataLog!AM633,\"\")","v":""}]
[null,null,null,null,null,null,{"$f":"IF(DataLog!$C634=\"Log value\",DataLog!D634&\"_\"&TEXT(DataLog!B634,\"åååå-mm-dd\"),\"\")","v":""},{"$f":"IF(DataLog!$C634=\"Log value\",DataLog!E634,\"\")","v":""},{"$f":"IF(DataLog!$C634=\"Log value\",DataLog!F634,\"\")","v":""},{"$f":"IF(DataLog!$C634=\"Log value\",DataLog!G634,\"\")","v":""},{"$f":"IF(DataLog!$C634=\"Log value\",DataLog!H634,\"\")","v":""},{"$f":"IF(DataLog!$C634=\"Log value\",DataLog!I634,\"\")","v":""},{"$f":"IF(DataLog!$C634=\"Log value\",DataLog!J634,\"\")","v":""},{"$f":"IF(DataLog!$C634=\"Log value\",DataLog!K634,\"\")","v":""},{"$f":"IF(DataLog!$C634=\"Log value\",DataLog!L634,\"\")","v":""},{"$f":"IF(DataLog!$C634=\"Log value\",DataLog!M634,\"\")","v":""},{"$f":"IF(DataLog!$C634=\"Log value\",DataLog!N634,\"\")","v":""},{"$f":"IF(DataLog!$C634=\"Log value\",DataLog!O634,\"\")","v":""},{"$f":"IF(DataLog!$C634=\"Log value\",DataLog!P634,\"\")","v":""},{"$f":"IF(DataLog!$C634=\"Log value\",DataLog!Q634,\"\")","v":""},{"$f":"IF(DataLog!$C634=\"Log value\",DataLog!R634,\"\")","v":""},{"$f":"IF(DataLog!$C634=\"Log value\",DataLog!S634,\"\")","v":""},{"$f":"IF(DataLog!$C634=\"Log value\",DataLog!T634,\"\")","v":""},{"$f":"IF(DataLog!$C634=\"Log value\",DataLog!U634,\"\")","v":""},{"$f":"IF(DataLog!$C634=\"Log value\",DataLog!V634,\"\")","v":""},{"$f":"IF(DataLog!$C634=\"Log value\",DataLog!W634,\"\")","v":""},{"$f":"IF(DataLog!$C634=\"Log value\",DataLog!X634,\"\")","v":""},{"$f":"IF(DataLog!$C634=\"Log value\",DataLog!Y634,\"\")","v":""},{"$f":"IF(DataLog!$C634=\"Log value\",DataLog!Z634,\"\")","v":""},{"$f":"IF(DataLog!$C634=\"Log value\",DataLog!AA634,\"\")","v":""},{"$f":"IF(DataLog!$C634=\"Log value\",DataLog!AB634,\"\")","v":""},{"$f":"IF(DataLog!$C634=\"Log value\",DataLog!AC634,\"\")","v":""},{"$f":"IF(DataLog!$C634=\"Log value\",DataLog!AD634,\"\")","v":""},{"$f":"IF(DataLog!$C634=\"Log value\",DataLog!AE634,\"\")","v":""},{"$f":"IF(DataLog!$C634=\"Log value\",DataLog!AF634,\"\")","v":""},{"$f":"IF(DataLog!$C634=\"Log value\",DataLog!AG634,\"\")","v":""},{"$f":"IF(DataLog!$C634=\"Log value\",DataLog!AH634,\"\")","v":""},{"$f":"IF(DataLog!$C634=\"Log value\",DataLog!AI634,\"\")","v":""},{"$f":"IF(DataLog!$C634=\"Log value\",DataLog!AJ634,\"\")","v":""},{"$f":"IF(DataLog!$C634=\"Log value\",DataLog!AK634,\"\")","v":""},{"$f":"IF(DataLog!$C634=\"Log value\",DataLog!AL634,\"\")","v":""},{"$f":"IF(DataLog!$C634=\"Log value\",DataLog!AM634,\"\")","v":""}]
[null,null,null,null,null,null,{"$f":"IF(DataLog!$C635=\"Log value\",DataLog!D635&\"_\"&TEXT(DataLog!B635,\"åååå-mm-dd\"),\"\")","v":""},{"$f":"IF(DataLog!$C635=\"Log value\",DataLog!E635,\"\")","v":""},{"$f":"IF(DataLog!$C635=\"Log value\",DataLog!F635,\"\")","v":""},{"$f":"IF(DataLog!$C635=\"Log value\",DataLog!G635,\"\")","v":""},{"$f":"IF(DataLog!$C635=\"Log value\",DataLog!H635,\"\")","v":""},{"$f":"IF(DataLog!$C635=\"Log value\",DataLog!I635,\"\")","v":""},{"$f":"IF(DataLog!$C635=\"Log value\",DataLog!J635,\"\")","v":""},{"$f":"IF(DataLog!$C635=\"Log value\",DataLog!K635,\"\")","v":""},{"$f":"IF(DataLog!$C635=\"Log value\",DataLog!L635,\"\")","v":""},{"$f":"IF(DataLog!$C635=\"Log value\",DataLog!M635,\"\")","v":""},{"$f":"IF(DataLog!$C635=\"Log value\",DataLog!N635,\"\")","v":""},{"$f":"IF(DataLog!$C635=\"Log value\",DataLog!O635,\"\")","v":""},{"$f":"IF(DataLog!$C635=\"Log value\",DataLog!P635,\"\")","v":""},{"$f":"IF(DataLog!$C635=\"Log value\",DataLog!Q635,\"\")","v":""},{"$f":"IF(DataLog!$C635=\"Log value\",DataLog!R635,\"\")","v":""},{"$f":"IF(DataLog!$C635=\"Log value\",DataLog!S635,\"\")","v":""},{"$f":"IF(DataLog!$C635=\"Log value\",DataLog!T635,\"\")","v":""},{"$f":"IF(DataLog!$C635=\"Log value\",DataLog!U635,\"\")","v":""},{"$f":"IF(DataLog!$C635=\"Log value\",DataLog!V635,\"\")","v":""},{"$f":"IF(DataLog!$C635=\"Log value\",DataLog!W635,\"\")","v":""},{"$f":"IF(DataLog!$C635=\"Log value\",DataLog!X635,\"\")","v":""},{"$f":"IF(DataLog!$C635=\"Log value\",DataLog!Y635,\"\")","v":""},{"$f":"IF(DataLog!$C635=\"Log value\",DataLog!Z635,\"\")","v":""},{"$f":"IF(DataLog!$C635=\"Log value\",DataLog!AA635,\"\")","v":""},{"$f":"IF(DataLog!$C635=\"Log value\",DataLog!AB635,\"\")","v":""},{"$f":"IF(DataLog!$C635=\"Log value\",DataLog!AC635,\"\")","v":""},{"$f":"IF(DataLog!$C635=\"Log value\",DataLog!AD635,\"\")","v":""},{"$f":"IF(DataLog!$C635=\"Log value\",DataLog!AE635,\"\")","v":""},{"$f":"IF(DataLog!$C635=\"Log value\",DataLog!AF635,\"\")","v":""},{"$f":"IF(DataLog!$C635=\"Log value\",DataLog!AG635,\"\")","v":""},{"$f":"IF(DataLog!$C635=\"Log value\",DataLog!AH635,\"\")","v":""},{"$f":"IF(DataLog!$C635=\"Log value\",DataLog!AI635,\"\")","v":""},{"$f":"IF(DataLog!$C635=\"Log value\",DataLog!AJ635,\"\")","v":""},{"$f":"IF(DataLog!$C635=\"Log value\",DataLog!AK635,\"\")","v":""},{"$f":"IF(DataLog!$C635=\"Log value\",DataLog!AL635,\"\")","v":""},{"$f":"IF(DataLog!$C635=\"Log value\",DataLog!AM635,\"\")","v":""}]
[null,null,null,null,null,null,{"$f":"IF(DataLog!$C636=\"Log value\",DataLog!D636&\"_\"&TEXT(DataLog!B636,\"åååå-mm-dd\"),\"\")","v":""},{"$f":"IF(DataLog!$C636=\"Log value\",DataLog!E636,\"\")","v":""},{"$f":"IF(DataLog!$C636=\"Log value\",DataLog!F636,\"\")","v":""},{"$f":"IF(DataLog!$C636=\"Log value\",DataLog!G636,\"\")","v":""},{"$f":"IF(DataLog!$C636=\"Log value\",DataLog!H636,\"\")","v":""},{"$f":"IF(DataLog!$C636=\"Log value\",DataLog!I636,\"\")","v":""},{"$f":"IF(DataLog!$C636=\"Log value\",DataLog!J636,\"\")","v":""},{"$f":"IF(DataLog!$C636=\"Log value\",DataLog!K636,\"\")","v":""},{"$f":"IF(DataLog!$C636=\"Log value\",DataLog!L636,\"\")","v":""},{"$f":"IF(DataLog!$C636=\"Log value\",DataLog!M636,\"\")","v":""},{"$f":"IF(DataLog!$C636=\"Log value\",DataLog!N636,\"\")","v":""},{"$f":"IF(DataLog!$C636=\"Log value\",DataLog!O636,\"\")","v":""},{"$f":"IF(DataLog!$C636=\"Log value\",DataLog!P636,\"\")","v":""},{"$f":"IF(DataLog!$C636=\"Log value\",DataLog!Q636,\"\")","v":""},{"$f":"IF(DataLog!$C636=\"Log value\",DataLog!R636,\"\")","v":""},{"$f":"IF(DataLog!$C636=\"Log value\",DataLog!S636,\"\")","v":""},{"$f":"IF(DataLog!$C636=\"Log value\",DataLog!T636,\"\")","v":""},{"$f":"IF(DataLog!$C636=\"Log value\",DataLog!U636,\"\")","v":""},{"$f":"IF(DataLog!$C636=\"Log value\",DataLog!V636,\"\")","v":""},{"$f":"IF(DataLog!$C636=\"Log value\",DataLog!W636,\"\")","v":""},{"$f":"IF(DataLog!$C636=\"Log value\",DataLog!X636,\"\")","v":""},{"$f":"IF(DataLog!$C636=\"Log value\",DataLog!Y636,\"\")","v":""},{"$f":"IF(DataLog!$C636=\"Log value\",DataLog!Z636,\"\")","v":""},{"$f":"IF(DataLog!$C636=\"Log value\",DataLog!AA636,\"\")","v":""},{"$f":"IF(DataLog!$C636=\"Log value\",DataLog!AB636,\"\")","v":""},{"$f":"IF(DataLog!$C636=\"Log value\",DataLog!AC636,\"\")","v":""},{"$f":"IF(DataLog!$C636=\"Log value\",DataLog!AD636,\"\")","v":""},{"$f":"IF(DataLog!$C636=\"Log value\",DataLog!AE636,\"\")","v":""},{"$f":"IF(DataLog!$C636=\"Log value\",DataLog!AF636,\"\")","v":""},{"$f":"IF(DataLog!$C636=\"Log value\",DataLog!AG636,\"\")","v":""},{"$f":"IF(DataLog!$C636=\"Log value\",DataLog!AH636,\"\")","v":""},{"$f":"IF(DataLog!$C636=\"Log value\",DataLog!AI636,\"\")","v":""},{"$f":"IF(DataLog!$C636=\"Log value\",DataLog!AJ636,\"\")","v":""},{"$f":"IF(DataLog!$C636=\"Log value\",DataLog!AK636,\"\")","v":""},{"$f":"IF(DataLog!$C636=\"Log value\",DataLog!AL636,\"\")","v":""},{"$f":"IF(DataLog!$C636=\"Log value\",DataLog!AM636,\"\")","v":""}]
[null,null,null,null,null,null,{"$f":"IF(DataLog!$C637=\"Log value\",DataLog!D637&\"_\"&TEXT(DataLog!B637,\"åååå-mm-dd\"),\"\")","v":""},{"$f":"IF(DataLog!$C637=\"Log value\",DataLog!E637,\"\")","v":""},{"$f":"IF(DataLog!$C637=\"Log value\",DataLog!F637,\"\")","v":""},{"$f":"IF(DataLog!$C637=\"Log value\",DataLog!G637,\"\")","v":""},{"$f":"IF(DataLog!$C637=\"Log value\",DataLog!H637,\"\")","v":""},{"$f":"IF(DataLog!$C637=\"Log value\",DataLog!I637,\"\")","v":""},{"$f":"IF(DataLog!$C637=\"Log value\",DataLog!J637,\"\")","v":""},{"$f":"IF(DataLog!$C637=\"Log value\",DataLog!K637,\"\")","v":""},{"$f":"IF(DataLog!$C637=\"Log value\",DataLog!L637,\"\")","v":""},{"$f":"IF(DataLog!$C637=\"Log value\",DataLog!M637,\"\")","v":""},{"$f":"IF(DataLog!$C637=\"Log value\",DataLog!N637,\"\")","v":""},{"$f":"IF(DataLog!$C637=\"Log value\",DataLog!O637,\"\")","v":""},{"$f":"IF(DataLog!$C637=\"Log value\",DataLog!P637,\"\")","v":""},{"$f":"IF(DataLog!$C637=\"Log value\",DataLog!Q637,\"\")","v":""},{"$f":"IF(DataLog!$C637=\"Log value\",DataLog!R637,\"\")","v":""},{"$f":"IF(DataLog!$C637=\"Log value\",DataLog!S637,\"\")","v":""},{"$f":"IF(DataLog!$C637=\"Log value\",DataLog!T637,\"\")","v":""},{"$f":"IF(DataLog!$C637=\"Log value\",DataLog!U637,\"\")","v":""},{"$f":"IF(DataLog!$C637=\"Log value\",DataLog!V637,\"\")","v":""},{"$f":"IF(DataLog!$C637=\"Log value\",DataLog!W637,\"\")","v":""},{"$f":"IF(DataLog!$C637=\"Log value\",DataLog!X637,\"\")","v":""},{"$f":"IF(DataLog!$C637=\"Log value\",DataLog!Y637,\"\")","v":""},{"$f":"IF(DataLog!$C637=\"Log value\",DataLog!Z637,\"\")","v":""},{"$f":"IF(DataLog!$C637=\"Log value\",DataLog!AA637,\"\")","v":""},{"$f":"IF(DataLog!$C637=\"Log value\",DataLog!AB637,\"\")","v":""},{"$f":"IF(DataLog!$C637=\"Log value\",DataLog!AC637,\"\")","v":""},{"$f":"IF(DataLog!$C637=\"Log value\",DataLog!AD637,\"\")","v":""},{"$f":"IF(DataLog!$C637=\"Log value\",DataLog!AE637,\"\")","v":""},{"$f":"IF(DataLog!$C637=\"Log value\",DataLog!AF637,\"\")","v":""},{"$f":"IF(DataLog!$C637=\"Log value\",DataLog!AG637,\"\")","v":""},{"$f":"IF(DataLog!$C637=\"Log value\",DataLog!AH637,\"\")","v":""},{"$f":"IF(DataLog!$C637=\"Log value\",DataLog!AI637,\"\")","v":""},{"$f":"IF(DataLog!$C637=\"Log value\",DataLog!AJ637,\"\")","v":""},{"$f":"IF(DataLog!$C637=\"Log value\",DataLog!AK637,\"\")","v":""},{"$f":"IF(DataLog!$C637=\"Log value\",DataLog!AL637,\"\")","v":""},{"$f":"IF(DataLog!$C637=\"Log value\",DataLog!AM637,\"\")","v":""}]
[null,null,null,null,null,null,{"$f":"IF(DataLog!$C638=\"Log value\",DataLog!D638&\"_\"&TEXT(DataLog!B638,\"åååå-mm-dd\"),\"\")","v":""},{"$f":"IF(DataLog!$C638=\"Log value\",DataLog!E638,\"\")","v":""},{"$f":"IF(DataLog!$C638=\"Log value\",DataLog!F638,\"\")","v":""},{"$f":"IF(DataLog!$C638=\"Log value\",DataLog!G638,\"\")","v":""},{"$f":"IF(DataLog!$C638=\"Log value\",DataLog!H638,\"\")","v":""},{"$f":"IF(DataLog!$C638=\"Log value\",DataLog!I638,\"\")","v":""},{"$f":"IF(DataLog!$C638=\"Log value\",DataLog!J638,\"\")","v":""},{"$f":"IF(DataLog!$C638=\"Log value\",DataLog!K638,\"\")","v":""},{"$f":"IF(DataLog!$C638=\"Log value\",DataLog!L638,\"\")","v":""},{"$f":"IF(DataLog!$C638=\"Log value\",DataLog!M638,\"\")","v":""},{"$f":"IF(DataLog!$C638=\"Log value\",DataLog!N638,\"\")","v":""},{"$f":"IF(DataLog!$C638=\"Log value\",DataLog!O638,\"\")","v":""},{"$f":"IF(DataLog!$C638=\"Log value\",DataLog!P638,\"\")","v":""},{"$f":"IF(DataLog!$C638=\"Log value\",DataLog!Q638,\"\")","v":""},{"$f":"IF(DataLog!$C638=\"Log value\",DataLog!R638,\"\")","v":""},{"$f":"IF(DataLog!$C638=\"Log value\",DataLog!S638,\"\")","v":""},{"$f":"IF(DataLog!$C638=\"Log value\",DataLog!T638,\"\")","v":""},{"$f":"IF(DataLog!$C638=\"Log value\",DataLog!U638,\"\")","v":""},{"$f":"IF(DataLog!$C638=\"Log value\",DataLog!V638,\"\")","v":""},{"$f":"IF(DataLog!$C638=\"Log value\",DataLog!W638,\"\")","v":""},{"$f":"IF(DataLog!$C638=\"Log value\",DataLog!X638,\"\")","v":""},{"$f":"IF(DataLog!$C638=\"Log value\",DataLog!Y638,\"\")","v":""},{"$f":"IF(DataLog!$C638=\"Log value\",DataLog!Z638,\"\")","v":""},{"$f":"IF(DataLog!$C638=\"Log value\",DataLog!AA638,\"\")","v":""},{"$f":"IF(DataLog!$C638=\"Log value\",DataLog!AB638,\"\")","v":""},{"$f":"IF(DataLog!$C638=\"Log value\",DataLog!AC638,\"\")","v":""},{"$f":"IF(DataLog!$C638=\"Log value\",DataLog!AD638,\"\")","v":""},{"$f":"IF(DataLog!$C638=\"Log value\",DataLog!AE638,\"\")","v":""},{"$f":"IF(DataLog!$C638=\"Log value\",DataLog!AF638,\"\")","v":""},{"$f":"IF(DataLog!$C638=\"Log value\",DataLog!AG638,\"\")","v":""},{"$f":"IF(DataLog!$C638=\"Log value\",DataLog!AH638,\"\")","v":""},{"$f":"IF(DataLog!$C638=\"Log value\",DataLog!AI638,\"\")","v":""},{"$f":"IF(DataLog!$C638=\"Log value\",DataLog!AJ638,\"\")","v":""},{"$f":"IF(DataLog!$C638=\"Log value\",DataLog!AK638,\"\")","v":""},{"$f":"IF(DataLog!$C638=\"Log value\",DataLog!AL638,\"\")","v":""},{"$f":"IF(DataLog!$C638=\"Log value\",DataLog!AM638,\"\")","v":""}]
[null,null,null,null,null,null,{"$f":"IF(DataLog!$C639=\"Log value\",DataLog!D639&\"_\"&TEXT(DataLog!B639,\"åååå-mm-dd\"),\"\")","v":""},{"$f":"IF(DataLog!$C639=\"Log value\",DataLog!E639,\"\")","v":""},{"$f":"IF(DataLog!$C639=\"Log value\",DataLog!F639,\"\")","v":""},{"$f":"IF(DataLog!$C639=\"Log value\",DataLog!G639,\"\")","v":""},{"$f":"IF(DataLog!$C639=\"Log value\",DataLog!H639,\"\")","v":""},{"$f":"IF(DataLog!$C639=\"Log value\",DataLog!I639,\"\")","v":""},{"$f":"IF(DataLog!$C639=\"Log value\",DataLog!J639,\"\")","v":""},{"$f":"IF(DataLog!$C639=\"Log value\",DataLog!K639,\"\")","v":""},{"$f":"IF(DataLog!$C639=\"Log value\",DataLog!L639,\"\")","v":""},{"$f":"IF(DataLog!$C639=\"Log value\",DataLog!M639,\"\")","v":""},{"$f":"IF(DataLog!$C639=\"Log value\",DataLog!N639,\"\")","v":""},{"$f":"IF(DataLog!$C639=\"Log value\",DataLog!O639,\"\")","v":""},{"$f":"IF(DataLog!$C639=\"Log value\",DataLog!P639,\"\")","v":""},{"$f":"IF(DataLog!$C639=\"Log value\",DataLog!Q639,\"\")","v":""},{"$f":"IF(DataLog!$C639=\"Log value\",DataLog!R639,\"\")","v":""},{"$f":"IF(DataLog!$C639=\"Log value\",DataLog!S639,\"\")","v":""},{"$f":"IF(DataLog!$C639=\"Log value\",DataLog!T639,\"\")","v":""},{"$f":"IF(DataLog!$C639=\"Log value\",DataLog!U639,\"\")","v":""},{"$f":"IF(DataLog!$C639=\"Log value\",DataLog!V639,\"\")","v":""},{"$f":"IF(DataLog!$C639=\"Log value\",DataLog!W639,\"\")","v":""},{"$f":"IF(DataLog!$C639=\"Log value\",DataLog!X639,\"\")","v":""},{"$f":"IF(DataLog!$C639=\"Log value\",DataLog!Y639,\"\")","v":""},{"$f":"IF(DataLog!$C639=\"Log value\",DataLog!Z639,\"\")","v":""},{"$f":"IF(DataLog!$C639=\"Log value\",DataLog!AA639,\"\")","v":""},{"$f":"IF(DataLog!$C639=\"Log value\",DataLog!AB639,\"\")","v":""},{"$f":"IF(DataLog!$C639=\"Log value\",DataLog!AC639,\"\")","v":""},{"$f":"IF(DataLog!$C639=\"Log value\",DataLog!AD639,\"\")","v":""},{"$f":"IF(DataLog!$C639=\"Log value\",DataLog!AE639,\"\")","v":""},{"$f":"IF(DataLog!$C639=\"Log value\",DataLog!AF639,\"\")","v":""},{"$f":"IF(DataLog!$C639=\"Log value\",DataLog!AG639,\"\")","v":""},{"$f":"IF(DataLog!$C639=\"Log value\",DataLog!AH639,\"\")","v":""},{"$f":"IF(DataLog!$C639=\"Log value\",DataLog!AI639,\"\")","v":""},{"$f":"IF(DataLog!$C639=\"Log value\",DataLog!AJ639,\"\")","v":""},{"$f":"IF(DataLog!$C639=\"Log value\",DataLog!AK639,\"\")","v":""},{"$f":"IF(DataLog!$C639=\"Log value\",DataLog!AL639,\"\")","v":""},{"$f":"IF(DataLog!$C639=\"Log value\",DataLog!AM639,\"\")","v":""}]
[null,null,null,null,null,null,{"$f":"IF(DataLog!$C640=\"Log value\",DataLog!D640&\"_\"&TEXT(DataLog!B640,\"åååå-mm-dd\"),\"\")","v":""},{"$f":"IF(DataLog!$C640=\"Log value\",DataLog!E640,\"\")","v":""},{"$f":"IF(DataLog!$C640=\"Log value\",DataLog!F640,\"\")","v":""},{"$f":"IF(DataLog!$C640=\"Log value\",DataLog!G640,\"\")","v":""},{"$f":"IF(DataLog!$C640=\"Log value\",DataLog!H640,\"\")","v":""},{"$f":"IF(DataLog!$C640=\"Log value\",DataLog!I640,\"\")","v":""},{"$f":"IF(DataLog!$C640=\"Log value\",DataLog!J640,\"\")","v":""},{"$f":"IF(DataLog!$C640=\"Log value\",DataLog!K640,\"\")","v":""},{"$f":"IF(DataLog!$C640=\"Log value\",DataLog!L640,\"\")","v":""},{"$f":"IF(DataLog!$C640=\"Log value\",DataLog!M640,\"\")","v":""},{"$f":"IF(DataLog!$C640=\"Log value\",DataLog!N640,\"\")","v":""},{"$f":"IF(DataLog!$C640=\"Log value\",DataLog!O640,\"\")","v":""},{"$f":"IF(DataLog!$C640=\"Log value\",DataLog!P640,\"\")","v":""},{"$f":"IF(DataLog!$C640=\"Log value\",DataLog!Q640,\"\")","v":""},{"$f":"IF(DataLog!$C640=\"Log value\",DataLog!R640,\"\")","v":""},{"$f":"IF(DataLog!$C640=\"Log value\",DataLog!S640,\"\")","v":""},{"$f":"IF(DataLog!$C640=\"Log value\",DataLog!T640,\"\")","v":""},{"$f":"IF(DataLog!$C640=\"Log value\",DataLog!U640,\"\")","v":""},{"$f":"IF(DataLog!$C640=\"Log value\",DataLog!V640,\"\")","v":""},{"$f":"IF(DataLog!$C640=\"Log value\",DataLog!W640,\"\")","v":""},{"$f":"IF(DataLog!$C640=\"Log value\",DataLog!X640,\"\")","v":""},{"$f":"IF(DataLog!$C640=\"Log value\",DataLog!Y640,\"\")","v":""},{"$f":"IF(DataLog!$C640=\"Log value\",DataLog!Z640,\"\")","v":""},{"$f":"IF(DataLog!$C640=\"Log value\",DataLog!AA640,\"\")","v":""},{"$f":"IF(DataLog!$C640=\"Log value\",DataLog!AB640,\"\")","v":""},{"$f":"IF(DataLog!$C640=\"Log value\",DataLog!AC640,\"\")","v":""},{"$f":"IF(DataLog!$C640=\"Log value\",DataLog!AD640,\"\")","v":""},{"$f":"IF(DataLog!$C640=\"Log value\",DataLog!AE640,\"\")","v":""},{"$f":"IF(DataLog!$C640=\"Log value\",DataLog!AF640,\"\")","v":""},{"$f":"IF(DataLog!$C640=\"Log value\",DataLog!AG640,\"\")","v":""},{"$f":"IF(DataLog!$C640=\"Log value\",DataLog!AH640,\"\")","v":""},{"$f":"IF(DataLog!$C640=\"Log value\",DataLog!AI640,\"\")","v":""},{"$f":"IF(DataLog!$C640=\"Log value\",DataLog!AJ640,\"\")","v":""},{"$f":"IF(DataLog!$C640=\"Log value\",DataLog!AK640,\"\")","v":""},{"$f":"IF(DataLog!$C640=\"Log value\",DataLog!AL640,\"\")","v":""},{"$f":"IF(DataLog!$C640=\"Log value\",DataLog!AM640,\"\")","v":""}]
[null,null,null,null,null,null,{"$f":"IF(DataLog!$C641=\"Log value\",DataLog!D641&\"_\"&TEXT(DataLog!B641,\"åååå-mm-dd\"),\"\")","v":""},{"$f":"IF(DataLog!$C641=\"Log value\",DataLog!E641,\"\")","v":""},{"$f":"IF(DataLog!$C641=\"Log value\",DataLog!F641,\"\")","v":""},{"$f":"IF(DataLog!$C641=\"Log value\",DataLog!G641,\"\")","v":""},{"$f":"IF(DataLog!$C641=\"Log value\",DataLog!H641,\"\")","v":""},{"$f":"IF(DataLog!$C641=\"Log value\",DataLog!I641,\"\")","v":""},{"$f":"IF(DataLog!$C641=\"Log value\",DataLog!J641,\"\")","v":""},{"$f":"IF(DataLog!$C641=\"Log value\",DataLog!K641,\"\")","v":""},{"$f":"IF(DataLog!$C641=\"Log value\",DataLog!L641,\"\")","v":""},{"$f":"IF(DataLog!$C641=\"Log value\",DataLog!M641,\"\")","v":""},{"$f":"IF(DataLog!$C641=\"Log value\",DataLog!N641,\"\")","v":""},{"$f":"IF(DataLog!$C641=\"Log value\",DataLog!O641,\"\")","v":""},{"$f":"IF(DataLog!$C641=\"Log value\",DataLog!P641,\"\")","v":""},{"$f":"IF(DataLog!$C641=\"Log value\",DataLog!Q641,\"\")","v":""},{"$f":"IF(DataLog!$C641=\"Log value\",DataLog!R641,\"\")","v":""},{"$f":"IF(DataLog!$C641=\"Log value\",DataLog!S641,\"\")","v":""},{"$f":"IF(DataLog!$C641=\"Log value\",DataLog!T641,\"\")","v":""},{"$f":"IF(DataLog!$C641=\"Log value\",DataLog!U641,\"\")","v":""},{"$f":"IF(DataLog!$C641=\"Log value\",DataLog!V641,\"\")","v":""},{"$f":"IF(DataLog!$C641=\"Log value\",DataLog!W641,\"\")","v":""},{"$f":"IF(DataLog!$C641=\"Log value\",DataLog!X641,\"\")","v":""},{"$f":"IF(DataLog!$C641=\"Log value\",DataLog!Y641,\"\")","v":""},{"$f":"IF(DataLog!$C641=\"Log value\",DataLog!Z641,\"\")","v":""},{"$f":"IF(DataLog!$C641=\"Log value\",DataLog!AA641,\"\")","v":""},{"$f":"IF(DataLog!$C641=\"Log value\",DataLog!AB641,\"\")","v":""},{"$f":"IF(DataLog!$C641=\"Log value\",DataLog!AC641,\"\")","v":""},{"$f":"IF(DataLog!$C641=\"Log value\",DataLog!AD641,\"\")","v":""},{"$f":"IF(DataLog!$C641=\"Log value\",DataLog!AE641,\"\")","v":""},{"$f":"IF(DataLog!$C641=\"Log value\",DataLog!AF641,\"\")","v":""},{"$f":"IF(DataLog!$C641=\"Log value\",DataLog!AG641,\"\")","v":""},{"$f":"IF(DataLog!$C641=\"Log value\",DataLog!AH641,\"\")","v":""},{"$f":"IF(DataLog!$C641=\"Log value\",DataLog!AI641,\"\")","v":""},{"$f":"IF(DataLog!$C641=\"Log value\",DataLog!AJ641,\"\")","v":""},{"$f":"IF(DataLog!$C641=\"Log value\",DataLog!AK641,\"\")","v":""},{"$f":"IF(DataLog!$C641=\"Log value\",DataLog!AL641,\"\")","v":""},{"$f":"IF(DataLog!$C641=\"Log value\",DataLog!AM641,\"\")","v":""}]
[null,null,null,null,null,null,{"$f":"IF(DataLog!$C642=\"Log value\",DataLog!D642&\"_\"&TEXT(DataLog!B642,\"åååå-mm-dd\"),\"\")","v":""},{"$f":"IF(DataLog!$C642=\"Log value\",DataLog!E642,\"\")","v":""},{"$f":"IF(DataLog!$C642=\"Log value\",DataLog!F642,\"\")","v":""},{"$f":"IF(DataLog!$C642=\"Log value\",DataLog!G642,\"\")","v":""},{"$f":"IF(DataLog!$C642=\"Log value\",DataLog!H642,\"\")","v":""},{"$f":"IF(DataLog!$C642=\"Log value\",DataLog!I642,\"\")","v":""},{"$f":"IF(DataLog!$C642=\"Log value\",DataLog!J642,\"\")","v":""},{"$f":"IF(DataLog!$C642=\"Log value\",DataLog!K642,\"\")","v":""},{"$f":"IF(DataLog!$C642=\"Log value\",DataLog!L642,\"\")","v":""},{"$f":"IF(DataLog!$C642=\"Log value\",DataLog!M642,\"\")","v":""},{"$f":"IF(DataLog!$C642=\"Log value\",DataLog!N642,\"\")","v":""},{"$f":"IF(DataLog!$C642=\"Log value\",DataLog!O642,\"\")","v":""},{"$f":"IF(DataLog!$C642=\"Log value\",DataLog!P642,\"\")","v":""},{"$f":"IF(DataLog!$C642=\"Log value\",DataLog!Q642,\"\")","v":""},{"$f":"IF(DataLog!$C642=\"Log value\",DataLog!R642,\"\")","v":""},{"$f":"IF(DataLog!$C642=\"Log value\",DataLog!S642,\"\")","v":""},{"$f":"IF(DataLog!$C642=\"Log value\",DataLog!T642,\"\")","v":""},{"$f":"IF(DataLog!$C642=\"Log value\",DataLog!U642,\"\")","v":""},{"$f":"IF(DataLog!$C642=\"Log value\",DataLog!V642,\"\")","v":""},{"$f":"IF(DataLog!$C642=\"Log value\",DataLog!W642,\"\")","v":""},{"$f":"IF(DataLog!$C642=\"Log value\",DataLog!X642,\"\")","v":""},{"$f":"IF(DataLog!$C642=\"Log value\",DataLog!Y642,\"\")","v":""},{"$f":"IF(DataLog!$C642=\"Log value\",DataLog!Z642,\"\")","v":""},{"$f":"IF(DataLog!$C642=\"Log value\",DataLog!AA642,\"\")","v":""},{"$f":"IF(DataLog!$C642=\"Log value\",DataLog!AB642,\"\")","v":""},{"$f":"IF(DataLog!$C642=\"Log value\",DataLog!AC642,\"\")","v":""},{"$f":"IF(DataLog!$C642=\"Log value\",DataLog!AD642,\"\")","v":""},{"$f":"IF(DataLog!$C642=\"Log value\",DataLog!AE642,\"\")","v":""},{"$f":"IF(DataLog!$C642=\"Log value\",DataLog!AF642,\"\")","v":""},{"$f":"IF(DataLog!$C642=\"Log value\",DataLog!AG642,\"\")","v":""},{"$f":"IF(DataLog!$C642=\"Log value\",DataLog!AH642,\"\")","v":""},{"$f":"IF(DataLog!$C642=\"Log value\",DataLog!AI642,\"\")","v":""},{"$f":"IF(DataLog!$C642=\"Log value\",DataLog!AJ642,\"\")","v":""},{"$f":"IF(DataLog!$C642=\"Log value\",DataLog!AK642,\"\")","v":""},{"$f":"IF(DataLog!$C642=\"Log value\",DataLog!AL642,\"\")","v":""},{"$f":"IF(DataLog!$C642=\"Log value\",DataLog!AM642,\"\")","v":""}]
[null,null,null,null,null,null,{"$f":"IF(DataLog!$C643=\"Log value\",DataLog!D643&\"_\"&TEXT(DataLog!B643,\"åååå-mm-dd\"),\"\")","v":""},{"$f":"IF(DataLog!$C643=\"Log value\",DataLog!E643,\"\")","v":""},{"$f":"IF(DataLog!$C643=\"Log value\",DataLog!F643,\"\")","v":""},{"$f":"IF(DataLog!$C643=\"Log value\",DataLog!G643,\"\")","v":""},{"$f":"IF(DataLog!$C643=\"Log value\",DataLog!H643,\"\")","v":""},{"$f":"IF(DataLog!$C643=\"Log value\",DataLog!I643,\"\")","v":""},{"$f":"IF(DataLog!$C643=\"Log value\",DataLog!J643,\"\")","v":""},{"$f":"IF(DataLog!$C643=\"Log value\",DataLog!K643,\"\")","v":""},{"$f":"IF(DataLog!$C643=\"Log value\",DataLog!L643,\"\")","v":""},{"$f":"IF(DataLog!$C643=\"Log value\",DataLog!M643,\"\")","v":""},{"$f":"IF(DataLog!$C643=\"Log value\",DataLog!N643,\"\")","v":""},{"$f":"IF(DataLog!$C643=\"Log value\",DataLog!O643,\"\")","v":""},{"$f":"IF(DataLog!$C643=\"Log value\",DataLog!P643,\"\")","v":""},{"$f":"IF(DataLog!$C643=\"Log value\",DataLog!Q643,\"\")","v":""},{"$f":"IF(DataLog!$C643=\"Log value\",DataLog!R643,\"\")","v":""},{"$f":"IF(DataLog!$C643=\"Log value\",DataLog!S643,\"\")","v":""},{"$f":"IF(DataLog!$C643=\"Log value\",DataLog!T643,\"\")","v":""},{"$f":"IF(DataLog!$C643=\"Log value\",DataLog!U643,\"\")","v":""},{"$f":"IF(DataLog!$C643=\"Log value\",DataLog!V643,\"\")","v":""},{"$f":"IF(DataLog!$C643=\"Log value\",DataLog!W643,\"\")","v":""},{"$f":"IF(DataLog!$C643=\"Log value\",DataLog!X643,\"\")","v":""},{"$f":"IF(DataLog!$C643=\"Log value\",DataLog!Y643,\"\")","v":""},{"$f":"IF(DataLog!$C643=\"Log value\",DataLog!Z643,\"\")","v":""},{"$f":"IF(DataLog!$C643=\"Log value\",DataLog!AA643,\"\")","v":""},{"$f":"IF(DataLog!$C643=\"Log value\",DataLog!AB643,\"\")","v":""},{"$f":"IF(DataLog!$C643=\"Log value\",DataLog!AC643,\"\")","v":""},{"$f":"IF(DataLog!$C643=\"Log value\",DataLog!AD643,\"\")","v":""},{"$f":"IF(DataLog!$C643=\"Log value\",DataLog!AE643,\"\")","v":""},{"$f":"IF(DataLog!$C643=\"Log value\",DataLog!AF643,\"\")","v":""},{"$f":"IF(DataLog!$C643=\"Log value\",DataLog!AG643,\"\")","v":""},{"$f":"IF(DataLog!$C643=\"Log value\",DataLog!AH643,\"\")","v":""},{"$f":"IF(DataLog!$C643=\"Log value\",DataLog!AI643,\"\")","v":""},{"$f":"IF(DataLog!$C643=\"Log value\",DataLog!AJ643,\"\")","v":""},{"$f":"IF(DataLog!$C643=\"Log value\",DataLog!AK643,\"\")","v":""},{"$f":"IF(DataLog!$C643=\"Log value\",DataLog!AL643,\"\")","v":""},{"$f":"IF(DataLog!$C643=\"Log value\",DataLog!AM643,\"\")","v":""}]
[null,null,null,null,null,null,{"$f":"IF(DataLog!$C644=\"Log value\",DataLog!D644&\"_\"&TEXT(DataLog!B644,\"åååå-mm-dd\"),\"\")","v":""},{"$f":"IF(DataLog!$C644=\"Log value\",DataLog!E644,\"\")","v":""},{"$f":"IF(DataLog!$C644=\"Log value\",DataLog!F644,\"\")","v":""},{"$f":"IF(DataLog!$C644=\"Log value\",DataLog!G644,\"\")","v":""},{"$f":"IF(DataLog!$C644=\"Log value\",DataLog!H644,\"\")","v":""},{"$f":"IF(DataLog!$C644=\"Log value\",DataLog!I644,\"\")","v":""},{"$f":"IF(DataLog!$C644=\"Log value\",DataLog!J644,\"\")","v":""},{"$f":"IF(DataLog!$C644=\"Log value\",DataLog!K644,\"\")","v":""},{"$f":"IF(DataLog!$C644=\"Log value\",DataLog!L644,\"\")","v":""},{"$f":"IF(DataLog!$C644=\"Log value\",DataLog!M644,\"\")","v":""},{"$f":"IF(DataLog!$C644=\"Log value\",DataLog!N644,\"\")","v":""},{"$f":"IF(DataLog!$C644=\"Log value\",DataLog!O644,\"\")","v":""},{"$f":"IF(DataLog!$C644=\"Log value\",DataLog!P644,\"\")","v":""},{"$f":"IF(DataLog!$C644=\"Log value\",DataLog!Q644,\"\")","v":""},{"$f":"IF(DataLog!$C644=\"Log value\",DataLog!R644,\"\")","v":""},{"$f":"IF(DataLog!$C644=\"Log value\",DataLog!S644,\"\")","v":""},{"$f":"IF(DataLog!$C644=\"Log value\",DataLog!T644,\"\")","v":""},{"$f":"IF(DataLog!$C644=\"Log value\",DataLog!U644,\"\")","v":""},{"$f":"IF(DataLog!$C644=\"Log value\",DataLog!V644,\"\")","v":""},{"$f":"IF(DataLog!$C644=\"Log value\",DataLog!W644,\"\")","v":""},{"$f":"IF(DataLog!$C644=\"Log value\",DataLog!X644,\"\")","v":""},{"$f":"IF(DataLog!$C644=\"Log value\",DataLog!Y644,\"\")","v":""},{"$f":"IF(DataLog!$C644=\"Log value\",DataLog!Z644,\"\")","v":""},{"$f":"IF(DataLog!$C644=\"Log value\",DataLog!AA644,\"\")","v":""},{"$f":"IF(DataLog!$C644=\"Log value\",DataLog!AB644,\"\")","v":""},{"$f":"IF(DataLog!$C644=\"Log value\",DataLog!AC644,\"\")","v":""},{"$f":"IF(DataLog!$C644=\"Log value\",DataLog!AD644,\"\")","v":""},{"$f":"IF(DataLog!$C644=\"Log value\",DataLog!AE644,\"\")","v":""},{"$f":"IF(DataLog!$C644=\"Log value\",DataLog!AF644,\"\")","v":""},{"$f":"IF(DataLog!$C644=\"Log value\",DataLog!AG644,\"\")","v":""},{"$f":"IF(DataLog!$C644=\"Log value\",DataLog!AH644,\"\")","v":""},{"$f":"IF(DataLog!$C644=\"Log value\",DataLog!AI644,\"\")","v":""},{"$f":"IF(DataLog!$C644=\"Log value\",DataLog!AJ644,\"\")","v":""},{"$f":"IF(DataLog!$C644=\"Log value\",DataLog!AK644,\"\")","v":""},{"$f":"IF(DataLog!$C644=\"Log value\",DataLog!AL644,\"\")","v":""},{"$f":"IF(DataLog!$C644=\"Log value\",DataLog!AM644,\"\")","v":""}]
[null,null,null,null,null,null,{"$f":"IF(DataLog!$C645=\"Log value\",DataLog!D645&\"_\"&TEXT(DataLog!B645,\"åååå-mm-dd\"),\"\")","v":""},{"$f":"IF(DataLog!$C645=\"Log value\",DataLog!E645,\"\")","v":""},{"$f":"IF(DataLog!$C645=\"Log value\",DataLog!F645,\"\")","v":""},{"$f":"IF(DataLog!$C645=\"Log value\",DataLog!G645,\"\")","v":""},{"$f":"IF(DataLog!$C645=\"Log value\",DataLog!H645,\"\")","v":""},{"$f":"IF(DataLog!$C645=\"Log value\",DataLog!I645,\"\")","v":""},{"$f":"IF(DataLog!$C645=\"Log value\",DataLog!J645,\"\")","v":""},{"$f":"IF(DataLog!$C645=\"Log value\",DataLog!K645,\"\")","v":""},{"$f":"IF(DataLog!$C645=\"Log value\",DataLog!L645,\"\")","v":""},{"$f":"IF(DataLog!$C645=\"Log value\",DataLog!M645,\"\")","v":""},{"$f":"IF(DataLog!$C645=\"Log value\",DataLog!N645,\"\")","v":""},{"$f":"IF(DataLog!$C645=\"Log value\",DataLog!O645,\"\")","v":""},{"$f":"IF(DataLog!$C645=\"Log value\",DataLog!P645,\"\")","v":""},{"$f":"IF(DataLog!$C645=\"Log value\",DataLog!Q645,\"\")","v":""},{"$f":"IF(DataLog!$C645=\"Log value\",DataLog!R645,\"\")","v":""},{"$f":"IF(DataLog!$C645=\"Log value\",DataLog!S645,\"\")","v":""},{"$f":"IF(DataLog!$C645=\"Log value\",DataLog!T645,\"\")","v":""},{"$f":"IF(DataLog!$C645=\"Log value\",DataLog!U645,\"\")","v":""},{"$f":"IF(DataLog!$C645=\"Log value\",DataLog!V645,\"\")","v":""},{"$f":"IF(DataLog!$C645=\"Log value\",DataLog!W645,\"\")","v":""},{"$f":"IF(DataLog!$C645=\"Log value\",DataLog!X645,\"\")","v":""},{"$f":"IF(DataLog!$C645=\"Log value\",DataLog!Y645,\"\")","v":""},{"$f":"IF(DataLog!$C645=\"Log value\",DataLog!Z645,\"\")","v":""},{"$f":"IF(DataLog!$C645=\"Log value\",DataLog!AA645,\"\")","v":""},{"$f":"IF(DataLog!$C645=\"Log value\",DataLog!AB645,\"\")","v":""},{"$f":"IF(DataLog!$C645=\"Log value\",DataLog!AC645,\"\")","v":""},{"$f":"IF(DataLog!$C645=\"Log value\",DataLog!AD645,\"\")","v":""},{"$f":"IF(DataLog!$C645=\"Log value\",DataLog!AE645,\"\")","v":""},{"$f":"IF(DataLog!$C645=\"Log value\",DataLog!AF645,\"\")","v":""},{"$f":"IF(DataLog!$C645=\"Log value\",DataLog!AG645,\"\")","v":""},{"$f":"IF(DataLog!$C645=\"Log value\",DataLog!AH645,\"\")","v":""},{"$f":"IF(DataLog!$C645=\"Log value\",DataLog!AI645,\"\")","v":""},{"$f":"IF(DataLog!$C645=\"Log value\",DataLog!AJ645,\"\")","v":""},{"$f":"IF(DataLog!$C645=\"Log value\",DataLog!AK645,\"\")","v":""},{"$f":"IF(DataLog!$C645=\"Log value\",DataLog!AL645,\"\")","v":""},{"$f":"IF(DataLog!$C645=\"Log value\",DataLog!AM645,\"\")","v":""}]
[null,null,null,null,null,null,{"$f":"IF(DataLog!$C646=\"Log value\",DataLog!D646&\"_\"&TEXT(DataLog!B646,\"åååå-mm-dd\"),\"\")","v":""},{"$f":"IF(DataLog!$C646=\"Log value\",DataLog!E646,\"\")","v":""},{"$f":"IF(DataLog!$C646=\"Log value\",DataLog!F646,\"\")","v":""},{"$f":"IF(DataLog!$C646=\"Log value\",DataLog!G646,\"\")","v":""},{"$f":"IF(DataLog!$C646=\"Log value\",DataLog!H646,\"\")","v":""},{"$f":"IF(DataLog!$C646=\"Log value\",DataLog!I646,\"\")","v":""},{"$f":"IF(DataLog!$C646=\"Log value\",DataLog!J646,\"\")","v":""},{"$f":"IF(DataLog!$C646=\"Log value\",DataLog!K646,\"\")","v":""},{"$f":"IF(DataLog!$C646=\"Log value\",DataLog!L646,\"\")","v":""},{"$f":"IF(DataLog!$C646=\"Log value\",DataLog!M646,\"\")","v":""},{"$f":"IF(DataLog!$C646=\"Log value\",DataLog!N646,\"\")","v":""},{"$f":"IF(DataLog!$C646=\"Log value\",DataLog!O646,\"\")","v":""},{"$f":"IF(DataLog!$C646=\"Log value\",DataLog!P646,\"\")","v":""},{"$f":"IF(DataLog!$C646=\"Log value\",DataLog!Q646,\"\")","v":""},{"$f":"IF(DataLog!$C646=\"Log value\",DataLog!R646,\"\")","v":""},{"$f":"IF(DataLog!$C646=\"Log value\",DataLog!S646,\"\")","v":""},{"$f":"IF(DataLog!$C646=\"Log value\",DataLog!T646,\"\")","v":""},{"$f":"IF(DataLog!$C646=\"Log value\",DataLog!U646,\"\")","v":""},{"$f":"IF(DataLog!$C646=\"Log value\",DataLog!V646,\"\")","v":""},{"$f":"IF(DataLog!$C646=\"Log value\",DataLog!W646,\"\")","v":""},{"$f":"IF(DataLog!$C646=\"Log value\",DataLog!X646,\"\")","v":""},{"$f":"IF(DataLog!$C646=\"Log value\",DataLog!Y646,\"\")","v":""},{"$f":"IF(DataLog!$C646=\"Log value\",DataLog!Z646,\"\")","v":""},{"$f":"IF(DataLog!$C646=\"Log value\",DataLog!AA646,\"\")","v":""},{"$f":"IF(DataLog!$C646=\"Log value\",DataLog!AB646,\"\")","v":""},{"$f":"IF(DataLog!$C646=\"Log value\",DataLog!AC646,\"\")","v":""},{"$f":"IF(DataLog!$C646=\"Log value\",DataLog!AD646,\"\")","v":""},{"$f":"IF(DataLog!$C646=\"Log value\",DataLog!AE646,\"\")","v":""},{"$f":"IF(DataLog!$C646=\"Log value\",DataLog!AF646,\"\")","v":""},{"$f":"IF(DataLog!$C646=\"Log value\",DataLog!AG646,\"\")","v":""},{"$f":"IF(DataLog!$C646=\"Log value\",DataLog!AH646,\"\")","v":""},{"$f":"IF(DataLog!$C646=\"Log value\",DataLog!AI646,\"\")","v":""},{"$f":"IF(DataLog!$C646=\"Log value\",DataLog!AJ646,\"\")","v":""},{"$f":"IF(DataLog!$C646=\"Log value\",DataLog!AK646,\"\")","v":""},{"$f":"IF(DataLog!$C646=\"Log value\",DataLog!AL646,\"\")","v":""},{"$f":"IF(DataLog!$C646=\"Log value\",DataLog!AM646,\"\")","v":""}]
[null,null,null,null,null,null,{"$f":"IF(DataLog!$C647=\"Log value\",DataLog!D647&\"_\"&TEXT(DataLog!B647,\"åååå-mm-dd\"),\"\")","v":""},{"$f":"IF(DataLog!$C647=\"Log value\",DataLog!E647,\"\")","v":""},{"$f":"IF(DataLog!$C647=\"Log value\",DataLog!F647,\"\")","v":""},{"$f":"IF(DataLog!$C647=\"Log value\",DataLog!G647,\"\")","v":""},{"$f":"IF(DataLog!$C647=\"Log value\",DataLog!H647,\"\")","v":""},{"$f":"IF(DataLog!$C647=\"Log value\",DataLog!I647,\"\")","v":""},{"$f":"IF(DataLog!$C647=\"Log value\",DataLog!J647,\"\")","v":""},{"$f":"IF(DataLog!$C647=\"Log value\",DataLog!K647,\"\")","v":""},{"$f":"IF(DataLog!$C647=\"Log value\",DataLog!L647,\"\")","v":""},{"$f":"IF(DataLog!$C647=\"Log value\",DataLog!M647,\"\")","v":""},{"$f":"IF(DataLog!$C647=\"Log value\",DataLog!N647,\"\")","v":""},{"$f":"IF(DataLog!$C647=\"Log value\",DataLog!O647,\"\")","v":""},{"$f":"IF(DataLog!$C647=\"Log value\",DataLog!P647,\"\")","v":""},{"$f":"IF(DataLog!$C647=\"Log value\",DataLog!Q647,\"\")","v":""},{"$f":"IF(DataLog!$C647=\"Log value\",DataLog!R647,\"\")","v":""},{"$f":"IF(DataLog!$C647=\"Log value\",DataLog!S647,\"\")","v":""},{"$f":"IF(DataLog!$C647=\"Log value\",DataLog!T647,\"\")","v":""},{"$f":"IF(DataLog!$C647=\"Log value\",DataLog!U647,\"\")","v":""},{"$f":"IF(DataLog!$C647=\"Log value\",DataLog!V647,\"\")","v":""},{"$f":"IF(DataLog!$C647=\"Log value\",DataLog!W647,\"\")","v":""},{"$f":"IF(DataLog!$C647=\"Log value\",DataLog!X647,\"\")","v":""},{"$f":"IF(DataLog!$C647=\"Log value\",DataLog!Y647,\"\")","v":""},{"$f":"IF(DataLog!$C647=\"Log value\",DataLog!Z647,\"\")","v":""},{"$f":"IF(DataLog!$C647=\"Log value\",DataLog!AA647,\"\")","v":""},{"$f":"IF(DataLog!$C647=\"Log value\",DataLog!AB647,\"\")","v":""},{"$f":"IF(DataLog!$C647=\"Log value\",DataLog!AC647,\"\")","v":""},{"$f":"IF(DataLog!$C647=\"Log value\",DataLog!AD647,\"\")","v":""},{"$f":"IF(DataLog!$C647=\"Log value\",DataLog!AE647,\"\")","v":""},{"$f":"IF(DataLog!$C647=\"Log value\",DataLog!AF647,\"\")","v":""},{"$f":"IF(DataLog!$C647=\"Log value\",DataLog!AG647,\"\")","v":""},{"$f":"IF(DataLog!$C647=\"Log value\",DataLog!AH647,\"\")","v":""},{"$f":"IF(DataLog!$C647=\"Log value\",DataLog!AI647,\"\")","v":""},{"$f":"IF(DataLog!$C647=\"Log value\",DataLog!AJ647,\"\")","v":""},{"$f":"IF(DataLog!$C647=\"Log value\",DataLog!AK647,\"\")","v":""},{"$f":"IF(DataLog!$C647=\"Log value\",DataLog!AL647,\"\")","v":""},{"$f":"IF(DataLog!$C647=\"Log value\",DataLog!AM647,\"\")","v":""}]
[null,null,null,null,null,null,{"$f":"IF(DataLog!$C648=\"Log value\",DataLog!D648&\"_\"&TEXT(DataLog!B648,\"åååå-mm-dd\"),\"\")","v":""},{"$f":"IF(DataLog!$C648=\"Log value\",DataLog!E648,\"\")","v":""},{"$f":"IF(DataLog!$C648=\"Log value\",DataLog!F648,\"\")","v":""},{"$f":"IF(DataLog!$C648=\"Log value\",DataLog!G648,\"\")","v":""},{"$f":"IF(DataLog!$C648=\"Log value\",DataLog!H648,\"\")","v":""},{"$f":"IF(DataLog!$C648=\"Log value\",DataLog!I648,\"\")","v":""},{"$f":"IF(DataLog!$C648=\"Log value\",DataLog!J648,\"\")","v":""},{"$f":"IF(DataLog!$C648=\"Log value\",DataLog!K648,\"\")","v":""},{"$f":"IF(DataLog!$C648=\"Log value\",DataLog!L648,\"\")","v":""},{"$f":"IF(DataLog!$C648=\"Log value\",DataLog!M648,\"\")","v":""},{"$f":"IF(DataLog!$C648=\"Log value\",DataLog!N648,\"\")","v":""},{"$f":"IF(DataLog!$C648=\"Log value\",DataLog!O648,\"\")","v":""},{"$f":"IF(DataLog!$C648=\"Log value\",DataLog!P648,\"\")","v":""},{"$f":"IF(DataLog!$C648=\"Log value\",DataLog!Q648,\"\")","v":""},{"$f":"IF(DataLog!$C648=\"Log value\",DataLog!R648,\"\")","v":""},{"$f":"IF(DataLog!$C648=\"Log value\",DataLog!S648,\"\")","v":""},{"$f":"IF(DataLog!$C648=\"Log value\",DataLog!T648,\"\")","v":""},{"$f":"IF(DataLog!$C648=\"Log value\",DataLog!U648,\"\")","v":""},{"$f":"IF(DataLog!$C648=\"Log value\",DataLog!V648,\"\")","v":""},{"$f":"IF(DataLog!$C648=\"Log value\",DataLog!W648,\"\")","v":""},{"$f":"IF(DataLog!$C648=\"Log value\",DataLog!X648,\"\")","v":""},{"$f":"IF(DataLog!$C648=\"Log value\",DataLog!Y648,\"\")","v":""},{"$f":"IF(DataLog!$C648=\"Log value\",DataLog!Z648,\"\")","v":""},{"$f":"IF(DataLog!$C648=\"Log value\",DataLog!AA648,\"\")","v":""},{"$f":"IF(DataLog!$C648=\"Log value\",DataLog!AB648,\"\")","v":""},{"$f":"IF(DataLog!$C648=\"Log value\",DataLog!AC648,\"\")","v":""},{"$f":"IF(DataLog!$C648=\"Log value\",DataLog!AD648,\"\")","v":""},{"$f":"IF(DataLog!$C648=\"Log value\",DataLog!AE648,\"\")","v":""},{"$f":"IF(DataLog!$C648=\"Log value\",DataLog!AF648,\"\")","v":""},{"$f":"IF(DataLog!$C648=\"Log value\",DataLog!AG648,\"\")","v":""},{"$f":"IF(DataLog!$C648=\"Log value\",DataLog!AH648,\"\")","v":""},{"$f":"IF(DataLog!$C648=\"Log value\",DataLog!AI648,\"\")","v":""},{"$f":"IF(DataLog!$C648=\"Log value\",DataLog!AJ648,\"\")","v":""},{"$f":"IF(DataLog!$C648=\"Log value\",DataLog!AK648,\"\")","v":""},{"$f":"IF(DataLog!$C648=\"Log value\",DataLog!AL648,\"\")","v":""},{"$f":"IF(DataLog!$C648=\"Log value\",DataLog!AM648,\"\")","v":""}]
[null,null,null,null,null,null,{"$f":"IF(DataLog!$C649=\"Log value\",DataLog!D649&\"_\"&TEXT(DataLog!B649,\"åååå-mm-dd\"),\"\")","v":""},{"$f":"IF(DataLog!$C649=\"Log value\",DataLog!E649,\"\")","v":""},{"$f":"IF(DataLog!$C649=\"Log value\",DataLog!F649,\"\")","v":""},{"$f":"IF(DataLog!$C649=\"Log value\",DataLog!G649,\"\")","v":""},{"$f":"IF(DataLog!$C649=\"Log value\",DataLog!H649,\"\")","v":""},{"$f":"IF(DataLog!$C649=\"Log value\",DataLog!I649,\"\")","v":""},{"$f":"IF(DataLog!$C649=\"Log value\",DataLog!J649,\"\")","v":""},{"$f":"IF(DataLog!$C649=\"Log value\",DataLog!K649,\"\")","v":""},{"$f":"IF(DataLog!$C649=\"Log value\",DataLog!L649,\"\")","v":""},{"$f":"IF(DataLog!$C649=\"Log value\",DataLog!M649,\"\")","v":""},{"$f":"IF(DataLog!$C649=\"Log value\",DataLog!N649,\"\")","v":""},{"$f":"IF(DataLog!$C649=\"Log value\",DataLog!O649,\"\")","v":""},{"$f":"IF(DataLog!$C649=\"Log value\",DataLog!P649,\"\")","v":""},{"$f":"IF(DataLog!$C649=\"Log value\",DataLog!Q649,\"\")","v":""},{"$f":"IF(DataLog!$C649=\"Log value\",DataLog!R649,\"\")","v":""},{"$f":"IF(DataLog!$C649=\"Log value\",DataLog!S649,\"\")","v":""},{"$f":"IF(DataLog!$C649=\"Log value\",DataLog!T649,\"\")","v":""},{"$f":"IF(DataLog!$C649=\"Log value\",DataLog!U649,\"\")","v":""},{"$f":"IF(DataLog!$C649=\"Log value\",DataLog!V649,\"\")","v":""},{"$f":"IF(DataLog!$C649=\"Log value\",DataLog!W649,\"\")","v":""},{"$f":"IF(DataLog!$C649=\"Log value\",DataLog!X649,\"\")","v":""},{"$f":"IF(DataLog!$C649=\"Log value\",DataLog!Y649,\"\")","v":""},{"$f":"IF(DataLog!$C649=\"Log value\",DataLog!Z649,\"\")","v":""},{"$f":"IF(DataLog!$C649=\"Log value\",DataLog!AA649,\"\")","v":""},{"$f":"IF(DataLog!$C649=\"Log value\",DataLog!AB649,\"\")","v":""},{"$f":"IF(DataLog!$C649=\"Log value\",DataLog!AC649,\"\")","v":""},{"$f":"IF(DataLog!$C649=\"Log value\",DataLog!AD649,\"\")","v":""},{"$f":"IF(DataLog!$C649=\"Log value\",DataLog!AE649,\"\")","v":""},{"$f":"IF(DataLog!$C649=\"Log value\",DataLog!AF649,\"\")","v":""},{"$f":"IF(DataLog!$C649=\"Log value\",DataLog!AG649,\"\")","v":""},{"$f":"IF(DataLog!$C649=\"Log value\",DataLog!AH649,\"\")","v":""},{"$f":"IF(DataLog!$C649=\"Log value\",DataLog!AI649,\"\")","v":""},{"$f":"IF(DataLog!$C649=\"Log value\",DataLog!AJ649,\"\")","v":""},{"$f":"IF(DataLog!$C649=\"Log value\",DataLog!AK649,\"\")","v":""},{"$f":"IF(DataLog!$C649=\"Log value\",DataLog!AL649,\"\")","v":""},{"$f":"IF(DataLog!$C649=\"Log value\",DataLog!AM649,\"\")","v":""}]
[null,null,null,null,null,null,{"$f":"IF(DataLog!$C650=\"Log value\",DataLog!D650&\"_\"&TEXT(DataLog!B650,\"åååå-mm-dd\"),\"\")","v":""},{"$f":"IF(DataLog!$C650=\"Log value\",DataLog!E650,\"\")","v":""},{"$f":"IF(DataLog!$C650=\"Log value\",DataLog!F650,\"\")","v":""},{"$f":"IF(DataLog!$C650=\"Log value\",DataLog!G650,\"\")","v":""},{"$f":"IF(DataLog!$C650=\"Log value\",DataLog!H650,\"\")","v":""},{"$f":"IF(DataLog!$C650=\"Log value\",DataLog!I650,\"\")","v":""},{"$f":"IF(DataLog!$C650=\"Log value\",DataLog!J650,\"\")","v":""},{"$f":"IF(DataLog!$C650=\"Log value\",DataLog!K650,\"\")","v":""},{"$f":"IF(DataLog!$C650=\"Log value\",DataLog!L650,\"\")","v":""},{"$f":"IF(DataLog!$C650=\"Log value\",DataLog!M650,\"\")","v":""},{"$f":"IF(DataLog!$C650=\"Log value\",DataLog!N650,\"\")","v":""},{"$f":"IF(DataLog!$C650=\"Log value\",DataLog!O650,\"\")","v":""},{"$f":"IF(DataLog!$C650=\"Log value\",DataLog!P650,\"\")","v":""},{"$f":"IF(DataLog!$C650=\"Log value\",DataLog!Q650,\"\")","v":""},{"$f":"IF(DataLog!$C650=\"Log value\",DataLog!R650,\"\")","v":""},{"$f":"IF(DataLog!$C650=\"Log value\",DataLog!S650,\"\")","v":""},{"$f":"IF(DataLog!$C650=\"Log value\",DataLog!T650,\"\")","v":""},{"$f":"IF(DataLog!$C650=\"Log value\",DataLog!U650,\"\")","v":""},{"$f":"IF(DataLog!$C650=\"Log value\",DataLog!V650,\"\")","v":""},{"$f":"IF(DataLog!$C650=\"Log value\",DataLog!W650,\"\")","v":""},{"$f":"IF(DataLog!$C650=\"Log value\",DataLog!X650,\"\")","v":""},{"$f":"IF(DataLog!$C650=\"Log value\",DataLog!Y650,\"\")","v":""},{"$f":"IF(DataLog!$C650=\"Log value\",DataLog!Z650,\"\")","v":""},{"$f":"IF(DataLog!$C650=\"Log value\",DataLog!AA650,\"\")","v":""},{"$f":"IF(DataLog!$C650=\"Log value\",DataLog!AB650,\"\")","v":""},{"$f":"IF(DataLog!$C650=\"Log value\",DataLog!AC650,\"\")","v":""},{"$f":"IF(DataLog!$C650=\"Log value\",DataLog!AD650,\"\")","v":""},{"$f":"IF(DataLog!$C650=\"Log value\",DataLog!AE650,\"\")","v":""},{"$f":"IF(DataLog!$C650=\"Log value\",DataLog!AF650,\"\")","v":""},{"$f":"IF(DataLog!$C650=\"Log value\",DataLog!AG650,\"\")","v":""},{"$f":"IF(DataLog!$C650=\"Log value\",DataLog!AH650,\"\")","v":""},{"$f":"IF(DataLog!$C650=\"Log value\",DataLog!AI650,\"\")","v":""},{"$f":"IF(DataLog!$C650=\"Log value\",DataLog!AJ650,\"\")","v":""},{"$f":"IF(DataLog!$C650=\"Log value\",DataLog!AK650,\"\")","v":""},{"$f":"IF(DataLog!$C650=\"Log value\",DataLog!AL650,\"\")","v":""},{"$f":"IF(DataLog!$C650=\"Log value\",DataLog!AM650,\"\")","v":""}]
[null,null,null,null,null,null,{"$f":"IF(DataLog!$C651=\"Log value\",DataLog!D651&\"_\"&TEXT(DataLog!B651,\"åååå-mm-dd\"),\"\")","v":""},{"$f":"IF(DataLog!$C651=\"Log value\",DataLog!E651,\"\")","v":""},{"$f":"IF(DataLog!$C651=\"Log value\",DataLog!F651,\"\")","v":""},{"$f":"IF(DataLog!$C651=\"Log value\",DataLog!G651,\"\")","v":""},{"$f":"IF(DataLog!$C651=\"Log value\",DataLog!H651,\"\")","v":""},{"$f":"IF(DataLog!$C651=\"Log value\",DataLog!I651,\"\")","v":""},{"$f":"IF(DataLog!$C651=\"Log value\",DataLog!J651,\"\")","v":""},{"$f":"IF(DataLog!$C651=\"Log value\",DataLog!K651,\"\")","v":""},{"$f":"IF(DataLog!$C651=\"Log value\",DataLog!L651,\"\")","v":""},{"$f":"IF(DataLog!$C651=\"Log value\",DataLog!M651,\"\")","v":""},{"$f":"IF(DataLog!$C651=\"Log value\",DataLog!N651,\"\")","v":""},{"$f":"IF(DataLog!$C651=\"Log value\",DataLog!O651,\"\")","v":""},{"$f":"IF(DataLog!$C651=\"Log value\",DataLog!P651,\"\")","v":""},{"$f":"IF(DataLog!$C651=\"Log value\",DataLog!Q651,\"\")","v":""},{"$f":"IF(DataLog!$C651=\"Log value\",DataLog!R651,\"\")","v":""},{"$f":"IF(DataLog!$C651=\"Log value\",DataLog!S651,\"\")","v":""},{"$f":"IF(DataLog!$C651=\"Log value\",DataLog!T651,\"\")","v":""},{"$f":"IF(DataLog!$C651=\"Log value\",DataLog!U651,\"\")","v":""},{"$f":"IF(DataLog!$C651=\"Log value\",DataLog!V651,\"\")","v":""},{"$f":"IF(DataLog!$C651=\"Log value\",DataLog!W651,\"\")","v":""},{"$f":"IF(DataLog!$C651=\"Log value\",DataLog!X651,\"\")","v":""},{"$f":"IF(DataLog!$C651=\"Log value\",DataLog!Y651,\"\")","v":""},{"$f":"IF(DataLog!$C651=\"Log value\",DataLog!Z651,\"\")","v":""},{"$f":"IF(DataLog!$C651=\"Log value\",DataLog!AA651,\"\")","v":""},{"$f":"IF(DataLog!$C651=\"Log value\",DataLog!AB651,\"\")","v":""},{"$f":"IF(DataLog!$C651=\"Log value\",DataLog!AC651,\"\")","v":""},{"$f":"IF(DataLog!$C651=\"Log value\",DataLog!AD651,\"\")","v":""},{"$f":"IF(DataLog!$C651=\"Log value\",DataLog!AE651,\"\")","v":""},{"$f":"IF(DataLog!$C651=\"Log value\",DataLog!AF651,\"\")","v":""},{"$f":"IF(DataLog!$C651=\"Log value\",DataLog!AG651,\"\")","v":""},{"$f":"IF(DataLog!$C651=\"Log value\",DataLog!AH651,\"\")","v":""},{"$f":"IF(DataLog!$C651=\"Log value\",DataLog!AI651,\"\")","v":""},{"$f":"IF(DataLog!$C651=\"Log value\",DataLog!AJ651,\"\")","v":""},{"$f":"IF(DataLog!$C651=\"Log value\",DataLog!AK651,\"\")","v":""},{"$f":"IF(DataLog!$C651=\"Log value\",DataLog!AL651,\"\")","v":""},{"$f":"IF(DataLog!$C651=\"Log value\",DataLog!AM651,\"\")","v":""}]
[null,null,null,null,null,null,{"$f":"IF(DataLog!$C652=\"Log value\",DataLog!D652&\"_\"&TEXT(DataLog!B652,\"åååå-mm-dd\"),\"\")","v":""},{"$f":"IF(DataLog!$C652=\"Log value\",DataLog!E652,\"\")","v":""},{"$f":"IF(DataLog!$C652=\"Log value\",DataLog!F652,\"\")","v":""},{"$f":"IF(DataLog!$C652=\"Log value\",DataLog!G652,\"\")","v":""},{"$f":"IF(DataLog!$C652=\"Log value\",DataLog!H652,\"\")","v":""},{"$f":"IF(DataLog!$C652=\"Log value\",DataLog!I652,\"\")","v":""},{"$f":"IF(DataLog!$C652=\"Log value\",DataLog!J652,\"\")","v":""},{"$f":"IF(DataLog!$C652=\"Log value\",DataLog!K652,\"\")","v":""},{"$f":"IF(DataLog!$C652=\"Log value\",DataLog!L652,\"\")","v":""},{"$f":"IF(DataLog!$C652=\"Log value\",DataLog!M652,\"\")","v":""},{"$f":"IF(DataLog!$C652=\"Log value\",DataLog!N652,\"\")","v":""},{"$f":"IF(DataLog!$C652=\"Log value\",DataLog!O652,\"\")","v":""},{"$f":"IF(DataLog!$C652=\"Log value\",DataLog!P652,\"\")","v":""},{"$f":"IF(DataLog!$C652=\"Log value\",DataLog!Q652,\"\")","v":""},{"$f":"IF(DataLog!$C652=\"Log value\",DataLog!R652,\"\")","v":""},{"$f":"IF(DataLog!$C652=\"Log value\",DataLog!S652,\"\")","v":""},{"$f":"IF(DataLog!$C652=\"Log value\",DataLog!T652,\"\")","v":""},{"$f":"IF(DataLog!$C652=\"Log value\",DataLog!U652,\"\")","v":""},{"$f":"IF(DataLog!$C652=\"Log value\",DataLog!V652,\"\")","v":""},{"$f":"IF(DataLog!$C652=\"Log value\",DataLog!W652,\"\")","v":""},{"$f":"IF(DataLog!$C652=\"Log value\",DataLog!X652,\"\")","v":""},{"$f":"IF(DataLog!$C652=\"Log value\",DataLog!Y652,\"\")","v":""},{"$f":"IF(DataLog!$C652=\"Log value\",DataLog!Z652,\"\")","v":""},{"$f":"IF(DataLog!$C652=\"Log value\",DataLog!AA652,\"\")","v":""},{"$f":"IF(DataLog!$C652=\"Log value\",DataLog!AB652,\"\")","v":""},{"$f":"IF(DataLog!$C652=\"Log value\",DataLog!AC652,\"\")","v":""},{"$f":"IF(DataLog!$C652=\"Log value\",DataLog!AD652,\"\")","v":""},{"$f":"IF(DataLog!$C652=\"Log value\",DataLog!AE652,\"\")","v":""},{"$f":"IF(DataLog!$C652=\"Log value\",DataLog!AF652,\"\")","v":""},{"$f":"IF(DataLog!$C652=\"Log value\",DataLog!AG652,\"\")","v":""},{"$f":"IF(DataLog!$C652=\"Log value\",DataLog!AH652,\"\")","v":""},{"$f":"IF(DataLog!$C652=\"Log value\",DataLog!AI652,\"\")","v":""},{"$f":"IF(DataLog!$C652=\"Log value\",DataLog!AJ652,\"\")","v":""},{"$f":"IF(DataLog!$C652=\"Log value\",DataLog!AK652,\"\")","v":""},{"$f":"IF(DataLog!$C652=\"Log value\",DataLog!AL652,\"\")","v":""},{"$f":"IF(DataLog!$C652=\"Log value\",DataLog!AM652,\"\")","v":""}]
[null,null,null,null,null,null,{"$f":"IF(DataLog!$C653=\"Log value\",DataLog!D653&\"_\"&TEXT(DataLog!B653,\"åååå-mm-dd\"),\"\")","v":""},{"$f":"IF(DataLog!$C653=\"Log value\",DataLog!E653,\"\")","v":""},{"$f":"IF(DataLog!$C653=\"Log value\",DataLog!F653,\"\")","v":""},{"$f":"IF(DataLog!$C653=\"Log value\",DataLog!G653,\"\")","v":""},{"$f":"IF(DataLog!$C653=\"Log value\",DataLog!H653,\"\")","v":""},{"$f":"IF(DataLog!$C653=\"Log value\",DataLog!I653,\"\")","v":""},{"$f":"IF(DataLog!$C653=\"Log value\",DataLog!J653,\"\")","v":""},{"$f":"IF(DataLog!$C653=\"Log value\",DataLog!K653,\"\")","v":""},{"$f":"IF(DataLog!$C653=\"Log value\",DataLog!L653,\"\")","v":""},{"$f":"IF(DataLog!$C653=\"Log value\",DataLog!M653,\"\")","v":""},{"$f":"IF(DataLog!$C653=\"Log value\",DataLog!N653,\"\")","v":""},{"$f":"IF(DataLog!$C653=\"Log value\",DataLog!O653,\"\")","v":""},{"$f":"IF(DataLog!$C653=\"Log value\",DataLog!P653,\"\")","v":""},{"$f":"IF(DataLog!$C653=\"Log value\",DataLog!Q653,\"\")","v":""},{"$f":"IF(DataLog!$C653=\"Log value\",DataLog!R653,\"\")","v":""},{"$f":"IF(DataLog!$C653=\"Log value\",DataLog!S653,\"\")","v":""},{"$f":"IF(DataLog!$C653=\"Log value\",DataLog!T653,\"\")","v":""},{"$f":"IF(DataLog!$C653=\"Log value\",DataLog!U653,\"\")","v":""},{"$f":"IF(DataLog!$C653=\"Log value\",DataLog!V653,\"\")","v":""},{"$f":"IF(DataLog!$C653=\"Log value\",DataLog!W653,\"\")","v":""},{"$f":"IF(DataLog!$C653=\"Log value\",DataLog!X653,\"\")","v":""},{"$f":"IF(DataLog!$C653=\"Log value\",DataLog!Y653,\"\")","v":""},{"$f":"IF(DataLog!$C653=\"Log value\",DataLog!Z653,\"\")","v":""},{"$f":"IF(DataLog!$C653=\"Log value\",DataLog!AA653,\"\")","v":""},{"$f":"IF(DataLog!$C653=\"Log value\",DataLog!AB653,\"\")","v":""},{"$f":"IF(DataLog!$C653=\"Log value\",DataLog!AC653,\"\")","v":""},{"$f":"IF(DataLog!$C653=\"Log value\",DataLog!AD653,\"\")","v":""},{"$f":"IF(DataLog!$C653=\"Log value\",DataLog!AE653,\"\")","v":""},{"$f":"IF(DataLog!$C653=\"Log value\",DataLog!AF653,\"\")","v":""},{"$f":"IF(DataLog!$C653=\"Log value\",DataLog!AG653,\"\")","v":""},{"$f":"IF(DataLog!$C653=\"Log value\",DataLog!AH653,\"\")","v":""},{"$f":"IF(DataLog!$C653=\"Log value\",DataLog!AI653,\"\")","v":""},{"$f":"IF(DataLog!$C653=\"Log value\",DataLog!AJ653,\"\")","v":""},{"$f":"IF(DataLog!$C653=\"Log value\",DataLog!AK653,\"\")","v":""},{"$f":"IF(DataLog!$C653=\"Log value\",DataLog!AL653,\"\")","v":""},{"$f":"IF(DataLog!$C653=\"Log value\",DataLog!AM653,\"\")","v":""}]
[null,null,null,null,null,null,{"$f":"IF(DataLog!$C654=\"Log value\",DataLog!D654&\"_\"&TEXT(DataLog!B654,\"åååå-mm-dd\"),\"\")","v":""},{"$f":"IF(DataLog!$C654=\"Log value\",DataLog!E654,\"\")","v":""},{"$f":"IF(DataLog!$C654=\"Log value\",DataLog!F654,\"\")","v":""},{"$f":"IF(DataLog!$C654=\"Log value\",DataLog!G654,\"\")","v":""},{"$f":"IF(DataLog!$C654=\"Log value\",DataLog!H654,\"\")","v":""},{"$f":"IF(DataLog!$C654=\"Log value\",DataLog!I654,\"\")","v":""},{"$f":"IF(DataLog!$C654=\"Log value\",DataLog!J654,\"\")","v":""},{"$f":"IF(DataLog!$C654=\"Log value\",DataLog!K654,\"\")","v":""},{"$f":"IF(DataLog!$C654=\"Log value\",DataLog!L654,\"\")","v":""},{"$f":"IF(DataLog!$C654=\"Log value\",DataLog!M654,\"\")","v":""},{"$f":"IF(DataLog!$C654=\"Log value\",DataLog!N654,\"\")","v":""},{"$f":"IF(DataLog!$C654=\"Log value\",DataLog!O654,\"\")","v":""},{"$f":"IF(DataLog!$C654=\"Log value\",DataLog!P654,\"\")","v":""},{"$f":"IF(DataLog!$C654=\"Log value\",DataLog!Q654,\"\")","v":""},{"$f":"IF(DataLog!$C654=\"Log value\",DataLog!R654,\"\")","v":""},{"$f":"IF(DataLog!$C654=\"Log value\",DataLog!S654,\"\")","v":""},{"$f":"IF(DataLog!$C654=\"Log value\",DataLog!T654,\"\")","v":""},{"$f":"IF(DataLog!$C654=\"Log value\",DataLog!U654,\"\")","v":""},{"$f":"IF(DataLog!$C654=\"Log value\",DataLog!V654,\"\")","v":""},{"$f":"IF(DataLog!$C654=\"Log value\",DataLog!W654,\"\")","v":""},{"$f":"IF(DataLog!$C654=\"Log value\",DataLog!X654,\"\")","v":""},{"$f":"IF(DataLog!$C654=\"Log value\",DataLog!Y654,\"\")","v":""},{"$f":"IF(DataLog!$C654=\"Log value\",DataLog!Z654,\"\")","v":""},{"$f":"IF(DataLog!$C654=\"Log value\",DataLog!AA654,\"\")","v":""},{"$f":"IF(DataLog!$C654=\"Log value\",DataLog!AB654,\"\")","v":""},{"$f":"IF(DataLog!$C654=\"Log value\",DataLog!AC654,\"\")","v":""},{"$f":"IF(DataLog!$C654=\"Log value\",DataLog!AD654,\"\")","v":""},{"$f":"IF(DataLog!$C654=\"Log value\",DataLog!AE654,\"\")","v":""},{"$f":"IF(DataLog!$C654=\"Log value\",DataLog!AF654,\"\")","v":""},{"$f":"IF(DataLog!$C654=\"Log value\",DataLog!AG654,\"\")","v":""},{"$f":"IF(DataLog!$C654=\"Log value\",DataLog!AH654,\"\")","v":""},{"$f":"IF(DataLog!$C654=\"Log value\",DataLog!AI654,\"\")","v":""},{"$f":"IF(DataLog!$C654=\"Log value\",DataLog!AJ654,\"\")","v":""},{"$f":"IF(DataLog!$C654=\"Log value\",DataLog!AK654,\"\")","v":""},{"$f":"IF(DataLog!$C654=\"Log value\",DataLog!AL654,\"\")","v":""},{"$f":"IF(DataLog!$C654=\"Log value\",DataLog!AM654,\"\")","v":""}]
[null,null,null,null,null,null,{"$f":"IF(DataLog!$C655=\"Log value\",DataLog!D655&\"_\"&TEXT(DataLog!B655,\"åååå-mm-dd\"),\"\")","v":""},{"$f":"IF(DataLog!$C655=\"Log value\",DataLog!E655,\"\")","v":""},{"$f":"IF(DataLog!$C655=\"Log value\",DataLog!F655,\"\")","v":""},{"$f":"IF(DataLog!$C655=\"Log value\",DataLog!G655,\"\")","v":""},{"$f":"IF(DataLog!$C655=\"Log value\",DataLog!H655,\"\")","v":""},{"$f":"IF(DataLog!$C655=\"Log value\",DataLog!I655,\"\")","v":""},{"$f":"IF(DataLog!$C655=\"Log value\",DataLog!J655,\"\")","v":""},{"$f":"IF(DataLog!$C655=\"Log value\",DataLog!K655,\"\")","v":""},{"$f":"IF(DataLog!$C655=\"Log value\",DataLog!L655,\"\")","v":""},{"$f":"IF(DataLog!$C655=\"Log value\",DataLog!M655,\"\")","v":""},{"$f":"IF(DataLog!$C655=\"Log value\",DataLog!N655,\"\")","v":""},{"$f":"IF(DataLog!$C655=\"Log value\",DataLog!O655,\"\")","v":""},{"$f":"IF(DataLog!$C655=\"Log value\",DataLog!P655,\"\")","v":""},{"$f":"IF(DataLog!$C655=\"Log value\",DataLog!Q655,\"\")","v":""},{"$f":"IF(DataLog!$C655=\"Log value\",DataLog!R655,\"\")","v":""},{"$f":"IF(DataLog!$C655=\"Log value\",DataLog!S655,\"\")","v":""},{"$f":"IF(DataLog!$C655=\"Log value\",DataLog!T655,\"\")","v":""},{"$f":"IF(DataLog!$C655=\"Log value\",DataLog!U655,\"\")","v":""},{"$f":"IF(DataLog!$C655=\"Log value\",DataLog!V655,\"\")","v":""},{"$f":"IF(DataLog!$C655=\"Log value\",DataLog!W655,\"\")","v":""},{"$f":"IF(DataLog!$C655=\"Log value\",DataLog!X655,\"\")","v":""},{"$f":"IF(DataLog!$C655=\"Log value\",DataLog!Y655,\"\")","v":""},{"$f":"IF(DataLog!$C655=\"Log value\",DataLog!Z655,\"\")","v":""},{"$f":"IF(DataLog!$C655=\"Log value\",DataLog!AA655,\"\")","v":""},{"$f":"IF(DataLog!$C655=\"Log value\",DataLog!AB655,\"\")","v":""},{"$f":"IF(DataLog!$C655=\"Log value\",DataLog!AC655,\"\")","v":""},{"$f":"IF(DataLog!$C655=\"Log value\",DataLog!AD655,\"\")","v":""},{"$f":"IF(DataLog!$C655=\"Log value\",DataLog!AE655,\"\")","v":""},{"$f":"IF(DataLog!$C655=\"Log value\",DataLog!AF655,\"\")","v":""},{"$f":"IF(DataLog!$C655=\"Log value\",DataLog!AG655,\"\")","v":""},{"$f":"IF(DataLog!$C655=\"Log value\",DataLog!AH655,\"\")","v":""},{"$f":"IF(DataLog!$C655=\"Log value\",DataLog!AI655,\"\")","v":""},{"$f":"IF(DataLog!$C655=\"Log value\",DataLog!AJ655,\"\")","v":""},{"$f":"IF(DataLog!$C655=\"Log value\",DataLog!AK655,\"\")","v":""},{"$f":"IF(DataLog!$C655=\"Log value\",DataLog!AL655,\"\")","v":""},{"$f":"IF(DataLog!$C655=\"Log value\",DataLog!AM655,\"\")","v":""}]
[null,null,null,null,null,null,{"$f":"IF(DataLog!$C656=\"Log value\",DataLog!D656&\"_\"&TEXT(DataLog!B656,\"åååå-mm-dd\"),\"\")","v":""},{"$f":"IF(DataLog!$C656=\"Log value\",DataLog!E656,\"\")","v":""},{"$f":"IF(DataLog!$C656=\"Log value\",DataLog!F656,\"\")","v":""},{"$f":"IF(DataLog!$C656=\"Log value\",DataLog!G656,\"\")","v":""},{"$f":"IF(DataLog!$C656=\"Log value\",DataLog!H656,\"\")","v":""},{"$f":"IF(DataLog!$C656=\"Log value\",DataLog!I656,\"\")","v":""},{"$f":"IF(DataLog!$C656=\"Log value\",DataLog!J656,\"\")","v":""},{"$f":"IF(DataLog!$C656=\"Log value\",DataLog!K656,\"\")","v":""},{"$f":"IF(DataLog!$C656=\"Log value\",DataLog!L656,\"\")","v":""},{"$f":"IF(DataLog!$C656=\"Log value\",DataLog!M656,\"\")","v":""},{"$f":"IF(DataLog!$C656=\"Log value\",DataLog!N656,\"\")","v":""},{"$f":"IF(DataLog!$C656=\"Log value\",DataLog!O656,\"\")","v":""},{"$f":"IF(DataLog!$C656=\"Log value\",DataLog!P656,\"\")","v":""},{"$f":"IF(DataLog!$C656=\"Log value\",DataLog!Q656,\"\")","v":""},{"$f":"IF(DataLog!$C656=\"Log value\",DataLog!R656,\"\")","v":""},{"$f":"IF(DataLog!$C656=\"Log value\",DataLog!S656,\"\")","v":""},{"$f":"IF(DataLog!$C656=\"Log value\",DataLog!T656,\"\")","v":""},{"$f":"IF(DataLog!$C656=\"Log value\",DataLog!U656,\"\")","v":""},{"$f":"IF(DataLog!$C656=\"Log value\",DataLog!V656,\"\")","v":""},{"$f":"IF(DataLog!$C656=\"Log value\",DataLog!W656,\"\")","v":""},{"$f":"IF(DataLog!$C656=\"Log value\",DataLog!X656,\"\")","v":""},{"$f":"IF(DataLog!$C656=\"Log value\",DataLog!Y656,\"\")","v":""},{"$f":"IF(DataLog!$C656=\"Log value\",DataLog!Z656,\"\")","v":""},{"$f":"IF(DataLog!$C656=\"Log value\",DataLog!AA656,\"\")","v":""},{"$f":"IF(DataLog!$C656=\"Log value\",DataLog!AB656,\"\")","v":""},{"$f":"IF(DataLog!$C656=\"Log value\",DataLog!AC656,\"\")","v":""},{"$f":"IF(DataLog!$C656=\"Log value\",DataLog!AD656,\"\")","v":""},{"$f":"IF(DataLog!$C656=\"Log value\",DataLog!AE656,\"\")","v":""},{"$f":"IF(DataLog!$C656=\"Log value\",DataLog!AF656,\"\")","v":""},{"$f":"IF(DataLog!$C656=\"Log value\",DataLog!AG656,\"\")","v":""},{"$f":"IF(DataLog!$C656=\"Log value\",DataLog!AH656,\"\")","v":""},{"$f":"IF(DataLog!$C656=\"Log value\",DataLog!AI656,\"\")","v":""},{"$f":"IF(DataLog!$C656=\"Log value\",DataLog!AJ656,\"\")","v":""},{"$f":"IF(DataLog!$C656=\"Log value\",DataLog!AK656,\"\")","v":""},{"$f":"IF(DataLog!$C656=\"Log value\",DataLog!AL656,\"\")","v":""},{"$f":"IF(DataLog!$C656=\"Log value\",DataLog!AM656,\"\")","v":""}]
[null,null,null,null,null,null,{"$f":"IF(DataLog!$C657=\"Log value\",DataLog!D657&\"_\"&TEXT(DataLog!B657,\"åååå-mm-dd\"),\"\")","v":""},{"$f":"IF(DataLog!$C657=\"Log value\",DataLog!E657,\"\")","v":""},{"$f":"IF(DataLog!$C657=\"Log value\",DataLog!F657,\"\")","v":""},{"$f":"IF(DataLog!$C657=\"Log value\",DataLog!G657,\"\")","v":""},{"$f":"IF(DataLog!$C657=\"Log value\",DataLog!H657,\"\")","v":""},{"$f":"IF(DataLog!$C657=\"Log value\",DataLog!I657,\"\")","v":""},{"$f":"IF(DataLog!$C657=\"Log value\",DataLog!J657,\"\")","v":""},{"$f":"IF(DataLog!$C657=\"Log value\",DataLog!K657,\"\")","v":""},{"$f":"IF(DataLog!$C657=\"Log value\",DataLog!L657,\"\")","v":""},{"$f":"IF(DataLog!$C657=\"Log value\",DataLog!M657,\"\")","v":""},{"$f":"IF(DataLog!$C657=\"Log value\",DataLog!N657,\"\")","v":""},{"$f":"IF(DataLog!$C657=\"Log value\",DataLog!O657,\"\")","v":""},{"$f":"IF(DataLog!$C657=\"Log value\",DataLog!P657,\"\")","v":""},{"$f":"IF(DataLog!$C657=\"Log value\",DataLog!Q657,\"\")","v":""},{"$f":"IF(DataLog!$C657=\"Log value\",DataLog!R657,\"\")","v":""},{"$f":"IF(DataLog!$C657=\"Log value\",DataLog!S657,\"\")","v":""},{"$f":"IF(DataLog!$C657=\"Log value\",DataLog!T657,\"\")","v":""},{"$f":"IF(DataLog!$C657=\"Log value\",DataLog!U657,\"\")","v":""},{"$f":"IF(DataLog!$C657=\"Log value\",DataLog!V657,\"\")","v":""},{"$f":"IF(DataLog!$C657=\"Log value\",DataLog!W657,\"\")","v":""},{"$f":"IF(DataLog!$C657=\"Log value\",DataLog!X657,\"\")","v":""},{"$f":"IF(DataLog!$C657=\"Log value\",DataLog!Y657,\"\")","v":""},{"$f":"IF(DataLog!$C657=\"Log value\",DataLog!Z657,\"\")","v":""},{"$f":"IF(DataLog!$C657=\"Log value\",DataLog!AA657,\"\")","v":""},{"$f":"IF(DataLog!$C657=\"Log value\",DataLog!AB657,\"\")","v":""},{"$f":"IF(DataLog!$C657=\"Log value\",DataLog!AC657,\"\")","v":""},{"$f":"IF(DataLog!$C657=\"Log value\",DataLog!AD657,\"\")","v":""},{"$f":"IF(DataLog!$C657=\"Log value\",DataLog!AE657,\"\")","v":""},{"$f":"IF(DataLog!$C657=\"Log value\",DataLog!AF657,\"\")","v":""},{"$f":"IF(DataLog!$C657=\"Log value\",DataLog!AG657,\"\")","v":""},{"$f":"IF(DataLog!$C657=\"Log value\",DataLog!AH657,\"\")","v":""},{"$f":"IF(DataLog!$C657=\"Log value\",DataLog!AI657,\"\")","v":""},{"$f":"IF(DataLog!$C657=\"Log value\",DataLog!AJ657,\"\")","v":""},{"$f":"IF(DataLog!$C657=\"Log value\",DataLog!AK657,\"\")","v":""},{"$f":"IF(DataLog!$C657=\"Log value\",DataLog!AL657,\"\")","v":""},{"$f":"IF(DataLog!$C657=\"Log value\",DataLog!AM657,\"\")","v":""}]
[null,null,null,null,null,null,{"$f":"IF(DataLog!$C658=\"Log value\",DataLog!D658&\"_\"&TEXT(DataLog!B658,\"åååå-mm-dd\"),\"\")","v":""},{"$f":"IF(DataLog!$C658=\"Log value\",DataLog!E658,\"\")","v":""},{"$f":"IF(DataLog!$C658=\"Log value\",DataLog!F658,\"\")","v":""},{"$f":"IF(DataLog!$C658=\"Log value\",DataLog!G658,\"\")","v":""},{"$f":"IF(DataLog!$C658=\"Log value\",DataLog!H658,\"\")","v":""},{"$f":"IF(DataLog!$C658=\"Log value\",DataLog!I658,\"\")","v":""},{"$f":"IF(DataLog!$C658=\"Log value\",DataLog!J658,\"\")","v":""},{"$f":"IF(DataLog!$C658=\"Log value\",DataLog!K658,\"\")","v":""},{"$f":"IF(DataLog!$C658=\"Log value\",DataLog!L658,\"\")","v":""},{"$f":"IF(DataLog!$C658=\"Log value\",DataLog!M658,\"\")","v":""},{"$f":"IF(DataLog!$C658=\"Log value\",DataLog!N658,\"\")","v":""},{"$f":"IF(DataLog!$C658=\"Log value\",DataLog!O658,\"\")","v":""},{"$f":"IF(DataLog!$C658=\"Log value\",DataLog!P658,\"\")","v":""},{"$f":"IF(DataLog!$C658=\"Log value\",DataLog!Q658,\"\")","v":""},{"$f":"IF(DataLog!$C658=\"Log value\",DataLog!R658,\"\")","v":""},{"$f":"IF(DataLog!$C658=\"Log value\",DataLog!S658,\"\")","v":""},{"$f":"IF(DataLog!$C658=\"Log value\",DataLog!T658,\"\")","v":""},{"$f":"IF(DataLog!$C658=\"Log value\",DataLog!U658,\"\")","v":""},{"$f":"IF(DataLog!$C658=\"Log value\",DataLog!V658,\"\")","v":""},{"$f":"IF(DataLog!$C658=\"Log value\",DataLog!W658,\"\")","v":""},{"$f":"IF(DataLog!$C658=\"Log value\",DataLog!X658,\"\")","v":""},{"$f":"IF(DataLog!$C658=\"Log value\",DataLog!Y658,\"\")","v":""},{"$f":"IF(DataLog!$C658=\"Log value\",DataLog!Z658,\"\")","v":""},{"$f":"IF(DataLog!$C658=\"Log value\",DataLog!AA658,\"\")","v":""},{"$f":"IF(DataLog!$C658=\"Log value\",DataLog!AB658,\"\")","v":""},{"$f":"IF(DataLog!$C658=\"Log value\",DataLog!AC658,\"\")","v":""},{"$f":"IF(DataLog!$C658=\"Log value\",DataLog!AD658,\"\")","v":""},{"$f":"IF(DataLog!$C658=\"Log value\",DataLog!AE658,\"\")","v":""},{"$f":"IF(DataLog!$C658=\"Log value\",DataLog!AF658,\"\")","v":""},{"$f":"IF(DataLog!$C658=\"Log value\",DataLog!AG658,\"\")","v":""},{"$f":"IF(DataLog!$C658=\"Log value\",DataLog!AH658,\"\")","v":""},{"$f":"IF(DataLog!$C658=\"Log value\",DataLog!AI658,\"\")","v":""},{"$f":"IF(DataLog!$C658=\"Log value\",DataLog!AJ658,\"\")","v":""},{"$f":"IF(DataLog!$C658=\"Log value\",DataLog!AK658,\"\")","v":""},{"$f":"IF(DataLog!$C658=\"Log value\",DataLog!AL658,\"\")","v":""},{"$f":"IF(DataLog!$C658=\"Log value\",DataLog!AM658,\"\")","v":""}]
[null,null,null,null,null,null,{"$f":"IF(DataLog!$C659=\"Log value\",DataLog!D659&\"_\"&TEXT(DataLog!B659,\"åååå-mm-dd\"),\"\")","v":""},{"$f":"IF(DataLog!$C659=\"Log value\",DataLog!E659,\"\")","v":""},{"$f":"IF(DataLog!$C659=\"Log value\",DataLog!F659,\"\")","v":""},{"$f":"IF(DataLog!$C659=\"Log value\",DataLog!G659,\"\")","v":""},{"$f":"IF(DataLog!$C659=\"Log value\",DataLog!H659,\"\")","v":""},{"$f":"IF(DataLog!$C659=\"Log value\",DataLog!I659,\"\")","v":""},{"$f":"IF(DataLog!$C659=\"Log value\",DataLog!J659,\"\")","v":""},{"$f":"IF(DataLog!$C659=\"Log value\",DataLog!K659,\"\")","v":""},{"$f":"IF(DataLog!$C659=\"Log value\",DataLog!L659,\"\")","v":""},{"$f":"IF(DataLog!$C659=\"Log value\",DataLog!M659,\"\")","v":""},{"$f":"IF(DataLog!$C659=\"Log value\",DataLog!N659,\"\")","v":""},{"$f":"IF(DataLog!$C659=\"Log value\",DataLog!O659,\"\")","v":""},{"$f":"IF(DataLog!$C659=\"Log value\",DataLog!P659,\"\")","v":""},{"$f":"IF(DataLog!$C659=\"Log value\",DataLog!Q659,\"\")","v":""},{"$f":"IF(DataLog!$C659=\"Log value\",DataLog!R659,\"\")","v":""},{"$f":"IF(DataLog!$C659=\"Log value\",DataLog!S659,\"\")","v":""},{"$f":"IF(DataLog!$C659=\"Log value\",DataLog!T659,\"\")","v":""},{"$f":"IF(DataLog!$C659=\"Log value\",DataLog!U659,\"\")","v":""},{"$f":"IF(DataLog!$C659=\"Log value\",DataLog!V659,\"\")","v":""},{"$f":"IF(DataLog!$C659=\"Log value\",DataLog!W659,\"\")","v":""},{"$f":"IF(DataLog!$C659=\"Log value\",DataLog!X659,\"\")","v":""},{"$f":"IF(DataLog!$C659=\"Log value\",DataLog!Y659,\"\")","v":""},{"$f":"IF(DataLog!$C659=\"Log value\",DataLog!Z659,\"\")","v":""},{"$f":"IF(DataLog!$C659=\"Log value\",DataLog!AA659,\"\")","v":""},{"$f":"IF(DataLog!$C659=\"Log value\",DataLog!AB659,\"\")","v":""},{"$f":"IF(DataLog!$C659=\"Log value\",DataLog!AC659,\"\")","v":""},{"$f":"IF(DataLog!$C659=\"Log value\",DataLog!AD659,\"\")","v":""},{"$f":"IF(DataLog!$C659=\"Log value\",DataLog!AE659,\"\")","v":""},{"$f":"IF(DataLog!$C659=\"Log value\",DataLog!AF659,\"\")","v":""},{"$f":"IF(DataLog!$C659=\"Log value\",DataLog!AG659,\"\")","v":""},{"$f":"IF(DataLog!$C659=\"Log value\",DataLog!AH659,\"\")","v":""},{"$f":"IF(DataLog!$C659=\"Log value\",DataLog!AI659,\"\")","v":""},{"$f":"IF(DataLog!$C659=\"Log value\",DataLog!AJ659,\"\")","v":""},{"$f":"IF(DataLog!$C659=\"Log value\",DataLog!AK659,\"\")","v":""},{"$f":"IF(DataLog!$C659=\"Log value\",DataLog!AL659,\"\")","v":""},{"$f":"IF(DataLog!$C659=\"Log value\",DataLog!AM659,\"\")","v":""}]
[null,null,null,null,null,null,{"$f":"IF(DataLog!$C660=\"Log value\",DataLog!D660&\"_\"&TEXT(DataLog!B660,\"åååå-mm-dd\"),\"\")","v":""},{"$f":"IF(DataLog!$C660=\"Log value\",DataLog!E660,\"\")","v":""},{"$f":"IF(DataLog!$C660=\"Log value\",DataLog!F660,\"\")","v":""},{"$f":"IF(DataLog!$C660=\"Log value\",DataLog!G660,\"\")","v":""},{"$f":"IF(DataLog!$C660=\"Log value\",DataLog!H660,\"\")","v":""},{"$f":"IF(DataLog!$C660=\"Log value\",DataLog!I660,\"\")","v":""},{"$f":"IF(DataLog!$C660=\"Log value\",DataLog!J660,\"\")","v":""},{"$f":"IF(DataLog!$C660=\"Log value\",DataLog!K660,\"\")","v":""},{"$f":"IF(DataLog!$C660=\"Log value\",DataLog!L660,\"\")","v":""},{"$f":"IF(DataLog!$C660=\"Log value\",DataLog!M660,\"\")","v":""},{"$f":"IF(DataLog!$C660=\"Log value\",DataLog!N660,\"\")","v":""},{"$f":"IF(DataLog!$C660=\"Log value\",DataLog!O660,\"\")","v":""},{"$f":"IF(DataLog!$C660=\"Log value\",DataLog!P660,\"\")","v":""},{"$f":"IF(DataLog!$C660=\"Log value\",DataLog!Q660,\"\")","v":""},{"$f":"IF(DataLog!$C660=\"Log value\",DataLog!R660,\"\")","v":""},{"$f":"IF(DataLog!$C660=\"Log value\",DataLog!S660,\"\")","v":""},{"$f":"IF(DataLog!$C660=\"Log value\",DataLog!T660,\"\")","v":""},{"$f":"IF(DataLog!$C660=\"Log value\",DataLog!U660,\"\")","v":""},{"$f":"IF(DataLog!$C660=\"Log value\",DataLog!V660,\"\")","v":""},{"$f":"IF(DataLog!$C660=\"Log value\",DataLog!W660,\"\")","v":""},{"$f":"IF(DataLog!$C660=\"Log value\",DataLog!X660,\"\")","v":""},{"$f":"IF(DataLog!$C660=\"Log value\",DataLog!Y660,\"\")","v":""},{"$f":"IF(DataLog!$C660=\"Log value\",DataLog!Z660,\"\")","v":""},{"$f":"IF(DataLog!$C660=\"Log value\",DataLog!AA660,\"\")","v":""},{"$f":"IF(DataLog!$C660=\"Log value\",DataLog!AB660,\"\")","v":""},{"$f":"IF(DataLog!$C660=\"Log value\",DataLog!AC660,\"\")","v":""},{"$f":"IF(DataLog!$C660=\"Log value\",DataLog!AD660,\"\")","v":""},{"$f":"IF(DataLog!$C660=\"Log value\",DataLog!AE660,\"\")","v":""},{"$f":"IF(DataLog!$C660=\"Log value\",DataLog!AF660,\"\")","v":""},{"$f":"IF(DataLog!$C660=\"Log value\",DataLog!AG660,\"\")","v":""},{"$f":"IF(DataLog!$C660=\"Log value\",DataLog!AH660,\"\")","v":""},{"$f":"IF(DataLog!$C660=\"Log value\",DataLog!AI660,\"\")","v":""},{"$f":"IF(DataLog!$C660=\"Log value\",DataLog!AJ660,\"\")","v":""},{"$f":"IF(DataLog!$C660=\"Log value\",DataLog!AK660,\"\")","v":""},{"$f":"IF(DataLog!$C660=\"Log value\",DataLog!AL660,\"\")","v":""},{"$f":"IF(DataLog!$C660=\"Log value\",DataLog!AM660,\"\")","v":""}]
[null,null,null,null,null,null,{"$f":"IF(DataLog!$C661=\"Log value\",DataLog!D661&\"_\"&TEXT(DataLog!B661,\"åååå-mm-dd\"),\"\")","v":""},{"$f":"IF(DataLog!$C661=\"Log value\",DataLog!E661,\"\")","v":""},{"$f":"IF(DataLog!$C661=\"Log value\",DataLog!F661,\"\")","v":""},{"$f":"IF(DataLog!$C661=\"Log value\",DataLog!G661,\"\")","v":""},{"$f":"IF(DataLog!$C661=\"Log value\",DataLog!H661,\"\")","v":""},{"$f":"IF(DataLog!$C661=\"Log value\",DataLog!I661,\"\")","v":""},{"$f":"IF(DataLog!$C661=\"Log value\",DataLog!J661,\"\")","v":""},{"$f":"IF(DataLog!$C661=\"Log value\",DataLog!K661,\"\")","v":""},{"$f":"IF(DataLog!$C661=\"Log value\",DataLog!L661,\"\")","v":""},{"$f":"IF(DataLog!$C661=\"Log value\",DataLog!M661,\"\")","v":""},{"$f":"IF(DataLog!$C661=\"Log value\",DataLog!N661,\"\")","v":""},{"$f":"IF(DataLog!$C661=\"Log value\",DataLog!O661,\"\")","v":""},{"$f":"IF(DataLog!$C661=\"Log value\",DataLog!P661,\"\")","v":""},{"$f":"IF(DataLog!$C661=\"Log value\",DataLog!Q661,\"\")","v":""},{"$f":"IF(DataLog!$C661=\"Log value\",DataLog!R661,\"\")","v":""},{"$f":"IF(DataLog!$C661=\"Log value\",DataLog!S661,\"\")","v":""},{"$f":"IF(DataLog!$C661=\"Log value\",DataLog!T661,\"\")","v":""},{"$f":"IF(DataLog!$C661=\"Log value\",DataLog!U661,\"\")","v":""},{"$f":"IF(DataLog!$C661=\"Log value\",DataLog!V661,\"\")","v":""},{"$f":"IF(DataLog!$C661=\"Log value\",DataLog!W661,\"\")","v":""},{"$f":"IF(DataLog!$C661=\"Log value\",DataLog!X661,\"\")","v":""},{"$f":"IF(DataLog!$C661=\"Log value\",DataLog!Y661,\"\")","v":""},{"$f":"IF(DataLog!$C661=\"Log value\",DataLog!Z661,\"\")","v":""},{"$f":"IF(DataLog!$C661=\"Log value\",DataLog!AA661,\"\")","v":""},{"$f":"IF(DataLog!$C661=\"Log value\",DataLog!AB661,\"\")","v":""},{"$f":"IF(DataLog!$C661=\"Log value\",DataLog!AC661,\"\")","v":""},{"$f":"IF(DataLog!$C661=\"Log value\",DataLog!AD661,\"\")","v":""},{"$f":"IF(DataLog!$C661=\"Log value\",DataLog!AE661,\"\")","v":""},{"$f":"IF(DataLog!$C661=\"Log value\",DataLog!AF661,\"\")","v":""},{"$f":"IF(DataLog!$C661=\"Log value\",DataLog!AG661,\"\")","v":""},{"$f":"IF(DataLog!$C661=\"Log value\",DataLog!AH661,\"\")","v":""},{"$f":"IF(DataLog!$C661=\"Log value\",DataLog!AI661,\"\")","v":""},{"$f":"IF(DataLog!$C661=\"Log value\",DataLog!AJ661,\"\")","v":""},{"$f":"IF(DataLog!$C661=\"Log value\",DataLog!AK661,\"\")","v":""},{"$f":"IF(DataLog!$C661=\"Log value\",DataLog!AL661,\"\")","v":""},{"$f":"IF(DataLog!$C661=\"Log value\",DataLog!AM661,\"\")","v":""}]
[null,null,null,null,null,null,{"$f":"IF(DataLog!$C662=\"Log value\",DataLog!D662&\"_\"&TEXT(DataLog!B662,\"åååå-mm-dd\"),\"\")","v":""},{"$f":"IF(DataLog!$C662=\"Log value\",DataLog!E662,\"\")","v":""},{"$f":"IF(DataLog!$C662=\"Log value\",DataLog!F662,\"\")","v":""},{"$f":"IF(DataLog!$C662=\"Log value\",DataLog!G662,\"\")","v":""},{"$f":"IF(DataLog!$C662=\"Log value\",DataLog!H662,\"\")","v":""},{"$f":"IF(DataLog!$C662=\"Log value\",DataLog!I662,\"\")","v":""},{"$f":"IF(DataLog!$C662=\"Log value\",DataLog!J662,\"\")","v":""},{"$f":"IF(DataLog!$C662=\"Log value\",DataLog!K662,\"\")","v":""},{"$f":"IF(DataLog!$C662=\"Log value\",DataLog!L662,\"\")","v":""},{"$f":"IF(DataLog!$C662=\"Log value\",DataLog!M662,\"\")","v":""},{"$f":"IF(DataLog!$C662=\"Log value\",DataLog!N662,\"\")","v":""},{"$f":"IF(DataLog!$C662=\"Log value\",DataLog!O662,\"\")","v":""},{"$f":"IF(DataLog!$C662=\"Log value\",DataLog!P662,\"\")","v":""},{"$f":"IF(DataLog!$C662=\"Log value\",DataLog!Q662,\"\")","v":""},{"$f":"IF(DataLog!$C662=\"Log value\",DataLog!R662,\"\")","v":""},{"$f":"IF(DataLog!$C662=\"Log value\",DataLog!S662,\"\")","v":""},{"$f":"IF(DataLog!$C662=\"Log value\",DataLog!T662,\"\")","v":""},{"$f":"IF(DataLog!$C662=\"Log value\",DataLog!U662,\"\")","v":""},{"$f":"IF(DataLog!$C662=\"Log value\",DataLog!V662,\"\")","v":""},{"$f":"IF(DataLog!$C662=\"Log value\",DataLog!W662,\"\")","v":""},{"$f":"IF(DataLog!$C662=\"Log value\",DataLog!X662,\"\")","v":""},{"$f":"IF(DataLog!$C662=\"Log value\",DataLog!Y662,\"\")","v":""},{"$f":"IF(DataLog!$C662=\"Log value\",DataLog!Z662,\"\")","v":""},{"$f":"IF(DataLog!$C662=\"Log value\",DataLog!AA662,\"\")","v":""},{"$f":"IF(DataLog!$C662=\"Log value\",DataLog!AB662,\"\")","v":""},{"$f":"IF(DataLog!$C662=\"Log value\",DataLog!AC662,\"\")","v":""},{"$f":"IF(DataLog!$C662=\"Log value\",DataLog!AD662,\"\")","v":""},{"$f":"IF(DataLog!$C662=\"Log value\",DataLog!AE662,\"\")","v":""},{"$f":"IF(DataLog!$C662=\"Log value\",DataLog!AF662,\"\")","v":""},{"$f":"IF(DataLog!$C662=\"Log value\",DataLog!AG662,\"\")","v":""},{"$f":"IF(DataLog!$C662=\"Log value\",DataLog!AH662,\"\")","v":""},{"$f":"IF(DataLog!$C662=\"Log value\",DataLog!AI662,\"\")","v":""},{"$f":"IF(DataLog!$C662=\"Log value\",DataLog!AJ662,\"\")","v":""},{"$f":"IF(DataLog!$C662=\"Log value\",DataLog!AK662,\"\")","v":""},{"$f":"IF(DataLog!$C662=\"Log value\",DataLog!AL662,\"\")","v":""},{"$f":"IF(DataLog!$C662=\"Log value\",DataLog!AM662,\"\")","v":""}]
[null,null,null,null,null,null,{"$f":"IF(DataLog!$C663=\"Log value\",DataLog!D663&\"_\"&TEXT(DataLog!B663,\"åååå-mm-dd\"),\"\")","v":""},{"$f":"IF(DataLog!$C663=\"Log value\",DataLog!E663,\"\")","v":""},{"$f":"IF(DataLog!$C663=\"Log value\",DataLog!F663,\"\")","v":""},{"$f":"IF(DataLog!$C663=\"Log value\",DataLog!G663,\"\")","v":""},{"$f":"IF(DataLog!$C663=\"Log value\",DataLog!H663,\"\")","v":""},{"$f":"IF(DataLog!$C663=\"Log value\",DataLog!I663,\"\")","v":""},{"$f":"IF(DataLog!$C663=\"Log value\",DataLog!J663,\"\")","v":""},{"$f":"IF(DataLog!$C663=\"Log value\",DataLog!K663,\"\")","v":""},{"$f":"IF(DataLog!$C663=\"Log value\",DataLog!L663,\"\")","v":""},{"$f":"IF(DataLog!$C663=\"Log value\",DataLog!M663,\"\")","v":""},{"$f":"IF(DataLog!$C663=\"Log value\",DataLog!N663,\"\")","v":""},{"$f":"IF(DataLog!$C663=\"Log value\",DataLog!O663,\"\")","v":""},{"$f":"IF(DataLog!$C663=\"Log value\",DataLog!P663,\"\")","v":""},{"$f":"IF(DataLog!$C663=\"Log value\",DataLog!Q663,\"\")","v":""},{"$f":"IF(DataLog!$C663=\"Log value\",DataLog!R663,\"\")","v":""},{"$f":"IF(DataLog!$C663=\"Log value\",DataLog!S663,\"\")","v":""},{"$f":"IF(DataLog!$C663=\"Log value\",DataLog!T663,\"\")","v":""},{"$f":"IF(DataLog!$C663=\"Log value\",DataLog!U663,\"\")","v":""},{"$f":"IF(DataLog!$C663=\"Log value\",DataLog!V663,\"\")","v":""},{"$f":"IF(DataLog!$C663=\"Log value\",DataLog!W663,\"\")","v":""},{"$f":"IF(DataLog!$C663=\"Log value\",DataLog!X663,\"\")","v":""},{"$f":"IF(DataLog!$C663=\"Log value\",DataLog!Y663,\"\")","v":""},{"$f":"IF(DataLog!$C663=\"Log value\",DataLog!Z663,\"\")","v":""},{"$f":"IF(DataLog!$C663=\"Log value\",DataLog!AA663,\"\")","v":""},{"$f":"IF(DataLog!$C663=\"Log value\",DataLog!AB663,\"\")","v":""},{"$f":"IF(DataLog!$C663=\"Log value\",DataLog!AC663,\"\")","v":""},{"$f":"IF(DataLog!$C663=\"Log value\",DataLog!AD663,\"\")","v":""},{"$f":"IF(DataLog!$C663=\"Log value\",DataLog!AE663,\"\")","v":""},{"$f":"IF(DataLog!$C663=\"Log value\",DataLog!AF663,\"\")","v":""},{"$f":"IF(DataLog!$C663=\"Log value\",DataLog!AG663,\"\")","v":""},{"$f":"IF(DataLog!$C663=\"Log value\",DataLog!AH663,\"\")","v":""},{"$f":"IF(DataLog!$C663=\"Log value\",DataLog!AI663,\"\")","v":""},{"$f":"IF(DataLog!$C663=\"Log value\",DataLog!AJ663,\"\")","v":""},{"$f":"IF(DataLog!$C663=\"Log value\",DataLog!AK663,\"\")","v":""},{"$f":"IF(DataLog!$C663=\"Log value\",DataLog!AL663,\"\")","v":""},{"$f":"IF(DataLog!$C663=\"Log value\",DataLog!AM663,\"\")","v":""}]
[null,null,null,null,null,null,{"$f":"IF(DataLog!$C664=\"Log value\",DataLog!D664&\"_\"&TEXT(DataLog!B664,\"åååå-mm-dd\"),\"\")","v":""},{"$f":"IF(DataLog!$C664=\"Log value\",DataLog!E664,\"\")","v":""},{"$f":"IF(DataLog!$C664=\"Log value\",DataLog!F664,\"\")","v":""},{"$f":"IF(DataLog!$C664=\"Log value\",DataLog!G664,\"\")","v":""},{"$f":"IF(DataLog!$C664=\"Log value\",DataLog!H664,\"\")","v":""},{"$f":"IF(DataLog!$C664=\"Log value\",DataLog!I664,\"\")","v":""},{"$f":"IF(DataLog!$C664=\"Log value\",DataLog!J664,\"\")","v":""},{"$f":"IF(DataLog!$C664=\"Log value\",DataLog!K664,\"\")","v":""},{"$f":"IF(DataLog!$C664=\"Log value\",DataLog!L664,\"\")","v":""},{"$f":"IF(DataLog!$C664=\"Log value\",DataLog!M664,\"\")","v":""},{"$f":"IF(DataLog!$C664=\"Log value\",DataLog!N664,\"\")","v":""},{"$f":"IF(DataLog!$C664=\"Log value\",DataLog!O664,\"\")","v":""},{"$f":"IF(DataLog!$C664=\"Log value\",DataLog!P664,\"\")","v":""},{"$f":"IF(DataLog!$C664=\"Log value\",DataLog!Q664,\"\")","v":""},{"$f":"IF(DataLog!$C664=\"Log value\",DataLog!R664,\"\")","v":""},{"$f":"IF(DataLog!$C664=\"Log value\",DataLog!S664,\"\")","v":""},{"$f":"IF(DataLog!$C664=\"Log value\",DataLog!T664,\"\")","v":""},{"$f":"IF(DataLog!$C664=\"Log value\",DataLog!U664,\"\")","v":""},{"$f":"IF(DataLog!$C664=\"Log value\",DataLog!V664,\"\")","v":""},{"$f":"IF(DataLog!$C664=\"Log value\",DataLog!W664,\"\")","v":""},{"$f":"IF(DataLog!$C664=\"Log value\",DataLog!X664,\"\")","v":""},{"$f":"IF(DataLog!$C664=\"Log value\",DataLog!Y664,\"\")","v":""},{"$f":"IF(DataLog!$C664=\"Log value\",DataLog!Z664,\"\")","v":""},{"$f":"IF(DataLog!$C664=\"Log value\",DataLog!AA664,\"\")","v":""},{"$f":"IF(DataLog!$C664=\"Log value\",DataLog!AB664,\"\")","v":""},{"$f":"IF(DataLog!$C664=\"Log value\",DataLog!AC664,\"\")","v":""},{"$f":"IF(DataLog!$C664=\"Log value\",DataLog!AD664,\"\")","v":""},{"$f":"IF(DataLog!$C664=\"Log value\",DataLog!AE664,\"\")","v":""},{"$f":"IF(DataLog!$C664=\"Log value\",DataLog!AF664,\"\")","v":""},{"$f":"IF(DataLog!$C664=\"Log value\",DataLog!AG664,\"\")","v":""},{"$f":"IF(DataLog!$C664=\"Log value\",DataLog!AH664,\"\")","v":""},{"$f":"IF(DataLog!$C664=\"Log value\",DataLog!AI664,\"\")","v":""},{"$f":"IF(DataLog!$C664=\"Log value\",DataLog!AJ664,\"\")","v":""},{"$f":"IF(DataLog!$C664=\"Log value\",DataLog!AK664,\"\")","v":""},{"$f":"IF(DataLog!$C664=\"Log value\",DataLog!AL664,\"\")","v":""},{"$f":"IF(DataLog!$C664=\"Log value\",DataLog!AM664,\"\")","v":""}]
[null,null,null,null,null,null,{"$f":"IF(DataLog!$C665=\"Log value\",DataLog!D665&\"_\"&TEXT(DataLog!B665,\"åååå-mm-dd\"),\"\")","v":""},{"$f":"IF(DataLog!$C665=\"Log value\",DataLog!E665,\"\")","v":""},{"$f":"IF(DataLog!$C665=\"Log value\",DataLog!F665,\"\")","v":""},{"$f":"IF(DataLog!$C665=\"Log value\",DataLog!G665,\"\")","v":""},{"$f":"IF(DataLog!$C665=\"Log value\",DataLog!H665,\"\")","v":""},{"$f":"IF(DataLog!$C665=\"Log value\",DataLog!I665,\"\")","v":""},{"$f":"IF(DataLog!$C665=\"Log value\",DataLog!J665,\"\")","v":""},{"$f":"IF(DataLog!$C665=\"Log value\",DataLog!K665,\"\")","v":""},{"$f":"IF(DataLog!$C665=\"Log value\",DataLog!L665,\"\")","v":""},{"$f":"IF(DataLog!$C665=\"Log value\",DataLog!M665,\"\")","v":""},{"$f":"IF(DataLog!$C665=\"Log value\",DataLog!N665,\"\")","v":""},{"$f":"IF(DataLog!$C665=\"Log value\",DataLog!O665,\"\")","v":""},{"$f":"IF(DataLog!$C665=\"Log value\",DataLog!P665,\"\")","v":""},{"$f":"IF(DataLog!$C665=\"Log value\",DataLog!Q665,\"\")","v":""},{"$f":"IF(DataLog!$C665=\"Log value\",DataLog!R665,\"\")","v":""},{"$f":"IF(DataLog!$C665=\"Log value\",DataLog!S665,\"\")","v":""},{"$f":"IF(DataLog!$C665=\"Log value\",DataLog!T665,\"\")","v":""},{"$f":"IF(DataLog!$C665=\"Log value\",DataLog!U665,\"\")","v":""},{"$f":"IF(DataLog!$C665=\"Log value\",DataLog!V665,\"\")","v":""},{"$f":"IF(DataLog!$C665=\"Log value\",DataLog!W665,\"\")","v":""},{"$f":"IF(DataLog!$C665=\"Log value\",DataLog!X665,\"\")","v":""},{"$f":"IF(DataLog!$C665=\"Log value\",DataLog!Y665,\"\")","v":""},{"$f":"IF(DataLog!$C665=\"Log value\",DataLog!Z665,\"\")","v":""},{"$f":"IF(DataLog!$C665=\"Log value\",DataLog!AA665,\"\")","v":""},{"$f":"IF(DataLog!$C665=\"Log value\",DataLog!AB665,\"\")","v":""},{"$f":"IF(DataLog!$C665=\"Log value\",DataLog!AC665,\"\")","v":""},{"$f":"IF(DataLog!$C665=\"Log value\",DataLog!AD665,\"\")","v":""},{"$f":"IF(DataLog!$C665=\"Log value\",DataLog!AE665,\"\")","v":""},{"$f":"IF(DataLog!$C665=\"Log value\",DataLog!AF665,\"\")","v":""},{"$f":"IF(DataLog!$C665=\"Log value\",DataLog!AG665,\"\")","v":""},{"$f":"IF(DataLog!$C665=\"Log value\",DataLog!AH665,\"\")","v":""},{"$f":"IF(DataLog!$C665=\"Log value\",DataLog!AI665,\"\")","v":""},{"$f":"IF(DataLog!$C665=\"Log value\",DataLog!AJ665,\"\")","v":""},{"$f":"IF(DataLog!$C665=\"Log value\",DataLog!AK665,\"\")","v":""},{"$f":"IF(DataLog!$C665=\"Log value\",DataLog!AL665,\"\")","v":""},{"$f":"IF(DataLog!$C665=\"Log value\",DataLog!AM665,\"\")","v":""}]
[null,null,null,null,null,null,{"$f":"IF(DataLog!$C666=\"Log value\",DataLog!D666&\"_\"&TEXT(DataLog!B666,\"åååå-mm-dd\"),\"\")","v":""},{"$f":"IF(DataLog!$C666=\"Log value\",DataLog!E666,\"\")","v":""},{"$f":"IF(DataLog!$C666=\"Log value\",DataLog!F666,\"\")","v":""},{"$f":"IF(DataLog!$C666=\"Log value\",DataLog!G666,\"\")","v":""},{"$f":"IF(DataLog!$C666=\"Log value\",DataLog!H666,\"\")","v":""},{"$f":"IF(DataLog!$C666=\"Log value\",DataLog!I666,\"\")","v":""},{"$f":"IF(DataLog!$C666=\"Log value\",DataLog!J666,\"\")","v":""},{"$f":"IF(DataLog!$C666=\"Log value\",DataLog!K666,\"\")","v":""},{"$f":"IF(DataLog!$C666=\"Log value\",DataLog!L666,\"\")","v":""},{"$f":"IF(DataLog!$C666=\"Log value\",DataLog!M666,\"\")","v":""},{"$f":"IF(DataLog!$C666=\"Log value\",DataLog!N666,\"\")","v":""},{"$f":"IF(DataLog!$C666=\"Log value\",DataLog!O666,\"\")","v":""},{"$f":"IF(DataLog!$C666=\"Log value\",DataLog!P666,\"\")","v":""},{"$f":"IF(DataLog!$C666=\"Log value\",DataLog!Q666,\"\")","v":""},{"$f":"IF(DataLog!$C666=\"Log value\",DataLog!R666,\"\")","v":""},{"$f":"IF(DataLog!$C666=\"Log value\",DataLog!S666,\"\")","v":""},{"$f":"IF(DataLog!$C666=\"Log value\",DataLog!T666,\"\")","v":""},{"$f":"IF(DataLog!$C666=\"Log value\",DataLog!U666,\"\")","v":""},{"$f":"IF(DataLog!$C666=\"Log value\",DataLog!V666,\"\")","v":""},{"$f":"IF(DataLog!$C666=\"Log value\",DataLog!W666,\"\")","v":""},{"$f":"IF(DataLog!$C666=\"Log value\",DataLog!X666,\"\")","v":""},{"$f":"IF(DataLog!$C666=\"Log value\",DataLog!Y666,\"\")","v":""},{"$f":"IF(DataLog!$C666=\"Log value\",DataLog!Z666,\"\")","v":""},{"$f":"IF(DataLog!$C666=\"Log value\",DataLog!AA666,\"\")","v":""},{"$f":"IF(DataLog!$C666=\"Log value\",DataLog!AB666,\"\")","v":""},{"$f":"IF(DataLog!$C666=\"Log value\",DataLog!AC666,\"\")","v":""},{"$f":"IF(DataLog!$C666=\"Log value\",DataLog!AD666,\"\")","v":""},{"$f":"IF(DataLog!$C666=\"Log value\",DataLog!AE666,\"\")","v":""},{"$f":"IF(DataLog!$C666=\"Log value\",DataLog!AF666,\"\")","v":""},{"$f":"IF(DataLog!$C666=\"Log value\",DataLog!AG666,\"\")","v":""},{"$f":"IF(DataLog!$C666=\"Log value\",DataLog!AH666,\"\")","v":""},{"$f":"IF(DataLog!$C666=\"Log value\",DataLog!AI666,\"\")","v":""},{"$f":"IF(DataLog!$C666=\"Log value\",DataLog!AJ666,\"\")","v":""},{"$f":"IF(DataLog!$C666=\"Log value\",DataLog!AK666,\"\")","v":""},{"$f":"IF(DataLog!$C666=\"Log value\",DataLog!AL666,\"\")","v":""},{"$f":"IF(DataLog!$C666=\"Log value\",DataLog!AM666,\"\")","v":""}]
[null,null,null,null,null,null,{"$f":"IF(DataLog!$C667=\"Log value\",DataLog!D667&\"_\"&TEXT(DataLog!B667,\"åååå-mm-dd\"),\"\")","v":""},{"$f":"IF(DataLog!$C667=\"Log value\",DataLog!E667,\"\")","v":""},{"$f":"IF(DataLog!$C667=\"Log value\",DataLog!F667,\"\")","v":""},{"$f":"IF(DataLog!$C667=\"Log value\",DataLog!G667,\"\")","v":""},{"$f":"IF(DataLog!$C667=\"Log value\",DataLog!H667,\"\")","v":""},{"$f":"IF(DataLog!$C667=\"Log value\",DataLog!I667,\"\")","v":""},{"$f":"IF(DataLog!$C667=\"Log value\",DataLog!J667,\"\")","v":""},{"$f":"IF(DataLog!$C667=\"Log value\",DataLog!K667,\"\")","v":""},{"$f":"IF(DataLog!$C667=\"Log value\",DataLog!L667,\"\")","v":""},{"$f":"IF(DataLog!$C667=\"Log value\",DataLog!M667,\"\")","v":""},{"$f":"IF(DataLog!$C667=\"Log value\",DataLog!N667,\"\")","v":""},{"$f":"IF(DataLog!$C667=\"Log value\",DataLog!O667,\"\")","v":""},{"$f":"IF(DataLog!$C667=\"Log value\",DataLog!P667,\"\")","v":""},{"$f":"IF(DataLog!$C667=\"Log value\",DataLog!Q667,\"\")","v":""},{"$f":"IF(DataLog!$C667=\"Log value\",DataLog!R667,\"\")","v":""},{"$f":"IF(DataLog!$C667=\"Log value\",DataLog!S667,\"\")","v":""},{"$f":"IF(DataLog!$C667=\"Log value\",DataLog!T667,\"\")","v":""},{"$f":"IF(DataLog!$C667=\"Log value\",DataLog!U667,\"\")","v":""},{"$f":"IF(DataLog!$C667=\"Log value\",DataLog!V667,\"\")","v":""},{"$f":"IF(DataLog!$C667=\"Log value\",DataLog!W667,\"\")","v":""},{"$f":"IF(DataLog!$C667=\"Log value\",DataLog!X667,\"\")","v":""},{"$f":"IF(DataLog!$C667=\"Log value\",DataLog!Y667,\"\")","v":""},{"$f":"IF(DataLog!$C667=\"Log value\",DataLog!Z667,\"\")","v":""},{"$f":"IF(DataLog!$C667=\"Log value\",DataLog!AA667,\"\")","v":""},{"$f":"IF(DataLog!$C667=\"Log value\",DataLog!AB667,\"\")","v":""},{"$f":"IF(DataLog!$C667=\"Log value\",DataLog!AC667,\"\")","v":""},{"$f":"IF(DataLog!$C667=\"Log value\",DataLog!AD667,\"\")","v":""},{"$f":"IF(DataLog!$C667=\"Log value\",DataLog!AE667,\"\")","v":""},{"$f":"IF(DataLog!$C667=\"Log value\",DataLog!AF667,\"\")","v":""},{"$f":"IF(DataLog!$C667=\"Log value\",DataLog!AG667,\"\")","v":""},{"$f":"IF(DataLog!$C667=\"Log value\",DataLog!AH667,\"\")","v":""},{"$f":"IF(DataLog!$C667=\"Log value\",DataLog!AI667,\"\")","v":""},{"$f":"IF(DataLog!$C667=\"Log value\",DataLog!AJ667,\"\")","v":""},{"$f":"IF(DataLog!$C667=\"Log value\",DataLog!AK667,\"\")","v":""},{"$f":"IF(DataLog!$C667=\"Log value\",DataLog!AL667,\"\")","v":""},{"$f":"IF(DataLog!$C667=\"Log value\",DataLog!AM667,\"\")","v":""}]
[null,null,null,null,null,null,{"$f":"IF(DataLog!$C668=\"Log value\",DataLog!D668&\"_\"&TEXT(DataLog!B668,\"åååå-mm-dd\"),\"\")","v":""},{"$f":"IF(DataLog!$C668=\"Log value\",DataLog!E668,\"\")","v":""},{"$f":"IF(DataLog!$C668=\"Log value\",DataLog!F668,\"\")","v":""},{"$f":"IF(DataLog!$C668=\"Log value\",DataLog!G668,\"\")","v":""},{"$f":"IF(DataLog!$C668=\"Log value\",DataLog!H668,\"\")","v":""},{"$f":"IF(DataLog!$C668=\"Log value\",DataLog!I668,\"\")","v":""},{"$f":"IF(DataLog!$C668=\"Log value\",DataLog!J668,\"\")","v":""},{"$f":"IF(DataLog!$C668=\"Log value\",DataLog!K668,\"\")","v":""},{"$f":"IF(DataLog!$C668=\"Log value\",DataLog!L668,\"\")","v":""},{"$f":"IF(DataLog!$C668=\"Log value\",DataLog!M668,\"\")","v":""},{"$f":"IF(DataLog!$C668=\"Log value\",DataLog!N668,\"\")","v":""},{"$f":"IF(DataLog!$C668=\"Log value\",DataLog!O668,\"\")","v":""},{"$f":"IF(DataLog!$C668=\"Log value\",DataLog!P668,\"\")","v":""},{"$f":"IF(DataLog!$C668=\"Log value\",DataLog!Q668,\"\")","v":""},{"$f":"IF(DataLog!$C668=\"Log value\",DataLog!R668,\"\")","v":""},{"$f":"IF(DataLog!$C668=\"Log value\",DataLog!S668,\"\")","v":""},{"$f":"IF(DataLog!$C668=\"Log value\",DataLog!T668,\"\")","v":""},{"$f":"IF(DataLog!$C668=\"Log value\",DataLog!U668,\"\")","v":""},{"$f":"IF(DataLog!$C668=\"Log value\",DataLog!V668,\"\")","v":""},{"$f":"IF(DataLog!$C668=\"Log value\",DataLog!W668,\"\")","v":""},{"$f":"IF(DataLog!$C668=\"Log value\",DataLog!X668,\"\")","v":""},{"$f":"IF(DataLog!$C668=\"Log value\",DataLog!Y668,\"\")","v":""},{"$f":"IF(DataLog!$C668=\"Log value\",DataLog!Z668,\"\")","v":""},{"$f":"IF(DataLog!$C668=\"Log value\",DataLog!AA668,\"\")","v":""},{"$f":"IF(DataLog!$C668=\"Log value\",DataLog!AB668,\"\")","v":""},{"$f":"IF(DataLog!$C668=\"Log value\",DataLog!AC668,\"\")","v":""},{"$f":"IF(DataLog!$C668=\"Log value\",DataLog!AD668,\"\")","v":""},{"$f":"IF(DataLog!$C668=\"Log value\",DataLog!AE668,\"\")","v":""},{"$f":"IF(DataLog!$C668=\"Log value\",DataLog!AF668,\"\")","v":""},{"$f":"IF(DataLog!$C668=\"Log value\",DataLog!AG668,\"\")","v":""},{"$f":"IF(DataLog!$C668=\"Log value\",DataLog!AH668,\"\")","v":""},{"$f":"IF(DataLog!$C668=\"Log value\",DataLog!AI668,\"\")","v":""},{"$f":"IF(DataLog!$C668=\"Log value\",DataLog!AJ668,\"\")","v":""},{"$f":"IF(DataLog!$C668=\"Log value\",DataLog!AK668,\"\")","v":""},{"$f":"IF(DataLog!$C668=\"Log value\",DataLog!AL668,\"\")","v":""},{"$f":"IF(DataLog!$C668=\"Log value\",DataLog!AM668,\"\")","v":""}]
[null,null,null,null,null,null,{"$f":"IF(DataLog!$C669=\"Log value\",DataLog!D669&\"_\"&TEXT(DataLog!B669,\"åååå-mm-dd\"),\"\")","v":""},{"$f":"IF(DataLog!$C669=\"Log value\",DataLog!E669,\"\")","v":""},{"$f":"IF(DataLog!$C669=\"Log value\",DataLog!F669,\"\")","v":""},{"$f":"IF(DataLog!$C669=\"Log value\",DataLog!G669,\"\")","v":""},{"$f":"IF(DataLog!$C669=\"Log value\",DataLog!H669,\"\")","v":""},{"$f":"IF(DataLog!$C669=\"Log value\",DataLog!I669,\"\")","v":""},{"$f":"IF(DataLog!$C669=\"Log value\",DataLog!J669,\"\")","v":""},{"$f":"IF(DataLog!$C669=\"Log value\",DataLog!K669,\"\")","v":""},{"$f":"IF(DataLog!$C669=\"Log value\",DataLog!L669,\"\")","v":""},{"$f":"IF(DataLog!$C669=\"Log value\",DataLog!M669,\"\")","v":""},{"$f":"IF(DataLog!$C669=\"Log value\",DataLog!N669,\"\")","v":""},{"$f":"IF(DataLog!$C669=\"Log value\",DataLog!O669,\"\")","v":""},{"$f":"IF(DataLog!$C669=\"Log value\",DataLog!P669,\"\")","v":""},{"$f":"IF(DataLog!$C669=\"Log value\",DataLog!Q669,\"\")","v":""},{"$f":"IF(DataLog!$C669=\"Log value\",DataLog!R669,\"\")","v":""},{"$f":"IF(DataLog!$C669=\"Log value\",DataLog!S669,\"\")","v":""},{"$f":"IF(DataLog!$C669=\"Log value\",DataLog!T669,\"\")","v":""},{"$f":"IF(DataLog!$C669=\"Log value\",DataLog!U669,\"\")","v":""},{"$f":"IF(DataLog!$C669=\"Log value\",DataLog!V669,\"\")","v":""},{"$f":"IF(DataLog!$C669=\"Log value\",DataLog!W669,\"\")","v":""},{"$f":"IF(DataLog!$C669=\"Log value\",DataLog!X669,\"\")","v":""},{"$f":"IF(DataLog!$C669=\"Log value\",DataLog!Y669,\"\")","v":""},{"$f":"IF(DataLog!$C669=\"Log value\",DataLog!Z669,\"\")","v":""},{"$f":"IF(DataLog!$C669=\"Log value\",DataLog!AA669,\"\")","v":""},{"$f":"IF(DataLog!$C669=\"Log value\",DataLog!AB669,\"\")","v":""},{"$f":"IF(DataLog!$C669=\"Log value\",DataLog!AC669,\"\")","v":""},{"$f":"IF(DataLog!$C669=\"Log value\",DataLog!AD669,\"\")","v":""},{"$f":"IF(DataLog!$C669=\"Log value\",DataLog!AE669,\"\")","v":""},{"$f":"IF(DataLog!$C669=\"Log value\",DataLog!AF669,\"\")","v":""},{"$f":"IF(DataLog!$C669=\"Log value\",DataLog!AG669,\"\")","v":""},{"$f":"IF(DataLog!$C669=\"Log value\",DataLog!AH669,\"\")","v":""},{"$f":"IF(DataLog!$C669=\"Log value\",DataLog!AI669,\"\")","v":""},{"$f":"IF(DataLog!$C669=\"Log value\",DataLog!AJ669,\"\")","v":""},{"$f":"IF(DataLog!$C669=\"Log value\",DataLog!AK669,\"\")","v":""},{"$f":"IF(DataLog!$C669=\"Log value\",DataLog!AL669,\"\")","v":""},{"$f":"IF(DataLog!$C669=\"Log value\",DataLog!AM669,\"\")","v":""}]
[null,null,null,null,null,null,{"$f":"IF(DataLog!$C670=\"Log value\",DataLog!D670&\"_\"&TEXT(DataLog!B670,\"åååå-mm-dd\"),\"\")","v":""},{"$f":"IF(DataLog!$C670=\"Log value\",DataLog!E670,\"\")","v":""},{"$f":"IF(DataLog!$C670=\"Log value\",DataLog!F670,\"\")","v":""},{"$f":"IF(DataLog!$C670=\"Log value\",DataLog!G670,\"\")","v":""},{"$f":"IF(DataLog!$C670=\"Log value\",DataLog!H670,\"\")","v":""},{"$f":"IF(DataLog!$C670=\"Log value\",DataLog!I670,\"\")","v":""},{"$f":"IF(DataLog!$C670=\"Log value\",DataLog!J670,\"\")","v":""},{"$f":"IF(DataLog!$C670=\"Log value\",DataLog!K670,\"\")","v":""},{"$f":"IF(DataLog!$C670=\"Log value\",DataLog!L670,\"\")","v":""},{"$f":"IF(DataLog!$C670=\"Log value\",DataLog!M670,\"\")","v":""},{"$f":"IF(DataLog!$C670=\"Log value\",DataLog!N670,\"\")","v":""},{"$f":"IF(DataLog!$C670=\"Log value\",DataLog!O670,\"\")","v":""},{"$f":"IF(DataLog!$C670=\"Log value\",DataLog!P670,\"\")","v":""},{"$f":"IF(DataLog!$C670=\"Log value\",DataLog!Q670,\"\")","v":""},{"$f":"IF(DataLog!$C670=\"Log value\",DataLog!R670,\"\")","v":""},{"$f":"IF(DataLog!$C670=\"Log value\",DataLog!S670,\"\")","v":""},{"$f":"IF(DataLog!$C670=\"Log value\",DataLog!T670,\"\")","v":""},{"$f":"IF(DataLog!$C670=\"Log value\",DataLog!U670,\"\")","v":""},{"$f":"IF(DataLog!$C670=\"Log value\",DataLog!V670,\"\")","v":""},{"$f":"IF(DataLog!$C670=\"Log value\",DataLog!W670,\"\")","v":""},{"$f":"IF(DataLog!$C670=\"Log value\",DataLog!X670,\"\")","v":""},{"$f":"IF(DataLog!$C670=\"Log value\",DataLog!Y670,\"\")","v":""},{"$f":"IF(DataLog!$C670=\"Log value\",DataLog!Z670,\"\")","v":""},{"$f":"IF(DataLog!$C670=\"Log value\",DataLog!AA670,\"\")","v":""},{"$f":"IF(DataLog!$C670=\"Log value\",DataLog!AB670,\"\")","v":""},{"$f":"IF(DataLog!$C670=\"Log value\",DataLog!AC670,\"\")","v":""},{"$f":"IF(DataLog!$C670=\"Log value\",DataLog!AD670,\"\")","v":""},{"$f":"IF(DataLog!$C670=\"Log value\",DataLog!AE670,\"\")","v":""},{"$f":"IF(DataLog!$C670=\"Log value\",DataLog!AF670,\"\")","v":""},{"$f":"IF(DataLog!$C670=\"Log value\",DataLog!AG670,\"\")","v":""},{"$f":"IF(DataLog!$C670=\"Log value\",DataLog!AH670,\"\")","v":""},{"$f":"IF(DataLog!$C670=\"Log value\",DataLog!AI670,\"\")","v":""},{"$f":"IF(DataLog!$C670=\"Log value\",DataLog!AJ670,\"\")","v":""},{"$f":"IF(DataLog!$C670=\"Log value\",DataLog!AK670,\"\")","v":""},{"$f":"IF(DataLog!$C670=\"Log value\",DataLog!AL670,\"\")","v":""},{"$f":"IF(DataLog!$C670=\"Log value\",DataLog!AM670,\"\")","v":""}]
[null,null,null,null,null,null,{"$f":"IF(DataLog!$C671=\"Log value\",DataLog!D671&\"_\"&TEXT(DataLog!B671,\"åååå-mm-dd\"),\"\")","v":""},{"$f":"IF(DataLog!$C671=\"Log value\",DataLog!E671,\"\")","v":""},{"$f":"IF(DataLog!$C671=\"Log value\",DataLog!F671,\"\")","v":""},{"$f":"IF(DataLog!$C671=\"Log value\",DataLog!G671,\"\")","v":""},{"$f":"IF(DataLog!$C671=\"Log value\",DataLog!H671,\"\")","v":""},{"$f":"IF(DataLog!$C671=\"Log value\",DataLog!I671,\"\")","v":""},{"$f":"IF(DataLog!$C671=\"Log value\",DataLog!J671,\"\")","v":""},{"$f":"IF(DataLog!$C671=\"Log value\",DataLog!K671,\"\")","v":""},{"$f":"IF(DataLog!$C671=\"Log value\",DataLog!L671,\"\")","v":""},{"$f":"IF(DataLog!$C671=\"Log value\",DataLog!M671,\"\")","v":""},{"$f":"IF(DataLog!$C671=\"Log value\",DataLog!N671,\"\")","v":""},{"$f":"IF(DataLog!$C671=\"Log value\",DataLog!O671,\"\")","v":""},{"$f":"IF(DataLog!$C671=\"Log value\",DataLog!P671,\"\")","v":""},{"$f":"IF(DataLog!$C671=\"Log value\",DataLog!Q671,\"\")","v":""},{"$f":"IF(DataLog!$C671=\"Log value\",DataLog!R671,\"\")","v":""},{"$f":"IF(DataLog!$C671=\"Log value\",DataLog!S671,\"\")","v":""},{"$f":"IF(DataLog!$C671=\"Log value\",DataLog!T671,\"\")","v":""},{"$f":"IF(DataLog!$C671=\"Log value\",DataLog!U671,\"\")","v":""},{"$f":"IF(DataLog!$C671=\"Log value\",DataLog!V671,\"\")","v":""},{"$f":"IF(DataLog!$C671=\"Log value\",DataLog!W671,\"\")","v":""},{"$f":"IF(DataLog!$C671=\"Log value\",DataLog!X671,\"\")","v":""},{"$f":"IF(DataLog!$C671=\"Log value\",DataLog!Y671,\"\")","v":""},{"$f":"IF(DataLog!$C671=\"Log value\",DataLog!Z671,\"\")","v":""},{"$f":"IF(DataLog!$C671=\"Log value\",DataLog!AA671,\"\")","v":""},{"$f":"IF(DataLog!$C671=\"Log value\",DataLog!AB671,\"\")","v":""},{"$f":"IF(DataLog!$C671=\"Log value\",DataLog!AC671,\"\")","v":""},{"$f":"IF(DataLog!$C671=\"Log value\",DataLog!AD671,\"\")","v":""},{"$f":"IF(DataLog!$C671=\"Log value\",DataLog!AE671,\"\")","v":""},{"$f":"IF(DataLog!$C671=\"Log value\",DataLog!AF671,\"\")","v":""},{"$f":"IF(DataLog!$C671=\"Log value\",DataLog!AG671,\"\")","v":""},{"$f":"IF(DataLog!$C671=\"Log value\",DataLog!AH671,\"\")","v":""},{"$f":"IF(DataLog!$C671=\"Log value\",DataLog!AI671,\"\")","v":""},{"$f":"IF(DataLog!$C671=\"Log value\",DataLog!AJ671,\"\")","v":""},{"$f":"IF(DataLog!$C671=\"Log value\",DataLog!AK671,\"\")","v":""},{"$f":"IF(DataLog!$C671=\"Log value\",DataLog!AL671,\"\")","v":""},{"$f":"IF(DataLog!$C671=\"Log value\",DataLog!AM671,\"\")","v":""}]
[null,null,null,null,null,null,{"$f":"IF(DataLog!$C672=\"Log value\",DataLog!D672&\"_\"&TEXT(DataLog!B672,\"åååå-mm-dd\"),\"\")","v":""},{"$f":"IF(DataLog!$C672=\"Log value\",DataLog!E672,\"\")","v":""},{"$f":"IF(DataLog!$C672=\"Log value\",DataLog!F672,\"\")","v":""},{"$f":"IF(DataLog!$C672=\"Log value\",DataLog!G672,\"\")","v":""},{"$f":"IF(DataLog!$C672=\"Log value\",DataLog!H672,\"\")","v":""},{"$f":"IF(DataLog!$C672=\"Log value\",DataLog!I672,\"\")","v":""},{"$f":"IF(DataLog!$C672=\"Log value\",DataLog!J672,\"\")","v":""},{"$f":"IF(DataLog!$C672=\"Log value\",DataLog!K672,\"\")","v":""},{"$f":"IF(DataLog!$C672=\"Log value\",DataLog!L672,\"\")","v":""},{"$f":"IF(DataLog!$C672=\"Log value\",DataLog!M672,\"\")","v":""},{"$f":"IF(DataLog!$C672=\"Log value\",DataLog!N672,\"\")","v":""},{"$f":"IF(DataLog!$C672=\"Log value\",DataLog!O672,\"\")","v":""},{"$f":"IF(DataLog!$C672=\"Log value\",DataLog!P672,\"\")","v":""},{"$f":"IF(DataLog!$C672=\"Log value\",DataLog!Q672,\"\")","v":""},{"$f":"IF(DataLog!$C672=\"Log value\",DataLog!R672,\"\")","v":""},{"$f":"IF(DataLog!$C672=\"Log value\",DataLog!S672,\"\")","v":""},{"$f":"IF(DataLog!$C672=\"Log value\",DataLog!T672,\"\")","v":""},{"$f":"IF(DataLog!$C672=\"Log value\",DataLog!U672,\"\")","v":""},{"$f":"IF(DataLog!$C672=\"Log value\",DataLog!V672,\"\")","v":""},{"$f":"IF(DataLog!$C672=\"Log value\",DataLog!W672,\"\")","v":""},{"$f":"IF(DataLog!$C672=\"Log value\",DataLog!X672,\"\")","v":""},{"$f":"IF(DataLog!$C672=\"Log value\",DataLog!Y672,\"\")","v":""},{"$f":"IF(DataLog!$C672=\"Log value\",DataLog!Z672,\"\")","v":""},{"$f":"IF(DataLog!$C672=\"Log value\",DataLog!AA672,\"\")","v":""},{"$f":"IF(DataLog!$C672=\"Log value\",DataLog!AB672,\"\")","v":""},{"$f":"IF(DataLog!$C672=\"Log value\",DataLog!AC672,\"\")","v":""},{"$f":"IF(DataLog!$C672=\"Log value\",DataLog!AD672,\"\")","v":""},{"$f":"IF(DataLog!$C672=\"Log value\",DataLog!AE672,\"\")","v":""},{"$f":"IF(DataLog!$C672=\"Log value\",DataLog!AF672,\"\")","v":""},{"$f":"IF(DataLog!$C672=\"Log value\",DataLog!AG672,\"\")","v":""},{"$f":"IF(DataLog!$C672=\"Log value\",DataLog!AH672,\"\")","v":""},{"$f":"IF(DataLog!$C672=\"Log value\",DataLog!AI672,\"\")","v":""},{"$f":"IF(DataLog!$C672=\"Log value\",DataLog!AJ672,\"\")","v":""},{"$f":"IF(DataLog!$C672=\"Log value\",DataLog!AK672,\"\")","v":""},{"$f":"IF(DataLog!$C672=\"Log value\",DataLog!AL672,\"\")","v":""},{"$f":"IF(DataLog!$C672=\"Log value\",DataLog!AM672,\"\")","v":""}]
[null,null,null,null,null,null,{"$f":"IF(DataLog!$C673=\"Log value\",DataLog!D673&\"_\"&TEXT(DataLog!B673,\"åååå-mm-dd\"),\"\")","v":""},{"$f":"IF(DataLog!$C673=\"Log value\",DataLog!E673,\"\")","v":""},{"$f":"IF(DataLog!$C673=\"Log value\",DataLog!F673,\"\")","v":""},{"$f":"IF(DataLog!$C673=\"Log value\",DataLog!G673,\"\")","v":""},{"$f":"IF(DataLog!$C673=\"Log value\",DataLog!H673,\"\")","v":""},{"$f":"IF(DataLog!$C673=\"Log value\",DataLog!I673,\"\")","v":""},{"$f":"IF(DataLog!$C673=\"Log value\",DataLog!J673,\"\")","v":""},{"$f":"IF(DataLog!$C673=\"Log value\",DataLog!K673,\"\")","v":""},{"$f":"IF(DataLog!$C673=\"Log value\",DataLog!L673,\"\")","v":""},{"$f":"IF(DataLog!$C673=\"Log value\",DataLog!M673,\"\")","v":""},{"$f":"IF(DataLog!$C673=\"Log value\",DataLog!N673,\"\")","v":""},{"$f":"IF(DataLog!$C673=\"Log value\",DataLog!O673,\"\")","v":""},{"$f":"IF(DataLog!$C673=\"Log value\",DataLog!P673,\"\")","v":""},{"$f":"IF(DataLog!$C673=\"Log value\",DataLog!Q673,\"\")","v":""},{"$f":"IF(DataLog!$C673=\"Log value\",DataLog!R673,\"\")","v":""},{"$f":"IF(DataLog!$C673=\"Log value\",DataLog!S673,\"\")","v":""},{"$f":"IF(DataLog!$C673=\"Log value\",DataLog!T673,\"\")","v":""},{"$f":"IF(DataLog!$C673=\"Log value\",DataLog!U673,\"\")","v":""},{"$f":"IF(DataLog!$C673=\"Log value\",DataLog!V673,\"\")","v":""},{"$f":"IF(DataLog!$C673=\"Log value\",DataLog!W673,\"\")","v":""},{"$f":"IF(DataLog!$C673=\"Log value\",DataLog!X673,\"\")","v":""},{"$f":"IF(DataLog!$C673=\"Log value\",DataLog!Y673,\"\")","v":""},{"$f":"IF(DataLog!$C673=\"Log value\",DataLog!Z673,\"\")","v":""},{"$f":"IF(DataLog!$C673=\"Log value\",DataLog!AA673,\"\")","v":""},{"$f":"IF(DataLog!$C673=\"Log value\",DataLog!AB673,\"\")","v":""},{"$f":"IF(DataLog!$C673=\"Log value\",DataLog!AC673,\"\")","v":""},{"$f":"IF(DataLog!$C673=\"Log value\",DataLog!AD673,\"\")","v":""},{"$f":"IF(DataLog!$C673=\"Log value\",DataLog!AE673,\"\")","v":""},{"$f":"IF(DataLog!$C673=\"Log value\",DataLog!AF673,\"\")","v":""},{"$f":"IF(DataLog!$C673=\"Log value\",DataLog!AG673,\"\")","v":""},{"$f":"IF(DataLog!$C673=\"Log value\",DataLog!AH673,\"\")","v":""},{"$f":"IF(DataLog!$C673=\"Log value\",DataLog!AI673,\"\")","v":""},{"$f":"IF(DataLog!$C673=\"Log value\",DataLog!AJ673,\"\")","v":""},{"$f":"IF(DataLog!$C673=\"Log value\",DataLog!AK673,\"\")","v":""},{"$f":"IF(DataLog!$C673=\"Log value\",DataLog!AL673,\"\")","v":""},{"$f":"IF(DataLog!$C673=\"Log value\",DataLog!AM673,\"\")","v":""}]
[null,null,null,null,null,null,{"$f":"IF(DataLog!$C674=\"Log value\",DataLog!D674&\"_\"&TEXT(DataLog!B674,\"åååå-mm-dd\"),\"\")","v":""},{"$f":"IF(DataLog!$C674=\"Log value\",DataLog!E674,\"\")","v":""},{"$f":"IF(DataLog!$C674=\"Log value\",DataLog!F674,\"\")","v":""},{"$f":"IF(DataLog!$C674=\"Log value\",DataLog!G674,\"\")","v":""},{"$f":"IF(DataLog!$C674=\"Log value\",DataLog!H674,\"\")","v":""},{"$f":"IF(DataLog!$C674=\"Log value\",DataLog!I674,\"\")","v":""},{"$f":"IF(DataLog!$C674=\"Log value\",DataLog!J674,\"\")","v":""},{"$f":"IF(DataLog!$C674=\"Log value\",DataLog!K674,\"\")","v":""},{"$f":"IF(DataLog!$C674=\"Log value\",DataLog!L674,\"\")","v":""},{"$f":"IF(DataLog!$C674=\"Log value\",DataLog!M674,\"\")","v":""},{"$f":"IF(DataLog!$C674=\"Log value\",DataLog!N674,\"\")","v":""},{"$f":"IF(DataLog!$C674=\"Log value\",DataLog!O674,\"\")","v":""},{"$f":"IF(DataLog!$C674=\"Log value\",DataLog!P674,\"\")","v":""},{"$f":"IF(DataLog!$C674=\"Log value\",DataLog!Q674,\"\")","v":""},{"$f":"IF(DataLog!$C674=\"Log value\",DataLog!R674,\"\")","v":""},{"$f":"IF(DataLog!$C674=\"Log value\",DataLog!S674,\"\")","v":""},{"$f":"IF(DataLog!$C674=\"Log value\",DataLog!T674,\"\")","v":""},{"$f":"IF(DataLog!$C674=\"Log value\",DataLog!U674,\"\")","v":""},{"$f":"IF(DataLog!$C674=\"Log value\",DataLog!V674,\"\")","v":""},{"$f":"IF(DataLog!$C674=\"Log value\",DataLog!W674,\"\")","v":""},{"$f":"IF(DataLog!$C674=\"Log value\",DataLog!X674,\"\")","v":""},{"$f":"IF(DataLog!$C674=\"Log value\",DataLog!Y674,\"\")","v":""},{"$f":"IF(DataLog!$C674=\"Log value\",DataLog!Z674,\"\")","v":""},{"$f":"IF(DataLog!$C674=\"Log value\",DataLog!AA674,\"\")","v":""},{"$f":"IF(DataLog!$C674=\"Log value\",DataLog!AB674,\"\")","v":""},{"$f":"IF(DataLog!$C674=\"Log value\",DataLog!AC674,\"\")","v":""},{"$f":"IF(DataLog!$C674=\"Log value\",DataLog!AD674,\"\")","v":""},{"$f":"IF(DataLog!$C674=\"Log value\",DataLog!AE674,\"\")","v":""},{"$f":"IF(DataLog!$C674=\"Log value\",DataLog!AF674,\"\")","v":""},{"$f":"IF(DataLog!$C674=\"Log value\",DataLog!AG674,\"\")","v":""},{"$f":"IF(DataLog!$C674=\"Log value\",DataLog!AH674,\"\")","v":""},{"$f":"IF(DataLog!$C674=\"Log value\",DataLog!AI674,\"\")","v":""},{"$f":"IF(DataLog!$C674=\"Log value\",DataLog!AJ674,\"\")","v":""},{"$f":"IF(DataLog!$C674=\"Log value\",DataLog!AK674,\"\")","v":""},{"$f":"IF(DataLog!$C674=\"Log value\",DataLog!AL674,\"\")","v":""},{"$f":"IF(DataLog!$C674=\"Log value\",DataLog!AM674,\"\")","v":""}]
[null,null,null,null,null,null,{"$f":"IF(DataLog!$C675=\"Log value\",DataLog!D675&\"_\"&TEXT(DataLog!B675,\"åååå-mm-dd\"),\"\")","v":""},{"$f":"IF(DataLog!$C675=\"Log value\",DataLog!E675,\"\")","v":""},{"$f":"IF(DataLog!$C675=\"Log value\",DataLog!F675,\"\")","v":""},{"$f":"IF(DataLog!$C675=\"Log value\",DataLog!G675,\"\")","v":""},{"$f":"IF(DataLog!$C675=\"Log value\",DataLog!H675,\"\")","v":""},{"$f":"IF(DataLog!$C675=\"Log value\",DataLog!I675,\"\")","v":""},{"$f":"IF(DataLog!$C675=\"Log value\",DataLog!J675,\"\")","v":""},{"$f":"IF(DataLog!$C675=\"Log value\",DataLog!K675,\"\")","v":""},{"$f":"IF(DataLog!$C675=\"Log value\",DataLog!L675,\"\")","v":""},{"$f":"IF(DataLog!$C675=\"Log value\",DataLog!M675,\"\")","v":""},{"$f":"IF(DataLog!$C675=\"Log value\",DataLog!N675,\"\")","v":""},{"$f":"IF(DataLog!$C675=\"Log value\",DataLog!O675,\"\")","v":""},{"$f":"IF(DataLog!$C675=\"Log value\",DataLog!P675,\"\")","v":""},{"$f":"IF(DataLog!$C675=\"Log value\",DataLog!Q675,\"\")","v":""},{"$f":"IF(DataLog!$C675=\"Log value\",DataLog!R675,\"\")","v":""},{"$f":"IF(DataLog!$C675=\"Log value\",DataLog!S675,\"\")","v":""},{"$f":"IF(DataLog!$C675=\"Log value\",DataLog!T675,\"\")","v":""},{"$f":"IF(DataLog!$C675=\"Log value\",DataLog!U675,\"\")","v":""},{"$f":"IF(DataLog!$C675=\"Log value\",DataLog!V675,\"\")","v":""},{"$f":"IF(DataLog!$C675=\"Log value\",DataLog!W675,\"\")","v":""},{"$f":"IF(DataLog!$C675=\"Log value\",DataLog!X675,\"\")","v":""},{"$f":"IF(DataLog!$C675=\"Log value\",DataLog!Y675,\"\")","v":""},{"$f":"IF(DataLog!$C675=\"Log value\",DataLog!Z675,\"\")","v":""},{"$f":"IF(DataLog!$C675=\"Log value\",DataLog!AA675,\"\")","v":""},{"$f":"IF(DataLog!$C675=\"Log value\",DataLog!AB675,\"\")","v":""},{"$f":"IF(DataLog!$C675=\"Log value\",DataLog!AC675,\"\")","v":""},{"$f":"IF(DataLog!$C675=\"Log value\",DataLog!AD675,\"\")","v":""},{"$f":"IF(DataLog!$C675=\"Log value\",DataLog!AE675,\"\")","v":""},{"$f":"IF(DataLog!$C675=\"Log value\",DataLog!AF675,\"\")","v":""},{"$f":"IF(DataLog!$C675=\"Log value\",DataLog!AG675,\"\")","v":""},{"$f":"IF(DataLog!$C675=\"Log value\",DataLog!AH675,\"\")","v":""},{"$f":"IF(DataLog!$C675=\"Log value\",DataLog!AI675,\"\")","v":""},{"$f":"IF(DataLog!$C675=\"Log value\",DataLog!AJ675,\"\")","v":""},{"$f":"IF(DataLog!$C675=\"Log value\",DataLog!AK675,\"\")","v":""},{"$f":"IF(DataLog!$C675=\"Log value\",DataLog!AL675,\"\")","v":""},{"$f":"IF(DataLog!$C675=\"Log value\",DataLog!AM675,\"\")","v":""}]
[null,null,null,null,null,null,{"$f":"IF(DataLog!$C676=\"Log value\",DataLog!D676&\"_\"&TEXT(DataLog!B676,\"åååå-mm-dd\"),\"\")","v":""},{"$f":"IF(DataLog!$C676=\"Log value\",DataLog!E676,\"\")","v":""},{"$f":"IF(DataLog!$C676=\"Log value\",DataLog!F676,\"\")","v":""},{"$f":"IF(DataLog!$C676=\"Log value\",DataLog!G676,\"\")","v":""},{"$f":"IF(DataLog!$C676=\"Log value\",DataLog!H676,\"\")","v":""},{"$f":"IF(DataLog!$C676=\"Log value\",DataLog!I676,\"\")","v":""},{"$f":"IF(DataLog!$C676=\"Log value\",DataLog!J676,\"\")","v":""},{"$f":"IF(DataLog!$C676=\"Log value\",DataLog!K676,\"\")","v":""},{"$f":"IF(DataLog!$C676=\"Log value\",DataLog!L676,\"\")","v":""},{"$f":"IF(DataLog!$C676=\"Log value\",DataLog!M676,\"\")","v":""},{"$f":"IF(DataLog!$C676=\"Log value\",DataLog!N676,\"\")","v":""},{"$f":"IF(DataLog!$C676=\"Log value\",DataLog!O676,\"\")","v":""},{"$f":"IF(DataLog!$C676=\"Log value\",DataLog!P676,\"\")","v":""},{"$f":"IF(DataLog!$C676=\"Log value\",DataLog!Q676,\"\")","v":""},{"$f":"IF(DataLog!$C676=\"Log value\",DataLog!R676,\"\")","v":""},{"$f":"IF(DataLog!$C676=\"Log value\",DataLog!S676,\"\")","v":""},{"$f":"IF(DataLog!$C676=\"Log value\",DataLog!T676,\"\")","v":""},{"$f":"IF(DataLog!$C676=\"Log value\",DataLog!U676,\"\")","v":""},{"$f":"IF(DataLog!$C676=\"Log value\",DataLog!V676,\"\")","v":""},{"$f":"IF(DataLog!$C676=\"Log value\",DataLog!W676,\"\")","v":""},{"$f":"IF(DataLog!$C676=\"Log value\",DataLog!X676,\"\")","v":""},{"$f":"IF(DataLog!$C676=\"Log value\",DataLog!Y676,\"\")","v":""},{"$f":"IF(DataLog!$C676=\"Log value\",DataLog!Z676,\"\")","v":""},{"$f":"IF(DataLog!$C676=\"Log value\",DataLog!AA676,\"\")","v":""},{"$f":"IF(DataLog!$C676=\"Log value\",DataLog!AB676,\"\")","v":""},{"$f":"IF(DataLog!$C676=\"Log value\",DataLog!AC676,\"\")","v":""},{"$f":"IF(DataLog!$C676=\"Log value\",DataLog!AD676,\"\")","v":""},{"$f":"IF(DataLog!$C676=\"Log value\",DataLog!AE676,\"\")","v":""},{"$f":"IF(DataLog!$C676=\"Log value\",DataLog!AF676,\"\")","v":""},{"$f":"IF(DataLog!$C676=\"Log value\",DataLog!AG676,\"\")","v":""},{"$f":"IF(DataLog!$C676=\"Log value\",DataLog!AH676,\"\")","v":""},{"$f":"IF(DataLog!$C676=\"Log value\",DataLog!AI676,\"\")","v":""},{"$f":"IF(DataLog!$C676=\"Log value\",DataLog!AJ676,\"\")","v":""},{"$f":"IF(DataLog!$C676=\"Log value\",DataLog!AK676,\"\")","v":""},{"$f":"IF(DataLog!$C676=\"Log value\",DataLog!AL676,\"\")","v":""},{"$f":"IF(DataLog!$C676=\"Log value\",DataLog!AM676,\"\")","v":""}]
[null,null,null,null,null,null,{"$f":"IF(DataLog!$C677=\"Log value\",DataLog!D677&\"_\"&TEXT(DataLog!B677,\"åååå-mm-dd\"),\"\")","v":""},{"$f":"IF(DataLog!$C677=\"Log value\",DataLog!E677,\"\")","v":""},{"$f":"IF(DataLog!$C677=\"Log value\",DataLog!F677,\"\")","v":""},{"$f":"IF(DataLog!$C677=\"Log value\",DataLog!G677,\"\")","v":""},{"$f":"IF(DataLog!$C677=\"Log value\",DataLog!H677,\"\")","v":""},{"$f":"IF(DataLog!$C677=\"Log value\",DataLog!I677,\"\")","v":""},{"$f":"IF(DataLog!$C677=\"Log value\",DataLog!J677,\"\")","v":""},{"$f":"IF(DataLog!$C677=\"Log value\",DataLog!K677,\"\")","v":""},{"$f":"IF(DataLog!$C677=\"Log value\",DataLog!L677,\"\")","v":""},{"$f":"IF(DataLog!$C677=\"Log value\",DataLog!M677,\"\")","v":""},{"$f":"IF(DataLog!$C677=\"Log value\",DataLog!N677,\"\")","v":""},{"$f":"IF(DataLog!$C677=\"Log value\",DataLog!O677,\"\")","v":""},{"$f":"IF(DataLog!$C677=\"Log value\",DataLog!P677,\"\")","v":""},{"$f":"IF(DataLog!$C677=\"Log value\",DataLog!Q677,\"\")","v":""},{"$f":"IF(DataLog!$C677=\"Log value\",DataLog!R677,\"\")","v":""},{"$f":"IF(DataLog!$C677=\"Log value\",DataLog!S677,\"\")","v":""},{"$f":"IF(DataLog!$C677=\"Log value\",DataLog!T677,\"\")","v":""},{"$f":"IF(DataLog!$C677=\"Log value\",DataLog!U677,\"\")","v":""},{"$f":"IF(DataLog!$C677=\"Log value\",DataLog!V677,\"\")","v":""},{"$f":"IF(DataLog!$C677=\"Log value\",DataLog!W677,\"\")","v":""},{"$f":"IF(DataLog!$C677=\"Log value\",DataLog!X677,\"\")","v":""},{"$f":"IF(DataLog!$C677=\"Log value\",DataLog!Y677,\"\")","v":""},{"$f":"IF(DataLog!$C677=\"Log value\",DataLog!Z677,\"\")","v":""},{"$f":"IF(DataLog!$C677=\"Log value\",DataLog!AA677,\"\")","v":""},{"$f":"IF(DataLog!$C677=\"Log value\",DataLog!AB677,\"\")","v":""},{"$f":"IF(DataLog!$C677=\"Log value\",DataLog!AC677,\"\")","v":""},{"$f":"IF(DataLog!$C677=\"Log value\",DataLog!AD677,\"\")","v":""},{"$f":"IF(DataLog!$C677=\"Log value\",DataLog!AE677,\"\")","v":""},{"$f":"IF(DataLog!$C677=\"Log value\",DataLog!AF677,\"\")","v":""},{"$f":"IF(DataLog!$C677=\"Log value\",DataLog!AG677,\"\")","v":""},{"$f":"IF(DataLog!$C677=\"Log value\",DataLog!AH677,\"\")","v":""},{"$f":"IF(DataLog!$C677=\"Log value\",DataLog!AI677,\"\")","v":""},{"$f":"IF(DataLog!$C677=\"Log value\",DataLog!AJ677,\"\")","v":""},{"$f":"IF(DataLog!$C677=\"Log value\",DataLog!AK677,\"\")","v":""},{"$f":"IF(DataLog!$C677=\"Log value\",DataLog!AL677,\"\")","v":""},{"$f":"IF(DataLog!$C677=\"Log value\",DataLog!AM677,\"\")","v":""}]
[null,null,null,null,null,null,{"$f":"IF(DataLog!$C678=\"Log value\",DataLog!D678&\"_\"&TEXT(DataLog!B678,\"åååå-mm-dd\"),\"\")","v":""},{"$f":"IF(DataLog!$C678=\"Log value\",DataLog!E678,\"\")","v":""},{"$f":"IF(DataLog!$C678=\"Log value\",DataLog!F678,\"\")","v":""},{"$f":"IF(DataLog!$C678=\"Log value\",DataLog!G678,\"\")","v":""},{"$f":"IF(DataLog!$C678=\"Log value\",DataLog!H678,\"\")","v":""},{"$f":"IF(DataLog!$C678=\"Log value\",DataLog!I678,\"\")","v":""},{"$f":"IF(DataLog!$C678=\"Log value\",DataLog!J678,\"\")","v":""},{"$f":"IF(DataLog!$C678=\"Log value\",DataLog!K678,\"\")","v":""},{"$f":"IF(DataLog!$C678=\"Log value\",DataLog!L678,\"\")","v":""},{"$f":"IF(DataLog!$C678=\"Log value\",DataLog!M678,\"\")","v":""},{"$f":"IF(DataLog!$C678=\"Log value\",DataLog!N678,\"\")","v":""},{"$f":"IF(DataLog!$C678=\"Log value\",DataLog!O678,\"\")","v":""},{"$f":"IF(DataLog!$C678=\"Log value\",DataLog!P678,\"\")","v":""},{"$f":"IF(DataLog!$C678=\"Log value\",DataLog!Q678,\"\")","v":""},{"$f":"IF(DataLog!$C678=\"Log value\",DataLog!R678,\"\")","v":""},{"$f":"IF(DataLog!$C678=\"Log value\",DataLog!S678,\"\")","v":""},{"$f":"IF(DataLog!$C678=\"Log value\",DataLog!T678,\"\")","v":""},{"$f":"IF(DataLog!$C678=\"Log value\",DataLog!U678,\"\")","v":""},{"$f":"IF(DataLog!$C678=\"Log value\",DataLog!V678,\"\")","v":""},{"$f":"IF(DataLog!$C678=\"Log value\",DataLog!W678,\"\")","v":""},{"$f":"IF(DataLog!$C678=\"Log value\",DataLog!X678,\"\")","v":""},{"$f":"IF(DataLog!$C678=\"Log value\",DataLog!Y678,\"\")","v":""},{"$f":"IF(DataLog!$C678=\"Log value\",DataLog!Z678,\"\")","v":""},{"$f":"IF(DataLog!$C678=\"Log value\",DataLog!AA678,\"\")","v":""},{"$f":"IF(DataLog!$C678=\"Log value\",DataLog!AB678,\"\")","v":""},{"$f":"IF(DataLog!$C678=\"Log value\",DataLog!AC678,\"\")","v":""},{"$f":"IF(DataLog!$C678=\"Log value\",DataLog!AD678,\"\")","v":""},{"$f":"IF(DataLog!$C678=\"Log value\",DataLog!AE678,\"\")","v":""},{"$f":"IF(DataLog!$C678=\"Log value\",DataLog!AF678,\"\")","v":""},{"$f":"IF(DataLog!$C678=\"Log value\",DataLog!AG678,\"\")","v":""},{"$f":"IF(DataLog!$C678=\"Log value\",DataLog!AH678,\"\")","v":""},{"$f":"IF(DataLog!$C678=\"Log value\",DataLog!AI678,\"\")","v":""},{"$f":"IF(DataLog!$C678=\"Log value\",DataLog!AJ678,\"\")","v":""},{"$f":"IF(DataLog!$C678=\"Log value\",DataLog!AK678,\"\")","v":""},{"$f":"IF(DataLog!$C678=\"Log value\",DataLog!AL678,\"\")","v":""},{"$f":"IF(DataLog!$C678=\"Log value\",DataLog!AM678,\"\")","v":""}]
[null,null,null,null,null,null,{"$f":"IF(DataLog!$C679=\"Log value\",DataLog!D679&\"_\"&TEXT(DataLog!B679,\"åååå-mm-dd\"),\"\")","v":""},{"$f":"IF(DataLog!$C679=\"Log value\",DataLog!E679,\"\")","v":""},{"$f":"IF(DataLog!$C679=\"Log value\",DataLog!F679,\"\")","v":""},{"$f":"IF(DataLog!$C679=\"Log value\",DataLog!G679,\"\")","v":""},{"$f":"IF(DataLog!$C679=\"Log value\",DataLog!H679,\"\")","v":""},{"$f":"IF(DataLog!$C679=\"Log value\",DataLog!I679,\"\")","v":""},{"$f":"IF(DataLog!$C679=\"Log value\",DataLog!J679,\"\")","v":""},{"$f":"IF(DataLog!$C679=\"Log value\",DataLog!K679,\"\")","v":""},{"$f":"IF(DataLog!$C679=\"Log value\",DataLog!L679,\"\")","v":""},{"$f":"IF(DataLog!$C679=\"Log value\",DataLog!M679,\"\")","v":""},{"$f":"IF(DataLog!$C679=\"Log value\",DataLog!N679,\"\")","v":""},{"$f":"IF(DataLog!$C679=\"Log value\",DataLog!O679,\"\")","v":""},{"$f":"IF(DataLog!$C679=\"Log value\",DataLog!P679,\"\")","v":""},{"$f":"IF(DataLog!$C679=\"Log value\",DataLog!Q679,\"\")","v":""},{"$f":"IF(DataLog!$C679=\"Log value\",DataLog!R679,\"\")","v":""},{"$f":"IF(DataLog!$C679=\"Log value\",DataLog!S679,\"\")","v":""},{"$f":"IF(DataLog!$C679=\"Log value\",DataLog!T679,\"\")","v":""},{"$f":"IF(DataLog!$C679=\"Log value\",DataLog!U679,\"\")","v":""},{"$f":"IF(DataLog!$C679=\"Log value\",DataLog!V679,\"\")","v":""},{"$f":"IF(DataLog!$C679=\"Log value\",DataLog!W679,\"\")","v":""},{"$f":"IF(DataLog!$C679=\"Log value\",DataLog!X679,\"\")","v":""},{"$f":"IF(DataLog!$C679=\"Log value\",DataLog!Y679,\"\")","v":""},{"$f":"IF(DataLog!$C679=\"Log value\",DataLog!Z679,\"\")","v":""},{"$f":"IF(DataLog!$C679=\"Log value\",DataLog!AA679,\"\")","v":""},{"$f":"IF(DataLog!$C679=\"Log value\",DataLog!AB679,\"\")","v":""},{"$f":"IF(DataLog!$C679=\"Log value\",DataLog!AC679,\"\")","v":""},{"$f":"IF(DataLog!$C679=\"Log value\",DataLog!AD679,\"\")","v":""},{"$f":"IF(DataLog!$C679=\"Log value\",DataLog!AE679,\"\")","v":""},{"$f":"IF(DataLog!$C679=\"Log value\",DataLog!AF679,\"\")","v":""},{"$f":"IF(DataLog!$C679=\"Log value\",DataLog!AG679,\"\")","v":""},{"$f":"IF(DataLog!$C679=\"Log value\",DataLog!AH679,\"\")","v":""},{"$f":"IF(DataLog!$C679=\"Log value\",DataLog!AI679,\"\")","v":""},{"$f":"IF(DataLog!$C679=\"Log value\",DataLog!AJ679,\"\")","v":""},{"$f":"IF(DataLog!$C679=\"Log value\",DataLog!AK679,\"\")","v":""},{"$f":"IF(DataLog!$C679=\"Log value\",DataLog!AL679,\"\")","v":""},{"$f":"IF(DataLog!$C679=\"Log value\",DataLog!AM679,\"\")","v":""}]
[null,null,null,null,null,null,{"$f":"IF(DataLog!$C680=\"Log value\",DataLog!D680&\"_\"&TEXT(DataLog!B680,\"åååå-mm-dd\"),\"\")","v":""},{"$f":"IF(DataLog!$C680=\"Log value\",DataLog!E680,\"\")","v":""},{"$f":"IF(DataLog!$C680=\"Log value\",DataLog!F680,\"\")","v":""},{"$f":"IF(DataLog!$C680=\"Log value\",DataLog!G680,\"\")","v":""},{"$f":"IF(DataLog!$C680=\"Log value\",DataLog!H680,\"\")","v":""},{"$f":"IF(DataLog!$C680=\"Log value\",DataLog!I680,\"\")","v":""},{"$f":"IF(DataLog!$C680=\"Log value\",DataLog!J680,\"\")","v":""},{"$f":"IF(DataLog!$C680=\"Log value\",DataLog!K680,\"\")","v":""},{"$f":"IF(DataLog!$C680=\"Log value\",DataLog!L680,\"\")","v":""},{"$f":"IF(DataLog!$C680=\"Log value\",DataLog!M680,\"\")","v":""},{"$f":"IF(DataLog!$C680=\"Log value\",DataLog!N680,\"\")","v":""},{"$f":"IF(DataLog!$C680=\"Log value\",DataLog!O680,\"\")","v":""},{"$f":"IF(DataLog!$C680=\"Log value\",DataLog!P680,\"\")","v":""},{"$f":"IF(DataLog!$C680=\"Log value\",DataLog!Q680,\"\")","v":""},{"$f":"IF(DataLog!$C680=\"Log value\",DataLog!R680,\"\")","v":""},{"$f":"IF(DataLog!$C680=\"Log value\",DataLog!S680,\"\")","v":""},{"$f":"IF(DataLog!$C680=\"Log value\",DataLog!T680,\"\")","v":""},{"$f":"IF(DataLog!$C680=\"Log value\",DataLog!U680,\"\")","v":""},{"$f":"IF(DataLog!$C680=\"Log value\",DataLog!V680,\"\")","v":""},{"$f":"IF(DataLog!$C680=\"Log value\",DataLog!W680,\"\")","v":""},{"$f":"IF(DataLog!$C680=\"Log value\",DataLog!X680,\"\")","v":""},{"$f":"IF(DataLog!$C680=\"Log value\",DataLog!Y680,\"\")","v":""},{"$f":"IF(DataLog!$C680=\"Log value\",DataLog!Z680,\"\")","v":""},{"$f":"IF(DataLog!$C680=\"Log value\",DataLog!AA680,\"\")","v":""},{"$f":"IF(DataLog!$C680=\"Log value\",DataLog!AB680,\"\")","v":""},{"$f":"IF(DataLog!$C680=\"Log value\",DataLog!AC680,\"\")","v":""},{"$f":"IF(DataLog!$C680=\"Log value\",DataLog!AD680,\"\")","v":""},{"$f":"IF(DataLog!$C680=\"Log value\",DataLog!AE680,\"\")","v":""},{"$f":"IF(DataLog!$C680=\"Log value\",DataLog!AF680,\"\")","v":""},{"$f":"IF(DataLog!$C680=\"Log value\",DataLog!AG680,\"\")","v":""},{"$f":"IF(DataLog!$C680=\"Log value\",DataLog!AH680,\"\")","v":""},{"$f":"IF(DataLog!$C680=\"Log value\",DataLog!AI680,\"\")","v":""},{"$f":"IF(DataLog!$C680=\"Log value\",DataLog!AJ680,\"\")","v":""},{"$f":"IF(DataLog!$C680=\"Log value\",DataLog!AK680,\"\")","v":""},{"$f":"IF(DataLog!$C680=\"Log value\",DataLog!AL680,\"\")","v":""},{"$f":"IF(DataLog!$C680=\"Log value\",DataLog!AM680,\"\")","v":""}]
[null,null,null,null,null,null,{"$f":"IF(DataLog!$C681=\"Log value\",DataLog!D681&\"_\"&TEXT(DataLog!B681,\"åååå-mm-dd\"),\"\")","v":""},{"$f":"IF(DataLog!$C681=\"Log value\",DataLog!E681,\"\")","v":""},{"$f":"IF(DataLog!$C681=\"Log value\",DataLog!F681,\"\")","v":""},{"$f":"IF(DataLog!$C681=\"Log value\",DataLog!G681,\"\")","v":""},{"$f":"IF(DataLog!$C681=\"Log value\",DataLog!H681,\"\")","v":""},{"$f":"IF(DataLog!$C681=\"Log value\",DataLog!I681,\"\")","v":""},{"$f":"IF(DataLog!$C681=\"Log value\",DataLog!J681,\"\")","v":""},{"$f":"IF(DataLog!$C681=\"Log value\",DataLog!K681,\"\")","v":""},{"$f":"IF(DataLog!$C681=\"Log value\",DataLog!L681,\"\")","v":""},{"$f":"IF(DataLog!$C681=\"Log value\",DataLog!M681,\"\")","v":""},{"$f":"IF(DataLog!$C681=\"Log value\",DataLog!N681,\"\")","v":""},{"$f":"IF(DataLog!$C681=\"Log value\",DataLog!O681,\"\")","v":""},{"$f":"IF(DataLog!$C681=\"Log value\",DataLog!P681,\"\")","v":""},{"$f":"IF(DataLog!$C681=\"Log value\",DataLog!Q681,\"\")","v":""},{"$f":"IF(DataLog!$C681=\"Log value\",DataLog!R681,\"\")","v":""},{"$f":"IF(DataLog!$C681=\"Log value\",DataLog!S681,\"\")","v":""},{"$f":"IF(DataLog!$C681=\"Log value\",DataLog!T681,\"\")","v":""},{"$f":"IF(DataLog!$C681=\"Log value\",DataLog!U681,\"\")","v":""},{"$f":"IF(DataLog!$C681=\"Log value\",DataLog!V681,\"\")","v":""},{"$f":"IF(DataLog!$C681=\"Log value\",DataLog!W681,\"\")","v":""},{"$f":"IF(DataLog!$C681=\"Log value\",DataLog!X681,\"\")","v":""},{"$f":"IF(DataLog!$C681=\"Log value\",DataLog!Y681,\"\")","v":""},{"$f":"IF(DataLog!$C681=\"Log value\",DataLog!Z681,\"\")","v":""},{"$f":"IF(DataLog!$C681=\"Log value\",DataLog!AA681,\"\")","v":""},{"$f":"IF(DataLog!$C681=\"Log value\",DataLog!AB681,\"\")","v":""},{"$f":"IF(DataLog!$C681=\"Log value\",DataLog!AC681,\"\")","v":""},{"$f":"IF(DataLog!$C681=\"Log value\",DataLog!AD681,\"\")","v":""},{"$f":"IF(DataLog!$C681=\"Log value\",DataLog!AE681,\"\")","v":""},{"$f":"IF(DataLog!$C681=\"Log value\",DataLog!AF681,\"\")","v":""},{"$f":"IF(DataLog!$C681=\"Log value\",DataLog!AG681,\"\")","v":""},{"$f":"IF(DataLog!$C681=\"Log value\",DataLog!AH681,\"\")","v":""},{"$f":"IF(DataLog!$C681=\"Log value\",DataLog!AI681,\"\")","v":""},{"$f":"IF(DataLog!$C681=\"Log value\",DataLog!AJ681,\"\")","v":""},{"$f":"IF(DataLog!$C681=\"Log value\",DataLog!AK681,\"\")","v":""},{"$f":"IF(DataLog!$C681=\"Log value\",DataLog!AL681,\"\")","v":""},{"$f":"IF(DataLog!$C681=\"Log value\",DataLog!AM681,\"\")","v":""}]
[null,null,null,null,null,null,{"$f":"IF(DataLog!$C682=\"Log value\",DataLog!D682&\"_\"&TEXT(DataLog!B682,\"åååå-mm-dd\"),\"\")","v":""},{"$f":"IF(DataLog!$C682=\"Log value\",DataLog!E682,\"\")","v":""},{"$f":"IF(DataLog!$C682=\"Log value\",DataLog!F682,\"\")","v":""},{"$f":"IF(DataLog!$C682=\"Log value\",DataLog!G682,\"\")","v":""},{"$f":"IF(DataLog!$C682=\"Log value\",DataLog!H682,\"\")","v":""},{"$f":"IF(DataLog!$C682=\"Log value\",DataLog!I682,\"\")","v":""},{"$f":"IF(DataLog!$C682=\"Log value\",DataLog!J682,\"\")","v":""},{"$f":"IF(DataLog!$C682=\"Log value\",DataLog!K682,\"\")","v":""},{"$f":"IF(DataLog!$C682=\"Log value\",DataLog!L682,\"\")","v":""},{"$f":"IF(DataLog!$C682=\"Log value\",DataLog!M682,\"\")","v":""},{"$f":"IF(DataLog!$C682=\"Log value\",DataLog!N682,\"\")","v":""},{"$f":"IF(DataLog!$C682=\"Log value\",DataLog!O682,\"\")","v":""},{"$f":"IF(DataLog!$C682=\"Log value\",DataLog!P682,\"\")","v":""},{"$f":"IF(DataLog!$C682=\"Log value\",DataLog!Q682,\"\")","v":""},{"$f":"IF(DataLog!$C682=\"Log value\",DataLog!R682,\"\")","v":""},{"$f":"IF(DataLog!$C682=\"Log value\",DataLog!S682,\"\")","v":""},{"$f":"IF(DataLog!$C682=\"Log value\",DataLog!T682,\"\")","v":""},{"$f":"IF(DataLog!$C682=\"Log value\",DataLog!U682,\"\")","v":""},{"$f":"IF(DataLog!$C682=\"Log value\",DataLog!V682,\"\")","v":""},{"$f":"IF(DataLog!$C682=\"Log value\",DataLog!W682,\"\")","v":""},{"$f":"IF(DataLog!$C682=\"Log value\",DataLog!X682,\"\")","v":""},{"$f":"IF(DataLog!$C682=\"Log value\",DataLog!Y682,\"\")","v":""},{"$f":"IF(DataLog!$C682=\"Log value\",DataLog!Z682,\"\")","v":""},{"$f":"IF(DataLog!$C682=\"Log value\",DataLog!AA682,\"\")","v":""},{"$f":"IF(DataLog!$C682=\"Log value\",DataLog!AB682,\"\")","v":""},{"$f":"IF(DataLog!$C682=\"Log value\",DataLog!AC682,\"\")","v":""},{"$f":"IF(DataLog!$C682=\"Log value\",DataLog!AD682,\"\")","v":""},{"$f":"IF(DataLog!$C682=\"Log value\",DataLog!AE682,\"\")","v":""},{"$f":"IF(DataLog!$C682=\"Log value\",DataLog!AF682,\"\")","v":""},{"$f":"IF(DataLog!$C682=\"Log value\",DataLog!AG682,\"\")","v":""},{"$f":"IF(DataLog!$C682=\"Log value\",DataLog!AH682,\"\")","v":""},{"$f":"IF(DataLog!$C682=\"Log value\",DataLog!AI682,\"\")","v":""},{"$f":"IF(DataLog!$C682=\"Log value\",DataLog!AJ682,\"\")","v":""},{"$f":"IF(DataLog!$C682=\"Log value\",DataLog!AK682,\"\")","v":""},{"$f":"IF(DataLog!$C682=\"Log value\",DataLog!AL682,\"\")","v":""},{"$f":"IF(DataLog!$C682=\"Log value\",DataLog!AM682,\"\")","v":""}]
[null,null,null,null,null,null,{"$f":"IF(DataLog!$C683=\"Log value\",DataLog!D683&\"_\"&TEXT(DataLog!B683,\"åååå-mm-dd\"),\"\")","v":""},{"$f":"IF(DataLog!$C683=\"Log value\",DataLog!E683,\"\")","v":""},{"$f":"IF(DataLog!$C683=\"Log value\",DataLog!F683,\"\")","v":""},{"$f":"IF(DataLog!$C683=\"Log value\",DataLog!G683,\"\")","v":""},{"$f":"IF(DataLog!$C683=\"Log value\",DataLog!H683,\"\")","v":""},{"$f":"IF(DataLog!$C683=\"Log value\",DataLog!I683,\"\")","v":""},{"$f":"IF(DataLog!$C683=\"Log value\",DataLog!J683,\"\")","v":""},{"$f":"IF(DataLog!$C683=\"Log value\",DataLog!K683,\"\")","v":""},{"$f":"IF(DataLog!$C683=\"Log value\",DataLog!L683,\"\")","v":""},{"$f":"IF(DataLog!$C683=\"Log value\",DataLog!M683,\"\")","v":""},{"$f":"IF(DataLog!$C683=\"Log value\",DataLog!N683,\"\")","v":""},{"$f":"IF(DataLog!$C683=\"Log value\",DataLog!O683,\"\")","v":""},{"$f":"IF(DataLog!$C683=\"Log value\",DataLog!P683,\"\")","v":""},{"$f":"IF(DataLog!$C683=\"Log value\",DataLog!Q683,\"\")","v":""},{"$f":"IF(DataLog!$C683=\"Log value\",DataLog!R683,\"\")","v":""},{"$f":"IF(DataLog!$C683=\"Log value\",DataLog!S683,\"\")","v":""},{"$f":"IF(DataLog!$C683=\"Log value\",DataLog!T683,\"\")","v":""},{"$f":"IF(DataLog!$C683=\"Log value\",DataLog!U683,\"\")","v":""},{"$f":"IF(DataLog!$C683=\"Log value\",DataLog!V683,\"\")","v":""},{"$f":"IF(DataLog!$C683=\"Log value\",DataLog!W683,\"\")","v":""},{"$f":"IF(DataLog!$C683=\"Log value\",DataLog!X683,\"\")","v":""},{"$f":"IF(DataLog!$C683=\"Log value\",DataLog!Y683,\"\")","v":""},{"$f":"IF(DataLog!$C683=\"Log value\",DataLog!Z683,\"\")","v":""},{"$f":"IF(DataLog!$C683=\"Log value\",DataLog!AA683,\"\")","v":""},{"$f":"IF(DataLog!$C683=\"Log value\",DataLog!AB683,\"\")","v":""},{"$f":"IF(DataLog!$C683=\"Log value\",DataLog!AC683,\"\")","v":""},{"$f":"IF(DataLog!$C683=\"Log value\",DataLog!AD683,\"\")","v":""},{"$f":"IF(DataLog!$C683=\"Log value\",DataLog!AE683,\"\")","v":""},{"$f":"IF(DataLog!$C683=\"Log value\",DataLog!AF683,\"\")","v":""},{"$f":"IF(DataLog!$C683=\"Log value\",DataLog!AG683,\"\")","v":""},{"$f":"IF(DataLog!$C683=\"Log value\",DataLog!AH683,\"\")","v":""},{"$f":"IF(DataLog!$C683=\"Log value\",DataLog!AI683,\"\")","v":""},{"$f":"IF(DataLog!$C683=\"Log value\",DataLog!AJ683,\"\")","v":""},{"$f":"IF(DataLog!$C683=\"Log value\",DataLog!AK683,\"\")","v":""},{"$f":"IF(DataLog!$C683=\"Log value\",DataLog!AL683,\"\")","v":""},{"$f":"IF(DataLog!$C683=\"Log value\",DataLog!AM683,\"\")","v":""}]
[null,null,null,null,null,null,{"$f":"IF(DataLog!$C684=\"Log value\",DataLog!D684&\"_\"&TEXT(DataLog!B684,\"åååå-mm-dd\"),\"\")","v":""},{"$f":"IF(DataLog!$C684=\"Log value\",DataLog!E684,\"\")","v":""},{"$f":"IF(DataLog!$C684=\"Log value\",DataLog!F684,\"\")","v":""},{"$f":"IF(DataLog!$C684=\"Log value\",DataLog!G684,\"\")","v":""},{"$f":"IF(DataLog!$C684=\"Log value\",DataLog!H684,\"\")","v":""},{"$f":"IF(DataLog!$C684=\"Log value\",DataLog!I684,\"\")","v":""},{"$f":"IF(DataLog!$C684=\"Log value\",DataLog!J684,\"\")","v":""},{"$f":"IF(DataLog!$C684=\"Log value\",DataLog!K684,\"\")","v":""},{"$f":"IF(DataLog!$C684=\"Log value\",DataLog!L684,\"\")","v":""},{"$f":"IF(DataLog!$C684=\"Log value\",DataLog!M684,\"\")","v":""},{"$f":"IF(DataLog!$C684=\"Log value\",DataLog!N684,\"\")","v":""},{"$f":"IF(DataLog!$C684=\"Log value\",DataLog!O684,\"\")","v":""},{"$f":"IF(DataLog!$C684=\"Log value\",DataLog!P684,\"\")","v":""},{"$f":"IF(DataLog!$C684=\"Log value\",DataLog!Q684,\"\")","v":""},{"$f":"IF(DataLog!$C684=\"Log value\",DataLog!R684,\"\")","v":""},{"$f":"IF(DataLog!$C684=\"Log value\",DataLog!S684,\"\")","v":""},{"$f":"IF(DataLog!$C684=\"Log value\",DataLog!T684,\"\")","v":""},{"$f":"IF(DataLog!$C684=\"Log value\",DataLog!U684,\"\")","v":""},{"$f":"IF(DataLog!$C684=\"Log value\",DataLog!V684,\"\")","v":""},{"$f":"IF(DataLog!$C684=\"Log value\",DataLog!W684,\"\")","v":""},{"$f":"IF(DataLog!$C684=\"Log value\",DataLog!X684,\"\")","v":""},{"$f":"IF(DataLog!$C684=\"Log value\",DataLog!Y684,\"\")","v":""},{"$f":"IF(DataLog!$C684=\"Log value\",DataLog!Z684,\"\")","v":""},{"$f":"IF(DataLog!$C684=\"Log value\",DataLog!AA684,\"\")","v":""},{"$f":"IF(DataLog!$C684=\"Log value\",DataLog!AB684,\"\")","v":""},{"$f":"IF(DataLog!$C684=\"Log value\",DataLog!AC684,\"\")","v":""},{"$f":"IF(DataLog!$C684=\"Log value\",DataLog!AD684,\"\")","v":""},{"$f":"IF(DataLog!$C684=\"Log value\",DataLog!AE684,\"\")","v":""},{"$f":"IF(DataLog!$C684=\"Log value\",DataLog!AF684,\"\")","v":""},{"$f":"IF(DataLog!$C684=\"Log value\",DataLog!AG684,\"\")","v":""},{"$f":"IF(DataLog!$C684=\"Log value\",DataLog!AH684,\"\")","v":""},{"$f":"IF(DataLog!$C684=\"Log value\",DataLog!AI684,\"\")","v":""},{"$f":"IF(DataLog!$C684=\"Log value\",DataLog!AJ684,\"\")","v":""},{"$f":"IF(DataLog!$C684=\"Log value\",DataLog!AK684,\"\")","v":""},{"$f":"IF(DataLog!$C684=\"Log value\",DataLog!AL684,\"\")","v":""},{"$f":"IF(DataLog!$C684=\"Log value\",DataLog!AM684,\"\")","v":""}]
[null,null,null,null,null,null,{"$f":"IF(DataLog!$C685=\"Log value\",DataLog!D685&\"_\"&TEXT(DataLog!B685,\"åååå-mm-dd\"),\"\")","v":""},{"$f":"IF(DataLog!$C685=\"Log value\",DataLog!E685,\"\")","v":""},{"$f":"IF(DataLog!$C685=\"Log value\",DataLog!F685,\"\")","v":""},{"$f":"IF(DataLog!$C685=\"Log value\",DataLog!G685,\"\")","v":""},{"$f":"IF(DataLog!$C685=\"Log value\",DataLog!H685,\"\")","v":""},{"$f":"IF(DataLog!$C685=\"Log value\",DataLog!I685,\"\")","v":""},{"$f":"IF(DataLog!$C685=\"Log value\",DataLog!J685,\"\")","v":""},{"$f":"IF(DataLog!$C685=\"Log value\",DataLog!K685,\"\")","v":""},{"$f":"IF(DataLog!$C685=\"Log value\",DataLog!L685,\"\")","v":""},{"$f":"IF(DataLog!$C685=\"Log value\",DataLog!M685,\"\")","v":""},{"$f":"IF(DataLog!$C685=\"Log value\",DataLog!N685,\"\")","v":""},{"$f":"IF(DataLog!$C685=\"Log value\",DataLog!O685,\"\")","v":""},{"$f":"IF(DataLog!$C685=\"Log value\",DataLog!P685,\"\")","v":""},{"$f":"IF(DataLog!$C685=\"Log value\",DataLog!Q685,\"\")","v":""},{"$f":"IF(DataLog!$C685=\"Log value\",DataLog!R685,\"\")","v":""},{"$f":"IF(DataLog!$C685=\"Log value\",DataLog!S685,\"\")","v":""},{"$f":"IF(DataLog!$C685=\"Log value\",DataLog!T685,\"\")","v":""},{"$f":"IF(DataLog!$C685=\"Log value\",DataLog!U685,\"\")","v":""},{"$f":"IF(DataLog!$C685=\"Log value\",DataLog!V685,\"\")","v":""},{"$f":"IF(DataLog!$C685=\"Log value\",DataLog!W685,\"\")","v":""},{"$f":"IF(DataLog!$C685=\"Log value\",DataLog!X685,\"\")","v":""},{"$f":"IF(DataLog!$C685=\"Log value\",DataLog!Y685,\"\")","v":""},{"$f":"IF(DataLog!$C685=\"Log value\",DataLog!Z685,\"\")","v":""},{"$f":"IF(DataLog!$C685=\"Log value\",DataLog!AA685,\"\")","v":""},{"$f":"IF(DataLog!$C685=\"Log value\",DataLog!AB685,\"\")","v":""},{"$f":"IF(DataLog!$C685=\"Log value\",DataLog!AC685,\"\")","v":""},{"$f":"IF(DataLog!$C685=\"Log value\",DataLog!AD685,\"\")","v":""},{"$f":"IF(DataLog!$C685=\"Log value\",DataLog!AE685,\"\")","v":""},{"$f":"IF(DataLog!$C685=\"Log value\",DataLog!AF685,\"\")","v":""},{"$f":"IF(DataLog!$C685=\"Log value\",DataLog!AG685,\"\")","v":""},{"$f":"IF(DataLog!$C685=\"Log value\",DataLog!AH685,\"\")","v":""},{"$f":"IF(DataLog!$C685=\"Log value\",DataLog!AI685,\"\")","v":""},{"$f":"IF(DataLog!$C685=\"Log value\",DataLog!AJ685,\"\")","v":""},{"$f":"IF(DataLog!$C685=\"Log value\",DataLog!AK685,\"\")","v":""},{"$f":"IF(DataLog!$C685=\"Log value\",DataLog!AL685,\"\")","v":""},{"$f":"IF(DataLog!$C685=\"Log value\",DataLog!AM685,\"\")","v":""}]
[null,null,null,null,null,null,{"$f":"IF(DataLog!$C686=\"Log value\",DataLog!D686&\"_\"&TEXT(DataLog!B686,\"åååå-mm-dd\"),\"\")","v":""},{"$f":"IF(DataLog!$C686=\"Log value\",DataLog!E686,\"\")","v":""},{"$f":"IF(DataLog!$C686=\"Log value\",DataLog!F686,\"\")","v":""},{"$f":"IF(DataLog!$C686=\"Log value\",DataLog!G686,\"\")","v":""},{"$f":"IF(DataLog!$C686=\"Log value\",DataLog!H686,\"\")","v":""},{"$f":"IF(DataLog!$C686=\"Log value\",DataLog!I686,\"\")","v":""},{"$f":"IF(DataLog!$C686=\"Log value\",DataLog!J686,\"\")","v":""},{"$f":"IF(DataLog!$C686=\"Log value\",DataLog!K686,\"\")","v":""},{"$f":"IF(DataLog!$C686=\"Log value\",DataLog!L686,\"\")","v":""},{"$f":"IF(DataLog!$C686=\"Log value\",DataLog!M686,\"\")","v":""},{"$f":"IF(DataLog!$C686=\"Log value\",DataLog!N686,\"\")","v":""},{"$f":"IF(DataLog!$C686=\"Log value\",DataLog!O686,\"\")","v":""},{"$f":"IF(DataLog!$C686=\"Log value\",DataLog!P686,\"\")","v":""},{"$f":"IF(DataLog!$C686=\"Log value\",DataLog!Q686,\"\")","v":""},{"$f":"IF(DataLog!$C686=\"Log value\",DataLog!R686,\"\")","v":""},{"$f":"IF(DataLog!$C686=\"Log value\",DataLog!S686,\"\")","v":""},{"$f":"IF(DataLog!$C686=\"Log value\",DataLog!T686,\"\")","v":""},{"$f":"IF(DataLog!$C686=\"Log value\",DataLog!U686,\"\")","v":""},{"$f":"IF(DataLog!$C686=\"Log value\",DataLog!V686,\"\")","v":""},{"$f":"IF(DataLog!$C686=\"Log value\",DataLog!W686,\"\")","v":""},{"$f":"IF(DataLog!$C686=\"Log value\",DataLog!X686,\"\")","v":""},{"$f":"IF(DataLog!$C686=\"Log value\",DataLog!Y686,\"\")","v":""},{"$f":"IF(DataLog!$C686=\"Log value\",DataLog!Z686,\"\")","v":""},{"$f":"IF(DataLog!$C686=\"Log value\",DataLog!AA686,\"\")","v":""},{"$f":"IF(DataLog!$C686=\"Log value\",DataLog!AB686,\"\")","v":""},{"$f":"IF(DataLog!$C686=\"Log value\",DataLog!AC686,\"\")","v":""},{"$f":"IF(DataLog!$C686=\"Log value\",DataLog!AD686,\"\")","v":""},{"$f":"IF(DataLog!$C686=\"Log value\",DataLog!AE686,\"\")","v":""},{"$f":"IF(DataLog!$C686=\"Log value\",DataLog!AF686,\"\")","v":""},{"$f":"IF(DataLog!$C686=\"Log value\",DataLog!AG686,\"\")","v":""},{"$f":"IF(DataLog!$C686=\"Log value\",DataLog!AH686,\"\")","v":""},{"$f":"IF(DataLog!$C686=\"Log value\",DataLog!AI686,\"\")","v":""},{"$f":"IF(DataLog!$C686=\"Log value\",DataLog!AJ686,\"\")","v":""},{"$f":"IF(DataLog!$C686=\"Log value\",DataLog!AK686,\"\")","v":""},{"$f":"IF(DataLog!$C686=\"Log value\",DataLog!AL686,\"\")","v":""},{"$f":"IF(DataLog!$C686=\"Log value\",DataLog!AM686,\"\")","v":""}]
[null,null,null,null,null,null,{"$f":"IF(DataLog!$C687=\"Log value\",DataLog!D687&\"_\"&TEXT(DataLog!B687,\"åååå-mm-dd\"),\"\")","v":""},{"$f":"IF(DataLog!$C687=\"Log value\",DataLog!E687,\"\")","v":""},{"$f":"IF(DataLog!$C687=\"Log value\",DataLog!F687,\"\")","v":""},{"$f":"IF(DataLog!$C687=\"Log value\",DataLog!G687,\"\")","v":""},{"$f":"IF(DataLog!$C687=\"Log value\",DataLog!H687,\"\")","v":""},{"$f":"IF(DataLog!$C687=\"Log value\",DataLog!I687,\"\")","v":""},{"$f":"IF(DataLog!$C687=\"Log value\",DataLog!J687,\"\")","v":""},{"$f":"IF(DataLog!$C687=\"Log value\",DataLog!K687,\"\")","v":""},{"$f":"IF(DataLog!$C687=\"Log value\",DataLog!L687,\"\")","v":""},{"$f":"IF(DataLog!$C687=\"Log value\",DataLog!M687,\"\")","v":""},{"$f":"IF(DataLog!$C687=\"Log value\",DataLog!N687,\"\")","v":""},{"$f":"IF(DataLog!$C687=\"Log value\",DataLog!O687,\"\")","v":""},{"$f":"IF(DataLog!$C687=\"Log value\",DataLog!P687,\"\")","v":""},{"$f":"IF(DataLog!$C687=\"Log value\",DataLog!Q687,\"\")","v":""},{"$f":"IF(DataLog!$C687=\"Log value\",DataLog!R687,\"\")","v":""},{"$f":"IF(DataLog!$C687=\"Log value\",DataLog!S687,\"\")","v":""},{"$f":"IF(DataLog!$C687=\"Log value\",DataLog!T687,\"\")","v":""},{"$f":"IF(DataLog!$C687=\"Log value\",DataLog!U687,\"\")","v":""},{"$f":"IF(DataLog!$C687=\"Log value\",DataLog!V687,\"\")","v":""},{"$f":"IF(DataLog!$C687=\"Log value\",DataLog!W687,\"\")","v":""},{"$f":"IF(DataLog!$C687=\"Log value\",DataLog!X687,\"\")","v":""},{"$f":"IF(DataLog!$C687=\"Log value\",DataLog!Y687,\"\")","v":""},{"$f":"IF(DataLog!$C687=\"Log value\",DataLog!Z687,\"\")","v":""},{"$f":"IF(DataLog!$C687=\"Log value\",DataLog!AA687,\"\")","v":""},{"$f":"IF(DataLog!$C687=\"Log value\",DataLog!AB687,\"\")","v":""},{"$f":"IF(DataLog!$C687=\"Log value\",DataLog!AC687,\"\")","v":""},{"$f":"IF(DataLog!$C687=\"Log value\",DataLog!AD687,\"\")","v":""},{"$f":"IF(DataLog!$C687=\"Log value\",DataLog!AE687,\"\")","v":""},{"$f":"IF(DataLog!$C687=\"Log value\",DataLog!AF687,\"\")","v":""},{"$f":"IF(DataLog!$C687=\"Log value\",DataLog!AG687,\"\")","v":""},{"$f":"IF(DataLog!$C687=\"Log value\",DataLog!AH687,\"\")","v":""},{"$f":"IF(DataLog!$C687=\"Log value\",DataLog!AI687,\"\")","v":""},{"$f":"IF(DataLog!$C687=\"Log value\",DataLog!AJ687,\"\")","v":""},{"$f":"IF(DataLog!$C687=\"Log value\",DataLog!AK687,\"\")","v":""},{"$f":"IF(DataLog!$C687=\"Log value\",DataLog!AL687,\"\")","v":""},{"$f":"IF(DataLog!$C687=\"Log value\",DataLog!AM687,\"\")","v":""}]
[null,null,null,null,null,null,{"$f":"IF(DataLog!$C688=\"Log value\",DataLog!D688&\"_\"&TEXT(DataLog!B688,\"åååå-mm-dd\"),\"\")","v":""},{"$f":"IF(DataLog!$C688=\"Log value\",DataLog!E688,\"\")","v":""},{"$f":"IF(DataLog!$C688=\"Log value\",DataLog!F688,\"\")","v":""},{"$f":"IF(DataLog!$C688=\"Log value\",DataLog!G688,\"\")","v":""},{"$f":"IF(DataLog!$C688=\"Log value\",DataLog!H688,\"\")","v":""},{"$f":"IF(DataLog!$C688=\"Log value\",DataLog!I688,\"\")","v":""},{"$f":"IF(DataLog!$C688=\"Log value\",DataLog!J688,\"\")","v":""},{"$f":"IF(DataLog!$C688=\"Log value\",DataLog!K688,\"\")","v":""},{"$f":"IF(DataLog!$C688=\"Log value\",DataLog!L688,\"\")","v":""},{"$f":"IF(DataLog!$C688=\"Log value\",DataLog!M688,\"\")","v":""},{"$f":"IF(DataLog!$C688=\"Log value\",DataLog!N688,\"\")","v":""},{"$f":"IF(DataLog!$C688=\"Log value\",DataLog!O688,\"\")","v":""},{"$f":"IF(DataLog!$C688=\"Log value\",DataLog!P688,\"\")","v":""},{"$f":"IF(DataLog!$C688=\"Log value\",DataLog!Q688,\"\")","v":""},{"$f":"IF(DataLog!$C688=\"Log value\",DataLog!R688,\"\")","v":""},{"$f":"IF(DataLog!$C688=\"Log value\",DataLog!S688,\"\")","v":""},{"$f":"IF(DataLog!$C688=\"Log value\",DataLog!T688,\"\")","v":""},{"$f":"IF(DataLog!$C688=\"Log value\",DataLog!U688,\"\")","v":""},{"$f":"IF(DataLog!$C688=\"Log value\",DataLog!V688,\"\")","v":""},{"$f":"IF(DataLog!$C688=\"Log value\",DataLog!W688,\"\")","v":""},{"$f":"IF(DataLog!$C688=\"Log value\",DataLog!X688,\"\")","v":""},{"$f":"IF(DataLog!$C688=\"Log value\",DataLog!Y688,\"\")","v":""},{"$f":"IF(DataLog!$C688=\"Log value\",DataLog!Z688,\"\")","v":""},{"$f":"IF(DataLog!$C688=\"Log value\",DataLog!AA688,\"\")","v":""},{"$f":"IF(DataLog!$C688=\"Log value\",DataLog!AB688,\"\")","v":""},{"$f":"IF(DataLog!$C688=\"Log value\",DataLog!AC688,\"\")","v":""},{"$f":"IF(DataLog!$C688=\"Log value\",DataLog!AD688,\"\")","v":""},{"$f":"IF(DataLog!$C688=\"Log value\",DataLog!AE688,\"\")","v":""},{"$f":"IF(DataLog!$C688=\"Log value\",DataLog!AF688,\"\")","v":""},{"$f":"IF(DataLog!$C688=\"Log value\",DataLog!AG688,\"\")","v":""},{"$f":"IF(DataLog!$C688=\"Log value\",DataLog!AH688,\"\")","v":""},{"$f":"IF(DataLog!$C688=\"Log value\",DataLog!AI688,\"\")","v":""},{"$f":"IF(DataLog!$C688=\"Log value\",DataLog!AJ688,\"\")","v":""},{"$f":"IF(DataLog!$C688=\"Log value\",DataLog!AK688,\"\")","v":""},{"$f":"IF(DataLog!$C688=\"Log value\",DataLog!AL688,\"\")","v":""},{"$f":"IF(DataLog!$C688=\"Log value\",DataLog!AM688,\"\")","v":""}]
[null,null,null,null,null,null,{"$f":"IF(DataLog!$C689=\"Log value\",DataLog!D689&\"_\"&TEXT(DataLog!B689,\"åååå-mm-dd\"),\"\")","v":""},{"$f":"IF(DataLog!$C689=\"Log value\",DataLog!E689,\"\")","v":""},{"$f":"IF(DataLog!$C689=\"Log value\",DataLog!F689,\"\")","v":""},{"$f":"IF(DataLog!$C689=\"Log value\",DataLog!G689,\"\")","v":""},{"$f":"IF(DataLog!$C689=\"Log value\",DataLog!H689,\"\")","v":""},{"$f":"IF(DataLog!$C689=\"Log value\",DataLog!I689,\"\")","v":""},{"$f":"IF(DataLog!$C689=\"Log value\",DataLog!J689,\"\")","v":""},{"$f":"IF(DataLog!$C689=\"Log value\",DataLog!K689,\"\")","v":""},{"$f":"IF(DataLog!$C689=\"Log value\",DataLog!L689,\"\")","v":""},{"$f":"IF(DataLog!$C689=\"Log value\",DataLog!M689,\"\")","v":""},{"$f":"IF(DataLog!$C689=\"Log value\",DataLog!N689,\"\")","v":""},{"$f":"IF(DataLog!$C689=\"Log value\",DataLog!O689,\"\")","v":""},{"$f":"IF(DataLog!$C689=\"Log value\",DataLog!P689,\"\")","v":""},{"$f":"IF(DataLog!$C689=\"Log value\",DataLog!Q689,\"\")","v":""},{"$f":"IF(DataLog!$C689=\"Log value\",DataLog!R689,\"\")","v":""},{"$f":"IF(DataLog!$C689=\"Log value\",DataLog!S689,\"\")","v":""},{"$f":"IF(DataLog!$C689=\"Log value\",DataLog!T689,\"\")","v":""},{"$f":"IF(DataLog!$C689=\"Log value\",DataLog!U689,\"\")","v":""},{"$f":"IF(DataLog!$C689=\"Log value\",DataLog!V689,\"\")","v":""},{"$f":"IF(DataLog!$C689=\"Log value\",DataLog!W689,\"\")","v":""},{"$f":"IF(DataLog!$C689=\"Log value\",DataLog!X689,\"\")","v":""},{"$f":"IF(DataLog!$C689=\"Log value\",DataLog!Y689,\"\")","v":""},{"$f":"IF(DataLog!$C689=\"Log value\",DataLog!Z689,\"\")","v":""},{"$f":"IF(DataLog!$C689=\"Log value\",DataLog!AA689,\"\")","v":""},{"$f":"IF(DataLog!$C689=\"Log value\",DataLog!AB689,\"\")","v":""},{"$f":"IF(DataLog!$C689=\"Log value\",DataLog!AC689,\"\")","v":""},{"$f":"IF(DataLog!$C689=\"Log value\",DataLog!AD689,\"\")","v":""},{"$f":"IF(DataLog!$C689=\"Log value\",DataLog!AE689,\"\")","v":""},{"$f":"IF(DataLog!$C689=\"Log value\",DataLog!AF689,\"\")","v":""},{"$f":"IF(DataLog!$C689=\"Log value\",DataLog!AG689,\"\")","v":""},{"$f":"IF(DataLog!$C689=\"Log value\",DataLog!AH689,\"\")","v":""},{"$f":"IF(DataLog!$C689=\"Log value\",DataLog!AI689,\"\")","v":""},{"$f":"IF(DataLog!$C689=\"Log value\",DataLog!AJ689,\"\")","v":""},{"$f":"IF(DataLog!$C689=\"Log value\",DataLog!AK689,\"\")","v":""},{"$f":"IF(DataLog!$C689=\"Log value\",DataLog!AL689,\"\")","v":""},{"$f":"IF(DataLog!$C689=\"Log value\",DataLog!AM689,\"\")","v":""}]
[null,null,null,null,null,null,{"$f":"IF(DataLog!$C690=\"Log value\",DataLog!D690&\"_\"&TEXT(DataLog!B690,\"åååå-mm-dd\"),\"\")","v":""},{"$f":"IF(DataLog!$C690=\"Log value\",DataLog!E690,\"\")","v":""},{"$f":"IF(DataLog!$C690=\"Log value\",DataLog!F690,\"\")","v":""},{"$f":"IF(DataLog!$C690=\"Log value\",DataLog!G690,\"\")","v":""},{"$f":"IF(DataLog!$C690=\"Log value\",DataLog!H690,\"\")","v":""},{"$f":"IF(DataLog!$C690=\"Log value\",DataLog!I690,\"\")","v":""},{"$f":"IF(DataLog!$C690=\"Log value\",DataLog!J690,\"\")","v":""},{"$f":"IF(DataLog!$C690=\"Log value\",DataLog!K690,\"\")","v":""},{"$f":"IF(DataLog!$C690=\"Log value\",DataLog!L690,\"\")","v":""},{"$f":"IF(DataLog!$C690=\"Log value\",DataLog!M690,\"\")","v":""},{"$f":"IF(DataLog!$C690=\"Log value\",DataLog!N690,\"\")","v":""},{"$f":"IF(DataLog!$C690=\"Log value\",DataLog!O690,\"\")","v":""},{"$f":"IF(DataLog!$C690=\"Log value\",DataLog!P690,\"\")","v":""},{"$f":"IF(DataLog!$C690=\"Log value\",DataLog!Q690,\"\")","v":""},{"$f":"IF(DataLog!$C690=\"Log value\",DataLog!R690,\"\")","v":""},{"$f":"IF(DataLog!$C690=\"Log value\",DataLog!S690,\"\")","v":""},{"$f":"IF(DataLog!$C690=\"Log value\",DataLog!T690,\"\")","v":""},{"$f":"IF(DataLog!$C690=\"Log value\",DataLog!U690,\"\")","v":""},{"$f":"IF(DataLog!$C690=\"Log value\",DataLog!V690,\"\")","v":""},{"$f":"IF(DataLog!$C690=\"Log value\",DataLog!W690,\"\")","v":""},{"$f":"IF(DataLog!$C690=\"Log value\",DataLog!X690,\"\")","v":""},{"$f":"IF(DataLog!$C690=\"Log value\",DataLog!Y690,\"\")","v":""},{"$f":"IF(DataLog!$C690=\"Log value\",DataLog!Z690,\"\")","v":""},{"$f":"IF(DataLog!$C690=\"Log value\",DataLog!AA690,\"\")","v":""},{"$f":"IF(DataLog!$C690=\"Log value\",DataLog!AB690,\"\")","v":""},{"$f":"IF(DataLog!$C690=\"Log value\",DataLog!AC690,\"\")","v":""},{"$f":"IF(DataLog!$C690=\"Log value\",DataLog!AD690,\"\")","v":""},{"$f":"IF(DataLog!$C690=\"Log value\",DataLog!AE690,\"\")","v":""},{"$f":"IF(DataLog!$C690=\"Log value\",DataLog!AF690,\"\")","v":""},{"$f":"IF(DataLog!$C690=\"Log value\",DataLog!AG690,\"\")","v":""},{"$f":"IF(DataLog!$C690=\"Log value\",DataLog!AH690,\"\")","v":""},{"$f":"IF(DataLog!$C690=\"Log value\",DataLog!AI690,\"\")","v":""},{"$f":"IF(DataLog!$C690=\"Log value\",DataLog!AJ690,\"\")","v":""},{"$f":"IF(DataLog!$C690=\"Log value\",DataLog!AK690,\"\")","v":""},{"$f":"IF(DataLog!$C690=\"Log value\",DataLog!AL690,\"\")","v":""},{"$f":"IF(DataLog!$C690=\"Log value\",DataLog!AM690,\"\")","v":""}]
[null,null,null,null,null,null,{"$f":"IF(DataLog!$C691=\"Log value\",DataLog!D691&\"_\"&TEXT(DataLog!B691,\"åååå-mm-dd\"),\"\")","v":""},{"$f":"IF(DataLog!$C691=\"Log value\",DataLog!E691,\"\")","v":""},{"$f":"IF(DataLog!$C691=\"Log value\",DataLog!F691,\"\")","v":""},{"$f":"IF(DataLog!$C691=\"Log value\",DataLog!G691,\"\")","v":""},{"$f":"IF(DataLog!$C691=\"Log value\",DataLog!H691,\"\")","v":""},{"$f":"IF(DataLog!$C691=\"Log value\",DataLog!I691,\"\")","v":""},{"$f":"IF(DataLog!$C691=\"Log value\",DataLog!J691,\"\")","v":""},{"$f":"IF(DataLog!$C691=\"Log value\",DataLog!K691,\"\")","v":""},{"$f":"IF(DataLog!$C691=\"Log value\",DataLog!L691,\"\")","v":""},{"$f":"IF(DataLog!$C691=\"Log value\",DataLog!M691,\"\")","v":""},{"$f":"IF(DataLog!$C691=\"Log value\",DataLog!N691,\"\")","v":""},{"$f":"IF(DataLog!$C691=\"Log value\",DataLog!O691,\"\")","v":""},{"$f":"IF(DataLog!$C691=\"Log value\",DataLog!P691,\"\")","v":""},{"$f":"IF(DataLog!$C691=\"Log value\",DataLog!Q691,\"\")","v":""},{"$f":"IF(DataLog!$C691=\"Log value\",DataLog!R691,\"\")","v":""},{"$f":"IF(DataLog!$C691=\"Log value\",DataLog!S691,\"\")","v":""},{"$f":"IF(DataLog!$C691=\"Log value\",DataLog!T691,\"\")","v":""},{"$f":"IF(DataLog!$C691=\"Log value\",DataLog!U691,\"\")","v":""},{"$f":"IF(DataLog!$C691=\"Log value\",DataLog!V691,\"\")","v":""},{"$f":"IF(DataLog!$C691=\"Log value\",DataLog!W691,\"\")","v":""},{"$f":"IF(DataLog!$C691=\"Log value\",DataLog!X691,\"\")","v":""},{"$f":"IF(DataLog!$C691=\"Log value\",DataLog!Y691,\"\")","v":""},{"$f":"IF(DataLog!$C691=\"Log value\",DataLog!Z691,\"\")","v":""},{"$f":"IF(DataLog!$C691=\"Log value\",DataLog!AA691,\"\")","v":""},{"$f":"IF(DataLog!$C691=\"Log value\",DataLog!AB691,\"\")","v":""},{"$f":"IF(DataLog!$C691=\"Log value\",DataLog!AC691,\"\")","v":""},{"$f":"IF(DataLog!$C691=\"Log value\",DataLog!AD691,\"\")","v":""},{"$f":"IF(DataLog!$C691=\"Log value\",DataLog!AE691,\"\")","v":""},{"$f":"IF(DataLog!$C691=\"Log value\",DataLog!AF691,\"\")","v":""},{"$f":"IF(DataLog!$C691=\"Log value\",DataLog!AG691,\"\")","v":""},{"$f":"IF(DataLog!$C691=\"Log value\",DataLog!AH691,\"\")","v":""},{"$f":"IF(DataLog!$C691=\"Log value\",DataLog!AI691,\"\")","v":""},{"$f":"IF(DataLog!$C691=\"Log value\",DataLog!AJ691,\"\")","v":""},{"$f":"IF(DataLog!$C691=\"Log value\",DataLog!AK691,\"\")","v":""},{"$f":"IF(DataLog!$C691=\"Log value\",DataLog!AL691,\"\")","v":""},{"$f":"IF(DataLog!$C691=\"Log value\",DataLog!AM691,\"\")","v":""}]
[null,null,null,null,null,null,{"$f":"IF(DataLog!$C692=\"Log value\",DataLog!D692&\"_\"&TEXT(DataLog!B692,\"åååå-mm-dd\"),\"\")","v":""},{"$f":"IF(DataLog!$C692=\"Log value\",DataLog!E692,\"\")","v":""},{"$f":"IF(DataLog!$C692=\"Log value\",DataLog!F692,\"\")","v":""},{"$f":"IF(DataLog!$C692=\"Log value\",DataLog!G692,\"\")","v":""},{"$f":"IF(DataLog!$C692=\"Log value\",DataLog!H692,\"\")","v":""},{"$f":"IF(DataLog!$C692=\"Log value\",DataLog!I692,\"\")","v":""},{"$f":"IF(DataLog!$C692=\"Log value\",DataLog!J692,\"\")","v":""},{"$f":"IF(DataLog!$C692=\"Log value\",DataLog!K692,\"\")","v":""},{"$f":"IF(DataLog!$C692=\"Log value\",DataLog!L692,\"\")","v":""},{"$f":"IF(DataLog!$C692=\"Log value\",DataLog!M692,\"\")","v":""},{"$f":"IF(DataLog!$C692=\"Log value\",DataLog!N692,\"\")","v":""},{"$f":"IF(DataLog!$C692=\"Log value\",DataLog!O692,\"\")","v":""},{"$f":"IF(DataLog!$C692=\"Log value\",DataLog!P692,\"\")","v":""},{"$f":"IF(DataLog!$C692=\"Log value\",DataLog!Q692,\"\")","v":""},{"$f":"IF(DataLog!$C692=\"Log value\",DataLog!R692,\"\")","v":""},{"$f":"IF(DataLog!$C692=\"Log value\",DataLog!S692,\"\")","v":""},{"$f":"IF(DataLog!$C692=\"Log value\",DataLog!T692,\"\")","v":""},{"$f":"IF(DataLog!$C692=\"Log value\",DataLog!U692,\"\")","v":""},{"$f":"IF(DataLog!$C692=\"Log value\",DataLog!V692,\"\")","v":""},{"$f":"IF(DataLog!$C692=\"Log value\",DataLog!W692,\"\")","v":""},{"$f":"IF(DataLog!$C692=\"Log value\",DataLog!X692,\"\")","v":""},{"$f":"IF(DataLog!$C692=\"Log value\",DataLog!Y692,\"\")","v":""},{"$f":"IF(DataLog!$C692=\"Log value\",DataLog!Z692,\"\")","v":""},{"$f":"IF(DataLog!$C692=\"Log value\",DataLog!AA692,\"\")","v":""},{"$f":"IF(DataLog!$C692=\"Log value\",DataLog!AB692,\"\")","v":""},{"$f":"IF(DataLog!$C692=\"Log value\",DataLog!AC692,\"\")","v":""},{"$f":"IF(DataLog!$C692=\"Log value\",DataLog!AD692,\"\")","v":""},{"$f":"IF(DataLog!$C692=\"Log value\",DataLog!AE692,\"\")","v":""},{"$f":"IF(DataLog!$C692=\"Log value\",DataLog!AF692,\"\")","v":""},{"$f":"IF(DataLog!$C692=\"Log value\",DataLog!AG692,\"\")","v":""},{"$f":"IF(DataLog!$C692=\"Log value\",DataLog!AH692,\"\")","v":""},{"$f":"IF(DataLog!$C692=\"Log value\",DataLog!AI692,\"\")","v":""},{"$f":"IF(DataLog!$C692=\"Log value\",DataLog!AJ692,\"\")","v":""},{"$f":"IF(DataLog!$C692=\"Log value\",DataLog!AK692,\"\")","v":""},{"$f":"IF(DataLog!$C692=\"Log value\",DataLog!AL692,\"\")","v":""},{"$f":"IF(DataLog!$C692=\"Log value\",DataLog!AM692,\"\")","v":""}]
[null,null,null,null,null,null,{"$f":"IF(DataLog!$C693=\"Log value\",DataLog!D693&\"_\"&TEXT(DataLog!B693,\"åååå-mm-dd\"),\"\")","v":""},{"$f":"IF(DataLog!$C693=\"Log value\",DataLog!E693,\"\")","v":""},{"$f":"IF(DataLog!$C693=\"Log value\",DataLog!F693,\"\")","v":""},{"$f":"IF(DataLog!$C693=\"Log value\",DataLog!G693,\"\")","v":""},{"$f":"IF(DataLog!$C693=\"Log value\",DataLog!H693,\"\")","v":""},{"$f":"IF(DataLog!$C693=\"Log value\",DataLog!I693,\"\")","v":""},{"$f":"IF(DataLog!$C693=\"Log value\",DataLog!J693,\"\")","v":""},{"$f":"IF(DataLog!$C693=\"Log value\",DataLog!K693,\"\")","v":""},{"$f":"IF(DataLog!$C693=\"Log value\",DataLog!L693,\"\")","v":""},{"$f":"IF(DataLog!$C693=\"Log value\",DataLog!M693,\"\")","v":""},{"$f":"IF(DataLog!$C693=\"Log value\",DataLog!N693,\"\")","v":""},{"$f":"IF(DataLog!$C693=\"Log value\",DataLog!O693,\"\")","v":""},{"$f":"IF(DataLog!$C693=\"Log value\",DataLog!P693,\"\")","v":""},{"$f":"IF(DataLog!$C693=\"Log value\",DataLog!Q693,\"\")","v":""},{"$f":"IF(DataLog!$C693=\"Log value\",DataLog!R693,\"\")","v":""},{"$f":"IF(DataLog!$C693=\"Log value\",DataLog!S693,\"\")","v":""},{"$f":"IF(DataLog!$C693=\"Log value\",DataLog!T693,\"\")","v":""},{"$f":"IF(DataLog!$C693=\"Log value\",DataLog!U693,\"\")","v":""},{"$f":"IF(DataLog!$C693=\"Log value\",DataLog!V693,\"\")","v":""},{"$f":"IF(DataLog!$C693=\"Log value\",DataLog!W693,\"\")","v":""},{"$f":"IF(DataLog!$C693=\"Log value\",DataLog!X693,\"\")","v":""},{"$f":"IF(DataLog!$C693=\"Log value\",DataLog!Y693,\"\")","v":""},{"$f":"IF(DataLog!$C693=\"Log value\",DataLog!Z693,\"\")","v":""},{"$f":"IF(DataLog!$C693=\"Log value\",DataLog!AA693,\"\")","v":""},{"$f":"IF(DataLog!$C693=\"Log value\",DataLog!AB693,\"\")","v":""},{"$f":"IF(DataLog!$C693=\"Log value\",DataLog!AC693,\"\")","v":""},{"$f":"IF(DataLog!$C693=\"Log value\",DataLog!AD693,\"\")","v":""},{"$f":"IF(DataLog!$C693=\"Log value\",DataLog!AE693,\"\")","v":""},{"$f":"IF(DataLog!$C693=\"Log value\",DataLog!AF693,\"\")","v":""},{"$f":"IF(DataLog!$C693=\"Log value\",DataLog!AG693,\"\")","v":""},{"$f":"IF(DataLog!$C693=\"Log value\",DataLog!AH693,\"\")","v":""},{"$f":"IF(DataLog!$C693=\"Log value\",DataLog!AI693,\"\")","v":""},{"$f":"IF(DataLog!$C693=\"Log value\",DataLog!AJ693,\"\")","v":""},{"$f":"IF(DataLog!$C693=\"Log value\",DataLog!AK693,\"\")","v":""},{"$f":"IF(DataLog!$C693=\"Log value\",DataLog!AL693,\"\")","v":""},{"$f":"IF(DataLog!$C693=\"Log value\",DataLog!AM693,\"\")","v":""}]
[null,null,null,null,null,null,{"$f":"IF(DataLog!$C694=\"Log value\",DataLog!D694&\"_\"&TEXT(DataLog!B694,\"åååå-mm-dd\"),\"\")","v":""},{"$f":"IF(DataLog!$C694=\"Log value\",DataLog!E694,\"\")","v":""},{"$f":"IF(DataLog!$C694=\"Log value\",DataLog!F694,\"\")","v":""},{"$f":"IF(DataLog!$C694=\"Log value\",DataLog!G694,\"\")","v":""},{"$f":"IF(DataLog!$C694=\"Log value\",DataLog!H694,\"\")","v":""},{"$f":"IF(DataLog!$C694=\"Log value\",DataLog!I694,\"\")","v":""},{"$f":"IF(DataLog!$C694=\"Log value\",DataLog!J694,\"\")","v":""},{"$f":"IF(DataLog!$C694=\"Log value\",DataLog!K694,\"\")","v":""},{"$f":"IF(DataLog!$C694=\"Log value\",DataLog!L694,\"\")","v":""},{"$f":"IF(DataLog!$C694=\"Log value\",DataLog!M694,\"\")","v":""},{"$f":"IF(DataLog!$C694=\"Log value\",DataLog!N694,\"\")","v":""},{"$f":"IF(DataLog!$C694=\"Log value\",DataLog!O694,\"\")","v":""},{"$f":"IF(DataLog!$C694=\"Log value\",DataLog!P694,\"\")","v":""},{"$f":"IF(DataLog!$C694=\"Log value\",DataLog!Q694,\"\")","v":""},{"$f":"IF(DataLog!$C694=\"Log value\",DataLog!R694,\"\")","v":""},{"$f":"IF(DataLog!$C694=\"Log value\",DataLog!S694,\"\")","v":""},{"$f":"IF(DataLog!$C694=\"Log value\",DataLog!T694,\"\")","v":""},{"$f":"IF(DataLog!$C694=\"Log value\",DataLog!U694,\"\")","v":""},{"$f":"IF(DataLog!$C694=\"Log value\",DataLog!V694,\"\")","v":""},{"$f":"IF(DataLog!$C694=\"Log value\",DataLog!W694,\"\")","v":""},{"$f":"IF(DataLog!$C694=\"Log value\",DataLog!X694,\"\")","v":""},{"$f":"IF(DataLog!$C694=\"Log value\",DataLog!Y694,\"\")","v":""},{"$f":"IF(DataLog!$C694=\"Log value\",DataLog!Z694,\"\")","v":""},{"$f":"IF(DataLog!$C694=\"Log value\",DataLog!AA694,\"\")","v":""},{"$f":"IF(DataLog!$C694=\"Log value\",DataLog!AB694,\"\")","v":""},{"$f":"IF(DataLog!$C694=\"Log value\",DataLog!AC694,\"\")","v":""},{"$f":"IF(DataLog!$C694=\"Log value\",DataLog!AD694,\"\")","v":""},{"$f":"IF(DataLog!$C694=\"Log value\",DataLog!AE694,\"\")","v":""},{"$f":"IF(DataLog!$C694=\"Log value\",DataLog!AF694,\"\")","v":""},{"$f":"IF(DataLog!$C694=\"Log value\",DataLog!AG694,\"\")","v":""},{"$f":"IF(DataLog!$C694=\"Log value\",DataLog!AH694,\"\")","v":""},{"$f":"IF(DataLog!$C694=\"Log value\",DataLog!AI694,\"\")","v":""},{"$f":"IF(DataLog!$C694=\"Log value\",DataLog!AJ694,\"\")","v":""},{"$f":"IF(DataLog!$C694=\"Log value\",DataLog!AK694,\"\")","v":""},{"$f":"IF(DataLog!$C694=\"Log value\",DataLog!AL694,\"\")","v":""},{"$f":"IF(DataLog!$C694=\"Log value\",DataLog!AM694,\"\")","v":""}]
[null,null,null,null,null,null,{"$f":"IF(DataLog!$C695=\"Log value\",DataLog!D695&\"_\"&TEXT(DataLog!B695,\"åååå-mm-dd\"),\"\")","v":""},{"$f":"IF(DataLog!$C695=\"Log value\",DataLog!E695,\"\")","v":""},{"$f":"IF(DataLog!$C695=\"Log value\",DataLog!F695,\"\")","v":""},{"$f":"IF(DataLog!$C695=\"Log value\",DataLog!G695,\"\")","v":""},{"$f":"IF(DataLog!$C695=\"Log value\",DataLog!H695,\"\")","v":""},{"$f":"IF(DataLog!$C695=\"Log value\",DataLog!I695,\"\")","v":""},{"$f":"IF(DataLog!$C695=\"Log value\",DataLog!J695,\"\")","v":""},{"$f":"IF(DataLog!$C695=\"Log value\",DataLog!K695,\"\")","v":""},{"$f":"IF(DataLog!$C695=\"Log value\",DataLog!L695,\"\")","v":""},{"$f":"IF(DataLog!$C695=\"Log value\",DataLog!M695,\"\")","v":""},{"$f":"IF(DataLog!$C695=\"Log value\",DataLog!N695,\"\")","v":""},{"$f":"IF(DataLog!$C695=\"Log value\",DataLog!O695,\"\")","v":""},{"$f":"IF(DataLog!$C695=\"Log value\",DataLog!P695,\"\")","v":""},{"$f":"IF(DataLog!$C695=\"Log value\",DataLog!Q695,\"\")","v":""},{"$f":"IF(DataLog!$C695=\"Log value\",DataLog!R695,\"\")","v":""},{"$f":"IF(DataLog!$C695=\"Log value\",DataLog!S695,\"\")","v":""},{"$f":"IF(DataLog!$C695=\"Log value\",DataLog!T695,\"\")","v":""},{"$f":"IF(DataLog!$C695=\"Log value\",DataLog!U695,\"\")","v":""},{"$f":"IF(DataLog!$C695=\"Log value\",DataLog!V695,\"\")","v":""},{"$f":"IF(DataLog!$C695=\"Log value\",DataLog!W695,\"\")","v":""},{"$f":"IF(DataLog!$C695=\"Log value\",DataLog!X695,\"\")","v":""},{"$f":"IF(DataLog!$C695=\"Log value\",DataLog!Y695,\"\")","v":""},{"$f":"IF(DataLog!$C695=\"Log value\",DataLog!Z695,\"\")","v":""},{"$f":"IF(DataLog!$C695=\"Log value\",DataLog!AA695,\"\")","v":""},{"$f":"IF(DataLog!$C695=\"Log value\",DataLog!AB695,\"\")","v":""},{"$f":"IF(DataLog!$C695=\"Log value\",DataLog!AC695,\"\")","v":""},{"$f":"IF(DataLog!$C695=\"Log value\",DataLog!AD695,\"\")","v":""},{"$f":"IF(DataLog!$C695=\"Log value\",DataLog!AE695,\"\")","v":""},{"$f":"IF(DataLog!$C695=\"Log value\",DataLog!AF695,\"\")","v":""},{"$f":"IF(DataLog!$C695=\"Log value\",DataLog!AG695,\"\")","v":""},{"$f":"IF(DataLog!$C695=\"Log value\",DataLog!AH695,\"\")","v":""},{"$f":"IF(DataLog!$C695=\"Log value\",DataLog!AI695,\"\")","v":""},{"$f":"IF(DataLog!$C695=\"Log value\",DataLog!AJ695,\"\")","v":""},{"$f":"IF(DataLog!$C695=\"Log value\",DataLog!AK695,\"\")","v":""},{"$f":"IF(DataLog!$C695=\"Log value\",DataLog!AL695,\"\")","v":""},{"$f":"IF(DataLog!$C695=\"Log value\",DataLog!AM695,\"\")","v":""}]
[null,null,null,null,null,null,{"$f":"IF(DataLog!$C696=\"Log value\",DataLog!D696&\"_\"&TEXT(DataLog!B696,\"åååå-mm-dd\"),\"\")","v":""},{"$f":"IF(DataLog!$C696=\"Log value\",DataLog!E696,\"\")","v":""},{"$f":"IF(DataLog!$C696=\"Log value\",DataLog!F696,\"\")","v":""},{"$f":"IF(DataLog!$C696=\"Log value\",DataLog!G696,\"\")","v":""},{"$f":"IF(DataLog!$C696=\"Log value\",DataLog!H696,\"\")","v":""},{"$f":"IF(DataLog!$C696=\"Log value\",DataLog!I696,\"\")","v":""},{"$f":"IF(DataLog!$C696=\"Log value\",DataLog!J696,\"\")","v":""},{"$f":"IF(DataLog!$C696=\"Log value\",DataLog!K696,\"\")","v":""},{"$f":"IF(DataLog!$C696=\"Log value\",DataLog!L696,\"\")","v":""},{"$f":"IF(DataLog!$C696=\"Log value\",DataLog!M696,\"\")","v":""},{"$f":"IF(DataLog!$C696=\"Log value\",DataLog!N696,\"\")","v":""},{"$f":"IF(DataLog!$C696=\"Log value\",DataLog!O696,\"\")","v":""},{"$f":"IF(DataLog!$C696=\"Log value\",DataLog!P696,\"\")","v":""},{"$f":"IF(DataLog!$C696=\"Log value\",DataLog!Q696,\"\")","v":""},{"$f":"IF(DataLog!$C696=\"Log value\",DataLog!R696,\"\")","v":""},{"$f":"IF(DataLog!$C696=\"Log value\",DataLog!S696,\"\")","v":""},{"$f":"IF(DataLog!$C696=\"Log value\",DataLog!T696,\"\")","v":""},{"$f":"IF(DataLog!$C696=\"Log value\",DataLog!U696,\"\")","v":""},{"$f":"IF(DataLog!$C696=\"Log value\",DataLog!V696,\"\")","v":""},{"$f":"IF(DataLog!$C696=\"Log value\",DataLog!W696,\"\")","v":""},{"$f":"IF(DataLog!$C696=\"Log value\",DataLog!X696,\"\")","v":""},{"$f":"IF(DataLog!$C696=\"Log value\",DataLog!Y696,\"\")","v":""},{"$f":"IF(DataLog!$C696=\"Log value\",DataLog!Z696,\"\")","v":""},{"$f":"IF(DataLog!$C696=\"Log value\",DataLog!AA696,\"\")","v":""},{"$f":"IF(DataLog!$C696=\"Log value\",DataLog!AB696,\"\")","v":""},{"$f":"IF(DataLog!$C696=\"Log value\",DataLog!AC696,\"\")","v":""},{"$f":"IF(DataLog!$C696=\"Log value\",DataLog!AD696,\"\")","v":""},{"$f":"IF(DataLog!$C696=\"Log value\",DataLog!AE696,\"\")","v":""},{"$f":"IF(DataLog!$C696=\"Log value\",DataLog!AF696,\"\")","v":""},{"$f":"IF(DataLog!$C696=\"Log value\",DataLog!AG696,\"\")","v":""},{"$f":"IF(DataLog!$C696=\"Log value\",DataLog!AH696,\"\")","v":""},{"$f":"IF(DataLog!$C696=\"Log value\",DataLog!AI696,\"\")","v":""},{"$f":"IF(DataLog!$C696=\"Log value\",DataLog!AJ696,\"\")","v":""},{"$f":"IF(DataLog!$C696=\"Log value\",DataLog!AK696,\"\")","v":""},{"$f":"IF(DataLog!$C696=\"Log value\",DataLog!AL696,\"\")","v":""},{"$f":"IF(DataLog!$C696=\"Log value\",DataLog!AM696,\"\")","v":""}]
[null,null,null,null,null,null,{"$f":"IF(DataLog!$C697=\"Log value\",DataLog!D697&\"_\"&TEXT(DataLog!B697,\"åååå-mm-dd\"),\"\")","v":""},{"$f":"IF(DataLog!$C697=\"Log value\",DataLog!E697,\"\")","v":""},{"$f":"IF(DataLog!$C697=\"Log value\",DataLog!F697,\"\")","v":""},{"$f":"IF(DataLog!$C697=\"Log value\",DataLog!G697,\"\")","v":""},{"$f":"IF(DataLog!$C697=\"Log value\",DataLog!H697,\"\")","v":""},{"$f":"IF(DataLog!$C697=\"Log value\",DataLog!I697,\"\")","v":""},{"$f":"IF(DataLog!$C697=\"Log value\",DataLog!J697,\"\")","v":""},{"$f":"IF(DataLog!$C697=\"Log value\",DataLog!K697,\"\")","v":""},{"$f":"IF(DataLog!$C697=\"Log value\",DataLog!L697,\"\")","v":""},{"$f":"IF(DataLog!$C697=\"Log value\",DataLog!M697,\"\")","v":""},{"$f":"IF(DataLog!$C697=\"Log value\",DataLog!N697,\"\")","v":""},{"$f":"IF(DataLog!$C697=\"Log value\",DataLog!O697,\"\")","v":""},{"$f":"IF(DataLog!$C697=\"Log value\",DataLog!P697,\"\")","v":""},{"$f":"IF(DataLog!$C697=\"Log value\",DataLog!Q697,\"\")","v":""},{"$f":"IF(DataLog!$C697=\"Log value\",DataLog!R697,\"\")","v":""},{"$f":"IF(DataLog!$C697=\"Log value\",DataLog!S697,\"\")","v":""},{"$f":"IF(DataLog!$C697=\"Log value\",DataLog!T697,\"\")","v":""},{"$f":"IF(DataLog!$C697=\"Log value\",DataLog!U697,\"\")","v":""},{"$f":"IF(DataLog!$C697=\"Log value\",DataLog!V697,\"\")","v":""},{"$f":"IF(DataLog!$C697=\"Log value\",DataLog!W697,\"\")","v":""},{"$f":"IF(DataLog!$C697=\"Log value\",DataLog!X697,\"\")","v":""},{"$f":"IF(DataLog!$C697=\"Log value\",DataLog!Y697,\"\")","v":""},{"$f":"IF(DataLog!$C697=\"Log value\",DataLog!Z697,\"\")","v":""},{"$f":"IF(DataLog!$C697=\"Log value\",DataLog!AA697,\"\")","v":""},{"$f":"IF(DataLog!$C697=\"Log value\",DataLog!AB697,\"\")","v":""},{"$f":"IF(DataLog!$C697=\"Log value\",DataLog!AC697,\"\")","v":""},{"$f":"IF(DataLog!$C697=\"Log value\",DataLog!AD697,\"\")","v":""},{"$f":"IF(DataLog!$C697=\"Log value\",DataLog!AE697,\"\")","v":""},{"$f":"IF(DataLog!$C697=\"Log value\",DataLog!AF697,\"\")","v":""},{"$f":"IF(DataLog!$C697=\"Log value\",DataLog!AG697,\"\")","v":""},{"$f":"IF(DataLog!$C697=\"Log value\",DataLog!AH697,\"\")","v":""},{"$f":"IF(DataLog!$C697=\"Log value\",DataLog!AI697,\"\")","v":""},{"$f":"IF(DataLog!$C697=\"Log value\",DataLog!AJ697,\"\")","v":""},{"$f":"IF(DataLog!$C697=\"Log value\",DataLog!AK697,\"\")","v":""},{"$f":"IF(DataLog!$C697=\"Log value\",DataLog!AL697,\"\")","v":""},{"$f":"IF(DataLog!$C697=\"Log value\",DataLog!AM697,\"\")","v":""}]
[null,null,null,null,null,null,{"$f":"IF(DataLog!$C698=\"Log value\",DataLog!D698&\"_\"&TEXT(DataLog!B698,\"åååå-mm-dd\"),\"\")","v":""},{"$f":"IF(DataLog!$C698=\"Log value\",DataLog!E698,\"\")","v":""},{"$f":"IF(DataLog!$C698=\"Log value\",DataLog!F698,\"\")","v":""},{"$f":"IF(DataLog!$C698=\"Log value\",DataLog!G698,\"\")","v":""},{"$f":"IF(DataLog!$C698=\"Log value\",DataLog!H698,\"\")","v":""},{"$f":"IF(DataLog!$C698=\"Log value\",DataLog!I698,\"\")","v":""},{"$f":"IF(DataLog!$C698=\"Log value\",DataLog!J698,\"\")","v":""},{"$f":"IF(DataLog!$C698=\"Log value\",DataLog!K698,\"\")","v":""},{"$f":"IF(DataLog!$C698=\"Log value\",DataLog!L698,\"\")","v":""},{"$f":"IF(DataLog!$C698=\"Log value\",DataLog!M698,\"\")","v":""},{"$f":"IF(DataLog!$C698=\"Log value\",DataLog!N698,\"\")","v":""},{"$f":"IF(DataLog!$C698=\"Log value\",DataLog!O698,\"\")","v":""},{"$f":"IF(DataLog!$C698=\"Log value\",DataLog!P698,\"\")","v":""},{"$f":"IF(DataLog!$C698=\"Log value\",DataLog!Q698,\"\")","v":""},{"$f":"IF(DataLog!$C698=\"Log value\",DataLog!R698,\"\")","v":""},{"$f":"IF(DataLog!$C698=\"Log value\",DataLog!S698,\"\")","v":""},{"$f":"IF(DataLog!$C698=\"Log value\",DataLog!T698,\"\")","v":""},{"$f":"IF(DataLog!$C698=\"Log value\",DataLog!U698,\"\")","v":""},{"$f":"IF(DataLog!$C698=\"Log value\",DataLog!V698,\"\")","v":""},{"$f":"IF(DataLog!$C698=\"Log value\",DataLog!W698,\"\")","v":""},{"$f":"IF(DataLog!$C698=\"Log value\",DataLog!X698,\"\")","v":""},{"$f":"IF(DataLog!$C698=\"Log value\",DataLog!Y698,\"\")","v":""},{"$f":"IF(DataLog!$C698=\"Log value\",DataLog!Z698,\"\")","v":""},{"$f":"IF(DataLog!$C698=\"Log value\",DataLog!AA698,\"\")","v":""},{"$f":"IF(DataLog!$C698=\"Log value\",DataLog!AB698,\"\")","v":""},{"$f":"IF(DataLog!$C698=\"Log value\",DataLog!AC698,\"\")","v":""},{"$f":"IF(DataLog!$C698=\"Log value\",DataLog!AD698,\"\")","v":""},{"$f":"IF(DataLog!$C698=\"Log value\",DataLog!AE698,\"\")","v":""},{"$f":"IF(DataLog!$C698=\"Log value\",DataLog!AF698,\"\")","v":""},{"$f":"IF(DataLog!$C698=\"Log value\",DataLog!AG698,\"\")","v":""},{"$f":"IF(DataLog!$C698=\"Log value\",DataLog!AH698,\"\")","v":""},{"$f":"IF(DataLog!$C698=\"Log value\",DataLog!AI698,\"\")","v":""},{"$f":"IF(DataLog!$C698=\"Log value\",DataLog!AJ698,\"\")","v":""},{"$f":"IF(DataLog!$C698=\"Log value\",DataLog!AK698,\"\")","v":""},{"$f":"IF(DataLog!$C698=\"Log value\",DataLog!AL698,\"\")","v":""},{"$f":"IF(DataLog!$C698=\"Log value\",DataLog!AM698,\"\")","v":""}]
[null,null,null,null,null,null,{"$f":"IF(DataLog!$C699=\"Log value\",DataLog!D699&\"_\"&TEXT(DataLog!B699,\"åååå-mm-dd\"),\"\")","v":""},{"$f":"IF(DataLog!$C699=\"Log value\",DataLog!E699,\"\")","v":""},{"$f":"IF(DataLog!$C699=\"Log value\",DataLog!F699,\"\")","v":""},{"$f":"IF(DataLog!$C699=\"Log value\",DataLog!G699,\"\")","v":""},{"$f":"IF(DataLog!$C699=\"Log value\",DataLog!H699,\"\")","v":""},{"$f":"IF(DataLog!$C699=\"Log value\",DataLog!I699,\"\")","v":""},{"$f":"IF(DataLog!$C699=\"Log value\",DataLog!J699,\"\")","v":""},{"$f":"IF(DataLog!$C699=\"Log value\",DataLog!K699,\"\")","v":""},{"$f":"IF(DataLog!$C699=\"Log value\",DataLog!L699,\"\")","v":""},{"$f":"IF(DataLog!$C699=\"Log value\",DataLog!M699,\"\")","v":""},{"$f":"IF(DataLog!$C699=\"Log value\",DataLog!N699,\"\")","v":""},{"$f":"IF(DataLog!$C699=\"Log value\",DataLog!O699,\"\")","v":""},{"$f":"IF(DataLog!$C699=\"Log value\",DataLog!P699,\"\")","v":""},{"$f":"IF(DataLog!$C699=\"Log value\",DataLog!Q699,\"\")","v":""},{"$f":"IF(DataLog!$C699=\"Log value\",DataLog!R699,\"\")","v":""},{"$f":"IF(DataLog!$C699=\"Log value\",DataLog!S699,\"\")","v":""},{"$f":"IF(DataLog!$C699=\"Log value\",DataLog!T699,\"\")","v":""},{"$f":"IF(DataLog!$C699=\"Log value\",DataLog!U699,\"\")","v":""},{"$f":"IF(DataLog!$C699=\"Log value\",DataLog!V699,\"\")","v":""},{"$f":"IF(DataLog!$C699=\"Log value\",DataLog!W699,\"\")","v":""},{"$f":"IF(DataLog!$C699=\"Log value\",DataLog!X699,\"\")","v":""},{"$f":"IF(DataLog!$C699=\"Log value\",DataLog!Y699,\"\")","v":""},{"$f":"IF(DataLog!$C699=\"Log value\",DataLog!Z699,\"\")","v":""},{"$f":"IF(DataLog!$C699=\"Log value\",DataLog!AA699,\"\")","v":""},{"$f":"IF(DataLog!$C699=\"Log value\",DataLog!AB699,\"\")","v":""},{"$f":"IF(DataLog!$C699=\"Log value\",DataLog!AC699,\"\")","v":""},{"$f":"IF(DataLog!$C699=\"Log value\",DataLog!AD699,\"\")","v":""},{"$f":"IF(DataLog!$C699=\"Log value\",DataLog!AE699,\"\")","v":""},{"$f":"IF(DataLog!$C699=\"Log value\",DataLog!AF699,\"\")","v":""},{"$f":"IF(DataLog!$C699=\"Log value\",DataLog!AG699,\"\")","v":""},{"$f":"IF(DataLog!$C699=\"Log value\",DataLog!AH699,\"\")","v":""},{"$f":"IF(DataLog!$C699=\"Log value\",DataLog!AI699,\"\")","v":""},{"$f":"IF(DataLog!$C699=\"Log value\",DataLog!AJ699,\"\")","v":""},{"$f":"IF(DataLog!$C699=\"Log value\",DataLog!AK699,\"\")","v":""},{"$f":"IF(DataLog!$C699=\"Log value\",DataLog!AL699,\"\")","v":""},{"$f":"IF(DataLog!$C699=\"Log value\",DataLog!AM699,\"\")","v":""}]
[null,null,null,null,null,null,{"$f":"IF(DataLog!$C700=\"Log value\",DataLog!D700&\"_\"&TEXT(DataLog!B700,\"åååå-mm-dd\"),\"\")","v":""},{"$f":"IF(DataLog!$C700=\"Log value\",DataLog!E700,\"\")","v":""},{"$f":"IF(DataLog!$C700=\"Log value\",DataLog!F700,\"\")","v":""},{"$f":"IF(DataLog!$C700=\"Log value\",DataLog!G700,\"\")","v":""},{"$f":"IF(DataLog!$C700=\"Log value\",DataLog!H700,\"\")","v":""},{"$f":"IF(DataLog!$C700=\"Log value\",DataLog!I700,\"\")","v":""},{"$f":"IF(DataLog!$C700=\"Log value\",DataLog!J700,\"\")","v":""},{"$f":"IF(DataLog!$C700=\"Log value\",DataLog!K700,\"\")","v":""},{"$f":"IF(DataLog!$C700=\"Log value\",DataLog!L700,\"\")","v":""},{"$f":"IF(DataLog!$C700=\"Log value\",DataLog!M700,\"\")","v":""},{"$f":"IF(DataLog!$C700=\"Log value\",DataLog!N700,\"\")","v":""},{"$f":"IF(DataLog!$C700=\"Log value\",DataLog!O700,\"\")","v":""},{"$f":"IF(DataLog!$C700=\"Log value\",DataLog!P700,\"\")","v":""},{"$f":"IF(DataLog!$C700=\"Log value\",DataLog!Q700,\"\")","v":""},{"$f":"IF(DataLog!$C700=\"Log value\",DataLog!R700,\"\")","v":""},{"$f":"IF(DataLog!$C700=\"Log value\",DataLog!S700,\"\")","v":""},{"$f":"IF(DataLog!$C700=\"Log value\",DataLog!T700,\"\")","v":""},{"$f":"IF(DataLog!$C700=\"Log value\",DataLog!U700,\"\")","v":""},{"$f":"IF(DataLog!$C700=\"Log value\",DataLog!V700,\"\")","v":""},{"$f":"IF(DataLog!$C700=\"Log value\",DataLog!W700,\"\")","v":""},{"$f":"IF(DataLog!$C700=\"Log value\",DataLog!X700,\"\")","v":""},{"$f":"IF(DataLog!$C700=\"Log value\",DataLog!Y700,\"\")","v":""},{"$f":"IF(DataLog!$C700=\"Log value\",DataLog!Z700,\"\")","v":""},{"$f":"IF(DataLog!$C700=\"Log value\",DataLog!AA700,\"\")","v":""},{"$f":"IF(DataLog!$C700=\"Log value\",DataLog!AB700,\"\")","v":""},{"$f":"IF(DataLog!$C700=\"Log value\",DataLog!AC700,\"\")","v":""},{"$f":"IF(DataLog!$C700=\"Log value\",DataLog!AD700,\"\")","v":""},{"$f":"IF(DataLog!$C700=\"Log value\",DataLog!AE700,\"\")","v":""},{"$f":"IF(DataLog!$C700=\"Log value\",DataLog!AF700,\"\")","v":""},{"$f":"IF(DataLog!$C700=\"Log value\",DataLog!AG700,\"\")","v":""},{"$f":"IF(DataLog!$C700=\"Log value\",DataLog!AH700,\"\")","v":""},{"$f":"IF(DataLog!$C700=\"Log value\",DataLog!AI700,\"\")","v":""},{"$f":"IF(DataLog!$C700=\"Log value\",DataLog!AJ700,\"\")","v":""},{"$f":"IF(DataLog!$C700=\"Log value\",DataLog!AK700,\"\")","v":""},{"$f":"IF(DataLog!$C700=\"Log value\",DataLog!AL700,\"\")","v":""},{"$f":"IF(DataLog!$C700=\"Log value\",DataLog!AM700,\"\")","v":""}]
[null,null,null,null,null,null,{"$f":"IF(DataLog!$C701=\"Log value\",DataLog!D701&\"_\"&TEXT(DataLog!B701,\"åååå-mm-dd\"),\"\")","v":""},{"$f":"IF(DataLog!$C701=\"Log value\",DataLog!E701,\"\")","v":""},{"$f":"IF(DataLog!$C701=\"Log value\",DataLog!F701,\"\")","v":""},{"$f":"IF(DataLog!$C701=\"Log value\",DataLog!G701,\"\")","v":""},{"$f":"IF(DataLog!$C701=\"Log value\",DataLog!H701,\"\")","v":""},{"$f":"IF(DataLog!$C701=\"Log value\",DataLog!I701,\"\")","v":""},{"$f":"IF(DataLog!$C701=\"Log value\",DataLog!J701,\"\")","v":""},{"$f":"IF(DataLog!$C701=\"Log value\",DataLog!K701,\"\")","v":""},{"$f":"IF(DataLog!$C701=\"Log value\",DataLog!L701,\"\")","v":""},{"$f":"IF(DataLog!$C701=\"Log value\",DataLog!M701,\"\")","v":""},{"$f":"IF(DataLog!$C701=\"Log value\",DataLog!N701,\"\")","v":""},{"$f":"IF(DataLog!$C701=\"Log value\",DataLog!O701,\"\")","v":""},{"$f":"IF(DataLog!$C701=\"Log value\",DataLog!P701,\"\")","v":""},{"$f":"IF(DataLog!$C701=\"Log value\",DataLog!Q701,\"\")","v":""},{"$f":"IF(DataLog!$C701=\"Log value\",DataLog!R701,\"\")","v":""},{"$f":"IF(DataLog!$C701=\"Log value\",DataLog!S701,\"\")","v":""},{"$f":"IF(DataLog!$C701=\"Log value\",DataLog!T701,\"\")","v":""},{"$f":"IF(DataLog!$C701=\"Log value\",DataLog!U701,\"\")","v":""},{"$f":"IF(DataLog!$C701=\"Log value\",DataLog!V701,\"\")","v":""},{"$f":"IF(DataLog!$C701=\"Log value\",DataLog!W701,\"\")","v":""},{"$f":"IF(DataLog!$C701=\"Log value\",DataLog!X701,\"\")","v":""},{"$f":"IF(DataLog!$C701=\"Log value\",DataLog!Y701,\"\")","v":""},{"$f":"IF(DataLog!$C701=\"Log value\",DataLog!Z701,\"\")","v":""},{"$f":"IF(DataLog!$C701=\"Log value\",DataLog!AA701,\"\")","v":""},{"$f":"IF(DataLog!$C701=\"Log value\",DataLog!AB701,\"\")","v":""},{"$f":"IF(DataLog!$C701=\"Log value\",DataLog!AC701,\"\")","v":""},{"$f":"IF(DataLog!$C701=\"Log value\",DataLog!AD701,\"\")","v":""},{"$f":"IF(DataLog!$C701=\"Log value\",DataLog!AE701,\"\")","v":""},{"$f":"IF(DataLog!$C701=\"Log value\",DataLog!AF701,\"\")","v":""},{"$f":"IF(DataLog!$C701=\"Log value\",DataLog!AG701,\"\")","v":""},{"$f":"IF(DataLog!$C701=\"Log value\",DataLog!AH701,\"\")","v":""},{"$f":"IF(DataLog!$C701=\"Log value\",DataLog!AI701,\"\")","v":""},{"$f":"IF(DataLog!$C701=\"Log value\",DataLog!AJ701,\"\")","v":""},{"$f":"IF(DataLog!$C701=\"Log value\",DataLog!AK701,\"\")","v":""},{"$f":"IF(DataLog!$C701=\"Log value\",DataLog!AL701,\"\")","v":""},{"$f":"IF(DataLog!$C701=\"Log value\",DataLog!AM701,\"\")","v":""}]
[null,null,null,null,null,null,{"$f":"IF(DataLog!$C702=\"Log value\",DataLog!D702&\"_\"&TEXT(DataLog!B702,\"åååå-mm-dd\"),\"\")","v":""},{"$f":"IF(DataLog!$C702=\"Log value\",DataLog!E702,\"\")","v":""},{"$f":"IF(DataLog!$C702=\"Log value\",DataLog!F702,\"\")","v":""},{"$f":"IF(DataLog!$C702=\"Log value\",DataLog!G702,\"\")","v":""},{"$f":"IF(DataLog!$C702=\"Log value\",DataLog!H702,\"\")","v":""},{"$f":"IF(DataLog!$C702=\"Log value\",DataLog!I702,\"\")","v":""},{"$f":"IF(DataLog!$C702=\"Log value\",DataLog!J702,\"\")","v":""},{"$f":"IF(DataLog!$C702=\"Log value\",DataLog!K702,\"\")","v":""},{"$f":"IF(DataLog!$C702=\"Log value\",DataLog!L702,\"\")","v":""},{"$f":"IF(DataLog!$C702=\"Log value\",DataLog!M702,\"\")","v":""},{"$f":"IF(DataLog!$C702=\"Log value\",DataLog!N702,\"\")","v":""},{"$f":"IF(DataLog!$C702=\"Log value\",DataLog!O702,\"\")","v":""},{"$f":"IF(DataLog!$C702=\"Log value\",DataLog!P702,\"\")","v":""},{"$f":"IF(DataLog!$C702=\"Log value\",DataLog!Q702,\"\")","v":""},{"$f":"IF(DataLog!$C702=\"Log value\",DataLog!R702,\"\")","v":""},{"$f":"IF(DataLog!$C702=\"Log value\",DataLog!S702,\"\")","v":""},{"$f":"IF(DataLog!$C702=\"Log value\",DataLog!T702,\"\")","v":""},{"$f":"IF(DataLog!$C702=\"Log value\",DataLog!U702,\"\")","v":""},{"$f":"IF(DataLog!$C702=\"Log value\",DataLog!V702,\"\")","v":""},{"$f":"IF(DataLog!$C702=\"Log value\",DataLog!W702,\"\")","v":""},{"$f":"IF(DataLog!$C702=\"Log value\",DataLog!X702,\"\")","v":""},{"$f":"IF(DataLog!$C702=\"Log value\",DataLog!Y702,\"\")","v":""},{"$f":"IF(DataLog!$C702=\"Log value\",DataLog!Z702,\"\")","v":""},{"$f":"IF(DataLog!$C702=\"Log value\",DataLog!AA702,\"\")","v":""},{"$f":"IF(DataLog!$C702=\"Log value\",DataLog!AB702,\"\")","v":""},{"$f":"IF(DataLog!$C702=\"Log value\",DataLog!AC702,\"\")","v":""},{"$f":"IF(DataLog!$C702=\"Log value\",DataLog!AD702,\"\")","v":""},{"$f":"IF(DataLog!$C702=\"Log value\",DataLog!AE702,\"\")","v":""},{"$f":"IF(DataLog!$C702=\"Log value\",DataLog!AF702,\"\")","v":""},{"$f":"IF(DataLog!$C702=\"Log value\",DataLog!AG702,\"\")","v":""},{"$f":"IF(DataLog!$C702=\"Log value\",DataLog!AH702,\"\")","v":""},{"$f":"IF(DataLog!$C702=\"Log value\",DataLog!AI702,\"\")","v":""},{"$f":"IF(DataLog!$C702=\"Log value\",DataLog!AJ702,\"\")","v":""},{"$f":"IF(DataLog!$C702=\"Log value\",DataLog!AK702,\"\")","v":""},{"$f":"IF(DataLog!$C702=\"Log value\",DataLog!AL702,\"\")","v":""},{"$f":"IF(DataLog!$C702=\"Log value\",DataLog!AM702,\"\")","v":""}]
[null,null,null,null,null,null,{"$f":"IF(DataLog!$C703=\"Log value\",DataLog!D703&\"_\"&TEXT(DataLog!B703,\"åååå-mm-dd\"),\"\")","v":""},{"$f":"IF(DataLog!$C703=\"Log value\",DataLog!E703,\"\")","v":""},{"$f":"IF(DataLog!$C703=\"Log value\",DataLog!F703,\"\")","v":""},{"$f":"IF(DataLog!$C703=\"Log value\",DataLog!G703,\"\")","v":""},{"$f":"IF(DataLog!$C703=\"Log value\",DataLog!H703,\"\")","v":""},{"$f":"IF(DataLog!$C703=\"Log value\",DataLog!I703,\"\")","v":""},{"$f":"IF(DataLog!$C703=\"Log value\",DataLog!J703,\"\")","v":""},{"$f":"IF(DataLog!$C703=\"Log value\",DataLog!K703,\"\")","v":""},{"$f":"IF(DataLog!$C703=\"Log value\",DataLog!L703,\"\")","v":""},{"$f":"IF(DataLog!$C703=\"Log value\",DataLog!M703,\"\")","v":""},{"$f":"IF(DataLog!$C703=\"Log value\",DataLog!N703,\"\")","v":""},{"$f":"IF(DataLog!$C703=\"Log value\",DataLog!O703,\"\")","v":""},{"$f":"IF(DataLog!$C703=\"Log value\",DataLog!P703,\"\")","v":""},{"$f":"IF(DataLog!$C703=\"Log value\",DataLog!Q703,\"\")","v":""},{"$f":"IF(DataLog!$C703=\"Log value\",DataLog!R703,\"\")","v":""},{"$f":"IF(DataLog!$C703=\"Log value\",DataLog!S703,\"\")","v":""},{"$f":"IF(DataLog!$C703=\"Log value\",DataLog!T703,\"\")","v":""},{"$f":"IF(DataLog!$C703=\"Log value\",DataLog!U703,\"\")","v":""},{"$f":"IF(DataLog!$C703=\"Log value\",DataLog!V703,\"\")","v":""},{"$f":"IF(DataLog!$C703=\"Log value\",DataLog!W703,\"\")","v":""},{"$f":"IF(DataLog!$C703=\"Log value\",DataLog!X703,\"\")","v":""},{"$f":"IF(DataLog!$C703=\"Log value\",DataLog!Y703,\"\")","v":""},{"$f":"IF(DataLog!$C703=\"Log value\",DataLog!Z703,\"\")","v":""},{"$f":"IF(DataLog!$C703=\"Log value\",DataLog!AA703,\"\")","v":""},{"$f":"IF(DataLog!$C703=\"Log value\",DataLog!AB703,\"\")","v":""},{"$f":"IF(DataLog!$C703=\"Log value\",DataLog!AC703,\"\")","v":""},{"$f":"IF(DataLog!$C703=\"Log value\",DataLog!AD703,\"\")","v":""},{"$f":"IF(DataLog!$C703=\"Log value\",DataLog!AE703,\"\")","v":""},{"$f":"IF(DataLog!$C703=\"Log value\",DataLog!AF703,\"\")","v":""},{"$f":"IF(DataLog!$C703=\"Log value\",DataLog!AG703,\"\")","v":""},{"$f":"IF(DataLog!$C703=\"Log value\",DataLog!AH703,\"\")","v":""},{"$f":"IF(DataLog!$C703=\"Log value\",DataLog!AI703,\"\")","v":""},{"$f":"IF(DataLog!$C703=\"Log value\",DataLog!AJ703,\"\")","v":""},{"$f":"IF(DataLog!$C703=\"Log value\",DataLog!AK703,\"\")","v":""},{"$f":"IF(DataLog!$C703=\"Log value\",DataLog!AL703,\"\")","v":""},{"$f":"IF(DataLog!$C703=\"Log value\",DataLog!AM703,\"\")","v":""}]
[null,null,null,null,null,null,{"$f":"IF(DataLog!$C704=\"Log value\",DataLog!D704&\"_\"&TEXT(DataLog!B704,\"åååå-mm-dd\"),\"\")","v":""},{"$f":"IF(DataLog!$C704=\"Log value\",DataLog!E704,\"\")","v":""},{"$f":"IF(DataLog!$C704=\"Log value\",DataLog!F704,\"\")","v":""},{"$f":"IF(DataLog!$C704=\"Log value\",DataLog!G704,\"\")","v":""},{"$f":"IF(DataLog!$C704=\"Log value\",DataLog!H704,\"\")","v":""},{"$f":"IF(DataLog!$C704=\"Log value\",DataLog!I704,\"\")","v":""},{"$f":"IF(DataLog!$C704=\"Log value\",DataLog!J704,\"\")","v":""},{"$f":"IF(DataLog!$C704=\"Log value\",DataLog!K704,\"\")","v":""},{"$f":"IF(DataLog!$C704=\"Log value\",DataLog!L704,\"\")","v":""},{"$f":"IF(DataLog!$C704=\"Log value\",DataLog!M704,\"\")","v":""},{"$f":"IF(DataLog!$C704=\"Log value\",DataLog!N704,\"\")","v":""},{"$f":"IF(DataLog!$C704=\"Log value\",DataLog!O704,\"\")","v":""},{"$f":"IF(DataLog!$C704=\"Log value\",DataLog!P704,\"\")","v":""},{"$f":"IF(DataLog!$C704=\"Log value\",DataLog!Q704,\"\")","v":""},{"$f":"IF(DataLog!$C704=\"Log value\",DataLog!R704,\"\")","v":""},{"$f":"IF(DataLog!$C704=\"Log value\",DataLog!S704,\"\")","v":""},{"$f":"IF(DataLog!$C704=\"Log value\",DataLog!T704,\"\")","v":""},{"$f":"IF(DataLog!$C704=\"Log value\",DataLog!U704,\"\")","v":""},{"$f":"IF(DataLog!$C704=\"Log value\",DataLog!V704,\"\")","v":""},{"$f":"IF(DataLog!$C704=\"Log value\",DataLog!W704,\"\")","v":""},{"$f":"IF(DataLog!$C704=\"Log value\",DataLog!X704,\"\")","v":""},{"$f":"IF(DataLog!$C704=\"Log value\",DataLog!Y704,\"\")","v":""},{"$f":"IF(DataLog!$C704=\"Log value\",DataLog!Z704,\"\")","v":""},{"$f":"IF(DataLog!$C704=\"Log value\",DataLog!AA704,\"\")","v":""},{"$f":"IF(DataLog!$C704=\"Log value\",DataLog!AB704,\"\")","v":""},{"$f":"IF(DataLog!$C704=\"Log value\",DataLog!AC704,\"\")","v":""},{"$f":"IF(DataLog!$C704=\"Log value\",DataLog!AD704,\"\")","v":""},{"$f":"IF(DataLog!$C704=\"Log value\",DataLog!AE704,\"\")","v":""},{"$f":"IF(DataLog!$C704=\"Log value\",DataLog!AF704,\"\")","v":""},{"$f":"IF(DataLog!$C704=\"Log value\",DataLog!AG704,\"\")","v":""},{"$f":"IF(DataLog!$C704=\"Log value\",DataLog!AH704,\"\")","v":""},{"$f":"IF(DataLog!$C704=\"Log value\",DataLog!AI704,\"\")","v":""},{"$f":"IF(DataLog!$C704=\"Log value\",DataLog!AJ704,\"\")","v":""},{"$f":"IF(DataLog!$C704=\"Log value\",DataLog!AK704,\"\")","v":""},{"$f":"IF(DataLog!$C704=\"Log value\",DataLog!AL704,\"\")","v":""},{"$f":"IF(DataLog!$C704=\"Log value\",DataLog!AM704,\"\")","v":""}]
[null,null,null,null,null,null,{"$f":"IF(DataLog!$C705=\"Log value\",DataLog!D705&\"_\"&TEXT(DataLog!B705,\"åååå-mm-dd\"),\"\")","v":""},{"$f":"IF(DataLog!$C705=\"Log value\",DataLog!E705,\"\")","v":""},{"$f":"IF(DataLog!$C705=\"Log value\",DataLog!F705,\"\")","v":""},{"$f":"IF(DataLog!$C705=\"Log value\",DataLog!G705,\"\")","v":""},{"$f":"IF(DataLog!$C705=\"Log value\",DataLog!H705,\"\")","v":""},{"$f":"IF(DataLog!$C705=\"Log value\",DataLog!I705,\"\")","v":""},{"$f":"IF(DataLog!$C705=\"Log value\",DataLog!J705,\"\")","v":""},{"$f":"IF(DataLog!$C705=\"Log value\",DataLog!K705,\"\")","v":""},{"$f":"IF(DataLog!$C705=\"Log value\",DataLog!L705,\"\")","v":""},{"$f":"IF(DataLog!$C705=\"Log value\",DataLog!M705,\"\")","v":""},{"$f":"IF(DataLog!$C705=\"Log value\",DataLog!N705,\"\")","v":""},{"$f":"IF(DataLog!$C705=\"Log value\",DataLog!O705,\"\")","v":""},{"$f":"IF(DataLog!$C705=\"Log value\",DataLog!P705,\"\")","v":""},{"$f":"IF(DataLog!$C705=\"Log value\",DataLog!Q705,\"\")","v":""},{"$f":"IF(DataLog!$C705=\"Log value\",DataLog!R705,\"\")","v":""},{"$f":"IF(DataLog!$C705=\"Log value\",DataLog!S705,\"\")","v":""},{"$f":"IF(DataLog!$C705=\"Log value\",DataLog!T705,\"\")","v":""},{"$f":"IF(DataLog!$C705=\"Log value\",DataLog!U705,\"\")","v":""},{"$f":"IF(DataLog!$C705=\"Log value\",DataLog!V705,\"\")","v":""},{"$f":"IF(DataLog!$C705=\"Log value\",DataLog!W705,\"\")","v":""},{"$f":"IF(DataLog!$C705=\"Log value\",DataLog!X705,\"\")","v":""},{"$f":"IF(DataLog!$C705=\"Log value\",DataLog!Y705,\"\")","v":""},{"$f":"IF(DataLog!$C705=\"Log value\",DataLog!Z705,\"\")","v":""},{"$f":"IF(DataLog!$C705=\"Log value\",DataLog!AA705,\"\")","v":""},{"$f":"IF(DataLog!$C705=\"Log value\",DataLog!AB705,\"\")","v":""},{"$f":"IF(DataLog!$C705=\"Log value\",DataLog!AC705,\"\")","v":""},{"$f":"IF(DataLog!$C705=\"Log value\",DataLog!AD705,\"\")","v":""},{"$f":"IF(DataLog!$C705=\"Log value\",DataLog!AE705,\"\")","v":""},{"$f":"IF(DataLog!$C705=\"Log value\",DataLog!AF705,\"\")","v":""},{"$f":"IF(DataLog!$C705=\"Log value\",DataLog!AG705,\"\")","v":""},{"$f":"IF(DataLog!$C705=\"Log value\",DataLog!AH705,\"\")","v":""},{"$f":"IF(DataLog!$C705=\"Log value\",DataLog!AI705,\"\")","v":""},{"$f":"IF(DataLog!$C705=\"Log value\",DataLog!AJ705,\"\")","v":""},{"$f":"IF(DataLog!$C705=\"Log value\",DataLog!AK705,\"\")","v":""},{"$f":"IF(DataLog!$C705=\"Log value\",DataLog!AL705,\"\")","v":""},{"$f":"IF(DataLog!$C705=\"Log value\",DataLog!AM705,\"\")","v":""}]
[null,null,null,null,null,null,{"$f":"IF(DataLog!$C706=\"Log value\",DataLog!D706&\"_\"&TEXT(DataLog!B706,\"åååå-mm-dd\"),\"\")","v":""},{"$f":"IF(DataLog!$C706=\"Log value\",DataLog!E706,\"\")","v":""},{"$f":"IF(DataLog!$C706=\"Log value\",DataLog!F706,\"\")","v":""},{"$f":"IF(DataLog!$C706=\"Log value\",DataLog!G706,\"\")","v":""},{"$f":"IF(DataLog!$C706=\"Log value\",DataLog!H706,\"\")","v":""},{"$f":"IF(DataLog!$C706=\"Log value\",DataLog!I706,\"\")","v":""},{"$f":"IF(DataLog!$C706=\"Log value\",DataLog!J706,\"\")","v":""},{"$f":"IF(DataLog!$C706=\"Log value\",DataLog!K706,\"\")","v":""},{"$f":"IF(DataLog!$C706=\"Log value\",DataLog!L706,\"\")","v":""},{"$f":"IF(DataLog!$C706=\"Log value\",DataLog!M706,\"\")","v":""},{"$f":"IF(DataLog!$C706=\"Log value\",DataLog!N706,\"\")","v":""},{"$f":"IF(DataLog!$C706=\"Log value\",DataLog!O706,\"\")","v":""},{"$f":"IF(DataLog!$C706=\"Log value\",DataLog!P706,\"\")","v":""},{"$f":"IF(DataLog!$C706=\"Log value\",DataLog!Q706,\"\")","v":""},{"$f":"IF(DataLog!$C706=\"Log value\",DataLog!R706,\"\")","v":""},{"$f":"IF(DataLog!$C706=\"Log value\",DataLog!S706,\"\")","v":""},{"$f":"IF(DataLog!$C706=\"Log value\",DataLog!T706,\"\")","v":""},{"$f":"IF(DataLog!$C706=\"Log value\",DataLog!U706,\"\")","v":""},{"$f":"IF(DataLog!$C706=\"Log value\",DataLog!V706,\"\")","v":""},{"$f":"IF(DataLog!$C706=\"Log value\",DataLog!W706,\"\")","v":""},{"$f":"IF(DataLog!$C706=\"Log value\",DataLog!X706,\"\")","v":""},{"$f":"IF(DataLog!$C706=\"Log value\",DataLog!Y706,\"\")","v":""},{"$f":"IF(DataLog!$C706=\"Log value\",DataLog!Z706,\"\")","v":""},{"$f":"IF(DataLog!$C706=\"Log value\",DataLog!AA706,\"\")","v":""},{"$f":"IF(DataLog!$C706=\"Log value\",DataLog!AB706,\"\")","v":""},{"$f":"IF(DataLog!$C706=\"Log value\",DataLog!AC706,\"\")","v":""},{"$f":"IF(DataLog!$C706=\"Log value\",DataLog!AD706,\"\")","v":""},{"$f":"IF(DataLog!$C706=\"Log value\",DataLog!AE706,\"\")","v":""},{"$f":"IF(DataLog!$C706=\"Log value\",DataLog!AF706,\"\")","v":""},{"$f":"IF(DataLog!$C706=\"Log value\",DataLog!AG706,\"\")","v":""},{"$f":"IF(DataLog!$C706=\"Log value\",DataLog!AH706,\"\")","v":""},{"$f":"IF(DataLog!$C706=\"Log value\",DataLog!AI706,\"\")","v":""},{"$f":"IF(DataLog!$C706=\"Log value\",DataLog!AJ706,\"\")","v":""},{"$f":"IF(DataLog!$C706=\"Log value\",DataLog!AK706,\"\")","v":""},{"$f":"IF(DataLog!$C706=\"Log value\",DataLog!AL706,\"\")","v":""},{"$f":"IF(DataLog!$C706=\"Log value\",DataLog!AM706,\"\")","v":""}]
[null,null,null,null,null,null,{"$f":"IF(DataLog!$C707=\"Log value\",DataLog!D707&\"_\"&TEXT(DataLog!B707,\"åååå-mm-dd\"),\"\")","v":""},{"$f":"IF(DataLog!$C707=\"Log value\",DataLog!E707,\"\")","v":""},{"$f":"IF(DataLog!$C707=\"Log value\",DataLog!F707,\"\")","v":""},{"$f":"IF(DataLog!$C707=\"Log value\",DataLog!G707,\"\")","v":""},{"$f":"IF(DataLog!$C707=\"Log value\",DataLog!H707,\"\")","v":""},{"$f":"IF(DataLog!$C707=\"Log value\",DataLog!I707,\"\")","v":""},{"$f":"IF(DataLog!$C707=\"Log value\",DataLog!J707,\"\")","v":""},{"$f":"IF(DataLog!$C707=\"Log value\",DataLog!K707,\"\")","v":""},{"$f":"IF(DataLog!$C707=\"Log value\",DataLog!L707,\"\")","v":""},{"$f":"IF(DataLog!$C707=\"Log value\",DataLog!M707,\"\")","v":""},{"$f":"IF(DataLog!$C707=\"Log value\",DataLog!N707,\"\")","v":""},{"$f":"IF(DataLog!$C707=\"Log value\",DataLog!O707,\"\")","v":""},{"$f":"IF(DataLog!$C707=\"Log value\",DataLog!P707,\"\")","v":""},{"$f":"IF(DataLog!$C707=\"Log value\",DataLog!Q707,\"\")","v":""},{"$f":"IF(DataLog!$C707=\"Log value\",DataLog!R707,\"\")","v":""},{"$f":"IF(DataLog!$C707=\"Log value\",DataLog!S707,\"\")","v":""},{"$f":"IF(DataLog!$C707=\"Log value\",DataLog!T707,\"\")","v":""},{"$f":"IF(DataLog!$C707=\"Log value\",DataLog!U707,\"\")","v":""},{"$f":"IF(DataLog!$C707=\"Log value\",DataLog!V707,\"\")","v":""},{"$f":"IF(DataLog!$C707=\"Log value\",DataLog!W707,\"\")","v":""},{"$f":"IF(DataLog!$C707=\"Log value\",DataLog!X707,\"\")","v":""},{"$f":"IF(DataLog!$C707=\"Log value\",DataLog!Y707,\"\")","v":""},{"$f":"IF(DataLog!$C707=\"Log value\",DataLog!Z707,\"\")","v":""},{"$f":"IF(DataLog!$C707=\"Log value\",DataLog!AA707,\"\")","v":""},{"$f":"IF(DataLog!$C707=\"Log value\",DataLog!AB707,\"\")","v":""},{"$f":"IF(DataLog!$C707=\"Log value\",DataLog!AC707,\"\")","v":""},{"$f":"IF(DataLog!$C707=\"Log value\",DataLog!AD707,\"\")","v":""},{"$f":"IF(DataLog!$C707=\"Log value\",DataLog!AE707,\"\")","v":""},{"$f":"IF(DataLog!$C707=\"Log value\",DataLog!AF707,\"\")","v":""},{"$f":"IF(DataLog!$C707=\"Log value\",DataLog!AG707,\"\")","v":""},{"$f":"IF(DataLog!$C707=\"Log value\",DataLog!AH707,\"\")","v":""},{"$f":"IF(DataLog!$C707=\"Log value\",DataLog!AI707,\"\")","v":""},{"$f":"IF(DataLog!$C707=\"Log value\",DataLog!AJ707,\"\")","v":""},{"$f":"IF(DataLog!$C707=\"Log value\",DataLog!AK707,\"\")","v":""},{"$f":"IF(DataLog!$C707=\"Log value\",DataLog!AL707,\"\")","v":""},{"$f":"IF(DataLog!$C707=\"Log value\",DataLog!AM707,\"\")","v":""}]
[null,null,null,null,null,null,{"$f":"IF(DataLog!$C708=\"Log value\",DataLog!D708&\"_\"&TEXT(DataLog!B708,\"åååå-mm-dd\"),\"\")","v":""},{"$f":"IF(DataLog!$C708=\"Log value\",DataLog!E708,\"\")","v":""},{"$f":"IF(DataLog!$C708=\"Log value\",DataLog!F708,\"\")","v":""},{"$f":"IF(DataLog!$C708=\"Log value\",DataLog!G708,\"\")","v":""},{"$f":"IF(DataLog!$C708=\"Log value\",DataLog!H708,\"\")","v":""},{"$f":"IF(DataLog!$C708=\"Log value\",DataLog!I708,\"\")","v":""},{"$f":"IF(DataLog!$C708=\"Log value\",DataLog!J708,\"\")","v":""},{"$f":"IF(DataLog!$C708=\"Log value\",DataLog!K708,\"\")","v":""},{"$f":"IF(DataLog!$C708=\"Log value\",DataLog!L708,\"\")","v":""},{"$f":"IF(DataLog!$C708=\"Log value\",DataLog!M708,\"\")","v":""},{"$f":"IF(DataLog!$C708=\"Log value\",DataLog!N708,\"\")","v":""},{"$f":"IF(DataLog!$C708=\"Log value\",DataLog!O708,\"\")","v":""},{"$f":"IF(DataLog!$C708=\"Log value\",DataLog!P708,\"\")","v":""},{"$f":"IF(DataLog!$C708=\"Log value\",DataLog!Q708,\"\")","v":""},{"$f":"IF(DataLog!$C708=\"Log value\",DataLog!R708,\"\")","v":""},{"$f":"IF(DataLog!$C708=\"Log value\",DataLog!S708,\"\")","v":""},{"$f":"IF(DataLog!$C708=\"Log value\",DataLog!T708,\"\")","v":""},{"$f":"IF(DataLog!$C708=\"Log value\",DataLog!U708,\"\")","v":""},{"$f":"IF(DataLog!$C708=\"Log value\",DataLog!V708,\"\")","v":""},{"$f":"IF(DataLog!$C708=\"Log value\",DataLog!W708,\"\")","v":""},{"$f":"IF(DataLog!$C708=\"Log value\",DataLog!X708,\"\")","v":""},{"$f":"IF(DataLog!$C708=\"Log value\",DataLog!Y708,\"\")","v":""},{"$f":"IF(DataLog!$C708=\"Log value\",DataLog!Z708,\"\")","v":""},{"$f":"IF(DataLog!$C708=\"Log value\",DataLog!AA708,\"\")","v":""},{"$f":"IF(DataLog!$C708=\"Log value\",DataLog!AB708,\"\")","v":""},{"$f":"IF(DataLog!$C708=\"Log value\",DataLog!AC708,\"\")","v":""},{"$f":"IF(DataLog!$C708=\"Log value\",DataLog!AD708,\"\")","v":""},{"$f":"IF(DataLog!$C708=\"Log value\",DataLog!AE708,\"\")","v":""},{"$f":"IF(DataLog!$C708=\"Log value\",DataLog!AF708,\"\")","v":""},{"$f":"IF(DataLog!$C708=\"Log value\",DataLog!AG708,\"\")","v":""},{"$f":"IF(DataLog!$C708=\"Log value\",DataLog!AH708,\"\")","v":""},{"$f":"IF(DataLog!$C708=\"Log value\",DataLog!AI708,\"\")","v":""},{"$f":"IF(DataLog!$C708=\"Log value\",DataLog!AJ708,\"\")","v":""},{"$f":"IF(DataLog!$C708=\"Log value\",DataLog!AK708,\"\")","v":""},{"$f":"IF(DataLog!$C708=\"Log value\",DataLog!AL708,\"\")","v":""},{"$f":"IF(DataLog!$C708=\"Log value\",DataLog!AM708,\"\")","v":""}]
[null,null,null,null,null,null,{"$f":"IF(DataLog!$C709=\"Log value\",DataLog!D709&\"_\"&TEXT(DataLog!B709,\"åååå-mm-dd\"),\"\")","v":""},{"$f":"IF(DataLog!$C709=\"Log value\",DataLog!E709,\"\")","v":""},{"$f":"IF(DataLog!$C709=\"Log value\",DataLog!F709,\"\")","v":""},{"$f":"IF(DataLog!$C709=\"Log value\",DataLog!G709,\"\")","v":""},{"$f":"IF(DataLog!$C709=\"Log value\",DataLog!H709,\"\")","v":""},{"$f":"IF(DataLog!$C709=\"Log value\",DataLog!I709,\"\")","v":""},{"$f":"IF(DataLog!$C709=\"Log value\",DataLog!J709,\"\")","v":""},{"$f":"IF(DataLog!$C709=\"Log value\",DataLog!K709,\"\")","v":""},{"$f":"IF(DataLog!$C709=\"Log value\",DataLog!L709,\"\")","v":""},{"$f":"IF(DataLog!$C709=\"Log value\",DataLog!M709,\"\")","v":""},{"$f":"IF(DataLog!$C709=\"Log value\",DataLog!N709,\"\")","v":""},{"$f":"IF(DataLog!$C709=\"Log value\",DataLog!O709,\"\")","v":""},{"$f":"IF(DataLog!$C709=\"Log value\",DataLog!P709,\"\")","v":""},{"$f":"IF(DataLog!$C709=\"Log value\",DataLog!Q709,\"\")","v":""},{"$f":"IF(DataLog!$C709=\"Log value\",DataLog!R709,\"\")","v":""},{"$f":"IF(DataLog!$C709=\"Log value\",DataLog!S709,\"\")","v":""},{"$f":"IF(DataLog!$C709=\"Log value\",DataLog!T709,\"\")","v":""},{"$f":"IF(DataLog!$C709=\"Log value\",DataLog!U709,\"\")","v":""},{"$f":"IF(DataLog!$C709=\"Log value\",DataLog!V709,\"\")","v":""},{"$f":"IF(DataLog!$C709=\"Log value\",DataLog!W709,\"\")","v":""},{"$f":"IF(DataLog!$C709=\"Log value\",DataLog!X709,\"\")","v":""},{"$f":"IF(DataLog!$C709=\"Log value\",DataLog!Y709,\"\")","v":""},{"$f":"IF(DataLog!$C709=\"Log value\",DataLog!Z709,\"\")","v":""},{"$f":"IF(DataLog!$C709=\"Log value\",DataLog!AA709,\"\")","v":""},{"$f":"IF(DataLog!$C709=\"Log value\",DataLog!AB709,\"\")","v":""},{"$f":"IF(DataLog!$C709=\"Log value\",DataLog!AC709,\"\")","v":""},{"$f":"IF(DataLog!$C709=\"Log value\",DataLog!AD709,\"\")","v":""},{"$f":"IF(DataLog!$C709=\"Log value\",DataLog!AE709,\"\")","v":""},{"$f":"IF(DataLog!$C709=\"Log value\",DataLog!AF709,\"\")","v":""},{"$f":"IF(DataLog!$C709=\"Log value\",DataLog!AG709,\"\")","v":""},{"$f":"IF(DataLog!$C709=\"Log value\",DataLog!AH709,\"\")","v":""},{"$f":"IF(DataLog!$C709=\"Log value\",DataLog!AI709,\"\")","v":""},{"$f":"IF(DataLog!$C709=\"Log value\",DataLog!AJ709,\"\")","v":""},{"$f":"IF(DataLog!$C709=\"Log value\",DataLog!AK709,\"\")","v":""},{"$f":"IF(DataLog!$C709=\"Log value\",DataLog!AL709,\"\")","v":""},{"$f":"IF(DataLog!$C709=\"Log value\",DataLog!AM709,\"\")","v":""}]
[null,null,null,null,null,null,{"$f":"IF(DataLog!$C710=\"Log value\",DataLog!D710&\"_\"&TEXT(DataLog!B710,\"åååå-mm-dd\"),\"\")","v":""},{"$f":"IF(DataLog!$C710=\"Log value\",DataLog!E710,\"\")","v":""},{"$f":"IF(DataLog!$C710=\"Log value\",DataLog!F710,\"\")","v":""},{"$f":"IF(DataLog!$C710=\"Log value\",DataLog!G710,\"\")","v":""},{"$f":"IF(DataLog!$C710=\"Log value\",DataLog!H710,\"\")","v":""},{"$f":"IF(DataLog!$C710=\"Log value\",DataLog!I710,\"\")","v":""},{"$f":"IF(DataLog!$C710=\"Log value\",DataLog!J710,\"\")","v":""},{"$f":"IF(DataLog!$C710=\"Log value\",DataLog!K710,\"\")","v":""},{"$f":"IF(DataLog!$C710=\"Log value\",DataLog!L710,\"\")","v":""},{"$f":"IF(DataLog!$C710=\"Log value\",DataLog!M710,\"\")","v":""},{"$f":"IF(DataLog!$C710=\"Log value\",DataLog!N710,\"\")","v":""},{"$f":"IF(DataLog!$C710=\"Log value\",DataLog!O710,\"\")","v":""},{"$f":"IF(DataLog!$C710=\"Log value\",DataLog!P710,\"\")","v":""},{"$f":"IF(DataLog!$C710=\"Log value\",DataLog!Q710,\"\")","v":""},{"$f":"IF(DataLog!$C710=\"Log value\",DataLog!R710,\"\")","v":""},{"$f":"IF(DataLog!$C710=\"Log value\",DataLog!S710,\"\")","v":""},{"$f":"IF(DataLog!$C710=\"Log value\",DataLog!T710,\"\")","v":""},{"$f":"IF(DataLog!$C710=\"Log value\",DataLog!U710,\"\")","v":""},{"$f":"IF(DataLog!$C710=\"Log value\",DataLog!V710,\"\")","v":""},{"$f":"IF(DataLog!$C710=\"Log value\",DataLog!W710,\"\")","v":""},{"$f":"IF(DataLog!$C710=\"Log value\",DataLog!X710,\"\")","v":""},{"$f":"IF(DataLog!$C710=\"Log value\",DataLog!Y710,\"\")","v":""},{"$f":"IF(DataLog!$C710=\"Log value\",DataLog!Z710,\"\")","v":""},{"$f":"IF(DataLog!$C710=\"Log value\",DataLog!AA710,\"\")","v":""},{"$f":"IF(DataLog!$C710=\"Log value\",DataLog!AB710,\"\")","v":""},{"$f":"IF(DataLog!$C710=\"Log value\",DataLog!AC710,\"\")","v":""},{"$f":"IF(DataLog!$C710=\"Log value\",DataLog!AD710,\"\")","v":""},{"$f":"IF(DataLog!$C710=\"Log value\",DataLog!AE710,\"\")","v":""},{"$f":"IF(DataLog!$C710=\"Log value\",DataLog!AF710,\"\")","v":""},{"$f":"IF(DataLog!$C710=\"Log value\",DataLog!AG710,\"\")","v":""},{"$f":"IF(DataLog!$C710=\"Log value\",DataLog!AH710,\"\")","v":""},{"$f":"IF(DataLog!$C710=\"Log value\",DataLog!AI710,\"\")","v":""},{"$f":"IF(DataLog!$C710=\"Log value\",DataLog!AJ710,\"\")","v":""},{"$f":"IF(DataLog!$C710=\"Log value\",DataLog!AK710,\"\")","v":""},{"$f":"IF(DataLog!$C710=\"Log value\",DataLog!AL710,\"\")","v":""},{"$f":"IF(DataLog!$C710=\"Log value\",DataLog!AM710,\"\")","v":""}]
[null,null,null,null,null,null,{"$f":"IF(DataLog!$C711=\"Log value\",DataLog!D711&\"_\"&TEXT(DataLog!B711,\"åååå-mm-dd\"),\"\")","v":""},{"$f":"IF(DataLog!$C711=\"Log value\",DataLog!E711,\"\")","v":""},{"$f":"IF(DataLog!$C711=\"Log value\",DataLog!F711,\"\")","v":""},{"$f":"IF(DataLog!$C711=\"Log value\",DataLog!G711,\"\")","v":""},{"$f":"IF(DataLog!$C711=\"Log value\",DataLog!H711,\"\")","v":""},{"$f":"IF(DataLog!$C711=\"Log value\",DataLog!I711,\"\")","v":""},{"$f":"IF(DataLog!$C711=\"Log value\",DataLog!J711,\"\")","v":""},{"$f":"IF(DataLog!$C711=\"Log value\",DataLog!K711,\"\")","v":""},{"$f":"IF(DataLog!$C711=\"Log value\",DataLog!L711,\"\")","v":""},{"$f":"IF(DataLog!$C711=\"Log value\",DataLog!M711,\"\")","v":""},{"$f":"IF(DataLog!$C711=\"Log value\",DataLog!N711,\"\")","v":""},{"$f":"IF(DataLog!$C711=\"Log value\",DataLog!O711,\"\")","v":""},{"$f":"IF(DataLog!$C711=\"Log value\",DataLog!P711,\"\")","v":""},{"$f":"IF(DataLog!$C711=\"Log value\",DataLog!Q711,\"\")","v":""},{"$f":"IF(DataLog!$C711=\"Log value\",DataLog!R711,\"\")","v":""},{"$f":"IF(DataLog!$C711=\"Log value\",DataLog!S711,\"\")","v":""},{"$f":"IF(DataLog!$C711=\"Log value\",DataLog!T711,\"\")","v":""},{"$f":"IF(DataLog!$C711=\"Log value\",DataLog!U711,\"\")","v":""},{"$f":"IF(DataLog!$C711=\"Log value\",DataLog!V711,\"\")","v":""},{"$f":"IF(DataLog!$C711=\"Log value\",DataLog!W711,\"\")","v":""},{"$f":"IF(DataLog!$C711=\"Log value\",DataLog!X711,\"\")","v":""},{"$f":"IF(DataLog!$C711=\"Log value\",DataLog!Y711,\"\")","v":""},{"$f":"IF(DataLog!$C711=\"Log value\",DataLog!Z711,\"\")","v":""},{"$f":"IF(DataLog!$C711=\"Log value\",DataLog!AA711,\"\")","v":""},{"$f":"IF(DataLog!$C711=\"Log value\",DataLog!AB711,\"\")","v":""},{"$f":"IF(DataLog!$C711=\"Log value\",DataLog!AC711,\"\")","v":""},{"$f":"IF(DataLog!$C711=\"Log value\",DataLog!AD711,\"\")","v":""},{"$f":"IF(DataLog!$C711=\"Log value\",DataLog!AE711,\"\")","v":""},{"$f":"IF(DataLog!$C711=\"Log value\",DataLog!AF711,\"\")","v":""},{"$f":"IF(DataLog!$C711=\"Log value\",DataLog!AG711,\"\")","v":""},{"$f":"IF(DataLog!$C711=\"Log value\",DataLog!AH711,\"\")","v":""},{"$f":"IF(DataLog!$C711=\"Log value\",DataLog!AI711,\"\")","v":""},{"$f":"IF(DataLog!$C711=\"Log value\",DataLog!AJ711,\"\")","v":""},{"$f":"IF(DataLog!$C711=\"Log value\",DataLog!AK711,\"\")","v":""},{"$f":"IF(DataLog!$C711=\"Log value\",DataLog!AL711,\"\")","v":""},{"$f":"IF(DataLog!$C711=\"Log value\",DataLog!AM711,\"\")","v":""}]
[null,null,null,null,null,null,{"$f":"IF(DataLog!$C712=\"Log value\",DataLog!D712&\"_\"&TEXT(DataLog!B712,\"åååå-mm-dd\"),\"\")","v":""},{"$f":"IF(DataLog!$C712=\"Log value\",DataLog!E712,\"\")","v":""},{"$f":"IF(DataLog!$C712=\"Log value\",DataLog!F712,\"\")","v":""},{"$f":"IF(DataLog!$C712=\"Log value\",DataLog!G712,\"\")","v":""},{"$f":"IF(DataLog!$C712=\"Log value\",DataLog!H712,\"\")","v":""},{"$f":"IF(DataLog!$C712=\"Log value\",DataLog!I712,\"\")","v":""},{"$f":"IF(DataLog!$C712=\"Log value\",DataLog!J712,\"\")","v":""},{"$f":"IF(DataLog!$C712=\"Log value\",DataLog!K712,\"\")","v":""},{"$f":"IF(DataLog!$C712=\"Log value\",DataLog!L712,\"\")","v":""},{"$f":"IF(DataLog!$C712=\"Log value\",DataLog!M712,\"\")","v":""},{"$f":"IF(DataLog!$C712=\"Log value\",DataLog!N712,\"\")","v":""},{"$f":"IF(DataLog!$C712=\"Log value\",DataLog!O712,\"\")","v":""},{"$f":"IF(DataLog!$C712=\"Log value\",DataLog!P712,\"\")","v":""},{"$f":"IF(DataLog!$C712=\"Log value\",DataLog!Q712,\"\")","v":""},{"$f":"IF(DataLog!$C712=\"Log value\",DataLog!R712,\"\")","v":""},{"$f":"IF(DataLog!$C712=\"Log value\",DataLog!S712,\"\")","v":""},{"$f":"IF(DataLog!$C712=\"Log value\",DataLog!T712,\"\")","v":""},{"$f":"IF(DataLog!$C712=\"Log value\",DataLog!U712,\"\")","v":""},{"$f":"IF(DataLog!$C712=\"Log value\",DataLog!V712,\"\")","v":""},{"$f":"IF(DataLog!$C712=\"Log value\",DataLog!W712,\"\")","v":""},{"$f":"IF(DataLog!$C712=\"Log value\",DataLog!X712,\"\")","v":""},{"$f":"IF(DataLog!$C712=\"Log value\",DataLog!Y712,\"\")","v":""},{"$f":"IF(DataLog!$C712=\"Log value\",DataLog!Z712,\"\")","v":""},{"$f":"IF(DataLog!$C712=\"Log value\",DataLog!AA712,\"\")","v":""},{"$f":"IF(DataLog!$C712=\"Log value\",DataLog!AB712,\"\")","v":""},{"$f":"IF(DataLog!$C712=\"Log value\",DataLog!AC712,\"\")","v":""},{"$f":"IF(DataLog!$C712=\"Log value\",DataLog!AD712,\"\")","v":""},{"$f":"IF(DataLog!$C712=\"Log value\",DataLog!AE712,\"\")","v":""},{"$f":"IF(DataLog!$C712=\"Log value\",DataLog!AF712,\"\")","v":""},{"$f":"IF(DataLog!$C712=\"Log value\",DataLog!AG712,\"\")","v":""},{"$f":"IF(DataLog!$C712=\"Log value\",DataLog!AH712,\"\")","v":""},{"$f":"IF(DataLog!$C712=\"Log value\",DataLog!AI712,\"\")","v":""},{"$f":"IF(DataLog!$C712=\"Log value\",DataLog!AJ712,\"\")","v":""},{"$f":"IF(DataLog!$C712=\"Log value\",DataLog!AK712,\"\")","v":""},{"$f":"IF(DataLog!$C712=\"Log value\",DataLog!AL712,\"\")","v":""},{"$f":"IF(DataLog!$C712=\"Log value\",DataLog!AM712,\"\")","v":""}]
[null,null,null,null,null,null,{"$f":"IF(DataLog!$C713=\"Log value\",DataLog!D713&\"_\"&TEXT(DataLog!B713,\"åååå-mm-dd\"),\"\")","v":""},{"$f":"IF(DataLog!$C713=\"Log value\",DataLog!E713,\"\")","v":""},{"$f":"IF(DataLog!$C713=\"Log value\",DataLog!F713,\"\")","v":""},{"$f":"IF(DataLog!$C713=\"Log value\",DataLog!G713,\"\")","v":""},{"$f":"IF(DataLog!$C713=\"Log value\",DataLog!H713,\"\")","v":""},{"$f":"IF(DataLog!$C713=\"Log value\",DataLog!I713,\"\")","v":""},{"$f":"IF(DataLog!$C713=\"Log value\",DataLog!J713,\"\")","v":""},{"$f":"IF(DataLog!$C713=\"Log value\",DataLog!K713,\"\")","v":""},{"$f":"IF(DataLog!$C713=\"Log value\",DataLog!L713,\"\")","v":""},{"$f":"IF(DataLog!$C713=\"Log value\",DataLog!M713,\"\")","v":""},{"$f":"IF(DataLog!$C713=\"Log value\",DataLog!N713,\"\")","v":""},{"$f":"IF(DataLog!$C713=\"Log value\",DataLog!O713,\"\")","v":""},{"$f":"IF(DataLog!$C713=\"Log value\",DataLog!P713,\"\")","v":""},{"$f":"IF(DataLog!$C713=\"Log value\",DataLog!Q713,\"\")","v":""},{"$f":"IF(DataLog!$C713=\"Log value\",DataLog!R713,\"\")","v":""},{"$f":"IF(DataLog!$C713=\"Log value\",DataLog!S713,\"\")","v":""},{"$f":"IF(DataLog!$C713=\"Log value\",DataLog!T713,\"\")","v":""},{"$f":"IF(DataLog!$C713=\"Log value\",DataLog!U713,\"\")","v":""},{"$f":"IF(DataLog!$C713=\"Log value\",DataLog!V713,\"\")","v":""},{"$f":"IF(DataLog!$C713=\"Log value\",DataLog!W713,\"\")","v":""},{"$f":"IF(DataLog!$C713=\"Log value\",DataLog!X713,\"\")","v":""},{"$f":"IF(DataLog!$C713=\"Log value\",DataLog!Y713,\"\")","v":""},{"$f":"IF(DataLog!$C713=\"Log value\",DataLog!Z713,\"\")","v":""},{"$f":"IF(DataLog!$C713=\"Log value\",DataLog!AA713,\"\")","v":""},{"$f":"IF(DataLog!$C713=\"Log value\",DataLog!AB713,\"\")","v":""},{"$f":"IF(DataLog!$C713=\"Log value\",DataLog!AC713,\"\")","v":""},{"$f":"IF(DataLog!$C713=\"Log value\",DataLog!AD713,\"\")","v":""},{"$f":"IF(DataLog!$C713=\"Log value\",DataLog!AE713,\"\")","v":""},{"$f":"IF(DataLog!$C713=\"Log value\",DataLog!AF713,\"\")","v":""},{"$f":"IF(DataLog!$C713=\"Log value\",DataLog!AG713,\"\")","v":""},{"$f":"IF(DataLog!$C713=\"Log value\",DataLog!AH713,\"\")","v":""},{"$f":"IF(DataLog!$C713=\"Log value\",DataLog!AI713,\"\")","v":""},{"$f":"IF(DataLog!$C713=\"Log value\",DataLog!AJ713,\"\")","v":""},{"$f":"IF(DataLog!$C713=\"Log value\",DataLog!AK713,\"\")","v":""},{"$f":"IF(DataLog!$C713=\"Log value\",DataLog!AL713,\"\")","v":""},{"$f":"IF(DataLog!$C713=\"Log value\",DataLog!AM713,\"\")","v":""}]
[null,null,null,null,null,null,{"$f":"IF(DataLog!$C714=\"Log value\",DataLog!D714&\"_\"&TEXT(DataLog!B714,\"åååå-mm-dd\"),\"\")","v":""},{"$f":"IF(DataLog!$C714=\"Log value\",DataLog!E714,\"\")","v":""},{"$f":"IF(DataLog!$C714=\"Log value\",DataLog!F714,\"\")","v":""},{"$f":"IF(DataLog!$C714=\"Log value\",DataLog!G714,\"\")","v":""},{"$f":"IF(DataLog!$C714=\"Log value\",DataLog!H714,\"\")","v":""},{"$f":"IF(DataLog!$C714=\"Log value\",DataLog!I714,\"\")","v":""},{"$f":"IF(DataLog!$C714=\"Log value\",DataLog!J714,\"\")","v":""},{"$f":"IF(DataLog!$C714=\"Log value\",DataLog!K714,\"\")","v":""},{"$f":"IF(DataLog!$C714=\"Log value\",DataLog!L714,\"\")","v":""},{"$f":"IF(DataLog!$C714=\"Log value\",DataLog!M714,\"\")","v":""},{"$f":"IF(DataLog!$C714=\"Log value\",DataLog!N714,\"\")","v":""},{"$f":"IF(DataLog!$C714=\"Log value\",DataLog!O714,\"\")","v":""},{"$f":"IF(DataLog!$C714=\"Log value\",DataLog!P714,\"\")","v":""},{"$f":"IF(DataLog!$C714=\"Log value\",DataLog!Q714,\"\")","v":""},{"$f":"IF(DataLog!$C714=\"Log value\",DataLog!R714,\"\")","v":""},{"$f":"IF(DataLog!$C714=\"Log value\",DataLog!S714,\"\")","v":""},{"$f":"IF(DataLog!$C714=\"Log value\",DataLog!T714,\"\")","v":""},{"$f":"IF(DataLog!$C714=\"Log value\",DataLog!U714,\"\")","v":""},{"$f":"IF(DataLog!$C714=\"Log value\",DataLog!V714,\"\")","v":""},{"$f":"IF(DataLog!$C714=\"Log value\",DataLog!W714,\"\")","v":""},{"$f":"IF(DataLog!$C714=\"Log value\",DataLog!X714,\"\")","v":""},{"$f":"IF(DataLog!$C714=\"Log value\",DataLog!Y714,\"\")","v":""},{"$f":"IF(DataLog!$C714=\"Log value\",DataLog!Z714,\"\")","v":""},{"$f":"IF(DataLog!$C714=\"Log value\",DataLog!AA714,\"\")","v":""},{"$f":"IF(DataLog!$C714=\"Log value\",DataLog!AB714,\"\")","v":""},{"$f":"IF(DataLog!$C714=\"Log value\",DataLog!AC714,\"\")","v":""},{"$f":"IF(DataLog!$C714=\"Log value\",DataLog!AD714,\"\")","v":""},{"$f":"IF(DataLog!$C714=\"Log value\",DataLog!AE714,\"\")","v":""},{"$f":"IF(DataLog!$C714=\"Log value\",DataLog!AF714,\"\")","v":""},{"$f":"IF(DataLog!$C714=\"Log value\",DataLog!AG714,\"\")","v":""},{"$f":"IF(DataLog!$C714=\"Log value\",DataLog!AH714,\"\")","v":""},{"$f":"IF(DataLog!$C714=\"Log value\",DataLog!AI714,\"\")","v":""},{"$f":"IF(DataLog!$C714=\"Log value\",DataLog!AJ714,\"\")","v":""},{"$f":"IF(DataLog!$C714=\"Log value\",DataLog!AK714,\"\")","v":""},{"$f":"IF(DataLog!$C714=\"Log value\",DataLog!AL714,\"\")","v":""},{"$f":"IF(DataLog!$C714=\"Log value\",DataLog!AM714,\"\")","v":""}]
[null,null,null,null,null,null,{"$f":"IF(DataLog!$C715=\"Log value\",DataLog!D715&\"_\"&TEXT(DataLog!B715,\"åååå-mm-dd\"),\"\")","v":""},{"$f":"IF(DataLog!$C715=\"Log value\",DataLog!E715,\"\")","v":""},{"$f":"IF(DataLog!$C715=\"Log value\",DataLog!F715,\"\")","v":""},{"$f":"IF(DataLog!$C715=\"Log value\",DataLog!G715,\"\")","v":""},{"$f":"IF(DataLog!$C715=\"Log value\",DataLog!H715,\"\")","v":""},{"$f":"IF(DataLog!$C715=\"Log value\",DataLog!I715,\"\")","v":""},{"$f":"IF(DataLog!$C715=\"Log value\",DataLog!J715,\"\")","v":""},{"$f":"IF(DataLog!$C715=\"Log value\",DataLog!K715,\"\")","v":""},{"$f":"IF(DataLog!$C715=\"Log value\",DataLog!L715,\"\")","v":""},{"$f":"IF(DataLog!$C715=\"Log value\",DataLog!M715,\"\")","v":""},{"$f":"IF(DataLog!$C715=\"Log value\",DataLog!N715,\"\")","v":""},{"$f":"IF(DataLog!$C715=\"Log value\",DataLog!O715,\"\")","v":""},{"$f":"IF(DataLog!$C715=\"Log value\",DataLog!P715,\"\")","v":""},{"$f":"IF(DataLog!$C715=\"Log value\",DataLog!Q715,\"\")","v":""},{"$f":"IF(DataLog!$C715=\"Log value\",DataLog!R715,\"\")","v":""},{"$f":"IF(DataLog!$C715=\"Log value\",DataLog!S715,\"\")","v":""},{"$f":"IF(DataLog!$C715=\"Log value\",DataLog!T715,\"\")","v":""},{"$f":"IF(DataLog!$C715=\"Log value\",DataLog!U715,\"\")","v":""},{"$f":"IF(DataLog!$C715=\"Log value\",DataLog!V715,\"\")","v":""},{"$f":"IF(DataLog!$C715=\"Log value\",DataLog!W715,\"\")","v":""},{"$f":"IF(DataLog!$C715=\"Log value\",DataLog!X715,\"\")","v":""},{"$f":"IF(DataLog!$C715=\"Log value\",DataLog!Y715,\"\")","v":""},{"$f":"IF(DataLog!$C715=\"Log value\",DataLog!Z715,\"\")","v":""},{"$f":"IF(DataLog!$C715=\"Log value\",DataLog!AA715,\"\")","v":""},{"$f":"IF(DataLog!$C715=\"Log value\",DataLog!AB715,\"\")","v":""},{"$f":"IF(DataLog!$C715=\"Log value\",DataLog!AC715,\"\")","v":""},{"$f":"IF(DataLog!$C715=\"Log value\",DataLog!AD715,\"\")","v":""},{"$f":"IF(DataLog!$C715=\"Log value\",DataLog!AE715,\"\")","v":""},{"$f":"IF(DataLog!$C715=\"Log value\",DataLog!AF715,\"\")","v":""},{"$f":"IF(DataLog!$C715=\"Log value\",DataLog!AG715,\"\")","v":""},{"$f":"IF(DataLog!$C715=\"Log value\",DataLog!AH715,\"\")","v":""},{"$f":"IF(DataLog!$C715=\"Log value\",DataLog!AI715,\"\")","v":""},{"$f":"IF(DataLog!$C715=\"Log value\",DataLog!AJ715,\"\")","v":""},{"$f":"IF(DataLog!$C715=\"Log value\",DataLog!AK715,\"\")","v":""},{"$f":"IF(DataLog!$C715=\"Log value\",DataLog!AL715,\"\")","v":""},{"$f":"IF(DataLog!$C715=\"Log value\",DataLog!AM715,\"\")","v":""}]
[null,null,null,null,null,null,{"$f":"IF(DataLog!$C716=\"Log value\",DataLog!D716&\"_\"&TEXT(DataLog!B716,\"åååå-mm-dd\"),\"\")","v":""},{"$f":"IF(DataLog!$C716=\"Log value\",DataLog!E716,\"\")","v":""},{"$f":"IF(DataLog!$C716=\"Log value\",DataLog!F716,\"\")","v":""},{"$f":"IF(DataLog!$C716=\"Log value\",DataLog!G716,\"\")","v":""},{"$f":"IF(DataLog!$C716=\"Log value\",DataLog!H716,\"\")","v":""},{"$f":"IF(DataLog!$C716=\"Log value\",DataLog!I716,\"\")","v":""},{"$f":"IF(DataLog!$C716=\"Log value\",DataLog!J716,\"\")","v":""},{"$f":"IF(DataLog!$C716=\"Log value\",DataLog!K716,\"\")","v":""},{"$f":"IF(DataLog!$C716=\"Log value\",DataLog!L716,\"\")","v":""},{"$f":"IF(DataLog!$C716=\"Log value\",DataLog!M716,\"\")","v":""},{"$f":"IF(DataLog!$C716=\"Log value\",DataLog!N716,\"\")","v":""},{"$f":"IF(DataLog!$C716=\"Log value\",DataLog!O716,\"\")","v":""},{"$f":"IF(DataLog!$C716=\"Log value\",DataLog!P716,\"\")","v":""},{"$f":"IF(DataLog!$C716=\"Log value\",DataLog!Q716,\"\")","v":""},{"$f":"IF(DataLog!$C716=\"Log value\",DataLog!R716,\"\")","v":""},{"$f":"IF(DataLog!$C716=\"Log value\",DataLog!S716,\"\")","v":""},{"$f":"IF(DataLog!$C716=\"Log value\",DataLog!T716,\"\")","v":""},{"$f":"IF(DataLog!$C716=\"Log value\",DataLog!U716,\"\")","v":""},{"$f":"IF(DataLog!$C716=\"Log value\",DataLog!V716,\"\")","v":""},{"$f":"IF(DataLog!$C716=\"Log value\",DataLog!W716,\"\")","v":""},{"$f":"IF(DataLog!$C716=\"Log value\",DataLog!X716,\"\")","v":""},{"$f":"IF(DataLog!$C716=\"Log value\",DataLog!Y716,\"\")","v":""},{"$f":"IF(DataLog!$C716=\"Log value\",DataLog!Z716,\"\")","v":""},{"$f":"IF(DataLog!$C716=\"Log value\",DataLog!AA716,\"\")","v":""},{"$f":"IF(DataLog!$C716=\"Log value\",DataLog!AB716,\"\")","v":""},{"$f":"IF(DataLog!$C716=\"Log value\",DataLog!AC716,\"\")","v":""},{"$f":"IF(DataLog!$C716=\"Log value\",DataLog!AD716,\"\")","v":""},{"$f":"IF(DataLog!$C716=\"Log value\",DataLog!AE716,\"\")","v":""},{"$f":"IF(DataLog!$C716=\"Log value\",DataLog!AF716,\"\")","v":""},{"$f":"IF(DataLog!$C716=\"Log value\",DataLog!AG716,\"\")","v":""},{"$f":"IF(DataLog!$C716=\"Log value\",DataLog!AH716,\"\")","v":""},{"$f":"IF(DataLog!$C716=\"Log value\",DataLog!AI716,\"\")","v":""},{"$f":"IF(DataLog!$C716=\"Log value\",DataLog!AJ716,\"\")","v":""},{"$f":"IF(DataLog!$C716=\"Log value\",DataLog!AK716,\"\")","v":""},{"$f":"IF(DataLog!$C716=\"Log value\",DataLog!AL716,\"\")","v":""},{"$f":"IF(DataLog!$C716=\"Log value\",DataLog!AM716,\"\")","v":""}]
[null,null,null,null,null,null,{"$f":"IF(DataLog!$C717=\"Log value\",DataLog!D717&\"_\"&TEXT(DataLog!B717,\"åååå-mm-dd\"),\"\")","v":""},{"$f":"IF(DataLog!$C717=\"Log value\",DataLog!E717,\"\")","v":""},{"$f":"IF(DataLog!$C717=\"Log value\",DataLog!F717,\"\")","v":""},{"$f":"IF(DataLog!$C717=\"Log value\",DataLog!G717,\"\")","v":""},{"$f":"IF(DataLog!$C717=\"Log value\",DataLog!H717,\"\")","v":""},{"$f":"IF(DataLog!$C717=\"Log value\",DataLog!I717,\"\")","v":""},{"$f":"IF(DataLog!$C717=\"Log value\",DataLog!J717,\"\")","v":""},{"$f":"IF(DataLog!$C717=\"Log value\",DataLog!K717,\"\")","v":""},{"$f":"IF(DataLog!$C717=\"Log value\",DataLog!L717,\"\")","v":""},{"$f":"IF(DataLog!$C717=\"Log value\",DataLog!M717,\"\")","v":""},{"$f":"IF(DataLog!$C717=\"Log value\",DataLog!N717,\"\")","v":""},{"$f":"IF(DataLog!$C717=\"Log value\",DataLog!O717,\"\")","v":""},{"$f":"IF(DataLog!$C717=\"Log value\",DataLog!P717,\"\")","v":""},{"$f":"IF(DataLog!$C717=\"Log value\",DataLog!Q717,\"\")","v":""},{"$f":"IF(DataLog!$C717=\"Log value\",DataLog!R717,\"\")","v":""},{"$f":"IF(DataLog!$C717=\"Log value\",DataLog!S717,\"\")","v":""},{"$f":"IF(DataLog!$C717=\"Log value\",DataLog!T717,\"\")","v":""},{"$f":"IF(DataLog!$C717=\"Log value\",DataLog!U717,\"\")","v":""},{"$f":"IF(DataLog!$C717=\"Log value\",DataLog!V717,\"\")","v":""},{"$f":"IF(DataLog!$C717=\"Log value\",DataLog!W717,\"\")","v":""},{"$f":"IF(DataLog!$C717=\"Log value\",DataLog!X717,\"\")","v":""},{"$f":"IF(DataLog!$C717=\"Log value\",DataLog!Y717,\"\")","v":""},{"$f":"IF(DataLog!$C717=\"Log value\",DataLog!Z717,\"\")","v":""},{"$f":"IF(DataLog!$C717=\"Log value\",DataLog!AA717,\"\")","v":""},{"$f":"IF(DataLog!$C717=\"Log value\",DataLog!AB717,\"\")","v":""},{"$f":"IF(DataLog!$C717=\"Log value\",DataLog!AC717,\"\")","v":""},{"$f":"IF(DataLog!$C717=\"Log value\",DataLog!AD717,\"\")","v":""},{"$f":"IF(DataLog!$C717=\"Log value\",DataLog!AE717,\"\")","v":""},{"$f":"IF(DataLog!$C717=\"Log value\",DataLog!AF717,\"\")","v":""},{"$f":"IF(DataLog!$C717=\"Log value\",DataLog!AG717,\"\")","v":""},{"$f":"IF(DataLog!$C717=\"Log value\",DataLog!AH717,\"\")","v":""},{"$f":"IF(DataLog!$C717=\"Log value\",DataLog!AI717,\"\")","v":""},{"$f":"IF(DataLog!$C717=\"Log value\",DataLog!AJ717,\"\")","v":""},{"$f":"IF(DataLog!$C717=\"Log value\",DataLog!AK717,\"\")","v":""},{"$f":"IF(DataLog!$C717=\"Log value\",DataLog!AL717,\"\")","v":""},{"$f":"IF(DataLog!$C717=\"Log value\",DataLog!AM717,\"\")","v":""}]
[null,null,null,null,null,null,{"$f":"IF(DataLog!$C718=\"Log value\",DataLog!D718&\"_\"&TEXT(DataLog!B718,\"åååå-mm-dd\"),\"\")","v":""},{"$f":"IF(DataLog!$C718=\"Log value\",DataLog!E718,\"\")","v":""},{"$f":"IF(DataLog!$C718=\"Log value\",DataLog!F718,\"\")","v":""},{"$f":"IF(DataLog!$C718=\"Log value\",DataLog!G718,\"\")","v":""},{"$f":"IF(DataLog!$C718=\"Log value\",DataLog!H718,\"\")","v":""},{"$f":"IF(DataLog!$C718=\"Log value\",DataLog!I718,\"\")","v":""},{"$f":"IF(DataLog!$C718=\"Log value\",DataLog!J718,\"\")","v":""},{"$f":"IF(DataLog!$C718=\"Log value\",DataLog!K718,\"\")","v":""},{"$f":"IF(DataLog!$C718=\"Log value\",DataLog!L718,\"\")","v":""},{"$f":"IF(DataLog!$C718=\"Log value\",DataLog!M718,\"\")","v":""},{"$f":"IF(DataLog!$C718=\"Log value\",DataLog!N718,\"\")","v":""},{"$f":"IF(DataLog!$C718=\"Log value\",DataLog!O718,\"\")","v":""},{"$f":"IF(DataLog!$C718=\"Log value\",DataLog!P718,\"\")","v":""},{"$f":"IF(DataLog!$C718=\"Log value\",DataLog!Q718,\"\")","v":""},{"$f":"IF(DataLog!$C718=\"Log value\",DataLog!R718,\"\")","v":""},{"$f":"IF(DataLog!$C718=\"Log value\",DataLog!S718,\"\")","v":""},{"$f":"IF(DataLog!$C718=\"Log value\",DataLog!T718,\"\")","v":""},{"$f":"IF(DataLog!$C718=\"Log value\",DataLog!U718,\"\")","v":""},{"$f":"IF(DataLog!$C718=\"Log value\",DataLog!V718,\"\")","v":""},{"$f":"IF(DataLog!$C718=\"Log value\",DataLog!W718,\"\")","v":""},{"$f":"IF(DataLog!$C718=\"Log value\",DataLog!X718,\"\")","v":""},{"$f":"IF(DataLog!$C718=\"Log value\",DataLog!Y718,\"\")","v":""},{"$f":"IF(DataLog!$C718=\"Log value\",DataLog!Z718,\"\")","v":""},{"$f":"IF(DataLog!$C718=\"Log value\",DataLog!AA718,\"\")","v":""},{"$f":"IF(DataLog!$C718=\"Log value\",DataLog!AB718,\"\")","v":""},{"$f":"IF(DataLog!$C718=\"Log value\",DataLog!AC718,\"\")","v":""},{"$f":"IF(DataLog!$C718=\"Log value\",DataLog!AD718,\"\")","v":""},{"$f":"IF(DataLog!$C718=\"Log value\",DataLog!AE718,\"\")","v":""},{"$f":"IF(DataLog!$C718=\"Log value\",DataLog!AF718,\"\")","v":""},{"$f":"IF(DataLog!$C718=\"Log value\",DataLog!AG718,\"\")","v":""},{"$f":"IF(DataLog!$C718=\"Log value\",DataLog!AH718,\"\")","v":""},{"$f":"IF(DataLog!$C718=\"Log value\",DataLog!AI718,\"\")","v":""},{"$f":"IF(DataLog!$C718=\"Log value\",DataLog!AJ718,\"\")","v":""},{"$f":"IF(DataLog!$C718=\"Log value\",DataLog!AK718,\"\")","v":""},{"$f":"IF(DataLog!$C718=\"Log value\",DataLog!AL718,\"\")","v":""},{"$f":"IF(DataLog!$C718=\"Log value\",DataLog!AM718,\"\")","v":""}]
[null,null,null,null,null,null,{"$f":"IF(DataLog!$C719=\"Log value\",DataLog!D719&\"_\"&TEXT(DataLog!B719,\"åååå-mm-dd\"),\"\")","v":""},{"$f":"IF(DataLog!$C719=\"Log value\",DataLog!E719,\"\")","v":""},{"$f":"IF(DataLog!$C719=\"Log value\",DataLog!F719,\"\")","v":""},{"$f":"IF(DataLog!$C719=\"Log value\",DataLog!G719,\"\")","v":""},{"$f":"IF(DataLog!$C719=\"Log value\",DataLog!H719,\"\")","v":""},{"$f":"IF(DataLog!$C719=\"Log value\",DataLog!I719,\"\")","v":""},{"$f":"IF(DataLog!$C719=\"Log value\",DataLog!J719,\"\")","v":""},{"$f":"IF(DataLog!$C719=\"Log value\",DataLog!K719,\"\")","v":""},{"$f":"IF(DataLog!$C719=\"Log value\",DataLog!L719,\"\")","v":""},{"$f":"IF(DataLog!$C719=\"Log value\",DataLog!M719,\"\")","v":""},{"$f":"IF(DataLog!$C719=\"Log value\",DataLog!N719,\"\")","v":""},{"$f":"IF(DataLog!$C719=\"Log value\",DataLog!O719,\"\")","v":""},{"$f":"IF(DataLog!$C719=\"Log value\",DataLog!P719,\"\")","v":""},{"$f":"IF(DataLog!$C719=\"Log value\",DataLog!Q719,\"\")","v":""},{"$f":"IF(DataLog!$C719=\"Log value\",DataLog!R719,\"\")","v":""},{"$f":"IF(DataLog!$C719=\"Log value\",DataLog!S719,\"\")","v":""},{"$f":"IF(DataLog!$C719=\"Log value\",DataLog!T719,\"\")","v":""},{"$f":"IF(DataLog!$C719=\"Log value\",DataLog!U719,\"\")","v":""},{"$f":"IF(DataLog!$C719=\"Log value\",DataLog!V719,\"\")","v":""},{"$f":"IF(DataLog!$C719=\"Log value\",DataLog!W719,\"\")","v":""},{"$f":"IF(DataLog!$C719=\"Log value\",DataLog!X719,\"\")","v":""},{"$f":"IF(DataLog!$C719=\"Log value\",DataLog!Y719,\"\")","v":""},{"$f":"IF(DataLog!$C719=\"Log value\",DataLog!Z719,\"\")","v":""},{"$f":"IF(DataLog!$C719=\"Log value\",DataLog!AA719,\"\")","v":""},{"$f":"IF(DataLog!$C719=\"Log value\",DataLog!AB719,\"\")","v":""},{"$f":"IF(DataLog!$C719=\"Log value\",DataLog!AC719,\"\")","v":""},{"$f":"IF(DataLog!$C719=\"Log value\",DataLog!AD719,\"\")","v":""},{"$f":"IF(DataLog!$C719=\"Log value\",DataLog!AE719,\"\")","v":""},{"$f":"IF(DataLog!$C719=\"Log value\",DataLog!AF719,\"\")","v":""},{"$f":"IF(DataLog!$C719=\"Log value\",DataLog!AG719,\"\")","v":""},{"$f":"IF(DataLog!$C719=\"Log value\",DataLog!AH719,\"\")","v":""},{"$f":"IF(DataLog!$C719=\"Log value\",DataLog!AI719,\"\")","v":""},{"$f":"IF(DataLog!$C719=\"Log value\",DataLog!AJ719,\"\")","v":""},{"$f":"IF(DataLog!$C719=\"Log value\",DataLog!AK719,\"\")","v":""},{"$f":"IF(DataLog!$C719=\"Log value\",DataLog!AL719,\"\")","v":""},{"$f":"IF(DataLog!$C719=\"Log value\",DataLog!AM719,\"\")","v":""}]
[null,null,null,null,null,null,{"$f":"IF(DataLog!$C720=\"Log value\",DataLog!D720&\"_\"&TEXT(DataLog!B720,\"åååå-mm-dd\"),\"\")","v":""},{"$f":"IF(DataLog!$C720=\"Log value\",DataLog!E720,\"\")","v":""},{"$f":"IF(DataLog!$C720=\"Log value\",DataLog!F720,\"\")","v":""},{"$f":"IF(DataLog!$C720=\"Log value\",DataLog!G720,\"\")","v":""},{"$f":"IF(DataLog!$C720=\"Log value\",DataLog!H720,\"\")","v":""},{"$f":"IF(DataLog!$C720=\"Log value\",DataLog!I720,\"\")","v":""},{"$f":"IF(DataLog!$C720=\"Log value\",DataLog!J720,\"\")","v":""},{"$f":"IF(DataLog!$C720=\"Log value\",DataLog!K720,\"\")","v":""},{"$f":"IF(DataLog!$C720=\"Log value\",DataLog!L720,\"\")","v":""},{"$f":"IF(DataLog!$C720=\"Log value\",DataLog!M720,\"\")","v":""},{"$f":"IF(DataLog!$C720=\"Log value\",DataLog!N720,\"\")","v":""},{"$f":"IF(DataLog!$C720=\"Log value\",DataLog!O720,\"\")","v":""},{"$f":"IF(DataLog!$C720=\"Log value\",DataLog!P720,\"\")","v":""},{"$f":"IF(DataLog!$C720=\"Log value\",DataLog!Q720,\"\")","v":""},{"$f":"IF(DataLog!$C720=\"Log value\",DataLog!R720,\"\")","v":""},{"$f":"IF(DataLog!$C720=\"Log value\",DataLog!S720,\"\")","v":""},{"$f":"IF(DataLog!$C720=\"Log value\",DataLog!T720,\"\")","v":""},{"$f":"IF(DataLog!$C720=\"Log value\",DataLog!U720,\"\")","v":""},{"$f":"IF(DataLog!$C720=\"Log value\",DataLog!V720,\"\")","v":""},{"$f":"IF(DataLog!$C720=\"Log value\",DataLog!W720,\"\")","v":""},{"$f":"IF(DataLog!$C720=\"Log value\",DataLog!X720,\"\")","v":""},{"$f":"IF(DataLog!$C720=\"Log value\",DataLog!Y720,\"\")","v":""},{"$f":"IF(DataLog!$C720=\"Log value\",DataLog!Z720,\"\")","v":""},{"$f":"IF(DataLog!$C720=\"Log value\",DataLog!AA720,\"\")","v":""},{"$f":"IF(DataLog!$C720=\"Log value\",DataLog!AB720,\"\")","v":""},{"$f":"IF(DataLog!$C720=\"Log value\",DataLog!AC720,\"\")","v":""},{"$f":"IF(DataLog!$C720=\"Log value\",DataLog!AD720,\"\")","v":""},{"$f":"IF(DataLog!$C720=\"Log value\",DataLog!AE720,\"\")","v":""},{"$f":"IF(DataLog!$C720=\"Log value\",DataLog!AF720,\"\")","v":""},{"$f":"IF(DataLog!$C720=\"Log value\",DataLog!AG720,\"\")","v":""},{"$f":"IF(DataLog!$C720=\"Log value\",DataLog!AH720,\"\")","v":""},{"$f":"IF(DataLog!$C720=\"Log value\",DataLog!AI720,\"\")","v":""},{"$f":"IF(DataLog!$C720=\"Log value\",DataLog!AJ720,\"\")","v":""},{"$f":"IF(DataLog!$C720=\"Log value\",DataLog!AK720,\"\")","v":""},{"$f":"IF(DataLog!$C720=\"Log value\",DataLog!AL720,\"\")","v":""},{"$f":"IF(DataLog!$C720=\"Log value\",DataLog!AM720,\"\")","v":""}]
[null,null,null,null,null,null,{"$f":"IF(DataLog!$C721=\"Log value\",DataLog!D721&\"_\"&TEXT(DataLog!B721,\"åååå-mm-dd\"),\"\")","v":""},{"$f":"IF(DataLog!$C721=\"Log value\",DataLog!E721,\"\")","v":""},{"$f":"IF(DataLog!$C721=\"Log value\",DataLog!F721,\"\")","v":""},{"$f":"IF(DataLog!$C721=\"Log value\",DataLog!G721,\"\")","v":""},{"$f":"IF(DataLog!$C721=\"Log value\",DataLog!H721,\"\")","v":""},{"$f":"IF(DataLog!$C721=\"Log value\",DataLog!I721,\"\")","v":""},{"$f":"IF(DataLog!$C721=\"Log value\",DataLog!J721,\"\")","v":""},{"$f":"IF(DataLog!$C721=\"Log value\",DataLog!K721,\"\")","v":""},{"$f":"IF(DataLog!$C721=\"Log value\",DataLog!L721,\"\")","v":""},{"$f":"IF(DataLog!$C721=\"Log value\",DataLog!M721,\"\")","v":""},{"$f":"IF(DataLog!$C721=\"Log value\",DataLog!N721,\"\")","v":""},{"$f":"IF(DataLog!$C721=\"Log value\",DataLog!O721,\"\")","v":""},{"$f":"IF(DataLog!$C721=\"Log value\",DataLog!P721,\"\")","v":""},{"$f":"IF(DataLog!$C721=\"Log value\",DataLog!Q721,\"\")","v":""},{"$f":"IF(DataLog!$C721=\"Log value\",DataLog!R721,\"\")","v":""},{"$f":"IF(DataLog!$C721=\"Log value\",DataLog!S721,\"\")","v":""},{"$f":"IF(DataLog!$C721=\"Log value\",DataLog!T721,\"\")","v":""},{"$f":"IF(DataLog!$C721=\"Log value\",DataLog!U721,\"\")","v":""},{"$f":"IF(DataLog!$C721=\"Log value\",DataLog!V721,\"\")","v":""},{"$f":"IF(DataLog!$C721=\"Log value\",DataLog!W721,\"\")","v":""},{"$f":"IF(DataLog!$C721=\"Log value\",DataLog!X721,\"\")","v":""},{"$f":"IF(DataLog!$C721=\"Log value\",DataLog!Y721,\"\")","v":""},{"$f":"IF(DataLog!$C721=\"Log value\",DataLog!Z721,\"\")","v":""},{"$f":"IF(DataLog!$C721=\"Log value\",DataLog!AA721,\"\")","v":""},{"$f":"IF(DataLog!$C721=\"Log value\",DataLog!AB721,\"\")","v":""},{"$f":"IF(DataLog!$C721=\"Log value\",DataLog!AC721,\"\")","v":""},{"$f":"IF(DataLog!$C721=\"Log value\",DataLog!AD721,\"\")","v":""},{"$f":"IF(DataLog!$C721=\"Log value\",DataLog!AE721,\"\")","v":""},{"$f":"IF(DataLog!$C721=\"Log value\",DataLog!AF721,\"\")","v":""},{"$f":"IF(DataLog!$C721=\"Log value\",DataLog!AG721,\"\")","v":""},{"$f":"IF(DataLog!$C721=\"Log value\",DataLog!AH721,\"\")","v":""},{"$f":"IF(DataLog!$C721=\"Log value\",DataLog!AI721,\"\")","v":""},{"$f":"IF(DataLog!$C721=\"Log value\",DataLog!AJ721,\"\")","v":""},{"$f":"IF(DataLog!$C721=\"Log value\",DataLog!AK721,\"\")","v":""},{"$f":"IF(DataLog!$C721=\"Log value\",DataLog!AL721,\"\")","v":""},{"$f":"IF(DataLog!$C721=\"Log value\",DataLog!AM721,\"\")","v":""}]
[null,null,null,null,null,null,{"$f":"IF(DataLog!$C722=\"Log value\",DataLog!D722&\"_\"&TEXT(DataLog!B722,\"åååå-mm-dd\"),\"\")","v":""},{"$f":"IF(DataLog!$C722=\"Log value\",DataLog!E722,\"\")","v":""},{"$f":"IF(DataLog!$C722=\"Log value\",DataLog!F722,\"\")","v":""},{"$f":"IF(DataLog!$C722=\"Log value\",DataLog!G722,\"\")","v":""},{"$f":"IF(DataLog!$C722=\"Log value\",DataLog!H722,\"\")","v":""},{"$f":"IF(DataLog!$C722=\"Log value\",DataLog!I722,\"\")","v":""},{"$f":"IF(DataLog!$C722=\"Log value\",DataLog!J722,\"\")","v":""},{"$f":"IF(DataLog!$C722=\"Log value\",DataLog!K722,\"\")","v":""},{"$f":"IF(DataLog!$C722=\"Log value\",DataLog!L722,\"\")","v":""},{"$f":"IF(DataLog!$C722=\"Log value\",DataLog!M722,\"\")","v":""},{"$f":"IF(DataLog!$C722=\"Log value\",DataLog!N722,\"\")","v":""},{"$f":"IF(DataLog!$C722=\"Log value\",DataLog!O722,\"\")","v":""},{"$f":"IF(DataLog!$C722=\"Log value\",DataLog!P722,\"\")","v":""},{"$f":"IF(DataLog!$C722=\"Log value\",DataLog!Q722,\"\")","v":""},{"$f":"IF(DataLog!$C722=\"Log value\",DataLog!R722,\"\")","v":""},{"$f":"IF(DataLog!$C722=\"Log value\",DataLog!S722,\"\")","v":""},{"$f":"IF(DataLog!$C722=\"Log value\",DataLog!T722,\"\")","v":""},{"$f":"IF(DataLog!$C722=\"Log value\",DataLog!U722,\"\")","v":""},{"$f":"IF(DataLog!$C722=\"Log value\",DataLog!V722,\"\")","v":""},{"$f":"IF(DataLog!$C722=\"Log value\",DataLog!W722,\"\")","v":""},{"$f":"IF(DataLog!$C722=\"Log value\",DataLog!X722,\"\")","v":""},{"$f":"IF(DataLog!$C722=\"Log value\",DataLog!Y722,\"\")","v":""},{"$f":"IF(DataLog!$C722=\"Log value\",DataLog!Z722,\"\")","v":""},{"$f":"IF(DataLog!$C722=\"Log value\",DataLog!AA722,\"\")","v":""},{"$f":"IF(DataLog!$C722=\"Log value\",DataLog!AB722,\"\")","v":""},{"$f":"IF(DataLog!$C722=\"Log value\",DataLog!AC722,\"\")","v":""},{"$f":"IF(DataLog!$C722=\"Log value\",DataLog!AD722,\"\")","v":""},{"$f":"IF(DataLog!$C722=\"Log value\",DataLog!AE722,\"\")","v":""},{"$f":"IF(DataLog!$C722=\"Log value\",DataLog!AF722,\"\")","v":""},{"$f":"IF(DataLog!$C722=\"Log value\",DataLog!AG722,\"\")","v":""},{"$f":"IF(DataLog!$C722=\"Log value\",DataLog!AH722,\"\")","v":""},{"$f":"IF(DataLog!$C722=\"Log value\",DataLog!AI722,\"\")","v":""},{"$f":"IF(DataLog!$C722=\"Log value\",DataLog!AJ722,\"\")","v":""},{"$f":"IF(DataLog!$C722=\"Log value\",DataLog!AK722,\"\")","v":""},{"$f":"IF(DataLog!$C722=\"Log value\",DataLog!AL722,\"\")","v":""},{"$f":"IF(DataLog!$C722=\"Log value\",DataLog!AM722,\"\")","v":""}]
[null,null,null,null,null,null,{"$f":"IF(DataLog!$C723=\"Log value\",DataLog!D723&\"_\"&TEXT(DataLog!B723,\"åååå-mm-dd\"),\"\")","v":""},{"$f":"IF(DataLog!$C723=\"Log value\",DataLog!E723,\"\")","v":""},{"$f":"IF(DataLog!$C723=\"Log value\",DataLog!F723,\"\")","v":""},{"$f":"IF(DataLog!$C723=\"Log value\",DataLog!G723,\"\")","v":""},{"$f":"IF(DataLog!$C723=\"Log value\",DataLog!H723,\"\")","v":""},{"$f":"IF(DataLog!$C723=\"Log value\",DataLog!I723,\"\")","v":""},{"$f":"IF(DataLog!$C723=\"Log value\",DataLog!J723,\"\")","v":""},{"$f":"IF(DataLog!$C723=\"Log value\",DataLog!K723,\"\")","v":""},{"$f":"IF(DataLog!$C723=\"Log value\",DataLog!L723,\"\")","v":""},{"$f":"IF(DataLog!$C723=\"Log value\",DataLog!M723,\"\")","v":""},{"$f":"IF(DataLog!$C723=\"Log value\",DataLog!N723,\"\")","v":""},{"$f":"IF(DataLog!$C723=\"Log value\",DataLog!O723,\"\")","v":""},{"$f":"IF(DataLog!$C723=\"Log value\",DataLog!P723,\"\")","v":""},{"$f":"IF(DataLog!$C723=\"Log value\",DataLog!Q723,\"\")","v":""},{"$f":"IF(DataLog!$C723=\"Log value\",DataLog!R723,\"\")","v":""},{"$f":"IF(DataLog!$C723=\"Log value\",DataLog!S723,\"\")","v":""},{"$f":"IF(DataLog!$C723=\"Log value\",DataLog!T723,\"\")","v":""},{"$f":"IF(DataLog!$C723=\"Log value\",DataLog!U723,\"\")","v":""},{"$f":"IF(DataLog!$C723=\"Log value\",DataLog!V723,\"\")","v":""},{"$f":"IF(DataLog!$C723=\"Log value\",DataLog!W723,\"\")","v":""},{"$f":"IF(DataLog!$C723=\"Log value\",DataLog!X723,\"\")","v":""},{"$f":"IF(DataLog!$C723=\"Log value\",DataLog!Y723,\"\")","v":""},{"$f":"IF(DataLog!$C723=\"Log value\",DataLog!Z723,\"\")","v":""},{"$f":"IF(DataLog!$C723=\"Log value\",DataLog!AA723,\"\")","v":""},{"$f":"IF(DataLog!$C723=\"Log value\",DataLog!AB723,\"\")","v":""},{"$f":"IF(DataLog!$C723=\"Log value\",DataLog!AC723,\"\")","v":""},{"$f":"IF(DataLog!$C723=\"Log value\",DataLog!AD723,\"\")","v":""},{"$f":"IF(DataLog!$C723=\"Log value\",DataLog!AE723,\"\")","v":""},{"$f":"IF(DataLog!$C723=\"Log value\",DataLog!AF723,\"\")","v":""},{"$f":"IF(DataLog!$C723=\"Log value\",DataLog!AG723,\"\")","v":""},{"$f":"IF(DataLog!$C723=\"Log value\",DataLog!AH723,\"\")","v":""},{"$f":"IF(DataLog!$C723=\"Log value\",DataLog!AI723,\"\")","v":""},{"$f":"IF(DataLog!$C723=\"Log value\",DataLog!AJ723,\"\")","v":""},{"$f":"IF(DataLog!$C723=\"Log value\",DataLog!AK723,\"\")","v":""},{"$f":"IF(DataLog!$C723=\"Log value\",DataLog!AL723,\"\")","v":""},{"$f":"IF(DataLog!$C723=\"Log value\",DataLog!AM723,\"\")","v":""}]
[null,null,null,null,null,null,{"$f":"IF(DataLog!$C724=\"Log value\",DataLog!D724&\"_\"&TEXT(DataLog!B724,\"åååå-mm-dd\"),\"\")","v":""},{"$f":"IF(DataLog!$C724=\"Log value\",DataLog!E724,\"\")","v":""},{"$f":"IF(DataLog!$C724=\"Log value\",DataLog!F724,\"\")","v":""},{"$f":"IF(DataLog!$C724=\"Log value\",DataLog!G724,\"\")","v":""},{"$f":"IF(DataLog!$C724=\"Log value\",DataLog!H724,\"\")","v":""},{"$f":"IF(DataLog!$C724=\"Log value\",DataLog!I724,\"\")","v":""},{"$f":"IF(DataLog!$C724=\"Log value\",DataLog!J724,\"\")","v":""},{"$f":"IF(DataLog!$C724=\"Log value\",DataLog!K724,\"\")","v":""},{"$f":"IF(DataLog!$C724=\"Log value\",DataLog!L724,\"\")","v":""},{"$f":"IF(DataLog!$C724=\"Log value\",DataLog!M724,\"\")","v":""},{"$f":"IF(DataLog!$C724=\"Log value\",DataLog!N724,\"\")","v":""},{"$f":"IF(DataLog!$C724=\"Log value\",DataLog!O724,\"\")","v":""},{"$f":"IF(DataLog!$C724=\"Log value\",DataLog!P724,\"\")","v":""},{"$f":"IF(DataLog!$C724=\"Log value\",DataLog!Q724,\"\")","v":""},{"$f":"IF(DataLog!$C724=\"Log value\",DataLog!R724,\"\")","v":""},{"$f":"IF(DataLog!$C724=\"Log value\",DataLog!S724,\"\")","v":""},{"$f":"IF(DataLog!$C724=\"Log value\",DataLog!T724,\"\")","v":""},{"$f":"IF(DataLog!$C724=\"Log value\",DataLog!U724,\"\")","v":""},{"$f":"IF(DataLog!$C724=\"Log value\",DataLog!V724,\"\")","v":""},{"$f":"IF(DataLog!$C724=\"Log value\",DataLog!W724,\"\")","v":""},{"$f":"IF(DataLog!$C724=\"Log value\",DataLog!X724,\"\")","v":""},{"$f":"IF(DataLog!$C724=\"Log value\",DataLog!Y724,\"\")","v":""},{"$f":"IF(DataLog!$C724=\"Log value\",DataLog!Z724,\"\")","v":""},{"$f":"IF(DataLog!$C724=\"Log value\",DataLog!AA724,\"\")","v":""},{"$f":"IF(DataLog!$C724=\"Log value\",DataLog!AB724,\"\")","v":""},{"$f":"IF(DataLog!$C724=\"Log value\",DataLog!AC724,\"\")","v":""},{"$f":"IF(DataLog!$C724=\"Log value\",DataLog!AD724,\"\")","v":""},{"$f":"IF(DataLog!$C724=\"Log value\",DataLog!AE724,\"\")","v":""},{"$f":"IF(DataLog!$C724=\"Log value\",DataLog!AF724,\"\")","v":""},{"$f":"IF(DataLog!$C724=\"Log value\",DataLog!AG724,\"\")","v":""},{"$f":"IF(DataLog!$C724=\"Log value\",DataLog!AH724,\"\")","v":""},{"$f":"IF(DataLog!$C724=\"Log value\",DataLog!AI724,\"\")","v":""},{"$f":"IF(DataLog!$C724=\"Log value\",DataLog!AJ724,\"\")","v":""},{"$f":"IF(DataLog!$C724=\"Log value\",DataLog!AK724,\"\")","v":""},{"$f":"IF(DataLog!$C724=\"Log value\",DataLog!AL724,\"\")","v":""},{"$f":"IF(DataLog!$C724=\"Log value\",DataLog!AM724,\"\")","v":""}]
[null,null,null,null,null,null,{"$f":"IF(DataLog!$C725=\"Log value\",DataLog!D725&\"_\"&TEXT(DataLog!B725,\"åååå-mm-dd\"),\"\")","v":""},{"$f":"IF(DataLog!$C725=\"Log value\",DataLog!E725,\"\")","v":""},{"$f":"IF(DataLog!$C725=\"Log value\",DataLog!F725,\"\")","v":""},{"$f":"IF(DataLog!$C725=\"Log value\",DataLog!G725,\"\")","v":""},{"$f":"IF(DataLog!$C725=\"Log value\",DataLog!H725,\"\")","v":""},{"$f":"IF(DataLog!$C725=\"Log value\",DataLog!I725,\"\")","v":""},{"$f":"IF(DataLog!$C725=\"Log value\",DataLog!J725,\"\")","v":""},{"$f":"IF(DataLog!$C725=\"Log value\",DataLog!K725,\"\")","v":""},{"$f":"IF(DataLog!$C725=\"Log value\",DataLog!L725,\"\")","v":""},{"$f":"IF(DataLog!$C725=\"Log value\",DataLog!M725,\"\")","v":""},{"$f":"IF(DataLog!$C725=\"Log value\",DataLog!N725,\"\")","v":""},{"$f":"IF(DataLog!$C725=\"Log value\",DataLog!O725,\"\")","v":""},{"$f":"IF(DataLog!$C725=\"Log value\",DataLog!P725,\"\")","v":""},{"$f":"IF(DataLog!$C725=\"Log value\",DataLog!Q725,\"\")","v":""},{"$f":"IF(DataLog!$C725=\"Log value\",DataLog!R725,\"\")","v":""},{"$f":"IF(DataLog!$C725=\"Log value\",DataLog!S725,\"\")","v":""},{"$f":"IF(DataLog!$C725=\"Log value\",DataLog!T725,\"\")","v":""},{"$f":"IF(DataLog!$C725=\"Log value\",DataLog!U725,\"\")","v":""},{"$f":"IF(DataLog!$C725=\"Log value\",DataLog!V725,\"\")","v":""},{"$f":"IF(DataLog!$C725=\"Log value\",DataLog!W725,\"\")","v":""},{"$f":"IF(DataLog!$C725=\"Log value\",DataLog!X725,\"\")","v":""},{"$f":"IF(DataLog!$C725=\"Log value\",DataLog!Y725,\"\")","v":""},{"$f":"IF(DataLog!$C725=\"Log value\",DataLog!Z725,\"\")","v":""},{"$f":"IF(DataLog!$C725=\"Log value\",DataLog!AA725,\"\")","v":""},{"$f":"IF(DataLog!$C725=\"Log value\",DataLog!AB725,\"\")","v":""},{"$f":"IF(DataLog!$C725=\"Log value\",DataLog!AC725,\"\")","v":""},{"$f":"IF(DataLog!$C725=\"Log value\",DataLog!AD725,\"\")","v":""},{"$f":"IF(DataLog!$C725=\"Log value\",DataLog!AE725,\"\")","v":""},{"$f":"IF(DataLog!$C725=\"Log value\",DataLog!AF725,\"\")","v":""},{"$f":"IF(DataLog!$C725=\"Log value\",DataLog!AG725,\"\")","v":""},{"$f":"IF(DataLog!$C725=\"Log value\",DataLog!AH725,\"\")","v":""},{"$f":"IF(DataLog!$C725=\"Log value\",DataLog!AI725,\"\")","v":""},{"$f":"IF(DataLog!$C725=\"Log value\",DataLog!AJ725,\"\")","v":""},{"$f":"IF(DataLog!$C725=\"Log value\",DataLog!AK725,\"\")","v":""},{"$f":"IF(DataLog!$C725=\"Log value\",DataLog!AL725,\"\")","v":""},{"$f":"IF(DataLog!$C725=\"Log value\",DataLog!AM725,\"\")","v":""}]
[null,null,null,null,null,null,{"$f":"IF(DataLog!$C726=\"Log value\",DataLog!D726&\"_\"&TEXT(DataLog!B726,\"åååå-mm-dd\"),\"\")","v":""},{"$f":"IF(DataLog!$C726=\"Log value\",DataLog!E726,\"\")","v":""},{"$f":"IF(DataLog!$C726=\"Log value\",DataLog!F726,\"\")","v":""},{"$f":"IF(DataLog!$C726=\"Log value\",DataLog!G726,\"\")","v":""},{"$f":"IF(DataLog!$C726=\"Log value\",DataLog!H726,\"\")","v":""},{"$f":"IF(DataLog!$C726=\"Log value\",DataLog!I726,\"\")","v":""},{"$f":"IF(DataLog!$C726=\"Log value\",DataLog!J726,\"\")","v":""},{"$f":"IF(DataLog!$C726=\"Log value\",DataLog!K726,\"\")","v":""},{"$f":"IF(DataLog!$C726=\"Log value\",DataLog!L726,\"\")","v":""},{"$f":"IF(DataLog!$C726=\"Log value\",DataLog!M726,\"\")","v":""},{"$f":"IF(DataLog!$C726=\"Log value\",DataLog!N726,\"\")","v":""},{"$f":"IF(DataLog!$C726=\"Log value\",DataLog!O726,\"\")","v":""},{"$f":"IF(DataLog!$C726=\"Log value\",DataLog!P726,\"\")","v":""},{"$f":"IF(DataLog!$C726=\"Log value\",DataLog!Q726,\"\")","v":""},{"$f":"IF(DataLog!$C726=\"Log value\",DataLog!R726,\"\")","v":""},{"$f":"IF(DataLog!$C726=\"Log value\",DataLog!S726,\"\")","v":""},{"$f":"IF(DataLog!$C726=\"Log value\",DataLog!T726,\"\")","v":""},{"$f":"IF(DataLog!$C726=\"Log value\",DataLog!U726,\"\")","v":""},{"$f":"IF(DataLog!$C726=\"Log value\",DataLog!V726,\"\")","v":""},{"$f":"IF(DataLog!$C726=\"Log value\",DataLog!W726,\"\")","v":""},{"$f":"IF(DataLog!$C726=\"Log value\",DataLog!X726,\"\")","v":""},{"$f":"IF(DataLog!$C726=\"Log value\",DataLog!Y726,\"\")","v":""},{"$f":"IF(DataLog!$C726=\"Log value\",DataLog!Z726,\"\")","v":""},{"$f":"IF(DataLog!$C726=\"Log value\",DataLog!AA726,\"\")","v":""},{"$f":"IF(DataLog!$C726=\"Log value\",DataLog!AB726,\"\")","v":""},{"$f":"IF(DataLog!$C726=\"Log value\",DataLog!AC726,\"\")","v":""},{"$f":"IF(DataLog!$C726=\"Log value\",DataLog!AD726,\"\")","v":""},{"$f":"IF(DataLog!$C726=\"Log value\",DataLog!AE726,\"\")","v":""},{"$f":"IF(DataLog!$C726=\"Log value\",DataLog!AF726,\"\")","v":""},{"$f":"IF(DataLog!$C726=\"Log value\",DataLog!AG726,\"\")","v":""},{"$f":"IF(DataLog!$C726=\"Log value\",DataLog!AH726,\"\")","v":""},{"$f":"IF(DataLog!$C726=\"Log value\",DataLog!AI726,\"\")","v":""},{"$f":"IF(DataLog!$C726=\"Log value\",DataLog!AJ726,\"\")","v":""},{"$f":"IF(DataLog!$C726=\"Log value\",DataLog!AK726,\"\")","v":""},{"$f":"IF(DataLog!$C726=\"Log value\",DataLog!AL726,\"\")","v":""},{"$f":"IF(DataLog!$C726=\"Log value\",DataLog!AM726,\"\")","v":""}]
[null,null,null,null,null,null,{"$f":"IF(DataLog!$C727=\"Log value\",DataLog!D727&\"_\"&TEXT(DataLog!B727,\"åååå-mm-dd\"),\"\")","v":""},{"$f":"IF(DataLog!$C727=\"Log value\",DataLog!E727,\"\")","v":""},{"$f":"IF(DataLog!$C727=\"Log value\",DataLog!F727,\"\")","v":""},{"$f":"IF(DataLog!$C727=\"Log value\",DataLog!G727,\"\")","v":""},{"$f":"IF(DataLog!$C727=\"Log value\",DataLog!H727,\"\")","v":""},{"$f":"IF(DataLog!$C727=\"Log value\",DataLog!I727,\"\")","v":""},{"$f":"IF(DataLog!$C727=\"Log value\",DataLog!J727,\"\")","v":""},{"$f":"IF(DataLog!$C727=\"Log value\",DataLog!K727,\"\")","v":""},{"$f":"IF(DataLog!$C727=\"Log value\",DataLog!L727,\"\")","v":""},{"$f":"IF(DataLog!$C727=\"Log value\",DataLog!M727,\"\")","v":""},{"$f":"IF(DataLog!$C727=\"Log value\",DataLog!N727,\"\")","v":""},{"$f":"IF(DataLog!$C727=\"Log value\",DataLog!O727,\"\")","v":""},{"$f":"IF(DataLog!$C727=\"Log value\",DataLog!P727,\"\")","v":""},{"$f":"IF(DataLog!$C727=\"Log value\",DataLog!Q727,\"\")","v":""},{"$f":"IF(DataLog!$C727=\"Log value\",DataLog!R727,\"\")","v":""},{"$f":"IF(DataLog!$C727=\"Log value\",DataLog!S727,\"\")","v":""},{"$f":"IF(DataLog!$C727=\"Log value\",DataLog!T727,\"\")","v":""},{"$f":"IF(DataLog!$C727=\"Log value\",DataLog!U727,\"\")","v":""},{"$f":"IF(DataLog!$C727=\"Log value\",DataLog!V727,\"\")","v":""},{"$f":"IF(DataLog!$C727=\"Log value\",DataLog!W727,\"\")","v":""},{"$f":"IF(DataLog!$C727=\"Log value\",DataLog!X727,\"\")","v":""},{"$f":"IF(DataLog!$C727=\"Log value\",DataLog!Y727,\"\")","v":""},{"$f":"IF(DataLog!$C727=\"Log value\",DataLog!Z727,\"\")","v":""},{"$f":"IF(DataLog!$C727=\"Log value\",DataLog!AA727,\"\")","v":""},{"$f":"IF(DataLog!$C727=\"Log value\",DataLog!AB727,\"\")","v":""},{"$f":"IF(DataLog!$C727=\"Log value\",DataLog!AC727,\"\")","v":""},{"$f":"IF(DataLog!$C727=\"Log value\",DataLog!AD727,\"\")","v":""},{"$f":"IF(DataLog!$C727=\"Log value\",DataLog!AE727,\"\")","v":""},{"$f":"IF(DataLog!$C727=\"Log value\",DataLog!AF727,\"\")","v":""},{"$f":"IF(DataLog!$C727=\"Log value\",DataLog!AG727,\"\")","v":""},{"$f":"IF(DataLog!$C727=\"Log value\",DataLog!AH727,\"\")","v":""},{"$f":"IF(DataLog!$C727=\"Log value\",DataLog!AI727,\"\")","v":""},{"$f":"IF(DataLog!$C727=\"Log value\",DataLog!AJ727,\"\")","v":""},{"$f":"IF(DataLog!$C727=\"Log value\",DataLog!AK727,\"\")","v":""},{"$f":"IF(DataLog!$C727=\"Log value\",DataLog!AL727,\"\")","v":""},{"$f":"IF(DataLog!$C727=\"Log value\",DataLog!AM727,\"\")","v":""}]
[null,null,null,null,null,null,{"$f":"IF(DataLog!$C728=\"Log value\",DataLog!D728&\"_\"&TEXT(DataLog!B728,\"åååå-mm-dd\"),\"\")","v":""},{"$f":"IF(DataLog!$C728=\"Log value\",DataLog!E728,\"\")","v":""},{"$f":"IF(DataLog!$C728=\"Log value\",DataLog!F728,\"\")","v":""},{"$f":"IF(DataLog!$C728=\"Log value\",DataLog!G728,\"\")","v":""},{"$f":"IF(DataLog!$C728=\"Log value\",DataLog!H728,\"\")","v":""},{"$f":"IF(DataLog!$C728=\"Log value\",DataLog!I728,\"\")","v":""},{"$f":"IF(DataLog!$C728=\"Log value\",DataLog!J728,\"\")","v":""},{"$f":"IF(DataLog!$C728=\"Log value\",DataLog!K728,\"\")","v":""},{"$f":"IF(DataLog!$C728=\"Log value\",DataLog!L728,\"\")","v":""},{"$f":"IF(DataLog!$C728=\"Log value\",DataLog!M728,\"\")","v":""},{"$f":"IF(DataLog!$C728=\"Log value\",DataLog!N728,\"\")","v":""},{"$f":"IF(DataLog!$C728=\"Log value\",DataLog!O728,\"\")","v":""},{"$f":"IF(DataLog!$C728=\"Log value\",DataLog!P728,\"\")","v":""},{"$f":"IF(DataLog!$C728=\"Log value\",DataLog!Q728,\"\")","v":""},{"$f":"IF(DataLog!$C728=\"Log value\",DataLog!R728,\"\")","v":""},{"$f":"IF(DataLog!$C728=\"Log value\",DataLog!S728,\"\")","v":""},{"$f":"IF(DataLog!$C728=\"Log value\",DataLog!T728,\"\")","v":""},{"$f":"IF(DataLog!$C728=\"Log value\",DataLog!U728,\"\")","v":""},{"$f":"IF(DataLog!$C728=\"Log value\",DataLog!V728,\"\")","v":""},{"$f":"IF(DataLog!$C728=\"Log value\",DataLog!W728,\"\")","v":""},{"$f":"IF(DataLog!$C728=\"Log value\",DataLog!X728,\"\")","v":""},{"$f":"IF(DataLog!$C728=\"Log value\",DataLog!Y728,\"\")","v":""},{"$f":"IF(DataLog!$C728=\"Log value\",DataLog!Z728,\"\")","v":""},{"$f":"IF(DataLog!$C728=\"Log value\",DataLog!AA728,\"\")","v":""},{"$f":"IF(DataLog!$C728=\"Log value\",DataLog!AB728,\"\")","v":""},{"$f":"IF(DataLog!$C728=\"Log value\",DataLog!AC728,\"\")","v":""},{"$f":"IF(DataLog!$C728=\"Log value\",DataLog!AD728,\"\")","v":""},{"$f":"IF(DataLog!$C728=\"Log value\",DataLog!AE728,\"\")","v":""},{"$f":"IF(DataLog!$C728=\"Log value\",DataLog!AF728,\"\")","v":""},{"$f":"IF(DataLog!$C728=\"Log value\",DataLog!AG728,\"\")","v":""},{"$f":"IF(DataLog!$C728=\"Log value\",DataLog!AH728,\"\")","v":""},{"$f":"IF(DataLog!$C728=\"Log value\",DataLog!AI728,\"\")","v":""},{"$f":"IF(DataLog!$C728=\"Log value\",DataLog!AJ728,\"\")","v":""},{"$f":"IF(DataLog!$C728=\"Log value\",DataLog!AK728,\"\")","v":""},{"$f":"IF(DataLog!$C728=\"Log value\",DataLog!AL728,\"\")","v":""},{"$f":"IF(DataLog!$C728=\"Log value\",DataLog!AM728,\"\")","v":""}]
[null,null,null,null,null,null,{"$f":"IF(DataLog!$C729=\"Log value\",DataLog!D729&\"_\"&TEXT(DataLog!B729,\"åååå-mm-dd\"),\"\")","v":""},{"$f":"IF(DataLog!$C729=\"Log value\",DataLog!E729,\"\")","v":""},{"$f":"IF(DataLog!$C729=\"Log value\",DataLog!F729,\"\")","v":""},{"$f":"IF(DataLog!$C729=\"Log value\",DataLog!G729,\"\")","v":""},{"$f":"IF(DataLog!$C729=\"Log value\",DataLog!H729,\"\")","v":""},{"$f":"IF(DataLog!$C729=\"Log value\",DataLog!I729,\"\")","v":""},{"$f":"IF(DataLog!$C729=\"Log value\",DataLog!J729,\"\")","v":""},{"$f":"IF(DataLog!$C729=\"Log value\",DataLog!K729,\"\")","v":""},{"$f":"IF(DataLog!$C729=\"Log value\",DataLog!L729,\"\")","v":""},{"$f":"IF(DataLog!$C729=\"Log value\",DataLog!M729,\"\")","v":""},{"$f":"IF(DataLog!$C729=\"Log value\",DataLog!N729,\"\")","v":""},{"$f":"IF(DataLog!$C729=\"Log value\",DataLog!O729,\"\")","v":""},{"$f":"IF(DataLog!$C729=\"Log value\",DataLog!P729,\"\")","v":""},{"$f":"IF(DataLog!$C729=\"Log value\",DataLog!Q729,\"\")","v":""},{"$f":"IF(DataLog!$C729=\"Log value\",DataLog!R729,\"\")","v":""},{"$f":"IF(DataLog!$C729=\"Log value\",DataLog!S729,\"\")","v":""},{"$f":"IF(DataLog!$C729=\"Log value\",DataLog!T729,\"\")","v":""},{"$f":"IF(DataLog!$C729=\"Log value\",DataLog!U729,\"\")","v":""},{"$f":"IF(DataLog!$C729=\"Log value\",DataLog!V729,\"\")","v":""},{"$f":"IF(DataLog!$C729=\"Log value\",DataLog!W729,\"\")","v":""},{"$f":"IF(DataLog!$C729=\"Log value\",DataLog!X729,\"\")","v":""},{"$f":"IF(DataLog!$C729=\"Log value\",DataLog!Y729,\"\")","v":""},{"$f":"IF(DataLog!$C729=\"Log value\",DataLog!Z729,\"\")","v":""},{"$f":"IF(DataLog!$C729=\"Log value\",DataLog!AA729,\"\")","v":""},{"$f":"IF(DataLog!$C729=\"Log value\",DataLog!AB729,\"\")","v":""},{"$f":"IF(DataLog!$C729=\"Log value\",DataLog!AC729,\"\")","v":""},{"$f":"IF(DataLog!$C729=\"Log value\",DataLog!AD729,\"\")","v":""},{"$f":"IF(DataLog!$C729=\"Log value\",DataLog!AE729,\"\")","v":""},{"$f":"IF(DataLog!$C729=\"Log value\",DataLog!AF729,\"\")","v":""},{"$f":"IF(DataLog!$C729=\"Log value\",DataLog!AG729,\"\")","v":""},{"$f":"IF(DataLog!$C729=\"Log value\",DataLog!AH729,\"\")","v":""},{"$f":"IF(DataLog!$C729=\"Log value\",DataLog!AI729,\"\")","v":""},{"$f":"IF(DataLog!$C729=\"Log value\",DataLog!AJ729,\"\")","v":""},{"$f":"IF(DataLog!$C729=\"Log value\",DataLog!AK729,\"\")","v":""},{"$f":"IF(DataLog!$C729=\"Log value\",DataLog!AL729,\"\")","v":""},{"$f":"IF(DataLog!$C729=\"Log value\",DataLog!AM729,\"\")","v":""}]
[null,null,null,null,null,null,{"$f":"IF(DataLog!$C730=\"Log value\",DataLog!D730&\"_\"&TEXT(DataLog!B730,\"åååå-mm-dd\"),\"\")","v":""},{"$f":"IF(DataLog!$C730=\"Log value\",DataLog!E730,\"\")","v":""},{"$f":"IF(DataLog!$C730=\"Log value\",DataLog!F730,\"\")","v":""},{"$f":"IF(DataLog!$C730=\"Log value\",DataLog!G730,\"\")","v":""},{"$f":"IF(DataLog!$C730=\"Log value\",DataLog!H730,\"\")","v":""},{"$f":"IF(DataLog!$C730=\"Log value\",DataLog!I730,\"\")","v":""},{"$f":"IF(DataLog!$C730=\"Log value\",DataLog!J730,\"\")","v":""},{"$f":"IF(DataLog!$C730=\"Log value\",DataLog!K730,\"\")","v":""},{"$f":"IF(DataLog!$C730=\"Log value\",DataLog!L730,\"\")","v":""},{"$f":"IF(DataLog!$C730=\"Log value\",DataLog!M730,\"\")","v":""},{"$f":"IF(DataLog!$C730=\"Log value\",DataLog!N730,\"\")","v":""},{"$f":"IF(DataLog!$C730=\"Log value\",DataLog!O730,\"\")","v":""},{"$f":"IF(DataLog!$C730=\"Log value\",DataLog!P730,\"\")","v":""},{"$f":"IF(DataLog!$C730=\"Log value\",DataLog!Q730,\"\")","v":""},{"$f":"IF(DataLog!$C730=\"Log value\",DataLog!R730,\"\")","v":""},{"$f":"IF(DataLog!$C730=\"Log value\",DataLog!S730,\"\")","v":""},{"$f":"IF(DataLog!$C730=\"Log value\",DataLog!T730,\"\")","v":""},{"$f":"IF(DataLog!$C730=\"Log value\",DataLog!U730,\"\")","v":""},{"$f":"IF(DataLog!$C730=\"Log value\",DataLog!V730,\"\")","v":""},{"$f":"IF(DataLog!$C730=\"Log value\",DataLog!W730,\"\")","v":""},{"$f":"IF(DataLog!$C730=\"Log value\",DataLog!X730,\"\")","v":""},{"$f":"IF(DataLog!$C730=\"Log value\",DataLog!Y730,\"\")","v":""},{"$f":"IF(DataLog!$C730=\"Log value\",DataLog!Z730,\"\")","v":""},{"$f":"IF(DataLog!$C730=\"Log value\",DataLog!AA730,\"\")","v":""},{"$f":"IF(DataLog!$C730=\"Log value\",DataLog!AB730,\"\")","v":""},{"$f":"IF(DataLog!$C730=\"Log value\",DataLog!AC730,\"\")","v":""},{"$f":"IF(DataLog!$C730=\"Log value\",DataLog!AD730,\"\")","v":""},{"$f":"IF(DataLog!$C730=\"Log value\",DataLog!AE730,\"\")","v":""},{"$f":"IF(DataLog!$C730=\"Log value\",DataLog!AF730,\"\")","v":""},{"$f":"IF(DataLog!$C730=\"Log value\",DataLog!AG730,\"\")","v":""},{"$f":"IF(DataLog!$C730=\"Log value\",DataLog!AH730,\"\")","v":""},{"$f":"IF(DataLog!$C730=\"Log value\",DataLog!AI730,\"\")","v":""},{"$f":"IF(DataLog!$C730=\"Log value\",DataLog!AJ730,\"\")","v":""},{"$f":"IF(DataLog!$C730=\"Log value\",DataLog!AK730,\"\")","v":""},{"$f":"IF(DataLog!$C730=\"Log value\",DataLog!AL730,\"\")","v":""},{"$f":"IF(DataLog!$C730=\"Log value\",DataLog!AM730,\"\")","v":""}]
[null,null,null,null,null,null,{"$f":"IF(DataLog!$C731=\"Log value\",DataLog!D731&\"_\"&TEXT(DataLog!B731,\"åååå-mm-dd\"),\"\")","v":""},{"$f":"IF(DataLog!$C731=\"Log value\",DataLog!E731,\"\")","v":""},{"$f":"IF(DataLog!$C731=\"Log value\",DataLog!F731,\"\")","v":""},{"$f":"IF(DataLog!$C731=\"Log value\",DataLog!G731,\"\")","v":""},{"$f":"IF(DataLog!$C731=\"Log value\",DataLog!H731,\"\")","v":""},{"$f":"IF(DataLog!$C731=\"Log value\",DataLog!I731,\"\")","v":""},{"$f":"IF(DataLog!$C731=\"Log value\",DataLog!J731,\"\")","v":""},{"$f":"IF(DataLog!$C731=\"Log value\",DataLog!K731,\"\")","v":""},{"$f":"IF(DataLog!$C731=\"Log value\",DataLog!L731,\"\")","v":""},{"$f":"IF(DataLog!$C731=\"Log value\",DataLog!M731,\"\")","v":""},{"$f":"IF(DataLog!$C731=\"Log value\",DataLog!N731,\"\")","v":""},{"$f":"IF(DataLog!$C731=\"Log value\",DataLog!O731,\"\")","v":""},{"$f":"IF(DataLog!$C731=\"Log value\",DataLog!P731,\"\")","v":""},{"$f":"IF(DataLog!$C731=\"Log value\",DataLog!Q731,\"\")","v":""},{"$f":"IF(DataLog!$C731=\"Log value\",DataLog!R731,\"\")","v":""},{"$f":"IF(DataLog!$C731=\"Log value\",DataLog!S731,\"\")","v":""},{"$f":"IF(DataLog!$C731=\"Log value\",DataLog!T731,\"\")","v":""},{"$f":"IF(DataLog!$C731=\"Log value\",DataLog!U731,\"\")","v":""},{"$f":"IF(DataLog!$C731=\"Log value\",DataLog!V731,\"\")","v":""},{"$f":"IF(DataLog!$C731=\"Log value\",DataLog!W731,\"\")","v":""},{"$f":"IF(DataLog!$C731=\"Log value\",DataLog!X731,\"\")","v":""},{"$f":"IF(DataLog!$C731=\"Log value\",DataLog!Y731,\"\")","v":""},{"$f":"IF(DataLog!$C731=\"Log value\",DataLog!Z731,\"\")","v":""},{"$f":"IF(DataLog!$C731=\"Log value\",DataLog!AA731,\"\")","v":""},{"$f":"IF(DataLog!$C731=\"Log value\",DataLog!AB731,\"\")","v":""},{"$f":"IF(DataLog!$C731=\"Log value\",DataLog!AC731,\"\")","v":""},{"$f":"IF(DataLog!$C731=\"Log value\",DataLog!AD731,\"\")","v":""},{"$f":"IF(DataLog!$C731=\"Log value\",DataLog!AE731,\"\")","v":""},{"$f":"IF(DataLog!$C731=\"Log value\",DataLog!AF731,\"\")","v":""},{"$f":"IF(DataLog!$C731=\"Log value\",DataLog!AG731,\"\")","v":""},{"$f":"IF(DataLog!$C731=\"Log value\",DataLog!AH731,\"\")","v":""},{"$f":"IF(DataLog!$C731=\"Log value\",DataLog!AI731,\"\")","v":""},{"$f":"IF(DataLog!$C731=\"Log value\",DataLog!AJ731,\"\")","v":""},{"$f":"IF(DataLog!$C731=\"Log value\",DataLog!AK731,\"\")","v":""},{"$f":"IF(DataLog!$C731=\"Log value\",DataLog!AL731,\"\")","v":""},{"$f":"IF(DataLog!$C731=\"Log value\",DataLog!AM731,\"\")","v":""}]
[null,null,null,null,null,null,{"$f":"IF(DataLog!$C732=\"Log value\",DataLog!D732&\"_\"&TEXT(DataLog!B732,\"åååå-mm-dd\"),\"\")","v":""},{"$f":"IF(DataLog!$C732=\"Log value\",DataLog!E732,\"\")","v":""},{"$f":"IF(DataLog!$C732=\"Log value\",DataLog!F732,\"\")","v":""},{"$f":"IF(DataLog!$C732=\"Log value\",DataLog!G732,\"\")","v":""},{"$f":"IF(DataLog!$C732=\"Log value\",DataLog!H732,\"\")","v":""},{"$f":"IF(DataLog!$C732=\"Log value\",DataLog!I732,\"\")","v":""},{"$f":"IF(DataLog!$C732=\"Log value\",DataLog!J732,\"\")","v":""},{"$f":"IF(DataLog!$C732=\"Log value\",DataLog!K732,\"\")","v":""},{"$f":"IF(DataLog!$C732=\"Log value\",DataLog!L732,\"\")","v":""},{"$f":"IF(DataLog!$C732=\"Log value\",DataLog!M732,\"\")","v":""},{"$f":"IF(DataLog!$C732=\"Log value\",DataLog!N732,\"\")","v":""},{"$f":"IF(DataLog!$C732=\"Log value\",DataLog!O732,\"\")","v":""},{"$f":"IF(DataLog!$C732=\"Log value\",DataLog!P732,\"\")","v":""},{"$f":"IF(DataLog!$C732=\"Log value\",DataLog!Q732,\"\")","v":""},{"$f":"IF(DataLog!$C732=\"Log value\",DataLog!R732,\"\")","v":""},{"$f":"IF(DataLog!$C732=\"Log value\",DataLog!S732,\"\")","v":""},{"$f":"IF(DataLog!$C732=\"Log value\",DataLog!T732,\"\")","v":""},{"$f":"IF(DataLog!$C732=\"Log value\",DataLog!U732,\"\")","v":""},{"$f":"IF(DataLog!$C732=\"Log value\",DataLog!V732,\"\")","v":""},{"$f":"IF(DataLog!$C732=\"Log value\",DataLog!W732,\"\")","v":""},{"$f":"IF(DataLog!$C732=\"Log value\",DataLog!X732,\"\")","v":""},{"$f":"IF(DataLog!$C732=\"Log value\",DataLog!Y732,\"\")","v":""},{"$f":"IF(DataLog!$C732=\"Log value\",DataLog!Z732,\"\")","v":""},{"$f":"IF(DataLog!$C732=\"Log value\",DataLog!AA732,\"\")","v":""},{"$f":"IF(DataLog!$C732=\"Log value\",DataLog!AB732,\"\")","v":""},{"$f":"IF(DataLog!$C732=\"Log value\",DataLog!AC732,\"\")","v":""},{"$f":"IF(DataLog!$C732=\"Log value\",DataLog!AD732,\"\")","v":""},{"$f":"IF(DataLog!$C732=\"Log value\",DataLog!AE732,\"\")","v":""},{"$f":"IF(DataLog!$C732=\"Log value\",DataLog!AF732,\"\")","v":""},{"$f":"IF(DataLog!$C732=\"Log value\",DataLog!AG732,\"\")","v":""},{"$f":"IF(DataLog!$C732=\"Log value\",DataLog!AH732,\"\")","v":""},{"$f":"IF(DataLog!$C732=\"Log value\",DataLog!AI732,\"\")","v":""},{"$f":"IF(DataLog!$C732=\"Log value\",DataLog!AJ732,\"\")","v":""},{"$f":"IF(DataLog!$C732=\"Log value\",DataLog!AK732,\"\")","v":""},{"$f":"IF(DataLog!$C732=\"Log value\",DataLog!AL732,\"\")","v":""},{"$f":"IF(DataLog!$C732=\"Log value\",DataLog!AM732,\"\")","v":""}]
[null,null,null,null,null,null,{"$f":"IF(DataLog!$C733=\"Log value\",DataLog!D733&\"_\"&TEXT(DataLog!B733,\"åååå-mm-dd\"),\"\")","v":""},{"$f":"IF(DataLog!$C733=\"Log value\",DataLog!E733,\"\")","v":""},{"$f":"IF(DataLog!$C733=\"Log value\",DataLog!F733,\"\")","v":""},{"$f":"IF(DataLog!$C733=\"Log value\",DataLog!G733,\"\")","v":""},{"$f":"IF(DataLog!$C733=\"Log value\",DataLog!H733,\"\")","v":""},{"$f":"IF(DataLog!$C733=\"Log value\",DataLog!I733,\"\")","v":""},{"$f":"IF(DataLog!$C733=\"Log value\",DataLog!J733,\"\")","v":""},{"$f":"IF(DataLog!$C733=\"Log value\",DataLog!K733,\"\")","v":""},{"$f":"IF(DataLog!$C733=\"Log value\",DataLog!L733,\"\")","v":""},{"$f":"IF(DataLog!$C733=\"Log value\",DataLog!M733,\"\")","v":""},{"$f":"IF(DataLog!$C733=\"Log value\",DataLog!N733,\"\")","v":""},{"$f":"IF(DataLog!$C733=\"Log value\",DataLog!O733,\"\")","v":""},{"$f":"IF(DataLog!$C733=\"Log value\",DataLog!P733,\"\")","v":""},{"$f":"IF(DataLog!$C733=\"Log value\",DataLog!Q733,\"\")","v":""},{"$f":"IF(DataLog!$C733=\"Log value\",DataLog!R733,\"\")","v":""},{"$f":"IF(DataLog!$C733=\"Log value\",DataLog!S733,\"\")","v":""},{"$f":"IF(DataLog!$C733=\"Log value\",DataLog!T733,\"\")","v":""},{"$f":"IF(DataLog!$C733=\"Log value\",DataLog!U733,\"\")","v":""},{"$f":"IF(DataLog!$C733=\"Log value\",DataLog!V733,\"\")","v":""},{"$f":"IF(DataLog!$C733=\"Log value\",DataLog!W733,\"\")","v":""},{"$f":"IF(DataLog!$C733=\"Log value\",DataLog!X733,\"\")","v":""},{"$f":"IF(DataLog!$C733=\"Log value\",DataLog!Y733,\"\")","v":""},{"$f":"IF(DataLog!$C733=\"Log value\",DataLog!Z733,\"\")","v":""},{"$f":"IF(DataLog!$C733=\"Log value\",DataLog!AA733,\"\")","v":""},{"$f":"IF(DataLog!$C733=\"Log value\",DataLog!AB733,\"\")","v":""},{"$f":"IF(DataLog!$C733=\"Log value\",DataLog!AC733,\"\")","v":""},{"$f":"IF(DataLog!$C733=\"Log value\",DataLog!AD733,\"\")","v":""},{"$f":"IF(DataLog!$C733=\"Log value\",DataLog!AE733,\"\")","v":""},{"$f":"IF(DataLog!$C733=\"Log value\",DataLog!AF733,\"\")","v":""},{"$f":"IF(DataLog!$C733=\"Log value\",DataLog!AG733,\"\")","v":""},{"$f":"IF(DataLog!$C733=\"Log value\",DataLog!AH733,\"\")","v":""},{"$f":"IF(DataLog!$C733=\"Log value\",DataLog!AI733,\"\")","v":""},{"$f":"IF(DataLog!$C733=\"Log value\",DataLog!AJ733,\"\")","v":""},{"$f":"IF(DataLog!$C733=\"Log value\",DataLog!AK733,\"\")","v":""},{"$f":"IF(DataLog!$C733=\"Log value\",DataLog!AL733,\"\")","v":""},{"$f":"IF(DataLog!$C733=\"Log value\",DataLog!AM733,\"\")","v":""}]
[null,null,null,null,null,null,{"$f":"IF(DataLog!$C734=\"Log value\",DataLog!D734&\"_\"&TEXT(DataLog!B734,\"åååå-mm-dd\"),\"\")","v":""},{"$f":"IF(DataLog!$C734=\"Log value\",DataLog!E734,\"\")","v":""},{"$f":"IF(DataLog!$C734=\"Log value\",DataLog!F734,\"\")","v":""},{"$f":"IF(DataLog!$C734=\"Log value\",DataLog!G734,\"\")","v":""},{"$f":"IF(DataLog!$C734=\"Log value\",DataLog!H734,\"\")","v":""},{"$f":"IF(DataLog!$C734=\"Log value\",DataLog!I734,\"\")","v":""},{"$f":"IF(DataLog!$C734=\"Log value\",DataLog!J734,\"\")","v":""},{"$f":"IF(DataLog!$C734=\"Log value\",DataLog!K734,\"\")","v":""},{"$f":"IF(DataLog!$C734=\"Log value\",DataLog!L734,\"\")","v":""},{"$f":"IF(DataLog!$C734=\"Log value\",DataLog!M734,\"\")","v":""},{"$f":"IF(DataLog!$C734=\"Log value\",DataLog!N734,\"\")","v":""},{"$f":"IF(DataLog!$C734=\"Log value\",DataLog!O734,\"\")","v":""},{"$f":"IF(DataLog!$C734=\"Log value\",DataLog!P734,\"\")","v":""},{"$f":"IF(DataLog!$C734=\"Log value\",DataLog!Q734,\"\")","v":""},{"$f":"IF(DataLog!$C734=\"Log value\",DataLog!R734,\"\")","v":""},{"$f":"IF(DataLog!$C734=\"Log value\",DataLog!S734,\"\")","v":""},{"$f":"IF(DataLog!$C734=\"Log value\",DataLog!T734,\"\")","v":""},{"$f":"IF(DataLog!$C734=\"Log value\",DataLog!U734,\"\")","v":""},{"$f":"IF(DataLog!$C734=\"Log value\",DataLog!V734,\"\")","v":""},{"$f":"IF(DataLog!$C734=\"Log value\",DataLog!W734,\"\")","v":""},{"$f":"IF(DataLog!$C734=\"Log value\",DataLog!X734,\"\")","v":""},{"$f":"IF(DataLog!$C734=\"Log value\",DataLog!Y734,\"\")","v":""},{"$f":"IF(DataLog!$C734=\"Log value\",DataLog!Z734,\"\")","v":""},{"$f":"IF(DataLog!$C734=\"Log value\",DataLog!AA734,\"\")","v":""},{"$f":"IF(DataLog!$C734=\"Log value\",DataLog!AB734,\"\")","v":""},{"$f":"IF(DataLog!$C734=\"Log value\",DataLog!AC734,\"\")","v":""},{"$f":"IF(DataLog!$C734=\"Log value\",DataLog!AD734,\"\")","v":""},{"$f":"IF(DataLog!$C734=\"Log value\",DataLog!AE734,\"\")","v":""},{"$f":"IF(DataLog!$C734=\"Log value\",DataLog!AF734,\"\")","v":""},{"$f":"IF(DataLog!$C734=\"Log value\",DataLog!AG734,\"\")","v":""},{"$f":"IF(DataLog!$C734=\"Log value\",DataLog!AH734,\"\")","v":""},{"$f":"IF(DataLog!$C734=\"Log value\",DataLog!AI734,\"\")","v":""},{"$f":"IF(DataLog!$C734=\"Log value\",DataLog!AJ734,\"\")","v":""},{"$f":"IF(DataLog!$C734=\"Log value\",DataLog!AK734,\"\")","v":""},{"$f":"IF(DataLog!$C734=\"Log value\",DataLog!AL734,\"\")","v":""},{"$f":"IF(DataLog!$C734=\"Log value\",DataLog!AM734,\"\")","v":""}]
[null,null,null,null,null,null,{"$f":"IF(DataLog!$C735=\"Log value\",DataLog!D735&\"_\"&TEXT(DataLog!B735,\"åååå-mm-dd\"),\"\")","v":""},{"$f":"IF(DataLog!$C735=\"Log value\",DataLog!E735,\"\")","v":""},{"$f":"IF(DataLog!$C735=\"Log value\",DataLog!F735,\"\")","v":""},{"$f":"IF(DataLog!$C735=\"Log value\",DataLog!G735,\"\")","v":""},{"$f":"IF(DataLog!$C735=\"Log value\",DataLog!H735,\"\")","v":""},{"$f":"IF(DataLog!$C735=\"Log value\",DataLog!I735,\"\")","v":""},{"$f":"IF(DataLog!$C735=\"Log value\",DataLog!J735,\"\")","v":""},{"$f":"IF(DataLog!$C735=\"Log value\",DataLog!K735,\"\")","v":""},{"$f":"IF(DataLog!$C735=\"Log value\",DataLog!L735,\"\")","v":""},{"$f":"IF(DataLog!$C735=\"Log value\",DataLog!M735,\"\")","v":""},{"$f":"IF(DataLog!$C735=\"Log value\",DataLog!N735,\"\")","v":""},{"$f":"IF(DataLog!$C735=\"Log value\",DataLog!O735,\"\")","v":""},{"$f":"IF(DataLog!$C735=\"Log value\",DataLog!P735,\"\")","v":""},{"$f":"IF(DataLog!$C735=\"Log value\",DataLog!Q735,\"\")","v":""},{"$f":"IF(DataLog!$C735=\"Log value\",DataLog!R735,\"\")","v":""},{"$f":"IF(DataLog!$C735=\"Log value\",DataLog!S735,\"\")","v":""},{"$f":"IF(DataLog!$C735=\"Log value\",DataLog!T735,\"\")","v":""},{"$f":"IF(DataLog!$C735=\"Log value\",DataLog!U735,\"\")","v":""},{"$f":"IF(DataLog!$C735=\"Log value\",DataLog!V735,\"\")","v":""},{"$f":"IF(DataLog!$C735=\"Log value\",DataLog!W735,\"\")","v":""},{"$f":"IF(DataLog!$C735=\"Log value\",DataLog!X735,\"\")","v":""},{"$f":"IF(DataLog!$C735=\"Log value\",DataLog!Y735,\"\")","v":""},{"$f":"IF(DataLog!$C735=\"Log value\",DataLog!Z735,\"\")","v":""},{"$f":"IF(DataLog!$C735=\"Log value\",DataLog!AA735,\"\")","v":""},{"$f":"IF(DataLog!$C735=\"Log value\",DataLog!AB735,\"\")","v":""},{"$f":"IF(DataLog!$C735=\"Log value\",DataLog!AC735,\"\")","v":""},{"$f":"IF(DataLog!$C735=\"Log value\",DataLog!AD735,\"\")","v":""},{"$f":"IF(DataLog!$C735=\"Log value\",DataLog!AE735,\"\")","v":""},{"$f":"IF(DataLog!$C735=\"Log value\",DataLog!AF735,\"\")","v":""},{"$f":"IF(DataLog!$C735=\"Log value\",DataLog!AG735,\"\")","v":""},{"$f":"IF(DataLog!$C735=\"Log value\",DataLog!AH735,\"\")","v":""},{"$f":"IF(DataLog!$C735=\"Log value\",DataLog!AI735,\"\")","v":""},{"$f":"IF(DataLog!$C735=\"Log value\",DataLog!AJ735,\"\")","v":""},{"$f":"IF(DataLog!$C735=\"Log value\",DataLog!AK735,\"\")","v":""},{"$f":"IF(DataLog!$C735=\"Log value\",DataLog!AL735,\"\")","v":""},{"$f":"IF(DataLog!$C735=\"Log value\",DataLog!AM735,\"\")","v":""}]
[null,null,null,null,null,null,{"$f":"IF(DataLog!$C736=\"Log value\",DataLog!D736&\"_\"&TEXT(DataLog!B736,\"åååå-mm-dd\"),\"\")","v":""},{"$f":"IF(DataLog!$C736=\"Log value\",DataLog!E736,\"\")","v":""},{"$f":"IF(DataLog!$C736=\"Log value\",DataLog!F736,\"\")","v":""},{"$f":"IF(DataLog!$C736=\"Log value\",DataLog!G736,\"\")","v":""},{"$f":"IF(DataLog!$C736=\"Log value\",DataLog!H736,\"\")","v":""},{"$f":"IF(DataLog!$C736=\"Log value\",DataLog!I736,\"\")","v":""},{"$f":"IF(DataLog!$C736=\"Log value\",DataLog!J736,\"\")","v":""},{"$f":"IF(DataLog!$C736=\"Log value\",DataLog!K736,\"\")","v":""},{"$f":"IF(DataLog!$C736=\"Log value\",DataLog!L736,\"\")","v":""},{"$f":"IF(DataLog!$C736=\"Log value\",DataLog!M736,\"\")","v":""},{"$f":"IF(DataLog!$C736=\"Log value\",DataLog!N736,\"\")","v":""},{"$f":"IF(DataLog!$C736=\"Log value\",DataLog!O736,\"\")","v":""},{"$f":"IF(DataLog!$C736=\"Log value\",DataLog!P736,\"\")","v":""},{"$f":"IF(DataLog!$C736=\"Log value\",DataLog!Q736,\"\")","v":""},{"$f":"IF(DataLog!$C736=\"Log value\",DataLog!R736,\"\")","v":""},{"$f":"IF(DataLog!$C736=\"Log value\",DataLog!S736,\"\")","v":""},{"$f":"IF(DataLog!$C736=\"Log value\",DataLog!T736,\"\")","v":""},{"$f":"IF(DataLog!$C736=\"Log value\",DataLog!U736,\"\")","v":""},{"$f":"IF(DataLog!$C736=\"Log value\",DataLog!V736,\"\")","v":""},{"$f":"IF(DataLog!$C736=\"Log value\",DataLog!W736,\"\")","v":""},{"$f":"IF(DataLog!$C736=\"Log value\",DataLog!X736,\"\")","v":""},{"$f":"IF(DataLog!$C736=\"Log value\",DataLog!Y736,\"\")","v":""},{"$f":"IF(DataLog!$C736=\"Log value\",DataLog!Z736,\"\")","v":""},{"$f":"IF(DataLog!$C736=\"Log value\",DataLog!AA736,\"\")","v":""},{"$f":"IF(DataLog!$C736=\"Log value\",DataLog!AB736,\"\")","v":""},{"$f":"IF(DataLog!$C736=\"Log value\",DataLog!AC736,\"\")","v":""},{"$f":"IF(DataLog!$C736=\"Log value\",DataLog!AD736,\"\")","v":""},{"$f":"IF(DataLog!$C736=\"Log value\",DataLog!AE736,\"\")","v":""},{"$f":"IF(DataLog!$C736=\"Log value\",DataLog!AF736,\"\")","v":""},{"$f":"IF(DataLog!$C736=\"Log value\",DataLog!AG736,\"\")","v":""},{"$f":"IF(DataLog!$C736=\"Log value\",DataLog!AH736,\"\")","v":""},{"$f":"IF(DataLog!$C736=\"Log value\",DataLog!AI736,\"\")","v":""},{"$f":"IF(DataLog!$C736=\"Log value\",DataLog!AJ736,\"\")","v":""},{"$f":"IF(DataLog!$C736=\"Log value\",DataLog!AK736,\"\")","v":""},{"$f":"IF(DataLog!$C736=\"Log value\",DataLog!AL736,\"\")","v":""},{"$f":"IF(DataLog!$C736=\"Log value\",DataLog!AM736,\"\")","v":""}]
[null,null,null,null,null,null,{"$f":"IF(DataLog!$C737=\"Log value\",DataLog!D737&\"_\"&TEXT(DataLog!B737,\"åååå-mm-dd\"),\"\")","v":""},{"$f":"IF(DataLog!$C737=\"Log value\",DataLog!E737,\"\")","v":""},{"$f":"IF(DataLog!$C737=\"Log value\",DataLog!F737,\"\")","v":""},{"$f":"IF(DataLog!$C737=\"Log value\",DataLog!G737,\"\")","v":""},{"$f":"IF(DataLog!$C737=\"Log value\",DataLog!H737,\"\")","v":""},{"$f":"IF(DataLog!$C737=\"Log value\",DataLog!I737,\"\")","v":""},{"$f":"IF(DataLog!$C737=\"Log value\",DataLog!J737,\"\")","v":""},{"$f":"IF(DataLog!$C737=\"Log value\",DataLog!K737,\"\")","v":""},{"$f":"IF(DataLog!$C737=\"Log value\",DataLog!L737,\"\")","v":""},{"$f":"IF(DataLog!$C737=\"Log value\",DataLog!M737,\"\")","v":""},{"$f":"IF(DataLog!$C737=\"Log value\",DataLog!N737,\"\")","v":""},{"$f":"IF(DataLog!$C737=\"Log value\",DataLog!O737,\"\")","v":""},{"$f":"IF(DataLog!$C737=\"Log value\",DataLog!P737,\"\")","v":""},{"$f":"IF(DataLog!$C737=\"Log value\",DataLog!Q737,\"\")","v":""},{"$f":"IF(DataLog!$C737=\"Log value\",DataLog!R737,\"\")","v":""},{"$f":"IF(DataLog!$C737=\"Log value\",DataLog!S737,\"\")","v":""},{"$f":"IF(DataLog!$C737=\"Log value\",DataLog!T737,\"\")","v":""},{"$f":"IF(DataLog!$C737=\"Log value\",DataLog!U737,\"\")","v":""},{"$f":"IF(DataLog!$C737=\"Log value\",DataLog!V737,\"\")","v":""},{"$f":"IF(DataLog!$C737=\"Log value\",DataLog!W737,\"\")","v":""},{"$f":"IF(DataLog!$C737=\"Log value\",DataLog!X737,\"\")","v":""},{"$f":"IF(DataLog!$C737=\"Log value\",DataLog!Y737,\"\")","v":""},{"$f":"IF(DataLog!$C737=\"Log value\",DataLog!Z737,\"\")","v":""},{"$f":"IF(DataLog!$C737=\"Log value\",DataLog!AA737,\"\")","v":""},{"$f":"IF(DataLog!$C737=\"Log value\",DataLog!AB737,\"\")","v":""},{"$f":"IF(DataLog!$C737=\"Log value\",DataLog!AC737,\"\")","v":""},{"$f":"IF(DataLog!$C737=\"Log value\",DataLog!AD737,\"\")","v":""},{"$f":"IF(DataLog!$C737=\"Log value\",DataLog!AE737,\"\")","v":""},{"$f":"IF(DataLog!$C737=\"Log value\",DataLog!AF737,\"\")","v":""},{"$f":"IF(DataLog!$C737=\"Log value\",DataLog!AG737,\"\")","v":""},{"$f":"IF(DataLog!$C737=\"Log value\",DataLog!AH737,\"\")","v":""},{"$f":"IF(DataLog!$C737=\"Log value\",DataLog!AI737,\"\")","v":""},{"$f":"IF(DataLog!$C737=\"Log value\",DataLog!AJ737,\"\")","v":""},{"$f":"IF(DataLog!$C737=\"Log value\",DataLog!AK737,\"\")","v":""},{"$f":"IF(DataLog!$C737=\"Log value\",DataLog!AL737,\"\")","v":""},{"$f":"IF(DataLog!$C737=\"Log value\",DataLog!AM737,\"\")","v":""}]
[null,null,null,null,null,null,{"$f":"IF(DataLog!$C738=\"Log value\",DataLog!D738&\"_\"&TEXT(DataLog!B738,\"åååå-mm-dd\"),\"\")","v":""},{"$f":"IF(DataLog!$C738=\"Log value\",DataLog!E738,\"\")","v":""},{"$f":"IF(DataLog!$C738=\"Log value\",DataLog!F738,\"\")","v":""},{"$f":"IF(DataLog!$C738=\"Log value\",DataLog!G738,\"\")","v":""},{"$f":"IF(DataLog!$C738=\"Log value\",DataLog!H738,\"\")","v":""},{"$f":"IF(DataLog!$C738=\"Log value\",DataLog!I738,\"\")","v":""},{"$f":"IF(DataLog!$C738=\"Log value\",DataLog!J738,\"\")","v":""},{"$f":"IF(DataLog!$C738=\"Log value\",DataLog!K738,\"\")","v":""},{"$f":"IF(DataLog!$C738=\"Log value\",DataLog!L738,\"\")","v":""},{"$f":"IF(DataLog!$C738=\"Log value\",DataLog!M738,\"\")","v":""},{"$f":"IF(DataLog!$C738=\"Log value\",DataLog!N738,\"\")","v":""},{"$f":"IF(DataLog!$C738=\"Log value\",DataLog!O738,\"\")","v":""},{"$f":"IF(DataLog!$C738=\"Log value\",DataLog!P738,\"\")","v":""},{"$f":"IF(DataLog!$C738=\"Log value\",DataLog!Q738,\"\")","v":""},{"$f":"IF(DataLog!$C738=\"Log value\",DataLog!R738,\"\")","v":""},{"$f":"IF(DataLog!$C738=\"Log value\",DataLog!S738,\"\")","v":""},{"$f":"IF(DataLog!$C738=\"Log value\",DataLog!T738,\"\")","v":""},{"$f":"IF(DataLog!$C738=\"Log value\",DataLog!U738,\"\")","v":""},{"$f":"IF(DataLog!$C738=\"Log value\",DataLog!V738,\"\")","v":""},{"$f":"IF(DataLog!$C738=\"Log value\",DataLog!W738,\"\")","v":""},{"$f":"IF(DataLog!$C738=\"Log value\",DataLog!X738,\"\")","v":""},{"$f":"IF(DataLog!$C738=\"Log value\",DataLog!Y738,\"\")","v":""},{"$f":"IF(DataLog!$C738=\"Log value\",DataLog!Z738,\"\")","v":""},{"$f":"IF(DataLog!$C738=\"Log value\",DataLog!AA738,\"\")","v":""},{"$f":"IF(DataLog!$C738=\"Log value\",DataLog!AB738,\"\")","v":""},{"$f":"IF(DataLog!$C738=\"Log value\",DataLog!AC738,\"\")","v":""},{"$f":"IF(DataLog!$C738=\"Log value\",DataLog!AD738,\"\")","v":""},{"$f":"IF(DataLog!$C738=\"Log value\",DataLog!AE738,\"\")","v":""},{"$f":"IF(DataLog!$C738=\"Log value\",DataLog!AF738,\"\")","v":""},{"$f":"IF(DataLog!$C738=\"Log value\",DataLog!AG738,\"\")","v":""},{"$f":"IF(DataLog!$C738=\"Log value\",DataLog!AH738,\"\")","v":""},{"$f":"IF(DataLog!$C738=\"Log value\",DataLog!AI738,\"\")","v":""},{"$f":"IF(DataLog!$C738=\"Log value\",DataLog!AJ738,\"\")","v":""},{"$f":"IF(DataLog!$C738=\"Log value\",DataLog!AK738,\"\")","v":""},{"$f":"IF(DataLog!$C738=\"Log value\",DataLog!AL738,\"\")","v":""},{"$f":"IF(DataLog!$C738=\"Log value\",DataLog!AM738,\"\")","v":""}]
[null,null,null,null,null,null,{"$f":"IF(DataLog!$C739=\"Log value\",DataLog!D739&\"_\"&TEXT(DataLog!B739,\"åååå-mm-dd\"),\"\")","v":""},{"$f":"IF(DataLog!$C739=\"Log value\",DataLog!E739,\"\")","v":""},{"$f":"IF(DataLog!$C739=\"Log value\",DataLog!F739,\"\")","v":""},{"$f":"IF(DataLog!$C739=\"Log value\",DataLog!G739,\"\")","v":""},{"$f":"IF(DataLog!$C739=\"Log value\",DataLog!H739,\"\")","v":""},{"$f":"IF(DataLog!$C739=\"Log value\",DataLog!I739,\"\")","v":""},{"$f":"IF(DataLog!$C739=\"Log value\",DataLog!J739,\"\")","v":""},{"$f":"IF(DataLog!$C739=\"Log value\",DataLog!K739,\"\")","v":""},{"$f":"IF(DataLog!$C739=\"Log value\",DataLog!L739,\"\")","v":""},{"$f":"IF(DataLog!$C739=\"Log value\",DataLog!M739,\"\")","v":""},{"$f":"IF(DataLog!$C739=\"Log value\",DataLog!N739,\"\")","v":""},{"$f":"IF(DataLog!$C739=\"Log value\",DataLog!O739,\"\")","v":""},{"$f":"IF(DataLog!$C739=\"Log value\",DataLog!P739,\"\")","v":""},{"$f":"IF(DataLog!$C739=\"Log value\",DataLog!Q739,\"\")","v":""},{"$f":"IF(DataLog!$C739=\"Log value\",DataLog!R739,\"\")","v":""},{"$f":"IF(DataLog!$C739=\"Log value\",DataLog!S739,\"\")","v":""},{"$f":"IF(DataLog!$C739=\"Log value\",DataLog!T739,\"\")","v":""},{"$f":"IF(DataLog!$C739=\"Log value\",DataLog!U739,\"\")","v":""},{"$f":"IF(DataLog!$C739=\"Log value\",DataLog!V739,\"\")","v":""},{"$f":"IF(DataLog!$C739=\"Log value\",DataLog!W739,\"\")","v":""},{"$f":"IF(DataLog!$C739=\"Log value\",DataLog!X739,\"\")","v":""},{"$f":"IF(DataLog!$C739=\"Log value\",DataLog!Y739,\"\")","v":""},{"$f":"IF(DataLog!$C739=\"Log value\",DataLog!Z739,\"\")","v":""},{"$f":"IF(DataLog!$C739=\"Log value\",DataLog!AA739,\"\")","v":""},{"$f":"IF(DataLog!$C739=\"Log value\",DataLog!AB739,\"\")","v":""},{"$f":"IF(DataLog!$C739=\"Log value\",DataLog!AC739,\"\")","v":""},{"$f":"IF(DataLog!$C739=\"Log value\",DataLog!AD739,\"\")","v":""},{"$f":"IF(DataLog!$C739=\"Log value\",DataLog!AE739,\"\")","v":""},{"$f":"IF(DataLog!$C739=\"Log value\",DataLog!AF739,\"\")","v":""},{"$f":"IF(DataLog!$C739=\"Log value\",DataLog!AG739,\"\")","v":""},{"$f":"IF(DataLog!$C739=\"Log value\",DataLog!AH739,\"\")","v":""},{"$f":"IF(DataLog!$C739=\"Log value\",DataLog!AI739,\"\")","v":""},{"$f":"IF(DataLog!$C739=\"Log value\",DataLog!AJ739,\"\")","v":""},{"$f":"IF(DataLog!$C739=\"Log value\",DataLog!AK739,\"\")","v":""},{"$f":"IF(DataLog!$C739=\"Log value\",DataLog!AL739,\"\")","v":""},{"$f":"IF(DataLog!$C739=\"Log value\",DataLog!AM739,\"\")","v":""}]
[null,null,null,null,null,null,{"$f":"IF(DataLog!$C740=\"Log value\",DataLog!D740&\"_\"&TEXT(DataLog!B740,\"åååå-mm-dd\"),\"\")","v":""},{"$f":"IF(DataLog!$C740=\"Log value\",DataLog!E740,\"\")","v":""},{"$f":"IF(DataLog!$C740=\"Log value\",DataLog!F740,\"\")","v":""},{"$f":"IF(DataLog!$C740=\"Log value\",DataLog!G740,\"\")","v":""},{"$f":"IF(DataLog!$C740=\"Log value\",DataLog!H740,\"\")","v":""},{"$f":"IF(DataLog!$C740=\"Log value\",DataLog!I740,\"\")","v":""},{"$f":"IF(DataLog!$C740=\"Log value\",DataLog!J740,\"\")","v":""},{"$f":"IF(DataLog!$C740=\"Log value\",DataLog!K740,\"\")","v":""},{"$f":"IF(DataLog!$C740=\"Log value\",DataLog!L740,\"\")","v":""},{"$f":"IF(DataLog!$C740=\"Log value\",DataLog!M740,\"\")","v":""},{"$f":"IF(DataLog!$C740=\"Log value\",DataLog!N740,\"\")","v":""},{"$f":"IF(DataLog!$C740=\"Log value\",DataLog!O740,\"\")","v":""},{"$f":"IF(DataLog!$C740=\"Log value\",DataLog!P740,\"\")","v":""},{"$f":"IF(DataLog!$C740=\"Log value\",DataLog!Q740,\"\")","v":""},{"$f":"IF(DataLog!$C740=\"Log value\",DataLog!R740,\"\")","v":""},{"$f":"IF(DataLog!$C740=\"Log value\",DataLog!S740,\"\")","v":""},{"$f":"IF(DataLog!$C740=\"Log value\",DataLog!T740,\"\")","v":""},{"$f":"IF(DataLog!$C740=\"Log value\",DataLog!U740,\"\")","v":""},{"$f":"IF(DataLog!$C740=\"Log value\",DataLog!V740,\"\")","v":""},{"$f":"IF(DataLog!$C740=\"Log value\",DataLog!W740,\"\")","v":""},{"$f":"IF(DataLog!$C740=\"Log value\",DataLog!X740,\"\")","v":""},{"$f":"IF(DataLog!$C740=\"Log value\",DataLog!Y740,\"\")","v":""},{"$f":"IF(DataLog!$C740=\"Log value\",DataLog!Z740,\"\")","v":""},{"$f":"IF(DataLog!$C740=\"Log value\",DataLog!AA740,\"\")","v":""},{"$f":"IF(DataLog!$C740=\"Log value\",DataLog!AB740,\"\")","v":""},{"$f":"IF(DataLog!$C740=\"Log value\",DataLog!AC740,\"\")","v":""},{"$f":"IF(DataLog!$C740=\"Log value\",DataLog!AD740,\"\")","v":""},{"$f":"IF(DataLog!$C740=\"Log value\",DataLog!AE740,\"\")","v":""},{"$f":"IF(DataLog!$C740=\"Log value\",DataLog!AF740,\"\")","v":""},{"$f":"IF(DataLog!$C740=\"Log value\",DataLog!AG740,\"\")","v":""},{"$f":"IF(DataLog!$C740=\"Log value\",DataLog!AH740,\"\")","v":""},{"$f":"IF(DataLog!$C740=\"Log value\",DataLog!AI740,\"\")","v":""},{"$f":"IF(DataLog!$C740=\"Log value\",DataLog!AJ740,\"\")","v":""},{"$f":"IF(DataLog!$C740=\"Log value\",DataLog!AK740,\"\")","v":""},{"$f":"IF(DataLog!$C740=\"Log value\",DataLog!AL740,\"\")","v":""},{"$f":"IF(DataLog!$C740=\"Log value\",DataLog!AM740,\"\")","v":""}]
[null,null,null,null,null,null,{"$f":"IF(DataLog!$C741=\"Log value\",DataLog!D741&\"_\"&TEXT(DataLog!B741,\"åååå-mm-dd\"),\"\")","v":""},{"$f":"IF(DataLog!$C741=\"Log value\",DataLog!E741,\"\")","v":""},{"$f":"IF(DataLog!$C741=\"Log value\",DataLog!F741,\"\")","v":""},{"$f":"IF(DataLog!$C741=\"Log value\",DataLog!G741,\"\")","v":""},{"$f":"IF(DataLog!$C741=\"Log value\",DataLog!H741,\"\")","v":""},{"$f":"IF(DataLog!$C741=\"Log value\",DataLog!I741,\"\")","v":""},{"$f":"IF(DataLog!$C741=\"Log value\",DataLog!J741,\"\")","v":""},{"$f":"IF(DataLog!$C741=\"Log value\",DataLog!K741,\"\")","v":""},{"$f":"IF(DataLog!$C741=\"Log value\",DataLog!L741,\"\")","v":""},{"$f":"IF(DataLog!$C741=\"Log value\",DataLog!M741,\"\")","v":""},{"$f":"IF(DataLog!$C741=\"Log value\",DataLog!N741,\"\")","v":""},{"$f":"IF(DataLog!$C741=\"Log value\",DataLog!O741,\"\")","v":""},{"$f":"IF(DataLog!$C741=\"Log value\",DataLog!P741,\"\")","v":""},{"$f":"IF(DataLog!$C741=\"Log value\",DataLog!Q741,\"\")","v":""},{"$f":"IF(DataLog!$C741=\"Log value\",DataLog!R741,\"\")","v":""},{"$f":"IF(DataLog!$C741=\"Log value\",DataLog!S741,\"\")","v":""},{"$f":"IF(DataLog!$C741=\"Log value\",DataLog!T741,\"\")","v":""},{"$f":"IF(DataLog!$C741=\"Log value\",DataLog!U741,\"\")","v":""},{"$f":"IF(DataLog!$C741=\"Log value\",DataLog!V741,\"\")","v":""},{"$f":"IF(DataLog!$C741=\"Log value\",DataLog!W741,\"\")","v":""},{"$f":"IF(DataLog!$C741=\"Log value\",DataLog!X741,\"\")","v":""},{"$f":"IF(DataLog!$C741=\"Log value\",DataLog!Y741,\"\")","v":""},{"$f":"IF(DataLog!$C741=\"Log value\",DataLog!Z741,\"\")","v":""},{"$f":"IF(DataLog!$C741=\"Log value\",DataLog!AA741,\"\")","v":""},{"$f":"IF(DataLog!$C741=\"Log value\",DataLog!AB741,\"\")","v":""},{"$f":"IF(DataLog!$C741=\"Log value\",DataLog!AC741,\"\")","v":""},{"$f":"IF(DataLog!$C741=\"Log value\",DataLog!AD741,\"\")","v":""},{"$f":"IF(DataLog!$C741=\"Log value\",DataLog!AE741,\"\")","v":""},{"$f":"IF(DataLog!$C741=\"Log value\",DataLog!AF741,\"\")","v":""},{"$f":"IF(DataLog!$C741=\"Log value\",DataLog!AG741,\"\")","v":""},{"$f":"IF(DataLog!$C741=\"Log value\",DataLog!AH741,\"\")","v":""},{"$f":"IF(DataLog!$C741=\"Log value\",DataLog!AI741,\"\")","v":""},{"$f":"IF(DataLog!$C741=\"Log value\",DataLog!AJ741,\"\")","v":""},{"$f":"IF(DataLog!$C741=\"Log value\",DataLog!AK741,\"\")","v":""},{"$f":"IF(DataLog!$C741=\"Log value\",DataLog!AL741,\"\")","v":""},{"$f":"IF(DataLog!$C741=\"Log value\",DataLog!AM741,\"\")","v":""}]
[null,null,null,null,null,null,{"$f":"IF(DataLog!$C742=\"Log value\",DataLog!D742&\"_\"&TEXT(DataLog!B742,\"åååå-mm-dd\"),\"\")","v":""},{"$f":"IF(DataLog!$C742=\"Log value\",DataLog!E742,\"\")","v":""},{"$f":"IF(DataLog!$C742=\"Log value\",DataLog!F742,\"\")","v":""},{"$f":"IF(DataLog!$C742=\"Log value\",DataLog!G742,\"\")","v":""},{"$f":"IF(DataLog!$C742=\"Log value\",DataLog!H742,\"\")","v":""},{"$f":"IF(DataLog!$C742=\"Log value\",DataLog!I742,\"\")","v":""},{"$f":"IF(DataLog!$C742=\"Log value\",DataLog!J742,\"\")","v":""},{"$f":"IF(DataLog!$C742=\"Log value\",DataLog!K742,\"\")","v":""},{"$f":"IF(DataLog!$C742=\"Log value\",DataLog!L742,\"\")","v":""},{"$f":"IF(DataLog!$C742=\"Log value\",DataLog!M742,\"\")","v":""},{"$f":"IF(DataLog!$C742=\"Log value\",DataLog!N742,\"\")","v":""},{"$f":"IF(DataLog!$C742=\"Log value\",DataLog!O742,\"\")","v":""},{"$f":"IF(DataLog!$C742=\"Log value\",DataLog!P742,\"\")","v":""},{"$f":"IF(DataLog!$C742=\"Log value\",DataLog!Q742,\"\")","v":""},{"$f":"IF(DataLog!$C742=\"Log value\",DataLog!R742,\"\")","v":""},{"$f":"IF(DataLog!$C742=\"Log value\",DataLog!S742,\"\")","v":""},{"$f":"IF(DataLog!$C742=\"Log value\",DataLog!T742,\"\")","v":""},{"$f":"IF(DataLog!$C742=\"Log value\",DataLog!U742,\"\")","v":""},{"$f":"IF(DataLog!$C742=\"Log value\",DataLog!V742,\"\")","v":""},{"$f":"IF(DataLog!$C742=\"Log value\",DataLog!W742,\"\")","v":""},{"$f":"IF(DataLog!$C742=\"Log value\",DataLog!X742,\"\")","v":""},{"$f":"IF(DataLog!$C742=\"Log value\",DataLog!Y742,\"\")","v":""},{"$f":"IF(DataLog!$C742=\"Log value\",DataLog!Z742,\"\")","v":""},{"$f":"IF(DataLog!$C742=\"Log value\",DataLog!AA742,\"\")","v":""},{"$f":"IF(DataLog!$C742=\"Log value\",DataLog!AB742,\"\")","v":""},{"$f":"IF(DataLog!$C742=\"Log value\",DataLog!AC742,\"\")","v":""},{"$f":"IF(DataLog!$C742=\"Log value\",DataLog!AD742,\"\")","v":""},{"$f":"IF(DataLog!$C742=\"Log value\",DataLog!AE742,\"\")","v":""},{"$f":"IF(DataLog!$C742=\"Log value\",DataLog!AF742,\"\")","v":""},{"$f":"IF(DataLog!$C742=\"Log value\",DataLog!AG742,\"\")","v":""},{"$f":"IF(DataLog!$C742=\"Log value\",DataLog!AH742,\"\")","v":""},{"$f":"IF(DataLog!$C742=\"Log value\",DataLog!AI742,\"\")","v":""},{"$f":"IF(DataLog!$C742=\"Log value\",DataLog!AJ742,\"\")","v":""},{"$f":"IF(DataLog!$C742=\"Log value\",DataLog!AK742,\"\")","v":""},{"$f":"IF(DataLog!$C742=\"Log value\",DataLog!AL742,\"\")","v":""},{"$f":"IF(DataLog!$C742=\"Log value\",DataLog!AM742,\"\")","v":""}]
[null,null,null,null,null,null,{"$f":"IF(DataLog!$C743=\"Log value\",DataLog!D743&\"_\"&TEXT(DataLog!B743,\"åååå-mm-dd\"),\"\")","v":""},{"$f":"IF(DataLog!$C743=\"Log value\",DataLog!E743,\"\")","v":""},{"$f":"IF(DataLog!$C743=\"Log value\",DataLog!F743,\"\")","v":""},{"$f":"IF(DataLog!$C743=\"Log value\",DataLog!G743,\"\")","v":""},{"$f":"IF(DataLog!$C743=\"Log value\",DataLog!H743,\"\")","v":""},{"$f":"IF(DataLog!$C743=\"Log value\",DataLog!I743,\"\")","v":""},{"$f":"IF(DataLog!$C743=\"Log value\",DataLog!J743,\"\")","v":""},{"$f":"IF(DataLog!$C743=\"Log value\",DataLog!K743,\"\")","v":""},{"$f":"IF(DataLog!$C743=\"Log value\",DataLog!L743,\"\")","v":""},{"$f":"IF(DataLog!$C743=\"Log value\",DataLog!M743,\"\")","v":""},{"$f":"IF(DataLog!$C743=\"Log value\",DataLog!N743,\"\")","v":""},{"$f":"IF(DataLog!$C743=\"Log value\",DataLog!O743,\"\")","v":""},{"$f":"IF(DataLog!$C743=\"Log value\",DataLog!P743,\"\")","v":""},{"$f":"IF(DataLog!$C743=\"Log value\",DataLog!Q743,\"\")","v":""},{"$f":"IF(DataLog!$C743=\"Log value\",DataLog!R743,\"\")","v":""},{"$f":"IF(DataLog!$C743=\"Log value\",DataLog!S743,\"\")","v":""},{"$f":"IF(DataLog!$C743=\"Log value\",DataLog!T743,\"\")","v":""},{"$f":"IF(DataLog!$C743=\"Log value\",DataLog!U743,\"\")","v":""},{"$f":"IF(DataLog!$C743=\"Log value\",DataLog!V743,\"\")","v":""},{"$f":"IF(DataLog!$C743=\"Log value\",DataLog!W743,\"\")","v":""},{"$f":"IF(DataLog!$C743=\"Log value\",DataLog!X743,\"\")","v":""},{"$f":"IF(DataLog!$C743=\"Log value\",DataLog!Y743,\"\")","v":""},{"$f":"IF(DataLog!$C743=\"Log value\",DataLog!Z743,\"\")","v":""},{"$f":"IF(DataLog!$C743=\"Log value\",DataLog!AA743,\"\")","v":""},{"$f":"IF(DataLog!$C743=\"Log value\",DataLog!AB743,\"\")","v":""},{"$f":"IF(DataLog!$C743=\"Log value\",DataLog!AC743,\"\")","v":""},{"$f":"IF(DataLog!$C743=\"Log value\",DataLog!AD743,\"\")","v":""},{"$f":"IF(DataLog!$C743=\"Log value\",DataLog!AE743,\"\")","v":""},{"$f":"IF(DataLog!$C743=\"Log value\",DataLog!AF743,\"\")","v":""},{"$f":"IF(DataLog!$C743=\"Log value\",DataLog!AG743,\"\")","v":""},{"$f":"IF(DataLog!$C743=\"Log value\",DataLog!AH743,\"\")","v":""},{"$f":"IF(DataLog!$C743=\"Log value\",DataLog!AI743,\"\")","v":""},{"$f":"IF(DataLog!$C743=\"Log value\",DataLog!AJ743,\"\")","v":""},{"$f":"IF(DataLog!$C743=\"Log value\",DataLog!AK743,\"\")","v":""},{"$f":"IF(DataLog!$C743=\"Log value\",DataLog!AL743,\"\")","v":""},{"$f":"IF(DataLog!$C743=\"Log value\",DataLog!AM743,\"\")","v":""}]
[null,null,null,null,null,null,{"$f":"IF(DataLog!$C744=\"Log value\",DataLog!D744&\"_\"&TEXT(DataLog!B744,\"åååå-mm-dd\"),\"\")","v":""},{"$f":"IF(DataLog!$C744=\"Log value\",DataLog!E744,\"\")","v":""},{"$f":"IF(DataLog!$C744=\"Log value\",DataLog!F744,\"\")","v":""},{"$f":"IF(DataLog!$C744=\"Log value\",DataLog!G744,\"\")","v":""},{"$f":"IF(DataLog!$C744=\"Log value\",DataLog!H744,\"\")","v":""},{"$f":"IF(DataLog!$C744=\"Log value\",DataLog!I744,\"\")","v":""},{"$f":"IF(DataLog!$C744=\"Log value\",DataLog!J744,\"\")","v":""},{"$f":"IF(DataLog!$C744=\"Log value\",DataLog!K744,\"\")","v":""},{"$f":"IF(DataLog!$C744=\"Log value\",DataLog!L744,\"\")","v":""},{"$f":"IF(DataLog!$C744=\"Log value\",DataLog!M744,\"\")","v":""},{"$f":"IF(DataLog!$C744=\"Log value\",DataLog!N744,\"\")","v":""},{"$f":"IF(DataLog!$C744=\"Log value\",DataLog!O744,\"\")","v":""},{"$f":"IF(DataLog!$C744=\"Log value\",DataLog!P744,\"\")","v":""},{"$f":"IF(DataLog!$C744=\"Log value\",DataLog!Q744,\"\")","v":""},{"$f":"IF(DataLog!$C744=\"Log value\",DataLog!R744,\"\")","v":""},{"$f":"IF(DataLog!$C744=\"Log value\",DataLog!S744,\"\")","v":""},{"$f":"IF(DataLog!$C744=\"Log value\",DataLog!T744,\"\")","v":""},{"$f":"IF(DataLog!$C744=\"Log value\",DataLog!U744,\"\")","v":""},{"$f":"IF(DataLog!$C744=\"Log value\",DataLog!V744,\"\")","v":""},{"$f":"IF(DataLog!$C744=\"Log value\",DataLog!W744,\"\")","v":""},{"$f":"IF(DataLog!$C744=\"Log value\",DataLog!X744,\"\")","v":""},{"$f":"IF(DataLog!$C744=\"Log value\",DataLog!Y744,\"\")","v":""},{"$f":"IF(DataLog!$C744=\"Log value\",DataLog!Z744,\"\")","v":""},{"$f":"IF(DataLog!$C744=\"Log value\",DataLog!AA744,\"\")","v":""},{"$f":"IF(DataLog!$C744=\"Log value\",DataLog!AB744,\"\")","v":""},{"$f":"IF(DataLog!$C744=\"Log value\",DataLog!AC744,\"\")","v":""},{"$f":"IF(DataLog!$C744=\"Log value\",DataLog!AD744,\"\")","v":""},{"$f":"IF(DataLog!$C744=\"Log value\",DataLog!AE744,\"\")","v":""},{"$f":"IF(DataLog!$C744=\"Log value\",DataLog!AF744,\"\")","v":""},{"$f":"IF(DataLog!$C744=\"Log value\",DataLog!AG744,\"\")","v":""},{"$f":"IF(DataLog!$C744=\"Log value\",DataLog!AH744,\"\")","v":""},{"$f":"IF(DataLog!$C744=\"Log value\",DataLog!AI744,\"\")","v":""},{"$f":"IF(DataLog!$C744=\"Log value\",DataLog!AJ744,\"\")","v":""},{"$f":"IF(DataLog!$C744=\"Log value\",DataLog!AK744,\"\")","v":""},{"$f":"IF(DataLog!$C744=\"Log value\",DataLog!AL744,\"\")","v":""},{"$f":"IF(DataLog!$C744=\"Log value\",DataLog!AM744,\"\")","v":""}]
[null,null,null,null,null,null,{"$f":"IF(DataLog!$C745=\"Log value\",DataLog!D745&\"_\"&TEXT(DataLog!B745,\"åååå-mm-dd\"),\"\")","v":""},{"$f":"IF(DataLog!$C745=\"Log value\",DataLog!E745,\"\")","v":""},{"$f":"IF(DataLog!$C745=\"Log value\",DataLog!F745,\"\")","v":""},{"$f":"IF(DataLog!$C745=\"Log value\",DataLog!G745,\"\")","v":""},{"$f":"IF(DataLog!$C745=\"Log value\",DataLog!H745,\"\")","v":""},{"$f":"IF(DataLog!$C745=\"Log value\",DataLog!I745,\"\")","v":""},{"$f":"IF(DataLog!$C745=\"Log value\",DataLog!J745,\"\")","v":""},{"$f":"IF(DataLog!$C745=\"Log value\",DataLog!K745,\"\")","v":""},{"$f":"IF(DataLog!$C745=\"Log value\",DataLog!L745,\"\")","v":""},{"$f":"IF(DataLog!$C745=\"Log value\",DataLog!M745,\"\")","v":""},{"$f":"IF(DataLog!$C745=\"Log value\",DataLog!N745,\"\")","v":""},{"$f":"IF(DataLog!$C745=\"Log value\",DataLog!O745,\"\")","v":""},{"$f":"IF(DataLog!$C745=\"Log value\",DataLog!P745,\"\")","v":""},{"$f":"IF(DataLog!$C745=\"Log value\",DataLog!Q745,\"\")","v":""},{"$f":"IF(DataLog!$C745=\"Log value\",DataLog!R745,\"\")","v":""},{"$f":"IF(DataLog!$C745=\"Log value\",DataLog!S745,\"\")","v":""},{"$f":"IF(DataLog!$C745=\"Log value\",DataLog!T745,\"\")","v":""},{"$f":"IF(DataLog!$C745=\"Log value\",DataLog!U745,\"\")","v":""},{"$f":"IF(DataLog!$C745=\"Log value\",DataLog!V745,\"\")","v":""},{"$f":"IF(DataLog!$C745=\"Log value\",DataLog!W745,\"\")","v":""},{"$f":"IF(DataLog!$C745=\"Log value\",DataLog!X745,\"\")","v":""},{"$f":"IF(DataLog!$C745=\"Log value\",DataLog!Y745,\"\")","v":""},{"$f":"IF(DataLog!$C745=\"Log value\",DataLog!Z745,\"\")","v":""},{"$f":"IF(DataLog!$C745=\"Log value\",DataLog!AA745,\"\")","v":""},{"$f":"IF(DataLog!$C745=\"Log value\",DataLog!AB745,\"\")","v":""},{"$f":"IF(DataLog!$C745=\"Log value\",DataLog!AC745,\"\")","v":""},{"$f":"IF(DataLog!$C745=\"Log value\",DataLog!AD745,\"\")","v":""},{"$f":"IF(DataLog!$C745=\"Log value\",DataLog!AE745,\"\")","v":""},{"$f":"IF(DataLog!$C745=\"Log value\",DataLog!AF745,\"\")","v":""},{"$f":"IF(DataLog!$C745=\"Log value\",DataLog!AG745,\"\")","v":""},{"$f":"IF(DataLog!$C745=\"Log value\",DataLog!AH745,\"\")","v":""},{"$f":"IF(DataLog!$C745=\"Log value\",DataLog!AI745,\"\")","v":""},{"$f":"IF(DataLog!$C745=\"Log value\",DataLog!AJ745,\"\")","v":""},{"$f":"IF(DataLog!$C745=\"Log value\",DataLog!AK745,\"\")","v":""},{"$f":"IF(DataLog!$C745=\"Log value\",DataLog!AL745,\"\")","v":""},{"$f":"IF(DataLog!$C745=\"Log value\",DataLog!AM745,\"\")","v":""}]
[null,null,null,null,null,null,{"$f":"IF(DataLog!$C746=\"Log value\",DataLog!D746&\"_\"&TEXT(DataLog!B746,\"åååå-mm-dd\"),\"\")","v":""},{"$f":"IF(DataLog!$C746=\"Log value\",DataLog!E746,\"\")","v":""},{"$f":"IF(DataLog!$C746=\"Log value\",DataLog!F746,\"\")","v":""},{"$f":"IF(DataLog!$C746=\"Log value\",DataLog!G746,\"\")","v":""},{"$f":"IF(DataLog!$C746=\"Log value\",DataLog!H746,\"\")","v":""},{"$f":"IF(DataLog!$C746=\"Log value\",DataLog!I746,\"\")","v":""},{"$f":"IF(DataLog!$C746=\"Log value\",DataLog!J746,\"\")","v":""},{"$f":"IF(DataLog!$C746=\"Log value\",DataLog!K746,\"\")","v":""},{"$f":"IF(DataLog!$C746=\"Log value\",DataLog!L746,\"\")","v":""},{"$f":"IF(DataLog!$C746=\"Log value\",DataLog!M746,\"\")","v":""},{"$f":"IF(DataLog!$C746=\"Log value\",DataLog!N746,\"\")","v":""},{"$f":"IF(DataLog!$C746=\"Log value\",DataLog!O746,\"\")","v":""},{"$f":"IF(DataLog!$C746=\"Log value\",DataLog!P746,\"\")","v":""},{"$f":"IF(DataLog!$C746=\"Log value\",DataLog!Q746,\"\")","v":""},{"$f":"IF(DataLog!$C746=\"Log value\",DataLog!R746,\"\")","v":""},{"$f":"IF(DataLog!$C746=\"Log value\",DataLog!S746,\"\")","v":""},{"$f":"IF(DataLog!$C746=\"Log value\",DataLog!T746,\"\")","v":""},{"$f":"IF(DataLog!$C746=\"Log value\",DataLog!U746,\"\")","v":""},{"$f":"IF(DataLog!$C746=\"Log value\",DataLog!V746,\"\")","v":""},{"$f":"IF(DataLog!$C746=\"Log value\",DataLog!W746,\"\")","v":""},{"$f":"IF(DataLog!$C746=\"Log value\",DataLog!X746,\"\")","v":""},{"$f":"IF(DataLog!$C746=\"Log value\",DataLog!Y746,\"\")","v":""},{"$f":"IF(DataLog!$C746=\"Log value\",DataLog!Z746,\"\")","v":""},{"$f":"IF(DataLog!$C746=\"Log value\",DataLog!AA746,\"\")","v":""},{"$f":"IF(DataLog!$C746=\"Log value\",DataLog!AB746,\"\")","v":""},{"$f":"IF(DataLog!$C746=\"Log value\",DataLog!AC746,\"\")","v":""},{"$f":"IF(DataLog!$C746=\"Log value\",DataLog!AD746,\"\")","v":""},{"$f":"IF(DataLog!$C746=\"Log value\",DataLog!AE746,\"\")","v":""},{"$f":"IF(DataLog!$C746=\"Log value\",DataLog!AF746,\"\")","v":""},{"$f":"IF(DataLog!$C746=\"Log value\",DataLog!AG746,\"\")","v":""},{"$f":"IF(DataLog!$C746=\"Log value\",DataLog!AH746,\"\")","v":""},{"$f":"IF(DataLog!$C746=\"Log value\",DataLog!AI746,\"\")","v":""},{"$f":"IF(DataLog!$C746=\"Log value\",DataLog!AJ746,\"\")","v":""},{"$f":"IF(DataLog!$C746=\"Log value\",DataLog!AK746,\"\")","v":""},{"$f":"IF(DataLog!$C746=\"Log value\",DataLog!AL746,\"\")","v":""},{"$f":"IF(DataLog!$C746=\"Log value\",DataLog!AM746,\"\")","v":""}]
[null,null,null,null,null,null,{"$f":"IF(DataLog!$C747=\"Log value\",DataLog!D747&\"_\"&TEXT(DataLog!B747,\"åååå-mm-dd\"),\"\")","v":""},{"$f":"IF(DataLog!$C747=\"Log value\",DataLog!E747,\"\")","v":""},{"$f":"IF(DataLog!$C747=\"Log value\",DataLog!F747,\"\")","v":""},{"$f":"IF(DataLog!$C747=\"Log value\",DataLog!G747,\"\")","v":""},{"$f":"IF(DataLog!$C747=\"Log value\",DataLog!H747,\"\")","v":""},{"$f":"IF(DataLog!$C747=\"Log value\",DataLog!I747,\"\")","v":""},{"$f":"IF(DataLog!$C747=\"Log value\",DataLog!J747,\"\")","v":""},{"$f":"IF(DataLog!$C747=\"Log value\",DataLog!K747,\"\")","v":""},{"$f":"IF(DataLog!$C747=\"Log value\",DataLog!L747,\"\")","v":""},{"$f":"IF(DataLog!$C747=\"Log value\",DataLog!M747,\"\")","v":""},{"$f":"IF(DataLog!$C747=\"Log value\",DataLog!N747,\"\")","v":""},{"$f":"IF(DataLog!$C747=\"Log value\",DataLog!O747,\"\")","v":""},{"$f":"IF(DataLog!$C747=\"Log value\",DataLog!P747,\"\")","v":""},{"$f":"IF(DataLog!$C747=\"Log value\",DataLog!Q747,\"\")","v":""},{"$f":"IF(DataLog!$C747=\"Log value\",DataLog!R747,\"\")","v":""},{"$f":"IF(DataLog!$C747=\"Log value\",DataLog!S747,\"\")","v":""},{"$f":"IF(DataLog!$C747=\"Log value\",DataLog!T747,\"\")","v":""},{"$f":"IF(DataLog!$C747=\"Log value\",DataLog!U747,\"\")","v":""},{"$f":"IF(DataLog!$C747=\"Log value\",DataLog!V747,\"\")","v":""},{"$f":"IF(DataLog!$C747=\"Log value\",DataLog!W747,\"\")","v":""},{"$f":"IF(DataLog!$C747=\"Log value\",DataLog!X747,\"\")","v":""},{"$f":"IF(DataLog!$C747=\"Log value\",DataLog!Y747,\"\")","v":""},{"$f":"IF(DataLog!$C747=\"Log value\",DataLog!Z747,\"\")","v":""},{"$f":"IF(DataLog!$C747=\"Log value\",DataLog!AA747,\"\")","v":""},{"$f":"IF(DataLog!$C747=\"Log value\",DataLog!AB747,\"\")","v":""},{"$f":"IF(DataLog!$C747=\"Log value\",DataLog!AC747,\"\")","v":""},{"$f":"IF(DataLog!$C747=\"Log value\",DataLog!AD747,\"\")","v":""},{"$f":"IF(DataLog!$C747=\"Log value\",DataLog!AE747,\"\")","v":""},{"$f":"IF(DataLog!$C747=\"Log value\",DataLog!AF747,\"\")","v":""},{"$f":"IF(DataLog!$C747=\"Log value\",DataLog!AG747,\"\")","v":""},{"$f":"IF(DataLog!$C747=\"Log value\",DataLog!AH747,\"\")","v":""},{"$f":"IF(DataLog!$C747=\"Log value\",DataLog!AI747,\"\")","v":""},{"$f":"IF(DataLog!$C747=\"Log value\",DataLog!AJ747,\"\")","v":""},{"$f":"IF(DataLog!$C747=\"Log value\",DataLog!AK747,\"\")","v":""},{"$f":"IF(DataLog!$C747=\"Log value\",DataLog!AL747,\"\")","v":""},{"$f":"IF(DataLog!$C747=\"Log value\",DataLog!AM747,\"\")","v":""}]
[null,null,null,null,null,null,{"$f":"IF(DataLog!$C748=\"Log value\",DataLog!D748&\"_\"&TEXT(DataLog!B748,\"åååå-mm-dd\"),\"\")","v":""},{"$f":"IF(DataLog!$C748=\"Log value\",DataLog!E748,\"\")","v":""},{"$f":"IF(DataLog!$C748=\"Log value\",DataLog!F748,\"\")","v":""},{"$f":"IF(DataLog!$C748=\"Log value\",DataLog!G748,\"\")","v":""},{"$f":"IF(DataLog!$C748=\"Log value\",DataLog!H748,\"\")","v":""},{"$f":"IF(DataLog!$C748=\"Log value\",DataLog!I748,\"\")","v":""},{"$f":"IF(DataLog!$C748=\"Log value\",DataLog!J748,\"\")","v":""},{"$f":"IF(DataLog!$C748=\"Log value\",DataLog!K748,\"\")","v":""},{"$f":"IF(DataLog!$C748=\"Log value\",DataLog!L748,\"\")","v":""},{"$f":"IF(DataLog!$C748=\"Log value\",DataLog!M748,\"\")","v":""},{"$f":"IF(DataLog!$C748=\"Log value\",DataLog!N748,\"\")","v":""},{"$f":"IF(DataLog!$C748=\"Log value\",DataLog!O748,\"\")","v":""},{"$f":"IF(DataLog!$C748=\"Log value\",DataLog!P748,\"\")","v":""},{"$f":"IF(DataLog!$C748=\"Log value\",DataLog!Q748,\"\")","v":""},{"$f":"IF(DataLog!$C748=\"Log value\",DataLog!R748,\"\")","v":""},{"$f":"IF(DataLog!$C748=\"Log value\",DataLog!S748,\"\")","v":""},{"$f":"IF(DataLog!$C748=\"Log value\",DataLog!T748,\"\")","v":""},{"$f":"IF(DataLog!$C748=\"Log value\",DataLog!U748,\"\")","v":""},{"$f":"IF(DataLog!$C748=\"Log value\",DataLog!V748,\"\")","v":""},{"$f":"IF(DataLog!$C748=\"Log value\",DataLog!W748,\"\")","v":""},{"$f":"IF(DataLog!$C748=\"Log value\",DataLog!X748,\"\")","v":""},{"$f":"IF(DataLog!$C748=\"Log value\",DataLog!Y748,\"\")","v":""},{"$f":"IF(DataLog!$C748=\"Log value\",DataLog!Z748,\"\")","v":""},{"$f":"IF(DataLog!$C748=\"Log value\",DataLog!AA748,\"\")","v":""},{"$f":"IF(DataLog!$C748=\"Log value\",DataLog!AB748,\"\")","v":""},{"$f":"IF(DataLog!$C748=\"Log value\",DataLog!AC748,\"\")","v":""},{"$f":"IF(DataLog!$C748=\"Log value\",DataLog!AD748,\"\")","v":""},{"$f":"IF(DataLog!$C748=\"Log value\",DataLog!AE748,\"\")","v":""},{"$f":"IF(DataLog!$C748=\"Log value\",DataLog!AF748,\"\")","v":""},{"$f":"IF(DataLog!$C748=\"Log value\",DataLog!AG748,\"\")","v":""},{"$f":"IF(DataLog!$C748=\"Log value\",DataLog!AH748,\"\")","v":""},{"$f":"IF(DataLog!$C748=\"Log value\",DataLog!AI748,\"\")","v":""},{"$f":"IF(DataLog!$C748=\"Log value\",DataLog!AJ748,\"\")","v":""},{"$f":"IF(DataLog!$C748=\"Log value\",DataLog!AK748,\"\")","v":""},{"$f":"IF(DataLog!$C748=\"Log value\",DataLog!AL748,\"\")","v":""},{"$f":"IF(DataLog!$C748=\"Log value\",DataLog!AM748,\"\")","v":""}]
[null,null,null,null,null,null,{"$f":"IF(DataLog!$C749=\"Log value\",DataLog!D749&\"_\"&TEXT(DataLog!B749,\"åååå-mm-dd\"),\"\")","v":""},{"$f":"IF(DataLog!$C749=\"Log value\",DataLog!E749,\"\")","v":""},{"$f":"IF(DataLog!$C749=\"Log value\",DataLog!F749,\"\")","v":""},{"$f":"IF(DataLog!$C749=\"Log value\",DataLog!G749,\"\")","v":""},{"$f":"IF(DataLog!$C749=\"Log value\",DataLog!H749,\"\")","v":""},{"$f":"IF(DataLog!$C749=\"Log value\",DataLog!I749,\"\")","v":""},{"$f":"IF(DataLog!$C749=\"Log value\",DataLog!J749,\"\")","v":""},{"$f":"IF(DataLog!$C749=\"Log value\",DataLog!K749,\"\")","v":""},{"$f":"IF(DataLog!$C749=\"Log value\",DataLog!L749,\"\")","v":""},{"$f":"IF(DataLog!$C749=\"Log value\",DataLog!M749,\"\")","v":""},{"$f":"IF(DataLog!$C749=\"Log value\",DataLog!N749,\"\")","v":""},{"$f":"IF(DataLog!$C749=\"Log value\",DataLog!O749,\"\")","v":""},{"$f":"IF(DataLog!$C749=\"Log value\",DataLog!P749,\"\")","v":""},{"$f":"IF(DataLog!$C749=\"Log value\",DataLog!Q749,\"\")","v":""},{"$f":"IF(DataLog!$C749=\"Log value\",DataLog!R749,\"\")","v":""},{"$f":"IF(DataLog!$C749=\"Log value\",DataLog!S749,\"\")","v":""},{"$f":"IF(DataLog!$C749=\"Log value\",DataLog!T749,\"\")","v":""},{"$f":"IF(DataLog!$C749=\"Log value\",DataLog!U749,\"\")","v":""},{"$f":"IF(DataLog!$C749=\"Log value\",DataLog!V749,\"\")","v":""},{"$f":"IF(DataLog!$C749=\"Log value\",DataLog!W749,\"\")","v":""},{"$f":"IF(DataLog!$C749=\"Log value\",DataLog!X749,\"\")","v":""},{"$f":"IF(DataLog!$C749=\"Log value\",DataLog!Y749,\"\")","v":""},{"$f":"IF(DataLog!$C749=\"Log value\",DataLog!Z749,\"\")","v":""},{"$f":"IF(DataLog!$C749=\"Log value\",DataLog!AA749,\"\")","v":""},{"$f":"IF(DataLog!$C749=\"Log value\",DataLog!AB749,\"\")","v":""},{"$f":"IF(DataLog!$C749=\"Log value\",DataLog!AC749,\"\")","v":""},{"$f":"IF(DataLog!$C749=\"Log value\",DataLog!AD749,\"\")","v":""},{"$f":"IF(DataLog!$C749=\"Log value\",DataLog!AE749,\"\")","v":""},{"$f":"IF(DataLog!$C749=\"Log value\",DataLog!AF749,\"\")","v":""},{"$f":"IF(DataLog!$C749=\"Log value\",DataLog!AG749,\"\")","v":""},{"$f":"IF(DataLog!$C749=\"Log value\",DataLog!AH749,\"\")","v":""},{"$f":"IF(DataLog!$C749=\"Log value\",DataLog!AI749,\"\")","v":""},{"$f":"IF(DataLog!$C749=\"Log value\",DataLog!AJ749,\"\")","v":""},{"$f":"IF(DataLog!$C749=\"Log value\",DataLog!AK749,\"\")","v":""},{"$f":"IF(DataLog!$C749=\"Log value\",DataLog!AL749,\"\")","v":""},{"$f":"IF(DataLog!$C749=\"Log value\",DataLog!AM749,\"\")","v":""}]
[null,null,null,null,null,null,{"$f":"IF(DataLog!$C750=\"Log value\",DataLog!D750&\"_\"&TEXT(DataLog!B750,\"åååå-mm-dd\"),\"\")","v":""},{"$f":"IF(DataLog!$C750=\"Log value\",DataLog!E750,\"\")","v":""},{"$f":"IF(DataLog!$C750=\"Log value\",DataLog!F750,\"\")","v":""},{"$f":"IF(DataLog!$C750=\"Log value\",DataLog!G750,\"\")","v":""},{"$f":"IF(DataLog!$C750=\"Log value\",DataLog!H750,\"\")","v":""},{"$f":"IF(DataLog!$C750=\"Log value\",DataLog!I750,\"\")","v":""},{"$f":"IF(DataLog!$C750=\"Log value\",DataLog!J750,\"\")","v":""},{"$f":"IF(DataLog!$C750=\"Log value\",DataLog!K750,\"\")","v":""},{"$f":"IF(DataLog!$C750=\"Log value\",DataLog!L750,\"\")","v":""},{"$f":"IF(DataLog!$C750=\"Log value\",DataLog!M750,\"\")","v":""},{"$f":"IF(DataLog!$C750=\"Log value\",DataLog!N750,\"\")","v":""},{"$f":"IF(DataLog!$C750=\"Log value\",DataLog!O750,\"\")","v":""},{"$f":"IF(DataLog!$C750=\"Log value\",DataLog!P750,\"\")","v":""},{"$f":"IF(DataLog!$C750=\"Log value\",DataLog!Q750,\"\")","v":""},{"$f":"IF(DataLog!$C750=\"Log value\",DataLog!R750,\"\")","v":""},{"$f":"IF(DataLog!$C750=\"Log value\",DataLog!S750,\"\")","v":""},{"$f":"IF(DataLog!$C750=\"Log value\",DataLog!T750,\"\")","v":""},{"$f":"IF(DataLog!$C750=\"Log value\",DataLog!U750,\"\")","v":""},{"$f":"IF(DataLog!$C750=\"Log value\",DataLog!V750,\"\")","v":""},{"$f":"IF(DataLog!$C750=\"Log value\",DataLog!W750,\"\")","v":""},{"$f":"IF(DataLog!$C750=\"Log value\",DataLog!X750,\"\")","v":""},{"$f":"IF(DataLog!$C750=\"Log value\",DataLog!Y750,\"\")","v":""},{"$f":"IF(DataLog!$C750=\"Log value\",DataLog!Z750,\"\")","v":""},{"$f":"IF(DataLog!$C750=\"Log value\",DataLog!AA750,\"\")","v":""},{"$f":"IF(DataLog!$C750=\"Log value\",DataLog!AB750,\"\")","v":""},{"$f":"IF(DataLog!$C750=\"Log value\",DataLog!AC750,\"\")","v":""},{"$f":"IF(DataLog!$C750=\"Log value\",DataLog!AD750,\"\")","v":""},{"$f":"IF(DataLog!$C750=\"Log value\",DataLog!AE750,\"\")","v":""},{"$f":"IF(DataLog!$C750=\"Log value\",DataLog!AF750,\"\")","v":""},{"$f":"IF(DataLog!$C750=\"Log value\",DataLog!AG750,\"\")","v":""},{"$f":"IF(DataLog!$C750=\"Log value\",DataLog!AH750,\"\")","v":""},{"$f":"IF(DataLog!$C750=\"Log value\",DataLog!AI750,\"\")","v":""},{"$f":"IF(DataLog!$C750=\"Log value\",DataLog!AJ750,\"\")","v":""},{"$f":"IF(DataLog!$C750=\"Log value\",DataLog!AK750,\"\")","v":""},{"$f":"IF(DataLog!$C750=\"Log value\",DataLog!AL750,\"\")","v":""},{"$f":"IF(DataLog!$C750=\"Log value\",DataLog!AM750,\"\")","v":""}]
[null,null,null,null,null,null,{"$f":"IF(DataLog!$C751=\"Log value\",DataLog!D751&\"_\"&TEXT(DataLog!B751,\"åååå-mm-dd\"),\"\")","v":""},{"$f":"IF(DataLog!$C751=\"Log value\",DataLog!E751,\"\")","v":""},{"$f":"IF(DataLog!$C751=\"Log value\",DataLog!F751,\"\")","v":""},{"$f":"IF(DataLog!$C751=\"Log value\",DataLog!G751,\"\")","v":""},{"$f":"IF(DataLog!$C751=\"Log value\",DataLog!H751,\"\")","v":""},{"$f":"IF(DataLog!$C751=\"Log value\",DataLog!I751,\"\")","v":""},{"$f":"IF(DataLog!$C751=\"Log value\",DataLog!J751,\"\")","v":""},{"$f":"IF(DataLog!$C751=\"Log value\",DataLog!K751,\"\")","v":""},{"$f":"IF(DataLog!$C751=\"Log value\",DataLog!L751,\"\")","v":""},{"$f":"IF(DataLog!$C751=\"Log value\",DataLog!M751,\"\")","v":""},{"$f":"IF(DataLog!$C751=\"Log value\",DataLog!N751,\"\")","v":""},{"$f":"IF(DataLog!$C751=\"Log value\",DataLog!O751,\"\")","v":""},{"$f":"IF(DataLog!$C751=\"Log value\",DataLog!P751,\"\")","v":""},{"$f":"IF(DataLog!$C751=\"Log value\",DataLog!Q751,\"\")","v":""},{"$f":"IF(DataLog!$C751=\"Log value\",DataLog!R751,\"\")","v":""},{"$f":"IF(DataLog!$C751=\"Log value\",DataLog!S751,\"\")","v":""},{"$f":"IF(DataLog!$C751=\"Log value\",DataLog!T751,\"\")","v":""},{"$f":"IF(DataLog!$C751=\"Log value\",DataLog!U751,\"\")","v":""},{"$f":"IF(DataLog!$C751=\"Log value\",DataLog!V751,\"\")","v":""},{"$f":"IF(DataLog!$C751=\"Log value\",DataLog!W751,\"\")","v":""},{"$f":"IF(DataLog!$C751=\"Log value\",DataLog!X751,\"\")","v":""},{"$f":"IF(DataLog!$C751=\"Log value\",DataLog!Y751,\"\")","v":""},{"$f":"IF(DataLog!$C751=\"Log value\",DataLog!Z751,\"\")","v":""},{"$f":"IF(DataLog!$C751=\"Log value\",DataLog!AA751,\"\")","v":""},{"$f":"IF(DataLog!$C751=\"Log value\",DataLog!AB751,\"\")","v":""},{"$f":"IF(DataLog!$C751=\"Log value\",DataLog!AC751,\"\")","v":""},{"$f":"IF(DataLog!$C751=\"Log value\",DataLog!AD751,\"\")","v":""},{"$f":"IF(DataLog!$C751=\"Log value\",DataLog!AE751,\"\")","v":""},{"$f":"IF(DataLog!$C751=\"Log value\",DataLog!AF751,\"\")","v":""},{"$f":"IF(DataLog!$C751=\"Log value\",DataLog!AG751,\"\")","v":""},{"$f":"IF(DataLog!$C751=\"Log value\",DataLog!AH751,\"\")","v":""},{"$f":"IF(DataLog!$C751=\"Log value\",DataLog!AI751,\"\")","v":""},{"$f":"IF(DataLog!$C751=\"Log value\",DataLog!AJ751,\"\")","v":""},{"$f":"IF(DataLog!$C751=\"Log value\",DataLog!AK751,\"\")","v":""},{"$f":"IF(DataLog!$C751=\"Log value\",DataLog!AL751,\"\")","v":""},{"$f":"IF(DataLog!$C751=\"Log value\",DataLog!AM751,\"\")","v":""}]
[null,null,null,null,null,null,{"$f":"IF(DataLog!$C752=\"Log value\",DataLog!D752&\"_\"&TEXT(DataLog!B752,\"åååå-mm-dd\"),\"\")","v":""},{"$f":"IF(DataLog!$C752=\"Log value\",DataLog!E752,\"\")","v":""},{"$f":"IF(DataLog!$C752=\"Log value\",DataLog!F752,\"\")","v":""},{"$f":"IF(DataLog!$C752=\"Log value\",DataLog!G752,\"\")","v":""},{"$f":"IF(DataLog!$C752=\"Log value\",DataLog!H752,\"\")","v":""},{"$f":"IF(DataLog!$C752=\"Log value\",DataLog!I752,\"\")","v":""},{"$f":"IF(DataLog!$C752=\"Log value\",DataLog!J752,\"\")","v":""},{"$f":"IF(DataLog!$C752=\"Log value\",DataLog!K752,\"\")","v":""},{"$f":"IF(DataLog!$C752=\"Log value\",DataLog!L752,\"\")","v":""},{"$f":"IF(DataLog!$C752=\"Log value\",DataLog!M752,\"\")","v":""},{"$f":"IF(DataLog!$C752=\"Log value\",DataLog!N752,\"\")","v":""},{"$f":"IF(DataLog!$C752=\"Log value\",DataLog!O752,\"\")","v":""},{"$f":"IF(DataLog!$C752=\"Log value\",DataLog!P752,\"\")","v":""},{"$f":"IF(DataLog!$C752=\"Log value\",DataLog!Q752,\"\")","v":""},{"$f":"IF(DataLog!$C752=\"Log value\",DataLog!R752,\"\")","v":""},{"$f":"IF(DataLog!$C752=\"Log value\",DataLog!S752,\"\")","v":""},{"$f":"IF(DataLog!$C752=\"Log value\",DataLog!T752,\"\")","v":""},{"$f":"IF(DataLog!$C752=\"Log value\",DataLog!U752,\"\")","v":""},{"$f":"IF(DataLog!$C752=\"Log value\",DataLog!V752,\"\")","v":""},{"$f":"IF(DataLog!$C752=\"Log value\",DataLog!W752,\"\")","v":""},{"$f":"IF(DataLog!$C752=\"Log value\",DataLog!X752,\"\")","v":""},{"$f":"IF(DataLog!$C752=\"Log value\",DataLog!Y752,\"\")","v":""},{"$f":"IF(DataLog!$C752=\"Log value\",DataLog!Z752,\"\")","v":""},{"$f":"IF(DataLog!$C752=\"Log value\",DataLog!AA752,\"\")","v":""},{"$f":"IF(DataLog!$C752=\"Log value\",DataLog!AB752,\"\")","v":""},{"$f":"IF(DataLog!$C752=\"Log value\",DataLog!AC752,\"\")","v":""},{"$f":"IF(DataLog!$C752=\"Log value\",DataLog!AD752,\"\")","v":""},{"$f":"IF(DataLog!$C752=\"Log value\",DataLog!AE752,\"\")","v":""},{"$f":"IF(DataLog!$C752=\"Log value\",DataLog!AF752,\"\")","v":""},{"$f":"IF(DataLog!$C752=\"Log value\",DataLog!AG752,\"\")","v":""},{"$f":"IF(DataLog!$C752=\"Log value\",DataLog!AH752,\"\")","v":""},{"$f":"IF(DataLog!$C752=\"Log value\",DataLog!AI752,\"\")","v":""},{"$f":"IF(DataLog!$C752=\"Log value\",DataLog!AJ752,\"\")","v":""},{"$f":"IF(DataLog!$C752=\"Log value\",DataLog!AK752,\"\")","v":""},{"$f":"IF(DataLog!$C752=\"Log value\",DataLog!AL752,\"\")","v":""},{"$f":"IF(DataLog!$C752=\"Log value\",DataLog!AM752,\"\")","v":""}]
[null,null,null,null,null,null,{"$f":"IF(DataLog!$C753=\"Log value\",DataLog!D753&\"_\"&TEXT(DataLog!B753,\"åååå-mm-dd\"),\"\")","v":""},{"$f":"IF(DataLog!$C753=\"Log value\",DataLog!E753,\"\")","v":""},{"$f":"IF(DataLog!$C753=\"Log value\",DataLog!F753,\"\")","v":""},{"$f":"IF(DataLog!$C753=\"Log value\",DataLog!G753,\"\")","v":""},{"$f":"IF(DataLog!$C753=\"Log value\",DataLog!H753,\"\")","v":""},{"$f":"IF(DataLog!$C753=\"Log value\",DataLog!I753,\"\")","v":""},{"$f":"IF(DataLog!$C753=\"Log value\",DataLog!J753,\"\")","v":""},{"$f":"IF(DataLog!$C753=\"Log value\",DataLog!K753,\"\")","v":""},{"$f":"IF(DataLog!$C753=\"Log value\",DataLog!L753,\"\")","v":""},{"$f":"IF(DataLog!$C753=\"Log value\",DataLog!M753,\"\")","v":""},{"$f":"IF(DataLog!$C753=\"Log value\",DataLog!N753,\"\")","v":""},{"$f":"IF(DataLog!$C753=\"Log value\",DataLog!O753,\"\")","v":""},{"$f":"IF(DataLog!$C753=\"Log value\",DataLog!P753,\"\")","v":""},{"$f":"IF(DataLog!$C753=\"Log value\",DataLog!Q753,\"\")","v":""},{"$f":"IF(DataLog!$C753=\"Log value\",DataLog!R753,\"\")","v":""},{"$f":"IF(DataLog!$C753=\"Log value\",DataLog!S753,\"\")","v":""},{"$f":"IF(DataLog!$C753=\"Log value\",DataLog!T753,\"\")","v":""},{"$f":"IF(DataLog!$C753=\"Log value\",DataLog!U753,\"\")","v":""},{"$f":"IF(DataLog!$C753=\"Log value\",DataLog!V753,\"\")","v":""},{"$f":"IF(DataLog!$C753=\"Log value\",DataLog!W753,\"\")","v":""},{"$f":"IF(DataLog!$C753=\"Log value\",DataLog!X753,\"\")","v":""},{"$f":"IF(DataLog!$C753=\"Log value\",DataLog!Y753,\"\")","v":""},{"$f":"IF(DataLog!$C753=\"Log value\",DataLog!Z753,\"\")","v":""},{"$f":"IF(DataLog!$C753=\"Log value\",DataLog!AA753,\"\")","v":""},{"$f":"IF(DataLog!$C753=\"Log value\",DataLog!AB753,\"\")","v":""},{"$f":"IF(DataLog!$C753=\"Log value\",DataLog!AC753,\"\")","v":""},{"$f":"IF(DataLog!$C753=\"Log value\",DataLog!AD753,\"\")","v":""},{"$f":"IF(DataLog!$C753=\"Log value\",DataLog!AE753,\"\")","v":""},{"$f":"IF(DataLog!$C753=\"Log value\",DataLog!AF753,\"\")","v":""},{"$f":"IF(DataLog!$C753=\"Log value\",DataLog!AG753,\"\")","v":""},{"$f":"IF(DataLog!$C753=\"Log value\",DataLog!AH753,\"\")","v":""},{"$f":"IF(DataLog!$C753=\"Log value\",DataLog!AI753,\"\")","v":""},{"$f":"IF(DataLog!$C753=\"Log value\",DataLog!AJ753,\"\")","v":""},{"$f":"IF(DataLog!$C753=\"Log value\",DataLog!AK753,\"\")","v":""},{"$f":"IF(DataLog!$C753=\"Log value\",DataLog!AL753,\"\")","v":""},{"$f":"IF(DataLog!$C753=\"Log value\",DataLog!AM753,\"\")","v":""}]
[null,null,null,null,null,null,{"$f":"IF(DataLog!$C754=\"Log value\",DataLog!D754&\"_\"&TEXT(DataLog!B754,\"åååå-mm-dd\"),\"\")","v":""},{"$f":"IF(DataLog!$C754=\"Log value\",DataLog!E754,\"\")","v":""},{"$f":"IF(DataLog!$C754=\"Log value\",DataLog!F754,\"\")","v":""},{"$f":"IF(DataLog!$C754=\"Log value\",DataLog!G754,\"\")","v":""},{"$f":"IF(DataLog!$C754=\"Log value\",DataLog!H754,\"\")","v":""},{"$f":"IF(DataLog!$C754=\"Log value\",DataLog!I754,\"\")","v":""},{"$f":"IF(DataLog!$C754=\"Log value\",DataLog!J754,\"\")","v":""},{"$f":"IF(DataLog!$C754=\"Log value\",DataLog!K754,\"\")","v":""},{"$f":"IF(DataLog!$C754=\"Log value\",DataLog!L754,\"\")","v":""},{"$f":"IF(DataLog!$C754=\"Log value\",DataLog!M754,\"\")","v":""},{"$f":"IF(DataLog!$C754=\"Log value\",DataLog!N754,\"\")","v":""},{"$f":"IF(DataLog!$C754=\"Log value\",DataLog!O754,\"\")","v":""},{"$f":"IF(DataLog!$C754=\"Log value\",DataLog!P754,\"\")","v":""},{"$f":"IF(DataLog!$C754=\"Log value\",DataLog!Q754,\"\")","v":""},{"$f":"IF(DataLog!$C754=\"Log value\",DataLog!R754,\"\")","v":""},{"$f":"IF(DataLog!$C754=\"Log value\",DataLog!S754,\"\")","v":""},{"$f":"IF(DataLog!$C754=\"Log value\",DataLog!T754,\"\")","v":""},{"$f":"IF(DataLog!$C754=\"Log value\",DataLog!U754,\"\")","v":""},{"$f":"IF(DataLog!$C754=\"Log value\",DataLog!V754,\"\")","v":""},{"$f":"IF(DataLog!$C754=\"Log value\",DataLog!W754,\"\")","v":""},{"$f":"IF(DataLog!$C754=\"Log value\",DataLog!X754,\"\")","v":""},{"$f":"IF(DataLog!$C754=\"Log value\",DataLog!Y754,\"\")","v":""},{"$f":"IF(DataLog!$C754=\"Log value\",DataLog!Z754,\"\")","v":""},{"$f":"IF(DataLog!$C754=\"Log value\",DataLog!AA754,\"\")","v":""},{"$f":"IF(DataLog!$C754=\"Log value\",DataLog!AB754,\"\")","v":""},{"$f":"IF(DataLog!$C754=\"Log value\",DataLog!AC754,\"\")","v":""},{"$f":"IF(DataLog!$C754=\"Log value\",DataLog!AD754,\"\")","v":""},{"$f":"IF(DataLog!$C754=\"Log value\",DataLog!AE754,\"\")","v":""},{"$f":"IF(DataLog!$C754=\"Log value\",DataLog!AF754,\"\")","v":""},{"$f":"IF(DataLog!$C754=\"Log value\",DataLog!AG754,\"\")","v":""},{"$f":"IF(DataLog!$C754=\"Log value\",DataLog!AH754,\"\")","v":""},{"$f":"IF(DataLog!$C754=\"Log value\",DataLog!AI754,\"\")","v":""},{"$f":"IF(DataLog!$C754=\"Log value\",DataLog!AJ754,\"\")","v":""},{"$f":"IF(DataLog!$C754=\"Log value\",DataLog!AK754,\"\")","v":""},{"$f":"IF(DataLog!$C754=\"Log value\",DataLog!AL754,\"\")","v":""},{"$f":"IF(DataLog!$C754=\"Log value\",DataLog!AM754,\"\")","v":""}]
[null,null,null,null,null,null,{"$f":"IF(DataLog!$C755=\"Log value\",DataLog!D755&\"_\"&TEXT(DataLog!B755,\"åååå-mm-dd\"),\"\")","v":""},{"$f":"IF(DataLog!$C755=\"Log value\",DataLog!E755,\"\")","v":""},{"$f":"IF(DataLog!$C755=\"Log value\",DataLog!F755,\"\")","v":""},{"$f":"IF(DataLog!$C755=\"Log value\",DataLog!G755,\"\")","v":""},{"$f":"IF(DataLog!$C755=\"Log value\",DataLog!H755,\"\")","v":""},{"$f":"IF(DataLog!$C755=\"Log value\",DataLog!I755,\"\")","v":""},{"$f":"IF(DataLog!$C755=\"Log value\",DataLog!J755,\"\")","v":""},{"$f":"IF(DataLog!$C755=\"Log value\",DataLog!K755,\"\")","v":""},{"$f":"IF(DataLog!$C755=\"Log value\",DataLog!L755,\"\")","v":""},{"$f":"IF(DataLog!$C755=\"Log value\",DataLog!M755,\"\")","v":""},{"$f":"IF(DataLog!$C755=\"Log value\",DataLog!N755,\"\")","v":""},{"$f":"IF(DataLog!$C755=\"Log value\",DataLog!O755,\"\")","v":""},{"$f":"IF(DataLog!$C755=\"Log value\",DataLog!P755,\"\")","v":""},{"$f":"IF(DataLog!$C755=\"Log value\",DataLog!Q755,\"\")","v":""},{"$f":"IF(DataLog!$C755=\"Log value\",DataLog!R755,\"\")","v":""},{"$f":"IF(DataLog!$C755=\"Log value\",DataLog!S755,\"\")","v":""},{"$f":"IF(DataLog!$C755=\"Log value\",DataLog!T755,\"\")","v":""},{"$f":"IF(DataLog!$C755=\"Log value\",DataLog!U755,\"\")","v":""},{"$f":"IF(DataLog!$C755=\"Log value\",DataLog!V755,\"\")","v":""},{"$f":"IF(DataLog!$C755=\"Log value\",DataLog!W755,\"\")","v":""},{"$f":"IF(DataLog!$C755=\"Log value\",DataLog!X755,\"\")","v":""},{"$f":"IF(DataLog!$C755=\"Log value\",DataLog!Y755,\"\")","v":""},{"$f":"IF(DataLog!$C755=\"Log value\",DataLog!Z755,\"\")","v":""},{"$f":"IF(DataLog!$C755=\"Log value\",DataLog!AA755,\"\")","v":""},{"$f":"IF(DataLog!$C755=\"Log value\",DataLog!AB755,\"\")","v":""},{"$f":"IF(DataLog!$C755=\"Log value\",DataLog!AC755,\"\")","v":""},{"$f":"IF(DataLog!$C755=\"Log value\",DataLog!AD755,\"\")","v":""},{"$f":"IF(DataLog!$C755=\"Log value\",DataLog!AE755,\"\")","v":""},{"$f":"IF(DataLog!$C755=\"Log value\",DataLog!AF755,\"\")","v":""},{"$f":"IF(DataLog!$C755=\"Log value\",DataLog!AG755,\"\")","v":""},{"$f":"IF(DataLog!$C755=\"Log value\",DataLog!AH755,\"\")","v":""},{"$f":"IF(DataLog!$C755=\"Log value\",DataLog!AI755,\"\")","v":""},{"$f":"IF(DataLog!$C755=\"Log value\",DataLog!AJ755,\"\")","v":""},{"$f":"IF(DataLog!$C755=\"Log value\",DataLog!AK755,\"\")","v":""},{"$f":"IF(DataLog!$C755=\"Log value\",DataLog!AL755,\"\")","v":""},{"$f":"IF(DataLog!$C755=\"Log value\",DataLog!AM755,\"\")","v":""}]
[null,null,null,null,null,null,{"$f":"IF(DataLog!$C756=\"Log value\",DataLog!D756&\"_\"&TEXT(DataLog!B756,\"åååå-mm-dd\"),\"\")","v":""},{"$f":"IF(DataLog!$C756=\"Log value\",DataLog!E756,\"\")","v":""},{"$f":"IF(DataLog!$C756=\"Log value\",DataLog!F756,\"\")","v":""},{"$f":"IF(DataLog!$C756=\"Log value\",DataLog!G756,\"\")","v":""},{"$f":"IF(DataLog!$C756=\"Log value\",DataLog!H756,\"\")","v":""},{"$f":"IF(DataLog!$C756=\"Log value\",DataLog!I756,\"\")","v":""},{"$f":"IF(DataLog!$C756=\"Log value\",DataLog!J756,\"\")","v":""},{"$f":"IF(DataLog!$C756=\"Log value\",DataLog!K756,\"\")","v":""},{"$f":"IF(DataLog!$C756=\"Log value\",DataLog!L756,\"\")","v":""},{"$f":"IF(DataLog!$C756=\"Log value\",DataLog!M756,\"\")","v":""},{"$f":"IF(DataLog!$C756=\"Log value\",DataLog!N756,\"\")","v":""},{"$f":"IF(DataLog!$C756=\"Log value\",DataLog!O756,\"\")","v":""},{"$f":"IF(DataLog!$C756=\"Log value\",DataLog!P756,\"\")","v":""},{"$f":"IF(DataLog!$C756=\"Log value\",DataLog!Q756,\"\")","v":""},{"$f":"IF(DataLog!$C756=\"Log value\",DataLog!R756,\"\")","v":""},{"$f":"IF(DataLog!$C756=\"Log value\",DataLog!S756,\"\")","v":""},{"$f":"IF(DataLog!$C756=\"Log value\",DataLog!T756,\"\")","v":""},{"$f":"IF(DataLog!$C756=\"Log value\",DataLog!U756,\"\")","v":""},{"$f":"IF(DataLog!$C756=\"Log value\",DataLog!V756,\"\")","v":""},{"$f":"IF(DataLog!$C756=\"Log value\",DataLog!W756,\"\")","v":""},{"$f":"IF(DataLog!$C756=\"Log value\",DataLog!X756,\"\")","v":""},{"$f":"IF(DataLog!$C756=\"Log value\",DataLog!Y756,\"\")","v":""},{"$f":"IF(DataLog!$C756=\"Log value\",DataLog!Z756,\"\")","v":""},{"$f":"IF(DataLog!$C756=\"Log value\",DataLog!AA756,\"\")","v":""},{"$f":"IF(DataLog!$C756=\"Log value\",DataLog!AB756,\"\")","v":""},{"$f":"IF(DataLog!$C756=\"Log value\",DataLog!AC756,\"\")","v":""},{"$f":"IF(DataLog!$C756=\"Log value\",DataLog!AD756,\"\")","v":""},{"$f":"IF(DataLog!$C756=\"Log value\",DataLog!AE756,\"\")","v":""},{"$f":"IF(DataLog!$C756=\"Log value\",DataLog!AF756,\"\")","v":""},{"$f":"IF(DataLog!$C756=\"Log value\",DataLog!AG756,\"\")","v":""},{"$f":"IF(DataLog!$C756=\"Log value\",DataLog!AH756,\"\")","v":""},{"$f":"IF(DataLog!$C756=\"Log value\",DataLog!AI756,\"\")","v":""},{"$f":"IF(DataLog!$C756=\"Log value\",DataLog!AJ756,\"\")","v":""},{"$f":"IF(DataLog!$C756=\"Log value\",DataLog!AK756,\"\")","v":""},{"$f":"IF(DataLog!$C756=\"Log value\",DataLog!AL756,\"\")","v":""},{"$f":"IF(DataLog!$C756=\"Log value\",DataLog!AM756,\"\")","v":""}]
[null,null,null,null,null,null,{"$f":"IF(DataLog!$C757=\"Log value\",DataLog!D757&\"_\"&TEXT(DataLog!B757,\"åååå-mm-dd\"),\"\")","v":""},{"$f":"IF(DataLog!$C757=\"Log value\",DataLog!E757,\"\")","v":""},{"$f":"IF(DataLog!$C757=\"Log value\",DataLog!F757,\"\")","v":""},{"$f":"IF(DataLog!$C757=\"Log value\",DataLog!G757,\"\")","v":""},{"$f":"IF(DataLog!$C757=\"Log value\",DataLog!H757,\"\")","v":""},{"$f":"IF(DataLog!$C757=\"Log value\",DataLog!I757,\"\")","v":""},{"$f":"IF(DataLog!$C757=\"Log value\",DataLog!J757,\"\")","v":""},{"$f":"IF(DataLog!$C757=\"Log value\",DataLog!K757,\"\")","v":""},{"$f":"IF(DataLog!$C757=\"Log value\",DataLog!L757,\"\")","v":""},{"$f":"IF(DataLog!$C757=\"Log value\",DataLog!M757,\"\")","v":""},{"$f":"IF(DataLog!$C757=\"Log value\",DataLog!N757,\"\")","v":""},{"$f":"IF(DataLog!$C757=\"Log value\",DataLog!O757,\"\")","v":""},{"$f":"IF(DataLog!$C757=\"Log value\",DataLog!P757,\"\")","v":""},{"$f":"IF(DataLog!$C757=\"Log value\",DataLog!Q757,\"\")","v":""},{"$f":"IF(DataLog!$C757=\"Log value\",DataLog!R757,\"\")","v":""},{"$f":"IF(DataLog!$C757=\"Log value\",DataLog!S757,\"\")","v":""},{"$f":"IF(DataLog!$C757=\"Log value\",DataLog!T757,\"\")","v":""},{"$f":"IF(DataLog!$C757=\"Log value\",DataLog!U757,\"\")","v":""},{"$f":"IF(DataLog!$C757=\"Log value\",DataLog!V757,\"\")","v":""},{"$f":"IF(DataLog!$C757=\"Log value\",DataLog!W757,\"\")","v":""},{"$f":"IF(DataLog!$C757=\"Log value\",DataLog!X757,\"\")","v":""},{"$f":"IF(DataLog!$C757=\"Log value\",DataLog!Y757,\"\")","v":""},{"$f":"IF(DataLog!$C757=\"Log value\",DataLog!Z757,\"\")","v":""},{"$f":"IF(DataLog!$C757=\"Log value\",DataLog!AA757,\"\")","v":""},{"$f":"IF(DataLog!$C757=\"Log value\",DataLog!AB757,\"\")","v":""},{"$f":"IF(DataLog!$C757=\"Log value\",DataLog!AC757,\"\")","v":""},{"$f":"IF(DataLog!$C757=\"Log value\",DataLog!AD757,\"\")","v":""},{"$f":"IF(DataLog!$C757=\"Log value\",DataLog!AE757,\"\")","v":""},{"$f":"IF(DataLog!$C757=\"Log value\",DataLog!AF757,\"\")","v":""},{"$f":"IF(DataLog!$C757=\"Log value\",DataLog!AG757,\"\")","v":""},{"$f":"IF(DataLog!$C757=\"Log value\",DataLog!AH757,\"\")","v":""},{"$f":"IF(DataLog!$C757=\"Log value\",DataLog!AI757,\"\")","v":""},{"$f":"IF(DataLog!$C757=\"Log value\",DataLog!AJ757,\"\")","v":""},{"$f":"IF(DataLog!$C757=\"Log value\",DataLog!AK757,\"\")","v":""},{"$f":"IF(DataLog!$C757=\"Log value\",DataLog!AL757,\"\")","v":""},{"$f":"IF(DataLog!$C757=\"Log value\",DataLog!AM757,\"\")","v":""}]
[null,null,null,null,null,null,{"$f":"IF(DataLog!$C758=\"Log value\",DataLog!D758&\"_\"&TEXT(DataLog!B758,\"åååå-mm-dd\"),\"\")","v":""},{"$f":"IF(DataLog!$C758=\"Log value\",DataLog!E758,\"\")","v":""},{"$f":"IF(DataLog!$C758=\"Log value\",DataLog!F758,\"\")","v":""},{"$f":"IF(DataLog!$C758=\"Log value\",DataLog!G758,\"\")","v":""},{"$f":"IF(DataLog!$C758=\"Log value\",DataLog!H758,\"\")","v":""},{"$f":"IF(DataLog!$C758=\"Log value\",DataLog!I758,\"\")","v":""},{"$f":"IF(DataLog!$C758=\"Log value\",DataLog!J758,\"\")","v":""},{"$f":"IF(DataLog!$C758=\"Log value\",DataLog!K758,\"\")","v":""},{"$f":"IF(DataLog!$C758=\"Log value\",DataLog!L758,\"\")","v":""},{"$f":"IF(DataLog!$C758=\"Log value\",DataLog!M758,\"\")","v":""},{"$f":"IF(DataLog!$C758=\"Log value\",DataLog!N758,\"\")","v":""},{"$f":"IF(DataLog!$C758=\"Log value\",DataLog!O758,\"\")","v":""},{"$f":"IF(DataLog!$C758=\"Log value\",DataLog!P758,\"\")","v":""},{"$f":"IF(DataLog!$C758=\"Log value\",DataLog!Q758,\"\")","v":""},{"$f":"IF(DataLog!$C758=\"Log value\",DataLog!R758,\"\")","v":""},{"$f":"IF(DataLog!$C758=\"Log value\",DataLog!S758,\"\")","v":""},{"$f":"IF(DataLog!$C758=\"Log value\",DataLog!T758,\"\")","v":""},{"$f":"IF(DataLog!$C758=\"Log value\",DataLog!U758,\"\")","v":""},{"$f":"IF(DataLog!$C758=\"Log value\",DataLog!V758,\"\")","v":""},{"$f":"IF(DataLog!$C758=\"Log value\",DataLog!W758,\"\")","v":""},{"$f":"IF(DataLog!$C758=\"Log value\",DataLog!X758,\"\")","v":""},{"$f":"IF(DataLog!$C758=\"Log value\",DataLog!Y758,\"\")","v":""},{"$f":"IF(DataLog!$C758=\"Log value\",DataLog!Z758,\"\")","v":""},{"$f":"IF(DataLog!$C758=\"Log value\",DataLog!AA758,\"\")","v":""},{"$f":"IF(DataLog!$C758=\"Log value\",DataLog!AB758,\"\")","v":""},{"$f":"IF(DataLog!$C758=\"Log value\",DataLog!AC758,\"\")","v":""},{"$f":"IF(DataLog!$C758=\"Log value\",DataLog!AD758,\"\")","v":""},{"$f":"IF(DataLog!$C758=\"Log value\",DataLog!AE758,\"\")","v":""},{"$f":"IF(DataLog!$C758=\"Log value\",DataLog!AF758,\"\")","v":""},{"$f":"IF(DataLog!$C758=\"Log value\",DataLog!AG758,\"\")","v":""},{"$f":"IF(DataLog!$C758=\"Log value\",DataLog!AH758,\"\")","v":""},{"$f":"IF(DataLog!$C758=\"Log value\",DataLog!AI758,\"\")","v":""},{"$f":"IF(DataLog!$C758=\"Log value\",DataLog!AJ758,\"\")","v":""},{"$f":"IF(DataLog!$C758=\"Log value\",DataLog!AK758,\"\")","v":""},{"$f":"IF(DataLog!$C758=\"Log value\",DataLog!AL758,\"\")","v":""},{"$f":"IF(DataLog!$C758=\"Log value\",DataLog!AM758,\"\")","v":""}]
[null,null,null,null,null,null,{"$f":"IF(DataLog!$C759=\"Log value\",DataLog!D759&\"_\"&TEXT(DataLog!B759,\"åååå-mm-dd\"),\"\")","v":""},{"$f":"IF(DataLog!$C759=\"Log value\",DataLog!E759,\"\")","v":""},{"$f":"IF(DataLog!$C759=\"Log value\",DataLog!F759,\"\")","v":""},{"$f":"IF(DataLog!$C759=\"Log value\",DataLog!G759,\"\")","v":""},{"$f":"IF(DataLog!$C759=\"Log value\",DataLog!H759,\"\")","v":""},{"$f":"IF(DataLog!$C759=\"Log value\",DataLog!I759,\"\")","v":""},{"$f":"IF(DataLog!$C759=\"Log value\",DataLog!J759,\"\")","v":""},{"$f":"IF(DataLog!$C759=\"Log value\",DataLog!K759,\"\")","v":""},{"$f":"IF(DataLog!$C759=\"Log value\",DataLog!L759,\"\")","v":""},{"$f":"IF(DataLog!$C759=\"Log value\",DataLog!M759,\"\")","v":""},{"$f":"IF(DataLog!$C759=\"Log value\",DataLog!N759,\"\")","v":""},{"$f":"IF(DataLog!$C759=\"Log value\",DataLog!O759,\"\")","v":""},{"$f":"IF(DataLog!$C759=\"Log value\",DataLog!P759,\"\")","v":""},{"$f":"IF(DataLog!$C759=\"Log value\",DataLog!Q759,\"\")","v":""},{"$f":"IF(DataLog!$C759=\"Log value\",DataLog!R759,\"\")","v":""},{"$f":"IF(DataLog!$C759=\"Log value\",DataLog!S759,\"\")","v":""},{"$f":"IF(DataLog!$C759=\"Log value\",DataLog!T759,\"\")","v":""},{"$f":"IF(DataLog!$C759=\"Log value\",DataLog!U759,\"\")","v":""},{"$f":"IF(DataLog!$C759=\"Log value\",DataLog!V759,\"\")","v":""},{"$f":"IF(DataLog!$C759=\"Log value\",DataLog!W759,\"\")","v":""},{"$f":"IF(DataLog!$C759=\"Log value\",DataLog!X759,\"\")","v":""},{"$f":"IF(DataLog!$C759=\"Log value\",DataLog!Y759,\"\")","v":""},{"$f":"IF(DataLog!$C759=\"Log value\",DataLog!Z759,\"\")","v":""},{"$f":"IF(DataLog!$C759=\"Log value\",DataLog!AA759,\"\")","v":""},{"$f":"IF(DataLog!$C759=\"Log value\",DataLog!AB759,\"\")","v":""},{"$f":"IF(DataLog!$C759=\"Log value\",DataLog!AC759,\"\")","v":""},{"$f":"IF(DataLog!$C759=\"Log value\",DataLog!AD759,\"\")","v":""},{"$f":"IF(DataLog!$C759=\"Log value\",DataLog!AE759,\"\")","v":""},{"$f":"IF(DataLog!$C759=\"Log value\",DataLog!AF759,\"\")","v":""},{"$f":"IF(DataLog!$C759=\"Log value\",DataLog!AG759,\"\")","v":""},{"$f":"IF(DataLog!$C759=\"Log value\",DataLog!AH759,\"\")","v":""},{"$f":"IF(DataLog!$C759=\"Log value\",DataLog!AI759,\"\")","v":""},{"$f":"IF(DataLog!$C759=\"Log value\",DataLog!AJ759,\"\")","v":""},{"$f":"IF(DataLog!$C759=\"Log value\",DataLog!AK759,\"\")","v":""},{"$f":"IF(DataLog!$C759=\"Log value\",DataLog!AL759,\"\")","v":""},{"$f":"IF(DataLog!$C759=\"Log value\",DataLog!AM759,\"\")","v":""}]
[null,null,null,null,null,null,{"$f":"IF(DataLog!$C760=\"Log value\",DataLog!D760&\"_\"&TEXT(DataLog!B760,\"åååå-mm-dd\"),\"\")","v":""},{"$f":"IF(DataLog!$C760=\"Log value\",DataLog!E760,\"\")","v":""},{"$f":"IF(DataLog!$C760=\"Log value\",DataLog!F760,\"\")","v":""},{"$f":"IF(DataLog!$C760=\"Log value\",DataLog!G760,\"\")","v":""},{"$f":"IF(DataLog!$C760=\"Log value\",DataLog!H760,\"\")","v":""},{"$f":"IF(DataLog!$C760=\"Log value\",DataLog!I760,\"\")","v":""},{"$f":"IF(DataLog!$C760=\"Log value\",DataLog!J760,\"\")","v":""},{"$f":"IF(DataLog!$C760=\"Log value\",DataLog!K760,\"\")","v":""},{"$f":"IF(DataLog!$C760=\"Log value\",DataLog!L760,\"\")","v":""},{"$f":"IF(DataLog!$C760=\"Log value\",DataLog!M760,\"\")","v":""},{"$f":"IF(DataLog!$C760=\"Log value\",DataLog!N760,\"\")","v":""},{"$f":"IF(DataLog!$C760=\"Log value\",DataLog!O760,\"\")","v":""},{"$f":"IF(DataLog!$C760=\"Log value\",DataLog!P760,\"\")","v":""},{"$f":"IF(DataLog!$C760=\"Log value\",DataLog!Q760,\"\")","v":""},{"$f":"IF(DataLog!$C760=\"Log value\",DataLog!R760,\"\")","v":""},{"$f":"IF(DataLog!$C760=\"Log value\",DataLog!S760,\"\")","v":""},{"$f":"IF(DataLog!$C760=\"Log value\",DataLog!T760,\"\")","v":""},{"$f":"IF(DataLog!$C760=\"Log value\",DataLog!U760,\"\")","v":""},{"$f":"IF(DataLog!$C760=\"Log value\",DataLog!V760,\"\")","v":""},{"$f":"IF(DataLog!$C760=\"Log value\",DataLog!W760,\"\")","v":""},{"$f":"IF(DataLog!$C760=\"Log value\",DataLog!X760,\"\")","v":""},{"$f":"IF(DataLog!$C760=\"Log value\",DataLog!Y760,\"\")","v":""},{"$f":"IF(DataLog!$C760=\"Log value\",DataLog!Z760,\"\")","v":""},{"$f":"IF(DataLog!$C760=\"Log value\",DataLog!AA760,\"\")","v":""},{"$f":"IF(DataLog!$C760=\"Log value\",DataLog!AB760,\"\")","v":""},{"$f":"IF(DataLog!$C760=\"Log value\",DataLog!AC760,\"\")","v":""},{"$f":"IF(DataLog!$C760=\"Log value\",DataLog!AD760,\"\")","v":""},{"$f":"IF(DataLog!$C760=\"Log value\",DataLog!AE760,\"\")","v":""},{"$f":"IF(DataLog!$C760=\"Log value\",DataLog!AF760,\"\")","v":""},{"$f":"IF(DataLog!$C760=\"Log value\",DataLog!AG760,\"\")","v":""},{"$f":"IF(DataLog!$C760=\"Log value\",DataLog!AH760,\"\")","v":""},{"$f":"IF(DataLog!$C760=\"Log value\",DataLog!AI760,\"\")","v":""},{"$f":"IF(DataLog!$C760=\"Log value\",DataLog!AJ760,\"\")","v":""},{"$f":"IF(DataLog!$C760=\"Log value\",DataLog!AK760,\"\")","v":""},{"$f":"IF(DataLog!$C760=\"Log value\",DataLog!AL760,\"\")","v":""},{"$f":"IF(DataLog!$C760=\"Log value\",DataLog!AM760,\"\")","v":""}]
[null,null,null,null,null,null,{"$f":"IF(DataLog!$C761=\"Log value\",DataLog!D761&\"_\"&TEXT(DataLog!B761,\"åååå-mm-dd\"),\"\")","v":""},{"$f":"IF(DataLog!$C761=\"Log value\",DataLog!E761,\"\")","v":""},{"$f":"IF(DataLog!$C761=\"Log value\",DataLog!F761,\"\")","v":""},{"$f":"IF(DataLog!$C761=\"Log value\",DataLog!G761,\"\")","v":""},{"$f":"IF(DataLog!$C761=\"Log value\",DataLog!H761,\"\")","v":""},{"$f":"IF(DataLog!$C761=\"Log value\",DataLog!I761,\"\")","v":""},{"$f":"IF(DataLog!$C761=\"Log value\",DataLog!J761,\"\")","v":""},{"$f":"IF(DataLog!$C761=\"Log value\",DataLog!K761,\"\")","v":""},{"$f":"IF(DataLog!$C761=\"Log value\",DataLog!L761,\"\")","v":""},{"$f":"IF(DataLog!$C761=\"Log value\",DataLog!M761,\"\")","v":""},{"$f":"IF(DataLog!$C761=\"Log value\",DataLog!N761,\"\")","v":""},{"$f":"IF(DataLog!$C761=\"Log value\",DataLog!O761,\"\")","v":""},{"$f":"IF(DataLog!$C761=\"Log value\",DataLog!P761,\"\")","v":""},{"$f":"IF(DataLog!$C761=\"Log value\",DataLog!Q761,\"\")","v":""},{"$f":"IF(DataLog!$C761=\"Log value\",DataLog!R761,\"\")","v":""},{"$f":"IF(DataLog!$C761=\"Log value\",DataLog!S761,\"\")","v":""},{"$f":"IF(DataLog!$C761=\"Log value\",DataLog!T761,\"\")","v":""},{"$f":"IF(DataLog!$C761=\"Log value\",DataLog!U761,\"\")","v":""},{"$f":"IF(DataLog!$C761=\"Log value\",DataLog!V761,\"\")","v":""},{"$f":"IF(DataLog!$C761=\"Log value\",DataLog!W761,\"\")","v":""},{"$f":"IF(DataLog!$C761=\"Log value\",DataLog!X761,\"\")","v":""},{"$f":"IF(DataLog!$C761=\"Log value\",DataLog!Y761,\"\")","v":""},{"$f":"IF(DataLog!$C761=\"Log value\",DataLog!Z761,\"\")","v":""},{"$f":"IF(DataLog!$C761=\"Log value\",DataLog!AA761,\"\")","v":""},{"$f":"IF(DataLog!$C761=\"Log value\",DataLog!AB761,\"\")","v":""},{"$f":"IF(DataLog!$C761=\"Log value\",DataLog!AC761,\"\")","v":""},{"$f":"IF(DataLog!$C761=\"Log value\",DataLog!AD761,\"\")","v":""},{"$f":"IF(DataLog!$C761=\"Log value\",DataLog!AE761,\"\")","v":""},{"$f":"IF(DataLog!$C761=\"Log value\",DataLog!AF761,\"\")","v":""},{"$f":"IF(DataLog!$C761=\"Log value\",DataLog!AG761,\"\")","v":""},{"$f":"IF(DataLog!$C761=\"Log value\",DataLog!AH761,\"\")","v":""},{"$f":"IF(DataLog!$C761=\"Log value\",DataLog!AI761,\"\")","v":""},{"$f":"IF(DataLog!$C761=\"Log value\",DataLog!AJ761,\"\")","v":""},{"$f":"IF(DataLog!$C761=\"Log value\",DataLog!AK761,\"\")","v":""},{"$f":"IF(DataLog!$C761=\"Log value\",DataLog!AL761,\"\")","v":""},{"$f":"IF(DataLog!$C761=\"Log value\",DataLog!AM761,\"\")","v":""}]
[null,null,null,null,null,null,{"$f":"IF(DataLog!$C762=\"Log value\",DataLog!D762&\"_\"&TEXT(DataLog!B762,\"åååå-mm-dd\"),\"\")","v":""},{"$f":"IF(DataLog!$C762=\"Log value\",DataLog!E762,\"\")","v":""},{"$f":"IF(DataLog!$C762=\"Log value\",DataLog!F762,\"\")","v":""},{"$f":"IF(DataLog!$C762=\"Log value\",DataLog!G762,\"\")","v":""},{"$f":"IF(DataLog!$C762=\"Log value\",DataLog!H762,\"\")","v":""},{"$f":"IF(DataLog!$C762=\"Log value\",DataLog!I762,\"\")","v":""},{"$f":"IF(DataLog!$C762=\"Log value\",DataLog!J762,\"\")","v":""},{"$f":"IF(DataLog!$C762=\"Log value\",DataLog!K762,\"\")","v":""},{"$f":"IF(DataLog!$C762=\"Log value\",DataLog!L762,\"\")","v":""},{"$f":"IF(DataLog!$C762=\"Log value\",DataLog!M762,\"\")","v":""},{"$f":"IF(DataLog!$C762=\"Log value\",DataLog!N762,\"\")","v":""},{"$f":"IF(DataLog!$C762=\"Log value\",DataLog!O762,\"\")","v":""},{"$f":"IF(DataLog!$C762=\"Log value\",DataLog!P762,\"\")","v":""},{"$f":"IF(DataLog!$C762=\"Log value\",DataLog!Q762,\"\")","v":""},{"$f":"IF(DataLog!$C762=\"Log value\",DataLog!R762,\"\")","v":""},{"$f":"IF(DataLog!$C762=\"Log value\",DataLog!S762,\"\")","v":""},{"$f":"IF(DataLog!$C762=\"Log value\",DataLog!T762,\"\")","v":""},{"$f":"IF(DataLog!$C762=\"Log value\",DataLog!U762,\"\")","v":""},{"$f":"IF(DataLog!$C762=\"Log value\",DataLog!V762,\"\")","v":""},{"$f":"IF(DataLog!$C762=\"Log value\",DataLog!W762,\"\")","v":""},{"$f":"IF(DataLog!$C762=\"Log value\",DataLog!X762,\"\")","v":""},{"$f":"IF(DataLog!$C762=\"Log value\",DataLog!Y762,\"\")","v":""},{"$f":"IF(DataLog!$C762=\"Log value\",DataLog!Z762,\"\")","v":""},{"$f":"IF(DataLog!$C762=\"Log value\",DataLog!AA762,\"\")","v":""},{"$f":"IF(DataLog!$C762=\"Log value\",DataLog!AB762,\"\")","v":""},{"$f":"IF(DataLog!$C762=\"Log value\",DataLog!AC762,\"\")","v":""},{"$f":"IF(DataLog!$C762=\"Log value\",DataLog!AD762,\"\")","v":""},{"$f":"IF(DataLog!$C762=\"Log value\",DataLog!AE762,\"\")","v":""},{"$f":"IF(DataLog!$C762=\"Log value\",DataLog!AF762,\"\")","v":""},{"$f":"IF(DataLog!$C762=\"Log value\",DataLog!AG762,\"\")","v":""},{"$f":"IF(DataLog!$C762=\"Log value\",DataLog!AH762,\"\")","v":""},{"$f":"IF(DataLog!$C762=\"Log value\",DataLog!AI762,\"\")","v":""},{"$f":"IF(DataLog!$C762=\"Log value\",DataLog!AJ762,\"\")","v":""},{"$f":"IF(DataLog!$C762=\"Log value\",DataLog!AK762,\"\")","v":""},{"$f":"IF(DataLog!$C762=\"Log value\",DataLog!AL762,\"\")","v":""},{"$f":"IF(DataLog!$C762=\"Log value\",DataLog!AM762,\"\")","v":""}]
[null,null,null,null,null,null,{"$f":"IF(DataLog!$C763=\"Log value\",DataLog!D763&\"_\"&TEXT(DataLog!B763,\"åååå-mm-dd\"),\"\")","v":""},{"$f":"IF(DataLog!$C763=\"Log value\",DataLog!E763,\"\")","v":""},{"$f":"IF(DataLog!$C763=\"Log value\",DataLog!F763,\"\")","v":""},{"$f":"IF(DataLog!$C763=\"Log value\",DataLog!G763,\"\")","v":""},{"$f":"IF(DataLog!$C763=\"Log value\",DataLog!H763,\"\")","v":""},{"$f":"IF(DataLog!$C763=\"Log value\",DataLog!I763,\"\")","v":""},{"$f":"IF(DataLog!$C763=\"Log value\",DataLog!J763,\"\")","v":""},{"$f":"IF(DataLog!$C763=\"Log value\",DataLog!K763,\"\")","v":""},{"$f":"IF(DataLog!$C763=\"Log value\",DataLog!L763,\"\")","v":""},{"$f":"IF(DataLog!$C763=\"Log value\",DataLog!M763,\"\")","v":""},{"$f":"IF(DataLog!$C763=\"Log value\",DataLog!N763,\"\")","v":""},{"$f":"IF(DataLog!$C763=\"Log value\",DataLog!O763,\"\")","v":""},{"$f":"IF(DataLog!$C763=\"Log value\",DataLog!P763,\"\")","v":""},{"$f":"IF(DataLog!$C763=\"Log value\",DataLog!Q763,\"\")","v":""},{"$f":"IF(DataLog!$C763=\"Log value\",DataLog!R763,\"\")","v":""},{"$f":"IF(DataLog!$C763=\"Log value\",DataLog!S763,\"\")","v":""},{"$f":"IF(DataLog!$C763=\"Log value\",DataLog!T763,\"\")","v":""},{"$f":"IF(DataLog!$C763=\"Log value\",DataLog!U763,\"\")","v":""},{"$f":"IF(DataLog!$C763=\"Log value\",DataLog!V763,\"\")","v":""},{"$f":"IF(DataLog!$C763=\"Log value\",DataLog!W763,\"\")","v":""},{"$f":"IF(DataLog!$C763=\"Log value\",DataLog!X763,\"\")","v":""},{"$f":"IF(DataLog!$C763=\"Log value\",DataLog!Y763,\"\")","v":""},{"$f":"IF(DataLog!$C763=\"Log value\",DataLog!Z763,\"\")","v":""},{"$f":"IF(DataLog!$C763=\"Log value\",DataLog!AA763,\"\")","v":""},{"$f":"IF(DataLog!$C763=\"Log value\",DataLog!AB763,\"\")","v":""},{"$f":"IF(DataLog!$C763=\"Log value\",DataLog!AC763,\"\")","v":""},{"$f":"IF(DataLog!$C763=\"Log value\",DataLog!AD763,\"\")","v":""},{"$f":"IF(DataLog!$C763=\"Log value\",DataLog!AE763,\"\")","v":""},{"$f":"IF(DataLog!$C763=\"Log value\",DataLog!AF763,\"\")","v":""},{"$f":"IF(DataLog!$C763=\"Log value\",DataLog!AG763,\"\")","v":""},{"$f":"IF(DataLog!$C763=\"Log value\",DataLog!AH763,\"\")","v":""},{"$f":"IF(DataLog!$C763=\"Log value\",DataLog!AI763,\"\")","v":""},{"$f":"IF(DataLog!$C763=\"Log value\",DataLog!AJ763,\"\")","v":""},{"$f":"IF(DataLog!$C763=\"Log value\",DataLog!AK763,\"\")","v":""},{"$f":"IF(DataLog!$C763=\"Log value\",DataLog!AL763,\"\")","v":""},{"$f":"IF(DataLog!$C763=\"Log value\",DataLog!AM763,\"\")","v":""}]
[null,null,null,null,null,null,{"$f":"IF(DataLog!$C764=\"Log value\",DataLog!D764&\"_\"&TEXT(DataLog!B764,\"åååå-mm-dd\"),\"\")","v":""},{"$f":"IF(DataLog!$C764=\"Log value\",DataLog!E764,\"\")","v":""},{"$f":"IF(DataLog!$C764=\"Log value\",DataLog!F764,\"\")","v":""},{"$f":"IF(DataLog!$C764=\"Log value\",DataLog!G764,\"\")","v":""},{"$f":"IF(DataLog!$C764=\"Log value\",DataLog!H764,\"\")","v":""},{"$f":"IF(DataLog!$C764=\"Log value\",DataLog!I764,\"\")","v":""},{"$f":"IF(DataLog!$C764=\"Log value\",DataLog!J764,\"\")","v":""},{"$f":"IF(DataLog!$C764=\"Log value\",DataLog!K764,\"\")","v":""},{"$f":"IF(DataLog!$C764=\"Log value\",DataLog!L764,\"\")","v":""},{"$f":"IF(DataLog!$C764=\"Log value\",DataLog!M764,\"\")","v":""},{"$f":"IF(DataLog!$C764=\"Log value\",DataLog!N764,\"\")","v":""},{"$f":"IF(DataLog!$C764=\"Log value\",DataLog!O764,\"\")","v":""},{"$f":"IF(DataLog!$C764=\"Log value\",DataLog!P764,\"\")","v":""},{"$f":"IF(DataLog!$C764=\"Log value\",DataLog!Q764,\"\")","v":""},{"$f":"IF(DataLog!$C764=\"Log value\",DataLog!R764,\"\")","v":""},{"$f":"IF(DataLog!$C764=\"Log value\",DataLog!S764,\"\")","v":""},{"$f":"IF(DataLog!$C764=\"Log value\",DataLog!T764,\"\")","v":""},{"$f":"IF(DataLog!$C764=\"Log value\",DataLog!U764,\"\")","v":""},{"$f":"IF(DataLog!$C764=\"Log value\",DataLog!V764,\"\")","v":""},{"$f":"IF(DataLog!$C764=\"Log value\",DataLog!W764,\"\")","v":""},{"$f":"IF(DataLog!$C764=\"Log value\",DataLog!X764,\"\")","v":""},{"$f":"IF(DataLog!$C764=\"Log value\",DataLog!Y764,\"\")","v":""},{"$f":"IF(DataLog!$C764=\"Log value\",DataLog!Z764,\"\")","v":""},{"$f":"IF(DataLog!$C764=\"Log value\",DataLog!AA764,\"\")","v":""},{"$f":"IF(DataLog!$C764=\"Log value\",DataLog!AB764,\"\")","v":""},{"$f":"IF(DataLog!$C764=\"Log value\",DataLog!AC764,\"\")","v":""},{"$f":"IF(DataLog!$C764=\"Log value\",DataLog!AD764,\"\")","v":""},{"$f":"IF(DataLog!$C764=\"Log value\",DataLog!AE764,\"\")","v":""},{"$f":"IF(DataLog!$C764=\"Log value\",DataLog!AF764,\"\")","v":""},{"$f":"IF(DataLog!$C764=\"Log value\",DataLog!AG764,\"\")","v":""},{"$f":"IF(DataLog!$C764=\"Log value\",DataLog!AH764,\"\")","v":""},{"$f":"IF(DataLog!$C764=\"Log value\",DataLog!AI764,\"\")","v":""},{"$f":"IF(DataLog!$C764=\"Log value\",DataLog!AJ764,\"\")","v":""},{"$f":"IF(DataLog!$C764=\"Log value\",DataLog!AK764,\"\")","v":""},{"$f":"IF(DataLog!$C764=\"Log value\",DataLog!AL764,\"\")","v":""},{"$f":"IF(DataLog!$C764=\"Log value\",DataLog!AM764,\"\")","v":""}]
[null,null,null,null,null,null,{"$f":"IF(DataLog!$C765=\"Log value\",DataLog!D765&\"_\"&TEXT(DataLog!B765,\"åååå-mm-dd\"),\"\")","v":""},{"$f":"IF(DataLog!$C765=\"Log value\",DataLog!E765,\"\")","v":""},{"$f":"IF(DataLog!$C765=\"Log value\",DataLog!F765,\"\")","v":""},{"$f":"IF(DataLog!$C765=\"Log value\",DataLog!G765,\"\")","v":""},{"$f":"IF(DataLog!$C765=\"Log value\",DataLog!H765,\"\")","v":""},{"$f":"IF(DataLog!$C765=\"Log value\",DataLog!I765,\"\")","v":""},{"$f":"IF(DataLog!$C765=\"Log value\",DataLog!J765,\"\")","v":""},{"$f":"IF(DataLog!$C765=\"Log value\",DataLog!K765,\"\")","v":""},{"$f":"IF(DataLog!$C765=\"Log value\",DataLog!L765,\"\")","v":""},{"$f":"IF(DataLog!$C765=\"Log value\",DataLog!M765,\"\")","v":""},{"$f":"IF(DataLog!$C765=\"Log value\",DataLog!N765,\"\")","v":""},{"$f":"IF(DataLog!$C765=\"Log value\",DataLog!O765,\"\")","v":""},{"$f":"IF(DataLog!$C765=\"Log value\",DataLog!P765,\"\")","v":""},{"$f":"IF(DataLog!$C765=\"Log value\",DataLog!Q765,\"\")","v":""},{"$f":"IF(DataLog!$C765=\"Log value\",DataLog!R765,\"\")","v":""},{"$f":"IF(DataLog!$C765=\"Log value\",DataLog!S765,\"\")","v":""},{"$f":"IF(DataLog!$C765=\"Log value\",DataLog!T765,\"\")","v":""},{"$f":"IF(DataLog!$C765=\"Log value\",DataLog!U765,\"\")","v":""},{"$f":"IF(DataLog!$C765=\"Log value\",DataLog!V765,\"\")","v":""},{"$f":"IF(DataLog!$C765=\"Log value\",DataLog!W765,\"\")","v":""},{"$f":"IF(DataLog!$C765=\"Log value\",DataLog!X765,\"\")","v":""},{"$f":"IF(DataLog!$C765=\"Log value\",DataLog!Y765,\"\")","v":""},{"$f":"IF(DataLog!$C765=\"Log value\",DataLog!Z765,\"\")","v":""},{"$f":"IF(DataLog!$C765=\"Log value\",DataLog!AA765,\"\")","v":""},{"$f":"IF(DataLog!$C765=\"Log value\",DataLog!AB765,\"\")","v":""},{"$f":"IF(DataLog!$C765=\"Log value\",DataLog!AC765,\"\")","v":""},{"$f":"IF(DataLog!$C765=\"Log value\",DataLog!AD765,\"\")","v":""},{"$f":"IF(DataLog!$C765=\"Log value\",DataLog!AE765,\"\")","v":""},{"$f":"IF(DataLog!$C765=\"Log value\",DataLog!AF765,\"\")","v":""},{"$f":"IF(DataLog!$C765=\"Log value\",DataLog!AG765,\"\")","v":""},{"$f":"IF(DataLog!$C765=\"Log value\",DataLog!AH765,\"\")","v":""},{"$f":"IF(DataLog!$C765=\"Log value\",DataLog!AI765,\"\")","v":""},{"$f":"IF(DataLog!$C765=\"Log value\",DataLog!AJ765,\"\")","v":""},{"$f":"IF(DataLog!$C765=\"Log value\",DataLog!AK765,\"\")","v":""},{"$f":"IF(DataLog!$C765=\"Log value\",DataLog!AL765,\"\")","v":""},{"$f":"IF(DataLog!$C765=\"Log value\",DataLog!AM765,\"\")","v":""}]
[null,null,null,null,null,null,{"$f":"IF(DataLog!$C766=\"Log value\",DataLog!D766&\"_\"&TEXT(DataLog!B766,\"åååå-mm-dd\"),\"\")","v":""},{"$f":"IF(DataLog!$C766=\"Log value\",DataLog!E766,\"\")","v":""},{"$f":"IF(DataLog!$C766=\"Log value\",DataLog!F766,\"\")","v":""},{"$f":"IF(DataLog!$C766=\"Log value\",DataLog!G766,\"\")","v":""},{"$f":"IF(DataLog!$C766=\"Log value\",DataLog!H766,\"\")","v":""},{"$f":"IF(DataLog!$C766=\"Log value\",DataLog!I766,\"\")","v":""},{"$f":"IF(DataLog!$C766=\"Log value\",DataLog!J766,\"\")","v":""},{"$f":"IF(DataLog!$C766=\"Log value\",DataLog!K766,\"\")","v":""},{"$f":"IF(DataLog!$C766=\"Log value\",DataLog!L766,\"\")","v":""},{"$f":"IF(DataLog!$C766=\"Log value\",DataLog!M766,\"\")","v":""},{"$f":"IF(DataLog!$C766=\"Log value\",DataLog!N766,\"\")","v":""},{"$f":"IF(DataLog!$C766=\"Log value\",DataLog!O766,\"\")","v":""},{"$f":"IF(DataLog!$C766=\"Log value\",DataLog!P766,\"\")","v":""},{"$f":"IF(DataLog!$C766=\"Log value\",DataLog!Q766,\"\")","v":""},{"$f":"IF(DataLog!$C766=\"Log value\",DataLog!R766,\"\")","v":""},{"$f":"IF(DataLog!$C766=\"Log value\",DataLog!S766,\"\")","v":""},{"$f":"IF(DataLog!$C766=\"Log value\",DataLog!T766,\"\")","v":""},{"$f":"IF(DataLog!$C766=\"Log value\",DataLog!U766,\"\")","v":""},{"$f":"IF(DataLog!$C766=\"Log value\",DataLog!V766,\"\")","v":""},{"$f":"IF(DataLog!$C766=\"Log value\",DataLog!W766,\"\")","v":""},{"$f":"IF(DataLog!$C766=\"Log value\",DataLog!X766,\"\")","v":""},{"$f":"IF(DataLog!$C766=\"Log value\",DataLog!Y766,\"\")","v":""},{"$f":"IF(DataLog!$C766=\"Log value\",DataLog!Z766,\"\")","v":""},{"$f":"IF(DataLog!$C766=\"Log value\",DataLog!AA766,\"\")","v":""},{"$f":"IF(DataLog!$C766=\"Log value\",DataLog!AB766,\"\")","v":""},{"$f":"IF(DataLog!$C766=\"Log value\",DataLog!AC766,\"\")","v":""},{"$f":"IF(DataLog!$C766=\"Log value\",DataLog!AD766,\"\")","v":""},{"$f":"IF(DataLog!$C766=\"Log value\",DataLog!AE766,\"\")","v":""},{"$f":"IF(DataLog!$C766=\"Log value\",DataLog!AF766,\"\")","v":""},{"$f":"IF(DataLog!$C766=\"Log value\",DataLog!AG766,\"\")","v":""},{"$f":"IF(DataLog!$C766=\"Log value\",DataLog!AH766,\"\")","v":""},{"$f":"IF(DataLog!$C766=\"Log value\",DataLog!AI766,\"\")","v":""},{"$f":"IF(DataLog!$C766=\"Log value\",DataLog!AJ766,\"\")","v":""},{"$f":"IF(DataLog!$C766=\"Log value\",DataLog!AK766,\"\")","v":""},{"$f":"IF(DataLog!$C766=\"Log value\",DataLog!AL766,\"\")","v":""},{"$f":"IF(DataLog!$C766=\"Log value\",DataLog!AM766,\"\")","v":""}]
[null,null,null,null,null,null,{"$f":"IF(DataLog!$C767=\"Log value\",DataLog!D767&\"_\"&TEXT(DataLog!B767,\"åååå-mm-dd\"),\"\")","v":""},{"$f":"IF(DataLog!$C767=\"Log value\",DataLog!E767,\"\")","v":""},{"$f":"IF(DataLog!$C767=\"Log value\",DataLog!F767,\"\")","v":""},{"$f":"IF(DataLog!$C767=\"Log value\",DataLog!G767,\"\")","v":""},{"$f":"IF(DataLog!$C767=\"Log value\",DataLog!H767,\"\")","v":""},{"$f":"IF(DataLog!$C767=\"Log value\",DataLog!I767,\"\")","v":""},{"$f":"IF(DataLog!$C767=\"Log value\",DataLog!J767,\"\")","v":""},{"$f":"IF(DataLog!$C767=\"Log value\",DataLog!K767,\"\")","v":""},{"$f":"IF(DataLog!$C767=\"Log value\",DataLog!L767,\"\")","v":""},{"$f":"IF(DataLog!$C767=\"Log value\",DataLog!M767,\"\")","v":""},{"$f":"IF(DataLog!$C767=\"Log value\",DataLog!N767,\"\")","v":""},{"$f":"IF(DataLog!$C767=\"Log value\",DataLog!O767,\"\")","v":""},{"$f":"IF(DataLog!$C767=\"Log value\",DataLog!P767,\"\")","v":""},{"$f":"IF(DataLog!$C767=\"Log value\",DataLog!Q767,\"\")","v":""},{"$f":"IF(DataLog!$C767=\"Log value\",DataLog!R767,\"\")","v":""},{"$f":"IF(DataLog!$C767=\"Log value\",DataLog!S767,\"\")","v":""},{"$f":"IF(DataLog!$C767=\"Log value\",DataLog!T767,\"\")","v":""},{"$f":"IF(DataLog!$C767=\"Log value\",DataLog!U767,\"\")","v":""},{"$f":"IF(DataLog!$C767=\"Log value\",DataLog!V767,\"\")","v":""},{"$f":"IF(DataLog!$C767=\"Log value\",DataLog!W767,\"\")","v":""},{"$f":"IF(DataLog!$C767=\"Log value\",DataLog!X767,\"\")","v":""},{"$f":"IF(DataLog!$C767=\"Log value\",DataLog!Y767,\"\")","v":""},{"$f":"IF(DataLog!$C767=\"Log value\",DataLog!Z767,\"\")","v":""},{"$f":"IF(DataLog!$C767=\"Log value\",DataLog!AA767,\"\")","v":""},{"$f":"IF(DataLog!$C767=\"Log value\",DataLog!AB767,\"\")","v":""},{"$f":"IF(DataLog!$C767=\"Log value\",DataLog!AC767,\"\")","v":""},{"$f":"IF(DataLog!$C767=\"Log value\",DataLog!AD767,\"\")","v":""},{"$f":"IF(DataLog!$C767=\"Log value\",DataLog!AE767,\"\")","v":""},{"$f":"IF(DataLog!$C767=\"Log value\",DataLog!AF767,\"\")","v":""},{"$f":"IF(DataLog!$C767=\"Log value\",DataLog!AG767,\"\")","v":""},{"$f":"IF(DataLog!$C767=\"Log value\",DataLog!AH767,\"\")","v":""},{"$f":"IF(DataLog!$C767=\"Log value\",DataLog!AI767,\"\")","v":""},{"$f":"IF(DataLog!$C767=\"Log value\",DataLog!AJ767,\"\")","v":""},{"$f":"IF(DataLog!$C767=\"Log value\",DataLog!AK767,\"\")","v":""},{"$f":"IF(DataLog!$C767=\"Log value\",DataLog!AL767,\"\")","v":""},{"$f":"IF(DataLog!$C767=\"Log value\",DataLog!AM767,\"\")","v":""}]
[null,null,null,null,null,null,{"$f":"IF(DataLog!$C768=\"Log value\",DataLog!D768&\"_\"&TEXT(DataLog!B768,\"åååå-mm-dd\"),\"\")","v":""},{"$f":"IF(DataLog!$C768=\"Log value\",DataLog!E768,\"\")","v":""},{"$f":"IF(DataLog!$C768=\"Log value\",DataLog!F768,\"\")","v":""},{"$f":"IF(DataLog!$C768=\"Log value\",DataLog!G768,\"\")","v":""},{"$f":"IF(DataLog!$C768=\"Log value\",DataLog!H768,\"\")","v":""},{"$f":"IF(DataLog!$C768=\"Log value\",DataLog!I768,\"\")","v":""},{"$f":"IF(DataLog!$C768=\"Log value\",DataLog!J768,\"\")","v":""},{"$f":"IF(DataLog!$C768=\"Log value\",DataLog!K768,\"\")","v":""},{"$f":"IF(DataLog!$C768=\"Log value\",DataLog!L768,\"\")","v":""},{"$f":"IF(DataLog!$C768=\"Log value\",DataLog!M768,\"\")","v":""},{"$f":"IF(DataLog!$C768=\"Log value\",DataLog!N768,\"\")","v":""},{"$f":"IF(DataLog!$C768=\"Log value\",DataLog!O768,\"\")","v":""},{"$f":"IF(DataLog!$C768=\"Log value\",DataLog!P768,\"\")","v":""},{"$f":"IF(DataLog!$C768=\"Log value\",DataLog!Q768,\"\")","v":""},{"$f":"IF(DataLog!$C768=\"Log value\",DataLog!R768,\"\")","v":""},{"$f":"IF(DataLog!$C768=\"Log value\",DataLog!S768,\"\")","v":""},{"$f":"IF(DataLog!$C768=\"Log value\",DataLog!T768,\"\")","v":""},{"$f":"IF(DataLog!$C768=\"Log value\",DataLog!U768,\"\")","v":""},{"$f":"IF(DataLog!$C768=\"Log value\",DataLog!V768,\"\")","v":""},{"$f":"IF(DataLog!$C768=\"Log value\",DataLog!W768,\"\")","v":""},{"$f":"IF(DataLog!$C768=\"Log value\",DataLog!X768,\"\")","v":""},{"$f":"IF(DataLog!$C768=\"Log value\",DataLog!Y768,\"\")","v":""},{"$f":"IF(DataLog!$C768=\"Log value\",DataLog!Z768,\"\")","v":""},{"$f":"IF(DataLog!$C768=\"Log value\",DataLog!AA768,\"\")","v":""},{"$f":"IF(DataLog!$C768=\"Log value\",DataLog!AB768,\"\")","v":""},{"$f":"IF(DataLog!$C768=\"Log value\",DataLog!AC768,\"\")","v":""},{"$f":"IF(DataLog!$C768=\"Log value\",DataLog!AD768,\"\")","v":""},{"$f":"IF(DataLog!$C768=\"Log value\",DataLog!AE768,\"\")","v":""},{"$f":"IF(DataLog!$C768=\"Log value\",DataLog!AF768,\"\")","v":""},{"$f":"IF(DataLog!$C768=\"Log value\",DataLog!AG768,\"\")","v":""},{"$f":"IF(DataLog!$C768=\"Log value\",DataLog!AH768,\"\")","v":""},{"$f":"IF(DataLog!$C768=\"Log value\",DataLog!AI768,\"\")","v":""},{"$f":"IF(DataLog!$C768=\"Log value\",DataLog!AJ768,\"\")","v":""},{"$f":"IF(DataLog!$C768=\"Log value\",DataLog!AK768,\"\")","v":""},{"$f":"IF(DataLog!$C768=\"Log value\",DataLog!AL768,\"\")","v":""},{"$f":"IF(DataLog!$C768=\"Log value\",DataLog!AM768,\"\")","v":""}]
[null,null,null,null,null,null,{"$f":"IF(DataLog!$C769=\"Log value\",DataLog!D769&\"_\"&TEXT(DataLog!B769,\"åååå-mm-dd\"),\"\")","v":""},{"$f":"IF(DataLog!$C769=\"Log value\",DataLog!E769,\"\")","v":""},{"$f":"IF(DataLog!$C769=\"Log value\",DataLog!F769,\"\")","v":""},{"$f":"IF(DataLog!$C769=\"Log value\",DataLog!G769,\"\")","v":""},{"$f":"IF(DataLog!$C769=\"Log value\",DataLog!H769,\"\")","v":""},{"$f":"IF(DataLog!$C769=\"Log value\",DataLog!I769,\"\")","v":""},{"$f":"IF(DataLog!$C769=\"Log value\",DataLog!J769,\"\")","v":""},{"$f":"IF(DataLog!$C769=\"Log value\",DataLog!K769,\"\")","v":""},{"$f":"IF(DataLog!$C769=\"Log value\",DataLog!L769,\"\")","v":""},{"$f":"IF(DataLog!$C769=\"Log value\",DataLog!M769,\"\")","v":""},{"$f":"IF(DataLog!$C769=\"Log value\",DataLog!N769,\"\")","v":""},{"$f":"IF(DataLog!$C769=\"Log value\",DataLog!O769,\"\")","v":""},{"$f":"IF(DataLog!$C769=\"Log value\",DataLog!P769,\"\")","v":""},{"$f":"IF(DataLog!$C769=\"Log value\",DataLog!Q769,\"\")","v":""},{"$f":"IF(DataLog!$C769=\"Log value\",DataLog!R769,\"\")","v":""},{"$f":"IF(DataLog!$C769=\"Log value\",DataLog!S769,\"\")","v":""},{"$f":"IF(DataLog!$C769=\"Log value\",DataLog!T769,\"\")","v":""},{"$f":"IF(DataLog!$C769=\"Log value\",DataLog!U769,\"\")","v":""},{"$f":"IF(DataLog!$C769=\"Log value\",DataLog!V769,\"\")","v":""},{"$f":"IF(DataLog!$C769=\"Log value\",DataLog!W769,\"\")","v":""},{"$f":"IF(DataLog!$C769=\"Log value\",DataLog!X769,\"\")","v":""},{"$f":"IF(DataLog!$C769=\"Log value\",DataLog!Y769,\"\")","v":""},{"$f":"IF(DataLog!$C769=\"Log value\",DataLog!Z769,\"\")","v":""},{"$f":"IF(DataLog!$C769=\"Log value\",DataLog!AA769,\"\")","v":""},{"$f":"IF(DataLog!$C769=\"Log value\",DataLog!AB769,\"\")","v":""},{"$f":"IF(DataLog!$C769=\"Log value\",DataLog!AC769,\"\")","v":""},{"$f":"IF(DataLog!$C769=\"Log value\",DataLog!AD769,\"\")","v":""},{"$f":"IF(DataLog!$C769=\"Log value\",DataLog!AE769,\"\")","v":""},{"$f":"IF(DataLog!$C769=\"Log value\",DataLog!AF769,\"\")","v":""},{"$f":"IF(DataLog!$C769=\"Log value\",DataLog!AG769,\"\")","v":""},{"$f":"IF(DataLog!$C769=\"Log value\",DataLog!AH769,\"\")","v":""},{"$f":"IF(DataLog!$C769=\"Log value\",DataLog!AI769,\"\")","v":""},{"$f":"IF(DataLog!$C769=\"Log value\",DataLog!AJ769,\"\")","v":""},{"$f":"IF(DataLog!$C769=\"Log value\",DataLog!AK769,\"\")","v":""},{"$f":"IF(DataLog!$C769=\"Log value\",DataLog!AL769,\"\")","v":""},{"$f":"IF(DataLog!$C769=\"Log value\",DataLog!AM769,\"\")","v":""}]
[null,null,null,null,null,null,{"$f":"IF(DataLog!$C770=\"Log value\",DataLog!D770&\"_\"&TEXT(DataLog!B770,\"åååå-mm-dd\"),\"\")","v":""},{"$f":"IF(DataLog!$C770=\"Log value\",DataLog!E770,\"\")","v":""},{"$f":"IF(DataLog!$C770=\"Log value\",DataLog!F770,\"\")","v":""},{"$f":"IF(DataLog!$C770=\"Log value\",DataLog!G770,\"\")","v":""},{"$f":"IF(DataLog!$C770=\"Log value\",DataLog!H770,\"\")","v":""},{"$f":"IF(DataLog!$C770=\"Log value\",DataLog!I770,\"\")","v":""},{"$f":"IF(DataLog!$C770=\"Log value\",DataLog!J770,\"\")","v":""},{"$f":"IF(DataLog!$C770=\"Log value\",DataLog!K770,\"\")","v":""},{"$f":"IF(DataLog!$C770=\"Log value\",DataLog!L770,\"\")","v":""},{"$f":"IF(DataLog!$C770=\"Log value\",DataLog!M770,\"\")","v":""},{"$f":"IF(DataLog!$C770=\"Log value\",DataLog!N770,\"\")","v":""},{"$f":"IF(DataLog!$C770=\"Log value\",DataLog!O770,\"\")","v":""},{"$f":"IF(DataLog!$C770=\"Log value\",DataLog!P770,\"\")","v":""},{"$f":"IF(DataLog!$C770=\"Log value\",DataLog!Q770,\"\")","v":""},{"$f":"IF(DataLog!$C770=\"Log value\",DataLog!R770,\"\")","v":""},{"$f":"IF(DataLog!$C770=\"Log value\",DataLog!S770,\"\")","v":""},{"$f":"IF(DataLog!$C770=\"Log value\",DataLog!T770,\"\")","v":""},{"$f":"IF(DataLog!$C770=\"Log value\",DataLog!U770,\"\")","v":""},{"$f":"IF(DataLog!$C770=\"Log value\",DataLog!V770,\"\")","v":""},{"$f":"IF(DataLog!$C770=\"Log value\",DataLog!W770,\"\")","v":""},{"$f":"IF(DataLog!$C770=\"Log value\",DataLog!X770,\"\")","v":""},{"$f":"IF(DataLog!$C770=\"Log value\",DataLog!Y770,\"\")","v":""},{"$f":"IF(DataLog!$C770=\"Log value\",DataLog!Z770,\"\")","v":""},{"$f":"IF(DataLog!$C770=\"Log value\",DataLog!AA770,\"\")","v":""},{"$f":"IF(DataLog!$C770=\"Log value\",DataLog!AB770,\"\")","v":""},{"$f":"IF(DataLog!$C770=\"Log value\",DataLog!AC770,\"\")","v":""},{"$f":"IF(DataLog!$C770=\"Log value\",DataLog!AD770,\"\")","v":""},{"$f":"IF(DataLog!$C770=\"Log value\",DataLog!AE770,\"\")","v":""},{"$f":"IF(DataLog!$C770=\"Log value\",DataLog!AF770,\"\")","v":""},{"$f":"IF(DataLog!$C770=\"Log value\",DataLog!AG770,\"\")","v":""},{"$f":"IF(DataLog!$C770=\"Log value\",DataLog!AH770,\"\")","v":""},{"$f":"IF(DataLog!$C770=\"Log value\",DataLog!AI770,\"\")","v":""},{"$f":"IF(DataLog!$C770=\"Log value\",DataLog!AJ770,\"\")","v":""},{"$f":"IF(DataLog!$C770=\"Log value\",DataLog!AK770,\"\")","v":""},{"$f":"IF(DataLog!$C770=\"Log value\",DataLog!AL770,\"\")","v":""},{"$f":"IF(DataLog!$C770=\"Log value\",DataLog!AM770,\"\")","v":""}]
[null,null,null,null,null,null,{"$f":"IF(DataLog!$C771=\"Log value\",DataLog!D771&\"_\"&TEXT(DataLog!B771,\"åååå-mm-dd\"),\"\")","v":""},{"$f":"IF(DataLog!$C771=\"Log value\",DataLog!E771,\"\")","v":""},{"$f":"IF(DataLog!$C771=\"Log value\",DataLog!F771,\"\")","v":""},{"$f":"IF(DataLog!$C771=\"Log value\",DataLog!G771,\"\")","v":""},{"$f":"IF(DataLog!$C771=\"Log value\",DataLog!H771,\"\")","v":""},{"$f":"IF(DataLog!$C771=\"Log value\",DataLog!I771,\"\")","v":""},{"$f":"IF(DataLog!$C771=\"Log value\",DataLog!J771,\"\")","v":""},{"$f":"IF(DataLog!$C771=\"Log value\",DataLog!K771,\"\")","v":""},{"$f":"IF(DataLog!$C771=\"Log value\",DataLog!L771,\"\")","v":""},{"$f":"IF(DataLog!$C771=\"Log value\",DataLog!M771,\"\")","v":""},{"$f":"IF(DataLog!$C771=\"Log value\",DataLog!N771,\"\")","v":""},{"$f":"IF(DataLog!$C771=\"Log value\",DataLog!O771,\"\")","v":""},{"$f":"IF(DataLog!$C771=\"Log value\",DataLog!P771,\"\")","v":""},{"$f":"IF(DataLog!$C771=\"Log value\",DataLog!Q771,\"\")","v":""},{"$f":"IF(DataLog!$C771=\"Log value\",DataLog!R771,\"\")","v":""},{"$f":"IF(DataLog!$C771=\"Log value\",DataLog!S771,\"\")","v":""},{"$f":"IF(DataLog!$C771=\"Log value\",DataLog!T771,\"\")","v":""},{"$f":"IF(DataLog!$C771=\"Log value\",DataLog!U771,\"\")","v":""},{"$f":"IF(DataLog!$C771=\"Log value\",DataLog!V771,\"\")","v":""},{"$f":"IF(DataLog!$C771=\"Log value\",DataLog!W771,\"\")","v":""},{"$f":"IF(DataLog!$C771=\"Log value\",DataLog!X771,\"\")","v":""},{"$f":"IF(DataLog!$C771=\"Log value\",DataLog!Y771,\"\")","v":""},{"$f":"IF(DataLog!$C771=\"Log value\",DataLog!Z771,\"\")","v":""},{"$f":"IF(DataLog!$C771=\"Log value\",DataLog!AA771,\"\")","v":""},{"$f":"IF(DataLog!$C771=\"Log value\",DataLog!AB771,\"\")","v":""},{"$f":"IF(DataLog!$C771=\"Log value\",DataLog!AC771,\"\")","v":""},{"$f":"IF(DataLog!$C771=\"Log value\",DataLog!AD771,\"\")","v":""},{"$f":"IF(DataLog!$C771=\"Log value\",DataLog!AE771,\"\")","v":""},{"$f":"IF(DataLog!$C771=\"Log value\",DataLog!AF771,\"\")","v":""},{"$f":"IF(DataLog!$C771=\"Log value\",DataLog!AG771,\"\")","v":""},{"$f":"IF(DataLog!$C771=\"Log value\",DataLog!AH771,\"\")","v":""},{"$f":"IF(DataLog!$C771=\"Log value\",DataLog!AI771,\"\")","v":""},{"$f":"IF(DataLog!$C771=\"Log value\",DataLog!AJ771,\"\")","v":""},{"$f":"IF(DataLog!$C771=\"Log value\",DataLog!AK771,\"\")","v":""},{"$f":"IF(DataLog!$C771=\"Log value\",DataLog!AL771,\"\")","v":""},{"$f":"IF(DataLog!$C771=\"Log value\",DataLog!AM771,\"\")","v":""}]
[null,null,null,null,null,null,{"$f":"IF(DataLog!$C772=\"Log value\",DataLog!D772&\"_\"&TEXT(DataLog!B772,\"åååå-mm-dd\"),\"\")","v":""},{"$f":"IF(DataLog!$C772=\"Log value\",DataLog!E772,\"\")","v":""},{"$f":"IF(DataLog!$C772=\"Log value\",DataLog!F772,\"\")","v":""},{"$f":"IF(DataLog!$C772=\"Log value\",DataLog!G772,\"\")","v":""},{"$f":"IF(DataLog!$C772=\"Log value\",DataLog!H772,\"\")","v":""},{"$f":"IF(DataLog!$C772=\"Log value\",DataLog!I772,\"\")","v":""},{"$f":"IF(DataLog!$C772=\"Log value\",DataLog!J772,\"\")","v":""},{"$f":"IF(DataLog!$C772=\"Log value\",DataLog!K772,\"\")","v":""},{"$f":"IF(DataLog!$C772=\"Log value\",DataLog!L772,\"\")","v":""},{"$f":"IF(DataLog!$C772=\"Log value\",DataLog!M772,\"\")","v":""},{"$f":"IF(DataLog!$C772=\"Log value\",DataLog!N772,\"\")","v":""},{"$f":"IF(DataLog!$C772=\"Log value\",DataLog!O772,\"\")","v":""},{"$f":"IF(DataLog!$C772=\"Log value\",DataLog!P772,\"\")","v":""},{"$f":"IF(DataLog!$C772=\"Log value\",DataLog!Q772,\"\")","v":""},{"$f":"IF(DataLog!$C772=\"Log value\",DataLog!R772,\"\")","v":""},{"$f":"IF(DataLog!$C772=\"Log value\",DataLog!S772,\"\")","v":""},{"$f":"IF(DataLog!$C772=\"Log value\",DataLog!T772,\"\")","v":""},{"$f":"IF(DataLog!$C772=\"Log value\",DataLog!U772,\"\")","v":""},{"$f":"IF(DataLog!$C772=\"Log value\",DataLog!V772,\"\")","v":""},{"$f":"IF(DataLog!$C772=\"Log value\",DataLog!W772,\"\")","v":""},{"$f":"IF(DataLog!$C772=\"Log value\",DataLog!X772,\"\")","v":""},{"$f":"IF(DataLog!$C772=\"Log value\",DataLog!Y772,\"\")","v":""},{"$f":"IF(DataLog!$C772=\"Log value\",DataLog!Z772,\"\")","v":""},{"$f":"IF(DataLog!$C772=\"Log value\",DataLog!AA772,\"\")","v":""},{"$f":"IF(DataLog!$C772=\"Log value\",DataLog!AB772,\"\")","v":""},{"$f":"IF(DataLog!$C772=\"Log value\",DataLog!AC772,\"\")","v":""},{"$f":"IF(DataLog!$C772=\"Log value\",DataLog!AD772,\"\")","v":""},{"$f":"IF(DataLog!$C772=\"Log value\",DataLog!AE772,\"\")","v":""},{"$f":"IF(DataLog!$C772=\"Log value\",DataLog!AF772,\"\")","v":""},{"$f":"IF(DataLog!$C772=\"Log value\",DataLog!AG772,\"\")","v":""},{"$f":"IF(DataLog!$C772=\"Log value\",DataLog!AH772,\"\")","v":""},{"$f":"IF(DataLog!$C772=\"Log value\",DataLog!AI772,\"\")","v":""},{"$f":"IF(DataLog!$C772=\"Log value\",DataLog!AJ772,\"\")","v":""},{"$f":"IF(DataLog!$C772=\"Log value\",DataLog!AK772,\"\")","v":""},{"$f":"IF(DataLog!$C772=\"Log value\",DataLog!AL772,\"\")","v":""},{"$f":"IF(DataLog!$C772=\"Log value\",DataLog!AM772,\"\")","v":""}]
[null,null,null,null,null,null,{"$f":"IF(DataLog!$C773=\"Log value\",DataLog!D773&\"_\"&TEXT(DataLog!B773,\"åååå-mm-dd\"),\"\")","v":""},{"$f":"IF(DataLog!$C773=\"Log value\",DataLog!E773,\"\")","v":""},{"$f":"IF(DataLog!$C773=\"Log value\",DataLog!F773,\"\")","v":""},{"$f":"IF(DataLog!$C773=\"Log value\",DataLog!G773,\"\")","v":""},{"$f":"IF(DataLog!$C773=\"Log value\",DataLog!H773,\"\")","v":""},{"$f":"IF(DataLog!$C773=\"Log value\",DataLog!I773,\"\")","v":""},{"$f":"IF(DataLog!$C773=\"Log value\",DataLog!J773,\"\")","v":""},{"$f":"IF(DataLog!$C773=\"Log value\",DataLog!K773,\"\")","v":""},{"$f":"IF(DataLog!$C773=\"Log value\",DataLog!L773,\"\")","v":""},{"$f":"IF(DataLog!$C773=\"Log value\",DataLog!M773,\"\")","v":""},{"$f":"IF(DataLog!$C773=\"Log value\",DataLog!N773,\"\")","v":""},{"$f":"IF(DataLog!$C773=\"Log value\",DataLog!O773,\"\")","v":""},{"$f":"IF(DataLog!$C773=\"Log value\",DataLog!P773,\"\")","v":""},{"$f":"IF(DataLog!$C773=\"Log value\",DataLog!Q773,\"\")","v":""},{"$f":"IF(DataLog!$C773=\"Log value\",DataLog!R773,\"\")","v":""},{"$f":"IF(DataLog!$C773=\"Log value\",DataLog!S773,\"\")","v":""},{"$f":"IF(DataLog!$C773=\"Log value\",DataLog!T773,\"\")","v":""},{"$f":"IF(DataLog!$C773=\"Log value\",DataLog!U773,\"\")","v":""},{"$f":"IF(DataLog!$C773=\"Log value\",DataLog!V773,\"\")","v":""},{"$f":"IF(DataLog!$C773=\"Log value\",DataLog!W773,\"\")","v":""},{"$f":"IF(DataLog!$C773=\"Log value\",DataLog!X773,\"\")","v":""},{"$f":"IF(DataLog!$C773=\"Log value\",DataLog!Y773,\"\")","v":""},{"$f":"IF(DataLog!$C773=\"Log value\",DataLog!Z773,\"\")","v":""},{"$f":"IF(DataLog!$C773=\"Log value\",DataLog!AA773,\"\")","v":""},{"$f":"IF(DataLog!$C773=\"Log value\",DataLog!AB773,\"\")","v":""},{"$f":"IF(DataLog!$C773=\"Log value\",DataLog!AC773,\"\")","v":""},{"$f":"IF(DataLog!$C773=\"Log value\",DataLog!AD773,\"\")","v":""},{"$f":"IF(DataLog!$C773=\"Log value\",DataLog!AE773,\"\")","v":""},{"$f":"IF(DataLog!$C773=\"Log value\",DataLog!AF773,\"\")","v":""},{"$f":"IF(DataLog!$C773=\"Log value\",DataLog!AG773,\"\")","v":""},{"$f":"IF(DataLog!$C773=\"Log value\",DataLog!AH773,\"\")","v":""},{"$f":"IF(DataLog!$C773=\"Log value\",DataLog!AI773,\"\")","v":""},{"$f":"IF(DataLog!$C773=\"Log value\",DataLog!AJ773,\"\")","v":""},{"$f":"IF(DataLog!$C773=\"Log value\",DataLog!AK773,\"\")","v":""},{"$f":"IF(DataLog!$C773=\"Log value\",DataLog!AL773,\"\")","v":""},{"$f":"IF(DataLog!$C773=\"Log value\",DataLog!AM773,\"\")","v":""}]
[null,null,null,null,null,null,{"$f":"IF(DataLog!$C774=\"Log value\",DataLog!D774&\"_\"&TEXT(DataLog!B774,\"åååå-mm-dd\"),\"\")","v":""},{"$f":"IF(DataLog!$C774=\"Log value\",DataLog!E774,\"\")","v":""},{"$f":"IF(DataLog!$C774=\"Log value\",DataLog!F774,\"\")","v":""},{"$f":"IF(DataLog!$C774=\"Log value\",DataLog!G774,\"\")","v":""},{"$f":"IF(DataLog!$C774=\"Log value\",DataLog!H774,\"\")","v":""},{"$f":"IF(DataLog!$C774=\"Log value\",DataLog!I774,\"\")","v":""},{"$f":"IF(DataLog!$C774=\"Log value\",DataLog!J774,\"\")","v":""},{"$f":"IF(DataLog!$C774=\"Log value\",DataLog!K774,\"\")","v":""},{"$f":"IF(DataLog!$C774=\"Log value\",DataLog!L774,\"\")","v":""},{"$f":"IF(DataLog!$C774=\"Log value\",DataLog!M774,\"\")","v":""},{"$f":"IF(DataLog!$C774=\"Log value\",DataLog!N774,\"\")","v":""},{"$f":"IF(DataLog!$C774=\"Log value\",DataLog!O774,\"\")","v":""},{"$f":"IF(DataLog!$C774=\"Log value\",DataLog!P774,\"\")","v":""},{"$f":"IF(DataLog!$C774=\"Log value\",DataLog!Q774,\"\")","v":""},{"$f":"IF(DataLog!$C774=\"Log value\",DataLog!R774,\"\")","v":""},{"$f":"IF(DataLog!$C774=\"Log value\",DataLog!S774,\"\")","v":""},{"$f":"IF(DataLog!$C774=\"Log value\",DataLog!T774,\"\")","v":""},{"$f":"IF(DataLog!$C774=\"Log value\",DataLog!U774,\"\")","v":""},{"$f":"IF(DataLog!$C774=\"Log value\",DataLog!V774,\"\")","v":""},{"$f":"IF(DataLog!$C774=\"Log value\",DataLog!W774,\"\")","v":""},{"$f":"IF(DataLog!$C774=\"Log value\",DataLog!X774,\"\")","v":""},{"$f":"IF(DataLog!$C774=\"Log value\",DataLog!Y774,\"\")","v":""},{"$f":"IF(DataLog!$C774=\"Log value\",DataLog!Z774,\"\")","v":""},{"$f":"IF(DataLog!$C774=\"Log value\",DataLog!AA774,\"\")","v":""},{"$f":"IF(DataLog!$C774=\"Log value\",DataLog!AB774,\"\")","v":""},{"$f":"IF(DataLog!$C774=\"Log value\",DataLog!AC774,\"\")","v":""},{"$f":"IF(DataLog!$C774=\"Log value\",DataLog!AD774,\"\")","v":""},{"$f":"IF(DataLog!$C774=\"Log value\",DataLog!AE774,\"\")","v":""},{"$f":"IF(DataLog!$C774=\"Log value\",DataLog!AF774,\"\")","v":""},{"$f":"IF(DataLog!$C774=\"Log value\",DataLog!AG774,\"\")","v":""},{"$f":"IF(DataLog!$C774=\"Log value\",DataLog!AH774,\"\")","v":""},{"$f":"IF(DataLog!$C774=\"Log value\",DataLog!AI774,\"\")","v":""},{"$f":"IF(DataLog!$C774=\"Log value\",DataLog!AJ774,\"\")","v":""},{"$f":"IF(DataLog!$C774=\"Log value\",DataLog!AK774,\"\")","v":""},{"$f":"IF(DataLog!$C774=\"Log value\",DataLog!AL774,\"\")","v":""},{"$f":"IF(DataLog!$C774=\"Log value\",DataLog!AM774,\"\")","v":""}]
[null,null,null,null,null,null,{"$f":"IF(DataLog!$C775=\"Log value\",DataLog!D775&\"_\"&TEXT(DataLog!B775,\"åååå-mm-dd\"),\"\")","v":""},{"$f":"IF(DataLog!$C775=\"Log value\",DataLog!E775,\"\")","v":""},{"$f":"IF(DataLog!$C775=\"Log value\",DataLog!F775,\"\")","v":""},{"$f":"IF(DataLog!$C775=\"Log value\",DataLog!G775,\"\")","v":""},{"$f":"IF(DataLog!$C775=\"Log value\",DataLog!H775,\"\")","v":""},{"$f":"IF(DataLog!$C775=\"Log value\",DataLog!I775,\"\")","v":""},{"$f":"IF(DataLog!$C775=\"Log value\",DataLog!J775,\"\")","v":""},{"$f":"IF(DataLog!$C775=\"Log value\",DataLog!K775,\"\")","v":""},{"$f":"IF(DataLog!$C775=\"Log value\",DataLog!L775,\"\")","v":""},{"$f":"IF(DataLog!$C775=\"Log value\",DataLog!M775,\"\")","v":""},{"$f":"IF(DataLog!$C775=\"Log value\",DataLog!N775,\"\")","v":""},{"$f":"IF(DataLog!$C775=\"Log value\",DataLog!O775,\"\")","v":""},{"$f":"IF(DataLog!$C775=\"Log value\",DataLog!P775,\"\")","v":""},{"$f":"IF(DataLog!$C775=\"Log value\",DataLog!Q775,\"\")","v":""},{"$f":"IF(DataLog!$C775=\"Log value\",DataLog!R775,\"\")","v":""},{"$f":"IF(DataLog!$C775=\"Log value\",DataLog!S775,\"\")","v":""},{"$f":"IF(DataLog!$C775=\"Log value\",DataLog!T775,\"\")","v":""},{"$f":"IF(DataLog!$C775=\"Log value\",DataLog!U775,\"\")","v":""},{"$f":"IF(DataLog!$C775=\"Log value\",DataLog!V775,\"\")","v":""},{"$f":"IF(DataLog!$C775=\"Log value\",DataLog!W775,\"\")","v":""},{"$f":"IF(DataLog!$C775=\"Log value\",DataLog!X775,\"\")","v":""},{"$f":"IF(DataLog!$C775=\"Log value\",DataLog!Y775,\"\")","v":""},{"$f":"IF(DataLog!$C775=\"Log value\",DataLog!Z775,\"\")","v":""},{"$f":"IF(DataLog!$C775=\"Log value\",DataLog!AA775,\"\")","v":""},{"$f":"IF(DataLog!$C775=\"Log value\",DataLog!AB775,\"\")","v":""},{"$f":"IF(DataLog!$C775=\"Log value\",DataLog!AC775,\"\")","v":""},{"$f":"IF(DataLog!$C775=\"Log value\",DataLog!AD775,\"\")","v":""},{"$f":"IF(DataLog!$C775=\"Log value\",DataLog!AE775,\"\")","v":""},{"$f":"IF(DataLog!$C775=\"Log value\",DataLog!AF775,\"\")","v":""},{"$f":"IF(DataLog!$C775=\"Log value\",DataLog!AG775,\"\")","v":""},{"$f":"IF(DataLog!$C775=\"Log value\",DataLog!AH775,\"\")","v":""},{"$f":"IF(DataLog!$C775=\"Log value\",DataLog!AI775,\"\")","v":""},{"$f":"IF(DataLog!$C775=\"Log value\",DataLog!AJ775,\"\")","v":""},{"$f":"IF(DataLog!$C775=\"Log value\",DataLog!AK775,\"\")","v":""},{"$f":"IF(DataLog!$C775=\"Log value\",DataLog!AL775,\"\")","v":""},{"$f":"IF(DataLog!$C775=\"Log value\",DataLog!AM775,\"\")","v":""}]
[null,null,null,null,null,null,{"$f":"IF(DataLog!$C776=\"Log value\",DataLog!D776&\"_\"&TEXT(DataLog!B776,\"åååå-mm-dd\"),\"\")","v":""},{"$f":"IF(DataLog!$C776=\"Log value\",DataLog!E776,\"\")","v":""},{"$f":"IF(DataLog!$C776=\"Log value\",DataLog!F776,\"\")","v":""},{"$f":"IF(DataLog!$C776=\"Log value\",DataLog!G776,\"\")","v":""},{"$f":"IF(DataLog!$C776=\"Log value\",DataLog!H776,\"\")","v":""},{"$f":"IF(DataLog!$C776=\"Log value\",DataLog!I776,\"\")","v":""},{"$f":"IF(DataLog!$C776=\"Log value\",DataLog!J776,\"\")","v":""},{"$f":"IF(DataLog!$C776=\"Log value\",DataLog!K776,\"\")","v":""},{"$f":"IF(DataLog!$C776=\"Log value\",DataLog!L776,\"\")","v":""},{"$f":"IF(DataLog!$C776=\"Log value\",DataLog!M776,\"\")","v":""},{"$f":"IF(DataLog!$C776=\"Log value\",DataLog!N776,\"\")","v":""},{"$f":"IF(DataLog!$C776=\"Log value\",DataLog!O776,\"\")","v":""},{"$f":"IF(DataLog!$C776=\"Log value\",DataLog!P776,\"\")","v":""},{"$f":"IF(DataLog!$C776=\"Log value\",DataLog!Q776,\"\")","v":""},{"$f":"IF(DataLog!$C776=\"Log value\",DataLog!R776,\"\")","v":""},{"$f":"IF(DataLog!$C776=\"Log value\",DataLog!S776,\"\")","v":""},{"$f":"IF(DataLog!$C776=\"Log value\",DataLog!T776,\"\")","v":""},{"$f":"IF(DataLog!$C776=\"Log value\",DataLog!U776,\"\")","v":""},{"$f":"IF(DataLog!$C776=\"Log value\",DataLog!V776,\"\")","v":""},{"$f":"IF(DataLog!$C776=\"Log value\",DataLog!W776,\"\")","v":""},{"$f":"IF(DataLog!$C776=\"Log value\",DataLog!X776,\"\")","v":""},{"$f":"IF(DataLog!$C776=\"Log value\",DataLog!Y776,\"\")","v":""},{"$f":"IF(DataLog!$C776=\"Log value\",DataLog!Z776,\"\")","v":""},{"$f":"IF(DataLog!$C776=\"Log value\",DataLog!AA776,\"\")","v":""},{"$f":"IF(DataLog!$C776=\"Log value\",DataLog!AB776,\"\")","v":""},{"$f":"IF(DataLog!$C776=\"Log value\",DataLog!AC776,\"\")","v":""},{"$f":"IF(DataLog!$C776=\"Log value\",DataLog!AD776,\"\")","v":""},{"$f":"IF(DataLog!$C776=\"Log value\",DataLog!AE776,\"\")","v":""},{"$f":"IF(DataLog!$C776=\"Log value\",DataLog!AF776,\"\")","v":""},{"$f":"IF(DataLog!$C776=\"Log value\",DataLog!AG776,\"\")","v":""},{"$f":"IF(DataLog!$C776=\"Log value\",DataLog!AH776,\"\")","v":""},{"$f":"IF(DataLog!$C776=\"Log value\",DataLog!AI776,\"\")","v":""},{"$f":"IF(DataLog!$C776=\"Log value\",DataLog!AJ776,\"\")","v":""},{"$f":"IF(DataLog!$C776=\"Log value\",DataLog!AK776,\"\")","v":""},{"$f":"IF(DataLog!$C776=\"Log value\",DataLog!AL776,\"\")","v":""},{"$f":"IF(DataLog!$C776=\"Log value\",DataLog!AM776,\"\")","v":""}]
[null,null,null,null,null,null,{"$f":"IF(DataLog!$C777=\"Log value\",DataLog!D777&\"_\"&TEXT(DataLog!B777,\"åååå-mm-dd\"),\"\")","v":""},{"$f":"IF(DataLog!$C777=\"Log value\",DataLog!E777,\"\")","v":""},{"$f":"IF(DataLog!$C777=\"Log value\",DataLog!F777,\"\")","v":""},{"$f":"IF(DataLog!$C777=\"Log value\",DataLog!G777,\"\")","v":""},{"$f":"IF(DataLog!$C777=\"Log value\",DataLog!H777,\"\")","v":""},{"$f":"IF(DataLog!$C777=\"Log value\",DataLog!I777,\"\")","v":""},{"$f":"IF(DataLog!$C777=\"Log value\",DataLog!J777,\"\")","v":""},{"$f":"IF(DataLog!$C777=\"Log value\",DataLog!K777,\"\")","v":""},{"$f":"IF(DataLog!$C777=\"Log value\",DataLog!L777,\"\")","v":""},{"$f":"IF(DataLog!$C777=\"Log value\",DataLog!M777,\"\")","v":""},{"$f":"IF(DataLog!$C777=\"Log value\",DataLog!N777,\"\")","v":""},{"$f":"IF(DataLog!$C777=\"Log value\",DataLog!O777,\"\")","v":""},{"$f":"IF(DataLog!$C777=\"Log value\",DataLog!P777,\"\")","v":""},{"$f":"IF(DataLog!$C777=\"Log value\",DataLog!Q777,\"\")","v":""},{"$f":"IF(DataLog!$C777=\"Log value\",DataLog!R777,\"\")","v":""},{"$f":"IF(DataLog!$C777=\"Log value\",DataLog!S777,\"\")","v":""},{"$f":"IF(DataLog!$C777=\"Log value\",DataLog!T777,\"\")","v":""},{"$f":"IF(DataLog!$C777=\"Log value\",DataLog!U777,\"\")","v":""},{"$f":"IF(DataLog!$C777=\"Log value\",DataLog!V777,\"\")","v":""},{"$f":"IF(DataLog!$C777=\"Log value\",DataLog!W777,\"\")","v":""},{"$f":"IF(DataLog!$C777=\"Log value\",DataLog!X777,\"\")","v":""},{"$f":"IF(DataLog!$C777=\"Log value\",DataLog!Y777,\"\")","v":""},{"$f":"IF(DataLog!$C777=\"Log value\",DataLog!Z777,\"\")","v":""},{"$f":"IF(DataLog!$C777=\"Log value\",DataLog!AA777,\"\")","v":""},{"$f":"IF(DataLog!$C777=\"Log value\",DataLog!AB777,\"\")","v":""},{"$f":"IF(DataLog!$C777=\"Log value\",DataLog!AC777,\"\")","v":""},{"$f":"IF(DataLog!$C777=\"Log value\",DataLog!AD777,\"\")","v":""},{"$f":"IF(DataLog!$C777=\"Log value\",DataLog!AE777,\"\")","v":""},{"$f":"IF(DataLog!$C777=\"Log value\",DataLog!AF777,\"\")","v":""},{"$f":"IF(DataLog!$C777=\"Log value\",DataLog!AG777,\"\")","v":""},{"$f":"IF(DataLog!$C777=\"Log value\",DataLog!AH777,\"\")","v":""},{"$f":"IF(DataLog!$C777=\"Log value\",DataLog!AI777,\"\")","v":""},{"$f":"IF(DataLog!$C777=\"Log value\",DataLog!AJ777,\"\")","v":""},{"$f":"IF(DataLog!$C777=\"Log value\",DataLog!AK777,\"\")","v":""},{"$f":"IF(DataLog!$C777=\"Log value\",DataLog!AL777,\"\")","v":""},{"$f":"IF(DataLog!$C777=\"Log value\",DataLog!AM777,\"\")","v":""}]
[null,null,null,null,null,null,{"$f":"IF(DataLog!$C778=\"Log value\",DataLog!D778&\"_\"&TEXT(DataLog!B778,\"åååå-mm-dd\"),\"\")","v":""},{"$f":"IF(DataLog!$C778=\"Log value\",DataLog!E778,\"\")","v":""},{"$f":"IF(DataLog!$C778=\"Log value\",DataLog!F778,\"\")","v":""},{"$f":"IF(DataLog!$C778=\"Log value\",DataLog!G778,\"\")","v":""},{"$f":"IF(DataLog!$C778=\"Log value\",DataLog!H778,\"\")","v":""},{"$f":"IF(DataLog!$C778=\"Log value\",DataLog!I778,\"\")","v":""},{"$f":"IF(DataLog!$C778=\"Log value\",DataLog!J778,\"\")","v":""},{"$f":"IF(DataLog!$C778=\"Log value\",DataLog!K778,\"\")","v":""},{"$f":"IF(DataLog!$C778=\"Log value\",DataLog!L778,\"\")","v":""},{"$f":"IF(DataLog!$C778=\"Log value\",DataLog!M778,\"\")","v":""},{"$f":"IF(DataLog!$C778=\"Log value\",DataLog!N778,\"\")","v":""},{"$f":"IF(DataLog!$C778=\"Log value\",DataLog!O778,\"\")","v":""},{"$f":"IF(DataLog!$C778=\"Log value\",DataLog!P778,\"\")","v":""},{"$f":"IF(DataLog!$C778=\"Log value\",DataLog!Q778,\"\")","v":""},{"$f":"IF(DataLog!$C778=\"Log value\",DataLog!R778,\"\")","v":""},{"$f":"IF(DataLog!$C778=\"Log value\",DataLog!S778,\"\")","v":""},{"$f":"IF(DataLog!$C778=\"Log value\",DataLog!T778,\"\")","v":""},{"$f":"IF(DataLog!$C778=\"Log value\",DataLog!U778,\"\")","v":""},{"$f":"IF(DataLog!$C778=\"Log value\",DataLog!V778,\"\")","v":""},{"$f":"IF(DataLog!$C778=\"Log value\",DataLog!W778,\"\")","v":""},{"$f":"IF(DataLog!$C778=\"Log value\",DataLog!X778,\"\")","v":""},{"$f":"IF(DataLog!$C778=\"Log value\",DataLog!Y778,\"\")","v":""},{"$f":"IF(DataLog!$C778=\"Log value\",DataLog!Z778,\"\")","v":""},{"$f":"IF(DataLog!$C778=\"Log value\",DataLog!AA778,\"\")","v":""},{"$f":"IF(DataLog!$C778=\"Log value\",DataLog!AB778,\"\")","v":""},{"$f":"IF(DataLog!$C778=\"Log value\",DataLog!AC778,\"\")","v":""},{"$f":"IF(DataLog!$C778=\"Log value\",DataLog!AD778,\"\")","v":""},{"$f":"IF(DataLog!$C778=\"Log value\",DataLog!AE778,\"\")","v":""},{"$f":"IF(DataLog!$C778=\"Log value\",DataLog!AF778,\"\")","v":""},{"$f":"IF(DataLog!$C778=\"Log value\",DataLog!AG778,\"\")","v":""},{"$f":"IF(DataLog!$C778=\"Log value\",DataLog!AH778,\"\")","v":""},{"$f":"IF(DataLog!$C778=\"Log value\",DataLog!AI778,\"\")","v":""},{"$f":"IF(DataLog!$C778=\"Log value\",DataLog!AJ778,\"\")","v":""},{"$f":"IF(DataLog!$C778=\"Log value\",DataLog!AK778,\"\")","v":""},{"$f":"IF(DataLog!$C778=\"Log value\",DataLog!AL778,\"\")","v":""},{"$f":"IF(DataLog!$C778=\"Log value\",DataLog!AM778,\"\")","v":""}]
[null,null,null,null,null,null,{"$f":"IF(DataLog!$C779=\"Log value\",DataLog!D779&\"_\"&TEXT(DataLog!B779,\"åååå-mm-dd\"),\"\")","v":""},{"$f":"IF(DataLog!$C779=\"Log value\",DataLog!E779,\"\")","v":""},{"$f":"IF(DataLog!$C779=\"Log value\",DataLog!F779,\"\")","v":""},{"$f":"IF(DataLog!$C779=\"Log value\",DataLog!G779,\"\")","v":""},{"$f":"IF(DataLog!$C779=\"Log value\",DataLog!H779,\"\")","v":""},{"$f":"IF(DataLog!$C779=\"Log value\",DataLog!I779,\"\")","v":""},{"$f":"IF(DataLog!$C779=\"Log value\",DataLog!J779,\"\")","v":""},{"$f":"IF(DataLog!$C779=\"Log value\",DataLog!K779,\"\")","v":""},{"$f":"IF(DataLog!$C779=\"Log value\",DataLog!L779,\"\")","v":""},{"$f":"IF(DataLog!$C779=\"Log value\",DataLog!M779,\"\")","v":""},{"$f":"IF(DataLog!$C779=\"Log value\",DataLog!N779,\"\")","v":""},{"$f":"IF(DataLog!$C779=\"Log value\",DataLog!O779,\"\")","v":""},{"$f":"IF(DataLog!$C779=\"Log value\",DataLog!P779,\"\")","v":""},{"$f":"IF(DataLog!$C779=\"Log value\",DataLog!Q779,\"\")","v":""},{"$f":"IF(DataLog!$C779=\"Log value\",DataLog!R779,\"\")","v":""},{"$f":"IF(DataLog!$C779=\"Log value\",DataLog!S779,\"\")","v":""},{"$f":"IF(DataLog!$C779=\"Log value\",DataLog!T779,\"\")","v":""},{"$f":"IF(DataLog!$C779=\"Log value\",DataLog!U779,\"\")","v":""},{"$f":"IF(DataLog!$C779=\"Log value\",DataLog!V779,\"\")","v":""},{"$f":"IF(DataLog!$C779=\"Log value\",DataLog!W779,\"\")","v":""},{"$f":"IF(DataLog!$C779=\"Log value\",DataLog!X779,\"\")","v":""},{"$f":"IF(DataLog!$C779=\"Log value\",DataLog!Y779,\"\")","v":""},{"$f":"IF(DataLog!$C779=\"Log value\",DataLog!Z779,\"\")","v":""},{"$f":"IF(DataLog!$C779=\"Log value\",DataLog!AA779,\"\")","v":""},{"$f":"IF(DataLog!$C779=\"Log value\",DataLog!AB779,\"\")","v":""},{"$f":"IF(DataLog!$C779=\"Log value\",DataLog!AC779,\"\")","v":""},{"$f":"IF(DataLog!$C779=\"Log value\",DataLog!AD779,\"\")","v":""},{"$f":"IF(DataLog!$C779=\"Log value\",DataLog!AE779,\"\")","v":""},{"$f":"IF(DataLog!$C779=\"Log value\",DataLog!AF779,\"\")","v":""},{"$f":"IF(DataLog!$C779=\"Log value\",DataLog!AG779,\"\")","v":""},{"$f":"IF(DataLog!$C779=\"Log value\",DataLog!AH779,\"\")","v":""},{"$f":"IF(DataLog!$C779=\"Log value\",DataLog!AI779,\"\")","v":""},{"$f":"IF(DataLog!$C779=\"Log value\",DataLog!AJ779,\"\")","v":""},{"$f":"IF(DataLog!$C779=\"Log value\",DataLog!AK779,\"\")","v":""},{"$f":"IF(DataLog!$C779=\"Log value\",DataLog!AL779,\"\")","v":""},{"$f":"IF(DataLog!$C779=\"Log value\",DataLog!AM779,\"\")","v":""}]
[null,null,null,null,null,null,{"$f":"IF(DataLog!$C780=\"Log value\",DataLog!D780&\"_\"&TEXT(DataLog!B780,\"åååå-mm-dd\"),\"\")","v":""},{"$f":"IF(DataLog!$C780=\"Log value\",DataLog!E780,\"\")","v":""},{"$f":"IF(DataLog!$C780=\"Log value\",DataLog!F780,\"\")","v":""},{"$f":"IF(DataLog!$C780=\"Log value\",DataLog!G780,\"\")","v":""},{"$f":"IF(DataLog!$C780=\"Log value\",DataLog!H780,\"\")","v":""},{"$f":"IF(DataLog!$C780=\"Log value\",DataLog!I780,\"\")","v":""},{"$f":"IF(DataLog!$C780=\"Log value\",DataLog!J780,\"\")","v":""},{"$f":"IF(DataLog!$C780=\"Log value\",DataLog!K780,\"\")","v":""},{"$f":"IF(DataLog!$C780=\"Log value\",DataLog!L780,\"\")","v":""},{"$f":"IF(DataLog!$C780=\"Log value\",DataLog!M780,\"\")","v":""},{"$f":"IF(DataLog!$C780=\"Log value\",DataLog!N780,\"\")","v":""},{"$f":"IF(DataLog!$C780=\"Log value\",DataLog!O780,\"\")","v":""},{"$f":"IF(DataLog!$C780=\"Log value\",DataLog!P780,\"\")","v":""},{"$f":"IF(DataLog!$C780=\"Log value\",DataLog!Q780,\"\")","v":""},{"$f":"IF(DataLog!$C780=\"Log value\",DataLog!R780,\"\")","v":""},{"$f":"IF(DataLog!$C780=\"Log value\",DataLog!S780,\"\")","v":""},{"$f":"IF(DataLog!$C780=\"Log value\",DataLog!T780,\"\")","v":""},{"$f":"IF(DataLog!$C780=\"Log value\",DataLog!U780,\"\")","v":""},{"$f":"IF(DataLog!$C780=\"Log value\",DataLog!V780,\"\")","v":""},{"$f":"IF(DataLog!$C780=\"Log value\",DataLog!W780,\"\")","v":""},{"$f":"IF(DataLog!$C780=\"Log value\",DataLog!X780,\"\")","v":""},{"$f":"IF(DataLog!$C780=\"Log value\",DataLog!Y780,\"\")","v":""},{"$f":"IF(DataLog!$C780=\"Log value\",DataLog!Z780,\"\")","v":""},{"$f":"IF(DataLog!$C780=\"Log value\",DataLog!AA780,\"\")","v":""},{"$f":"IF(DataLog!$C780=\"Log value\",DataLog!AB780,\"\")","v":""},{"$f":"IF(DataLog!$C780=\"Log value\",DataLog!AC780,\"\")","v":""},{"$f":"IF(DataLog!$C780=\"Log value\",DataLog!AD780,\"\")","v":""},{"$f":"IF(DataLog!$C780=\"Log value\",DataLog!AE780,\"\")","v":""},{"$f":"IF(DataLog!$C780=\"Log value\",DataLog!AF780,\"\")","v":""},{"$f":"IF(DataLog!$C780=\"Log value\",DataLog!AG780,\"\")","v":""},{"$f":"IF(DataLog!$C780=\"Log value\",DataLog!AH780,\"\")","v":""},{"$f":"IF(DataLog!$C780=\"Log value\",DataLog!AI780,\"\")","v":""},{"$f":"IF(DataLog!$C780=\"Log value\",DataLog!AJ780,\"\")","v":""},{"$f":"IF(DataLog!$C780=\"Log value\",DataLog!AK780,\"\")","v":""},{"$f":"IF(DataLog!$C780=\"Log value\",DataLog!AL780,\"\")","v":""},{"$f":"IF(DataLog!$C780=\"Log value\",DataLog!AM780,\"\")","v":""}]
[null,null,null,null,null,null,{"$f":"IF(DataLog!$C781=\"Log value\",DataLog!D781&\"_\"&TEXT(DataLog!B781,\"åååå-mm-dd\"),\"\")","v":""},{"$f":"IF(DataLog!$C781=\"Log value\",DataLog!E781,\"\")","v":""},{"$f":"IF(DataLog!$C781=\"Log value\",DataLog!F781,\"\")","v":""},{"$f":"IF(DataLog!$C781=\"Log value\",DataLog!G781,\"\")","v":""},{"$f":"IF(DataLog!$C781=\"Log value\",DataLog!H781,\"\")","v":""},{"$f":"IF(DataLog!$C781=\"Log value\",DataLog!I781,\"\")","v":""},{"$f":"IF(DataLog!$C781=\"Log value\",DataLog!J781,\"\")","v":""},{"$f":"IF(DataLog!$C781=\"Log value\",DataLog!K781,\"\")","v":""},{"$f":"IF(DataLog!$C781=\"Log value\",DataLog!L781,\"\")","v":""},{"$f":"IF(DataLog!$C781=\"Log value\",DataLog!M781,\"\")","v":""},{"$f":"IF(DataLog!$C781=\"Log value\",DataLog!N781,\"\")","v":""},{"$f":"IF(DataLog!$C781=\"Log value\",DataLog!O781,\"\")","v":""},{"$f":"IF(DataLog!$C781=\"Log value\",DataLog!P781,\"\")","v":""},{"$f":"IF(DataLog!$C781=\"Log value\",DataLog!Q781,\"\")","v":""},{"$f":"IF(DataLog!$C781=\"Log value\",DataLog!R781,\"\")","v":""},{"$f":"IF(DataLog!$C781=\"Log value\",DataLog!S781,\"\")","v":""},{"$f":"IF(DataLog!$C781=\"Log value\",DataLog!T781,\"\")","v":""},{"$f":"IF(DataLog!$C781=\"Log value\",DataLog!U781,\"\")","v":""},{"$f":"IF(DataLog!$C781=\"Log value\",DataLog!V781,\"\")","v":""},{"$f":"IF(DataLog!$C781=\"Log value\",DataLog!W781,\"\")","v":""},{"$f":"IF(DataLog!$C781=\"Log value\",DataLog!X781,\"\")","v":""},{"$f":"IF(DataLog!$C781=\"Log value\",DataLog!Y781,\"\")","v":""},{"$f":"IF(DataLog!$C781=\"Log value\",DataLog!Z781,\"\")","v":""},{"$f":"IF(DataLog!$C781=\"Log value\",DataLog!AA781,\"\")","v":""},{"$f":"IF(DataLog!$C781=\"Log value\",DataLog!AB781,\"\")","v":""},{"$f":"IF(DataLog!$C781=\"Log value\",DataLog!AC781,\"\")","v":""},{"$f":"IF(DataLog!$C781=\"Log value\",DataLog!AD781,\"\")","v":""},{"$f":"IF(DataLog!$C781=\"Log value\",DataLog!AE781,\"\")","v":""},{"$f":"IF(DataLog!$C781=\"Log value\",DataLog!AF781,\"\")","v":""},{"$f":"IF(DataLog!$C781=\"Log value\",DataLog!AG781,\"\")","v":""},{"$f":"IF(DataLog!$C781=\"Log value\",DataLog!AH781,\"\")","v":""},{"$f":"IF(DataLog!$C781=\"Log value\",DataLog!AI781,\"\")","v":""},{"$f":"IF(DataLog!$C781=\"Log value\",DataLog!AJ781,\"\")","v":""},{"$f":"IF(DataLog!$C781=\"Log value\",DataLog!AK781,\"\")","v":""},{"$f":"IF(DataLog!$C781=\"Log value\",DataLog!AL781,\"\")","v":""},{"$f":"IF(DataLog!$C781=\"Log value\",DataLog!AM781,\"\")","v":""}]
[null,null,null,null,null,null,{"$f":"IF(DataLog!$C782=\"Log value\",DataLog!D782&\"_\"&TEXT(DataLog!B782,\"åååå-mm-dd\"),\"\")","v":""},{"$f":"IF(DataLog!$C782=\"Log value\",DataLog!E782,\"\")","v":""},{"$f":"IF(DataLog!$C782=\"Log value\",DataLog!F782,\"\")","v":""},{"$f":"IF(DataLog!$C782=\"Log value\",DataLog!G782,\"\")","v":""},{"$f":"IF(DataLog!$C782=\"Log value\",DataLog!H782,\"\")","v":""},{"$f":"IF(DataLog!$C782=\"Log value\",DataLog!I782,\"\")","v":""},{"$f":"IF(DataLog!$C782=\"Log value\",DataLog!J782,\"\")","v":""},{"$f":"IF(DataLog!$C782=\"Log value\",DataLog!K782,\"\")","v":""},{"$f":"IF(DataLog!$C782=\"Log value\",DataLog!L782,\"\")","v":""},{"$f":"IF(DataLog!$C782=\"Log value\",DataLog!M782,\"\")","v":""},{"$f":"IF(DataLog!$C782=\"Log value\",DataLog!N782,\"\")","v":""},{"$f":"IF(DataLog!$C782=\"Log value\",DataLog!O782,\"\")","v":""},{"$f":"IF(DataLog!$C782=\"Log value\",DataLog!P782,\"\")","v":""},{"$f":"IF(DataLog!$C782=\"Log value\",DataLog!Q782,\"\")","v":""},{"$f":"IF(DataLog!$C782=\"Log value\",DataLog!R782,\"\")","v":""},{"$f":"IF(DataLog!$C782=\"Log value\",DataLog!S782,\"\")","v":""},{"$f":"IF(DataLog!$C782=\"Log value\",DataLog!T782,\"\")","v":""},{"$f":"IF(DataLog!$C782=\"Log value\",DataLog!U782,\"\")","v":""},{"$f":"IF(DataLog!$C782=\"Log value\",DataLog!V782,\"\")","v":""},{"$f":"IF(DataLog!$C782=\"Log value\",DataLog!W782,\"\")","v":""},{"$f":"IF(DataLog!$C782=\"Log value\",DataLog!X782,\"\")","v":""},{"$f":"IF(DataLog!$C782=\"Log value\",DataLog!Y782,\"\")","v":""},{"$f":"IF(DataLog!$C782=\"Log value\",DataLog!Z782,\"\")","v":""},{"$f":"IF(DataLog!$C782=\"Log value\",DataLog!AA782,\"\")","v":""},{"$f":"IF(DataLog!$C782=\"Log value\",DataLog!AB782,\"\")","v":""},{"$f":"IF(DataLog!$C782=\"Log value\",DataLog!AC782,\"\")","v":""},{"$f":"IF(DataLog!$C782=\"Log value\",DataLog!AD782,\"\")","v":""},{"$f":"IF(DataLog!$C782=\"Log value\",DataLog!AE782,\"\")","v":""},{"$f":"IF(DataLog!$C782=\"Log value\",DataLog!AF782,\"\")","v":""},{"$f":"IF(DataLog!$C782=\"Log value\",DataLog!AG782,\"\")","v":""},{"$f":"IF(DataLog!$C782=\"Log value\",DataLog!AH782,\"\")","v":""},{"$f":"IF(DataLog!$C782=\"Log value\",DataLog!AI782,\"\")","v":""},{"$f":"IF(DataLog!$C782=\"Log value\",DataLog!AJ782,\"\")","v":""},{"$f":"IF(DataLog!$C782=\"Log value\",DataLog!AK782,\"\")","v":""},{"$f":"IF(DataLog!$C782=\"Log value\",DataLog!AL782,\"\")","v":""},{"$f":"IF(DataLog!$C782=\"Log value\",DataLog!AM782,\"\")","v":""}]
[null,null,null,null,null,null,{"$f":"IF(DataLog!$C783=\"Log value\",DataLog!D783&\"_\"&TEXT(DataLog!B783,\"åååå-mm-dd\"),\"\")","v":""},{"$f":"IF(DataLog!$C783=\"Log value\",DataLog!E783,\"\")","v":""},{"$f":"IF(DataLog!$C783=\"Log value\",DataLog!F783,\"\")","v":""},{"$f":"IF(DataLog!$C783=\"Log value\",DataLog!G783,\"\")","v":""},{"$f":"IF(DataLog!$C783=\"Log value\",DataLog!H783,\"\")","v":""},{"$f":"IF(DataLog!$C783=\"Log value\",DataLog!I783,\"\")","v":""},{"$f":"IF(DataLog!$C783=\"Log value\",DataLog!J783,\"\")","v":""},{"$f":"IF(DataLog!$C783=\"Log value\",DataLog!K783,\"\")","v":""},{"$f":"IF(DataLog!$C783=\"Log value\",DataLog!L783,\"\")","v":""},{"$f":"IF(DataLog!$C783=\"Log value\",DataLog!M783,\"\")","v":""},{"$f":"IF(DataLog!$C783=\"Log value\",DataLog!N783,\"\")","v":""},{"$f":"IF(DataLog!$C783=\"Log value\",DataLog!O783,\"\")","v":""},{"$f":"IF(DataLog!$C783=\"Log value\",DataLog!P783,\"\")","v":""},{"$f":"IF(DataLog!$C783=\"Log value\",DataLog!Q783,\"\")","v":""},{"$f":"IF(DataLog!$C783=\"Log value\",DataLog!R783,\"\")","v":""},{"$f":"IF(DataLog!$C783=\"Log value\",DataLog!S783,\"\")","v":""},{"$f":"IF(DataLog!$C783=\"Log value\",DataLog!T783,\"\")","v":""},{"$f":"IF(DataLog!$C783=\"Log value\",DataLog!U783,\"\")","v":""},{"$f":"IF(DataLog!$C783=\"Log value\",DataLog!V783,\"\")","v":""},{"$f":"IF(DataLog!$C783=\"Log value\",DataLog!W783,\"\")","v":""},{"$f":"IF(DataLog!$C783=\"Log value\",DataLog!X783,\"\")","v":""},{"$f":"IF(DataLog!$C783=\"Log value\",DataLog!Y783,\"\")","v":""},{"$f":"IF(DataLog!$C783=\"Log value\",DataLog!Z783,\"\")","v":""},{"$f":"IF(DataLog!$C783=\"Log value\",DataLog!AA783,\"\")","v":""},{"$f":"IF(DataLog!$C783=\"Log value\",DataLog!AB783,\"\")","v":""},{"$f":"IF(DataLog!$C783=\"Log value\",DataLog!AC783,\"\")","v":""},{"$f":"IF(DataLog!$C783=\"Log value\",DataLog!AD783,\"\")","v":""},{"$f":"IF(DataLog!$C783=\"Log value\",DataLog!AE783,\"\")","v":""},{"$f":"IF(DataLog!$C783=\"Log value\",DataLog!AF783,\"\")","v":""},{"$f":"IF(DataLog!$C783=\"Log value\",DataLog!AG783,\"\")","v":""},{"$f":"IF(DataLog!$C783=\"Log value\",DataLog!AH783,\"\")","v":""},{"$f":"IF(DataLog!$C783=\"Log value\",DataLog!AI783,\"\")","v":""},{"$f":"IF(DataLog!$C783=\"Log value\",DataLog!AJ783,\"\")","v":""},{"$f":"IF(DataLog!$C783=\"Log value\",DataLog!AK783,\"\")","v":""},{"$f":"IF(DataLog!$C783=\"Log value\",DataLog!AL783,\"\")","v":""},{"$f":"IF(DataLog!$C783=\"Log value\",DataLog!AM783,\"\")","v":""}]
[null,null,null,null,null,null,{"$f":"IF(DataLog!$C784=\"Log value\",DataLog!D784&\"_\"&TEXT(DataLog!B784,\"åååå-mm-dd\"),\"\")","v":""},{"$f":"IF(DataLog!$C784=\"Log value\",DataLog!E784,\"\")","v":""},{"$f":"IF(DataLog!$C784=\"Log value\",DataLog!F784,\"\")","v":""},{"$f":"IF(DataLog!$C784=\"Log value\",DataLog!G784,\"\")","v":""},{"$f":"IF(DataLog!$C784=\"Log value\",DataLog!H784,\"\")","v":""},{"$f":"IF(DataLog!$C784=\"Log value\",DataLog!I784,\"\")","v":""},{"$f":"IF(DataLog!$C784=\"Log value\",DataLog!J784,\"\")","v":""},{"$f":"IF(DataLog!$C784=\"Log value\",DataLog!K784,\"\")","v":""},{"$f":"IF(DataLog!$C784=\"Log value\",DataLog!L784,\"\")","v":""},{"$f":"IF(DataLog!$C784=\"Log value\",DataLog!M784,\"\")","v":""},{"$f":"IF(DataLog!$C784=\"Log value\",DataLog!N784,\"\")","v":""},{"$f":"IF(DataLog!$C784=\"Log value\",DataLog!O784,\"\")","v":""},{"$f":"IF(DataLog!$C784=\"Log value\",DataLog!P784,\"\")","v":""},{"$f":"IF(DataLog!$C784=\"Log value\",DataLog!Q784,\"\")","v":""},{"$f":"IF(DataLog!$C784=\"Log value\",DataLog!R784,\"\")","v":""},{"$f":"IF(DataLog!$C784=\"Log value\",DataLog!S784,\"\")","v":""},{"$f":"IF(DataLog!$C784=\"Log value\",DataLog!T784,\"\")","v":""},{"$f":"IF(DataLog!$C784=\"Log value\",DataLog!U784,\"\")","v":""},{"$f":"IF(DataLog!$C784=\"Log value\",DataLog!V784,\"\")","v":""},{"$f":"IF(DataLog!$C784=\"Log value\",DataLog!W784,\"\")","v":""},{"$f":"IF(DataLog!$C784=\"Log value\",DataLog!X784,\"\")","v":""},{"$f":"IF(DataLog!$C784=\"Log value\",DataLog!Y784,\"\")","v":""},{"$f":"IF(DataLog!$C784=\"Log value\",DataLog!Z784,\"\")","v":""},{"$f":"IF(DataLog!$C784=\"Log value\",DataLog!AA784,\"\")","v":""},{"$f":"IF(DataLog!$C784=\"Log value\",DataLog!AB784,\"\")","v":""},{"$f":"IF(DataLog!$C784=\"Log value\",DataLog!AC784,\"\")","v":""},{"$f":"IF(DataLog!$C784=\"Log value\",DataLog!AD784,\"\")","v":""},{"$f":"IF(DataLog!$C784=\"Log value\",DataLog!AE784,\"\")","v":""},{"$f":"IF(DataLog!$C784=\"Log value\",DataLog!AF784,\"\")","v":""},{"$f":"IF(DataLog!$C784=\"Log value\",DataLog!AG784,\"\")","v":""},{"$f":"IF(DataLog!$C784=\"Log value\",DataLog!AH784,\"\")","v":""},{"$f":"IF(DataLog!$C784=\"Log value\",DataLog!AI784,\"\")","v":""},{"$f":"IF(DataLog!$C784=\"Log value\",DataLog!AJ784,\"\")","v":""},{"$f":"IF(DataLog!$C784=\"Log value\",DataLog!AK784,\"\")","v":""},{"$f":"IF(DataLog!$C784=\"Log value\",DataLog!AL784,\"\")","v":""},{"$f":"IF(DataLog!$C784=\"Log value\",DataLog!AM784,\"\")","v":""}]
[null,null,null,null,null,null,{"$f":"IF(DataLog!$C785=\"Log value\",DataLog!D785&\"_\"&TEXT(DataLog!B785,\"åååå-mm-dd\"),\"\")","v":""},{"$f":"IF(DataLog!$C785=\"Log value\",DataLog!E785,\"\")","v":""},{"$f":"IF(DataLog!$C785=\"Log value\",DataLog!F785,\"\")","v":""},{"$f":"IF(DataLog!$C785=\"Log value\",DataLog!G785,\"\")","v":""},{"$f":"IF(DataLog!$C785=\"Log value\",DataLog!H785,\"\")","v":""},{"$f":"IF(DataLog!$C785=\"Log value\",DataLog!I785,\"\")","v":""},{"$f":"IF(DataLog!$C785=\"Log value\",DataLog!J785,\"\")","v":""},{"$f":"IF(DataLog!$C785=\"Log value\",DataLog!K785,\"\")","v":""},{"$f":"IF(DataLog!$C785=\"Log value\",DataLog!L785,\"\")","v":""},{"$f":"IF(DataLog!$C785=\"Log value\",DataLog!M785,\"\")","v":""},{"$f":"IF(DataLog!$C785=\"Log value\",DataLog!N785,\"\")","v":""},{"$f":"IF(DataLog!$C785=\"Log value\",DataLog!O785,\"\")","v":""},{"$f":"IF(DataLog!$C785=\"Log value\",DataLog!P785,\"\")","v":""},{"$f":"IF(DataLog!$C785=\"Log value\",DataLog!Q785,\"\")","v":""},{"$f":"IF(DataLog!$C785=\"Log value\",DataLog!R785,\"\")","v":""},{"$f":"IF(DataLog!$C785=\"Log value\",DataLog!S785,\"\")","v":""},{"$f":"IF(DataLog!$C785=\"Log value\",DataLog!T785,\"\")","v":""},{"$f":"IF(DataLog!$C785=\"Log value\",DataLog!U785,\"\")","v":""},{"$f":"IF(DataLog!$C785=\"Log value\",DataLog!V785,\"\")","v":""},{"$f":"IF(DataLog!$C785=\"Log value\",DataLog!W785,\"\")","v":""},{"$f":"IF(DataLog!$C785=\"Log value\",DataLog!X785,\"\")","v":""},{"$f":"IF(DataLog!$C785=\"Log value\",DataLog!Y785,\"\")","v":""},{"$f":"IF(DataLog!$C785=\"Log value\",DataLog!Z785,\"\")","v":""},{"$f":"IF(DataLog!$C785=\"Log value\",DataLog!AA785,\"\")","v":""},{"$f":"IF(DataLog!$C785=\"Log value\",DataLog!AB785,\"\")","v":""},{"$f":"IF(DataLog!$C785=\"Log value\",DataLog!AC785,\"\")","v":""},{"$f":"IF(DataLog!$C785=\"Log value\",DataLog!AD785,\"\")","v":""},{"$f":"IF(DataLog!$C785=\"Log value\",DataLog!AE785,\"\")","v":""},{"$f":"IF(DataLog!$C785=\"Log value\",DataLog!AF785,\"\")","v":""},{"$f":"IF(DataLog!$C785=\"Log value\",DataLog!AG785,\"\")","v":""},{"$f":"IF(DataLog!$C785=\"Log value\",DataLog!AH785,\"\")","v":""},{"$f":"IF(DataLog!$C785=\"Log value\",DataLog!AI785,\"\")","v":""},{"$f":"IF(DataLog!$C785=\"Log value\",DataLog!AJ785,\"\")","v":""},{"$f":"IF(DataLog!$C785=\"Log value\",DataLog!AK785,\"\")","v":""},{"$f":"IF(DataLog!$C785=\"Log value\",DataLog!AL785,\"\")","v":""},{"$f":"IF(DataLog!$C785=\"Log value\",DataLog!AM785,\"\")","v":""}]
[null,null,null,null,null,null,{"$f":"IF(DataLog!$C786=\"Log value\",DataLog!D786&\"_\"&TEXT(DataLog!B786,\"åååå-mm-dd\"),\"\")","v":""},{"$f":"IF(DataLog!$C786=\"Log value\",DataLog!E786,\"\")","v":""},{"$f":"IF(DataLog!$C786=\"Log value\",DataLog!F786,\"\")","v":""},{"$f":"IF(DataLog!$C786=\"Log value\",DataLog!G786,\"\")","v":""},{"$f":"IF(DataLog!$C786=\"Log value\",DataLog!H786,\"\")","v":""},{"$f":"IF(DataLog!$C786=\"Log value\",DataLog!I786,\"\")","v":""},{"$f":"IF(DataLog!$C786=\"Log value\",DataLog!J786,\"\")","v":""},{"$f":"IF(DataLog!$C786=\"Log value\",DataLog!K786,\"\")","v":""},{"$f":"IF(DataLog!$C786=\"Log value\",DataLog!L786,\"\")","v":""},{"$f":"IF(DataLog!$C786=\"Log value\",DataLog!M786,\"\")","v":""},{"$f":"IF(DataLog!$C786=\"Log value\",DataLog!N786,\"\")","v":""},{"$f":"IF(DataLog!$C786=\"Log value\",DataLog!O786,\"\")","v":""},{"$f":"IF(DataLog!$C786=\"Log value\",DataLog!P786,\"\")","v":""},{"$f":"IF(DataLog!$C786=\"Log value\",DataLog!Q786,\"\")","v":""},{"$f":"IF(DataLog!$C786=\"Log value\",DataLog!R786,\"\")","v":""},{"$f":"IF(DataLog!$C786=\"Log value\",DataLog!S786,\"\")","v":""},{"$f":"IF(DataLog!$C786=\"Log value\",DataLog!T786,\"\")","v":""},{"$f":"IF(DataLog!$C786=\"Log value\",DataLog!U786,\"\")","v":""},{"$f":"IF(DataLog!$C786=\"Log value\",DataLog!V786,\"\")","v":""},{"$f":"IF(DataLog!$C786=\"Log value\",DataLog!W786,\"\")","v":""},{"$f":"IF(DataLog!$C786=\"Log value\",DataLog!X786,\"\")","v":""},{"$f":"IF(DataLog!$C786=\"Log value\",DataLog!Y786,\"\")","v":""},{"$f":"IF(DataLog!$C786=\"Log value\",DataLog!Z786,\"\")","v":""},{"$f":"IF(DataLog!$C786=\"Log value\",DataLog!AA786,\"\")","v":""},{"$f":"IF(DataLog!$C786=\"Log value\",DataLog!AB786,\"\")","v":""},{"$f":"IF(DataLog!$C786=\"Log value\",DataLog!AC786,\"\")","v":""},{"$f":"IF(DataLog!$C786=\"Log value\",DataLog!AD786,\"\")","v":""},{"$f":"IF(DataLog!$C786=\"Log value\",DataLog!AE786,\"\")","v":""},{"$f":"IF(DataLog!$C786=\"Log value\",DataLog!AF786,\"\")","v":""},{"$f":"IF(DataLog!$C786=\"Log value\",DataLog!AG786,\"\")","v":""},{"$f":"IF(DataLog!$C786=\"Log value\",DataLog!AH786,\"\")","v":""},{"$f":"IF(DataLog!$C786=\"Log value\",DataLog!AI786,\"\")","v":""},{"$f":"IF(DataLog!$C786=\"Log value\",DataLog!AJ786,\"\")","v":""},{"$f":"IF(DataLog!$C786=\"Log value\",DataLog!AK786,\"\")","v":""},{"$f":"IF(DataLog!$C786=\"Log value\",DataLog!AL786,\"\")","v":""},{"$f":"IF(DataLog!$C786=\"Log value\",DataLog!AM786,\"\")","v":""}]
[null,null,null,null,null,null,{"$f":"IF(DataLog!$C787=\"Log value\",DataLog!D787&\"_\"&TEXT(DataLog!B787,\"åååå-mm-dd\"),\"\")","v":""},{"$f":"IF(DataLog!$C787=\"Log value\",DataLog!E787,\"\")","v":""},{"$f":"IF(DataLog!$C787=\"Log value\",DataLog!F787,\"\")","v":""},{"$f":"IF(DataLog!$C787=\"Log value\",DataLog!G787,\"\")","v":""},{"$f":"IF(DataLog!$C787=\"Log value\",DataLog!H787,\"\")","v":""},{"$f":"IF(DataLog!$C787=\"Log value\",DataLog!I787,\"\")","v":""},{"$f":"IF(DataLog!$C787=\"Log value\",DataLog!J787,\"\")","v":""},{"$f":"IF(DataLog!$C787=\"Log value\",DataLog!K787,\"\")","v":""},{"$f":"IF(DataLog!$C787=\"Log value\",DataLog!L787,\"\")","v":""},{"$f":"IF(DataLog!$C787=\"Log value\",DataLog!M787,\"\")","v":""},{"$f":"IF(DataLog!$C787=\"Log value\",DataLog!N787,\"\")","v":""},{"$f":"IF(DataLog!$C787=\"Log value\",DataLog!O787,\"\")","v":""},{"$f":"IF(DataLog!$C787=\"Log value\",DataLog!P787,\"\")","v":""},{"$f":"IF(DataLog!$C787=\"Log value\",DataLog!Q787,\"\")","v":""},{"$f":"IF(DataLog!$C787=\"Log value\",DataLog!R787,\"\")","v":""},{"$f":"IF(DataLog!$C787=\"Log value\",DataLog!S787,\"\")","v":""},{"$f":"IF(DataLog!$C787=\"Log value\",DataLog!T787,\"\")","v":""},{"$f":"IF(DataLog!$C787=\"Log value\",DataLog!U787,\"\")","v":""},{"$f":"IF(DataLog!$C787=\"Log value\",DataLog!V787,\"\")","v":""},{"$f":"IF(DataLog!$C787=\"Log value\",DataLog!W787,\"\")","v":""},{"$f":"IF(DataLog!$C787=\"Log value\",DataLog!X787,\"\")","v":""},{"$f":"IF(DataLog!$C787=\"Log value\",DataLog!Y787,\"\")","v":""},{"$f":"IF(DataLog!$C787=\"Log value\",DataLog!Z787,\"\")","v":""},{"$f":"IF(DataLog!$C787=\"Log value\",DataLog!AA787,\"\")","v":""},{"$f":"IF(DataLog!$C787=\"Log value\",DataLog!AB787,\"\")","v":""},{"$f":"IF(DataLog!$C787=\"Log value\",DataLog!AC787,\"\")","v":""},{"$f":"IF(DataLog!$C787=\"Log value\",DataLog!AD787,\"\")","v":""},{"$f":"IF(DataLog!$C787=\"Log value\",DataLog!AE787,\"\")","v":""},{"$f":"IF(DataLog!$C787=\"Log value\",DataLog!AF787,\"\")","v":""},{"$f":"IF(DataLog!$C787=\"Log value\",DataLog!AG787,\"\")","v":""},{"$f":"IF(DataLog!$C787=\"Log value\",DataLog!AH787,\"\")","v":""},{"$f":"IF(DataLog!$C787=\"Log value\",DataLog!AI787,\"\")","v":""},{"$f":"IF(DataLog!$C787=\"Log value\",DataLog!AJ787,\"\")","v":""},{"$f":"IF(DataLog!$C787=\"Log value\",DataLog!AK787,\"\")","v":""},{"$f":"IF(DataLog!$C787=\"Log value\",DataLog!AL787,\"\")","v":""},{"$f":"IF(DataLog!$C787=\"Log value\",DataLog!AM787,\"\")","v":""}]
[null,null,null,null,null,null,{"$f":"IF(DataLog!$C788=\"Log value\",DataLog!D788&\"_\"&TEXT(DataLog!B788,\"åååå-mm-dd\"),\"\")","v":""},{"$f":"IF(DataLog!$C788=\"Log value\",DataLog!E788,\"\")","v":""},{"$f":"IF(DataLog!$C788=\"Log value\",DataLog!F788,\"\")","v":""},{"$f":"IF(DataLog!$C788=\"Log value\",DataLog!G788,\"\")","v":""},{"$f":"IF(DataLog!$C788=\"Log value\",DataLog!H788,\"\")","v":""},{"$f":"IF(DataLog!$C788=\"Log value\",DataLog!I788,\"\")","v":""},{"$f":"IF(DataLog!$C788=\"Log value\",DataLog!J788,\"\")","v":""},{"$f":"IF(DataLog!$C788=\"Log value\",DataLog!K788,\"\")","v":""},{"$f":"IF(DataLog!$C788=\"Log value\",DataLog!L788,\"\")","v":""},{"$f":"IF(DataLog!$C788=\"Log value\",DataLog!M788,\"\")","v":""},{"$f":"IF(DataLog!$C788=\"Log value\",DataLog!N788,\"\")","v":""},{"$f":"IF(DataLog!$C788=\"Log value\",DataLog!O788,\"\")","v":""},{"$f":"IF(DataLog!$C788=\"Log value\",DataLog!P788,\"\")","v":""},{"$f":"IF(DataLog!$C788=\"Log value\",DataLog!Q788,\"\")","v":""},{"$f":"IF(DataLog!$C788=\"Log value\",DataLog!R788,\"\")","v":""},{"$f":"IF(DataLog!$C788=\"Log value\",DataLog!S788,\"\")","v":""},{"$f":"IF(DataLog!$C788=\"Log value\",DataLog!T788,\"\")","v":""},{"$f":"IF(DataLog!$C788=\"Log value\",DataLog!U788,\"\")","v":""},{"$f":"IF(DataLog!$C788=\"Log value\",DataLog!V788,\"\")","v":""},{"$f":"IF(DataLog!$C788=\"Log value\",DataLog!W788,\"\")","v":""},{"$f":"IF(DataLog!$C788=\"Log value\",DataLog!X788,\"\")","v":""},{"$f":"IF(DataLog!$C788=\"Log value\",DataLog!Y788,\"\")","v":""},{"$f":"IF(DataLog!$C788=\"Log value\",DataLog!Z788,\"\")","v":""},{"$f":"IF(DataLog!$C788=\"Log value\",DataLog!AA788,\"\")","v":""},{"$f":"IF(DataLog!$C788=\"Log value\",DataLog!AB788,\"\")","v":""},{"$f":"IF(DataLog!$C788=\"Log value\",DataLog!AC788,\"\")","v":""},{"$f":"IF(DataLog!$C788=\"Log value\",DataLog!AD788,\"\")","v":""},{"$f":"IF(DataLog!$C788=\"Log value\",DataLog!AE788,\"\")","v":""},{"$f":"IF(DataLog!$C788=\"Log value\",DataLog!AF788,\"\")","v":""},{"$f":"IF(DataLog!$C788=\"Log value\",DataLog!AG788,\"\")","v":""},{"$f":"IF(DataLog!$C788=\"Log value\",DataLog!AH788,\"\")","v":""},{"$f":"IF(DataLog!$C788=\"Log value\",DataLog!AI788,\"\")","v":""},{"$f":"IF(DataLog!$C788=\"Log value\",DataLog!AJ788,\"\")","v":""},{"$f":"IF(DataLog!$C788=\"Log value\",DataLog!AK788,\"\")","v":""},{"$f":"IF(DataLog!$C788=\"Log value\",DataLog!AL788,\"\")","v":""},{"$f":"IF(DataLog!$C788=\"Log value\",DataLog!AM788,\"\")","v":""}]
[null,null,null,null,null,null,{"$f":"IF(DataLog!$C789=\"Log value\",DataLog!D789&\"_\"&TEXT(DataLog!B789,\"åååå-mm-dd\"),\"\")","v":""},{"$f":"IF(DataLog!$C789=\"Log value\",DataLog!E789,\"\")","v":""},{"$f":"IF(DataLog!$C789=\"Log value\",DataLog!F789,\"\")","v":""},{"$f":"IF(DataLog!$C789=\"Log value\",DataLog!G789,\"\")","v":""},{"$f":"IF(DataLog!$C789=\"Log value\",DataLog!H789,\"\")","v":""},{"$f":"IF(DataLog!$C789=\"Log value\",DataLog!I789,\"\")","v":""},{"$f":"IF(DataLog!$C789=\"Log value\",DataLog!J789,\"\")","v":""},{"$f":"IF(DataLog!$C789=\"Log value\",DataLog!K789,\"\")","v":""},{"$f":"IF(DataLog!$C789=\"Log value\",DataLog!L789,\"\")","v":""},{"$f":"IF(DataLog!$C789=\"Log value\",DataLog!M789,\"\")","v":""},{"$f":"IF(DataLog!$C789=\"Log value\",DataLog!N789,\"\")","v":""},{"$f":"IF(DataLog!$C789=\"Log value\",DataLog!O789,\"\")","v":""},{"$f":"IF(DataLog!$C789=\"Log value\",DataLog!P789,\"\")","v":""},{"$f":"IF(DataLog!$C789=\"Log value\",DataLog!Q789,\"\")","v":""},{"$f":"IF(DataLog!$C789=\"Log value\",DataLog!R789,\"\")","v":""},{"$f":"IF(DataLog!$C789=\"Log value\",DataLog!S789,\"\")","v":""},{"$f":"IF(DataLog!$C789=\"Log value\",DataLog!T789,\"\")","v":""},{"$f":"IF(DataLog!$C789=\"Log value\",DataLog!U789,\"\")","v":""},{"$f":"IF(DataLog!$C789=\"Log value\",DataLog!V789,\"\")","v":""},{"$f":"IF(DataLog!$C789=\"Log value\",DataLog!W789,\"\")","v":""},{"$f":"IF(DataLog!$C789=\"Log value\",DataLog!X789,\"\")","v":""},{"$f":"IF(DataLog!$C789=\"Log value\",DataLog!Y789,\"\")","v":""},{"$f":"IF(DataLog!$C789=\"Log value\",DataLog!Z789,\"\")","v":""},{"$f":"IF(DataLog!$C789=\"Log value\",DataLog!AA789,\"\")","v":""},{"$f":"IF(DataLog!$C789=\"Log value\",DataLog!AB789,\"\")","v":""},{"$f":"IF(DataLog!$C789=\"Log value\",DataLog!AC789,\"\")","v":""},{"$f":"IF(DataLog!$C789=\"Log value\",DataLog!AD789,\"\")","v":""},{"$f":"IF(DataLog!$C789=\"Log value\",DataLog!AE789,\"\")","v":""},{"$f":"IF(DataLog!$C789=\"Log value\",DataLog!AF789,\"\")","v":""},{"$f":"IF(DataLog!$C789=\"Log value\",DataLog!AG789,\"\")","v":""},{"$f":"IF(DataLog!$C789=\"Log value\",DataLog!AH789,\"\")","v":""},{"$f":"IF(DataLog!$C789=\"Log value\",DataLog!AI789,\"\")","v":""},{"$f":"IF(DataLog!$C789=\"Log value\",DataLog!AJ789,\"\")","v":""},{"$f":"IF(DataLog!$C789=\"Log value\",DataLog!AK789,\"\")","v":""},{"$f":"IF(DataLog!$C789=\"Log value\",DataLog!AL789,\"\")","v":""},{"$f":"IF(DataLog!$C789=\"Log value\",DataLog!AM789,\"\")","v":""}]
[null,null,null,null,null,null,{"$f":"IF(DataLog!$C790=\"Log value\",DataLog!D790&\"_\"&TEXT(DataLog!B790,\"åååå-mm-dd\"),\"\")","v":""},{"$f":"IF(DataLog!$C790=\"Log value\",DataLog!E790,\"\")","v":""},{"$f":"IF(DataLog!$C790=\"Log value\",DataLog!F790,\"\")","v":""},{"$f":"IF(DataLog!$C790=\"Log value\",DataLog!G790,\"\")","v":""},{"$f":"IF(DataLog!$C790=\"Log value\",DataLog!H790,\"\")","v":""},{"$f":"IF(DataLog!$C790=\"Log value\",DataLog!I790,\"\")","v":""},{"$f":"IF(DataLog!$C790=\"Log value\",DataLog!J790,\"\")","v":""},{"$f":"IF(DataLog!$C790=\"Log value\",DataLog!K790,\"\")","v":""},{"$f":"IF(DataLog!$C790=\"Log value\",DataLog!L790,\"\")","v":""},{"$f":"IF(DataLog!$C790=\"Log value\",DataLog!M790,\"\")","v":""},{"$f":"IF(DataLog!$C790=\"Log value\",DataLog!N790,\"\")","v":""},{"$f":"IF(DataLog!$C790=\"Log value\",DataLog!O790,\"\")","v":""},{"$f":"IF(DataLog!$C790=\"Log value\",DataLog!P790,\"\")","v":""},{"$f":"IF(DataLog!$C790=\"Log value\",DataLog!Q790,\"\")","v":""},{"$f":"IF(DataLog!$C790=\"Log value\",DataLog!R790,\"\")","v":""},{"$f":"IF(DataLog!$C790=\"Log value\",DataLog!S790,\"\")","v":""},{"$f":"IF(DataLog!$C790=\"Log value\",DataLog!T790,\"\")","v":""},{"$f":"IF(DataLog!$C790=\"Log value\",DataLog!U790,\"\")","v":""},{"$f":"IF(DataLog!$C790=\"Log value\",DataLog!V790,\"\")","v":""},{"$f":"IF(DataLog!$C790=\"Log value\",DataLog!W790,\"\")","v":""},{"$f":"IF(DataLog!$C790=\"Log value\",DataLog!X790,\"\")","v":""},{"$f":"IF(DataLog!$C790=\"Log value\",DataLog!Y790,\"\")","v":""},{"$f":"IF(DataLog!$C790=\"Log value\",DataLog!Z790,\"\")","v":""},{"$f":"IF(DataLog!$C790=\"Log value\",DataLog!AA790,\"\")","v":""},{"$f":"IF(DataLog!$C790=\"Log value\",DataLog!AB790,\"\")","v":""},{"$f":"IF(DataLog!$C790=\"Log value\",DataLog!AC790,\"\")","v":""},{"$f":"IF(DataLog!$C790=\"Log value\",DataLog!AD790,\"\")","v":""},{"$f":"IF(DataLog!$C790=\"Log value\",DataLog!AE790,\"\")","v":""},{"$f":"IF(DataLog!$C790=\"Log value\",DataLog!AF790,\"\")","v":""},{"$f":"IF(DataLog!$C790=\"Log value\",DataLog!AG790,\"\")","v":""},{"$f":"IF(DataLog!$C790=\"Log value\",DataLog!AH790,\"\")","v":""},{"$f":"IF(DataLog!$C790=\"Log value\",DataLog!AI790,\"\")","v":""},{"$f":"IF(DataLog!$C790=\"Log value\",DataLog!AJ790,\"\")","v":""},{"$f":"IF(DataLog!$C790=\"Log value\",DataLog!AK790,\"\")","v":""},{"$f":"IF(DataLog!$C790=\"Log value\",DataLog!AL790,\"\")","v":""},{"$f":"IF(DataLog!$C790=\"Log value\",DataLog!AM790,\"\")","v":""}]
[null,null,null,null,null,null,{"$f":"IF(DataLog!$C791=\"Log value\",DataLog!D791&\"_\"&TEXT(DataLog!B791,\"åååå-mm-dd\"),\"\")","v":""},{"$f":"IF(DataLog!$C791=\"Log value\",DataLog!E791,\"\")","v":""},{"$f":"IF(DataLog!$C791=\"Log value\",DataLog!F791,\"\")","v":""},{"$f":"IF(DataLog!$C791=\"Log value\",DataLog!G791,\"\")","v":""},{"$f":"IF(DataLog!$C791=\"Log value\",DataLog!H791,\"\")","v":""},{"$f":"IF(DataLog!$C791=\"Log value\",DataLog!I791,\"\")","v":""},{"$f":"IF(DataLog!$C791=\"Log value\",DataLog!J791,\"\")","v":""},{"$f":"IF(DataLog!$C791=\"Log value\",DataLog!K791,\"\")","v":""},{"$f":"IF(DataLog!$C791=\"Log value\",DataLog!L791,\"\")","v":""},{"$f":"IF(DataLog!$C791=\"Log value\",DataLog!M791,\"\")","v":""},{"$f":"IF(DataLog!$C791=\"Log value\",DataLog!N791,\"\")","v":""},{"$f":"IF(DataLog!$C791=\"Log value\",DataLog!O791,\"\")","v":""},{"$f":"IF(DataLog!$C791=\"Log value\",DataLog!P791,\"\")","v":""},{"$f":"IF(DataLog!$C791=\"Log value\",DataLog!Q791,\"\")","v":""},{"$f":"IF(DataLog!$C791=\"Log value\",DataLog!R791,\"\")","v":""},{"$f":"IF(DataLog!$C791=\"Log value\",DataLog!S791,\"\")","v":""},{"$f":"IF(DataLog!$C791=\"Log value\",DataLog!T791,\"\")","v":""},{"$f":"IF(DataLog!$C791=\"Log value\",DataLog!U791,\"\")","v":""},{"$f":"IF(DataLog!$C791=\"Log value\",DataLog!V791,\"\")","v":""},{"$f":"IF(DataLog!$C791=\"Log value\",DataLog!W791,\"\")","v":""},{"$f":"IF(DataLog!$C791=\"Log value\",DataLog!X791,\"\")","v":""},{"$f":"IF(DataLog!$C791=\"Log value\",DataLog!Y791,\"\")","v":""},{"$f":"IF(DataLog!$C791=\"Log value\",DataLog!Z791,\"\")","v":""},{"$f":"IF(DataLog!$C791=\"Log value\",DataLog!AA791,\"\")","v":""},{"$f":"IF(DataLog!$C791=\"Log value\",DataLog!AB791,\"\")","v":""},{"$f":"IF(DataLog!$C791=\"Log value\",DataLog!AC791,\"\")","v":""},{"$f":"IF(DataLog!$C791=\"Log value\",DataLog!AD791,\"\")","v":""},{"$f":"IF(DataLog!$C791=\"Log value\",DataLog!AE791,\"\")","v":""},{"$f":"IF(DataLog!$C791=\"Log value\",DataLog!AF791,\"\")","v":""},{"$f":"IF(DataLog!$C791=\"Log value\",DataLog!AG791,\"\")","v":""},{"$f":"IF(DataLog!$C791=\"Log value\",DataLog!AH791,\"\")","v":""},{"$f":"IF(DataLog!$C791=\"Log value\",DataLog!AI791,\"\")","v":""},{"$f":"IF(DataLog!$C791=\"Log value\",DataLog!AJ791,\"\")","v":""},{"$f":"IF(DataLog!$C791=\"Log value\",DataLog!AK791,\"\")","v":""},{"$f":"IF(DataLog!$C791=\"Log value\",DataLog!AL791,\"\")","v":""},{"$f":"IF(DataLog!$C791=\"Log value\",DataLog!AM791,\"\")","v":""}]
[null,null,null,null,null,null,{"$f":"IF(DataLog!$C792=\"Log value\",DataLog!D792&\"_\"&TEXT(DataLog!B792,\"åååå-mm-dd\"),\"\")","v":""},{"$f":"IF(DataLog!$C792=\"Log value\",DataLog!E792,\"\")","v":""},{"$f":"IF(DataLog!$C792=\"Log value\",DataLog!F792,\"\")","v":""},{"$f":"IF(DataLog!$C792=\"Log value\",DataLog!G792,\"\")","v":""},{"$f":"IF(DataLog!$C792=\"Log value\",DataLog!H792,\"\")","v":""},{"$f":"IF(DataLog!$C792=\"Log value\",DataLog!I792,\"\")","v":""},{"$f":"IF(DataLog!$C792=\"Log value\",DataLog!J792,\"\")","v":""},{"$f":"IF(DataLog!$C792=\"Log value\",DataLog!K792,\"\")","v":""},{"$f":"IF(DataLog!$C792=\"Log value\",DataLog!L792,\"\")","v":""},{"$f":"IF(DataLog!$C792=\"Log value\",DataLog!M792,\"\")","v":""},{"$f":"IF(DataLog!$C792=\"Log value\",DataLog!N792,\"\")","v":""},{"$f":"IF(DataLog!$C792=\"Log value\",DataLog!O792,\"\")","v":""},{"$f":"IF(DataLog!$C792=\"Log value\",DataLog!P792,\"\")","v":""},{"$f":"IF(DataLog!$C792=\"Log value\",DataLog!Q792,\"\")","v":""},{"$f":"IF(DataLog!$C792=\"Log value\",DataLog!R792,\"\")","v":""},{"$f":"IF(DataLog!$C792=\"Log value\",DataLog!S792,\"\")","v":""},{"$f":"IF(DataLog!$C792=\"Log value\",DataLog!T792,\"\")","v":""},{"$f":"IF(DataLog!$C792=\"Log value\",DataLog!U792,\"\")","v":""},{"$f":"IF(DataLog!$C792=\"Log value\",DataLog!V792,\"\")","v":""},{"$f":"IF(DataLog!$C792=\"Log value\",DataLog!W792,\"\")","v":""},{"$f":"IF(DataLog!$C792=\"Log value\",DataLog!X792,\"\")","v":""},{"$f":"IF(DataLog!$C792=\"Log value\",DataLog!Y792,\"\")","v":""},{"$f":"IF(DataLog!$C792=\"Log value\",DataLog!Z792,\"\")","v":""},{"$f":"IF(DataLog!$C792=\"Log value\",DataLog!AA792,\"\")","v":""},{"$f":"IF(DataLog!$C792=\"Log value\",DataLog!AB792,\"\")","v":""},{"$f":"IF(DataLog!$C792=\"Log value\",DataLog!AC792,\"\")","v":""},{"$f":"IF(DataLog!$C792=\"Log value\",DataLog!AD792,\"\")","v":""},{"$f":"IF(DataLog!$C792=\"Log value\",DataLog!AE792,\"\")","v":""},{"$f":"IF(DataLog!$C792=\"Log value\",DataLog!AF792,\"\")","v":""},{"$f":"IF(DataLog!$C792=\"Log value\",DataLog!AG792,\"\")","v":""},{"$f":"IF(DataLog!$C792=\"Log value\",DataLog!AH792,\"\")","v":""},{"$f":"IF(DataLog!$C792=\"Log value\",DataLog!AI792,\"\")","v":""},{"$f":"IF(DataLog!$C792=\"Log value\",DataLog!AJ792,\"\")","v":""},{"$f":"IF(DataLog!$C792=\"Log value\",DataLog!AK792,\"\")","v":""},{"$f":"IF(DataLog!$C792=\"Log value\",DataLog!AL792,\"\")","v":""},{"$f":"IF(DataLog!$C792=\"Log value\",DataLog!AM792,\"\")","v":""}]
[null,null,null,null,null,null,{"$f":"IF(DataLog!$C793=\"Log value\",DataLog!D793&\"_\"&TEXT(DataLog!B793,\"åååå-mm-dd\"),\"\")","v":""},{"$f":"IF(DataLog!$C793=\"Log value\",DataLog!E793,\"\")","v":""},{"$f":"IF(DataLog!$C793=\"Log value\",DataLog!F793,\"\")","v":""},{"$f":"IF(DataLog!$C793=\"Log value\",DataLog!G793,\"\")","v":""},{"$f":"IF(DataLog!$C793=\"Log value\",DataLog!H793,\"\")","v":""},{"$f":"IF(DataLog!$C793=\"Log value\",DataLog!I793,\"\")","v":""},{"$f":"IF(DataLog!$C793=\"Log value\",DataLog!J793,\"\")","v":""},{"$f":"IF(DataLog!$C793=\"Log value\",DataLog!K793,\"\")","v":""},{"$f":"IF(DataLog!$C793=\"Log value\",DataLog!L793,\"\")","v":""},{"$f":"IF(DataLog!$C793=\"Log value\",DataLog!M793,\"\")","v":""},{"$f":"IF(DataLog!$C793=\"Log value\",DataLog!N793,\"\")","v":""},{"$f":"IF(DataLog!$C793=\"Log value\",DataLog!O793,\"\")","v":""},{"$f":"IF(DataLog!$C793=\"Log value\",DataLog!P793,\"\")","v":""},{"$f":"IF(DataLog!$C793=\"Log value\",DataLog!Q793,\"\")","v":""},{"$f":"IF(DataLog!$C793=\"Log value\",DataLog!R793,\"\")","v":""},{"$f":"IF(DataLog!$C793=\"Log value\",DataLog!S793,\"\")","v":""},{"$f":"IF(DataLog!$C793=\"Log value\",DataLog!T793,\"\")","v":""},{"$f":"IF(DataLog!$C793=\"Log value\",DataLog!U793,\"\")","v":""},{"$f":"IF(DataLog!$C793=\"Log value\",DataLog!V793,\"\")","v":""},{"$f":"IF(DataLog!$C793=\"Log value\",DataLog!W793,\"\")","v":""},{"$f":"IF(DataLog!$C793=\"Log value\",DataLog!X793,\"\")","v":""},{"$f":"IF(DataLog!$C793=\"Log value\",DataLog!Y793,\"\")","v":""},{"$f":"IF(DataLog!$C793=\"Log value\",DataLog!Z793,\"\")","v":""},{"$f":"IF(DataLog!$C793=\"Log value\",DataLog!AA793,\"\")","v":""},{"$f":"IF(DataLog!$C793=\"Log value\",DataLog!AB793,\"\")","v":""},{"$f":"IF(DataLog!$C793=\"Log value\",DataLog!AC793,\"\")","v":""},{"$f":"IF(DataLog!$C793=\"Log value\",DataLog!AD793,\"\")","v":""},{"$f":"IF(DataLog!$C793=\"Log value\",DataLog!AE793,\"\")","v":""},{"$f":"IF(DataLog!$C793=\"Log value\",DataLog!AF793,\"\")","v":""},{"$f":"IF(DataLog!$C793=\"Log value\",DataLog!AG793,\"\")","v":""},{"$f":"IF(DataLog!$C793=\"Log value\",DataLog!AH793,\"\")","v":""},{"$f":"IF(DataLog!$C793=\"Log value\",DataLog!AI793,\"\")","v":""},{"$f":"IF(DataLog!$C793=\"Log value\",DataLog!AJ793,\"\")","v":""},{"$f":"IF(DataLog!$C793=\"Log value\",DataLog!AK793,\"\")","v":""},{"$f":"IF(DataLog!$C793=\"Log value\",DataLog!AL793,\"\")","v":""},{"$f":"IF(DataLog!$C793=\"Log value\",DataLog!AM793,\"\")","v":""}]
[null,null,null,null,null,null,{"$f":"IF(DataLog!$C794=\"Log value\",DataLog!D794&\"_\"&TEXT(DataLog!B794,\"åååå-mm-dd\"),\"\")","v":""},{"$f":"IF(DataLog!$C794=\"Log value\",DataLog!E794,\"\")","v":""},{"$f":"IF(DataLog!$C794=\"Log value\",DataLog!F794,\"\")","v":""},{"$f":"IF(DataLog!$C794=\"Log value\",DataLog!G794,\"\")","v":""},{"$f":"IF(DataLog!$C794=\"Log value\",DataLog!H794,\"\")","v":""},{"$f":"IF(DataLog!$C794=\"Log value\",DataLog!I794,\"\")","v":""},{"$f":"IF(DataLog!$C794=\"Log value\",DataLog!J794,\"\")","v":""},{"$f":"IF(DataLog!$C794=\"Log value\",DataLog!K794,\"\")","v":""},{"$f":"IF(DataLog!$C794=\"Log value\",DataLog!L794,\"\")","v":""},{"$f":"IF(DataLog!$C794=\"Log value\",DataLog!M794,\"\")","v":""},{"$f":"IF(DataLog!$C794=\"Log value\",DataLog!N794,\"\")","v":""},{"$f":"IF(DataLog!$C794=\"Log value\",DataLog!O794,\"\")","v":""},{"$f":"IF(DataLog!$C794=\"Log value\",DataLog!P794,\"\")","v":""},{"$f":"IF(DataLog!$C794=\"Log value\",DataLog!Q794,\"\")","v":""},{"$f":"IF(DataLog!$C794=\"Log value\",DataLog!R794,\"\")","v":""},{"$f":"IF(DataLog!$C794=\"Log value\",DataLog!S794,\"\")","v":""},{"$f":"IF(DataLog!$C794=\"Log value\",DataLog!T794,\"\")","v":""},{"$f":"IF(DataLog!$C794=\"Log value\",DataLog!U794,\"\")","v":""},{"$f":"IF(DataLog!$C794=\"Log value\",DataLog!V794,\"\")","v":""},{"$f":"IF(DataLog!$C794=\"Log value\",DataLog!W794,\"\")","v":""},{"$f":"IF(DataLog!$C794=\"Log value\",DataLog!X794,\"\")","v":""},{"$f":"IF(DataLog!$C794=\"Log value\",DataLog!Y794,\"\")","v":""},{"$f":"IF(DataLog!$C794=\"Log value\",DataLog!Z794,\"\")","v":""},{"$f":"IF(DataLog!$C794=\"Log value\",DataLog!AA794,\"\")","v":""},{"$f":"IF(DataLog!$C794=\"Log value\",DataLog!AB794,\"\")","v":""},{"$f":"IF(DataLog!$C794=\"Log value\",DataLog!AC794,\"\")","v":""},{"$f":"IF(DataLog!$C794=\"Log value\",DataLog!AD794,\"\")","v":""},{"$f":"IF(DataLog!$C794=\"Log value\",DataLog!AE794,\"\")","v":""},{"$f":"IF(DataLog!$C794=\"Log value\",DataLog!AF794,\"\")","v":""},{"$f":"IF(DataLog!$C794=\"Log value\",DataLog!AG794,\"\")","v":""},{"$f":"IF(DataLog!$C794=\"Log value\",DataLog!AH794,\"\")","v":""},{"$f":"IF(DataLog!$C794=\"Log value\",DataLog!AI794,\"\")","v":""},{"$f":"IF(DataLog!$C794=\"Log value\",DataLog!AJ794,\"\")","v":""},{"$f":"IF(DataLog!$C794=\"Log value\",DataLog!AK794,\"\")","v":""},{"$f":"IF(DataLog!$C794=\"Log value\",DataLog!AL794,\"\")","v":""},{"$f":"IF(DataLog!$C794=\"Log value\",DataLog!AM794,\"\")","v":""}]
[null,null,null,null,null,null,{"$f":"IF(DataLog!$C795=\"Log value\",DataLog!D795&\"_\"&TEXT(DataLog!B795,\"åååå-mm-dd\"),\"\")","v":""},{"$f":"IF(DataLog!$C795=\"Log value\",DataLog!E795,\"\")","v":""},{"$f":"IF(DataLog!$C795=\"Log value\",DataLog!F795,\"\")","v":""},{"$f":"IF(DataLog!$C795=\"Log value\",DataLog!G795,\"\")","v":""},{"$f":"IF(DataLog!$C795=\"Log value\",DataLog!H795,\"\")","v":""},{"$f":"IF(DataLog!$C795=\"Log value\",DataLog!I795,\"\")","v":""},{"$f":"IF(DataLog!$C795=\"Log value\",DataLog!J795,\"\")","v":""},{"$f":"IF(DataLog!$C795=\"Log value\",DataLog!K795,\"\")","v":""},{"$f":"IF(DataLog!$C795=\"Log value\",DataLog!L795,\"\")","v":""},{"$f":"IF(DataLog!$C795=\"Log value\",DataLog!M795,\"\")","v":""},{"$f":"IF(DataLog!$C795=\"Log value\",DataLog!N795,\"\")","v":""},{"$f":"IF(DataLog!$C795=\"Log value\",DataLog!O795,\"\")","v":""},{"$f":"IF(DataLog!$C795=\"Log value\",DataLog!P795,\"\")","v":""},{"$f":"IF(DataLog!$C795=\"Log value\",DataLog!Q795,\"\")","v":""},{"$f":"IF(DataLog!$C795=\"Log value\",DataLog!R795,\"\")","v":""},{"$f":"IF(DataLog!$C795=\"Log value\",DataLog!S795,\"\")","v":""},{"$f":"IF(DataLog!$C795=\"Log value\",DataLog!T795,\"\")","v":""},{"$f":"IF(DataLog!$C795=\"Log value\",DataLog!U795,\"\")","v":""},{"$f":"IF(DataLog!$C795=\"Log value\",DataLog!V795,\"\")","v":""},{"$f":"IF(DataLog!$C795=\"Log value\",DataLog!W795,\"\")","v":""},{"$f":"IF(DataLog!$C795=\"Log value\",DataLog!X795,\"\")","v":""},{"$f":"IF(DataLog!$C795=\"Log value\",DataLog!Y795,\"\")","v":""},{"$f":"IF(DataLog!$C795=\"Log value\",DataLog!Z795,\"\")","v":""},{"$f":"IF(DataLog!$C795=\"Log value\",DataLog!AA795,\"\")","v":""},{"$f":"IF(DataLog!$C795=\"Log value\",DataLog!AB795,\"\")","v":""},{"$f":"IF(DataLog!$C795=\"Log value\",DataLog!AC795,\"\")","v":""},{"$f":"IF(DataLog!$C795=\"Log value\",DataLog!AD795,\"\")","v":""},{"$f":"IF(DataLog!$C795=\"Log value\",DataLog!AE795,\"\")","v":""},{"$f":"IF(DataLog!$C795=\"Log value\",DataLog!AF795,\"\")","v":""},{"$f":"IF(DataLog!$C795=\"Log value\",DataLog!AG795,\"\")","v":""},{"$f":"IF(DataLog!$C795=\"Log value\",DataLog!AH795,\"\")","v":""},{"$f":"IF(DataLog!$C795=\"Log value\",DataLog!AI795,\"\")","v":""},{"$f":"IF(DataLog!$C795=\"Log value\",DataLog!AJ795,\"\")","v":""},{"$f":"IF(DataLog!$C795=\"Log value\",DataLog!AK795,\"\")","v":""},{"$f":"IF(DataLog!$C795=\"Log value\",DataLog!AL795,\"\")","v":""},{"$f":"IF(DataLog!$C795=\"Log value\",DataLog!AM795,\"\")","v":""}]
[null,null,null,null,null,null,{"$f":"IF(DataLog!$C796=\"Log value\",DataLog!D796&\"_\"&TEXT(DataLog!B796,\"åååå-mm-dd\"),\"\")","v":""},{"$f":"IF(DataLog!$C796=\"Log value\",DataLog!E796,\"\")","v":""},{"$f":"IF(DataLog!$C796=\"Log value\",DataLog!F796,\"\")","v":""},{"$f":"IF(DataLog!$C796=\"Log value\",DataLog!G796,\"\")","v":""},{"$f":"IF(DataLog!$C796=\"Log value\",DataLog!H796,\"\")","v":""},{"$f":"IF(DataLog!$C796=\"Log value\",DataLog!I796,\"\")","v":""},{"$f":"IF(DataLog!$C796=\"Log value\",DataLog!J796,\"\")","v":""},{"$f":"IF(DataLog!$C796=\"Log value\",DataLog!K796,\"\")","v":""},{"$f":"IF(DataLog!$C796=\"Log value\",DataLog!L796,\"\")","v":""},{"$f":"IF(DataLog!$C796=\"Log value\",DataLog!M796,\"\")","v":""},{"$f":"IF(DataLog!$C796=\"Log value\",DataLog!N796,\"\")","v":""},{"$f":"IF(DataLog!$C796=\"Log value\",DataLog!O796,\"\")","v":""},{"$f":"IF(DataLog!$C796=\"Log value\",DataLog!P796,\"\")","v":""},{"$f":"IF(DataLog!$C796=\"Log value\",DataLog!Q796,\"\")","v":""},{"$f":"IF(DataLog!$C796=\"Log value\",DataLog!R796,\"\")","v":""},{"$f":"IF(DataLog!$C796=\"Log value\",DataLog!S796,\"\")","v":""},{"$f":"IF(DataLog!$C796=\"Log value\",DataLog!T796,\"\")","v":""},{"$f":"IF(DataLog!$C796=\"Log value\",DataLog!U796,\"\")","v":""},{"$f":"IF(DataLog!$C796=\"Log value\",DataLog!V796,\"\")","v":""},{"$f":"IF(DataLog!$C796=\"Log value\",DataLog!W796,\"\")","v":""},{"$f":"IF(DataLog!$C796=\"Log value\",DataLog!X796,\"\")","v":""},{"$f":"IF(DataLog!$C796=\"Log value\",DataLog!Y796,\"\")","v":""},{"$f":"IF(DataLog!$C796=\"Log value\",DataLog!Z796,\"\")","v":""},{"$f":"IF(DataLog!$C796=\"Log value\",DataLog!AA796,\"\")","v":""},{"$f":"IF(DataLog!$C796=\"Log value\",DataLog!AB796,\"\")","v":""},{"$f":"IF(DataLog!$C796=\"Log value\",DataLog!AC796,\"\")","v":""},{"$f":"IF(DataLog!$C796=\"Log value\",DataLog!AD796,\"\")","v":""},{"$f":"IF(DataLog!$C796=\"Log value\",DataLog!AE796,\"\")","v":""},{"$f":"IF(DataLog!$C796=\"Log value\",DataLog!AF796,\"\")","v":""},{"$f":"IF(DataLog!$C796=\"Log value\",DataLog!AG796,\"\")","v":""},{"$f":"IF(DataLog!$C796=\"Log value\",DataLog!AH796,\"\")","v":""},{"$f":"IF(DataLog!$C796=\"Log value\",DataLog!AI796,\"\")","v":""},{"$f":"IF(DataLog!$C796=\"Log value\",DataLog!AJ796,\"\")","v":""},{"$f":"IF(DataLog!$C796=\"Log value\",DataLog!AK796,\"\")","v":""},{"$f":"IF(DataLog!$C796=\"Log value\",DataLog!AL796,\"\")","v":""},{"$f":"IF(DataLog!$C796=\"Log value\",DataLog!AM796,\"\")","v":""}]
[null,null,null,null,null,null,{"$f":"IF(DataLog!$C797=\"Log value\",DataLog!D797&\"_\"&TEXT(DataLog!B797,\"åååå-mm-dd\"),\"\")","v":""},{"$f":"IF(DataLog!$C797=\"Log value\",DataLog!E797,\"\")","v":""},{"$f":"IF(DataLog!$C797=\"Log value\",DataLog!F797,\"\")","v":""},{"$f":"IF(DataLog!$C797=\"Log value\",DataLog!G797,\"\")","v":""},{"$f":"IF(DataLog!$C797=\"Log value\",DataLog!H797,\"\")","v":""},{"$f":"IF(DataLog!$C797=\"Log value\",DataLog!I797,\"\")","v":""},{"$f":"IF(DataLog!$C797=\"Log value\",DataLog!J797,\"\")","v":""},{"$f":"IF(DataLog!$C797=\"Log value\",DataLog!K797,\"\")","v":""},{"$f":"IF(DataLog!$C797=\"Log value\",DataLog!L797,\"\")","v":""},{"$f":"IF(DataLog!$C797=\"Log value\",DataLog!M797,\"\")","v":""},{"$f":"IF(DataLog!$C797=\"Log value\",DataLog!N797,\"\")","v":""},{"$f":"IF(DataLog!$C797=\"Log value\",DataLog!O797,\"\")","v":""},{"$f":"IF(DataLog!$C797=\"Log value\",DataLog!P797,\"\")","v":""},{"$f":"IF(DataLog!$C797=\"Log value\",DataLog!Q797,\"\")","v":""},{"$f":"IF(DataLog!$C797=\"Log value\",DataLog!R797,\"\")","v":""},{"$f":"IF(DataLog!$C797=\"Log value\",DataLog!S797,\"\")","v":""},{"$f":"IF(DataLog!$C797=\"Log value\",DataLog!T797,\"\")","v":""},{"$f":"IF(DataLog!$C797=\"Log value\",DataLog!U797,\"\")","v":""},{"$f":"IF(DataLog!$C797=\"Log value\",DataLog!V797,\"\")","v":""},{"$f":"IF(DataLog!$C797=\"Log value\",DataLog!W797,\"\")","v":""},{"$f":"IF(DataLog!$C797=\"Log value\",DataLog!X797,\"\")","v":""},{"$f":"IF(DataLog!$C797=\"Log value\",DataLog!Y797,\"\")","v":""},{"$f":"IF(DataLog!$C797=\"Log value\",DataLog!Z797,\"\")","v":""},{"$f":"IF(DataLog!$C797=\"Log value\",DataLog!AA797,\"\")","v":""},{"$f":"IF(DataLog!$C797=\"Log value\",DataLog!AB797,\"\")","v":""},{"$f":"IF(DataLog!$C797=\"Log value\",DataLog!AC797,\"\")","v":""},{"$f":"IF(DataLog!$C797=\"Log value\",DataLog!AD797,\"\")","v":""},{"$f":"IF(DataLog!$C797=\"Log value\",DataLog!AE797,\"\")","v":""},{"$f":"IF(DataLog!$C797=\"Log value\",DataLog!AF797,\"\")","v":""},{"$f":"IF(DataLog!$C797=\"Log value\",DataLog!AG797,\"\")","v":""},{"$f":"IF(DataLog!$C797=\"Log value\",DataLog!AH797,\"\")","v":""},{"$f":"IF(DataLog!$C797=\"Log value\",DataLog!AI797,\"\")","v":""},{"$f":"IF(DataLog!$C797=\"Log value\",DataLog!AJ797,\"\")","v":""},{"$f":"IF(DataLog!$C797=\"Log value\",DataLog!AK797,\"\")","v":""},{"$f":"IF(DataLog!$C797=\"Log value\",DataLog!AL797,\"\")","v":""},{"$f":"IF(DataLog!$C797=\"Log value\",DataLog!AM797,\"\")","v":""}]
[null,null,null,null,null,null,{"$f":"IF(DataLog!$C798=\"Log value\",DataLog!D798&\"_\"&TEXT(DataLog!B798,\"åååå-mm-dd\"),\"\")","v":""},{"$f":"IF(DataLog!$C798=\"Log value\",DataLog!E798,\"\")","v":""},{"$f":"IF(DataLog!$C798=\"Log value\",DataLog!F798,\"\")","v":""},{"$f":"IF(DataLog!$C798=\"Log value\",DataLog!G798,\"\")","v":""},{"$f":"IF(DataLog!$C798=\"Log value\",DataLog!H798,\"\")","v":""},{"$f":"IF(DataLog!$C798=\"Log value\",DataLog!I798,\"\")","v":""},{"$f":"IF(DataLog!$C798=\"Log value\",DataLog!J798,\"\")","v":""},{"$f":"IF(DataLog!$C798=\"Log value\",DataLog!K798,\"\")","v":""},{"$f":"IF(DataLog!$C798=\"Log value\",DataLog!L798,\"\")","v":""},{"$f":"IF(DataLog!$C798=\"Log value\",DataLog!M798,\"\")","v":""},{"$f":"IF(DataLog!$C798=\"Log value\",DataLog!N798,\"\")","v":""},{"$f":"IF(DataLog!$C798=\"Log value\",DataLog!O798,\"\")","v":""},{"$f":"IF(DataLog!$C798=\"Log value\",DataLog!P798,\"\")","v":""},{"$f":"IF(DataLog!$C798=\"Log value\",DataLog!Q798,\"\")","v":""},{"$f":"IF(DataLog!$C798=\"Log value\",DataLog!R798,\"\")","v":""},{"$f":"IF(DataLog!$C798=\"Log value\",DataLog!S798,\"\")","v":""},{"$f":"IF(DataLog!$C798=\"Log value\",DataLog!T798,\"\")","v":""},{"$f":"IF(DataLog!$C798=\"Log value\",DataLog!U798,\"\")","v":""},{"$f":"IF(DataLog!$C798=\"Log value\",DataLog!V798,\"\")","v":""},{"$f":"IF(DataLog!$C798=\"Log value\",DataLog!W798,\"\")","v":""},{"$f":"IF(DataLog!$C798=\"Log value\",DataLog!X798,\"\")","v":""},{"$f":"IF(DataLog!$C798=\"Log value\",DataLog!Y798,\"\")","v":""},{"$f":"IF(DataLog!$C798=\"Log value\",DataLog!Z798,\"\")","v":""},{"$f":"IF(DataLog!$C798=\"Log value\",DataLog!AA798,\"\")","v":""},{"$f":"IF(DataLog!$C798=\"Log value\",DataLog!AB798,\"\")","v":""},{"$f":"IF(DataLog!$C798=\"Log value\",DataLog!AC798,\"\")","v":""},{"$f":"IF(DataLog!$C798=\"Log value\",DataLog!AD798,\"\")","v":""},{"$f":"IF(DataLog!$C798=\"Log value\",DataLog!AE798,\"\")","v":""},{"$f":"IF(DataLog!$C798=\"Log value\",DataLog!AF798,\"\")","v":""},{"$f":"IF(DataLog!$C798=\"Log value\",DataLog!AG798,\"\")","v":""},{"$f":"IF(DataLog!$C798=\"Log value\",DataLog!AH798,\"\")","v":""},{"$f":"IF(DataLog!$C798=\"Log value\",DataLog!AI798,\"\")","v":""},{"$f":"IF(DataLog!$C798=\"Log value\",DataLog!AJ798,\"\")","v":""},{"$f":"IF(DataLog!$C798=\"Log value\",DataLog!AK798,\"\")","v":""},{"$f":"IF(DataLog!$C798=\"Log value\",DataLog!AL798,\"\")","v":""},{"$f":"IF(DataLog!$C798=\"Log value\",DataLog!AM798,\"\")","v":""}]
[null,null,null,null,null,null,{"$f":"IF(DataLog!$C799=\"Log value\",DataLog!D799&\"_\"&TEXT(DataLog!B799,\"åååå-mm-dd\"),\"\")","v":""},{"$f":"IF(DataLog!$C799=\"Log value\",DataLog!E799,\"\")","v":""},{"$f":"IF(DataLog!$C799=\"Log value\",DataLog!F799,\"\")","v":""},{"$f":"IF(DataLog!$C799=\"Log value\",DataLog!G799,\"\")","v":""},{"$f":"IF(DataLog!$C799=\"Log value\",DataLog!H799,\"\")","v":""},{"$f":"IF(DataLog!$C799=\"Log value\",DataLog!I799,\"\")","v":""},{"$f":"IF(DataLog!$C799=\"Log value\",DataLog!J799,\"\")","v":""},{"$f":"IF(DataLog!$C799=\"Log value\",DataLog!K799,\"\")","v":""},{"$f":"IF(DataLog!$C799=\"Log value\",DataLog!L799,\"\")","v":""},{"$f":"IF(DataLog!$C799=\"Log value\",DataLog!M799,\"\")","v":""},{"$f":"IF(DataLog!$C799=\"Log value\",DataLog!N799,\"\")","v":""},{"$f":"IF(DataLog!$C799=\"Log value\",DataLog!O799,\"\")","v":""},{"$f":"IF(DataLog!$C799=\"Log value\",DataLog!P799,\"\")","v":""},{"$f":"IF(DataLog!$C799=\"Log value\",DataLog!Q799,\"\")","v":""},{"$f":"IF(DataLog!$C799=\"Log value\",DataLog!R799,\"\")","v":""},{"$f":"IF(DataLog!$C799=\"Log value\",DataLog!S799,\"\")","v":""},{"$f":"IF(DataLog!$C799=\"Log value\",DataLog!T799,\"\")","v":""},{"$f":"IF(DataLog!$C799=\"Log value\",DataLog!U799,\"\")","v":""},{"$f":"IF(DataLog!$C799=\"Log value\",DataLog!V799,\"\")","v":""},{"$f":"IF(DataLog!$C799=\"Log value\",DataLog!W799,\"\")","v":""},{"$f":"IF(DataLog!$C799=\"Log value\",DataLog!X799,\"\")","v":""},{"$f":"IF(DataLog!$C799=\"Log value\",DataLog!Y799,\"\")","v":""},{"$f":"IF(DataLog!$C799=\"Log value\",DataLog!Z799,\"\")","v":""},{"$f":"IF(DataLog!$C799=\"Log value\",DataLog!AA799,\"\")","v":""},{"$f":"IF(DataLog!$C799=\"Log value\",DataLog!AB799,\"\")","v":""},{"$f":"IF(DataLog!$C799=\"Log value\",DataLog!AC799,\"\")","v":""},{"$f":"IF(DataLog!$C799=\"Log value\",DataLog!AD799,\"\")","v":""},{"$f":"IF(DataLog!$C799=\"Log value\",DataLog!AE799,\"\")","v":""},{"$f":"IF(DataLog!$C799=\"Log value\",DataLog!AF799,\"\")","v":""},{"$f":"IF(DataLog!$C799=\"Log value\",DataLog!AG799,\"\")","v":""},{"$f":"IF(DataLog!$C799=\"Log value\",DataLog!AH799,\"\")","v":""},{"$f":"IF(DataLog!$C799=\"Log value\",DataLog!AI799,\"\")","v":""},{"$f":"IF(DataLog!$C799=\"Log value\",DataLog!AJ799,\"\")","v":""},{"$f":"IF(DataLog!$C799=\"Log value\",DataLog!AK799,\"\")","v":""},{"$f":"IF(DataLog!$C799=\"Log value\",DataLog!AL799,\"\")","v":""},{"$f":"IF(DataLog!$C799=\"Log value\",DataLog!AM799,\"\")","v":""}]
[null,null,null,null,null,null,{"$f":"IF(DataLog!$C800=\"Log value\",DataLog!D800&\"_\"&TEXT(DataLog!B800,\"åååå-mm-dd\"),\"\")","v":""},{"$f":"IF(DataLog!$C800=\"Log value\",DataLog!E800,\"\")","v":""},{"$f":"IF(DataLog!$C800=\"Log value\",DataLog!F800,\"\")","v":""},{"$f":"IF(DataLog!$C800=\"Log value\",DataLog!G800,\"\")","v":""},{"$f":"IF(DataLog!$C800=\"Log value\",DataLog!H800,\"\")","v":""},{"$f":"IF(DataLog!$C800=\"Log value\",DataLog!I800,\"\")","v":""},{"$f":"IF(DataLog!$C800=\"Log value\",DataLog!J800,\"\")","v":""},{"$f":"IF(DataLog!$C800=\"Log value\",DataLog!K800,\"\")","v":""},{"$f":"IF(DataLog!$C800=\"Log value\",DataLog!L800,\"\")","v":""},{"$f":"IF(DataLog!$C800=\"Log value\",DataLog!M800,\"\")","v":""},{"$f":"IF(DataLog!$C800=\"Log value\",DataLog!N800,\"\")","v":""},{"$f":"IF(DataLog!$C800=\"Log value\",DataLog!O800,\"\")","v":""},{"$f":"IF(DataLog!$C800=\"Log value\",DataLog!P800,\"\")","v":""},{"$f":"IF(DataLog!$C800=\"Log value\",DataLog!Q800,\"\")","v":""},{"$f":"IF(DataLog!$C800=\"Log value\",DataLog!R800,\"\")","v":""},{"$f":"IF(DataLog!$C800=\"Log value\",DataLog!S800,\"\")","v":""},{"$f":"IF(DataLog!$C800=\"Log value\",DataLog!T800,\"\")","v":""},{"$f":"IF(DataLog!$C800=\"Log value\",DataLog!U800,\"\")","v":""},{"$f":"IF(DataLog!$C800=\"Log value\",DataLog!V800,\"\")","v":""},{"$f":"IF(DataLog!$C800=\"Log value\",DataLog!W800,\"\")","v":""},{"$f":"IF(DataLog!$C800=\"Log value\",DataLog!X800,\"\")","v":""},{"$f":"IF(DataLog!$C800=\"Log value\",DataLog!Y800,\"\")","v":""},{"$f":"IF(DataLog!$C800=\"Log value\",DataLog!Z800,\"\")","v":""},{"$f":"IF(DataLog!$C800=\"Log value\",DataLog!AA800,\"\")","v":""},{"$f":"IF(DataLog!$C800=\"Log value\",DataLog!AB800,\"\")","v":""},{"$f":"IF(DataLog!$C800=\"Log value\",DataLog!AC800,\"\")","v":""},{"$f":"IF(DataLog!$C800=\"Log value\",DataLog!AD800,\"\")","v":""},{"$f":"IF(DataLog!$C800=\"Log value\",DataLog!AE800,\"\")","v":""},{"$f":"IF(DataLog!$C800=\"Log value\",DataLog!AF800,\"\")","v":""},{"$f":"IF(DataLog!$C800=\"Log value\",DataLog!AG800,\"\")","v":""},{"$f":"IF(DataLog!$C800=\"Log value\",DataLog!AH800,\"\")","v":""},{"$f":"IF(DataLog!$C800=\"Log value\",DataLog!AI800,\"\")","v":""},{"$f":"IF(DataLog!$C800=\"Log value\",DataLog!AJ800,\"\")","v":""},{"$f":"IF(DataLog!$C800=\"Log value\",DataLog!AK800,\"\")","v":""},{"$f":"IF(DataLog!$C800=\"Log value\",DataLog!AL800,\"\")","v":""},{"$f":"IF(DataLog!$C800=\"Log value\",DataLog!AM800,\"\")","v":""}]
[null,null,null,null,null,null,{"$f":"IF(DataLog!$C801=\"Log value\",DataLog!D801&\"_\"&TEXT(DataLog!B801,\"åååå-mm-dd\"),\"\")","v":""},{"$f":"IF(DataLog!$C801=\"Log value\",DataLog!E801,\"\")","v":""},{"$f":"IF(DataLog!$C801=\"Log value\",DataLog!F801,\"\")","v":""},{"$f":"IF(DataLog!$C801=\"Log value\",DataLog!G801,\"\")","v":""},{"$f":"IF(DataLog!$C801=\"Log value\",DataLog!H801,\"\")","v":""},{"$f":"IF(DataLog!$C801=\"Log value\",DataLog!I801,\"\")","v":""},{"$f":"IF(DataLog!$C801=\"Log value\",DataLog!J801,\"\")","v":""},{"$f":"IF(DataLog!$C801=\"Log value\",DataLog!K801,\"\")","v":""},{"$f":"IF(DataLog!$C801=\"Log value\",DataLog!L801,\"\")","v":""},{"$f":"IF(DataLog!$C801=\"Log value\",DataLog!M801,\"\")","v":""},{"$f":"IF(DataLog!$C801=\"Log value\",DataLog!N801,\"\")","v":""},{"$f":"IF(DataLog!$C801=\"Log value\",DataLog!O801,\"\")","v":""},{"$f":"IF(DataLog!$C801=\"Log value\",DataLog!P801,\"\")","v":""},{"$f":"IF(DataLog!$C801=\"Log value\",DataLog!Q801,\"\")","v":""},{"$f":"IF(DataLog!$C801=\"Log value\",DataLog!R801,\"\")","v":""},{"$f":"IF(DataLog!$C801=\"Log value\",DataLog!S801,\"\")","v":""},{"$f":"IF(DataLog!$C801=\"Log value\",DataLog!T801,\"\")","v":""},{"$f":"IF(DataLog!$C801=\"Log value\",DataLog!U801,\"\")","v":""},{"$f":"IF(DataLog!$C801=\"Log value\",DataLog!V801,\"\")","v":""},{"$f":"IF(DataLog!$C801=\"Log value\",DataLog!W801,\"\")","v":""},{"$f":"IF(DataLog!$C801=\"Log value\",DataLog!X801,\"\")","v":""},{"$f":"IF(DataLog!$C801=\"Log value\",DataLog!Y801,\"\")","v":""},{"$f":"IF(DataLog!$C801=\"Log value\",DataLog!Z801,\"\")","v":""},{"$f":"IF(DataLog!$C801=\"Log value\",DataLog!AA801,\"\")","v":""},{"$f":"IF(DataLog!$C801=\"Log value\",DataLog!AB801,\"\")","v":""},{"$f":"IF(DataLog!$C801=\"Log value\",DataLog!AC801,\"\")","v":""},{"$f":"IF(DataLog!$C801=\"Log value\",DataLog!AD801,\"\")","v":""},{"$f":"IF(DataLog!$C801=\"Log value\",DataLog!AE801,\"\")","v":""},{"$f":"IF(DataLog!$C801=\"Log value\",DataLog!AF801,\"\")","v":""},{"$f":"IF(DataLog!$C801=\"Log value\",DataLog!AG801,\"\")","v":""},{"$f":"IF(DataLog!$C801=\"Log value\",DataLog!AH801,\"\")","v":""},{"$f":"IF(DataLog!$C801=\"Log value\",DataLog!AI801,\"\")","v":""},{"$f":"IF(DataLog!$C801=\"Log value\",DataLog!AJ801,\"\")","v":""},{"$f":"IF(DataLog!$C801=\"Log value\",DataLog!AK801,\"\")","v":""},{"$f":"IF(DataLog!$C801=\"Log value\",DataLog!AL801,\"\")","v":""},{"$f":"IF(DataLog!$C801=\"Log value\",DataLog!AM801,\"\")","v":""}]
[null,null,null,null,null,null,{"$f":"IF(DataLog!$C802=\"Log value\",DataLog!D802&\"_\"&TEXT(DataLog!B802,\"åååå-mm-dd\"),\"\")","v":""},{"$f":"IF(DataLog!$C802=\"Log value\",DataLog!E802,\"\")","v":""},{"$f":"IF(DataLog!$C802=\"Log value\",DataLog!F802,\"\")","v":""},{"$f":"IF(DataLog!$C802=\"Log value\",DataLog!G802,\"\")","v":""},{"$f":"IF(DataLog!$C802=\"Log value\",DataLog!H802,\"\")","v":""},{"$f":"IF(DataLog!$C802=\"Log value\",DataLog!I802,\"\")","v":""},{"$f":"IF(DataLog!$C802=\"Log value\",DataLog!J802,\"\")","v":""},{"$f":"IF(DataLog!$C802=\"Log value\",DataLog!K802,\"\")","v":""},{"$f":"IF(DataLog!$C802=\"Log value\",DataLog!L802,\"\")","v":""},{"$f":"IF(DataLog!$C802=\"Log value\",DataLog!M802,\"\")","v":""},{"$f":"IF(DataLog!$C802=\"Log value\",DataLog!N802,\"\")","v":""},{"$f":"IF(DataLog!$C802=\"Log value\",DataLog!O802,\"\")","v":""},{"$f":"IF(DataLog!$C802=\"Log value\",DataLog!P802,\"\")","v":""},{"$f":"IF(DataLog!$C802=\"Log value\",DataLog!Q802,\"\")","v":""},{"$f":"IF(DataLog!$C802=\"Log value\",DataLog!R802,\"\")","v":""},{"$f":"IF(DataLog!$C802=\"Log value\",DataLog!S802,\"\")","v":""},{"$f":"IF(DataLog!$C802=\"Log value\",DataLog!T802,\"\")","v":""},{"$f":"IF(DataLog!$C802=\"Log value\",DataLog!U802,\"\")","v":""},{"$f":"IF(DataLog!$C802=\"Log value\",DataLog!V802,\"\")","v":""},{"$f":"IF(DataLog!$C802=\"Log value\",DataLog!W802,\"\")","v":""},{"$f":"IF(DataLog!$C802=\"Log value\",DataLog!X802,\"\")","v":""},{"$f":"IF(DataLog!$C802=\"Log value\",DataLog!Y802,\"\")","v":""},{"$f":"IF(DataLog!$C802=\"Log value\",DataLog!Z802,\"\")","v":""},{"$f":"IF(DataLog!$C802=\"Log value\",DataLog!AA802,\"\")","v":""},{"$f":"IF(DataLog!$C802=\"Log value\",DataLog!AB802,\"\")","v":""},{"$f":"IF(DataLog!$C802=\"Log value\",DataLog!AC802,\"\")","v":""},{"$f":"IF(DataLog!$C802=\"Log value\",DataLog!AD802,\"\")","v":""},{"$f":"IF(DataLog!$C802=\"Log value\",DataLog!AE802,\"\")","v":""},{"$f":"IF(DataLog!$C802=\"Log value\",DataLog!AF802,\"\")","v":""},{"$f":"IF(DataLog!$C802=\"Log value\",DataLog!AG802,\"\")","v":""},{"$f":"IF(DataLog!$C802=\"Log value\",DataLog!AH802,\"\")","v":""},{"$f":"IF(DataLog!$C802=\"Log value\",DataLog!AI802,\"\")","v":""},{"$f":"IF(DataLog!$C802=\"Log value\",DataLog!AJ802,\"\")","v":""},{"$f":"IF(DataLog!$C802=\"Log value\",DataLog!AK802,\"\")","v":""},{"$f":"IF(DataLog!$C802=\"Log value\",DataLog!AL802,\"\")","v":""},{"$f":"IF(DataLog!$C802=\"Log value\",DataLog!AM802,\"\")","v":""}]
[null,null,null,null,null,null,{"$f":"IF(DataLog!$C803=\"Log value\",DataLog!D803&\"_\"&TEXT(DataLog!B803,\"åååå-mm-dd\"),\"\")","v":""},{"$f":"IF(DataLog!$C803=\"Log value\",DataLog!E803,\"\")","v":""},{"$f":"IF(DataLog!$C803=\"Log value\",DataLog!F803,\"\")","v":""},{"$f":"IF(DataLog!$C803=\"Log value\",DataLog!G803,\"\")","v":""},{"$f":"IF(DataLog!$C803=\"Log value\",DataLog!H803,\"\")","v":""},{"$f":"IF(DataLog!$C803=\"Log value\",DataLog!I803,\"\")","v":""},{"$f":"IF(DataLog!$C803=\"Log value\",DataLog!J803,\"\")","v":""},{"$f":"IF(DataLog!$C803=\"Log value\",DataLog!K803,\"\")","v":""},{"$f":"IF(DataLog!$C803=\"Log value\",DataLog!L803,\"\")","v":""},{"$f":"IF(DataLog!$C803=\"Log value\",DataLog!M803,\"\")","v":""},{"$f":"IF(DataLog!$C803=\"Log value\",DataLog!N803,\"\")","v":""},{"$f":"IF(DataLog!$C803=\"Log value\",DataLog!O803,\"\")","v":""},{"$f":"IF(DataLog!$C803=\"Log value\",DataLog!P803,\"\")","v":""},{"$f":"IF(DataLog!$C803=\"Log value\",DataLog!Q803,\"\")","v":""},{"$f":"IF(DataLog!$C803=\"Log value\",DataLog!R803,\"\")","v":""},{"$f":"IF(DataLog!$C803=\"Log value\",DataLog!S803,\"\")","v":""},{"$f":"IF(DataLog!$C803=\"Log value\",DataLog!T803,\"\")","v":""},{"$f":"IF(DataLog!$C803=\"Log value\",DataLog!U803,\"\")","v":""},{"$f":"IF(DataLog!$C803=\"Log value\",DataLog!V803,\"\")","v":""},{"$f":"IF(DataLog!$C803=\"Log value\",DataLog!W803,\"\")","v":""},{"$f":"IF(DataLog!$C803=\"Log value\",DataLog!X803,\"\")","v":""},{"$f":"IF(DataLog!$C803=\"Log value\",DataLog!Y803,\"\")","v":""},{"$f":"IF(DataLog!$C803=\"Log value\",DataLog!Z803,\"\")","v":""},{"$f":"IF(DataLog!$C803=\"Log value\",DataLog!AA803,\"\")","v":""},{"$f":"IF(DataLog!$C803=\"Log value\",DataLog!AB803,\"\")","v":""},{"$f":"IF(DataLog!$C803=\"Log value\",DataLog!AC803,\"\")","v":""},{"$f":"IF(DataLog!$C803=\"Log value\",DataLog!AD803,\"\")","v":""},{"$f":"IF(DataLog!$C803=\"Log value\",DataLog!AE803,\"\")","v":""},{"$f":"IF(DataLog!$C803=\"Log value\",DataLog!AF803,\"\")","v":""},{"$f":"IF(DataLog!$C803=\"Log value\",DataLog!AG803,\"\")","v":""},{"$f":"IF(DataLog!$C803=\"Log value\",DataLog!AH803,\"\")","v":""},{"$f":"IF(DataLog!$C803=\"Log value\",DataLog!AI803,\"\")","v":""},{"$f":"IF(DataLog!$C803=\"Log value\",DataLog!AJ803,\"\")","v":""},{"$f":"IF(DataLog!$C803=\"Log value\",DataLog!AK803,\"\")","v":""},{"$f":"IF(DataLog!$C803=\"Log value\",DataLog!AL803,\"\")","v":""},{"$f":"IF(DataLog!$C803=\"Log value\",DataLog!AM803,\"\")","v":""}]
[null,null,null,null,null,null,{"$f":"IF(DataLog!$C804=\"Log value\",DataLog!D804&\"_\"&TEXT(DataLog!B804,\"åååå-mm-dd\"),\"\")","v":""},{"$f":"IF(DataLog!$C804=\"Log value\",DataLog!E804,\"\")","v":""},{"$f":"IF(DataLog!$C804=\"Log value\",DataLog!F804,\"\")","v":""},{"$f":"IF(DataLog!$C804=\"Log value\",DataLog!G804,\"\")","v":""},{"$f":"IF(DataLog!$C804=\"Log value\",DataLog!H804,\"\")","v":""},{"$f":"IF(DataLog!$C804=\"Log value\",DataLog!I804,\"\")","v":""},{"$f":"IF(DataLog!$C804=\"Log value\",DataLog!J804,\"\")","v":""},{"$f":"IF(DataLog!$C804=\"Log value\",DataLog!K804,\"\")","v":""},{"$f":"IF(DataLog!$C804=\"Log value\",DataLog!L804,\"\")","v":""},{"$f":"IF(DataLog!$C804=\"Log value\",DataLog!M804,\"\")","v":""},{"$f":"IF(DataLog!$C804=\"Log value\",DataLog!N804,\"\")","v":""},{"$f":"IF(DataLog!$C804=\"Log value\",DataLog!O804,\"\")","v":""},{"$f":"IF(DataLog!$C804=\"Log value\",DataLog!P804,\"\")","v":""},{"$f":"IF(DataLog!$C804=\"Log value\",DataLog!Q804,\"\")","v":""},{"$f":"IF(DataLog!$C804=\"Log value\",DataLog!R804,\"\")","v":""},{"$f":"IF(DataLog!$C804=\"Log value\",DataLog!S804,\"\")","v":""},{"$f":"IF(DataLog!$C804=\"Log value\",DataLog!T804,\"\")","v":""},{"$f":"IF(DataLog!$C804=\"Log value\",DataLog!U804,\"\")","v":""},{"$f":"IF(DataLog!$C804=\"Log value\",DataLog!V804,\"\")","v":""},{"$f":"IF(DataLog!$C804=\"Log value\",DataLog!W804,\"\")","v":""},{"$f":"IF(DataLog!$C804=\"Log value\",DataLog!X804,\"\")","v":""},{"$f":"IF(DataLog!$C804=\"Log value\",DataLog!Y804,\"\")","v":""},{"$f":"IF(DataLog!$C804=\"Log value\",DataLog!Z804,\"\")","v":""},{"$f":"IF(DataLog!$C804=\"Log value\",DataLog!AA804,\"\")","v":""},{"$f":"IF(DataLog!$C804=\"Log value\",DataLog!AB804,\"\")","v":""},{"$f":"IF(DataLog!$C804=\"Log value\",DataLog!AC804,\"\")","v":""},{"$f":"IF(DataLog!$C804=\"Log value\",DataLog!AD804,\"\")","v":""},{"$f":"IF(DataLog!$C804=\"Log value\",DataLog!AE804,\"\")","v":""},{"$f":"IF(DataLog!$C804=\"Log value\",DataLog!AF804,\"\")","v":""},{"$f":"IF(DataLog!$C804=\"Log value\",DataLog!AG804,\"\")","v":""},{"$f":"IF(DataLog!$C804=\"Log value\",DataLog!AH804,\"\")","v":""},{"$f":"IF(DataLog!$C804=\"Log value\",DataLog!AI804,\"\")","v":""},{"$f":"IF(DataLog!$C804=\"Log value\",DataLog!AJ804,\"\")","v":""},{"$f":"IF(DataLog!$C804=\"Log value\",DataLog!AK804,\"\")","v":""},{"$f":"IF(DataLog!$C804=\"Log value\",DataLog!AL804,\"\")","v":""},{"$f":"IF(DataLog!$C804=\"Log value\",DataLog!AM804,\"\")","v":""}]
[null,null,null,null,null,null,{"$f":"IF(DataLog!$C805=\"Log value\",DataLog!D805&\"_\"&TEXT(DataLog!B805,\"åååå-mm-dd\"),\"\")","v":""},{"$f":"IF(DataLog!$C805=\"Log value\",DataLog!E805,\"\")","v":""},{"$f":"IF(DataLog!$C805=\"Log value\",DataLog!F805,\"\")","v":""},{"$f":"IF(DataLog!$C805=\"Log value\",DataLog!G805,\"\")","v":""},{"$f":"IF(DataLog!$C805=\"Log value\",DataLog!H805,\"\")","v":""},{"$f":"IF(DataLog!$C805=\"Log value\",DataLog!I805,\"\")","v":""},{"$f":"IF(DataLog!$C805=\"Log value\",DataLog!J805,\"\")","v":""},{"$f":"IF(DataLog!$C805=\"Log value\",DataLog!K805,\"\")","v":""},{"$f":"IF(DataLog!$C805=\"Log value\",DataLog!L805,\"\")","v":""},{"$f":"IF(DataLog!$C805=\"Log value\",DataLog!M805,\"\")","v":""},{"$f":"IF(DataLog!$C805=\"Log value\",DataLog!N805,\"\")","v":""},{"$f":"IF(DataLog!$C805=\"Log value\",DataLog!O805,\"\")","v":""},{"$f":"IF(DataLog!$C805=\"Log value\",DataLog!P805,\"\")","v":""},{"$f":"IF(DataLog!$C805=\"Log value\",DataLog!Q805,\"\")","v":""},{"$f":"IF(DataLog!$C805=\"Log value\",DataLog!R805,\"\")","v":""},{"$f":"IF(DataLog!$C805=\"Log value\",DataLog!S805,\"\")","v":""},{"$f":"IF(DataLog!$C805=\"Log value\",DataLog!T805,\"\")","v":""},{"$f":"IF(DataLog!$C805=\"Log value\",DataLog!U805,\"\")","v":""},{"$f":"IF(DataLog!$C805=\"Log value\",DataLog!V805,\"\")","v":""},{"$f":"IF(DataLog!$C805=\"Log value\",DataLog!W805,\"\")","v":""},{"$f":"IF(DataLog!$C805=\"Log value\",DataLog!X805,\"\")","v":""},{"$f":"IF(DataLog!$C805=\"Log value\",DataLog!Y805,\"\")","v":""},{"$f":"IF(DataLog!$C805=\"Log value\",DataLog!Z805,\"\")","v":""},{"$f":"IF(DataLog!$C805=\"Log value\",DataLog!AA805,\"\")","v":""},{"$f":"IF(DataLog!$C805=\"Log value\",DataLog!AB805,\"\")","v":""},{"$f":"IF(DataLog!$C805=\"Log value\",DataLog!AC805,\"\")","v":""},{"$f":"IF(DataLog!$C805=\"Log value\",DataLog!AD805,\"\")","v":""},{"$f":"IF(DataLog!$C805=\"Log value\",DataLog!AE805,\"\")","v":""},{"$f":"IF(DataLog!$C805=\"Log value\",DataLog!AF805,\"\")","v":""},{"$f":"IF(DataLog!$C805=\"Log value\",DataLog!AG805,\"\")","v":""},{"$f":"IF(DataLog!$C805=\"Log value\",DataLog!AH805,\"\")","v":""},{"$f":"IF(DataLog!$C805=\"Log value\",DataLog!AI805,\"\")","v":""},{"$f":"IF(DataLog!$C805=\"Log value\",DataLog!AJ805,\"\")","v":""},{"$f":"IF(DataLog!$C805=\"Log value\",DataLog!AK805,\"\")","v":""},{"$f":"IF(DataLog!$C805=\"Log value\",DataLog!AL805,\"\")","v":""},{"$f":"IF(DataLog!$C805=\"Log value\",DataLog!AM805,\"\")","v":""}]
[null,null,null,null,null,null,{"$f":"IF(DataLog!$C806=\"Log value\",DataLog!D806&\"_\"&TEXT(DataLog!B806,\"åååå-mm-dd\"),\"\")","v":""},{"$f":"IF(DataLog!$C806=\"Log value\",DataLog!E806,\"\")","v":""},{"$f":"IF(DataLog!$C806=\"Log value\",DataLog!F806,\"\")","v":""},{"$f":"IF(DataLog!$C806=\"Log value\",DataLog!G806,\"\")","v":""},{"$f":"IF(DataLog!$C806=\"Log value\",DataLog!H806,\"\")","v":""},{"$f":"IF(DataLog!$C806=\"Log value\",DataLog!I806,\"\")","v":""},{"$f":"IF(DataLog!$C806=\"Log value\",DataLog!J806,\"\")","v":""},{"$f":"IF(DataLog!$C806=\"Log value\",DataLog!K806,\"\")","v":""},{"$f":"IF(DataLog!$C806=\"Log value\",DataLog!L806,\"\")","v":""},{"$f":"IF(DataLog!$C806=\"Log value\",DataLog!M806,\"\")","v":""},{"$f":"IF(DataLog!$C806=\"Log value\",DataLog!N806,\"\")","v":""},{"$f":"IF(DataLog!$C806=\"Log value\",DataLog!O806,\"\")","v":""},{"$f":"IF(DataLog!$C806=\"Log value\",DataLog!P806,\"\")","v":""},{"$f":"IF(DataLog!$C806=\"Log value\",DataLog!Q806,\"\")","v":""},{"$f":"IF(DataLog!$C806=\"Log value\",DataLog!R806,\"\")","v":""},{"$f":"IF(DataLog!$C806=\"Log value\",DataLog!S806,\"\")","v":""},{"$f":"IF(DataLog!$C806=\"Log value\",DataLog!T806,\"\")","v":""},{"$f":"IF(DataLog!$C806=\"Log value\",DataLog!U806,\"\")","v":""},{"$f":"IF(DataLog!$C806=\"Log value\",DataLog!V806,\"\")","v":""},{"$f":"IF(DataLog!$C806=\"Log value\",DataLog!W806,\"\")","v":""},{"$f":"IF(DataLog!$C806=\"Log value\",DataLog!X806,\"\")","v":""},{"$f":"IF(DataLog!$C806=\"Log value\",DataLog!Y806,\"\")","v":""},{"$f":"IF(DataLog!$C806=\"Log value\",DataLog!Z806,\"\")","v":""},{"$f":"IF(DataLog!$C806=\"Log value\",DataLog!AA806,\"\")","v":""},{"$f":"IF(DataLog!$C806=\"Log value\",DataLog!AB806,\"\")","v":""},{"$f":"IF(DataLog!$C806=\"Log value\",DataLog!AC806,\"\")","v":""},{"$f":"IF(DataLog!$C806=\"Log value\",DataLog!AD806,\"\")","v":""},{"$f":"IF(DataLog!$C806=\"Log value\",DataLog!AE806,\"\")","v":""},{"$f":"IF(DataLog!$C806=\"Log value\",DataLog!AF806,\"\")","v":""},{"$f":"IF(DataLog!$C806=\"Log value\",DataLog!AG806,\"\")","v":""},{"$f":"IF(DataLog!$C806=\"Log value\",DataLog!AH806,\"\")","v":""},{"$f":"IF(DataLog!$C806=\"Log value\",DataLog!AI806,\"\")","v":""},{"$f":"IF(DataLog!$C806=\"Log value\",DataLog!AJ806,\"\")","v":""},{"$f":"IF(DataLog!$C806=\"Log value\",DataLog!AK806,\"\")","v":""},{"$f":"IF(DataLog!$C806=\"Log value\",DataLog!AL806,\"\")","v":""},{"$f":"IF(DataLog!$C806=\"Log value\",DataLog!AM806,\"\")","v":""}]
[null,null,null,null,null,null,{"$f":"IF(DataLog!$C807=\"Log value\",DataLog!D807&\"_\"&TEXT(DataLog!B807,\"åååå-mm-dd\"),\"\")","v":""},{"$f":"IF(DataLog!$C807=\"Log value\",DataLog!E807,\"\")","v":""},{"$f":"IF(DataLog!$C807=\"Log value\",DataLog!F807,\"\")","v":""},{"$f":"IF(DataLog!$C807=\"Log value\",DataLog!G807,\"\")","v":""},{"$f":"IF(DataLog!$C807=\"Log value\",DataLog!H807,\"\")","v":""},{"$f":"IF(DataLog!$C807=\"Log value\",DataLog!I807,\"\")","v":""},{"$f":"IF(DataLog!$C807=\"Log value\",DataLog!J807,\"\")","v":""},{"$f":"IF(DataLog!$C807=\"Log value\",DataLog!K807,\"\")","v":""},{"$f":"IF(DataLog!$C807=\"Log value\",DataLog!L807,\"\")","v":""},{"$f":"IF(DataLog!$C807=\"Log value\",DataLog!M807,\"\")","v":""},{"$f":"IF(DataLog!$C807=\"Log value\",DataLog!N807,\"\")","v":""},{"$f":"IF(DataLog!$C807=\"Log value\",DataLog!O807,\"\")","v":""},{"$f":"IF(DataLog!$C807=\"Log value\",DataLog!P807,\"\")","v":""},{"$f":"IF(DataLog!$C807=\"Log value\",DataLog!Q807,\"\")","v":""},{"$f":"IF(DataLog!$C807=\"Log value\",DataLog!R807,\"\")","v":""},{"$f":"IF(DataLog!$C807=\"Log value\",DataLog!S807,\"\")","v":""},{"$f":"IF(DataLog!$C807=\"Log value\",DataLog!T807,\"\")","v":""},{"$f":"IF(DataLog!$C807=\"Log value\",DataLog!U807,\"\")","v":""},{"$f":"IF(DataLog!$C807=\"Log value\",DataLog!V807,\"\")","v":""},{"$f":"IF(DataLog!$C807=\"Log value\",DataLog!W807,\"\")","v":""},{"$f":"IF(DataLog!$C807=\"Log value\",DataLog!X807,\"\")","v":""},{"$f":"IF(DataLog!$C807=\"Log value\",DataLog!Y807,\"\")","v":""},{"$f":"IF(DataLog!$C807=\"Log value\",DataLog!Z807,\"\")","v":""},{"$f":"IF(DataLog!$C807=\"Log value\",DataLog!AA807,\"\")","v":""},{"$f":"IF(DataLog!$C807=\"Log value\",DataLog!AB807,\"\")","v":""},{"$f":"IF(DataLog!$C807=\"Log value\",DataLog!AC807,\"\")","v":""},{"$f":"IF(DataLog!$C807=\"Log value\",DataLog!AD807,\"\")","v":""},{"$f":"IF(DataLog!$C807=\"Log value\",DataLog!AE807,\"\")","v":""},{"$f":"IF(DataLog!$C807=\"Log value\",DataLog!AF807,\"\")","v":""},{"$f":"IF(DataLog!$C807=\"Log value\",DataLog!AG807,\"\")","v":""},{"$f":"IF(DataLog!$C807=\"Log value\",DataLog!AH807,\"\")","v":""},{"$f":"IF(DataLog!$C807=\"Log value\",DataLog!AI807,\"\")","v":""},{"$f":"IF(DataLog!$C807=\"Log value\",DataLog!AJ807,\"\")","v":""},{"$f":"IF(DataLog!$C807=\"Log value\",DataLog!AK807,\"\")","v":""},{"$f":"IF(DataLog!$C807=\"Log value\",DataLog!AL807,\"\")","v":""},{"$f":"IF(DataLog!$C807=\"Log value\",DataLog!AM807,\"\")","v":""}]
[null,null,null,null,null,null,{"$f":"IF(DataLog!$C808=\"Log value\",DataLog!D808&\"_\"&TEXT(DataLog!B808,\"åååå-mm-dd\"),\"\")","v":""},{"$f":"IF(DataLog!$C808=\"Log value\",DataLog!E808,\"\")","v":""},{"$f":"IF(DataLog!$C808=\"Log value\",DataLog!F808,\"\")","v":""},{"$f":"IF(DataLog!$C808=\"Log value\",DataLog!G808,\"\")","v":""},{"$f":"IF(DataLog!$C808=\"Log value\",DataLog!H808,\"\")","v":""},{"$f":"IF(DataLog!$C808=\"Log value\",DataLog!I808,\"\")","v":""},{"$f":"IF(DataLog!$C808=\"Log value\",DataLog!J808,\"\")","v":""},{"$f":"IF(DataLog!$C808=\"Log value\",DataLog!K808,\"\")","v":""},{"$f":"IF(DataLog!$C808=\"Log value\",DataLog!L808,\"\")","v":""},{"$f":"IF(DataLog!$C808=\"Log value\",DataLog!M808,\"\")","v":""},{"$f":"IF(DataLog!$C808=\"Log value\",DataLog!N808,\"\")","v":""},{"$f":"IF(DataLog!$C808=\"Log value\",DataLog!O808,\"\")","v":""},{"$f":"IF(DataLog!$C808=\"Log value\",DataLog!P808,\"\")","v":""},{"$f":"IF(DataLog!$C808=\"Log value\",DataLog!Q808,\"\")","v":""},{"$f":"IF(DataLog!$C808=\"Log value\",DataLog!R808,\"\")","v":""},{"$f":"IF(DataLog!$C808=\"Log value\",DataLog!S808,\"\")","v":""},{"$f":"IF(DataLog!$C808=\"Log value\",DataLog!T808,\"\")","v":""},{"$f":"IF(DataLog!$C808=\"Log value\",DataLog!U808,\"\")","v":""},{"$f":"IF(DataLog!$C808=\"Log value\",DataLog!V808,\"\")","v":""},{"$f":"IF(DataLog!$C808=\"Log value\",DataLog!W808,\"\")","v":""},{"$f":"IF(DataLog!$C808=\"Log value\",DataLog!X808,\"\")","v":""},{"$f":"IF(DataLog!$C808=\"Log value\",DataLog!Y808,\"\")","v":""},{"$f":"IF(DataLog!$C808=\"Log value\",DataLog!Z808,\"\")","v":""},{"$f":"IF(DataLog!$C808=\"Log value\",DataLog!AA808,\"\")","v":""},{"$f":"IF(DataLog!$C808=\"Log value\",DataLog!AB808,\"\")","v":""},{"$f":"IF(DataLog!$C808=\"Log value\",DataLog!AC808,\"\")","v":""},{"$f":"IF(DataLog!$C808=\"Log value\",DataLog!AD808,\"\")","v":""},{"$f":"IF(DataLog!$C808=\"Log value\",DataLog!AE808,\"\")","v":""},{"$f":"IF(DataLog!$C808=\"Log value\",DataLog!AF808,\"\")","v":""},{"$f":"IF(DataLog!$C808=\"Log value\",DataLog!AG808,\"\")","v":""},{"$f":"IF(DataLog!$C808=\"Log value\",DataLog!AH808,\"\")","v":""},{"$f":"IF(DataLog!$C808=\"Log value\",DataLog!AI808,\"\")","v":""},{"$f":"IF(DataLog!$C808=\"Log value\",DataLog!AJ808,\"\")","v":""},{"$f":"IF(DataLog!$C808=\"Log value\",DataLog!AK808,\"\")","v":""},{"$f":"IF(DataLog!$C808=\"Log value\",DataLog!AL808,\"\")","v":""},{"$f":"IF(DataLog!$C808=\"Log value\",DataLog!AM808,\"\")","v":""}]
[null,null,null,null,null,null,{"$f":"IF(DataLog!$C809=\"Log value\",DataLog!D809&\"_\"&TEXT(DataLog!B809,\"åååå-mm-dd\"),\"\")","v":""},{"$f":"IF(DataLog!$C809=\"Log value\",DataLog!E809,\"\")","v":""},{"$f":"IF(DataLog!$C809=\"Log value\",DataLog!F809,\"\")","v":""},{"$f":"IF(DataLog!$C809=\"Log value\",DataLog!G809,\"\")","v":""},{"$f":"IF(DataLog!$C809=\"Log value\",DataLog!H809,\"\")","v":""},{"$f":"IF(DataLog!$C809=\"Log value\",DataLog!I809,\"\")","v":""},{"$f":"IF(DataLog!$C809=\"Log value\",DataLog!J809,\"\")","v":""},{"$f":"IF(DataLog!$C809=\"Log value\",DataLog!K809,\"\")","v":""},{"$f":"IF(DataLog!$C809=\"Log value\",DataLog!L809,\"\")","v":""},{"$f":"IF(DataLog!$C809=\"Log value\",DataLog!M809,\"\")","v":""},{"$f":"IF(DataLog!$C809=\"Log value\",DataLog!N809,\"\")","v":""},{"$f":"IF(DataLog!$C809=\"Log value\",DataLog!O809,\"\")","v":""},{"$f":"IF(DataLog!$C809=\"Log value\",DataLog!P809,\"\")","v":""},{"$f":"IF(DataLog!$C809=\"Log value\",DataLog!Q809,\"\")","v":""},{"$f":"IF(DataLog!$C809=\"Log value\",DataLog!R809,\"\")","v":""},{"$f":"IF(DataLog!$C809=\"Log value\",DataLog!S809,\"\")","v":""},{"$f":"IF(DataLog!$C809=\"Log value\",DataLog!T809,\"\")","v":""},{"$f":"IF(DataLog!$C809=\"Log value\",DataLog!U809,\"\")","v":""},{"$f":"IF(DataLog!$C809=\"Log value\",DataLog!V809,\"\")","v":""},{"$f":"IF(DataLog!$C809=\"Log value\",DataLog!W809,\"\")","v":""},{"$f":"IF(DataLog!$C809=\"Log value\",DataLog!X809,\"\")","v":""},{"$f":"IF(DataLog!$C809=\"Log value\",DataLog!Y809,\"\")","v":""},{"$f":"IF(DataLog!$C809=\"Log value\",DataLog!Z809,\"\")","v":""},{"$f":"IF(DataLog!$C809=\"Log value\",DataLog!AA809,\"\")","v":""},{"$f":"IF(DataLog!$C809=\"Log value\",DataLog!AB809,\"\")","v":""},{"$f":"IF(DataLog!$C809=\"Log value\",DataLog!AC809,\"\")","v":""},{"$f":"IF(DataLog!$C809=\"Log value\",DataLog!AD809,\"\")","v":""},{"$f":"IF(DataLog!$C809=\"Log value\",DataLog!AE809,\"\")","v":""},{"$f":"IF(DataLog!$C809=\"Log value\",DataLog!AF809,\"\")","v":""},{"$f":"IF(DataLog!$C809=\"Log value\",DataLog!AG809,\"\")","v":""},{"$f":"IF(DataLog!$C809=\"Log value\",DataLog!AH809,\"\")","v":""},{"$f":"IF(DataLog!$C809=\"Log value\",DataLog!AI809,\"\")","v":""},{"$f":"IF(DataLog!$C809=\"Log value\",DataLog!AJ809,\"\")","v":""},{"$f":"IF(DataLog!$C809=\"Log value\",DataLog!AK809,\"\")","v":""},{"$f":"IF(DataLog!$C809=\"Log value\",DataLog!AL809,\"\")","v":""},{"$f":"IF(DataLog!$C809=\"Log value\",DataLog!AM809,\"\")","v":""}]
[null,null,null,null,null,null,{"$f":"IF(DataLog!$C810=\"Log value\",DataLog!D810&\"_\"&TEXT(DataLog!B810,\"åååå-mm-dd\"),\"\")","v":""},{"$f":"IF(DataLog!$C810=\"Log value\",DataLog!E810,\"\")","v":""},{"$f":"IF(DataLog!$C810=\"Log value\",DataLog!F810,\"\")","v":""},{"$f":"IF(DataLog!$C810=\"Log value\",DataLog!G810,\"\")","v":""},{"$f":"IF(DataLog!$C810=\"Log value\",DataLog!H810,\"\")","v":""},{"$f":"IF(DataLog!$C810=\"Log value\",DataLog!I810,\"\")","v":""},{"$f":"IF(DataLog!$C810=\"Log value\",DataLog!J810,\"\")","v":""},{"$f":"IF(DataLog!$C810=\"Log value\",DataLog!K810,\"\")","v":""},{"$f":"IF(DataLog!$C810=\"Log value\",DataLog!L810,\"\")","v":""},{"$f":"IF(DataLog!$C810=\"Log value\",DataLog!M810,\"\")","v":""},{"$f":"IF(DataLog!$C810=\"Log value\",DataLog!N810,\"\")","v":""},{"$f":"IF(DataLog!$C810=\"Log value\",DataLog!O810,\"\")","v":""},{"$f":"IF(DataLog!$C810=\"Log value\",DataLog!P810,\"\")","v":""},{"$f":"IF(DataLog!$C810=\"Log value\",DataLog!Q810,\"\")","v":""},{"$f":"IF(DataLog!$C810=\"Log value\",DataLog!R810,\"\")","v":""},{"$f":"IF(DataLog!$C810=\"Log value\",DataLog!S810,\"\")","v":""},{"$f":"IF(DataLog!$C810=\"Log value\",DataLog!T810,\"\")","v":""},{"$f":"IF(DataLog!$C810=\"Log value\",DataLog!U810,\"\")","v":""},{"$f":"IF(DataLog!$C810=\"Log value\",DataLog!V810,\"\")","v":""},{"$f":"IF(DataLog!$C810=\"Log value\",DataLog!W810,\"\")","v":""},{"$f":"IF(DataLog!$C810=\"Log value\",DataLog!X810,\"\")","v":""},{"$f":"IF(DataLog!$C810=\"Log value\",DataLog!Y810,\"\")","v":""},{"$f":"IF(DataLog!$C810=\"Log value\",DataLog!Z810,\"\")","v":""},{"$f":"IF(DataLog!$C810=\"Log value\",DataLog!AA810,\"\")","v":""},{"$f":"IF(DataLog!$C810=\"Log value\",DataLog!AB810,\"\")","v":""},{"$f":"IF(DataLog!$C810=\"Log value\",DataLog!AC810,\"\")","v":""},{"$f":"IF(DataLog!$C810=\"Log value\",DataLog!AD810,\"\")","v":""},{"$f":"IF(DataLog!$C810=\"Log value\",DataLog!AE810,\"\")","v":""},{"$f":"IF(DataLog!$C810=\"Log value\",DataLog!AF810,\"\")","v":""},{"$f":"IF(DataLog!$C810=\"Log value\",DataLog!AG810,\"\")","v":""},{"$f":"IF(DataLog!$C810=\"Log value\",DataLog!AH810,\"\")","v":""},{"$f":"IF(DataLog!$C810=\"Log value\",DataLog!AI810,\"\")","v":""},{"$f":"IF(DataLog!$C810=\"Log value\",DataLog!AJ810,\"\")","v":""},{"$f":"IF(DataLog!$C810=\"Log value\",DataLog!AK810,\"\")","v":""},{"$f":"IF(DataLog!$C810=\"Log value\",DataLog!AL810,\"\")","v":""},{"$f":"IF(DataLog!$C810=\"Log value\",DataLog!AM810,\"\")","v":""}]
[null,null,null,null,null,null,{"$f":"IF(DataLog!$C811=\"Log value\",DataLog!D811&\"_\"&TEXT(DataLog!B811,\"åååå-mm-dd\"),\"\")","v":""},{"$f":"IF(DataLog!$C811=\"Log value\",DataLog!E811,\"\")","v":""},{"$f":"IF(DataLog!$C811=\"Log value\",DataLog!F811,\"\")","v":""},{"$f":"IF(DataLog!$C811=\"Log value\",DataLog!G811,\"\")","v":""},{"$f":"IF(DataLog!$C811=\"Log value\",DataLog!H811,\"\")","v":""},{"$f":"IF(DataLog!$C811=\"Log value\",DataLog!I811,\"\")","v":""},{"$f":"IF(DataLog!$C811=\"Log value\",DataLog!J811,\"\")","v":""},{"$f":"IF(DataLog!$C811=\"Log value\",DataLog!K811,\"\")","v":""},{"$f":"IF(DataLog!$C811=\"Log value\",DataLog!L811,\"\")","v":""},{"$f":"IF(DataLog!$C811=\"Log value\",DataLog!M811,\"\")","v":""},{"$f":"IF(DataLog!$C811=\"Log value\",DataLog!N811,\"\")","v":""},{"$f":"IF(DataLog!$C811=\"Log value\",DataLog!O811,\"\")","v":""},{"$f":"IF(DataLog!$C811=\"Log value\",DataLog!P811,\"\")","v":""},{"$f":"IF(DataLog!$C811=\"Log value\",DataLog!Q811,\"\")","v":""},{"$f":"IF(DataLog!$C811=\"Log value\",DataLog!R811,\"\")","v":""},{"$f":"IF(DataLog!$C811=\"Log value\",DataLog!S811,\"\")","v":""},{"$f":"IF(DataLog!$C811=\"Log value\",DataLog!T811,\"\")","v":""},{"$f":"IF(DataLog!$C811=\"Log value\",DataLog!U811,\"\")","v":""},{"$f":"IF(DataLog!$C811=\"Log value\",DataLog!V811,\"\")","v":""},{"$f":"IF(DataLog!$C811=\"Log value\",DataLog!W811,\"\")","v":""},{"$f":"IF(DataLog!$C811=\"Log value\",DataLog!X811,\"\")","v":""},{"$f":"IF(DataLog!$C811=\"Log value\",DataLog!Y811,\"\")","v":""},{"$f":"IF(DataLog!$C811=\"Log value\",DataLog!Z811,\"\")","v":""},{"$f":"IF(DataLog!$C811=\"Log value\",DataLog!AA811,\"\")","v":""},{"$f":"IF(DataLog!$C811=\"Log value\",DataLog!AB811,\"\")","v":""},{"$f":"IF(DataLog!$C811=\"Log value\",DataLog!AC811,\"\")","v":""},{"$f":"IF(DataLog!$C811=\"Log value\",DataLog!AD811,\"\")","v":""},{"$f":"IF(DataLog!$C811=\"Log value\",DataLog!AE811,\"\")","v":""},{"$f":"IF(DataLog!$C811=\"Log value\",DataLog!AF811,\"\")","v":""},{"$f":"IF(DataLog!$C811=\"Log value\",DataLog!AG811,\"\")","v":""},{"$f":"IF(DataLog!$C811=\"Log value\",DataLog!AH811,\"\")","v":""},{"$f":"IF(DataLog!$C811=\"Log value\",DataLog!AI811,\"\")","v":""},{"$f":"IF(DataLog!$C811=\"Log value\",DataLog!AJ811,\"\")","v":""},{"$f":"IF(DataLog!$C811=\"Log value\",DataLog!AK811,\"\")","v":""},{"$f":"IF(DataLog!$C811=\"Log value\",DataLog!AL811,\"\")","v":""},{"$f":"IF(DataLog!$C811=\"Log value\",DataLog!AM811,\"\")","v":""}]
[null,null,null,null,null,null,{"$f":"IF(DataLog!$C812=\"Log value\",DataLog!D812&\"_\"&TEXT(DataLog!B812,\"åååå-mm-dd\"),\"\")","v":""},{"$f":"IF(DataLog!$C812=\"Log value\",DataLog!E812,\"\")","v":""},{"$f":"IF(DataLog!$C812=\"Log value\",DataLog!F812,\"\")","v":""},{"$f":"IF(DataLog!$C812=\"Log value\",DataLog!G812,\"\")","v":""},{"$f":"IF(DataLog!$C812=\"Log value\",DataLog!H812,\"\")","v":""},{"$f":"IF(DataLog!$C812=\"Log value\",DataLog!I812,\"\")","v":""},{"$f":"IF(DataLog!$C812=\"Log value\",DataLog!J812,\"\")","v":""},{"$f":"IF(DataLog!$C812=\"Log value\",DataLog!K812,\"\")","v":""},{"$f":"IF(DataLog!$C812=\"Log value\",DataLog!L812,\"\")","v":""},{"$f":"IF(DataLog!$C812=\"Log value\",DataLog!M812,\"\")","v":""},{"$f":"IF(DataLog!$C812=\"Log value\",DataLog!N812,\"\")","v":""},{"$f":"IF(DataLog!$C812=\"Log value\",DataLog!O812,\"\")","v":""},{"$f":"IF(DataLog!$C812=\"Log value\",DataLog!P812,\"\")","v":""},{"$f":"IF(DataLog!$C812=\"Log value\",DataLog!Q812,\"\")","v":""},{"$f":"IF(DataLog!$C812=\"Log value\",DataLog!R812,\"\")","v":""},{"$f":"IF(DataLog!$C812=\"Log value\",DataLog!S812,\"\")","v":""},{"$f":"IF(DataLog!$C812=\"Log value\",DataLog!T812,\"\")","v":""},{"$f":"IF(DataLog!$C812=\"Log value\",DataLog!U812,\"\")","v":""},{"$f":"IF(DataLog!$C812=\"Log value\",DataLog!V812,\"\")","v":""},{"$f":"IF(DataLog!$C812=\"Log value\",DataLog!W812,\"\")","v":""},{"$f":"IF(DataLog!$C812=\"Log value\",DataLog!X812,\"\")","v":""},{"$f":"IF(DataLog!$C812=\"Log value\",DataLog!Y812,\"\")","v":""},{"$f":"IF(DataLog!$C812=\"Log value\",DataLog!Z812,\"\")","v":""},{"$f":"IF(DataLog!$C812=\"Log value\",DataLog!AA812,\"\")","v":""},{"$f":"IF(DataLog!$C812=\"Log value\",DataLog!AB812,\"\")","v":""},{"$f":"IF(DataLog!$C812=\"Log value\",DataLog!AC812,\"\")","v":""},{"$f":"IF(DataLog!$C812=\"Log value\",DataLog!AD812,\"\")","v":""},{"$f":"IF(DataLog!$C812=\"Log value\",DataLog!AE812,\"\")","v":""},{"$f":"IF(DataLog!$C812=\"Log value\",DataLog!AF812,\"\")","v":""},{"$f":"IF(DataLog!$C812=\"Log value\",DataLog!AG812,\"\")","v":""},{"$f":"IF(DataLog!$C812=\"Log value\",DataLog!AH812,\"\")","v":""},{"$f":"IF(DataLog!$C812=\"Log value\",DataLog!AI812,\"\")","v":""},{"$f":"IF(DataLog!$C812=\"Log value\",DataLog!AJ812,\"\")","v":""},{"$f":"IF(DataLog!$C812=\"Log value\",DataLog!AK812,\"\")","v":""},{"$f":"IF(DataLog!$C812=\"Log value\",DataLog!AL812,\"\")","v":""},{"$f":"IF(DataLog!$C812=\"Log value\",DataLog!AM812,\"\")","v":""}]
[null,null,null,null,null,null,{"$f":"IF(DataLog!$C813=\"Log value\",DataLog!D813&\"_\"&TEXT(DataLog!B813,\"åååå-mm-dd\"),\"\")","v":""},{"$f":"IF(DataLog!$C813=\"Log value\",DataLog!E813,\"\")","v":""},{"$f":"IF(DataLog!$C813=\"Log value\",DataLog!F813,\"\")","v":""},{"$f":"IF(DataLog!$C813=\"Log value\",DataLog!G813,\"\")","v":""},{"$f":"IF(DataLog!$C813=\"Log value\",DataLog!H813,\"\")","v":""},{"$f":"IF(DataLog!$C813=\"Log value\",DataLog!I813,\"\")","v":""},{"$f":"IF(DataLog!$C813=\"Log value\",DataLog!J813,\"\")","v":""},{"$f":"IF(DataLog!$C813=\"Log value\",DataLog!K813,\"\")","v":""},{"$f":"IF(DataLog!$C813=\"Log value\",DataLog!L813,\"\")","v":""},{"$f":"IF(DataLog!$C813=\"Log value\",DataLog!M813,\"\")","v":""},{"$f":"IF(DataLog!$C813=\"Log value\",DataLog!N813,\"\")","v":""},{"$f":"IF(DataLog!$C813=\"Log value\",DataLog!O813,\"\")","v":""},{"$f":"IF(DataLog!$C813=\"Log value\",DataLog!P813,\"\")","v":""},{"$f":"IF(DataLog!$C813=\"Log value\",DataLog!Q813,\"\")","v":""},{"$f":"IF(DataLog!$C813=\"Log value\",DataLog!R813,\"\")","v":""},{"$f":"IF(DataLog!$C813=\"Log value\",DataLog!S813,\"\")","v":""},{"$f":"IF(DataLog!$C813=\"Log value\",DataLog!T813,\"\")","v":""},{"$f":"IF(DataLog!$C813=\"Log value\",DataLog!U813,\"\")","v":""},{"$f":"IF(DataLog!$C813=\"Log value\",DataLog!V813,\"\")","v":""},{"$f":"IF(DataLog!$C813=\"Log value\",DataLog!W813,\"\")","v":""},{"$f":"IF(DataLog!$C813=\"Log value\",DataLog!X813,\"\")","v":""},{"$f":"IF(DataLog!$C813=\"Log value\",DataLog!Y813,\"\")","v":""},{"$f":"IF(DataLog!$C813=\"Log value\",DataLog!Z813,\"\")","v":""},{"$f":"IF(DataLog!$C813=\"Log value\",DataLog!AA813,\"\")","v":""},{"$f":"IF(DataLog!$C813=\"Log value\",DataLog!AB813,\"\")","v":""},{"$f":"IF(DataLog!$C813=\"Log value\",DataLog!AC813,\"\")","v":""},{"$f":"IF(DataLog!$C813=\"Log value\",DataLog!AD813,\"\")","v":""},{"$f":"IF(DataLog!$C813=\"Log value\",DataLog!AE813,\"\")","v":""},{"$f":"IF(DataLog!$C813=\"Log value\",DataLog!AF813,\"\")","v":""},{"$f":"IF(DataLog!$C813=\"Log value\",DataLog!AG813,\"\")","v":""},{"$f":"IF(DataLog!$C813=\"Log value\",DataLog!AH813,\"\")","v":""},{"$f":"IF(DataLog!$C813=\"Log value\",DataLog!AI813,\"\")","v":""},{"$f":"IF(DataLog!$C813=\"Log value\",DataLog!AJ813,\"\")","v":""},{"$f":"IF(DataLog!$C813=\"Log value\",DataLog!AK813,\"\")","v":""},{"$f":"IF(DataLog!$C813=\"Log value\",DataLog!AL813,\"\")","v":""},{"$f":"IF(DataLog!$C813=\"Log value\",DataLog!AM813,\"\")","v":""}]
[null,null,null,null,null,null,{"$f":"IF(DataLog!$C814=\"Log value\",DataLog!D814&\"_\"&TEXT(DataLog!B814,\"åååå-mm-dd\"),\"\")","v":""},{"$f":"IF(DataLog!$C814=\"Log value\",DataLog!E814,\"\")","v":""},{"$f":"IF(DataLog!$C814=\"Log value\",DataLog!F814,\"\")","v":""},{"$f":"IF(DataLog!$C814=\"Log value\",DataLog!G814,\"\")","v":""},{"$f":"IF(DataLog!$C814=\"Log value\",DataLog!H814,\"\")","v":""},{"$f":"IF(DataLog!$C814=\"Log value\",DataLog!I814,\"\")","v":""},{"$f":"IF(DataLog!$C814=\"Log value\",DataLog!J814,\"\")","v":""},{"$f":"IF(DataLog!$C814=\"Log value\",DataLog!K814,\"\")","v":""},{"$f":"IF(DataLog!$C814=\"Log value\",DataLog!L814,\"\")","v":""},{"$f":"IF(DataLog!$C814=\"Log value\",DataLog!M814,\"\")","v":""},{"$f":"IF(DataLog!$C814=\"Log value\",DataLog!N814,\"\")","v":""},{"$f":"IF(DataLog!$C814=\"Log value\",DataLog!O814,\"\")","v":""},{"$f":"IF(DataLog!$C814=\"Log value\",DataLog!P814,\"\")","v":""},{"$f":"IF(DataLog!$C814=\"Log value\",DataLog!Q814,\"\")","v":""},{"$f":"IF(DataLog!$C814=\"Log value\",DataLog!R814,\"\")","v":""},{"$f":"IF(DataLog!$C814=\"Log value\",DataLog!S814,\"\")","v":""},{"$f":"IF(DataLog!$C814=\"Log value\",DataLog!T814,\"\")","v":""},{"$f":"IF(DataLog!$C814=\"Log value\",DataLog!U814,\"\")","v":""},{"$f":"IF(DataLog!$C814=\"Log value\",DataLog!V814,\"\")","v":""},{"$f":"IF(DataLog!$C814=\"Log value\",DataLog!W814,\"\")","v":""},{"$f":"IF(DataLog!$C814=\"Log value\",DataLog!X814,\"\")","v":""},{"$f":"IF(DataLog!$C814=\"Log value\",DataLog!Y814,\"\")","v":""},{"$f":"IF(DataLog!$C814=\"Log value\",DataLog!Z814,\"\")","v":""},{"$f":"IF(DataLog!$C814=\"Log value\",DataLog!AA814,\"\")","v":""},{"$f":"IF(DataLog!$C814=\"Log value\",DataLog!AB814,\"\")","v":""},{"$f":"IF(DataLog!$C814=\"Log value\",DataLog!AC814,\"\")","v":""},{"$f":"IF(DataLog!$C814=\"Log value\",DataLog!AD814,\"\")","v":""},{"$f":"IF(DataLog!$C814=\"Log value\",DataLog!AE814,\"\")","v":""},{"$f":"IF(DataLog!$C814=\"Log value\",DataLog!AF814,\"\")","v":""},{"$f":"IF(DataLog!$C814=\"Log value\",DataLog!AG814,\"\")","v":""},{"$f":"IF(DataLog!$C814=\"Log value\",DataLog!AH814,\"\")","v":""},{"$f":"IF(DataLog!$C814=\"Log value\",DataLog!AI814,\"\")","v":""},{"$f":"IF(DataLog!$C814=\"Log value\",DataLog!AJ814,\"\")","v":""},{"$f":"IF(DataLog!$C814=\"Log value\",DataLog!AK814,\"\")","v":""},{"$f":"IF(DataLog!$C814=\"Log value\",DataLog!AL814,\"\")","v":""},{"$f":"IF(DataLog!$C814=\"Log value\",DataLog!AM814,\"\")","v":""}]
[null,null,null,null,null,null,{"$f":"IF(DataLog!$C815=\"Log value\",DataLog!D815&\"_\"&TEXT(DataLog!B815,\"åååå-mm-dd\"),\"\")","v":""},{"$f":"IF(DataLog!$C815=\"Log value\",DataLog!E815,\"\")","v":""},{"$f":"IF(DataLog!$C815=\"Log value\",DataLog!F815,\"\")","v":""},{"$f":"IF(DataLog!$C815=\"Log value\",DataLog!G815,\"\")","v":""},{"$f":"IF(DataLog!$C815=\"Log value\",DataLog!H815,\"\")","v":""},{"$f":"IF(DataLog!$C815=\"Log value\",DataLog!I815,\"\")","v":""},{"$f":"IF(DataLog!$C815=\"Log value\",DataLog!J815,\"\")","v":""},{"$f":"IF(DataLog!$C815=\"Log value\",DataLog!K815,\"\")","v":""},{"$f":"IF(DataLog!$C815=\"Log value\",DataLog!L815,\"\")","v":""},{"$f":"IF(DataLog!$C815=\"Log value\",DataLog!M815,\"\")","v":""},{"$f":"IF(DataLog!$C815=\"Log value\",DataLog!N815,\"\")","v":""},{"$f":"IF(DataLog!$C815=\"Log value\",DataLog!O815,\"\")","v":""},{"$f":"IF(DataLog!$C815=\"Log value\",DataLog!P815,\"\")","v":""},{"$f":"IF(DataLog!$C815=\"Log value\",DataLog!Q815,\"\")","v":""},{"$f":"IF(DataLog!$C815=\"Log value\",DataLog!R815,\"\")","v":""},{"$f":"IF(DataLog!$C815=\"Log value\",DataLog!S815,\"\")","v":""},{"$f":"IF(DataLog!$C815=\"Log value\",DataLog!T815,\"\")","v":""},{"$f":"IF(DataLog!$C815=\"Log value\",DataLog!U815,\"\")","v":""},{"$f":"IF(DataLog!$C815=\"Log value\",DataLog!V815,\"\")","v":""},{"$f":"IF(DataLog!$C815=\"Log value\",DataLog!W815,\"\")","v":""},{"$f":"IF(DataLog!$C815=\"Log value\",DataLog!X815,\"\")","v":""},{"$f":"IF(DataLog!$C815=\"Log value\",DataLog!Y815,\"\")","v":""},{"$f":"IF(DataLog!$C815=\"Log value\",DataLog!Z815,\"\")","v":""},{"$f":"IF(DataLog!$C815=\"Log value\",DataLog!AA815,\"\")","v":""},{"$f":"IF(DataLog!$C815=\"Log value\",DataLog!AB815,\"\")","v":""},{"$f":"IF(DataLog!$C815=\"Log value\",DataLog!AC815,\"\")","v":""},{"$f":"IF(DataLog!$C815=\"Log value\",DataLog!AD815,\"\")","v":""},{"$f":"IF(DataLog!$C815=\"Log value\",DataLog!AE815,\"\")","v":""},{"$f":"IF(DataLog!$C815=\"Log value\",DataLog!AF815,\"\")","v":""},{"$f":"IF(DataLog!$C815=\"Log value\",DataLog!AG815,\"\")","v":""},{"$f":"IF(DataLog!$C815=\"Log value\",DataLog!AH815,\"\")","v":""},{"$f":"IF(DataLog!$C815=\"Log value\",DataLog!AI815,\"\")","v":""},{"$f":"IF(DataLog!$C815=\"Log value\",DataLog!AJ815,\"\")","v":""},{"$f":"IF(DataLog!$C815=\"Log value\",DataLog!AK815,\"\")","v":""},{"$f":"IF(DataLog!$C815=\"Log value\",DataLog!AL815,\"\")","v":""},{"$f":"IF(DataLog!$C815=\"Log value\",DataLog!AM815,\"\")","v":""}]
[null,null,null,null,null,null,{"$f":"IF(DataLog!$C816=\"Log value\",DataLog!D816&\"_\"&TEXT(DataLog!B816,\"åååå-mm-dd\"),\"\")","v":""},{"$f":"IF(DataLog!$C816=\"Log value\",DataLog!E816,\"\")","v":""},{"$f":"IF(DataLog!$C816=\"Log value\",DataLog!F816,\"\")","v":""},{"$f":"IF(DataLog!$C816=\"Log value\",DataLog!G816,\"\")","v":""},{"$f":"IF(DataLog!$C816=\"Log value\",DataLog!H816,\"\")","v":""},{"$f":"IF(DataLog!$C816=\"Log value\",DataLog!I816,\"\")","v":""},{"$f":"IF(DataLog!$C816=\"Log value\",DataLog!J816,\"\")","v":""},{"$f":"IF(DataLog!$C816=\"Log value\",DataLog!K816,\"\")","v":""},{"$f":"IF(DataLog!$C816=\"Log value\",DataLog!L816,\"\")","v":""},{"$f":"IF(DataLog!$C816=\"Log value\",DataLog!M816,\"\")","v":""},{"$f":"IF(DataLog!$C816=\"Log value\",DataLog!N816,\"\")","v":""},{"$f":"IF(DataLog!$C816=\"Log value\",DataLog!O816,\"\")","v":""},{"$f":"IF(DataLog!$C816=\"Log value\",DataLog!P816,\"\")","v":""},{"$f":"IF(DataLog!$C816=\"Log value\",DataLog!Q816,\"\")","v":""},{"$f":"IF(DataLog!$C816=\"Log value\",DataLog!R816,\"\")","v":""},{"$f":"IF(DataLog!$C816=\"Log value\",DataLog!S816,\"\")","v":""},{"$f":"IF(DataLog!$C816=\"Log value\",DataLog!T816,\"\")","v":""},{"$f":"IF(DataLog!$C816=\"Log value\",DataLog!U816,\"\")","v":""},{"$f":"IF(DataLog!$C816=\"Log value\",DataLog!V816,\"\")","v":""},{"$f":"IF(DataLog!$C816=\"Log value\",DataLog!W816,\"\")","v":""},{"$f":"IF(DataLog!$C816=\"Log value\",DataLog!X816,\"\")","v":""},{"$f":"IF(DataLog!$C816=\"Log value\",DataLog!Y816,\"\")","v":""},{"$f":"IF(DataLog!$C816=\"Log value\",DataLog!Z816,\"\")","v":""},{"$f":"IF(DataLog!$C816=\"Log value\",DataLog!AA816,\"\")","v":""},{"$f":"IF(DataLog!$C816=\"Log value\",DataLog!AB816,\"\")","v":""},{"$f":"IF(DataLog!$C816=\"Log value\",DataLog!AC816,\"\")","v":""},{"$f":"IF(DataLog!$C816=\"Log value\",DataLog!AD816,\"\")","v":""},{"$f":"IF(DataLog!$C816=\"Log value\",DataLog!AE816,\"\")","v":""},{"$f":"IF(DataLog!$C816=\"Log value\",DataLog!AF816,\"\")","v":""},{"$f":"IF(DataLog!$C816=\"Log value\",DataLog!AG816,\"\")","v":""},{"$f":"IF(DataLog!$C816=\"Log value\",DataLog!AH816,\"\")","v":""},{"$f":"IF(DataLog!$C816=\"Log value\",DataLog!AI816,\"\")","v":""},{"$f":"IF(DataLog!$C816=\"Log value\",DataLog!AJ816,\"\")","v":""},{"$f":"IF(DataLog!$C816=\"Log value\",DataLog!AK816,\"\")","v":""},{"$f":"IF(DataLog!$C816=\"Log value\",DataLog!AL816,\"\")","v":""},{"$f":"IF(DataLog!$C816=\"Log value\",DataLog!AM816,\"\")","v":""}]
[null,null,null,null,null,null,{"$f":"IF(DataLog!$C817=\"Log value\",DataLog!D817&\"_\"&TEXT(DataLog!B817,\"åååå-mm-dd\"),\"\")","v":""},{"$f":"IF(DataLog!$C817=\"Log value\",DataLog!E817,\"\")","v":""},{"$f":"IF(DataLog!$C817=\"Log value\",DataLog!F817,\"\")","v":""},{"$f":"IF(DataLog!$C817=\"Log value\",DataLog!G817,\"\")","v":""},{"$f":"IF(DataLog!$C817=\"Log value\",DataLog!H817,\"\")","v":""},{"$f":"IF(DataLog!$C817=\"Log value\",DataLog!I817,\"\")","v":""},{"$f":"IF(DataLog!$C817=\"Log value\",DataLog!J817,\"\")","v":""},{"$f":"IF(DataLog!$C817=\"Log value\",DataLog!K817,\"\")","v":""},{"$f":"IF(DataLog!$C817=\"Log value\",DataLog!L817,\"\")","v":""},{"$f":"IF(DataLog!$C817=\"Log value\",DataLog!M817,\"\")","v":""},{"$f":"IF(DataLog!$C817=\"Log value\",DataLog!N817,\"\")","v":""},{"$f":"IF(DataLog!$C817=\"Log value\",DataLog!O817,\"\")","v":""},{"$f":"IF(DataLog!$C817=\"Log value\",DataLog!P817,\"\")","v":""},{"$f":"IF(DataLog!$C817=\"Log value\",DataLog!Q817,\"\")","v":""},{"$f":"IF(DataLog!$C817=\"Log value\",DataLog!R817,\"\")","v":""},{"$f":"IF(DataLog!$C817=\"Log value\",DataLog!S817,\"\")","v":""},{"$f":"IF(DataLog!$C817=\"Log value\",DataLog!T817,\"\")","v":""},{"$f":"IF(DataLog!$C817=\"Log value\",DataLog!U817,\"\")","v":""},{"$f":"IF(DataLog!$C817=\"Log value\",DataLog!V817,\"\")","v":""},{"$f":"IF(DataLog!$C817=\"Log value\",DataLog!W817,\"\")","v":""},{"$f":"IF(DataLog!$C817=\"Log value\",DataLog!X817,\"\")","v":""},{"$f":"IF(DataLog!$C817=\"Log value\",DataLog!Y817,\"\")","v":""},{"$f":"IF(DataLog!$C817=\"Log value\",DataLog!Z817,\"\")","v":""},{"$f":"IF(DataLog!$C817=\"Log value\",DataLog!AA817,\"\")","v":""},{"$f":"IF(DataLog!$C817=\"Log value\",DataLog!AB817,\"\")","v":""},{"$f":"IF(DataLog!$C817=\"Log value\",DataLog!AC817,\"\")","v":""},{"$f":"IF(DataLog!$C817=\"Log value\",DataLog!AD817,\"\")","v":""},{"$f":"IF(DataLog!$C817=\"Log value\",DataLog!AE817,\"\")","v":""},{"$f":"IF(DataLog!$C817=\"Log value\",DataLog!AF817,\"\")","v":""},{"$f":"IF(DataLog!$C817=\"Log value\",DataLog!AG817,\"\")","v":""},{"$f":"IF(DataLog!$C817=\"Log value\",DataLog!AH817,\"\")","v":""},{"$f":"IF(DataLog!$C817=\"Log value\",DataLog!AI817,\"\")","v":""},{"$f":"IF(DataLog!$C817=\"Log value\",DataLog!AJ817,\"\")","v":""},{"$f":"IF(DataLog!$C817=\"Log value\",DataLog!AK817,\"\")","v":""},{"$f":"IF(DataLog!$C817=\"Log value\",DataLog!AL817,\"\")","v":""},{"$f":"IF(DataLog!$C817=\"Log value\",DataLog!AM817,\"\")","v":""}]
[null,null,null,null,null,null,{"$f":"IF(DataLog!$C818=\"Log value\",DataLog!D818&\"_\"&TEXT(DataLog!B818,\"åååå-mm-dd\"),\"\")","v":""},{"$f":"IF(DataLog!$C818=\"Log value\",DataLog!E818,\"\")","v":""},{"$f":"IF(DataLog!$C818=\"Log value\",DataLog!F818,\"\")","v":""},{"$f":"IF(DataLog!$C818=\"Log value\",DataLog!G818,\"\")","v":""},{"$f":"IF(DataLog!$C818=\"Log value\",DataLog!H818,\"\")","v":""},{"$f":"IF(DataLog!$C818=\"Log value\",DataLog!I818,\"\")","v":""},{"$f":"IF(DataLog!$C818=\"Log value\",DataLog!J818,\"\")","v":""},{"$f":"IF(DataLog!$C818=\"Log value\",DataLog!K818,\"\")","v":""},{"$f":"IF(DataLog!$C818=\"Log value\",DataLog!L818,\"\")","v":""},{"$f":"IF(DataLog!$C818=\"Log value\",DataLog!M818,\"\")","v":""},{"$f":"IF(DataLog!$C818=\"Log value\",DataLog!N818,\"\")","v":""},{"$f":"IF(DataLog!$C818=\"Log value\",DataLog!O818,\"\")","v":""},{"$f":"IF(DataLog!$C818=\"Log value\",DataLog!P818,\"\")","v":""},{"$f":"IF(DataLog!$C818=\"Log value\",DataLog!Q818,\"\")","v":""},{"$f":"IF(DataLog!$C818=\"Log value\",DataLog!R818,\"\")","v":""},{"$f":"IF(DataLog!$C818=\"Log value\",DataLog!S818,\"\")","v":""},{"$f":"IF(DataLog!$C818=\"Log value\",DataLog!T818,\"\")","v":""},{"$f":"IF(DataLog!$C818=\"Log value\",DataLog!U818,\"\")","v":""},{"$f":"IF(DataLog!$C818=\"Log value\",DataLog!V818,\"\")","v":""},{"$f":"IF(DataLog!$C818=\"Log value\",DataLog!W818,\"\")","v":""},{"$f":"IF(DataLog!$C818=\"Log value\",DataLog!X818,\"\")","v":""},{"$f":"IF(DataLog!$C818=\"Log value\",DataLog!Y818,\"\")","v":""},{"$f":"IF(DataLog!$C818=\"Log value\",DataLog!Z818,\"\")","v":""},{"$f":"IF(DataLog!$C818=\"Log value\",DataLog!AA818,\"\")","v":""},{"$f":"IF(DataLog!$C818=\"Log value\",DataLog!AB818,\"\")","v":""},{"$f":"IF(DataLog!$C818=\"Log value\",DataLog!AC818,\"\")","v":""},{"$f":"IF(DataLog!$C818=\"Log value\",DataLog!AD818,\"\")","v":""},{"$f":"IF(DataLog!$C818=\"Log value\",DataLog!AE818,\"\")","v":""},{"$f":"IF(DataLog!$C818=\"Log value\",DataLog!AF818,\"\")","v":""},{"$f":"IF(DataLog!$C818=\"Log value\",DataLog!AG818,\"\")","v":""},{"$f":"IF(DataLog!$C818=\"Log value\",DataLog!AH818,\"\")","v":""},{"$f":"IF(DataLog!$C818=\"Log value\",DataLog!AI818,\"\")","v":""},{"$f":"IF(DataLog!$C818=\"Log value\",DataLog!AJ818,\"\")","v":""},{"$f":"IF(DataLog!$C818=\"Log value\",DataLog!AK818,\"\")","v":""},{"$f":"IF(DataLog!$C818=\"Log value\",DataLog!AL818,\"\")","v":""},{"$f":"IF(DataLog!$C818=\"Log value\",DataLog!AM818,\"\")","v":""}]
[null,null,null,null,null,null,{"$f":"IF(DataLog!$C819=\"Log value\",DataLog!D819&\"_\"&TEXT(DataLog!B819,\"åååå-mm-dd\"),\"\")","v":""},{"$f":"IF(DataLog!$C819=\"Log value\",DataLog!E819,\"\")","v":""},{"$f":"IF(DataLog!$C819=\"Log value\",DataLog!F819,\"\")","v":""},{"$f":"IF(DataLog!$C819=\"Log value\",DataLog!G819,\"\")","v":""},{"$f":"IF(DataLog!$C819=\"Log value\",DataLog!H819,\"\")","v":""},{"$f":"IF(DataLog!$C819=\"Log value\",DataLog!I819,\"\")","v":""},{"$f":"IF(DataLog!$C819=\"Log value\",DataLog!J819,\"\")","v":""},{"$f":"IF(DataLog!$C819=\"Log value\",DataLog!K819,\"\")","v":""},{"$f":"IF(DataLog!$C819=\"Log value\",DataLog!L819,\"\")","v":""},{"$f":"IF(DataLog!$C819=\"Log value\",DataLog!M819,\"\")","v":""},{"$f":"IF(DataLog!$C819=\"Log value\",DataLog!N819,\"\")","v":""},{"$f":"IF(DataLog!$C819=\"Log value\",DataLog!O819,\"\")","v":""},{"$f":"IF(DataLog!$C819=\"Log value\",DataLog!P819,\"\")","v":""},{"$f":"IF(DataLog!$C819=\"Log value\",DataLog!Q819,\"\")","v":""},{"$f":"IF(DataLog!$C819=\"Log value\",DataLog!R819,\"\")","v":""},{"$f":"IF(DataLog!$C819=\"Log value\",DataLog!S819,\"\")","v":""},{"$f":"IF(DataLog!$C819=\"Log value\",DataLog!T819,\"\")","v":""},{"$f":"IF(DataLog!$C819=\"Log value\",DataLog!U819,\"\")","v":""},{"$f":"IF(DataLog!$C819=\"Log value\",DataLog!V819,\"\")","v":""},{"$f":"IF(DataLog!$C819=\"Log value\",DataLog!W819,\"\")","v":""},{"$f":"IF(DataLog!$C819=\"Log value\",DataLog!X819,\"\")","v":""},{"$f":"IF(DataLog!$C819=\"Log value\",DataLog!Y819,\"\")","v":""},{"$f":"IF(DataLog!$C819=\"Log value\",DataLog!Z819,\"\")","v":""},{"$f":"IF(DataLog!$C819=\"Log value\",DataLog!AA819,\"\")","v":""},{"$f":"IF(DataLog!$C819=\"Log value\",DataLog!AB819,\"\")","v":""},{"$f":"IF(DataLog!$C819=\"Log value\",DataLog!AC819,\"\")","v":""},{"$f":"IF(DataLog!$C819=\"Log value\",DataLog!AD819,\"\")","v":""},{"$f":"IF(DataLog!$C819=\"Log value\",DataLog!AE819,\"\")","v":""},{"$f":"IF(DataLog!$C819=\"Log value\",DataLog!AF819,\"\")","v":""},{"$f":"IF(DataLog!$C819=\"Log value\",DataLog!AG819,\"\")","v":""},{"$f":"IF(DataLog!$C819=\"Log value\",DataLog!AH819,\"\")","v":""},{"$f":"IF(DataLog!$C819=\"Log value\",DataLog!AI819,\"\")","v":""},{"$f":"IF(DataLog!$C819=\"Log value\",DataLog!AJ819,\"\")","v":""},{"$f":"IF(DataLog!$C819=\"Log value\",DataLog!AK819,\"\")","v":""},{"$f":"IF(DataLog!$C819=\"Log value\",DataLog!AL819,\"\")","v":""},{"$f":"IF(DataLog!$C819=\"Log value\",DataLog!AM819,\"\")","v":""}]
[null,null,null,null,null,null,{"$f":"IF(DataLog!$C820=\"Log value\",DataLog!D820&\"_\"&TEXT(DataLog!B820,\"åååå-mm-dd\"),\"\")","v":""},{"$f":"IF(DataLog!$C820=\"Log value\",DataLog!E820,\"\")","v":""},{"$f":"IF(DataLog!$C820=\"Log value\",DataLog!F820,\"\")","v":""},{"$f":"IF(DataLog!$C820=\"Log value\",DataLog!G820,\"\")","v":""},{"$f":"IF(DataLog!$C820=\"Log value\",DataLog!H820,\"\")","v":""},{"$f":"IF(DataLog!$C820=\"Log value\",DataLog!I820,\"\")","v":""},{"$f":"IF(DataLog!$C820=\"Log value\",DataLog!J820,\"\")","v":""},{"$f":"IF(DataLog!$C820=\"Log value\",DataLog!K820,\"\")","v":""},{"$f":"IF(DataLog!$C820=\"Log value\",DataLog!L820,\"\")","v":""},{"$f":"IF(DataLog!$C820=\"Log value\",DataLog!M820,\"\")","v":""},{"$f":"IF(DataLog!$C820=\"Log value\",DataLog!N820,\"\")","v":""},{"$f":"IF(DataLog!$C820=\"Log value\",DataLog!O820,\"\")","v":""},{"$f":"IF(DataLog!$C820=\"Log value\",DataLog!P820,\"\")","v":""},{"$f":"IF(DataLog!$C820=\"Log value\",DataLog!Q820,\"\")","v":""},{"$f":"IF(DataLog!$C820=\"Log value\",DataLog!R820,\"\")","v":""},{"$f":"IF(DataLog!$C820=\"Log value\",DataLog!S820,\"\")","v":""},{"$f":"IF(DataLog!$C820=\"Log value\",DataLog!T820,\"\")","v":""},{"$f":"IF(DataLog!$C820=\"Log value\",DataLog!U820,\"\")","v":""},{"$f":"IF(DataLog!$C820=\"Log value\",DataLog!V820,\"\")","v":""},{"$f":"IF(DataLog!$C820=\"Log value\",DataLog!W820,\"\")","v":""},{"$f":"IF(DataLog!$C820=\"Log value\",DataLog!X820,\"\")","v":""},{"$f":"IF(DataLog!$C820=\"Log value\",DataLog!Y820,\"\")","v":""},{"$f":"IF(DataLog!$C820=\"Log value\",DataLog!Z820,\"\")","v":""},{"$f":"IF(DataLog!$C820=\"Log value\",DataLog!AA820,\"\")","v":""},{"$f":"IF(DataLog!$C820=\"Log value\",DataLog!AB820,\"\")","v":""},{"$f":"IF(DataLog!$C820=\"Log value\",DataLog!AC820,\"\")","v":""},{"$f":"IF(DataLog!$C820=\"Log value\",DataLog!AD820,\"\")","v":""},{"$f":"IF(DataLog!$C820=\"Log value\",DataLog!AE820,\"\")","v":""},{"$f":"IF(DataLog!$C820=\"Log value\",DataLog!AF820,\"\")","v":""},{"$f":"IF(DataLog!$C820=\"Log value\",DataLog!AG820,\"\")","v":""},{"$f":"IF(DataLog!$C820=\"Log value\",DataLog!AH820,\"\")","v":""},{"$f":"IF(DataLog!$C820=\"Log value\",DataLog!AI820,\"\")","v":""},{"$f":"IF(DataLog!$C820=\"Log value\",DataLog!AJ820,\"\")","v":""},{"$f":"IF(DataLog!$C820=\"Log value\",DataLog!AK820,\"\")","v":""},{"$f":"IF(DataLog!$C820=\"Log value\",DataLog!AL820,\"\")","v":""},{"$f":"IF(DataLog!$C820=\"Log value\",DataLog!AM820,\"\")","v":""}]
[null,null,null,null,null,null,{"$f":"IF(DataLog!$C821=\"Log value\",DataLog!D821&\"_\"&TEXT(DataLog!B821,\"åååå-mm-dd\"),\"\")","v":""},{"$f":"IF(DataLog!$C821=\"Log value\",DataLog!E821,\"\")","v":""},{"$f":"IF(DataLog!$C821=\"Log value\",DataLog!F821,\"\")","v":""},{"$f":"IF(DataLog!$C821=\"Log value\",DataLog!G821,\"\")","v":""},{"$f":"IF(DataLog!$C821=\"Log value\",DataLog!H821,\"\")","v":""},{"$f":"IF(DataLog!$C821=\"Log value\",DataLog!I821,\"\")","v":""},{"$f":"IF(DataLog!$C821=\"Log value\",DataLog!J821,\"\")","v":""},{"$f":"IF(DataLog!$C821=\"Log value\",DataLog!K821,\"\")","v":""},{"$f":"IF(DataLog!$C821=\"Log value\",DataLog!L821,\"\")","v":""},{"$f":"IF(DataLog!$C821=\"Log value\",DataLog!M821,\"\")","v":""},{"$f":"IF(DataLog!$C821=\"Log value\",DataLog!N821,\"\")","v":""},{"$f":"IF(DataLog!$C821=\"Log value\",DataLog!O821,\"\")","v":""},{"$f":"IF(DataLog!$C821=\"Log value\",DataLog!P821,\"\")","v":""},{"$f":"IF(DataLog!$C821=\"Log value\",DataLog!Q821,\"\")","v":""},{"$f":"IF(DataLog!$C821=\"Log value\",DataLog!R821,\"\")","v":""},{"$f":"IF(DataLog!$C821=\"Log value\",DataLog!S821,\"\")","v":""},{"$f":"IF(DataLog!$C821=\"Log value\",DataLog!T821,\"\")","v":""},{"$f":"IF(DataLog!$C821=\"Log value\",DataLog!U821,\"\")","v":""},{"$f":"IF(DataLog!$C821=\"Log value\",DataLog!V821,\"\")","v":""},{"$f":"IF(DataLog!$C821=\"Log value\",DataLog!W821,\"\")","v":""},{"$f":"IF(DataLog!$C821=\"Log value\",DataLog!X821,\"\")","v":""},{"$f":"IF(DataLog!$C821=\"Log value\",DataLog!Y821,\"\")","v":""},{"$f":"IF(DataLog!$C821=\"Log value\",DataLog!Z821,\"\")","v":""},{"$f":"IF(DataLog!$C821=\"Log value\",DataLog!AA821,\"\")","v":""},{"$f":"IF(DataLog!$C821=\"Log value\",DataLog!AB821,\"\")","v":""},{"$f":"IF(DataLog!$C821=\"Log value\",DataLog!AC821,\"\")","v":""},{"$f":"IF(DataLog!$C821=\"Log value\",DataLog!AD821,\"\")","v":""},{"$f":"IF(DataLog!$C821=\"Log value\",DataLog!AE821,\"\")","v":""},{"$f":"IF(DataLog!$C821=\"Log value\",DataLog!AF821,\"\")","v":""},{"$f":"IF(DataLog!$C821=\"Log value\",DataLog!AG821,\"\")","v":""},{"$f":"IF(DataLog!$C821=\"Log value\",DataLog!AH821,\"\")","v":""},{"$f":"IF(DataLog!$C821=\"Log value\",DataLog!AI821,\"\")","v":""},{"$f":"IF(DataLog!$C821=\"Log value\",DataLog!AJ821,\"\")","v":""},{"$f":"IF(DataLog!$C821=\"Log value\",DataLog!AK821,\"\")","v":""},{"$f":"IF(DataLog!$C821=\"Log value\",DataLog!AL821,\"\")","v":""},{"$f":"IF(DataLog!$C821=\"Log value\",DataLog!AM821,\"\")","v":""}]
[null,null,null,null,null,null,{"$f":"IF(DataLog!$C822=\"Log value\",DataLog!D822&\"_\"&TEXT(DataLog!B822,\"åååå-mm-dd\"),\"\")","v":""},{"$f":"IF(DataLog!$C822=\"Log value\",DataLog!E822,\"\")","v":""},{"$f":"IF(DataLog!$C822=\"Log value\",DataLog!F822,\"\")","v":""},{"$f":"IF(DataLog!$C822=\"Log value\",DataLog!G822,\"\")","v":""},{"$f":"IF(DataLog!$C822=\"Log value\",DataLog!H822,\"\")","v":""},{"$f":"IF(DataLog!$C822=\"Log value\",DataLog!I822,\"\")","v":""},{"$f":"IF(DataLog!$C822=\"Log value\",DataLog!J822,\"\")","v":""},{"$f":"IF(DataLog!$C822=\"Log value\",DataLog!K822,\"\")","v":""},{"$f":"IF(DataLog!$C822=\"Log value\",DataLog!L822,\"\")","v":""},{"$f":"IF(DataLog!$C822=\"Log value\",DataLog!M822,\"\")","v":""},{"$f":"IF(DataLog!$C822=\"Log value\",DataLog!N822,\"\")","v":""},{"$f":"IF(DataLog!$C822=\"Log value\",DataLog!O822,\"\")","v":""},{"$f":"IF(DataLog!$C822=\"Log value\",DataLog!P822,\"\")","v":""},{"$f":"IF(DataLog!$C822=\"Log value\",DataLog!Q822,\"\")","v":""},{"$f":"IF(DataLog!$C822=\"Log value\",DataLog!R822,\"\")","v":""},{"$f":"IF(DataLog!$C822=\"Log value\",DataLog!S822,\"\")","v":""},{"$f":"IF(DataLog!$C822=\"Log value\",DataLog!T822,\"\")","v":""},{"$f":"IF(DataLog!$C822=\"Log value\",DataLog!U822,\"\")","v":""},{"$f":"IF(DataLog!$C822=\"Log value\",DataLog!V822,\"\")","v":""},{"$f":"IF(DataLog!$C822=\"Log value\",DataLog!W822,\"\")","v":""},{"$f":"IF(DataLog!$C822=\"Log value\",DataLog!X822,\"\")","v":""},{"$f":"IF(DataLog!$C822=\"Log value\",DataLog!Y822,\"\")","v":""},{"$f":"IF(DataLog!$C822=\"Log value\",DataLog!Z822,\"\")","v":""},{"$f":"IF(DataLog!$C822=\"Log value\",DataLog!AA822,\"\")","v":""},{"$f":"IF(DataLog!$C822=\"Log value\",DataLog!AB822,\"\")","v":""},{"$f":"IF(DataLog!$C822=\"Log value\",DataLog!AC822,\"\")","v":""},{"$f":"IF(DataLog!$C822=\"Log value\",DataLog!AD822,\"\")","v":""},{"$f":"IF(DataLog!$C822=\"Log value\",DataLog!AE822,\"\")","v":""},{"$f":"IF(DataLog!$C822=\"Log value\",DataLog!AF822,\"\")","v":""},{"$f":"IF(DataLog!$C822=\"Log value\",DataLog!AG822,\"\")","v":""},{"$f":"IF(DataLog!$C822=\"Log value\",DataLog!AH822,\"\")","v":""},{"$f":"IF(DataLog!$C822=\"Log value\",DataLog!AI822,\"\")","v":""},{"$f":"IF(DataLog!$C822=\"Log value\",DataLog!AJ822,\"\")","v":""},{"$f":"IF(DataLog!$C822=\"Log value\",DataLog!AK822,\"\")","v":""},{"$f":"IF(DataLog!$C822=\"Log value\",DataLog!AL822,\"\")","v":""},{"$f":"IF(DataLog!$C822=\"Log value\",DataLog!AM822,\"\")","v":""}]
[null,null,null,null,null,null,{"$f":"IF(DataLog!$C823=\"Log value\",DataLog!D823&\"_\"&TEXT(DataLog!B823,\"åååå-mm-dd\"),\"\")","v":""},{"$f":"IF(DataLog!$C823=\"Log value\",DataLog!E823,\"\")","v":""},{"$f":"IF(DataLog!$C823=\"Log value\",DataLog!F823,\"\")","v":""},{"$f":"IF(DataLog!$C823=\"Log value\",DataLog!G823,\"\")","v":""},{"$f":"IF(DataLog!$C823=\"Log value\",DataLog!H823,\"\")","v":""},{"$f":"IF(DataLog!$C823=\"Log value\",DataLog!I823,\"\")","v":""},{"$f":"IF(DataLog!$C823=\"Log value\",DataLog!J823,\"\")","v":""},{"$f":"IF(DataLog!$C823=\"Log value\",DataLog!K823,\"\")","v":""},{"$f":"IF(DataLog!$C823=\"Log value\",DataLog!L823,\"\")","v":""},{"$f":"IF(DataLog!$C823=\"Log value\",DataLog!M823,\"\")","v":""},{"$f":"IF(DataLog!$C823=\"Log value\",DataLog!N823,\"\")","v":""},{"$f":"IF(DataLog!$C823=\"Log value\",DataLog!O823,\"\")","v":""},{"$f":"IF(DataLog!$C823=\"Log value\",DataLog!P823,\"\")","v":""},{"$f":"IF(DataLog!$C823=\"Log value\",DataLog!Q823,\"\")","v":""},{"$f":"IF(DataLog!$C823=\"Log value\",DataLog!R823,\"\")","v":""},{"$f":"IF(DataLog!$C823=\"Log value\",DataLog!S823,\"\")","v":""},{"$f":"IF(DataLog!$C823=\"Log value\",DataLog!T823,\"\")","v":""},{"$f":"IF(DataLog!$C823=\"Log value\",DataLog!U823,\"\")","v":""},{"$f":"IF(DataLog!$C823=\"Log value\",DataLog!V823,\"\")","v":""},{"$f":"IF(DataLog!$C823=\"Log value\",DataLog!W823,\"\")","v":""},{"$f":"IF(DataLog!$C823=\"Log value\",DataLog!X823,\"\")","v":""},{"$f":"IF(DataLog!$C823=\"Log value\",DataLog!Y823,\"\")","v":""},{"$f":"IF(DataLog!$C823=\"Log value\",DataLog!Z823,\"\")","v":""},{"$f":"IF(DataLog!$C823=\"Log value\",DataLog!AA823,\"\")","v":""},{"$f":"IF(DataLog!$C823=\"Log value\",DataLog!AB823,\"\")","v":""},{"$f":"IF(DataLog!$C823=\"Log value\",DataLog!AC823,\"\")","v":""},{"$f":"IF(DataLog!$C823=\"Log value\",DataLog!AD823,\"\")","v":""},{"$f":"IF(DataLog!$C823=\"Log value\",DataLog!AE823,\"\")","v":""},{"$f":"IF(DataLog!$C823=\"Log value\",DataLog!AF823,\"\")","v":""},{"$f":"IF(DataLog!$C823=\"Log value\",DataLog!AG823,\"\")","v":""},{"$f":"IF(DataLog!$C823=\"Log value\",DataLog!AH823,\"\")","v":""},{"$f":"IF(DataLog!$C823=\"Log value\",DataLog!AI823,\"\")","v":""},{"$f":"IF(DataLog!$C823=\"Log value\",DataLog!AJ823,\"\")","v":""},{"$f":"IF(DataLog!$C823=\"Log value\",DataLog!AK823,\"\")","v":""},{"$f":"IF(DataLog!$C823=\"Log value\",DataLog!AL823,\"\")","v":""},{"$f":"IF(DataLog!$C823=\"Log value\",DataLog!AM823,\"\")","v":""}]
[null,null,null,null,null,null,{"$f":"IF(DataLog!$C824=\"Log value\",DataLog!D824&\"_\"&TEXT(DataLog!B824,\"åååå-mm-dd\"),\"\")","v":""},{"$f":"IF(DataLog!$C824=\"Log value\",DataLog!E824,\"\")","v":""},{"$f":"IF(DataLog!$C824=\"Log value\",DataLog!F824,\"\")","v":""},{"$f":"IF(DataLog!$C824=\"Log value\",DataLog!G824,\"\")","v":""},{"$f":"IF(DataLog!$C824=\"Log value\",DataLog!H824,\"\")","v":""},{"$f":"IF(DataLog!$C824=\"Log value\",DataLog!I824,\"\")","v":""},{"$f":"IF(DataLog!$C824=\"Log value\",DataLog!J824,\"\")","v":""},{"$f":"IF(DataLog!$C824=\"Log value\",DataLog!K824,\"\")","v":""},{"$f":"IF(DataLog!$C824=\"Log value\",DataLog!L824,\"\")","v":""},{"$f":"IF(DataLog!$C824=\"Log value\",DataLog!M824,\"\")","v":""},{"$f":"IF(DataLog!$C824=\"Log value\",DataLog!N824,\"\")","v":""},{"$f":"IF(DataLog!$C824=\"Log value\",DataLog!O824,\"\")","v":""},{"$f":"IF(DataLog!$C824=\"Log value\",DataLog!P824,\"\")","v":""},{"$f":"IF(DataLog!$C824=\"Log value\",DataLog!Q824,\"\")","v":""},{"$f":"IF(DataLog!$C824=\"Log value\",DataLog!R824,\"\")","v":""},{"$f":"IF(DataLog!$C824=\"Log value\",DataLog!S824,\"\")","v":""},{"$f":"IF(DataLog!$C824=\"Log value\",DataLog!T824,\"\")","v":""},{"$f":"IF(DataLog!$C824=\"Log value\",DataLog!U824,\"\")","v":""},{"$f":"IF(DataLog!$C824=\"Log value\",DataLog!V824,\"\")","v":""},{"$f":"IF(DataLog!$C824=\"Log value\",DataLog!W824,\"\")","v":""},{"$f":"IF(DataLog!$C824=\"Log value\",DataLog!X824,\"\")","v":""},{"$f":"IF(DataLog!$C824=\"Log value\",DataLog!Y824,\"\")","v":""},{"$f":"IF(DataLog!$C824=\"Log value\",DataLog!Z824,\"\")","v":""},{"$f":"IF(DataLog!$C824=\"Log value\",DataLog!AA824,\"\")","v":""},{"$f":"IF(DataLog!$C824=\"Log value\",DataLog!AB824,\"\")","v":""},{"$f":"IF(DataLog!$C824=\"Log value\",DataLog!AC824,\"\")","v":""},{"$f":"IF(DataLog!$C824=\"Log value\",DataLog!AD824,\"\")","v":""},{"$f":"IF(DataLog!$C824=\"Log value\",DataLog!AE824,\"\")","v":""},{"$f":"IF(DataLog!$C824=\"Log value\",DataLog!AF824,\"\")","v":""},{"$f":"IF(DataLog!$C824=\"Log value\",DataLog!AG824,\"\")","v":""},{"$f":"IF(DataLog!$C824=\"Log value\",DataLog!AH824,\"\")","v":""},{"$f":"IF(DataLog!$C824=\"Log value\",DataLog!AI824,\"\")","v":""},{"$f":"IF(DataLog!$C824=\"Log value\",DataLog!AJ824,\"\")","v":""},{"$f":"IF(DataLog!$C824=\"Log value\",DataLog!AK824,\"\")","v":""},{"$f":"IF(DataLog!$C824=\"Log value\",DataLog!AL824,\"\")","v":""},{"$f":"IF(DataLog!$C824=\"Log value\",DataLog!AM824,\"\")","v":""}]
[null,null,null,null,null,null,{"$f":"IF(DataLog!$C825=\"Log value\",DataLog!D825&\"_\"&TEXT(DataLog!B825,\"åååå-mm-dd\"),\"\")","v":""},{"$f":"IF(DataLog!$C825=\"Log value\",DataLog!E825,\"\")","v":""},{"$f":"IF(DataLog!$C825=\"Log value\",DataLog!F825,\"\")","v":""},{"$f":"IF(DataLog!$C825=\"Log value\",DataLog!G825,\"\")","v":""},{"$f":"IF(DataLog!$C825=\"Log value\",DataLog!H825,\"\")","v":""},{"$f":"IF(DataLog!$C825=\"Log value\",DataLog!I825,\"\")","v":""},{"$f":"IF(DataLog!$C825=\"Log value\",DataLog!J825,\"\")","v":""},{"$f":"IF(DataLog!$C825=\"Log value\",DataLog!K825,\"\")","v":""},{"$f":"IF(DataLog!$C825=\"Log value\",DataLog!L825,\"\")","v":""},{"$f":"IF(DataLog!$C825=\"Log value\",DataLog!M825,\"\")","v":""},{"$f":"IF(DataLog!$C825=\"Log value\",DataLog!N825,\"\")","v":""},{"$f":"IF(DataLog!$C825=\"Log value\",DataLog!O825,\"\")","v":""},{"$f":"IF(DataLog!$C825=\"Log value\",DataLog!P825,\"\")","v":""},{"$f":"IF(DataLog!$C825=\"Log value\",DataLog!Q825,\"\")","v":""},{"$f":"IF(DataLog!$C825=\"Log value\",DataLog!R825,\"\")","v":""},{"$f":"IF(DataLog!$C825=\"Log value\",DataLog!S825,\"\")","v":""},{"$f":"IF(DataLog!$C825=\"Log value\",DataLog!T825,\"\")","v":""},{"$f":"IF(DataLog!$C825=\"Log value\",DataLog!U825,\"\")","v":""},{"$f":"IF(DataLog!$C825=\"Log value\",DataLog!V825,\"\")","v":""},{"$f":"IF(DataLog!$C825=\"Log value\",DataLog!W825,\"\")","v":""},{"$f":"IF(DataLog!$C825=\"Log value\",DataLog!X825,\"\")","v":""},{"$f":"IF(DataLog!$C825=\"Log value\",DataLog!Y825,\"\")","v":""},{"$f":"IF(DataLog!$C825=\"Log value\",DataLog!Z825,\"\")","v":""},{"$f":"IF(DataLog!$C825=\"Log value\",DataLog!AA825,\"\")","v":""},{"$f":"IF(DataLog!$C825=\"Log value\",DataLog!AB825,\"\")","v":""},{"$f":"IF(DataLog!$C825=\"Log value\",DataLog!AC825,\"\")","v":""},{"$f":"IF(DataLog!$C825=\"Log value\",DataLog!AD825,\"\")","v":""},{"$f":"IF(DataLog!$C825=\"Log value\",DataLog!AE825,\"\")","v":""},{"$f":"IF(DataLog!$C825=\"Log value\",DataLog!AF825,\"\")","v":""},{"$f":"IF(DataLog!$C825=\"Log value\",DataLog!AG825,\"\")","v":""},{"$f":"IF(DataLog!$C825=\"Log value\",DataLog!AH825,\"\")","v":""},{"$f":"IF(DataLog!$C825=\"Log value\",DataLog!AI825,\"\")","v":""},{"$f":"IF(DataLog!$C825=\"Log value\",DataLog!AJ825,\"\")","v":""},{"$f":"IF(DataLog!$C825=\"Log value\",DataLog!AK825,\"\")","v":""},{"$f":"IF(DataLog!$C825=\"Log value\",DataLog!AL825,\"\")","v":""},{"$f":"IF(DataLog!$C825=\"Log value\",DataLog!AM825,\"\")","v":""}]
[null,null,null,null,null,null,{"$f":"IF(DataLog!$C826=\"Log value\",DataLog!D826&\"_\"&TEXT(DataLog!B826,\"åååå-mm-dd\"),\"\")","v":""},{"$f":"IF(DataLog!$C826=\"Log value\",DataLog!E826,\"\")","v":""},{"$f":"IF(DataLog!$C826=\"Log value\",DataLog!F826,\"\")","v":""},{"$f":"IF(DataLog!$C826=\"Log value\",DataLog!G826,\"\")","v":""},{"$f":"IF(DataLog!$C826=\"Log value\",DataLog!H826,\"\")","v":""},{"$f":"IF(DataLog!$C826=\"Log value\",DataLog!I826,\"\")","v":""},{"$f":"IF(DataLog!$C826=\"Log value\",DataLog!J826,\"\")","v":""},{"$f":"IF(DataLog!$C826=\"Log value\",DataLog!K826,\"\")","v":""},{"$f":"IF(DataLog!$C826=\"Log value\",DataLog!L826,\"\")","v":""},{"$f":"IF(DataLog!$C826=\"Log value\",DataLog!M826,\"\")","v":""},{"$f":"IF(DataLog!$C826=\"Log value\",DataLog!N826,\"\")","v":""},{"$f":"IF(DataLog!$C826=\"Log value\",DataLog!O826,\"\")","v":""},{"$f":"IF(DataLog!$C826=\"Log value\",DataLog!P826,\"\")","v":""},{"$f":"IF(DataLog!$C826=\"Log value\",DataLog!Q826,\"\")","v":""},{"$f":"IF(DataLog!$C826=\"Log value\",DataLog!R826,\"\")","v":""},{"$f":"IF(DataLog!$C826=\"Log value\",DataLog!S826,\"\")","v":""},{"$f":"IF(DataLog!$C826=\"Log value\",DataLog!T826,\"\")","v":""},{"$f":"IF(DataLog!$C826=\"Log value\",DataLog!U826,\"\")","v":""},{"$f":"IF(DataLog!$C826=\"Log value\",DataLog!V826,\"\")","v":""},{"$f":"IF(DataLog!$C826=\"Log value\",DataLog!W826,\"\")","v":""},{"$f":"IF(DataLog!$C826=\"Log value\",DataLog!X826,\"\")","v":""},{"$f":"IF(DataLog!$C826=\"Log value\",DataLog!Y826,\"\")","v":""},{"$f":"IF(DataLog!$C826=\"Log value\",DataLog!Z826,\"\")","v":""},{"$f":"IF(DataLog!$C826=\"Log value\",DataLog!AA826,\"\")","v":""},{"$f":"IF(DataLog!$C826=\"Log value\",DataLog!AB826,\"\")","v":""},{"$f":"IF(DataLog!$C826=\"Log value\",DataLog!AC826,\"\")","v":""},{"$f":"IF(DataLog!$C826=\"Log value\",DataLog!AD826,\"\")","v":""},{"$f":"IF(DataLog!$C826=\"Log value\",DataLog!AE826,\"\")","v":""},{"$f":"IF(DataLog!$C826=\"Log value\",DataLog!AF826,\"\")","v":""},{"$f":"IF(DataLog!$C826=\"Log value\",DataLog!AG826,\"\")","v":""},{"$f":"IF(DataLog!$C826=\"Log value\",DataLog!AH826,\"\")","v":""},{"$f":"IF(DataLog!$C826=\"Log value\",DataLog!AI826,\"\")","v":""},{"$f":"IF(DataLog!$C826=\"Log value\",DataLog!AJ826,\"\")","v":""},{"$f":"IF(DataLog!$C826=\"Log value\",DataLog!AK826,\"\")","v":""},{"$f":"IF(DataLog!$C826=\"Log value\",DataLog!AL826,\"\")","v":""},{"$f":"IF(DataLog!$C826=\"Log value\",DataLog!AM826,\"\")","v":""}]
[null,null,null,null,null,null,{"$f":"IF(DataLog!$C827=\"Log value\",DataLog!D827&\"_\"&TEXT(DataLog!B827,\"åååå-mm-dd\"),\"\")","v":""},{"$f":"IF(DataLog!$C827=\"Log value\",DataLog!E827,\"\")","v":""},{"$f":"IF(DataLog!$C827=\"Log value\",DataLog!F827,\"\")","v":""},{"$f":"IF(DataLog!$C827=\"Log value\",DataLog!G827,\"\")","v":""},{"$f":"IF(DataLog!$C827=\"Log value\",DataLog!H827,\"\")","v":""},{"$f":"IF(DataLog!$C827=\"Log value\",DataLog!I827,\"\")","v":""},{"$f":"IF(DataLog!$C827=\"Log value\",DataLog!J827,\"\")","v":""},{"$f":"IF(DataLog!$C827=\"Log value\",DataLog!K827,\"\")","v":""},{"$f":"IF(DataLog!$C827=\"Log value\",DataLog!L827,\"\")","v":""},{"$f":"IF(DataLog!$C827=\"Log value\",DataLog!M827,\"\")","v":""},{"$f":"IF(DataLog!$C827=\"Log value\",DataLog!N827,\"\")","v":""},{"$f":"IF(DataLog!$C827=\"Log value\",DataLog!O827,\"\")","v":""},{"$f":"IF(DataLog!$C827=\"Log value\",DataLog!P827,\"\")","v":""},{"$f":"IF(DataLog!$C827=\"Log value\",DataLog!Q827,\"\")","v":""},{"$f":"IF(DataLog!$C827=\"Log value\",DataLog!R827,\"\")","v":""},{"$f":"IF(DataLog!$C827=\"Log value\",DataLog!S827,\"\")","v":""},{"$f":"IF(DataLog!$C827=\"Log value\",DataLog!T827,\"\")","v":""},{"$f":"IF(DataLog!$C827=\"Log value\",DataLog!U827,\"\")","v":""},{"$f":"IF(DataLog!$C827=\"Log value\",DataLog!V827,\"\")","v":""},{"$f":"IF(DataLog!$C827=\"Log value\",DataLog!W827,\"\")","v":""},{"$f":"IF(DataLog!$C827=\"Log value\",DataLog!X827,\"\")","v":""},{"$f":"IF(DataLog!$C827=\"Log value\",DataLog!Y827,\"\")","v":""},{"$f":"IF(DataLog!$C827=\"Log value\",DataLog!Z827,\"\")","v":""},{"$f":"IF(DataLog!$C827=\"Log value\",DataLog!AA827,\"\")","v":""},{"$f":"IF(DataLog!$C827=\"Log value\",DataLog!AB827,\"\")","v":""},{"$f":"IF(DataLog!$C827=\"Log value\",DataLog!AC827,\"\")","v":""},{"$f":"IF(DataLog!$C827=\"Log value\",DataLog!AD827,\"\")","v":""},{"$f":"IF(DataLog!$C827=\"Log value\",DataLog!AE827,\"\")","v":""},{"$f":"IF(DataLog!$C827=\"Log value\",DataLog!AF827,\"\")","v":""},{"$f":"IF(DataLog!$C827=\"Log value\",DataLog!AG827,\"\")","v":""},{"$f":"IF(DataLog!$C827=\"Log value\",DataLog!AH827,\"\")","v":""},{"$f":"IF(DataLog!$C827=\"Log value\",DataLog!AI827,\"\")","v":""},{"$f":"IF(DataLog!$C827=\"Log value\",DataLog!AJ827,\"\")","v":""},{"$f":"IF(DataLog!$C827=\"Log value\",DataLog!AK827,\"\")","v":""},{"$f":"IF(DataLog!$C827=\"Log value\",DataLog!AL827,\"\")","v":""},{"$f":"IF(DataLog!$C827=\"Log value\",DataLog!AM827,\"\")","v":""}]
[null,null,null,null,null,null,{"$f":"IF(DataLog!$C828=\"Log value\",DataLog!D828&\"_\"&TEXT(DataLog!B828,\"åååå-mm-dd\"),\"\")","v":""},{"$f":"IF(DataLog!$C828=\"Log value\",DataLog!E828,\"\")","v":""},{"$f":"IF(DataLog!$C828=\"Log value\",DataLog!F828,\"\")","v":""},{"$f":"IF(DataLog!$C828=\"Log value\",DataLog!G828,\"\")","v":""},{"$f":"IF(DataLog!$C828=\"Log value\",DataLog!H828,\"\")","v":""},{"$f":"IF(DataLog!$C828=\"Log value\",DataLog!I828,\"\")","v":""},{"$f":"IF(DataLog!$C828=\"Log value\",DataLog!J828,\"\")","v":""},{"$f":"IF(DataLog!$C828=\"Log value\",DataLog!K828,\"\")","v":""},{"$f":"IF(DataLog!$C828=\"Log value\",DataLog!L828,\"\")","v":""},{"$f":"IF(DataLog!$C828=\"Log value\",DataLog!M828,\"\")","v":""},{"$f":"IF(DataLog!$C828=\"Log value\",DataLog!N828,\"\")","v":""},{"$f":"IF(DataLog!$C828=\"Log value\",DataLog!O828,\"\")","v":""},{"$f":"IF(DataLog!$C828=\"Log value\",DataLog!P828,\"\")","v":""},{"$f":"IF(DataLog!$C828=\"Log value\",DataLog!Q828,\"\")","v":""},{"$f":"IF(DataLog!$C828=\"Log value\",DataLog!R828,\"\")","v":""},{"$f":"IF(DataLog!$C828=\"Log value\",DataLog!S828,\"\")","v":""},{"$f":"IF(DataLog!$C828=\"Log value\",DataLog!T828,\"\")","v":""},{"$f":"IF(DataLog!$C828=\"Log value\",DataLog!U828,\"\")","v":""},{"$f":"IF(DataLog!$C828=\"Log value\",DataLog!V828,\"\")","v":""},{"$f":"IF(DataLog!$C828=\"Log value\",DataLog!W828,\"\")","v":""},{"$f":"IF(DataLog!$C828=\"Log value\",DataLog!X828,\"\")","v":""},{"$f":"IF(DataLog!$C828=\"Log value\",DataLog!Y828,\"\")","v":""},{"$f":"IF(DataLog!$C828=\"Log value\",DataLog!Z828,\"\")","v":""},{"$f":"IF(DataLog!$C828=\"Log value\",DataLog!AA828,\"\")","v":""},{"$f":"IF(DataLog!$C828=\"Log value\",DataLog!AB828,\"\")","v":""},{"$f":"IF(DataLog!$C828=\"Log value\",DataLog!AC828,\"\")","v":""},{"$f":"IF(DataLog!$C828=\"Log value\",DataLog!AD828,\"\")","v":""},{"$f":"IF(DataLog!$C828=\"Log value\",DataLog!AE828,\"\")","v":""},{"$f":"IF(DataLog!$C828=\"Log value\",DataLog!AF828,\"\")","v":""},{"$f":"IF(DataLog!$C828=\"Log value\",DataLog!AG828,\"\")","v":""},{"$f":"IF(DataLog!$C828=\"Log value\",DataLog!AH828,\"\")","v":""},{"$f":"IF(DataLog!$C828=\"Log value\",DataLog!AI828,\"\")","v":""},{"$f":"IF(DataLog!$C828=\"Log value\",DataLog!AJ828,\"\")","v":""},{"$f":"IF(DataLog!$C828=\"Log value\",DataLog!AK828,\"\")","v":""},{"$f":"IF(DataLog!$C828=\"Log value\",DataLog!AL828,\"\")","v":""},{"$f":"IF(DataLog!$C828=\"Log value\",DataLog!AM828,\"\")","v":""}]
[null,null,null,null,null,null,{"$f":"IF(DataLog!$C829=\"Log value\",DataLog!D829&\"_\"&TEXT(DataLog!B829,\"åååå-mm-dd\"),\"\")","v":""},{"$f":"IF(DataLog!$C829=\"Log value\",DataLog!E829,\"\")","v":""},{"$f":"IF(DataLog!$C829=\"Log value\",DataLog!F829,\"\")","v":""},{"$f":"IF(DataLog!$C829=\"Log value\",DataLog!G829,\"\")","v":""},{"$f":"IF(DataLog!$C829=\"Log value\",DataLog!H829,\"\")","v":""},{"$f":"IF(DataLog!$C829=\"Log value\",DataLog!I829,\"\")","v":""},{"$f":"IF(DataLog!$C829=\"Log value\",DataLog!J829,\"\")","v":""},{"$f":"IF(DataLog!$C829=\"Log value\",DataLog!K829,\"\")","v":""},{"$f":"IF(DataLog!$C829=\"Log value\",DataLog!L829,\"\")","v":""},{"$f":"IF(DataLog!$C829=\"Log value\",DataLog!M829,\"\")","v":""},{"$f":"IF(DataLog!$C829=\"Log value\",DataLog!N829,\"\")","v":""},{"$f":"IF(DataLog!$C829=\"Log value\",DataLog!O829,\"\")","v":""},{"$f":"IF(DataLog!$C829=\"Log value\",DataLog!P829,\"\")","v":""},{"$f":"IF(DataLog!$C829=\"Log value\",DataLog!Q829,\"\")","v":""},{"$f":"IF(DataLog!$C829=\"Log value\",DataLog!R829,\"\")","v":""},{"$f":"IF(DataLog!$C829=\"Log value\",DataLog!S829,\"\")","v":""},{"$f":"IF(DataLog!$C829=\"Log value\",DataLog!T829,\"\")","v":""},{"$f":"IF(DataLog!$C829=\"Log value\",DataLog!U829,\"\")","v":""},{"$f":"IF(DataLog!$C829=\"Log value\",DataLog!V829,\"\")","v":""},{"$f":"IF(DataLog!$C829=\"Log value\",DataLog!W829,\"\")","v":""},{"$f":"IF(DataLog!$C829=\"Log value\",DataLog!X829,\"\")","v":""},{"$f":"IF(DataLog!$C829=\"Log value\",DataLog!Y829,\"\")","v":""},{"$f":"IF(DataLog!$C829=\"Log value\",DataLog!Z829,\"\")","v":""},{"$f":"IF(DataLog!$C829=\"Log value\",DataLog!AA829,\"\")","v":""},{"$f":"IF(DataLog!$C829=\"Log value\",DataLog!AB829,\"\")","v":""},{"$f":"IF(DataLog!$C829=\"Log value\",DataLog!AC829,\"\")","v":""},{"$f":"IF(DataLog!$C829=\"Log value\",DataLog!AD829,\"\")","v":""},{"$f":"IF(DataLog!$C829=\"Log value\",DataLog!AE829,\"\")","v":""},{"$f":"IF(DataLog!$C829=\"Log value\",DataLog!AF829,\"\")","v":""},{"$f":"IF(DataLog!$C829=\"Log value\",DataLog!AG829,\"\")","v":""},{"$f":"IF(DataLog!$C829=\"Log value\",DataLog!AH829,\"\")","v":""},{"$f":"IF(DataLog!$C829=\"Log value\",DataLog!AI829,\"\")","v":""},{"$f":"IF(DataLog!$C829=\"Log value\",DataLog!AJ829,\"\")","v":""},{"$f":"IF(DataLog!$C829=\"Log value\",DataLog!AK829,\"\")","v":""},{"$f":"IF(DataLog!$C829=\"Log value\",DataLog!AL829,\"\")","v":""},{"$f":"IF(DataLog!$C829=\"Log value\",DataLog!AM829,\"\")","v":""}]
[null,null,null,null,null,null,{"$f":"IF(DataLog!$C830=\"Log value\",DataLog!D830&\"_\"&TEXT(DataLog!B830,\"åååå-mm-dd\"),\"\")","v":""},{"$f":"IF(DataLog!$C830=\"Log value\",DataLog!E830,\"\")","v":""},{"$f":"IF(DataLog!$C830=\"Log value\",DataLog!F830,\"\")","v":""},{"$f":"IF(DataLog!$C830=\"Log value\",DataLog!G830,\"\")","v":""},{"$f":"IF(DataLog!$C830=\"Log value\",DataLog!H830,\"\")","v":""},{"$f":"IF(DataLog!$C830=\"Log value\",DataLog!I830,\"\")","v":""},{"$f":"IF(DataLog!$C830=\"Log value\",DataLog!J830,\"\")","v":""},{"$f":"IF(DataLog!$C830=\"Log value\",DataLog!K830,\"\")","v":""},{"$f":"IF(DataLog!$C830=\"Log value\",DataLog!L830,\"\")","v":""},{"$f":"IF(DataLog!$C830=\"Log value\",DataLog!M830,\"\")","v":""},{"$f":"IF(DataLog!$C830=\"Log value\",DataLog!N830,\"\")","v":""},{"$f":"IF(DataLog!$C830=\"Log value\",DataLog!O830,\"\")","v":""},{"$f":"IF(DataLog!$C830=\"Log value\",DataLog!P830,\"\")","v":""},{"$f":"IF(DataLog!$C830=\"Log value\",DataLog!Q830,\"\")","v":""},{"$f":"IF(DataLog!$C830=\"Log value\",DataLog!R830,\"\")","v":""},{"$f":"IF(DataLog!$C830=\"Log value\",DataLog!S830,\"\")","v":""},{"$f":"IF(DataLog!$C830=\"Log value\",DataLog!T830,\"\")","v":""},{"$f":"IF(DataLog!$C830=\"Log value\",DataLog!U830,\"\")","v":""},{"$f":"IF(DataLog!$C830=\"Log value\",DataLog!V830,\"\")","v":""},{"$f":"IF(DataLog!$C830=\"Log value\",DataLog!W830,\"\")","v":""},{"$f":"IF(DataLog!$C830=\"Log value\",DataLog!X830,\"\")","v":""},{"$f":"IF(DataLog!$C830=\"Log value\",DataLog!Y830,\"\")","v":""},{"$f":"IF(DataLog!$C830=\"Log value\",DataLog!Z830,\"\")","v":""},{"$f":"IF(DataLog!$C830=\"Log value\",DataLog!AA830,\"\")","v":""},{"$f":"IF(DataLog!$C830=\"Log value\",DataLog!AB830,\"\")","v":""},{"$f":"IF(DataLog!$C830=\"Log value\",DataLog!AC830,\"\")","v":""},{"$f":"IF(DataLog!$C830=\"Log value\",DataLog!AD830,\"\")","v":""},{"$f":"IF(DataLog!$C830=\"Log value\",DataLog!AE830,\"\")","v":""},{"$f":"IF(DataLog!$C830=\"Log value\",DataLog!AF830,\"\")","v":""},{"$f":"IF(DataLog!$C830=\"Log value\",DataLog!AG830,\"\")","v":""},{"$f":"IF(DataLog!$C830=\"Log value\",DataLog!AH830,\"\")","v":""},{"$f":"IF(DataLog!$C830=\"Log value\",DataLog!AI830,\"\")","v":""},{"$f":"IF(DataLog!$C830=\"Log value\",DataLog!AJ830,\"\")","v":""},{"$f":"IF(DataLog!$C830=\"Log value\",DataLog!AK830,\"\")","v":""},{"$f":"IF(DataLog!$C830=\"Log value\",DataLog!AL830,\"\")","v":""},{"$f":"IF(DataLog!$C830=\"Log value\",DataLog!AM830,\"\")","v":""}]
[null,null,null,null,null,null,{"$f":"IF(DataLog!$C831=\"Log value\",DataLog!D831&\"_\"&TEXT(DataLog!B831,\"åååå-mm-dd\"),\"\")","v":""},{"$f":"IF(DataLog!$C831=\"Log value\",DataLog!E831,\"\")","v":""},{"$f":"IF(DataLog!$C831=\"Log value\",DataLog!F831,\"\")","v":""},{"$f":"IF(DataLog!$C831=\"Log value\",DataLog!G831,\"\")","v":""},{"$f":"IF(DataLog!$C831=\"Log value\",DataLog!H831,\"\")","v":""},{"$f":"IF(DataLog!$C831=\"Log value\",DataLog!I831,\"\")","v":""},{"$f":"IF(DataLog!$C831=\"Log value\",DataLog!J831,\"\")","v":""},{"$f":"IF(DataLog!$C831=\"Log value\",DataLog!K831,\"\")","v":""},{"$f":"IF(DataLog!$C831=\"Log value\",DataLog!L831,\"\")","v":""},{"$f":"IF(DataLog!$C831=\"Log value\",DataLog!M831,\"\")","v":""},{"$f":"IF(DataLog!$C831=\"Log value\",DataLog!N831,\"\")","v":""},{"$f":"IF(DataLog!$C831=\"Log value\",DataLog!O831,\"\")","v":""},{"$f":"IF(DataLog!$C831=\"Log value\",DataLog!P831,\"\")","v":""},{"$f":"IF(DataLog!$C831=\"Log value\",DataLog!Q831,\"\")","v":""},{"$f":"IF(DataLog!$C831=\"Log value\",DataLog!R831,\"\")","v":""},{"$f":"IF(DataLog!$C831=\"Log value\",DataLog!S831,\"\")","v":""},{"$f":"IF(DataLog!$C831=\"Log value\",DataLog!T831,\"\")","v":""},{"$f":"IF(DataLog!$C831=\"Log value\",DataLog!U831,\"\")","v":""},{"$f":"IF(DataLog!$C831=\"Log value\",DataLog!V831,\"\")","v":""},{"$f":"IF(DataLog!$C831=\"Log value\",DataLog!W831,\"\")","v":""},{"$f":"IF(DataLog!$C831=\"Log value\",DataLog!X831,\"\")","v":""},{"$f":"IF(DataLog!$C831=\"Log value\",DataLog!Y831,\"\")","v":""},{"$f":"IF(DataLog!$C831=\"Log value\",DataLog!Z831,\"\")","v":""},{"$f":"IF(DataLog!$C831=\"Log value\",DataLog!AA831,\"\")","v":""},{"$f":"IF(DataLog!$C831=\"Log value\",DataLog!AB831,\"\")","v":""},{"$f":"IF(DataLog!$C831=\"Log value\",DataLog!AC831,\"\")","v":""},{"$f":"IF(DataLog!$C831=\"Log value\",DataLog!AD831,\"\")","v":""},{"$f":"IF(DataLog!$C831=\"Log value\",DataLog!AE831,\"\")","v":""},{"$f":"IF(DataLog!$C831=\"Log value\",DataLog!AF831,\"\")","v":""},{"$f":"IF(DataLog!$C831=\"Log value\",DataLog!AG831,\"\")","v":""},{"$f":"IF(DataLog!$C831=\"Log value\",DataLog!AH831,\"\")","v":""},{"$f":"IF(DataLog!$C831=\"Log value\",DataLog!AI831,\"\")","v":""},{"$f":"IF(DataLog!$C831=\"Log value\",DataLog!AJ831,\"\")","v":""},{"$f":"IF(DataLog!$C831=\"Log value\",DataLog!AK831,\"\")","v":""},{"$f":"IF(DataLog!$C831=\"Log value\",DataLog!AL831,\"\")","v":""},{"$f":"IF(DataLog!$C831=\"Log value\",DataLog!AM831,\"\")","v":""}]
[null,null,null,null,null,null,{"$f":"IF(DataLog!$C832=\"Log value\",DataLog!D832&\"_\"&TEXT(DataLog!B832,\"åååå-mm-dd\"),\"\")","v":""},{"$f":"IF(DataLog!$C832=\"Log value\",DataLog!E832,\"\")","v":""},{"$f":"IF(DataLog!$C832=\"Log value\",DataLog!F832,\"\")","v":""},{"$f":"IF(DataLog!$C832=\"Log value\",DataLog!G832,\"\")","v":""},{"$f":"IF(DataLog!$C832=\"Log value\",DataLog!H832,\"\")","v":""},{"$f":"IF(DataLog!$C832=\"Log value\",DataLog!I832,\"\")","v":""},{"$f":"IF(DataLog!$C832=\"Log value\",DataLog!J832,\"\")","v":""},{"$f":"IF(DataLog!$C832=\"Log value\",DataLog!K832,\"\")","v":""},{"$f":"IF(DataLog!$C832=\"Log value\",DataLog!L832,\"\")","v":""},{"$f":"IF(DataLog!$C832=\"Log value\",DataLog!M832,\"\")","v":""},{"$f":"IF(DataLog!$C832=\"Log value\",DataLog!N832,\"\")","v":""},{"$f":"IF(DataLog!$C832=\"Log value\",DataLog!O832,\"\")","v":""},{"$f":"IF(DataLog!$C832=\"Log value\",DataLog!P832,\"\")","v":""},{"$f":"IF(DataLog!$C832=\"Log value\",DataLog!Q832,\"\")","v":""},{"$f":"IF(DataLog!$C832=\"Log value\",DataLog!R832,\"\")","v":""},{"$f":"IF(DataLog!$C832=\"Log value\",DataLog!S832,\"\")","v":""},{"$f":"IF(DataLog!$C832=\"Log value\",DataLog!T832,\"\")","v":""},{"$f":"IF(DataLog!$C832=\"Log value\",DataLog!U832,\"\")","v":""},{"$f":"IF(DataLog!$C832=\"Log value\",DataLog!V832,\"\")","v":""},{"$f":"IF(DataLog!$C832=\"Log value\",DataLog!W832,\"\")","v":""},{"$f":"IF(DataLog!$C832=\"Log value\",DataLog!X832,\"\")","v":""},{"$f":"IF(DataLog!$C832=\"Log value\",DataLog!Y832,\"\")","v":""},{"$f":"IF(DataLog!$C832=\"Log value\",DataLog!Z832,\"\")","v":""},{"$f":"IF(DataLog!$C832=\"Log value\",DataLog!AA832,\"\")","v":""},{"$f":"IF(DataLog!$C832=\"Log value\",DataLog!AB832,\"\")","v":""},{"$f":"IF(DataLog!$C832=\"Log value\",DataLog!AC832,\"\")","v":""},{"$f":"IF(DataLog!$C832=\"Log value\",DataLog!AD832,\"\")","v":""},{"$f":"IF(DataLog!$C832=\"Log value\",DataLog!AE832,\"\")","v":""},{"$f":"IF(DataLog!$C832=\"Log value\",DataLog!AF832,\"\")","v":""},{"$f":"IF(DataLog!$C832=\"Log value\",DataLog!AG832,\"\")","v":""},{"$f":"IF(DataLog!$C832=\"Log value\",DataLog!AH832,\"\")","v":""},{"$f":"IF(DataLog!$C832=\"Log value\",DataLog!AI832,\"\")","v":""},{"$f":"IF(DataLog!$C832=\"Log value\",DataLog!AJ832,\"\")","v":""},{"$f":"IF(DataLog!$C832=\"Log value\",DataLog!AK832,\"\")","v":""},{"$f":"IF(DataLog!$C832=\"Log value\",DataLog!AL832,\"\")","v":""},{"$f":"IF(DataLog!$C832=\"Log value\",DataLog!AM832,\"\")","v":""}]
[null,null,null,null,null,null,{"$f":"IF(DataLog!$C833=\"Log value\",DataLog!D833&\"_\"&TEXT(DataLog!B833,\"åååå-mm-dd\"),\"\")","v":""},{"$f":"IF(DataLog!$C833=\"Log value\",DataLog!E833,\"\")","v":""},{"$f":"IF(DataLog!$C833=\"Log value\",DataLog!F833,\"\")","v":""},{"$f":"IF(DataLog!$C833=\"Log value\",DataLog!G833,\"\")","v":""},{"$f":"IF(DataLog!$C833=\"Log value\",DataLog!H833,\"\")","v":""},{"$f":"IF(DataLog!$C833=\"Log value\",DataLog!I833,\"\")","v":""},{"$f":"IF(DataLog!$C833=\"Log value\",DataLog!J833,\"\")","v":""},{"$f":"IF(DataLog!$C833=\"Log value\",DataLog!K833,\"\")","v":""},{"$f":"IF(DataLog!$C833=\"Log value\",DataLog!L833,\"\")","v":""},{"$f":"IF(DataLog!$C833=\"Log value\",DataLog!M833,\"\")","v":""},{"$f":"IF(DataLog!$C833=\"Log value\",DataLog!N833,\"\")","v":""},{"$f":"IF(DataLog!$C833=\"Log value\",DataLog!O833,\"\")","v":""},{"$f":"IF(DataLog!$C833=\"Log value\",DataLog!P833,\"\")","v":""},{"$f":"IF(DataLog!$C833=\"Log value\",DataLog!Q833,\"\")","v":""},{"$f":"IF(DataLog!$C833=\"Log value\",DataLog!R833,\"\")","v":""},{"$f":"IF(DataLog!$C833=\"Log value\",DataLog!S833,\"\")","v":""},{"$f":"IF(DataLog!$C833=\"Log value\",DataLog!T833,\"\")","v":""},{"$f":"IF(DataLog!$C833=\"Log value\",DataLog!U833,\"\")","v":""},{"$f":"IF(DataLog!$C833=\"Log value\",DataLog!V833,\"\")","v":""},{"$f":"IF(DataLog!$C833=\"Log value\",DataLog!W833,\"\")","v":""},{"$f":"IF(DataLog!$C833=\"Log value\",DataLog!X833,\"\")","v":""},{"$f":"IF(DataLog!$C833=\"Log value\",DataLog!Y833,\"\")","v":""},{"$f":"IF(DataLog!$C833=\"Log value\",DataLog!Z833,\"\")","v":""},{"$f":"IF(DataLog!$C833=\"Log value\",DataLog!AA833,\"\")","v":""},{"$f":"IF(DataLog!$C833=\"Log value\",DataLog!AB833,\"\")","v":""},{"$f":"IF(DataLog!$C833=\"Log value\",DataLog!AC833,\"\")","v":""},{"$f":"IF(DataLog!$C833=\"Log value\",DataLog!AD833,\"\")","v":""},{"$f":"IF(DataLog!$C833=\"Log value\",DataLog!AE833,\"\")","v":""},{"$f":"IF(DataLog!$C833=\"Log value\",DataLog!AF833,\"\")","v":""},{"$f":"IF(DataLog!$C833=\"Log value\",DataLog!AG833,\"\")","v":""},{"$f":"IF(DataLog!$C833=\"Log value\",DataLog!AH833,\"\")","v":""},{"$f":"IF(DataLog!$C833=\"Log value\",DataLog!AI833,\"\")","v":""},{"$f":"IF(DataLog!$C833=\"Log value\",DataLog!AJ833,\"\")","v":""},{"$f":"IF(DataLog!$C833=\"Log value\",DataLog!AK833,\"\")","v":""},{"$f":"IF(DataLog!$C833=\"Log value\",DataLog!AL833,\"\")","v":""},{"$f":"IF(DataLog!$C833=\"Log value\",DataLog!AM833,\"\")","v":""}]
[null,null,null,null,null,null,{"$f":"IF(DataLog!$C834=\"Log value\",DataLog!D834&\"_\"&TEXT(DataLog!B834,\"åååå-mm-dd\"),\"\")","v":""},{"$f":"IF(DataLog!$C834=\"Log value\",DataLog!E834,\"\")","v":""},{"$f":"IF(DataLog!$C834=\"Log value\",DataLog!F834,\"\")","v":""},{"$f":"IF(DataLog!$C834=\"Log value\",DataLog!G834,\"\")","v":""},{"$f":"IF(DataLog!$C834=\"Log value\",DataLog!H834,\"\")","v":""},{"$f":"IF(DataLog!$C834=\"Log value\",DataLog!I834,\"\")","v":""},{"$f":"IF(DataLog!$C834=\"Log value\",DataLog!J834,\"\")","v":""},{"$f":"IF(DataLog!$C834=\"Log value\",DataLog!K834,\"\")","v":""},{"$f":"IF(DataLog!$C834=\"Log value\",DataLog!L834,\"\")","v":""},{"$f":"IF(DataLog!$C834=\"Log value\",DataLog!M834,\"\")","v":""},{"$f":"IF(DataLog!$C834=\"Log value\",DataLog!N834,\"\")","v":""},{"$f":"IF(DataLog!$C834=\"Log value\",DataLog!O834,\"\")","v":""},{"$f":"IF(DataLog!$C834=\"Log value\",DataLog!P834,\"\")","v":""},{"$f":"IF(DataLog!$C834=\"Log value\",DataLog!Q834,\"\")","v":""},{"$f":"IF(DataLog!$C834=\"Log value\",DataLog!R834,\"\")","v":""},{"$f":"IF(DataLog!$C834=\"Log value\",DataLog!S834,\"\")","v":""},{"$f":"IF(DataLog!$C834=\"Log value\",DataLog!T834,\"\")","v":""},{"$f":"IF(DataLog!$C834=\"Log value\",DataLog!U834,\"\")","v":""},{"$f":"IF(DataLog!$C834=\"Log value\",DataLog!V834,\"\")","v":""},{"$f":"IF(DataLog!$C834=\"Log value\",DataLog!W834,\"\")","v":""},{"$f":"IF(DataLog!$C834=\"Log value\",DataLog!X834,\"\")","v":""},{"$f":"IF(DataLog!$C834=\"Log value\",DataLog!Y834,\"\")","v":""},{"$f":"IF(DataLog!$C834=\"Log value\",DataLog!Z834,\"\")","v":""},{"$f":"IF(DataLog!$C834=\"Log value\",DataLog!AA834,\"\")","v":""},{"$f":"IF(DataLog!$C834=\"Log value\",DataLog!AB834,\"\")","v":""},{"$f":"IF(DataLog!$C834=\"Log value\",DataLog!AC834,\"\")","v":""},{"$f":"IF(DataLog!$C834=\"Log value\",DataLog!AD834,\"\")","v":""},{"$f":"IF(DataLog!$C834=\"Log value\",DataLog!AE834,\"\")","v":""},{"$f":"IF(DataLog!$C834=\"Log value\",DataLog!AF834,\"\")","v":""},{"$f":"IF(DataLog!$C834=\"Log value\",DataLog!AG834,\"\")","v":""},{"$f":"IF(DataLog!$C834=\"Log value\",DataLog!AH834,\"\")","v":""},{"$f":"IF(DataLog!$C834=\"Log value\",DataLog!AI834,\"\")","v":""},{"$f":"IF(DataLog!$C834=\"Log value\",DataLog!AJ834,\"\")","v":""},{"$f":"IF(DataLog!$C834=\"Log value\",DataLog!AK834,\"\")","v":""},{"$f":"IF(DataLog!$C834=\"Log value\",DataLog!AL834,\"\")","v":""},{"$f":"IF(DataLog!$C834=\"Log value\",DataLog!AM834,\"\")","v":""}]
[null,null,null,null,null,null,{"$f":"IF(DataLog!$C835=\"Log value\",DataLog!D835&\"_\"&TEXT(DataLog!B835,\"åååå-mm-dd\"),\"\")","v":""},{"$f":"IF(DataLog!$C835=\"Log value\",DataLog!E835,\"\")","v":""},{"$f":"IF(DataLog!$C835=\"Log value\",DataLog!F835,\"\")","v":""},{"$f":"IF(DataLog!$C835=\"Log value\",DataLog!G835,\"\")","v":""},{"$f":"IF(DataLog!$C835=\"Log value\",DataLog!H835,\"\")","v":""},{"$f":"IF(DataLog!$C835=\"Log value\",DataLog!I835,\"\")","v":""},{"$f":"IF(DataLog!$C835=\"Log value\",DataLog!J835,\"\")","v":""},{"$f":"IF(DataLog!$C835=\"Log value\",DataLog!K835,\"\")","v":""},{"$f":"IF(DataLog!$C835=\"Log value\",DataLog!L835,\"\")","v":""},{"$f":"IF(DataLog!$C835=\"Log value\",DataLog!M835,\"\")","v":""},{"$f":"IF(DataLog!$C835=\"Log value\",DataLog!N835,\"\")","v":""},{"$f":"IF(DataLog!$C835=\"Log value\",DataLog!O835,\"\")","v":""},{"$f":"IF(DataLog!$C835=\"Log value\",DataLog!P835,\"\")","v":""},{"$f":"IF(DataLog!$C835=\"Log value\",DataLog!Q835,\"\")","v":""},{"$f":"IF(DataLog!$C835=\"Log value\",DataLog!R835,\"\")","v":""},{"$f":"IF(DataLog!$C835=\"Log value\",DataLog!S835,\"\")","v":""},{"$f":"IF(DataLog!$C835=\"Log value\",DataLog!T835,\"\")","v":""},{"$f":"IF(DataLog!$C835=\"Log value\",DataLog!U835,\"\")","v":""},{"$f":"IF(DataLog!$C835=\"Log value\",DataLog!V835,\"\")","v":""},{"$f":"IF(DataLog!$C835=\"Log value\",DataLog!W835,\"\")","v":""},{"$f":"IF(DataLog!$C835=\"Log value\",DataLog!X835,\"\")","v":""},{"$f":"IF(DataLog!$C835=\"Log value\",DataLog!Y835,\"\")","v":""},{"$f":"IF(DataLog!$C835=\"Log value\",DataLog!Z835,\"\")","v":""},{"$f":"IF(DataLog!$C835=\"Log value\",DataLog!AA835,\"\")","v":""},{"$f":"IF(DataLog!$C835=\"Log value\",DataLog!AB835,\"\")","v":""},{"$f":"IF(DataLog!$C835=\"Log value\",DataLog!AC835,\"\")","v":""},{"$f":"IF(DataLog!$C835=\"Log value\",DataLog!AD835,\"\")","v":""},{"$f":"IF(DataLog!$C835=\"Log value\",DataLog!AE835,\"\")","v":""},{"$f":"IF(DataLog!$C835=\"Log value\",DataLog!AF835,\"\")","v":""},{"$f":"IF(DataLog!$C835=\"Log value\",DataLog!AG835,\"\")","v":""},{"$f":"IF(DataLog!$C835=\"Log value\",DataLog!AH835,\"\")","v":""},{"$f":"IF(DataLog!$C835=\"Log value\",DataLog!AI835,\"\")","v":""},{"$f":"IF(DataLog!$C835=\"Log value\",DataLog!AJ835,\"\")","v":""},{"$f":"IF(DataLog!$C835=\"Log value\",DataLog!AK835,\"\")","v":""},{"$f":"IF(DataLog!$C835=\"Log value\",DataLog!AL835,\"\")","v":""},{"$f":"IF(DataLog!$C835=\"Log value\",DataLog!AM835,\"\")","v":""}]
[null,null,null,null,null,null,{"$f":"IF(DataLog!$C836=\"Log value\",DataLog!D836&\"_\"&TEXT(DataLog!B836,\"åååå-mm-dd\"),\"\")","v":""},{"$f":"IF(DataLog!$C836=\"Log value\",DataLog!E836,\"\")","v":""},{"$f":"IF(DataLog!$C836=\"Log value\",DataLog!F836,\"\")","v":""},{"$f":"IF(DataLog!$C836=\"Log value\",DataLog!G836,\"\")","v":""},{"$f":"IF(DataLog!$C836=\"Log value\",DataLog!H836,\"\")","v":""},{"$f":"IF(DataLog!$C836=\"Log value\",DataLog!I836,\"\")","v":""},{"$f":"IF(DataLog!$C836=\"Log value\",DataLog!J836,\"\")","v":""},{"$f":"IF(DataLog!$C836=\"Log value\",DataLog!K836,\"\")","v":""},{"$f":"IF(DataLog!$C836=\"Log value\",DataLog!L836,\"\")","v":""},{"$f":"IF(DataLog!$C836=\"Log value\",DataLog!M836,\"\")","v":""},{"$f":"IF(DataLog!$C836=\"Log value\",DataLog!N836,\"\")","v":""},{"$f":"IF(DataLog!$C836=\"Log value\",DataLog!O836,\"\")","v":""},{"$f":"IF(DataLog!$C836=\"Log value\",DataLog!P836,\"\")","v":""},{"$f":"IF(DataLog!$C836=\"Log value\",DataLog!Q836,\"\")","v":""},{"$f":"IF(DataLog!$C836=\"Log value\",DataLog!R836,\"\")","v":""},{"$f":"IF(DataLog!$C836=\"Log value\",DataLog!S836,\"\")","v":""},{"$f":"IF(DataLog!$C836=\"Log value\",DataLog!T836,\"\")","v":""},{"$f":"IF(DataLog!$C836=\"Log value\",DataLog!U836,\"\")","v":""},{"$f":"IF(DataLog!$C836=\"Log value\",DataLog!V836,\"\")","v":""},{"$f":"IF(DataLog!$C836=\"Log value\",DataLog!W836,\"\")","v":""},{"$f":"IF(DataLog!$C836=\"Log value\",DataLog!X836,\"\")","v":""},{"$f":"IF(DataLog!$C836=\"Log value\",DataLog!Y836,\"\")","v":""},{"$f":"IF(DataLog!$C836=\"Log value\",DataLog!Z836,\"\")","v":""},{"$f":"IF(DataLog!$C836=\"Log value\",DataLog!AA836,\"\")","v":""},{"$f":"IF(DataLog!$C836=\"Log value\",DataLog!AB836,\"\")","v":""},{"$f":"IF(DataLog!$C836=\"Log value\",DataLog!AC836,\"\")","v":""},{"$f":"IF(DataLog!$C836=\"Log value\",DataLog!AD836,\"\")","v":""},{"$f":"IF(DataLog!$C836=\"Log value\",DataLog!AE836,\"\")","v":""},{"$f":"IF(DataLog!$C836=\"Log value\",DataLog!AF836,\"\")","v":""},{"$f":"IF(DataLog!$C836=\"Log value\",DataLog!AG836,\"\")","v":""},{"$f":"IF(DataLog!$C836=\"Log value\",DataLog!AH836,\"\")","v":""},{"$f":"IF(DataLog!$C836=\"Log value\",DataLog!AI836,\"\")","v":""},{"$f":"IF(DataLog!$C836=\"Log value\",DataLog!AJ836,\"\")","v":""},{"$f":"IF(DataLog!$C836=\"Log value\",DataLog!AK836,\"\")","v":""},{"$f":"IF(DataLog!$C836=\"Log value\",DataLog!AL836,\"\")","v":""},{"$f":"IF(DataLog!$C836=\"Log value\",DataLog!AM836,\"\")","v":""}]
[null,null,null,null,null,null,{"$f":"IF(DataLog!$C837=\"Log value\",DataLog!D837&\"_\"&TEXT(DataLog!B837,\"åååå-mm-dd\"),\"\")","v":""},{"$f":"IF(DataLog!$C837=\"Log value\",DataLog!E837,\"\")","v":""},{"$f":"IF(DataLog!$C837=\"Log value\",DataLog!F837,\"\")","v":""},{"$f":"IF(DataLog!$C837=\"Log value\",DataLog!G837,\"\")","v":""},{"$f":"IF(DataLog!$C837=\"Log value\",DataLog!H837,\"\")","v":""},{"$f":"IF(DataLog!$C837=\"Log value\",DataLog!I837,\"\")","v":""},{"$f":"IF(DataLog!$C837=\"Log value\",DataLog!J837,\"\")","v":""},{"$f":"IF(DataLog!$C837=\"Log value\",DataLog!K837,\"\")","v":""},{"$f":"IF(DataLog!$C837=\"Log value\",DataLog!L837,\"\")","v":""},{"$f":"IF(DataLog!$C837=\"Log value\",DataLog!M837,\"\")","v":""},{"$f":"IF(DataLog!$C837=\"Log value\",DataLog!N837,\"\")","v":""},{"$f":"IF(DataLog!$C837=\"Log value\",DataLog!O837,\"\")","v":""},{"$f":"IF(DataLog!$C837=\"Log value\",DataLog!P837,\"\")","v":""},{"$f":"IF(DataLog!$C837=\"Log value\",DataLog!Q837,\"\")","v":""},{"$f":"IF(DataLog!$C837=\"Log value\",DataLog!R837,\"\")","v":""},{"$f":"IF(DataLog!$C837=\"Log value\",DataLog!S837,\"\")","v":""},{"$f":"IF(DataLog!$C837=\"Log value\",DataLog!T837,\"\")","v":""},{"$f":"IF(DataLog!$C837=\"Log value\",DataLog!U837,\"\")","v":""},{"$f":"IF(DataLog!$C837=\"Log value\",DataLog!V837,\"\")","v":""},{"$f":"IF(DataLog!$C837=\"Log value\",DataLog!W837,\"\")","v":""},{"$f":"IF(DataLog!$C837=\"Log value\",DataLog!X837,\"\")","v":""},{"$f":"IF(DataLog!$C837=\"Log value\",DataLog!Y837,\"\")","v":""},{"$f":"IF(DataLog!$C837=\"Log value\",DataLog!Z837,\"\")","v":""},{"$f":"IF(DataLog!$C837=\"Log value\",DataLog!AA837,\"\")","v":""},{"$f":"IF(DataLog!$C837=\"Log value\",DataLog!AB837,\"\")","v":""},{"$f":"IF(DataLog!$C837=\"Log value\",DataLog!AC837,\"\")","v":""},{"$f":"IF(DataLog!$C837=\"Log value\",DataLog!AD837,\"\")","v":""},{"$f":"IF(DataLog!$C837=\"Log value\",DataLog!AE837,\"\")","v":""},{"$f":"IF(DataLog!$C837=\"Log value\",DataLog!AF837,\"\")","v":""},{"$f":"IF(DataLog!$C837=\"Log value\",DataLog!AG837,\"\")","v":""},{"$f":"IF(DataLog!$C837=\"Log value\",DataLog!AH837,\"\")","v":""},{"$f":"IF(DataLog!$C837=\"Log value\",DataLog!AI837,\"\")","v":""},{"$f":"IF(DataLog!$C837=\"Log value\",DataLog!AJ837,\"\")","v":""},{"$f":"IF(DataLog!$C837=\"Log value\",DataLog!AK837,\"\")","v":""},{"$f":"IF(DataLog!$C837=\"Log value\",DataLog!AL837,\"\")","v":""},{"$f":"IF(DataLog!$C837=\"Log value\",DataLog!AM837,\"\")","v":""}]
[null,null,null,null,null,null,{"$f":"IF(DataLog!$C838=\"Log value\",DataLog!D838&\"_\"&TEXT(DataLog!B838,\"åååå-mm-dd\"),\"\")","v":""},{"$f":"IF(DataLog!$C838=\"Log value\",DataLog!E838,\"\")","v":""},{"$f":"IF(DataLog!$C838=\"Log value\",DataLog!F838,\"\")","v":""},{"$f":"IF(DataLog!$C838=\"Log value\",DataLog!G838,\"\")","v":""},{"$f":"IF(DataLog!$C838=\"Log value\",DataLog!H838,\"\")","v":""},{"$f":"IF(DataLog!$C838=\"Log value\",DataLog!I838,\"\")","v":""},{"$f":"IF(DataLog!$C838=\"Log value\",DataLog!J838,\"\")","v":""},{"$f":"IF(DataLog!$C838=\"Log value\",DataLog!K838,\"\")","v":""},{"$f":"IF(DataLog!$C838=\"Log value\",DataLog!L838,\"\")","v":""},{"$f":"IF(DataLog!$C838=\"Log value\",DataLog!M838,\"\")","v":""},{"$f":"IF(DataLog!$C838=\"Log value\",DataLog!N838,\"\")","v":""},{"$f":"IF(DataLog!$C838=\"Log value\",DataLog!O838,\"\")","v":""},{"$f":"IF(DataLog!$C838=\"Log value\",DataLog!P838,\"\")","v":""},{"$f":"IF(DataLog!$C838=\"Log value\",DataLog!Q838,\"\")","v":""},{"$f":"IF(DataLog!$C838=\"Log value\",DataLog!R838,\"\")","v":""},{"$f":"IF(DataLog!$C838=\"Log value\",DataLog!S838,\"\")","v":""},{"$f":"IF(DataLog!$C838=\"Log value\",DataLog!T838,\"\")","v":""},{"$f":"IF(DataLog!$C838=\"Log value\",DataLog!U838,\"\")","v":""},{"$f":"IF(DataLog!$C838=\"Log value\",DataLog!V838,\"\")","v":""},{"$f":"IF(DataLog!$C838=\"Log value\",DataLog!W838,\"\")","v":""},{"$f":"IF(DataLog!$C838=\"Log value\",DataLog!X838,\"\")","v":""},{"$f":"IF(DataLog!$C838=\"Log value\",DataLog!Y838,\"\")","v":""},{"$f":"IF(DataLog!$C838=\"Log value\",DataLog!Z838,\"\")","v":""},{"$f":"IF(DataLog!$C838=\"Log value\",DataLog!AA838,\"\")","v":""},{"$f":"IF(DataLog!$C838=\"Log value\",DataLog!AB838,\"\")","v":""},{"$f":"IF(DataLog!$C838=\"Log value\",DataLog!AC838,\"\")","v":""},{"$f":"IF(DataLog!$C838=\"Log value\",DataLog!AD838,\"\")","v":""},{"$f":"IF(DataLog!$C838=\"Log value\",DataLog!AE838,\"\")","v":""},{"$f":"IF(DataLog!$C838=\"Log value\",DataLog!AF838,\"\")","v":""},{"$f":"IF(DataLog!$C838=\"Log value\",DataLog!AG838,\"\")","v":""},{"$f":"IF(DataLog!$C838=\"Log value\",DataLog!AH838,\"\")","v":""},{"$f":"IF(DataLog!$C838=\"Log value\",DataLog!AI838,\"\")","v":""},{"$f":"IF(DataLog!$C838=\"Log value\",DataLog!AJ838,\"\")","v":""},{"$f":"IF(DataLog!$C838=\"Log value\",DataLog!AK838,\"\")","v":""},{"$f":"IF(DataLog!$C838=\"Log value\",DataLog!AL838,\"\")","v":""},{"$f":"IF(DataLog!$C838=\"Log value\",DataLog!AM838,\"\")","v":""}]
[null,null,null,null,null,null,{"$f":"IF(DataLog!$C839=\"Log value\",DataLog!D839&\"_\"&TEXT(DataLog!B839,\"åååå-mm-dd\"),\"\")","v":""},{"$f":"IF(DataLog!$C839=\"Log value\",DataLog!E839,\"\")","v":""},{"$f":"IF(DataLog!$C839=\"Log value\",DataLog!F839,\"\")","v":""},{"$f":"IF(DataLog!$C839=\"Log value\",DataLog!G839,\"\")","v":""},{"$f":"IF(DataLog!$C839=\"Log value\",DataLog!H839,\"\")","v":""},{"$f":"IF(DataLog!$C839=\"Log value\",DataLog!I839,\"\")","v":""},{"$f":"IF(DataLog!$C839=\"Log value\",DataLog!J839,\"\")","v":""},{"$f":"IF(DataLog!$C839=\"Log value\",DataLog!K839,\"\")","v":""},{"$f":"IF(DataLog!$C839=\"Log value\",DataLog!L839,\"\")","v":""},{"$f":"IF(DataLog!$C839=\"Log value\",DataLog!M839,\"\")","v":""},{"$f":"IF(DataLog!$C839=\"Log value\",DataLog!N839,\"\")","v":""},{"$f":"IF(DataLog!$C839=\"Log value\",DataLog!O839,\"\")","v":""},{"$f":"IF(DataLog!$C839=\"Log value\",DataLog!P839,\"\")","v":""},{"$f":"IF(DataLog!$C839=\"Log value\",DataLog!Q839,\"\")","v":""},{"$f":"IF(DataLog!$C839=\"Log value\",DataLog!R839,\"\")","v":""},{"$f":"IF(DataLog!$C839=\"Log value\",DataLog!S839,\"\")","v":""},{"$f":"IF(DataLog!$C839=\"Log value\",DataLog!T839,\"\")","v":""},{"$f":"IF(DataLog!$C839=\"Log value\",DataLog!U839,\"\")","v":""},{"$f":"IF(DataLog!$C839=\"Log value\",DataLog!V839,\"\")","v":""},{"$f":"IF(DataLog!$C839=\"Log value\",DataLog!W839,\"\")","v":""},{"$f":"IF(DataLog!$C839=\"Log value\",DataLog!X839,\"\")","v":""},{"$f":"IF(DataLog!$C839=\"Log value\",DataLog!Y839,\"\")","v":""},{"$f":"IF(DataLog!$C839=\"Log value\",DataLog!Z839,\"\")","v":""},{"$f":"IF(DataLog!$C839=\"Log value\",DataLog!AA839,\"\")","v":""},{"$f":"IF(DataLog!$C839=\"Log value\",DataLog!AB839,\"\")","v":""},{"$f":"IF(DataLog!$C839=\"Log value\",DataLog!AC839,\"\")","v":""},{"$f":"IF(DataLog!$C839=\"Log value\",DataLog!AD839,\"\")","v":""},{"$f":"IF(DataLog!$C839=\"Log value\",DataLog!AE839,\"\")","v":""},{"$f":"IF(DataLog!$C839=\"Log value\",DataLog!AF839,\"\")","v":""},{"$f":"IF(DataLog!$C839=\"Log value\",DataLog!AG839,\"\")","v":""},{"$f":"IF(DataLog!$C839=\"Log value\",DataLog!AH839,\"\")","v":""},{"$f":"IF(DataLog!$C839=\"Log value\",DataLog!AI839,\"\")","v":""},{"$f":"IF(DataLog!$C839=\"Log value\",DataLog!AJ839,\"\")","v":""},{"$f":"IF(DataLog!$C839=\"Log value\",DataLog!AK839,\"\")","v":""},{"$f":"IF(DataLog!$C839=\"Log value\",DataLog!AL839,\"\")","v":""},{"$f":"IF(DataLog!$C839=\"Log value\",DataLog!AM839,\"\")","v":""}]
[null,null,null,null,null,null,{"$f":"IF(DataLog!$C840=\"Log value\",DataLog!D840&\"_\"&TEXT(DataLog!B840,\"åååå-mm-dd\"),\"\")","v":""},{"$f":"IF(DataLog!$C840=\"Log value\",DataLog!E840,\"\")","v":""},{"$f":"IF(DataLog!$C840=\"Log value\",DataLog!F840,\"\")","v":""},{"$f":"IF(DataLog!$C840=\"Log value\",DataLog!G840,\"\")","v":""},{"$f":"IF(DataLog!$C840=\"Log value\",DataLog!H840,\"\")","v":""},{"$f":"IF(DataLog!$C840=\"Log value\",DataLog!I840,\"\")","v":""},{"$f":"IF(DataLog!$C840=\"Log value\",DataLog!J840,\"\")","v":""},{"$f":"IF(DataLog!$C840=\"Log value\",DataLog!K840,\"\")","v":""},{"$f":"IF(DataLog!$C840=\"Log value\",DataLog!L840,\"\")","v":""},{"$f":"IF(DataLog!$C840=\"Log value\",DataLog!M840,\"\")","v":""},{"$f":"IF(DataLog!$C840=\"Log value\",DataLog!N840,\"\")","v":""},{"$f":"IF(DataLog!$C840=\"Log value\",DataLog!O840,\"\")","v":""},{"$f":"IF(DataLog!$C840=\"Log value\",DataLog!P840,\"\")","v":""},{"$f":"IF(DataLog!$C840=\"Log value\",DataLog!Q840,\"\")","v":""},{"$f":"IF(DataLog!$C840=\"Log value\",DataLog!R840,\"\")","v":""},{"$f":"IF(DataLog!$C840=\"Log value\",DataLog!S840,\"\")","v":""},{"$f":"IF(DataLog!$C840=\"Log value\",DataLog!T840,\"\")","v":""},{"$f":"IF(DataLog!$C840=\"Log value\",DataLog!U840,\"\")","v":""},{"$f":"IF(DataLog!$C840=\"Log value\",DataLog!V840,\"\")","v":""},{"$f":"IF(DataLog!$C840=\"Log value\",DataLog!W840,\"\")","v":""},{"$f":"IF(DataLog!$C840=\"Log value\",DataLog!X840,\"\")","v":""},{"$f":"IF(DataLog!$C840=\"Log value\",DataLog!Y840,\"\")","v":""},{"$f":"IF(DataLog!$C840=\"Log value\",DataLog!Z840,\"\")","v":""},{"$f":"IF(DataLog!$C840=\"Log value\",DataLog!AA840,\"\")","v":""},{"$f":"IF(DataLog!$C840=\"Log value\",DataLog!AB840,\"\")","v":""},{"$f":"IF(DataLog!$C840=\"Log value\",DataLog!AC840,\"\")","v":""},{"$f":"IF(DataLog!$C840=\"Log value\",DataLog!AD840,\"\")","v":""},{"$f":"IF(DataLog!$C840=\"Log value\",DataLog!AE840,\"\")","v":""},{"$f":"IF(DataLog!$C840=\"Log value\",DataLog!AF840,\"\")","v":""},{"$f":"IF(DataLog!$C840=\"Log value\",DataLog!AG840,\"\")","v":""},{"$f":"IF(DataLog!$C840=\"Log value\",DataLog!AH840,\"\")","v":""},{"$f":"IF(DataLog!$C840=\"Log value\",DataLog!AI840,\"\")","v":""},{"$f":"IF(DataLog!$C840=\"Log value\",DataLog!AJ840,\"\")","v":""},{"$f":"IF(DataLog!$C840=\"Log value\",DataLog!AK840,\"\")","v":""},{"$f":"IF(DataLog!$C840=\"Log value\",DataLog!AL840,\"\")","v":""},{"$f":"IF(DataLog!$C840=\"Log value\",DataLog!AM840,\"\")","v":""}]
[null,null,null,null,null,null,{"$f":"IF(DataLog!$C841=\"Log value\",DataLog!D841&\"_\"&TEXT(DataLog!B841,\"åååå-mm-dd\"),\"\")","v":""},{"$f":"IF(DataLog!$C841=\"Log value\",DataLog!E841,\"\")","v":""},{"$f":"IF(DataLog!$C841=\"Log value\",DataLog!F841,\"\")","v":""},{"$f":"IF(DataLog!$C841=\"Log value\",DataLog!G841,\"\")","v":""},{"$f":"IF(DataLog!$C841=\"Log value\",DataLog!H841,\"\")","v":""},{"$f":"IF(DataLog!$C841=\"Log value\",DataLog!I841,\"\")","v":""},{"$f":"IF(DataLog!$C841=\"Log value\",DataLog!J841,\"\")","v":""},{"$f":"IF(DataLog!$C841=\"Log value\",DataLog!K841,\"\")","v":""},{"$f":"IF(DataLog!$C841=\"Log value\",DataLog!L841,\"\")","v":""},{"$f":"IF(DataLog!$C841=\"Log value\",DataLog!M841,\"\")","v":""},{"$f":"IF(DataLog!$C841=\"Log value\",DataLog!N841,\"\")","v":""},{"$f":"IF(DataLog!$C841=\"Log value\",DataLog!O841,\"\")","v":""},{"$f":"IF(DataLog!$C841=\"Log value\",DataLog!P841,\"\")","v":""},{"$f":"IF(DataLog!$C841=\"Log value\",DataLog!Q841,\"\")","v":""},{"$f":"IF(DataLog!$C841=\"Log value\",DataLog!R841,\"\")","v":""},{"$f":"IF(DataLog!$C841=\"Log value\",DataLog!S841,\"\")","v":""},{"$f":"IF(DataLog!$C841=\"Log value\",DataLog!T841,\"\")","v":""},{"$f":"IF(DataLog!$C841=\"Log value\",DataLog!U841,\"\")","v":""},{"$f":"IF(DataLog!$C841=\"Log value\",DataLog!V841,\"\")","v":""},{"$f":"IF(DataLog!$C841=\"Log value\",DataLog!W841,\"\")","v":""},{"$f":"IF(DataLog!$C841=\"Log value\",DataLog!X841,\"\")","v":""},{"$f":"IF(DataLog!$C841=\"Log value\",DataLog!Y841,\"\")","v":""},{"$f":"IF(DataLog!$C841=\"Log value\",DataLog!Z841,\"\")","v":""},{"$f":"IF(DataLog!$C841=\"Log value\",DataLog!AA841,\"\")","v":""},{"$f":"IF(DataLog!$C841=\"Log value\",DataLog!AB841,\"\")","v":""},{"$f":"IF(DataLog!$C841=\"Log value\",DataLog!AC841,\"\")","v":""},{"$f":"IF(DataLog!$C841=\"Log value\",DataLog!AD841,\"\")","v":""},{"$f":"IF(DataLog!$C841=\"Log value\",DataLog!AE841,\"\")","v":""},{"$f":"IF(DataLog!$C841=\"Log value\",DataLog!AF841,\"\")","v":""},{"$f":"IF(DataLog!$C841=\"Log value\",DataLog!AG841,\"\")","v":""},{"$f":"IF(DataLog!$C841=\"Log value\",DataLog!AH841,\"\")","v":""},{"$f":"IF(DataLog!$C841=\"Log value\",DataLog!AI841,\"\")","v":""},{"$f":"IF(DataLog!$C841=\"Log value\",DataLog!AJ841,\"\")","v":""},{"$f":"IF(DataLog!$C841=\"Log value\",DataLog!AK841,\"\")","v":""},{"$f":"IF(DataLog!$C841=\"Log value\",DataLog!AL841,\"\")","v":""},{"$f":"IF(DataLog!$C841=\"Log value\",DataLog!AM841,\"\")","v":""}]
[null,null,null,null,null,null,{"$f":"IF(DataLog!$C842=\"Log value\",DataLog!D842&\"_\"&TEXT(DataLog!B842,\"åååå-mm-dd\"),\"\")","v":""},{"$f":"IF(DataLog!$C842=\"Log value\",DataLog!E842,\"\")","v":""},{"$f":"IF(DataLog!$C842=\"Log value\",DataLog!F842,\"\")","v":""},{"$f":"IF(DataLog!$C842=\"Log value\",DataLog!G842,\"\")","v":""},{"$f":"IF(DataLog!$C842=\"Log value\",DataLog!H842,\"\")","v":""},{"$f":"IF(DataLog!$C842=\"Log value\",DataLog!I842,\"\")","v":""},{"$f":"IF(DataLog!$C842=\"Log value\",DataLog!J842,\"\")","v":""},{"$f":"IF(DataLog!$C842=\"Log value\",DataLog!K842,\"\")","v":""},{"$f":"IF(DataLog!$C842=\"Log value\",DataLog!L842,\"\")","v":""},{"$f":"IF(DataLog!$C842=\"Log value\",DataLog!M842,\"\")","v":""},{"$f":"IF(DataLog!$C842=\"Log value\",DataLog!N842,\"\")","v":""},{"$f":"IF(DataLog!$C842=\"Log value\",DataLog!O842,\"\")","v":""},{"$f":"IF(DataLog!$C842=\"Log value\",DataLog!P842,\"\")","v":""},{"$f":"IF(DataLog!$C842=\"Log value\",DataLog!Q842,\"\")","v":""},{"$f":"IF(DataLog!$C842=\"Log value\",DataLog!R842,\"\")","v":""},{"$f":"IF(DataLog!$C842=\"Log value\",DataLog!S842,\"\")","v":""},{"$f":"IF(DataLog!$C842=\"Log value\",DataLog!T842,\"\")","v":""},{"$f":"IF(DataLog!$C842=\"Log value\",DataLog!U842,\"\")","v":""},{"$f":"IF(DataLog!$C842=\"Log value\",DataLog!V842,\"\")","v":""},{"$f":"IF(DataLog!$C842=\"Log value\",DataLog!W842,\"\")","v":""},{"$f":"IF(DataLog!$C842=\"Log value\",DataLog!X842,\"\")","v":""},{"$f":"IF(DataLog!$C842=\"Log value\",DataLog!Y842,\"\")","v":""},{"$f":"IF(DataLog!$C842=\"Log value\",DataLog!Z842,\"\")","v":""},{"$f":"IF(DataLog!$C842=\"Log value\",DataLog!AA842,\"\")","v":""},{"$f":"IF(DataLog!$C842=\"Log value\",DataLog!AB842,\"\")","v":""},{"$f":"IF(DataLog!$C842=\"Log value\",DataLog!AC842,\"\")","v":""},{"$f":"IF(DataLog!$C842=\"Log value\",DataLog!AD842,\"\")","v":""},{"$f":"IF(DataLog!$C842=\"Log value\",DataLog!AE842,\"\")","v":""},{"$f":"IF(DataLog!$C842=\"Log value\",DataLog!AF842,\"\")","v":""},{"$f":"IF(DataLog!$C842=\"Log value\",DataLog!AG842,\"\")","v":""},{"$f":"IF(DataLog!$C842=\"Log value\",DataLog!AH842,\"\")","v":""},{"$f":"IF(DataLog!$C842=\"Log value\",DataLog!AI842,\"\")","v":""},{"$f":"IF(DataLog!$C842=\"Log value\",DataLog!AJ842,\"\")","v":""},{"$f":"IF(DataLog!$C842=\"Log value\",DataLog!AK842,\"\")","v":""},{"$f":"IF(DataLog!$C842=\"Log value\",DataLog!AL842,\"\")","v":""},{"$f":"IF(DataLog!$C842=\"Log value\",DataLog!AM842,\"\")","v":""}]
[null,null,null,null,null,null,{"$f":"IF(DataLog!$C843=\"Log value\",DataLog!D843&\"_\"&TEXT(DataLog!B843,\"åååå-mm-dd\"),\"\")","v":""},{"$f":"IF(DataLog!$C843=\"Log value\",DataLog!E843,\"\")","v":""},{"$f":"IF(DataLog!$C843=\"Log value\",DataLog!F843,\"\")","v":""},{"$f":"IF(DataLog!$C843=\"Log value\",DataLog!G843,\"\")","v":""},{"$f":"IF(DataLog!$C843=\"Log value\",DataLog!H843,\"\")","v":""},{"$f":"IF(DataLog!$C843=\"Log value\",DataLog!I843,\"\")","v":""},{"$f":"IF(DataLog!$C843=\"Log value\",DataLog!J843,\"\")","v":""},{"$f":"IF(DataLog!$C843=\"Log value\",DataLog!K843,\"\")","v":""},{"$f":"IF(DataLog!$C843=\"Log value\",DataLog!L843,\"\")","v":""},{"$f":"IF(DataLog!$C843=\"Log value\",DataLog!M843,\"\")","v":""},{"$f":"IF(DataLog!$C843=\"Log value\",DataLog!N843,\"\")","v":""},{"$f":"IF(DataLog!$C843=\"Log value\",DataLog!O843,\"\")","v":""},{"$f":"IF(DataLog!$C843=\"Log value\",DataLog!P843,\"\")","v":""},{"$f":"IF(DataLog!$C843=\"Log value\",DataLog!Q843,\"\")","v":""},{"$f":"IF(DataLog!$C843=\"Log value\",DataLog!R843,\"\")","v":""},{"$f":"IF(DataLog!$C843=\"Log value\",DataLog!S843,\"\")","v":""},{"$f":"IF(DataLog!$C843=\"Log value\",DataLog!T843,\"\")","v":""},{"$f":"IF(DataLog!$C843=\"Log value\",DataLog!U843,\"\")","v":""},{"$f":"IF(DataLog!$C843=\"Log value\",DataLog!V843,\"\")","v":""},{"$f":"IF(DataLog!$C843=\"Log value\",DataLog!W843,\"\")","v":""},{"$f":"IF(DataLog!$C843=\"Log value\",DataLog!X843,\"\")","v":""},{"$f":"IF(DataLog!$C843=\"Log value\",DataLog!Y843,\"\")","v":""},{"$f":"IF(DataLog!$C843=\"Log value\",DataLog!Z843,\"\")","v":""},{"$f":"IF(DataLog!$C843=\"Log value\",DataLog!AA843,\"\")","v":""},{"$f":"IF(DataLog!$C843=\"Log value\",DataLog!AB843,\"\")","v":""},{"$f":"IF(DataLog!$C843=\"Log value\",DataLog!AC843,\"\")","v":""},{"$f":"IF(DataLog!$C843=\"Log value\",DataLog!AD843,\"\")","v":""},{"$f":"IF(DataLog!$C843=\"Log value\",DataLog!AE843,\"\")","v":""},{"$f":"IF(DataLog!$C843=\"Log value\",DataLog!AF843,\"\")","v":""},{"$f":"IF(DataLog!$C843=\"Log value\",DataLog!AG843,\"\")","v":""},{"$f":"IF(DataLog!$C843=\"Log value\",DataLog!AH843,\"\")","v":""},{"$f":"IF(DataLog!$C843=\"Log value\",DataLog!AI843,\"\")","v":""},{"$f":"IF(DataLog!$C843=\"Log value\",DataLog!AJ843,\"\")","v":""},{"$f":"IF(DataLog!$C843=\"Log value\",DataLog!AK843,\"\")","v":""},{"$f":"IF(DataLog!$C843=\"Log value\",DataLog!AL843,\"\")","v":""},{"$f":"IF(DataLog!$C843=\"Log value\",DataLog!AM843,\"\")","v":""}]
[null,null,null,null,null,null,{"$f":"IF(DataLog!$C844=\"Log value\",DataLog!D844&\"_\"&TEXT(DataLog!B844,\"åååå-mm-dd\"),\"\")","v":""},{"$f":"IF(DataLog!$C844=\"Log value\",DataLog!E844,\"\")","v":""},{"$f":"IF(DataLog!$C844=\"Log value\",DataLog!F844,\"\")","v":""},{"$f":"IF(DataLog!$C844=\"Log value\",DataLog!G844,\"\")","v":""},{"$f":"IF(DataLog!$C844=\"Log value\",DataLog!H844,\"\")","v":""},{"$f":"IF(DataLog!$C844=\"Log value\",DataLog!I844,\"\")","v":""},{"$f":"IF(DataLog!$C844=\"Log value\",DataLog!J844,\"\")","v":""},{"$f":"IF(DataLog!$C844=\"Log value\",DataLog!K844,\"\")","v":""},{"$f":"IF(DataLog!$C844=\"Log value\",DataLog!L844,\"\")","v":""},{"$f":"IF(DataLog!$C844=\"Log value\",DataLog!M844,\"\")","v":""},{"$f":"IF(DataLog!$C844=\"Log value\",DataLog!N844,\"\")","v":""},{"$f":"IF(DataLog!$C844=\"Log value\",DataLog!O844,\"\")","v":""},{"$f":"IF(DataLog!$C844=\"Log value\",DataLog!P844,\"\")","v":""},{"$f":"IF(DataLog!$C844=\"Log value\",DataLog!Q844,\"\")","v":""},{"$f":"IF(DataLog!$C844=\"Log value\",DataLog!R844,\"\")","v":""},{"$f":"IF(DataLog!$C844=\"Log value\",DataLog!S844,\"\")","v":""},{"$f":"IF(DataLog!$C844=\"Log value\",DataLog!T844,\"\")","v":""},{"$f":"IF(DataLog!$C844=\"Log value\",DataLog!U844,\"\")","v":""},{"$f":"IF(DataLog!$C844=\"Log value\",DataLog!V844,\"\")","v":""},{"$f":"IF(DataLog!$C844=\"Log value\",DataLog!W844,\"\")","v":""},{"$f":"IF(DataLog!$C844=\"Log value\",DataLog!X844,\"\")","v":""},{"$f":"IF(DataLog!$C844=\"Log value\",DataLog!Y844,\"\")","v":""},{"$f":"IF(DataLog!$C844=\"Log value\",DataLog!Z844,\"\")","v":""},{"$f":"IF(DataLog!$C844=\"Log value\",DataLog!AA844,\"\")","v":""},{"$f":"IF(DataLog!$C844=\"Log value\",DataLog!AB844,\"\")","v":""},{"$f":"IF(DataLog!$C844=\"Log value\",DataLog!AC844,\"\")","v":""},{"$f":"IF(DataLog!$C844=\"Log value\",DataLog!AD844,\"\")","v":""},{"$f":"IF(DataLog!$C844=\"Log value\",DataLog!AE844,\"\")","v":""},{"$f":"IF(DataLog!$C844=\"Log value\",DataLog!AF844,\"\")","v":""},{"$f":"IF(DataLog!$C844=\"Log value\",DataLog!AG844,\"\")","v":""},{"$f":"IF(DataLog!$C844=\"Log value\",DataLog!AH844,\"\")","v":""},{"$f":"IF(DataLog!$C844=\"Log value\",DataLog!AI844,\"\")","v":""},{"$f":"IF(DataLog!$C844=\"Log value\",DataLog!AJ844,\"\")","v":""},{"$f":"IF(DataLog!$C844=\"Log value\",DataLog!AK844,\"\")","v":""},{"$f":"IF(DataLog!$C844=\"Log value\",DataLog!AL844,\"\")","v":""},{"$f":"IF(DataLog!$C844=\"Log value\",DataLog!AM844,\"\")","v":""}]
[null,null,null,null,null,null,{"$f":"IF(DataLog!$C845=\"Log value\",DataLog!D845&\"_\"&TEXT(DataLog!B845,\"åååå-mm-dd\"),\"\")","v":""},{"$f":"IF(DataLog!$C845=\"Log value\",DataLog!E845,\"\")","v":""},{"$f":"IF(DataLog!$C845=\"Log value\",DataLog!F845,\"\")","v":""},{"$f":"IF(DataLog!$C845=\"Log value\",DataLog!G845,\"\")","v":""},{"$f":"IF(DataLog!$C845=\"Log value\",DataLog!H845,\"\")","v":""},{"$f":"IF(DataLog!$C845=\"Log value\",DataLog!I845,\"\")","v":""},{"$f":"IF(DataLog!$C845=\"Log value\",DataLog!J845,\"\")","v":""},{"$f":"IF(DataLog!$C845=\"Log value\",DataLog!K845,\"\")","v":""},{"$f":"IF(DataLog!$C845=\"Log value\",DataLog!L845,\"\")","v":""},{"$f":"IF(DataLog!$C845=\"Log value\",DataLog!M845,\"\")","v":""},{"$f":"IF(DataLog!$C845=\"Log value\",DataLog!N845,\"\")","v":""},{"$f":"IF(DataLog!$C845=\"Log value\",DataLog!O845,\"\")","v":""},{"$f":"IF(DataLog!$C845=\"Log value\",DataLog!P845,\"\")","v":""},{"$f":"IF(DataLog!$C845=\"Log value\",DataLog!Q845,\"\")","v":""},{"$f":"IF(DataLog!$C845=\"Log value\",DataLog!R845,\"\")","v":""},{"$f":"IF(DataLog!$C845=\"Log value\",DataLog!S845,\"\")","v":""},{"$f":"IF(DataLog!$C845=\"Log value\",DataLog!T845,\"\")","v":""},{"$f":"IF(DataLog!$C845=\"Log value\",DataLog!U845,\"\")","v":""},{"$f":"IF(DataLog!$C845=\"Log value\",DataLog!V845,\"\")","v":""},{"$f":"IF(DataLog!$C845=\"Log value\",DataLog!W845,\"\")","v":""},{"$f":"IF(DataLog!$C845=\"Log value\",DataLog!X845,\"\")","v":""},{"$f":"IF(DataLog!$C845=\"Log value\",DataLog!Y845,\"\")","v":""},{"$f":"IF(DataLog!$C845=\"Log value\",DataLog!Z845,\"\")","v":""},{"$f":"IF(DataLog!$C845=\"Log value\",DataLog!AA845,\"\")","v":""},{"$f":"IF(DataLog!$C845=\"Log value\",DataLog!AB845,\"\")","v":""},{"$f":"IF(DataLog!$C845=\"Log value\",DataLog!AC845,\"\")","v":""},{"$f":"IF(DataLog!$C845=\"Log value\",DataLog!AD845,\"\")","v":""},{"$f":"IF(DataLog!$C845=\"Log value\",DataLog!AE845,\"\")","v":""},{"$f":"IF(DataLog!$C845=\"Log value\",DataLog!AF845,\"\")","v":""},{"$f":"IF(DataLog!$C845=\"Log value\",DataLog!AG845,\"\")","v":""},{"$f":"IF(DataLog!$C845=\"Log value\",DataLog!AH845,\"\")","v":""},{"$f":"IF(DataLog!$C845=\"Log value\",DataLog!AI845,\"\")","v":""},{"$f":"IF(DataLog!$C845=\"Log value\",DataLog!AJ845,\"\")","v":""},{"$f":"IF(DataLog!$C845=\"Log value\",DataLog!AK845,\"\")","v":""},{"$f":"IF(DataLog!$C845=\"Log value\",DataLog!AL845,\"\")","v":""},{"$f":"IF(DataLog!$C845=\"Log value\",DataLog!AM845,\"\")","v":""}]
[null,null,null,null,null,null,{"$f":"IF(DataLog!$C846=\"Log value\",DataLog!D846&\"_\"&TEXT(DataLog!B846,\"åååå-mm-dd\"),\"\")","v":""},{"$f":"IF(DataLog!$C846=\"Log value\",DataLog!E846,\"\")","v":""},{"$f":"IF(DataLog!$C846=\"Log value\",DataLog!F846,\"\")","v":""},{"$f":"IF(DataLog!$C846=\"Log value\",DataLog!G846,\"\")","v":""},{"$f":"IF(DataLog!$C846=\"Log value\",DataLog!H846,\"\")","v":""},{"$f":"IF(DataLog!$C846=\"Log value\",DataLog!I846,\"\")","v":""},{"$f":"IF(DataLog!$C846=\"Log value\",DataLog!J846,\"\")","v":""},{"$f":"IF(DataLog!$C846=\"Log value\",DataLog!K846,\"\")","v":""},{"$f":"IF(DataLog!$C846=\"Log value\",DataLog!L846,\"\")","v":""},{"$f":"IF(DataLog!$C846=\"Log value\",DataLog!M846,\"\")","v":""},{"$f":"IF(DataLog!$C846=\"Log value\",DataLog!N846,\"\")","v":""},{"$f":"IF(DataLog!$C846=\"Log value\",DataLog!O846,\"\")","v":""},{"$f":"IF(DataLog!$C846=\"Log value\",DataLog!P846,\"\")","v":""},{"$f":"IF(DataLog!$C846=\"Log value\",DataLog!Q846,\"\")","v":""},{"$f":"IF(DataLog!$C846=\"Log value\",DataLog!R846,\"\")","v":""},{"$f":"IF(DataLog!$C846=\"Log value\",DataLog!S846,\"\")","v":""},{"$f":"IF(DataLog!$C846=\"Log value\",DataLog!T846,\"\")","v":""},{"$f":"IF(DataLog!$C846=\"Log value\",DataLog!U846,\"\")","v":""},{"$f":"IF(DataLog!$C846=\"Log value\",DataLog!V846,\"\")","v":""},{"$f":"IF(DataLog!$C846=\"Log value\",DataLog!W846,\"\")","v":""},{"$f":"IF(DataLog!$C846=\"Log value\",DataLog!X846,\"\")","v":""},{"$f":"IF(DataLog!$C846=\"Log value\",DataLog!Y846,\"\")","v":""},{"$f":"IF(DataLog!$C846=\"Log value\",DataLog!Z846,\"\")","v":""},{"$f":"IF(DataLog!$C846=\"Log value\",DataLog!AA846,\"\")","v":""},{"$f":"IF(DataLog!$C846=\"Log value\",DataLog!AB846,\"\")","v":""},{"$f":"IF(DataLog!$C846=\"Log value\",DataLog!AC846,\"\")","v":""},{"$f":"IF(DataLog!$C846=\"Log value\",DataLog!AD846,\"\")","v":""},{"$f":"IF(DataLog!$C846=\"Log value\",DataLog!AE846,\"\")","v":""},{"$f":"IF(DataLog!$C846=\"Log value\",DataLog!AF846,\"\")","v":""},{"$f":"IF(DataLog!$C846=\"Log value\",DataLog!AG846,\"\")","v":""},{"$f":"IF(DataLog!$C846=\"Log value\",DataLog!AH846,\"\")","v":""},{"$f":"IF(DataLog!$C846=\"Log value\",DataLog!AI846,\"\")","v":""},{"$f":"IF(DataLog!$C846=\"Log value\",DataLog!AJ846,\"\")","v":""},{"$f":"IF(DataLog!$C846=\"Log value\",DataLog!AK846,\"\")","v":""},{"$f":"IF(DataLog!$C846=\"Log value\",DataLog!AL846,\"\")","v":""},{"$f":"IF(DataLog!$C846=\"Log value\",DataLog!AM846,\"\")","v":""}]
[null,null,null,null,null,null,{"$f":"IF(DataLog!$C847=\"Log value\",DataLog!D847&\"_\"&TEXT(DataLog!B847,\"åååå-mm-dd\"),\"\")","v":""},{"$f":"IF(DataLog!$C847=\"Log value\",DataLog!E847,\"\")","v":""},{"$f":"IF(DataLog!$C847=\"Log value\",DataLog!F847,\"\")","v":""},{"$f":"IF(DataLog!$C847=\"Log value\",DataLog!G847,\"\")","v":""},{"$f":"IF(DataLog!$C847=\"Log value\",DataLog!H847,\"\")","v":""},{"$f":"IF(DataLog!$C847=\"Log value\",DataLog!I847,\"\")","v":""},{"$f":"IF(DataLog!$C847=\"Log value\",DataLog!J847,\"\")","v":""},{"$f":"IF(DataLog!$C847=\"Log value\",DataLog!K847,\"\")","v":""},{"$f":"IF(DataLog!$C847=\"Log value\",DataLog!L847,\"\")","v":""},{"$f":"IF(DataLog!$C847=\"Log value\",DataLog!M847,\"\")","v":""},{"$f":"IF(DataLog!$C847=\"Log value\",DataLog!N847,\"\")","v":""},{"$f":"IF(DataLog!$C847=\"Log value\",DataLog!O847,\"\")","v":""},{"$f":"IF(DataLog!$C847=\"Log value\",DataLog!P847,\"\")","v":""},{"$f":"IF(DataLog!$C847=\"Log value\",DataLog!Q847,\"\")","v":""},{"$f":"IF(DataLog!$C847=\"Log value\",DataLog!R847,\"\")","v":""},{"$f":"IF(DataLog!$C847=\"Log value\",DataLog!S847,\"\")","v":""},{"$f":"IF(DataLog!$C847=\"Log value\",DataLog!T847,\"\")","v":""},{"$f":"IF(DataLog!$C847=\"Log value\",DataLog!U847,\"\")","v":""},{"$f":"IF(DataLog!$C847=\"Log value\",DataLog!V847,\"\")","v":""},{"$f":"IF(DataLog!$C847=\"Log value\",DataLog!W847,\"\")","v":""},{"$f":"IF(DataLog!$C847=\"Log value\",DataLog!X847,\"\")","v":""},{"$f":"IF(DataLog!$C847=\"Log value\",DataLog!Y847,\"\")","v":""},{"$f":"IF(DataLog!$C847=\"Log value\",DataLog!Z847,\"\")","v":""},{"$f":"IF(DataLog!$C847=\"Log value\",DataLog!AA847,\"\")","v":""},{"$f":"IF(DataLog!$C847=\"Log value\",DataLog!AB847,\"\")","v":""},{"$f":"IF(DataLog!$C847=\"Log value\",DataLog!AC847,\"\")","v":""},{"$f":"IF(DataLog!$C847=\"Log value\",DataLog!AD847,\"\")","v":""},{"$f":"IF(DataLog!$C847=\"Log value\",DataLog!AE847,\"\")","v":""},{"$f":"IF(DataLog!$C847=\"Log value\",DataLog!AF847,\"\")","v":""},{"$f":"IF(DataLog!$C847=\"Log value\",DataLog!AG847,\"\")","v":""},{"$f":"IF(DataLog!$C847=\"Log value\",DataLog!AH847,\"\")","v":""},{"$f":"IF(DataLog!$C847=\"Log value\",DataLog!AI847,\"\")","v":""},{"$f":"IF(DataLog!$C847=\"Log value\",DataLog!AJ847,\"\")","v":""},{"$f":"IF(DataLog!$C847=\"Log value\",DataLog!AK847,\"\")","v":""},{"$f":"IF(DataLog!$C847=\"Log value\",DataLog!AL847,\"\")","v":""},{"$f":"IF(DataLog!$C847=\"Log value\",DataLog!AM847,\"\")","v":""}]
[null,null,null,null,null,null,{"$f":"IF(DataLog!$C848=\"Log value\",DataLog!D848&\"_\"&TEXT(DataLog!B848,\"åååå-mm-dd\"),\"\")","v":""},{"$f":"IF(DataLog!$C848=\"Log value\",DataLog!E848,\"\")","v":""},{"$f":"IF(DataLog!$C848=\"Log value\",DataLog!F848,\"\")","v":""},{"$f":"IF(DataLog!$C848=\"Log value\",DataLog!G848,\"\")","v":""},{"$f":"IF(DataLog!$C848=\"Log value\",DataLog!H848,\"\")","v":""},{"$f":"IF(DataLog!$C848=\"Log value\",DataLog!I848,\"\")","v":""},{"$f":"IF(DataLog!$C848=\"Log value\",DataLog!J848,\"\")","v":""},{"$f":"IF(DataLog!$C848=\"Log value\",DataLog!K848,\"\")","v":""},{"$f":"IF(DataLog!$C848=\"Log value\",DataLog!L848,\"\")","v":""},{"$f":"IF(DataLog!$C848=\"Log value\",DataLog!M848,\"\")","v":""},{"$f":"IF(DataLog!$C848=\"Log value\",DataLog!N848,\"\")","v":""},{"$f":"IF(DataLog!$C848=\"Log value\",DataLog!O848,\"\")","v":""},{"$f":"IF(DataLog!$C848=\"Log value\",DataLog!P848,\"\")","v":""},{"$f":"IF(DataLog!$C848=\"Log value\",DataLog!Q848,\"\")","v":""},{"$f":"IF(DataLog!$C848=\"Log value\",DataLog!R848,\"\")","v":""},{"$f":"IF(DataLog!$C848=\"Log value\",DataLog!S848,\"\")","v":""},{"$f":"IF(DataLog!$C848=\"Log value\",DataLog!T848,\"\")","v":""},{"$f":"IF(DataLog!$C848=\"Log value\",DataLog!U848,\"\")","v":""},{"$f":"IF(DataLog!$C848=\"Log value\",DataLog!V848,\"\")","v":""},{"$f":"IF(DataLog!$C848=\"Log value\",DataLog!W848,\"\")","v":""},{"$f":"IF(DataLog!$C848=\"Log value\",DataLog!X848,\"\")","v":""},{"$f":"IF(DataLog!$C848=\"Log value\",DataLog!Y848,\"\")","v":""},{"$f":"IF(DataLog!$C848=\"Log value\",DataLog!Z848,\"\")","v":""},{"$f":"IF(DataLog!$C848=\"Log value\",DataLog!AA848,\"\")","v":""},{"$f":"IF(DataLog!$C848=\"Log value\",DataLog!AB848,\"\")","v":""},{"$f":"IF(DataLog!$C848=\"Log value\",DataLog!AC848,\"\")","v":""},{"$f":"IF(DataLog!$C848=\"Log value\",DataLog!AD848,\"\")","v":""},{"$f":"IF(DataLog!$C848=\"Log value\",DataLog!AE848,\"\")","v":""},{"$f":"IF(DataLog!$C848=\"Log value\",DataLog!AF848,\"\")","v":""},{"$f":"IF(DataLog!$C848=\"Log value\",DataLog!AG848,\"\")","v":""},{"$f":"IF(DataLog!$C848=\"Log value\",DataLog!AH848,\"\")","v":""},{"$f":"IF(DataLog!$C848=\"Log value\",DataLog!AI848,\"\")","v":""},{"$f":"IF(DataLog!$C848=\"Log value\",DataLog!AJ848,\"\")","v":""},{"$f":"IF(DataLog!$C848=\"Log value\",DataLog!AK848,\"\")","v":""},{"$f":"IF(DataLog!$C848=\"Log value\",DataLog!AL848,\"\")","v":""},{"$f":"IF(DataLog!$C848=\"Log value\",DataLog!AM848,\"\")","v":""}]
[null,null,null,null,null,null,{"$f":"IF(DataLog!$C849=\"Log value\",DataLog!D849&\"_\"&TEXT(DataLog!B849,\"åååå-mm-dd\"),\"\")","v":""},{"$f":"IF(DataLog!$C849=\"Log value\",DataLog!E849,\"\")","v":""},{"$f":"IF(DataLog!$C849=\"Log value\",DataLog!F849,\"\")","v":""},{"$f":"IF(DataLog!$C849=\"Log value\",DataLog!G849,\"\")","v":""},{"$f":"IF(DataLog!$C849=\"Log value\",DataLog!H849,\"\")","v":""},{"$f":"IF(DataLog!$C849=\"Log value\",DataLog!I849,\"\")","v":""},{"$f":"IF(DataLog!$C849=\"Log value\",DataLog!J849,\"\")","v":""},{"$f":"IF(DataLog!$C849=\"Log value\",DataLog!K849,\"\")","v":""},{"$f":"IF(DataLog!$C849=\"Log value\",DataLog!L849,\"\")","v":""},{"$f":"IF(DataLog!$C849=\"Log value\",DataLog!M849,\"\")","v":""},{"$f":"IF(DataLog!$C849=\"Log value\",DataLog!N849,\"\")","v":""},{"$f":"IF(DataLog!$C849=\"Log value\",DataLog!O849,\"\")","v":""},{"$f":"IF(DataLog!$C849=\"Log value\",DataLog!P849,\"\")","v":""},{"$f":"IF(DataLog!$C849=\"Log value\",DataLog!Q849,\"\")","v":""},{"$f":"IF(DataLog!$C849=\"Log value\",DataLog!R849,\"\")","v":""},{"$f":"IF(DataLog!$C849=\"Log value\",DataLog!S849,\"\")","v":""},{"$f":"IF(DataLog!$C849=\"Log value\",DataLog!T849,\"\")","v":""},{"$f":"IF(DataLog!$C849=\"Log value\",DataLog!U849,\"\")","v":""},{"$f":"IF(DataLog!$C849=\"Log value\",DataLog!V849,\"\")","v":""},{"$f":"IF(DataLog!$C849=\"Log value\",DataLog!W849,\"\")","v":""},{"$f":"IF(DataLog!$C849=\"Log value\",DataLog!X849,\"\")","v":""},{"$f":"IF(DataLog!$C849=\"Log value\",DataLog!Y849,\"\")","v":""},{"$f":"IF(DataLog!$C849=\"Log value\",DataLog!Z849,\"\")","v":""},{"$f":"IF(DataLog!$C849=\"Log value\",DataLog!AA849,\"\")","v":""},{"$f":"IF(DataLog!$C849=\"Log value\",DataLog!AB849,\"\")","v":""},{"$f":"IF(DataLog!$C849=\"Log value\",DataLog!AC849,\"\")","v":""},{"$f":"IF(DataLog!$C849=\"Log value\",DataLog!AD849,\"\")","v":""},{"$f":"IF(DataLog!$C849=\"Log value\",DataLog!AE849,\"\")","v":""},{"$f":"IF(DataLog!$C849=\"Log value\",DataLog!AF849,\"\")","v":""},{"$f":"IF(DataLog!$C849=\"Log value\",DataLog!AG849,\"\")","v":""},{"$f":"IF(DataLog!$C849=\"Log value\",DataLog!AH849,\"\")","v":""},{"$f":"IF(DataLog!$C849=\"Log value\",DataLog!AI849,\"\")","v":""},{"$f":"IF(DataLog!$C849=\"Log value\",DataLog!AJ849,\"\")","v":""},{"$f":"IF(DataLog!$C849=\"Log value\",DataLog!AK849,\"\")","v":""},{"$f":"IF(DataLog!$C849=\"Log value\",DataLog!AL849,\"\")","v":""},{"$f":"IF(DataLog!$C849=\"Log value\",DataLog!AM849,\"\")","v":""}]
[null,null,null,null,null,null,{"$f":"IF(DataLog!$C850=\"Log value\",DataLog!D850&\"_\"&TEXT(DataLog!B850,\"åååå-mm-dd\"),\"\")","v":""},{"$f":"IF(DataLog!$C850=\"Log value\",DataLog!E850,\"\")","v":""},{"$f":"IF(DataLog!$C850=\"Log value\",DataLog!F850,\"\")","v":""},{"$f":"IF(DataLog!$C850=\"Log value\",DataLog!G850,\"\")","v":""},{"$f":"IF(DataLog!$C850=\"Log value\",DataLog!H850,\"\")","v":""},{"$f":"IF(DataLog!$C850=\"Log value\",DataLog!I850,\"\")","v":""},{"$f":"IF(DataLog!$C850=\"Log value\",DataLog!J850,\"\")","v":""},{"$f":"IF(DataLog!$C850=\"Log value\",DataLog!K850,\"\")","v":""},{"$f":"IF(DataLog!$C850=\"Log value\",DataLog!L850,\"\")","v":""},{"$f":"IF(DataLog!$C850=\"Log value\",DataLog!M850,\"\")","v":""},{"$f":"IF(DataLog!$C850=\"Log value\",DataLog!N850,\"\")","v":""},{"$f":"IF(DataLog!$C850=\"Log value\",DataLog!O850,\"\")","v":""},{"$f":"IF(DataLog!$C850=\"Log value\",DataLog!P850,\"\")","v":""},{"$f":"IF(DataLog!$C850=\"Log value\",DataLog!Q850,\"\")","v":""},{"$f":"IF(DataLog!$C850=\"Log value\",DataLog!R850,\"\")","v":""},{"$f":"IF(DataLog!$C850=\"Log value\",DataLog!S850,\"\")","v":""},{"$f":"IF(DataLog!$C850=\"Log value\",DataLog!T850,\"\")","v":""},{"$f":"IF(DataLog!$C850=\"Log value\",DataLog!U850,\"\")","v":""},{"$f":"IF(DataLog!$C850=\"Log value\",DataLog!V850,\"\")","v":""},{"$f":"IF(DataLog!$C850=\"Log value\",DataLog!W850,\"\")","v":""},{"$f":"IF(DataLog!$C850=\"Log value\",DataLog!X850,\"\")","v":""},{"$f":"IF(DataLog!$C850=\"Log value\",DataLog!Y850,\"\")","v":""},{"$f":"IF(DataLog!$C850=\"Log value\",DataLog!Z850,\"\")","v":""},{"$f":"IF(DataLog!$C850=\"Log value\",DataLog!AA850,\"\")","v":""},{"$f":"IF(DataLog!$C850=\"Log value\",DataLog!AB850,\"\")","v":""},{"$f":"IF(DataLog!$C850=\"Log value\",DataLog!AC850,\"\")","v":""},{"$f":"IF(DataLog!$C850=\"Log value\",DataLog!AD850,\"\")","v":""},{"$f":"IF(DataLog!$C850=\"Log value\",DataLog!AE850,\"\")","v":""},{"$f":"IF(DataLog!$C850=\"Log value\",DataLog!AF850,\"\")","v":""},{"$f":"IF(DataLog!$C850=\"Log value\",DataLog!AG850,\"\")","v":""},{"$f":"IF(DataLog!$C850=\"Log value\",DataLog!AH850,\"\")","v":""},{"$f":"IF(DataLog!$C850=\"Log value\",DataLog!AI850,\"\")","v":""},{"$f":"IF(DataLog!$C850=\"Log value\",DataLog!AJ850,\"\")","v":""},{"$f":"IF(DataLog!$C850=\"Log value\",DataLog!AK850,\"\")","v":""},{"$f":"IF(DataLog!$C850=\"Log value\",DataLog!AL850,\"\")","v":""},{"$f":"IF(DataLog!$C850=\"Log value\",DataLog!AM850,\"\")","v":""}]
[null,null,null,null,null,null,{"$f":"IF(DataLog!$C851=\"Log value\",DataLog!D851&\"_\"&TEXT(DataLog!B851,\"åååå-mm-dd\"),\"\")","v":""},{"$f":"IF(DataLog!$C851=\"Log value\",DataLog!E851,\"\")","v":""},{"$f":"IF(DataLog!$C851=\"Log value\",DataLog!F851,\"\")","v":""},{"$f":"IF(DataLog!$C851=\"Log value\",DataLog!G851,\"\")","v":""},{"$f":"IF(DataLog!$C851=\"Log value\",DataLog!H851,\"\")","v":""},{"$f":"IF(DataLog!$C851=\"Log value\",DataLog!I851,\"\")","v":""},{"$f":"IF(DataLog!$C851=\"Log value\",DataLog!J851,\"\")","v":""},{"$f":"IF(DataLog!$C851=\"Log value\",DataLog!K851,\"\")","v":""},{"$f":"IF(DataLog!$C851=\"Log value\",DataLog!L851,\"\")","v":""},{"$f":"IF(DataLog!$C851=\"Log value\",DataLog!M851,\"\")","v":""},{"$f":"IF(DataLog!$C851=\"Log value\",DataLog!N851,\"\")","v":""},{"$f":"IF(DataLog!$C851=\"Log value\",DataLog!O851,\"\")","v":""},{"$f":"IF(DataLog!$C851=\"Log value\",DataLog!P851,\"\")","v":""},{"$f":"IF(DataLog!$C851=\"Log value\",DataLog!Q851,\"\")","v":""},{"$f":"IF(DataLog!$C851=\"Log value\",DataLog!R851,\"\")","v":""},{"$f":"IF(DataLog!$C851=\"Log value\",DataLog!S851,\"\")","v":""},{"$f":"IF(DataLog!$C851=\"Log value\",DataLog!T851,\"\")","v":""},{"$f":"IF(DataLog!$C851=\"Log value\",DataLog!U851,\"\")","v":""},{"$f":"IF(DataLog!$C851=\"Log value\",DataLog!V851,\"\")","v":""},{"$f":"IF(DataLog!$C851=\"Log value\",DataLog!W851,\"\")","v":""},{"$f":"IF(DataLog!$C851=\"Log value\",DataLog!X851,\"\")","v":""},{"$f":"IF(DataLog!$C851=\"Log value\",DataLog!Y851,\"\")","v":""},{"$f":"IF(DataLog!$C851=\"Log value\",DataLog!Z851,\"\")","v":""},{"$f":"IF(DataLog!$C851=\"Log value\",DataLog!AA851,\"\")","v":""},{"$f":"IF(DataLog!$C851=\"Log value\",DataLog!AB851,\"\")","v":""},{"$f":"IF(DataLog!$C851=\"Log value\",DataLog!AC851,\"\")","v":""},{"$f":"IF(DataLog!$C851=\"Log value\",DataLog!AD851,\"\")","v":""},{"$f":"IF(DataLog!$C851=\"Log value\",DataLog!AE851,\"\")","v":""},{"$f":"IF(DataLog!$C851=\"Log value\",DataLog!AF851,\"\")","v":""},{"$f":"IF(DataLog!$C851=\"Log value\",DataLog!AG851,\"\")","v":""},{"$f":"IF(DataLog!$C851=\"Log value\",DataLog!AH851,\"\")","v":""},{"$f":"IF(DataLog!$C851=\"Log value\",DataLog!AI851,\"\")","v":""},{"$f":"IF(DataLog!$C851=\"Log value\",DataLog!AJ851,\"\")","v":""},{"$f":"IF(DataLog!$C851=\"Log value\",DataLog!AK851,\"\")","v":""},{"$f":"IF(DataLog!$C851=\"Log value\",DataLog!AL851,\"\")","v":""},{"$f":"IF(DataLog!$C851=\"Log value\",DataLog!AM851,\"\")","v":""}]
[null,null,null,null,null,null,{"$f":"IF(DataLog!$C852=\"Log value\",DataLog!D852&\"_\"&TEXT(DataLog!B852,\"åååå-mm-dd\"),\"\")","v":""},{"$f":"IF(DataLog!$C852=\"Log value\",DataLog!E852,\"\")","v":""},{"$f":"IF(DataLog!$C852=\"Log value\",DataLog!F852,\"\")","v":""},{"$f":"IF(DataLog!$C852=\"Log value\",DataLog!G852,\"\")","v":""},{"$f":"IF(DataLog!$C852=\"Log value\",DataLog!H852,\"\")","v":""},{"$f":"IF(DataLog!$C852=\"Log value\",DataLog!I852,\"\")","v":""},{"$f":"IF(DataLog!$C852=\"Log value\",DataLog!J852,\"\")","v":""},{"$f":"IF(DataLog!$C852=\"Log value\",DataLog!K852,\"\")","v":""},{"$f":"IF(DataLog!$C852=\"Log value\",DataLog!L852,\"\")","v":""},{"$f":"IF(DataLog!$C852=\"Log value\",DataLog!M852,\"\")","v":""},{"$f":"IF(DataLog!$C852=\"Log value\",DataLog!N852,\"\")","v":""},{"$f":"IF(DataLog!$C852=\"Log value\",DataLog!O852,\"\")","v":""},{"$f":"IF(DataLog!$C852=\"Log value\",DataLog!P852,\"\")","v":""},{"$f":"IF(DataLog!$C852=\"Log value\",DataLog!Q852,\"\")","v":""},{"$f":"IF(DataLog!$C852=\"Log value\",DataLog!R852,\"\")","v":""},{"$f":"IF(DataLog!$C852=\"Log value\",DataLog!S852,\"\")","v":""},{"$f":"IF(DataLog!$C852=\"Log value\",DataLog!T852,\"\")","v":""},{"$f":"IF(DataLog!$C852=\"Log value\",DataLog!U852,\"\")","v":""},{"$f":"IF(DataLog!$C852=\"Log value\",DataLog!V852,\"\")","v":""},{"$f":"IF(DataLog!$C852=\"Log value\",DataLog!W852,\"\")","v":""},{"$f":"IF(DataLog!$C852=\"Log value\",DataLog!X852,\"\")","v":""},{"$f":"IF(DataLog!$C852=\"Log value\",DataLog!Y852,\"\")","v":""},{"$f":"IF(DataLog!$C852=\"Log value\",DataLog!Z852,\"\")","v":""},{"$f":"IF(DataLog!$C852=\"Log value\",DataLog!AA852,\"\")","v":""},{"$f":"IF(DataLog!$C852=\"Log value\",DataLog!AB852,\"\")","v":""},{"$f":"IF(DataLog!$C852=\"Log value\",DataLog!AC852,\"\")","v":""},{"$f":"IF(DataLog!$C852=\"Log value\",DataLog!AD852,\"\")","v":""},{"$f":"IF(DataLog!$C852=\"Log value\",DataLog!AE852,\"\")","v":""},{"$f":"IF(DataLog!$C852=\"Log value\",DataLog!AF852,\"\")","v":""},{"$f":"IF(DataLog!$C852=\"Log value\",DataLog!AG852,\"\")","v":""},{"$f":"IF(DataLog!$C852=\"Log value\",DataLog!AH852,\"\")","v":""},{"$f":"IF(DataLog!$C852=\"Log value\",DataLog!AI852,\"\")","v":""},{"$f":"IF(DataLog!$C852=\"Log value\",DataLog!AJ852,\"\")","v":""},{"$f":"IF(DataLog!$C852=\"Log value\",DataLog!AK852,\"\")","v":""},{"$f":"IF(DataLog!$C852=\"Log value\",DataLog!AL852,\"\")","v":""},{"$f":"IF(DataLog!$C852=\"Log value\",DataLog!AM852,\"\")","v":""}]
[null,null,null,null,null,null,{"$f":"IF(DataLog!$C853=\"Log value\",DataLog!D853&\"_\"&TEXT(DataLog!B853,\"åååå-mm-dd\"),\"\")","v":""},{"$f":"IF(DataLog!$C853=\"Log value\",DataLog!E853,\"\")","v":""},{"$f":"IF(DataLog!$C853=\"Log value\",DataLog!F853,\"\")","v":""},{"$f":"IF(DataLog!$C853=\"Log value\",DataLog!G853,\"\")","v":""},{"$f":"IF(DataLog!$C853=\"Log value\",DataLog!H853,\"\")","v":""},{"$f":"IF(DataLog!$C853=\"Log value\",DataLog!I853,\"\")","v":""},{"$f":"IF(DataLog!$C853=\"Log value\",DataLog!J853,\"\")","v":""},{"$f":"IF(DataLog!$C853=\"Log value\",DataLog!K853,\"\")","v":""},{"$f":"IF(DataLog!$C853=\"Log value\",DataLog!L853,\"\")","v":""},{"$f":"IF(DataLog!$C853=\"Log value\",DataLog!M853,\"\")","v":""},{"$f":"IF(DataLog!$C853=\"Log value\",DataLog!N853,\"\")","v":""},{"$f":"IF(DataLog!$C853=\"Log value\",DataLog!O853,\"\")","v":""},{"$f":"IF(DataLog!$C853=\"Log value\",DataLog!P853,\"\")","v":""},{"$f":"IF(DataLog!$C853=\"Log value\",DataLog!Q853,\"\")","v":""},{"$f":"IF(DataLog!$C853=\"Log value\",DataLog!R853,\"\")","v":""},{"$f":"IF(DataLog!$C853=\"Log value\",DataLog!S853,\"\")","v":""},{"$f":"IF(DataLog!$C853=\"Log value\",DataLog!T853,\"\")","v":""},{"$f":"IF(DataLog!$C853=\"Log value\",DataLog!U853,\"\")","v":""},{"$f":"IF(DataLog!$C853=\"Log value\",DataLog!V853,\"\")","v":""},{"$f":"IF(DataLog!$C853=\"Log value\",DataLog!W853,\"\")","v":""},{"$f":"IF(DataLog!$C853=\"Log value\",DataLog!X853,\"\")","v":""},{"$f":"IF(DataLog!$C853=\"Log value\",DataLog!Y853,\"\")","v":""},{"$f":"IF(DataLog!$C853=\"Log value\",DataLog!Z853,\"\")","v":""},{"$f":"IF(DataLog!$C853=\"Log value\",DataLog!AA853,\"\")","v":""},{"$f":"IF(DataLog!$C853=\"Log value\",DataLog!AB853,\"\")","v":""},{"$f":"IF(DataLog!$C853=\"Log value\",DataLog!AC853,\"\")","v":""},{"$f":"IF(DataLog!$C853=\"Log value\",DataLog!AD853,\"\")","v":""},{"$f":"IF(DataLog!$C853=\"Log value\",DataLog!AE853,\"\")","v":""},{"$f":"IF(DataLog!$C853=\"Log value\",DataLog!AF853,\"\")","v":""},{"$f":"IF(DataLog!$C853=\"Log value\",DataLog!AG853,\"\")","v":""},{"$f":"IF(DataLog!$C853=\"Log value\",DataLog!AH853,\"\")","v":""},{"$f":"IF(DataLog!$C853=\"Log value\",DataLog!AI853,\"\")","v":""},{"$f":"IF(DataLog!$C853=\"Log value\",DataLog!AJ853,\"\")","v":""},{"$f":"IF(DataLog!$C853=\"Log value\",DataLog!AK853,\"\")","v":""},{"$f":"IF(DataLog!$C853=\"Log value\",DataLog!AL853,\"\")","v":""},{"$f":"IF(DataLog!$C853=\"Log value\",DataLog!AM853,\"\")","v":""}]
[null,null,null,null,null,null,{"$f":"IF(DataLog!$C854=\"Log value\",DataLog!D854&\"_\"&TEXT(DataLog!B854,\"åååå-mm-dd\"),\"\")","v":""},{"$f":"IF(DataLog!$C854=\"Log value\",DataLog!E854,\"\")","v":""},{"$f":"IF(DataLog!$C854=\"Log value\",DataLog!F854,\"\")","v":""},{"$f":"IF(DataLog!$C854=\"Log value\",DataLog!G854,\"\")","v":""},{"$f":"IF(DataLog!$C854=\"Log value\",DataLog!H854,\"\")","v":""},{"$f":"IF(DataLog!$C854=\"Log value\",DataLog!I854,\"\")","v":""},{"$f":"IF(DataLog!$C854=\"Log value\",DataLog!J854,\"\")","v":""},{"$f":"IF(DataLog!$C854=\"Log value\",DataLog!K854,\"\")","v":""},{"$f":"IF(DataLog!$C854=\"Log value\",DataLog!L854,\"\")","v":""},{"$f":"IF(DataLog!$C854=\"Log value\",DataLog!M854,\"\")","v":""},{"$f":"IF(DataLog!$C854=\"Log value\",DataLog!N854,\"\")","v":""},{"$f":"IF(DataLog!$C854=\"Log value\",DataLog!O854,\"\")","v":""},{"$f":"IF(DataLog!$C854=\"Log value\",DataLog!P854,\"\")","v":""},{"$f":"IF(DataLog!$C854=\"Log value\",DataLog!Q854,\"\")","v":""},{"$f":"IF(DataLog!$C854=\"Log value\",DataLog!R854,\"\")","v":""},{"$f":"IF(DataLog!$C854=\"Log value\",DataLog!S854,\"\")","v":""},{"$f":"IF(DataLog!$C854=\"Log value\",DataLog!T854,\"\")","v":""},{"$f":"IF(DataLog!$C854=\"Log value\",DataLog!U854,\"\")","v":""},{"$f":"IF(DataLog!$C854=\"Log value\",DataLog!V854,\"\")","v":""},{"$f":"IF(DataLog!$C854=\"Log value\",DataLog!W854,\"\")","v":""},{"$f":"IF(DataLog!$C854=\"Log value\",DataLog!X854,\"\")","v":""},{"$f":"IF(DataLog!$C854=\"Log value\",DataLog!Y854,\"\")","v":""},{"$f":"IF(DataLog!$C854=\"Log value\",DataLog!Z854,\"\")","v":""},{"$f":"IF(DataLog!$C854=\"Log value\",DataLog!AA854,\"\")","v":""},{"$f":"IF(DataLog!$C854=\"Log value\",DataLog!AB854,\"\")","v":""},{"$f":"IF(DataLog!$C854=\"Log value\",DataLog!AC854,\"\")","v":""},{"$f":"IF(DataLog!$C854=\"Log value\",DataLog!AD854,\"\")","v":""},{"$f":"IF(DataLog!$C854=\"Log value\",DataLog!AE854,\"\")","v":""},{"$f":"IF(DataLog!$C854=\"Log value\",DataLog!AF854,\"\")","v":""},{"$f":"IF(DataLog!$C854=\"Log value\",DataLog!AG854,\"\")","v":""},{"$f":"IF(DataLog!$C854=\"Log value\",DataLog!AH854,\"\")","v":""},{"$f":"IF(DataLog!$C854=\"Log value\",DataLog!AI854,\"\")","v":""},{"$f":"IF(DataLog!$C854=\"Log value\",DataLog!AJ854,\"\")","v":""},{"$f":"IF(DataLog!$C854=\"Log value\",DataLog!AK854,\"\")","v":""},{"$f":"IF(DataLog!$C854=\"Log value\",DataLog!AL854,\"\")","v":""},{"$f":"IF(DataLog!$C854=\"Log value\",DataLog!AM854,\"\")","v":""}]
[null,null,null,null,null,null,{"$f":"IF(DataLog!$C855=\"Log value\",DataLog!D855&\"_\"&TEXT(DataLog!B855,\"åååå-mm-dd\"),\"\")","v":""},{"$f":"IF(DataLog!$C855=\"Log value\",DataLog!E855,\"\")","v":""},{"$f":"IF(DataLog!$C855=\"Log value\",DataLog!F855,\"\")","v":""},{"$f":"IF(DataLog!$C855=\"Log value\",DataLog!G855,\"\")","v":""},{"$f":"IF(DataLog!$C855=\"Log value\",DataLog!H855,\"\")","v":""},{"$f":"IF(DataLog!$C855=\"Log value\",DataLog!I855,\"\")","v":""},{"$f":"IF(DataLog!$C855=\"Log value\",DataLog!J855,\"\")","v":""},{"$f":"IF(DataLog!$C855=\"Log value\",DataLog!K855,\"\")","v":""},{"$f":"IF(DataLog!$C855=\"Log value\",DataLog!L855,\"\")","v":""},{"$f":"IF(DataLog!$C855=\"Log value\",DataLog!M855,\"\")","v":""},{"$f":"IF(DataLog!$C855=\"Log value\",DataLog!N855,\"\")","v":""},{"$f":"IF(DataLog!$C855=\"Log value\",DataLog!O855,\"\")","v":""},{"$f":"IF(DataLog!$C855=\"Log value\",DataLog!P855,\"\")","v":""},{"$f":"IF(DataLog!$C855=\"Log value\",DataLog!Q855,\"\")","v":""},{"$f":"IF(DataLog!$C855=\"Log value\",DataLog!R855,\"\")","v":""},{"$f":"IF(DataLog!$C855=\"Log value\",DataLog!S855,\"\")","v":""},{"$f":"IF(DataLog!$C855=\"Log value\",DataLog!T855,\"\")","v":""},{"$f":"IF(DataLog!$C855=\"Log value\",DataLog!U855,\"\")","v":""},{"$f":"IF(DataLog!$C855=\"Log value\",DataLog!V855,\"\")","v":""},{"$f":"IF(DataLog!$C855=\"Log value\",DataLog!W855,\"\")","v":""},{"$f":"IF(DataLog!$C855=\"Log value\",DataLog!X855,\"\")","v":""},{"$f":"IF(DataLog!$C855=\"Log value\",DataLog!Y855,\"\")","v":""},{"$f":"IF(DataLog!$C855=\"Log value\",DataLog!Z855,\"\")","v":""},{"$f":"IF(DataLog!$C855=\"Log value\",DataLog!AA855,\"\")","v":""},{"$f":"IF(DataLog!$C855=\"Log value\",DataLog!AB855,\"\")","v":""},{"$f":"IF(DataLog!$C855=\"Log value\",DataLog!AC855,\"\")","v":""},{"$f":"IF(DataLog!$C855=\"Log value\",DataLog!AD855,\"\")","v":""},{"$f":"IF(DataLog!$C855=\"Log value\",DataLog!AE855,\"\")","v":""},{"$f":"IF(DataLog!$C855=\"Log value\",DataLog!AF855,\"\")","v":""},{"$f":"IF(DataLog!$C855=\"Log value\",DataLog!AG855,\"\")","v":""},{"$f":"IF(DataLog!$C855=\"Log value\",DataLog!AH855,\"\")","v":""},{"$f":"IF(DataLog!$C855=\"Log value\",DataLog!AI855,\"\")","v":""},{"$f":"IF(DataLog!$C855=\"Log value\",DataLog!AJ855,\"\")","v":""},{"$f":"IF(DataLog!$C855=\"Log value\",DataLog!AK855,\"\")","v":""},{"$f":"IF(DataLog!$C855=\"Log value\",DataLog!AL855,\"\")","v":""},{"$f":"IF(DataLog!$C855=\"Log value\",DataLog!AM855,\"\")","v":""}]
[null,null,null,null,null,null,{"$f":"IF(DataLog!$C856=\"Log value\",DataLog!D856&\"_\"&TEXT(DataLog!B856,\"åååå-mm-dd\"),\"\")","v":""},{"$f":"IF(DataLog!$C856=\"Log value\",DataLog!E856,\"\")","v":""},{"$f":"IF(DataLog!$C856=\"Log value\",DataLog!F856,\"\")","v":""},{"$f":"IF(DataLog!$C856=\"Log value\",DataLog!G856,\"\")","v":""},{"$f":"IF(DataLog!$C856=\"Log value\",DataLog!H856,\"\")","v":""},{"$f":"IF(DataLog!$C856=\"Log value\",DataLog!I856,\"\")","v":""},{"$f":"IF(DataLog!$C856=\"Log value\",DataLog!J856,\"\")","v":""},{"$f":"IF(DataLog!$C856=\"Log value\",DataLog!K856,\"\")","v":""},{"$f":"IF(DataLog!$C856=\"Log value\",DataLog!L856,\"\")","v":""},{"$f":"IF(DataLog!$C856=\"Log value\",DataLog!M856,\"\")","v":""},{"$f":"IF(DataLog!$C856=\"Log value\",DataLog!N856,\"\")","v":""},{"$f":"IF(DataLog!$C856=\"Log value\",DataLog!O856,\"\")","v":""},{"$f":"IF(DataLog!$C856=\"Log value\",DataLog!P856,\"\")","v":""},{"$f":"IF(DataLog!$C856=\"Log value\",DataLog!Q856,\"\")","v":""},{"$f":"IF(DataLog!$C856=\"Log value\",DataLog!R856,\"\")","v":""},{"$f":"IF(DataLog!$C856=\"Log value\",DataLog!S856,\"\")","v":""},{"$f":"IF(DataLog!$C856=\"Log value\",DataLog!T856,\"\")","v":""},{"$f":"IF(DataLog!$C856=\"Log value\",DataLog!U856,\"\")","v":""},{"$f":"IF(DataLog!$C856=\"Log value\",DataLog!V856,\"\")","v":""},{"$f":"IF(DataLog!$C856=\"Log value\",DataLog!W856,\"\")","v":""},{"$f":"IF(DataLog!$C856=\"Log value\",DataLog!X856,\"\")","v":""},{"$f":"IF(DataLog!$C856=\"Log value\",DataLog!Y856,\"\")","v":""},{"$f":"IF(DataLog!$C856=\"Log value\",DataLog!Z856,\"\")","v":""},{"$f":"IF(DataLog!$C856=\"Log value\",DataLog!AA856,\"\")","v":""},{"$f":"IF(DataLog!$C856=\"Log value\",DataLog!AB856,\"\")","v":""},{"$f":"IF(DataLog!$C856=\"Log value\",DataLog!AC856,\"\")","v":""},{"$f":"IF(DataLog!$C856=\"Log value\",DataLog!AD856,\"\")","v":""},{"$f":"IF(DataLog!$C856=\"Log value\",DataLog!AE856,\"\")","v":""},{"$f":"IF(DataLog!$C856=\"Log value\",DataLog!AF856,\"\")","v":""},{"$f":"IF(DataLog!$C856=\"Log value\",DataLog!AG856,\"\")","v":""},{"$f":"IF(DataLog!$C856=\"Log value\",DataLog!AH856,\"\")","v":""},{"$f":"IF(DataLog!$C856=\"Log value\",DataLog!AI856,\"\")","v":""},{"$f":"IF(DataLog!$C856=\"Log value\",DataLog!AJ856,\"\")","v":""},{"$f":"IF(DataLog!$C856=\"Log value\",DataLog!AK856,\"\")","v":""},{"$f":"IF(DataLog!$C856=\"Log value\",DataLog!AL856,\"\")","v":""},{"$f":"IF(DataLog!$C856=\"Log value\",DataLog!AM856,\"\")","v":""}]
[null,null,null,null,null,null,{"$f":"IF(DataLog!$C857=\"Log value\",DataLog!D857&\"_\"&TEXT(DataLog!B857,\"åååå-mm-dd\"),\"\")","v":""},{"$f":"IF(DataLog!$C857=\"Log value\",DataLog!E857,\"\")","v":""},{"$f":"IF(DataLog!$C857=\"Log value\",DataLog!F857,\"\")","v":""},{"$f":"IF(DataLog!$C857=\"Log value\",DataLog!G857,\"\")","v":""},{"$f":"IF(DataLog!$C857=\"Log value\",DataLog!H857,\"\")","v":""},{"$f":"IF(DataLog!$C857=\"Log value\",DataLog!I857,\"\")","v":""},{"$f":"IF(DataLog!$C857=\"Log value\",DataLog!J857,\"\")","v":""},{"$f":"IF(DataLog!$C857=\"Log value\",DataLog!K857,\"\")","v":""},{"$f":"IF(DataLog!$C857=\"Log value\",DataLog!L857,\"\")","v":""},{"$f":"IF(DataLog!$C857=\"Log value\",DataLog!M857,\"\")","v":""},{"$f":"IF(DataLog!$C857=\"Log value\",DataLog!N857,\"\")","v":""},{"$f":"IF(DataLog!$C857=\"Log value\",DataLog!O857,\"\")","v":""},{"$f":"IF(DataLog!$C857=\"Log value\",DataLog!P857,\"\")","v":""},{"$f":"IF(DataLog!$C857=\"Log value\",DataLog!Q857,\"\")","v":""},{"$f":"IF(DataLog!$C857=\"Log value\",DataLog!R857,\"\")","v":""},{"$f":"IF(DataLog!$C857=\"Log value\",DataLog!S857,\"\")","v":""},{"$f":"IF(DataLog!$C857=\"Log value\",DataLog!T857,\"\")","v":""},{"$f":"IF(DataLog!$C857=\"Log value\",DataLog!U857,\"\")","v":""},{"$f":"IF(DataLog!$C857=\"Log value\",DataLog!V857,\"\")","v":""},{"$f":"IF(DataLog!$C857=\"Log value\",DataLog!W857,\"\")","v":""},{"$f":"IF(DataLog!$C857=\"Log value\",DataLog!X857,\"\")","v":""},{"$f":"IF(DataLog!$C857=\"Log value\",DataLog!Y857,\"\")","v":""},{"$f":"IF(DataLog!$C857=\"Log value\",DataLog!Z857,\"\")","v":""},{"$f":"IF(DataLog!$C857=\"Log value\",DataLog!AA857,\"\")","v":""},{"$f":"IF(DataLog!$C857=\"Log value\",DataLog!AB857,\"\")","v":""},{"$f":"IF(DataLog!$C857=\"Log value\",DataLog!AC857,\"\")","v":""},{"$f":"IF(DataLog!$C857=\"Log value\",DataLog!AD857,\"\")","v":""},{"$f":"IF(DataLog!$C857=\"Log value\",DataLog!AE857,\"\")","v":""},{"$f":"IF(DataLog!$C857=\"Log value\",DataLog!AF857,\"\")","v":""},{"$f":"IF(DataLog!$C857=\"Log value\",DataLog!AG857,\"\")","v":""},{"$f":"IF(DataLog!$C857=\"Log value\",DataLog!AH857,\"\")","v":""},{"$f":"IF(DataLog!$C857=\"Log value\",DataLog!AI857,\"\")","v":""},{"$f":"IF(DataLog!$C857=\"Log value\",DataLog!AJ857,\"\")","v":""},{"$f":"IF(DataLog!$C857=\"Log value\",DataLog!AK857,\"\")","v":""},{"$f":"IF(DataLog!$C857=\"Log value\",DataLog!AL857,\"\")","v":""},{"$f":"IF(DataLog!$C857=\"Log value\",DataLog!AM857,\"\")","v":""}]
[null,null,null,null,null,null,{"$f":"IF(DataLog!$C858=\"Log value\",DataLog!D858&\"_\"&TEXT(DataLog!B858,\"åååå-mm-dd\"),\"\")","v":""},{"$f":"IF(DataLog!$C858=\"Log value\",DataLog!E858,\"\")","v":""},{"$f":"IF(DataLog!$C858=\"Log value\",DataLog!F858,\"\")","v":""},{"$f":"IF(DataLog!$C858=\"Log value\",DataLog!G858,\"\")","v":""},{"$f":"IF(DataLog!$C858=\"Log value\",DataLog!H858,\"\")","v":""},{"$f":"IF(DataLog!$C858=\"Log value\",DataLog!I858,\"\")","v":""},{"$f":"IF(DataLog!$C858=\"Log value\",DataLog!J858,\"\")","v":""},{"$f":"IF(DataLog!$C858=\"Log value\",DataLog!K858,\"\")","v":""},{"$f":"IF(DataLog!$C858=\"Log value\",DataLog!L858,\"\")","v":""},{"$f":"IF(DataLog!$C858=\"Log value\",DataLog!M858,\"\")","v":""},{"$f":"IF(DataLog!$C858=\"Log value\",DataLog!N858,\"\")","v":""},{"$f":"IF(DataLog!$C858=\"Log value\",DataLog!O858,\"\")","v":""},{"$f":"IF(DataLog!$C858=\"Log value\",DataLog!P858,\"\")","v":""},{"$f":"IF(DataLog!$C858=\"Log value\",DataLog!Q858,\"\")","v":""},{"$f":"IF(DataLog!$C858=\"Log value\",DataLog!R858,\"\")","v":""},{"$f":"IF(DataLog!$C858=\"Log value\",DataLog!S858,\"\")","v":""},{"$f":"IF(DataLog!$C858=\"Log value\",DataLog!T858,\"\")","v":""},{"$f":"IF(DataLog!$C858=\"Log value\",DataLog!U858,\"\")","v":""},{"$f":"IF(DataLog!$C858=\"Log value\",DataLog!V858,\"\")","v":""},{"$f":"IF(DataLog!$C858=\"Log value\",DataLog!W858,\"\")","v":""},{"$f":"IF(DataLog!$C858=\"Log value\",DataLog!X858,\"\")","v":""},{"$f":"IF(DataLog!$C858=\"Log value\",DataLog!Y858,\"\")","v":""},{"$f":"IF(DataLog!$C858=\"Log value\",DataLog!Z858,\"\")","v":""},{"$f":"IF(DataLog!$C858=\"Log value\",DataLog!AA858,\"\")","v":""},{"$f":"IF(DataLog!$C858=\"Log value\",DataLog!AB858,\"\")","v":""},{"$f":"IF(DataLog!$C858=\"Log value\",DataLog!AC858,\"\")","v":""},{"$f":"IF(DataLog!$C858=\"Log value\",DataLog!AD858,\"\")","v":""},{"$f":"IF(DataLog!$C858=\"Log value\",DataLog!AE858,\"\")","v":""},{"$f":"IF(DataLog!$C858=\"Log value\",DataLog!AF858,\"\")","v":""},{"$f":"IF(DataLog!$C858=\"Log value\",DataLog!AG858,\"\")","v":""},{"$f":"IF(DataLog!$C858=\"Log value\",DataLog!AH858,\"\")","v":""},{"$f":"IF(DataLog!$C858=\"Log value\",DataLog!AI858,\"\")","v":""},{"$f":"IF(DataLog!$C858=\"Log value\",DataLog!AJ858,\"\")","v":""},{"$f":"IF(DataLog!$C858=\"Log value\",DataLog!AK858,\"\")","v":""},{"$f":"IF(DataLog!$C858=\"Log value\",DataLog!AL858,\"\")","v":""},{"$f":"IF(DataLog!$C858=\"Log value\",DataLog!AM858,\"\")","v":""}]
[null,null,null,null,null,null,{"$f":"IF(DataLog!$C859=\"Log value\",DataLog!D859&\"_\"&TEXT(DataLog!B859,\"åååå-mm-dd\"),\"\")","v":""},{"$f":"IF(DataLog!$C859=\"Log value\",DataLog!E859,\"\")","v":""},{"$f":"IF(DataLog!$C859=\"Log value\",DataLog!F859,\"\")","v":""},{"$f":"IF(DataLog!$C859=\"Log value\",DataLog!G859,\"\")","v":""},{"$f":"IF(DataLog!$C859=\"Log value\",DataLog!H859,\"\")","v":""},{"$f":"IF(DataLog!$C859=\"Log value\",DataLog!I859,\"\")","v":""},{"$f":"IF(DataLog!$C859=\"Log value\",DataLog!J859,\"\")","v":""},{"$f":"IF(DataLog!$C859=\"Log value\",DataLog!K859,\"\")","v":""},{"$f":"IF(DataLog!$C859=\"Log value\",DataLog!L859,\"\")","v":""},{"$f":"IF(DataLog!$C859=\"Log value\",DataLog!M859,\"\")","v":""},{"$f":"IF(DataLog!$C859=\"Log value\",DataLog!N859,\"\")","v":""},{"$f":"IF(DataLog!$C859=\"Log value\",DataLog!O859,\"\")","v":""},{"$f":"IF(DataLog!$C859=\"Log value\",DataLog!P859,\"\")","v":""},{"$f":"IF(DataLog!$C859=\"Log value\",DataLog!Q859,\"\")","v":""},{"$f":"IF(DataLog!$C859=\"Log value\",DataLog!R859,\"\")","v":""},{"$f":"IF(DataLog!$C859=\"Log value\",DataLog!S859,\"\")","v":""},{"$f":"IF(DataLog!$C859=\"Log value\",DataLog!T859,\"\")","v":""},{"$f":"IF(DataLog!$C859=\"Log value\",DataLog!U859,\"\")","v":""},{"$f":"IF(DataLog!$C859=\"Log value\",DataLog!V859,\"\")","v":""},{"$f":"IF(DataLog!$C859=\"Log value\",DataLog!W859,\"\")","v":""},{"$f":"IF(DataLog!$C859=\"Log value\",DataLog!X859,\"\")","v":""},{"$f":"IF(DataLog!$C859=\"Log value\",DataLog!Y859,\"\")","v":""},{"$f":"IF(DataLog!$C859=\"Log value\",DataLog!Z859,\"\")","v":""},{"$f":"IF(DataLog!$C859=\"Log value\",DataLog!AA859,\"\")","v":""},{"$f":"IF(DataLog!$C859=\"Log value\",DataLog!AB859,\"\")","v":""},{"$f":"IF(DataLog!$C859=\"Log value\",DataLog!AC859,\"\")","v":""},{"$f":"IF(DataLog!$C859=\"Log value\",DataLog!AD859,\"\")","v":""},{"$f":"IF(DataLog!$C859=\"Log value\",DataLog!AE859,\"\")","v":""},{"$f":"IF(DataLog!$C859=\"Log value\",DataLog!AF859,\"\")","v":""},{"$f":"IF(DataLog!$C859=\"Log value\",DataLog!AG859,\"\")","v":""},{"$f":"IF(DataLog!$C859=\"Log value\",DataLog!AH859,\"\")","v":""},{"$f":"IF(DataLog!$C859=\"Log value\",DataLog!AI859,\"\")","v":""},{"$f":"IF(DataLog!$C859=\"Log value\",DataLog!AJ859,\"\")","v":""},{"$f":"IF(DataLog!$C859=\"Log value\",DataLog!AK859,\"\")","v":""},{"$f":"IF(DataLog!$C859=\"Log value\",DataLog!AL859,\"\")","v":""},{"$f":"IF(DataLog!$C859=\"Log value\",DataLog!AM859,\"\")","v":""}]
[null,null,null,null,null,null,{"$f":"IF(DataLog!$C860=\"Log value\",DataLog!D860&\"_\"&TEXT(DataLog!B860,\"åååå-mm-dd\"),\"\")","v":""},{"$f":"IF(DataLog!$C860=\"Log value\",DataLog!E860,\"\")","v":""},{"$f":"IF(DataLog!$C860=\"Log value\",DataLog!F860,\"\")","v":""},{"$f":"IF(DataLog!$C860=\"Log value\",DataLog!G860,\"\")","v":""},{"$f":"IF(DataLog!$C860=\"Log value\",DataLog!H860,\"\")","v":""},{"$f":"IF(DataLog!$C860=\"Log value\",DataLog!I860,\"\")","v":""},{"$f":"IF(DataLog!$C860=\"Log value\",DataLog!J860,\"\")","v":""},{"$f":"IF(DataLog!$C860=\"Log value\",DataLog!K860,\"\")","v":""},{"$f":"IF(DataLog!$C860=\"Log value\",DataLog!L860,\"\")","v":""},{"$f":"IF(DataLog!$C860=\"Log value\",DataLog!M860,\"\")","v":""},{"$f":"IF(DataLog!$C860=\"Log value\",DataLog!N860,\"\")","v":""},{"$f":"IF(DataLog!$C860=\"Log value\",DataLog!O860,\"\")","v":""},{"$f":"IF(DataLog!$C860=\"Log value\",DataLog!P860,\"\")","v":""},{"$f":"IF(DataLog!$C860=\"Log value\",DataLog!Q860,\"\")","v":""},{"$f":"IF(DataLog!$C860=\"Log value\",DataLog!R860,\"\")","v":""},{"$f":"IF(DataLog!$C860=\"Log value\",DataLog!S860,\"\")","v":""},{"$f":"IF(DataLog!$C860=\"Log value\",DataLog!T860,\"\")","v":""},{"$f":"IF(DataLog!$C860=\"Log value\",DataLog!U860,\"\")","v":""},{"$f":"IF(DataLog!$C860=\"Log value\",DataLog!V860,\"\")","v":""},{"$f":"IF(DataLog!$C860=\"Log value\",DataLog!W860,\"\")","v":""},{"$f":"IF(DataLog!$C860=\"Log value\",DataLog!X860,\"\")","v":""},{"$f":"IF(DataLog!$C860=\"Log value\",DataLog!Y860,\"\")","v":""},{"$f":"IF(DataLog!$C860=\"Log value\",DataLog!Z860,\"\")","v":""},{"$f":"IF(DataLog!$C860=\"Log value\",DataLog!AA860,\"\")","v":""},{"$f":"IF(DataLog!$C860=\"Log value\",DataLog!AB860,\"\")","v":""},{"$f":"IF(DataLog!$C860=\"Log value\",DataLog!AC860,\"\")","v":""},{"$f":"IF(DataLog!$C860=\"Log value\",DataLog!AD860,\"\")","v":""},{"$f":"IF(DataLog!$C860=\"Log value\",DataLog!AE860,\"\")","v":""},{"$f":"IF(DataLog!$C860=\"Log value\",DataLog!AF860,\"\")","v":""},{"$f":"IF(DataLog!$C860=\"Log value\",DataLog!AG860,\"\")","v":""},{"$f":"IF(DataLog!$C860=\"Log value\",DataLog!AH860,\"\")","v":""},{"$f":"IF(DataLog!$C860=\"Log value\",DataLog!AI860,\"\")","v":""},{"$f":"IF(DataLog!$C860=\"Log value\",DataLog!AJ860,\"\")","v":""},{"$f":"IF(DataLog!$C860=\"Log value\",DataLog!AK860,\"\")","v":""},{"$f":"IF(DataLog!$C860=\"Log value\",DataLog!AL860,\"\")","v":""},{"$f":"IF(DataLog!$C860=\"Log value\",DataLog!AM860,\"\")","v":""}]
[null,null,null,null,null,null,{"$f":"IF(DataLog!$C861=\"Log value\",DataLog!D861&\"_\"&TEXT(DataLog!B861,\"åååå-mm-dd\"),\"\")","v":""},{"$f":"IF(DataLog!$C861=\"Log value\",DataLog!E861,\"\")","v":""},{"$f":"IF(DataLog!$C861=\"Log value\",DataLog!F861,\"\")","v":""},{"$f":"IF(DataLog!$C861=\"Log value\",DataLog!G861,\"\")","v":""},{"$f":"IF(DataLog!$C861=\"Log value\",DataLog!H861,\"\")","v":""},{"$f":"IF(DataLog!$C861=\"Log value\",DataLog!I861,\"\")","v":""},{"$f":"IF(DataLog!$C861=\"Log value\",DataLog!J861,\"\")","v":""},{"$f":"IF(DataLog!$C861=\"Log value\",DataLog!K861,\"\")","v":""},{"$f":"IF(DataLog!$C861=\"Log value\",DataLog!L861,\"\")","v":""},{"$f":"IF(DataLog!$C861=\"Log value\",DataLog!M861,\"\")","v":""},{"$f":"IF(DataLog!$C861=\"Log value\",DataLog!N861,\"\")","v":""},{"$f":"IF(DataLog!$C861=\"Log value\",DataLog!O861,\"\")","v":""},{"$f":"IF(DataLog!$C861=\"Log value\",DataLog!P861,\"\")","v":""},{"$f":"IF(DataLog!$C861=\"Log value\",DataLog!Q861,\"\")","v":""},{"$f":"IF(DataLog!$C861=\"Log value\",DataLog!R861,\"\")","v":""},{"$f":"IF(DataLog!$C861=\"Log value\",DataLog!S861,\"\")","v":""},{"$f":"IF(DataLog!$C861=\"Log value\",DataLog!T861,\"\")","v":""},{"$f":"IF(DataLog!$C861=\"Log value\",DataLog!U861,\"\")","v":""},{"$f":"IF(DataLog!$C861=\"Log value\",DataLog!V861,\"\")","v":""},{"$f":"IF(DataLog!$C861=\"Log value\",DataLog!W861,\"\")","v":""},{"$f":"IF(DataLog!$C861=\"Log value\",DataLog!X861,\"\")","v":""},{"$f":"IF(DataLog!$C861=\"Log value\",DataLog!Y861,\"\")","v":""},{"$f":"IF(DataLog!$C861=\"Log value\",DataLog!Z861,\"\")","v":""},{"$f":"IF(DataLog!$C861=\"Log value\",DataLog!AA861,\"\")","v":""},{"$f":"IF(DataLog!$C861=\"Log value\",DataLog!AB861,\"\")","v":""},{"$f":"IF(DataLog!$C861=\"Log value\",DataLog!AC861,\"\")","v":""},{"$f":"IF(DataLog!$C861=\"Log value\",DataLog!AD861,\"\")","v":""},{"$f":"IF(DataLog!$C861=\"Log value\",DataLog!AE861,\"\")","v":""},{"$f":"IF(DataLog!$C861=\"Log value\",DataLog!AF861,\"\")","v":""},{"$f":"IF(DataLog!$C861=\"Log value\",DataLog!AG861,\"\")","v":""},{"$f":"IF(DataLog!$C861=\"Log value\",DataLog!AH861,\"\")","v":""},{"$f":"IF(DataLog!$C861=\"Log value\",DataLog!AI861,\"\")","v":""},{"$f":"IF(DataLog!$C861=\"Log value\",DataLog!AJ861,\"\")","v":""},{"$f":"IF(DataLog!$C861=\"Log value\",DataLog!AK861,\"\")","v":""},{"$f":"IF(DataLog!$C861=\"Log value\",DataLog!AL861,\"\")","v":""},{"$f":"IF(DataLog!$C861=\"Log value\",DataLog!AM861,\"\")","v":""}]
[null,null,null,null,null,null,{"$f":"IF(DataLog!$C862=\"Log value\",DataLog!D862&\"_\"&TEXT(DataLog!B862,\"åååå-mm-dd\"),\"\")","v":""},{"$f":"IF(DataLog!$C862=\"Log value\",DataLog!E862,\"\")","v":""},{"$f":"IF(DataLog!$C862=\"Log value\",DataLog!F862,\"\")","v":""},{"$f":"IF(DataLog!$C862=\"Log value\",DataLog!G862,\"\")","v":""},{"$f":"IF(DataLog!$C862=\"Log value\",DataLog!H862,\"\")","v":""},{"$f":"IF(DataLog!$C862=\"Log value\",DataLog!I862,\"\")","v":""},{"$f":"IF(DataLog!$C862=\"Log value\",DataLog!J862,\"\")","v":""},{"$f":"IF(DataLog!$C862=\"Log value\",DataLog!K862,\"\")","v":""},{"$f":"IF(DataLog!$C862=\"Log value\",DataLog!L862,\"\")","v":""},{"$f":"IF(DataLog!$C862=\"Log value\",DataLog!M862,\"\")","v":""},{"$f":"IF(DataLog!$C862=\"Log value\",DataLog!N862,\"\")","v":""},{"$f":"IF(DataLog!$C862=\"Log value\",DataLog!O862,\"\")","v":""},{"$f":"IF(DataLog!$C862=\"Log value\",DataLog!P862,\"\")","v":""},{"$f":"IF(DataLog!$C862=\"Log value\",DataLog!Q862,\"\")","v":""},{"$f":"IF(DataLog!$C862=\"Log value\",DataLog!R862,\"\")","v":""},{"$f":"IF(DataLog!$C862=\"Log value\",DataLog!S862,\"\")","v":""},{"$f":"IF(DataLog!$C862=\"Log value\",DataLog!T862,\"\")","v":""},{"$f":"IF(DataLog!$C862=\"Log value\",DataLog!U862,\"\")","v":""},{"$f":"IF(DataLog!$C862=\"Log value\",DataLog!V862,\"\")","v":""},{"$f":"IF(DataLog!$C862=\"Log value\",DataLog!W862,\"\")","v":""},{"$f":"IF(DataLog!$C862=\"Log value\",DataLog!X862,\"\")","v":""},{"$f":"IF(DataLog!$C862=\"Log value\",DataLog!Y862,\"\")","v":""},{"$f":"IF(DataLog!$C862=\"Log value\",DataLog!Z862,\"\")","v":""},{"$f":"IF(DataLog!$C862=\"Log value\",DataLog!AA862,\"\")","v":""},{"$f":"IF(DataLog!$C862=\"Log value\",DataLog!AB862,\"\")","v":""},{"$f":"IF(DataLog!$C862=\"Log value\",DataLog!AC862,\"\")","v":""},{"$f":"IF(DataLog!$C862=\"Log value\",DataLog!AD862,\"\")","v":""},{"$f":"IF(DataLog!$C862=\"Log value\",DataLog!AE862,\"\")","v":""},{"$f":"IF(DataLog!$C862=\"Log value\",DataLog!AF862,\"\")","v":""},{"$f":"IF(DataLog!$C862=\"Log value\",DataLog!AG862,\"\")","v":""},{"$f":"IF(DataLog!$C862=\"Log value\",DataLog!AH862,\"\")","v":""},{"$f":"IF(DataLog!$C862=\"Log value\",DataLog!AI862,\"\")","v":""},{"$f":"IF(DataLog!$C862=\"Log value\",DataLog!AJ862,\"\")","v":""},{"$f":"IF(DataLog!$C862=\"Log value\",DataLog!AK862,\"\")","v":""},{"$f":"IF(DataLog!$C862=\"Log value\",DataLog!AL862,\"\")","v":""},{"$f":"IF(DataLog!$C862=\"Log value\",DataLog!AM862,\"\")","v":""}]
[null,null,null,null,null,null,{"$f":"IF(DataLog!$C863=\"Log value\",DataLog!D863&\"_\"&TEXT(DataLog!B863,\"åååå-mm-dd\"),\"\")","v":""},{"$f":"IF(DataLog!$C863=\"Log value\",DataLog!E863,\"\")","v":""},{"$f":"IF(DataLog!$C863=\"Log value\",DataLog!F863,\"\")","v":""},{"$f":"IF(DataLog!$C863=\"Log value\",DataLog!G863,\"\")","v":""},{"$f":"IF(DataLog!$C863=\"Log value\",DataLog!H863,\"\")","v":""},{"$f":"IF(DataLog!$C863=\"Log value\",DataLog!I863,\"\")","v":""},{"$f":"IF(DataLog!$C863=\"Log value\",DataLog!J863,\"\")","v":""},{"$f":"IF(DataLog!$C863=\"Log value\",DataLog!K863,\"\")","v":""},{"$f":"IF(DataLog!$C863=\"Log value\",DataLog!L863,\"\")","v":""},{"$f":"IF(DataLog!$C863=\"Log value\",DataLog!M863,\"\")","v":""},{"$f":"IF(DataLog!$C863=\"Log value\",DataLog!N863,\"\")","v":""},{"$f":"IF(DataLog!$C863=\"Log value\",DataLog!O863,\"\")","v":""},{"$f":"IF(DataLog!$C863=\"Log value\",DataLog!P863,\"\")","v":""},{"$f":"IF(DataLog!$C863=\"Log value\",DataLog!Q863,\"\")","v":""},{"$f":"IF(DataLog!$C863=\"Log value\",DataLog!R863,\"\")","v":""},{"$f":"IF(DataLog!$C863=\"Log value\",DataLog!S863,\"\")","v":""},{"$f":"IF(DataLog!$C863=\"Log value\",DataLog!T863,\"\")","v":""},{"$f":"IF(DataLog!$C863=\"Log value\",DataLog!U863,\"\")","v":""},{"$f":"IF(DataLog!$C863=\"Log value\",DataLog!V863,\"\")","v":""},{"$f":"IF(DataLog!$C863=\"Log value\",DataLog!W863,\"\")","v":""},{"$f":"IF(DataLog!$C863=\"Log value\",DataLog!X863,\"\")","v":""},{"$f":"IF(DataLog!$C863=\"Log value\",DataLog!Y863,\"\")","v":""},{"$f":"IF(DataLog!$C863=\"Log value\",DataLog!Z863,\"\")","v":""},{"$f":"IF(DataLog!$C863=\"Log value\",DataLog!AA863,\"\")","v":""},{"$f":"IF(DataLog!$C863=\"Log value\",DataLog!AB863,\"\")","v":""},{"$f":"IF(DataLog!$C863=\"Log value\",DataLog!AC863,\"\")","v":""},{"$f":"IF(DataLog!$C863=\"Log value\",DataLog!AD863,\"\")","v":""},{"$f":"IF(DataLog!$C863=\"Log value\",DataLog!AE863,\"\")","v":""},{"$f":"IF(DataLog!$C863=\"Log value\",DataLog!AF863,\"\")","v":""},{"$f":"IF(DataLog!$C863=\"Log value\",DataLog!AG863,\"\")","v":""},{"$f":"IF(DataLog!$C863=\"Log value\",DataLog!AH863,\"\")","v":""},{"$f":"IF(DataLog!$C863=\"Log value\",DataLog!AI863,\"\")","v":""},{"$f":"IF(DataLog!$C863=\"Log value\",DataLog!AJ863,\"\")","v":""},{"$f":"IF(DataLog!$C863=\"Log value\",DataLog!AK863,\"\")","v":""},{"$f":"IF(DataLog!$C863=\"Log value\",DataLog!AL863,\"\")","v":""},{"$f":"IF(DataLog!$C863=\"Log value\",DataLog!AM863,\"\")","v":""}]
[null,null,null,null,null,null,{"$f":"IF(DataLog!$C864=\"Log value\",DataLog!D864&\"_\"&TEXT(DataLog!B864,\"åååå-mm-dd\"),\"\")","v":""},{"$f":"IF(DataLog!$C864=\"Log value\",DataLog!E864,\"\")","v":""},{"$f":"IF(DataLog!$C864=\"Log value\",DataLog!F864,\"\")","v":""},{"$f":"IF(DataLog!$C864=\"Log value\",DataLog!G864,\"\")","v":""},{"$f":"IF(DataLog!$C864=\"Log value\",DataLog!H864,\"\")","v":""},{"$f":"IF(DataLog!$C864=\"Log value\",DataLog!I864,\"\")","v":""},{"$f":"IF(DataLog!$C864=\"Log value\",DataLog!J864,\"\")","v":""},{"$f":"IF(DataLog!$C864=\"Log value\",DataLog!K864,\"\")","v":""},{"$f":"IF(DataLog!$C864=\"Log value\",DataLog!L864,\"\")","v":""},{"$f":"IF(DataLog!$C864=\"Log value\",DataLog!M864,\"\")","v":""},{"$f":"IF(DataLog!$C864=\"Log value\",DataLog!N864,\"\")","v":""},{"$f":"IF(DataLog!$C864=\"Log value\",DataLog!O864,\"\")","v":""},{"$f":"IF(DataLog!$C864=\"Log value\",DataLog!P864,\"\")","v":""},{"$f":"IF(DataLog!$C864=\"Log value\",DataLog!Q864,\"\")","v":""},{"$f":"IF(DataLog!$C864=\"Log value\",DataLog!R864,\"\")","v":""},{"$f":"IF(DataLog!$C864=\"Log value\",DataLog!S864,\"\")","v":""},{"$f":"IF(DataLog!$C864=\"Log value\",DataLog!T864,\"\")","v":""},{"$f":"IF(DataLog!$C864=\"Log value\",DataLog!U864,\"\")","v":""},{"$f":"IF(DataLog!$C864=\"Log value\",DataLog!V864,\"\")","v":""},{"$f":"IF(DataLog!$C864=\"Log value\",DataLog!W864,\"\")","v":""},{"$f":"IF(DataLog!$C864=\"Log value\",DataLog!X864,\"\")","v":""},{"$f":"IF(DataLog!$C864=\"Log value\",DataLog!Y864,\"\")","v":""},{"$f":"IF(DataLog!$C864=\"Log value\",DataLog!Z864,\"\")","v":""},{"$f":"IF(DataLog!$C864=\"Log value\",DataLog!AA864,\"\")","v":""},{"$f":"IF(DataLog!$C864=\"Log value\",DataLog!AB864,\"\")","v":""},{"$f":"IF(DataLog!$C864=\"Log value\",DataLog!AC864,\"\")","v":""},{"$f":"IF(DataLog!$C864=\"Log value\",DataLog!AD864,\"\")","v":""},{"$f":"IF(DataLog!$C864=\"Log value\",DataLog!AE864,\"\")","v":""},{"$f":"IF(DataLog!$C864=\"Log value\",DataLog!AF864,\"\")","v":""},{"$f":"IF(DataLog!$C864=\"Log value\",DataLog!AG864,\"\")","v":""},{"$f":"IF(DataLog!$C864=\"Log value\",DataLog!AH864,\"\")","v":""},{"$f":"IF(DataLog!$C864=\"Log value\",DataLog!AI864,\"\")","v":""},{"$f":"IF(DataLog!$C864=\"Log value\",DataLog!AJ864,\"\")","v":""},{"$f":"IF(DataLog!$C864=\"Log value\",DataLog!AK864,\"\")","v":""},{"$f":"IF(DataLog!$C864=\"Log value\",DataLog!AL864,\"\")","v":""},{"$f":"IF(DataLog!$C864=\"Log value\",DataLog!AM864,\"\")","v":""}]
[null,null,null,null,null,null,{"$f":"IF(DataLog!$C865=\"Log value\",DataLog!D865&\"_\"&TEXT(DataLog!B865,\"åååå-mm-dd\"),\"\")","v":""},{"$f":"IF(DataLog!$C865=\"Log value\",DataLog!E865,\"\")","v":""},{"$f":"IF(DataLog!$C865=\"Log value\",DataLog!F865,\"\")","v":""},{"$f":"IF(DataLog!$C865=\"Log value\",DataLog!G865,\"\")","v":""},{"$f":"IF(DataLog!$C865=\"Log value\",DataLog!H865,\"\")","v":""},{"$f":"IF(DataLog!$C865=\"Log value\",DataLog!I865,\"\")","v":""},{"$f":"IF(DataLog!$C865=\"Log value\",DataLog!J865,\"\")","v":""},{"$f":"IF(DataLog!$C865=\"Log value\",DataLog!K865,\"\")","v":""},{"$f":"IF(DataLog!$C865=\"Log value\",DataLog!L865,\"\")","v":""},{"$f":"IF(DataLog!$C865=\"Log value\",DataLog!M865,\"\")","v":""},{"$f":"IF(DataLog!$C865=\"Log value\",DataLog!N865,\"\")","v":""},{"$f":"IF(DataLog!$C865=\"Log value\",DataLog!O865,\"\")","v":""},{"$f":"IF(DataLog!$C865=\"Log value\",DataLog!P865,\"\")","v":""},{"$f":"IF(DataLog!$C865=\"Log value\",DataLog!Q865,\"\")","v":""},{"$f":"IF(DataLog!$C865=\"Log value\",DataLog!R865,\"\")","v":""},{"$f":"IF(DataLog!$C865=\"Log value\",DataLog!S865,\"\")","v":""},{"$f":"IF(DataLog!$C865=\"Log value\",DataLog!T865,\"\")","v":""},{"$f":"IF(DataLog!$C865=\"Log value\",DataLog!U865,\"\")","v":""},{"$f":"IF(DataLog!$C865=\"Log value\",DataLog!V865,\"\")","v":""},{"$f":"IF(DataLog!$C865=\"Log value\",DataLog!W865,\"\")","v":""},{"$f":"IF(DataLog!$C865=\"Log value\",DataLog!X865,\"\")","v":""},{"$f":"IF(DataLog!$C865=\"Log value\",DataLog!Y865,\"\")","v":""},{"$f":"IF(DataLog!$C865=\"Log value\",DataLog!Z865,\"\")","v":""},{"$f":"IF(DataLog!$C865=\"Log value\",DataLog!AA865,\"\")","v":""},{"$f":"IF(DataLog!$C865=\"Log value\",DataLog!AB865,\"\")","v":""},{"$f":"IF(DataLog!$C865=\"Log value\",DataLog!AC865,\"\")","v":""},{"$f":"IF(DataLog!$C865=\"Log value\",DataLog!AD865,\"\")","v":""},{"$f":"IF(DataLog!$C865=\"Log value\",DataLog!AE865,\"\")","v":""},{"$f":"IF(DataLog!$C865=\"Log value\",DataLog!AF865,\"\")","v":""},{"$f":"IF(DataLog!$C865=\"Log value\",DataLog!AG865,\"\")","v":""},{"$f":"IF(DataLog!$C865=\"Log value\",DataLog!AH865,\"\")","v":""},{"$f":"IF(DataLog!$C865=\"Log value\",DataLog!AI865,\"\")","v":""},{"$f":"IF(DataLog!$C865=\"Log value\",DataLog!AJ865,\"\")","v":""},{"$f":"IF(DataLog!$C865=\"Log value\",DataLog!AK865,\"\")","v":""},{"$f":"IF(DataLog!$C865=\"Log value\",DataLog!AL865,\"\")","v":""},{"$f":"IF(DataLog!$C865=\"Log value\",DataLog!AM865,\"\")","v":""}]
[null,null,null,null,null,null,{"$f":"IF(DataLog!$C866=\"Log value\",DataLog!D866&\"_\"&TEXT(DataLog!B866,\"åååå-mm-dd\"),\"\")","v":""},{"$f":"IF(DataLog!$C866=\"Log value\",DataLog!E866,\"\")","v":""},{"$f":"IF(DataLog!$C866=\"Log value\",DataLog!F866,\"\")","v":""},{"$f":"IF(DataLog!$C866=\"Log value\",DataLog!G866,\"\")","v":""},{"$f":"IF(DataLog!$C866=\"Log value\",DataLog!H866,\"\")","v":""},{"$f":"IF(DataLog!$C866=\"Log value\",DataLog!I866,\"\")","v":""},{"$f":"IF(DataLog!$C866=\"Log value\",DataLog!J866,\"\")","v":""},{"$f":"IF(DataLog!$C866=\"Log value\",DataLog!K866,\"\")","v":""},{"$f":"IF(DataLog!$C866=\"Log value\",DataLog!L866,\"\")","v":""},{"$f":"IF(DataLog!$C866=\"Log value\",DataLog!M866,\"\")","v":""},{"$f":"IF(DataLog!$C866=\"Log value\",DataLog!N866,\"\")","v":""},{"$f":"IF(DataLog!$C866=\"Log value\",DataLog!O866,\"\")","v":""},{"$f":"IF(DataLog!$C866=\"Log value\",DataLog!P866,\"\")","v":""},{"$f":"IF(DataLog!$C866=\"Log value\",DataLog!Q866,\"\")","v":""},{"$f":"IF(DataLog!$C866=\"Log value\",DataLog!R866,\"\")","v":""},{"$f":"IF(DataLog!$C866=\"Log value\",DataLog!S866,\"\")","v":""},{"$f":"IF(DataLog!$C866=\"Log value\",DataLog!T866,\"\")","v":""},{"$f":"IF(DataLog!$C866=\"Log value\",DataLog!U866,\"\")","v":""},{"$f":"IF(DataLog!$C866=\"Log value\",DataLog!V866,\"\")","v":""},{"$f":"IF(DataLog!$C866=\"Log value\",DataLog!W866,\"\")","v":""},{"$f":"IF(DataLog!$C866=\"Log value\",DataLog!X866,\"\")","v":""},{"$f":"IF(DataLog!$C866=\"Log value\",DataLog!Y866,\"\")","v":""},{"$f":"IF(DataLog!$C866=\"Log value\",DataLog!Z866,\"\")","v":""},{"$f":"IF(DataLog!$C866=\"Log value\",DataLog!AA866,\"\")","v":""},{"$f":"IF(DataLog!$C866=\"Log value\",DataLog!AB866,\"\")","v":""},{"$f":"IF(DataLog!$C866=\"Log value\",DataLog!AC866,\"\")","v":""},{"$f":"IF(DataLog!$C866=\"Log value\",DataLog!AD866,\"\")","v":""},{"$f":"IF(DataLog!$C866=\"Log value\",DataLog!AE866,\"\")","v":""},{"$f":"IF(DataLog!$C866=\"Log value\",DataLog!AF866,\"\")","v":""},{"$f":"IF(DataLog!$C866=\"Log value\",DataLog!AG866,\"\")","v":""},{"$f":"IF(DataLog!$C866=\"Log value\",DataLog!AH866,\"\")","v":""},{"$f":"IF(DataLog!$C866=\"Log value\",DataLog!AI866,\"\")","v":""},{"$f":"IF(DataLog!$C866=\"Log value\",DataLog!AJ866,\"\")","v":""},{"$f":"IF(DataLog!$C866=\"Log value\",DataLog!AK866,\"\")","v":""},{"$f":"IF(DataLog!$C866=\"Log value\",DataLog!AL866,\"\")","v":""},{"$f":"IF(DataLog!$C866=\"Log value\",DataLog!AM866,\"\")","v":""}]
[null,null,null,null,null,null,{"$f":"IF(DataLog!$C867=\"Log value\",DataLog!D867&\"_\"&TEXT(DataLog!B867,\"åååå-mm-dd\"),\"\")","v":""},{"$f":"IF(DataLog!$C867=\"Log value\",DataLog!E867,\"\")","v":""},{"$f":"IF(DataLog!$C867=\"Log value\",DataLog!F867,\"\")","v":""},{"$f":"IF(DataLog!$C867=\"Log value\",DataLog!G867,\"\")","v":""},{"$f":"IF(DataLog!$C867=\"Log value\",DataLog!H867,\"\")","v":""},{"$f":"IF(DataLog!$C867=\"Log value\",DataLog!I867,\"\")","v":""},{"$f":"IF(DataLog!$C867=\"Log value\",DataLog!J867,\"\")","v":""},{"$f":"IF(DataLog!$C867=\"Log value\",DataLog!K867,\"\")","v":""},{"$f":"IF(DataLog!$C867=\"Log value\",DataLog!L867,\"\")","v":""},{"$f":"IF(DataLog!$C867=\"Log value\",DataLog!M867,\"\")","v":""},{"$f":"IF(DataLog!$C867=\"Log value\",DataLog!N867,\"\")","v":""},{"$f":"IF(DataLog!$C867=\"Log value\",DataLog!O867,\"\")","v":""},{"$f":"IF(DataLog!$C867=\"Log value\",DataLog!P867,\"\")","v":""},{"$f":"IF(DataLog!$C867=\"Log value\",DataLog!Q867,\"\")","v":""},{"$f":"IF(DataLog!$C867=\"Log value\",DataLog!R867,\"\")","v":""},{"$f":"IF(DataLog!$C867=\"Log value\",DataLog!S867,\"\")","v":""},{"$f":"IF(DataLog!$C867=\"Log value\",DataLog!T867,\"\")","v":""},{"$f":"IF(DataLog!$C867=\"Log value\",DataLog!U867,\"\")","v":""},{"$f":"IF(DataLog!$C867=\"Log value\",DataLog!V867,\"\")","v":""},{"$f":"IF(DataLog!$C867=\"Log value\",DataLog!W867,\"\")","v":""},{"$f":"IF(DataLog!$C867=\"Log value\",DataLog!X867,\"\")","v":""},{"$f":"IF(DataLog!$C867=\"Log value\",DataLog!Y867,\"\")","v":""},{"$f":"IF(DataLog!$C867=\"Log value\",DataLog!Z867,\"\")","v":""},{"$f":"IF(DataLog!$C867=\"Log value\",DataLog!AA867,\"\")","v":""},{"$f":"IF(DataLog!$C867=\"Log value\",DataLog!AB867,\"\")","v":""},{"$f":"IF(DataLog!$C867=\"Log value\",DataLog!AC867,\"\")","v":""},{"$f":"IF(DataLog!$C867=\"Log value\",DataLog!AD867,\"\")","v":""},{"$f":"IF(DataLog!$C867=\"Log value\",DataLog!AE867,\"\")","v":""},{"$f":"IF(DataLog!$C867=\"Log value\",DataLog!AF867,\"\")","v":""},{"$f":"IF(DataLog!$C867=\"Log value\",DataLog!AG867,\"\")","v":""},{"$f":"IF(DataLog!$C867=\"Log value\",DataLog!AH867,\"\")","v":""},{"$f":"IF(DataLog!$C867=\"Log value\",DataLog!AI867,\"\")","v":""},{"$f":"IF(DataLog!$C867=\"Log value\",DataLog!AJ867,\"\")","v":""},{"$f":"IF(DataLog!$C867=\"Log value\",DataLog!AK867,\"\")","v":""},{"$f":"IF(DataLog!$C867=\"Log value\",DataLog!AL867,\"\")","v":""},{"$f":"IF(DataLog!$C867=\"Log value\",DataLog!AM867,\"\")","v":""}]
[null,null,null,null,null,null,{"$f":"IF(DataLog!$C868=\"Log value\",DataLog!D868&\"_\"&TEXT(DataLog!B868,\"åååå-mm-dd\"),\"\")","v":""},{"$f":"IF(DataLog!$C868=\"Log value\",DataLog!E868,\"\")","v":""},{"$f":"IF(DataLog!$C868=\"Log value\",DataLog!F868,\"\")","v":""},{"$f":"IF(DataLog!$C868=\"Log value\",DataLog!G868,\"\")","v":""},{"$f":"IF(DataLog!$C868=\"Log value\",DataLog!H868,\"\")","v":""},{"$f":"IF(DataLog!$C868=\"Log value\",DataLog!I868,\"\")","v":""},{"$f":"IF(DataLog!$C868=\"Log value\",DataLog!J868,\"\")","v":""},{"$f":"IF(DataLog!$C868=\"Log value\",DataLog!K868,\"\")","v":""},{"$f":"IF(DataLog!$C868=\"Log value\",DataLog!L868,\"\")","v":""},{"$f":"IF(DataLog!$C868=\"Log value\",DataLog!M868,\"\")","v":""},{"$f":"IF(DataLog!$C868=\"Log value\",DataLog!N868,\"\")","v":""},{"$f":"IF(DataLog!$C868=\"Log value\",DataLog!O868,\"\")","v":""},{"$f":"IF(DataLog!$C868=\"Log value\",DataLog!P868,\"\")","v":""},{"$f":"IF(DataLog!$C868=\"Log value\",DataLog!Q868,\"\")","v":""},{"$f":"IF(DataLog!$C868=\"Log value\",DataLog!R868,\"\")","v":""},{"$f":"IF(DataLog!$C868=\"Log value\",DataLog!S868,\"\")","v":""},{"$f":"IF(DataLog!$C868=\"Log value\",DataLog!T868,\"\")","v":""},{"$f":"IF(DataLog!$C868=\"Log value\",DataLog!U868,\"\")","v":""},{"$f":"IF(DataLog!$C868=\"Log value\",DataLog!V868,\"\")","v":""},{"$f":"IF(DataLog!$C868=\"Log value\",DataLog!W868,\"\")","v":""},{"$f":"IF(DataLog!$C868=\"Log value\",DataLog!X868,\"\")","v":""},{"$f":"IF(DataLog!$C868=\"Log value\",DataLog!Y868,\"\")","v":""},{"$f":"IF(DataLog!$C868=\"Log value\",DataLog!Z868,\"\")","v":""},{"$f":"IF(DataLog!$C868=\"Log value\",DataLog!AA868,\"\")","v":""},{"$f":"IF(DataLog!$C868=\"Log value\",DataLog!AB868,\"\")","v":""},{"$f":"IF(DataLog!$C868=\"Log value\",DataLog!AC868,\"\")","v":""},{"$f":"IF(DataLog!$C868=\"Log value\",DataLog!AD868,\"\")","v":""},{"$f":"IF(DataLog!$C868=\"Log value\",DataLog!AE868,\"\")","v":""},{"$f":"IF(DataLog!$C868=\"Log value\",DataLog!AF868,\"\")","v":""},{"$f":"IF(DataLog!$C868=\"Log value\",DataLog!AG868,\"\")","v":""},{"$f":"IF(DataLog!$C868=\"Log value\",DataLog!AH868,\"\")","v":""},{"$f":"IF(DataLog!$C868=\"Log value\",DataLog!AI868,\"\")","v":""},{"$f":"IF(DataLog!$C868=\"Log value\",DataLog!AJ868,\"\")","v":""},{"$f":"IF(DataLog!$C868=\"Log value\",DataLog!AK868,\"\")","v":""},{"$f":"IF(DataLog!$C868=\"Log value\",DataLog!AL868,\"\")","v":""},{"$f":"IF(DataLog!$C868=\"Log value\",DataLog!AM868,\"\")","v":""}]
[null,null,null,null,null,null,{"$f":"IF(DataLog!$C869=\"Log value\",DataLog!D869&\"_\"&TEXT(DataLog!B869,\"åååå-mm-dd\"),\"\")","v":""},{"$f":"IF(DataLog!$C869=\"Log value\",DataLog!E869,\"\")","v":""},{"$f":"IF(DataLog!$C869=\"Log value\",DataLog!F869,\"\")","v":""},{"$f":"IF(DataLog!$C869=\"Log value\",DataLog!G869,\"\")","v":""},{"$f":"IF(DataLog!$C869=\"Log value\",DataLog!H869,\"\")","v":""},{"$f":"IF(DataLog!$C869=\"Log value\",DataLog!I869,\"\")","v":""},{"$f":"IF(DataLog!$C869=\"Log value\",DataLog!J869,\"\")","v":""},{"$f":"IF(DataLog!$C869=\"Log value\",DataLog!K869,\"\")","v":""},{"$f":"IF(DataLog!$C869=\"Log value\",DataLog!L869,\"\")","v":""},{"$f":"IF(DataLog!$C869=\"Log value\",DataLog!M869,\"\")","v":""},{"$f":"IF(DataLog!$C869=\"Log value\",DataLog!N869,\"\")","v":""},{"$f":"IF(DataLog!$C869=\"Log value\",DataLog!O869,\"\")","v":""},{"$f":"IF(DataLog!$C869=\"Log value\",DataLog!P869,\"\")","v":""},{"$f":"IF(DataLog!$C869=\"Log value\",DataLog!Q869,\"\")","v":""},{"$f":"IF(DataLog!$C869=\"Log value\",DataLog!R869,\"\")","v":""},{"$f":"IF(DataLog!$C869=\"Log value\",DataLog!S869,\"\")","v":""},{"$f":"IF(DataLog!$C869=\"Log value\",DataLog!T869,\"\")","v":""},{"$f":"IF(DataLog!$C869=\"Log value\",DataLog!U869,\"\")","v":""},{"$f":"IF(DataLog!$C869=\"Log value\",DataLog!V869,\"\")","v":""},{"$f":"IF(DataLog!$C869=\"Log value\",DataLog!W869,\"\")","v":""},{"$f":"IF(DataLog!$C869=\"Log value\",DataLog!X869,\"\")","v":""},{"$f":"IF(DataLog!$C869=\"Log value\",DataLog!Y869,\"\")","v":""},{"$f":"IF(DataLog!$C869=\"Log value\",DataLog!Z869,\"\")","v":""},{"$f":"IF(DataLog!$C869=\"Log value\",DataLog!AA869,\"\")","v":""},{"$f":"IF(DataLog!$C869=\"Log value\",DataLog!AB869,\"\")","v":""},{"$f":"IF(DataLog!$C869=\"Log value\",DataLog!AC869,\"\")","v":""},{"$f":"IF(DataLog!$C869=\"Log value\",DataLog!AD869,\"\")","v":""},{"$f":"IF(DataLog!$C869=\"Log value\",DataLog!AE869,\"\")","v":""},{"$f":"IF(DataLog!$C869=\"Log value\",DataLog!AF869,\"\")","v":""},{"$f":"IF(DataLog!$C869=\"Log value\",DataLog!AG869,\"\")","v":""},{"$f":"IF(DataLog!$C869=\"Log value\",DataLog!AH869,\"\")","v":""},{"$f":"IF(DataLog!$C869=\"Log value\",DataLog!AI869,\"\")","v":""},{"$f":"IF(DataLog!$C869=\"Log value\",DataLog!AJ869,\"\")","v":""},{"$f":"IF(DataLog!$C869=\"Log value\",DataLog!AK869,\"\")","v":""},{"$f":"IF(DataLog!$C869=\"Log value\",DataLog!AL869,\"\")","v":""},{"$f":"IF(DataLog!$C869=\"Log value\",DataLog!AM869,\"\")","v":""}]
[null,null,null,null,null,null,{"$f":"IF(DataLog!$C870=\"Log value\",DataLog!D870&\"_\"&TEXT(DataLog!B870,\"åååå-mm-dd\"),\"\")","v":""},{"$f":"IF(DataLog!$C870=\"Log value\",DataLog!E870,\"\")","v":""},{"$f":"IF(DataLog!$C870=\"Log value\",DataLog!F870,\"\")","v":""},{"$f":"IF(DataLog!$C870=\"Log value\",DataLog!G870,\"\")","v":""},{"$f":"IF(DataLog!$C870=\"Log value\",DataLog!H870,\"\")","v":""},{"$f":"IF(DataLog!$C870=\"Log value\",DataLog!I870,\"\")","v":""},{"$f":"IF(DataLog!$C870=\"Log value\",DataLog!J870,\"\")","v":""},{"$f":"IF(DataLog!$C870=\"Log value\",DataLog!K870,\"\")","v":""},{"$f":"IF(DataLog!$C870=\"Log value\",DataLog!L870,\"\")","v":""},{"$f":"IF(DataLog!$C870=\"Log value\",DataLog!M870,\"\")","v":""},{"$f":"IF(DataLog!$C870=\"Log value\",DataLog!N870,\"\")","v":""},{"$f":"IF(DataLog!$C870=\"Log value\",DataLog!O870,\"\")","v":""},{"$f":"IF(DataLog!$C870=\"Log value\",DataLog!P870,\"\")","v":""},{"$f":"IF(DataLog!$C870=\"Log value\",DataLog!Q870,\"\")","v":""},{"$f":"IF(DataLog!$C870=\"Log value\",DataLog!R870,\"\")","v":""},{"$f":"IF(DataLog!$C870=\"Log value\",DataLog!S870,\"\")","v":""},{"$f":"IF(DataLog!$C870=\"Log value\",DataLog!T870,\"\")","v":""},{"$f":"IF(DataLog!$C870=\"Log value\",DataLog!U870,\"\")","v":""},{"$f":"IF(DataLog!$C870=\"Log value\",DataLog!V870,\"\")","v":""},{"$f":"IF(DataLog!$C870=\"Log value\",DataLog!W870,\"\")","v":""},{"$f":"IF(DataLog!$C870=\"Log value\",DataLog!X870,\"\")","v":""},{"$f":"IF(DataLog!$C870=\"Log value\",DataLog!Y870,\"\")","v":""},{"$f":"IF(DataLog!$C870=\"Log value\",DataLog!Z870,\"\")","v":""},{"$f":"IF(DataLog!$C870=\"Log value\",DataLog!AA870,\"\")","v":""},{"$f":"IF(DataLog!$C870=\"Log value\",DataLog!AB870,\"\")","v":""},{"$f":"IF(DataLog!$C870=\"Log value\",DataLog!AC870,\"\")","v":""},{"$f":"IF(DataLog!$C870=\"Log value\",DataLog!AD870,\"\")","v":""},{"$f":"IF(DataLog!$C870=\"Log value\",DataLog!AE870,\"\")","v":""},{"$f":"IF(DataLog!$C870=\"Log value\",DataLog!AF870,\"\")","v":""},{"$f":"IF(DataLog!$C870=\"Log value\",DataLog!AG870,\"\")","v":""},{"$f":"IF(DataLog!$C870=\"Log value\",DataLog!AH870,\"\")","v":""},{"$f":"IF(DataLog!$C870=\"Log value\",DataLog!AI870,\"\")","v":""},{"$f":"IF(DataLog!$C870=\"Log value\",DataLog!AJ870,\"\")","v":""},{"$f":"IF(DataLog!$C870=\"Log value\",DataLog!AK870,\"\")","v":""},{"$f":"IF(DataLog!$C870=\"Log value\",DataLog!AL870,\"\")","v":""},{"$f":"IF(DataLog!$C870=\"Log value\",DataLog!AM870,\"\")","v":""}]
[null,null,null,null,null,null,{"$f":"IF(DataLog!$C871=\"Log value\",DataLog!D871&\"_\"&TEXT(DataLog!B871,\"åååå-mm-dd\"),\"\")","v":""},{"$f":"IF(DataLog!$C871=\"Log value\",DataLog!E871,\"\")","v":""},{"$f":"IF(DataLog!$C871=\"Log value\",DataLog!F871,\"\")","v":""},{"$f":"IF(DataLog!$C871=\"Log value\",DataLog!G871,\"\")","v":""},{"$f":"IF(DataLog!$C871=\"Log value\",DataLog!H871,\"\")","v":""},{"$f":"IF(DataLog!$C871=\"Log value\",DataLog!I871,\"\")","v":""},{"$f":"IF(DataLog!$C871=\"Log value\",DataLog!J871,\"\")","v":""},{"$f":"IF(DataLog!$C871=\"Log value\",DataLog!K871,\"\")","v":""},{"$f":"IF(DataLog!$C871=\"Log value\",DataLog!L871,\"\")","v":""},{"$f":"IF(DataLog!$C871=\"Log value\",DataLog!M871,\"\")","v":""},{"$f":"IF(DataLog!$C871=\"Log value\",DataLog!N871,\"\")","v":""},{"$f":"IF(DataLog!$C871=\"Log value\",DataLog!O871,\"\")","v":""},{"$f":"IF(DataLog!$C871=\"Log value\",DataLog!P871,\"\")","v":""},{"$f":"IF(DataLog!$C871=\"Log value\",DataLog!Q871,\"\")","v":""},{"$f":"IF(DataLog!$C871=\"Log value\",DataLog!R871,\"\")","v":""},{"$f":"IF(DataLog!$C871=\"Log value\",DataLog!S871,\"\")","v":""},{"$f":"IF(DataLog!$C871=\"Log value\",DataLog!T871,\"\")","v":""},{"$f":"IF(DataLog!$C871=\"Log value\",DataLog!U871,\"\")","v":""},{"$f":"IF(DataLog!$C871=\"Log value\",DataLog!V871,\"\")","v":""},{"$f":"IF(DataLog!$C871=\"Log value\",DataLog!W871,\"\")","v":""},{"$f":"IF(DataLog!$C871=\"Log value\",DataLog!X871,\"\")","v":""},{"$f":"IF(DataLog!$C871=\"Log value\",DataLog!Y871,\"\")","v":""},{"$f":"IF(DataLog!$C871=\"Log value\",DataLog!Z871,\"\")","v":""},{"$f":"IF(DataLog!$C871=\"Log value\",DataLog!AA871,\"\")","v":""},{"$f":"IF(DataLog!$C871=\"Log value\",DataLog!AB871,\"\")","v":""},{"$f":"IF(DataLog!$C871=\"Log value\",DataLog!AC871,\"\")","v":""},{"$f":"IF(DataLog!$C871=\"Log value\",DataLog!AD871,\"\")","v":""},{"$f":"IF(DataLog!$C871=\"Log value\",DataLog!AE871,\"\")","v":""},{"$f":"IF(DataLog!$C871=\"Log value\",DataLog!AF871,\"\")","v":""},{"$f":"IF(DataLog!$C871=\"Log value\",DataLog!AG871,\"\")","v":""},{"$f":"IF(DataLog!$C871=\"Log value\",DataLog!AH871,\"\")","v":""},{"$f":"IF(DataLog!$C871=\"Log value\",DataLog!AI871,\"\")","v":""},{"$f":"IF(DataLog!$C871=\"Log value\",DataLog!AJ871,\"\")","v":""},{"$f":"IF(DataLog!$C871=\"Log value\",DataLog!AK871,\"\")","v":""},{"$f":"IF(DataLog!$C871=\"Log value\",DataLog!AL871,\"\")","v":""},{"$f":"IF(DataLog!$C871=\"Log value\",DataLog!AM871,\"\")","v":""}]
[null,null,null,null,null,null,{"$f":"IF(DataLog!$C872=\"Log value\",DataLog!D872&\"_\"&TEXT(DataLog!B872,\"åååå-mm-dd\"),\"\")","v":""},{"$f":"IF(DataLog!$C872=\"Log value\",DataLog!E872,\"\")","v":""},{"$f":"IF(DataLog!$C872=\"Log value\",DataLog!F872,\"\")","v":""},{"$f":"IF(DataLog!$C872=\"Log value\",DataLog!G872,\"\")","v":""},{"$f":"IF(DataLog!$C872=\"Log value\",DataLog!H872,\"\")","v":""},{"$f":"IF(DataLog!$C872=\"Log value\",DataLog!I872,\"\")","v":""},{"$f":"IF(DataLog!$C872=\"Log value\",DataLog!J872,\"\")","v":""},{"$f":"IF(DataLog!$C872=\"Log value\",DataLog!K872,\"\")","v":""},{"$f":"IF(DataLog!$C872=\"Log value\",DataLog!L872,\"\")","v":""},{"$f":"IF(DataLog!$C872=\"Log value\",DataLog!M872,\"\")","v":""},{"$f":"IF(DataLog!$C872=\"Log value\",DataLog!N872,\"\")","v":""},{"$f":"IF(DataLog!$C872=\"Log value\",DataLog!O872,\"\")","v":""},{"$f":"IF(DataLog!$C872=\"Log value\",DataLog!P872,\"\")","v":""},{"$f":"IF(DataLog!$C872=\"Log value\",DataLog!Q872,\"\")","v":""},{"$f":"IF(DataLog!$C872=\"Log value\",DataLog!R872,\"\")","v":""},{"$f":"IF(DataLog!$C872=\"Log value\",DataLog!S872,\"\")","v":""},{"$f":"IF(DataLog!$C872=\"Log value\",DataLog!T872,\"\")","v":""},{"$f":"IF(DataLog!$C872=\"Log value\",DataLog!U872,\"\")","v":""},{"$f":"IF(DataLog!$C872=\"Log value\",DataLog!V872,\"\")","v":""},{"$f":"IF(DataLog!$C872=\"Log value\",DataLog!W872,\"\")","v":""},{"$f":"IF(DataLog!$C872=\"Log value\",DataLog!X872,\"\")","v":""},{"$f":"IF(DataLog!$C872=\"Log value\",DataLog!Y872,\"\")","v":""},{"$f":"IF(DataLog!$C872=\"Log value\",DataLog!Z872,\"\")","v":""},{"$f":"IF(DataLog!$C872=\"Log value\",DataLog!AA872,\"\")","v":""},{"$f":"IF(DataLog!$C872=\"Log value\",DataLog!AB872,\"\")","v":""},{"$f":"IF(DataLog!$C872=\"Log value\",DataLog!AC872,\"\")","v":""},{"$f":"IF(DataLog!$C872=\"Log value\",DataLog!AD872,\"\")","v":""},{"$f":"IF(DataLog!$C872=\"Log value\",DataLog!AE872,\"\")","v":""},{"$f":"IF(DataLog!$C872=\"Log value\",DataLog!AF872,\"\")","v":""},{"$f":"IF(DataLog!$C872=\"Log value\",DataLog!AG872,\"\")","v":""},{"$f":"IF(DataLog!$C872=\"Log value\",DataLog!AH872,\"\")","v":""},{"$f":"IF(DataLog!$C872=\"Log value\",DataLog!AI872,\"\")","v":""},{"$f":"IF(DataLog!$C872=\"Log value\",DataLog!AJ872,\"\")","v":""},{"$f":"IF(DataLog!$C872=\"Log value\",DataLog!AK872,\"\")","v":""},{"$f":"IF(DataLog!$C872=\"Log value\",DataLog!AL872,\"\")","v":""},{"$f":"IF(DataLog!$C872=\"Log value\",DataLog!AM872,\"\")","v":""}]
[null,null,null,null,null,null,{"$f":"IF(DataLog!$C873=\"Log value\",DataLog!D873&\"_\"&TEXT(DataLog!B873,\"åååå-mm-dd\"),\"\")","v":""},{"$f":"IF(DataLog!$C873=\"Log value\",DataLog!E873,\"\")","v":""},{"$f":"IF(DataLog!$C873=\"Log value\",DataLog!F873,\"\")","v":""},{"$f":"IF(DataLog!$C873=\"Log value\",DataLog!G873,\"\")","v":""},{"$f":"IF(DataLog!$C873=\"Log value\",DataLog!H873,\"\")","v":""},{"$f":"IF(DataLog!$C873=\"Log value\",DataLog!I873,\"\")","v":""},{"$f":"IF(DataLog!$C873=\"Log value\",DataLog!J873,\"\")","v":""},{"$f":"IF(DataLog!$C873=\"Log value\",DataLog!K873,\"\")","v":""},{"$f":"IF(DataLog!$C873=\"Log value\",DataLog!L873,\"\")","v":""},{"$f":"IF(DataLog!$C873=\"Log value\",DataLog!M873,\"\")","v":""},{"$f":"IF(DataLog!$C873=\"Log value\",DataLog!N873,\"\")","v":""},{"$f":"IF(DataLog!$C873=\"Log value\",DataLog!O873,\"\")","v":""},{"$f":"IF(DataLog!$C873=\"Log value\",DataLog!P873,\"\")","v":""},{"$f":"IF(DataLog!$C873=\"Log value\",DataLog!Q873,\"\")","v":""},{"$f":"IF(DataLog!$C873=\"Log value\",DataLog!R873,\"\")","v":""},{"$f":"IF(DataLog!$C873=\"Log value\",DataLog!S873,\"\")","v":""},{"$f":"IF(DataLog!$C873=\"Log value\",DataLog!T873,\"\")","v":""},{"$f":"IF(DataLog!$C873=\"Log value\",DataLog!U873,\"\")","v":""},{"$f":"IF(DataLog!$C873=\"Log value\",DataLog!V873,\"\")","v":""},{"$f":"IF(DataLog!$C873=\"Log value\",DataLog!W873,\"\")","v":""},{"$f":"IF(DataLog!$C873=\"Log value\",DataLog!X873,\"\")","v":""},{"$f":"IF(DataLog!$C873=\"Log value\",DataLog!Y873,\"\")","v":""},{"$f":"IF(DataLog!$C873=\"Log value\",DataLog!Z873,\"\")","v":""},{"$f":"IF(DataLog!$C873=\"Log value\",DataLog!AA873,\"\")","v":""},{"$f":"IF(DataLog!$C873=\"Log value\",DataLog!AB873,\"\")","v":""},{"$f":"IF(DataLog!$C873=\"Log value\",DataLog!AC873,\"\")","v":""},{"$f":"IF(DataLog!$C873=\"Log value\",DataLog!AD873,\"\")","v":""},{"$f":"IF(DataLog!$C873=\"Log value\",DataLog!AE873,\"\")","v":""},{"$f":"IF(DataLog!$C873=\"Log value\",DataLog!AF873,\"\")","v":""},{"$f":"IF(DataLog!$C873=\"Log value\",DataLog!AG873,\"\")","v":""},{"$f":"IF(DataLog!$C873=\"Log value\",DataLog!AH873,\"\")","v":""},{"$f":"IF(DataLog!$C873=\"Log value\",DataLog!AI873,\"\")","v":""},{"$f":"IF(DataLog!$C873=\"Log value\",DataLog!AJ873,\"\")","v":""},{"$f":"IF(DataLog!$C873=\"Log value\",DataLog!AK873,\"\")","v":""},{"$f":"IF(DataLog!$C873=\"Log value\",DataLog!AL873,\"\")","v":""},{"$f":"IF(DataLog!$C873=\"Log value\",DataLog!AM873,\"\")","v":""}]
[null,null,null,null,null,null,{"$f":"IF(DataLog!$C874=\"Log value\",DataLog!D874&\"_\"&TEXT(DataLog!B874,\"åååå-mm-dd\"),\"\")","v":""},{"$f":"IF(DataLog!$C874=\"Log value\",DataLog!E874,\"\")","v":""},{"$f":"IF(DataLog!$C874=\"Log value\",DataLog!F874,\"\")","v":""},{"$f":"IF(DataLog!$C874=\"Log value\",DataLog!G874,\"\")","v":""},{"$f":"IF(DataLog!$C874=\"Log value\",DataLog!H874,\"\")","v":""},{"$f":"IF(DataLog!$C874=\"Log value\",DataLog!I874,\"\")","v":""},{"$f":"IF(DataLog!$C874=\"Log value\",DataLog!J874,\"\")","v":""},{"$f":"IF(DataLog!$C874=\"Log value\",DataLog!K874,\"\")","v":""},{"$f":"IF(DataLog!$C874=\"Log value\",DataLog!L874,\"\")","v":""},{"$f":"IF(DataLog!$C874=\"Log value\",DataLog!M874,\"\")","v":""},{"$f":"IF(DataLog!$C874=\"Log value\",DataLog!N874,\"\")","v":""},{"$f":"IF(DataLog!$C874=\"Log value\",DataLog!O874,\"\")","v":""},{"$f":"IF(DataLog!$C874=\"Log value\",DataLog!P874,\"\")","v":""},{"$f":"IF(DataLog!$C874=\"Log value\",DataLog!Q874,\"\")","v":""},{"$f":"IF(DataLog!$C874=\"Log value\",DataLog!R874,\"\")","v":""},{"$f":"IF(DataLog!$C874=\"Log value\",DataLog!S874,\"\")","v":""},{"$f":"IF(DataLog!$C874=\"Log value\",DataLog!T874,\"\")","v":""},{"$f":"IF(DataLog!$C874=\"Log value\",DataLog!U874,\"\")","v":""},{"$f":"IF(DataLog!$C874=\"Log value\",DataLog!V874,\"\")","v":""},{"$f":"IF(DataLog!$C874=\"Log value\",DataLog!W874,\"\")","v":""},{"$f":"IF(DataLog!$C874=\"Log value\",DataLog!X874,\"\")","v":""},{"$f":"IF(DataLog!$C874=\"Log value\",DataLog!Y874,\"\")","v":""},{"$f":"IF(DataLog!$C874=\"Log value\",DataLog!Z874,\"\")","v":""},{"$f":"IF(DataLog!$C874=\"Log value\",DataLog!AA874,\"\")","v":""},{"$f":"IF(DataLog!$C874=\"Log value\",DataLog!AB874,\"\")","v":""},{"$f":"IF(DataLog!$C874=\"Log value\",DataLog!AC874,\"\")","v":""},{"$f":"IF(DataLog!$C874=\"Log value\",DataLog!AD874,\"\")","v":""},{"$f":"IF(DataLog!$C874=\"Log value\",DataLog!AE874,\"\")","v":""},{"$f":"IF(DataLog!$C874=\"Log value\",DataLog!AF874,\"\")","v":""},{"$f":"IF(DataLog!$C874=\"Log value\",DataLog!AG874,\"\")","v":""},{"$f":"IF(DataLog!$C874=\"Log value\",DataLog!AH874,\"\")","v":""},{"$f":"IF(DataLog!$C874=\"Log value\",DataLog!AI874,\"\")","v":""},{"$f":"IF(DataLog!$C874=\"Log value\",DataLog!AJ874,\"\")","v":""},{"$f":"IF(DataLog!$C874=\"Log value\",DataLog!AK874,\"\")","v":""},{"$f":"IF(DataLog!$C874=\"Log value\",DataLog!AL874,\"\")","v":""},{"$f":"IF(DataLog!$C874=\"Log value\",DataLog!AM874,\"\")","v":""}]
[null,null,null,null,null,null,{"$f":"IF(DataLog!$C875=\"Log value\",DataLog!D875&\"_\"&TEXT(DataLog!B875,\"åååå-mm-dd\"),\"\")","v":""},{"$f":"IF(DataLog!$C875=\"Log value\",DataLog!E875,\"\")","v":""},{"$f":"IF(DataLog!$C875=\"Log value\",DataLog!F875,\"\")","v":""},{"$f":"IF(DataLog!$C875=\"Log value\",DataLog!G875,\"\")","v":""},{"$f":"IF(DataLog!$C875=\"Log value\",DataLog!H875,\"\")","v":""},{"$f":"IF(DataLog!$C875=\"Log value\",DataLog!I875,\"\")","v":""},{"$f":"IF(DataLog!$C875=\"Log value\",DataLog!J875,\"\")","v":""},{"$f":"IF(DataLog!$C875=\"Log value\",DataLog!K875,\"\")","v":""},{"$f":"IF(DataLog!$C875=\"Log value\",DataLog!L875,\"\")","v":""},{"$f":"IF(DataLog!$C875=\"Log value\",DataLog!M875,\"\")","v":""},{"$f":"IF(DataLog!$C875=\"Log value\",DataLog!N875,\"\")","v":""},{"$f":"IF(DataLog!$C875=\"Log value\",DataLog!O875,\"\")","v":""},{"$f":"IF(DataLog!$C875=\"Log value\",DataLog!P875,\"\")","v":""},{"$f":"IF(DataLog!$C875=\"Log value\",DataLog!Q875,\"\")","v":""},{"$f":"IF(DataLog!$C875=\"Log value\",DataLog!R875,\"\")","v":""},{"$f":"IF(DataLog!$C875=\"Log value\",DataLog!S875,\"\")","v":""},{"$f":"IF(DataLog!$C875=\"Log value\",DataLog!T875,\"\")","v":""},{"$f":"IF(DataLog!$C875=\"Log value\",DataLog!U875,\"\")","v":""},{"$f":"IF(DataLog!$C875=\"Log value\",DataLog!V875,\"\")","v":""},{"$f":"IF(DataLog!$C875=\"Log value\",DataLog!W875,\"\")","v":""},{"$f":"IF(DataLog!$C875=\"Log value\",DataLog!X875,\"\")","v":""},{"$f":"IF(DataLog!$C875=\"Log value\",DataLog!Y875,\"\")","v":""},{"$f":"IF(DataLog!$C875=\"Log value\",DataLog!Z875,\"\")","v":""},{"$f":"IF(DataLog!$C875=\"Log value\",DataLog!AA875,\"\")","v":""},{"$f":"IF(DataLog!$C875=\"Log value\",DataLog!AB875,\"\")","v":""},{"$f":"IF(DataLog!$C875=\"Log value\",DataLog!AC875,\"\")","v":""},{"$f":"IF(DataLog!$C875=\"Log value\",DataLog!AD875,\"\")","v":""},{"$f":"IF(DataLog!$C875=\"Log value\",DataLog!AE875,\"\")","v":""},{"$f":"IF(DataLog!$C875=\"Log value\",DataLog!AF875,\"\")","v":""},{"$f":"IF(DataLog!$C875=\"Log value\",DataLog!AG875,\"\")","v":""},{"$f":"IF(DataLog!$C875=\"Log value\",DataLog!AH875,\"\")","v":""},{"$f":"IF(DataLog!$C875=\"Log value\",DataLog!AI875,\"\")","v":""},{"$f":"IF(DataLog!$C875=\"Log value\",DataLog!AJ875,\"\")","v":""},{"$f":"IF(DataLog!$C875=\"Log value\",DataLog!AK875,\"\")","v":""},{"$f":"IF(DataLog!$C875=\"Log value\",DataLog!AL875,\"\")","v":""},{"$f":"IF(DataLog!$C875=\"Log value\",DataLog!AM875,\"\")","v":""}]
[null,null,null,null,null,null,{"$f":"IF(DataLog!$C876=\"Log value\",DataLog!D876&\"_\"&TEXT(DataLog!B876,\"åååå-mm-dd\"),\"\")","v":""},{"$f":"IF(DataLog!$C876=\"Log value\",DataLog!E876,\"\")","v":""},{"$f":"IF(DataLog!$C876=\"Log value\",DataLog!F876,\"\")","v":""},{"$f":"IF(DataLog!$C876=\"Log value\",DataLog!G876,\"\")","v":""},{"$f":"IF(DataLog!$C876=\"Log value\",DataLog!H876,\"\")","v":""},{"$f":"IF(DataLog!$C876=\"Log value\",DataLog!I876,\"\")","v":""},{"$f":"IF(DataLog!$C876=\"Log value\",DataLog!J876,\"\")","v":""},{"$f":"IF(DataLog!$C876=\"Log value\",DataLog!K876,\"\")","v":""},{"$f":"IF(DataLog!$C876=\"Log value\",DataLog!L876,\"\")","v":""},{"$f":"IF(DataLog!$C876=\"Log value\",DataLog!M876,\"\")","v":""},{"$f":"IF(DataLog!$C876=\"Log value\",DataLog!N876,\"\")","v":""},{"$f":"IF(DataLog!$C876=\"Log value\",DataLog!O876,\"\")","v":""},{"$f":"IF(DataLog!$C876=\"Log value\",DataLog!P876,\"\")","v":""},{"$f":"IF(DataLog!$C876=\"Log value\",DataLog!Q876,\"\")","v":""},{"$f":"IF(DataLog!$C876=\"Log value\",DataLog!R876,\"\")","v":""},{"$f":"IF(DataLog!$C876=\"Log value\",DataLog!S876,\"\")","v":""},{"$f":"IF(DataLog!$C876=\"Log value\",DataLog!T876,\"\")","v":""},{"$f":"IF(DataLog!$C876=\"Log value\",DataLog!U876,\"\")","v":""},{"$f":"IF(DataLog!$C876=\"Log value\",DataLog!V876,\"\")","v":""},{"$f":"IF(DataLog!$C876=\"Log value\",DataLog!W876,\"\")","v":""},{"$f":"IF(DataLog!$C876=\"Log value\",DataLog!X876,\"\")","v":""},{"$f":"IF(DataLog!$C876=\"Log value\",DataLog!Y876,\"\")","v":""},{"$f":"IF(DataLog!$C876=\"Log value\",DataLog!Z876,\"\")","v":""},{"$f":"IF(DataLog!$C876=\"Log value\",DataLog!AA876,\"\")","v":""},{"$f":"IF(DataLog!$C876=\"Log value\",DataLog!AB876,\"\")","v":""},{"$f":"IF(DataLog!$C876=\"Log value\",DataLog!AC876,\"\")","v":""},{"$f":"IF(DataLog!$C876=\"Log value\",DataLog!AD876,\"\")","v":""},{"$f":"IF(DataLog!$C876=\"Log value\",DataLog!AE876,\"\")","v":""},{"$f":"IF(DataLog!$C876=\"Log value\",DataLog!AF876,\"\")","v":""},{"$f":"IF(DataLog!$C876=\"Log value\",DataLog!AG876,\"\")","v":""},{"$f":"IF(DataLog!$C876=\"Log value\",DataLog!AH876,\"\")","v":""},{"$f":"IF(DataLog!$C876=\"Log value\",DataLog!AI876,\"\")","v":""},{"$f":"IF(DataLog!$C876=\"Log value\",DataLog!AJ876,\"\")","v":""},{"$f":"IF(DataLog!$C876=\"Log value\",DataLog!AK876,\"\")","v":""},{"$f":"IF(DataLog!$C876=\"Log value\",DataLog!AL876,\"\")","v":""},{"$f":"IF(DataLog!$C876=\"Log value\",DataLog!AM876,\"\")","v":""}]
[null,null,null,null,null,null,{"$f":"IF(DataLog!$C877=\"Log value\",DataLog!D877&\"_\"&TEXT(DataLog!B877,\"åååå-mm-dd\"),\"\")","v":""},{"$f":"IF(DataLog!$C877=\"Log value\",DataLog!E877,\"\")","v":""},{"$f":"IF(DataLog!$C877=\"Log value\",DataLog!F877,\"\")","v":""},{"$f":"IF(DataLog!$C877=\"Log value\",DataLog!G877,\"\")","v":""},{"$f":"IF(DataLog!$C877=\"Log value\",DataLog!H877,\"\")","v":""},{"$f":"IF(DataLog!$C877=\"Log value\",DataLog!I877,\"\")","v":""},{"$f":"IF(DataLog!$C877=\"Log value\",DataLog!J877,\"\")","v":""},{"$f":"IF(DataLog!$C877=\"Log value\",DataLog!K877,\"\")","v":""},{"$f":"IF(DataLog!$C877=\"Log value\",DataLog!L877,\"\")","v":""},{"$f":"IF(DataLog!$C877=\"Log value\",DataLog!M877,\"\")","v":""},{"$f":"IF(DataLog!$C877=\"Log value\",DataLog!N877,\"\")","v":""},{"$f":"IF(DataLog!$C877=\"Log value\",DataLog!O877,\"\")","v":""},{"$f":"IF(DataLog!$C877=\"Log value\",DataLog!P877,\"\")","v":""},{"$f":"IF(DataLog!$C877=\"Log value\",DataLog!Q877,\"\")","v":""},{"$f":"IF(DataLog!$C877=\"Log value\",DataLog!R877,\"\")","v":""},{"$f":"IF(DataLog!$C877=\"Log value\",DataLog!S877,\"\")","v":""},{"$f":"IF(DataLog!$C877=\"Log value\",DataLog!T877,\"\")","v":""},{"$f":"IF(DataLog!$C877=\"Log value\",DataLog!U877,\"\")","v":""},{"$f":"IF(DataLog!$C877=\"Log value\",DataLog!V877,\"\")","v":""},{"$f":"IF(DataLog!$C877=\"Log value\",DataLog!W877,\"\")","v":""},{"$f":"IF(DataLog!$C877=\"Log value\",DataLog!X877,\"\")","v":""},{"$f":"IF(DataLog!$C877=\"Log value\",DataLog!Y877,\"\")","v":""},{"$f":"IF(DataLog!$C877=\"Log value\",DataLog!Z877,\"\")","v":""},{"$f":"IF(DataLog!$C877=\"Log value\",DataLog!AA877,\"\")","v":""},{"$f":"IF(DataLog!$C877=\"Log value\",DataLog!AB877,\"\")","v":""},{"$f":"IF(DataLog!$C877=\"Log value\",DataLog!AC877,\"\")","v":""},{"$f":"IF(DataLog!$C877=\"Log value\",DataLog!AD877,\"\")","v":""},{"$f":"IF(DataLog!$C877=\"Log value\",DataLog!AE877,\"\")","v":""},{"$f":"IF(DataLog!$C877=\"Log value\",DataLog!AF877,\"\")","v":""},{"$f":"IF(DataLog!$C877=\"Log value\",DataLog!AG877,\"\")","v":""},{"$f":"IF(DataLog!$C877=\"Log value\",DataLog!AH877,\"\")","v":""},{"$f":"IF(DataLog!$C877=\"Log value\",DataLog!AI877,\"\")","v":""},{"$f":"IF(DataLog!$C877=\"Log value\",DataLog!AJ877,\"\")","v":""},{"$f":"IF(DataLog!$C877=\"Log value\",DataLog!AK877,\"\")","v":""},{"$f":"IF(DataLog!$C877=\"Log value\",DataLog!AL877,\"\")","v":""},{"$f":"IF(DataLog!$C877=\"Log value\",DataLog!AM877,\"\")","v":""}]
[null,null,null,null,null,null,{"$f":"IF(DataLog!$C878=\"Log value\",DataLog!D878&\"_\"&TEXT(DataLog!B878,\"åååå-mm-dd\"),\"\")","v":""},{"$f":"IF(DataLog!$C878=\"Log value\",DataLog!E878,\"\")","v":""},{"$f":"IF(DataLog!$C878=\"Log value\",DataLog!F878,\"\")","v":""},{"$f":"IF(DataLog!$C878=\"Log value\",DataLog!G878,\"\")","v":""},{"$f":"IF(DataLog!$C878=\"Log value\",DataLog!H878,\"\")","v":""},{"$f":"IF(DataLog!$C878=\"Log value\",DataLog!I878,\"\")","v":""},{"$f":"IF(DataLog!$C878=\"Log value\",DataLog!J878,\"\")","v":""},{"$f":"IF(DataLog!$C878=\"Log value\",DataLog!K878,\"\")","v":""},{"$f":"IF(DataLog!$C878=\"Log value\",DataLog!L878,\"\")","v":""},{"$f":"IF(DataLog!$C878=\"Log value\",DataLog!M878,\"\")","v":""},{"$f":"IF(DataLog!$C878=\"Log value\",DataLog!N878,\"\")","v":""},{"$f":"IF(DataLog!$C878=\"Log value\",DataLog!O878,\"\")","v":""},{"$f":"IF(DataLog!$C878=\"Log value\",DataLog!P878,\"\")","v":""},{"$f":"IF(DataLog!$C878=\"Log value\",DataLog!Q878,\"\")","v":""},{"$f":"IF(DataLog!$C878=\"Log value\",DataLog!R878,\"\")","v":""},{"$f":"IF(DataLog!$C878=\"Log value\",DataLog!S878,\"\")","v":""},{"$f":"IF(DataLog!$C878=\"Log value\",DataLog!T878,\"\")","v":""},{"$f":"IF(DataLog!$C878=\"Log value\",DataLog!U878,\"\")","v":""},{"$f":"IF(DataLog!$C878=\"Log value\",DataLog!V878,\"\")","v":""},{"$f":"IF(DataLog!$C878=\"Log value\",DataLog!W878,\"\")","v":""},{"$f":"IF(DataLog!$C878=\"Log value\",DataLog!X878,\"\")","v":""},{"$f":"IF(DataLog!$C878=\"Log value\",DataLog!Y878,\"\")","v":""},{"$f":"IF(DataLog!$C878=\"Log value\",DataLog!Z878,\"\")","v":""},{"$f":"IF(DataLog!$C878=\"Log value\",DataLog!AA878,\"\")","v":""},{"$f":"IF(DataLog!$C878=\"Log value\",DataLog!AB878,\"\")","v":""},{"$f":"IF(DataLog!$C878=\"Log value\",DataLog!AC878,\"\")","v":""},{"$f":"IF(DataLog!$C878=\"Log value\",DataLog!AD878,\"\")","v":""},{"$f":"IF(DataLog!$C878=\"Log value\",DataLog!AE878,\"\")","v":""},{"$f":"IF(DataLog!$C878=\"Log value\",DataLog!AF878,\"\")","v":""},{"$f":"IF(DataLog!$C878=\"Log value\",DataLog!AG878,\"\")","v":""},{"$f":"IF(DataLog!$C878=\"Log value\",DataLog!AH878,\"\")","v":""},{"$f":"IF(DataLog!$C878=\"Log value\",DataLog!AI878,\"\")","v":""},{"$f":"IF(DataLog!$C878=\"Log value\",DataLog!AJ878,\"\")","v":""},{"$f":"IF(DataLog!$C878=\"Log value\",DataLog!AK878,\"\")","v":""},{"$f":"IF(DataLog!$C878=\"Log value\",DataLog!AL878,\"\")","v":""},{"$f":"IF(DataLog!$C878=\"Log value\",DataLog!AM878,\"\")","v":""}]
[null,null,null,null,null,null,{"$f":"IF(DataLog!$C879=\"Log value\",DataLog!D879&\"_\"&TEXT(DataLog!B879,\"åååå-mm-dd\"),\"\")","v":""},{"$f":"IF(DataLog!$C879=\"Log value\",DataLog!E879,\"\")","v":""},{"$f":"IF(DataLog!$C879=\"Log value\",DataLog!F879,\"\")","v":""},{"$f":"IF(DataLog!$C879=\"Log value\",DataLog!G879,\"\")","v":""},{"$f":"IF(DataLog!$C879=\"Log value\",DataLog!H879,\"\")","v":""},{"$f":"IF(DataLog!$C879=\"Log value\",DataLog!I879,\"\")","v":""},{"$f":"IF(DataLog!$C879=\"Log value\",DataLog!J879,\"\")","v":""},{"$f":"IF(DataLog!$C879=\"Log value\",DataLog!K879,\"\")","v":""},{"$f":"IF(DataLog!$C879=\"Log value\",DataLog!L879,\"\")","v":""},{"$f":"IF(DataLog!$C879=\"Log value\",DataLog!M879,\"\")","v":""},{"$f":"IF(DataLog!$C879=\"Log value\",DataLog!N879,\"\")","v":""},{"$f":"IF(DataLog!$C879=\"Log value\",DataLog!O879,\"\")","v":""},{"$f":"IF(DataLog!$C879=\"Log value\",DataLog!P879,\"\")","v":""},{"$f":"IF(DataLog!$C879=\"Log value\",DataLog!Q879,\"\")","v":""},{"$f":"IF(DataLog!$C879=\"Log value\",DataLog!R879,\"\")","v":""},{"$f":"IF(DataLog!$C879=\"Log value\",DataLog!S879,\"\")","v":""},{"$f":"IF(DataLog!$C879=\"Log value\",DataLog!T879,\"\")","v":""},{"$f":"IF(DataLog!$C879=\"Log value\",DataLog!U879,\"\")","v":""},{"$f":"IF(DataLog!$C879=\"Log value\",DataLog!V879,\"\")","v":""},{"$f":"IF(DataLog!$C879=\"Log value\",DataLog!W879,\"\")","v":""},{"$f":"IF(DataLog!$C879=\"Log value\",DataLog!X879,\"\")","v":""},{"$f":"IF(DataLog!$C879=\"Log value\",DataLog!Y879,\"\")","v":""},{"$f":"IF(DataLog!$C879=\"Log value\",DataLog!Z879,\"\")","v":""},{"$f":"IF(DataLog!$C879=\"Log value\",DataLog!AA879,\"\")","v":""},{"$f":"IF(DataLog!$C879=\"Log value\",DataLog!AB879,\"\")","v":""},{"$f":"IF(DataLog!$C879=\"Log value\",DataLog!AC879,\"\")","v":""},{"$f":"IF(DataLog!$C879=\"Log value\",DataLog!AD879,\"\")","v":""},{"$f":"IF(DataLog!$C879=\"Log value\",DataLog!AE879,\"\")","v":""},{"$f":"IF(DataLog!$C879=\"Log value\",DataLog!AF879,\"\")","v":""},{"$f":"IF(DataLog!$C879=\"Log value\",DataLog!AG879,\"\")","v":""},{"$f":"IF(DataLog!$C879=\"Log value\",DataLog!AH879,\"\")","v":""},{"$f":"IF(DataLog!$C879=\"Log value\",DataLog!AI879,\"\")","v":""},{"$f":"IF(DataLog!$C879=\"Log value\",DataLog!AJ879,\"\")","v":""},{"$f":"IF(DataLog!$C879=\"Log value\",DataLog!AK879,\"\")","v":""},{"$f":"IF(DataLog!$C879=\"Log value\",DataLog!AL879,\"\")","v":""},{"$f":"IF(DataLog!$C879=\"Log value\",DataLog!AM879,\"\")","v":""}]
[null,null,null,null,null,null,{"$f":"IF(DataLog!$C880=\"Log value\",DataLog!D880&\"_\"&TEXT(DataLog!B880,\"åååå-mm-dd\"),\"\")","v":""},{"$f":"IF(DataLog!$C880=\"Log value\",DataLog!E880,\"\")","v":""},{"$f":"IF(DataLog!$C880=\"Log value\",DataLog!F880,\"\")","v":""},{"$f":"IF(DataLog!$C880=\"Log value\",DataLog!G880,\"\")","v":""},{"$f":"IF(DataLog!$C880=\"Log value\",DataLog!H880,\"\")","v":""},{"$f":"IF(DataLog!$C880=\"Log value\",DataLog!I880,\"\")","v":""},{"$f":"IF(DataLog!$C880=\"Log value\",DataLog!J880,\"\")","v":""},{"$f":"IF(DataLog!$C880=\"Log value\",DataLog!K880,\"\")","v":""},{"$f":"IF(DataLog!$C880=\"Log value\",DataLog!L880,\"\")","v":""},{"$f":"IF(DataLog!$C880=\"Log value\",DataLog!M880,\"\")","v":""},{"$f":"IF(DataLog!$C880=\"Log value\",DataLog!N880,\"\")","v":""},{"$f":"IF(DataLog!$C880=\"Log value\",DataLog!O880,\"\")","v":""},{"$f":"IF(DataLog!$C880=\"Log value\",DataLog!P880,\"\")","v":""},{"$f":"IF(DataLog!$C880=\"Log value\",DataLog!Q880,\"\")","v":""},{"$f":"IF(DataLog!$C880=\"Log value\",DataLog!R880,\"\")","v":""},{"$f":"IF(DataLog!$C880=\"Log value\",DataLog!S880,\"\")","v":""},{"$f":"IF(DataLog!$C880=\"Log value\",DataLog!T880,\"\")","v":""},{"$f":"IF(DataLog!$C880=\"Log value\",DataLog!U880,\"\")","v":""},{"$f":"IF(DataLog!$C880=\"Log value\",DataLog!V880,\"\")","v":""},{"$f":"IF(DataLog!$C880=\"Log value\",DataLog!W880,\"\")","v":""},{"$f":"IF(DataLog!$C880=\"Log value\",DataLog!X880,\"\")","v":""},{"$f":"IF(DataLog!$C880=\"Log value\",DataLog!Y880,\"\")","v":""},{"$f":"IF(DataLog!$C880=\"Log value\",DataLog!Z880,\"\")","v":""},{"$f":"IF(DataLog!$C880=\"Log value\",DataLog!AA880,\"\")","v":""},{"$f":"IF(DataLog!$C880=\"Log value\",DataLog!AB880,\"\")","v":""},{"$f":"IF(DataLog!$C880=\"Log value\",DataLog!AC880,\"\")","v":""},{"$f":"IF(DataLog!$C880=\"Log value\",DataLog!AD880,\"\")","v":""},{"$f":"IF(DataLog!$C880=\"Log value\",DataLog!AE880,\"\")","v":""},{"$f":"IF(DataLog!$C880=\"Log value\",DataLog!AF880,\"\")","v":""},{"$f":"IF(DataLog!$C880=\"Log value\",DataLog!AG880,\"\")","v":""},{"$f":"IF(DataLog!$C880=\"Log value\",DataLog!AH880,\"\")","v":""},{"$f":"IF(DataLog!$C880=\"Log value\",DataLog!AI880,\"\")","v":""},{"$f":"IF(DataLog!$C880=\"Log value\",DataLog!AJ880,\"\")","v":""},{"$f":"IF(DataLog!$C880=\"Log value\",DataLog!AK880,\"\")","v":""},{"$f":"IF(DataLog!$C880=\"Log value\",DataLog!AL880,\"\")","v":""},{"$f":"IF(DataLog!$C880=\"Log value\",DataLog!AM880,\"\")","v":""}]
[null,null,null,null,null,null,{"$f":"IF(DataLog!$C881=\"Log value\",DataLog!D881&\"_\"&TEXT(DataLog!B881,\"åååå-mm-dd\"),\"\")","v":""},{"$f":"IF(DataLog!$C881=\"Log value\",DataLog!E881,\"\")","v":""},{"$f":"IF(DataLog!$C881=\"Log value\",DataLog!F881,\"\")","v":""},{"$f":"IF(DataLog!$C881=\"Log value\",DataLog!G881,\"\")","v":""},{"$f":"IF(DataLog!$C881=\"Log value\",DataLog!H881,\"\")","v":""},{"$f":"IF(DataLog!$C881=\"Log value\",DataLog!I881,\"\")","v":""},{"$f":"IF(DataLog!$C881=\"Log value\",DataLog!J881,\"\")","v":""},{"$f":"IF(DataLog!$C881=\"Log value\",DataLog!K881,\"\")","v":""},{"$f":"IF(DataLog!$C881=\"Log value\",DataLog!L881,\"\")","v":""},{"$f":"IF(DataLog!$C881=\"Log value\",DataLog!M881,\"\")","v":""},{"$f":"IF(DataLog!$C881=\"Log value\",DataLog!N881,\"\")","v":""},{"$f":"IF(DataLog!$C881=\"Log value\",DataLog!O881,\"\")","v":""},{"$f":"IF(DataLog!$C881=\"Log value\",DataLog!P881,\"\")","v":""},{"$f":"IF(DataLog!$C881=\"Log value\",DataLog!Q881,\"\")","v":""},{"$f":"IF(DataLog!$C881=\"Log value\",DataLog!R881,\"\")","v":""},{"$f":"IF(DataLog!$C881=\"Log value\",DataLog!S881,\"\")","v":""},{"$f":"IF(DataLog!$C881=\"Log value\",DataLog!T881,\"\")","v":""},{"$f":"IF(DataLog!$C881=\"Log value\",DataLog!U881,\"\")","v":""},{"$f":"IF(DataLog!$C881=\"Log value\",DataLog!V881,\"\")","v":""},{"$f":"IF(DataLog!$C881=\"Log value\",DataLog!W881,\"\")","v":""},{"$f":"IF(DataLog!$C881=\"Log value\",DataLog!X881,\"\")","v":""},{"$f":"IF(DataLog!$C881=\"Log value\",DataLog!Y881,\"\")","v":""},{"$f":"IF(DataLog!$C881=\"Log value\",DataLog!Z881,\"\")","v":""},{"$f":"IF(DataLog!$C881=\"Log value\",DataLog!AA881,\"\")","v":""},{"$f":"IF(DataLog!$C881=\"Log value\",DataLog!AB881,\"\")","v":""},{"$f":"IF(DataLog!$C881=\"Log value\",DataLog!AC881,\"\")","v":""},{"$f":"IF(DataLog!$C881=\"Log value\",DataLog!AD881,\"\")","v":""},{"$f":"IF(DataLog!$C881=\"Log value\",DataLog!AE881,\"\")","v":""},{"$f":"IF(DataLog!$C881=\"Log value\",DataLog!AF881,\"\")","v":""},{"$f":"IF(DataLog!$C881=\"Log value\",DataLog!AG881,\"\")","v":""},{"$f":"IF(DataLog!$C881=\"Log value\",DataLog!AH881,\"\")","v":""},{"$f":"IF(DataLog!$C881=\"Log value\",DataLog!AI881,\"\")","v":""},{"$f":"IF(DataLog!$C881=\"Log value\",DataLog!AJ881,\"\")","v":""},{"$f":"IF(DataLog!$C881=\"Log value\",DataLog!AK881,\"\")","v":""},{"$f":"IF(DataLog!$C881=\"Log value\",DataLog!AL881,\"\")","v":""},{"$f":"IF(DataLog!$C881=\"Log value\",DataLog!AM881,\"\")","v":""}]
[null,null,null,null,null,null,{"$f":"IF(DataLog!$C882=\"Log value\",DataLog!D882&\"_\"&TEXT(DataLog!B882,\"åååå-mm-dd\"),\"\")","v":""},{"$f":"IF(DataLog!$C882=\"Log value\",DataLog!E882,\"\")","v":""},{"$f":"IF(DataLog!$C882=\"Log value\",DataLog!F882,\"\")","v":""},{"$f":"IF(DataLog!$C882=\"Log value\",DataLog!G882,\"\")","v":""},{"$f":"IF(DataLog!$C882=\"Log value\",DataLog!H882,\"\")","v":""},{"$f":"IF(DataLog!$C882=\"Log value\",DataLog!I882,\"\")","v":""},{"$f":"IF(DataLog!$C882=\"Log value\",DataLog!J882,\"\")","v":""},{"$f":"IF(DataLog!$C882=\"Log value\",DataLog!K882,\"\")","v":""},{"$f":"IF(DataLog!$C882=\"Log value\",DataLog!L882,\"\")","v":""},{"$f":"IF(DataLog!$C882=\"Log value\",DataLog!M882,\"\")","v":""},{"$f":"IF(DataLog!$C882=\"Log value\",DataLog!N882,\"\")","v":""},{"$f":"IF(DataLog!$C882=\"Log value\",DataLog!O882,\"\")","v":""},{"$f":"IF(DataLog!$C882=\"Log value\",DataLog!P882,\"\")","v":""},{"$f":"IF(DataLog!$C882=\"Log value\",DataLog!Q882,\"\")","v":""},{"$f":"IF(DataLog!$C882=\"Log value\",DataLog!R882,\"\")","v":""},{"$f":"IF(DataLog!$C882=\"Log value\",DataLog!S882,\"\")","v":""},{"$f":"IF(DataLog!$C882=\"Log value\",DataLog!T882,\"\")","v":""},{"$f":"IF(DataLog!$C882=\"Log value\",DataLog!U882,\"\")","v":""},{"$f":"IF(DataLog!$C882=\"Log value\",DataLog!V882,\"\")","v":""},{"$f":"IF(DataLog!$C882=\"Log value\",DataLog!W882,\"\")","v":""},{"$f":"IF(DataLog!$C882=\"Log value\",DataLog!X882,\"\")","v":""},{"$f":"IF(DataLog!$C882=\"Log value\",DataLog!Y882,\"\")","v":""},{"$f":"IF(DataLog!$C882=\"Log value\",DataLog!Z882,\"\")","v":""},{"$f":"IF(DataLog!$C882=\"Log value\",DataLog!AA882,\"\")","v":""},{"$f":"IF(DataLog!$C882=\"Log value\",DataLog!AB882,\"\")","v":""},{"$f":"IF(DataLog!$C882=\"Log value\",DataLog!AC882,\"\")","v":""},{"$f":"IF(DataLog!$C882=\"Log value\",DataLog!AD882,\"\")","v":""},{"$f":"IF(DataLog!$C882=\"Log value\",DataLog!AE882,\"\")","v":""},{"$f":"IF(DataLog!$C882=\"Log value\",DataLog!AF882,\"\")","v":""},{"$f":"IF(DataLog!$C882=\"Log value\",DataLog!AG882,\"\")","v":""},{"$f":"IF(DataLog!$C882=\"Log value\",DataLog!AH882,\"\")","v":""},{"$f":"IF(DataLog!$C882=\"Log value\",DataLog!AI882,\"\")","v":""},{"$f":"IF(DataLog!$C882=\"Log value\",DataLog!AJ882,\"\")","v":""},{"$f":"IF(DataLog!$C882=\"Log value\",DataLog!AK882,\"\")","v":""},{"$f":"IF(DataLog!$C882=\"Log value\",DataLog!AL882,\"\")","v":""},{"$f":"IF(DataLog!$C882=\"Log value\",DataLog!AM882,\"\")","v":""}]
[null,null,null,null,null,null,{"$f":"IF(DataLog!$C883=\"Log value\",DataLog!D883&\"_\"&TEXT(DataLog!B883,\"åååå-mm-dd\"),\"\")","v":""},{"$f":"IF(DataLog!$C883=\"Log value\",DataLog!E883,\"\")","v":""},{"$f":"IF(DataLog!$C883=\"Log value\",DataLog!F883,\"\")","v":""},{"$f":"IF(DataLog!$C883=\"Log value\",DataLog!G883,\"\")","v":""},{"$f":"IF(DataLog!$C883=\"Log value\",DataLog!H883,\"\")","v":""},{"$f":"IF(DataLog!$C883=\"Log value\",DataLog!I883,\"\")","v":""},{"$f":"IF(DataLog!$C883=\"Log value\",DataLog!J883,\"\")","v":""},{"$f":"IF(DataLog!$C883=\"Log value\",DataLog!K883,\"\")","v":""},{"$f":"IF(DataLog!$C883=\"Log value\",DataLog!L883,\"\")","v":""},{"$f":"IF(DataLog!$C883=\"Log value\",DataLog!M883,\"\")","v":""},{"$f":"IF(DataLog!$C883=\"Log value\",DataLog!N883,\"\")","v":""},{"$f":"IF(DataLog!$C883=\"Log value\",DataLog!O883,\"\")","v":""},{"$f":"IF(DataLog!$C883=\"Log value\",DataLog!P883,\"\")","v":""},{"$f":"IF(DataLog!$C883=\"Log value\",DataLog!Q883,\"\")","v":""},{"$f":"IF(DataLog!$C883=\"Log value\",DataLog!R883,\"\")","v":""},{"$f":"IF(DataLog!$C883=\"Log value\",DataLog!S883,\"\")","v":""},{"$f":"IF(DataLog!$C883=\"Log value\",DataLog!T883,\"\")","v":""},{"$f":"IF(DataLog!$C883=\"Log value\",DataLog!U883,\"\")","v":""},{"$f":"IF(DataLog!$C883=\"Log value\",DataLog!V883,\"\")","v":""},{"$f":"IF(DataLog!$C883=\"Log value\",DataLog!W883,\"\")","v":""},{"$f":"IF(DataLog!$C883=\"Log value\",DataLog!X883,\"\")","v":""},{"$f":"IF(DataLog!$C883=\"Log value\",DataLog!Y883,\"\")","v":""},{"$f":"IF(DataLog!$C883=\"Log value\",DataLog!Z883,\"\")","v":""},{"$f":"IF(DataLog!$C883=\"Log value\",DataLog!AA883,\"\")","v":""},{"$f":"IF(DataLog!$C883=\"Log value\",DataLog!AB883,\"\")","v":""},{"$f":"IF(DataLog!$C883=\"Log value\",DataLog!AC883,\"\")","v":""},{"$f":"IF(DataLog!$C883=\"Log value\",DataLog!AD883,\"\")","v":""},{"$f":"IF(DataLog!$C883=\"Log value\",DataLog!AE883,\"\")","v":""},{"$f":"IF(DataLog!$C883=\"Log value\",DataLog!AF883,\"\")","v":""},{"$f":"IF(DataLog!$C883=\"Log value\",DataLog!AG883,\"\")","v":""},{"$f":"IF(DataLog!$C883=\"Log value\",DataLog!AH883,\"\")","v":""},{"$f":"IF(DataLog!$C883=\"Log value\",DataLog!AI883,\"\")","v":""},{"$f":"IF(DataLog!$C883=\"Log value\",DataLog!AJ883,\"\")","v":""},{"$f":"IF(DataLog!$C883=\"Log value\",DataLog!AK883,\"\")","v":""},{"$f":"IF(DataLog!$C883=\"Log value\",DataLog!AL883,\"\")","v":""},{"$f":"IF(DataLog!$C883=\"Log value\",DataLog!AM883,\"\")","v":""}]
[null,null,null,null,null,null,{"$f":"IF(DataLog!$C884=\"Log value\",DataLog!D884&\"_\"&TEXT(DataLog!B884,\"åååå-mm-dd\"),\"\")","v":""},{"$f":"IF(DataLog!$C884=\"Log value\",DataLog!E884,\"\")","v":""},{"$f":"IF(DataLog!$C884=\"Log value\",DataLog!F884,\"\")","v":""},{"$f":"IF(DataLog!$C884=\"Log value\",DataLog!G884,\"\")","v":""},{"$f":"IF(DataLog!$C884=\"Log value\",DataLog!H884,\"\")","v":""},{"$f":"IF(DataLog!$C884=\"Log value\",DataLog!I884,\"\")","v":""},{"$f":"IF(DataLog!$C884=\"Log value\",DataLog!J884,\"\")","v":""},{"$f":"IF(DataLog!$C884=\"Log value\",DataLog!K884,\"\")","v":""},{"$f":"IF(DataLog!$C884=\"Log value\",DataLog!L884,\"\")","v":""},{"$f":"IF(DataLog!$C884=\"Log value\",DataLog!M884,\"\")","v":""},{"$f":"IF(DataLog!$C884=\"Log value\",DataLog!N884,\"\")","v":""},{"$f":"IF(DataLog!$C884=\"Log value\",DataLog!O884,\"\")","v":""},{"$f":"IF(DataLog!$C884=\"Log value\",DataLog!P884,\"\")","v":""},{"$f":"IF(DataLog!$C884=\"Log value\",DataLog!Q884,\"\")","v":""},{"$f":"IF(DataLog!$C884=\"Log value\",DataLog!R884,\"\")","v":""},{"$f":"IF(DataLog!$C884=\"Log value\",DataLog!S884,\"\")","v":""},{"$f":"IF(DataLog!$C884=\"Log value\",DataLog!T884,\"\")","v":""},{"$f":"IF(DataLog!$C884=\"Log value\",DataLog!U884,\"\")","v":""},{"$f":"IF(DataLog!$C884=\"Log value\",DataLog!V884,\"\")","v":""},{"$f":"IF(DataLog!$C884=\"Log value\",DataLog!W884,\"\")","v":""},{"$f":"IF(DataLog!$C884=\"Log value\",DataLog!X884,\"\")","v":""},{"$f":"IF(DataLog!$C884=\"Log value\",DataLog!Y884,\"\")","v":""},{"$f":"IF(DataLog!$C884=\"Log value\",DataLog!Z884,\"\")","v":""},{"$f":"IF(DataLog!$C884=\"Log value\",DataLog!AA884,\"\")","v":""},{"$f":"IF(DataLog!$C884=\"Log value\",DataLog!AB884,\"\")","v":""},{"$f":"IF(DataLog!$C884=\"Log value\",DataLog!AC884,\"\")","v":""},{"$f":"IF(DataLog!$C884=\"Log value\",DataLog!AD884,\"\")","v":""},{"$f":"IF(DataLog!$C884=\"Log value\",DataLog!AE884,\"\")","v":""},{"$f":"IF(DataLog!$C884=\"Log value\",DataLog!AF884,\"\")","v":""},{"$f":"IF(DataLog!$C884=\"Log value\",DataLog!AG884,\"\")","v":""},{"$f":"IF(DataLog!$C884=\"Log value\",DataLog!AH884,\"\")","v":""},{"$f":"IF(DataLog!$C884=\"Log value\",DataLog!AI884,\"\")","v":""},{"$f":"IF(DataLog!$C884=\"Log value\",DataLog!AJ884,\"\")","v":""},{"$f":"IF(DataLog!$C884=\"Log value\",DataLog!AK884,\"\")","v":""},{"$f":"IF(DataLog!$C884=\"Log value\",DataLog!AL884,\"\")","v":""},{"$f":"IF(DataLog!$C884=\"Log value\",DataLog!AM884,\"\")","v":""}]
[null,null,null,null,null,null,{"$f":"IF(DataLog!$C885=\"Log value\",DataLog!D885&\"_\"&TEXT(DataLog!B885,\"åååå-mm-dd\"),\"\")","v":""},{"$f":"IF(DataLog!$C885=\"Log value\",DataLog!E885,\"\")","v":""},{"$f":"IF(DataLog!$C885=\"Log value\",DataLog!F885,\"\")","v":""},{"$f":"IF(DataLog!$C885=\"Log value\",DataLog!G885,\"\")","v":""},{"$f":"IF(DataLog!$C885=\"Log value\",DataLog!H885,\"\")","v":""},{"$f":"IF(DataLog!$C885=\"Log value\",DataLog!I885,\"\")","v":""},{"$f":"IF(DataLog!$C885=\"Log value\",DataLog!J885,\"\")","v":""},{"$f":"IF(DataLog!$C885=\"Log value\",DataLog!K885,\"\")","v":""},{"$f":"IF(DataLog!$C885=\"Log value\",DataLog!L885,\"\")","v":""},{"$f":"IF(DataLog!$C885=\"Log value\",DataLog!M885,\"\")","v":""},{"$f":"IF(DataLog!$C885=\"Log value\",DataLog!N885,\"\")","v":""},{"$f":"IF(DataLog!$C885=\"Log value\",DataLog!O885,\"\")","v":""},{"$f":"IF(DataLog!$C885=\"Log value\",DataLog!P885,\"\")","v":""},{"$f":"IF(DataLog!$C885=\"Log value\",DataLog!Q885,\"\")","v":""},{"$f":"IF(DataLog!$C885=\"Log value\",DataLog!R885,\"\")","v":""},{"$f":"IF(DataLog!$C885=\"Log value\",DataLog!S885,\"\")","v":""},{"$f":"IF(DataLog!$C885=\"Log value\",DataLog!T885,\"\")","v":""},{"$f":"IF(DataLog!$C885=\"Log value\",DataLog!U885,\"\")","v":""},{"$f":"IF(DataLog!$C885=\"Log value\",DataLog!V885,\"\")","v":""},{"$f":"IF(DataLog!$C885=\"Log value\",DataLog!W885,\"\")","v":""},{"$f":"IF(DataLog!$C885=\"Log value\",DataLog!X885,\"\")","v":""},{"$f":"IF(DataLog!$C885=\"Log value\",DataLog!Y885,\"\")","v":""},{"$f":"IF(DataLog!$C885=\"Log value\",DataLog!Z885,\"\")","v":""},{"$f":"IF(DataLog!$C885=\"Log value\",DataLog!AA885,\"\")","v":""},{"$f":"IF(DataLog!$C885=\"Log value\",DataLog!AB885,\"\")","v":""},{"$f":"IF(DataLog!$C885=\"Log value\",DataLog!AC885,\"\")","v":""},{"$f":"IF(DataLog!$C885=\"Log value\",DataLog!AD885,\"\")","v":""},{"$f":"IF(DataLog!$C885=\"Log value\",DataLog!AE885,\"\")","v":""},{"$f":"IF(DataLog!$C885=\"Log value\",DataLog!AF885,\"\")","v":""},{"$f":"IF(DataLog!$C885=\"Log value\",DataLog!AG885,\"\")","v":""},{"$f":"IF(DataLog!$C885=\"Log value\",DataLog!AH885,\"\")","v":""},{"$f":"IF(DataLog!$C885=\"Log value\",DataLog!AI885,\"\")","v":""},{"$f":"IF(DataLog!$C885=\"Log value\",DataLog!AJ885,\"\")","v":""},{"$f":"IF(DataLog!$C885=\"Log value\",DataLog!AK885,\"\")","v":""},{"$f":"IF(DataLog!$C885=\"Log value\",DataLog!AL885,\"\")","v":""},{"$f":"IF(DataLog!$C885=\"Log value\",DataLog!AM885,\"\")","v":""}]
[null,null,null,null,null,null,{"$f":"IF(DataLog!$C886=\"Log value\",DataLog!D886&\"_\"&TEXT(DataLog!B886,\"åååå-mm-dd\"),\"\")","v":""},{"$f":"IF(DataLog!$C886=\"Log value\",DataLog!E886,\"\")","v":""},{"$f":"IF(DataLog!$C886=\"Log value\",DataLog!F886,\"\")","v":""},{"$f":"IF(DataLog!$C886=\"Log value\",DataLog!G886,\"\")","v":""},{"$f":"IF(DataLog!$C886=\"Log value\",DataLog!H886,\"\")","v":""},{"$f":"IF(DataLog!$C886=\"Log value\",DataLog!I886,\"\")","v":""},{"$f":"IF(DataLog!$C886=\"Log value\",DataLog!J886,\"\")","v":""},{"$f":"IF(DataLog!$C886=\"Log value\",DataLog!K886,\"\")","v":""},{"$f":"IF(DataLog!$C886=\"Log value\",DataLog!L886,\"\")","v":""},{"$f":"IF(DataLog!$C886=\"Log value\",DataLog!M886,\"\")","v":""},{"$f":"IF(DataLog!$C886=\"Log value\",DataLog!N886,\"\")","v":""},{"$f":"IF(DataLog!$C886=\"Log value\",DataLog!O886,\"\")","v":""},{"$f":"IF(DataLog!$C886=\"Log value\",DataLog!P886,\"\")","v":""},{"$f":"IF(DataLog!$C886=\"Log value\",DataLog!Q886,\"\")","v":""},{"$f":"IF(DataLog!$C886=\"Log value\",DataLog!R886,\"\")","v":""},{"$f":"IF(DataLog!$C886=\"Log value\",DataLog!S886,\"\")","v":""},{"$f":"IF(DataLog!$C886=\"Log value\",DataLog!T886,\"\")","v":""},{"$f":"IF(DataLog!$C886=\"Log value\",DataLog!U886,\"\")","v":""},{"$f":"IF(DataLog!$C886=\"Log value\",DataLog!V886,\"\")","v":""},{"$f":"IF(DataLog!$C886=\"Log value\",DataLog!W886,\"\")","v":""},{"$f":"IF(DataLog!$C886=\"Log value\",DataLog!X886,\"\")","v":""},{"$f":"IF(DataLog!$C886=\"Log value\",DataLog!Y886,\"\")","v":""},{"$f":"IF(DataLog!$C886=\"Log value\",DataLog!Z886,\"\")","v":""},{"$f":"IF(DataLog!$C886=\"Log value\",DataLog!AA886,\"\")","v":""},{"$f":"IF(DataLog!$C886=\"Log value\",DataLog!AB886,\"\")","v":""},{"$f":"IF(DataLog!$C886=\"Log value\",DataLog!AC886,\"\")","v":""},{"$f":"IF(DataLog!$C886=\"Log value\",DataLog!AD886,\"\")","v":""},{"$f":"IF(DataLog!$C886=\"Log value\",DataLog!AE886,\"\")","v":""},{"$f":"IF(DataLog!$C886=\"Log value\",DataLog!AF886,\"\")","v":""},{"$f":"IF(DataLog!$C886=\"Log value\",DataLog!AG886,\"\")","v":""},{"$f":"IF(DataLog!$C886=\"Log value\",DataLog!AH886,\"\")","v":""},{"$f":"IF(DataLog!$C886=\"Log value\",DataLog!AI886,\"\")","v":""},{"$f":"IF(DataLog!$C886=\"Log value\",DataLog!AJ886,\"\")","v":""},{"$f":"IF(DataLog!$C886=\"Log value\",DataLog!AK886,\"\")","v":""},{"$f":"IF(DataLog!$C886=\"Log value\",DataLog!AL886,\"\")","v":""},{"$f":"IF(DataLog!$C886=\"Log value\",DataLog!AM886,\"\")","v":""}]
[null,null,null,null,null,null,{"$f":"IF(DataLog!$C887=\"Log value\",DataLog!D887&\"_\"&TEXT(DataLog!B887,\"åååå-mm-dd\"),\"\")","v":""},{"$f":"IF(DataLog!$C887=\"Log value\",DataLog!E887,\"\")","v":""},{"$f":"IF(DataLog!$C887=\"Log value\",DataLog!F887,\"\")","v":""},{"$f":"IF(DataLog!$C887=\"Log value\",DataLog!G887,\"\")","v":""},{"$f":"IF(DataLog!$C887=\"Log value\",DataLog!H887,\"\")","v":""},{"$f":"IF(DataLog!$C887=\"Log value\",DataLog!I887,\"\")","v":""},{"$f":"IF(DataLog!$C887=\"Log value\",DataLog!J887,\"\")","v":""},{"$f":"IF(DataLog!$C887=\"Log value\",DataLog!K887,\"\")","v":""},{"$f":"IF(DataLog!$C887=\"Log value\",DataLog!L887,\"\")","v":""},{"$f":"IF(DataLog!$C887=\"Log value\",DataLog!M887,\"\")","v":""},{"$f":"IF(DataLog!$C887=\"Log value\",DataLog!N887,\"\")","v":""},{"$f":"IF(DataLog!$C887=\"Log value\",DataLog!O887,\"\")","v":""},{"$f":"IF(DataLog!$C887=\"Log value\",DataLog!P887,\"\")","v":""},{"$f":"IF(DataLog!$C887=\"Log value\",DataLog!Q887,\"\")","v":""},{"$f":"IF(DataLog!$C887=\"Log value\",DataLog!R887,\"\")","v":""},{"$f":"IF(DataLog!$C887=\"Log value\",DataLog!S887,\"\")","v":""},{"$f":"IF(DataLog!$C887=\"Log value\",DataLog!T887,\"\")","v":""},{"$f":"IF(DataLog!$C887=\"Log value\",DataLog!U887,\"\")","v":""},{"$f":"IF(DataLog!$C887=\"Log value\",DataLog!V887,\"\")","v":""},{"$f":"IF(DataLog!$C887=\"Log value\",DataLog!W887,\"\")","v":""},{"$f":"IF(DataLog!$C887=\"Log value\",DataLog!X887,\"\")","v":""},{"$f":"IF(DataLog!$C887=\"Log value\",DataLog!Y887,\"\")","v":""},{"$f":"IF(DataLog!$C887=\"Log value\",DataLog!Z887,\"\")","v":""},{"$f":"IF(DataLog!$C887=\"Log value\",DataLog!AA887,\"\")","v":""},{"$f":"IF(DataLog!$C887=\"Log value\",DataLog!AB887,\"\")","v":""},{"$f":"IF(DataLog!$C887=\"Log value\",DataLog!AC887,\"\")","v":""},{"$f":"IF(DataLog!$C887=\"Log value\",DataLog!AD887,\"\")","v":""},{"$f":"IF(DataLog!$C887=\"Log value\",DataLog!AE887,\"\")","v":""},{"$f":"IF(DataLog!$C887=\"Log value\",DataLog!AF887,\"\")","v":""},{"$f":"IF(DataLog!$C887=\"Log value\",DataLog!AG887,\"\")","v":""},{"$f":"IF(DataLog!$C887=\"Log value\",DataLog!AH887,\"\")","v":""},{"$f":"IF(DataLog!$C887=\"Log value\",DataLog!AI887,\"\")","v":""},{"$f":"IF(DataLog!$C887=\"Log value\",DataLog!AJ887,\"\")","v":""},{"$f":"IF(DataLog!$C887=\"Log value\",DataLog!AK887,\"\")","v":""},{"$f":"IF(DataLog!$C887=\"Log value\",DataLog!AL887,\"\")","v":""},{"$f":"IF(DataLog!$C887=\"Log value\",DataLog!AM887,\"\")","v":""}]
[null,null,null,null,null,null,{"$f":"IF(DataLog!$C888=\"Log value\",DataLog!D888&\"_\"&TEXT(DataLog!B888,\"åååå-mm-dd\"),\"\")","v":""},{"$f":"IF(DataLog!$C888=\"Log value\",DataLog!E888,\"\")","v":""},{"$f":"IF(DataLog!$C888=\"Log value\",DataLog!F888,\"\")","v":""},{"$f":"IF(DataLog!$C888=\"Log value\",DataLog!G888,\"\")","v":""},{"$f":"IF(DataLog!$C888=\"Log value\",DataLog!H888,\"\")","v":""},{"$f":"IF(DataLog!$C888=\"Log value\",DataLog!I888,\"\")","v":""},{"$f":"IF(DataLog!$C888=\"Log value\",DataLog!J888,\"\")","v":""},{"$f":"IF(DataLog!$C888=\"Log value\",DataLog!K888,\"\")","v":""},{"$f":"IF(DataLog!$C888=\"Log value\",DataLog!L888,\"\")","v":""},{"$f":"IF(DataLog!$C888=\"Log value\",DataLog!M888,\"\")","v":""},{"$f":"IF(DataLog!$C888=\"Log value\",DataLog!N888,\"\")","v":""},{"$f":"IF(DataLog!$C888=\"Log value\",DataLog!O888,\"\")","v":""},{"$f":"IF(DataLog!$C888=\"Log value\",DataLog!P888,\"\")","v":""},{"$f":"IF(DataLog!$C888=\"Log value\",DataLog!Q888,\"\")","v":""},{"$f":"IF(DataLog!$C888=\"Log value\",DataLog!R888,\"\")","v":""},{"$f":"IF(DataLog!$C888=\"Log value\",DataLog!S888,\"\")","v":""},{"$f":"IF(DataLog!$C888=\"Log value\",DataLog!T888,\"\")","v":""},{"$f":"IF(DataLog!$C888=\"Log value\",DataLog!U888,\"\")","v":""},{"$f":"IF(DataLog!$C888=\"Log value\",DataLog!V888,\"\")","v":""},{"$f":"IF(DataLog!$C888=\"Log value\",DataLog!W888,\"\")","v":""},{"$f":"IF(DataLog!$C888=\"Log value\",DataLog!X888,\"\")","v":""},{"$f":"IF(DataLog!$C888=\"Log value\",DataLog!Y888,\"\")","v":""},{"$f":"IF(DataLog!$C888=\"Log value\",DataLog!Z888,\"\")","v":""},{"$f":"IF(DataLog!$C888=\"Log value\",DataLog!AA888,\"\")","v":""},{"$f":"IF(DataLog!$C888=\"Log value\",DataLog!AB888,\"\")","v":""},{"$f":"IF(DataLog!$C888=\"Log value\",DataLog!AC888,\"\")","v":""},{"$f":"IF(DataLog!$C888=\"Log value\",DataLog!AD888,\"\")","v":""},{"$f":"IF(DataLog!$C888=\"Log value\",DataLog!AE888,\"\")","v":""},{"$f":"IF(DataLog!$C888=\"Log value\",DataLog!AF888,\"\")","v":""},{"$f":"IF(DataLog!$C888=\"Log value\",DataLog!AG888,\"\")","v":""},{"$f":"IF(DataLog!$C888=\"Log value\",DataLog!AH888,\"\")","v":""},{"$f":"IF(DataLog!$C888=\"Log value\",DataLog!AI888,\"\")","v":""},{"$f":"IF(DataLog!$C888=\"Log value\",DataLog!AJ888,\"\")","v":""},{"$f":"IF(DataLog!$C888=\"Log value\",DataLog!AK888,\"\")","v":""},{"$f":"IF(DataLog!$C888=\"Log value\",DataLog!AL888,\"\")","v":""},{"$f":"IF(DataLog!$C888=\"Log value\",DataLog!AM888,\"\")","v":""}]
[null,null,null,null,null,null,{"$f":"IF(DataLog!$C889=\"Log value\",DataLog!D889&\"_\"&TEXT(DataLog!B889,\"åååå-mm-dd\"),\"\")","v":""},{"$f":"IF(DataLog!$C889=\"Log value\",DataLog!E889,\"\")","v":""},{"$f":"IF(DataLog!$C889=\"Log value\",DataLog!F889,\"\")","v":""},{"$f":"IF(DataLog!$C889=\"Log value\",DataLog!G889,\"\")","v":""},{"$f":"IF(DataLog!$C889=\"Log value\",DataLog!H889,\"\")","v":""},{"$f":"IF(DataLog!$C889=\"Log value\",DataLog!I889,\"\")","v":""},{"$f":"IF(DataLog!$C889=\"Log value\",DataLog!J889,\"\")","v":""},{"$f":"IF(DataLog!$C889=\"Log value\",DataLog!K889,\"\")","v":""},{"$f":"IF(DataLog!$C889=\"Log value\",DataLog!L889,\"\")","v":""},{"$f":"IF(DataLog!$C889=\"Log value\",DataLog!M889,\"\")","v":""},{"$f":"IF(DataLog!$C889=\"Log value\",DataLog!N889,\"\")","v":""},{"$f":"IF(DataLog!$C889=\"Log value\",DataLog!O889,\"\")","v":""},{"$f":"IF(DataLog!$C889=\"Log value\",DataLog!P889,\"\")","v":""},{"$f":"IF(DataLog!$C889=\"Log value\",DataLog!Q889,\"\")","v":""},{"$f":"IF(DataLog!$C889=\"Log value\",DataLog!R889,\"\")","v":""},{"$f":"IF(DataLog!$C889=\"Log value\",DataLog!S889,\"\")","v":""},{"$f":"IF(DataLog!$C889=\"Log value\",DataLog!T889,\"\")","v":""},{"$f":"IF(DataLog!$C889=\"Log value\",DataLog!U889,\"\")","v":""},{"$f":"IF(DataLog!$C889=\"Log value\",DataLog!V889,\"\")","v":""},{"$f":"IF(DataLog!$C889=\"Log value\",DataLog!W889,\"\")","v":""},{"$f":"IF(DataLog!$C889=\"Log value\",DataLog!X889,\"\")","v":""},{"$f":"IF(DataLog!$C889=\"Log value\",DataLog!Y889,\"\")","v":""},{"$f":"IF(DataLog!$C889=\"Log value\",DataLog!Z889,\"\")","v":""},{"$f":"IF(DataLog!$C889=\"Log value\",DataLog!AA889,\"\")","v":""},{"$f":"IF(DataLog!$C889=\"Log value\",DataLog!AB889,\"\")","v":""},{"$f":"IF(DataLog!$C889=\"Log value\",DataLog!AC889,\"\")","v":""},{"$f":"IF(DataLog!$C889=\"Log value\",DataLog!AD889,\"\")","v":""},{"$f":"IF(DataLog!$C889=\"Log value\",DataLog!AE889,\"\")","v":""},{"$f":"IF(DataLog!$C889=\"Log value\",DataLog!AF889,\"\")","v":""},{"$f":"IF(DataLog!$C889=\"Log value\",DataLog!AG889,\"\")","v":""},{"$f":"IF(DataLog!$C889=\"Log value\",DataLog!AH889,\"\")","v":""},{"$f":"IF(DataLog!$C889=\"Log value\",DataLog!AI889,\"\")","v":""},{"$f":"IF(DataLog!$C889=\"Log value\",DataLog!AJ889,\"\")","v":""},{"$f":"IF(DataLog!$C889=\"Log value\",DataLog!AK889,\"\")","v":""},{"$f":"IF(DataLog!$C889=\"Log value\",DataLog!AL889,\"\")","v":""},{"$f":"IF(DataLog!$C889=\"Log value\",DataLog!AM889,\"\")","v":""}]
[null,null,null,null,null,null,{"$f":"IF(DataLog!$C890=\"Log value\",DataLog!D890&\"_\"&TEXT(DataLog!B890,\"åååå-mm-dd\"),\"\")","v":""},{"$f":"IF(DataLog!$C890=\"Log value\",DataLog!E890,\"\")","v":""},{"$f":"IF(DataLog!$C890=\"Log value\",DataLog!F890,\"\")","v":""},{"$f":"IF(DataLog!$C890=\"Log value\",DataLog!G890,\"\")","v":""},{"$f":"IF(DataLog!$C890=\"Log value\",DataLog!H890,\"\")","v":""},{"$f":"IF(DataLog!$C890=\"Log value\",DataLog!I890,\"\")","v":""},{"$f":"IF(DataLog!$C890=\"Log value\",DataLog!J890,\"\")","v":""},{"$f":"IF(DataLog!$C890=\"Log value\",DataLog!K890,\"\")","v":""},{"$f":"IF(DataLog!$C890=\"Log value\",DataLog!L890,\"\")","v":""},{"$f":"IF(DataLog!$C890=\"Log value\",DataLog!M890,\"\")","v":""},{"$f":"IF(DataLog!$C890=\"Log value\",DataLog!N890,\"\")","v":""},{"$f":"IF(DataLog!$C890=\"Log value\",DataLog!O890,\"\")","v":""},{"$f":"IF(DataLog!$C890=\"Log value\",DataLog!P890,\"\")","v":""},{"$f":"IF(DataLog!$C890=\"Log value\",DataLog!Q890,\"\")","v":""},{"$f":"IF(DataLog!$C890=\"Log value\",DataLog!R890,\"\")","v":""},{"$f":"IF(DataLog!$C890=\"Log value\",DataLog!S890,\"\")","v":""},{"$f":"IF(DataLog!$C890=\"Log value\",DataLog!T890,\"\")","v":""},{"$f":"IF(DataLog!$C890=\"Log value\",DataLog!U890,\"\")","v":""},{"$f":"IF(DataLog!$C890=\"Log value\",DataLog!V890,\"\")","v":""},{"$f":"IF(DataLog!$C890=\"Log value\",DataLog!W890,\"\")","v":""},{"$f":"IF(DataLog!$C890=\"Log value\",DataLog!X890,\"\")","v":""},{"$f":"IF(DataLog!$C890=\"Log value\",DataLog!Y890,\"\")","v":""},{"$f":"IF(DataLog!$C890=\"Log value\",DataLog!Z890,\"\")","v":""},{"$f":"IF(DataLog!$C890=\"Log value\",DataLog!AA890,\"\")","v":""},{"$f":"IF(DataLog!$C890=\"Log value\",DataLog!AB890,\"\")","v":""},{"$f":"IF(DataLog!$C890=\"Log value\",DataLog!AC890,\"\")","v":""},{"$f":"IF(DataLog!$C890=\"Log value\",DataLog!AD890,\"\")","v":""},{"$f":"IF(DataLog!$C890=\"Log value\",DataLog!AE890,\"\")","v":""},{"$f":"IF(DataLog!$C890=\"Log value\",DataLog!AF890,\"\")","v":""},{"$f":"IF(DataLog!$C890=\"Log value\",DataLog!AG890,\"\")","v":""},{"$f":"IF(DataLog!$C890=\"Log value\",DataLog!AH890,\"\")","v":""},{"$f":"IF(DataLog!$C890=\"Log value\",DataLog!AI890,\"\")","v":""},{"$f":"IF(DataLog!$C890=\"Log value\",DataLog!AJ890,\"\")","v":""},{"$f":"IF(DataLog!$C890=\"Log value\",DataLog!AK890,\"\")","v":""},{"$f":"IF(DataLog!$C890=\"Log value\",DataLog!AL890,\"\")","v":""},{"$f":"IF(DataLog!$C890=\"Log value\",DataLog!AM890,\"\")","v":""}]
[null,null,null,null,null,null,{"$f":"IF(DataLog!$C891=\"Log value\",DataLog!D891&\"_\"&TEXT(DataLog!B891,\"åååå-mm-dd\"),\"\")","v":""},{"$f":"IF(DataLog!$C891=\"Log value\",DataLog!E891,\"\")","v":""},{"$f":"IF(DataLog!$C891=\"Log value\",DataLog!F891,\"\")","v":""},{"$f":"IF(DataLog!$C891=\"Log value\",DataLog!G891,\"\")","v":""},{"$f":"IF(DataLog!$C891=\"Log value\",DataLog!H891,\"\")","v":""},{"$f":"IF(DataLog!$C891=\"Log value\",DataLog!I891,\"\")","v":""},{"$f":"IF(DataLog!$C891=\"Log value\",DataLog!J891,\"\")","v":""},{"$f":"IF(DataLog!$C891=\"Log value\",DataLog!K891,\"\")","v":""},{"$f":"IF(DataLog!$C891=\"Log value\",DataLog!L891,\"\")","v":""},{"$f":"IF(DataLog!$C891=\"Log value\",DataLog!M891,\"\")","v":""},{"$f":"IF(DataLog!$C891=\"Log value\",DataLog!N891,\"\")","v":""},{"$f":"IF(DataLog!$C891=\"Log value\",DataLog!O891,\"\")","v":""},{"$f":"IF(DataLog!$C891=\"Log value\",DataLog!P891,\"\")","v":""},{"$f":"IF(DataLog!$C891=\"Log value\",DataLog!Q891,\"\")","v":""},{"$f":"IF(DataLog!$C891=\"Log value\",DataLog!R891,\"\")","v":""},{"$f":"IF(DataLog!$C891=\"Log value\",DataLog!S891,\"\")","v":""},{"$f":"IF(DataLog!$C891=\"Log value\",DataLog!T891,\"\")","v":""},{"$f":"IF(DataLog!$C891=\"Log value\",DataLog!U891,\"\")","v":""},{"$f":"IF(DataLog!$C891=\"Log value\",DataLog!V891,\"\")","v":""},{"$f":"IF(DataLog!$C891=\"Log value\",DataLog!W891,\"\")","v":""},{"$f":"IF(DataLog!$C891=\"Log value\",DataLog!X891,\"\")","v":""},{"$f":"IF(DataLog!$C891=\"Log value\",DataLog!Y891,\"\")","v":""},{"$f":"IF(DataLog!$C891=\"Log value\",DataLog!Z891,\"\")","v":""},{"$f":"IF(DataLog!$C891=\"Log value\",DataLog!AA891,\"\")","v":""},{"$f":"IF(DataLog!$C891=\"Log value\",DataLog!AB891,\"\")","v":""},{"$f":"IF(DataLog!$C891=\"Log value\",DataLog!AC891,\"\")","v":""},{"$f":"IF(DataLog!$C891=\"Log value\",DataLog!AD891,\"\")","v":""},{"$f":"IF(DataLog!$C891=\"Log value\",DataLog!AE891,\"\")","v":""},{"$f":"IF(DataLog!$C891=\"Log value\",DataLog!AF891,\"\")","v":""},{"$f":"IF(DataLog!$C891=\"Log value\",DataLog!AG891,\"\")","v":""},{"$f":"IF(DataLog!$C891=\"Log value\",DataLog!AH891,\"\")","v":""},{"$f":"IF(DataLog!$C891=\"Log value\",DataLog!AI891,\"\")","v":""},{"$f":"IF(DataLog!$C891=\"Log value\",DataLog!AJ891,\"\")","v":""},{"$f":"IF(DataLog!$C891=\"Log value\",DataLog!AK891,\"\")","v":""},{"$f":"IF(DataLog!$C891=\"Log value\",DataLog!AL891,\"\")","v":""},{"$f":"IF(DataLog!$C891=\"Log value\",DataLog!AM891,\"\")","v":""}]
[null,null,null,null,null,null,{"$f":"IF(DataLog!$C892=\"Log value\",DataLog!D892&\"_\"&TEXT(DataLog!B892,\"åååå-mm-dd\"),\"\")","v":""},{"$f":"IF(DataLog!$C892=\"Log value\",DataLog!E892,\"\")","v":""},{"$f":"IF(DataLog!$C892=\"Log value\",DataLog!F892,\"\")","v":""},{"$f":"IF(DataLog!$C892=\"Log value\",DataLog!G892,\"\")","v":""},{"$f":"IF(DataLog!$C892=\"Log value\",DataLog!H892,\"\")","v":""},{"$f":"IF(DataLog!$C892=\"Log value\",DataLog!I892,\"\")","v":""},{"$f":"IF(DataLog!$C892=\"Log value\",DataLog!J892,\"\")","v":""},{"$f":"IF(DataLog!$C892=\"Log value\",DataLog!K892,\"\")","v":""},{"$f":"IF(DataLog!$C892=\"Log value\",DataLog!L892,\"\")","v":""},{"$f":"IF(DataLog!$C892=\"Log value\",DataLog!M892,\"\")","v":""},{"$f":"IF(DataLog!$C892=\"Log value\",DataLog!N892,\"\")","v":""},{"$f":"IF(DataLog!$C892=\"Log value\",DataLog!O892,\"\")","v":""},{"$f":"IF(DataLog!$C892=\"Log value\",DataLog!P892,\"\")","v":""},{"$f":"IF(DataLog!$C892=\"Log value\",DataLog!Q892,\"\")","v":""},{"$f":"IF(DataLog!$C892=\"Log value\",DataLog!R892,\"\")","v":""},{"$f":"IF(DataLog!$C892=\"Log value\",DataLog!S892,\"\")","v":""},{"$f":"IF(DataLog!$C892=\"Log value\",DataLog!T892,\"\")","v":""},{"$f":"IF(DataLog!$C892=\"Log value\",DataLog!U892,\"\")","v":""},{"$f":"IF(DataLog!$C892=\"Log value\",DataLog!V892,\"\")","v":""},{"$f":"IF(DataLog!$C892=\"Log value\",DataLog!W892,\"\")","v":""},{"$f":"IF(DataLog!$C892=\"Log value\",DataLog!X892,\"\")","v":""},{"$f":"IF(DataLog!$C892=\"Log value\",DataLog!Y892,\"\")","v":""},{"$f":"IF(DataLog!$C892=\"Log value\",DataLog!Z892,\"\")","v":""},{"$f":"IF(DataLog!$C892=\"Log value\",DataLog!AA892,\"\")","v":""},{"$f":"IF(DataLog!$C892=\"Log value\",DataLog!AB892,\"\")","v":""},{"$f":"IF(DataLog!$C892=\"Log value\",DataLog!AC892,\"\")","v":""},{"$f":"IF(DataLog!$C892=\"Log value\",DataLog!AD892,\"\")","v":""},{"$f":"IF(DataLog!$C892=\"Log value\",DataLog!AE892,\"\")","v":""},{"$f":"IF(DataLog!$C892=\"Log value\",DataLog!AF892,\"\")","v":""},{"$f":"IF(DataLog!$C892=\"Log value\",DataLog!AG892,\"\")","v":""},{"$f":"IF(DataLog!$C892=\"Log value\",DataLog!AH892,\"\")","v":""},{"$f":"IF(DataLog!$C892=\"Log value\",DataLog!AI892,\"\")","v":""},{"$f":"IF(DataLog!$C892=\"Log value\",DataLog!AJ892,\"\")","v":""},{"$f":"IF(DataLog!$C892=\"Log value\",DataLog!AK892,\"\")","v":""},{"$f":"IF(DataLog!$C892=\"Log value\",DataLog!AL892,\"\")","v":""},{"$f":"IF(DataLog!$C892=\"Log value\",DataLog!AM892,\"\")","v":""}]
[null,null,null,null,null,null,{"$f":"IF(DataLog!$C893=\"Log value\",DataLog!D893&\"_\"&TEXT(DataLog!B893,\"åååå-mm-dd\"),\"\")","v":""},{"$f":"IF(DataLog!$C893=\"Log value\",DataLog!E893,\"\")","v":""},{"$f":"IF(DataLog!$C893=\"Log value\",DataLog!F893,\"\")","v":""},{"$f":"IF(DataLog!$C893=\"Log value\",DataLog!G893,\"\")","v":""},{"$f":"IF(DataLog!$C893=\"Log value\",DataLog!H893,\"\")","v":""},{"$f":"IF(DataLog!$C893=\"Log value\",DataLog!I893,\"\")","v":""},{"$f":"IF(DataLog!$C893=\"Log value\",DataLog!J893,\"\")","v":""},{"$f":"IF(DataLog!$C893=\"Log value\",DataLog!K893,\"\")","v":""},{"$f":"IF(DataLog!$C893=\"Log value\",DataLog!L893,\"\")","v":""},{"$f":"IF(DataLog!$C893=\"Log value\",DataLog!M893,\"\")","v":""},{"$f":"IF(DataLog!$C893=\"Log value\",DataLog!N893,\"\")","v":""},{"$f":"IF(DataLog!$C893=\"Log value\",DataLog!O893,\"\")","v":""},{"$f":"IF(DataLog!$C893=\"Log value\",DataLog!P893,\"\")","v":""},{"$f":"IF(DataLog!$C893=\"Log value\",DataLog!Q893,\"\")","v":""},{"$f":"IF(DataLog!$C893=\"Log value\",DataLog!R893,\"\")","v":""},{"$f":"IF(DataLog!$C893=\"Log value\",DataLog!S893,\"\")","v":""},{"$f":"IF(DataLog!$C893=\"Log value\",DataLog!T893,\"\")","v":""},{"$f":"IF(DataLog!$C893=\"Log value\",DataLog!U893,\"\")","v":""},{"$f":"IF(DataLog!$C893=\"Log value\",DataLog!V893,\"\")","v":""},{"$f":"IF(DataLog!$C893=\"Log value\",DataLog!W893,\"\")","v":""},{"$f":"IF(DataLog!$C893=\"Log value\",DataLog!X893,\"\")","v":""},{"$f":"IF(DataLog!$C893=\"Log value\",DataLog!Y893,\"\")","v":""},{"$f":"IF(DataLog!$C893=\"Log value\",DataLog!Z893,\"\")","v":""},{"$f":"IF(DataLog!$C893=\"Log value\",DataLog!AA893,\"\")","v":""},{"$f":"IF(DataLog!$C893=\"Log value\",DataLog!AB893,\"\")","v":""},{"$f":"IF(DataLog!$C893=\"Log value\",DataLog!AC893,\"\")","v":""},{"$f":"IF(DataLog!$C893=\"Log value\",DataLog!AD893,\"\")","v":""},{"$f":"IF(DataLog!$C893=\"Log value\",DataLog!AE893,\"\")","v":""},{"$f":"IF(DataLog!$C893=\"Log value\",DataLog!AF893,\"\")","v":""},{"$f":"IF(DataLog!$C893=\"Log value\",DataLog!AG893,\"\")","v":""},{"$f":"IF(DataLog!$C893=\"Log value\",DataLog!AH893,\"\")","v":""},{"$f":"IF(DataLog!$C893=\"Log value\",DataLog!AI893,\"\")","v":""},{"$f":"IF(DataLog!$C893=\"Log value\",DataLog!AJ893,\"\")","v":""},{"$f":"IF(DataLog!$C893=\"Log value\",DataLog!AK893,\"\")","v":""},{"$f":"IF(DataLog!$C893=\"Log value\",DataLog!AL893,\"\")","v":""},{"$f":"IF(DataLog!$C893=\"Log value\",DataLog!AM893,\"\")","v":""}]
[null,null,null,null,null,null,{"$f":"IF(DataLog!$C894=\"Log value\",DataLog!D894&\"_\"&TEXT(DataLog!B894,\"åååå-mm-dd\"),\"\")","v":""},{"$f":"IF(DataLog!$C894=\"Log value\",DataLog!E894,\"\")","v":""},{"$f":"IF(DataLog!$C894=\"Log value\",DataLog!F894,\"\")","v":""},{"$f":"IF(DataLog!$C894=\"Log value\",DataLog!G894,\"\")","v":""},{"$f":"IF(DataLog!$C894=\"Log value\",DataLog!H894,\"\")","v":""},{"$f":"IF(DataLog!$C894=\"Log value\",DataLog!I894,\"\")","v":""},{"$f":"IF(DataLog!$C894=\"Log value\",DataLog!J894,\"\")","v":""},{"$f":"IF(DataLog!$C894=\"Log value\",DataLog!K894,\"\")","v":""},{"$f":"IF(DataLog!$C894=\"Log value\",DataLog!L894,\"\")","v":""},{"$f":"IF(DataLog!$C894=\"Log value\",DataLog!M894,\"\")","v":""},{"$f":"IF(DataLog!$C894=\"Log value\",DataLog!N894,\"\")","v":""},{"$f":"IF(DataLog!$C894=\"Log value\",DataLog!O894,\"\")","v":""},{"$f":"IF(DataLog!$C894=\"Log value\",DataLog!P894,\"\")","v":""},{"$f":"IF(DataLog!$C894=\"Log value\",DataLog!Q894,\"\")","v":""},{"$f":"IF(DataLog!$C894=\"Log value\",DataLog!R894,\"\")","v":""},{"$f":"IF(DataLog!$C894=\"Log value\",DataLog!S894,\"\")","v":""},{"$f":"IF(DataLog!$C894=\"Log value\",DataLog!T894,\"\")","v":""},{"$f":"IF(DataLog!$C894=\"Log value\",DataLog!U894,\"\")","v":""},{"$f":"IF(DataLog!$C894=\"Log value\",DataLog!V894,\"\")","v":""},{"$f":"IF(DataLog!$C894=\"Log value\",DataLog!W894,\"\")","v":""},{"$f":"IF(DataLog!$C894=\"Log value\",DataLog!X894,\"\")","v":""},{"$f":"IF(DataLog!$C894=\"Log value\",DataLog!Y894,\"\")","v":""},{"$f":"IF(DataLog!$C894=\"Log value\",DataLog!Z894,\"\")","v":""},{"$f":"IF(DataLog!$C894=\"Log value\",DataLog!AA894,\"\")","v":""},{"$f":"IF(DataLog!$C894=\"Log value\",DataLog!AB894,\"\")","v":""},{"$f":"IF(DataLog!$C894=\"Log value\",DataLog!AC894,\"\")","v":""},{"$f":"IF(DataLog!$C894=\"Log value\",DataLog!AD894,\"\")","v":""},{"$f":"IF(DataLog!$C894=\"Log value\",DataLog!AE894,\"\")","v":""},{"$f":"IF(DataLog!$C894=\"Log value\",DataLog!AF894,\"\")","v":""},{"$f":"IF(DataLog!$C894=\"Log value\",DataLog!AG894,\"\")","v":""},{"$f":"IF(DataLog!$C894=\"Log value\",DataLog!AH894,\"\")","v":""},{"$f":"IF(DataLog!$C894=\"Log value\",DataLog!AI894,\"\")","v":""},{"$f":"IF(DataLog!$C894=\"Log value\",DataLog!AJ894,\"\")","v":""},{"$f":"IF(DataLog!$C894=\"Log value\",DataLog!AK894,\"\")","v":""},{"$f":"IF(DataLog!$C894=\"Log value\",DataLog!AL894,\"\")","v":""},{"$f":"IF(DataLog!$C894=\"Log value\",DataLog!AM894,\"\")","v":""}]
[null,null,null,null,null,null,{"$f":"IF(DataLog!$C895=\"Log value\",DataLog!D895&\"_\"&TEXT(DataLog!B895,\"åååå-mm-dd\"),\"\")","v":""},{"$f":"IF(DataLog!$C895=\"Log value\",DataLog!E895,\"\")","v":""},{"$f":"IF(DataLog!$C895=\"Log value\",DataLog!F895,\"\")","v":""},{"$f":"IF(DataLog!$C895=\"Log value\",DataLog!G895,\"\")","v":""},{"$f":"IF(DataLog!$C895=\"Log value\",DataLog!H895,\"\")","v":""},{"$f":"IF(DataLog!$C895=\"Log value\",DataLog!I895,\"\")","v":""},{"$f":"IF(DataLog!$C895=\"Log value\",DataLog!J895,\"\")","v":""},{"$f":"IF(DataLog!$C895=\"Log value\",DataLog!K895,\"\")","v":""},{"$f":"IF(DataLog!$C895=\"Log value\",DataLog!L895,\"\")","v":""},{"$f":"IF(DataLog!$C895=\"Log value\",DataLog!M895,\"\")","v":""},{"$f":"IF(DataLog!$C895=\"Log value\",DataLog!N895,\"\")","v":""},{"$f":"IF(DataLog!$C895=\"Log value\",DataLog!O895,\"\")","v":""},{"$f":"IF(DataLog!$C895=\"Log value\",DataLog!P895,\"\")","v":""},{"$f":"IF(DataLog!$C895=\"Log value\",DataLog!Q895,\"\")","v":""},{"$f":"IF(DataLog!$C895=\"Log value\",DataLog!R895,\"\")","v":""},{"$f":"IF(DataLog!$C895=\"Log value\",DataLog!S895,\"\")","v":""},{"$f":"IF(DataLog!$C895=\"Log value\",DataLog!T895,\"\")","v":""},{"$f":"IF(DataLog!$C895=\"Log value\",DataLog!U895,\"\")","v":""},{"$f":"IF(DataLog!$C895=\"Log value\",DataLog!V895,\"\")","v":""},{"$f":"IF(DataLog!$C895=\"Log value\",DataLog!W895,\"\")","v":""},{"$f":"IF(DataLog!$C895=\"Log value\",DataLog!X895,\"\")","v":""},{"$f":"IF(DataLog!$C895=\"Log value\",DataLog!Y895,\"\")","v":""},{"$f":"IF(DataLog!$C895=\"Log value\",DataLog!Z895,\"\")","v":""},{"$f":"IF(DataLog!$C895=\"Log value\",DataLog!AA895,\"\")","v":""},{"$f":"IF(DataLog!$C895=\"Log value\",DataLog!AB895,\"\")","v":""},{"$f":"IF(DataLog!$C895=\"Log value\",DataLog!AC895,\"\")","v":""},{"$f":"IF(DataLog!$C895=\"Log value\",DataLog!AD895,\"\")","v":""},{"$f":"IF(DataLog!$C895=\"Log value\",DataLog!AE895,\"\")","v":""},{"$f":"IF(DataLog!$C895=\"Log value\",DataLog!AF895,\"\")","v":""},{"$f":"IF(DataLog!$C895=\"Log value\",DataLog!AG895,\"\")","v":""},{"$f":"IF(DataLog!$C895=\"Log value\",DataLog!AH895,\"\")","v":""},{"$f":"IF(DataLog!$C895=\"Log value\",DataLog!AI895,\"\")","v":""},{"$f":"IF(DataLog!$C895=\"Log value\",DataLog!AJ895,\"\")","v":""},{"$f":"IF(DataLog!$C895=\"Log value\",DataLog!AK895,\"\")","v":""},{"$f":"IF(DataLog!$C895=\"Log value\",DataLog!AL895,\"\")","v":""},{"$f":"IF(DataLog!$C895=\"Log value\",DataLog!AM895,\"\")","v":""}]
[null,null,null,null,null,null,{"$f":"IF(DataLog!$C896=\"Log value\",DataLog!D896&\"_\"&TEXT(DataLog!B896,\"åååå-mm-dd\"),\"\")","v":""},{"$f":"IF(DataLog!$C896=\"Log value\",DataLog!E896,\"\")","v":""},{"$f":"IF(DataLog!$C896=\"Log value\",DataLog!F896,\"\")","v":""},{"$f":"IF(DataLog!$C896=\"Log value\",DataLog!G896,\"\")","v":""},{"$f":"IF(DataLog!$C896=\"Log value\",DataLog!H896,\"\")","v":""},{"$f":"IF(DataLog!$C896=\"Log value\",DataLog!I896,\"\")","v":""},{"$f":"IF(DataLog!$C896=\"Log value\",DataLog!J896,\"\")","v":""},{"$f":"IF(DataLog!$C896=\"Log value\",DataLog!K896,\"\")","v":""},{"$f":"IF(DataLog!$C896=\"Log value\",DataLog!L896,\"\")","v":""},{"$f":"IF(DataLog!$C896=\"Log value\",DataLog!M896,\"\")","v":""},{"$f":"IF(DataLog!$C896=\"Log value\",DataLog!N896,\"\")","v":""},{"$f":"IF(DataLog!$C896=\"Log value\",DataLog!O896,\"\")","v":""},{"$f":"IF(DataLog!$C896=\"Log value\",DataLog!P896,\"\")","v":""},{"$f":"IF(DataLog!$C896=\"Log value\",DataLog!Q896,\"\")","v":""},{"$f":"IF(DataLog!$C896=\"Log value\",DataLog!R896,\"\")","v":""},{"$f":"IF(DataLog!$C896=\"Log value\",DataLog!S896,\"\")","v":""},{"$f":"IF(DataLog!$C896=\"Log value\",DataLog!T896,\"\")","v":""},{"$f":"IF(DataLog!$C896=\"Log value\",DataLog!U896,\"\")","v":""},{"$f":"IF(DataLog!$C896=\"Log value\",DataLog!V896,\"\")","v":""},{"$f":"IF(DataLog!$C896=\"Log value\",DataLog!W896,\"\")","v":""},{"$f":"IF(DataLog!$C896=\"Log value\",DataLog!X896,\"\")","v":""},{"$f":"IF(DataLog!$C896=\"Log value\",DataLog!Y896,\"\")","v":""},{"$f":"IF(DataLog!$C896=\"Log value\",DataLog!Z896,\"\")","v":""},{"$f":"IF(DataLog!$C896=\"Log value\",DataLog!AA896,\"\")","v":""},{"$f":"IF(DataLog!$C896=\"Log value\",DataLog!AB896,\"\")","v":""},{"$f":"IF(DataLog!$C896=\"Log value\",DataLog!AC896,\"\")","v":""},{"$f":"IF(DataLog!$C896=\"Log value\",DataLog!AD896,\"\")","v":""},{"$f":"IF(DataLog!$C896=\"Log value\",DataLog!AE896,\"\")","v":""},{"$f":"IF(DataLog!$C896=\"Log value\",DataLog!AF896,\"\")","v":""},{"$f":"IF(DataLog!$C896=\"Log value\",DataLog!AG896,\"\")","v":""},{"$f":"IF(DataLog!$C896=\"Log value\",DataLog!AH896,\"\")","v":""},{"$f":"IF(DataLog!$C896=\"Log value\",DataLog!AI896,\"\")","v":""},{"$f":"IF(DataLog!$C896=\"Log value\",DataLog!AJ896,\"\")","v":""},{"$f":"IF(DataLog!$C896=\"Log value\",DataLog!AK896,\"\")","v":""},{"$f":"IF(DataLog!$C896=\"Log value\",DataLog!AL896,\"\")","v":""},{"$f":"IF(DataLog!$C896=\"Log value\",DataLog!AM896,\"\")","v":""}]
[null,null,null,null,null,null,{"$f":"IF(DataLog!$C897=\"Log value\",DataLog!D897&\"_\"&TEXT(DataLog!B897,\"åååå-mm-dd\"),\"\")","v":""},{"$f":"IF(DataLog!$C897=\"Log value\",DataLog!E897,\"\")","v":""},{"$f":"IF(DataLog!$C897=\"Log value\",DataLog!F897,\"\")","v":""},{"$f":"IF(DataLog!$C897=\"Log value\",DataLog!G897,\"\")","v":""},{"$f":"IF(DataLog!$C897=\"Log value\",DataLog!H897,\"\")","v":""},{"$f":"IF(DataLog!$C897=\"Log value\",DataLog!I897,\"\")","v":""},{"$f":"IF(DataLog!$C897=\"Log value\",DataLog!J897,\"\")","v":""},{"$f":"IF(DataLog!$C897=\"Log value\",DataLog!K897,\"\")","v":""},{"$f":"IF(DataLog!$C897=\"Log value\",DataLog!L897,\"\")","v":""},{"$f":"IF(DataLog!$C897=\"Log value\",DataLog!M897,\"\")","v":""},{"$f":"IF(DataLog!$C897=\"Log value\",DataLog!N897,\"\")","v":""},{"$f":"IF(DataLog!$C897=\"Log value\",DataLog!O897,\"\")","v":""},{"$f":"IF(DataLog!$C897=\"Log value\",DataLog!P897,\"\")","v":""},{"$f":"IF(DataLog!$C897=\"Log value\",DataLog!Q897,\"\")","v":""},{"$f":"IF(DataLog!$C897=\"Log value\",DataLog!R897,\"\")","v":""},{"$f":"IF(DataLog!$C897=\"Log value\",DataLog!S897,\"\")","v":""},{"$f":"IF(DataLog!$C897=\"Log value\",DataLog!T897,\"\")","v":""},{"$f":"IF(DataLog!$C897=\"Log value\",DataLog!U897,\"\")","v":""},{"$f":"IF(DataLog!$C897=\"Log value\",DataLog!V897,\"\")","v":""},{"$f":"IF(DataLog!$C897=\"Log value\",DataLog!W897,\"\")","v":""},{"$f":"IF(DataLog!$C897=\"Log value\",DataLog!X897,\"\")","v":""},{"$f":"IF(DataLog!$C897=\"Log value\",DataLog!Y897,\"\")","v":""},{"$f":"IF(DataLog!$C897=\"Log value\",DataLog!Z897,\"\")","v":""},{"$f":"IF(DataLog!$C897=\"Log value\",DataLog!AA897,\"\")","v":""},{"$f":"IF(DataLog!$C897=\"Log value\",DataLog!AB897,\"\")","v":""},{"$f":"IF(DataLog!$C897=\"Log value\",DataLog!AC897,\"\")","v":""},{"$f":"IF(DataLog!$C897=\"Log value\",DataLog!AD897,\"\")","v":""},{"$f":"IF(DataLog!$C897=\"Log value\",DataLog!AE897,\"\")","v":""},{"$f":"IF(DataLog!$C897=\"Log value\",DataLog!AF897,\"\")","v":""},{"$f":"IF(DataLog!$C897=\"Log value\",DataLog!AG897,\"\")","v":""},{"$f":"IF(DataLog!$C897=\"Log value\",DataLog!AH897,\"\")","v":""},{"$f":"IF(DataLog!$C897=\"Log value\",DataLog!AI897,\"\")","v":""},{"$f":"IF(DataLog!$C897=\"Log value\",DataLog!AJ897,\"\")","v":""},{"$f":"IF(DataLog!$C897=\"Log value\",DataLog!AK897,\"\")","v":""},{"$f":"IF(DataLog!$C897=\"Log value\",DataLog!AL897,\"\")","v":""},{"$f":"IF(DataLog!$C897=\"Log value\",DataLog!AM897,\"\")","v":""}]
[null,null,null,null,null,null,{"$f":"IF(DataLog!$C898=\"Log value\",DataLog!D898&\"_\"&TEXT(DataLog!B898,\"åååå-mm-dd\"),\"\")","v":""},{"$f":"IF(DataLog!$C898=\"Log value\",DataLog!E898,\"\")","v":""},{"$f":"IF(DataLog!$C898=\"Log value\",DataLog!F898,\"\")","v":""},{"$f":"IF(DataLog!$C898=\"Log value\",DataLog!G898,\"\")","v":""},{"$f":"IF(DataLog!$C898=\"Log value\",DataLog!H898,\"\")","v":""},{"$f":"IF(DataLog!$C898=\"Log value\",DataLog!I898,\"\")","v":""},{"$f":"IF(DataLog!$C898=\"Log value\",DataLog!J898,\"\")","v":""},{"$f":"IF(DataLog!$C898=\"Log value\",DataLog!K898,\"\")","v":""},{"$f":"IF(DataLog!$C898=\"Log value\",DataLog!L898,\"\")","v":""},{"$f":"IF(DataLog!$C898=\"Log value\",DataLog!M898,\"\")","v":""},{"$f":"IF(DataLog!$C898=\"Log value\",DataLog!N898,\"\")","v":""},{"$f":"IF(DataLog!$C898=\"Log value\",DataLog!O898,\"\")","v":""},{"$f":"IF(DataLog!$C898=\"Log value\",DataLog!P898,\"\")","v":""},{"$f":"IF(DataLog!$C898=\"Log value\",DataLog!Q898,\"\")","v":""},{"$f":"IF(DataLog!$C898=\"Log value\",DataLog!R898,\"\")","v":""},{"$f":"IF(DataLog!$C898=\"Log value\",DataLog!S898,\"\")","v":""},{"$f":"IF(DataLog!$C898=\"Log value\",DataLog!T898,\"\")","v":""},{"$f":"IF(DataLog!$C898=\"Log value\",DataLog!U898,\"\")","v":""},{"$f":"IF(DataLog!$C898=\"Log value\",DataLog!V898,\"\")","v":""},{"$f":"IF(DataLog!$C898=\"Log value\",DataLog!W898,\"\")","v":""},{"$f":"IF(DataLog!$C898=\"Log value\",DataLog!X898,\"\")","v":""},{"$f":"IF(DataLog!$C898=\"Log value\",DataLog!Y898,\"\")","v":""},{"$f":"IF(DataLog!$C898=\"Log value\",DataLog!Z898,\"\")","v":""},{"$f":"IF(DataLog!$C898=\"Log value\",DataLog!AA898,\"\")","v":""},{"$f":"IF(DataLog!$C898=\"Log value\",DataLog!AB898,\"\")","v":""},{"$f":"IF(DataLog!$C898=\"Log value\",DataLog!AC898,\"\")","v":""},{"$f":"IF(DataLog!$C898=\"Log value\",DataLog!AD898,\"\")","v":""},{"$f":"IF(DataLog!$C898=\"Log value\",DataLog!AE898,\"\")","v":""},{"$f":"IF(DataLog!$C898=\"Log value\",DataLog!AF898,\"\")","v":""},{"$f":"IF(DataLog!$C898=\"Log value\",DataLog!AG898,\"\")","v":""},{"$f":"IF(DataLog!$C898=\"Log value\",DataLog!AH898,\"\")","v":""},{"$f":"IF(DataLog!$C898=\"Log value\",DataLog!AI898,\"\")","v":""},{"$f":"IF(DataLog!$C898=\"Log value\",DataLog!AJ898,\"\")","v":""},{"$f":"IF(DataLog!$C898=\"Log value\",DataLog!AK898,\"\")","v":""},{"$f":"IF(DataLog!$C898=\"Log value\",DataLog!AL898,\"\")","v":""},{"$f":"IF(DataLog!$C898=\"Log value\",DataLog!AM898,\"\")","v":""}]
[null,null,null,null,null,null,{"$f":"IF(DataLog!$C899=\"Log value\",DataLog!D899&\"_\"&TEXT(DataLog!B899,\"åååå-mm-dd\"),\"\")","v":""},{"$f":"IF(DataLog!$C899=\"Log value\",DataLog!E899,\"\")","v":""},{"$f":"IF(DataLog!$C899=\"Log value\",DataLog!F899,\"\")","v":""},{"$f":"IF(DataLog!$C899=\"Log value\",DataLog!G899,\"\")","v":""},{"$f":"IF(DataLog!$C899=\"Log value\",DataLog!H899,\"\")","v":""},{"$f":"IF(DataLog!$C899=\"Log value\",DataLog!I899,\"\")","v":""},{"$f":"IF(DataLog!$C899=\"Log value\",DataLog!J899,\"\")","v":""},{"$f":"IF(DataLog!$C899=\"Log value\",DataLog!K899,\"\")","v":""},{"$f":"IF(DataLog!$C899=\"Log value\",DataLog!L899,\"\")","v":""},{"$f":"IF(DataLog!$C899=\"Log value\",DataLog!M899,\"\")","v":""},{"$f":"IF(DataLog!$C899=\"Log value\",DataLog!N899,\"\")","v":""},{"$f":"IF(DataLog!$C899=\"Log value\",DataLog!O899,\"\")","v":""},{"$f":"IF(DataLog!$C899=\"Log value\",DataLog!P899,\"\")","v":""},{"$f":"IF(DataLog!$C899=\"Log value\",DataLog!Q899,\"\")","v":""},{"$f":"IF(DataLog!$C899=\"Log value\",DataLog!R899,\"\")","v":""},{"$f":"IF(DataLog!$C899=\"Log value\",DataLog!S899,\"\")","v":""},{"$f":"IF(DataLog!$C899=\"Log value\",DataLog!T899,\"\")","v":""},{"$f":"IF(DataLog!$C899=\"Log value\",DataLog!U899,\"\")","v":""},{"$f":"IF(DataLog!$C899=\"Log value\",DataLog!V899,\"\")","v":""},{"$f":"IF(DataLog!$C899=\"Log value\",DataLog!W899,\"\")","v":""},{"$f":"IF(DataLog!$C899=\"Log value\",DataLog!X899,\"\")","v":""},{"$f":"IF(DataLog!$C899=\"Log value\",DataLog!Y899,\"\")","v":""},{"$f":"IF(DataLog!$C899=\"Log value\",DataLog!Z899,\"\")","v":""},{"$f":"IF(DataLog!$C899=\"Log value\",DataLog!AA899,\"\")","v":""},{"$f":"IF(DataLog!$C899=\"Log value\",DataLog!AB899,\"\")","v":""},{"$f":"IF(DataLog!$C899=\"Log value\",DataLog!AC899,\"\")","v":""},{"$f":"IF(DataLog!$C899=\"Log value\",DataLog!AD899,\"\")","v":""},{"$f":"IF(DataLog!$C899=\"Log value\",DataLog!AE899,\"\")","v":""},{"$f":"IF(DataLog!$C899=\"Log value\",DataLog!AF899,\"\")","v":""},{"$f":"IF(DataLog!$C899=\"Log value\",DataLog!AG899,\"\")","v":""},{"$f":"IF(DataLog!$C899=\"Log value\",DataLog!AH899,\"\")","v":""},{"$f":"IF(DataLog!$C899=\"Log value\",DataLog!AI899,\"\")","v":""},{"$f":"IF(DataLog!$C899=\"Log value\",DataLog!AJ899,\"\")","v":""},{"$f":"IF(DataLog!$C899=\"Log value\",DataLog!AK899,\"\")","v":""},{"$f":"IF(DataLog!$C899=\"Log value\",DataLog!AL899,\"\")","v":""},{"$f":"IF(DataLog!$C899=\"Log value\",DataLog!AM899,\"\")","v":""}]
[null,null,null,null,null,null,{"$f":"IF(DataLog!$C900=\"Log value\",DataLog!D900&\"_\"&TEXT(DataLog!B900,\"åååå-mm-dd\"),\"\")","v":""},{"$f":"IF(DataLog!$C900=\"Log value\",DataLog!E900,\"\")","v":""},{"$f":"IF(DataLog!$C900=\"Log value\",DataLog!F900,\"\")","v":""},{"$f":"IF(DataLog!$C900=\"Log value\",DataLog!G900,\"\")","v":""},{"$f":"IF(DataLog!$C900=\"Log value\",DataLog!H900,\"\")","v":""},{"$f":"IF(DataLog!$C900=\"Log value\",DataLog!I900,\"\")","v":""},{"$f":"IF(DataLog!$C900=\"Log value\",DataLog!J900,\"\")","v":""},{"$f":"IF(DataLog!$C900=\"Log value\",DataLog!K900,\"\")","v":""},{"$f":"IF(DataLog!$C900=\"Log value\",DataLog!L900,\"\")","v":""},{"$f":"IF(DataLog!$C900=\"Log value\",DataLog!M900,\"\")","v":""},{"$f":"IF(DataLog!$C900=\"Log value\",DataLog!N900,\"\")","v":""},{"$f":"IF(DataLog!$C900=\"Log value\",DataLog!O900,\"\")","v":""},{"$f":"IF(DataLog!$C900=\"Log value\",DataLog!P900,\"\")","v":""},{"$f":"IF(DataLog!$C900=\"Log value\",DataLog!Q900,\"\")","v":""},{"$f":"IF(DataLog!$C900=\"Log value\",DataLog!R900,\"\")","v":""},{"$f":"IF(DataLog!$C900=\"Log value\",DataLog!S900,\"\")","v":""},{"$f":"IF(DataLog!$C900=\"Log value\",DataLog!T900,\"\")","v":""},{"$f":"IF(DataLog!$C900=\"Log value\",DataLog!U900,\"\")","v":""},{"$f":"IF(DataLog!$C900=\"Log value\",DataLog!V900,\"\")","v":""},{"$f":"IF(DataLog!$C900=\"Log value\",DataLog!W900,\"\")","v":""},{"$f":"IF(DataLog!$C900=\"Log value\",DataLog!X900,\"\")","v":""},{"$f":"IF(DataLog!$C900=\"Log value\",DataLog!Y900,\"\")","v":""},{"$f":"IF(DataLog!$C900=\"Log value\",DataLog!Z900,\"\")","v":""},{"$f":"IF(DataLog!$C900=\"Log value\",DataLog!AA900,\"\")","v":""},{"$f":"IF(DataLog!$C900=\"Log value\",DataLog!AB900,\"\")","v":""},{"$f":"IF(DataLog!$C900=\"Log value\",DataLog!AC900,\"\")","v":""},{"$f":"IF(DataLog!$C900=\"Log value\",DataLog!AD900,\"\")","v":""},{"$f":"IF(DataLog!$C900=\"Log value\",DataLog!AE900,\"\")","v":""},{"$f":"IF(DataLog!$C900=\"Log value\",DataLog!AF900,\"\")","v":""},{"$f":"IF(DataLog!$C900=\"Log value\",DataLog!AG900,\"\")","v":""},{"$f":"IF(DataLog!$C900=\"Log value\",DataLog!AH900,\"\")","v":""},{"$f":"IF(DataLog!$C900=\"Log value\",DataLog!AI900,\"\")","v":""},{"$f":"IF(DataLog!$C900=\"Log value\",DataLog!AJ900,\"\")","v":""},{"$f":"IF(DataLog!$C900=\"Log value\",DataLog!AK900,\"\")","v":""},{"$f":"IF(DataLog!$C900=\"Log value\",DataLog!AL900,\"\")","v":""},{"$f":"IF(DataLog!$C900=\"Log value\",DataLog!AM900,\"\")","v":""}]
[null,null,null,null,null,null,{"$f":"IF(DataLog!$C901=\"Log value\",DataLog!D901&\"_\"&TEXT(DataLog!B901,\"åååå-mm-dd\"),\"\")","v":""},{"$f":"IF(DataLog!$C901=\"Log value\",DataLog!E901,\"\")","v":""},{"$f":"IF(DataLog!$C901=\"Log value\",DataLog!F901,\"\")","v":""},{"$f":"IF(DataLog!$C901=\"Log value\",DataLog!G901,\"\")","v":""},{"$f":"IF(DataLog!$C901=\"Log value\",DataLog!H901,\"\")","v":""},{"$f":"IF(DataLog!$C901=\"Log value\",DataLog!I901,\"\")","v":""},{"$f":"IF(DataLog!$C901=\"Log value\",DataLog!J901,\"\")","v":""},{"$f":"IF(DataLog!$C901=\"Log value\",DataLog!K901,\"\")","v":""},{"$f":"IF(DataLog!$C901=\"Log value\",DataLog!L901,\"\")","v":""},{"$f":"IF(DataLog!$C901=\"Log value\",DataLog!M901,\"\")","v":""},{"$f":"IF(DataLog!$C901=\"Log value\",DataLog!N901,\"\")","v":""},{"$f":"IF(DataLog!$C901=\"Log value\",DataLog!O901,\"\")","v":""},{"$f":"IF(DataLog!$C901=\"Log value\",DataLog!P901,\"\")","v":""},{"$f":"IF(DataLog!$C901=\"Log value\",DataLog!Q901,\"\")","v":""},{"$f":"IF(DataLog!$C901=\"Log value\",DataLog!R901,\"\")","v":""},{"$f":"IF(DataLog!$C901=\"Log value\",DataLog!S901,\"\")","v":""},{"$f":"IF(DataLog!$C901=\"Log value\",DataLog!T901,\"\")","v":""},{"$f":"IF(DataLog!$C901=\"Log value\",DataLog!U901,\"\")","v":""},{"$f":"IF(DataLog!$C901=\"Log value\",DataLog!V901,\"\")","v":""},{"$f":"IF(DataLog!$C901=\"Log value\",DataLog!W901,\"\")","v":""},{"$f":"IF(DataLog!$C901=\"Log value\",DataLog!X901,\"\")","v":""},{"$f":"IF(DataLog!$C901=\"Log value\",DataLog!Y901,\"\")","v":""},{"$f":"IF(DataLog!$C901=\"Log value\",DataLog!Z901,\"\")","v":""},{"$f":"IF(DataLog!$C901=\"Log value\",DataLog!AA901,\"\")","v":""},{"$f":"IF(DataLog!$C901=\"Log value\",DataLog!AB901,\"\")","v":""},{"$f":"IF(DataLog!$C901=\"Log value\",DataLog!AC901,\"\")","v":""},{"$f":"IF(DataLog!$C901=\"Log value\",DataLog!AD901,\"\")","v":""},{"$f":"IF(DataLog!$C901=\"Log value\",DataLog!AE901,\"\")","v":""},{"$f":"IF(DataLog!$C901=\"Log value\",DataLog!AF901,\"\")","v":""},{"$f":"IF(DataLog!$C901=\"Log value\",DataLog!AG901,\"\")","v":""},{"$f":"IF(DataLog!$C901=\"Log value\",DataLog!AH901,\"\")","v":""},{"$f":"IF(DataLog!$C901=\"Log value\",DataLog!AI901,\"\")","v":""},{"$f":"IF(DataLog!$C901=\"Log value\",DataLog!AJ901,\"\")","v":""},{"$f":"IF(DataLog!$C901=\"Log value\",DataLog!AK901,\"\")","v":""},{"$f":"IF(DataLog!$C901=\"Log value\",DataLog!AL901,\"\")","v":""},{"$f":"IF(DataLog!$C901=\"Log value\",DataLog!AM901,\"\")","v":""}]
[null,null,null,null,null,null,{"$f":"IF(DataLog!$C902=\"Log value\",DataLog!D902&\"_\"&TEXT(DataLog!B902,\"åååå-mm-dd\"),\"\")","v":""},{"$f":"IF(DataLog!$C902=\"Log value\",DataLog!E902,\"\")","v":""},{"$f":"IF(DataLog!$C902=\"Log value\",DataLog!F902,\"\")","v":""},{"$f":"IF(DataLog!$C902=\"Log value\",DataLog!G902,\"\")","v":""},{"$f":"IF(DataLog!$C902=\"Log value\",DataLog!H902,\"\")","v":""},{"$f":"IF(DataLog!$C902=\"Log value\",DataLog!I902,\"\")","v":""},{"$f":"IF(DataLog!$C902=\"Log value\",DataLog!J902,\"\")","v":""},{"$f":"IF(DataLog!$C902=\"Log value\",DataLog!K902,\"\")","v":""},{"$f":"IF(DataLog!$C902=\"Log value\",DataLog!L902,\"\")","v":""},{"$f":"IF(DataLog!$C902=\"Log value\",DataLog!M902,\"\")","v":""},{"$f":"IF(DataLog!$C902=\"Log value\",DataLog!N902,\"\")","v":""},{"$f":"IF(DataLog!$C902=\"Log value\",DataLog!O902,\"\")","v":""},{"$f":"IF(DataLog!$C902=\"Log value\",DataLog!P902,\"\")","v":""},{"$f":"IF(DataLog!$C902=\"Log value\",DataLog!Q902,\"\")","v":""},{"$f":"IF(DataLog!$C902=\"Log value\",DataLog!R902,\"\")","v":""},{"$f":"IF(DataLog!$C902=\"Log value\",DataLog!S902,\"\")","v":""},{"$f":"IF(DataLog!$C902=\"Log value\",DataLog!T902,\"\")","v":""},{"$f":"IF(DataLog!$C902=\"Log value\",DataLog!U902,\"\")","v":""},{"$f":"IF(DataLog!$C902=\"Log value\",DataLog!V902,\"\")","v":""},{"$f":"IF(DataLog!$C902=\"Log value\",DataLog!W902,\"\")","v":""},{"$f":"IF(DataLog!$C902=\"Log value\",DataLog!X902,\"\")","v":""},{"$f":"IF(DataLog!$C902=\"Log value\",DataLog!Y902,\"\")","v":""},{"$f":"IF(DataLog!$C902=\"Log value\",DataLog!Z902,\"\")","v":""},{"$f":"IF(DataLog!$C902=\"Log value\",DataLog!AA902,\"\")","v":""},{"$f":"IF(DataLog!$C902=\"Log value\",DataLog!AB902,\"\")","v":""},{"$f":"IF(DataLog!$C902=\"Log value\",DataLog!AC902,\"\")","v":""},{"$f":"IF(DataLog!$C902=\"Log value\",DataLog!AD902,\"\")","v":""},{"$f":"IF(DataLog!$C902=\"Log value\",DataLog!AE902,\"\")","v":""},{"$f":"IF(DataLog!$C902=\"Log value\",DataLog!AF902,\"\")","v":""},{"$f":"IF(DataLog!$C902=\"Log value\",DataLog!AG902,\"\")","v":""},{"$f":"IF(DataLog!$C902=\"Log value\",DataLog!AH902,\"\")","v":""},{"$f":"IF(DataLog!$C902=\"Log value\",DataLog!AI902,\"\")","v":""},{"$f":"IF(DataLog!$C902=\"Log value\",DataLog!AJ902,\"\")","v":""},{"$f":"IF(DataLog!$C902=\"Log value\",DataLog!AK902,\"\")","v":""},{"$f":"IF(DataLog!$C902=\"Log value\",DataLog!AL902,\"\")","v":""},{"$f":"IF(DataLog!$C902=\"Log value\",DataLog!AM902,\"\")","v":""}]
[null,null,null,null,null,null,{"$f":"IF(DataLog!$C903=\"Log value\",DataLog!D903&\"_\"&TEXT(DataLog!B903,\"åååå-mm-dd\"),\"\")","v":""},{"$f":"IF(DataLog!$C903=\"Log value\",DataLog!E903,\"\")","v":""},{"$f":"IF(DataLog!$C903=\"Log value\",DataLog!F903,\"\")","v":""},{"$f":"IF(DataLog!$C903=\"Log value\",DataLog!G903,\"\")","v":""},{"$f":"IF(DataLog!$C903=\"Log value\",DataLog!H903,\"\")","v":""},{"$f":"IF(DataLog!$C903=\"Log value\",DataLog!I903,\"\")","v":""},{"$f":"IF(DataLog!$C903=\"Log value\",DataLog!J903,\"\")","v":""},{"$f":"IF(DataLog!$C903=\"Log value\",DataLog!K903,\"\")","v":""},{"$f":"IF(DataLog!$C903=\"Log value\",DataLog!L903,\"\")","v":""},{"$f":"IF(DataLog!$C903=\"Log value\",DataLog!M903,\"\")","v":""},{"$f":"IF(DataLog!$C903=\"Log value\",DataLog!N903,\"\")","v":""},{"$f":"IF(DataLog!$C903=\"Log value\",DataLog!O903,\"\")","v":""},{"$f":"IF(DataLog!$C903=\"Log value\",DataLog!P903,\"\")","v":""},{"$f":"IF(DataLog!$C903=\"Log value\",DataLog!Q903,\"\")","v":""},{"$f":"IF(DataLog!$C903=\"Log value\",DataLog!R903,\"\")","v":""},{"$f":"IF(DataLog!$C903=\"Log value\",DataLog!S903,\"\")","v":""},{"$f":"IF(DataLog!$C903=\"Log value\",DataLog!T903,\"\")","v":""},{"$f":"IF(DataLog!$C903=\"Log value\",DataLog!U903,\"\")","v":""},{"$f":"IF(DataLog!$C903=\"Log value\",DataLog!V903,\"\")","v":""},{"$f":"IF(DataLog!$C903=\"Log value\",DataLog!W903,\"\")","v":""},{"$f":"IF(DataLog!$C903=\"Log value\",DataLog!X903,\"\")","v":""},{"$f":"IF(DataLog!$C903=\"Log value\",DataLog!Y903,\"\")","v":""},{"$f":"IF(DataLog!$C903=\"Log value\",DataLog!Z903,\"\")","v":""},{"$f":"IF(DataLog!$C903=\"Log value\",DataLog!AA903,\"\")","v":""},{"$f":"IF(DataLog!$C903=\"Log value\",DataLog!AB903,\"\")","v":""},{"$f":"IF(DataLog!$C903=\"Log value\",DataLog!AC903,\"\")","v":""},{"$f":"IF(DataLog!$C903=\"Log value\",DataLog!AD903,\"\")","v":""},{"$f":"IF(DataLog!$C903=\"Log value\",DataLog!AE903,\"\")","v":""},{"$f":"IF(DataLog!$C903=\"Log value\",DataLog!AF903,\"\")","v":""},{"$f":"IF(DataLog!$C903=\"Log value\",DataLog!AG903,\"\")","v":""},{"$f":"IF(DataLog!$C903=\"Log value\",DataLog!AH903,\"\")","v":""},{"$f":"IF(DataLog!$C903=\"Log value\",DataLog!AI903,\"\")","v":""},{"$f":"IF(DataLog!$C903=\"Log value\",DataLog!AJ903,\"\")","v":""},{"$f":"IF(DataLog!$C903=\"Log value\",DataLog!AK903,\"\")","v":""},{"$f":"IF(DataLog!$C903=\"Log value\",DataLog!AL903,\"\")","v":""},{"$f":"IF(DataLog!$C903=\"Log value\",DataLog!AM903,\"\")","v":""}]
[null,null,null,null,null,null,{"$f":"IF(DataLog!$C904=\"Log value\",DataLog!D904&\"_\"&TEXT(DataLog!B904,\"åååå-mm-dd\"),\"\")","v":""},{"$f":"IF(DataLog!$C904=\"Log value\",DataLog!E904,\"\")","v":""},{"$f":"IF(DataLog!$C904=\"Log value\",DataLog!F904,\"\")","v":""},{"$f":"IF(DataLog!$C904=\"Log value\",DataLog!G904,\"\")","v":""},{"$f":"IF(DataLog!$C904=\"Log value\",DataLog!H904,\"\")","v":""},{"$f":"IF(DataLog!$C904=\"Log value\",DataLog!I904,\"\")","v":""},{"$f":"IF(DataLog!$C904=\"Log value\",DataLog!J904,\"\")","v":""},{"$f":"IF(DataLog!$C904=\"Log value\",DataLog!K904,\"\")","v":""},{"$f":"IF(DataLog!$C904=\"Log value\",DataLog!L904,\"\")","v":""},{"$f":"IF(DataLog!$C904=\"Log value\",DataLog!M904,\"\")","v":""},{"$f":"IF(DataLog!$C904=\"Log value\",DataLog!N904,\"\")","v":""},{"$f":"IF(DataLog!$C904=\"Log value\",DataLog!O904,\"\")","v":""},{"$f":"IF(DataLog!$C904=\"Log value\",DataLog!P904,\"\")","v":""},{"$f":"IF(DataLog!$C904=\"Log value\",DataLog!Q904,\"\")","v":""},{"$f":"IF(DataLog!$C904=\"Log value\",DataLog!R904,\"\")","v":""},{"$f":"IF(DataLog!$C904=\"Log value\",DataLog!S904,\"\")","v":""},{"$f":"IF(DataLog!$C904=\"Log value\",DataLog!T904,\"\")","v":""},{"$f":"IF(DataLog!$C904=\"Log value\",DataLog!U904,\"\")","v":""},{"$f":"IF(DataLog!$C904=\"Log value\",DataLog!V904,\"\")","v":""},{"$f":"IF(DataLog!$C904=\"Log value\",DataLog!W904,\"\")","v":""},{"$f":"IF(DataLog!$C904=\"Log value\",DataLog!X904,\"\")","v":""},{"$f":"IF(DataLog!$C904=\"Log value\",DataLog!Y904,\"\")","v":""},{"$f":"IF(DataLog!$C904=\"Log value\",DataLog!Z904,\"\")","v":""},{"$f":"IF(DataLog!$C904=\"Log value\",DataLog!AA904,\"\")","v":""},{"$f":"IF(DataLog!$C904=\"Log value\",DataLog!AB904,\"\")","v":""},{"$f":"IF(DataLog!$C904=\"Log value\",DataLog!AC904,\"\")","v":""},{"$f":"IF(DataLog!$C904=\"Log value\",DataLog!AD904,\"\")","v":""},{"$f":"IF(DataLog!$C904=\"Log value\",DataLog!AE904,\"\")","v":""},{"$f":"IF(DataLog!$C904=\"Log value\",DataLog!AF904,\"\")","v":""},{"$f":"IF(DataLog!$C904=\"Log value\",DataLog!AG904,\"\")","v":""},{"$f":"IF(DataLog!$C904=\"Log value\",DataLog!AH904,\"\")","v":""},{"$f":"IF(DataLog!$C904=\"Log value\",DataLog!AI904,\"\")","v":""},{"$f":"IF(DataLog!$C904=\"Log value\",DataLog!AJ904,\"\")","v":""},{"$f":"IF(DataLog!$C904=\"Log value\",DataLog!AK904,\"\")","v":""},{"$f":"IF(DataLog!$C904=\"Log value\",DataLog!AL904,\"\")","v":""},{"$f":"IF(DataLog!$C904=\"Log value\",DataLog!AM904,\"\")","v":""}]
[null,null,null,null,null,null,{"$f":"IF(DataLog!$C905=\"Log value\",DataLog!D905&\"_\"&TEXT(DataLog!B905,\"åååå-mm-dd\"),\"\")","v":""},{"$f":"IF(DataLog!$C905=\"Log value\",DataLog!E905,\"\")","v":""},{"$f":"IF(DataLog!$C905=\"Log value\",DataLog!F905,\"\")","v":""},{"$f":"IF(DataLog!$C905=\"Log value\",DataLog!G905,\"\")","v":""},{"$f":"IF(DataLog!$C905=\"Log value\",DataLog!H905,\"\")","v":""},{"$f":"IF(DataLog!$C905=\"Log value\",DataLog!I905,\"\")","v":""},{"$f":"IF(DataLog!$C905=\"Log value\",DataLog!J905,\"\")","v":""},{"$f":"IF(DataLog!$C905=\"Log value\",DataLog!K905,\"\")","v":""},{"$f":"IF(DataLog!$C905=\"Log value\",DataLog!L905,\"\")","v":""},{"$f":"IF(DataLog!$C905=\"Log value\",DataLog!M905,\"\")","v":""},{"$f":"IF(DataLog!$C905=\"Log value\",DataLog!N905,\"\")","v":""},{"$f":"IF(DataLog!$C905=\"Log value\",DataLog!O905,\"\")","v":""},{"$f":"IF(DataLog!$C905=\"Log value\",DataLog!P905,\"\")","v":""},{"$f":"IF(DataLog!$C905=\"Log value\",DataLog!Q905,\"\")","v":""},{"$f":"IF(DataLog!$C905=\"Log value\",DataLog!R905,\"\")","v":""},{"$f":"IF(DataLog!$C905=\"Log value\",DataLog!S905,\"\")","v":""},{"$f":"IF(DataLog!$C905=\"Log value\",DataLog!T905,\"\")","v":""},{"$f":"IF(DataLog!$C905=\"Log value\",DataLog!U905,\"\")","v":""},{"$f":"IF(DataLog!$C905=\"Log value\",DataLog!V905,\"\")","v":""},{"$f":"IF(DataLog!$C905=\"Log value\",DataLog!W905,\"\")","v":""},{"$f":"IF(DataLog!$C905=\"Log value\",DataLog!X905,\"\")","v":""},{"$f":"IF(DataLog!$C905=\"Log value\",DataLog!Y905,\"\")","v":""},{"$f":"IF(DataLog!$C905=\"Log value\",DataLog!Z905,\"\")","v":""},{"$f":"IF(DataLog!$C905=\"Log value\",DataLog!AA905,\"\")","v":""},{"$f":"IF(DataLog!$C905=\"Log value\",DataLog!AB905,\"\")","v":""},{"$f":"IF(DataLog!$C905=\"Log value\",DataLog!AC905,\"\")","v":""},{"$f":"IF(DataLog!$C905=\"Log value\",DataLog!AD905,\"\")","v":""},{"$f":"IF(DataLog!$C905=\"Log value\",DataLog!AE905,\"\")","v":""},{"$f":"IF(DataLog!$C905=\"Log value\",DataLog!AF905,\"\")","v":""},{"$f":"IF(DataLog!$C905=\"Log value\",DataLog!AG905,\"\")","v":""},{"$f":"IF(DataLog!$C905=\"Log value\",DataLog!AH905,\"\")","v":""},{"$f":"IF(DataLog!$C905=\"Log value\",DataLog!AI905,\"\")","v":""},{"$f":"IF(DataLog!$C905=\"Log value\",DataLog!AJ905,\"\")","v":""},{"$f":"IF(DataLog!$C905=\"Log value\",DataLog!AK905,\"\")","v":""},{"$f":"IF(DataLog!$C905=\"Log value\",DataLog!AL905,\"\")","v":""},{"$f":"IF(DataLog!$C905=\"Log value\",DataLog!AM905,\"\")","v":""}]
[null,null,null,null,null,null,{"$f":"IF(DataLog!$C906=\"Log value\",DataLog!D906&\"_\"&TEXT(DataLog!B906,\"åååå-mm-dd\"),\"\")","v":""},{"$f":"IF(DataLog!$C906=\"Log value\",DataLog!E906,\"\")","v":""},{"$f":"IF(DataLog!$C906=\"Log value\",DataLog!F906,\"\")","v":""},{"$f":"IF(DataLog!$C906=\"Log value\",DataLog!G906,\"\")","v":""},{"$f":"IF(DataLog!$C906=\"Log value\",DataLog!H906,\"\")","v":""},{"$f":"IF(DataLog!$C906=\"Log value\",DataLog!I906,\"\")","v":""},{"$f":"IF(DataLog!$C906=\"Log value\",DataLog!J906,\"\")","v":""},{"$f":"IF(DataLog!$C906=\"Log value\",DataLog!K906,\"\")","v":""},{"$f":"IF(DataLog!$C906=\"Log value\",DataLog!L906,\"\")","v":""},{"$f":"IF(DataLog!$C906=\"Log value\",DataLog!M906,\"\")","v":""},{"$f":"IF(DataLog!$C906=\"Log value\",DataLog!N906,\"\")","v":""},{"$f":"IF(DataLog!$C906=\"Log value\",DataLog!O906,\"\")","v":""},{"$f":"IF(DataLog!$C906=\"Log value\",DataLog!P906,\"\")","v":""},{"$f":"IF(DataLog!$C906=\"Log value\",DataLog!Q906,\"\")","v":""},{"$f":"IF(DataLog!$C906=\"Log value\",DataLog!R906,\"\")","v":""},{"$f":"IF(DataLog!$C906=\"Log value\",DataLog!S906,\"\")","v":""},{"$f":"IF(DataLog!$C906=\"Log value\",DataLog!T906,\"\")","v":""},{"$f":"IF(DataLog!$C906=\"Log value\",DataLog!U906,\"\")","v":""},{"$f":"IF(DataLog!$C906=\"Log value\",DataLog!V906,\"\")","v":""},{"$f":"IF(DataLog!$C906=\"Log value\",DataLog!W906,\"\")","v":""},{"$f":"IF(DataLog!$C906=\"Log value\",DataLog!X906,\"\")","v":""},{"$f":"IF(DataLog!$C906=\"Log value\",DataLog!Y906,\"\")","v":""},{"$f":"IF(DataLog!$C906=\"Log value\",DataLog!Z906,\"\")","v":""},{"$f":"IF(DataLog!$C906=\"Log value\",DataLog!AA906,\"\")","v":""},{"$f":"IF(DataLog!$C906=\"Log value\",DataLog!AB906,\"\")","v":""},{"$f":"IF(DataLog!$C906=\"Log value\",DataLog!AC906,\"\")","v":""},{"$f":"IF(DataLog!$C906=\"Log value\",DataLog!AD906,\"\")","v":""},{"$f":"IF(DataLog!$C906=\"Log value\",DataLog!AE906,\"\")","v":""},{"$f":"IF(DataLog!$C906=\"Log value\",DataLog!AF906,\"\")","v":""},{"$f":"IF(DataLog!$C906=\"Log value\",DataLog!AG906,\"\")","v":""},{"$f":"IF(DataLog!$C906=\"Log value\",DataLog!AH906,\"\")","v":""},{"$f":"IF(DataLog!$C906=\"Log value\",DataLog!AI906,\"\")","v":""},{"$f":"IF(DataLog!$C906=\"Log value\",DataLog!AJ906,\"\")","v":""},{"$f":"IF(DataLog!$C906=\"Log value\",DataLog!AK906,\"\")","v":""},{"$f":"IF(DataLog!$C906=\"Log value\",DataLog!AL906,\"\")","v":""},{"$f":"IF(DataLog!$C906=\"Log value\",DataLog!AM906,\"\")","v":""}]
[null,null,null,null,null,null,{"$f":"IF(DataLog!$C907=\"Log value\",DataLog!D907&\"_\"&TEXT(DataLog!B907,\"åååå-mm-dd\"),\"\")","v":""},{"$f":"IF(DataLog!$C907=\"Log value\",DataLog!E907,\"\")","v":""},{"$f":"IF(DataLog!$C907=\"Log value\",DataLog!F907,\"\")","v":""},{"$f":"IF(DataLog!$C907=\"Log value\",DataLog!G907,\"\")","v":""},{"$f":"IF(DataLog!$C907=\"Log value\",DataLog!H907,\"\")","v":""},{"$f":"IF(DataLog!$C907=\"Log value\",DataLog!I907,\"\")","v":""},{"$f":"IF(DataLog!$C907=\"Log value\",DataLog!J907,\"\")","v":""},{"$f":"IF(DataLog!$C907=\"Log value\",DataLog!K907,\"\")","v":""},{"$f":"IF(DataLog!$C907=\"Log value\",DataLog!L907,\"\")","v":""},{"$f":"IF(DataLog!$C907=\"Log value\",DataLog!M907,\"\")","v":""},{"$f":"IF(DataLog!$C907=\"Log value\",DataLog!N907,\"\")","v":""},{"$f":"IF(DataLog!$C907=\"Log value\",DataLog!O907,\"\")","v":""},{"$f":"IF(DataLog!$C907=\"Log value\",DataLog!P907,\"\")","v":""},{"$f":"IF(DataLog!$C907=\"Log value\",DataLog!Q907,\"\")","v":""},{"$f":"IF(DataLog!$C907=\"Log value\",DataLog!R907,\"\")","v":""},{"$f":"IF(DataLog!$C907=\"Log value\",DataLog!S907,\"\")","v":""},{"$f":"IF(DataLog!$C907=\"Log value\",DataLog!T907,\"\")","v":""},{"$f":"IF(DataLog!$C907=\"Log value\",DataLog!U907,\"\")","v":""},{"$f":"IF(DataLog!$C907=\"Log value\",DataLog!V907,\"\")","v":""},{"$f":"IF(DataLog!$C907=\"Log value\",DataLog!W907,\"\")","v":""},{"$f":"IF(DataLog!$C907=\"Log value\",DataLog!X907,\"\")","v":""},{"$f":"IF(DataLog!$C907=\"Log value\",DataLog!Y907,\"\")","v":""},{"$f":"IF(DataLog!$C907=\"Log value\",DataLog!Z907,\"\")","v":""},{"$f":"IF(DataLog!$C907=\"Log value\",DataLog!AA907,\"\")","v":""},{"$f":"IF(DataLog!$C907=\"Log value\",DataLog!AB907,\"\")","v":""},{"$f":"IF(DataLog!$C907=\"Log value\",DataLog!AC907,\"\")","v":""},{"$f":"IF(DataLog!$C907=\"Log value\",DataLog!AD907,\"\")","v":""},{"$f":"IF(DataLog!$C907=\"Log value\",DataLog!AE907,\"\")","v":""},{"$f":"IF(DataLog!$C907=\"Log value\",DataLog!AF907,\"\")","v":""},{"$f":"IF(DataLog!$C907=\"Log value\",DataLog!AG907,\"\")","v":""},{"$f":"IF(DataLog!$C907=\"Log value\",DataLog!AH907,\"\")","v":""},{"$f":"IF(DataLog!$C907=\"Log value\",DataLog!AI907,\"\")","v":""},{"$f":"IF(DataLog!$C907=\"Log value\",DataLog!AJ907,\"\")","v":""},{"$f":"IF(DataLog!$C907=\"Log value\",DataLog!AK907,\"\")","v":""},{"$f":"IF(DataLog!$C907=\"Log value\",DataLog!AL907,\"\")","v":""},{"$f":"IF(DataLog!$C907=\"Log value\",DataLog!AM907,\"\")","v":""}]
[null,null,null,null,null,null,{"$f":"IF(DataLog!$C908=\"Log value\",DataLog!D908&\"_\"&TEXT(DataLog!B908,\"åååå-mm-dd\"),\"\")","v":""},{"$f":"IF(DataLog!$C908=\"Log value\",DataLog!E908,\"\")","v":""},{"$f":"IF(DataLog!$C908=\"Log value\",DataLog!F908,\"\")","v":""},{"$f":"IF(DataLog!$C908=\"Log value\",DataLog!G908,\"\")","v":""},{"$f":"IF(DataLog!$C908=\"Log value\",DataLog!H908,\"\")","v":""},{"$f":"IF(DataLog!$C908=\"Log value\",DataLog!I908,\"\")","v":""},{"$f":"IF(DataLog!$C908=\"Log value\",DataLog!J908,\"\")","v":""},{"$f":"IF(DataLog!$C908=\"Log value\",DataLog!K908,\"\")","v":""},{"$f":"IF(DataLog!$C908=\"Log value\",DataLog!L908,\"\")","v":""},{"$f":"IF(DataLog!$C908=\"Log value\",DataLog!M908,\"\")","v":""},{"$f":"IF(DataLog!$C908=\"Log value\",DataLog!N908,\"\")","v":""},{"$f":"IF(DataLog!$C908=\"Log value\",DataLog!O908,\"\")","v":""},{"$f":"IF(DataLog!$C908=\"Log value\",DataLog!P908,\"\")","v":""},{"$f":"IF(DataLog!$C908=\"Log value\",DataLog!Q908,\"\")","v":""},{"$f":"IF(DataLog!$C908=\"Log value\",DataLog!R908,\"\")","v":""},{"$f":"IF(DataLog!$C908=\"Log value\",DataLog!S908,\"\")","v":""},{"$f":"IF(DataLog!$C908=\"Log value\",DataLog!T908,\"\")","v":""},{"$f":"IF(DataLog!$C908=\"Log value\",DataLog!U908,\"\")","v":""},{"$f":"IF(DataLog!$C908=\"Log value\",DataLog!V908,\"\")","v":""},{"$f":"IF(DataLog!$C908=\"Log value\",DataLog!W908,\"\")","v":""},{"$f":"IF(DataLog!$C908=\"Log value\",DataLog!X908,\"\")","v":""},{"$f":"IF(DataLog!$C908=\"Log value\",DataLog!Y908,\"\")","v":""},{"$f":"IF(DataLog!$C908=\"Log value\",DataLog!Z908,\"\")","v":""},{"$f":"IF(DataLog!$C908=\"Log value\",DataLog!AA908,\"\")","v":""},{"$f":"IF(DataLog!$C908=\"Log value\",DataLog!AB908,\"\")","v":""},{"$f":"IF(DataLog!$C908=\"Log value\",DataLog!AC908,\"\")","v":""},{"$f":"IF(DataLog!$C908=\"Log value\",DataLog!AD908,\"\")","v":""},{"$f":"IF(DataLog!$C908=\"Log value\",DataLog!AE908,\"\")","v":""},{"$f":"IF(DataLog!$C908=\"Log value\",DataLog!AF908,\"\")","v":""},{"$f":"IF(DataLog!$C908=\"Log value\",DataLog!AG908,\"\")","v":""},{"$f":"IF(DataLog!$C908=\"Log value\",DataLog!AH908,\"\")","v":""},{"$f":"IF(DataLog!$C908=\"Log value\",DataLog!AI908,\"\")","v":""},{"$f":"IF(DataLog!$C908=\"Log value\",DataLog!AJ908,\"\")","v":""},{"$f":"IF(DataLog!$C908=\"Log value\",DataLog!AK908,\"\")","v":""},{"$f":"IF(DataLog!$C908=\"Log value\",DataLog!AL908,\"\")","v":""},{"$f":"IF(DataLog!$C908=\"Log value\",DataLog!AM908,\"\")","v":""}]
[null,null,null,null,null,null,{"$f":"IF(DataLog!$C909=\"Log value\",DataLog!D909&\"_\"&TEXT(DataLog!B909,\"åååå-mm-dd\"),\"\")","v":""},{"$f":"IF(DataLog!$C909=\"Log value\",DataLog!E909,\"\")","v":""},{"$f":"IF(DataLog!$C909=\"Log value\",DataLog!F909,\"\")","v":""},{"$f":"IF(DataLog!$C909=\"Log value\",DataLog!G909,\"\")","v":""},{"$f":"IF(DataLog!$C909=\"Log value\",DataLog!H909,\"\")","v":""},{"$f":"IF(DataLog!$C909=\"Log value\",DataLog!I909,\"\")","v":""},{"$f":"IF(DataLog!$C909=\"Log value\",DataLog!J909,\"\")","v":""},{"$f":"IF(DataLog!$C909=\"Log value\",DataLog!K909,\"\")","v":""},{"$f":"IF(DataLog!$C909=\"Log value\",DataLog!L909,\"\")","v":""},{"$f":"IF(DataLog!$C909=\"Log value\",DataLog!M909,\"\")","v":""},{"$f":"IF(DataLog!$C909=\"Log value\",DataLog!N909,\"\")","v":""},{"$f":"IF(DataLog!$C909=\"Log value\",DataLog!O909,\"\")","v":""},{"$f":"IF(DataLog!$C909=\"Log value\",DataLog!P909,\"\")","v":""},{"$f":"IF(DataLog!$C909=\"Log value\",DataLog!Q909,\"\")","v":""},{"$f":"IF(DataLog!$C909=\"Log value\",DataLog!R909,\"\")","v":""},{"$f":"IF(DataLog!$C909=\"Log value\",DataLog!S909,\"\")","v":""},{"$f":"IF(DataLog!$C909=\"Log value\",DataLog!T909,\"\")","v":""},{"$f":"IF(DataLog!$C909=\"Log value\",DataLog!U909,\"\")","v":""},{"$f":"IF(DataLog!$C909=\"Log value\",DataLog!V909,\"\")","v":""},{"$f":"IF(DataLog!$C909=\"Log value\",DataLog!W909,\"\")","v":""},{"$f":"IF(DataLog!$C909=\"Log value\",DataLog!X909,\"\")","v":""},{"$f":"IF(DataLog!$C909=\"Log value\",DataLog!Y909,\"\")","v":""},{"$f":"IF(DataLog!$C909=\"Log value\",DataLog!Z909,\"\")","v":""},{"$f":"IF(DataLog!$C909=\"Log value\",DataLog!AA909,\"\")","v":""},{"$f":"IF(DataLog!$C909=\"Log value\",DataLog!AB909,\"\")","v":""},{"$f":"IF(DataLog!$C909=\"Log value\",DataLog!AC909,\"\")","v":""},{"$f":"IF(DataLog!$C909=\"Log value\",DataLog!AD909,\"\")","v":""},{"$f":"IF(DataLog!$C909=\"Log value\",DataLog!AE909,\"\")","v":""},{"$f":"IF(DataLog!$C909=\"Log value\",DataLog!AF909,\"\")","v":""},{"$f":"IF(DataLog!$C909=\"Log value\",DataLog!AG909,\"\")","v":""},{"$f":"IF(DataLog!$C909=\"Log value\",DataLog!AH909,\"\")","v":""},{"$f":"IF(DataLog!$C909=\"Log value\",DataLog!AI909,\"\")","v":""},{"$f":"IF(DataLog!$C909=\"Log value\",DataLog!AJ909,\"\")","v":""},{"$f":"IF(DataLog!$C909=\"Log value\",DataLog!AK909,\"\")","v":""},{"$f":"IF(DataLog!$C909=\"Log value\",DataLog!AL909,\"\")","v":""},{"$f":"IF(DataLog!$C909=\"Log value\",DataLog!AM909,\"\")","v":""}]
[null,null,null,null,null,null,{"$f":"IF(DataLog!$C910=\"Log value\",DataLog!D910&\"_\"&TEXT(DataLog!B910,\"åååå-mm-dd\"),\"\")","v":""},{"$f":"IF(DataLog!$C910=\"Log value\",DataLog!E910,\"\")","v":""},{"$f":"IF(DataLog!$C910=\"Log value\",DataLog!F910,\"\")","v":""},{"$f":"IF(DataLog!$C910=\"Log value\",DataLog!G910,\"\")","v":""},{"$f":"IF(DataLog!$C910=\"Log value\",DataLog!H910,\"\")","v":""},{"$f":"IF(DataLog!$C910=\"Log value\",DataLog!I910,\"\")","v":""},{"$f":"IF(DataLog!$C910=\"Log value\",DataLog!J910,\"\")","v":""},{"$f":"IF(DataLog!$C910=\"Log value\",DataLog!K910,\"\")","v":""},{"$f":"IF(DataLog!$C910=\"Log value\",DataLog!L910,\"\")","v":""},{"$f":"IF(DataLog!$C910=\"Log value\",DataLog!M910,\"\")","v":""},{"$f":"IF(DataLog!$C910=\"Log value\",DataLog!N910,\"\")","v":""},{"$f":"IF(DataLog!$C910=\"Log value\",DataLog!O910,\"\")","v":""},{"$f":"IF(DataLog!$C910=\"Log value\",DataLog!P910,\"\")","v":""},{"$f":"IF(DataLog!$C910=\"Log value\",DataLog!Q910,\"\")","v":""},{"$f":"IF(DataLog!$C910=\"Log value\",DataLog!R910,\"\")","v":""},{"$f":"IF(DataLog!$C910=\"Log value\",DataLog!S910,\"\")","v":""},{"$f":"IF(DataLog!$C910=\"Log value\",DataLog!T910,\"\")","v":""},{"$f":"IF(DataLog!$C910=\"Log value\",DataLog!U910,\"\")","v":""},{"$f":"IF(DataLog!$C910=\"Log value\",DataLog!V910,\"\")","v":""},{"$f":"IF(DataLog!$C910=\"Log value\",DataLog!W910,\"\")","v":""},{"$f":"IF(DataLog!$C910=\"Log value\",DataLog!X910,\"\")","v":""},{"$f":"IF(DataLog!$C910=\"Log value\",DataLog!Y910,\"\")","v":""},{"$f":"IF(DataLog!$C910=\"Log value\",DataLog!Z910,\"\")","v":""},{"$f":"IF(DataLog!$C910=\"Log value\",DataLog!AA910,\"\")","v":""},{"$f":"IF(DataLog!$C910=\"Log value\",DataLog!AB910,\"\")","v":""},{"$f":"IF(DataLog!$C910=\"Log value\",DataLog!AC910,\"\")","v":""},{"$f":"IF(DataLog!$C910=\"Log value\",DataLog!AD910,\"\")","v":""},{"$f":"IF(DataLog!$C910=\"Log value\",DataLog!AE910,\"\")","v":""},{"$f":"IF(DataLog!$C910=\"Log value\",DataLog!AF910,\"\")","v":""},{"$f":"IF(DataLog!$C910=\"Log value\",DataLog!AG910,\"\")","v":""},{"$f":"IF(DataLog!$C910=\"Log value\",DataLog!AH910,\"\")","v":""},{"$f":"IF(DataLog!$C910=\"Log value\",DataLog!AI910,\"\")","v":""},{"$f":"IF(DataLog!$C910=\"Log value\",DataLog!AJ910,\"\")","v":""},{"$f":"IF(DataLog!$C910=\"Log value\",DataLog!AK910,\"\")","v":""},{"$f":"IF(DataLog!$C910=\"Log value\",DataLog!AL910,\"\")","v":""},{"$f":"IF(DataLog!$C910=\"Log value\",DataLog!AM910,\"\")","v":""}]
[null,null,null,null,null,null,{"$f":"IF(DataLog!$C911=\"Log value\",DataLog!D911&\"_\"&TEXT(DataLog!B911,\"åååå-mm-dd\"),\"\")","v":""},{"$f":"IF(DataLog!$C911=\"Log value\",DataLog!E911,\"\")","v":""},{"$f":"IF(DataLog!$C911=\"Log value\",DataLog!F911,\"\")","v":""},{"$f":"IF(DataLog!$C911=\"Log value\",DataLog!G911,\"\")","v":""},{"$f":"IF(DataLog!$C911=\"Log value\",DataLog!H911,\"\")","v":""},{"$f":"IF(DataLog!$C911=\"Log value\",DataLog!I911,\"\")","v":""},{"$f":"IF(DataLog!$C911=\"Log value\",DataLog!J911,\"\")","v":""},{"$f":"IF(DataLog!$C911=\"Log value\",DataLog!K911,\"\")","v":""},{"$f":"IF(DataLog!$C911=\"Log value\",DataLog!L911,\"\")","v":""},{"$f":"IF(DataLog!$C911=\"Log value\",DataLog!M911,\"\")","v":""},{"$f":"IF(DataLog!$C911=\"Log value\",DataLog!N911,\"\")","v":""},{"$f":"IF(DataLog!$C911=\"Log value\",DataLog!O911,\"\")","v":""},{"$f":"IF(DataLog!$C911=\"Log value\",DataLog!P911,\"\")","v":""},{"$f":"IF(DataLog!$C911=\"Log value\",DataLog!Q911,\"\")","v":""},{"$f":"IF(DataLog!$C911=\"Log value\",DataLog!R911,\"\")","v":""},{"$f":"IF(DataLog!$C911=\"Log value\",DataLog!S911,\"\")","v":""},{"$f":"IF(DataLog!$C911=\"Log value\",DataLog!T911,\"\")","v":""},{"$f":"IF(DataLog!$C911=\"Log value\",DataLog!U911,\"\")","v":""},{"$f":"IF(DataLog!$C911=\"Log value\",DataLog!V911,\"\")","v":""},{"$f":"IF(DataLog!$C911=\"Log value\",DataLog!W911,\"\")","v":""},{"$f":"IF(DataLog!$C911=\"Log value\",DataLog!X911,\"\")","v":""},{"$f":"IF(DataLog!$C911=\"Log value\",DataLog!Y911,\"\")","v":""},{"$f":"IF(DataLog!$C911=\"Log value\",DataLog!Z911,\"\")","v":""},{"$f":"IF(DataLog!$C911=\"Log value\",DataLog!AA911,\"\")","v":""},{"$f":"IF(DataLog!$C911=\"Log value\",DataLog!AB911,\"\")","v":""},{"$f":"IF(DataLog!$C911=\"Log value\",DataLog!AC911,\"\")","v":""},{"$f":"IF(DataLog!$C911=\"Log value\",DataLog!AD911,\"\")","v":""},{"$f":"IF(DataLog!$C911=\"Log value\",DataLog!AE911,\"\")","v":""},{"$f":"IF(DataLog!$C911=\"Log value\",DataLog!AF911,\"\")","v":""},{"$f":"IF(DataLog!$C911=\"Log value\",DataLog!AG911,\"\")","v":""},{"$f":"IF(DataLog!$C911=\"Log value\",DataLog!AH911,\"\")","v":""},{"$f":"IF(DataLog!$C911=\"Log value\",DataLog!AI911,\"\")","v":""},{"$f":"IF(DataLog!$C911=\"Log value\",DataLog!AJ911,\"\")","v":""},{"$f":"IF(DataLog!$C911=\"Log value\",DataLog!AK911,\"\")","v":""},{"$f":"IF(DataLog!$C911=\"Log value\",DataLog!AL911,\"\")","v":""},{"$f":"IF(DataLog!$C911=\"Log value\",DataLog!AM911,\"\")","v":""}]
[null,null,null,null,null,null,{"$f":"IF(DataLog!$C912=\"Log value\",DataLog!D912&\"_\"&TEXT(DataLog!B912,\"åååå-mm-dd\"),\"\")","v":""},{"$f":"IF(DataLog!$C912=\"Log value\",DataLog!E912,\"\")","v":""},{"$f":"IF(DataLog!$C912=\"Log value\",DataLog!F912,\"\")","v":""},{"$f":"IF(DataLog!$C912=\"Log value\",DataLog!G912,\"\")","v":""},{"$f":"IF(DataLog!$C912=\"Log value\",DataLog!H912,\"\")","v":""},{"$f":"IF(DataLog!$C912=\"Log value\",DataLog!I912,\"\")","v":""},{"$f":"IF(DataLog!$C912=\"Log value\",DataLog!J912,\"\")","v":""},{"$f":"IF(DataLog!$C912=\"Log value\",DataLog!K912,\"\")","v":""},{"$f":"IF(DataLog!$C912=\"Log value\",DataLog!L912,\"\")","v":""},{"$f":"IF(DataLog!$C912=\"Log value\",DataLog!M912,\"\")","v":""},{"$f":"IF(DataLog!$C912=\"Log value\",DataLog!N912,\"\")","v":""},{"$f":"IF(DataLog!$C912=\"Log value\",DataLog!O912,\"\")","v":""},{"$f":"IF(DataLog!$C912=\"Log value\",DataLog!P912,\"\")","v":""},{"$f":"IF(DataLog!$C912=\"Log value\",DataLog!Q912,\"\")","v":""},{"$f":"IF(DataLog!$C912=\"Log value\",DataLog!R912,\"\")","v":""},{"$f":"IF(DataLog!$C912=\"Log value\",DataLog!S912,\"\")","v":""},{"$f":"IF(DataLog!$C912=\"Log value\",DataLog!T912,\"\")","v":""},{"$f":"IF(DataLog!$C912=\"Log value\",DataLog!U912,\"\")","v":""},{"$f":"IF(DataLog!$C912=\"Log value\",DataLog!V912,\"\")","v":""},{"$f":"IF(DataLog!$C912=\"Log value\",DataLog!W912,\"\")","v":""},{"$f":"IF(DataLog!$C912=\"Log value\",DataLog!X912,\"\")","v":""},{"$f":"IF(DataLog!$C912=\"Log value\",DataLog!Y912,\"\")","v":""},{"$f":"IF(DataLog!$C912=\"Log value\",DataLog!Z912,\"\")","v":""},{"$f":"IF(DataLog!$C912=\"Log value\",DataLog!AA912,\"\")","v":""},{"$f":"IF(DataLog!$C912=\"Log value\",DataLog!AB912,\"\")","v":""},{"$f":"IF(DataLog!$C912=\"Log value\",DataLog!AC912,\"\")","v":""},{"$f":"IF(DataLog!$C912=\"Log value\",DataLog!AD912,\"\")","v":""},{"$f":"IF(DataLog!$C912=\"Log value\",DataLog!AE912,\"\")","v":""},{"$f":"IF(DataLog!$C912=\"Log value\",DataLog!AF912,\"\")","v":""},{"$f":"IF(DataLog!$C912=\"Log value\",DataLog!AG912,\"\")","v":""},{"$f":"IF(DataLog!$C912=\"Log value\",DataLog!AH912,\"\")","v":""},{"$f":"IF(DataLog!$C912=\"Log value\",DataLog!AI912,\"\")","v":""},{"$f":"IF(DataLog!$C912=\"Log value\",DataLog!AJ912,\"\")","v":""},{"$f":"IF(DataLog!$C912=\"Log value\",DataLog!AK912,\"\")","v":""},{"$f":"IF(DataLog!$C912=\"Log value\",DataLog!AL912,\"\")","v":""},{"$f":"IF(DataLog!$C912=\"Log value\",DataLog!AM912,\"\")","v":""}]
[null,null,null,null,null,null,{"$f":"IF(DataLog!$C913=\"Log value\",DataLog!D913&\"_\"&TEXT(DataLog!B913,\"åååå-mm-dd\"),\"\")","v":""},{"$f":"IF(DataLog!$C913=\"Log value\",DataLog!E913,\"\")","v":""},{"$f":"IF(DataLog!$C913=\"Log value\",DataLog!F913,\"\")","v":""},{"$f":"IF(DataLog!$C913=\"Log value\",DataLog!G913,\"\")","v":""},{"$f":"IF(DataLog!$C913=\"Log value\",DataLog!H913,\"\")","v":""},{"$f":"IF(DataLog!$C913=\"Log value\",DataLog!I913,\"\")","v":""},{"$f":"IF(DataLog!$C913=\"Log value\",DataLog!J913,\"\")","v":""},{"$f":"IF(DataLog!$C913=\"Log value\",DataLog!K913,\"\")","v":""},{"$f":"IF(DataLog!$C913=\"Log value\",DataLog!L913,\"\")","v":""},{"$f":"IF(DataLog!$C913=\"Log value\",DataLog!M913,\"\")","v":""},{"$f":"IF(DataLog!$C913=\"Log value\",DataLog!N913,\"\")","v":""},{"$f":"IF(DataLog!$C913=\"Log value\",DataLog!O913,\"\")","v":""},{"$f":"IF(DataLog!$C913=\"Log value\",DataLog!P913,\"\")","v":""},{"$f":"IF(DataLog!$C913=\"Log value\",DataLog!Q913,\"\")","v":""},{"$f":"IF(DataLog!$C913=\"Log value\",DataLog!R913,\"\")","v":""},{"$f":"IF(DataLog!$C913=\"Log value\",DataLog!S913,\"\")","v":""},{"$f":"IF(DataLog!$C913=\"Log value\",DataLog!T913,\"\")","v":""},{"$f":"IF(DataLog!$C913=\"Log value\",DataLog!U913,\"\")","v":""},{"$f":"IF(DataLog!$C913=\"Log value\",DataLog!V913,\"\")","v":""},{"$f":"IF(DataLog!$C913=\"Log value\",DataLog!W913,\"\")","v":""},{"$f":"IF(DataLog!$C913=\"Log value\",DataLog!X913,\"\")","v":""},{"$f":"IF(DataLog!$C913=\"Log value\",DataLog!Y913,\"\")","v":""},{"$f":"IF(DataLog!$C913=\"Log value\",DataLog!Z913,\"\")","v":""},{"$f":"IF(DataLog!$C913=\"Log value\",DataLog!AA913,\"\")","v":""},{"$f":"IF(DataLog!$C913=\"Log value\",DataLog!AB913,\"\")","v":""},{"$f":"IF(DataLog!$C913=\"Log value\",DataLog!AC913,\"\")","v":""},{"$f":"IF(DataLog!$C913=\"Log value\",DataLog!AD913,\"\")","v":""},{"$f":"IF(DataLog!$C913=\"Log value\",DataLog!AE913,\"\")","v":""},{"$f":"IF(DataLog!$C913=\"Log value\",DataLog!AF913,\"\")","v":""},{"$f":"IF(DataLog!$C913=\"Log value\",DataLog!AG913,\"\")","v":""},{"$f":"IF(DataLog!$C913=\"Log value\",DataLog!AH913,\"\")","v":""},{"$f":"IF(DataLog!$C913=\"Log value\",DataLog!AI913,\"\")","v":""},{"$f":"IF(DataLog!$C913=\"Log value\",DataLog!AJ913,\"\")","v":""},{"$f":"IF(DataLog!$C913=\"Log value\",DataLog!AK913,\"\")","v":""},{"$f":"IF(DataLog!$C913=\"Log value\",DataLog!AL913,\"\")","v":""},{"$f":"IF(DataLog!$C913=\"Log value\",DataLog!AM913,\"\")","v":""}]
[null,null,null,null,null,null,{"$f":"IF(DataLog!$C914=\"Log value\",DataLog!D914&\"_\"&TEXT(DataLog!B914,\"åååå-mm-dd\"),\"\")","v":""},{"$f":"IF(DataLog!$C914=\"Log value\",DataLog!E914,\"\")","v":""},{"$f":"IF(DataLog!$C914=\"Log value\",DataLog!F914,\"\")","v":""},{"$f":"IF(DataLog!$C914=\"Log value\",DataLog!G914,\"\")","v":""},{"$f":"IF(DataLog!$C914=\"Log value\",DataLog!H914,\"\")","v":""},{"$f":"IF(DataLog!$C914=\"Log value\",DataLog!I914,\"\")","v":""},{"$f":"IF(DataLog!$C914=\"Log value\",DataLog!J914,\"\")","v":""},{"$f":"IF(DataLog!$C914=\"Log value\",DataLog!K914,\"\")","v":""},{"$f":"IF(DataLog!$C914=\"Log value\",DataLog!L914,\"\")","v":""},{"$f":"IF(DataLog!$C914=\"Log value\",DataLog!M914,\"\")","v":""},{"$f":"IF(DataLog!$C914=\"Log value\",DataLog!N914,\"\")","v":""},{"$f":"IF(DataLog!$C914=\"Log value\",DataLog!O914,\"\")","v":""},{"$f":"IF(DataLog!$C914=\"Log value\",DataLog!P914,\"\")","v":""},{"$f":"IF(DataLog!$C914=\"Log value\",DataLog!Q914,\"\")","v":""},{"$f":"IF(DataLog!$C914=\"Log value\",DataLog!R914,\"\")","v":""},{"$f":"IF(DataLog!$C914=\"Log value\",DataLog!S914,\"\")","v":""},{"$f":"IF(DataLog!$C914=\"Log value\",DataLog!T914,\"\")","v":""},{"$f":"IF(DataLog!$C914=\"Log value\",DataLog!U914,\"\")","v":""},{"$f":"IF(DataLog!$C914=\"Log value\",DataLog!V914,\"\")","v":""},{"$f":"IF(DataLog!$C914=\"Log value\",DataLog!W914,\"\")","v":""},{"$f":"IF(DataLog!$C914=\"Log value\",DataLog!X914,\"\")","v":""},{"$f":"IF(DataLog!$C914=\"Log value\",DataLog!Y914,\"\")","v":""},{"$f":"IF(DataLog!$C914=\"Log value\",DataLog!Z914,\"\")","v":""},{"$f":"IF(DataLog!$C914=\"Log value\",DataLog!AA914,\"\")","v":""},{"$f":"IF(DataLog!$C914=\"Log value\",DataLog!AB914,\"\")","v":""},{"$f":"IF(DataLog!$C914=\"Log value\",DataLog!AC914,\"\")","v":""},{"$f":"IF(DataLog!$C914=\"Log value\",DataLog!AD914,\"\")","v":""},{"$f":"IF(DataLog!$C914=\"Log value\",DataLog!AE914,\"\")","v":""},{"$f":"IF(DataLog!$C914=\"Log value\",DataLog!AF914,\"\")","v":""},{"$f":"IF(DataLog!$C914=\"Log value\",DataLog!AG914,\"\")","v":""},{"$f":"IF(DataLog!$C914=\"Log value\",DataLog!AH914,\"\")","v":""},{"$f":"IF(DataLog!$C914=\"Log value\",DataLog!AI914,\"\")","v":""},{"$f":"IF(DataLog!$C914=\"Log value\",DataLog!AJ914,\"\")","v":""},{"$f":"IF(DataLog!$C914=\"Log value\",DataLog!AK914,\"\")","v":""},{"$f":"IF(DataLog!$C914=\"Log value\",DataLog!AL914,\"\")","v":""},{"$f":"IF(DataLog!$C914=\"Log value\",DataLog!AM914,\"\")","v":""}]
[null,null,null,null,null,null,{"$f":"IF(DataLog!$C915=\"Log value\",DataLog!D915&\"_\"&TEXT(DataLog!B915,\"åååå-mm-dd\"),\"\")","v":""},{"$f":"IF(DataLog!$C915=\"Log value\",DataLog!E915,\"\")","v":""},{"$f":"IF(DataLog!$C915=\"Log value\",DataLog!F915,\"\")","v":""},{"$f":"IF(DataLog!$C915=\"Log value\",DataLog!G915,\"\")","v":""},{"$f":"IF(DataLog!$C915=\"Log value\",DataLog!H915,\"\")","v":""},{"$f":"IF(DataLog!$C915=\"Log value\",DataLog!I915,\"\")","v":""},{"$f":"IF(DataLog!$C915=\"Log value\",DataLog!J915,\"\")","v":""},{"$f":"IF(DataLog!$C915=\"Log value\",DataLog!K915,\"\")","v":""},{"$f":"IF(DataLog!$C915=\"Log value\",DataLog!L915,\"\")","v":""},{"$f":"IF(DataLog!$C915=\"Log value\",DataLog!M915,\"\")","v":""},{"$f":"IF(DataLog!$C915=\"Log value\",DataLog!N915,\"\")","v":""},{"$f":"IF(DataLog!$C915=\"Log value\",DataLog!O915,\"\")","v":""},{"$f":"IF(DataLog!$C915=\"Log value\",DataLog!P915,\"\")","v":""},{"$f":"IF(DataLog!$C915=\"Log value\",DataLog!Q915,\"\")","v":""},{"$f":"IF(DataLog!$C915=\"Log value\",DataLog!R915,\"\")","v":""},{"$f":"IF(DataLog!$C915=\"Log value\",DataLog!S915,\"\")","v":""},{"$f":"IF(DataLog!$C915=\"Log value\",DataLog!T915,\"\")","v":""},{"$f":"IF(DataLog!$C915=\"Log value\",DataLog!U915,\"\")","v":""},{"$f":"IF(DataLog!$C915=\"Log value\",DataLog!V915,\"\")","v":""},{"$f":"IF(DataLog!$C915=\"Log value\",DataLog!W915,\"\")","v":""},{"$f":"IF(DataLog!$C915=\"Log value\",DataLog!X915,\"\")","v":""},{"$f":"IF(DataLog!$C915=\"Log value\",DataLog!Y915,\"\")","v":""},{"$f":"IF(DataLog!$C915=\"Log value\",DataLog!Z915,\"\")","v":""},{"$f":"IF(DataLog!$C915=\"Log value\",DataLog!AA915,\"\")","v":""},{"$f":"IF(DataLog!$C915=\"Log value\",DataLog!AB915,\"\")","v":""},{"$f":"IF(DataLog!$C915=\"Log value\",DataLog!AC915,\"\")","v":""},{"$f":"IF(DataLog!$C915=\"Log value\",DataLog!AD915,\"\")","v":""},{"$f":"IF(DataLog!$C915=\"Log value\",DataLog!AE915,\"\")","v":""},{"$f":"IF(DataLog!$C915=\"Log value\",DataLog!AF915,\"\")","v":""},{"$f":"IF(DataLog!$C915=\"Log value\",DataLog!AG915,\"\")","v":""},{"$f":"IF(DataLog!$C915=\"Log value\",DataLog!AH915,\"\")","v":""},{"$f":"IF(DataLog!$C915=\"Log value\",DataLog!AI915,\"\")","v":""},{"$f":"IF(DataLog!$C915=\"Log value\",DataLog!AJ915,\"\")","v":""},{"$f":"IF(DataLog!$C915=\"Log value\",DataLog!AK915,\"\")","v":""},{"$f":"IF(DataLog!$C915=\"Log value\",DataLog!AL915,\"\")","v":""},{"$f":"IF(DataLog!$C915=\"Log value\",DataLog!AM915,\"\")","v":""}]
[null,null,null,null,null,null,{"$f":"IF(DataLog!$C916=\"Log value\",DataLog!D916&\"_\"&TEXT(DataLog!B916,\"åååå-mm-dd\"),\"\")","v":""},{"$f":"IF(DataLog!$C916=\"Log value\",DataLog!E916,\"\")","v":""},{"$f":"IF(DataLog!$C916=\"Log value\",DataLog!F916,\"\")","v":""},{"$f":"IF(DataLog!$C916=\"Log value\",DataLog!G916,\"\")","v":""},{"$f":"IF(DataLog!$C916=\"Log value\",DataLog!H916,\"\")","v":""},{"$f":"IF(DataLog!$C916=\"Log value\",DataLog!I916,\"\")","v":""},{"$f":"IF(DataLog!$C916=\"Log value\",DataLog!J916,\"\")","v":""},{"$f":"IF(DataLog!$C916=\"Log value\",DataLog!K916,\"\")","v":""},{"$f":"IF(DataLog!$C916=\"Log value\",DataLog!L916,\"\")","v":""},{"$f":"IF(DataLog!$C916=\"Log value\",DataLog!M916,\"\")","v":""},{"$f":"IF(DataLog!$C916=\"Log value\",DataLog!N916,\"\")","v":""},{"$f":"IF(DataLog!$C916=\"Log value\",DataLog!O916,\"\")","v":""},{"$f":"IF(DataLog!$C916=\"Log value\",DataLog!P916,\"\")","v":""},{"$f":"IF(DataLog!$C916=\"Log value\",DataLog!Q916,\"\")","v":""},{"$f":"IF(DataLog!$C916=\"Log value\",DataLog!R916,\"\")","v":""},{"$f":"IF(DataLog!$C916=\"Log value\",DataLog!S916,\"\")","v":""},{"$f":"IF(DataLog!$C916=\"Log value\",DataLog!T916,\"\")","v":""},{"$f":"IF(DataLog!$C916=\"Log value\",DataLog!U916,\"\")","v":""},{"$f":"IF(DataLog!$C916=\"Log value\",DataLog!V916,\"\")","v":""},{"$f":"IF(DataLog!$C916=\"Log value\",DataLog!W916,\"\")","v":""},{"$f":"IF(DataLog!$C916=\"Log value\",DataLog!X916,\"\")","v":""},{"$f":"IF(DataLog!$C916=\"Log value\",DataLog!Y916,\"\")","v":""},{"$f":"IF(DataLog!$C916=\"Log value\",DataLog!Z916,\"\")","v":""},{"$f":"IF(DataLog!$C916=\"Log value\",DataLog!AA916,\"\")","v":""},{"$f":"IF(DataLog!$C916=\"Log value\",DataLog!AB916,\"\")","v":""},{"$f":"IF(DataLog!$C916=\"Log value\",DataLog!AC916,\"\")","v":""},{"$f":"IF(DataLog!$C916=\"Log value\",DataLog!AD916,\"\")","v":""},{"$f":"IF(DataLog!$C916=\"Log value\",DataLog!AE916,\"\")","v":""},{"$f":"IF(DataLog!$C916=\"Log value\",DataLog!AF916,\"\")","v":""},{"$f":"IF(DataLog!$C916=\"Log value\",DataLog!AG916,\"\")","v":""},{"$f":"IF(DataLog!$C916=\"Log value\",DataLog!AH916,\"\")","v":""},{"$f":"IF(DataLog!$C916=\"Log value\",DataLog!AI916,\"\")","v":""},{"$f":"IF(DataLog!$C916=\"Log value\",DataLog!AJ916,\"\")","v":""},{"$f":"IF(DataLog!$C916=\"Log value\",DataLog!AK916,\"\")","v":""},{"$f":"IF(DataLog!$C916=\"Log value\",DataLog!AL916,\"\")","v":""},{"$f":"IF(DataLog!$C916=\"Log value\",DataLog!AM916,\"\")","v":""}]
[null,null,null,null,null,null,{"$f":"IF(DataLog!$C917=\"Log value\",DataLog!D917&\"_\"&TEXT(DataLog!B917,\"åååå-mm-dd\"),\"\")","v":""},{"$f":"IF(DataLog!$C917=\"Log value\",DataLog!E917,\"\")","v":""},{"$f":"IF(DataLog!$C917=\"Log value\",DataLog!F917,\"\")","v":""},{"$f":"IF(DataLog!$C917=\"Log value\",DataLog!G917,\"\")","v":""},{"$f":"IF(DataLog!$C917=\"Log value\",DataLog!H917,\"\")","v":""},{"$f":"IF(DataLog!$C917=\"Log value\",DataLog!I917,\"\")","v":""},{"$f":"IF(DataLog!$C917=\"Log value\",DataLog!J917,\"\")","v":""},{"$f":"IF(DataLog!$C917=\"Log value\",DataLog!K917,\"\")","v":""},{"$f":"IF(DataLog!$C917=\"Log value\",DataLog!L917,\"\")","v":""},{"$f":"IF(DataLog!$C917=\"Log value\",DataLog!M917,\"\")","v":""},{"$f":"IF(DataLog!$C917=\"Log value\",DataLog!N917,\"\")","v":""},{"$f":"IF(DataLog!$C917=\"Log value\",DataLog!O917,\"\")","v":""},{"$f":"IF(DataLog!$C917=\"Log value\",DataLog!P917,\"\")","v":""},{"$f":"IF(DataLog!$C917=\"Log value\",DataLog!Q917,\"\")","v":""},{"$f":"IF(DataLog!$C917=\"Log value\",DataLog!R917,\"\")","v":""},{"$f":"IF(DataLog!$C917=\"Log value\",DataLog!S917,\"\")","v":""},{"$f":"IF(DataLog!$C917=\"Log value\",DataLog!T917,\"\")","v":""},{"$f":"IF(DataLog!$C917=\"Log value\",DataLog!U917,\"\")","v":""},{"$f":"IF(DataLog!$C917=\"Log value\",DataLog!V917,\"\")","v":""},{"$f":"IF(DataLog!$C917=\"Log value\",DataLog!W917,\"\")","v":""},{"$f":"IF(DataLog!$C917=\"Log value\",DataLog!X917,\"\")","v":""},{"$f":"IF(DataLog!$C917=\"Log value\",DataLog!Y917,\"\")","v":""},{"$f":"IF(DataLog!$C917=\"Log value\",DataLog!Z917,\"\")","v":""},{"$f":"IF(DataLog!$C917=\"Log value\",DataLog!AA917,\"\")","v":""},{"$f":"IF(DataLog!$C917=\"Log value\",DataLog!AB917,\"\")","v":""},{"$f":"IF(DataLog!$C917=\"Log value\",DataLog!AC917,\"\")","v":""},{"$f":"IF(DataLog!$C917=\"Log value\",DataLog!AD917,\"\")","v":""},{"$f":"IF(DataLog!$C917=\"Log value\",DataLog!AE917,\"\")","v":""},{"$f":"IF(DataLog!$C917=\"Log value\",DataLog!AF917,\"\")","v":""},{"$f":"IF(DataLog!$C917=\"Log value\",DataLog!AG917,\"\")","v":""},{"$f":"IF(DataLog!$C917=\"Log value\",DataLog!AH917,\"\")","v":""},{"$f":"IF(DataLog!$C917=\"Log value\",DataLog!AI917,\"\")","v":""},{"$f":"IF(DataLog!$C917=\"Log value\",DataLog!AJ917,\"\")","v":""},{"$f":"IF(DataLog!$C917=\"Log value\",DataLog!AK917,\"\")","v":""},{"$f":"IF(DataLog!$C917=\"Log value\",DataLog!AL917,\"\")","v":""},{"$f":"IF(DataLog!$C917=\"Log value\",DataLog!AM917,\"\")","v":""}]
[null,null,null,null,null,null,{"$f":"IF(DataLog!$C918=\"Log value\",DataLog!D918&\"_\"&TEXT(DataLog!B918,\"åååå-mm-dd\"),\"\")","v":""},{"$f":"IF(DataLog!$C918=\"Log value\",DataLog!E918,\"\")","v":""},{"$f":"IF(DataLog!$C918=\"Log value\",DataLog!F918,\"\")","v":""},{"$f":"IF(DataLog!$C918=\"Log value\",DataLog!G918,\"\")","v":""},{"$f":"IF(DataLog!$C918=\"Log value\",DataLog!H918,\"\")","v":""},{"$f":"IF(DataLog!$C918=\"Log value\",DataLog!I918,\"\")","v":""},{"$f":"IF(DataLog!$C918=\"Log value\",DataLog!J918,\"\")","v":""},{"$f":"IF(DataLog!$C918=\"Log value\",DataLog!K918,\"\")","v":""},{"$f":"IF(DataLog!$C918=\"Log value\",DataLog!L918,\"\")","v":""},{"$f":"IF(DataLog!$C918=\"Log value\",DataLog!M918,\"\")","v":""},{"$f":"IF(DataLog!$C918=\"Log value\",DataLog!N918,\"\")","v":""},{"$f":"IF(DataLog!$C918=\"Log value\",DataLog!O918,\"\")","v":""},{"$f":"IF(DataLog!$C918=\"Log value\",DataLog!P918,\"\")","v":""},{"$f":"IF(DataLog!$C918=\"Log value\",DataLog!Q918,\"\")","v":""},{"$f":"IF(DataLog!$C918=\"Log value\",DataLog!R918,\"\")","v":""},{"$f":"IF(DataLog!$C918=\"Log value\",DataLog!S918,\"\")","v":""},{"$f":"IF(DataLog!$C918=\"Log value\",DataLog!T918,\"\")","v":""},{"$f":"IF(DataLog!$C918=\"Log value\",DataLog!U918,\"\")","v":""},{"$f":"IF(DataLog!$C918=\"Log value\",DataLog!V918,\"\")","v":""},{"$f":"IF(DataLog!$C918=\"Log value\",DataLog!W918,\"\")","v":""},{"$f":"IF(DataLog!$C918=\"Log value\",DataLog!X918,\"\")","v":""},{"$f":"IF(DataLog!$C918=\"Log value\",DataLog!Y918,\"\")","v":""},{"$f":"IF(DataLog!$C918=\"Log value\",DataLog!Z918,\"\")","v":""},{"$f":"IF(DataLog!$C918=\"Log value\",DataLog!AA918,\"\")","v":""},{"$f":"IF(DataLog!$C918=\"Log value\",DataLog!AB918,\"\")","v":""},{"$f":"IF(DataLog!$C918=\"Log value\",DataLog!AC918,\"\")","v":""},{"$f":"IF(DataLog!$C918=\"Log value\",DataLog!AD918,\"\")","v":""},{"$f":"IF(DataLog!$C918=\"Log value\",DataLog!AE918,\"\")","v":""},{"$f":"IF(DataLog!$C918=\"Log value\",DataLog!AF918,\"\")","v":""},{"$f":"IF(DataLog!$C918=\"Log value\",DataLog!AG918,\"\")","v":""},{"$f":"IF(DataLog!$C918=\"Log value\",DataLog!AH918,\"\")","v":""},{"$f":"IF(DataLog!$C918=\"Log value\",DataLog!AI918,\"\")","v":""},{"$f":"IF(DataLog!$C918=\"Log value\",DataLog!AJ918,\"\")","v":""},{"$f":"IF(DataLog!$C918=\"Log value\",DataLog!AK918,\"\")","v":""},{"$f":"IF(DataLog!$C918=\"Log value\",DataLog!AL918,\"\")","v":""},{"$f":"IF(DataLog!$C918=\"Log value\",DataLog!AM918,\"\")","v":""}]
[null,null,null,null,null,null,{"$f":"IF(DataLog!$C919=\"Log value\",DataLog!D919&\"_\"&TEXT(DataLog!B919,\"åååå-mm-dd\"),\"\")","v":""},{"$f":"IF(DataLog!$C919=\"Log value\",DataLog!E919,\"\")","v":""},{"$f":"IF(DataLog!$C919=\"Log value\",DataLog!F919,\"\")","v":""},{"$f":"IF(DataLog!$C919=\"Log value\",DataLog!G919,\"\")","v":""},{"$f":"IF(DataLog!$C919=\"Log value\",DataLog!H919,\"\")","v":""},{"$f":"IF(DataLog!$C919=\"Log value\",DataLog!I919,\"\")","v":""},{"$f":"IF(DataLog!$C919=\"Log value\",DataLog!J919,\"\")","v":""},{"$f":"IF(DataLog!$C919=\"Log value\",DataLog!K919,\"\")","v":""},{"$f":"IF(DataLog!$C919=\"Log value\",DataLog!L919,\"\")","v":""},{"$f":"IF(DataLog!$C919=\"Log value\",DataLog!M919,\"\")","v":""},{"$f":"IF(DataLog!$C919=\"Log value\",DataLog!N919,\"\")","v":""},{"$f":"IF(DataLog!$C919=\"Log value\",DataLog!O919,\"\")","v":""},{"$f":"IF(DataLog!$C919=\"Log value\",DataLog!P919,\"\")","v":""},{"$f":"IF(DataLog!$C919=\"Log value\",DataLog!Q919,\"\")","v":""},{"$f":"IF(DataLog!$C919=\"Log value\",DataLog!R919,\"\")","v":""},{"$f":"IF(DataLog!$C919=\"Log value\",DataLog!S919,\"\")","v":""},{"$f":"IF(DataLog!$C919=\"Log value\",DataLog!T919,\"\")","v":""},{"$f":"IF(DataLog!$C919=\"Log value\",DataLog!U919,\"\")","v":""},{"$f":"IF(DataLog!$C919=\"Log value\",DataLog!V919,\"\")","v":""},{"$f":"IF(DataLog!$C919=\"Log value\",DataLog!W919,\"\")","v":""},{"$f":"IF(DataLog!$C919=\"Log value\",DataLog!X919,\"\")","v":""},{"$f":"IF(DataLog!$C919=\"Log value\",DataLog!Y919,\"\")","v":""},{"$f":"IF(DataLog!$C919=\"Log value\",DataLog!Z919,\"\")","v":""},{"$f":"IF(DataLog!$C919=\"Log value\",DataLog!AA919,\"\")","v":""},{"$f":"IF(DataLog!$C919=\"Log value\",DataLog!AB919,\"\")","v":""},{"$f":"IF(DataLog!$C919=\"Log value\",DataLog!AC919,\"\")","v":""},{"$f":"IF(DataLog!$C919=\"Log value\",DataLog!AD919,\"\")","v":""},{"$f":"IF(DataLog!$C919=\"Log value\",DataLog!AE919,\"\")","v":""},{"$f":"IF(DataLog!$C919=\"Log value\",DataLog!AF919,\"\")","v":""},{"$f":"IF(DataLog!$C919=\"Log value\",DataLog!AG919,\"\")","v":""},{"$f":"IF(DataLog!$C919=\"Log value\",DataLog!AH919,\"\")","v":""},{"$f":"IF(DataLog!$C919=\"Log value\",DataLog!AI919,\"\")","v":""},{"$f":"IF(DataLog!$C919=\"Log value\",DataLog!AJ919,\"\")","v":""},{"$f":"IF(DataLog!$C919=\"Log value\",DataLog!AK919,\"\")","v":""},{"$f":"IF(DataLog!$C919=\"Log value\",DataLog!AL919,\"\")","v":""},{"$f":"IF(DataLog!$C919=\"Log value\",DataLog!AM919,\"\")","v":""}]
[null,null,null,null,null,null,{"$f":"IF(DataLog!$C920=\"Log value\",DataLog!D920&\"_\"&TEXT(DataLog!B920,\"åååå-mm-dd\"),\"\")","v":""},{"$f":"IF(DataLog!$C920=\"Log value\",DataLog!E920,\"\")","v":""},{"$f":"IF(DataLog!$C920=\"Log value\",DataLog!F920,\"\")","v":""},{"$f":"IF(DataLog!$C920=\"Log value\",DataLog!G920,\"\")","v":""},{"$f":"IF(DataLog!$C920=\"Log value\",DataLog!H920,\"\")","v":""},{"$f":"IF(DataLog!$C920=\"Log value\",DataLog!I920,\"\")","v":""},{"$f":"IF(DataLog!$C920=\"Log value\",DataLog!J920,\"\")","v":""},{"$f":"IF(DataLog!$C920=\"Log value\",DataLog!K920,\"\")","v":""},{"$f":"IF(DataLog!$C920=\"Log value\",DataLog!L920,\"\")","v":""},{"$f":"IF(DataLog!$C920=\"Log value\",DataLog!M920,\"\")","v":""},{"$f":"IF(DataLog!$C920=\"Log value\",DataLog!N920,\"\")","v":""},{"$f":"IF(DataLog!$C920=\"Log value\",DataLog!O920,\"\")","v":""},{"$f":"IF(DataLog!$C920=\"Log value\",DataLog!P920,\"\")","v":""},{"$f":"IF(DataLog!$C920=\"Log value\",DataLog!Q920,\"\")","v":""},{"$f":"IF(DataLog!$C920=\"Log value\",DataLog!R920,\"\")","v":""},{"$f":"IF(DataLog!$C920=\"Log value\",DataLog!S920,\"\")","v":""},{"$f":"IF(DataLog!$C920=\"Log value\",DataLog!T920,\"\")","v":""},{"$f":"IF(DataLog!$C920=\"Log value\",DataLog!U920,\"\")","v":""},{"$f":"IF(DataLog!$C920=\"Log value\",DataLog!V920,\"\")","v":""},{"$f":"IF(DataLog!$C920=\"Log value\",DataLog!W920,\"\")","v":""},{"$f":"IF(DataLog!$C920=\"Log value\",DataLog!X920,\"\")","v":""},{"$f":"IF(DataLog!$C920=\"Log value\",DataLog!Y920,\"\")","v":""},{"$f":"IF(DataLog!$C920=\"Log value\",DataLog!Z920,\"\")","v":""},{"$f":"IF(DataLog!$C920=\"Log value\",DataLog!AA920,\"\")","v":""},{"$f":"IF(DataLog!$C920=\"Log value\",DataLog!AB920,\"\")","v":""},{"$f":"IF(DataLog!$C920=\"Log value\",DataLog!AC920,\"\")","v":""},{"$f":"IF(DataLog!$C920=\"Log value\",DataLog!AD920,\"\")","v":""},{"$f":"IF(DataLog!$C920=\"Log value\",DataLog!AE920,\"\")","v":""},{"$f":"IF(DataLog!$C920=\"Log value\",DataLog!AF920,\"\")","v":""},{"$f":"IF(DataLog!$C920=\"Log value\",DataLog!AG920,\"\")","v":""},{"$f":"IF(DataLog!$C920=\"Log value\",DataLog!AH920,\"\")","v":""},{"$f":"IF(DataLog!$C920=\"Log value\",DataLog!AI920,\"\")","v":""},{"$f":"IF(DataLog!$C920=\"Log value\",DataLog!AJ920,\"\")","v":""},{"$f":"IF(DataLog!$C920=\"Log value\",DataLog!AK920,\"\")","v":""},{"$f":"IF(DataLog!$C920=\"Log value\",DataLog!AL920,\"\")","v":""},{"$f":"IF(DataLog!$C920=\"Log value\",DataLog!AM920,\"\")","v":""}]
[null,null,null,null,null,null,{"$f":"IF(DataLog!$C921=\"Log value\",DataLog!D921&\"_\"&TEXT(DataLog!B921,\"åååå-mm-dd\"),\"\")","v":""},{"$f":"IF(DataLog!$C921=\"Log value\",DataLog!E921,\"\")","v":""},{"$f":"IF(DataLog!$C921=\"Log value\",DataLog!F921,\"\")","v":""},{"$f":"IF(DataLog!$C921=\"Log value\",DataLog!G921,\"\")","v":""},{"$f":"IF(DataLog!$C921=\"Log value\",DataLog!H921,\"\")","v":""},{"$f":"IF(DataLog!$C921=\"Log value\",DataLog!I921,\"\")","v":""},{"$f":"IF(DataLog!$C921=\"Log value\",DataLog!J921,\"\")","v":""},{"$f":"IF(DataLog!$C921=\"Log value\",DataLog!K921,\"\")","v":""},{"$f":"IF(DataLog!$C921=\"Log value\",DataLog!L921,\"\")","v":""},{"$f":"IF(DataLog!$C921=\"Log value\",DataLog!M921,\"\")","v":""},{"$f":"IF(DataLog!$C921=\"Log value\",DataLog!N921,\"\")","v":""},{"$f":"IF(DataLog!$C921=\"Log value\",DataLog!O921,\"\")","v":""},{"$f":"IF(DataLog!$C921=\"Log value\",DataLog!P921,\"\")","v":""},{"$f":"IF(DataLog!$C921=\"Log value\",DataLog!Q921,\"\")","v":""},{"$f":"IF(DataLog!$C921=\"Log value\",DataLog!R921,\"\")","v":""},{"$f":"IF(DataLog!$C921=\"Log value\",DataLog!S921,\"\")","v":""},{"$f":"IF(DataLog!$C921=\"Log value\",DataLog!T921,\"\")","v":""},{"$f":"IF(DataLog!$C921=\"Log value\",DataLog!U921,\"\")","v":""},{"$f":"IF(DataLog!$C921=\"Log value\",DataLog!V921,\"\")","v":""},{"$f":"IF(DataLog!$C921=\"Log value\",DataLog!W921,\"\")","v":""},{"$f":"IF(DataLog!$C921=\"Log value\",DataLog!X921,\"\")","v":""},{"$f":"IF(DataLog!$C921=\"Log value\",DataLog!Y921,\"\")","v":""},{"$f":"IF(DataLog!$C921=\"Log value\",DataLog!Z921,\"\")","v":""},{"$f":"IF(DataLog!$C921=\"Log value\",DataLog!AA921,\"\")","v":""},{"$f":"IF(DataLog!$C921=\"Log value\",DataLog!AB921,\"\")","v":""},{"$f":"IF(DataLog!$C921=\"Log value\",DataLog!AC921,\"\")","v":""},{"$f":"IF(DataLog!$C921=\"Log value\",DataLog!AD921,\"\")","v":""},{"$f":"IF(DataLog!$C921=\"Log value\",DataLog!AE921,\"\")","v":""},{"$f":"IF(DataLog!$C921=\"Log value\",DataLog!AF921,\"\")","v":""},{"$f":"IF(DataLog!$C921=\"Log value\",DataLog!AG921,\"\")","v":""},{"$f":"IF(DataLog!$C921=\"Log value\",DataLog!AH921,\"\")","v":""},{"$f":"IF(DataLog!$C921=\"Log value\",DataLog!AI921,\"\")","v":""},{"$f":"IF(DataLog!$C921=\"Log value\",DataLog!AJ921,\"\")","v":""},{"$f":"IF(DataLog!$C921=\"Log value\",DataLog!AK921,\"\")","v":""},{"$f":"IF(DataLog!$C921=\"Log value\",DataLog!AL921,\"\")","v":""},{"$f":"IF(DataLog!$C921=\"Log value\",DataLog!AM921,\"\")","v":""}]
[null,null,null,null,null,null,{"$f":"IF(DataLog!$C922=\"Log value\",DataLog!D922&\"_\"&TEXT(DataLog!B922,\"åååå-mm-dd\"),\"\")","v":""},{"$f":"IF(DataLog!$C922=\"Log value\",DataLog!E922,\"\")","v":""},{"$f":"IF(DataLog!$C922=\"Log value\",DataLog!F922,\"\")","v":""},{"$f":"IF(DataLog!$C922=\"Log value\",DataLog!G922,\"\")","v":""},{"$f":"IF(DataLog!$C922=\"Log value\",DataLog!H922,\"\")","v":""},{"$f":"IF(DataLog!$C922=\"Log value\",DataLog!I922,\"\")","v":""},{"$f":"IF(DataLog!$C922=\"Log value\",DataLog!J922,\"\")","v":""},{"$f":"IF(DataLog!$C922=\"Log value\",DataLog!K922,\"\")","v":""},{"$f":"IF(DataLog!$C922=\"Log value\",DataLog!L922,\"\")","v":""},{"$f":"IF(DataLog!$C922=\"Log value\",DataLog!M922,\"\")","v":""},{"$f":"IF(DataLog!$C922=\"Log value\",DataLog!N922,\"\")","v":""},{"$f":"IF(DataLog!$C922=\"Log value\",DataLog!O922,\"\")","v":""},{"$f":"IF(DataLog!$C922=\"Log value\",DataLog!P922,\"\")","v":""},{"$f":"IF(DataLog!$C922=\"Log value\",DataLog!Q922,\"\")","v":""},{"$f":"IF(DataLog!$C922=\"Log value\",DataLog!R922,\"\")","v":""},{"$f":"IF(DataLog!$C922=\"Log value\",DataLog!S922,\"\")","v":""},{"$f":"IF(DataLog!$C922=\"Log value\",DataLog!T922,\"\")","v":""},{"$f":"IF(DataLog!$C922=\"Log value\",DataLog!U922,\"\")","v":""},{"$f":"IF(DataLog!$C922=\"Log value\",DataLog!V922,\"\")","v":""},{"$f":"IF(DataLog!$C922=\"Log value\",DataLog!W922,\"\")","v":""},{"$f":"IF(DataLog!$C922=\"Log value\",DataLog!X922,\"\")","v":""},{"$f":"IF(DataLog!$C922=\"Log value\",DataLog!Y922,\"\")","v":""},{"$f":"IF(DataLog!$C922=\"Log value\",DataLog!Z922,\"\")","v":""},{"$f":"IF(DataLog!$C922=\"Log value\",DataLog!AA922,\"\")","v":""},{"$f":"IF(DataLog!$C922=\"Log value\",DataLog!AB922,\"\")","v":""},{"$f":"IF(DataLog!$C922=\"Log value\",DataLog!AC922,\"\")","v":""},{"$f":"IF(DataLog!$C922=\"Log value\",DataLog!AD922,\"\")","v":""},{"$f":"IF(DataLog!$C922=\"Log value\",DataLog!AE922,\"\")","v":""},{"$f":"IF(DataLog!$C922=\"Log value\",DataLog!AF922,\"\")","v":""},{"$f":"IF(DataLog!$C922=\"Log value\",DataLog!AG922,\"\")","v":""},{"$f":"IF(DataLog!$C922=\"Log value\",DataLog!AH922,\"\")","v":""},{"$f":"IF(DataLog!$C922=\"Log value\",DataLog!AI922,\"\")","v":""},{"$f":"IF(DataLog!$C922=\"Log value\",DataLog!AJ922,\"\")","v":""},{"$f":"IF(DataLog!$C922=\"Log value\",DataLog!AK922,\"\")","v":""},{"$f":"IF(DataLog!$C922=\"Log value\",DataLog!AL922,\"\")","v":""},{"$f":"IF(DataLog!$C922=\"Log value\",DataLog!AM922,\"\")","v":""}]
[null,null,null,null,null,null,{"$f":"IF(DataLog!$C923=\"Log value\",DataLog!D923&\"_\"&TEXT(DataLog!B923,\"åååå-mm-dd\"),\"\")","v":""},{"$f":"IF(DataLog!$C923=\"Log value\",DataLog!E923,\"\")","v":""},{"$f":"IF(DataLog!$C923=\"Log value\",DataLog!F923,\"\")","v":""},{"$f":"IF(DataLog!$C923=\"Log value\",DataLog!G923,\"\")","v":""},{"$f":"IF(DataLog!$C923=\"Log value\",DataLog!H923,\"\")","v":""},{"$f":"IF(DataLog!$C923=\"Log value\",DataLog!I923,\"\")","v":""},{"$f":"IF(DataLog!$C923=\"Log value\",DataLog!J923,\"\")","v":""},{"$f":"IF(DataLog!$C923=\"Log value\",DataLog!K923,\"\")","v":""},{"$f":"IF(DataLog!$C923=\"Log value\",DataLog!L923,\"\")","v":""},{"$f":"IF(DataLog!$C923=\"Log value\",DataLog!M923,\"\")","v":""},{"$f":"IF(DataLog!$C923=\"Log value\",DataLog!N923,\"\")","v":""},{"$f":"IF(DataLog!$C923=\"Log value\",DataLog!O923,\"\")","v":""},{"$f":"IF(DataLog!$C923=\"Log value\",DataLog!P923,\"\")","v":""},{"$f":"IF(DataLog!$C923=\"Log value\",DataLog!Q923,\"\")","v":""},{"$f":"IF(DataLog!$C923=\"Log value\",DataLog!R923,\"\")","v":""},{"$f":"IF(DataLog!$C923=\"Log value\",DataLog!S923,\"\")","v":""},{"$f":"IF(DataLog!$C923=\"Log value\",DataLog!T923,\"\")","v":""},{"$f":"IF(DataLog!$C923=\"Log value\",DataLog!U923,\"\")","v":""},{"$f":"IF(DataLog!$C923=\"Log value\",DataLog!V923,\"\")","v":""},{"$f":"IF(DataLog!$C923=\"Log value\",DataLog!W923,\"\")","v":""},{"$f":"IF(DataLog!$C923=\"Log value\",DataLog!X923,\"\")","v":""},{"$f":"IF(DataLog!$C923=\"Log value\",DataLog!Y923,\"\")","v":""},{"$f":"IF(DataLog!$C923=\"Log value\",DataLog!Z923,\"\")","v":""},{"$f":"IF(DataLog!$C923=\"Log value\",DataLog!AA923,\"\")","v":""},{"$f":"IF(DataLog!$C923=\"Log value\",DataLog!AB923,\"\")","v":""},{"$f":"IF(DataLog!$C923=\"Log value\",DataLog!AC923,\"\")","v":""},{"$f":"IF(DataLog!$C923=\"Log value\",DataLog!AD923,\"\")","v":""},{"$f":"IF(DataLog!$C923=\"Log value\",DataLog!AE923,\"\")","v":""},{"$f":"IF(DataLog!$C923=\"Log value\",DataLog!AF923,\"\")","v":""},{"$f":"IF(DataLog!$C923=\"Log value\",DataLog!AG923,\"\")","v":""},{"$f":"IF(DataLog!$C923=\"Log value\",DataLog!AH923,\"\")","v":""},{"$f":"IF(DataLog!$C923=\"Log value\",DataLog!AI923,\"\")","v":""},{"$f":"IF(DataLog!$C923=\"Log value\",DataLog!AJ923,\"\")","v":""},{"$f":"IF(DataLog!$C923=\"Log value\",DataLog!AK923,\"\")","v":""},{"$f":"IF(DataLog!$C923=\"Log value\",DataLog!AL923,\"\")","v":""},{"$f":"IF(DataLog!$C923=\"Log value\",DataLog!AM923,\"\")","v":""}]
[null,null,null,null,null,null,{"$f":"IF(DataLog!$C924=\"Log value\",DataLog!D924&\"_\"&TEXT(DataLog!B924,\"åååå-mm-dd\"),\"\")","v":""},{"$f":"IF(DataLog!$C924=\"Log value\",DataLog!E924,\"\")","v":""},{"$f":"IF(DataLog!$C924=\"Log value\",DataLog!F924,\"\")","v":""},{"$f":"IF(DataLog!$C924=\"Log value\",DataLog!G924,\"\")","v":""},{"$f":"IF(DataLog!$C924=\"Log value\",DataLog!H924,\"\")","v":""},{"$f":"IF(DataLog!$C924=\"Log value\",DataLog!I924,\"\")","v":""},{"$f":"IF(DataLog!$C924=\"Log value\",DataLog!J924,\"\")","v":""},{"$f":"IF(DataLog!$C924=\"Log value\",DataLog!K924,\"\")","v":""},{"$f":"IF(DataLog!$C924=\"Log value\",DataLog!L924,\"\")","v":""},{"$f":"IF(DataLog!$C924=\"Log value\",DataLog!M924,\"\")","v":""},{"$f":"IF(DataLog!$C924=\"Log value\",DataLog!N924,\"\")","v":""},{"$f":"IF(DataLog!$C924=\"Log value\",DataLog!O924,\"\")","v":""},{"$f":"IF(DataLog!$C924=\"Log value\",DataLog!P924,\"\")","v":""},{"$f":"IF(DataLog!$C924=\"Log value\",DataLog!Q924,\"\")","v":""},{"$f":"IF(DataLog!$C924=\"Log value\",DataLog!R924,\"\")","v":""},{"$f":"IF(DataLog!$C924=\"Log value\",DataLog!S924,\"\")","v":""},{"$f":"IF(DataLog!$C924=\"Log value\",DataLog!T924,\"\")","v":""},{"$f":"IF(DataLog!$C924=\"Log value\",DataLog!U924,\"\")","v":""},{"$f":"IF(DataLog!$C924=\"Log value\",DataLog!V924,\"\")","v":""},{"$f":"IF(DataLog!$C924=\"Log value\",DataLog!W924,\"\")","v":""},{"$f":"IF(DataLog!$C924=\"Log value\",DataLog!X924,\"\")","v":""},{"$f":"IF(DataLog!$C924=\"Log value\",DataLog!Y924,\"\")","v":""},{"$f":"IF(DataLog!$C924=\"Log value\",DataLog!Z924,\"\")","v":""},{"$f":"IF(DataLog!$C924=\"Log value\",DataLog!AA924,\"\")","v":""},{"$f":"IF(DataLog!$C924=\"Log value\",DataLog!AB924,\"\")","v":""},{"$f":"IF(DataLog!$C924=\"Log value\",DataLog!AC924,\"\")","v":""},{"$f":"IF(DataLog!$C924=\"Log value\",DataLog!AD924,\"\")","v":""},{"$f":"IF(DataLog!$C924=\"Log value\",DataLog!AE924,\"\")","v":""},{"$f":"IF(DataLog!$C924=\"Log value\",DataLog!AF924,\"\")","v":""},{"$f":"IF(DataLog!$C924=\"Log value\",DataLog!AG924,\"\")","v":""},{"$f":"IF(DataLog!$C924=\"Log value\",DataLog!AH924,\"\")","v":""},{"$f":"IF(DataLog!$C924=\"Log value\",DataLog!AI924,\"\")","v":""},{"$f":"IF(DataLog!$C924=\"Log value\",DataLog!AJ924,\"\")","v":""},{"$f":"IF(DataLog!$C924=\"Log value\",DataLog!AK924,\"\")","v":""},{"$f":"IF(DataLog!$C924=\"Log value\",DataLog!AL924,\"\")","v":""},{"$f":"IF(DataLog!$C924=\"Log value\",DataLog!AM924,\"\")","v":""}]
[null,null,null,null,null,null,{"$f":"IF(DataLog!$C925=\"Log value\",DataLog!D925&\"_\"&TEXT(DataLog!B925,\"åååå-mm-dd\"),\"\")","v":""},{"$f":"IF(DataLog!$C925=\"Log value\",DataLog!E925,\"\")","v":""},{"$f":"IF(DataLog!$C925=\"Log value\",DataLog!F925,\"\")","v":""},{"$f":"IF(DataLog!$C925=\"Log value\",DataLog!G925,\"\")","v":""},{"$f":"IF(DataLog!$C925=\"Log value\",DataLog!H925,\"\")","v":""},{"$f":"IF(DataLog!$C925=\"Log value\",DataLog!I925,\"\")","v":""},{"$f":"IF(DataLog!$C925=\"Log value\",DataLog!J925,\"\")","v":""},{"$f":"IF(DataLog!$C925=\"Log value\",DataLog!K925,\"\")","v":""},{"$f":"IF(DataLog!$C925=\"Log value\",DataLog!L925,\"\")","v":""},{"$f":"IF(DataLog!$C925=\"Log value\",DataLog!M925,\"\")","v":""},{"$f":"IF(DataLog!$C925=\"Log value\",DataLog!N925,\"\")","v":""},{"$f":"IF(DataLog!$C925=\"Log value\",DataLog!O925,\"\")","v":""},{"$f":"IF(DataLog!$C925=\"Log value\",DataLog!P925,\"\")","v":""},{"$f":"IF(DataLog!$C925=\"Log value\",DataLog!Q925,\"\")","v":""},{"$f":"IF(DataLog!$C925=\"Log value\",DataLog!R925,\"\")","v":""},{"$f":"IF(DataLog!$C925=\"Log value\",DataLog!S925,\"\")","v":""},{"$f":"IF(DataLog!$C925=\"Log value\",DataLog!T925,\"\")","v":""},{"$f":"IF(DataLog!$C925=\"Log value\",DataLog!U925,\"\")","v":""},{"$f":"IF(DataLog!$C925=\"Log value\",DataLog!V925,\"\")","v":""},{"$f":"IF(DataLog!$C925=\"Log value\",DataLog!W925,\"\")","v":""},{"$f":"IF(DataLog!$C925=\"Log value\",DataLog!X925,\"\")","v":""},{"$f":"IF(DataLog!$C925=\"Log value\",DataLog!Y925,\"\")","v":""},{"$f":"IF(DataLog!$C925=\"Log value\",DataLog!Z925,\"\")","v":""},{"$f":"IF(DataLog!$C925=\"Log value\",DataLog!AA925,\"\")","v":""},{"$f":"IF(DataLog!$C925=\"Log value\",DataLog!AB925,\"\")","v":""},{"$f":"IF(DataLog!$C925=\"Log value\",DataLog!AC925,\"\")","v":""},{"$f":"IF(DataLog!$C925=\"Log value\",DataLog!AD925,\"\")","v":""},{"$f":"IF(DataLog!$C925=\"Log value\",DataLog!AE925,\"\")","v":""},{"$f":"IF(DataLog!$C925=\"Log value\",DataLog!AF925,\"\")","v":""},{"$f":"IF(DataLog!$C925=\"Log value\",DataLog!AG925,\"\")","v":""},{"$f":"IF(DataLog!$C925=\"Log value\",DataLog!AH925,\"\")","v":""},{"$f":"IF(DataLog!$C925=\"Log value\",DataLog!AI925,\"\")","v":""},{"$f":"IF(DataLog!$C925=\"Log value\",DataLog!AJ925,\"\")","v":""},{"$f":"IF(DataLog!$C925=\"Log value\",DataLog!AK925,\"\")","v":""},{"$f":"IF(DataLog!$C925=\"Log value\",DataLog!AL925,\"\")","v":""},{"$f":"IF(DataLog!$C925=\"Log value\",DataLog!AM925,\"\")","v":""}]
[null,null,null,null,null,null,{"$f":"IF(DataLog!$C926=\"Log value\",DataLog!D926&\"_\"&TEXT(DataLog!B926,\"åååå-mm-dd\"),\"\")","v":""},{"$f":"IF(DataLog!$C926=\"Log value\",DataLog!E926,\"\")","v":""},{"$f":"IF(DataLog!$C926=\"Log value\",DataLog!F926,\"\")","v":""},{"$f":"IF(DataLog!$C926=\"Log value\",DataLog!G926,\"\")","v":""},{"$f":"IF(DataLog!$C926=\"Log value\",DataLog!H926,\"\")","v":""},{"$f":"IF(DataLog!$C926=\"Log value\",DataLog!I926,\"\")","v":""},{"$f":"IF(DataLog!$C926=\"Log value\",DataLog!J926,\"\")","v":""},{"$f":"IF(DataLog!$C926=\"Log value\",DataLog!K926,\"\")","v":""},{"$f":"IF(DataLog!$C926=\"Log value\",DataLog!L926,\"\")","v":""},{"$f":"IF(DataLog!$C926=\"Log value\",DataLog!M926,\"\")","v":""},{"$f":"IF(DataLog!$C926=\"Log value\",DataLog!N926,\"\")","v":""},{"$f":"IF(DataLog!$C926=\"Log value\",DataLog!O926,\"\")","v":""},{"$f":"IF(DataLog!$C926=\"Log value\",DataLog!P926,\"\")","v":""},{"$f":"IF(DataLog!$C926=\"Log value\",DataLog!Q926,\"\")","v":""},{"$f":"IF(DataLog!$C926=\"Log value\",DataLog!R926,\"\")","v":""},{"$f":"IF(DataLog!$C926=\"Log value\",DataLog!S926,\"\")","v":""},{"$f":"IF(DataLog!$C926=\"Log value\",DataLog!T926,\"\")","v":""},{"$f":"IF(DataLog!$C926=\"Log value\",DataLog!U926,\"\")","v":""},{"$f":"IF(DataLog!$C926=\"Log value\",DataLog!V926,\"\")","v":""},{"$f":"IF(DataLog!$C926=\"Log value\",DataLog!W926,\"\")","v":""},{"$f":"IF(DataLog!$C926=\"Log value\",DataLog!X926,\"\")","v":""},{"$f":"IF(DataLog!$C926=\"Log value\",DataLog!Y926,\"\")","v":""},{"$f":"IF(DataLog!$C926=\"Log value\",DataLog!Z926,\"\")","v":""},{"$f":"IF(DataLog!$C926=\"Log value\",DataLog!AA926,\"\")","v":""},{"$f":"IF(DataLog!$C926=\"Log value\",DataLog!AB926,\"\")","v":""},{"$f":"IF(DataLog!$C926=\"Log value\",DataLog!AC926,\"\")","v":""},{"$f":"IF(DataLog!$C926=\"Log value\",DataLog!AD926,\"\")","v":""},{"$f":"IF(DataLog!$C926=\"Log value\",DataLog!AE926,\"\")","v":""},{"$f":"IF(DataLog!$C926=\"Log value\",DataLog!AF926,\"\")","v":""},{"$f":"IF(DataLog!$C926=\"Log value\",DataLog!AG926,\"\")","v":""},{"$f":"IF(DataLog!$C926=\"Log value\",DataLog!AH926,\"\")","v":""},{"$f":"IF(DataLog!$C926=\"Log value\",DataLog!AI926,\"\")","v":""},{"$f":"IF(DataLog!$C926=\"Log value\",DataLog!AJ926,\"\")","v":""},{"$f":"IF(DataLog!$C926=\"Log value\",DataLog!AK926,\"\")","v":""},{"$f":"IF(DataLog!$C926=\"Log value\",DataLog!AL926,\"\")","v":""},{"$f":"IF(DataLog!$C926=\"Log value\",DataLog!AM926,\"\")","v":""}]
[null,null,null,null,null,null,{"$f":"IF(DataLog!$C927=\"Log value\",DataLog!D927&\"_\"&TEXT(DataLog!B927,\"åååå-mm-dd\"),\"\")","v":""},{"$f":"IF(DataLog!$C927=\"Log value\",DataLog!E927,\"\")","v":""},{"$f":"IF(DataLog!$C927=\"Log value\",DataLog!F927,\"\")","v":""},{"$f":"IF(DataLog!$C927=\"Log value\",DataLog!G927,\"\")","v":""},{"$f":"IF(DataLog!$C927=\"Log value\",DataLog!H927,\"\")","v":""},{"$f":"IF(DataLog!$C927=\"Log value\",DataLog!I927,\"\")","v":""},{"$f":"IF(DataLog!$C927=\"Log value\",DataLog!J927,\"\")","v":""},{"$f":"IF(DataLog!$C927=\"Log value\",DataLog!K927,\"\")","v":""},{"$f":"IF(DataLog!$C927=\"Log value\",DataLog!L927,\"\")","v":""},{"$f":"IF(DataLog!$C927=\"Log value\",DataLog!M927,\"\")","v":""},{"$f":"IF(DataLog!$C927=\"Log value\",DataLog!N927,\"\")","v":""},{"$f":"IF(DataLog!$C927=\"Log value\",DataLog!O927,\"\")","v":""},{"$f":"IF(DataLog!$C927=\"Log value\",DataLog!P927,\"\")","v":""},{"$f":"IF(DataLog!$C927=\"Log value\",DataLog!Q927,\"\")","v":""},{"$f":"IF(DataLog!$C927=\"Log value\",DataLog!R927,\"\")","v":""},{"$f":"IF(DataLog!$C927=\"Log value\",DataLog!S927,\"\")","v":""},{"$f":"IF(DataLog!$C927=\"Log value\",DataLog!T927,\"\")","v":""},{"$f":"IF(DataLog!$C927=\"Log value\",DataLog!U927,\"\")","v":""},{"$f":"IF(DataLog!$C927=\"Log value\",DataLog!V927,\"\")","v":""},{"$f":"IF(DataLog!$C927=\"Log value\",DataLog!W927,\"\")","v":""},{"$f":"IF(DataLog!$C927=\"Log value\",DataLog!X927,\"\")","v":""},{"$f":"IF(DataLog!$C927=\"Log value\",DataLog!Y927,\"\")","v":""},{"$f":"IF(DataLog!$C927=\"Log value\",DataLog!Z927,\"\")","v":""},{"$f":"IF(DataLog!$C927=\"Log value\",DataLog!AA927,\"\")","v":""},{"$f":"IF(DataLog!$C927=\"Log value\",DataLog!AB927,\"\")","v":""},{"$f":"IF(DataLog!$C927=\"Log value\",DataLog!AC927,\"\")","v":""},{"$f":"IF(DataLog!$C927=\"Log value\",DataLog!AD927,\"\")","v":""},{"$f":"IF(DataLog!$C927=\"Log value\",DataLog!AE927,\"\")","v":""},{"$f":"IF(DataLog!$C927=\"Log value\",DataLog!AF927,\"\")","v":""},{"$f":"IF(DataLog!$C927=\"Log value\",DataLog!AG927,\"\")","v":""},{"$f":"IF(DataLog!$C927=\"Log value\",DataLog!AH927,\"\")","v":""},{"$f":"IF(DataLog!$C927=\"Log value\",DataLog!AI927,\"\")","v":""},{"$f":"IF(DataLog!$C927=\"Log value\",DataLog!AJ927,\"\")","v":""},{"$f":"IF(DataLog!$C927=\"Log value\",DataLog!AK927,\"\")","v":""},{"$f":"IF(DataLog!$C927=\"Log value\",DataLog!AL927,\"\")","v":""},{"$f":"IF(DataLog!$C927=\"Log value\",DataLog!AM927,\"\")","v":""}]
[null,null,null,null,null,null,{"$f":"IF(DataLog!$C928=\"Log value\",DataLog!D928&\"_\"&TEXT(DataLog!B928,\"åååå-mm-dd\"),\"\")","v":""},{"$f":"IF(DataLog!$C928=\"Log value\",DataLog!E928,\"\")","v":""},{"$f":"IF(DataLog!$C928=\"Log value\",DataLog!F928,\"\")","v":""},{"$f":"IF(DataLog!$C928=\"Log value\",DataLog!G928,\"\")","v":""},{"$f":"IF(DataLog!$C928=\"Log value\",DataLog!H928,\"\")","v":""},{"$f":"IF(DataLog!$C928=\"Log value\",DataLog!I928,\"\")","v":""},{"$f":"IF(DataLog!$C928=\"Log value\",DataLog!J928,\"\")","v":""},{"$f":"IF(DataLog!$C928=\"Log value\",DataLog!K928,\"\")","v":""},{"$f":"IF(DataLog!$C928=\"Log value\",DataLog!L928,\"\")","v":""},{"$f":"IF(DataLog!$C928=\"Log value\",DataLog!M928,\"\")","v":""},{"$f":"IF(DataLog!$C928=\"Log value\",DataLog!N928,\"\")","v":""},{"$f":"IF(DataLog!$C928=\"Log value\",DataLog!O928,\"\")","v":""},{"$f":"IF(DataLog!$C928=\"Log value\",DataLog!P928,\"\")","v":""},{"$f":"IF(DataLog!$C928=\"Log value\",DataLog!Q928,\"\")","v":""},{"$f":"IF(DataLog!$C928=\"Log value\",DataLog!R928,\"\")","v":""},{"$f":"IF(DataLog!$C928=\"Log value\",DataLog!S928,\"\")","v":""},{"$f":"IF(DataLog!$C928=\"Log value\",DataLog!T928,\"\")","v":""},{"$f":"IF(DataLog!$C928=\"Log value\",DataLog!U928,\"\")","v":""},{"$f":"IF(DataLog!$C928=\"Log value\",DataLog!V928,\"\")","v":""},{"$f":"IF(DataLog!$C928=\"Log value\",DataLog!W928,\"\")","v":""},{"$f":"IF(DataLog!$C928=\"Log value\",DataLog!X928,\"\")","v":""},{"$f":"IF(DataLog!$C928=\"Log value\",DataLog!Y928,\"\")","v":""},{"$f":"IF(DataLog!$C928=\"Log value\",DataLog!Z928,\"\")","v":""},{"$f":"IF(DataLog!$C928=\"Log value\",DataLog!AA928,\"\")","v":""},{"$f":"IF(DataLog!$C928=\"Log value\",DataLog!AB928,\"\")","v":""},{"$f":"IF(DataLog!$C928=\"Log value\",DataLog!AC928,\"\")","v":""},{"$f":"IF(DataLog!$C928=\"Log value\",DataLog!AD928,\"\")","v":""},{"$f":"IF(DataLog!$C928=\"Log value\",DataLog!AE928,\"\")","v":""},{"$f":"IF(DataLog!$C928=\"Log value\",DataLog!AF928,\"\")","v":""},{"$f":"IF(DataLog!$C928=\"Log value\",DataLog!AG928,\"\")","v":""},{"$f":"IF(DataLog!$C928=\"Log value\",DataLog!AH928,\"\")","v":""},{"$f":"IF(DataLog!$C928=\"Log value\",DataLog!AI928,\"\")","v":""},{"$f":"IF(DataLog!$C928=\"Log value\",DataLog!AJ928,\"\")","v":""},{"$f":"IF(DataLog!$C928=\"Log value\",DataLog!AK928,\"\")","v":""},{"$f":"IF(DataLog!$C928=\"Log value\",DataLog!AL928,\"\")","v":""},{"$f":"IF(DataLog!$C928=\"Log value\",DataLog!AM928,\"\")","v":""}]
[null,null,null,null,null,null,{"$f":"IF(DataLog!$C929=\"Log value\",DataLog!D929&\"_\"&TEXT(DataLog!B929,\"åååå-mm-dd\"),\"\")","v":""},{"$f":"IF(DataLog!$C929=\"Log value\",DataLog!E929,\"\")","v":""},{"$f":"IF(DataLog!$C929=\"Log value\",DataLog!F929,\"\")","v":""},{"$f":"IF(DataLog!$C929=\"Log value\",DataLog!G929,\"\")","v":""},{"$f":"IF(DataLog!$C929=\"Log value\",DataLog!H929,\"\")","v":""},{"$f":"IF(DataLog!$C929=\"Log value\",DataLog!I929,\"\")","v":""},{"$f":"IF(DataLog!$C929=\"Log value\",DataLog!J929,\"\")","v":""},{"$f":"IF(DataLog!$C929=\"Log value\",DataLog!K929,\"\")","v":""},{"$f":"IF(DataLog!$C929=\"Log value\",DataLog!L929,\"\")","v":""},{"$f":"IF(DataLog!$C929=\"Log value\",DataLog!M929,\"\")","v":""},{"$f":"IF(DataLog!$C929=\"Log value\",DataLog!N929,\"\")","v":""},{"$f":"IF(DataLog!$C929=\"Log value\",DataLog!O929,\"\")","v":""},{"$f":"IF(DataLog!$C929=\"Log value\",DataLog!P929,\"\")","v":""},{"$f":"IF(DataLog!$C929=\"Log value\",DataLog!Q929,\"\")","v":""},{"$f":"IF(DataLog!$C929=\"Log value\",DataLog!R929,\"\")","v":""},{"$f":"IF(DataLog!$C929=\"Log value\",DataLog!S929,\"\")","v":""},{"$f":"IF(DataLog!$C929=\"Log value\",DataLog!T929,\"\")","v":""},{"$f":"IF(DataLog!$C929=\"Log value\",DataLog!U929,\"\")","v":""},{"$f":"IF(DataLog!$C929=\"Log value\",DataLog!V929,\"\")","v":""},{"$f":"IF(DataLog!$C929=\"Log value\",DataLog!W929,\"\")","v":""},{"$f":"IF(DataLog!$C929=\"Log value\",DataLog!X929,\"\")","v":""},{"$f":"IF(DataLog!$C929=\"Log value\",DataLog!Y929,\"\")","v":""},{"$f":"IF(DataLog!$C929=\"Log value\",DataLog!Z929,\"\")","v":""},{"$f":"IF(DataLog!$C929=\"Log value\",DataLog!AA929,\"\")","v":""},{"$f":"IF(DataLog!$C929=\"Log value\",DataLog!AB929,\"\")","v":""},{"$f":"IF(DataLog!$C929=\"Log value\",DataLog!AC929,\"\")","v":""},{"$f":"IF(DataLog!$C929=\"Log value\",DataLog!AD929,\"\")","v":""},{"$f":"IF(DataLog!$C929=\"Log value\",DataLog!AE929,\"\")","v":""},{"$f":"IF(DataLog!$C929=\"Log value\",DataLog!AF929,\"\")","v":""},{"$f":"IF(DataLog!$C929=\"Log value\",DataLog!AG929,\"\")","v":""},{"$f":"IF(DataLog!$C929=\"Log value\",DataLog!AH929,\"\")","v":""},{"$f":"IF(DataLog!$C929=\"Log value\",DataLog!AI929,\"\")","v":""},{"$f":"IF(DataLog!$C929=\"Log value\",DataLog!AJ929,\"\")","v":""},{"$f":"IF(DataLog!$C929=\"Log value\",DataLog!AK929,\"\")","v":""},{"$f":"IF(DataLog!$C929=\"Log value\",DataLog!AL929,\"\")","v":""},{"$f":"IF(DataLog!$C929=\"Log value\",DataLog!AM929,\"\")","v":""}]
[null,null,null,null,null,null,{"$f":"IF(DataLog!$C930=\"Log value\",DataLog!D930&\"_\"&TEXT(DataLog!B930,\"åååå-mm-dd\"),\"\")","v":""},{"$f":"IF(DataLog!$C930=\"Log value\",DataLog!E930,\"\")","v":""},{"$f":"IF(DataLog!$C930=\"Log value\",DataLog!F930,\"\")","v":""},{"$f":"IF(DataLog!$C930=\"Log value\",DataLog!G930,\"\")","v":""},{"$f":"IF(DataLog!$C930=\"Log value\",DataLog!H930,\"\")","v":""},{"$f":"IF(DataLog!$C930=\"Log value\",DataLog!I930,\"\")","v":""},{"$f":"IF(DataLog!$C930=\"Log value\",DataLog!J930,\"\")","v":""},{"$f":"IF(DataLog!$C930=\"Log value\",DataLog!K930,\"\")","v":""},{"$f":"IF(DataLog!$C930=\"Log value\",DataLog!L930,\"\")","v":""},{"$f":"IF(DataLog!$C930=\"Log value\",DataLog!M930,\"\")","v":""},{"$f":"IF(DataLog!$C930=\"Log value\",DataLog!N930,\"\")","v":""},{"$f":"IF(DataLog!$C930=\"Log value\",DataLog!O930,\"\")","v":""},{"$f":"IF(DataLog!$C930=\"Log value\",DataLog!P930,\"\")","v":""},{"$f":"IF(DataLog!$C930=\"Log value\",DataLog!Q930,\"\")","v":""},{"$f":"IF(DataLog!$C930=\"Log value\",DataLog!R930,\"\")","v":""},{"$f":"IF(DataLog!$C930=\"Log value\",DataLog!S930,\"\")","v":""},{"$f":"IF(DataLog!$C930=\"Log value\",DataLog!T930,\"\")","v":""},{"$f":"IF(DataLog!$C930=\"Log value\",DataLog!U930,\"\")","v":""},{"$f":"IF(DataLog!$C930=\"Log value\",DataLog!V930,\"\")","v":""},{"$f":"IF(DataLog!$C930=\"Log value\",DataLog!W930,\"\")","v":""},{"$f":"IF(DataLog!$C930=\"Log value\",DataLog!X930,\"\")","v":""},{"$f":"IF(DataLog!$C930=\"Log value\",DataLog!Y930,\"\")","v":""},{"$f":"IF(DataLog!$C930=\"Log value\",DataLog!Z930,\"\")","v":""},{"$f":"IF(DataLog!$C930=\"Log value\",DataLog!AA930,\"\")","v":""},{"$f":"IF(DataLog!$C930=\"Log value\",DataLog!AB930,\"\")","v":""},{"$f":"IF(DataLog!$C930=\"Log value\",DataLog!AC930,\"\")","v":""},{"$f":"IF(DataLog!$C930=\"Log value\",DataLog!AD930,\"\")","v":""},{"$f":"IF(DataLog!$C930=\"Log value\",DataLog!AE930,\"\")","v":""},{"$f":"IF(DataLog!$C930=\"Log value\",DataLog!AF930,\"\")","v":""},{"$f":"IF(DataLog!$C930=\"Log value\",DataLog!AG930,\"\")","v":""},{"$f":"IF(DataLog!$C930=\"Log value\",DataLog!AH930,\"\")","v":""},{"$f":"IF(DataLog!$C930=\"Log value\",DataLog!AI930,\"\")","v":""},{"$f":"IF(DataLog!$C930=\"Log value\",DataLog!AJ930,\"\")","v":""},{"$f":"IF(DataLog!$C930=\"Log value\",DataLog!AK930,\"\")","v":""},{"$f":"IF(DataLog!$C930=\"Log value\",DataLog!AL930,\"\")","v":""},{"$f":"IF(DataLog!$C930=\"Log value\",DataLog!AM930,\"\")","v":""}]
[null,null,null,null,null,null,{"$f":"IF(DataLog!$C931=\"Log value\",DataLog!D931&\"_\"&TEXT(DataLog!B931,\"åååå-mm-dd\"),\"\")","v":""},{"$f":"IF(DataLog!$C931=\"Log value\",DataLog!E931,\"\")","v":""},{"$f":"IF(DataLog!$C931=\"Log value\",DataLog!F931,\"\")","v":""},{"$f":"IF(DataLog!$C931=\"Log value\",DataLog!G931,\"\")","v":""},{"$f":"IF(DataLog!$C931=\"Log value\",DataLog!H931,\"\")","v":""},{"$f":"IF(DataLog!$C931=\"Log value\",DataLog!I931,\"\")","v":""},{"$f":"IF(DataLog!$C931=\"Log value\",DataLog!J931,\"\")","v":""},{"$f":"IF(DataLog!$C931=\"Log value\",DataLog!K931,\"\")","v":""},{"$f":"IF(DataLog!$C931=\"Log value\",DataLog!L931,\"\")","v":""},{"$f":"IF(DataLog!$C931=\"Log value\",DataLog!M931,\"\")","v":""},{"$f":"IF(DataLog!$C931=\"Log value\",DataLog!N931,\"\")","v":""},{"$f":"IF(DataLog!$C931=\"Log value\",DataLog!O931,\"\")","v":""},{"$f":"IF(DataLog!$C931=\"Log value\",DataLog!P931,\"\")","v":""},{"$f":"IF(DataLog!$C931=\"Log value\",DataLog!Q931,\"\")","v":""},{"$f":"IF(DataLog!$C931=\"Log value\",DataLog!R931,\"\")","v":""},{"$f":"IF(DataLog!$C931=\"Log value\",DataLog!S931,\"\")","v":""},{"$f":"IF(DataLog!$C931=\"Log value\",DataLog!T931,\"\")","v":""},{"$f":"IF(DataLog!$C931=\"Log value\",DataLog!U931,\"\")","v":""},{"$f":"IF(DataLog!$C931=\"Log value\",DataLog!V931,\"\")","v":""},{"$f":"IF(DataLog!$C931=\"Log value\",DataLog!W931,\"\")","v":""},{"$f":"IF(DataLog!$C931=\"Log value\",DataLog!X931,\"\")","v":""},{"$f":"IF(DataLog!$C931=\"Log value\",DataLog!Y931,\"\")","v":""},{"$f":"IF(DataLog!$C931=\"Log value\",DataLog!Z931,\"\")","v":""},{"$f":"IF(DataLog!$C931=\"Log value\",DataLog!AA931,\"\")","v":""},{"$f":"IF(DataLog!$C931=\"Log value\",DataLog!AB931,\"\")","v":""},{"$f":"IF(DataLog!$C931=\"Log value\",DataLog!AC931,\"\")","v":""},{"$f":"IF(DataLog!$C931=\"Log value\",DataLog!AD931,\"\")","v":""},{"$f":"IF(DataLog!$C931=\"Log value\",DataLog!AE931,\"\")","v":""},{"$f":"IF(DataLog!$C931=\"Log value\",DataLog!AF931,\"\")","v":""},{"$f":"IF(DataLog!$C931=\"Log value\",DataLog!AG931,\"\")","v":""},{"$f":"IF(DataLog!$C931=\"Log value\",DataLog!AH931,\"\")","v":""},{"$f":"IF(DataLog!$C931=\"Log value\",DataLog!AI931,\"\")","v":""},{"$f":"IF(DataLog!$C931=\"Log value\",DataLog!AJ931,\"\")","v":""},{"$f":"IF(DataLog!$C931=\"Log value\",DataLog!AK931,\"\")","v":""},{"$f":"IF(DataLog!$C931=\"Log value\",DataLog!AL931,\"\")","v":""},{"$f":"IF(DataLog!$C931=\"Log value\",DataLog!AM931,\"\")","v":""}]
[null,null,null,null,null,null,{"$f":"IF(DataLog!$C932=\"Log value\",DataLog!D932&\"_\"&TEXT(DataLog!B932,\"åååå-mm-dd\"),\"\")","v":""},{"$f":"IF(DataLog!$C932=\"Log value\",DataLog!E932,\"\")","v":""},{"$f":"IF(DataLog!$C932=\"Log value\",DataLog!F932,\"\")","v":""},{"$f":"IF(DataLog!$C932=\"Log value\",DataLog!G932,\"\")","v":""},{"$f":"IF(DataLog!$C932=\"Log value\",DataLog!H932,\"\")","v":""},{"$f":"IF(DataLog!$C932=\"Log value\",DataLog!I932,\"\")","v":""},{"$f":"IF(DataLog!$C932=\"Log value\",DataLog!J932,\"\")","v":""},{"$f":"IF(DataLog!$C932=\"Log value\",DataLog!K932,\"\")","v":""},{"$f":"IF(DataLog!$C932=\"Log value\",DataLog!L932,\"\")","v":""},{"$f":"IF(DataLog!$C932=\"Log value\",DataLog!M932,\"\")","v":""},{"$f":"IF(DataLog!$C932=\"Log value\",DataLog!N932,\"\")","v":""},{"$f":"IF(DataLog!$C932=\"Log value\",DataLog!O932,\"\")","v":""},{"$f":"IF(DataLog!$C932=\"Log value\",DataLog!P932,\"\")","v":""},{"$f":"IF(DataLog!$C932=\"Log value\",DataLog!Q932,\"\")","v":""},{"$f":"IF(DataLog!$C932=\"Log value\",DataLog!R932,\"\")","v":""},{"$f":"IF(DataLog!$C932=\"Log value\",DataLog!S932,\"\")","v":""},{"$f":"IF(DataLog!$C932=\"Log value\",DataLog!T932,\"\")","v":""},{"$f":"IF(DataLog!$C932=\"Log value\",DataLog!U932,\"\")","v":""},{"$f":"IF(DataLog!$C932=\"Log value\",DataLog!V932,\"\")","v":""},{"$f":"IF(DataLog!$C932=\"Log value\",DataLog!W932,\"\")","v":""},{"$f":"IF(DataLog!$C932=\"Log value\",DataLog!X932,\"\")","v":""},{"$f":"IF(DataLog!$C932=\"Log value\",DataLog!Y932,\"\")","v":""},{"$f":"IF(DataLog!$C932=\"Log value\",DataLog!Z932,\"\")","v":""},{"$f":"IF(DataLog!$C932=\"Log value\",DataLog!AA932,\"\")","v":""},{"$f":"IF(DataLog!$C932=\"Log value\",DataLog!AB932,\"\")","v":""},{"$f":"IF(DataLog!$C932=\"Log value\",DataLog!AC932,\"\")","v":""},{"$f":"IF(DataLog!$C932=\"Log value\",DataLog!AD932,\"\")","v":""},{"$f":"IF(DataLog!$C932=\"Log value\",DataLog!AE932,\"\")","v":""},{"$f":"IF(DataLog!$C932=\"Log value\",DataLog!AF932,\"\")","v":""},{"$f":"IF(DataLog!$C932=\"Log value\",DataLog!AG932,\"\")","v":""},{"$f":"IF(DataLog!$C932=\"Log value\",DataLog!AH932,\"\")","v":""},{"$f":"IF(DataLog!$C932=\"Log value\",DataLog!AI932,\"\")","v":""},{"$f":"IF(DataLog!$C932=\"Log value\",DataLog!AJ932,\"\")","v":""},{"$f":"IF(DataLog!$C932=\"Log value\",DataLog!AK932,\"\")","v":""},{"$f":"IF(DataLog!$C932=\"Log value\",DataLog!AL932,\"\")","v":""},{"$f":"IF(DataLog!$C932=\"Log value\",DataLog!AM932,\"\")","v":""}]
[null,null,null,null,null,null,{"$f":"IF(DataLog!$C933=\"Log value\",DataLog!D933&\"_\"&TEXT(DataLog!B933,\"åååå-mm-dd\"),\"\")","v":""},{"$f":"IF(DataLog!$C933=\"Log value\",DataLog!E933,\"\")","v":""},{"$f":"IF(DataLog!$C933=\"Log value\",DataLog!F933,\"\")","v":""},{"$f":"IF(DataLog!$C933=\"Log value\",DataLog!G933,\"\")","v":""},{"$f":"IF(DataLog!$C933=\"Log value\",DataLog!H933,\"\")","v":""},{"$f":"IF(DataLog!$C933=\"Log value\",DataLog!I933,\"\")","v":""},{"$f":"IF(DataLog!$C933=\"Log value\",DataLog!J933,\"\")","v":""},{"$f":"IF(DataLog!$C933=\"Log value\",DataLog!K933,\"\")","v":""},{"$f":"IF(DataLog!$C933=\"Log value\",DataLog!L933,\"\")","v":""},{"$f":"IF(DataLog!$C933=\"Log value\",DataLog!M933,\"\")","v":""},{"$f":"IF(DataLog!$C933=\"Log value\",DataLog!N933,\"\")","v":""},{"$f":"IF(DataLog!$C933=\"Log value\",DataLog!O933,\"\")","v":""},{"$f":"IF(DataLog!$C933=\"Log value\",DataLog!P933,\"\")","v":""},{"$f":"IF(DataLog!$C933=\"Log value\",DataLog!Q933,\"\")","v":""},{"$f":"IF(DataLog!$C933=\"Log value\",DataLog!R933,\"\")","v":""},{"$f":"IF(DataLog!$C933=\"Log value\",DataLog!S933,\"\")","v":""},{"$f":"IF(DataLog!$C933=\"Log value\",DataLog!T933,\"\")","v":""},{"$f":"IF(DataLog!$C933=\"Log value\",DataLog!U933,\"\")","v":""},{"$f":"IF(DataLog!$C933=\"Log value\",DataLog!V933,\"\")","v":""},{"$f":"IF(DataLog!$C933=\"Log value\",DataLog!W933,\"\")","v":""},{"$f":"IF(DataLog!$C933=\"Log value\",DataLog!X933,\"\")","v":""},{"$f":"IF(DataLog!$C933=\"Log value\",DataLog!Y933,\"\")","v":""},{"$f":"IF(DataLog!$C933=\"Log value\",DataLog!Z933,\"\")","v":""},{"$f":"IF(DataLog!$C933=\"Log value\",DataLog!AA933,\"\")","v":""},{"$f":"IF(DataLog!$C933=\"Log value\",DataLog!AB933,\"\")","v":""},{"$f":"IF(DataLog!$C933=\"Log value\",DataLog!AC933,\"\")","v":""},{"$f":"IF(DataLog!$C933=\"Log value\",DataLog!AD933,\"\")","v":""},{"$f":"IF(DataLog!$C933=\"Log value\",DataLog!AE933,\"\")","v":""},{"$f":"IF(DataLog!$C933=\"Log value\",DataLog!AF933,\"\")","v":""},{"$f":"IF(DataLog!$C933=\"Log value\",DataLog!AG933,\"\")","v":""},{"$f":"IF(DataLog!$C933=\"Log value\",DataLog!AH933,\"\")","v":""},{"$f":"IF(DataLog!$C933=\"Log value\",DataLog!AI933,\"\")","v":""},{"$f":"IF(DataLog!$C933=\"Log value\",DataLog!AJ933,\"\")","v":""},{"$f":"IF(DataLog!$C933=\"Log value\",DataLog!AK933,\"\")","v":""},{"$f":"IF(DataLog!$C933=\"Log value\",DataLog!AL933,\"\")","v":""},{"$f":"IF(DataLog!$C933=\"Log value\",DataLog!AM933,\"\")","v":""}]
[null,null,null,null,null,null,{"$f":"IF(DataLog!$C934=\"Log value\",DataLog!D934&\"_\"&TEXT(DataLog!B934,\"åååå-mm-dd\"),\"\")","v":""},{"$f":"IF(DataLog!$C934=\"Log value\",DataLog!E934,\"\")","v":""},{"$f":"IF(DataLog!$C934=\"Log value\",DataLog!F934,\"\")","v":""},{"$f":"IF(DataLog!$C934=\"Log value\",DataLog!G934,\"\")","v":""},{"$f":"IF(DataLog!$C934=\"Log value\",DataLog!H934,\"\")","v":""},{"$f":"IF(DataLog!$C934=\"Log value\",DataLog!I934,\"\")","v":""},{"$f":"IF(DataLog!$C934=\"Log value\",DataLog!J934,\"\")","v":""},{"$f":"IF(DataLog!$C934=\"Log value\",DataLog!K934,\"\")","v":""},{"$f":"IF(DataLog!$C934=\"Log value\",DataLog!L934,\"\")","v":""},{"$f":"IF(DataLog!$C934=\"Log value\",DataLog!M934,\"\")","v":""},{"$f":"IF(DataLog!$C934=\"Log value\",DataLog!N934,\"\")","v":""},{"$f":"IF(DataLog!$C934=\"Log value\",DataLog!O934,\"\")","v":""},{"$f":"IF(DataLog!$C934=\"Log value\",DataLog!P934,\"\")","v":""},{"$f":"IF(DataLog!$C934=\"Log value\",DataLog!Q934,\"\")","v":""},{"$f":"IF(DataLog!$C934=\"Log value\",DataLog!R934,\"\")","v":""},{"$f":"IF(DataLog!$C934=\"Log value\",DataLog!S934,\"\")","v":""},{"$f":"IF(DataLog!$C934=\"Log value\",DataLog!T934,\"\")","v":""},{"$f":"IF(DataLog!$C934=\"Log value\",DataLog!U934,\"\")","v":""},{"$f":"IF(DataLog!$C934=\"Log value\",DataLog!V934,\"\")","v":""},{"$f":"IF(DataLog!$C934=\"Log value\",DataLog!W934,\"\")","v":""},{"$f":"IF(DataLog!$C934=\"Log value\",DataLog!X934,\"\")","v":""},{"$f":"IF(DataLog!$C934=\"Log value\",DataLog!Y934,\"\")","v":""},{"$f":"IF(DataLog!$C934=\"Log value\",DataLog!Z934,\"\")","v":""},{"$f":"IF(DataLog!$C934=\"Log value\",DataLog!AA934,\"\")","v":""},{"$f":"IF(DataLog!$C934=\"Log value\",DataLog!AB934,\"\")","v":""},{"$f":"IF(DataLog!$C934=\"Log value\",DataLog!AC934,\"\")","v":""},{"$f":"IF(DataLog!$C934=\"Log value\",DataLog!AD934,\"\")","v":""},{"$f":"IF(DataLog!$C934=\"Log value\",DataLog!AE934,\"\")","v":""},{"$f":"IF(DataLog!$C934=\"Log value\",DataLog!AF934,\"\")","v":""},{"$f":"IF(DataLog!$C934=\"Log value\",DataLog!AG934,\"\")","v":""},{"$f":"IF(DataLog!$C934=\"Log value\",DataLog!AH934,\"\")","v":""},{"$f":"IF(DataLog!$C934=\"Log value\",DataLog!AI934,\"\")","v":""},{"$f":"IF(DataLog!$C934=\"Log value\",DataLog!AJ934,\"\")","v":""},{"$f":"IF(DataLog!$C934=\"Log value\",DataLog!AK934,\"\")","v":""},{"$f":"IF(DataLog!$C934=\"Log value\",DataLog!AL934,\"\")","v":""},{"$f":"IF(DataLog!$C934=\"Log value\",DataLog!AM934,\"\")","v":""}]
[null,null,null,null,null,null,{"$f":"IF(DataLog!$C935=\"Log value\",DataLog!D935&\"_\"&TEXT(DataLog!B935,\"åååå-mm-dd\"),\"\")","v":""},{"$f":"IF(DataLog!$C935=\"Log value\",DataLog!E935,\"\")","v":""},{"$f":"IF(DataLog!$C935=\"Log value\",DataLog!F935,\"\")","v":""},{"$f":"IF(DataLog!$C935=\"Log value\",DataLog!G935,\"\")","v":""},{"$f":"IF(DataLog!$C935=\"Log value\",DataLog!H935,\"\")","v":""},{"$f":"IF(DataLog!$C935=\"Log value\",DataLog!I935,\"\")","v":""},{"$f":"IF(DataLog!$C935=\"Log value\",DataLog!J935,\"\")","v":""},{"$f":"IF(DataLog!$C935=\"Log value\",DataLog!K935,\"\")","v":""},{"$f":"IF(DataLog!$C935=\"Log value\",DataLog!L935,\"\")","v":""},{"$f":"IF(DataLog!$C935=\"Log value\",DataLog!M935,\"\")","v":""},{"$f":"IF(DataLog!$C935=\"Log value\",DataLog!N935,\"\")","v":""},{"$f":"IF(DataLog!$C935=\"Log value\",DataLog!O935,\"\")","v":""},{"$f":"IF(DataLog!$C935=\"Log value\",DataLog!P935,\"\")","v":""},{"$f":"IF(DataLog!$C935=\"Log value\",DataLog!Q935,\"\")","v":""},{"$f":"IF(DataLog!$C935=\"Log value\",DataLog!R935,\"\")","v":""},{"$f":"IF(DataLog!$C935=\"Log value\",DataLog!S935,\"\")","v":""},{"$f":"IF(DataLog!$C935=\"Log value\",DataLog!T935,\"\")","v":""},{"$f":"IF(DataLog!$C935=\"Log value\",DataLog!U935,\"\")","v":""},{"$f":"IF(DataLog!$C935=\"Log value\",DataLog!V935,\"\")","v":""},{"$f":"IF(DataLog!$C935=\"Log value\",DataLog!W935,\"\")","v":""},{"$f":"IF(DataLog!$C935=\"Log value\",DataLog!X935,\"\")","v":""},{"$f":"IF(DataLog!$C935=\"Log value\",DataLog!Y935,\"\")","v":""},{"$f":"IF(DataLog!$C935=\"Log value\",DataLog!Z935,\"\")","v":""},{"$f":"IF(DataLog!$C935=\"Log value\",DataLog!AA935,\"\")","v":""},{"$f":"IF(DataLog!$C935=\"Log value\",DataLog!AB935,\"\")","v":""},{"$f":"IF(DataLog!$C935=\"Log value\",DataLog!AC935,\"\")","v":""},{"$f":"IF(DataLog!$C935=\"Log value\",DataLog!AD935,\"\")","v":""},{"$f":"IF(DataLog!$C935=\"Log value\",DataLog!AE935,\"\")","v":""},{"$f":"IF(DataLog!$C935=\"Log value\",DataLog!AF935,\"\")","v":""},{"$f":"IF(DataLog!$C935=\"Log value\",DataLog!AG935,\"\")","v":""},{"$f":"IF(DataLog!$C935=\"Log value\",DataLog!AH935,\"\")","v":""},{"$f":"IF(DataLog!$C935=\"Log value\",DataLog!AI935,\"\")","v":""},{"$f":"IF(DataLog!$C935=\"Log value\",DataLog!AJ935,\"\")","v":""},{"$f":"IF(DataLog!$C935=\"Log value\",DataLog!AK935,\"\")","v":""},{"$f":"IF(DataLog!$C935=\"Log value\",DataLog!AL935,\"\")","v":""},{"$f":"IF(DataLog!$C935=\"Log value\",DataLog!AM935,\"\")","v":""}]
[null,null,null,null,null,null,{"$f":"IF(DataLog!$C936=\"Log value\",DataLog!D936&\"_\"&TEXT(DataLog!B936,\"åååå-mm-dd\"),\"\")","v":""},{"$f":"IF(DataLog!$C936=\"Log value\",DataLog!E936,\"\")","v":""},{"$f":"IF(DataLog!$C936=\"Log value\",DataLog!F936,\"\")","v":""},{"$f":"IF(DataLog!$C936=\"Log value\",DataLog!G936,\"\")","v":""},{"$f":"IF(DataLog!$C936=\"Log value\",DataLog!H936,\"\")","v":""},{"$f":"IF(DataLog!$C936=\"Log value\",DataLog!I936,\"\")","v":""},{"$f":"IF(DataLog!$C936=\"Log value\",DataLog!J936,\"\")","v":""},{"$f":"IF(DataLog!$C936=\"Log value\",DataLog!K936,\"\")","v":""},{"$f":"IF(DataLog!$C936=\"Log value\",DataLog!L936,\"\")","v":""},{"$f":"IF(DataLog!$C936=\"Log value\",DataLog!M936,\"\")","v":""},{"$f":"IF(DataLog!$C936=\"Log value\",DataLog!N936,\"\")","v":""},{"$f":"IF(DataLog!$C936=\"Log value\",DataLog!O936,\"\")","v":""},{"$f":"IF(DataLog!$C936=\"Log value\",DataLog!P936,\"\")","v":""},{"$f":"IF(DataLog!$C936=\"Log value\",DataLog!Q936,\"\")","v":""},{"$f":"IF(DataLog!$C936=\"Log value\",DataLog!R936,\"\")","v":""},{"$f":"IF(DataLog!$C936=\"Log value\",DataLog!S936,\"\")","v":""},{"$f":"IF(DataLog!$C936=\"Log value\",DataLog!T936,\"\")","v":""},{"$f":"IF(DataLog!$C936=\"Log value\",DataLog!U936,\"\")","v":""},{"$f":"IF(DataLog!$C936=\"Log value\",DataLog!V936,\"\")","v":""},{"$f":"IF(DataLog!$C936=\"Log value\",DataLog!W936,\"\")","v":""},{"$f":"IF(DataLog!$C936=\"Log value\",DataLog!X936,\"\")","v":""},{"$f":"IF(DataLog!$C936=\"Log value\",DataLog!Y936,\"\")","v":""},{"$f":"IF(DataLog!$C936=\"Log value\",DataLog!Z936,\"\")","v":""},{"$f":"IF(DataLog!$C936=\"Log value\",DataLog!AA936,\"\")","v":""},{"$f":"IF(DataLog!$C936=\"Log value\",DataLog!AB936,\"\")","v":""},{"$f":"IF(DataLog!$C936=\"Log value\",DataLog!AC936,\"\")","v":""},{"$f":"IF(DataLog!$C936=\"Log value\",DataLog!AD936,\"\")","v":""},{"$f":"IF(DataLog!$C936=\"Log value\",DataLog!AE936,\"\")","v":""},{"$f":"IF(DataLog!$C936=\"Log value\",DataLog!AF936,\"\")","v":""},{"$f":"IF(DataLog!$C936=\"Log value\",DataLog!AG936,\"\")","v":""},{"$f":"IF(DataLog!$C936=\"Log value\",DataLog!AH936,\"\")","v":""},{"$f":"IF(DataLog!$C936=\"Log value\",DataLog!AI936,\"\")","v":""},{"$f":"IF(DataLog!$C936=\"Log value\",DataLog!AJ936,\"\")","v":""},{"$f":"IF(DataLog!$C936=\"Log value\",DataLog!AK936,\"\")","v":""},{"$f":"IF(DataLog!$C936=\"Log value\",DataLog!AL936,\"\")","v":""},{"$f":"IF(DataLog!$C936=\"Log value\",DataLog!AM936,\"\")","v":""}]
[null,null,null,null,null,null,{"$f":"IF(DataLog!$C937=\"Log value\",DataLog!D937&\"_\"&TEXT(DataLog!B937,\"åååå-mm-dd\"),\"\")","v":""},{"$f":"IF(DataLog!$C937=\"Log value\",DataLog!E937,\"\")","v":""},{"$f":"IF(DataLog!$C937=\"Log value\",DataLog!F937,\"\")","v":""},{"$f":"IF(DataLog!$C937=\"Log value\",DataLog!G937,\"\")","v":""},{"$f":"IF(DataLog!$C937=\"Log value\",DataLog!H937,\"\")","v":""},{"$f":"IF(DataLog!$C937=\"Log value\",DataLog!I937,\"\")","v":""},{"$f":"IF(DataLog!$C937=\"Log value\",DataLog!J937,\"\")","v":""},{"$f":"IF(DataLog!$C937=\"Log value\",DataLog!K937,\"\")","v":""},{"$f":"IF(DataLog!$C937=\"Log value\",DataLog!L937,\"\")","v":""},{"$f":"IF(DataLog!$C937=\"Log value\",DataLog!M937,\"\")","v":""},{"$f":"IF(DataLog!$C937=\"Log value\",DataLog!N937,\"\")","v":""},{"$f":"IF(DataLog!$C937=\"Log value\",DataLog!O937,\"\")","v":""},{"$f":"IF(DataLog!$C937=\"Log value\",DataLog!P937,\"\")","v":""},{"$f":"IF(DataLog!$C937=\"Log value\",DataLog!Q937,\"\")","v":""},{"$f":"IF(DataLog!$C937=\"Log value\",DataLog!R937,\"\")","v":""},{"$f":"IF(DataLog!$C937=\"Log value\",DataLog!S937,\"\")","v":""},{"$f":"IF(DataLog!$C937=\"Log value\",DataLog!T937,\"\")","v":""},{"$f":"IF(DataLog!$C937=\"Log value\",DataLog!U937,\"\")","v":""},{"$f":"IF(DataLog!$C937=\"Log value\",DataLog!V937,\"\")","v":""},{"$f":"IF(DataLog!$C937=\"Log value\",DataLog!W937,\"\")","v":""},{"$f":"IF(DataLog!$C937=\"Log value\",DataLog!X937,\"\")","v":""},{"$f":"IF(DataLog!$C937=\"Log value\",DataLog!Y937,\"\")","v":""},{"$f":"IF(DataLog!$C937=\"Log value\",DataLog!Z937,\"\")","v":""},{"$f":"IF(DataLog!$C937=\"Log value\",DataLog!AA937,\"\")","v":""},{"$f":"IF(DataLog!$C937=\"Log value\",DataLog!AB937,\"\")","v":""},{"$f":"IF(DataLog!$C937=\"Log value\",DataLog!AC937,\"\")","v":""},{"$f":"IF(DataLog!$C937=\"Log value\",DataLog!AD937,\"\")","v":""},{"$f":"IF(DataLog!$C937=\"Log value\",DataLog!AE937,\"\")","v":""},{"$f":"IF(DataLog!$C937=\"Log value\",DataLog!AF937,\"\")","v":""},{"$f":"IF(DataLog!$C937=\"Log value\",DataLog!AG937,\"\")","v":""},{"$f":"IF(DataLog!$C937=\"Log value\",DataLog!AH937,\"\")","v":""},{"$f":"IF(DataLog!$C937=\"Log value\",DataLog!AI937,\"\")","v":""},{"$f":"IF(DataLog!$C937=\"Log value\",DataLog!AJ937,\"\")","v":""},{"$f":"IF(DataLog!$C937=\"Log value\",DataLog!AK937,\"\")","v":""},{"$f":"IF(DataLog!$C937=\"Log value\",DataLog!AL937,\"\")","v":""},{"$f":"IF(DataLog!$C937=\"Log value\",DataLog!AM937,\"\")","v":""}]
[null,null,null,null,null,null,{"$f":"IF(DataLog!$C938=\"Log value\",DataLog!D938&\"_\"&TEXT(DataLog!B938,\"åååå-mm-dd\"),\"\")","v":""},{"$f":"IF(DataLog!$C938=\"Log value\",DataLog!E938,\"\")","v":""},{"$f":"IF(DataLog!$C938=\"Log value\",DataLog!F938,\"\")","v":""},{"$f":"IF(DataLog!$C938=\"Log value\",DataLog!G938,\"\")","v":""},{"$f":"IF(DataLog!$C938=\"Log value\",DataLog!H938,\"\")","v":""},{"$f":"IF(DataLog!$C938=\"Log value\",DataLog!I938,\"\")","v":""},{"$f":"IF(DataLog!$C938=\"Log value\",DataLog!J938,\"\")","v":""},{"$f":"IF(DataLog!$C938=\"Log value\",DataLog!K938,\"\")","v":""},{"$f":"IF(DataLog!$C938=\"Log value\",DataLog!L938,\"\")","v":""},{"$f":"IF(DataLog!$C938=\"Log value\",DataLog!M938,\"\")","v":""},{"$f":"IF(DataLog!$C938=\"Log value\",DataLog!N938,\"\")","v":""},{"$f":"IF(DataLog!$C938=\"Log value\",DataLog!O938,\"\")","v":""},{"$f":"IF(DataLog!$C938=\"Log value\",DataLog!P938,\"\")","v":""},{"$f":"IF(DataLog!$C938=\"Log value\",DataLog!Q938,\"\")","v":""},{"$f":"IF(DataLog!$C938=\"Log value\",DataLog!R938,\"\")","v":""},{"$f":"IF(DataLog!$C938=\"Log value\",DataLog!S938,\"\")","v":""},{"$f":"IF(DataLog!$C938=\"Log value\",DataLog!T938,\"\")","v":""},{"$f":"IF(DataLog!$C938=\"Log value\",DataLog!U938,\"\")","v":""},{"$f":"IF(DataLog!$C938=\"Log value\",DataLog!V938,\"\")","v":""},{"$f":"IF(DataLog!$C938=\"Log value\",DataLog!W938,\"\")","v":""},{"$f":"IF(DataLog!$C938=\"Log value\",DataLog!X938,\"\")","v":""},{"$f":"IF(DataLog!$C938=\"Log value\",DataLog!Y938,\"\")","v":""},{"$f":"IF(DataLog!$C938=\"Log value\",DataLog!Z938,\"\")","v":""},{"$f":"IF(DataLog!$C938=\"Log value\",DataLog!AA938,\"\")","v":""},{"$f":"IF(DataLog!$C938=\"Log value\",DataLog!AB938,\"\")","v":""},{"$f":"IF(DataLog!$C938=\"Log value\",DataLog!AC938,\"\")","v":""},{"$f":"IF(DataLog!$C938=\"Log value\",DataLog!AD938,\"\")","v":""},{"$f":"IF(DataLog!$C938=\"Log value\",DataLog!AE938,\"\")","v":""},{"$f":"IF(DataLog!$C938=\"Log value\",DataLog!AF938,\"\")","v":""},{"$f":"IF(DataLog!$C938=\"Log value\",DataLog!AG938,\"\")","v":""},{"$f":"IF(DataLog!$C938=\"Log value\",DataLog!AH938,\"\")","v":""},{"$f":"IF(DataLog!$C938=\"Log value\",DataLog!AI938,\"\")","v":""},{"$f":"IF(DataLog!$C938=\"Log value\",DataLog!AJ938,\"\")","v":""},{"$f":"IF(DataLog!$C938=\"Log value\",DataLog!AK938,\"\")","v":""},{"$f":"IF(DataLog!$C938=\"Log value\",DataLog!AL938,\"\")","v":""},{"$f":"IF(DataLog!$C938=\"Log value\",DataLog!AM938,\"\")","v":""}]
[null,null,null,null,null,null,{"$f":"IF(DataLog!$C939=\"Log value\",DataLog!D939&\"_\"&TEXT(DataLog!B939,\"åååå-mm-dd\"),\"\")","v":""},{"$f":"IF(DataLog!$C939=\"Log value\",DataLog!E939,\"\")","v":""},{"$f":"IF(DataLog!$C939=\"Log value\",DataLog!F939,\"\")","v":""},{"$f":"IF(DataLog!$C939=\"Log value\",DataLog!G939,\"\")","v":""},{"$f":"IF(DataLog!$C939=\"Log value\",DataLog!H939,\"\")","v":""},{"$f":"IF(DataLog!$C939=\"Log value\",DataLog!I939,\"\")","v":""},{"$f":"IF(DataLog!$C939=\"Log value\",DataLog!J939,\"\")","v":""},{"$f":"IF(DataLog!$C939=\"Log value\",DataLog!K939,\"\")","v":""},{"$f":"IF(DataLog!$C939=\"Log value\",DataLog!L939,\"\")","v":""},{"$f":"IF(DataLog!$C939=\"Log value\",DataLog!M939,\"\")","v":""},{"$f":"IF(DataLog!$C939=\"Log value\",DataLog!N939,\"\")","v":""},{"$f":"IF(DataLog!$C939=\"Log value\",DataLog!O939,\"\")","v":""},{"$f":"IF(DataLog!$C939=\"Log value\",DataLog!P939,\"\")","v":""},{"$f":"IF(DataLog!$C939=\"Log value\",DataLog!Q939,\"\")","v":""},{"$f":"IF(DataLog!$C939=\"Log value\",DataLog!R939,\"\")","v":""},{"$f":"IF(DataLog!$C939=\"Log value\",DataLog!S939,\"\")","v":""},{"$f":"IF(DataLog!$C939=\"Log value\",DataLog!T939,\"\")","v":""},{"$f":"IF(DataLog!$C939=\"Log value\",DataLog!U939,\"\")","v":""},{"$f":"IF(DataLog!$C939=\"Log value\",DataLog!V939,\"\")","v":""},{"$f":"IF(DataLog!$C939=\"Log value\",DataLog!W939,\"\")","v":""},{"$f":"IF(DataLog!$C939=\"Log value\",DataLog!X939,\"\")","v":""},{"$f":"IF(DataLog!$C939=\"Log value\",DataLog!Y939,\"\")","v":""},{"$f":"IF(DataLog!$C939=\"Log value\",DataLog!Z939,\"\")","v":""},{"$f":"IF(DataLog!$C939=\"Log value\",DataLog!AA939,\"\")","v":""},{"$f":"IF(DataLog!$C939=\"Log value\",DataLog!AB939,\"\")","v":""},{"$f":"IF(DataLog!$C939=\"Log value\",DataLog!AC939,\"\")","v":""},{"$f":"IF(DataLog!$C939=\"Log value\",DataLog!AD939,\"\")","v":""},{"$f":"IF(DataLog!$C939=\"Log value\",DataLog!AE939,\"\")","v":""},{"$f":"IF(DataLog!$C939=\"Log value\",DataLog!AF939,\"\")","v":""},{"$f":"IF(DataLog!$C939=\"Log value\",DataLog!AG939,\"\")","v":""},{"$f":"IF(DataLog!$C939=\"Log value\",DataLog!AH939,\"\")","v":""},{"$f":"IF(DataLog!$C939=\"Log value\",DataLog!AI939,\"\")","v":""},{"$f":"IF(DataLog!$C939=\"Log value\",DataLog!AJ939,\"\")","v":""},{"$f":"IF(DataLog!$C939=\"Log value\",DataLog!AK939,\"\")","v":""},{"$f":"IF(DataLog!$C939=\"Log value\",DataLog!AL939,\"\")","v":""},{"$f":"IF(DataLog!$C939=\"Log value\",DataLog!AM939,\"\")","v":""}]
[null,null,null,null,null,null,{"$f":"IF(DataLog!$C940=\"Log value\",DataLog!D940&\"_\"&TEXT(DataLog!B940,\"åååå-mm-dd\"),\"\")","v":""},{"$f":"IF(DataLog!$C940=\"Log value\",DataLog!E940,\"\")","v":""},{"$f":"IF(DataLog!$C940=\"Log value\",DataLog!F940,\"\")","v":""},{"$f":"IF(DataLog!$C940=\"Log value\",DataLog!G940,\"\")","v":""},{"$f":"IF(DataLog!$C940=\"Log value\",DataLog!H940,\"\")","v":""},{"$f":"IF(DataLog!$C940=\"Log value\",DataLog!I940,\"\")","v":""},{"$f":"IF(DataLog!$C940=\"Log value\",DataLog!J940,\"\")","v":""},{"$f":"IF(DataLog!$C940=\"Log value\",DataLog!K940,\"\")","v":""},{"$f":"IF(DataLog!$C940=\"Log value\",DataLog!L940,\"\")","v":""},{"$f":"IF(DataLog!$C940=\"Log value\",DataLog!M940,\"\")","v":""},{"$f":"IF(DataLog!$C940=\"Log value\",DataLog!N940,\"\")","v":""},{"$f":"IF(DataLog!$C940=\"Log value\",DataLog!O940,\"\")","v":""},{"$f":"IF(DataLog!$C940=\"Log value\",DataLog!P940,\"\")","v":""},{"$f":"IF(DataLog!$C940=\"Log value\",DataLog!Q940,\"\")","v":""},{"$f":"IF(DataLog!$C940=\"Log value\",DataLog!R940,\"\")","v":""},{"$f":"IF(DataLog!$C940=\"Log value\",DataLog!S940,\"\")","v":""},{"$f":"IF(DataLog!$C940=\"Log value\",DataLog!T940,\"\")","v":""},{"$f":"IF(DataLog!$C940=\"Log value\",DataLog!U940,\"\")","v":""},{"$f":"IF(DataLog!$C940=\"Log value\",DataLog!V940,\"\")","v":""},{"$f":"IF(DataLog!$C940=\"Log value\",DataLog!W940,\"\")","v":""},{"$f":"IF(DataLog!$C940=\"Log value\",DataLog!X940,\"\")","v":""},{"$f":"IF(DataLog!$C940=\"Log value\",DataLog!Y940,\"\")","v":""},{"$f":"IF(DataLog!$C940=\"Log value\",DataLog!Z940,\"\")","v":""},{"$f":"IF(DataLog!$C940=\"Log value\",DataLog!AA940,\"\")","v":""},{"$f":"IF(DataLog!$C940=\"Log value\",DataLog!AB940,\"\")","v":""},{"$f":"IF(DataLog!$C940=\"Log value\",DataLog!AC940,\"\")","v":""},{"$f":"IF(DataLog!$C940=\"Log value\",DataLog!AD940,\"\")","v":""},{"$f":"IF(DataLog!$C940=\"Log value\",DataLog!AE940,\"\")","v":""},{"$f":"IF(DataLog!$C940=\"Log value\",DataLog!AF940,\"\")","v":""},{"$f":"IF(DataLog!$C940=\"Log value\",DataLog!AG940,\"\")","v":""},{"$f":"IF(DataLog!$C940=\"Log value\",DataLog!AH940,\"\")","v":""},{"$f":"IF(DataLog!$C940=\"Log value\",DataLog!AI940,\"\")","v":""},{"$f":"IF(DataLog!$C940=\"Log value\",DataLog!AJ940,\"\")","v":""},{"$f":"IF(DataLog!$C940=\"Log value\",DataLog!AK940,\"\")","v":""},{"$f":"IF(DataLog!$C940=\"Log value\",DataLog!AL940,\"\")","v":""},{"$f":"IF(DataLog!$C940=\"Log value\",DataLog!AM940,\"\")","v":""}]
[null,null,null,null,null,null,{"$f":"IF(DataLog!$C941=\"Log value\",DataLog!D941&\"_\"&TEXT(DataLog!B941,\"åååå-mm-dd\"),\"\")","v":""},{"$f":"IF(DataLog!$C941=\"Log value\",DataLog!E941,\"\")","v":""},{"$f":"IF(DataLog!$C941=\"Log value\",DataLog!F941,\"\")","v":""},{"$f":"IF(DataLog!$C941=\"Log value\",DataLog!G941,\"\")","v":""},{"$f":"IF(DataLog!$C941=\"Log value\",DataLog!H941,\"\")","v":""},{"$f":"IF(DataLog!$C941=\"Log value\",DataLog!I941,\"\")","v":""},{"$f":"IF(DataLog!$C941=\"Log value\",DataLog!J941,\"\")","v":""},{"$f":"IF(DataLog!$C941=\"Log value\",DataLog!K941,\"\")","v":""},{"$f":"IF(DataLog!$C941=\"Log value\",DataLog!L941,\"\")","v":""},{"$f":"IF(DataLog!$C941=\"Log value\",DataLog!M941,\"\")","v":""},{"$f":"IF(DataLog!$C941=\"Log value\",DataLog!N941,\"\")","v":""},{"$f":"IF(DataLog!$C941=\"Log value\",DataLog!O941,\"\")","v":""},{"$f":"IF(DataLog!$C941=\"Log value\",DataLog!P941,\"\")","v":""},{"$f":"IF(DataLog!$C941=\"Log value\",DataLog!Q941,\"\")","v":""},{"$f":"IF(DataLog!$C941=\"Log value\",DataLog!R941,\"\")","v":""},{"$f":"IF(DataLog!$C941=\"Log value\",DataLog!S941,\"\")","v":""},{"$f":"IF(DataLog!$C941=\"Log value\",DataLog!T941,\"\")","v":""},{"$f":"IF(DataLog!$C941=\"Log value\",DataLog!U941,\"\")","v":""},{"$f":"IF(DataLog!$C941=\"Log value\",DataLog!V941,\"\")","v":""},{"$f":"IF(DataLog!$C941=\"Log value\",DataLog!W941,\"\")","v":""},{"$f":"IF(DataLog!$C941=\"Log value\",DataLog!X941,\"\")","v":""},{"$f":"IF(DataLog!$C941=\"Log value\",DataLog!Y941,\"\")","v":""},{"$f":"IF(DataLog!$C941=\"Log value\",DataLog!Z941,\"\")","v":""},{"$f":"IF(DataLog!$C941=\"Log value\",DataLog!AA941,\"\")","v":""},{"$f":"IF(DataLog!$C941=\"Log value\",DataLog!AB941,\"\")","v":""},{"$f":"IF(DataLog!$C941=\"Log value\",DataLog!AC941,\"\")","v":""},{"$f":"IF(DataLog!$C941=\"Log value\",DataLog!AD941,\"\")","v":""},{"$f":"IF(DataLog!$C941=\"Log value\",DataLog!AE941,\"\")","v":""},{"$f":"IF(DataLog!$C941=\"Log value\",DataLog!AF941,\"\")","v":""},{"$f":"IF(DataLog!$C941=\"Log value\",DataLog!AG941,\"\")","v":""},{"$f":"IF(DataLog!$C941=\"Log value\",DataLog!AH941,\"\")","v":""},{"$f":"IF(DataLog!$C941=\"Log value\",DataLog!AI941,\"\")","v":""},{"$f":"IF(DataLog!$C941=\"Log value\",DataLog!AJ941,\"\")","v":""},{"$f":"IF(DataLog!$C941=\"Log value\",DataLog!AK941,\"\")","v":""},{"$f":"IF(DataLog!$C941=\"Log value\",DataLog!AL941,\"\")","v":""},{"$f":"IF(DataLog!$C941=\"Log value\",DataLog!AM941,\"\")","v":""}]
[null,null,null,null,null,null,{"$f":"IF(DataLog!$C942=\"Log value\",DataLog!D942&\"_\"&TEXT(DataLog!B942,\"åååå-mm-dd\"),\"\")","v":""},{"$f":"IF(DataLog!$C942=\"Log value\",DataLog!E942,\"\")","v":""},{"$f":"IF(DataLog!$C942=\"Log value\",DataLog!F942,\"\")","v":""},{"$f":"IF(DataLog!$C942=\"Log value\",DataLog!G942,\"\")","v":""},{"$f":"IF(DataLog!$C942=\"Log value\",DataLog!H942,\"\")","v":""},{"$f":"IF(DataLog!$C942=\"Log value\",DataLog!I942,\"\")","v":""},{"$f":"IF(DataLog!$C942=\"Log value\",DataLog!J942,\"\")","v":""},{"$f":"IF(DataLog!$C942=\"Log value\",DataLog!K942,\"\")","v":""},{"$f":"IF(DataLog!$C942=\"Log value\",DataLog!L942,\"\")","v":""},{"$f":"IF(DataLog!$C942=\"Log value\",DataLog!M942,\"\")","v":""},{"$f":"IF(DataLog!$C942=\"Log value\",DataLog!N942,\"\")","v":""},{"$f":"IF(DataLog!$C942=\"Log value\",DataLog!O942,\"\")","v":""},{"$f":"IF(DataLog!$C942=\"Log value\",DataLog!P942,\"\")","v":""},{"$f":"IF(DataLog!$C942=\"Log value\",DataLog!Q942,\"\")","v":""},{"$f":"IF(DataLog!$C942=\"Log value\",DataLog!R942,\"\")","v":""},{"$f":"IF(DataLog!$C942=\"Log value\",DataLog!S942,\"\")","v":""},{"$f":"IF(DataLog!$C942=\"Log value\",DataLog!T942,\"\")","v":""},{"$f":"IF(DataLog!$C942=\"Log value\",DataLog!U942,\"\")","v":""},{"$f":"IF(DataLog!$C942=\"Log value\",DataLog!V942,\"\")","v":""},{"$f":"IF(DataLog!$C942=\"Log value\",DataLog!W942,\"\")","v":""},{"$f":"IF(DataLog!$C942=\"Log value\",DataLog!X942,\"\")","v":""},{"$f":"IF(DataLog!$C942=\"Log value\",DataLog!Y942,\"\")","v":""},{"$f":"IF(DataLog!$C942=\"Log value\",DataLog!Z942,\"\")","v":""},{"$f":"IF(DataLog!$C942=\"Log value\",DataLog!AA942,\"\")","v":""},{"$f":"IF(DataLog!$C942=\"Log value\",DataLog!AB942,\"\")","v":""},{"$f":"IF(DataLog!$C942=\"Log value\",DataLog!AC942,\"\")","v":""},{"$f":"IF(DataLog!$C942=\"Log value\",DataLog!AD942,\"\")","v":""},{"$f":"IF(DataLog!$C942=\"Log value\",DataLog!AE942,\"\")","v":""},{"$f":"IF(DataLog!$C942=\"Log value\",DataLog!AF942,\"\")","v":""},{"$f":"IF(DataLog!$C942=\"Log value\",DataLog!AG942,\"\")","v":""},{"$f":"IF(DataLog!$C942=\"Log value\",DataLog!AH942,\"\")","v":""},{"$f":"IF(DataLog!$C942=\"Log value\",DataLog!AI942,\"\")","v":""},{"$f":"IF(DataLog!$C942=\"Log value\",DataLog!AJ942,\"\")","v":""},{"$f":"IF(DataLog!$C942=\"Log value\",DataLog!AK942,\"\")","v":""},{"$f":"IF(DataLog!$C942=\"Log value\",DataLog!AL942,\"\")","v":""},{"$f":"IF(DataLog!$C942=\"Log value\",DataLog!AM942,\"\")","v":""}]
[null,null,null,null,null,null,{"$f":"IF(DataLog!$C943=\"Log value\",DataLog!D943&\"_\"&TEXT(DataLog!B943,\"åååå-mm-dd\"),\"\")","v":""},{"$f":"IF(DataLog!$C943=\"Log value\",DataLog!E943,\"\")","v":""},{"$f":"IF(DataLog!$C943=\"Log value\",DataLog!F943,\"\")","v":""},{"$f":"IF(DataLog!$C943=\"Log value\",DataLog!G943,\"\")","v":""},{"$f":"IF(DataLog!$C943=\"Log value\",DataLog!H943,\"\")","v":""},{"$f":"IF(DataLog!$C943=\"Log value\",DataLog!I943,\"\")","v":""},{"$f":"IF(DataLog!$C943=\"Log value\",DataLog!J943,\"\")","v":""},{"$f":"IF(DataLog!$C943=\"Log value\",DataLog!K943,\"\")","v":""},{"$f":"IF(DataLog!$C943=\"Log value\",DataLog!L943,\"\")","v":""},{"$f":"IF(DataLog!$C943=\"Log value\",DataLog!M943,\"\")","v":""},{"$f":"IF(DataLog!$C943=\"Log value\",DataLog!N943,\"\")","v":""},{"$f":"IF(DataLog!$C943=\"Log value\",DataLog!O943,\"\")","v":""},{"$f":"IF(DataLog!$C943=\"Log value\",DataLog!P943,\"\")","v":""},{"$f":"IF(DataLog!$C943=\"Log value\",DataLog!Q943,\"\")","v":""},{"$f":"IF(DataLog!$C943=\"Log value\",DataLog!R943,\"\")","v":""},{"$f":"IF(DataLog!$C943=\"Log value\",DataLog!S943,\"\")","v":""},{"$f":"IF(DataLog!$C943=\"Log value\",DataLog!T943,\"\")","v":""},{"$f":"IF(DataLog!$C943=\"Log value\",DataLog!U943,\"\")","v":""},{"$f":"IF(DataLog!$C943=\"Log value\",DataLog!V943,\"\")","v":""},{"$f":"IF(DataLog!$C943=\"Log value\",DataLog!W943,\"\")","v":""},{"$f":"IF(DataLog!$C943=\"Log value\",DataLog!X943,\"\")","v":""},{"$f":"IF(DataLog!$C943=\"Log value\",DataLog!Y943,\"\")","v":""},{"$f":"IF(DataLog!$C943=\"Log value\",DataLog!Z943,\"\")","v":""},{"$f":"IF(DataLog!$C943=\"Log value\",DataLog!AA943,\"\")","v":""},{"$f":"IF(DataLog!$C943=\"Log value\",DataLog!AB943,\"\")","v":""},{"$f":"IF(DataLog!$C943=\"Log value\",DataLog!AC943,\"\")","v":""},{"$f":"IF(DataLog!$C943=\"Log value\",DataLog!AD943,\"\")","v":""},{"$f":"IF(DataLog!$C943=\"Log value\",DataLog!AE943,\"\")","v":""},{"$f":"IF(DataLog!$C943=\"Log value\",DataLog!AF943,\"\")","v":""},{"$f":"IF(DataLog!$C943=\"Log value\",DataLog!AG943,\"\")","v":""},{"$f":"IF(DataLog!$C943=\"Log value\",DataLog!AH943,\"\")","v":""},{"$f":"IF(DataLog!$C943=\"Log value\",DataLog!AI943,\"\")","v":""},{"$f":"IF(DataLog!$C943=\"Log value\",DataLog!AJ943,\"\")","v":""},{"$f":"IF(DataLog!$C943=\"Log value\",DataLog!AK943,\"\")","v":""},{"$f":"IF(DataLog!$C943=\"Log value\",DataLog!AL943,\"\")","v":""},{"$f":"IF(DataLog!$C943=\"Log value\",DataLog!AM943,\"\")","v":""}]
[null,null,null,null,null,null,{"$f":"IF(DataLog!$C944=\"Log value\",DataLog!D944&\"_\"&TEXT(DataLog!B944,\"åååå-mm-dd\"),\"\")","v":""},{"$f":"IF(DataLog!$C944=\"Log value\",DataLog!E944,\"\")","v":""},{"$f":"IF(DataLog!$C944=\"Log value\",DataLog!F944,\"\")","v":""},{"$f":"IF(DataLog!$C944=\"Log value\",DataLog!G944,\"\")","v":""},{"$f":"IF(DataLog!$C944=\"Log value\",DataLog!H944,\"\")","v":""},{"$f":"IF(DataLog!$C944=\"Log value\",DataLog!I944,\"\")","v":""},{"$f":"IF(DataLog!$C944=\"Log value\",DataLog!J944,\"\")","v":""},{"$f":"IF(DataLog!$C944=\"Log value\",DataLog!K944,\"\")","v":""},{"$f":"IF(DataLog!$C944=\"Log value\",DataLog!L944,\"\")","v":""},{"$f":"IF(DataLog!$C944=\"Log value\",DataLog!M944,\"\")","v":""},{"$f":"IF(DataLog!$C944=\"Log value\",DataLog!N944,\"\")","v":""},{"$f":"IF(DataLog!$C944=\"Log value\",DataLog!O944,\"\")","v":""},{"$f":"IF(DataLog!$C944=\"Log value\",DataLog!P944,\"\")","v":""},{"$f":"IF(DataLog!$C944=\"Log value\",DataLog!Q944,\"\")","v":""},{"$f":"IF(DataLog!$C944=\"Log value\",DataLog!R944,\"\")","v":""},{"$f":"IF(DataLog!$C944=\"Log value\",DataLog!S944,\"\")","v":""},{"$f":"IF(DataLog!$C944=\"Log value\",DataLog!T944,\"\")","v":""},{"$f":"IF(DataLog!$C944=\"Log value\",DataLog!U944,\"\")","v":""},{"$f":"IF(DataLog!$C944=\"Log value\",DataLog!V944,\"\")","v":""},{"$f":"IF(DataLog!$C944=\"Log value\",DataLog!W944,\"\")","v":""},{"$f":"IF(DataLog!$C944=\"Log value\",DataLog!X944,\"\")","v":""},{"$f":"IF(DataLog!$C944=\"Log value\",DataLog!Y944,\"\")","v":""},{"$f":"IF(DataLog!$C944=\"Log value\",DataLog!Z944,\"\")","v":""},{"$f":"IF(DataLog!$C944=\"Log value\",DataLog!AA944,\"\")","v":""},{"$f":"IF(DataLog!$C944=\"Log value\",DataLog!AB944,\"\")","v":""},{"$f":"IF(DataLog!$C944=\"Log value\",DataLog!AC944,\"\")","v":""},{"$f":"IF(DataLog!$C944=\"Log value\",DataLog!AD944,\"\")","v":""},{"$f":"IF(DataLog!$C944=\"Log value\",DataLog!AE944,\"\")","v":""},{"$f":"IF(DataLog!$C944=\"Log value\",DataLog!AF944,\"\")","v":""},{"$f":"IF(DataLog!$C944=\"Log value\",DataLog!AG944,\"\")","v":""},{"$f":"IF(DataLog!$C944=\"Log value\",DataLog!AH944,\"\")","v":""},{"$f":"IF(DataLog!$C944=\"Log value\",DataLog!AI944,\"\")","v":""},{"$f":"IF(DataLog!$C944=\"Log value\",DataLog!AJ944,\"\")","v":""},{"$f":"IF(DataLog!$C944=\"Log value\",DataLog!AK944,\"\")","v":""},{"$f":"IF(DataLog!$C944=\"Log value\",DataLog!AL944,\"\")","v":""},{"$f":"IF(DataLog!$C944=\"Log value\",DataLog!AM944,\"\")","v":""}]
[null,null,null,null,null,null,{"$f":"IF(DataLog!$C945=\"Log value\",DataLog!D945&\"_\"&TEXT(DataLog!B945,\"åååå-mm-dd\"),\"\")","v":""},{"$f":"IF(DataLog!$C945=\"Log value\",DataLog!E945,\"\")","v":""},{"$f":"IF(DataLog!$C945=\"Log value\",DataLog!F945,\"\")","v":""},{"$f":"IF(DataLog!$C945=\"Log value\",DataLog!G945,\"\")","v":""},{"$f":"IF(DataLog!$C945=\"Log value\",DataLog!H945,\"\")","v":""},{"$f":"IF(DataLog!$C945=\"Log value\",DataLog!I945,\"\")","v":""},{"$f":"IF(DataLog!$C945=\"Log value\",DataLog!J945,\"\")","v":""},{"$f":"IF(DataLog!$C945=\"Log value\",DataLog!K945,\"\")","v":""},{"$f":"IF(DataLog!$C945=\"Log value\",DataLog!L945,\"\")","v":""},{"$f":"IF(DataLog!$C945=\"Log value\",DataLog!M945,\"\")","v":""},{"$f":"IF(DataLog!$C945=\"Log value\",DataLog!N945,\"\")","v":""},{"$f":"IF(DataLog!$C945=\"Log value\",DataLog!O945,\"\")","v":""},{"$f":"IF(DataLog!$C945=\"Log value\",DataLog!P945,\"\")","v":""},{"$f":"IF(DataLog!$C945=\"Log value\",DataLog!Q945,\"\")","v":""},{"$f":"IF(DataLog!$C945=\"Log value\",DataLog!R945,\"\")","v":""},{"$f":"IF(DataLog!$C945=\"Log value\",DataLog!S945,\"\")","v":""},{"$f":"IF(DataLog!$C945=\"Log value\",DataLog!T945,\"\")","v":""},{"$f":"IF(DataLog!$C945=\"Log value\",DataLog!U945,\"\")","v":""},{"$f":"IF(DataLog!$C945=\"Log value\",DataLog!V945,\"\")","v":""},{"$f":"IF(DataLog!$C945=\"Log value\",DataLog!W945,\"\")","v":""},{"$f":"IF(DataLog!$C945=\"Log value\",DataLog!X945,\"\")","v":""},{"$f":"IF(DataLog!$C945=\"Log value\",DataLog!Y945,\"\")","v":""},{"$f":"IF(DataLog!$C945=\"Log value\",DataLog!Z945,\"\")","v":""},{"$f":"IF(DataLog!$C945=\"Log value\",DataLog!AA945,\"\")","v":""},{"$f":"IF(DataLog!$C945=\"Log value\",DataLog!AB945,\"\")","v":""},{"$f":"IF(DataLog!$C945=\"Log value\",DataLog!AC945,\"\")","v":""},{"$f":"IF(DataLog!$C945=\"Log value\",DataLog!AD945,\"\")","v":""},{"$f":"IF(DataLog!$C945=\"Log value\",DataLog!AE945,\"\")","v":""},{"$f":"IF(DataLog!$C945=\"Log value\",DataLog!AF945,\"\")","v":""},{"$f":"IF(DataLog!$C945=\"Log value\",DataLog!AG945,\"\")","v":""},{"$f":"IF(DataLog!$C945=\"Log value\",DataLog!AH945,\"\")","v":""},{"$f":"IF(DataLog!$C945=\"Log value\",DataLog!AI945,\"\")","v":""},{"$f":"IF(DataLog!$C945=\"Log value\",DataLog!AJ945,\"\")","v":""},{"$f":"IF(DataLog!$C945=\"Log value\",DataLog!AK945,\"\")","v":""},{"$f":"IF(DataLog!$C945=\"Log value\",DataLog!AL945,\"\")","v":""},{"$f":"IF(DataLog!$C945=\"Log value\",DataLog!AM945,\"\")","v":""}]
[null,null,null,null,null,null,{"$f":"IF(DataLog!$C946=\"Log value\",DataLog!D946&\"_\"&TEXT(DataLog!B946,\"åååå-mm-dd\"),\"\")","v":""},{"$f":"IF(DataLog!$C946=\"Log value\",DataLog!E946,\"\")","v":""},{"$f":"IF(DataLog!$C946=\"Log value\",DataLog!F946,\"\")","v":""},{"$f":"IF(DataLog!$C946=\"Log value\",DataLog!G946,\"\")","v":""},{"$f":"IF(DataLog!$C946=\"Log value\",DataLog!H946,\"\")","v":""},{"$f":"IF(DataLog!$C946=\"Log value\",DataLog!I946,\"\")","v":""},{"$f":"IF(DataLog!$C946=\"Log value\",DataLog!J946,\"\")","v":""},{"$f":"IF(DataLog!$C946=\"Log value\",DataLog!K946,\"\")","v":""},{"$f":"IF(DataLog!$C946=\"Log value\",DataLog!L946,\"\")","v":""},{"$f":"IF(DataLog!$C946=\"Log value\",DataLog!M946,\"\")","v":""},{"$f":"IF(DataLog!$C946=\"Log value\",DataLog!N946,\"\")","v":""},{"$f":"IF(DataLog!$C946=\"Log value\",DataLog!O946,\"\")","v":""},{"$f":"IF(DataLog!$C946=\"Log value\",DataLog!P946,\"\")","v":""},{"$f":"IF(DataLog!$C946=\"Log value\",DataLog!Q946,\"\")","v":""},{"$f":"IF(DataLog!$C946=\"Log value\",DataLog!R946,\"\")","v":""},{"$f":"IF(DataLog!$C946=\"Log value\",DataLog!S946,\"\")","v":""},{"$f":"IF(DataLog!$C946=\"Log value\",DataLog!T946,\"\")","v":""},{"$f":"IF(DataLog!$C946=\"Log value\",DataLog!U946,\"\")","v":""},{"$f":"IF(DataLog!$C946=\"Log value\",DataLog!V946,\"\")","v":""},{"$f":"IF(DataLog!$C946=\"Log value\",DataLog!W946,\"\")","v":""},{"$f":"IF(DataLog!$C946=\"Log value\",DataLog!X946,\"\")","v":""},{"$f":"IF(DataLog!$C946=\"Log value\",DataLog!Y946,\"\")","v":""},{"$f":"IF(DataLog!$C946=\"Log value\",DataLog!Z946,\"\")","v":""},{"$f":"IF(DataLog!$C946=\"Log value\",DataLog!AA946,\"\")","v":""},{"$f":"IF(DataLog!$C946=\"Log value\",DataLog!AB946,\"\")","v":""},{"$f":"IF(DataLog!$C946=\"Log value\",DataLog!AC946,\"\")","v":""},{"$f":"IF(DataLog!$C946=\"Log value\",DataLog!AD946,\"\")","v":""},{"$f":"IF(DataLog!$C946=\"Log value\",DataLog!AE946,\"\")","v":""},{"$f":"IF(DataLog!$C946=\"Log value\",DataLog!AF946,\"\")","v":""},{"$f":"IF(DataLog!$C946=\"Log value\",DataLog!AG946,\"\")","v":""},{"$f":"IF(DataLog!$C946=\"Log value\",DataLog!AH946,\"\")","v":""},{"$f":"IF(DataLog!$C946=\"Log value\",DataLog!AI946,\"\")","v":""},{"$f":"IF(DataLog!$C946=\"Log value\",DataLog!AJ946,\"\")","v":""},{"$f":"IF(DataLog!$C946=\"Log value\",DataLog!AK946,\"\")","v":""},{"$f":"IF(DataLog!$C946=\"Log value\",DataLog!AL946,\"\")","v":""},{"$f":"IF(DataLog!$C946=\"Log value\",DataLog!AM946,\"\")","v":""}]
[null,null,null,null,null,null,{"$f":"IF(DataLog!$C947=\"Log value\",DataLog!D947&\"_\"&TEXT(DataLog!B947,\"åååå-mm-dd\"),\"\")","v":""},{"$f":"IF(DataLog!$C947=\"Log value\",DataLog!E947,\"\")","v":""},{"$f":"IF(DataLog!$C947=\"Log value\",DataLog!F947,\"\")","v":""},{"$f":"IF(DataLog!$C947=\"Log value\",DataLog!G947,\"\")","v":""},{"$f":"IF(DataLog!$C947=\"Log value\",DataLog!H947,\"\")","v":""},{"$f":"IF(DataLog!$C947=\"Log value\",DataLog!I947,\"\")","v":""},{"$f":"IF(DataLog!$C947=\"Log value\",DataLog!J947,\"\")","v":""},{"$f":"IF(DataLog!$C947=\"Log value\",DataLog!K947,\"\")","v":""},{"$f":"IF(DataLog!$C947=\"Log value\",DataLog!L947,\"\")","v":""},{"$f":"IF(DataLog!$C947=\"Log value\",DataLog!M947,\"\")","v":""},{"$f":"IF(DataLog!$C947=\"Log value\",DataLog!N947,\"\")","v":""},{"$f":"IF(DataLog!$C947=\"Log value\",DataLog!O947,\"\")","v":""},{"$f":"IF(DataLog!$C947=\"Log value\",DataLog!P947,\"\")","v":""},{"$f":"IF(DataLog!$C947=\"Log value\",DataLog!Q947,\"\")","v":""},{"$f":"IF(DataLog!$C947=\"Log value\",DataLog!R947,\"\")","v":""},{"$f":"IF(DataLog!$C947=\"Log value\",DataLog!S947,\"\")","v":""},{"$f":"IF(DataLog!$C947=\"Log value\",DataLog!T947,\"\")","v":""},{"$f":"IF(DataLog!$C947=\"Log value\",DataLog!U947,\"\")","v":""},{"$f":"IF(DataLog!$C947=\"Log value\",DataLog!V947,\"\")","v":""},{"$f":"IF(DataLog!$C947=\"Log value\",DataLog!W947,\"\")","v":""},{"$f":"IF(DataLog!$C947=\"Log value\",DataLog!X947,\"\")","v":""},{"$f":"IF(DataLog!$C947=\"Log value\",DataLog!Y947,\"\")","v":""},{"$f":"IF(DataLog!$C947=\"Log value\",DataLog!Z947,\"\")","v":""},{"$f":"IF(DataLog!$C947=\"Log value\",DataLog!AA947,\"\")","v":""},{"$f":"IF(DataLog!$C947=\"Log value\",DataLog!AB947,\"\")","v":""},{"$f":"IF(DataLog!$C947=\"Log value\",DataLog!AC947,\"\")","v":""},{"$f":"IF(DataLog!$C947=\"Log value\",DataLog!AD947,\"\")","v":""},{"$f":"IF(DataLog!$C947=\"Log value\",DataLog!AE947,\"\")","v":""},{"$f":"IF(DataLog!$C947=\"Log value\",DataLog!AF947,\"\")","v":""},{"$f":"IF(DataLog!$C947=\"Log value\",DataLog!AG947,\"\")","v":""},{"$f":"IF(DataLog!$C947=\"Log value\",DataLog!AH947,\"\")","v":""},{"$f":"IF(DataLog!$C947=\"Log value\",DataLog!AI947,\"\")","v":""},{"$f":"IF(DataLog!$C947=\"Log value\",DataLog!AJ947,\"\")","v":""},{"$f":"IF(DataLog!$C947=\"Log value\",DataLog!AK947,\"\")","v":""},{"$f":"IF(DataLog!$C947=\"Log value\",DataLog!AL947,\"\")","v":""},{"$f":"IF(DataLog!$C947=\"Log value\",DataLog!AM947,\"\")","v":""}]
[null,null,null,null,null,null,{"$f":"IF(DataLog!$C948=\"Log value\",DataLog!D948&\"_\"&TEXT(DataLog!B948,\"åååå-mm-dd\"),\"\")","v":""},{"$f":"IF(DataLog!$C948=\"Log value\",DataLog!E948,\"\")","v":""},{"$f":"IF(DataLog!$C948=\"Log value\",DataLog!F948,\"\")","v":""},{"$f":"IF(DataLog!$C948=\"Log value\",DataLog!G948,\"\")","v":""},{"$f":"IF(DataLog!$C948=\"Log value\",DataLog!H948,\"\")","v":""},{"$f":"IF(DataLog!$C948=\"Log value\",DataLog!I948,\"\")","v":""},{"$f":"IF(DataLog!$C948=\"Log value\",DataLog!J948,\"\")","v":""},{"$f":"IF(DataLog!$C948=\"Log value\",DataLog!K948,\"\")","v":""},{"$f":"IF(DataLog!$C948=\"Log value\",DataLog!L948,\"\")","v":""},{"$f":"IF(DataLog!$C948=\"Log value\",DataLog!M948,\"\")","v":""},{"$f":"IF(DataLog!$C948=\"Log value\",DataLog!N948,\"\")","v":""},{"$f":"IF(DataLog!$C948=\"Log value\",DataLog!O948,\"\")","v":""},{"$f":"IF(DataLog!$C948=\"Log value\",DataLog!P948,\"\")","v":""},{"$f":"IF(DataLog!$C948=\"Log value\",DataLog!Q948,\"\")","v":""},{"$f":"IF(DataLog!$C948=\"Log value\",DataLog!R948,\"\")","v":""},{"$f":"IF(DataLog!$C948=\"Log value\",DataLog!S948,\"\")","v":""},{"$f":"IF(DataLog!$C948=\"Log value\",DataLog!T948,\"\")","v":""},{"$f":"IF(DataLog!$C948=\"Log value\",DataLog!U948,\"\")","v":""},{"$f":"IF(DataLog!$C948=\"Log value\",DataLog!V948,\"\")","v":""},{"$f":"IF(DataLog!$C948=\"Log value\",DataLog!W948,\"\")","v":""},{"$f":"IF(DataLog!$C948=\"Log value\",DataLog!X948,\"\")","v":""},{"$f":"IF(DataLog!$C948=\"Log value\",DataLog!Y948,\"\")","v":""},{"$f":"IF(DataLog!$C948=\"Log value\",DataLog!Z948,\"\")","v":""},{"$f":"IF(DataLog!$C948=\"Log value\",DataLog!AA948,\"\")","v":""},{"$f":"IF(DataLog!$C948=\"Log value\",DataLog!AB948,\"\")","v":""},{"$f":"IF(DataLog!$C948=\"Log value\",DataLog!AC948,\"\")","v":""},{"$f":"IF(DataLog!$C948=\"Log value\",DataLog!AD948,\"\")","v":""},{"$f":"IF(DataLog!$C948=\"Log value\",DataLog!AE948,\"\")","v":""},{"$f":"IF(DataLog!$C948=\"Log value\",DataLog!AF948,\"\")","v":""},{"$f":"IF(DataLog!$C948=\"Log value\",DataLog!AG948,\"\")","v":""},{"$f":"IF(DataLog!$C948=\"Log value\",DataLog!AH948,\"\")","v":""},{"$f":"IF(DataLog!$C948=\"Log value\",DataLog!AI948,\"\")","v":""},{"$f":"IF(DataLog!$C948=\"Log value\",DataLog!AJ948,\"\")","v":""},{"$f":"IF(DataLog!$C948=\"Log value\",DataLog!AK948,\"\")","v":""},{"$f":"IF(DataLog!$C948=\"Log value\",DataLog!AL948,\"\")","v":""},{"$f":"IF(DataLog!$C948=\"Log value\",DataLog!AM948,\"\")","v":""}]
[null,null,null,null,null,null,{"$f":"IF(DataLog!$C949=\"Log value\",DataLog!D949&\"_\"&TEXT(DataLog!B949,\"åååå-mm-dd\"),\"\")","v":""},{"$f":"IF(DataLog!$C949=\"Log value\",DataLog!E949,\"\")","v":""},{"$f":"IF(DataLog!$C949=\"Log value\",DataLog!F949,\"\")","v":""},{"$f":"IF(DataLog!$C949=\"Log value\",DataLog!G949,\"\")","v":""},{"$f":"IF(DataLog!$C949=\"Log value\",DataLog!H949,\"\")","v":""},{"$f":"IF(DataLog!$C949=\"Log value\",DataLog!I949,\"\")","v":""},{"$f":"IF(DataLog!$C949=\"Log value\",DataLog!J949,\"\")","v":""},{"$f":"IF(DataLog!$C949=\"Log value\",DataLog!K949,\"\")","v":""},{"$f":"IF(DataLog!$C949=\"Log value\",DataLog!L949,\"\")","v":""},{"$f":"IF(DataLog!$C949=\"Log value\",DataLog!M949,\"\")","v":""},{"$f":"IF(DataLog!$C949=\"Log value\",DataLog!N949,\"\")","v":""},{"$f":"IF(DataLog!$C949=\"Log value\",DataLog!O949,\"\")","v":""},{"$f":"IF(DataLog!$C949=\"Log value\",DataLog!P949,\"\")","v":""},{"$f":"IF(DataLog!$C949=\"Log value\",DataLog!Q949,\"\")","v":""},{"$f":"IF(DataLog!$C949=\"Log value\",DataLog!R949,\"\")","v":""},{"$f":"IF(DataLog!$C949=\"Log value\",DataLog!S949,\"\")","v":""},{"$f":"IF(DataLog!$C949=\"Log value\",DataLog!T949,\"\")","v":""},{"$f":"IF(DataLog!$C949=\"Log value\",DataLog!U949,\"\")","v":""},{"$f":"IF(DataLog!$C949=\"Log value\",DataLog!V949,\"\")","v":""},{"$f":"IF(DataLog!$C949=\"Log value\",DataLog!W949,\"\")","v":""},{"$f":"IF(DataLog!$C949=\"Log value\",DataLog!X949,\"\")","v":""},{"$f":"IF(DataLog!$C949=\"Log value\",DataLog!Y949,\"\")","v":""},{"$f":"IF(DataLog!$C949=\"Log value\",DataLog!Z949,\"\")","v":""},{"$f":"IF(DataLog!$C949=\"Log value\",DataLog!AA949,\"\")","v":""},{"$f":"IF(DataLog!$C949=\"Log value\",DataLog!AB949,\"\")","v":""},{"$f":"IF(DataLog!$C949=\"Log value\",DataLog!AC949,\"\")","v":""},{"$f":"IF(DataLog!$C949=\"Log value\",DataLog!AD949,\"\")","v":""},{"$f":"IF(DataLog!$C949=\"Log value\",DataLog!AE949,\"\")","v":""},{"$f":"IF(DataLog!$C949=\"Log value\",DataLog!AF949,\"\")","v":""},{"$f":"IF(DataLog!$C949=\"Log value\",DataLog!AG949,\"\")","v":""},{"$f":"IF(DataLog!$C949=\"Log value\",DataLog!AH949,\"\")","v":""},{"$f":"IF(DataLog!$C949=\"Log value\",DataLog!AI949,\"\")","v":""},{"$f":"IF(DataLog!$C949=\"Log value\",DataLog!AJ949,\"\")","v":""},{"$f":"IF(DataLog!$C949=\"Log value\",DataLog!AK949,\"\")","v":""},{"$f":"IF(DataLog!$C949=\"Log value\",DataLog!AL949,\"\")","v":""},{"$f":"IF(DataLog!$C949=\"Log value\",DataLog!AM949,\"\")","v":""}]
[null,null,null,null,null,null,{"$f":"IF(DataLog!$C950=\"Log value\",DataLog!D950&\"_\"&TEXT(DataLog!B950,\"åååå-mm-dd\"),\"\")","v":""},{"$f":"IF(DataLog!$C950=\"Log value\",DataLog!E950,\"\")","v":""},{"$f":"IF(DataLog!$C950=\"Log value\",DataLog!F950,\"\")","v":""},{"$f":"IF(DataLog!$C950=\"Log value\",DataLog!G950,\"\")","v":""},{"$f":"IF(DataLog!$C950=\"Log value\",DataLog!H950,\"\")","v":""},{"$f":"IF(DataLog!$C950=\"Log value\",DataLog!I950,\"\")","v":""},{"$f":"IF(DataLog!$C950=\"Log value\",DataLog!J950,\"\")","v":""},{"$f":"IF(DataLog!$C950=\"Log value\",DataLog!K950,\"\")","v":""},{"$f":"IF(DataLog!$C950=\"Log value\",DataLog!L950,\"\")","v":""},{"$f":"IF(DataLog!$C950=\"Log value\",DataLog!M950,\"\")","v":""},{"$f":"IF(DataLog!$C950=\"Log value\",DataLog!N950,\"\")","v":""},{"$f":"IF(DataLog!$C950=\"Log value\",DataLog!O950,\"\")","v":""},{"$f":"IF(DataLog!$C950=\"Log value\",DataLog!P950,\"\")","v":""},{"$f":"IF(DataLog!$C950=\"Log value\",DataLog!Q950,\"\")","v":""},{"$f":"IF(DataLog!$C950=\"Log value\",DataLog!R950,\"\")","v":""},{"$f":"IF(DataLog!$C950=\"Log value\",DataLog!S950,\"\")","v":""},{"$f":"IF(DataLog!$C950=\"Log value\",DataLog!T950,\"\")","v":""},{"$f":"IF(DataLog!$C950=\"Log value\",DataLog!U950,\"\")","v":""},{"$f":"IF(DataLog!$C950=\"Log value\",DataLog!V950,\"\")","v":""},{"$f":"IF(DataLog!$C950=\"Log value\",DataLog!W950,\"\")","v":""},{"$f":"IF(DataLog!$C950=\"Log value\",DataLog!X950,\"\")","v":""},{"$f":"IF(DataLog!$C950=\"Log value\",DataLog!Y950,\"\")","v":""},{"$f":"IF(DataLog!$C950=\"Log value\",DataLog!Z950,\"\")","v":""},{"$f":"IF(DataLog!$C950=\"Log value\",DataLog!AA950,\"\")","v":""},{"$f":"IF(DataLog!$C950=\"Log value\",DataLog!AB950,\"\")","v":""},{"$f":"IF(DataLog!$C950=\"Log value\",DataLog!AC950,\"\")","v":""},{"$f":"IF(DataLog!$C950=\"Log value\",DataLog!AD950,\"\")","v":""},{"$f":"IF(DataLog!$C950=\"Log value\",DataLog!AE950,\"\")","v":""},{"$f":"IF(DataLog!$C950=\"Log value\",DataLog!AF950,\"\")","v":""},{"$f":"IF(DataLog!$C950=\"Log value\",DataLog!AG950,\"\")","v":""},{"$f":"IF(DataLog!$C950=\"Log value\",DataLog!AH950,\"\")","v":""},{"$f":"IF(DataLog!$C950=\"Log value\",DataLog!AI950,\"\")","v":""},{"$f":"IF(DataLog!$C950=\"Log value\",DataLog!AJ950,\"\")","v":""},{"$f":"IF(DataLog!$C950=\"Log value\",DataLog!AK950,\"\")","v":""},{"$f":"IF(DataLog!$C950=\"Log value\",DataLog!AL950,\"\")","v":""},{"$f":"IF(DataLog!$C950=\"Log value\",DataLog!AM950,\"\")","v":""}]
[null,null,null,null,null,null,{"$f":"IF(DataLog!$C951=\"Log value\",DataLog!D951&\"_\"&TEXT(DataLog!B951,\"åååå-mm-dd\"),\"\")","v":""},{"$f":"IF(DataLog!$C951=\"Log value\",DataLog!E951,\"\")","v":""},{"$f":"IF(DataLog!$C951=\"Log value\",DataLog!F951,\"\")","v":""},{"$f":"IF(DataLog!$C951=\"Log value\",DataLog!G951,\"\")","v":""},{"$f":"IF(DataLog!$C951=\"Log value\",DataLog!H951,\"\")","v":""},{"$f":"IF(DataLog!$C951=\"Log value\",DataLog!I951,\"\")","v":""},{"$f":"IF(DataLog!$C951=\"Log value\",DataLog!J951,\"\")","v":""},{"$f":"IF(DataLog!$C951=\"Log value\",DataLog!K951,\"\")","v":""},{"$f":"IF(DataLog!$C951=\"Log value\",DataLog!L951,\"\")","v":""},{"$f":"IF(DataLog!$C951=\"Log value\",DataLog!M951,\"\")","v":""},{"$f":"IF(DataLog!$C951=\"Log value\",DataLog!N951,\"\")","v":""},{"$f":"IF(DataLog!$C951=\"Log value\",DataLog!O951,\"\")","v":""},{"$f":"IF(DataLog!$C951=\"Log value\",DataLog!P951,\"\")","v":""},{"$f":"IF(DataLog!$C951=\"Log value\",DataLog!Q951,\"\")","v":""},{"$f":"IF(DataLog!$C951=\"Log value\",DataLog!R951,\"\")","v":""},{"$f":"IF(DataLog!$C951=\"Log value\",DataLog!S951,\"\")","v":""},{"$f":"IF(DataLog!$C951=\"Log value\",DataLog!T951,\"\")","v":""},{"$f":"IF(DataLog!$C951=\"Log value\",DataLog!U951,\"\")","v":""},{"$f":"IF(DataLog!$C951=\"Log value\",DataLog!V951,\"\")","v":""},{"$f":"IF(DataLog!$C951=\"Log value\",DataLog!W951,\"\")","v":""},{"$f":"IF(DataLog!$C951=\"Log value\",DataLog!X951,\"\")","v":""},{"$f":"IF(DataLog!$C951=\"Log value\",DataLog!Y951,\"\")","v":""},{"$f":"IF(DataLog!$C951=\"Log value\",DataLog!Z951,\"\")","v":""},{"$f":"IF(DataLog!$C951=\"Log value\",DataLog!AA951,\"\")","v":""},{"$f":"IF(DataLog!$C951=\"Log value\",DataLog!AB951,\"\")","v":""},{"$f":"IF(DataLog!$C951=\"Log value\",DataLog!AC951,\"\")","v":""},{"$f":"IF(DataLog!$C951=\"Log value\",DataLog!AD951,\"\")","v":""},{"$f":"IF(DataLog!$C951=\"Log value\",DataLog!AE951,\"\")","v":""},{"$f":"IF(DataLog!$C951=\"Log value\",DataLog!AF951,\"\")","v":""},{"$f":"IF(DataLog!$C951=\"Log value\",DataLog!AG951,\"\")","v":""},{"$f":"IF(DataLog!$C951=\"Log value\",DataLog!AH951,\"\")","v":""},{"$f":"IF(DataLog!$C951=\"Log value\",DataLog!AI951,\"\")","v":""},{"$f":"IF(DataLog!$C951=\"Log value\",DataLog!AJ951,\"\")","v":""},{"$f":"IF(DataLog!$C951=\"Log value\",DataLog!AK951,\"\")","v":""},{"$f":"IF(DataLog!$C951=\"Log value\",DataLog!AL951,\"\")","v":""},{"$f":"IF(DataLog!$C951=\"Log value\",DataLog!AM951,\"\")","v":""}]
[null,null,null,null,null,null,{"$f":"IF(DataLog!$C952=\"Log value\",DataLog!D952&\"_\"&TEXT(DataLog!B952,\"åååå-mm-dd\"),\"\")","v":""},{"$f":"IF(DataLog!$C952=\"Log value\",DataLog!E952,\"\")","v":""},{"$f":"IF(DataLog!$C952=\"Log value\",DataLog!F952,\"\")","v":""},{"$f":"IF(DataLog!$C952=\"Log value\",DataLog!G952,\"\")","v":""},{"$f":"IF(DataLog!$C952=\"Log value\",DataLog!H952,\"\")","v":""},{"$f":"IF(DataLog!$C952=\"Log value\",DataLog!I952,\"\")","v":""},{"$f":"IF(DataLog!$C952=\"Log value\",DataLog!J952,\"\")","v":""},{"$f":"IF(DataLog!$C952=\"Log value\",DataLog!K952,\"\")","v":""},{"$f":"IF(DataLog!$C952=\"Log value\",DataLog!L952,\"\")","v":""},{"$f":"IF(DataLog!$C952=\"Log value\",DataLog!M952,\"\")","v":""},{"$f":"IF(DataLog!$C952=\"Log value\",DataLog!N952,\"\")","v":""},{"$f":"IF(DataLog!$C952=\"Log value\",DataLog!O952,\"\")","v":""},{"$f":"IF(DataLog!$C952=\"Log value\",DataLog!P952,\"\")","v":""},{"$f":"IF(DataLog!$C952=\"Log value\",DataLog!Q952,\"\")","v":""},{"$f":"IF(DataLog!$C952=\"Log value\",DataLog!R952,\"\")","v":""},{"$f":"IF(DataLog!$C952=\"Log value\",DataLog!S952,\"\")","v":""},{"$f":"IF(DataLog!$C952=\"Log value\",DataLog!T952,\"\")","v":""},{"$f":"IF(DataLog!$C952=\"Log value\",DataLog!U952,\"\")","v":""},{"$f":"IF(DataLog!$C952=\"Log value\",DataLog!V952,\"\")","v":""},{"$f":"IF(DataLog!$C952=\"Log value\",DataLog!W952,\"\")","v":""},{"$f":"IF(DataLog!$C952=\"Log value\",DataLog!X952,\"\")","v":""},{"$f":"IF(DataLog!$C952=\"Log value\",DataLog!Y952,\"\")","v":""},{"$f":"IF(DataLog!$C952=\"Log value\",DataLog!Z952,\"\")","v":""},{"$f":"IF(DataLog!$C952=\"Log value\",DataLog!AA952,\"\")","v":""},{"$f":"IF(DataLog!$C952=\"Log value\",DataLog!AB952,\"\")","v":""},{"$f":"IF(DataLog!$C952=\"Log value\",DataLog!AC952,\"\")","v":""},{"$f":"IF(DataLog!$C952=\"Log value\",DataLog!AD952,\"\")","v":""},{"$f":"IF(DataLog!$C952=\"Log value\",DataLog!AE952,\"\")","v":""},{"$f":"IF(DataLog!$C952=\"Log value\",DataLog!AF952,\"\")","v":""},{"$f":"IF(DataLog!$C952=\"Log value\",DataLog!AG952,\"\")","v":""},{"$f":"IF(DataLog!$C952=\"Log value\",DataLog!AH952,\"\")","v":""},{"$f":"IF(DataLog!$C952=\"Log value\",DataLog!AI952,\"\")","v":""},{"$f":"IF(DataLog!$C952=\"Log value\",DataLog!AJ952,\"\")","v":""},{"$f":"IF(DataLog!$C952=\"Log value\",DataLog!AK952,\"\")","v":""},{"$f":"IF(DataLog!$C952=\"Log value\",DataLog!AL952,\"\")","v":""},{"$f":"IF(DataLog!$C952=\"Log value\",DataLog!AM952,\"\")","v":""}]
[null,null,null,null,null,null,{"$f":"IF(DataLog!$C953=\"Log value\",DataLog!D953&\"_\"&TEXT(DataLog!B953,\"åååå-mm-dd\"),\"\")","v":""},{"$f":"IF(DataLog!$C953=\"Log value\",DataLog!E953,\"\")","v":""},{"$f":"IF(DataLog!$C953=\"Log value\",DataLog!F953,\"\")","v":""},{"$f":"IF(DataLog!$C953=\"Log value\",DataLog!G953,\"\")","v":""},{"$f":"IF(DataLog!$C953=\"Log value\",DataLog!H953,\"\")","v":""},{"$f":"IF(DataLog!$C953=\"Log value\",DataLog!I953,\"\")","v":""},{"$f":"IF(DataLog!$C953=\"Log value\",DataLog!J953,\"\")","v":""},{"$f":"IF(DataLog!$C953=\"Log value\",DataLog!K953,\"\")","v":""},{"$f":"IF(DataLog!$C953=\"Log value\",DataLog!L953,\"\")","v":""},{"$f":"IF(DataLog!$C953=\"Log value\",DataLog!M953,\"\")","v":""},{"$f":"IF(DataLog!$C953=\"Log value\",DataLog!N953,\"\")","v":""},{"$f":"IF(DataLog!$C953=\"Log value\",DataLog!O953,\"\")","v":""},{"$f":"IF(DataLog!$C953=\"Log value\",DataLog!P953,\"\")","v":""},{"$f":"IF(DataLog!$C953=\"Log value\",DataLog!Q953,\"\")","v":""},{"$f":"IF(DataLog!$C953=\"Log value\",DataLog!R953,\"\")","v":""},{"$f":"IF(DataLog!$C953=\"Log value\",DataLog!S953,\"\")","v":""},{"$f":"IF(DataLog!$C953=\"Log value\",DataLog!T953,\"\")","v":""},{"$f":"IF(DataLog!$C953=\"Log value\",DataLog!U953,\"\")","v":""},{"$f":"IF(DataLog!$C953=\"Log value\",DataLog!V953,\"\")","v":""},{"$f":"IF(DataLog!$C953=\"Log value\",DataLog!W953,\"\")","v":""},{"$f":"IF(DataLog!$C953=\"Log value\",DataLog!X953,\"\")","v":""},{"$f":"IF(DataLog!$C953=\"Log value\",DataLog!Y953,\"\")","v":""},{"$f":"IF(DataLog!$C953=\"Log value\",DataLog!Z953,\"\")","v":""},{"$f":"IF(DataLog!$C953=\"Log value\",DataLog!AA953,\"\")","v":""},{"$f":"IF(DataLog!$C953=\"Log value\",DataLog!AB953,\"\")","v":""},{"$f":"IF(DataLog!$C953=\"Log value\",DataLog!AC953,\"\")","v":""},{"$f":"IF(DataLog!$C953=\"Log value\",DataLog!AD953,\"\")","v":""},{"$f":"IF(DataLog!$C953=\"Log value\",DataLog!AE953,\"\")","v":""},{"$f":"IF(DataLog!$C953=\"Log value\",DataLog!AF953,\"\")","v":""},{"$f":"IF(DataLog!$C953=\"Log value\",DataLog!AG953,\"\")","v":""},{"$f":"IF(DataLog!$C953=\"Log value\",DataLog!AH953,\"\")","v":""},{"$f":"IF(DataLog!$C953=\"Log value\",DataLog!AI953,\"\")","v":""},{"$f":"IF(DataLog!$C953=\"Log value\",DataLog!AJ953,\"\")","v":""},{"$f":"IF(DataLog!$C953=\"Log value\",DataLog!AK953,\"\")","v":""},{"$f":"IF(DataLog!$C953=\"Log value\",DataLog!AL953,\"\")","v":""},{"$f":"IF(DataLog!$C953=\"Log value\",DataLog!AM953,\"\")","v":""}]
[null,null,null,null,null,null,{"$f":"IF(DataLog!$C954=\"Log value\",DataLog!D954&\"_\"&TEXT(DataLog!B954,\"åååå-mm-dd\"),\"\")","v":""},{"$f":"IF(DataLog!$C954=\"Log value\",DataLog!E954,\"\")","v":""},{"$f":"IF(DataLog!$C954=\"Log value\",DataLog!F954,\"\")","v":""},{"$f":"IF(DataLog!$C954=\"Log value\",DataLog!G954,\"\")","v":""},{"$f":"IF(DataLog!$C954=\"Log value\",DataLog!H954,\"\")","v":""},{"$f":"IF(DataLog!$C954=\"Log value\",DataLog!I954,\"\")","v":""},{"$f":"IF(DataLog!$C954=\"Log value\",DataLog!J954,\"\")","v":""},{"$f":"IF(DataLog!$C954=\"Log value\",DataLog!K954,\"\")","v":""},{"$f":"IF(DataLog!$C954=\"Log value\",DataLog!L954,\"\")","v":""},{"$f":"IF(DataLog!$C954=\"Log value\",DataLog!M954,\"\")","v":""},{"$f":"IF(DataLog!$C954=\"Log value\",DataLog!N954,\"\")","v":""},{"$f":"IF(DataLog!$C954=\"Log value\",DataLog!O954,\"\")","v":""},{"$f":"IF(DataLog!$C954=\"Log value\",DataLog!P954,\"\")","v":""},{"$f":"IF(DataLog!$C954=\"Log value\",DataLog!Q954,\"\")","v":""},{"$f":"IF(DataLog!$C954=\"Log value\",DataLog!R954,\"\")","v":""},{"$f":"IF(DataLog!$C954=\"Log value\",DataLog!S954,\"\")","v":""},{"$f":"IF(DataLog!$C954=\"Log value\",DataLog!T954,\"\")","v":""},{"$f":"IF(DataLog!$C954=\"Log value\",DataLog!U954,\"\")","v":""},{"$f":"IF(DataLog!$C954=\"Log value\",DataLog!V954,\"\")","v":""},{"$f":"IF(DataLog!$C954=\"Log value\",DataLog!W954,\"\")","v":""},{"$f":"IF(DataLog!$C954=\"Log value\",DataLog!X954,\"\")","v":""},{"$f":"IF(DataLog!$C954=\"Log value\",DataLog!Y954,\"\")","v":""},{"$f":"IF(DataLog!$C954=\"Log value\",DataLog!Z954,\"\")","v":""},{"$f":"IF(DataLog!$C954=\"Log value\",DataLog!AA954,\"\")","v":""},{"$f":"IF(DataLog!$C954=\"Log value\",DataLog!AB954,\"\")","v":""},{"$f":"IF(DataLog!$C954=\"Log value\",DataLog!AC954,\"\")","v":""},{"$f":"IF(DataLog!$C954=\"Log value\",DataLog!AD954,\"\")","v":""},{"$f":"IF(DataLog!$C954=\"Log value\",DataLog!AE954,\"\")","v":""},{"$f":"IF(DataLog!$C954=\"Log value\",DataLog!AF954,\"\")","v":""},{"$f":"IF(DataLog!$C954=\"Log value\",DataLog!AG954,\"\")","v":""},{"$f":"IF(DataLog!$C954=\"Log value\",DataLog!AH954,\"\")","v":""},{"$f":"IF(DataLog!$C954=\"Log value\",DataLog!AI954,\"\")","v":""},{"$f":"IF(DataLog!$C954=\"Log value\",DataLog!AJ954,\"\")","v":""},{"$f":"IF(DataLog!$C954=\"Log value\",DataLog!AK954,\"\")","v":""},{"$f":"IF(DataLog!$C954=\"Log value\",DataLog!AL954,\"\")","v":""},{"$f":"IF(DataLog!$C954=\"Log value\",DataLog!AM954,\"\")","v":""}]
[null,null,null,null,null,null,{"$f":"IF(DataLog!$C955=\"Log value\",DataLog!D955&\"_\"&TEXT(DataLog!B955,\"åååå-mm-dd\"),\"\")","v":""},{"$f":"IF(DataLog!$C955=\"Log value\",DataLog!E955,\"\")","v":""},{"$f":"IF(DataLog!$C955=\"Log value\",DataLog!F955,\"\")","v":""},{"$f":"IF(DataLog!$C955=\"Log value\",DataLog!G955,\"\")","v":""},{"$f":"IF(DataLog!$C955=\"Log value\",DataLog!H955,\"\")","v":""},{"$f":"IF(DataLog!$C955=\"Log value\",DataLog!I955,\"\")","v":""},{"$f":"IF(DataLog!$C955=\"Log value\",DataLog!J955,\"\")","v":""},{"$f":"IF(DataLog!$C955=\"Log value\",DataLog!K955,\"\")","v":""},{"$f":"IF(DataLog!$C955=\"Log value\",DataLog!L955,\"\")","v":""},{"$f":"IF(DataLog!$C955=\"Log value\",DataLog!M955,\"\")","v":""},{"$f":"IF(DataLog!$C955=\"Log value\",DataLog!N955,\"\")","v":""},{"$f":"IF(DataLog!$C955=\"Log value\",DataLog!O955,\"\")","v":""},{"$f":"IF(DataLog!$C955=\"Log value\",DataLog!P955,\"\")","v":""},{"$f":"IF(DataLog!$C955=\"Log value\",DataLog!Q955,\"\")","v":""},{"$f":"IF(DataLog!$C955=\"Log value\",DataLog!R955,\"\")","v":""},{"$f":"IF(DataLog!$C955=\"Log value\",DataLog!S955,\"\")","v":""},{"$f":"IF(DataLog!$C955=\"Log value\",DataLog!T955,\"\")","v":""},{"$f":"IF(DataLog!$C955=\"Log value\",DataLog!U955,\"\")","v":""},{"$f":"IF(DataLog!$C955=\"Log value\",DataLog!V955,\"\")","v":""},{"$f":"IF(DataLog!$C955=\"Log value\",DataLog!W955,\"\")","v":""},{"$f":"IF(DataLog!$C955=\"Log value\",DataLog!X955,\"\")","v":""},{"$f":"IF(DataLog!$C955=\"Log value\",DataLog!Y955,\"\")","v":""},{"$f":"IF(DataLog!$C955=\"Log value\",DataLog!Z955,\"\")","v":""},{"$f":"IF(DataLog!$C955=\"Log value\",DataLog!AA955,\"\")","v":""},{"$f":"IF(DataLog!$C955=\"Log value\",DataLog!AB955,\"\")","v":""},{"$f":"IF(DataLog!$C955=\"Log value\",DataLog!AC955,\"\")","v":""},{"$f":"IF(DataLog!$C955=\"Log value\",DataLog!AD955,\"\")","v":""},{"$f":"IF(DataLog!$C955=\"Log value\",DataLog!AE955,\"\")","v":""},{"$f":"IF(DataLog!$C955=\"Log value\",DataLog!AF955,\"\")","v":""},{"$f":"IF(DataLog!$C955=\"Log value\",DataLog!AG955,\"\")","v":""},{"$f":"IF(DataLog!$C955=\"Log value\",DataLog!AH955,\"\")","v":""},{"$f":"IF(DataLog!$C955=\"Log value\",DataLog!AI955,\"\")","v":""},{"$f":"IF(DataLog!$C955=\"Log value\",DataLog!AJ955,\"\")","v":""},{"$f":"IF(DataLog!$C955=\"Log value\",DataLog!AK955,\"\")","v":""},{"$f":"IF(DataLog!$C955=\"Log value\",DataLog!AL955,\"\")","v":""},{"$f":"IF(DataLog!$C955=\"Log value\",DataLog!AM955,\"\")","v":""}]
[null,null,null,null,null,null,{"$f":"IF(DataLog!$C956=\"Log value\",DataLog!D956&\"_\"&TEXT(DataLog!B956,\"åååå-mm-dd\"),\"\")","v":""},{"$f":"IF(DataLog!$C956=\"Log value\",DataLog!E956,\"\")","v":""},{"$f":"IF(DataLog!$C956=\"Log value\",DataLog!F956,\"\")","v":""},{"$f":"IF(DataLog!$C956=\"Log value\",DataLog!G956,\"\")","v":""},{"$f":"IF(DataLog!$C956=\"Log value\",DataLog!H956,\"\")","v":""},{"$f":"IF(DataLog!$C956=\"Log value\",DataLog!I956,\"\")","v":""},{"$f":"IF(DataLog!$C956=\"Log value\",DataLog!J956,\"\")","v":""},{"$f":"IF(DataLog!$C956=\"Log value\",DataLog!K956,\"\")","v":""},{"$f":"IF(DataLog!$C956=\"Log value\",DataLog!L956,\"\")","v":""},{"$f":"IF(DataLog!$C956=\"Log value\",DataLog!M956,\"\")","v":""},{"$f":"IF(DataLog!$C956=\"Log value\",DataLog!N956,\"\")","v":""},{"$f":"IF(DataLog!$C956=\"Log value\",DataLog!O956,\"\")","v":""},{"$f":"IF(DataLog!$C956=\"Log value\",DataLog!P956,\"\")","v":""},{"$f":"IF(DataLog!$C956=\"Log value\",DataLog!Q956,\"\")","v":""},{"$f":"IF(DataLog!$C956=\"Log value\",DataLog!R956,\"\")","v":""},{"$f":"IF(DataLog!$C956=\"Log value\",DataLog!S956,\"\")","v":""},{"$f":"IF(DataLog!$C956=\"Log value\",DataLog!T956,\"\")","v":""},{"$f":"IF(DataLog!$C956=\"Log value\",DataLog!U956,\"\")","v":""},{"$f":"IF(DataLog!$C956=\"Log value\",DataLog!V956,\"\")","v":""},{"$f":"IF(DataLog!$C956=\"Log value\",DataLog!W956,\"\")","v":""},{"$f":"IF(DataLog!$C956=\"Log value\",DataLog!X956,\"\")","v":""},{"$f":"IF(DataLog!$C956=\"Log value\",DataLog!Y956,\"\")","v":""},{"$f":"IF(DataLog!$C956=\"Log value\",DataLog!Z956,\"\")","v":""},{"$f":"IF(DataLog!$C956=\"Log value\",DataLog!AA956,\"\")","v":""},{"$f":"IF(DataLog!$C956=\"Log value\",DataLog!AB956,\"\")","v":""},{"$f":"IF(DataLog!$C956=\"Log value\",DataLog!AC956,\"\")","v":""},{"$f":"IF(DataLog!$C956=\"Log value\",DataLog!AD956,\"\")","v":""},{"$f":"IF(DataLog!$C956=\"Log value\",DataLog!AE956,\"\")","v":""},{"$f":"IF(DataLog!$C956=\"Log value\",DataLog!AF956,\"\")","v":""},{"$f":"IF(DataLog!$C956=\"Log value\",DataLog!AG956,\"\")","v":""},{"$f":"IF(DataLog!$C956=\"Log value\",DataLog!AH956,\"\")","v":""},{"$f":"IF(DataLog!$C956=\"Log value\",DataLog!AI956,\"\")","v":""},{"$f":"IF(DataLog!$C956=\"Log value\",DataLog!AJ956,\"\")","v":""},{"$f":"IF(DataLog!$C956=\"Log value\",DataLog!AK956,\"\")","v":""},{"$f":"IF(DataLog!$C956=\"Log value\",DataLog!AL956,\"\")","v":""},{"$f":"IF(DataLog!$C956=\"Log value\",DataLog!AM956,\"\")","v":""}]
[null,null,null,null,null,null,{"$f":"IF(DataLog!$C957=\"Log value\",DataLog!D957&\"_\"&TEXT(DataLog!B957,\"åååå-mm-dd\"),\"\")","v":""},{"$f":"IF(DataLog!$C957=\"Log value\",DataLog!E957,\"\")","v":""},{"$f":"IF(DataLog!$C957=\"Log value\",DataLog!F957,\"\")","v":""},{"$f":"IF(DataLog!$C957=\"Log value\",DataLog!G957,\"\")","v":""},{"$f":"IF(DataLog!$C957=\"Log value\",DataLog!H957,\"\")","v":""},{"$f":"IF(DataLog!$C957=\"Log value\",DataLog!I957,\"\")","v":""},{"$f":"IF(DataLog!$C957=\"Log value\",DataLog!J957,\"\")","v":""},{"$f":"IF(DataLog!$C957=\"Log value\",DataLog!K957,\"\")","v":""},{"$f":"IF(DataLog!$C957=\"Log value\",DataLog!L957,\"\")","v":""},{"$f":"IF(DataLog!$C957=\"Log value\",DataLog!M957,\"\")","v":""},{"$f":"IF(DataLog!$C957=\"Log value\",DataLog!N957,\"\")","v":""},{"$f":"IF(DataLog!$C957=\"Log value\",DataLog!O957,\"\")","v":""},{"$f":"IF(DataLog!$C957=\"Log value\",DataLog!P957,\"\")","v":""},{"$f":"IF(DataLog!$C957=\"Log value\",DataLog!Q957,\"\")","v":""},{"$f":"IF(DataLog!$C957=\"Log value\",DataLog!R957,\"\")","v":""},{"$f":"IF(DataLog!$C957=\"Log value\",DataLog!S957,\"\")","v":""},{"$f":"IF(DataLog!$C957=\"Log value\",DataLog!T957,\"\")","v":""},{"$f":"IF(DataLog!$C957=\"Log value\",DataLog!U957,\"\")","v":""},{"$f":"IF(DataLog!$C957=\"Log value\",DataLog!V957,\"\")","v":""},{"$f":"IF(DataLog!$C957=\"Log value\",DataLog!W957,\"\")","v":""},{"$f":"IF(DataLog!$C957=\"Log value\",DataLog!X957,\"\")","v":""},{"$f":"IF(DataLog!$C957=\"Log value\",DataLog!Y957,\"\")","v":""},{"$f":"IF(DataLog!$C957=\"Log value\",DataLog!Z957,\"\")","v":""},{"$f":"IF(DataLog!$C957=\"Log value\",DataLog!AA957,\"\")","v":""},{"$f":"IF(DataLog!$C957=\"Log value\",DataLog!AB957,\"\")","v":""},{"$f":"IF(DataLog!$C957=\"Log value\",DataLog!AC957,\"\")","v":""},{"$f":"IF(DataLog!$C957=\"Log value\",DataLog!AD957,\"\")","v":""},{"$f":"IF(DataLog!$C957=\"Log value\",DataLog!AE957,\"\")","v":""},{"$f":"IF(DataLog!$C957=\"Log value\",DataLog!AF957,\"\")","v":""},{"$f":"IF(DataLog!$C957=\"Log value\",DataLog!AG957,\"\")","v":""},{"$f":"IF(DataLog!$C957=\"Log value\",DataLog!AH957,\"\")","v":""},{"$f":"IF(DataLog!$C957=\"Log value\",DataLog!AI957,\"\")","v":""},{"$f":"IF(DataLog!$C957=\"Log value\",DataLog!AJ957,\"\")","v":""},{"$f":"IF(DataLog!$C957=\"Log value\",DataLog!AK957,\"\")","v":""},{"$f":"IF(DataLog!$C957=\"Log value\",DataLog!AL957,\"\")","v":""},{"$f":"IF(DataLog!$C957=\"Log value\",DataLog!AM957,\"\")","v":""}]
[null,null,null,null,null,null,{"$f":"IF(DataLog!$C958=\"Log value\",DataLog!D958&\"_\"&TEXT(DataLog!B958,\"åååå-mm-dd\"),\"\")","v":""},{"$f":"IF(DataLog!$C958=\"Log value\",DataLog!E958,\"\")","v":""},{"$f":"IF(DataLog!$C958=\"Log value\",DataLog!F958,\"\")","v":""},{"$f":"IF(DataLog!$C958=\"Log value\",DataLog!G958,\"\")","v":""},{"$f":"IF(DataLog!$C958=\"Log value\",DataLog!H958,\"\")","v":""},{"$f":"IF(DataLog!$C958=\"Log value\",DataLog!I958,\"\")","v":""},{"$f":"IF(DataLog!$C958=\"Log value\",DataLog!J958,\"\")","v":""},{"$f":"IF(DataLog!$C958=\"Log value\",DataLog!K958,\"\")","v":""},{"$f":"IF(DataLog!$C958=\"Log value\",DataLog!L958,\"\")","v":""},{"$f":"IF(DataLog!$C958=\"Log value\",DataLog!M958,\"\")","v":""},{"$f":"IF(DataLog!$C958=\"Log value\",DataLog!N958,\"\")","v":""},{"$f":"IF(DataLog!$C958=\"Log value\",DataLog!O958,\"\")","v":""},{"$f":"IF(DataLog!$C958=\"Log value\",DataLog!P958,\"\")","v":""},{"$f":"IF(DataLog!$C958=\"Log value\",DataLog!Q958,\"\")","v":""},{"$f":"IF(DataLog!$C958=\"Log value\",DataLog!R958,\"\")","v":""},{"$f":"IF(DataLog!$C958=\"Log value\",DataLog!S958,\"\")","v":""},{"$f":"IF(DataLog!$C958=\"Log value\",DataLog!T958,\"\")","v":""},{"$f":"IF(DataLog!$C958=\"Log value\",DataLog!U958,\"\")","v":""},{"$f":"IF(DataLog!$C958=\"Log value\",DataLog!V958,\"\")","v":""},{"$f":"IF(DataLog!$C958=\"Log value\",DataLog!W958,\"\")","v":""},{"$f":"IF(DataLog!$C958=\"Log value\",DataLog!X958,\"\")","v":""},{"$f":"IF(DataLog!$C958=\"Log value\",DataLog!Y958,\"\")","v":""},{"$f":"IF(DataLog!$C958=\"Log value\",DataLog!Z958,\"\")","v":""},{"$f":"IF(DataLog!$C958=\"Log value\",DataLog!AA958,\"\")","v":""},{"$f":"IF(DataLog!$C958=\"Log value\",DataLog!AB958,\"\")","v":""},{"$f":"IF(DataLog!$C958=\"Log value\",DataLog!AC958,\"\")","v":""},{"$f":"IF(DataLog!$C958=\"Log value\",DataLog!AD958,\"\")","v":""},{"$f":"IF(DataLog!$C958=\"Log value\",DataLog!AE958,\"\")","v":""},{"$f":"IF(DataLog!$C958=\"Log value\",DataLog!AF958,\"\")","v":""},{"$f":"IF(DataLog!$C958=\"Log value\",DataLog!AG958,\"\")","v":""},{"$f":"IF(DataLog!$C958=\"Log value\",DataLog!AH958,\"\")","v":""},{"$f":"IF(DataLog!$C958=\"Log value\",DataLog!AI958,\"\")","v":""},{"$f":"IF(DataLog!$C958=\"Log value\",DataLog!AJ958,\"\")","v":""},{"$f":"IF(DataLog!$C958=\"Log value\",DataLog!AK958,\"\")","v":""},{"$f":"IF(DataLog!$C958=\"Log value\",DataLog!AL958,\"\")","v":""},{"$f":"IF(DataLog!$C958=\"Log value\",DataLog!AM958,\"\")","v":""}]
[null,null,null,null,null,null,{"$f":"IF(DataLog!$C959=\"Log value\",DataLog!D959&\"_\"&TEXT(DataLog!B959,\"åååå-mm-dd\"),\"\")","v":""},{"$f":"IF(DataLog!$C959=\"Log value\",DataLog!E959,\"\")","v":""},{"$f":"IF(DataLog!$C959=\"Log value\",DataLog!F959,\"\")","v":""},{"$f":"IF(DataLog!$C959=\"Log value\",DataLog!G959,\"\")","v":""},{"$f":"IF(DataLog!$C959=\"Log value\",DataLog!H959,\"\")","v":""},{"$f":"IF(DataLog!$C959=\"Log value\",DataLog!I959,\"\")","v":""},{"$f":"IF(DataLog!$C959=\"Log value\",DataLog!J959,\"\")","v":""},{"$f":"IF(DataLog!$C959=\"Log value\",DataLog!K959,\"\")","v":""},{"$f":"IF(DataLog!$C959=\"Log value\",DataLog!L959,\"\")","v":""},{"$f":"IF(DataLog!$C959=\"Log value\",DataLog!M959,\"\")","v":""},{"$f":"IF(DataLog!$C959=\"Log value\",DataLog!N959,\"\")","v":""},{"$f":"IF(DataLog!$C959=\"Log value\",DataLog!O959,\"\")","v":""},{"$f":"IF(DataLog!$C959=\"Log value\",DataLog!P959,\"\")","v":""},{"$f":"IF(DataLog!$C959=\"Log value\",DataLog!Q959,\"\")","v":""},{"$f":"IF(DataLog!$C959=\"Log value\",DataLog!R959,\"\")","v":""},{"$f":"IF(DataLog!$C959=\"Log value\",DataLog!S959,\"\")","v":""},{"$f":"IF(DataLog!$C959=\"Log value\",DataLog!T959,\"\")","v":""},{"$f":"IF(DataLog!$C959=\"Log value\",DataLog!U959,\"\")","v":""},{"$f":"IF(DataLog!$C959=\"Log value\",DataLog!V959,\"\")","v":""},{"$f":"IF(DataLog!$C959=\"Log value\",DataLog!W959,\"\")","v":""},{"$f":"IF(DataLog!$C959=\"Log value\",DataLog!X959,\"\")","v":""},{"$f":"IF(DataLog!$C959=\"Log value\",DataLog!Y959,\"\")","v":""},{"$f":"IF(DataLog!$C959=\"Log value\",DataLog!Z959,\"\")","v":""},{"$f":"IF(DataLog!$C959=\"Log value\",DataLog!AA959,\"\")","v":""},{"$f":"IF(DataLog!$C959=\"Log value\",DataLog!AB959,\"\")","v":""},{"$f":"IF(DataLog!$C959=\"Log value\",DataLog!AC959,\"\")","v":""},{"$f":"IF(DataLog!$C959=\"Log value\",DataLog!AD959,\"\")","v":""},{"$f":"IF(DataLog!$C959=\"Log value\",DataLog!AE959,\"\")","v":""},{"$f":"IF(DataLog!$C959=\"Log value\",DataLog!AF959,\"\")","v":""},{"$f":"IF(DataLog!$C959=\"Log value\",DataLog!AG959,\"\")","v":""},{"$f":"IF(DataLog!$C959=\"Log value\",DataLog!AH959,\"\")","v":""},{"$f":"IF(DataLog!$C959=\"Log value\",DataLog!AI959,\"\")","v":""},{"$f":"IF(DataLog!$C959=\"Log value\",DataLog!AJ959,\"\")","v":""},{"$f":"IF(DataLog!$C959=\"Log value\",DataLog!AK959,\"\")","v":""},{"$f":"IF(DataLog!$C959=\"Log value\",DataLog!AL959,\"\")","v":""},{"$f":"IF(DataLog!$C959=\"Log value\",DataLog!AM959,\"\")","v":""}]
[null,null,null,null,null,null,{"$f":"IF(DataLog!$C960=\"Log value\",DataLog!D960&\"_\"&TEXT(DataLog!B960,\"åååå-mm-dd\"),\"\")","v":""},{"$f":"IF(DataLog!$C960=\"Log value\",DataLog!E960,\"\")","v":""},{"$f":"IF(DataLog!$C960=\"Log value\",DataLog!F960,\"\")","v":""},{"$f":"IF(DataLog!$C960=\"Log value\",DataLog!G960,\"\")","v":""},{"$f":"IF(DataLog!$C960=\"Log value\",DataLog!H960,\"\")","v":""},{"$f":"IF(DataLog!$C960=\"Log value\",DataLog!I960,\"\")","v":""},{"$f":"IF(DataLog!$C960=\"Log value\",DataLog!J960,\"\")","v":""},{"$f":"IF(DataLog!$C960=\"Log value\",DataLog!K960,\"\")","v":""},{"$f":"IF(DataLog!$C960=\"Log value\",DataLog!L960,\"\")","v":""},{"$f":"IF(DataLog!$C960=\"Log value\",DataLog!M960,\"\")","v":""},{"$f":"IF(DataLog!$C960=\"Log value\",DataLog!N960,\"\")","v":""},{"$f":"IF(DataLog!$C960=\"Log value\",DataLog!O960,\"\")","v":""},{"$f":"IF(DataLog!$C960=\"Log value\",DataLog!P960,\"\")","v":""},{"$f":"IF(DataLog!$C960=\"Log value\",DataLog!Q960,\"\")","v":""},{"$f":"IF(DataLog!$C960=\"Log value\",DataLog!R960,\"\")","v":""},{"$f":"IF(DataLog!$C960=\"Log value\",DataLog!S960,\"\")","v":""},{"$f":"IF(DataLog!$C960=\"Log value\",DataLog!T960,\"\")","v":""},{"$f":"IF(DataLog!$C960=\"Log value\",DataLog!U960,\"\")","v":""},{"$f":"IF(DataLog!$C960=\"Log value\",DataLog!V960,\"\")","v":""},{"$f":"IF(DataLog!$C960=\"Log value\",DataLog!W960,\"\")","v":""},{"$f":"IF(DataLog!$C960=\"Log value\",DataLog!X960,\"\")","v":""},{"$f":"IF(DataLog!$C960=\"Log value\",DataLog!Y960,\"\")","v":""},{"$f":"IF(DataLog!$C960=\"Log value\",DataLog!Z960,\"\")","v":""},{"$f":"IF(DataLog!$C960=\"Log value\",DataLog!AA960,\"\")","v":""},{"$f":"IF(DataLog!$C960=\"Log value\",DataLog!AB960,\"\")","v":""},{"$f":"IF(DataLog!$C960=\"Log value\",DataLog!AC960,\"\")","v":""},{"$f":"IF(DataLog!$C960=\"Log value\",DataLog!AD960,\"\")","v":""},{"$f":"IF(DataLog!$C960=\"Log value\",DataLog!AE960,\"\")","v":""},{"$f":"IF(DataLog!$C960=\"Log value\",DataLog!AF960,\"\")","v":""},{"$f":"IF(DataLog!$C960=\"Log value\",DataLog!AG960,\"\")","v":""},{"$f":"IF(DataLog!$C960=\"Log value\",DataLog!AH960,\"\")","v":""},{"$f":"IF(DataLog!$C960=\"Log value\",DataLog!AI960,\"\")","v":""},{"$f":"IF(DataLog!$C960=\"Log value\",DataLog!AJ960,\"\")","v":""},{"$f":"IF(DataLog!$C960=\"Log value\",DataLog!AK960,\"\")","v":""},{"$f":"IF(DataLog!$C960=\"Log value\",DataLog!AL960,\"\")","v":""},{"$f":"IF(DataLog!$C960=\"Log value\",DataLog!AM960,\"\")","v":""}]
[null,null,null,null,null,null,{"$f":"IF(DataLog!$C961=\"Log value\",DataLog!D961&\"_\"&TEXT(DataLog!B961,\"åååå-mm-dd\"),\"\")","v":""},{"$f":"IF(DataLog!$C961=\"Log value\",DataLog!E961,\"\")","v":""},{"$f":"IF(DataLog!$C961=\"Log value\",DataLog!F961,\"\")","v":""},{"$f":"IF(DataLog!$C961=\"Log value\",DataLog!G961,\"\")","v":""},{"$f":"IF(DataLog!$C961=\"Log value\",DataLog!H961,\"\")","v":""},{"$f":"IF(DataLog!$C961=\"Log value\",DataLog!I961,\"\")","v":""},{"$f":"IF(DataLog!$C961=\"Log value\",DataLog!J961,\"\")","v":""},{"$f":"IF(DataLog!$C961=\"Log value\",DataLog!K961,\"\")","v":""},{"$f":"IF(DataLog!$C961=\"Log value\",DataLog!L961,\"\")","v":""},{"$f":"IF(DataLog!$C961=\"Log value\",DataLog!M961,\"\")","v":""},{"$f":"IF(DataLog!$C961=\"Log value\",DataLog!N961,\"\")","v":""},{"$f":"IF(DataLog!$C961=\"Log value\",DataLog!O961,\"\")","v":""},{"$f":"IF(DataLog!$C961=\"Log value\",DataLog!P961,\"\")","v":""},{"$f":"IF(DataLog!$C961=\"Log value\",DataLog!Q961,\"\")","v":""},{"$f":"IF(DataLog!$C961=\"Log value\",DataLog!R961,\"\")","v":""},{"$f":"IF(DataLog!$C961=\"Log value\",DataLog!S961,\"\")","v":""},{"$f":"IF(DataLog!$C961=\"Log value\",DataLog!T961,\"\")","v":""},{"$f":"IF(DataLog!$C961=\"Log value\",DataLog!U961,\"\")","v":""},{"$f":"IF(DataLog!$C961=\"Log value\",DataLog!V961,\"\")","v":""},{"$f":"IF(DataLog!$C961=\"Log value\",DataLog!W961,\"\")","v":""},{"$f":"IF(DataLog!$C961=\"Log value\",DataLog!X961,\"\")","v":""},{"$f":"IF(DataLog!$C961=\"Log value\",DataLog!Y961,\"\")","v":""},{"$f":"IF(DataLog!$C961=\"Log value\",DataLog!Z961,\"\")","v":""},{"$f":"IF(DataLog!$C961=\"Log value\",DataLog!AA961,\"\")","v":""},{"$f":"IF(DataLog!$C961=\"Log value\",DataLog!AB961,\"\")","v":""},{"$f":"IF(DataLog!$C961=\"Log value\",DataLog!AC961,\"\")","v":""},{"$f":"IF(DataLog!$C961=\"Log value\",DataLog!AD961,\"\")","v":""},{"$f":"IF(DataLog!$C961=\"Log value\",DataLog!AE961,\"\")","v":""},{"$f":"IF(DataLog!$C961=\"Log value\",DataLog!AF961,\"\")","v":""},{"$f":"IF(DataLog!$C961=\"Log value\",DataLog!AG961,\"\")","v":""},{"$f":"IF(DataLog!$C961=\"Log value\",DataLog!AH961,\"\")","v":""},{"$f":"IF(DataLog!$C961=\"Log value\",DataLog!AI961,\"\")","v":""},{"$f":"IF(DataLog!$C961=\"Log value\",DataLog!AJ961,\"\")","v":""},{"$f":"IF(DataLog!$C961=\"Log value\",DataLog!AK961,\"\")","v":""},{"$f":"IF(DataLog!$C961=\"Log value\",DataLog!AL961,\"\")","v":""},{"$f":"IF(DataLog!$C961=\"Log value\",DataLog!AM961,\"\")","v":""}]
[null,null,null,null,null,null,{"$f":"IF(DataLog!$C962=\"Log value\",DataLog!D962&\"_\"&TEXT(DataLog!B962,\"åååå-mm-dd\"),\"\")","v":""},{"$f":"IF(DataLog!$C962=\"Log value\",DataLog!E962,\"\")","v":""},{"$f":"IF(DataLog!$C962=\"Log value\",DataLog!F962,\"\")","v":""},{"$f":"IF(DataLog!$C962=\"Log value\",DataLog!G962,\"\")","v":""},{"$f":"IF(DataLog!$C962=\"Log value\",DataLog!H962,\"\")","v":""},{"$f":"IF(DataLog!$C962=\"Log value\",DataLog!I962,\"\")","v":""},{"$f":"IF(DataLog!$C962=\"Log value\",DataLog!J962,\"\")","v":""},{"$f":"IF(DataLog!$C962=\"Log value\",DataLog!K962,\"\")","v":""},{"$f":"IF(DataLog!$C962=\"Log value\",DataLog!L962,\"\")","v":""},{"$f":"IF(DataLog!$C962=\"Log value\",DataLog!M962,\"\")","v":""},{"$f":"IF(DataLog!$C962=\"Log value\",DataLog!N962,\"\")","v":""},{"$f":"IF(DataLog!$C962=\"Log value\",DataLog!O962,\"\")","v":""},{"$f":"IF(DataLog!$C962=\"Log value\",DataLog!P962,\"\")","v":""},{"$f":"IF(DataLog!$C962=\"Log value\",DataLog!Q962,\"\")","v":""},{"$f":"IF(DataLog!$C962=\"Log value\",DataLog!R962,\"\")","v":""},{"$f":"IF(DataLog!$C962=\"Log value\",DataLog!S962,\"\")","v":""},{"$f":"IF(DataLog!$C962=\"Log value\",DataLog!T962,\"\")","v":""},{"$f":"IF(DataLog!$C962=\"Log value\",DataLog!U962,\"\")","v":""},{"$f":"IF(DataLog!$C962=\"Log value\",DataLog!V962,\"\")","v":""},{"$f":"IF(DataLog!$C962=\"Log value\",DataLog!W962,\"\")","v":""},{"$f":"IF(DataLog!$C962=\"Log value\",DataLog!X962,\"\")","v":""},{"$f":"IF(DataLog!$C962=\"Log value\",DataLog!Y962,\"\")","v":""},{"$f":"IF(DataLog!$C962=\"Log value\",DataLog!Z962,\"\")","v":""},{"$f":"IF(DataLog!$C962=\"Log value\",DataLog!AA962,\"\")","v":""},{"$f":"IF(DataLog!$C962=\"Log value\",DataLog!AB962,\"\")","v":""},{"$f":"IF(DataLog!$C962=\"Log value\",DataLog!AC962,\"\")","v":""},{"$f":"IF(DataLog!$C962=\"Log value\",DataLog!AD962,\"\")","v":""},{"$f":"IF(DataLog!$C962=\"Log value\",DataLog!AE962,\"\")","v":""},{"$f":"IF(DataLog!$C962=\"Log value\",DataLog!AF962,\"\")","v":""},{"$f":"IF(DataLog!$C962=\"Log value\",DataLog!AG962,\"\")","v":""},{"$f":"IF(DataLog!$C962=\"Log value\",DataLog!AH962,\"\")","v":""},{"$f":"IF(DataLog!$C962=\"Log value\",DataLog!AI962,\"\")","v":""},{"$f":"IF(DataLog!$C962=\"Log value\",DataLog!AJ962,\"\")","v":""},{"$f":"IF(DataLog!$C962=\"Log value\",DataLog!AK962,\"\")","v":""},{"$f":"IF(DataLog!$C962=\"Log value\",DataLog!AL962,\"\")","v":""},{"$f":"IF(DataLog!$C962=\"Log value\",DataLog!AM962,\"\")","v":""}]
[null,null,null,null,null,null,{"$f":"IF(DataLog!$C963=\"Log value\",DataLog!D963&\"_\"&TEXT(DataLog!B963,\"åååå-mm-dd\"),\"\")","v":""},{"$f":"IF(DataLog!$C963=\"Log value\",DataLog!E963,\"\")","v":""},{"$f":"IF(DataLog!$C963=\"Log value\",DataLog!F963,\"\")","v":""},{"$f":"IF(DataLog!$C963=\"Log value\",DataLog!G963,\"\")","v":""},{"$f":"IF(DataLog!$C963=\"Log value\",DataLog!H963,\"\")","v":""},{"$f":"IF(DataLog!$C963=\"Log value\",DataLog!I963,\"\")","v":""},{"$f":"IF(DataLog!$C963=\"Log value\",DataLog!J963,\"\")","v":""},{"$f":"IF(DataLog!$C963=\"Log value\",DataLog!K963,\"\")","v":""},{"$f":"IF(DataLog!$C963=\"Log value\",DataLog!L963,\"\")","v":""},{"$f":"IF(DataLog!$C963=\"Log value\",DataLog!M963,\"\")","v":""},{"$f":"IF(DataLog!$C963=\"Log value\",DataLog!N963,\"\")","v":""},{"$f":"IF(DataLog!$C963=\"Log value\",DataLog!O963,\"\")","v":""},{"$f":"IF(DataLog!$C963=\"Log value\",DataLog!P963,\"\")","v":""},{"$f":"IF(DataLog!$C963=\"Log value\",DataLog!Q963,\"\")","v":""},{"$f":"IF(DataLog!$C963=\"Log value\",DataLog!R963,\"\")","v":""},{"$f":"IF(DataLog!$C963=\"Log value\",DataLog!S963,\"\")","v":""},{"$f":"IF(DataLog!$C963=\"Log value\",DataLog!T963,\"\")","v":""},{"$f":"IF(DataLog!$C963=\"Log value\",DataLog!U963,\"\")","v":""},{"$f":"IF(DataLog!$C963=\"Log value\",DataLog!V963,\"\")","v":""},{"$f":"IF(DataLog!$C963=\"Log value\",DataLog!W963,\"\")","v":""},{"$f":"IF(DataLog!$C963=\"Log value\",DataLog!X963,\"\")","v":""},{"$f":"IF(DataLog!$C963=\"Log value\",DataLog!Y963,\"\")","v":""},{"$f":"IF(DataLog!$C963=\"Log value\",DataLog!Z963,\"\")","v":""},{"$f":"IF(DataLog!$C963=\"Log value\",DataLog!AA963,\"\")","v":""},{"$f":"IF(DataLog!$C963=\"Log value\",DataLog!AB963,\"\")","v":""},{"$f":"IF(DataLog!$C963=\"Log value\",DataLog!AC963,\"\")","v":""},{"$f":"IF(DataLog!$C963=\"Log value\",DataLog!AD963,\"\")","v":""},{"$f":"IF(DataLog!$C963=\"Log value\",DataLog!AE963,\"\")","v":""},{"$f":"IF(DataLog!$C963=\"Log value\",DataLog!AF963,\"\")","v":""},{"$f":"IF(DataLog!$C963=\"Log value\",DataLog!AG963,\"\")","v":""},{"$f":"IF(DataLog!$C963=\"Log value\",DataLog!AH963,\"\")","v":""},{"$f":"IF(DataLog!$C963=\"Log value\",DataLog!AI963,\"\")","v":""},{"$f":"IF(DataLog!$C963=\"Log value\",DataLog!AJ963,\"\")","v":""},{"$f":"IF(DataLog!$C963=\"Log value\",DataLog!AK963,\"\")","v":""},{"$f":"IF(DataLog!$C963=\"Log value\",DataLog!AL963,\"\")","v":""},{"$f":"IF(DataLog!$C963=\"Log value\",DataLog!AM963,\"\")","v":""}]
[null,null,null,null,null,null,{"$f":"IF(DataLog!$C964=\"Log value\",DataLog!D964&\"_\"&TEXT(DataLog!B964,\"åååå-mm-dd\"),\"\")","v":""},{"$f":"IF(DataLog!$C964=\"Log value\",DataLog!E964,\"\")","v":""},{"$f":"IF(DataLog!$C964=\"Log value\",DataLog!F964,\"\")","v":""},{"$f":"IF(DataLog!$C964=\"Log value\",DataLog!G964,\"\")","v":""},{"$f":"IF(DataLog!$C964=\"Log value\",DataLog!H964,\"\")","v":""},{"$f":"IF(DataLog!$C964=\"Log value\",DataLog!I964,\"\")","v":""},{"$f":"IF(DataLog!$C964=\"Log value\",DataLog!J964,\"\")","v":""},{"$f":"IF(DataLog!$C964=\"Log value\",DataLog!K964,\"\")","v":""},{"$f":"IF(DataLog!$C964=\"Log value\",DataLog!L964,\"\")","v":""},{"$f":"IF(DataLog!$C964=\"Log value\",DataLog!M964,\"\")","v":""},{"$f":"IF(DataLog!$C964=\"Log value\",DataLog!N964,\"\")","v":""},{"$f":"IF(DataLog!$C964=\"Log value\",DataLog!O964,\"\")","v":""},{"$f":"IF(DataLog!$C964=\"Log value\",DataLog!P964,\"\")","v":""},{"$f":"IF(DataLog!$C964=\"Log value\",DataLog!Q964,\"\")","v":""},{"$f":"IF(DataLog!$C964=\"Log value\",DataLog!R964,\"\")","v":""},{"$f":"IF(DataLog!$C964=\"Log value\",DataLog!S964,\"\")","v":""},{"$f":"IF(DataLog!$C964=\"Log value\",DataLog!T964,\"\")","v":""},{"$f":"IF(DataLog!$C964=\"Log value\",DataLog!U964,\"\")","v":""},{"$f":"IF(DataLog!$C964=\"Log value\",DataLog!V964,\"\")","v":""},{"$f":"IF(DataLog!$C964=\"Log value\",DataLog!W964,\"\")","v":""},{"$f":"IF(DataLog!$C964=\"Log value\",DataLog!X964,\"\")","v":""},{"$f":"IF(DataLog!$C964=\"Log value\",DataLog!Y964,\"\")","v":""},{"$f":"IF(DataLog!$C964=\"Log value\",DataLog!Z964,\"\")","v":""},{"$f":"IF(DataLog!$C964=\"Log value\",DataLog!AA964,\"\")","v":""},{"$f":"IF(DataLog!$C964=\"Log value\",DataLog!AB964,\"\")","v":""},{"$f":"IF(DataLog!$C964=\"Log value\",DataLog!AC964,\"\")","v":""},{"$f":"IF(DataLog!$C964=\"Log value\",DataLog!AD964,\"\")","v":""},{"$f":"IF(DataLog!$C964=\"Log value\",DataLog!AE964,\"\")","v":""},{"$f":"IF(DataLog!$C964=\"Log value\",DataLog!AF964,\"\")","v":""},{"$f":"IF(DataLog!$C964=\"Log value\",DataLog!AG964,\"\")","v":""},{"$f":"IF(DataLog!$C964=\"Log value\",DataLog!AH964,\"\")","v":""},{"$f":"IF(DataLog!$C964=\"Log value\",DataLog!AI964,\"\")","v":""},{"$f":"IF(DataLog!$C964=\"Log value\",DataLog!AJ964,\"\")","v":""},{"$f":"IF(DataLog!$C964=\"Log value\",DataLog!AK964,\"\")","v":""},{"$f":"IF(DataLog!$C964=\"Log value\",DataLog!AL964,\"\")","v":""},{"$f":"IF(DataLog!$C964=\"Log value\",DataLog!AM964,\"\")","v":""}]
[null,null,null,null,null,null,{"$f":"IF(DataLog!$C965=\"Log value\",DataLog!D965&\"_\"&TEXT(DataLog!B965,\"åååå-mm-dd\"),\"\")","v":""},{"$f":"IF(DataLog!$C965=\"Log value\",DataLog!E965,\"\")","v":""},{"$f":"IF(DataLog!$C965=\"Log value\",DataLog!F965,\"\")","v":""},{"$f":"IF(DataLog!$C965=\"Log value\",DataLog!G965,\"\")","v":""},{"$f":"IF(DataLog!$C965=\"Log value\",DataLog!H965,\"\")","v":""},{"$f":"IF(DataLog!$C965=\"Log value\",DataLog!I965,\"\")","v":""},{"$f":"IF(DataLog!$C965=\"Log value\",DataLog!J965,\"\")","v":""},{"$f":"IF(DataLog!$C965=\"Log value\",DataLog!K965,\"\")","v":""},{"$f":"IF(DataLog!$C965=\"Log value\",DataLog!L965,\"\")","v":""},{"$f":"IF(DataLog!$C965=\"Log value\",DataLog!M965,\"\")","v":""},{"$f":"IF(DataLog!$C965=\"Log value\",DataLog!N965,\"\")","v":""},{"$f":"IF(DataLog!$C965=\"Log value\",DataLog!O965,\"\")","v":""},{"$f":"IF(DataLog!$C965=\"Log value\",DataLog!P965,\"\")","v":""},{"$f":"IF(DataLog!$C965=\"Log value\",DataLog!Q965,\"\")","v":""},{"$f":"IF(DataLog!$C965=\"Log value\",DataLog!R965,\"\")","v":""},{"$f":"IF(DataLog!$C965=\"Log value\",DataLog!S965,\"\")","v":""},{"$f":"IF(DataLog!$C965=\"Log value\",DataLog!T965,\"\")","v":""},{"$f":"IF(DataLog!$C965=\"Log value\",DataLog!U965,\"\")","v":""},{"$f":"IF(DataLog!$C965=\"Log value\",DataLog!V965,\"\")","v":""},{"$f":"IF(DataLog!$C965=\"Log value\",DataLog!W965,\"\")","v":""},{"$f":"IF(DataLog!$C965=\"Log value\",DataLog!X965,\"\")","v":""},{"$f":"IF(DataLog!$C965=\"Log value\",DataLog!Y965,\"\")","v":""},{"$f":"IF(DataLog!$C965=\"Log value\",DataLog!Z965,\"\")","v":""},{"$f":"IF(DataLog!$C965=\"Log value\",DataLog!AA965,\"\")","v":""},{"$f":"IF(DataLog!$C965=\"Log value\",DataLog!AB965,\"\")","v":""},{"$f":"IF(DataLog!$C965=\"Log value\",DataLog!AC965,\"\")","v":""},{"$f":"IF(DataLog!$C965=\"Log value\",DataLog!AD965,\"\")","v":""},{"$f":"IF(DataLog!$C965=\"Log value\",DataLog!AE965,\"\")","v":""},{"$f":"IF(DataLog!$C965=\"Log value\",DataLog!AF965,\"\")","v":""},{"$f":"IF(DataLog!$C965=\"Log value\",DataLog!AG965,\"\")","v":""},{"$f":"IF(DataLog!$C965=\"Log value\",DataLog!AH965,\"\")","v":""},{"$f":"IF(DataLog!$C965=\"Log value\",DataLog!AI965,\"\")","v":""},{"$f":"IF(DataLog!$C965=\"Log value\",DataLog!AJ965,\"\")","v":""},{"$f":"IF(DataLog!$C965=\"Log value\",DataLog!AK965,\"\")","v":""},{"$f":"IF(DataLog!$C965=\"Log value\",DataLog!AL965,\"\")","v":""},{"$f":"IF(DataLog!$C965=\"Log value\",DataLog!AM965,\"\")","v":""}]
[null,null,null,null,null,null,{"$f":"IF(DataLog!$C966=\"Log value\",DataLog!D966&\"_\"&TEXT(DataLog!B966,\"åååå-mm-dd\"),\"\")","v":""},{"$f":"IF(DataLog!$C966=\"Log value\",DataLog!E966,\"\")","v":""},{"$f":"IF(DataLog!$C966=\"Log value\",DataLog!F966,\"\")","v":""},{"$f":"IF(DataLog!$C966=\"Log value\",DataLog!G966,\"\")","v":""},{"$f":"IF(DataLog!$C966=\"Log value\",DataLog!H966,\"\")","v":""},{"$f":"IF(DataLog!$C966=\"Log value\",DataLog!I966,\"\")","v":""},{"$f":"IF(DataLog!$C966=\"Log value\",DataLog!J966,\"\")","v":""},{"$f":"IF(DataLog!$C966=\"Log value\",DataLog!K966,\"\")","v":""},{"$f":"IF(DataLog!$C966=\"Log value\",DataLog!L966,\"\")","v":""},{"$f":"IF(DataLog!$C966=\"Log value\",DataLog!M966,\"\")","v":""},{"$f":"IF(DataLog!$C966=\"Log value\",DataLog!N966,\"\")","v":""},{"$f":"IF(DataLog!$C966=\"Log value\",DataLog!O966,\"\")","v":""},{"$f":"IF(DataLog!$C966=\"Log value\",DataLog!P966,\"\")","v":""},{"$f":"IF(DataLog!$C966=\"Log value\",DataLog!Q966,\"\")","v":""},{"$f":"IF(DataLog!$C966=\"Log value\",DataLog!R966,\"\")","v":""},{"$f":"IF(DataLog!$C966=\"Log value\",DataLog!S966,\"\")","v":""},{"$f":"IF(DataLog!$C966=\"Log value\",DataLog!T966,\"\")","v":""},{"$f":"IF(DataLog!$C966=\"Log value\",DataLog!U966,\"\")","v":""},{"$f":"IF(DataLog!$C966=\"Log value\",DataLog!V966,\"\")","v":""},{"$f":"IF(DataLog!$C966=\"Log value\",DataLog!W966,\"\")","v":""},{"$f":"IF(DataLog!$C966=\"Log value\",DataLog!X966,\"\")","v":""},{"$f":"IF(DataLog!$C966=\"Log value\",DataLog!Y966,\"\")","v":""},{"$f":"IF(DataLog!$C966=\"Log value\",DataLog!Z966,\"\")","v":""},{"$f":"IF(DataLog!$C966=\"Log value\",DataLog!AA966,\"\")","v":""},{"$f":"IF(DataLog!$C966=\"Log value\",DataLog!AB966,\"\")","v":""},{"$f":"IF(DataLog!$C966=\"Log value\",DataLog!AC966,\"\")","v":""},{"$f":"IF(DataLog!$C966=\"Log value\",DataLog!AD966,\"\")","v":""},{"$f":"IF(DataLog!$C966=\"Log value\",DataLog!AE966,\"\")","v":""},{"$f":"IF(DataLog!$C966=\"Log value\",DataLog!AF966,\"\")","v":""},{"$f":"IF(DataLog!$C966=\"Log value\",DataLog!AG966,\"\")","v":""},{"$f":"IF(DataLog!$C966=\"Log value\",DataLog!AH966,\"\")","v":""},{"$f":"IF(DataLog!$C966=\"Log value\",DataLog!AI966,\"\")","v":""},{"$f":"IF(DataLog!$C966=\"Log value\",DataLog!AJ966,\"\")","v":""},{"$f":"IF(DataLog!$C966=\"Log value\",DataLog!AK966,\"\")","v":""},{"$f":"IF(DataLog!$C966=\"Log value\",DataLog!AL966,\"\")","v":""},{"$f":"IF(DataLog!$C966=\"Log value\",DataLog!AM966,\"\")","v":""}]
[null,null,null,null,null,null,{"$f":"IF(DataLog!$C968=\"Log value\",DataLog!D968&\"_\"&TEXT(DataLog!B968,\"åååå-mm-dd\"),\"\")","v":""},{"$f":"IF(DataLog!$C968=\"Log value\",DataLog!E968,\"\")","v":""},{"$f":"IF(DataLog!$C968=\"Log value\",DataLog!F968,\"\")","v":""},{"$f":"IF(DataLog!$C968=\"Log value\",DataLog!G968,\"\")","v":""},{"$f":"IF(DataLog!$C968=\"Log value\",DataLog!H968,\"\")","v":""},{"$f":"IF(DataLog!$C968=\"Log value\",DataLog!I968,\"\")","v":""},{"$f":"IF(DataLog!$C968=\"Log value\",DataLog!J968,\"\")","v":""},{"$f":"IF(DataLog!$C968=\"Log value\",DataLog!K968,\"\")","v":""},{"$f":"IF(DataLog!$C968=\"Log value\",DataLog!L968,\"\")","v":""},{"$f":"IF(DataLog!$C968=\"Log value\",DataLog!M968,\"\")","v":""},{"$f":"IF(DataLog!$C968=\"Log value\",DataLog!N968,\"\")","v":""},{"$f":"IF(DataLog!$C968=\"Log value\",DataLog!O968,\"\")","v":""},{"$f":"IF(DataLog!$C968=\"Log value\",DataLog!P968,\"\")","v":""},{"$f":"IF(DataLog!$C968=\"Log value\",DataLog!Q968,\"\")","v":""},{"$f":"IF(DataLog!$C968=\"Log value\",DataLog!R968,\"\")","v":""},{"$f":"IF(DataLog!$C968=\"Log value\",DataLog!S968,\"\")","v":""},{"$f":"IF(DataLog!$C968=\"Log value\",DataLog!T968,\"\")","v":""},{"$f":"IF(DataLog!$C968=\"Log value\",DataLog!U968,\"\")","v":""},{"$f":"IF(DataLog!$C968=\"Log value\",DataLog!V968,\"\")","v":""},{"$f":"IF(DataLog!$C968=\"Log value\",DataLog!W968,\"\")","v":""},{"$f":"IF(DataLog!$C968=\"Log value\",DataLog!X968,\"\")","v":""},{"$f":"IF(DataLog!$C968=\"Log value\",DataLog!Y968,\"\")","v":""},{"$f":"IF(DataLog!$C968=\"Log value\",DataLog!Z968,\"\")","v":""},{"$f":"IF(DataLog!$C968=\"Log value\",DataLog!AA968,\"\")","v":""},{"$f":"IF(DataLog!$C968=\"Log value\",DataLog!AB968,\"\")","v":""},{"$f":"IF(DataLog!$C968=\"Log value\",DataLog!AC968,\"\")","v":""},{"$f":"IF(DataLog!$C968=\"Log value\",DataLog!AD968,\"\")","v":""},{"$f":"IF(DataLog!$C968=\"Log value\",DataLog!AE968,\"\")","v":""},{"$f":"IF(DataLog!$C968=\"Log value\",DataLog!AF968,\"\")","v":""},{"$f":"IF(DataLog!$C968=\"Log value\",DataLog!AG968,\"\")","v":""},{"$f":"IF(DataLog!$C968=\"Log value\",DataLog!AH968,\"\")","v":""},{"$f":"IF(DataLog!$C968=\"Log value\",DataLog!AI968,\"\")","v":""},{"$f":"IF(DataLog!$C968=\"Log value\",DataLog!AJ968,\"\")","v":""},{"$f":"IF(DataLog!$C968=\"Log value\",DataLog!AK968,\"\")","v":""},{"$f":"IF(DataLog!$C968=\"Log value\",DataLog!AL968,\"\")","v":""},{"$f":"IF(DataLog!$C968=\"Log value\",DataLog!AM968,\"\")","v":""}]
[null,null,null,null,null,null,{"$f":"IF(DataLog!$C969=\"Log value\",DataLog!D969&\"_\"&TEXT(DataLog!B969,\"åååå-mm-dd\"),\"\")","v":""},{"$f":"IF(DataLog!$C969=\"Log value\",DataLog!E969,\"\")","v":""},{"$f":"IF(DataLog!$C969=\"Log value\",DataLog!F969,\"\")","v":""},{"$f":"IF(DataLog!$C969=\"Log value\",DataLog!G969,\"\")","v":""},{"$f":"IF(DataLog!$C969=\"Log value\",DataLog!H969,\"\")","v":""},{"$f":"IF(DataLog!$C969=\"Log value\",DataLog!I969,\"\")","v":""},{"$f":"IF(DataLog!$C969=\"Log value\",DataLog!J969,\"\")","v":""},{"$f":"IF(DataLog!$C969=\"Log value\",DataLog!K969,\"\")","v":""},{"$f":"IF(DataLog!$C969=\"Log value\",DataLog!L969,\"\")","v":""},{"$f":"IF(DataLog!$C969=\"Log value\",DataLog!M969,\"\")","v":""},{"$f":"IF(DataLog!$C969=\"Log value\",DataLog!N969,\"\")","v":""},{"$f":"IF(DataLog!$C969=\"Log value\",DataLog!O969,\"\")","v":""},{"$f":"IF(DataLog!$C969=\"Log value\",DataLog!P969,\"\")","v":""},{"$f":"IF(DataLog!$C969=\"Log value\",DataLog!Q969,\"\")","v":""},{"$f":"IF(DataLog!$C969=\"Log value\",DataLog!R969,\"\")","v":""},{"$f":"IF(DataLog!$C969=\"Log value\",DataLog!S969,\"\")","v":""},{"$f":"IF(DataLog!$C969=\"Log value\",DataLog!T969,\"\")","v":""},{"$f":"IF(DataLog!$C969=\"Log value\",DataLog!U969,\"\")","v":""},{"$f":"IF(DataLog!$C969=\"Log value\",DataLog!V969,\"\")","v":""},{"$f":"IF(DataLog!$C969=\"Log value\",DataLog!W969,\"\")","v":""},{"$f":"IF(DataLog!$C969=\"Log value\",DataLog!X969,\"\")","v":""},{"$f":"IF(DataLog!$C969=\"Log value\",DataLog!Y969,\"\")","v":""},{"$f":"IF(DataLog!$C969=\"Log value\",DataLog!Z969,\"\")","v":""},{"$f":"IF(DataLog!$C969=\"Log value\",DataLog!AA969,\"\")","v":""},{"$f":"IF(DataLog!$C969=\"Log value\",DataLog!AB969,\"\")","v":""},{"$f":"IF(DataLog!$C969=\"Log value\",DataLog!AC969,\"\")","v":""},{"$f":"IF(DataLog!$C969=\"Log value\",DataLog!AD969,\"\")","v":""},{"$f":"IF(DataLog!$C969=\"Log value\",DataLog!AE969,\"\")","v":""},{"$f":"IF(DataLog!$C969=\"Log value\",DataLog!AF969,\"\")","v":""},{"$f":"IF(DataLog!$C969=\"Log value\",DataLog!AG969,\"\")","v":""},{"$f":"IF(DataLog!$C969=\"Log value\",DataLog!AH969,\"\")","v":""},{"$f":"IF(DataLog!$C969=\"Log value\",DataLog!AI969,\"\")","v":""},{"$f":"IF(DataLog!$C969=\"Log value\",DataLog!AJ969,\"\")","v":""},{"$f":"IF(DataLog!$C969=\"Log value\",DataLog!AK969,\"\")","v":""},{"$f":"IF(DataLog!$C969=\"Log value\",DataLog!AL969,\"\")","v":""},{"$f":"IF(DataLog!$C969=\"Log value\",DataLog!AM969,\"\")","v":""}]
[null,null,null,null,null,null,{"$f":"IF(DataLog!$C972=\"Log value\",DataLog!D972&\"_\"&TEXT(DataLog!B972,\"åååå-mm-dd\"),\"\")","v":""},{"$f":"IF(DataLog!$C972=\"Log value\",DataLog!E972,\"\")","v":""},{"$f":"IF(DataLog!$C972=\"Log value\",DataLog!F972,\"\")","v":""},{"$f":"IF(DataLog!$C972=\"Log value\",DataLog!G972,\"\")","v":""},{"$f":"IF(DataLog!$C972=\"Log value\",DataLog!H972,\"\")","v":""},{"$f":"IF(DataLog!$C972=\"Log value\",DataLog!I972,\"\")","v":""},{"$f":"IF(DataLog!$C972=\"Log value\",DataLog!J972,\"\")","v":""},{"$f":"IF(DataLog!$C972=\"Log value\",DataLog!K972,\"\")","v":""},{"$f":"IF(DataLog!$C972=\"Log value\",DataLog!L972,\"\")","v":""},{"$f":"IF(DataLog!$C972=\"Log value\",DataLog!M972,\"\")","v":""},{"$f":"IF(DataLog!$C972=\"Log value\",DataLog!N972,\"\")","v":""},{"$f":"IF(DataLog!$C972=\"Log value\",DataLog!O972,\"\")","v":""},{"$f":"IF(DataLog!$C972=\"Log value\",DataLog!P972,\"\")","v":""},{"$f":"IF(DataLog!$C972=\"Log value\",DataLog!Q972,\"\")","v":""},{"$f":"IF(DataLog!$C972=\"Log value\",DataLog!R972,\"\")","v":""},{"$f":"IF(DataLog!$C972=\"Log value\",DataLog!S972,\"\")","v":""},{"$f":"IF(DataLog!$C972=\"Log value\",DataLog!T972,\"\")","v":""},{"$f":"IF(DataLog!$C972=\"Log value\",DataLog!U972,\"\")","v":""},{"$f":"IF(DataLog!$C972=\"Log value\",DataLog!V972,\"\")","v":""},{"$f":"IF(DataLog!$C972=\"Log value\",DataLog!W972,\"\")","v":""},{"$f":"IF(DataLog!$C972=\"Log value\",DataLog!X972,\"\")","v":""},{"$f":"IF(DataLog!$C972=\"Log value\",DataLog!Y972,\"\")","v":""},{"$f":"IF(DataLog!$C972=\"Log value\",DataLog!Z972,\"\")","v":""},{"$f":"IF(DataLog!$C972=\"Log value\",DataLog!AA972,\"\")","v":""},{"$f":"IF(DataLog!$C972=\"Log value\",DataLog!AB972,\"\")","v":""},{"$f":"IF(DataLog!$C972=\"Log value\",DataLog!AC972,\"\")","v":""},{"$f":"IF(DataLog!$C972=\"Log value\",DataLog!AD972,\"\")","v":""},{"$f":"IF(DataLog!$C972=\"Log value\",DataLog!AE972,\"\")","v":""},{"$f":"IF(DataLog!$C972=\"Log value\",DataLog!AF972,\"\")","v":""},{"$f":"IF(DataLog!$C972=\"Log value\",DataLog!AG972,\"\")","v":""},{"$f":"IF(DataLog!$C972=\"Log value\",DataLog!AH972,\"\")","v":""},{"$f":"IF(DataLog!$C972=\"Log value\",DataLog!AI972,\"\")","v":""},{"$f":"IF(DataLog!$C972=\"Log value\",DataLog!AJ972,\"\")","v":""},{"$f":"IF(DataLog!$C972=\"Log value\",DataLog!AK972,\"\")","v":""},{"$f":"IF(DataLog!$C972=\"Log value\",DataLog!AL972,\"\")","v":""},{"$f":"IF(DataLog!$C972=\"Log value\",DataLog!AM972,\"\")","v":""}]
[null,null,null,null,null,null,{"$f":"IF(DataLog!$C975=\"Log value\",DataLog!D975&\"_\"&TEXT(DataLog!B975,\"åååå-mm-dd\"),\"\")","v":""},{"$f":"IF(DataLog!$C975=\"Log value\",DataLog!E975,\"\")","v":""},{"$f":"IF(DataLog!$C975=\"Log value\",DataLog!F975,\"\")","v":""},{"$f":"IF(DataLog!$C975=\"Log value\",DataLog!G975,\"\")","v":""},{"$f":"IF(DataLog!$C975=\"Log value\",DataLog!H975,\"\")","v":""},{"$f":"IF(DataLog!$C975=\"Log value\",DataLog!I975,\"\")","v":""},{"$f":"IF(DataLog!$C975=\"Log value\",DataLog!J975,\"\")","v":""},{"$f":"IF(DataLog!$C975=\"Log value\",DataLog!K975,\"\")","v":""},{"$f":"IF(DataLog!$C975=\"Log value\",DataLog!L975,\"\")","v":""},{"$f":"IF(DataLog!$C975=\"Log value\",DataLog!M975,\"\")","v":""},{"$f":"IF(DataLog!$C975=\"Log value\",DataLog!N975,\"\")","v":""},{"$f":"IF(DataLog!$C975=\"Log value\",DataLog!O975,\"\")","v":""},{"$f":"IF(DataLog!$C975=\"Log value\",DataLog!P975,\"\")","v":""},{"$f":"IF(DataLog!$C975=\"Log value\",DataLog!Q975,\"\")","v":""},{"$f":"IF(DataLog!$C975=\"Log value\",DataLog!R975,\"\")","v":""},{"$f":"IF(DataLog!$C975=\"Log value\",DataLog!S975,\"\")","v":""},{"$f":"IF(DataLog!$C975=\"Log value\",DataLog!T975,\"\")","v":""},{"$f":"IF(DataLog!$C975=\"Log value\",DataLog!U975,\"\")","v":""},{"$f":"IF(DataLog!$C975=\"Log value\",DataLog!V975,\"\")","v":""},{"$f":"IF(DataLog!$C975=\"Log value\",DataLog!W975,\"\")","v":""},{"$f":"IF(DataLog!$C975=\"Log value\",DataLog!X975,\"\")","v":""},{"$f":"IF(DataLog!$C975=\"Log value\",DataLog!Y975,\"\")","v":""},{"$f":"IF(DataLog!$C975=\"Log value\",DataLog!Z975,\"\")","v":""},{"$f":"IF(DataLog!$C975=\"Log value\",DataLog!AA975,\"\")","v":""},{"$f":"IF(DataLog!$C975=\"Log value\",DataLog!AB975,\"\")","v":""},{"$f":"IF(DataLog!$C975=\"Log value\",DataLog!AC975,\"\")","v":""},{"$f":"IF(DataLog!$C975=\"Log value\",DataLog!AD975,\"\")","v":""},{"$f":"IF(DataLog!$C975=\"Log value\",DataLog!AE975,\"\")","v":""},{"$f":"IF(DataLog!$C975=\"Log value\",DataLog!AF975,\"\")","v":""},{"$f":"IF(DataLog!$C975=\"Log value\",DataLog!AG975,\"\")","v":""},{"$f":"IF(DataLog!$C975=\"Log value\",DataLog!AH975,\"\")","v":""},{"$f":"IF(DataLog!$C975=\"Log value\",DataLog!AI975,\"\")","v":""},{"$f":"IF(DataLog!$C975=\"Log value\",DataLog!AJ975,\"\")","v":""},{"$f":"IF(DataLog!$C975=\"Log value\",DataLog!AK975,\"\")","v":""},{"$f":"IF(DataLog!$C975=\"Log value\",DataLog!AL975,\"\")","v":""},{"$f":"IF(DataLog!$C975=\"Log value\",DataLog!AM975,\"\")","v":""}]
[null,null,null,null,null,null,{"$f":"IF(DataLog!$C977=\"Log value\",DataLog!D977&\"_\"&TEXT(DataLog!B977,\"åååå-mm-dd\"),\"\")","v":""},{"$f":"IF(DataLog!$C977=\"Log value\",DataLog!E977,\"\")","v":""},{"$f":"IF(DataLog!$C977=\"Log value\",DataLog!F977,\"\")","v":""},{"$f":"IF(DataLog!$C977=\"Log value\",DataLog!G977,\"\")","v":""},{"$f":"IF(DataLog!$C977=\"Log value\",DataLog!H977,\"\")","v":""},{"$f":"IF(DataLog!$C977=\"Log value\",DataLog!I977,\"\")","v":""},{"$f":"IF(DataLog!$C977=\"Log value\",DataLog!J977,\"\")","v":""},{"$f":"IF(DataLog!$C977=\"Log value\",DataLog!K977,\"\")","v":""},{"$f":"IF(DataLog!$C977=\"Log value\",DataLog!L977,\"\")","v":""},{"$f":"IF(DataLog!$C977=\"Log value\",DataLog!M977,\"\")","v":""},{"$f":"IF(DataLog!$C977=\"Log value\",DataLog!N977,\"\")","v":""},{"$f":"IF(DataLog!$C977=\"Log value\",DataLog!O977,\"\")","v":""},{"$f":"IF(DataLog!$C977=\"Log value\",DataLog!P977,\"\")","v":""},{"$f":"IF(DataLog!$C977=\"Log value\",DataLog!Q977,\"\")","v":""},{"$f":"IF(DataLog!$C977=\"Log value\",DataLog!R977,\"\")","v":""},{"$f":"IF(DataLog!$C977=\"Log value\",DataLog!S977,\"\")","v":""},{"$f":"IF(DataLog!$C977=\"Log value\",DataLog!T977,\"\")","v":""},{"$f":"IF(DataLog!$C977=\"Log value\",DataLog!U977,\"\")","v":""},{"$f":"IF(DataLog!$C977=\"Log value\",DataLog!V977,\"\")","v":""},{"$f":"IF(DataLog!$C977=\"Log value\",DataLog!W977,\"\")","v":""},{"$f":"IF(DataLog!$C977=\"Log value\",DataLog!X977,\"\")","v":""},{"$f":"IF(DataLog!$C977=\"Log value\",DataLog!Y977,\"\")","v":""},{"$f":"IF(DataLog!$C977=\"Log value\",DataLog!Z977,\"\")","v":""},{"$f":"IF(DataLog!$C977=\"Log value\",DataLog!AA977,\"\")","v":""},{"$f":"IF(DataLog!$C977=\"Log value\",DataLog!AB977,\"\")","v":""},{"$f":"IF(DataLog!$C977=\"Log value\",DataLog!AC977,\"\")","v":""},{"$f":"IF(DataLog!$C977=\"Log value\",DataLog!AD977,\"\")","v":""},{"$f":"IF(DataLog!$C977=\"Log value\",DataLog!AE977,\"\")","v":""},{"$f":"IF(DataLog!$C977=\"Log value\",DataLog!AF977,\"\")","v":""},{"$f":"IF(DataLog!$C977=\"Log value\",DataLog!AG977,\"\")","v":""},{"$f":"IF(DataLog!$C977=\"Log value\",DataLog!AH977,\"\")","v":""},{"$f":"IF(DataLog!$C977=\"Log value\",DataLog!AI977,\"\")","v":""},{"$f":"IF(DataLog!$C977=\"Log value\",DataLog!AJ977,\"\")","v":""},{"$f":"IF(DataLog!$C977=\"Log value\",DataLog!AK977,\"\")","v":""},{"$f":"IF(DataLog!$C977=\"Log value\",DataLog!AL977,\"\")","v":""},{"$f":"IF(DataLog!$C977=\"Log value\",DataLog!AM977,\"\")","v":""}]
[null,null,null,null,null,null,{"$f":"IF(DataLog!$C978=\"Log value\",DataLog!D978&\"_\"&TEXT(DataLog!B978,\"åååå-mm-dd\"),\"\")","v":""},{"$f":"IF(DataLog!$C978=\"Log value\",DataLog!E978,\"\")","v":""},{"$f":"IF(DataLog!$C978=\"Log value\",DataLog!F978,\"\")","v":""},{"$f":"IF(DataLog!$C978=\"Log value\",DataLog!G978,\"\")","v":""},{"$f":"IF(DataLog!$C978=\"Log value\",DataLog!H978,\"\")","v":""},{"$f":"IF(DataLog!$C978=\"Log value\",DataLog!I978,\"\")","v":""},{"$f":"IF(DataLog!$C978=\"Log value\",DataLog!J978,\"\")","v":""},{"$f":"IF(DataLog!$C978=\"Log value\",DataLog!K978,\"\")","v":""},{"$f":"IF(DataLog!$C978=\"Log value\",DataLog!L978,\"\")","v":""},{"$f":"IF(DataLog!$C978=\"Log value\",DataLog!M978,\"\")","v":""},{"$f":"IF(DataLog!$C978=\"Log value\",DataLog!N978,\"\")","v":""},{"$f":"IF(DataLog!$C978=\"Log value\",DataLog!O978,\"\")","v":""},{"$f":"IF(DataLog!$C978=\"Log value\",DataLog!P978,\"\")","v":""},{"$f":"IF(DataLog!$C978=\"Log value\",DataLog!Q978,\"\")","v":""},{"$f":"IF(DataLog!$C978=\"Log value\",DataLog!R978,\"\")","v":""},{"$f":"IF(DataLog!$C978=\"Log value\",DataLog!S978,\"\")","v":""},{"$f":"IF(DataLog!$C978=\"Log value\",DataLog!T978,\"\")","v":""},{"$f":"IF(DataLog!$C978=\"Log value\",DataLog!U978,\"\")","v":""},{"$f":"IF(DataLog!$C978=\"Log value\",DataLog!V978,\"\")","v":""},{"$f":"IF(DataLog!$C978=\"Log value\",DataLog!W978,\"\")","v":""},{"$f":"IF(DataLog!$C978=\"Log value\",DataLog!X978,\"\")","v":""},{"$f":"IF(DataLog!$C978=\"Log value\",DataLog!Y978,\"\")","v":""},{"$f":"IF(DataLog!$C978=\"Log value\",DataLog!Z978,\"\")","v":""},{"$f":"IF(DataLog!$C978=\"Log value\",DataLog!AA978,\"\")","v":""},{"$f":"IF(DataLog!$C978=\"Log value\",DataLog!AB978,\"\")","v":""},{"$f":"IF(DataLog!$C978=\"Log value\",DataLog!AC978,\"\")","v":""},{"$f":"IF(DataLog!$C978=\"Log value\",DataLog!AD978,\"\")","v":""},{"$f":"IF(DataLog!$C978=\"Log value\",DataLog!AE978,\"\")","v":""},{"$f":"IF(DataLog!$C978=\"Log value\",DataLog!AF978,\"\")","v":""},{"$f":"IF(DataLog!$C978=\"Log value\",DataLog!AG978,\"\")","v":""},{"$f":"IF(DataLog!$C978=\"Log value\",DataLog!AH978,\"\")","v":""},{"$f":"IF(DataLog!$C978=\"Log value\",DataLog!AI978,\"\")","v":""},{"$f":"IF(DataLog!$C978=\"Log value\",DataLog!AJ978,\"\")","v":""},{"$f":"IF(DataLog!$C978=\"Log value\",DataLog!AK978,\"\")","v":""},{"$f":"IF(DataLog!$C978=\"Log value\",DataLog!AL978,\"\")","v":""},{"$f":"IF(DataLog!$C978=\"Log value\",DataLog!AM978,\"\")","v":""}]
[null,null,null,null,null,null,{"$f":"IF(DataLog!$C981=\"Log value\",DataLog!D981&\"_\"&TEXT(DataLog!B981,\"åååå-mm-dd\"),\"\")","v":""},{"$f":"IF(DataLog!$C981=\"Log value\",DataLog!E981,\"\")","v":""},{"$f":"IF(DataLog!$C981=\"Log value\",DataLog!F981,\"\")","v":""},{"$f":"IF(DataLog!$C981=\"Log value\",DataLog!G981,\"\")","v":""},{"$f":"IF(DataLog!$C981=\"Log value\",DataLog!H981,\"\")","v":""},{"$f":"IF(DataLog!$C981=\"Log value\",DataLog!I981,\"\")","v":""},{"$f":"IF(DataLog!$C981=\"Log value\",DataLog!J981,\"\")","v":""},{"$f":"IF(DataLog!$C981=\"Log value\",DataLog!K981,\"\")","v":""},{"$f":"IF(DataLog!$C981=\"Log value\",DataLog!L981,\"\")","v":""},{"$f":"IF(DataLog!$C981=\"Log value\",DataLog!M981,\"\")","v":""},{"$f":"IF(DataLog!$C981=\"Log value\",DataLog!N981,\"\")","v":""},{"$f":"IF(DataLog!$C981=\"Log value\",DataLog!O981,\"\")","v":""},{"$f":"IF(DataLog!$C981=\"Log value\",DataLog!P981,\"\")","v":""},{"$f":"IF(DataLog!$C981=\"Log value\",DataLog!Q981,\"\")","v":""},{"$f":"IF(DataLog!$C981=\"Log value\",DataLog!R981,\"\")","v":""},{"$f":"IF(DataLog!$C981=\"Log value\",DataLog!S981,\"\")","v":""},{"$f":"IF(DataLog!$C981=\"Log value\",DataLog!T981,\"\")","v":""},{"$f":"IF(DataLog!$C981=\"Log value\",DataLog!U981,\"\")","v":""},{"$f":"IF(DataLog!$C981=\"Log value\",DataLog!V981,\"\")","v":""},{"$f":"IF(DataLog!$C981=\"Log value\",DataLog!W981,\"\")","v":""},{"$f":"IF(DataLog!$C981=\"Log value\",DataLog!X981,\"\")","v":""},{"$f":"IF(DataLog!$C981=\"Log value\",DataLog!Y981,\"\")","v":""},{"$f":"IF(DataLog!$C981=\"Log value\",DataLog!Z981,\"\")","v":""},{"$f":"IF(DataLog!$C981=\"Log value\",DataLog!AA981,\"\")","v":""},{"$f":"IF(DataLog!$C981=\"Log value\",DataLog!AB981,\"\")","v":""},{"$f":"IF(DataLog!$C981=\"Log value\",DataLog!AC981,\"\")","v":""},{"$f":"IF(DataLog!$C981=\"Log value\",DataLog!AD981,\"\")","v":""},{"$f":"IF(DataLog!$C981=\"Log value\",DataLog!AE981,\"\")","v":""},{"$f":"IF(DataLog!$C981=\"Log value\",DataLog!AF981,\"\")","v":""},{"$f":"IF(DataLog!$C981=\"Log value\",DataLog!AG981,\"\")","v":""},{"$f":"IF(DataLog!$C981=\"Log value\",DataLog!AH981,\"\")","v":""},{"$f":"IF(DataLog!$C981=\"Log value\",DataLog!AI981,\"\")","v":""},{"$f":"IF(DataLog!$C981=\"Log value\",DataLog!AJ981,\"\")","v":""},{"$f":"IF(DataLog!$C981=\"Log value\",DataLog!AK981,\"\")","v":""},{"$f":"IF(DataLog!$C981=\"Log value\",DataLog!AL981,\"\")","v":""},{"$f":"IF(DataLog!$C981=\"Log value\",DataLog!AM981,\"\")","v":""}]
[null,null,null,null,null,null,{"$f":"IF(DataLog!$C982=\"Log value\",DataLog!D982&\"_\"&TEXT(DataLog!B982,\"åååå-mm-dd\"),\"\")","v":""},{"$f":"IF(DataLog!$C982=\"Log value\",DataLog!E982,\"\")","v":""},{"$f":"IF(DataLog!$C982=\"Log value\",DataLog!F982,\"\")","v":""},{"$f":"IF(DataLog!$C982=\"Log value\",DataLog!G982,\"\")","v":""},{"$f":"IF(DataLog!$C982=\"Log value\",DataLog!H982,\"\")","v":""},{"$f":"IF(DataLog!$C982=\"Log value\",DataLog!I982,\"\")","v":""},{"$f":"IF(DataLog!$C982=\"Log value\",DataLog!J982,\"\")","v":""},{"$f":"IF(DataLog!$C982=\"Log value\",DataLog!K982,\"\")","v":""},{"$f":"IF(DataLog!$C982=\"Log value\",DataLog!L982,\"\")","v":""},{"$f":"IF(DataLog!$C982=\"Log value\",DataLog!M982,\"\")","v":""},{"$f":"IF(DataLog!$C982=\"Log value\",DataLog!N982,\"\")","v":""},{"$f":"IF(DataLog!$C982=\"Log value\",DataLog!O982,\"\")","v":""},{"$f":"IF(DataLog!$C982=\"Log value\",DataLog!P982,\"\")","v":""},{"$f":"IF(DataLog!$C982=\"Log value\",DataLog!Q982,\"\")","v":""},{"$f":"IF(DataLog!$C982=\"Log value\",DataLog!R982,\"\")","v":""},{"$f":"IF(DataLog!$C982=\"Log value\",DataLog!S982,\"\")","v":""},{"$f":"IF(DataLog!$C982=\"Log value\",DataLog!T982,\"\")","v":""},{"$f":"IF(DataLog!$C982=\"Log value\",DataLog!U982,\"\")","v":""},{"$f":"IF(DataLog!$C982=\"Log value\",DataLog!V982,\"\")","v":""},{"$f":"IF(DataLog!$C982=\"Log value\",DataLog!W982,\"\")","v":""},{"$f":"IF(DataLog!$C982=\"Log value\",DataLog!X982,\"\")","v":""},{"$f":"IF(DataLog!$C982=\"Log value\",DataLog!Y982,\"\")","v":""},{"$f":"IF(DataLog!$C982=\"Log value\",DataLog!Z982,\"\")","v":""},{"$f":"IF(DataLog!$C982=\"Log value\",DataLog!AA982,\"\")","v":""},{"$f":"IF(DataLog!$C982=\"Log value\",DataLog!AB982,\"\")","v":""},{"$f":"IF(DataLog!$C982=\"Log value\",DataLog!AC982,\"\")","v":""},{"$f":"IF(DataLog!$C982=\"Log value\",DataLog!AD982,\"\")","v":""},{"$f":"IF(DataLog!$C982=\"Log value\",DataLog!AE982,\"\")","v":""},{"$f":"IF(DataLog!$C982=\"Log value\",DataLog!AF982,\"\")","v":""},{"$f":"IF(DataLog!$C982=\"Log value\",DataLog!AG982,\"\")","v":""},{"$f":"IF(DataLog!$C982=\"Log value\",DataLog!AH982,\"\")","v":""},{"$f":"IF(DataLog!$C982=\"Log value\",DataLog!AI982,\"\")","v":""},{"$f":"IF(DataLog!$C982=\"Log value\",DataLog!AJ982,\"\")","v":""},{"$f":"IF(DataLog!$C982=\"Log value\",DataLog!AK982,\"\")","v":""},{"$f":"IF(DataLog!$C982=\"Log value\",DataLog!AL982,\"\")","v":""},{"$f":"IF(DataLog!$C982=\"Log value\",DataLog!AM982,\"\")","v":""}]
[null,null,null,null,null,null,{"$f":"IF(DataLog!$C986=\"Log value\",DataLog!D986&\"_\"&TEXT(DataLog!B986,\"åååå-mm-dd\"),\"\")","v":""},{"$f":"IF(DataLog!$C986=\"Log value\",DataLog!E986,\"\")","v":""},{"$f":"IF(DataLog!$C986=\"Log value\",DataLog!F986,\"\")","v":""},{"$f":"IF(DataLog!$C986=\"Log value\",DataLog!G986,\"\")","v":""},{"$f":"IF(DataLog!$C986=\"Log value\",DataLog!H986,\"\")","v":""},{"$f":"IF(DataLog!$C986=\"Log value\",DataLog!I986,\"\")","v":""},{"$f":"IF(DataLog!$C986=\"Log value\",DataLog!J986,\"\")","v":""},{"$f":"IF(DataLog!$C986=\"Log value\",DataLog!K986,\"\")","v":""},{"$f":"IF(DataLog!$C986=\"Log value\",DataLog!L986,\"\")","v":""},{"$f":"IF(DataLog!$C986=\"Log value\",DataLog!M986,\"\")","v":""},{"$f":"IF(DataLog!$C986=\"Log value\",DataLog!N986,\"\")","v":""},{"$f":"IF(DataLog!$C986=\"Log value\",DataLog!O986,\"\")","v":""},{"$f":"IF(DataLog!$C986=\"Log value\",DataLog!P986,\"\")","v":""},{"$f":"IF(DataLog!$C986=\"Log value\",DataLog!Q986,\"\")","v":""},{"$f":"IF(DataLog!$C986=\"Log value\",DataLog!R986,\"\")","v":""},{"$f":"IF(DataLog!$C986=\"Log value\",DataLog!S986,\"\")","v":""},{"$f":"IF(DataLog!$C986=\"Log value\",DataLog!T986,\"\")","v":""},{"$f":"IF(DataLog!$C986=\"Log value\",DataLog!U986,\"\")","v":""},{"$f":"IF(DataLog!$C986=\"Log value\",DataLog!V986,\"\")","v":""},{"$f":"IF(DataLog!$C986=\"Log value\",DataLog!W986,\"\")","v":""},{"$f":"IF(DataLog!$C986=\"Log value\",DataLog!X986,\"\")","v":""},{"$f":"IF(DataLog!$C986=\"Log value\",DataLog!Y986,\"\")","v":""},{"$f":"IF(DataLog!$C986=\"Log value\",DataLog!Z986,\"\")","v":""},{"$f":"IF(DataLog!$C986=\"Log value\",DataLog!AA986,\"\")","v":""},{"$f":"IF(DataLog!$C986=\"Log value\",DataLog!AB986,\"\")","v":""},{"$f":"IF(DataLog!$C986=\"Log value\",DataLog!AC986,\"\")","v":""},{"$f":"IF(DataLog!$C986=\"Log value\",DataLog!AD986,\"\")","v":""},{"$f":"IF(DataLog!$C986=\"Log value\",DataLog!AE986,\"\")","v":""},{"$f":"IF(DataLog!$C986=\"Log value\",DataLog!AF986,\"\")","v":""},{"$f":"IF(DataLog!$C986=\"Log value\",DataLog!AG986,\"\")","v":""},{"$f":"IF(DataLog!$C986=\"Log value\",DataLog!AH986,\"\")","v":""},{"$f":"IF(DataLog!$C986=\"Log value\",DataLog!AI986,\"\")","v":""},{"$f":"IF(DataLog!$C986=\"Log value\",DataLog!AJ986,\"\")","v":""},{"$f":"IF(DataLog!$C986=\"Log value\",DataLog!AK986,\"\")","v":""},{"$f":"IF(DataLog!$C986=\"Log value\",DataLog!AL986,\"\")","v":""},{"$f":"IF(DataLog!$C986=\"Log value\",DataLog!AM986,\"\")","v":""}]
[null,null,null,null,null,null,{"$f":"IF(DataLog!$C987=\"Log value\",DataLog!D987&\"_\"&TEXT(DataLog!B987,\"åååå-mm-dd\"),\"\")","v":""},{"$f":"IF(DataLog!$C987=\"Log value\",DataLog!E987,\"\")","v":""},{"$f":"IF(DataLog!$C987=\"Log value\",DataLog!F987,\"\")","v":""},{"$f":"IF(DataLog!$C987=\"Log value\",DataLog!G987,\"\")","v":""},{"$f":"IF(DataLog!$C987=\"Log value\",DataLog!H987,\"\")","v":""},{"$f":"IF(DataLog!$C987=\"Log value\",DataLog!I987,\"\")","v":""},{"$f":"IF(DataLog!$C987=\"Log value\",DataLog!J987,\"\")","v":""},{"$f":"IF(DataLog!$C987=\"Log value\",DataLog!K987,\"\")","v":""},{"$f":"IF(DataLog!$C987=\"Log value\",DataLog!L987,\"\")","v":""},{"$f":"IF(DataLog!$C987=\"Log value\",DataLog!M987,\"\")","v":""},{"$f":"IF(DataLog!$C987=\"Log value\",DataLog!N987,\"\")","v":""},{"$f":"IF(DataLog!$C987=\"Log value\",DataLog!O987,\"\")","v":""},{"$f":"IF(DataLog!$C987=\"Log value\",DataLog!P987,\"\")","v":""},{"$f":"IF(DataLog!$C987=\"Log value\",DataLog!Q987,\"\")","v":""},{"$f":"IF(DataLog!$C987=\"Log value\",DataLog!R987,\"\")","v":""},{"$f":"IF(DataLog!$C987=\"Log value\",DataLog!S987,\"\")","v":""},{"$f":"IF(DataLog!$C987=\"Log value\",DataLog!T987,\"\")","v":""},{"$f":"IF(DataLog!$C987=\"Log value\",DataLog!U987,\"\")","v":""},{"$f":"IF(DataLog!$C987=\"Log value\",DataLog!V987,\"\")","v":""},{"$f":"IF(DataLog!$C987=\"Log value\",DataLog!W987,\"\")","v":""},{"$f":"IF(DataLog!$C987=\"Log value\",DataLog!X987,\"\")","v":""},{"$f":"IF(DataLog!$C987=\"Log value\",DataLog!Y987,\"\")","v":""},{"$f":"IF(DataLog!$C987=\"Log value\",DataLog!Z987,\"\")","v":""},{"$f":"IF(DataLog!$C987=\"Log value\",DataLog!AA987,\"\")","v":""},{"$f":"IF(DataLog!$C987=\"Log value\",DataLog!AB987,\"\")","v":""},{"$f":"IF(DataLog!$C987=\"Log value\",DataLog!AC987,\"\")","v":""},{"$f":"IF(DataLog!$C987=\"Log value\",DataLog!AD987,\"\")","v":""},{"$f":"IF(DataLog!$C987=\"Log value\",DataLog!AE987,\"\")","v":""},{"$f":"IF(DataLog!$C987=\"Log value\",DataLog!AF987,\"\")","v":""},{"$f":"IF(DataLog!$C987=\"Log value\",DataLog!AG987,\"\")","v":""},{"$f":"IF(DataLog!$C987=\"Log value\",DataLog!AH987,\"\")","v":""},{"$f":"IF(DataLog!$C987=\"Log value\",DataLog!AI987,\"\")","v":""},{"$f":"IF(DataLog!$C987=\"Log value\",DataLog!AJ987,\"\")","v":""},{"$f":"IF(DataLog!$C987=\"Log value\",DataLog!AK987,\"\")","v":""},{"$f":"IF(DataLog!$C987=\"Log value\",DataLog!AL987,\"\")","v":""},{"$f":"IF(DataLog!$C987=\"Log value\",DataLog!AM987,\"\")","v":""}]
[null,null,null,null,null,null,{"$f":"IF(DataLog!$C990=\"Log value\",DataLog!D990&\"_\"&TEXT(DataLog!B990,\"åååå-mm-dd\"),\"\")","v":""},{"$f":"IF(DataLog!$C990=\"Log value\",DataLog!E990,\"\")","v":""},{"$f":"IF(DataLog!$C990=\"Log value\",DataLog!F990,\"\")","v":""},{"$f":"IF(DataLog!$C990=\"Log value\",DataLog!G990,\"\")","v":""},{"$f":"IF(DataLog!$C990=\"Log value\",DataLog!H990,\"\")","v":""},{"$f":"IF(DataLog!$C990=\"Log value\",DataLog!I990,\"\")","v":""},{"$f":"IF(DataLog!$C990=\"Log value\",DataLog!J990,\"\")","v":""},{"$f":"IF(DataLog!$C990=\"Log value\",DataLog!K990,\"\")","v":""},{"$f":"IF(DataLog!$C990=\"Log value\",DataLog!L990,\"\")","v":""},{"$f":"IF(DataLog!$C990=\"Log value\",DataLog!M990,\"\")","v":""},{"$f":"IF(DataLog!$C990=\"Log value\",DataLog!N990,\"\")","v":""},{"$f":"IF(DataLog!$C990=\"Log value\",DataLog!O990,\"\")","v":""},{"$f":"IF(DataLog!$C990=\"Log value\",DataLog!P990,\"\")","v":""},{"$f":"IF(DataLog!$C990=\"Log value\",DataLog!Q990,\"\")","v":""},{"$f":"IF(DataLog!$C990=\"Log value\",DataLog!R990,\"\")","v":""},{"$f":"IF(DataLog!$C990=\"Log value\",DataLog!S990,\"\")","v":""},{"$f":"IF(DataLog!$C990=\"Log value\",DataLog!T990,\"\")","v":""},{"$f":"IF(DataLog!$C990=\"Log value\",DataLog!U990,\"\")","v":""},{"$f":"IF(DataLog!$C990=\"Log value\",DataLog!V990,\"\")","v":""},{"$f":"IF(DataLog!$C990=\"Log value\",DataLog!W990,\"\")","v":""},{"$f":"IF(DataLog!$C990=\"Log value\",DataLog!X990,\"\")","v":""},{"$f":"IF(DataLog!$C990=\"Log value\",DataLog!Y990,\"\")","v":""},{"$f":"IF(DataLog!$C990=\"Log value\",DataLog!Z990,\"\")","v":""},{"$f":"IF(DataLog!$C990=\"Log value\",DataLog!AA990,\"\")","v":""},{"$f":"IF(DataLog!$C990=\"Log value\",DataLog!AB990,\"\")","v":""},{"$f":"IF(DataLog!$C990=\"Log value\",DataLog!AC990,\"\")","v":""},{"$f":"IF(DataLog!$C990=\"Log value\",DataLog!AD990,\"\")","v":""},{"$f":"IF(DataLog!$C990=\"Log value\",DataLog!AE990,\"\")","v":""},{"$f":"IF(DataLog!$C990=\"Log value\",DataLog!AF990,\"\")","v":""},{"$f":"IF(DataLog!$C990=\"Log value\",DataLog!AG990,\"\")","v":""},{"$f":"IF(DataLog!$C990=\"Log value\",DataLog!AH990,\"\")","v":""},{"$f":"IF(DataLog!$C990=\"Log value\",DataLog!AI990,\"\")","v":""},{"$f":"IF(DataLog!$C990=\"Log value\",DataLog!AJ990,\"\")","v":""},{"$f":"IF(DataLog!$C990=\"Log value\",DataLog!AK990,\"\")","v":""},{"$f":"IF(DataLog!$C990=\"Log value\",DataLog!AL990,\"\")","v":""},{"$f":"IF(DataLog!$C990=\"Log value\",DataLog!AM990,\"\")","v":""}]
[null,null,null,null,null,null,{"$f":"IF(DataLog!$C993=\"Log value\",DataLog!D993&\"_\"&TEXT(DataLog!B993,\"åååå-mm-dd\"),\"\")","v":""},{"$f":"IF(DataLog!$C993=\"Log value\",DataLog!E993,\"\")","v":""},{"$f":"IF(DataLog!$C993=\"Log value\",DataLog!F993,\"\")","v":""},{"$f":"IF(DataLog!$C993=\"Log value\",DataLog!G993,\"\")","v":""},{"$f":"IF(DataLog!$C993=\"Log value\",DataLog!H993,\"\")","v":""},{"$f":"IF(DataLog!$C993=\"Log value\",DataLog!I993,\"\")","v":""},{"$f":"IF(DataLog!$C993=\"Log value\",DataLog!J993,\"\")","v":""},{"$f":"IF(DataLog!$C993=\"Log value\",DataLog!K993,\"\")","v":""},{"$f":"IF(DataLog!$C993=\"Log value\",DataLog!L993,\"\")","v":""},{"$f":"IF(DataLog!$C993=\"Log value\",DataLog!M993,\"\")","v":""},{"$f":"IF(DataLog!$C993=\"Log value\",DataLog!N993,\"\")","v":""},{"$f":"IF(DataLog!$C993=\"Log value\",DataLog!O993,\"\")","v":""},{"$f":"IF(DataLog!$C993=\"Log value\",DataLog!P993,\"\")","v":""},{"$f":"IF(DataLog!$C993=\"Log value\",DataLog!Q993,\"\")","v":""},{"$f":"IF(DataLog!$C993=\"Log value\",DataLog!R993,\"\")","v":""},{"$f":"IF(DataLog!$C993=\"Log value\",DataLog!S993,\"\")","v":""},{"$f":"IF(DataLog!$C993=\"Log value\",DataLog!T993,\"\")","v":""},{"$f":"IF(DataLog!$C993=\"Log value\",DataLog!U993,\"\")","v":""},{"$f":"IF(DataLog!$C993=\"Log value\",DataLog!V993,\"\")","v":""},{"$f":"IF(DataLog!$C993=\"Log value\",DataLog!W993,\"\")","v":""},{"$f":"IF(DataLog!$C993=\"Log value\",DataLog!X993,\"\")","v":""},{"$f":"IF(DataLog!$C993=\"Log value\",DataLog!Y993,\"\")","v":""},{"$f":"IF(DataLog!$C993=\"Log value\",DataLog!Z993,\"\")","v":""},{"$f":"IF(DataLog!$C993=\"Log value\",DataLog!AA993,\"\")","v":""},{"$f":"IF(DataLog!$C993=\"Log value\",DataLog!AB993,\"\")","v":""},{"$f":"IF(DataLog!$C993=\"Log value\",DataLog!AC993,\"\")","v":""},{"$f":"IF(DataLog!$C993=\"Log value\",DataLog!AD993,\"\")","v":""},{"$f":"IF(DataLog!$C993=\"Log value\",DataLog!AE993,\"\")","v":""},{"$f":"IF(DataLog!$C993=\"Log value\",DataLog!AF993,\"\")","v":""},{"$f":"IF(DataLog!$C993=\"Log value\",DataLog!AG993,\"\")","v":""},{"$f":"IF(DataLog!$C993=\"Log value\",DataLog!AH993,\"\")","v":""},{"$f":"IF(DataLog!$C993=\"Log value\",DataLog!AI993,\"\")","v":""},{"$f":"IF(DataLog!$C993=\"Log value\",DataLog!AJ993,\"\")","v":""},{"$f":"IF(DataLog!$C993=\"Log value\",DataLog!AK993,\"\")","v":""},{"$f":"IF(DataLog!$C993=\"Log value\",DataLog!AL993,\"\")","v":""},{"$f":"IF(DataLog!$C993=\"Log value\",DataLog!AM993,\"\")","v":""}]
[null,null,null,null,null,null,{"$f":"IF(DataLog!$C995=\"Log value\",DataLog!D995&\"_\"&TEXT(DataLog!B995,\"åååå-mm-dd\"),\"\")","v":""},{"$f":"IF(DataLog!$C995=\"Log value\",DataLog!E995,\"\")","v":""},{"$f":"IF(DataLog!$C995=\"Log value\",DataLog!F995,\"\")","v":""},{"$f":"IF(DataLog!$C995=\"Log value\",DataLog!G995,\"\")","v":""},{"$f":"IF(DataLog!$C995=\"Log value\",DataLog!H995,\"\")","v":""},{"$f":"IF(DataLog!$C995=\"Log value\",DataLog!I995,\"\")","v":""},{"$f":"IF(DataLog!$C995=\"Log value\",DataLog!J995,\"\")","v":""},{"$f":"IF(DataLog!$C995=\"Log value\",DataLog!K995,\"\")","v":""},{"$f":"IF(DataLog!$C995=\"Log value\",DataLog!L995,\"\")","v":""},{"$f":"IF(DataLog!$C995=\"Log value\",DataLog!M995,\"\")","v":""},{"$f":"IF(DataLog!$C995=\"Log value\",DataLog!N995,\"\")","v":""},{"$f":"IF(DataLog!$C995=\"Log value\",DataLog!O995,\"\")","v":""},{"$f":"IF(DataLog!$C995=\"Log value\",DataLog!P995,\"\")","v":""},{"$f":"IF(DataLog!$C995=\"Log value\",DataLog!Q995,\"\")","v":""},{"$f":"IF(DataLog!$C995=\"Log value\",DataLog!R995,\"\")","v":""},{"$f":"IF(DataLog!$C995=\"Log value\",DataLog!S995,\"\")","v":""},{"$f":"IF(DataLog!$C995=\"Log value\",DataLog!T995,\"\")","v":""},{"$f":"IF(DataLog!$C995=\"Log value\",DataLog!U995,\"\")","v":""},{"$f":"IF(DataLog!$C995=\"Log value\",DataLog!V995,\"\")","v":""},{"$f":"IF(DataLog!$C995=\"Log value\",DataLog!W995,\"\")","v":""},{"$f":"IF(DataLog!$C995=\"Log value\",DataLog!X995,\"\")","v":""},{"$f":"IF(DataLog!$C995=\"Log value\",DataLog!Y995,\"\")","v":""},{"$f":"IF(DataLog!$C995=\"Log value\",DataLog!Z995,\"\")","v":""},{"$f":"IF(DataLog!$C995=\"Log value\",DataLog!AA995,\"\")","v":""},{"$f":"IF(DataLog!$C995=\"Log value\",DataLog!AB995,\"\")","v":""},{"$f":"IF(DataLog!$C995=\"Log value\",DataLog!AC995,\"\")","v":""},{"$f":"IF(DataLog!$C995=\"Log value\",DataLog!AD995,\"\")","v":""},{"$f":"IF(DataLog!$C995=\"Log value\",DataLog!AE995,\"\")","v":""},{"$f":"IF(DataLog!$C995=\"Log value\",DataLog!AF995,\"\")","v":""},{"$f":"IF(DataLog!$C995=\"Log value\",DataLog!AG995,\"\")","v":""},{"$f":"IF(DataLog!$C995=\"Log value\",DataLog!AH995,\"\")","v":""},{"$f":"IF(DataLog!$C995=\"Log value\",DataLog!AI995,\"\")","v":""},{"$f":"IF(DataLog!$C995=\"Log value\",DataLog!AJ995,\"\")","v":""},{"$f":"IF(DataLog!$C995=\"Log value\",DataLog!AK995,\"\")","v":""},{"$f":"IF(DataLog!$C995=\"Log value\",DataLog!AL995,\"\")","v":""},{"$f":"IF(DataLog!$C995=\"Log value\",DataLog!AM995,\"\")","v":""}]
[null,null,null,null,null,null,{"$f":"IF(DataLog!$C996=\"Log value\",DataLog!D996&\"_\"&TEXT(DataLog!B996,\"åååå-mm-dd\"),\"\")","v":""},{"$f":"IF(DataLog!$C996=\"Log value\",DataLog!E996,\"\")","v":""},{"$f":"IF(DataLog!$C996=\"Log value\",DataLog!F996,\"\")","v":""},{"$f":"IF(DataLog!$C996=\"Log value\",DataLog!G996,\"\")","v":""},{"$f":"IF(DataLog!$C996=\"Log value\",DataLog!H996,\"\")","v":""},{"$f":"IF(DataLog!$C996=\"Log value\",DataLog!I996,\"\")","v":""},{"$f":"IF(DataLog!$C996=\"Log value\",DataLog!J996,\"\")","v":""},{"$f":"IF(DataLog!$C996=\"Log value\",DataLog!K996,\"\")","v":""},{"$f":"IF(DataLog!$C996=\"Log value\",DataLog!L996,\"\")","v":""},{"$f":"IF(DataLog!$C996=\"Log value\",DataLog!M996,\"\")","v":""},{"$f":"IF(DataLog!$C996=\"Log value\",DataLog!N996,\"\")","v":""},{"$f":"IF(DataLog!$C996=\"Log value\",DataLog!O996,\"\")","v":""},{"$f":"IF(DataLog!$C996=\"Log value\",DataLog!P996,\"\")","v":""},{"$f":"IF(DataLog!$C996=\"Log value\",DataLog!Q996,\"\")","v":""},{"$f":"IF(DataLog!$C996=\"Log value\",DataLog!R996,\"\")","v":""},{"$f":"IF(DataLog!$C996=\"Log value\",DataLog!S996,\"\")","v":""},{"$f":"IF(DataLog!$C996=\"Log value\",DataLog!T996,\"\")","v":""},{"$f":"IF(DataLog!$C996=\"Log value\",DataLog!U996,\"\")","v":""},{"$f":"IF(DataLog!$C996=\"Log value\",DataLog!V996,\"\")","v":""},{"$f":"IF(DataLog!$C996=\"Log value\",DataLog!W996,\"\")","v":""},{"$f":"IF(DataLog!$C996=\"Log value\",DataLog!X996,\"\")","v":""},{"$f":"IF(DataLog!$C996=\"Log value\",DataLog!Y996,\"\")","v":""},{"$f":"IF(DataLog!$C996=\"Log value\",DataLog!Z996,\"\")","v":""},{"$f":"IF(DataLog!$C996=\"Log value\",DataLog!AA996,\"\")","v":""},{"$f":"IF(DataLog!$C996=\"Log value\",DataLog!AB996,\"\")","v":""},{"$f":"IF(DataLog!$C996=\"Log value\",DataLog!AC996,\"\")","v":""},{"$f":"IF(DataLog!$C996=\"Log value\",DataLog!AD996,\"\")","v":""},{"$f":"IF(DataLog!$C996=\"Log value\",DataLog!AE996,\"\")","v":""},{"$f":"IF(DataLog!$C996=\"Log value\",DataLog!AF996,\"\")","v":""},{"$f":"IF(DataLog!$C996=\"Log value\",DataLog!AG996,\"\")","v":""},{"$f":"IF(DataLog!$C996=\"Log value\",DataLog!AH996,\"\")","v":""},{"$f":"IF(DataLog!$C996=\"Log value\",DataLog!AI996,\"\")","v":""},{"$f":"IF(DataLog!$C996=\"Log value\",DataLog!AJ996,\"\")","v":""},{"$f":"IF(DataLog!$C996=\"Log value\",DataLog!AK996,\"\")","v":""},{"$f":"IF(DataLog!$C996=\"Log value\",DataLog!AL996,\"\")","v":""},{"$f":"IF(DataLog!$C996=\"Log value\",DataLog!AM996,\"\")","v":""}]
[null,null,null,null,null,null,{"$f":"IF(DataLog!$C999=\"Log value\",DataLog!D999&\"_\"&TEXT(DataLog!B999,\"åååå-mm-dd\"),\"\")","v":""},{"$f":"IF(DataLog!$C999=\"Log value\",DataLog!E999,\"\")","v":""},{"$f":"IF(DataLog!$C999=\"Log value\",DataLog!F999,\"\")","v":""},{"$f":"IF(DataLog!$C999=\"Log value\",DataLog!G999,\"\")","v":""},{"$f":"IF(DataLog!$C999=\"Log value\",DataLog!H999,\"\")","v":""},{"$f":"IF(DataLog!$C999=\"Log value\",DataLog!I999,\"\")","v":""},{"$f":"IF(DataLog!$C999=\"Log value\",DataLog!J999,\"\")","v":""},{"$f":"IF(DataLog!$C999=\"Log value\",DataLog!K999,\"\")","v":""},{"$f":"IF(DataLog!$C999=\"Log value\",DataLog!L999,\"\")","v":""},{"$f":"IF(DataLog!$C999=\"Log value\",DataLog!M999,\"\")","v":""},{"$f":"IF(DataLog!$C999=\"Log value\",DataLog!N999,\"\")","v":""},{"$f":"IF(DataLog!$C999=\"Log value\",DataLog!O999,\"\")","v":""},{"$f":"IF(DataLog!$C999=\"Log value\",DataLog!P999,\"\")","v":""},{"$f":"IF(DataLog!$C999=\"Log value\",DataLog!Q999,\"\")","v":""},{"$f":"IF(DataLog!$C999=\"Log value\",DataLog!R999,\"\")","v":""},{"$f":"IF(DataLog!$C999=\"Log value\",DataLog!S999,\"\")","v":""},{"$f":"IF(DataLog!$C999=\"Log value\",DataLog!T999,\"\")","v":""},{"$f":"IF(DataLog!$C999=\"Log value\",DataLog!U999,\"\")","v":""},{"$f":"IF(DataLog!$C999=\"Log value\",DataLog!V999,\"\")","v":""},{"$f":"IF(DataLog!$C999=\"Log value\",DataLog!W999,\"\")","v":""},{"$f":"IF(DataLog!$C999=\"Log value\",DataLog!X999,\"\")","v":""},{"$f":"IF(DataLog!$C999=\"Log value\",DataLog!Y999,\"\")","v":""},{"$f":"IF(DataLog!$C999=\"Log value\",DataLog!Z999,\"\")","v":""},{"$f":"IF(DataLog!$C999=\"Log value\",DataLog!AA999,\"\")","v":""},{"$f":"IF(DataLog!$C999=\"Log value\",DataLog!AB999,\"\")","v":""},{"$f":"IF(DataLog!$C999=\"Log value\",DataLog!AC999,\"\")","v":""},{"$f":"IF(DataLog!$C999=\"Log value\",DataLog!AD999,\"\")","v":""},{"$f":"IF(DataLog!$C999=\"Log value\",DataLog!AE999,\"\")","v":""},{"$f":"IF(DataLog!$C999=\"Log value\",DataLog!AF999,\"\")","v":""},{"$f":"IF(DataLog!$C999=\"Log value\",DataLog!AG999,\"\")","v":""},{"$f":"IF(DataLog!$C999=\"Log value\",DataLog!AH999,\"\")","v":""},{"$f":"IF(DataLog!$C999=\"Log value\",DataLog!AI999,\"\")","v":""},{"$f":"IF(DataLog!$C999=\"Log value\",DataLog!AJ999,\"\")","v":""},{"$f":"IF(DataLog!$C999=\"Log value\",DataLog!AK999,\"\")","v":""},{"$f":"IF(DataLog!$C999=\"Log value\",DataLog!AL999,\"\")","v":""},{"$f":"IF(DataLog!$C999=\"Log value\",DataLog!AM999,\"\")","v":""}]
[null,null,null,null,null,null,{"$f":"IF(DataLog!$C1000=\"Log value\",DataLog!D1000&\"_\"&TEXT(DataLog!B1000,\"åååå-mm-dd\"),\"\")","v":""},{"$f":"IF(DataLog!$C1000=\"Log value\",DataLog!E1000,\"\")","v":""},{"$f":"IF(DataLog!$C1000=\"Log value\",DataLog!F1000,\"\")","v":""},{"$f":"IF(DataLog!$C1000=\"Log value\",DataLog!G1000,\"\")","v":""},{"$f":"IF(DataLog!$C1000=\"Log value\",DataLog!H1000,\"\")","v":""},{"$f":"IF(DataLog!$C1000=\"Log value\",DataLog!I1000,\"\")","v":""},{"$f":"IF(DataLog!$C1000=\"Log value\",DataLog!J1000,\"\")","v":""},{"$f":"IF(DataLog!$C1000=\"Log value\",DataLog!K1000,\"\")","v":""},{"$f":"IF(DataLog!$C1000=\"Log value\",DataLog!L1000,\"\")","v":""},{"$f":"IF(DataLog!$C1000=\"Log value\",DataLog!M1000,\"\")","v":""},{"$f":"IF(DataLog!$C1000=\"Log value\",DataLog!N1000,\"\")","v":""},{"$f":"IF(DataLog!$C1000=\"Log value\",DataLog!O1000,\"\")","v":""},{"$f":"IF(DataLog!$C1000=\"Log value\",DataLog!P1000,\"\")","v":""},{"$f":"IF(DataLog!$C1000=\"Log value\",DataLog!Q1000,\"\")","v":""},{"$f":"IF(DataLog!$C1000=\"Log value\",DataLog!R1000,\"\")","v":""},{"$f":"IF(DataLog!$C1000=\"Log value\",DataLog!S1000,\"\")","v":""},{"$f":"IF(DataLog!$C1000=\"Log value\",DataLog!T1000,\"\")","v":""},{"$f":"IF(DataLog!$C1000=\"Log value\",DataLog!U1000,\"\")","v":""},{"$f":"IF(DataLog!$C1000=\"Log value\",DataLog!V1000,\"\")","v":""},{"$f":"IF(DataLog!$C1000=\"Log value\",DataLog!W1000,\"\")","v":""},{"$f":"IF(DataLog!$C1000=\"Log value\",DataLog!X1000,\"\")","v":""},{"$f":"IF(DataLog!$C1000=\"Log value\",DataLog!Y1000,\"\")","v":""},{"$f":"IF(DataLog!$C1000=\"Log value\",DataLog!Z1000,\"\")","v":""},{"$f":"IF(DataLog!$C1000=\"Log value\",DataLog!AA1000,\"\")","v":""},{"$f":"IF(DataLog!$C1000=\"Log value\",DataLog!AB1000,\"\")","v":""},{"$f":"IF(DataLog!$C1000=\"Log value\",DataLog!AC1000,\"\")","v":""},{"$f":"IF(DataLog!$C1000=\"Log value\",DataLog!AD1000,\"\")","v":""},{"$f":"IF(DataLog!$C1000=\"Log value\",DataLog!AE1000,\"\")","v":""},{"$f":"IF(DataLog!$C1000=\"Log value\",DataLog!AF1000,\"\")","v":""},{"$f":"IF(DataLog!$C1000=\"Log value\",DataLog!AG1000,\"\")","v":""},{"$f":"IF(DataLog!$C1000=\"Log value\",DataLog!AH1000,\"\")","v":""},{"$f":"IF(DataLog!$C1000=\"Log value\",DataLog!AI1000,\"\")","v":""},{"$f":"IF(DataLog!$C1000=\"Log value\",DataLog!AJ1000,\"\")","v":""},{"$f":"IF(DataLog!$C1000=\"Log value\",DataLog!AK1000,\"\")","v":""},{"$f":"IF(DataLog!$C1000=\"Log value\",DataLog!AL1000,\"\")","v":""},{"$f":"IF(DataLog!$C1000=\"Log value\",DataLog!AM1000,\"\")","v":""}]
[null,null,null,null,null,null,{"$f":"IF(DataLog!$C1004=\"Log value\",DataLog!D1004&\"_\"&TEXT(DataLog!B1004,\"åååå-mm-dd\"),\"\")","v":""},{"$f":"IF(DataLog!$C1004=\"Log value\",DataLog!E1004,\"\")","v":""},{"$f":"IF(DataLog!$C1004=\"Log value\",DataLog!F1004,\"\")","v":""},{"$f":"IF(DataLog!$C1004=\"Log value\",DataLog!G1004,\"\")","v":""},{"$f":"IF(DataLog!$C1004=\"Log value\",DataLog!H1004,\"\")","v":""},{"$f":"IF(DataLog!$C1004=\"Log value\",DataLog!I1004,\"\")","v":""},{"$f":"IF(DataLog!$C1004=\"Log value\",DataLog!J1004,\"\")","v":""},{"$f":"IF(DataLog!$C1004=\"Log value\",DataLog!K1004,\"\")","v":""},{"$f":"IF(DataLog!$C1004=\"Log value\",DataLog!L1004,\"\")","v":""},{"$f":"IF(DataLog!$C1004=\"Log value\",DataLog!M1004,\"\")","v":""},{"$f":"IF(DataLog!$C1004=\"Log value\",DataLog!N1004,\"\")","v":""},{"$f":"IF(DataLog!$C1004=\"Log value\",DataLog!O1004,\"\")","v":""},{"$f":"IF(DataLog!$C1004=\"Log value\",DataLog!P1004,\"\")","v":""},{"$f":"IF(DataLog!$C1004=\"Log value\",DataLog!Q1004,\"\")","v":""},{"$f":"IF(DataLog!$C1004=\"Log value\",DataLog!R1004,\"\")","v":""},{"$f":"IF(DataLog!$C1004=\"Log value\",DataLog!S1004,\"\")","v":""},{"$f":"IF(DataLog!$C1004=\"Log value\",DataLog!T1004,\"\")","v":""},{"$f":"IF(DataLog!$C1004=\"Log value\",DataLog!U1004,\"\")","v":""},{"$f":"IF(DataLog!$C1004=\"Log value\",DataLog!V1004,\"\")","v":""},{"$f":"IF(DataLog!$C1004=\"Log value\",DataLog!W1004,\"\")","v":""},{"$f":"IF(DataLog!$C1004=\"Log value\",DataLog!X1004,\"\")","v":""},{"$f":"IF(DataLog!$C1004=\"Log value\",DataLog!Y1004,\"\")","v":""},{"$f":"IF(DataLog!$C1004=\"Log value\",DataLog!Z1004,\"\")","v":""},{"$f":"IF(DataLog!$C1004=\"Log value\",DataLog!AA1004,\"\")","v":""},{"$f":"IF(DataLog!$C1004=\"Log value\",DataLog!AB1004,\"\")","v":""},{"$f":"IF(DataLog!$C1004=\"Log value\",DataLog!AC1004,\"\")","v":""},{"$f":"IF(DataLog!$C1004=\"Log value\",DataLog!AD1004,\"\")","v":""},{"$f":"IF(DataLog!$C1004=\"Log value\",DataLog!AE1004,\"\")","v":""},{"$f":"IF(DataLog!$C1004=\"Log value\",DataLog!AF1004,\"\")","v":""},{"$f":"IF(DataLog!$C1004=\"Log value\",DataLog!AG1004,\"\")","v":""},{"$f":"IF(DataLog!$C1004=\"Log value\",DataLog!AH1004,\"\")","v":""},{"$f":"IF(DataLog!$C1004=\"Log value\",DataLog!AI1004,\"\")","v":""},{"$f":"IF(DataLog!$C1004=\"Log value\",DataLog!AJ1004,\"\")","v":""},{"$f":"IF(DataLog!$C1004=\"Log value\",DataLog!AK1004,\"\")","v":""},{"$f":"IF(DataLog!$C1004=\"Log value\",DataLog!AL1004,\"\")","v":""},{"$f":"IF(DataLog!$C1004=\"Log value\",DataLog!AM1004,\"\")","v":""}]
[null,null,null,null,null,null,{"$f":"IF(DataLog!$C1005=\"Log value\",DataLog!D1005&\"_\"&TEXT(DataLog!B1005,\"åååå-mm-dd\"),\"\")","v":""},{"$f":"IF(DataLog!$C1005=\"Log value\",DataLog!E1005,\"\")","v":""},{"$f":"IF(DataLog!$C1005=\"Log value\",DataLog!F1005,\"\")","v":""},{"$f":"IF(DataLog!$C1005=\"Log value\",DataLog!G1005,\"\")","v":""},{"$f":"IF(DataLog!$C1005=\"Log value\",DataLog!H1005,\"\")","v":""},{"$f":"IF(DataLog!$C1005=\"Log value\",DataLog!I1005,\"\")","v":""},{"$f":"IF(DataLog!$C1005=\"Log value\",DataLog!J1005,\"\")","v":""},{"$f":"IF(DataLog!$C1005=\"Log value\",DataLog!K1005,\"\")","v":""},{"$f":"IF(DataLog!$C1005=\"Log value\",DataLog!L1005,\"\")","v":""},{"$f":"IF(DataLog!$C1005=\"Log value\",DataLog!M1005,\"\")","v":""},{"$f":"IF(DataLog!$C1005=\"Log value\",DataLog!N1005,\"\")","v":""},{"$f":"IF(DataLog!$C1005=\"Log value\",DataLog!O1005,\"\")","v":""},{"$f":"IF(DataLog!$C1005=\"Log value\",DataLog!P1005,\"\")","v":""},{"$f":"IF(DataLog!$C1005=\"Log value\",DataLog!Q1005,\"\")","v":""},{"$f":"IF(DataLog!$C1005=\"Log value\",DataLog!R1005,\"\")","v":""},{"$f":"IF(DataLog!$C1005=\"Log value\",DataLog!S1005,\"\")","v":""},{"$f":"IF(DataLog!$C1005=\"Log value\",DataLog!T1005,\"\")","v":""},{"$f":"IF(DataLog!$C1005=\"Log value\",DataLog!U1005,\"\")","v":""},{"$f":"IF(DataLog!$C1005=\"Log value\",DataLog!V1005,\"\")","v":""},{"$f":"IF(DataLog!$C1005=\"Log value\",DataLog!W1005,\"\")","v":""},{"$f":"IF(DataLog!$C1005=\"Log value\",DataLog!X1005,\"\")","v":""},{"$f":"IF(DataLog!$C1005=\"Log value\",DataLog!Y1005,\"\")","v":""},{"$f":"IF(DataLog!$C1005=\"Log value\",DataLog!Z1005,\"\")","v":""},{"$f":"IF(DataLog!$C1005=\"Log value\",DataLog!AA1005,\"\")","v":""},{"$f":"IF(DataLog!$C1005=\"Log value\",DataLog!AB1005,\"\")","v":""},{"$f":"IF(DataLog!$C1005=\"Log value\",DataLog!AC1005,\"\")","v":""},{"$f":"IF(DataLog!$C1005=\"Log value\",DataLog!AD1005,\"\")","v":""},{"$f":"IF(DataLog!$C1005=\"Log value\",DataLog!AE1005,\"\")","v":""},{"$f":"IF(DataLog!$C1005=\"Log value\",DataLog!AF1005,\"\")","v":""},{"$f":"IF(DataLog!$C1005=\"Log value\",DataLog!AG1005,\"\")","v":""},{"$f":"IF(DataLog!$C1005=\"Log value\",DataLog!AH1005,\"\")","v":""},{"$f":"IF(DataLog!$C1005=\"Log value\",DataLog!AI1005,\"\")","v":""},{"$f":"IF(DataLog!$C1005=\"Log value\",DataLog!AJ1005,\"\")","v":""},{"$f":"IF(DataLog!$C1005=\"Log value\",DataLog!AK1005,\"\")","v":""},{"$f":"IF(DataLog!$C1005=\"Log value\",DataLog!AL1005,\"\")","v":""},{"$f":"IF(DataLog!$C1005=\"Log value\",DataLog!AM1005,\"\")","v":""}]
[null,null,null,null,null,null,{"$f":"IF(DataLog!$C1008=\"Log value\",DataLog!D1008&\"_\"&TEXT(DataLog!B1008,\"åååå-mm-dd\"),\"\")","v":""},{"$f":"IF(DataLog!$C1008=\"Log value\",DataLog!E1008,\"\")","v":""},{"$f":"IF(DataLog!$C1008=\"Log value\",DataLog!F1008,\"\")","v":""},{"$f":"IF(DataLog!$C1008=\"Log value\",DataLog!G1008,\"\")","v":""},{"$f":"IF(DataLog!$C1008=\"Log value\",DataLog!H1008,\"\")","v":""},{"$f":"IF(DataLog!$C1008=\"Log value\",DataLog!I1008,\"\")","v":""},{"$f":"IF(DataLog!$C1008=\"Log value\",DataLog!J1008,\"\")","v":""},{"$f":"IF(DataLog!$C1008=\"Log value\",DataLog!K1008,\"\")","v":""},{"$f":"IF(DataLog!$C1008=\"Log value\",DataLog!L1008,\"\")","v":""},{"$f":"IF(DataLog!$C1008=\"Log value\",DataLog!M1008,\"\")","v":""},{"$f":"IF(DataLog!$C1008=\"Log value\",DataLog!N1008,\"\")","v":""},{"$f":"IF(DataLog!$C1008=\"Log value\",DataLog!O1008,\"\")","v":""},{"$f":"IF(DataLog!$C1008=\"Log value\",DataLog!P1008,\"\")","v":""},{"$f":"IF(DataLog!$C1008=\"Log value\",DataLog!Q1008,\"\")","v":""},{"$f":"IF(DataLog!$C1008=\"Log value\",DataLog!R1008,\"\")","v":""},{"$f":"IF(DataLog!$C1008=\"Log value\",DataLog!S1008,\"\")","v":""},{"$f":"IF(DataLog!$C1008=\"Log value\",DataLog!T1008,\"\")","v":""},{"$f":"IF(DataLog!$C1008=\"Log value\",DataLog!U1008,\"\")","v":""},{"$f":"IF(DataLog!$C1008=\"Log value\",DataLog!V1008,\"\")","v":""},{"$f":"IF(DataLog!$C1008=\"Log value\",DataLog!W1008,\"\")","v":""},{"$f":"IF(DataLog!$C1008=\"Log value\",DataLog!X1008,\"\")","v":""},{"$f":"IF(DataLog!$C1008=\"Log value\",DataLog!Y1008,\"\")","v":""},{"$f":"IF(DataLog!$C1008=\"Log value\",DataLog!Z1008,\"\")","v":""},{"$f":"IF(DataLog!$C1008=\"Log value\",DataLog!AA1008,\"\")","v":""},{"$f":"IF(DataLog!$C1008=\"Log value\",DataLog!AB1008,\"\")","v":""},{"$f":"IF(DataLog!$C1008=\"Log value\",DataLog!AC1008,\"\")","v":""},{"$f":"IF(DataLog!$C1008=\"Log value\",DataLog!AD1008,\"\")","v":""},{"$f":"IF(DataLog!$C1008=\"Log value\",DataLog!AE1008,\"\")","v":""},{"$f":"IF(DataLog!$C1008=\"Log value\",DataLog!AF1008,\"\")","v":""},{"$f":"IF(DataLog!$C1008=\"Log value\",DataLog!AG1008,\"\")","v":""},{"$f":"IF(DataLog!$C1008=\"Log value\",DataLog!AH1008,\"\")","v":""},{"$f":"IF(DataLog!$C1008=\"Log value\",DataLog!AI1008,\"\")","v":""},{"$f":"IF(DataLog!$C1008=\"Log value\",DataLog!AJ1008,\"\")","v":""},{"$f":"IF(DataLog!$C1008=\"Log value\",DataLog!AK1008,\"\")","v":""},{"$f":"IF(DataLog!$C1008=\"Log value\",DataLog!AL1008,\"\")","v":""},{"$f":"IF(DataLog!$C1008=\"Log value\",DataLog!AM1008,\"\")","v":""}]
[null,null,null,null,null,null,{"$f":"IF(DataLog!$C1011=\"Log value\",DataLog!D1011&\"_\"&TEXT(DataLog!B1011,\"åååå-mm-dd\"),\"\")","v":""},{"$f":"IF(DataLog!$C1011=\"Log value\",DataLog!E1011,\"\")","v":""},{"$f":"IF(DataLog!$C1011=\"Log value\",DataLog!F1011,\"\")","v":""},{"$f":"IF(DataLog!$C1011=\"Log value\",DataLog!G1011,\"\")","v":""},{"$f":"IF(DataLog!$C1011=\"Log value\",DataLog!H1011,\"\")","v":""},{"$f":"IF(DataLog!$C1011=\"Log value\",DataLog!I1011,\"\")","v":""},{"$f":"IF(DataLog!$C1011=\"Log value\",DataLog!J1011,\"\")","v":""},{"$f":"IF(DataLog!$C1011=\"Log value\",DataLog!K1011,\"\")","v":""},{"$f":"IF(DataLog!$C1011=\"Log value\",DataLog!L1011,\"\")","v":""},{"$f":"IF(DataLog!$C1011=\"Log value\",DataLog!M1011,\"\")","v":""},{"$f":"IF(DataLog!$C1011=\"Log value\",DataLog!N1011,\"\")","v":""},{"$f":"IF(DataLog!$C1011=\"Log value\",DataLog!O1011,\"\")","v":""},{"$f":"IF(DataLog!$C1011=\"Log value\",DataLog!P1011,\"\")","v":""},{"$f":"IF(DataLog!$C1011=\"Log value\",DataLog!Q1011,\"\")","v":""},{"$f":"IF(DataLog!$C1011=\"Log value\",DataLog!R1011,\"\")","v":""},{"$f":"IF(DataLog!$C1011=\"Log value\",DataLog!S1011,\"\")","v":""},{"$f":"IF(DataLog!$C1011=\"Log value\",DataLog!T1011,\"\")","v":""},{"$f":"IF(DataLog!$C1011=\"Log value\",DataLog!U1011,\"\")","v":""},{"$f":"IF(DataLog!$C1011=\"Log value\",DataLog!V1011,\"\")","v":""},{"$f":"IF(DataLog!$C1011=\"Log value\",DataLog!W1011,\"\")","v":""},{"$f":"IF(DataLog!$C1011=\"Log value\",DataLog!X1011,\"\")","v":""},{"$f":"IF(DataLog!$C1011=\"Log value\",DataLog!Y1011,\"\")","v":""},{"$f":"IF(DataLog!$C1011=\"Log value\",DataLog!Z1011,\"\")","v":""},{"$f":"IF(DataLog!$C1011=\"Log value\",DataLog!AA1011,\"\")","v":""},{"$f":"IF(DataLog!$C1011=\"Log value\",DataLog!AB1011,\"\")","v":""},{"$f":"IF(DataLog!$C1011=\"Log value\",DataLog!AC1011,\"\")","v":""},{"$f":"IF(DataLog!$C1011=\"Log value\",DataLog!AD1011,\"\")","v":""},{"$f":"IF(DataLog!$C1011=\"Log value\",DataLog!AE1011,\"\")","v":""},{"$f":"IF(DataLog!$C1011=\"Log value\",DataLog!AF1011,\"\")","v":""},{"$f":"IF(DataLog!$C1011=\"Log value\",DataLog!AG1011,\"\")","v":""},{"$f":"IF(DataLog!$C1011=\"Log value\",DataLog!AH1011,\"\")","v":""},{"$f":"IF(DataLog!$C1011=\"Log value\",DataLog!AI1011,\"\")","v":""},{"$f":"IF(DataLog!$C1011=\"Log value\",DataLog!AJ1011,\"\")","v":""},{"$f":"IF(DataLog!$C1011=\"Log value\",DataLog!AK1011,\"\")","v":""},{"$f":"IF(DataLog!$C1011=\"Log value\",DataLog!AL1011,\"\")","v":""},{"$f":"IF(DataLog!$C1011=\"Log value\",DataLog!AM1011,\"\")","v":""}]
[null,null,null,null,null,null,{"$f":"IF(DataLog!$C1013=\"Log value\",DataLog!D1013&\"_\"&TEXT(DataLog!B1013,\"åååå-mm-dd\"),\"\")","v":""},{"$f":"IF(DataLog!$C1013=\"Log value\",DataLog!E1013,\"\")","v":""},{"$f":"IF(DataLog!$C1013=\"Log value\",DataLog!F1013,\"\")","v":""},{"$f":"IF(DataLog!$C1013=\"Log value\",DataLog!G1013,\"\")","v":""},{"$f":"IF(DataLog!$C1013=\"Log value\",DataLog!H1013,\"\")","v":""},{"$f":"IF(DataLog!$C1013=\"Log value\",DataLog!I1013,\"\")","v":""},{"$f":"IF(DataLog!$C1013=\"Log value\",DataLog!J1013,\"\")","v":""},{"$f":"IF(DataLog!$C1013=\"Log value\",DataLog!K1013,\"\")","v":""},{"$f":"IF(DataLog!$C1013=\"Log value\",DataLog!L1013,\"\")","v":""},{"$f":"IF(DataLog!$C1013=\"Log value\",DataLog!M1013,\"\")","v":""},{"$f":"IF(DataLog!$C1013=\"Log value\",DataLog!N1013,\"\")","v":""},{"$f":"IF(DataLog!$C1013=\"Log value\",DataLog!O1013,\"\")","v":""},{"$f":"IF(DataLog!$C1013=\"Log value\",DataLog!P1013,\"\")","v":""},{"$f":"IF(DataLog!$C1013=\"Log value\",DataLog!Q1013,\"\")","v":""},{"$f":"IF(DataLog!$C1013=\"Log value\",DataLog!R1013,\"\")","v":""},{"$f":"IF(DataLog!$C1013=\"Log value\",DataLog!S1013,\"\")","v":""},{"$f":"IF(DataLog!$C1013=\"Log value\",DataLog!T1013,\"\")","v":""},{"$f":"IF(DataLog!$C1013=\"Log value\",DataLog!U1013,\"\")","v":""},{"$f":"IF(DataLog!$C1013=\"Log value\",DataLog!V1013,\"\")","v":""},{"$f":"IF(DataLog!$C1013=\"Log value\",DataLog!W1013,\"\")","v":""},{"$f":"IF(DataLog!$C1013=\"Log value\",DataLog!X1013,\"\")","v":""},{"$f":"IF(DataLog!$C1013=\"Log value\",DataLog!Y1013,\"\")","v":""},{"$f":"IF(DataLog!$C1013=\"Log value\",DataLog!Z1013,\"\")","v":""},{"$f":"IF(DataLog!$C1013=\"Log value\",DataLog!AA1013,\"\")","v":""},{"$f":"IF(DataLog!$C1013=\"Log value\",DataLog!AB1013,\"\")","v":""},{"$f":"IF(DataLog!$C1013=\"Log value\",DataLog!AC1013,\"\")","v":""},{"$f":"IF(DataLog!$C1013=\"Log value\",DataLog!AD1013,\"\")","v":""},{"$f":"IF(DataLog!$C1013=\"Log value\",DataLog!AE1013,\"\")","v":""},{"$f":"IF(DataLog!$C1013=\"Log value\",DataLog!AF1013,\"\")","v":""},{"$f":"IF(DataLog!$C1013=\"Log value\",DataLog!AG1013,\"\")","v":""},{"$f":"IF(DataLog!$C1013=\"Log value\",DataLog!AH1013,\"\")","v":""},{"$f":"IF(DataLog!$C1013=\"Log value\",DataLog!AI1013,\"\")","v":""},{"$f":"IF(DataLog!$C1013=\"Log value\",DataLog!AJ1013,\"\")","v":""},{"$f":"IF(DataLog!$C1013=\"Log value\",DataLog!AK1013,\"\")","v":""},{"$f":"IF(DataLog!$C1013=\"Log value\",DataLog!AL1013,\"\")","v":""},{"$f":"IF(DataLog!$C1013=\"Log value\",DataLog!AM1013,\"\")","v":""}]
[null,null,null,null,null,null,{"$f":"IF(DataLog!$C1014=\"Log value\",DataLog!D1014&\"_\"&TEXT(DataLog!B1014,\"åååå-mm-dd\"),\"\")","v":""},{"$f":"IF(DataLog!$C1014=\"Log value\",DataLog!E1014,\"\")","v":""},{"$f":"IF(DataLog!$C1014=\"Log value\",DataLog!F1014,\"\")","v":""},{"$f":"IF(DataLog!$C1014=\"Log value\",DataLog!G1014,\"\")","v":""},{"$f":"IF(DataLog!$C1014=\"Log value\",DataLog!H1014,\"\")","v":""},{"$f":"IF(DataLog!$C1014=\"Log value\",DataLog!I1014,\"\")","v":""},{"$f":"IF(DataLog!$C1014=\"Log value\",DataLog!J1014,\"\")","v":""},{"$f":"IF(DataLog!$C1014=\"Log value\",DataLog!K1014,\"\")","v":""},{"$f":"IF(DataLog!$C1014=\"Log value\",DataLog!L1014,\"\")","v":""},{"$f":"IF(DataLog!$C1014=\"Log value\",DataLog!M1014,\"\")","v":""},{"$f":"IF(DataLog!$C1014=\"Log value\",DataLog!N1014,\"\")","v":""},{"$f":"IF(DataLog!$C1014=\"Log value\",DataLog!O1014,\"\")","v":""},{"$f":"IF(DataLog!$C1014=\"Log value\",DataLog!P1014,\"\")","v":""},{"$f":"IF(DataLog!$C1014=\"Log value\",DataLog!Q1014,\"\")","v":""},{"$f":"IF(DataLog!$C1014=\"Log value\",DataLog!R1014,\"\")","v":""},{"$f":"IF(DataLog!$C1014=\"Log value\",DataLog!S1014,\"\")","v":""},{"$f":"IF(DataLog!$C1014=\"Log value\",DataLog!T1014,\"\")","v":""},{"$f":"IF(DataLog!$C1014=\"Log value\",DataLog!U1014,\"\")","v":""},{"$f":"IF(DataLog!$C1014=\"Log value\",DataLog!V1014,\"\")","v":""},{"$f":"IF(DataLog!$C1014=\"Log value\",DataLog!W1014,\"\")","v":""},{"$f":"IF(DataLog!$C1014=\"Log value\",DataLog!X1014,\"\")","v":""},{"$f":"IF(DataLog!$C1014=\"Log value\",DataLog!Y1014,\"\")","v":""},{"$f":"IF(DataLog!$C1014=\"Log value\",DataLog!Z1014,\"\")","v":""},{"$f":"IF(DataLog!$C1014=\"Log value\",DataLog!AA1014,\"\")","v":""},{"$f":"IF(DataLog!$C1014=\"Log value\",DataLog!AB1014,\"\")","v":""},{"$f":"IF(DataLog!$C1014=\"Log value\",DataLog!AC1014,\"\")","v":""},{"$f":"IF(DataLog!$C1014=\"Log value\",DataLog!AD1014,\"\")","v":""},{"$f":"IF(DataLog!$C1014=\"Log value\",DataLog!AE1014,\"\")","v":""},{"$f":"IF(DataLog!$C1014=\"Log value\",DataLog!AF1014,\"\")","v":""},{"$f":"IF(DataLog!$C1014=\"Log value\",DataLog!AG1014,\"\")","v":""},{"$f":"IF(DataLog!$C1014=\"Log value\",DataLog!AH1014,\"\")","v":""},{"$f":"IF(DataLog!$C1014=\"Log value\",DataLog!AI1014,\"\")","v":""},{"$f":"IF(DataLog!$C1014=\"Log value\",DataLog!AJ1014,\"\")","v":""},{"$f":"IF(DataLog!$C1014=\"Log value\",DataLog!AK1014,\"\")","v":""},{"$f":"IF(DataLog!$C1014=\"Log value\",DataLog!AL1014,\"\")","v":""},{"$f":"IF(DataLog!$C1014=\"Log value\",DataLog!AM1014,\"\")","v":""}]
[null,null,null,null,null,null,{"$f":"IF(DataLog!$C1016=\"Log value\",DataLog!D1016&\"_\"&TEXT(DataLog!B1016,\"åååå-mm-dd\"),\"\")","v":""},{"$f":"IF(DataLog!$C1016=\"Log value\",DataLog!E1016,\"\")","v":""},{"$f":"IF(DataLog!$C1016=\"Log value\",DataLog!F1016,\"\")","v":""},{"$f":"IF(DataLog!$C1016=\"Log value\",DataLog!G1016,\"\")","v":""},{"$f":"IF(DataLog!$C1016=\"Log value\",DataLog!H1016,\"\")","v":""},{"$f":"IF(DataLog!$C1016=\"Log value\",DataLog!I1016,\"\")","v":""},{"$f":"IF(DataLog!$C1016=\"Log value\",DataLog!J1016,\"\")","v":""},{"$f":"IF(DataLog!$C1016=\"Log value\",DataLog!K1016,\"\")","v":""},{"$f":"IF(DataLog!$C1016=\"Log value\",DataLog!L1016,\"\")","v":""},{"$f":"IF(DataLog!$C1016=\"Log value\",DataLog!M1016,\"\")","v":""},{"$f":"IF(DataLog!$C1016=\"Log value\",DataLog!N1016,\"\")","v":""},{"$f":"IF(DataLog!$C1016=\"Log value\",DataLog!O1016,\"\")","v":""},{"$f":"IF(DataLog!$C1016=\"Log value\",DataLog!P1016,\"\")","v":""},{"$f":"IF(DataLog!$C1016=\"Log value\",DataLog!Q1016,\"\")","v":""},{"$f":"IF(DataLog!$C1016=\"Log value\",DataLog!R1016,\"\")","v":""},{"$f":"IF(DataLog!$C1016=\"Log value\",DataLog!S1016,\"\")","v":""},{"$f":"IF(DataLog!$C1016=\"Log value\",DataLog!T1016,\"\")","v":""},{"$f":"IF(DataLog!$C1016=\"Log value\",DataLog!U1016,\"\")","v":""},{"$f":"IF(DataLog!$C1016=\"Log value\",DataLog!V1016,\"\")","v":""},{"$f":"IF(DataLog!$C1016=\"Log value\",DataLog!W1016,\"\")","v":""},{"$f":"IF(DataLog!$C1016=\"Log value\",DataLog!X1016,\"\")","v":""},{"$f":"IF(DataLog!$C1016=\"Log value\",DataLog!Y1016,\"\")","v":""},{"$f":"IF(DataLog!$C1016=\"Log value\",DataLog!Z1016,\"\")","v":""},{"$f":"IF(DataLog!$C1016=\"Log value\",DataLog!AA1016,\"\")","v":""},{"$f":"IF(DataLog!$C1016=\"Log value\",DataLog!AB1016,\"\")","v":""},{"$f":"IF(DataLog!$C1016=\"Log value\",DataLog!AC1016,\"\")","v":""},{"$f":"IF(DataLog!$C1016=\"Log value\",DataLog!AD1016,\"\")","v":""},{"$f":"IF(DataLog!$C1016=\"Log value\",DataLog!AE1016,\"\")","v":""},{"$f":"IF(DataLog!$C1016=\"Log value\",DataLog!AF1016,\"\")","v":""},{"$f":"IF(DataLog!$C1016=\"Log value\",DataLog!AG1016,\"\")","v":""},{"$f":"IF(DataLog!$C1016=\"Log value\",DataLog!AH1016,\"\")","v":""},{"$f":"IF(DataLog!$C1016=\"Log value\",DataLog!AI1016,\"\")","v":""},{"$f":"IF(DataLog!$C1016=\"Log value\",DataLog!AJ1016,\"\")","v":""},{"$f":"IF(DataLog!$C1016=\"Log value\",DataLog!AK1016,\"\")","v":""},{"$f":"IF(DataLog!$C1016=\"Log value\",DataLog!AL1016,\"\")","v":""},{"$f":"IF(DataLog!$C1016=\"Log value\",DataLog!AM1016,\"\")","v":""}]
[null,null,null,null,null,null,{"$f":"IF(DataLog!$C1019=\"Log value\",DataLog!D1019&\"_\"&TEXT(DataLog!B1019,\"åååå-mm-dd\"),\"\")","v":""},{"$f":"IF(DataLog!$C1019=\"Log value\",DataLog!E1019,\"\")","v":""},{"$f":"IF(DataLog!$C1019=\"Log value\",DataLog!F1019,\"\")","v":""},{"$f":"IF(DataLog!$C1019=\"Log value\",DataLog!G1019,\"\")","v":""},{"$f":"IF(DataLog!$C1019=\"Log value\",DataLog!H1019,\"\")","v":""},{"$f":"IF(DataLog!$C1019=\"Log value\",DataLog!I1019,\"\")","v":""},{"$f":"IF(DataLog!$C1019=\"Log value\",DataLog!J1019,\"\")","v":""},{"$f":"IF(DataLog!$C1019=\"Log value\",DataLog!K1019,\"\")","v":""},{"$f":"IF(DataLog!$C1019=\"Log value\",DataLog!L1019,\"\")","v":""},{"$f":"IF(DataLog!$C1019=\"Log value\",DataLog!M1019,\"\")","v":""},{"$f":"IF(DataLog!$C1019=\"Log value\",DataLog!N1019,\"\")","v":""},{"$f":"IF(DataLog!$C1019=\"Log value\",DataLog!O1019,\"\")","v":""},{"$f":"IF(DataLog!$C1019=\"Log value\",DataLog!P1019,\"\")","v":""},{"$f":"IF(DataLog!$C1019=\"Log value\",DataLog!Q1019,\"\")","v":""},{"$f":"IF(DataLog!$C1019=\"Log value\",DataLog!R1019,\"\")","v":""},{"$f":"IF(DataLog!$C1019=\"Log value\",DataLog!S1019,\"\")","v":""},{"$f":"IF(DataLog!$C1019=\"Log value\",DataLog!T1019,\"\")","v":""},{"$f":"IF(DataLog!$C1019=\"Log value\",DataLog!U1019,\"\")","v":""},{"$f":"IF(DataLog!$C1019=\"Log value\",DataLog!V1019,\"\")","v":""},{"$f":"IF(DataLog!$C1019=\"Log value\",DataLog!W1019,\"\")","v":""},{"$f":"IF(DataLog!$C1019=\"Log value\",DataLog!X1019,\"\")","v":""},{"$f":"IF(DataLog!$C1019=\"Log value\",DataLog!Y1019,\"\")","v":""},{"$f":"IF(DataLog!$C1019=\"Log value\",DataLog!Z1019,\"\")","v":""},{"$f":"IF(DataLog!$C1019=\"Log value\",DataLog!AA1019,\"\")","v":""},{"$f":"IF(DataLog!$C1019=\"Log value\",DataLog!AB1019,\"\")","v":""},{"$f":"IF(DataLog!$C1019=\"Log value\",DataLog!AC1019,\"\")","v":""},{"$f":"IF(DataLog!$C1019=\"Log value\",DataLog!AD1019,\"\")","v":""},{"$f":"IF(DataLog!$C1019=\"Log value\",DataLog!AE1019,\"\")","v":""},{"$f":"IF(DataLog!$C1019=\"Log value\",DataLog!AF1019,\"\")","v":""},{"$f":"IF(DataLog!$C1019=\"Log value\",DataLog!AG1019,\"\")","v":""},{"$f":"IF(DataLog!$C1019=\"Log value\",DataLog!AH1019,\"\")","v":""},{"$f":"IF(DataLog!$C1019=\"Log value\",DataLog!AI1019,\"\")","v":""},{"$f":"IF(DataLog!$C1019=\"Log value\",DataLog!AJ1019,\"\")","v":""},{"$f":"IF(DataLog!$C1019=\"Log value\",DataLog!AK1019,\"\")","v":""},{"$f":"IF(DataLog!$C1019=\"Log value\",DataLog!AL1019,\"\")","v":""},{"$f":"IF(DataLog!$C1019=\"Log value\",DataLog!AM1019,\"\")","v":""}]
[null,null,null,null,null,null,{"$f":"IF(DataLog!$C1022=\"Log value\",DataLog!D1022&\"_\"&TEXT(DataLog!B1022,\"åååå-mm-dd\"),\"\")","v":""},{"$f":"IF(DataLog!$C1022=\"Log value\",DataLog!E1022,\"\")","v":""},{"$f":"IF(DataLog!$C1022=\"Log value\",DataLog!F1022,\"\")","v":""},{"$f":"IF(DataLog!$C1022=\"Log value\",DataLog!G1022,\"\")","v":""},{"$f":"IF(DataLog!$C1022=\"Log value\",DataLog!H1022,\"\")","v":""},{"$f":"IF(DataLog!$C1022=\"Log value\",DataLog!I1022,\"\")","v":""},{"$f":"IF(DataLog!$C1022=\"Log value\",DataLog!J1022,\"\")","v":""},{"$f":"IF(DataLog!$C1022=\"Log value\",DataLog!K1022,\"\")","v":""},{"$f":"IF(DataLog!$C1022=\"Log value\",DataLog!L1022,\"\")","v":""},{"$f":"IF(DataLog!$C1022=\"Log value\",DataLog!M1022,\"\")","v":""},{"$f":"IF(DataLog!$C1022=\"Log value\",DataLog!N1022,\"\")","v":""},{"$f":"IF(DataLog!$C1022=\"Log value\",DataLog!O1022,\"\")","v":""},{"$f":"IF(DataLog!$C1022=\"Log value\",DataLog!P1022,\"\")","v":""},{"$f":"IF(DataLog!$C1022=\"Log value\",DataLog!Q1022,\"\")","v":""},{"$f":"IF(DataLog!$C1022=\"Log value\",DataLog!R1022,\"\")","v":""},{"$f":"IF(DataLog!$C1022=\"Log value\",DataLog!S1022,\"\")","v":""},{"$f":"IF(DataLog!$C1022=\"Log value\",DataLog!T1022,\"\")","v":""},{"$f":"IF(DataLog!$C1022=\"Log value\",DataLog!U1022,\"\")","v":""},{"$f":"IF(DataLog!$C1022=\"Log value\",DataLog!V1022,\"\")","v":""},{"$f":"IF(DataLog!$C1022=\"Log value\",DataLog!W1022,\"\")","v":""},{"$f":"IF(DataLog!$C1022=\"Log value\",DataLog!X1022,\"\")","v":""},{"$f":"IF(DataLog!$C1022=\"Log value\",DataLog!Y1022,\"\")","v":""},{"$f":"IF(DataLog!$C1022=\"Log value\",DataLog!Z1022,\"\")","v":""},{"$f":"IF(DataLog!$C1022=\"Log value\",DataLog!AA1022,\"\")","v":""},{"$f":"IF(DataLog!$C1022=\"Log value\",DataLog!AB1022,\"\")","v":""},{"$f":"IF(DataLog!$C1022=\"Log value\",DataLog!AC1022,\"\")","v":""},{"$f":"IF(DataLog!$C1022=\"Log value\",DataLog!AD1022,\"\")","v":""},{"$f":"IF(DataLog!$C1022=\"Log value\",DataLog!AE1022,\"\")","v":""},{"$f":"IF(DataLog!$C1022=\"Log value\",DataLog!AF1022,\"\")","v":""},{"$f":"IF(DataLog!$C1022=\"Log value\",DataLog!AG1022,\"\")","v":""},{"$f":"IF(DataLog!$C1022=\"Log value\",DataLog!AH1022,\"\")","v":""},{"$f":"IF(DataLog!$C1022=\"Log value\",DataLog!AI1022,\"\")","v":""},{"$f":"IF(DataLog!$C1022=\"Log value\",DataLog!AJ1022,\"\")","v":""},{"$f":"IF(DataLog!$C1022=\"Log value\",DataLog!AK1022,\"\")","v":""},{"$f":"IF(DataLog!$C1022=\"Log value\",DataLog!AL1022,\"\")","v":""},{"$f":"IF(DataLog!$C1022=\"Log value\",DataLog!AM1022,\"\")","v":""}]
[null,null,null,null,null,null,{"$f":"IF(DataLog!$C1023=\"Log value\",DataLog!D1023&\"_\"&TEXT(DataLog!B1023,\"åååå-mm-dd\"),\"\")","v":""},{"$f":"IF(DataLog!$C1023=\"Log value\",DataLog!E1023,\"\")","v":""},{"$f":"IF(DataLog!$C1023=\"Log value\",DataLog!F1023,\"\")","v":""},{"$f":"IF(DataLog!$C1023=\"Log value\",DataLog!G1023,\"\")","v":""},{"$f":"IF(DataLog!$C1023=\"Log value\",DataLog!H1023,\"\")","v":""},{"$f":"IF(DataLog!$C1023=\"Log value\",DataLog!I1023,\"\")","v":""},{"$f":"IF(DataLog!$C1023=\"Log value\",DataLog!J1023,\"\")","v":""},{"$f":"IF(DataLog!$C1023=\"Log value\",DataLog!K1023,\"\")","v":""},{"$f":"IF(DataLog!$C1023=\"Log value\",DataLog!L1023,\"\")","v":""},{"$f":"IF(DataLog!$C1023=\"Log value\",DataLog!M1023,\"\")","v":""},{"$f":"IF(DataLog!$C1023=\"Log value\",DataLog!N1023,\"\")","v":""},{"$f":"IF(DataLog!$C1023=\"Log value\",DataLog!O1023,\"\")","v":""},{"$f":"IF(DataLog!$C1023=\"Log value\",DataLog!P1023,\"\")","v":""},{"$f":"IF(DataLog!$C1023=\"Log value\",DataLog!Q1023,\"\")","v":""},{"$f":"IF(DataLog!$C1023=\"Log value\",DataLog!R1023,\"\")","v":""},{"$f":"IF(DataLog!$C1023=\"Log value\",DataLog!S1023,\"\")","v":""},{"$f":"IF(DataLog!$C1023=\"Log value\",DataLog!T1023,\"\")","v":""},{"$f":"IF(DataLog!$C1023=\"Log value\",DataLog!U1023,\"\")","v":""},{"$f":"IF(DataLog!$C1023=\"Log value\",DataLog!V1023,\"\")","v":""},{"$f":"IF(DataLog!$C1023=\"Log value\",DataLog!W1023,\"\")","v":""},{"$f":"IF(DataLog!$C1023=\"Log value\",DataLog!X1023,\"\")","v":""},{"$f":"IF(DataLog!$C1023=\"Log value\",DataLog!Y1023,\"\")","v":""},{"$f":"IF(DataLog!$C1023=\"Log value\",DataLog!Z1023,\"\")","v":""},{"$f":"IF(DataLog!$C1023=\"Log value\",DataLog!AA1023,\"\")","v":""},{"$f":"IF(DataLog!$C1023=\"Log value\",DataLog!AB1023,\"\")","v":""},{"$f":"IF(DataLog!$C1023=\"Log value\",DataLog!AC1023,\"\")","v":""},{"$f":"IF(DataLog!$C1023=\"Log value\",DataLog!AD1023,\"\")","v":""},{"$f":"IF(DataLog!$C1023=\"Log value\",DataLog!AE1023,\"\")","v":""},{"$f":"IF(DataLog!$C1023=\"Log value\",DataLog!AF1023,\"\")","v":""},{"$f":"IF(DataLog!$C1023=\"Log value\",DataLog!AG1023,\"\")","v":""},{"$f":"IF(DataLog!$C1023=\"Log value\",DataLog!AH1023,\"\")","v":""},{"$f":"IF(DataLog!$C1023=\"Log value\",DataLog!AI1023,\"\")","v":""},{"$f":"IF(DataLog!$C1023=\"Log value\",DataLog!AJ1023,\"\")","v":""},{"$f":"IF(DataLog!$C1023=\"Log value\",DataLog!AK1023,\"\")","v":""},{"$f":"IF(DataLog!$C1023=\"Log value\",DataLog!AL1023,\"\")","v":""},{"$f":"IF(DataLog!$C1023=\"Log value\",DataLog!AM1023,\"\")","v":""}]
[null,null,null,null,null,null,{"$f":"IF(DataLog!$C1026=\"Log value\",DataLog!D1026&\"_\"&TEXT(DataLog!B1026,\"åååå-mm-dd\"),\"\")","v":""},{"$f":"IF(DataLog!$C1026=\"Log value\",DataLog!E1026,\"\")","v":""},{"$f":"IF(DataLog!$C1026=\"Log value\",DataLog!F1026,\"\")","v":""},{"$f":"IF(DataLog!$C1026=\"Log value\",DataLog!G1026,\"\")","v":""},{"$f":"IF(DataLog!$C1026=\"Log value\",DataLog!H1026,\"\")","v":""},{"$f":"IF(DataLog!$C1026=\"Log value\",DataLog!I1026,\"\")","v":""},{"$f":"IF(DataLog!$C1026=\"Log value\",DataLog!J1026,\"\")","v":""},{"$f":"IF(DataLog!$C1026=\"Log value\",DataLog!K1026,\"\")","v":""},{"$f":"IF(DataLog!$C1026=\"Log value\",DataLog!L1026,\"\")","v":""},{"$f":"IF(DataLog!$C1026=\"Log value\",DataLog!M1026,\"\")","v":""},{"$f":"IF(DataLog!$C1026=\"Log value\",DataLog!N1026,\"\")","v":""},{"$f":"IF(DataLog!$C1026=\"Log value\",DataLog!O1026,\"\")","v":""},{"$f":"IF(DataLog!$C1026=\"Log value\",DataLog!P1026,\"\")","v":""},{"$f":"IF(DataLog!$C1026=\"Log value\",DataLog!Q1026,\"\")","v":""},{"$f":"IF(DataLog!$C1026=\"Log value\",DataLog!R1026,\"\")","v":""},{"$f":"IF(DataLog!$C1026=\"Log value\",DataLog!S1026,\"\")","v":""},{"$f":"IF(DataLog!$C1026=\"Log value\",DataLog!T1026,\"\")","v":""},{"$f":"IF(DataLog!$C1026=\"Log value\",DataLog!U1026,\"\")","v":""},{"$f":"IF(DataLog!$C1026=\"Log value\",DataLog!V1026,\"\")","v":""},{"$f":"IF(DataLog!$C1026=\"Log value\",DataLog!W1026,\"\")","v":""},{"$f":"IF(DataLog!$C1026=\"Log value\",DataLog!X1026,\"\")","v":""},{"$f":"IF(DataLog!$C1026=\"Log value\",DataLog!Y1026,\"\")","v":""},{"$f":"IF(DataLog!$C1026=\"Log value\",DataLog!Z1026,\"\")","v":""},{"$f":"IF(DataLog!$C1026=\"Log value\",DataLog!AA1026,\"\")","v":""},{"$f":"IF(DataLog!$C1026=\"Log value\",DataLog!AB1026,\"\")","v":""},{"$f":"IF(DataLog!$C1026=\"Log value\",DataLog!AC1026,\"\")","v":""},{"$f":"IF(DataLog!$C1026=\"Log value\",DataLog!AD1026,\"\")","v":""},{"$f":"IF(DataLog!$C1026=\"Log value\",DataLog!AE1026,\"\")","v":""},{"$f":"IF(DataLog!$C1026=\"Log value\",DataLog!AF1026,\"\")","v":""},{"$f":"IF(DataLog!$C1026=\"Log value\",DataLog!AG1026,\"\")","v":""},{"$f":"IF(DataLog!$C1026=\"Log value\",DataLog!AH1026,\"\")","v":""},{"$f":"IF(DataLog!$C1026=\"Log value\",DataLog!AI1026,\"\")","v":""},{"$f":"IF(DataLog!$C1026=\"Log value\",DataLog!AJ1026,\"\")","v":""},{"$f":"IF(DataLog!$C1026=\"Log value\",DataLog!AK1026,\"\")","v":""},{"$f":"IF(DataLog!$C1026=\"Log value\",DataLog!AL1026,\"\")","v":""},{"$f":"IF(DataLog!$C1026=\"Log value\",DataLog!AM1026,\"\")","v":""}]
[null,null,null,null,null,null,{"$f":"IF(DataLog!$C1028=\"Log value\",DataLog!D1028&\"_\"&TEXT(DataLog!B1028,\"åååå-mm-dd\"),\"\")","v":""},{"$f":"IF(DataLog!$C1028=\"Log value\",DataLog!E1028,\"\")","v":""},{"$f":"IF(DataLog!$C1028=\"Log value\",DataLog!F1028,\"\")","v":""},{"$f":"IF(DataLog!$C1028=\"Log value\",DataLog!G1028,\"\")","v":""},{"$f":"IF(DataLog!$C1028=\"Log value\",DataLog!H1028,\"\")","v":""},{"$f":"IF(DataLog!$C1028=\"Log value\",DataLog!I1028,\"\")","v":""},{"$f":"IF(DataLog!$C1028=\"Log value\",DataLog!J1028,\"\")","v":""},{"$f":"IF(DataLog!$C1028=\"Log value\",DataLog!K1028,\"\")","v":""},{"$f":"IF(DataLog!$C1028=\"Log value\",DataLog!L1028,\"\")","v":""},{"$f":"IF(DataLog!$C1028=\"Log value\",DataLog!M1028,\"\")","v":""},{"$f":"IF(DataLog!$C1028=\"Log value\",DataLog!N1028,\"\")","v":""},{"$f":"IF(DataLog!$C1028=\"Log value\",DataLog!O1028,\"\")","v":""},{"$f":"IF(DataLog!$C1028=\"Log value\",DataLog!P1028,\"\")","v":""},{"$f":"IF(DataLog!$C1028=\"Log value\",DataLog!Q1028,\"\")","v":""},{"$f":"IF(DataLog!$C1028=\"Log value\",DataLog!R1028,\"\")","v":""},{"$f":"IF(DataLog!$C1028=\"Log value\",DataLog!S1028,\"\")","v":""},{"$f":"IF(DataLog!$C1028=\"Log value\",DataLog!T1028,\"\")","v":""},{"$f":"IF(DataLog!$C1028=\"Log value\",DataLog!U1028,\"\")","v":""},{"$f":"IF(DataLog!$C1028=\"Log value\",DataLog!V1028,\"\")","v":""},{"$f":"IF(DataLog!$C1028=\"Log value\",DataLog!W1028,\"\")","v":""},{"$f":"IF(DataLog!$C1028=\"Log value\",DataLog!X1028,\"\")","v":""},{"$f":"IF(DataLog!$C1028=\"Log value\",DataLog!Y1028,\"\")","v":""},{"$f":"IF(DataLog!$C1028=\"Log value\",DataLog!Z1028,\"\")","v":""},{"$f":"IF(DataLog!$C1028=\"Log value\",DataLog!AA1028,\"\")","v":""},{"$f":"IF(DataLog!$C1028=\"Log value\",DataLog!AB1028,\"\")","v":""},{"$f":"IF(DataLog!$C1028=\"Log value\",DataLog!AC1028,\"\")","v":""},{"$f":"IF(DataLog!$C1028=\"Log value\",DataLog!AD1028,\"\")","v":""},{"$f":"IF(DataLog!$C1028=\"Log value\",DataLog!AE1028,\"\")","v":""},{"$f":"IF(DataLog!$C1028=\"Log value\",DataLog!AF1028,\"\")","v":""},{"$f":"IF(DataLog!$C1028=\"Log value\",DataLog!AG1028,\"\")","v":""},{"$f":"IF(DataLog!$C1028=\"Log value\",DataLog!AH1028,\"\")","v":""},{"$f":"IF(DataLog!$C1028=\"Log value\",DataLog!AI1028,\"\")","v":""},{"$f":"IF(DataLog!$C1028=\"Log value\",DataLog!AJ1028,\"\")","v":""},{"$f":"IF(DataLog!$C1028=\"Log value\",DataLog!AK1028,\"\")","v":""},{"$f":"IF(DataLog!$C1028=\"Log value\",DataLog!AL1028,\"\")","v":""},{"$f":"IF(DataLog!$C1028=\"Log value\",DataLog!AM1028,\"\")","v":""}]
[null,null,null,null,null,null,{"$f":"IF(DataLog!$C1031=\"Log value\",DataLog!D1031&\"_\"&TEXT(DataLog!B1031,\"åååå-mm-dd\"),\"\")","v":""},{"$f":"IF(DataLog!$C1031=\"Log value\",DataLog!E1031,\"\")","v":""},{"$f":"IF(DataLog!$C1031=\"Log value\",DataLog!F1031,\"\")","v":""},{"$f":"IF(DataLog!$C1031=\"Log value\",DataLog!G1031,\"\")","v":""},{"$f":"IF(DataLog!$C1031=\"Log value\",DataLog!H1031,\"\")","v":""},{"$f":"IF(DataLog!$C1031=\"Log value\",DataLog!I1031,\"\")","v":""},{"$f":"IF(DataLog!$C1031=\"Log value\",DataLog!J1031,\"\")","v":""},{"$f":"IF(DataLog!$C1031=\"Log value\",DataLog!K1031,\"\")","v":""},{"$f":"IF(DataLog!$C1031=\"Log value\",DataLog!L1031,\"\")","v":""},{"$f":"IF(DataLog!$C1031=\"Log value\",DataLog!M1031,\"\")","v":""},{"$f":"IF(DataLog!$C1031=\"Log value\",DataLog!N1031,\"\")","v":""},{"$f":"IF(DataLog!$C1031=\"Log value\",DataLog!O1031,\"\")","v":""},{"$f":"IF(DataLog!$C1031=\"Log value\",DataLog!P1031,\"\")","v":""},{"$f":"IF(DataLog!$C1031=\"Log value\",DataLog!Q1031,\"\")","v":""},{"$f":"IF(DataLog!$C1031=\"Log value\",DataLog!R1031,\"\")","v":""},{"$f":"IF(DataLog!$C1031=\"Log value\",DataLog!S1031,\"\")","v":""},{"$f":"IF(DataLog!$C1031=\"Log value\",DataLog!T1031,\"\")","v":""},{"$f":"IF(DataLog!$C1031=\"Log value\",DataLog!U1031,\"\")","v":""},{"$f":"IF(DataLog!$C1031=\"Log value\",DataLog!V1031,\"\")","v":""},{"$f":"IF(DataLog!$C1031=\"Log value\",DataLog!W1031,\"\")","v":""},{"$f":"IF(DataLog!$C1031=\"Log value\",DataLog!X1031,\"\")","v":""},{"$f":"IF(DataLog!$C1031=\"Log value\",DataLog!Y1031,\"\")","v":""},{"$f":"IF(DataLog!$C1031=\"Log value\",DataLog!Z1031,\"\")","v":""},{"$f":"IF(DataLog!$C1031=\"Log value\",DataLog!AA1031,\"\")","v":""},{"$f":"IF(DataLog!$C1031=\"Log value\",DataLog!AB1031,\"\")","v":""},{"$f":"IF(DataLog!$C1031=\"Log value\",DataLog!AC1031,\"\")","v":""},{"$f":"IF(DataLog!$C1031=\"Log value\",DataLog!AD1031,\"\")","v":""},{"$f":"IF(DataLog!$C1031=\"Log value\",DataLog!AE1031,\"\")","v":""},{"$f":"IF(DataLog!$C1031=\"Log value\",DataLog!AF1031,\"\")","v":""},{"$f":"IF(DataLog!$C1031=\"Log value\",DataLog!AG1031,\"\")","v":""},{"$f":"IF(DataLog!$C1031=\"Log value\",DataLog!AH1031,\"\")","v":""},{"$f":"IF(DataLog!$C1031=\"Log value\",DataLog!AI1031,\"\")","v":""},{"$f":"IF(DataLog!$C1031=\"Log value\",DataLog!AJ1031,\"\")","v":""},{"$f":"IF(DataLog!$C1031=\"Log value\",DataLog!AK1031,\"\")","v":""},{"$f":"IF(DataLog!$C1031=\"Log value\",DataLog!AL1031,\"\")","v":""},{"$f":"IF(DataLog!$C1031=\"Log value\",DataLog!AM1031,\"\")","v":""}]
[null,null,null,null,null,null,{"$f":"IF(DataLog!$C1032=\"Log value\",DataLog!D1032&\"_\"&TEXT(DataLog!B1032,\"åååå-mm-dd\"),\"\")","v":""},{"$f":"IF(DataLog!$C1032=\"Log value\",DataLog!E1032,\"\")","v":""},{"$f":"IF(DataLog!$C1032=\"Log value\",DataLog!F1032,\"\")","v":""},{"$f":"IF(DataLog!$C1032=\"Log value\",DataLog!G1032,\"\")","v":""},{"$f":"IF(DataLog!$C1032=\"Log value\",DataLog!H1032,\"\")","v":""},{"$f":"IF(DataLog!$C1032=\"Log value\",DataLog!I1032,\"\")","v":""},{"$f":"IF(DataLog!$C1032=\"Log value\",DataLog!J1032,\"\")","v":""},{"$f":"IF(DataLog!$C1032=\"Log value\",DataLog!K1032,\"\")","v":""},{"$f":"IF(DataLog!$C1032=\"Log value\",DataLog!L1032,\"\")","v":""},{"$f":"IF(DataLog!$C1032=\"Log value\",DataLog!M1032,\"\")","v":""},{"$f":"IF(DataLog!$C1032=\"Log value\",DataLog!N1032,\"\")","v":""},{"$f":"IF(DataLog!$C1032=\"Log value\",DataLog!O1032,\"\")","v":""},{"$f":"IF(DataLog!$C1032=\"Log value\",DataLog!P1032,\"\")","v":""},{"$f":"IF(DataLog!$C1032=\"Log value\",DataLog!Q1032,\"\")","v":""},{"$f":"IF(DataLog!$C1032=\"Log value\",DataLog!R1032,\"\")","v":""},{"$f":"IF(DataLog!$C1032=\"Log value\",DataLog!S1032,\"\")","v":""},{"$f":"IF(DataLog!$C1032=\"Log value\",DataLog!T1032,\"\")","v":""},{"$f":"IF(DataLog!$C1032=\"Log value\",DataLog!U1032,\"\")","v":""},{"$f":"IF(DataLog!$C1032=\"Log value\",DataLog!V1032,\"\")","v":""},{"$f":"IF(DataLog!$C1032=\"Log value\",DataLog!W1032,\"\")","v":""},{"$f":"IF(DataLog!$C1032=\"Log value\",DataLog!X1032,\"\")","v":""},{"$f":"IF(DataLog!$C1032=\"Log value\",DataLog!Y1032,\"\")","v":""},{"$f":"IF(DataLog!$C1032=\"Log value\",DataLog!Z1032,\"\")","v":""},{"$f":"IF(DataLog!$C1032=\"Log value\",DataLog!AA1032,\"\")","v":""},{"$f":"IF(DataLog!$C1032=\"Log value\",DataLog!AB1032,\"\")","v":""},{"$f":"IF(DataLog!$C1032=\"Log value\",DataLog!AC1032,\"\")","v":""},{"$f":"IF(DataLog!$C1032=\"Log value\",DataLog!AD1032,\"\")","v":""},{"$f":"IF(DataLog!$C1032=\"Log value\",DataLog!AE1032,\"\")","v":""},{"$f":"IF(DataLog!$C1032=\"Log value\",DataLog!AF1032,\"\")","v":""},{"$f":"IF(DataLog!$C1032=\"Log value\",DataLog!AG1032,\"\")","v":""},{"$f":"IF(DataLog!$C1032=\"Log value\",DataLog!AH1032,\"\")","v":""},{"$f":"IF(DataLog!$C1032=\"Log value\",DataLog!AI1032,\"\")","v":""},{"$f":"IF(DataLog!$C1032=\"Log value\",DataLog!AJ1032,\"\")","v":""},{"$f":"IF(DataLog!$C1032=\"Log value\",DataLog!AK1032,\"\")","v":""},{"$f":"IF(DataLog!$C1032=\"Log value\",DataLog!AL1032,\"\")","v":""},{"$f":"IF(DataLog!$C1032=\"Log value\",DataLog!AM1032,\"\")","v":""}]
[null,null,null,null,null,null,{"$f":"IF(DataLog!$C1034=\"Log value\",DataLog!D1034&\"_\"&TEXT(DataLog!B1034,\"åååå-mm-dd\"),\"\")","v":""},{"$f":"IF(DataLog!$C1034=\"Log value\",DataLog!E1034,\"\")","v":""},{"$f":"IF(DataLog!$C1034=\"Log value\",DataLog!F1034,\"\")","v":""},{"$f":"IF(DataLog!$C1034=\"Log value\",DataLog!G1034,\"\")","v":""},{"$f":"IF(DataLog!$C1034=\"Log value\",DataLog!H1034,\"\")","v":""},{"$f":"IF(DataLog!$C1034=\"Log value\",DataLog!I1034,\"\")","v":""},{"$f":"IF(DataLog!$C1034=\"Log value\",DataLog!J1034,\"\")","v":""},{"$f":"IF(DataLog!$C1034=\"Log value\",DataLog!K1034,\"\")","v":""},{"$f":"IF(DataLog!$C1034=\"Log value\",DataLog!L1034,\"\")","v":""},{"$f":"IF(DataLog!$C1034=\"Log value\",DataLog!M1034,\"\")","v":""},{"$f":"IF(DataLog!$C1034=\"Log value\",DataLog!N1034,\"\")","v":""},{"$f":"IF(DataLog!$C1034=\"Log value\",DataLog!O1034,\"\")","v":""},{"$f":"IF(DataLog!$C1034=\"Log value\",DataLog!P1034,\"\")","v":""},{"$f":"IF(DataLog!$C1034=\"Log value\",DataLog!Q1034,\"\")","v":""},{"$f":"IF(DataLog!$C1034=\"Log value\",DataLog!R1034,\"\")","v":""},{"$f":"IF(DataLog!$C1034=\"Log value\",DataLog!S1034,\"\")","v":""},{"$f":"IF(DataLog!$C1034=\"Log value\",DataLog!T1034,\"\")","v":""},{"$f":"IF(DataLog!$C1034=\"Log value\",DataLog!U1034,\"\")","v":""},{"$f":"IF(DataLog!$C1034=\"Log value\",DataLog!V1034,\"\")","v":""},{"$f":"IF(DataLog!$C1034=\"Log value\",DataLog!W1034,\"\")","v":""},{"$f":"IF(DataLog!$C1034=\"Log value\",DataLog!X1034,\"\")","v":""},{"$f":"IF(DataLog!$C1034=\"Log value\",DataLog!Y1034,\"\")","v":""},{"$f":"IF(DataLog!$C1034=\"Log value\",DataLog!Z1034,\"\")","v":""},{"$f":"IF(DataLog!$C1034=\"Log value\",DataLog!AA1034,\"\")","v":""},{"$f":"IF(DataLog!$C1034=\"Log value\",DataLog!AB1034,\"\")","v":""},{"$f":"IF(DataLog!$C1034=\"Log value\",DataLog!AC1034,\"\")","v":""},{"$f":"IF(DataLog!$C1034=\"Log value\",DataLog!AD1034,\"\")","v":""},{"$f":"IF(DataLog!$C1034=\"Log value\",DataLog!AE1034,\"\")","v":""},{"$f":"IF(DataLog!$C1034=\"Log value\",DataLog!AF1034,\"\")","v":""},{"$f":"IF(DataLog!$C1034=\"Log value\",DataLog!AG1034,\"\")","v":""},{"$f":"IF(DataLog!$C1034=\"Log value\",DataLog!AH1034,\"\")","v":""},{"$f":"IF(DataLog!$C1034=\"Log value\",DataLog!AI1034,\"\")","v":""},{"$f":"IF(DataLog!$C1034=\"Log value\",DataLog!AJ1034,\"\")","v":""},{"$f":"IF(DataLog!$C1034=\"Log value\",DataLog!AK1034,\"\")","v":""},{"$f":"IF(DataLog!$C1034=\"Log value\",DataLog!AL1034,\"\")","v":""},{"$f":"IF(DataLog!$C1034=\"Log value\",DataLog!AM1034,\"\")","v":""}]
[null,null,null,null,null,null,{"$f":"IF(DataLog!$C1037=\"Log value\",DataLog!D1037&\"_\"&TEXT(DataLog!B1037,\"åååå-mm-dd\"),\"\")","v":""},{"$f":"IF(DataLog!$C1037=\"Log value\",DataLog!E1037,\"\")","v":""},{"$f":"IF(DataLog!$C1037=\"Log value\",DataLog!F1037,\"\")","v":""},{"$f":"IF(DataLog!$C1037=\"Log value\",DataLog!G1037,\"\")","v":""},{"$f":"IF(DataLog!$C1037=\"Log value\",DataLog!H1037,\"\")","v":""},{"$f":"IF(DataLog!$C1037=\"Log value\",DataLog!I1037,\"\")","v":""},{"$f":"IF(DataLog!$C1037=\"Log value\",DataLog!J1037,\"\")","v":""},{"$f":"IF(DataLog!$C1037=\"Log value\",DataLog!K1037,\"\")","v":""},{"$f":"IF(DataLog!$C1037=\"Log value\",DataLog!L1037,\"\")","v":""},{"$f":"IF(DataLog!$C1037=\"Log value\",DataLog!M1037,\"\")","v":""},{"$f":"IF(DataLog!$C1037=\"Log value\",DataLog!N1037,\"\")","v":""},{"$f":"IF(DataLog!$C1037=\"Log value\",DataLog!O1037,\"\")","v":""},{"$f":"IF(DataLog!$C1037=\"Log value\",DataLog!P1037,\"\")","v":""},{"$f":"IF(DataLog!$C1037=\"Log value\",DataLog!Q1037,\"\")","v":""},{"$f":"IF(DataLog!$C1037=\"Log value\",DataLog!R1037,\"\")","v":""},{"$f":"IF(DataLog!$C1037=\"Log value\",DataLog!S1037,\"\")","v":""},{"$f":"IF(DataLog!$C1037=\"Log value\",DataLog!T1037,\"\")","v":""},{"$f":"IF(DataLog!$C1037=\"Log value\",DataLog!U1037,\"\")","v":""},{"$f":"IF(DataLog!$C1037=\"Log value\",DataLog!V1037,\"\")","v":""},{"$f":"IF(DataLog!$C1037=\"Log value\",DataLog!W1037,\"\")","v":""},{"$f":"IF(DataLog!$C1037=\"Log value\",DataLog!X1037,\"\")","v":""},{"$f":"IF(DataLog!$C1037=\"Log value\",DataLog!Y1037,\"\")","v":""},{"$f":"IF(DataLog!$C1037=\"Log value\",DataLog!Z1037,\"\")","v":""},{"$f":"IF(DataLog!$C1037=\"Log value\",DataLog!AA1037,\"\")","v":""},{"$f":"IF(DataLog!$C1037=\"Log value\",DataLog!AB1037,\"\")","v":""},{"$f":"IF(DataLog!$C1037=\"Log value\",DataLog!AC1037,\"\")","v":""},{"$f":"IF(DataLog!$C1037=\"Log value\",DataLog!AD1037,\"\")","v":""},{"$f":"IF(DataLog!$C1037=\"Log value\",DataLog!AE1037,\"\")","v":""},{"$f":"IF(DataLog!$C1037=\"Log value\",DataLog!AF1037,\"\")","v":""},{"$f":"IF(DataLog!$C1037=\"Log value\",DataLog!AG1037,\"\")","v":""},{"$f":"IF(DataLog!$C1037=\"Log value\",DataLog!AH1037,\"\")","v":""},{"$f":"IF(DataLog!$C1037=\"Log value\",DataLog!AI1037,\"\")","v":""},{"$f":"IF(DataLog!$C1037=\"Log value\",DataLog!AJ1037,\"\")","v":""},{"$f":"IF(DataLog!$C1037=\"Log value\",DataLog!AK1037,\"\")","v":""},{"$f":"IF(DataLog!$C1037=\"Log value\",DataLog!AL1037,\"\")","v":""},{"$f":"IF(DataLog!$C1037=\"Log value\",DataLog!AM1037,\"\")","v":""}]
[null,null,null,null,null,null,{"$f":"IF(DataLog!$C1040=\"Log value\",DataLog!D1040&\"_\"&TEXT(DataLog!B1040,\"åååå-mm-dd\"),\"\")","v":""},{"$f":"IF(DataLog!$C1040=\"Log value\",DataLog!E1040,\"\")","v":""},{"$f":"IF(DataLog!$C1040=\"Log value\",DataLog!F1040,\"\")","v":""},{"$f":"IF(DataLog!$C1040=\"Log value\",DataLog!G1040,\"\")","v":""},{"$f":"IF(DataLog!$C1040=\"Log value\",DataLog!H1040,\"\")","v":""},{"$f":"IF(DataLog!$C1040=\"Log value\",DataLog!I1040,\"\")","v":""},{"$f":"IF(DataLog!$C1040=\"Log value\",DataLog!J1040,\"\")","v":""},{"$f":"IF(DataLog!$C1040=\"Log value\",DataLog!K1040,\"\")","v":""},{"$f":"IF(DataLog!$C1040=\"Log value\",DataLog!L1040,\"\")","v":""},{"$f":"IF(DataLog!$C1040=\"Log value\",DataLog!M1040,\"\")","v":""},{"$f":"IF(DataLog!$C1040=\"Log value\",DataLog!N1040,\"\")","v":""},{"$f":"IF(DataLog!$C1040=\"Log value\",DataLog!O1040,\"\")","v":""},{"$f":"IF(DataLog!$C1040=\"Log value\",DataLog!P1040,\"\")","v":""},{"$f":"IF(DataLog!$C1040=\"Log value\",DataLog!Q1040,\"\")","v":""},{"$f":"IF(DataLog!$C1040=\"Log value\",DataLog!R1040,\"\")","v":""},{"$f":"IF(DataLog!$C1040=\"Log value\",DataLog!S1040,\"\")","v":""},{"$f":"IF(DataLog!$C1040=\"Log value\",DataLog!T1040,\"\")","v":""},{"$f":"IF(DataLog!$C1040=\"Log value\",DataLog!U1040,\"\")","v":""},{"$f":"IF(DataLog!$C1040=\"Log value\",DataLog!V1040,\"\")","v":""},{"$f":"IF(DataLog!$C1040=\"Log value\",DataLog!W1040,\"\")","v":""},{"$f":"IF(DataLog!$C1040=\"Log value\",DataLog!X1040,\"\")","v":""},{"$f":"IF(DataLog!$C1040=\"Log value\",DataLog!Y1040,\"\")","v":""},{"$f":"IF(DataLog!$C1040=\"Log value\",DataLog!Z1040,\"\")","v":""},{"$f":"IF(DataLog!$C1040=\"Log value\",DataLog!AA1040,\"\")","v":""},{"$f":"IF(DataLog!$C1040=\"Log value\",DataLog!AB1040,\"\")","v":""},{"$f":"IF(DataLog!$C1040=\"Log value\",DataLog!AC1040,\"\")","v":""},{"$f":"IF(DataLog!$C1040=\"Log value\",DataLog!AD1040,\"\")","v":""},{"$f":"IF(DataLog!$C1040=\"Log value\",DataLog!AE1040,\"\")","v":""},{"$f":"IF(DataLog!$C1040=\"Log value\",DataLog!AF1040,\"\")","v":""},{"$f":"IF(DataLog!$C1040=\"Log value\",DataLog!AG1040,\"\")","v":""},{"$f":"IF(DataLog!$C1040=\"Log value\",DataLog!AH1040,\"\")","v":""},{"$f":"IF(DataLog!$C1040=\"Log value\",DataLog!AI1040,\"\")","v":""},{"$f":"IF(DataLog!$C1040=\"Log value\",DataLog!AJ1040,\"\")","v":""},{"$f":"IF(DataLog!$C1040=\"Log value\",DataLog!AK1040,\"\")","v":""},{"$f":"IF(DataLog!$C1040=\"Log value\",DataLog!AL1040,\"\")","v":""},{"$f":"IF(DataLog!$C1040=\"Log value\",DataLog!AM1040,\"\")","v":""}]
[null,null,null,null,null,null,{"$f":"IF(DataLog!$C1041=\"Log value\",DataLog!D1041&\"_\"&TEXT(DataLog!B1041,\"åååå-mm-dd\"),\"\")","v":""},{"$f":"IF(DataLog!$C1041=\"Log value\",DataLog!E1041,\"\")","v":""},{"$f":"IF(DataLog!$C1041=\"Log value\",DataLog!F1041,\"\")","v":""},{"$f":"IF(DataLog!$C1041=\"Log value\",DataLog!G1041,\"\")","v":""},{"$f":"IF(DataLog!$C1041=\"Log value\",DataLog!H1041,\"\")","v":""},{"$f":"IF(DataLog!$C1041=\"Log value\",DataLog!I1041,\"\")","v":""},{"$f":"IF(DataLog!$C1041=\"Log value\",DataLog!J1041,\"\")","v":""},{"$f":"IF(DataLog!$C1041=\"Log value\",DataLog!K1041,\"\")","v":""},{"$f":"IF(DataLog!$C1041=\"Log value\",DataLog!L1041,\"\")","v":""},{"$f":"IF(DataLog!$C1041=\"Log value\",DataLog!M1041,\"\")","v":""},{"$f":"IF(DataLog!$C1041=\"Log value\",DataLog!N1041,\"\")","v":""},{"$f":"IF(DataLog!$C1041=\"Log value\",DataLog!O1041,\"\")","v":""},{"$f":"IF(DataLog!$C1041=\"Log value\",DataLog!P1041,\"\")","v":""},{"$f":"IF(DataLog!$C1041=\"Log value\",DataLog!Q1041,\"\")","v":""},{"$f":"IF(DataLog!$C1041=\"Log value\",DataLog!R1041,\"\")","v":""},{"$f":"IF(DataLog!$C1041=\"Log value\",DataLog!S1041,\"\")","v":""},{"$f":"IF(DataLog!$C1041=\"Log value\",DataLog!T1041,\"\")","v":""},{"$f":"IF(DataLog!$C1041=\"Log value\",DataLog!U1041,\"\")","v":""},{"$f":"IF(DataLog!$C1041=\"Log value\",DataLog!V1041,\"\")","v":""},{"$f":"IF(DataLog!$C1041=\"Log value\",DataLog!W1041,\"\")","v":""},{"$f":"IF(DataLog!$C1041=\"Log value\",DataLog!X1041,\"\")","v":""},{"$f":"IF(DataLog!$C1041=\"Log value\",DataLog!Y1041,\"\")","v":""},{"$f":"IF(DataLog!$C1041=\"Log value\",DataLog!Z1041,\"\")","v":""},{"$f":"IF(DataLog!$C1041=\"Log value\",DataLog!AA1041,\"\")","v":""},{"$f":"IF(DataLog!$C1041=\"Log value\",DataLog!AB1041,\"\")","v":""},{"$f":"IF(DataLog!$C1041=\"Log value\",DataLog!AC1041,\"\")","v":""},{"$f":"IF(DataLog!$C1041=\"Log value\",DataLog!AD1041,\"\")","v":""},{"$f":"IF(DataLog!$C1041=\"Log value\",DataLog!AE1041,\"\")","v":""},{"$f":"IF(DataLog!$C1041=\"Log value\",DataLog!AF1041,\"\")","v":""},{"$f":"IF(DataLog!$C1041=\"Log value\",DataLog!AG1041,\"\")","v":""},{"$f":"IF(DataLog!$C1041=\"Log value\",DataLog!AH1041,\"\")","v":""},{"$f":"IF(DataLog!$C1041=\"Log value\",DataLog!AI1041,\"\")","v":""},{"$f":"IF(DataLog!$C1041=\"Log value\",DataLog!AJ1041,\"\")","v":""},{"$f":"IF(DataLog!$C1041=\"Log value\",DataLog!AK1041,\"\")","v":""},{"$f":"IF(DataLog!$C1041=\"Log value\",DataLog!AL1041,\"\")","v":""},{"$f":"IF(DataLog!$C1041=\"Log value\",DataLog!AM1041,\"\")","v":""}]
[null,null,null,null,null,null,{"$f":"IF(DataLog!$C1044=\"Log value\",DataLog!D1044&\"_\"&TEXT(DataLog!B1044,\"åååå-mm-dd\"),\"\")","v":""},{"$f":"IF(DataLog!$C1044=\"Log value\",DataLog!E1044,\"\")","v":""},{"$f":"IF(DataLog!$C1044=\"Log value\",DataLog!F1044,\"\")","v":""},{"$f":"IF(DataLog!$C1044=\"Log value\",DataLog!G1044,\"\")","v":""},{"$f":"IF(DataLog!$C1044=\"Log value\",DataLog!H1044,\"\")","v":""},{"$f":"IF(DataLog!$C1044=\"Log value\",DataLog!I1044,\"\")","v":""},{"$f":"IF(DataLog!$C1044=\"Log value\",DataLog!J1044,\"\")","v":""},{"$f":"IF(DataLog!$C1044=\"Log value\",DataLog!K1044,\"\")","v":""},{"$f":"IF(DataLog!$C1044=\"Log value\",DataLog!L1044,\"\")","v":""},{"$f":"IF(DataLog!$C1044=\"Log value\",DataLog!M1044,\"\")","v":""},{"$f":"IF(DataLog!$C1044=\"Log value\",DataLog!N1044,\"\")","v":""},{"$f":"IF(DataLog!$C1044=\"Log value\",DataLog!O1044,\"\")","v":""},{"$f":"IF(DataLog!$C1044=\"Log value\",DataLog!P1044,\"\")","v":""},{"$f":"IF(DataLog!$C1044=\"Log value\",DataLog!Q1044,\"\")","v":""},{"$f":"IF(DataLog!$C1044=\"Log value\",DataLog!R1044,\"\")","v":""},{"$f":"IF(DataLog!$C1044=\"Log value\",DataLog!S1044,\"\")","v":""},{"$f":"IF(DataLog!$C1044=\"Log value\",DataLog!T1044,\"\")","v":""},{"$f":"IF(DataLog!$C1044=\"Log value\",DataLog!U1044,\"\")","v":""},{"$f":"IF(DataLog!$C1044=\"Log value\",DataLog!V1044,\"\")","v":""},{"$f":"IF(DataLog!$C1044=\"Log value\",DataLog!W1044,\"\")","v":""},{"$f":"IF(DataLog!$C1044=\"Log value\",DataLog!X1044,\"\")","v":""},{"$f":"IF(DataLog!$C1044=\"Log value\",DataLog!Y1044,\"\")","v":""},{"$f":"IF(DataLog!$C1044=\"Log value\",DataLog!Z1044,\"\")","v":""},{"$f":"IF(DataLog!$C1044=\"Log value\",DataLog!AA1044,\"\")","v":""},{"$f":"IF(DataLog!$C1044=\"Log value\",DataLog!AB1044,\"\")","v":""},{"$f":"IF(DataLog!$C1044=\"Log value\",DataLog!AC1044,\"\")","v":""},{"$f":"IF(DataLog!$C1044=\"Log value\",DataLog!AD1044,\"\")","v":""},{"$f":"IF(DataLog!$C1044=\"Log value\",DataLog!AE1044,\"\")","v":""},{"$f":"IF(DataLog!$C1044=\"Log value\",DataLog!AF1044,\"\")","v":""},{"$f":"IF(DataLog!$C1044=\"Log value\",DataLog!AG1044,\"\")","v":""},{"$f":"IF(DataLog!$C1044=\"Log value\",DataLog!AH1044,\"\")","v":""},{"$f":"IF(DataLog!$C1044=\"Log value\",DataLog!AI1044,\"\")","v":""},{"$f":"IF(DataLog!$C1044=\"Log value\",DataLog!AJ1044,\"\")","v":""},{"$f":"IF(DataLog!$C1044=\"Log value\",DataLog!AK1044,\"\")","v":""},{"$f":"IF(DataLog!$C1044=\"Log value\",DataLog!AL1044,\"\")","v":""},{"$f":"IF(DataLog!$C1044=\"Log value\",DataLog!AM1044,\"\")","v":""}]
[null,null,null,null,null,null,{"$f":"IF(DataLog!$C1046=\"Log value\",DataLog!D1046&\"_\"&TEXT(DataLog!B1046,\"åååå-mm-dd\"),\"\")","v":""},{"$f":"IF(DataLog!$C1046=\"Log value\",DataLog!E1046,\"\")","v":""},{"$f":"IF(DataLog!$C1046=\"Log value\",DataLog!F1046,\"\")","v":""},{"$f":"IF(DataLog!$C1046=\"Log value\",DataLog!G1046,\"\")","v":""},{"$f":"IF(DataLog!$C1046=\"Log value\",DataLog!H1046,\"\")","v":""},{"$f":"IF(DataLog!$C1046=\"Log value\",DataLog!I1046,\"\")","v":""},{"$f":"IF(DataLog!$C1046=\"Log value\",DataLog!J1046,\"\")","v":""},{"$f":"IF(DataLog!$C1046=\"Log value\",DataLog!K1046,\"\")","v":""},{"$f":"IF(DataLog!$C1046=\"Log value\",DataLog!L1046,\"\")","v":""},{"$f":"IF(DataLog!$C1046=\"Log value\",DataLog!M1046,\"\")","v":""},{"$f":"IF(DataLog!$C1046=\"Log value\",DataLog!N1046,\"\")","v":""},{"$f":"IF(DataLog!$C1046=\"Log value\",DataLog!O1046,\"\")","v":""},{"$f":"IF(DataLog!$C1046=\"Log value\",DataLog!P1046,\"\")","v":""},{"$f":"IF(DataLog!$C1046=\"Log value\",DataLog!Q1046,\"\")","v":""},{"$f":"IF(DataLog!$C1046=\"Log value\",DataLog!R1046,\"\")","v":""},{"$f":"IF(DataLog!$C1046=\"Log value\",DataLog!S1046,\"\")","v":""},{"$f":"IF(DataLog!$C1046=\"Log value\",DataLog!T1046,\"\")","v":""},{"$f":"IF(DataLog!$C1046=\"Log value\",DataLog!U1046,\"\")","v":""},{"$f":"IF(DataLog!$C1046=\"Log value\",DataLog!V1046,\"\")","v":""},{"$f":"IF(DataLog!$C1046=\"Log value\",DataLog!W1046,\"\")","v":""},{"$f":"IF(DataLog!$C1046=\"Log value\",DataLog!X1046,\"\")","v":""},{"$f":"IF(DataLog!$C1046=\"Log value\",DataLog!Y1046,\"\")","v":""},{"$f":"IF(DataLog!$C1046=\"Log value\",DataLog!Z1046,\"\")","v":""},{"$f":"IF(DataLog!$C1046=\"Log value\",DataLog!AA1046,\"\")","v":""},{"$f":"IF(DataLog!$C1046=\"Log value\",DataLog!AB1046,\"\")","v":""},{"$f":"IF(DataLog!$C1046=\"Log value\",DataLog!AC1046,\"\")","v":""},{"$f":"IF(DataLog!$C1046=\"Log value\",DataLog!AD1046,\"\")","v":""},{"$f":"IF(DataLog!$C1046=\"Log value\",DataLog!AE1046,\"\")","v":""},{"$f":"IF(DataLog!$C1046=\"Log value\",DataLog!AF1046,\"\")","v":""},{"$f":"IF(DataLog!$C1046=\"Log value\",DataLog!AG1046,\"\")","v":""},{"$f":"IF(DataLog!$C1046=\"Log value\",DataLog!AH1046,\"\")","v":""},{"$f":"IF(DataLog!$C1046=\"Log value\",DataLog!AI1046,\"\")","v":""},{"$f":"IF(DataLog!$C1046=\"Log value\",DataLog!AJ1046,\"\")","v":""},{"$f":"IF(DataLog!$C1046=\"Log value\",DataLog!AK1046,\"\")","v":""},{"$f":"IF(DataLog!$C1046=\"Log value\",DataLog!AL1046,\"\")","v":""},{"$f":"IF(DataLog!$C1046=\"Log value\",DataLog!AM1046,\"\")","v":""}]
[null,null,null,null,null,null,{"$f":"IF(DataLog!$C1049=\"Log value\",DataLog!D1049&\"_\"&TEXT(DataLog!B1049,\"åååå-mm-dd\"),\"\")","v":""},{"$f":"IF(DataLog!$C1049=\"Log value\",DataLog!E1049,\"\")","v":""},{"$f":"IF(DataLog!$C1049=\"Log value\",DataLog!F1049,\"\")","v":""},{"$f":"IF(DataLog!$C1049=\"Log value\",DataLog!G1049,\"\")","v":""},{"$f":"IF(DataLog!$C1049=\"Log value\",DataLog!H1049,\"\")","v":""},{"$f":"IF(DataLog!$C1049=\"Log value\",DataLog!I1049,\"\")","v":""},{"$f":"IF(DataLog!$C1049=\"Log value\",DataLog!J1049,\"\")","v":""},{"$f":"IF(DataLog!$C1049=\"Log value\",DataLog!K1049,\"\")","v":""},{"$f":"IF(DataLog!$C1049=\"Log value\",DataLog!L1049,\"\")","v":""},{"$f":"IF(DataLog!$C1049=\"Log value\",DataLog!M1049,\"\")","v":""},{"$f":"IF(DataLog!$C1049=\"Log value\",DataLog!N1049,\"\")","v":""},{"$f":"IF(DataLog!$C1049=\"Log value\",DataLog!O1049,\"\")","v":""},{"$f":"IF(DataLog!$C1049=\"Log value\",DataLog!P1049,\"\")","v":""},{"$f":"IF(DataLog!$C1049=\"Log value\",DataLog!Q1049,\"\")","v":""},{"$f":"IF(DataLog!$C1049=\"Log value\",DataLog!R1049,\"\")","v":""},{"$f":"IF(DataLog!$C1049=\"Log value\",DataLog!S1049,\"\")","v":""},{"$f":"IF(DataLog!$C1049=\"Log value\",DataLog!T1049,\"\")","v":""},{"$f":"IF(DataLog!$C1049=\"Log value\",DataLog!U1049,\"\")","v":""},{"$f":"IF(DataLog!$C1049=\"Log value\",DataLog!V1049,\"\")","v":""},{"$f":"IF(DataLog!$C1049=\"Log value\",DataLog!W1049,\"\")","v":""},{"$f":"IF(DataLog!$C1049=\"Log value\",DataLog!X1049,\"\")","v":""},{"$f":"IF(DataLog!$C1049=\"Log value\",DataLog!Y1049,\"\")","v":""},{"$f":"IF(DataLog!$C1049=\"Log value\",DataLog!Z1049,\"\")","v":""},{"$f":"IF(DataLog!$C1049=\"Log value\",DataLog!AA1049,\"\")","v":""},{"$f":"IF(DataLog!$C1049=\"Log value\",DataLog!AB1049,\"\")","v":""},{"$f":"IF(DataLog!$C1049=\"Log value\",DataLog!AC1049,\"\")","v":""},{"$f":"IF(DataLog!$C1049=\"Log value\",DataLog!AD1049,\"\")","v":""},{"$f":"IF(DataLog!$C1049=\"Log value\",DataLog!AE1049,\"\")","v":""},{"$f":"IF(DataLog!$C1049=\"Log value\",DataLog!AF1049,\"\")","v":""},{"$f":"IF(DataLog!$C1049=\"Log value\",DataLog!AG1049,\"\")","v":""},{"$f":"IF(DataLog!$C1049=\"Log value\",DataLog!AH1049,\"\")","v":""},{"$f":"IF(DataLog!$C1049=\"Log value\",DataLog!AI1049,\"\")","v":""},{"$f":"IF(DataLog!$C1049=\"Log value\",DataLog!AJ1049,\"\")","v":""},{"$f":"IF(DataLog!$C1049=\"Log value\",DataLog!AK1049,\"\")","v":""},{"$f":"IF(DataLog!$C1049=\"Log value\",DataLog!AL1049,\"\")","v":""},{"$f":"IF(DataLog!$C1049=\"Log value\",DataLog!AM1049,\"\")","v":""}]
[null,null,null,null,null,null,{"$f":"IF(DataLog!$C1050=\"Log value\",DataLog!D1050&\"_\"&TEXT(DataLog!B1050,\"åååå-mm-dd\"),\"\")","v":""},{"$f":"IF(DataLog!$C1050=\"Log value\",DataLog!E1050,\"\")","v":""},{"$f":"IF(DataLog!$C1050=\"Log value\",DataLog!F1050,\"\")","v":""},{"$f":"IF(DataLog!$C1050=\"Log value\",DataLog!G1050,\"\")","v":""},{"$f":"IF(DataLog!$C1050=\"Log value\",DataLog!H1050,\"\")","v":""},{"$f":"IF(DataLog!$C1050=\"Log value\",DataLog!I1050,\"\")","v":""},{"$f":"IF(DataLog!$C1050=\"Log value\",DataLog!J1050,\"\")","v":""},{"$f":"IF(DataLog!$C1050=\"Log value\",DataLog!K1050,\"\")","v":""},{"$f":"IF(DataLog!$C1050=\"Log value\",DataLog!L1050,\"\")","v":""},{"$f":"IF(DataLog!$C1050=\"Log value\",DataLog!M1050,\"\")","v":""},{"$f":"IF(DataLog!$C1050=\"Log value\",DataLog!N1050,\"\")","v":""},{"$f":"IF(DataLog!$C1050=\"Log value\",DataLog!O1050,\"\")","v":""},{"$f":"IF(DataLog!$C1050=\"Log value\",DataLog!P1050,\"\")","v":""},{"$f":"IF(DataLog!$C1050=\"Log value\",DataLog!Q1050,\"\")","v":""},{"$f":"IF(DataLog!$C1050=\"Log value\",DataLog!R1050,\"\")","v":""},{"$f":"IF(DataLog!$C1050=\"Log value\",DataLog!S1050,\"\")","v":""},{"$f":"IF(DataLog!$C1050=\"Log value\",DataLog!T1050,\"\")","v":""},{"$f":"IF(DataLog!$C1050=\"Log value\",DataLog!U1050,\"\")","v":""},{"$f":"IF(DataLog!$C1050=\"Log value\",DataLog!V1050,\"\")","v":""},{"$f":"IF(DataLog!$C1050=\"Log value\",DataLog!W1050,\"\")","v":""},{"$f":"IF(DataLog!$C1050=\"Log value\",DataLog!X1050,\"\")","v":""},{"$f":"IF(DataLog!$C1050=\"Log value\",DataLog!Y1050,\"\")","v":""},{"$f":"IF(DataLog!$C1050=\"Log value\",DataLog!Z1050,\"\")","v":""},{"$f":"IF(DataLog!$C1050=\"Log value\",DataLog!AA1050,\"\")","v":""},{"$f":"IF(DataLog!$C1050=\"Log value\",DataLog!AB1050,\"\")","v":""},{"$f":"IF(DataLog!$C1050=\"Log value\",DataLog!AC1050,\"\")","v":""},{"$f":"IF(DataLog!$C1050=\"Log value\",DataLog!AD1050,\"\")","v":""},{"$f":"IF(DataLog!$C1050=\"Log value\",DataLog!AE1050,\"\")","v":""},{"$f":"IF(DataLog!$C1050=\"Log value\",DataLog!AF1050,\"\")","v":""},{"$f":"IF(DataLog!$C1050=\"Log value\",DataLog!AG1050,\"\")","v":""},{"$f":"IF(DataLog!$C1050=\"Log value\",DataLog!AH1050,\"\")","v":""},{"$f":"IF(DataLog!$C1050=\"Log value\",DataLog!AI1050,\"\")","v":""},{"$f":"IF(DataLog!$C1050=\"Log value\",DataLog!AJ1050,\"\")","v":""},{"$f":"IF(DataLog!$C1050=\"Log value\",DataLog!AK1050,\"\")","v":""},{"$f":"IF(DataLog!$C1050=\"Log value\",DataLog!AL1050,\"\")","v":""},{"$f":"IF(DataLog!$C1050=\"Log value\",DataLog!AM1050,\"\")","v":""}]
[null,null,null,null,null,null,{"$f":"IF(DataLog!$C1052=\"Log value\",DataLog!D1052&\"_\"&TEXT(DataLog!B1052,\"åååå-mm-dd\"),\"\")","v":""},{"$f":"IF(DataLog!$C1052=\"Log value\",DataLog!E1052,\"\")","v":""},{"$f":"IF(DataLog!$C1052=\"Log value\",DataLog!F1052,\"\")","v":""},{"$f":"IF(DataLog!$C1052=\"Log value\",DataLog!G1052,\"\")","v":""},{"$f":"IF(DataLog!$C1052=\"Log value\",DataLog!H1052,\"\")","v":""},{"$f":"IF(DataLog!$C1052=\"Log value\",DataLog!I1052,\"\")","v":""},{"$f":"IF(DataLog!$C1052=\"Log value\",DataLog!J1052,\"\")","v":""},{"$f":"IF(DataLog!$C1052=\"Log value\",DataLog!K1052,\"\")","v":""},{"$f":"IF(DataLog!$C1052=\"Log value\",DataLog!L1052,\"\")","v":""},{"$f":"IF(DataLog!$C1052=\"Log value\",DataLog!M1052,\"\")","v":""},{"$f":"IF(DataLog!$C1052=\"Log value\",DataLog!N1052,\"\")","v":""},{"$f":"IF(DataLog!$C1052=\"Log value\",DataLog!O1052,\"\")","v":""},{"$f":"IF(DataLog!$C1052=\"Log value\",DataLog!P1052,\"\")","v":""},{"$f":"IF(DataLog!$C1052=\"Log value\",DataLog!Q1052,\"\")","v":""},{"$f":"IF(DataLog!$C1052=\"Log value\",DataLog!R1052,\"\")","v":""},{"$f":"IF(DataLog!$C1052=\"Log value\",DataLog!S1052,\"\")","v":""},{"$f":"IF(DataLog!$C1052=\"Log value\",DataLog!T1052,\"\")","v":""},{"$f":"IF(DataLog!$C1052=\"Log value\",DataLog!U1052,\"\")","v":""},{"$f":"IF(DataLog!$C1052=\"Log value\",DataLog!V1052,\"\")","v":""},{"$f":"IF(DataLog!$C1052=\"Log value\",DataLog!W1052,\"\")","v":""},{"$f":"IF(DataLog!$C1052=\"Log value\",DataLog!X1052,\"\")","v":""},{"$f":"IF(DataLog!$C1052=\"Log value\",DataLog!Y1052,\"\")","v":""},{"$f":"IF(DataLog!$C1052=\"Log value\",DataLog!Z1052,\"\")","v":""},{"$f":"IF(DataLog!$C1052=\"Log value\",DataLog!AA1052,\"\")","v":""},{"$f":"IF(DataLog!$C1052=\"Log value\",DataLog!AB1052,\"\")","v":""},{"$f":"IF(DataLog!$C1052=\"Log value\",DataLog!AC1052,\"\")","v":""},{"$f":"IF(DataLog!$C1052=\"Log value\",DataLog!AD1052,\"\")","v":""},{"$f":"IF(DataLog!$C1052=\"Log value\",DataLog!AE1052,\"\")","v":""},{"$f":"IF(DataLog!$C1052=\"Log value\",DataLog!AF1052,\"\")","v":""},{"$f":"IF(DataLog!$C1052=\"Log value\",DataLog!AG1052,\"\")","v":""},{"$f":"IF(DataLog!$C1052=\"Log value\",DataLog!AH1052,\"\")","v":""},{"$f":"IF(DataLog!$C1052=\"Log value\",DataLog!AI1052,\"\")","v":""},{"$f":"IF(DataLog!$C1052=\"Log value\",DataLog!AJ1052,\"\")","v":""},{"$f":"IF(DataLog!$C1052=\"Log value\",DataLog!AK1052,\"\")","v":""},{"$f":"IF(DataLog!$C1052=\"Log value\",DataLog!AL1052,\"\")","v":""},{"$f":"IF(DataLog!$C1052=\"Log value\",DataLog!AM1052,\"\")","v":""}]
[null,null,null,null,null,null,{"$f":"IF(DataLog!$C1055=\"Log value\",DataLog!D1055&\"_\"&TEXT(DataLog!B1055,\"åååå-mm-dd\"),\"\")","v":""},{"$f":"IF(DataLog!$C1055=\"Log value\",DataLog!E1055,\"\")","v":""},{"$f":"IF(DataLog!$C1055=\"Log value\",DataLog!F1055,\"\")","v":""},{"$f":"IF(DataLog!$C1055=\"Log value\",DataLog!G1055,\"\")","v":""},{"$f":"IF(DataLog!$C1055=\"Log value\",DataLog!H1055,\"\")","v":""},{"$f":"IF(DataLog!$C1055=\"Log value\",DataLog!I1055,\"\")","v":""},{"$f":"IF(DataLog!$C1055=\"Log value\",DataLog!J1055,\"\")","v":""},{"$f":"IF(DataLog!$C1055=\"Log value\",DataLog!K1055,\"\")","v":""},{"$f":"IF(DataLog!$C1055=\"Log value\",DataLog!L1055,\"\")","v":""},{"$f":"IF(DataLog!$C1055=\"Log value\",DataLog!M1055,\"\")","v":""},{"$f":"IF(DataLog!$C1055=\"Log value\",DataLog!N1055,\"\")","v":""},{"$f":"IF(DataLog!$C1055=\"Log value\",DataLog!O1055,\"\")","v":""},{"$f":"IF(DataLog!$C1055=\"Log value\",DataLog!P1055,\"\")","v":""},{"$f":"IF(DataLog!$C1055=\"Log value\",DataLog!Q1055,\"\")","v":""},{"$f":"IF(DataLog!$C1055=\"Log value\",DataLog!R1055,\"\")","v":""},{"$f":"IF(DataLog!$C1055=\"Log value\",DataLog!S1055,\"\")","v":""},{"$f":"IF(DataLog!$C1055=\"Log value\",DataLog!T1055,\"\")","v":""},{"$f":"IF(DataLog!$C1055=\"Log value\",DataLog!U1055,\"\")","v":""},{"$f":"IF(DataLog!$C1055=\"Log value\",DataLog!V1055,\"\")","v":""},{"$f":"IF(DataLog!$C1055=\"Log value\",DataLog!W1055,\"\")","v":""},{"$f":"IF(DataLog!$C1055=\"Log value\",DataLog!X1055,\"\")","v":""},{"$f":"IF(DataLog!$C1055=\"Log value\",DataLog!Y1055,\"\")","v":""},{"$f":"IF(DataLog!$C1055=\"Log value\",DataLog!Z1055,\"\")","v":""},{"$f":"IF(DataLog!$C1055=\"Log value\",DataLog!AA1055,\"\")","v":""},{"$f":"IF(DataLog!$C1055=\"Log value\",DataLog!AB1055,\"\")","v":""},{"$f":"IF(DataLog!$C1055=\"Log value\",DataLog!AC1055,\"\")","v":""},{"$f":"IF(DataLog!$C1055=\"Log value\",DataLog!AD1055,\"\")","v":""},{"$f":"IF(DataLog!$C1055=\"Log value\",DataLog!AE1055,\"\")","v":""},{"$f":"IF(DataLog!$C1055=\"Log value\",DataLog!AF1055,\"\")","v":""},{"$f":"IF(DataLog!$C1055=\"Log value\",DataLog!AG1055,\"\")","v":""},{"$f":"IF(DataLog!$C1055=\"Log value\",DataLog!AH1055,\"\")","v":""},{"$f":"IF(DataLog!$C1055=\"Log value\",DataLog!AI1055,\"\")","v":""},{"$f":"IF(DataLog!$C1055=\"Log value\",DataLog!AJ1055,\"\")","v":""},{"$f":"IF(DataLog!$C1055=\"Log value\",DataLog!AK1055,\"\")","v":""},{"$f":"IF(DataLog!$C1055=\"Log value\",DataLog!AL1055,\"\")","v":""},{"$f":"IF(DataLog!$C1055=\"Log value\",DataLog!AM1055,\"\")","v":""}]
[null,null,null,null,null,null,{"$f":"IF(DataLog!$C1058=\"Log value\",DataLog!D1058&\"_\"&TEXT(DataLog!B1058,\"åååå-mm-dd\"),\"\")","v":""},{"$f":"IF(DataLog!$C1058=\"Log value\",DataLog!E1058,\"\")","v":""},{"$f":"IF(DataLog!$C1058=\"Log value\",DataLog!F1058,\"\")","v":""},{"$f":"IF(DataLog!$C1058=\"Log value\",DataLog!G1058,\"\")","v":""},{"$f":"IF(DataLog!$C1058=\"Log value\",DataLog!H1058,\"\")","v":""},{"$f":"IF(DataLog!$C1058=\"Log value\",DataLog!I1058,\"\")","v":""},{"$f":"IF(DataLog!$C1058=\"Log value\",DataLog!J1058,\"\")","v":""},{"$f":"IF(DataLog!$C1058=\"Log value\",DataLog!K1058,\"\")","v":""},{"$f":"IF(DataLog!$C1058=\"Log value\",DataLog!L1058,\"\")","v":""},{"$f":"IF(DataLog!$C1058=\"Log value\",DataLog!M1058,\"\")","v":""},{"$f":"IF(DataLog!$C1058=\"Log value\",DataLog!N1058,\"\")","v":""},{"$f":"IF(DataLog!$C1058=\"Log value\",DataLog!O1058,\"\")","v":""},{"$f":"IF(DataLog!$C1058=\"Log value\",DataLog!P1058,\"\")","v":""},{"$f":"IF(DataLog!$C1058=\"Log value\",DataLog!Q1058,\"\")","v":""},{"$f":"IF(DataLog!$C1058=\"Log value\",DataLog!R1058,\"\")","v":""},{"$f":"IF(DataLog!$C1058=\"Log value\",DataLog!S1058,\"\")","v":""},{"$f":"IF(DataLog!$C1058=\"Log value\",DataLog!T1058,\"\")","v":""},{"$f":"IF(DataLog!$C1058=\"Log value\",DataLog!U1058,\"\")","v":""},{"$f":"IF(DataLog!$C1058=\"Log value\",DataLog!V1058,\"\")","v":""},{"$f":"IF(DataLog!$C1058=\"Log value\",DataLog!W1058,\"\")","v":""},{"$f":"IF(DataLog!$C1058=\"Log value\",DataLog!X1058,\"\")","v":""},{"$f":"IF(DataLog!$C1058=\"Log value\",DataLog!Y1058,\"\")","v":""},{"$f":"IF(DataLog!$C1058=\"Log value\",DataLog!Z1058,\"\")","v":""},{"$f":"IF(DataLog!$C1058=\"Log value\",DataLog!AA1058,\"\")","v":""},{"$f":"IF(DataLog!$C1058=\"Log value\",DataLog!AB1058,\"\")","v":""},{"$f":"IF(DataLog!$C1058=\"Log value\",DataLog!AC1058,\"\")","v":""},{"$f":"IF(DataLog!$C1058=\"Log value\",DataLog!AD1058,\"\")","v":""},{"$f":"IF(DataLog!$C1058=\"Log value\",DataLog!AE1058,\"\")","v":""},{"$f":"IF(DataLog!$C1058=\"Log value\",DataLog!AF1058,\"\")","v":""},{"$f":"IF(DataLog!$C1058=\"Log value\",DataLog!AG1058,\"\")","v":""},{"$f":"IF(DataLog!$C1058=\"Log value\",DataLog!AH1058,\"\")","v":""},{"$f":"IF(DataLog!$C1058=\"Log value\",DataLog!AI1058,\"\")","v":""},{"$f":"IF(DataLog!$C1058=\"Log value\",DataLog!AJ1058,\"\")","v":""},{"$f":"IF(DataLog!$C1058=\"Log value\",DataLog!AK1058,\"\")","v":""},{"$f":"IF(DataLog!$C1058=\"Log value\",DataLog!AL1058,\"\")","v":""},{"$f":"IF(DataLog!$C1058=\"Log value\",DataLog!AM1058,\"\")","v":""}]
[null,null,null,null,null,null,{"$f":"IF(DataLog!$C1060=\"Log value\",DataLog!D1060&\"_\"&TEXT(DataLog!B1060,\"åååå-mm-dd\"),\"\")","v":""},{"$f":"IF(DataLog!$C1060=\"Log value\",DataLog!E1060,\"\")","v":""},{"$f":"IF(DataLog!$C1060=\"Log value\",DataLog!F1060,\"\")","v":""},{"$f":"IF(DataLog!$C1060=\"Log value\",DataLog!G1060,\"\")","v":""},{"$f":"IF(DataLog!$C1060=\"Log value\",DataLog!H1060,\"\")","v":""},{"$f":"IF(DataLog!$C1060=\"Log value\",DataLog!I1060,\"\")","v":""},{"$f":"IF(DataLog!$C1060=\"Log value\",DataLog!J1060,\"\")","v":""},{"$f":"IF(DataLog!$C1060=\"Log value\",DataLog!K1060,\"\")","v":""},{"$f":"IF(DataLog!$C1060=\"Log value\",DataLog!L1060,\"\")","v":""},{"$f":"IF(DataLog!$C1060=\"Log value\",DataLog!M1060,\"\")","v":""},{"$f":"IF(DataLog!$C1060=\"Log value\",DataLog!N1060,\"\")","v":""},{"$f":"IF(DataLog!$C1060=\"Log value\",DataLog!O1060,\"\")","v":""},{"$f":"IF(DataLog!$C1060=\"Log value\",DataLog!P1060,\"\")","v":""},{"$f":"IF(DataLog!$C1060=\"Log value\",DataLog!Q1060,\"\")","v":""},{"$f":"IF(DataLog!$C1060=\"Log value\",DataLog!R1060,\"\")","v":""},{"$f":"IF(DataLog!$C1060=\"Log value\",DataLog!S1060,\"\")","v":""},{"$f":"IF(DataLog!$C1060=\"Log value\",DataLog!T1060,\"\")","v":""},{"$f":"IF(DataLog!$C1060=\"Log value\",DataLog!U1060,\"\")","v":""},{"$f":"IF(DataLog!$C1060=\"Log value\",DataLog!V1060,\"\")","v":""},{"$f":"IF(DataLog!$C1060=\"Log value\",DataLog!W1060,\"\")","v":""},{"$f":"IF(DataLog!$C1060=\"Log value\",DataLog!X1060,\"\")","v":""},{"$f":"IF(DataLog!$C1060=\"Log value\",DataLog!Y1060,\"\")","v":""},{"$f":"IF(DataLog!$C1060=\"Log value\",DataLog!Z1060,\"\")","v":""},{"$f":"IF(DataLog!$C1060=\"Log value\",DataLog!AA1060,\"\")","v":""},{"$f":"IF(DataLog!$C1060=\"Log value\",DataLog!AB1060,\"\")","v":""},{"$f":"IF(DataLog!$C1060=\"Log value\",DataLog!AC1060,\"\")","v":""},{"$f":"IF(DataLog!$C1060=\"Log value\",DataLog!AD1060,\"\")","v":""},{"$f":"IF(DataLog!$C1060=\"Log value\",DataLog!AE1060,\"\")","v":""},{"$f":"IF(DataLog!$C1060=\"Log value\",DataLog!AF1060,\"\")","v":""},{"$f":"IF(DataLog!$C1060=\"Log value\",DataLog!AG1060,\"\")","v":""},{"$f":"IF(DataLog!$C1060=\"Log value\",DataLog!AH1060,\"\")","v":""},{"$f":"IF(DataLog!$C1060=\"Log value\",DataLog!AI1060,\"\")","v":""},{"$f":"IF(DataLog!$C1060=\"Log value\",DataLog!AJ1060,\"\")","v":""},{"$f":"IF(DataLog!$C1060=\"Log value\",DataLog!AK1060,\"\")","v":""},{"$f":"IF(DataLog!$C1060=\"Log value\",DataLog!AL1060,\"\")","v":""},{"$f":"IF(DataLog!$C1060=\"Log value\",DataLog!AM1060,\"\")","v":""}]
[null,null,null,null,null,null,{"$f":"IF(DataLog!$C1063=\"Log value\",DataLog!D1063&\"_\"&TEXT(DataLog!B1063,\"åååå-mm-dd\"),\"\")","v":""},{"$f":"IF(DataLog!$C1063=\"Log value\",DataLog!E1063,\"\")","v":""},{"$f":"IF(DataLog!$C1063=\"Log value\",DataLog!F1063,\"\")","v":""},{"$f":"IF(DataLog!$C1063=\"Log value\",DataLog!G1063,\"\")","v":""},{"$f":"IF(DataLog!$C1063=\"Log value\",DataLog!H1063,\"\")","v":""},{"$f":"IF(DataLog!$C1063=\"Log value\",DataLog!I1063,\"\")","v":""},{"$f":"IF(DataLog!$C1063=\"Log value\",DataLog!J1063,\"\")","v":""},{"$f":"IF(DataLog!$C1063=\"Log value\",DataLog!K1063,\"\")","v":""},{"$f":"IF(DataLog!$C1063=\"Log value\",DataLog!L1063,\"\")","v":""},{"$f":"IF(DataLog!$C1063=\"Log value\",DataLog!M1063,\"\")","v":""},{"$f":"IF(DataLog!$C1063=\"Log value\",DataLog!N1063,\"\")","v":""},{"$f":"IF(DataLog!$C1063=\"Log value\",DataLog!O1063,\"\")","v":""},{"$f":"IF(DataLog!$C1063=\"Log value\",DataLog!P1063,\"\")","v":""},{"$f":"IF(DataLog!$C1063=\"Log value\",DataLog!Q1063,\"\")","v":""},{"$f":"IF(DataLog!$C1063=\"Log value\",DataLog!R1063,\"\")","v":""},{"$f":"IF(DataLog!$C1063=\"Log value\",DataLog!S1063,\"\")","v":""},{"$f":"IF(DataLog!$C1063=\"Log value\",DataLog!T1063,\"\")","v":""},{"$f":"IF(DataLog!$C1063=\"Log value\",DataLog!U1063,\"\")","v":""},{"$f":"IF(DataLog!$C1063=\"Log value\",DataLog!V1063,\"\")","v":""},{"$f":"IF(DataLog!$C1063=\"Log value\",DataLog!W1063,\"\")","v":""},{"$f":"IF(DataLog!$C1063=\"Log value\",DataLog!X1063,\"\")","v":""},{"$f":"IF(DataLog!$C1063=\"Log value\",DataLog!Y1063,\"\")","v":""},{"$f":"IF(DataLog!$C1063=\"Log value\",DataLog!Z1063,\"\")","v":""},{"$f":"IF(DataLog!$C1063=\"Log value\",DataLog!AA1063,\"\")","v":""},{"$f":"IF(DataLog!$C1063=\"Log value\",DataLog!AB1063,\"\")","v":""},{"$f":"IF(DataLog!$C1063=\"Log value\",DataLog!AC1063,\"\")","v":""},{"$f":"IF(DataLog!$C1063=\"Log value\",DataLog!AD1063,\"\")","v":""},{"$f":"IF(DataLog!$C1063=\"Log value\",DataLog!AE1063,\"\")","v":""},{"$f":"IF(DataLog!$C1063=\"Log value\",DataLog!AF1063,\"\")","v":""},{"$f":"IF(DataLog!$C1063=\"Log value\",DataLog!AG1063,\"\")","v":""},{"$f":"IF(DataLog!$C1063=\"Log value\",DataLog!AH1063,\"\")","v":""},{"$f":"IF(DataLog!$C1063=\"Log value\",DataLog!AI1063,\"\")","v":""},{"$f":"IF(DataLog!$C1063=\"Log value\",DataLog!AJ1063,\"\")","v":""},{"$f":"IF(DataLog!$C1063=\"Log value\",DataLog!AK1063,\"\")","v":""},{"$f":"IF(DataLog!$C1063=\"Log value\",DataLog!AL1063,\"\")","v":""},{"$f":"IF(DataLog!$C1063=\"Log value\",DataLog!AM1063,\"\")","v":""}]
[null,null,null,null,null,null,{"$f":"IF(DataLog!$C1064=\"Log value\",DataLog!D1064&\"_\"&TEXT(DataLog!B1064,\"åååå-mm-dd\"),\"\")","v":""},{"$f":"IF(DataLog!$C1064=\"Log value\",DataLog!E1064,\"\")","v":""},{"$f":"IF(DataLog!$C1064=\"Log value\",DataLog!F1064,\"\")","v":""},{"$f":"IF(DataLog!$C1064=\"Log value\",DataLog!G1064,\"\")","v":""},{"$f":"IF(DataLog!$C1064=\"Log value\",DataLog!H1064,\"\")","v":""},{"$f":"IF(DataLog!$C1064=\"Log value\",DataLog!I1064,\"\")","v":""},{"$f":"IF(DataLog!$C1064=\"Log value\",DataLog!J1064,\"\")","v":""},{"$f":"IF(DataLog!$C1064=\"Log value\",DataLog!K1064,\"\")","v":""},{"$f":"IF(DataLog!$C1064=\"Log value\",DataLog!L1064,\"\")","v":""},{"$f":"IF(DataLog!$C1064=\"Log value\",DataLog!M1064,\"\")","v":""},{"$f":"IF(DataLog!$C1064=\"Log value\",DataLog!N1064,\"\")","v":""},{"$f":"IF(DataLog!$C1064=\"Log value\",DataLog!O1064,\"\")","v":""},{"$f":"IF(DataLog!$C1064=\"Log value\",DataLog!P1064,\"\")","v":""},{"$f":"IF(DataLog!$C1064=\"Log value\",DataLog!Q1064,\"\")","v":""},{"$f":"IF(DataLog!$C1064=\"Log value\",DataLog!R1064,\"\")","v":""},{"$f":"IF(DataLog!$C1064=\"Log value\",DataLog!S1064,\"\")","v":""},{"$f":"IF(DataLog!$C1064=\"Log value\",DataLog!T1064,\"\")","v":""},{"$f":"IF(DataLog!$C1064=\"Log value\",DataLog!U1064,\"\")","v":""},{"$f":"IF(DataLog!$C1064=\"Log value\",DataLog!V1064,\"\")","v":""},{"$f":"IF(DataLog!$C1064=\"Log value\",DataLog!W1064,\"\")","v":""},{"$f":"IF(DataLog!$C1064=\"Log value\",DataLog!X1064,\"\")","v":""},{"$f":"IF(DataLog!$C1064=\"Log value\",DataLog!Y1064,\"\")","v":""},{"$f":"IF(DataLog!$C1064=\"Log value\",DataLog!Z1064,\"\")","v":""},{"$f":"IF(DataLog!$C1064=\"Log value\",DataLog!AA1064,\"\")","v":""},{"$f":"IF(DataLog!$C1064=\"Log value\",DataLog!AB1064,\"\")","v":""},{"$f":"IF(DataLog!$C1064=\"Log value\",DataLog!AC1064,\"\")","v":""},{"$f":"IF(DataLog!$C1064=\"Log value\",DataLog!AD1064,\"\")","v":""},{"$f":"IF(DataLog!$C1064=\"Log value\",DataLog!AE1064,\"\")","v":""},{"$f":"IF(DataLog!$C1064=\"Log value\",DataLog!AF1064,\"\")","v":""},{"$f":"IF(DataLog!$C1064=\"Log value\",DataLog!AG1064,\"\")","v":""},{"$f":"IF(DataLog!$C1064=\"Log value\",DataLog!AH1064,\"\")","v":""},{"$f":"IF(DataLog!$C1064=\"Log value\",DataLog!AI1064,\"\")","v":""},{"$f":"IF(DataLog!$C1064=\"Log value\",DataLog!AJ1064,\"\")","v":""},{"$f":"IF(DataLog!$C1064=\"Log value\",DataLog!AK1064,\"\")","v":""},{"$f":"IF(DataLog!$C1064=\"Log value\",DataLog!AL1064,\"\")","v":""},{"$f":"IF(DataLog!$C1064=\"Log value\",DataLog!AM1064,\"\")","v":""}]
[null,null,null,null,null,null,{"$f":"IF(DataLog!$C1067=\"Log value\",DataLog!D1067&\"_\"&TEXT(DataLog!B1067,\"åååå-mm-dd\"),\"\")","v":""},{"$f":"IF(DataLog!$C1067=\"Log value\",DataLog!E1067,\"\")","v":""},{"$f":"IF(DataLog!$C1067=\"Log value\",DataLog!F1067,\"\")","v":""},{"$f":"IF(DataLog!$C1067=\"Log value\",DataLog!G1067,\"\")","v":""},{"$f":"IF(DataLog!$C1067=\"Log value\",DataLog!H1067,\"\")","v":""},{"$f":"IF(DataLog!$C1067=\"Log value\",DataLog!I1067,\"\")","v":""},{"$f":"IF(DataLog!$C1067=\"Log value\",DataLog!J1067,\"\")","v":""},{"$f":"IF(DataLog!$C1067=\"Log value\",DataLog!K1067,\"\")","v":""},{"$f":"IF(DataLog!$C1067=\"Log value\",DataLog!L1067,\"\")","v":""},{"$f":"IF(DataLog!$C1067=\"Log value\",DataLog!M1067,\"\")","v":""},{"$f":"IF(DataLog!$C1067=\"Log value\",DataLog!N1067,\"\")","v":""},{"$f":"IF(DataLog!$C1067=\"Log value\",DataLog!O1067,\"\")","v":""},{"$f":"IF(DataLog!$C1067=\"Log value\",DataLog!P1067,\"\")","v":""},{"$f":"IF(DataLog!$C1067=\"Log value\",DataLog!Q1067,\"\")","v":""},{"$f":"IF(DataLog!$C1067=\"Log value\",DataLog!R1067,\"\")","v":""},{"$f":"IF(DataLog!$C1067=\"Log value\",DataLog!S1067,\"\")","v":""},{"$f":"IF(DataLog!$C1067=\"Log value\",DataLog!T1067,\"\")","v":""},{"$f":"IF(DataLog!$C1067=\"Log value\",DataLog!U1067,\"\")","v":""},{"$f":"IF(DataLog!$C1067=\"Log value\",DataLog!V1067,\"\")","v":""},{"$f":"IF(DataLog!$C1067=\"Log value\",DataLog!W1067,\"\")","v":""},{"$f":"IF(DataLog!$C1067=\"Log value\",DataLog!X1067,\"\")","v":""},{"$f":"IF(DataLog!$C1067=\"Log value\",DataLog!Y1067,\"\")","v":""},{"$f":"IF(DataLog!$C1067=\"Log value\",DataLog!Z1067,\"\")","v":""},{"$f":"IF(DataLog!$C1067=\"Log value\",DataLog!AA1067,\"\")","v":""},{"$f":"IF(DataLog!$C1067=\"Log value\",DataLog!AB1067,\"\")","v":""},{"$f":"IF(DataLog!$C1067=\"Log value\",DataLog!AC1067,\"\")","v":""},{"$f":"IF(DataLog!$C1067=\"Log value\",DataLog!AD1067,\"\")","v":""},{"$f":"IF(DataLog!$C1067=\"Log value\",DataLog!AE1067,\"\")","v":""},{"$f":"IF(DataLog!$C1067=\"Log value\",DataLog!AF1067,\"\")","v":""},{"$f":"IF(DataLog!$C1067=\"Log value\",DataLog!AG1067,\"\")","v":""},{"$f":"IF(DataLog!$C1067=\"Log value\",DataLog!AH1067,\"\")","v":""},{"$f":"IF(DataLog!$C1067=\"Log value\",DataLog!AI1067,\"\")","v":""},{"$f":"IF(DataLog!$C1067=\"Log value\",DataLog!AJ1067,\"\")","v":""},{"$f":"IF(DataLog!$C1067=\"Log value\",DataLog!AK1067,\"\")","v":""},{"$f":"IF(DataLog!$C1067=\"Log value\",DataLog!AL1067,\"\")","v":""},{"$f":"IF(DataLog!$C1067=\"Log value\",DataLog!AM1067,\"\")","v":""}]
[null,null,null,null,null,null,{"$f":"IF(DataLog!$C1068=\"Log value\",DataLog!D1068&\"_\"&TEXT(DataLog!B1068,\"åååå-mm-dd\"),\"\")","v":""},{"$f":"IF(DataLog!$C1068=\"Log value\",DataLog!E1068,\"\")","v":""},{"$f":"IF(DataLog!$C1068=\"Log value\",DataLog!F1068,\"\")","v":""},{"$f":"IF(DataLog!$C1068=\"Log value\",DataLog!G1068,\"\")","v":""},{"$f":"IF(DataLog!$C1068=\"Log value\",DataLog!H1068,\"\")","v":""},{"$f":"IF(DataLog!$C1068=\"Log value\",DataLog!I1068,\"\")","v":""},{"$f":"IF(DataLog!$C1068=\"Log value\",DataLog!J1068,\"\")","v":""},{"$f":"IF(DataLog!$C1068=\"Log value\",DataLog!K1068,\"\")","v":""},{"$f":"IF(DataLog!$C1068=\"Log value\",DataLog!L1068,\"\")","v":""},{"$f":"IF(DataLog!$C1068=\"Log value\",DataLog!M1068,\"\")","v":""},{"$f":"IF(DataLog!$C1068=\"Log value\",DataLog!N1068,\"\")","v":""},{"$f":"IF(DataLog!$C1068=\"Log value\",DataLog!O1068,\"\")","v":""},{"$f":"IF(DataLog!$C1068=\"Log value\",DataLog!P1068,\"\")","v":""},{"$f":"IF(DataLog!$C1068=\"Log value\",DataLog!Q1068,\"\")","v":""},{"$f":"IF(DataLog!$C1068=\"Log value\",DataLog!R1068,\"\")","v":""},{"$f":"IF(DataLog!$C1068=\"Log value\",DataLog!S1068,\"\")","v":""},{"$f":"IF(DataLog!$C1068=\"Log value\",DataLog!T1068,\"\")","v":""},{"$f":"IF(DataLog!$C1068=\"Log value\",DataLog!U1068,\"\")","v":""},{"$f":"IF(DataLog!$C1068=\"Log value\",DataLog!V1068,\"\")","v":""},{"$f":"IF(DataLog!$C1068=\"Log value\",DataLog!W1068,\"\")","v":""},{"$f":"IF(DataLog!$C1068=\"Log value\",DataLog!X1068,\"\")","v":""},{"$f":"IF(DataLog!$C1068=\"Log value\",DataLog!Y1068,\"\")","v":""},{"$f":"IF(DataLog!$C1068=\"Log value\",DataLog!Z1068,\"\")","v":""},{"$f":"IF(DataLog!$C1068=\"Log value\",DataLog!AA1068,\"\")","v":""},{"$f":"IF(DataLog!$C1068=\"Log value\",DataLog!AB1068,\"\")","v":""},{"$f":"IF(DataLog!$C1068=\"Log value\",DataLog!AC1068,\"\")","v":""},{"$f":"IF(DataLog!$C1068=\"Log value\",DataLog!AD1068,\"\")","v":""},{"$f":"IF(DataLog!$C1068=\"Log value\",DataLog!AE1068,\"\")","v":""},{"$f":"IF(DataLog!$C1068=\"Log value\",DataLog!AF1068,\"\")","v":""},{"$f":"IF(DataLog!$C1068=\"Log value\",DataLog!AG1068,\"\")","v":""},{"$f":"IF(DataLog!$C1068=\"Log value\",DataLog!AH1068,\"\")","v":""},{"$f":"IF(DataLog!$C1068=\"Log value\",DataLog!AI1068,\"\")","v":""},{"$f":"IF(DataLog!$C1068=\"Log value\",DataLog!AJ1068,\"\")","v":""},{"$f":"IF(DataLog!$C1068=\"Log value\",DataLog!AK1068,\"\")","v":""},{"$f":"IF(DataLog!$C1068=\"Log value\",DataLog!AL1068,\"\")","v":""},{"$f":"IF(DataLog!$C1068=\"Log value\",DataLog!AM1068,\"\")","v":""}]
[null,null,null,null,null,null,{"$f":"IF(DataLog!$C1072=\"Log value\",DataLog!D1072&\"_\"&TEXT(DataLog!B1072,\"åååå-mm-dd\"),\"\")","v":""},{"$f":"IF(DataLog!$C1072=\"Log value\",DataLog!E1072,\"\")","v":""},{"$f":"IF(DataLog!$C1072=\"Log value\",DataLog!F1072,\"\")","v":""},{"$f":"IF(DataLog!$C1072=\"Log value\",DataLog!G1072,\"\")","v":""},{"$f":"IF(DataLog!$C1072=\"Log value\",DataLog!H1072,\"\")","v":""},{"$f":"IF(DataLog!$C1072=\"Log value\",DataLog!I1072,\"\")","v":""},{"$f":"IF(DataLog!$C1072=\"Log value\",DataLog!J1072,\"\")","v":""},{"$f":"IF(DataLog!$C1072=\"Log value\",DataLog!K1072,\"\")","v":""},{"$f":"IF(DataLog!$C1072=\"Log value\",DataLog!L1072,\"\")","v":""},{"$f":"IF(DataLog!$C1072=\"Log value\",DataLog!M1072,\"\")","v":""},{"$f":"IF(DataLog!$C1072=\"Log value\",DataLog!N1072,\"\")","v":""},{"$f":"IF(DataLog!$C1072=\"Log value\",DataLog!O1072,\"\")","v":""},{"$f":"IF(DataLog!$C1072=\"Log value\",DataLog!P1072,\"\")","v":""},{"$f":"IF(DataLog!$C1072=\"Log value\",DataLog!Q1072,\"\")","v":""},{"$f":"IF(DataLog!$C1072=\"Log value\",DataLog!R1072,\"\")","v":""},{"$f":"IF(DataLog!$C1072=\"Log value\",DataLog!S1072,\"\")","v":""},{"$f":"IF(DataLog!$C1072=\"Log value\",DataLog!T1072,\"\")","v":""},{"$f":"IF(DataLog!$C1072=\"Log value\",DataLog!U1072,\"\")","v":""},{"$f":"IF(DataLog!$C1072=\"Log value\",DataLog!V1072,\"\")","v":""},{"$f":"IF(DataLog!$C1072=\"Log value\",DataLog!W1072,\"\")","v":""},{"$f":"IF(DataLog!$C1072=\"Log value\",DataLog!X1072,\"\")","v":""},{"$f":"IF(DataLog!$C1072=\"Log value\",DataLog!Y1072,\"\")","v":""},{"$f":"IF(DataLog!$C1072=\"Log value\",DataLog!Z1072,\"\")","v":""},{"$f":"IF(DataLog!$C1072=\"Log value\",DataLog!AA1072,\"\")","v":""},{"$f":"IF(DataLog!$C1072=\"Log value\",DataLog!AB1072,\"\")","v":""},{"$f":"IF(DataLog!$C1072=\"Log value\",DataLog!AC1072,\"\")","v":""},{"$f":"IF(DataLog!$C1072=\"Log value\",DataLog!AD1072,\"\")","v":""},{"$f":"IF(DataLog!$C1072=\"Log value\",DataLog!AE1072,\"\")","v":""},{"$f":"IF(DataLog!$C1072=\"Log value\",DataLog!AF1072,\"\")","v":""},{"$f":"IF(DataLog!$C1072=\"Log value\",DataLog!AG1072,\"\")","v":""},{"$f":"IF(DataLog!$C1072=\"Log value\",DataLog!AH1072,\"\")","v":""},{"$f":"IF(DataLog!$C1072=\"Log value\",DataLog!AI1072,\"\")","v":""},{"$f":"IF(DataLog!$C1072=\"Log value\",DataLog!AJ1072,\"\")","v":""},{"$f":"IF(DataLog!$C1072=\"Log value\",DataLog!AK1072,\"\")","v":""},{"$f":"IF(DataLog!$C1072=\"Log value\",DataLog!AL1072,\"\")","v":""},{"$f":"IF(DataLog!$C1072=\"Log value\",DataLog!AM1072,\"\")","v":""}]
[null,null,null,null,null,null,{"$f":"IF(DataLog!$C1073=\"Log value\",DataLog!D1073&\"_\"&TEXT(DataLog!B1073,\"åååå-mm-dd\"),\"\")","v":""},{"$f":"IF(DataLog!$C1073=\"Log value\",DataLog!E1073,\"\")","v":""},{"$f":"IF(DataLog!$C1073=\"Log value\",DataLog!F1073,\"\")","v":""},{"$f":"IF(DataLog!$C1073=\"Log value\",DataLog!G1073,\"\")","v":""},{"$f":"IF(DataLog!$C1073=\"Log value\",DataLog!H1073,\"\")","v":""},{"$f":"IF(DataLog!$C1073=\"Log value\",DataLog!I1073,\"\")","v":""},{"$f":"IF(DataLog!$C1073=\"Log value\",DataLog!J1073,\"\")","v":""},{"$f":"IF(DataLog!$C1073=\"Log value\",DataLog!K1073,\"\")","v":""},{"$f":"IF(DataLog!$C1073=\"Log value\",DataLog!L1073,\"\")","v":""},{"$f":"IF(DataLog!$C1073=\"Log value\",DataLog!M1073,\"\")","v":""},{"$f":"IF(DataLog!$C1073=\"Log value\",DataLog!N1073,\"\")","v":""},{"$f":"IF(DataLog!$C1073=\"Log value\",DataLog!O1073,\"\")","v":""},{"$f":"IF(DataLog!$C1073=\"Log value\",DataLog!P1073,\"\")","v":""},{"$f":"IF(DataLog!$C1073=\"Log value\",DataLog!Q1073,\"\")","v":""},{"$f":"IF(DataLog!$C1073=\"Log value\",DataLog!R1073,\"\")","v":""},{"$f":"IF(DataLog!$C1073=\"Log value\",DataLog!S1073,\"\")","v":""},{"$f":"IF(DataLog!$C1073=\"Log value\",DataLog!T1073,\"\")","v":""},{"$f":"IF(DataLog!$C1073=\"Log value\",DataLog!U1073,\"\")","v":""},{"$f":"IF(DataLog!$C1073=\"Log value\",DataLog!V1073,\"\")","v":""},{"$f":"IF(DataLog!$C1073=\"Log value\",DataLog!W1073,\"\")","v":""},{"$f":"IF(DataLog!$C1073=\"Log value\",DataLog!X1073,\"\")","v":""},{"$f":"IF(DataLog!$C1073=\"Log value\",DataLog!Y1073,\"\")","v":""},{"$f":"IF(DataLog!$C1073=\"Log value\",DataLog!Z1073,\"\")","v":""},{"$f":"IF(DataLog!$C1073=\"Log value\",DataLog!AA1073,\"\")","v":""},{"$f":"IF(DataLog!$C1073=\"Log value\",DataLog!AB1073,\"\")","v":""},{"$f":"IF(DataLog!$C1073=\"Log value\",DataLog!AC1073,\"\")","v":""},{"$f":"IF(DataLog!$C1073=\"Log value\",DataLog!AD1073,\"\")","v":""},{"$f":"IF(DataLog!$C1073=\"Log value\",DataLog!AE1073,\"\")","v":""},{"$f":"IF(DataLog!$C1073=\"Log value\",DataLog!AF1073,\"\")","v":""},{"$f":"IF(DataLog!$C1073=\"Log value\",DataLog!AG1073,\"\")","v":""},{"$f":"IF(DataLog!$C1073=\"Log value\",DataLog!AH1073,\"\")","v":""},{"$f":"IF(DataLog!$C1073=\"Log value\",DataLog!AI1073,\"\")","v":""},{"$f":"IF(DataLog!$C1073=\"Log value\",DataLog!AJ1073,\"\")","v":""},{"$f":"IF(DataLog!$C1073=\"Log value\",DataLog!AK1073,\"\")","v":""},{"$f":"IF(DataLog!$C1073=\"Log value\",DataLog!AL1073,\"\")","v":""},{"$f":"IF(DataLog!$C1073=\"Log value\",DataLog!AM1073,\"\")","v":""}]
[null,null,null,null,null,null,{"$f":"IF(DataLog!$C1076=\"Log value\",DataLog!D1076&\"_\"&TEXT(DataLog!B1076,\"åååå-mm-dd\"),\"\")","v":""},{"$f":"IF(DataLog!$C1076=\"Log value\",DataLog!E1076,\"\")","v":""},{"$f":"IF(DataLog!$C1076=\"Log value\",DataLog!F1076,\"\")","v":""},{"$f":"IF(DataLog!$C1076=\"Log value\",DataLog!G1076,\"\")","v":""},{"$f":"IF(DataLog!$C1076=\"Log value\",DataLog!H1076,\"\")","v":""},{"$f":"IF(DataLog!$C1076=\"Log value\",DataLog!I1076,\"\")","v":""},{"$f":"IF(DataLog!$C1076=\"Log value\",DataLog!J1076,\"\")","v":""},{"$f":"IF(DataLog!$C1076=\"Log value\",DataLog!K1076,\"\")","v":""},{"$f":"IF(DataLog!$C1076=\"Log value\",DataLog!L1076,\"\")","v":""},{"$f":"IF(DataLog!$C1076=\"Log value\",DataLog!M1076,\"\")","v":""},{"$f":"IF(DataLog!$C1076=\"Log value\",DataLog!N1076,\"\")","v":""},{"$f":"IF(DataLog!$C1076=\"Log value\",DataLog!O1076,\"\")","v":""},{"$f":"IF(DataLog!$C1076=\"Log value\",DataLog!P1076,\"\")","v":""},{"$f":"IF(DataLog!$C1076=\"Log value\",DataLog!Q1076,\"\")","v":""},{"$f":"IF(DataLog!$C1076=\"Log value\",DataLog!R1076,\"\")","v":""},{"$f":"IF(DataLog!$C1076=\"Log value\",DataLog!S1076,\"\")","v":""},{"$f":"IF(DataLog!$C1076=\"Log value\",DataLog!T1076,\"\")","v":""},{"$f":"IF(DataLog!$C1076=\"Log value\",DataLog!U1076,\"\")","v":""},{"$f":"IF(DataLog!$C1076=\"Log value\",DataLog!V1076,\"\")","v":""},{"$f":"IF(DataLog!$C1076=\"Log value\",DataLog!W1076,\"\")","v":""},{"$f":"IF(DataLog!$C1076=\"Log value\",DataLog!X1076,\"\")","v":""},{"$f":"IF(DataLog!$C1076=\"Log value\",DataLog!Y1076,\"\")","v":""},{"$f":"IF(DataLog!$C1076=\"Log value\",DataLog!Z1076,\"\")","v":""},{"$f":"IF(DataLog!$C1076=\"Log value\",DataLog!AA1076,\"\")","v":""},{"$f":"IF(DataLog!$C1076=\"Log value\",DataLog!AB1076,\"\")","v":""},{"$f":"IF(DataLog!$C1076=\"Log value\",DataLog!AC1076,\"\")","v":""},{"$f":"IF(DataLog!$C1076=\"Log value\",DataLog!AD1076,\"\")","v":""},{"$f":"IF(DataLog!$C1076=\"Log value\",DataLog!AE1076,\"\")","v":""},{"$f":"IF(DataLog!$C1076=\"Log value\",DataLog!AF1076,\"\")","v":""},{"$f":"IF(DataLog!$C1076=\"Log value\",DataLog!AG1076,\"\")","v":""},{"$f":"IF(DataLog!$C1076=\"Log value\",DataLog!AH1076,\"\")","v":""},{"$f":"IF(DataLog!$C1076=\"Log value\",DataLog!AI1076,\"\")","v":""},{"$f":"IF(DataLog!$C1076=\"Log value\",DataLog!AJ1076,\"\")","v":""},{"$f":"IF(DataLog!$C1076=\"Log value\",DataLog!AK1076,\"\")","v":""},{"$f":"IF(DataLog!$C1076=\"Log value\",DataLog!AL1076,\"\")","v":""},{"$f":"IF(DataLog!$C1076=\"Log value\",DataLog!AM1076,\"\")","v":""}]
[null,null,null,null,null,null,{"$f":"IF(DataLog!$C1078=\"Log value\",DataLog!D1078&\"_\"&TEXT(DataLog!B1078,\"åååå-mm-dd\"),\"\")","v":""},{"$f":"IF(DataLog!$C1078=\"Log value\",DataLog!E1078,\"\")","v":""},{"$f":"IF(DataLog!$C1078=\"Log value\",DataLog!F1078,\"\")","v":""},{"$f":"IF(DataLog!$C1078=\"Log value\",DataLog!G1078,\"\")","v":""},{"$f":"IF(DataLog!$C1078=\"Log value\",DataLog!H1078,\"\")","v":""},{"$f":"IF(DataLog!$C1078=\"Log value\",DataLog!I1078,\"\")","v":""},{"$f":"IF(DataLog!$C1078=\"Log value\",DataLog!J1078,\"\")","v":""},{"$f":"IF(DataLog!$C1078=\"Log value\",DataLog!K1078,\"\")","v":""},{"$f":"IF(DataLog!$C1078=\"Log value\",DataLog!L1078,\"\")","v":""},{"$f":"IF(DataLog!$C1078=\"Log value\",DataLog!M1078,\"\")","v":""},{"$f":"IF(DataLog!$C1078=\"Log value\",DataLog!N1078,\"\")","v":""},{"$f":"IF(DataLog!$C1078=\"Log value\",DataLog!O1078,\"\")","v":""},{"$f":"IF(DataLog!$C1078=\"Log value\",DataLog!P1078,\"\")","v":""},{"$f":"IF(DataLog!$C1078=\"Log value\",DataLog!Q1078,\"\")","v":""},{"$f":"IF(DataLog!$C1078=\"Log value\",DataLog!R1078,\"\")","v":""},{"$f":"IF(DataLog!$C1078=\"Log value\",DataLog!S1078,\"\")","v":""},{"$f":"IF(DataLog!$C1078=\"Log value\",DataLog!T1078,\"\")","v":""},{"$f":"IF(DataLog!$C1078=\"Log value\",DataLog!U1078,\"\")","v":""},{"$f":"IF(DataLog!$C1078=\"Log value\",DataLog!V1078,\"\")","v":""},{"$f":"IF(DataLog!$C1078=\"Log value\",DataLog!W1078,\"\")","v":""},{"$f":"IF(DataLog!$C1078=\"Log value\",DataLog!X1078,\"\")","v":""},{"$f":"IF(DataLog!$C1078=\"Log value\",DataLog!Y1078,\"\")","v":""},{"$f":"IF(DataLog!$C1078=\"Log value\",DataLog!Z1078,\"\")","v":""},{"$f":"IF(DataLog!$C1078=\"Log value\",DataLog!AA1078,\"\")","v":""},{"$f":"IF(DataLog!$C1078=\"Log value\",DataLog!AB1078,\"\")","v":""},{"$f":"IF(DataLog!$C1078=\"Log value\",DataLog!AC1078,\"\")","v":""},{"$f":"IF(DataLog!$C1078=\"Log value\",DataLog!AD1078,\"\")","v":""},{"$f":"IF(DataLog!$C1078=\"Log value\",DataLog!AE1078,\"\")","v":""},{"$f":"IF(DataLog!$C1078=\"Log value\",DataLog!AF1078,\"\")","v":""},{"$f":"IF(DataLog!$C1078=\"Log value\",DataLog!AG1078,\"\")","v":""},{"$f":"IF(DataLog!$C1078=\"Log value\",DataLog!AH1078,\"\")","v":""},{"$f":"IF(DataLog!$C1078=\"Log value\",DataLog!AI1078,\"\")","v":""},{"$f":"IF(DataLog!$C1078=\"Log value\",DataLog!AJ1078,\"\")","v":""},{"$f":"IF(DataLog!$C1078=\"Log value\",DataLog!AK1078,\"\")","v":""},{"$f":"IF(DataLog!$C1078=\"Log value\",DataLog!AL1078,\"\")","v":""},{"$f":"IF(DataLog!$C1078=\"Log value\",DataLog!AM1078,\"\")","v":""}]
[null,null,null,null,null,null,{"$f":"IF(DataLog!$C1081=\"Log value\",DataLog!D1081&\"_\"&TEXT(DataLog!B1081,\"åååå-mm-dd\"),\"\")","v":""},{"$f":"IF(DataLog!$C1081=\"Log value\",DataLog!E1081,\"\")","v":""},{"$f":"IF(DataLog!$C1081=\"Log value\",DataLog!F1081,\"\")","v":""},{"$f":"IF(DataLog!$C1081=\"Log value\",DataLog!G1081,\"\")","v":""},{"$f":"IF(DataLog!$C1081=\"Log value\",DataLog!H1081,\"\")","v":""},{"$f":"IF(DataLog!$C1081=\"Log value\",DataLog!I1081,\"\")","v":""},{"$f":"IF(DataLog!$C1081=\"Log value\",DataLog!J1081,\"\")","v":""},{"$f":"IF(DataLog!$C1081=\"Log value\",DataLog!K1081,\"\")","v":""},{"$f":"IF(DataLog!$C1081=\"Log value\",DataLog!L1081,\"\")","v":""},{"$f":"IF(DataLog!$C1081=\"Log value\",DataLog!M1081,\"\")","v":""},{"$f":"IF(DataLog!$C1081=\"Log value\",DataLog!N1081,\"\")","v":""},{"$f":"IF(DataLog!$C1081=\"Log value\",DataLog!O1081,\"\")","v":""},{"$f":"IF(DataLog!$C1081=\"Log value\",DataLog!P1081,\"\")","v":""},{"$f":"IF(DataLog!$C1081=\"Log value\",DataLog!Q1081,\"\")","v":""},{"$f":"IF(DataLog!$C1081=\"Log value\",DataLog!R1081,\"\")","v":""},{"$f":"IF(DataLog!$C1081=\"Log value\",DataLog!S1081,\"\")","v":""},{"$f":"IF(DataLog!$C1081=\"Log value\",DataLog!T1081,\"\")","v":""},{"$f":"IF(DataLog!$C1081=\"Log value\",DataLog!U1081,\"\")","v":""},{"$f":"IF(DataLog!$C1081=\"Log value\",DataLog!V1081,\"\")","v":""},{"$f":"IF(DataLog!$C1081=\"Log value\",DataLog!W1081,\"\")","v":""},{"$f":"IF(DataLog!$C1081=\"Log value\",DataLog!X1081,\"\")","v":""},{"$f":"IF(DataLog!$C1081=\"Log value\",DataLog!Y1081,\"\")","v":""},{"$f":"IF(DataLog!$C1081=\"Log value\",DataLog!Z1081,\"\")","v":""},{"$f":"IF(DataLog!$C1081=\"Log value\",DataLog!AA1081,\"\")","v":""},{"$f":"IF(DataLog!$C1081=\"Log value\",DataLog!AB1081,\"\")","v":""},{"$f":"IF(DataLog!$C1081=\"Log value\",DataLog!AC1081,\"\")","v":""},{"$f":"IF(DataLog!$C1081=\"Log value\",DataLog!AD1081,\"\")","v":""},{"$f":"IF(DataLog!$C1081=\"Log value\",DataLog!AE1081,\"\")","v":""},{"$f":"IF(DataLog!$C1081=\"Log value\",DataLog!AF1081,\"\")","v":""},{"$f":"IF(DataLog!$C1081=\"Log value\",DataLog!AG1081,\"\")","v":""},{"$f":"IF(DataLog!$C1081=\"Log value\",DataLog!AH1081,\"\")","v":""},{"$f":"IF(DataLog!$C1081=\"Log value\",DataLog!AI1081,\"\")","v":""},{"$f":"IF(DataLog!$C1081=\"Log value\",DataLog!AJ1081,\"\")","v":""},{"$f":"IF(DataLog!$C1081=\"Log value\",DataLog!AK1081,\"\")","v":""},{"$f":"IF(DataLog!$C1081=\"Log value\",DataLog!AL1081,\"\")","v":""},{"$f":"IF(DataLog!$C1081=\"Log value\",DataLog!AM1081,\"\")","v":""}]
[null,null,null,null,null,null,{"$f":"IF(DataLog!$C1082=\"Log value\",DataLog!D1082&\"_\"&TEXT(DataLog!B1082,\"åååå-mm-dd\"),\"\")","v":""},{"$f":"IF(DataLog!$C1082=\"Log value\",DataLog!E1082,\"\")","v":""},{"$f":"IF(DataLog!$C1082=\"Log value\",DataLog!F1082,\"\")","v":""},{"$f":"IF(DataLog!$C1082=\"Log value\",DataLog!G1082,\"\")","v":""},{"$f":"IF(DataLog!$C1082=\"Log value\",DataLog!H1082,\"\")","v":""},{"$f":"IF(DataLog!$C1082=\"Log value\",DataLog!I1082,\"\")","v":""},{"$f":"IF(DataLog!$C1082=\"Log value\",DataLog!J1082,\"\")","v":""},{"$f":"IF(DataLog!$C1082=\"Log value\",DataLog!K1082,\"\")","v":""},{"$f":"IF(DataLog!$C1082=\"Log value\",DataLog!L1082,\"\")","v":""},{"$f":"IF(DataLog!$C1082=\"Log value\",DataLog!M1082,\"\")","v":""},{"$f":"IF(DataLog!$C1082=\"Log value\",DataLog!N1082,\"\")","v":""},{"$f":"IF(DataLog!$C1082=\"Log value\",DataLog!O1082,\"\")","v":""},{"$f":"IF(DataLog!$C1082=\"Log value\",DataLog!P1082,\"\")","v":""},{"$f":"IF(DataLog!$C1082=\"Log value\",DataLog!Q1082,\"\")","v":""},{"$f":"IF(DataLog!$C1082=\"Log value\",DataLog!R1082,\"\")","v":""},{"$f":"IF(DataLog!$C1082=\"Log value\",DataLog!S1082,\"\")","v":""},{"$f":"IF(DataLog!$C1082=\"Log value\",DataLog!T1082,\"\")","v":""},{"$f":"IF(DataLog!$C1082=\"Log value\",DataLog!U1082,\"\")","v":""},{"$f":"IF(DataLog!$C1082=\"Log value\",DataLog!V1082,\"\")","v":""},{"$f":"IF(DataLog!$C1082=\"Log value\",DataLog!W1082,\"\")","v":""},{"$f":"IF(DataLog!$C1082=\"Log value\",DataLog!X1082,\"\")","v":""},{"$f":"IF(DataLog!$C1082=\"Log value\",DataLog!Y1082,\"\")","v":""},{"$f":"IF(DataLog!$C1082=\"Log value\",DataLog!Z1082,\"\")","v":""},{"$f":"IF(DataLog!$C1082=\"Log value\",DataLog!AA1082,\"\")","v":""},{"$f":"IF(DataLog!$C1082=\"Log value\",DataLog!AB1082,\"\")","v":""},{"$f":"IF(DataLog!$C1082=\"Log value\",DataLog!AC1082,\"\")","v":""},{"$f":"IF(DataLog!$C1082=\"Log value\",DataLog!AD1082,\"\")","v":""},{"$f":"IF(DataLog!$C1082=\"Log value\",DataLog!AE1082,\"\")","v":""},{"$f":"IF(DataLog!$C1082=\"Log value\",DataLog!AF1082,\"\")","v":""},{"$f":"IF(DataLog!$C1082=\"Log value\",DataLog!AG1082,\"\")","v":""},{"$f":"IF(DataLog!$C1082=\"Log value\",DataLog!AH1082,\"\")","v":""},{"$f":"IF(DataLog!$C1082=\"Log value\",DataLog!AI1082,\"\")","v":""},{"$f":"IF(DataLog!$C1082=\"Log value\",DataLog!AJ1082,\"\")","v":""},{"$f":"IF(DataLog!$C1082=\"Log value\",DataLog!AK1082,\"\")","v":""},{"$f":"IF(DataLog!$C1082=\"Log value\",DataLog!AL1082,\"\")","v":""},{"$f":"IF(DataLog!$C1082=\"Log value\",DataLog!AM1082,\"\")","v":""}]
[null,null,null,null,null,null,{"$f":"IF(DataLog!$C1085=\"Log value\",DataLog!D1085&\"_\"&TEXT(DataLog!B1085,\"åååå-mm-dd\"),\"\")","v":""},{"$f":"IF(DataLog!$C1085=\"Log value\",DataLog!E1085,\"\")","v":""},{"$f":"IF(DataLog!$C1085=\"Log value\",DataLog!F1085,\"\")","v":""},{"$f":"IF(DataLog!$C1085=\"Log value\",DataLog!G1085,\"\")","v":""},{"$f":"IF(DataLog!$C1085=\"Log value\",DataLog!H1085,\"\")","v":""},{"$f":"IF(DataLog!$C1085=\"Log value\",DataLog!I1085,\"\")","v":""},{"$f":"IF(DataLog!$C1085=\"Log value\",DataLog!J1085,\"\")","v":""},{"$f":"IF(DataLog!$C1085=\"Log value\",DataLog!K1085,\"\")","v":""},{"$f":"IF(DataLog!$C1085=\"Log value\",DataLog!L1085,\"\")","v":""},{"$f":"IF(DataLog!$C1085=\"Log value\",DataLog!M1085,\"\")","v":""},{"$f":"IF(DataLog!$C1085=\"Log value\",DataLog!N1085,\"\")","v":""},{"$f":"IF(DataLog!$C1085=\"Log value\",DataLog!O1085,\"\")","v":""},{"$f":"IF(DataLog!$C1085=\"Log value\",DataLog!P1085,\"\")","v":""},{"$f":"IF(DataLog!$C1085=\"Log value\",DataLog!Q1085,\"\")","v":""},{"$f":"IF(DataLog!$C1085=\"Log value\",DataLog!R1085,\"\")","v":""},{"$f":"IF(DataLog!$C1085=\"Log value\",DataLog!S1085,\"\")","v":""},{"$f":"IF(DataLog!$C1085=\"Log value\",DataLog!T1085,\"\")","v":""},{"$f":"IF(DataLog!$C1085=\"Log value\",DataLog!U1085,\"\")","v":""},{"$f":"IF(DataLog!$C1085=\"Log value\",DataLog!V1085,\"\")","v":""},{"$f":"IF(DataLog!$C1085=\"Log value\",DataLog!W1085,\"\")","v":""},{"$f":"IF(DataLog!$C1085=\"Log value\",DataLog!X1085,\"\")","v":""},{"$f":"IF(DataLog!$C1085=\"Log value\",DataLog!Y1085,\"\")","v":""},{"$f":"IF(DataLog!$C1085=\"Log value\",DataLog!Z1085,\"\")","v":""},{"$f":"IF(DataLog!$C1085=\"Log value\",DataLog!AA1085,\"\")","v":""},{"$f":"IF(DataLog!$C1085=\"Log value\",DataLog!AB1085,\"\")","v":""},{"$f":"IF(DataLog!$C1085=\"Log value\",DataLog!AC1085,\"\")","v":""},{"$f":"IF(DataLog!$C1085=\"Log value\",DataLog!AD1085,\"\")","v":""},{"$f":"IF(DataLog!$C1085=\"Log value\",DataLog!AE1085,\"\")","v":""},{"$f":"IF(DataLog!$C1085=\"Log value\",DataLog!AF1085,\"\")","v":""},{"$f":"IF(DataLog!$C1085=\"Log value\",DataLog!AG1085,\"\")","v":""},{"$f":"IF(DataLog!$C1085=\"Log value\",DataLog!AH1085,\"\")","v":""},{"$f":"IF(DataLog!$C1085=\"Log value\",DataLog!AI1085,\"\")","v":""},{"$f":"IF(DataLog!$C1085=\"Log value\",DataLog!AJ1085,\"\")","v":""},{"$f":"IF(DataLog!$C1085=\"Log value\",DataLog!AK1085,\"\")","v":""},{"$f":"IF(DataLog!$C1085=\"Log value\",DataLog!AL1085,\"\")","v":""},{"$f":"IF(DataLog!$C1085=\"Log value\",DataLog!AM1085,\"\")","v":""}]
[null,null,null,null,null,null,{"$f":"IF(DataLog!$C1086=\"Log value\",DataLog!D1086&\"_\"&TEXT(DataLog!B1086,\"åååå-mm-dd\"),\"\")","v":""},{"$f":"IF(DataLog!$C1086=\"Log value\",DataLog!E1086,\"\")","v":""},{"$f":"IF(DataLog!$C1086=\"Log value\",DataLog!F1086,\"\")","v":""},{"$f":"IF(DataLog!$C1086=\"Log value\",DataLog!G1086,\"\")","v":""},{"$f":"IF(DataLog!$C1086=\"Log value\",DataLog!H1086,\"\")","v":""},{"$f":"IF(DataLog!$C1086=\"Log value\",DataLog!I1086,\"\")","v":""},{"$f":"IF(DataLog!$C1086=\"Log value\",DataLog!J1086,\"\")","v":""},{"$f":"IF(DataLog!$C1086=\"Log value\",DataLog!K1086,\"\")","v":""},{"$f":"IF(DataLog!$C1086=\"Log value\",DataLog!L1086,\"\")","v":""},{"$f":"IF(DataLog!$C1086=\"Log value\",DataLog!M1086,\"\")","v":""},{"$f":"IF(DataLog!$C1086=\"Log value\",DataLog!N1086,\"\")","v":""},{"$f":"IF(DataLog!$C1086=\"Log value\",DataLog!O1086,\"\")","v":""},{"$f":"IF(DataLog!$C1086=\"Log value\",DataLog!P1086,\"\")","v":""},{"$f":"IF(DataLog!$C1086=\"Log value\",DataLog!Q1086,\"\")","v":""},{"$f":"IF(DataLog!$C1086=\"Log value\",DataLog!R1086,\"\")","v":""},{"$f":"IF(DataLog!$C1086=\"Log value\",DataLog!S1086,\"\")","v":""},{"$f":"IF(DataLog!$C1086=\"Log value\",DataLog!T1086,\"\")","v":""},{"$f":"IF(DataLog!$C1086=\"Log value\",DataLog!U1086,\"\")","v":""},{"$f":"IF(DataLog!$C1086=\"Log value\",DataLog!V1086,\"\")","v":""},{"$f":"IF(DataLog!$C1086=\"Log value\",DataLog!W1086,\"\")","v":""},{"$f":"IF(DataLog!$C1086=\"Log value\",DataLog!X1086,\"\")","v":""},{"$f":"IF(DataLog!$C1086=\"Log value\",DataLog!Y1086,\"\")","v":""},{"$f":"IF(DataLog!$C1086=\"Log value\",DataLog!Z1086,\"\")","v":""},{"$f":"IF(DataLog!$C1086=\"Log value\",DataLog!AA1086,\"\")","v":""},{"$f":"IF(DataLog!$C1086=\"Log value\",DataLog!AB1086,\"\")","v":""},{"$f":"IF(DataLog!$C1086=\"Log value\",DataLog!AC1086,\"\")","v":""},{"$f":"IF(DataLog!$C1086=\"Log value\",DataLog!AD1086,\"\")","v":""},{"$f":"IF(DataLog!$C1086=\"Log value\",DataLog!AE1086,\"\")","v":""},{"$f":"IF(DataLog!$C1086=\"Log value\",DataLog!AF1086,\"\")","v":""},{"$f":"IF(DataLog!$C1086=\"Log value\",DataLog!AG1086,\"\")","v":""},{"$f":"IF(DataLog!$C1086=\"Log value\",DataLog!AH1086,\"\")","v":""},{"$f":"IF(DataLog!$C1086=\"Log value\",DataLog!AI1086,\"\")","v":""},{"$f":"IF(DataLog!$C1086=\"Log value\",DataLog!AJ1086,\"\")","v":""},{"$f":"IF(DataLog!$C1086=\"Log value\",DataLog!AK1086,\"\")","v":""},{"$f":"IF(DataLog!$C1086=\"Log value\",DataLog!AL1086,\"\")","v":""},{"$f":"IF(DataLog!$C1086=\"Log value\",DataLog!AM1086,\"\")","v":""}]
[null,null,null,null,null,null,{"$f":"IF(DataLog!$C1090=\"Log value\",DataLog!D1090&\"_\"&TEXT(DataLog!B1090,\"åååå-mm-dd\"),\"\")","v":""},{"$f":"IF(DataLog!$C1090=\"Log value\",DataLog!E1090,\"\")","v":""},{"$f":"IF(DataLog!$C1090=\"Log value\",DataLog!F1090,\"\")","v":""},{"$f":"IF(DataLog!$C1090=\"Log value\",DataLog!G1090,\"\")","v":""},{"$f":"IF(DataLog!$C1090=\"Log value\",DataLog!H1090,\"\")","v":""},{"$f":"IF(DataLog!$C1090=\"Log value\",DataLog!I1090,\"\")","v":""},{"$f":"IF(DataLog!$C1090=\"Log value\",DataLog!J1090,\"\")","v":""},{"$f":"IF(DataLog!$C1090=\"Log value\",DataLog!K1090,\"\")","v":""},{"$f":"IF(DataLog!$C1090=\"Log value\",DataLog!L1090,\"\")","v":""},{"$f":"IF(DataLog!$C1090=\"Log value\",DataLog!M1090,\"\")","v":""},{"$f":"IF(DataLog!$C1090=\"Log value\",DataLog!N1090,\"\")","v":""},{"$f":"IF(DataLog!$C1090=\"Log value\",DataLog!O1090,\"\")","v":""},{"$f":"IF(DataLog!$C1090=\"Log value\",DataLog!P1090,\"\")","v":""},{"$f":"IF(DataLog!$C1090=\"Log value\",DataLog!Q1090,\"\")","v":""},{"$f":"IF(DataLog!$C1090=\"Log value\",DataLog!R1090,\"\")","v":""},{"$f":"IF(DataLog!$C1090=\"Log value\",DataLog!S1090,\"\")","v":""},{"$f":"IF(DataLog!$C1090=\"Log value\",DataLog!T1090,\"\")","v":""},{"$f":"IF(DataLog!$C1090=\"Log value\",DataLog!U1090,\"\")","v":""},{"$f":"IF(DataLog!$C1090=\"Log value\",DataLog!V1090,\"\")","v":""},{"$f":"IF(DataLog!$C1090=\"Log value\",DataLog!W1090,\"\")","v":""},{"$f":"IF(DataLog!$C1090=\"Log value\",DataLog!X1090,\"\")","v":""},{"$f":"IF(DataLog!$C1090=\"Log value\",DataLog!Y1090,\"\")","v":""},{"$f":"IF(DataLog!$C1090=\"Log value\",DataLog!Z1090,\"\")","v":""},{"$f":"IF(DataLog!$C1090=\"Log value\",DataLog!AA1090,\"\")","v":""},{"$f":"IF(DataLog!$C1090=\"Log value\",DataLog!AB1090,\"\")","v":""},{"$f":"IF(DataLog!$C1090=\"Log value\",DataLog!AC1090,\"\")","v":""},{"$f":"IF(DataLog!$C1090=\"Log value\",DataLog!AD1090,\"\")","v":""},{"$f":"IF(DataLog!$C1090=\"Log value\",DataLog!AE1090,\"\")","v":""},{"$f":"IF(DataLog!$C1090=\"Log value\",DataLog!AF1090,\"\")","v":""},{"$f":"IF(DataLog!$C1090=\"Log value\",DataLog!AG1090,\"\")","v":""},{"$f":"IF(DataLog!$C1090=\"Log value\",DataLog!AH1090,\"\")","v":""},{"$f":"IF(DataLog!$C1090=\"Log value\",DataLog!AI1090,\"\")","v":""},{"$f":"IF(DataLog!$C1090=\"Log value\",DataLog!AJ1090,\"\")","v":""},{"$f":"IF(DataLog!$C1090=\"Log value\",DataLog!AK1090,\"\")","v":""},{"$f":"IF(DataLog!$C1090=\"Log value\",DataLog!AL1090,\"\")","v":""},{"$f":"IF(DataLog!$C1090=\"Log value\",DataLog!AM1090,\"\")","v":""}]
[null,null,null,null,null,null,{"$f":"IF(DataLog!$C1091=\"Log value\",DataLog!D1091&\"_\"&TEXT(DataLog!B1091,\"åååå-mm-dd\"),\"\")","v":""},{"$f":"IF(DataLog!$C1091=\"Log value\",DataLog!E1091,\"\")","v":""},{"$f":"IF(DataLog!$C1091=\"Log value\",DataLog!F1091,\"\")","v":""},{"$f":"IF(DataLog!$C1091=\"Log value\",DataLog!G1091,\"\")","v":""},{"$f":"IF(DataLog!$C1091=\"Log value\",DataLog!H1091,\"\")","v":""},{"$f":"IF(DataLog!$C1091=\"Log value\",DataLog!I1091,\"\")","v":""},{"$f":"IF(DataLog!$C1091=\"Log value\",DataLog!J1091,\"\")","v":""},{"$f":"IF(DataLog!$C1091=\"Log value\",DataLog!K1091,\"\")","v":""},{"$f":"IF(DataLog!$C1091=\"Log value\",DataLog!L1091,\"\")","v":""},{"$f":"IF(DataLog!$C1091=\"Log value\",DataLog!M1091,\"\")","v":""},{"$f":"IF(DataLog!$C1091=\"Log value\",DataLog!N1091,\"\")","v":""},{"$f":"IF(DataLog!$C1091=\"Log value\",DataLog!O1091,\"\")","v":""},{"$f":"IF(DataLog!$C1091=\"Log value\",DataLog!P1091,\"\")","v":""},{"$f":"IF(DataLog!$C1091=\"Log value\",DataLog!Q1091,\"\")","v":""},{"$f":"IF(DataLog!$C1091=\"Log value\",DataLog!R1091,\"\")","v":""},{"$f":"IF(DataLog!$C1091=\"Log value\",DataLog!S1091,\"\")","v":""},{"$f":"IF(DataLog!$C1091=\"Log value\",DataLog!T1091,\"\")","v":""},{"$f":"IF(DataLog!$C1091=\"Log value\",DataLog!U1091,\"\")","v":""},{"$f":"IF(DataLog!$C1091=\"Log value\",DataLog!V1091,\"\")","v":""},{"$f":"IF(DataLog!$C1091=\"Log value\",DataLog!W1091,\"\")","v":""},{"$f":"IF(DataLog!$C1091=\"Log value\",DataLog!X1091,\"\")","v":""},{"$f":"IF(DataLog!$C1091=\"Log value\",DataLog!Y1091,\"\")","v":""},{"$f":"IF(DataLog!$C1091=\"Log value\",DataLog!Z1091,\"\")","v":""},{"$f":"IF(DataLog!$C1091=\"Log value\",DataLog!AA1091,\"\")","v":""},{"$f":"IF(DataLog!$C1091=\"Log value\",DataLog!AB1091,\"\")","v":""},{"$f":"IF(DataLog!$C1091=\"Log value\",DataLog!AC1091,\"\")","v":""},{"$f":"IF(DataLog!$C1091=\"Log value\",DataLog!AD1091,\"\")","v":""},{"$f":"IF(DataLog!$C1091=\"Log value\",DataLog!AE1091,\"\")","v":""},{"$f":"IF(DataLog!$C1091=\"Log value\",DataLog!AF1091,\"\")","v":""},{"$f":"IF(DataLog!$C1091=\"Log value\",DataLog!AG1091,\"\")","v":""},{"$f":"IF(DataLog!$C1091=\"Log value\",DataLog!AH1091,\"\")","v":""},{"$f":"IF(DataLog!$C1091=\"Log value\",DataLog!AI1091,\"\")","v":""},{"$f":"IF(DataLog!$C1091=\"Log value\",DataLog!AJ1091,\"\")","v":""},{"$f":"IF(DataLog!$C1091=\"Log value\",DataLog!AK1091,\"\")","v":""},{"$f":"IF(DataLog!$C1091=\"Log value\",DataLog!AL1091,\"\")","v":""},{"$f":"IF(DataLog!$C1091=\"Log value\",DataLog!AM1091,\"\")","v":""}]
[null,null,null,null,null,null,{"$f":"IF(DataLog!$C1094=\"Log value\",DataLog!D1094&\"_\"&TEXT(DataLog!B1094,\"åååå-mm-dd\"),\"\")","v":""},{"$f":"IF(DataLog!$C1094=\"Log value\",DataLog!E1094,\"\")","v":""},{"$f":"IF(DataLog!$C1094=\"Log value\",DataLog!F1094,\"\")","v":""},{"$f":"IF(DataLog!$C1094=\"Log value\",DataLog!G1094,\"\")","v":""},{"$f":"IF(DataLog!$C1094=\"Log value\",DataLog!H1094,\"\")","v":""},{"$f":"IF(DataLog!$C1094=\"Log value\",DataLog!I1094,\"\")","v":""},{"$f":"IF(DataLog!$C1094=\"Log value\",DataLog!J1094,\"\")","v":""},{"$f":"IF(DataLog!$C1094=\"Log value\",DataLog!K1094,\"\")","v":""},{"$f":"IF(DataLog!$C1094=\"Log value\",DataLog!L1094,\"\")","v":""},{"$f":"IF(DataLog!$C1094=\"Log value\",DataLog!M1094,\"\")","v":""},{"$f":"IF(DataLog!$C1094=\"Log value\",DataLog!N1094,\"\")","v":""},{"$f":"IF(DataLog!$C1094=\"Log value\",DataLog!O1094,\"\")","v":""},{"$f":"IF(DataLog!$C1094=\"Log value\",DataLog!P1094,\"\")","v":""},{"$f":"IF(DataLog!$C1094=\"Log value\",DataLog!Q1094,\"\")","v":""},{"$f":"IF(DataLog!$C1094=\"Log value\",DataLog!R1094,\"\")","v":""},{"$f":"IF(DataLog!$C1094=\"Log value\",DataLog!S1094,\"\")","v":""},{"$f":"IF(DataLog!$C1094=\"Log value\",DataLog!T1094,\"\")","v":""},{"$f":"IF(DataLog!$C1094=\"Log value\",DataLog!U1094,\"\")","v":""},{"$f":"IF(DataLog!$C1094=\"Log value\",DataLog!V1094,\"\")","v":""},{"$f":"IF(DataLog!$C1094=\"Log value\",DataLog!W1094,\"\")","v":""},{"$f":"IF(DataLog!$C1094=\"Log value\",DataLog!X1094,\"\")","v":""},{"$f":"IF(DataLog!$C1094=\"Log value\",DataLog!Y1094,\"\")","v":""},{"$f":"IF(DataLog!$C1094=\"Log value\",DataLog!Z1094,\"\")","v":""},{"$f":"IF(DataLog!$C1094=\"Log value\",DataLog!AA1094,\"\")","v":""},{"$f":"IF(DataLog!$C1094=\"Log value\",DataLog!AB1094,\"\")","v":""},{"$f":"IF(DataLog!$C1094=\"Log value\",DataLog!AC1094,\"\")","v":""},{"$f":"IF(DataLog!$C1094=\"Log value\",DataLog!AD1094,\"\")","v":""},{"$f":"IF(DataLog!$C1094=\"Log value\",DataLog!AE1094,\"\")","v":""},{"$f":"IF(DataLog!$C1094=\"Log value\",DataLog!AF1094,\"\")","v":""},{"$f":"IF(DataLog!$C1094=\"Log value\",DataLog!AG1094,\"\")","v":""},{"$f":"IF(DataLog!$C1094=\"Log value\",DataLog!AH1094,\"\")","v":""},{"$f":"IF(DataLog!$C1094=\"Log value\",DataLog!AI1094,\"\")","v":""},{"$f":"IF(DataLog!$C1094=\"Log value\",DataLog!AJ1094,\"\")","v":""},{"$f":"IF(DataLog!$C1094=\"Log value\",DataLog!AK1094,\"\")","v":""},{"$f":"IF(DataLog!$C1094=\"Log value\",DataLog!AL1094,\"\")","v":""},{"$f":"IF(DataLog!$C1094=\"Log value\",DataLog!AM1094,\"\")","v":""}]
[null,null,null,null,null,null,{"$f":"IF(DataLog!$C1096=\"Log value\",DataLog!D1096&\"_\"&TEXT(DataLog!B1096,\"åååå-mm-dd\"),\"\")","v":""},{"$f":"IF(DataLog!$C1096=\"Log value\",DataLog!E1096,\"\")","v":""},{"$f":"IF(DataLog!$C1096=\"Log value\",DataLog!F1096,\"\")","v":""},{"$f":"IF(DataLog!$C1096=\"Log value\",DataLog!G1096,\"\")","v":""},{"$f":"IF(DataLog!$C1096=\"Log value\",DataLog!H1096,\"\")","v":""},{"$f":"IF(DataLog!$C1096=\"Log value\",DataLog!I1096,\"\")","v":""},{"$f":"IF(DataLog!$C1096=\"Log value\",DataLog!J1096,\"\")","v":""},{"$f":"IF(DataLog!$C1096=\"Log value\",DataLog!K1096,\"\")","v":""},{"$f":"IF(DataLog!$C1096=\"Log value\",DataLog!L1096,\"\")","v":""},{"$f":"IF(DataLog!$C1096=\"Log value\",DataLog!M1096,\"\")","v":""},{"$f":"IF(DataLog!$C1096=\"Log value\",DataLog!N1096,\"\")","v":""},{"$f":"IF(DataLog!$C1096=\"Log value\",DataLog!O1096,\"\")","v":""},{"$f":"IF(DataLog!$C1096=\"Log value\",DataLog!P1096,\"\")","v":""},{"$f":"IF(DataLog!$C1096=\"Log value\",DataLog!Q1096,\"\")","v":""},{"$f":"IF(DataLog!$C1096=\"Log value\",DataLog!R1096,\"\")","v":""},{"$f":"IF(DataLog!$C1096=\"Log value\",DataLog!S1096,\"\")","v":""},{"$f":"IF(DataLog!$C1096=\"Log value\",DataLog!T1096,\"\")","v":""},{"$f":"IF(DataLog!$C1096=\"Log value\",DataLog!U1096,\"\")","v":""},{"$f":"IF(DataLog!$C1096=\"Log value\",DataLog!V1096,\"\")","v":""},{"$f":"IF(DataLog!$C1096=\"Log value\",DataLog!W1096,\"\")","v":""},{"$f":"IF(DataLog!$C1096=\"Log value\",DataLog!X1096,\"\")","v":""},{"$f":"IF(DataLog!$C1096=\"Log value\",DataLog!Y1096,\"\")","v":""},{"$f":"IF(DataLog!$C1096=\"Log value\",DataLog!Z1096,\"\")","v":""},{"$f":"IF(DataLog!$C1096=\"Log value\",DataLog!AA1096,\"\")","v":""},{"$f":"IF(DataLog!$C1096=\"Log value\",DataLog!AB1096,\"\")","v":""},{"$f":"IF(DataLog!$C1096=\"Log value\",DataLog!AC1096,\"\")","v":""},{"$f":"IF(DataLog!$C1096=\"Log value\",DataLog!AD1096,\"\")","v":""},{"$f":"IF(DataLog!$C1096=\"Log value\",DataLog!AE1096,\"\")","v":""},{"$f":"IF(DataLog!$C1096=\"Log value\",DataLog!AF1096,\"\")","v":""},{"$f":"IF(DataLog!$C1096=\"Log value\",DataLog!AG1096,\"\")","v":""},{"$f":"IF(DataLog!$C1096=\"Log value\",DataLog!AH1096,\"\")","v":""},{"$f":"IF(DataLog!$C1096=\"Log value\",DataLog!AI1096,\"\")","v":""},{"$f":"IF(DataLog!$C1096=\"Log value\",DataLog!AJ1096,\"\")","v":""},{"$f":"IF(DataLog!$C1096=\"Log value\",DataLog!AK1096,\"\")","v":""},{"$f":"IF(DataLog!$C1096=\"Log value\",DataLog!AL1096,\"\")","v":""},{"$f":"IF(DataLog!$C1096=\"Log value\",DataLog!AM1096,\"\")","v":""}]
[null,null,null,null,null,null,{"$f":"IF(DataLog!$C1099=\"Log value\",DataLog!D1099&\"_\"&TEXT(DataLog!B1099,\"åååå-mm-dd\"),\"\")","v":""},{"$f":"IF(DataLog!$C1099=\"Log value\",DataLog!E1099,\"\")","v":""},{"$f":"IF(DataLog!$C1099=\"Log value\",DataLog!F1099,\"\")","v":""},{"$f":"IF(DataLog!$C1099=\"Log value\",DataLog!G1099,\"\")","v":""},{"$f":"IF(DataLog!$C1099=\"Log value\",DataLog!H1099,\"\")","v":""},{"$f":"IF(DataLog!$C1099=\"Log value\",DataLog!I1099,\"\")","v":""},{"$f":"IF(DataLog!$C1099=\"Log value\",DataLog!J1099,\"\")","v":""},{"$f":"IF(DataLog!$C1099=\"Log value\",DataLog!K1099,\"\")","v":""},{"$f":"IF(DataLog!$C1099=\"Log value\",DataLog!L1099,\"\")","v":""},{"$f":"IF(DataLog!$C1099=\"Log value\",DataLog!M1099,\"\")","v":""},{"$f":"IF(DataLog!$C1099=\"Log value\",DataLog!N1099,\"\")","v":""},{"$f":"IF(DataLog!$C1099=\"Log value\",DataLog!O1099,\"\")","v":""},{"$f":"IF(DataLog!$C1099=\"Log value\",DataLog!P1099,\"\")","v":""},{"$f":"IF(DataLog!$C1099=\"Log value\",DataLog!Q1099,\"\")","v":""},{"$f":"IF(DataLog!$C1099=\"Log value\",DataLog!R1099,\"\")","v":""},{"$f":"IF(DataLog!$C1099=\"Log value\",DataLog!S1099,\"\")","v":""},{"$f":"IF(DataLog!$C1099=\"Log value\",DataLog!T1099,\"\")","v":""},{"$f":"IF(DataLog!$C1099=\"Log value\",DataLog!U1099,\"\")","v":""},{"$f":"IF(DataLog!$C1099=\"Log value\",DataLog!V1099,\"\")","v":""},{"$f":"IF(DataLog!$C1099=\"Log value\",DataLog!W1099,\"\")","v":""},{"$f":"IF(DataLog!$C1099=\"Log value\",DataLog!X1099,\"\")","v":""},{"$f":"IF(DataLog!$C1099=\"Log value\",DataLog!Y1099,\"\")","v":""},{"$f":"IF(DataLog!$C1099=\"Log value\",DataLog!Z1099,\"\")","v":""},{"$f":"IF(DataLog!$C1099=\"Log value\",DataLog!AA1099,\"\")","v":""},{"$f":"IF(DataLog!$C1099=\"Log value\",DataLog!AB1099,\"\")","v":""},{"$f":"IF(DataLog!$C1099=\"Log value\",DataLog!AC1099,\"\")","v":""},{"$f":"IF(DataLog!$C1099=\"Log value\",DataLog!AD1099,\"\")","v":""},{"$f":"IF(DataLog!$C1099=\"Log value\",DataLog!AE1099,\"\")","v":""},{"$f":"IF(DataLog!$C1099=\"Log value\",DataLog!AF1099,\"\")","v":""},{"$f":"IF(DataLog!$C1099=\"Log value\",DataLog!AG1099,\"\")","v":""},{"$f":"IF(DataLog!$C1099=\"Log value\",DataLog!AH1099,\"\")","v":""},{"$f":"IF(DataLog!$C1099=\"Log value\",DataLog!AI1099,\"\")","v":""},{"$f":"IF(DataLog!$C1099=\"Log value\",DataLog!AJ1099,\"\")","v":""},{"$f":"IF(DataLog!$C1099=\"Log value\",DataLog!AK1099,\"\")","v":""},{"$f":"IF(DataLog!$C1099=\"Log value\",DataLog!AL1099,\"\")","v":""},{"$f":"IF(DataLog!$C1099=\"Log value\",DataLog!AM1099,\"\")","v":""}]
[null,null,null,null,null,null,{"$f":"IF(DataLog!$C1100=\"Log value\",DataLog!D1100&\"_\"&TEXT(DataLog!B1100,\"åååå-mm-dd\"),\"\")","v":""},{"$f":"IF(DataLog!$C1100=\"Log value\",DataLog!E1100,\"\")","v":""},{"$f":"IF(DataLog!$C1100=\"Log value\",DataLog!F1100,\"\")","v":""},{"$f":"IF(DataLog!$C1100=\"Log value\",DataLog!G1100,\"\")","v":""},{"$f":"IF(DataLog!$C1100=\"Log value\",DataLog!H1100,\"\")","v":""},{"$f":"IF(DataLog!$C1100=\"Log value\",DataLog!I1100,\"\")","v":""},{"$f":"IF(DataLog!$C1100=\"Log value\",DataLog!J1100,\"\")","v":""},{"$f":"IF(DataLog!$C1100=\"Log value\",DataLog!K1100,\"\")","v":""},{"$f":"IF(DataLog!$C1100=\"Log value\",DataLog!L1100,\"\")","v":""},{"$f":"IF(DataLog!$C1100=\"Log value\",DataLog!M1100,\"\")","v":""},{"$f":"IF(DataLog!$C1100=\"Log value\",DataLog!N1100,\"\")","v":""},{"$f":"IF(DataLog!$C1100=\"Log value\",DataLog!O1100,\"\")","v":""},{"$f":"IF(DataLog!$C1100=\"Log value\",DataLog!P1100,\"\")","v":""},{"$f":"IF(DataLog!$C1100=\"Log value\",DataLog!Q1100,\"\")","v":""},{"$f":"IF(DataLog!$C1100=\"Log value\",DataLog!R1100,\"\")","v":""},{"$f":"IF(DataLog!$C1100=\"Log value\",DataLog!S1100,\"\")","v":""},{"$f":"IF(DataLog!$C1100=\"Log value\",DataLog!T1100,\"\")","v":""},{"$f":"IF(DataLog!$C1100=\"Log value\",DataLog!U1100,\"\")","v":""},{"$f":"IF(DataLog!$C1100=\"Log value\",DataLog!V1100,\"\")","v":""},{"$f":"IF(DataLog!$C1100=\"Log value\",DataLog!W1100,\"\")","v":""},{"$f":"IF(DataLog!$C1100=\"Log value\",DataLog!X1100,\"\")","v":""},{"$f":"IF(DataLog!$C1100=\"Log value\",DataLog!Y1100,\"\")","v":""},{"$f":"IF(DataLog!$C1100=\"Log value\",DataLog!Z1100,\"\")","v":""},{"$f":"IF(DataLog!$C1100=\"Log value\",DataLog!AA1100,\"\")","v":""},{"$f":"IF(DataLog!$C1100=\"Log value\",DataLog!AB1100,\"\")","v":""},{"$f":"IF(DataLog!$C1100=\"Log value\",DataLog!AC1100,\"\")","v":""},{"$f":"IF(DataLog!$C1100=\"Log value\",DataLog!AD1100,\"\")","v":""},{"$f":"IF(DataLog!$C1100=\"Log value\",DataLog!AE1100,\"\")","v":""},{"$f":"IF(DataLog!$C1100=\"Log value\",DataLog!AF1100,\"\")","v":""},{"$f":"IF(DataLog!$C1100=\"Log value\",DataLog!AG1100,\"\")","v":""},{"$f":"IF(DataLog!$C1100=\"Log value\",DataLog!AH1100,\"\")","v":""},{"$f":"IF(DataLog!$C1100=\"Log value\",DataLog!AI1100,\"\")","v":""},{"$f":"IF(DataLog!$C1100=\"Log value\",DataLog!AJ1100,\"\")","v":""},{"$f":"IF(DataLog!$C1100=\"Log value\",DataLog!AK1100,\"\")","v":""},{"$f":"IF(DataLog!$C1100=\"Log value\",DataLog!AL1100,\"\")","v":""},{"$f":"IF(DataLog!$C1100=\"Log value\",DataLog!AM1100,\"\")","v":""}]
[null,null,null,null,null,null,{"$f":"IF(DataLog!$C1104=\"Log value\",DataLog!D1104&\"_\"&TEXT(DataLog!B1104,\"åååå-mm-dd\"),\"\")","v":""},{"$f":"IF(DataLog!$C1104=\"Log value\",DataLog!E1104,\"\")","v":""},{"$f":"IF(DataLog!$C1104=\"Log value\",DataLog!F1104,\"\")","v":""},{"$f":"IF(DataLog!$C1104=\"Log value\",DataLog!G1104,\"\")","v":""},{"$f":"IF(DataLog!$C1104=\"Log value\",DataLog!H1104,\"\")","v":""},{"$f":"IF(DataLog!$C1104=\"Log value\",DataLog!I1104,\"\")","v":""},{"$f":"IF(DataLog!$C1104=\"Log value\",DataLog!J1104,\"\")","v":""},{"$f":"IF(DataLog!$C1104=\"Log value\",DataLog!K1104,\"\")","v":""},{"$f":"IF(DataLog!$C1104=\"Log value\",DataLog!L1104,\"\")","v":""},{"$f":"IF(DataLog!$C1104=\"Log value\",DataLog!M1104,\"\")","v":""},{"$f":"IF(DataLog!$C1104=\"Log value\",DataLog!N1104,\"\")","v":""},{"$f":"IF(DataLog!$C1104=\"Log value\",DataLog!O1104,\"\")","v":""},{"$f":"IF(DataLog!$C1104=\"Log value\",DataLog!P1104,\"\")","v":""},{"$f":"IF(DataLog!$C1104=\"Log value\",DataLog!Q1104,\"\")","v":""},{"$f":"IF(DataLog!$C1104=\"Log value\",DataLog!R1104,\"\")","v":""},{"$f":"IF(DataLog!$C1104=\"Log value\",DataLog!S1104,\"\")","v":""},{"$f":"IF(DataLog!$C1104=\"Log value\",DataLog!T1104,\"\")","v":""},{"$f":"IF(DataLog!$C1104=\"Log value\",DataLog!U1104,\"\")","v":""},{"$f":"IF(DataLog!$C1104=\"Log value\",DataLog!V1104,\"\")","v":""},{"$f":"IF(DataLog!$C1104=\"Log value\",DataLog!W1104,\"\")","v":""},{"$f":"IF(DataLog!$C1104=\"Log value\",DataLog!X1104,\"\")","v":""},{"$f":"IF(DataLog!$C1104=\"Log value\",DataLog!Y1104,\"\")","v":""},{"$f":"IF(DataLog!$C1104=\"Log value\",DataLog!Z1104,\"\")","v":""},{"$f":"IF(DataLog!$C1104=\"Log value\",DataLog!AA1104,\"\")","v":""},{"$f":"IF(DataLog!$C1104=\"Log value\",DataLog!AB1104,\"\")","v":""},{"$f":"IF(DataLog!$C1104=\"Log value\",DataLog!AC1104,\"\")","v":""},{"$f":"IF(DataLog!$C1104=\"Log value\",DataLog!AD1104,\"\")","v":""},{"$f":"IF(DataLog!$C1104=\"Log value\",DataLog!AE1104,\"\")","v":""},{"$f":"IF(DataLog!$C1104=\"Log value\",DataLog!AF1104,\"\")","v":""},{"$f":"IF(DataLog!$C1104=\"Log value\",DataLog!AG1104,\"\")","v":""},{"$f":"IF(DataLog!$C1104=\"Log value\",DataLog!AH1104,\"\")","v":""},{"$f":"IF(DataLog!$C1104=\"Log value\",DataLog!AI1104,\"\")","v":""},{"$f":"IF(DataLog!$C1104=\"Log value\",DataLog!AJ1104,\"\")","v":""},{"$f":"IF(DataLog!$C1104=\"Log value\",DataLog!AK1104,\"\")","v":""},{"$f":"IF(DataLog!$C1104=\"Log value\",DataLog!AL1104,\"\")","v":""},{"$f":"IF(DataLog!$C1104=\"Log value\",DataLog!AM1104,\"\")","v":""}]
[null,null,null,null,null,null,{"$f":"IF(DataLog!$C1105=\"Log value\",DataLog!D1105&\"_\"&TEXT(DataLog!B1105,\"åååå-mm-dd\"),\"\")","v":""},{"$f":"IF(DataLog!$C1105=\"Log value\",DataLog!E1105,\"\")","v":""},{"$f":"IF(DataLog!$C1105=\"Log value\",DataLog!F1105,\"\")","v":""},{"$f":"IF(DataLog!$C1105=\"Log value\",DataLog!G1105,\"\")","v":""},{"$f":"IF(DataLog!$C1105=\"Log value\",DataLog!H1105,\"\")","v":""},{"$f":"IF(DataLog!$C1105=\"Log value\",DataLog!I1105,\"\")","v":""},{"$f":"IF(DataLog!$C1105=\"Log value\",DataLog!J1105,\"\")","v":""},{"$f":"IF(DataLog!$C1105=\"Log value\",DataLog!K1105,\"\")","v":""},{"$f":"IF(DataLog!$C1105=\"Log value\",DataLog!L1105,\"\")","v":""},{"$f":"IF(DataLog!$C1105=\"Log value\",DataLog!M1105,\"\")","v":""},{"$f":"IF(DataLog!$C1105=\"Log value\",DataLog!N1105,\"\")","v":""},{"$f":"IF(DataLog!$C1105=\"Log value\",DataLog!O1105,\"\")","v":""},{"$f":"IF(DataLog!$C1105=\"Log value\",DataLog!P1105,\"\")","v":""},{"$f":"IF(DataLog!$C1105=\"Log value\",DataLog!Q1105,\"\")","v":""},{"$f":"IF(DataLog!$C1105=\"Log value\",DataLog!R1105,\"\")","v":""},{"$f":"IF(DataLog!$C1105=\"Log value\",DataLog!S1105,\"\")","v":""},{"$f":"IF(DataLog!$C1105=\"Log value\",DataLog!T1105,\"\")","v":""},{"$f":"IF(DataLog!$C1105=\"Log value\",DataLog!U1105,\"\")","v":""},{"$f":"IF(DataLog!$C1105=\"Log value\",DataLog!V1105,\"\")","v":""},{"$f":"IF(DataLog!$C1105=\"Log value\",DataLog!W1105,\"\")","v":""},{"$f":"IF(DataLog!$C1105=\"Log value\",DataLog!X1105,\"\")","v":""},{"$f":"IF(DataLog!$C1105=\"Log value\",DataLog!Y1105,\"\")","v":""},{"$f":"IF(DataLog!$C1105=\"Log value\",DataLog!Z1105,\"\")","v":""},{"$f":"IF(DataLog!$C1105=\"Log value\",DataLog!AA1105,\"\")","v":""},{"$f":"IF(DataLog!$C1105=\"Log value\",DataLog!AB1105,\"\")","v":""},{"$f":"IF(DataLog!$C1105=\"Log value\",DataLog!AC1105,\"\")","v":""},{"$f":"IF(DataLog!$C1105=\"Log value\",DataLog!AD1105,\"\")","v":""},{"$f":"IF(DataLog!$C1105=\"Log value\",DataLog!AE1105,\"\")","v":""},{"$f":"IF(DataLog!$C1105=\"Log value\",DataLog!AF1105,\"\")","v":""},{"$f":"IF(DataLog!$C1105=\"Log value\",DataLog!AG1105,\"\")","v":""},{"$f":"IF(DataLog!$C1105=\"Log value\",DataLog!AH1105,\"\")","v":""},{"$f":"IF(DataLog!$C1105=\"Log value\",DataLog!AI1105,\"\")","v":""},{"$f":"IF(DataLog!$C1105=\"Log value\",DataLog!AJ1105,\"\")","v":""},{"$f":"IF(DataLog!$C1105=\"Log value\",DataLog!AK1105,\"\")","v":""},{"$f":"IF(DataLog!$C1105=\"Log value\",DataLog!AL1105,\"\")","v":""},{"$f":"IF(DataLog!$C1105=\"Log value\",DataLog!AM1105,\"\")","v":""}]
[null,null,null,null,null,null,{"$f":"IF(DataLog!$C1108=\"Log value\",DataLog!D1108&\"_\"&TEXT(DataLog!B1108,\"åååå-mm-dd\"),\"\")","v":""},{"$f":"IF(DataLog!$C1108=\"Log value\",DataLog!E1108,\"\")","v":""},{"$f":"IF(DataLog!$C1108=\"Log value\",DataLog!F1108,\"\")","v":""},{"$f":"IF(DataLog!$C1108=\"Log value\",DataLog!G1108,\"\")","v":""},{"$f":"IF(DataLog!$C1108=\"Log value\",DataLog!H1108,\"\")","v":""},{"$f":"IF(DataLog!$C1108=\"Log value\",DataLog!I1108,\"\")","v":""},{"$f":"IF(DataLog!$C1108=\"Log value\",DataLog!J1108,\"\")","v":""},{"$f":"IF(DataLog!$C1108=\"Log value\",DataLog!K1108,\"\")","v":""},{"$f":"IF(DataLog!$C1108=\"Log value\",DataLog!L1108,\"\")","v":""},{"$f":"IF(DataLog!$C1108=\"Log value\",DataLog!M1108,\"\")","v":""},{"$f":"IF(DataLog!$C1108=\"Log value\",DataLog!N1108,\"\")","v":""},{"$f":"IF(DataLog!$C1108=\"Log value\",DataLog!O1108,\"\")","v":""},{"$f":"IF(DataLog!$C1108=\"Log value\",DataLog!P1108,\"\")","v":""},{"$f":"IF(DataLog!$C1108=\"Log value\",DataLog!Q1108,\"\")","v":""},{"$f":"IF(DataLog!$C1108=\"Log value\",DataLog!R1108,\"\")","v":""},{"$f":"IF(DataLog!$C1108=\"Log value\",DataLog!S1108,\"\")","v":""},{"$f":"IF(DataLog!$C1108=\"Log value\",DataLog!T1108,\"\")","v":""},{"$f":"IF(DataLog!$C1108=\"Log value\",DataLog!U1108,\"\")","v":""},{"$f":"IF(DataLog!$C1108=\"Log value\",DataLog!V1108,\"\")","v":""},{"$f":"IF(DataLog!$C1108=\"Log value\",DataLog!W1108,\"\")","v":""},{"$f":"IF(DataLog!$C1108=\"Log value\",DataLog!X1108,\"\")","v":""},{"$f":"IF(DataLog!$C1108=\"Log value\",DataLog!Y1108,\"\")","v":""},{"$f":"IF(DataLog!$C1108=\"Log value\",DataLog!Z1108,\"\")","v":""},{"$f":"IF(DataLog!$C1108=\"Log value\",DataLog!AA1108,\"\")","v":""},{"$f":"IF(DataLog!$C1108=\"Log value\",DataLog!AB1108,\"\")","v":""},{"$f":"IF(DataLog!$C1108=\"Log value\",DataLog!AC1108,\"\")","v":""},{"$f":"IF(DataLog!$C1108=\"Log value\",DataLog!AD1108,\"\")","v":""},{"$f":"IF(DataLog!$C1108=\"Log value\",DataLog!AE1108,\"\")","v":""},{"$f":"IF(DataLog!$C1108=\"Log value\",DataLog!AF1108,\"\")","v":""},{"$f":"IF(DataLog!$C1108=\"Log value\",DataLog!AG1108,\"\")","v":""},{"$f":"IF(DataLog!$C1108=\"Log value\",DataLog!AH1108,\"\")","v":""},{"$f":"IF(DataLog!$C1108=\"Log value\",DataLog!AI1108,\"\")","v":""},{"$f":"IF(DataLog!$C1108=\"Log value\",DataLog!AJ1108,\"\")","v":""},{"$f":"IF(DataLog!$C1108=\"Log value\",DataLog!AK1108,\"\")","v":""},{"$f":"IF(DataLog!$C1108=\"Log value\",DataLog!AL1108,\"\")","v":""},{"$f":"IF(DataLog!$C1108=\"Log value\",DataLog!AM1108,\"\")","v":""}]
[null,null,null,null,null,null,{"$f":"IF(DataLog!$C1109=\"Log value\",DataLog!D1109&\"_\"&TEXT(DataLog!B1109,\"åååå-mm-dd\"),\"\")","v":""},{"$f":"IF(DataLog!$C1109=\"Log value\",DataLog!E1109,\"\")","v":""},{"$f":"IF(DataLog!$C1109=\"Log value\",DataLog!F1109,\"\")","v":""},{"$f":"IF(DataLog!$C1109=\"Log value\",DataLog!G1109,\"\")","v":""},{"$f":"IF(DataLog!$C1109=\"Log value\",DataLog!H1109,\"\")","v":""},{"$f":"IF(DataLog!$C1109=\"Log value\",DataLog!I1109,\"\")","v":""},{"$f":"IF(DataLog!$C1109=\"Log value\",DataLog!J1109,\"\")","v":""},{"$f":"IF(DataLog!$C1109=\"Log value\",DataLog!K1109,\"\")","v":""},{"$f":"IF(DataLog!$C1109=\"Log value\",DataLog!L1109,\"\")","v":""},{"$f":"IF(DataLog!$C1109=\"Log value\",DataLog!M1109,\"\")","v":""},{"$f":"IF(DataLog!$C1109=\"Log value\",DataLog!N1109,\"\")","v":""},{"$f":"IF(DataLog!$C1109=\"Log value\",DataLog!O1109,\"\")","v":""},{"$f":"IF(DataLog!$C1109=\"Log value\",DataLog!P1109,\"\")","v":""},{"$f":"IF(DataLog!$C1109=\"Log value\",DataLog!Q1109,\"\")","v":""},{"$f":"IF(DataLog!$C1109=\"Log value\",DataLog!R1109,\"\")","v":""},{"$f":"IF(DataLog!$C1109=\"Log value\",DataLog!S1109,\"\")","v":""},{"$f":"IF(DataLog!$C1109=\"Log value\",DataLog!T1109,\"\")","v":""},{"$f":"IF(DataLog!$C1109=\"Log value\",DataLog!U1109,\"\")","v":""},{"$f":"IF(DataLog!$C1109=\"Log value\",DataLog!V1109,\"\")","v":""},{"$f":"IF(DataLog!$C1109=\"Log value\",DataLog!W1109,\"\")","v":""},{"$f":"IF(DataLog!$C1109=\"Log value\",DataLog!X1109,\"\")","v":""},{"$f":"IF(DataLog!$C1109=\"Log value\",DataLog!Y1109,\"\")","v":""},{"$f":"IF(DataLog!$C1109=\"Log value\",DataLog!Z1109,\"\")","v":""},{"$f":"IF(DataLog!$C1109=\"Log value\",DataLog!AA1109,\"\")","v":""},{"$f":"IF(DataLog!$C1109=\"Log value\",DataLog!AB1109,\"\")","v":""},{"$f":"IF(DataLog!$C1109=\"Log value\",DataLog!AC1109,\"\")","v":""},{"$f":"IF(DataLog!$C1109=\"Log value\",DataLog!AD1109,\"\")","v":""},{"$f":"IF(DataLog!$C1109=\"Log value\",DataLog!AE1109,\"\")","v":""},{"$f":"IF(DataLog!$C1109=\"Log value\",DataLog!AF1109,\"\")","v":""},{"$f":"IF(DataLog!$C1109=\"Log value\",DataLog!AG1109,\"\")","v":""},{"$f":"IF(DataLog!$C1109=\"Log value\",DataLog!AH1109,\"\")","v":""},{"$f":"IF(DataLog!$C1109=\"Log value\",DataLog!AI1109,\"\")","v":""},{"$f":"IF(DataLog!$C1109=\"Log value\",DataLog!AJ1109,\"\")","v":""},{"$f":"IF(DataLog!$C1109=\"Log value\",DataLog!AK1109,\"\")","v":""},{"$f":"IF(DataLog!$C1109=\"Log value\",DataLog!AL1109,\"\")","v":""},{"$f":"IF(DataLog!$C1109=\"Log value\",DataLog!AM1109,\"\")","v":""}]
[null,null,null,null,null,null,{"$f":"IF(DataLog!$C1112=\"Log value\",DataLog!D1112&\"_\"&TEXT(DataLog!B1112,\"åååå-mm-dd\"),\"\")","v":""},{"$f":"IF(DataLog!$C1112=\"Log value\",DataLog!E1112,\"\")","v":""},{"$f":"IF(DataLog!$C1112=\"Log value\",DataLog!F1112,\"\")","v":""},{"$f":"IF(DataLog!$C1112=\"Log value\",DataLog!G1112,\"\")","v":""},{"$f":"IF(DataLog!$C1112=\"Log value\",DataLog!H1112,\"\")","v":""},{"$f":"IF(DataLog!$C1112=\"Log value\",DataLog!I1112,\"\")","v":""},{"$f":"IF(DataLog!$C1112=\"Log value\",DataLog!J1112,\"\")","v":""},{"$f":"IF(DataLog!$C1112=\"Log value\",DataLog!K1112,\"\")","v":""},{"$f":"IF(DataLog!$C1112=\"Log value\",DataLog!L1112,\"\")","v":""},{"$f":"IF(DataLog!$C1112=\"Log value\",DataLog!M1112,\"\")","v":""},{"$f":"IF(DataLog!$C1112=\"Log value\",DataLog!N1112,\"\")","v":""},{"$f":"IF(DataLog!$C1112=\"Log value\",DataLog!O1112,\"\")","v":""},{"$f":"IF(DataLog!$C1112=\"Log value\",DataLog!P1112,\"\")","v":""},{"$f":"IF(DataLog!$C1112=\"Log value\",DataLog!Q1112,\"\")","v":""},{"$f":"IF(DataLog!$C1112=\"Log value\",DataLog!R1112,\"\")","v":""},{"$f":"IF(DataLog!$C1112=\"Log value\",DataLog!S1112,\"\")","v":""},{"$f":"IF(DataLog!$C1112=\"Log value\",DataLog!T1112,\"\")","v":""},{"$f":"IF(DataLog!$C1112=\"Log value\",DataLog!U1112,\"\")","v":""},{"$f":"IF(DataLog!$C1112=\"Log value\",DataLog!V1112,\"\")","v":""},{"$f":"IF(DataLog!$C1112=\"Log value\",DataLog!W1112,\"\")","v":""},{"$f":"IF(DataLog!$C1112=\"Log value\",DataLog!X1112,\"\")","v":""},{"$f":"IF(DataLog!$C1112=\"Log value\",DataLog!Y1112,\"\")","v":""},{"$f":"IF(DataLog!$C1112=\"Log value\",DataLog!Z1112,\"\")","v":""},{"$f":"IF(DataLog!$C1112=\"Log value\",DataLog!AA1112,\"\")","v":""},{"$f":"IF(DataLog!$C1112=\"Log value\",DataLog!AB1112,\"\")","v":""},{"$f":"IF(DataLog!$C1112=\"Log value\",DataLog!AC1112,\"\")","v":""},{"$f":"IF(DataLog!$C1112=\"Log value\",DataLog!AD1112,\"\")","v":""},{"$f":"IF(DataLog!$C1112=\"Log value\",DataLog!AE1112,\"\")","v":""},{"$f":"IF(DataLog!$C1112=\"Log value\",DataLog!AF1112,\"\")","v":""},{"$f":"IF(DataLog!$C1112=\"Log value\",DataLog!AG1112,\"\")","v":""},{"$f":"IF(DataLog!$C1112=\"Log value\",DataLog!AH1112,\"\")","v":""},{"$f":"IF(DataLog!$C1112=\"Log value\",DataLog!AI1112,\"\")","v":""},{"$f":"IF(DataLog!$C1112=\"Log value\",DataLog!AJ1112,\"\")","v":""},{"$f":"IF(DataLog!$C1112=\"Log value\",DataLog!AK1112,\"\")","v":""},{"$f":"IF(DataLog!$C1112=\"Log value\",DataLog!AL1112,\"\")","v":""},{"$f":"IF(DataLog!$C1112=\"Log value\",DataLog!AM1112,\"\")","v":""}]
[null,null,null,null,null,null,{"$f":"IF(DataLog!$C1114=\"Log value\",DataLog!D1114&\"_\"&TEXT(DataLog!B1114,\"åååå-mm-dd\"),\"\")","v":""},{"$f":"IF(DataLog!$C1114=\"Log value\",DataLog!E1114,\"\")","v":""},{"$f":"IF(DataLog!$C1114=\"Log value\",DataLog!F1114,\"\")","v":""},{"$f":"IF(DataLog!$C1114=\"Log value\",DataLog!G1114,\"\")","v":""},{"$f":"IF(DataLog!$C1114=\"Log value\",DataLog!H1114,\"\")","v":""},{"$f":"IF(DataLog!$C1114=\"Log value\",DataLog!I1114,\"\")","v":""},{"$f":"IF(DataLog!$C1114=\"Log value\",DataLog!J1114,\"\")","v":""},{"$f":"IF(DataLog!$C1114=\"Log value\",DataLog!K1114,\"\")","v":""},{"$f":"IF(DataLog!$C1114=\"Log value\",DataLog!L1114,\"\")","v":""},{"$f":"IF(DataLog!$C1114=\"Log value\",DataLog!M1114,\"\")","v":""},{"$f":"IF(DataLog!$C1114=\"Log value\",DataLog!N1114,\"\")","v":""},{"$f":"IF(DataLog!$C1114=\"Log value\",DataLog!O1114,\"\")","v":""},{"$f":"IF(DataLog!$C1114=\"Log value\",DataLog!P1114,\"\")","v":""},{"$f":"IF(DataLog!$C1114=\"Log value\",DataLog!Q1114,\"\")","v":""},{"$f":"IF(DataLog!$C1114=\"Log value\",DataLog!R1114,\"\")","v":""},{"$f":"IF(DataLog!$C1114=\"Log value\",DataLog!S1114,\"\")","v":""},{"$f":"IF(DataLog!$C1114=\"Log value\",DataLog!T1114,\"\")","v":""},{"$f":"IF(DataLog!$C1114=\"Log value\",DataLog!U1114,\"\")","v":""},{"$f":"IF(DataLog!$C1114=\"Log value\",DataLog!V1114,\"\")","v":""},{"$f":"IF(DataLog!$C1114=\"Log value\",DataLog!W1114,\"\")","v":""},{"$f":"IF(DataLog!$C1114=\"Log value\",DataLog!X1114,\"\")","v":""},{"$f":"IF(DataLog!$C1114=\"Log value\",DataLog!Y1114,\"\")","v":""},{"$f":"IF(DataLog!$C1114=\"Log value\",DataLog!Z1114,\"\")","v":""},{"$f":"IF(DataLog!$C1114=\"Log value\",DataLog!AA1114,\"\")","v":""},{"$f":"IF(DataLog!$C1114=\"Log value\",DataLog!AB1114,\"\")","v":""},{"$f":"IF(DataLog!$C1114=\"Log value\",DataLog!AC1114,\"\")","v":""},{"$f":"IF(DataLog!$C1114=\"Log value\",DataLog!AD1114,\"\")","v":""},{"$f":"IF(DataLog!$C1114=\"Log value\",DataLog!AE1114,\"\")","v":""},{"$f":"IF(DataLog!$C1114=\"Log value\",DataLog!AF1114,\"\")","v":""},{"$f":"IF(DataLog!$C1114=\"Log value\",DataLog!AG1114,\"\")","v":""},{"$f":"IF(DataLog!$C1114=\"Log value\",DataLog!AH1114,\"\")","v":""},{"$f":"IF(DataLog!$C1114=\"Log value\",DataLog!AI1114,\"\")","v":""},{"$f":"IF(DataLog!$C1114=\"Log value\",DataLog!AJ1114,\"\")","v":""},{"$f":"IF(DataLog!$C1114=\"Log value\",DataLog!AK1114,\"\")","v":""},{"$f":"IF(DataLog!$C1114=\"Log value\",DataLog!AL1114,\"\")","v":""},{"$f":"IF(DataLog!$C1114=\"Log value\",DataLog!AM1114,\"\")","v":""}]
[null,null,null,null,null,null,{"$f":"IF(DataLog!$C1117=\"Log value\",DataLog!D1117&\"_\"&TEXT(DataLog!B1117,\"åååå-mm-dd\"),\"\")","v":""},{"$f":"IF(DataLog!$C1117=\"Log value\",DataLog!E1117,\"\")","v":""},{"$f":"IF(DataLog!$C1117=\"Log value\",DataLog!F1117,\"\")","v":""},{"$f":"IF(DataLog!$C1117=\"Log value\",DataLog!G1117,\"\")","v":""},{"$f":"IF(DataLog!$C1117=\"Log value\",DataLog!H1117,\"\")","v":""},{"$f":"IF(DataLog!$C1117=\"Log value\",DataLog!I1117,\"\")","v":""},{"$f":"IF(DataLog!$C1117=\"Log value\",DataLog!J1117,\"\")","v":""},{"$f":"IF(DataLog!$C1117=\"Log value\",DataLog!K1117,\"\")","v":""},{"$f":"IF(DataLog!$C1117=\"Log value\",DataLog!L1117,\"\")","v":""},{"$f":"IF(DataLog!$C1117=\"Log value\",DataLog!M1117,\"\")","v":""},{"$f":"IF(DataLog!$C1117=\"Log value\",DataLog!N1117,\"\")","v":""},{"$f":"IF(DataLog!$C1117=\"Log value\",DataLog!O1117,\"\")","v":""},{"$f":"IF(DataLog!$C1117=\"Log value\",DataLog!P1117,\"\")","v":""},{"$f":"IF(DataLog!$C1117=\"Log value\",DataLog!Q1117,\"\")","v":""},{"$f":"IF(DataLog!$C1117=\"Log value\",DataLog!R1117,\"\")","v":""},{"$f":"IF(DataLog!$C1117=\"Log value\",DataLog!S1117,\"\")","v":""},{"$f":"IF(DataLog!$C1117=\"Log value\",DataLog!T1117,\"\")","v":""},{"$f":"IF(DataLog!$C1117=\"Log value\",DataLog!U1117,\"\")","v":""},{"$f":"IF(DataLog!$C1117=\"Log value\",DataLog!V1117,\"\")","v":""},{"$f":"IF(DataLog!$C1117=\"Log value\",DataLog!W1117,\"\")","v":""},{"$f":"IF(DataLog!$C1117=\"Log value\",DataLog!X1117,\"\")","v":""},{"$f":"IF(DataLog!$C1117=\"Log value\",DataLog!Y1117,\"\")","v":""},{"$f":"IF(DataLog!$C1117=\"Log value\",DataLog!Z1117,\"\")","v":""},{"$f":"IF(DataLog!$C1117=\"Log value\",DataLog!AA1117,\"\")","v":""},{"$f":"IF(DataLog!$C1117=\"Log value\",DataLog!AB1117,\"\")","v":""},{"$f":"IF(DataLog!$C1117=\"Log value\",DataLog!AC1117,\"\")","v":""},{"$f":"IF(DataLog!$C1117=\"Log value\",DataLog!AD1117,\"\")","v":""},{"$f":"IF(DataLog!$C1117=\"Log value\",DataLog!AE1117,\"\")","v":""},{"$f":"IF(DataLog!$C1117=\"Log value\",DataLog!AF1117,\"\")","v":""},{"$f":"IF(DataLog!$C1117=\"Log value\",DataLog!AG1117,\"\")","v":""},{"$f":"IF(DataLog!$C1117=\"Log value\",DataLog!AH1117,\"\")","v":""},{"$f":"IF(DataLog!$C1117=\"Log value\",DataLog!AI1117,\"\")","v":""},{"$f":"IF(DataLog!$C1117=\"Log value\",DataLog!AJ1117,\"\")","v":""},{"$f":"IF(DataLog!$C1117=\"Log value\",DataLog!AK1117,\"\")","v":""},{"$f":"IF(DataLog!$C1117=\"Log value\",DataLog!AL1117,\"\")","v":""},{"$f":"IF(DataLog!$C1117=\"Log value\",DataLog!AM1117,\"\")","v":""}]
[null,null,null,null,null,null,{"$f":"IF(DataLog!$C1118=\"Log value\",DataLog!D1118&\"_\"&TEXT(DataLog!B1118,\"åååå-mm-dd\"),\"\")","v":""},{"$f":"IF(DataLog!$C1118=\"Log value\",DataLog!E1118,\"\")","v":""},{"$f":"IF(DataLog!$C1118=\"Log value\",DataLog!F1118,\"\")","v":""},{"$f":"IF(DataLog!$C1118=\"Log value\",DataLog!G1118,\"\")","v":""},{"$f":"IF(DataLog!$C1118=\"Log value\",DataLog!H1118,\"\")","v":""},{"$f":"IF(DataLog!$C1118=\"Log value\",DataLog!I1118,\"\")","v":""},{"$f":"IF(DataLog!$C1118=\"Log value\",DataLog!J1118,\"\")","v":""},{"$f":"IF(DataLog!$C1118=\"Log value\",DataLog!K1118,\"\")","v":""},{"$f":"IF(DataLog!$C1118=\"Log value\",DataLog!L1118,\"\")","v":""},{"$f":"IF(DataLog!$C1118=\"Log value\",DataLog!M1118,\"\")","v":""},{"$f":"IF(DataLog!$C1118=\"Log value\",DataLog!N1118,\"\")","v":""},{"$f":"IF(DataLog!$C1118=\"Log value\",DataLog!O1118,\"\")","v":""},{"$f":"IF(DataLog!$C1118=\"Log value\",DataLog!P1118,\"\")","v":""},{"$f":"IF(DataLog!$C1118=\"Log value\",DataLog!Q1118,\"\")","v":""},{"$f":"IF(DataLog!$C1118=\"Log value\",DataLog!R1118,\"\")","v":""},{"$f":"IF(DataLog!$C1118=\"Log value\",DataLog!S1118,\"\")","v":""},{"$f":"IF(DataLog!$C1118=\"Log value\",DataLog!T1118,\"\")","v":""},{"$f":"IF(DataLog!$C1118=\"Log value\",DataLog!U1118,\"\")","v":""},{"$f":"IF(DataLog!$C1118=\"Log value\",DataLog!V1118,\"\")","v":""},{"$f":"IF(DataLog!$C1118=\"Log value\",DataLog!W1118,\"\")","v":""},{"$f":"IF(DataLog!$C1118=\"Log value\",DataLog!X1118,\"\")","v":""},{"$f":"IF(DataLog!$C1118=\"Log value\",DataLog!Y1118,\"\")","v":""},{"$f":"IF(DataLog!$C1118=\"Log value\",DataLog!Z1118,\"\")","v":""},{"$f":"IF(DataLog!$C1118=\"Log value\",DataLog!AA1118,\"\")","v":""},{"$f":"IF(DataLog!$C1118=\"Log value\",DataLog!AB1118,\"\")","v":""},{"$f":"IF(DataLog!$C1118=\"Log value\",DataLog!AC1118,\"\")","v":""},{"$f":"IF(DataLog!$C1118=\"Log value\",DataLog!AD1118,\"\")","v":""},{"$f":"IF(DataLog!$C1118=\"Log value\",DataLog!AE1118,\"\")","v":""},{"$f":"IF(DataLog!$C1118=\"Log value\",DataLog!AF1118,\"\")","v":""},{"$f":"IF(DataLog!$C1118=\"Log value\",DataLog!AG1118,\"\")","v":""},{"$f":"IF(DataLog!$C1118=\"Log value\",DataLog!AH1118,\"\")","v":""},{"$f":"IF(DataLog!$C1118=\"Log value\",DataLog!AI1118,\"\")","v":""},{"$f":"IF(DataLog!$C1118=\"Log value\",DataLog!AJ1118,\"\")","v":""},{"$f":"IF(DataLog!$C1118=\"Log value\",DataLog!AK1118,\"\")","v":""},{"$f":"IF(DataLog!$C1118=\"Log value\",DataLog!AL1118,\"\")","v":""},{"$f":"IF(DataLog!$C1118=\"Log value\",DataLog!AM1118,\"\")","v":""}]
[null,null,null,null,null,null,{"$f":"IF(DataLog!$C1122=\"Log value\",DataLog!D1122&\"_\"&TEXT(DataLog!B1122,\"åååå-mm-dd\"),\"\")","v":""},{"$f":"IF(DataLog!$C1122=\"Log value\",DataLog!E1122,\"\")","v":""},{"$f":"IF(DataLog!$C1122=\"Log value\",DataLog!F1122,\"\")","v":""},{"$f":"IF(DataLog!$C1122=\"Log value\",DataLog!G1122,\"\")","v":""},{"$f":"IF(DataLog!$C1122=\"Log value\",DataLog!H1122,\"\")","v":""},{"$f":"IF(DataLog!$C1122=\"Log value\",DataLog!I1122,\"\")","v":""},{"$f":"IF(DataLog!$C1122=\"Log value\",DataLog!J1122,\"\")","v":""},{"$f":"IF(DataLog!$C1122=\"Log value\",DataLog!K1122,\"\")","v":""},{"$f":"IF(DataLog!$C1122=\"Log value\",DataLog!L1122,\"\")","v":""},{"$f":"IF(DataLog!$C1122=\"Log value\",DataLog!M1122,\"\")","v":""},{"$f":"IF(DataLog!$C1122=\"Log value\",DataLog!N1122,\"\")","v":""},{"$f":"IF(DataLog!$C1122=\"Log value\",DataLog!O1122,\"\")","v":""},{"$f":"IF(DataLog!$C1122=\"Log value\",DataLog!P1122,\"\")","v":""},{"$f":"IF(DataLog!$C1122=\"Log value\",DataLog!Q1122,\"\")","v":""},{"$f":"IF(DataLog!$C1122=\"Log value\",DataLog!R1122,\"\")","v":""},{"$f":"IF(DataLog!$C1122=\"Log value\",DataLog!S1122,\"\")","v":""},{"$f":"IF(DataLog!$C1122=\"Log value\",DataLog!T1122,\"\")","v":""},{"$f":"IF(DataLog!$C1122=\"Log value\",DataLog!U1122,\"\")","v":""},{"$f":"IF(DataLog!$C1122=\"Log value\",DataLog!V1122,\"\")","v":""},{"$f":"IF(DataLog!$C1122=\"Log value\",DataLog!W1122,\"\")","v":""},{"$f":"IF(DataLog!$C1122=\"Log value\",DataLog!X1122,\"\")","v":""},{"$f":"IF(DataLog!$C1122=\"Log value\",DataLog!Y1122,\"\")","v":""},{"$f":"IF(DataLog!$C1122=\"Log value\",DataLog!Z1122,\"\")","v":""},{"$f":"IF(DataLog!$C1122=\"Log value\",DataLog!AA1122,\"\")","v":""},{"$f":"IF(DataLog!$C1122=\"Log value\",DataLog!AB1122,\"\")","v":""},{"$f":"IF(DataLog!$C1122=\"Log value\",DataLog!AC1122,\"\")","v":""},{"$f":"IF(DataLog!$C1122=\"Log value\",DataLog!AD1122,\"\")","v":""},{"$f":"IF(DataLog!$C1122=\"Log value\",DataLog!AE1122,\"\")","v":""},{"$f":"IF(DataLog!$C1122=\"Log value\",DataLog!AF1122,\"\")","v":""},{"$f":"IF(DataLog!$C1122=\"Log value\",DataLog!AG1122,\"\")","v":""},{"$f":"IF(DataLog!$C1122=\"Log value\",DataLog!AH1122,\"\")","v":""},{"$f":"IF(DataLog!$C1122=\"Log value\",DataLog!AI1122,\"\")","v":""},{"$f":"IF(DataLog!$C1122=\"Log value\",DataLog!AJ1122,\"\")","v":""},{"$f":"IF(DataLog!$C1122=\"Log value\",DataLog!AK1122,\"\")","v":""},{"$f":"IF(DataLog!$C1122=\"Log value\",DataLog!AL1122,\"\")","v":""},{"$f":"IF(DataLog!$C1122=\"Log value\",DataLog!AM1122,\"\")","v":""}]
[null,null,null,null,null,null,{"$f":"IF(DataLog!$C1123=\"Log value\",DataLog!D1123&\"_\"&TEXT(DataLog!B1123,\"åååå-mm-dd\"),\"\")","v":""},{"$f":"IF(DataLog!$C1123=\"Log value\",DataLog!E1123,\"\")","v":""},{"$f":"IF(DataLog!$C1123=\"Log value\",DataLog!F1123,\"\")","v":""},{"$f":"IF(DataLog!$C1123=\"Log value\",DataLog!G1123,\"\")","v":""},{"$f":"IF(DataLog!$C1123=\"Log value\",DataLog!H1123,\"\")","v":""},{"$f":"IF(DataLog!$C1123=\"Log value\",DataLog!I1123,\"\")","v":""},{"$f":"IF(DataLog!$C1123=\"Log value\",DataLog!J1123,\"\")","v":""},{"$f":"IF(DataLog!$C1123=\"Log value\",DataLog!K1123,\"\")","v":""},{"$f":"IF(DataLog!$C1123=\"Log value\",DataLog!L1123,\"\")","v":""},{"$f":"IF(DataLog!$C1123=\"Log value\",DataLog!M1123,\"\")","v":""},{"$f":"IF(DataLog!$C1123=\"Log value\",DataLog!N1123,\"\")","v":""},{"$f":"IF(DataLog!$C1123=\"Log value\",DataLog!O1123,\"\")","v":""},{"$f":"IF(DataLog!$C1123=\"Log value\",DataLog!P1123,\"\")","v":""},{"$f":"IF(DataLog!$C1123=\"Log value\",DataLog!Q1123,\"\")","v":""},{"$f":"IF(DataLog!$C1123=\"Log value\",DataLog!R1123,\"\")","v":""},{"$f":"IF(DataLog!$C1123=\"Log value\",DataLog!S1123,\"\")","v":""},{"$f":"IF(DataLog!$C1123=\"Log value\",DataLog!T1123,\"\")","v":""},{"$f":"IF(DataLog!$C1123=\"Log value\",DataLog!U1123,\"\")","v":""},{"$f":"IF(DataLog!$C1123=\"Log value\",DataLog!V1123,\"\")","v":""},{"$f":"IF(DataLog!$C1123=\"Log value\",DataLog!W1123,\"\")","v":""},{"$f":"IF(DataLog!$C1123=\"Log value\",DataLog!X1123,\"\")","v":""},{"$f":"IF(DataLog!$C1123=\"Log value\",DataLog!Y1123,\"\")","v":""},{"$f":"IF(DataLog!$C1123=\"Log value\",DataLog!Z1123,\"\")","v":""},{"$f":"IF(DataLog!$C1123=\"Log value\",DataLog!AA1123,\"\")","v":""},{"$f":"IF(DataLog!$C1123=\"Log value\",DataLog!AB1123,\"\")","v":""},{"$f":"IF(DataLog!$C1123=\"Log value\",DataLog!AC1123,\"\")","v":""},{"$f":"IF(DataLog!$C1123=\"Log value\",DataLog!AD1123,\"\")","v":""},{"$f":"IF(DataLog!$C1123=\"Log value\",DataLog!AE1123,\"\")","v":""},{"$f":"IF(DataLog!$C1123=\"Log value\",DataLog!AF1123,\"\")","v":""},{"$f":"IF(DataLog!$C1123=\"Log value\",DataLog!AG1123,\"\")","v":""},{"$f":"IF(DataLog!$C1123=\"Log value\",DataLog!AH1123,\"\")","v":""},{"$f":"IF(DataLog!$C1123=\"Log value\",DataLog!AI1123,\"\")","v":""},{"$f":"IF(DataLog!$C1123=\"Log value\",DataLog!AJ1123,\"\")","v":""},{"$f":"IF(DataLog!$C1123=\"Log value\",DataLog!AK1123,\"\")","v":""},{"$f":"IF(DataLog!$C1123=\"Log value\",DataLog!AL1123,\"\")","v":""},{"$f":"IF(DataLog!$C1123=\"Log value\",DataLog!AM1123,\"\")","v":""}]
[null,null,null,null,null,null,{"$f":"IF(DataLog!$C1126=\"Log value\",DataLog!D1126&\"_\"&TEXT(DataLog!B1126,\"åååå-mm-dd\"),\"\")","v":""},{"$f":"IF(DataLog!$C1126=\"Log value\",DataLog!E1126,\"\")","v":""},{"$f":"IF(DataLog!$C1126=\"Log value\",DataLog!F1126,\"\")","v":""},{"$f":"IF(DataLog!$C1126=\"Log value\",DataLog!G1126,\"\")","v":""},{"$f":"IF(DataLog!$C1126=\"Log value\",DataLog!H1126,\"\")","v":""},{"$f":"IF(DataLog!$C1126=\"Log value\",DataLog!I1126,\"\")","v":""},{"$f":"IF(DataLog!$C1126=\"Log value\",DataLog!J1126,\"\")","v":""},{"$f":"IF(DataLog!$C1126=\"Log value\",DataLog!K1126,\"\")","v":""},{"$f":"IF(DataLog!$C1126=\"Log value\",DataLog!L1126,\"\")","v":""},{"$f":"IF(DataLog!$C1126=\"Log value\",DataLog!M1126,\"\")","v":""},{"$f":"IF(DataLog!$C1126=\"Log value\",DataLog!N1126,\"\")","v":""},{"$f":"IF(DataLog!$C1126=\"Log value\",DataLog!O1126,\"\")","v":""},{"$f":"IF(DataLog!$C1126=\"Log value\",DataLog!P1126,\"\")","v":""},{"$f":"IF(DataLog!$C1126=\"Log value\",DataLog!Q1126,\"\")","v":""},{"$f":"IF(DataLog!$C1126=\"Log value\",DataLog!R1126,\"\")","v":""},{"$f":"IF(DataLog!$C1126=\"Log value\",DataLog!S1126,\"\")","v":""},{"$f":"IF(DataLog!$C1126=\"Log value\",DataLog!T1126,\"\")","v":""},{"$f":"IF(DataLog!$C1126=\"Log value\",DataLog!U1126,\"\")","v":""},{"$f":"IF(DataLog!$C1126=\"Log value\",DataLog!V1126,\"\")","v":""},{"$f":"IF(DataLog!$C1126=\"Log value\",DataLog!W1126,\"\")","v":""},{"$f":"IF(DataLog!$C1126=\"Log value\",DataLog!X1126,\"\")","v":""},{"$f":"IF(DataLog!$C1126=\"Log value\",DataLog!Y1126,\"\")","v":""},{"$f":"IF(DataLog!$C1126=\"Log value\",DataLog!Z1126,\"\")","v":""},{"$f":"IF(DataLog!$C1126=\"Log value\",DataLog!AA1126,\"\")","v":""},{"$f":"IF(DataLog!$C1126=\"Log value\",DataLog!AB1126,\"\")","v":""},{"$f":"IF(DataLog!$C1126=\"Log value\",DataLog!AC1126,\"\")","v":""},{"$f":"IF(DataLog!$C1126=\"Log value\",DataLog!AD1126,\"\")","v":""},{"$f":"IF(DataLog!$C1126=\"Log value\",DataLog!AE1126,\"\")","v":""},{"$f":"IF(DataLog!$C1126=\"Log value\",DataLog!AF1126,\"\")","v":""},{"$f":"IF(DataLog!$C1126=\"Log value\",DataLog!AG1126,\"\")","v":""},{"$f":"IF(DataLog!$C1126=\"Log value\",DataLog!AH1126,\"\")","v":""},{"$f":"IF(DataLog!$C1126=\"Log value\",DataLog!AI1126,\"\")","v":""},{"$f":"IF(DataLog!$C1126=\"Log value\",DataLog!AJ1126,\"\")","v":""},{"$f":"IF(DataLog!$C1126=\"Log value\",DataLog!AK1126,\"\")","v":""},{"$f":"IF(DataLog!$C1126=\"Log value\",DataLog!AL1126,\"\")","v":""},{"$f":"IF(DataLog!$C1126=\"Log value\",DataLog!AM1126,\"\")","v":""}]
[null,null,null,null,null,null,{"$f":"IF(DataLog!$C1127=\"Log value\",DataLog!D1127&\"_\"&TEXT(DataLog!B1127,\"åååå-mm-dd\"),\"\")","v":""},{"$f":"IF(DataLog!$C1127=\"Log value\",DataLog!E1127,\"\")","v":""},{"$f":"IF(DataLog!$C1127=\"Log value\",DataLog!F1127,\"\")","v":""},{"$f":"IF(DataLog!$C1127=\"Log value\",DataLog!G1127,\"\")","v":""},{"$f":"IF(DataLog!$C1127=\"Log value\",DataLog!H1127,\"\")","v":""},{"$f":"IF(DataLog!$C1127=\"Log value\",DataLog!I1127,\"\")","v":""},{"$f":"IF(DataLog!$C1127=\"Log value\",DataLog!J1127,\"\")","v":""},{"$f":"IF(DataLog!$C1127=\"Log value\",DataLog!K1127,\"\")","v":""},{"$f":"IF(DataLog!$C1127=\"Log value\",DataLog!L1127,\"\")","v":""},{"$f":"IF(DataLog!$C1127=\"Log value\",DataLog!M1127,\"\")","v":""},{"$f":"IF(DataLog!$C1127=\"Log value\",DataLog!N1127,\"\")","v":""},{"$f":"IF(DataLog!$C1127=\"Log value\",DataLog!O1127,\"\")","v":""},{"$f":"IF(DataLog!$C1127=\"Log value\",DataLog!P1127,\"\")","v":""},{"$f":"IF(DataLog!$C1127=\"Log value\",DataLog!Q1127,\"\")","v":""},{"$f":"IF(DataLog!$C1127=\"Log value\",DataLog!R1127,\"\")","v":""},{"$f":"IF(DataLog!$C1127=\"Log value\",DataLog!S1127,\"\")","v":""},{"$f":"IF(DataLog!$C1127=\"Log value\",DataLog!T1127,\"\")","v":""},{"$f":"IF(DataLog!$C1127=\"Log value\",DataLog!U1127,\"\")","v":""},{"$f":"IF(DataLog!$C1127=\"Log value\",DataLog!V1127,\"\")","v":""},{"$f":"IF(DataLog!$C1127=\"Log value\",DataLog!W1127,\"\")","v":""},{"$f":"IF(DataLog!$C1127=\"Log value\",DataLog!X1127,\"\")","v":""},{"$f":"IF(DataLog!$C1127=\"Log value\",DataLog!Y1127,\"\")","v":""},{"$f":"IF(DataLog!$C1127=\"Log value\",DataLog!Z1127,\"\")","v":""},{"$f":"IF(DataLog!$C1127=\"Log value\",DataLog!AA1127,\"\")","v":""},{"$f":"IF(DataLog!$C1127=\"Log value\",DataLog!AB1127,\"\")","v":""},{"$f":"IF(DataLog!$C1127=\"Log value\",DataLog!AC1127,\"\")","v":""},{"$f":"IF(DataLog!$C1127=\"Log value\",DataLog!AD1127,\"\")","v":""},{"$f":"IF(DataLog!$C1127=\"Log value\",DataLog!AE1127,\"\")","v":""},{"$f":"IF(DataLog!$C1127=\"Log value\",DataLog!AF1127,\"\")","v":""},{"$f":"IF(DataLog!$C1127=\"Log value\",DataLog!AG1127,\"\")","v":""},{"$f":"IF(DataLog!$C1127=\"Log value\",DataLog!AH1127,\"\")","v":""},{"$f":"IF(DataLog!$C1127=\"Log value\",DataLog!AI1127,\"\")","v":""},{"$f":"IF(DataLog!$C1127=\"Log value\",DataLog!AJ1127,\"\")","v":""},{"$f":"IF(DataLog!$C1127=\"Log value\",DataLog!AK1127,\"\")","v":""},{"$f":"IF(DataLog!$C1127=\"Log value\",DataLog!AL1127,\"\")","v":""},{"$f":"IF(DataLog!$C1127=\"Log value\",DataLog!AM1127,\"\")","v":""}]
[null,null,null,null,null,null,{"$f":"IF(DataLog!$C1130=\"Log value\",DataLog!D1130&\"_\"&TEXT(DataLog!B1130,\"åååå-mm-dd\"),\"\")","v":""},{"$f":"IF(DataLog!$C1130=\"Log value\",DataLog!E1130,\"\")","v":""},{"$f":"IF(DataLog!$C1130=\"Log value\",DataLog!F1130,\"\")","v":""},{"$f":"IF(DataLog!$C1130=\"Log value\",DataLog!G1130,\"\")","v":""},{"$f":"IF(DataLog!$C1130=\"Log value\",DataLog!H1130,\"\")","v":""},{"$f":"IF(DataLog!$C1130=\"Log value\",DataLog!I1130,\"\")","v":""},{"$f":"IF(DataLog!$C1130=\"Log value\",DataLog!J1130,\"\")","v":""},{"$f":"IF(DataLog!$C1130=\"Log value\",DataLog!K1130,\"\")","v":""},{"$f":"IF(DataLog!$C1130=\"Log value\",DataLog!L1130,\"\")","v":""},{"$f":"IF(DataLog!$C1130=\"Log value\",DataLog!M1130,\"\")","v":""},{"$f":"IF(DataLog!$C1130=\"Log value\",DataLog!N1130,\"\")","v":""},{"$f":"IF(DataLog!$C1130=\"Log value\",DataLog!O1130,\"\")","v":""},{"$f":"IF(DataLog!$C1130=\"Log value\",DataLog!P1130,\"\")","v":""},{"$f":"IF(DataLog!$C1130=\"Log value\",DataLog!Q1130,\"\")","v":""},{"$f":"IF(DataLog!$C1130=\"Log value\",DataLog!R1130,\"\")","v":""},{"$f":"IF(DataLog!$C1130=\"Log value\",DataLog!S1130,\"\")","v":""},{"$f":"IF(DataLog!$C1130=\"Log value\",DataLog!T1130,\"\")","v":""},{"$f":"IF(DataLog!$C1130=\"Log value\",DataLog!U1130,\"\")","v":""},{"$f":"IF(DataLog!$C1130=\"Log value\",DataLog!V1130,\"\")","v":""},{"$f":"IF(DataLog!$C1130=\"Log value\",DataLog!W1130,\"\")","v":""},{"$f":"IF(DataLog!$C1130=\"Log value\",DataLog!X1130,\"\")","v":""},{"$f":"IF(DataLog!$C1130=\"Log value\",DataLog!Y1130,\"\")","v":""},{"$f":"IF(DataLog!$C1130=\"Log value\",DataLog!Z1130,\"\")","v":""},{"$f":"IF(DataLog!$C1130=\"Log value\",DataLog!AA1130,\"\")","v":""},{"$f":"IF(DataLog!$C1130=\"Log value\",DataLog!AB1130,\"\")","v":""},{"$f":"IF(DataLog!$C1130=\"Log value\",DataLog!AC1130,\"\")","v":""},{"$f":"IF(DataLog!$C1130=\"Log value\",DataLog!AD1130,\"\")","v":""},{"$f":"IF(DataLog!$C1130=\"Log value\",DataLog!AE1130,\"\")","v":""},{"$f":"IF(DataLog!$C1130=\"Log value\",DataLog!AF1130,\"\")","v":""},{"$f":"IF(DataLog!$C1130=\"Log value\",DataLog!AG1130,\"\")","v":""},{"$f":"IF(DataLog!$C1130=\"Log value\",DataLog!AH1130,\"\")","v":""},{"$f":"IF(DataLog!$C1130=\"Log value\",DataLog!AI1130,\"\")","v":""},{"$f":"IF(DataLog!$C1130=\"Log value\",DataLog!AJ1130,\"\")","v":""},{"$f":"IF(DataLog!$C1130=\"Log value\",DataLog!AK1130,\"\")","v":""},{"$f":"IF(DataLog!$C1130=\"Log value\",DataLog!AL1130,\"\")","v":""},{"$f":"IF(DataLog!$C1130=\"Log value\",DataLog!AM1130,\"\")","v":""}]
[null,null,null,null,null,null,{"$f":"IF(DataLog!$C1132=\"Log value\",DataLog!D1132&\"_\"&TEXT(DataLog!B1132,\"åååå-mm-dd\"),\"\")","v":""},{"$f":"IF(DataLog!$C1132=\"Log value\",DataLog!E1132,\"\")","v":""},{"$f":"IF(DataLog!$C1132=\"Log value\",DataLog!F1132,\"\")","v":""},{"$f":"IF(DataLog!$C1132=\"Log value\",DataLog!G1132,\"\")","v":""},{"$f":"IF(DataLog!$C1132=\"Log value\",DataLog!H1132,\"\")","v":""},{"$f":"IF(DataLog!$C1132=\"Log value\",DataLog!I1132,\"\")","v":""},{"$f":"IF(DataLog!$C1132=\"Log value\",DataLog!J1132,\"\")","v":""},{"$f":"IF(DataLog!$C1132=\"Log value\",DataLog!K1132,\"\")","v":""},{"$f":"IF(DataLog!$C1132=\"Log value\",DataLog!L1132,\"\")","v":""},{"$f":"IF(DataLog!$C1132=\"Log value\",DataLog!M1132,\"\")","v":""},{"$f":"IF(DataLog!$C1132=\"Log value\",DataLog!N1132,\"\")","v":""},{"$f":"IF(DataLog!$C1132=\"Log value\",DataLog!O1132,\"\")","v":""},{"$f":"IF(DataLog!$C1132=\"Log value\",DataLog!P1132,\"\")","v":""},{"$f":"IF(DataLog!$C1132=\"Log value\",DataLog!Q1132,\"\")","v":""},{"$f":"IF(DataLog!$C1132=\"Log value\",DataLog!R1132,\"\")","v":""},{"$f":"IF(DataLog!$C1132=\"Log value\",DataLog!S1132,\"\")","v":""},{"$f":"IF(DataLog!$C1132=\"Log value\",DataLog!T1132,\"\")","v":""},{"$f":"IF(DataLog!$C1132=\"Log value\",DataLog!U1132,\"\")","v":""},{"$f":"IF(DataLog!$C1132=\"Log value\",DataLog!V1132,\"\")","v":""},{"$f":"IF(DataLog!$C1132=\"Log value\",DataLog!W1132,\"\")","v":""},{"$f":"IF(DataLog!$C1132=\"Log value\",DataLog!X1132,\"\")","v":""},{"$f":"IF(DataLog!$C1132=\"Log value\",DataLog!Y1132,\"\")","v":""},{"$f":"IF(DataLog!$C1132=\"Log value\",DataLog!Z1132,\"\")","v":""},{"$f":"IF(DataLog!$C1132=\"Log value\",DataLog!AA1132,\"\")","v":""},{"$f":"IF(DataLog!$C1132=\"Log value\",DataLog!AB1132,\"\")","v":""},{"$f":"IF(DataLog!$C1132=\"Log value\",DataLog!AC1132,\"\")","v":""},{"$f":"IF(DataLog!$C1132=\"Log value\",DataLog!AD1132,\"\")","v":""},{"$f":"IF(DataLog!$C1132=\"Log value\",DataLog!AE1132,\"\")","v":""},{"$f":"IF(DataLog!$C1132=\"Log value\",DataLog!AF1132,\"\")","v":""},{"$f":"IF(DataLog!$C1132=\"Log value\",DataLog!AG1132,\"\")","v":""},{"$f":"IF(DataLog!$C1132=\"Log value\",DataLog!AH1132,\"\")","v":""},{"$f":"IF(DataLog!$C1132=\"Log value\",DataLog!AI1132,\"\")","v":""},{"$f":"IF(DataLog!$C1132=\"Log value\",DataLog!AJ1132,\"\")","v":""},{"$f":"IF(DataLog!$C1132=\"Log value\",DataLog!AK1132,\"\")","v":""},{"$f":"IF(DataLog!$C1132=\"Log value\",DataLog!AL1132,\"\")","v":""},{"$f":"IF(DataLog!$C1132=\"Log value\",DataLog!AM1132,\"\")","v":""}]
[null,null,null,null,null,null,{"$f":"IF(DataLog!$C1135=\"Log value\",DataLog!D1135&\"_\"&TEXT(DataLog!B1135,\"åååå-mm-dd\"),\"\")","v":""},{"$f":"IF(DataLog!$C1135=\"Log value\",DataLog!E1135,\"\")","v":""},{"$f":"IF(DataLog!$C1135=\"Log value\",DataLog!F1135,\"\")","v":""},{"$f":"IF(DataLog!$C1135=\"Log value\",DataLog!G1135,\"\")","v":""},{"$f":"IF(DataLog!$C1135=\"Log value\",DataLog!H1135,\"\")","v":""},{"$f":"IF(DataLog!$C1135=\"Log value\",DataLog!I1135,\"\")","v":""},{"$f":"IF(DataLog!$C1135=\"Log value\",DataLog!J1135,\"\")","v":""},{"$f":"IF(DataLog!$C1135=\"Log value\",DataLog!K1135,\"\")","v":""},{"$f":"IF(DataLog!$C1135=\"Log value\",DataLog!L1135,\"\")","v":""},{"$f":"IF(DataLog!$C1135=\"Log value\",DataLog!M1135,\"\")","v":""},{"$f":"IF(DataLog!$C1135=\"Log value\",DataLog!N1135,\"\")","v":""},{"$f":"IF(DataLog!$C1135=\"Log value\",DataLog!O1135,\"\")","v":""},{"$f":"IF(DataLog!$C1135=\"Log value\",DataLog!P1135,\"\")","v":""},{"$f":"IF(DataLog!$C1135=\"Log value\",DataLog!Q1135,\"\")","v":""},{"$f":"IF(DataLog!$C1135=\"Log value\",DataLog!R1135,\"\")","v":""},{"$f":"IF(DataLog!$C1135=\"Log value\",DataLog!S1135,\"\")","v":""},{"$f":"IF(DataLog!$C1135=\"Log value\",DataLog!T1135,\"\")","v":""},{"$f":"IF(DataLog!$C1135=\"Log value\",DataLog!U1135,\"\")","v":""},{"$f":"IF(DataLog!$C1135=\"Log value\",DataLog!V1135,\"\")","v":""},{"$f":"IF(DataLog!$C1135=\"Log value\",DataLog!W1135,\"\")","v":""},{"$f":"IF(DataLog!$C1135=\"Log value\",DataLog!X1135,\"\")","v":""},{"$f":"IF(DataLog!$C1135=\"Log value\",DataLog!Y1135,\"\")","v":""},{"$f":"IF(DataLog!$C1135=\"Log value\",DataLog!Z1135,\"\")","v":""},{"$f":"IF(DataLog!$C1135=\"Log value\",DataLog!AA1135,\"\")","v":""},{"$f":"IF(DataLog!$C1135=\"Log value\",DataLog!AB1135,\"\")","v":""},{"$f":"IF(DataLog!$C1135=\"Log value\",DataLog!AC1135,\"\")","v":""},{"$f":"IF(DataLog!$C1135=\"Log value\",DataLog!AD1135,\"\")","v":""},{"$f":"IF(DataLog!$C1135=\"Log value\",DataLog!AE1135,\"\")","v":""},{"$f":"IF(DataLog!$C1135=\"Log value\",DataLog!AF1135,\"\")","v":""},{"$f":"IF(DataLog!$C1135=\"Log value\",DataLog!AG1135,\"\")","v":""},{"$f":"IF(DataLog!$C1135=\"Log value\",DataLog!AH1135,\"\")","v":""},{"$f":"IF(DataLog!$C1135=\"Log value\",DataLog!AI1135,\"\")","v":""},{"$f":"IF(DataLog!$C1135=\"Log value\",DataLog!AJ1135,\"\")","v":""},{"$f":"IF(DataLog!$C1135=\"Log value\",DataLog!AK1135,\"\")","v":""},{"$f":"IF(DataLog!$C1135=\"Log value\",DataLog!AL1135,\"\")","v":""},{"$f":"IF(DataLog!$C1135=\"Log value\",DataLog!AM1135,\"\")","v":""}]
[null,null,null,null,null,null,{"$f":"IF(DataLog!$C1136=\"Log value\",DataLog!D1136&\"_\"&TEXT(DataLog!B1136,\"åååå-mm-dd\"),\"\")","v":""},{"$f":"IF(DataLog!$C1136=\"Log value\",DataLog!E1136,\"\")","v":""},{"$f":"IF(DataLog!$C1136=\"Log value\",DataLog!F1136,\"\")","v":""},{"$f":"IF(DataLog!$C1136=\"Log value\",DataLog!G1136,\"\")","v":""},{"$f":"IF(DataLog!$C1136=\"Log value\",DataLog!H1136,\"\")","v":""},{"$f":"IF(DataLog!$C1136=\"Log value\",DataLog!I1136,\"\")","v":""},{"$f":"IF(DataLog!$C1136=\"Log value\",DataLog!J1136,\"\")","v":""},{"$f":"IF(DataLog!$C1136=\"Log value\",DataLog!K1136,\"\")","v":""},{"$f":"IF(DataLog!$C1136=\"Log value\",DataLog!L1136,\"\")","v":""},{"$f":"IF(DataLog!$C1136=\"Log value\",DataLog!M1136,\"\")","v":""},{"$f":"IF(DataLog!$C1136=\"Log value\",DataLog!N1136,\"\")","v":""},{"$f":"IF(DataLog!$C1136=\"Log value\",DataLog!O1136,\"\")","v":""},{"$f":"IF(DataLog!$C1136=\"Log value\",DataLog!P1136,\"\")","v":""},{"$f":"IF(DataLog!$C1136=\"Log value\",DataLog!Q1136,\"\")","v":""},{"$f":"IF(DataLog!$C1136=\"Log value\",DataLog!R1136,\"\")","v":""},{"$f":"IF(DataLog!$C1136=\"Log value\",DataLog!S1136,\"\")","v":""},{"$f":"IF(DataLog!$C1136=\"Log value\",DataLog!T1136,\"\")","v":""},{"$f":"IF(DataLog!$C1136=\"Log value\",DataLog!U1136,\"\")","v":""},{"$f":"IF(DataLog!$C1136=\"Log value\",DataLog!V1136,\"\")","v":""},{"$f":"IF(DataLog!$C1136=\"Log value\",DataLog!W1136,\"\")","v":""},{"$f":"IF(DataLog!$C1136=\"Log value\",DataLog!X1136,\"\")","v":""},{"$f":"IF(DataLog!$C1136=\"Log value\",DataLog!Y1136,\"\")","v":""},{"$f":"IF(DataLog!$C1136=\"Log value\",DataLog!Z1136,\"\")","v":""},{"$f":"IF(DataLog!$C1136=\"Log value\",DataLog!AA1136,\"\")","v":""},{"$f":"IF(DataLog!$C1136=\"Log value\",DataLog!AB1136,\"\")","v":""},{"$f":"IF(DataLog!$C1136=\"Log value\",DataLog!AC1136,\"\")","v":""},{"$f":"IF(DataLog!$C1136=\"Log value\",DataLog!AD1136,\"\")","v":""},{"$f":"IF(DataLog!$C1136=\"Log value\",DataLog!AE1136,\"\")","v":""},{"$f":"IF(DataLog!$C1136=\"Log value\",DataLog!AF1136,\"\")","v":""},{"$f":"IF(DataLog!$C1136=\"Log value\",DataLog!AG1136,\"\")","v":""},{"$f":"IF(DataLog!$C1136=\"Log value\",DataLog!AH1136,\"\")","v":""},{"$f":"IF(DataLog!$C1136=\"Log value\",DataLog!AI1136,\"\")","v":""},{"$f":"IF(DataLog!$C1136=\"Log value\",DataLog!AJ1136,\"\")","v":""},{"$f":"IF(DataLog!$C1136=\"Log value\",DataLog!AK1136,\"\")","v":""},{"$f":"IF(DataLog!$C1136=\"Log value\",DataLog!AL1136,\"\")","v":""},{"$f":"IF(DataLog!$C1136=\"Log value\",DataLog!AM1136,\"\")","v":""}]
[null,null,null,null,null,null,{"$f":"IF(DataLog!$C1138=\"Log value\",DataLog!D1138&\"_\"&TEXT(DataLog!B1138,\"åååå-mm-dd\"),\"\")","v":""},{"$f":"IF(DataLog!$C1138=\"Log value\",DataLog!E1138,\"\")","v":""},{"$f":"IF(DataLog!$C1138=\"Log value\",DataLog!F1138,\"\")","v":""},{"$f":"IF(DataLog!$C1138=\"Log value\",DataLog!G1138,\"\")","v":""},{"$f":"IF(DataLog!$C1138=\"Log value\",DataLog!H1138,\"\")","v":""},{"$f":"IF(DataLog!$C1138=\"Log value\",DataLog!I1138,\"\")","v":""},{"$f":"IF(DataLog!$C1138=\"Log value\",DataLog!J1138,\"\")","v":""},{"$f":"IF(DataLog!$C1138=\"Log value\",DataLog!K1138,\"\")","v":""},{"$f":"IF(DataLog!$C1138=\"Log value\",DataLog!L1138,\"\")","v":""},{"$f":"IF(DataLog!$C1138=\"Log value\",DataLog!M1138,\"\")","v":""},{"$f":"IF(DataLog!$C1138=\"Log value\",DataLog!N1138,\"\")","v":""},{"$f":"IF(DataLog!$C1138=\"Log value\",DataLog!O1138,\"\")","v":""},{"$f":"IF(DataLog!$C1138=\"Log value\",DataLog!P1138,\"\")","v":""},{"$f":"IF(DataLog!$C1138=\"Log value\",DataLog!Q1138,\"\")","v":""},{"$f":"IF(DataLog!$C1138=\"Log value\",DataLog!R1138,\"\")","v":""},{"$f":"IF(DataLog!$C1138=\"Log value\",DataLog!S1138,\"\")","v":""},{"$f":"IF(DataLog!$C1138=\"Log value\",DataLog!T1138,\"\")","v":""},{"$f":"IF(DataLog!$C1138=\"Log value\",DataLog!U1138,\"\")","v":""},{"$f":"IF(DataLog!$C1138=\"Log value\",DataLog!V1138,\"\")","v":""},{"$f":"IF(DataLog!$C1138=\"Log value\",DataLog!W1138,\"\")","v":""},{"$f":"IF(DataLog!$C1138=\"Log value\",DataLog!X1138,\"\")","v":""},{"$f":"IF(DataLog!$C1138=\"Log value\",DataLog!Y1138,\"\")","v":""},{"$f":"IF(DataLog!$C1138=\"Log value\",DataLog!Z1138,\"\")","v":""},{"$f":"IF(DataLog!$C1138=\"Log value\",DataLog!AA1138,\"\")","v":""},{"$f":"IF(DataLog!$C1138=\"Log value\",DataLog!AB1138,\"\")","v":""},{"$f":"IF(DataLog!$C1138=\"Log value\",DataLog!AC1138,\"\")","v":""},{"$f":"IF(DataLog!$C1138=\"Log value\",DataLog!AD1138,\"\")","v":""},{"$f":"IF(DataLog!$C1138=\"Log value\",DataLog!AE1138,\"\")","v":""},{"$f":"IF(DataLog!$C1138=\"Log value\",DataLog!AF1138,\"\")","v":""},{"$f":"IF(DataLog!$C1138=\"Log value\",DataLog!AG1138,\"\")","v":""},{"$f":"IF(DataLog!$C1138=\"Log value\",DataLog!AH1138,\"\")","v":""},{"$f":"IF(DataLog!$C1138=\"Log value\",DataLog!AI1138,\"\")","v":""},{"$f":"IF(DataLog!$C1138=\"Log value\",DataLog!AJ1138,\"\")","v":""},{"$f":"IF(DataLog!$C1138=\"Log value\",DataLog!AK1138,\"\")","v":""},{"$f":"IF(DataLog!$C1138=\"Log value\",DataLog!AL1138,\"\")","v":""},{"$f":"IF(DataLog!$C1138=\"Log value\",DataLog!AM1138,\"\")","v":""}]
[null,null,null,null,null,null,{"$f":"IF(DataLog!$C1141=\"Log value\",DataLog!D1141&\"_\"&TEXT(DataLog!B1141,\"åååå-mm-dd\"),\"\")","v":""},{"$f":"IF(DataLog!$C1141=\"Log value\",DataLog!E1141,\"\")","v":""},{"$f":"IF(DataLog!$C1141=\"Log value\",DataLog!F1141,\"\")","v":""},{"$f":"IF(DataLog!$C1141=\"Log value\",DataLog!G1141,\"\")","v":""},{"$f":"IF(DataLog!$C1141=\"Log value\",DataLog!H1141,\"\")","v":""},{"$f":"IF(DataLog!$C1141=\"Log value\",DataLog!I1141,\"\")","v":""},{"$f":"IF(DataLog!$C1141=\"Log value\",DataLog!J1141,\"\")","v":""},{"$f":"IF(DataLog!$C1141=\"Log value\",DataLog!K1141,\"\")","v":""},{"$f":"IF(DataLog!$C1141=\"Log value\",DataLog!L1141,\"\")","v":""},{"$f":"IF(DataLog!$C1141=\"Log value\",DataLog!M1141,\"\")","v":""},{"$f":"IF(DataLog!$C1141=\"Log value\",DataLog!N1141,\"\")","v":""},{"$f":"IF(DataLog!$C1141=\"Log value\",DataLog!O1141,\"\")","v":""},{"$f":"IF(DataLog!$C1141=\"Log value\",DataLog!P1141,\"\")","v":""},{"$f":"IF(DataLog!$C1141=\"Log value\",DataLog!Q1141,\"\")","v":""},{"$f":"IF(DataLog!$C1141=\"Log value\",DataLog!R1141,\"\")","v":""},{"$f":"IF(DataLog!$C1141=\"Log value\",DataLog!S1141,\"\")","v":""},{"$f":"IF(DataLog!$C1141=\"Log value\",DataLog!T1141,\"\")","v":""},{"$f":"IF(DataLog!$C1141=\"Log value\",DataLog!U1141,\"\")","v":""},{"$f":"IF(DataLog!$C1141=\"Log value\",DataLog!V1141,\"\")","v":""},{"$f":"IF(DataLog!$C1141=\"Log value\",DataLog!W1141,\"\")","v":""},{"$f":"IF(DataLog!$C1141=\"Log value\",DataLog!X1141,\"\")","v":""},{"$f":"IF(DataLog!$C1141=\"Log value\",DataLog!Y1141,\"\")","v":""},{"$f":"IF(DataLog!$C1141=\"Log value\",DataLog!Z1141,\"\")","v":""},{"$f":"IF(DataLog!$C1141=\"Log value\",DataLog!AA1141,\"\")","v":""},{"$f":"IF(DataLog!$C1141=\"Log value\",DataLog!AB1141,\"\")","v":""},{"$f":"IF(DataLog!$C1141=\"Log value\",DataLog!AC1141,\"\")","v":""},{"$f":"IF(DataLog!$C1141=\"Log value\",DataLog!AD1141,\"\")","v":""},{"$f":"IF(DataLog!$C1141=\"Log value\",DataLog!AE1141,\"\")","v":""},{"$f":"IF(DataLog!$C1141=\"Log value\",DataLog!AF1141,\"\")","v":""},{"$f":"IF(DataLog!$C1141=\"Log value\",DataLog!AG1141,\"\")","v":""},{"$f":"IF(DataLog!$C1141=\"Log value\",DataLog!AH1141,\"\")","v":""},{"$f":"IF(DataLog!$C1141=\"Log value\",DataLog!AI1141,\"\")","v":""},{"$f":"IF(DataLog!$C1141=\"Log value\",DataLog!AJ1141,\"\")","v":""},{"$f":"IF(DataLog!$C1141=\"Log value\",DataLog!AK1141,\"\")","v":""},{"$f":"IF(DataLog!$C1141=\"Log value\",DataLog!AL1141,\"\")","v":""},{"$f":"IF(DataLog!$C1141=\"Log value\",DataLog!AM1141,\"\")","v":""}]
[null,null,null,null,null,null,{"$f":"IF(DataLog!$C1144=\"Log value\",DataLog!D1144&\"_\"&TEXT(DataLog!B1144,\"åååå-mm-dd\"),\"\")","v":""},{"$f":"IF(DataLog!$C1144=\"Log value\",DataLog!E1144,\"\")","v":""},{"$f":"IF(DataLog!$C1144=\"Log value\",DataLog!F1144,\"\")","v":""},{"$f":"IF(DataLog!$C1144=\"Log value\",DataLog!G1144,\"\")","v":""},{"$f":"IF(DataLog!$C1144=\"Log value\",DataLog!H1144,\"\")","v":""},{"$f":"IF(DataLog!$C1144=\"Log value\",DataLog!I1144,\"\")","v":""},{"$f":"IF(DataLog!$C1144=\"Log value\",DataLog!J1144,\"\")","v":""},{"$f":"IF(DataLog!$C1144=\"Log value\",DataLog!K1144,\"\")","v":""},{"$f":"IF(DataLog!$C1144=\"Log value\",DataLog!L1144,\"\")","v":""},{"$f":"IF(DataLog!$C1144=\"Log value\",DataLog!M1144,\"\")","v":""},{"$f":"IF(DataLog!$C1144=\"Log value\",DataLog!N1144,\"\")","v":""},{"$f":"IF(DataLog!$C1144=\"Log value\",DataLog!O1144,\"\")","v":""},{"$f":"IF(DataLog!$C1144=\"Log value\",DataLog!P1144,\"\")","v":""},{"$f":"IF(DataLog!$C1144=\"Log value\",DataLog!Q1144,\"\")","v":""},{"$f":"IF(DataLog!$C1144=\"Log value\",DataLog!R1144,\"\")","v":""},{"$f":"IF(DataLog!$C1144=\"Log value\",DataLog!S1144,\"\")","v":""},{"$f":"IF(DataLog!$C1144=\"Log value\",DataLog!T1144,\"\")","v":""},{"$f":"IF(DataLog!$C1144=\"Log value\",DataLog!U1144,\"\")","v":""},{"$f":"IF(DataLog!$C1144=\"Log value\",DataLog!V1144,\"\")","v":""},{"$f":"IF(DataLog!$C1144=\"Log value\",DataLog!W1144,\"\")","v":""},{"$f":"IF(DataLog!$C1144=\"Log value\",DataLog!X1144,\"\")","v":""},{"$f":"IF(DataLog!$C1144=\"Log value\",DataLog!Y1144,\"\")","v":""},{"$f":"IF(DataLog!$C1144=\"Log value\",DataLog!Z1144,\"\")","v":""},{"$f":"IF(DataLog!$C1144=\"Log value\",DataLog!AA1144,\"\")","v":""},{"$f":"IF(DataLog!$C1144=\"Log value\",DataLog!AB1144,\"\")","v":""},{"$f":"IF(DataLog!$C1144=\"Log value\",DataLog!AC1144,\"\")","v":""},{"$f":"IF(DataLog!$C1144=\"Log value\",DataLog!AD1144,\"\")","v":""},{"$f":"IF(DataLog!$C1144=\"Log value\",DataLog!AE1144,\"\")","v":""},{"$f":"IF(DataLog!$C1144=\"Log value\",DataLog!AF1144,\"\")","v":""},{"$f":"IF(DataLog!$C1144=\"Log value\",DataLog!AG1144,\"\")","v":""},{"$f":"IF(DataLog!$C1144=\"Log value\",DataLog!AH1144,\"\")","v":""},{"$f":"IF(DataLog!$C1144=\"Log value\",DataLog!AI1144,\"\")","v":""},{"$f":"IF(DataLog!$C1144=\"Log value\",DataLog!AJ1144,\"\")","v":""},{"$f":"IF(DataLog!$C1144=\"Log value\",DataLog!AK1144,\"\")","v":""},{"$f":"IF(DataLog!$C1144=\"Log value\",DataLog!AL1144,\"\")","v":""},{"$f":"IF(DataLog!$C1144=\"Log value\",DataLog!AM1144,\"\")","v":""}]
[null,null,null,null,null,null,{"$f":"IF(DataLog!$C1146=\"Log value\",DataLog!D1146&\"_\"&TEXT(DataLog!B1146,\"åååå-mm-dd\"),\"\")","v":""},{"$f":"IF(DataLog!$C1146=\"Log value\",DataLog!E1146,\"\")","v":""},{"$f":"IF(DataLog!$C1146=\"Log value\",DataLog!F1146,\"\")","v":""},{"$f":"IF(DataLog!$C1146=\"Log value\",DataLog!G1146,\"\")","v":""},{"$f":"IF(DataLog!$C1146=\"Log value\",DataLog!H1146,\"\")","v":""},{"$f":"IF(DataLog!$C1146=\"Log value\",DataLog!I1146,\"\")","v":""},{"$f":"IF(DataLog!$C1146=\"Log value\",DataLog!J1146,\"\")","v":""},{"$f":"IF(DataLog!$C1146=\"Log value\",DataLog!K1146,\"\")","v":""},{"$f":"IF(DataLog!$C1146=\"Log value\",DataLog!L1146,\"\")","v":""},{"$f":"IF(DataLog!$C1146=\"Log value\",DataLog!M1146,\"\")","v":""},{"$f":"IF(DataLog!$C1146=\"Log value\",DataLog!N1146,\"\")","v":""},{"$f":"IF(DataLog!$C1146=\"Log value\",DataLog!O1146,\"\")","v":""},{"$f":"IF(DataLog!$C1146=\"Log value\",DataLog!P1146,\"\")","v":""},{"$f":"IF(DataLog!$C1146=\"Log value\",DataLog!Q1146,\"\")","v":""},{"$f":"IF(DataLog!$C1146=\"Log value\",DataLog!R1146,\"\")","v":""},{"$f":"IF(DataLog!$C1146=\"Log value\",DataLog!S1146,\"\")","v":""},{"$f":"IF(DataLog!$C1146=\"Log value\",DataLog!T1146,\"\")","v":""},{"$f":"IF(DataLog!$C1146=\"Log value\",DataLog!U1146,\"\")","v":""},{"$f":"IF(DataLog!$C1146=\"Log value\",DataLog!V1146,\"\")","v":""},{"$f":"IF(DataLog!$C1146=\"Log value\",DataLog!W1146,\"\")","v":""},{"$f":"IF(DataLog!$C1146=\"Log value\",DataLog!X1146,\"\")","v":""},{"$f":"IF(DataLog!$C1146=\"Log value\",DataLog!Y1146,\"\")","v":""},{"$f":"IF(DataLog!$C1146=\"Log value\",DataLog!Z1146,\"\")","v":""},{"$f":"IF(DataLog!$C1146=\"Log value\",DataLog!AA1146,\"\")","v":""},{"$f":"IF(DataLog!$C1146=\"Log value\",DataLog!AB1146,\"\")","v":""},{"$f":"IF(DataLog!$C1146=\"Log value\",DataLog!AC1146,\"\")","v":""},{"$f":"IF(DataLog!$C1146=\"Log value\",DataLog!AD1146,\"\")","v":""},{"$f":"IF(DataLog!$C1146=\"Log value\",DataLog!AE1146,\"\")","v":""},{"$f":"IF(DataLog!$C1146=\"Log value\",DataLog!AF1146,\"\")","v":""},{"$f":"IF(DataLog!$C1146=\"Log value\",DataLog!AG1146,\"\")","v":""},{"$f":"IF(DataLog!$C1146=\"Log value\",DataLog!AH1146,\"\")","v":""},{"$f":"IF(DataLog!$C1146=\"Log value\",DataLog!AI1146,\"\")","v":""},{"$f":"IF(DataLog!$C1146=\"Log value\",DataLog!AJ1146,\"\")","v":""},{"$f":"IF(DataLog!$C1146=\"Log value\",DataLog!AK1146,\"\")","v":""},{"$f":"IF(DataLog!$C1146=\"Log value\",DataLog!AL1146,\"\")","v":""},{"$f":"IF(DataLog!$C1146=\"Log value\",DataLog!AM1146,\"\")","v":""}]
[null,null,null,null,null,null,{"$f":"IF(DataLog!$C1149=\"Log value\",DataLog!D1149&\"_\"&TEXT(DataLog!B1149,\"åååå-mm-dd\"),\"\")","v":""},{"$f":"IF(DataLog!$C1149=\"Log value\",DataLog!E1149,\"\")","v":""},{"$f":"IF(DataLog!$C1149=\"Log value\",DataLog!F1149,\"\")","v":""},{"$f":"IF(DataLog!$C1149=\"Log value\",DataLog!G1149,\"\")","v":""},{"$f":"IF(DataLog!$C1149=\"Log value\",DataLog!H1149,\"\")","v":""},{"$f":"IF(DataLog!$C1149=\"Log value\",DataLog!I1149,\"\")","v":""},{"$f":"IF(DataLog!$C1149=\"Log value\",DataLog!J1149,\"\")","v":""},{"$f":"IF(DataLog!$C1149=\"Log value\",DataLog!K1149,\"\")","v":""},{"$f":"IF(DataLog!$C1149=\"Log value\",DataLog!L1149,\"\")","v":""},{"$f":"IF(DataLog!$C1149=\"Log value\",DataLog!M1149,\"\")","v":""},{"$f":"IF(DataLog!$C1149=\"Log value\",DataLog!N1149,\"\")","v":""},{"$f":"IF(DataLog!$C1149=\"Log value\",DataLog!O1149,\"\")","v":""},{"$f":"IF(DataLog!$C1149=\"Log value\",DataLog!P1149,\"\")","v":""},{"$f":"IF(DataLog!$C1149=\"Log value\",DataLog!Q1149,\"\")","v":""},{"$f":"IF(DataLog!$C1149=\"Log value\",DataLog!R1149,\"\")","v":""},{"$f":"IF(DataLog!$C1149=\"Log value\",DataLog!S1149,\"\")","v":""},{"$f":"IF(DataLog!$C1149=\"Log value\",DataLog!T1149,\"\")","v":""},{"$f":"IF(DataLog!$C1149=\"Log value\",DataLog!U1149,\"\")","v":""},{"$f":"IF(DataLog!$C1149=\"Log value\",DataLog!V1149,\"\")","v":""},{"$f":"IF(DataLog!$C1149=\"Log value\",DataLog!W1149,\"\")","v":""},{"$f":"IF(DataLog!$C1149=\"Log value\",DataLog!X1149,\"\")","v":""},{"$f":"IF(DataLog!$C1149=\"Log value\",DataLog!Y1149,\"\")","v":""},{"$f":"IF(DataLog!$C1149=\"Log value\",DataLog!Z1149,\"\")","v":""},{"$f":"IF(DataLog!$C1149=\"Log value\",DataLog!AA1149,\"\")","v":""},{"$f":"IF(DataLog!$C1149=\"Log value\",DataLog!AB1149,\"\")","v":""},{"$f":"IF(DataLog!$C1149=\"Log value\",DataLog!AC1149,\"\")","v":""},{"$f":"IF(DataLog!$C1149=\"Log value\",DataLog!AD1149,\"\")","v":""},{"$f":"IF(DataLog!$C1149=\"Log value\",DataLog!AE1149,\"\")","v":""},{"$f":"IF(DataLog!$C1149=\"Log value\",DataLog!AF1149,\"\")","v":""},{"$f":"IF(DataLog!$C1149=\"Log value\",DataLog!AG1149,\"\")","v":""},{"$f":"IF(DataLog!$C1149=\"Log value\",DataLog!AH1149,\"\")","v":""},{"$f":"IF(DataLog!$C1149=\"Log value\",DataLog!AI1149,\"\")","v":""},{"$f":"IF(DataLog!$C1149=\"Log value\",DataLog!AJ1149,\"\")","v":""},{"$f":"IF(DataLog!$C1149=\"Log value\",DataLog!AK1149,\"\")","v":""},{"$f":"IF(DataLog!$C1149=\"Log value\",DataLog!AL1149,\"\")","v":""},{"$f":"IF(DataLog!$C1149=\"Log value\",DataLog!AM1149,\"\")","v":""}]
[null,null,null,null,null,null,{"$f":"IF(DataLog!$C1150=\"Log value\",DataLog!D1150&\"_\"&TEXT(DataLog!B1150,\"åååå-mm-dd\"),\"\")","v":""},{"$f":"IF(DataLog!$C1150=\"Log value\",DataLog!E1150,\"\")","v":""},{"$f":"IF(DataLog!$C1150=\"Log value\",DataLog!F1150,\"\")","v":""},{"$f":"IF(DataLog!$C1150=\"Log value\",DataLog!G1150,\"\")","v":""},{"$f":"IF(DataLog!$C1150=\"Log value\",DataLog!H1150,\"\")","v":""},{"$f":"IF(DataLog!$C1150=\"Log value\",DataLog!I1150,\"\")","v":""},{"$f":"IF(DataLog!$C1150=\"Log value\",DataLog!J1150,\"\")","v":""},{"$f":"IF(DataLog!$C1150=\"Log value\",DataLog!K1150,\"\")","v":""},{"$f":"IF(DataLog!$C1150=\"Log value\",DataLog!L1150,\"\")","v":""},{"$f":"IF(DataLog!$C1150=\"Log value\",DataLog!M1150,\"\")","v":""},{"$f":"IF(DataLog!$C1150=\"Log value\",DataLog!N1150,\"\")","v":""},{"$f":"IF(DataLog!$C1150=\"Log value\",DataLog!O1150,\"\")","v":""},{"$f":"IF(DataLog!$C1150=\"Log value\",DataLog!P1150,\"\")","v":""},{"$f":"IF(DataLog!$C1150=\"Log value\",DataLog!Q1150,\"\")","v":""},{"$f":"IF(DataLog!$C1150=\"Log value\",DataLog!R1150,\"\")","v":""},{"$f":"IF(DataLog!$C1150=\"Log value\",DataLog!S1150,\"\")","v":""},{"$f":"IF(DataLog!$C1150=\"Log value\",DataLog!T1150,\"\")","v":""},{"$f":"IF(DataLog!$C1150=\"Log value\",DataLog!U1150,\"\")","v":""},{"$f":"IF(DataLog!$C1150=\"Log value\",DataLog!V1150,\"\")","v":""},{"$f":"IF(DataLog!$C1150=\"Log value\",DataLog!W1150,\"\")","v":""},{"$f":"IF(DataLog!$C1150=\"Log value\",DataLog!X1150,\"\")","v":""},{"$f":"IF(DataLog!$C1150=\"Log value\",DataLog!Y1150,\"\")","v":""},{"$f":"IF(DataLog!$C1150=\"Log value\",DataLog!Z1150,\"\")","v":""},{"$f":"IF(DataLog!$C1150=\"Log value\",DataLog!AA1150,\"\")","v":""},{"$f":"IF(DataLog!$C1150=\"Log value\",DataLog!AB1150,\"\")","v":""},{"$f":"IF(DataLog!$C1150=\"Log value\",DataLog!AC1150,\"\")","v":""},{"$f":"IF(DataLog!$C1150=\"Log value\",DataLog!AD1150,\"\")","v":""},{"$f":"IF(DataLog!$C1150=\"Log value\",DataLog!AE1150,\"\")","v":""},{"$f":"IF(DataLog!$C1150=\"Log value\",DataLog!AF1150,\"\")","v":""},{"$f":"IF(DataLog!$C1150=\"Log value\",DataLog!AG1150,\"\")","v":""},{"$f":"IF(DataLog!$C1150=\"Log value\",DataLog!AH1150,\"\")","v":""},{"$f":"IF(DataLog!$C1150=\"Log value\",DataLog!AI1150,\"\")","v":""},{"$f":"IF(DataLog!$C1150=\"Log value\",DataLog!AJ1150,\"\")","v":""},{"$f":"IF(DataLog!$C1150=\"Log value\",DataLog!AK1150,\"\")","v":""},{"$f":"IF(DataLog!$C1150=\"Log value\",DataLog!AL1150,\"\")","v":""},{"$f":"IF(DataLog!$C1150=\"Log value\",DataLog!AM1150,\"\")","v":""}]
[null,null,null,null,null,null,{"$f":"IF(DataLog!$C1153=\"Log value\",DataLog!D1153&\"_\"&TEXT(DataLog!B1153,\"åååå-mm-dd\"),\"\")","v":""},{"$f":"IF(DataLog!$C1153=\"Log value\",DataLog!E1153,\"\")","v":""},{"$f":"IF(DataLog!$C1153=\"Log value\",DataLog!F1153,\"\")","v":""},{"$f":"IF(DataLog!$C1153=\"Log value\",DataLog!G1153,\"\")","v":""},{"$f":"IF(DataLog!$C1153=\"Log value\",DataLog!H1153,\"\")","v":""},{"$f":"IF(DataLog!$C1153=\"Log value\",DataLog!I1153,\"\")","v":""},{"$f":"IF(DataLog!$C1153=\"Log value\",DataLog!J1153,\"\")","v":""},{"$f":"IF(DataLog!$C1153=\"Log value\",DataLog!K1153,\"\")","v":""},{"$f":"IF(DataLog!$C1153=\"Log value\",DataLog!L1153,\"\")","v":""},{"$f":"IF(DataLog!$C1153=\"Log value\",DataLog!M1153,\"\")","v":""},{"$f":"IF(DataLog!$C1153=\"Log value\",DataLog!N1153,\"\")","v":""},{"$f":"IF(DataLog!$C1153=\"Log value\",DataLog!O1153,\"\")","v":""},{"$f":"IF(DataLog!$C1153=\"Log value\",DataLog!P1153,\"\")","v":""},{"$f":"IF(DataLog!$C1153=\"Log value\",DataLog!Q1153,\"\")","v":""},{"$f":"IF(DataLog!$C1153=\"Log value\",DataLog!R1153,\"\")","v":""},{"$f":"IF(DataLog!$C1153=\"Log value\",DataLog!S1153,\"\")","v":""},{"$f":"IF(DataLog!$C1153=\"Log value\",DataLog!T1153,\"\")","v":""},{"$f":"IF(DataLog!$C1153=\"Log value\",DataLog!U1153,\"\")","v":""},{"$f":"IF(DataLog!$C1153=\"Log value\",DataLog!V1153,\"\")","v":""},{"$f":"IF(DataLog!$C1153=\"Log value\",DataLog!W1153,\"\")","v":""},{"$f":"IF(DataLog!$C1153=\"Log value\",DataLog!X1153,\"\")","v":""},{"$f":"IF(DataLog!$C1153=\"Log value\",DataLog!Y1153,\"\")","v":""},{"$f":"IF(DataLog!$C1153=\"Log value\",DataLog!Z1153,\"\")","v":""},{"$f":"IF(DataLog!$C1153=\"Log value\",DataLog!AA1153,\"\")","v":""},{"$f":"IF(DataLog!$C1153=\"Log value\",DataLog!AB1153,\"\")","v":""},{"$f":"IF(DataLog!$C1153=\"Log value\",DataLog!AC1153,\"\")","v":""},{"$f":"IF(DataLog!$C1153=\"Log value\",DataLog!AD1153,\"\")","v":""},{"$f":"IF(DataLog!$C1153=\"Log value\",DataLog!AE1153,\"\")","v":""},{"$f":"IF(DataLog!$C1153=\"Log value\",DataLog!AF1153,\"\")","v":""},{"$f":"IF(DataLog!$C1153=\"Log value\",DataLog!AG1153,\"\")","v":""},{"$f":"IF(DataLog!$C1153=\"Log value\",DataLog!AH1153,\"\")","v":""},{"$f":"IF(DataLog!$C1153=\"Log value\",DataLog!AI1153,\"\")","v":""},{"$f":"IF(DataLog!$C1153=\"Log value\",DataLog!AJ1153,\"\")","v":""},{"$f":"IF(DataLog!$C1153=\"Log value\",DataLog!AK1153,\"\")","v":""},{"$f":"IF(DataLog!$C1153=\"Log value\",DataLog!AL1153,\"\")","v":""},{"$f":"IF(DataLog!$C1153=\"Log value\",DataLog!AM1153,\"\")","v":""}]
[null,null,null,null,null,null,{"$f":"IF(DataLog!$C1156=\"Log value\",DataLog!D1156&\"_\"&TEXT(DataLog!B1156,\"åååå-mm-dd\"),\"\")","v":""},{"$f":"IF(DataLog!$C1156=\"Log value\",DataLog!E1156,\"\")","v":""},{"$f":"IF(DataLog!$C1156=\"Log value\",DataLog!F1156,\"\")","v":""},{"$f":"IF(DataLog!$C1156=\"Log value\",DataLog!G1156,\"\")","v":""},{"$f":"IF(DataLog!$C1156=\"Log value\",DataLog!H1156,\"\")","v":""},{"$f":"IF(DataLog!$C1156=\"Log value\",DataLog!I1156,\"\")","v":""},{"$f":"IF(DataLog!$C1156=\"Log value\",DataLog!J1156,\"\")","v":""},{"$f":"IF(DataLog!$C1156=\"Log value\",DataLog!K1156,\"\")","v":""},{"$f":"IF(DataLog!$C1156=\"Log value\",DataLog!L1156,\"\")","v":""},{"$f":"IF(DataLog!$C1156=\"Log value\",DataLog!M1156,\"\")","v":""},{"$f":"IF(DataLog!$C1156=\"Log value\",DataLog!N1156,\"\")","v":""},{"$f":"IF(DataLog!$C1156=\"Log value\",DataLog!O1156,\"\")","v":""},{"$f":"IF(DataLog!$C1156=\"Log value\",DataLog!P1156,\"\")","v":""},{"$f":"IF(DataLog!$C1156=\"Log value\",DataLog!Q1156,\"\")","v":""},{"$f":"IF(DataLog!$C1156=\"Log value\",DataLog!R1156,\"\")","v":""},{"$f":"IF(DataLog!$C1156=\"Log value\",DataLog!S1156,\"\")","v":""},{"$f":"IF(DataLog!$C1156=\"Log value\",DataLog!T1156,\"\")","v":""},{"$f":"IF(DataLog!$C1156=\"Log value\",DataLog!U1156,\"\")","v":""},{"$f":"IF(DataLog!$C1156=\"Log value\",DataLog!V1156,\"\")","v":""},{"$f":"IF(DataLog!$C1156=\"Log value\",DataLog!W1156,\"\")","v":""},{"$f":"IF(DataLog!$C1156=\"Log value\",DataLog!X1156,\"\")","v":""},{"$f":"IF(DataLog!$C1156=\"Log value\",DataLog!Y1156,\"\")","v":""},{"$f":"IF(DataLog!$C1156=\"Log value\",DataLog!Z1156,\"\")","v":""},{"$f":"IF(DataLog!$C1156=\"Log value\",DataLog!AA1156,\"\")","v":""},{"$f":"IF(DataLog!$C1156=\"Log value\",DataLog!AB1156,\"\")","v":""},{"$f":"IF(DataLog!$C1156=\"Log value\",DataLog!AC1156,\"\")","v":""},{"$f":"IF(DataLog!$C1156=\"Log value\",DataLog!AD1156,\"\")","v":""},{"$f":"IF(DataLog!$C1156=\"Log value\",DataLog!AE1156,\"\")","v":""},{"$f":"IF(DataLog!$C1156=\"Log value\",DataLog!AF1156,\"\")","v":""},{"$f":"IF(DataLog!$C1156=\"Log value\",DataLog!AG1156,\"\")","v":""},{"$f":"IF(DataLog!$C1156=\"Log value\",DataLog!AH1156,\"\")","v":""},{"$f":"IF(DataLog!$C1156=\"Log value\",DataLog!AI1156,\"\")","v":""},{"$f":"IF(DataLog!$C1156=\"Log value\",DataLog!AJ1156,\"\")","v":""},{"$f":"IF(DataLog!$C1156=\"Log value\",DataLog!AK1156,\"\")","v":""},{"$f":"IF(DataLog!$C1156=\"Log value\",DataLog!AL1156,\"\")","v":""},{"$f":"IF(DataLog!$C1156=\"Log value\",DataLog!AM1156,\"\")","v":""}]
[null,null,null,null,null,null,{"$f":"IF(DataLog!$C1158=\"Log value\",DataLog!D1158&\"_\"&TEXT(DataLog!B1158,\"åååå-mm-dd\"),\"\")","v":""},{"$f":"IF(DataLog!$C1158=\"Log value\",DataLog!E1158,\"\")","v":""},{"$f":"IF(DataLog!$C1158=\"Log value\",DataLog!F1158,\"\")","v":""},{"$f":"IF(DataLog!$C1158=\"Log value\",DataLog!G1158,\"\")","v":""},{"$f":"IF(DataLog!$C1158=\"Log value\",DataLog!H1158,\"\")","v":""},{"$f":"IF(DataLog!$C1158=\"Log value\",DataLog!I1158,\"\")","v":""},{"$f":"IF(DataLog!$C1158=\"Log value\",DataLog!J1158,\"\")","v":""},{"$f":"IF(DataLog!$C1158=\"Log value\",DataLog!K1158,\"\")","v":""},{"$f":"IF(DataLog!$C1158=\"Log value\",DataLog!L1158,\"\")","v":""},{"$f":"IF(DataLog!$C1158=\"Log value\",DataLog!M1158,\"\")","v":""},{"$f":"IF(DataLog!$C1158=\"Log value\",DataLog!N1158,\"\")","v":""},{"$f":"IF(DataLog!$C1158=\"Log value\",DataLog!O1158,\"\")","v":""},{"$f":"IF(DataLog!$C1158=\"Log value\",DataLog!P1158,\"\")","v":""},{"$f":"IF(DataLog!$C1158=\"Log value\",DataLog!Q1158,\"\")","v":""},{"$f":"IF(DataLog!$C1158=\"Log value\",DataLog!R1158,\"\")","v":""},{"$f":"IF(DataLog!$C1158=\"Log value\",DataLog!S1158,\"\")","v":""},{"$f":"IF(DataLog!$C1158=\"Log value\",DataLog!T1158,\"\")","v":""},{"$f":"IF(DataLog!$C1158=\"Log value\",DataLog!U1158,\"\")","v":""},{"$f":"IF(DataLog!$C1158=\"Log value\",DataLog!V1158,\"\")","v":""},{"$f":"IF(DataLog!$C1158=\"Log value\",DataLog!W1158,\"\")","v":""},{"$f":"IF(DataLog!$C1158=\"Log value\",DataLog!X1158,\"\")","v":""},{"$f":"IF(DataLog!$C1158=\"Log value\",DataLog!Y1158,\"\")","v":""},{"$f":"IF(DataLog!$C1158=\"Log value\",DataLog!Z1158,\"\")","v":""},{"$f":"IF(DataLog!$C1158=\"Log value\",DataLog!AA1158,\"\")","v":""},{"$f":"IF(DataLog!$C1158=\"Log value\",DataLog!AB1158,\"\")","v":""},{"$f":"IF(DataLog!$C1158=\"Log value\",DataLog!AC1158,\"\")","v":""},{"$f":"IF(DataLog!$C1158=\"Log value\",DataLog!AD1158,\"\")","v":""},{"$f":"IF(DataLog!$C1158=\"Log value\",DataLog!AE1158,\"\")","v":""},{"$f":"IF(DataLog!$C1158=\"Log value\",DataLog!AF1158,\"\")","v":""},{"$f":"IF(DataLog!$C1158=\"Log value\",DataLog!AG1158,\"\")","v":""},{"$f":"IF(DataLog!$C1158=\"Log value\",DataLog!AH1158,\"\")","v":""},{"$f":"IF(DataLog!$C1158=\"Log value\",DataLog!AI1158,\"\")","v":""},{"$f":"IF(DataLog!$C1158=\"Log value\",DataLog!AJ1158,\"\")","v":""},{"$f":"IF(DataLog!$C1158=\"Log value\",DataLog!AK1158,\"\")","v":""},{"$f":"IF(DataLog!$C1158=\"Log value\",DataLog!AL1158,\"\")","v":""},{"$f":"IF(DataLog!$C1158=\"Log value\",DataLog!AM1158,\"\")","v":""}]
[null,null,null,null,null,null,{"$f":"IF(DataLog!$C1159=\"Log value\",DataLog!D1159&\"_\"&TEXT(DataLog!B1159,\"åååå-mm-dd\"),\"\")","v":""},{"$f":"IF(DataLog!$C1159=\"Log value\",DataLog!E1159,\"\")","v":""},{"$f":"IF(DataLog!$C1159=\"Log value\",DataLog!F1159,\"\")","v":""},{"$f":"IF(DataLog!$C1159=\"Log value\",DataLog!G1159,\"\")","v":""},{"$f":"IF(DataLog!$C1159=\"Log value\",DataLog!H1159,\"\")","v":""},{"$f":"IF(DataLog!$C1159=\"Log value\",DataLog!I1159,\"\")","v":""},{"$f":"IF(DataLog!$C1159=\"Log value\",DataLog!J1159,\"\")","v":""},{"$f":"IF(DataLog!$C1159=\"Log value\",DataLog!K1159,\"\")","v":""},{"$f":"IF(DataLog!$C1159=\"Log value\",DataLog!L1159,\"\")","v":""},{"$f":"IF(DataLog!$C1159=\"Log value\",DataLog!M1159,\"\")","v":""},{"$f":"IF(DataLog!$C1159=\"Log value\",DataLog!N1159,\"\")","v":""},{"$f":"IF(DataLog!$C1159=\"Log value\",DataLog!O1159,\"\")","v":""},{"$f":"IF(DataLog!$C1159=\"Log value\",DataLog!P1159,\"\")","v":""},{"$f":"IF(DataLog!$C1159=\"Log value\",DataLog!Q1159,\"\")","v":""},{"$f":"IF(DataLog!$C1159=\"Log value\",DataLog!R1159,\"\")","v":""},{"$f":"IF(DataLog!$C1159=\"Log value\",DataLog!S1159,\"\")","v":""},{"$f":"IF(DataLog!$C1159=\"Log value\",DataLog!T1159,\"\")","v":""},{"$f":"IF(DataLog!$C1159=\"Log value\",DataLog!U1159,\"\")","v":""},{"$f":"IF(DataLog!$C1159=\"Log value\",DataLog!V1159,\"\")","v":""},{"$f":"IF(DataLog!$C1159=\"Log value\",DataLog!W1159,\"\")","v":""},{"$f":"IF(DataLog!$C1159=\"Log value\",DataLog!X1159,\"\")","v":""},{"$f":"IF(DataLog!$C1159=\"Log value\",DataLog!Y1159,\"\")","v":""},{"$f":"IF(DataLog!$C1159=\"Log value\",DataLog!Z1159,\"\")","v":""},{"$f":"IF(DataLog!$C1159=\"Log value\",DataLog!AA1159,\"\")","v":""},{"$f":"IF(DataLog!$C1159=\"Log value\",DataLog!AB1159,\"\")","v":""},{"$f":"IF(DataLog!$C1159=\"Log value\",DataLog!AC1159,\"\")","v":""},{"$f":"IF(DataLog!$C1159=\"Log value\",DataLog!AD1159,\"\")","v":""},{"$f":"IF(DataLog!$C1159=\"Log value\",DataLog!AE1159,\"\")","v":""},{"$f":"IF(DataLog!$C1159=\"Log value\",DataLog!AF1159,\"\")","v":""},{"$f":"IF(DataLog!$C1159=\"Log value\",DataLog!AG1159,\"\")","v":""},{"$f":"IF(DataLog!$C1159=\"Log value\",DataLog!AH1159,\"\")","v":""},{"$f":"IF(DataLog!$C1159=\"Log value\",DataLog!AI1159,\"\")","v":""},{"$f":"IF(DataLog!$C1159=\"Log value\",DataLog!AJ1159,\"\")","v":""},{"$f":"IF(DataLog!$C1159=\"Log value\",DataLog!AK1159,\"\")","v":""},{"$f":"IF(DataLog!$C1159=\"Log value\",DataLog!AL1159,\"\")","v":""},{"$f":"IF(DataLog!$C1159=\"Log value\",DataLog!AM1159,\"\")","v":""}]
[null,null,null,null,null,null,{"$f":"IF(DataLog!$C1162=\"Log value\",DataLog!D1162&\"_\"&TEXT(DataLog!B1162,\"åååå-mm-dd\"),\"\")","v":""},{"$f":"IF(DataLog!$C1162=\"Log value\",DataLog!E1162,\"\")","v":""},{"$f":"IF(DataLog!$C1162=\"Log value\",DataLog!F1162,\"\")","v":""},{"$f":"IF(DataLog!$C1162=\"Log value\",DataLog!G1162,\"\")","v":""},{"$f":"IF(DataLog!$C1162=\"Log value\",DataLog!H1162,\"\")","v":""},{"$f":"IF(DataLog!$C1162=\"Log value\",DataLog!I1162,\"\")","v":""},{"$f":"IF(DataLog!$C1162=\"Log value\",DataLog!J1162,\"\")","v":""},{"$f":"IF(DataLog!$C1162=\"Log value\",DataLog!K1162,\"\")","v":""},{"$f":"IF(DataLog!$C1162=\"Log value\",DataLog!L1162,\"\")","v":""},{"$f":"IF(DataLog!$C1162=\"Log value\",DataLog!M1162,\"\")","v":""},{"$f":"IF(DataLog!$C1162=\"Log value\",DataLog!N1162,\"\")","v":""},{"$f":"IF(DataLog!$C1162=\"Log value\",DataLog!O1162,\"\")","v":""},{"$f":"IF(DataLog!$C1162=\"Log value\",DataLog!P1162,\"\")","v":""},{"$f":"IF(DataLog!$C1162=\"Log value\",DataLog!Q1162,\"\")","v":""},{"$f":"IF(DataLog!$C1162=\"Log value\",DataLog!R1162,\"\")","v":""},{"$f":"IF(DataLog!$C1162=\"Log value\",DataLog!S1162,\"\")","v":""},{"$f":"IF(DataLog!$C1162=\"Log value\",DataLog!T1162,\"\")","v":""},{"$f":"IF(DataLog!$C1162=\"Log value\",DataLog!U1162,\"\")","v":""},{"$f":"IF(DataLog!$C1162=\"Log value\",DataLog!V1162,\"\")","v":""},{"$f":"IF(DataLog!$C1162=\"Log value\",DataLog!W1162,\"\")","v":""},{"$f":"IF(DataLog!$C1162=\"Log value\",DataLog!X1162,\"\")","v":""},{"$f":"IF(DataLog!$C1162=\"Log value\",DataLog!Y1162,\"\")","v":""},{"$f":"IF(DataLog!$C1162=\"Log value\",DataLog!Z1162,\"\")","v":""},{"$f":"IF(DataLog!$C1162=\"Log value\",DataLog!AA1162,\"\")","v":""},{"$f":"IF(DataLog!$C1162=\"Log value\",DataLog!AB1162,\"\")","v":""},{"$f":"IF(DataLog!$C1162=\"Log value\",DataLog!AC1162,\"\")","v":""},{"$f":"IF(DataLog!$C1162=\"Log value\",DataLog!AD1162,\"\")","v":""},{"$f":"IF(DataLog!$C1162=\"Log value\",DataLog!AE1162,\"\")","v":""},{"$f":"IF(DataLog!$C1162=\"Log value\",DataLog!AF1162,\"\")","v":""},{"$f":"IF(DataLog!$C1162=\"Log value\",DataLog!AG1162,\"\")","v":""},{"$f":"IF(DataLog!$C1162=\"Log value\",DataLog!AH1162,\"\")","v":""},{"$f":"IF(DataLog!$C1162=\"Log value\",DataLog!AI1162,\"\")","v":""},{"$f":"IF(DataLog!$C1162=\"Log value\",DataLog!AJ1162,\"\")","v":""},{"$f":"IF(DataLog!$C1162=\"Log value\",DataLog!AK1162,\"\")","v":""},{"$f":"IF(DataLog!$C1162=\"Log value\",DataLog!AL1162,\"\")","v":""},{"$f":"IF(DataLog!$C1162=\"Log value\",DataLog!AM1162,\"\")","v":""}]
[null,null,null,null,null,null,{"$f":"IF(DataLog!$C1164=\"Log value\",DataLog!D1164&\"_\"&TEXT(DataLog!B1164,\"åååå-mm-dd\"),\"\")","v":""},{"$f":"IF(DataLog!$C1164=\"Log value\",DataLog!E1164,\"\")","v":""},{"$f":"IF(DataLog!$C1164=\"Log value\",DataLog!F1164,\"\")","v":""},{"$f":"IF(DataLog!$C1164=\"Log value\",DataLog!G1164,\"\")","v":""},{"$f":"IF(DataLog!$C1164=\"Log value\",DataLog!H1164,\"\")","v":""},{"$f":"IF(DataLog!$C1164=\"Log value\",DataLog!I1164,\"\")","v":""},{"$f":"IF(DataLog!$C1164=\"Log value\",DataLog!J1164,\"\")","v":""},{"$f":"IF(DataLog!$C1164=\"Log value\",DataLog!K1164,\"\")","v":""},{"$f":"IF(DataLog!$C1164=\"Log value\",DataLog!L1164,\"\")","v":""},{"$f":"IF(DataLog!$C1164=\"Log value\",DataLog!M1164,\"\")","v":""},{"$f":"IF(DataLog!$C1164=\"Log value\",DataLog!N1164,\"\")","v":""},{"$f":"IF(DataLog!$C1164=\"Log value\",DataLog!O1164,\"\")","v":""},{"$f":"IF(DataLog!$C1164=\"Log value\",DataLog!P1164,\"\")","v":""},{"$f":"IF(DataLog!$C1164=\"Log value\",DataLog!Q1164,\"\")","v":""},{"$f":"IF(DataLog!$C1164=\"Log value\",DataLog!R1164,\"\")","v":""},{"$f":"IF(DataLog!$C1164=\"Log value\",DataLog!S1164,\"\")","v":""},{"$f":"IF(DataLog!$C1164=\"Log value\",DataLog!T1164,\"\")","v":""},{"$f":"IF(DataLog!$C1164=\"Log value\",DataLog!U1164,\"\")","v":""},{"$f":"IF(DataLog!$C1164=\"Log value\",DataLog!V1164,\"\")","v":""},{"$f":"IF(DataLog!$C1164=\"Log value\",DataLog!W1164,\"\")","v":""},{"$f":"IF(DataLog!$C1164=\"Log value\",DataLog!X1164,\"\")","v":""},{"$f":"IF(DataLog!$C1164=\"Log value\",DataLog!Y1164,\"\")","v":""},{"$f":"IF(DataLog!$C1164=\"Log value\",DataLog!Z1164,\"\")","v":""},{"$f":"IF(DataLog!$C1164=\"Log value\",DataLog!AA1164,\"\")","v":""},{"$f":"IF(DataLog!$C1164=\"Log value\",DataLog!AB1164,\"\")","v":""},{"$f":"IF(DataLog!$C1164=\"Log value\",DataLog!AC1164,\"\")","v":""},{"$f":"IF(DataLog!$C1164=\"Log value\",DataLog!AD1164,\"\")","v":""},{"$f":"IF(DataLog!$C1164=\"Log value\",DataLog!AE1164,\"\")","v":""},{"$f":"IF(DataLog!$C1164=\"Log value\",DataLog!AF1164,\"\")","v":""},{"$f":"IF(DataLog!$C1164=\"Log value\",DataLog!AG1164,\"\")","v":""},{"$f":"IF(DataLog!$C1164=\"Log value\",DataLog!AH1164,\"\")","v":""},{"$f":"IF(DataLog!$C1164=\"Log value\",DataLog!AI1164,\"\")","v":""},{"$f":"IF(DataLog!$C1164=\"Log value\",DataLog!AJ1164,\"\")","v":""},{"$f":"IF(DataLog!$C1164=\"Log value\",DataLog!AK1164,\"\")","v":""},{"$f":"IF(DataLog!$C1164=\"Log value\",DataLog!AL1164,\"\")","v":""},{"$f":"IF(DataLog!$C1164=\"Log value\",DataLog!AM1164,\"\")","v":""}]
[null,null,null,null,null,null,{"$f":"IF(DataLog!$C1167=\"Log value\",DataLog!D1167&\"_\"&TEXT(DataLog!B1167,\"åååå-mm-dd\"),\"\")","v":""},{"$f":"IF(DataLog!$C1167=\"Log value\",DataLog!E1167,\"\")","v":""},{"$f":"IF(DataLog!$C1167=\"Log value\",DataLog!F1167,\"\")","v":""},{"$f":"IF(DataLog!$C1167=\"Log value\",DataLog!G1167,\"\")","v":""},{"$f":"IF(DataLog!$C1167=\"Log value\",DataLog!H1167,\"\")","v":""},{"$f":"IF(DataLog!$C1167=\"Log value\",DataLog!I1167,\"\")","v":""},{"$f":"IF(DataLog!$C1167=\"Log value\",DataLog!J1167,\"\")","v":""},{"$f":"IF(DataLog!$C1167=\"Log value\",DataLog!K1167,\"\")","v":""},{"$f":"IF(DataLog!$C1167=\"Log value\",DataLog!L1167,\"\")","v":""},{"$f":"IF(DataLog!$C1167=\"Log value\",DataLog!M1167,\"\")","v":""},{"$f":"IF(DataLog!$C1167=\"Log value\",DataLog!N1167,\"\")","v":""},{"$f":"IF(DataLog!$C1167=\"Log value\",DataLog!O1167,\"\")","v":""},{"$f":"IF(DataLog!$C1167=\"Log value\",DataLog!P1167,\"\")","v":""},{"$f":"IF(DataLog!$C1167=\"Log value\",DataLog!Q1167,\"\")","v":""},{"$f":"IF(DataLog!$C1167=\"Log value\",DataLog!R1167,\"\")","v":""},{"$f":"IF(DataLog!$C1167=\"Log value\",DataLog!S1167,\"\")","v":""},{"$f":"IF(DataLog!$C1167=\"Log value\",DataLog!T1167,\"\")","v":""},{"$f":"IF(DataLog!$C1167=\"Log value\",DataLog!U1167,\"\")","v":""},{"$f":"IF(DataLog!$C1167=\"Log value\",DataLog!V1167,\"\")","v":""},{"$f":"IF(DataLog!$C1167=\"Log value\",DataLog!W1167,\"\")","v":""},{"$f":"IF(DataLog!$C1167=\"Log value\",DataLog!X1167,\"\")","v":""},{"$f":"IF(DataLog!$C1167=\"Log value\",DataLog!Y1167,\"\")","v":""},{"$f":"IF(DataLog!$C1167=\"Log value\",DataLog!Z1167,\"\")","v":""},{"$f":"IF(DataLog!$C1167=\"Log value\",DataLog!AA1167,\"\")","v":""},{"$f":"IF(DataLog!$C1167=\"Log value\",DataLog!AB1167,\"\")","v":""},{"$f":"IF(DataLog!$C1167=\"Log value\",DataLog!AC1167,\"\")","v":""},{"$f":"IF(DataLog!$C1167=\"Log value\",DataLog!AD1167,\"\")","v":""},{"$f":"IF(DataLog!$C1167=\"Log value\",DataLog!AE1167,\"\")","v":""},{"$f":"IF(DataLog!$C1167=\"Log value\",DataLog!AF1167,\"\")","v":""},{"$f":"IF(DataLog!$C1167=\"Log value\",DataLog!AG1167,\"\")","v":""},{"$f":"IF(DataLog!$C1167=\"Log value\",DataLog!AH1167,\"\")","v":""},{"$f":"IF(DataLog!$C1167=\"Log value\",DataLog!AI1167,\"\")","v":""},{"$f":"IF(DataLog!$C1167=\"Log value\",DataLog!AJ1167,\"\")","v":""},{"$f":"IF(DataLog!$C1167=\"Log value\",DataLog!AK1167,\"\")","v":""},{"$f":"IF(DataLog!$C1167=\"Log value\",DataLog!AL1167,\"\")","v":""},{"$f":"IF(DataLog!$C1167=\"Log value\",DataLog!AM1167,\"\")","v":""}]
[null,null,null,null,null,null,{"$f":"IF(DataLog!$C1168=\"Log value\",DataLog!D1168&\"_\"&TEXT(DataLog!B1168,\"åååå-mm-dd\"),\"\")","v":""},{"$f":"IF(DataLog!$C1168=\"Log value\",DataLog!E1168,\"\")","v":""},{"$f":"IF(DataLog!$C1168=\"Log value\",DataLog!F1168,\"\")","v":""},{"$f":"IF(DataLog!$C1168=\"Log value\",DataLog!G1168,\"\")","v":""},{"$f":"IF(DataLog!$C1168=\"Log value\",DataLog!H1168,\"\")","v":""},{"$f":"IF(DataLog!$C1168=\"Log value\",DataLog!I1168,\"\")","v":""},{"$f":"IF(DataLog!$C1168=\"Log value\",DataLog!J1168,\"\")","v":""},{"$f":"IF(DataLog!$C1168=\"Log value\",DataLog!K1168,\"\")","v":""},{"$f":"IF(DataLog!$C1168=\"Log value\",DataLog!L1168,\"\")","v":""},{"$f":"IF(DataLog!$C1168=\"Log value\",DataLog!M1168,\"\")","v":""},{"$f":"IF(DataLog!$C1168=\"Log value\",DataLog!N1168,\"\")","v":""},{"$f":"IF(DataLog!$C1168=\"Log value\",DataLog!O1168,\"\")","v":""},{"$f":"IF(DataLog!$C1168=\"Log value\",DataLog!P1168,\"\")","v":""},{"$f":"IF(DataLog!$C1168=\"Log value\",DataLog!Q1168,\"\")","v":""},{"$f":"IF(DataLog!$C1168=\"Log value\",DataLog!R1168,\"\")","v":""},{"$f":"IF(DataLog!$C1168=\"Log value\",DataLog!S1168,\"\")","v":""},{"$f":"IF(DataLog!$C1168=\"Log value\",DataLog!T1168,\"\")","v":""},{"$f":"IF(DataLog!$C1168=\"Log value\",DataLog!U1168,\"\")","v":""},{"$f":"IF(DataLog!$C1168=\"Log value\",DataLog!V1168,\"\")","v":""},{"$f":"IF(DataLog!$C1168=\"Log value\",DataLog!W1168,\"\")","v":""},{"$f":"IF(DataLog!$C1168=\"Log value\",DataLog!X1168,\"\")","v":""},{"$f":"IF(DataLog!$C1168=\"Log value\",DataLog!Y1168,\"\")","v":""},{"$f":"IF(DataLog!$C1168=\"Log value\",DataLog!Z1168,\"\")","v":""},{"$f":"IF(DataLog!$C1168=\"Log value\",DataLog!AA1168,\"\")","v":""},{"$f":"IF(DataLog!$C1168=\"Log value\",DataLog!AB1168,\"\")","v":""},{"$f":"IF(DataLog!$C1168=\"Log value\",DataLog!AC1168,\"\")","v":""},{"$f":"IF(DataLog!$C1168=\"Log value\",DataLog!AD1168,\"\")","v":""},{"$f":"IF(DataLog!$C1168=\"Log value\",DataLog!AE1168,\"\")","v":""},{"$f":"IF(DataLog!$C1168=\"Log value\",DataLog!AF1168,\"\")","v":""},{"$f":"IF(DataLog!$C1168=\"Log value\",DataLog!AG1168,\"\")","v":""},{"$f":"IF(DataLog!$C1168=\"Log value\",DataLog!AH1168,\"\")","v":""},{"$f":"IF(DataLog!$C1168=\"Log value\",DataLog!AI1168,\"\")","v":""},{"$f":"IF(DataLog!$C1168=\"Log value\",DataLog!AJ1168,\"\")","v":""},{"$f":"IF(DataLog!$C1168=\"Log value\",DataLog!AK1168,\"\")","v":""},{"$f":"IF(DataLog!$C1168=\"Log value\",DataLog!AL1168,\"\")","v":""},{"$f":"IF(DataLog!$C1168=\"Log value\",DataLog!AM1168,\"\")","v":""}]
[null,null,null,null,null,null,{"$f":"IF(DataLog!$C1171=\"Log value\",DataLog!D1171&\"_\"&TEXT(DataLog!B1171,\"åååå-mm-dd\"),\"\")","v":""},{"$f":"IF(DataLog!$C1171=\"Log value\",DataLog!E1171,\"\")","v":""},{"$f":"IF(DataLog!$C1171=\"Log value\",DataLog!F1171,\"\")","v":""},{"$f":"IF(DataLog!$C1171=\"Log value\",DataLog!G1171,\"\")","v":""},{"$f":"IF(DataLog!$C1171=\"Log value\",DataLog!H1171,\"\")","v":""},{"$f":"IF(DataLog!$C1171=\"Log value\",DataLog!I1171,\"\")","v":""},{"$f":"IF(DataLog!$C1171=\"Log value\",DataLog!J1171,\"\")","v":""},{"$f":"IF(DataLog!$C1171=\"Log value\",DataLog!K1171,\"\")","v":""},{"$f":"IF(DataLog!$C1171=\"Log value\",DataLog!L1171,\"\")","v":""},{"$f":"IF(DataLog!$C1171=\"Log value\",DataLog!M1171,\"\")","v":""},{"$f":"IF(DataLog!$C1171=\"Log value\",DataLog!N1171,\"\")","v":""},{"$f":"IF(DataLog!$C1171=\"Log value\",DataLog!O1171,\"\")","v":""},{"$f":"IF(DataLog!$C1171=\"Log value\",DataLog!P1171,\"\")","v":""},{"$f":"IF(DataLog!$C1171=\"Log value\",DataLog!Q1171,\"\")","v":""},{"$f":"IF(DataLog!$C1171=\"Log value\",DataLog!R1171,\"\")","v":""},{"$f":"IF(DataLog!$C1171=\"Log value\",DataLog!S1171,\"\")","v":""},{"$f":"IF(DataLog!$C1171=\"Log value\",DataLog!T1171,\"\")","v":""},{"$f":"IF(DataLog!$C1171=\"Log value\",DataLog!U1171,\"\")","v":""},{"$f":"IF(DataLog!$C1171=\"Log value\",DataLog!V1171,\"\")","v":""},{"$f":"IF(DataLog!$C1171=\"Log value\",DataLog!W1171,\"\")","v":""},{"$f":"IF(DataLog!$C1171=\"Log value\",DataLog!X1171,\"\")","v":""},{"$f":"IF(DataLog!$C1171=\"Log value\",DataLog!Y1171,\"\")","v":""},{"$f":"IF(DataLog!$C1171=\"Log value\",DataLog!Z1171,\"\")","v":""},{"$f":"IF(DataLog!$C1171=\"Log value\",DataLog!AA1171,\"\")","v":""},{"$f":"IF(DataLog!$C1171=\"Log value\",DataLog!AB1171,\"\")","v":""},{"$f":"IF(DataLog!$C1171=\"Log value\",DataLog!AC1171,\"\")","v":""},{"$f":"IF(DataLog!$C1171=\"Log value\",DataLog!AD1171,\"\")","v":""},{"$f":"IF(DataLog!$C1171=\"Log value\",DataLog!AE1171,\"\")","v":""},{"$f":"IF(DataLog!$C1171=\"Log value\",DataLog!AF1171,\"\")","v":""},{"$f":"IF(DataLog!$C1171=\"Log value\",DataLog!AG1171,\"\")","v":""},{"$f":"IF(DataLog!$C1171=\"Log value\",DataLog!AH1171,\"\")","v":""},{"$f":"IF(DataLog!$C1171=\"Log value\",DataLog!AI1171,\"\")","v":""},{"$f":"IF(DataLog!$C1171=\"Log value\",DataLog!AJ1171,\"\")","v":""},{"$f":"IF(DataLog!$C1171=\"Log value\",DataLog!AK1171,\"\")","v":""},{"$f":"IF(DataLog!$C1171=\"Log value\",DataLog!AL1171,\"\")","v":""},{"$f":"IF(DataLog!$C1171=\"Log value\",DataLog!AM1171,\"\")","v":""}]
[null,null,null,null,null,null,{"$f":"IF(DataLog!$C1174=\"Log value\",DataLog!D1174&\"_\"&TEXT(DataLog!B1174,\"åååå-mm-dd\"),\"\")","v":""},{"$f":"IF(DataLog!$C1174=\"Log value\",DataLog!E1174,\"\")","v":""},{"$f":"IF(DataLog!$C1174=\"Log value\",DataLog!F1174,\"\")","v":""},{"$f":"IF(DataLog!$C1174=\"Log value\",DataLog!G1174,\"\")","v":""},{"$f":"IF(DataLog!$C1174=\"Log value\",DataLog!H1174,\"\")","v":""},{"$f":"IF(DataLog!$C1174=\"Log value\",DataLog!I1174,\"\")","v":""},{"$f":"IF(DataLog!$C1174=\"Log value\",DataLog!J1174,\"\")","v":""},{"$f":"IF(DataLog!$C1174=\"Log value\",DataLog!K1174,\"\")","v":""},{"$f":"IF(DataLog!$C1174=\"Log value\",DataLog!L1174,\"\")","v":""},{"$f":"IF(DataLog!$C1174=\"Log value\",DataLog!M1174,\"\")","v":""},{"$f":"IF(DataLog!$C1174=\"Log value\",DataLog!N1174,\"\")","v":""},{"$f":"IF(DataLog!$C1174=\"Log value\",DataLog!O1174,\"\")","v":""},{"$f":"IF(DataLog!$C1174=\"Log value\",DataLog!P1174,\"\")","v":""},{"$f":"IF(DataLog!$C1174=\"Log value\",DataLog!Q1174,\"\")","v":""},{"$f":"IF(DataLog!$C1174=\"Log value\",DataLog!R1174,\"\")","v":""},{"$f":"IF(DataLog!$C1174=\"Log value\",DataLog!S1174,\"\")","v":""},{"$f":"IF(DataLog!$C1174=\"Log value\",DataLog!T1174,\"\")","v":""},{"$f":"IF(DataLog!$C1174=\"Log value\",DataLog!U1174,\"\")","v":""},{"$f":"IF(DataLog!$C1174=\"Log value\",DataLog!V1174,\"\")","v":""},{"$f":"IF(DataLog!$C1174=\"Log value\",DataLog!W1174,\"\")","v":""},{"$f":"IF(DataLog!$C1174=\"Log value\",DataLog!X1174,\"\")","v":""},{"$f":"IF(DataLog!$C1174=\"Log value\",DataLog!Y1174,\"\")","v":""},{"$f":"IF(DataLog!$C1174=\"Log value\",DataLog!Z1174,\"\")","v":""},{"$f":"IF(DataLog!$C1174=\"Log value\",DataLog!AA1174,\"\")","v":""},{"$f":"IF(DataLog!$C1174=\"Log value\",DataLog!AB1174,\"\")","v":""},{"$f":"IF(DataLog!$C1174=\"Log value\",DataLog!AC1174,\"\")","v":""},{"$f":"IF(DataLog!$C1174=\"Log value\",DataLog!AD1174,\"\")","v":""},{"$f":"IF(DataLog!$C1174=\"Log value\",DataLog!AE1174,\"\")","v":""},{"$f":"IF(DataLog!$C1174=\"Log value\",DataLog!AF1174,\"\")","v":""},{"$f":"IF(DataLog!$C1174=\"Log value\",DataLog!AG1174,\"\")","v":""},{"$f":"IF(DataLog!$C1174=\"Log value\",DataLog!AH1174,\"\")","v":""},{"$f":"IF(DataLog!$C1174=\"Log value\",DataLog!AI1174,\"\")","v":""},{"$f":"IF(DataLog!$C1174=\"Log value\",DataLog!AJ1174,\"\")","v":""},{"$f":"IF(DataLog!$C1174=\"Log value\",DataLog!AK1174,\"\")","v":""},{"$f":"IF(DataLog!$C1174=\"Log value\",DataLog!AL1174,\"\")","v":""},{"$f":"IF(DataLog!$C1174=\"Log value\",DataLog!AM1174,\"\")","v":""}]
[null,null,null,null,null,null,{"$f":"IF(DataLog!$C1176=\"Log value\",DataLog!D1176&\"_\"&TEXT(DataLog!B1176,\"åååå-mm-dd\"),\"\")","v":""},{"$f":"IF(DataLog!$C1176=\"Log value\",DataLog!E1176,\"\")","v":""},{"$f":"IF(DataLog!$C1176=\"Log value\",DataLog!F1176,\"\")","v":""},{"$f":"IF(DataLog!$C1176=\"Log value\",DataLog!G1176,\"\")","v":""},{"$f":"IF(DataLog!$C1176=\"Log value\",DataLog!H1176,\"\")","v":""},{"$f":"IF(DataLog!$C1176=\"Log value\",DataLog!I1176,\"\")","v":""},{"$f":"IF(DataLog!$C1176=\"Log value\",DataLog!J1176,\"\")","v":""},{"$f":"IF(DataLog!$C1176=\"Log value\",DataLog!K1176,\"\")","v":""},{"$f":"IF(DataLog!$C1176=\"Log value\",DataLog!L1176,\"\")","v":""},{"$f":"IF(DataLog!$C1176=\"Log value\",DataLog!M1176,\"\")","v":""},{"$f":"IF(DataLog!$C1176=\"Log value\",DataLog!N1176,\"\")","v":""},{"$f":"IF(DataLog!$C1176=\"Log value\",DataLog!O1176,\"\")","v":""},{"$f":"IF(DataLog!$C1176=\"Log value\",DataLog!P1176,\"\")","v":""},{"$f":"IF(DataLog!$C1176=\"Log value\",DataLog!Q1176,\"\")","v":""},{"$f":"IF(DataLog!$C1176=\"Log value\",DataLog!R1176,\"\")","v":""},{"$f":"IF(DataLog!$C1176=\"Log value\",DataLog!S1176,\"\")","v":""},{"$f":"IF(DataLog!$C1176=\"Log value\",DataLog!T1176,\"\")","v":""},{"$f":"IF(DataLog!$C1176=\"Log value\",DataLog!U1176,\"\")","v":""},{"$f":"IF(DataLog!$C1176=\"Log value\",DataLog!V1176,\"\")","v":""},{"$f":"IF(DataLog!$C1176=\"Log value\",DataLog!W1176,\"\")","v":""},{"$f":"IF(DataLog!$C1176=\"Log value\",DataLog!X1176,\"\")","v":""},{"$f":"IF(DataLog!$C1176=\"Log value\",DataLog!Y1176,\"\")","v":""},{"$f":"IF(DataLog!$C1176=\"Log value\",DataLog!Z1176,\"\")","v":""},{"$f":"IF(DataLog!$C1176=\"Log value\",DataLog!AA1176,\"\")","v":""},{"$f":"IF(DataLog!$C1176=\"Log value\",DataLog!AB1176,\"\")","v":""},{"$f":"IF(DataLog!$C1176=\"Log value\",DataLog!AC1176,\"\")","v":""},{"$f":"IF(DataLog!$C1176=\"Log value\",DataLog!AD1176,\"\")","v":""},{"$f":"IF(DataLog!$C1176=\"Log value\",DataLog!AE1176,\"\")","v":""},{"$f":"IF(DataLog!$C1176=\"Log value\",DataLog!AF1176,\"\")","v":""},{"$f":"IF(DataLog!$C1176=\"Log value\",DataLog!AG1176,\"\")","v":""},{"$f":"IF(DataLog!$C1176=\"Log value\",DataLog!AH1176,\"\")","v":""},{"$f":"IF(DataLog!$C1176=\"Log value\",DataLog!AI1176,\"\")","v":""},{"$f":"IF(DataLog!$C1176=\"Log value\",DataLog!AJ1176,\"\")","v":""},{"$f":"IF(DataLog!$C1176=\"Log value\",DataLog!AK1176,\"\")","v":""},{"$f":"IF(DataLog!$C1176=\"Log value\",DataLog!AL1176,\"\")","v":""},{"$f":"IF(DataLog!$C1176=\"Log value\",DataLog!AM1176,\"\")","v":""}]
[null,null,null,null,null,null,{"$f":"IF(DataLog!$C1177=\"Log value\",DataLog!D1177&\"_\"&TEXT(DataLog!B1177,\"åååå-mm-dd\"),\"\")","v":""},{"$f":"IF(DataLog!$C1177=\"Log value\",DataLog!E1177,\"\")","v":""},{"$f":"IF(DataLog!$C1177=\"Log value\",DataLog!F1177,\"\")","v":""},{"$f":"IF(DataLog!$C1177=\"Log value\",DataLog!G1177,\"\")","v":""},{"$f":"IF(DataLog!$C1177=\"Log value\",DataLog!H1177,\"\")","v":""},{"$f":"IF(DataLog!$C1177=\"Log value\",DataLog!I1177,\"\")","v":""},{"$f":"IF(DataLog!$C1177=\"Log value\",DataLog!J1177,\"\")","v":""},{"$f":"IF(DataLog!$C1177=\"Log value\",DataLog!K1177,\"\")","v":""},{"$f":"IF(DataLog!$C1177=\"Log value\",DataLog!L1177,\"\")","v":""},{"$f":"IF(DataLog!$C1177=\"Log value\",DataLog!M1177,\"\")","v":""},{"$f":"IF(DataLog!$C1177=\"Log value\",DataLog!N1177,\"\")","v":""},{"$f":"IF(DataLog!$C1177=\"Log value\",DataLog!O1177,\"\")","v":""},{"$f":"IF(DataLog!$C1177=\"Log value\",DataLog!P1177,\"\")","v":""},{"$f":"IF(DataLog!$C1177=\"Log value\",DataLog!Q1177,\"\")","v":""},{"$f":"IF(DataLog!$C1177=\"Log value\",DataLog!R1177,\"\")","v":""},{"$f":"IF(DataLog!$C1177=\"Log value\",DataLog!S1177,\"\")","v":""},{"$f":"IF(DataLog!$C1177=\"Log value\",DataLog!T1177,\"\")","v":""},{"$f":"IF(DataLog!$C1177=\"Log value\",DataLog!U1177,\"\")","v":""},{"$f":"IF(DataLog!$C1177=\"Log value\",DataLog!V1177,\"\")","v":""},{"$f":"IF(DataLog!$C1177=\"Log value\",DataLog!W1177,\"\")","v":""},{"$f":"IF(DataLog!$C1177=\"Log value\",DataLog!X1177,\"\")","v":""},{"$f":"IF(DataLog!$C1177=\"Log value\",DataLog!Y1177,\"\")","v":""},{"$f":"IF(DataLog!$C1177=\"Log value\",DataLog!Z1177,\"\")","v":""},{"$f":"IF(DataLog!$C1177=\"Log value\",DataLog!AA1177,\"\")","v":""},{"$f":"IF(DataLog!$C1177=\"Log value\",DataLog!AB1177,\"\")","v":""},{"$f":"IF(DataLog!$C1177=\"Log value\",DataLog!AC1177,\"\")","v":""},{"$f":"IF(DataLog!$C1177=\"Log value\",DataLog!AD1177,\"\")","v":""},{"$f":"IF(DataLog!$C1177=\"Log value\",DataLog!AE1177,\"\")","v":""},{"$f":"IF(DataLog!$C1177=\"Log value\",DataLog!AF1177,\"\")","v":""},{"$f":"IF(DataLog!$C1177=\"Log value\",DataLog!AG1177,\"\")","v":""},{"$f":"IF(DataLog!$C1177=\"Log value\",DataLog!AH1177,\"\")","v":""},{"$f":"IF(DataLog!$C1177=\"Log value\",DataLog!AI1177,\"\")","v":""},{"$f":"IF(DataLog!$C1177=\"Log value\",DataLog!AJ1177,\"\")","v":""},{"$f":"IF(DataLog!$C1177=\"Log value\",DataLog!AK1177,\"\")","v":""},{"$f":"IF(DataLog!$C1177=\"Log value\",DataLog!AL1177,\"\")","v":""},{"$f":"IF(DataLog!$C1177=\"Log value\",DataLog!AM1177,\"\")","v":""}]
[null,null,null,null,null,null,{"$f":"IF(DataLog!$C1180=\"Log value\",DataLog!D1180&\"_\"&TEXT(DataLog!B1180,\"åååå-mm-dd\"),\"\")","v":""},{"$f":"IF(DataLog!$C1180=\"Log value\",DataLog!E1180,\"\")","v":""},{"$f":"IF(DataLog!$C1180=\"Log value\",DataLog!F1180,\"\")","v":""},{"$f":"IF(DataLog!$C1180=\"Log value\",DataLog!G1180,\"\")","v":""},{"$f":"IF(DataLog!$C1180=\"Log value\",DataLog!H1180,\"\")","v":""},{"$f":"IF(DataLog!$C1180=\"Log value\",DataLog!I1180,\"\")","v":""},{"$f":"IF(DataLog!$C1180=\"Log value\",DataLog!J1180,\"\")","v":""},{"$f":"IF(DataLog!$C1180=\"Log value\",DataLog!K1180,\"\")","v":""},{"$f":"IF(DataLog!$C1180=\"Log value\",DataLog!L1180,\"\")","v":""},{"$f":"IF(DataLog!$C1180=\"Log value\",DataLog!M1180,\"\")","v":""},{"$f":"IF(DataLog!$C1180=\"Log value\",DataLog!N1180,\"\")","v":""},{"$f":"IF(DataLog!$C1180=\"Log value\",DataLog!O1180,\"\")","v":""},{"$f":"IF(DataLog!$C1180=\"Log value\",DataLog!P1180,\"\")","v":""},{"$f":"IF(DataLog!$C1180=\"Log value\",DataLog!Q1180,\"\")","v":""},{"$f":"IF(DataLog!$C1180=\"Log value\",DataLog!R1180,\"\")","v":""},{"$f":"IF(DataLog!$C1180=\"Log value\",DataLog!S1180,\"\")","v":""},{"$f":"IF(DataLog!$C1180=\"Log value\",DataLog!T1180,\"\")","v":""},{"$f":"IF(DataLog!$C1180=\"Log value\",DataLog!U1180,\"\")","v":""},{"$f":"IF(DataLog!$C1180=\"Log value\",DataLog!V1180,\"\")","v":""},{"$f":"IF(DataLog!$C1180=\"Log value\",DataLog!W1180,\"\")","v":""},{"$f":"IF(DataLog!$C1180=\"Log value\",DataLog!X1180,\"\")","v":""},{"$f":"IF(DataLog!$C1180=\"Log value\",DataLog!Y1180,\"\")","v":""},{"$f":"IF(DataLog!$C1180=\"Log value\",DataLog!Z1180,\"\")","v":""},{"$f":"IF(DataLog!$C1180=\"Log value\",DataLog!AA1180,\"\")","v":""},{"$f":"IF(DataLog!$C1180=\"Log value\",DataLog!AB1180,\"\")","v":""},{"$f":"IF(DataLog!$C1180=\"Log value\",DataLog!AC1180,\"\")","v":""},{"$f":"IF(DataLog!$C1180=\"Log value\",DataLog!AD1180,\"\")","v":""},{"$f":"IF(DataLog!$C1180=\"Log value\",DataLog!AE1180,\"\")","v":""},{"$f":"IF(DataLog!$C1180=\"Log value\",DataLog!AF1180,\"\")","v":""},{"$f":"IF(DataLog!$C1180=\"Log value\",DataLog!AG1180,\"\")","v":""},{"$f":"IF(DataLog!$C1180=\"Log value\",DataLog!AH1180,\"\")","v":""},{"$f":"IF(DataLog!$C1180=\"Log value\",DataLog!AI1180,\"\")","v":""},{"$f":"IF(DataLog!$C1180=\"Log value\",DataLog!AJ1180,\"\")","v":""},{"$f":"IF(DataLog!$C1180=\"Log value\",DataLog!AK1180,\"\")","v":""},{"$f":"IF(DataLog!$C1180=\"Log value\",DataLog!AL1180,\"\")","v":""},{"$f":"IF(DataLog!$C1180=\"Log value\",DataLog!AM1180,\"\")","v":""}]
[null,null,null,null,null,null,{"$f":"IF(DataLog!$C1182=\"Log value\",DataLog!D1182&\"_\"&TEXT(DataLog!B1182,\"åååå-mm-dd\"),\"\")","v":""},{"$f":"IF(DataLog!$C1182=\"Log value\",DataLog!E1182,\"\")","v":""},{"$f":"IF(DataLog!$C1182=\"Log value\",DataLog!F1182,\"\")","v":""},{"$f":"IF(DataLog!$C1182=\"Log value\",DataLog!G1182,\"\")","v":""},{"$f":"IF(DataLog!$C1182=\"Log value\",DataLog!H1182,\"\")","v":""},{"$f":"IF(DataLog!$C1182=\"Log value\",DataLog!I1182,\"\")","v":""},{"$f":"IF(DataLog!$C1182=\"Log value\",DataLog!J1182,\"\")","v":""},{"$f":"IF(DataLog!$C1182=\"Log value\",DataLog!K1182,\"\")","v":""},{"$f":"IF(DataLog!$C1182=\"Log value\",DataLog!L1182,\"\")","v":""},{"$f":"IF(DataLog!$C1182=\"Log value\",DataLog!M1182,\"\")","v":""},{"$f":"IF(DataLog!$C1182=\"Log value\",DataLog!N1182,\"\")","v":""},{"$f":"IF(DataLog!$C1182=\"Log value\",DataLog!O1182,\"\")","v":""},{"$f":"IF(DataLog!$C1182=\"Log value\",DataLog!P1182,\"\")","v":""},{"$f":"IF(DataLog!$C1182=\"Log value\",DataLog!Q1182,\"\")","v":""},{"$f":"IF(DataLog!$C1182=\"Log value\",DataLog!R1182,\"\")","v":""},{"$f":"IF(DataLog!$C1182=\"Log value\",DataLog!S1182,\"\")","v":""},{"$f":"IF(DataLog!$C1182=\"Log value\",DataLog!T1182,\"\")","v":""},{"$f":"IF(DataLog!$C1182=\"Log value\",DataLog!U1182,\"\")","v":""},{"$f":"IF(DataLog!$C1182=\"Log value\",DataLog!V1182,\"\")","v":""},{"$f":"IF(DataLog!$C1182=\"Log value\",DataLog!W1182,\"\")","v":""},{"$f":"IF(DataLog!$C1182=\"Log value\",DataLog!X1182,\"\")","v":""},{"$f":"IF(DataLog!$C1182=\"Log value\",DataLog!Y1182,\"\")","v":""},{"$f":"IF(DataLog!$C1182=\"Log value\",DataLog!Z1182,\"\")","v":""},{"$f":"IF(DataLog!$C1182=\"Log value\",DataLog!AA1182,\"\")","v":""},{"$f":"IF(DataLog!$C1182=\"Log value\",DataLog!AB1182,\"\")","v":""},{"$f":"IF(DataLog!$C1182=\"Log value\",DataLog!AC1182,\"\")","v":""},{"$f":"IF(DataLog!$C1182=\"Log value\",DataLog!AD1182,\"\")","v":""},{"$f":"IF(DataLog!$C1182=\"Log value\",DataLog!AE1182,\"\")","v":""},{"$f":"IF(DataLog!$C1182=\"Log value\",DataLog!AF1182,\"\")","v":""},{"$f":"IF(DataLog!$C1182=\"Log value\",DataLog!AG1182,\"\")","v":""},{"$f":"IF(DataLog!$C1182=\"Log value\",DataLog!AH1182,\"\")","v":""},{"$f":"IF(DataLog!$C1182=\"Log value\",DataLog!AI1182,\"\")","v":""},{"$f":"IF(DataLog!$C1182=\"Log value\",DataLog!AJ1182,\"\")","v":""},{"$f":"IF(DataLog!$C1182=\"Log value\",DataLog!AK1182,\"\")","v":""},{"$f":"IF(DataLog!$C1182=\"Log value\",DataLog!AL1182,\"\")","v":""},{"$f":"IF(DataLog!$C1182=\"Log value\",DataLog!AM1182,\"\")","v":""}]
[null,null,null,null,null,null,{"$f":"IF(DataLog!$C1185=\"Log value\",DataLog!D1185&\"_\"&TEXT(DataLog!B1185,\"åååå-mm-dd\"),\"\")","v":""},{"$f":"IF(DataLog!$C1185=\"Log value\",DataLog!E1185,\"\")","v":""},{"$f":"IF(DataLog!$C1185=\"Log value\",DataLog!F1185,\"\")","v":""},{"$f":"IF(DataLog!$C1185=\"Log value\",DataLog!G1185,\"\")","v":""},{"$f":"IF(DataLog!$C1185=\"Log value\",DataLog!H1185,\"\")","v":""},{"$f":"IF(DataLog!$C1185=\"Log value\",DataLog!I1185,\"\")","v":""},{"$f":"IF(DataLog!$C1185=\"Log value\",DataLog!J1185,\"\")","v":""},{"$f":"IF(DataLog!$C1185=\"Log value\",DataLog!K1185,\"\")","v":""},{"$f":"IF(DataLog!$C1185=\"Log value\",DataLog!L1185,\"\")","v":""},{"$f":"IF(DataLog!$C1185=\"Log value\",DataLog!M1185,\"\")","v":""},{"$f":"IF(DataLog!$C1185=\"Log value\",DataLog!N1185,\"\")","v":""},{"$f":"IF(DataLog!$C1185=\"Log value\",DataLog!O1185,\"\")","v":""},{"$f":"IF(DataLog!$C1185=\"Log value\",DataLog!P1185,\"\")","v":""},{"$f":"IF(DataLog!$C1185=\"Log value\",DataLog!Q1185,\"\")","v":""},{"$f":"IF(DataLog!$C1185=\"Log value\",DataLog!R1185,\"\")","v":""},{"$f":"IF(DataLog!$C1185=\"Log value\",DataLog!S1185,\"\")","v":""},{"$f":"IF(DataLog!$C1185=\"Log value\",DataLog!T1185,\"\")","v":""},{"$f":"IF(DataLog!$C1185=\"Log value\",DataLog!U1185,\"\")","v":""},{"$f":"IF(DataLog!$C1185=\"Log value\",DataLog!V1185,\"\")","v":""},{"$f":"IF(DataLog!$C1185=\"Log value\",DataLog!W1185,\"\")","v":""},{"$f":"IF(DataLog!$C1185=\"Log value\",DataLog!X1185,\"\")","v":""},{"$f":"IF(DataLog!$C1185=\"Log value\",DataLog!Y1185,\"\")","v":""},{"$f":"IF(DataLog!$C1185=\"Log value\",DataLog!Z1185,\"\")","v":""},{"$f":"IF(DataLog!$C1185=\"Log value\",DataLog!AA1185,\"\")","v":""},{"$f":"IF(DataLog!$C1185=\"Log value\",DataLog!AB1185,\"\")","v":""},{"$f":"IF(DataLog!$C1185=\"Log value\",DataLog!AC1185,\"\")","v":""},{"$f":"IF(DataLog!$C1185=\"Log value\",DataLog!AD1185,\"\")","v":""},{"$f":"IF(DataLog!$C1185=\"Log value\",DataLog!AE1185,\"\")","v":""},{"$f":"IF(DataLog!$C1185=\"Log value\",DataLog!AF1185,\"\")","v":""},{"$f":"IF(DataLog!$C1185=\"Log value\",DataLog!AG1185,\"\")","v":""},{"$f":"IF(DataLog!$C1185=\"Log value\",DataLog!AH1185,\"\")","v":""},{"$f":"IF(DataLog!$C1185=\"Log value\",DataLog!AI1185,\"\")","v":""},{"$f":"IF(DataLog!$C1185=\"Log value\",DataLog!AJ1185,\"\")","v":""},{"$f":"IF(DataLog!$C1185=\"Log value\",DataLog!AK1185,\"\")","v":""},{"$f":"IF(DataLog!$C1185=\"Log value\",DataLog!AL1185,\"\")","v":""},{"$f":"IF(DataLog!$C1185=\"Log value\",DataLog!AM1185,\"\")","v":""}]
[null,null,null,null,null,null,{"$f":"IF(DataLog!$C1186=\"Log value\",DataLog!D1186&\"_\"&TEXT(DataLog!B1186,\"åååå-mm-dd\"),\"\")","v":""},{"$f":"IF(DataLog!$C1186=\"Log value\",DataLog!E1186,\"\")","v":""},{"$f":"IF(DataLog!$C1186=\"Log value\",DataLog!F1186,\"\")","v":""},{"$f":"IF(DataLog!$C1186=\"Log value\",DataLog!G1186,\"\")","v":""},{"$f":"IF(DataLog!$C1186=\"Log value\",DataLog!H1186,\"\")","v":""},{"$f":"IF(DataLog!$C1186=\"Log value\",DataLog!I1186,\"\")","v":""},{"$f":"IF(DataLog!$C1186=\"Log value\",DataLog!J1186,\"\")","v":""},{"$f":"IF(DataLog!$C1186=\"Log value\",DataLog!K1186,\"\")","v":""},{"$f":"IF(DataLog!$C1186=\"Log value\",DataLog!L1186,\"\")","v":""},{"$f":"IF(DataLog!$C1186=\"Log value\",DataLog!M1186,\"\")","v":""},{"$f":"IF(DataLog!$C1186=\"Log value\",DataLog!N1186,\"\")","v":""},{"$f":"IF(DataLog!$C1186=\"Log value\",DataLog!O1186,\"\")","v":""},{"$f":"IF(DataLog!$C1186=\"Log value\",DataLog!P1186,\"\")","v":""},{"$f":"IF(DataLog!$C1186=\"Log value\",DataLog!Q1186,\"\")","v":""},{"$f":"IF(DataLog!$C1186=\"Log value\",DataLog!R1186,\"\")","v":""},{"$f":"IF(DataLog!$C1186=\"Log value\",DataLog!S1186,\"\")","v":""},{"$f":"IF(DataLog!$C1186=\"Log value\",DataLog!T1186,\"\")","v":""},{"$f":"IF(DataLog!$C1186=\"Log value\",DataLog!U1186,\"\")","v":""},{"$f":"IF(DataLog!$C1186=\"Log value\",DataLog!V1186,\"\")","v":""},{"$f":"IF(DataLog!$C1186=\"Log value\",DataLog!W1186,\"\")","v":""},{"$f":"IF(DataLog!$C1186=\"Log value\",DataLog!X1186,\"\")","v":""},{"$f":"IF(DataLog!$C1186=\"Log value\",DataLog!Y1186,\"\")","v":""},{"$f":"IF(DataLog!$C1186=\"Log value\",DataLog!Z1186,\"\")","v":""},{"$f":"IF(DataLog!$C1186=\"Log value\",DataLog!AA1186,\"\")","v":""},{"$f":"IF(DataLog!$C1186=\"Log value\",DataLog!AB1186,\"\")","v":""},{"$f":"IF(DataLog!$C1186=\"Log value\",DataLog!AC1186,\"\")","v":""},{"$f":"IF(DataLog!$C1186=\"Log value\",DataLog!AD1186,\"\")","v":""},{"$f":"IF(DataLog!$C1186=\"Log value\",DataLog!AE1186,\"\")","v":""},{"$f":"IF(DataLog!$C1186=\"Log value\",DataLog!AF1186,\"\")","v":""},{"$f":"IF(DataLog!$C1186=\"Log value\",DataLog!AG1186,\"\")","v":""},{"$f":"IF(DataLog!$C1186=\"Log value\",DataLog!AH1186,\"\")","v":""},{"$f":"IF(DataLog!$C1186=\"Log value\",DataLog!AI1186,\"\")","v":""},{"$f":"IF(DataLog!$C1186=\"Log value\",DataLog!AJ1186,\"\")","v":""},{"$f":"IF(DataLog!$C1186=\"Log value\",DataLog!AK1186,\"\")","v":""},{"$f":"IF(DataLog!$C1186=\"Log value\",DataLog!AL1186,\"\")","v":""},{"$f":"IF(DataLog!$C1186=\"Log value\",DataLog!AM1186,\"\")","v":""}]
[null,null,null,null,null,null,{"$f":"IF(DataLog!$C1190=\"Log value\",DataLog!D1190&\"_\"&TEXT(DataLog!B1190,\"åååå-mm-dd\"),\"\")","v":""},{"$f":"IF(DataLog!$C1190=\"Log value\",DataLog!E1190,\"\")","v":""},{"$f":"IF(DataLog!$C1190=\"Log value\",DataLog!F1190,\"\")","v":""},{"$f":"IF(DataLog!$C1190=\"Log value\",DataLog!G1190,\"\")","v":""},{"$f":"IF(DataLog!$C1190=\"Log value\",DataLog!H1190,\"\")","v":""},{"$f":"IF(DataLog!$C1190=\"Log value\",DataLog!I1190,\"\")","v":""},{"$f":"IF(DataLog!$C1190=\"Log value\",DataLog!J1190,\"\")","v":""},{"$f":"IF(DataLog!$C1190=\"Log value\",DataLog!K1190,\"\")","v":""},{"$f":"IF(DataLog!$C1190=\"Log value\",DataLog!L1190,\"\")","v":""},{"$f":"IF(DataLog!$C1190=\"Log value\",DataLog!M1190,\"\")","v":""},{"$f":"IF(DataLog!$C1190=\"Log value\",DataLog!N1190,\"\")","v":""},{"$f":"IF(DataLog!$C1190=\"Log value\",DataLog!O1190,\"\")","v":""},{"$f":"IF(DataLog!$C1190=\"Log value\",DataLog!P1190,\"\")","v":""},{"$f":"IF(DataLog!$C1190=\"Log value\",DataLog!Q1190,\"\")","v":""},{"$f":"IF(DataLog!$C1190=\"Log value\",DataLog!R1190,\"\")","v":""},{"$f":"IF(DataLog!$C1190=\"Log value\",DataLog!S1190,\"\")","v":""},{"$f":"IF(DataLog!$C1190=\"Log value\",DataLog!T1190,\"\")","v":""},{"$f":"IF(DataLog!$C1190=\"Log value\",DataLog!U1190,\"\")","v":""},{"$f":"IF(DataLog!$C1190=\"Log value\",DataLog!V1190,\"\")","v":""},{"$f":"IF(DataLog!$C1190=\"Log value\",DataLog!W1190,\"\")","v":""},{"$f":"IF(DataLog!$C1190=\"Log value\",DataLog!X1190,\"\")","v":""},{"$f":"IF(DataLog!$C1190=\"Log value\",DataLog!Y1190,\"\")","v":""},{"$f":"IF(DataLog!$C1190=\"Log value\",DataLog!Z1190,\"\")","v":""},{"$f":"IF(DataLog!$C1190=\"Log value\",DataLog!AA1190,\"\")","v":""},{"$f":"IF(DataLog!$C1190=\"Log value\",DataLog!AB1190,\"\")","v":""},{"$f":"IF(DataLog!$C1190=\"Log value\",DataLog!AC1190,\"\")","v":""},{"$f":"IF(DataLog!$C1190=\"Log value\",DataLog!AD1190,\"\")","v":""},{"$f":"IF(DataLog!$C1190=\"Log value\",DataLog!AE1190,\"\")","v":""},{"$f":"IF(DataLog!$C1190=\"Log value\",DataLog!AF1190,\"\")","v":""},{"$f":"IF(DataLog!$C1190=\"Log value\",DataLog!AG1190,\"\")","v":""},{"$f":"IF(DataLog!$C1190=\"Log value\",DataLog!AH1190,\"\")","v":""},{"$f":"IF(DataLog!$C1190=\"Log value\",DataLog!AI1190,\"\")","v":""},{"$f":"IF(DataLog!$C1190=\"Log value\",DataLog!AJ1190,\"\")","v":""},{"$f":"IF(DataLog!$C1190=\"Log value\",DataLog!AK1190,\"\")","v":""},{"$f":"IF(DataLog!$C1190=\"Log value\",DataLog!AL1190,\"\")","v":""},{"$f":"IF(DataLog!$C1190=\"Log value\",DataLog!AM1190,\"\")","v":""}]
[null,null,null,null,null,null,{"$f":"IF(DataLog!$C1191=\"Log value\",DataLog!D1191&\"_\"&TEXT(DataLog!B1191,\"åååå-mm-dd\"),\"\")","v":""},{"$f":"IF(DataLog!$C1191=\"Log value\",DataLog!E1191,\"\")","v":""},{"$f":"IF(DataLog!$C1191=\"Log value\",DataLog!F1191,\"\")","v":""},{"$f":"IF(DataLog!$C1191=\"Log value\",DataLog!G1191,\"\")","v":""},{"$f":"IF(DataLog!$C1191=\"Log value\",DataLog!H1191,\"\")","v":""},{"$f":"IF(DataLog!$C1191=\"Log value\",DataLog!I1191,\"\")","v":""},{"$f":"IF(DataLog!$C1191=\"Log value\",DataLog!J1191,\"\")","v":""},{"$f":"IF(DataLog!$C1191=\"Log value\",DataLog!K1191,\"\")","v":""},{"$f":"IF(DataLog!$C1191=\"Log value\",DataLog!L1191,\"\")","v":""},{"$f":"IF(DataLog!$C1191=\"Log value\",DataLog!M1191,\"\")","v":""},{"$f":"IF(DataLog!$C1191=\"Log value\",DataLog!N1191,\"\")","v":""},{"$f":"IF(DataLog!$C1191=\"Log value\",DataLog!O1191,\"\")","v":""},{"$f":"IF(DataLog!$C1191=\"Log value\",DataLog!P1191,\"\")","v":""},{"$f":"IF(DataLog!$C1191=\"Log value\",DataLog!Q1191,\"\")","v":""},{"$f":"IF(DataLog!$C1191=\"Log value\",DataLog!R1191,\"\")","v":""},{"$f":"IF(DataLog!$C1191=\"Log value\",DataLog!S1191,\"\")","v":""},{"$f":"IF(DataLog!$C1191=\"Log value\",DataLog!T1191,\"\")","v":""},{"$f":"IF(DataLog!$C1191=\"Log value\",DataLog!U1191,\"\")","v":""},{"$f":"IF(DataLog!$C1191=\"Log value\",DataLog!V1191,\"\")","v":""},{"$f":"IF(DataLog!$C1191=\"Log value\",DataLog!W1191,\"\")","v":""},{"$f":"IF(DataLog!$C1191=\"Log value\",DataLog!X1191,\"\")","v":""},{"$f":"IF(DataLog!$C1191=\"Log value\",DataLog!Y1191,\"\")","v":""},{"$f":"IF(DataLog!$C1191=\"Log value\",DataLog!Z1191,\"\")","v":""},{"$f":"IF(DataLog!$C1191=\"Log value\",DataLog!AA1191,\"\")","v":""},{"$f":"IF(DataLog!$C1191=\"Log value\",DataLog!AB1191,\"\")","v":""},{"$f":"IF(DataLog!$C1191=\"Log value\",DataLog!AC1191,\"\")","v":""},{"$f":"IF(DataLog!$C1191=\"Log value\",DataLog!AD1191,\"\")","v":""},{"$f":"IF(DataLog!$C1191=\"Log value\",DataLog!AE1191,\"\")","v":""},{"$f":"IF(DataLog!$C1191=\"Log value\",DataLog!AF1191,\"\")","v":""},{"$f":"IF(DataLog!$C1191=\"Log value\",DataLog!AG1191,\"\")","v":""},{"$f":"IF(DataLog!$C1191=\"Log value\",DataLog!AH1191,\"\")","v":""},{"$f":"IF(DataLog!$C1191=\"Log value\",DataLog!AI1191,\"\")","v":""},{"$f":"IF(DataLog!$C1191=\"Log value\",DataLog!AJ1191,\"\")","v":""},{"$f":"IF(DataLog!$C1191=\"Log value\",DataLog!AK1191,\"\")","v":""},{"$f":"IF(DataLog!$C1191=\"Log value\",DataLog!AL1191,\"\")","v":""},{"$f":"IF(DataLog!$C1191=\"Log value\",DataLog!AM1191,\"\")","v":""}]
[null,null,null,null,null,null,{"$f":"IF(DataLog!$C1194=\"Log value\",DataLog!D1194&\"_\"&TEXT(DataLog!B1194,\"åååå-mm-dd\"),\"\")","v":""},{"$f":"IF(DataLog!$C1194=\"Log value\",DataLog!E1194,\"\")","v":""},{"$f":"IF(DataLog!$C1194=\"Log value\",DataLog!F1194,\"\")","v":""},{"$f":"IF(DataLog!$C1194=\"Log value\",DataLog!G1194,\"\")","v":""},{"$f":"IF(DataLog!$C1194=\"Log value\",DataLog!H1194,\"\")","v":""},{"$f":"IF(DataLog!$C1194=\"Log value\",DataLog!I1194,\"\")","v":""},{"$f":"IF(DataLog!$C1194=\"Log value\",DataLog!J1194,\"\")","v":""},{"$f":"IF(DataLog!$C1194=\"Log value\",DataLog!K1194,\"\")","v":""},{"$f":"IF(DataLog!$C1194=\"Log value\",DataLog!L1194,\"\")","v":""},{"$f":"IF(DataLog!$C1194=\"Log value\",DataLog!M1194,\"\")","v":""},{"$f":"IF(DataLog!$C1194=\"Log value\",DataLog!N1194,\"\")","v":""},{"$f":"IF(DataLog!$C1194=\"Log value\",DataLog!O1194,\"\")","v":""},{"$f":"IF(DataLog!$C1194=\"Log value\",DataLog!P1194,\"\")","v":""},{"$f":"IF(DataLog!$C1194=\"Log value\",DataLog!Q1194,\"\")","v":""},{"$f":"IF(DataLog!$C1194=\"Log value\",DataLog!R1194,\"\")","v":""},{"$f":"IF(DataLog!$C1194=\"Log value\",DataLog!S1194,\"\")","v":""},{"$f":"IF(DataLog!$C1194=\"Log value\",DataLog!T1194,\"\")","v":""},{"$f":"IF(DataLog!$C1194=\"Log value\",DataLog!U1194,\"\")","v":""},{"$f":"IF(DataLog!$C1194=\"Log value\",DataLog!V1194,\"\")","v":""},{"$f":"IF(DataLog!$C1194=\"Log value\",DataLog!W1194,\"\")","v":""},{"$f":"IF(DataLog!$C1194=\"Log value\",DataLog!X1194,\"\")","v":""},{"$f":"IF(DataLog!$C1194=\"Log value\",DataLog!Y1194,\"\")","v":""},{"$f":"IF(DataLog!$C1194=\"Log value\",DataLog!Z1194,\"\")","v":""},{"$f":"IF(DataLog!$C1194=\"Log value\",DataLog!AA1194,\"\")","v":""},{"$f":"IF(DataLog!$C1194=\"Log value\",DataLog!AB1194,\"\")","v":""},{"$f":"IF(DataLog!$C1194=\"Log value\",DataLog!AC1194,\"\")","v":""},{"$f":"IF(DataLog!$C1194=\"Log value\",DataLog!AD1194,\"\")","v":""},{"$f":"IF(DataLog!$C1194=\"Log value\",DataLog!AE1194,\"\")","v":""},{"$f":"IF(DataLog!$C1194=\"Log value\",DataLog!AF1194,\"\")","v":""},{"$f":"IF(DataLog!$C1194=\"Log value\",DataLog!AG1194,\"\")","v":""},{"$f":"IF(DataLog!$C1194=\"Log value\",DataLog!AH1194,\"\")","v":""},{"$f":"IF(DataLog!$C1194=\"Log value\",DataLog!AI1194,\"\")","v":""},{"$f":"IF(DataLog!$C1194=\"Log value\",DataLog!AJ1194,\"\")","v":""},{"$f":"IF(DataLog!$C1194=\"Log value\",DataLog!AK1194,\"\")","v":""},{"$f":"IF(DataLog!$C1194=\"Log value\",DataLog!AL1194,\"\")","v":""},{"$f":"IF(DataLog!$C1194=\"Log value\",DataLog!AM1194,\"\")","v":""}]
[null,null,null,null,null,null,{"$f":"IF(DataLog!$C1195=\"Log value\",DataLog!D1195&\"_\"&TEXT(DataLog!B1195,\"åååå-mm-dd\"),\"\")","v":""},{"$f":"IF(DataLog!$C1195=\"Log value\",DataLog!E1195,\"\")","v":""},{"$f":"IF(DataLog!$C1195=\"Log value\",DataLog!F1195,\"\")","v":""},{"$f":"IF(DataLog!$C1195=\"Log value\",DataLog!G1195,\"\")","v":""},{"$f":"IF(DataLog!$C1195=\"Log value\",DataLog!H1195,\"\")","v":""},{"$f":"IF(DataLog!$C1195=\"Log value\",DataLog!I1195,\"\")","v":""},{"$f":"IF(DataLog!$C1195=\"Log value\",DataLog!J1195,\"\")","v":""},{"$f":"IF(DataLog!$C1195=\"Log value\",DataLog!K1195,\"\")","v":""},{"$f":"IF(DataLog!$C1195=\"Log value\",DataLog!L1195,\"\")","v":""},{"$f":"IF(DataLog!$C1195=\"Log value\",DataLog!M1195,\"\")","v":""},{"$f":"IF(DataLog!$C1195=\"Log value\",DataLog!N1195,\"\")","v":""},{"$f":"IF(DataLog!$C1195=\"Log value\",DataLog!O1195,\"\")","v":""},{"$f":"IF(DataLog!$C1195=\"Log value\",DataLog!P1195,\"\")","v":""},{"$f":"IF(DataLog!$C1195=\"Log value\",DataLog!Q1195,\"\")","v":""},{"$f":"IF(DataLog!$C1195=\"Log value\",DataLog!R1195,\"\")","v":""},{"$f":"IF(DataLog!$C1195=\"Log value\",DataLog!S1195,\"\")","v":""},{"$f":"IF(DataLog!$C1195=\"Log value\",DataLog!T1195,\"\")","v":""},{"$f":"IF(DataLog!$C1195=\"Log value\",DataLog!U1195,\"\")","v":""},{"$f":"IF(DataLog!$C1195=\"Log value\",DataLog!V1195,\"\")","v":""},{"$f":"IF(DataLog!$C1195=\"Log value\",DataLog!W1195,\"\")","v":""},{"$f":"IF(DataLog!$C1195=\"Log value\",DataLog!X1195,\"\")","v":""},{"$f":"IF(DataLog!$C1195=\"Log value\",DataLog!Y1195,\"\")","v":""},{"$f":"IF(DataLog!$C1195=\"Log value\",DataLog!Z1195,\"\")","v":""},{"$f":"IF(DataLog!$C1195=\"Log value\",DataLog!AA1195,\"\")","v":""},{"$f":"IF(DataLog!$C1195=\"Log value\",DataLog!AB1195,\"\")","v":""},{"$f":"IF(DataLog!$C1195=\"Log value\",DataLog!AC1195,\"\")","v":""},{"$f":"IF(DataLog!$C1195=\"Log value\",DataLog!AD1195,\"\")","v":""},{"$f":"IF(DataLog!$C1195=\"Log value\",DataLog!AE1195,\"\")","v":""},{"$f":"IF(DataLog!$C1195=\"Log value\",DataLog!AF1195,\"\")","v":""},{"$f":"IF(DataLog!$C1195=\"Log value\",DataLog!AG1195,\"\")","v":""},{"$f":"IF(DataLog!$C1195=\"Log value\",DataLog!AH1195,\"\")","v":""},{"$f":"IF(DataLog!$C1195=\"Log value\",DataLog!AI1195,\"\")","v":""},{"$f":"IF(DataLog!$C1195=\"Log value\",DataLog!AJ1195,\"\")","v":""},{"$f":"IF(DataLog!$C1195=\"Log value\",DataLog!AK1195,\"\")","v":""},{"$f":"IF(DataLog!$C1195=\"Log value\",DataLog!AL1195,\"\")","v":""},{"$f":"IF(DataLog!$C1195=\"Log value\",DataLog!AM1195,\"\")","v":""}]
[null,null,null,null,null,null,{"$f":"IF(DataLog!$C1197=\"Log value\",DataLog!D1197&\"_\"&TEXT(DataLog!B1197,\"åååå-mm-dd\"),\"\")","v":""},{"$f":"IF(DataLog!$C1197=\"Log value\",DataLog!E1197,\"\")","v":""},{"$f":"IF(DataLog!$C1197=\"Log value\",DataLog!F1197,\"\")","v":""},{"$f":"IF(DataLog!$C1197=\"Log value\",DataLog!G1197,\"\")","v":""},{"$f":"IF(DataLog!$C1197=\"Log value\",DataLog!H1197,\"\")","v":""},{"$f":"IF(DataLog!$C1197=\"Log value\",DataLog!I1197,\"\")","v":""},{"$f":"IF(DataLog!$C1197=\"Log value\",DataLog!J1197,\"\")","v":""},{"$f":"IF(DataLog!$C1197=\"Log value\",DataLog!K1197,\"\")","v":""},{"$f":"IF(DataLog!$C1197=\"Log value\",DataLog!L1197,\"\")","v":""},{"$f":"IF(DataLog!$C1197=\"Log value\",DataLog!M1197,\"\")","v":""},{"$f":"IF(DataLog!$C1197=\"Log value\",DataLog!N1197,\"\")","v":""},{"$f":"IF(DataLog!$C1197=\"Log value\",DataLog!O1197,\"\")","v":""},{"$f":"IF(DataLog!$C1197=\"Log value\",DataLog!P1197,\"\")","v":""},{"$f":"IF(DataLog!$C1197=\"Log value\",DataLog!Q1197,\"\")","v":""},{"$f":"IF(DataLog!$C1197=\"Log value\",DataLog!R1197,\"\")","v":""},{"$f":"IF(DataLog!$C1197=\"Log value\",DataLog!S1197,\"\")","v":""},{"$f":"IF(DataLog!$C1197=\"Log value\",DataLog!T1197,\"\")","v":""},{"$f":"IF(DataLog!$C1197=\"Log value\",DataLog!U1197,\"\")","v":""},{"$f":"IF(DataLog!$C1197=\"Log value\",DataLog!V1197,\"\")","v":""},{"$f":"IF(DataLog!$C1197=\"Log value\",DataLog!W1197,\"\")","v":""},{"$f":"IF(DataLog!$C1197=\"Log value\",DataLog!X1197,\"\")","v":""},{"$f":"IF(DataLog!$C1197=\"Log value\",DataLog!Y1197,\"\")","v":""},{"$f":"IF(DataLog!$C1197=\"Log value\",DataLog!Z1197,\"\")","v":""},{"$f":"IF(DataLog!$C1197=\"Log value\",DataLog!AA1197,\"\")","v":""},{"$f":"IF(DataLog!$C1197=\"Log value\",DataLog!AB1197,\"\")","v":""},{"$f":"IF(DataLog!$C1197=\"Log value\",DataLog!AC1197,\"\")","v":""},{"$f":"IF(DataLog!$C1197=\"Log value\",DataLog!AD1197,\"\")","v":""},{"$f":"IF(DataLog!$C1197=\"Log value\",DataLog!AE1197,\"\")","v":""},{"$f":"IF(DataLog!$C1197=\"Log value\",DataLog!AF1197,\"\")","v":""},{"$f":"IF(DataLog!$C1197=\"Log value\",DataLog!AG1197,\"\")","v":""},{"$f":"IF(DataLog!$C1197=\"Log value\",DataLog!AH1197,\"\")","v":""},{"$f":"IF(DataLog!$C1197=\"Log value\",DataLog!AI1197,\"\")","v":""},{"$f":"IF(DataLog!$C1197=\"Log value\",DataLog!AJ1197,\"\")","v":""},{"$f":"IF(DataLog!$C1197=\"Log value\",DataLog!AK1197,\"\")","v":""},{"$f":"IF(DataLog!$C1197=\"Log value\",DataLog!AL1197,\"\")","v":""},{"$f":"IF(DataLog!$C1197=\"Log value\",DataLog!AM1197,\"\")","v":""}]
[null,null,null,null,null,null,{"$f":"IF(DataLog!$C1200=\"Log value\",DataLog!D1200&\"_\"&TEXT(DataLog!B1200,\"åååå-mm-dd\"),\"\")","v":""},{"$f":"IF(DataLog!$C1200=\"Log value\",DataLog!E1200,\"\")","v":""},{"$f":"IF(DataLog!$C1200=\"Log value\",DataLog!F1200,\"\")","v":""},{"$f":"IF(DataLog!$C1200=\"Log value\",DataLog!G1200,\"\")","v":""},{"$f":"IF(DataLog!$C1200=\"Log value\",DataLog!H1200,\"\")","v":""},{"$f":"IF(DataLog!$C1200=\"Log value\",DataLog!I1200,\"\")","v":""},{"$f":"IF(DataLog!$C1200=\"Log value\",DataLog!J1200,\"\")","v":""},{"$f":"IF(DataLog!$C1200=\"Log value\",DataLog!K1200,\"\")","v":""},{"$f":"IF(DataLog!$C1200=\"Log value\",DataLog!L1200,\"\")","v":""},{"$f":"IF(DataLog!$C1200=\"Log value\",DataLog!M1200,\"\")","v":""},{"$f":"IF(DataLog!$C1200=\"Log value\",DataLog!N1200,\"\")","v":""},{"$f":"IF(DataLog!$C1200=\"Log value\",DataLog!O1200,\"\")","v":""},{"$f":"IF(DataLog!$C1200=\"Log value\",DataLog!P1200,\"\")","v":""},{"$f":"IF(DataLog!$C1200=\"Log value\",DataLog!Q1200,\"\")","v":""},{"$f":"IF(DataLog!$C1200=\"Log value\",DataLog!R1200,\"\")","v":""},{"$f":"IF(DataLog!$C1200=\"Log value\",DataLog!S1200,\"\")","v":""},{"$f":"IF(DataLog!$C1200=\"Log value\",DataLog!T1200,\"\")","v":""},{"$f":"IF(DataLog!$C1200=\"Log value\",DataLog!U1200,\"\")","v":""},{"$f":"IF(DataLog!$C1200=\"Log value\",DataLog!V1200,\"\")","v":""},{"$f":"IF(DataLog!$C1200=\"Log value\",DataLog!W1200,\"\")","v":""},{"$f":"IF(DataLog!$C1200=\"Log value\",DataLog!X1200,\"\")","v":""},{"$f":"IF(DataLog!$C1200=\"Log value\",DataLog!Y1200,\"\")","v":""},{"$f":"IF(DataLog!$C1200=\"Log value\",DataLog!Z1200,\"\")","v":""},{"$f":"IF(DataLog!$C1200=\"Log value\",DataLog!AA1200,\"\")","v":""},{"$f":"IF(DataLog!$C1200=\"Log value\",DataLog!AB1200,\"\")","v":""},{"$f":"IF(DataLog!$C1200=\"Log value\",DataLog!AC1200,\"\")","v":""},{"$f":"IF(DataLog!$C1200=\"Log value\",DataLog!AD1200,\"\")","v":""},{"$f":"IF(DataLog!$C1200=\"Log value\",DataLog!AE1200,\"\")","v":""},{"$f":"IF(DataLog!$C1200=\"Log value\",DataLog!AF1200,\"\")","v":""},{"$f":"IF(DataLog!$C1200=\"Log value\",DataLog!AG1200,\"\")","v":""},{"$f":"IF(DataLog!$C1200=\"Log value\",DataLog!AH1200,\"\")","v":""},{"$f":"IF(DataLog!$C1200=\"Log value\",DataLog!AI1200,\"\")","v":""},{"$f":"IF(DataLog!$C1200=\"Log value\",DataLog!AJ1200,\"\")","v":""},{"$f":"IF(DataLog!$C1200=\"Log value\",DataLog!AK1200,\"\")","v":""},{"$f":"IF(DataLog!$C1200=\"Log value\",DataLog!AL1200,\"\")","v":""},{"$f":"IF(DataLog!$C1200=\"Log value\",DataLog!AM1200,\"\")","v":""}]
[null,null,null,null,null,null,{"$f":"IF(DataLog!$C1203=\"Log value\",DataLog!D1203&\"_\"&TEXT(DataLog!B1203,\"åååå-mm-dd\"),\"\")","v":""},{"$f":"IF(DataLog!$C1203=\"Log value\",DataLog!E1203,\"\")","v":""},{"$f":"IF(DataLog!$C1203=\"Log value\",DataLog!F1203,\"\")","v":""},{"$f":"IF(DataLog!$C1203=\"Log value\",DataLog!G1203,\"\")","v":""},{"$f":"IF(DataLog!$C1203=\"Log value\",DataLog!H1203,\"\")","v":""},{"$f":"IF(DataLog!$C1203=\"Log value\",DataLog!I1203,\"\")","v":""},{"$f":"IF(DataLog!$C1203=\"Log value\",DataLog!J1203,\"\")","v":""},{"$f":"IF(DataLog!$C1203=\"Log value\",DataLog!K1203,\"\")","v":""},{"$f":"IF(DataLog!$C1203=\"Log value\",DataLog!L1203,\"\")","v":""},{"$f":"IF(DataLog!$C1203=\"Log value\",DataLog!M1203,\"\")","v":""},{"$f":"IF(DataLog!$C1203=\"Log value\",DataLog!N1203,\"\")","v":""},{"$f":"IF(DataLog!$C1203=\"Log value\",DataLog!O1203,\"\")","v":""},{"$f":"IF(DataLog!$C1203=\"Log value\",DataLog!P1203,\"\")","v":""},{"$f":"IF(DataLog!$C1203=\"Log value\",DataLog!Q1203,\"\")","v":""},{"$f":"IF(DataLog!$C1203=\"Log value\",DataLog!R1203,\"\")","v":""},{"$f":"IF(DataLog!$C1203=\"Log value\",DataLog!S1203,\"\")","v":""},{"$f":"IF(DataLog!$C1203=\"Log value\",DataLog!T1203,\"\")","v":""},{"$f":"IF(DataLog!$C1203=\"Log value\",DataLog!U1203,\"\")","v":""},{"$f":"IF(DataLog!$C1203=\"Log value\",DataLog!V1203,\"\")","v":""},{"$f":"IF(DataLog!$C1203=\"Log value\",DataLog!W1203,\"\")","v":""},{"$f":"IF(DataLog!$C1203=\"Log value\",DataLog!X1203,\"\")","v":""},{"$f":"IF(DataLog!$C1203=\"Log value\",DataLog!Y1203,\"\")","v":""},{"$f":"IF(DataLog!$C1203=\"Log value\",DataLog!Z1203,\"\")","v":""},{"$f":"IF(DataLog!$C1203=\"Log value\",DataLog!AA1203,\"\")","v":""},{"$f":"IF(DataLog!$C1203=\"Log value\",DataLog!AB1203,\"\")","v":""},{"$f":"IF(DataLog!$C1203=\"Log value\",DataLog!AC1203,\"\")","v":""},{"$f":"IF(DataLog!$C1203=\"Log value\",DataLog!AD1203,\"\")","v":""},{"$f":"IF(DataLog!$C1203=\"Log value\",DataLog!AE1203,\"\")","v":""},{"$f":"IF(DataLog!$C1203=\"Log value\",DataLog!AF1203,\"\")","v":""},{"$f":"IF(DataLog!$C1203=\"Log value\",DataLog!AG1203,\"\")","v":""},{"$f":"IF(DataLog!$C1203=\"Log value\",DataLog!AH1203,\"\")","v":""},{"$f":"IF(DataLog!$C1203=\"Log value\",DataLog!AI1203,\"\")","v":""},{"$f":"IF(DataLog!$C1203=\"Log value\",DataLog!AJ1203,\"\")","v":""},{"$f":"IF(DataLog!$C1203=\"Log value\",DataLog!AK1203,\"\")","v":""},{"$f":"IF(DataLog!$C1203=\"Log value\",DataLog!AL1203,\"\")","v":""},{"$f":"IF(DataLog!$C1203=\"Log value\",DataLog!AM1203,\"\")","v":""}]
[null,null,null,null,null,null,{"$f":"IF(DataLog!$C1204=\"Log value\",DataLog!D1204&\"_\"&TEXT(DataLog!B1204,\"åååå-mm-dd\"),\"\")","v":""},{"$f":"IF(DataLog!$C1204=\"Log value\",DataLog!E1204,\"\")","v":""},{"$f":"IF(DataLog!$C1204=\"Log value\",DataLog!F1204,\"\")","v":""},{"$f":"IF(DataLog!$C1204=\"Log value\",DataLog!G1204,\"\")","v":""},{"$f":"IF(DataLog!$C1204=\"Log value\",DataLog!H1204,\"\")","v":""},{"$f":"IF(DataLog!$C1204=\"Log value\",DataLog!I1204,\"\")","v":""},{"$f":"IF(DataLog!$C1204=\"Log value\",DataLog!J1204,\"\")","v":""},{"$f":"IF(DataLog!$C1204=\"Log value\",DataLog!K1204,\"\")","v":""},{"$f":"IF(DataLog!$C1204=\"Log value\",DataLog!L1204,\"\")","v":""},{"$f":"IF(DataLog!$C1204=\"Log value\",DataLog!M1204,\"\")","v":""},{"$f":"IF(DataLog!$C1204=\"Log value\",DataLog!N1204,\"\")","v":""},{"$f":"IF(DataLog!$C1204=\"Log value\",DataLog!O1204,\"\")","v":""},{"$f":"IF(DataLog!$C1204=\"Log value\",DataLog!P1204,\"\")","v":""},{"$f":"IF(DataLog!$C1204=\"Log value\",DataLog!Q1204,\"\")","v":""},{"$f":"IF(DataLog!$C1204=\"Log value\",DataLog!R1204,\"\")","v":""},{"$f":"IF(DataLog!$C1204=\"Log value\",DataLog!S1204,\"\")","v":""},{"$f":"IF(DataLog!$C1204=\"Log value\",DataLog!T1204,\"\")","v":""},{"$f":"IF(DataLog!$C1204=\"Log value\",DataLog!U1204,\"\")","v":""},{"$f":"IF(DataLog!$C1204=\"Log value\",DataLog!V1204,\"\")","v":""},{"$f":"IF(DataLog!$C1204=\"Log value\",DataLog!W1204,\"\")","v":""},{"$f":"IF(DataLog!$C1204=\"Log value\",DataLog!X1204,\"\")","v":""},{"$f":"IF(DataLog!$C1204=\"Log value\",DataLog!Y1204,\"\")","v":""},{"$f":"IF(DataLog!$C1204=\"Log value\",DataLog!Z1204,\"\")","v":""},{"$f":"IF(DataLog!$C1204=\"Log value\",DataLog!AA1204,\"\")","v":""},{"$f":"IF(DataLog!$C1204=\"Log value\",DataLog!AB1204,\"\")","v":""},{"$f":"IF(DataLog!$C1204=\"Log value\",DataLog!AC1204,\"\")","v":""},{"$f":"IF(DataLog!$C1204=\"Log value\",DataLog!AD1204,\"\")","v":""},{"$f":"IF(DataLog!$C1204=\"Log value\",DataLog!AE1204,\"\")","v":""},{"$f":"IF(DataLog!$C1204=\"Log value\",DataLog!AF1204,\"\")","v":""},{"$f":"IF(DataLog!$C1204=\"Log value\",DataLog!AG1204,\"\")","v":""},{"$f":"IF(DataLog!$C1204=\"Log value\",DataLog!AH1204,\"\")","v":""},{"$f":"IF(DataLog!$C1204=\"Log value\",DataLog!AI1204,\"\")","v":""},{"$f":"IF(DataLog!$C1204=\"Log value\",DataLog!AJ1204,\"\")","v":""},{"$f":"IF(DataLog!$C1204=\"Log value\",DataLog!AK1204,\"\")","v":""},{"$f":"IF(DataLog!$C1204=\"Log value\",DataLog!AL1204,\"\")","v":""},{"$f":"IF(DataLog!$C1204=\"Log value\",DataLog!AM1204,\"\")","v":""}]
[null,null,null,null,null,null,{"$f":"IF(DataLog!$C1208=\"Log value\",DataLog!D1208&\"_\"&TEXT(DataLog!B1208,\"åååå-mm-dd\"),\"\")","v":""},{"$f":"IF(DataLog!$C1208=\"Log value\",DataLog!E1208,\"\")","v":""},{"$f":"IF(DataLog!$C1208=\"Log value\",DataLog!F1208,\"\")","v":""},{"$f":"IF(DataLog!$C1208=\"Log value\",DataLog!G1208,\"\")","v":""},{"$f":"IF(DataLog!$C1208=\"Log value\",DataLog!H1208,\"\")","v":""},{"$f":"IF(DataLog!$C1208=\"Log value\",DataLog!I1208,\"\")","v":""},{"$f":"IF(DataLog!$C1208=\"Log value\",DataLog!J1208,\"\")","v":""},{"$f":"IF(DataLog!$C1208=\"Log value\",DataLog!K1208,\"\")","v":""},{"$f":"IF(DataLog!$C1208=\"Log value\",DataLog!L1208,\"\")","v":""},{"$f":"IF(DataLog!$C1208=\"Log value\",DataLog!M1208,\"\")","v":""},{"$f":"IF(DataLog!$C1208=\"Log value\",DataLog!N1208,\"\")","v":""},{"$f":"IF(DataLog!$C1208=\"Log value\",DataLog!O1208,\"\")","v":""},{"$f":"IF(DataLog!$C1208=\"Log value\",DataLog!P1208,\"\")","v":""},{"$f":"IF(DataLog!$C1208=\"Log value\",DataLog!Q1208,\"\")","v":""},{"$f":"IF(DataLog!$C1208=\"Log value\",DataLog!R1208,\"\")","v":""},{"$f":"IF(DataLog!$C1208=\"Log value\",DataLog!S1208,\"\")","v":""},{"$f":"IF(DataLog!$C1208=\"Log value\",DataLog!T1208,\"\")","v":""},{"$f":"IF(DataLog!$C1208=\"Log value\",DataLog!U1208,\"\")","v":""},{"$f":"IF(DataLog!$C1208=\"Log value\",DataLog!V1208,\"\")","v":""},{"$f":"IF(DataLog!$C1208=\"Log value\",DataLog!W1208,\"\")","v":""},{"$f":"IF(DataLog!$C1208=\"Log value\",DataLog!X1208,\"\")","v":""},{"$f":"IF(DataLog!$C1208=\"Log value\",DataLog!Y1208,\"\")","v":""},{"$f":"IF(DataLog!$C1208=\"Log value\",DataLog!Z1208,\"\")","v":""},{"$f":"IF(DataLog!$C1208=\"Log value\",DataLog!AA1208,\"\")","v":""},{"$f":"IF(DataLog!$C1208=\"Log value\",DataLog!AB1208,\"\")","v":""},{"$f":"IF(DataLog!$C1208=\"Log value\",DataLog!AC1208,\"\")","v":""},{"$f":"IF(DataLog!$C1208=\"Log value\",DataLog!AD1208,\"\")","v":""},{"$f":"IF(DataLog!$C1208=\"Log value\",DataLog!AE1208,\"\")","v":""},{"$f":"IF(DataLog!$C1208=\"Log value\",DataLog!AF1208,\"\")","v":""},{"$f":"IF(DataLog!$C1208=\"Log value\",DataLog!AG1208,\"\")","v":""},{"$f":"IF(DataLog!$C1208=\"Log value\",DataLog!AH1208,\"\")","v":""},{"$f":"IF(DataLog!$C1208=\"Log value\",DataLog!AI1208,\"\")","v":""},{"$f":"IF(DataLog!$C1208=\"Log value\",DataLog!AJ1208,\"\")","v":""},{"$f":"IF(DataLog!$C1208=\"Log value\",DataLog!AK1208,\"\")","v":""},{"$f":"IF(DataLog!$C1208=\"Log value\",DataLog!AL1208,\"\")","v":""},{"$f":"IF(DataLog!$C1208=\"Log value\",DataLog!AM1208,\"\")","v":""}]
[null,null,null,null,null,null,{"$f":"IF(DataLog!$C1209=\"Log value\",DataLog!D1209&\"_\"&TEXT(DataLog!B1209,\"åååå-mm-dd\"),\"\")","v":""},{"$f":"IF(DataLog!$C1209=\"Log value\",DataLog!E1209,\"\")","v":""},{"$f":"IF(DataLog!$C1209=\"Log value\",DataLog!F1209,\"\")","v":""},{"$f":"IF(DataLog!$C1209=\"Log value\",DataLog!G1209,\"\")","v":""},{"$f":"IF(DataLog!$C1209=\"Log value\",DataLog!H1209,\"\")","v":""},{"$f":"IF(DataLog!$C1209=\"Log value\",DataLog!I1209,\"\")","v":""},{"$f":"IF(DataLog!$C1209=\"Log value\",DataLog!J1209,\"\")","v":""},{"$f":"IF(DataLog!$C1209=\"Log value\",DataLog!K1209,\"\")","v":""},{"$f":"IF(DataLog!$C1209=\"Log value\",DataLog!L1209,\"\")","v":""},{"$f":"IF(DataLog!$C1209=\"Log value\",DataLog!M1209,\"\")","v":""},{"$f":"IF(DataLog!$C1209=\"Log value\",DataLog!N1209,\"\")","v":""},{"$f":"IF(DataLog!$C1209=\"Log value\",DataLog!O1209,\"\")","v":""},{"$f":"IF(DataLog!$C1209=\"Log value\",DataLog!P1209,\"\")","v":""},{"$f":"IF(DataLog!$C1209=\"Log value\",DataLog!Q1209,\"\")","v":""},{"$f":"IF(DataLog!$C1209=\"Log value\",DataLog!R1209,\"\")","v":""},{"$f":"IF(DataLog!$C1209=\"Log value\",DataLog!S1209,\"\")","v":""},{"$f":"IF(DataLog!$C1209=\"Log value\",DataLog!T1209,\"\")","v":""},{"$f":"IF(DataLog!$C1209=\"Log value\",DataLog!U1209,\"\")","v":""},{"$f":"IF(DataLog!$C1209=\"Log value\",DataLog!V1209,\"\")","v":""},{"$f":"IF(DataLog!$C1209=\"Log value\",DataLog!W1209,\"\")","v":""},{"$f":"IF(DataLog!$C1209=\"Log value\",DataLog!X1209,\"\")","v":""},{"$f":"IF(DataLog!$C1209=\"Log value\",DataLog!Y1209,\"\")","v":""},{"$f":"IF(DataLog!$C1209=\"Log value\",DataLog!Z1209,\"\")","v":""},{"$f":"IF(DataLog!$C1209=\"Log value\",DataLog!AA1209,\"\")","v":""},{"$f":"IF(DataLog!$C1209=\"Log value\",DataLog!AB1209,\"\")","v":""},{"$f":"IF(DataLog!$C1209=\"Log value\",DataLog!AC1209,\"\")","v":""},{"$f":"IF(DataLog!$C1209=\"Log value\",DataLog!AD1209,\"\")","v":""},{"$f":"IF(DataLog!$C1209=\"Log value\",DataLog!AE1209,\"\")","v":""},{"$f":"IF(DataLog!$C1209=\"Log value\",DataLog!AF1209,\"\")","v":""},{"$f":"IF(DataLog!$C1209=\"Log value\",DataLog!AG1209,\"\")","v":""},{"$f":"IF(DataLog!$C1209=\"Log value\",DataLog!AH1209,\"\")","v":""},{"$f":"IF(DataLog!$C1209=\"Log value\",DataLog!AI1209,\"\")","v":""},{"$f":"IF(DataLog!$C1209=\"Log value\",DataLog!AJ1209,\"\")","v":""},{"$f":"IF(DataLog!$C1209=\"Log value\",DataLog!AK1209,\"\")","v":""},{"$f":"IF(DataLog!$C1209=\"Log value\",DataLog!AL1209,\"\")","v":""},{"$f":"IF(DataLog!$C1209=\"Log value\",DataLog!AM1209,\"\")","v":""}]
[null,null,null,null,null,null,{"$f":"IF(DataLog!$C1212=\"Log value\",DataLog!D1212&\"_\"&TEXT(DataLog!B1212,\"åååå-mm-dd\"),\"\")","v":""},{"$f":"IF(DataLog!$C1212=\"Log value\",DataLog!E1212,\"\")","v":""},{"$f":"IF(DataLog!$C1212=\"Log value\",DataLog!F1212,\"\")","v":""},{"$f":"IF(DataLog!$C1212=\"Log value\",DataLog!G1212,\"\")","v":""},{"$f":"IF(DataLog!$C1212=\"Log value\",DataLog!H1212,\"\")","v":""},{"$f":"IF(DataLog!$C1212=\"Log value\",DataLog!I1212,\"\")","v":""},{"$f":"IF(DataLog!$C1212=\"Log value\",DataLog!J1212,\"\")","v":""},{"$f":"IF(DataLog!$C1212=\"Log value\",DataLog!K1212,\"\")","v":""},{"$f":"IF(DataLog!$C1212=\"Log value\",DataLog!L1212,\"\")","v":""},{"$f":"IF(DataLog!$C1212=\"Log value\",DataLog!M1212,\"\")","v":""},{"$f":"IF(DataLog!$C1212=\"Log value\",DataLog!N1212,\"\")","v":""},{"$f":"IF(DataLog!$C1212=\"Log value\",DataLog!O1212,\"\")","v":""},{"$f":"IF(DataLog!$C1212=\"Log value\",DataLog!P1212,\"\")","v":""},{"$f":"IF(DataLog!$C1212=\"Log value\",DataLog!Q1212,\"\")","v":""},{"$f":"IF(DataLog!$C1212=\"Log value\",DataLog!R1212,\"\")","v":""},{"$f":"IF(DataLog!$C1212=\"Log value\",DataLog!S1212,\"\")","v":""},{"$f":"IF(DataLog!$C1212=\"Log value\",DataLog!T1212,\"\")","v":""},{"$f":"IF(DataLog!$C1212=\"Log value\",DataLog!U1212,\"\")","v":""},{"$f":"IF(DataLog!$C1212=\"Log value\",DataLog!V1212,\"\")","v":""},{"$f":"IF(DataLog!$C1212=\"Log value\",DataLog!W1212,\"\")","v":""},{"$f":"IF(DataLog!$C1212=\"Log value\",DataLog!X1212,\"\")","v":""},{"$f":"IF(DataLog!$C1212=\"Log value\",DataLog!Y1212,\"\")","v":""},{"$f":"IF(DataLog!$C1212=\"Log value\",DataLog!Z1212,\"\")","v":""},{"$f":"IF(DataLog!$C1212=\"Log value\",DataLog!AA1212,\"\")","v":""},{"$f":"IF(DataLog!$C1212=\"Log value\",DataLog!AB1212,\"\")","v":""},{"$f":"IF(DataLog!$C1212=\"Log value\",DataLog!AC1212,\"\")","v":""},{"$f":"IF(DataLog!$C1212=\"Log value\",DataLog!AD1212,\"\")","v":""},{"$f":"IF(DataLog!$C1212=\"Log value\",DataLog!AE1212,\"\")","v":""},{"$f":"IF(DataLog!$C1212=\"Log value\",DataLog!AF1212,\"\")","v":""},{"$f":"IF(DataLog!$C1212=\"Log value\",DataLog!AG1212,\"\")","v":""},{"$f":"IF(DataLog!$C1212=\"Log value\",DataLog!AH1212,\"\")","v":""},{"$f":"IF(DataLog!$C1212=\"Log value\",DataLog!AI1212,\"\")","v":""},{"$f":"IF(DataLog!$C1212=\"Log value\",DataLog!AJ1212,\"\")","v":""},{"$f":"IF(DataLog!$C1212=\"Log value\",DataLog!AK1212,\"\")","v":""},{"$f":"IF(DataLog!$C1212=\"Log value\",DataLog!AL1212,\"\")","v":""},{"$f":"IF(DataLog!$C1212=\"Log value\",DataLog!AM1212,\"\")","v":""}]
[null,null,null,null,null,null,{"$f":"IF(DataLog!$C1213=\"Log value\",DataLog!D1213&\"_\"&TEXT(DataLog!B1213,\"åååå-mm-dd\"),\"\")","v":""},{"$f":"IF(DataLog!$C1213=\"Log value\",DataLog!E1213,\"\")","v":""},{"$f":"IF(DataLog!$C1213=\"Log value\",DataLog!F1213,\"\")","v":""},{"$f":"IF(DataLog!$C1213=\"Log value\",DataLog!G1213,\"\")","v":""},{"$f":"IF(DataLog!$C1213=\"Log value\",DataLog!H1213,\"\")","v":""},{"$f":"IF(DataLog!$C1213=\"Log value\",DataLog!I1213,\"\")","v":""},{"$f":"IF(DataLog!$C1213=\"Log value\",DataLog!J1213,\"\")","v":""},{"$f":"IF(DataLog!$C1213=\"Log value\",DataLog!K1213,\"\")","v":""},{"$f":"IF(DataLog!$C1213=\"Log value\",DataLog!L1213,\"\")","v":""},{"$f":"IF(DataLog!$C1213=\"Log value\",DataLog!M1213,\"\")","v":""},{"$f":"IF(DataLog!$C1213=\"Log value\",DataLog!N1213,\"\")","v":""},{"$f":"IF(DataLog!$C1213=\"Log value\",DataLog!O1213,\"\")","v":""},{"$f":"IF(DataLog!$C1213=\"Log value\",DataLog!P1213,\"\")","v":""},{"$f":"IF(DataLog!$C1213=\"Log value\",DataLog!Q1213,\"\")","v":""},{"$f":"IF(DataLog!$C1213=\"Log value\",DataLog!R1213,\"\")","v":""},{"$f":"IF(DataLog!$C1213=\"Log value\",DataLog!S1213,\"\")","v":""},{"$f":"IF(DataLog!$C1213=\"Log value\",DataLog!T1213,\"\")","v":""},{"$f":"IF(DataLog!$C1213=\"Log value\",DataLog!U1213,\"\")","v":""},{"$f":"IF(DataLog!$C1213=\"Log value\",DataLog!V1213,\"\")","v":""},{"$f":"IF(DataLog!$C1213=\"Log value\",DataLog!W1213,\"\")","v":""},{"$f":"IF(DataLog!$C1213=\"Log value\",DataLog!X1213,\"\")","v":""},{"$f":"IF(DataLog!$C1213=\"Log value\",DataLog!Y1213,\"\")","v":""},{"$f":"IF(DataLog!$C1213=\"Log value\",DataLog!Z1213,\"\")","v":""},{"$f":"IF(DataLog!$C1213=\"Log value\",DataLog!AA1213,\"\")","v":""},{"$f":"IF(DataLog!$C1213=\"Log value\",DataLog!AB1213,\"\")","v":""},{"$f":"IF(DataLog!$C1213=\"Log value\",DataLog!AC1213,\"\")","v":""},{"$f":"IF(DataLog!$C1213=\"Log value\",DataLog!AD1213,\"\")","v":""},{"$f":"IF(DataLog!$C1213=\"Log value\",DataLog!AE1213,\"\")","v":""},{"$f":"IF(DataLog!$C1213=\"Log value\",DataLog!AF1213,\"\")","v":""},{"$f":"IF(DataLog!$C1213=\"Log value\",DataLog!AG1213,\"\")","v":""},{"$f":"IF(DataLog!$C1213=\"Log value\",DataLog!AH1213,\"\")","v":""},{"$f":"IF(DataLog!$C1213=\"Log value\",DataLog!AI1213,\"\")","v":""},{"$f":"IF(DataLog!$C1213=\"Log value\",DataLog!AJ1213,\"\")","v":""},{"$f":"IF(DataLog!$C1213=\"Log value\",DataLog!AK1213,\"\")","v":""},{"$f":"IF(DataLog!$C1213=\"Log value\",DataLog!AL1213,\"\")","v":""},{"$f":"IF(DataLog!$C1213=\"Log value\",DataLog!AM1213,\"\")","v":""}]
[null,null,null,null,null,null,{"$f":"IF(DataLog!$C1216=\"Log value\",DataLog!D1216&\"_\"&TEXT(DataLog!B1216,\"åååå-mm-dd\"),\"\")","v":""},{"$f":"IF(DataLog!$C1216=\"Log value\",DataLog!E1216,\"\")","v":""},{"$f":"IF(DataLog!$C1216=\"Log value\",DataLog!F1216,\"\")","v":""},{"$f":"IF(DataLog!$C1216=\"Log value\",DataLog!G1216,\"\")","v":""},{"$f":"IF(DataLog!$C1216=\"Log value\",DataLog!H1216,\"\")","v":""},{"$f":"IF(DataLog!$C1216=\"Log value\",DataLog!I1216,\"\")","v":""},{"$f":"IF(DataLog!$C1216=\"Log value\",DataLog!J1216,\"\")","v":""},{"$f":"IF(DataLog!$C1216=\"Log value\",DataLog!K1216,\"\")","v":""},{"$f":"IF(DataLog!$C1216=\"Log value\",DataLog!L1216,\"\")","v":""},{"$f":"IF(DataLog!$C1216=\"Log value\",DataLog!M1216,\"\")","v":""},{"$f":"IF(DataLog!$C1216=\"Log value\",DataLog!N1216,\"\")","v":""},{"$f":"IF(DataLog!$C1216=\"Log value\",DataLog!O1216,\"\")","v":""},{"$f":"IF(DataLog!$C1216=\"Log value\",DataLog!P1216,\"\")","v":""},{"$f":"IF(DataLog!$C1216=\"Log value\",DataLog!Q1216,\"\")","v":""},{"$f":"IF(DataLog!$C1216=\"Log value\",DataLog!R1216,\"\")","v":""},{"$f":"IF(DataLog!$C1216=\"Log value\",DataLog!S1216,\"\")","v":""},{"$f":"IF(DataLog!$C1216=\"Log value\",DataLog!T1216,\"\")","v":""},{"$f":"IF(DataLog!$C1216=\"Log value\",DataLog!U1216,\"\")","v":""},{"$f":"IF(DataLog!$C1216=\"Log value\",DataLog!V1216,\"\")","v":""},{"$f":"IF(DataLog!$C1216=\"Log value\",DataLog!W1216,\"\")","v":""},{"$f":"IF(DataLog!$C1216=\"Log value\",DataLog!X1216,\"\")","v":""},{"$f":"IF(DataLog!$C1216=\"Log value\",DataLog!Y1216,\"\")","v":""},{"$f":"IF(DataLog!$C1216=\"Log value\",DataLog!Z1216,\"\")","v":""},{"$f":"IF(DataLog!$C1216=\"Log value\",DataLog!AA1216,\"\")","v":""},{"$f":"IF(DataLog!$C1216=\"Log value\",DataLog!AB1216,\"\")","v":""},{"$f":"IF(DataLog!$C1216=\"Log value\",DataLog!AC1216,\"\")","v":""},{"$f":"IF(DataLog!$C1216=\"Log value\",DataLog!AD1216,\"\")","v":""},{"$f":"IF(DataLog!$C1216=\"Log value\",DataLog!AE1216,\"\")","v":""},{"$f":"IF(DataLog!$C1216=\"Log value\",DataLog!AF1216,\"\")","v":""},{"$f":"IF(DataLog!$C1216=\"Log value\",DataLog!AG1216,\"\")","v":""},{"$f":"IF(DataLog!$C1216=\"Log value\",DataLog!AH1216,\"\")","v":""},{"$f":"IF(DataLog!$C1216=\"Log value\",DataLog!AI1216,\"\")","v":""},{"$f":"IF(DataLog!$C1216=\"Log value\",DataLog!AJ1216,\"\")","v":""},{"$f":"IF(DataLog!$C1216=\"Log value\",DataLog!AK1216,\"\")","v":""},{"$f":"IF(DataLog!$C1216=\"Log value\",DataLog!AL1216,\"\")","v":""},{"$f":"IF(DataLog!$C1216=\"Log value\",DataLog!AM1216,\"\")","v":""}]
[null,null,null,null,null,null,{"$f":"IF(DataLog!$C1218=\"Log value\",DataLog!D1218&\"_\"&TEXT(DataLog!B1218,\"åååå-mm-dd\"),\"\")","v":""},{"$f":"IF(DataLog!$C1218=\"Log value\",DataLog!E1218,\"\")","v":""},{"$f":"IF(DataLog!$C1218=\"Log value\",DataLog!F1218,\"\")","v":""},{"$f":"IF(DataLog!$C1218=\"Log value\",DataLog!G1218,\"\")","v":""},{"$f":"IF(DataLog!$C1218=\"Log value\",DataLog!H1218,\"\")","v":""},{"$f":"IF(DataLog!$C1218=\"Log value\",DataLog!I1218,\"\")","v":""},{"$f":"IF(DataLog!$C1218=\"Log value\",DataLog!J1218,\"\")","v":""},{"$f":"IF(DataLog!$C1218=\"Log value\",DataLog!K1218,\"\")","v":""},{"$f":"IF(DataLog!$C1218=\"Log value\",DataLog!L1218,\"\")","v":""},{"$f":"IF(DataLog!$C1218=\"Log value\",DataLog!M1218,\"\")","v":""},{"$f":"IF(DataLog!$C1218=\"Log value\",DataLog!N1218,\"\")","v":""},{"$f":"IF(DataLog!$C1218=\"Log value\",DataLog!O1218,\"\")","v":""},{"$f":"IF(DataLog!$C1218=\"Log value\",DataLog!P1218,\"\")","v":""},{"$f":"IF(DataLog!$C1218=\"Log value\",DataLog!Q1218,\"\")","v":""},{"$f":"IF(DataLog!$C1218=\"Log value\",DataLog!R1218,\"\")","v":""},{"$f":"IF(DataLog!$C1218=\"Log value\",DataLog!S1218,\"\")","v":""},{"$f":"IF(DataLog!$C1218=\"Log value\",DataLog!T1218,\"\")","v":""},{"$f":"IF(DataLog!$C1218=\"Log value\",DataLog!U1218,\"\")","v":""},{"$f":"IF(DataLog!$C1218=\"Log value\",DataLog!V1218,\"\")","v":""},{"$f":"IF(DataLog!$C1218=\"Log value\",DataLog!W1218,\"\")","v":""},{"$f":"IF(DataLog!$C1218=\"Log value\",DataLog!X1218,\"\")","v":""},{"$f":"IF(DataLog!$C1218=\"Log value\",DataLog!Y1218,\"\")","v":""},{"$f":"IF(DataLog!$C1218=\"Log value\",DataLog!Z1218,\"\")","v":""},{"$f":"IF(DataLog!$C1218=\"Log value\",DataLog!AA1218,\"\")","v":""},{"$f":"IF(DataLog!$C1218=\"Log value\",DataLog!AB1218,\"\")","v":""},{"$f":"IF(DataLog!$C1218=\"Log value\",DataLog!AC1218,\"\")","v":""},{"$f":"IF(DataLog!$C1218=\"Log value\",DataLog!AD1218,\"\")","v":""},{"$f":"IF(DataLog!$C1218=\"Log value\",DataLog!AE1218,\"\")","v":""},{"$f":"IF(DataLog!$C1218=\"Log value\",DataLog!AF1218,\"\")","v":""},{"$f":"IF(DataLog!$C1218=\"Log value\",DataLog!AG1218,\"\")","v":""},{"$f":"IF(DataLog!$C1218=\"Log value\",DataLog!AH1218,\"\")","v":""},{"$f":"IF(DataLog!$C1218=\"Log value\",DataLog!AI1218,\"\")","v":""},{"$f":"IF(DataLog!$C1218=\"Log value\",DataLog!AJ1218,\"\")","v":""},{"$f":"IF(DataLog!$C1218=\"Log value\",DataLog!AK1218,\"\")","v":""},{"$f":"IF(DataLog!$C1218=\"Log value\",DataLog!AL1218,\"\")","v":""},{"$f":"IF(DataLog!$C1218=\"Log value\",DataLog!AM1218,\"\")","v":""}]
[null,null,null,null,null,null,{"$f":"IF(DataLog!$C1221=\"Log value\",DataLog!D1221&\"_\"&TEXT(DataLog!B1221,\"åååå-mm-dd\"),\"\")","v":""},{"$f":"IF(DataLog!$C1221=\"Log value\",DataLog!E1221,\"\")","v":""},{"$f":"IF(DataLog!$C1221=\"Log value\",DataLog!F1221,\"\")","v":""},{"$f":"IF(DataLog!$C1221=\"Log value\",DataLog!G1221,\"\")","v":""},{"$f":"IF(DataLog!$C1221=\"Log value\",DataLog!H1221,\"\")","v":""},{"$f":"IF(DataLog!$C1221=\"Log value\",DataLog!I1221,\"\")","v":""},{"$f":"IF(DataLog!$C1221=\"Log value\",DataLog!J1221,\"\")","v":""},{"$f":"IF(DataLog!$C1221=\"Log value\",DataLog!K1221,\"\")","v":""},{"$f":"IF(DataLog!$C1221=\"Log value\",DataLog!L1221,\"\")","v":""},{"$f":"IF(DataLog!$C1221=\"Log value\",DataLog!M1221,\"\")","v":""},{"$f":"IF(DataLog!$C1221=\"Log value\",DataLog!N1221,\"\")","v":""},{"$f":"IF(DataLog!$C1221=\"Log value\",DataLog!O1221,\"\")","v":""},{"$f":"IF(DataLog!$C1221=\"Log value\",DataLog!P1221,\"\")","v":""},{"$f":"IF(DataLog!$C1221=\"Log value\",DataLog!Q1221,\"\")","v":""},{"$f":"IF(DataLog!$C1221=\"Log value\",DataLog!R1221,\"\")","v":""},{"$f":"IF(DataLog!$C1221=\"Log value\",DataLog!S1221,\"\")","v":""},{"$f":"IF(DataLog!$C1221=\"Log value\",DataLog!T1221,\"\")","v":""},{"$f":"IF(DataLog!$C1221=\"Log value\",DataLog!U1221,\"\")","v":""},{"$f":"IF(DataLog!$C1221=\"Log value\",DataLog!V1221,\"\")","v":""},{"$f":"IF(DataLog!$C1221=\"Log value\",DataLog!W1221,\"\")","v":""},{"$f":"IF(DataLog!$C1221=\"Log value\",DataLog!X1221,\"\")","v":""},{"$f":"IF(DataLog!$C1221=\"Log value\",DataLog!Y1221,\"\")","v":""},{"$f":"IF(DataLog!$C1221=\"Log value\",DataLog!Z1221,\"\")","v":""},{"$f":"IF(DataLog!$C1221=\"Log value\",DataLog!AA1221,\"\")","v":""},{"$f":"IF(DataLog!$C1221=\"Log value\",DataLog!AB1221,\"\")","v":""},{"$f":"IF(DataLog!$C1221=\"Log value\",DataLog!AC1221,\"\")","v":""},{"$f":"IF(DataLog!$C1221=\"Log value\",DataLog!AD1221,\"\")","v":""},{"$f":"IF(DataLog!$C1221=\"Log value\",DataLog!AE1221,\"\")","v":""},{"$f":"IF(DataLog!$C1221=\"Log value\",DataLog!AF1221,\"\")","v":""},{"$f":"IF(DataLog!$C1221=\"Log value\",DataLog!AG1221,\"\")","v":""},{"$f":"IF(DataLog!$C1221=\"Log value\",DataLog!AH1221,\"\")","v":""},{"$f":"IF(DataLog!$C1221=\"Log value\",DataLog!AI1221,\"\")","v":""},{"$f":"IF(DataLog!$C1221=\"Log value\",DataLog!AJ1221,\"\")","v":""},{"$f":"IF(DataLog!$C1221=\"Log value\",DataLog!AK1221,\"\")","v":""},{"$f":"IF(DataLog!$C1221=\"Log value\",DataLog!AL1221,\"\")","v":""},{"$f":"IF(DataLog!$C1221=\"Log value\",DataLog!AM1221,\"\")","v":""}]
[null,null,null,null,null,null,{"$f":"IF(DataLog!$C1222=\"Log value\",DataLog!D1222&\"_\"&TEXT(DataLog!B1222,\"åååå-mm-dd\"),\"\")","v":""},{"$f":"IF(DataLog!$C1222=\"Log value\",DataLog!E1222,\"\")","v":""},{"$f":"IF(DataLog!$C1222=\"Log value\",DataLog!F1222,\"\")","v":""},{"$f":"IF(DataLog!$C1222=\"Log value\",DataLog!G1222,\"\")","v":""},{"$f":"IF(DataLog!$C1222=\"Log value\",DataLog!H1222,\"\")","v":""},{"$f":"IF(DataLog!$C1222=\"Log value\",DataLog!I1222,\"\")","v":""},{"$f":"IF(DataLog!$C1222=\"Log value\",DataLog!J1222,\"\")","v":""},{"$f":"IF(DataLog!$C1222=\"Log value\",DataLog!K1222,\"\")","v":""},{"$f":"IF(DataLog!$C1222=\"Log value\",DataLog!L1222,\"\")","v":""},{"$f":"IF(DataLog!$C1222=\"Log value\",DataLog!M1222,\"\")","v":""},{"$f":"IF(DataLog!$C1222=\"Log value\",DataLog!N1222,\"\")","v":""},{"$f":"IF(DataLog!$C1222=\"Log value\",DataLog!O1222,\"\")","v":""},{"$f":"IF(DataLog!$C1222=\"Log value\",DataLog!P1222,\"\")","v":""},{"$f":"IF(DataLog!$C1222=\"Log value\",DataLog!Q1222,\"\")","v":""},{"$f":"IF(DataLog!$C1222=\"Log value\",DataLog!R1222,\"\")","v":""},{"$f":"IF(DataLog!$C1222=\"Log value\",DataLog!S1222,\"\")","v":""},{"$f":"IF(DataLog!$C1222=\"Log value\",DataLog!T1222,\"\")","v":""},{"$f":"IF(DataLog!$C1222=\"Log value\",DataLog!U1222,\"\")","v":""},{"$f":"IF(DataLog!$C1222=\"Log value\",DataLog!V1222,\"\")","v":""},{"$f":"IF(DataLog!$C1222=\"Log value\",DataLog!W1222,\"\")","v":""},{"$f":"IF(DataLog!$C1222=\"Log value\",DataLog!X1222,\"\")","v":""},{"$f":"IF(DataLog!$C1222=\"Log value\",DataLog!Y1222,\"\")","v":""},{"$f":"IF(DataLog!$C1222=\"Log value\",DataLog!Z1222,\"\")","v":""},{"$f":"IF(DataLog!$C1222=\"Log value\",DataLog!AA1222,\"\")","v":""},{"$f":"IF(DataLog!$C1222=\"Log value\",DataLog!AB1222,\"\")","v":""},{"$f":"IF(DataLog!$C1222=\"Log value\",DataLog!AC1222,\"\")","v":""},{"$f":"IF(DataLog!$C1222=\"Log value\",DataLog!AD1222,\"\")","v":""},{"$f":"IF(DataLog!$C1222=\"Log value\",DataLog!AE1222,\"\")","v":""},{"$f":"IF(DataLog!$C1222=\"Log value\",DataLog!AF1222,\"\")","v":""},{"$f":"IF(DataLog!$C1222=\"Log value\",DataLog!AG1222,\"\")","v":""},{"$f":"IF(DataLog!$C1222=\"Log value\",DataLog!AH1222,\"\")","v":""},{"$f":"IF(DataLog!$C1222=\"Log value\",DataLog!AI1222,\"\")","v":""},{"$f":"IF(DataLog!$C1222=\"Log value\",DataLog!AJ1222,\"\")","v":""},{"$f":"IF(DataLog!$C1222=\"Log value\",DataLog!AK1222,\"\")","v":""},{"$f":"IF(DataLog!$C1222=\"Log value\",DataLog!AL1222,\"\")","v":""},{"$f":"IF(DataLog!$C1222=\"Log value\",DataLog!AM1222,\"\")","v":""}]
[null,null,null,null,null,null,{"$f":"IF(DataLog!$C1226=\"Log value\",DataLog!D1226&\"_\"&TEXT(DataLog!B1226,\"åååå-mm-dd\"),\"\")","v":""},{"$f":"IF(DataLog!$C1226=\"Log value\",DataLog!E1226,\"\")","v":""},{"$f":"IF(DataLog!$C1226=\"Log value\",DataLog!F1226,\"\")","v":""},{"$f":"IF(DataLog!$C1226=\"Log value\",DataLog!G1226,\"\")","v":""},{"$f":"IF(DataLog!$C1226=\"Log value\",DataLog!H1226,\"\")","v":""},{"$f":"IF(DataLog!$C1226=\"Log value\",DataLog!I1226,\"\")","v":""},{"$f":"IF(DataLog!$C1226=\"Log value\",DataLog!J1226,\"\")","v":""},{"$f":"IF(DataLog!$C1226=\"Log value\",DataLog!K1226,\"\")","v":""},{"$f":"IF(DataLog!$C1226=\"Log value\",DataLog!L1226,\"\")","v":""},{"$f":"IF(DataLog!$C1226=\"Log value\",DataLog!M1226,\"\")","v":""},{"$f":"IF(DataLog!$C1226=\"Log value\",DataLog!N1226,\"\")","v":""},{"$f":"IF(DataLog!$C1226=\"Log value\",DataLog!O1226,\"\")","v":""},{"$f":"IF(DataLog!$C1226=\"Log value\",DataLog!P1226,\"\")","v":""},{"$f":"IF(DataLog!$C1226=\"Log value\",DataLog!Q1226,\"\")","v":""},{"$f":"IF(DataLog!$C1226=\"Log value\",DataLog!R1226,\"\")","v":""},{"$f":"IF(DataLog!$C1226=\"Log value\",DataLog!S1226,\"\")","v":""},{"$f":"IF(DataLog!$C1226=\"Log value\",DataLog!T1226,\"\")","v":""},{"$f":"IF(DataLog!$C1226=\"Log value\",DataLog!U1226,\"\")","v":""},{"$f":"IF(DataLog!$C1226=\"Log value\",DataLog!V1226,\"\")","v":""},{"$f":"IF(DataLog!$C1226=\"Log value\",DataLog!W1226,\"\")","v":""},{"$f":"IF(DataLog!$C1226=\"Log value\",DataLog!X1226,\"\")","v":""},{"$f":"IF(DataLog!$C1226=\"Log value\",DataLog!Y1226,\"\")","v":""},{"$f":"IF(DataLog!$C1226=\"Log value\",DataLog!Z1226,\"\")","v":""},{"$f":"IF(DataLog!$C1226=\"Log value\",DataLog!AA1226,\"\")","v":""},{"$f":"IF(DataLog!$C1226=\"Log value\",DataLog!AB1226,\"\")","v":""},{"$f":"IF(DataLog!$C1226=\"Log value\",DataLog!AC1226,\"\")","v":""},{"$f":"IF(DataLog!$C1226=\"Log value\",DataLog!AD1226,\"\")","v":""},{"$f":"IF(DataLog!$C1226=\"Log value\",DataLog!AE1226,\"\")","v":""},{"$f":"IF(DataLog!$C1226=\"Log value\",DataLog!AF1226,\"\")","v":""},{"$f":"IF(DataLog!$C1226=\"Log value\",DataLog!AG1226,\"\")","v":""},{"$f":"IF(DataLog!$C1226=\"Log value\",DataLog!AH1226,\"\")","v":""},{"$f":"IF(DataLog!$C1226=\"Log value\",DataLog!AI1226,\"\")","v":""},{"$f":"IF(DataLog!$C1226=\"Log value\",DataLog!AJ1226,\"\")","v":""},{"$f":"IF(DataLog!$C1226=\"Log value\",DataLog!AK1226,\"\")","v":""},{"$f":"IF(DataLog!$C1226=\"Log value\",DataLog!AL1226,\"\")","v":""},{"$f":"IF(DataLog!$C1226=\"Log value\",DataLog!AM1226,\"\")","v":""}]
[null,null,null,null,null,null,{"$f":"IF(DataLog!$C1227=\"Log value\",DataLog!D1227&\"_\"&TEXT(DataLog!B1227,\"åååå-mm-dd\"),\"\")","v":""},{"$f":"IF(DataLog!$C1227=\"Log value\",DataLog!E1227,\"\")","v":""},{"$f":"IF(DataLog!$C1227=\"Log value\",DataLog!F1227,\"\")","v":""},{"$f":"IF(DataLog!$C1227=\"Log value\",DataLog!G1227,\"\")","v":""},{"$f":"IF(DataLog!$C1227=\"Log value\",DataLog!H1227,\"\")","v":""},{"$f":"IF(DataLog!$C1227=\"Log value\",DataLog!I1227,\"\")","v":""},{"$f":"IF(DataLog!$C1227=\"Log value\",DataLog!J1227,\"\")","v":""},{"$f":"IF(DataLog!$C1227=\"Log value\",DataLog!K1227,\"\")","v":""},{"$f":"IF(DataLog!$C1227=\"Log value\",DataLog!L1227,\"\")","v":""},{"$f":"IF(DataLog!$C1227=\"Log value\",DataLog!M1227,\"\")","v":""},{"$f":"IF(DataLog!$C1227=\"Log value\",DataLog!N1227,\"\")","v":""},{"$f":"IF(DataLog!$C1227=\"Log value\",DataLog!O1227,\"\")","v":""},{"$f":"IF(DataLog!$C1227=\"Log value\",DataLog!P1227,\"\")","v":""},{"$f":"IF(DataLog!$C1227=\"Log value\",DataLog!Q1227,\"\")","v":""},{"$f":"IF(DataLog!$C1227=\"Log value\",DataLog!R1227,\"\")","v":""},{"$f":"IF(DataLog!$C1227=\"Log value\",DataLog!S1227,\"\")","v":""},{"$f":"IF(DataLog!$C1227=\"Log value\",DataLog!T1227,\"\")","v":""},{"$f":"IF(DataLog!$C1227=\"Log value\",DataLog!U1227,\"\")","v":""},{"$f":"IF(DataLog!$C1227=\"Log value\",DataLog!V1227,\"\")","v":""},{"$f":"IF(DataLog!$C1227=\"Log value\",DataLog!W1227,\"\")","v":""},{"$f":"IF(DataLog!$C1227=\"Log value\",DataLog!X1227,\"\")","v":""},{"$f":"IF(DataLog!$C1227=\"Log value\",DataLog!Y1227,\"\")","v":""},{"$f":"IF(DataLog!$C1227=\"Log value\",DataLog!Z1227,\"\")","v":""},{"$f":"IF(DataLog!$C1227=\"Log value\",DataLog!AA1227,\"\")","v":""},{"$f":"IF(DataLog!$C1227=\"Log value\",DataLog!AB1227,\"\")","v":""},{"$f":"IF(DataLog!$C1227=\"Log value\",DataLog!AC1227,\"\")","v":""},{"$f":"IF(DataLog!$C1227=\"Log value\",DataLog!AD1227,\"\")","v":""},{"$f":"IF(DataLog!$C1227=\"Log value\",DataLog!AE1227,\"\")","v":""},{"$f":"IF(DataLog!$C1227=\"Log value\",DataLog!AF1227,\"\")","v":""},{"$f":"IF(DataLog!$C1227=\"Log value\",DataLog!AG1227,\"\")","v":""},{"$f":"IF(DataLog!$C1227=\"Log value\",DataLog!AH1227,\"\")","v":""},{"$f":"IF(DataLog!$C1227=\"Log value\",DataLog!AI1227,\"\")","v":""},{"$f":"IF(DataLog!$C1227=\"Log value\",DataLog!AJ1227,\"\")","v":""},{"$f":"IF(DataLog!$C1227=\"Log value\",DataLog!AK1227,\"\")","v":""},{"$f":"IF(DataLog!$C1227=\"Log value\",DataLog!AL1227,\"\")","v":""},{"$f":"IF(DataLog!$C1227=\"Log value\",DataLog!AM1227,\"\")","v":""}]
[null,null,null,null,null,null,{"$f":"IF(DataLog!$C1230=\"Log value\",DataLog!D1230&\"_\"&TEXT(DataLog!B1230,\"åååå-mm-dd\"),\"\")","v":""},{"$f":"IF(DataLog!$C1230=\"Log value\",DataLog!E1230,\"\")","v":""},{"$f":"IF(DataLog!$C1230=\"Log value\",DataLog!F1230,\"\")","v":""},{"$f":"IF(DataLog!$C1230=\"Log value\",DataLog!G1230,\"\")","v":""},{"$f":"IF(DataLog!$C1230=\"Log value\",DataLog!H1230,\"\")","v":""},{"$f":"IF(DataLog!$C1230=\"Log value\",DataLog!I1230,\"\")","v":""},{"$f":"IF(DataLog!$C1230=\"Log value\",DataLog!J1230,\"\")","v":""},{"$f":"IF(DataLog!$C1230=\"Log value\",DataLog!K1230,\"\")","v":""},{"$f":"IF(DataLog!$C1230=\"Log value\",DataLog!L1230,\"\")","v":""},{"$f":"IF(DataLog!$C1230=\"Log value\",DataLog!M1230,\"\")","v":""},{"$f":"IF(DataLog!$C1230=\"Log value\",DataLog!N1230,\"\")","v":""},{"$f":"IF(DataLog!$C1230=\"Log value\",DataLog!O1230,\"\")","v":""},{"$f":"IF(DataLog!$C1230=\"Log value\",DataLog!P1230,\"\")","v":""},{"$f":"IF(DataLog!$C1230=\"Log value\",DataLog!Q1230,\"\")","v":""},{"$f":"IF(DataLog!$C1230=\"Log value\",DataLog!R1230,\"\")","v":""},{"$f":"IF(DataLog!$C1230=\"Log value\",DataLog!S1230,\"\")","v":""},{"$f":"IF(DataLog!$C1230=\"Log value\",DataLog!T1230,\"\")","v":""},{"$f":"IF(DataLog!$C1230=\"Log value\",DataLog!U1230,\"\")","v":""},{"$f":"IF(DataLog!$C1230=\"Log value\",DataLog!V1230,\"\")","v":""},{"$f":"IF(DataLog!$C1230=\"Log value\",DataLog!W1230,\"\")","v":""},{"$f":"IF(DataLog!$C1230=\"Log value\",DataLog!X1230,\"\")","v":""},{"$f":"IF(DataLog!$C1230=\"Log value\",DataLog!Y1230,\"\")","v":""},{"$f":"IF(DataLog!$C1230=\"Log value\",DataLog!Z1230,\"\")","v":""},{"$f":"IF(DataLog!$C1230=\"Log value\",DataLog!AA1230,\"\")","v":""},{"$f":"IF(DataLog!$C1230=\"Log value\",DataLog!AB1230,\"\")","v":""},{"$f":"IF(DataLog!$C1230=\"Log value\",DataLog!AC1230,\"\")","v":""},{"$f":"IF(DataLog!$C1230=\"Log value\",DataLog!AD1230,\"\")","v":""},{"$f":"IF(DataLog!$C1230=\"Log value\",DataLog!AE1230,\"\")","v":""},{"$f":"IF(DataLog!$C1230=\"Log value\",DataLog!AF1230,\"\")","v":""},{"$f":"IF(DataLog!$C1230=\"Log value\",DataLog!AG1230,\"\")","v":""},{"$f":"IF(DataLog!$C1230=\"Log value\",DataLog!AH1230,\"\")","v":""},{"$f":"IF(DataLog!$C1230=\"Log value\",DataLog!AI1230,\"\")","v":""},{"$f":"IF(DataLog!$C1230=\"Log value\",DataLog!AJ1230,\"\")","v":""},{"$f":"IF(DataLog!$C1230=\"Log value\",DataLog!AK1230,\"\")","v":""},{"$f":"IF(DataLog!$C1230=\"Log value\",DataLog!AL1230,\"\")","v":""},{"$f":"IF(DataLog!$C1230=\"Log value\",DataLog!AM1230,\"\")","v":""}]
[null,null,null,null,null,null,{"$f":"IF(DataLog!$C1231=\"Log value\",DataLog!D1231&\"_\"&TEXT(DataLog!B1231,\"åååå-mm-dd\"),\"\")","v":""},{"$f":"IF(DataLog!$C1231=\"Log value\",DataLog!E1231,\"\")","v":""},{"$f":"IF(DataLog!$C1231=\"Log value\",DataLog!F1231,\"\")","v":""},{"$f":"IF(DataLog!$C1231=\"Log value\",DataLog!G1231,\"\")","v":""},{"$f":"IF(DataLog!$C1231=\"Log value\",DataLog!H1231,\"\")","v":""},{"$f":"IF(DataLog!$C1231=\"Log value\",DataLog!I1231,\"\")","v":""},{"$f":"IF(DataLog!$C1231=\"Log value\",DataLog!J1231,\"\")","v":""},{"$f":"IF(DataLog!$C1231=\"Log value\",DataLog!K1231,\"\")","v":""},{"$f":"IF(DataLog!$C1231=\"Log value\",DataLog!L1231,\"\")","v":""},{"$f":"IF(DataLog!$C1231=\"Log value\",DataLog!M1231,\"\")","v":""},{"$f":"IF(DataLog!$C1231=\"Log value\",DataLog!N1231,\"\")","v":""},{"$f":"IF(DataLog!$C1231=\"Log value\",DataLog!O1231,\"\")","v":""},{"$f":"IF(DataLog!$C1231=\"Log value\",DataLog!P1231,\"\")","v":""},{"$f":"IF(DataLog!$C1231=\"Log value\",DataLog!Q1231,\"\")","v":""},{"$f":"IF(DataLog!$C1231=\"Log value\",DataLog!R1231,\"\")","v":""},{"$f":"IF(DataLog!$C1231=\"Log value\",DataLog!S1231,\"\")","v":""},{"$f":"IF(DataLog!$C1231=\"Log value\",DataLog!T1231,\"\")","v":""},{"$f":"IF(DataLog!$C1231=\"Log value\",DataLog!U1231,\"\")","v":""},{"$f":"IF(DataLog!$C1231=\"Log value\",DataLog!V1231,\"\")","v":""},{"$f":"IF(DataLog!$C1231=\"Log value\",DataLog!W1231,\"\")","v":""},{"$f":"IF(DataLog!$C1231=\"Log value\",DataLog!X1231,\"\")","v":""},{"$f":"IF(DataLog!$C1231=\"Log value\",DataLog!Y1231,\"\")","v":""},{"$f":"IF(DataLog!$C1231=\"Log value\",DataLog!Z1231,\"\")","v":""},{"$f":"IF(DataLog!$C1231=\"Log value\",DataLog!AA1231,\"\")","v":""},{"$f":"IF(DataLog!$C1231=\"Log value\",DataLog!AB1231,\"\")","v":""},{"$f":"IF(DataLog!$C1231=\"Log value\",DataLog!AC1231,\"\")","v":""},{"$f":"IF(DataLog!$C1231=\"Log value\",DataLog!AD1231,\"\")","v":""},{"$f":"IF(DataLog!$C1231=\"Log value\",DataLog!AE1231,\"\")","v":""},{"$f":"IF(DataLog!$C1231=\"Log value\",DataLog!AF1231,\"\")","v":""},{"$f":"IF(DataLog!$C1231=\"Log value\",DataLog!AG1231,\"\")","v":""},{"$f":"IF(DataLog!$C1231=\"Log value\",DataLog!AH1231,\"\")","v":""},{"$f":"IF(DataLog!$C1231=\"Log value\",DataLog!AI1231,\"\")","v":""},{"$f":"IF(DataLog!$C1231=\"Log value\",DataLog!AJ1231,\"\")","v":""},{"$f":"IF(DataLog!$C1231=\"Log value\",DataLog!AK1231,\"\")","v":""},{"$f":"IF(DataLog!$C1231=\"Log value\",DataLog!AL1231,\"\")","v":""},{"$f":"IF(DataLog!$C1231=\"Log value\",DataLog!AM1231,\"\")","v":""}]
[null,null,null,null,null,null,{"$f":"IF(DataLog!$C1235=\"Log value\",DataLog!D1235&\"_\"&TEXT(DataLog!B1235,\"åååå-mm-dd\"),\"\")","v":""},{"$f":"IF(DataLog!$C1235=\"Log value\",DataLog!E1235,\"\")","v":""},{"$f":"IF(DataLog!$C1235=\"Log value\",DataLog!F1235,\"\")","v":""},{"$f":"IF(DataLog!$C1235=\"Log value\",DataLog!G1235,\"\")","v":""},{"$f":"IF(DataLog!$C1235=\"Log value\",DataLog!H1235,\"\")","v":""},{"$f":"IF(DataLog!$C1235=\"Log value\",DataLog!I1235,\"\")","v":""},{"$f":"IF(DataLog!$C1235=\"Log value\",DataLog!J1235,\"\")","v":""},{"$f":"IF(DataLog!$C1235=\"Log value\",DataLog!K1235,\"\")","v":""},{"$f":"IF(DataLog!$C1235=\"Log value\",DataLog!L1235,\"\")","v":""},{"$f":"IF(DataLog!$C1235=\"Log value\",DataLog!M1235,\"\")","v":""},{"$f":"IF(DataLog!$C1235=\"Log value\",DataLog!N1235,\"\")","v":""},{"$f":"IF(DataLog!$C1235=\"Log value\",DataLog!O1235,\"\")","v":""},{"$f":"IF(DataLog!$C1235=\"Log value\",DataLog!P1235,\"\")","v":""},{"$f":"IF(DataLog!$C1235=\"Log value\",DataLog!Q1235,\"\")","v":""},{"$f":"IF(DataLog!$C1235=\"Log value\",DataLog!R1235,\"\")","v":""},{"$f":"IF(DataLog!$C1235=\"Log value\",DataLog!S1235,\"\")","v":""},{"$f":"IF(DataLog!$C1235=\"Log value\",DataLog!T1235,\"\")","v":""},{"$f":"IF(DataLog!$C1235=\"Log value\",DataLog!U1235,\"\")","v":""},{"$f":"IF(DataLog!$C1235=\"Log value\",DataLog!V1235,\"\")","v":""},{"$f":"IF(DataLog!$C1235=\"Log value\",DataLog!W1235,\"\")","v":""},{"$f":"IF(DataLog!$C1235=\"Log value\",DataLog!X1235,\"\")","v":""},{"$f":"IF(DataLog!$C1235=\"Log value\",DataLog!Y1235,\"\")","v":""},{"$f":"IF(DataLog!$C1235=\"Log value\",DataLog!Z1235,\"\")","v":""},{"$f":"IF(DataLog!$C1235=\"Log value\",DataLog!AA1235,\"\")","v":""},{"$f":"IF(DataLog!$C1235=\"Log value\",DataLog!AB1235,\"\")","v":""},{"$f":"IF(DataLog!$C1235=\"Log value\",DataLog!AC1235,\"\")","v":""},{"$f":"IF(DataLog!$C1235=\"Log value\",DataLog!AD1235,\"\")","v":""},{"$f":"IF(DataLog!$C1235=\"Log value\",DataLog!AE1235,\"\")","v":""},{"$f":"IF(DataLog!$C1235=\"Log value\",DataLog!AF1235,\"\")","v":""},{"$f":"IF(DataLog!$C1235=\"Log value\",DataLog!AG1235,\"\")","v":""},{"$f":"IF(DataLog!$C1235=\"Log value\",DataLog!AH1235,\"\")","v":""},{"$f":"IF(DataLog!$C1235=\"Log value\",DataLog!AI1235,\"\")","v":""},{"$f":"IF(DataLog!$C1235=\"Log value\",DataLog!AJ1235,\"\")","v":""},{"$f":"IF(DataLog!$C1235=\"Log value\",DataLog!AK1235,\"\")","v":""},{"$f":"IF(DataLog!$C1235=\"Log value\",DataLog!AL1235,\"\")","v":""},{"$f":"IF(DataLog!$C1235=\"Log value\",DataLog!AM1235,\"\")","v":""}]
[null,null,null,null,null,null,{"$f":"IF(DataLog!$C1236=\"Log value\",DataLog!D1236&\"_\"&TEXT(DataLog!B1236,\"åååå-mm-dd\"),\"\")","v":""},{"$f":"IF(DataLog!$C1236=\"Log value\",DataLog!E1236,\"\")","v":""},{"$f":"IF(DataLog!$C1236=\"Log value\",DataLog!F1236,\"\")","v":""},{"$f":"IF(DataLog!$C1236=\"Log value\",DataLog!G1236,\"\")","v":""},{"$f":"IF(DataLog!$C1236=\"Log value\",DataLog!H1236,\"\")","v":""},{"$f":"IF(DataLog!$C1236=\"Log value\",DataLog!I1236,\"\")","v":""},{"$f":"IF(DataLog!$C1236=\"Log value\",DataLog!J1236,\"\")","v":""},{"$f":"IF(DataLog!$C1236=\"Log value\",DataLog!K1236,\"\")","v":""},{"$f":"IF(DataLog!$C1236=\"Log value\",DataLog!L1236,\"\")","v":""},{"$f":"IF(DataLog!$C1236=\"Log value\",DataLog!M1236,\"\")","v":""},{"$f":"IF(DataLog!$C1236=\"Log value\",DataLog!N1236,\"\")","v":""},{"$f":"IF(DataLog!$C1236=\"Log value\",DataLog!O1236,\"\")","v":""},{"$f":"IF(DataLog!$C1236=\"Log value\",DataLog!P1236,\"\")","v":""},{"$f":"IF(DataLog!$C1236=\"Log value\",DataLog!Q1236,\"\")","v":""},{"$f":"IF(DataLog!$C1236=\"Log value\",DataLog!R1236,\"\")","v":""},{"$f":"IF(DataLog!$C1236=\"Log value\",DataLog!S1236,\"\")","v":""},{"$f":"IF(DataLog!$C1236=\"Log value\",DataLog!T1236,\"\")","v":""},{"$f":"IF(DataLog!$C1236=\"Log value\",DataLog!U1236,\"\")","v":""},{"$f":"IF(DataLog!$C1236=\"Log value\",DataLog!V1236,\"\")","v":""},{"$f":"IF(DataLog!$C1236=\"Log value\",DataLog!W1236,\"\")","v":""},{"$f":"IF(DataLog!$C1236=\"Log value\",DataLog!X1236,\"\")","v":""},{"$f":"IF(DataLog!$C1236=\"Log value\",DataLog!Y1236,\"\")","v":""},{"$f":"IF(DataLog!$C1236=\"Log value\",DataLog!Z1236,\"\")","v":""},{"$f":"IF(DataLog!$C1236=\"Log value\",DataLog!AA1236,\"\")","v":""},{"$f":"IF(DataLog!$C1236=\"Log value\",DataLog!AB1236,\"\")","v":""},{"$f":"IF(DataLog!$C1236=\"Log value\",DataLog!AC1236,\"\")","v":""},{"$f":"IF(DataLog!$C1236=\"Log value\",DataLog!AD1236,\"\")","v":""},{"$f":"IF(DataLog!$C1236=\"Log value\",DataLog!AE1236,\"\")","v":""},{"$f":"IF(DataLog!$C1236=\"Log value\",DataLog!AF1236,\"\")","v":""},{"$f":"IF(DataLog!$C1236=\"Log value\",DataLog!AG1236,\"\")","v":""},{"$f":"IF(DataLog!$C1236=\"Log value\",DataLog!AH1236,\"\")","v":""},{"$f":"IF(DataLog!$C1236=\"Log value\",DataLog!AI1236,\"\")","v":""},{"$f":"IF(DataLog!$C1236=\"Log value\",DataLog!AJ1236,\"\")","v":""},{"$f":"IF(DataLog!$C1236=\"Log value\",DataLog!AK1236,\"\")","v":""},{"$f":"IF(DataLog!$C1236=\"Log value\",DataLog!AL1236,\"\")","v":""},{"$f":"IF(DataLog!$C1236=\"Log value\",DataLog!AM1236,\"\")","v":""}]
[null,null,null,null,null,null,{"$f":"IF(DataLog!$C1239=\"Log value\",DataLog!D1239&\"_\"&TEXT(DataLog!B1239,\"åååå-mm-dd\"),\"\")","v":""},{"$f":"IF(DataLog!$C1239=\"Log value\",DataLog!E1239,\"\")","v":""},{"$f":"IF(DataLog!$C1239=\"Log value\",DataLog!F1239,\"\")","v":""},{"$f":"IF(DataLog!$C1239=\"Log value\",DataLog!G1239,\"\")","v":""},{"$f":"IF(DataLog!$C1239=\"Log value\",DataLog!H1239,\"\")","v":""},{"$f":"IF(DataLog!$C1239=\"Log value\",DataLog!I1239,\"\")","v":""},{"$f":"IF(DataLog!$C1239=\"Log value\",DataLog!J1239,\"\")","v":""},{"$f":"IF(DataLog!$C1239=\"Log value\",DataLog!K1239,\"\")","v":""},{"$f":"IF(DataLog!$C1239=\"Log value\",DataLog!L1239,\"\")","v":""},{"$f":"IF(DataLog!$C1239=\"Log value\",DataLog!M1239,\"\")","v":""},{"$f":"IF(DataLog!$C1239=\"Log value\",DataLog!N1239,\"\")","v":""},{"$f":"IF(DataLog!$C1239=\"Log value\",DataLog!O1239,\"\")","v":""},{"$f":"IF(DataLog!$C1239=\"Log value\",DataLog!P1239,\"\")","v":""},{"$f":"IF(DataLog!$C1239=\"Log value\",DataLog!Q1239,\"\")","v":""},{"$f":"IF(DataLog!$C1239=\"Log value\",DataLog!R1239,\"\")","v":""},{"$f":"IF(DataLog!$C1239=\"Log value\",DataLog!S1239,\"\")","v":""},{"$f":"IF(DataLog!$C1239=\"Log value\",DataLog!T1239,\"\")","v":""},{"$f":"IF(DataLog!$C1239=\"Log value\",DataLog!U1239,\"\")","v":""},{"$f":"IF(DataLog!$C1239=\"Log value\",DataLog!V1239,\"\")","v":""},{"$f":"IF(DataLog!$C1239=\"Log value\",DataLog!W1239,\"\")","v":""},{"$f":"IF(DataLog!$C1239=\"Log value\",DataLog!X1239,\"\")","v":""},{"$f":"IF(DataLog!$C1239=\"Log value\",DataLog!Y1239,\"\")","v":""},{"$f":"IF(DataLog!$C1239=\"Log value\",DataLog!Z1239,\"\")","v":""},{"$f":"IF(DataLog!$C1239=\"Log value\",DataLog!AA1239,\"\")","v":""},{"$f":"IF(DataLog!$C1239=\"Log value\",DataLog!AB1239,\"\")","v":""},{"$f":"IF(DataLog!$C1239=\"Log value\",DataLog!AC1239,\"\")","v":""},{"$f":"IF(DataLog!$C1239=\"Log value\",DataLog!AD1239,\"\")","v":""},{"$f":"IF(DataLog!$C1239=\"Log value\",DataLog!AE1239,\"\")","v":""},{"$f":"IF(DataLog!$C1239=\"Log value\",DataLog!AF1239,\"\")","v":""},{"$f":"IF(DataLog!$C1239=\"Log value\",DataLog!AG1239,\"\")","v":""},{"$f":"IF(DataLog!$C1239=\"Log value\",DataLog!AH1239,\"\")","v":""},{"$f":"IF(DataLog!$C1239=\"Log value\",DataLog!AI1239,\"\")","v":""},{"$f":"IF(DataLog!$C1239=\"Log value\",DataLog!AJ1239,\"\")","v":""},{"$f":"IF(DataLog!$C1239=\"Log value\",DataLog!AK1239,\"\")","v":""},{"$f":"IF(DataLog!$C1239=\"Log value\",DataLog!AL1239,\"\")","v":""},{"$f":"IF(DataLog!$C1239=\"Log value\",DataLog!AM1239,\"\")","v":""}]
[null,null,null,null,null,null,{"$f":"IF(DataLog!$C1242=\"Log value\",DataLog!D1242&\"_\"&TEXT(DataLog!B1242,\"åååå-mm-dd\"),\"\")","v":""},{"$f":"IF(DataLog!$C1242=\"Log value\",DataLog!E1242,\"\")","v":""},{"$f":"IF(DataLog!$C1242=\"Log value\",DataLog!F1242,\"\")","v":""},{"$f":"IF(DataLog!$C1242=\"Log value\",DataLog!G1242,\"\")","v":""},{"$f":"IF(DataLog!$C1242=\"Log value\",DataLog!H1242,\"\")","v":""},{"$f":"IF(DataLog!$C1242=\"Log value\",DataLog!I1242,\"\")","v":""},{"$f":"IF(DataLog!$C1242=\"Log value\",DataLog!J1242,\"\")","v":""},{"$f":"IF(DataLog!$C1242=\"Log value\",DataLog!K1242,\"\")","v":""},{"$f":"IF(DataLog!$C1242=\"Log value\",DataLog!L1242,\"\")","v":""},{"$f":"IF(DataLog!$C1242=\"Log value\",DataLog!M1242,\"\")","v":""},{"$f":"IF(DataLog!$C1242=\"Log value\",DataLog!N1242,\"\")","v":""},{"$f":"IF(DataLog!$C1242=\"Log value\",DataLog!O1242,\"\")","v":""},{"$f":"IF(DataLog!$C1242=\"Log value\",DataLog!P1242,\"\")","v":""},{"$f":"IF(DataLog!$C1242=\"Log value\",DataLog!Q1242,\"\")","v":""},{"$f":"IF(DataLog!$C1242=\"Log value\",DataLog!R1242,\"\")","v":""},{"$f":"IF(DataLog!$C1242=\"Log value\",DataLog!S1242,\"\")","v":""},{"$f":"IF(DataLog!$C1242=\"Log value\",DataLog!T1242,\"\")","v":""},{"$f":"IF(DataLog!$C1242=\"Log value\",DataLog!U1242,\"\")","v":""},{"$f":"IF(DataLog!$C1242=\"Log value\",DataLog!V1242,\"\")","v":""},{"$f":"IF(DataLog!$C1242=\"Log value\",DataLog!W1242,\"\")","v":""},{"$f":"IF(DataLog!$C1242=\"Log value\",DataLog!X1242,\"\")","v":""},{"$f":"IF(DataLog!$C1242=\"Log value\",DataLog!Y1242,\"\")","v":""},{"$f":"IF(DataLog!$C1242=\"Log value\",DataLog!Z1242,\"\")","v":""},{"$f":"IF(DataLog!$C1242=\"Log value\",DataLog!AA1242,\"\")","v":""},{"$f":"IF(DataLog!$C1242=\"Log value\",DataLog!AB1242,\"\")","v":""},{"$f":"IF(DataLog!$C1242=\"Log value\",DataLog!AC1242,\"\")","v":""},{"$f":"IF(DataLog!$C1242=\"Log value\",DataLog!AD1242,\"\")","v":""},{"$f":"IF(DataLog!$C1242=\"Log value\",DataLog!AE1242,\"\")","v":""},{"$f":"IF(DataLog!$C1242=\"Log value\",DataLog!AF1242,\"\")","v":""},{"$f":"IF(DataLog!$C1242=\"Log value\",DataLog!AG1242,\"\")","v":""},{"$f":"IF(DataLog!$C1242=\"Log value\",DataLog!AH1242,\"\")","v":""},{"$f":"IF(DataLog!$C1242=\"Log value\",DataLog!AI1242,\"\")","v":""},{"$f":"IF(DataLog!$C1242=\"Log value\",DataLog!AJ1242,\"\")","v":""},{"$f":"IF(DataLog!$C1242=\"Log value\",DataLog!AK1242,\"\")","v":""},{"$f":"IF(DataLog!$C1242=\"Log value\",DataLog!AL1242,\"\")","v":""},{"$f":"IF(DataLog!$C1242=\"Log value\",DataLog!AM1242,\"\")","v":""}]
[null,null,null,null,null,null,{"$f":"IF(DataLog!$C1244=\"Log value\",DataLog!D1244&\"_\"&TEXT(DataLog!B1244,\"åååå-mm-dd\"),\"\")","v":""},{"$f":"IF(DataLog!$C1244=\"Log value\",DataLog!E1244,\"\")","v":""},{"$f":"IF(DataLog!$C1244=\"Log value\",DataLog!F1244,\"\")","v":""},{"$f":"IF(DataLog!$C1244=\"Log value\",DataLog!G1244,\"\")","v":""},{"$f":"IF(DataLog!$C1244=\"Log value\",DataLog!H1244,\"\")","v":""},{"$f":"IF(DataLog!$C1244=\"Log value\",DataLog!I1244,\"\")","v":""},{"$f":"IF(DataLog!$C1244=\"Log value\",DataLog!J1244,\"\")","v":""},{"$f":"IF(DataLog!$C1244=\"Log value\",DataLog!K1244,\"\")","v":""},{"$f":"IF(DataLog!$C1244=\"Log value\",DataLog!L1244,\"\")","v":""},{"$f":"IF(DataLog!$C1244=\"Log value\",DataLog!M1244,\"\")","v":""},{"$f":"IF(DataLog!$C1244=\"Log value\",DataLog!N1244,\"\")","v":""},{"$f":"IF(DataLog!$C1244=\"Log value\",DataLog!O1244,\"\")","v":""},{"$f":"IF(DataLog!$C1244=\"Log value\",DataLog!P1244,\"\")","v":""},{"$f":"IF(DataLog!$C1244=\"Log value\",DataLog!Q1244,\"\")","v":""},{"$f":"IF(DataLog!$C1244=\"Log value\",DataLog!R1244,\"\")","v":""},{"$f":"IF(DataLog!$C1244=\"Log value\",DataLog!S1244,\"\")","v":""},{"$f":"IF(DataLog!$C1244=\"Log value\",DataLog!T1244,\"\")","v":""},{"$f":"IF(DataLog!$C1244=\"Log value\",DataLog!U1244,\"\")","v":""},{"$f":"IF(DataLog!$C1244=\"Log value\",DataLog!V1244,\"\")","v":""},{"$f":"IF(DataLog!$C1244=\"Log value\",DataLog!W1244,\"\")","v":""},{"$f":"IF(DataLog!$C1244=\"Log value\",DataLog!X1244,\"\")","v":""},{"$f":"IF(DataLog!$C1244=\"Log value\",DataLog!Y1244,\"\")","v":""},{"$f":"IF(DataLog!$C1244=\"Log value\",DataLog!Z1244,\"\")","v":""},{"$f":"IF(DataLog!$C1244=\"Log value\",DataLog!AA1244,\"\")","v":""},{"$f":"IF(DataLog!$C1244=\"Log value\",DataLog!AB1244,\"\")","v":""},{"$f":"IF(DataLog!$C1244=\"Log value\",DataLog!AC1244,\"\")","v":""},{"$f":"IF(DataLog!$C1244=\"Log value\",DataLog!AD1244,\"\")","v":""},{"$f":"IF(DataLog!$C1244=\"Log value\",DataLog!AE1244,\"\")","v":""},{"$f":"IF(DataLog!$C1244=\"Log value\",DataLog!AF1244,\"\")","v":""},{"$f":"IF(DataLog!$C1244=\"Log value\",DataLog!AG1244,\"\")","v":""},{"$f":"IF(DataLog!$C1244=\"Log value\",DataLog!AH1244,\"\")","v":""},{"$f":"IF(DataLog!$C1244=\"Log value\",DataLog!AI1244,\"\")","v":""},{"$f":"IF(DataLog!$C1244=\"Log value\",DataLog!AJ1244,\"\")","v":""},{"$f":"IF(DataLog!$C1244=\"Log value\",DataLog!AK1244,\"\")","v":""},{"$f":"IF(DataLog!$C1244=\"Log value\",DataLog!AL1244,\"\")","v":""},{"$f":"IF(DataLog!$C1244=\"Log value\",DataLog!AM1244,\"\")","v":""}]
[null,null,null,null,null,null,{"$f":"IF(DataLog!$C1245=\"Log value\",DataLog!D1245&\"_\"&TEXT(DataLog!B1245,\"åååå-mm-dd\"),\"\")","v":""},{"$f":"IF(DataLog!$C1245=\"Log value\",DataLog!E1245,\"\")","v":""},{"$f":"IF(DataLog!$C1245=\"Log value\",DataLog!F1245,\"\")","v":""},{"$f":"IF(DataLog!$C1245=\"Log value\",DataLog!G1245,\"\")","v":""},{"$f":"IF(DataLog!$C1245=\"Log value\",DataLog!H1245,\"\")","v":""},{"$f":"IF(DataLog!$C1245=\"Log value\",DataLog!I1245,\"\")","v":""},{"$f":"IF(DataLog!$C1245=\"Log value\",DataLog!J1245,\"\")","v":""},{"$f":"IF(DataLog!$C1245=\"Log value\",DataLog!K1245,\"\")","v":""},{"$f":"IF(DataLog!$C1245=\"Log value\",DataLog!L1245,\"\")","v":""},{"$f":"IF(DataLog!$C1245=\"Log value\",DataLog!M1245,\"\")","v":""},{"$f":"IF(DataLog!$C1245=\"Log value\",DataLog!N1245,\"\")","v":""},{"$f":"IF(DataLog!$C1245=\"Log value\",DataLog!O1245,\"\")","v":""},{"$f":"IF(DataLog!$C1245=\"Log value\",DataLog!P1245,\"\")","v":""},{"$f":"IF(DataLog!$C1245=\"Log value\",DataLog!Q1245,\"\")","v":""},{"$f":"IF(DataLog!$C1245=\"Log value\",DataLog!R1245,\"\")","v":""},{"$f":"IF(DataLog!$C1245=\"Log value\",DataLog!S1245,\"\")","v":""},{"$f":"IF(DataLog!$C1245=\"Log value\",DataLog!T1245,\"\")","v":""},{"$f":"IF(DataLog!$C1245=\"Log value\",DataLog!U1245,\"\")","v":""},{"$f":"IF(DataLog!$C1245=\"Log value\",DataLog!V1245,\"\")","v":""},{"$f":"IF(DataLog!$C1245=\"Log value\",DataLog!W1245,\"\")","v":""},{"$f":"IF(DataLog!$C1245=\"Log value\",DataLog!X1245,\"\")","v":""},{"$f":"IF(DataLog!$C1245=\"Log value\",DataLog!Y1245,\"\")","v":""},{"$f":"IF(DataLog!$C1245=\"Log value\",DataLog!Z1245,\"\")","v":""},{"$f":"IF(DataLog!$C1245=\"Log value\",DataLog!AA1245,\"\")","v":""},{"$f":"IF(DataLog!$C1245=\"Log value\",DataLog!AB1245,\"\")","v":""},{"$f":"IF(DataLog!$C1245=\"Log value\",DataLog!AC1245,\"\")","v":""},{"$f":"IF(DataLog!$C1245=\"Log value\",DataLog!AD1245,\"\")","v":""},{"$f":"IF(DataLog!$C1245=\"Log value\",DataLog!AE1245,\"\")","v":""},{"$f":"IF(DataLog!$C1245=\"Log value\",DataLog!AF1245,\"\")","v":""},{"$f":"IF(DataLog!$C1245=\"Log value\",DataLog!AG1245,\"\")","v":""},{"$f":"IF(DataLog!$C1245=\"Log value\",DataLog!AH1245,\"\")","v":""},{"$f":"IF(DataLog!$C1245=\"Log value\",DataLog!AI1245,\"\")","v":""},{"$f":"IF(DataLog!$C1245=\"Log value\",DataLog!AJ1245,\"\")","v":""},{"$f":"IF(DataLog!$C1245=\"Log value\",DataLog!AK1245,\"\")","v":""},{"$f":"IF(DataLog!$C1245=\"Log value\",DataLog!AL1245,\"\")","v":""},{"$f":"IF(DataLog!$C1245=\"Log value\",DataLog!AM1245,\"\")","v":""}]
[null,null,null,null,null,null,{"$f":"IF(DataLog!$C1248=\"Log value\",DataLog!D1248&\"_\"&TEXT(DataLog!B1248,\"åååå-mm-dd\"),\"\")","v":""},{"$f":"IF(DataLog!$C1248=\"Log value\",DataLog!E1248,\"\")","v":""},{"$f":"IF(DataLog!$C1248=\"Log value\",DataLog!F1248,\"\")","v":""},{"$f":"IF(DataLog!$C1248=\"Log value\",DataLog!G1248,\"\")","v":""},{"$f":"IF(DataLog!$C1248=\"Log value\",DataLog!H1248,\"\")","v":""},{"$f":"IF(DataLog!$C1248=\"Log value\",DataLog!I1248,\"\")","v":""},{"$f":"IF(DataLog!$C1248=\"Log value\",DataLog!J1248,\"\")","v":""},{"$f":"IF(DataLog!$C1248=\"Log value\",DataLog!K1248,\"\")","v":""},{"$f":"IF(DataLog!$C1248=\"Log value\",DataLog!L1248,\"\")","v":""},{"$f":"IF(DataLog!$C1248=\"Log value\",DataLog!M1248,\"\")","v":""},{"$f":"IF(DataLog!$C1248=\"Log value\",DataLog!N1248,\"\")","v":""},{"$f":"IF(DataLog!$C1248=\"Log value\",DataLog!O1248,\"\")","v":""},{"$f":"IF(DataLog!$C1248=\"Log value\",DataLog!P1248,\"\")","v":""},{"$f":"IF(DataLog!$C1248=\"Log value\",DataLog!Q1248,\"\")","v":""},{"$f":"IF(DataLog!$C1248=\"Log value\",DataLog!R1248,\"\")","v":""},{"$f":"IF(DataLog!$C1248=\"Log value\",DataLog!S1248,\"\")","v":""},{"$f":"IF(DataLog!$C1248=\"Log value\",DataLog!T1248,\"\")","v":""},{"$f":"IF(DataLog!$C1248=\"Log value\",DataLog!U1248,\"\")","v":""},{"$f":"IF(DataLog!$C1248=\"Log value\",DataLog!V1248,\"\")","v":""},{"$f":"IF(DataLog!$C1248=\"Log value\",DataLog!W1248,\"\")","v":""},{"$f":"IF(DataLog!$C1248=\"Log value\",DataLog!X1248,\"\")","v":""},{"$f":"IF(DataLog!$C1248=\"Log value\",DataLog!Y1248,\"\")","v":""},{"$f":"IF(DataLog!$C1248=\"Log value\",DataLog!Z1248,\"\")","v":""},{"$f":"IF(DataLog!$C1248=\"Log value\",DataLog!AA1248,\"\")","v":""},{"$f":"IF(DataLog!$C1248=\"Log value\",DataLog!AB1248,\"\")","v":""},{"$f":"IF(DataLog!$C1248=\"Log value\",DataLog!AC1248,\"\")","v":""},{"$f":"IF(DataLog!$C1248=\"Log value\",DataLog!AD1248,\"\")","v":""},{"$f":"IF(DataLog!$C1248=\"Log value\",DataLog!AE1248,\"\")","v":""},{"$f":"IF(DataLog!$C1248=\"Log value\",DataLog!AF1248,\"\")","v":""},{"$f":"IF(DataLog!$C1248=\"Log value\",DataLog!AG1248,\"\")","v":""},{"$f":"IF(DataLog!$C1248=\"Log value\",DataLog!AH1248,\"\")","v":""},{"$f":"IF(DataLog!$C1248=\"Log value\",DataLog!AI1248,\"\")","v":""},{"$f":"IF(DataLog!$C1248=\"Log value\",DataLog!AJ1248,\"\")","v":""},{"$f":"IF(DataLog!$C1248=\"Log value\",DataLog!AK1248,\"\")","v":""},{"$f":"IF(DataLog!$C1248=\"Log value\",DataLog!AL1248,\"\")","v":""},{"$f":"IF(DataLog!$C1248=\"Log value\",DataLog!AM1248,\"\")","v":""}]
[null,null,null,null,null,null,{"$f":"IF(DataLog!$C1249=\"Log value\",DataLog!D1249&\"_\"&TEXT(DataLog!B1249,\"åååå-mm-dd\"),\"\")","v":""},{"$f":"IF(DataLog!$C1249=\"Log value\",DataLog!E1249,\"\")","v":""},{"$f":"IF(DataLog!$C1249=\"Log value\",DataLog!F1249,\"\")","v":""},{"$f":"IF(DataLog!$C1249=\"Log value\",DataLog!G1249,\"\")","v":""},{"$f":"IF(DataLog!$C1249=\"Log value\",DataLog!H1249,\"\")","v":""},{"$f":"IF(DataLog!$C1249=\"Log value\",DataLog!I1249,\"\")","v":""},{"$f":"IF(DataLog!$C1249=\"Log value\",DataLog!J1249,\"\")","v":""},{"$f":"IF(DataLog!$C1249=\"Log value\",DataLog!K1249,\"\")","v":""},{"$f":"IF(DataLog!$C1249=\"Log value\",DataLog!L1249,\"\")","v":""},{"$f":"IF(DataLog!$C1249=\"Log value\",DataLog!M1249,\"\")","v":""},{"$f":"IF(DataLog!$C1249=\"Log value\",DataLog!N1249,\"\")","v":""},{"$f":"IF(DataLog!$C1249=\"Log value\",DataLog!O1249,\"\")","v":""},{"$f":"IF(DataLog!$C1249=\"Log value\",DataLog!P1249,\"\")","v":""},{"$f":"IF(DataLog!$C1249=\"Log value\",DataLog!Q1249,\"\")","v":""},{"$f":"IF(DataLog!$C1249=\"Log value\",DataLog!R1249,\"\")","v":""},{"$f":"IF(DataLog!$C1249=\"Log value\",DataLog!S1249,\"\")","v":""},{"$f":"IF(DataLog!$C1249=\"Log value\",DataLog!T1249,\"\")","v":""},{"$f":"IF(DataLog!$C1249=\"Log value\",DataLog!U1249,\"\")","v":""},{"$f":"IF(DataLog!$C1249=\"Log value\",DataLog!V1249,\"\")","v":""},{"$f":"IF(DataLog!$C1249=\"Log value\",DataLog!W1249,\"\")","v":""},{"$f":"IF(DataLog!$C1249=\"Log value\",DataLog!X1249,\"\")","v":""},{"$f":"IF(DataLog!$C1249=\"Log value\",DataLog!Y1249,\"\")","v":""},{"$f":"IF(DataLog!$C1249=\"Log value\",DataLog!Z1249,\"\")","v":""},{"$f":"IF(DataLog!$C1249=\"Log value\",DataLog!AA1249,\"\")","v":""},{"$f":"IF(DataLog!$C1249=\"Log value\",DataLog!AB1249,\"\")","v":""},{"$f":"IF(DataLog!$C1249=\"Log value\",DataLog!AC1249,\"\")","v":""},{"$f":"IF(DataLog!$C1249=\"Log value\",DataLog!AD1249,\"\")","v":""},{"$f":"IF(DataLog!$C1249=\"Log value\",DataLog!AE1249,\"\")","v":""},{"$f":"IF(DataLog!$C1249=\"Log value\",DataLog!AF1249,\"\")","v":""},{"$f":"IF(DataLog!$C1249=\"Log value\",DataLog!AG1249,\"\")","v":""},{"$f":"IF(DataLog!$C1249=\"Log value\",DataLog!AH1249,\"\")","v":""},{"$f":"IF(DataLog!$C1249=\"Log value\",DataLog!AI1249,\"\")","v":""},{"$f":"IF(DataLog!$C1249=\"Log value\",DataLog!AJ1249,\"\")","v":""},{"$f":"IF(DataLog!$C1249=\"Log value\",DataLog!AK1249,\"\")","v":""},{"$f":"IF(DataLog!$C1249=\"Log value\",DataLog!AL1249,\"\")","v":""},{"$f":"IF(DataLog!$C1249=\"Log value\",DataLog!AM1249,\"\")","v":""}]
[null,null,null,null,null,null,{"$f":"IF(DataLog!$C1253=\"Log value\",DataLog!D1253&\"_\"&TEXT(DataLog!B1253,\"åååå-mm-dd\"),\"\")","v":""},{"$f":"IF(DataLog!$C1253=\"Log value\",DataLog!E1253,\"\")","v":""},{"$f":"IF(DataLog!$C1253=\"Log value\",DataLog!F1253,\"\")","v":""},{"$f":"IF(DataLog!$C1253=\"Log value\",DataLog!G1253,\"\")","v":""},{"$f":"IF(DataLog!$C1253=\"Log value\",DataLog!H1253,\"\")","v":""},{"$f":"IF(DataLog!$C1253=\"Log value\",DataLog!I1253,\"\")","v":""},{"$f":"IF(DataLog!$C1253=\"Log value\",DataLog!J1253,\"\")","v":""},{"$f":"IF(DataLog!$C1253=\"Log value\",DataLog!K1253,\"\")","v":""},{"$f":"IF(DataLog!$C1253=\"Log value\",DataLog!L1253,\"\")","v":""},{"$f":"IF(DataLog!$C1253=\"Log value\",DataLog!M1253,\"\")","v":""},{"$f":"IF(DataLog!$C1253=\"Log value\",DataLog!N1253,\"\")","v":""},{"$f":"IF(DataLog!$C1253=\"Log value\",DataLog!O1253,\"\")","v":""},{"$f":"IF(DataLog!$C1253=\"Log value\",DataLog!P1253,\"\")","v":""},{"$f":"IF(DataLog!$C1253=\"Log value\",DataLog!Q1253,\"\")","v":""},{"$f":"IF(DataLog!$C1253=\"Log value\",DataLog!R1253,\"\")","v":""},{"$f":"IF(DataLog!$C1253=\"Log value\",DataLog!S1253,\"\")","v":""},{"$f":"IF(DataLog!$C1253=\"Log value\",DataLog!T1253,\"\")","v":""},{"$f":"IF(DataLog!$C1253=\"Log value\",DataLog!U1253,\"\")","v":""},{"$f":"IF(DataLog!$C1253=\"Log value\",DataLog!V1253,\"\")","v":""},{"$f":"IF(DataLog!$C1253=\"Log value\",DataLog!W1253,\"\")","v":""},{"$f":"IF(DataLog!$C1253=\"Log value\",DataLog!X1253,\"\")","v":""},{"$f":"IF(DataLog!$C1253=\"Log value\",DataLog!Y1253,\"\")","v":""},{"$f":"IF(DataLog!$C1253=\"Log value\",DataLog!Z1253,\"\")","v":""},{"$f":"IF(DataLog!$C1253=\"Log value\",DataLog!AA1253,\"\")","v":""},{"$f":"IF(DataLog!$C1253=\"Log value\",DataLog!AB1253,\"\")","v":""},{"$f":"IF(DataLog!$C1253=\"Log value\",DataLog!AC1253,\"\")","v":""},{"$f":"IF(DataLog!$C1253=\"Log value\",DataLog!AD1253,\"\")","v":""},{"$f":"IF(DataLog!$C1253=\"Log value\",DataLog!AE1253,\"\")","v":""},{"$f":"IF(DataLog!$C1253=\"Log value\",DataLog!AF1253,\"\")","v":""},{"$f":"IF(DataLog!$C1253=\"Log value\",DataLog!AG1253,\"\")","v":""},{"$f":"IF(DataLog!$C1253=\"Log value\",DataLog!AH1253,\"\")","v":""},{"$f":"IF(DataLog!$C1253=\"Log value\",DataLog!AI1253,\"\")","v":""},{"$f":"IF(DataLog!$C1253=\"Log value\",DataLog!AJ1253,\"\")","v":""},{"$f":"IF(DataLog!$C1253=\"Log value\",DataLog!AK1253,\"\")","v":""},{"$f":"IF(DataLog!$C1253=\"Log value\",DataLog!AL1253,\"\")","v":""},{"$f":"IF(DataLog!$C1253=\"Log value\",DataLog!AM1253,\"\")","v":""}]
[null,null,null,null,null,null,{"$f":"IF(DataLog!$C1254=\"Log value\",DataLog!D1254&\"_\"&TEXT(DataLog!B1254,\"åååå-mm-dd\"),\"\")","v":""},{"$f":"IF(DataLog!$C1254=\"Log value\",DataLog!E1254,\"\")","v":""},{"$f":"IF(DataLog!$C1254=\"Log value\",DataLog!F1254,\"\")","v":""},{"$f":"IF(DataLog!$C1254=\"Log value\",DataLog!G1254,\"\")","v":""},{"$f":"IF(DataLog!$C1254=\"Log value\",DataLog!H1254,\"\")","v":""},{"$f":"IF(DataLog!$C1254=\"Log value\",DataLog!I1254,\"\")","v":""},{"$f":"IF(DataLog!$C1254=\"Log value\",DataLog!J1254,\"\")","v":""},{"$f":"IF(DataLog!$C1254=\"Log value\",DataLog!K1254,\"\")","v":""},{"$f":"IF(DataLog!$C1254=\"Log value\",DataLog!L1254,\"\")","v":""},{"$f":"IF(DataLog!$C1254=\"Log value\",DataLog!M1254,\"\")","v":""},{"$f":"IF(DataLog!$C1254=\"Log value\",DataLog!N1254,\"\")","v":""},{"$f":"IF(DataLog!$C1254=\"Log value\",DataLog!O1254,\"\")","v":""},{"$f":"IF(DataLog!$C1254=\"Log value\",DataLog!P1254,\"\")","v":""},{"$f":"IF(DataLog!$C1254=\"Log value\",DataLog!Q1254,\"\")","v":""},{"$f":"IF(DataLog!$C1254=\"Log value\",DataLog!R1254,\"\")","v":""},{"$f":"IF(DataLog!$C1254=\"Log value\",DataLog!S1254,\"\")","v":""},{"$f":"IF(DataLog!$C1254=\"Log value\",DataLog!T1254,\"\")","v":""},{"$f":"IF(DataLog!$C1254=\"Log value\",DataLog!U1254,\"\")","v":""},{"$f":"IF(DataLog!$C1254=\"Log value\",DataLog!V1254,\"\")","v":""},{"$f":"IF(DataLog!$C1254=\"Log value\",DataLog!W1254,\"\")","v":""},{"$f":"IF(DataLog!$C1254=\"Log value\",DataLog!X1254,\"\")","v":""},{"$f":"IF(DataLog!$C1254=\"Log value\",DataLog!Y1254,\"\")","v":""},{"$f":"IF(DataLog!$C1254=\"Log value\",DataLog!Z1254,\"\")","v":""},{"$f":"IF(DataLog!$C1254=\"Log value\",DataLog!AA1254,\"\")","v":""},{"$f":"IF(DataLog!$C1254=\"Log value\",DataLog!AB1254,\"\")","v":""},{"$f":"IF(DataLog!$C1254=\"Log value\",DataLog!AC1254,\"\")","v":""},{"$f":"IF(DataLog!$C1254=\"Log value\",DataLog!AD1254,\"\")","v":""},{"$f":"IF(DataLog!$C1254=\"Log value\",DataLog!AE1254,\"\")","v":""},{"$f":"IF(DataLog!$C1254=\"Log value\",DataLog!AF1254,\"\")","v":""},{"$f":"IF(DataLog!$C1254=\"Log value\",DataLog!AG1254,\"\")","v":""},{"$f":"IF(DataLog!$C1254=\"Log value\",DataLog!AH1254,\"\")","v":""},{"$f":"IF(DataLog!$C1254=\"Log value\",DataLog!AI1254,\"\")","v":""},{"$f":"IF(DataLog!$C1254=\"Log value\",DataLog!AJ1254,\"\")","v":""},{"$f":"IF(DataLog!$C1254=\"Log value\",DataLog!AK1254,\"\")","v":""},{"$f":"IF(DataLog!$C1254=\"Log value\",DataLog!AL1254,\"\")","v":""},{"$f":"IF(DataLog!$C1254=\"Log value\",DataLog!AM1254,\"\")","v":""}]
[null,null,null,null,null,null,{"$f":"IF(DataLog!$C1257=\"Log value\",DataLog!D1257&\"_\"&TEXT(DataLog!B1257,\"åååå-mm-dd\"),\"\")","v":""},{"$f":"IF(DataLog!$C1257=\"Log value\",DataLog!E1257,\"\")","v":""},{"$f":"IF(DataLog!$C1257=\"Log value\",DataLog!F1257,\"\")","v":""},{"$f":"IF(DataLog!$C1257=\"Log value\",DataLog!G1257,\"\")","v":""},{"$f":"IF(DataLog!$C1257=\"Log value\",DataLog!H1257,\"\")","v":""},{"$f":"IF(DataLog!$C1257=\"Log value\",DataLog!I1257,\"\")","v":""},{"$f":"IF(DataLog!$C1257=\"Log value\",DataLog!J1257,\"\")","v":""},{"$f":"IF(DataLog!$C1257=\"Log value\",DataLog!K1257,\"\")","v":""},{"$f":"IF(DataLog!$C1257=\"Log value\",DataLog!L1257,\"\")","v":""},{"$f":"IF(DataLog!$C1257=\"Log value\",DataLog!M1257,\"\")","v":""},{"$f":"IF(DataLog!$C1257=\"Log value\",DataLog!N1257,\"\")","v":""},{"$f":"IF(DataLog!$C1257=\"Log value\",DataLog!O1257,\"\")","v":""},{"$f":"IF(DataLog!$C1257=\"Log value\",DataLog!P1257,\"\")","v":""},{"$f":"IF(DataLog!$C1257=\"Log value\",DataLog!Q1257,\"\")","v":""},{"$f":"IF(DataLog!$C1257=\"Log value\",DataLog!R1257,\"\")","v":""},{"$f":"IF(DataLog!$C1257=\"Log value\",DataLog!S1257,\"\")","v":""},{"$f":"IF(DataLog!$C1257=\"Log value\",DataLog!T1257,\"\")","v":""},{"$f":"IF(DataLog!$C1257=\"Log value\",DataLog!U1257,\"\")","v":""},{"$f":"IF(DataLog!$C1257=\"Log value\",DataLog!V1257,\"\")","v":""},{"$f":"IF(DataLog!$C1257=\"Log value\",DataLog!W1257,\"\")","v":""},{"$f":"IF(DataLog!$C1257=\"Log value\",DataLog!X1257,\"\")","v":""},{"$f":"IF(DataLog!$C1257=\"Log value\",DataLog!Y1257,\"\")","v":""},{"$f":"IF(DataLog!$C1257=\"Log value\",DataLog!Z1257,\"\")","v":""},{"$f":"IF(DataLog!$C1257=\"Log value\",DataLog!AA1257,\"\")","v":""},{"$f":"IF(DataLog!$C1257=\"Log value\",DataLog!AB1257,\"\")","v":""},{"$f":"IF(DataLog!$C1257=\"Log value\",DataLog!AC1257,\"\")","v":""},{"$f":"IF(DataLog!$C1257=\"Log value\",DataLog!AD1257,\"\")","v":""},{"$f":"IF(DataLog!$C1257=\"Log value\",DataLog!AE1257,\"\")","v":""},{"$f":"IF(DataLog!$C1257=\"Log value\",DataLog!AF1257,\"\")","v":""},{"$f":"IF(DataLog!$C1257=\"Log value\",DataLog!AG1257,\"\")","v":""},{"$f":"IF(DataLog!$C1257=\"Log value\",DataLog!AH1257,\"\")","v":""},{"$f":"IF(DataLog!$C1257=\"Log value\",DataLog!AI1257,\"\")","v":""},{"$f":"IF(DataLog!$C1257=\"Log value\",DataLog!AJ1257,\"\")","v":""},{"$f":"IF(DataLog!$C1257=\"Log value\",DataLog!AK1257,\"\")","v":""},{"$f":"IF(DataLog!$C1257=\"Log value\",DataLog!AL1257,\"\")","v":""},{"$f":"IF(DataLog!$C1257=\"Log value\",DataLog!AM1257,\"\")","v":""}]
[null,null,null,null,null,null,{"$f":"IF(DataLog!$C1260=\"Log value\",DataLog!D1260&\"_\"&TEXT(DataLog!B1260,\"åååå-mm-dd\"),\"\")","v":""},{"$f":"IF(DataLog!$C1260=\"Log value\",DataLog!E1260,\"\")","v":""},{"$f":"IF(DataLog!$C1260=\"Log value\",DataLog!F1260,\"\")","v":""},{"$f":"IF(DataLog!$C1260=\"Log value\",DataLog!G1260,\"\")","v":""},{"$f":"IF(DataLog!$C1260=\"Log value\",DataLog!H1260,\"\")","v":""},{"$f":"IF(DataLog!$C1260=\"Log value\",DataLog!I1260,\"\")","v":""},{"$f":"IF(DataLog!$C1260=\"Log value\",DataLog!J1260,\"\")","v":""},{"$f":"IF(DataLog!$C1260=\"Log value\",DataLog!K1260,\"\")","v":""},{"$f":"IF(DataLog!$C1260=\"Log value\",DataLog!L1260,\"\")","v":""},{"$f":"IF(DataLog!$C1260=\"Log value\",DataLog!M1260,\"\")","v":""},{"$f":"IF(DataLog!$C1260=\"Log value\",DataLog!N1260,\"\")","v":""},{"$f":"IF(DataLog!$C1260=\"Log value\",DataLog!O1260,\"\")","v":""},{"$f":"IF(DataLog!$C1260=\"Log value\",DataLog!P1260,\"\")","v":""},{"$f":"IF(DataLog!$C1260=\"Log value\",DataLog!Q1260,\"\")","v":""},{"$f":"IF(DataLog!$C1260=\"Log value\",DataLog!R1260,\"\")","v":""},{"$f":"IF(DataLog!$C1260=\"Log value\",DataLog!S1260,\"\")","v":""},{"$f":"IF(DataLog!$C1260=\"Log value\",DataLog!T1260,\"\")","v":""},{"$f":"IF(DataLog!$C1260=\"Log value\",DataLog!U1260,\"\")","v":""},{"$f":"IF(DataLog!$C1260=\"Log value\",DataLog!V1260,\"\")","v":""},{"$f":"IF(DataLog!$C1260=\"Log value\",DataLog!W1260,\"\")","v":""},{"$f":"IF(DataLog!$C1260=\"Log value\",DataLog!X1260,\"\")","v":""},{"$f":"IF(DataLog!$C1260=\"Log value\",DataLog!Y1260,\"\")","v":""},{"$f":"IF(DataLog!$C1260=\"Log value\",DataLog!Z1260,\"\")","v":""},{"$f":"IF(DataLog!$C1260=\"Log value\",DataLog!AA1260,\"\")","v":""},{"$f":"IF(DataLog!$C1260=\"Log value\",DataLog!AB1260,\"\")","v":""},{"$f":"IF(DataLog!$C1260=\"Log value\",DataLog!AC1260,\"\")","v":""},{"$f":"IF(DataLog!$C1260=\"Log value\",DataLog!AD1260,\"\")","v":""},{"$f":"IF(DataLog!$C1260=\"Log value\",DataLog!AE1260,\"\")","v":""},{"$f":"IF(DataLog!$C1260=\"Log value\",DataLog!AF1260,\"\")","v":""},{"$f":"IF(DataLog!$C1260=\"Log value\",DataLog!AG1260,\"\")","v":""},{"$f":"IF(DataLog!$C1260=\"Log value\",DataLog!AH1260,\"\")","v":""},{"$f":"IF(DataLog!$C1260=\"Log value\",DataLog!AI1260,\"\")","v":""},{"$f":"IF(DataLog!$C1260=\"Log value\",DataLog!AJ1260,\"\")","v":""},{"$f":"IF(DataLog!$C1260=\"Log value\",DataLog!AK1260,\"\")","v":""},{"$f":"IF(DataLog!$C1260=\"Log value\",DataLog!AL1260,\"\")","v":""},{"$f":"IF(DataLog!$C1260=\"Log value\",DataLog!AM1260,\"\")","v":""}]
[null,null,null,null,null,null,{"$f":"IF(DataLog!$C1262=\"Log value\",DataLog!D1262&\"_\"&TEXT(DataLog!B1262,\"åååå-mm-dd\"),\"\")","v":""},{"$f":"IF(DataLog!$C1262=\"Log value\",DataLog!E1262,\"\")","v":""},{"$f":"IF(DataLog!$C1262=\"Log value\",DataLog!F1262,\"\")","v":""},{"$f":"IF(DataLog!$C1262=\"Log value\",DataLog!G1262,\"\")","v":""},{"$f":"IF(DataLog!$C1262=\"Log value\",DataLog!H1262,\"\")","v":""},{"$f":"IF(DataLog!$C1262=\"Log value\",DataLog!I1262,\"\")","v":""},{"$f":"IF(DataLog!$C1262=\"Log value\",DataLog!J1262,\"\")","v":""},{"$f":"IF(DataLog!$C1262=\"Log value\",DataLog!K1262,\"\")","v":""},{"$f":"IF(DataLog!$C1262=\"Log value\",DataLog!L1262,\"\")","v":""},{"$f":"IF(DataLog!$C1262=\"Log value\",DataLog!M1262,\"\")","v":""},{"$f":"IF(DataLog!$C1262=\"Log value\",DataLog!N1262,\"\")","v":""},{"$f":"IF(DataLog!$C1262=\"Log value\",DataLog!O1262,\"\")","v":""},{"$f":"IF(DataLog!$C1262=\"Log value\",DataLog!P1262,\"\")","v":""},{"$f":"IF(DataLog!$C1262=\"Log value\",DataLog!Q1262,\"\")","v":""},{"$f":"IF(DataLog!$C1262=\"Log value\",DataLog!R1262,\"\")","v":""},{"$f":"IF(DataLog!$C1262=\"Log value\",DataLog!S1262,\"\")","v":""},{"$f":"IF(DataLog!$C1262=\"Log value\",DataLog!T1262,\"\")","v":""},{"$f":"IF(DataLog!$C1262=\"Log value\",DataLog!U1262,\"\")","v":""},{"$f":"IF(DataLog!$C1262=\"Log value\",DataLog!V1262,\"\")","v":""},{"$f":"IF(DataLog!$C1262=\"Log value\",DataLog!W1262,\"\")","v":""},{"$f":"IF(DataLog!$C1262=\"Log value\",DataLog!X1262,\"\")","v":""},{"$f":"IF(DataLog!$C1262=\"Log value\",DataLog!Y1262,\"\")","v":""},{"$f":"IF(DataLog!$C1262=\"Log value\",DataLog!Z1262,\"\")","v":""},{"$f":"IF(DataLog!$C1262=\"Log value\",DataLog!AA1262,\"\")","v":""},{"$f":"IF(DataLog!$C1262=\"Log value\",DataLog!AB1262,\"\")","v":""},{"$f":"IF(DataLog!$C1262=\"Log value\",DataLog!AC1262,\"\")","v":""},{"$f":"IF(DataLog!$C1262=\"Log value\",DataLog!AD1262,\"\")","v":""},{"$f":"IF(DataLog!$C1262=\"Log value\",DataLog!AE1262,\"\")","v":""},{"$f":"IF(DataLog!$C1262=\"Log value\",DataLog!AF1262,\"\")","v":""},{"$f":"IF(DataLog!$C1262=\"Log value\",DataLog!AG1262,\"\")","v":""},{"$f":"IF(DataLog!$C1262=\"Log value\",DataLog!AH1262,\"\")","v":""},{"$f":"IF(DataLog!$C1262=\"Log value\",DataLog!AI1262,\"\")","v":""},{"$f":"IF(DataLog!$C1262=\"Log value\",DataLog!AJ1262,\"\")","v":""},{"$f":"IF(DataLog!$C1262=\"Log value\",DataLog!AK1262,\"\")","v":""},{"$f":"IF(DataLog!$C1262=\"Log value\",DataLog!AL1262,\"\")","v":""},{"$f":"IF(DataLog!$C1262=\"Log value\",DataLog!AM1262,\"\")","v":""}]
[null,null,null,null,null,null,{"$f":"IF(DataLog!$C1263=\"Log value\",DataLog!D1263&\"_\"&TEXT(DataLog!B1263,\"åååå-mm-dd\"),\"\")","v":""},{"$f":"IF(DataLog!$C1263=\"Log value\",DataLog!E1263,\"\")","v":""},{"$f":"IF(DataLog!$C1263=\"Log value\",DataLog!F1263,\"\")","v":""},{"$f":"IF(DataLog!$C1263=\"Log value\",DataLog!G1263,\"\")","v":""},{"$f":"IF(DataLog!$C1263=\"Log value\",DataLog!H1263,\"\")","v":""},{"$f":"IF(DataLog!$C1263=\"Log value\",DataLog!I1263,\"\")","v":""},{"$f":"IF(DataLog!$C1263=\"Log value\",DataLog!J1263,\"\")","v":""},{"$f":"IF(DataLog!$C1263=\"Log value\",DataLog!K1263,\"\")","v":""},{"$f":"IF(DataLog!$C1263=\"Log value\",DataLog!L1263,\"\")","v":""},{"$f":"IF(DataLog!$C1263=\"Log value\",DataLog!M1263,\"\")","v":""},{"$f":"IF(DataLog!$C1263=\"Log value\",DataLog!N1263,\"\")","v":""},{"$f":"IF(DataLog!$C1263=\"Log value\",DataLog!O1263,\"\")","v":""},{"$f":"IF(DataLog!$C1263=\"Log value\",DataLog!P1263,\"\")","v":""},{"$f":"IF(DataLog!$C1263=\"Log value\",DataLog!Q1263,\"\")","v":""},{"$f":"IF(DataLog!$C1263=\"Log value\",DataLog!R1263,\"\")","v":""},{"$f":"IF(DataLog!$C1263=\"Log value\",DataLog!S1263,\"\")","v":""},{"$f":"IF(DataLog!$C1263=\"Log value\",DataLog!T1263,\"\")","v":""},{"$f":"IF(DataLog!$C1263=\"Log value\",DataLog!U1263,\"\")","v":""},{"$f":"IF(DataLog!$C1263=\"Log value\",DataLog!V1263,\"\")","v":""},{"$f":"IF(DataLog!$C1263=\"Log value\",DataLog!W1263,\"\")","v":""},{"$f":"IF(DataLog!$C1263=\"Log value\",DataLog!X1263,\"\")","v":""},{"$f":"IF(DataLog!$C1263=\"Log value\",DataLog!Y1263,\"\")","v":""},{"$f":"IF(DataLog!$C1263=\"Log value\",DataLog!Z1263,\"\")","v":""},{"$f":"IF(DataLog!$C1263=\"Log value\",DataLog!AA1263,\"\")","v":""},{"$f":"IF(DataLog!$C1263=\"Log value\",DataLog!AB1263,\"\")","v":""},{"$f":"IF(DataLog!$C1263=\"Log value\",DataLog!AC1263,\"\")","v":""},{"$f":"IF(DataLog!$C1263=\"Log value\",DataLog!AD1263,\"\")","v":""},{"$f":"IF(DataLog!$C1263=\"Log value\",DataLog!AE1263,\"\")","v":""},{"$f":"IF(DataLog!$C1263=\"Log value\",DataLog!AF1263,\"\")","v":""},{"$f":"IF(DataLog!$C1263=\"Log value\",DataLog!AG1263,\"\")","v":""},{"$f":"IF(DataLog!$C1263=\"Log value\",DataLog!AH1263,\"\")","v":""},{"$f":"IF(DataLog!$C1263=\"Log value\",DataLog!AI1263,\"\")","v":""},{"$f":"IF(DataLog!$C1263=\"Log value\",DataLog!AJ1263,\"\")","v":""},{"$f":"IF(DataLog!$C1263=\"Log value\",DataLog!AK1263,\"\")","v":""},{"$f":"IF(DataLog!$C1263=\"Log value\",DataLog!AL1263,\"\")","v":""},{"$f":"IF(DataLog!$C1263=\"Log value\",DataLog!AM1263,\"\")","v":""}]
[null,null,null,null,null,null,{"$f":"IF(DataLog!$C1266=\"Log value\",DataLog!D1266&\"_\"&TEXT(DataLog!B1266,\"åååå-mm-dd\"),\"\")","v":""},{"$f":"IF(DataLog!$C1266=\"Log value\",DataLog!E1266,\"\")","v":""},{"$f":"IF(DataLog!$C1266=\"Log value\",DataLog!F1266,\"\")","v":""},{"$f":"IF(DataLog!$C1266=\"Log value\",DataLog!G1266,\"\")","v":""},{"$f":"IF(DataLog!$C1266=\"Log value\",DataLog!H1266,\"\")","v":""},{"$f":"IF(DataLog!$C1266=\"Log value\",DataLog!I1266,\"\")","v":""},{"$f":"IF(DataLog!$C1266=\"Log value\",DataLog!J1266,\"\")","v":""},{"$f":"IF(DataLog!$C1266=\"Log value\",DataLog!K1266,\"\")","v":""},{"$f":"IF(DataLog!$C1266=\"Log value\",DataLog!L1266,\"\")","v":""},{"$f":"IF(DataLog!$C1266=\"Log value\",DataLog!M1266,\"\")","v":""},{"$f":"IF(DataLog!$C1266=\"Log value\",DataLog!N1266,\"\")","v":""},{"$f":"IF(DataLog!$C1266=\"Log value\",DataLog!O1266,\"\")","v":""},{"$f":"IF(DataLog!$C1266=\"Log value\",DataLog!P1266,\"\")","v":""},{"$f":"IF(DataLog!$C1266=\"Log value\",DataLog!Q1266,\"\")","v":""},{"$f":"IF(DataLog!$C1266=\"Log value\",DataLog!R1266,\"\")","v":""},{"$f":"IF(DataLog!$C1266=\"Log value\",DataLog!S1266,\"\")","v":""},{"$f":"IF(DataLog!$C1266=\"Log value\",DataLog!T1266,\"\")","v":""},{"$f":"IF(DataLog!$C1266=\"Log value\",DataLog!U1266,\"\")","v":""},{"$f":"IF(DataLog!$C1266=\"Log value\",DataLog!V1266,\"\")","v":""},{"$f":"IF(DataLog!$C1266=\"Log value\",DataLog!W1266,\"\")","v":""},{"$f":"IF(DataLog!$C1266=\"Log value\",DataLog!X1266,\"\")","v":""},{"$f":"IF(DataLog!$C1266=\"Log value\",DataLog!Y1266,\"\")","v":""},{"$f":"IF(DataLog!$C1266=\"Log value\",DataLog!Z1266,\"\")","v":""},{"$f":"IF(DataLog!$C1266=\"Log value\",DataLog!AA1266,\"\")","v":""},{"$f":"IF(DataLog!$C1266=\"Log value\",DataLog!AB1266,\"\")","v":""},{"$f":"IF(DataLog!$C1266=\"Log value\",DataLog!AC1266,\"\")","v":""},{"$f":"IF(DataLog!$C1266=\"Log value\",DataLog!AD1266,\"\")","v":""},{"$f":"IF(DataLog!$C1266=\"Log value\",DataLog!AE1266,\"\")","v":""},{"$f":"IF(DataLog!$C1266=\"Log value\",DataLog!AF1266,\"\")","v":""},{"$f":"IF(DataLog!$C1266=\"Log value\",DataLog!AG1266,\"\")","v":""},{"$f":"IF(DataLog!$C1266=\"Log value\",DataLog!AH1266,\"\")","v":""},{"$f":"IF(DataLog!$C1266=\"Log value\",DataLog!AI1266,\"\")","v":""},{"$f":"IF(DataLog!$C1266=\"Log value\",DataLog!AJ1266,\"\")","v":""},{"$f":"IF(DataLog!$C1266=\"Log value\",DataLog!AK1266,\"\")","v":""},{"$f":"IF(DataLog!$C1266=\"Log value\",DataLog!AL1266,\"\")","v":""},{"$f":"IF(DataLog!$C1266=\"Log value\",DataLog!AM1266,\"\")","v":""}]
[null,null,null,null,null,null,{"$f":"IF(DataLog!$C1267=\"Log value\",DataLog!D1267&\"_\"&TEXT(DataLog!B1267,\"åååå-mm-dd\"),\"\")","v":""},{"$f":"IF(DataLog!$C1267=\"Log value\",DataLog!E1267,\"\")","v":""},{"$f":"IF(DataLog!$C1267=\"Log value\",DataLog!F1267,\"\")","v":""},{"$f":"IF(DataLog!$C1267=\"Log value\",DataLog!G1267,\"\")","v":""},{"$f":"IF(DataLog!$C1267=\"Log value\",DataLog!H1267,\"\")","v":""},{"$f":"IF(DataLog!$C1267=\"Log value\",DataLog!I1267,\"\")","v":""},{"$f":"IF(DataLog!$C1267=\"Log value\",DataLog!J1267,\"\")","v":""},{"$f":"IF(DataLog!$C1267=\"Log value\",DataLog!K1267,\"\")","v":""},{"$f":"IF(DataLog!$C1267=\"Log value\",DataLog!L1267,\"\")","v":""},{"$f":"IF(DataLog!$C1267=\"Log value\",DataLog!M1267,\"\")","v":""},{"$f":"IF(DataLog!$C1267=\"Log value\",DataLog!N1267,\"\")","v":""},{"$f":"IF(DataLog!$C1267=\"Log value\",DataLog!O1267,\"\")","v":""},{"$f":"IF(DataLog!$C1267=\"Log value\",DataLog!P1267,\"\")","v":""},{"$f":"IF(DataLog!$C1267=\"Log value\",DataLog!Q1267,\"\")","v":""},{"$f":"IF(DataLog!$C1267=\"Log value\",DataLog!R1267,\"\")","v":""},{"$f":"IF(DataLog!$C1267=\"Log value\",DataLog!S1267,\"\")","v":""},{"$f":"IF(DataLog!$C1267=\"Log value\",DataLog!T1267,\"\")","v":""},{"$f":"IF(DataLog!$C1267=\"Log value\",DataLog!U1267,\"\")","v":""},{"$f":"IF(DataLog!$C1267=\"Log value\",DataLog!V1267,\"\")","v":""},{"$f":"IF(DataLog!$C1267=\"Log value\",DataLog!W1267,\"\")","v":""},{"$f":"IF(DataLog!$C1267=\"Log value\",DataLog!X1267,\"\")","v":""},{"$f":"IF(DataLog!$C1267=\"Log value\",DataLog!Y1267,\"\")","v":""},{"$f":"IF(DataLog!$C1267=\"Log value\",DataLog!Z1267,\"\")","v":""},{"$f":"IF(DataLog!$C1267=\"Log value\",DataLog!AA1267,\"\")","v":""},{"$f":"IF(DataLog!$C1267=\"Log value\",DataLog!AB1267,\"\")","v":""},{"$f":"IF(DataLog!$C1267=\"Log value\",DataLog!AC1267,\"\")","v":""},{"$f":"IF(DataLog!$C1267=\"Log value\",DataLog!AD1267,\"\")","v":""},{"$f":"IF(DataLog!$C1267=\"Log value\",DataLog!AE1267,\"\")","v":""},{"$f":"IF(DataLog!$C1267=\"Log value\",DataLog!AF1267,\"\")","v":""},{"$f":"IF(DataLog!$C1267=\"Log value\",DataLog!AG1267,\"\")","v":""},{"$f":"IF(DataLog!$C1267=\"Log value\",DataLog!AH1267,\"\")","v":""},{"$f":"IF(DataLog!$C1267=\"Log value\",DataLog!AI1267,\"\")","v":""},{"$f":"IF(DataLog!$C1267=\"Log value\",DataLog!AJ1267,\"\")","v":""},{"$f":"IF(DataLog!$C1267=\"Log value\",DataLog!AK1267,\"\")","v":""},{"$f":"IF(DataLog!$C1267=\"Log value\",DataLog!AL1267,\"\")","v":""},{"$f":"IF(DataLog!$C1267=\"Log value\",DataLog!AM1267,\"\")","v":""}]
[null,null,null,null,null,null,{"$f":"IF(DataLog!$C1271=\"Log value\",DataLog!D1271&\"_\"&TEXT(DataLog!B1271,\"åååå-mm-dd\"),\"\")","v":""},{"$f":"IF(DataLog!$C1271=\"Log value\",DataLog!E1271,\"\")","v":""},{"$f":"IF(DataLog!$C1271=\"Log value\",DataLog!F1271,\"\")","v":""},{"$f":"IF(DataLog!$C1271=\"Log value\",DataLog!G1271,\"\")","v":""},{"$f":"IF(DataLog!$C1271=\"Log value\",DataLog!H1271,\"\")","v":""},{"$f":"IF(DataLog!$C1271=\"Log value\",DataLog!I1271,\"\")","v":""},{"$f":"IF(DataLog!$C1271=\"Log value\",DataLog!J1271,\"\")","v":""},{"$f":"IF(DataLog!$C1271=\"Log value\",DataLog!K1271,\"\")","v":""},{"$f":"IF(DataLog!$C1271=\"Log value\",DataLog!L1271,\"\")","v":""},{"$f":"IF(DataLog!$C1271=\"Log value\",DataLog!M1271,\"\")","v":""},{"$f":"IF(DataLog!$C1271=\"Log value\",DataLog!N1271,\"\")","v":""},{"$f":"IF(DataLog!$C1271=\"Log value\",DataLog!O1271,\"\")","v":""},{"$f":"IF(DataLog!$C1271=\"Log value\",DataLog!P1271,\"\")","v":""},{"$f":"IF(DataLog!$C1271=\"Log value\",DataLog!Q1271,\"\")","v":""},{"$f":"IF(DataLog!$C1271=\"Log value\",DataLog!R1271,\"\")","v":""},{"$f":"IF(DataLog!$C1271=\"Log value\",DataLog!S1271,\"\")","v":""},{"$f":"IF(DataLog!$C1271=\"Log value\",DataLog!T1271,\"\")","v":""},{"$f":"IF(DataLog!$C1271=\"Log value\",DataLog!U1271,\"\")","v":""},{"$f":"IF(DataLog!$C1271=\"Log value\",DataLog!V1271,\"\")","v":""},{"$f":"IF(DataLog!$C1271=\"Log value\",DataLog!W1271,\"\")","v":""},{"$f":"IF(DataLog!$C1271=\"Log value\",DataLog!X1271,\"\")","v":""},{"$f":"IF(DataLog!$C1271=\"Log value\",DataLog!Y1271,\"\")","v":""},{"$f":"IF(DataLog!$C1271=\"Log value\",DataLog!Z1271,\"\")","v":""},{"$f":"IF(DataLog!$C1271=\"Log value\",DataLog!AA1271,\"\")","v":""},{"$f":"IF(DataLog!$C1271=\"Log value\",DataLog!AB1271,\"\")","v":""},{"$f":"IF(DataLog!$C1271=\"Log value\",DataLog!AC1271,\"\")","v":""},{"$f":"IF(DataLog!$C1271=\"Log value\",DataLog!AD1271,\"\")","v":""},{"$f":"IF(DataLog!$C1271=\"Log value\",DataLog!AE1271,\"\")","v":""},{"$f":"IF(DataLog!$C1271=\"Log value\",DataLog!AF1271,\"\")","v":""},{"$f":"IF(DataLog!$C1271=\"Log value\",DataLog!AG1271,\"\")","v":""},{"$f":"IF(DataLog!$C1271=\"Log value\",DataLog!AH1271,\"\")","v":""},{"$f":"IF(DataLog!$C1271=\"Log value\",DataLog!AI1271,\"\")","v":""},{"$f":"IF(DataLog!$C1271=\"Log value\",DataLog!AJ1271,\"\")","v":""},{"$f":"IF(DataLog!$C1271=\"Log value\",DataLog!AK1271,\"\")","v":""},{"$f":"IF(DataLog!$C1271=\"Log value\",DataLog!AL1271,\"\")","v":""},{"$f":"IF(DataLog!$C1271=\"Log value\",DataLog!AM1271,\"\")","v":""}]
[null,null,null,null,null,null,{"$f":"IF(DataLog!$C1272=\"Log value\",DataLog!D1272&\"_\"&TEXT(DataLog!B1272,\"åååå-mm-dd\"),\"\")","v":""},{"$f":"IF(DataLog!$C1272=\"Log value\",DataLog!E1272,\"\")","v":""},{"$f":"IF(DataLog!$C1272=\"Log value\",DataLog!F1272,\"\")","v":""},{"$f":"IF(DataLog!$C1272=\"Log value\",DataLog!G1272,\"\")","v":""},{"$f":"IF(DataLog!$C1272=\"Log value\",DataLog!H1272,\"\")","v":""},{"$f":"IF(DataLog!$C1272=\"Log value\",DataLog!I1272,\"\")","v":""},{"$f":"IF(DataLog!$C1272=\"Log value\",DataLog!J1272,\"\")","v":""},{"$f":"IF(DataLog!$C1272=\"Log value\",DataLog!K1272,\"\")","v":""},{"$f":"IF(DataLog!$C1272=\"Log value\",DataLog!L1272,\"\")","v":""},{"$f":"IF(DataLog!$C1272=\"Log value\",DataLog!M1272,\"\")","v":""},{"$f":"IF(DataLog!$C1272=\"Log value\",DataLog!N1272,\"\")","v":""},{"$f":"IF(DataLog!$C1272=\"Log value\",DataLog!O1272,\"\")","v":""},{"$f":"IF(DataLog!$C1272=\"Log value\",DataLog!P1272,\"\")","v":""},{"$f":"IF(DataLog!$C1272=\"Log value\",DataLog!Q1272,\"\")","v":""},{"$f":"IF(DataLog!$C1272=\"Log value\",DataLog!R1272,\"\")","v":""},{"$f":"IF(DataLog!$C1272=\"Log value\",DataLog!S1272,\"\")","v":""},{"$f":"IF(DataLog!$C1272=\"Log value\",DataLog!T1272,\"\")","v":""},{"$f":"IF(DataLog!$C1272=\"Log value\",DataLog!U1272,\"\")","v":""},{"$f":"IF(DataLog!$C1272=\"Log value\",DataLog!V1272,\"\")","v":""},{"$f":"IF(DataLog!$C1272=\"Log value\",DataLog!W1272,\"\")","v":""},{"$f":"IF(DataLog!$C1272=\"Log value\",DataLog!X1272,\"\")","v":""},{"$f":"IF(DataLog!$C1272=\"Log value\",DataLog!Y1272,\"\")","v":""},{"$f":"IF(DataLog!$C1272=\"Log value\",DataLog!Z1272,\"\")","v":""},{"$f":"IF(DataLog!$C1272=\"Log value\",DataLog!AA1272,\"\")","v":""},{"$f":"IF(DataLog!$C1272=\"Log value\",DataLog!AB1272,\"\")","v":""},{"$f":"IF(DataLog!$C1272=\"Log value\",DataLog!AC1272,\"\")","v":""},{"$f":"IF(DataLog!$C1272=\"Log value\",DataLog!AD1272,\"\")","v":""},{"$f":"IF(DataLog!$C1272=\"Log value\",DataLog!AE1272,\"\")","v":""},{"$f":"IF(DataLog!$C1272=\"Log value\",DataLog!AF1272,\"\")","v":""},{"$f":"IF(DataLog!$C1272=\"Log value\",DataLog!AG1272,\"\")","v":""},{"$f":"IF(DataLog!$C1272=\"Log value\",DataLog!AH1272,\"\")","v":""},{"$f":"IF(DataLog!$C1272=\"Log value\",DataLog!AI1272,\"\")","v":""},{"$f":"IF(DataLog!$C1272=\"Log value\",DataLog!AJ1272,\"\")","v":""},{"$f":"IF(DataLog!$C1272=\"Log value\",DataLog!AK1272,\"\")","v":""},{"$f":"IF(DataLog!$C1272=\"Log value\",DataLog!AL1272,\"\")","v":""},{"$f":"IF(DataLog!$C1272=\"Log value\",DataLog!AM1272,\"\")","v":""}]
[null,null,null,null,null,null,{"$f":"IF(DataLog!$C1275=\"Log value\",DataLog!D1275&\"_\"&TEXT(DataLog!B1275,\"åååå-mm-dd\"),\"\")","v":""},{"$f":"IF(DataLog!$C1275=\"Log value\",DataLog!E1275,\"\")","v":""},{"$f":"IF(DataLog!$C1275=\"Log value\",DataLog!F1275,\"\")","v":""},{"$f":"IF(DataLog!$C1275=\"Log value\",DataLog!G1275,\"\")","v":""},{"$f":"IF(DataLog!$C1275=\"Log value\",DataLog!H1275,\"\")","v":""},{"$f":"IF(DataLog!$C1275=\"Log value\",DataLog!I1275,\"\")","v":""},{"$f":"IF(DataLog!$C1275=\"Log value\",DataLog!J1275,\"\")","v":""},{"$f":"IF(DataLog!$C1275=\"Log value\",DataLog!K1275,\"\")","v":""},{"$f":"IF(DataLog!$C1275=\"Log value\",DataLog!L1275,\"\")","v":""},{"$f":"IF(DataLog!$C1275=\"Log value\",DataLog!M1275,\"\")","v":""},{"$f":"IF(DataLog!$C1275=\"Log value\",DataLog!N1275,\"\")","v":""},{"$f":"IF(DataLog!$C1275=\"Log value\",DataLog!O1275,\"\")","v":""},{"$f":"IF(DataLog!$C1275=\"Log value\",DataLog!P1275,\"\")","v":""},{"$f":"IF(DataLog!$C1275=\"Log value\",DataLog!Q1275,\"\")","v":""},{"$f":"IF(DataLog!$C1275=\"Log value\",DataLog!R1275,\"\")","v":""},{"$f":"IF(DataLog!$C1275=\"Log value\",DataLog!S1275,\"\")","v":""},{"$f":"IF(DataLog!$C1275=\"Log value\",DataLog!T1275,\"\")","v":""},{"$f":"IF(DataLog!$C1275=\"Log value\",DataLog!U1275,\"\")","v":""},{"$f":"IF(DataLog!$C1275=\"Log value\",DataLog!V1275,\"\")","v":""},{"$f":"IF(DataLog!$C1275=\"Log value\",DataLog!W1275,\"\")","v":""},{"$f":"IF(DataLog!$C1275=\"Log value\",DataLog!X1275,\"\")","v":""},{"$f":"IF(DataLog!$C1275=\"Log value\",DataLog!Y1275,\"\")","v":""},{"$f":"IF(DataLog!$C1275=\"Log value\",DataLog!Z1275,\"\")","v":""},{"$f":"IF(DataLog!$C1275=\"Log value\",DataLog!AA1275,\"\")","v":""},{"$f":"IF(DataLog!$C1275=\"Log value\",DataLog!AB1275,\"\")","v":""},{"$f":"IF(DataLog!$C1275=\"Log value\",DataLog!AC1275,\"\")","v":""},{"$f":"IF(DataLog!$C1275=\"Log value\",DataLog!AD1275,\"\")","v":""},{"$f":"IF(DataLog!$C1275=\"Log value\",DataLog!AE1275,\"\")","v":""},{"$f":"IF(DataLog!$C1275=\"Log value\",DataLog!AF1275,\"\")","v":""},{"$f":"IF(DataLog!$C1275=\"Log value\",DataLog!AG1275,\"\")","v":""},{"$f":"IF(DataLog!$C1275=\"Log value\",DataLog!AH1275,\"\")","v":""},{"$f":"IF(DataLog!$C1275=\"Log value\",DataLog!AI1275,\"\")","v":""},{"$f":"IF(DataLog!$C1275=\"Log value\",DataLog!AJ1275,\"\")","v":""},{"$f":"IF(DataLog!$C1275=\"Log value\",DataLog!AK1275,\"\")","v":""},{"$f":"IF(DataLog!$C1275=\"Log value\",DataLog!AL1275,\"\")","v":""},{"$f":"IF(DataLog!$C1275=\"Log value\",DataLog!AM1275,\"\")","v":""}]
[null,null,null,null,null,null,{"$f":"IF(DataLog!$C1277=\"Log value\",DataLog!D1277&\"_\"&TEXT(DataLog!B1277,\"åååå-mm-dd\"),\"\")","v":""},{"$f":"IF(DataLog!$C1277=\"Log value\",DataLog!E1277,\"\")","v":""},{"$f":"IF(DataLog!$C1277=\"Log value\",DataLog!F1277,\"\")","v":""},{"$f":"IF(DataLog!$C1277=\"Log value\",DataLog!G1277,\"\")","v":""},{"$f":"IF(DataLog!$C1277=\"Log value\",DataLog!H1277,\"\")","v":""},{"$f":"IF(DataLog!$C1277=\"Log value\",DataLog!I1277,\"\")","v":""},{"$f":"IF(DataLog!$C1277=\"Log value\",DataLog!J1277,\"\")","v":""},{"$f":"IF(DataLog!$C1277=\"Log value\",DataLog!K1277,\"\")","v":""},{"$f":"IF(DataLog!$C1277=\"Log value\",DataLog!L1277,\"\")","v":""},{"$f":"IF(DataLog!$C1277=\"Log value\",DataLog!M1277,\"\")","v":""},{"$f":"IF(DataLog!$C1277=\"Log value\",DataLog!N1277,\"\")","v":""},{"$f":"IF(DataLog!$C1277=\"Log value\",DataLog!O1277,\"\")","v":""},{"$f":"IF(DataLog!$C1277=\"Log value\",DataLog!P1277,\"\")","v":""},{"$f":"IF(DataLog!$C1277=\"Log value\",DataLog!Q1277,\"\")","v":""},{"$f":"IF(DataLog!$C1277=\"Log value\",DataLog!R1277,\"\")","v":""},{"$f":"IF(DataLog!$C1277=\"Log value\",DataLog!S1277,\"\")","v":""},{"$f":"IF(DataLog!$C1277=\"Log value\",DataLog!T1277,\"\")","v":""},{"$f":"IF(DataLog!$C1277=\"Log value\",DataLog!U1277,\"\")","v":""},{"$f":"IF(DataLog!$C1277=\"Log value\",DataLog!V1277,\"\")","v":""},{"$f":"IF(DataLog!$C1277=\"Log value\",DataLog!W1277,\"\")","v":""},{"$f":"IF(DataLog!$C1277=\"Log value\",DataLog!X1277,\"\")","v":""},{"$f":"IF(DataLog!$C1277=\"Log value\",DataLog!Y1277,\"\")","v":""},{"$f":"IF(DataLog!$C1277=\"Log value\",DataLog!Z1277,\"\")","v":""},{"$f":"IF(DataLog!$C1277=\"Log value\",DataLog!AA1277,\"\")","v":""},{"$f":"IF(DataLog!$C1277=\"Log value\",DataLog!AB1277,\"\")","v":""},{"$f":"IF(DataLog!$C1277=\"Log value\",DataLog!AC1277,\"\")","v":""},{"$f":"IF(DataLog!$C1277=\"Log value\",DataLog!AD1277,\"\")","v":""},{"$f":"IF(DataLog!$C1277=\"Log value\",DataLog!AE1277,\"\")","v":""},{"$f":"IF(DataLog!$C1277=\"Log value\",DataLog!AF1277,\"\")","v":""},{"$f":"IF(DataLog!$C1277=\"Log value\",DataLog!AG1277,\"\")","v":""},{"$f":"IF(DataLog!$C1277=\"Log value\",DataLog!AH1277,\"\")","v":""},{"$f":"IF(DataLog!$C1277=\"Log value\",DataLog!AI1277,\"\")","v":""},{"$f":"IF(DataLog!$C1277=\"Log value\",DataLog!AJ1277,\"\")","v":""},{"$f":"IF(DataLog!$C1277=\"Log value\",DataLog!AK1277,\"\")","v":""},{"$f":"IF(DataLog!$C1277=\"Log value\",DataLog!AL1277,\"\")","v":""},{"$f":"IF(DataLog!$C1277=\"Log value\",DataLog!AM1277,\"\")","v":""}]
[null,null,null,null,null,null,{"$f":"IF(DataLog!$C1280=\"Log value\",DataLog!D1280&\"_\"&TEXT(DataLog!B1280,\"åååå-mm-dd\"),\"\")","v":""},{"$f":"IF(DataLog!$C1280=\"Log value\",DataLog!E1280,\"\")","v":""},{"$f":"IF(DataLog!$C1280=\"Log value\",DataLog!F1280,\"\")","v":""},{"$f":"IF(DataLog!$C1280=\"Log value\",DataLog!G1280,\"\")","v":""},{"$f":"IF(DataLog!$C1280=\"Log value\",DataLog!H1280,\"\")","v":""},{"$f":"IF(DataLog!$C1280=\"Log value\",DataLog!I1280,\"\")","v":""},{"$f":"IF(DataLog!$C1280=\"Log value\",DataLog!J1280,\"\")","v":""},{"$f":"IF(DataLog!$C1280=\"Log value\",DataLog!K1280,\"\")","v":""},{"$f":"IF(DataLog!$C1280=\"Log value\",DataLog!L1280,\"\")","v":""},{"$f":"IF(DataLog!$C1280=\"Log value\",DataLog!M1280,\"\")","v":""},{"$f":"IF(DataLog!$C1280=\"Log value\",DataLog!N1280,\"\")","v":""},{"$f":"IF(DataLog!$C1280=\"Log value\",DataLog!O1280,\"\")","v":""},{"$f":"IF(DataLog!$C1280=\"Log value\",DataLog!P1280,\"\")","v":""},{"$f":"IF(DataLog!$C1280=\"Log value\",DataLog!Q1280,\"\")","v":""},{"$f":"IF(DataLog!$C1280=\"Log value\",DataLog!R1280,\"\")","v":""},{"$f":"IF(DataLog!$C1280=\"Log value\",DataLog!S1280,\"\")","v":""},{"$f":"IF(DataLog!$C1280=\"Log value\",DataLog!T1280,\"\")","v":""},{"$f":"IF(DataLog!$C1280=\"Log value\",DataLog!U1280,\"\")","v":""},{"$f":"IF(DataLog!$C1280=\"Log value\",DataLog!V1280,\"\")","v":""},{"$f":"IF(DataLog!$C1280=\"Log value\",DataLog!W1280,\"\")","v":""},{"$f":"IF(DataLog!$C1280=\"Log value\",DataLog!X1280,\"\")","v":""},{"$f":"IF(DataLog!$C1280=\"Log value\",DataLog!Y1280,\"\")","v":""},{"$f":"IF(DataLog!$C1280=\"Log value\",DataLog!Z1280,\"\")","v":""},{"$f":"IF(DataLog!$C1280=\"Log value\",DataLog!AA1280,\"\")","v":""},{"$f":"IF(DataLog!$C1280=\"Log value\",DataLog!AB1280,\"\")","v":""},{"$f":"IF(DataLog!$C1280=\"Log value\",DataLog!AC1280,\"\")","v":""},{"$f":"IF(DataLog!$C1280=\"Log value\",DataLog!AD1280,\"\")","v":""},{"$f":"IF(DataLog!$C1280=\"Log value\",DataLog!AE1280,\"\")","v":""},{"$f":"IF(DataLog!$C1280=\"Log value\",DataLog!AF1280,\"\")","v":""},{"$f":"IF(DataLog!$C1280=\"Log value\",DataLog!AG1280,\"\")","v":""},{"$f":"IF(DataLog!$C1280=\"Log value\",DataLog!AH1280,\"\")","v":""},{"$f":"IF(DataLog!$C1280=\"Log value\",DataLog!AI1280,\"\")","v":""},{"$f":"IF(DataLog!$C1280=\"Log value\",DataLog!AJ1280,\"\")","v":""},{"$f":"IF(DataLog!$C1280=\"Log value\",DataLog!AK1280,\"\")","v":""},{"$f":"IF(DataLog!$C1280=\"Log value\",DataLog!AL1280,\"\")","v":""},{"$f":"IF(DataLog!$C1280=\"Log value\",DataLog!AM1280,\"\")","v":""}]
[null,null,null,null,null,null,{"$f":"IF(DataLog!$C1281=\"Log value\",DataLog!D1281&\"_\"&TEXT(DataLog!B1281,\"åååå-mm-dd\"),\"\")","v":""},{"$f":"IF(DataLog!$C1281=\"Log value\",DataLog!E1281,\"\")","v":""},{"$f":"IF(DataLog!$C1281=\"Log value\",DataLog!F1281,\"\")","v":""},{"$f":"IF(DataLog!$C1281=\"Log value\",DataLog!G1281,\"\")","v":""},{"$f":"IF(DataLog!$C1281=\"Log value\",DataLog!H1281,\"\")","v":""},{"$f":"IF(DataLog!$C1281=\"Log value\",DataLog!I1281,\"\")","v":""},{"$f":"IF(DataLog!$C1281=\"Log value\",DataLog!J1281,\"\")","v":""},{"$f":"IF(DataLog!$C1281=\"Log value\",DataLog!K1281,\"\")","v":""},{"$f":"IF(DataLog!$C1281=\"Log value\",DataLog!L1281,\"\")","v":""},{"$f":"IF(DataLog!$C1281=\"Log value\",DataLog!M1281,\"\")","v":""},{"$f":"IF(DataLog!$C1281=\"Log value\",DataLog!N1281,\"\")","v":""},{"$f":"IF(DataLog!$C1281=\"Log value\",DataLog!O1281,\"\")","v":""},{"$f":"IF(DataLog!$C1281=\"Log value\",DataLog!P1281,\"\")","v":""},{"$f":"IF(DataLog!$C1281=\"Log value\",DataLog!Q1281,\"\")","v":""},{"$f":"IF(DataLog!$C1281=\"Log value\",DataLog!R1281,\"\")","v":""},{"$f":"IF(DataLog!$C1281=\"Log value\",DataLog!S1281,\"\")","v":""},{"$f":"IF(DataLog!$C1281=\"Log value\",DataLog!T1281,\"\")","v":""},{"$f":"IF(DataLog!$C1281=\"Log value\",DataLog!U1281,\"\")","v":""},{"$f":"IF(DataLog!$C1281=\"Log value\",DataLog!V1281,\"\")","v":""},{"$f":"IF(DataLog!$C1281=\"Log value\",DataLog!W1281,\"\")","v":""},{"$f":"IF(DataLog!$C1281=\"Log value\",DataLog!X1281,\"\")","v":""},{"$f":"IF(DataLog!$C1281=\"Log value\",DataLog!Y1281,\"\")","v":""},{"$f":"IF(DataLog!$C1281=\"Log value\",DataLog!Z1281,\"\")","v":""},{"$f":"IF(DataLog!$C1281=\"Log value\",DataLog!AA1281,\"\")","v":""},{"$f":"IF(DataLog!$C1281=\"Log value\",DataLog!AB1281,\"\")","v":""},{"$f":"IF(DataLog!$C1281=\"Log value\",DataLog!AC1281,\"\")","v":""},{"$f":"IF(DataLog!$C1281=\"Log value\",DataLog!AD1281,\"\")","v":""},{"$f":"IF(DataLog!$C1281=\"Log value\",DataLog!AE1281,\"\")","v":""},{"$f":"IF(DataLog!$C1281=\"Log value\",DataLog!AF1281,\"\")","v":""},{"$f":"IF(DataLog!$C1281=\"Log value\",DataLog!AG1281,\"\")","v":""},{"$f":"IF(DataLog!$C1281=\"Log value\",DataLog!AH1281,\"\")","v":""},{"$f":"IF(DataLog!$C1281=\"Log value\",DataLog!AI1281,\"\")","v":""},{"$f":"IF(DataLog!$C1281=\"Log value\",DataLog!AJ1281,\"\")","v":""},{"$f":"IF(DataLog!$C1281=\"Log value\",DataLog!AK1281,\"\")","v":""},{"$f":"IF(DataLog!$C1281=\"Log value\",DataLog!AL1281,\"\")","v":""},{"$f":"IF(DataLog!$C1281=\"Log value\",DataLog!AM1281,\"\")","v":""}]
[null,null,null,null,null,null,{"$f":"IF(DataLog!$C1283=\"Log value\",DataLog!D1283&\"_\"&TEXT(DataLog!B1283,\"åååå-mm-dd\"),\"\")","v":""},{"$f":"IF(DataLog!$C1283=\"Log value\",DataLog!E1283,\"\")","v":""},{"$f":"IF(DataLog!$C1283=\"Log value\",DataLog!F1283,\"\")","v":""},{"$f":"IF(DataLog!$C1283=\"Log value\",DataLog!G1283,\"\")","v":""},{"$f":"IF(DataLog!$C1283=\"Log value\",DataLog!H1283,\"\")","v":""},{"$f":"IF(DataLog!$C1283=\"Log value\",DataLog!I1283,\"\")","v":""},{"$f":"IF(DataLog!$C1283=\"Log value\",DataLog!J1283,\"\")","v":""},{"$f":"IF(DataLog!$C1283=\"Log value\",DataLog!K1283,\"\")","v":""},{"$f":"IF(DataLog!$C1283=\"Log value\",DataLog!L1283,\"\")","v":""},{"$f":"IF(DataLog!$C1283=\"Log value\",DataLog!M1283,\"\")","v":""},{"$f":"IF(DataLog!$C1283=\"Log value\",DataLog!N1283,\"\")","v":""},{"$f":"IF(DataLog!$C1283=\"Log value\",DataLog!O1283,\"\")","v":""},{"$f":"IF(DataLog!$C1283=\"Log value\",DataLog!P1283,\"\")","v":""},{"$f":"IF(DataLog!$C1283=\"Log value\",DataLog!Q1283,\"\")","v":""},{"$f":"IF(DataLog!$C1283=\"Log value\",DataLog!R1283,\"\")","v":""},{"$f":"IF(DataLog!$C1283=\"Log value\",DataLog!S1283,\"\")","v":""},{"$f":"IF(DataLog!$C1283=\"Log value\",DataLog!T1283,\"\")","v":""},{"$f":"IF(DataLog!$C1283=\"Log value\",DataLog!U1283,\"\")","v":""},{"$f":"IF(DataLog!$C1283=\"Log value\",DataLog!V1283,\"\")","v":""},{"$f":"IF(DataLog!$C1283=\"Log value\",DataLog!W1283,\"\")","v":""},{"$f":"IF(DataLog!$C1283=\"Log value\",DataLog!X1283,\"\")","v":""},{"$f":"IF(DataLog!$C1283=\"Log value\",DataLog!Y1283,\"\")","v":""},{"$f":"IF(DataLog!$C1283=\"Log value\",DataLog!Z1283,\"\")","v":""},{"$f":"IF(DataLog!$C1283=\"Log value\",DataLog!AA1283,\"\")","v":""},{"$f":"IF(DataLog!$C1283=\"Log value\",DataLog!AB1283,\"\")","v":""},{"$f":"IF(DataLog!$C1283=\"Log value\",DataLog!AC1283,\"\")","v":""},{"$f":"IF(DataLog!$C1283=\"Log value\",DataLog!AD1283,\"\")","v":""},{"$f":"IF(DataLog!$C1283=\"Log value\",DataLog!AE1283,\"\")","v":""},{"$f":"IF(DataLog!$C1283=\"Log value\",DataLog!AF1283,\"\")","v":""},{"$f":"IF(DataLog!$C1283=\"Log value\",DataLog!AG1283,\"\")","v":""},{"$f":"IF(DataLog!$C1283=\"Log value\",DataLog!AH1283,\"\")","v":""},{"$f":"IF(DataLog!$C1283=\"Log value\",DataLog!AI1283,\"\")","v":""},{"$f":"IF(DataLog!$C1283=\"Log value\",DataLog!AJ1283,\"\")","v":""},{"$f":"IF(DataLog!$C1283=\"Log value\",DataLog!AK1283,\"\")","v":""},{"$f":"IF(DataLog!$C1283=\"Log value\",DataLog!AL1283,\"\")","v":""},{"$f":"IF(DataLog!$C1283=\"Log value\",DataLog!AM1283,\"\")","v":""}]
[null,null,null,null,null,null,{"$f":"IF(DataLog!$C1286=\"Log value\",DataLog!D1286&\"_\"&TEXT(DataLog!B1286,\"åååå-mm-dd\"),\"\")","v":""},{"$f":"IF(DataLog!$C1286=\"Log value\",DataLog!E1286,\"\")","v":""},{"$f":"IF(DataLog!$C1286=\"Log value\",DataLog!F1286,\"\")","v":""},{"$f":"IF(DataLog!$C1286=\"Log value\",DataLog!G1286,\"\")","v":""},{"$f":"IF(DataLog!$C1286=\"Log value\",DataLog!H1286,\"\")","v":""},{"$f":"IF(DataLog!$C1286=\"Log value\",DataLog!I1286,\"\")","v":""},{"$f":"IF(DataLog!$C1286=\"Log value\",DataLog!J1286,\"\")","v":""},{"$f":"IF(DataLog!$C1286=\"Log value\",DataLog!K1286,\"\")","v":""},{"$f":"IF(DataLog!$C1286=\"Log value\",DataLog!L1286,\"\")","v":""},{"$f":"IF(DataLog!$C1286=\"Log value\",DataLog!M1286,\"\")","v":""},{"$f":"IF(DataLog!$C1286=\"Log value\",DataLog!N1286,\"\")","v":""},{"$f":"IF(DataLog!$C1286=\"Log value\",DataLog!O1286,\"\")","v":""},{"$f":"IF(DataLog!$C1286=\"Log value\",DataLog!P1286,\"\")","v":""},{"$f":"IF(DataLog!$C1286=\"Log value\",DataLog!Q1286,\"\")","v":""},{"$f":"IF(DataLog!$C1286=\"Log value\",DataLog!R1286,\"\")","v":""},{"$f":"IF(DataLog!$C1286=\"Log value\",DataLog!S1286,\"\")","v":""},{"$f":"IF(DataLog!$C1286=\"Log value\",DataLog!T1286,\"\")","v":""},{"$f":"IF(DataLog!$C1286=\"Log value\",DataLog!U1286,\"\")","v":""},{"$f":"IF(DataLog!$C1286=\"Log value\",DataLog!V1286,\"\")","v":""},{"$f":"IF(DataLog!$C1286=\"Log value\",DataLog!W1286,\"\")","v":""},{"$f":"IF(DataLog!$C1286=\"Log value\",DataLog!X1286,\"\")","v":""},{"$f":"IF(DataLog!$C1286=\"Log value\",DataLog!Y1286,\"\")","v":""},{"$f":"IF(DataLog!$C1286=\"Log value\",DataLog!Z1286,\"\")","v":""},{"$f":"IF(DataLog!$C1286=\"Log value\",DataLog!AA1286,\"\")","v":""},{"$f":"IF(DataLog!$C1286=\"Log value\",DataLog!AB1286,\"\")","v":""},{"$f":"IF(DataLog!$C1286=\"Log value\",DataLog!AC1286,\"\")","v":""},{"$f":"IF(DataLog!$C1286=\"Log value\",DataLog!AD1286,\"\")","v":""},{"$f":"IF(DataLog!$C1286=\"Log value\",DataLog!AE1286,\"\")","v":""},{"$f":"IF(DataLog!$C1286=\"Log value\",DataLog!AF1286,\"\")","v":""},{"$f":"IF(DataLog!$C1286=\"Log value\",DataLog!AG1286,\"\")","v":""},{"$f":"IF(DataLog!$C1286=\"Log value\",DataLog!AH1286,\"\")","v":""},{"$f":"IF(DataLog!$C1286=\"Log value\",DataLog!AI1286,\"\")","v":""},{"$f":"IF(DataLog!$C1286=\"Log value\",DataLog!AJ1286,\"\")","v":""},{"$f":"IF(DataLog!$C1286=\"Log value\",DataLog!AK1286,\"\")","v":""},{"$f":"IF(DataLog!$C1286=\"Log value\",DataLog!AL1286,\"\")","v":""},{"$f":"IF(DataLog!$C1286=\"Log value\",DataLog!AM1286,\"\")","v":""}]
[null,null,null,null,null,null,{"$f":"IF(DataLog!$C1289=\"Log value\",DataLog!D1289&\"_\"&TEXT(DataLog!B1289,\"åååå-mm-dd\"),\"\")","v":""},{"$f":"IF(DataLog!$C1289=\"Log value\",DataLog!E1289,\"\")","v":""},{"$f":"IF(DataLog!$C1289=\"Log value\",DataLog!F1289,\"\")","v":""},{"$f":"IF(DataLog!$C1289=\"Log value\",DataLog!G1289,\"\")","v":""},{"$f":"IF(DataLog!$C1289=\"Log value\",DataLog!H1289,\"\")","v":""},{"$f":"IF(DataLog!$C1289=\"Log value\",DataLog!I1289,\"\")","v":""},{"$f":"IF(DataLog!$C1289=\"Log value\",DataLog!J1289,\"\")","v":""},{"$f":"IF(DataLog!$C1289=\"Log value\",DataLog!K1289,\"\")","v":""},{"$f":"IF(DataLog!$C1289=\"Log value\",DataLog!L1289,\"\")","v":""},{"$f":"IF(DataLog!$C1289=\"Log value\",DataLog!M1289,\"\")","v":""},{"$f":"IF(DataLog!$C1289=\"Log value\",DataLog!N1289,\"\")","v":""},{"$f":"IF(DataLog!$C1289=\"Log value\",DataLog!O1289,\"\")","v":""},{"$f":"IF(DataLog!$C1289=\"Log value\",DataLog!P1289,\"\")","v":""},{"$f":"IF(DataLog!$C1289=\"Log value\",DataLog!Q1289,\"\")","v":""},{"$f":"IF(DataLog!$C1289=\"Log value\",DataLog!R1289,\"\")","v":""},{"$f":"IF(DataLog!$C1289=\"Log value\",DataLog!S1289,\"\")","v":""},{"$f":"IF(DataLog!$C1289=\"Log value\",DataLog!T1289,\"\")","v":""},{"$f":"IF(DataLog!$C1289=\"Log value\",DataLog!U1289,\"\")","v":""},{"$f":"IF(DataLog!$C1289=\"Log value\",DataLog!V1289,\"\")","v":""},{"$f":"IF(DataLog!$C1289=\"Log value\",DataLog!W1289,\"\")","v":""},{"$f":"IF(DataLog!$C1289=\"Log value\",DataLog!X1289,\"\")","v":""},{"$f":"IF(DataLog!$C1289=\"Log value\",DataLog!Y1289,\"\")","v":""},{"$f":"IF(DataLog!$C1289=\"Log value\",DataLog!Z1289,\"\")","v":""},{"$f":"IF(DataLog!$C1289=\"Log value\",DataLog!AA1289,\"\")","v":""},{"$f":"IF(DataLog!$C1289=\"Log value\",DataLog!AB1289,\"\")","v":""},{"$f":"IF(DataLog!$C1289=\"Log value\",DataLog!AC1289,\"\")","v":""},{"$f":"IF(DataLog!$C1289=\"Log value\",DataLog!AD1289,\"\")","v":""},{"$f":"IF(DataLog!$C1289=\"Log value\",DataLog!AE1289,\"\")","v":""},{"$f":"IF(DataLog!$C1289=\"Log value\",DataLog!AF1289,\"\")","v":""},{"$f":"IF(DataLog!$C1289=\"Log value\",DataLog!AG1289,\"\")","v":""},{"$f":"IF(DataLog!$C1289=\"Log value\",DataLog!AH1289,\"\")","v":""},{"$f":"IF(DataLog!$C1289=\"Log value\",DataLog!AI1289,\"\")","v":""},{"$f":"IF(DataLog!$C1289=\"Log value\",DataLog!AJ1289,\"\")","v":""},{"$f":"IF(DataLog!$C1289=\"Log value\",DataLog!AK1289,\"\")","v":""},{"$f":"IF(DataLog!$C1289=\"Log value\",DataLog!AL1289,\"\")","v":""},{"$f":"IF(DataLog!$C1289=\"Log value\",DataLog!AM1289,\"\")","v":""}]
[null,null,null,null,null,null,{"$f":"IF(DataLog!$C1290=\"Log value\",DataLog!D1290&\"_\"&TEXT(DataLog!B1290,\"åååå-mm-dd\"),\"\")","v":""},{"$f":"IF(DataLog!$C1290=\"Log value\",DataLog!E1290,\"\")","v":""},{"$f":"IF(DataLog!$C1290=\"Log value\",DataLog!F1290,\"\")","v":""},{"$f":"IF(DataLog!$C1290=\"Log value\",DataLog!G1290,\"\")","v":""},{"$f":"IF(DataLog!$C1290=\"Log value\",DataLog!H1290,\"\")","v":""},{"$f":"IF(DataLog!$C1290=\"Log value\",DataLog!I1290,\"\")","v":""},{"$f":"IF(DataLog!$C1290=\"Log value\",DataLog!J1290,\"\")","v":""},{"$f":"IF(DataLog!$C1290=\"Log value\",DataLog!K1290,\"\")","v":""},{"$f":"IF(DataLog!$C1290=\"Log value\",DataLog!L1290,\"\")","v":""},{"$f":"IF(DataLog!$C1290=\"Log value\",DataLog!M1290,\"\")","v":""},{"$f":"IF(DataLog!$C1290=\"Log value\",DataLog!N1290,\"\")","v":""},{"$f":"IF(DataLog!$C1290=\"Log value\",DataLog!O1290,\"\")","v":""},{"$f":"IF(DataLog!$C1290=\"Log value\",DataLog!P1290,\"\")","v":""},{"$f":"IF(DataLog!$C1290=\"Log value\",DataLog!Q1290,\"\")","v":""},{"$f":"IF(DataLog!$C1290=\"Log value\",DataLog!R1290,\"\")","v":""},{"$f":"IF(DataLog!$C1290=\"Log value\",DataLog!S1290,\"\")","v":""},{"$f":"IF(DataLog!$C1290=\"Log value\",DataLog!T1290,\"\")","v":""},{"$f":"IF(DataLog!$C1290=\"Log value\",DataLog!U1290,\"\")","v":""},{"$f":"IF(DataLog!$C1290=\"Log value\",DataLog!V1290,\"\")","v":""},{"$f":"IF(DataLog!$C1290=\"Log value\",DataLog!W1290,\"\")","v":""},{"$f":"IF(DataLog!$C1290=\"Log value\",DataLog!X1290,\"\")","v":""},{"$f":"IF(DataLog!$C1290=\"Log value\",DataLog!Y1290,\"\")","v":""},{"$f":"IF(DataLog!$C1290=\"Log value\",DataLog!Z1290,\"\")","v":""},{"$f":"IF(DataLog!$C1290=\"Log value\",DataLog!AA1290,\"\")","v":""},{"$f":"IF(DataLog!$C1290=\"Log value\",DataLog!AB1290,\"\")","v":""},{"$f":"IF(DataLog!$C1290=\"Log value\",DataLog!AC1290,\"\")","v":""},{"$f":"IF(DataLog!$C1290=\"Log value\",DataLog!AD1290,\"\")","v":""},{"$f":"IF(DataLog!$C1290=\"Log value\",DataLog!AE1290,\"\")","v":""},{"$f":"IF(DataLog!$C1290=\"Log value\",DataLog!AF1290,\"\")","v":""},{"$f":"IF(DataLog!$C1290=\"Log value\",DataLog!AG1290,\"\")","v":""},{"$f":"IF(DataLog!$C1290=\"Log value\",DataLog!AH1290,\"\")","v":""},{"$f":"IF(DataLog!$C1290=\"Log value\",DataLog!AI1290,\"\")","v":""},{"$f":"IF(DataLog!$C1290=\"Log value\",DataLog!AJ1290,\"\")","v":""},{"$f":"IF(DataLog!$C1290=\"Log value\",DataLog!AK1290,\"\")","v":""},{"$f":"IF(DataLog!$C1290=\"Log value\",DataLog!AL1290,\"\")","v":""},{"$f":"IF(DataLog!$C1290=\"Log value\",DataLog!AM1290,\"\")","v":""}]
[null,null,null,null,null,null,{"$f":"IF(DataLog!$C1294=\"Log value\",DataLog!D1294&\"_\"&TEXT(DataLog!B1294,\"åååå-mm-dd\"),\"\")","v":""},{"$f":"IF(DataLog!$C1294=\"Log value\",DataLog!E1294,\"\")","v":""},{"$f":"IF(DataLog!$C1294=\"Log value\",DataLog!F1294,\"\")","v":""},{"$f":"IF(DataLog!$C1294=\"Log value\",DataLog!G1294,\"\")","v":""},{"$f":"IF(DataLog!$C1294=\"Log value\",DataLog!H1294,\"\")","v":""},{"$f":"IF(DataLog!$C1294=\"Log value\",DataLog!I1294,\"\")","v":""},{"$f":"IF(DataLog!$C1294=\"Log value\",DataLog!J1294,\"\")","v":""},{"$f":"IF(DataLog!$C1294=\"Log value\",DataLog!K1294,\"\")","v":""},{"$f":"IF(DataLog!$C1294=\"Log value\",DataLog!L1294,\"\")","v":""},{"$f":"IF(DataLog!$C1294=\"Log value\",DataLog!M1294,\"\")","v":""},{"$f":"IF(DataLog!$C1294=\"Log value\",DataLog!N1294,\"\")","v":""},{"$f":"IF(DataLog!$C1294=\"Log value\",DataLog!O1294,\"\")","v":""},{"$f":"IF(DataLog!$C1294=\"Log value\",DataLog!P1294,\"\")","v":""},{"$f":"IF(DataLog!$C1294=\"Log value\",DataLog!Q1294,\"\")","v":""},{"$f":"IF(DataLog!$C1294=\"Log value\",DataLog!R1294,\"\")","v":""},{"$f":"IF(DataLog!$C1294=\"Log value\",DataLog!S1294,\"\")","v":""},{"$f":"IF(DataLog!$C1294=\"Log value\",DataLog!T1294,\"\")","v":""},{"$f":"IF(DataLog!$C1294=\"Log value\",DataLog!U1294,\"\")","v":""},{"$f":"IF(DataLog!$C1294=\"Log value\",DataLog!V1294,\"\")","v":""},{"$f":"IF(DataLog!$C1294=\"Log value\",DataLog!W1294,\"\")","v":""},{"$f":"IF(DataLog!$C1294=\"Log value\",DataLog!X1294,\"\")","v":""},{"$f":"IF(DataLog!$C1294=\"Log value\",DataLog!Y1294,\"\")","v":""},{"$f":"IF(DataLog!$C1294=\"Log value\",DataLog!Z1294,\"\")","v":""},{"$f":"IF(DataLog!$C1294=\"Log value\",DataLog!AA1294,\"\")","v":""},{"$f":"IF(DataLog!$C1294=\"Log value\",DataLog!AB1294,\"\")","v":""},{"$f":"IF(DataLog!$C1294=\"Log value\",DataLog!AC1294,\"\")","v":""},{"$f":"IF(DataLog!$C1294=\"Log value\",DataLog!AD1294,\"\")","v":""},{"$f":"IF(DataLog!$C1294=\"Log value\",DataLog!AE1294,\"\")","v":""},{"$f":"IF(DataLog!$C1294=\"Log value\",DataLog!AF1294,\"\")","v":""},{"$f":"IF(DataLog!$C1294=\"Log value\",DataLog!AG1294,\"\")","v":""},{"$f":"IF(DataLog!$C1294=\"Log value\",DataLog!AH1294,\"\")","v":""},{"$f":"IF(DataLog!$C1294=\"Log value\",DataLog!AI1294,\"\")","v":""},{"$f":"IF(DataLog!$C1294=\"Log value\",DataLog!AJ1294,\"\")","v":""},{"$f":"IF(DataLog!$C1294=\"Log value\",DataLog!AK1294,\"\")","v":""},{"$f":"IF(DataLog!$C1294=\"Log value\",DataLog!AL1294,\"\")","v":""},{"$f":"IF(DataLog!$C1294=\"Log value\",DataLog!AM1294,\"\")","v":""}]
[null,null,null,null,null,null,{"$f":"IF(DataLog!$C1295=\"Log value\",DataLog!D1295&\"_\"&TEXT(DataLog!B1295,\"åååå-mm-dd\"),\"\")","v":""},{"$f":"IF(DataLog!$C1295=\"Log value\",DataLog!E1295,\"\")","v":""},{"$f":"IF(DataLog!$C1295=\"Log value\",DataLog!F1295,\"\")","v":""},{"$f":"IF(DataLog!$C1295=\"Log value\",DataLog!G1295,\"\")","v":""},{"$f":"IF(DataLog!$C1295=\"Log value\",DataLog!H1295,\"\")","v":""},{"$f":"IF(DataLog!$C1295=\"Log value\",DataLog!I1295,\"\")","v":""},{"$f":"IF(DataLog!$C1295=\"Log value\",DataLog!J1295,\"\")","v":""},{"$f":"IF(DataLog!$C1295=\"Log value\",DataLog!K1295,\"\")","v":""},{"$f":"IF(DataLog!$C1295=\"Log value\",DataLog!L1295,\"\")","v":""},{"$f":"IF(DataLog!$C1295=\"Log value\",DataLog!M1295,\"\")","v":""},{"$f":"IF(DataLog!$C1295=\"Log value\",DataLog!N1295,\"\")","v":""},{"$f":"IF(DataLog!$C1295=\"Log value\",DataLog!O1295,\"\")","v":""},{"$f":"IF(DataLog!$C1295=\"Log value\",DataLog!P1295,\"\")","v":""},{"$f":"IF(DataLog!$C1295=\"Log value\",DataLog!Q1295,\"\")","v":""},{"$f":"IF(DataLog!$C1295=\"Log value\",DataLog!R1295,\"\")","v":""},{"$f":"IF(DataLog!$C1295=\"Log value\",DataLog!S1295,\"\")","v":""},{"$f":"IF(DataLog!$C1295=\"Log value\",DataLog!T1295,\"\")","v":""},{"$f":"IF(DataLog!$C1295=\"Log value\",DataLog!U1295,\"\")","v":""},{"$f":"IF(DataLog!$C1295=\"Log value\",DataLog!V1295,\"\")","v":""},{"$f":"IF(DataLog!$C1295=\"Log value\",DataLog!W1295,\"\")","v":""},{"$f":"IF(DataLog!$C1295=\"Log value\",DataLog!X1295,\"\")","v":""},{"$f":"IF(DataLog!$C1295=\"Log value\",DataLog!Y1295,\"\")","v":""},{"$f":"IF(DataLog!$C1295=\"Log value\",DataLog!Z1295,\"\")","v":""},{"$f":"IF(DataLog!$C1295=\"Log value\",DataLog!AA1295,\"\")","v":""},{"$f":"IF(DataLog!$C1295=\"Log value\",DataLog!AB1295,\"\")","v":""},{"$f":"IF(DataLog!$C1295=\"Log value\",DataLog!AC1295,\"\")","v":""},{"$f":"IF(DataLog!$C1295=\"Log value\",DataLog!AD1295,\"\")","v":""},{"$f":"IF(DataLog!$C1295=\"Log value\",DataLog!AE1295,\"\")","v":""},{"$f":"IF(DataLog!$C1295=\"Log value\",DataLog!AF1295,\"\")","v":""},{"$f":"IF(DataLog!$C1295=\"Log value\",DataLog!AG1295,\"\")","v":""},{"$f":"IF(DataLog!$C1295=\"Log value\",DataLog!AH1295,\"\")","v":""},{"$f":"IF(DataLog!$C1295=\"Log value\",DataLog!AI1295,\"\")","v":""},{"$f":"IF(DataLog!$C1295=\"Log value\",DataLog!AJ1295,\"\")","v":""},{"$f":"IF(DataLog!$C1295=\"Log value\",DataLog!AK1295,\"\")","v":""},{"$f":"IF(DataLog!$C1295=\"Log value\",DataLog!AL1295,\"\")","v":""},{"$f":"IF(DataLog!$C1295=\"Log value\",DataLog!AM1295,\"\")","v":""}]
[null,null,null,null,null,null,{"$f":"IF(DataLog!$C1298=\"Log value\",DataLog!D1298&\"_\"&TEXT(DataLog!B1298,\"åååå-mm-dd\"),\"\")","v":""},{"$f":"IF(DataLog!$C1298=\"Log value\",DataLog!E1298,\"\")","v":""},{"$f":"IF(DataLog!$C1298=\"Log value\",DataLog!F1298,\"\")","v":""},{"$f":"IF(DataLog!$C1298=\"Log value\",DataLog!G1298,\"\")","v":""},{"$f":"IF(DataLog!$C1298=\"Log value\",DataLog!H1298,\"\")","v":""},{"$f":"IF(DataLog!$C1298=\"Log value\",DataLog!I1298,\"\")","v":""},{"$f":"IF(DataLog!$C1298=\"Log value\",DataLog!J1298,\"\")","v":""},{"$f":"IF(DataLog!$C1298=\"Log value\",DataLog!K1298,\"\")","v":""},{"$f":"IF(DataLog!$C1298=\"Log value\",DataLog!L1298,\"\")","v":""},{"$f":"IF(DataLog!$C1298=\"Log value\",DataLog!M1298,\"\")","v":""},{"$f":"IF(DataLog!$C1298=\"Log value\",DataLog!N1298,\"\")","v":""},{"$f":"IF(DataLog!$C1298=\"Log value\",DataLog!O1298,\"\")","v":""},{"$f":"IF(DataLog!$C1298=\"Log value\",DataLog!P1298,\"\")","v":""},{"$f":"IF(DataLog!$C1298=\"Log value\",DataLog!Q1298,\"\")","v":""},{"$f":"IF(DataLog!$C1298=\"Log value\",DataLog!R1298,\"\")","v":""},{"$f":"IF(DataLog!$C1298=\"Log value\",DataLog!S1298,\"\")","v":""},{"$f":"IF(DataLog!$C1298=\"Log value\",DataLog!T1298,\"\")","v":""},{"$f":"IF(DataLog!$C1298=\"Log value\",DataLog!U1298,\"\")","v":""},{"$f":"IF(DataLog!$C1298=\"Log value\",DataLog!V1298,\"\")","v":""},{"$f":"IF(DataLog!$C1298=\"Log value\",DataLog!W1298,\"\")","v":""},{"$f":"IF(DataLog!$C1298=\"Log value\",DataLog!X1298,\"\")","v":""},{"$f":"IF(DataLog!$C1298=\"Log value\",DataLog!Y1298,\"\")","v":""},{"$f":"IF(DataLog!$C1298=\"Log value\",DataLog!Z1298,\"\")","v":""},{"$f":"IF(DataLog!$C1298=\"Log value\",DataLog!AA1298,\"\")","v":""},{"$f":"IF(DataLog!$C1298=\"Log value\",DataLog!AB1298,\"\")","v":""},{"$f":"IF(DataLog!$C1298=\"Log value\",DataLog!AC1298,\"\")","v":""},{"$f":"IF(DataLog!$C1298=\"Log value\",DataLog!AD1298,\"\")","v":""},{"$f":"IF(DataLog!$C1298=\"Log value\",DataLog!AE1298,\"\")","v":""},{"$f":"IF(DataLog!$C1298=\"Log value\",DataLog!AF1298,\"\")","v":""},{"$f":"IF(DataLog!$C1298=\"Log value\",DataLog!AG1298,\"\")","v":""},{"$f":"IF(DataLog!$C1298=\"Log value\",DataLog!AH1298,\"\")","v":""},{"$f":"IF(DataLog!$C1298=\"Log value\",DataLog!AI1298,\"\")","v":""},{"$f":"IF(DataLog!$C1298=\"Log value\",DataLog!AJ1298,\"\")","v":""},{"$f":"IF(DataLog!$C1298=\"Log value\",DataLog!AK1298,\"\")","v":""},{"$f":"IF(DataLog!$C1298=\"Log value\",DataLog!AL1298,\"\")","v":""},{"$f":"IF(DataLog!$C1298=\"Log value\",DataLog!AM1298,\"\")","v":""}]
[null,null,null,null,null,null,{"$f":"IF(DataLog!$C1299=\"Log value\",DataLog!D1299&\"_\"&TEXT(DataLog!B1299,\"åååå-mm-dd\"),\"\")","v":""},{"$f":"IF(DataLog!$C1299=\"Log value\",DataLog!E1299,\"\")","v":""},{"$f":"IF(DataLog!$C1299=\"Log value\",DataLog!F1299,\"\")","v":""},{"$f":"IF(DataLog!$C1299=\"Log value\",DataLog!G1299,\"\")","v":""},{"$f":"IF(DataLog!$C1299=\"Log value\",DataLog!H1299,\"\")","v":""},{"$f":"IF(DataLog!$C1299=\"Log value\",DataLog!I1299,\"\")","v":""},{"$f":"IF(DataLog!$C1299=\"Log value\",DataLog!J1299,\"\")","v":""},{"$f":"IF(DataLog!$C1299=\"Log value\",DataLog!K1299,\"\")","v":""},{"$f":"IF(DataLog!$C1299=\"Log value\",DataLog!L1299,\"\")","v":""},{"$f":"IF(DataLog!$C1299=\"Log value\",DataLog!M1299,\"\")","v":""},{"$f":"IF(DataLog!$C1299=\"Log value\",DataLog!N1299,\"\")","v":""},{"$f":"IF(DataLog!$C1299=\"Log value\",DataLog!O1299,\"\")","v":""},{"$f":"IF(DataLog!$C1299=\"Log value\",DataLog!P1299,\"\")","v":""},{"$f":"IF(DataLog!$C1299=\"Log value\",DataLog!Q1299,\"\")","v":""},{"$f":"IF(DataLog!$C1299=\"Log value\",DataLog!R1299,\"\")","v":""},{"$f":"IF(DataLog!$C1299=\"Log value\",DataLog!S1299,\"\")","v":""},{"$f":"IF(DataLog!$C1299=\"Log value\",DataLog!T1299,\"\")","v":""},{"$f":"IF(DataLog!$C1299=\"Log value\",DataLog!U1299,\"\")","v":""},{"$f":"IF(DataLog!$C1299=\"Log value\",DataLog!V1299,\"\")","v":""},{"$f":"IF(DataLog!$C1299=\"Log value\",DataLog!W1299,\"\")","v":""},{"$f":"IF(DataLog!$C1299=\"Log value\",DataLog!X1299,\"\")","v":""},{"$f":"IF(DataLog!$C1299=\"Log value\",DataLog!Y1299,\"\")","v":""},{"$f":"IF(DataLog!$C1299=\"Log value\",DataLog!Z1299,\"\")","v":""},{"$f":"IF(DataLog!$C1299=\"Log value\",DataLog!AA1299,\"\")","v":""},{"$f":"IF(DataLog!$C1299=\"Log value\",DataLog!AB1299,\"\")","v":""},{"$f":"IF(DataLog!$C1299=\"Log value\",DataLog!AC1299,\"\")","v":""},{"$f":"IF(DataLog!$C1299=\"Log value\",DataLog!AD1299,\"\")","v":""},{"$f":"IF(DataLog!$C1299=\"Log value\",DataLog!AE1299,\"\")","v":""},{"$f":"IF(DataLog!$C1299=\"Log value\",DataLog!AF1299,\"\")","v":""},{"$f":"IF(DataLog!$C1299=\"Log value\",DataLog!AG1299,\"\")","v":""},{"$f":"IF(DataLog!$C1299=\"Log value\",DataLog!AH1299,\"\")","v":""},{"$f":"IF(DataLog!$C1299=\"Log value\",DataLog!AI1299,\"\")","v":""},{"$f":"IF(DataLog!$C1299=\"Log value\",DataLog!AJ1299,\"\")","v":""},{"$f":"IF(DataLog!$C1299=\"Log value\",DataLog!AK1299,\"\")","v":""},{"$f":"IF(DataLog!$C1299=\"Log value\",DataLog!AL1299,\"\")","v":""},{"$f":"IF(DataLog!$C1299=\"Log value\",DataLog!AM1299,\"\")","v":""}]
[null,null,null,null,null,null,{"$f":"IF(DataLog!$C1301=\"Log value\",DataLog!D1301&\"_\"&TEXT(DataLog!B1301,\"åååå-mm-dd\"),\"\")","v":""},{"$f":"IF(DataLog!$C1301=\"Log value\",DataLog!E1301,\"\")","v":""},{"$f":"IF(DataLog!$C1301=\"Log value\",DataLog!F1301,\"\")","v":""},{"$f":"IF(DataLog!$C1301=\"Log value\",DataLog!G1301,\"\")","v":""},{"$f":"IF(DataLog!$C1301=\"Log value\",DataLog!H1301,\"\")","v":""},{"$f":"IF(DataLog!$C1301=\"Log value\",DataLog!I1301,\"\")","v":""},{"$f":"IF(DataLog!$C1301=\"Log value\",DataLog!J1301,\"\")","v":""},{"$f":"IF(DataLog!$C1301=\"Log value\",DataLog!K1301,\"\")","v":""},{"$f":"IF(DataLog!$C1301=\"Log value\",DataLog!L1301,\"\")","v":""},{"$f":"IF(DataLog!$C1301=\"Log value\",DataLog!M1301,\"\")","v":""},{"$f":"IF(DataLog!$C1301=\"Log value\",DataLog!N1301,\"\")","v":""},{"$f":"IF(DataLog!$C1301=\"Log value\",DataLog!O1301,\"\")","v":""},{"$f":"IF(DataLog!$C1301=\"Log value\",DataLog!P1301,\"\")","v":""},{"$f":"IF(DataLog!$C1301=\"Log value\",DataLog!Q1301,\"\")","v":""},{"$f":"IF(DataLog!$C1301=\"Log value\",DataLog!R1301,\"\")","v":""},{"$f":"IF(DataLog!$C1301=\"Log value\",DataLog!S1301,\"\")","v":""},{"$f":"IF(DataLog!$C1301=\"Log value\",DataLog!T1301,\"\")","v":""},{"$f":"IF(DataLog!$C1301=\"Log value\",DataLog!U1301,\"\")","v":""},{"$f":"IF(DataLog!$C1301=\"Log value\",DataLog!V1301,\"\")","v":""},{"$f":"IF(DataLog!$C1301=\"Log value\",DataLog!W1301,\"\")","v":""},{"$f":"IF(DataLog!$C1301=\"Log value\",DataLog!X1301,\"\")","v":""},{"$f":"IF(DataLog!$C1301=\"Log value\",DataLog!Y1301,\"\")","v":""},{"$f":"IF(DataLog!$C1301=\"Log value\",DataLog!Z1301,\"\")","v":""},{"$f":"IF(DataLog!$C1301=\"Log value\",DataLog!AA1301,\"\")","v":""},{"$f":"IF(DataLog!$C1301=\"Log value\",DataLog!AB1301,\"\")","v":""},{"$f":"IF(DataLog!$C1301=\"Log value\",DataLog!AC1301,\"\")","v":""},{"$f":"IF(DataLog!$C1301=\"Log value\",DataLog!AD1301,\"\")","v":""},{"$f":"IF(DataLog!$C1301=\"Log value\",DataLog!AE1301,\"\")","v":""},{"$f":"IF(DataLog!$C1301=\"Log value\",DataLog!AF1301,\"\")","v":""},{"$f":"IF(DataLog!$C1301=\"Log value\",DataLog!AG1301,\"\")","v":""},{"$f":"IF(DataLog!$C1301=\"Log value\",DataLog!AH1301,\"\")","v":""},{"$f":"IF(DataLog!$C1301=\"Log value\",DataLog!AI1301,\"\")","v":""},{"$f":"IF(DataLog!$C1301=\"Log value\",DataLog!AJ1301,\"\")","v":""},{"$f":"IF(DataLog!$C1301=\"Log value\",DataLog!AK1301,\"\")","v":""},{"$f":"IF(DataLog!$C1301=\"Log value\",DataLog!AL1301,\"\")","v":""},{"$f":"IF(DataLog!$C1301=\"Log value\",DataLog!AM1301,\"\")","v":""}]
[null,null,null,null,null,null,{"$f":"IF(DataLog!$C1304=\"Log value\",DataLog!D1304&\"_\"&TEXT(DataLog!B1304,\"åååå-mm-dd\"),\"\")","v":""},{"$f":"IF(DataLog!$C1304=\"Log value\",DataLog!E1304,\"\")","v":""},{"$f":"IF(DataLog!$C1304=\"Log value\",DataLog!F1304,\"\")","v":""},{"$f":"IF(DataLog!$C1304=\"Log value\",DataLog!G1304,\"\")","v":""},{"$f":"IF(DataLog!$C1304=\"Log value\",DataLog!H1304,\"\")","v":""},{"$f":"IF(DataLog!$C1304=\"Log value\",DataLog!I1304,\"\")","v":""},{"$f":"IF(DataLog!$C1304=\"Log value\",DataLog!J1304,\"\")","v":""},{"$f":"IF(DataLog!$C1304=\"Log value\",DataLog!K1304,\"\")","v":""},{"$f":"IF(DataLog!$C1304=\"Log value\",DataLog!L1304,\"\")","v":""},{"$f":"IF(DataLog!$C1304=\"Log value\",DataLog!M1304,\"\")","v":""},{"$f":"IF(DataLog!$C1304=\"Log value\",DataLog!N1304,\"\")","v":""},{"$f":"IF(DataLog!$C1304=\"Log value\",DataLog!O1304,\"\")","v":""},{"$f":"IF(DataLog!$C1304=\"Log value\",DataLog!P1304,\"\")","v":""},{"$f":"IF(DataLog!$C1304=\"Log value\",DataLog!Q1304,\"\")","v":""},{"$f":"IF(DataLog!$C1304=\"Log value\",DataLog!R1304,\"\")","v":""},{"$f":"IF(DataLog!$C1304=\"Log value\",DataLog!S1304,\"\")","v":""},{"$f":"IF(DataLog!$C1304=\"Log value\",DataLog!T1304,\"\")","v":""},{"$f":"IF(DataLog!$C1304=\"Log value\",DataLog!U1304,\"\")","v":""},{"$f":"IF(DataLog!$C1304=\"Log value\",DataLog!V1304,\"\")","v":""},{"$f":"IF(DataLog!$C1304=\"Log value\",DataLog!W1304,\"\")","v":""},{"$f":"IF(DataLog!$C1304=\"Log value\",DataLog!X1304,\"\")","v":""},{"$f":"IF(DataLog!$C1304=\"Log value\",DataLog!Y1304,\"\")","v":""},{"$f":"IF(DataLog!$C1304=\"Log value\",DataLog!Z1304,\"\")","v":""},{"$f":"IF(DataLog!$C1304=\"Log value\",DataLog!AA1304,\"\")","v":""},{"$f":"IF(DataLog!$C1304=\"Log value\",DataLog!AB1304,\"\")","v":""},{"$f":"IF(DataLog!$C1304=\"Log value\",DataLog!AC1304,\"\")","v":""},{"$f":"IF(DataLog!$C1304=\"Log value\",DataLog!AD1304,\"\")","v":""},{"$f":"IF(DataLog!$C1304=\"Log value\",DataLog!AE1304,\"\")","v":""},{"$f":"IF(DataLog!$C1304=\"Log value\",DataLog!AF1304,\"\")","v":""},{"$f":"IF(DataLog!$C1304=\"Log value\",DataLog!AG1304,\"\")","v":""},{"$f":"IF(DataLog!$C1304=\"Log value\",DataLog!AH1304,\"\")","v":""},{"$f":"IF(DataLog!$C1304=\"Log value\",DataLog!AI1304,\"\")","v":""},{"$f":"IF(DataLog!$C1304=\"Log value\",DataLog!AJ1304,\"\")","v":""},{"$f":"IF(DataLog!$C1304=\"Log value\",DataLog!AK1304,\"\")","v":""},{"$f":"IF(DataLog!$C1304=\"Log value\",DataLog!AL1304,\"\")","v":""},{"$f":"IF(DataLog!$C1304=\"Log value\",DataLog!AM1304,\"\")","v":""}]
[null,null,null,null,null,null,{"$f":"IF(DataLog!$C1307=\"Log value\",DataLog!D1307&\"_\"&TEXT(DataLog!B1307,\"åååå-mm-dd\"),\"\")","v":""},{"$f":"IF(DataLog!$C1307=\"Log value\",DataLog!E1307,\"\")","v":""},{"$f":"IF(DataLog!$C1307=\"Log value\",DataLog!F1307,\"\")","v":""},{"$f":"IF(DataLog!$C1307=\"Log value\",DataLog!G1307,\"\")","v":""},{"$f":"IF(DataLog!$C1307=\"Log value\",DataLog!H1307,\"\")","v":""},{"$f":"IF(DataLog!$C1307=\"Log value\",DataLog!I1307,\"\")","v":""},{"$f":"IF(DataLog!$C1307=\"Log value\",DataLog!J1307,\"\")","v":""},{"$f":"IF(DataLog!$C1307=\"Log value\",DataLog!K1307,\"\")","v":""},{"$f":"IF(DataLog!$C1307=\"Log value\",DataLog!L1307,\"\")","v":""},{"$f":"IF(DataLog!$C1307=\"Log value\",DataLog!M1307,\"\")","v":""},{"$f":"IF(DataLog!$C1307=\"Log value\",DataLog!N1307,\"\")","v":""},{"$f":"IF(DataLog!$C1307=\"Log value\",DataLog!O1307,\"\")","v":""},{"$f":"IF(DataLog!$C1307=\"Log value\",DataLog!P1307,\"\")","v":""},{"$f":"IF(DataLog!$C1307=\"Log value\",DataLog!Q1307,\"\")","v":""},{"$f":"IF(DataLog!$C1307=\"Log value\",DataLog!R1307,\"\")","v":""},{"$f":"IF(DataLog!$C1307=\"Log value\",DataLog!S1307,\"\")","v":""},{"$f":"IF(DataLog!$C1307=\"Log value\",DataLog!T1307,\"\")","v":""},{"$f":"IF(DataLog!$C1307=\"Log value\",DataLog!U1307,\"\")","v":""},{"$f":"IF(DataLog!$C1307=\"Log value\",DataLog!V1307,\"\")","v":""},{"$f":"IF(DataLog!$C1307=\"Log value\",DataLog!W1307,\"\")","v":""},{"$f":"IF(DataLog!$C1307=\"Log value\",DataLog!X1307,\"\")","v":""},{"$f":"IF(DataLog!$C1307=\"Log value\",DataLog!Y1307,\"\")","v":""},{"$f":"IF(DataLog!$C1307=\"Log value\",DataLog!Z1307,\"\")","v":""},{"$f":"IF(DataLog!$C1307=\"Log value\",DataLog!AA1307,\"\")","v":""},{"$f":"IF(DataLog!$C1307=\"Log value\",DataLog!AB1307,\"\")","v":""},{"$f":"IF(DataLog!$C1307=\"Log value\",DataLog!AC1307,\"\")","v":""},{"$f":"IF(DataLog!$C1307=\"Log value\",DataLog!AD1307,\"\")","v":""},{"$f":"IF(DataLog!$C1307=\"Log value\",DataLog!AE1307,\"\")","v":""},{"$f":"IF(DataLog!$C1307=\"Log value\",DataLog!AF1307,\"\")","v":""},{"$f":"IF(DataLog!$C1307=\"Log value\",DataLog!AG1307,\"\")","v":""},{"$f":"IF(DataLog!$C1307=\"Log value\",DataLog!AH1307,\"\")","v":""},{"$f":"IF(DataLog!$C1307=\"Log value\",DataLog!AI1307,\"\")","v":""},{"$f":"IF(DataLog!$C1307=\"Log value\",DataLog!AJ1307,\"\")","v":""},{"$f":"IF(DataLog!$C1307=\"Log value\",DataLog!AK1307,\"\")","v":""},{"$f":"IF(DataLog!$C1307=\"Log value\",DataLog!AL1307,\"\")","v":""},{"$f":"IF(DataLog!$C1307=\"Log value\",DataLog!AM1307,\"\")","v":""}]
[null,null,null,null,null,null,{"$f":"IF(DataLog!$C1308=\"Log value\",DataLog!D1308&\"_\"&TEXT(DataLog!B1308,\"åååå-mm-dd\"),\"\")","v":""},{"$f":"IF(DataLog!$C1308=\"Log value\",DataLog!E1308,\"\")","v":""},{"$f":"IF(DataLog!$C1308=\"Log value\",DataLog!F1308,\"\")","v":""},{"$f":"IF(DataLog!$C1308=\"Log value\",DataLog!G1308,\"\")","v":""},{"$f":"IF(DataLog!$C1308=\"Log value\",DataLog!H1308,\"\")","v":""},{"$f":"IF(DataLog!$C1308=\"Log value\",DataLog!I1308,\"\")","v":""},{"$f":"IF(DataLog!$C1308=\"Log value\",DataLog!J1308,\"\")","v":""},{"$f":"IF(DataLog!$C1308=\"Log value\",DataLog!K1308,\"\")","v":""},{"$f":"IF(DataLog!$C1308=\"Log value\",DataLog!L1308,\"\")","v":""},{"$f":"IF(DataLog!$C1308=\"Log value\",DataLog!M1308,\"\")","v":""},{"$f":"IF(DataLog!$C1308=\"Log value\",DataLog!N1308,\"\")","v":""},{"$f":"IF(DataLog!$C1308=\"Log value\",DataLog!O1308,\"\")","v":""},{"$f":"IF(DataLog!$C1308=\"Log value\",DataLog!P1308,\"\")","v":""},{"$f":"IF(DataLog!$C1308=\"Log value\",DataLog!Q1308,\"\")","v":""},{"$f":"IF(DataLog!$C1308=\"Log value\",DataLog!R1308,\"\")","v":""},{"$f":"IF(DataLog!$C1308=\"Log value\",DataLog!S1308,\"\")","v":""},{"$f":"IF(DataLog!$C1308=\"Log value\",DataLog!T1308,\"\")","v":""},{"$f":"IF(DataLog!$C1308=\"Log value\",DataLog!U1308,\"\")","v":""},{"$f":"IF(DataLog!$C1308=\"Log value\",DataLog!V1308,\"\")","v":""},{"$f":"IF(DataLog!$C1308=\"Log value\",DataLog!W1308,\"\")","v":""},{"$f":"IF(DataLog!$C1308=\"Log value\",DataLog!X1308,\"\")","v":""},{"$f":"IF(DataLog!$C1308=\"Log value\",DataLog!Y1308,\"\")","v":""},{"$f":"IF(DataLog!$C1308=\"Log value\",DataLog!Z1308,\"\")","v":""},{"$f":"IF(DataLog!$C1308=\"Log value\",DataLog!AA1308,\"\")","v":""},{"$f":"IF(DataLog!$C1308=\"Log value\",DataLog!AB1308,\"\")","v":""},{"$f":"IF(DataLog!$C1308=\"Log value\",DataLog!AC1308,\"\")","v":""},{"$f":"IF(DataLog!$C1308=\"Log value\",DataLog!AD1308,\"\")","v":""},{"$f":"IF(DataLog!$C1308=\"Log value\",DataLog!AE1308,\"\")","v":""},{"$f":"IF(DataLog!$C1308=\"Log value\",DataLog!AF1308,\"\")","v":""},{"$f":"IF(DataLog!$C1308=\"Log value\",DataLog!AG1308,\"\")","v":""},{"$f":"IF(DataLog!$C1308=\"Log value\",DataLog!AH1308,\"\")","v":""},{"$f":"IF(DataLog!$C1308=\"Log value\",DataLog!AI1308,\"\")","v":""},{"$f":"IF(DataLog!$C1308=\"Log value\",DataLog!AJ1308,\"\")","v":""},{"$f":"IF(DataLog!$C1308=\"Log value\",DataLog!AK1308,\"\")","v":""},{"$f":"IF(DataLog!$C1308=\"Log value\",DataLog!AL1308,\"\")","v":""},{"$f":"IF(DataLog!$C1308=\"Log value\",DataLog!AM1308,\"\")","v":""}]
[null,null,null,null,null,null,{"$f":"IF(DataLog!$C1312=\"Log value\",DataLog!D1312&\"_\"&TEXT(DataLog!B1312,\"åååå-mm-dd\"),\"\")","v":""},{"$f":"IF(DataLog!$C1312=\"Log value\",DataLog!E1312,\"\")","v":""},{"$f":"IF(DataLog!$C1312=\"Log value\",DataLog!F1312,\"\")","v":""},{"$f":"IF(DataLog!$C1312=\"Log value\",DataLog!G1312,\"\")","v":""},{"$f":"IF(DataLog!$C1312=\"Log value\",DataLog!H1312,\"\")","v":""},{"$f":"IF(DataLog!$C1312=\"Log value\",DataLog!I1312,\"\")","v":""},{"$f":"IF(DataLog!$C1312=\"Log value\",DataLog!J1312,\"\")","v":""},{"$f":"IF(DataLog!$C1312=\"Log value\",DataLog!K1312,\"\")","v":""},{"$f":"IF(DataLog!$C1312=\"Log value\",DataLog!L1312,\"\")","v":""},{"$f":"IF(DataLog!$C1312=\"Log value\",DataLog!M1312,\"\")","v":""},{"$f":"IF(DataLog!$C1312=\"Log value\",DataLog!N1312,\"\")","v":""},{"$f":"IF(DataLog!$C1312=\"Log value\",DataLog!O1312,\"\")","v":""},{"$f":"IF(DataLog!$C1312=\"Log value\",DataLog!P1312,\"\")","v":""},{"$f":"IF(DataLog!$C1312=\"Log value\",DataLog!Q1312,\"\")","v":""},{"$f":"IF(DataLog!$C1312=\"Log value\",DataLog!R1312,\"\")","v":""},{"$f":"IF(DataLog!$C1312=\"Log value\",DataLog!S1312,\"\")","v":""},{"$f":"IF(DataLog!$C1312=\"Log value\",DataLog!T1312,\"\")","v":""},{"$f":"IF(DataLog!$C1312=\"Log value\",DataLog!U1312,\"\")","v":""},{"$f":"IF(DataLog!$C1312=\"Log value\",DataLog!V1312,\"\")","v":""},{"$f":"IF(DataLog!$C1312=\"Log value\",DataLog!W1312,\"\")","v":""},{"$f":"IF(DataLog!$C1312=\"Log value\",DataLog!X1312,\"\")","v":""},{"$f":"IF(DataLog!$C1312=\"Log value\",DataLog!Y1312,\"\")","v":""},{"$f":"IF(DataLog!$C1312=\"Log value\",DataLog!Z1312,\"\")","v":""},{"$f":"IF(DataLog!$C1312=\"Log value\",DataLog!AA1312,\"\")","v":""},{"$f":"IF(DataLog!$C1312=\"Log value\",DataLog!AB1312,\"\")","v":""},{"$f":"IF(DataLog!$C1312=\"Log value\",DataLog!AC1312,\"\")","v":""},{"$f":"IF(DataLog!$C1312=\"Log value\",DataLog!AD1312,\"\")","v":""},{"$f":"IF(DataLog!$C1312=\"Log value\",DataLog!AE1312,\"\")","v":""},{"$f":"IF(DataLog!$C1312=\"Log value\",DataLog!AF1312,\"\")","v":""},{"$f":"IF(DataLog!$C1312=\"Log value\",DataLog!AG1312,\"\")","v":""},{"$f":"IF(DataLog!$C1312=\"Log value\",DataLog!AH1312,\"\")","v":""},{"$f":"IF(DataLog!$C1312=\"Log value\",DataLog!AI1312,\"\")","v":""},{"$f":"IF(DataLog!$C1312=\"Log value\",DataLog!AJ1312,\"\")","v":""},{"$f":"IF(DataLog!$C1312=\"Log value\",DataLog!AK1312,\"\")","v":""},{"$f":"IF(DataLog!$C1312=\"Log value\",DataLog!AL1312,\"\")","v":""},{"$f":"IF(DataLog!$C1312=\"Log value\",DataLog!AM1312,\"\")","v":""}]
[null,null,null,null,null,null,{"$f":"IF(DataLog!$C1313=\"Log value\",DataLog!D1313&\"_\"&TEXT(DataLog!B1313,\"åååå-mm-dd\"),\"\")","v":""},{"$f":"IF(DataLog!$C1313=\"Log value\",DataLog!E1313,\"\")","v":""},{"$f":"IF(DataLog!$C1313=\"Log value\",DataLog!F1313,\"\")","v":""},{"$f":"IF(DataLog!$C1313=\"Log value\",DataLog!G1313,\"\")","v":""},{"$f":"IF(DataLog!$C1313=\"Log value\",DataLog!H1313,\"\")","v":""},{"$f":"IF(DataLog!$C1313=\"Log value\",DataLog!I1313,\"\")","v":""},{"$f":"IF(DataLog!$C1313=\"Log value\",DataLog!J1313,\"\")","v":""},{"$f":"IF(DataLog!$C1313=\"Log value\",DataLog!K1313,\"\")","v":""},{"$f":"IF(DataLog!$C1313=\"Log value\",DataLog!L1313,\"\")","v":""},{"$f":"IF(DataLog!$C1313=\"Log value\",DataLog!M1313,\"\")","v":""},{"$f":"IF(DataLog!$C1313=\"Log value\",DataLog!N1313,\"\")","v":""},{"$f":"IF(DataLog!$C1313=\"Log value\",DataLog!O1313,\"\")","v":""},{"$f":"IF(DataLog!$C1313=\"Log value\",DataLog!P1313,\"\")","v":""},{"$f":"IF(DataLog!$C1313=\"Log value\",DataLog!Q1313,\"\")","v":""},{"$f":"IF(DataLog!$C1313=\"Log value\",DataLog!R1313,\"\")","v":""},{"$f":"IF(DataLog!$C1313=\"Log value\",DataLog!S1313,\"\")","v":""},{"$f":"IF(DataLog!$C1313=\"Log value\",DataLog!T1313,\"\")","v":""},{"$f":"IF(DataLog!$C1313=\"Log value\",DataLog!U1313,\"\")","v":""},{"$f":"IF(DataLog!$C1313=\"Log value\",DataLog!V1313,\"\")","v":""},{"$f":"IF(DataLog!$C1313=\"Log value\",DataLog!W1313,\"\")","v":""},{"$f":"IF(DataLog!$C1313=\"Log value\",DataLog!X1313,\"\")","v":""},{"$f":"IF(DataLog!$C1313=\"Log value\",DataLog!Y1313,\"\")","v":""},{"$f":"IF(DataLog!$C1313=\"Log value\",DataLog!Z1313,\"\")","v":""},{"$f":"IF(DataLog!$C1313=\"Log value\",DataLog!AA1313,\"\")","v":""},{"$f":"IF(DataLog!$C1313=\"Log value\",DataLog!AB1313,\"\")","v":""},{"$f":"IF(DataLog!$C1313=\"Log value\",DataLog!AC1313,\"\")","v":""},{"$f":"IF(DataLog!$C1313=\"Log value\",DataLog!AD1313,\"\")","v":""},{"$f":"IF(DataLog!$C1313=\"Log value\",DataLog!AE1313,\"\")","v":""},{"$f":"IF(DataLog!$C1313=\"Log value\",DataLog!AF1313,\"\")","v":""},{"$f":"IF(DataLog!$C1313=\"Log value\",DataLog!AG1313,\"\")","v":""},{"$f":"IF(DataLog!$C1313=\"Log value\",DataLog!AH1313,\"\")","v":""},{"$f":"IF(DataLog!$C1313=\"Log value\",DataLog!AI1313,\"\")","v":""},{"$f":"IF(DataLog!$C1313=\"Log value\",DataLog!AJ1313,\"\")","v":""},{"$f":"IF(DataLog!$C1313=\"Log value\",DataLog!AK1313,\"\")","v":""},{"$f":"IF(DataLog!$C1313=\"Log value\",DataLog!AL1313,\"\")","v":""},{"$f":"IF(DataLog!$C1313=\"Log value\",DataLog!AM1313,\"\")","v":""}]
[null,null,null,null,null,null,{"$f":"IF(DataLog!$C1316=\"Log value\",DataLog!D1316&\"_\"&TEXT(DataLog!B1316,\"åååå-mm-dd\"),\"\")","v":""},{"$f":"IF(DataLog!$C1316=\"Log value\",DataLog!E1316,\"\")","v":""},{"$f":"IF(DataLog!$C1316=\"Log value\",DataLog!F1316,\"\")","v":""},{"$f":"IF(DataLog!$C1316=\"Log value\",DataLog!G1316,\"\")","v":""},{"$f":"IF(DataLog!$C1316=\"Log value\",DataLog!H1316,\"\")","v":""},{"$f":"IF(DataLog!$C1316=\"Log value\",DataLog!I1316,\"\")","v":""},{"$f":"IF(DataLog!$C1316=\"Log value\",DataLog!J1316,\"\")","v":""},{"$f":"IF(DataLog!$C1316=\"Log value\",DataLog!K1316,\"\")","v":""},{"$f":"IF(DataLog!$C1316=\"Log value\",DataLog!L1316,\"\")","v":""},{"$f":"IF(DataLog!$C1316=\"Log value\",DataLog!M1316,\"\")","v":""},{"$f":"IF(DataLog!$C1316=\"Log value\",DataLog!N1316,\"\")","v":""},{"$f":"IF(DataLog!$C1316=\"Log value\",DataLog!O1316,\"\")","v":""},{"$f":"IF(DataLog!$C1316=\"Log value\",DataLog!P1316,\"\")","v":""},{"$f":"IF(DataLog!$C1316=\"Log value\",DataLog!Q1316,\"\")","v":""},{"$f":"IF(DataLog!$C1316=\"Log value\",DataLog!R1316,\"\")","v":""},{"$f":"IF(DataLog!$C1316=\"Log value\",DataLog!S1316,\"\")","v":""},{"$f":"IF(DataLog!$C1316=\"Log value\",DataLog!T1316,\"\")","v":""},{"$f":"IF(DataLog!$C1316=\"Log value\",DataLog!U1316,\"\")","v":""},{"$f":"IF(DataLog!$C1316=\"Log value\",DataLog!V1316,\"\")","v":""},{"$f":"IF(DataLog!$C1316=\"Log value\",DataLog!W1316,\"\")","v":""},{"$f":"IF(DataLog!$C1316=\"Log value\",DataLog!X1316,\"\")","v":""},{"$f":"IF(DataLog!$C1316=\"Log value\",DataLog!Y1316,\"\")","v":""},{"$f":"IF(DataLog!$C1316=\"Log value\",DataLog!Z1316,\"\")","v":""},{"$f":"IF(DataLog!$C1316=\"Log value\",DataLog!AA1316,\"\")","v":""},{"$f":"IF(DataLog!$C1316=\"Log value\",DataLog!AB1316,\"\")","v":""},{"$f":"IF(DataLog!$C1316=\"Log value\",DataLog!AC1316,\"\")","v":""},{"$f":"IF(DataLog!$C1316=\"Log value\",DataLog!AD1316,\"\")","v":""},{"$f":"IF(DataLog!$C1316=\"Log value\",DataLog!AE1316,\"\")","v":""},{"$f":"IF(DataLog!$C1316=\"Log value\",DataLog!AF1316,\"\")","v":""},{"$f":"IF(DataLog!$C1316=\"Log value\",DataLog!AG1316,\"\")","v":""},{"$f":"IF(DataLog!$C1316=\"Log value\",DataLog!AH1316,\"\")","v":""},{"$f":"IF(DataLog!$C1316=\"Log value\",DataLog!AI1316,\"\")","v":""},{"$f":"IF(DataLog!$C1316=\"Log value\",DataLog!AJ1316,\"\")","v":""},{"$f":"IF(DataLog!$C1316=\"Log value\",DataLog!AK1316,\"\")","v":""},{"$f":"IF(DataLog!$C1316=\"Log value\",DataLog!AL1316,\"\")","v":""},{"$f":"IF(DataLog!$C1316=\"Log value\",DataLog!AM1316,\"\")","v":""}]
[null,null,null,null,null,null,{"$f":"IF(DataLog!$C1317=\"Log value\",DataLog!D1317&\"_\"&TEXT(DataLog!B1317,\"åååå-mm-dd\"),\"\")","v":""},{"$f":"IF(DataLog!$C1317=\"Log value\",DataLog!E1317,\"\")","v":""},{"$f":"IF(DataLog!$C1317=\"Log value\",DataLog!F1317,\"\")","v":""},{"$f":"IF(DataLog!$C1317=\"Log value\",DataLog!G1317,\"\")","v":""},{"$f":"IF(DataLog!$C1317=\"Log value\",DataLog!H1317,\"\")","v":""},{"$f":"IF(DataLog!$C1317=\"Log value\",DataLog!I1317,\"\")","v":""},{"$f":"IF(DataLog!$C1317=\"Log value\",DataLog!J1317,\"\")","v":""},{"$f":"IF(DataLog!$C1317=\"Log value\",DataLog!K1317,\"\")","v":""},{"$f":"IF(DataLog!$C1317=\"Log value\",DataLog!L1317,\"\")","v":""},{"$f":"IF(DataLog!$C1317=\"Log value\",DataLog!M1317,\"\")","v":""},{"$f":"IF(DataLog!$C1317=\"Log value\",DataLog!N1317,\"\")","v":""},{"$f":"IF(DataLog!$C1317=\"Log value\",DataLog!O1317,\"\")","v":""},{"$f":"IF(DataLog!$C1317=\"Log value\",DataLog!P1317,\"\")","v":""},{"$f":"IF(DataLog!$C1317=\"Log value\",DataLog!Q1317,\"\")","v":""},{"$f":"IF(DataLog!$C1317=\"Log value\",DataLog!R1317,\"\")","v":""},{"$f":"IF(DataLog!$C1317=\"Log value\",DataLog!S1317,\"\")","v":""},{"$f":"IF(DataLog!$C1317=\"Log value\",DataLog!T1317,\"\")","v":""},{"$f":"IF(DataLog!$C1317=\"Log value\",DataLog!U1317,\"\")","v":""},{"$f":"IF(DataLog!$C1317=\"Log value\",DataLog!V1317,\"\")","v":""},{"$f":"IF(DataLog!$C1317=\"Log value\",DataLog!W1317,\"\")","v":""},{"$f":"IF(DataLog!$C1317=\"Log value\",DataLog!X1317,\"\")","v":""},{"$f":"IF(DataLog!$C1317=\"Log value\",DataLog!Y1317,\"\")","v":""},{"$f":"IF(DataLog!$C1317=\"Log value\",DataLog!Z1317,\"\")","v":""},{"$f":"IF(DataLog!$C1317=\"Log value\",DataLog!AA1317,\"\")","v":""},{"$f":"IF(DataLog!$C1317=\"Log value\",DataLog!AB1317,\"\")","v":""},{"$f":"IF(DataLog!$C1317=\"Log value\",DataLog!AC1317,\"\")","v":""},{"$f":"IF(DataLog!$C1317=\"Log value\",DataLog!AD1317,\"\")","v":""},{"$f":"IF(DataLog!$C1317=\"Log value\",DataLog!AE1317,\"\")","v":""},{"$f":"IF(DataLog!$C1317=\"Log value\",DataLog!AF1317,\"\")","v":""},{"$f":"IF(DataLog!$C1317=\"Log value\",DataLog!AG1317,\"\")","v":""},{"$f":"IF(DataLog!$C1317=\"Log value\",DataLog!AH1317,\"\")","v":""},{"$f":"IF(DataLog!$C1317=\"Log value\",DataLog!AI1317,\"\")","v":""},{"$f":"IF(DataLog!$C1317=\"Log value\",DataLog!AJ1317,\"\")","v":""},{"$f":"IF(DataLog!$C1317=\"Log value\",DataLog!AK1317,\"\")","v":""},{"$f":"IF(DataLog!$C1317=\"Log value\",DataLog!AL1317,\"\")","v":""},{"$f":"IF(DataLog!$C1317=\"Log value\",DataLog!AM1317,\"\")","v":""}]
[null,null,null,null,null,null,{"$f":"IF(DataLog!$C1321=\"Log value\",DataLog!D1321&\"_\"&TEXT(DataLog!B1321,\"åååå-mm-dd\"),\"\")","v":""},{"$f":"IF(DataLog!$C1321=\"Log value\",DataLog!E1321,\"\")","v":""},{"$f":"IF(DataLog!$C1321=\"Log value\",DataLog!F1321,\"\")","v":""},{"$f":"IF(DataLog!$C1321=\"Log value\",DataLog!G1321,\"\")","v":""},{"$f":"IF(DataLog!$C1321=\"Log value\",DataLog!H1321,\"\")","v":""},{"$f":"IF(DataLog!$C1321=\"Log value\",DataLog!I1321,\"\")","v":""},{"$f":"IF(DataLog!$C1321=\"Log value\",DataLog!J1321,\"\")","v":""},{"$f":"IF(DataLog!$C1321=\"Log value\",DataLog!K1321,\"\")","v":""},{"$f":"IF(DataLog!$C1321=\"Log value\",DataLog!L1321,\"\")","v":""},{"$f":"IF(DataLog!$C1321=\"Log value\",DataLog!M1321,\"\")","v":""},{"$f":"IF(DataLog!$C1321=\"Log value\",DataLog!N1321,\"\")","v":""},{"$f":"IF(DataLog!$C1321=\"Log value\",DataLog!O1321,\"\")","v":""},{"$f":"IF(DataLog!$C1321=\"Log value\",DataLog!P1321,\"\")","v":""},{"$f":"IF(DataLog!$C1321=\"Log value\",DataLog!Q1321,\"\")","v":""},{"$f":"IF(DataLog!$C1321=\"Log value\",DataLog!R1321,\"\")","v":""},{"$f":"IF(DataLog!$C1321=\"Log value\",DataLog!S1321,\"\")","v":""},{"$f":"IF(DataLog!$C1321=\"Log value\",DataLog!T1321,\"\")","v":""},{"$f":"IF(DataLog!$C1321=\"Log value\",DataLog!U1321,\"\")","v":""},{"$f":"IF(DataLog!$C1321=\"Log value\",DataLog!V1321,\"\")","v":""},{"$f":"IF(DataLog!$C1321=\"Log value\",DataLog!W1321,\"\")","v":""},{"$f":"IF(DataLog!$C1321=\"Log value\",DataLog!X1321,\"\")","v":""},{"$f":"IF(DataLog!$C1321=\"Log value\",DataLog!Y1321,\"\")","v":""},{"$f":"IF(DataLog!$C1321=\"Log value\",DataLog!Z1321,\"\")","v":""},{"$f":"IF(DataLog!$C1321=\"Log value\",DataLog!AA1321,\"\")","v":""},{"$f":"IF(DataLog!$C1321=\"Log value\",DataLog!AB1321,\"\")","v":""},{"$f":"IF(DataLog!$C1321=\"Log value\",DataLog!AC1321,\"\")","v":""},{"$f":"IF(DataLog!$C1321=\"Log value\",DataLog!AD1321,\"\")","v":""},{"$f":"IF(DataLog!$C1321=\"Log value\",DataLog!AE1321,\"\")","v":""},{"$f":"IF(DataLog!$C1321=\"Log value\",DataLog!AF1321,\"\")","v":""},{"$f":"IF(DataLog!$C1321=\"Log value\",DataLog!AG1321,\"\")","v":""},{"$f":"IF(DataLog!$C1321=\"Log value\",DataLog!AH1321,\"\")","v":""},{"$f":"IF(DataLog!$C1321=\"Log value\",DataLog!AI1321,\"\")","v":""},{"$f":"IF(DataLog!$C1321=\"Log value\",DataLog!AJ1321,\"\")","v":""},{"$f":"IF(DataLog!$C1321=\"Log value\",DataLog!AK1321,\"\")","v":""},{"$f":"IF(DataLog!$C1321=\"Log value\",DataLog!AL1321,\"\")","v":""},{"$f":"IF(DataLog!$C1321=\"Log value\",DataLog!AM1321,\"\")","v":""}]
[null,null,null,null,null,null,{"$f":"IF(DataLog!$C1322=\"Log value\",DataLog!D1322&\"_\"&TEXT(DataLog!B1322,\"åååå-mm-dd\"),\"\")","v":""},{"$f":"IF(DataLog!$C1322=\"Log value\",DataLog!E1322,\"\")","v":""},{"$f":"IF(DataLog!$C1322=\"Log value\",DataLog!F1322,\"\")","v":""},{"$f":"IF(DataLog!$C1322=\"Log value\",DataLog!G1322,\"\")","v":""},{"$f":"IF(DataLog!$C1322=\"Log value\",DataLog!H1322,\"\")","v":""},{"$f":"IF(DataLog!$C1322=\"Log value\",DataLog!I1322,\"\")","v":""},{"$f":"IF(DataLog!$C1322=\"Log value\",DataLog!J1322,\"\")","v":""},{"$f":"IF(DataLog!$C1322=\"Log value\",DataLog!K1322,\"\")","v":""},{"$f":"IF(DataLog!$C1322=\"Log value\",DataLog!L1322,\"\")","v":""},{"$f":"IF(DataLog!$C1322=\"Log value\",DataLog!M1322,\"\")","v":""},{"$f":"IF(DataLog!$C1322=\"Log value\",DataLog!N1322,\"\")","v":""},{"$f":"IF(DataLog!$C1322=\"Log value\",DataLog!O1322,\"\")","v":""},{"$f":"IF(DataLog!$C1322=\"Log value\",DataLog!P1322,\"\")","v":""},{"$f":"IF(DataLog!$C1322=\"Log value\",DataLog!Q1322,\"\")","v":""},{"$f":"IF(DataLog!$C1322=\"Log value\",DataLog!R1322,\"\")","v":""},{"$f":"IF(DataLog!$C1322=\"Log value\",DataLog!S1322,\"\")","v":""},{"$f":"IF(DataLog!$C1322=\"Log value\",DataLog!T1322,\"\")","v":""},{"$f":"IF(DataLog!$C1322=\"Log value\",DataLog!U1322,\"\")","v":""},{"$f":"IF(DataLog!$C1322=\"Log value\",DataLog!V1322,\"\")","v":""},{"$f":"IF(DataLog!$C1322=\"Log value\",DataLog!W1322,\"\")","v":""},{"$f":"IF(DataLog!$C1322=\"Log value\",DataLog!X1322,\"\")","v":""},{"$f":"IF(DataLog!$C1322=\"Log value\",DataLog!Y1322,\"\")","v":""},{"$f":"IF(DataLog!$C1322=\"Log value\",DataLog!Z1322,\"\")","v":""},{"$f":"IF(DataLog!$C1322=\"Log value\",DataLog!AA1322,\"\")","v":""},{"$f":"IF(DataLog!$C1322=\"Log value\",DataLog!AB1322,\"\")","v":""},{"$f":"IF(DataLog!$C1322=\"Log value\",DataLog!AC1322,\"\")","v":""},{"$f":"IF(DataLog!$C1322=\"Log value\",DataLog!AD1322,\"\")","v":""},{"$f":"IF(DataLog!$C1322=\"Log value\",DataLog!AE1322,\"\")","v":""},{"$f":"IF(DataLog!$C1322=\"Log value\",DataLog!AF1322,\"\")","v":""},{"$f":"IF(DataLog!$C1322=\"Log value\",DataLog!AG1322,\"\")","v":""},{"$f":"IF(DataLog!$C1322=\"Log value\",DataLog!AH1322,\"\")","v":""},{"$f":"IF(DataLog!$C1322=\"Log value\",DataLog!AI1322,\"\")","v":""},{"$f":"IF(DataLog!$C1322=\"Log value\",DataLog!AJ1322,\"\")","v":""},{"$f":"IF(DataLog!$C1322=\"Log value\",DataLog!AK1322,\"\")","v":""},{"$f":"IF(DataLog!$C1322=\"Log value\",DataLog!AL1322,\"\")","v":""},{"$f":"IF(DataLog!$C1322=\"Log value\",DataLog!AM1322,\"\")","v":""}]
[null,null,null,null,null,null,{"$f":"IF(DataLog!$C1325=\"Log value\",DataLog!D1325&\"_\"&TEXT(DataLog!B1325,\"åååå-mm-dd\"),\"\")","v":""},{"$f":"IF(DataLog!$C1325=\"Log value\",DataLog!E1325,\"\")","v":""},{"$f":"IF(DataLog!$C1325=\"Log value\",DataLog!F1325,\"\")","v":""},{"$f":"IF(DataLog!$C1325=\"Log value\",DataLog!G1325,\"\")","v":""},{"$f":"IF(DataLog!$C1325=\"Log value\",DataLog!H1325,\"\")","v":""},{"$f":"IF(DataLog!$C1325=\"Log value\",DataLog!I1325,\"\")","v":""},{"$f":"IF(DataLog!$C1325=\"Log value\",DataLog!J1325,\"\")","v":""},{"$f":"IF(DataLog!$C1325=\"Log value\",DataLog!K1325,\"\")","v":""},{"$f":"IF(DataLog!$C1325=\"Log value\",DataLog!L1325,\"\")","v":""},{"$f":"IF(DataLog!$C1325=\"Log value\",DataLog!M1325,\"\")","v":""},{"$f":"IF(DataLog!$C1325=\"Log value\",DataLog!N1325,\"\")","v":""},{"$f":"IF(DataLog!$C1325=\"Log value\",DataLog!O1325,\"\")","v":""},{"$f":"IF(DataLog!$C1325=\"Log value\",DataLog!P1325,\"\")","v":""},{"$f":"IF(DataLog!$C1325=\"Log value\",DataLog!Q1325,\"\")","v":""},{"$f":"IF(DataLog!$C1325=\"Log value\",DataLog!R1325,\"\")","v":""},{"$f":"IF(DataLog!$C1325=\"Log value\",DataLog!S1325,\"\")","v":""},{"$f":"IF(DataLog!$C1325=\"Log value\",DataLog!T1325,\"\")","v":""},{"$f":"IF(DataLog!$C1325=\"Log value\",DataLog!U1325,\"\")","v":""},{"$f":"IF(DataLog!$C1325=\"Log value\",DataLog!V1325,\"\")","v":""},{"$f":"IF(DataLog!$C1325=\"Log value\",DataLog!W1325,\"\")","v":""},{"$f":"IF(DataLog!$C1325=\"Log value\",DataLog!X1325,\"\")","v":""},{"$f":"IF(DataLog!$C1325=\"Log value\",DataLog!Y1325,\"\")","v":""},{"$f":"IF(DataLog!$C1325=\"Log value\",DataLog!Z1325,\"\")","v":""},{"$f":"IF(DataLog!$C1325=\"Log value\",DataLog!AA1325,\"\")","v":""},{"$f":"IF(DataLog!$C1325=\"Log value\",DataLog!AB1325,\"\")","v":""},{"$f":"IF(DataLog!$C1325=\"Log value\",DataLog!AC1325,\"\")","v":""},{"$f":"IF(DataLog!$C1325=\"Log value\",DataLog!AD1325,\"\")","v":""},{"$f":"IF(DataLog!$C1325=\"Log value\",DataLog!AE1325,\"\")","v":""},{"$f":"IF(DataLog!$C1325=\"Log value\",DataLog!AF1325,\"\")","v":""},{"$f":"IF(DataLog!$C1325=\"Log value\",DataLog!AG1325,\"\")","v":""},{"$f":"IF(DataLog!$C1325=\"Log value\",DataLog!AH1325,\"\")","v":""},{"$f":"IF(DataLog!$C1325=\"Log value\",DataLog!AI1325,\"\")","v":""},{"$f":"IF(DataLog!$C1325=\"Log value\",DataLog!AJ1325,\"\")","v":""},{"$f":"IF(DataLog!$C1325=\"Log value\",DataLog!AK1325,\"\")","v":""},{"$f":"IF(DataLog!$C1325=\"Log value\",DataLog!AL1325,\"\")","v":""},{"$f":"IF(DataLog!$C1325=\"Log value\",DataLog!AM1325,\"\")","v":""}]
[null,null,null,null,null,null,{"$f":"IF(DataLog!$C1327=\"Log value\",DataLog!D1327&\"_\"&TEXT(DataLog!B1327,\"åååå-mm-dd\"),\"\")","v":""},{"$f":"IF(DataLog!$C1327=\"Log value\",DataLog!E1327,\"\")","v":""},{"$f":"IF(DataLog!$C1327=\"Log value\",DataLog!F1327,\"\")","v":""},{"$f":"IF(DataLog!$C1327=\"Log value\",DataLog!G1327,\"\")","v":""},{"$f":"IF(DataLog!$C1327=\"Log value\",DataLog!H1327,\"\")","v":""},{"$f":"IF(DataLog!$C1327=\"Log value\",DataLog!I1327,\"\")","v":""},{"$f":"IF(DataLog!$C1327=\"Log value\",DataLog!J1327,\"\")","v":""},{"$f":"IF(DataLog!$C1327=\"Log value\",DataLog!K1327,\"\")","v":""},{"$f":"IF(DataLog!$C1327=\"Log value\",DataLog!L1327,\"\")","v":""},{"$f":"IF(DataLog!$C1327=\"Log value\",DataLog!M1327,\"\")","v":""},{"$f":"IF(DataLog!$C1327=\"Log value\",DataLog!N1327,\"\")","v":""},{"$f":"IF(DataLog!$C1327=\"Log value\",DataLog!O1327,\"\")","v":""},{"$f":"IF(DataLog!$C1327=\"Log value\",DataLog!P1327,\"\")","v":""},{"$f":"IF(DataLog!$C1327=\"Log value\",DataLog!Q1327,\"\")","v":""},{"$f":"IF(DataLog!$C1327=\"Log value\",DataLog!R1327,\"\")","v":""},{"$f":"IF(DataLog!$C1327=\"Log value\",DataLog!S1327,\"\")","v":""},{"$f":"IF(DataLog!$C1327=\"Log value\",DataLog!T1327,\"\")","v":""},{"$f":"IF(DataLog!$C1327=\"Log value\",DataLog!U1327,\"\")","v":""},{"$f":"IF(DataLog!$C1327=\"Log value\",DataLog!V1327,\"\")","v":""},{"$f":"IF(DataLog!$C1327=\"Log value\",DataLog!W1327,\"\")","v":""},{"$f":"IF(DataLog!$C1327=\"Log value\",DataLog!X1327,\"\")","v":""},{"$f":"IF(DataLog!$C1327=\"Log value\",DataLog!Y1327,\"\")","v":""},{"$f":"IF(DataLog!$C1327=\"Log value\",DataLog!Z1327,\"\")","v":""},{"$f":"IF(DataLog!$C1327=\"Log value\",DataLog!AA1327,\"\")","v":""},{"$f":"IF(DataLog!$C1327=\"Log value\",DataLog!AB1327,\"\")","v":""},{"$f":"IF(DataLog!$C1327=\"Log value\",DataLog!AC1327,\"\")","v":""},{"$f":"IF(DataLog!$C1327=\"Log value\",DataLog!AD1327,\"\")","v":""},{"$f":"IF(DataLog!$C1327=\"Log value\",DataLog!AE1327,\"\")","v":""},{"$f":"IF(DataLog!$C1327=\"Log value\",DataLog!AF1327,\"\")","v":""},{"$f":"IF(DataLog!$C1327=\"Log value\",DataLog!AG1327,\"\")","v":""},{"$f":"IF(DataLog!$C1327=\"Log value\",DataLog!AH1327,\"\")","v":""},{"$f":"IF(DataLog!$C1327=\"Log value\",DataLog!AI1327,\"\")","v":""},{"$f":"IF(DataLog!$C1327=\"Log value\",DataLog!AJ1327,\"\")","v":""},{"$f":"IF(DataLog!$C1327=\"Log value\",DataLog!AK1327,\"\")","v":""},{"$f":"IF(DataLog!$C1327=\"Log value\",DataLog!AL1327,\"\")","v":""},{"$f":"IF(DataLog!$C1327=\"Log value\",DataLog!AM1327,\"\")","v":""}]
[null,null,null,null,null,null,{"$f":"IF(DataLog!$C1330=\"Log value\",DataLog!D1330&\"_\"&TEXT(DataLog!B1330,\"åååå-mm-dd\"),\"\")","v":""},{"$f":"IF(DataLog!$C1330=\"Log value\",DataLog!E1330,\"\")","v":""},{"$f":"IF(DataLog!$C1330=\"Log value\",DataLog!F1330,\"\")","v":""},{"$f":"IF(DataLog!$C1330=\"Log value\",DataLog!G1330,\"\")","v":""},{"$f":"IF(DataLog!$C1330=\"Log value\",DataLog!H1330,\"\")","v":""},{"$f":"IF(DataLog!$C1330=\"Log value\",DataLog!I1330,\"\")","v":""},{"$f":"IF(DataLog!$C1330=\"Log value\",DataLog!J1330,\"\")","v":""},{"$f":"IF(DataLog!$C1330=\"Log value\",DataLog!K1330,\"\")","v":""},{"$f":"IF(DataLog!$C1330=\"Log value\",DataLog!L1330,\"\")","v":""},{"$f":"IF(DataLog!$C1330=\"Log value\",DataLog!M1330,\"\")","v":""},{"$f":"IF(DataLog!$C1330=\"Log value\",DataLog!N1330,\"\")","v":""},{"$f":"IF(DataLog!$C1330=\"Log value\",DataLog!O1330,\"\")","v":""},{"$f":"IF(DataLog!$C1330=\"Log value\",DataLog!P1330,\"\")","v":""},{"$f":"IF(DataLog!$C1330=\"Log value\",DataLog!Q1330,\"\")","v":""},{"$f":"IF(DataLog!$C1330=\"Log value\",DataLog!R1330,\"\")","v":""},{"$f":"IF(DataLog!$C1330=\"Log value\",DataLog!S1330,\"\")","v":""},{"$f":"IF(DataLog!$C1330=\"Log value\",DataLog!T1330,\"\")","v":""},{"$f":"IF(DataLog!$C1330=\"Log value\",DataLog!U1330,\"\")","v":""},{"$f":"IF(DataLog!$C1330=\"Log value\",DataLog!V1330,\"\")","v":""},{"$f":"IF(DataLog!$C1330=\"Log value\",DataLog!W1330,\"\")","v":""},{"$f":"IF(DataLog!$C1330=\"Log value\",DataLog!X1330,\"\")","v":""},{"$f":"IF(DataLog!$C1330=\"Log value\",DataLog!Y1330,\"\")","v":""},{"$f":"IF(DataLog!$C1330=\"Log value\",DataLog!Z1330,\"\")","v":""},{"$f":"IF(DataLog!$C1330=\"Log value\",DataLog!AA1330,\"\")","v":""},{"$f":"IF(DataLog!$C1330=\"Log value\",DataLog!AB1330,\"\")","v":""},{"$f":"IF(DataLog!$C1330=\"Log value\",DataLog!AC1330,\"\")","v":""},{"$f":"IF(DataLog!$C1330=\"Log value\",DataLog!AD1330,\"\")","v":""},{"$f":"IF(DataLog!$C1330=\"Log value\",DataLog!AE1330,\"\")","v":""},{"$f":"IF(DataLog!$C1330=\"Log value\",DataLog!AF1330,\"\")","v":""},{"$f":"IF(DataLog!$C1330=\"Log value\",DataLog!AG1330,\"\")","v":""},{"$f":"IF(DataLog!$C1330=\"Log value\",DataLog!AH1330,\"\")","v":""},{"$f":"IF(DataLog!$C1330=\"Log value\",DataLog!AI1330,\"\")","v":""},{"$f":"IF(DataLog!$C1330=\"Log value\",DataLog!AJ1330,\"\")","v":""},{"$f":"IF(DataLog!$C1330=\"Log value\",DataLog!AK1330,\"\")","v":""},{"$f":"IF(DataLog!$C1330=\"Log value\",DataLog!AL1330,\"\")","v":""},{"$f":"IF(DataLog!$C1330=\"Log value\",DataLog!AM1330,\"\")","v":""}]
[null,null,null,null,null,null,{"$f":"IF(DataLog!$C1331=\"Log value\",DataLog!D1331&\"_\"&TEXT(DataLog!B1331,\"åååå-mm-dd\"),\"\")","v":""},{"$f":"IF(DataLog!$C1331=\"Log value\",DataLog!E1331,\"\")","v":""},{"$f":"IF(DataLog!$C1331=\"Log value\",DataLog!F1331,\"\")","v":""},{"$f":"IF(DataLog!$C1331=\"Log value\",DataLog!G1331,\"\")","v":""},{"$f":"IF(DataLog!$C1331=\"Log value\",DataLog!H1331,\"\")","v":""},{"$f":"IF(DataLog!$C1331=\"Log value\",DataLog!I1331,\"\")","v":""},{"$f":"IF(DataLog!$C1331=\"Log value\",DataLog!J1331,\"\")","v":""},{"$f":"IF(DataLog!$C1331=\"Log value\",DataLog!K1331,\"\")","v":""},{"$f":"IF(DataLog!$C1331=\"Log value\",DataLog!L1331,\"\")","v":""},{"$f":"IF(DataLog!$C1331=\"Log value\",DataLog!M1331,\"\")","v":""},{"$f":"IF(DataLog!$C1331=\"Log value\",DataLog!N1331,\"\")","v":""},{"$f":"IF(DataLog!$C1331=\"Log value\",DataLog!O1331,\"\")","v":""},{"$f":"IF(DataLog!$C1331=\"Log value\",DataLog!P1331,\"\")","v":""},{"$f":"IF(DataLog!$C1331=\"Log value\",DataLog!Q1331,\"\")","v":""},{"$f":"IF(DataLog!$C1331=\"Log value\",DataLog!R1331,\"\")","v":""},{"$f":"IF(DataLog!$C1331=\"Log value\",DataLog!S1331,\"\")","v":""},{"$f":"IF(DataLog!$C1331=\"Log value\",DataLog!T1331,\"\")","v":""},{"$f":"IF(DataLog!$C1331=\"Log value\",DataLog!U1331,\"\")","v":""},{"$f":"IF(DataLog!$C1331=\"Log value\",DataLog!V1331,\"\")","v":""},{"$f":"IF(DataLog!$C1331=\"Log value\",DataLog!W1331,\"\")","v":""},{"$f":"IF(DataLog!$C1331=\"Log value\",DataLog!X1331,\"\")","v":""},{"$f":"IF(DataLog!$C1331=\"Log value\",DataLog!Y1331,\"\")","v":""},{"$f":"IF(DataLog!$C1331=\"Log value\",DataLog!Z1331,\"\")","v":""},{"$f":"IF(DataLog!$C1331=\"Log value\",DataLog!AA1331,\"\")","v":""},{"$f":"IF(DataLog!$C1331=\"Log value\",DataLog!AB1331,\"\")","v":""},{"$f":"IF(DataLog!$C1331=\"Log value\",DataLog!AC1331,\"\")","v":""},{"$f":"IF(DataLog!$C1331=\"Log value\",DataLog!AD1331,\"\")","v":""},{"$f":"IF(DataLog!$C1331=\"Log value\",DataLog!AE1331,\"\")","v":""},{"$f":"IF(DataLog!$C1331=\"Log value\",DataLog!AF1331,\"\")","v":""},{"$f":"IF(DataLog!$C1331=\"Log value\",DataLog!AG1331,\"\")","v":""},{"$f":"IF(DataLog!$C1331=\"Log value\",DataLog!AH1331,\"\")","v":""},{"$f":"IF(DataLog!$C1331=\"Log value\",DataLog!AI1331,\"\")","v":""},{"$f":"IF(DataLog!$C1331=\"Log value\",DataLog!AJ1331,\"\")","v":""},{"$f":"IF(DataLog!$C1331=\"Log value\",DataLog!AK1331,\"\")","v":""},{"$f":"IF(DataLog!$C1331=\"Log value\",DataLog!AL1331,\"\")","v":""},{"$f":"IF(DataLog!$C1331=\"Log value\",DataLog!AM1331,\"\")","v":""}]
[null,null,null,null,null,null,{"$f":"IF(DataLog!$C1334=\"Log value\",DataLog!D1334&\"_\"&TEXT(DataLog!B1334,\"åååå-mm-dd\"),\"\")","v":""},{"$f":"IF(DataLog!$C1334=\"Log value\",DataLog!E1334,\"\")","v":""},{"$f":"IF(DataLog!$C1334=\"Log value\",DataLog!F1334,\"\")","v":""},{"$f":"IF(DataLog!$C1334=\"Log value\",DataLog!G1334,\"\")","v":""},{"$f":"IF(DataLog!$C1334=\"Log value\",DataLog!H1334,\"\")","v":""},{"$f":"IF(DataLog!$C1334=\"Log value\",DataLog!I1334,\"\")","v":""},{"$f":"IF(DataLog!$C1334=\"Log value\",DataLog!J1334,\"\")","v":""},{"$f":"IF(DataLog!$C1334=\"Log value\",DataLog!K1334,\"\")","v":""},{"$f":"IF(DataLog!$C1334=\"Log value\",DataLog!L1334,\"\")","v":""},{"$f":"IF(DataLog!$C1334=\"Log value\",DataLog!M1334,\"\")","v":""},{"$f":"IF(DataLog!$C1334=\"Log value\",DataLog!N1334,\"\")","v":""},{"$f":"IF(DataLog!$C1334=\"Log value\",DataLog!O1334,\"\")","v":""},{"$f":"IF(DataLog!$C1334=\"Log value\",DataLog!P1334,\"\")","v":""},{"$f":"IF(DataLog!$C1334=\"Log value\",DataLog!Q1334,\"\")","v":""},{"$f":"IF(DataLog!$C1334=\"Log value\",DataLog!R1334,\"\")","v":""},{"$f":"IF(DataLog!$C1334=\"Log value\",DataLog!S1334,\"\")","v":""},{"$f":"IF(DataLog!$C1334=\"Log value\",DataLog!T1334,\"\")","v":""},{"$f":"IF(DataLog!$C1334=\"Log value\",DataLog!U1334,\"\")","v":""},{"$f":"IF(DataLog!$C1334=\"Log value\",DataLog!V1334,\"\")","v":""},{"$f":"IF(DataLog!$C1334=\"Log value\",DataLog!W1334,\"\")","v":""},{"$f":"IF(DataLog!$C1334=\"Log value\",DataLog!X1334,\"\")","v":""},{"$f":"IF(DataLog!$C1334=\"Log value\",DataLog!Y1334,\"\")","v":""},{"$f":"IF(DataLog!$C1334=\"Log value\",DataLog!Z1334,\"\")","v":""},{"$f":"IF(DataLog!$C1334=\"Log value\",DataLog!AA1334,\"\")","v":""},{"$f":"IF(DataLog!$C1334=\"Log value\",DataLog!AB1334,\"\")","v":""},{"$f":"IF(DataLog!$C1334=\"Log value\",DataLog!AC1334,\"\")","v":""},{"$f":"IF(DataLog!$C1334=\"Log value\",DataLog!AD1334,\"\")","v":""},{"$f":"IF(DataLog!$C1334=\"Log value\",DataLog!AE1334,\"\")","v":""},{"$f":"IF(DataLog!$C1334=\"Log value\",DataLog!AF1334,\"\")","v":""},{"$f":"IF(DataLog!$C1334=\"Log value\",DataLog!AG1334,\"\")","v":""},{"$f":"IF(DataLog!$C1334=\"Log value\",DataLog!AH1334,\"\")","v":""},{"$f":"IF(DataLog!$C1334=\"Log value\",DataLog!AI1334,\"\")","v":""},{"$f":"IF(DataLog!$C1334=\"Log value\",DataLog!AJ1334,\"\")","v":""},{"$f":"IF(DataLog!$C1334=\"Log value\",DataLog!AK1334,\"\")","v":""},{"$f":"IF(DataLog!$C1334=\"Log value\",DataLog!AL1334,\"\")","v":""},{"$f":"IF(DataLog!$C1334=\"Log value\",DataLog!AM1334,\"\")","v":""}]
[null,null,null,null,null,null,{"$f":"IF(DataLog!$C1335=\"Log value\",DataLog!D1335&\"_\"&TEXT(DataLog!B1335,\"åååå-mm-dd\"),\"\")","v":""},{"$f":"IF(DataLog!$C1335=\"Log value\",DataLog!E1335,\"\")","v":""},{"$f":"IF(DataLog!$C1335=\"Log value\",DataLog!F1335,\"\")","v":""},{"$f":"IF(DataLog!$C1335=\"Log value\",DataLog!G1335,\"\")","v":""},{"$f":"IF(DataLog!$C1335=\"Log value\",DataLog!H1335,\"\")","v":""},{"$f":"IF(DataLog!$C1335=\"Log value\",DataLog!I1335,\"\")","v":""},{"$f":"IF(DataLog!$C1335=\"Log value\",DataLog!J1335,\"\")","v":""},{"$f":"IF(DataLog!$C1335=\"Log value\",DataLog!K1335,\"\")","v":""},{"$f":"IF(DataLog!$C1335=\"Log value\",DataLog!L1335,\"\")","v":""},{"$f":"IF(DataLog!$C1335=\"Log value\",DataLog!M1335,\"\")","v":""},{"$f":"IF(DataLog!$C1335=\"Log value\",DataLog!N1335,\"\")","v":""},{"$f":"IF(DataLog!$C1335=\"Log value\",DataLog!O1335,\"\")","v":""},{"$f":"IF(DataLog!$C1335=\"Log value\",DataLog!P1335,\"\")","v":""},{"$f":"IF(DataLog!$C1335=\"Log value\",DataLog!Q1335,\"\")","v":""},{"$f":"IF(DataLog!$C1335=\"Log value\",DataLog!R1335,\"\")","v":""},{"$f":"IF(DataLog!$C1335=\"Log value\",DataLog!S1335,\"\")","v":""},{"$f":"IF(DataLog!$C1335=\"Log value\",DataLog!T1335,\"\")","v":""},{"$f":"IF(DataLog!$C1335=\"Log value\",DataLog!U1335,\"\")","v":""},{"$f":"IF(DataLog!$C1335=\"Log value\",DataLog!V1335,\"\")","v":""},{"$f":"IF(DataLog!$C1335=\"Log value\",DataLog!W1335,\"\")","v":""},{"$f":"IF(DataLog!$C1335=\"Log value\",DataLog!X1335,\"\")","v":""},{"$f":"IF(DataLog!$C1335=\"Log value\",DataLog!Y1335,\"\")","v":""},{"$f":"IF(DataLog!$C1335=\"Log value\",DataLog!Z1335,\"\")","v":""},{"$f":"IF(DataLog!$C1335=\"Log value\",DataLog!AA1335,\"\")","v":""},{"$f":"IF(DataLog!$C1335=\"Log value\",DataLog!AB1335,\"\")","v":""},{"$f":"IF(DataLog!$C1335=\"Log value\",DataLog!AC1335,\"\")","v":""},{"$f":"IF(DataLog!$C1335=\"Log value\",DataLog!AD1335,\"\")","v":""},{"$f":"IF(DataLog!$C1335=\"Log value\",DataLog!AE1335,\"\")","v":""},{"$f":"IF(DataLog!$C1335=\"Log value\",DataLog!AF1335,\"\")","v":""},{"$f":"IF(DataLog!$C1335=\"Log value\",DataLog!AG1335,\"\")","v":""},{"$f":"IF(DataLog!$C1335=\"Log value\",DataLog!AH1335,\"\")","v":""},{"$f":"IF(DataLog!$C1335=\"Log value\",DataLog!AI1335,\"\")","v":""},{"$f":"IF(DataLog!$C1335=\"Log value\",DataLog!AJ1335,\"\")","v":""},{"$f":"IF(DataLog!$C1335=\"Log value\",DataLog!AK1335,\"\")","v":""},{"$f":"IF(DataLog!$C1335=\"Log value\",DataLog!AL1335,\"\")","v":""},{"$f":"IF(DataLog!$C1335=\"Log value\",DataLog!AM1335,\"\")","v":""}]
[null,null,null,null,null,null,{"$f":"IF(DataLog!$C1339=\"Log value\",DataLog!D1339&\"_\"&TEXT(DataLog!B1339,\"åååå-mm-dd\"),\"\")","v":""},{"$f":"IF(DataLog!$C1339=\"Log value\",DataLog!E1339,\"\")","v":""},{"$f":"IF(DataLog!$C1339=\"Log value\",DataLog!F1339,\"\")","v":""},{"$f":"IF(DataLog!$C1339=\"Log value\",DataLog!G1339,\"\")","v":""},{"$f":"IF(DataLog!$C1339=\"Log value\",DataLog!H1339,\"\")","v":""},{"$f":"IF(DataLog!$C1339=\"Log value\",DataLog!I1339,\"\")","v":""},{"$f":"IF(DataLog!$C1339=\"Log value\",DataLog!J1339,\"\")","v":""},{"$f":"IF(DataLog!$C1339=\"Log value\",DataLog!K1339,\"\")","v":""},{"$f":"IF(DataLog!$C1339=\"Log value\",DataLog!L1339,\"\")","v":""},{"$f":"IF(DataLog!$C1339=\"Log value\",DataLog!M1339,\"\")","v":""},{"$f":"IF(DataLog!$C1339=\"Log value\",DataLog!N1339,\"\")","v":""},{"$f":"IF(DataLog!$C1339=\"Log value\",DataLog!O1339,\"\")","v":""},{"$f":"IF(DataLog!$C1339=\"Log value\",DataLog!P1339,\"\")","v":""},{"$f":"IF(DataLog!$C1339=\"Log value\",DataLog!Q1339,\"\")","v":""},{"$f":"IF(DataLog!$C1339=\"Log value\",DataLog!R1339,\"\")","v":""},{"$f":"IF(DataLog!$C1339=\"Log value\",DataLog!S1339,\"\")","v":""},{"$f":"IF(DataLog!$C1339=\"Log value\",DataLog!T1339,\"\")","v":""},{"$f":"IF(DataLog!$C1339=\"Log value\",DataLog!U1339,\"\")","v":""},{"$f":"IF(DataLog!$C1339=\"Log value\",DataLog!V1339,\"\")","v":""},{"$f":"IF(DataLog!$C1339=\"Log value\",DataLog!W1339,\"\")","v":""},{"$f":"IF(DataLog!$C1339=\"Log value\",DataLog!X1339,\"\")","v":""},{"$f":"IF(DataLog!$C1339=\"Log value\",DataLog!Y1339,\"\")","v":""},{"$f":"IF(DataLog!$C1339=\"Log value\",DataLog!Z1339,\"\")","v":""},{"$f":"IF(DataLog!$C1339=\"Log value\",DataLog!AA1339,\"\")","v":""},{"$f":"IF(DataLog!$C1339=\"Log value\",DataLog!AB1339,\"\")","v":""},{"$f":"IF(DataLog!$C1339=\"Log value\",DataLog!AC1339,\"\")","v":""},{"$f":"IF(DataLog!$C1339=\"Log value\",DataLog!AD1339,\"\")","v":""},{"$f":"IF(DataLog!$C1339=\"Log value\",DataLog!AE1339,\"\")","v":""},{"$f":"IF(DataLog!$C1339=\"Log value\",DataLog!AF1339,\"\")","v":""},{"$f":"IF(DataLog!$C1339=\"Log value\",DataLog!AG1339,\"\")","v":""},{"$f":"IF(DataLog!$C1339=\"Log value\",DataLog!AH1339,\"\")","v":""},{"$f":"IF(DataLog!$C1339=\"Log value\",DataLog!AI1339,\"\")","v":""},{"$f":"IF(DataLog!$C1339=\"Log value\",DataLog!AJ1339,\"\")","v":""},{"$f":"IF(DataLog!$C1339=\"Log value\",DataLog!AK1339,\"\")","v":""},{"$f":"IF(DataLog!$C1339=\"Log value\",DataLog!AL1339,\"\")","v":""},{"$f":"IF(DataLog!$C1339=\"Log value\",DataLog!AM1339,\"\")","v":""}]
[null,null,null,null,null,null,{"$f":"IF(DataLog!$C1340=\"Log value\",DataLog!D1340&\"_\"&TEXT(DataLog!B1340,\"åååå-mm-dd\"),\"\")","v":""},{"$f":"IF(DataLog!$C1340=\"Log value\",DataLog!E1340,\"\")","v":""},{"$f":"IF(DataLog!$C1340=\"Log value\",DataLog!F1340,\"\")","v":""},{"$f":"IF(DataLog!$C1340=\"Log value\",DataLog!G1340,\"\")","v":""},{"$f":"IF(DataLog!$C1340=\"Log value\",DataLog!H1340,\"\")","v":""},{"$f":"IF(DataLog!$C1340=\"Log value\",DataLog!I1340,\"\")","v":""},{"$f":"IF(DataLog!$C1340=\"Log value\",DataLog!J1340,\"\")","v":""},{"$f":"IF(DataLog!$C1340=\"Log value\",DataLog!K1340,\"\")","v":""},{"$f":"IF(DataLog!$C1340=\"Log value\",DataLog!L1340,\"\")","v":""},{"$f":"IF(DataLog!$C1340=\"Log value\",DataLog!M1340,\"\")","v":""},{"$f":"IF(DataLog!$C1340=\"Log value\",DataLog!N1340,\"\")","v":""},{"$f":"IF(DataLog!$C1340=\"Log value\",DataLog!O1340,\"\")","v":""},{"$f":"IF(DataLog!$C1340=\"Log value\",DataLog!P1340,\"\")","v":""},{"$f":"IF(DataLog!$C1340=\"Log value\",DataLog!Q1340,\"\")","v":""},{"$f":"IF(DataLog!$C1340=\"Log value\",DataLog!R1340,\"\")","v":""},{"$f":"IF(DataLog!$C1340=\"Log value\",DataLog!S1340,\"\")","v":""},{"$f":"IF(DataLog!$C1340=\"Log value\",DataLog!T1340,\"\")","v":""},{"$f":"IF(DataLog!$C1340=\"Log value\",DataLog!U1340,\"\")","v":""},{"$f":"IF(DataLog!$C1340=\"Log value\",DataLog!V1340,\"\")","v":""},{"$f":"IF(DataLog!$C1340=\"Log value\",DataLog!W1340,\"\")","v":""},{"$f":"IF(DataLog!$C1340=\"Log value\",DataLog!X1340,\"\")","v":""},{"$f":"IF(DataLog!$C1340=\"Log value\",DataLog!Y1340,\"\")","v":""},{"$f":"IF(DataLog!$C1340=\"Log value\",DataLog!Z1340,\"\")","v":""},{"$f":"IF(DataLog!$C1340=\"Log value\",DataLog!AA1340,\"\")","v":""},{"$f":"IF(DataLog!$C1340=\"Log value\",DataLog!AB1340,\"\")","v":""},{"$f":"IF(DataLog!$C1340=\"Log value\",DataLog!AC1340,\"\")","v":""},{"$f":"IF(DataLog!$C1340=\"Log value\",DataLog!AD1340,\"\")","v":""},{"$f":"IF(DataLog!$C1340=\"Log value\",DataLog!AE1340,\"\")","v":""},{"$f":"IF(DataLog!$C1340=\"Log value\",DataLog!AF1340,\"\")","v":""},{"$f":"IF(DataLog!$C1340=\"Log value\",DataLog!AG1340,\"\")","v":""},{"$f":"IF(DataLog!$C1340=\"Log value\",DataLog!AH1340,\"\")","v":""},{"$f":"IF(DataLog!$C1340=\"Log value\",DataLog!AI1340,\"\")","v":""},{"$f":"IF(DataLog!$C1340=\"Log value\",DataLog!AJ1340,\"\")","v":""},{"$f":"IF(DataLog!$C1340=\"Log value\",DataLog!AK1340,\"\")","v":""},{"$f":"IF(DataLog!$C1340=\"Log value\",DataLog!AL1340,\"\")","v":""},{"$f":"IF(DataLog!$C1340=\"Log value\",DataLog!AM1340,\"\")","v":""}]
[null,null,null,null,null,null,{"$f":"IF(DataLog!$C1343=\"Log value\",DataLog!D1343&\"_\"&TEXT(DataLog!B1343,\"åååå-mm-dd\"),\"\")","v":""},{"$f":"IF(DataLog!$C1343=\"Log value\",DataLog!E1343,\"\")","v":""},{"$f":"IF(DataLog!$C1343=\"Log value\",DataLog!F1343,\"\")","v":""},{"$f":"IF(DataLog!$C1343=\"Log value\",DataLog!G1343,\"\")","v":""},{"$f":"IF(DataLog!$C1343=\"Log value\",DataLog!H1343,\"\")","v":""},{"$f":"IF(DataLog!$C1343=\"Log value\",DataLog!I1343,\"\")","v":""},{"$f":"IF(DataLog!$C1343=\"Log value\",DataLog!J1343,\"\")","v":""},{"$f":"IF(DataLog!$C1343=\"Log value\",DataLog!K1343,\"\")","v":""},{"$f":"IF(DataLog!$C1343=\"Log value\",DataLog!L1343,\"\")","v":""},{"$f":"IF(DataLog!$C1343=\"Log value\",DataLog!M1343,\"\")","v":""},{"$f":"IF(DataLog!$C1343=\"Log value\",DataLog!N1343,\"\")","v":""},{"$f":"IF(DataLog!$C1343=\"Log value\",DataLog!O1343,\"\")","v":""},{"$f":"IF(DataLog!$C1343=\"Log value\",DataLog!P1343,\"\")","v":""},{"$f":"IF(DataLog!$C1343=\"Log value\",DataLog!Q1343,\"\")","v":""},{"$f":"IF(DataLog!$C1343=\"Log value\",DataLog!R1343,\"\")","v":""},{"$f":"IF(DataLog!$C1343=\"Log value\",DataLog!S1343,\"\")","v":""},{"$f":"IF(DataLog!$C1343=\"Log value\",DataLog!T1343,\"\")","v":""},{"$f":"IF(DataLog!$C1343=\"Log value\",DataLog!U1343,\"\")","v":""},{"$f":"IF(DataLog!$C1343=\"Log value\",DataLog!V1343,\"\")","v":""},{"$f":"IF(DataLog!$C1343=\"Log value\",DataLog!W1343,\"\")","v":""},{"$f":"IF(DataLog!$C1343=\"Log value\",DataLog!X1343,\"\")","v":""},{"$f":"IF(DataLog!$C1343=\"Log value\",DataLog!Y1343,\"\")","v":""},{"$f":"IF(DataLog!$C1343=\"Log value\",DataLog!Z1343,\"\")","v":""},{"$f":"IF(DataLog!$C1343=\"Log value\",DataLog!AA1343,\"\")","v":""},{"$f":"IF(DataLog!$C1343=\"Log value\",DataLog!AB1343,\"\")","v":""},{"$f":"IF(DataLog!$C1343=\"Log value\",DataLog!AC1343,\"\")","v":""},{"$f":"IF(DataLog!$C1343=\"Log value\",DataLog!AD1343,\"\")","v":""},{"$f":"IF(DataLog!$C1343=\"Log value\",DataLog!AE1343,\"\")","v":""},{"$f":"IF(DataLog!$C1343=\"Log value\",DataLog!AF1343,\"\")","v":""},{"$f":"IF(DataLog!$C1343=\"Log value\",DataLog!AG1343,\"\")","v":""},{"$f":"IF(DataLog!$C1343=\"Log value\",DataLog!AH1343,\"\")","v":""},{"$f":"IF(DataLog!$C1343=\"Log value\",DataLog!AI1343,\"\")","v":""},{"$f":"IF(DataLog!$C1343=\"Log value\",DataLog!AJ1343,\"\")","v":""},{"$f":"IF(DataLog!$C1343=\"Log value\",DataLog!AK1343,\"\")","v":""},{"$f":"IF(DataLog!$C1343=\"Log value\",DataLog!AL1343,\"\")","v":""},{"$f":"IF(DataLog!$C1343=\"Log value\",DataLog!AM1343,\"\")","v":""}]
[null,null,null,null,null,null,{"$f":"IF(DataLog!$C1345=\"Log value\",DataLog!D1345&\"_\"&TEXT(DataLog!B1345,\"åååå-mm-dd\"),\"\")","v":""},{"$f":"IF(DataLog!$C1345=\"Log value\",DataLog!E1345,\"\")","v":""},{"$f":"IF(DataLog!$C1345=\"Log value\",DataLog!F1345,\"\")","v":""},{"$f":"IF(DataLog!$C1345=\"Log value\",DataLog!G1345,\"\")","v":""},{"$f":"IF(DataLog!$C1345=\"Log value\",DataLog!H1345,\"\")","v":""},{"$f":"IF(DataLog!$C1345=\"Log value\",DataLog!I1345,\"\")","v":""},{"$f":"IF(DataLog!$C1345=\"Log value\",DataLog!J1345,\"\")","v":""},{"$f":"IF(DataLog!$C1345=\"Log value\",DataLog!K1345,\"\")","v":""},{"$f":"IF(DataLog!$C1345=\"Log value\",DataLog!L1345,\"\")","v":""},{"$f":"IF(DataLog!$C1345=\"Log value\",DataLog!M1345,\"\")","v":""},{"$f":"IF(DataLog!$C1345=\"Log value\",DataLog!N1345,\"\")","v":""},{"$f":"IF(DataLog!$C1345=\"Log value\",DataLog!O1345,\"\")","v":""},{"$f":"IF(DataLog!$C1345=\"Log value\",DataLog!P1345,\"\")","v":""},{"$f":"IF(DataLog!$C1345=\"Log value\",DataLog!Q1345,\"\")","v":""},{"$f":"IF(DataLog!$C1345=\"Log value\",DataLog!R1345,\"\")","v":""},{"$f":"IF(DataLog!$C1345=\"Log value\",DataLog!S1345,\"\")","v":""},{"$f":"IF(DataLog!$C1345=\"Log value\",DataLog!T1345,\"\")","v":""},{"$f":"IF(DataLog!$C1345=\"Log value\",DataLog!U1345,\"\")","v":""},{"$f":"IF(DataLog!$C1345=\"Log value\",DataLog!V1345,\"\")","v":""},{"$f":"IF(DataLog!$C1345=\"Log value\",DataLog!W1345,\"\")","v":""},{"$f":"IF(DataLog!$C1345=\"Log value\",DataLog!X1345,\"\")","v":""},{"$f":"IF(DataLog!$C1345=\"Log value\",DataLog!Y1345,\"\")","v":""},{"$f":"IF(DataLog!$C1345=\"Log value\",DataLog!Z1345,\"\")","v":""},{"$f":"IF(DataLog!$C1345=\"Log value\",DataLog!AA1345,\"\")","v":""},{"$f":"IF(DataLog!$C1345=\"Log value\",DataLog!AB1345,\"\")","v":""},{"$f":"IF(DataLog!$C1345=\"Log value\",DataLog!AC1345,\"\")","v":""},{"$f":"IF(DataLog!$C1345=\"Log value\",DataLog!AD1345,\"\")","v":""},{"$f":"IF(DataLog!$C1345=\"Log value\",DataLog!AE1345,\"\")","v":""},{"$f":"IF(DataLog!$C1345=\"Log value\",DataLog!AF1345,\"\")","v":""},{"$f":"IF(DataLog!$C1345=\"Log value\",DataLog!AG1345,\"\")","v":""},{"$f":"IF(DataLog!$C1345=\"Log value\",DataLog!AH1345,\"\")","v":""},{"$f":"IF(DataLog!$C1345=\"Log value\",DataLog!AI1345,\"\")","v":""},{"$f":"IF(DataLog!$C1345=\"Log value\",DataLog!AJ1345,\"\")","v":""},{"$f":"IF(DataLog!$C1345=\"Log value\",DataLog!AK1345,\"\")","v":""},{"$f":"IF(DataLog!$C1345=\"Log value\",DataLog!AL1345,\"\")","v":""},{"$f":"IF(DataLog!$C1345=\"Log value\",DataLog!AM1345,\"\")","v":""}]
[null,null,null,null,null,null,{"$f":"IF(DataLog!$C1348=\"Log value\",DataLog!D1348&\"_\"&TEXT(DataLog!B1348,\"åååå-mm-dd\"),\"\")","v":""},{"$f":"IF(DataLog!$C1348=\"Log value\",DataLog!E1348,\"\")","v":""},{"$f":"IF(DataLog!$C1348=\"Log value\",DataLog!F1348,\"\")","v":""},{"$f":"IF(DataLog!$C1348=\"Log value\",DataLog!G1348,\"\")","v":""},{"$f":"IF(DataLog!$C1348=\"Log value\",DataLog!H1348,\"\")","v":""},{"$f":"IF(DataLog!$C1348=\"Log value\",DataLog!I1348,\"\")","v":""},{"$f":"IF(DataLog!$C1348=\"Log value\",DataLog!J1348,\"\")","v":""},{"$f":"IF(DataLog!$C1348=\"Log value\",DataLog!K1348,\"\")","v":""},{"$f":"IF(DataLog!$C1348=\"Log value\",DataLog!L1348,\"\")","v":""},{"$f":"IF(DataLog!$C1348=\"Log value\",DataLog!M1348,\"\")","v":""},{"$f":"IF(DataLog!$C1348=\"Log value\",DataLog!N1348,\"\")","v":""},{"$f":"IF(DataLog!$C1348=\"Log value\",DataLog!O1348,\"\")","v":""},{"$f":"IF(DataLog!$C1348=\"Log value\",DataLog!P1348,\"\")","v":""},{"$f":"IF(DataLog!$C1348=\"Log value\",DataLog!Q1348,\"\")","v":""},{"$f":"IF(DataLog!$C1348=\"Log value\",DataLog!R1348,\"\")","v":""},{"$f":"IF(DataLog!$C1348=\"Log value\",DataLog!S1348,\"\")","v":""},{"$f":"IF(DataLog!$C1348=\"Log value\",DataLog!T1348,\"\")","v":""},{"$f":"IF(DataLog!$C1348=\"Log value\",DataLog!U1348,\"\")","v":""},{"$f":"IF(DataLog!$C1348=\"Log value\",DataLog!V1348,\"\")","v":""},{"$f":"IF(DataLog!$C1348=\"Log value\",DataLog!W1348,\"\")","v":""},{"$f":"IF(DataLog!$C1348=\"Log value\",DataLog!X1348,\"\")","v":""},{"$f":"IF(DataLog!$C1348=\"Log value\",DataLog!Y1348,\"\")","v":""},{"$f":"IF(DataLog!$C1348=\"Log value\",DataLog!Z1348,\"\")","v":""},{"$f":"IF(DataLog!$C1348=\"Log value\",DataLog!AA1348,\"\")","v":""},{"$f":"IF(DataLog!$C1348=\"Log value\",DataLog!AB1348,\"\")","v":""},{"$f":"IF(DataLog!$C1348=\"Log value\",DataLog!AC1348,\"\")","v":""},{"$f":"IF(DataLog!$C1348=\"Log value\",DataLog!AD1348,\"\")","v":""},{"$f":"IF(DataLog!$C1348=\"Log value\",DataLog!AE1348,\"\")","v":""},{"$f":"IF(DataLog!$C1348=\"Log value\",DataLog!AF1348,\"\")","v":""},{"$f":"IF(DataLog!$C1348=\"Log value\",DataLog!AG1348,\"\")","v":""},{"$f":"IF(DataLog!$C1348=\"Log value\",DataLog!AH1348,\"\")","v":""},{"$f":"IF(DataLog!$C1348=\"Log value\",DataLog!AI1348,\"\")","v":""},{"$f":"IF(DataLog!$C1348=\"Log value\",DataLog!AJ1348,\"\")","v":""},{"$f":"IF(DataLog!$C1348=\"Log value\",DataLog!AK1348,\"\")","v":""},{"$f":"IF(DataLog!$C1348=\"Log value\",DataLog!AL1348,\"\")","v":""},{"$f":"IF(DataLog!$C1348=\"Log value\",DataLog!AM1348,\"\")","v":""}]
[null,null,null,null,null,null,{"$f":"IF(DataLog!$C1349=\"Log value\",DataLog!D1349&\"_\"&TEXT(DataLog!B1349,\"åååå-mm-dd\"),\"\")","v":""},{"$f":"IF(DataLog!$C1349=\"Log value\",DataLog!E1349,\"\")","v":""},{"$f":"IF(DataLog!$C1349=\"Log value\",DataLog!F1349,\"\")","v":""},{"$f":"IF(DataLog!$C1349=\"Log value\",DataLog!G1349,\"\")","v":""},{"$f":"IF(DataLog!$C1349=\"Log value\",DataLog!H1349,\"\")","v":""},{"$f":"IF(DataLog!$C1349=\"Log value\",DataLog!I1349,\"\")","v":""},{"$f":"IF(DataLog!$C1349=\"Log value\",DataLog!J1349,\"\")","v":""},{"$f":"IF(DataLog!$C1349=\"Log value\",DataLog!K1349,\"\")","v":""},{"$f":"IF(DataLog!$C1349=\"Log value\",DataLog!L1349,\"\")","v":""},{"$f":"IF(DataLog!$C1349=\"Log value\",DataLog!M1349,\"\")","v":""},{"$f":"IF(DataLog!$C1349=\"Log value\",DataLog!N1349,\"\")","v":""},{"$f":"IF(DataLog!$C1349=\"Log value\",DataLog!O1349,\"\")","v":""},{"$f":"IF(DataLog!$C1349=\"Log value\",DataLog!P1349,\"\")","v":""},{"$f":"IF(DataLog!$C1349=\"Log value\",DataLog!Q1349,\"\")","v":""},{"$f":"IF(DataLog!$C1349=\"Log value\",DataLog!R1349,\"\")","v":""},{"$f":"IF(DataLog!$C1349=\"Log value\",DataLog!S1349,\"\")","v":""},{"$f":"IF(DataLog!$C1349=\"Log value\",DataLog!T1349,\"\")","v":""},{"$f":"IF(DataLog!$C1349=\"Log value\",DataLog!U1349,\"\")","v":""},{"$f":"IF(DataLog!$C1349=\"Log value\",DataLog!V1349,\"\")","v":""},{"$f":"IF(DataLog!$C1349=\"Log value\",DataLog!W1349,\"\")","v":""},{"$f":"IF(DataLog!$C1349=\"Log value\",DataLog!X1349,\"\")","v":""},{"$f":"IF(DataLog!$C1349=\"Log value\",DataLog!Y1349,\"\")","v":""},{"$f":"IF(DataLog!$C1349=\"Log value\",DataLog!Z1349,\"\")","v":""},{"$f":"IF(DataLog!$C1349=\"Log value\",DataLog!AA1349,\"\")","v":""},{"$f":"IF(DataLog!$C1349=\"Log value\",DataLog!AB1349,\"\")","v":""},{"$f":"IF(DataLog!$C1349=\"Log value\",DataLog!AC1349,\"\")","v":""},{"$f":"IF(DataLog!$C1349=\"Log value\",DataLog!AD1349,\"\")","v":""},{"$f":"IF(DataLog!$C1349=\"Log value\",DataLog!AE1349,\"\")","v":""},{"$f":"IF(DataLog!$C1349=\"Log value\",DataLog!AF1349,\"\")","v":""},{"$f":"IF(DataLog!$C1349=\"Log value\",DataLog!AG1349,\"\")","v":""},{"$f":"IF(DataLog!$C1349=\"Log value\",DataLog!AH1349,\"\")","v":""},{"$f":"IF(DataLog!$C1349=\"Log value\",DataLog!AI1349,\"\")","v":""},{"$f":"IF(DataLog!$C1349=\"Log value\",DataLog!AJ1349,\"\")","v":""},{"$f":"IF(DataLog!$C1349=\"Log value\",DataLog!AK1349,\"\")","v":""},{"$f":"IF(DataLog!$C1349=\"Log value\",DataLog!AL1349,\"\")","v":""},{"$f":"IF(DataLog!$C1349=\"Log value\",DataLog!AM1349,\"\")","v":""}]
[null,null,null,null,null,null,{"$f":"IF(DataLog!$C1352=\"Log value\",DataLog!D1352&\"_\"&TEXT(DataLog!B1352,\"åååå-mm-dd\"),\"\")","v":""},{"$f":"IF(DataLog!$C1352=\"Log value\",DataLog!E1352,\"\")","v":""},{"$f":"IF(DataLog!$C1352=\"Log value\",DataLog!F1352,\"\")","v":""},{"$f":"IF(DataLog!$C1352=\"Log value\",DataLog!G1352,\"\")","v":""},{"$f":"IF(DataLog!$C1352=\"Log value\",DataLog!H1352,\"\")","v":""},{"$f":"IF(DataLog!$C1352=\"Log value\",DataLog!I1352,\"\")","v":""},{"$f":"IF(DataLog!$C1352=\"Log value\",DataLog!J1352,\"\")","v":""},{"$f":"IF(DataLog!$C1352=\"Log value\",DataLog!K1352,\"\")","v":""},{"$f":"IF(DataLog!$C1352=\"Log value\",DataLog!L1352,\"\")","v":""},{"$f":"IF(DataLog!$C1352=\"Log value\",DataLog!M1352,\"\")","v":""},{"$f":"IF(DataLog!$C1352=\"Log value\",DataLog!N1352,\"\")","v":""},{"$f":"IF(DataLog!$C1352=\"Log value\",DataLog!O1352,\"\")","v":""},{"$f":"IF(DataLog!$C1352=\"Log value\",DataLog!P1352,\"\")","v":""},{"$f":"IF(DataLog!$C1352=\"Log value\",DataLog!Q1352,\"\")","v":""},{"$f":"IF(DataLog!$C1352=\"Log value\",DataLog!R1352,\"\")","v":""},{"$f":"IF(DataLog!$C1352=\"Log value\",DataLog!S1352,\"\")","v":""},{"$f":"IF(DataLog!$C1352=\"Log value\",DataLog!T1352,\"\")","v":""},{"$f":"IF(DataLog!$C1352=\"Log value\",DataLog!U1352,\"\")","v":""},{"$f":"IF(DataLog!$C1352=\"Log value\",DataLog!V1352,\"\")","v":""},{"$f":"IF(DataLog!$C1352=\"Log value\",DataLog!W1352,\"\")","v":""},{"$f":"IF(DataLog!$C1352=\"Log value\",DataLog!X1352,\"\")","v":""},{"$f":"IF(DataLog!$C1352=\"Log value\",DataLog!Y1352,\"\")","v":""},{"$f":"IF(DataLog!$C1352=\"Log value\",DataLog!Z1352,\"\")","v":""},{"$f":"IF(DataLog!$C1352=\"Log value\",DataLog!AA1352,\"\")","v":""},{"$f":"IF(DataLog!$C1352=\"Log value\",DataLog!AB1352,\"\")","v":""},{"$f":"IF(DataLog!$C1352=\"Log value\",DataLog!AC1352,\"\")","v":""},{"$f":"IF(DataLog!$C1352=\"Log value\",DataLog!AD1352,\"\")","v":""},{"$f":"IF(DataLog!$C1352=\"Log value\",DataLog!AE1352,\"\")","v":""},{"$f":"IF(DataLog!$C1352=\"Log value\",DataLog!AF1352,\"\")","v":""},{"$f":"IF(DataLog!$C1352=\"Log value\",DataLog!AG1352,\"\")","v":""},{"$f":"IF(DataLog!$C1352=\"Log value\",DataLog!AH1352,\"\")","v":""},{"$f":"IF(DataLog!$C1352=\"Log value\",DataLog!AI1352,\"\")","v":""},{"$f":"IF(DataLog!$C1352=\"Log value\",DataLog!AJ1352,\"\")","v":""},{"$f":"IF(DataLog!$C1352=\"Log value\",DataLog!AK1352,\"\")","v":""},{"$f":"IF(DataLog!$C1352=\"Log value\",DataLog!AL1352,\"\")","v":""},{"$f":"IF(DataLog!$C1352=\"Log value\",DataLog!AM1352,\"\")","v":""}]
[null,null,null,null,null,null,{"$f":"IF(DataLog!$C1353=\"Log value\",DataLog!D1353&\"_\"&TEXT(DataLog!B1353,\"åååå-mm-dd\"),\"\")","v":""},{"$f":"IF(DataLog!$C1353=\"Log value\",DataLog!E1353,\"\")","v":""},{"$f":"IF(DataLog!$C1353=\"Log value\",DataLog!F1353,\"\")","v":""},{"$f":"IF(DataLog!$C1353=\"Log value\",DataLog!G1353,\"\")","v":""},{"$f":"IF(DataLog!$C1353=\"Log value\",DataLog!H1353,\"\")","v":""},{"$f":"IF(DataLog!$C1353=\"Log value\",DataLog!I1353,\"\")","v":""},{"$f":"IF(DataLog!$C1353=\"Log value\",DataLog!J1353,\"\")","v":""},{"$f":"IF(DataLog!$C1353=\"Log value\",DataLog!K1353,\"\")","v":""},{"$f":"IF(DataLog!$C1353=\"Log value\",DataLog!L1353,\"\")","v":""},{"$f":"IF(DataLog!$C1353=\"Log value\",DataLog!M1353,\"\")","v":""},{"$f":"IF(DataLog!$C1353=\"Log value\",DataLog!N1353,\"\")","v":""},{"$f":"IF(DataLog!$C1353=\"Log value\",DataLog!O1353,\"\")","v":""},{"$f":"IF(DataLog!$C1353=\"Log value\",DataLog!P1353,\"\")","v":""},{"$f":"IF(DataLog!$C1353=\"Log value\",DataLog!Q1353,\"\")","v":""},{"$f":"IF(DataLog!$C1353=\"Log value\",DataLog!R1353,\"\")","v":""},{"$f":"IF(DataLog!$C1353=\"Log value\",DataLog!S1353,\"\")","v":""},{"$f":"IF(DataLog!$C1353=\"Log value\",DataLog!T1353,\"\")","v":""},{"$f":"IF(DataLog!$C1353=\"Log value\",DataLog!U1353,\"\")","v":""},{"$f":"IF(DataLog!$C1353=\"Log value\",DataLog!V1353,\"\")","v":""},{"$f":"IF(DataLog!$C1353=\"Log value\",DataLog!W1353,\"\")","v":""},{"$f":"IF(DataLog!$C1353=\"Log value\",DataLog!X1353,\"\")","v":""},{"$f":"IF(DataLog!$C1353=\"Log value\",DataLog!Y1353,\"\")","v":""},{"$f":"IF(DataLog!$C1353=\"Log value\",DataLog!Z1353,\"\")","v":""},{"$f":"IF(DataLog!$C1353=\"Log value\",DataLog!AA1353,\"\")","v":""},{"$f":"IF(DataLog!$C1353=\"Log value\",DataLog!AB1353,\"\")","v":""},{"$f":"IF(DataLog!$C1353=\"Log value\",DataLog!AC1353,\"\")","v":""},{"$f":"IF(DataLog!$C1353=\"Log value\",DataLog!AD1353,\"\")","v":""},{"$f":"IF(DataLog!$C1353=\"Log value\",DataLog!AE1353,\"\")","v":""},{"$f":"IF(DataLog!$C1353=\"Log value\",DataLog!AF1353,\"\")","v":""},{"$f":"IF(DataLog!$C1353=\"Log value\",DataLog!AG1353,\"\")","v":""},{"$f":"IF(DataLog!$C1353=\"Log value\",DataLog!AH1353,\"\")","v":""},{"$f":"IF(DataLog!$C1353=\"Log value\",DataLog!AI1353,\"\")","v":""},{"$f":"IF(DataLog!$C1353=\"Log value\",DataLog!AJ1353,\"\")","v":""},{"$f":"IF(DataLog!$C1353=\"Log value\",DataLog!AK1353,\"\")","v":""},{"$f":"IF(DataLog!$C1353=\"Log value\",DataLog!AL1353,\"\")","v":""},{"$f":"IF(DataLog!$C1353=\"Log value\",DataLog!AM1353,\"\")","v":""}]
[null,null,null,null,null,null,{"$f":"IF(DataLog!$C1357=\"Log value\",DataLog!D1357&\"_\"&TEXT(DataLog!B1357,\"åååå-mm-dd\"),\"\")","v":""},{"$f":"IF(DataLog!$C1357=\"Log value\",DataLog!E1357,\"\")","v":""},{"$f":"IF(DataLog!$C1357=\"Log value\",DataLog!F1357,\"\")","v":""},{"$f":"IF(DataLog!$C1357=\"Log value\",DataLog!G1357,\"\")","v":""},{"$f":"IF(DataLog!$C1357=\"Log value\",DataLog!H1357,\"\")","v":""},{"$f":"IF(DataLog!$C1357=\"Log value\",DataLog!I1357,\"\")","v":""},{"$f":"IF(DataLog!$C1357=\"Log value\",DataLog!J1357,\"\")","v":""},{"$f":"IF(DataLog!$C1357=\"Log value\",DataLog!K1357,\"\")","v":""},{"$f":"IF(DataLog!$C1357=\"Log value\",DataLog!L1357,\"\")","v":""},{"$f":"IF(DataLog!$C1357=\"Log value\",DataLog!M1357,\"\")","v":""},{"$f":"IF(DataLog!$C1357=\"Log value\",DataLog!N1357,\"\")","v":""},{"$f":"IF(DataLog!$C1357=\"Log value\",DataLog!O1357,\"\")","v":""},{"$f":"IF(DataLog!$C1357=\"Log value\",DataLog!P1357,\"\")","v":""},{"$f":"IF(DataLog!$C1357=\"Log value\",DataLog!Q1357,\"\")","v":""},{"$f":"IF(DataLog!$C1357=\"Log value\",DataLog!R1357,\"\")","v":""},{"$f":"IF(DataLog!$C1357=\"Log value\",DataLog!S1357,\"\")","v":""},{"$f":"IF(DataLog!$C1357=\"Log value\",DataLog!T1357,\"\")","v":""},{"$f":"IF(DataLog!$C1357=\"Log value\",DataLog!U1357,\"\")","v":""},{"$f":"IF(DataLog!$C1357=\"Log value\",DataLog!V1357,\"\")","v":""},{"$f":"IF(DataLog!$C1357=\"Log value\",DataLog!W1357,\"\")","v":""},{"$f":"IF(DataLog!$C1357=\"Log value\",DataLog!X1357,\"\")","v":""},{"$f":"IF(DataLog!$C1357=\"Log value\",DataLog!Y1357,\"\")","v":""},{"$f":"IF(DataLog!$C1357=\"Log value\",DataLog!Z1357,\"\")","v":""},{"$f":"IF(DataLog!$C1357=\"Log value\",DataLog!AA1357,\"\")","v":""},{"$f":"IF(DataLog!$C1357=\"Log value\",DataLog!AB1357,\"\")","v":""},{"$f":"IF(DataLog!$C1357=\"Log value\",DataLog!AC1357,\"\")","v":""},{"$f":"IF(DataLog!$C1357=\"Log value\",DataLog!AD1357,\"\")","v":""},{"$f":"IF(DataLog!$C1357=\"Log value\",DataLog!AE1357,\"\")","v":""},{"$f":"IF(DataLog!$C1357=\"Log value\",DataLog!AF1357,\"\")","v":""},{"$f":"IF(DataLog!$C1357=\"Log value\",DataLog!AG1357,\"\")","v":""},{"$f":"IF(DataLog!$C1357=\"Log value\",DataLog!AH1357,\"\")","v":""},{"$f":"IF(DataLog!$C1357=\"Log value\",DataLog!AI1357,\"\")","v":""},{"$f":"IF(DataLog!$C1357=\"Log value\",DataLog!AJ1357,\"\")","v":""},{"$f":"IF(DataLog!$C1357=\"Log value\",DataLog!AK1357,\"\")","v":""},{"$f":"IF(DataLog!$C1357=\"Log value\",DataLog!AL1357,\"\")","v":""},{"$f":"IF(DataLog!$C1357=\"Log value\",DataLog!AM1357,\"\")","v":""}]
[null,null,null,null,null,null,{"$f":"IF(DataLog!$C1358=\"Log value\",DataLog!D1358&\"_\"&TEXT(DataLog!B1358,\"åååå-mm-dd\"),\"\")","v":""},{"$f":"IF(DataLog!$C1358=\"Log value\",DataLog!E1358,\"\")","v":""},{"$f":"IF(DataLog!$C1358=\"Log value\",DataLog!F1358,\"\")","v":""},{"$f":"IF(DataLog!$C1358=\"Log value\",DataLog!G1358,\"\")","v":""},{"$f":"IF(DataLog!$C1358=\"Log value\",DataLog!H1358,\"\")","v":""},{"$f":"IF(DataLog!$C1358=\"Log value\",DataLog!I1358,\"\")","v":""},{"$f":"IF(DataLog!$C1358=\"Log value\",DataLog!J1358,\"\")","v":""},{"$f":"IF(DataLog!$C1358=\"Log value\",DataLog!K1358,\"\")","v":""},{"$f":"IF(DataLog!$C1358=\"Log value\",DataLog!L1358,\"\")","v":""},{"$f":"IF(DataLog!$C1358=\"Log value\",DataLog!M1358,\"\")","v":""},{"$f":"IF(DataLog!$C1358=\"Log value\",DataLog!N1358,\"\")","v":""},{"$f":"IF(DataLog!$C1358=\"Log value\",DataLog!O1358,\"\")","v":""},{"$f":"IF(DataLog!$C1358=\"Log value\",DataLog!P1358,\"\")","v":""},{"$f":"IF(DataLog!$C1358=\"Log value\",DataLog!Q1358,\"\")","v":""},{"$f":"IF(DataLog!$C1358=\"Log value\",DataLog!R1358,\"\")","v":""},{"$f":"IF(DataLog!$C1358=\"Log value\",DataLog!S1358,\"\")","v":""},{"$f":"IF(DataLog!$C1358=\"Log value\",DataLog!T1358,\"\")","v":""},{"$f":"IF(DataLog!$C1358=\"Log value\",DataLog!U1358,\"\")","v":""},{"$f":"IF(DataLog!$C1358=\"Log value\",DataLog!V1358,\"\")","v":""},{"$f":"IF(DataLog!$C1358=\"Log value\",DataLog!W1358,\"\")","v":""},{"$f":"IF(DataLog!$C1358=\"Log value\",DataLog!X1358,\"\")","v":""},{"$f":"IF(DataLog!$C1358=\"Log value\",DataLog!Y1358,\"\")","v":""},{"$f":"IF(DataLog!$C1358=\"Log value\",DataLog!Z1358,\"\")","v":""},{"$f":"IF(DataLog!$C1358=\"Log value\",DataLog!AA1358,\"\")","v":""},{"$f":"IF(DataLog!$C1358=\"Log value\",DataLog!AB1358,\"\")","v":""},{"$f":"IF(DataLog!$C1358=\"Log value\",DataLog!AC1358,\"\")","v":""},{"$f":"IF(DataLog!$C1358=\"Log value\",DataLog!AD1358,\"\")","v":""},{"$f":"IF(DataLog!$C1358=\"Log value\",DataLog!AE1358,\"\")","v":""},{"$f":"IF(DataLog!$C1358=\"Log value\",DataLog!AF1358,\"\")","v":""},{"$f":"IF(DataLog!$C1358=\"Log value\",DataLog!AG1358,\"\")","v":""},{"$f":"IF(DataLog!$C1358=\"Log value\",DataLog!AH1358,\"\")","v":""},{"$f":"IF(DataLog!$C1358=\"Log value\",DataLog!AI1358,\"\")","v":""},{"$f":"IF(DataLog!$C1358=\"Log value\",DataLog!AJ1358,\"\")","v":""},{"$f":"IF(DataLog!$C1358=\"Log value\",DataLog!AK1358,\"\")","v":""},{"$f":"IF(DataLog!$C1358=\"Log value\",DataLog!AL1358,\"\")","v":""},{"$f":"IF(DataLog!$C1358=\"Log value\",DataLog!AM1358,\"\")","v":""}]
[null,null,null,null,null,null,{"$f":"IF(DataLog!$C1361=\"Log value\",DataLog!D1361&\"_\"&TEXT(DataLog!B1361,\"åååå-mm-dd\"),\"\")","v":""},{"$f":"IF(DataLog!$C1361=\"Log value\",DataLog!E1361,\"\")","v":""},{"$f":"IF(DataLog!$C1361=\"Log value\",DataLog!F1361,\"\")","v":""},{"$f":"IF(DataLog!$C1361=\"Log value\",DataLog!G1361,\"\")","v":""},{"$f":"IF(DataLog!$C1361=\"Log value\",DataLog!H1361,\"\")","v":""},{"$f":"IF(DataLog!$C1361=\"Log value\",DataLog!I1361,\"\")","v":""},{"$f":"IF(DataLog!$C1361=\"Log value\",DataLog!J1361,\"\")","v":""},{"$f":"IF(DataLog!$C1361=\"Log value\",DataLog!K1361,\"\")","v":""},{"$f":"IF(DataLog!$C1361=\"Log value\",DataLog!L1361,\"\")","v":""},{"$f":"IF(DataLog!$C1361=\"Log value\",DataLog!M1361,\"\")","v":""},{"$f":"IF(DataLog!$C1361=\"Log value\",DataLog!N1361,\"\")","v":""},{"$f":"IF(DataLog!$C1361=\"Log value\",DataLog!O1361,\"\")","v":""},{"$f":"IF(DataLog!$C1361=\"Log value\",DataLog!P1361,\"\")","v":""},{"$f":"IF(DataLog!$C1361=\"Log value\",DataLog!Q1361,\"\")","v":""},{"$f":"IF(DataLog!$C1361=\"Log value\",DataLog!R1361,\"\")","v":""},{"$f":"IF(DataLog!$C1361=\"Log value\",DataLog!S1361,\"\")","v":""},{"$f":"IF(DataLog!$C1361=\"Log value\",DataLog!T1361,\"\")","v":""},{"$f":"IF(DataLog!$C1361=\"Log value\",DataLog!U1361,\"\")","v":""},{"$f":"IF(DataLog!$C1361=\"Log value\",DataLog!V1361,\"\")","v":""},{"$f":"IF(DataLog!$C1361=\"Log value\",DataLog!W1361,\"\")","v":""},{"$f":"IF(DataLog!$C1361=\"Log value\",DataLog!X1361,\"\")","v":""},{"$f":"IF(DataLog!$C1361=\"Log value\",DataLog!Y1361,\"\")","v":""},{"$f":"IF(DataLog!$C1361=\"Log value\",DataLog!Z1361,\"\")","v":""},{"$f":"IF(DataLog!$C1361=\"Log value\",DataLog!AA1361,\"\")","v":""},{"$f":"IF(DataLog!$C1361=\"Log value\",DataLog!AB1361,\"\")","v":""},{"$f":"IF(DataLog!$C1361=\"Log value\",DataLog!AC1361,\"\")","v":""},{"$f":"IF(DataLog!$C1361=\"Log value\",DataLog!AD1361,\"\")","v":""},{"$f":"IF(DataLog!$C1361=\"Log value\",DataLog!AE1361,\"\")","v":""},{"$f":"IF(DataLog!$C1361=\"Log value\",DataLog!AF1361,\"\")","v":""},{"$f":"IF(DataLog!$C1361=\"Log value\",DataLog!AG1361,\"\")","v":""},{"$f":"IF(DataLog!$C1361=\"Log value\",DataLog!AH1361,\"\")","v":""},{"$f":"IF(DataLog!$C1361=\"Log value\",DataLog!AI1361,\"\")","v":""},{"$f":"IF(DataLog!$C1361=\"Log value\",DataLog!AJ1361,\"\")","v":""},{"$f":"IF(DataLog!$C1361=\"Log value\",DataLog!AK1361,\"\")","v":""},{"$f":"IF(DataLog!$C1361=\"Log value\",DataLog!AL1361,\"\")","v":""},{"$f":"IF(DataLog!$C1361=\"Log value\",DataLog!AM1361,\"\")","v":""}]
[null,null,null,null,null,null,{"$f":"IF(DataLog!$C1363=\"Log value\",DataLog!D1363&\"_\"&TEXT(DataLog!B1363,\"åååå-mm-dd\"),\"\")","v":""},{"$f":"IF(DataLog!$C1363=\"Log value\",DataLog!E1363,\"\")","v":""},{"$f":"IF(DataLog!$C1363=\"Log value\",DataLog!F1363,\"\")","v":""},{"$f":"IF(DataLog!$C1363=\"Log value\",DataLog!G1363,\"\")","v":""},{"$f":"IF(DataLog!$C1363=\"Log value\",DataLog!H1363,\"\")","v":""},{"$f":"IF(DataLog!$C1363=\"Log value\",DataLog!I1363,\"\")","v":""},{"$f":"IF(DataLog!$C1363=\"Log value\",DataLog!J1363,\"\")","v":""},{"$f":"IF(DataLog!$C1363=\"Log value\",DataLog!K1363,\"\")","v":""},{"$f":"IF(DataLog!$C1363=\"Log value\",DataLog!L1363,\"\")","v":""},{"$f":"IF(DataLog!$C1363=\"Log value\",DataLog!M1363,\"\")","v":""},{"$f":"IF(DataLog!$C1363=\"Log value\",DataLog!N1363,\"\")","v":""},{"$f":"IF(DataLog!$C1363=\"Log value\",DataLog!O1363,\"\")","v":""},{"$f":"IF(DataLog!$C1363=\"Log value\",DataLog!P1363,\"\")","v":""},{"$f":"IF(DataLog!$C1363=\"Log value\",DataLog!Q1363,\"\")","v":""},{"$f":"IF(DataLog!$C1363=\"Log value\",DataLog!R1363,\"\")","v":""},{"$f":"IF(DataLog!$C1363=\"Log value\",DataLog!S1363,\"\")","v":""},{"$f":"IF(DataLog!$C1363=\"Log value\",DataLog!T1363,\"\")","v":""},{"$f":"IF(DataLog!$C1363=\"Log value\",DataLog!U1363,\"\")","v":""},{"$f":"IF(DataLog!$C1363=\"Log value\",DataLog!V1363,\"\")","v":""},{"$f":"IF(DataLog!$C1363=\"Log value\",DataLog!W1363,\"\")","v":""},{"$f":"IF(DataLog!$C1363=\"Log value\",DataLog!X1363,\"\")","v":""},{"$f":"IF(DataLog!$C1363=\"Log value\",DataLog!Y1363,\"\")","v":""},{"$f":"IF(DataLog!$C1363=\"Log value\",DataLog!Z1363,\"\")","v":""},{"$f":"IF(DataLog!$C1363=\"Log value\",DataLog!AA1363,\"\")","v":""},{"$f":"IF(DataLog!$C1363=\"Log value\",DataLog!AB1363,\"\")","v":""},{"$f":"IF(DataLog!$C1363=\"Log value\",DataLog!AC1363,\"\")","v":""},{"$f":"IF(DataLog!$C1363=\"Log value\",DataLog!AD1363,\"\")","v":""},{"$f":"IF(DataLog!$C1363=\"Log value\",DataLog!AE1363,\"\")","v":""},{"$f":"IF(DataLog!$C1363=\"Log value\",DataLog!AF1363,\"\")","v":""},{"$f":"IF(DataLog!$C1363=\"Log value\",DataLog!AG1363,\"\")","v":""},{"$f":"IF(DataLog!$C1363=\"Log value\",DataLog!AH1363,\"\")","v":""},{"$f":"IF(DataLog!$C1363=\"Log value\",DataLog!AI1363,\"\")","v":""},{"$f":"IF(DataLog!$C1363=\"Log value\",DataLog!AJ1363,\"\")","v":""},{"$f":"IF(DataLog!$C1363=\"Log value\",DataLog!AK1363,\"\")","v":""},{"$f":"IF(DataLog!$C1363=\"Log value\",DataLog!AL1363,\"\")","v":""},{"$f":"IF(DataLog!$C1363=\"Log value\",DataLog!AM1363,\"\")","v":""}]
[null,null,null,null,null,null,{"$f":"IF(DataLog!$C1366=\"Log value\",DataLog!D1366&\"_\"&TEXT(DataLog!B1366,\"åååå-mm-dd\"),\"\")","v":""},{"$f":"IF(DataLog!$C1366=\"Log value\",DataLog!E1366,\"\")","v":""},{"$f":"IF(DataLog!$C1366=\"Log value\",DataLog!F1366,\"\")","v":""},{"$f":"IF(DataLog!$C1366=\"Log value\",DataLog!G1366,\"\")","v":""},{"$f":"IF(DataLog!$C1366=\"Log value\",DataLog!H1366,\"\")","v":""},{"$f":"IF(DataLog!$C1366=\"Log value\",DataLog!I1366,\"\")","v":""},{"$f":"IF(DataLog!$C1366=\"Log value\",DataLog!J1366,\"\")","v":""},{"$f":"IF(DataLog!$C1366=\"Log value\",DataLog!K1366,\"\")","v":""},{"$f":"IF(DataLog!$C1366=\"Log value\",DataLog!L1366,\"\")","v":""},{"$f":"IF(DataLog!$C1366=\"Log value\",DataLog!M1366,\"\")","v":""},{"$f":"IF(DataLog!$C1366=\"Log value\",DataLog!N1366,\"\")","v":""},{"$f":"IF(DataLog!$C1366=\"Log value\",DataLog!O1366,\"\")","v":""},{"$f":"IF(DataLog!$C1366=\"Log value\",DataLog!P1366,\"\")","v":""},{"$f":"IF(DataLog!$C1366=\"Log value\",DataLog!Q1366,\"\")","v":""},{"$f":"IF(DataLog!$C1366=\"Log value\",DataLog!R1366,\"\")","v":""},{"$f":"IF(DataLog!$C1366=\"Log value\",DataLog!S1366,\"\")","v":""},{"$f":"IF(DataLog!$C1366=\"Log value\",DataLog!T1366,\"\")","v":""},{"$f":"IF(DataLog!$C1366=\"Log value\",DataLog!U1366,\"\")","v":""},{"$f":"IF(DataLog!$C1366=\"Log value\",DataLog!V1366,\"\")","v":""},{"$f":"IF(DataLog!$C1366=\"Log value\",DataLog!W1366,\"\")","v":""},{"$f":"IF(DataLog!$C1366=\"Log value\",DataLog!X1366,\"\")","v":""},{"$f":"IF(DataLog!$C1366=\"Log value\",DataLog!Y1366,\"\")","v":""},{"$f":"IF(DataLog!$C1366=\"Log value\",DataLog!Z1366,\"\")","v":""},{"$f":"IF(DataLog!$C1366=\"Log value\",DataLog!AA1366,\"\")","v":""},{"$f":"IF(DataLog!$C1366=\"Log value\",DataLog!AB1366,\"\")","v":""},{"$f":"IF(DataLog!$C1366=\"Log value\",DataLog!AC1366,\"\")","v":""},{"$f":"IF(DataLog!$C1366=\"Log value\",DataLog!AD1366,\"\")","v":""},{"$f":"IF(DataLog!$C1366=\"Log value\",DataLog!AE1366,\"\")","v":""},{"$f":"IF(DataLog!$C1366=\"Log value\",DataLog!AF1366,\"\")","v":""},{"$f":"IF(DataLog!$C1366=\"Log value\",DataLog!AG1366,\"\")","v":""},{"$f":"IF(DataLog!$C1366=\"Log value\",DataLog!AH1366,\"\")","v":""},{"$f":"IF(DataLog!$C1366=\"Log value\",DataLog!AI1366,\"\")","v":""},{"$f":"IF(DataLog!$C1366=\"Log value\",DataLog!AJ1366,\"\")","v":""},{"$f":"IF(DataLog!$C1366=\"Log value\",DataLog!AK1366,\"\")","v":""},{"$f":"IF(DataLog!$C1366=\"Log value\",DataLog!AL1366,\"\")","v":""},{"$f":"IF(DataLog!$C1366=\"Log value\",DataLog!AM1366,\"\")","v":""}]
[null,null,null,null,null,null,{"$f":"IF(DataLog!$C1367=\"Log value\",DataLog!D1367&\"_\"&TEXT(DataLog!B1367,\"åååå-mm-dd\"),\"\")","v":""},{"$f":"IF(DataLog!$C1367=\"Log value\",DataLog!E1367,\"\")","v":""},{"$f":"IF(DataLog!$C1367=\"Log value\",DataLog!F1367,\"\")","v":""},{"$f":"IF(DataLog!$C1367=\"Log value\",DataLog!G1367,\"\")","v":""},{"$f":"IF(DataLog!$C1367=\"Log value\",DataLog!H1367,\"\")","v":""},{"$f":"IF(DataLog!$C1367=\"Log value\",DataLog!I1367,\"\")","v":""},{"$f":"IF(DataLog!$C1367=\"Log value\",DataLog!J1367,\"\")","v":""},{"$f":"IF(DataLog!$C1367=\"Log value\",DataLog!K1367,\"\")","v":""},{"$f":"IF(DataLog!$C1367=\"Log value\",DataLog!L1367,\"\")","v":""},{"$f":"IF(DataLog!$C1367=\"Log value\",DataLog!M1367,\"\")","v":""},{"$f":"IF(DataLog!$C1367=\"Log value\",DataLog!N1367,\"\")","v":""},{"$f":"IF(DataLog!$C1367=\"Log value\",DataLog!O1367,\"\")","v":""},{"$f":"IF(DataLog!$C1367=\"Log value\",DataLog!P1367,\"\")","v":""},{"$f":"IF(DataLog!$C1367=\"Log value\",DataLog!Q1367,\"\")","v":""},{"$f":"IF(DataLog!$C1367=\"Log value\",DataLog!R1367,\"\")","v":""},{"$f":"IF(DataLog!$C1367=\"Log value\",DataLog!S1367,\"\")","v":""},{"$f":"IF(DataLog!$C1367=\"Log value\",DataLog!T1367,\"\")","v":""},{"$f":"IF(DataLog!$C1367=\"Log value\",DataLog!U1367,\"\")","v":""},{"$f":"IF(DataLog!$C1367=\"Log value\",DataLog!V1367,\"\")","v":""},{"$f":"IF(DataLog!$C1367=\"Log value\",DataLog!W1367,\"\")","v":""},{"$f":"IF(DataLog!$C1367=\"Log value\",DataLog!X1367,\"\")","v":""},{"$f":"IF(DataLog!$C1367=\"Log value\",DataLog!Y1367,\"\")","v":""},{"$f":"IF(DataLog!$C1367=\"Log value\",DataLog!Z1367,\"\")","v":""},{"$f":"IF(DataLog!$C1367=\"Log value\",DataLog!AA1367,\"\")","v":""},{"$f":"IF(DataLog!$C1367=\"Log value\",DataLog!AB1367,\"\")","v":""},{"$f":"IF(DataLog!$C1367=\"Log value\",DataLog!AC1367,\"\")","v":""},{"$f":"IF(DataLog!$C1367=\"Log value\",DataLog!AD1367,\"\")","v":""},{"$f":"IF(DataLog!$C1367=\"Log value\",DataLog!AE1367,\"\")","v":""},{"$f":"IF(DataLog!$C1367=\"Log value\",DataLog!AF1367,\"\")","v":""},{"$f":"IF(DataLog!$C1367=\"Log value\",DataLog!AG1367,\"\")","v":""},{"$f":"IF(DataLog!$C1367=\"Log value\",DataLog!AH1367,\"\")","v":""},{"$f":"IF(DataLog!$C1367=\"Log value\",DataLog!AI1367,\"\")","v":""},{"$f":"IF(DataLog!$C1367=\"Log value\",DataLog!AJ1367,\"\")","v":""},{"$f":"IF(DataLog!$C1367=\"Log value\",DataLog!AK1367,\"\")","v":""},{"$f":"IF(DataLog!$C1367=\"Log value\",DataLog!AL1367,\"\")","v":""},{"$f":"IF(DataLog!$C1367=\"Log value\",DataLog!AM1367,\"\")","v":""}]
[null,null,null,null,null,null,{"$f":"IF(DataLog!$C1371=\"Log value\",DataLog!D1371&\"_\"&TEXT(DataLog!B1371,\"åååå-mm-dd\"),\"\")","v":""},{"$f":"IF(DataLog!$C1371=\"Log value\",DataLog!E1371,\"\")","v":""},{"$f":"IF(DataLog!$C1371=\"Log value\",DataLog!F1371,\"\")","v":""},{"$f":"IF(DataLog!$C1371=\"Log value\",DataLog!G1371,\"\")","v":""},{"$f":"IF(DataLog!$C1371=\"Log value\",DataLog!H1371,\"\")","v":""},{"$f":"IF(DataLog!$C1371=\"Log value\",DataLog!I1371,\"\")","v":""},{"$f":"IF(DataLog!$C1371=\"Log value\",DataLog!J1371,\"\")","v":""},{"$f":"IF(DataLog!$C1371=\"Log value\",DataLog!K1371,\"\")","v":""},{"$f":"IF(DataLog!$C1371=\"Log value\",DataLog!L1371,\"\")","v":""},{"$f":"IF(DataLog!$C1371=\"Log value\",DataLog!M1371,\"\")","v":""},{"$f":"IF(DataLog!$C1371=\"Log value\",DataLog!N1371,\"\")","v":""},{"$f":"IF(DataLog!$C1371=\"Log value\",DataLog!O1371,\"\")","v":""},{"$f":"IF(DataLog!$C1371=\"Log value\",DataLog!P1371,\"\")","v":""},{"$f":"IF(DataLog!$C1371=\"Log value\",DataLog!Q1371,\"\")","v":""},{"$f":"IF(DataLog!$C1371=\"Log value\",DataLog!R1371,\"\")","v":""},{"$f":"IF(DataLog!$C1371=\"Log value\",DataLog!S1371,\"\")","v":""},{"$f":"IF(DataLog!$C1371=\"Log value\",DataLog!T1371,\"\")","v":""},{"$f":"IF(DataLog!$C1371=\"Log value\",DataLog!U1371,\"\")","v":""},{"$f":"IF(DataLog!$C1371=\"Log value\",DataLog!V1371,\"\")","v":""},{"$f":"IF(DataLog!$C1371=\"Log value\",DataLog!W1371,\"\")","v":""},{"$f":"IF(DataLog!$C1371=\"Log value\",DataLog!X1371,\"\")","v":""},{"$f":"IF(DataLog!$C1371=\"Log value\",DataLog!Y1371,\"\")","v":""},{"$f":"IF(DataLog!$C1371=\"Log value\",DataLog!Z1371,\"\")","v":""},{"$f":"IF(DataLog!$C1371=\"Log value\",DataLog!AA1371,\"\")","v":""},{"$f":"IF(DataLog!$C1371=\"Log value\",DataLog!AB1371,\"\")","v":""},{"$f":"IF(DataLog!$C1371=\"Log value\",DataLog!AC1371,\"\")","v":""},{"$f":"IF(DataLog!$C1371=\"Log value\",DataLog!AD1371,\"\")","v":""},{"$f":"IF(DataLog!$C1371=\"Log value\",DataLog!AE1371,\"\")","v":""},{"$f":"IF(DataLog!$C1371=\"Log value\",DataLog!AF1371,\"\")","v":""},{"$f":"IF(DataLog!$C1371=\"Log value\",DataLog!AG1371,\"\")","v":""},{"$f":"IF(DataLog!$C1371=\"Log value\",DataLog!AH1371,\"\")","v":""},{"$f":"IF(DataLog!$C1371=\"Log value\",DataLog!AI1371,\"\")","v":""},{"$f":"IF(DataLog!$C1371=\"Log value\",DataLog!AJ1371,\"\")","v":""},{"$f":"IF(DataLog!$C1371=\"Log value\",DataLog!AK1371,\"\")","v":""},{"$f":"IF(DataLog!$C1371=\"Log value\",DataLog!AL1371,\"\")","v":""},{"$f":"IF(DataLog!$C1371=\"Log value\",DataLog!AM1371,\"\")","v":""}]
[null,null,null,null,null,null,{"$f":"IF(DataLog!$C1372=\"Log value\",DataLog!D1372&\"_\"&TEXT(DataLog!B1372,\"åååå-mm-dd\"),\"\")","v":""},{"$f":"IF(DataLog!$C1372=\"Log value\",DataLog!E1372,\"\")","v":""},{"$f":"IF(DataLog!$C1372=\"Log value\",DataLog!F1372,\"\")","v":""},{"$f":"IF(DataLog!$C1372=\"Log value\",DataLog!G1372,\"\")","v":""},{"$f":"IF(DataLog!$C1372=\"Log value\",DataLog!H1372,\"\")","v":""},{"$f":"IF(DataLog!$C1372=\"Log value\",DataLog!I1372,\"\")","v":""},{"$f":"IF(DataLog!$C1372=\"Log value\",DataLog!J1372,\"\")","v":""},{"$f":"IF(DataLog!$C1372=\"Log value\",DataLog!K1372,\"\")","v":""},{"$f":"IF(DataLog!$C1372=\"Log value\",DataLog!L1372,\"\")","v":""},{"$f":"IF(DataLog!$C1372=\"Log value\",DataLog!M1372,\"\")","v":""},{"$f":"IF(DataLog!$C1372=\"Log value\",DataLog!N1372,\"\")","v":""},{"$f":"IF(DataLog!$C1372=\"Log value\",DataLog!O1372,\"\")","v":""},{"$f":"IF(DataLog!$C1372=\"Log value\",DataLog!P1372,\"\")","v":""},{"$f":"IF(DataLog!$C1372=\"Log value\",DataLog!Q1372,\"\")","v":""},{"$f":"IF(DataLog!$C1372=\"Log value\",DataLog!R1372,\"\")","v":""},{"$f":"IF(DataLog!$C1372=\"Log value\",DataLog!S1372,\"\")","v":""},{"$f":"IF(DataLog!$C1372=\"Log value\",DataLog!T1372,\"\")","v":""},{"$f":"IF(DataLog!$C1372=\"Log value\",DataLog!U1372,\"\")","v":""},{"$f":"IF(DataLog!$C1372=\"Log value\",DataLog!V1372,\"\")","v":""},{"$f":"IF(DataLog!$C1372=\"Log value\",DataLog!W1372,\"\")","v":""},{"$f":"IF(DataLog!$C1372=\"Log value\",DataLog!X1372,\"\")","v":""},{"$f":"IF(DataLog!$C1372=\"Log value\",DataLog!Y1372,\"\")","v":""},{"$f":"IF(DataLog!$C1372=\"Log value\",DataLog!Z1372,\"\")","v":""},{"$f":"IF(DataLog!$C1372=\"Log value\",DataLog!AA1372,\"\")","v":""},{"$f":"IF(DataLog!$C1372=\"Log value\",DataLog!AB1372,\"\")","v":""},{"$f":"IF(DataLog!$C1372=\"Log value\",DataLog!AC1372,\"\")","v":""},{"$f":"IF(DataLog!$C1372=\"Log value\",DataLog!AD1372,\"\")","v":""},{"$f":"IF(DataLog!$C1372=\"Log value\",DataLog!AE1372,\"\")","v":""},{"$f":"IF(DataLog!$C1372=\"Log value\",DataLog!AF1372,\"\")","v":""},{"$f":"IF(DataLog!$C1372=\"Log value\",DataLog!AG1372,\"\")","v":""},{"$f":"IF(DataLog!$C1372=\"Log value\",DataLog!AH1372,\"\")","v":""},{"$f":"IF(DataLog!$C1372=\"Log value\",DataLog!AI1372,\"\")","v":""},{"$f":"IF(DataLog!$C1372=\"Log value\",DataLog!AJ1372,\"\")","v":""},{"$f":"IF(DataLog!$C1372=\"Log value\",DataLog!AK1372,\"\")","v":""},{"$f":"IF(DataLog!$C1372=\"Log value\",DataLog!AL1372,\"\")","v":""},{"$f":"IF(DataLog!$C1372=\"Log value\",DataLog!AM1372,\"\")","v":""}]
[null,null,null,null,null,null,{"$f":"IF(DataLog!$C1375=\"Log value\",DataLog!D1375&\"_\"&TEXT(DataLog!B1375,\"åååå-mm-dd\"),\"\")","v":""},{"$f":"IF(DataLog!$C1375=\"Log value\",DataLog!E1375,\"\")","v":""},{"$f":"IF(DataLog!$C1375=\"Log value\",DataLog!F1375,\"\")","v":""},{"$f":"IF(DataLog!$C1375=\"Log value\",DataLog!G1375,\"\")","v":""},{"$f":"IF(DataLog!$C1375=\"Log value\",DataLog!H1375,\"\")","v":""},{"$f":"IF(DataLog!$C1375=\"Log value\",DataLog!I1375,\"\")","v":""},{"$f":"IF(DataLog!$C1375=\"Log value\",DataLog!J1375,\"\")","v":""},{"$f":"IF(DataLog!$C1375=\"Log value\",DataLog!K1375,\"\")","v":""},{"$f":"IF(DataLog!$C1375=\"Log value\",DataLog!L1375,\"\")","v":""},{"$f":"IF(DataLog!$C1375=\"Log value\",DataLog!M1375,\"\")","v":""},{"$f":"IF(DataLog!$C1375=\"Log value\",DataLog!N1375,\"\")","v":""},{"$f":"IF(DataLog!$C1375=\"Log value\",DataLog!O1375,\"\")","v":""},{"$f":"IF(DataLog!$C1375=\"Log value\",DataLog!P1375,\"\")","v":""},{"$f":"IF(DataLog!$C1375=\"Log value\",DataLog!Q1375,\"\")","v":""},{"$f":"IF(DataLog!$C1375=\"Log value\",DataLog!R1375,\"\")","v":""},{"$f":"IF(DataLog!$C1375=\"Log value\",DataLog!S1375,\"\")","v":""},{"$f":"IF(DataLog!$C1375=\"Log value\",DataLog!T1375,\"\")","v":""},{"$f":"IF(DataLog!$C1375=\"Log value\",DataLog!U1375,\"\")","v":""},{"$f":"IF(DataLog!$C1375=\"Log value\",DataLog!V1375,\"\")","v":""},{"$f":"IF(DataLog!$C1375=\"Log value\",DataLog!W1375,\"\")","v":""},{"$f":"IF(DataLog!$C1375=\"Log value\",DataLog!X1375,\"\")","v":""},{"$f":"IF(DataLog!$C1375=\"Log value\",DataLog!Y1375,\"\")","v":""},{"$f":"IF(DataLog!$C1375=\"Log value\",DataLog!Z1375,\"\")","v":""},{"$f":"IF(DataLog!$C1375=\"Log value\",DataLog!AA1375,\"\")","v":""},{"$f":"IF(DataLog!$C1375=\"Log value\",DataLog!AB1375,\"\")","v":""},{"$f":"IF(DataLog!$C1375=\"Log value\",DataLog!AC1375,\"\")","v":""},{"$f":"IF(DataLog!$C1375=\"Log value\",DataLog!AD1375,\"\")","v":""},{"$f":"IF(DataLog!$C1375=\"Log value\",DataLog!AE1375,\"\")","v":""},{"$f":"IF(DataLog!$C1375=\"Log value\",DataLog!AF1375,\"\")","v":""},{"$f":"IF(DataLog!$C1375=\"Log value\",DataLog!AG1375,\"\")","v":""},{"$f":"IF(DataLog!$C1375=\"Log value\",DataLog!AH1375,\"\")","v":""},{"$f":"IF(DataLog!$C1375=\"Log value\",DataLog!AI1375,\"\")","v":""},{"$f":"IF(DataLog!$C1375=\"Log value\",DataLog!AJ1375,\"\")","v":""},{"$f":"IF(DataLog!$C1375=\"Log value\",DataLog!AK1375,\"\")","v":""},{"$f":"IF(DataLog!$C1375=\"Log value\",DataLog!AL1375,\"\")","v":""},{"$f":"IF(DataLog!$C1375=\"Log value\",DataLog!AM1375,\"\")","v":""}]
[null,null,null,null,null,null,{"$f":"IF(DataLog!$C1376=\"Log value\",DataLog!D1376&\"_\"&TEXT(DataLog!B1376,\"åååå-mm-dd\"),\"\")","v":""},{"$f":"IF(DataLog!$C1376=\"Log value\",DataLog!E1376,\"\")","v":""},{"$f":"IF(DataLog!$C1376=\"Log value\",DataLog!F1376,\"\")","v":""},{"$f":"IF(DataLog!$C1376=\"Log value\",DataLog!G1376,\"\")","v":""},{"$f":"IF(DataLog!$C1376=\"Log value\",DataLog!H1376,\"\")","v":""},{"$f":"IF(DataLog!$C1376=\"Log value\",DataLog!I1376,\"\")","v":""},{"$f":"IF(DataLog!$C1376=\"Log value\",DataLog!J1376,\"\")","v":""},{"$f":"IF(DataLog!$C1376=\"Log value\",DataLog!K1376,\"\")","v":""},{"$f":"IF(DataLog!$C1376=\"Log value\",DataLog!L1376,\"\")","v":""},{"$f":"IF(DataLog!$C1376=\"Log value\",DataLog!M1376,\"\")","v":""},{"$f":"IF(DataLog!$C1376=\"Log value\",DataLog!N1376,\"\")","v":""},{"$f":"IF(DataLog!$C1376=\"Log value\",DataLog!O1376,\"\")","v":""},{"$f":"IF(DataLog!$C1376=\"Log value\",DataLog!P1376,\"\")","v":""},{"$f":"IF(DataLog!$C1376=\"Log value\",DataLog!Q1376,\"\")","v":""},{"$f":"IF(DataLog!$C1376=\"Log value\",DataLog!R1376,\"\")","v":""},{"$f":"IF(DataLog!$C1376=\"Log value\",DataLog!S1376,\"\")","v":""},{"$f":"IF(DataLog!$C1376=\"Log value\",DataLog!T1376,\"\")","v":""},{"$f":"IF(DataLog!$C1376=\"Log value\",DataLog!U1376,\"\")","v":""},{"$f":"IF(DataLog!$C1376=\"Log value\",DataLog!V1376,\"\")","v":""},{"$f":"IF(DataLog!$C1376=\"Log value\",DataLog!W1376,\"\")","v":""},{"$f":"IF(DataLog!$C1376=\"Log value\",DataLog!X1376,\"\")","v":""},{"$f":"IF(DataLog!$C1376=\"Log value\",DataLog!Y1376,\"\")","v":""},{"$f":"IF(DataLog!$C1376=\"Log value\",DataLog!Z1376,\"\")","v":""},{"$f":"IF(DataLog!$C1376=\"Log value\",DataLog!AA1376,\"\")","v":""},{"$f":"IF(DataLog!$C1376=\"Log value\",DataLog!AB1376,\"\")","v":""},{"$f":"IF(DataLog!$C1376=\"Log value\",DataLog!AC1376,\"\")","v":""},{"$f":"IF(DataLog!$C1376=\"Log value\",DataLog!AD1376,\"\")","v":""},{"$f":"IF(DataLog!$C1376=\"Log value\",DataLog!AE1376,\"\")","v":""},{"$f":"IF(DataLog!$C1376=\"Log value\",DataLog!AF1376,\"\")","v":""},{"$f":"IF(DataLog!$C1376=\"Log value\",DataLog!AG1376,\"\")","v":""},{"$f":"IF(DataLog!$C1376=\"Log value\",DataLog!AH1376,\"\")","v":""},{"$f":"IF(DataLog!$C1376=\"Log value\",DataLog!AI1376,\"\")","v":""},{"$f":"IF(DataLog!$C1376=\"Log value\",DataLog!AJ1376,\"\")","v":""},{"$f":"IF(DataLog!$C1376=\"Log value\",DataLog!AK1376,\"\")","v":""},{"$f":"IF(DataLog!$C1376=\"Log value\",DataLog!AL1376,\"\")","v":""},{"$f":"IF(DataLog!$C1376=\"Log value\",DataLog!AM1376,\"\")","v":""}]
[null,null,null,null,null,null,{"$f":"IF(DataLog!$C1379=\"Log value\",DataLog!D1379&\"_\"&TEXT(DataLog!B1379,\"åååå-mm-dd\"),\"\")","v":""},{"$f":"IF(DataLog!$C1379=\"Log value\",DataLog!E1379,\"\")","v":""},{"$f":"IF(DataLog!$C1379=\"Log value\",DataLog!F1379,\"\")","v":""},{"$f":"IF(DataLog!$C1379=\"Log value\",DataLog!G1379,\"\")","v":""},{"$f":"IF(DataLog!$C1379=\"Log value\",DataLog!H1379,\"\")","v":""},{"$f":"IF(DataLog!$C1379=\"Log value\",DataLog!I1379,\"\")","v":""},{"$f":"IF(DataLog!$C1379=\"Log value\",DataLog!J1379,\"\")","v":""},{"$f":"IF(DataLog!$C1379=\"Log value\",DataLog!K1379,\"\")","v":""},{"$f":"IF(DataLog!$C1379=\"Log value\",DataLog!L1379,\"\")","v":""},{"$f":"IF(DataLog!$C1379=\"Log value\",DataLog!M1379,\"\")","v":""},{"$f":"IF(DataLog!$C1379=\"Log value\",DataLog!N1379,\"\")","v":""},{"$f":"IF(DataLog!$C1379=\"Log value\",DataLog!O1379,\"\")","v":""},{"$f":"IF(DataLog!$C1379=\"Log value\",DataLog!P1379,\"\")","v":""},{"$f":"IF(DataLog!$C1379=\"Log value\",DataLog!Q1379,\"\")","v":""},{"$f":"IF(DataLog!$C1379=\"Log value\",DataLog!R1379,\"\")","v":""},{"$f":"IF(DataLog!$C1379=\"Log value\",DataLog!S1379,\"\")","v":""},{"$f":"IF(DataLog!$C1379=\"Log value\",DataLog!T1379,\"\")","v":""},{"$f":"IF(DataLog!$C1379=\"Log value\",DataLog!U1379,\"\")","v":""},{"$f":"IF(DataLog!$C1379=\"Log value\",DataLog!V1379,\"\")","v":""},{"$f":"IF(DataLog!$C1379=\"Log value\",DataLog!W1379,\"\")","v":""},{"$f":"IF(DataLog!$C1379=\"Log value\",DataLog!X1379,\"\")","v":""},{"$f":"IF(DataLog!$C1379=\"Log value\",DataLog!Y1379,\"\")","v":""},{"$f":"IF(DataLog!$C1379=\"Log value\",DataLog!Z1379,\"\")","v":""},{"$f":"IF(DataLog!$C1379=\"Log value\",DataLog!AA1379,\"\")","v":""},{"$f":"IF(DataLog!$C1379=\"Log value\",DataLog!AB1379,\"\")","v":""},{"$f":"IF(DataLog!$C1379=\"Log value\",DataLog!AC1379,\"\")","v":""},{"$f":"IF(DataLog!$C1379=\"Log value\",DataLog!AD1379,\"\")","v":""},{"$f":"IF(DataLog!$C1379=\"Log value\",DataLog!AE1379,\"\")","v":""},{"$f":"IF(DataLog!$C1379=\"Log value\",DataLog!AF1379,\"\")","v":""},{"$f":"IF(DataLog!$C1379=\"Log value\",DataLog!AG1379,\"\")","v":""},{"$f":"IF(DataLog!$C1379=\"Log value\",DataLog!AH1379,\"\")","v":""},{"$f":"IF(DataLog!$C1379=\"Log value\",DataLog!AI1379,\"\")","v":""},{"$f":"IF(DataLog!$C1379=\"Log value\",DataLog!AJ1379,\"\")","v":""},{"$f":"IF(DataLog!$C1379=\"Log value\",DataLog!AK1379,\"\")","v":""},{"$f":"IF(DataLog!$C1379=\"Log value\",DataLog!AL1379,\"\")","v":""},{"$f":"IF(DataLog!$C1379=\"Log value\",DataLog!AM1379,\"\")","v":""}]
[null,null,null,null,null,null,{"$f":"IF(DataLog!$C1381=\"Log value\",DataLog!D1381&\"_\"&TEXT(DataLog!B1381,\"åååå-mm-dd\"),\"\")","v":""},{"$f":"IF(DataLog!$C1381=\"Log value\",DataLog!E1381,\"\")","v":""},{"$f":"IF(DataLog!$C1381=\"Log value\",DataLog!F1381,\"\")","v":""},{"$f":"IF(DataLog!$C1381=\"Log value\",DataLog!G1381,\"\")","v":""},{"$f":"IF(DataLog!$C1381=\"Log value\",DataLog!H1381,\"\")","v":""},{"$f":"IF(DataLog!$C1381=\"Log value\",DataLog!I1381,\"\")","v":""},{"$f":"IF(DataLog!$C1381=\"Log value\",DataLog!J1381,\"\")","v":""},{"$f":"IF(DataLog!$C1381=\"Log value\",DataLog!K1381,\"\")","v":""},{"$f":"IF(DataLog!$C1381=\"Log value\",DataLog!L1381,\"\")","v":""},{"$f":"IF(DataLog!$C1381=\"Log value\",DataLog!M1381,\"\")","v":""},{"$f":"IF(DataLog!$C1381=\"Log value\",DataLog!N1381,\"\")","v":""},{"$f":"IF(DataLog!$C1381=\"Log value\",DataLog!O1381,\"\")","v":""},{"$f":"IF(DataLog!$C1381=\"Log value\",DataLog!P1381,\"\")","v":""},{"$f":"IF(DataLog!$C1381=\"Log value\",DataLog!Q1381,\"\")","v":""},{"$f":"IF(DataLog!$C1381=\"Log value\",DataLog!R1381,\"\")","v":""},{"$f":"IF(DataLog!$C1381=\"Log value\",DataLog!S1381,\"\")","v":""},{"$f":"IF(DataLog!$C1381=\"Log value\",DataLog!T1381,\"\")","v":""},{"$f":"IF(DataLog!$C1381=\"Log value\",DataLog!U1381,\"\")","v":""},{"$f":"IF(DataLog!$C1381=\"Log value\",DataLog!V1381,\"\")","v":""},{"$f":"IF(DataLog!$C1381=\"Log value\",DataLog!W1381,\"\")","v":""},{"$f":"IF(DataLog!$C1381=\"Log value\",DataLog!X1381,\"\")","v":""},{"$f":"IF(DataLog!$C1381=\"Log value\",DataLog!Y1381,\"\")","v":""},{"$f":"IF(DataLog!$C1381=\"Log value\",DataLog!Z1381,\"\")","v":""},{"$f":"IF(DataLog!$C1381=\"Log value\",DataLog!AA1381,\"\")","v":""},{"$f":"IF(DataLog!$C1381=\"Log value\",DataLog!AB1381,\"\")","v":""},{"$f":"IF(DataLog!$C1381=\"Log value\",DataLog!AC1381,\"\")","v":""},{"$f":"IF(DataLog!$C1381=\"Log value\",DataLog!AD1381,\"\")","v":""},{"$f":"IF(DataLog!$C1381=\"Log value\",DataLog!AE1381,\"\")","v":""},{"$f":"IF(DataLog!$C1381=\"Log value\",DataLog!AF1381,\"\")","v":""},{"$f":"IF(DataLog!$C1381=\"Log value\",DataLog!AG1381,\"\")","v":""},{"$f":"IF(DataLog!$C1381=\"Log value\",DataLog!AH1381,\"\")","v":""},{"$f":"IF(DataLog!$C1381=\"Log value\",DataLog!AI1381,\"\")","v":""},{"$f":"IF(DataLog!$C1381=\"Log value\",DataLog!AJ1381,\"\")","v":""},{"$f":"IF(DataLog!$C1381=\"Log value\",DataLog!AK1381,\"\")","v":""},{"$f":"IF(DataLog!$C1381=\"Log value\",DataLog!AL1381,\"\")","v":""},{"$f":"IF(DataLog!$C1381=\"Log value\",DataLog!AM1381,\"\")","v":""}]
[null,null,null,null,null,null,{"$f":"IF(DataLog!$C1384=\"Log value\",DataLog!D1384&\"_\"&TEXT(DataLog!B1384,\"åååå-mm-dd\"),\"\")","v":""},{"$f":"IF(DataLog!$C1384=\"Log value\",DataLog!E1384,\"\")","v":""},{"$f":"IF(DataLog!$C1384=\"Log value\",DataLog!F1384,\"\")","v":""},{"$f":"IF(DataLog!$C1384=\"Log value\",DataLog!G1384,\"\")","v":""},{"$f":"IF(DataLog!$C1384=\"Log value\",DataLog!H1384,\"\")","v":""},{"$f":"IF(DataLog!$C1384=\"Log value\",DataLog!I1384,\"\")","v":""},{"$f":"IF(DataLog!$C1384=\"Log value\",DataLog!J1384,\"\")","v":""},{"$f":"IF(DataLog!$C1384=\"Log value\",DataLog!K1384,\"\")","v":""},{"$f":"IF(DataLog!$C1384=\"Log value\",DataLog!L1384,\"\")","v":""},{"$f":"IF(DataLog!$C1384=\"Log value\",DataLog!M1384,\"\")","v":""},{"$f":"IF(DataLog!$C1384=\"Log value\",DataLog!N1384,\"\")","v":""},{"$f":"IF(DataLog!$C1384=\"Log value\",DataLog!O1384,\"\")","v":""},{"$f":"IF(DataLog!$C1384=\"Log value\",DataLog!P1384,\"\")","v":""},{"$f":"IF(DataLog!$C1384=\"Log value\",DataLog!Q1384,\"\")","v":""},{"$f":"IF(DataLog!$C1384=\"Log value\",DataLog!R1384,\"\")","v":""},{"$f":"IF(DataLog!$C1384=\"Log value\",DataLog!S1384,\"\")","v":""},{"$f":"IF(DataLog!$C1384=\"Log value\",DataLog!T1384,\"\")","v":""},{"$f":"IF(DataLog!$C1384=\"Log value\",DataLog!U1384,\"\")","v":""},{"$f":"IF(DataLog!$C1384=\"Log value\",DataLog!V1384,\"\")","v":""},{"$f":"IF(DataLog!$C1384=\"Log value\",DataLog!W1384,\"\")","v":""},{"$f":"IF(DataLog!$C1384=\"Log value\",DataLog!X1384,\"\")","v":""},{"$f":"IF(DataLog!$C1384=\"Log value\",DataLog!Y1384,\"\")","v":""},{"$f":"IF(DataLog!$C1384=\"Log value\",DataLog!Z1384,\"\")","v":""},{"$f":"IF(DataLog!$C1384=\"Log value\",DataLog!AA1384,\"\")","v":""},{"$f":"IF(DataLog!$C1384=\"Log value\",DataLog!AB1384,\"\")","v":""},{"$f":"IF(DataLog!$C1384=\"Log value\",DataLog!AC1384,\"\")","v":""},{"$f":"IF(DataLog!$C1384=\"Log value\",DataLog!AD1384,\"\")","v":""},{"$f":"IF(DataLog!$C1384=\"Log value\",DataLog!AE1384,\"\")","v":""},{"$f":"IF(DataLog!$C1384=\"Log value\",DataLog!AF1384,\"\")","v":""},{"$f":"IF(DataLog!$C1384=\"Log value\",DataLog!AG1384,\"\")","v":""},{"$f":"IF(DataLog!$C1384=\"Log value\",DataLog!AH1384,\"\")","v":""},{"$f":"IF(DataLog!$C1384=\"Log value\",DataLog!AI1384,\"\")","v":""},{"$f":"IF(DataLog!$C1384=\"Log value\",DataLog!AJ1384,\"\")","v":""},{"$f":"IF(DataLog!$C1384=\"Log value\",DataLog!AK1384,\"\")","v":""},{"$f":"IF(DataLog!$C1384=\"Log value\",DataLog!AL1384,\"\")","v":""},{"$f":"IF(DataLog!$C1384=\"Log value\",DataLog!AM1384,\"\")","v":""}]
[null,null,null,null,null,null,{"$f":"IF(DataLog!$C1385=\"Log value\",DataLog!D1385&\"_\"&TEXT(DataLog!B1385,\"åååå-mm-dd\"),\"\")","v":""},{"$f":"IF(DataLog!$C1385=\"Log value\",DataLog!E1385,\"\")","v":""},{"$f":"IF(DataLog!$C1385=\"Log value\",DataLog!F1385,\"\")","v":""},{"$f":"IF(DataLog!$C1385=\"Log value\",DataLog!G1385,\"\")","v":""},{"$f":"IF(DataLog!$C1385=\"Log value\",DataLog!H1385,\"\")","v":""},{"$f":"IF(DataLog!$C1385=\"Log value\",DataLog!I1385,\"\")","v":""},{"$f":"IF(DataLog!$C1385=\"Log value\",DataLog!J1385,\"\")","v":""},{"$f":"IF(DataLog!$C1385=\"Log value\",DataLog!K1385,\"\")","v":""},{"$f":"IF(DataLog!$C1385=\"Log value\",DataLog!L1385,\"\")","v":""},{"$f":"IF(DataLog!$C1385=\"Log value\",DataLog!M1385,\"\")","v":""},{"$f":"IF(DataLog!$C1385=\"Log value\",DataLog!N1385,\"\")","v":""},{"$f":"IF(DataLog!$C1385=\"Log value\",DataLog!O1385,\"\")","v":""},{"$f":"IF(DataLog!$C1385=\"Log value\",DataLog!P1385,\"\")","v":""},{"$f":"IF(DataLog!$C1385=\"Log value\",DataLog!Q1385,\"\")","v":""},{"$f":"IF(DataLog!$C1385=\"Log value\",DataLog!R1385,\"\")","v":""},{"$f":"IF(DataLog!$C1385=\"Log value\",DataLog!S1385,\"\")","v":""},{"$f":"IF(DataLog!$C1385=\"Log value\",DataLog!T1385,\"\")","v":""},{"$f":"IF(DataLog!$C1385=\"Log value\",DataLog!U1385,\"\")","v":""},{"$f":"IF(DataLog!$C1385=\"Log value\",DataLog!V1385,\"\")","v":""},{"$f":"IF(DataLog!$C1385=\"Log value\",DataLog!W1385,\"\")","v":""},{"$f":"IF(DataLog!$C1385=\"Log value\",DataLog!X1385,\"\")","v":""},{"$f":"IF(DataLog!$C1385=\"Log value\",DataLog!Y1385,\"\")","v":""},{"$f":"IF(DataLog!$C1385=\"Log value\",DataLog!Z1385,\"\")","v":""},{"$f":"IF(DataLog!$C1385=\"Log value\",DataLog!AA1385,\"\")","v":""},{"$f":"IF(DataLog!$C1385=\"Log value\",DataLog!AB1385,\"\")","v":""},{"$f":"IF(DataLog!$C1385=\"Log value\",DataLog!AC1385,\"\")","v":""},{"$f":"IF(DataLog!$C1385=\"Log value\",DataLog!AD1385,\"\")","v":""},{"$f":"IF(DataLog!$C1385=\"Log value\",DataLog!AE1385,\"\")","v":""},{"$f":"IF(DataLog!$C1385=\"Log value\",DataLog!AF1385,\"\")","v":""},{"$f":"IF(DataLog!$C1385=\"Log value\",DataLog!AG1385,\"\")","v":""},{"$f":"IF(DataLog!$C1385=\"Log value\",DataLog!AH1385,\"\")","v":""},{"$f":"IF(DataLog!$C1385=\"Log value\",DataLog!AI1385,\"\")","v":""},{"$f":"IF(DataLog!$C1385=\"Log value\",DataLog!AJ1385,\"\")","v":""},{"$f":"IF(DataLog!$C1385=\"Log value\",DataLog!AK1385,\"\")","v":""},{"$f":"IF(DataLog!$C1385=\"Log value\",DataLog!AL1385,\"\")","v":""},{"$f":"IF(DataLog!$C1385=\"Log value\",DataLog!AM1385,\"\")","v":""}]
[null,null,null,null,null,null,{"$f":"IF(DataLog!$C1387=\"Log value\",DataLog!D1387&\"_\"&TEXT(DataLog!B1387,\"åååå-mm-dd\"),\"\")","v":""},{"$f":"IF(DataLog!$C1387=\"Log value\",DataLog!E1387,\"\")","v":""},{"$f":"IF(DataLog!$C1387=\"Log value\",DataLog!F1387,\"\")","v":""},{"$f":"IF(DataLog!$C1387=\"Log value\",DataLog!G1387,\"\")","v":""},{"$f":"IF(DataLog!$C1387=\"Log value\",DataLog!H1387,\"\")","v":""},{"$f":"IF(DataLog!$C1387=\"Log value\",DataLog!I1387,\"\")","v":""},{"$f":"IF(DataLog!$C1387=\"Log value\",DataLog!J1387,\"\")","v":""},{"$f":"IF(DataLog!$C1387=\"Log value\",DataLog!K1387,\"\")","v":""},{"$f":"IF(DataLog!$C1387=\"Log value\",DataLog!L1387,\"\")","v":""},{"$f":"IF(DataLog!$C1387=\"Log value\",DataLog!M1387,\"\")","v":""},{"$f":"IF(DataLog!$C1387=\"Log value\",DataLog!N1387,\"\")","v":""},{"$f":"IF(DataLog!$C1387=\"Log value\",DataLog!O1387,\"\")","v":""},{"$f":"IF(DataLog!$C1387=\"Log value\",DataLog!P1387,\"\")","v":""},{"$f":"IF(DataLog!$C1387=\"Log value\",DataLog!Q1387,\"\")","v":""},{"$f":"IF(DataLog!$C1387=\"Log value\",DataLog!R1387,\"\")","v":""},{"$f":"IF(DataLog!$C1387=\"Log value\",DataLog!S1387,\"\")","v":""},{"$f":"IF(DataLog!$C1387=\"Log value\",DataLog!T1387,\"\")","v":""},{"$f":"IF(DataLog!$C1387=\"Log value\",DataLog!U1387,\"\")","v":""},{"$f":"IF(DataLog!$C1387=\"Log value\",DataLog!V1387,\"\")","v":""},{"$f":"IF(DataLog!$C1387=\"Log value\",DataLog!W1387,\"\")","v":""},{"$f":"IF(DataLog!$C1387=\"Log value\",DataLog!X1387,\"\")","v":""},{"$f":"IF(DataLog!$C1387=\"Log value\",DataLog!Y1387,\"\")","v":""},{"$f":"IF(DataLog!$C1387=\"Log value\",DataLog!Z1387,\"\")","v":""},{"$f":"IF(DataLog!$C1387=\"Log value\",DataLog!AA1387,\"\")","v":""},{"$f":"IF(DataLog!$C1387=\"Log value\",DataLog!AB1387,\"\")","v":""},{"$f":"IF(DataLog!$C1387=\"Log value\",DataLog!AC1387,\"\")","v":""},{"$f":"IF(DataLog!$C1387=\"Log value\",DataLog!AD1387,\"\")","v":""},{"$f":"IF(DataLog!$C1387=\"Log value\",DataLog!AE1387,\"\")","v":""},{"$f":"IF(DataLog!$C1387=\"Log value\",DataLog!AF1387,\"\")","v":""},{"$f":"IF(DataLog!$C1387=\"Log value\",DataLog!AG1387,\"\")","v":""},{"$f":"IF(DataLog!$C1387=\"Log value\",DataLog!AH1387,\"\")","v":""},{"$f":"IF(DataLog!$C1387=\"Log value\",DataLog!AI1387,\"\")","v":""},{"$f":"IF(DataLog!$C1387=\"Log value\",DataLog!AJ1387,\"\")","v":""},{"$f":"IF(DataLog!$C1387=\"Log value\",DataLog!AK1387,\"\")","v":""},{"$f":"IF(DataLog!$C1387=\"Log value\",DataLog!AL1387,\"\")","v":""},{"$f":"IF(DataLog!$C1387=\"Log value\",DataLog!AM1387,\"\")","v":""}]
[null,null,null,null,null,null,{"$f":"IF(DataLog!$C1390=\"Log value\",DataLog!D1390&\"_\"&TEXT(DataLog!B1390,\"åååå-mm-dd\"),\"\")","v":""},{"$f":"IF(DataLog!$C1390=\"Log value\",DataLog!E1390,\"\")","v":""},{"$f":"IF(DataLog!$C1390=\"Log value\",DataLog!F1390,\"\")","v":""},{"$f":"IF(DataLog!$C1390=\"Log value\",DataLog!G1390,\"\")","v":""},{"$f":"IF(DataLog!$C1390=\"Log value\",DataLog!H1390,\"\")","v":""},{"$f":"IF(DataLog!$C1390=\"Log value\",DataLog!I1390,\"\")","v":""},{"$f":"IF(DataLog!$C1390=\"Log value\",DataLog!J1390,\"\")","v":""},{"$f":"IF(DataLog!$C1390=\"Log value\",DataLog!K1390,\"\")","v":""},{"$f":"IF(DataLog!$C1390=\"Log value\",DataLog!L1390,\"\")","v":""},{"$f":"IF(DataLog!$C1390=\"Log value\",DataLog!M1390,\"\")","v":""},{"$f":"IF(DataLog!$C1390=\"Log value\",DataLog!N1390,\"\")","v":""},{"$f":"IF(DataLog!$C1390=\"Log value\",DataLog!O1390,\"\")","v":""},{"$f":"IF(DataLog!$C1390=\"Log value\",DataLog!P1390,\"\")","v":""},{"$f":"IF(DataLog!$C1390=\"Log value\",DataLog!Q1390,\"\")","v":""},{"$f":"IF(DataLog!$C1390=\"Log value\",DataLog!R1390,\"\")","v":""},{"$f":"IF(DataLog!$C1390=\"Log value\",DataLog!S1390,\"\")","v":""},{"$f":"IF(DataLog!$C1390=\"Log value\",DataLog!T1390,\"\")","v":""},{"$f":"IF(DataLog!$C1390=\"Log value\",DataLog!U1390,\"\")","v":""},{"$f":"IF(DataLog!$C1390=\"Log value\",DataLog!V1390,\"\")","v":""},{"$f":"IF(DataLog!$C1390=\"Log value\",DataLog!W1390,\"\")","v":""},{"$f":"IF(DataLog!$C1390=\"Log value\",DataLog!X1390,\"\")","v":""},{"$f":"IF(DataLog!$C1390=\"Log value\",DataLog!Y1390,\"\")","v":""},{"$f":"IF(DataLog!$C1390=\"Log value\",DataLog!Z1390,\"\")","v":""},{"$f":"IF(DataLog!$C1390=\"Log value\",DataLog!AA1390,\"\")","v":""},{"$f":"IF(DataLog!$C1390=\"Log value\",DataLog!AB1390,\"\")","v":""},{"$f":"IF(DataLog!$C1390=\"Log value\",DataLog!AC1390,\"\")","v":""},{"$f":"IF(DataLog!$C1390=\"Log value\",DataLog!AD1390,\"\")","v":""},{"$f":"IF(DataLog!$C1390=\"Log value\",DataLog!AE1390,\"\")","v":""},{"$f":"IF(DataLog!$C1390=\"Log value\",DataLog!AF1390,\"\")","v":""},{"$f":"IF(DataLog!$C1390=\"Log value\",DataLog!AG1390,\"\")","v":""},{"$f":"IF(DataLog!$C1390=\"Log value\",DataLog!AH1390,\"\")","v":""},{"$f":"IF(DataLog!$C1390=\"Log value\",DataLog!AI1390,\"\")","v":""},{"$f":"IF(DataLog!$C1390=\"Log value\",DataLog!AJ1390,\"\")","v":""},{"$f":"IF(DataLog!$C1390=\"Log value\",DataLog!AK1390,\"\")","v":""},{"$f":"IF(DataLog!$C1390=\"Log value\",DataLog!AL1390,\"\")","v":""},{"$f":"IF(DataLog!$C1390=\"Log value\",DataLog!AM1390,\"\")","v":""}]
[null,null,null,null,null,null,{"$f":"IF(DataLog!$C1393=\"Log value\",DataLog!D1393&\"_\"&TEXT(DataLog!B1393,\"åååå-mm-dd\"),\"\")","v":""},{"$f":"IF(DataLog!$C1393=\"Log value\",DataLog!E1393,\"\")","v":""},{"$f":"IF(DataLog!$C1393=\"Log value\",DataLog!F1393,\"\")","v":""},{"$f":"IF(DataLog!$C1393=\"Log value\",DataLog!G1393,\"\")","v":""},{"$f":"IF(DataLog!$C1393=\"Log value\",DataLog!H1393,\"\")","v":""},{"$f":"IF(DataLog!$C1393=\"Log value\",DataLog!I1393,\"\")","v":""},{"$f":"IF(DataLog!$C1393=\"Log value\",DataLog!J1393,\"\")","v":""},{"$f":"IF(DataLog!$C1393=\"Log value\",DataLog!K1393,\"\")","v":""},{"$f":"IF(DataLog!$C1393=\"Log value\",DataLog!L1393,\"\")","v":""},{"$f":"IF(DataLog!$C1393=\"Log value\",DataLog!M1393,\"\")","v":""},{"$f":"IF(DataLog!$C1393=\"Log value\",DataLog!N1393,\"\")","v":""},{"$f":"IF(DataLog!$C1393=\"Log value\",DataLog!O1393,\"\")","v":""},{"$f":"IF(DataLog!$C1393=\"Log value\",DataLog!P1393,\"\")","v":""},{"$f":"IF(DataLog!$C1393=\"Log value\",DataLog!Q1393,\"\")","v":""},{"$f":"IF(DataLog!$C1393=\"Log value\",DataLog!R1393,\"\")","v":""},{"$f":"IF(DataLog!$C1393=\"Log value\",DataLog!S1393,\"\")","v":""},{"$f":"IF(DataLog!$C1393=\"Log value\",DataLog!T1393,\"\")","v":""},{"$f":"IF(DataLog!$C1393=\"Log value\",DataLog!U1393,\"\")","v":""},{"$f":"IF(DataLog!$C1393=\"Log value\",DataLog!V1393,\"\")","v":""},{"$f":"IF(DataLog!$C1393=\"Log value\",DataLog!W1393,\"\")","v":""},{"$f":"IF(DataLog!$C1393=\"Log value\",DataLog!X1393,\"\")","v":""},{"$f":"IF(DataLog!$C1393=\"Log value\",DataLog!Y1393,\"\")","v":""},{"$f":"IF(DataLog!$C1393=\"Log value\",DataLog!Z1393,\"\")","v":""},{"$f":"IF(DataLog!$C1393=\"Log value\",DataLog!AA1393,\"\")","v":""},{"$f":"IF(DataLog!$C1393=\"Log value\",DataLog!AB1393,\"\")","v":""},{"$f":"IF(DataLog!$C1393=\"Log value\",DataLog!AC1393,\"\")","v":""},{"$f":"IF(DataLog!$C1393=\"Log value\",DataLog!AD1393,\"\")","v":""},{"$f":"IF(DataLog!$C1393=\"Log value\",DataLog!AE1393,\"\")","v":""},{"$f":"IF(DataLog!$C1393=\"Log value\",DataLog!AF1393,\"\")","v":""},{"$f":"IF(DataLog!$C1393=\"Log value\",DataLog!AG1393,\"\")","v":""},{"$f":"IF(DataLog!$C1393=\"Log value\",DataLog!AH1393,\"\")","v":""},{"$f":"IF(DataLog!$C1393=\"Log value\",DataLog!AI1393,\"\")","v":""},{"$f":"IF(DataLog!$C1393=\"Log value\",DataLog!AJ1393,\"\")","v":""},{"$f":"IF(DataLog!$C1393=\"Log value\",DataLog!AK1393,\"\")","v":""},{"$f":"IF(DataLog!$C1393=\"Log value\",DataLog!AL1393,\"\")","v":""},{"$f":"IF(DataLog!$C1393=\"Log value\",DataLog!AM1393,\"\")","v":""}]
[null,null,null,null,null,null,{"$f":"IF(DataLog!$C1394=\"Log value\",DataLog!D1394&\"_\"&TEXT(DataLog!B1394,\"åååå-mm-dd\"),\"\")","v":""},{"$f":"IF(DataLog!$C1394=\"Log value\",DataLog!E1394,\"\")","v":""},{"$f":"IF(DataLog!$C1394=\"Log value\",DataLog!F1394,\"\")","v":""},{"$f":"IF(DataLog!$C1394=\"Log value\",DataLog!G1394,\"\")","v":""},{"$f":"IF(DataLog!$C1394=\"Log value\",DataLog!H1394,\"\")","v":""},{"$f":"IF(DataLog!$C1394=\"Log value\",DataLog!I1394,\"\")","v":""},{"$f":"IF(DataLog!$C1394=\"Log value\",DataLog!J1394,\"\")","v":""},{"$f":"IF(DataLog!$C1394=\"Log value\",DataLog!K1394,\"\")","v":""},{"$f":"IF(DataLog!$C1394=\"Log value\",DataLog!L1394,\"\")","v":""},{"$f":"IF(DataLog!$C1394=\"Log value\",DataLog!M1394,\"\")","v":""},{"$f":"IF(DataLog!$C1394=\"Log value\",DataLog!N1394,\"\")","v":""},{"$f":"IF(DataLog!$C1394=\"Log value\",DataLog!O1394,\"\")","v":""},{"$f":"IF(DataLog!$C1394=\"Log value\",DataLog!P1394,\"\")","v":""},{"$f":"IF(DataLog!$C1394=\"Log value\",DataLog!Q1394,\"\")","v":""},{"$f":"IF(DataLog!$C1394=\"Log value\",DataLog!R1394,\"\")","v":""},{"$f":"IF(DataLog!$C1394=\"Log value\",DataLog!S1394,\"\")","v":""},{"$f":"IF(DataLog!$C1394=\"Log value\",DataLog!T1394,\"\")","v":""},{"$f":"IF(DataLog!$C1394=\"Log value\",DataLog!U1394,\"\")","v":""},{"$f":"IF(DataLog!$C1394=\"Log value\",DataLog!V1394,\"\")","v":""},{"$f":"IF(DataLog!$C1394=\"Log value\",DataLog!W1394,\"\")","v":""},{"$f":"IF(DataLog!$C1394=\"Log value\",DataLog!X1394,\"\")","v":""},{"$f":"IF(DataLog!$C1394=\"Log value\",DataLog!Y1394,\"\")","v":""},{"$f":"IF(DataLog!$C1394=\"Log value\",DataLog!Z1394,\"\")","v":""},{"$f":"IF(DataLog!$C1394=\"Log value\",DataLog!AA1394,\"\")","v":""},{"$f":"IF(DataLog!$C1394=\"Log value\",DataLog!AB1394,\"\")","v":""},{"$f":"IF(DataLog!$C1394=\"Log value\",DataLog!AC1394,\"\")","v":""},{"$f":"IF(DataLog!$C1394=\"Log value\",DataLog!AD1394,\"\")","v":""},{"$f":"IF(DataLog!$C1394=\"Log value\",DataLog!AE1394,\"\")","v":""},{"$f":"IF(DataLog!$C1394=\"Log value\",DataLog!AF1394,\"\")","v":""},{"$f":"IF(DataLog!$C1394=\"Log value\",DataLog!AG1394,\"\")","v":""},{"$f":"IF(DataLog!$C1394=\"Log value\",DataLog!AH1394,\"\")","v":""},{"$f":"IF(DataLog!$C1394=\"Log value\",DataLog!AI1394,\"\")","v":""},{"$f":"IF(DataLog!$C1394=\"Log value\",DataLog!AJ1394,\"\")","v":""},{"$f":"IF(DataLog!$C1394=\"Log value\",DataLog!AK1394,\"\")","v":""},{"$f":"IF(DataLog!$C1394=\"Log value\",DataLog!AL1394,\"\")","v":""},{"$f":"IF(DataLog!$C1394=\"Log value\",DataLog!AM1394,\"\")","v":""}]
[null,null,null,null,null,null,{"$f":"IF(DataLog!$C1397=\"Log value\",DataLog!D1397&\"_\"&TEXT(DataLog!B1397,\"åååå-mm-dd\"),\"\")","v":""},{"$f":"IF(DataLog!$C1397=\"Log value\",DataLog!E1397,\"\")","v":""},{"$f":"IF(DataLog!$C1397=\"Log value\",DataLog!F1397,\"\")","v":""},{"$f":"IF(DataLog!$C1397=\"Log value\",DataLog!G1397,\"\")","v":""},{"$f":"IF(DataLog!$C1397=\"Log value\",DataLog!H1397,\"\")","v":""},{"$f":"IF(DataLog!$C1397=\"Log value\",DataLog!I1397,\"\")","v":""},{"$f":"IF(DataLog!$C1397=\"Log value\",DataLog!J1397,\"\")","v":""},{"$f":"IF(DataLog!$C1397=\"Log value\",DataLog!K1397,\"\")","v":""},{"$f":"IF(DataLog!$C1397=\"Log value\",DataLog!L1397,\"\")","v":""},{"$f":"IF(DataLog!$C1397=\"Log value\",DataLog!M1397,\"\")","v":""},{"$f":"IF(DataLog!$C1397=\"Log value\",DataLog!N1397,\"\")","v":""},{"$f":"IF(DataLog!$C1397=\"Log value\",DataLog!O1397,\"\")","v":""},{"$f":"IF(DataLog!$C1397=\"Log value\",DataLog!P1397,\"\")","v":""},{"$f":"IF(DataLog!$C1397=\"Log value\",DataLog!Q1397,\"\")","v":""},{"$f":"IF(DataLog!$C1397=\"Log value\",DataLog!R1397,\"\")","v":""},{"$f":"IF(DataLog!$C1397=\"Log value\",DataLog!S1397,\"\")","v":""},{"$f":"IF(DataLog!$C1397=\"Log value\",DataLog!T1397,\"\")","v":""},{"$f":"IF(DataLog!$C1397=\"Log value\",DataLog!U1397,\"\")","v":""},{"$f":"IF(DataLog!$C1397=\"Log value\",DataLog!V1397,\"\")","v":""},{"$f":"IF(DataLog!$C1397=\"Log value\",DataLog!W1397,\"\")","v":""},{"$f":"IF(DataLog!$C1397=\"Log value\",DataLog!X1397,\"\")","v":""},{"$f":"IF(DataLog!$C1397=\"Log value\",DataLog!Y1397,\"\")","v":""},{"$f":"IF(DataLog!$C1397=\"Log value\",DataLog!Z1397,\"\")","v":""},{"$f":"IF(DataLog!$C1397=\"Log value\",DataLog!AA1397,\"\")","v":""},{"$f":"IF(DataLog!$C1397=\"Log value\",DataLog!AB1397,\"\")","v":""},{"$f":"IF(DataLog!$C1397=\"Log value\",DataLog!AC1397,\"\")","v":""},{"$f":"IF(DataLog!$C1397=\"Log value\",DataLog!AD1397,\"\")","v":""},{"$f":"IF(DataLog!$C1397=\"Log value\",DataLog!AE1397,\"\")","v":""},{"$f":"IF(DataLog!$C1397=\"Log value\",DataLog!AF1397,\"\")","v":""},{"$f":"IF(DataLog!$C1397=\"Log value\",DataLog!AG1397,\"\")","v":""},{"$f":"IF(DataLog!$C1397=\"Log value\",DataLog!AH1397,\"\")","v":""},{"$f":"IF(DataLog!$C1397=\"Log value\",DataLog!AI1397,\"\")","v":""},{"$f":"IF(DataLog!$C1397=\"Log value\",DataLog!AJ1397,\"\")","v":""},{"$f":"IF(DataLog!$C1397=\"Log value\",DataLog!AK1397,\"\")","v":""},{"$f":"IF(DataLog!$C1397=\"Log value\",DataLog!AL1397,\"\")","v":""},{"$f":"IF(DataLog!$C1397=\"Log value\",DataLog!AM1397,\"\")","v":""}]
[null,null,null,null,null,null,{"$f":"IF(DataLog!$C1399=\"Log value\",DataLog!D1399&\"_\"&TEXT(DataLog!B1399,\"åååå-mm-dd\"),\"\")","v":""},{"$f":"IF(DataLog!$C1399=\"Log value\",DataLog!E1399,\"\")","v":""},{"$f":"IF(DataLog!$C1399=\"Log value\",DataLog!F1399,\"\")","v":""},{"$f":"IF(DataLog!$C1399=\"Log value\",DataLog!G1399,\"\")","v":""},{"$f":"IF(DataLog!$C1399=\"Log value\",DataLog!H1399,\"\")","v":""},{"$f":"IF(DataLog!$C1399=\"Log value\",DataLog!I1399,\"\")","v":""},{"$f":"IF(DataLog!$C1399=\"Log value\",DataLog!J1399,\"\")","v":""},{"$f":"IF(DataLog!$C1399=\"Log value\",DataLog!K1399,\"\")","v":""},{"$f":"IF(DataLog!$C1399=\"Log value\",DataLog!L1399,\"\")","v":""},{"$f":"IF(DataLog!$C1399=\"Log value\",DataLog!M1399,\"\")","v":""},{"$f":"IF(DataLog!$C1399=\"Log value\",DataLog!N1399,\"\")","v":""},{"$f":"IF(DataLog!$C1399=\"Log value\",DataLog!O1399,\"\")","v":""},{"$f":"IF(DataLog!$C1399=\"Log value\",DataLog!P1399,\"\")","v":""},{"$f":"IF(DataLog!$C1399=\"Log value\",DataLog!Q1399,\"\")","v":""},{"$f":"IF(DataLog!$C1399=\"Log value\",DataLog!R1399,\"\")","v":""},{"$f":"IF(DataLog!$C1399=\"Log value\",DataLog!S1399,\"\")","v":""},{"$f":"IF(DataLog!$C1399=\"Log value\",DataLog!T1399,\"\")","v":""},{"$f":"IF(DataLog!$C1399=\"Log value\",DataLog!U1399,\"\")","v":""},{"$f":"IF(DataLog!$C1399=\"Log value\",DataLog!V1399,\"\")","v":""},{"$f":"IF(DataLog!$C1399=\"Log value\",DataLog!W1399,\"\")","v":""},{"$f":"IF(DataLog!$C1399=\"Log value\",DataLog!X1399,\"\")","v":""},{"$f":"IF(DataLog!$C1399=\"Log value\",DataLog!Y1399,\"\")","v":""},{"$f":"IF(DataLog!$C1399=\"Log value\",DataLog!Z1399,\"\")","v":""},{"$f":"IF(DataLog!$C1399=\"Log value\",DataLog!AA1399,\"\")","v":""},{"$f":"IF(DataLog!$C1399=\"Log value\",DataLog!AB1399,\"\")","v":""},{"$f":"IF(DataLog!$C1399=\"Log value\",DataLog!AC1399,\"\")","v":""},{"$f":"IF(DataLog!$C1399=\"Log value\",DataLog!AD1399,\"\")","v":""},{"$f":"IF(DataLog!$C1399=\"Log value\",DataLog!AE1399,\"\")","v":""},{"$f":"IF(DataLog!$C1399=\"Log value\",DataLog!AF1399,\"\")","v":""},{"$f":"IF(DataLog!$C1399=\"Log value\",DataLog!AG1399,\"\")","v":""},{"$f":"IF(DataLog!$C1399=\"Log value\",DataLog!AH1399,\"\")","v":""},{"$f":"IF(DataLog!$C1399=\"Log value\",DataLog!AI1399,\"\")","v":""},{"$f":"IF(DataLog!$C1399=\"Log value\",DataLog!AJ1399,\"\")","v":""},{"$f":"IF(DataLog!$C1399=\"Log value\",DataLog!AK1399,\"\")","v":""},{"$f":"IF(DataLog!$C1399=\"Log value\",DataLog!AL1399,\"\")","v":""},{"$f":"IF(DataLog!$C1399=\"Log value\",DataLog!AM1399,\"\")","v":""}]
[null,null,null,null,null,null,{"$f":"IF(DataLog!$C1402=\"Log value\",DataLog!D1402&\"_\"&TEXT(DataLog!B1402,\"åååå-mm-dd\"),\"\")","v":""},{"$f":"IF(DataLog!$C1402=\"Log value\",DataLog!E1402,\"\")","v":""},{"$f":"IF(DataLog!$C1402=\"Log value\",DataLog!F1402,\"\")","v":""},{"$f":"IF(DataLog!$C1402=\"Log value\",DataLog!G1402,\"\")","v":""},{"$f":"IF(DataLog!$C1402=\"Log value\",DataLog!H1402,\"\")","v":""},{"$f":"IF(DataLog!$C1402=\"Log value\",DataLog!I1402,\"\")","v":""},{"$f":"IF(DataLog!$C1402=\"Log value\",DataLog!J1402,\"\")","v":""},{"$f":"IF(DataLog!$C1402=\"Log value\",DataLog!K1402,\"\")","v":""},{"$f":"IF(DataLog!$C1402=\"Log value\",DataLog!L1402,\"\")","v":""},{"$f":"IF(DataLog!$C1402=\"Log value\",DataLog!M1402,\"\")","v":""},{"$f":"IF(DataLog!$C1402=\"Log value\",DataLog!N1402,\"\")","v":""},{"$f":"IF(DataLog!$C1402=\"Log value\",DataLog!O1402,\"\")","v":""},{"$f":"IF(DataLog!$C1402=\"Log value\",DataLog!P1402,\"\")","v":""},{"$f":"IF(DataLog!$C1402=\"Log value\",DataLog!Q1402,\"\")","v":""},{"$f":"IF(DataLog!$C1402=\"Log value\",DataLog!R1402,\"\")","v":""},{"$f":"IF(DataLog!$C1402=\"Log value\",DataLog!S1402,\"\")","v":""},{"$f":"IF(DataLog!$C1402=\"Log value\",DataLog!T1402,\"\")","v":""},{"$f":"IF(DataLog!$C1402=\"Log value\",DataLog!U1402,\"\")","v":""},{"$f":"IF(DataLog!$C1402=\"Log value\",DataLog!V1402,\"\")","v":""},{"$f":"IF(DataLog!$C1402=\"Log value\",DataLog!W1402,\"\")","v":""},{"$f":"IF(DataLog!$C1402=\"Log value\",DataLog!X1402,\"\")","v":""},{"$f":"IF(DataLog!$C1402=\"Log value\",DataLog!Y1402,\"\")","v":""},{"$f":"IF(DataLog!$C1402=\"Log value\",DataLog!Z1402,\"\")","v":""},{"$f":"IF(DataLog!$C1402=\"Log value\",DataLog!AA1402,\"\")","v":""},{"$f":"IF(DataLog!$C1402=\"Log value\",DataLog!AB1402,\"\")","v":""},{"$f":"IF(DataLog!$C1402=\"Log value\",DataLog!AC1402,\"\")","v":""},{"$f":"IF(DataLog!$C1402=\"Log value\",DataLog!AD1402,\"\")","v":""},{"$f":"IF(DataLog!$C1402=\"Log value\",DataLog!AE1402,\"\")","v":""},{"$f":"IF(DataLog!$C1402=\"Log value\",DataLog!AF1402,\"\")","v":""},{"$f":"IF(DataLog!$C1402=\"Log value\",DataLog!AG1402,\"\")","v":""},{"$f":"IF(DataLog!$C1402=\"Log value\",DataLog!AH1402,\"\")","v":""},{"$f":"IF(DataLog!$C1402=\"Log value\",DataLog!AI1402,\"\")","v":""},{"$f":"IF(DataLog!$C1402=\"Log value\",DataLog!AJ1402,\"\")","v":""},{"$f":"IF(DataLog!$C1402=\"Log value\",DataLog!AK1402,\"\")","v":""},{"$f":"IF(DataLog!$C1402=\"Log value\",DataLog!AL1402,\"\")","v":""},{"$f":"IF(DataLog!$C1402=\"Log value\",DataLog!AM1402,\"\")","v":""}]
[null,null,null,null,null,null,{"$f":"IF(DataLog!$C1405=\"Log value\",DataLog!D1405&\"_\"&TEXT(DataLog!B1405,\"åååå-mm-dd\"),\"\")","v":""},{"$f":"IF(DataLog!$C1405=\"Log value\",DataLog!E1405,\"\")","v":""},{"$f":"IF(DataLog!$C1405=\"Log value\",DataLog!F1405,\"\")","v":""},{"$f":"IF(DataLog!$C1405=\"Log value\",DataLog!G1405,\"\")","v":""},{"$f":"IF(DataLog!$C1405=\"Log value\",DataLog!H1405,\"\")","v":""},{"$f":"IF(DataLog!$C1405=\"Log value\",DataLog!I1405,\"\")","v":""},{"$f":"IF(DataLog!$C1405=\"Log value\",DataLog!J1405,\"\")","v":""},{"$f":"IF(DataLog!$C1405=\"Log value\",DataLog!K1405,\"\")","v":""},{"$f":"IF(DataLog!$C1405=\"Log value\",DataLog!L1405,\"\")","v":""},{"$f":"IF(DataLog!$C1405=\"Log value\",DataLog!M1405,\"\")","v":""},{"$f":"IF(DataLog!$C1405=\"Log value\",DataLog!N1405,\"\")","v":""},{"$f":"IF(DataLog!$C1405=\"Log value\",DataLog!O1405,\"\")","v":""},{"$f":"IF(DataLog!$C1405=\"Log value\",DataLog!P1405,\"\")","v":""},{"$f":"IF(DataLog!$C1405=\"Log value\",DataLog!Q1405,\"\")","v":""},{"$f":"IF(DataLog!$C1405=\"Log value\",DataLog!R1405,\"\")","v":""},{"$f":"IF(DataLog!$C1405=\"Log value\",DataLog!S1405,\"\")","v":""},{"$f":"IF(DataLog!$C1405=\"Log value\",DataLog!T1405,\"\")","v":""},{"$f":"IF(DataLog!$C1405=\"Log value\",DataLog!U1405,\"\")","v":""},{"$f":"IF(DataLog!$C1405=\"Log value\",DataLog!V1405,\"\")","v":""},{"$f":"IF(DataLog!$C1405=\"Log value\",DataLog!W1405,\"\")","v":""},{"$f":"IF(DataLog!$C1405=\"Log value\",DataLog!X1405,\"\")","v":""},{"$f":"IF(DataLog!$C1405=\"Log value\",DataLog!Y1405,\"\")","v":""},{"$f":"IF(DataLog!$C1405=\"Log value\",DataLog!Z1405,\"\")","v":""},{"$f":"IF(DataLog!$C1405=\"Log value\",DataLog!AA1405,\"\")","v":""},{"$f":"IF(DataLog!$C1405=\"Log value\",DataLog!AB1405,\"\")","v":""},{"$f":"IF(DataLog!$C1405=\"Log value\",DataLog!AC1405,\"\")","v":""},{"$f":"IF(DataLog!$C1405=\"Log value\",DataLog!AD1405,\"\")","v":""},{"$f":"IF(DataLog!$C1405=\"Log value\",DataLog!AE1405,\"\")","v":""},{"$f":"IF(DataLog!$C1405=\"Log value\",DataLog!AF1405,\"\")","v":""},{"$f":"IF(DataLog!$C1405=\"Log value\",DataLog!AG1405,\"\")","v":""},{"$f":"IF(DataLog!$C1405=\"Log value\",DataLog!AH1405,\"\")","v":""},{"$f":"IF(DataLog!$C1405=\"Log value\",DataLog!AI1405,\"\")","v":""},{"$f":"IF(DataLog!$C1405=\"Log value\",DataLog!AJ1405,\"\")","v":""},{"$f":"IF(DataLog!$C1405=\"Log value\",DataLog!AK1405,\"\")","v":""},{"$f":"IF(DataLog!$C1405=\"Log value\",DataLog!AL1405,\"\")","v":""},{"$f":"IF(DataLog!$C1405=\"Log value\",DataLog!AM1405,\"\")","v":""}]
[null,null,null,null,null,null,{"$f":"IF(DataLog!$C1407=\"Log value\",DataLog!D1407&\"_\"&TEXT(DataLog!B1407,\"åååå-mm-dd\"),\"\")","v":""},{"$f":"IF(DataLog!$C1407=\"Log value\",DataLog!E1407,\"\")","v":""},{"$f":"IF(DataLog!$C1407=\"Log value\",DataLog!F1407,\"\")","v":""},{"$f":"IF(DataLog!$C1407=\"Log value\",DataLog!G1407,\"\")","v":""},{"$f":"IF(DataLog!$C1407=\"Log value\",DataLog!H1407,\"\")","v":""},{"$f":"IF(DataLog!$C1407=\"Log value\",DataLog!I1407,\"\")","v":""},{"$f":"IF(DataLog!$C1407=\"Log value\",DataLog!J1407,\"\")","v":""},{"$f":"IF(DataLog!$C1407=\"Log value\",DataLog!K1407,\"\")","v":""},{"$f":"IF(DataLog!$C1407=\"Log value\",DataLog!L1407,\"\")","v":""},{"$f":"IF(DataLog!$C1407=\"Log value\",DataLog!M1407,\"\")","v":""},{"$f":"IF(DataLog!$C1407=\"Log value\",DataLog!N1407,\"\")","v":""},{"$f":"IF(DataLog!$C1407=\"Log value\",DataLog!O1407,\"\")","v":""},{"$f":"IF(DataLog!$C1407=\"Log value\",DataLog!P1407,\"\")","v":""},{"$f":"IF(DataLog!$C1407=\"Log value\",DataLog!Q1407,\"\")","v":""},{"$f":"IF(DataLog!$C1407=\"Log value\",DataLog!R1407,\"\")","v":""},{"$f":"IF(DataLog!$C1407=\"Log value\",DataLog!S1407,\"\")","v":""},{"$f":"IF(DataLog!$C1407=\"Log value\",DataLog!T1407,\"\")","v":""},{"$f":"IF(DataLog!$C1407=\"Log value\",DataLog!U1407,\"\")","v":""},{"$f":"IF(DataLog!$C1407=\"Log value\",DataLog!V1407,\"\")","v":""},{"$f":"IF(DataLog!$C1407=\"Log value\",DataLog!W1407,\"\")","v":""},{"$f":"IF(DataLog!$C1407=\"Log value\",DataLog!X1407,\"\")","v":""},{"$f":"IF(DataLog!$C1407=\"Log value\",DataLog!Y1407,\"\")","v":""},{"$f":"IF(DataLog!$C1407=\"Log value\",DataLog!Z1407,\"\")","v":""},{"$f":"IF(DataLog!$C1407=\"Log value\",DataLog!AA1407,\"\")","v":""},{"$f":"IF(DataLog!$C1407=\"Log value\",DataLog!AB1407,\"\")","v":""},{"$f":"IF(DataLog!$C1407=\"Log value\",DataLog!AC1407,\"\")","v":""},{"$f":"IF(DataLog!$C1407=\"Log value\",DataLog!AD1407,\"\")","v":""},{"$f":"IF(DataLog!$C1407=\"Log value\",DataLog!AE1407,\"\")","v":""},{"$f":"IF(DataLog!$C1407=\"Log value\",DataLog!AF1407,\"\")","v":""},{"$f":"IF(DataLog!$C1407=\"Log value\",DataLog!AG1407,\"\")","v":""},{"$f":"IF(DataLog!$C1407=\"Log value\",DataLog!AH1407,\"\")","v":""},{"$f":"IF(DataLog!$C1407=\"Log value\",DataLog!AI1407,\"\")","v":""},{"$f":"IF(DataLog!$C1407=\"Log value\",DataLog!AJ1407,\"\")","v":""},{"$f":"IF(DataLog!$C1407=\"Log value\",DataLog!AK1407,\"\")","v":""},{"$f":"IF(DataLog!$C1407=\"Log value\",DataLog!AL1407,\"\")","v":""},{"$f":"IF(DataLog!$C1407=\"Log value\",DataLog!AM1407,\"\")","v":""}]
[null,null,null,null,null,null,{"$f":"IF(DataLog!$C1408=\"Log value\",DataLog!D1408&\"_\"&TEXT(DataLog!B1408,\"åååå-mm-dd\"),\"\")","v":""},{"$f":"IF(DataLog!$C1408=\"Log value\",DataLog!E1408,\"\")","v":""},{"$f":"IF(DataLog!$C1408=\"Log value\",DataLog!F1408,\"\")","v":""},{"$f":"IF(DataLog!$C1408=\"Log value\",DataLog!G1408,\"\")","v":""},{"$f":"IF(DataLog!$C1408=\"Log value\",DataLog!H1408,\"\")","v":""},{"$f":"IF(DataLog!$C1408=\"Log value\",DataLog!I1408,\"\")","v":""},{"$f":"IF(DataLog!$C1408=\"Log value\",DataLog!J1408,\"\")","v":""},{"$f":"IF(DataLog!$C1408=\"Log value\",DataLog!K1408,\"\")","v":""},{"$f":"IF(DataLog!$C1408=\"Log value\",DataLog!L1408,\"\")","v":""},{"$f":"IF(DataLog!$C1408=\"Log value\",DataLog!M1408,\"\")","v":""},{"$f":"IF(DataLog!$C1408=\"Log value\",DataLog!N1408,\"\")","v":""},{"$f":"IF(DataLog!$C1408=\"Log value\",DataLog!O1408,\"\")","v":""},{"$f":"IF(DataLog!$C1408=\"Log value\",DataLog!P1408,\"\")","v":""},{"$f":"IF(DataLog!$C1408=\"Log value\",DataLog!Q1408,\"\")","v":""},{"$f":"IF(DataLog!$C1408=\"Log value\",DataLog!R1408,\"\")","v":""},{"$f":"IF(DataLog!$C1408=\"Log value\",DataLog!S1408,\"\")","v":""},{"$f":"IF(DataLog!$C1408=\"Log value\",DataLog!T1408,\"\")","v":""},{"$f":"IF(DataLog!$C1408=\"Log value\",DataLog!U1408,\"\")","v":""},{"$f":"IF(DataLog!$C1408=\"Log value\",DataLog!V1408,\"\")","v":""},{"$f":"IF(DataLog!$C1408=\"Log value\",DataLog!W1408,\"\")","v":""},{"$f":"IF(DataLog!$C1408=\"Log value\",DataLog!X1408,\"\")","v":""},{"$f":"IF(DataLog!$C1408=\"Log value\",DataLog!Y1408,\"\")","v":""},{"$f":"IF(DataLog!$C1408=\"Log value\",DataLog!Z1408,\"\")","v":""},{"$f":"IF(DataLog!$C1408=\"Log value\",DataLog!AA1408,\"\")","v":""},{"$f":"IF(DataLog!$C1408=\"Log value\",DataLog!AB1408,\"\")","v":""},{"$f":"IF(DataLog!$C1408=\"Log value\",DataLog!AC1408,\"\")","v":""},{"$f":"IF(DataLog!$C1408=\"Log value\",DataLog!AD1408,\"\")","v":""},{"$f":"IF(DataLog!$C1408=\"Log value\",DataLog!AE1408,\"\")","v":""},{"$f":"IF(DataLog!$C1408=\"Log value\",DataLog!AF1408,\"\")","v":""},{"$f":"IF(DataLog!$C1408=\"Log value\",DataLog!AG1408,\"\")","v":""},{"$f":"IF(DataLog!$C1408=\"Log value\",DataLog!AH1408,\"\")","v":""},{"$f":"IF(DataLog!$C1408=\"Log value\",DataLog!AI1408,\"\")","v":""},{"$f":"IF(DataLog!$C1408=\"Log value\",DataLog!AJ1408,\"\")","v":""},{"$f":"IF(DataLog!$C1408=\"Log value\",DataLog!AK1408,\"\")","v":""},{"$f":"IF(DataLog!$C1408=\"Log value\",DataLog!AL1408,\"\")","v":""},{"$f":"IF(DataLog!$C1408=\"Log value\",DataLog!AM1408,\"\")","v":""}]
[null,null,null,null,null,null,{"$f":"IF(DataLog!$C1411=\"Log value\",DataLog!D1411&\"_\"&TEXT(DataLog!B1411,\"åååå-mm-dd\"),\"\")","v":""},{"$f":"IF(DataLog!$C1411=\"Log value\",DataLog!E1411,\"\")","v":""},{"$f":"IF(DataLog!$C1411=\"Log value\",DataLog!F1411,\"\")","v":""},{"$f":"IF(DataLog!$C1411=\"Log value\",DataLog!G1411,\"\")","v":""},{"$f":"IF(DataLog!$C1411=\"Log value\",DataLog!H1411,\"\")","v":""},{"$f":"IF(DataLog!$C1411=\"Log value\",DataLog!I1411,\"\")","v":""},{"$f":"IF(DataLog!$C1411=\"Log value\",DataLog!J1411,\"\")","v":""},{"$f":"IF(DataLog!$C1411=\"Log value\",DataLog!K1411,\"\")","v":""},{"$f":"IF(DataLog!$C1411=\"Log value\",DataLog!L1411,\"\")","v":""},{"$f":"IF(DataLog!$C1411=\"Log value\",DataLog!M1411,\"\")","v":""},{"$f":"IF(DataLog!$C1411=\"Log value\",DataLog!N1411,\"\")","v":""},{"$f":"IF(DataLog!$C1411=\"Log value\",DataLog!O1411,\"\")","v":""},{"$f":"IF(DataLog!$C1411=\"Log value\",DataLog!P1411,\"\")","v":""},{"$f":"IF(DataLog!$C1411=\"Log value\",DataLog!Q1411,\"\")","v":""},{"$f":"IF(DataLog!$C1411=\"Log value\",DataLog!R1411,\"\")","v":""},{"$f":"IF(DataLog!$C1411=\"Log value\",DataLog!S1411,\"\")","v":""},{"$f":"IF(DataLog!$C1411=\"Log value\",DataLog!T1411,\"\")","v":""},{"$f":"IF(DataLog!$C1411=\"Log value\",DataLog!U1411,\"\")","v":""},{"$f":"IF(DataLog!$C1411=\"Log value\",DataLog!V1411,\"\")","v":""},{"$f":"IF(DataLog!$C1411=\"Log value\",DataLog!W1411,\"\")","v":""},{"$f":"IF(DataLog!$C1411=\"Log value\",DataLog!X1411,\"\")","v":""},{"$f":"IF(DataLog!$C1411=\"Log value\",DataLog!Y1411,\"\")","v":""},{"$f":"IF(DataLog!$C1411=\"Log value\",DataLog!Z1411,\"\")","v":""},{"$f":"IF(DataLog!$C1411=\"Log value\",DataLog!AA1411,\"\")","v":""},{"$f":"IF(DataLog!$C1411=\"Log value\",DataLog!AB1411,\"\")","v":""},{"$f":"IF(DataLog!$C1411=\"Log value\",DataLog!AC1411,\"\")","v":""},{"$f":"IF(DataLog!$C1411=\"Log value\",DataLog!AD1411,\"\")","v":""},{"$f":"IF(DataLog!$C1411=\"Log value\",DataLog!AE1411,\"\")","v":""},{"$f":"IF(DataLog!$C1411=\"Log value\",DataLog!AF1411,\"\")","v":""},{"$f":"IF(DataLog!$C1411=\"Log value\",DataLog!AG1411,\"\")","v":""},{"$f":"IF(DataLog!$C1411=\"Log value\",DataLog!AH1411,\"\")","v":""},{"$f":"IF(DataLog!$C1411=\"Log value\",DataLog!AI1411,\"\")","v":""},{"$f":"IF(DataLog!$C1411=\"Log value\",DataLog!AJ1411,\"\")","v":""},{"$f":"IF(DataLog!$C1411=\"Log value\",DataLog!AK1411,\"\")","v":""},{"$f":"IF(DataLog!$C1411=\"Log value\",DataLog!AL1411,\"\")","v":""},{"$f":"IF(DataLog!$C1411=\"Log value\",DataLog!AM1411,\"\")","v":""}]
[null,null,null,null,null,null,{"$f":"IF(DataLog!$C1413=\"Log value\",DataLog!D1413&\"_\"&TEXT(DataLog!B1413,\"åååå-mm-dd\"),\"\")","v":""},{"$f":"IF(DataLog!$C1413=\"Log value\",DataLog!E1413,\"\")","v":""},{"$f":"IF(DataLog!$C1413=\"Log value\",DataLog!F1413,\"\")","v":""},{"$f":"IF(DataLog!$C1413=\"Log value\",DataLog!G1413,\"\")","v":""},{"$f":"IF(DataLog!$C1413=\"Log value\",DataLog!H1413,\"\")","v":""},{"$f":"IF(DataLog!$C1413=\"Log value\",DataLog!I1413,\"\")","v":""},{"$f":"IF(DataLog!$C1413=\"Log value\",DataLog!J1413,\"\")","v":""},{"$f":"IF(DataLog!$C1413=\"Log value\",DataLog!K1413,\"\")","v":""},{"$f":"IF(DataLog!$C1413=\"Log value\",DataLog!L1413,\"\")","v":""},{"$f":"IF(DataLog!$C1413=\"Log value\",DataLog!M1413,\"\")","v":""},{"$f":"IF(DataLog!$C1413=\"Log value\",DataLog!N1413,\"\")","v":""},{"$f":"IF(DataLog!$C1413=\"Log value\",DataLog!O1413,\"\")","v":""},{"$f":"IF(DataLog!$C1413=\"Log value\",DataLog!P1413,\"\")","v":""},{"$f":"IF(DataLog!$C1413=\"Log value\",DataLog!Q1413,\"\")","v":""},{"$f":"IF(DataLog!$C1413=\"Log value\",DataLog!R1413,\"\")","v":""},{"$f":"IF(DataLog!$C1413=\"Log value\",DataLog!S1413,\"\")","v":""},{"$f":"IF(DataLog!$C1413=\"Log value\",DataLog!T1413,\"\")","v":""},{"$f":"IF(DataLog!$C1413=\"Log value\",DataLog!U1413,\"\")","v":""},{"$f":"IF(DataLog!$C1413=\"Log value\",DataLog!V1413,\"\")","v":""},{"$f":"IF(DataLog!$C1413=\"Log value\",DataLog!W1413,\"\")","v":""},{"$f":"IF(DataLog!$C1413=\"Log value\",DataLog!X1413,\"\")","v":""},{"$f":"IF(DataLog!$C1413=\"Log value\",DataLog!Y1413,\"\")","v":""},{"$f":"IF(DataLog!$C1413=\"Log value\",DataLog!Z1413,\"\")","v":""},{"$f":"IF(DataLog!$C1413=\"Log value\",DataLog!AA1413,\"\")","v":""},{"$f":"IF(DataLog!$C1413=\"Log value\",DataLog!AB1413,\"\")","v":""},{"$f":"IF(DataLog!$C1413=\"Log value\",DataLog!AC1413,\"\")","v":""},{"$f":"IF(DataLog!$C1413=\"Log value\",DataLog!AD1413,\"\")","v":""},{"$f":"IF(DataLog!$C1413=\"Log value\",DataLog!AE1413,\"\")","v":""},{"$f":"IF(DataLog!$C1413=\"Log value\",DataLog!AF1413,\"\")","v":""},{"$f":"IF(DataLog!$C1413=\"Log value\",DataLog!AG1413,\"\")","v":""},{"$f":"IF(DataLog!$C1413=\"Log value\",DataLog!AH1413,\"\")","v":""},{"$f":"IF(DataLog!$C1413=\"Log value\",DataLog!AI1413,\"\")","v":""},{"$f":"IF(DataLog!$C1413=\"Log value\",DataLog!AJ1413,\"\")","v":""},{"$f":"IF(DataLog!$C1413=\"Log value\",DataLog!AK1413,\"\")","v":""},{"$f":"IF(DataLog!$C1413=\"Log value\",DataLog!AL1413,\"\")","v":""},{"$f":"IF(DataLog!$C1413=\"Log value\",DataLog!AM1413,\"\")","v":""}]
[null,null,null,null,null,null,{"$f":"IF(DataLog!$C1416=\"Log value\",DataLog!D1416&\"_\"&TEXT(DataLog!B1416,\"åååå-mm-dd\"),\"\")","v":""},{"$f":"IF(DataLog!$C1416=\"Log value\",DataLog!E1416,\"\")","v":""},{"$f":"IF(DataLog!$C1416=\"Log value\",DataLog!F1416,\"\")","v":""},{"$f":"IF(DataLog!$C1416=\"Log value\",DataLog!G1416,\"\")","v":""},{"$f":"IF(DataLog!$C1416=\"Log value\",DataLog!H1416,\"\")","v":""},{"$f":"IF(DataLog!$C1416=\"Log value\",DataLog!I1416,\"\")","v":""},{"$f":"IF(DataLog!$C1416=\"Log value\",DataLog!J1416,\"\")","v":""},{"$f":"IF(DataLog!$C1416=\"Log value\",DataLog!K1416,\"\")","v":""},{"$f":"IF(DataLog!$C1416=\"Log value\",DataLog!L1416,\"\")","v":""},{"$f":"IF(DataLog!$C1416=\"Log value\",DataLog!M1416,\"\")","v":""},{"$f":"IF(DataLog!$C1416=\"Log value\",DataLog!N1416,\"\")","v":""},{"$f":"IF(DataLog!$C1416=\"Log value\",DataLog!O1416,\"\")","v":""},{"$f":"IF(DataLog!$C1416=\"Log value\",DataLog!P1416,\"\")","v":""},{"$f":"IF(DataLog!$C1416=\"Log value\",DataLog!Q1416,\"\")","v":""},{"$f":"IF(DataLog!$C1416=\"Log value\",DataLog!R1416,\"\")","v":""},{"$f":"IF(DataLog!$C1416=\"Log value\",DataLog!S1416,\"\")","v":""},{"$f":"IF(DataLog!$C1416=\"Log value\",DataLog!T1416,\"\")","v":""},{"$f":"IF(DataLog!$C1416=\"Log value\",DataLog!U1416,\"\")","v":""},{"$f":"IF(DataLog!$C1416=\"Log value\",DataLog!V1416,\"\")","v":""},{"$f":"IF(DataLog!$C1416=\"Log value\",DataLog!W1416,\"\")","v":""},{"$f":"IF(DataLog!$C1416=\"Log value\",DataLog!X1416,\"\")","v":""},{"$f":"IF(DataLog!$C1416=\"Log value\",DataLog!Y1416,\"\")","v":""},{"$f":"IF(DataLog!$C1416=\"Log value\",DataLog!Z1416,\"\")","v":""},{"$f":"IF(DataLog!$C1416=\"Log value\",DataLog!AA1416,\"\")","v":""},{"$f":"IF(DataLog!$C1416=\"Log value\",DataLog!AB1416,\"\")","v":""},{"$f":"IF(DataLog!$C1416=\"Log value\",DataLog!AC1416,\"\")","v":""},{"$f":"IF(DataLog!$C1416=\"Log value\",DataLog!AD1416,\"\")","v":""},{"$f":"IF(DataLog!$C1416=\"Log value\",DataLog!AE1416,\"\")","v":""},{"$f":"IF(DataLog!$C1416=\"Log value\",DataLog!AF1416,\"\")","v":""},{"$f":"IF(DataLog!$C1416=\"Log value\",DataLog!AG1416,\"\")","v":""},{"$f":"IF(DataLog!$C1416=\"Log value\",DataLog!AH1416,\"\")","v":""},{"$f":"IF(DataLog!$C1416=\"Log value\",DataLog!AI1416,\"\")","v":""},{"$f":"IF(DataLog!$C1416=\"Log value\",DataLog!AJ1416,\"\")","v":""},{"$f":"IF(DataLog!$C1416=\"Log value\",DataLog!AK1416,\"\")","v":""},{"$f":"IF(DataLog!$C1416=\"Log value\",DataLog!AL1416,\"\")","v":""},{"$f":"IF(DataLog!$C1416=\"Log value\",DataLog!AM1416,\"\")","v":""}]
[null,null,null,null,null,null,{"$f":"IF(DataLog!$C1417=\"Log value\",DataLog!D1417&\"_\"&TEXT(DataLog!B1417,\"åååå-mm-dd\"),\"\")","v":""},{"$f":"IF(DataLog!$C1417=\"Log value\",DataLog!E1417,\"\")","v":""},{"$f":"IF(DataLog!$C1417=\"Log value\",DataLog!F1417,\"\")","v":""},{"$f":"IF(DataLog!$C1417=\"Log value\",DataLog!G1417,\"\")","v":""},{"$f":"IF(DataLog!$C1417=\"Log value\",DataLog!H1417,\"\")","v":""},{"$f":"IF(DataLog!$C1417=\"Log value\",DataLog!I1417,\"\")","v":""},{"$f":"IF(DataLog!$C1417=\"Log value\",DataLog!J1417,\"\")","v":""},{"$f":"IF(DataLog!$C1417=\"Log value\",DataLog!K1417,\"\")","v":""},{"$f":"IF(DataLog!$C1417=\"Log value\",DataLog!L1417,\"\")","v":""},{"$f":"IF(DataLog!$C1417=\"Log value\",DataLog!M1417,\"\")","v":""},{"$f":"IF(DataLog!$C1417=\"Log value\",DataLog!N1417,\"\")","v":""},{"$f":"IF(DataLog!$C1417=\"Log value\",DataLog!O1417,\"\")","v":""},{"$f":"IF(DataLog!$C1417=\"Log value\",DataLog!P1417,\"\")","v":""},{"$f":"IF(DataLog!$C1417=\"Log value\",DataLog!Q1417,\"\")","v":""},{"$f":"IF(DataLog!$C1417=\"Log value\",DataLog!R1417,\"\")","v":""},{"$f":"IF(DataLog!$C1417=\"Log value\",DataLog!S1417,\"\")","v":""},{"$f":"IF(DataLog!$C1417=\"Log value\",DataLog!T1417,\"\")","v":""},{"$f":"IF(DataLog!$C1417=\"Log value\",DataLog!U1417,\"\")","v":""},{"$f":"IF(DataLog!$C1417=\"Log value\",DataLog!V1417,\"\")","v":""},{"$f":"IF(DataLog!$C1417=\"Log value\",DataLog!W1417,\"\")","v":""},{"$f":"IF(DataLog!$C1417=\"Log value\",DataLog!X1417,\"\")","v":""},{"$f":"IF(DataLog!$C1417=\"Log value\",DataLog!Y1417,\"\")","v":""},{"$f":"IF(DataLog!$C1417=\"Log value\",DataLog!Z1417,\"\")","v":""},{"$f":"IF(DataLog!$C1417=\"Log value\",DataLog!AA1417,\"\")","v":""},{"$f":"IF(DataLog!$C1417=\"Log value\",DataLog!AB1417,\"\")","v":""},{"$f":"IF(DataLog!$C1417=\"Log value\",DataLog!AC1417,\"\")","v":""},{"$f":"IF(DataLog!$C1417=\"Log value\",DataLog!AD1417,\"\")","v":""},{"$f":"IF(DataLog!$C1417=\"Log value\",DataLog!AE1417,\"\")","v":""},{"$f":"IF(DataLog!$C1417=\"Log value\",DataLog!AF1417,\"\")","v":""},{"$f":"IF(DataLog!$C1417=\"Log value\",DataLog!AG1417,\"\")","v":""},{"$f":"IF(DataLog!$C1417=\"Log value\",DataLog!AH1417,\"\")","v":""},{"$f":"IF(DataLog!$C1417=\"Log value\",DataLog!AI1417,\"\")","v":""},{"$f":"IF(DataLog!$C1417=\"Log value\",DataLog!AJ1417,\"\")","v":""},{"$f":"IF(DataLog!$C1417=\"Log value\",DataLog!AK1417,\"\")","v":""},{"$f":"IF(DataLog!$C1417=\"Log value\",DataLog!AL1417,\"\")","v":""},{"$f":"IF(DataLog!$C1417=\"Log value\",DataLog!AM1417,\"\")","v":""}]
[null,null,null,null,null,null,{"$f":"IF(DataLog!$C1420=\"Log value\",DataLog!D1420&\"_\"&TEXT(DataLog!B1420,\"åååå-mm-dd\"),\"\")","v":""},{"$f":"IF(DataLog!$C1420=\"Log value\",DataLog!E1420,\"\")","v":""},{"$f":"IF(DataLog!$C1420=\"Log value\",DataLog!F1420,\"\")","v":""},{"$f":"IF(DataLog!$C1420=\"Log value\",DataLog!G1420,\"\")","v":""},{"$f":"IF(DataLog!$C1420=\"Log value\",DataLog!H1420,\"\")","v":""},{"$f":"IF(DataLog!$C1420=\"Log value\",DataLog!I1420,\"\")","v":""},{"$f":"IF(DataLog!$C1420=\"Log value\",DataLog!J1420,\"\")","v":""},{"$f":"IF(DataLog!$C1420=\"Log value\",DataLog!K1420,\"\")","v":""},{"$f":"IF(DataLog!$C1420=\"Log value\",DataLog!L1420,\"\")","v":""},{"$f":"IF(DataLog!$C1420=\"Log value\",DataLog!M1420,\"\")","v":""},{"$f":"IF(DataLog!$C1420=\"Log value\",DataLog!N1420,\"\")","v":""},{"$f":"IF(DataLog!$C1420=\"Log value\",DataLog!O1420,\"\")","v":""},{"$f":"IF(DataLog!$C1420=\"Log value\",DataLog!P1420,\"\")","v":""},{"$f":"IF(DataLog!$C1420=\"Log value\",DataLog!Q1420,\"\")","v":""},{"$f":"IF(DataLog!$C1420=\"Log value\",DataLog!R1420,\"\")","v":""},{"$f":"IF(DataLog!$C1420=\"Log value\",DataLog!S1420,\"\")","v":""},{"$f":"IF(DataLog!$C1420=\"Log value\",DataLog!T1420,\"\")","v":""},{"$f":"IF(DataLog!$C1420=\"Log value\",DataLog!U1420,\"\")","v":""},{"$f":"IF(DataLog!$C1420=\"Log value\",DataLog!V1420,\"\")","v":""},{"$f":"IF(DataLog!$C1420=\"Log value\",DataLog!W1420,\"\")","v":""},{"$f":"IF(DataLog!$C1420=\"Log value\",DataLog!X1420,\"\")","v":""},{"$f":"IF(DataLog!$C1420=\"Log value\",DataLog!Y1420,\"\")","v":""},{"$f":"IF(DataLog!$C1420=\"Log value\",DataLog!Z1420,\"\")","v":""},{"$f":"IF(DataLog!$C1420=\"Log value\",DataLog!AA1420,\"\")","v":""},{"$f":"IF(DataLog!$C1420=\"Log value\",DataLog!AB1420,\"\")","v":""},{"$f":"IF(DataLog!$C1420=\"Log value\",DataLog!AC1420,\"\")","v":""},{"$f":"IF(DataLog!$C1420=\"Log value\",DataLog!AD1420,\"\")","v":""},{"$f":"IF(DataLog!$C1420=\"Log value\",DataLog!AE1420,\"\")","v":""},{"$f":"IF(DataLog!$C1420=\"Log value\",DataLog!AF1420,\"\")","v":""},{"$f":"IF(DataLog!$C1420=\"Log value\",DataLog!AG1420,\"\")","v":""},{"$f":"IF(DataLog!$C1420=\"Log value\",DataLog!AH1420,\"\")","v":""},{"$f":"IF(DataLog!$C1420=\"Log value\",DataLog!AI1420,\"\")","v":""},{"$f":"IF(DataLog!$C1420=\"Log value\",DataLog!AJ1420,\"\")","v":""},{"$f":"IF(DataLog!$C1420=\"Log value\",DataLog!AK1420,\"\")","v":""},{"$f":"IF(DataLog!$C1420=\"Log value\",DataLog!AL1420,\"\")","v":""},{"$f":"IF(DataLog!$C1420=\"Log value\",DataLog!AM1420,\"\")","v":""}]
[null,null,null,null,null,null,{"$f":"IF(DataLog!$C1423=\"Log value\",DataLog!D1423&\"_\"&TEXT(DataLog!B1423,\"åååå-mm-dd\"),\"\")","v":""},{"$f":"IF(DataLog!$C1423=\"Log value\",DataLog!E1423,\"\")","v":""},{"$f":"IF(DataLog!$C1423=\"Log value\",DataLog!F1423,\"\")","v":""},{"$f":"IF(DataLog!$C1423=\"Log value\",DataLog!G1423,\"\")","v":""},{"$f":"IF(DataLog!$C1423=\"Log value\",DataLog!H1423,\"\")","v":""},{"$f":"IF(DataLog!$C1423=\"Log value\",DataLog!I1423,\"\")","v":""},{"$f":"IF(DataLog!$C1423=\"Log value\",DataLog!J1423,\"\")","v":""},{"$f":"IF(DataLog!$C1423=\"Log value\",DataLog!K1423,\"\")","v":""},{"$f":"IF(DataLog!$C1423=\"Log value\",DataLog!L1423,\"\")","v":""},{"$f":"IF(DataLog!$C1423=\"Log value\",DataLog!M1423,\"\")","v":""},{"$f":"IF(DataLog!$C1423=\"Log value\",DataLog!N1423,\"\")","v":""},{"$f":"IF(DataLog!$C1423=\"Log value\",DataLog!O1423,\"\")","v":""},{"$f":"IF(DataLog!$C1423=\"Log value\",DataLog!P1423,\"\")","v":""},{"$f":"IF(DataLog!$C1423=\"Log value\",DataLog!Q1423,\"\")","v":""},{"$f":"IF(DataLog!$C1423=\"Log value\",DataLog!R1423,\"\")","v":""},{"$f":"IF(DataLog!$C1423=\"Log value\",DataLog!S1423,\"\")","v":""},{"$f":"IF(DataLog!$C1423=\"Log value\",DataLog!T1423,\"\")","v":""},{"$f":"IF(DataLog!$C1423=\"Log value\",DataLog!U1423,\"\")","v":""},{"$f":"IF(DataLog!$C1423=\"Log value\",DataLog!V1423,\"\")","v":""},{"$f":"IF(DataLog!$C1423=\"Log value\",DataLog!W1423,\"\")","v":""},{"$f":"IF(DataLog!$C1423=\"Log value\",DataLog!X1423,\"\")","v":""},{"$f":"IF(DataLog!$C1423=\"Log value\",DataLog!Y1423,\"\")","v":""},{"$f":"IF(DataLog!$C1423=\"Log value\",DataLog!Z1423,\"\")","v":""},{"$f":"IF(DataLog!$C1423=\"Log value\",DataLog!AA1423,\"\")","v":""},{"$f":"IF(DataLog!$C1423=\"Log value\",DataLog!AB1423,\"\")","v":""},{"$f":"IF(DataLog!$C1423=\"Log value\",DataLog!AC1423,\"\")","v":""},{"$f":"IF(DataLog!$C1423=\"Log value\",DataLog!AD1423,\"\")","v":""},{"$f":"IF(DataLog!$C1423=\"Log value\",DataLog!AE1423,\"\")","v":""},{"$f":"IF(DataLog!$C1423=\"Log value\",DataLog!AF1423,\"\")","v":""},{"$f":"IF(DataLog!$C1423=\"Log value\",DataLog!AG1423,\"\")","v":""},{"$f":"IF(DataLog!$C1423=\"Log value\",DataLog!AH1423,\"\")","v":""},{"$f":"IF(DataLog!$C1423=\"Log value\",DataLog!AI1423,\"\")","v":""},{"$f":"IF(DataLog!$C1423=\"Log value\",DataLog!AJ1423,\"\")","v":""},{"$f":"IF(DataLog!$C1423=\"Log value\",DataLog!AK1423,\"\")","v":""},{"$f":"IF(DataLog!$C1423=\"Log value\",DataLog!AL1423,\"\")","v":""},{"$f":"IF(DataLog!$C1423=\"Log value\",DataLog!AM1423,\"\")","v":""}]
[null,null,null,null,null,null,{"$f":"IF(DataLog!$C1425=\"Log value\",DataLog!D1425&\"_\"&TEXT(DataLog!B1425,\"åååå-mm-dd\"),\"\")","v":""},{"$f":"IF(DataLog!$C1425=\"Log value\",DataLog!E1425,\"\")","v":""},{"$f":"IF(DataLog!$C1425=\"Log value\",DataLog!F1425,\"\")","v":""},{"$f":"IF(DataLog!$C1425=\"Log value\",DataLog!G1425,\"\")","v":""},{"$f":"IF(DataLog!$C1425=\"Log value\",DataLog!H1425,\"\")","v":""},{"$f":"IF(DataLog!$C1425=\"Log value\",DataLog!I1425,\"\")","v":""},{"$f":"IF(DataLog!$C1425=\"Log value\",DataLog!J1425,\"\")","v":""},{"$f":"IF(DataLog!$C1425=\"Log value\",DataLog!K1425,\"\")","v":""},{"$f":"IF(DataLog!$C1425=\"Log value\",DataLog!L1425,\"\")","v":""},{"$f":"IF(DataLog!$C1425=\"Log value\",DataLog!M1425,\"\")","v":""},{"$f":"IF(DataLog!$C1425=\"Log value\",DataLog!N1425,\"\")","v":""},{"$f":"IF(DataLog!$C1425=\"Log value\",DataLog!O1425,\"\")","v":""},{"$f":"IF(DataLog!$C1425=\"Log value\",DataLog!P1425,\"\")","v":""},{"$f":"IF(DataLog!$C1425=\"Log value\",DataLog!Q1425,\"\")","v":""},{"$f":"IF(DataLog!$C1425=\"Log value\",DataLog!R1425,\"\")","v":""},{"$f":"IF(DataLog!$C1425=\"Log value\",DataLog!S1425,\"\")","v":""},{"$f":"IF(DataLog!$C1425=\"Log value\",DataLog!T1425,\"\")","v":""},{"$f":"IF(DataLog!$C1425=\"Log value\",DataLog!U1425,\"\")","v":""},{"$f":"IF(DataLog!$C1425=\"Log value\",DataLog!V1425,\"\")","v":""},{"$f":"IF(DataLog!$C1425=\"Log value\",DataLog!W1425,\"\")","v":""},{"$f":"IF(DataLog!$C1425=\"Log value\",DataLog!X1425,\"\")","v":""},{"$f":"IF(DataLog!$C1425=\"Log value\",DataLog!Y1425,\"\")","v":""},{"$f":"IF(DataLog!$C1425=\"Log value\",DataLog!Z1425,\"\")","v":""},{"$f":"IF(DataLog!$C1425=\"Log value\",DataLog!AA1425,\"\")","v":""},{"$f":"IF(DataLog!$C1425=\"Log value\",DataLog!AB1425,\"\")","v":""},{"$f":"IF(DataLog!$C1425=\"Log value\",DataLog!AC1425,\"\")","v":""},{"$f":"IF(DataLog!$C1425=\"Log value\",DataLog!AD1425,\"\")","v":""},{"$f":"IF(DataLog!$C1425=\"Log value\",DataLog!AE1425,\"\")","v":""},{"$f":"IF(DataLog!$C1425=\"Log value\",DataLog!AF1425,\"\")","v":""},{"$f":"IF(DataLog!$C1425=\"Log value\",DataLog!AG1425,\"\")","v":""},{"$f":"IF(DataLog!$C1425=\"Log value\",DataLog!AH1425,\"\")","v":""},{"$f":"IF(DataLog!$C1425=\"Log value\",DataLog!AI1425,\"\")","v":""},{"$f":"IF(DataLog!$C1425=\"Log value\",DataLog!AJ1425,\"\")","v":""},{"$f":"IF(DataLog!$C1425=\"Log value\",DataLog!AK1425,\"\")","v":""},{"$f":"IF(DataLog!$C1425=\"Log value\",DataLog!AL1425,\"\")","v":""},{"$f":"IF(DataLog!$C1425=\"Log value\",DataLog!AM1425,\"\")","v":""}]
[null,null,null,null,null,null,{"$f":"IF(DataLog!$C1426=\"Log value\",DataLog!D1426&\"_\"&TEXT(DataLog!B1426,\"åååå-mm-dd\"),\"\")","v":""},{"$f":"IF(DataLog!$C1426=\"Log value\",DataLog!E1426,\"\")","v":""},{"$f":"IF(DataLog!$C1426=\"Log value\",DataLog!F1426,\"\")","v":""},{"$f":"IF(DataLog!$C1426=\"Log value\",DataLog!G1426,\"\")","v":""},{"$f":"IF(DataLog!$C1426=\"Log value\",DataLog!H1426,\"\")","v":""},{"$f":"IF(DataLog!$C1426=\"Log value\",DataLog!I1426,\"\")","v":""},{"$f":"IF(DataLog!$C1426=\"Log value\",DataLog!J1426,\"\")","v":""},{"$f":"IF(DataLog!$C1426=\"Log value\",DataLog!K1426,\"\")","v":""},{"$f":"IF(DataLog!$C1426=\"Log value\",DataLog!L1426,\"\")","v":""},{"$f":"IF(DataLog!$C1426=\"Log value\",DataLog!M1426,\"\")","v":""},{"$f":"IF(DataLog!$C1426=\"Log value\",DataLog!N1426,\"\")","v":""},{"$f":"IF(DataLog!$C1426=\"Log value\",DataLog!O1426,\"\")","v":""},{"$f":"IF(DataLog!$C1426=\"Log value\",DataLog!P1426,\"\")","v":""},{"$f":"IF(DataLog!$C1426=\"Log value\",DataLog!Q1426,\"\")","v":""},{"$f":"IF(DataLog!$C1426=\"Log value\",DataLog!R1426,\"\")","v":""},{"$f":"IF(DataLog!$C1426=\"Log value\",DataLog!S1426,\"\")","v":""},{"$f":"IF(DataLog!$C1426=\"Log value\",DataLog!T1426,\"\")","v":""},{"$f":"IF(DataLog!$C1426=\"Log value\",DataLog!U1426,\"\")","v":""},{"$f":"IF(DataLog!$C1426=\"Log value\",DataLog!V1426,\"\")","v":""},{"$f":"IF(DataLog!$C1426=\"Log value\",DataLog!W1426,\"\")","v":""},{"$f":"IF(DataLog!$C1426=\"Log value\",DataLog!X1426,\"\")","v":""},{"$f":"IF(DataLog!$C1426=\"Log value\",DataLog!Y1426,\"\")","v":""},{"$f":"IF(DataLog!$C1426=\"Log value\",DataLog!Z1426,\"\")","v":""},{"$f":"IF(DataLog!$C1426=\"Log value\",DataLog!AA1426,\"\")","v":""},{"$f":"IF(DataLog!$C1426=\"Log value\",DataLog!AB1426,\"\")","v":""},{"$f":"IF(DataLog!$C1426=\"Log value\",DataLog!AC1426,\"\")","v":""},{"$f":"IF(DataLog!$C1426=\"Log value\",DataLog!AD1426,\"\")","v":""},{"$f":"IF(DataLog!$C1426=\"Log value\",DataLog!AE1426,\"\")","v":""},{"$f":"IF(DataLog!$C1426=\"Log value\",DataLog!AF1426,\"\")","v":""},{"$f":"IF(DataLog!$C1426=\"Log value\",DataLog!AG1426,\"\")","v":""},{"$f":"IF(DataLog!$C1426=\"Log value\",DataLog!AH1426,\"\")","v":""},{"$f":"IF(DataLog!$C1426=\"Log value\",DataLog!AI1426,\"\")","v":""},{"$f":"IF(DataLog!$C1426=\"Log value\",DataLog!AJ1426,\"\")","v":""},{"$f":"IF(DataLog!$C1426=\"Log value\",DataLog!AK1426,\"\")","v":""},{"$f":"IF(DataLog!$C1426=\"Log value\",DataLog!AL1426,\"\")","v":""},{"$f":"IF(DataLog!$C1426=\"Log value\",DataLog!AM1426,\"\")","v":""}]
[null,null,null,null,null,null,{"$f":"IF(DataLog!$C1429=\"Log value\",DataLog!D1429&\"_\"&TEXT(DataLog!B1429,\"åååå-mm-dd\"),\"\")","v":""},{"$f":"IF(DataLog!$C1429=\"Log value\",DataLog!E1429,\"\")","v":""},{"$f":"IF(DataLog!$C1429=\"Log value\",DataLog!F1429,\"\")","v":""},{"$f":"IF(DataLog!$C1429=\"Log value\",DataLog!G1429,\"\")","v":""},{"$f":"IF(DataLog!$C1429=\"Log value\",DataLog!H1429,\"\")","v":""},{"$f":"IF(DataLog!$C1429=\"Log value\",DataLog!I1429,\"\")","v":""},{"$f":"IF(DataLog!$C1429=\"Log value\",DataLog!J1429,\"\")","v":""},{"$f":"IF(DataLog!$C1429=\"Log value\",DataLog!K1429,\"\")","v":""},{"$f":"IF(DataLog!$C1429=\"Log value\",DataLog!L1429,\"\")","v":""},{"$f":"IF(DataLog!$C1429=\"Log value\",DataLog!M1429,\"\")","v":""},{"$f":"IF(DataLog!$C1429=\"Log value\",DataLog!N1429,\"\")","v":""},{"$f":"IF(DataLog!$C1429=\"Log value\",DataLog!O1429,\"\")","v":""},{"$f":"IF(DataLog!$C1429=\"Log value\",DataLog!P1429,\"\")","v":""},{"$f":"IF(DataLog!$C1429=\"Log value\",DataLog!Q1429,\"\")","v":""},{"$f":"IF(DataLog!$C1429=\"Log value\",DataLog!R1429,\"\")","v":""},{"$f":"IF(DataLog!$C1429=\"Log value\",DataLog!S1429,\"\")","v":""},{"$f":"IF(DataLog!$C1429=\"Log value\",DataLog!T1429,\"\")","v":""},{"$f":"IF(DataLog!$C1429=\"Log value\",DataLog!U1429,\"\")","v":""},{"$f":"IF(DataLog!$C1429=\"Log value\",DataLog!V1429,\"\")","v":""},{"$f":"IF(DataLog!$C1429=\"Log value\",DataLog!W1429,\"\")","v":""},{"$f":"IF(DataLog!$C1429=\"Log value\",DataLog!X1429,\"\")","v":""},{"$f":"IF(DataLog!$C1429=\"Log value\",DataLog!Y1429,\"\")","v":""},{"$f":"IF(DataLog!$C1429=\"Log value\",DataLog!Z1429,\"\")","v":""},{"$f":"IF(DataLog!$C1429=\"Log value\",DataLog!AA1429,\"\")","v":""},{"$f":"IF(DataLog!$C1429=\"Log value\",DataLog!AB1429,\"\")","v":""},{"$f":"IF(DataLog!$C1429=\"Log value\",DataLog!AC1429,\"\")","v":""},{"$f":"IF(DataLog!$C1429=\"Log value\",DataLog!AD1429,\"\")","v":""},{"$f":"IF(DataLog!$C1429=\"Log value\",DataLog!AE1429,\"\")","v":""},{"$f":"IF(DataLog!$C1429=\"Log value\",DataLog!AF1429,\"\")","v":""},{"$f":"IF(DataLog!$C1429=\"Log value\",DataLog!AG1429,\"\")","v":""},{"$f":"IF(DataLog!$C1429=\"Log value\",DataLog!AH1429,\"\")","v":""},{"$f":"IF(DataLog!$C1429=\"Log value\",DataLog!AI1429,\"\")","v":""},{"$f":"IF(DataLog!$C1429=\"Log value\",DataLog!AJ1429,\"\")","v":""},{"$f":"IF(DataLog!$C1429=\"Log value\",DataLog!AK1429,\"\")","v":""},{"$f":"IF(DataLog!$C1429=\"Log value\",DataLog!AL1429,\"\")","v":""},{"$f":"IF(DataLog!$C1429=\"Log value\",DataLog!AM1429,\"\")","v":""}]
[null,null,null,null,null,null,{"$f":"IF(DataLog!$C1431=\"Log value\",DataLog!D1431&\"_\"&TEXT(DataLog!B1431,\"åååå-mm-dd\"),\"\")","v":""},{"$f":"IF(DataLog!$C1431=\"Log value\",DataLog!E1431,\"\")","v":""},{"$f":"IF(DataLog!$C1431=\"Log value\",DataLog!F1431,\"\")","v":""},{"$f":"IF(DataLog!$C1431=\"Log value\",DataLog!G1431,\"\")","v":""},{"$f":"IF(DataLog!$C1431=\"Log value\",DataLog!H1431,\"\")","v":""},{"$f":"IF(DataLog!$C1431=\"Log value\",DataLog!I1431,\"\")","v":""},{"$f":"IF(DataLog!$C1431=\"Log value\",DataLog!J1431,\"\")","v":""},{"$f":"IF(DataLog!$C1431=\"Log value\",DataLog!K1431,\"\")","v":""},{"$f":"IF(DataLog!$C1431=\"Log value\",DataLog!L1431,\"\")","v":""},{"$f":"IF(DataLog!$C1431=\"Log value\",DataLog!M1431,\"\")","v":""},{"$f":"IF(DataLog!$C1431=\"Log value\",DataLog!N1431,\"\")","v":""},{"$f":"IF(DataLog!$C1431=\"Log value\",DataLog!O1431,\"\")","v":""},{"$f":"IF(DataLog!$C1431=\"Log value\",DataLog!P1431,\"\")","v":""},{"$f":"IF(DataLog!$C1431=\"Log value\",DataLog!Q1431,\"\")","v":""},{"$f":"IF(DataLog!$C1431=\"Log value\",DataLog!R1431,\"\")","v":""},{"$f":"IF(DataLog!$C1431=\"Log value\",DataLog!S1431,\"\")","v":""},{"$f":"IF(DataLog!$C1431=\"Log value\",DataLog!T1431,\"\")","v":""},{"$f":"IF(DataLog!$C1431=\"Log value\",DataLog!U1431,\"\")","v":""},{"$f":"IF(DataLog!$C1431=\"Log value\",DataLog!V1431,\"\")","v":""},{"$f":"IF(DataLog!$C1431=\"Log value\",DataLog!W1431,\"\")","v":""},{"$f":"IF(DataLog!$C1431=\"Log value\",DataLog!X1431,\"\")","v":""},{"$f":"IF(DataLog!$C1431=\"Log value\",DataLog!Y1431,\"\")","v":""},{"$f":"IF(DataLog!$C1431=\"Log value\",DataLog!Z1431,\"\")","v":""},{"$f":"IF(DataLog!$C1431=\"Log value\",DataLog!AA1431,\"\")","v":""},{"$f":"IF(DataLog!$C1431=\"Log value\",DataLog!AB1431,\"\")","v":""},{"$f":"IF(DataLog!$C1431=\"Log value\",DataLog!AC1431,\"\")","v":""},{"$f":"IF(DataLog!$C1431=\"Log value\",DataLog!AD1431,\"\")","v":""},{"$f":"IF(DataLog!$C1431=\"Log value\",DataLog!AE1431,\"\")","v":""},{"$f":"IF(DataLog!$C1431=\"Log value\",DataLog!AF1431,\"\")","v":""},{"$f":"IF(DataLog!$C1431=\"Log value\",DataLog!AG1431,\"\")","v":""},{"$f":"IF(DataLog!$C1431=\"Log value\",DataLog!AH1431,\"\")","v":""},{"$f":"IF(DataLog!$C1431=\"Log value\",DataLog!AI1431,\"\")","v":""},{"$f":"IF(DataLog!$C1431=\"Log value\",DataLog!AJ1431,\"\")","v":""},{"$f":"IF(DataLog!$C1431=\"Log value\",DataLog!AK1431,\"\")","v":""},{"$f":"IF(DataLog!$C1431=\"Log value\",DataLog!AL1431,\"\")","v":""},{"$f":"IF(DataLog!$C1431=\"Log value\",DataLog!AM1431,\"\")","v":""}]
[null,null,null,null,null,null,{"$f":"IF(DataLog!$C1434=\"Log value\",DataLog!D1434&\"_\"&TEXT(DataLog!B1434,\"åååå-mm-dd\"),\"\")","v":""},{"$f":"IF(DataLog!$C1434=\"Log value\",DataLog!E1434,\"\")","v":""},{"$f":"IF(DataLog!$C1434=\"Log value\",DataLog!F1434,\"\")","v":""},{"$f":"IF(DataLog!$C1434=\"Log value\",DataLog!G1434,\"\")","v":""},{"$f":"IF(DataLog!$C1434=\"Log value\",DataLog!H1434,\"\")","v":""},{"$f":"IF(DataLog!$C1434=\"Log value\",DataLog!I1434,\"\")","v":""},{"$f":"IF(DataLog!$C1434=\"Log value\",DataLog!J1434,\"\")","v":""},{"$f":"IF(DataLog!$C1434=\"Log value\",DataLog!K1434,\"\")","v":""},{"$f":"IF(DataLog!$C1434=\"Log value\",DataLog!L1434,\"\")","v":""},{"$f":"IF(DataLog!$C1434=\"Log value\",DataLog!M1434,\"\")","v":""},{"$f":"IF(DataLog!$C1434=\"Log value\",DataLog!N1434,\"\")","v":""},{"$f":"IF(DataLog!$C1434=\"Log value\",DataLog!O1434,\"\")","v":""},{"$f":"IF(DataLog!$C1434=\"Log value\",DataLog!P1434,\"\")","v":""},{"$f":"IF(DataLog!$C1434=\"Log value\",DataLog!Q1434,\"\")","v":""},{"$f":"IF(DataLog!$C1434=\"Log value\",DataLog!R1434,\"\")","v":""},{"$f":"IF(DataLog!$C1434=\"Log value\",DataLog!S1434,\"\")","v":""},{"$f":"IF(DataLog!$C1434=\"Log value\",DataLog!T1434,\"\")","v":""},{"$f":"IF(DataLog!$C1434=\"Log value\",DataLog!U1434,\"\")","v":""},{"$f":"IF(DataLog!$C1434=\"Log value\",DataLog!V1434,\"\")","v":""},{"$f":"IF(DataLog!$C1434=\"Log value\",DataLog!W1434,\"\")","v":""},{"$f":"IF(DataLog!$C1434=\"Log value\",DataLog!X1434,\"\")","v":""},{"$f":"IF(DataLog!$C1434=\"Log value\",DataLog!Y1434,\"\")","v":""},{"$f":"IF(DataLog!$C1434=\"Log value\",DataLog!Z1434,\"\")","v":""},{"$f":"IF(DataLog!$C1434=\"Log value\",DataLog!AA1434,\"\")","v":""},{"$f":"IF(DataLog!$C1434=\"Log value\",DataLog!AB1434,\"\")","v":""},{"$f":"IF(DataLog!$C1434=\"Log value\",DataLog!AC1434,\"\")","v":""},{"$f":"IF(DataLog!$C1434=\"Log value\",DataLog!AD1434,\"\")","v":""},{"$f":"IF(DataLog!$C1434=\"Log value\",DataLog!AE1434,\"\")","v":""},{"$f":"IF(DataLog!$C1434=\"Log value\",DataLog!AF1434,\"\")","v":""},{"$f":"IF(DataLog!$C1434=\"Log value\",DataLog!AG1434,\"\")","v":""},{"$f":"IF(DataLog!$C1434=\"Log value\",DataLog!AH1434,\"\")","v":""},{"$f":"IF(DataLog!$C1434=\"Log value\",DataLog!AI1434,\"\")","v":""},{"$f":"IF(DataLog!$C1434=\"Log value\",DataLog!AJ1434,\"\")","v":""},{"$f":"IF(DataLog!$C1434=\"Log value\",DataLog!AK1434,\"\")","v":""},{"$f":"IF(DataLog!$C1434=\"Log value\",DataLog!AL1434,\"\")","v":""},{"$f":"IF(DataLog!$C1434=\"Log value\",DataLog!AM1434,\"\")","v":""}]
[null,null,null,null,null,null,{"$f":"IF(DataLog!$C1435=\"Log value\",DataLog!D1435&\"_\"&TEXT(DataLog!B1435,\"åååå-mm-dd\"),\"\")","v":""},{"$f":"IF(DataLog!$C1435=\"Log value\",DataLog!E1435,\"\")","v":""},{"$f":"IF(DataLog!$C1435=\"Log value\",DataLog!F1435,\"\")","v":""},{"$f":"IF(DataLog!$C1435=\"Log value\",DataLog!G1435,\"\")","v":""},{"$f":"IF(DataLog!$C1435=\"Log value\",DataLog!H1435,\"\")","v":""},{"$f":"IF(DataLog!$C1435=\"Log value\",DataLog!I1435,\"\")","v":""},{"$f":"IF(DataLog!$C1435=\"Log value\",DataLog!J1435,\"\")","v":""},{"$f":"IF(DataLog!$C1435=\"Log value\",DataLog!K1435,\"\")","v":""},{"$f":"IF(DataLog!$C1435=\"Log value\",DataLog!L1435,\"\")","v":""},{"$f":"IF(DataLog!$C1435=\"Log value\",DataLog!M1435,\"\")","v":""},{"$f":"IF(DataLog!$C1435=\"Log value\",DataLog!N1435,\"\")","v":""},{"$f":"IF(DataLog!$C1435=\"Log value\",DataLog!O1435,\"\")","v":""},{"$f":"IF(DataLog!$C1435=\"Log value\",DataLog!P1435,\"\")","v":""},{"$f":"IF(DataLog!$C1435=\"Log value\",DataLog!Q1435,\"\")","v":""},{"$f":"IF(DataLog!$C1435=\"Log value\",DataLog!R1435,\"\")","v":""},{"$f":"IF(DataLog!$C1435=\"Log value\",DataLog!S1435,\"\")","v":""},{"$f":"IF(DataLog!$C1435=\"Log value\",DataLog!T1435,\"\")","v":""},{"$f":"IF(DataLog!$C1435=\"Log value\",DataLog!U1435,\"\")","v":""},{"$f":"IF(DataLog!$C1435=\"Log value\",DataLog!V1435,\"\")","v":""},{"$f":"IF(DataLog!$C1435=\"Log value\",DataLog!W1435,\"\")","v":""},{"$f":"IF(DataLog!$C1435=\"Log value\",DataLog!X1435,\"\")","v":""},{"$f":"IF(DataLog!$C1435=\"Log value\",DataLog!Y1435,\"\")","v":""},{"$f":"IF(DataLog!$C1435=\"Log value\",DataLog!Z1435,\"\")","v":""},{"$f":"IF(DataLog!$C1435=\"Log value\",DataLog!AA1435,\"\")","v":""},{"$f":"IF(DataLog!$C1435=\"Log value\",DataLog!AB1435,\"\")","v":""},{"$f":"IF(DataLog!$C1435=\"Log value\",DataLog!AC1435,\"\")","v":""},{"$f":"IF(DataLog!$C1435=\"Log value\",DataLog!AD1435,\"\")","v":""},{"$f":"IF(DataLog!$C1435=\"Log value\",DataLog!AE1435,\"\")","v":""},{"$f":"IF(DataLog!$C1435=\"Log value\",DataLog!AF1435,\"\")","v":""},{"$f":"IF(DataLog!$C1435=\"Log value\",DataLog!AG1435,\"\")","v":""},{"$f":"IF(DataLog!$C1435=\"Log value\",DataLog!AH1435,\"\")","v":""},{"$f":"IF(DataLog!$C1435=\"Log value\",DataLog!AI1435,\"\")","v":""},{"$f":"IF(DataLog!$C1435=\"Log value\",DataLog!AJ1435,\"\")","v":""},{"$f":"IF(DataLog!$C1435=\"Log value\",DataLog!AK1435,\"\")","v":""},{"$f":"IF(DataLog!$C1435=\"Log value\",DataLog!AL1435,\"\")","v":""},{"$f":"IF(DataLog!$C1435=\"Log value\",DataLog!AM1435,\"\")","v":""}]
[null,null,null,null,null,null,{"$f":"IF(DataLog!$C1438=\"Log value\",DataLog!D1438&\"_\"&TEXT(DataLog!B1438,\"åååå-mm-dd\"),\"\")","v":""},{"$f":"IF(DataLog!$C1438=\"Log value\",DataLog!E1438,\"\")","v":""},{"$f":"IF(DataLog!$C1438=\"Log value\",DataLog!F1438,\"\")","v":""},{"$f":"IF(DataLog!$C1438=\"Log value\",DataLog!G1438,\"\")","v":""},{"$f":"IF(DataLog!$C1438=\"Log value\",DataLog!H1438,\"\")","v":""},{"$f":"IF(DataLog!$C1438=\"Log value\",DataLog!I1438,\"\")","v":""},{"$f":"IF(DataLog!$C1438=\"Log value\",DataLog!J1438,\"\")","v":""},{"$f":"IF(DataLog!$C1438=\"Log value\",DataLog!K1438,\"\")","v":""},{"$f":"IF(DataLog!$C1438=\"Log value\",DataLog!L1438,\"\")","v":""},{"$f":"IF(DataLog!$C1438=\"Log value\",DataLog!M1438,\"\")","v":""},{"$f":"IF(DataLog!$C1438=\"Log value\",DataLog!N1438,\"\")","v":""},{"$f":"IF(DataLog!$C1438=\"Log value\",DataLog!O1438,\"\")","v":""},{"$f":"IF(DataLog!$C1438=\"Log value\",DataLog!P1438,\"\")","v":""},{"$f":"IF(DataLog!$C1438=\"Log value\",DataLog!Q1438,\"\")","v":""},{"$f":"IF(DataLog!$C1438=\"Log value\",DataLog!R1438,\"\")","v":""},{"$f":"IF(DataLog!$C1438=\"Log value\",DataLog!S1438,\"\")","v":""},{"$f":"IF(DataLog!$C1438=\"Log value\",DataLog!T1438,\"\")","v":""},{"$f":"IF(DataLog!$C1438=\"Log value\",DataLog!U1438,\"\")","v":""},{"$f":"IF(DataLog!$C1438=\"Log value\",DataLog!V1438,\"\")","v":""},{"$f":"IF(DataLog!$C1438=\"Log value\",DataLog!W1438,\"\")","v":""},{"$f":"IF(DataLog!$C1438=\"Log value\",DataLog!X1438,\"\")","v":""},{"$f":"IF(DataLog!$C1438=\"Log value\",DataLog!Y1438,\"\")","v":""},{"$f":"IF(DataLog!$C1438=\"Log value\",DataLog!Z1438,\"\")","v":""},{"$f":"IF(DataLog!$C1438=\"Log value\",DataLog!AA1438,\"\")","v":""},{"$f":"IF(DataLog!$C1438=\"Log value\",DataLog!AB1438,\"\")","v":""},{"$f":"IF(DataLog!$C1438=\"Log value\",DataLog!AC1438,\"\")","v":""},{"$f":"IF(DataLog!$C1438=\"Log value\",DataLog!AD1438,\"\")","v":""},{"$f":"IF(DataLog!$C1438=\"Log value\",DataLog!AE1438,\"\")","v":""},{"$f":"IF(DataLog!$C1438=\"Log value\",DataLog!AF1438,\"\")","v":""},{"$f":"IF(DataLog!$C1438=\"Log value\",DataLog!AG1438,\"\")","v":""},{"$f":"IF(DataLog!$C1438=\"Log value\",DataLog!AH1438,\"\")","v":""},{"$f":"IF(DataLog!$C1438=\"Log value\",DataLog!AI1438,\"\")","v":""},{"$f":"IF(DataLog!$C1438=\"Log value\",DataLog!AJ1438,\"\")","v":""},{"$f":"IF(DataLog!$C1438=\"Log value\",DataLog!AK1438,\"\")","v":""},{"$f":"IF(DataLog!$C1438=\"Log value\",DataLog!AL1438,\"\")","v":""},{"$f":"IF(DataLog!$C1438=\"Log value\",DataLog!AM1438,\"\")","v":""}]
[null,null,null,null,null,null,{"$f":"IF(DataLog!$C1441=\"Log value\",DataLog!D1441&\"_\"&TEXT(DataLog!B1441,\"åååå-mm-dd\"),\"\")","v":""},{"$f":"IF(DataLog!$C1441=\"Log value\",DataLog!E1441,\"\")","v":""},{"$f":"IF(DataLog!$C1441=\"Log value\",DataLog!F1441,\"\")","v":""},{"$f":"IF(DataLog!$C1441=\"Log value\",DataLog!G1441,\"\")","v":""},{"$f":"IF(DataLog!$C1441=\"Log value\",DataLog!H1441,\"\")","v":""},{"$f":"IF(DataLog!$C1441=\"Log value\",DataLog!I1441,\"\")","v":""},{"$f":"IF(DataLog!$C1441=\"Log value\",DataLog!J1441,\"\")","v":""},{"$f":"IF(DataLog!$C1441=\"Log value\",DataLog!K1441,\"\")","v":""},{"$f":"IF(DataLog!$C1441=\"Log value\",DataLog!L1441,\"\")","v":""},{"$f":"IF(DataLog!$C1441=\"Log value\",DataLog!M1441,\"\")","v":""},{"$f":"IF(DataLog!$C1441=\"Log value\",DataLog!N1441,\"\")","v":""},{"$f":"IF(DataLog!$C1441=\"Log value\",DataLog!O1441,\"\")","v":""},{"$f":"IF(DataLog!$C1441=\"Log value\",DataLog!P1441,\"\")","v":""},{"$f":"IF(DataLog!$C1441=\"Log value\",DataLog!Q1441,\"\")","v":""},{"$f":"IF(DataLog!$C1441=\"Log value\",DataLog!R1441,\"\")","v":""},{"$f":"IF(DataLog!$C1441=\"Log value\",DataLog!S1441,\"\")","v":""},{"$f":"IF(DataLog!$C1441=\"Log value\",DataLog!T1441,\"\")","v":""},{"$f":"IF(DataLog!$C1441=\"Log value\",DataLog!U1441,\"\")","v":""},{"$f":"IF(DataLog!$C1441=\"Log value\",DataLog!V1441,\"\")","v":""},{"$f":"IF(DataLog!$C1441=\"Log value\",DataLog!W1441,\"\")","v":""},{"$f":"IF(DataLog!$C1441=\"Log value\",DataLog!X1441,\"\")","v":""},{"$f":"IF(DataLog!$C1441=\"Log value\",DataLog!Y1441,\"\")","v":""},{"$f":"IF(DataLog!$C1441=\"Log value\",DataLog!Z1441,\"\")","v":""},{"$f":"IF(DataLog!$C1441=\"Log value\",DataLog!AA1441,\"\")","v":""},{"$f":"IF(DataLog!$C1441=\"Log value\",DataLog!AB1441,\"\")","v":""},{"$f":"IF(DataLog!$C1441=\"Log value\",DataLog!AC1441,\"\")","v":""},{"$f":"IF(DataLog!$C1441=\"Log value\",DataLog!AD1441,\"\")","v":""},{"$f":"IF(DataLog!$C1441=\"Log value\",DataLog!AE1441,\"\")","v":""},{"$f":"IF(DataLog!$C1441=\"Log value\",DataLog!AF1441,\"\")","v":""},{"$f":"IF(DataLog!$C1441=\"Log value\",DataLog!AG1441,\"\")","v":""},{"$f":"IF(DataLog!$C1441=\"Log value\",DataLog!AH1441,\"\")","v":""},{"$f":"IF(DataLog!$C1441=\"Log value\",DataLog!AI1441,\"\")","v":""},{"$f":"IF(DataLog!$C1441=\"Log value\",DataLog!AJ1441,\"\")","v":""},{"$f":"IF(DataLog!$C1441=\"Log value\",DataLog!AK1441,\"\")","v":""},{"$f":"IF(DataLog!$C1441=\"Log value\",DataLog!AL1441,\"\")","v":""},{"$f":"IF(DataLog!$C1441=\"Log value\",DataLog!AM1441,\"\")","v":""}]
[null,null,null,null,null,null,{"$f":"IF(DataLog!$C1443=\"Log value\",DataLog!D1443&\"_\"&TEXT(DataLog!B1443,\"åååå-mm-dd\"),\"\")","v":""},{"$f":"IF(DataLog!$C1443=\"Log value\",DataLog!E1443,\"\")","v":""},{"$f":"IF(DataLog!$C1443=\"Log value\",DataLog!F1443,\"\")","v":""},{"$f":"IF(DataLog!$C1443=\"Log value\",DataLog!G1443,\"\")","v":""},{"$f":"IF(DataLog!$C1443=\"Log value\",DataLog!H1443,\"\")","v":""},{"$f":"IF(DataLog!$C1443=\"Log value\",DataLog!I1443,\"\")","v":""},{"$f":"IF(DataLog!$C1443=\"Log value\",DataLog!J1443,\"\")","v":""},{"$f":"IF(DataLog!$C1443=\"Log value\",DataLog!K1443,\"\")","v":""},{"$f":"IF(DataLog!$C1443=\"Log value\",DataLog!L1443,\"\")","v":""},{"$f":"IF(DataLog!$C1443=\"Log value\",DataLog!M1443,\"\")","v":""},{"$f":"IF(DataLog!$C1443=\"Log value\",DataLog!N1443,\"\")","v":""},{"$f":"IF(DataLog!$C1443=\"Log value\",DataLog!O1443,\"\")","v":""},{"$f":"IF(DataLog!$C1443=\"Log value\",DataLog!P1443,\"\")","v":""},{"$f":"IF(DataLog!$C1443=\"Log value\",DataLog!Q1443,\"\")","v":""},{"$f":"IF(DataLog!$C1443=\"Log value\",DataLog!R1443,\"\")","v":""},{"$f":"IF(DataLog!$C1443=\"Log value\",DataLog!S1443,\"\")","v":""},{"$f":"IF(DataLog!$C1443=\"Log value\",DataLog!T1443,\"\")","v":""},{"$f":"IF(DataLog!$C1443=\"Log value\",DataLog!U1443,\"\")","v":""},{"$f":"IF(DataLog!$C1443=\"Log value\",DataLog!V1443,\"\")","v":""},{"$f":"IF(DataLog!$C1443=\"Log value\",DataLog!W1443,\"\")","v":""},{"$f":"IF(DataLog!$C1443=\"Log value\",DataLog!X1443,\"\")","v":""},{"$f":"IF(DataLog!$C1443=\"Log value\",DataLog!Y1443,\"\")","v":""},{"$f":"IF(DataLog!$C1443=\"Log value\",DataLog!Z1443,\"\")","v":""},{"$f":"IF(DataLog!$C1443=\"Log value\",DataLog!AA1443,\"\")","v":""},{"$f":"IF(DataLog!$C1443=\"Log value\",DataLog!AB1443,\"\")","v":""},{"$f":"IF(DataLog!$C1443=\"Log value\",DataLog!AC1443,\"\")","v":""},{"$f":"IF(DataLog!$C1443=\"Log value\",DataLog!AD1443,\"\")","v":""},{"$f":"IF(DataLog!$C1443=\"Log value\",DataLog!AE1443,\"\")","v":""},{"$f":"IF(DataLog!$C1443=\"Log value\",DataLog!AF1443,\"\")","v":""},{"$f":"IF(DataLog!$C1443=\"Log value\",DataLog!AG1443,\"\")","v":""},{"$f":"IF(DataLog!$C1443=\"Log value\",DataLog!AH1443,\"\")","v":""},{"$f":"IF(DataLog!$C1443=\"Log value\",DataLog!AI1443,\"\")","v":""},{"$f":"IF(DataLog!$C1443=\"Log value\",DataLog!AJ1443,\"\")","v":""},{"$f":"IF(DataLog!$C1443=\"Log value\",DataLog!AK1443,\"\")","v":""},{"$f":"IF(DataLog!$C1443=\"Log value\",DataLog!AL1443,\"\")","v":""},{"$f":"IF(DataLog!$C1443=\"Log value\",DataLog!AM1443,\"\")","v":""}]
[null,null,null,null,null,null,{"$f":"IF(DataLog!$C1444=\"Log value\",DataLog!D1444&\"_\"&TEXT(DataLog!B1444,\"åååå-mm-dd\"),\"\")","v":""},{"$f":"IF(DataLog!$C1444=\"Log value\",DataLog!E1444,\"\")","v":""},{"$f":"IF(DataLog!$C1444=\"Log value\",DataLog!F1444,\"\")","v":""},{"$f":"IF(DataLog!$C1444=\"Log value\",DataLog!G1444,\"\")","v":""},{"$f":"IF(DataLog!$C1444=\"Log value\",DataLog!H1444,\"\")","v":""},{"$f":"IF(DataLog!$C1444=\"Log value\",DataLog!I1444,\"\")","v":""},{"$f":"IF(DataLog!$C1444=\"Log value\",DataLog!J1444,\"\")","v":""},{"$f":"IF(DataLog!$C1444=\"Log value\",DataLog!K1444,\"\")","v":""},{"$f":"IF(DataLog!$C1444=\"Log value\",DataLog!L1444,\"\")","v":""},{"$f":"IF(DataLog!$C1444=\"Log value\",DataLog!M1444,\"\")","v":""},{"$f":"IF(DataLog!$C1444=\"Log value\",DataLog!N1444,\"\")","v":""},{"$f":"IF(DataLog!$C1444=\"Log value\",DataLog!O1444,\"\")","v":""},{"$f":"IF(DataLog!$C1444=\"Log value\",DataLog!P1444,\"\")","v":""},{"$f":"IF(DataLog!$C1444=\"Log value\",DataLog!Q1444,\"\")","v":""},{"$f":"IF(DataLog!$C1444=\"Log value\",DataLog!R1444,\"\")","v":""},{"$f":"IF(DataLog!$C1444=\"Log value\",DataLog!S1444,\"\")","v":""},{"$f":"IF(DataLog!$C1444=\"Log value\",DataLog!T1444,\"\")","v":""},{"$f":"IF(DataLog!$C1444=\"Log value\",DataLog!U1444,\"\")","v":""},{"$f":"IF(DataLog!$C1444=\"Log value\",DataLog!V1444,\"\")","v":""},{"$f":"IF(DataLog!$C1444=\"Log value\",DataLog!W1444,\"\")","v":""},{"$f":"IF(DataLog!$C1444=\"Log value\",DataLog!X1444,\"\")","v":""},{"$f":"IF(DataLog!$C1444=\"Log value\",DataLog!Y1444,\"\")","v":""},{"$f":"IF(DataLog!$C1444=\"Log value\",DataLog!Z1444,\"\")","v":""},{"$f":"IF(DataLog!$C1444=\"Log value\",DataLog!AA1444,\"\")","v":""},{"$f":"IF(DataLog!$C1444=\"Log value\",DataLog!AB1444,\"\")","v":""},{"$f":"IF(DataLog!$C1444=\"Log value\",DataLog!AC1444,\"\")","v":""},{"$f":"IF(DataLog!$C1444=\"Log value\",DataLog!AD1444,\"\")","v":""},{"$f":"IF(DataLog!$C1444=\"Log value\",DataLog!AE1444,\"\")","v":""},{"$f":"IF(DataLog!$C1444=\"Log value\",DataLog!AF1444,\"\")","v":""},{"$f":"IF(DataLog!$C1444=\"Log value\",DataLog!AG1444,\"\")","v":""},{"$f":"IF(DataLog!$C1444=\"Log value\",DataLog!AH1444,\"\")","v":""},{"$f":"IF(DataLog!$C1444=\"Log value\",DataLog!AI1444,\"\")","v":""},{"$f":"IF(DataLog!$C1444=\"Log value\",DataLog!AJ1444,\"\")","v":""},{"$f":"IF(DataLog!$C1444=\"Log value\",DataLog!AK1444,\"\")","v":""},{"$f":"IF(DataLog!$C1444=\"Log value\",DataLog!AL1444,\"\")","v":""},{"$f":"IF(DataLog!$C1444=\"Log value\",DataLog!AM1444,\"\")","v":""}]
[null,null,null,null,null,null,{"$f":"IF(DataLog!$C1446=\"Log value\",DataLog!D1446&\"_\"&TEXT(DataLog!B1446,\"åååå-mm-dd\"),\"\")","v":""},{"$f":"IF(DataLog!$C1446=\"Log value\",DataLog!E1446,\"\")","v":""},{"$f":"IF(DataLog!$C1446=\"Log value\",DataLog!F1446,\"\")","v":""},{"$f":"IF(DataLog!$C1446=\"Log value\",DataLog!G1446,\"\")","v":""},{"$f":"IF(DataLog!$C1446=\"Log value\",DataLog!H1446,\"\")","v":""},{"$f":"IF(DataLog!$C1446=\"Log value\",DataLog!I1446,\"\")","v":""},{"$f":"IF(DataLog!$C1446=\"Log value\",DataLog!J1446,\"\")","v":""},{"$f":"IF(DataLog!$C1446=\"Log value\",DataLog!K1446,\"\")","v":""},{"$f":"IF(DataLog!$C1446=\"Log value\",DataLog!L1446,\"\")","v":""},{"$f":"IF(DataLog!$C1446=\"Log value\",DataLog!M1446,\"\")","v":""},{"$f":"IF(DataLog!$C1446=\"Log value\",DataLog!N1446,\"\")","v":""},{"$f":"IF(DataLog!$C1446=\"Log value\",DataLog!O1446,\"\")","v":""},{"$f":"IF(DataLog!$C1446=\"Log value\",DataLog!P1446,\"\")","v":""},{"$f":"IF(DataLog!$C1446=\"Log value\",DataLog!Q1446,\"\")","v":""},{"$f":"IF(DataLog!$C1446=\"Log value\",DataLog!R1446,\"\")","v":""},{"$f":"IF(DataLog!$C1446=\"Log value\",DataLog!S1446,\"\")","v":""},{"$f":"IF(DataLog!$C1446=\"Log value\",DataLog!T1446,\"\")","v":""},{"$f":"IF(DataLog!$C1446=\"Log value\",DataLog!U1446,\"\")","v":""},{"$f":"IF(DataLog!$C1446=\"Log value\",DataLog!V1446,\"\")","v":""},{"$f":"IF(DataLog!$C1446=\"Log value\",DataLog!W1446,\"\")","v":""},{"$f":"IF(DataLog!$C1446=\"Log value\",DataLog!X1446,\"\")","v":""},{"$f":"IF(DataLog!$C1446=\"Log value\",DataLog!Y1446,\"\")","v":""},{"$f":"IF(DataLog!$C1446=\"Log value\",DataLog!Z1446,\"\")","v":""},{"$f":"IF(DataLog!$C1446=\"Log value\",DataLog!AA1446,\"\")","v":""},{"$f":"IF(DataLog!$C1446=\"Log value\",DataLog!AB1446,\"\")","v":""},{"$f":"IF(DataLog!$C1446=\"Log value\",DataLog!AC1446,\"\")","v":""},{"$f":"IF(DataLog!$C1446=\"Log value\",DataLog!AD1446,\"\")","v":""},{"$f":"IF(DataLog!$C1446=\"Log value\",DataLog!AE1446,\"\")","v":""},{"$f":"IF(DataLog!$C1446=\"Log value\",DataLog!AF1446,\"\")","v":""},{"$f":"IF(DataLog!$C1446=\"Log value\",DataLog!AG1446,\"\")","v":""},{"$f":"IF(DataLog!$C1446=\"Log value\",DataLog!AH1446,\"\")","v":""},{"$f":"IF(DataLog!$C1446=\"Log value\",DataLog!AI1446,\"\")","v":""},{"$f":"IF(DataLog!$C1446=\"Log value\",DataLog!AJ1446,\"\")","v":""},{"$f":"IF(DataLog!$C1446=\"Log value\",DataLog!AK1446,\"\")","v":""},{"$f":"IF(DataLog!$C1446=\"Log value\",DataLog!AL1446,\"\")","v":""},{"$f":"IF(DataLog!$C1446=\"Log value\",DataLog!AM1446,\"\")","v":""}]
[null,null,null,null,null,null,{"$f":"IF(DataLog!$C1449=\"Log value\",DataLog!D1449&\"_\"&TEXT(DataLog!B1449,\"åååå-mm-dd\"),\"\")","v":""},{"$f":"IF(DataLog!$C1449=\"Log value\",DataLog!E1449,\"\")","v":""},{"$f":"IF(DataLog!$C1449=\"Log value\",DataLog!F1449,\"\")","v":""},{"$f":"IF(DataLog!$C1449=\"Log value\",DataLog!G1449,\"\")","v":""},{"$f":"IF(DataLog!$C1449=\"Log value\",DataLog!H1449,\"\")","v":""},{"$f":"IF(DataLog!$C1449=\"Log value\",DataLog!I1449,\"\")","v":""},{"$f":"IF(DataLog!$C1449=\"Log value\",DataLog!J1449,\"\")","v":""},{"$f":"IF(DataLog!$C1449=\"Log value\",DataLog!K1449,\"\")","v":""},{"$f":"IF(DataLog!$C1449=\"Log value\",DataLog!L1449,\"\")","v":""},{"$f":"IF(DataLog!$C1449=\"Log value\",DataLog!M1449,\"\")","v":""},{"$f":"IF(DataLog!$C1449=\"Log value\",DataLog!N1449,\"\")","v":""},{"$f":"IF(DataLog!$C1449=\"Log value\",DataLog!O1449,\"\")","v":""},{"$f":"IF(DataLog!$C1449=\"Log value\",DataLog!P1449,\"\")","v":""},{"$f":"IF(DataLog!$C1449=\"Log value\",DataLog!Q1449,\"\")","v":""},{"$f":"IF(DataLog!$C1449=\"Log value\",DataLog!R1449,\"\")","v":""},{"$f":"IF(DataLog!$C1449=\"Log value\",DataLog!S1449,\"\")","v":""},{"$f":"IF(DataLog!$C1449=\"Log value\",DataLog!T1449,\"\")","v":""},{"$f":"IF(DataLog!$C1449=\"Log value\",DataLog!U1449,\"\")","v":""},{"$f":"IF(DataLog!$C1449=\"Log value\",DataLog!V1449,\"\")","v":""},{"$f":"IF(DataLog!$C1449=\"Log value\",DataLog!W1449,\"\")","v":""},{"$f":"IF(DataLog!$C1449=\"Log value\",DataLog!X1449,\"\")","v":""},{"$f":"IF(DataLog!$C1449=\"Log value\",DataLog!Y1449,\"\")","v":""},{"$f":"IF(DataLog!$C1449=\"Log value\",DataLog!Z1449,\"\")","v":""},{"$f":"IF(DataLog!$C1449=\"Log value\",DataLog!AA1449,\"\")","v":""},{"$f":"IF(DataLog!$C1449=\"Log value\",DataLog!AB1449,\"\")","v":""},{"$f":"IF(DataLog!$C1449=\"Log value\",DataLog!AC1449,\"\")","v":""},{"$f":"IF(DataLog!$C1449=\"Log value\",DataLog!AD1449,\"\")","v":""},{"$f":"IF(DataLog!$C1449=\"Log value\",DataLog!AE1449,\"\")","v":""},{"$f":"IF(DataLog!$C1449=\"Log value\",DataLog!AF1449,\"\")","v":""},{"$f":"IF(DataLog!$C1449=\"Log value\",DataLog!AG1449,\"\")","v":""},{"$f":"IF(DataLog!$C1449=\"Log value\",DataLog!AH1449,\"\")","v":""},{"$f":"IF(DataLog!$C1449=\"Log value\",DataLog!AI1449,\"\")","v":""},{"$f":"IF(DataLog!$C1449=\"Log value\",DataLog!AJ1449,\"\")","v":""},{"$f":"IF(DataLog!$C1449=\"Log value\",DataLog!AK1449,\"\")","v":""},{"$f":"IF(DataLog!$C1449=\"Log value\",DataLog!AL1449,\"\")","v":""},{"$f":"IF(DataLog!$C1449=\"Log value\",DataLog!AM1449,\"\")","v":""}]
[null,null,null,null,null,null,{"$f":"IF(DataLog!$C1452=\"Log value\",DataLog!D1452&\"_\"&TEXT(DataLog!B1452,\"åååå-mm-dd\"),\"\")","v":""},{"$f":"IF(DataLog!$C1452=\"Log value\",DataLog!E1452,\"\")","v":""},{"$f":"IF(DataLog!$C1452=\"Log value\",DataLog!F1452,\"\")","v":""},{"$f":"IF(DataLog!$C1452=\"Log value\",DataLog!G1452,\"\")","v":""},{"$f":"IF(DataLog!$C1452=\"Log value\",DataLog!H1452,\"\")","v":""},{"$f":"IF(DataLog!$C1452=\"Log value\",DataLog!I1452,\"\")","v":""},{"$f":"IF(DataLog!$C1452=\"Log value\",DataLog!J1452,\"\")","v":""},{"$f":"IF(DataLog!$C1452=\"Log value\",DataLog!K1452,\"\")","v":""},{"$f":"IF(DataLog!$C1452=\"Log value\",DataLog!L1452,\"\")","v":""},{"$f":"IF(DataLog!$C1452=\"Log value\",DataLog!M1452,\"\")","v":""},{"$f":"IF(DataLog!$C1452=\"Log value\",DataLog!N1452,\"\")","v":""},{"$f":"IF(DataLog!$C1452=\"Log value\",DataLog!O1452,\"\")","v":""},{"$f":"IF(DataLog!$C1452=\"Log value\",DataLog!P1452,\"\")","v":""},{"$f":"IF(DataLog!$C1452=\"Log value\",DataLog!Q1452,\"\")","v":""},{"$f":"IF(DataLog!$C1452=\"Log value\",DataLog!R1452,\"\")","v":""},{"$f":"IF(DataLog!$C1452=\"Log value\",DataLog!S1452,\"\")","v":""},{"$f":"IF(DataLog!$C1452=\"Log value\",DataLog!T1452,\"\")","v":""},{"$f":"IF(DataLog!$C1452=\"Log value\",DataLog!U1452,\"\")","v":""},{"$f":"IF(DataLog!$C1452=\"Log value\",DataLog!V1452,\"\")","v":""},{"$f":"IF(DataLog!$C1452=\"Log value\",DataLog!W1452,\"\")","v":""},{"$f":"IF(DataLog!$C1452=\"Log value\",DataLog!X1452,\"\")","v":""},{"$f":"IF(DataLog!$C1452=\"Log value\",DataLog!Y1452,\"\")","v":""},{"$f":"IF(DataLog!$C1452=\"Log value\",DataLog!Z1452,\"\")","v":""},{"$f":"IF(DataLog!$C1452=\"Log value\",DataLog!AA1452,\"\")","v":""},{"$f":"IF(DataLog!$C1452=\"Log value\",DataLog!AB1452,\"\")","v":""},{"$f":"IF(DataLog!$C1452=\"Log value\",DataLog!AC1452,\"\")","v":""},{"$f":"IF(DataLog!$C1452=\"Log value\",DataLog!AD1452,\"\")","v":""},{"$f":"IF(DataLog!$C1452=\"Log value\",DataLog!AE1452,\"\")","v":""},{"$f":"IF(DataLog!$C1452=\"Log value\",DataLog!AF1452,\"\")","v":""},{"$f":"IF(DataLog!$C1452=\"Log value\",DataLog!AG1452,\"\")","v":""},{"$f":"IF(DataLog!$C1452=\"Log value\",DataLog!AH1452,\"\")","v":""},{"$f":"IF(DataLog!$C1452=\"Log value\",DataLog!AI1452,\"\")","v":""},{"$f":"IF(DataLog!$C1452=\"Log value\",DataLog!AJ1452,\"\")","v":""},{"$f":"IF(DataLog!$C1452=\"Log value\",DataLog!AK1452,\"\")","v":""},{"$f":"IF(DataLog!$C1452=\"Log value\",DataLog!AL1452,\"\")","v":""},{"$f":"IF(DataLog!$C1452=\"Log value\",DataLog!AM1452,\"\")","v":""}]
[null,null,null,null,null,null,{"$f":"IF(DataLog!$C1453=\"Log value\",DataLog!D1453&\"_\"&TEXT(DataLog!B1453,\"åååå-mm-dd\"),\"\")","v":""},{"$f":"IF(DataLog!$C1453=\"Log value\",DataLog!E1453,\"\")","v":""},{"$f":"IF(DataLog!$C1453=\"Log value\",DataLog!F1453,\"\")","v":""},{"$f":"IF(DataLog!$C1453=\"Log value\",DataLog!G1453,\"\")","v":""},{"$f":"IF(DataLog!$C1453=\"Log value\",DataLog!H1453,\"\")","v":""},{"$f":"IF(DataLog!$C1453=\"Log value\",DataLog!I1453,\"\")","v":""},{"$f":"IF(DataLog!$C1453=\"Log value\",DataLog!J1453,\"\")","v":""},{"$f":"IF(DataLog!$C1453=\"Log value\",DataLog!K1453,\"\")","v":""},{"$f":"IF(DataLog!$C1453=\"Log value\",DataLog!L1453,\"\")","v":""},{"$f":"IF(DataLog!$C1453=\"Log value\",DataLog!M1453,\"\")","v":""},{"$f":"IF(DataLog!$C1453=\"Log value\",DataLog!N1453,\"\")","v":""},{"$f":"IF(DataLog!$C1453=\"Log value\",DataLog!O1453,\"\")","v":""},{"$f":"IF(DataLog!$C1453=\"Log value\",DataLog!P1453,\"\")","v":""},{"$f":"IF(DataLog!$C1453=\"Log value\",DataLog!Q1453,\"\")","v":""},{"$f":"IF(DataLog!$C1453=\"Log value\",DataLog!R1453,\"\")","v":""},{"$f":"IF(DataLog!$C1453=\"Log value\",DataLog!S1453,\"\")","v":""},{"$f":"IF(DataLog!$C1453=\"Log value\",DataLog!T1453,\"\")","v":""},{"$f":"IF(DataLog!$C1453=\"Log value\",DataLog!U1453,\"\")","v":""},{"$f":"IF(DataLog!$C1453=\"Log value\",DataLog!V1453,\"\")","v":""},{"$f":"IF(DataLog!$C1453=\"Log value\",DataLog!W1453,\"\")","v":""},{"$f":"IF(DataLog!$C1453=\"Log value\",DataLog!X1453,\"\")","v":""},{"$f":"IF(DataLog!$C1453=\"Log value\",DataLog!Y1453,\"\")","v":""},{"$f":"IF(DataLog!$C1453=\"Log value\",DataLog!Z1453,\"\")","v":""},{"$f":"IF(DataLog!$C1453=\"Log value\",DataLog!AA1453,\"\")","v":""},{"$f":"IF(DataLog!$C1453=\"Log value\",DataLog!AB1453,\"\")","v":""},{"$f":"IF(DataLog!$C1453=\"Log value\",DataLog!AC1453,\"\")","v":""},{"$f":"IF(DataLog!$C1453=\"Log value\",DataLog!AD1453,\"\")","v":""},{"$f":"IF(DataLog!$C1453=\"Log value\",DataLog!AE1453,\"\")","v":""},{"$f":"IF(DataLog!$C1453=\"Log value\",DataLog!AF1453,\"\")","v":""},{"$f":"IF(DataLog!$C1453=\"Log value\",DataLog!AG1453,\"\")","v":""},{"$f":"IF(DataLog!$C1453=\"Log value\",DataLog!AH1453,\"\")","v":""},{"$f":"IF(DataLog!$C1453=\"Log value\",DataLog!AI1453,\"\")","v":""},{"$f":"IF(DataLog!$C1453=\"Log value\",DataLog!AJ1453,\"\")","v":""},{"$f":"IF(DataLog!$C1453=\"Log value\",DataLog!AK1453,\"\")","v":""},{"$f":"IF(DataLog!$C1453=\"Log value\",DataLog!AL1453,\"\")","v":""},{"$f":"IF(DataLog!$C1453=\"Log value\",DataLog!AM1453,\"\")","v":""}]
[null,null,null,null,null,null,{"$f":"IF(DataLog!$C1457=\"Log value\",DataLog!D1457&\"_\"&TEXT(DataLog!B1457,\"åååå-mm-dd\"),\"\")","v":""},{"$f":"IF(DataLog!$C1457=\"Log value\",DataLog!E1457,\"\")","v":""},{"$f":"IF(DataLog!$C1457=\"Log value\",DataLog!F1457,\"\")","v":""},{"$f":"IF(DataLog!$C1457=\"Log value\",DataLog!G1457,\"\")","v":""},{"$f":"IF(DataLog!$C1457=\"Log value\",DataLog!H1457,\"\")","v":""},{"$f":"IF(DataLog!$C1457=\"Log value\",DataLog!I1457,\"\")","v":""},{"$f":"IF(DataLog!$C1457=\"Log value\",DataLog!J1457,\"\")","v":""},{"$f":"IF(DataLog!$C1457=\"Log value\",DataLog!K1457,\"\")","v":""},{"$f":"IF(DataLog!$C1457=\"Log value\",DataLog!L1457,\"\")","v":""},{"$f":"IF(DataLog!$C1457=\"Log value\",DataLog!M1457,\"\")","v":""},{"$f":"IF(DataLog!$C1457=\"Log value\",DataLog!N1457,\"\")","v":""},{"$f":"IF(DataLog!$C1457=\"Log value\",DataLog!O1457,\"\")","v":""},{"$f":"IF(DataLog!$C1457=\"Log value\",DataLog!P1457,\"\")","v":""},{"$f":"IF(DataLog!$C1457=\"Log value\",DataLog!Q1457,\"\")","v":""},{"$f":"IF(DataLog!$C1457=\"Log value\",DataLog!R1457,\"\")","v":""},{"$f":"IF(DataLog!$C1457=\"Log value\",DataLog!S1457,\"\")","v":""},{"$f":"IF(DataLog!$C1457=\"Log value\",DataLog!T1457,\"\")","v":""},{"$f":"IF(DataLog!$C1457=\"Log value\",DataLog!U1457,\"\")","v":""},{"$f":"IF(DataLog!$C1457=\"Log value\",DataLog!V1457,\"\")","v":""},{"$f":"IF(DataLog!$C1457=\"Log value\",DataLog!W1457,\"\")","v":""},{"$f":"IF(DataLog!$C1457=\"Log value\",DataLog!X1457,\"\")","v":""},{"$f":"IF(DataLog!$C1457=\"Log value\",DataLog!Y1457,\"\")","v":""},{"$f":"IF(DataLog!$C1457=\"Log value\",DataLog!Z1457,\"\")","v":""},{"$f":"IF(DataLog!$C1457=\"Log value\",DataLog!AA1457,\"\")","v":""},{"$f":"IF(DataLog!$C1457=\"Log value\",DataLog!AB1457,\"\")","v":""},{"$f":"IF(DataLog!$C1457=\"Log value\",DataLog!AC1457,\"\")","v":""},{"$f":"IF(DataLog!$C1457=\"Log value\",DataLog!AD1457,\"\")","v":""},{"$f":"IF(DataLog!$C1457=\"Log value\",DataLog!AE1457,\"\")","v":""},{"$f":"IF(DataLog!$C1457=\"Log value\",DataLog!AF1457,\"\")","v":""},{"$f":"IF(DataLog!$C1457=\"Log value\",DataLog!AG1457,\"\")","v":""},{"$f":"IF(DataLog!$C1457=\"Log value\",DataLog!AH1457,\"\")","v":""},{"$f":"IF(DataLog!$C1457=\"Log value\",DataLog!AI1457,\"\")","v":""},{"$f":"IF(DataLog!$C1457=\"Log value\",DataLog!AJ1457,\"\")","v":""},{"$f":"IF(DataLog!$C1457=\"Log value\",DataLog!AK1457,\"\")","v":""},{"$f":"IF(DataLog!$C1457=\"Log value\",DataLog!AL1457,\"\")","v":""},{"$f":"IF(DataLog!$C1457=\"Log value\",DataLog!AM1457,\"\")","v":""}]
[null,null,null,null,null,null,{"$f":"IF(DataLog!$C1458=\"Log value\",DataLog!D1458&\"_\"&TEXT(DataLog!B1458,\"åååå-mm-dd\"),\"\")","v":""},{"$f":"IF(DataLog!$C1458=\"Log value\",DataLog!E1458,\"\")","v":""},{"$f":"IF(DataLog!$C1458=\"Log value\",DataLog!F1458,\"\")","v":""},{"$f":"IF(DataLog!$C1458=\"Log value\",DataLog!G1458,\"\")","v":""},{"$f":"IF(DataLog!$C1458=\"Log value\",DataLog!H1458,\"\")","v":""},{"$f":"IF(DataLog!$C1458=\"Log value\",DataLog!I1458,\"\")","v":""},{"$f":"IF(DataLog!$C1458=\"Log value\",DataLog!J1458,\"\")","v":""},{"$f":"IF(DataLog!$C1458=\"Log value\",DataLog!K1458,\"\")","v":""},{"$f":"IF(DataLog!$C1458=\"Log value\",DataLog!L1458,\"\")","v":""},{"$f":"IF(DataLog!$C1458=\"Log value\",DataLog!M1458,\"\")","v":""},{"$f":"IF(DataLog!$C1458=\"Log value\",DataLog!N1458,\"\")","v":""},{"$f":"IF(DataLog!$C1458=\"Log value\",DataLog!O1458,\"\")","v":""},{"$f":"IF(DataLog!$C1458=\"Log value\",DataLog!P1458,\"\")","v":""},{"$f":"IF(DataLog!$C1458=\"Log value\",DataLog!Q1458,\"\")","v":""},{"$f":"IF(DataLog!$C1458=\"Log value\",DataLog!R1458,\"\")","v":""},{"$f":"IF(DataLog!$C1458=\"Log value\",DataLog!S1458,\"\")","v":""},{"$f":"IF(DataLog!$C1458=\"Log value\",DataLog!T1458,\"\")","v":""},{"$f":"IF(DataLog!$C1458=\"Log value\",DataLog!U1458,\"\")","v":""},{"$f":"IF(DataLog!$C1458=\"Log value\",DataLog!V1458,\"\")","v":""},{"$f":"IF(DataLog!$C1458=\"Log value\",DataLog!W1458,\"\")","v":""},{"$f":"IF(DataLog!$C1458=\"Log value\",DataLog!X1458,\"\")","v":""},{"$f":"IF(DataLog!$C1458=\"Log value\",DataLog!Y1458,\"\")","v":""},{"$f":"IF(DataLog!$C1458=\"Log value\",DataLog!Z1458,\"\")","v":""},{"$f":"IF(DataLog!$C1458=\"Log value\",DataLog!AA1458,\"\")","v":""},{"$f":"IF(DataLog!$C1458=\"Log value\",DataLog!AB1458,\"\")","v":""},{"$f":"IF(DataLog!$C1458=\"Log value\",DataLog!AC1458,\"\")","v":""},{"$f":"IF(DataLog!$C1458=\"Log value\",DataLog!AD1458,\"\")","v":""},{"$f":"IF(DataLog!$C1458=\"Log value\",DataLog!AE1458,\"\")","v":""},{"$f":"IF(DataLog!$C1458=\"Log value\",DataLog!AF1458,\"\")","v":""},{"$f":"IF(DataLog!$C1458=\"Log value\",DataLog!AG1458,\"\")","v":""},{"$f":"IF(DataLog!$C1458=\"Log value\",DataLog!AH1458,\"\")","v":""},{"$f":"IF(DataLog!$C1458=\"Log value\",DataLog!AI1458,\"\")","v":""},{"$f":"IF(DataLog!$C1458=\"Log value\",DataLog!AJ1458,\"\")","v":""},{"$f":"IF(DataLog!$C1458=\"Log value\",DataLog!AK1458,\"\")","v":""},{"$f":"IF(DataLog!$C1458=\"Log value\",DataLog!AL1458,\"\")","v":""},{"$f":"IF(DataLog!$C1458=\"Log value\",DataLog!AM1458,\"\")","v":""}]
[null,null,null,null,null,null,{"$f":"IF(DataLog!$C1461=\"Log value\",DataLog!D1461&\"_\"&TEXT(DataLog!B1461,\"åååå-mm-dd\"),\"\")","v":""},{"$f":"IF(DataLog!$C1461=\"Log value\",DataLog!E1461,\"\")","v":""},{"$f":"IF(DataLog!$C1461=\"Log value\",DataLog!F1461,\"\")","v":""},{"$f":"IF(DataLog!$C1461=\"Log value\",DataLog!G1461,\"\")","v":""},{"$f":"IF(DataLog!$C1461=\"Log value\",DataLog!H1461,\"\")","v":""},{"$f":"IF(DataLog!$C1461=\"Log value\",DataLog!I1461,\"\")","v":""},{"$f":"IF(DataLog!$C1461=\"Log value\",DataLog!J1461,\"\")","v":""},{"$f":"IF(DataLog!$C1461=\"Log value\",DataLog!K1461,\"\")","v":""},{"$f":"IF(DataLog!$C1461=\"Log value\",DataLog!L1461,\"\")","v":""},{"$f":"IF(DataLog!$C1461=\"Log value\",DataLog!M1461,\"\")","v":""},{"$f":"IF(DataLog!$C1461=\"Log value\",DataLog!N1461,\"\")","v":""},{"$f":"IF(DataLog!$C1461=\"Log value\",DataLog!O1461,\"\")","v":""},{"$f":"IF(DataLog!$C1461=\"Log value\",DataLog!P1461,\"\")","v":""},{"$f":"IF(DataLog!$C1461=\"Log value\",DataLog!Q1461,\"\")","v":""},{"$f":"IF(DataLog!$C1461=\"Log value\",DataLog!R1461,\"\")","v":""},{"$f":"IF(DataLog!$C1461=\"Log value\",DataLog!S1461,\"\")","v":""},{"$f":"IF(DataLog!$C1461=\"Log value\",DataLog!T1461,\"\")","v":""},{"$f":"IF(DataLog!$C1461=\"Log value\",DataLog!U1461,\"\")","v":""},{"$f":"IF(DataLog!$C1461=\"Log value\",DataLog!V1461,\"\")","v":""},{"$f":"IF(DataLog!$C1461=\"Log value\",DataLog!W1461,\"\")","v":""},{"$f":"IF(DataLog!$C1461=\"Log value\",DataLog!X1461,\"\")","v":""},{"$f":"IF(DataLog!$C1461=\"Log value\",DataLog!Y1461,\"\")","v":""},{"$f":"IF(DataLog!$C1461=\"Log value\",DataLog!Z1461,\"\")","v":""},{"$f":"IF(DataLog!$C1461=\"Log value\",DataLog!AA1461,\"\")","v":""},{"$f":"IF(DataLog!$C1461=\"Log value\",DataLog!AB1461,\"\")","v":""},{"$f":"IF(DataLog!$C1461=\"Log value\",DataLog!AC1461,\"\")","v":""},{"$f":"IF(DataLog!$C1461=\"Log value\",DataLog!AD1461,\"\")","v":""},{"$f":"IF(DataLog!$C1461=\"Log value\",DataLog!AE1461,\"\")","v":""},{"$f":"IF(DataLog!$C1461=\"Log value\",DataLog!AF1461,\"\")","v":""},{"$f":"IF(DataLog!$C1461=\"Log value\",DataLog!AG1461,\"\")","v":""},{"$f":"IF(DataLog!$C1461=\"Log value\",DataLog!AH1461,\"\")","v":""},{"$f":"IF(DataLog!$C1461=\"Log value\",DataLog!AI1461,\"\")","v":""},{"$f":"IF(DataLog!$C1461=\"Log value\",DataLog!AJ1461,\"\")","v":""},{"$f":"IF(DataLog!$C1461=\"Log value\",DataLog!AK1461,\"\")","v":""},{"$f":"IF(DataLog!$C1461=\"Log value\",DataLog!AL1461,\"\")","v":""},{"$f":"IF(DataLog!$C1461=\"Log value\",DataLog!AM1461,\"\")","v":""}]
[null,null,null,null,null,null,{"$f":"IF(DataLog!$C1462=\"Log value\",DataLog!D1462&\"_\"&TEXT(DataLog!B1462,\"åååå-mm-dd\"),\"\")","v":""},{"$f":"IF(DataLog!$C1462=\"Log value\",DataLog!E1462,\"\")","v":""},{"$f":"IF(DataLog!$C1462=\"Log value\",DataLog!F1462,\"\")","v":""},{"$f":"IF(DataLog!$C1462=\"Log value\",DataLog!G1462,\"\")","v":""},{"$f":"IF(DataLog!$C1462=\"Log value\",DataLog!H1462,\"\")","v":""},{"$f":"IF(DataLog!$C1462=\"Log value\",DataLog!I1462,\"\")","v":""},{"$f":"IF(DataLog!$C1462=\"Log value\",DataLog!J1462,\"\")","v":""},{"$f":"IF(DataLog!$C1462=\"Log value\",DataLog!K1462,\"\")","v":""},{"$f":"IF(DataLog!$C1462=\"Log value\",DataLog!L1462,\"\")","v":""},{"$f":"IF(DataLog!$C1462=\"Log value\",DataLog!M1462,\"\")","v":""},{"$f":"IF(DataLog!$C1462=\"Log value\",DataLog!N1462,\"\")","v":""},{"$f":"IF(DataLog!$C1462=\"Log value\",DataLog!O1462,\"\")","v":""},{"$f":"IF(DataLog!$C1462=\"Log value\",DataLog!P1462,\"\")","v":""},{"$f":"IF(DataLog!$C1462=\"Log value\",DataLog!Q1462,\"\")","v":""},{"$f":"IF(DataLog!$C1462=\"Log value\",DataLog!R1462,\"\")","v":""},{"$f":"IF(DataLog!$C1462=\"Log value\",DataLog!S1462,\"\")","v":""},{"$f":"IF(DataLog!$C1462=\"Log value\",DataLog!T1462,\"\")","v":""},{"$f":"IF(DataLog!$C1462=\"Log value\",DataLog!U1462,\"\")","v":""},{"$f":"IF(DataLog!$C1462=\"Log value\",DataLog!V1462,\"\")","v":""},{"$f":"IF(DataLog!$C1462=\"Log value\",DataLog!W1462,\"\")","v":""},{"$f":"IF(DataLog!$C1462=\"Log value\",DataLog!X1462,\"\")","v":""},{"$f":"IF(DataLog!$C1462=\"Log value\",DataLog!Y1462,\"\")","v":""},{"$f":"IF(DataLog!$C1462=\"Log value\",DataLog!Z1462,\"\")","v":""},{"$f":"IF(DataLog!$C1462=\"Log value\",DataLog!AA1462,\"\")","v":""},{"$f":"IF(DataLog!$C1462=\"Log value\",DataLog!AB1462,\"\")","v":""},{"$f":"IF(DataLog!$C1462=\"Log value\",DataLog!AC1462,\"\")","v":""},{"$f":"IF(DataLog!$C1462=\"Log value\",DataLog!AD1462,\"\")","v":""},{"$f":"IF(DataLog!$C1462=\"Log value\",DataLog!AE1462,\"\")","v":""},{"$f":"IF(DataLog!$C1462=\"Log value\",DataLog!AF1462,\"\")","v":""},{"$f":"IF(DataLog!$C1462=\"Log value\",DataLog!AG1462,\"\")","v":""},{"$f":"IF(DataLog!$C1462=\"Log value\",DataLog!AH1462,\"\")","v":""},{"$f":"IF(DataLog!$C1462=\"Log value\",DataLog!AI1462,\"\")","v":""},{"$f":"IF(DataLog!$C1462=\"Log value\",DataLog!AJ1462,\"\")","v":""},{"$f":"IF(DataLog!$C1462=\"Log value\",DataLog!AK1462,\"\")","v":""},{"$f":"IF(DataLog!$C1462=\"Log value\",DataLog!AL1462,\"\")","v":""},{"$f":"IF(DataLog!$C1462=\"Log value\",DataLog!AM1462,\"\")","v":""}]
[null,null,null,null,null,null,{"$f":"IF(DataLog!$C1465=\"Log value\",DataLog!D1465&\"_\"&TEXT(DataLog!B1465,\"åååå-mm-dd\"),\"\")","v":""},{"$f":"IF(DataLog!$C1465=\"Log value\",DataLog!E1465,\"\")","v":""},{"$f":"IF(DataLog!$C1465=\"Log value\",DataLog!F1465,\"\")","v":""},{"$f":"IF(DataLog!$C1465=\"Log value\",DataLog!G1465,\"\")","v":""},{"$f":"IF(DataLog!$C1465=\"Log value\",DataLog!H1465,\"\")","v":""},{"$f":"IF(DataLog!$C1465=\"Log value\",DataLog!I1465,\"\")","v":""},{"$f":"IF(DataLog!$C1465=\"Log value\",DataLog!J1465,\"\")","v":""},{"$f":"IF(DataLog!$C1465=\"Log value\",DataLog!K1465,\"\")","v":""},{"$f":"IF(DataLog!$C1465=\"Log value\",DataLog!L1465,\"\")","v":""},{"$f":"IF(DataLog!$C1465=\"Log value\",DataLog!M1465,\"\")","v":""},{"$f":"IF(DataLog!$C1465=\"Log value\",DataLog!N1465,\"\")","v":""},{"$f":"IF(DataLog!$C1465=\"Log value\",DataLog!O1465,\"\")","v":""},{"$f":"IF(DataLog!$C1465=\"Log value\",DataLog!P1465,\"\")","v":""},{"$f":"IF(DataLog!$C1465=\"Log value\",DataLog!Q1465,\"\")","v":""},{"$f":"IF(DataLog!$C1465=\"Log value\",DataLog!R1465,\"\")","v":""},{"$f":"IF(DataLog!$C1465=\"Log value\",DataLog!S1465,\"\")","v":""},{"$f":"IF(DataLog!$C1465=\"Log value\",DataLog!T1465,\"\")","v":""},{"$f":"IF(DataLog!$C1465=\"Log value\",DataLog!U1465,\"\")","v":""},{"$f":"IF(DataLog!$C1465=\"Log value\",DataLog!V1465,\"\")","v":""},{"$f":"IF(DataLog!$C1465=\"Log value\",DataLog!W1465,\"\")","v":""},{"$f":"IF(DataLog!$C1465=\"Log value\",DataLog!X1465,\"\")","v":""},{"$f":"IF(DataLog!$C1465=\"Log value\",DataLog!Y1465,\"\")","v":""},{"$f":"IF(DataLog!$C1465=\"Log value\",DataLog!Z1465,\"\")","v":""},{"$f":"IF(DataLog!$C1465=\"Log value\",DataLog!AA1465,\"\")","v":""},{"$f":"IF(DataLog!$C1465=\"Log value\",DataLog!AB1465,\"\")","v":""},{"$f":"IF(DataLog!$C1465=\"Log value\",DataLog!AC1465,\"\")","v":""},{"$f":"IF(DataLog!$C1465=\"Log value\",DataLog!AD1465,\"\")","v":""},{"$f":"IF(DataLog!$C1465=\"Log value\",DataLog!AE1465,\"\")","v":""},{"$f":"IF(DataLog!$C1465=\"Log value\",DataLog!AF1465,\"\")","v":""},{"$f":"IF(DataLog!$C1465=\"Log value\",DataLog!AG1465,\"\")","v":""},{"$f":"IF(DataLog!$C1465=\"Log value\",DataLog!AH1465,\"\")","v":""},{"$f":"IF(DataLog!$C1465=\"Log value\",DataLog!AI1465,\"\")","v":""},{"$f":"IF(DataLog!$C1465=\"Log value\",DataLog!AJ1465,\"\")","v":""},{"$f":"IF(DataLog!$C1465=\"Log value\",DataLog!AK1465,\"\")","v":""},{"$f":"IF(DataLog!$C1465=\"Log value\",DataLog!AL1465,\"\")","v":""},{"$f":"IF(DataLog!$C1465=\"Log value\",DataLog!AM1465,\"\")","v":""}]
[null,null,null,null,null,null,{"$f":"IF(DataLog!$C1467=\"Log value\",DataLog!D1467&\"_\"&TEXT(DataLog!B1467,\"åååå-mm-dd\"),\"\")","v":""},{"$f":"IF(DataLog!$C1467=\"Log value\",DataLog!E1467,\"\")","v":""},{"$f":"IF(DataLog!$C1467=\"Log value\",DataLog!F1467,\"\")","v":""},{"$f":"IF(DataLog!$C1467=\"Log value\",DataLog!G1467,\"\")","v":""},{"$f":"IF(DataLog!$C1467=\"Log value\",DataLog!H1467,\"\")","v":""},{"$f":"IF(DataLog!$C1467=\"Log value\",DataLog!I1467,\"\")","v":""},{"$f":"IF(DataLog!$C1467=\"Log value\",DataLog!J1467,\"\")","v":""},{"$f":"IF(DataLog!$C1467=\"Log value\",DataLog!K1467,\"\")","v":""},{"$f":"IF(DataLog!$C1467=\"Log value\",DataLog!L1467,\"\")","v":""},{"$f":"IF(DataLog!$C1467=\"Log value\",DataLog!M1467,\"\")","v":""},{"$f":"IF(DataLog!$C1467=\"Log value\",DataLog!N1467,\"\")","v":""},{"$f":"IF(DataLog!$C1467=\"Log value\",DataLog!O1467,\"\")","v":""},{"$f":"IF(DataLog!$C1467=\"Log value\",DataLog!P1467,\"\")","v":""},{"$f":"IF(DataLog!$C1467=\"Log value\",DataLog!Q1467,\"\")","v":""},{"$f":"IF(DataLog!$C1467=\"Log value\",DataLog!R1467,\"\")","v":""},{"$f":"IF(DataLog!$C1467=\"Log value\",DataLog!S1467,\"\")","v":""},{"$f":"IF(DataLog!$C1467=\"Log value\",DataLog!T1467,\"\")","v":""},{"$f":"IF(DataLog!$C1467=\"Log value\",DataLog!U1467,\"\")","v":""},{"$f":"IF(DataLog!$C1467=\"Log value\",DataLog!V1467,\"\")","v":""},{"$f":"IF(DataLog!$C1467=\"Log value\",DataLog!W1467,\"\")","v":""},{"$f":"IF(DataLog!$C1467=\"Log value\",DataLog!X1467,\"\")","v":""},{"$f":"IF(DataLog!$C1467=\"Log value\",DataLog!Y1467,\"\")","v":""},{"$f":"IF(DataLog!$C1467=\"Log value\",DataLog!Z1467,\"\")","v":""},{"$f":"IF(DataLog!$C1467=\"Log value\",DataLog!AA1467,\"\")","v":""},{"$f":"IF(DataLog!$C1467=\"Log value\",DataLog!AB1467,\"\")","v":""},{"$f":"IF(DataLog!$C1467=\"Log value\",DataLog!AC1467,\"\")","v":""},{"$f":"IF(DataLog!$C1467=\"Log value\",DataLog!AD1467,\"\")","v":""},{"$f":"IF(DataLog!$C1467=\"Log value\",DataLog!AE1467,\"\")","v":""},{"$f":"IF(DataLog!$C1467=\"Log value\",DataLog!AF1467,\"\")","v":""},{"$f":"IF(DataLog!$C1467=\"Log value\",DataLog!AG1467,\"\")","v":""},{"$f":"IF(DataLog!$C1467=\"Log value\",DataLog!AH1467,\"\")","v":""},{"$f":"IF(DataLog!$C1467=\"Log value\",DataLog!AI1467,\"\")","v":""},{"$f":"IF(DataLog!$C1467=\"Log value\",DataLog!AJ1467,\"\")","v":""},{"$f":"IF(DataLog!$C1467=\"Log value\",DataLog!AK1467,\"\")","v":""},{"$f":"IF(DataLog!$C1467=\"Log value\",DataLog!AL1467,\"\")","v":""},{"$f":"IF(DataLog!$C1467=\"Log value\",DataLog!AM1467,\"\")","v":""}]
[null,null,null,null,null,null,{"$f":"IF(DataLog!$C1470=\"Log value\",DataLog!D1470&\"_\"&TEXT(DataLog!B1470,\"åååå-mm-dd\"),\"\")","v":""},{"$f":"IF(DataLog!$C1470=\"Log value\",DataLog!E1470,\"\")","v":""},{"$f":"IF(DataLog!$C1470=\"Log value\",DataLog!F1470,\"\")","v":""},{"$f":"IF(DataLog!$C1470=\"Log value\",DataLog!G1470,\"\")","v":""},{"$f":"IF(DataLog!$C1470=\"Log value\",DataLog!H1470,\"\")","v":""},{"$f":"IF(DataLog!$C1470=\"Log value\",DataLog!I1470,\"\")","v":""},{"$f":"IF(DataLog!$C1470=\"Log value\",DataLog!J1470,\"\")","v":""},{"$f":"IF(DataLog!$C1470=\"Log value\",DataLog!K1470,\"\")","v":""},{"$f":"IF(DataLog!$C1470=\"Log value\",DataLog!L1470,\"\")","v":""},{"$f":"IF(DataLog!$C1470=\"Log value\",DataLog!M1470,\"\")","v":""},{"$f":"IF(DataLog!$C1470=\"Log value\",DataLog!N1470,\"\")","v":""},{"$f":"IF(DataLog!$C1470=\"Log value\",DataLog!O1470,\"\")","v":""},{"$f":"IF(DataLog!$C1470=\"Log value\",DataLog!P1470,\"\")","v":""},{"$f":"IF(DataLog!$C1470=\"Log value\",DataLog!Q1470,\"\")","v":""},{"$f":"IF(DataLog!$C1470=\"Log value\",DataLog!R1470,\"\")","v":""},{"$f":"IF(DataLog!$C1470=\"Log value\",DataLog!S1470,\"\")","v":""},{"$f":"IF(DataLog!$C1470=\"Log value\",DataLog!T1470,\"\")","v":""},{"$f":"IF(DataLog!$C1470=\"Log value\",DataLog!U1470,\"\")","v":""},{"$f":"IF(DataLog!$C1470=\"Log value\",DataLog!V1470,\"\")","v":""},{"$f":"IF(DataLog!$C1470=\"Log value\",DataLog!W1470,\"\")","v":""},{"$f":"IF(DataLog!$C1470=\"Log value\",DataLog!X1470,\"\")","v":""},{"$f":"IF(DataLog!$C1470=\"Log value\",DataLog!Y1470,\"\")","v":""},{"$f":"IF(DataLog!$C1470=\"Log value\",DataLog!Z1470,\"\")","v":""},{"$f":"IF(DataLog!$C1470=\"Log value\",DataLog!AA1470,\"\")","v":""},{"$f":"IF(DataLog!$C1470=\"Log value\",DataLog!AB1470,\"\")","v":""},{"$f":"IF(DataLog!$C1470=\"Log value\",DataLog!AC1470,\"\")","v":""},{"$f":"IF(DataLog!$C1470=\"Log value\",DataLog!AD1470,\"\")","v":""},{"$f":"IF(DataLog!$C1470=\"Log value\",DataLog!AE1470,\"\")","v":""},{"$f":"IF(DataLog!$C1470=\"Log value\",DataLog!AF1470,\"\")","v":""},{"$f":"IF(DataLog!$C1470=\"Log value\",DataLog!AG1470,\"\")","v":""},{"$f":"IF(DataLog!$C1470=\"Log value\",DataLog!AH1470,\"\")","v":""},{"$f":"IF(DataLog!$C1470=\"Log value\",DataLog!AI1470,\"\")","v":""},{"$f":"IF(DataLog!$C1470=\"Log value\",DataLog!AJ1470,\"\")","v":""},{"$f":"IF(DataLog!$C1470=\"Log value\",DataLog!AK1470,\"\")","v":""},{"$f":"IF(DataLog!$C1470=\"Log value\",DataLog!AL1470,\"\")","v":""},{"$f":"IF(DataLog!$C1470=\"Log value\",DataLog!AM1470,\"\")","v":""}]
[null,null,null,null,null,null,{"$f":"IF(DataLog!$C1471=\"Log value\",DataLog!D1471&\"_\"&TEXT(DataLog!B1471,\"åååå-mm-dd\"),\"\")","v":""},{"$f":"IF(DataLog!$C1471=\"Log value\",DataLog!E1471,\"\")","v":""},{"$f":"IF(DataLog!$C1471=\"Log value\",DataLog!F1471,\"\")","v":""},{"$f":"IF(DataLog!$C1471=\"Log value\",DataLog!G1471,\"\")","v":""},{"$f":"IF(DataLog!$C1471=\"Log value\",DataLog!H1471,\"\")","v":""},{"$f":"IF(DataLog!$C1471=\"Log value\",DataLog!I1471,\"\")","v":""},{"$f":"IF(DataLog!$C1471=\"Log value\",DataLog!J1471,\"\")","v":""},{"$f":"IF(DataLog!$C1471=\"Log value\",DataLog!K1471,\"\")","v":""},{"$f":"IF(DataLog!$C1471=\"Log value\",DataLog!L1471,\"\")","v":""},{"$f":"IF(DataLog!$C1471=\"Log value\",DataLog!M1471,\"\")","v":""},{"$f":"IF(DataLog!$C1471=\"Log value\",DataLog!N1471,\"\")","v":""},{"$f":"IF(DataLog!$C1471=\"Log value\",DataLog!O1471,\"\")","v":""},{"$f":"IF(DataLog!$C1471=\"Log value\",DataLog!P1471,\"\")","v":""},{"$f":"IF(DataLog!$C1471=\"Log value\",DataLog!Q1471,\"\")","v":""},{"$f":"IF(DataLog!$C1471=\"Log value\",DataLog!R1471,\"\")","v":""},{"$f":"IF(DataLog!$C1471=\"Log value\",DataLog!S1471,\"\")","v":""},{"$f":"IF(DataLog!$C1471=\"Log value\",DataLog!T1471,\"\")","v":""},{"$f":"IF(DataLog!$C1471=\"Log value\",DataLog!U1471,\"\")","v":""},{"$f":"IF(DataLog!$C1471=\"Log value\",DataLog!V1471,\"\")","v":""},{"$f":"IF(DataLog!$C1471=\"Log value\",DataLog!W1471,\"\")","v":""},{"$f":"IF(DataLog!$C1471=\"Log value\",DataLog!X1471,\"\")","v":""},{"$f":"IF(DataLog!$C1471=\"Log value\",DataLog!Y1471,\"\")","v":""},{"$f":"IF(DataLog!$C1471=\"Log value\",DataLog!Z1471,\"\")","v":""},{"$f":"IF(DataLog!$C1471=\"Log value\",DataLog!AA1471,\"\")","v":""},{"$f":"IF(DataLog!$C1471=\"Log value\",DataLog!AB1471,\"\")","v":""},{"$f":"IF(DataLog!$C1471=\"Log value\",DataLog!AC1471,\"\")","v":""},{"$f":"IF(DataLog!$C1471=\"Log value\",DataLog!AD1471,\"\")","v":""},{"$f":"IF(DataLog!$C1471=\"Log value\",DataLog!AE1471,\"\")","v":""},{"$f":"IF(DataLog!$C1471=\"Log value\",DataLog!AF1471,\"\")","v":""},{"$f":"IF(DataLog!$C1471=\"Log value\",DataLog!AG1471,\"\")","v":""},{"$f":"IF(DataLog!$C1471=\"Log value\",DataLog!AH1471,\"\")","v":""},{"$f":"IF(DataLog!$C1471=\"Log value\",DataLog!AI1471,\"\")","v":""},{"$f":"IF(DataLog!$C1471=\"Log value\",DataLog!AJ1471,\"\")","v":""},{"$f":"IF(DataLog!$C1471=\"Log value\",DataLog!AK1471,\"\")","v":""},{"$f":"IF(DataLog!$C1471=\"Log value\",DataLog!AL1471,\"\")","v":""},{"$f":"IF(DataLog!$C1471=\"Log value\",DataLog!AM1471,\"\")","v":""}]
[null,null,null,null,null,null,{"$f":"IF(DataLog!$C1475=\"Log value\",DataLog!D1475&\"_\"&TEXT(DataLog!B1475,\"åååå-mm-dd\"),\"\")","v":""},{"$f":"IF(DataLog!$C1475=\"Log value\",DataLog!E1475,\"\")","v":""},{"$f":"IF(DataLog!$C1475=\"Log value\",DataLog!F1475,\"\")","v":""},{"$f":"IF(DataLog!$C1475=\"Log value\",DataLog!G1475,\"\")","v":""},{"$f":"IF(DataLog!$C1475=\"Log value\",DataLog!H1475,\"\")","v":""},{"$f":"IF(DataLog!$C1475=\"Log value\",DataLog!I1475,\"\")","v":""},{"$f":"IF(DataLog!$C1475=\"Log value\",DataLog!J1475,\"\")","v":""},{"$f":"IF(DataLog!$C1475=\"Log value\",DataLog!K1475,\"\")","v":""},{"$f":"IF(DataLog!$C1475=\"Log value\",DataLog!L1475,\"\")","v":""},{"$f":"IF(DataLog!$C1475=\"Log value\",DataLog!M1475,\"\")","v":""},{"$f":"IF(DataLog!$C1475=\"Log value\",DataLog!N1475,\"\")","v":""},{"$f":"IF(DataLog!$C1475=\"Log value\",DataLog!O1475,\"\")","v":""},{"$f":"IF(DataLog!$C1475=\"Log value\",DataLog!P1475,\"\")","v":""},{"$f":"IF(DataLog!$C1475=\"Log value\",DataLog!Q1475,\"\")","v":""},{"$f":"IF(DataLog!$C1475=\"Log value\",DataLog!R1475,\"\")","v":""},{"$f":"IF(DataLog!$C1475=\"Log value\",DataLog!S1475,\"\")","v":""},{"$f":"IF(DataLog!$C1475=\"Log value\",DataLog!T1475,\"\")","v":""},{"$f":"IF(DataLog!$C1475=\"Log value\",DataLog!U1475,\"\")","v":""},{"$f":"IF(DataLog!$C1475=\"Log value\",DataLog!V1475,\"\")","v":""},{"$f":"IF(DataLog!$C1475=\"Log value\",DataLog!W1475,\"\")","v":""},{"$f":"IF(DataLog!$C1475=\"Log value\",DataLog!X1475,\"\")","v":""},{"$f":"IF(DataLog!$C1475=\"Log value\",DataLog!Y1475,\"\")","v":""},{"$f":"IF(DataLog!$C1475=\"Log value\",DataLog!Z1475,\"\")","v":""},{"$f":"IF(DataLog!$C1475=\"Log value\",DataLog!AA1475,\"\")","v":""},{"$f":"IF(DataLog!$C1475=\"Log value\",DataLog!AB1475,\"\")","v":""},{"$f":"IF(DataLog!$C1475=\"Log value\",DataLog!AC1475,\"\")","v":""},{"$f":"IF(DataLog!$C1475=\"Log value\",DataLog!AD1475,\"\")","v":""},{"$f":"IF(DataLog!$C1475=\"Log value\",DataLog!AE1475,\"\")","v":""},{"$f":"IF(DataLog!$C1475=\"Log value\",DataLog!AF1475,\"\")","v":""},{"$f":"IF(DataLog!$C1475=\"Log value\",DataLog!AG1475,\"\")","v":""},{"$f":"IF(DataLog!$C1475=\"Log value\",DataLog!AH1475,\"\")","v":""},{"$f":"IF(DataLog!$C1475=\"Log value\",DataLog!AI1475,\"\")","v":""},{"$f":"IF(DataLog!$C1475=\"Log value\",DataLog!AJ1475,\"\")","v":""},{"$f":"IF(DataLog!$C1475=\"Log value\",DataLog!AK1475,\"\")","v":""},{"$f":"IF(DataLog!$C1475=\"Log value\",DataLog!AL1475,\"\")","v":""},{"$f":"IF(DataLog!$C1475=\"Log value\",DataLog!AM1475,\"\")","v":""}]
[null,null,null,null,null,null,{"$f":"IF(DataLog!$C1476=\"Log value\",DataLog!D1476&\"_\"&TEXT(DataLog!B1476,\"åååå-mm-dd\"),\"\")","v":""},{"$f":"IF(DataLog!$C1476=\"Log value\",DataLog!E1476,\"\")","v":""},{"$f":"IF(DataLog!$C1476=\"Log value\",DataLog!F1476,\"\")","v":""},{"$f":"IF(DataLog!$C1476=\"Log value\",DataLog!G1476,\"\")","v":""},{"$f":"IF(DataLog!$C1476=\"Log value\",DataLog!H1476,\"\")","v":""},{"$f":"IF(DataLog!$C1476=\"Log value\",DataLog!I1476,\"\")","v":""},{"$f":"IF(DataLog!$C1476=\"Log value\",DataLog!J1476,\"\")","v":""},{"$f":"IF(DataLog!$C1476=\"Log value\",DataLog!K1476,\"\")","v":""},{"$f":"IF(DataLog!$C1476=\"Log value\",DataLog!L1476,\"\")","v":""},{"$f":"IF(DataLog!$C1476=\"Log value\",DataLog!M1476,\"\")","v":""},{"$f":"IF(DataLog!$C1476=\"Log value\",DataLog!N1476,\"\")","v":""},{"$f":"IF(DataLog!$C1476=\"Log value\",DataLog!O1476,\"\")","v":""},{"$f":"IF(DataLog!$C1476=\"Log value\",DataLog!P1476,\"\")","v":""},{"$f":"IF(DataLog!$C1476=\"Log value\",DataLog!Q1476,\"\")","v":""},{"$f":"IF(DataLog!$C1476=\"Log value\",DataLog!R1476,\"\")","v":""},{"$f":"IF(DataLog!$C1476=\"Log value\",DataLog!S1476,\"\")","v":""},{"$f":"IF(DataLog!$C1476=\"Log value\",DataLog!T1476,\"\")","v":""},{"$f":"IF(DataLog!$C1476=\"Log value\",DataLog!U1476,\"\")","v":""},{"$f":"IF(DataLog!$C1476=\"Log value\",DataLog!V1476,\"\")","v":""},{"$f":"IF(DataLog!$C1476=\"Log value\",DataLog!W1476,\"\")","v":""},{"$f":"IF(DataLog!$C1476=\"Log value\",DataLog!X1476,\"\")","v":""},{"$f":"IF(DataLog!$C1476=\"Log value\",DataLog!Y1476,\"\")","v":""},{"$f":"IF(DataLog!$C1476=\"Log value\",DataLog!Z1476,\"\")","v":""},{"$f":"IF(DataLog!$C1476=\"Log value\",DataLog!AA1476,\"\")","v":""},{"$f":"IF(DataLog!$C1476=\"Log value\",DataLog!AB1476,\"\")","v":""},{"$f":"IF(DataLog!$C1476=\"Log value\",DataLog!AC1476,\"\")","v":""},{"$f":"IF(DataLog!$C1476=\"Log value\",DataLog!AD1476,\"\")","v":""},{"$f":"IF(DataLog!$C1476=\"Log value\",DataLog!AE1476,\"\")","v":""},{"$f":"IF(DataLog!$C1476=\"Log value\",DataLog!AF1476,\"\")","v":""},{"$f":"IF(DataLog!$C1476=\"Log value\",DataLog!AG1476,\"\")","v":""},{"$f":"IF(DataLog!$C1476=\"Log value\",DataLog!AH1476,\"\")","v":""},{"$f":"IF(DataLog!$C1476=\"Log value\",DataLog!AI1476,\"\")","v":""},{"$f":"IF(DataLog!$C1476=\"Log value\",DataLog!AJ1476,\"\")","v":""},{"$f":"IF(DataLog!$C1476=\"Log value\",DataLog!AK1476,\"\")","v":""},{"$f":"IF(DataLog!$C1476=\"Log value\",DataLog!AL1476,\"\")","v":""},{"$f":"IF(DataLog!$C1476=\"Log value\",DataLog!AM1476,\"\")","v":""}]
[null,null,null,null,null,null,{"$f":"IF(DataLog!$C1479=\"Log value\",DataLog!D1479&\"_\"&TEXT(DataLog!B1479,\"åååå-mm-dd\"),\"\")","v":""},{"$f":"IF(DataLog!$C1479=\"Log value\",DataLog!E1479,\"\")","v":""},{"$f":"IF(DataLog!$C1479=\"Log value\",DataLog!F1479,\"\")","v":""},{"$f":"IF(DataLog!$C1479=\"Log value\",DataLog!G1479,\"\")","v":""},{"$f":"IF(DataLog!$C1479=\"Log value\",DataLog!H1479,\"\")","v":""},{"$f":"IF(DataLog!$C1479=\"Log value\",DataLog!I1479,\"\")","v":""},{"$f":"IF(DataLog!$C1479=\"Log value\",DataLog!J1479,\"\")","v":""},{"$f":"IF(DataLog!$C1479=\"Log value\",DataLog!K1479,\"\")","v":""},{"$f":"IF(DataLog!$C1479=\"Log value\",DataLog!L1479,\"\")","v":""},{"$f":"IF(DataLog!$C1479=\"Log value\",DataLog!M1479,\"\")","v":""},{"$f":"IF(DataLog!$C1479=\"Log value\",DataLog!N1479,\"\")","v":""},{"$f":"IF(DataLog!$C1479=\"Log value\",DataLog!O1479,\"\")","v":""},{"$f":"IF(DataLog!$C1479=\"Log value\",DataLog!P1479,\"\")","v":""},{"$f":"IF(DataLog!$C1479=\"Log value\",DataLog!Q1479,\"\")","v":""},{"$f":"IF(DataLog!$C1479=\"Log value\",DataLog!R1479,\"\")","v":""},{"$f":"IF(DataLog!$C1479=\"Log value\",DataLog!S1479,\"\")","v":""},{"$f":"IF(DataLog!$C1479=\"Log value\",DataLog!T1479,\"\")","v":""},{"$f":"IF(DataLog!$C1479=\"Log value\",DataLog!U1479,\"\")","v":""},{"$f":"IF(DataLog!$C1479=\"Log value\",DataLog!V1479,\"\")","v":""},{"$f":"IF(DataLog!$C1479=\"Log value\",DataLog!W1479,\"\")","v":""},{"$f":"IF(DataLog!$C1479=\"Log value\",DataLog!X1479,\"\")","v":""},{"$f":"IF(DataLog!$C1479=\"Log value\",DataLog!Y1479,\"\")","v":""},{"$f":"IF(DataLog!$C1479=\"Log value\",DataLog!Z1479,\"\")","v":""},{"$f":"IF(DataLog!$C1479=\"Log value\",DataLog!AA1479,\"\")","v":""},{"$f":"IF(DataLog!$C1479=\"Log value\",DataLog!AB1479,\"\")","v":""},{"$f":"IF(DataLog!$C1479=\"Log value\",DataLog!AC1479,\"\")","v":""},{"$f":"IF(DataLog!$C1479=\"Log value\",DataLog!AD1479,\"\")","v":""},{"$f":"IF(DataLog!$C1479=\"Log value\",DataLog!AE1479,\"\")","v":""},{"$f":"IF(DataLog!$C1479=\"Log value\",DataLog!AF1479,\"\")","v":""},{"$f":"IF(DataLog!$C1479=\"Log value\",DataLog!AG1479,\"\")","v":""},{"$f":"IF(DataLog!$C1479=\"Log value\",DataLog!AH1479,\"\")","v":""},{"$f":"IF(DataLog!$C1479=\"Log value\",DataLog!AI1479,\"\")","v":""},{"$f":"IF(DataLog!$C1479=\"Log value\",DataLog!AJ1479,\"\")","v":""},{"$f":"IF(DataLog!$C1479=\"Log value\",DataLog!AK1479,\"\")","v":""},{"$f":"IF(DataLog!$C1479=\"Log value\",DataLog!AL1479,\"\")","v":""},{"$f":"IF(DataLog!$C1479=\"Log value\",DataLog!AM1479,\"\")","v":""}]
[null,null,null,null,null,null,{"$f":"IF(DataLog!$C1480=\"Log value\",DataLog!D1480&\"_\"&TEXT(DataLog!B1480,\"åååå-mm-dd\"),\"\")","v":""},{"$f":"IF(DataLog!$C1480=\"Log value\",DataLog!E1480,\"\")","v":""},{"$f":"IF(DataLog!$C1480=\"Log value\",DataLog!F1480,\"\")","v":""},{"$f":"IF(DataLog!$C1480=\"Log value\",DataLog!G1480,\"\")","v":""},{"$f":"IF(DataLog!$C1480=\"Log value\",DataLog!H1480,\"\")","v":""},{"$f":"IF(DataLog!$C1480=\"Log value\",DataLog!I1480,\"\")","v":""},{"$f":"IF(DataLog!$C1480=\"Log value\",DataLog!J1480,\"\")","v":""},{"$f":"IF(DataLog!$C1480=\"Log value\",DataLog!K1480,\"\")","v":""},{"$f":"IF(DataLog!$C1480=\"Log value\",DataLog!L1480,\"\")","v":""},{"$f":"IF(DataLog!$C1480=\"Log value\",DataLog!M1480,\"\")","v":""},{"$f":"IF(DataLog!$C1480=\"Log value\",DataLog!N1480,\"\")","v":""},{"$f":"IF(DataLog!$C1480=\"Log value\",DataLog!O1480,\"\")","v":""},{"$f":"IF(DataLog!$C1480=\"Log value\",DataLog!P1480,\"\")","v":""},{"$f":"IF(DataLog!$C1480=\"Log value\",DataLog!Q1480,\"\")","v":""},{"$f":"IF(DataLog!$C1480=\"Log value\",DataLog!R1480,\"\")","v":""},{"$f":"IF(DataLog!$C1480=\"Log value\",DataLog!S1480,\"\")","v":""},{"$f":"IF(DataLog!$C1480=\"Log value\",DataLog!T1480,\"\")","v":""},{"$f":"IF(DataLog!$C1480=\"Log value\",DataLog!U1480,\"\")","v":""},{"$f":"IF(DataLog!$C1480=\"Log value\",DataLog!V1480,\"\")","v":""},{"$f":"IF(DataLog!$C1480=\"Log value\",DataLog!W1480,\"\")","v":""},{"$f":"IF(DataLog!$C1480=\"Log value\",DataLog!X1480,\"\")","v":""},{"$f":"IF(DataLog!$C1480=\"Log value\",DataLog!Y1480,\"\")","v":""},{"$f":"IF(DataLog!$C1480=\"Log value\",DataLog!Z1480,\"\")","v":""},{"$f":"IF(DataLog!$C1480=\"Log value\",DataLog!AA1480,\"\")","v":""},{"$f":"IF(DataLog!$C1480=\"Log value\",DataLog!AB1480,\"\")","v":""},{"$f":"IF(DataLog!$C1480=\"Log value\",DataLog!AC1480,\"\")","v":""},{"$f":"IF(DataLog!$C1480=\"Log value\",DataLog!AD1480,\"\")","v":""},{"$f":"IF(DataLog!$C1480=\"Log value\",DataLog!AE1480,\"\")","v":""},{"$f":"IF(DataLog!$C1480=\"Log value\",DataLog!AF1480,\"\")","v":""},{"$f":"IF(DataLog!$C1480=\"Log value\",DataLog!AG1480,\"\")","v":""},{"$f":"IF(DataLog!$C1480=\"Log value\",DataLog!AH1480,\"\")","v":""},{"$f":"IF(DataLog!$C1480=\"Log value\",DataLog!AI1480,\"\")","v":""},{"$f":"IF(DataLog!$C1480=\"Log value\",DataLog!AJ1480,\"\")","v":""},{"$f":"IF(DataLog!$C1480=\"Log value\",DataLog!AK1480,\"\")","v":""},{"$f":"IF(DataLog!$C1480=\"Log value\",DataLog!AL1480,\"\")","v":""},{"$f":"IF(DataLog!$C1480=\"Log value\",DataLog!AM1480,\"\")","v":""}]
[null,null,null,null,null,null,{"$f":"IF(DataLog!$C1483=\"Log value\",DataLog!D1483&\"_\"&TEXT(DataLog!B1483,\"åååå-mm-dd\"),\"\")","v":""},{"$f":"IF(DataLog!$C1483=\"Log value\",DataLog!E1483,\"\")","v":""},{"$f":"IF(DataLog!$C1483=\"Log value\",DataLog!F1483,\"\")","v":""},{"$f":"IF(DataLog!$C1483=\"Log value\",DataLog!G1483,\"\")","v":""},{"$f":"IF(DataLog!$C1483=\"Log value\",DataLog!H1483,\"\")","v":""},{"$f":"IF(DataLog!$C1483=\"Log value\",DataLog!I1483,\"\")","v":""},{"$f":"IF(DataLog!$C1483=\"Log value\",DataLog!J1483,\"\")","v":""},{"$f":"IF(DataLog!$C1483=\"Log value\",DataLog!K1483,\"\")","v":""},{"$f":"IF(DataLog!$C1483=\"Log value\",DataLog!L1483,\"\")","v":""},{"$f":"IF(DataLog!$C1483=\"Log value\",DataLog!M1483,\"\")","v":""},{"$f":"IF(DataLog!$C1483=\"Log value\",DataLog!N1483,\"\")","v":""},{"$f":"IF(DataLog!$C1483=\"Log value\",DataLog!O1483,\"\")","v":""},{"$f":"IF(DataLog!$C1483=\"Log value\",DataLog!P1483,\"\")","v":""},{"$f":"IF(DataLog!$C1483=\"Log value\",DataLog!Q1483,\"\")","v":""},{"$f":"IF(DataLog!$C1483=\"Log value\",DataLog!R1483,\"\")","v":""},{"$f":"IF(DataLog!$C1483=\"Log value\",DataLog!S1483,\"\")","v":""},{"$f":"IF(DataLog!$C1483=\"Log value\",DataLog!T1483,\"\")","v":""},{"$f":"IF(DataLog!$C1483=\"Log value\",DataLog!U1483,\"\")","v":""},{"$f":"IF(DataLog!$C1483=\"Log value\",DataLog!V1483,\"\")","v":""},{"$f":"IF(DataLog!$C1483=\"Log value\",DataLog!W1483,\"\")","v":""},{"$f":"IF(DataLog!$C1483=\"Log value\",DataLog!X1483,\"\")","v":""},{"$f":"IF(DataLog!$C1483=\"Log value\",DataLog!Y1483,\"\")","v":""},{"$f":"IF(DataLog!$C1483=\"Log value\",DataLog!Z1483,\"\")","v":""},{"$f":"IF(DataLog!$C1483=\"Log value\",DataLog!AA1483,\"\")","v":""},{"$f":"IF(DataLog!$C1483=\"Log value\",DataLog!AB1483,\"\")","v":""},{"$f":"IF(DataLog!$C1483=\"Log value\",DataLog!AC1483,\"\")","v":""},{"$f":"IF(DataLog!$C1483=\"Log value\",DataLog!AD1483,\"\")","v":""},{"$f":"IF(DataLog!$C1483=\"Log value\",DataLog!AE1483,\"\")","v":""},{"$f":"IF(DataLog!$C1483=\"Log value\",DataLog!AF1483,\"\")","v":""},{"$f":"IF(DataLog!$C1483=\"Log value\",DataLog!AG1483,\"\")","v":""},{"$f":"IF(DataLog!$C1483=\"Log value\",DataLog!AH1483,\"\")","v":""},{"$f":"IF(DataLog!$C1483=\"Log value\",DataLog!AI1483,\"\")","v":""},{"$f":"IF(DataLog!$C1483=\"Log value\",DataLog!AJ1483,\"\")","v":""},{"$f":"IF(DataLog!$C1483=\"Log value\",DataLog!AK1483,\"\")","v":""},{"$f":"IF(DataLog!$C1483=\"Log value\",DataLog!AL1483,\"\")","v":""},{"$f":"IF(DataLog!$C1483=\"Log value\",DataLog!AM1483,\"\")","v":""}]
[null,null,null,null,null,null,{"$f":"IF(DataLog!$C1485=\"Log value\",DataLog!D1485&\"_\"&TEXT(DataLog!B1485,\"åååå-mm-dd\"),\"\")","v":""},{"$f":"IF(DataLog!$C1485=\"Log value\",DataLog!E1485,\"\")","v":""},{"$f":"IF(DataLog!$C1485=\"Log value\",DataLog!F1485,\"\")","v":""},{"$f":"IF(DataLog!$C1485=\"Log value\",DataLog!G1485,\"\")","v":""},{"$f":"IF(DataLog!$C1485=\"Log value\",DataLog!H1485,\"\")","v":""},{"$f":"IF(DataLog!$C1485=\"Log value\",DataLog!I1485,\"\")","v":""},{"$f":"IF(DataLog!$C1485=\"Log value\",DataLog!J1485,\"\")","v":""},{"$f":"IF(DataLog!$C1485=\"Log value\",DataLog!K1485,\"\")","v":""},{"$f":"IF(DataLog!$C1485=\"Log value\",DataLog!L1485,\"\")","v":""},{"$f":"IF(DataLog!$C1485=\"Log value\",DataLog!M1485,\"\")","v":""},{"$f":"IF(DataLog!$C1485=\"Log value\",DataLog!N1485,\"\")","v":""},{"$f":"IF(DataLog!$C1485=\"Log value\",DataLog!O1485,\"\")","v":""},{"$f":"IF(DataLog!$C1485=\"Log value\",DataLog!P1485,\"\")","v":""},{"$f":"IF(DataLog!$C1485=\"Log value\",DataLog!Q1485,\"\")","v":""},{"$f":"IF(DataLog!$C1485=\"Log value\",DataLog!R1485,\"\")","v":""},{"$f":"IF(DataLog!$C1485=\"Log value\",DataLog!S1485,\"\")","v":""},{"$f":"IF(DataLog!$C1485=\"Log value\",DataLog!T1485,\"\")","v":""},{"$f":"IF(DataLog!$C1485=\"Log value\",DataLog!U1485,\"\")","v":""},{"$f":"IF(DataLog!$C1485=\"Log value\",DataLog!V1485,\"\")","v":""},{"$f":"IF(DataLog!$C1485=\"Log value\",DataLog!W1485,\"\")","v":""},{"$f":"IF(DataLog!$C1485=\"Log value\",DataLog!X1485,\"\")","v":""},{"$f":"IF(DataLog!$C1485=\"Log value\",DataLog!Y1485,\"\")","v":""},{"$f":"IF(DataLog!$C1485=\"Log value\",DataLog!Z1485,\"\")","v":""},{"$f":"IF(DataLog!$C1485=\"Log value\",DataLog!AA1485,\"\")","v":""},{"$f":"IF(DataLog!$C1485=\"Log value\",DataLog!AB1485,\"\")","v":""},{"$f":"IF(DataLog!$C1485=\"Log value\",DataLog!AC1485,\"\")","v":""},{"$f":"IF(DataLog!$C1485=\"Log value\",DataLog!AD1485,\"\")","v":""},{"$f":"IF(DataLog!$C1485=\"Log value\",DataLog!AE1485,\"\")","v":""},{"$f":"IF(DataLog!$C1485=\"Log value\",DataLog!AF1485,\"\")","v":""},{"$f":"IF(DataLog!$C1485=\"Log value\",DataLog!AG1485,\"\")","v":""},{"$f":"IF(DataLog!$C1485=\"Log value\",DataLog!AH1485,\"\")","v":""},{"$f":"IF(DataLog!$C1485=\"Log value\",DataLog!AI1485,\"\")","v":""},{"$f":"IF(DataLog!$C1485=\"Log value\",DataLog!AJ1485,\"\")","v":""},{"$f":"IF(DataLog!$C1485=\"Log value\",DataLog!AK1485,\"\")","v":""},{"$f":"IF(DataLog!$C1485=\"Log value\",DataLog!AL1485,\"\")","v":""},{"$f":"IF(DataLog!$C1485=\"Log value\",DataLog!AM1485,\"\")","v":""}]
[null,null,null,null,null,null,{"$f":"IF(DataLog!$C1488=\"Log value\",DataLog!D1488&\"_\"&TEXT(DataLog!B1488,\"åååå-mm-dd\"),\"\")","v":""},{"$f":"IF(DataLog!$C1488=\"Log value\",DataLog!E1488,\"\")","v":""},{"$f":"IF(DataLog!$C1488=\"Log value\",DataLog!F1488,\"\")","v":""},{"$f":"IF(DataLog!$C1488=\"Log value\",DataLog!G1488,\"\")","v":""},{"$f":"IF(DataLog!$C1488=\"Log value\",DataLog!H1488,\"\")","v":""},{"$f":"IF(DataLog!$C1488=\"Log value\",DataLog!I1488,\"\")","v":""},{"$f":"IF(DataLog!$C1488=\"Log value\",DataLog!J1488,\"\")","v":""},{"$f":"IF(DataLog!$C1488=\"Log value\",DataLog!K1488,\"\")","v":""},{"$f":"IF(DataLog!$C1488=\"Log value\",DataLog!L1488,\"\")","v":""},{"$f":"IF(DataLog!$C1488=\"Log value\",DataLog!M1488,\"\")","v":""},{"$f":"IF(DataLog!$C1488=\"Log value\",DataLog!N1488,\"\")","v":""},{"$f":"IF(DataLog!$C1488=\"Log value\",DataLog!O1488,\"\")","v":""},{"$f":"IF(DataLog!$C1488=\"Log value\",DataLog!P1488,\"\")","v":""},{"$f":"IF(DataLog!$C1488=\"Log value\",DataLog!Q1488,\"\")","v":""},{"$f":"IF(DataLog!$C1488=\"Log value\",DataLog!R1488,\"\")","v":""},{"$f":"IF(DataLog!$C1488=\"Log value\",DataLog!S1488,\"\")","v":""},{"$f":"IF(DataLog!$C1488=\"Log value\",DataLog!T1488,\"\")","v":""},{"$f":"IF(DataLog!$C1488=\"Log value\",DataLog!U1488,\"\")","v":""},{"$f":"IF(DataLog!$C1488=\"Log value\",DataLog!V1488,\"\")","v":""},{"$f":"IF(DataLog!$C1488=\"Log value\",DataLog!W1488,\"\")","v":""},{"$f":"IF(DataLog!$C1488=\"Log value\",DataLog!X1488,\"\")","v":""},{"$f":"IF(DataLog!$C1488=\"Log value\",DataLog!Y1488,\"\")","v":""},{"$f":"IF(DataLog!$C1488=\"Log value\",DataLog!Z1488,\"\")","v":""},{"$f":"IF(DataLog!$C1488=\"Log value\",DataLog!AA1488,\"\")","v":""},{"$f":"IF(DataLog!$C1488=\"Log value\",DataLog!AB1488,\"\")","v":""},{"$f":"IF(DataLog!$C1488=\"Log value\",DataLog!AC1488,\"\")","v":""},{"$f":"IF(DataLog!$C1488=\"Log value\",DataLog!AD1488,\"\")","v":""},{"$f":"IF(DataLog!$C1488=\"Log value\",DataLog!AE1488,\"\")","v":""},{"$f":"IF(DataLog!$C1488=\"Log value\",DataLog!AF1488,\"\")","v":""},{"$f":"IF(DataLog!$C1488=\"Log value\",DataLog!AG1488,\"\")","v":""},{"$f":"IF(DataLog!$C1488=\"Log value\",DataLog!AH1488,\"\")","v":""},{"$f":"IF(DataLog!$C1488=\"Log value\",DataLog!AI1488,\"\")","v":""},{"$f":"IF(DataLog!$C1488=\"Log value\",DataLog!AJ1488,\"\")","v":""},{"$f":"IF(DataLog!$C1488=\"Log value\",DataLog!AK1488,\"\")","v":""},{"$f":"IF(DataLog!$C1488=\"Log value\",DataLog!AL1488,\"\")","v":""},{"$f":"IF(DataLog!$C1488=\"Log value\",DataLog!AM1488,\"\")","v":""}]
[null,null,null,null,null,null,{"$f":"IF(DataLog!$C1491=\"Log value\",DataLog!D1491&\"_\"&TEXT(DataLog!B1491,\"åååå-mm-dd\"),\"\")","v":""},{"$f":"IF(DataLog!$C1491=\"Log value\",DataLog!E1491,\"\")","v":""},{"$f":"IF(DataLog!$C1491=\"Log value\",DataLog!F1491,\"\")","v":""},{"$f":"IF(DataLog!$C1491=\"Log value\",DataLog!G1491,\"\")","v":""},{"$f":"IF(DataLog!$C1491=\"Log value\",DataLog!H1491,\"\")","v":""},{"$f":"IF(DataLog!$C1491=\"Log value\",DataLog!I1491,\"\")","v":""},{"$f":"IF(DataLog!$C1491=\"Log value\",DataLog!J1491,\"\")","v":""},{"$f":"IF(DataLog!$C1491=\"Log value\",DataLog!K1491,\"\")","v":""},{"$f":"IF(DataLog!$C1491=\"Log value\",DataLog!L1491,\"\")","v":""},{"$f":"IF(DataLog!$C1491=\"Log value\",DataLog!M1491,\"\")","v":""},{"$f":"IF(DataLog!$C1491=\"Log value\",DataLog!N1491,\"\")","v":""},{"$f":"IF(DataLog!$C1491=\"Log value\",DataLog!O1491,\"\")","v":""},{"$f":"IF(DataLog!$C1491=\"Log value\",DataLog!P1491,\"\")","v":""},{"$f":"IF(DataLog!$C1491=\"Log value\",DataLog!Q1491,\"\")","v":""},{"$f":"IF(DataLog!$C1491=\"Log value\",DataLog!R1491,\"\")","v":""},{"$f":"IF(DataLog!$C1491=\"Log value\",DataLog!S1491,\"\")","v":""},{"$f":"IF(DataLog!$C1491=\"Log value\",DataLog!T1491,\"\")","v":""},{"$f":"IF(DataLog!$C1491=\"Log value\",DataLog!U1491,\"\")","v":""},{"$f":"IF(DataLog!$C1491=\"Log value\",DataLog!V1491,\"\")","v":""},{"$f":"IF(DataLog!$C1491=\"Log value\",DataLog!W1491,\"\")","v":""},{"$f":"IF(DataLog!$C1491=\"Log value\",DataLog!X1491,\"\")","v":""},{"$f":"IF(DataLog!$C1491=\"Log value\",DataLog!Y1491,\"\")","v":""},{"$f":"IF(DataLog!$C1491=\"Log value\",DataLog!Z1491,\"\")","v":""},{"$f":"IF(DataLog!$C1491=\"Log value\",DataLog!AA1491,\"\")","v":""},{"$f":"IF(DataLog!$C1491=\"Log value\",DataLog!AB1491,\"\")","v":""},{"$f":"IF(DataLog!$C1491=\"Log value\",DataLog!AC1491,\"\")","v":""},{"$f":"IF(DataLog!$C1491=\"Log value\",DataLog!AD1491,\"\")","v":""},{"$f":"IF(DataLog!$C1491=\"Log value\",DataLog!AE1491,\"\")","v":""},{"$f":"IF(DataLog!$C1491=\"Log value\",DataLog!AF1491,\"\")","v":""},{"$f":"IF(DataLog!$C1491=\"Log value\",DataLog!AG1491,\"\")","v":""},{"$f":"IF(DataLog!$C1491=\"Log value\",DataLog!AH1491,\"\")","v":""},{"$f":"IF(DataLog!$C1491=\"Log value\",DataLog!AI1491,\"\")","v":""},{"$f":"IF(DataLog!$C1491=\"Log value\",DataLog!AJ1491,\"\")","v":""},{"$f":"IF(DataLog!$C1491=\"Log value\",DataLog!AK1491,\"\")","v":""},{"$f":"IF(DataLog!$C1491=\"Log value\",DataLog!AL1491,\"\")","v":""},{"$f":"IF(DataLog!$C1491=\"Log value\",DataLog!AM1491,\"\")","v":""}]
[null,null,null,null,null,null,{"$f":"IF(DataLog!$C1493=\"Log value\",DataLog!D1493&\"_\"&TEXT(DataLog!B1493,\"åååå-mm-dd\"),\"\")","v":""},{"$f":"IF(DataLog!$C1493=\"Log value\",DataLog!E1493,\"\")","v":""},{"$f":"IF(DataLog!$C1493=\"Log value\",DataLog!F1493,\"\")","v":""},{"$f":"IF(DataLog!$C1493=\"Log value\",DataLog!G1493,\"\")","v":""},{"$f":"IF(DataLog!$C1493=\"Log value\",DataLog!H1493,\"\")","v":""},{"$f":"IF(DataLog!$C1493=\"Log value\",DataLog!I1493,\"\")","v":""},{"$f":"IF(DataLog!$C1493=\"Log value\",DataLog!J1493,\"\")","v":""},{"$f":"IF(DataLog!$C1493=\"Log value\",DataLog!K1493,\"\")","v":""},{"$f":"IF(DataLog!$C1493=\"Log value\",DataLog!L1493,\"\")","v":""},{"$f":"IF(DataLog!$C1493=\"Log value\",DataLog!M1493,\"\")","v":""},{"$f":"IF(DataLog!$C1493=\"Log value\",DataLog!N1493,\"\")","v":""},{"$f":"IF(DataLog!$C1493=\"Log value\",DataLog!O1493,\"\")","v":""},{"$f":"IF(DataLog!$C1493=\"Log value\",DataLog!P1493,\"\")","v":""},{"$f":"IF(DataLog!$C1493=\"Log value\",DataLog!Q1493,\"\")","v":""},{"$f":"IF(DataLog!$C1493=\"Log value\",DataLog!R1493,\"\")","v":""},{"$f":"IF(DataLog!$C1493=\"Log value\",DataLog!S1493,\"\")","v":""},{"$f":"IF(DataLog!$C1493=\"Log value\",DataLog!T1493,\"\")","v":""},{"$f":"IF(DataLog!$C1493=\"Log value\",DataLog!U1493,\"\")","v":""},{"$f":"IF(DataLog!$C1493=\"Log value\",DataLog!V1493,\"\")","v":""},{"$f":"IF(DataLog!$C1493=\"Log value\",DataLog!W1493,\"\")","v":""},{"$f":"IF(DataLog!$C1493=\"Log value\",DataLog!X1493,\"\")","v":""},{"$f":"IF(DataLog!$C1493=\"Log value\",DataLog!Y1493,\"\")","v":""},{"$f":"IF(DataLog!$C1493=\"Log value\",DataLog!Z1493,\"\")","v":""},{"$f":"IF(DataLog!$C1493=\"Log value\",DataLog!AA1493,\"\")","v":""},{"$f":"IF(DataLog!$C1493=\"Log value\",DataLog!AB1493,\"\")","v":""},{"$f":"IF(DataLog!$C1493=\"Log value\",DataLog!AC1493,\"\")","v":""},{"$f":"IF(DataLog!$C1493=\"Log value\",DataLog!AD1493,\"\")","v":""},{"$f":"IF(DataLog!$C1493=\"Log value\",DataLog!AE1493,\"\")","v":""},{"$f":"IF(DataLog!$C1493=\"Log value\",DataLog!AF1493,\"\")","v":""},{"$f":"IF(DataLog!$C1493=\"Log value\",DataLog!AG1493,\"\")","v":""},{"$f":"IF(DataLog!$C1493=\"Log value\",DataLog!AH1493,\"\")","v":""},{"$f":"IF(DataLog!$C1493=\"Log value\",DataLog!AI1493,\"\")","v":""},{"$f":"IF(DataLog!$C1493=\"Log value\",DataLog!AJ1493,\"\")","v":""},{"$f":"IF(DataLog!$C1493=\"Log value\",DataLog!AK1493,\"\")","v":""},{"$f":"IF(DataLog!$C1493=\"Log value\",DataLog!AL1493,\"\")","v":""},{"$f":"IF(DataLog!$C1493=\"Log value\",DataLog!AM1493,\"\")","v":""}]
[null,null,null,null,null,null,{"$f":"IF(DataLog!$C1494=\"Log value\",DataLog!D1494&\"_\"&TEXT(DataLog!B1494,\"åååå-mm-dd\"),\"\")","v":""},{"$f":"IF(DataLog!$C1494=\"Log value\",DataLog!E1494,\"\")","v":""},{"$f":"IF(DataLog!$C1494=\"Log value\",DataLog!F1494,\"\")","v":""},{"$f":"IF(DataLog!$C1494=\"Log value\",DataLog!G1494,\"\")","v":""},{"$f":"IF(DataLog!$C1494=\"Log value\",DataLog!H1494,\"\")","v":""},{"$f":"IF(DataLog!$C1494=\"Log value\",DataLog!I1494,\"\")","v":""},{"$f":"IF(DataLog!$C1494=\"Log value\",DataLog!J1494,\"\")","v":""},{"$f":"IF(DataLog!$C1494=\"Log value\",DataLog!K1494,\"\")","v":""},{"$f":"IF(DataLog!$C1494=\"Log value\",DataLog!L1494,\"\")","v":""},{"$f":"IF(DataLog!$C1494=\"Log value\",DataLog!M1494,\"\")","v":""},{"$f":"IF(DataLog!$C1494=\"Log value\",DataLog!N1494,\"\")","v":""},{"$f":"IF(DataLog!$C1494=\"Log value\",DataLog!O1494,\"\")","v":""},{"$f":"IF(DataLog!$C1494=\"Log value\",DataLog!P1494,\"\")","v":""},{"$f":"IF(DataLog!$C1494=\"Log value\",DataLog!Q1494,\"\")","v":""},{"$f":"IF(DataLog!$C1494=\"Log value\",DataLog!R1494,\"\")","v":""},{"$f":"IF(DataLog!$C1494=\"Log value\",DataLog!S1494,\"\")","v":""},{"$f":"IF(DataLog!$C1494=\"Log value\",DataLog!T1494,\"\")","v":""},{"$f":"IF(DataLog!$C1494=\"Log value\",DataLog!U1494,\"\")","v":""},{"$f":"IF(DataLog!$C1494=\"Log value\",DataLog!V1494,\"\")","v":""},{"$f":"IF(DataLog!$C1494=\"Log value\",DataLog!W1494,\"\")","v":""},{"$f":"IF(DataLog!$C1494=\"Log value\",DataLog!X1494,\"\")","v":""},{"$f":"IF(DataLog!$C1494=\"Log value\",DataLog!Y1494,\"\")","v":""},{"$f":"IF(DataLog!$C1494=\"Log value\",DataLog!Z1494,\"\")","v":""},{"$f":"IF(DataLog!$C1494=\"Log value\",DataLog!AA1494,\"\")","v":""},{"$f":"IF(DataLog!$C1494=\"Log value\",DataLog!AB1494,\"\")","v":""},{"$f":"IF(DataLog!$C1494=\"Log value\",DataLog!AC1494,\"\")","v":""},{"$f":"IF(DataLog!$C1494=\"Log value\",DataLog!AD1494,\"\")","v":""},{"$f":"IF(DataLog!$C1494=\"Log value\",DataLog!AE1494,\"\")","v":""},{"$f":"IF(DataLog!$C1494=\"Log value\",DataLog!AF1494,\"\")","v":""},{"$f":"IF(DataLog!$C1494=\"Log value\",DataLog!AG1494,\"\")","v":""},{"$f":"IF(DataLog!$C1494=\"Log value\",DataLog!AH1494,\"\")","v":""},{"$f":"IF(DataLog!$C1494=\"Log value\",DataLog!AI1494,\"\")","v":""},{"$f":"IF(DataLog!$C1494=\"Log value\",DataLog!AJ1494,\"\")","v":""},{"$f":"IF(DataLog!$C1494=\"Log value\",DataLog!AK1494,\"\")","v":""},{"$f":"IF(DataLog!$C1494=\"Log value\",DataLog!AL1494,\"\")","v":""},{"$f":"IF(DataLog!$C1494=\"Log value\",DataLog!AM1494,\"\")","v":""}]
[null,null,null,null,null,null,{"$f":"IF(DataLog!$C1497=\"Log value\",DataLog!D1497&\"_\"&TEXT(DataLog!B1497,\"åååå-mm-dd\"),\"\")","v":""},{"$f":"IF(DataLog!$C1497=\"Log value\",DataLog!E1497,\"\")","v":""},{"$f":"IF(DataLog!$C1497=\"Log value\",DataLog!F1497,\"\")","v":""},{"$f":"IF(DataLog!$C1497=\"Log value\",DataLog!G1497,\"\")","v":""},{"$f":"IF(DataLog!$C1497=\"Log value\",DataLog!H1497,\"\")","v":""},{"$f":"IF(DataLog!$C1497=\"Log value\",DataLog!I1497,\"\")","v":""},{"$f":"IF(DataLog!$C1497=\"Log value\",DataLog!J1497,\"\")","v":""},{"$f":"IF(DataLog!$C1497=\"Log value\",DataLog!K1497,\"\")","v":""},{"$f":"IF(DataLog!$C1497=\"Log value\",DataLog!L1497,\"\")","v":""},{"$f":"IF(DataLog!$C1497=\"Log value\",DataLog!M1497,\"\")","v":""},{"$f":"IF(DataLog!$C1497=\"Log value\",DataLog!N1497,\"\")","v":""},{"$f":"IF(DataLog!$C1497=\"Log value\",DataLog!O1497,\"\")","v":""},{"$f":"IF(DataLog!$C1497=\"Log value\",DataLog!P1497,\"\")","v":""},{"$f":"IF(DataLog!$C1497=\"Log value\",DataLog!Q1497,\"\")","v":""},{"$f":"IF(DataLog!$C1497=\"Log value\",DataLog!R1497,\"\")","v":""},{"$f":"IF(DataLog!$C1497=\"Log value\",DataLog!S1497,\"\")","v":""},{"$f":"IF(DataLog!$C1497=\"Log value\",DataLog!T1497,\"\")","v":""},{"$f":"IF(DataLog!$C1497=\"Log value\",DataLog!U1497,\"\")","v":""},{"$f":"IF(DataLog!$C1497=\"Log value\",DataLog!V1497,\"\")","v":""},{"$f":"IF(DataLog!$C1497=\"Log value\",DataLog!W1497,\"\")","v":""},{"$f":"IF(DataLog!$C1497=\"Log value\",DataLog!X1497,\"\")","v":""},{"$f":"IF(DataLog!$C1497=\"Log value\",DataLog!Y1497,\"\")","v":""},{"$f":"IF(DataLog!$C1497=\"Log value\",DataLog!Z1497,\"\")","v":""},{"$f":"IF(DataLog!$C1497=\"Log value\",DataLog!AA1497,\"\")","v":""},{"$f":"IF(DataLog!$C1497=\"Log value\",DataLog!AB1497,\"\")","v":""},{"$f":"IF(DataLog!$C1497=\"Log value\",DataLog!AC1497,\"\")","v":""},{"$f":"IF(DataLog!$C1497=\"Log value\",DataLog!AD1497,\"\")","v":""},{"$f":"IF(DataLog!$C1497=\"Log value\",DataLog!AE1497,\"\")","v":""},{"$f":"IF(DataLog!$C1497=\"Log value\",DataLog!AF1497,\"\")","v":""},{"$f":"IF(DataLog!$C1497=\"Log value\",DataLog!AG1497,\"\")","v":""},{"$f":"IF(DataLog!$C1497=\"Log value\",DataLog!AH1497,\"\")","v":""},{"$f":"IF(DataLog!$C1497=\"Log value\",DataLog!AI1497,\"\")","v":""},{"$f":"IF(DataLog!$C1497=\"Log value\",DataLog!AJ1497,\"\")","v":""},{"$f":"IF(DataLog!$C1497=\"Log value\",DataLog!AK1497,\"\")","v":""},{"$f":"IF(DataLog!$C1497=\"Log value\",DataLog!AL1497,\"\")","v":""},{"$f":"IF(DataLog!$C1497=\"Log value\",DataLog!AM1497,\"\")","v":""}]
[null,null,null,null,null,null,{"$f":"IF(DataLog!$C1498=\"Log value\",DataLog!D1498&\"_\"&TEXT(DataLog!B1498,\"åååå-mm-dd\"),\"\")","v":""},{"$f":"IF(DataLog!$C1498=\"Log value\",DataLog!E1498,\"\")","v":""},{"$f":"IF(DataLog!$C1498=\"Log value\",DataLog!F1498,\"\")","v":""},{"$f":"IF(DataLog!$C1498=\"Log value\",DataLog!G1498,\"\")","v":""},{"$f":"IF(DataLog!$C1498=\"Log value\",DataLog!H1498,\"\")","v":""},{"$f":"IF(DataLog!$C1498=\"Log value\",DataLog!I1498,\"\")","v":""},{"$f":"IF(DataLog!$C1498=\"Log value\",DataLog!J1498,\"\")","v":""},{"$f":"IF(DataLog!$C1498=\"Log value\",DataLog!K1498,\"\")","v":""},{"$f":"IF(DataLog!$C1498=\"Log value\",DataLog!L1498,\"\")","v":""},{"$f":"IF(DataLog!$C1498=\"Log value\",DataLog!M1498,\"\")","v":""},{"$f":"IF(DataLog!$C1498=\"Log value\",DataLog!N1498,\"\")","v":""},{"$f":"IF(DataLog!$C1498=\"Log value\",DataLog!O1498,\"\")","v":""},{"$f":"IF(DataLog!$C1498=\"Log value\",DataLog!P1498,\"\")","v":""},{"$f":"IF(DataLog!$C1498=\"Log value\",DataLog!Q1498,\"\")","v":""},{"$f":"IF(DataLog!$C1498=\"Log value\",DataLog!R1498,\"\")","v":""},{"$f":"IF(DataLog!$C1498=\"Log value\",DataLog!S1498,\"\")","v":""},{"$f":"IF(DataLog!$C1498=\"Log value\",DataLog!T1498,\"\")","v":""},{"$f":"IF(DataLog!$C1498=\"Log value\",DataLog!U1498,\"\")","v":""},{"$f":"IF(DataLog!$C1498=\"Log value\",DataLog!V1498,\"\")","v":""},{"$f":"IF(DataLog!$C1498=\"Log value\",DataLog!W1498,\"\")","v":""},{"$f":"IF(DataLog!$C1498=\"Log value\",DataLog!X1498,\"\")","v":""},{"$f":"IF(DataLog!$C1498=\"Log value\",DataLog!Y1498,\"\")","v":""},{"$f":"IF(DataLog!$C1498=\"Log value\",DataLog!Z1498,\"\")","v":""},{"$f":"IF(DataLog!$C1498=\"Log value\",DataLog!AA1498,\"\")","v":""},{"$f":"IF(DataLog!$C1498=\"Log value\",DataLog!AB1498,\"\")","v":""},{"$f":"IF(DataLog!$C1498=\"Log value\",DataLog!AC1498,\"\")","v":""},{"$f":"IF(DataLog!$C1498=\"Log value\",DataLog!AD1498,\"\")","v":""},{"$f":"IF(DataLog!$C1498=\"Log value\",DataLog!AE1498,\"\")","v":""},{"$f":"IF(DataLog!$C1498=\"Log value\",DataLog!AF1498,\"\")","v":""},{"$f":"IF(DataLog!$C1498=\"Log value\",DataLog!AG1498,\"\")","v":""},{"$f":"IF(DataLog!$C1498=\"Log value\",DataLog!AH1498,\"\")","v":""},{"$f":"IF(DataLog!$C1498=\"Log value\",DataLog!AI1498,\"\")","v":""},{"$f":"IF(DataLog!$C1498=\"Log value\",DataLog!AJ1498,\"\")","v":""},{"$f":"IF(DataLog!$C1498=\"Log value\",DataLog!AK1498,\"\")","v":""},{"$f":"IF(DataLog!$C1498=\"Log value\",DataLog!AL1498,\"\")","v":""},{"$f":"IF(DataLog!$C1498=\"Log value\",DataLog!AM1498,\"\")","v":""}]
[null,null,null,null,null,null,{"$f":"IF(DataLog!$C1502=\"Log value\",DataLog!D1502&\"_\"&TEXT(DataLog!B1502,\"åååå-mm-dd\"),\"\")","v":""},{"$f":"IF(DataLog!$C1502=\"Log value\",DataLog!E1502,\"\")","v":""},{"$f":"IF(DataLog!$C1502=\"Log value\",DataLog!F1502,\"\")","v":""},{"$f":"IF(DataLog!$C1502=\"Log value\",DataLog!G1502,\"\")","v":""},{"$f":"IF(DataLog!$C1502=\"Log value\",DataLog!H1502,\"\")","v":""},{"$f":"IF(DataLog!$C1502=\"Log value\",DataLog!I1502,\"\")","v":""},{"$f":"IF(DataLog!$C1502=\"Log value\",DataLog!J1502,\"\")","v":""},{"$f":"IF(DataLog!$C1502=\"Log value\",DataLog!K1502,\"\")","v":""},{"$f":"IF(DataLog!$C1502=\"Log value\",DataLog!L1502,\"\")","v":""},{"$f":"IF(DataLog!$C1502=\"Log value\",DataLog!M1502,\"\")","v":""},{"$f":"IF(DataLog!$C1502=\"Log value\",DataLog!N1502,\"\")","v":""},{"$f":"IF(DataLog!$C1502=\"Log value\",DataLog!O1502,\"\")","v":""},{"$f":"IF(DataLog!$C1502=\"Log value\",DataLog!P1502,\"\")","v":""},{"$f":"IF(DataLog!$C1502=\"Log value\",DataLog!Q1502,\"\")","v":""},{"$f":"IF(DataLog!$C1502=\"Log value\",DataLog!R1502,\"\")","v":""},{"$f":"IF(DataLog!$C1502=\"Log value\",DataLog!S1502,\"\")","v":""},{"$f":"IF(DataLog!$C1502=\"Log value\",DataLog!T1502,\"\")","v":""},{"$f":"IF(DataLog!$C1502=\"Log value\",DataLog!U1502,\"\")","v":""},{"$f":"IF(DataLog!$C1502=\"Log value\",DataLog!V1502,\"\")","v":""},{"$f":"IF(DataLog!$C1502=\"Log value\",DataLog!W1502,\"\")","v":""},{"$f":"IF(DataLog!$C1502=\"Log value\",DataLog!X1502,\"\")","v":""},{"$f":"IF(DataLog!$C1502=\"Log value\",DataLog!Y1502,\"\")","v":""},{"$f":"IF(DataLog!$C1502=\"Log value\",DataLog!Z1502,\"\")","v":""},{"$f":"IF(DataLog!$C1502=\"Log value\",DataLog!AA1502,\"\")","v":""},{"$f":"IF(DataLog!$C1502=\"Log value\",DataLog!AB1502,\"\")","v":""},{"$f":"IF(DataLog!$C1502=\"Log value\",DataLog!AC1502,\"\")","v":""},{"$f":"IF(DataLog!$C1502=\"Log value\",DataLog!AD1502,\"\")","v":""},{"$f":"IF(DataLog!$C1502=\"Log value\",DataLog!AE1502,\"\")","v":""},{"$f":"IF(DataLog!$C1502=\"Log value\",DataLog!AF1502,\"\")","v":""},{"$f":"IF(DataLog!$C1502=\"Log value\",DataLog!AG1502,\"\")","v":""},{"$f":"IF(DataLog!$C1502=\"Log value\",DataLog!AH1502,\"\")","v":""},{"$f":"IF(DataLog!$C1502=\"Log value\",DataLog!AI1502,\"\")","v":""},{"$f":"IF(DataLog!$C1502=\"Log value\",DataLog!AJ1502,\"\")","v":""},{"$f":"IF(DataLog!$C1502=\"Log value\",DataLog!AK1502,\"\")","v":""},{"$f":"IF(DataLog!$C1502=\"Log value\",DataLog!AL1502,\"\")","v":""},{"$f":"IF(DataLog!$C1502=\"Log value\",DataLog!AM1502,\"\")","v":""}]
[null,null,null,null,null,null,{"$f":"IF(DataLog!$C1503=\"Log value\",DataLog!D1503&\"_\"&TEXT(DataLog!B1503,\"åååå-mm-dd\"),\"\")","v":""},{"$f":"IF(DataLog!$C1503=\"Log value\",DataLog!E1503,\"\")","v":""},{"$f":"IF(DataLog!$C1503=\"Log value\",DataLog!F1503,\"\")","v":""},{"$f":"IF(DataLog!$C1503=\"Log value\",DataLog!G1503,\"\")","v":""},{"$f":"IF(DataLog!$C1503=\"Log value\",DataLog!H1503,\"\")","v":""},{"$f":"IF(DataLog!$C1503=\"Log value\",DataLog!I1503,\"\")","v":""},{"$f":"IF(DataLog!$C1503=\"Log value\",DataLog!J1503,\"\")","v":""},{"$f":"IF(DataLog!$C1503=\"Log value\",DataLog!K1503,\"\")","v":""},{"$f":"IF(DataLog!$C1503=\"Log value\",DataLog!L1503,\"\")","v":""},{"$f":"IF(DataLog!$C1503=\"Log value\",DataLog!M1503,\"\")","v":""},{"$f":"IF(DataLog!$C1503=\"Log value\",DataLog!N1503,\"\")","v":""},{"$f":"IF(DataLog!$C1503=\"Log value\",DataLog!O1503,\"\")","v":""},{"$f":"IF(DataLog!$C1503=\"Log value\",DataLog!P1503,\"\")","v":""},{"$f":"IF(DataLog!$C1503=\"Log value\",DataLog!Q1503,\"\")","v":""},{"$f":"IF(DataLog!$C1503=\"Log value\",DataLog!R1503,\"\")","v":""},{"$f":"IF(DataLog!$C1503=\"Log value\",DataLog!S1503,\"\")","v":""},{"$f":"IF(DataLog!$C1503=\"Log value\",DataLog!T1503,\"\")","v":""},{"$f":"IF(DataLog!$C1503=\"Log value\",DataLog!U1503,\"\")","v":""},{"$f":"IF(DataLog!$C1503=\"Log value\",DataLog!V1503,\"\")","v":""},{"$f":"IF(DataLog!$C1503=\"Log value\",DataLog!W1503,\"\")","v":""},{"$f":"IF(DataLog!$C1503=\"Log value\",DataLog!X1503,\"\")","v":""},{"$f":"IF(DataLog!$C1503=\"Log value\",DataLog!Y1503,\"\")","v":""},{"$f":"IF(DataLog!$C1503=\"Log value\",DataLog!Z1503,\"\")","v":""},{"$f":"IF(DataLog!$C1503=\"Log value\",DataLog!AA1503,\"\")","v":""},{"$f":"IF(DataLog!$C1503=\"Log value\",DataLog!AB1503,\"\")","v":""},{"$f":"IF(DataLog!$C1503=\"Log value\",DataLog!AC1503,\"\")","v":""},{"$f":"IF(DataLog!$C1503=\"Log value\",DataLog!AD1503,\"\")","v":""},{"$f":"IF(DataLog!$C1503=\"Log value\",DataLog!AE1503,\"\")","v":""},{"$f":"IF(DataLog!$C1503=\"Log value\",DataLog!AF1503,\"\")","v":""},{"$f":"IF(DataLog!$C1503=\"Log value\",DataLog!AG1503,\"\")","v":""},{"$f":"IF(DataLog!$C1503=\"Log value\",DataLog!AH1503,\"\")","v":""},{"$f":"IF(DataLog!$C1503=\"Log value\",DataLog!AI1503,\"\")","v":""},{"$f":"IF(DataLog!$C1503=\"Log value\",DataLog!AJ1503,\"\")","v":""},{"$f":"IF(DataLog!$C1503=\"Log value\",DataLog!AK1503,\"\")","v":""},{"$f":"IF(DataLog!$C1503=\"Log value\",DataLog!AL1503,\"\")","v":""},{"$f":"IF(DataLog!$C1503=\"Log value\",DataLog!AM1503,\"\")","v":""}]
[null,null,null,null,null,null,{"$f":"IF(DataLog!$C1506=\"Log value\",DataLog!D1506&\"_\"&TEXT(DataLog!B1506,\"åååå-mm-dd\"),\"\")","v":""},{"$f":"IF(DataLog!$C1506=\"Log value\",DataLog!E1506,\"\")","v":""},{"$f":"IF(DataLog!$C1506=\"Log value\",DataLog!F1506,\"\")","v":""},{"$f":"IF(DataLog!$C1506=\"Log value\",DataLog!G1506,\"\")","v":""},{"$f":"IF(DataLog!$C1506=\"Log value\",DataLog!H1506,\"\")","v":""},{"$f":"IF(DataLog!$C1506=\"Log value\",DataLog!I1506,\"\")","v":""},{"$f":"IF(DataLog!$C1506=\"Log value\",DataLog!J1506,\"\")","v":""},{"$f":"IF(DataLog!$C1506=\"Log value\",DataLog!K1506,\"\")","v":""},{"$f":"IF(DataLog!$C1506=\"Log value\",DataLog!L1506,\"\")","v":""},{"$f":"IF(DataLog!$C1506=\"Log value\",DataLog!M1506,\"\")","v":""},{"$f":"IF(DataLog!$C1506=\"Log value\",DataLog!N1506,\"\")","v":""},{"$f":"IF(DataLog!$C1506=\"Log value\",DataLog!O1506,\"\")","v":""},{"$f":"IF(DataLog!$C1506=\"Log value\",DataLog!P1506,\"\")","v":""},{"$f":"IF(DataLog!$C1506=\"Log value\",DataLog!Q1506,\"\")","v":""},{"$f":"IF(DataLog!$C1506=\"Log value\",DataLog!R1506,\"\")","v":""},{"$f":"IF(DataLog!$C1506=\"Log value\",DataLog!S1506,\"\")","v":""},{"$f":"IF(DataLog!$C1506=\"Log value\",DataLog!T1506,\"\")","v":""},{"$f":"IF(DataLog!$C1506=\"Log value\",DataLog!U1506,\"\")","v":""},{"$f":"IF(DataLog!$C1506=\"Log value\",DataLog!V1506,\"\")","v":""},{"$f":"IF(DataLog!$C1506=\"Log value\",DataLog!W1506,\"\")","v":""},{"$f":"IF(DataLog!$C1506=\"Log value\",DataLog!X1506,\"\")","v":""},{"$f":"IF(DataLog!$C1506=\"Log value\",DataLog!Y1506,\"\")","v":""},{"$f":"IF(DataLog!$C1506=\"Log value\",DataLog!Z1506,\"\")","v":""},{"$f":"IF(DataLog!$C1506=\"Log value\",DataLog!AA1506,\"\")","v":""},{"$f":"IF(DataLog!$C1506=\"Log value\",DataLog!AB1506,\"\")","v":""},{"$f":"IF(DataLog!$C1506=\"Log value\",DataLog!AC1506,\"\")","v":""},{"$f":"IF(DataLog!$C1506=\"Log value\",DataLog!AD1506,\"\")","v":""},{"$f":"IF(DataLog!$C1506=\"Log value\",DataLog!AE1506,\"\")","v":""},{"$f":"IF(DataLog!$C1506=\"Log value\",DataLog!AF1506,\"\")","v":""},{"$f":"IF(DataLog!$C1506=\"Log value\",DataLog!AG1506,\"\")","v":""},{"$f":"IF(DataLog!$C1506=\"Log value\",DataLog!AH1506,\"\")","v":""},{"$f":"IF(DataLog!$C1506=\"Log value\",DataLog!AI1506,\"\")","v":""},{"$f":"IF(DataLog!$C1506=\"Log value\",DataLog!AJ1506,\"\")","v":""},{"$f":"IF(DataLog!$C1506=\"Log value\",DataLog!AK1506,\"\")","v":""},{"$f":"IF(DataLog!$C1506=\"Log value\",DataLog!AL1506,\"\")","v":""},{"$f":"IF(DataLog!$C1506=\"Log value\",DataLog!AM1506,\"\")","v":""}]
[null,null,null,null,null,null,{"$f":"IF(DataLog!$C1509=\"Log value\",DataLog!D1509&\"_\"&TEXT(DataLog!B1509,\"åååå-mm-dd\"),\"\")","v":""},{"$f":"IF(DataLog!$C1509=\"Log value\",DataLog!E1509,\"\")","v":""},{"$f":"IF(DataLog!$C1509=\"Log value\",DataLog!F1509,\"\")","v":""},{"$f":"IF(DataLog!$C1509=\"Log value\",DataLog!G1509,\"\")","v":""},{"$f":"IF(DataLog!$C1509=\"Log value\",DataLog!H1509,\"\")","v":""},{"$f":"IF(DataLog!$C1509=\"Log value\",DataLog!I1509,\"\")","v":""},{"$f":"IF(DataLog!$C1509=\"Log value\",DataLog!J1509,\"\")","v":""},{"$f":"IF(DataLog!$C1509=\"Log value\",DataLog!K1509,\"\")","v":""},{"$f":"IF(DataLog!$C1509=\"Log value\",DataLog!L1509,\"\")","v":""},{"$f":"IF(DataLog!$C1509=\"Log value\",DataLog!M1509,\"\")","v":""},{"$f":"IF(DataLog!$C1509=\"Log value\",DataLog!N1509,\"\")","v":""},{"$f":"IF(DataLog!$C1509=\"Log value\",DataLog!O1509,\"\")","v":""},{"$f":"IF(DataLog!$C1509=\"Log value\",DataLog!P1509,\"\")","v":""},{"$f":"IF(DataLog!$C1509=\"Log value\",DataLog!Q1509,\"\")","v":""},{"$f":"IF(DataLog!$C1509=\"Log value\",DataLog!R1509,\"\")","v":""},{"$f":"IF(DataLog!$C1509=\"Log value\",DataLog!S1509,\"\")","v":""},{"$f":"IF(DataLog!$C1509=\"Log value\",DataLog!T1509,\"\")","v":""},{"$f":"IF(DataLog!$C1509=\"Log value\",DataLog!U1509,\"\")","v":""},{"$f":"IF(DataLog!$C1509=\"Log value\",DataLog!V1509,\"\")","v":""},{"$f":"IF(DataLog!$C1509=\"Log value\",DataLog!W1509,\"\")","v":""},{"$f":"IF(DataLog!$C1509=\"Log value\",DataLog!X1509,\"\")","v":""},{"$f":"IF(DataLog!$C1509=\"Log value\",DataLog!Y1509,\"\")","v":""},{"$f":"IF(DataLog!$C1509=\"Log value\",DataLog!Z1509,\"\")","v":""},{"$f":"IF(DataLog!$C1509=\"Log value\",DataLog!AA1509,\"\")","v":""},{"$f":"IF(DataLog!$C1509=\"Log value\",DataLog!AB1509,\"\")","v":""},{"$f":"IF(DataLog!$C1509=\"Log value\",DataLog!AC1509,\"\")","v":""},{"$f":"IF(DataLog!$C1509=\"Log value\",DataLog!AD1509,\"\")","v":""},{"$f":"IF(DataLog!$C1509=\"Log value\",DataLog!AE1509,\"\")","v":""},{"$f":"IF(DataLog!$C1509=\"Log value\",DataLog!AF1509,\"\")","v":""},{"$f":"IF(DataLog!$C1509=\"Log value\",DataLog!AG1509,\"\")","v":""},{"$f":"IF(DataLog!$C1509=\"Log value\",DataLog!AH1509,\"\")","v":""},{"$f":"IF(DataLog!$C1509=\"Log value\",DataLog!AI1509,\"\")","v":""},{"$f":"IF(DataLog!$C1509=\"Log value\",DataLog!AJ1509,\"\")","v":""},{"$f":"IF(DataLog!$C1509=\"Log value\",DataLog!AK1509,\"\")","v":""},{"$f":"IF(DataLog!$C1509=\"Log value\",DataLog!AL1509,\"\")","v":""},{"$f":"IF(DataLog!$C1509=\"Log value\",DataLog!AM1509,\"\")","v":""}]
[null,null,null,null,null,null,{"$f":"IF(DataLog!$C1511=\"Log value\",DataLog!D1511&\"_\"&TEXT(DataLog!B1511,\"åååå-mm-dd\"),\"\")","v":""},{"$f":"IF(DataLog!$C1511=\"Log value\",DataLog!E1511,\"\")","v":""},{"$f":"IF(DataLog!$C1511=\"Log value\",DataLog!F1511,\"\")","v":""},{"$f":"IF(DataLog!$C1511=\"Log value\",DataLog!G1511,\"\")","v":""},{"$f":"IF(DataLog!$C1511=\"Log value\",DataLog!H1511,\"\")","v":""},{"$f":"IF(DataLog!$C1511=\"Log value\",DataLog!I1511,\"\")","v":""},{"$f":"IF(DataLog!$C1511=\"Log value\",DataLog!J1511,\"\")","v":""},{"$f":"IF(DataLog!$C1511=\"Log value\",DataLog!K1511,\"\")","v":""},{"$f":"IF(DataLog!$C1511=\"Log value\",DataLog!L1511,\"\")","v":""},{"$f":"IF(DataLog!$C1511=\"Log value\",DataLog!M1511,\"\")","v":""},{"$f":"IF(DataLog!$C1511=\"Log value\",DataLog!N1511,\"\")","v":""},{"$f":"IF(DataLog!$C1511=\"Log value\",DataLog!O1511,\"\")","v":""},{"$f":"IF(DataLog!$C1511=\"Log value\",DataLog!P1511,\"\")","v":""},{"$f":"IF(DataLog!$C1511=\"Log value\",DataLog!Q1511,\"\")","v":""},{"$f":"IF(DataLog!$C1511=\"Log value\",DataLog!R1511,\"\")","v":""},{"$f":"IF(DataLog!$C1511=\"Log value\",DataLog!S1511,\"\")","v":""},{"$f":"IF(DataLog!$C1511=\"Log value\",DataLog!T1511,\"\")","v":""},{"$f":"IF(DataLog!$C1511=\"Log value\",DataLog!U1511,\"\")","v":""},{"$f":"IF(DataLog!$C1511=\"Log value\",DataLog!V1511,\"\")","v":""},{"$f":"IF(DataLog!$C1511=\"Log value\",DataLog!W1511,\"\")","v":""},{"$f":"IF(DataLog!$C1511=\"Log value\",DataLog!X1511,\"\")","v":""},{"$f":"IF(DataLog!$C1511=\"Log value\",DataLog!Y1511,\"\")","v":""},{"$f":"IF(DataLog!$C1511=\"Log value\",DataLog!Z1511,\"\")","v":""},{"$f":"IF(DataLog!$C1511=\"Log value\",DataLog!AA1511,\"\")","v":""},{"$f":"IF(DataLog!$C1511=\"Log value\",DataLog!AB1511,\"\")","v":""},{"$f":"IF(DataLog!$C1511=\"Log value\",DataLog!AC1511,\"\")","v":""},{"$f":"IF(DataLog!$C1511=\"Log value\",DataLog!AD1511,\"\")","v":""},{"$f":"IF(DataLog!$C1511=\"Log value\",DataLog!AE1511,\"\")","v":""},{"$f":"IF(DataLog!$C1511=\"Log value\",DataLog!AF1511,\"\")","v":""},{"$f":"IF(DataLog!$C1511=\"Log value\",DataLog!AG1511,\"\")","v":""},{"$f":"IF(DataLog!$C1511=\"Log value\",DataLog!AH1511,\"\")","v":""},{"$f":"IF(DataLog!$C1511=\"Log value\",DataLog!AI1511,\"\")","v":""},{"$f":"IF(DataLog!$C1511=\"Log value\",DataLog!AJ1511,\"\")","v":""},{"$f":"IF(DataLog!$C1511=\"Log value\",DataLog!AK1511,\"\")","v":""},{"$f":"IF(DataLog!$C1511=\"Log value\",DataLog!AL1511,\"\")","v":""},{"$f":"IF(DataLog!$C1511=\"Log value\",DataLog!AM1511,\"\")","v":""}]
[null,null,null,null,null,null,{"$f":"IF(DataLog!$C1512=\"Log value\",DataLog!D1512&\"_\"&TEXT(DataLog!B1512,\"åååå-mm-dd\"),\"\")","v":""},{"$f":"IF(DataLog!$C1512=\"Log value\",DataLog!E1512,\"\")","v":""},{"$f":"IF(DataLog!$C1512=\"Log value\",DataLog!F1512,\"\")","v":""},{"$f":"IF(DataLog!$C1512=\"Log value\",DataLog!G1512,\"\")","v":""},{"$f":"IF(DataLog!$C1512=\"Log value\",DataLog!H1512,\"\")","v":""},{"$f":"IF(DataLog!$C1512=\"Log value\",DataLog!I1512,\"\")","v":""},{"$f":"IF(DataLog!$C1512=\"Log value\",DataLog!J1512,\"\")","v":""},{"$f":"IF(DataLog!$C1512=\"Log value\",DataLog!K1512,\"\")","v":""},{"$f":"IF(DataLog!$C1512=\"Log value\",DataLog!L1512,\"\")","v":""},{"$f":"IF(DataLog!$C1512=\"Log value\",DataLog!M1512,\"\")","v":""},{"$f":"IF(DataLog!$C1512=\"Log value\",DataLog!N1512,\"\")","v":""},{"$f":"IF(DataLog!$C1512=\"Log value\",DataLog!O1512,\"\")","v":""},{"$f":"IF(DataLog!$C1512=\"Log value\",DataLog!P1512,\"\")","v":""},{"$f":"IF(DataLog!$C1512=\"Log value\",DataLog!Q1512,\"\")","v":""},{"$f":"IF(DataLog!$C1512=\"Log value\",DataLog!R1512,\"\")","v":""},{"$f":"IF(DataLog!$C1512=\"Log value\",DataLog!S1512,\"\")","v":""},{"$f":"IF(DataLog!$C1512=\"Log value\",DataLog!T1512,\"\")","v":""},{"$f":"IF(DataLog!$C1512=\"Log value\",DataLog!U1512,\"\")","v":""},{"$f":"IF(DataLog!$C1512=\"Log value\",DataLog!V1512,\"\")","v":""},{"$f":"IF(DataLog!$C1512=\"Log value\",DataLog!W1512,\"\")","v":""},{"$f":"IF(DataLog!$C1512=\"Log value\",DataLog!X1512,\"\")","v":""},{"$f":"IF(DataLog!$C1512=\"Log value\",DataLog!Y1512,\"\")","v":""},{"$f":"IF(DataLog!$C1512=\"Log value\",DataLog!Z1512,\"\")","v":""},{"$f":"IF(DataLog!$C1512=\"Log value\",DataLog!AA1512,\"\")","v":""},{"$f":"IF(DataLog!$C1512=\"Log value\",DataLog!AB1512,\"\")","v":""},{"$f":"IF(DataLog!$C1512=\"Log value\",DataLog!AC1512,\"\")","v":""},{"$f":"IF(DataLog!$C1512=\"Log value\",DataLog!AD1512,\"\")","v":""},{"$f":"IF(DataLog!$C1512=\"Log value\",DataLog!AE1512,\"\")","v":""},{"$f":"IF(DataLog!$C1512=\"Log value\",DataLog!AF1512,\"\")","v":""},{"$f":"IF(DataLog!$C1512=\"Log value\",DataLog!AG1512,\"\")","v":""},{"$f":"IF(DataLog!$C1512=\"Log value\",DataLog!AH1512,\"\")","v":""},{"$f":"IF(DataLog!$C1512=\"Log value\",DataLog!AI1512,\"\")","v":""},{"$f":"IF(DataLog!$C1512=\"Log value\",DataLog!AJ1512,\"\")","v":""},{"$f":"IF(DataLog!$C1512=\"Log value\",DataLog!AK1512,\"\")","v":""},{"$f":"IF(DataLog!$C1512=\"Log value\",DataLog!AL1512,\"\")","v":""},{"$f":"IF(DataLog!$C1512=\"Log value\",DataLog!AM1512,\"\")","v":""}]
[null,null,null,null,null,null,{"$f":"IF(DataLog!$C1515=\"Log value\",DataLog!D1515&\"_\"&TEXT(DataLog!B1515,\"åååå-mm-dd\"),\"\")","v":""},{"$f":"IF(DataLog!$C1515=\"Log value\",DataLog!E1515,\"\")","v":""},{"$f":"IF(DataLog!$C1515=\"Log value\",DataLog!F1515,\"\")","v":""},{"$f":"IF(DataLog!$C1515=\"Log value\",DataLog!G1515,\"\")","v":""},{"$f":"IF(DataLog!$C1515=\"Log value\",DataLog!H1515,\"\")","v":""},{"$f":"IF(DataLog!$C1515=\"Log value\",DataLog!I1515,\"\")","v":""},{"$f":"IF(DataLog!$C1515=\"Log value\",DataLog!J1515,\"\")","v":""},{"$f":"IF(DataLog!$C1515=\"Log value\",DataLog!K1515,\"\")","v":""},{"$f":"IF(DataLog!$C1515=\"Log value\",DataLog!L1515,\"\")","v":""},{"$f":"IF(DataLog!$C1515=\"Log value\",DataLog!M1515,\"\")","v":""},{"$f":"IF(DataLog!$C1515=\"Log value\",DataLog!N1515,\"\")","v":""},{"$f":"IF(DataLog!$C1515=\"Log value\",DataLog!O1515,\"\")","v":""},{"$f":"IF(DataLog!$C1515=\"Log value\",DataLog!P1515,\"\")","v":""},{"$f":"IF(DataLog!$C1515=\"Log value\",DataLog!Q1515,\"\")","v":""},{"$f":"IF(DataLog!$C1515=\"Log value\",DataLog!R1515,\"\")","v":""},{"$f":"IF(DataLog!$C1515=\"Log value\",DataLog!S1515,\"\")","v":""},{"$f":"IF(DataLog!$C1515=\"Log value\",DataLog!T1515,\"\")","v":""},{"$f":"IF(DataLog!$C1515=\"Log value\",DataLog!U1515,\"\")","v":""},{"$f":"IF(DataLog!$C1515=\"Log value\",DataLog!V1515,\"\")","v":""},{"$f":"IF(DataLog!$C1515=\"Log value\",DataLog!W1515,\"\")","v":""},{"$f":"IF(DataLog!$C1515=\"Log value\",DataLog!X1515,\"\")","v":""},{"$f":"IF(DataLog!$C1515=\"Log value\",DataLog!Y1515,\"\")","v":""},{"$f":"IF(DataLog!$C1515=\"Log value\",DataLog!Z1515,\"\")","v":""},{"$f":"IF(DataLog!$C1515=\"Log value\",DataLog!AA1515,\"\")","v":""},{"$f":"IF(DataLog!$C1515=\"Log value\",DataLog!AB1515,\"\")","v":""},{"$f":"IF(DataLog!$C1515=\"Log value\",DataLog!AC1515,\"\")","v":""},{"$f":"IF(DataLog!$C1515=\"Log value\",DataLog!AD1515,\"\")","v":""},{"$f":"IF(DataLog!$C1515=\"Log value\",DataLog!AE1515,\"\")","v":""},{"$f":"IF(DataLog!$C1515=\"Log value\",DataLog!AF1515,\"\")","v":""},{"$f":"IF(DataLog!$C1515=\"Log value\",DataLog!AG1515,\"\")","v":""},{"$f":"IF(DataLog!$C1515=\"Log value\",DataLog!AH1515,\"\")","v":""},{"$f":"IF(DataLog!$C1515=\"Log value\",DataLog!AI1515,\"\")","v":""},{"$f":"IF(DataLog!$C1515=\"Log value\",DataLog!AJ1515,\"\")","v":""},{"$f":"IF(DataLog!$C1515=\"Log value\",DataLog!AK1515,\"\")","v":""},{"$f":"IF(DataLog!$C1515=\"Log value\",DataLog!AL1515,\"\")","v":""},{"$f":"IF(DataLog!$C1515=\"Log value\",DataLog!AM1515,\"\")","v":""}]
[null,null,null,null,null,null,{"$f":"IF(DataLog!$C1516=\"Log value\",DataLog!D1516&\"_\"&TEXT(DataLog!B1516,\"åååå-mm-dd\"),\"\")","v":""},{"$f":"IF(DataLog!$C1516=\"Log value\",DataLog!E1516,\"\")","v":""},{"$f":"IF(DataLog!$C1516=\"Log value\",DataLog!F1516,\"\")","v":""},{"$f":"IF(DataLog!$C1516=\"Log value\",DataLog!G1516,\"\")","v":""},{"$f":"IF(DataLog!$C1516=\"Log value\",DataLog!H1516,\"\")","v":""},{"$f":"IF(DataLog!$C1516=\"Log value\",DataLog!I1516,\"\")","v":""},{"$f":"IF(DataLog!$C1516=\"Log value\",DataLog!J1516,\"\")","v":""},{"$f":"IF(DataLog!$C1516=\"Log value\",DataLog!K1516,\"\")","v":""},{"$f":"IF(DataLog!$C1516=\"Log value\",DataLog!L1516,\"\")","v":""},{"$f":"IF(DataLog!$C1516=\"Log value\",DataLog!M1516,\"\")","v":""},{"$f":"IF(DataLog!$C1516=\"Log value\",DataLog!N1516,\"\")","v":""},{"$f":"IF(DataLog!$C1516=\"Log value\",DataLog!O1516,\"\")","v":""},{"$f":"IF(DataLog!$C1516=\"Log value\",DataLog!P1516,\"\")","v":""},{"$f":"IF(DataLog!$C1516=\"Log value\",DataLog!Q1516,\"\")","v":""},{"$f":"IF(DataLog!$C1516=\"Log value\",DataLog!R1516,\"\")","v":""},{"$f":"IF(DataLog!$C1516=\"Log value\",DataLog!S1516,\"\")","v":""},{"$f":"IF(DataLog!$C1516=\"Log value\",DataLog!T1516,\"\")","v":""},{"$f":"IF(DataLog!$C1516=\"Log value\",DataLog!U1516,\"\")","v":""},{"$f":"IF(DataLog!$C1516=\"Log value\",DataLog!V1516,\"\")","v":""},{"$f":"IF(DataLog!$C1516=\"Log value\",DataLog!W1516,\"\")","v":""},{"$f":"IF(DataLog!$C1516=\"Log value\",DataLog!X1516,\"\")","v":""},{"$f":"IF(DataLog!$C1516=\"Log value\",DataLog!Y1516,\"\")","v":""},{"$f":"IF(DataLog!$C1516=\"Log value\",DataLog!Z1516,\"\")","v":""},{"$f":"IF(DataLog!$C1516=\"Log value\",DataLog!AA1516,\"\")","v":""},{"$f":"IF(DataLog!$C1516=\"Log value\",DataLog!AB1516,\"\")","v":""},{"$f":"IF(DataLog!$C1516=\"Log value\",DataLog!AC1516,\"\")","v":""},{"$f":"IF(DataLog!$C1516=\"Log value\",DataLog!AD1516,\"\")","v":""},{"$f":"IF(DataLog!$C1516=\"Log value\",DataLog!AE1516,\"\")","v":""},{"$f":"IF(DataLog!$C1516=\"Log value\",DataLog!AF1516,\"\")","v":""},{"$f":"IF(DataLog!$C1516=\"Log value\",DataLog!AG1516,\"\")","v":""},{"$f":"IF(DataLog!$C1516=\"Log value\",DataLog!AH1516,\"\")","v":""},{"$f":"IF(DataLog!$C1516=\"Log value\",DataLog!AI1516,\"\")","v":""},{"$f":"IF(DataLog!$C1516=\"Log value\",DataLog!AJ1516,\"\")","v":""},{"$f":"IF(DataLog!$C1516=\"Log value\",DataLog!AK1516,\"\")","v":""},{"$f":"IF(DataLog!$C1516=\"Log value\",DataLog!AL1516,\"\")","v":""},{"$f":"IF(DataLog!$C1516=\"Log value\",DataLog!AM1516,\"\")","v":""}]
[null,null,null,null,null,null,{"$f":"IF(DataLog!$C1520=\"Log value\",DataLog!D1520&\"_\"&TEXT(DataLog!B1520,\"åååå-mm-dd\"),\"\")","v":""},{"$f":"IF(DataLog!$C1520=\"Log value\",DataLog!E1520,\"\")","v":""},{"$f":"IF(DataLog!$C1520=\"Log value\",DataLog!F1520,\"\")","v":""},{"$f":"IF(DataLog!$C1520=\"Log value\",DataLog!G1520,\"\")","v":""},{"$f":"IF(DataLog!$C1520=\"Log value\",DataLog!H1520,\"\")","v":""},{"$f":"IF(DataLog!$C1520=\"Log value\",DataLog!I1520,\"\")","v":""},{"$f":"IF(DataLog!$C1520=\"Log value\",DataLog!J1520,\"\")","v":""},{"$f":"IF(DataLog!$C1520=\"Log value\",DataLog!K1520,\"\")","v":""},{"$f":"IF(DataLog!$C1520=\"Log value\",DataLog!L1520,\"\")","v":""},{"$f":"IF(DataLog!$C1520=\"Log value\",DataLog!M1520,\"\")","v":""},{"$f":"IF(DataLog!$C1520=\"Log value\",DataLog!N1520,\"\")","v":""},{"$f":"IF(DataLog!$C1520=\"Log value\",DataLog!O1520,\"\")","v":""},{"$f":"IF(DataLog!$C1520=\"Log value\",DataLog!P1520,\"\")","v":""},{"$f":"IF(DataLog!$C1520=\"Log value\",DataLog!Q1520,\"\")","v":""},{"$f":"IF(DataLog!$C1520=\"Log value\",DataLog!R1520,\"\")","v":""},{"$f":"IF(DataLog!$C1520=\"Log value\",DataLog!S1520,\"\")","v":""},{"$f":"IF(DataLog!$C1520=\"Log value\",DataLog!T1520,\"\")","v":""},{"$f":"IF(DataLog!$C1520=\"Log value\",DataLog!U1520,\"\")","v":""},{"$f":"IF(DataLog!$C1520=\"Log value\",DataLog!V1520,\"\")","v":""},{"$f":"IF(DataLog!$C1520=\"Log value\",DataLog!W1520,\"\")","v":""},{"$f":"IF(DataLog!$C1520=\"Log value\",DataLog!X1520,\"\")","v":""},{"$f":"IF(DataLog!$C1520=\"Log value\",DataLog!Y1520,\"\")","v":""},{"$f":"IF(DataLog!$C1520=\"Log value\",DataLog!Z1520,\"\")","v":""},{"$f":"IF(DataLog!$C1520=\"Log value\",DataLog!AA1520,\"\")","v":""},{"$f":"IF(DataLog!$C1520=\"Log value\",DataLog!AB1520,\"\")","v":""},{"$f":"IF(DataLog!$C1520=\"Log value\",DataLog!AC1520,\"\")","v":""},{"$f":"IF(DataLog!$C1520=\"Log value\",DataLog!AD1520,\"\")","v":""},{"$f":"IF(DataLog!$C1520=\"Log value\",DataLog!AE1520,\"\")","v":""},{"$f":"IF(DataLog!$C1520=\"Log value\",DataLog!AF1520,\"\")","v":""},{"$f":"IF(DataLog!$C1520=\"Log value\",DataLog!AG1520,\"\")","v":""},{"$f":"IF(DataLog!$C1520=\"Log value\",DataLog!AH1520,\"\")","v":""},{"$f":"IF(DataLog!$C1520=\"Log value\",DataLog!AI1520,\"\")","v":""},{"$f":"IF(DataLog!$C1520=\"Log value\",DataLog!AJ1520,\"\")","v":""},{"$f":"IF(DataLog!$C1520=\"Log value\",DataLog!AK1520,\"\")","v":""},{"$f":"IF(DataLog!$C1520=\"Log value\",DataLog!AL1520,\"\")","v":""},{"$f":"IF(DataLog!$C1520=\"Log value\",DataLog!AM1520,\"\")","v":""}]
[null,null,null,null,null,null,{"$f":"IF(DataLog!$C1521=\"Log value\",DataLog!D1521&\"_\"&TEXT(DataLog!B1521,\"åååå-mm-dd\"),\"\")","v":""},{"$f":"IF(DataLog!$C1521=\"Log value\",DataLog!E1521,\"\")","v":""},{"$f":"IF(DataLog!$C1521=\"Log value\",DataLog!F1521,\"\")","v":""},{"$f":"IF(DataLog!$C1521=\"Log value\",DataLog!G1521,\"\")","v":""},{"$f":"IF(DataLog!$C1521=\"Log value\",DataLog!H1521,\"\")","v":""},{"$f":"IF(DataLog!$C1521=\"Log value\",DataLog!I1521,\"\")","v":""},{"$f":"IF(DataLog!$C1521=\"Log value\",DataLog!J1521,\"\")","v":""},{"$f":"IF(DataLog!$C1521=\"Log value\",DataLog!K1521,\"\")","v":""},{"$f":"IF(DataLog!$C1521=\"Log value\",DataLog!L1521,\"\")","v":""},{"$f":"IF(DataLog!$C1521=\"Log value\",DataLog!M1521,\"\")","v":""},{"$f":"IF(DataLog!$C1521=\"Log value\",DataLog!N1521,\"\")","v":""},{"$f":"IF(DataLog!$C1521=\"Log value\",DataLog!O1521,\"\")","v":""},{"$f":"IF(DataLog!$C1521=\"Log value\",DataLog!P1521,\"\")","v":""},{"$f":"IF(DataLog!$C1521=\"Log value\",DataLog!Q1521,\"\")","v":""},{"$f":"IF(DataLog!$C1521=\"Log value\",DataLog!R1521,\"\")","v":""},{"$f":"IF(DataLog!$C1521=\"Log value\",DataLog!S1521,\"\")","v":""},{"$f":"IF(DataLog!$C1521=\"Log value\",DataLog!T1521,\"\")","v":""},{"$f":"IF(DataLog!$C1521=\"Log value\",DataLog!U1521,\"\")","v":""},{"$f":"IF(DataLog!$C1521=\"Log value\",DataLog!V1521,\"\")","v":""},{"$f":"IF(DataLog!$C1521=\"Log value\",DataLog!W1521,\"\")","v":""},{"$f":"IF(DataLog!$C1521=\"Log value\",DataLog!X1521,\"\")","v":""},{"$f":"IF(DataLog!$C1521=\"Log value\",DataLog!Y1521,\"\")","v":""},{"$f":"IF(DataLog!$C1521=\"Log value\",DataLog!Z1521,\"\")","v":""},{"$f":"IF(DataLog!$C1521=\"Log value\",DataLog!AA1521,\"\")","v":""},{"$f":"IF(DataLog!$C1521=\"Log value\",DataLog!AB1521,\"\")","v":""},{"$f":"IF(DataLog!$C1521=\"Log value\",DataLog!AC1521,\"\")","v":""},{"$f":"IF(DataLog!$C1521=\"Log value\",DataLog!AD1521,\"\")","v":""},{"$f":"IF(DataLog!$C1521=\"Log value\",DataLog!AE1521,\"\")","v":""},{"$f":"IF(DataLog!$C1521=\"Log value\",DataLog!AF1521,\"\")","v":""},{"$f":"IF(DataLog!$C1521=\"Log value\",DataLog!AG1521,\"\")","v":""},{"$f":"IF(DataLog!$C1521=\"Log value\",DataLog!AH1521,\"\")","v":""},{"$f":"IF(DataLog!$C1521=\"Log value\",DataLog!AI1521,\"\")","v":""},{"$f":"IF(DataLog!$C1521=\"Log value\",DataLog!AJ1521,\"\")","v":""},{"$f":"IF(DataLog!$C1521=\"Log value\",DataLog!AK1521,\"\")","v":""},{"$f":"IF(DataLog!$C1521=\"Log value\",DataLog!AL1521,\"\")","v":""},{"$f":"IF(DataLog!$C1521=\"Log value\",DataLog!AM1521,\"\")","v":""}]
[null,null,null,null,null,null,{"$f":"IF(DataLog!$C1524=\"Log value\",DataLog!D1524&\"_\"&TEXT(DataLog!B1524,\"åååå-mm-dd\"),\"\")","v":""},{"$f":"IF(DataLog!$C1524=\"Log value\",DataLog!E1524,\"\")","v":""},{"$f":"IF(DataLog!$C1524=\"Log value\",DataLog!F1524,\"\")","v":""},{"$f":"IF(DataLog!$C1524=\"Log value\",DataLog!G1524,\"\")","v":""},{"$f":"IF(DataLog!$C1524=\"Log value\",DataLog!H1524,\"\")","v":""},{"$f":"IF(DataLog!$C1524=\"Log value\",DataLog!I1524,\"\")","v":""},{"$f":"IF(DataLog!$C1524=\"Log value\",DataLog!J1524,\"\")","v":""},{"$f":"IF(DataLog!$C1524=\"Log value\",DataLog!K1524,\"\")","v":""},{"$f":"IF(DataLog!$C1524=\"Log value\",DataLog!L1524,\"\")","v":""},{"$f":"IF(DataLog!$C1524=\"Log value\",DataLog!M1524,\"\")","v":""},{"$f":"IF(DataLog!$C1524=\"Log value\",DataLog!N1524,\"\")","v":""},{"$f":"IF(DataLog!$C1524=\"Log value\",DataLog!O1524,\"\")","v":""},{"$f":"IF(DataLog!$C1524=\"Log value\",DataLog!P1524,\"\")","v":""},{"$f":"IF(DataLog!$C1524=\"Log value\",DataLog!Q1524,\"\")","v":""},{"$f":"IF(DataLog!$C1524=\"Log value\",DataLog!R1524,\"\")","v":""},{"$f":"IF(DataLog!$C1524=\"Log value\",DataLog!S1524,\"\")","v":""},{"$f":"IF(DataLog!$C1524=\"Log value\",DataLog!T1524,\"\")","v":""},{"$f":"IF(DataLog!$C1524=\"Log value\",DataLog!U1524,\"\")","v":""},{"$f":"IF(DataLog!$C1524=\"Log value\",DataLog!V1524,\"\")","v":""},{"$f":"IF(DataLog!$C1524=\"Log value\",DataLog!W1524,\"\")","v":""},{"$f":"IF(DataLog!$C1524=\"Log value\",DataLog!X1524,\"\")","v":""},{"$f":"IF(DataLog!$C1524=\"Log value\",DataLog!Y1524,\"\")","v":""},{"$f":"IF(DataLog!$C1524=\"Log value\",DataLog!Z1524,\"\")","v":""},{"$f":"IF(DataLog!$C1524=\"Log value\",DataLog!AA1524,\"\")","v":""},{"$f":"IF(DataLog!$C1524=\"Log value\",DataLog!AB1524,\"\")","v":""},{"$f":"IF(DataLog!$C1524=\"Log value\",DataLog!AC1524,\"\")","v":""},{"$f":"IF(DataLog!$C1524=\"Log value\",DataLog!AD1524,\"\")","v":""},{"$f":"IF(DataLog!$C1524=\"Log value\",DataLog!AE1524,\"\")","v":""},{"$f":"IF(DataLog!$C1524=\"Log value\",DataLog!AF1524,\"\")","v":""},{"$f":"IF(DataLog!$C1524=\"Log value\",DataLog!AG1524,\"\")","v":""},{"$f":"IF(DataLog!$C1524=\"Log value\",DataLog!AH1524,\"\")","v":""},{"$f":"IF(DataLog!$C1524=\"Log value\",DataLog!AI1524,\"\")","v":""},{"$f":"IF(DataLog!$C1524=\"Log value\",DataLog!AJ1524,\"\")","v":""},{"$f":"IF(DataLog!$C1524=\"Log value\",DataLog!AK1524,\"\")","v":""},{"$f":"IF(DataLog!$C1524=\"Log value\",DataLog!AL1524,\"\")","v":""},{"$f":"IF(DataLog!$C1524=\"Log value\",DataLog!AM1524,\"\")","v":""}]
[null,null,null,null,null,null,{"$f":"IF(DataLog!$C1527=\"Log value\",DataLog!D1527&\"_\"&TEXT(DataLog!B1527,\"åååå-mm-dd\"),\"\")","v":""},{"$f":"IF(DataLog!$C1527=\"Log value\",DataLog!E1527,\"\")","v":""},{"$f":"IF(DataLog!$C1527=\"Log value\",DataLog!F1527,\"\")","v":""},{"$f":"IF(DataLog!$C1527=\"Log value\",DataLog!G1527,\"\")","v":""},{"$f":"IF(DataLog!$C1527=\"Log value\",DataLog!H1527,\"\")","v":""},{"$f":"IF(DataLog!$C1527=\"Log value\",DataLog!I1527,\"\")","v":""},{"$f":"IF(DataLog!$C1527=\"Log value\",DataLog!J1527,\"\")","v":""},{"$f":"IF(DataLog!$C1527=\"Log value\",DataLog!K1527,\"\")","v":""},{"$f":"IF(DataLog!$C1527=\"Log value\",DataLog!L1527,\"\")","v":""},{"$f":"IF(DataLog!$C1527=\"Log value\",DataLog!M1527,\"\")","v":""},{"$f":"IF(DataLog!$C1527=\"Log value\",DataLog!N1527,\"\")","v":""},{"$f":"IF(DataLog!$C1527=\"Log value\",DataLog!O1527,\"\")","v":""},{"$f":"IF(DataLog!$C1527=\"Log value\",DataLog!P1527,\"\")","v":""},{"$f":"IF(DataLog!$C1527=\"Log value\",DataLog!Q1527,\"\")","v":""},{"$f":"IF(DataLog!$C1527=\"Log value\",DataLog!R1527,\"\")","v":""},{"$f":"IF(DataLog!$C1527=\"Log value\",DataLog!S1527,\"\")","v":""},{"$f":"IF(DataLog!$C1527=\"Log value\",DataLog!T1527,\"\")","v":""},{"$f":"IF(DataLog!$C1527=\"Log value\",DataLog!U1527,\"\")","v":""},{"$f":"IF(DataLog!$C1527=\"Log value\",DataLog!V1527,\"\")","v":""},{"$f":"IF(DataLog!$C1527=\"Log value\",DataLog!W1527,\"\")","v":""},{"$f":"IF(DataLog!$C1527=\"Log value\",DataLog!X1527,\"\")","v":""},{"$f":"IF(DataLog!$C1527=\"Log value\",DataLog!Y1527,\"\")","v":""},{"$f":"IF(DataLog!$C1527=\"Log value\",DataLog!Z1527,\"\")","v":""},{"$f":"IF(DataLog!$C1527=\"Log value\",DataLog!AA1527,\"\")","v":""},{"$f":"IF(DataLog!$C1527=\"Log value\",DataLog!AB1527,\"\")","v":""},{"$f":"IF(DataLog!$C1527=\"Log value\",DataLog!AC1527,\"\")","v":""},{"$f":"IF(DataLog!$C1527=\"Log value\",DataLog!AD1527,\"\")","v":""},{"$f":"IF(DataLog!$C1527=\"Log value\",DataLog!AE1527,\"\")","v":""},{"$f":"IF(DataLog!$C1527=\"Log value\",DataLog!AF1527,\"\")","v":""},{"$f":"IF(DataLog!$C1527=\"Log value\",DataLog!AG1527,\"\")","v":""},{"$f":"IF(DataLog!$C1527=\"Log value\",DataLog!AH1527,\"\")","v":""},{"$f":"IF(DataLog!$C1527=\"Log value\",DataLog!AI1527,\"\")","v":""},{"$f":"IF(DataLog!$C1527=\"Log value\",DataLog!AJ1527,\"\")","v":""},{"$f":"IF(DataLog!$C1527=\"Log value\",DataLog!AK1527,\"\")","v":""},{"$f":"IF(DataLog!$C1527=\"Log value\",DataLog!AL1527,\"\")","v":""},{"$f":"IF(DataLog!$C1527=\"Log value\",DataLog!AM1527,\"\")","v":""}]
[null,null,null,null,null,null,{"$f":"IF(DataLog!$C1529=\"Log value\",DataLog!D1529&\"_\"&TEXT(DataLog!B1529,\"åååå-mm-dd\"),\"\")","v":""},{"$f":"IF(DataLog!$C1529=\"Log value\",DataLog!E1529,\"\")","v":""},{"$f":"IF(DataLog!$C1529=\"Log value\",DataLog!F1529,\"\")","v":""},{"$f":"IF(DataLog!$C1529=\"Log value\",DataLog!G1529,\"\")","v":""},{"$f":"IF(DataLog!$C1529=\"Log value\",DataLog!H1529,\"\")","v":""},{"$f":"IF(DataLog!$C1529=\"Log value\",DataLog!I1529,\"\")","v":""},{"$f":"IF(DataLog!$C1529=\"Log value\",DataLog!J1529,\"\")","v":""},{"$f":"IF(DataLog!$C1529=\"Log value\",DataLog!K1529,\"\")","v":""},{"$f":"IF(DataLog!$C1529=\"Log value\",DataLog!L1529,\"\")","v":""},{"$f":"IF(DataLog!$C1529=\"Log value\",DataLog!M1529,\"\")","v":""},{"$f":"IF(DataLog!$C1529=\"Log value\",DataLog!N1529,\"\")","v":""},{"$f":"IF(DataLog!$C1529=\"Log value\",DataLog!O1529,\"\")","v":""},{"$f":"IF(DataLog!$C1529=\"Log value\",DataLog!P1529,\"\")","v":""},{"$f":"IF(DataLog!$C1529=\"Log value\",DataLog!Q1529,\"\")","v":""},{"$f":"IF(DataLog!$C1529=\"Log value\",DataLog!R1529,\"\")","v":""},{"$f":"IF(DataLog!$C1529=\"Log value\",DataLog!S1529,\"\")","v":""},{"$f":"IF(DataLog!$C1529=\"Log value\",DataLog!T1529,\"\")","v":""},{"$f":"IF(DataLog!$C1529=\"Log value\",DataLog!U1529,\"\")","v":""},{"$f":"IF(DataLog!$C1529=\"Log value\",DataLog!V1529,\"\")","v":""},{"$f":"IF(DataLog!$C1529=\"Log value\",DataLog!W1529,\"\")","v":""},{"$f":"IF(DataLog!$C1529=\"Log value\",DataLog!X1529,\"\")","v":""},{"$f":"IF(DataLog!$C1529=\"Log value\",DataLog!Y1529,\"\")","v":""},{"$f":"IF(DataLog!$C1529=\"Log value\",DataLog!Z1529,\"\")","v":""},{"$f":"IF(DataLog!$C1529=\"Log value\",DataLog!AA1529,\"\")","v":""},{"$f":"IF(DataLog!$C1529=\"Log value\",DataLog!AB1529,\"\")","v":""},{"$f":"IF(DataLog!$C1529=\"Log value\",DataLog!AC1529,\"\")","v":""},{"$f":"IF(DataLog!$C1529=\"Log value\",DataLog!AD1529,\"\")","v":""},{"$f":"IF(DataLog!$C1529=\"Log value\",DataLog!AE1529,\"\")","v":""},{"$f":"IF(DataLog!$C1529=\"Log value\",DataLog!AF1529,\"\")","v":""},{"$f":"IF(DataLog!$C1529=\"Log value\",DataLog!AG1529,\"\")","v":""},{"$f":"IF(DataLog!$C1529=\"Log value\",DataLog!AH1529,\"\")","v":""},{"$f":"IF(DataLog!$C1529=\"Log value\",DataLog!AI1529,\"\")","v":""},{"$f":"IF(DataLog!$C1529=\"Log value\",DataLog!AJ1529,\"\")","v":""},{"$f":"IF(DataLog!$C1529=\"Log value\",DataLog!AK1529,\"\")","v":""},{"$f":"IF(DataLog!$C1529=\"Log value\",DataLog!AL1529,\"\")","v":""},{"$f":"IF(DataLog!$C1529=\"Log value\",DataLog!AM1529,\"\")","v":""}]
[null,null,null,null,null,null,{"$f":"IF(DataLog!$C1530=\"Log value\",DataLog!D1530&\"_\"&TEXT(DataLog!B1530,\"åååå-mm-dd\"),\"\")","v":""},{"$f":"IF(DataLog!$C1530=\"Log value\",DataLog!E1530,\"\")","v":""},{"$f":"IF(DataLog!$C1530=\"Log value\",DataLog!F1530,\"\")","v":""},{"$f":"IF(DataLog!$C1530=\"Log value\",DataLog!G1530,\"\")","v":""},{"$f":"IF(DataLog!$C1530=\"Log value\",DataLog!H1530,\"\")","v":""},{"$f":"IF(DataLog!$C1530=\"Log value\",DataLog!I1530,\"\")","v":""},{"$f":"IF(DataLog!$C1530=\"Log value\",DataLog!J1530,\"\")","v":""},{"$f":"IF(DataLog!$C1530=\"Log value\",DataLog!K1530,\"\")","v":""},{"$f":"IF(DataLog!$C1530=\"Log value\",DataLog!L1530,\"\")","v":""},{"$f":"IF(DataLog!$C1530=\"Log value\",DataLog!M1530,\"\")","v":""},{"$f":"IF(DataLog!$C1530=\"Log value\",DataLog!N1530,\"\")","v":""},{"$f":"IF(DataLog!$C1530=\"Log value\",DataLog!O1530,\"\")","v":""},{"$f":"IF(DataLog!$C1530=\"Log value\",DataLog!P1530,\"\")","v":""},{"$f":"IF(DataLog!$C1530=\"Log value\",DataLog!Q1530,\"\")","v":""},{"$f":"IF(DataLog!$C1530=\"Log value\",DataLog!R1530,\"\")","v":""},{"$f":"IF(DataLog!$C1530=\"Log value\",DataLog!S1530,\"\")","v":""},{"$f":"IF(DataLog!$C1530=\"Log value\",DataLog!T1530,\"\")","v":""},{"$f":"IF(DataLog!$C1530=\"Log value\",DataLog!U1530,\"\")","v":""},{"$f":"IF(DataLog!$C1530=\"Log value\",DataLog!V1530,\"\")","v":""},{"$f":"IF(DataLog!$C1530=\"Log value\",DataLog!W1530,\"\")","v":""},{"$f":"IF(DataLog!$C1530=\"Log value\",DataLog!X1530,\"\")","v":""},{"$f":"IF(DataLog!$C1530=\"Log value\",DataLog!Y1530,\"\")","v":""},{"$f":"IF(DataLog!$C1530=\"Log value\",DataLog!Z1530,\"\")","v":""},{"$f":"IF(DataLog!$C1530=\"Log value\",DataLog!AA1530,\"\")","v":""},{"$f":"IF(DataLog!$C1530=\"Log value\",DataLog!AB1530,\"\")","v":""},{"$f":"IF(DataLog!$C1530=\"Log value\",DataLog!AC1530,\"\")","v":""},{"$f":"IF(DataLog!$C1530=\"Log value\",DataLog!AD1530,\"\")","v":""},{"$f":"IF(DataLog!$C1530=\"Log value\",DataLog!AE1530,\"\")","v":""},{"$f":"IF(DataLog!$C1530=\"Log value\",DataLog!AF1530,\"\")","v":""},{"$f":"IF(DataLog!$C1530=\"Log value\",DataLog!AG1530,\"\")","v":""},{"$f":"IF(DataLog!$C1530=\"Log value\",DataLog!AH1530,\"\")","v":""},{"$f":"IF(DataLog!$C1530=\"Log value\",DataLog!AI1530,\"\")","v":""},{"$f":"IF(DataLog!$C1530=\"Log value\",DataLog!AJ1530,\"\")","v":""},{"$f":"IF(DataLog!$C1530=\"Log value\",DataLog!AK1530,\"\")","v":""},{"$f":"IF(DataLog!$C1530=\"Log value\",DataLog!AL1530,\"\")","v":""},{"$f":"IF(DataLog!$C1530=\"Log value\",DataLog!AM1530,\"\")","v":""}]
[null,null,null,null,null,null,{"$f":"IF(DataLog!$C1532=\"Log value\",DataLog!D1532&\"_\"&TEXT(DataLog!B1532,\"åååå-mm-dd\"),\"\")","v":""},{"$f":"IF(DataLog!$C1532=\"Log value\",DataLog!E1532,\"\")","v":""},{"$f":"IF(DataLog!$C1532=\"Log value\",DataLog!F1532,\"\")","v":""},{"$f":"IF(DataLog!$C1532=\"Log value\",DataLog!G1532,\"\")","v":""},{"$f":"IF(DataLog!$C1532=\"Log value\",DataLog!H1532,\"\")","v":""},{"$f":"IF(DataLog!$C1532=\"Log value\",DataLog!I1532,\"\")","v":""},{"$f":"IF(DataLog!$C1532=\"Log value\",DataLog!J1532,\"\")","v":""},{"$f":"IF(DataLog!$C1532=\"Log value\",DataLog!K1532,\"\")","v":""},{"$f":"IF(DataLog!$C1532=\"Log value\",DataLog!L1532,\"\")","v":""},{"$f":"IF(DataLog!$C1532=\"Log value\",DataLog!M1532,\"\")","v":""},{"$f":"IF(DataLog!$C1532=\"Log value\",DataLog!N1532,\"\")","v":""},{"$f":"IF(DataLog!$C1532=\"Log value\",DataLog!O1532,\"\")","v":""},{"$f":"IF(DataLog!$C1532=\"Log value\",DataLog!P1532,\"\")","v":""},{"$f":"IF(DataLog!$C1532=\"Log value\",DataLog!Q1532,\"\")","v":""},{"$f":"IF(DataLog!$C1532=\"Log value\",DataLog!R1532,\"\")","v":""},{"$f":"IF(DataLog!$C1532=\"Log value\",DataLog!S1532,\"\")","v":""},{"$f":"IF(DataLog!$C1532=\"Log value\",DataLog!T1532,\"\")","v":""},{"$f":"IF(DataLog!$C1532=\"Log value\",DataLog!U1532,\"\")","v":""},{"$f":"IF(DataLog!$C1532=\"Log value\",DataLog!V1532,\"\")","v":""},{"$f":"IF(DataLog!$C1532=\"Log value\",DataLog!W1532,\"\")","v":""},{"$f":"IF(DataLog!$C1532=\"Log value\",DataLog!X1532,\"\")","v":""},{"$f":"IF(DataLog!$C1532=\"Log value\",DataLog!Y1532,\"\")","v":""},{"$f":"IF(DataLog!$C1532=\"Log value\",DataLog!Z1532,\"\")","v":""},{"$f":"IF(DataLog!$C1532=\"Log value\",DataLog!AA1532,\"\")","v":""},{"$f":"IF(DataLog!$C1532=\"Log value\",DataLog!AB1532,\"\")","v":""},{"$f":"IF(DataLog!$C1532=\"Log value\",DataLog!AC1532,\"\")","v":""},{"$f":"IF(DataLog!$C1532=\"Log value\",DataLog!AD1532,\"\")","v":""},{"$f":"IF(DataLog!$C1532=\"Log value\",DataLog!AE1532,\"\")","v":""},{"$f":"IF(DataLog!$C1532=\"Log value\",DataLog!AF1532,\"\")","v":""},{"$f":"IF(DataLog!$C1532=\"Log value\",DataLog!AG1532,\"\")","v":""},{"$f":"IF(DataLog!$C1532=\"Log value\",DataLog!AH1532,\"\")","v":""},{"$f":"IF(DataLog!$C1532=\"Log value\",DataLog!AI1532,\"\")","v":""},{"$f":"IF(DataLog!$C1532=\"Log value\",DataLog!AJ1532,\"\")","v":""},{"$f":"IF(DataLog!$C1532=\"Log value\",DataLog!AK1532,\"\")","v":""},{"$f":"IF(DataLog!$C1532=\"Log value\",DataLog!AL1532,\"\")","v":""},{"$f":"IF(DataLog!$C1532=\"Log value\",DataLog!AM1532,\"\")","v":""}]
[null,null,null,null,null,null,{"$f":"IF(DataLog!$C1535=\"Log value\",DataLog!D1535&\"_\"&TEXT(DataLog!B1535,\"åååå-mm-dd\"),\"\")","v":""},{"$f":"IF(DataLog!$C1535=\"Log value\",DataLog!E1535,\"\")","v":""},{"$f":"IF(DataLog!$C1535=\"Log value\",DataLog!F1535,\"\")","v":""},{"$f":"IF(DataLog!$C1535=\"Log value\",DataLog!G1535,\"\")","v":""},{"$f":"IF(DataLog!$C1535=\"Log value\",DataLog!H1535,\"\")","v":""},{"$f":"IF(DataLog!$C1535=\"Log value\",DataLog!I1535,\"\")","v":""},{"$f":"IF(DataLog!$C1535=\"Log value\",DataLog!J1535,\"\")","v":""},{"$f":"IF(DataLog!$C1535=\"Log value\",DataLog!K1535,\"\")","v":""},{"$f":"IF(DataLog!$C1535=\"Log value\",DataLog!L1535,\"\")","v":""},{"$f":"IF(DataLog!$C1535=\"Log value\",DataLog!M1535,\"\")","v":""},{"$f":"IF(DataLog!$C1535=\"Log value\",DataLog!N1535,\"\")","v":""},{"$f":"IF(DataLog!$C1535=\"Log value\",DataLog!O1535,\"\")","v":""},{"$f":"IF(DataLog!$C1535=\"Log value\",DataLog!P1535,\"\")","v":""},{"$f":"IF(DataLog!$C1535=\"Log value\",DataLog!Q1535,\"\")","v":""},{"$f":"IF(DataLog!$C1535=\"Log value\",DataLog!R1535,\"\")","v":""},{"$f":"IF(DataLog!$C1535=\"Log value\",DataLog!S1535,\"\")","v":""},{"$f":"IF(DataLog!$C1535=\"Log value\",DataLog!T1535,\"\")","v":""},{"$f":"IF(DataLog!$C1535=\"Log value\",DataLog!U1535,\"\")","v":""},{"$f":"IF(DataLog!$C1535=\"Log value\",DataLog!V1535,\"\")","v":""},{"$f":"IF(DataLog!$C1535=\"Log value\",DataLog!W1535,\"\")","v":""},{"$f":"IF(DataLog!$C1535=\"Log value\",DataLog!X1535,\"\")","v":""},{"$f":"IF(DataLog!$C1535=\"Log value\",DataLog!Y1535,\"\")","v":""},{"$f":"IF(DataLog!$C1535=\"Log value\",DataLog!Z1535,\"\")","v":""},{"$f":"IF(DataLog!$C1535=\"Log value\",DataLog!AA1535,\"\")","v":""},{"$f":"IF(DataLog!$C1535=\"Log value\",DataLog!AB1535,\"\")","v":""},{"$f":"IF(DataLog!$C1535=\"Log value\",DataLog!AC1535,\"\")","v":""},{"$f":"IF(DataLog!$C1535=\"Log value\",DataLog!AD1535,\"\")","v":""},{"$f":"IF(DataLog!$C1535=\"Log value\",DataLog!AE1535,\"\")","v":""},{"$f":"IF(DataLog!$C1535=\"Log value\",DataLog!AF1535,\"\")","v":""},{"$f":"IF(DataLog!$C1535=\"Log value\",DataLog!AG1535,\"\")","v":""},{"$f":"IF(DataLog!$C1535=\"Log value\",DataLog!AH1535,\"\")","v":""},{"$f":"IF(DataLog!$C1535=\"Log value\",DataLog!AI1535,\"\")","v":""},{"$f":"IF(DataLog!$C1535=\"Log value\",DataLog!AJ1535,\"\")","v":""},{"$f":"IF(DataLog!$C1535=\"Log value\",DataLog!AK1535,\"\")","v":""},{"$f":"IF(DataLog!$C1535=\"Log value\",DataLog!AL1535,\"\")","v":""},{"$f":"IF(DataLog!$C1535=\"Log value\",DataLog!AM1535,\"\")","v":""}]
[null,null,null,null,null,null,{"$f":"IF(DataLog!$C1538=\"Log value\",DataLog!D1538&\"_\"&TEXT(DataLog!B1538,\"åååå-mm-dd\"),\"\")","v":""},{"$f":"IF(DataLog!$C1538=\"Log value\",DataLog!E1538,\"\")","v":""},{"$f":"IF(DataLog!$C1538=\"Log value\",DataLog!F1538,\"\")","v":""},{"$f":"IF(DataLog!$C1538=\"Log value\",DataLog!G1538,\"\")","v":""},{"$f":"IF(DataLog!$C1538=\"Log value\",DataLog!H1538,\"\")","v":""},{"$f":"IF(DataLog!$C1538=\"Log value\",DataLog!I1538,\"\")","v":""},{"$f":"IF(DataLog!$C1538=\"Log value\",DataLog!J1538,\"\")","v":""},{"$f":"IF(DataLog!$C1538=\"Log value\",DataLog!K1538,\"\")","v":""},{"$f":"IF(DataLog!$C1538=\"Log value\",DataLog!L1538,\"\")","v":""},{"$f":"IF(DataLog!$C1538=\"Log value\",DataLog!M1538,\"\")","v":""},{"$f":"IF(DataLog!$C1538=\"Log value\",DataLog!N1538,\"\")","v":""},{"$f":"IF(DataLog!$C1538=\"Log value\",DataLog!O1538,\"\")","v":""},{"$f":"IF(DataLog!$C1538=\"Log value\",DataLog!P1538,\"\")","v":""},{"$f":"IF(DataLog!$C1538=\"Log value\",DataLog!Q1538,\"\")","v":""},{"$f":"IF(DataLog!$C1538=\"Log value\",DataLog!R1538,\"\")","v":""},{"$f":"IF(DataLog!$C1538=\"Log value\",DataLog!S1538,\"\")","v":""},{"$f":"IF(DataLog!$C1538=\"Log value\",DataLog!T1538,\"\")","v":""},{"$f":"IF(DataLog!$C1538=\"Log value\",DataLog!U1538,\"\")","v":""},{"$f":"IF(DataLog!$C1538=\"Log value\",DataLog!V1538,\"\")","v":""},{"$f":"IF(DataLog!$C1538=\"Log value\",DataLog!W1538,\"\")","v":""},{"$f":"IF(DataLog!$C1538=\"Log value\",DataLog!X1538,\"\")","v":""},{"$f":"IF(DataLog!$C1538=\"Log value\",DataLog!Y1538,\"\")","v":""},{"$f":"IF(DataLog!$C1538=\"Log value\",DataLog!Z1538,\"\")","v":""},{"$f":"IF(DataLog!$C1538=\"Log value\",DataLog!AA1538,\"\")","v":""},{"$f":"IF(DataLog!$C1538=\"Log value\",DataLog!AB1538,\"\")","v":""},{"$f":"IF(DataLog!$C1538=\"Log value\",DataLog!AC1538,\"\")","v":""},{"$f":"IF(DataLog!$C1538=\"Log value\",DataLog!AD1538,\"\")","v":""},{"$f":"IF(DataLog!$C1538=\"Log value\",DataLog!AE1538,\"\")","v":""},{"$f":"IF(DataLog!$C1538=\"Log value\",DataLog!AF1538,\"\")","v":""},{"$f":"IF(DataLog!$C1538=\"Log value\",DataLog!AG1538,\"\")","v":""},{"$f":"IF(DataLog!$C1538=\"Log value\",DataLog!AH1538,\"\")","v":""},{"$f":"IF(DataLog!$C1538=\"Log value\",DataLog!AI1538,\"\")","v":""},{"$f":"IF(DataLog!$C1538=\"Log value\",DataLog!AJ1538,\"\")","v":""},{"$f":"IF(DataLog!$C1538=\"Log value\",DataLog!AK1538,\"\")","v":""},{"$f":"IF(DataLog!$C1538=\"Log value\",DataLog!AL1538,\"\")","v":""},{"$f":"IF(DataLog!$C1538=\"Log value\",DataLog!AM1538,\"\")","v":""}]
[null,null,null,null,null,null,{"$f":"IF(DataLog!$C1539=\"Log value\",DataLog!D1539&\"_\"&TEXT(DataLog!B1539,\"åååå-mm-dd\"),\"\")","v":""},{"$f":"IF(DataLog!$C1539=\"Log value\",DataLog!E1539,\"\")","v":""},{"$f":"IF(DataLog!$C1539=\"Log value\",DataLog!F1539,\"\")","v":""},{"$f":"IF(DataLog!$C1539=\"Log value\",DataLog!G1539,\"\")","v":""},{"$f":"IF(DataLog!$C1539=\"Log value\",DataLog!H1539,\"\")","v":""},{"$f":"IF(DataLog!$C1539=\"Log value\",DataLog!I1539,\"\")","v":""},{"$f":"IF(DataLog!$C1539=\"Log value\",DataLog!J1539,\"\")","v":""},{"$f":"IF(DataLog!$C1539=\"Log value\",DataLog!K1539,\"\")","v":""},{"$f":"IF(DataLog!$C1539=\"Log value\",DataLog!L1539,\"\")","v":""},{"$f":"IF(DataLog!$C1539=\"Log value\",DataLog!M1539,\"\")","v":""},{"$f":"IF(DataLog!$C1539=\"Log value\",DataLog!N1539,\"\")","v":""},{"$f":"IF(DataLog!$C1539=\"Log value\",DataLog!O1539,\"\")","v":""},{"$f":"IF(DataLog!$C1539=\"Log value\",DataLog!P1539,\"\")","v":""},{"$f":"IF(DataLog!$C1539=\"Log value\",DataLog!Q1539,\"\")","v":""},{"$f":"IF(DataLog!$C1539=\"Log value\",DataLog!R1539,\"\")","v":""},{"$f":"IF(DataLog!$C1539=\"Log value\",DataLog!S1539,\"\")","v":""},{"$f":"IF(DataLog!$C1539=\"Log value\",DataLog!T1539,\"\")","v":""},{"$f":"IF(DataLog!$C1539=\"Log value\",DataLog!U1539,\"\")","v":""},{"$f":"IF(DataLog!$C1539=\"Log value\",DataLog!V1539,\"\")","v":""},{"$f":"IF(DataLog!$C1539=\"Log value\",DataLog!W1539,\"\")","v":""},{"$f":"IF(DataLog!$C1539=\"Log value\",DataLog!X1539,\"\")","v":""},{"$f":"IF(DataLog!$C1539=\"Log value\",DataLog!Y1539,\"\")","v":""},{"$f":"IF(DataLog!$C1539=\"Log value\",DataLog!Z1539,\"\")","v":""},{"$f":"IF(DataLog!$C1539=\"Log value\",DataLog!AA1539,\"\")","v":""},{"$f":"IF(DataLog!$C1539=\"Log value\",DataLog!AB1539,\"\")","v":""},{"$f":"IF(DataLog!$C1539=\"Log value\",DataLog!AC1539,\"\")","v":""},{"$f":"IF(DataLog!$C1539=\"Log value\",DataLog!AD1539,\"\")","v":""},{"$f":"IF(DataLog!$C1539=\"Log value\",DataLog!AE1539,\"\")","v":""},{"$f":"IF(DataLog!$C1539=\"Log value\",DataLog!AF1539,\"\")","v":""},{"$f":"IF(DataLog!$C1539=\"Log value\",DataLog!AG1539,\"\")","v":""},{"$f":"IF(DataLog!$C1539=\"Log value\",DataLog!AH1539,\"\")","v":""},{"$f":"IF(DataLog!$C1539=\"Log value\",DataLog!AI1539,\"\")","v":""},{"$f":"IF(DataLog!$C1539=\"Log value\",DataLog!AJ1539,\"\")","v":""},{"$f":"IF(DataLog!$C1539=\"Log value\",DataLog!AK1539,\"\")","v":""},{"$f":"IF(DataLog!$C1539=\"Log value\",DataLog!AL1539,\"\")","v":""},{"$f":"IF(DataLog!$C1539=\"Log value\",DataLog!AM1539,\"\")","v":""}]
[null,null,null,null,null,null,{"$f":"IF(DataLog!$C1543=\"Log value\",DataLog!D1543&\"_\"&TEXT(DataLog!B1543,\"åååå-mm-dd\"),\"\")","v":""},{"$f":"IF(DataLog!$C1543=\"Log value\",DataLog!E1543,\"\")","v":""},{"$f":"IF(DataLog!$C1543=\"Log value\",DataLog!F1543,\"\")","v":""},{"$f":"IF(DataLog!$C1543=\"Log value\",DataLog!G1543,\"\")","v":""},{"$f":"IF(DataLog!$C1543=\"Log value\",DataLog!H1543,\"\")","v":""},{"$f":"IF(DataLog!$C1543=\"Log value\",DataLog!I1543,\"\")","v":""},{"$f":"IF(DataLog!$C1543=\"Log value\",DataLog!J1543,\"\")","v":""},{"$f":"IF(DataLog!$C1543=\"Log value\",DataLog!K1543,\"\")","v":""},{"$f":"IF(DataLog!$C1543=\"Log value\",DataLog!L1543,\"\")","v":""},{"$f":"IF(DataLog!$C1543=\"Log value\",DataLog!M1543,\"\")","v":""},{"$f":"IF(DataLog!$C1543=\"Log value\",DataLog!N1543,\"\")","v":""},{"$f":"IF(DataLog!$C1543=\"Log value\",DataLog!O1543,\"\")","v":""},{"$f":"IF(DataLog!$C1543=\"Log value\",DataLog!P1543,\"\")","v":""},{"$f":"IF(DataLog!$C1543=\"Log value\",DataLog!Q1543,\"\")","v":""},{"$f":"IF(DataLog!$C1543=\"Log value\",DataLog!R1543,\"\")","v":""},{"$f":"IF(DataLog!$C1543=\"Log value\",DataLog!S1543,\"\")","v":""},{"$f":"IF(DataLog!$C1543=\"Log value\",DataLog!T1543,\"\")","v":""},{"$f":"IF(DataLog!$C1543=\"Log value\",DataLog!U1543,\"\")","v":""},{"$f":"IF(DataLog!$C1543=\"Log value\",DataLog!V1543,\"\")","v":""},{"$f":"IF(DataLog!$C1543=\"Log value\",DataLog!W1543,\"\")","v":""},{"$f":"IF(DataLog!$C1543=\"Log value\",DataLog!X1543,\"\")","v":""},{"$f":"IF(DataLog!$C1543=\"Log value\",DataLog!Y1543,\"\")","v":""},{"$f":"IF(DataLog!$C1543=\"Log value\",DataLog!Z1543,\"\")","v":""},{"$f":"IF(DataLog!$C1543=\"Log value\",DataLog!AA1543,\"\")","v":""},{"$f":"IF(DataLog!$C1543=\"Log value\",DataLog!AB1543,\"\")","v":""},{"$f":"IF(DataLog!$C1543=\"Log value\",DataLog!AC1543,\"\")","v":""},{"$f":"IF(DataLog!$C1543=\"Log value\",DataLog!AD1543,\"\")","v":""},{"$f":"IF(DataLog!$C1543=\"Log value\",DataLog!AE1543,\"\")","v":""},{"$f":"IF(DataLog!$C1543=\"Log value\",DataLog!AF1543,\"\")","v":""},{"$f":"IF(DataLog!$C1543=\"Log value\",DataLog!AG1543,\"\")","v":""},{"$f":"IF(DataLog!$C1543=\"Log value\",DataLog!AH1543,\"\")","v":""},{"$f":"IF(DataLog!$C1543=\"Log value\",DataLog!AI1543,\"\")","v":""},{"$f":"IF(DataLog!$C1543=\"Log value\",DataLog!AJ1543,\"\")","v":""},{"$f":"IF(DataLog!$C1543=\"Log value\",DataLog!AK1543,\"\")","v":""},{"$f":"IF(DataLog!$C1543=\"Log value\",DataLog!AL1543,\"\")","v":""},{"$f":"IF(DataLog!$C1543=\"Log value\",DataLog!AM1543,\"\")","v":""}]
[null,null,null,null,null,null,{"$f":"IF(DataLog!$C1544=\"Log value\",DataLog!D1544&\"_\"&TEXT(DataLog!B1544,\"åååå-mm-dd\"),\"\")","v":""},{"$f":"IF(DataLog!$C1544=\"Log value\",DataLog!E1544,\"\")","v":""},{"$f":"IF(DataLog!$C1544=\"Log value\",DataLog!F1544,\"\")","v":""},{"$f":"IF(DataLog!$C1544=\"Log value\",DataLog!G1544,\"\")","v":""},{"$f":"IF(DataLog!$C1544=\"Log value\",DataLog!H1544,\"\")","v":""},{"$f":"IF(DataLog!$C1544=\"Log value\",DataLog!I1544,\"\")","v":""},{"$f":"IF(DataLog!$C1544=\"Log value\",DataLog!J1544,\"\")","v":""},{"$f":"IF(DataLog!$C1544=\"Log value\",DataLog!K1544,\"\")","v":""},{"$f":"IF(DataLog!$C1544=\"Log value\",DataLog!L1544,\"\")","v":""},{"$f":"IF(DataLog!$C1544=\"Log value\",DataLog!M1544,\"\")","v":""},{"$f":"IF(DataLog!$C1544=\"Log value\",DataLog!N1544,\"\")","v":""},{"$f":"IF(DataLog!$C1544=\"Log value\",DataLog!O1544,\"\")","v":""},{"$f":"IF(DataLog!$C1544=\"Log value\",DataLog!P1544,\"\")","v":""},{"$f":"IF(DataLog!$C1544=\"Log value\",DataLog!Q1544,\"\")","v":""},{"$f":"IF(DataLog!$C1544=\"Log value\",DataLog!R1544,\"\")","v":""},{"$f":"IF(DataLog!$C1544=\"Log value\",DataLog!S1544,\"\")","v":""},{"$f":"IF(DataLog!$C1544=\"Log value\",DataLog!T1544,\"\")","v":""},{"$f":"IF(DataLog!$C1544=\"Log value\",DataLog!U1544,\"\")","v":""},{"$f":"IF(DataLog!$C1544=\"Log value\",DataLog!V1544,\"\")","v":""},{"$f":"IF(DataLog!$C1544=\"Log value\",DataLog!W1544,\"\")","v":""},{"$f":"IF(DataLog!$C1544=\"Log value\",DataLog!X1544,\"\")","v":""},{"$f":"IF(DataLog!$C1544=\"Log value\",DataLog!Y1544,\"\")","v":""},{"$f":"IF(DataLog!$C1544=\"Log value\",DataLog!Z1544,\"\")","v":""},{"$f":"IF(DataLog!$C1544=\"Log value\",DataLog!AA1544,\"\")","v":""},{"$f":"IF(DataLog!$C1544=\"Log value\",DataLog!AB1544,\"\")","v":""},{"$f":"IF(DataLog!$C1544=\"Log value\",DataLog!AC1544,\"\")","v":""},{"$f":"IF(DataLog!$C1544=\"Log value\",DataLog!AD1544,\"\")","v":""},{"$f":"IF(DataLog!$C1544=\"Log value\",DataLog!AE1544,\"\")","v":""},{"$f":"IF(DataLog!$C1544=\"Log value\",DataLog!AF1544,\"\")","v":""},{"$f":"IF(DataLog!$C1544=\"Log value\",DataLog!AG1544,\"\")","v":""},{"$f":"IF(DataLog!$C1544=\"Log value\",DataLog!AH1544,\"\")","v":""},{"$f":"IF(DataLog!$C1544=\"Log value\",DataLog!AI1544,\"\")","v":""},{"$f":"IF(DataLog!$C1544=\"Log value\",DataLog!AJ1544,\"\")","v":""},{"$f":"IF(DataLog!$C1544=\"Log value\",DataLog!AK1544,\"\")","v":""},{"$f":"IF(DataLog!$C1544=\"Log value\",DataLog!AL1544,\"\")","v":""},{"$f":"IF(DataLog!$C1544=\"Log value\",DataLog!AM1544,\"\")","v":""}]
[null,null,null,null,null,null,{"$f":"IF(DataLog!$C1547=\"Log value\",DataLog!D1547&\"_\"&TEXT(DataLog!B1547,\"åååå-mm-dd\"),\"\")","v":""},{"$f":"IF(DataLog!$C1547=\"Log value\",DataLog!E1547,\"\")","v":""},{"$f":"IF(DataLog!$C1547=\"Log value\",DataLog!F1547,\"\")","v":""},{"$f":"IF(DataLog!$C1547=\"Log value\",DataLog!G1547,\"\")","v":""},{"$f":"IF(DataLog!$C1547=\"Log value\",DataLog!H1547,\"\")","v":""},{"$f":"IF(DataLog!$C1547=\"Log value\",DataLog!I1547,\"\")","v":""},{"$f":"IF(DataLog!$C1547=\"Log value\",DataLog!J1547,\"\")","v":""},{"$f":"IF(DataLog!$C1547=\"Log value\",DataLog!K1547,\"\")","v":""},{"$f":"IF(DataLog!$C1547=\"Log value\",DataLog!L1547,\"\")","v":""},{"$f":"IF(DataLog!$C1547=\"Log value\",DataLog!M1547,\"\")","v":""},{"$f":"IF(DataLog!$C1547=\"Log value\",DataLog!N1547,\"\")","v":""},{"$f":"IF(DataLog!$C1547=\"Log value\",DataLog!O1547,\"\")","v":""},{"$f":"IF(DataLog!$C1547=\"Log value\",DataLog!P1547,\"\")","v":""},{"$f":"IF(DataLog!$C1547=\"Log value\",DataLog!Q1547,\"\")","v":""},{"$f":"IF(DataLog!$C1547=\"Log value\",DataLog!R1547,\"\")","v":""},{"$f":"IF(DataLog!$C1547=\"Log value\",DataLog!S1547,\"\")","v":""},{"$f":"IF(DataLog!$C1547=\"Log value\",DataLog!T1547,\"\")","v":""},{"$f":"IF(DataLog!$C1547=\"Log value\",DataLog!U1547,\"\")","v":""},{"$f":"IF(DataLog!$C1547=\"Log value\",DataLog!V1547,\"\")","v":""},{"$f":"IF(DataLog!$C1547=\"Log value\",DataLog!W1547,\"\")","v":""},{"$f":"IF(DataLog!$C1547=\"Log value\",DataLog!X1547,\"\")","v":""},{"$f":"IF(DataLog!$C1547=\"Log value\",DataLog!Y1547,\"\")","v":""},{"$f":"IF(DataLog!$C1547=\"Log value\",DataLog!Z1547,\"\")","v":""},{"$f":"IF(DataLog!$C1547=\"Log value\",DataLog!AA1547,\"\")","v":""},{"$f":"IF(DataLog!$C1547=\"Log value\",DataLog!AB1547,\"\")","v":""},{"$f":"IF(DataLog!$C1547=\"Log value\",DataLog!AC1547,\"\")","v":""},{"$f":"IF(DataLog!$C1547=\"Log value\",DataLog!AD1547,\"\")","v":""},{"$f":"IF(DataLog!$C1547=\"Log value\",DataLog!AE1547,\"\")","v":""},{"$f":"IF(DataLog!$C1547=\"Log value\",DataLog!AF1547,\"\")","v":""},{"$f":"IF(DataLog!$C1547=\"Log value\",DataLog!AG1547,\"\")","v":""},{"$f":"IF(DataLog!$C1547=\"Log value\",DataLog!AH1547,\"\")","v":""},{"$f":"IF(DataLog!$C1547=\"Log value\",DataLog!AI1547,\"\")","v":""},{"$f":"IF(DataLog!$C1547=\"Log value\",DataLog!AJ1547,\"\")","v":""},{"$f":"IF(DataLog!$C1547=\"Log value\",DataLog!AK1547,\"\")","v":""},{"$f":"IF(DataLog!$C1547=\"Log value\",DataLog!AL1547,\"\")","v":""},{"$f":"IF(DataLog!$C1547=\"Log value\",DataLog!AM1547,\"\")","v":""}]
[null,null,null,null,null,null,{"$f":"IF(DataLog!$C1548=\"Log value\",DataLog!D1548&\"_\"&TEXT(DataLog!B1548,\"åååå-mm-dd\"),\"\")","v":""},{"$f":"IF(DataLog!$C1548=\"Log value\",DataLog!E1548,\"\")","v":""},{"$f":"IF(DataLog!$C1548=\"Log value\",DataLog!F1548,\"\")","v":""},{"$f":"IF(DataLog!$C1548=\"Log value\",DataLog!G1548,\"\")","v":""},{"$f":"IF(DataLog!$C1548=\"Log value\",DataLog!H1548,\"\")","v":""},{"$f":"IF(DataLog!$C1548=\"Log value\",DataLog!I1548,\"\")","v":""},{"$f":"IF(DataLog!$C1548=\"Log value\",DataLog!J1548,\"\")","v":""},{"$f":"IF(DataLog!$C1548=\"Log value\",DataLog!K1548,\"\")","v":""},{"$f":"IF(DataLog!$C1548=\"Log value\",DataLog!L1548,\"\")","v":""},{"$f":"IF(DataLog!$C1548=\"Log value\",DataLog!M1548,\"\")","v":""},{"$f":"IF(DataLog!$C1548=\"Log value\",DataLog!N1548,\"\")","v":""},{"$f":"IF(DataLog!$C1548=\"Log value\",DataLog!O1548,\"\")","v":""},{"$f":"IF(DataLog!$C1548=\"Log value\",DataLog!P1548,\"\")","v":""},{"$f":"IF(DataLog!$C1548=\"Log value\",DataLog!Q1548,\"\")","v":""},{"$f":"IF(DataLog!$C1548=\"Log value\",DataLog!R1548,\"\")","v":""},{"$f":"IF(DataLog!$C1548=\"Log value\",DataLog!S1548,\"\")","v":""},{"$f":"IF(DataLog!$C1548=\"Log value\",DataLog!T1548,\"\")","v":""},{"$f":"IF(DataLog!$C1548=\"Log value\",DataLog!U1548,\"\")","v":""},{"$f":"IF(DataLog!$C1548=\"Log value\",DataLog!V1548,\"\")","v":""},{"$f":"IF(DataLog!$C1548=\"Log value\",DataLog!W1548,\"\")","v":""},{"$f":"IF(DataLog!$C1548=\"Log value\",DataLog!X1548,\"\")","v":""},{"$f":"IF(DataLog!$C1548=\"Log value\",DataLog!Y1548,\"\")","v":""},{"$f":"IF(DataLog!$C1548=\"Log value\",DataLog!Z1548,\"\")","v":""},{"$f":"IF(DataLog!$C1548=\"Log value\",DataLog!AA1548,\"\")","v":""},{"$f":"IF(DataLog!$C1548=\"Log value\",DataLog!AB1548,\"\")","v":""},{"$f":"IF(DataLog!$C1548=\"Log value\",DataLog!AC1548,\"\")","v":""},{"$f":"IF(DataLog!$C1548=\"Log value\",DataLog!AD1548,\"\")","v":""},{"$f":"IF(DataLog!$C1548=\"Log value\",DataLog!AE1548,\"\")","v":""},{"$f":"IF(DataLog!$C1548=\"Log value\",DataLog!AF1548,\"\")","v":""},{"$f":"IF(DataLog!$C1548=\"Log value\",DataLog!AG1548,\"\")","v":""},{"$f":"IF(DataLog!$C1548=\"Log value\",DataLog!AH1548,\"\")","v":""},{"$f":"IF(DataLog!$C1548=\"Log value\",DataLog!AI1548,\"\")","v":""},{"$f":"IF(DataLog!$C1548=\"Log value\",DataLog!AJ1548,\"\")","v":""},{"$f":"IF(DataLog!$C1548=\"Log value\",DataLog!AK1548,\"\")","v":""},{"$f":"IF(DataLog!$C1548=\"Log value\",DataLog!AL1548,\"\")","v":""},{"$f":"IF(DataLog!$C1548=\"Log value\",DataLog!AM1548,\"\")","v":""}]
[null,null,null,null,null,null,{"$f":"IF(DataLog!$C1550=\"Log value\",DataLog!D1550&\"_\"&TEXT(DataLog!B1550,\"åååå-mm-dd\"),\"\")","v":""},{"$f":"IF(DataLog!$C1550=\"Log value\",DataLog!E1550,\"\")","v":""},{"$f":"IF(DataLog!$C1550=\"Log value\",DataLog!F1550,\"\")","v":""},{"$f":"IF(DataLog!$C1550=\"Log value\",DataLog!G1550,\"\")","v":""},{"$f":"IF(DataLog!$C1550=\"Log value\",DataLog!H1550,\"\")","v":""},{"$f":"IF(DataLog!$C1550=\"Log value\",DataLog!I1550,\"\")","v":""},{"$f":"IF(DataLog!$C1550=\"Log value\",DataLog!J1550,\"\")","v":""},{"$f":"IF(DataLog!$C1550=\"Log value\",DataLog!K1550,\"\")","v":""},{"$f":"IF(DataLog!$C1550=\"Log value\",DataLog!L1550,\"\")","v":""},{"$f":"IF(DataLog!$C1550=\"Log value\",DataLog!M1550,\"\")","v":""},{"$f":"IF(DataLog!$C1550=\"Log value\",DataLog!N1550,\"\")","v":""},{"$f":"IF(DataLog!$C1550=\"Log value\",DataLog!O1550,\"\")","v":""},{"$f":"IF(DataLog!$C1550=\"Log value\",DataLog!P1550,\"\")","v":""},{"$f":"IF(DataLog!$C1550=\"Log value\",DataLog!Q1550,\"\")","v":""},{"$f":"IF(DataLog!$C1550=\"Log value\",DataLog!R1550,\"\")","v":""},{"$f":"IF(DataLog!$C1550=\"Log value\",DataLog!S1550,\"\")","v":""},{"$f":"IF(DataLog!$C1550=\"Log value\",DataLog!T1550,\"\")","v":""},{"$f":"IF(DataLog!$C1550=\"Log value\",DataLog!U1550,\"\")","v":""},{"$f":"IF(DataLog!$C1550=\"Log value\",DataLog!V1550,\"\")","v":""},{"$f":"IF(DataLog!$C1550=\"Log value\",DataLog!W1550,\"\")","v":""},{"$f":"IF(DataLog!$C1550=\"Log value\",DataLog!X1550,\"\")","v":""},{"$f":"IF(DataLog!$C1550=\"Log value\",DataLog!Y1550,\"\")","v":""},{"$f":"IF(DataLog!$C1550=\"Log value\",DataLog!Z1550,\"\")","v":""},{"$f":"IF(DataLog!$C1550=\"Log value\",DataLog!AA1550,\"\")","v":""},{"$f":"IF(DataLog!$C1550=\"Log value\",DataLog!AB1550,\"\")","v":""},{"$f":"IF(DataLog!$C1550=\"Log value\",DataLog!AC1550,\"\")","v":""},{"$f":"IF(DataLog!$C1550=\"Log value\",DataLog!AD1550,\"\")","v":""},{"$f":"IF(DataLog!$C1550=\"Log value\",DataLog!AE1550,\"\")","v":""},{"$f":"IF(DataLog!$C1550=\"Log value\",DataLog!AF1550,\"\")","v":""},{"$f":"IF(DataLog!$C1550=\"Log value\",DataLog!AG1550,\"\")","v":""},{"$f":"IF(DataLog!$C1550=\"Log value\",DataLog!AH1550,\"\")","v":""},{"$f":"IF(DataLog!$C1550=\"Log value\",DataLog!AI1550,\"\")","v":""},{"$f":"IF(DataLog!$C1550=\"Log value\",DataLog!AJ1550,\"\")","v":""},{"$f":"IF(DataLog!$C1550=\"Log value\",DataLog!AK1550,\"\")","v":""},{"$f":"IF(DataLog!$C1550=\"Log value\",DataLog!AL1550,\"\")","v":""},{"$f":"IF(DataLog!$C1550=\"Log value\",DataLog!AM1550,\"\")","v":""}]
[null,null,null,null,null,null,{"$f":"IF(DataLog!$C1553=\"Log value\",DataLog!D1553&\"_\"&TEXT(DataLog!B1553,\"åååå-mm-dd\"),\"\")","v":""},{"$f":"IF(DataLog!$C1553=\"Log value\",DataLog!E1553,\"\")","v":""},{"$f":"IF(DataLog!$C1553=\"Log value\",DataLog!F1553,\"\")","v":""},{"$f":"IF(DataLog!$C1553=\"Log value\",DataLog!G1553,\"\")","v":""},{"$f":"IF(DataLog!$C1553=\"Log value\",DataLog!H1553,\"\")","v":""},{"$f":"IF(DataLog!$C1553=\"Log value\",DataLog!I1553,\"\")","v":""},{"$f":"IF(DataLog!$C1553=\"Log value\",DataLog!J1553,\"\")","v":""},{"$f":"IF(DataLog!$C1553=\"Log value\",DataLog!K1553,\"\")","v":""},{"$f":"IF(DataLog!$C1553=\"Log value\",DataLog!L1553,\"\")","v":""},{"$f":"IF(DataLog!$C1553=\"Log value\",DataLog!M1553,\"\")","v":""},{"$f":"IF(DataLog!$C1553=\"Log value\",DataLog!N1553,\"\")","v":""},{"$f":"IF(DataLog!$C1553=\"Log value\",DataLog!O1553,\"\")","v":""},{"$f":"IF(DataLog!$C1553=\"Log value\",DataLog!P1553,\"\")","v":""},{"$f":"IF(DataLog!$C1553=\"Log value\",DataLog!Q1553,\"\")","v":""},{"$f":"IF(DataLog!$C1553=\"Log value\",DataLog!R1553,\"\")","v":""},{"$f":"IF(DataLog!$C1553=\"Log value\",DataLog!S1553,\"\")","v":""},{"$f":"IF(DataLog!$C1553=\"Log value\",DataLog!T1553,\"\")","v":""},{"$f":"IF(DataLog!$C1553=\"Log value\",DataLog!U1553,\"\")","v":""},{"$f":"IF(DataLog!$C1553=\"Log value\",DataLog!V1553,\"\")","v":""},{"$f":"IF(DataLog!$C1553=\"Log value\",DataLog!W1553,\"\")","v":""},{"$f":"IF(DataLog!$C1553=\"Log value\",DataLog!X1553,\"\")","v":""},{"$f":"IF(DataLog!$C1553=\"Log value\",DataLog!Y1553,\"\")","v":""},{"$f":"IF(DataLog!$C1553=\"Log value\",DataLog!Z1553,\"\")","v":""},{"$f":"IF(DataLog!$C1553=\"Log value\",DataLog!AA1553,\"\")","v":""},{"$f":"IF(DataLog!$C1553=\"Log value\",DataLog!AB1553,\"\")","v":""},{"$f":"IF(DataLog!$C1553=\"Log value\",DataLog!AC1553,\"\")","v":""},{"$f":"IF(DataLog!$C1553=\"Log value\",DataLog!AD1553,\"\")","v":""},{"$f":"IF(DataLog!$C1553=\"Log value\",DataLog!AE1553,\"\")","v":""},{"$f":"IF(DataLog!$C1553=\"Log value\",DataLog!AF1553,\"\")","v":""},{"$f":"IF(DataLog!$C1553=\"Log value\",DataLog!AG1553,\"\")","v":""},{"$f":"IF(DataLog!$C1553=\"Log value\",DataLog!AH1553,\"\")","v":""},{"$f":"IF(DataLog!$C1553=\"Log value\",DataLog!AI1553,\"\")","v":""},{"$f":"IF(DataLog!$C1553=\"Log value\",DataLog!AJ1553,\"\")","v":""},{"$f":"IF(DataLog!$C1553=\"Log value\",DataLog!AK1553,\"\")","v":""},{"$f":"IF(DataLog!$C1553=\"Log value\",DataLog!AL1553,\"\")","v":""},{"$f":"IF(DataLog!$C1553=\"Log value\",DataLog!AM1553,\"\")","v":""}]
[null,null,null,null,null,null,{"$f":"IF(DataLog!$C1556=\"Log value\",DataLog!D1556&\"_\"&TEXT(DataLog!B1556,\"åååå-mm-dd\"),\"\")","v":""},{"$f":"IF(DataLog!$C1556=\"Log value\",DataLog!E1556,\"\")","v":""},{"$f":"IF(DataLog!$C1556=\"Log value\",DataLog!F1556,\"\")","v":""},{"$f":"IF(DataLog!$C1556=\"Log value\",DataLog!G1556,\"\")","v":""},{"$f":"IF(DataLog!$C1556=\"Log value\",DataLog!H1556,\"\")","v":""},{"$f":"IF(DataLog!$C1556=\"Log value\",DataLog!I1556,\"\")","v":""},{"$f":"IF(DataLog!$C1556=\"Log value\",DataLog!J1556,\"\")","v":""},{"$f":"IF(DataLog!$C1556=\"Log value\",DataLog!K1556,\"\")","v":""},{"$f":"IF(DataLog!$C1556=\"Log value\",DataLog!L1556,\"\")","v":""},{"$f":"IF(DataLog!$C1556=\"Log value\",DataLog!M1556,\"\")","v":""},{"$f":"IF(DataLog!$C1556=\"Log value\",DataLog!N1556,\"\")","v":""},{"$f":"IF(DataLog!$C1556=\"Log value\",DataLog!O1556,\"\")","v":""},{"$f":"IF(DataLog!$C1556=\"Log value\",DataLog!P1556,\"\")","v":""},{"$f":"IF(DataLog!$C1556=\"Log value\",DataLog!Q1556,\"\")","v":""},{"$f":"IF(DataLog!$C1556=\"Log value\",DataLog!R1556,\"\")","v":""},{"$f":"IF(DataLog!$C1556=\"Log value\",DataLog!S1556,\"\")","v":""},{"$f":"IF(DataLog!$C1556=\"Log value\",DataLog!T1556,\"\")","v":""},{"$f":"IF(DataLog!$C1556=\"Log value\",DataLog!U1556,\"\")","v":""},{"$f":"IF(DataLog!$C1556=\"Log value\",DataLog!V1556,\"\")","v":""},{"$f":"IF(DataLog!$C1556=\"Log value\",DataLog!W1556,\"\")","v":""},{"$f":"IF(DataLog!$C1556=\"Log value\",DataLog!X1556,\"\")","v":""},{"$f":"IF(DataLog!$C1556=\"Log value\",DataLog!Y1556,\"\")","v":""},{"$f":"IF(DataLog!$C1556=\"Log value\",DataLog!Z1556,\"\")","v":""},{"$f":"IF(DataLog!$C1556=\"Log value\",DataLog!AA1556,\"\")","v":""},{"$f":"IF(DataLog!$C1556=\"Log value\",DataLog!AB1556,\"\")","v":""},{"$f":"IF(DataLog!$C1556=\"Log value\",DataLog!AC1556,\"\")","v":""},{"$f":"IF(DataLog!$C1556=\"Log value\",DataLog!AD1556,\"\")","v":""},{"$f":"IF(DataLog!$C1556=\"Log value\",DataLog!AE1556,\"\")","v":""},{"$f":"IF(DataLog!$C1556=\"Log value\",DataLog!AF1556,\"\")","v":""},{"$f":"IF(DataLog!$C1556=\"Log value\",DataLog!AG1556,\"\")","v":""},{"$f":"IF(DataLog!$C1556=\"Log value\",DataLog!AH1556,\"\")","v":""},{"$f":"IF(DataLog!$C1556=\"Log value\",DataLog!AI1556,\"\")","v":""},{"$f":"IF(DataLog!$C1556=\"Log value\",DataLog!AJ1556,\"\")","v":""},{"$f":"IF(DataLog!$C1556=\"Log value\",DataLog!AK1556,\"\")","v":""},{"$f":"IF(DataLog!$C1556=\"Log value\",DataLog!AL1556,\"\")","v":""},{"$f":"IF(DataLog!$C1556=\"Log value\",DataLog!AM1556,\"\")","v":""}]
[null,null,null,null,null,null,{"$f":"IF(DataLog!$C1557=\"Log value\",DataLog!D1557&\"_\"&TEXT(DataLog!B1557,\"åååå-mm-dd\"),\"\")","v":""},{"$f":"IF(DataLog!$C1557=\"Log value\",DataLog!E1557,\"\")","v":""},{"$f":"IF(DataLog!$C1557=\"Log value\",DataLog!F1557,\"\")","v":""},{"$f":"IF(DataLog!$C1557=\"Log value\",DataLog!G1557,\"\")","v":""},{"$f":"IF(DataLog!$C1557=\"Log value\",DataLog!H1557,\"\")","v":""},{"$f":"IF(DataLog!$C1557=\"Log value\",DataLog!I1557,\"\")","v":""},{"$f":"IF(DataLog!$C1557=\"Log value\",DataLog!J1557,\"\")","v":""},{"$f":"IF(DataLog!$C1557=\"Log value\",DataLog!K1557,\"\")","v":""},{"$f":"IF(DataLog!$C1557=\"Log value\",DataLog!L1557,\"\")","v":""},{"$f":"IF(DataLog!$C1557=\"Log value\",DataLog!M1557,\"\")","v":""},{"$f":"IF(DataLog!$C1557=\"Log value\",DataLog!N1557,\"\")","v":""},{"$f":"IF(DataLog!$C1557=\"Log value\",DataLog!O1557,\"\")","v":""},{"$f":"IF(DataLog!$C1557=\"Log value\",DataLog!P1557,\"\")","v":""},{"$f":"IF(DataLog!$C1557=\"Log value\",DataLog!Q1557,\"\")","v":""},{"$f":"IF(DataLog!$C1557=\"Log value\",DataLog!R1557,\"\")","v":""},{"$f":"IF(DataLog!$C1557=\"Log value\",DataLog!S1557,\"\")","v":""},{"$f":"IF(DataLog!$C1557=\"Log value\",DataLog!T1557,\"\")","v":""},{"$f":"IF(DataLog!$C1557=\"Log value\",DataLog!U1557,\"\")","v":""},{"$f":"IF(DataLog!$C1557=\"Log value\",DataLog!V1557,\"\")","v":""},{"$f":"IF(DataLog!$C1557=\"Log value\",DataLog!W1557,\"\")","v":""},{"$f":"IF(DataLog!$C1557=\"Log value\",DataLog!X1557,\"\")","v":""},{"$f":"IF(DataLog!$C1557=\"Log value\",DataLog!Y1557,\"\")","v":""},{"$f":"IF(DataLog!$C1557=\"Log value\",DataLog!Z1557,\"\")","v":""},{"$f":"IF(DataLog!$C1557=\"Log value\",DataLog!AA1557,\"\")","v":""},{"$f":"IF(DataLog!$C1557=\"Log value\",DataLog!AB1557,\"\")","v":""},{"$f":"IF(DataLog!$C1557=\"Log value\",DataLog!AC1557,\"\")","v":""},{"$f":"IF(DataLog!$C1557=\"Log value\",DataLog!AD1557,\"\")","v":""},{"$f":"IF(DataLog!$C1557=\"Log value\",DataLog!AE1557,\"\")","v":""},{"$f":"IF(DataLog!$C1557=\"Log value\",DataLog!AF1557,\"\")","v":""},{"$f":"IF(DataLog!$C1557=\"Log value\",DataLog!AG1557,\"\")","v":""},{"$f":"IF(DataLog!$C1557=\"Log value\",DataLog!AH1557,\"\")","v":""},{"$f":"IF(DataLog!$C1557=\"Log value\",DataLog!AI1557,\"\")","v":""},{"$f":"IF(DataLog!$C1557=\"Log value\",DataLog!AJ1557,\"\")","v":""},{"$f":"IF(DataLog!$C1557=\"Log value\",DataLog!AK1557,\"\")","v":""},{"$f":"IF(DataLog!$C1557=\"Log value\",DataLog!AL1557,\"\")","v":""},{"$f":"IF(DataLog!$C1557=\"Log value\",DataLog!AM1557,\"\")","v":""}]
[null,null,null,null,null,null,{"$f":"IF(DataLog!$C1561=\"Log value\",DataLog!D1561&\"_\"&TEXT(DataLog!B1561,\"åååå-mm-dd\"),\"\")","v":""},{"$f":"IF(DataLog!$C1561=\"Log value\",DataLog!E1561,\"\")","v":""},{"$f":"IF(DataLog!$C1561=\"Log value\",DataLog!F1561,\"\")","v":""},{"$f":"IF(DataLog!$C1561=\"Log value\",DataLog!G1561,\"\")","v":""},{"$f":"IF(DataLog!$C1561=\"Log value\",DataLog!H1561,\"\")","v":""},{"$f":"IF(DataLog!$C1561=\"Log value\",DataLog!I1561,\"\")","v":""},{"$f":"IF(DataLog!$C1561=\"Log value\",DataLog!J1561,\"\")","v":""},{"$f":"IF(DataLog!$C1561=\"Log value\",DataLog!K1561,\"\")","v":""},{"$f":"IF(DataLog!$C1561=\"Log value\",DataLog!L1561,\"\")","v":""},{"$f":"IF(DataLog!$C1561=\"Log value\",DataLog!M1561,\"\")","v":""},{"$f":"IF(DataLog!$C1561=\"Log value\",DataLog!N1561,\"\")","v":""},{"$f":"IF(DataLog!$C1561=\"Log value\",DataLog!O1561,\"\")","v":""},{"$f":"IF(DataLog!$C1561=\"Log value\",DataLog!P1561,\"\")","v":""},{"$f":"IF(DataLog!$C1561=\"Log value\",DataLog!Q1561,\"\")","v":""},{"$f":"IF(DataLog!$C1561=\"Log value\",DataLog!R1561,\"\")","v":""},{"$f":"IF(DataLog!$C1561=\"Log value\",DataLog!S1561,\"\")","v":""},{"$f":"IF(DataLog!$C1561=\"Log value\",DataLog!T1561,\"\")","v":""},{"$f":"IF(DataLog!$C1561=\"Log value\",DataLog!U1561,\"\")","v":""},{"$f":"IF(DataLog!$C1561=\"Log value\",DataLog!V1561,\"\")","v":""},{"$f":"IF(DataLog!$C1561=\"Log value\",DataLog!W1561,\"\")","v":""},{"$f":"IF(DataLog!$C1561=\"Log value\",DataLog!X1561,\"\")","v":""},{"$f":"IF(DataLog!$C1561=\"Log value\",DataLog!Y1561,\"\")","v":""},{"$f":"IF(DataLog!$C1561=\"Log value\",DataLog!Z1561,\"\")","v":""},{"$f":"IF(DataLog!$C1561=\"Log value\",DataLog!AA1561,\"\")","v":""},{"$f":"IF(DataLog!$C1561=\"Log value\",DataLog!AB1561,\"\")","v":""},{"$f":"IF(DataLog!$C1561=\"Log value\",DataLog!AC1561,\"\")","v":""},{"$f":"IF(DataLog!$C1561=\"Log value\",DataLog!AD1561,\"\")","v":""},{"$f":"IF(DataLog!$C1561=\"Log value\",DataLog!AE1561,\"\")","v":""},{"$f":"IF(DataLog!$C1561=\"Log value\",DataLog!AF1561,\"\")","v":""},{"$f":"IF(DataLog!$C1561=\"Log value\",DataLog!AG1561,\"\")","v":""},{"$f":"IF(DataLog!$C1561=\"Log value\",DataLog!AH1561,\"\")","v":""},{"$f":"IF(DataLog!$C1561=\"Log value\",DataLog!AI1561,\"\")","v":""},{"$f":"IF(DataLog!$C1561=\"Log value\",DataLog!AJ1561,\"\")","v":""},{"$f":"IF(DataLog!$C1561=\"Log value\",DataLog!AK1561,\"\")","v":""},{"$f":"IF(DataLog!$C1561=\"Log value\",DataLog!AL1561,\"\")","v":""},{"$f":"IF(DataLog!$C1561=\"Log value\",DataLog!AM1561,\"\")","v":""}]
[null,null,null,null,null,null,{"$f":"IF(DataLog!$C1562=\"Log value\",DataLog!D1562&\"_\"&TEXT(DataLog!B1562,\"åååå-mm-dd\"),\"\")","v":""},{"$f":"IF(DataLog!$C1562=\"Log value\",DataLog!E1562,\"\")","v":""},{"$f":"IF(DataLog!$C1562=\"Log value\",DataLog!F1562,\"\")","v":""},{"$f":"IF(DataLog!$C1562=\"Log value\",DataLog!G1562,\"\")","v":""},{"$f":"IF(DataLog!$C1562=\"Log value\",DataLog!H1562,\"\")","v":""},{"$f":"IF(DataLog!$C1562=\"Log value\",DataLog!I1562,\"\")","v":""},{"$f":"IF(DataLog!$C1562=\"Log value\",DataLog!J1562,\"\")","v":""},{"$f":"IF(DataLog!$C1562=\"Log value\",DataLog!K1562,\"\")","v":""},{"$f":"IF(DataLog!$C1562=\"Log value\",DataLog!L1562,\"\")","v":""},{"$f":"IF(DataLog!$C1562=\"Log value\",DataLog!M1562,\"\")","v":""},{"$f":"IF(DataLog!$C1562=\"Log value\",DataLog!N1562,\"\")","v":""},{"$f":"IF(DataLog!$C1562=\"Log value\",DataLog!O1562,\"\")","v":""},{"$f":"IF(DataLog!$C1562=\"Log value\",DataLog!P1562,\"\")","v":""},{"$f":"IF(DataLog!$C1562=\"Log value\",DataLog!Q1562,\"\")","v":""},{"$f":"IF(DataLog!$C1562=\"Log value\",DataLog!R1562,\"\")","v":""},{"$f":"IF(DataLog!$C1562=\"Log value\",DataLog!S1562,\"\")","v":""},{"$f":"IF(DataLog!$C1562=\"Log value\",DataLog!T1562,\"\")","v":""},{"$f":"IF(DataLog!$C1562=\"Log value\",DataLog!U1562,\"\")","v":""},{"$f":"IF(DataLog!$C1562=\"Log value\",DataLog!V1562,\"\")","v":""},{"$f":"IF(DataLog!$C1562=\"Log value\",DataLog!W1562,\"\")","v":""},{"$f":"IF(DataLog!$C1562=\"Log value\",DataLog!X1562,\"\")","v":""},{"$f":"IF(DataLog!$C1562=\"Log value\",DataLog!Y1562,\"\")","v":""},{"$f":"IF(DataLog!$C1562=\"Log value\",DataLog!Z1562,\"\")","v":""},{"$f":"IF(DataLog!$C1562=\"Log value\",DataLog!AA1562,\"\")","v":""},{"$f":"IF(DataLog!$C1562=\"Log value\",DataLog!AB1562,\"\")","v":""},{"$f":"IF(DataLog!$C1562=\"Log value\",DataLog!AC1562,\"\")","v":""},{"$f":"IF(DataLog!$C1562=\"Log value\",DataLog!AD1562,\"\")","v":""},{"$f":"IF(DataLog!$C1562=\"Log value\",DataLog!AE1562,\"\")","v":""},{"$f":"IF(DataLog!$C1562=\"Log value\",DataLog!AF1562,\"\")","v":""},{"$f":"IF(DataLog!$C1562=\"Log value\",DataLog!AG1562,\"\")","v":""},{"$f":"IF(DataLog!$C1562=\"Log value\",DataLog!AH1562,\"\")","v":""},{"$f":"IF(DataLog!$C1562=\"Log value\",DataLog!AI1562,\"\")","v":""},{"$f":"IF(DataLog!$C1562=\"Log value\",DataLog!AJ1562,\"\")","v":""},{"$f":"IF(DataLog!$C1562=\"Log value\",DataLog!AK1562,\"\")","v":""},{"$f":"IF(DataLog!$C1562=\"Log value\",DataLog!AL1562,\"\")","v":""},{"$f":"IF(DataLog!$C1562=\"Log value\",DataLog!AM1562,\"\")","v":""}]
[null,null,null,null,null,null,{"$f":"IF(DataLog!$C1565=\"Log value\",DataLog!D1565&\"_\"&TEXT(DataLog!B1565,\"åååå-mm-dd\"),\"\")","v":""},{"$f":"IF(DataLog!$C1565=\"Log value\",DataLog!E1565,\"\")","v":""},{"$f":"IF(DataLog!$C1565=\"Log value\",DataLog!F1565,\"\")","v":""},{"$f":"IF(DataLog!$C1565=\"Log value\",DataLog!G1565,\"\")","v":""},{"$f":"IF(DataLog!$C1565=\"Log value\",DataLog!H1565,\"\")","v":""},{"$f":"IF(DataLog!$C1565=\"Log value\",DataLog!I1565,\"\")","v":""},{"$f":"IF(DataLog!$C1565=\"Log value\",DataLog!J1565,\"\")","v":""},{"$f":"IF(DataLog!$C1565=\"Log value\",DataLog!K1565,\"\")","v":""},{"$f":"IF(DataLog!$C1565=\"Log value\",DataLog!L1565,\"\")","v":""},{"$f":"IF(DataLog!$C1565=\"Log value\",DataLog!M1565,\"\")","v":""},{"$f":"IF(DataLog!$C1565=\"Log value\",DataLog!N1565,\"\")","v":""},{"$f":"IF(DataLog!$C1565=\"Log value\",DataLog!O1565,\"\")","v":""},{"$f":"IF(DataLog!$C1565=\"Log value\",DataLog!P1565,\"\")","v":""},{"$f":"IF(DataLog!$C1565=\"Log value\",DataLog!Q1565,\"\")","v":""},{"$f":"IF(DataLog!$C1565=\"Log value\",DataLog!R1565,\"\")","v":""},{"$f":"IF(DataLog!$C1565=\"Log value\",DataLog!S1565,\"\")","v":""},{"$f":"IF(DataLog!$C1565=\"Log value\",DataLog!T1565,\"\")","v":""},{"$f":"IF(DataLog!$C1565=\"Log value\",DataLog!U1565,\"\")","v":""},{"$f":"IF(DataLog!$C1565=\"Log value\",DataLog!V1565,\"\")","v":""},{"$f":"IF(DataLog!$C1565=\"Log value\",DataLog!W1565,\"\")","v":""},{"$f":"IF(DataLog!$C1565=\"Log value\",DataLog!X1565,\"\")","v":""},{"$f":"IF(DataLog!$C1565=\"Log value\",DataLog!Y1565,\"\")","v":""},{"$f":"IF(DataLog!$C1565=\"Log value\",DataLog!Z1565,\"\")","v":""},{"$f":"IF(DataLog!$C1565=\"Log value\",DataLog!AA1565,\"\")","v":""},{"$f":"IF(DataLog!$C1565=\"Log value\",DataLog!AB1565,\"\")","v":""},{"$f":"IF(DataLog!$C1565=\"Log value\",DataLog!AC1565,\"\")","v":""},{"$f":"IF(DataLog!$C1565=\"Log value\",DataLog!AD1565,\"\")","v":""},{"$f":"IF(DataLog!$C1565=\"Log value\",DataLog!AE1565,\"\")","v":""},{"$f":"IF(DataLog!$C1565=\"Log value\",DataLog!AF1565,\"\")","v":""},{"$f":"IF(DataLog!$C1565=\"Log value\",DataLog!AG1565,\"\")","v":""},{"$f":"IF(DataLog!$C1565=\"Log value\",DataLog!AH1565,\"\")","v":""},{"$f":"IF(DataLog!$C1565=\"Log value\",DataLog!AI1565,\"\")","v":""},{"$f":"IF(DataLog!$C1565=\"Log value\",DataLog!AJ1565,\"\")","v":""},{"$f":"IF(DataLog!$C1565=\"Log value\",DataLog!AK1565,\"\")","v":""},{"$f":"IF(DataLog!$C1565=\"Log value\",DataLog!AL1565,\"\")","v":""},{"$f":"IF(DataLog!$C1565=\"Log value\",DataLog!AM1565,\"\")","v":""}]
[null,null,null,null,null,null,{"$f":"IF(DataLog!$C1566=\"Log value\",DataLog!D1566&\"_\"&TEXT(DataLog!B1566,\"åååå-mm-dd\"),\"\")","v":""},{"$f":"IF(DataLog!$C1566=\"Log value\",DataLog!E1566,\"\")","v":""},{"$f":"IF(DataLog!$C1566=\"Log value\",DataLog!F1566,\"\")","v":""},{"$f":"IF(DataLog!$C1566=\"Log value\",DataLog!G1566,\"\")","v":""},{"$f":"IF(DataLog!$C1566=\"Log value\",DataLog!H1566,\"\")","v":""},{"$f":"IF(DataLog!$C1566=\"Log value\",DataLog!I1566,\"\")","v":""},{"$f":"IF(DataLog!$C1566=\"Log value\",DataLog!J1566,\"\")","v":""},{"$f":"IF(DataLog!$C1566=\"Log value\",DataLog!K1566,\"\")","v":""},{"$f":"IF(DataLog!$C1566=\"Log value\",DataLog!L1566,\"\")","v":""},{"$f":"IF(DataLog!$C1566=\"Log value\",DataLog!M1566,\"\")","v":""},{"$f":"IF(DataLog!$C1566=\"Log value\",DataLog!N1566,\"\")","v":""},{"$f":"IF(DataLog!$C1566=\"Log value\",DataLog!O1566,\"\")","v":""},{"$f":"IF(DataLog!$C1566=\"Log value\",DataLog!P1566,\"\")","v":""},{"$f":"IF(DataLog!$C1566=\"Log value\",DataLog!Q1566,\"\")","v":""},{"$f":"IF(DataLog!$C1566=\"Log value\",DataLog!R1566,\"\")","v":""},{"$f":"IF(DataLog!$C1566=\"Log value\",DataLog!S1566,\"\")","v":""},{"$f":"IF(DataLog!$C1566=\"Log value\",DataLog!T1566,\"\")","v":""},{"$f":"IF(DataLog!$C1566=\"Log value\",DataLog!U1566,\"\")","v":""},{"$f":"IF(DataLog!$C1566=\"Log value\",DataLog!V1566,\"\")","v":""},{"$f":"IF(DataLog!$C1566=\"Log value\",DataLog!W1566,\"\")","v":""},{"$f":"IF(DataLog!$C1566=\"Log value\",DataLog!X1566,\"\")","v":""},{"$f":"IF(DataLog!$C1566=\"Log value\",DataLog!Y1566,\"\")","v":""},{"$f":"IF(DataLog!$C1566=\"Log value\",DataLog!Z1566,\"\")","v":""},{"$f":"IF(DataLog!$C1566=\"Log value\",DataLog!AA1566,\"\")","v":""},{"$f":"IF(DataLog!$C1566=\"Log value\",DataLog!AB1566,\"\")","v":""},{"$f":"IF(DataLog!$C1566=\"Log value\",DataLog!AC1566,\"\")","v":""},{"$f":"IF(DataLog!$C1566=\"Log value\",DataLog!AD1566,\"\")","v":""},{"$f":"IF(DataLog!$C1566=\"Log value\",DataLog!AE1566,\"\")","v":""},{"$f":"IF(DataLog!$C1566=\"Log value\",DataLog!AF1566,\"\")","v":""},{"$f":"IF(DataLog!$C1566=\"Log value\",DataLog!AG1566,\"\")","v":""},{"$f":"IF(DataLog!$C1566=\"Log value\",DataLog!AH1566,\"\")","v":""},{"$f":"IF(DataLog!$C1566=\"Log value\",DataLog!AI1566,\"\")","v":""},{"$f":"IF(DataLog!$C1566=\"Log value\",DataLog!AJ1566,\"\")","v":""},{"$f":"IF(DataLog!$C1566=\"Log value\",DataLog!AK1566,\"\")","v":""},{"$f":"IF(DataLog!$C1566=\"Log value\",DataLog!AL1566,\"\")","v":""},{"$f":"IF(DataLog!$C1566=\"Log value\",DataLog!AM1566,\"\")","v":""}]
[null,null,null,null,null,null,{"$f":"IF(DataLog!$C1568=\"Log value\",DataLog!D1568&\"_\"&TEXT(DataLog!B1568,\"åååå-mm-dd\"),\"\")","v":""},{"$f":"IF(DataLog!$C1568=\"Log value\",DataLog!E1568,\"\")","v":""},{"$f":"IF(DataLog!$C1568=\"Log value\",DataLog!F1568,\"\")","v":""},{"$f":"IF(DataLog!$C1568=\"Log value\",DataLog!G1568,\"\")","v":""},{"$f":"IF(DataLog!$C1568=\"Log value\",DataLog!H1568,\"\")","v":""},{"$f":"IF(DataLog!$C1568=\"Log value\",DataLog!I1568,\"\")","v":""},{"$f":"IF(DataLog!$C1568=\"Log value\",DataLog!J1568,\"\")","v":""},{"$f":"IF(DataLog!$C1568=\"Log value\",DataLog!K1568,\"\")","v":""},{"$f":"IF(DataLog!$C1568=\"Log value\",DataLog!L1568,\"\")","v":""},{"$f":"IF(DataLog!$C1568=\"Log value\",DataLog!M1568,\"\")","v":""},{"$f":"IF(DataLog!$C1568=\"Log value\",DataLog!N1568,\"\")","v":""},{"$f":"IF(DataLog!$C1568=\"Log value\",DataLog!O1568,\"\")","v":""},{"$f":"IF(DataLog!$C1568=\"Log value\",DataLog!P1568,\"\")","v":""},{"$f":"IF(DataLog!$C1568=\"Log value\",DataLog!Q1568,\"\")","v":""},{"$f":"IF(DataLog!$C1568=\"Log value\",DataLog!R1568,\"\")","v":""},{"$f":"IF(DataLog!$C1568=\"Log value\",DataLog!S1568,\"\")","v":""},{"$f":"IF(DataLog!$C1568=\"Log value\",DataLog!T1568,\"\")","v":""},{"$f":"IF(DataLog!$C1568=\"Log value\",DataLog!U1568,\"\")","v":""},{"$f":"IF(DataLog!$C1568=\"Log value\",DataLog!V1568,\"\")","v":""},{"$f":"IF(DataLog!$C1568=\"Log value\",DataLog!W1568,\"\")","v":""},{"$f":"IF(DataLog!$C1568=\"Log value\",DataLog!X1568,\"\")","v":""},{"$f":"IF(DataLog!$C1568=\"Log value\",DataLog!Y1568,\"\")","v":""},{"$f":"IF(DataLog!$C1568=\"Log value\",DataLog!Z1568,\"\")","v":""},{"$f":"IF(DataLog!$C1568=\"Log value\",DataLog!AA1568,\"\")","v":""},{"$f":"IF(DataLog!$C1568=\"Log value\",DataLog!AB1568,\"\")","v":""},{"$f":"IF(DataLog!$C1568=\"Log value\",DataLog!AC1568,\"\")","v":""},{"$f":"IF(DataLog!$C1568=\"Log value\",DataLog!AD1568,\"\")","v":""},{"$f":"IF(DataLog!$C1568=\"Log value\",DataLog!AE1568,\"\")","v":""},{"$f":"IF(DataLog!$C1568=\"Log value\",DataLog!AF1568,\"\")","v":""},{"$f":"IF(DataLog!$C1568=\"Log value\",DataLog!AG1568,\"\")","v":""},{"$f":"IF(DataLog!$C1568=\"Log value\",DataLog!AH1568,\"\")","v":""},{"$f":"IF(DataLog!$C1568=\"Log value\",DataLog!AI1568,\"\")","v":""},{"$f":"IF(DataLog!$C1568=\"Log value\",DataLog!AJ1568,\"\")","v":""},{"$f":"IF(DataLog!$C1568=\"Log value\",DataLog!AK1568,\"\")","v":""},{"$f":"IF(DataLog!$C1568=\"Log value\",DataLog!AL1568,\"\")","v":""},{"$f":"IF(DataLog!$C1568=\"Log value\",DataLog!AM1568,\"\")","v":""}]
[null,null,null,null,null,null,{"$f":"IF(DataLog!$C1571=\"Log value\",DataLog!D1571&\"_\"&TEXT(DataLog!B1571,\"åååå-mm-dd\"),\"\")","v":""},{"$f":"IF(DataLog!$C1571=\"Log value\",DataLog!E1571,\"\")","v":""},{"$f":"IF(DataLog!$C1571=\"Log value\",DataLog!F1571,\"\")","v":""},{"$f":"IF(DataLog!$C1571=\"Log value\",DataLog!G1571,\"\")","v":""},{"$f":"IF(DataLog!$C1571=\"Log value\",DataLog!H1571,\"\")","v":""},{"$f":"IF(DataLog!$C1571=\"Log value\",DataLog!I1571,\"\")","v":""},{"$f":"IF(DataLog!$C1571=\"Log value\",DataLog!J1571,\"\")","v":""},{"$f":"IF(DataLog!$C1571=\"Log value\",DataLog!K1571,\"\")","v":""},{"$f":"IF(DataLog!$C1571=\"Log value\",DataLog!L1571,\"\")","v":""},{"$f":"IF(DataLog!$C1571=\"Log value\",DataLog!M1571,\"\")","v":""},{"$f":"IF(DataLog!$C1571=\"Log value\",DataLog!N1571,\"\")","v":""},{"$f":"IF(DataLog!$C1571=\"Log value\",DataLog!O1571,\"\")","v":""},{"$f":"IF(DataLog!$C1571=\"Log value\",DataLog!P1571,\"\")","v":""},{"$f":"IF(DataLog!$C1571=\"Log value\",DataLog!Q1571,\"\")","v":""},{"$f":"IF(DataLog!$C1571=\"Log value\",DataLog!R1571,\"\")","v":""},{"$f":"IF(DataLog!$C1571=\"Log value\",DataLog!S1571,\"\")","v":""},{"$f":"IF(DataLog!$C1571=\"Log value\",DataLog!T1571,\"\")","v":""},{"$f":"IF(DataLog!$C1571=\"Log value\",DataLog!U1571,\"\")","v":""},{"$f":"IF(DataLog!$C1571=\"Log value\",DataLog!V1571,\"\")","v":""},{"$f":"IF(DataLog!$C1571=\"Log value\",DataLog!W1571,\"\")","v":""},{"$f":"IF(DataLog!$C1571=\"Log value\",DataLog!X1571,\"\")","v":""},{"$f":"IF(DataLog!$C1571=\"Log value\",DataLog!Y1571,\"\")","v":""},{"$f":"IF(DataLog!$C1571=\"Log value\",DataLog!Z1571,\"\")","v":""},{"$f":"IF(DataLog!$C1571=\"Log value\",DataLog!AA1571,\"\")","v":""},{"$f":"IF(DataLog!$C1571=\"Log value\",DataLog!AB1571,\"\")","v":""},{"$f":"IF(DataLog!$C1571=\"Log value\",DataLog!AC1571,\"\")","v":""},{"$f":"IF(DataLog!$C1571=\"Log value\",DataLog!AD1571,\"\")","v":""},{"$f":"IF(DataLog!$C1571=\"Log value\",DataLog!AE1571,\"\")","v":""},{"$f":"IF(DataLog!$C1571=\"Log value\",DataLog!AF1571,\"\")","v":""},{"$f":"IF(DataLog!$C1571=\"Log value\",DataLog!AG1571,\"\")","v":""},{"$f":"IF(DataLog!$C1571=\"Log value\",DataLog!AH1571,\"\")","v":""},{"$f":"IF(DataLog!$C1571=\"Log value\",DataLog!AI1571,\"\")","v":""},{"$f":"IF(DataLog!$C1571=\"Log value\",DataLog!AJ1571,\"\")","v":""},{"$f":"IF(DataLog!$C1571=\"Log value\",DataLog!AK1571,\"\")","v":""},{"$f":"IF(DataLog!$C1571=\"Log value\",DataLog!AL1571,\"\")","v":""},{"$f":"IF(DataLog!$C1571=\"Log value\",DataLog!AM1571,\"\")","v":""}]
[null,null,null,null,null,null,{"$f":"IF(DataLog!$C1574=\"Log value\",DataLog!D1574&\"_\"&TEXT(DataLog!B1574,\"åååå-mm-dd\"),\"\")","v":""},{"$f":"IF(DataLog!$C1574=\"Log value\",DataLog!E1574,\"\")","v":""},{"$f":"IF(DataLog!$C1574=\"Log value\",DataLog!F1574,\"\")","v":""},{"$f":"IF(DataLog!$C1574=\"Log value\",DataLog!G1574,\"\")","v":""},{"$f":"IF(DataLog!$C1574=\"Log value\",DataLog!H1574,\"\")","v":""},{"$f":"IF(DataLog!$C1574=\"Log value\",DataLog!I1574,\"\")","v":""},{"$f":"IF(DataLog!$C1574=\"Log value\",DataLog!J1574,\"\")","v":""},{"$f":"IF(DataLog!$C1574=\"Log value\",DataLog!K1574,\"\")","v":""},{"$f":"IF(DataLog!$C1574=\"Log value\",DataLog!L1574,\"\")","v":""},{"$f":"IF(DataLog!$C1574=\"Log value\",DataLog!M1574,\"\")","v":""},{"$f":"IF(DataLog!$C1574=\"Log value\",DataLog!N1574,\"\")","v":""},{"$f":"IF(DataLog!$C1574=\"Log value\",DataLog!O1574,\"\")","v":""},{"$f":"IF(DataLog!$C1574=\"Log value\",DataLog!P1574,\"\")","v":""},{"$f":"IF(DataLog!$C1574=\"Log value\",DataLog!Q1574,\"\")","v":""},{"$f":"IF(DataLog!$C1574=\"Log value\",DataLog!R1574,\"\")","v":""},{"$f":"IF(DataLog!$C1574=\"Log value\",DataLog!S1574,\"\")","v":""},{"$f":"IF(DataLog!$C1574=\"Log value\",DataLog!T1574,\"\")","v":""},{"$f":"IF(DataLog!$C1574=\"Log value\",DataLog!U1574,\"\")","v":""},{"$f":"IF(DataLog!$C1574=\"Log value\",DataLog!V1574,\"\")","v":""},{"$f":"IF(DataLog!$C1574=\"Log value\",DataLog!W1574,\"\")","v":""},{"$f":"IF(DataLog!$C1574=\"Log value\",DataLog!X1574,\"\")","v":""},{"$f":"IF(DataLog!$C1574=\"Log value\",DataLog!Y1574,\"\")","v":""},{"$f":"IF(DataLog!$C1574=\"Log value\",DataLog!Z1574,\"\")","v":""},{"$f":"IF(DataLog!$C1574=\"Log value\",DataLog!AA1574,\"\")","v":""},{"$f":"IF(DataLog!$C1574=\"Log value\",DataLog!AB1574,\"\")","v":""},{"$f":"IF(DataLog!$C1574=\"Log value\",DataLog!AC1574,\"\")","v":""},{"$f":"IF(DataLog!$C1574=\"Log value\",DataLog!AD1574,\"\")","v":""},{"$f":"IF(DataLog!$C1574=\"Log value\",DataLog!AE1574,\"\")","v":""},{"$f":"IF(DataLog!$C1574=\"Log value\",DataLog!AF1574,\"\")","v":""},{"$f":"IF(DataLog!$C1574=\"Log value\",DataLog!AG1574,\"\")","v":""},{"$f":"IF(DataLog!$C1574=\"Log value\",DataLog!AH1574,\"\")","v":""},{"$f":"IF(DataLog!$C1574=\"Log value\",DataLog!AI1574,\"\")","v":""},{"$f":"IF(DataLog!$C1574=\"Log value\",DataLog!AJ1574,\"\")","v":""},{"$f":"IF(DataLog!$C1574=\"Log value\",DataLog!AK1574,\"\")","v":""},{"$f":"IF(DataLog!$C1574=\"Log value\",DataLog!AL1574,\"\")","v":""},{"$f":"IF(DataLog!$C1574=\"Log value\",DataLog!AM1574,\"\")","v":""}]
[null,null,null,null,null,null,{"$f":"IF(DataLog!$C1576=\"Log value\",DataLog!D1576&\"_\"&TEXT(DataLog!B1576,\"åååå-mm-dd\"),\"\")","v":""},{"$f":"IF(DataLog!$C1576=\"Log value\",DataLog!E1576,\"\")","v":""},{"$f":"IF(DataLog!$C1576=\"Log value\",DataLog!F1576,\"\")","v":""},{"$f":"IF(DataLog!$C1576=\"Log value\",DataLog!G1576,\"\")","v":""},{"$f":"IF(DataLog!$C1576=\"Log value\",DataLog!H1576,\"\")","v":""},{"$f":"IF(DataLog!$C1576=\"Log value\",DataLog!I1576,\"\")","v":""},{"$f":"IF(DataLog!$C1576=\"Log value\",DataLog!J1576,\"\")","v":""},{"$f":"IF(DataLog!$C1576=\"Log value\",DataLog!K1576,\"\")","v":""},{"$f":"IF(DataLog!$C1576=\"Log value\",DataLog!L1576,\"\")","v":""},{"$f":"IF(DataLog!$C1576=\"Log value\",DataLog!M1576,\"\")","v":""},{"$f":"IF(DataLog!$C1576=\"Log value\",DataLog!N1576,\"\")","v":""},{"$f":"IF(DataLog!$C1576=\"Log value\",DataLog!O1576,\"\")","v":""},{"$f":"IF(DataLog!$C1576=\"Log value\",DataLog!P1576,\"\")","v":""},{"$f":"IF(DataLog!$C1576=\"Log value\",DataLog!Q1576,\"\")","v":""},{"$f":"IF(DataLog!$C1576=\"Log value\",DataLog!R1576,\"\")","v":""},{"$f":"IF(DataLog!$C1576=\"Log value\",DataLog!S1576,\"\")","v":""},{"$f":"IF(DataLog!$C1576=\"Log value\",DataLog!T1576,\"\")","v":""},{"$f":"IF(DataLog!$C1576=\"Log value\",DataLog!U1576,\"\")","v":""},{"$f":"IF(DataLog!$C1576=\"Log value\",DataLog!V1576,\"\")","v":""},{"$f":"IF(DataLog!$C1576=\"Log value\",DataLog!W1576,\"\")","v":""},{"$f":"IF(DataLog!$C1576=\"Log value\",DataLog!X1576,\"\")","v":""},{"$f":"IF(DataLog!$C1576=\"Log value\",DataLog!Y1576,\"\")","v":""},{"$f":"IF(DataLog!$C1576=\"Log value\",DataLog!Z1576,\"\")","v":""},{"$f":"IF(DataLog!$C1576=\"Log value\",DataLog!AA1576,\"\")","v":""},{"$f":"IF(DataLog!$C1576=\"Log value\",DataLog!AB1576,\"\")","v":""},{"$f":"IF(DataLog!$C1576=\"Log value\",DataLog!AC1576,\"\")","v":""},{"$f":"IF(DataLog!$C1576=\"Log value\",DataLog!AD1576,\"\")","v":""},{"$f":"IF(DataLog!$C1576=\"Log value\",DataLog!AE1576,\"\")","v":""},{"$f":"IF(DataLog!$C1576=\"Log value\",DataLog!AF1576,\"\")","v":""},{"$f":"IF(DataLog!$C1576=\"Log value\",DataLog!AG1576,\"\")","v":""},{"$f":"IF(DataLog!$C1576=\"Log value\",DataLog!AH1576,\"\")","v":""},{"$f":"IF(DataLog!$C1576=\"Log value\",DataLog!AI1576,\"\")","v":""},{"$f":"IF(DataLog!$C1576=\"Log value\",DataLog!AJ1576,\"\")","v":""},{"$f":"IF(DataLog!$C1576=\"Log value\",DataLog!AK1576,\"\")","v":""},{"$f":"IF(DataLog!$C1576=\"Log value\",DataLog!AL1576,\"\")","v":""},{"$f":"IF(DataLog!$C1576=\"Log value\",DataLog!AM1576,\"\")","v":""}]
[null,null,null,null,null,null,{"$f":"IF(DataLog!$C1579=\"Log value\",DataLog!D1579&\"_\"&TEXT(DataLog!B1579,\"åååå-mm-dd\"),\"\")","v":""},{"$f":"IF(DataLog!$C1579=\"Log value\",DataLog!E1579,\"\")","v":""},{"$f":"IF(DataLog!$C1579=\"Log value\",DataLog!F1579,\"\")","v":""},{"$f":"IF(DataLog!$C1579=\"Log value\",DataLog!G1579,\"\")","v":""},{"$f":"IF(DataLog!$C1579=\"Log value\",DataLog!H1579,\"\")","v":""},{"$f":"IF(DataLog!$C1579=\"Log value\",DataLog!I1579,\"\")","v":""},{"$f":"IF(DataLog!$C1579=\"Log value\",DataLog!J1579,\"\")","v":""},{"$f":"IF(DataLog!$C1579=\"Log value\",DataLog!K1579,\"\")","v":""},{"$f":"IF(DataLog!$C1579=\"Log value\",DataLog!L1579,\"\")","v":""},{"$f":"IF(DataLog!$C1579=\"Log value\",DataLog!M1579,\"\")","v":""},{"$f":"IF(DataLog!$C1579=\"Log value\",DataLog!N1579,\"\")","v":""},{"$f":"IF(DataLog!$C1579=\"Log value\",DataLog!O1579,\"\")","v":""},{"$f":"IF(DataLog!$C1579=\"Log value\",DataLog!P1579,\"\")","v":""},{"$f":"IF(DataLog!$C1579=\"Log value\",DataLog!Q1579,\"\")","v":""},{"$f":"IF(DataLog!$C1579=\"Log value\",DataLog!R1579,\"\")","v":""},{"$f":"IF(DataLog!$C1579=\"Log value\",DataLog!S1579,\"\")","v":""},{"$f":"IF(DataLog!$C1579=\"Log value\",DataLog!T1579,\"\")","v":""},{"$f":"IF(DataLog!$C1579=\"Log value\",DataLog!U1579,\"\")","v":""},{"$f":"IF(DataLog!$C1579=\"Log value\",DataLog!V1579,\"\")","v":""},{"$f":"IF(DataLog!$C1579=\"Log value\",DataLog!W1579,\"\")","v":""},{"$f":"IF(DataLog!$C1579=\"Log value\",DataLog!X1579,\"\")","v":""},{"$f":"IF(DataLog!$C1579=\"Log value\",DataLog!Y1579,\"\")","v":""},{"$f":"IF(DataLog!$C1579=\"Log value\",DataLog!Z1579,\"\")","v":""},{"$f":"IF(DataLog!$C1579=\"Log value\",DataLog!AA1579,\"\")","v":""},{"$f":"IF(DataLog!$C1579=\"Log value\",DataLog!AB1579,\"\")","v":""},{"$f":"IF(DataLog!$C1579=\"Log value\",DataLog!AC1579,\"\")","v":""},{"$f":"IF(DataLog!$C1579=\"Log value\",DataLog!AD1579,\"\")","v":""},{"$f":"IF(DataLog!$C1579=\"Log value\",DataLog!AE1579,\"\")","v":""},{"$f":"IF(DataLog!$C1579=\"Log value\",DataLog!AF1579,\"\")","v":""},{"$f":"IF(DataLog!$C1579=\"Log value\",DataLog!AG1579,\"\")","v":""},{"$f":"IF(DataLog!$C1579=\"Log value\",DataLog!AH1579,\"\")","v":""},{"$f":"IF(DataLog!$C1579=\"Log value\",DataLog!AI1579,\"\")","v":""},{"$f":"IF(DataLog!$C1579=\"Log value\",DataLog!AJ1579,\"\")","v":""},{"$f":"IF(DataLog!$C1579=\"Log value\",DataLog!AK1579,\"\")","v":""},{"$f":"IF(DataLog!$C1579=\"Log value\",DataLog!AL1579,\"\")","v":""},{"$f":"IF(DataLog!$C1579=\"Log value\",DataLog!AM1579,\"\")","v":""}]
[null,null,null,null,null,null,{"$f":"IF(DataLog!$C1580=\"Log value\",DataLog!D1580&\"_\"&TEXT(DataLog!B1580,\"åååå-mm-dd\"),\"\")","v":""},{"$f":"IF(DataLog!$C1580=\"Log value\",DataLog!E1580,\"\")","v":""},{"$f":"IF(DataLog!$C1580=\"Log value\",DataLog!F1580,\"\")","v":""},{"$f":"IF(DataLog!$C1580=\"Log value\",DataLog!G1580,\"\")","v":""},{"$f":"IF(DataLog!$C1580=\"Log value\",DataLog!H1580,\"\")","v":""},{"$f":"IF(DataLog!$C1580=\"Log value\",DataLog!I1580,\"\")","v":""},{"$f":"IF(DataLog!$C1580=\"Log value\",DataLog!J1580,\"\")","v":""},{"$f":"IF(DataLog!$C1580=\"Log value\",DataLog!K1580,\"\")","v":""},{"$f":"IF(DataLog!$C1580=\"Log value\",DataLog!L1580,\"\")","v":""},{"$f":"IF(DataLog!$C1580=\"Log value\",DataLog!M1580,\"\")","v":""},{"$f":"IF(DataLog!$C1580=\"Log value\",DataLog!N1580,\"\")","v":""},{"$f":"IF(DataLog!$C1580=\"Log value\",DataLog!O1580,\"\")","v":""},{"$f":"IF(DataLog!$C1580=\"Log value\",DataLog!P1580,\"\")","v":""},{"$f":"IF(DataLog!$C1580=\"Log value\",DataLog!Q1580,\"\")","v":""},{"$f":"IF(DataLog!$C1580=\"Log value\",DataLog!R1580,\"\")","v":""},{"$f":"IF(DataLog!$C1580=\"Log value\",DataLog!S1580,\"\")","v":""},{"$f":"IF(DataLog!$C1580=\"Log value\",DataLog!T1580,\"\")","v":""},{"$f":"IF(DataLog!$C1580=\"Log value\",DataLog!U1580,\"\")","v":""},{"$f":"IF(DataLog!$C1580=\"Log value\",DataLog!V1580,\"\")","v":""},{"$f":"IF(DataLog!$C1580=\"Log value\",DataLog!W1580,\"\")","v":""},{"$f":"IF(DataLog!$C1580=\"Log value\",DataLog!X1580,\"\")","v":""},{"$f":"IF(DataLog!$C1580=\"Log value\",DataLog!Y1580,\"\")","v":""},{"$f":"IF(DataLog!$C1580=\"Log value\",DataLog!Z1580,\"\")","v":""},{"$f":"IF(DataLog!$C1580=\"Log value\",DataLog!AA1580,\"\")","v":""},{"$f":"IF(DataLog!$C1580=\"Log value\",DataLog!AB1580,\"\")","v":""},{"$f":"IF(DataLog!$C1580=\"Log value\",DataLog!AC1580,\"\")","v":""},{"$f":"IF(DataLog!$C1580=\"Log value\",DataLog!AD1580,\"\")","v":""},{"$f":"IF(DataLog!$C1580=\"Log value\",DataLog!AE1580,\"\")","v":""},{"$f":"IF(DataLog!$C1580=\"Log value\",DataLog!AF1580,\"\")","v":""},{"$f":"IF(DataLog!$C1580=\"Log value\",DataLog!AG1580,\"\")","v":""},{"$f":"IF(DataLog!$C1580=\"Log value\",DataLog!AH1580,\"\")","v":""},{"$f":"IF(DataLog!$C1580=\"Log value\",DataLog!AI1580,\"\")","v":""},{"$f":"IF(DataLog!$C1580=\"Log value\",DataLog!AJ1580,\"\")","v":""},{"$f":"IF(DataLog!$C1580=\"Log value\",DataLog!AK1580,\"\")","v":""},{"$f":"IF(DataLog!$C1580=\"Log value\",DataLog!AL1580,\"\")","v":""},{"$f":"IF(DataLog!$C1580=\"Log value\",DataLog!AM1580,\"\")","v":""}]
[null,null,null,null,null,null,{"$f":"IF(DataLog!$C1583=\"Log value\",DataLog!D1583&\"_\"&TEXT(DataLog!B1583,\"åååå-mm-dd\"),\"\")","v":""},{"$f":"IF(DataLog!$C1583=\"Log value\",DataLog!E1583,\"\")","v":""},{"$f":"IF(DataLog!$C1583=\"Log value\",DataLog!F1583,\"\")","v":""},{"$f":"IF(DataLog!$C1583=\"Log value\",DataLog!G1583,\"\")","v":""},{"$f":"IF(DataLog!$C1583=\"Log value\",DataLog!H1583,\"\")","v":""},{"$f":"IF(DataLog!$C1583=\"Log value\",DataLog!I1583,\"\")","v":""},{"$f":"IF(DataLog!$C1583=\"Log value\",DataLog!J1583,\"\")","v":""},{"$f":"IF(DataLog!$C1583=\"Log value\",DataLog!K1583,\"\")","v":""},{"$f":"IF(DataLog!$C1583=\"Log value\",DataLog!L1583,\"\")","v":""},{"$f":"IF(DataLog!$C1583=\"Log value\",DataLog!M1583,\"\")","v":""},{"$f":"IF(DataLog!$C1583=\"Log value\",DataLog!N1583,\"\")","v":""},{"$f":"IF(DataLog!$C1583=\"Log value\",DataLog!O1583,\"\")","v":""},{"$f":"IF(DataLog!$C1583=\"Log value\",DataLog!P1583,\"\")","v":""},{"$f":"IF(DataLog!$C1583=\"Log value\",DataLog!Q1583,\"\")","v":""},{"$f":"IF(DataLog!$C1583=\"Log value\",DataLog!R1583,\"\")","v":""},{"$f":"IF(DataLog!$C1583=\"Log value\",DataLog!S1583,\"\")","v":""},{"$f":"IF(DataLog!$C1583=\"Log value\",DataLog!T1583,\"\")","v":""},{"$f":"IF(DataLog!$C1583=\"Log value\",DataLog!U1583,\"\")","v":""},{"$f":"IF(DataLog!$C1583=\"Log value\",DataLog!V1583,\"\")","v":""},{"$f":"IF(DataLog!$C1583=\"Log value\",DataLog!W1583,\"\")","v":""},{"$f":"IF(DataLog!$C1583=\"Log value\",DataLog!X1583,\"\")","v":""},{"$f":"IF(DataLog!$C1583=\"Log value\",DataLog!Y1583,\"\")","v":""},{"$f":"IF(DataLog!$C1583=\"Log value\",DataLog!Z1583,\"\")","v":""},{"$f":"IF(DataLog!$C1583=\"Log value\",DataLog!AA1583,\"\")","v":""},{"$f":"IF(DataLog!$C1583=\"Log value\",DataLog!AB1583,\"\")","v":""},{"$f":"IF(DataLog!$C1583=\"Log value\",DataLog!AC1583,\"\")","v":""},{"$f":"IF(DataLog!$C1583=\"Log value\",DataLog!AD1583,\"\")","v":""},{"$f":"IF(DataLog!$C1583=\"Log value\",DataLog!AE1583,\"\")","v":""},{"$f":"IF(DataLog!$C1583=\"Log value\",DataLog!AF1583,\"\")","v":""},{"$f":"IF(DataLog!$C1583=\"Log value\",DataLog!AG1583,\"\")","v":""},{"$f":"IF(DataLog!$C1583=\"Log value\",DataLog!AH1583,\"\")","v":""},{"$f":"IF(DataLog!$C1583=\"Log value\",DataLog!AI1583,\"\")","v":""},{"$f":"IF(DataLog!$C1583=\"Log value\",DataLog!AJ1583,\"\")","v":""},{"$f":"IF(DataLog!$C1583=\"Log value\",DataLog!AK1583,\"\")","v":""},{"$f":"IF(DataLog!$C1583=\"Log value\",DataLog!AL1583,\"\")","v":""},{"$f":"IF(DataLog!$C1583=\"Log value\",DataLog!AM1583,\"\")","v":""}]
[null,null,null,null,null,null,{"$f":"IF(DataLog!$C1584=\"Log value\",DataLog!D1584&\"_\"&TEXT(DataLog!B1584,\"åååå-mm-dd\"),\"\")","v":""},{"$f":"IF(DataLog!$C1584=\"Log value\",DataLog!E1584,\"\")","v":""},{"$f":"IF(DataLog!$C1584=\"Log value\",DataLog!F1584,\"\")","v":""},{"$f":"IF(DataLog!$C1584=\"Log value\",DataLog!G1584,\"\")","v":""},{"$f":"IF(DataLog!$C1584=\"Log value\",DataLog!H1584,\"\")","v":""},{"$f":"IF(DataLog!$C1584=\"Log value\",DataLog!I1584,\"\")","v":""},{"$f":"IF(DataLog!$C1584=\"Log value\",DataLog!J1584,\"\")","v":""},{"$f":"IF(DataLog!$C1584=\"Log value\",DataLog!K1584,\"\")","v":""},{"$f":"IF(DataLog!$C1584=\"Log value\",DataLog!L1584,\"\")","v":""},{"$f":"IF(DataLog!$C1584=\"Log value\",DataLog!M1584,\"\")","v":""},{"$f":"IF(DataLog!$C1584=\"Log value\",DataLog!N1584,\"\")","v":""},{"$f":"IF(DataLog!$C1584=\"Log value\",DataLog!O1584,\"\")","v":""},{"$f":"IF(DataLog!$C1584=\"Log value\",DataLog!P1584,\"\")","v":""},{"$f":"IF(DataLog!$C1584=\"Log value\",DataLog!Q1584,\"\")","v":""},{"$f":"IF(DataLog!$C1584=\"Log value\",DataLog!R1584,\"\")","v":""},{"$f":"IF(DataLog!$C1584=\"Log value\",DataLog!S1584,\"\")","v":""},{"$f":"IF(DataLog!$C1584=\"Log value\",DataLog!T1584,\"\")","v":""},{"$f":"IF(DataLog!$C1584=\"Log value\",DataLog!U1584,\"\")","v":""},{"$f":"IF(DataLog!$C1584=\"Log value\",DataLog!V1584,\"\")","v":""},{"$f":"IF(DataLog!$C1584=\"Log value\",DataLog!W1584,\"\")","v":""},{"$f":"IF(DataLog!$C1584=\"Log value\",DataLog!X1584,\"\")","v":""},{"$f":"IF(DataLog!$C1584=\"Log value\",DataLog!Y1584,\"\")","v":""},{"$f":"IF(DataLog!$C1584=\"Log value\",DataLog!Z1584,\"\")","v":""},{"$f":"IF(DataLog!$C1584=\"Log value\",DataLog!AA1584,\"\")","v":""},{"$f":"IF(DataLog!$C1584=\"Log value\",DataLog!AB1584,\"\")","v":""},{"$f":"IF(DataLog!$C1584=\"Log value\",DataLog!AC1584,\"\")","v":""},{"$f":"IF(DataLog!$C1584=\"Log value\",DataLog!AD1584,\"\")","v":""},{"$f":"IF(DataLog!$C1584=\"Log value\",DataLog!AE1584,\"\")","v":""},{"$f":"IF(DataLog!$C1584=\"Log value\",DataLog!AF1584,\"\")","v":""},{"$f":"IF(DataLog!$C1584=\"Log value\",DataLog!AG1584,\"\")","v":""},{"$f":"IF(DataLog!$C1584=\"Log value\",DataLog!AH1584,\"\")","v":""},{"$f":"IF(DataLog!$C1584=\"Log value\",DataLog!AI1584,\"\")","v":""},{"$f":"IF(DataLog!$C1584=\"Log value\",DataLog!AJ1584,\"\")","v":""},{"$f":"IF(DataLog!$C1584=\"Log value\",DataLog!AK1584,\"\")","v":""},{"$f":"IF(DataLog!$C1584=\"Log value\",DataLog!AL1584,\"\")","v":""},{"$f":"IF(DataLog!$C1584=\"Log value\",DataLog!AM1584,\"\")","v":""}]
[null,null,null,null,null,null,{"$f":"IF(DataLog!$C1588=\"Log value\",DataLog!D1588&\"_\"&TEXT(DataLog!B1588,\"åååå-mm-dd\"),\"\")","v":""},{"$f":"IF(DataLog!$C1588=\"Log value\",DataLog!E1588,\"\")","v":""},{"$f":"IF(DataLog!$C1588=\"Log value\",DataLog!F1588,\"\")","v":""},{"$f":"IF(DataLog!$C1588=\"Log value\",DataLog!G1588,\"\")","v":""},{"$f":"IF(DataLog!$C1588=\"Log value\",DataLog!H1588,\"\")","v":""},{"$f":"IF(DataLog!$C1588=\"Log value\",DataLog!I1588,\"\")","v":""},{"$f":"IF(DataLog!$C1588=\"Log value\",DataLog!J1588,\"\")","v":""},{"$f":"IF(DataLog!$C1588=\"Log value\",DataLog!K1588,\"\")","v":""},{"$f":"IF(DataLog!$C1588=\"Log value\",DataLog!L1588,\"\")","v":""},{"$f":"IF(DataLog!$C1588=\"Log value\",DataLog!M1588,\"\")","v":""},{"$f":"IF(DataLog!$C1588=\"Log value\",DataLog!N1588,\"\")","v":""},{"$f":"IF(DataLog!$C1588=\"Log value\",DataLog!O1588,\"\")","v":""},{"$f":"IF(DataLog!$C1588=\"Log value\",DataLog!P1588,\"\")","v":""},{"$f":"IF(DataLog!$C1588=\"Log value\",DataLog!Q1588,\"\")","v":""},{"$f":"IF(DataLog!$C1588=\"Log value\",DataLog!R1588,\"\")","v":""},{"$f":"IF(DataLog!$C1588=\"Log value\",DataLog!S1588,\"\")","v":""},{"$f":"IF(DataLog!$C1588=\"Log value\",DataLog!T1588,\"\")","v":""},{"$f":"IF(DataLog!$C1588=\"Log value\",DataLog!U1588,\"\")","v":""},{"$f":"IF(DataLog!$C1588=\"Log value\",DataLog!V1588,\"\")","v":""},{"$f":"IF(DataLog!$C1588=\"Log value\",DataLog!W1588,\"\")","v":""},{"$f":"IF(DataLog!$C1588=\"Log value\",DataLog!X1588,\"\")","v":""},{"$f":"IF(DataLog!$C1588=\"Log value\",DataLog!Y1588,\"\")","v":""},{"$f":"IF(DataLog!$C1588=\"Log value\",DataLog!Z1588,\"\")","v":""},{"$f":"IF(DataLog!$C1588=\"Log value\",DataLog!AA1588,\"\")","v":""},{"$f":"IF(DataLog!$C1588=\"Log value\",DataLog!AB1588,\"\")","v":""},{"$f":"IF(DataLog!$C1588=\"Log value\",DataLog!AC1588,\"\")","v":""},{"$f":"IF(DataLog!$C1588=\"Log value\",DataLog!AD1588,\"\")","v":""},{"$f":"IF(DataLog!$C1588=\"Log value\",DataLog!AE1588,\"\")","v":""},{"$f":"IF(DataLog!$C1588=\"Log value\",DataLog!AF1588,\"\")","v":""},{"$f":"IF(DataLog!$C1588=\"Log value\",DataLog!AG1588,\"\")","v":""},{"$f":"IF(DataLog!$C1588=\"Log value\",DataLog!AH1588,\"\")","v":""},{"$f":"IF(DataLog!$C1588=\"Log value\",DataLog!AI1588,\"\")","v":""},{"$f":"IF(DataLog!$C1588=\"Log value\",DataLog!AJ1588,\"\")","v":""},{"$f":"IF(DataLog!$C1588=\"Log value\",DataLog!AK1588,\"\")","v":""},{"$f":"IF(DataLog!$C1588=\"Log value\",DataLog!AL1588,\"\")","v":""},{"$f":"IF(DataLog!$C1588=\"Log value\",DataLog!AM1588,\"\")","v":""}]
[null,null,null,null,null,null,{"$f":"IF(DataLog!$C1589=\"Log value\",DataLog!D1589&\"_\"&TEXT(DataLog!B1589,\"åååå-mm-dd\"),\"\")","v":""},{"$f":"IF(DataLog!$C1589=\"Log value\",DataLog!E1589,\"\")","v":""},{"$f":"IF(DataLog!$C1589=\"Log value\",DataLog!F1589,\"\")","v":""},{"$f":"IF(DataLog!$C1589=\"Log value\",DataLog!G1589,\"\")","v":""},{"$f":"IF(DataLog!$C1589=\"Log value\",DataLog!H1589,\"\")","v":""},{"$f":"IF(DataLog!$C1589=\"Log value\",DataLog!I1589,\"\")","v":""},{"$f":"IF(DataLog!$C1589=\"Log value\",DataLog!J1589,\"\")","v":""},{"$f":"IF(DataLog!$C1589=\"Log value\",DataLog!K1589,\"\")","v":""},{"$f":"IF(DataLog!$C1589=\"Log value\",DataLog!L1589,\"\")","v":""},{"$f":"IF(DataLog!$C1589=\"Log value\",DataLog!M1589,\"\")","v":""},{"$f":"IF(DataLog!$C1589=\"Log value\",DataLog!N1589,\"\")","v":""},{"$f":"IF(DataLog!$C1589=\"Log value\",DataLog!O1589,\"\")","v":""},{"$f":"IF(DataLog!$C1589=\"Log value\",DataLog!P1589,\"\")","v":""},{"$f":"IF(DataLog!$C1589=\"Log value\",DataLog!Q1589,\"\")","v":""},{"$f":"IF(DataLog!$C1589=\"Log value\",DataLog!R1589,\"\")","v":""},{"$f":"IF(DataLog!$C1589=\"Log value\",DataLog!S1589,\"\")","v":""},{"$f":"IF(DataLog!$C1589=\"Log value\",DataLog!T1589,\"\")","v":""},{"$f":"IF(DataLog!$C1589=\"Log value\",DataLog!U1589,\"\")","v":""},{"$f":"IF(DataLog!$C1589=\"Log value\",DataLog!V1589,\"\")","v":""},{"$f":"IF(DataLog!$C1589=\"Log value\",DataLog!W1589,\"\")","v":""},{"$f":"IF(DataLog!$C1589=\"Log value\",DataLog!X1589,\"\")","v":""},{"$f":"IF(DataLog!$C1589=\"Log value\",DataLog!Y1589,\"\")","v":""},{"$f":"IF(DataLog!$C1589=\"Log value\",DataLog!Z1589,\"\")","v":""},{"$f":"IF(DataLog!$C1589=\"Log value\",DataLog!AA1589,\"\")","v":""},{"$f":"IF(DataLog!$C1589=\"Log value\",DataLog!AB1589,\"\")","v":""},{"$f":"IF(DataLog!$C1589=\"Log value\",DataLog!AC1589,\"\")","v":""},{"$f":"IF(DataLog!$C1589=\"Log value\",DataLog!AD1589,\"\")","v":""},{"$f":"IF(DataLog!$C1589=\"Log value\",DataLog!AE1589,\"\")","v":""},{"$f":"IF(DataLog!$C1589=\"Log value\",DataLog!AF1589,\"\")","v":""},{"$f":"IF(DataLog!$C1589=\"Log value\",DataLog!AG1589,\"\")","v":""},{"$f":"IF(DataLog!$C1589=\"Log value\",DataLog!AH1589,\"\")","v":""},{"$f":"IF(DataLog!$C1589=\"Log value\",DataLog!AI1589,\"\")","v":""},{"$f":"IF(DataLog!$C1589=\"Log value\",DataLog!AJ1589,\"\")","v":""},{"$f":"IF(DataLog!$C1589=\"Log value\",DataLog!AK1589,\"\")","v":""},{"$f":"IF(DataLog!$C1589=\"Log value\",DataLog!AL1589,\"\")","v":""},{"$f":"IF(DataLog!$C1589=\"Log value\",DataLog!AM1589,\"\")","v":""}]
[null,null,null,null,null,null,{"$f":"IF(DataLog!$C1592=\"Log value\",DataLog!D1592&\"_\"&TEXT(DataLog!B1592,\"åååå-mm-dd\"),\"\")","v":""},{"$f":"IF(DataLog!$C1592=\"Log value\",DataLog!E1592,\"\")","v":""},{"$f":"IF(DataLog!$C1592=\"Log value\",DataLog!F1592,\"\")","v":""},{"$f":"IF(DataLog!$C1592=\"Log value\",DataLog!G1592,\"\")","v":""},{"$f":"IF(DataLog!$C1592=\"Log value\",DataLog!H1592,\"\")","v":""},{"$f":"IF(DataLog!$C1592=\"Log value\",DataLog!I1592,\"\")","v":""},{"$f":"IF(DataLog!$C1592=\"Log value\",DataLog!J1592,\"\")","v":""},{"$f":"IF(DataLog!$C1592=\"Log value\",DataLog!K1592,\"\")","v":""},{"$f":"IF(DataLog!$C1592=\"Log value\",DataLog!L1592,\"\")","v":""},{"$f":"IF(DataLog!$C1592=\"Log value\",DataLog!M1592,\"\")","v":""},{"$f":"IF(DataLog!$C1592=\"Log value\",DataLog!N1592,\"\")","v":""},{"$f":"IF(DataLog!$C1592=\"Log value\",DataLog!O1592,\"\")","v":""},{"$f":"IF(DataLog!$C1592=\"Log value\",DataLog!P1592,\"\")","v":""},{"$f":"IF(DataLog!$C1592=\"Log value\",DataLog!Q1592,\"\")","v":""},{"$f":"IF(DataLog!$C1592=\"Log value\",DataLog!R1592,\"\")","v":""},{"$f":"IF(DataLog!$C1592=\"Log value\",DataLog!S1592,\"\")","v":""},{"$f":"IF(DataLog!$C1592=\"Log value\",DataLog!T1592,\"\")","v":""},{"$f":"IF(DataLog!$C1592=\"Log value\",DataLog!U1592,\"\")","v":""},{"$f":"IF(DataLog!$C1592=\"Log value\",DataLog!V1592,\"\")","v":""},{"$f":"IF(DataLog!$C1592=\"Log value\",DataLog!W1592,\"\")","v":""},{"$f":"IF(DataLog!$C1592=\"Log value\",DataLog!X1592,\"\")","v":""},{"$f":"IF(DataLog!$C1592=\"Log value\",DataLog!Y1592,\"\")","v":""},{"$f":"IF(DataLog!$C1592=\"Log value\",DataLog!Z1592,\"\")","v":""},{"$f":"IF(DataLog!$C1592=\"Log value\",DataLog!AA1592,\"\")","v":""},{"$f":"IF(DataLog!$C1592=\"Log value\",DataLog!AB1592,\"\")","v":""},{"$f":"IF(DataLog!$C1592=\"Log value\",DataLog!AC1592,\"\")","v":""},{"$f":"IF(DataLog!$C1592=\"Log value\",DataLog!AD1592,\"\")","v":""},{"$f":"IF(DataLog!$C1592=\"Log value\",DataLog!AE1592,\"\")","v":""},{"$f":"IF(DataLog!$C1592=\"Log value\",DataLog!AF1592,\"\")","v":""},{"$f":"IF(DataLog!$C1592=\"Log value\",DataLog!AG1592,\"\")","v":""},{"$f":"IF(DataLog!$C1592=\"Log value\",DataLog!AH1592,\"\")","v":""},{"$f":"IF(DataLog!$C1592=\"Log value\",DataLog!AI1592,\"\")","v":""},{"$f":"IF(DataLog!$C1592=\"Log value\",DataLog!AJ1592,\"\")","v":""},{"$f":"IF(DataLog!$C1592=\"Log value\",DataLog!AK1592,\"\")","v":""},{"$f":"IF(DataLog!$C1592=\"Log value\",DataLog!AL1592,\"\")","v":""},{"$f":"IF(DataLog!$C1592=\"Log value\",DataLog!AM1592,\"\")","v":""}]
[null,null,null,null,null,null,{"$f":"IF(DataLog!$C1594=\"Log value\",DataLog!D1594&\"_\"&TEXT(DataLog!B1594,\"åååå-mm-dd\"),\"\")","v":""},{"$f":"IF(DataLog!$C1594=\"Log value\",DataLog!E1594,\"\")","v":""},{"$f":"IF(DataLog!$C1594=\"Log value\",DataLog!F1594,\"\")","v":""},{"$f":"IF(DataLog!$C1594=\"Log value\",DataLog!G1594,\"\")","v":""},{"$f":"IF(DataLog!$C1594=\"Log value\",DataLog!H1594,\"\")","v":""},{"$f":"IF(DataLog!$C1594=\"Log value\",DataLog!I1594,\"\")","v":""},{"$f":"IF(DataLog!$C1594=\"Log value\",DataLog!J1594,\"\")","v":""},{"$f":"IF(DataLog!$C1594=\"Log value\",DataLog!K1594,\"\")","v":""},{"$f":"IF(DataLog!$C1594=\"Log value\",DataLog!L1594,\"\")","v":""},{"$f":"IF(DataLog!$C1594=\"Log value\",DataLog!M1594,\"\")","v":""},{"$f":"IF(DataLog!$C1594=\"Log value\",DataLog!N1594,\"\")","v":""},{"$f":"IF(DataLog!$C1594=\"Log value\",DataLog!O1594,\"\")","v":""},{"$f":"IF(DataLog!$C1594=\"Log value\",DataLog!P1594,\"\")","v":""},{"$f":"IF(DataLog!$C1594=\"Log value\",DataLog!Q1594,\"\")","v":""},{"$f":"IF(DataLog!$C1594=\"Log value\",DataLog!R1594,\"\")","v":""},{"$f":"IF(DataLog!$C1594=\"Log value\",DataLog!S1594,\"\")","v":""},{"$f":"IF(DataLog!$C1594=\"Log value\",DataLog!T1594,\"\")","v":""},{"$f":"IF(DataLog!$C1594=\"Log value\",DataLog!U1594,\"\")","v":""},{"$f":"IF(DataLog!$C1594=\"Log value\",DataLog!V1594,\"\")","v":""},{"$f":"IF(DataLog!$C1594=\"Log value\",DataLog!W1594,\"\")","v":""},{"$f":"IF(DataLog!$C1594=\"Log value\",DataLog!X1594,\"\")","v":""},{"$f":"IF(DataLog!$C1594=\"Log value\",DataLog!Y1594,\"\")","v":""},{"$f":"IF(DataLog!$C1594=\"Log value\",DataLog!Z1594,\"\")","v":""},{"$f":"IF(DataLog!$C1594=\"Log value\",DataLog!AA1594,\"\")","v":""},{"$f":"IF(DataLog!$C1594=\"Log value\",DataLog!AB1594,\"\")","v":""},{"$f":"IF(DataLog!$C1594=\"Log value\",DataLog!AC1594,\"\")","v":""},{"$f":"IF(DataLog!$C1594=\"Log value\",DataLog!AD1594,\"\")","v":""},{"$f":"IF(DataLog!$C1594=\"Log value\",DataLog!AE1594,\"\")","v":""},{"$f":"IF(DataLog!$C1594=\"Log value\",DataLog!AF1594,\"\")","v":""},{"$f":"IF(DataLog!$C1594=\"Log value\",DataLog!AG1594,\"\")","v":""},{"$f":"IF(DataLog!$C1594=\"Log value\",DataLog!AH1594,\"\")","v":""},{"$f":"IF(DataLog!$C1594=\"Log value\",DataLog!AI1594,\"\")","v":""},{"$f":"IF(DataLog!$C1594=\"Log value\",DataLog!AJ1594,\"\")","v":""},{"$f":"IF(DataLog!$C1594=\"Log value\",DataLog!AK1594,\"\")","v":""},{"$f":"IF(DataLog!$C1594=\"Log value\",DataLog!AL1594,\"\")","v":""},{"$f":"IF(DataLog!$C1594=\"Log value\",DataLog!AM1594,\"\")","v":""}]
[null,null,null,null,null,null,{"$f":"IF(DataLog!$C1597=\"Log value\",DataLog!D1597&\"_\"&TEXT(DataLog!B1597,\"åååå-mm-dd\"),\"\")","v":""},{"$f":"IF(DataLog!$C1597=\"Log value\",DataLog!E1597,\"\")","v":""},{"$f":"IF(DataLog!$C1597=\"Log value\",DataLog!F1597,\"\")","v":""},{"$f":"IF(DataLog!$C1597=\"Log value\",DataLog!G1597,\"\")","v":""},{"$f":"IF(DataLog!$C1597=\"Log value\",DataLog!H1597,\"\")","v":""},{"$f":"IF(DataLog!$C1597=\"Log value\",DataLog!I1597,\"\")","v":""},{"$f":"IF(DataLog!$C1597=\"Log value\",DataLog!J1597,\"\")","v":""},{"$f":"IF(DataLog!$C1597=\"Log value\",DataLog!K1597,\"\")","v":""},{"$f":"IF(DataLog!$C1597=\"Log value\",DataLog!L1597,\"\")","v":""},{"$f":"IF(DataLog!$C1597=\"Log value\",DataLog!M1597,\"\")","v":""},{"$f":"IF(DataLog!$C1597=\"Log value\",DataLog!N1597,\"\")","v":""},{"$f":"IF(DataLog!$C1597=\"Log value\",DataLog!O1597,\"\")","v":""},{"$f":"IF(DataLog!$C1597=\"Log value\",DataLog!P1597,\"\")","v":""},{"$f":"IF(DataLog!$C1597=\"Log value\",DataLog!Q1597,\"\")","v":""},{"$f":"IF(DataLog!$C1597=\"Log value\",DataLog!R1597,\"\")","v":""},{"$f":"IF(DataLog!$C1597=\"Log value\",DataLog!S1597,\"\")","v":""},{"$f":"IF(DataLog!$C1597=\"Log value\",DataLog!T1597,\"\")","v":""},{"$f":"IF(DataLog!$C1597=\"Log value\",DataLog!U1597,\"\")","v":""},{"$f":"IF(DataLog!$C1597=\"Log value\",DataLog!V1597,\"\")","v":""},{"$f":"IF(DataLog!$C1597=\"Log value\",DataLog!W1597,\"\")","v":""},{"$f":"IF(DataLog!$C1597=\"Log value\",DataLog!X1597,\"\")","v":""},{"$f":"IF(DataLog!$C1597=\"Log value\",DataLog!Y1597,\"\")","v":""},{"$f":"IF(DataLog!$C1597=\"Log value\",DataLog!Z1597,\"\")","v":""},{"$f":"IF(DataLog!$C1597=\"Log value\",DataLog!AA1597,\"\")","v":""},{"$f":"IF(DataLog!$C1597=\"Log value\",DataLog!AB1597,\"\")","v":""},{"$f":"IF(DataLog!$C1597=\"Log value\",DataLog!AC1597,\"\")","v":""},{"$f":"IF(DataLog!$C1597=\"Log value\",DataLog!AD1597,\"\")","v":""},{"$f":"IF(DataLog!$C1597=\"Log value\",DataLog!AE1597,\"\")","v":""},{"$f":"IF(DataLog!$C1597=\"Log value\",DataLog!AF1597,\"\")","v":""},{"$f":"IF(DataLog!$C1597=\"Log value\",DataLog!AG1597,\"\")","v":""},{"$f":"IF(DataLog!$C1597=\"Log value\",DataLog!AH1597,\"\")","v":""},{"$f":"IF(DataLog!$C1597=\"Log value\",DataLog!AI1597,\"\")","v":""},{"$f":"IF(DataLog!$C1597=\"Log value\",DataLog!AJ1597,\"\")","v":""},{"$f":"IF(DataLog!$C1597=\"Log value\",DataLog!AK1597,\"\")","v":""},{"$f":"IF(DataLog!$C1597=\"Log value\",DataLog!AL1597,\"\")","v":""},{"$f":"IF(DataLog!$C1597=\"Log value\",DataLog!AM1597,\"\")","v":""}]
[null,null,null,null,null,null,{"$f":"IF(DataLog!$C1598=\"Log value\",DataLog!D1598&\"_\"&TEXT(DataLog!B1598,\"åååå-mm-dd\"),\"\")","v":""},{"$f":"IF(DataLog!$C1598=\"Log value\",DataLog!E1598,\"\")","v":""},{"$f":"IF(DataLog!$C1598=\"Log value\",DataLog!F1598,\"\")","v":""},{"$f":"IF(DataLog!$C1598=\"Log value\",DataLog!G1598,\"\")","v":""},{"$f":"IF(DataLog!$C1598=\"Log value\",DataLog!H1598,\"\")","v":""},{"$f":"IF(DataLog!$C1598=\"Log value\",DataLog!I1598,\"\")","v":""},{"$f":"IF(DataLog!$C1598=\"Log value\",DataLog!J1598,\"\")","v":""},{"$f":"IF(DataLog!$C1598=\"Log value\",DataLog!K1598,\"\")","v":""},{"$f":"IF(DataLog!$C1598=\"Log value\",DataLog!L1598,\"\")","v":""},{"$f":"IF(DataLog!$C1598=\"Log value\",DataLog!M1598,\"\")","v":""},{"$f":"IF(DataLog!$C1598=\"Log value\",DataLog!N1598,\"\")","v":""},{"$f":"IF(DataLog!$C1598=\"Log value\",DataLog!O1598,\"\")","v":""},{"$f":"IF(DataLog!$C1598=\"Log value\",DataLog!P1598,\"\")","v":""},{"$f":"IF(DataLog!$C1598=\"Log value\",DataLog!Q1598,\"\")","v":""},{"$f":"IF(DataLog!$C1598=\"Log value\",DataLog!R1598,\"\")","v":""},{"$f":"IF(DataLog!$C1598=\"Log value\",DataLog!S1598,\"\")","v":""},{"$f":"IF(DataLog!$C1598=\"Log value\",DataLog!T1598,\"\")","v":""},{"$f":"IF(DataLog!$C1598=\"Log value\",DataLog!U1598,\"\")","v":""},{"$f":"IF(DataLog!$C1598=\"Log value\",DataLog!V1598,\"\")","v":""},{"$f":"IF(DataLog!$C1598=\"Log value\",DataLog!W1598,\"\")","v":""},{"$f":"IF(DataLog!$C1598=\"Log value\",DataLog!X1598,\"\")","v":""},{"$f":"IF(DataLog!$C1598=\"Log value\",DataLog!Y1598,\"\")","v":""},{"$f":"IF(DataLog!$C1598=\"Log value\",DataLog!Z1598,\"\")","v":""},{"$f":"IF(DataLog!$C1598=\"Log value\",DataLog!AA1598,\"\")","v":""},{"$f":"IF(DataLog!$C1598=\"Log value\",DataLog!AB1598,\"\")","v":""},{"$f":"IF(DataLog!$C1598=\"Log value\",DataLog!AC1598,\"\")","v":""},{"$f":"IF(DataLog!$C1598=\"Log value\",DataLog!AD1598,\"\")","v":""},{"$f":"IF(DataLog!$C1598=\"Log value\",DataLog!AE1598,\"\")","v":""},{"$f":"IF(DataLog!$C1598=\"Log value\",DataLog!AF1598,\"\")","v":""},{"$f":"IF(DataLog!$C1598=\"Log value\",DataLog!AG1598,\"\")","v":""},{"$f":"IF(DataLog!$C1598=\"Log value\",DataLog!AH1598,\"\")","v":""},{"$f":"IF(DataLog!$C1598=\"Log value\",DataLog!AI1598,\"\")","v":""},{"$f":"IF(DataLog!$C1598=\"Log value\",DataLog!AJ1598,\"\")","v":""},{"$f":"IF(DataLog!$C1598=\"Log value\",DataLog!AK1598,\"\")","v":""},{"$f":"IF(DataLog!$C1598=\"Log value\",DataLog!AL1598,\"\")","v":""},{"$f":"IF(DataLog!$C1598=\"Log value\",DataLog!AM1598,\"\")","v":""}]
[null,null,null,null,null,null,{"$f":"IF(DataLog!$C1601=\"Log value\",DataLog!D1601&\"_\"&TEXT(DataLog!B1601,\"åååå-mm-dd\"),\"\")","v":""},{"$f":"IF(DataLog!$C1601=\"Log value\",DataLog!E1601,\"\")","v":""},{"$f":"IF(DataLog!$C1601=\"Log value\",DataLog!F1601,\"\")","v":""},{"$f":"IF(DataLog!$C1601=\"Log value\",DataLog!G1601,\"\")","v":""},{"$f":"IF(DataLog!$C1601=\"Log value\",DataLog!H1601,\"\")","v":""},{"$f":"IF(DataLog!$C1601=\"Log value\",DataLog!I1601,\"\")","v":""},{"$f":"IF(DataLog!$C1601=\"Log value\",DataLog!J1601,\"\")","v":""},{"$f":"IF(DataLog!$C1601=\"Log value\",DataLog!K1601,\"\")","v":""},{"$f":"IF(DataLog!$C1601=\"Log value\",DataLog!L1601,\"\")","v":""},{"$f":"IF(DataLog!$C1601=\"Log value\",DataLog!M1601,\"\")","v":""},{"$f":"IF(DataLog!$C1601=\"Log value\",DataLog!N1601,\"\")","v":""},{"$f":"IF(DataLog!$C1601=\"Log value\",DataLog!O1601,\"\")","v":""},{"$f":"IF(DataLog!$C1601=\"Log value\",DataLog!P1601,\"\")","v":""},{"$f":"IF(DataLog!$C1601=\"Log value\",DataLog!Q1601,\"\")","v":""},{"$f":"IF(DataLog!$C1601=\"Log value\",DataLog!R1601,\"\")","v":""},{"$f":"IF(DataLog!$C1601=\"Log value\",DataLog!S1601,\"\")","v":""},{"$f":"IF(DataLog!$C1601=\"Log value\",DataLog!T1601,\"\")","v":""},{"$f":"IF(DataLog!$C1601=\"Log value\",DataLog!U1601,\"\")","v":""},{"$f":"IF(DataLog!$C1601=\"Log value\",DataLog!V1601,\"\")","v":""},{"$f":"IF(DataLog!$C1601=\"Log value\",DataLog!W1601,\"\")","v":""},{"$f":"IF(DataLog!$C1601=\"Log value\",DataLog!X1601,\"\")","v":""},{"$f":"IF(DataLog!$C1601=\"Log value\",DataLog!Y1601,\"\")","v":""},{"$f":"IF(DataLog!$C1601=\"Log value\",DataLog!Z1601,\"\")","v":""},{"$f":"IF(DataLog!$C1601=\"Log value\",DataLog!AA1601,\"\")","v":""},{"$f":"IF(DataLog!$C1601=\"Log value\",DataLog!AB1601,\"\")","v":""},{"$f":"IF(DataLog!$C1601=\"Log value\",DataLog!AC1601,\"\")","v":""},{"$f":"IF(DataLog!$C1601=\"Log value\",DataLog!AD1601,\"\")","v":""},{"$f":"IF(DataLog!$C1601=\"Log value\",DataLog!AE1601,\"\")","v":""},{"$f":"IF(DataLog!$C1601=\"Log value\",DataLog!AF1601,\"\")","v":""},{"$f":"IF(DataLog!$C1601=\"Log value\",DataLog!AG1601,\"\")","v":""},{"$f":"IF(DataLog!$C1601=\"Log value\",DataLog!AH1601,\"\")","v":""},{"$f":"IF(DataLog!$C1601=\"Log value\",DataLog!AI1601,\"\")","v":""},{"$f":"IF(DataLog!$C1601=\"Log value\",DataLog!AJ1601,\"\")","v":""},{"$f":"IF(DataLog!$C1601=\"Log value\",DataLog!AK1601,\"\")","v":""},{"$f":"IF(DataLog!$C1601=\"Log value\",DataLog!AL1601,\"\")","v":""},{"$f":"IF(DataLog!$C1601=\"Log value\",DataLog!AM1601,\"\")","v":""}]
[null,null,null,null,null,null,{"$f":"IF(DataLog!$C1602=\"Log value\",DataLog!D1602&\"_\"&TEXT(DataLog!B1602,\"åååå-mm-dd\"),\"\")","v":""},{"$f":"IF(DataLog!$C1602=\"Log value\",DataLog!E1602,\"\")","v":""},{"$f":"IF(DataLog!$C1602=\"Log value\",DataLog!F1602,\"\")","v":""},{"$f":"IF(DataLog!$C1602=\"Log value\",DataLog!G1602,\"\")","v":""},{"$f":"IF(DataLog!$C1602=\"Log value\",DataLog!H1602,\"\")","v":""},{"$f":"IF(DataLog!$C1602=\"Log value\",DataLog!I1602,\"\")","v":""},{"$f":"IF(DataLog!$C1602=\"Log value\",DataLog!J1602,\"\")","v":""},{"$f":"IF(DataLog!$C1602=\"Log value\",DataLog!K1602,\"\")","v":""},{"$f":"IF(DataLog!$C1602=\"Log value\",DataLog!L1602,\"\")","v":""},{"$f":"IF(DataLog!$C1602=\"Log value\",DataLog!M1602,\"\")","v":""},{"$f":"IF(DataLog!$C1602=\"Log value\",DataLog!N1602,\"\")","v":""},{"$f":"IF(DataLog!$C1602=\"Log value\",DataLog!O1602,\"\")","v":""},{"$f":"IF(DataLog!$C1602=\"Log value\",DataLog!P1602,\"\")","v":""},{"$f":"IF(DataLog!$C1602=\"Log value\",DataLog!Q1602,\"\")","v":""},{"$f":"IF(DataLog!$C1602=\"Log value\",DataLog!R1602,\"\")","v":""},{"$f":"IF(DataLog!$C1602=\"Log value\",DataLog!S1602,\"\")","v":""},{"$f":"IF(DataLog!$C1602=\"Log value\",DataLog!T1602,\"\")","v":""},{"$f":"IF(DataLog!$C1602=\"Log value\",DataLog!U1602,\"\")","v":""},{"$f":"IF(DataLog!$C1602=\"Log value\",DataLog!V1602,\"\")","v":""},{"$f":"IF(DataLog!$C1602=\"Log value\",DataLog!W1602,\"\")","v":""},{"$f":"IF(DataLog!$C1602=\"Log value\",DataLog!X1602,\"\")","v":""},{"$f":"IF(DataLog!$C1602=\"Log value\",DataLog!Y1602,\"\")","v":""},{"$f":"IF(DataLog!$C1602=\"Log value\",DataLog!Z1602,\"\")","v":""},{"$f":"IF(DataLog!$C1602=\"Log value\",DataLog!AA1602,\"\")","v":""},{"$f":"IF(DataLog!$C1602=\"Log value\",DataLog!AB1602,\"\")","v":""},{"$f":"IF(DataLog!$C1602=\"Log value\",DataLog!AC1602,\"\")","v":""},{"$f":"IF(DataLog!$C1602=\"Log value\",DataLog!AD1602,\"\")","v":""},{"$f":"IF(DataLog!$C1602=\"Log value\",DataLog!AE1602,\"\")","v":""},{"$f":"IF(DataLog!$C1602=\"Log value\",DataLog!AF1602,\"\")","v":""},{"$f":"IF(DataLog!$C1602=\"Log value\",DataLog!AG1602,\"\")","v":""},{"$f":"IF(DataLog!$C1602=\"Log value\",DataLog!AH1602,\"\")","v":""},{"$f":"IF(DataLog!$C1602=\"Log value\",DataLog!AI1602,\"\")","v":""},{"$f":"IF(DataLog!$C1602=\"Log value\",DataLog!AJ1602,\"\")","v":""},{"$f":"IF(DataLog!$C1602=\"Log value\",DataLog!AK1602,\"\")","v":""},{"$f":"IF(DataLog!$C1602=\"Log value\",DataLog!AL1602,\"\")","v":""},{"$f":"IF(DataLog!$C1602=\"Log value\",DataLog!AM1602,\"\")","v":""}]
[null,null,null,null,null,null,{"$f":"IF(DataLog!$C1606=\"Log value\",DataLog!D1606&\"_\"&TEXT(DataLog!B1606,\"åååå-mm-dd\"),\"\")","v":""},{"$f":"IF(DataLog!$C1606=\"Log value\",DataLog!E1606,\"\")","v":""},{"$f":"IF(DataLog!$C1606=\"Log value\",DataLog!F1606,\"\")","v":""},{"$f":"IF(DataLog!$C1606=\"Log value\",DataLog!G1606,\"\")","v":""},{"$f":"IF(DataLog!$C1606=\"Log value\",DataLog!H1606,\"\")","v":""},{"$f":"IF(DataLog!$C1606=\"Log value\",DataLog!I1606,\"\")","v":""},{"$f":"IF(DataLog!$C1606=\"Log value\",DataLog!J1606,\"\")","v":""},{"$f":"IF(DataLog!$C1606=\"Log value\",DataLog!K1606,\"\")","v":""},{"$f":"IF(DataLog!$C1606=\"Log value\",DataLog!L1606,\"\")","v":""},{"$f":"IF(DataLog!$C1606=\"Log value\",DataLog!M1606,\"\")","v":""},{"$f":"IF(DataLog!$C1606=\"Log value\",DataLog!N1606,\"\")","v":""},{"$f":"IF(DataLog!$C1606=\"Log value\",DataLog!O1606,\"\")","v":""},{"$f":"IF(DataLog!$C1606=\"Log value\",DataLog!P1606,\"\")","v":""},{"$f":"IF(DataLog!$C1606=\"Log value\",DataLog!Q1606,\"\")","v":""},{"$f":"IF(DataLog!$C1606=\"Log value\",DataLog!R1606,\"\")","v":""},{"$f":"IF(DataLog!$C1606=\"Log value\",DataLog!S1606,\"\")","v":""},{"$f":"IF(DataLog!$C1606=\"Log value\",DataLog!T1606,\"\")","v":""},{"$f":"IF(DataLog!$C1606=\"Log value\",DataLog!U1606,\"\")","v":""},{"$f":"IF(DataLog!$C1606=\"Log value\",DataLog!V1606,\"\")","v":""},{"$f":"IF(DataLog!$C1606=\"Log value\",DataLog!W1606,\"\")","v":""},{"$f":"IF(DataLog!$C1606=\"Log value\",DataLog!X1606,\"\")","v":""},{"$f":"IF(DataLog!$C1606=\"Log value\",DataLog!Y1606,\"\")","v":""},{"$f":"IF(DataLog!$C1606=\"Log value\",DataLog!Z1606,\"\")","v":""},{"$f":"IF(DataLog!$C1606=\"Log value\",DataLog!AA1606,\"\")","v":""},{"$f":"IF(DataLog!$C1606=\"Log value\",DataLog!AB1606,\"\")","v":""},{"$f":"IF(DataLog!$C1606=\"Log value\",DataLog!AC1606,\"\")","v":""},{"$f":"IF(DataLog!$C1606=\"Log value\",DataLog!AD1606,\"\")","v":""},{"$f":"IF(DataLog!$C1606=\"Log value\",DataLog!AE1606,\"\")","v":""},{"$f":"IF(DataLog!$C1606=\"Log value\",DataLog!AF1606,\"\")","v":""},{"$f":"IF(DataLog!$C1606=\"Log value\",DataLog!AG1606,\"\")","v":""},{"$f":"IF(DataLog!$C1606=\"Log value\",DataLog!AH1606,\"\")","v":""},{"$f":"IF(DataLog!$C1606=\"Log value\",DataLog!AI1606,\"\")","v":""},{"$f":"IF(DataLog!$C1606=\"Log value\",DataLog!AJ1606,\"\")","v":""},{"$f":"IF(DataLog!$C1606=\"Log value\",DataLog!AK1606,\"\")","v":""},{"$f":"IF(DataLog!$C1606=\"Log value\",DataLog!AL1606,\"\")","v":""},{"$f":"IF(DataLog!$C1606=\"Log value\",DataLog!AM1606,\"\")","v":""}]
[null,null,null,null,null,null,{"$f":"IF(DataLog!$C1607=\"Log value\",DataLog!D1607&\"_\"&TEXT(DataLog!B1607,\"åååå-mm-dd\"),\"\")","v":""},{"$f":"IF(DataLog!$C1607=\"Log value\",DataLog!E1607,\"\")","v":""},{"$f":"IF(DataLog!$C1607=\"Log value\",DataLog!F1607,\"\")","v":""},{"$f":"IF(DataLog!$C1607=\"Log value\",DataLog!G1607,\"\")","v":""},{"$f":"IF(DataLog!$C1607=\"Log value\",DataLog!H1607,\"\")","v":""},{"$f":"IF(DataLog!$C1607=\"Log value\",DataLog!I1607,\"\")","v":""},{"$f":"IF(DataLog!$C1607=\"Log value\",DataLog!J1607,\"\")","v":""},{"$f":"IF(DataLog!$C1607=\"Log value\",DataLog!K1607,\"\")","v":""},{"$f":"IF(DataLog!$C1607=\"Log value\",DataLog!L1607,\"\")","v":""},{"$f":"IF(DataLog!$C1607=\"Log value\",DataLog!M1607,\"\")","v":""},{"$f":"IF(DataLog!$C1607=\"Log value\",DataLog!N1607,\"\")","v":""},{"$f":"IF(DataLog!$C1607=\"Log value\",DataLog!O1607,\"\")","v":""},{"$f":"IF(DataLog!$C1607=\"Log value\",DataLog!P1607,\"\")","v":""},{"$f":"IF(DataLog!$C1607=\"Log value\",DataLog!Q1607,\"\")","v":""},{"$f":"IF(DataLog!$C1607=\"Log value\",DataLog!R1607,\"\")","v":""},{"$f":"IF(DataLog!$C1607=\"Log value\",DataLog!S1607,\"\")","v":""},{"$f":"IF(DataLog!$C1607=\"Log value\",DataLog!T1607,\"\")","v":""},{"$f":"IF(DataLog!$C1607=\"Log value\",DataLog!U1607,\"\")","v":""},{"$f":"IF(DataLog!$C1607=\"Log value\",DataLog!V1607,\"\")","v":""},{"$f":"IF(DataLog!$C1607=\"Log value\",DataLog!W1607,\"\")","v":""},{"$f":"IF(DataLog!$C1607=\"Log value\",DataLog!X1607,\"\")","v":""},{"$f":"IF(DataLog!$C1607=\"Log value\",DataLog!Y1607,\"\")","v":""},{"$f":"IF(DataLog!$C1607=\"Log value\",DataLog!Z1607,\"\")","v":""},{"$f":"IF(DataLog!$C1607=\"Log value\",DataLog!AA1607,\"\")","v":""},{"$f":"IF(DataLog!$C1607=\"Log value\",DataLog!AB1607,\"\")","v":""},{"$f":"IF(DataLog!$C1607=\"Log value\",DataLog!AC1607,\"\")","v":""},{"$f":"IF(DataLog!$C1607=\"Log value\",DataLog!AD1607,\"\")","v":""},{"$f":"IF(DataLog!$C1607=\"Log value\",DataLog!AE1607,\"\")","v":""},{"$f":"IF(DataLog!$C1607=\"Log value\",DataLog!AF1607,\"\")","v":""},{"$f":"IF(DataLog!$C1607=\"Log value\",DataLog!AG1607,\"\")","v":""},{"$f":"IF(DataLog!$C1607=\"Log value\",DataLog!AH1607,\"\")","v":""},{"$f":"IF(DataLog!$C1607=\"Log value\",DataLog!AI1607,\"\")","v":""},{"$f":"IF(DataLog!$C1607=\"Log value\",DataLog!AJ1607,\"\")","v":""},{"$f":"IF(DataLog!$C1607=\"Log value\",DataLog!AK1607,\"\")","v":""},{"$f":"IF(DataLog!$C1607=\"Log value\",DataLog!AL1607,\"\")","v":""},{"$f":"IF(DataLog!$C1607=\"Log value\",DataLog!AM1607,\"\")","v":""}]
[null,null,null,null,null,null,{"$f":"IF(DataLog!$C1610=\"Log value\",DataLog!D1610&\"_\"&TEXT(DataLog!B1610,\"åååå-mm-dd\"),\"\")","v":""},{"$f":"IF(DataLog!$C1610=\"Log value\",DataLog!E1610,\"\")","v":""},{"$f":"IF(DataLog!$C1610=\"Log value\",DataLog!F1610,\"\")","v":""},{"$f":"IF(DataLog!$C1610=\"Log value\",DataLog!G1610,\"\")","v":""},{"$f":"IF(DataLog!$C1610=\"Log value\",DataLog!H1610,\"\")","v":""},{"$f":"IF(DataLog!$C1610=\"Log value\",DataLog!I1610,\"\")","v":""},{"$f":"IF(DataLog!$C1610=\"Log value\",DataLog!J1610,\"\")","v":""},{"$f":"IF(DataLog!$C1610=\"Log value\",DataLog!K1610,\"\")","v":""},{"$f":"IF(DataLog!$C1610=\"Log value\",DataLog!L1610,\"\")","v":""},{"$f":"IF(DataLog!$C1610=\"Log value\",DataLog!M1610,\"\")","v":""},{"$f":"IF(DataLog!$C1610=\"Log value\",DataLog!N1610,\"\")","v":""},{"$f":"IF(DataLog!$C1610=\"Log value\",DataLog!O1610,\"\")","v":""},{"$f":"IF(DataLog!$C1610=\"Log value\",DataLog!P1610,\"\")","v":""},{"$f":"IF(DataLog!$C1610=\"Log value\",DataLog!Q1610,\"\")","v":""},{"$f":"IF(DataLog!$C1610=\"Log value\",DataLog!R1610,\"\")","v":""},{"$f":"IF(DataLog!$C1610=\"Log value\",DataLog!S1610,\"\")","v":""},{"$f":"IF(DataLog!$C1610=\"Log value\",DataLog!T1610,\"\")","v":""},{"$f":"IF(DataLog!$C1610=\"Log value\",DataLog!U1610,\"\")","v":""},{"$f":"IF(DataLog!$C1610=\"Log value\",DataLog!V1610,\"\")","v":""},{"$f":"IF(DataLog!$C1610=\"Log value\",DataLog!W1610,\"\")","v":""},{"$f":"IF(DataLog!$C1610=\"Log value\",DataLog!X1610,\"\")","v":""},{"$f":"IF(DataLog!$C1610=\"Log value\",DataLog!Y1610,\"\")","v":""},{"$f":"IF(DataLog!$C1610=\"Log value\",DataLog!Z1610,\"\")","v":""},{"$f":"IF(DataLog!$C1610=\"Log value\",DataLog!AA1610,\"\")","v":""},{"$f":"IF(DataLog!$C1610=\"Log value\",DataLog!AB1610,\"\")","v":""},{"$f":"IF(DataLog!$C1610=\"Log value\",DataLog!AC1610,\"\")","v":""},{"$f":"IF(DataLog!$C1610=\"Log value\",DataLog!AD1610,\"\")","v":""},{"$f":"IF(DataLog!$C1610=\"Log value\",DataLog!AE1610,\"\")","v":""},{"$f":"IF(DataLog!$C1610=\"Log value\",DataLog!AF1610,\"\")","v":""},{"$f":"IF(DataLog!$C1610=\"Log value\",DataLog!AG1610,\"\")","v":""},{"$f":"IF(DataLog!$C1610=\"Log value\",DataLog!AH1610,\"\")","v":""},{"$f":"IF(DataLog!$C1610=\"Log value\",DataLog!AI1610,\"\")","v":""},{"$f":"IF(DataLog!$C1610=\"Log value\",DataLog!AJ1610,\"\")","v":""},{"$f":"IF(DataLog!$C1610=\"Log value\",DataLog!AK1610,\"\")","v":""},{"$f":"IF(DataLog!$C1610=\"Log value\",DataLog!AL1610,\"\")","v":""},{"$f":"IF(DataLog!$C1610=\"Log value\",DataLog!AM1610,\"\")","v":""}]
[null,null,null,null,null,null,{"$f":"IF(DataLog!$C1612=\"Log value\",DataLog!D1612&\"_\"&TEXT(DataLog!B1612,\"åååå-mm-dd\"),\"\")","v":""},{"$f":"IF(DataLog!$C1612=\"Log value\",DataLog!E1612,\"\")","v":""},{"$f":"IF(DataLog!$C1612=\"Log value\",DataLog!F1612,\"\")","v":""},{"$f":"IF(DataLog!$C1612=\"Log value\",DataLog!G1612,\"\")","v":""},{"$f":"IF(DataLog!$C1612=\"Log value\",DataLog!H1612,\"\")","v":""},{"$f":"IF(DataLog!$C1612=\"Log value\",DataLog!I1612,\"\")","v":""},{"$f":"IF(DataLog!$C1612=\"Log value\",DataLog!J1612,\"\")","v":""},{"$f":"IF(DataLog!$C1612=\"Log value\",DataLog!K1612,\"\")","v":""},{"$f":"IF(DataLog!$C1612=\"Log value\",DataLog!L1612,\"\")","v":""},{"$f":"IF(DataLog!$C1612=\"Log value\",DataLog!M1612,\"\")","v":""},{"$f":"IF(DataLog!$C1612=\"Log value\",DataLog!N1612,\"\")","v":""},{"$f":"IF(DataLog!$C1612=\"Log value\",DataLog!O1612,\"\")","v":""},{"$f":"IF(DataLog!$C1612=\"Log value\",DataLog!P1612,\"\")","v":""},{"$f":"IF(DataLog!$C1612=\"Log value\",DataLog!Q1612,\"\")","v":""},{"$f":"IF(DataLog!$C1612=\"Log value\",DataLog!R1612,\"\")","v":""},{"$f":"IF(DataLog!$C1612=\"Log value\",DataLog!S1612,\"\")","v":""},{"$f":"IF(DataLog!$C1612=\"Log value\",DataLog!T1612,\"\")","v":""},{"$f":"IF(DataLog!$C1612=\"Log value\",DataLog!U1612,\"\")","v":""},{"$f":"IF(DataLog!$C1612=\"Log value\",DataLog!V1612,\"\")","v":""},{"$f":"IF(DataLog!$C1612=\"Log value\",DataLog!W1612,\"\")","v":""},{"$f":"IF(DataLog!$C1612=\"Log value\",DataLog!X1612,\"\")","v":""},{"$f":"IF(DataLog!$C1612=\"Log value\",DataLog!Y1612,\"\")","v":""},{"$f":"IF(DataLog!$C1612=\"Log value\",DataLog!Z1612,\"\")","v":""},{"$f":"IF(DataLog!$C1612=\"Log value\",DataLog!AA1612,\"\")","v":""},{"$f":"IF(DataLog!$C1612=\"Log value\",DataLog!AB1612,\"\")","v":""},{"$f":"IF(DataLog!$C1612=\"Log value\",DataLog!AC1612,\"\")","v":""},{"$f":"IF(DataLog!$C1612=\"Log value\",DataLog!AD1612,\"\")","v":""},{"$f":"IF(DataLog!$C1612=\"Log value\",DataLog!AE1612,\"\")","v":""},{"$f":"IF(DataLog!$C1612=\"Log value\",DataLog!AF1612,\"\")","v":""},{"$f":"IF(DataLog!$C1612=\"Log value\",DataLog!AG1612,\"\")","v":""},{"$f":"IF(DataLog!$C1612=\"Log value\",DataLog!AH1612,\"\")","v":""},{"$f":"IF(DataLog!$C1612=\"Log value\",DataLog!AI1612,\"\")","v":""},{"$f":"IF(DataLog!$C1612=\"Log value\",DataLog!AJ1612,\"\")","v":""},{"$f":"IF(DataLog!$C1612=\"Log value\",DataLog!AK1612,\"\")","v":""},{"$f":"IF(DataLog!$C1612=\"Log value\",DataLog!AL1612,\"\")","v":""},{"$f":"IF(DataLog!$C1612=\"Log value\",DataLog!AM1612,\"\")","v":""}]
[null,null,null,null,null,null,{"$f":"IF(DataLog!$C1615=\"Log value\",DataLog!D1615&\"_\"&TEXT(DataLog!B1615,\"åååå-mm-dd\"),\"\")","v":""},{"$f":"IF(DataLog!$C1615=\"Log value\",DataLog!E1615,\"\")","v":""},{"$f":"IF(DataLog!$C1615=\"Log value\",DataLog!F1615,\"\")","v":""},{"$f":"IF(DataLog!$C1615=\"Log value\",DataLog!G1615,\"\")","v":""},{"$f":"IF(DataLog!$C1615=\"Log value\",DataLog!H1615,\"\")","v":""},{"$f":"IF(DataLog!$C1615=\"Log value\",DataLog!I1615,\"\")","v":""},{"$f":"IF(DataLog!$C1615=\"Log value\",DataLog!J1615,\"\")","v":""},{"$f":"IF(DataLog!$C1615=\"Log value\",DataLog!K1615,\"\")","v":""},{"$f":"IF(DataLog!$C1615=\"Log value\",DataLog!L1615,\"\")","v":""},{"$f":"IF(DataLog!$C1615=\"Log value\",DataLog!M1615,\"\")","v":""},{"$f":"IF(DataLog!$C1615=\"Log value\",DataLog!N1615,\"\")","v":""},{"$f":"IF(DataLog!$C1615=\"Log value\",DataLog!O1615,\"\")","v":""},{"$f":"IF(DataLog!$C1615=\"Log value\",DataLog!P1615,\"\")","v":""},{"$f":"IF(DataLog!$C1615=\"Log value\",DataLog!Q1615,\"\")","v":""},{"$f":"IF(DataLog!$C1615=\"Log value\",DataLog!R1615,\"\")","v":""},{"$f":"IF(DataLog!$C1615=\"Log value\",DataLog!S1615,\"\")","v":""},{"$f":"IF(DataLog!$C1615=\"Log value\",DataLog!T1615,\"\")","v":""},{"$f":"IF(DataLog!$C1615=\"Log value\",DataLog!U1615,\"\")","v":""},{"$f":"IF(DataLog!$C1615=\"Log value\",DataLog!V1615,\"\")","v":""},{"$f":"IF(DataLog!$C1615=\"Log value\",DataLog!W1615,\"\")","v":""},{"$f":"IF(DataLog!$C1615=\"Log value\",DataLog!X1615,\"\")","v":""},{"$f":"IF(DataLog!$C1615=\"Log value\",DataLog!Y1615,\"\")","v":""},{"$f":"IF(DataLog!$C1615=\"Log value\",DataLog!Z1615,\"\")","v":""},{"$f":"IF(DataLog!$C1615=\"Log value\",DataLog!AA1615,\"\")","v":""},{"$f":"IF(DataLog!$C1615=\"Log value\",DataLog!AB1615,\"\")","v":""},{"$f":"IF(DataLog!$C1615=\"Log value\",DataLog!AC1615,\"\")","v":""},{"$f":"IF(DataLog!$C1615=\"Log value\",DataLog!AD1615,\"\")","v":""},{"$f":"IF(DataLog!$C1615=\"Log value\",DataLog!AE1615,\"\")","v":""},{"$f":"IF(DataLog!$C1615=\"Log value\",DataLog!AF1615,\"\")","v":""},{"$f":"IF(DataLog!$C1615=\"Log value\",DataLog!AG1615,\"\")","v":""},{"$f":"IF(DataLog!$C1615=\"Log value\",DataLog!AH1615,\"\")","v":""},{"$f":"IF(DataLog!$C1615=\"Log value\",DataLog!AI1615,\"\")","v":""},{"$f":"IF(DataLog!$C1615=\"Log value\",DataLog!AJ1615,\"\")","v":""},{"$f":"IF(DataLog!$C1615=\"Log value\",DataLog!AK1615,\"\")","v":""},{"$f":"IF(DataLog!$C1615=\"Log value\",DataLog!AL1615,\"\")","v":""},{"$f":"IF(DataLog!$C1615=\"Log value\",DataLog!AM1615,\"\")","v":""}]
[null,null,null,null,null,null,{"$f":"IF(DataLog!$C1616=\"Log value\",DataLog!D1616&\"_\"&TEXT(DataLog!B1616,\"åååå-mm-dd\"),\"\")","v":""},{"$f":"IF(DataLog!$C1616=\"Log value\",DataLog!E1616,\"\")","v":""},{"$f":"IF(DataLog!$C1616=\"Log value\",DataLog!F1616,\"\")","v":""},{"$f":"IF(DataLog!$C1616=\"Log value\",DataLog!G1616,\"\")","v":""},{"$f":"IF(DataLog!$C1616=\"Log value\",DataLog!H1616,\"\")","v":""},{"$f":"IF(DataLog!$C1616=\"Log value\",DataLog!I1616,\"\")","v":""},{"$f":"IF(DataLog!$C1616=\"Log value\",DataLog!J1616,\"\")","v":""},{"$f":"IF(DataLog!$C1616=\"Log value\",DataLog!K1616,\"\")","v":""},{"$f":"IF(DataLog!$C1616=\"Log value\",DataLog!L1616,\"\")","v":""},{"$f":"IF(DataLog!$C1616=\"Log value\",DataLog!M1616,\"\")","v":""},{"$f":"IF(DataLog!$C1616=\"Log value\",DataLog!N1616,\"\")","v":""},{"$f":"IF(DataLog!$C1616=\"Log value\",DataLog!O1616,\"\")","v":""},{"$f":"IF(DataLog!$C1616=\"Log value\",DataLog!P1616,\"\")","v":""},{"$f":"IF(DataLog!$C1616=\"Log value\",DataLog!Q1616,\"\")","v":""},{"$f":"IF(DataLog!$C1616=\"Log value\",DataLog!R1616,\"\")","v":""},{"$f":"IF(DataLog!$C1616=\"Log value\",DataLog!S1616,\"\")","v":""},{"$f":"IF(DataLog!$C1616=\"Log value\",DataLog!T1616,\"\")","v":""},{"$f":"IF(DataLog!$C1616=\"Log value\",DataLog!U1616,\"\")","v":""},{"$f":"IF(DataLog!$C1616=\"Log value\",DataLog!V1616,\"\")","v":""},{"$f":"IF(DataLog!$C1616=\"Log value\",DataLog!W1616,\"\")","v":""},{"$f":"IF(DataLog!$C1616=\"Log value\",DataLog!X1616,\"\")","v":""},{"$f":"IF(DataLog!$C1616=\"Log value\",DataLog!Y1616,\"\")","v":""},{"$f":"IF(DataLog!$C1616=\"Log value\",DataLog!Z1616,\"\")","v":""},{"$f":"IF(DataLog!$C1616=\"Log value\",DataLog!AA1616,\"\")","v":""},{"$f":"IF(DataLog!$C1616=\"Log value\",DataLog!AB1616,\"\")","v":""},{"$f":"IF(DataLog!$C1616=\"Log value\",DataLog!AC1616,\"\")","v":""},{"$f":"IF(DataLog!$C1616=\"Log value\",DataLog!AD1616,\"\")","v":""},{"$f":"IF(DataLog!$C1616=\"Log value\",DataLog!AE1616,\"\")","v":""},{"$f":"IF(DataLog!$C1616=\"Log value\",DataLog!AF1616,\"\")","v":""},{"$f":"IF(DataLog!$C1616=\"Log value\",DataLog!AG1616,\"\")","v":""},{"$f":"IF(DataLog!$C1616=\"Log value\",DataLog!AH1616,\"\")","v":""},{"$f":"IF(DataLog!$C1616=\"Log value\",DataLog!AI1616,\"\")","v":""},{"$f":"IF(DataLog!$C1616=\"Log value\",DataLog!AJ1616,\"\")","v":""},{"$f":"IF(DataLog!$C1616=\"Log value\",DataLog!AK1616,\"\")","v":""},{"$f":"IF(DataLog!$C1616=\"Log value\",DataLog!AL1616,\"\")","v":""},{"$f":"IF(DataLog!$C1616=\"Log value\",DataLog!AM1616,\"\")","v":""}]
[null,null,null,null,null,null,{"$f":"IF(DataLog!$C1618=\"Log value\",DataLog!D1618&\"_\"&TEXT(DataLog!B1618,\"åååå-mm-dd\"),\"\")","v":""},{"$f":"IF(DataLog!$C1618=\"Log value\",DataLog!E1618,\"\")","v":""},{"$f":"IF(DataLog!$C1618=\"Log value\",DataLog!F1618,\"\")","v":""},{"$f":"IF(DataLog!$C1618=\"Log value\",DataLog!G1618,\"\")","v":""},{"$f":"IF(DataLog!$C1618=\"Log value\",DataLog!H1618,\"\")","v":""},{"$f":"IF(DataLog!$C1618=\"Log value\",DataLog!I1618,\"\")","v":""},{"$f":"IF(DataLog!$C1618=\"Log value\",DataLog!J1618,\"\")","v":""},{"$f":"IF(DataLog!$C1618=\"Log value\",DataLog!K1618,\"\")","v":""},{"$f":"IF(DataLog!$C1618=\"Log value\",DataLog!L1618,\"\")","v":""},{"$f":"IF(DataLog!$C1618=\"Log value\",DataLog!M1618,\"\")","v":""},{"$f":"IF(DataLog!$C1618=\"Log value\",DataLog!N1618,\"\")","v":""},{"$f":"IF(DataLog!$C1618=\"Log value\",DataLog!O1618,\"\")","v":""},{"$f":"IF(DataLog!$C1618=\"Log value\",DataLog!P1618,\"\")","v":""},{"$f":"IF(DataLog!$C1618=\"Log value\",DataLog!Q1618,\"\")","v":""},{"$f":"IF(DataLog!$C1618=\"Log value\",DataLog!R1618,\"\")","v":""},{"$f":"IF(DataLog!$C1618=\"Log value\",DataLog!S1618,\"\")","v":""},{"$f":"IF(DataLog!$C1618=\"Log value\",DataLog!T1618,\"\")","v":""},{"$f":"IF(DataLog!$C1618=\"Log value\",DataLog!U1618,\"\")","v":""},{"$f":"IF(DataLog!$C1618=\"Log value\",DataLog!V1618,\"\")","v":""},{"$f":"IF(DataLog!$C1618=\"Log value\",DataLog!W1618,\"\")","v":""},{"$f":"IF(DataLog!$C1618=\"Log value\",DataLog!X1618,\"\")","v":""},{"$f":"IF(DataLog!$C1618=\"Log value\",DataLog!Y1618,\"\")","v":""},{"$f":"IF(DataLog!$C1618=\"Log value\",DataLog!Z1618,\"\")","v":""},{"$f":"IF(DataLog!$C1618=\"Log value\",DataLog!AA1618,\"\")","v":""},{"$f":"IF(DataLog!$C1618=\"Log value\",DataLog!AB1618,\"\")","v":""},{"$f":"IF(DataLog!$C1618=\"Log value\",DataLog!AC1618,\"\")","v":""},{"$f":"IF(DataLog!$C1618=\"Log value\",DataLog!AD1618,\"\")","v":""},{"$f":"IF(DataLog!$C1618=\"Log value\",DataLog!AE1618,\"\")","v":""},{"$f":"IF(DataLog!$C1618=\"Log value\",DataLog!AF1618,\"\")","v":""},{"$f":"IF(DataLog!$C1618=\"Log value\",DataLog!AG1618,\"\")","v":""},{"$f":"IF(DataLog!$C1618=\"Log value\",DataLog!AH1618,\"\")","v":""},{"$f":"IF(DataLog!$C1618=\"Log value\",DataLog!AI1618,\"\")","v":""},{"$f":"IF(DataLog!$C1618=\"Log value\",DataLog!AJ1618,\"\")","v":""},{"$f":"IF(DataLog!$C1618=\"Log value\",DataLog!AK1618,\"\")","v":""},{"$f":"IF(DataLog!$C1618=\"Log value\",DataLog!AL1618,\"\")","v":""},{"$f":"IF(DataLog!$C1618=\"Log value\",DataLog!AM1618,\"\")","v":""}]
[null,null,null,null,null,null,{"$f":"IF(DataLog!$C1621=\"Log value\",DataLog!D1621&\"_\"&TEXT(DataLog!B1621,\"åååå-mm-dd\"),\"\")","v":""},{"$f":"IF(DataLog!$C1621=\"Log value\",DataLog!E1621,\"\")","v":""},{"$f":"IF(DataLog!$C1621=\"Log value\",DataLog!F1621,\"\")","v":""},{"$f":"IF(DataLog!$C1621=\"Log value\",DataLog!G1621,\"\")","v":""},{"$f":"IF(DataLog!$C1621=\"Log value\",DataLog!H1621,\"\")","v":""},{"$f":"IF(DataLog!$C1621=\"Log value\",DataLog!I1621,\"\")","v":""},{"$f":"IF(DataLog!$C1621=\"Log value\",DataLog!J1621,\"\")","v":""},{"$f":"IF(DataLog!$C1621=\"Log value\",DataLog!K1621,\"\")","v":""},{"$f":"IF(DataLog!$C1621=\"Log value\",DataLog!L1621,\"\")","v":""},{"$f":"IF(DataLog!$C1621=\"Log value\",DataLog!M1621,\"\")","v":""},{"$f":"IF(DataLog!$C1621=\"Log value\",DataLog!N1621,\"\")","v":""},{"$f":"IF(DataLog!$C1621=\"Log value\",DataLog!O1621,\"\")","v":""},{"$f":"IF(DataLog!$C1621=\"Log value\",DataLog!P1621,\"\")","v":""},{"$f":"IF(DataLog!$C1621=\"Log value\",DataLog!Q1621,\"\")","v":""},{"$f":"IF(DataLog!$C1621=\"Log value\",DataLog!R1621,\"\")","v":""},{"$f":"IF(DataLog!$C1621=\"Log value\",DataLog!S1621,\"\")","v":""},{"$f":"IF(DataLog!$C1621=\"Log value\",DataLog!T1621,\"\")","v":""},{"$f":"IF(DataLog!$C1621=\"Log value\",DataLog!U1621,\"\")","v":""},{"$f":"IF(DataLog!$C1621=\"Log value\",DataLog!V1621,\"\")","v":""},{"$f":"IF(DataLog!$C1621=\"Log value\",DataLog!W1621,\"\")","v":""},{"$f":"IF(DataLog!$C1621=\"Log value\",DataLog!X1621,\"\")","v":""},{"$f":"IF(DataLog!$C1621=\"Log value\",DataLog!Y1621,\"\")","v":""},{"$f":"IF(DataLog!$C1621=\"Log value\",DataLog!Z1621,\"\")","v":""},{"$f":"IF(DataLog!$C1621=\"Log value\",DataLog!AA1621,\"\")","v":""},{"$f":"IF(DataLog!$C1621=\"Log value\",DataLog!AB1621,\"\")","v":""},{"$f":"IF(DataLog!$C1621=\"Log value\",DataLog!AC1621,\"\")","v":""},{"$f":"IF(DataLog!$C1621=\"Log value\",DataLog!AD1621,\"\")","v":""},{"$f":"IF(DataLog!$C1621=\"Log value\",DataLog!AE1621,\"\")","v":""},{"$f":"IF(DataLog!$C1621=\"Log value\",DataLog!AF1621,\"\")","v":""},{"$f":"IF(DataLog!$C1621=\"Log value\",DataLog!AG1621,\"\")","v":""},{"$f":"IF(DataLog!$C1621=\"Log value\",DataLog!AH1621,\"\")","v":""},{"$f":"IF(DataLog!$C1621=\"Log value\",DataLog!AI1621,\"\")","v":""},{"$f":"IF(DataLog!$C1621=\"Log value\",DataLog!AJ1621,\"\")","v":""},{"$f":"IF(DataLog!$C1621=\"Log value\",DataLog!AK1621,\"\")","v":""},{"$f":"IF(DataLog!$C1621=\"Log value\",DataLog!AL1621,\"\")","v":""},{"$f":"IF(DataLog!$C1621=\"Log value\",DataLog!AM1621,\"\")","v":""}]
[null,null,null,null,null,null,{"$f":"IF(DataLog!$C1624=\"Log value\",DataLog!D1624&\"_\"&TEXT(DataLog!B1624,\"åååå-mm-dd\"),\"\")","v":""},{"$f":"IF(DataLog!$C1624=\"Log value\",DataLog!E1624,\"\")","v":""},{"$f":"IF(DataLog!$C1624=\"Log value\",DataLog!F1624,\"\")","v":""},{"$f":"IF(DataLog!$C1624=\"Log value\",DataLog!G1624,\"\")","v":""},{"$f":"IF(DataLog!$C1624=\"Log value\",DataLog!H1624,\"\")","v":""},{"$f":"IF(DataLog!$C1624=\"Log value\",DataLog!I1624,\"\")","v":""},{"$f":"IF(DataLog!$C1624=\"Log value\",DataLog!J1624,\"\")","v":""},{"$f":"IF(DataLog!$C1624=\"Log value\",DataLog!K1624,\"\")","v":""},{"$f":"IF(DataLog!$C1624=\"Log value\",DataLog!L1624,\"\")","v":""},{"$f":"IF(DataLog!$C1624=\"Log value\",DataLog!M1624,\"\")","v":""},{"$f":"IF(DataLog!$C1624=\"Log value\",DataLog!N1624,\"\")","v":""},{"$f":"IF(DataLog!$C1624=\"Log value\",DataLog!O1624,\"\")","v":""},{"$f":"IF(DataLog!$C1624=\"Log value\",DataLog!P1624,\"\")","v":""},{"$f":"IF(DataLog!$C1624=\"Log value\",DataLog!Q1624,\"\")","v":""},{"$f":"IF(DataLog!$C1624=\"Log value\",DataLog!R1624,\"\")","v":""},{"$f":"IF(DataLog!$C1624=\"Log value\",DataLog!S1624,\"\")","v":""},{"$f":"IF(DataLog!$C1624=\"Log value\",DataLog!T1624,\"\")","v":""},{"$f":"IF(DataLog!$C1624=\"Log value\",DataLog!U1624,\"\")","v":""},{"$f":"IF(DataLog!$C1624=\"Log value\",DataLog!V1624,\"\")","v":""},{"$f":"IF(DataLog!$C1624=\"Log value\",DataLog!W1624,\"\")","v":""},{"$f":"IF(DataLog!$C1624=\"Log value\",DataLog!X1624,\"\")","v":""},{"$f":"IF(DataLog!$C1624=\"Log value\",DataLog!Y1624,\"\")","v":""},{"$f":"IF(DataLog!$C1624=\"Log value\",DataLog!Z1624,\"\")","v":""},{"$f":"IF(DataLog!$C1624=\"Log value\",DataLog!AA1624,\"\")","v":""},{"$f":"IF(DataLog!$C1624=\"Log value\",DataLog!AB1624,\"\")","v":""},{"$f":"IF(DataLog!$C1624=\"Log value\",DataLog!AC1624,\"\")","v":""},{"$f":"IF(DataLog!$C1624=\"Log value\",DataLog!AD1624,\"\")","v":""},{"$f":"IF(DataLog!$C1624=\"Log value\",DataLog!AE1624,\"\")","v":""},{"$f":"IF(DataLog!$C1624=\"Log value\",DataLog!AF1624,\"\")","v":""},{"$f":"IF(DataLog!$C1624=\"Log value\",DataLog!AG1624,\"\")","v":""},{"$f":"IF(DataLog!$C1624=\"Log value\",DataLog!AH1624,\"\")","v":""},{"$f":"IF(DataLog!$C1624=\"Log value\",DataLog!AI1624,\"\")","v":""},{"$f":"IF(DataLog!$C1624=\"Log value\",DataLog!AJ1624,\"\")","v":""},{"$f":"IF(DataLog!$C1624=\"Log value\",DataLog!AK1624,\"\")","v":""},{"$f":"IF(DataLog!$C1624=\"Log value\",DataLog!AL1624,\"\")","v":""},{"$f":"IF(DataLog!$C1624=\"Log value\",DataLog!AM1624,\"\")","v":""}]
[null,null,null,null,null,null,{"$f":"IF(DataLog!$C1625=\"Log value\",DataLog!D1625&\"_\"&TEXT(DataLog!B1625,\"åååå-mm-dd\"),\"\")","v":""},{"$f":"IF(DataLog!$C1625=\"Log value\",DataLog!E1625,\"\")","v":""},{"$f":"IF(DataLog!$C1625=\"Log value\",DataLog!F1625,\"\")","v":""},{"$f":"IF(DataLog!$C1625=\"Log value\",DataLog!G1625,\"\")","v":""},{"$f":"IF(DataLog!$C1625=\"Log value\",DataLog!H1625,\"\")","v":""},{"$f":"IF(DataLog!$C1625=\"Log value\",DataLog!I1625,\"\")","v":""},{"$f":"IF(DataLog!$C1625=\"Log value\",DataLog!J1625,\"\")","v":""},{"$f":"IF(DataLog!$C1625=\"Log value\",DataLog!K1625,\"\")","v":""},{"$f":"IF(DataLog!$C1625=\"Log value\",DataLog!L1625,\"\")","v":""},{"$f":"IF(DataLog!$C1625=\"Log value\",DataLog!M1625,\"\")","v":""},{"$f":"IF(DataLog!$C1625=\"Log value\",DataLog!N1625,\"\")","v":""},{"$f":"IF(DataLog!$C1625=\"Log value\",DataLog!O1625,\"\")","v":""},{"$f":"IF(DataLog!$C1625=\"Log value\",DataLog!P1625,\"\")","v":""},{"$f":"IF(DataLog!$C1625=\"Log value\",DataLog!Q1625,\"\")","v":""},{"$f":"IF(DataLog!$C1625=\"Log value\",DataLog!R1625,\"\")","v":""},{"$f":"IF(DataLog!$C1625=\"Log value\",DataLog!S1625,\"\")","v":""},{"$f":"IF(DataLog!$C1625=\"Log value\",DataLog!T1625,\"\")","v":""},{"$f":"IF(DataLog!$C1625=\"Log value\",DataLog!U1625,\"\")","v":""},{"$f":"IF(DataLog!$C1625=\"Log value\",DataLog!V1625,\"\")","v":""},{"$f":"IF(DataLog!$C1625=\"Log value\",DataLog!W1625,\"\")","v":""},{"$f":"IF(DataLog!$C1625=\"Log value\",DataLog!X1625,\"\")","v":""},{"$f":"IF(DataLog!$C1625=\"Log value\",DataLog!Y1625,\"\")","v":""},{"$f":"IF(DataLog!$C1625=\"Log value\",DataLog!Z1625,\"\")","v":""},{"$f":"IF(DataLog!$C1625=\"Log value\",DataLog!AA1625,\"\")","v":""},{"$f":"IF(DataLog!$C1625=\"Log value\",DataLog!AB1625,\"\")","v":""},{"$f":"IF(DataLog!$C1625=\"Log value\",DataLog!AC1625,\"\")","v":""},{"$f":"IF(DataLog!$C1625=\"Log value\",DataLog!AD1625,\"\")","v":""},{"$f":"IF(DataLog!$C1625=\"Log value\",DataLog!AE1625,\"\")","v":""},{"$f":"IF(DataLog!$C1625=\"Log value\",DataLog!AF1625,\"\")","v":""},{"$f":"IF(DataLog!$C1625=\"Log value\",DataLog!AG1625,\"\")","v":""},{"$f":"IF(DataLog!$C1625=\"Log value\",DataLog!AH1625,\"\")","v":""},{"$f":"IF(DataLog!$C1625=\"Log value\",DataLog!AI1625,\"\")","v":""},{"$f":"IF(DataLog!$C1625=\"Log value\",DataLog!AJ1625,\"\")","v":""},{"$f":"IF(DataLog!$C1625=\"Log value\",DataLog!AK1625,\"\")","v":""},{"$f":"IF(DataLog!$C1625=\"Log value\",DataLog!AL1625,\"\")","v":""},{"$f":"IF(DataLog!$C1625=\"Log value\",DataLog!AM1625,\"\")","v":""}]
[null,null,null,null,null,null,{"$f":"IF(DataLog!$C1628=\"Log value\",DataLog!D1628&\"_\"&TEXT(DataLog!B1628,\"åååå-mm-dd\"),\"\")","v":""},{"$f":"IF(DataLog!$C1628=\"Log value\",DataLog!E1628,\"\")","v":""},{"$f":"IF(DataLog!$C1628=\"Log value\",DataLog!F1628,\"\")","v":""},{"$f":"IF(DataLog!$C1628=\"Log value\",DataLog!G1628,\"\")","v":""},{"$f":"IF(DataLog!$C1628=\"Log value\",DataLog!H1628,\"\")","v":""},{"$f":"IF(DataLog!$C1628=\"Log value\",DataLog!I1628,\"\")","v":""},{"$f":"IF(DataLog!$C1628=\"Log value\",DataLog!J1628,\"\")","v":""},{"$f":"IF(DataLog!$C1628=\"Log value\",DataLog!K1628,\"\")","v":""},{"$f":"IF(DataLog!$C1628=\"Log value\",DataLog!L1628,\"\")","v":""},{"$f":"IF(DataLog!$C1628=\"Log value\",DataLog!M1628,\"\")","v":""},{"$f":"IF(DataLog!$C1628=\"Log value\",DataLog!N1628,\"\")","v":""},{"$f":"IF(DataLog!$C1628=\"Log value\",DataLog!O1628,\"\")","v":""},{"$f":"IF(DataLog!$C1628=\"Log value\",DataLog!P1628,\"\")","v":""},{"$f":"IF(DataLog!$C1628=\"Log value\",DataLog!Q1628,\"\")","v":""},{"$f":"IF(DataLog!$C1628=\"Log value\",DataLog!R1628,\"\")","v":""},{"$f":"IF(DataLog!$C1628=\"Log value\",DataLog!S1628,\"\")","v":""},{"$f":"IF(DataLog!$C1628=\"Log value\",DataLog!T1628,\"\")","v":""},{"$f":"IF(DataLog!$C1628=\"Log value\",DataLog!U1628,\"\")","v":""},{"$f":"IF(DataLog!$C1628=\"Log value\",DataLog!V1628,\"\")","v":""},{"$f":"IF(DataLog!$C1628=\"Log value\",DataLog!W1628,\"\")","v":""},{"$f":"IF(DataLog!$C1628=\"Log value\",DataLog!X1628,\"\")","v":""},{"$f":"IF(DataLog!$C1628=\"Log value\",DataLog!Y1628,\"\")","v":""},{"$f":"IF(DataLog!$C1628=\"Log value\",DataLog!Z1628,\"\")","v":""},{"$f":"IF(DataLog!$C1628=\"Log value\",DataLog!AA1628,\"\")","v":""},{"$f":"IF(DataLog!$C1628=\"Log value\",DataLog!AB1628,\"\")","v":""},{"$f":"IF(DataLog!$C1628=\"Log value\",DataLog!AC1628,\"\")","v":""},{"$f":"IF(DataLog!$C1628=\"Log value\",DataLog!AD1628,\"\")","v":""},{"$f":"IF(DataLog!$C1628=\"Log value\",DataLog!AE1628,\"\")","v":""},{"$f":"IF(DataLog!$C1628=\"Log value\",DataLog!AF1628,\"\")","v":""},{"$f":"IF(DataLog!$C1628=\"Log value\",DataLog!AG1628,\"\")","v":""},{"$f":"IF(DataLog!$C1628=\"Log value\",DataLog!AH1628,\"\")","v":""},{"$f":"IF(DataLog!$C1628=\"Log value\",DataLog!AI1628,\"\")","v":""},{"$f":"IF(DataLog!$C1628=\"Log value\",DataLog!AJ1628,\"\")","v":""},{"$f":"IF(DataLog!$C1628=\"Log value\",DataLog!AK1628,\"\")","v":""},{"$f":"IF(DataLog!$C1628=\"Log value\",DataLog!AL1628,\"\")","v":""},{"$f":"IF(DataLog!$C1628=\"Log value\",DataLog!AM1628,\"\")","v":""}]
[null,null,null,null,null,null,{"$f":"IF(DataLog!$C1630=\"Log value\",DataLog!D1630&\"_\"&TEXT(DataLog!B1630,\"åååå-mm-dd\"),\"\")","v":""},{"$f":"IF(DataLog!$C1630=\"Log value\",DataLog!E1630,\"\")","v":""},{"$f":"IF(DataLog!$C1630=\"Log value\",DataLog!F1630,\"\")","v":""},{"$f":"IF(DataLog!$C1630=\"Log value\",DataLog!G1630,\"\")","v":""},{"$f":"IF(DataLog!$C1630=\"Log value\",DataLog!H1630,\"\")","v":""},{"$f":"IF(DataLog!$C1630=\"Log value\",DataLog!I1630,\"\")","v":""},{"$f":"IF(DataLog!$C1630=\"Log value\",DataLog!J1630,\"\")","v":""},{"$f":"IF(DataLog!$C1630=\"Log value\",DataLog!K1630,\"\")","v":""},{"$f":"IF(DataLog!$C1630=\"Log value\",DataLog!L1630,\"\")","v":""},{"$f":"IF(DataLog!$C1630=\"Log value\",DataLog!M1630,\"\")","v":""},{"$f":"IF(DataLog!$C1630=\"Log value\",DataLog!N1630,\"\")","v":""},{"$f":"IF(DataLog!$C1630=\"Log value\",DataLog!O1630,\"\")","v":""},{"$f":"IF(DataLog!$C1630=\"Log value\",DataLog!P1630,\"\")","v":""},{"$f":"IF(DataLog!$C1630=\"Log value\",DataLog!Q1630,\"\")","v":""},{"$f":"IF(DataLog!$C1630=\"Log value\",DataLog!R1630,\"\")","v":""},{"$f":"IF(DataLog!$C1630=\"Log value\",DataLog!S1630,\"\")","v":""},{"$f":"IF(DataLog!$C1630=\"Log value\",DataLog!T1630,\"\")","v":""},{"$f":"IF(DataLog!$C1630=\"Log value\",DataLog!U1630,\"\")","v":""},{"$f":"IF(DataLog!$C1630=\"Log value\",DataLog!V1630,\"\")","v":""},{"$f":"IF(DataLog!$C1630=\"Log value\",DataLog!W1630,\"\")","v":""},{"$f":"IF(DataLog!$C1630=\"Log value\",DataLog!X1630,\"\")","v":""},{"$f":"IF(DataLog!$C1630=\"Log value\",DataLog!Y1630,\"\")","v":""},{"$f":"IF(DataLog!$C1630=\"Log value\",DataLog!Z1630,\"\")","v":""},{"$f":"IF(DataLog!$C1630=\"Log value\",DataLog!AA1630,\"\")","v":""},{"$f":"IF(DataLog!$C1630=\"Log value\",DataLog!AB1630,\"\")","v":""},{"$f":"IF(DataLog!$C1630=\"Log value\",DataLog!AC1630,\"\")","v":""},{"$f":"IF(DataLog!$C1630=\"Log value\",DataLog!AD1630,\"\")","v":""},{"$f":"IF(DataLog!$C1630=\"Log value\",DataLog!AE1630,\"\")","v":""},{"$f":"IF(DataLog!$C1630=\"Log value\",DataLog!AF1630,\"\")","v":""},{"$f":"IF(DataLog!$C1630=\"Log value\",DataLog!AG1630,\"\")","v":""},{"$f":"IF(DataLog!$C1630=\"Log value\",DataLog!AH1630,\"\")","v":""},{"$f":"IF(DataLog!$C1630=\"Log value\",DataLog!AI1630,\"\")","v":""},{"$f":"IF(DataLog!$C1630=\"Log value\",DataLog!AJ1630,\"\")","v":""},{"$f":"IF(DataLog!$C1630=\"Log value\",DataLog!AK1630,\"\")","v":""},{"$f":"IF(DataLog!$C1630=\"Log value\",DataLog!AL1630,\"\")","v":""},{"$f":"IF(DataLog!$C1630=\"Log value\",DataLog!AM1630,\"\")","v":""}]
[null,null,null,null,null,null,{"$f":"IF(DataLog!$C1633=\"Log value\",DataLog!D1633&\"_\"&TEXT(DataLog!B1633,\"åååå-mm-dd\"),\"\")","v":""},{"$f":"IF(DataLog!$C1633=\"Log value\",DataLog!E1633,\"\")","v":""},{"$f":"IF(DataLog!$C1633=\"Log value\",DataLog!F1633,\"\")","v":""},{"$f":"IF(DataLog!$C1633=\"Log value\",DataLog!G1633,\"\")","v":""},{"$f":"IF(DataLog!$C1633=\"Log value\",DataLog!H1633,\"\")","v":""},{"$f":"IF(DataLog!$C1633=\"Log value\",DataLog!I1633,\"\")","v":""},{"$f":"IF(DataLog!$C1633=\"Log value\",DataLog!J1633,\"\")","v":""},{"$f":"IF(DataLog!$C1633=\"Log value\",DataLog!K1633,\"\")","v":""},{"$f":"IF(DataLog!$C1633=\"Log value\",DataLog!L1633,\"\")","v":""},{"$f":"IF(DataLog!$C1633=\"Log value\",DataLog!M1633,\"\")","v":""},{"$f":"IF(DataLog!$C1633=\"Log value\",DataLog!N1633,\"\")","v":""},{"$f":"IF(DataLog!$C1633=\"Log value\",DataLog!O1633,\"\")","v":""},{"$f":"IF(DataLog!$C1633=\"Log value\",DataLog!P1633,\"\")","v":""},{"$f":"IF(DataLog!$C1633=\"Log value\",DataLog!Q1633,\"\")","v":""},{"$f":"IF(DataLog!$C1633=\"Log value\",DataLog!R1633,\"\")","v":""},{"$f":"IF(DataLog!$C1633=\"Log value\",DataLog!S1633,\"\")","v":""},{"$f":"IF(DataLog!$C1633=\"Log value\",DataLog!T1633,\"\")","v":""},{"$f":"IF(DataLog!$C1633=\"Log value\",DataLog!U1633,\"\")","v":""},{"$f":"IF(DataLog!$C1633=\"Log value\",DataLog!V1633,\"\")","v":""},{"$f":"IF(DataLog!$C1633=\"Log value\",DataLog!W1633,\"\")","v":""},{"$f":"IF(DataLog!$C1633=\"Log value\",DataLog!X1633,\"\")","v":""},{"$f":"IF(DataLog!$C1633=\"Log value\",DataLog!Y1633,\"\")","v":""},{"$f":"IF(DataLog!$C1633=\"Log value\",DataLog!Z1633,\"\")","v":""},{"$f":"IF(DataLog!$C1633=\"Log value\",DataLog!AA1633,\"\")","v":""},{"$f":"IF(DataLog!$C1633=\"Log value\",DataLog!AB1633,\"\")","v":""},{"$f":"IF(DataLog!$C1633=\"Log value\",DataLog!AC1633,\"\")","v":""},{"$f":"IF(DataLog!$C1633=\"Log value\",DataLog!AD1633,\"\")","v":""},{"$f":"IF(DataLog!$C1633=\"Log value\",DataLog!AE1633,\"\")","v":""},{"$f":"IF(DataLog!$C1633=\"Log value\",DataLog!AF1633,\"\")","v":""},{"$f":"IF(DataLog!$C1633=\"Log value\",DataLog!AG1633,\"\")","v":""},{"$f":"IF(DataLog!$C1633=\"Log value\",DataLog!AH1633,\"\")","v":""},{"$f":"IF(DataLog!$C1633=\"Log value\",DataLog!AI1633,\"\")","v":""},{"$f":"IF(DataLog!$C1633=\"Log value\",DataLog!AJ1633,\"\")","v":""},{"$f":"IF(DataLog!$C1633=\"Log value\",DataLog!AK1633,\"\")","v":""},{"$f":"IF(DataLog!$C1633=\"Log value\",DataLog!AL1633,\"\")","v":""},{"$f":"IF(DataLog!$C1633=\"Log value\",DataLog!AM1633,\"\")","v":""}]
[null,null,null,null,null,null,{"$f":"IF(DataLog!$C1634=\"Log value\",DataLog!D1634&\"_\"&TEXT(DataLog!B1634,\"åååå-mm-dd\"),\"\")","v":""},{"$f":"IF(DataLog!$C1634=\"Log value\",DataLog!E1634,\"\")","v":""},{"$f":"IF(DataLog!$C1634=\"Log value\",DataLog!F1634,\"\")","v":""},{"$f":"IF(DataLog!$C1634=\"Log value\",DataLog!G1634,\"\")","v":""},{"$f":"IF(DataLog!$C1634=\"Log value\",DataLog!H1634,\"\")","v":""},{"$f":"IF(DataLog!$C1634=\"Log value\",DataLog!I1634,\"\")","v":""},{"$f":"IF(DataLog!$C1634=\"Log value\",DataLog!J1634,\"\")","v":""},{"$f":"IF(DataLog!$C1634=\"Log value\",DataLog!K1634,\"\")","v":""},{"$f":"IF(DataLog!$C1634=\"Log value\",DataLog!L1634,\"\")","v":""},{"$f":"IF(DataLog!$C1634=\"Log value\",DataLog!M1634,\"\")","v":""},{"$f":"IF(DataLog!$C1634=\"Log value\",DataLog!N1634,\"\")","v":""},{"$f":"IF(DataLog!$C1634=\"Log value\",DataLog!O1634,\"\")","v":""},{"$f":"IF(DataLog!$C1634=\"Log value\",DataLog!P1634,\"\")","v":""},{"$f":"IF(DataLog!$C1634=\"Log value\",DataLog!Q1634,\"\")","v":""},{"$f":"IF(DataLog!$C1634=\"Log value\",DataLog!R1634,\"\")","v":""},{"$f":"IF(DataLog!$C1634=\"Log value\",DataLog!S1634,\"\")","v":""},{"$f":"IF(DataLog!$C1634=\"Log value\",DataLog!T1634,\"\")","v":""},{"$f":"IF(DataLog!$C1634=\"Log value\",DataLog!U1634,\"\")","v":""},{"$f":"IF(DataLog!$C1634=\"Log value\",DataLog!V1634,\"\")","v":""},{"$f":"IF(DataLog!$C1634=\"Log value\",DataLog!W1634,\"\")","v":""},{"$f":"IF(DataLog!$C1634=\"Log value\",DataLog!X1634,\"\")","v":""},{"$f":"IF(DataLog!$C1634=\"Log value\",DataLog!Y1634,\"\")","v":""},{"$f":"IF(DataLog!$C1634=\"Log value\",DataLog!Z1634,\"\")","v":""},{"$f":"IF(DataLog!$C1634=\"Log value\",DataLog!AA1634,\"\")","v":""},{"$f":"IF(DataLog!$C1634=\"Log value\",DataLog!AB1634,\"\")","v":""},{"$f":"IF(DataLog!$C1634=\"Log value\",DataLog!AC1634,\"\")","v":""},{"$f":"IF(DataLog!$C1634=\"Log value\",DataLog!AD1634,\"\")","v":""},{"$f":"IF(DataLog!$C1634=\"Log value\",DataLog!AE1634,\"\")","v":""},{"$f":"IF(DataLog!$C1634=\"Log value\",DataLog!AF1634,\"\")","v":""},{"$f":"IF(DataLog!$C1634=\"Log value\",DataLog!AG1634,\"\")","v":""},{"$f":"IF(DataLog!$C1634=\"Log value\",DataLog!AH1634,\"\")","v":""},{"$f":"IF(DataLog!$C1634=\"Log value\",DataLog!AI1634,\"\")","v":""},{"$f":"IF(DataLog!$C1634=\"Log value\",DataLog!AJ1634,\"\")","v":""},{"$f":"IF(DataLog!$C1634=\"Log value\",DataLog!AK1634,\"\")","v":""},{"$f":"IF(DataLog!$C1634=\"Log value\",DataLog!AL1634,\"\")","v":""},{"$f":"IF(DataLog!$C1634=\"Log value\",DataLog!AM1634,\"\")","v":""}]
[null,null,null,null,null,null,{"$f":"IF(DataLog!$C1636=\"Log value\",DataLog!D1636&\"_\"&TEXT(DataLog!B1636,\"åååå-mm-dd\"),\"\")","v":""},{"$f":"IF(DataLog!$C1636=\"Log value\",DataLog!E1636,\"\")","v":""},{"$f":"IF(DataLog!$C1636=\"Log value\",DataLog!F1636,\"\")","v":""},{"$f":"IF(DataLog!$C1636=\"Log value\",DataLog!G1636,\"\")","v":""},{"$f":"IF(DataLog!$C1636=\"Log value\",DataLog!H1636,\"\")","v":""},{"$f":"IF(DataLog!$C1636=\"Log value\",DataLog!I1636,\"\")","v":""},{"$f":"IF(DataLog!$C1636=\"Log value\",DataLog!J1636,\"\")","v":""},{"$f":"IF(DataLog!$C1636=\"Log value\",DataLog!K1636,\"\")","v":""},{"$f":"IF(DataLog!$C1636=\"Log value\",DataLog!L1636,\"\")","v":""},{"$f":"IF(DataLog!$C1636=\"Log value\",DataLog!M1636,\"\")","v":""},{"$f":"IF(DataLog!$C1636=\"Log value\",DataLog!N1636,\"\")","v":""},{"$f":"IF(DataLog!$C1636=\"Log value\",DataLog!O1636,\"\")","v":""},{"$f":"IF(DataLog!$C1636=\"Log value\",DataLog!P1636,\"\")","v":""},{"$f":"IF(DataLog!$C1636=\"Log value\",DataLog!Q1636,\"\")","v":""},{"$f":"IF(DataLog!$C1636=\"Log value\",DataLog!R1636,\"\")","v":""},{"$f":"IF(DataLog!$C1636=\"Log value\",DataLog!S1636,\"\")","v":""},{"$f":"IF(DataLog!$C1636=\"Log value\",DataLog!T1636,\"\")","v":""},{"$f":"IF(DataLog!$C1636=\"Log value\",DataLog!U1636,\"\")","v":""},{"$f":"IF(DataLog!$C1636=\"Log value\",DataLog!V1636,\"\")","v":""},{"$f":"IF(DataLog!$C1636=\"Log value\",DataLog!W1636,\"\")","v":""},{"$f":"IF(DataLog!$C1636=\"Log value\",DataLog!X1636,\"\")","v":""},{"$f":"IF(DataLog!$C1636=\"Log value\",DataLog!Y1636,\"\")","v":""},{"$f":"IF(DataLog!$C1636=\"Log value\",DataLog!Z1636,\"\")","v":""},{"$f":"IF(DataLog!$C1636=\"Log value\",DataLog!AA1636,\"\")","v":""},{"$f":"IF(DataLog!$C1636=\"Log value\",DataLog!AB1636,\"\")","v":""},{"$f":"IF(DataLog!$C1636=\"Log value\",DataLog!AC1636,\"\")","v":""},{"$f":"IF(DataLog!$C1636=\"Log value\",DataLog!AD1636,\"\")","v":""},{"$f":"IF(DataLog!$C1636=\"Log value\",DataLog!AE1636,\"\")","v":""},{"$f":"IF(DataLog!$C1636=\"Log value\",DataLog!AF1636,\"\")","v":""},{"$f":"IF(DataLog!$C1636=\"Log value\",DataLog!AG1636,\"\")","v":""},{"$f":"IF(DataLog!$C1636=\"Log value\",DataLog!AH1636,\"\")","v":""},{"$f":"IF(DataLog!$C1636=\"Log value\",DataLog!AI1636,\"\")","v":""},{"$f":"IF(DataLog!$C1636=\"Log value\",DataLog!AJ1636,\"\")","v":""},{"$f":"IF(DataLog!$C1636=\"Log value\",DataLog!AK1636,\"\")","v":""},{"$f":"IF(DataLog!$C1636=\"Log value\",DataLog!AL1636,\"\")","v":""},{"$f":"IF(DataLog!$C1636=\"Log value\",DataLog!AM1636,\"\")","v":""}]
[null,null,null,null,null,null,{"$f":"IF(DataLog!$C1639=\"Log value\",DataLog!D1639&\"_\"&TEXT(DataLog!B1639,\"åååå-mm-dd\"),\"\")","v":""},{"$f":"IF(DataLog!$C1639=\"Log value\",DataLog!E1639,\"\")","v":""},{"$f":"IF(DataLog!$C1639=\"Log value\",DataLog!F1639,\"\")","v":""},{"$f":"IF(DataLog!$C1639=\"Log value\",DataLog!G1639,\"\")","v":""},{"$f":"IF(DataLog!$C1639=\"Log value\",DataLog!H1639,\"\")","v":""},{"$f":"IF(DataLog!$C1639=\"Log value\",DataLog!I1639,\"\")","v":""},{"$f":"IF(DataLog!$C1639=\"Log value\",DataLog!J1639,\"\")","v":""},{"$f":"IF(DataLog!$C1639=\"Log value\",DataLog!K1639,\"\")","v":""},{"$f":"IF(DataLog!$C1639=\"Log value\",DataLog!L1639,\"\")","v":""},{"$f":"IF(DataLog!$C1639=\"Log value\",DataLog!M1639,\"\")","v":""},{"$f":"IF(DataLog!$C1639=\"Log value\",DataLog!N1639,\"\")","v":""},{"$f":"IF(DataLog!$C1639=\"Log value\",DataLog!O1639,\"\")","v":""},{"$f":"IF(DataLog!$C1639=\"Log value\",DataLog!P1639,\"\")","v":""},{"$f":"IF(DataLog!$C1639=\"Log value\",DataLog!Q1639,\"\")","v":""},{"$f":"IF(DataLog!$C1639=\"Log value\",DataLog!R1639,\"\")","v":""},{"$f":"IF(DataLog!$C1639=\"Log value\",DataLog!S1639,\"\")","v":""},{"$f":"IF(DataLog!$C1639=\"Log value\",DataLog!T1639,\"\")","v":""},{"$f":"IF(DataLog!$C1639=\"Log value\",DataLog!U1639,\"\")","v":""},{"$f":"IF(DataLog!$C1639=\"Log value\",DataLog!V1639,\"\")","v":""},{"$f":"IF(DataLog!$C1639=\"Log value\",DataLog!W1639,\"\")","v":""},{"$f":"IF(DataLog!$C1639=\"Log value\",DataLog!X1639,\"\")","v":""},{"$f":"IF(DataLog!$C1639=\"Log value\",DataLog!Y1639,\"\")","v":""},{"$f":"IF(DataLog!$C1639=\"Log value\",DataLog!Z1639,\"\")","v":""},{"$f":"IF(DataLog!$C1639=\"Log value\",DataLog!AA1639,\"\")","v":""},{"$f":"IF(DataLog!$C1639=\"Log value\",DataLog!AB1639,\"\")","v":""},{"$f":"IF(DataLog!$C1639=\"Log value\",DataLog!AC1639,\"\")","v":""},{"$f":"IF(DataLog!$C1639=\"Log value\",DataLog!AD1639,\"\")","v":""},{"$f":"IF(DataLog!$C1639=\"Log value\",DataLog!AE1639,\"\")","v":""},{"$f":"IF(DataLog!$C1639=\"Log value\",DataLog!AF1639,\"\")","v":""},{"$f":"IF(DataLog!$C1639=\"Log value\",DataLog!AG1639,\"\")","v":""},{"$f":"IF(DataLog!$C1639=\"Log value\",DataLog!AH1639,\"\")","v":""},{"$f":"IF(DataLog!$C1639=\"Log value\",DataLog!AI1639,\"\")","v":""},{"$f":"IF(DataLog!$C1639=\"Log value\",DataLog!AJ1639,\"\")","v":""},{"$f":"IF(DataLog!$C1639=\"Log value\",DataLog!AK1639,\"\")","v":""},{"$f":"IF(DataLog!$C1639=\"Log value\",DataLog!AL1639,\"\")","v":""},{"$f":"IF(DataLog!$C1639=\"Log value\",DataLog!AM1639,\"\")","v":""}]
[null,null,null,null,null,null,{"$f":"IF(DataLog!$C1642=\"Log value\",DataLog!D1642&\"_\"&TEXT(DataLog!B1642,\"åååå-mm-dd\"),\"\")","v":""},{"$f":"IF(DataLog!$C1642=\"Log value\",DataLog!E1642,\"\")","v":""},{"$f":"IF(DataLog!$C1642=\"Log value\",DataLog!F1642,\"\")","v":""},{"$f":"IF(DataLog!$C1642=\"Log value\",DataLog!G1642,\"\")","v":""},{"$f":"IF(DataLog!$C1642=\"Log value\",DataLog!H1642,\"\")","v":""},{"$f":"IF(DataLog!$C1642=\"Log value\",DataLog!I1642,\"\")","v":""},{"$f":"IF(DataLog!$C1642=\"Log value\",DataLog!J1642,\"\")","v":""},{"$f":"IF(DataLog!$C1642=\"Log value\",DataLog!K1642,\"\")","v":""},{"$f":"IF(DataLog!$C1642=\"Log value\",DataLog!L1642,\"\")","v":""},{"$f":"IF(DataLog!$C1642=\"Log value\",DataLog!M1642,\"\")","v":""},{"$f":"IF(DataLog!$C1642=\"Log value\",DataLog!N1642,\"\")","v":""},{"$f":"IF(DataLog!$C1642=\"Log value\",DataLog!O1642,\"\")","v":""},{"$f":"IF(DataLog!$C1642=\"Log value\",DataLog!P1642,\"\")","v":""},{"$f":"IF(DataLog!$C1642=\"Log value\",DataLog!Q1642,\"\")","v":""},{"$f":"IF(DataLog!$C1642=\"Log value\",DataLog!R1642,\"\")","v":""},{"$f":"IF(DataLog!$C1642=\"Log value\",DataLog!S1642,\"\")","v":""},{"$f":"IF(DataLog!$C1642=\"Log value\",DataLog!T1642,\"\")","v":""},{"$f":"IF(DataLog!$C1642=\"Log value\",DataLog!U1642,\"\")","v":""},{"$f":"IF(DataLog!$C1642=\"Log value\",DataLog!V1642,\"\")","v":""},{"$f":"IF(DataLog!$C1642=\"Log value\",DataLog!W1642,\"\")","v":""},{"$f":"IF(DataLog!$C1642=\"Log value\",DataLog!X1642,\"\")","v":""},{"$f":"IF(DataLog!$C1642=\"Log value\",DataLog!Y1642,\"\")","v":""},{"$f":"IF(DataLog!$C1642=\"Log value\",DataLog!Z1642,\"\")","v":""},{"$f":"IF(DataLog!$C1642=\"Log value\",DataLog!AA1642,\"\")","v":""},{"$f":"IF(DataLog!$C1642=\"Log value\",DataLog!AB1642,\"\")","v":""},{"$f":"IF(DataLog!$C1642=\"Log value\",DataLog!AC1642,\"\")","v":""},{"$f":"IF(DataLog!$C1642=\"Log value\",DataLog!AD1642,\"\")","v":""},{"$f":"IF(DataLog!$C1642=\"Log value\",DataLog!AE1642,\"\")","v":""},{"$f":"IF(DataLog!$C1642=\"Log value\",DataLog!AF1642,\"\")","v":""},{"$f":"IF(DataLog!$C1642=\"Log value\",DataLog!AG1642,\"\")","v":""},{"$f":"IF(DataLog!$C1642=\"Log value\",DataLog!AH1642,\"\")","v":""},{"$f":"IF(DataLog!$C1642=\"Log value\",DataLog!AI1642,\"\")","v":""},{"$f":"IF(DataLog!$C1642=\"Log value\",DataLog!AJ1642,\"\")","v":""},{"$f":"IF(DataLog!$C1642=\"Log value\",DataLog!AK1642,\"\")","v":""},{"$f":"IF(DataLog!$C1642=\"Log value\",DataLog!AL1642,\"\")","v":""},{"$f":"IF(DataLog!$C1642=\"Log value\",DataLog!AM1642,\"\")","v":""}]
[null,null,null,null,null,null,{"$f":"IF(DataLog!$C1643=\"Log value\",DataLog!D1643&\"_\"&TEXT(DataLog!B1643,\"åååå-mm-dd\"),\"\")","v":""},{"$f":"IF(DataLog!$C1643=\"Log value\",DataLog!E1643,\"\")","v":""},{"$f":"IF(DataLog!$C1643=\"Log value\",DataLog!F1643,\"\")","v":""},{"$f":"IF(DataLog!$C1643=\"Log value\",DataLog!G1643,\"\")","v":""},{"$f":"IF(DataLog!$C1643=\"Log value\",DataLog!H1643,\"\")","v":""},{"$f":"IF(DataLog!$C1643=\"Log value\",DataLog!I1643,\"\")","v":""},{"$f":"IF(DataLog!$C1643=\"Log value\",DataLog!J1643,\"\")","v":""},{"$f":"IF(DataLog!$C1643=\"Log value\",DataLog!K1643,\"\")","v":""},{"$f":"IF(DataLog!$C1643=\"Log value\",DataLog!L1643,\"\")","v":""},{"$f":"IF(DataLog!$C1643=\"Log value\",DataLog!M1643,\"\")","v":""},{"$f":"IF(DataLog!$C1643=\"Log value\",DataLog!N1643,\"\")","v":""},{"$f":"IF(DataLog!$C1643=\"Log value\",DataLog!O1643,\"\")","v":""},{"$f":"IF(DataLog!$C1643=\"Log value\",DataLog!P1643,\"\")","v":""},{"$f":"IF(DataLog!$C1643=\"Log value\",DataLog!Q1643,\"\")","v":""},{"$f":"IF(DataLog!$C1643=\"Log value\",DataLog!R1643,\"\")","v":""},{"$f":"IF(DataLog!$C1643=\"Log value\",DataLog!S1643,\"\")","v":""},{"$f":"IF(DataLog!$C1643=\"Log value\",DataLog!T1643,\"\")","v":""},{"$f":"IF(DataLog!$C1643=\"Log value\",DataLog!U1643,\"\")","v":""},{"$f":"IF(DataLog!$C1643=\"Log value\",DataLog!V1643,\"\")","v":""},{"$f":"IF(DataLog!$C1643=\"Log value\",DataLog!W1643,\"\")","v":""},{"$f":"IF(DataLog!$C1643=\"Log value\",DataLog!X1643,\"\")","v":""},{"$f":"IF(DataLog!$C1643=\"Log value\",DataLog!Y1643,\"\")","v":""},{"$f":"IF(DataLog!$C1643=\"Log value\",DataLog!Z1643,\"\")","v":""},{"$f":"IF(DataLog!$C1643=\"Log value\",DataLog!AA1643,\"\")","v":""},{"$f":"IF(DataLog!$C1643=\"Log value\",DataLog!AB1643,\"\")","v":""},{"$f":"IF(DataLog!$C1643=\"Log value\",DataLog!AC1643,\"\")","v":""},{"$f":"IF(DataLog!$C1643=\"Log value\",DataLog!AD1643,\"\")","v":""},{"$f":"IF(DataLog!$C1643=\"Log value\",DataLog!AE1643,\"\")","v":""},{"$f":"IF(DataLog!$C1643=\"Log value\",DataLog!AF1643,\"\")","v":""},{"$f":"IF(DataLog!$C1643=\"Log value\",DataLog!AG1643,\"\")","v":""},{"$f":"IF(DataLog!$C1643=\"Log value\",DataLog!AH1643,\"\")","v":""},{"$f":"IF(DataLog!$C1643=\"Log value\",DataLog!AI1643,\"\")","v":""},{"$f":"IF(DataLog!$C1643=\"Log value\",DataLog!AJ1643,\"\")","v":""},{"$f":"IF(DataLog!$C1643=\"Log value\",DataLog!AK1643,\"\")","v":""},{"$f":"IF(DataLog!$C1643=\"Log value\",DataLog!AL1643,\"\")","v":""},{"$f":"IF(DataLog!$C1643=\"Log value\",DataLog!AM1643,\"\")","v":""}]
[null,null,null,null,null,null,{"$f":"IF(DataLog!$C1646=\"Log value\",DataLog!D1646&\"_\"&TEXT(DataLog!B1646,\"åååå-mm-dd\"),\"\")","v":""},{"$f":"IF(DataLog!$C1646=\"Log value\",DataLog!E1646,\"\")","v":""},{"$f":"IF(DataLog!$C1646=\"Log value\",DataLog!F1646,\"\")","v":""},{"$f":"IF(DataLog!$C1646=\"Log value\",DataLog!G1646,\"\")","v":""},{"$f":"IF(DataLog!$C1646=\"Log value\",DataLog!H1646,\"\")","v":""},{"$f":"IF(DataLog!$C1646=\"Log value\",DataLog!I1646,\"\")","v":""},{"$f":"IF(DataLog!$C1646=\"Log value\",DataLog!J1646,\"\")","v":""},{"$f":"IF(DataLog!$C1646=\"Log value\",DataLog!K1646,\"\")","v":""},{"$f":"IF(DataLog!$C1646=\"Log value\",DataLog!L1646,\"\")","v":""},{"$f":"IF(DataLog!$C1646=\"Log value\",DataLog!M1646,\"\")","v":""},{"$f":"IF(DataLog!$C1646=\"Log value\",DataLog!N1646,\"\")","v":""},{"$f":"IF(DataLog!$C1646=\"Log value\",DataLog!O1646,\"\")","v":""},{"$f":"IF(DataLog!$C1646=\"Log value\",DataLog!P1646,\"\")","v":""},{"$f":"IF(DataLog!$C1646=\"Log value\",DataLog!Q1646,\"\")","v":""},{"$f":"IF(DataLog!$C1646=\"Log value\",DataLog!R1646,\"\")","v":""},{"$f":"IF(DataLog!$C1646=\"Log value\",DataLog!S1646,\"\")","v":""},{"$f":"IF(DataLog!$C1646=\"Log value\",DataLog!T1646,\"\")","v":""},{"$f":"IF(DataLog!$C1646=\"Log value\",DataLog!U1646,\"\")","v":""},{"$f":"IF(DataLog!$C1646=\"Log value\",DataLog!V1646,\"\")","v":""},{"$f":"IF(DataLog!$C1646=\"Log value\",DataLog!W1646,\"\")","v":""},{"$f":"IF(DataLog!$C1646=\"Log value\",DataLog!X1646,\"\")","v":""},{"$f":"IF(DataLog!$C1646=\"Log value\",DataLog!Y1646,\"\")","v":""},{"$f":"IF(DataLog!$C1646=\"Log value\",DataLog!Z1646,\"\")","v":""},{"$f":"IF(DataLog!$C1646=\"Log value\",DataLog!AA1646,\"\")","v":""},{"$f":"IF(DataLog!$C1646=\"Log value\",DataLog!AB1646,\"\")","v":""},{"$f":"IF(DataLog!$C1646=\"Log value\",DataLog!AC1646,\"\")","v":""},{"$f":"IF(DataLog!$C1646=\"Log value\",DataLog!AD1646,\"\")","v":""},{"$f":"IF(DataLog!$C1646=\"Log value\",DataLog!AE1646,\"\")","v":""},{"$f":"IF(DataLog!$C1646=\"Log value\",DataLog!AF1646,\"\")","v":""},{"$f":"IF(DataLog!$C1646=\"Log value\",DataLog!AG1646,\"\")","v":""},{"$f":"IF(DataLog!$C1646=\"Log value\",DataLog!AH1646,\"\")","v":""},{"$f":"IF(DataLog!$C1646=\"Log value\",DataLog!AI1646,\"\")","v":""},{"$f":"IF(DataLog!$C1646=\"Log value\",DataLog!AJ1646,\"\")","v":""},{"$f":"IF(DataLog!$C1646=\"Log value\",DataLog!AK1646,\"\")","v":""},{"$f":"IF(DataLog!$C1646=\"Log value\",DataLog!AL1646,\"\")","v":""},{"$f":"IF(DataLog!$C1646=\"Log value\",DataLog!AM1646,\"\")","v":""}]
[null,null,null,null,null,null,{"$f":"IF(DataLog!$C1648=\"Log value\",DataLog!D1648&\"_\"&TEXT(DataLog!B1648,\"åååå-mm-dd\"),\"\")","v":""},{"$f":"IF(DataLog!$C1648=\"Log value\",DataLog!E1648,\"\")","v":""},{"$f":"IF(DataLog!$C1648=\"Log value\",DataLog!F1648,\"\")","v":""},{"$f":"IF(DataLog!$C1648=\"Log value\",DataLog!G1648,\"\")","v":""},{"$f":"IF(DataLog!$C1648=\"Log value\",DataLog!H1648,\"\")","v":""},{"$f":"IF(DataLog!$C1648=\"Log value\",DataLog!I1648,\"\")","v":""},{"$f":"IF(DataLog!$C1648=\"Log value\",DataLog!J1648,\"\")","v":""},{"$f":"IF(DataLog!$C1648=\"Log value\",DataLog!K1648,\"\")","v":""},{"$f":"IF(DataLog!$C1648=\"Log value\",DataLog!L1648,\"\")","v":""},{"$f":"IF(DataLog!$C1648=\"Log value\",DataLog!M1648,\"\")","v":""},{"$f":"IF(DataLog!$C1648=\"Log value\",DataLog!N1648,\"\")","v":""},{"$f":"IF(DataLog!$C1648=\"Log value\",DataLog!O1648,\"\")","v":""},{"$f":"IF(DataLog!$C1648=\"Log value\",DataLog!P1648,\"\")","v":""},{"$f":"IF(DataLog!$C1648=\"Log value\",DataLog!Q1648,\"\")","v":""},{"$f":"IF(DataLog!$C1648=\"Log value\",DataLog!R1648,\"\")","v":""},{"$f":"IF(DataLog!$C1648=\"Log value\",DataLog!S1648,\"\")","v":""},{"$f":"IF(DataLog!$C1648=\"Log value\",DataLog!T1648,\"\")","v":""},{"$f":"IF(DataLog!$C1648=\"Log value\",DataLog!U1648,\"\")","v":""},{"$f":"IF(DataLog!$C1648=\"Log value\",DataLog!V1648,\"\")","v":""},{"$f":"IF(DataLog!$C1648=\"Log value\",DataLog!W1648,\"\")","v":""},{"$f":"IF(DataLog!$C1648=\"Log value\",DataLog!X1648,\"\")","v":""},{"$f":"IF(DataLog!$C1648=\"Log value\",DataLog!Y1648,\"\")","v":""},{"$f":"IF(DataLog!$C1648=\"Log value\",DataLog!Z1648,\"\")","v":""},{"$f":"IF(DataLog!$C1648=\"Log value\",DataLog!AA1648,\"\")","v":""},{"$f":"IF(DataLog!$C1648=\"Log value\",DataLog!AB1648,\"\")","v":""},{"$f":"IF(DataLog!$C1648=\"Log value\",DataLog!AC1648,\"\")","v":""},{"$f":"IF(DataLog!$C1648=\"Log value\",DataLog!AD1648,\"\")","v":""},{"$f":"IF(DataLog!$C1648=\"Log value\",DataLog!AE1648,\"\")","v":""},{"$f":"IF(DataLog!$C1648=\"Log value\",DataLog!AF1648,\"\")","v":""},{"$f":"IF(DataLog!$C1648=\"Log value\",DataLog!AG1648,\"\")","v":""},{"$f":"IF(DataLog!$C1648=\"Log value\",DataLog!AH1648,\"\")","v":""},{"$f":"IF(DataLog!$C1648=\"Log value\",DataLog!AI1648,\"\")","v":""},{"$f":"IF(DataLog!$C1648=\"Log value\",DataLog!AJ1648,\"\")","v":""},{"$f":"IF(DataLog!$C1648=\"Log value\",DataLog!AK1648,\"\")","v":""},{"$f":"IF(DataLog!$C1648=\"Log value\",DataLog!AL1648,\"\")","v":""},{"$f":"IF(DataLog!$C1648=\"Log value\",DataLog!AM1648,\"\")","v":""}]
[null,null,null,null,null,null,{"$f":"IF(DataLog!$C1651=\"Log value\",DataLog!D1651&\"_\"&TEXT(DataLog!B1651,\"åååå-mm-dd\"),\"\")","v":""},{"$f":"IF(DataLog!$C1651=\"Log value\",DataLog!E1651,\"\")","v":""},{"$f":"IF(DataLog!$C1651=\"Log value\",DataLog!F1651,\"\")","v":""},{"$f":"IF(DataLog!$C1651=\"Log value\",DataLog!G1651,\"\")","v":""},{"$f":"IF(DataLog!$C1651=\"Log value\",DataLog!H1651,\"\")","v":""},{"$f":"IF(DataLog!$C1651=\"Log value\",DataLog!I1651,\"\")","v":""},{"$f":"IF(DataLog!$C1651=\"Log value\",DataLog!J1651,\"\")","v":""},{"$f":"IF(DataLog!$C1651=\"Log value\",DataLog!K1651,\"\")","v":""},{"$f":"IF(DataLog!$C1651=\"Log value\",DataLog!L1651,\"\")","v":""},{"$f":"IF(DataLog!$C1651=\"Log value\",DataLog!M1651,\"\")","v":""},{"$f":"IF(DataLog!$C1651=\"Log value\",DataLog!N1651,\"\")","v":""},{"$f":"IF(DataLog!$C1651=\"Log value\",DataLog!O1651,\"\")","v":""},{"$f":"IF(DataLog!$C1651=\"Log value\",DataLog!P1651,\"\")","v":""},{"$f":"IF(DataLog!$C1651=\"Log value\",DataLog!Q1651,\"\")","v":""},{"$f":"IF(DataLog!$C1651=\"Log value\",DataLog!R1651,\"\")","v":""},{"$f":"IF(DataLog!$C1651=\"Log value\",DataLog!S1651,\"\")","v":""},{"$f":"IF(DataLog!$C1651=\"Log value\",DataLog!T1651,\"\")","v":""},{"$f":"IF(DataLog!$C1651=\"Log value\",DataLog!U1651,\"\")","v":""},{"$f":"IF(DataLog!$C1651=\"Log value\",DataLog!V1651,\"\")","v":""},{"$f":"IF(DataLog!$C1651=\"Log value\",DataLog!W1651,\"\")","v":""},{"$f":"IF(DataLog!$C1651=\"Log value\",DataLog!X1651,\"\")","v":""},{"$f":"IF(DataLog!$C1651=\"Log value\",DataLog!Y1651,\"\")","v":""},{"$f":"IF(DataLog!$C1651=\"Log value\",DataLog!Z1651,\"\")","v":""},{"$f":"IF(DataLog!$C1651=\"Log value\",DataLog!AA1651,\"\")","v":""},{"$f":"IF(DataLog!$C1651=\"Log value\",DataLog!AB1651,\"\")","v":""},{"$f":"IF(DataLog!$C1651=\"Log value\",DataLog!AC1651,\"\")","v":""},{"$f":"IF(DataLog!$C1651=\"Log value\",DataLog!AD1651,\"\")","v":""},{"$f":"IF(DataLog!$C1651=\"Log value\",DataLog!AE1651,\"\")","v":""},{"$f":"IF(DataLog!$C1651=\"Log value\",DataLog!AF1651,\"\")","v":""},{"$f":"IF(DataLog!$C1651=\"Log value\",DataLog!AG1651,\"\")","v":""},{"$f":"IF(DataLog!$C1651=\"Log value\",DataLog!AH1651,\"\")","v":""},{"$f":"IF(DataLog!$C1651=\"Log value\",DataLog!AI1651,\"\")","v":""},{"$f":"IF(DataLog!$C1651=\"Log value\",DataLog!AJ1651,\"\")","v":""},{"$f":"IF(DataLog!$C1651=\"Log value\",DataLog!AK1651,\"\")","v":""},{"$f":"IF(DataLog!$C1651=\"Log value\",DataLog!AL1651,\"\")","v":""},{"$f":"IF(DataLog!$C1651=\"Log value\",DataLog!AM1651,\"\")","v":""}]
[null,null,null,null,null,null,{"$f":"IF(DataLog!$C1652=\"Log value\",DataLog!D1652&\"_\"&TEXT(DataLog!B1652,\"åååå-mm-dd\"),\"\")","v":""},{"$f":"IF(DataLog!$C1652=\"Log value\",DataLog!E1652,\"\")","v":""},{"$f":"IF(DataLog!$C1652=\"Log value\",DataLog!F1652,\"\")","v":""},{"$f":"IF(DataLog!$C1652=\"Log value\",DataLog!G1652,\"\")","v":""},{"$f":"IF(DataLog!$C1652=\"Log value\",DataLog!H1652,\"\")","v":""},{"$f":"IF(DataLog!$C1652=\"Log value\",DataLog!I1652,\"\")","v":""},{"$f":"IF(DataLog!$C1652=\"Log value\",DataLog!J1652,\"\")","v":""},{"$f":"IF(DataLog!$C1652=\"Log value\",DataLog!K1652,\"\")","v":""},{"$f":"IF(DataLog!$C1652=\"Log value\",DataLog!L1652,\"\")","v":""},{"$f":"IF(DataLog!$C1652=\"Log value\",DataLog!M1652,\"\")","v":""},{"$f":"IF(DataLog!$C1652=\"Log value\",DataLog!N1652,\"\")","v":""},{"$f":"IF(DataLog!$C1652=\"Log value\",DataLog!O1652,\"\")","v":""},{"$f":"IF(DataLog!$C1652=\"Log value\",DataLog!P1652,\"\")","v":""},{"$f":"IF(DataLog!$C1652=\"Log value\",DataLog!Q1652,\"\")","v":""},{"$f":"IF(DataLog!$C1652=\"Log value\",DataLog!R1652,\"\")","v":""},{"$f":"IF(DataLog!$C1652=\"Log value\",DataLog!S1652,\"\")","v":""},{"$f":"IF(DataLog!$C1652=\"Log value\",DataLog!T1652,\"\")","v":""},{"$f":"IF(DataLog!$C1652=\"Log value\",DataLog!U1652,\"\")","v":""},{"$f":"IF(DataLog!$C1652=\"Log value\",DataLog!V1652,\"\")","v":""},{"$f":"IF(DataLog!$C1652=\"Log value\",DataLog!W1652,\"\")","v":""},{"$f":"IF(DataLog!$C1652=\"Log value\",DataLog!X1652,\"\")","v":""},{"$f":"IF(DataLog!$C1652=\"Log value\",DataLog!Y1652,\"\")","v":""},{"$f":"IF(DataLog!$C1652=\"Log value\",DataLog!Z1652,\"\")","v":""},{"$f":"IF(DataLog!$C1652=\"Log value\",DataLog!AA1652,\"\")","v":""},{"$f":"IF(DataLog!$C1652=\"Log value\",DataLog!AB1652,\"\")","v":""},{"$f":"IF(DataLog!$C1652=\"Log value\",DataLog!AC1652,\"\")","v":""},{"$f":"IF(DataLog!$C1652=\"Log value\",DataLog!AD1652,\"\")","v":""},{"$f":"IF(DataLog!$C1652=\"Log value\",DataLog!AE1652,\"\")","v":""},{"$f":"IF(DataLog!$C1652=\"Log value\",DataLog!AF1652,\"\")","v":""},{"$f":"IF(DataLog!$C1652=\"Log value\",DataLog!AG1652,\"\")","v":""},{"$f":"IF(DataLog!$C1652=\"Log value\",DataLog!AH1652,\"\")","v":""},{"$f":"IF(DataLog!$C1652=\"Log value\",DataLog!AI1652,\"\")","v":""},{"$f":"IF(DataLog!$C1652=\"Log value\",DataLog!AJ1652,\"\")","v":""},{"$f":"IF(DataLog!$C1652=\"Log value\",DataLog!AK1652,\"\")","v":""},{"$f":"IF(DataLog!$C1652=\"Log value\",DataLog!AL1652,\"\")","v":""},{"$f":"IF(DataLog!$C1652=\"Log value\",DataLog!AM1652,\"\")","v":""}]
[null,null,null,null,null,null,{"$f":"IF(DataLog!$C1654=\"Log value\",DataLog!D1654&\"_\"&TEXT(DataLog!B1654,\"åååå-mm-dd\"),\"\")","v":""},{"$f":"IF(DataLog!$C1654=\"Log value\",DataLog!E1654,\"\")","v":""},{"$f":"IF(DataLog!$C1654=\"Log value\",DataLog!F1654,\"\")","v":""},{"$f":"IF(DataLog!$C1654=\"Log value\",DataLog!G1654,\"\")","v":""},{"$f":"IF(DataLog!$C1654=\"Log value\",DataLog!H1654,\"\")","v":""},{"$f":"IF(DataLog!$C1654=\"Log value\",DataLog!I1654,\"\")","v":""},{"$f":"IF(DataLog!$C1654=\"Log value\",DataLog!J1654,\"\")","v":""},{"$f":"IF(DataLog!$C1654=\"Log value\",DataLog!K1654,\"\")","v":""},{"$f":"IF(DataLog!$C1654=\"Log value\",DataLog!L1654,\"\")","v":""},{"$f":"IF(DataLog!$C1654=\"Log value\",DataLog!M1654,\"\")","v":""},{"$f":"IF(DataLog!$C1654=\"Log value\",DataLog!N1654,\"\")","v":""},{"$f":"IF(DataLog!$C1654=\"Log value\",DataLog!O1654,\"\")","v":""},{"$f":"IF(DataLog!$C1654=\"Log value\",DataLog!P1654,\"\")","v":""},{"$f":"IF(DataLog!$C1654=\"Log value\",DataLog!Q1654,\"\")","v":""},{"$f":"IF(DataLog!$C1654=\"Log value\",DataLog!R1654,\"\")","v":""},{"$f":"IF(DataLog!$C1654=\"Log value\",DataLog!S1654,\"\")","v":""},{"$f":"IF(DataLog!$C1654=\"Log value\",DataLog!T1654,\"\")","v":""},{"$f":"IF(DataLog!$C1654=\"Log value\",DataLog!U1654,\"\")","v":""},{"$f":"IF(DataLog!$C1654=\"Log value\",DataLog!V1654,\"\")","v":""},{"$f":"IF(DataLog!$C1654=\"Log value\",DataLog!W1654,\"\")","v":""},{"$f":"IF(DataLog!$C1654=\"Log value\",DataLog!X1654,\"\")","v":""},{"$f":"IF(DataLog!$C1654=\"Log value\",DataLog!Y1654,\"\")","v":""},{"$f":"IF(DataLog!$C1654=\"Log value\",DataLog!Z1654,\"\")","v":""},{"$f":"IF(DataLog!$C1654=\"Log value\",DataLog!AA1654,\"\")","v":""},{"$f":"IF(DataLog!$C1654=\"Log value\",DataLog!AB1654,\"\")","v":""},{"$f":"IF(DataLog!$C1654=\"Log value\",DataLog!AC1654,\"\")","v":""},{"$f":"IF(DataLog!$C1654=\"Log value\",DataLog!AD1654,\"\")","v":""},{"$f":"IF(DataLog!$C1654=\"Log value\",DataLog!AE1654,\"\")","v":""},{"$f":"IF(DataLog!$C1654=\"Log value\",DataLog!AF1654,\"\")","v":""},{"$f":"IF(DataLog!$C1654=\"Log value\",DataLog!AG1654,\"\")","v":""},{"$f":"IF(DataLog!$C1654=\"Log value\",DataLog!AH1654,\"\")","v":""},{"$f":"IF(DataLog!$C1654=\"Log value\",DataLog!AI1654,\"\")","v":""},{"$f":"IF(DataLog!$C1654=\"Log value\",DataLog!AJ1654,\"\")","v":""},{"$f":"IF(DataLog!$C1654=\"Log value\",DataLog!AK1654,\"\")","v":""},{"$f":"IF(DataLog!$C1654=\"Log value\",DataLog!AL1654,\"\")","v":""},{"$f":"IF(DataLog!$C1654=\"Log value\",DataLog!AM1654,\"\")","v":""}]
[null,null,null,null,null,null,{"$f":"IF(DataLog!$C1657=\"Log value\",DataLog!D1657&\"_\"&TEXT(DataLog!B1657,\"åååå-mm-dd\"),\"\")","v":""},{"$f":"IF(DataLog!$C1657=\"Log value\",DataLog!E1657,\"\")","v":""},{"$f":"IF(DataLog!$C1657=\"Log value\",DataLog!F1657,\"\")","v":""},{"$f":"IF(DataLog!$C1657=\"Log value\",DataLog!G1657,\"\")","v":""},{"$f":"IF(DataLog!$C1657=\"Log value\",DataLog!H1657,\"\")","v":""},{"$f":"IF(DataLog!$C1657=\"Log value\",DataLog!I1657,\"\")","v":""},{"$f":"IF(DataLog!$C1657=\"Log value\",DataLog!J1657,\"\")","v":""},{"$f":"IF(DataLog!$C1657=\"Log value\",DataLog!K1657,\"\")","v":""},{"$f":"IF(DataLog!$C1657=\"Log value\",DataLog!L1657,\"\")","v":""},{"$f":"IF(DataLog!$C1657=\"Log value\",DataLog!M1657,\"\")","v":""},{"$f":"IF(DataLog!$C1657=\"Log value\",DataLog!N1657,\"\")","v":""},{"$f":"IF(DataLog!$C1657=\"Log value\",DataLog!O1657,\"\")","v":""},{"$f":"IF(DataLog!$C1657=\"Log value\",DataLog!P1657,\"\")","v":""},{"$f":"IF(DataLog!$C1657=\"Log value\",DataLog!Q1657,\"\")","v":""},{"$f":"IF(DataLog!$C1657=\"Log value\",DataLog!R1657,\"\")","v":""},{"$f":"IF(DataLog!$C1657=\"Log value\",DataLog!S1657,\"\")","v":""},{"$f":"IF(DataLog!$C1657=\"Log value\",DataLog!T1657,\"\")","v":""},{"$f":"IF(DataLog!$C1657=\"Log value\",DataLog!U1657,\"\")","v":""},{"$f":"IF(DataLog!$C1657=\"Log value\",DataLog!V1657,\"\")","v":""},{"$f":"IF(DataLog!$C1657=\"Log value\",DataLog!W1657,\"\")","v":""},{"$f":"IF(DataLog!$C1657=\"Log value\",DataLog!X1657,\"\")","v":""},{"$f":"IF(DataLog!$C1657=\"Log value\",DataLog!Y1657,\"\")","v":""},{"$f":"IF(DataLog!$C1657=\"Log value\",DataLog!Z1657,\"\")","v":""},{"$f":"IF(DataLog!$C1657=\"Log value\",DataLog!AA1657,\"\")","v":""},{"$f":"IF(DataLog!$C1657=\"Log value\",DataLog!AB1657,\"\")","v":""},{"$f":"IF(DataLog!$C1657=\"Log value\",DataLog!AC1657,\"\")","v":""},{"$f":"IF(DataLog!$C1657=\"Log value\",DataLog!AD1657,\"\")","v":""},{"$f":"IF(DataLog!$C1657=\"Log value\",DataLog!AE1657,\"\")","v":""},{"$f":"IF(DataLog!$C1657=\"Log value\",DataLog!AF1657,\"\")","v":""},{"$f":"IF(DataLog!$C1657=\"Log value\",DataLog!AG1657,\"\")","v":""},{"$f":"IF(DataLog!$C1657=\"Log value\",DataLog!AH1657,\"\")","v":""},{"$f":"IF(DataLog!$C1657=\"Log value\",DataLog!AI1657,\"\")","v":""},{"$f":"IF(DataLog!$C1657=\"Log value\",DataLog!AJ1657,\"\")","v":""},{"$f":"IF(DataLog!$C1657=\"Log value\",DataLog!AK1657,\"\")","v":""},{"$f":"IF(DataLog!$C1657=\"Log value\",DataLog!AL1657,\"\")","v":""},{"$f":"IF(DataLog!$C1657=\"Log value\",DataLog!AM1657,\"\")","v":""}]
[null,null,null,null,null,null,{"$f":"IF(DataLog!$C1660=\"Log value\",DataLog!D1660&\"_\"&TEXT(DataLog!B1660,\"åååå-mm-dd\"),\"\")","v":""},{"$f":"IF(DataLog!$C1660=\"Log value\",DataLog!E1660,\"\")","v":""},{"$f":"IF(DataLog!$C1660=\"Log value\",DataLog!F1660,\"\")","v":""},{"$f":"IF(DataLog!$C1660=\"Log value\",DataLog!G1660,\"\")","v":""},{"$f":"IF(DataLog!$C1660=\"Log value\",DataLog!H1660,\"\")","v":""},{"$f":"IF(DataLog!$C1660=\"Log value\",DataLog!I1660,\"\")","v":""},{"$f":"IF(DataLog!$C1660=\"Log value\",DataLog!J1660,\"\")","v":""},{"$f":"IF(DataLog!$C1660=\"Log value\",DataLog!K1660,\"\")","v":""},{"$f":"IF(DataLog!$C1660=\"Log value\",DataLog!L1660,\"\")","v":""},{"$f":"IF(DataLog!$C1660=\"Log value\",DataLog!M1660,\"\")","v":""},{"$f":"IF(DataLog!$C1660=\"Log value\",DataLog!N1660,\"\")","v":""},{"$f":"IF(DataLog!$C1660=\"Log value\",DataLog!O1660,\"\")","v":""},{"$f":"IF(DataLog!$C1660=\"Log value\",DataLog!P1660,\"\")","v":""},{"$f":"IF(DataLog!$C1660=\"Log value\",DataLog!Q1660,\"\")","v":""},{"$f":"IF(DataLog!$C1660=\"Log value\",DataLog!R1660,\"\")","v":""},{"$f":"IF(DataLog!$C1660=\"Log value\",DataLog!S1660,\"\")","v":""},{"$f":"IF(DataLog!$C1660=\"Log value\",DataLog!T1660,\"\")","v":""},{"$f":"IF(DataLog!$C1660=\"Log value\",DataLog!U1660,\"\")","v":""},{"$f":"IF(DataLog!$C1660=\"Log value\",DataLog!V1660,\"\")","v":""},{"$f":"IF(DataLog!$C1660=\"Log value\",DataLog!W1660,\"\")","v":""},{"$f":"IF(DataLog!$C1660=\"Log value\",DataLog!X1660,\"\")","v":""},{"$f":"IF(DataLog!$C1660=\"Log value\",DataLog!Y1660,\"\")","v":""},{"$f":"IF(DataLog!$C1660=\"Log value\",DataLog!Z1660,\"\")","v":""},{"$f":"IF(DataLog!$C1660=\"Log value\",DataLog!AA1660,\"\")","v":""},{"$f":"IF(DataLog!$C1660=\"Log value\",DataLog!AB1660,\"\")","v":""},{"$f":"IF(DataLog!$C1660=\"Log value\",DataLog!AC1660,\"\")","v":""},{"$f":"IF(DataLog!$C1660=\"Log value\",DataLog!AD1660,\"\")","v":""},{"$f":"IF(DataLog!$C1660=\"Log value\",DataLog!AE1660,\"\")","v":""},{"$f":"IF(DataLog!$C1660=\"Log value\",DataLog!AF1660,\"\")","v":""},{"$f":"IF(DataLog!$C1660=\"Log value\",DataLog!AG1660,\"\")","v":""},{"$f":"IF(DataLog!$C1660=\"Log value\",DataLog!AH1660,\"\")","v":""},{"$f":"IF(DataLog!$C1660=\"Log value\",DataLog!AI1660,\"\")","v":""},{"$f":"IF(DataLog!$C1660=\"Log value\",DataLog!AJ1660,\"\")","v":""},{"$f":"IF(DataLog!$C1660=\"Log value\",DataLog!AK1660,\"\")","v":""},{"$f":"IF(DataLog!$C1660=\"Log value\",DataLog!AL1660,\"\")","v":""},{"$f":"IF(DataLog!$C1660=\"Log value\",DataLog!AM1660,\"\")","v":""}]
[null,null,null,null,null,null,{"$f":"IF(DataLog!$C1662=\"Log value\",DataLog!D1662&\"_\"&TEXT(DataLog!B1662,\"åååå-mm-dd\"),\"\")","v":""},{"$f":"IF(DataLog!$C1662=\"Log value\",DataLog!E1662,\"\")","v":""},{"$f":"IF(DataLog!$C1662=\"Log value\",DataLog!F1662,\"\")","v":""},{"$f":"IF(DataLog!$C1662=\"Log value\",DataLog!G1662,\"\")","v":""},{"$f":"IF(DataLog!$C1662=\"Log value\",DataLog!H1662,\"\")","v":""},{"$f":"IF(DataLog!$C1662=\"Log value\",DataLog!I1662,\"\")","v":""},{"$f":"IF(DataLog!$C1662=\"Log value\",DataLog!J1662,\"\")","v":""},{"$f":"IF(DataLog!$C1662=\"Log value\",DataLog!K1662,\"\")","v":""},{"$f":"IF(DataLog!$C1662=\"Log value\",DataLog!L1662,\"\")","v":""},{"$f":"IF(DataLog!$C1662=\"Log value\",DataLog!M1662,\"\")","v":""},{"$f":"IF(DataLog!$C1662=\"Log value\",DataLog!N1662,\"\")","v":""},{"$f":"IF(DataLog!$C1662=\"Log value\",DataLog!O1662,\"\")","v":""},{"$f":"IF(DataLog!$C1662=\"Log value\",DataLog!P1662,\"\")","v":""},{"$f":"IF(DataLog!$C1662=\"Log value\",DataLog!Q1662,\"\")","v":""},{"$f":"IF(DataLog!$C1662=\"Log value\",DataLog!R1662,\"\")","v":""},{"$f":"IF(DataLog!$C1662=\"Log value\",DataLog!S1662,\"\")","v":""},{"$f":"IF(DataLog!$C1662=\"Log value\",DataLog!T1662,\"\")","v":""},{"$f":"IF(DataLog!$C1662=\"Log value\",DataLog!U1662,\"\")","v":""},{"$f":"IF(DataLog!$C1662=\"Log value\",DataLog!V1662,\"\")","v":""},{"$f":"IF(DataLog!$C1662=\"Log value\",DataLog!W1662,\"\")","v":""},{"$f":"IF(DataLog!$C1662=\"Log value\",DataLog!X1662,\"\")","v":""},{"$f":"IF(DataLog!$C1662=\"Log value\",DataLog!Y1662,\"\")","v":""},{"$f":"IF(DataLog!$C1662=\"Log value\",DataLog!Z1662,\"\")","v":""},{"$f":"IF(DataLog!$C1662=\"Log value\",DataLog!AA1662,\"\")","v":""},{"$f":"IF(DataLog!$C1662=\"Log value\",DataLog!AB1662,\"\")","v":""},{"$f":"IF(DataLog!$C1662=\"Log value\",DataLog!AC1662,\"\")","v":""},{"$f":"IF(DataLog!$C1662=\"Log value\",DataLog!AD1662,\"\")","v":""},{"$f":"IF(DataLog!$C1662=\"Log value\",DataLog!AE1662,\"\")","v":""},{"$f":"IF(DataLog!$C1662=\"Log value\",DataLog!AF1662,\"\")","v":""},{"$f":"IF(DataLog!$C1662=\"Log value\",DataLog!AG1662,\"\")","v":""},{"$f":"IF(DataLog!$C1662=\"Log value\",DataLog!AH1662,\"\")","v":""},{"$f":"IF(DataLog!$C1662=\"Log value\",DataLog!AI1662,\"\")","v":""},{"$f":"IF(DataLog!$C1662=\"Log value\",DataLog!AJ1662,\"\")","v":""},{"$f":"IF(DataLog!$C1662=\"Log value\",DataLog!AK1662,\"\")","v":""},{"$f":"IF(DataLog!$C1662=\"Log value\",DataLog!AL1662,\"\")","v":""},{"$f":"IF(DataLog!$C1662=\"Log value\",DataLog!AM1662,\"\")","v":""}]
[null,null,null,null,null,null,{"$f":"IF(DataLog!$C1665=\"Log value\",DataLog!D1665&\"_\"&TEXT(DataLog!B1665,\"åååå-mm-dd\"),\"\")","v":""},{"$f":"IF(DataLog!$C1665=\"Log value\",DataLog!E1665,\"\")","v":""},{"$f":"IF(DataLog!$C1665=\"Log value\",DataLog!F1665,\"\")","v":""},{"$f":"IF(DataLog!$C1665=\"Log value\",DataLog!G1665,\"\")","v":""},{"$f":"IF(DataLog!$C1665=\"Log value\",DataLog!H1665,\"\")","v":""},{"$f":"IF(DataLog!$C1665=\"Log value\",DataLog!I1665,\"\")","v":""},{"$f":"IF(DataLog!$C1665=\"Log value\",DataLog!J1665,\"\")","v":""},{"$f":"IF(DataLog!$C1665=\"Log value\",DataLog!K1665,\"\")","v":""},{"$f":"IF(DataLog!$C1665=\"Log value\",DataLog!L1665,\"\")","v":""},{"$f":"IF(DataLog!$C1665=\"Log value\",DataLog!M1665,\"\")","v":""},{"$f":"IF(DataLog!$C1665=\"Log value\",DataLog!N1665,\"\")","v":""},{"$f":"IF(DataLog!$C1665=\"Log value\",DataLog!O1665,\"\")","v":""},{"$f":"IF(DataLog!$C1665=\"Log value\",DataLog!P1665,\"\")","v":""},{"$f":"IF(DataLog!$C1665=\"Log value\",DataLog!Q1665,\"\")","v":""},{"$f":"IF(DataLog!$C1665=\"Log value\",DataLog!R1665,\"\")","v":""},{"$f":"IF(DataLog!$C1665=\"Log value\",DataLog!S1665,\"\")","v":""},{"$f":"IF(DataLog!$C1665=\"Log value\",DataLog!T1665,\"\")","v":""},{"$f":"IF(DataLog!$C1665=\"Log value\",DataLog!U1665,\"\")","v":""},{"$f":"IF(DataLog!$C1665=\"Log value\",DataLog!V1665,\"\")","v":""},{"$f":"IF(DataLog!$C1665=\"Log value\",DataLog!W1665,\"\")","v":""},{"$f":"IF(DataLog!$C1665=\"Log value\",DataLog!X1665,\"\")","v":""},{"$f":"IF(DataLog!$C1665=\"Log value\",DataLog!Y1665,\"\")","v":""},{"$f":"IF(DataLog!$C1665=\"Log value\",DataLog!Z1665,\"\")","v":""},{"$f":"IF(DataLog!$C1665=\"Log value\",DataLog!AA1665,\"\")","v":""},{"$f":"IF(DataLog!$C1665=\"Log value\",DataLog!AB1665,\"\")","v":""},{"$f":"IF(DataLog!$C1665=\"Log value\",DataLog!AC1665,\"\")","v":""},{"$f":"IF(DataLog!$C1665=\"Log value\",DataLog!AD1665,\"\")","v":""},{"$f":"IF(DataLog!$C1665=\"Log value\",DataLog!AE1665,\"\")","v":""},{"$f":"IF(DataLog!$C1665=\"Log value\",DataLog!AF1665,\"\")","v":""},{"$f":"IF(DataLog!$C1665=\"Log value\",DataLog!AG1665,\"\")","v":""},{"$f":"IF(DataLog!$C1665=\"Log value\",DataLog!AH1665,\"\")","v":""},{"$f":"IF(DataLog!$C1665=\"Log value\",DataLog!AI1665,\"\")","v":""},{"$f":"IF(DataLog!$C1665=\"Log value\",DataLog!AJ1665,\"\")","v":""},{"$f":"IF(DataLog!$C1665=\"Log value\",DataLog!AK1665,\"\")","v":""},{"$f":"IF(DataLog!$C1665=\"Log value\",DataLog!AL1665,\"\")","v":""},{"$f":"IF(DataLog!$C1665=\"Log value\",DataLog!AM1665,\"\")","v":""}]
[null,null,null,null,null,null,{"$f":"IF(DataLog!$C1666=\"Log value\",DataLog!D1666&\"_\"&TEXT(DataLog!B1666,\"åååå-mm-dd\"),\"\")","v":""},{"$f":"IF(DataLog!$C1666=\"Log value\",DataLog!E1666,\"\")","v":""},{"$f":"IF(DataLog!$C1666=\"Log value\",DataLog!F1666,\"\")","v":""},{"$f":"IF(DataLog!$C1666=\"Log value\",DataLog!G1666,\"\")","v":""},{"$f":"IF(DataLog!$C1666=\"Log value\",DataLog!H1666,\"\")","v":""},{"$f":"IF(DataLog!$C1666=\"Log value\",DataLog!I1666,\"\")","v":""},{"$f":"IF(DataLog!$C1666=\"Log value\",DataLog!J1666,\"\")","v":""},{"$f":"IF(DataLog!$C1666=\"Log value\",DataLog!K1666,\"\")","v":""},{"$f":"IF(DataLog!$C1666=\"Log value\",DataLog!L1666,\"\")","v":""},{"$f":"IF(DataLog!$C1666=\"Log value\",DataLog!M1666,\"\")","v":""},{"$f":"IF(DataLog!$C1666=\"Log value\",DataLog!N1666,\"\")","v":""},{"$f":"IF(DataLog!$C1666=\"Log value\",DataLog!O1666,\"\")","v":""},{"$f":"IF(DataLog!$C1666=\"Log value\",DataLog!P1666,\"\")","v":""},{"$f":"IF(DataLog!$C1666=\"Log value\",DataLog!Q1666,\"\")","v":""},{"$f":"IF(DataLog!$C1666=\"Log value\",DataLog!R1666,\"\")","v":""},{"$f":"IF(DataLog!$C1666=\"Log value\",DataLog!S1666,\"\")","v":""},{"$f":"IF(DataLog!$C1666=\"Log value\",DataLog!T1666,\"\")","v":""},{"$f":"IF(DataLog!$C1666=\"Log value\",DataLog!U1666,\"\")","v":""},{"$f":"IF(DataLog!$C1666=\"Log value\",DataLog!V1666,\"\")","v":""},{"$f":"IF(DataLog!$C1666=\"Log value\",DataLog!W1666,\"\")","v":""},{"$f":"IF(DataLog!$C1666=\"Log value\",DataLog!X1666,\"\")","v":""},{"$f":"IF(DataLog!$C1666=\"Log value\",DataLog!Y1666,\"\")","v":""},{"$f":"IF(DataLog!$C1666=\"Log value\",DataLog!Z1666,\"\")","v":""},{"$f":"IF(DataLog!$C1666=\"Log value\",DataLog!AA1666,\"\")","v":""},{"$f":"IF(DataLog!$C1666=\"Log value\",DataLog!AB1666,\"\")","v":""},{"$f":"IF(DataLog!$C1666=\"Log value\",DataLog!AC1666,\"\")","v":""},{"$f":"IF(DataLog!$C1666=\"Log value\",DataLog!AD1666,\"\")","v":""},{"$f":"IF(DataLog!$C1666=\"Log value\",DataLog!AE1666,\"\")","v":""},{"$f":"IF(DataLog!$C1666=\"Log value\",DataLog!AF1666,\"\")","v":""},{"$f":"IF(DataLog!$C1666=\"Log value\",DataLog!AG1666,\"\")","v":""},{"$f":"IF(DataLog!$C1666=\"Log value\",DataLog!AH1666,\"\")","v":""},{"$f":"IF(DataLog!$C1666=\"Log value\",DataLog!AI1666,\"\")","v":""},{"$f":"IF(DataLog!$C1666=\"Log value\",DataLog!AJ1666,\"\")","v":""},{"$f":"IF(DataLog!$C1666=\"Log value\",DataLog!AK1666,\"\")","v":""},{"$f":"IF(DataLog!$C1666=\"Log value\",DataLog!AL1666,\"\")","v":""},{"$f":"IF(DataLog!$C1666=\"Log value\",DataLog!AM1666,\"\")","v":""}]
[null,null,null,null,null,null,{"$f":"IF(DataLog!$C1669=\"Log value\",DataLog!D1669&\"_\"&TEXT(DataLog!B1669,\"åååå-mm-dd\"),\"\")","v":""},{"$f":"IF(DataLog!$C1669=\"Log value\",DataLog!E1669,\"\")","v":""},{"$f":"IF(DataLog!$C1669=\"Log value\",DataLog!F1669,\"\")","v":""},{"$f":"IF(DataLog!$C1669=\"Log value\",DataLog!G1669,\"\")","v":""},{"$f":"IF(DataLog!$C1669=\"Log value\",DataLog!H1669,\"\")","v":""},{"$f":"IF(DataLog!$C1669=\"Log value\",DataLog!I1669,\"\")","v":""},{"$f":"IF(DataLog!$C1669=\"Log value\",DataLog!J1669,\"\")","v":""},{"$f":"IF(DataLog!$C1669=\"Log value\",DataLog!K1669,\"\")","v":""},{"$f":"IF(DataLog!$C1669=\"Log value\",DataLog!L1669,\"\")","v":""},{"$f":"IF(DataLog!$C1669=\"Log value\",DataLog!M1669,\"\")","v":""},{"$f":"IF(DataLog!$C1669=\"Log value\",DataLog!N1669,\"\")","v":""},{"$f":"IF(DataLog!$C1669=\"Log value\",DataLog!O1669,\"\")","v":""},{"$f":"IF(DataLog!$C1669=\"Log value\",DataLog!P1669,\"\")","v":""},{"$f":"IF(DataLog!$C1669=\"Log value\",DataLog!Q1669,\"\")","v":""},{"$f":"IF(DataLog!$C1669=\"Log value\",DataLog!R1669,\"\")","v":""},{"$f":"IF(DataLog!$C1669=\"Log value\",DataLog!S1669,\"\")","v":""},{"$f":"IF(DataLog!$C1669=\"Log value\",DataLog!T1669,\"\")","v":""},{"$f":"IF(DataLog!$C1669=\"Log value\",DataLog!U1669,\"\")","v":""},{"$f":"IF(DataLog!$C1669=\"Log value\",DataLog!V1669,\"\")","v":""},{"$f":"IF(DataLog!$C1669=\"Log value\",DataLog!W1669,\"\")","v":""},{"$f":"IF(DataLog!$C1669=\"Log value\",DataLog!X1669,\"\")","v":""},{"$f":"IF(DataLog!$C1669=\"Log value\",DataLog!Y1669,\"\")","v":""},{"$f":"IF(DataLog!$C1669=\"Log value\",DataLog!Z1669,\"\")","v":""},{"$f":"IF(DataLog!$C1669=\"Log value\",DataLog!AA1669,\"\")","v":""},{"$f":"IF(DataLog!$C1669=\"Log value\",DataLog!AB1669,\"\")","v":""},{"$f":"IF(DataLog!$C1669=\"Log value\",DataLog!AC1669,\"\")","v":""},{"$f":"IF(DataLog!$C1669=\"Log value\",DataLog!AD1669,\"\")","v":""},{"$f":"IF(DataLog!$C1669=\"Log value\",DataLog!AE1669,\"\")","v":""},{"$f":"IF(DataLog!$C1669=\"Log value\",DataLog!AF1669,\"\")","v":""},{"$f":"IF(DataLog!$C1669=\"Log value\",DataLog!AG1669,\"\")","v":""},{"$f":"IF(DataLog!$C1669=\"Log value\",DataLog!AH1669,\"\")","v":""},{"$f":"IF(DataLog!$C1669=\"Log value\",DataLog!AI1669,\"\")","v":""},{"$f":"IF(DataLog!$C1669=\"Log value\",DataLog!AJ1669,\"\")","v":""},{"$f":"IF(DataLog!$C1669=\"Log value\",DataLog!AK1669,\"\")","v":""},{"$f":"IF(DataLog!$C1669=\"Log value\",DataLog!AL1669,\"\")","v":""},{"$f":"IF(DataLog!$C1669=\"Log value\",DataLog!AM1669,\"\")","v":""}]
[null,null,null,null,null,null,{"$f":"IF(DataLog!$C1672=\"Log value\",DataLog!D1672&\"_\"&TEXT(DataLog!B1672,\"åååå-mm-dd\"),\"\")","v":""},{"$f":"IF(DataLog!$C1672=\"Log value\",DataLog!E1672,\"\")","v":""},{"$f":"IF(DataLog!$C1672=\"Log value\",DataLog!F1672,\"\")","v":""},{"$f":"IF(DataLog!$C1672=\"Log value\",DataLog!G1672,\"\")","v":""},{"$f":"IF(DataLog!$C1672=\"Log value\",DataLog!H1672,\"\")","v":""},{"$f":"IF(DataLog!$C1672=\"Log value\",DataLog!I1672,\"\")","v":""},{"$f":"IF(DataLog!$C1672=\"Log value\",DataLog!J1672,\"\")","v":""},{"$f":"IF(DataLog!$C1672=\"Log value\",DataLog!K1672,\"\")","v":""},{"$f":"IF(DataLog!$C1672=\"Log value\",DataLog!L1672,\"\")","v":""},{"$f":"IF(DataLog!$C1672=\"Log value\",DataLog!M1672,\"\")","v":""},{"$f":"IF(DataLog!$C1672=\"Log value\",DataLog!N1672,\"\")","v":""},{"$f":"IF(DataLog!$C1672=\"Log value\",DataLog!O1672,\"\")","v":""},{"$f":"IF(DataLog!$C1672=\"Log value\",DataLog!P1672,\"\")","v":""},{"$f":"IF(DataLog!$C1672=\"Log value\",DataLog!Q1672,\"\")","v":""},{"$f":"IF(DataLog!$C1672=\"Log value\",DataLog!R1672,\"\")","v":""},{"$f":"IF(DataLog!$C1672=\"Log value\",DataLog!S1672,\"\")","v":""},{"$f":"IF(DataLog!$C1672=\"Log value\",DataLog!T1672,\"\")","v":""},{"$f":"IF(DataLog!$C1672=\"Log value\",DataLog!U1672,\"\")","v":""},{"$f":"IF(DataLog!$C1672=\"Log value\",DataLog!V1672,\"\")","v":""},{"$f":"IF(DataLog!$C1672=\"Log value\",DataLog!W1672,\"\")","v":""},{"$f":"IF(DataLog!$C1672=\"Log value\",DataLog!X1672,\"\")","v":""},{"$f":"IF(DataLog!$C1672=\"Log value\",DataLog!Y1672,\"\")","v":""},{"$f":"IF(DataLog!$C1672=\"Log value\",DataLog!Z1672,\"\")","v":""},{"$f":"IF(DataLog!$C1672=\"Log value\",DataLog!AA1672,\"\")","v":""},{"$f":"IF(DataLog!$C1672=\"Log value\",DataLog!AB1672,\"\")","v":""},{"$f":"IF(DataLog!$C1672=\"Log value\",DataLog!AC1672,\"\")","v":""},{"$f":"IF(DataLog!$C1672=\"Log value\",DataLog!AD1672,\"\")","v":""},{"$f":"IF(DataLog!$C1672=\"Log value\",DataLog!AE1672,\"\")","v":""},{"$f":"IF(DataLog!$C1672=\"Log value\",DataLog!AF1672,\"\")","v":""},{"$f":"IF(DataLog!$C1672=\"Log value\",DataLog!AG1672,\"\")","v":""},{"$f":"IF(DataLog!$C1672=\"Log value\",DataLog!AH1672,\"\")","v":""},{"$f":"IF(DataLog!$C1672=\"Log value\",DataLog!AI1672,\"\")","v":""},{"$f":"IF(DataLog!$C1672=\"Log value\",DataLog!AJ1672,\"\")","v":""},{"$f":"IF(DataLog!$C1672=\"Log value\",DataLog!AK1672,\"\")","v":""},{"$f":"IF(DataLog!$C1672=\"Log value\",DataLog!AL1672,\"\")","v":""},{"$f":"IF(DataLog!$C1672=\"Log value\",DataLog!AM1672,\"\")","v":""}]
[null,null,null,null,null,null,{"$f":"IF(DataLog!$C1674=\"Log value\",DataLog!D1674&\"_\"&TEXT(DataLog!B1674,\"åååå-mm-dd\"),\"\")","v":""},{"$f":"IF(DataLog!$C1674=\"Log value\",DataLog!E1674,\"\")","v":""},{"$f":"IF(DataLog!$C1674=\"Log value\",DataLog!F1674,\"\")","v":""},{"$f":"IF(DataLog!$C1674=\"Log value\",DataLog!G1674,\"\")","v":""},{"$f":"IF(DataLog!$C1674=\"Log value\",DataLog!H1674,\"\")","v":""},{"$f":"IF(DataLog!$C1674=\"Log value\",DataLog!I1674,\"\")","v":""},{"$f":"IF(DataLog!$C1674=\"Log value\",DataLog!J1674,\"\")","v":""},{"$f":"IF(DataLog!$C1674=\"Log value\",DataLog!K1674,\"\")","v":""},{"$f":"IF(DataLog!$C1674=\"Log value\",DataLog!L1674,\"\")","v":""},{"$f":"IF(DataLog!$C1674=\"Log value\",DataLog!M1674,\"\")","v":""},{"$f":"IF(DataLog!$C1674=\"Log value\",DataLog!N1674,\"\")","v":""},{"$f":"IF(DataLog!$C1674=\"Log value\",DataLog!O1674,\"\")","v":""},{"$f":"IF(DataLog!$C1674=\"Log value\",DataLog!P1674,\"\")","v":""},{"$f":"IF(DataLog!$C1674=\"Log value\",DataLog!Q1674,\"\")","v":""},{"$f":"IF(DataLog!$C1674=\"Log value\",DataLog!R1674,\"\")","v":""},{"$f":"IF(DataLog!$C1674=\"Log value\",DataLog!S1674,\"\")","v":""},{"$f":"IF(DataLog!$C1674=\"Log value\",DataLog!T1674,\"\")","v":""},{"$f":"IF(DataLog!$C1674=\"Log value\",DataLog!U1674,\"\")","v":""},{"$f":"IF(DataLog!$C1674=\"Log value\",DataLog!V1674,\"\")","v":""},{"$f":"IF(DataLog!$C1674=\"Log value\",DataLog!W1674,\"\")","v":""},{"$f":"IF(DataLog!$C1674=\"Log value\",DataLog!X1674,\"\")","v":""},{"$f":"IF(DataLog!$C1674=\"Log value\",DataLog!Y1674,\"\")","v":""},{"$f":"IF(DataLog!$C1674=\"Log value\",DataLog!Z1674,\"\")","v":""},{"$f":"IF(DataLog!$C1674=\"Log value\",DataLog!AA1674,\"\")","v":""},{"$f":"IF(DataLog!$C1674=\"Log value\",DataLog!AB1674,\"\")","v":""},{"$f":"IF(DataLog!$C1674=\"Log value\",DataLog!AC1674,\"\")","v":""},{"$f":"IF(DataLog!$C1674=\"Log value\",DataLog!AD1674,\"\")","v":""},{"$f":"IF(DataLog!$C1674=\"Log value\",DataLog!AE1674,\"\")","v":""},{"$f":"IF(DataLog!$C1674=\"Log value\",DataLog!AF1674,\"\")","v":""},{"$f":"IF(DataLog!$C1674=\"Log value\",DataLog!AG1674,\"\")","v":""},{"$f":"IF(DataLog!$C1674=\"Log value\",DataLog!AH1674,\"\")","v":""},{"$f":"IF(DataLog!$C1674=\"Log value\",DataLog!AI1674,\"\")","v":""},{"$f":"IF(DataLog!$C1674=\"Log value\",DataLog!AJ1674,\"\")","v":""},{"$f":"IF(DataLog!$C1674=\"Log value\",DataLog!AK1674,\"\")","v":""},{"$f":"IF(DataLog!$C1674=\"Log value\",DataLog!AL1674,\"\")","v":""},{"$f":"IF(DataLog!$C1674=\"Log value\",DataLog!AM1674,\"\")","v":""}]
[null,null,null,null,null,null,{"$f":"IF(DataLog!$C1675=\"Log value\",DataLog!D1675&\"_\"&TEXT(DataLog!B1675,\"åååå-mm-dd\"),\"\")","v":""},{"$f":"IF(DataLog!$C1675=\"Log value\",DataLog!E1675,\"\")","v":""},{"$f":"IF(DataLog!$C1675=\"Log value\",DataLog!F1675,\"\")","v":""},{"$f":"IF(DataLog!$C1675=\"Log value\",DataLog!G1675,\"\")","v":""},{"$f":"IF(DataLog!$C1675=\"Log value\",DataLog!H1675,\"\")","v":""},{"$f":"IF(DataLog!$C1675=\"Log value\",DataLog!I1675,\"\")","v":""},{"$f":"IF(DataLog!$C1675=\"Log value\",DataLog!J1675,\"\")","v":""},{"$f":"IF(DataLog!$C1675=\"Log value\",DataLog!K1675,\"\")","v":""},{"$f":"IF(DataLog!$C1675=\"Log value\",DataLog!L1675,\"\")","v":""},{"$f":"IF(DataLog!$C1675=\"Log value\",DataLog!M1675,\"\")","v":""},{"$f":"IF(DataLog!$C1675=\"Log value\",DataLog!N1675,\"\")","v":""},{"$f":"IF(DataLog!$C1675=\"Log value\",DataLog!O1675,\"\")","v":""},{"$f":"IF(DataLog!$C1675=\"Log value\",DataLog!P1675,\"\")","v":""},{"$f":"IF(DataLog!$C1675=\"Log value\",DataLog!Q1675,\"\")","v":""},{"$f":"IF(DataLog!$C1675=\"Log value\",DataLog!R1675,\"\")","v":""},{"$f":"IF(DataLog!$C1675=\"Log value\",DataLog!S1675,\"\")","v":""},{"$f":"IF(DataLog!$C1675=\"Log value\",DataLog!T1675,\"\")","v":""},{"$f":"IF(DataLog!$C1675=\"Log value\",DataLog!U1675,\"\")","v":""},{"$f":"IF(DataLog!$C1675=\"Log value\",DataLog!V1675,\"\")","v":""},{"$f":"IF(DataLog!$C1675=\"Log value\",DataLog!W1675,\"\")","v":""},{"$f":"IF(DataLog!$C1675=\"Log value\",DataLog!X1675,\"\")","v":""},{"$f":"IF(DataLog!$C1675=\"Log value\",DataLog!Y1675,\"\")","v":""},{"$f":"IF(DataLog!$C1675=\"Log value\",DataLog!Z1675,\"\")","v":""},{"$f":"IF(DataLog!$C1675=\"Log value\",DataLog!AA1675,\"\")","v":""},{"$f":"IF(DataLog!$C1675=\"Log value\",DataLog!AB1675,\"\")","v":""},{"$f":"IF(DataLog!$C1675=\"Log value\",DataLog!AC1675,\"\")","v":""},{"$f":"IF(DataLog!$C1675=\"Log value\",DataLog!AD1675,\"\")","v":""},{"$f":"IF(DataLog!$C1675=\"Log value\",DataLog!AE1675,\"\")","v":""},{"$f":"IF(DataLog!$C1675=\"Log value\",DataLog!AF1675,\"\")","v":""},{"$f":"IF(DataLog!$C1675=\"Log value\",DataLog!AG1675,\"\")","v":""},{"$f":"IF(DataLog!$C1675=\"Log value\",DataLog!AH1675,\"\")","v":""},{"$f":"IF(DataLog!$C1675=\"Log value\",DataLog!AI1675,\"\")","v":""},{"$f":"IF(DataLog!$C1675=\"Log value\",DataLog!AJ1675,\"\")","v":""},{"$f":"IF(DataLog!$C1675=\"Log value\",DataLog!AK1675,\"\")","v":""},{"$f":"IF(DataLog!$C1675=\"Log value\",DataLog!AL1675,\"\")","v":""},{"$f":"IF(DataLog!$C1675=\"Log value\",DataLog!AM1675,\"\")","v":""}]
[null,null,null,null,null,null,{"$f":"IF(DataLog!$C1678=\"Log value\",DataLog!D1678&\"_\"&TEXT(DataLog!B1678,\"åååå-mm-dd\"),\"\")","v":""},{"$f":"IF(DataLog!$C1678=\"Log value\",DataLog!E1678,\"\")","v":""},{"$f":"IF(DataLog!$C1678=\"Log value\",DataLog!F1678,\"\")","v":""},{"$f":"IF(DataLog!$C1678=\"Log value\",DataLog!G1678,\"\")","v":""},{"$f":"IF(DataLog!$C1678=\"Log value\",DataLog!H1678,\"\")","v":""},{"$f":"IF(DataLog!$C1678=\"Log value\",DataLog!I1678,\"\")","v":""},{"$f":"IF(DataLog!$C1678=\"Log value\",DataLog!J1678,\"\")","v":""},{"$f":"IF(DataLog!$C1678=\"Log value\",DataLog!K1678,\"\")","v":""},{"$f":"IF(DataLog!$C1678=\"Log value\",DataLog!L1678,\"\")","v":""},{"$f":"IF(DataLog!$C1678=\"Log value\",DataLog!M1678,\"\")","v":""},{"$f":"IF(DataLog!$C1678=\"Log value\",DataLog!N1678,\"\")","v":""},{"$f":"IF(DataLog!$C1678=\"Log value\",DataLog!O1678,\"\")","v":""},{"$f":"IF(DataLog!$C1678=\"Log value\",DataLog!P1678,\"\")","v":""},{"$f":"IF(DataLog!$C1678=\"Log value\",DataLog!Q1678,\"\")","v":""},{"$f":"IF(DataLog!$C1678=\"Log value\",DataLog!R1678,\"\")","v":""},{"$f":"IF(DataLog!$C1678=\"Log value\",DataLog!S1678,\"\")","v":""},{"$f":"IF(DataLog!$C1678=\"Log value\",DataLog!T1678,\"\")","v":""},{"$f":"IF(DataLog!$C1678=\"Log value\",DataLog!U1678,\"\")","v":""},{"$f":"IF(DataLog!$C1678=\"Log value\",DataLog!V1678,\"\")","v":""},{"$f":"IF(DataLog!$C1678=\"Log value\",DataLog!W1678,\"\")","v":""},{"$f":"IF(DataLog!$C1678=\"Log value\",DataLog!X1678,\"\")","v":""},{"$f":"IF(DataLog!$C1678=\"Log value\",DataLog!Y1678,\"\")","v":""},{"$f":"IF(DataLog!$C1678=\"Log value\",DataLog!Z1678,\"\")","v":""},{"$f":"IF(DataLog!$C1678=\"Log value\",DataLog!AA1678,\"\")","v":""},{"$f":"IF(DataLog!$C1678=\"Log value\",DataLog!AB1678,\"\")","v":""},{"$f":"IF(DataLog!$C1678=\"Log value\",DataLog!AC1678,\"\")","v":""},{"$f":"IF(DataLog!$C1678=\"Log value\",DataLog!AD1678,\"\")","v":""},{"$f":"IF(DataLog!$C1678=\"Log value\",DataLog!AE1678,\"\")","v":""},{"$f":"IF(DataLog!$C1678=\"Log value\",DataLog!AF1678,\"\")","v":""},{"$f":"IF(DataLog!$C1678=\"Log value\",DataLog!AG1678,\"\")","v":""},{"$f":"IF(DataLog!$C1678=\"Log value\",DataLog!AH1678,\"\")","v":""},{"$f":"IF(DataLog!$C1678=\"Log value\",DataLog!AI1678,\"\")","v":""},{"$f":"IF(DataLog!$C1678=\"Log value\",DataLog!AJ1678,\"\")","v":""},{"$f":"IF(DataLog!$C1678=\"Log value\",DataLog!AK1678,\"\")","v":""},{"$f":"IF(DataLog!$C1678=\"Log value\",DataLog!AL1678,\"\")","v":""},{"$f":"IF(DataLog!$C1678=\"Log value\",DataLog!AM1678,\"\")","v":""}]
[null,null,null,null,null,null,{"$f":"IF(DataLog!$C1680=\"Log value\",DataLog!D1680&\"_\"&TEXT(DataLog!B1680,\"åååå-mm-dd\"),\"\")","v":""},{"$f":"IF(DataLog!$C1680=\"Log value\",DataLog!E1680,\"\")","v":""},{"$f":"IF(DataLog!$C1680=\"Log value\",DataLog!F1680,\"\")","v":""},{"$f":"IF(DataLog!$C1680=\"Log value\",DataLog!G1680,\"\")","v":""},{"$f":"IF(DataLog!$C1680=\"Log value\",DataLog!H1680,\"\")","v":""},{"$f":"IF(DataLog!$C1680=\"Log value\",DataLog!I1680,\"\")","v":""},{"$f":"IF(DataLog!$C1680=\"Log value\",DataLog!J1680,\"\")","v":""},{"$f":"IF(DataLog!$C1680=\"Log value\",DataLog!K1680,\"\")","v":""},{"$f":"IF(DataLog!$C1680=\"Log value\",DataLog!L1680,\"\")","v":""},{"$f":"IF(DataLog!$C1680=\"Log value\",DataLog!M1680,\"\")","v":""},{"$f":"IF(DataLog!$C1680=\"Log value\",DataLog!N1680,\"\")","v":""},{"$f":"IF(DataLog!$C1680=\"Log value\",DataLog!O1680,\"\")","v":""},{"$f":"IF(DataLog!$C1680=\"Log value\",DataLog!P1680,\"\")","v":""},{"$f":"IF(DataLog!$C1680=\"Log value\",DataLog!Q1680,\"\")","v":""},{"$f":"IF(DataLog!$C1680=\"Log value\",DataLog!R1680,\"\")","v":""},{"$f":"IF(DataLog!$C1680=\"Log value\",DataLog!S1680,\"\")","v":""},{"$f":"IF(DataLog!$C1680=\"Log value\",DataLog!T1680,\"\")","v":""},{"$f":"IF(DataLog!$C1680=\"Log value\",DataLog!U1680,\"\")","v":""},{"$f":"IF(DataLog!$C1680=\"Log value\",DataLog!V1680,\"\")","v":""},{"$f":"IF(DataLog!$C1680=\"Log value\",DataLog!W1680,\"\")","v":""},{"$f":"IF(DataLog!$C1680=\"Log value\",DataLog!X1680,\"\")","v":""},{"$f":"IF(DataLog!$C1680=\"Log value\",DataLog!Y1680,\"\")","v":""},{"$f":"IF(DataLog!$C1680=\"Log value\",DataLog!Z1680,\"\")","v":""},{"$f":"IF(DataLog!$C1680=\"Log value\",DataLog!AA1680,\"\")","v":""},{"$f":"IF(DataLog!$C1680=\"Log value\",DataLog!AB1680,\"\")","v":""},{"$f":"IF(DataLog!$C1680=\"Log value\",DataLog!AC1680,\"\")","v":""},{"$f":"IF(DataLog!$C1680=\"Log value\",DataLog!AD1680,\"\")","v":""},{"$f":"IF(DataLog!$C1680=\"Log value\",DataLog!AE1680,\"\")","v":""},{"$f":"IF(DataLog!$C1680=\"Log value\",DataLog!AF1680,\"\")","v":""},{"$f":"IF(DataLog!$C1680=\"Log value\",DataLog!AG1680,\"\")","v":""},{"$f":"IF(DataLog!$C1680=\"Log value\",DataLog!AH1680,\"\")","v":""},{"$f":"IF(DataLog!$C1680=\"Log value\",DataLog!AI1680,\"\")","v":""},{"$f":"IF(DataLog!$C1680=\"Log value\",DataLog!AJ1680,\"\")","v":""},{"$f":"IF(DataLog!$C1680=\"Log value\",DataLog!AK1680,\"\")","v":""},{"$f":"IF(DataLog!$C1680=\"Log value\",DataLog!AL1680,\"\")","v":""},{"$f":"IF(DataLog!$C1680=\"Log value\",DataLog!AM1680,\"\")","v":""}]
[null,null,null,null,null,null,{"$f":"IF(DataLog!$C1683=\"Log value\",DataLog!D1683&\"_\"&TEXT(DataLog!B1683,\"åååå-mm-dd\"),\"\")","v":""},{"$f":"IF(DataLog!$C1683=\"Log value\",DataLog!E1683,\"\")","v":""},{"$f":"IF(DataLog!$C1683=\"Log value\",DataLog!F1683,\"\")","v":""},{"$f":"IF(DataLog!$C1683=\"Log value\",DataLog!G1683,\"\")","v":""},{"$f":"IF(DataLog!$C1683=\"Log value\",DataLog!H1683,\"\")","v":""},{"$f":"IF(DataLog!$C1683=\"Log value\",DataLog!I1683,\"\")","v":""},{"$f":"IF(DataLog!$C1683=\"Log value\",DataLog!J1683,\"\")","v":""},{"$f":"IF(DataLog!$C1683=\"Log value\",DataLog!K1683,\"\")","v":""},{"$f":"IF(DataLog!$C1683=\"Log value\",DataLog!L1683,\"\")","v":""},{"$f":"IF(DataLog!$C1683=\"Log value\",DataLog!M1683,\"\")","v":""},{"$f":"IF(DataLog!$C1683=\"Log value\",DataLog!N1683,\"\")","v":""},{"$f":"IF(DataLog!$C1683=\"Log value\",DataLog!O1683,\"\")","v":""},{"$f":"IF(DataLog!$C1683=\"Log value\",DataLog!P1683,\"\")","v":""},{"$f":"IF(DataLog!$C1683=\"Log value\",DataLog!Q1683,\"\")","v":""},{"$f":"IF(DataLog!$C1683=\"Log value\",DataLog!R1683,\"\")","v":""},{"$f":"IF(DataLog!$C1683=\"Log value\",DataLog!S1683,\"\")","v":""},{"$f":"IF(DataLog!$C1683=\"Log value\",DataLog!T1683,\"\")","v":""},{"$f":"IF(DataLog!$C1683=\"Log value\",DataLog!U1683,\"\")","v":""},{"$f":"IF(DataLog!$C1683=\"Log value\",DataLog!V1683,\"\")","v":""},{"$f":"IF(DataLog!$C1683=\"Log value\",DataLog!W1683,\"\")","v":""},{"$f":"IF(DataLog!$C1683=\"Log value\",DataLog!X1683,\"\")","v":""},{"$f":"IF(DataLog!$C1683=\"Log value\",DataLog!Y1683,\"\")","v":""},{"$f":"IF(DataLog!$C1683=\"Log value\",DataLog!Z1683,\"\")","v":""},{"$f":"IF(DataLog!$C1683=\"Log value\",DataLog!AA1683,\"\")","v":""},{"$f":"IF(DataLog!$C1683=\"Log value\",DataLog!AB1683,\"\")","v":""},{"$f":"IF(DataLog!$C1683=\"Log value\",DataLog!AC1683,\"\")","v":""},{"$f":"IF(DataLog!$C1683=\"Log value\",DataLog!AD1683,\"\")","v":""},{"$f":"IF(DataLog!$C1683=\"Log value\",DataLog!AE1683,\"\")","v":""},{"$f":"IF(DataLog!$C1683=\"Log value\",DataLog!AF1683,\"\")","v":""},{"$f":"IF(DataLog!$C1683=\"Log value\",DataLog!AG1683,\"\")","v":""},{"$f":"IF(DataLog!$C1683=\"Log value\",DataLog!AH1683,\"\")","v":""},{"$f":"IF(DataLog!$C1683=\"Log value\",DataLog!AI1683,\"\")","v":""},{"$f":"IF(DataLog!$C1683=\"Log value\",DataLog!AJ1683,\"\")","v":""},{"$f":"IF(DataLog!$C1683=\"Log value\",DataLog!AK1683,\"\")","v":""},{"$f":"IF(DataLog!$C1683=\"Log value\",DataLog!AL1683,\"\")","v":""},{"$f":"IF(DataLog!$C1683=\"Log value\",DataLog!AM1683,\"\")","v":""}]
[null,null,null,null,null,null,{"$f":"IF(DataLog!$C1684=\"Log value\",DataLog!D1684&\"_\"&TEXT(DataLog!B1684,\"åååå-mm-dd\"),\"\")","v":""},{"$f":"IF(DataLog!$C1684=\"Log value\",DataLog!E1684,\"\")","v":""},{"$f":"IF(DataLog!$C1684=\"Log value\",DataLog!F1684,\"\")","v":""},{"$f":"IF(DataLog!$C1684=\"Log value\",DataLog!G1684,\"\")","v":""},{"$f":"IF(DataLog!$C1684=\"Log value\",DataLog!H1684,\"\")","v":""},{"$f":"IF(DataLog!$C1684=\"Log value\",DataLog!I1684,\"\")","v":""},{"$f":"IF(DataLog!$C1684=\"Log value\",DataLog!J1684,\"\")","v":""},{"$f":"IF(DataLog!$C1684=\"Log value\",DataLog!K1684,\"\")","v":""},{"$f":"IF(DataLog!$C1684=\"Log value\",DataLog!L1684,\"\")","v":""},{"$f":"IF(DataLog!$C1684=\"Log value\",DataLog!M1684,\"\")","v":""},{"$f":"IF(DataLog!$C1684=\"Log value\",DataLog!N1684,\"\")","v":""},{"$f":"IF(DataLog!$C1684=\"Log value\",DataLog!O1684,\"\")","v":""},{"$f":"IF(DataLog!$C1684=\"Log value\",DataLog!P1684,\"\")","v":""},{"$f":"IF(DataLog!$C1684=\"Log value\",DataLog!Q1684,\"\")","v":""},{"$f":"IF(DataLog!$C1684=\"Log value\",DataLog!R1684,\"\")","v":""},{"$f":"IF(DataLog!$C1684=\"Log value\",DataLog!S1684,\"\")","v":""},{"$f":"IF(DataLog!$C1684=\"Log value\",DataLog!T1684,\"\")","v":""},{"$f":"IF(DataLog!$C1684=\"Log value\",DataLog!U1684,\"\")","v":""},{"$f":"IF(DataLog!$C1684=\"Log value\",DataLog!V1684,\"\")","v":""},{"$f":"IF(DataLog!$C1684=\"Log value\",DataLog!W1684,\"\")","v":""},{"$f":"IF(DataLog!$C1684=\"Log value\",DataLog!X1684,\"\")","v":""},{"$f":"IF(DataLog!$C1684=\"Log value\",DataLog!Y1684,\"\")","v":""},{"$f":"IF(DataLog!$C1684=\"Log value\",DataLog!Z1684,\"\")","v":""},{"$f":"IF(DataLog!$C1684=\"Log value\",DataLog!AA1684,\"\")","v":""},{"$f":"IF(DataLog!$C1684=\"Log value\",DataLog!AB1684,\"\")","v":""},{"$f":"IF(DataLog!$C1684=\"Log value\",DataLog!AC1684,\"\")","v":""},{"$f":"IF(DataLog!$C1684=\"Log value\",DataLog!AD1684,\"\")","v":""},{"$f":"IF(DataLog!$C1684=\"Log value\",DataLog!AE1684,\"\")","v":""},{"$f":"IF(DataLog!$C1684=\"Log value\",DataLog!AF1684,\"\")","v":""},{"$f":"IF(DataLog!$C1684=\"Log value\",DataLog!AG1684,\"\")","v":""},{"$f":"IF(DataLog!$C1684=\"Log value\",DataLog!AH1684,\"\")","v":""},{"$f":"IF(DataLog!$C1684=\"Log value\",DataLog!AI1684,\"\")","v":""},{"$f":"IF(DataLog!$C1684=\"Log value\",DataLog!AJ1684,\"\")","v":""},{"$f":"IF(DataLog!$C1684=\"Log value\",DataLog!AK1684,\"\")","v":""},{"$f":"IF(DataLog!$C1684=\"Log value\",DataLog!AL1684,\"\")","v":""},{"$f":"IF(DataLog!$C1684=\"Log value\",DataLog!AM1684,\"\")","v":""}]
[null,null,null,null,null,null,{"$f":"IF(DataLog!$C1687=\"Log value\",DataLog!D1687&\"_\"&TEXT(DataLog!B1687,\"åååå-mm-dd\"),\"\")","v":""},{"$f":"IF(DataLog!$C1687=\"Log value\",DataLog!E1687,\"\")","v":""},{"$f":"IF(DataLog!$C1687=\"Log value\",DataLog!F1687,\"\")","v":""},{"$f":"IF(DataLog!$C1687=\"Log value\",DataLog!G1687,\"\")","v":""},{"$f":"IF(DataLog!$C1687=\"Log value\",DataLog!H1687,\"\")","v":""},{"$f":"IF(DataLog!$C1687=\"Log value\",DataLog!I1687,\"\")","v":""},{"$f":"IF(DataLog!$C1687=\"Log value\",DataLog!J1687,\"\")","v":""},{"$f":"IF(DataLog!$C1687=\"Log value\",DataLog!K1687,\"\")","v":""},{"$f":"IF(DataLog!$C1687=\"Log value\",DataLog!L1687,\"\")","v":""},{"$f":"IF(DataLog!$C1687=\"Log value\",DataLog!M1687,\"\")","v":""},{"$f":"IF(DataLog!$C1687=\"Log value\",DataLog!N1687,\"\")","v":""},{"$f":"IF(DataLog!$C1687=\"Log value\",DataLog!O1687,\"\")","v":""},{"$f":"IF(DataLog!$C1687=\"Log value\",DataLog!P1687,\"\")","v":""},{"$f":"IF(DataLog!$C1687=\"Log value\",DataLog!Q1687,\"\")","v":""},{"$f":"IF(DataLog!$C1687=\"Log value\",DataLog!R1687,\"\")","v":""},{"$f":"IF(DataLog!$C1687=\"Log value\",DataLog!S1687,\"\")","v":""},{"$f":"IF(DataLog!$C1687=\"Log value\",DataLog!T1687,\"\")","v":""},{"$f":"IF(DataLog!$C1687=\"Log value\",DataLog!U1687,\"\")","v":""},{"$f":"IF(DataLog!$C1687=\"Log value\",DataLog!V1687,\"\")","v":""},{"$f":"IF(DataLog!$C1687=\"Log value\",DataLog!W1687,\"\")","v":""},{"$f":"IF(DataLog!$C1687=\"Log value\",DataLog!X1687,\"\")","v":""},{"$f":"IF(DataLog!$C1687=\"Log value\",DataLog!Y1687,\"\")","v":""},{"$f":"IF(DataLog!$C1687=\"Log value\",DataLog!Z1687,\"\")","v":""},{"$f":"IF(DataLog!$C1687=\"Log value\",DataLog!AA1687,\"\")","v":""},{"$f":"IF(DataLog!$C1687=\"Log value\",DataLog!AB1687,\"\")","v":""},{"$f":"IF(DataLog!$C1687=\"Log value\",DataLog!AC1687,\"\")","v":""},{"$f":"IF(DataLog!$C1687=\"Log value\",DataLog!AD1687,\"\")","v":""},{"$f":"IF(DataLog!$C1687=\"Log value\",DataLog!AE1687,\"\")","v":""},{"$f":"IF(DataLog!$C1687=\"Log value\",DataLog!AF1687,\"\")","v":""},{"$f":"IF(DataLog!$C1687=\"Log value\",DataLog!AG1687,\"\")","v":""},{"$f":"IF(DataLog!$C1687=\"Log value\",DataLog!AH1687,\"\")","v":""},{"$f":"IF(DataLog!$C1687=\"Log value\",DataLog!AI1687,\"\")","v":""},{"$f":"IF(DataLog!$C1687=\"Log value\",DataLog!AJ1687,\"\")","v":""},{"$f":"IF(DataLog!$C1687=\"Log value\",DataLog!AK1687,\"\")","v":""},{"$f":"IF(DataLog!$C1687=\"Log value\",DataLog!AL1687,\"\")","v":""},{"$f":"IF(DataLog!$C1687=\"Log value\",DataLog!AM1687,\"\")","v":""}]
[null,null,null,null,null,null,{"$f":"IF(DataLog!$C1690=\"Log value\",DataLog!D1690&\"_\"&TEXT(DataLog!B1690,\"åååå-mm-dd\"),\"\")","v":""},{"$f":"IF(DataLog!$C1690=\"Log value\",DataLog!E1690,\"\")","v":""},{"$f":"IF(DataLog!$C1690=\"Log value\",DataLog!F1690,\"\")","v":""},{"$f":"IF(DataLog!$C1690=\"Log value\",DataLog!G1690,\"\")","v":""},{"$f":"IF(DataLog!$C1690=\"Log value\",DataLog!H1690,\"\")","v":""},{"$f":"IF(DataLog!$C1690=\"Log value\",DataLog!I1690,\"\")","v":""},{"$f":"IF(DataLog!$C1690=\"Log value\",DataLog!J1690,\"\")","v":""},{"$f":"IF(DataLog!$C1690=\"Log value\",DataLog!K1690,\"\")","v":""},{"$f":"IF(DataLog!$C1690=\"Log value\",DataLog!L1690,\"\")","v":""},{"$f":"IF(DataLog!$C1690=\"Log value\",DataLog!M1690,\"\")","v":""},{"$f":"IF(DataLog!$C1690=\"Log value\",DataLog!N1690,\"\")","v":""},{"$f":"IF(DataLog!$C1690=\"Log value\",DataLog!O1690,\"\")","v":""},{"$f":"IF(DataLog!$C1690=\"Log value\",DataLog!P1690,\"\")","v":""},{"$f":"IF(DataLog!$C1690=\"Log value\",DataLog!Q1690,\"\")","v":""},{"$f":"IF(DataLog!$C1690=\"Log value\",DataLog!R1690,\"\")","v":""},{"$f":"IF(DataLog!$C1690=\"Log value\",DataLog!S1690,\"\")","v":""},{"$f":"IF(DataLog!$C1690=\"Log value\",DataLog!T1690,\"\")","v":""},{"$f":"IF(DataLog!$C1690=\"Log value\",DataLog!U1690,\"\")","v":""},{"$f":"IF(DataLog!$C1690=\"Log value\",DataLog!V1690,\"\")","v":""},{"$f":"IF(DataLog!$C1690=\"Log value\",DataLog!W1690,\"\")","v":""},{"$f":"IF(DataLog!$C1690=\"Log value\",DataLog!X1690,\"\")","v":""},{"$f":"IF(DataLog!$C1690=\"Log value\",DataLog!Y1690,\"\")","v":""},{"$f":"IF(DataLog!$C1690=\"Log value\",DataLog!Z1690,\"\")","v":""},{"$f":"IF(DataLog!$C1690=\"Log value\",DataLog!AA1690,\"\")","v":""},{"$f":"IF(DataLog!$C1690=\"Log value\",DataLog!AB1690,\"\")","v":""},{"$f":"IF(DataLog!$C1690=\"Log value\",DataLog!AC1690,\"\")","v":""},{"$f":"IF(DataLog!$C1690=\"Log value\",DataLog!AD1690,\"\")","v":""},{"$f":"IF(DataLog!$C1690=\"Log value\",DataLog!AE1690,\"\")","v":""},{"$f":"IF(DataLog!$C1690=\"Log value\",DataLog!AF1690,\"\")","v":""},{"$f":"IF(DataLog!$C1690=\"Log value\",DataLog!AG1690,\"\")","v":""},{"$f":"IF(DataLog!$C1690=\"Log value\",DataLog!AH1690,\"\")","v":""},{"$f":"IF(DataLog!$C1690=\"Log value\",DataLog!AI1690,\"\")","v":""},{"$f":"IF(DataLog!$C1690=\"Log value\",DataLog!AJ1690,\"\")","v":""},{"$f":"IF(DataLog!$C1690=\"Log value\",DataLog!AK1690,\"\")","v":""},{"$f":"IF(DataLog!$C1690=\"Log value\",DataLog!AL1690,\"\")","v":""},{"$f":"IF(DataLog!$C1690=\"Log value\",DataLog!AM1690,\"\")","v":""}]
[null,null,null,null,null,null,{"$f":"IF(DataLog!$C1692=\"Log value\",DataLog!D1692&\"_\"&TEXT(DataLog!B1692,\"åååå-mm-dd\"),\"\")","v":""},{"$f":"IF(DataLog!$C1692=\"Log value\",DataLog!E1692,\"\")","v":""},{"$f":"IF(DataLog!$C1692=\"Log value\",DataLog!F1692,\"\")","v":""},{"$f":"IF(DataLog!$C1692=\"Log value\",DataLog!G1692,\"\")","v":""},{"$f":"IF(DataLog!$C1692=\"Log value\",DataLog!H1692,\"\")","v":""},{"$f":"IF(DataLog!$C1692=\"Log value\",DataLog!I1692,\"\")","v":""},{"$f":"IF(DataLog!$C1692=\"Log value\",DataLog!J1692,\"\")","v":""},{"$f":"IF(DataLog!$C1692=\"Log value\",DataLog!K1692,\"\")","v":""},{"$f":"IF(DataLog!$C1692=\"Log value\",DataLog!L1692,\"\")","v":""},{"$f":"IF(DataLog!$C1692=\"Log value\",DataLog!M1692,\"\")","v":""},{"$f":"IF(DataLog!$C1692=\"Log value\",DataLog!N1692,\"\")","v":""},{"$f":"IF(DataLog!$C1692=\"Log value\",DataLog!O1692,\"\")","v":""},{"$f":"IF(DataLog!$C1692=\"Log value\",DataLog!P1692,\"\")","v":""},{"$f":"IF(DataLog!$C1692=\"Log value\",DataLog!Q1692,\"\")","v":""},{"$f":"IF(DataLog!$C1692=\"Log value\",DataLog!R1692,\"\")","v":""},{"$f":"IF(DataLog!$C1692=\"Log value\",DataLog!S1692,\"\")","v":""},{"$f":"IF(DataLog!$C1692=\"Log value\",DataLog!T1692,\"\")","v":""},{"$f":"IF(DataLog!$C1692=\"Log value\",DataLog!U1692,\"\")","v":""},{"$f":"IF(DataLog!$C1692=\"Log value\",DataLog!V1692,\"\")","v":""},{"$f":"IF(DataLog!$C1692=\"Log value\",DataLog!W1692,\"\")","v":""},{"$f":"IF(DataLog!$C1692=\"Log value\",DataLog!X1692,\"\")","v":""},{"$f":"IF(DataLog!$C1692=\"Log value\",DataLog!Y1692,\"\")","v":""},{"$f":"IF(DataLog!$C1692=\"Log value\",DataLog!Z1692,\"\")","v":""},{"$f":"IF(DataLog!$C1692=\"Log value\",DataLog!AA1692,\"\")","v":""},{"$f":"IF(DataLog!$C1692=\"Log value\",DataLog!AB1692,\"\")","v":""},{"$f":"IF(DataLog!$C1692=\"Log value\",DataLog!AC1692,\"\")","v":""},{"$f":"IF(DataLog!$C1692=\"Log value\",DataLog!AD1692,\"\")","v":""},{"$f":"IF(DataLog!$C1692=\"Log value\",DataLog!AE1692,\"\")","v":""},{"$f":"IF(DataLog!$C1692=\"Log value\",DataLog!AF1692,\"\")","v":""},{"$f":"IF(DataLog!$C1692=\"Log value\",DataLog!AG1692,\"\")","v":""},{"$f":"IF(DataLog!$C1692=\"Log value\",DataLog!AH1692,\"\")","v":""},{"$f":"IF(DataLog!$C1692=\"Log value\",DataLog!AI1692,\"\")","v":""},{"$f":"IF(DataLog!$C1692=\"Log value\",DataLog!AJ1692,\"\")","v":""},{"$f":"IF(DataLog!$C1692=\"Log value\",DataLog!AK1692,\"\")","v":""},{"$f":"IF(DataLog!$C1692=\"Log value\",DataLog!AL1692,\"\")","v":""},{"$f":"IF(DataLog!$C1692=\"Log value\",DataLog!AM1692,\"\")","v":""}]
[null,null,null,null,null,null,{"$f":"IF(DataLog!$C1693=\"Log value\",DataLog!D1693&\"_\"&TEXT(DataLog!B1693,\"åååå-mm-dd\"),\"\")","v":""},{"$f":"IF(DataLog!$C1693=\"Log value\",DataLog!E1693,\"\")","v":""},{"$f":"IF(DataLog!$C1693=\"Log value\",DataLog!F1693,\"\")","v":""},{"$f":"IF(DataLog!$C1693=\"Log value\",DataLog!G1693,\"\")","v":""},{"$f":"IF(DataLog!$C1693=\"Log value\",DataLog!H1693,\"\")","v":""},{"$f":"IF(DataLog!$C1693=\"Log value\",DataLog!I1693,\"\")","v":""},{"$f":"IF(DataLog!$C1693=\"Log value\",DataLog!J1693,\"\")","v":""},{"$f":"IF(DataLog!$C1693=\"Log value\",DataLog!K1693,\"\")","v":""},{"$f":"IF(DataLog!$C1693=\"Log value\",DataLog!L1693,\"\")","v":""},{"$f":"IF(DataLog!$C1693=\"Log value\",DataLog!M1693,\"\")","v":""},{"$f":"IF(DataLog!$C1693=\"Log value\",DataLog!N1693,\"\")","v":""},{"$f":"IF(DataLog!$C1693=\"Log value\",DataLog!O1693,\"\")","v":""},{"$f":"IF(DataLog!$C1693=\"Log value\",DataLog!P1693,\"\")","v":""},{"$f":"IF(DataLog!$C1693=\"Log value\",DataLog!Q1693,\"\")","v":""},{"$f":"IF(DataLog!$C1693=\"Log value\",DataLog!R1693,\"\")","v":""},{"$f":"IF(DataLog!$C1693=\"Log value\",DataLog!S1693,\"\")","v":""},{"$f":"IF(DataLog!$C1693=\"Log value\",DataLog!T1693,\"\")","v":""},{"$f":"IF(DataLog!$C1693=\"Log value\",DataLog!U1693,\"\")","v":""},{"$f":"IF(DataLog!$C1693=\"Log value\",DataLog!V1693,\"\")","v":""},{"$f":"IF(DataLog!$C1693=\"Log value\",DataLog!W1693,\"\")","v":""},{"$f":"IF(DataLog!$C1693=\"Log value\",DataLog!X1693,\"\")","v":""},{"$f":"IF(DataLog!$C1693=\"Log value\",DataLog!Y1693,\"\")","v":""},{"$f":"IF(DataLog!$C1693=\"Log value\",DataLog!Z1693,\"\")","v":""},{"$f":"IF(DataLog!$C1693=\"Log value\",DataLog!AA1693,\"\")","v":""},{"$f":"IF(DataLog!$C1693=\"Log value\",DataLog!AB1693,\"\")","v":""},{"$f":"IF(DataLog!$C1693=\"Log value\",DataLog!AC1693,\"\")","v":""},{"$f":"IF(DataLog!$C1693=\"Log value\",DataLog!AD1693,\"\")","v":""},{"$f":"IF(DataLog!$C1693=\"Log value\",DataLog!AE1693,\"\")","v":""},{"$f":"IF(DataLog!$C1693=\"Log value\",DataLog!AF1693,\"\")","v":""},{"$f":"IF(DataLog!$C1693=\"Log value\",DataLog!AG1693,\"\")","v":""},{"$f":"IF(DataLog!$C1693=\"Log value\",DataLog!AH1693,\"\")","v":""},{"$f":"IF(DataLog!$C1693=\"Log value\",DataLog!AI1693,\"\")","v":""},{"$f":"IF(DataLog!$C1693=\"Log value\",DataLog!AJ1693,\"\")","v":""},{"$f":"IF(DataLog!$C1693=\"Log value\",DataLog!AK1693,\"\")","v":""},{"$f":"IF(DataLog!$C1693=\"Log value\",DataLog!AL1693,\"\")","v":""},{"$f":"IF(DataLog!$C1693=\"Log value\",DataLog!AM1693,\"\")","v":""}]
[null,null,null,null,null,null,{"$f":"IF(DataLog!$C1696=\"Log value\",DataLog!D1696&\"_\"&TEXT(DataLog!B1696,\"åååå-mm-dd\"),\"\")","v":""},{"$f":"IF(DataLog!$C1696=\"Log value\",DataLog!E1696,\"\")","v":""},{"$f":"IF(DataLog!$C1696=\"Log value\",DataLog!F1696,\"\")","v":""},{"$f":"IF(DataLog!$C1696=\"Log value\",DataLog!G1696,\"\")","v":""},{"$f":"IF(DataLog!$C1696=\"Log value\",DataLog!H1696,\"\")","v":""},{"$f":"IF(DataLog!$C1696=\"Log value\",DataLog!I1696,\"\")","v":""},{"$f":"IF(DataLog!$C1696=\"Log value\",DataLog!J1696,\"\")","v":""},{"$f":"IF(DataLog!$C1696=\"Log value\",DataLog!K1696,\"\")","v":""},{"$f":"IF(DataLog!$C1696=\"Log value\",DataLog!L1696,\"\")","v":""},{"$f":"IF(DataLog!$C1696=\"Log value\",DataLog!M1696,\"\")","v":""},{"$f":"IF(DataLog!$C1696=\"Log value\",DataLog!N1696,\"\")","v":""},{"$f":"IF(DataLog!$C1696=\"Log value\",DataLog!O1696,\"\")","v":""},{"$f":"IF(DataLog!$C1696=\"Log value\",DataLog!P1696,\"\")","v":""},{"$f":"IF(DataLog!$C1696=\"Log value\",DataLog!Q1696,\"\")","v":""},{"$f":"IF(DataLog!$C1696=\"Log value\",DataLog!R1696,\"\")","v":""},{"$f":"IF(DataLog!$C1696=\"Log value\",DataLog!S1696,\"\")","v":""},{"$f":"IF(DataLog!$C1696=\"Log value\",DataLog!T1696,\"\")","v":""},{"$f":"IF(DataLog!$C1696=\"Log value\",DataLog!U1696,\"\")","v":""},{"$f":"IF(DataLog!$C1696=\"Log value\",DataLog!V1696,\"\")","v":""},{"$f":"IF(DataLog!$C1696=\"Log value\",DataLog!W1696,\"\")","v":""},{"$f":"IF(DataLog!$C1696=\"Log value\",DataLog!X1696,\"\")","v":""},{"$f":"IF(DataLog!$C1696=\"Log value\",DataLog!Y1696,\"\")","v":""},{"$f":"IF(DataLog!$C1696=\"Log value\",DataLog!Z1696,\"\")","v":""},{"$f":"IF(DataLog!$C1696=\"Log value\",DataLog!AA1696,\"\")","v":""},{"$f":"IF(DataLog!$C1696=\"Log value\",DataLog!AB1696,\"\")","v":""},{"$f":"IF(DataLog!$C1696=\"Log value\",DataLog!AC1696,\"\")","v":""},{"$f":"IF(DataLog!$C1696=\"Log value\",DataLog!AD1696,\"\")","v":""},{"$f":"IF(DataLog!$C1696=\"Log value\",DataLog!AE1696,\"\")","v":""},{"$f":"IF(DataLog!$C1696=\"Log value\",DataLog!AF1696,\"\")","v":""},{"$f":"IF(DataLog!$C1696=\"Log value\",DataLog!AG1696,\"\")","v":""},{"$f":"IF(DataLog!$C1696=\"Log value\",DataLog!AH1696,\"\")","v":""},{"$f":"IF(DataLog!$C1696=\"Log value\",DataLog!AI1696,\"\")","v":""},{"$f":"IF(DataLog!$C1696=\"Log value\",DataLog!AJ1696,\"\")","v":""},{"$f":"IF(DataLog!$C1696=\"Log value\",DataLog!AK1696,\"\")","v":""},{"$f":"IF(DataLog!$C1696=\"Log value\",DataLog!AL1696,\"\")","v":""},{"$f":"IF(DataLog!$C1696=\"Log value\",DataLog!AM1696,\"\")","v":""}]
[null,null,null,null,null,null,{"$f":"IF(DataLog!$C1698=\"Log value\",DataLog!D1698&\"_\"&TEXT(DataLog!B1698,\"åååå-mm-dd\"),\"\")","v":""},{"$f":"IF(DataLog!$C1698=\"Log value\",DataLog!E1698,\"\")","v":""},{"$f":"IF(DataLog!$C1698=\"Log value\",DataLog!F1698,\"\")","v":""},{"$f":"IF(DataLog!$C1698=\"Log value\",DataLog!G1698,\"\")","v":""},{"$f":"IF(DataLog!$C1698=\"Log value\",DataLog!H1698,\"\")","v":""},{"$f":"IF(DataLog!$C1698=\"Log value\",DataLog!I1698,\"\")","v":""},{"$f":"IF(DataLog!$C1698=\"Log value\",DataLog!J1698,\"\")","v":""},{"$f":"IF(DataLog!$C1698=\"Log value\",DataLog!K1698,\"\")","v":""},{"$f":"IF(DataLog!$C1698=\"Log value\",DataLog!L1698,\"\")","v":""},{"$f":"IF(DataLog!$C1698=\"Log value\",DataLog!M1698,\"\")","v":""},{"$f":"IF(DataLog!$C1698=\"Log value\",DataLog!N1698,\"\")","v":""},{"$f":"IF(DataLog!$C1698=\"Log value\",DataLog!O1698,\"\")","v":""},{"$f":"IF(DataLog!$C1698=\"Log value\",DataLog!P1698,\"\")","v":""},{"$f":"IF(DataLog!$C1698=\"Log value\",DataLog!Q1698,\"\")","v":""},{"$f":"IF(DataLog!$C1698=\"Log value\",DataLog!R1698,\"\")","v":""},{"$f":"IF(DataLog!$C1698=\"Log value\",DataLog!S1698,\"\")","v":""},{"$f":"IF(DataLog!$C1698=\"Log value\",DataLog!T1698,\"\")","v":""},{"$f":"IF(DataLog!$C1698=\"Log value\",DataLog!U1698,\"\")","v":""},{"$f":"IF(DataLog!$C1698=\"Log value\",DataLog!V1698,\"\")","v":""},{"$f":"IF(DataLog!$C1698=\"Log value\",DataLog!W1698,\"\")","v":""},{"$f":"IF(DataLog!$C1698=\"Log value\",DataLog!X1698,\"\")","v":""},{"$f":"IF(DataLog!$C1698=\"Log value\",DataLog!Y1698,\"\")","v":""},{"$f":"IF(DataLog!$C1698=\"Log value\",DataLog!Z1698,\"\")","v":""},{"$f":"IF(DataLog!$C1698=\"Log value\",DataLog!AA1698,\"\")","v":""},{"$f":"IF(DataLog!$C1698=\"Log value\",DataLog!AB1698,\"\")","v":""},{"$f":"IF(DataLog!$C1698=\"Log value\",DataLog!AC1698,\"\")","v":""},{"$f":"IF(DataLog!$C1698=\"Log value\",DataLog!AD1698,\"\")","v":""},{"$f":"IF(DataLog!$C1698=\"Log value\",DataLog!AE1698,\"\")","v":""},{"$f":"IF(DataLog!$C1698=\"Log value\",DataLog!AF1698,\"\")","v":""},{"$f":"IF(DataLog!$C1698=\"Log value\",DataLog!AG1698,\"\")","v":""},{"$f":"IF(DataLog!$C1698=\"Log value\",DataLog!AH1698,\"\")","v":""},{"$f":"IF(DataLog!$C1698=\"Log value\",DataLog!AI1698,\"\")","v":""},{"$f":"IF(DataLog!$C1698=\"Log value\",DataLog!AJ1698,\"\")","v":""},{"$f":"IF(DataLog!$C1698=\"Log value\",DataLog!AK1698,\"\")","v":""},{"$f":"IF(DataLog!$C1698=\"Log value\",DataLog!AL1698,\"\")","v":""},{"$f":"IF(DataLog!$C1698=\"Log value\",DataLog!AM1698,\"\")","v":""}]
[null,null,null,null,null,null,{"$f":"IF(DataLog!$C1701=\"Log value\",DataLog!D1701&\"_\"&TEXT(DataLog!B1701,\"åååå-mm-dd\"),\"\")","v":""},{"$f":"IF(DataLog!$C1701=\"Log value\",DataLog!E1701,\"\")","v":""},{"$f":"IF(DataLog!$C1701=\"Log value\",DataLog!F1701,\"\")","v":""},{"$f":"IF(DataLog!$C1701=\"Log value\",DataLog!G1701,\"\")","v":""},{"$f":"IF(DataLog!$C1701=\"Log value\",DataLog!H1701,\"\")","v":""},{"$f":"IF(DataLog!$C1701=\"Log value\",DataLog!I1701,\"\")","v":""},{"$f":"IF(DataLog!$C1701=\"Log value\",DataLog!J1701,\"\")","v":""},{"$f":"IF(DataLog!$C1701=\"Log value\",DataLog!K1701,\"\")","v":""},{"$f":"IF(DataLog!$C1701=\"Log value\",DataLog!L1701,\"\")","v":""},{"$f":"IF(DataLog!$C1701=\"Log value\",DataLog!M1701,\"\")","v":""},{"$f":"IF(DataLog!$C1701=\"Log value\",DataLog!N1701,\"\")","v":""},{"$f":"IF(DataLog!$C1701=\"Log value\",DataLog!O1701,\"\")","v":""},{"$f":"IF(DataLog!$C1701=\"Log value\",DataLog!P1701,\"\")","v":""},{"$f":"IF(DataLog!$C1701=\"Log value\",DataLog!Q1701,\"\")","v":""},{"$f":"IF(DataLog!$C1701=\"Log value\",DataLog!R1701,\"\")","v":""},{"$f":"IF(DataLog!$C1701=\"Log value\",DataLog!S1701,\"\")","v":""},{"$f":"IF(DataLog!$C1701=\"Log value\",DataLog!T1701,\"\")","v":""},{"$f":"IF(DataLog!$C1701=\"Log value\",DataLog!U1701,\"\")","v":""},{"$f":"IF(DataLog!$C1701=\"Log value\",DataLog!V1701,\"\")","v":""},{"$f":"IF(DataLog!$C1701=\"Log value\",DataLog!W1701,\"\")","v":""},{"$f":"IF(DataLog!$C1701=\"Log value\",DataLog!X1701,\"\")","v":""},{"$f":"IF(DataLog!$C1701=\"Log value\",DataLog!Y1701,\"\")","v":""},{"$f":"IF(DataLog!$C1701=\"Log value\",DataLog!Z1701,\"\")","v":""},{"$f":"IF(DataLog!$C1701=\"Log value\",DataLog!AA1701,\"\")","v":""},{"$f":"IF(DataLog!$C1701=\"Log value\",DataLog!AB1701,\"\")","v":""},{"$f":"IF(DataLog!$C1701=\"Log value\",DataLog!AC1701,\"\")","v":""},{"$f":"IF(DataLog!$C1701=\"Log value\",DataLog!AD1701,\"\")","v":""},{"$f":"IF(DataLog!$C1701=\"Log value\",DataLog!AE1701,\"\")","v":""},{"$f":"IF(DataLog!$C1701=\"Log value\",DataLog!AF1701,\"\")","v":""},{"$f":"IF(DataLog!$C1701=\"Log value\",DataLog!AG1701,\"\")","v":""},{"$f":"IF(DataLog!$C1701=\"Log value\",DataLog!AH1701,\"\")","v":""},{"$f":"IF(DataLog!$C1701=\"Log value\",DataLog!AI1701,\"\")","v":""},{"$f":"IF(DataLog!$C1701=\"Log value\",DataLog!AJ1701,\"\")","v":""},{"$f":"IF(DataLog!$C1701=\"Log value\",DataLog!AK1701,\"\")","v":""},{"$f":"IF(DataLog!$C1701=\"Log value\",DataLog!AL1701,\"\")","v":""},{"$f":"IF(DataLog!$C1701=\"Log value\",DataLog!AM1701,\"\")","v":""}]
[null,null,null,null,null,null,{"$f":"IF(DataLog!$C1702=\"Log value\",DataLog!D1702&\"_\"&TEXT(DataLog!B1702,\"åååå-mm-dd\"),\"\")","v":""},{"$f":"IF(DataLog!$C1702=\"Log value\",DataLog!E1702,\"\")","v":""},{"$f":"IF(DataLog!$C1702=\"Log value\",DataLog!F1702,\"\")","v":""},{"$f":"IF(DataLog!$C1702=\"Log value\",DataLog!G1702,\"\")","v":""},{"$f":"IF(DataLog!$C1702=\"Log value\",DataLog!H1702,\"\")","v":""},{"$f":"IF(DataLog!$C1702=\"Log value\",DataLog!I1702,\"\")","v":""},{"$f":"IF(DataLog!$C1702=\"Log value\",DataLog!J1702,\"\")","v":""},{"$f":"IF(DataLog!$C1702=\"Log value\",DataLog!K1702,\"\")","v":""},{"$f":"IF(DataLog!$C1702=\"Log value\",DataLog!L1702,\"\")","v":""},{"$f":"IF(DataLog!$C1702=\"Log value\",DataLog!M1702,\"\")","v":""},{"$f":"IF(DataLog!$C1702=\"Log value\",DataLog!N1702,\"\")","v":""},{"$f":"IF(DataLog!$C1702=\"Log value\",DataLog!O1702,\"\")","v":""},{"$f":"IF(DataLog!$C1702=\"Log value\",DataLog!P1702,\"\")","v":""},{"$f":"IF(DataLog!$C1702=\"Log value\",DataLog!Q1702,\"\")","v":""},{"$f":"IF(DataLog!$C1702=\"Log value\",DataLog!R1702,\"\")","v":""},{"$f":"IF(DataLog!$C1702=\"Log value\",DataLog!S1702,\"\")","v":""},{"$f":"IF(DataLog!$C1702=\"Log value\",DataLog!T1702,\"\")","v":""},{"$f":"IF(DataLog!$C1702=\"Log value\",DataLog!U1702,\"\")","v":""},{"$f":"IF(DataLog!$C1702=\"Log value\",DataLog!V1702,\"\")","v":""},{"$f":"IF(DataLog!$C1702=\"Log value\",DataLog!W1702,\"\")","v":""},{"$f":"IF(DataLog!$C1702=\"Log value\",DataLog!X1702,\"\")","v":""},{"$f":"IF(DataLog!$C1702=\"Log value\",DataLog!Y1702,\"\")","v":""},{"$f":"IF(DataLog!$C1702=\"Log value\",DataLog!Z1702,\"\")","v":""},{"$f":"IF(DataLog!$C1702=\"Log value\",DataLog!AA1702,\"\")","v":""},{"$f":"IF(DataLog!$C1702=\"Log value\",DataLog!AB1702,\"\")","v":""},{"$f":"IF(DataLog!$C1702=\"Log value\",DataLog!AC1702,\"\")","v":""},{"$f":"IF(DataLog!$C1702=\"Log value\",DataLog!AD1702,\"\")","v":""},{"$f":"IF(DataLog!$C1702=\"Log value\",DataLog!AE1702,\"\")","v":""},{"$f":"IF(DataLog!$C1702=\"Log value\",DataLog!AF1702,\"\")","v":""},{"$f":"IF(DataLog!$C1702=\"Log value\",DataLog!AG1702,\"\")","v":""},{"$f":"IF(DataLog!$C1702=\"Log value\",DataLog!AH1702,\"\")","v":""},{"$f":"IF(DataLog!$C1702=\"Log value\",DataLog!AI1702,\"\")","v":""},{"$f":"IF(DataLog!$C1702=\"Log value\",DataLog!AJ1702,\"\")","v":""},{"$f":"IF(DataLog!$C1702=\"Log value\",DataLog!AK1702,\"\")","v":""},{"$f":"IF(DataLog!$C1702=\"Log value\",DataLog!AL1702,\"\")","v":""},{"$f":"IF(DataLog!$C1702=\"Log value\",DataLog!AM1702,\"\")","v":""}]
[null,null,null,null,null,null,{"$f":"IF(DataLog!$C1706=\"Log value\",DataLog!D1706&\"_\"&TEXT(DataLog!B1706,\"åååå-mm-dd\"),\"\")","v":""},{"$f":"IF(DataLog!$C1706=\"Log value\",DataLog!E1706,\"\")","v":""},{"$f":"IF(DataLog!$C1706=\"Log value\",DataLog!F1706,\"\")","v":""},{"$f":"IF(DataLog!$C1706=\"Log value\",DataLog!G1706,\"\")","v":""},{"$f":"IF(DataLog!$C1706=\"Log value\",DataLog!H1706,\"\")","v":""},{"$f":"IF(DataLog!$C1706=\"Log value\",DataLog!I1706,\"\")","v":""},{"$f":"IF(DataLog!$C1706=\"Log value\",DataLog!J1706,\"\")","v":""},{"$f":"IF(DataLog!$C1706=\"Log value\",DataLog!K1706,\"\")","v":""},{"$f":"IF(DataLog!$C1706=\"Log value\",DataLog!L1706,\"\")","v":""},{"$f":"IF(DataLog!$C1706=\"Log value\",DataLog!M1706,\"\")","v":""},{"$f":"IF(DataLog!$C1706=\"Log value\",DataLog!N1706,\"\")","v":""},{"$f":"IF(DataLog!$C1706=\"Log value\",DataLog!O1706,\"\")","v":""},{"$f":"IF(DataLog!$C1706=\"Log value\",DataLog!P1706,\"\")","v":""},{"$f":"IF(DataLog!$C1706=\"Log value\",DataLog!Q1706,\"\")","v":""},{"$f":"IF(DataLog!$C1706=\"Log value\",DataLog!R1706,\"\")","v":""},{"$f":"IF(DataLog!$C1706=\"Log value\",DataLog!S1706,\"\")","v":""},{"$f":"IF(DataLog!$C1706=\"Log value\",DataLog!T1706,\"\")","v":""},{"$f":"IF(DataLog!$C1706=\"Log value\",DataLog!U1706,\"\")","v":""},{"$f":"IF(DataLog!$C1706=\"Log value\",DataLog!V1706,\"\")","v":""},{"$f":"IF(DataLog!$C1706=\"Log value\",DataLog!W1706,\"\")","v":""},{"$f":"IF(DataLog!$C1706=\"Log value\",DataLog!X1706,\"\")","v":""},{"$f":"IF(DataLog!$C1706=\"Log value\",DataLog!Y1706,\"\")","v":""},{"$f":"IF(DataLog!$C1706=\"Log value\",DataLog!Z1706,\"\")","v":""},{"$f":"IF(DataLog!$C1706=\"Log value\",DataLog!AA1706,\"\")","v":""},{"$f":"IF(DataLog!$C1706=\"Log value\",DataLog!AB1706,\"\")","v":""},{"$f":"IF(DataLog!$C1706=\"Log value\",DataLog!AC1706,\"\")","v":""},{"$f":"IF(DataLog!$C1706=\"Log value\",DataLog!AD1706,\"\")","v":""},{"$f":"IF(DataLog!$C1706=\"Log value\",DataLog!AE1706,\"\")","v":""},{"$f":"IF(DataLog!$C1706=\"Log value\",DataLog!AF1706,\"\")","v":""},{"$f":"IF(DataLog!$C1706=\"Log value\",DataLog!AG1706,\"\")","v":""},{"$f":"IF(DataLog!$C1706=\"Log value\",DataLog!AH1706,\"\")","v":""},{"$f":"IF(DataLog!$C1706=\"Log value\",DataLog!AI1706,\"\")","v":""},{"$f":"IF(DataLog!$C1706=\"Log value\",DataLog!AJ1706,\"\")","v":""},{"$f":"IF(DataLog!$C1706=\"Log value\",DataLog!AK1706,\"\")","v":""},{"$f":"IF(DataLog!$C1706=\"Log value\",DataLog!AL1706,\"\")","v":""},{"$f":"IF(DataLog!$C1706=\"Log value\",DataLog!AM1706,\"\")","v":""}]
[null,null,null,null,null,null,{"$f":"IF(DataLog!$C1707=\"Log value\",DataLog!D1707&\"_\"&TEXT(DataLog!B1707,\"åååå-mm-dd\"),\"\")","v":""},{"$f":"IF(DataLog!$C1707=\"Log value\",DataLog!E1707,\"\")","v":""},{"$f":"IF(DataLog!$C1707=\"Log value\",DataLog!F1707,\"\")","v":""},{"$f":"IF(DataLog!$C1707=\"Log value\",DataLog!G1707,\"\")","v":""},{"$f":"IF(DataLog!$C1707=\"Log value\",DataLog!H1707,\"\")","v":""},{"$f":"IF(DataLog!$C1707=\"Log value\",DataLog!I1707,\"\")","v":""},{"$f":"IF(DataLog!$C1707=\"Log value\",DataLog!J1707,\"\")","v":""},{"$f":"IF(DataLog!$C1707=\"Log value\",DataLog!K1707,\"\")","v":""},{"$f":"IF(DataLog!$C1707=\"Log value\",DataLog!L1707,\"\")","v":""},{"$f":"IF(DataLog!$C1707=\"Log value\",DataLog!M1707,\"\")","v":""},{"$f":"IF(DataLog!$C1707=\"Log value\",DataLog!N1707,\"\")","v":""},{"$f":"IF(DataLog!$C1707=\"Log value\",DataLog!O1707,\"\")","v":""},{"$f":"IF(DataLog!$C1707=\"Log value\",DataLog!P1707,\"\")","v":""},{"$f":"IF(DataLog!$C1707=\"Log value\",DataLog!Q1707,\"\")","v":""},{"$f":"IF(DataLog!$C1707=\"Log value\",DataLog!R1707,\"\")","v":""},{"$f":"IF(DataLog!$C1707=\"Log value\",DataLog!S1707,\"\")","v":""},{"$f":"IF(DataLog!$C1707=\"Log value\",DataLog!T1707,\"\")","v":""},{"$f":"IF(DataLog!$C1707=\"Log value\",DataLog!U1707,\"\")","v":""},{"$f":"IF(DataLog!$C1707=\"Log value\",DataLog!V1707,\"\")","v":""},{"$f":"IF(DataLog!$C1707=\"Log value\",DataLog!W1707,\"\")","v":""},{"$f":"IF(DataLog!$C1707=\"Log value\",DataLog!X1707,\"\")","v":""},{"$f":"IF(DataLog!$C1707=\"Log value\",DataLog!Y1707,\"\")","v":""},{"$f":"IF(DataLog!$C1707=\"Log value\",DataLog!Z1707,\"\")","v":""},{"$f":"IF(DataLog!$C1707=\"Log value\",DataLog!AA1707,\"\")","v":""},{"$f":"IF(DataLog!$C1707=\"Log value\",DataLog!AB1707,\"\")","v":""},{"$f":"IF(DataLog!$C1707=\"Log value\",DataLog!AC1707,\"\")","v":""},{"$f":"IF(DataLog!$C1707=\"Log value\",DataLog!AD1707,\"\")","v":""},{"$f":"IF(DataLog!$C1707=\"Log value\",DataLog!AE1707,\"\")","v":""},{"$f":"IF(DataLog!$C1707=\"Log value\",DataLog!AF1707,\"\")","v":""},{"$f":"IF(DataLog!$C1707=\"Log value\",DataLog!AG1707,\"\")","v":""},{"$f":"IF(DataLog!$C1707=\"Log value\",DataLog!AH1707,\"\")","v":""},{"$f":"IF(DataLog!$C1707=\"Log value\",DataLog!AI1707,\"\")","v":""},{"$f":"IF(DataLog!$C1707=\"Log value\",DataLog!AJ1707,\"\")","v":""},{"$f":"IF(DataLog!$C1707=\"Log value\",DataLog!AK1707,\"\")","v":""},{"$f":"IF(DataLog!$C1707=\"Log value\",DataLog!AL1707,\"\")","v":""},{"$f":"IF(DataLog!$C1707=\"Log value\",DataLog!AM1707,\"\")","v":""}]
[null,null,null,null,null,null,{"$f":"IF(DataLog!$C1710=\"Log value\",DataLog!D1710&\"_\"&TEXT(DataLog!B1710,\"åååå-mm-dd\"),\"\")","v":""},{"$f":"IF(DataLog!$C1710=\"Log value\",DataLog!E1710,\"\")","v":""},{"$f":"IF(DataLog!$C1710=\"Log value\",DataLog!F1710,\"\")","v":""},{"$f":"IF(DataLog!$C1710=\"Log value\",DataLog!G1710,\"\")","v":""},{"$f":"IF(DataLog!$C1710=\"Log value\",DataLog!H1710,\"\")","v":""},{"$f":"IF(DataLog!$C1710=\"Log value\",DataLog!I1710,\"\")","v":""},{"$f":"IF(DataLog!$C1710=\"Log value\",DataLog!J1710,\"\")","v":""},{"$f":"IF(DataLog!$C1710=\"Log value\",DataLog!K1710,\"\")","v":""},{"$f":"IF(DataLog!$C1710=\"Log value\",DataLog!L1710,\"\")","v":""},{"$f":"IF(DataLog!$C1710=\"Log value\",DataLog!M1710,\"\")","v":""},{"$f":"IF(DataLog!$C1710=\"Log value\",DataLog!N1710,\"\")","v":""},{"$f":"IF(DataLog!$C1710=\"Log value\",DataLog!O1710,\"\")","v":""},{"$f":"IF(DataLog!$C1710=\"Log value\",DataLog!P1710,\"\")","v":""},{"$f":"IF(DataLog!$C1710=\"Log value\",DataLog!Q1710,\"\")","v":""},{"$f":"IF(DataLog!$C1710=\"Log value\",DataLog!R1710,\"\")","v":""},{"$f":"IF(DataLog!$C1710=\"Log value\",DataLog!S1710,\"\")","v":""},{"$f":"IF(DataLog!$C1710=\"Log value\",DataLog!T1710,\"\")","v":""},{"$f":"IF(DataLog!$C1710=\"Log value\",DataLog!U1710,\"\")","v":""},{"$f":"IF(DataLog!$C1710=\"Log value\",DataLog!V1710,\"\")","v":""},{"$f":"IF(DataLog!$C1710=\"Log value\",DataLog!W1710,\"\")","v":""},{"$f":"IF(DataLog!$C1710=\"Log value\",DataLog!X1710,\"\")","v":""},{"$f":"IF(DataLog!$C1710=\"Log value\",DataLog!Y1710,\"\")","v":""},{"$f":"IF(DataLog!$C1710=\"Log value\",DataLog!Z1710,\"\")","v":""},{"$f":"IF(DataLog!$C1710=\"Log value\",DataLog!AA1710,\"\")","v":""},{"$f":"IF(DataLog!$C1710=\"Log value\",DataLog!AB1710,\"\")","v":""},{"$f":"IF(DataLog!$C1710=\"Log value\",DataLog!AC1710,\"\")","v":""},{"$f":"IF(DataLog!$C1710=\"Log value\",DataLog!AD1710,\"\")","v":""},{"$f":"IF(DataLog!$C1710=\"Log value\",DataLog!AE1710,\"\")","v":""},{"$f":"IF(DataLog!$C1710=\"Log value\",DataLog!AF1710,\"\")","v":""},{"$f":"IF(DataLog!$C1710=\"Log value\",DataLog!AG1710,\"\")","v":""},{"$f":"IF(DataLog!$C1710=\"Log value\",DataLog!AH1710,\"\")","v":""},{"$f":"IF(DataLog!$C1710=\"Log value\",DataLog!AI1710,\"\")","v":""},{"$f":"IF(DataLog!$C1710=\"Log value\",DataLog!AJ1710,\"\")","v":""},{"$f":"IF(DataLog!$C1710=\"Log value\",DataLog!AK1710,\"\")","v":""},{"$f":"IF(DataLog!$C1710=\"Log value\",DataLog!AL1710,\"\")","v":""},{"$f":"IF(DataLog!$C1710=\"Log value\",DataLog!AM1710,\"\")","v":""}]
[null,null,null,null,null,null,{"$f":"IF(DataLog!$C1711=\"Log value\",DataLog!D1711&\"_\"&TEXT(DataLog!B1711,\"åååå-mm-dd\"),\"\")","v":""},{"$f":"IF(DataLog!$C1711=\"Log value\",DataLog!E1711,\"\")","v":""},{"$f":"IF(DataLog!$C1711=\"Log value\",DataLog!F1711,\"\")","v":""},{"$f":"IF(DataLog!$C1711=\"Log value\",DataLog!G1711,\"\")","v":""},{"$f":"IF(DataLog!$C1711=\"Log value\",DataLog!H1711,\"\")","v":""},{"$f":"IF(DataLog!$C1711=\"Log value\",DataLog!I1711,\"\")","v":""},{"$f":"IF(DataLog!$C1711=\"Log value\",DataLog!J1711,\"\")","v":""},{"$f":"IF(DataLog!$C1711=\"Log value\",DataLog!K1711,\"\")","v":""},{"$f":"IF(DataLog!$C1711=\"Log value\",DataLog!L1711,\"\")","v":""},{"$f":"IF(DataLog!$C1711=\"Log value\",DataLog!M1711,\"\")","v":""},{"$f":"IF(DataLog!$C1711=\"Log value\",DataLog!N1711,\"\")","v":""},{"$f":"IF(DataLog!$C1711=\"Log value\",DataLog!O1711,\"\")","v":""},{"$f":"IF(DataLog!$C1711=\"Log value\",DataLog!P1711,\"\")","v":""},{"$f":"IF(DataLog!$C1711=\"Log value\",DataLog!Q1711,\"\")","v":""},{"$f":"IF(DataLog!$C1711=\"Log value\",DataLog!R1711,\"\")","v":""},{"$f":"IF(DataLog!$C1711=\"Log value\",DataLog!S1711,\"\")","v":""},{"$f":"IF(DataLog!$C1711=\"Log value\",DataLog!T1711,\"\")","v":""},{"$f":"IF(DataLog!$C1711=\"Log value\",DataLog!U1711,\"\")","v":""},{"$f":"IF(DataLog!$C1711=\"Log value\",DataLog!V1711,\"\")","v":""},{"$f":"IF(DataLog!$C1711=\"Log value\",DataLog!W1711,\"\")","v":""},{"$f":"IF(DataLog!$C1711=\"Log value\",DataLog!X1711,\"\")","v":""},{"$f":"IF(DataLog!$C1711=\"Log value\",DataLog!Y1711,\"\")","v":""},{"$f":"IF(DataLog!$C1711=\"Log value\",DataLog!Z1711,\"\")","v":""},{"$f":"IF(DataLog!$C1711=\"Log value\",DataLog!AA1711,\"\")","v":""},{"$f":"IF(DataLog!$C1711=\"Log value\",DataLog!AB1711,\"\")","v":""},{"$f":"IF(DataLog!$C1711=\"Log value\",DataLog!AC1711,\"\")","v":""},{"$f":"IF(DataLog!$C1711=\"Log value\",DataLog!AD1711,\"\")","v":""},{"$f":"IF(DataLog!$C1711=\"Log value\",DataLog!AE1711,\"\")","v":""},{"$f":"IF(DataLog!$C1711=\"Log value\",DataLog!AF1711,\"\")","v":""},{"$f":"IF(DataLog!$C1711=\"Log value\",DataLog!AG1711,\"\")","v":""},{"$f":"IF(DataLog!$C1711=\"Log value\",DataLog!AH1711,\"\")","v":""},{"$f":"IF(DataLog!$C1711=\"Log value\",DataLog!AI1711,\"\")","v":""},{"$f":"IF(DataLog!$C1711=\"Log value\",DataLog!AJ1711,\"\")","v":""},{"$f":"IF(DataLog!$C1711=\"Log value\",DataLog!AK1711,\"\")","v":""},{"$f":"IF(DataLog!$C1711=\"Log value\",DataLog!AL1711,\"\")","v":""},{"$f":"IF(DataLog!$C1711=\"Log value\",DataLog!AM1711,\"\")","v":""}]
[null,null,null,null,null,null,{"$f":"IF(DataLog!$C1714=\"Log value\",DataLog!D1714&\"_\"&TEXT(DataLog!B1714,\"åååå-mm-dd\"),\"\")","v":""},{"$f":"IF(DataLog!$C1714=\"Log value\",DataLog!E1714,\"\")","v":""},{"$f":"IF(DataLog!$C1714=\"Log value\",DataLog!F1714,\"\")","v":""},{"$f":"IF(DataLog!$C1714=\"Log value\",DataLog!G1714,\"\")","v":""},{"$f":"IF(DataLog!$C1714=\"Log value\",DataLog!H1714,\"\")","v":""},{"$f":"IF(DataLog!$C1714=\"Log value\",DataLog!I1714,\"\")","v":""},{"$f":"IF(DataLog!$C1714=\"Log value\",DataLog!J1714,\"\")","v":""},{"$f":"IF(DataLog!$C1714=\"Log value\",DataLog!K1714,\"\")","v":""},{"$f":"IF(DataLog!$C1714=\"Log value\",DataLog!L1714,\"\")","v":""},{"$f":"IF(DataLog!$C1714=\"Log value\",DataLog!M1714,\"\")","v":""},{"$f":"IF(DataLog!$C1714=\"Log value\",DataLog!N1714,\"\")","v":""},{"$f":"IF(DataLog!$C1714=\"Log value\",DataLog!O1714,\"\")","v":""},{"$f":"IF(DataLog!$C1714=\"Log value\",DataLog!P1714,\"\")","v":""},{"$f":"IF(DataLog!$C1714=\"Log value\",DataLog!Q1714,\"\")","v":""},{"$f":"IF(DataLog!$C1714=\"Log value\",DataLog!R1714,\"\")","v":""},{"$f":"IF(DataLog!$C1714=\"Log value\",DataLog!S1714,\"\")","v":""},{"$f":"IF(DataLog!$C1714=\"Log value\",DataLog!T1714,\"\")","v":""},{"$f":"IF(DataLog!$C1714=\"Log value\",DataLog!U1714,\"\")","v":""},{"$f":"IF(DataLog!$C1714=\"Log value\",DataLog!V1714,\"\")","v":""},{"$f":"IF(DataLog!$C1714=\"Log value\",DataLog!W1714,\"\")","v":""},{"$f":"IF(DataLog!$C1714=\"Log value\",DataLog!X1714,\"\")","v":""},{"$f":"IF(DataLog!$C1714=\"Log value\",DataLog!Y1714,\"\")","v":""},{"$f":"IF(DataLog!$C1714=\"Log value\",DataLog!Z1714,\"\")","v":""},{"$f":"IF(DataLog!$C1714=\"Log value\",DataLog!AA1714,\"\")","v":""},{"$f":"IF(DataLog!$C1714=\"Log value\",DataLog!AB1714,\"\")","v":""},{"$f":"IF(DataLog!$C1714=\"Log value\",DataLog!AC1714,\"\")","v":""},{"$f":"IF(DataLog!$C1714=\"Log value\",DataLog!AD1714,\"\")","v":""},{"$f":"IF(DataLog!$C1714=\"Log value\",DataLog!AE1714,\"\")","v":""},{"$f":"IF(DataLog!$C1714=\"Log value\",DataLog!AF1714,\"\")","v":""},{"$f":"IF(DataLog!$C1714=\"Log value\",DataLog!AG1714,\"\")","v":""},{"$f":"IF(DataLog!$C1714=\"Log value\",DataLog!AH1714,\"\")","v":""},{"$f":"IF(DataLog!$C1714=\"Log value\",DataLog!AI1714,\"\")","v":""},{"$f":"IF(DataLog!$C1714=\"Log value\",DataLog!AJ1714,\"\")","v":""},{"$f":"IF(DataLog!$C1714=\"Log value\",DataLog!AK1714,\"\")","v":""},{"$f":"IF(DataLog!$C1714=\"Log value\",DataLog!AL1714,\"\")","v":""},{"$f":"IF(DataLog!$C1714=\"Log value\",DataLog!AM1714,\"\")","v":""}]
[null,null,null,null,null,null,{"$f":"IF(DataLog!$C1716=\"Log value\",DataLog!D1716&\"_\"&TEXT(DataLog!B1716,\"åååå-mm-dd\"),\"\")","v":""},{"$f":"IF(DataLog!$C1716=\"Log value\",DataLog!E1716,\"\")","v":""},{"$f":"IF(DataLog!$C1716=\"Log value\",DataLog!F1716,\"\")","v":""},{"$f":"IF(DataLog!$C1716=\"Log value\",DataLog!G1716,\"\")","v":""},{"$f":"IF(DataLog!$C1716=\"Log value\",DataLog!H1716,\"\")","v":""},{"$f":"IF(DataLog!$C1716=\"Log value\",DataLog!I1716,\"\")","v":""},{"$f":"IF(DataLog!$C1716=\"Log value\",DataLog!J1716,\"\")","v":""},{"$f":"IF(DataLog!$C1716=\"Log value\",DataLog!K1716,\"\")","v":""},{"$f":"IF(DataLog!$C1716=\"Log value\",DataLog!L1716,\"\")","v":""},{"$f":"IF(DataLog!$C1716=\"Log value\",DataLog!M1716,\"\")","v":""},{"$f":"IF(DataLog!$C1716=\"Log value\",DataLog!N1716,\"\")","v":""},{"$f":"IF(DataLog!$C1716=\"Log value\",DataLog!O1716,\"\")","v":""},{"$f":"IF(DataLog!$C1716=\"Log value\",DataLog!P1716,\"\")","v":""},{"$f":"IF(DataLog!$C1716=\"Log value\",DataLog!Q1716,\"\")","v":""},{"$f":"IF(DataLog!$C1716=\"Log value\",DataLog!R1716,\"\")","v":""},{"$f":"IF(DataLog!$C1716=\"Log value\",DataLog!S1716,\"\")","v":""},{"$f":"IF(DataLog!$C1716=\"Log value\",DataLog!T1716,\"\")","v":""},{"$f":"IF(DataLog!$C1716=\"Log value\",DataLog!U1716,\"\")","v":""},{"$f":"IF(DataLog!$C1716=\"Log value\",DataLog!V1716,\"\")","v":""},{"$f":"IF(DataLog!$C1716=\"Log value\",DataLog!W1716,\"\")","v":""},{"$f":"IF(DataLog!$C1716=\"Log value\",DataLog!X1716,\"\")","v":""},{"$f":"IF(DataLog!$C1716=\"Log value\",DataLog!Y1716,\"\")","v":""},{"$f":"IF(DataLog!$C1716=\"Log value\",DataLog!Z1716,\"\")","v":""},{"$f":"IF(DataLog!$C1716=\"Log value\",DataLog!AA1716,\"\")","v":""},{"$f":"IF(DataLog!$C1716=\"Log value\",DataLog!AB1716,\"\")","v":""},{"$f":"IF(DataLog!$C1716=\"Log value\",DataLog!AC1716,\"\")","v":""},{"$f":"IF(DataLog!$C1716=\"Log value\",DataLog!AD1716,\"\")","v":""},{"$f":"IF(DataLog!$C1716=\"Log value\",DataLog!AE1716,\"\")","v":""},{"$f":"IF(DataLog!$C1716=\"Log value\",DataLog!AF1716,\"\")","v":""},{"$f":"IF(DataLog!$C1716=\"Log value\",DataLog!AG1716,\"\")","v":""},{"$f":"IF(DataLog!$C1716=\"Log value\",DataLog!AH1716,\"\")","v":""},{"$f":"IF(DataLog!$C1716=\"Log value\",DataLog!AI1716,\"\")","v":""},{"$f":"IF(DataLog!$C1716=\"Log value\",DataLog!AJ1716,\"\")","v":""},{"$f":"IF(DataLog!$C1716=\"Log value\",DataLog!AK1716,\"\")","v":""},{"$f":"IF(DataLog!$C1716=\"Log value\",DataLog!AL1716,\"\")","v":""},{"$f":"IF(DataLog!$C1716=\"Log value\",DataLog!AM1716,\"\")","v":""}]
[null,null,null,null,null,null,{"$f":"IF(DataLog!$C1719=\"Log value\",DataLog!D1719&\"_\"&TEXT(DataLog!B1719,\"åååå-mm-dd\"),\"\")","v":""},{"$f":"IF(DataLog!$C1719=\"Log value\",DataLog!E1719,\"\")","v":""},{"$f":"IF(DataLog!$C1719=\"Log value\",DataLog!F1719,\"\")","v":""},{"$f":"IF(DataLog!$C1719=\"Log value\",DataLog!G1719,\"\")","v":""},{"$f":"IF(DataLog!$C1719=\"Log value\",DataLog!H1719,\"\")","v":""},{"$f":"IF(DataLog!$C1719=\"Log value\",DataLog!I1719,\"\")","v":""},{"$f":"IF(DataLog!$C1719=\"Log value\",DataLog!J1719,\"\")","v":""},{"$f":"IF(DataLog!$C1719=\"Log value\",DataLog!K1719,\"\")","v":""},{"$f":"IF(DataLog!$C1719=\"Log value\",DataLog!L1719,\"\")","v":""},{"$f":"IF(DataLog!$C1719=\"Log value\",DataLog!M1719,\"\")","v":""},{"$f":"IF(DataLog!$C1719=\"Log value\",DataLog!N1719,\"\")","v":""},{"$f":"IF(DataLog!$C1719=\"Log value\",DataLog!O1719,\"\")","v":""},{"$f":"IF(DataLog!$C1719=\"Log value\",DataLog!P1719,\"\")","v":""},{"$f":"IF(DataLog!$C1719=\"Log value\",DataLog!Q1719,\"\")","v":""},{"$f":"IF(DataLog!$C1719=\"Log value\",DataLog!R1719,\"\")","v":""},{"$f":"IF(DataLog!$C1719=\"Log value\",DataLog!S1719,\"\")","v":""},{"$f":"IF(DataLog!$C1719=\"Log value\",DataLog!T1719,\"\")","v":""},{"$f":"IF(DataLog!$C1719=\"Log value\",DataLog!U1719,\"\")","v":""},{"$f":"IF(DataLog!$C1719=\"Log value\",DataLog!V1719,\"\")","v":""},{"$f":"IF(DataLog!$C1719=\"Log value\",DataLog!W1719,\"\")","v":""},{"$f":"IF(DataLog!$C1719=\"Log value\",DataLog!X1719,\"\")","v":""},{"$f":"IF(DataLog!$C1719=\"Log value\",DataLog!Y1719,\"\")","v":""},{"$f":"IF(DataLog!$C1719=\"Log value\",DataLog!Z1719,\"\")","v":""},{"$f":"IF(DataLog!$C1719=\"Log value\",DataLog!AA1719,\"\")","v":""},{"$f":"IF(DataLog!$C1719=\"Log value\",DataLog!AB1719,\"\")","v":""},{"$f":"IF(DataLog!$C1719=\"Log value\",DataLog!AC1719,\"\")","v":""},{"$f":"IF(DataLog!$C1719=\"Log value\",DataLog!AD1719,\"\")","v":""},{"$f":"IF(DataLog!$C1719=\"Log value\",DataLog!AE1719,\"\")","v":""},{"$f":"IF(DataLog!$C1719=\"Log value\",DataLog!AF1719,\"\")","v":""},{"$f":"IF(DataLog!$C1719=\"Log value\",DataLog!AG1719,\"\")","v":""},{"$f":"IF(DataLog!$C1719=\"Log value\",DataLog!AH1719,\"\")","v":""},{"$f":"IF(DataLog!$C1719=\"Log value\",DataLog!AI1719,\"\")","v":""},{"$f":"IF(DataLog!$C1719=\"Log value\",DataLog!AJ1719,\"\")","v":""},{"$f":"IF(DataLog!$C1719=\"Log value\",DataLog!AK1719,\"\")","v":""},{"$f":"IF(DataLog!$C1719=\"Log value\",DataLog!AL1719,\"\")","v":""},{"$f":"IF(DataLog!$C1719=\"Log value\",DataLog!AM1719,\"\")","v":""}]
[null,null,null,null,null,null,{"$f":"IF(DataLog!$C1720=\"Log value\",DataLog!D1720&\"_\"&TEXT(DataLog!B1720,\"åååå-mm-dd\"),\"\")","v":""},{"$f":"IF(DataLog!$C1720=\"Log value\",DataLog!E1720,\"\")","v":""},{"$f":"IF(DataLog!$C1720=\"Log value\",DataLog!F1720,\"\")","v":""},{"$f":"IF(DataLog!$C1720=\"Log value\",DataLog!G1720,\"\")","v":""},{"$f":"IF(DataLog!$C1720=\"Log value\",DataLog!H1720,\"\")","v":""},{"$f":"IF(DataLog!$C1720=\"Log value\",DataLog!I1720,\"\")","v":""},{"$f":"IF(DataLog!$C1720=\"Log value\",DataLog!J1720,\"\")","v":""},{"$f":"IF(DataLog!$C1720=\"Log value\",DataLog!K1720,\"\")","v":""},{"$f":"IF(DataLog!$C1720=\"Log value\",DataLog!L1720,\"\")","v":""},{"$f":"IF(DataLog!$C1720=\"Log value\",DataLog!M1720,\"\")","v":""},{"$f":"IF(DataLog!$C1720=\"Log value\",DataLog!N1720,\"\")","v":""},{"$f":"IF(DataLog!$C1720=\"Log value\",DataLog!O1720,\"\")","v":""},{"$f":"IF(DataLog!$C1720=\"Log value\",DataLog!P1720,\"\")","v":""},{"$f":"IF(DataLog!$C1720=\"Log value\",DataLog!Q1720,\"\")","v":""},{"$f":"IF(DataLog!$C1720=\"Log value\",DataLog!R1720,\"\")","v":""},{"$f":"IF(DataLog!$C1720=\"Log value\",DataLog!S1720,\"\")","v":""},{"$f":"IF(DataLog!$C1720=\"Log value\",DataLog!T1720,\"\")","v":""},{"$f":"IF(DataLog!$C1720=\"Log value\",DataLog!U1720,\"\")","v":""},{"$f":"IF(DataLog!$C1720=\"Log value\",DataLog!V1720,\"\")","v":""},{"$f":"IF(DataLog!$C1720=\"Log value\",DataLog!W1720,\"\")","v":""},{"$f":"IF(DataLog!$C1720=\"Log value\",DataLog!X1720,\"\")","v":""},{"$f":"IF(DataLog!$C1720=\"Log value\",DataLog!Y1720,\"\")","v":""},{"$f":"IF(DataLog!$C1720=\"Log value\",DataLog!Z1720,\"\")","v":""},{"$f":"IF(DataLog!$C1720=\"Log value\",DataLog!AA1720,\"\")","v":""},{"$f":"IF(DataLog!$C1720=\"Log value\",DataLog!AB1720,\"\")","v":""},{"$f":"IF(DataLog!$C1720=\"Log value\",DataLog!AC1720,\"\")","v":""},{"$f":"IF(DataLog!$C1720=\"Log value\",DataLog!AD1720,\"\")","v":""},{"$f":"IF(DataLog!$C1720=\"Log value\",DataLog!AE1720,\"\")","v":""},{"$f":"IF(DataLog!$C1720=\"Log value\",DataLog!AF1720,\"\")","v":""},{"$f":"IF(DataLog!$C1720=\"Log value\",DataLog!AG1720,\"\")","v":""},{"$f":"IF(DataLog!$C1720=\"Log value\",DataLog!AH1720,\"\")","v":""},{"$f":"IF(DataLog!$C1720=\"Log value\",DataLog!AI1720,\"\")","v":""},{"$f":"IF(DataLog!$C1720=\"Log value\",DataLog!AJ1720,\"\")","v":""},{"$f":"IF(DataLog!$C1720=\"Log value\",DataLog!AK1720,\"\")","v":""},{"$f":"IF(DataLog!$C1720=\"Log value\",DataLog!AL1720,\"\")","v":""},{"$f":"IF(DataLog!$C1720=\"Log value\",DataLog!AM1720,\"\")","v":""}]
[null,null,null,null,null,null,{"$f":"IF(DataLog!$C1724=\"Log value\",DataLog!D1724&\"_\"&TEXT(DataLog!B1724,\"åååå-mm-dd\"),\"\")","v":""},{"$f":"IF(DataLog!$C1724=\"Log value\",DataLog!E1724,\"\")","v":""},{"$f":"IF(DataLog!$C1724=\"Log value\",DataLog!F1724,\"\")","v":""},{"$f":"IF(DataLog!$C1724=\"Log value\",DataLog!G1724,\"\")","v":""},{"$f":"IF(DataLog!$C1724=\"Log value\",DataLog!H1724,\"\")","v":""},{"$f":"IF(DataLog!$C1724=\"Log value\",DataLog!I1724,\"\")","v":""},{"$f":"IF(DataLog!$C1724=\"Log value\",DataLog!J1724,\"\")","v":""},{"$f":"IF(DataLog!$C1724=\"Log value\",DataLog!K1724,\"\")","v":""},{"$f":"IF(DataLog!$C1724=\"Log value\",DataLog!L1724,\"\")","v":""},{"$f":"IF(DataLog!$C1724=\"Log value\",DataLog!M1724,\"\")","v":""},{"$f":"IF(DataLog!$C1724=\"Log value\",DataLog!N1724,\"\")","v":""},{"$f":"IF(DataLog!$C1724=\"Log value\",DataLog!O1724,\"\")","v":""},{"$f":"IF(DataLog!$C1724=\"Log value\",DataLog!P1724,\"\")","v":""},{"$f":"IF(DataLog!$C1724=\"Log value\",DataLog!Q1724,\"\")","v":""},{"$f":"IF(DataLog!$C1724=\"Log value\",DataLog!R1724,\"\")","v":""},{"$f":"IF(DataLog!$C1724=\"Log value\",DataLog!S1724,\"\")","v":""},{"$f":"IF(DataLog!$C1724=\"Log value\",DataLog!T1724,\"\")","v":""},{"$f":"IF(DataLog!$C1724=\"Log value\",DataLog!U1724,\"\")","v":""},{"$f":"IF(DataLog!$C1724=\"Log value\",DataLog!V1724,\"\")","v":""},{"$f":"IF(DataLog!$C1724=\"Log value\",DataLog!W1724,\"\")","v":""},{"$f":"IF(DataLog!$C1724=\"Log value\",DataLog!X1724,\"\")","v":""},{"$f":"IF(DataLog!$C1724=\"Log value\",DataLog!Y1724,\"\")","v":""},{"$f":"IF(DataLog!$C1724=\"Log value\",DataLog!Z1724,\"\")","v":""},{"$f":"IF(DataLog!$C1724=\"Log value\",DataLog!AA1724,\"\")","v":""},{"$f":"IF(DataLog!$C1724=\"Log value\",DataLog!AB1724,\"\")","v":""},{"$f":"IF(DataLog!$C1724=\"Log value\",DataLog!AC1724,\"\")","v":""},{"$f":"IF(DataLog!$C1724=\"Log value\",DataLog!AD1724,\"\")","v":""},{"$f":"IF(DataLog!$C1724=\"Log value\",DataLog!AE1724,\"\")","v":""},{"$f":"IF(DataLog!$C1724=\"Log value\",DataLog!AF1724,\"\")","v":""},{"$f":"IF(DataLog!$C1724=\"Log value\",DataLog!AG1724,\"\")","v":""},{"$f":"IF(DataLog!$C1724=\"Log value\",DataLog!AH1724,\"\")","v":""},{"$f":"IF(DataLog!$C1724=\"Log value\",DataLog!AI1724,\"\")","v":""},{"$f":"IF(DataLog!$C1724=\"Log value\",DataLog!AJ1724,\"\")","v":""},{"$f":"IF(DataLog!$C1724=\"Log value\",DataLog!AK1724,\"\")","v":""},{"$f":"IF(DataLog!$C1724=\"Log value\",DataLog!AL1724,\"\")","v":""},{"$f":"IF(DataLog!$C1724=\"Log value\",DataLog!AM1724,\"\")","v":""}]
[null,null,null,null,null,null,{"$f":"IF(DataLog!$C1725=\"Log value\",DataLog!D1725&\"_\"&TEXT(DataLog!B1725,\"åååå-mm-dd\"),\"\")","v":""},{"$f":"IF(DataLog!$C1725=\"Log value\",DataLog!E1725,\"\")","v":""},{"$f":"IF(DataLog!$C1725=\"Log value\",DataLog!F1725,\"\")","v":""},{"$f":"IF(DataLog!$C1725=\"Log value\",DataLog!G1725,\"\")","v":""},{"$f":"IF(DataLog!$C1725=\"Log value\",DataLog!H1725,\"\")","v":""},{"$f":"IF(DataLog!$C1725=\"Log value\",DataLog!I1725,\"\")","v":""},{"$f":"IF(DataLog!$C1725=\"Log value\",DataLog!J1725,\"\")","v":""},{"$f":"IF(DataLog!$C1725=\"Log value\",DataLog!K1725,\"\")","v":""},{"$f":"IF(DataLog!$C1725=\"Log value\",DataLog!L1725,\"\")","v":""},{"$f":"IF(DataLog!$C1725=\"Log value\",DataLog!M1725,\"\")","v":""},{"$f":"IF(DataLog!$C1725=\"Log value\",DataLog!N1725,\"\")","v":""},{"$f":"IF(DataLog!$C1725=\"Log value\",DataLog!O1725,\"\")","v":""},{"$f":"IF(DataLog!$C1725=\"Log value\",DataLog!P1725,\"\")","v":""},{"$f":"IF(DataLog!$C1725=\"Log value\",DataLog!Q1725,\"\")","v":""},{"$f":"IF(DataLog!$C1725=\"Log value\",DataLog!R1725,\"\")","v":""},{"$f":"IF(DataLog!$C1725=\"Log value\",DataLog!S1725,\"\")","v":""},{"$f":"IF(DataLog!$C1725=\"Log value\",DataLog!T1725,\"\")","v":""},{"$f":"IF(DataLog!$C1725=\"Log value\",DataLog!U1725,\"\")","v":""},{"$f":"IF(DataLog!$C1725=\"Log value\",DataLog!V1725,\"\")","v":""},{"$f":"IF(DataLog!$C1725=\"Log value\",DataLog!W1725,\"\")","v":""},{"$f":"IF(DataLog!$C1725=\"Log value\",DataLog!X1725,\"\")","v":""},{"$f":"IF(DataLog!$C1725=\"Log value\",DataLog!Y1725,\"\")","v":""},{"$f":"IF(DataLog!$C1725=\"Log value\",DataLog!Z1725,\"\")","v":""},{"$f":"IF(DataLog!$C1725=\"Log value\",DataLog!AA1725,\"\")","v":""},{"$f":"IF(DataLog!$C1725=\"Log value\",DataLog!AB1725,\"\")","v":""},{"$f":"IF(DataLog!$C1725=\"Log value\",DataLog!AC1725,\"\")","v":""},{"$f":"IF(DataLog!$C1725=\"Log value\",DataLog!AD1725,\"\")","v":""},{"$f":"IF(DataLog!$C1725=\"Log value\",DataLog!AE1725,\"\")","v":""},{"$f":"IF(DataLog!$C1725=\"Log value\",DataLog!AF1725,\"\")","v":""},{"$f":"IF(DataLog!$C1725=\"Log value\",DataLog!AG1725,\"\")","v":""},{"$f":"IF(DataLog!$C1725=\"Log value\",DataLog!AH1725,\"\")","v":""},{"$f":"IF(DataLog!$C1725=\"Log value\",DataLog!AI1725,\"\")","v":""},{"$f":"IF(DataLog!$C1725=\"Log value\",DataLog!AJ1725,\"\")","v":""},{"$f":"IF(DataLog!$C1725=\"Log value\",DataLog!AK1725,\"\")","v":""},{"$f":"IF(DataLog!$C1725=\"Log value\",DataLog!AL1725,\"\")","v":""},{"$f":"IF(DataLog!$C1725=\"Log value\",DataLog!AM1725,\"\")","v":""}]
[null,null,null,null,null,null,{"$f":"IF(DataLog!$C1728=\"Log value\",DataLog!D1728&\"_\"&TEXT(DataLog!B1728,\"åååå-mm-dd\"),\"\")","v":""},{"$f":"IF(DataLog!$C1728=\"Log value\",DataLog!E1728,\"\")","v":""},{"$f":"IF(DataLog!$C1728=\"Log value\",DataLog!F1728,\"\")","v":""},{"$f":"IF(DataLog!$C1728=\"Log value\",DataLog!G1728,\"\")","v":""},{"$f":"IF(DataLog!$C1728=\"Log value\",DataLog!H1728,\"\")","v":""},{"$f":"IF(DataLog!$C1728=\"Log value\",DataLog!I1728,\"\")","v":""},{"$f":"IF(DataLog!$C1728=\"Log value\",DataLog!J1728,\"\")","v":""},{"$f":"IF(DataLog!$C1728=\"Log value\",DataLog!K1728,\"\")","v":""},{"$f":"IF(DataLog!$C1728=\"Log value\",DataLog!L1728,\"\")","v":""},{"$f":"IF(DataLog!$C1728=\"Log value\",DataLog!M1728,\"\")","v":""},{"$f":"IF(DataLog!$C1728=\"Log value\",DataLog!N1728,\"\")","v":""},{"$f":"IF(DataLog!$C1728=\"Log value\",DataLog!O1728,\"\")","v":""},{"$f":"IF(DataLog!$C1728=\"Log value\",DataLog!P1728,\"\")","v":""},{"$f":"IF(DataLog!$C1728=\"Log value\",DataLog!Q1728,\"\")","v":""},{"$f":"IF(DataLog!$C1728=\"Log value\",DataLog!R1728,\"\")","v":""},{"$f":"IF(DataLog!$C1728=\"Log value\",DataLog!S1728,\"\")","v":""},{"$f":"IF(DataLog!$C1728=\"Log value\",DataLog!T1728,\"\")","v":""},{"$f":"IF(DataLog!$C1728=\"Log value\",DataLog!U1728,\"\")","v":""},{"$f":"IF(DataLog!$C1728=\"Log value\",DataLog!V1728,\"\")","v":""},{"$f":"IF(DataLog!$C1728=\"Log value\",DataLog!W1728,\"\")","v":""},{"$f":"IF(DataLog!$C1728=\"Log value\",DataLog!X1728,\"\")","v":""},{"$f":"IF(DataLog!$C1728=\"Log value\",DataLog!Y1728,\"\")","v":""},{"$f":"IF(DataLog!$C1728=\"Log value\",DataLog!Z1728,\"\")","v":""},{"$f":"IF(DataLog!$C1728=\"Log value\",DataLog!AA1728,\"\")","v":""},{"$f":"IF(DataLog!$C1728=\"Log value\",DataLog!AB1728,\"\")","v":""},{"$f":"IF(DataLog!$C1728=\"Log value\",DataLog!AC1728,\"\")","v":""},{"$f":"IF(DataLog!$C1728=\"Log value\",DataLog!AD1728,\"\")","v":""},{"$f":"IF(DataLog!$C1728=\"Log value\",DataLog!AE1728,\"\")","v":""},{"$f":"IF(DataLog!$C1728=\"Log value\",DataLog!AF1728,\"\")","v":""},{"$f":"IF(DataLog!$C1728=\"Log value\",DataLog!AG1728,\"\")","v":""},{"$f":"IF(DataLog!$C1728=\"Log value\",DataLog!AH1728,\"\")","v":""},{"$f":"IF(DataLog!$C1728=\"Log value\",DataLog!AI1728,\"\")","v":""},{"$f":"IF(DataLog!$C1728=\"Log value\",DataLog!AJ1728,\"\")","v":""},{"$f":"IF(DataLog!$C1728=\"Log value\",DataLog!AK1728,\"\")","v":""},{"$f":"IF(DataLog!$C1728=\"Log value\",DataLog!AL1728,\"\")","v":""},{"$f":"IF(DataLog!$C1728=\"Log value\",DataLog!AM1728,\"\")","v":""}]
[null,null,null,null,null,null,{"$f":"IF(DataLog!$C1729=\"Log value\",DataLog!D1729&\"_\"&TEXT(DataLog!B1729,\"åååå-mm-dd\"),\"\")","v":""},{"$f":"IF(DataLog!$C1729=\"Log value\",DataLog!E1729,\"\")","v":""},{"$f":"IF(DataLog!$C1729=\"Log value\",DataLog!F1729,\"\")","v":""},{"$f":"IF(DataLog!$C1729=\"Log value\",DataLog!G1729,\"\")","v":""},{"$f":"IF(DataLog!$C1729=\"Log value\",DataLog!H1729,\"\")","v":""},{"$f":"IF(DataLog!$C1729=\"Log value\",DataLog!I1729,\"\")","v":""},{"$f":"IF(DataLog!$C1729=\"Log value\",DataLog!J1729,\"\")","v":""},{"$f":"IF(DataLog!$C1729=\"Log value\",DataLog!K1729,\"\")","v":""},{"$f":"IF(DataLog!$C1729=\"Log value\",DataLog!L1729,\"\")","v":""},{"$f":"IF(DataLog!$C1729=\"Log value\",DataLog!M1729,\"\")","v":""},{"$f":"IF(DataLog!$C1729=\"Log value\",DataLog!N1729,\"\")","v":""},{"$f":"IF(DataLog!$C1729=\"Log value\",DataLog!O1729,\"\")","v":""},{"$f":"IF(DataLog!$C1729=\"Log value\",DataLog!P1729,\"\")","v":""},{"$f":"IF(DataLog!$C1729=\"Log value\",DataLog!Q1729,\"\")","v":""},{"$f":"IF(DataLog!$C1729=\"Log value\",DataLog!R1729,\"\")","v":""},{"$f":"IF(DataLog!$C1729=\"Log value\",DataLog!S1729,\"\")","v":""},{"$f":"IF(DataLog!$C1729=\"Log value\",DataLog!T1729,\"\")","v":""},{"$f":"IF(DataLog!$C1729=\"Log value\",DataLog!U1729,\"\")","v":""},{"$f":"IF(DataLog!$C1729=\"Log value\",DataLog!V1729,\"\")","v":""},{"$f":"IF(DataLog!$C1729=\"Log value\",DataLog!W1729,\"\")","v":""},{"$f":"IF(DataLog!$C1729=\"Log value\",DataLog!X1729,\"\")","v":""},{"$f":"IF(DataLog!$C1729=\"Log value\",DataLog!Y1729,\"\")","v":""},{"$f":"IF(DataLog!$C1729=\"Log value\",DataLog!Z1729,\"\")","v":""},{"$f":"IF(DataLog!$C1729=\"Log value\",DataLog!AA1729,\"\")","v":""},{"$f":"IF(DataLog!$C1729=\"Log value\",DataLog!AB1729,\"\")","v":""},{"$f":"IF(DataLog!$C1729=\"Log value\",DataLog!AC1729,\"\")","v":""},{"$f":"IF(DataLog!$C1729=\"Log value\",DataLog!AD1729,\"\")","v":""},{"$f":"IF(DataLog!$C1729=\"Log value\",DataLog!AE1729,\"\")","v":""},{"$f":"IF(DataLog!$C1729=\"Log value\",DataLog!AF1729,\"\")","v":""},{"$f":"IF(DataLog!$C1729=\"Log value\",DataLog!AG1729,\"\")","v":""},{"$f":"IF(DataLog!$C1729=\"Log value\",DataLog!AH1729,\"\")","v":""},{"$f":"IF(DataLog!$C1729=\"Log value\",DataLog!AI1729,\"\")","v":""},{"$f":"IF(DataLog!$C1729=\"Log value\",DataLog!AJ1729,\"\")","v":""},{"$f":"IF(DataLog!$C1729=\"Log value\",DataLog!AK1729,\"\")","v":""},{"$f":"IF(DataLog!$C1729=\"Log value\",DataLog!AL1729,\"\")","v":""},{"$f":"IF(DataLog!$C1729=\"Log value\",DataLog!AM1729,\"\")","v":""}]
[null,null,null,null,null,null,{"$f":"IF(DataLog!$C1732=\"Log value\",DataLog!D1732&\"_\"&TEXT(DataLog!B1732,\"åååå-mm-dd\"),\"\")","v":""},{"$f":"IF(DataLog!$C1732=\"Log value\",DataLog!E1732,\"\")","v":""},{"$f":"IF(DataLog!$C1732=\"Log value\",DataLog!F1732,\"\")","v":""},{"$f":"IF(DataLog!$C1732=\"Log value\",DataLog!G1732,\"\")","v":""},{"$f":"IF(DataLog!$C1732=\"Log value\",DataLog!H1732,\"\")","v":""},{"$f":"IF(DataLog!$C1732=\"Log value\",DataLog!I1732,\"\")","v":""},{"$f":"IF(DataLog!$C1732=\"Log value\",DataLog!J1732,\"\")","v":""},{"$f":"IF(DataLog!$C1732=\"Log value\",DataLog!K1732,\"\")","v":""},{"$f":"IF(DataLog!$C1732=\"Log value\",DataLog!L1732,\"\")","v":""},{"$f":"IF(DataLog!$C1732=\"Log value\",DataLog!M1732,\"\")","v":""},{"$f":"IF(DataLog!$C1732=\"Log value\",DataLog!N1732,\"\")","v":""},{"$f":"IF(DataLog!$C1732=\"Log value\",DataLog!O1732,\"\")","v":""},{"$f":"IF(DataLog!$C1732=\"Log value\",DataLog!P1732,\"\")","v":""},{"$f":"IF(DataLog!$C1732=\"Log value\",DataLog!Q1732,\"\")","v":""},{"$f":"IF(DataLog!$C1732=\"Log value\",DataLog!R1732,\"\")","v":""},{"$f":"IF(DataLog!$C1732=\"Log value\",DataLog!S1732,\"\")","v":""},{"$f":"IF(DataLog!$C1732=\"Log value\",DataLog!T1732,\"\")","v":""},{"$f":"IF(DataLog!$C1732=\"Log value\",DataLog!U1732,\"\")","v":""},{"$f":"IF(DataLog!$C1732=\"Log value\",DataLog!V1732,\"\")","v":""},{"$f":"IF(DataLog!$C1732=\"Log value\",DataLog!W1732,\"\")","v":""},{"$f":"IF(DataLog!$C1732=\"Log value\",DataLog!X1732,\"\")","v":""},{"$f":"IF(DataLog!$C1732=\"Log value\",DataLog!Y1732,\"\")","v":""},{"$f":"IF(DataLog!$C1732=\"Log value\",DataLog!Z1732,\"\")","v":""},{"$f":"IF(DataLog!$C1732=\"Log value\",DataLog!AA1732,\"\")","v":""},{"$f":"IF(DataLog!$C1732=\"Log value\",DataLog!AB1732,\"\")","v":""},{"$f":"IF(DataLog!$C1732=\"Log value\",DataLog!AC1732,\"\")","v":""},{"$f":"IF(DataLog!$C1732=\"Log value\",DataLog!AD1732,\"\")","v":""},{"$f":"IF(DataLog!$C1732=\"Log value\",DataLog!AE1732,\"\")","v":""},{"$f":"IF(DataLog!$C1732=\"Log value\",DataLog!AF1732,\"\")","v":""},{"$f":"IF(DataLog!$C1732=\"Log value\",DataLog!AG1732,\"\")","v":""},{"$f":"IF(DataLog!$C1732=\"Log value\",DataLog!AH1732,\"\")","v":""},{"$f":"IF(DataLog!$C1732=\"Log value\",DataLog!AI1732,\"\")","v":""},{"$f":"IF(DataLog!$C1732=\"Log value\",DataLog!AJ1732,\"\")","v":""},{"$f":"IF(DataLog!$C1732=\"Log value\",DataLog!AK1732,\"\")","v":""},{"$f":"IF(DataLog!$C1732=\"Log value\",DataLog!AL1732,\"\")","v":""},{"$f":"IF(DataLog!$C1732=\"Log value\",DataLog!AM1732,\"\")","v":""}]
[null,null,null,null,null,null,{"$f":"IF(DataLog!$C1734=\"Log value\",DataLog!D1734&\"_\"&TEXT(DataLog!B1734,\"åååå-mm-dd\"),\"\")","v":""},{"$f":"IF(DataLog!$C1734=\"Log value\",DataLog!E1734,\"\")","v":""},{"$f":"IF(DataLog!$C1734=\"Log value\",DataLog!F1734,\"\")","v":""},{"$f":"IF(DataLog!$C1734=\"Log value\",DataLog!G1734,\"\")","v":""},{"$f":"IF(DataLog!$C1734=\"Log value\",DataLog!H1734,\"\")","v":""},{"$f":"IF(DataLog!$C1734=\"Log value\",DataLog!I1734,\"\")","v":""},{"$f":"IF(DataLog!$C1734=\"Log value\",DataLog!J1734,\"\")","v":""},{"$f":"IF(DataLog!$C1734=\"Log value\",DataLog!K1734,\"\")","v":""},{"$f":"IF(DataLog!$C1734=\"Log value\",DataLog!L1734,\"\")","v":""},{"$f":"IF(DataLog!$C1734=\"Log value\",DataLog!M1734,\"\")","v":""},{"$f":"IF(DataLog!$C1734=\"Log value\",DataLog!N1734,\"\")","v":""},{"$f":"IF(DataLog!$C1734=\"Log value\",DataLog!O1734,\"\")","v":""},{"$f":"IF(DataLog!$C1734=\"Log value\",DataLog!P1734,\"\")","v":""},{"$f":"IF(DataLog!$C1734=\"Log value\",DataLog!Q1734,\"\")","v":""},{"$f":"IF(DataLog!$C1734=\"Log value\",DataLog!R1734,\"\")","v":""},{"$f":"IF(DataLog!$C1734=\"Log value\",DataLog!S1734,\"\")","v":""},{"$f":"IF(DataLog!$C1734=\"Log value\",DataLog!T1734,\"\")","v":""},{"$f":"IF(DataLog!$C1734=\"Log value\",DataLog!U1734,\"\")","v":""},{"$f":"IF(DataLog!$C1734=\"Log value\",DataLog!V1734,\"\")","v":""},{"$f":"IF(DataLog!$C1734=\"Log value\",DataLog!W1734,\"\")","v":""},{"$f":"IF(DataLog!$C1734=\"Log value\",DataLog!X1734,\"\")","v":""},{"$f":"IF(DataLog!$C1734=\"Log value\",DataLog!Y1734,\"\")","v":""},{"$f":"IF(DataLog!$C1734=\"Log value\",DataLog!Z1734,\"\")","v":""},{"$f":"IF(DataLog!$C1734=\"Log value\",DataLog!AA1734,\"\")","v":""},{"$f":"IF(DataLog!$C1734=\"Log value\",DataLog!AB1734,\"\")","v":""},{"$f":"IF(DataLog!$C1734=\"Log value\",DataLog!AC1734,\"\")","v":""},{"$f":"IF(DataLog!$C1734=\"Log value\",DataLog!AD1734,\"\")","v":""},{"$f":"IF(DataLog!$C1734=\"Log value\",DataLog!AE1734,\"\")","v":""},{"$f":"IF(DataLog!$C1734=\"Log value\",DataLog!AF1734,\"\")","v":""},{"$f":"IF(DataLog!$C1734=\"Log value\",DataLog!AG1734,\"\")","v":""},{"$f":"IF(DataLog!$C1734=\"Log value\",DataLog!AH1734,\"\")","v":""},{"$f":"IF(DataLog!$C1734=\"Log value\",DataLog!AI1734,\"\")","v":""},{"$f":"IF(DataLog!$C1734=\"Log value\",DataLog!AJ1734,\"\")","v":""},{"$f":"IF(DataLog!$C1734=\"Log value\",DataLog!AK1734,\"\")","v":""},{"$f":"IF(DataLog!$C1734=\"Log value\",DataLog!AL1734,\"\")","v":""},{"$f":"IF(DataLog!$C1734=\"Log value\",DataLog!AM1734,\"\")","v":""}]
[null,null,null,null,null,null,{"$f":"IF(DataLog!$C1737=\"Log value\",DataLog!D1737&\"_\"&TEXT(DataLog!B1737,\"åååå-mm-dd\"),\"\")","v":""},{"$f":"IF(DataLog!$C1737=\"Log value\",DataLog!E1737,\"\")","v":""},{"$f":"IF(DataLog!$C1737=\"Log value\",DataLog!F1737,\"\")","v":""},{"$f":"IF(DataLog!$C1737=\"Log value\",DataLog!G1737,\"\")","v":""},{"$f":"IF(DataLog!$C1737=\"Log value\",DataLog!H1737,\"\")","v":""},{"$f":"IF(DataLog!$C1737=\"Log value\",DataLog!I1737,\"\")","v":""},{"$f":"IF(DataLog!$C1737=\"Log value\",DataLog!J1737,\"\")","v":""},{"$f":"IF(DataLog!$C1737=\"Log value\",DataLog!K1737,\"\")","v":""},{"$f":"IF(DataLog!$C1737=\"Log value\",DataLog!L1737,\"\")","v":""},{"$f":"IF(DataLog!$C1737=\"Log value\",DataLog!M1737,\"\")","v":""},{"$f":"IF(DataLog!$C1737=\"Log value\",DataLog!N1737,\"\")","v":""},{"$f":"IF(DataLog!$C1737=\"Log value\",DataLog!O1737,\"\")","v":""},{"$f":"IF(DataLog!$C1737=\"Log value\",DataLog!P1737,\"\")","v":""},{"$f":"IF(DataLog!$C1737=\"Log value\",DataLog!Q1737,\"\")","v":""},{"$f":"IF(DataLog!$C1737=\"Log value\",DataLog!R1737,\"\")","v":""},{"$f":"IF(DataLog!$C1737=\"Log value\",DataLog!S1737,\"\")","v":""},{"$f":"IF(DataLog!$C1737=\"Log value\",DataLog!T1737,\"\")","v":""},{"$f":"IF(DataLog!$C1737=\"Log value\",DataLog!U1737,\"\")","v":""},{"$f":"IF(DataLog!$C1737=\"Log value\",DataLog!V1737,\"\")","v":""},{"$f":"IF(DataLog!$C1737=\"Log value\",DataLog!W1737,\"\")","v":""},{"$f":"IF(DataLog!$C1737=\"Log value\",DataLog!X1737,\"\")","v":""},{"$f":"IF(DataLog!$C1737=\"Log value\",DataLog!Y1737,\"\")","v":""},{"$f":"IF(DataLog!$C1737=\"Log value\",DataLog!Z1737,\"\")","v":""},{"$f":"IF(DataLog!$C1737=\"Log value\",DataLog!AA1737,\"\")","v":""},{"$f":"IF(DataLog!$C1737=\"Log value\",DataLog!AB1737,\"\")","v":""},{"$f":"IF(DataLog!$C1737=\"Log value\",DataLog!AC1737,\"\")","v":""},{"$f":"IF(DataLog!$C1737=\"Log value\",DataLog!AD1737,\"\")","v":""},{"$f":"IF(DataLog!$C1737=\"Log value\",DataLog!AE1737,\"\")","v":""},{"$f":"IF(DataLog!$C1737=\"Log value\",DataLog!AF1737,\"\")","v":""},{"$f":"IF(DataLog!$C1737=\"Log value\",DataLog!AG1737,\"\")","v":""},{"$f":"IF(DataLog!$C1737=\"Log value\",DataLog!AH1737,\"\")","v":""},{"$f":"IF(DataLog!$C1737=\"Log value\",DataLog!AI1737,\"\")","v":""},{"$f":"IF(DataLog!$C1737=\"Log value\",DataLog!AJ1737,\"\")","v":""},{"$f":"IF(DataLog!$C1737=\"Log value\",DataLog!AK1737,\"\")","v":""},{"$f":"IF(DataLog!$C1737=\"Log value\",DataLog!AL1737,\"\")","v":""},{"$f":"IF(DataLog!$C1737=\"Log value\",DataLog!AM1737,\"\")","v":""}]
[null,null,null,null,null,null,{"$f":"IF(DataLog!$C1738=\"Log value\",DataLog!D1738&\"_\"&TEXT(DataLog!B1738,\"åååå-mm-dd\"),\"\")","v":""},{"$f":"IF(DataLog!$C1738=\"Log value\",DataLog!E1738,\"\")","v":""},{"$f":"IF(DataLog!$C1738=\"Log value\",DataLog!F1738,\"\")","v":""},{"$f":"IF(DataLog!$C1738=\"Log value\",DataLog!G1738,\"\")","v":""},{"$f":"IF(DataLog!$C1738=\"Log value\",DataLog!H1738,\"\")","v":""},{"$f":"IF(DataLog!$C1738=\"Log value\",DataLog!I1738,\"\")","v":""},{"$f":"IF(DataLog!$C1738=\"Log value\",DataLog!J1738,\"\")","v":""},{"$f":"IF(DataLog!$C1738=\"Log value\",DataLog!K1738,\"\")","v":""},{"$f":"IF(DataLog!$C1738=\"Log value\",DataLog!L1738,\"\")","v":""},{"$f":"IF(DataLog!$C1738=\"Log value\",DataLog!M1738,\"\")","v":""},{"$f":"IF(DataLog!$C1738=\"Log value\",DataLog!N1738,\"\")","v":""},{"$f":"IF(DataLog!$C1738=\"Log value\",DataLog!O1738,\"\")","v":""},{"$f":"IF(DataLog!$C1738=\"Log value\",DataLog!P1738,\"\")","v":""},{"$f":"IF(DataLog!$C1738=\"Log value\",DataLog!Q1738,\"\")","v":""},{"$f":"IF(DataLog!$C1738=\"Log value\",DataLog!R1738,\"\")","v":""},{"$f":"IF(DataLog!$C1738=\"Log value\",DataLog!S1738,\"\")","v":""},{"$f":"IF(DataLog!$C1738=\"Log value\",DataLog!T1738,\"\")","v":""},{"$f":"IF(DataLog!$C1738=\"Log value\",DataLog!U1738,\"\")","v":""},{"$f":"IF(DataLog!$C1738=\"Log value\",DataLog!V1738,\"\")","v":""},{"$f":"IF(DataLog!$C1738=\"Log value\",DataLog!W1738,\"\")","v":""},{"$f":"IF(DataLog!$C1738=\"Log value\",DataLog!X1738,\"\")","v":""},{"$f":"IF(DataLog!$C1738=\"Log value\",DataLog!Y1738,\"\")","v":""},{"$f":"IF(DataLog!$C1738=\"Log value\",DataLog!Z1738,\"\")","v":""},{"$f":"IF(DataLog!$C1738=\"Log value\",DataLog!AA1738,\"\")","v":""},{"$f":"IF(DataLog!$C1738=\"Log value\",DataLog!AB1738,\"\")","v":""},{"$f":"IF(DataLog!$C1738=\"Log value\",DataLog!AC1738,\"\")","v":""},{"$f":"IF(DataLog!$C1738=\"Log value\",DataLog!AD1738,\"\")","v":""},{"$f":"IF(DataLog!$C1738=\"Log value\",DataLog!AE1738,\"\")","v":""},{"$f":"IF(DataLog!$C1738=\"Log value\",DataLog!AF1738,\"\")","v":""},{"$f":"IF(DataLog!$C1738=\"Log value\",DataLog!AG1738,\"\")","v":""},{"$f":"IF(DataLog!$C1738=\"Log value\",DataLog!AH1738,\"\")","v":""},{"$f":"IF(DataLog!$C1738=\"Log value\",DataLog!AI1738,\"\")","v":""},{"$f":"IF(DataLog!$C1738=\"Log value\",DataLog!AJ1738,\"\")","v":""},{"$f":"IF(DataLog!$C1738=\"Log value\",DataLog!AK1738,\"\")","v":""},{"$f":"IF(DataLog!$C1738=\"Log value\",DataLog!AL1738,\"\")","v":""},{"$f":"IF(DataLog!$C1738=\"Log value\",DataLog!AM1738,\"\")","v":""}]
[null,null,null,null,null,null,{"$f":"IF(DataLog!$C1742=\"Log value\",DataLog!D1742&\"_\"&TEXT(DataLog!B1742,\"åååå-mm-dd\"),\"\")","v":""},{"$f":"IF(DataLog!$C1742=\"Log value\",DataLog!E1742,\"\")","v":""},{"$f":"IF(DataLog!$C1742=\"Log value\",DataLog!F1742,\"\")","v":""},{"$f":"IF(DataLog!$C1742=\"Log value\",DataLog!G1742,\"\")","v":""},{"$f":"IF(DataLog!$C1742=\"Log value\",DataLog!H1742,\"\")","v":""},{"$f":"IF(DataLog!$C1742=\"Log value\",DataLog!I1742,\"\")","v":""},{"$f":"IF(DataLog!$C1742=\"Log value\",DataLog!J1742,\"\")","v":""},{"$f":"IF(DataLog!$C1742=\"Log value\",DataLog!K1742,\"\")","v":""},{"$f":"IF(DataLog!$C1742=\"Log value\",DataLog!L1742,\"\")","v":""},{"$f":"IF(DataLog!$C1742=\"Log value\",DataLog!M1742,\"\")","v":""},{"$f":"IF(DataLog!$C1742=\"Log value\",DataLog!N1742,\"\")","v":""},{"$f":"IF(DataLog!$C1742=\"Log value\",DataLog!O1742,\"\")","v":""},{"$f":"IF(DataLog!$C1742=\"Log value\",DataLog!P1742,\"\")","v":""},{"$f":"IF(DataLog!$C1742=\"Log value\",DataLog!Q1742,\"\")","v":""},{"$f":"IF(DataLog!$C1742=\"Log value\",DataLog!R1742,\"\")","v":""},{"$f":"IF(DataLog!$C1742=\"Log value\",DataLog!S1742,\"\")","v":""},{"$f":"IF(DataLog!$C1742=\"Log value\",DataLog!T1742,\"\")","v":""},{"$f":"IF(DataLog!$C1742=\"Log value\",DataLog!U1742,\"\")","v":""},{"$f":"IF(DataLog!$C1742=\"Log value\",DataLog!V1742,\"\")","v":""},{"$f":"IF(DataLog!$C1742=\"Log value\",DataLog!W1742,\"\")","v":""},{"$f":"IF(DataLog!$C1742=\"Log value\",DataLog!X1742,\"\")","v":""},{"$f":"IF(DataLog!$C1742=\"Log value\",DataLog!Y1742,\"\")","v":""},{"$f":"IF(DataLog!$C1742=\"Log value\",DataLog!Z1742,\"\")","v":""},{"$f":"IF(DataLog!$C1742=\"Log value\",DataLog!AA1742,\"\")","v":""},{"$f":"IF(DataLog!$C1742=\"Log value\",DataLog!AB1742,\"\")","v":""},{"$f":"IF(DataLog!$C1742=\"Log value\",DataLog!AC1742,\"\")","v":""},{"$f":"IF(DataLog!$C1742=\"Log value\",DataLog!AD1742,\"\")","v":""},{"$f":"IF(DataLog!$C1742=\"Log value\",DataLog!AE1742,\"\")","v":""},{"$f":"IF(DataLog!$C1742=\"Log value\",DataLog!AF1742,\"\")","v":""},{"$f":"IF(DataLog!$C1742=\"Log value\",DataLog!AG1742,\"\")","v":""},{"$f":"IF(DataLog!$C1742=\"Log value\",DataLog!AH1742,\"\")","v":""},{"$f":"IF(DataLog!$C1742=\"Log value\",DataLog!AI1742,\"\")","v":""},{"$f":"IF(DataLog!$C1742=\"Log value\",DataLog!AJ1742,\"\")","v":""},{"$f":"IF(DataLog!$C1742=\"Log value\",DataLog!AK1742,\"\")","v":""},{"$f":"IF(DataLog!$C1742=\"Log value\",DataLog!AL1742,\"\")","v":""},{"$f":"IF(DataLog!$C1742=\"Log value\",DataLog!AM1742,\"\")","v":""}]
[null,null,null,null,null,null,{"$f":"IF(DataLog!$C1743=\"Log value\",DataLog!D1743&\"_\"&TEXT(DataLog!B1743,\"åååå-mm-dd\"),\"\")","v":""},{"$f":"IF(DataLog!$C1743=\"Log value\",DataLog!E1743,\"\")","v":""},{"$f":"IF(DataLog!$C1743=\"Log value\",DataLog!F1743,\"\")","v":""},{"$f":"IF(DataLog!$C1743=\"Log value\",DataLog!G1743,\"\")","v":""},{"$f":"IF(DataLog!$C1743=\"Log value\",DataLog!H1743,\"\")","v":""},{"$f":"IF(DataLog!$C1743=\"Log value\",DataLog!I1743,\"\")","v":""},{"$f":"IF(DataLog!$C1743=\"Log value\",DataLog!J1743,\"\")","v":""},{"$f":"IF(DataLog!$C1743=\"Log value\",DataLog!K1743,\"\")","v":""},{"$f":"IF(DataLog!$C1743=\"Log value\",DataLog!L1743,\"\")","v":""},{"$f":"IF(DataLog!$C1743=\"Log value\",DataLog!M1743,\"\")","v":""},{"$f":"IF(DataLog!$C1743=\"Log value\",DataLog!N1743,\"\")","v":""},{"$f":"IF(DataLog!$C1743=\"Log value\",DataLog!O1743,\"\")","v":""},{"$f":"IF(DataLog!$C1743=\"Log value\",DataLog!P1743,\"\")","v":""},{"$f":"IF(DataLog!$C1743=\"Log value\",DataLog!Q1743,\"\")","v":""},{"$f":"IF(DataLog!$C1743=\"Log value\",DataLog!R1743,\"\")","v":""},{"$f":"IF(DataLog!$C1743=\"Log value\",DataLog!S1743,\"\")","v":""},{"$f":"IF(DataLog!$C1743=\"Log value\",DataLog!T1743,\"\")","v":""},{"$f":"IF(DataLog!$C1743=\"Log value\",DataLog!U1743,\"\")","v":""},{"$f":"IF(DataLog!$C1743=\"Log value\",DataLog!V1743,\"\")","v":""},{"$f":"IF(DataLog!$C1743=\"Log value\",DataLog!W1743,\"\")","v":""},{"$f":"IF(DataLog!$C1743=\"Log value\",DataLog!X1743,\"\")","v":""},{"$f":"IF(DataLog!$C1743=\"Log value\",DataLog!Y1743,\"\")","v":""},{"$f":"IF(DataLog!$C1743=\"Log value\",DataLog!Z1743,\"\")","v":""},{"$f":"IF(DataLog!$C1743=\"Log value\",DataLog!AA1743,\"\")","v":""},{"$f":"IF(DataLog!$C1743=\"Log value\",DataLog!AB1743,\"\")","v":""},{"$f":"IF(DataLog!$C1743=\"Log value\",DataLog!AC1743,\"\")","v":""},{"$f":"IF(DataLog!$C1743=\"Log value\",DataLog!AD1743,\"\")","v":""},{"$f":"IF(DataLog!$C1743=\"Log value\",DataLog!AE1743,\"\")","v":""},{"$f":"IF(DataLog!$C1743=\"Log value\",DataLog!AF1743,\"\")","v":""},{"$f":"IF(DataLog!$C1743=\"Log value\",DataLog!AG1743,\"\")","v":""},{"$f":"IF(DataLog!$C1743=\"Log value\",DataLog!AH1743,\"\")","v":""},{"$f":"IF(DataLog!$C1743=\"Log value\",DataLog!AI1743,\"\")","v":""},{"$f":"IF(DataLog!$C1743=\"Log value\",DataLog!AJ1743,\"\")","v":""},{"$f":"IF(DataLog!$C1743=\"Log value\",DataLog!AK1743,\"\")","v":""},{"$f":"IF(DataLog!$C1743=\"Log value\",DataLog!AL1743,\"\")","v":""},{"$f":"IF(DataLog!$C1743=\"Log value\",DataLog!AM1743,\"\")","v":""}]
[null,null,null,null,null,null,{"$f":"IF(DataLog!$C1746=\"Log value\",DataLog!D1746&\"_\"&TEXT(DataLog!B1746,\"åååå-mm-dd\"),\"\")","v":""},{"$f":"IF(DataLog!$C1746=\"Log value\",DataLog!E1746,\"\")","v":""},{"$f":"IF(DataLog!$C1746=\"Log value\",DataLog!F1746,\"\")","v":""},{"$f":"IF(DataLog!$C1746=\"Log value\",DataLog!G1746,\"\")","v":""},{"$f":"IF(DataLog!$C1746=\"Log value\",DataLog!H1746,\"\")","v":""},{"$f":"IF(DataLog!$C1746=\"Log value\",DataLog!I1746,\"\")","v":""},{"$f":"IF(DataLog!$C1746=\"Log value\",DataLog!J1746,\"\")","v":""},{"$f":"IF(DataLog!$C1746=\"Log value\",DataLog!K1746,\"\")","v":""},{"$f":"IF(DataLog!$C1746=\"Log value\",DataLog!L1746,\"\")","v":""},{"$f":"IF(DataLog!$C1746=\"Log value\",DataLog!M1746,\"\")","v":""},{"$f":"IF(DataLog!$C1746=\"Log value\",DataLog!N1746,\"\")","v":""},{"$f":"IF(DataLog!$C1746=\"Log value\",DataLog!O1746,\"\")","v":""},{"$f":"IF(DataLog!$C1746=\"Log value\",DataLog!P1746,\"\")","v":""},{"$f":"IF(DataLog!$C1746=\"Log value\",DataLog!Q1746,\"\")","v":""},{"$f":"IF(DataLog!$C1746=\"Log value\",DataLog!R1746,\"\")","v":""},{"$f":"IF(DataLog!$C1746=\"Log value\",DataLog!S1746,\"\")","v":""},{"$f":"IF(DataLog!$C1746=\"Log value\",DataLog!T1746,\"\")","v":""},{"$f":"IF(DataLog!$C1746=\"Log value\",DataLog!U1746,\"\")","v":""},{"$f":"IF(DataLog!$C1746=\"Log value\",DataLog!V1746,\"\")","v":""},{"$f":"IF(DataLog!$C1746=\"Log value\",DataLog!W1746,\"\")","v":""},{"$f":"IF(DataLog!$C1746=\"Log value\",DataLog!X1746,\"\")","v":""},{"$f":"IF(DataLog!$C1746=\"Log value\",DataLog!Y1746,\"\")","v":""},{"$f":"IF(DataLog!$C1746=\"Log value\",DataLog!Z1746,\"\")","v":""},{"$f":"IF(DataLog!$C1746=\"Log value\",DataLog!AA1746,\"\")","v":""},{"$f":"IF(DataLog!$C1746=\"Log value\",DataLog!AB1746,\"\")","v":""},{"$f":"IF(DataLog!$C1746=\"Log value\",DataLog!AC1746,\"\")","v":""},{"$f":"IF(DataLog!$C1746=\"Log value\",DataLog!AD1746,\"\")","v":""},{"$f":"IF(DataLog!$C1746=\"Log value\",DataLog!AE1746,\"\")","v":""},{"$f":"IF(DataLog!$C1746=\"Log value\",DataLog!AF1746,\"\")","v":""},{"$f":"IF(DataLog!$C1746=\"Log value\",DataLog!AG1746,\"\")","v":""},{"$f":"IF(DataLog!$C1746=\"Log value\",DataLog!AH1746,\"\")","v":""},{"$f":"IF(DataLog!$C1746=\"Log value\",DataLog!AI1746,\"\")","v":""},{"$f":"IF(DataLog!$C1746=\"Log value\",DataLog!AJ1746,\"\")","v":""},{"$f":"IF(DataLog!$C1746=\"Log value\",DataLog!AK1746,\"\")","v":""},{"$f":"IF(DataLog!$C1746=\"Log value\",DataLog!AL1746,\"\")","v":""},{"$f":"IF(DataLog!$C1746=\"Log value\",DataLog!AM1746,\"\")","v":""}]
[null,null,null,null,null,null,{"$f":"IF(DataLog!$C1747=\"Log value\",DataLog!D1747&\"_\"&TEXT(DataLog!B1747,\"åååå-mm-dd\"),\"\")","v":""},{"$f":"IF(DataLog!$C1747=\"Log value\",DataLog!E1747,\"\")","v":""},{"$f":"IF(DataLog!$C1747=\"Log value\",DataLog!F1747,\"\")","v":""},{"$f":"IF(DataLog!$C1747=\"Log value\",DataLog!G1747,\"\")","v":""},{"$f":"IF(DataLog!$C1747=\"Log value\",DataLog!H1747,\"\")","v":""},{"$f":"IF(DataLog!$C1747=\"Log value\",DataLog!I1747,\"\")","v":""},{"$f":"IF(DataLog!$C1747=\"Log value\",DataLog!J1747,\"\")","v":""},{"$f":"IF(DataLog!$C1747=\"Log value\",DataLog!K1747,\"\")","v":""},{"$f":"IF(DataLog!$C1747=\"Log value\",DataLog!L1747,\"\")","v":""},{"$f":"IF(DataLog!$C1747=\"Log value\",DataLog!M1747,\"\")","v":""},{"$f":"IF(DataLog!$C1747=\"Log value\",DataLog!N1747,\"\")","v":""},{"$f":"IF(DataLog!$C1747=\"Log value\",DataLog!O1747,\"\")","v":""},{"$f":"IF(DataLog!$C1747=\"Log value\",DataLog!P1747,\"\")","v":""},{"$f":"IF(DataLog!$C1747=\"Log value\",DataLog!Q1747,\"\")","v":""},{"$f":"IF(DataLog!$C1747=\"Log value\",DataLog!R1747,\"\")","v":""},{"$f":"IF(DataLog!$C1747=\"Log value\",DataLog!S1747,\"\")","v":""},{"$f":"IF(DataLog!$C1747=\"Log value\",DataLog!T1747,\"\")","v":""},{"$f":"IF(DataLog!$C1747=\"Log value\",DataLog!U1747,\"\")","v":""},{"$f":"IF(DataLog!$C1747=\"Log value\",DataLog!V1747,\"\")","v":""},{"$f":"IF(DataLog!$C1747=\"Log value\",DataLog!W1747,\"\")","v":""},{"$f":"IF(DataLog!$C1747=\"Log value\",DataLog!X1747,\"\")","v":""},{"$f":"IF(DataLog!$C1747=\"Log value\",DataLog!Y1747,\"\")","v":""},{"$f":"IF(DataLog!$C1747=\"Log value\",DataLog!Z1747,\"\")","v":""},{"$f":"IF(DataLog!$C1747=\"Log value\",DataLog!AA1747,\"\")","v":""},{"$f":"IF(DataLog!$C1747=\"Log value\",DataLog!AB1747,\"\")","v":""},{"$f":"IF(DataLog!$C1747=\"Log value\",DataLog!AC1747,\"\")","v":""},{"$f":"IF(DataLog!$C1747=\"Log value\",DataLog!AD1747,\"\")","v":""},{"$f":"IF(DataLog!$C1747=\"Log value\",DataLog!AE1747,\"\")","v":""},{"$f":"IF(DataLog!$C1747=\"Log value\",DataLog!AF1747,\"\")","v":""},{"$f":"IF(DataLog!$C1747=\"Log value\",DataLog!AG1747,\"\")","v":""},{"$f":"IF(DataLog!$C1747=\"Log value\",DataLog!AH1747,\"\")","v":""},{"$f":"IF(DataLog!$C1747=\"Log value\",DataLog!AI1747,\"\")","v":""},{"$f":"IF(DataLog!$C1747=\"Log value\",DataLog!AJ1747,\"\")","v":""},{"$f":"IF(DataLog!$C1747=\"Log value\",DataLog!AK1747,\"\")","v":""},{"$f":"IF(DataLog!$C1747=\"Log value\",DataLog!AL1747,\"\")","v":""},{"$f":"IF(DataLog!$C1747=\"Log value\",DataLog!AM1747,\"\")","v":""}]
[null,null,null,null,null,null,{"$f":"IF(DataLog!$C1750=\"Log value\",DataLog!D1750&\"_\"&TEXT(DataLog!B1750,\"åååå-mm-dd\"),\"\")","v":""},{"$f":"IF(DataLog!$C1750=\"Log value\",DataLog!E1750,\"\")","v":""},{"$f":"IF(DataLog!$C1750=\"Log value\",DataLog!F1750,\"\")","v":""},{"$f":"IF(DataLog!$C1750=\"Log value\",DataLog!G1750,\"\")","v":""},{"$f":"IF(DataLog!$C1750=\"Log value\",DataLog!H1750,\"\")","v":""},{"$f":"IF(DataLog!$C1750=\"Log value\",DataLog!I1750,\"\")","v":""},{"$f":"IF(DataLog!$C1750=\"Log value\",DataLog!J1750,\"\")","v":""},{"$f":"IF(DataLog!$C1750=\"Log value\",DataLog!K1750,\"\")","v":""},{"$f":"IF(DataLog!$C1750=\"Log value\",DataLog!L1750,\"\")","v":""},{"$f":"IF(DataLog!$C1750=\"Log value\",DataLog!M1750,\"\")","v":""},{"$f":"IF(DataLog!$C1750=\"Log value\",DataLog!N1750,\"\")","v":""},{"$f":"IF(DataLog!$C1750=\"Log value\",DataLog!O1750,\"\")","v":""},{"$f":"IF(DataLog!$C1750=\"Log value\",DataLog!P1750,\"\")","v":""},{"$f":"IF(DataLog!$C1750=\"Log value\",DataLog!Q1750,\"\")","v":""},{"$f":"IF(DataLog!$C1750=\"Log value\",DataLog!R1750,\"\")","v":""},{"$f":"IF(DataLog!$C1750=\"Log value\",DataLog!S1750,\"\")","v":""},{"$f":"IF(DataLog!$C1750=\"Log value\",DataLog!T1750,\"\")","v":""},{"$f":"IF(DataLog!$C1750=\"Log value\",DataLog!U1750,\"\")","v":""},{"$f":"IF(DataLog!$C1750=\"Log value\",DataLog!V1750,\"\")","v":""},{"$f":"IF(DataLog!$C1750=\"Log value\",DataLog!W1750,\"\")","v":""},{"$f":"IF(DataLog!$C1750=\"Log value\",DataLog!X1750,\"\")","v":""},{"$f":"IF(DataLog!$C1750=\"Log value\",DataLog!Y1750,\"\")","v":""},{"$f":"IF(DataLog!$C1750=\"Log value\",DataLog!Z1750,\"\")","v":""},{"$f":"IF(DataLog!$C1750=\"Log value\",DataLog!AA1750,\"\")","v":""},{"$f":"IF(DataLog!$C1750=\"Log value\",DataLog!AB1750,\"\")","v":""},{"$f":"IF(DataLog!$C1750=\"Log value\",DataLog!AC1750,\"\")","v":""},{"$f":"IF(DataLog!$C1750=\"Log value\",DataLog!AD1750,\"\")","v":""},{"$f":"IF(DataLog!$C1750=\"Log value\",DataLog!AE1750,\"\")","v":""},{"$f":"IF(DataLog!$C1750=\"Log value\",DataLog!AF1750,\"\")","v":""},{"$f":"IF(DataLog!$C1750=\"Log value\",DataLog!AG1750,\"\")","v":""},{"$f":"IF(DataLog!$C1750=\"Log value\",DataLog!AH1750,\"\")","v":""},{"$f":"IF(DataLog!$C1750=\"Log value\",DataLog!AI1750,\"\")","v":""},{"$f":"IF(DataLog!$C1750=\"Log value\",DataLog!AJ1750,\"\")","v":""},{"$f":"IF(DataLog!$C1750=\"Log value\",DataLog!AK1750,\"\")","v":""},{"$f":"IF(DataLog!$C1750=\"Log value\",DataLog!AL1750,\"\")","v":""},{"$f":"IF(DataLog!$C1750=\"Log value\",DataLog!AM1750,\"\")","v":""}]
[null,null,null,null,null,null,{"$f":"IF(DataLog!$C1752=\"Log value\",DataLog!D1752&\"_\"&TEXT(DataLog!B1752,\"åååå-mm-dd\"),\"\")","v":""},{"$f":"IF(DataLog!$C1752=\"Log value\",DataLog!E1752,\"\")","v":""},{"$f":"IF(DataLog!$C1752=\"Log value\",DataLog!F1752,\"\")","v":""},{"$f":"IF(DataLog!$C1752=\"Log value\",DataLog!G1752,\"\")","v":""},{"$f":"IF(DataLog!$C1752=\"Log value\",DataLog!H1752,\"\")","v":""},{"$f":"IF(DataLog!$C1752=\"Log value\",DataLog!I1752,\"\")","v":""},{"$f":"IF(DataLog!$C1752=\"Log value\",DataLog!J1752,\"\")","v":""},{"$f":"IF(DataLog!$C1752=\"Log value\",DataLog!K1752,\"\")","v":""},{"$f":"IF(DataLog!$C1752=\"Log value\",DataLog!L1752,\"\")","v":""},{"$f":"IF(DataLog!$C1752=\"Log value\",DataLog!M1752,\"\")","v":""},{"$f":"IF(DataLog!$C1752=\"Log value\",DataLog!N1752,\"\")","v":""},{"$f":"IF(DataLog!$C1752=\"Log value\",DataLog!O1752,\"\")","v":""},{"$f":"IF(DataLog!$C1752=\"Log value\",DataLog!P1752,\"\")","v":""},{"$f":"IF(DataLog!$C1752=\"Log value\",DataLog!Q1752,\"\")","v":""},{"$f":"IF(DataLog!$C1752=\"Log value\",DataLog!R1752,\"\")","v":""},{"$f":"IF(DataLog!$C1752=\"Log value\",DataLog!S1752,\"\")","v":""},{"$f":"IF(DataLog!$C1752=\"Log value\",DataLog!T1752,\"\")","v":""},{"$f":"IF(DataLog!$C1752=\"Log value\",DataLog!U1752,\"\")","v":""},{"$f":"IF(DataLog!$C1752=\"Log value\",DataLog!V1752,\"\")","v":""},{"$f":"IF(DataLog!$C1752=\"Log value\",DataLog!W1752,\"\")","v":""},{"$f":"IF(DataLog!$C1752=\"Log value\",DataLog!X1752,\"\")","v":""},{"$f":"IF(DataLog!$C1752=\"Log value\",DataLog!Y1752,\"\")","v":""},{"$f":"IF(DataLog!$C1752=\"Log value\",DataLog!Z1752,\"\")","v":""},{"$f":"IF(DataLog!$C1752=\"Log value\",DataLog!AA1752,\"\")","v":""},{"$f":"IF(DataLog!$C1752=\"Log value\",DataLog!AB1752,\"\")","v":""},{"$f":"IF(DataLog!$C1752=\"Log value\",DataLog!AC1752,\"\")","v":""},{"$f":"IF(DataLog!$C1752=\"Log value\",DataLog!AD1752,\"\")","v":""},{"$f":"IF(DataLog!$C1752=\"Log value\",DataLog!AE1752,\"\")","v":""},{"$f":"IF(DataLog!$C1752=\"Log value\",DataLog!AF1752,\"\")","v":""},{"$f":"IF(DataLog!$C1752=\"Log value\",DataLog!AG1752,\"\")","v":""},{"$f":"IF(DataLog!$C1752=\"Log value\",DataLog!AH1752,\"\")","v":""},{"$f":"IF(DataLog!$C1752=\"Log value\",DataLog!AI1752,\"\")","v":""},{"$f":"IF(DataLog!$C1752=\"Log value\",DataLog!AJ1752,\"\")","v":""},{"$f":"IF(DataLog!$C1752=\"Log value\",DataLog!AK1752,\"\")","v":""},{"$f":"IF(DataLog!$C1752=\"Log value\",DataLog!AL1752,\"\")","v":""},{"$f":"IF(DataLog!$C1752=\"Log value\",DataLog!AM1752,\"\")","v":""}]
[null,null,null,null,null,null,{"$f":"IF(DataLog!$C1755=\"Log value\",DataLog!D1755&\"_\"&TEXT(DataLog!B1755,\"åååå-mm-dd\"),\"\")","v":""},{"$f":"IF(DataLog!$C1755=\"Log value\",DataLog!E1755,\"\")","v":""},{"$f":"IF(DataLog!$C1755=\"Log value\",DataLog!F1755,\"\")","v":""},{"$f":"IF(DataLog!$C1755=\"Log value\",DataLog!G1755,\"\")","v":""},{"$f":"IF(DataLog!$C1755=\"Log value\",DataLog!H1755,\"\")","v":""},{"$f":"IF(DataLog!$C1755=\"Log value\",DataLog!I1755,\"\")","v":""},{"$f":"IF(DataLog!$C1755=\"Log value\",DataLog!J1755,\"\")","v":""},{"$f":"IF(DataLog!$C1755=\"Log value\",DataLog!K1755,\"\")","v":""},{"$f":"IF(DataLog!$C1755=\"Log value\",DataLog!L1755,\"\")","v":""},{"$f":"IF(DataLog!$C1755=\"Log value\",DataLog!M1755,\"\")","v":""},{"$f":"IF(DataLog!$C1755=\"Log value\",DataLog!N1755,\"\")","v":""},{"$f":"IF(DataLog!$C1755=\"Log value\",DataLog!O1755,\"\")","v":""},{"$f":"IF(DataLog!$C1755=\"Log value\",DataLog!P1755,\"\")","v":""},{"$f":"IF(DataLog!$C1755=\"Log value\",DataLog!Q1755,\"\")","v":""},{"$f":"IF(DataLog!$C1755=\"Log value\",DataLog!R1755,\"\")","v":""},{"$f":"IF(DataLog!$C1755=\"Log value\",DataLog!S1755,\"\")","v":""},{"$f":"IF(DataLog!$C1755=\"Log value\",DataLog!T1755,\"\")","v":""},{"$f":"IF(DataLog!$C1755=\"Log value\",DataLog!U1755,\"\")","v":""},{"$f":"IF(DataLog!$C1755=\"Log value\",DataLog!V1755,\"\")","v":""},{"$f":"IF(DataLog!$C1755=\"Log value\",DataLog!W1755,\"\")","v":""},{"$f":"IF(DataLog!$C1755=\"Log value\",DataLog!X1755,\"\")","v":""},{"$f":"IF(DataLog!$C1755=\"Log value\",DataLog!Y1755,\"\")","v":""},{"$f":"IF(DataLog!$C1755=\"Log value\",DataLog!Z1755,\"\")","v":""},{"$f":"IF(DataLog!$C1755=\"Log value\",DataLog!AA1755,\"\")","v":""},{"$f":"IF(DataLog!$C1755=\"Log value\",DataLog!AB1755,\"\")","v":""},{"$f":"IF(DataLog!$C1755=\"Log value\",DataLog!AC1755,\"\")","v":""},{"$f":"IF(DataLog!$C1755=\"Log value\",DataLog!AD1755,\"\")","v":""},{"$f":"IF(DataLog!$C1755=\"Log value\",DataLog!AE1755,\"\")","v":""},{"$f":"IF(DataLog!$C1755=\"Log value\",DataLog!AF1755,\"\")","v":""},{"$f":"IF(DataLog!$C1755=\"Log value\",DataLog!AG1755,\"\")","v":""},{"$f":"IF(DataLog!$C1755=\"Log value\",DataLog!AH1755,\"\")","v":""},{"$f":"IF(DataLog!$C1755=\"Log value\",DataLog!AI1755,\"\")","v":""},{"$f":"IF(DataLog!$C1755=\"Log value\",DataLog!AJ1755,\"\")","v":""},{"$f":"IF(DataLog!$C1755=\"Log value\",DataLog!AK1755,\"\")","v":""},{"$f":"IF(DataLog!$C1755=\"Log value\",DataLog!AL1755,\"\")","v":""},{"$f":"IF(DataLog!$C1755=\"Log value\",DataLog!AM1755,\"\")","v":""}]
[null,null,null,null,null,null,{"$f":"IF(DataLog!$C1758=\"Log value\",DataLog!D1758&\"_\"&TEXT(DataLog!B1758,\"åååå-mm-dd\"),\"\")","v":""},{"$f":"IF(DataLog!$C1758=\"Log value\",DataLog!E1758,\"\")","v":""},{"$f":"IF(DataLog!$C1758=\"Log value\",DataLog!F1758,\"\")","v":""},{"$f":"IF(DataLog!$C1758=\"Log value\",DataLog!G1758,\"\")","v":""},{"$f":"IF(DataLog!$C1758=\"Log value\",DataLog!H1758,\"\")","v":""},{"$f":"IF(DataLog!$C1758=\"Log value\",DataLog!I1758,\"\")","v":""},{"$f":"IF(DataLog!$C1758=\"Log value\",DataLog!J1758,\"\")","v":""},{"$f":"IF(DataLog!$C1758=\"Log value\",DataLog!K1758,\"\")","v":""},{"$f":"IF(DataLog!$C1758=\"Log value\",DataLog!L1758,\"\")","v":""},{"$f":"IF(DataLog!$C1758=\"Log value\",DataLog!M1758,\"\")","v":""},{"$f":"IF(DataLog!$C1758=\"Log value\",DataLog!N1758,\"\")","v":""},{"$f":"IF(DataLog!$C1758=\"Log value\",DataLog!O1758,\"\")","v":""},{"$f":"IF(DataLog!$C1758=\"Log value\",DataLog!P1758,\"\")","v":""},{"$f":"IF(DataLog!$C1758=\"Log value\",DataLog!Q1758,\"\")","v":""},{"$f":"IF(DataLog!$C1758=\"Log value\",DataLog!R1758,\"\")","v":""},{"$f":"IF(DataLog!$C1758=\"Log value\",DataLog!S1758,\"\")","v":""},{"$f":"IF(DataLog!$C1758=\"Log value\",DataLog!T1758,\"\")","v":""},{"$f":"IF(DataLog!$C1758=\"Log value\",DataLog!U1758,\"\")","v":""},{"$f":"IF(DataLog!$C1758=\"Log value\",DataLog!V1758,\"\")","v":""},{"$f":"IF(DataLog!$C1758=\"Log value\",DataLog!W1758,\"\")","v":""},{"$f":"IF(DataLog!$C1758=\"Log value\",DataLog!X1758,\"\")","v":""},{"$f":"IF(DataLog!$C1758=\"Log value\",DataLog!Y1758,\"\")","v":""},{"$f":"IF(DataLog!$C1758=\"Log value\",DataLog!Z1758,\"\")","v":""},{"$f":"IF(DataLog!$C1758=\"Log value\",DataLog!AA1758,\"\")","v":""},{"$f":"IF(DataLog!$C1758=\"Log value\",DataLog!AB1758,\"\")","v":""},{"$f":"IF(DataLog!$C1758=\"Log value\",DataLog!AC1758,\"\")","v":""},{"$f":"IF(DataLog!$C1758=\"Log value\",DataLog!AD1758,\"\")","v":""},{"$f":"IF(DataLog!$C1758=\"Log value\",DataLog!AE1758,\"\")","v":""},{"$f":"IF(DataLog!$C1758=\"Log value\",DataLog!AF1758,\"\")","v":""},{"$f":"IF(DataLog!$C1758=\"Log value\",DataLog!AG1758,\"\")","v":""},{"$f":"IF(DataLog!$C1758=\"Log value\",DataLog!AH1758,\"\")","v":""},{"$f":"IF(DataLog!$C1758=\"Log value\",DataLog!AI1758,\"\")","v":""},{"$f":"IF(DataLog!$C1758=\"Log value\",DataLog!AJ1758,\"\")","v":""},{"$f":"IF(DataLog!$C1758=\"Log value\",DataLog!AK1758,\"\")","v":""},{"$f":"IF(DataLog!$C1758=\"Log value\",DataLog!AL1758,\"\")","v":""},{"$f":"IF(DataLog!$C1758=\"Log value\",DataLog!AM1758,\"\")","v":""}]
[null,null,null,null,null,null,{"$f":"IF(DataLog!$C1760=\"Log value\",DataLog!D1760&\"_\"&TEXT(DataLog!B1760,\"åååå-mm-dd\"),\"\")","v":""},{"$f":"IF(DataLog!$C1760=\"Log value\",DataLog!E1760,\"\")","v":""},{"$f":"IF(DataLog!$C1760=\"Log value\",DataLog!F1760,\"\")","v":""},{"$f":"IF(DataLog!$C1760=\"Log value\",DataLog!G1760,\"\")","v":""},{"$f":"IF(DataLog!$C1760=\"Log value\",DataLog!H1760,\"\")","v":""},{"$f":"IF(DataLog!$C1760=\"Log value\",DataLog!I1760,\"\")","v":""},{"$f":"IF(DataLog!$C1760=\"Log value\",DataLog!J1760,\"\")","v":""},{"$f":"IF(DataLog!$C1760=\"Log value\",DataLog!K1760,\"\")","v":""},{"$f":"IF(DataLog!$C1760=\"Log value\",DataLog!L1760,\"\")","v":""},{"$f":"IF(DataLog!$C1760=\"Log value\",DataLog!M1760,\"\")","v":""},{"$f":"IF(DataLog!$C1760=\"Log value\",DataLog!N1760,\"\")","v":""},{"$f":"IF(DataLog!$C1760=\"Log value\",DataLog!O1760,\"\")","v":""},{"$f":"IF(DataLog!$C1760=\"Log value\",DataLog!P1760,\"\")","v":""},{"$f":"IF(DataLog!$C1760=\"Log value\",DataLog!Q1760,\"\")","v":""},{"$f":"IF(DataLog!$C1760=\"Log value\",DataLog!R1760,\"\")","v":""},{"$f":"IF(DataLog!$C1760=\"Log value\",DataLog!S1760,\"\")","v":""},{"$f":"IF(DataLog!$C1760=\"Log value\",DataLog!T1760,\"\")","v":""},{"$f":"IF(DataLog!$C1760=\"Log value\",DataLog!U1760,\"\")","v":""},{"$f":"IF(DataLog!$C1760=\"Log value\",DataLog!V1760,\"\")","v":""},{"$f":"IF(DataLog!$C1760=\"Log value\",DataLog!W1760,\"\")","v":""},{"$f":"IF(DataLog!$C1760=\"Log value\",DataLog!X1760,\"\")","v":""},{"$f":"IF(DataLog!$C1760=\"Log value\",DataLog!Y1760,\"\")","v":""},{"$f":"IF(DataLog!$C1760=\"Log value\",DataLog!Z1760,\"\")","v":""},{"$f":"IF(DataLog!$C1760=\"Log value\",DataLog!AA1760,\"\")","v":""},{"$f":"IF(DataLog!$C1760=\"Log value\",DataLog!AB1760,\"\")","v":""},{"$f":"IF(DataLog!$C1760=\"Log value\",DataLog!AC1760,\"\")","v":""},{"$f":"IF(DataLog!$C1760=\"Log value\",DataLog!AD1760,\"\")","v":""},{"$f":"IF(DataLog!$C1760=\"Log value\",DataLog!AE1760,\"\")","v":""},{"$f":"IF(DataLog!$C1760=\"Log value\",DataLog!AF1760,\"\")","v":""},{"$f":"IF(DataLog!$C1760=\"Log value\",DataLog!AG1760,\"\")","v":""},{"$f":"IF(DataLog!$C1760=\"Log value\",DataLog!AH1760,\"\")","v":""},{"$f":"IF(DataLog!$C1760=\"Log value\",DataLog!AI1760,\"\")","v":""},{"$f":"IF(DataLog!$C1760=\"Log value\",DataLog!AJ1760,\"\")","v":""},{"$f":"IF(DataLog!$C1760=\"Log value\",DataLog!AK1760,\"\")","v":""},{"$f":"IF(DataLog!$C1760=\"Log value\",DataLog!AL1760,\"\")","v":""},{"$f":"IF(DataLog!$C1760=\"Log value\",DataLog!AM1760,\"\")","v":""}]
[null,null,null,null,null,null,{"$f":"IF(DataLog!$C1761=\"Log value\",DataLog!D1761&\"_\"&TEXT(DataLog!B1761,\"åååå-mm-dd\"),\"\")","v":""},{"$f":"IF(DataLog!$C1761=\"Log value\",DataLog!E1761,\"\")","v":""},{"$f":"IF(DataLog!$C1761=\"Log value\",DataLog!F1761,\"\")","v":""},{"$f":"IF(DataLog!$C1761=\"Log value\",DataLog!G1761,\"\")","v":""},{"$f":"IF(DataLog!$C1761=\"Log value\",DataLog!H1761,\"\")","v":""},{"$f":"IF(DataLog!$C1761=\"Log value\",DataLog!I1761,\"\")","v":""},{"$f":"IF(DataLog!$C1761=\"Log value\",DataLog!J1761,\"\")","v":""},{"$f":"IF(DataLog!$C1761=\"Log value\",DataLog!K1761,\"\")","v":""},{"$f":"IF(DataLog!$C1761=\"Log value\",DataLog!L1761,\"\")","v":""},{"$f":"IF(DataLog!$C1761=\"Log value\",DataLog!M1761,\"\")","v":""},{"$f":"IF(DataLog!$C1761=\"Log value\",DataLog!N1761,\"\")","v":""},{"$f":"IF(DataLog!$C1761=\"Log value\",DataLog!O1761,\"\")","v":""},{"$f":"IF(DataLog!$C1761=\"Log value\",DataLog!P1761,\"\")","v":""},{"$f":"IF(DataLog!$C1761=\"Log value\",DataLog!Q1761,\"\")","v":""},{"$f":"IF(DataLog!$C1761=\"Log value\",DataLog!R1761,\"\")","v":""},{"$f":"IF(DataLog!$C1761=\"Log value\",DataLog!S1761,\"\")","v":""},{"$f":"IF(DataLog!$C1761=\"Log value\",DataLog!T1761,\"\")","v":""},{"$f":"IF(DataLog!$C1761=\"Log value\",DataLog!U1761,\"\")","v":""},{"$f":"IF(DataLog!$C1761=\"Log value\",DataLog!V1761,\"\")","v":""},{"$f":"IF(DataLog!$C1761=\"Log value\",DataLog!W1761,\"\")","v":""},{"$f":"IF(DataLog!$C1761=\"Log value\",DataLog!X1761,\"\")","v":""},{"$f":"IF(DataLog!$C1761=\"Log value\",DataLog!Y1761,\"\")","v":""},{"$f":"IF(DataLog!$C1761=\"Log value\",DataLog!Z1761,\"\")","v":""},{"$f":"IF(DataLog!$C1761=\"Log value\",DataLog!AA1761,\"\")","v":""},{"$f":"IF(DataLog!$C1761=\"Log value\",DataLog!AB1761,\"\")","v":""},{"$f":"IF(DataLog!$C1761=\"Log value\",DataLog!AC1761,\"\")","v":""},{"$f":"IF(DataLog!$C1761=\"Log value\",DataLog!AD1761,\"\")","v":""},{"$f":"IF(DataLog!$C1761=\"Log value\",DataLog!AE1761,\"\")","v":""},{"$f":"IF(DataLog!$C1761=\"Log value\",DataLog!AF1761,\"\")","v":""},{"$f":"IF(DataLog!$C1761=\"Log value\",DataLog!AG1761,\"\")","v":""},{"$f":"IF(DataLog!$C1761=\"Log value\",DataLog!AH1761,\"\")","v":""},{"$f":"IF(DataLog!$C1761=\"Log value\",DataLog!AI1761,\"\")","v":""},{"$f":"IF(DataLog!$C1761=\"Log value\",DataLog!AJ1761,\"\")","v":""},{"$f":"IF(DataLog!$C1761=\"Log value\",DataLog!AK1761,\"\")","v":""},{"$f":"IF(DataLog!$C1761=\"Log value\",DataLog!AL1761,\"\")","v":""},{"$f":"IF(DataLog!$C1761=\"Log value\",DataLog!AM1761,\"\")","v":""}]
[null,null,null,null,null,null,{"$f":"IF(DataLog!$C1764=\"Log value\",DataLog!D1764&\"_\"&TEXT(DataLog!B1764,\"åååå-mm-dd\"),\"\")","v":""},{"$f":"IF(DataLog!$C1764=\"Log value\",DataLog!E1764,\"\")","v":""},{"$f":"IF(DataLog!$C1764=\"Log value\",DataLog!F1764,\"\")","v":""},{"$f":"IF(DataLog!$C1764=\"Log value\",DataLog!G1764,\"\")","v":""},{"$f":"IF(DataLog!$C1764=\"Log value\",DataLog!H1764,\"\")","v":""},{"$f":"IF(DataLog!$C1764=\"Log value\",DataLog!I1764,\"\")","v":""},{"$f":"IF(DataLog!$C1764=\"Log value\",DataLog!J1764,\"\")","v":""},{"$f":"IF(DataLog!$C1764=\"Log value\",DataLog!K1764,\"\")","v":""},{"$f":"IF(DataLog!$C1764=\"Log value\",DataLog!L1764,\"\")","v":""},{"$f":"IF(DataLog!$C1764=\"Log value\",DataLog!M1764,\"\")","v":""},{"$f":"IF(DataLog!$C1764=\"Log value\",DataLog!N1764,\"\")","v":""},{"$f":"IF(DataLog!$C1764=\"Log value\",DataLog!O1764,\"\")","v":""},{"$f":"IF(DataLog!$C1764=\"Log value\",DataLog!P1764,\"\")","v":""},{"$f":"IF(DataLog!$C1764=\"Log value\",DataLog!Q1764,\"\")","v":""},{"$f":"IF(DataLog!$C1764=\"Log value\",DataLog!R1764,\"\")","v":""},{"$f":"IF(DataLog!$C1764=\"Log value\",DataLog!S1764,\"\")","v":""},{"$f":"IF(DataLog!$C1764=\"Log value\",DataLog!T1764,\"\")","v":""},{"$f":"IF(DataLog!$C1764=\"Log value\",DataLog!U1764,\"\")","v":""},{"$f":"IF(DataLog!$C1764=\"Log value\",DataLog!V1764,\"\")","v":""},{"$f":"IF(DataLog!$C1764=\"Log value\",DataLog!W1764,\"\")","v":""},{"$f":"IF(DataLog!$C1764=\"Log value\",DataLog!X1764,\"\")","v":""},{"$f":"IF(DataLog!$C1764=\"Log value\",DataLog!Y1764,\"\")","v":""},{"$f":"IF(DataLog!$C1764=\"Log value\",DataLog!Z1764,\"\")","v":""},{"$f":"IF(DataLog!$C1764=\"Log value\",DataLog!AA1764,\"\")","v":""},{"$f":"IF(DataLog!$C1764=\"Log value\",DataLog!AB1764,\"\")","v":""},{"$f":"IF(DataLog!$C1764=\"Log value\",DataLog!AC1764,\"\")","v":""},{"$f":"IF(DataLog!$C1764=\"Log value\",DataLog!AD1764,\"\")","v":""},{"$f":"IF(DataLog!$C1764=\"Log value\",DataLog!AE1764,\"\")","v":""},{"$f":"IF(DataLog!$C1764=\"Log value\",DataLog!AF1764,\"\")","v":""},{"$f":"IF(DataLog!$C1764=\"Log value\",DataLog!AG1764,\"\")","v":""},{"$f":"IF(DataLog!$C1764=\"Log value\",DataLog!AH1764,\"\")","v":""},{"$f":"IF(DataLog!$C1764=\"Log value\",DataLog!AI1764,\"\")","v":""},{"$f":"IF(DataLog!$C1764=\"Log value\",DataLog!AJ1764,\"\")","v":""},{"$f":"IF(DataLog!$C1764=\"Log value\",DataLog!AK1764,\"\")","v":""},{"$f":"IF(DataLog!$C1764=\"Log value\",DataLog!AL1764,\"\")","v":""},{"$f":"IF(DataLog!$C1764=\"Log value\",DataLog!AM1764,\"\")","v":""}]
[null,null,null,null,null,null,{"$f":"IF(DataLog!$C1765=\"Log value\",DataLog!D1765&\"_\"&TEXT(DataLog!B1765,\"åååå-mm-dd\"),\"\")","v":""},{"$f":"IF(DataLog!$C1765=\"Log value\",DataLog!E1765,\"\")","v":""},{"$f":"IF(DataLog!$C1765=\"Log value\",DataLog!F1765,\"\")","v":""},{"$f":"IF(DataLog!$C1765=\"Log value\",DataLog!G1765,\"\")","v":""},{"$f":"IF(DataLog!$C1765=\"Log value\",DataLog!H1765,\"\")","v":""},{"$f":"IF(DataLog!$C1765=\"Log value\",DataLog!I1765,\"\")","v":""},{"$f":"IF(DataLog!$C1765=\"Log value\",DataLog!J1765,\"\")","v":""},{"$f":"IF(DataLog!$C1765=\"Log value\",DataLog!K1765,\"\")","v":""},{"$f":"IF(DataLog!$C1765=\"Log value\",DataLog!L1765,\"\")","v":""},{"$f":"IF(DataLog!$C1765=\"Log value\",DataLog!M1765,\"\")","v":""},{"$f":"IF(DataLog!$C1765=\"Log value\",DataLog!N1765,\"\")","v":""},{"$f":"IF(DataLog!$C1765=\"Log value\",DataLog!O1765,\"\")","v":""},{"$f":"IF(DataLog!$C1765=\"Log value\",DataLog!P1765,\"\")","v":""},{"$f":"IF(DataLog!$C1765=\"Log value\",DataLog!Q1765,\"\")","v":""},{"$f":"IF(DataLog!$C1765=\"Log value\",DataLog!R1765,\"\")","v":""},{"$f":"IF(DataLog!$C1765=\"Log value\",DataLog!S1765,\"\")","v":""},{"$f":"IF(DataLog!$C1765=\"Log value\",DataLog!T1765,\"\")","v":""},{"$f":"IF(DataLog!$C1765=\"Log value\",DataLog!U1765,\"\")","v":""},{"$f":"IF(DataLog!$C1765=\"Log value\",DataLog!V1765,\"\")","v":""},{"$f":"IF(DataLog!$C1765=\"Log value\",DataLog!W1765,\"\")","v":""},{"$f":"IF(DataLog!$C1765=\"Log value\",DataLog!X1765,\"\")","v":""},{"$f":"IF(DataLog!$C1765=\"Log value\",DataLog!Y1765,\"\")","v":""},{"$f":"IF(DataLog!$C1765=\"Log value\",DataLog!Z1765,\"\")","v":""},{"$f":"IF(DataLog!$C1765=\"Log value\",DataLog!AA1765,\"\")","v":""},{"$f":"IF(DataLog!$C1765=\"Log value\",DataLog!AB1765,\"\")","v":""},{"$f":"IF(DataLog!$C1765=\"Log value\",DataLog!AC1765,\"\")","v":""},{"$f":"IF(DataLog!$C1765=\"Log value\",DataLog!AD1765,\"\")","v":""},{"$f":"IF(DataLog!$C1765=\"Log value\",DataLog!AE1765,\"\")","v":""},{"$f":"IF(DataLog!$C1765=\"Log value\",DataLog!AF1765,\"\")","v":""},{"$f":"IF(DataLog!$C1765=\"Log value\",DataLog!AG1765,\"\")","v":""},{"$f":"IF(DataLog!$C1765=\"Log value\",DataLog!AH1765,\"\")","v":""},{"$f":"IF(DataLog!$C1765=\"Log value\",DataLog!AI1765,\"\")","v":""},{"$f":"IF(DataLog!$C1765=\"Log value\",DataLog!AJ1765,\"\")","v":""},{"$f":"IF(DataLog!$C1765=\"Log value\",DataLog!AK1765,\"\")","v":""},{"$f":"IF(DataLog!$C1765=\"Log value\",DataLog!AL1765,\"\")","v":""},{"$f":"IF(DataLog!$C1765=\"Log value\",DataLog!AM1765,\"\")","v":""}]
[null,null,null,null,null,null,{"$f":"IF(DataLog!$C1769=\"Log value\",DataLog!D1769&\"_\"&TEXT(DataLog!B1769,\"åååå-mm-dd\"),\"\")","v":""},{"$f":"IF(DataLog!$C1769=\"Log value\",DataLog!E1769,\"\")","v":""},{"$f":"IF(DataLog!$C1769=\"Log value\",DataLog!F1769,\"\")","v":""},{"$f":"IF(DataLog!$C1769=\"Log value\",DataLog!G1769,\"\")","v":""},{"$f":"IF(DataLog!$C1769=\"Log value\",DataLog!H1769,\"\")","v":""},{"$f":"IF(DataLog!$C1769=\"Log value\",DataLog!I1769,\"\")","v":""},{"$f":"IF(DataLog!$C1769=\"Log value\",DataLog!J1769,\"\")","v":""},{"$f":"IF(DataLog!$C1769=\"Log value\",DataLog!K1769,\"\")","v":""},{"$f":"IF(DataLog!$C1769=\"Log value\",DataLog!L1769,\"\")","v":""},{"$f":"IF(DataLog!$C1769=\"Log value\",DataLog!M1769,\"\")","v":""},{"$f":"IF(DataLog!$C1769=\"Log value\",DataLog!N1769,\"\")","v":""},{"$f":"IF(DataLog!$C1769=\"Log value\",DataLog!O1769,\"\")","v":""},{"$f":"IF(DataLog!$C1769=\"Log value\",DataLog!P1769,\"\")","v":""},{"$f":"IF(DataLog!$C1769=\"Log value\",DataLog!Q1769,\"\")","v":""},{"$f":"IF(DataLog!$C1769=\"Log value\",DataLog!R1769,\"\")","v":""},{"$f":"IF(DataLog!$C1769=\"Log value\",DataLog!S1769,\"\")","v":""},{"$f":"IF(DataLog!$C1769=\"Log value\",DataLog!T1769,\"\")","v":""},{"$f":"IF(DataLog!$C1769=\"Log value\",DataLog!U1769,\"\")","v":""},{"$f":"IF(DataLog!$C1769=\"Log value\",DataLog!V1769,\"\")","v":""},{"$f":"IF(DataLog!$C1769=\"Log value\",DataLog!W1769,\"\")","v":""},{"$f":"IF(DataLog!$C1769=\"Log value\",DataLog!X1769,\"\")","v":""},{"$f":"IF(DataLog!$C1769=\"Log value\",DataLog!Y1769,\"\")","v":""},{"$f":"IF(DataLog!$C1769=\"Log value\",DataLog!Z1769,\"\")","v":""},{"$f":"IF(DataLog!$C1769=\"Log value\",DataLog!AA1769,\"\")","v":""},{"$f":"IF(DataLog!$C1769=\"Log value\",DataLog!AB1769,\"\")","v":""},{"$f":"IF(DataLog!$C1769=\"Log value\",DataLog!AC1769,\"\")","v":""},{"$f":"IF(DataLog!$C1769=\"Log value\",DataLog!AD1769,\"\")","v":""},{"$f":"IF(DataLog!$C1769=\"Log value\",DataLog!AE1769,\"\")","v":""},{"$f":"IF(DataLog!$C1769=\"Log value\",DataLog!AF1769,\"\")","v":""},{"$f":"IF(DataLog!$C1769=\"Log value\",DataLog!AG1769,\"\")","v":""},{"$f":"IF(DataLog!$C1769=\"Log value\",DataLog!AH1769,\"\")","v":""},{"$f":"IF(DataLog!$C1769=\"Log value\",DataLog!AI1769,\"\")","v":""},{"$f":"IF(DataLog!$C1769=\"Log value\",DataLog!AJ1769,\"\")","v":""},{"$f":"IF(DataLog!$C1769=\"Log value\",DataLog!AK1769,\"\")","v":""},{"$f":"IF(DataLog!$C1769=\"Log value\",DataLog!AL1769,\"\")","v":""},{"$f":"IF(DataLog!$C1769=\"Log value\",DataLog!AM1769,\"\")","v":""}]
[null,null,null,null,null,null,{"$f":"IF(DataLog!$C1770=\"Log value\",DataLog!D1770&\"_\"&TEXT(DataLog!B1770,\"åååå-mm-dd\"),\"\")","v":""},{"$f":"IF(DataLog!$C1770=\"Log value\",DataLog!E1770,\"\")","v":""},{"$f":"IF(DataLog!$C1770=\"Log value\",DataLog!F1770,\"\")","v":""},{"$f":"IF(DataLog!$C1770=\"Log value\",DataLog!G1770,\"\")","v":""},{"$f":"IF(DataLog!$C1770=\"Log value\",DataLog!H1770,\"\")","v":""},{"$f":"IF(DataLog!$C1770=\"Log value\",DataLog!I1770,\"\")","v":""},{"$f":"IF(DataLog!$C1770=\"Log value\",DataLog!J1770,\"\")","v":""},{"$f":"IF(DataLog!$C1770=\"Log value\",DataLog!K1770,\"\")","v":""},{"$f":"IF(DataLog!$C1770=\"Log value\",DataLog!L1770,\"\")","v":""},{"$f":"IF(DataLog!$C1770=\"Log value\",DataLog!M1770,\"\")","v":""},{"$f":"IF(DataLog!$C1770=\"Log value\",DataLog!N1770,\"\")","v":""},{"$f":"IF(DataLog!$C1770=\"Log value\",DataLog!O1770,\"\")","v":""},{"$f":"IF(DataLog!$C1770=\"Log value\",DataLog!P1770,\"\")","v":""},{"$f":"IF(DataLog!$C1770=\"Log value\",DataLog!Q1770,\"\")","v":""},{"$f":"IF(DataLog!$C1770=\"Log value\",DataLog!R1770,\"\")","v":""},{"$f":"IF(DataLog!$C1770=\"Log value\",DataLog!S1770,\"\")","v":""},{"$f":"IF(DataLog!$C1770=\"Log value\",DataLog!T1770,\"\")","v":""},{"$f":"IF(DataLog!$C1770=\"Log value\",DataLog!U1770,\"\")","v":""},{"$f":"IF(DataLog!$C1770=\"Log value\",DataLog!V1770,\"\")","v":""},{"$f":"IF(DataLog!$C1770=\"Log value\",DataLog!W1770,\"\")","v":""},{"$f":"IF(DataLog!$C1770=\"Log value\",DataLog!X1770,\"\")","v":""},{"$f":"IF(DataLog!$C1770=\"Log value\",DataLog!Y1770,\"\")","v":""},{"$f":"IF(DataLog!$C1770=\"Log value\",DataLog!Z1770,\"\")","v":""},{"$f":"IF(DataLog!$C1770=\"Log value\",DataLog!AA1770,\"\")","v":""},{"$f":"IF(DataLog!$C1770=\"Log value\",DataLog!AB1770,\"\")","v":""},{"$f":"IF(DataLog!$C1770=\"Log value\",DataLog!AC1770,\"\")","v":""},{"$f":"IF(DataLog!$C1770=\"Log value\",DataLog!AD1770,\"\")","v":""},{"$f":"IF(DataLog!$C1770=\"Log value\",DataLog!AE1770,\"\")","v":""},{"$f":"IF(DataLog!$C1770=\"Log value\",DataLog!AF1770,\"\")","v":""},{"$f":"IF(DataLog!$C1770=\"Log value\",DataLog!AG1770,\"\")","v":""},{"$f":"IF(DataLog!$C1770=\"Log value\",DataLog!AH1770,\"\")","v":""},{"$f":"IF(DataLog!$C1770=\"Log value\",DataLog!AI1770,\"\")","v":""},{"$f":"IF(DataLog!$C1770=\"Log value\",DataLog!AJ1770,\"\")","v":""},{"$f":"IF(DataLog!$C1770=\"Log value\",DataLog!AK1770,\"\")","v":""},{"$f":"IF(DataLog!$C1770=\"Log value\",DataLog!AL1770,\"\")","v":""},{"$f":"IF(DataLog!$C1770=\"Log value\",DataLog!AM1770,\"\")","v":""}]
[null,null,null,null,null,null,{"$f":"IF(DataLog!$C1773=\"Log value\",DataLog!D1773&\"_\"&TEXT(DataLog!B1773,\"åååå-mm-dd\"),\"\")","v":""},{"$f":"IF(DataLog!$C1773=\"Log value\",DataLog!E1773,\"\")","v":""},{"$f":"IF(DataLog!$C1773=\"Log value\",DataLog!F1773,\"\")","v":""},{"$f":"IF(DataLog!$C1773=\"Log value\",DataLog!G1773,\"\")","v":""},{"$f":"IF(DataLog!$C1773=\"Log value\",DataLog!H1773,\"\")","v":""},{"$f":"IF(DataLog!$C1773=\"Log value\",DataLog!I1773,\"\")","v":""},{"$f":"IF(DataLog!$C1773=\"Log value\",DataLog!J1773,\"\")","v":""},{"$f":"IF(DataLog!$C1773=\"Log value\",DataLog!K1773,\"\")","v":""},{"$f":"IF(DataLog!$C1773=\"Log value\",DataLog!L1773,\"\")","v":""},{"$f":"IF(DataLog!$C1773=\"Log value\",DataLog!M1773,\"\")","v":""},{"$f":"IF(DataLog!$C1773=\"Log value\",DataLog!N1773,\"\")","v":""},{"$f":"IF(DataLog!$C1773=\"Log value\",DataLog!O1773,\"\")","v":""},{"$f":"IF(DataLog!$C1773=\"Log value\",DataLog!P1773,\"\")","v":""},{"$f":"IF(DataLog!$C1773=\"Log value\",DataLog!Q1773,\"\")","v":""},{"$f":"IF(DataLog!$C1773=\"Log value\",DataLog!R1773,\"\")","v":""},{"$f":"IF(DataLog!$C1773=\"Log value\",DataLog!S1773,\"\")","v":""},{"$f":"IF(DataLog!$C1773=\"Log value\",DataLog!T1773,\"\")","v":""},{"$f":"IF(DataLog!$C1773=\"Log value\",DataLog!U1773,\"\")","v":""},{"$f":"IF(DataLog!$C1773=\"Log value\",DataLog!V1773,\"\")","v":""},{"$f":"IF(DataLog!$C1773=\"Log value\",DataLog!W1773,\"\")","v":""},{"$f":"IF(DataLog!$C1773=\"Log value\",DataLog!X1773,\"\")","v":""},{"$f":"IF(DataLog!$C1773=\"Log value\",DataLog!Y1773,\"\")","v":""},{"$f":"IF(DataLog!$C1773=\"Log value\",DataLog!Z1773,\"\")","v":""},{"$f":"IF(DataLog!$C1773=\"Log value\",DataLog!AA1773,\"\")","v":""},{"$f":"IF(DataLog!$C1773=\"Log value\",DataLog!AB1773,\"\")","v":""},{"$f":"IF(DataLog!$C1773=\"Log value\",DataLog!AC1773,\"\")","v":""},{"$f":"IF(DataLog!$C1773=\"Log value\",DataLog!AD1773,\"\")","v":""},{"$f":"IF(DataLog!$C1773=\"Log value\",DataLog!AE1773,\"\")","v":""},{"$f":"IF(DataLog!$C1773=\"Log value\",DataLog!AF1773,\"\")","v":""},{"$f":"IF(DataLog!$C1773=\"Log value\",DataLog!AG1773,\"\")","v":""},{"$f":"IF(DataLog!$C1773=\"Log value\",DataLog!AH1773,\"\")","v":""},{"$f":"IF(DataLog!$C1773=\"Log value\",DataLog!AI1773,\"\")","v":""},{"$f":"IF(DataLog!$C1773=\"Log value\",DataLog!AJ1773,\"\")","v":""},{"$f":"IF(DataLog!$C1773=\"Log value\",DataLog!AK1773,\"\")","v":""},{"$f":"IF(DataLog!$C1773=\"Log value\",DataLog!AL1773,\"\")","v":""},{"$f":"IF(DataLog!$C1773=\"Log value\",DataLog!AM1773,\"\")","v":""}]
[null,null,null,null,null,null,{"$f":"IF(DataLog!$C1776=\"Log value\",DataLog!D1776&\"_\"&TEXT(DataLog!B1776,\"åååå-mm-dd\"),\"\")","v":""},{"$f":"IF(DataLog!$C1776=\"Log value\",DataLog!E1776,\"\")","v":""},{"$f":"IF(DataLog!$C1776=\"Log value\",DataLog!F1776,\"\")","v":""},{"$f":"IF(DataLog!$C1776=\"Log value\",DataLog!G1776,\"\")","v":""},{"$f":"IF(DataLog!$C1776=\"Log value\",DataLog!H1776,\"\")","v":""},{"$f":"IF(DataLog!$C1776=\"Log value\",DataLog!I1776,\"\")","v":""},{"$f":"IF(DataLog!$C1776=\"Log value\",DataLog!J1776,\"\")","v":""},{"$f":"IF(DataLog!$C1776=\"Log value\",DataLog!K1776,\"\")","v":""},{"$f":"IF(DataLog!$C1776=\"Log value\",DataLog!L1776,\"\")","v":""},{"$f":"IF(DataLog!$C1776=\"Log value\",DataLog!M1776,\"\")","v":""},{"$f":"IF(DataLog!$C1776=\"Log value\",DataLog!N1776,\"\")","v":""},{"$f":"IF(DataLog!$C1776=\"Log value\",DataLog!O1776,\"\")","v":""},{"$f":"IF(DataLog!$C1776=\"Log value\",DataLog!P1776,\"\")","v":""},{"$f":"IF(DataLog!$C1776=\"Log value\",DataLog!Q1776,\"\")","v":""},{"$f":"IF(DataLog!$C1776=\"Log value\",DataLog!R1776,\"\")","v":""},{"$f":"IF(DataLog!$C1776=\"Log value\",DataLog!S1776,\"\")","v":""},{"$f":"IF(DataLog!$C1776=\"Log value\",DataLog!T1776,\"\")","v":""},{"$f":"IF(DataLog!$C1776=\"Log value\",DataLog!U1776,\"\")","v":""},{"$f":"IF(DataLog!$C1776=\"Log value\",DataLog!V1776,\"\")","v":""},{"$f":"IF(DataLog!$C1776=\"Log value\",DataLog!W1776,\"\")","v":""},{"$f":"IF(DataLog!$C1776=\"Log value\",DataLog!X1776,\"\")","v":""},{"$f":"IF(DataLog!$C1776=\"Log value\",DataLog!Y1776,\"\")","v":""},{"$f":"IF(DataLog!$C1776=\"Log value\",DataLog!Z1776,\"\")","v":""},{"$f":"IF(DataLog!$C1776=\"Log value\",DataLog!AA1776,\"\")","v":""},{"$f":"IF(DataLog!$C1776=\"Log value\",DataLog!AB1776,\"\")","v":""},{"$f":"IF(DataLog!$C1776=\"Log value\",DataLog!AC1776,\"\")","v":""},{"$f":"IF(DataLog!$C1776=\"Log value\",DataLog!AD1776,\"\")","v":""},{"$f":"IF(DataLog!$C1776=\"Log value\",DataLog!AE1776,\"\")","v":""},{"$f":"IF(DataLog!$C1776=\"Log value\",DataLog!AF1776,\"\")","v":""},{"$f":"IF(DataLog!$C1776=\"Log value\",DataLog!AG1776,\"\")","v":""},{"$f":"IF(DataLog!$C1776=\"Log value\",DataLog!AH1776,\"\")","v":""},{"$f":"IF(DataLog!$C1776=\"Log value\",DataLog!AI1776,\"\")","v":""},{"$f":"IF(DataLog!$C1776=\"Log value\",DataLog!AJ1776,\"\")","v":""},{"$f":"IF(DataLog!$C1776=\"Log value\",DataLog!AK1776,\"\")","v":""},{"$f":"IF(DataLog!$C1776=\"Log value\",DataLog!AL1776,\"\")","v":""},{"$f":"IF(DataLog!$C1776=\"Log value\",DataLog!AM1776,\"\")","v":""}]
[null,null,null,null,null,null,{"$f":"IF(DataLog!$C1778=\"Log value\",DataLog!D1778&\"_\"&TEXT(DataLog!B1778,\"åååå-mm-dd\"),\"\")","v":""},{"$f":"IF(DataLog!$C1778=\"Log value\",DataLog!E1778,\"\")","v":""},{"$f":"IF(DataLog!$C1778=\"Log value\",DataLog!F1778,\"\")","v":""},{"$f":"IF(DataLog!$C1778=\"Log value\",DataLog!G1778,\"\")","v":""},{"$f":"IF(DataLog!$C1778=\"Log value\",DataLog!H1778,\"\")","v":""},{"$f":"IF(DataLog!$C1778=\"Log value\",DataLog!I1778,\"\")","v":""},{"$f":"IF(DataLog!$C1778=\"Log value\",DataLog!J1778,\"\")","v":""},{"$f":"IF(DataLog!$C1778=\"Log value\",DataLog!K1778,\"\")","v":""},{"$f":"IF(DataLog!$C1778=\"Log value\",DataLog!L1778,\"\")","v":""},{"$f":"IF(DataLog!$C1778=\"Log value\",DataLog!M1778,\"\")","v":""},{"$f":"IF(DataLog!$C1778=\"Log value\",DataLog!N1778,\"\")","v":""},{"$f":"IF(DataLog!$C1778=\"Log value\",DataLog!O1778,\"\")","v":""},{"$f":"IF(DataLog!$C1778=\"Log value\",DataLog!P1778,\"\")","v":""},{"$f":"IF(DataLog!$C1778=\"Log value\",DataLog!Q1778,\"\")","v":""},{"$f":"IF(DataLog!$C1778=\"Log value\",DataLog!R1778,\"\")","v":""},{"$f":"IF(DataLog!$C1778=\"Log value\",DataLog!S1778,\"\")","v":""},{"$f":"IF(DataLog!$C1778=\"Log value\",DataLog!T1778,\"\")","v":""},{"$f":"IF(DataLog!$C1778=\"Log value\",DataLog!U1778,\"\")","v":""},{"$f":"IF(DataLog!$C1778=\"Log value\",DataLog!V1778,\"\")","v":""},{"$f":"IF(DataLog!$C1778=\"Log value\",DataLog!W1778,\"\")","v":""},{"$f":"IF(DataLog!$C1778=\"Log value\",DataLog!X1778,\"\")","v":""},{"$f":"IF(DataLog!$C1778=\"Log value\",DataLog!Y1778,\"\")","v":""},{"$f":"IF(DataLog!$C1778=\"Log value\",DataLog!Z1778,\"\")","v":""},{"$f":"IF(DataLog!$C1778=\"Log value\",DataLog!AA1778,\"\")","v":""},{"$f":"IF(DataLog!$C1778=\"Log value\",DataLog!AB1778,\"\")","v":""},{"$f":"IF(DataLog!$C1778=\"Log value\",DataLog!AC1778,\"\")","v":""},{"$f":"IF(DataLog!$C1778=\"Log value\",DataLog!AD1778,\"\")","v":""},{"$f":"IF(DataLog!$C1778=\"Log value\",DataLog!AE1778,\"\")","v":""},{"$f":"IF(DataLog!$C1778=\"Log value\",DataLog!AF1778,\"\")","v":""},{"$f":"IF(DataLog!$C1778=\"Log value\",DataLog!AG1778,\"\")","v":""},{"$f":"IF(DataLog!$C1778=\"Log value\",DataLog!AH1778,\"\")","v":""},{"$f":"IF(DataLog!$C1778=\"Log value\",DataLog!AI1778,\"\")","v":""},{"$f":"IF(DataLog!$C1778=\"Log value\",DataLog!AJ1778,\"\")","v":""},{"$f":"IF(DataLog!$C1778=\"Log value\",DataLog!AK1778,\"\")","v":""},{"$f":"IF(DataLog!$C1778=\"Log value\",DataLog!AL1778,\"\")","v":""},{"$f":"IF(DataLog!$C1778=\"Log value\",DataLog!AM1778,\"\")","v":""}]
[null,null,null,null,null,null,{"$f":"IF(DataLog!$C1779=\"Log value\",DataLog!D1779&\"_\"&TEXT(DataLog!B1779,\"åååå-mm-dd\"),\"\")","v":""},{"$f":"IF(DataLog!$C1779=\"Log value\",DataLog!E1779,\"\")","v":""},{"$f":"IF(DataLog!$C1779=\"Log value\",DataLog!F1779,\"\")","v":""},{"$f":"IF(DataLog!$C1779=\"Log value\",DataLog!G1779,\"\")","v":""},{"$f":"IF(DataLog!$C1779=\"Log value\",DataLog!H1779,\"\")","v":""},{"$f":"IF(DataLog!$C1779=\"Log value\",DataLog!I1779,\"\")","v":""},{"$f":"IF(DataLog!$C1779=\"Log value\",DataLog!J1779,\"\")","v":""},{"$f":"IF(DataLog!$C1779=\"Log value\",DataLog!K1779,\"\")","v":""},{"$f":"IF(DataLog!$C1779=\"Log value\",DataLog!L1779,\"\")","v":""},{"$f":"IF(DataLog!$C1779=\"Log value\",DataLog!M1779,\"\")","v":""},{"$f":"IF(DataLog!$C1779=\"Log value\",DataLog!N1779,\"\")","v":""},{"$f":"IF(DataLog!$C1779=\"Log value\",DataLog!O1779,\"\")","v":""},{"$f":"IF(DataLog!$C1779=\"Log value\",DataLog!P1779,\"\")","v":""},{"$f":"IF(DataLog!$C1779=\"Log value\",DataLog!Q1779,\"\")","v":""},{"$f":"IF(DataLog!$C1779=\"Log value\",DataLog!R1779,\"\")","v":""},{"$f":"IF(DataLog!$C1779=\"Log value\",DataLog!S1779,\"\")","v":""},{"$f":"IF(DataLog!$C1779=\"Log value\",DataLog!T1779,\"\")","v":""},{"$f":"IF(DataLog!$C1779=\"Log value\",DataLog!U1779,\"\")","v":""},{"$f":"IF(DataLog!$C1779=\"Log value\",DataLog!V1779,\"\")","v":""},{"$f":"IF(DataLog!$C1779=\"Log value\",DataLog!W1779,\"\")","v":""},{"$f":"IF(DataLog!$C1779=\"Log value\",DataLog!X1779,\"\")","v":""},{"$f":"IF(DataLog!$C1779=\"Log value\",DataLog!Y1779,\"\")","v":""},{"$f":"IF(DataLog!$C1779=\"Log value\",DataLog!Z1779,\"\")","v":""},{"$f":"IF(DataLog!$C1779=\"Log value\",DataLog!AA1779,\"\")","v":""},{"$f":"IF(DataLog!$C1779=\"Log value\",DataLog!AB1779,\"\")","v":""},{"$f":"IF(DataLog!$C1779=\"Log value\",DataLog!AC1779,\"\")","v":""},{"$f":"IF(DataLog!$C1779=\"Log value\",DataLog!AD1779,\"\")","v":""},{"$f":"IF(DataLog!$C1779=\"Log value\",DataLog!AE1779,\"\")","v":""},{"$f":"IF(DataLog!$C1779=\"Log value\",DataLog!AF1779,\"\")","v":""},{"$f":"IF(DataLog!$C1779=\"Log value\",DataLog!AG1779,\"\")","v":""},{"$f":"IF(DataLog!$C1779=\"Log value\",DataLog!AH1779,\"\")","v":""},{"$f":"IF(DataLog!$C1779=\"Log value\",DataLog!AI1779,\"\")","v":""},{"$f":"IF(DataLog!$C1779=\"Log value\",DataLog!AJ1779,\"\")","v":""},{"$f":"IF(DataLog!$C1779=\"Log value\",DataLog!AK1779,\"\")","v":""},{"$f":"IF(DataLog!$C1779=\"Log value\",DataLog!AL1779,\"\")","v":""},{"$f":"IF(DataLog!$C1779=\"Log value\",DataLog!AM1779,\"\")","v":""}]
[null,null,null,null,null,null,{"$f":"IF(DataLog!$C1782=\"Log value\",DataLog!D1782&\"_\"&TEXT(DataLog!B1782,\"åååå-mm-dd\"),\"\")","v":""},{"$f":"IF(DataLog!$C1782=\"Log value\",DataLog!E1782,\"\")","v":""},{"$f":"IF(DataLog!$C1782=\"Log value\",DataLog!F1782,\"\")","v":""},{"$f":"IF(DataLog!$C1782=\"Log value\",DataLog!G1782,\"\")","v":""},{"$f":"IF(DataLog!$C1782=\"Log value\",DataLog!H1782,\"\")","v":""},{"$f":"IF(DataLog!$C1782=\"Log value\",DataLog!I1782,\"\")","v":""},{"$f":"IF(DataLog!$C1782=\"Log value\",DataLog!J1782,\"\")","v":""},{"$f":"IF(DataLog!$C1782=\"Log value\",DataLog!K1782,\"\")","v":""},{"$f":"IF(DataLog!$C1782=\"Log value\",DataLog!L1782,\"\")","v":""},{"$f":"IF(DataLog!$C1782=\"Log value\",DataLog!M1782,\"\")","v":""},{"$f":"IF(DataLog!$C1782=\"Log value\",DataLog!N1782,\"\")","v":""},{"$f":"IF(DataLog!$C1782=\"Log value\",DataLog!O1782,\"\")","v":""},{"$f":"IF(DataLog!$C1782=\"Log value\",DataLog!P1782,\"\")","v":""},{"$f":"IF(DataLog!$C1782=\"Log value\",DataLog!Q1782,\"\")","v":""},{"$f":"IF(DataLog!$C1782=\"Log value\",DataLog!R1782,\"\")","v":""},{"$f":"IF(DataLog!$C1782=\"Log value\",DataLog!S1782,\"\")","v":""},{"$f":"IF(DataLog!$C1782=\"Log value\",DataLog!T1782,\"\")","v":""},{"$f":"IF(DataLog!$C1782=\"Log value\",DataLog!U1782,\"\")","v":""},{"$f":"IF(DataLog!$C1782=\"Log value\",DataLog!V1782,\"\")","v":""},{"$f":"IF(DataLog!$C1782=\"Log value\",DataLog!W1782,\"\")","v":""},{"$f":"IF(DataLog!$C1782=\"Log value\",DataLog!X1782,\"\")","v":""},{"$f":"IF(DataLog!$C1782=\"Log value\",DataLog!Y1782,\"\")","v":""},{"$f":"IF(DataLog!$C1782=\"Log value\",DataLog!Z1782,\"\")","v":""},{"$f":"IF(DataLog!$C1782=\"Log value\",DataLog!AA1782,\"\")","v":""},{"$f":"IF(DataLog!$C1782=\"Log value\",DataLog!AB1782,\"\")","v":""},{"$f":"IF(DataLog!$C1782=\"Log value\",DataLog!AC1782,\"\")","v":""},{"$f":"IF(DataLog!$C1782=\"Log value\",DataLog!AD1782,\"\")","v":""},{"$f":"IF(DataLog!$C1782=\"Log value\",DataLog!AE1782,\"\")","v":""},{"$f":"IF(DataLog!$C1782=\"Log value\",DataLog!AF1782,\"\")","v":""},{"$f":"IF(DataLog!$C1782=\"Log value\",DataLog!AG1782,\"\")","v":""},{"$f":"IF(DataLog!$C1782=\"Log value\",DataLog!AH1782,\"\")","v":""},{"$f":"IF(DataLog!$C1782=\"Log value\",DataLog!AI1782,\"\")","v":""},{"$f":"IF(DataLog!$C1782=\"Log value\",DataLog!AJ1782,\"\")","v":""},{"$f":"IF(DataLog!$C1782=\"Log value\",DataLog!AK1782,\"\")","v":""},{"$f":"IF(DataLog!$C1782=\"Log value\",DataLog!AL1782,\"\")","v":""},{"$f":"IF(DataLog!$C1782=\"Log value\",DataLog!AM1782,\"\")","v":""}]
[null,null,null,null,null,null,{"$f":"IF(DataLog!$C1783=\"Log value\",DataLog!D1783&\"_\"&TEXT(DataLog!B1783,\"åååå-mm-dd\"),\"\")","v":""},{"$f":"IF(DataLog!$C1783=\"Log value\",DataLog!E1783,\"\")","v":""},{"$f":"IF(DataLog!$C1783=\"Log value\",DataLog!F1783,\"\")","v":""},{"$f":"IF(DataLog!$C1783=\"Log value\",DataLog!G1783,\"\")","v":""},{"$f":"IF(DataLog!$C1783=\"Log value\",DataLog!H1783,\"\")","v":""},{"$f":"IF(DataLog!$C1783=\"Log value\",DataLog!I1783,\"\")","v":""},{"$f":"IF(DataLog!$C1783=\"Log value\",DataLog!J1783,\"\")","v":""},{"$f":"IF(DataLog!$C1783=\"Log value\",DataLog!K1783,\"\")","v":""},{"$f":"IF(DataLog!$C1783=\"Log value\",DataLog!L1783,\"\")","v":""},{"$f":"IF(DataLog!$C1783=\"Log value\",DataLog!M1783,\"\")","v":""},{"$f":"IF(DataLog!$C1783=\"Log value\",DataLog!N1783,\"\")","v":""},{"$f":"IF(DataLog!$C1783=\"Log value\",DataLog!O1783,\"\")","v":""},{"$f":"IF(DataLog!$C1783=\"Log value\",DataLog!P1783,\"\")","v":""},{"$f":"IF(DataLog!$C1783=\"Log value\",DataLog!Q1783,\"\")","v":""},{"$f":"IF(DataLog!$C1783=\"Log value\",DataLog!R1783,\"\")","v":""},{"$f":"IF(DataLog!$C1783=\"Log value\",DataLog!S1783,\"\")","v":""},{"$f":"IF(DataLog!$C1783=\"Log value\",DataLog!T1783,\"\")","v":""},{"$f":"IF(DataLog!$C1783=\"Log value\",DataLog!U1783,\"\")","v":""},{"$f":"IF(DataLog!$C1783=\"Log value\",DataLog!V1783,\"\")","v":""},{"$f":"IF(DataLog!$C1783=\"Log value\",DataLog!W1783,\"\")","v":""},{"$f":"IF(DataLog!$C1783=\"Log value\",DataLog!X1783,\"\")","v":""},{"$f":"IF(DataLog!$C1783=\"Log value\",DataLog!Y1783,\"\")","v":""},{"$f":"IF(DataLog!$C1783=\"Log value\",DataLog!Z1783,\"\")","v":""},{"$f":"IF(DataLog!$C1783=\"Log value\",DataLog!AA1783,\"\")","v":""},{"$f":"IF(DataLog!$C1783=\"Log value\",DataLog!AB1783,\"\")","v":""},{"$f":"IF(DataLog!$C1783=\"Log value\",DataLog!AC1783,\"\")","v":""},{"$f":"IF(DataLog!$C1783=\"Log value\",DataLog!AD1783,\"\")","v":""},{"$f":"IF(DataLog!$C1783=\"Log value\",DataLog!AE1783,\"\")","v":""},{"$f":"IF(DataLog!$C1783=\"Log value\",DataLog!AF1783,\"\")","v":""},{"$f":"IF(DataLog!$C1783=\"Log value\",DataLog!AG1783,\"\")","v":""},{"$f":"IF(DataLog!$C1783=\"Log value\",DataLog!AH1783,\"\")","v":""},{"$f":"IF(DataLog!$C1783=\"Log value\",DataLog!AI1783,\"\")","v":""},{"$f":"IF(DataLog!$C1783=\"Log value\",DataLog!AJ1783,\"\")","v":""},{"$f":"IF(DataLog!$C1783=\"Log value\",DataLog!AK1783,\"\")","v":""},{"$f":"IF(DataLog!$C1783=\"Log value\",DataLog!AL1783,\"\")","v":""},{"$f":"IF(DataLog!$C1783=\"Log value\",DataLog!AM1783,\"\")","v":""}]
[null,null,null,null,null,null,{"$f":"IF(DataLog!$C1787=\"Log value\",DataLog!D1787&\"_\"&TEXT(DataLog!B1787,\"åååå-mm-dd\"),\"\")","v":""},{"$f":"IF(DataLog!$C1787=\"Log value\",DataLog!E1787,\"\")","v":""},{"$f":"IF(DataLog!$C1787=\"Log value\",DataLog!F1787,\"\")","v":""},{"$f":"IF(DataLog!$C1787=\"Log value\",DataLog!G1787,\"\")","v":""},{"$f":"IF(DataLog!$C1787=\"Log value\",DataLog!H1787,\"\")","v":""},{"$f":"IF(DataLog!$C1787=\"Log value\",DataLog!I1787,\"\")","v":""},{"$f":"IF(DataLog!$C1787=\"Log value\",DataLog!J1787,\"\")","v":""},{"$f":"IF(DataLog!$C1787=\"Log value\",DataLog!K1787,\"\")","v":""},{"$f":"IF(DataLog!$C1787=\"Log value\",DataLog!L1787,\"\")","v":""},{"$f":"IF(DataLog!$C1787=\"Log value\",DataLog!M1787,\"\")","v":""},{"$f":"IF(DataLog!$C1787=\"Log value\",DataLog!N1787,\"\")","v":""},{"$f":"IF(DataLog!$C1787=\"Log value\",DataLog!O1787,\"\")","v":""},{"$f":"IF(DataLog!$C1787=\"Log value\",DataLog!P1787,\"\")","v":""},{"$f":"IF(DataLog!$C1787=\"Log value\",DataLog!Q1787,\"\")","v":""},{"$f":"IF(DataLog!$C1787=\"Log value\",DataLog!R1787,\"\")","v":""},{"$f":"IF(DataLog!$C1787=\"Log value\",DataLog!S1787,\"\")","v":""},{"$f":"IF(DataLog!$C1787=\"Log value\",DataLog!T1787,\"\")","v":""},{"$f":"IF(DataLog!$C1787=\"Log value\",DataLog!U1787,\"\")","v":""},{"$f":"IF(DataLog!$C1787=\"Log value\",DataLog!V1787,\"\")","v":""},{"$f":"IF(DataLog!$C1787=\"Log value\",DataLog!W1787,\"\")","v":""},{"$f":"IF(DataLog!$C1787=\"Log value\",DataLog!X1787,\"\")","v":""},{"$f":"IF(DataLog!$C1787=\"Log value\",DataLog!Y1787,\"\")","v":""},{"$f":"IF(DataLog!$C1787=\"Log value\",DataLog!Z1787,\"\")","v":""},{"$f":"IF(DataLog!$C1787=\"Log value\",DataLog!AA1787,\"\")","v":""},{"$f":"IF(DataLog!$C1787=\"Log value\",DataLog!AB1787,\"\")","v":""},{"$f":"IF(DataLog!$C1787=\"Log value\",DataLog!AC1787,\"\")","v":""},{"$f":"IF(DataLog!$C1787=\"Log value\",DataLog!AD1787,\"\")","v":""},{"$f":"IF(DataLog!$C1787=\"Log value\",DataLog!AE1787,\"\")","v":""},{"$f":"IF(DataLog!$C1787=\"Log value\",DataLog!AF1787,\"\")","v":""},{"$f":"IF(DataLog!$C1787=\"Log value\",DataLog!AG1787,\"\")","v":""},{"$f":"IF(DataLog!$C1787=\"Log value\",DataLog!AH1787,\"\")","v":""},{"$f":"IF(DataLog!$C1787=\"Log value\",DataLog!AI1787,\"\")","v":""},{"$f":"IF(DataLog!$C1787=\"Log value\",DataLog!AJ1787,\"\")","v":""},{"$f":"IF(DataLog!$C1787=\"Log value\",DataLog!AK1787,\"\")","v":""},{"$f":"IF(DataLog!$C1787=\"Log value\",DataLog!AL1787,\"\")","v":""},{"$f":"IF(DataLog!$C1787=\"Log value\",DataLog!AM1787,\"\")","v":""}]
[null,null,null,null,null,null,{"$f":"IF(DataLog!$C1788=\"Log value\",DataLog!D1788&\"_\"&TEXT(DataLog!B1788,\"åååå-mm-dd\"),\"\")","v":""},{"$f":"IF(DataLog!$C1788=\"Log value\",DataLog!E1788,\"\")","v":""},{"$f":"IF(DataLog!$C1788=\"Log value\",DataLog!F1788,\"\")","v":""},{"$f":"IF(DataLog!$C1788=\"Log value\",DataLog!G1788,\"\")","v":""},{"$f":"IF(DataLog!$C1788=\"Log value\",DataLog!H1788,\"\")","v":""},{"$f":"IF(DataLog!$C1788=\"Log value\",DataLog!I1788,\"\")","v":""},{"$f":"IF(DataLog!$C1788=\"Log value\",DataLog!J1788,\"\")","v":""},{"$f":"IF(DataLog!$C1788=\"Log value\",DataLog!K1788,\"\")","v":""},{"$f":"IF(DataLog!$C1788=\"Log value\",DataLog!L1788,\"\")","v":""},{"$f":"IF(DataLog!$C1788=\"Log value\",DataLog!M1788,\"\")","v":""},{"$f":"IF(DataLog!$C1788=\"Log value\",DataLog!N1788,\"\")","v":""},{"$f":"IF(DataLog!$C1788=\"Log value\",DataLog!O1788,\"\")","v":""},{"$f":"IF(DataLog!$C1788=\"Log value\",DataLog!P1788,\"\")","v":""},{"$f":"IF(DataLog!$C1788=\"Log value\",DataLog!Q1788,\"\")","v":""},{"$f":"IF(DataLog!$C1788=\"Log value\",DataLog!R1788,\"\")","v":""},{"$f":"IF(DataLog!$C1788=\"Log value\",DataLog!S1788,\"\")","v":""},{"$f":"IF(DataLog!$C1788=\"Log value\",DataLog!T1788,\"\")","v":""},{"$f":"IF(DataLog!$C1788=\"Log value\",DataLog!U1788,\"\")","v":""},{"$f":"IF(DataLog!$C1788=\"Log value\",DataLog!V1788,\"\")","v":""},{"$f":"IF(DataLog!$C1788=\"Log value\",DataLog!W1788,\"\")","v":""},{"$f":"IF(DataLog!$C1788=\"Log value\",DataLog!X1788,\"\")","v":""},{"$f":"IF(DataLog!$C1788=\"Log value\",DataLog!Y1788,\"\")","v":""},{"$f":"IF(DataLog!$C1788=\"Log value\",DataLog!Z1788,\"\")","v":""},{"$f":"IF(DataLog!$C1788=\"Log value\",DataLog!AA1788,\"\")","v":""},{"$f":"IF(DataLog!$C1788=\"Log value\",DataLog!AB1788,\"\")","v":""},{"$f":"IF(DataLog!$C1788=\"Log value\",DataLog!AC1788,\"\")","v":""},{"$f":"IF(DataLog!$C1788=\"Log value\",DataLog!AD1788,\"\")","v":""},{"$f":"IF(DataLog!$C1788=\"Log value\",DataLog!AE1788,\"\")","v":""},{"$f":"IF(DataLog!$C1788=\"Log value\",DataLog!AF1788,\"\")","v":""},{"$f":"IF(DataLog!$C1788=\"Log value\",DataLog!AG1788,\"\")","v":""},{"$f":"IF(DataLog!$C1788=\"Log value\",DataLog!AH1788,\"\")","v":""},{"$f":"IF(DataLog!$C1788=\"Log value\",DataLog!AI1788,\"\")","v":""},{"$f":"IF(DataLog!$C1788=\"Log value\",DataLog!AJ1788,\"\")","v":""},{"$f":"IF(DataLog!$C1788=\"Log value\",DataLog!AK1788,\"\")","v":""},{"$f":"IF(DataLog!$C1788=\"Log value\",DataLog!AL1788,\"\")","v":""},{"$f":"IF(DataLog!$C1788=\"Log value\",DataLog!AM1788,\"\")","v":""}]
[null,null,null,null,null,null,{"$f":"IF(DataLog!$C1791=\"Log value\",DataLog!D1791&\"_\"&TEXT(DataLog!B1791,\"åååå-mm-dd\"),\"\")","v":""},{"$f":"IF(DataLog!$C1791=\"Log value\",DataLog!E1791,\"\")","v":""},{"$f":"IF(DataLog!$C1791=\"Log value\",DataLog!F1791,\"\")","v":""},{"$f":"IF(DataLog!$C1791=\"Log value\",DataLog!G1791,\"\")","v":""},{"$f":"IF(DataLog!$C1791=\"Log value\",DataLog!H1791,\"\")","v":""},{"$f":"IF(DataLog!$C1791=\"Log value\",DataLog!I1791,\"\")","v":""},{"$f":"IF(DataLog!$C1791=\"Log value\",DataLog!J1791,\"\")","v":""},{"$f":"IF(DataLog!$C1791=\"Log value\",DataLog!K1791,\"\")","v":""},{"$f":"IF(DataLog!$C1791=\"Log value\",DataLog!L1791,\"\")","v":""},{"$f":"IF(DataLog!$C1791=\"Log value\",DataLog!M1791,\"\")","v":""},{"$f":"IF(DataLog!$C1791=\"Log value\",DataLog!N1791,\"\")","v":""},{"$f":"IF(DataLog!$C1791=\"Log value\",DataLog!O1791,\"\")","v":""},{"$f":"IF(DataLog!$C1791=\"Log value\",DataLog!P1791,\"\")","v":""},{"$f":"IF(DataLog!$C1791=\"Log value\",DataLog!Q1791,\"\")","v":""},{"$f":"IF(DataLog!$C1791=\"Log value\",DataLog!R1791,\"\")","v":""},{"$f":"IF(DataLog!$C1791=\"Log value\",DataLog!S1791,\"\")","v":""},{"$f":"IF(DataLog!$C1791=\"Log value\",DataLog!T1791,\"\")","v":""},{"$f":"IF(DataLog!$C1791=\"Log value\",DataLog!U1791,\"\")","v":""},{"$f":"IF(DataLog!$C1791=\"Log value\",DataLog!V1791,\"\")","v":""},{"$f":"IF(DataLog!$C1791=\"Log value\",DataLog!W1791,\"\")","v":""},{"$f":"IF(DataLog!$C1791=\"Log value\",DataLog!X1791,\"\")","v":""},{"$f":"IF(DataLog!$C1791=\"Log value\",DataLog!Y1791,\"\")","v":""},{"$f":"IF(DataLog!$C1791=\"Log value\",DataLog!Z1791,\"\")","v":""},{"$f":"IF(DataLog!$C1791=\"Log value\",DataLog!AA1791,\"\")","v":""},{"$f":"IF(DataLog!$C1791=\"Log value\",DataLog!AB1791,\"\")","v":""},{"$f":"IF(DataLog!$C1791=\"Log value\",DataLog!AC1791,\"\")","v":""},{"$f":"IF(DataLog!$C1791=\"Log value\",DataLog!AD1791,\"\")","v":""},{"$f":"IF(DataLog!$C1791=\"Log value\",DataLog!AE1791,\"\")","v":""},{"$f":"IF(DataLog!$C1791=\"Log value\",DataLog!AF1791,\"\")","v":""},{"$f":"IF(DataLog!$C1791=\"Log value\",DataLog!AG1791,\"\")","v":""},{"$f":"IF(DataLog!$C1791=\"Log value\",DataLog!AH1791,\"\")","v":""},{"$f":"IF(DataLog!$C1791=\"Log value\",DataLog!AI1791,\"\")","v":""},{"$f":"IF(DataLog!$C1791=\"Log value\",DataLog!AJ1791,\"\")","v":""},{"$f":"IF(DataLog!$C1791=\"Log value\",DataLog!AK1791,\"\")","v":""},{"$f":"IF(DataLog!$C1791=\"Log value\",DataLog!AL1791,\"\")","v":""},{"$f":"IF(DataLog!$C1791=\"Log value\",DataLog!AM1791,\"\")","v":""}]
[null,null,null,null,null,null,{"$f":"IF(DataLog!$C1794=\"Log value\",DataLog!D1794&\"_\"&TEXT(DataLog!B1794,\"åååå-mm-dd\"),\"\")","v":""},{"$f":"IF(DataLog!$C1794=\"Log value\",DataLog!E1794,\"\")","v":""},{"$f":"IF(DataLog!$C1794=\"Log value\",DataLog!F1794,\"\")","v":""},{"$f":"IF(DataLog!$C1794=\"Log value\",DataLog!G1794,\"\")","v":""},{"$f":"IF(DataLog!$C1794=\"Log value\",DataLog!H1794,\"\")","v":""},{"$f":"IF(DataLog!$C1794=\"Log value\",DataLog!I1794,\"\")","v":""},{"$f":"IF(DataLog!$C1794=\"Log value\",DataLog!J1794,\"\")","v":""},{"$f":"IF(DataLog!$C1794=\"Log value\",DataLog!K1794,\"\")","v":""},{"$f":"IF(DataLog!$C1794=\"Log value\",DataLog!L1794,\"\")","v":""},{"$f":"IF(DataLog!$C1794=\"Log value\",DataLog!M1794,\"\")","v":""},{"$f":"IF(DataLog!$C1794=\"Log value\",DataLog!N1794,\"\")","v":""},{"$f":"IF(DataLog!$C1794=\"Log value\",DataLog!O1794,\"\")","v":""},{"$f":"IF(DataLog!$C1794=\"Log value\",DataLog!P1794,\"\")","v":""},{"$f":"IF(DataLog!$C1794=\"Log value\",DataLog!Q1794,\"\")","v":""},{"$f":"IF(DataLog!$C1794=\"Log value\",DataLog!R1794,\"\")","v":""},{"$f":"IF(DataLog!$C1794=\"Log value\",DataLog!S1794,\"\")","v":""},{"$f":"IF(DataLog!$C1794=\"Log value\",DataLog!T1794,\"\")","v":""},{"$f":"IF(DataLog!$C1794=\"Log value\",DataLog!U1794,\"\")","v":""},{"$f":"IF(DataLog!$C1794=\"Log value\",DataLog!V1794,\"\")","v":""},{"$f":"IF(DataLog!$C1794=\"Log value\",DataLog!W1794,\"\")","v":""},{"$f":"IF(DataLog!$C1794=\"Log value\",DataLog!X1794,\"\")","v":""},{"$f":"IF(DataLog!$C1794=\"Log value\",DataLog!Y1794,\"\")","v":""},{"$f":"IF(DataLog!$C1794=\"Log value\",DataLog!Z1794,\"\")","v":""},{"$f":"IF(DataLog!$C1794=\"Log value\",DataLog!AA1794,\"\")","v":""},{"$f":"IF(DataLog!$C1794=\"Log value\",DataLog!AB1794,\"\")","v":""},{"$f":"IF(DataLog!$C1794=\"Log value\",DataLog!AC1794,\"\")","v":""},{"$f":"IF(DataLog!$C1794=\"Log value\",DataLog!AD1794,\"\")","v":""},{"$f":"IF(DataLog!$C1794=\"Log value\",DataLog!AE1794,\"\")","v":""},{"$f":"IF(DataLog!$C1794=\"Log value\",DataLog!AF1794,\"\")","v":""},{"$f":"IF(DataLog!$C1794=\"Log value\",DataLog!AG1794,\"\")","v":""},{"$f":"IF(DataLog!$C1794=\"Log value\",DataLog!AH1794,\"\")","v":""},{"$f":"IF(DataLog!$C1794=\"Log value\",DataLog!AI1794,\"\")","v":""},{"$f":"IF(DataLog!$C1794=\"Log value\",DataLog!AJ1794,\"\")","v":""},{"$f":"IF(DataLog!$C1794=\"Log value\",DataLog!AK1794,\"\")","v":""},{"$f":"IF(DataLog!$C1794=\"Log value\",DataLog!AL1794,\"\")","v":""},{"$f":"IF(DataLog!$C1794=\"Log value\",DataLog!AM1794,\"\")","v":""}]
[null,null,null,null,null,null,{"$f":"IF(DataLog!$C1796=\"Log value\",DataLog!D1796&\"_\"&TEXT(DataLog!B1796,\"åååå-mm-dd\"),\"\")","v":""},{"$f":"IF(DataLog!$C1796=\"Log value\",DataLog!E1796,\"\")","v":""},{"$f":"IF(DataLog!$C1796=\"Log value\",DataLog!F1796,\"\")","v":""},{"$f":"IF(DataLog!$C1796=\"Log value\",DataLog!G1796,\"\")","v":""},{"$f":"IF(DataLog!$C1796=\"Log value\",DataLog!H1796,\"\")","v":""},{"$f":"IF(DataLog!$C1796=\"Log value\",DataLog!I1796,\"\")","v":""},{"$f":"IF(DataLog!$C1796=\"Log value\",DataLog!J1796,\"\")","v":""},{"$f":"IF(DataLog!$C1796=\"Log value\",DataLog!K1796,\"\")","v":""},{"$f":"IF(DataLog!$C1796=\"Log value\",DataLog!L1796,\"\")","v":""},{"$f":"IF(DataLog!$C1796=\"Log value\",DataLog!M1796,\"\")","v":""},{"$f":"IF(DataLog!$C1796=\"Log value\",DataLog!N1796,\"\")","v":""},{"$f":"IF(DataLog!$C1796=\"Log value\",DataLog!O1796,\"\")","v":""},{"$f":"IF(DataLog!$C1796=\"Log value\",DataLog!P1796,\"\")","v":""},{"$f":"IF(DataLog!$C1796=\"Log value\",DataLog!Q1796,\"\")","v":""},{"$f":"IF(DataLog!$C1796=\"Log value\",DataLog!R1796,\"\")","v":""},{"$f":"IF(DataLog!$C1796=\"Log value\",DataLog!S1796,\"\")","v":""},{"$f":"IF(DataLog!$C1796=\"Log value\",DataLog!T1796,\"\")","v":""},{"$f":"IF(DataLog!$C1796=\"Log value\",DataLog!U1796,\"\")","v":""},{"$f":"IF(DataLog!$C1796=\"Log value\",DataLog!V1796,\"\")","v":""},{"$f":"IF(DataLog!$C1796=\"Log value\",DataLog!W1796,\"\")","v":""},{"$f":"IF(DataLog!$C1796=\"Log value\",DataLog!X1796,\"\")","v":""},{"$f":"IF(DataLog!$C1796=\"Log value\",DataLog!Y1796,\"\")","v":""},{"$f":"IF(DataLog!$C1796=\"Log value\",DataLog!Z1796,\"\")","v":""},{"$f":"IF(DataLog!$C1796=\"Log value\",DataLog!AA1796,\"\")","v":""},{"$f":"IF(DataLog!$C1796=\"Log value\",DataLog!AB1796,\"\")","v":""},{"$f":"IF(DataLog!$C1796=\"Log value\",DataLog!AC1796,\"\")","v":""},{"$f":"IF(DataLog!$C1796=\"Log value\",DataLog!AD1796,\"\")","v":""},{"$f":"IF(DataLog!$C1796=\"Log value\",DataLog!AE1796,\"\")","v":""},{"$f":"IF(DataLog!$C1796=\"Log value\",DataLog!AF1796,\"\")","v":""},{"$f":"IF(DataLog!$C1796=\"Log value\",DataLog!AG1796,\"\")","v":""},{"$f":"IF(DataLog!$C1796=\"Log value\",DataLog!AH1796,\"\")","v":""},{"$f":"IF(DataLog!$C1796=\"Log value\",DataLog!AI1796,\"\")","v":""},{"$f":"IF(DataLog!$C1796=\"Log value\",DataLog!AJ1796,\"\")","v":""},{"$f":"IF(DataLog!$C1796=\"Log value\",DataLog!AK1796,\"\")","v":""},{"$f":"IF(DataLog!$C1796=\"Log value\",DataLog!AL1796,\"\")","v":""},{"$f":"IF(DataLog!$C1796=\"Log value\",DataLog!AM1796,\"\")","v":""}]
[null,null,null,null,null,null,{"$f":"IF(DataLog!$C1797=\"Log value\",DataLog!D1797&\"_\"&TEXT(DataLog!B1797,\"åååå-mm-dd\"),\"\")","v":""},{"$f":"IF(DataLog!$C1797=\"Log value\",DataLog!E1797,\"\")","v":""},{"$f":"IF(DataLog!$C1797=\"Log value\",DataLog!F1797,\"\")","v":""},{"$f":"IF(DataLog!$C1797=\"Log value\",DataLog!G1797,\"\")","v":""},{"$f":"IF(DataLog!$C1797=\"Log value\",DataLog!H1797,\"\")","v":""},{"$f":"IF(DataLog!$C1797=\"Log value\",DataLog!I1797,\"\")","v":""},{"$f":"IF(DataLog!$C1797=\"Log value\",DataLog!J1797,\"\")","v":""},{"$f":"IF(DataLog!$C1797=\"Log value\",DataLog!K1797,\"\")","v":""},{"$f":"IF(DataLog!$C1797=\"Log value\",DataLog!L1797,\"\")","v":""},{"$f":"IF(DataLog!$C1797=\"Log value\",DataLog!M1797,\"\")","v":""},{"$f":"IF(DataLog!$C1797=\"Log value\",DataLog!N1797,\"\")","v":""},{"$f":"IF(DataLog!$C1797=\"Log value\",DataLog!O1797,\"\")","v":""},{"$f":"IF(DataLog!$C1797=\"Log value\",DataLog!P1797,\"\")","v":""},{"$f":"IF(DataLog!$C1797=\"Log value\",DataLog!Q1797,\"\")","v":""},{"$f":"IF(DataLog!$C1797=\"Log value\",DataLog!R1797,\"\")","v":""},{"$f":"IF(DataLog!$C1797=\"Log value\",DataLog!S1797,\"\")","v":""},{"$f":"IF(DataLog!$C1797=\"Log value\",DataLog!T1797,\"\")","v":""},{"$f":"IF(DataLog!$C1797=\"Log value\",DataLog!U1797,\"\")","v":""},{"$f":"IF(DataLog!$C1797=\"Log value\",DataLog!V1797,\"\")","v":""},{"$f":"IF(DataLog!$C1797=\"Log value\",DataLog!W1797,\"\")","v":""},{"$f":"IF(DataLog!$C1797=\"Log value\",DataLog!X1797,\"\")","v":""},{"$f":"IF(DataLog!$C1797=\"Log value\",DataLog!Y1797,\"\")","v":""},{"$f":"IF(DataLog!$C1797=\"Log value\",DataLog!Z1797,\"\")","v":""},{"$f":"IF(DataLog!$C1797=\"Log value\",DataLog!AA1797,\"\")","v":""},{"$f":"IF(DataLog!$C1797=\"Log value\",DataLog!AB1797,\"\")","v":""},{"$f":"IF(DataLog!$C1797=\"Log value\",DataLog!AC1797,\"\")","v":""},{"$f":"IF(DataLog!$C1797=\"Log value\",DataLog!AD1797,\"\")","v":""},{"$f":"IF(DataLog!$C1797=\"Log value\",DataLog!AE1797,\"\")","v":""},{"$f":"IF(DataLog!$C1797=\"Log value\",DataLog!AF1797,\"\")","v":""},{"$f":"IF(DataLog!$C1797=\"Log value\",DataLog!AG1797,\"\")","v":""},{"$f":"IF(DataLog!$C1797=\"Log value\",DataLog!AH1797,\"\")","v":""},{"$f":"IF(DataLog!$C1797=\"Log value\",DataLog!AI1797,\"\")","v":""},{"$f":"IF(DataLog!$C1797=\"Log value\",DataLog!AJ1797,\"\")","v":""},{"$f":"IF(DataLog!$C1797=\"Log value\",DataLog!AK1797,\"\")","v":""},{"$f":"IF(DataLog!$C1797=\"Log value\",DataLog!AL1797,\"\")","v":""},{"$f":"IF(DataLog!$C1797=\"Log value\",DataLog!AM1797,\"\")","v":""}]
[null,null,null,null,null,null,{"$f":"IF(DataLog!$C1799=\"Log value\",DataLog!D1799&\"_\"&TEXT(DataLog!B1799,\"åååå-mm-dd\"),\"\")","v":""},{"$f":"IF(DataLog!$C1799=\"Log value\",DataLog!E1799,\"\")","v":""},{"$f":"IF(DataLog!$C1799=\"Log value\",DataLog!F1799,\"\")","v":""},{"$f":"IF(DataLog!$C1799=\"Log value\",DataLog!G1799,\"\")","v":""},{"$f":"IF(DataLog!$C1799=\"Log value\",DataLog!H1799,\"\")","v":""},{"$f":"IF(DataLog!$C1799=\"Log value\",DataLog!I1799,\"\")","v":""},{"$f":"IF(DataLog!$C1799=\"Log value\",DataLog!J1799,\"\")","v":""},{"$f":"IF(DataLog!$C1799=\"Log value\",DataLog!K1799,\"\")","v":""},{"$f":"IF(DataLog!$C1799=\"Log value\",DataLog!L1799,\"\")","v":""},{"$f":"IF(DataLog!$C1799=\"Log value\",DataLog!M1799,\"\")","v":""},{"$f":"IF(DataLog!$C1799=\"Log value\",DataLog!N1799,\"\")","v":""},{"$f":"IF(DataLog!$C1799=\"Log value\",DataLog!O1799,\"\")","v":""},{"$f":"IF(DataLog!$C1799=\"Log value\",DataLog!P1799,\"\")","v":""},{"$f":"IF(DataLog!$C1799=\"Log value\",DataLog!Q1799,\"\")","v":""},{"$f":"IF(DataLog!$C1799=\"Log value\",DataLog!R1799,\"\")","v":""},{"$f":"IF(DataLog!$C1799=\"Log value\",DataLog!S1799,\"\")","v":""},{"$f":"IF(DataLog!$C1799=\"Log value\",DataLog!T1799,\"\")","v":""},{"$f":"IF(DataLog!$C1799=\"Log value\",DataLog!U1799,\"\")","v":""},{"$f":"IF(DataLog!$C1799=\"Log value\",DataLog!V1799,\"\")","v":""},{"$f":"IF(DataLog!$C1799=\"Log value\",DataLog!W1799,\"\")","v":""},{"$f":"IF(DataLog!$C1799=\"Log value\",DataLog!X1799,\"\")","v":""},{"$f":"IF(DataLog!$C1799=\"Log value\",DataLog!Y1799,\"\")","v":""},{"$f":"IF(DataLog!$C1799=\"Log value\",DataLog!Z1799,\"\")","v":""},{"$f":"IF(DataLog!$C1799=\"Log value\",DataLog!AA1799,\"\")","v":""},{"$f":"IF(DataLog!$C1799=\"Log value\",DataLog!AB1799,\"\")","v":""},{"$f":"IF(DataLog!$C1799=\"Log value\",DataLog!AC1799,\"\")","v":""},{"$f":"IF(DataLog!$C1799=\"Log value\",DataLog!AD1799,\"\")","v":""},{"$f":"IF(DataLog!$C1799=\"Log value\",DataLog!AE1799,\"\")","v":""},{"$f":"IF(DataLog!$C1799=\"Log value\",DataLog!AF1799,\"\")","v":""},{"$f":"IF(DataLog!$C1799=\"Log value\",DataLog!AG1799,\"\")","v":""},{"$f":"IF(DataLog!$C1799=\"Log value\",DataLog!AH1799,\"\")","v":""},{"$f":"IF(DataLog!$C1799=\"Log value\",DataLog!AI1799,\"\")","v":""},{"$f":"IF(DataLog!$C1799=\"Log value\",DataLog!AJ1799,\"\")","v":""},{"$f":"IF(DataLog!$C1799=\"Log value\",DataLog!AK1799,\"\")","v":""},{"$f":"IF(DataLog!$C1799=\"Log value\",DataLog!AL1799,\"\")","v":""},{"$f":"IF(DataLog!$C1799=\"Log value\",DataLog!AM1799,\"\")","v":""}]
[null,null,null,null,null,null,{"$f":"IF(DataLog!$C1802=\"Log value\",DataLog!D1802&\"_\"&TEXT(DataLog!B1802,\"åååå-mm-dd\"),\"\")","v":""},{"$f":"IF(DataLog!$C1802=\"Log value\",DataLog!E1802,\"\")","v":""},{"$f":"IF(DataLog!$C1802=\"Log value\",DataLog!F1802,\"\")","v":""},{"$f":"IF(DataLog!$C1802=\"Log value\",DataLog!G1802,\"\")","v":""},{"$f":"IF(DataLog!$C1802=\"Log value\",DataLog!H1802,\"\")","v":""},{"$f":"IF(DataLog!$C1802=\"Log value\",DataLog!I1802,\"\")","v":""},{"$f":"IF(DataLog!$C1802=\"Log value\",DataLog!J1802,\"\")","v":""},{"$f":"IF(DataLog!$C1802=\"Log value\",DataLog!K1802,\"\")","v":""},{"$f":"IF(DataLog!$C1802=\"Log value\",DataLog!L1802,\"\")","v":""},{"$f":"IF(DataLog!$C1802=\"Log value\",DataLog!M1802,\"\")","v":""},{"$f":"IF(DataLog!$C1802=\"Log value\",DataLog!N1802,\"\")","v":""},{"$f":"IF(DataLog!$C1802=\"Log value\",DataLog!O1802,\"\")","v":""},{"$f":"IF(DataLog!$C1802=\"Log value\",DataLog!P1802,\"\")","v":""},{"$f":"IF(DataLog!$C1802=\"Log value\",DataLog!Q1802,\"\")","v":""},{"$f":"IF(DataLog!$C1802=\"Log value\",DataLog!R1802,\"\")","v":""},{"$f":"IF(DataLog!$C1802=\"Log value\",DataLog!S1802,\"\")","v":""},{"$f":"IF(DataLog!$C1802=\"Log value\",DataLog!T1802,\"\")","v":""},{"$f":"IF(DataLog!$C1802=\"Log value\",DataLog!U1802,\"\")","v":""},{"$f":"IF(DataLog!$C1802=\"Log value\",DataLog!V1802,\"\")","v":""},{"$f":"IF(DataLog!$C1802=\"Log value\",DataLog!W1802,\"\")","v":""},{"$f":"IF(DataLog!$C1802=\"Log value\",DataLog!X1802,\"\")","v":""},{"$f":"IF(DataLog!$C1802=\"Log value\",DataLog!Y1802,\"\")","v":""},{"$f":"IF(DataLog!$C1802=\"Log value\",DataLog!Z1802,\"\")","v":""},{"$f":"IF(DataLog!$C1802=\"Log value\",DataLog!AA1802,\"\")","v":""},{"$f":"IF(DataLog!$C1802=\"Log value\",DataLog!AB1802,\"\")","v":""},{"$f":"IF(DataLog!$C1802=\"Log value\",DataLog!AC1802,\"\")","v":""},{"$f":"IF(DataLog!$C1802=\"Log value\",DataLog!AD1802,\"\")","v":""},{"$f":"IF(DataLog!$C1802=\"Log value\",DataLog!AE1802,\"\")","v":""},{"$f":"IF(DataLog!$C1802=\"Log value\",DataLog!AF1802,\"\")","v":""},{"$f":"IF(DataLog!$C1802=\"Log value\",DataLog!AG1802,\"\")","v":""},{"$f":"IF(DataLog!$C1802=\"Log value\",DataLog!AH1802,\"\")","v":""},{"$f":"IF(DataLog!$C1802=\"Log value\",DataLog!AI1802,\"\")","v":""},{"$f":"IF(DataLog!$C1802=\"Log value\",DataLog!AJ1802,\"\")","v":""},{"$f":"IF(DataLog!$C1802=\"Log value\",DataLog!AK1802,\"\")","v":""},{"$f":"IF(DataLog!$C1802=\"Log value\",DataLog!AL1802,\"\")","v":""},{"$f":"IF(DataLog!$C1802=\"Log value\",DataLog!AM1802,\"\")","v":""}]
[null,null,null,null,null,null,{"$f":"IF(DataLog!$C1805=\"Log value\",DataLog!D1805&\"_\"&TEXT(DataLog!B1805,\"åååå-mm-dd\"),\"\")","v":""},{"$f":"IF(DataLog!$C1805=\"Log value\",DataLog!E1805,\"\")","v":""},{"$f":"IF(DataLog!$C1805=\"Log value\",DataLog!F1805,\"\")","v":""},{"$f":"IF(DataLog!$C1805=\"Log value\",DataLog!G1805,\"\")","v":""},{"$f":"IF(DataLog!$C1805=\"Log value\",DataLog!H1805,\"\")","v":""},{"$f":"IF(DataLog!$C1805=\"Log value\",DataLog!I1805,\"\")","v":""},{"$f":"IF(DataLog!$C1805=\"Log value\",DataLog!J1805,\"\")","v":""},{"$f":"IF(DataLog!$C1805=\"Log value\",DataLog!K1805,\"\")","v":""},{"$f":"IF(DataLog!$C1805=\"Log value\",DataLog!L1805,\"\")","v":""},{"$f":"IF(DataLog!$C1805=\"Log value\",DataLog!M1805,\"\")","v":""},{"$f":"IF(DataLog!$C1805=\"Log value\",DataLog!N1805,\"\")","v":""},{"$f":"IF(DataLog!$C1805=\"Log value\",DataLog!O1805,\"\")","v":""},{"$f":"IF(DataLog!$C1805=\"Log value\",DataLog!P1805,\"\")","v":""},{"$f":"IF(DataLog!$C1805=\"Log value\",DataLog!Q1805,\"\")","v":""},{"$f":"IF(DataLog!$C1805=\"Log value\",DataLog!R1805,\"\")","v":""},{"$f":"IF(DataLog!$C1805=\"Log value\",DataLog!S1805,\"\")","v":""},{"$f":"IF(DataLog!$C1805=\"Log value\",DataLog!T1805,\"\")","v":""},{"$f":"IF(DataLog!$C1805=\"Log value\",DataLog!U1805,\"\")","v":""},{"$f":"IF(DataLog!$C1805=\"Log value\",DataLog!V1805,\"\")","v":""},{"$f":"IF(DataLog!$C1805=\"Log value\",DataLog!W1805,\"\")","v":""},{"$f":"IF(DataLog!$C1805=\"Log value\",DataLog!X1805,\"\")","v":""},{"$f":"IF(DataLog!$C1805=\"Log value\",DataLog!Y1805,\"\")","v":""},{"$f":"IF(DataLog!$C1805=\"Log value\",DataLog!Z1805,\"\")","v":""},{"$f":"IF(DataLog!$C1805=\"Log value\",DataLog!AA1805,\"\")","v":""},{"$f":"IF(DataLog!$C1805=\"Log value\",DataLog!AB1805,\"\")","v":""},{"$f":"IF(DataLog!$C1805=\"Log value\",DataLog!AC1805,\"\")","v":""},{"$f":"IF(DataLog!$C1805=\"Log value\",DataLog!AD1805,\"\")","v":""},{"$f":"IF(DataLog!$C1805=\"Log value\",DataLog!AE1805,\"\")","v":""},{"$f":"IF(DataLog!$C1805=\"Log value\",DataLog!AF1805,\"\")","v":""},{"$f":"IF(DataLog!$C1805=\"Log value\",DataLog!AG1805,\"\")","v":""},{"$f":"IF(DataLog!$C1805=\"Log value\",DataLog!AH1805,\"\")","v":""},{"$f":"IF(DataLog!$C1805=\"Log value\",DataLog!AI1805,\"\")","v":""},{"$f":"IF(DataLog!$C1805=\"Log value\",DataLog!AJ1805,\"\")","v":""},{"$f":"IF(DataLog!$C1805=\"Log value\",DataLog!AK1805,\"\")","v":""},{"$f":"IF(DataLog!$C1805=\"Log value\",DataLog!AL1805,\"\")","v":""},{"$f":"IF(DataLog!$C1805=\"Log value\",DataLog!AM1805,\"\")","v":""}]
[null,null,null,null,null,null,{"$f":"IF(DataLog!$C1806=\"Log value\",DataLog!D1806&\"_\"&TEXT(DataLog!B1806,\"åååå-mm-dd\"),\"\")","v":""},{"$f":"IF(DataLog!$C1806=\"Log value\",DataLog!E1806,\"\")","v":""},{"$f":"IF(DataLog!$C1806=\"Log value\",DataLog!F1806,\"\")","v":""},{"$f":"IF(DataLog!$C1806=\"Log value\",DataLog!G1806,\"\")","v":""},{"$f":"IF(DataLog!$C1806=\"Log value\",DataLog!H1806,\"\")","v":""},{"$f":"IF(DataLog!$C1806=\"Log value\",DataLog!I1806,\"\")","v":""},{"$f":"IF(DataLog!$C1806=\"Log value\",DataLog!J1806,\"\")","v":""},{"$f":"IF(DataLog!$C1806=\"Log value\",DataLog!K1806,\"\")","v":""},{"$f":"IF(DataLog!$C1806=\"Log value\",DataLog!L1806,\"\")","v":""},{"$f":"IF(DataLog!$C1806=\"Log value\",DataLog!M1806,\"\")","v":""},{"$f":"IF(DataLog!$C1806=\"Log value\",DataLog!N1806,\"\")","v":""},{"$f":"IF(DataLog!$C1806=\"Log value\",DataLog!O1806,\"\")","v":""},{"$f":"IF(DataLog!$C1806=\"Log value\",DataLog!P1806,\"\")","v":""},{"$f":"IF(DataLog!$C1806=\"Log value\",DataLog!Q1806,\"\")","v":""},{"$f":"IF(DataLog!$C1806=\"Log value\",DataLog!R1806,\"\")","v":""},{"$f":"IF(DataLog!$C1806=\"Log value\",DataLog!S1806,\"\")","v":""},{"$f":"IF(DataLog!$C1806=\"Log value\",DataLog!T1806,\"\")","v":""},{"$f":"IF(DataLog!$C1806=\"Log value\",DataLog!U1806,\"\")","v":""},{"$f":"IF(DataLog!$C1806=\"Log value\",DataLog!V1806,\"\")","v":""},{"$f":"IF(DataLog!$C1806=\"Log value\",DataLog!W1806,\"\")","v":""},{"$f":"IF(DataLog!$C1806=\"Log value\",DataLog!X1806,\"\")","v":""},{"$f":"IF(DataLog!$C1806=\"Log value\",DataLog!Y1806,\"\")","v":""},{"$f":"IF(DataLog!$C1806=\"Log value\",DataLog!Z1806,\"\")","v":""},{"$f":"IF(DataLog!$C1806=\"Log value\",DataLog!AA1806,\"\")","v":""},{"$f":"IF(DataLog!$C1806=\"Log value\",DataLog!AB1806,\"\")","v":""},{"$f":"IF(DataLog!$C1806=\"Log value\",DataLog!AC1806,\"\")","v":""},{"$f":"IF(DataLog!$C1806=\"Log value\",DataLog!AD1806,\"\")","v":""},{"$f":"IF(DataLog!$C1806=\"Log value\",DataLog!AE1806,\"\")","v":""},{"$f":"IF(DataLog!$C1806=\"Log value\",DataLog!AF1806,\"\")","v":""},{"$f":"IF(DataLog!$C1806=\"Log value\",DataLog!AG1806,\"\")","v":""},{"$f":"IF(DataLog!$C1806=\"Log value\",DataLog!AH1806,\"\")","v":""},{"$f":"IF(DataLog!$C1806=\"Log value\",DataLog!AI1806,\"\")","v":""},{"$f":"IF(DataLog!$C1806=\"Log value\",DataLog!AJ1806,\"\")","v":""},{"$f":"IF(DataLog!$C1806=\"Log value\",DataLog!AK1806,\"\")","v":""},{"$f":"IF(DataLog!$C1806=\"Log value\",DataLog!AL1806,\"\")","v":""},{"$f":"IF(DataLog!$C1806=\"Log value\",DataLog!AM1806,\"\")","v":""}]
[null,null,null,null,null,null,{"$f":"IF(DataLog!$C1810=\"Log value\",DataLog!D1810&\"_\"&TEXT(DataLog!B1810,\"åååå-mm-dd\"),\"\")","v":""},{"$f":"IF(DataLog!$C1810=\"Log value\",DataLog!E1810,\"\")","v":""},{"$f":"IF(DataLog!$C1810=\"Log value\",DataLog!F1810,\"\")","v":""},{"$f":"IF(DataLog!$C1810=\"Log value\",DataLog!G1810,\"\")","v":""},{"$f":"IF(DataLog!$C1810=\"Log value\",DataLog!H1810,\"\")","v":""},{"$f":"IF(DataLog!$C1810=\"Log value\",DataLog!I1810,\"\")","v":""},{"$f":"IF(DataLog!$C1810=\"Log value\",DataLog!J1810,\"\")","v":""},{"$f":"IF(DataLog!$C1810=\"Log value\",DataLog!K1810,\"\")","v":""},{"$f":"IF(DataLog!$C1810=\"Log value\",DataLog!L1810,\"\")","v":""},{"$f":"IF(DataLog!$C1810=\"Log value\",DataLog!M1810,\"\")","v":""},{"$f":"IF(DataLog!$C1810=\"Log value\",DataLog!N1810,\"\")","v":""},{"$f":"IF(DataLog!$C1810=\"Log value\",DataLog!O1810,\"\")","v":""},{"$f":"IF(DataLog!$C1810=\"Log value\",DataLog!P1810,\"\")","v":""},{"$f":"IF(DataLog!$C1810=\"Log value\",DataLog!Q1810,\"\")","v":""},{"$f":"IF(DataLog!$C1810=\"Log value\",DataLog!R1810,\"\")","v":""},{"$f":"IF(DataLog!$C1810=\"Log value\",DataLog!S1810,\"\")","v":""},{"$f":"IF(DataLog!$C1810=\"Log value\",DataLog!T1810,\"\")","v":""},{"$f":"IF(DataLog!$C1810=\"Log value\",DataLog!U1810,\"\")","v":""},{"$f":"IF(DataLog!$C1810=\"Log value\",DataLog!V1810,\"\")","v":""},{"$f":"IF(DataLog!$C1810=\"Log value\",DataLog!W1810,\"\")","v":""},{"$f":"IF(DataLog!$C1810=\"Log value\",DataLog!X1810,\"\")","v":""},{"$f":"IF(DataLog!$C1810=\"Log value\",DataLog!Y1810,\"\")","v":""},{"$f":"IF(DataLog!$C1810=\"Log value\",DataLog!Z1810,\"\")","v":""},{"$f":"IF(DataLog!$C1810=\"Log value\",DataLog!AA1810,\"\")","v":""},{"$f":"IF(DataLog!$C1810=\"Log value\",DataLog!AB1810,\"\")","v":""},{"$f":"IF(DataLog!$C1810=\"Log value\",DataLog!AC1810,\"\")","v":""},{"$f":"IF(DataLog!$C1810=\"Log value\",DataLog!AD1810,\"\")","v":""},{"$f":"IF(DataLog!$C1810=\"Log value\",DataLog!AE1810,\"\")","v":""},{"$f":"IF(DataLog!$C1810=\"Log value\",DataLog!AF1810,\"\")","v":""},{"$f":"IF(DataLog!$C1810=\"Log value\",DataLog!AG1810,\"\")","v":""},{"$f":"IF(DataLog!$C1810=\"Log value\",DataLog!AH1810,\"\")","v":""},{"$f":"IF(DataLog!$C1810=\"Log value\",DataLog!AI1810,\"\")","v":""},{"$f":"IF(DataLog!$C1810=\"Log value\",DataLog!AJ1810,\"\")","v":""},{"$f":"IF(DataLog!$C1810=\"Log value\",DataLog!AK1810,\"\")","v":""},{"$f":"IF(DataLog!$C1810=\"Log value\",DataLog!AL1810,\"\")","v":""},{"$f":"IF(DataLog!$C1810=\"Log value\",DataLog!AM1810,\"\")","v":""}]
[null,null,null,null,null,null,{"$f":"IF(DataLog!$C1811=\"Log value\",DataLog!D1811&\"_\"&TEXT(DataLog!B1811,\"åååå-mm-dd\"),\"\")","v":""},{"$f":"IF(DataLog!$C1811=\"Log value\",DataLog!E1811,\"\")","v":""},{"$f":"IF(DataLog!$C1811=\"Log value\",DataLog!F1811,\"\")","v":""},{"$f":"IF(DataLog!$C1811=\"Log value\",DataLog!G1811,\"\")","v":""},{"$f":"IF(DataLog!$C1811=\"Log value\",DataLog!H1811,\"\")","v":""},{"$f":"IF(DataLog!$C1811=\"Log value\",DataLog!I1811,\"\")","v":""},{"$f":"IF(DataLog!$C1811=\"Log value\",DataLog!J1811,\"\")","v":""},{"$f":"IF(DataLog!$C1811=\"Log value\",DataLog!K1811,\"\")","v":""},{"$f":"IF(DataLog!$C1811=\"Log value\",DataLog!L1811,\"\")","v":""},{"$f":"IF(DataLog!$C1811=\"Log value\",DataLog!M1811,\"\")","v":""},{"$f":"IF(DataLog!$C1811=\"Log value\",DataLog!N1811,\"\")","v":""},{"$f":"IF(DataLog!$C1811=\"Log value\",DataLog!O1811,\"\")","v":""},{"$f":"IF(DataLog!$C1811=\"Log value\",DataLog!P1811,\"\")","v":""},{"$f":"IF(DataLog!$C1811=\"Log value\",DataLog!Q1811,\"\")","v":""},{"$f":"IF(DataLog!$C1811=\"Log value\",DataLog!R1811,\"\")","v":""},{"$f":"IF(DataLog!$C1811=\"Log value\",DataLog!S1811,\"\")","v":""},{"$f":"IF(DataLog!$C1811=\"Log value\",DataLog!T1811,\"\")","v":""},{"$f":"IF(DataLog!$C1811=\"Log value\",DataLog!U1811,\"\")","v":""},{"$f":"IF(DataLog!$C1811=\"Log value\",DataLog!V1811,\"\")","v":""},{"$f":"IF(DataLog!$C1811=\"Log value\",DataLog!W1811,\"\")","v":""},{"$f":"IF(DataLog!$C1811=\"Log value\",DataLog!X1811,\"\")","v":""},{"$f":"IF(DataLog!$C1811=\"Log value\",DataLog!Y1811,\"\")","v":""},{"$f":"IF(DataLog!$C1811=\"Log value\",DataLog!Z1811,\"\")","v":""},{"$f":"IF(DataLog!$C1811=\"Log value\",DataLog!AA1811,\"\")","v":""},{"$f":"IF(DataLog!$C1811=\"Log value\",DataLog!AB1811,\"\")","v":""},{"$f":"IF(DataLog!$C1811=\"Log value\",DataLog!AC1811,\"\")","v":""},{"$f":"IF(DataLog!$C1811=\"Log value\",DataLog!AD1811,\"\")","v":""},{"$f":"IF(DataLog!$C1811=\"Log value\",DataLog!AE1811,\"\")","v":""},{"$f":"IF(DataLog!$C1811=\"Log value\",DataLog!AF1811,\"\")","v":""},{"$f":"IF(DataLog!$C1811=\"Log value\",DataLog!AG1811,\"\")","v":""},{"$f":"IF(DataLog!$C1811=\"Log value\",DataLog!AH1811,\"\")","v":""},{"$f":"IF(DataLog!$C1811=\"Log value\",DataLog!AI1811,\"\")","v":""},{"$f":"IF(DataLog!$C1811=\"Log value\",DataLog!AJ1811,\"\")","v":""},{"$f":"IF(DataLog!$C1811=\"Log value\",DataLog!AK1811,\"\")","v":""},{"$f":"IF(DataLog!$C1811=\"Log value\",DataLog!AL1811,\"\")","v":""},{"$f":"IF(DataLog!$C1811=\"Log value\",DataLog!AM1811,\"\")","v":""}]
[null,null,null,null,null,null,{"$f":"IF(DataLog!$C1814=\"Log value\",DataLog!D1814&\"_\"&TEXT(DataLog!B1814,\"åååå-mm-dd\"),\"\")","v":""},{"$f":"IF(DataLog!$C1814=\"Log value\",DataLog!E1814,\"\")","v":""},{"$f":"IF(DataLog!$C1814=\"Log value\",DataLog!F1814,\"\")","v":""},{"$f":"IF(DataLog!$C1814=\"Log value\",DataLog!G1814,\"\")","v":""},{"$f":"IF(DataLog!$C1814=\"Log value\",DataLog!H1814,\"\")","v":""},{"$f":"IF(DataLog!$C1814=\"Log value\",DataLog!I1814,\"\")","v":""},{"$f":"IF(DataLog!$C1814=\"Log value\",DataLog!J1814,\"\")","v":""},{"$f":"IF(DataLog!$C1814=\"Log value\",DataLog!K1814,\"\")","v":""},{"$f":"IF(DataLog!$C1814=\"Log value\",DataLog!L1814,\"\")","v":""},{"$f":"IF(DataLog!$C1814=\"Log value\",DataLog!M1814,\"\")","v":""},{"$f":"IF(DataLog!$C1814=\"Log value\",DataLog!N1814,\"\")","v":""},{"$f":"IF(DataLog!$C1814=\"Log value\",DataLog!O1814,\"\")","v":""},{"$f":"IF(DataLog!$C1814=\"Log value\",DataLog!P1814,\"\")","v":""},{"$f":"IF(DataLog!$C1814=\"Log value\",DataLog!Q1814,\"\")","v":""},{"$f":"IF(DataLog!$C1814=\"Log value\",DataLog!R1814,\"\")","v":""},{"$f":"IF(DataLog!$C1814=\"Log value\",DataLog!S1814,\"\")","v":""},{"$f":"IF(DataLog!$C1814=\"Log value\",DataLog!T1814,\"\")","v":""},{"$f":"IF(DataLog!$C1814=\"Log value\",DataLog!U1814,\"\")","v":""},{"$f":"IF(DataLog!$C1814=\"Log value\",DataLog!V1814,\"\")","v":""},{"$f":"IF(DataLog!$C1814=\"Log value\",DataLog!W1814,\"\")","v":""},{"$f":"IF(DataLog!$C1814=\"Log value\",DataLog!X1814,\"\")","v":""},{"$f":"IF(DataLog!$C1814=\"Log value\",DataLog!Y1814,\"\")","v":""},{"$f":"IF(DataLog!$C1814=\"Log value\",DataLog!Z1814,\"\")","v":""},{"$f":"IF(DataLog!$C1814=\"Log value\",DataLog!AA1814,\"\")","v":""},{"$f":"IF(DataLog!$C1814=\"Log value\",DataLog!AB1814,\"\")","v":""},{"$f":"IF(DataLog!$C1814=\"Log value\",DataLog!AC1814,\"\")","v":""},{"$f":"IF(DataLog!$C1814=\"Log value\",DataLog!AD1814,\"\")","v":""},{"$f":"IF(DataLog!$C1814=\"Log value\",DataLog!AE1814,\"\")","v":""},{"$f":"IF(DataLog!$C1814=\"Log value\",DataLog!AF1814,\"\")","v":""},{"$f":"IF(DataLog!$C1814=\"Log value\",DataLog!AG1814,\"\")","v":""},{"$f":"IF(DataLog!$C1814=\"Log value\",DataLog!AH1814,\"\")","v":""},{"$f":"IF(DataLog!$C1814=\"Log value\",DataLog!AI1814,\"\")","v":""},{"$f":"IF(DataLog!$C1814=\"Log value\",DataLog!AJ1814,\"\")","v":""},{"$f":"IF(DataLog!$C1814=\"Log value\",DataLog!AK1814,\"\")","v":""},{"$f":"IF(DataLog!$C1814=\"Log value\",DataLog!AL1814,\"\")","v":""},{"$f":"IF(DataLog!$C1814=\"Log value\",DataLog!AM1814,\"\")","v":""}]
[null,null,null,null,null,null,{"$f":"IF(DataLog!$C1815=\"Log value\",DataLog!D1815&\"_\"&TEXT(DataLog!B1815,\"åååå-mm-dd\"),\"\")","v":""},{"$f":"IF(DataLog!$C1815=\"Log value\",DataLog!E1815,\"\")","v":""},{"$f":"IF(DataLog!$C1815=\"Log value\",DataLog!F1815,\"\")","v":""},{"$f":"IF(DataLog!$C1815=\"Log value\",DataLog!G1815,\"\")","v":""},{"$f":"IF(DataLog!$C1815=\"Log value\",DataLog!H1815,\"\")","v":""},{"$f":"IF(DataLog!$C1815=\"Log value\",DataLog!I1815,\"\")","v":""},{"$f":"IF(DataLog!$C1815=\"Log value\",DataLog!J1815,\"\")","v":""},{"$f":"IF(DataLog!$C1815=\"Log value\",DataLog!K1815,\"\")","v":""},{"$f":"IF(DataLog!$C1815=\"Log value\",DataLog!L1815,\"\")","v":""},{"$f":"IF(DataLog!$C1815=\"Log value\",DataLog!M1815,\"\")","v":""},{"$f":"IF(DataLog!$C1815=\"Log value\",DataLog!N1815,\"\")","v":""},{"$f":"IF(DataLog!$C1815=\"Log value\",DataLog!O1815,\"\")","v":""},{"$f":"IF(DataLog!$C1815=\"Log value\",DataLog!P1815,\"\")","v":""},{"$f":"IF(DataLog!$C1815=\"Log value\",DataLog!Q1815,\"\")","v":""},{"$f":"IF(DataLog!$C1815=\"Log value\",DataLog!R1815,\"\")","v":""},{"$f":"IF(DataLog!$C1815=\"Log value\",DataLog!S1815,\"\")","v":""},{"$f":"IF(DataLog!$C1815=\"Log value\",DataLog!T1815,\"\")","v":""},{"$f":"IF(DataLog!$C1815=\"Log value\",DataLog!U1815,\"\")","v":""},{"$f":"IF(DataLog!$C1815=\"Log value\",DataLog!V1815,\"\")","v":""},{"$f":"IF(DataLog!$C1815=\"Log value\",DataLog!W1815,\"\")","v":""},{"$f":"IF(DataLog!$C1815=\"Log value\",DataLog!X1815,\"\")","v":""},{"$f":"IF(DataLog!$C1815=\"Log value\",DataLog!Y1815,\"\")","v":""},{"$f":"IF(DataLog!$C1815=\"Log value\",DataLog!Z1815,\"\")","v":""},{"$f":"IF(DataLog!$C1815=\"Log value\",DataLog!AA1815,\"\")","v":""},{"$f":"IF(DataLog!$C1815=\"Log value\",DataLog!AB1815,\"\")","v":""},{"$f":"IF(DataLog!$C1815=\"Log value\",DataLog!AC1815,\"\")","v":""},{"$f":"IF(DataLog!$C1815=\"Log value\",DataLog!AD1815,\"\")","v":""},{"$f":"IF(DataLog!$C1815=\"Log value\",DataLog!AE1815,\"\")","v":""},{"$f":"IF(DataLog!$C1815=\"Log value\",DataLog!AF1815,\"\")","v":""},{"$f":"IF(DataLog!$C1815=\"Log value\",DataLog!AG1815,\"\")","v":""},{"$f":"IF(DataLog!$C1815=\"Log value\",DataLog!AH1815,\"\")","v":""},{"$f":"IF(DataLog!$C1815=\"Log value\",DataLog!AI1815,\"\")","v":""},{"$f":"IF(DataLog!$C1815=\"Log value\",DataLog!AJ1815,\"\")","v":""},{"$f":"IF(DataLog!$C1815=\"Log value\",DataLog!AK1815,\"\")","v":""},{"$f":"IF(DataLog!$C1815=\"Log value\",DataLog!AL1815,\"\")","v":""},{"$f":"IF(DataLog!$C1815=\"Log value\",DataLog!AM1815,\"\")","v":""}]
[null,null,null,null,null,null,{"$f":"IF(DataLog!$C1817=\"Log value\",DataLog!D1817&\"_\"&TEXT(DataLog!B1817,\"åååå-mm-dd\"),\"\")","v":""},{"$f":"IF(DataLog!$C1817=\"Log value\",DataLog!E1817,\"\")","v":""},{"$f":"IF(DataLog!$C1817=\"Log value\",DataLog!F1817,\"\")","v":""},{"$f":"IF(DataLog!$C1817=\"Log value\",DataLog!G1817,\"\")","v":""},{"$f":"IF(DataLog!$C1817=\"Log value\",DataLog!H1817,\"\")","v":""},{"$f":"IF(DataLog!$C1817=\"Log value\",DataLog!I1817,\"\")","v":""},{"$f":"IF(DataLog!$C1817=\"Log value\",DataLog!J1817,\"\")","v":""},{"$f":"IF(DataLog!$C1817=\"Log value\",DataLog!K1817,\"\")","v":""},{"$f":"IF(DataLog!$C1817=\"Log value\",DataLog!L1817,\"\")","v":""},{"$f":"IF(DataLog!$C1817=\"Log value\",DataLog!M1817,\"\")","v":""},{"$f":"IF(DataLog!$C1817=\"Log value\",DataLog!N1817,\"\")","v":""},{"$f":"IF(DataLog!$C1817=\"Log value\",DataLog!O1817,\"\")","v":""},{"$f":"IF(DataLog!$C1817=\"Log value\",DataLog!P1817,\"\")","v":""},{"$f":"IF(DataLog!$C1817=\"Log value\",DataLog!Q1817,\"\")","v":""},{"$f":"IF(DataLog!$C1817=\"Log value\",DataLog!R1817,\"\")","v":""},{"$f":"IF(DataLog!$C1817=\"Log value\",DataLog!S1817,\"\")","v":""},{"$f":"IF(DataLog!$C1817=\"Log value\",DataLog!T1817,\"\")","v":""},{"$f":"IF(DataLog!$C1817=\"Log value\",DataLog!U1817,\"\")","v":""},{"$f":"IF(DataLog!$C1817=\"Log value\",DataLog!V1817,\"\")","v":""},{"$f":"IF(DataLog!$C1817=\"Log value\",DataLog!W1817,\"\")","v":""},{"$f":"IF(DataLog!$C1817=\"Log value\",DataLog!X1817,\"\")","v":""},{"$f":"IF(DataLog!$C1817=\"Log value\",DataLog!Y1817,\"\")","v":""},{"$f":"IF(DataLog!$C1817=\"Log value\",DataLog!Z1817,\"\")","v":""},{"$f":"IF(DataLog!$C1817=\"Log value\",DataLog!AA1817,\"\")","v":""},{"$f":"IF(DataLog!$C1817=\"Log value\",DataLog!AB1817,\"\")","v":""},{"$f":"IF(DataLog!$C1817=\"Log value\",DataLog!AC1817,\"\")","v":""},{"$f":"IF(DataLog!$C1817=\"Log value\",DataLog!AD1817,\"\")","v":""},{"$f":"IF(DataLog!$C1817=\"Log value\",DataLog!AE1817,\"\")","v":""},{"$f":"IF(DataLog!$C1817=\"Log value\",DataLog!AF1817,\"\")","v":""},{"$f":"IF(DataLog!$C1817=\"Log value\",DataLog!AG1817,\"\")","v":""},{"$f":"IF(DataLog!$C1817=\"Log value\",DataLog!AH1817,\"\")","v":""},{"$f":"IF(DataLog!$C1817=\"Log value\",DataLog!AI1817,\"\")","v":""},{"$f":"IF(DataLog!$C1817=\"Log value\",DataLog!AJ1817,\"\")","v":""},{"$f":"IF(DataLog!$C1817=\"Log value\",DataLog!AK1817,\"\")","v":""},{"$f":"IF(DataLog!$C1817=\"Log value\",DataLog!AL1817,\"\")","v":""},{"$f":"IF(DataLog!$C1817=\"Log value\",DataLog!AM1817,\"\")","v":""}]
[null,null,null,null,null,null,{"$f":"IF(DataLog!$C1820=\"Log value\",DataLog!D1820&\"_\"&TEXT(DataLog!B1820,\"åååå-mm-dd\"),\"\")","v":""},{"$f":"IF(DataLog!$C1820=\"Log value\",DataLog!E1820,\"\")","v":""},{"$f":"IF(DataLog!$C1820=\"Log value\",DataLog!F1820,\"\")","v":""},{"$f":"IF(DataLog!$C1820=\"Log value\",DataLog!G1820,\"\")","v":""},{"$f":"IF(DataLog!$C1820=\"Log value\",DataLog!H1820,\"\")","v":""},{"$f":"IF(DataLog!$C1820=\"Log value\",DataLog!I1820,\"\")","v":""},{"$f":"IF(DataLog!$C1820=\"Log value\",DataLog!J1820,\"\")","v":""},{"$f":"IF(DataLog!$C1820=\"Log value\",DataLog!K1820,\"\")","v":""},{"$f":"IF(DataLog!$C1820=\"Log value\",DataLog!L1820,\"\")","v":""},{"$f":"IF(DataLog!$C1820=\"Log value\",DataLog!M1820,\"\")","v":""},{"$f":"IF(DataLog!$C1820=\"Log value\",DataLog!N1820,\"\")","v":""},{"$f":"IF(DataLog!$C1820=\"Log value\",DataLog!O1820,\"\")","v":""},{"$f":"IF(DataLog!$C1820=\"Log value\",DataLog!P1820,\"\")","v":""},{"$f":"IF(DataLog!$C1820=\"Log value\",DataLog!Q1820,\"\")","v":""},{"$f":"IF(DataLog!$C1820=\"Log value\",DataLog!R1820,\"\")","v":""},{"$f":"IF(DataLog!$C1820=\"Log value\",DataLog!S1820,\"\")","v":""},{"$f":"IF(DataLog!$C1820=\"Log value\",DataLog!T1820,\"\")","v":""},{"$f":"IF(DataLog!$C1820=\"Log value\",DataLog!U1820,\"\")","v":""},{"$f":"IF(DataLog!$C1820=\"Log value\",DataLog!V1820,\"\")","v":""},{"$f":"IF(DataLog!$C1820=\"Log value\",DataLog!W1820,\"\")","v":""},{"$f":"IF(DataLog!$C1820=\"Log value\",DataLog!X1820,\"\")","v":""},{"$f":"IF(DataLog!$C1820=\"Log value\",DataLog!Y1820,\"\")","v":""},{"$f":"IF(DataLog!$C1820=\"Log value\",DataLog!Z1820,\"\")","v":""},{"$f":"IF(DataLog!$C1820=\"Log value\",DataLog!AA1820,\"\")","v":""},{"$f":"IF(DataLog!$C1820=\"Log value\",DataLog!AB1820,\"\")","v":""},{"$f":"IF(DataLog!$C1820=\"Log value\",DataLog!AC1820,\"\")","v":""},{"$f":"IF(DataLog!$C1820=\"Log value\",DataLog!AD1820,\"\")","v":""},{"$f":"IF(DataLog!$C1820=\"Log value\",DataLog!AE1820,\"\")","v":""},{"$f":"IF(DataLog!$C1820=\"Log value\",DataLog!AF1820,\"\")","v":""},{"$f":"IF(DataLog!$C1820=\"Log value\",DataLog!AG1820,\"\")","v":""},{"$f":"IF(DataLog!$C1820=\"Log value\",DataLog!AH1820,\"\")","v":""},{"$f":"IF(DataLog!$C1820=\"Log value\",DataLog!AI1820,\"\")","v":""},{"$f":"IF(DataLog!$C1820=\"Log value\",DataLog!AJ1820,\"\")","v":""},{"$f":"IF(DataLog!$C1820=\"Log value\",DataLog!AK1820,\"\")","v":""},{"$f":"IF(DataLog!$C1820=\"Log value\",DataLog!AL1820,\"\")","v":""},{"$f":"IF(DataLog!$C1820=\"Log value\",DataLog!AM1820,\"\")","v":""}]
[null,null,null,null,null,null,{"$f":"IF(DataLog!$C1823=\"Log value\",DataLog!D1823&\"_\"&TEXT(DataLog!B1823,\"åååå-mm-dd\"),\"\")","v":""},{"$f":"IF(DataLog!$C1823=\"Log value\",DataLog!E1823,\"\")","v":""},{"$f":"IF(DataLog!$C1823=\"Log value\",DataLog!F1823,\"\")","v":""},{"$f":"IF(DataLog!$C1823=\"Log value\",DataLog!G1823,\"\")","v":""},{"$f":"IF(DataLog!$C1823=\"Log value\",DataLog!H1823,\"\")","v":""},{"$f":"IF(DataLog!$C1823=\"Log value\",DataLog!I1823,\"\")","v":""},{"$f":"IF(DataLog!$C1823=\"Log value\",DataLog!J1823,\"\")","v":""},{"$f":"IF(DataLog!$C1823=\"Log value\",DataLog!K1823,\"\")","v":""},{"$f":"IF(DataLog!$C1823=\"Log value\",DataLog!L1823,\"\")","v":""},{"$f":"IF(DataLog!$C1823=\"Log value\",DataLog!M1823,\"\")","v":""},{"$f":"IF(DataLog!$C1823=\"Log value\",DataLog!N1823,\"\")","v":""},{"$f":"IF(DataLog!$C1823=\"Log value\",DataLog!O1823,\"\")","v":""},{"$f":"IF(DataLog!$C1823=\"Log value\",DataLog!P1823,\"\")","v":""},{"$f":"IF(DataLog!$C1823=\"Log value\",DataLog!Q1823,\"\")","v":""},{"$f":"IF(DataLog!$C1823=\"Log value\",DataLog!R1823,\"\")","v":""},{"$f":"IF(DataLog!$C1823=\"Log value\",DataLog!S1823,\"\")","v":""},{"$f":"IF(DataLog!$C1823=\"Log value\",DataLog!T1823,\"\")","v":""},{"$f":"IF(DataLog!$C1823=\"Log value\",DataLog!U1823,\"\")","v":""},{"$f":"IF(DataLog!$C1823=\"Log value\",DataLog!V1823,\"\")","v":""},{"$f":"IF(DataLog!$C1823=\"Log value\",DataLog!W1823,\"\")","v":""},{"$f":"IF(DataLog!$C1823=\"Log value\",DataLog!X1823,\"\")","v":""},{"$f":"IF(DataLog!$C1823=\"Log value\",DataLog!Y1823,\"\")","v":""},{"$f":"IF(DataLog!$C1823=\"Log value\",DataLog!Z1823,\"\")","v":""},{"$f":"IF(DataLog!$C1823=\"Log value\",DataLog!AA1823,\"\")","v":""},{"$f":"IF(DataLog!$C1823=\"Log value\",DataLog!AB1823,\"\")","v":""},{"$f":"IF(DataLog!$C1823=\"Log value\",DataLog!AC1823,\"\")","v":""},{"$f":"IF(DataLog!$C1823=\"Log value\",DataLog!AD1823,\"\")","v":""},{"$f":"IF(DataLog!$C1823=\"Log value\",DataLog!AE1823,\"\")","v":""},{"$f":"IF(DataLog!$C1823=\"Log value\",DataLog!AF1823,\"\")","v":""},{"$f":"IF(DataLog!$C1823=\"Log value\",DataLog!AG1823,\"\")","v":""},{"$f":"IF(DataLog!$C1823=\"Log value\",DataLog!AH1823,\"\")","v":""},{"$f":"IF(DataLog!$C1823=\"Log value\",DataLog!AI1823,\"\")","v":""},{"$f":"IF(DataLog!$C1823=\"Log value\",DataLog!AJ1823,\"\")","v":""},{"$f":"IF(DataLog!$C1823=\"Log value\",DataLog!AK1823,\"\")","v":""},{"$f":"IF(DataLog!$C1823=\"Log value\",DataLog!AL1823,\"\")","v":""},{"$f":"IF(DataLog!$C1823=\"Log value\",DataLog!AM1823,\"\")","v":""}]
[null,null,null,null,null,null,{"$f":"IF(DataLog!$C1824=\"Log value\",DataLog!D1824&\"_\"&TEXT(DataLog!B1824,\"åååå-mm-dd\"),\"\")","v":""},{"$f":"IF(DataLog!$C1824=\"Log value\",DataLog!E1824,\"\")","v":""},{"$f":"IF(DataLog!$C1824=\"Log value\",DataLog!F1824,\"\")","v":""},{"$f":"IF(DataLog!$C1824=\"Log value\",DataLog!G1824,\"\")","v":""},{"$f":"IF(DataLog!$C1824=\"Log value\",DataLog!H1824,\"\")","v":""},{"$f":"IF(DataLog!$C1824=\"Log value\",DataLog!I1824,\"\")","v":""},{"$f":"IF(DataLog!$C1824=\"Log value\",DataLog!J1824,\"\")","v":""},{"$f":"IF(DataLog!$C1824=\"Log value\",DataLog!K1824,\"\")","v":""},{"$f":"IF(DataLog!$C1824=\"Log value\",DataLog!L1824,\"\")","v":""},{"$f":"IF(DataLog!$C1824=\"Log value\",DataLog!M1824,\"\")","v":""},{"$f":"IF(DataLog!$C1824=\"Log value\",DataLog!N1824,\"\")","v":""},{"$f":"IF(DataLog!$C1824=\"Log value\",DataLog!O1824,\"\")","v":""},{"$f":"IF(DataLog!$C1824=\"Log value\",DataLog!P1824,\"\")","v":""},{"$f":"IF(DataLog!$C1824=\"Log value\",DataLog!Q1824,\"\")","v":""},{"$f":"IF(DataLog!$C1824=\"Log value\",DataLog!R1824,\"\")","v":""},{"$f":"IF(DataLog!$C1824=\"Log value\",DataLog!S1824,\"\")","v":""},{"$f":"IF(DataLog!$C1824=\"Log value\",DataLog!T1824,\"\")","v":""},{"$f":"IF(DataLog!$C1824=\"Log value\",DataLog!U1824,\"\")","v":""},{"$f":"IF(DataLog!$C1824=\"Log value\",DataLog!V1824,\"\")","v":""},{"$f":"IF(DataLog!$C1824=\"Log value\",DataLog!W1824,\"\")","v":""},{"$f":"IF(DataLog!$C1824=\"Log value\",DataLog!X1824,\"\")","v":""},{"$f":"IF(DataLog!$C1824=\"Log value\",DataLog!Y1824,\"\")","v":""},{"$f":"IF(DataLog!$C1824=\"Log value\",DataLog!Z1824,\"\")","v":""},{"$f":"IF(DataLog!$C1824=\"Log value\",DataLog!AA1824,\"\")","v":""},{"$f":"IF(DataLog!$C1824=\"Log value\",DataLog!AB1824,\"\")","v":""},{"$f":"IF(DataLog!$C1824=\"Log value\",DataLog!AC1824,\"\")","v":""},{"$f":"IF(DataLog!$C1824=\"Log value\",DataLog!AD1824,\"\")","v":""},{"$f":"IF(DataLog!$C1824=\"Log value\",DataLog!AE1824,\"\")","v":""},{"$f":"IF(DataLog!$C1824=\"Log value\",DataLog!AF1824,\"\")","v":""},{"$f":"IF(DataLog!$C1824=\"Log value\",DataLog!AG1824,\"\")","v":""},{"$f":"IF(DataLog!$C1824=\"Log value\",DataLog!AH1824,\"\")","v":""},{"$f":"IF(DataLog!$C1824=\"Log value\",DataLog!AI1824,\"\")","v":""},{"$f":"IF(DataLog!$C1824=\"Log value\",DataLog!AJ1824,\"\")","v":""},{"$f":"IF(DataLog!$C1824=\"Log value\",DataLog!AK1824,\"\")","v":""},{"$f":"IF(DataLog!$C1824=\"Log value\",DataLog!AL1824,\"\")","v":""},{"$f":"IF(DataLog!$C1824=\"Log value\",DataLog!AM1824,\"\")","v":""}]
[null,null,null,null,null,null,{"$f":"IF(DataLog!$C1828=\"Log value\",DataLog!D1828&\"_\"&TEXT(DataLog!B1828,\"åååå-mm-dd\"),\"\")","v":""},{"$f":"IF(DataLog!$C1828=\"Log value\",DataLog!E1828,\"\")","v":""},{"$f":"IF(DataLog!$C1828=\"Log value\",DataLog!F1828,\"\")","v":""},{"$f":"IF(DataLog!$C1828=\"Log value\",DataLog!G1828,\"\")","v":""},{"$f":"IF(DataLog!$C1828=\"Log value\",DataLog!H1828,\"\")","v":""},{"$f":"IF(DataLog!$C1828=\"Log value\",DataLog!I1828,\"\")","v":""},{"$f":"IF(DataLog!$C1828=\"Log value\",DataLog!J1828,\"\")","v":""},{"$f":"IF(DataLog!$C1828=\"Log value\",DataLog!K1828,\"\")","v":""},{"$f":"IF(DataLog!$C1828=\"Log value\",DataLog!L1828,\"\")","v":""},{"$f":"IF(DataLog!$C1828=\"Log value\",DataLog!M1828,\"\")","v":""},{"$f":"IF(DataLog!$C1828=\"Log value\",DataLog!N1828,\"\")","v":""},{"$f":"IF(DataLog!$C1828=\"Log value\",DataLog!O1828,\"\")","v":""},{"$f":"IF(DataLog!$C1828=\"Log value\",DataLog!P1828,\"\")","v":""},{"$f":"IF(DataLog!$C1828=\"Log value\",DataLog!Q1828,\"\")","v":""},{"$f":"IF(DataLog!$C1828=\"Log value\",DataLog!R1828,\"\")","v":""},{"$f":"IF(DataLog!$C1828=\"Log value\",DataLog!S1828,\"\")","v":""},{"$f":"IF(DataLog!$C1828=\"Log value\",DataLog!T1828,\"\")","v":""},{"$f":"IF(DataLog!$C1828=\"Log value\",DataLog!U1828,\"\")","v":""},{"$f":"IF(DataLog!$C1828=\"Log value\",DataLog!V1828,\"\")","v":""},{"$f":"IF(DataLog!$C1828=\"Log value\",DataLog!W1828,\"\")","v":""},{"$f":"IF(DataLog!$C1828=\"Log value\",DataLog!X1828,\"\")","v":""},{"$f":"IF(DataLog!$C1828=\"Log value\",DataLog!Y1828,\"\")","v":""},{"$f":"IF(DataLog!$C1828=\"Log value\",DataLog!Z1828,\"\")","v":""},{"$f":"IF(DataLog!$C1828=\"Log value\",DataLog!AA1828,\"\")","v":""},{"$f":"IF(DataLog!$C1828=\"Log value\",DataLog!AB1828,\"\")","v":""},{"$f":"IF(DataLog!$C1828=\"Log value\",DataLog!AC1828,\"\")","v":""},{"$f":"IF(DataLog!$C1828=\"Log value\",DataLog!AD1828,\"\")","v":""},{"$f":"IF(DataLog!$C1828=\"Log value\",DataLog!AE1828,\"\")","v":""},{"$f":"IF(DataLog!$C1828=\"Log value\",DataLog!AF1828,\"\")","v":""},{"$f":"IF(DataLog!$C1828=\"Log value\",DataLog!AG1828,\"\")","v":""},{"$f":"IF(DataLog!$C1828=\"Log value\",DataLog!AH1828,\"\")","v":""},{"$f":"IF(DataLog!$C1828=\"Log value\",DataLog!AI1828,\"\")","v":""},{"$f":"IF(DataLog!$C1828=\"Log value\",DataLog!AJ1828,\"\")","v":""},{"$f":"IF(DataLog!$C1828=\"Log value\",DataLog!AK1828,\"\")","v":""},{"$f":"IF(DataLog!$C1828=\"Log value\",DataLog!AL1828,\"\")","v":""},{"$f":"IF(DataLog!$C1828=\"Log value\",DataLog!AM1828,\"\")","v":""}]
[null,null,null,null,null,null,{"$f":"IF(DataLog!$C1829=\"Log value\",DataLog!D1829&\"_\"&TEXT(DataLog!B1829,\"åååå-mm-dd\"),\"\")","v":""},{"$f":"IF(DataLog!$C1829=\"Log value\",DataLog!E1829,\"\")","v":""},{"$f":"IF(DataLog!$C1829=\"Log value\",DataLog!F1829,\"\")","v":""},{"$f":"IF(DataLog!$C1829=\"Log value\",DataLog!G1829,\"\")","v":""},{"$f":"IF(DataLog!$C1829=\"Log value\",DataLog!H1829,\"\")","v":""},{"$f":"IF(DataLog!$C1829=\"Log value\",DataLog!I1829,\"\")","v":""},{"$f":"IF(DataLog!$C1829=\"Log value\",DataLog!J1829,\"\")","v":""},{"$f":"IF(DataLog!$C1829=\"Log value\",DataLog!K1829,\"\")","v":""},{"$f":"IF(DataLog!$C1829=\"Log value\",DataLog!L1829,\"\")","v":""},{"$f":"IF(DataLog!$C1829=\"Log value\",DataLog!M1829,\"\")","v":""},{"$f":"IF(DataLog!$C1829=\"Log value\",DataLog!N1829,\"\")","v":""},{"$f":"IF(DataLog!$C1829=\"Log value\",DataLog!O1829,\"\")","v":""},{"$f":"IF(DataLog!$C1829=\"Log value\",DataLog!P1829,\"\")","v":""},{"$f":"IF(DataLog!$C1829=\"Log value\",DataLog!Q1829,\"\")","v":""},{"$f":"IF(DataLog!$C1829=\"Log value\",DataLog!R1829,\"\")","v":""},{"$f":"IF(DataLog!$C1829=\"Log value\",DataLog!S1829,\"\")","v":""},{"$f":"IF(DataLog!$C1829=\"Log value\",DataLog!T1829,\"\")","v":""},{"$f":"IF(DataLog!$C1829=\"Log value\",DataLog!U1829,\"\")","v":""},{"$f":"IF(DataLog!$C1829=\"Log value\",DataLog!V1829,\"\")","v":""},{"$f":"IF(DataLog!$C1829=\"Log value\",DataLog!W1829,\"\")","v":""},{"$f":"IF(DataLog!$C1829=\"Log value\",DataLog!X1829,\"\")","v":""},{"$f":"IF(DataLog!$C1829=\"Log value\",DataLog!Y1829,\"\")","v":""},{"$f":"IF(DataLog!$C1829=\"Log value\",DataLog!Z1829,\"\")","v":""},{"$f":"IF(DataLog!$C1829=\"Log value\",DataLog!AA1829,\"\")","v":""},{"$f":"IF(DataLog!$C1829=\"Log value\",DataLog!AB1829,\"\")","v":""},{"$f":"IF(DataLog!$C1829=\"Log value\",DataLog!AC1829,\"\")","v":""},{"$f":"IF(DataLog!$C1829=\"Log value\",DataLog!AD1829,\"\")","v":""},{"$f":"IF(DataLog!$C1829=\"Log value\",DataLog!AE1829,\"\")","v":""},{"$f":"IF(DataLog!$C1829=\"Log value\",DataLog!AF1829,\"\")","v":""},{"$f":"IF(DataLog!$C1829=\"Log value\",DataLog!AG1829,\"\")","v":""},{"$f":"IF(DataLog!$C1829=\"Log value\",DataLog!AH1829,\"\")","v":""},{"$f":"IF(DataLog!$C1829=\"Log value\",DataLog!AI1829,\"\")","v":""},{"$f":"IF(DataLog!$C1829=\"Log value\",DataLog!AJ1829,\"\")","v":""},{"$f":"IF(DataLog!$C1829=\"Log value\",DataLog!AK1829,\"\")","v":""},{"$f":"IF(DataLog!$C1829=\"Log value\",DataLog!AL1829,\"\")","v":""},{"$f":"IF(DataLog!$C1829=\"Log value\",DataLog!AM1829,\"\")","v":""}]
[null,null,null,null,null,null,{"$f":"IF(DataLog!$C1832=\"Log value\",DataLog!D1832&\"_\"&TEXT(DataLog!B1832,\"åååå-mm-dd\"),\"\")","v":""},{"$f":"IF(DataLog!$C1832=\"Log value\",DataLog!E1832,\"\")","v":""},{"$f":"IF(DataLog!$C1832=\"Log value\",DataLog!F1832,\"\")","v":""},{"$f":"IF(DataLog!$C1832=\"Log value\",DataLog!G1832,\"\")","v":""},{"$f":"IF(DataLog!$C1832=\"Log value\",DataLog!H1832,\"\")","v":""},{"$f":"IF(DataLog!$C1832=\"Log value\",DataLog!I1832,\"\")","v":""},{"$f":"IF(DataLog!$C1832=\"Log value\",DataLog!J1832,\"\")","v":""},{"$f":"IF(DataLog!$C1832=\"Log value\",DataLog!K1832,\"\")","v":""},{"$f":"IF(DataLog!$C1832=\"Log value\",DataLog!L1832,\"\")","v":""},{"$f":"IF(DataLog!$C1832=\"Log value\",DataLog!M1832,\"\")","v":""},{"$f":"IF(DataLog!$C1832=\"Log value\",DataLog!N1832,\"\")","v":""},{"$f":"IF(DataLog!$C1832=\"Log value\",DataLog!O1832,\"\")","v":""},{"$f":"IF(DataLog!$C1832=\"Log value\",DataLog!P1832,\"\")","v":""},{"$f":"IF(DataLog!$C1832=\"Log value\",DataLog!Q1832,\"\")","v":""},{"$f":"IF(DataLog!$C1832=\"Log value\",DataLog!R1832,\"\")","v":""},{"$f":"IF(DataLog!$C1832=\"Log value\",DataLog!S1832,\"\")","v":""},{"$f":"IF(DataLog!$C1832=\"Log value\",DataLog!T1832,\"\")","v":""},{"$f":"IF(DataLog!$C1832=\"Log value\",DataLog!U1832,\"\")","v":""},{"$f":"IF(DataLog!$C1832=\"Log value\",DataLog!V1832,\"\")","v":""},{"$f":"IF(DataLog!$C1832=\"Log value\",DataLog!W1832,\"\")","v":""},{"$f":"IF(DataLog!$C1832=\"Log value\",DataLog!X1832,\"\")","v":""},{"$f":"IF(DataLog!$C1832=\"Log value\",DataLog!Y1832,\"\")","v":""},{"$f":"IF(DataLog!$C1832=\"Log value\",DataLog!Z1832,\"\")","v":""},{"$f":"IF(DataLog!$C1832=\"Log value\",DataLog!AA1832,\"\")","v":""},{"$f":"IF(DataLog!$C1832=\"Log value\",DataLog!AB1832,\"\")","v":""},{"$f":"IF(DataLog!$C1832=\"Log value\",DataLog!AC1832,\"\")","v":""},{"$f":"IF(DataLog!$C1832=\"Log value\",DataLog!AD1832,\"\")","v":""},{"$f":"IF(DataLog!$C1832=\"Log value\",DataLog!AE1832,\"\")","v":""},{"$f":"IF(DataLog!$C1832=\"Log value\",DataLog!AF1832,\"\")","v":""},{"$f":"IF(DataLog!$C1832=\"Log value\",DataLog!AG1832,\"\")","v":""},{"$f":"IF(DataLog!$C1832=\"Log value\",DataLog!AH1832,\"\")","v":""},{"$f":"IF(DataLog!$C1832=\"Log value\",DataLog!AI1832,\"\")","v":""},{"$f":"IF(DataLog!$C1832=\"Log value\",DataLog!AJ1832,\"\")","v":""},{"$f":"IF(DataLog!$C1832=\"Log value\",DataLog!AK1832,\"\")","v":""},{"$f":"IF(DataLog!$C1832=\"Log value\",DataLog!AL1832,\"\")","v":""},{"$f":"IF(DataLog!$C1832=\"Log value\",DataLog!AM1832,\"\")","v":""}]
[null,null,null,null,null,null,{"$f":"IF(DataLog!$C1833=\"Log value\",DataLog!D1833&\"_\"&TEXT(DataLog!B1833,\"åååå-mm-dd\"),\"\")","v":""},{"$f":"IF(DataLog!$C1833=\"Log value\",DataLog!E1833,\"\")","v":""},{"$f":"IF(DataLog!$C1833=\"Log value\",DataLog!F1833,\"\")","v":""},{"$f":"IF(DataLog!$C1833=\"Log value\",DataLog!G1833,\"\")","v":""},{"$f":"IF(DataLog!$C1833=\"Log value\",DataLog!H1833,\"\")","v":""},{"$f":"IF(DataLog!$C1833=\"Log value\",DataLog!I1833,\"\")","v":""},{"$f":"IF(DataLog!$C1833=\"Log value\",DataLog!J1833,\"\")","v":""},{"$f":"IF(DataLog!$C1833=\"Log value\",DataLog!K1833,\"\")","v":""},{"$f":"IF(DataLog!$C1833=\"Log value\",DataLog!L1833,\"\")","v":""},{"$f":"IF(DataLog!$C1833=\"Log value\",DataLog!M1833,\"\")","v":""},{"$f":"IF(DataLog!$C1833=\"Log value\",DataLog!N1833,\"\")","v":""},{"$f":"IF(DataLog!$C1833=\"Log value\",DataLog!O1833,\"\")","v":""},{"$f":"IF(DataLog!$C1833=\"Log value\",DataLog!P1833,\"\")","v":""},{"$f":"IF(DataLog!$C1833=\"Log value\",DataLog!Q1833,\"\")","v":""},{"$f":"IF(DataLog!$C1833=\"Log value\",DataLog!R1833,\"\")","v":""},{"$f":"IF(DataLog!$C1833=\"Log value\",DataLog!S1833,\"\")","v":""},{"$f":"IF(DataLog!$C1833=\"Log value\",DataLog!T1833,\"\")","v":""},{"$f":"IF(DataLog!$C1833=\"Log value\",DataLog!U1833,\"\")","v":""},{"$f":"IF(DataLog!$C1833=\"Log value\",DataLog!V1833,\"\")","v":""},{"$f":"IF(DataLog!$C1833=\"Log value\",DataLog!W1833,\"\")","v":""},{"$f":"IF(DataLog!$C1833=\"Log value\",DataLog!X1833,\"\")","v":""},{"$f":"IF(DataLog!$C1833=\"Log value\",DataLog!Y1833,\"\")","v":""},{"$f":"IF(DataLog!$C1833=\"Log value\",DataLog!Z1833,\"\")","v":""},{"$f":"IF(DataLog!$C1833=\"Log value\",DataLog!AA1833,\"\")","v":""},{"$f":"IF(DataLog!$C1833=\"Log value\",DataLog!AB1833,\"\")","v":""},{"$f":"IF(DataLog!$C1833=\"Log value\",DataLog!AC1833,\"\")","v":""},{"$f":"IF(DataLog!$C1833=\"Log value\",DataLog!AD1833,\"\")","v":""},{"$f":"IF(DataLog!$C1833=\"Log value\",DataLog!AE1833,\"\")","v":""},{"$f":"IF(DataLog!$C1833=\"Log value\",DataLog!AF1833,\"\")","v":""},{"$f":"IF(DataLog!$C1833=\"Log value\",DataLog!AG1833,\"\")","v":""},{"$f":"IF(DataLog!$C1833=\"Log value\",DataLog!AH1833,\"\")","v":""},{"$f":"IF(DataLog!$C1833=\"Log value\",DataLog!AI1833,\"\")","v":""},{"$f":"IF(DataLog!$C1833=\"Log value\",DataLog!AJ1833,\"\")","v":""},{"$f":"IF(DataLog!$C1833=\"Log value\",DataLog!AK1833,\"\")","v":""},{"$f":"IF(DataLog!$C1833=\"Log value\",DataLog!AL1833,\"\")","v":""},{"$f":"IF(DataLog!$C1833=\"Log value\",DataLog!AM1833,\"\")","v":""}]
[null,null,null,null,null,null,{"$f":"IF(DataLog!$C1835=\"Log value\",DataLog!D1835&\"_\"&TEXT(DataLog!B1835,\"åååå-mm-dd\"),\"\")","v":""},{"$f":"IF(DataLog!$C1835=\"Log value\",DataLog!E1835,\"\")","v":""},{"$f":"IF(DataLog!$C1835=\"Log value\",DataLog!F1835,\"\")","v":""},{"$f":"IF(DataLog!$C1835=\"Log value\",DataLog!G1835,\"\")","v":""},{"$f":"IF(DataLog!$C1835=\"Log value\",DataLog!H1835,\"\")","v":""},{"$f":"IF(DataLog!$C1835=\"Log value\",DataLog!I1835,\"\")","v":""},{"$f":"IF(DataLog!$C1835=\"Log value\",DataLog!J1835,\"\")","v":""},{"$f":"IF(DataLog!$C1835=\"Log value\",DataLog!K1835,\"\")","v":""},{"$f":"IF(DataLog!$C1835=\"Log value\",DataLog!L1835,\"\")","v":""},{"$f":"IF(DataLog!$C1835=\"Log value\",DataLog!M1835,\"\")","v":""},{"$f":"IF(DataLog!$C1835=\"Log value\",DataLog!N1835,\"\")","v":""},{"$f":"IF(DataLog!$C1835=\"Log value\",DataLog!O1835,\"\")","v":""},{"$f":"IF(DataLog!$C1835=\"Log value\",DataLog!P1835,\"\")","v":""},{"$f":"IF(DataLog!$C1835=\"Log value\",DataLog!Q1835,\"\")","v":""},{"$f":"IF(DataLog!$C1835=\"Log value\",DataLog!R1835,\"\")","v":""},{"$f":"IF(DataLog!$C1835=\"Log value\",DataLog!S1835,\"\")","v":""},{"$f":"IF(DataLog!$C1835=\"Log value\",DataLog!T1835,\"\")","v":""},{"$f":"IF(DataLog!$C1835=\"Log value\",DataLog!U1835,\"\")","v":""},{"$f":"IF(DataLog!$C1835=\"Log value\",DataLog!V1835,\"\")","v":""},{"$f":"IF(DataLog!$C1835=\"Log value\",DataLog!W1835,\"\")","v":""},{"$f":"IF(DataLog!$C1835=\"Log value\",DataLog!X1835,\"\")","v":""},{"$f":"IF(DataLog!$C1835=\"Log value\",DataLog!Y1835,\"\")","v":""},{"$f":"IF(DataLog!$C1835=\"Log value\",DataLog!Z1835,\"\")","v":""},{"$f":"IF(DataLog!$C1835=\"Log value\",DataLog!AA1835,\"\")","v":""},{"$f":"IF(DataLog!$C1835=\"Log value\",DataLog!AB1835,\"\")","v":""},{"$f":"IF(DataLog!$C1835=\"Log value\",DataLog!AC1835,\"\")","v":""},{"$f":"IF(DataLog!$C1835=\"Log value\",DataLog!AD1835,\"\")","v":""},{"$f":"IF(DataLog!$C1835=\"Log value\",DataLog!AE1835,\"\")","v":""},{"$f":"IF(DataLog!$C1835=\"Log value\",DataLog!AF1835,\"\")","v":""},{"$f":"IF(DataLog!$C1835=\"Log value\",DataLog!AG1835,\"\")","v":""},{"$f":"IF(DataLog!$C1835=\"Log value\",DataLog!AH1835,\"\")","v":""},{"$f":"IF(DataLog!$C1835=\"Log value\",DataLog!AI1835,\"\")","v":""},{"$f":"IF(DataLog!$C1835=\"Log value\",DataLog!AJ1835,\"\")","v":""},{"$f":"IF(DataLog!$C1835=\"Log value\",DataLog!AK1835,\"\")","v":""},{"$f":"IF(DataLog!$C1835=\"Log value\",DataLog!AL1835,\"\")","v":""},{"$f":"IF(DataLog!$C1835=\"Log value\",DataLog!AM1835,\"\")","v":""}]
[null,null,null,null,null,null,{"$f":"IF(DataLog!$C1838=\"Log value\",DataLog!D1838&\"_\"&TEXT(DataLog!B1838,\"åååå-mm-dd\"),\"\")","v":""},{"$f":"IF(DataLog!$C1838=\"Log value\",DataLog!E1838,\"\")","v":""},{"$f":"IF(DataLog!$C1838=\"Log value\",DataLog!F1838,\"\")","v":""},{"$f":"IF(DataLog!$C1838=\"Log value\",DataLog!G1838,\"\")","v":""},{"$f":"IF(DataLog!$C1838=\"Log value\",DataLog!H1838,\"\")","v":""},{"$f":"IF(DataLog!$C1838=\"Log value\",DataLog!I1838,\"\")","v":""},{"$f":"IF(DataLog!$C1838=\"Log value\",DataLog!J1838,\"\")","v":""},{"$f":"IF(DataLog!$C1838=\"Log value\",DataLog!K1838,\"\")","v":""},{"$f":"IF(DataLog!$C1838=\"Log value\",DataLog!L1838,\"\")","v":""},{"$f":"IF(DataLog!$C1838=\"Log value\",DataLog!M1838,\"\")","v":""},{"$f":"IF(DataLog!$C1838=\"Log value\",DataLog!N1838,\"\")","v":""},{"$f":"IF(DataLog!$C1838=\"Log value\",DataLog!O1838,\"\")","v":""},{"$f":"IF(DataLog!$C1838=\"Log value\",DataLog!P1838,\"\")","v":""},{"$f":"IF(DataLog!$C1838=\"Log value\",DataLog!Q1838,\"\")","v":""},{"$f":"IF(DataLog!$C1838=\"Log value\",DataLog!R1838,\"\")","v":""},{"$f":"IF(DataLog!$C1838=\"Log value\",DataLog!S1838,\"\")","v":""},{"$f":"IF(DataLog!$C1838=\"Log value\",DataLog!T1838,\"\")","v":""},{"$f":"IF(DataLog!$C1838=\"Log value\",DataLog!U1838,\"\")","v":""},{"$f":"IF(DataLog!$C1838=\"Log value\",DataLog!V1838,\"\")","v":""},{"$f":"IF(DataLog!$C1838=\"Log value\",DataLog!W1838,\"\")","v":""},{"$f":"IF(DataLog!$C1838=\"Log value\",DataLog!X1838,\"\")","v":""},{"$f":"IF(DataLog!$C1838=\"Log value\",DataLog!Y1838,\"\")","v":""},{"$f":"IF(DataLog!$C1838=\"Log value\",DataLog!Z1838,\"\")","v":""},{"$f":"IF(DataLog!$C1838=\"Log value\",DataLog!AA1838,\"\")","v":""},{"$f":"IF(DataLog!$C1838=\"Log value\",DataLog!AB1838,\"\")","v":""},{"$f":"IF(DataLog!$C1838=\"Log value\",DataLog!AC1838,\"\")","v":""},{"$f":"IF(DataLog!$C1838=\"Log value\",DataLog!AD1838,\"\")","v":""},{"$f":"IF(DataLog!$C1838=\"Log value\",DataLog!AE1838,\"\")","v":""},{"$f":"IF(DataLog!$C1838=\"Log value\",DataLog!AF1838,\"\")","v":""},{"$f":"IF(DataLog!$C1838=\"Log value\",DataLog!AG1838,\"\")","v":""},{"$f":"IF(DataLog!$C1838=\"Log value\",DataLog!AH1838,\"\")","v":""},{"$f":"IF(DataLog!$C1838=\"Log value\",DataLog!AI1838,\"\")","v":""},{"$f":"IF(DataLog!$C1838=\"Log value\",DataLog!AJ1838,\"\")","v":""},{"$f":"IF(DataLog!$C1838=\"Log value\",DataLog!AK1838,\"\")","v":""},{"$f":"IF(DataLog!$C1838=\"Log value\",DataLog!AL1838,\"\")","v":""},{"$f":"IF(DataLog!$C1838=\"Log value\",DataLog!AM1838,\"\")","v":""}]
[null,null,null,null,null,null,{"$f":"IF(DataLog!$C1841=\"Log value\",DataLog!D1841&\"_\"&TEXT(DataLog!B1841,\"åååå-mm-dd\"),\"\")","v":""},{"$f":"IF(DataLog!$C1841=\"Log value\",DataLog!E1841,\"\")","v":""},{"$f":"IF(DataLog!$C1841=\"Log value\",DataLog!F1841,\"\")","v":""},{"$f":"IF(DataLog!$C1841=\"Log value\",DataLog!G1841,\"\")","v":""},{"$f":"IF(DataLog!$C1841=\"Log value\",DataLog!H1841,\"\")","v":""},{"$f":"IF(DataLog!$C1841=\"Log value\",DataLog!I1841,\"\")","v":""},{"$f":"IF(DataLog!$C1841=\"Log value\",DataLog!J1841,\"\")","v":""},{"$f":"IF(DataLog!$C1841=\"Log value\",DataLog!K1841,\"\")","v":""},{"$f":"IF(DataLog!$C1841=\"Log value\",DataLog!L1841,\"\")","v":""},{"$f":"IF(DataLog!$C1841=\"Log value\",DataLog!M1841,\"\")","v":""},{"$f":"IF(DataLog!$C1841=\"Log value\",DataLog!N1841,\"\")","v":""},{"$f":"IF(DataLog!$C1841=\"Log value\",DataLog!O1841,\"\")","v":""},{"$f":"IF(DataLog!$C1841=\"Log value\",DataLog!P1841,\"\")","v":""},{"$f":"IF(DataLog!$C1841=\"Log value\",DataLog!Q1841,\"\")","v":""},{"$f":"IF(DataLog!$C1841=\"Log value\",DataLog!R1841,\"\")","v":""},{"$f":"IF(DataLog!$C1841=\"Log value\",DataLog!S1841,\"\")","v":""},{"$f":"IF(DataLog!$C1841=\"Log value\",DataLog!T1841,\"\")","v":""},{"$f":"IF(DataLog!$C1841=\"Log value\",DataLog!U1841,\"\")","v":""},{"$f":"IF(DataLog!$C1841=\"Log value\",DataLog!V1841,\"\")","v":""},{"$f":"IF(DataLog!$C1841=\"Log value\",DataLog!W1841,\"\")","v":""},{"$f":"IF(DataLog!$C1841=\"Log value\",DataLog!X1841,\"\")","v":""},{"$f":"IF(DataLog!$C1841=\"Log value\",DataLog!Y1841,\"\")","v":""},{"$f":"IF(DataLog!$C1841=\"Log value\",DataLog!Z1841,\"\")","v":""},{"$f":"IF(DataLog!$C1841=\"Log value\",DataLog!AA1841,\"\")","v":""},{"$f":"IF(DataLog!$C1841=\"Log value\",DataLog!AB1841,\"\")","v":""},{"$f":"IF(DataLog!$C1841=\"Log value\",DataLog!AC1841,\"\")","v":""},{"$f":"IF(DataLog!$C1841=\"Log value\",DataLog!AD1841,\"\")","v":""},{"$f":"IF(DataLog!$C1841=\"Log value\",DataLog!AE1841,\"\")","v":""},{"$f":"IF(DataLog!$C1841=\"Log value\",DataLog!AF1841,\"\")","v":""},{"$f":"IF(DataLog!$C1841=\"Log value\",DataLog!AG1841,\"\")","v":""},{"$f":"IF(DataLog!$C1841=\"Log value\",DataLog!AH1841,\"\")","v":""},{"$f":"IF(DataLog!$C1841=\"Log value\",DataLog!AI1841,\"\")","v":""},{"$f":"IF(DataLog!$C1841=\"Log value\",DataLog!AJ1841,\"\")","v":""},{"$f":"IF(DataLog!$C1841=\"Log value\",DataLog!AK1841,\"\")","v":""},{"$f":"IF(DataLog!$C1841=\"Log value\",DataLog!AL1841,\"\")","v":""},{"$f":"IF(DataLog!$C1841=\"Log value\",DataLog!AM1841,\"\")","v":""}]
[null,null,null,null,null,null,{"$f":"IF(DataLog!$C1843=\"Log value\",DataLog!D1843&\"_\"&TEXT(DataLog!B1843,\"åååå-mm-dd\"),\"\")","v":""},{"$f":"IF(DataLog!$C1843=\"Log value\",DataLog!E1843,\"\")","v":""},{"$f":"IF(DataLog!$C1843=\"Log value\",DataLog!F1843,\"\")","v":""},{"$f":"IF(DataLog!$C1843=\"Log value\",DataLog!G1843,\"\")","v":""},{"$f":"IF(DataLog!$C1843=\"Log value\",DataLog!H1843,\"\")","v":""},{"$f":"IF(DataLog!$C1843=\"Log value\",DataLog!I1843,\"\")","v":""},{"$f":"IF(DataLog!$C1843=\"Log value\",DataLog!J1843,\"\")","v":""},{"$f":"IF(DataLog!$C1843=\"Log value\",DataLog!K1843,\"\")","v":""},{"$f":"IF(DataLog!$C1843=\"Log value\",DataLog!L1843,\"\")","v":""},{"$f":"IF(DataLog!$C1843=\"Log value\",DataLog!M1843,\"\")","v":""},{"$f":"IF(DataLog!$C1843=\"Log value\",DataLog!N1843,\"\")","v":""},{"$f":"IF(DataLog!$C1843=\"Log value\",DataLog!O1843,\"\")","v":""},{"$f":"IF(DataLog!$C1843=\"Log value\",DataLog!P1843,\"\")","v":""},{"$f":"IF(DataLog!$C1843=\"Log value\",DataLog!Q1843,\"\")","v":""},{"$f":"IF(DataLog!$C1843=\"Log value\",DataLog!R1843,\"\")","v":""},{"$f":"IF(DataLog!$C1843=\"Log value\",DataLog!S1843,\"\")","v":""},{"$f":"IF(DataLog!$C1843=\"Log value\",DataLog!T1843,\"\")","v":""},{"$f":"IF(DataLog!$C1843=\"Log value\",DataLog!U1843,\"\")","v":""},{"$f":"IF(DataLog!$C1843=\"Log value\",DataLog!V1843,\"\")","v":""},{"$f":"IF(DataLog!$C1843=\"Log value\",DataLog!W1843,\"\")","v":""},{"$f":"IF(DataLog!$C1843=\"Log value\",DataLog!X1843,\"\")","v":""},{"$f":"IF(DataLog!$C1843=\"Log value\",DataLog!Y1843,\"\")","v":""},{"$f":"IF(DataLog!$C1843=\"Log value\",DataLog!Z1843,\"\")","v":""},{"$f":"IF(DataLog!$C1843=\"Log value\",DataLog!AA1843,\"\")","v":""},{"$f":"IF(DataLog!$C1843=\"Log value\",DataLog!AB1843,\"\")","v":""},{"$f":"IF(DataLog!$C1843=\"Log value\",DataLog!AC1843,\"\")","v":""},{"$f":"IF(DataLog!$C1843=\"Log value\",DataLog!AD1843,\"\")","v":""},{"$f":"IF(DataLog!$C1843=\"Log value\",DataLog!AE1843,\"\")","v":""},{"$f":"IF(DataLog!$C1843=\"Log value\",DataLog!AF1843,\"\")","v":""},{"$f":"IF(DataLog!$C1843=\"Log value\",DataLog!AG1843,\"\")","v":""},{"$f":"IF(DataLog!$C1843=\"Log value\",DataLog!AH1843,\"\")","v":""},{"$f":"IF(DataLog!$C1843=\"Log value\",DataLog!AI1843,\"\")","v":""},{"$f":"IF(DataLog!$C1843=\"Log value\",DataLog!AJ1843,\"\")","v":""},{"$f":"IF(DataLog!$C1843=\"Log value\",DataLog!AK1843,\"\")","v":""},{"$f":"IF(DataLog!$C1843=\"Log value\",DataLog!AL1843,\"\")","v":""},{"$f":"IF(DataLog!$C1843=\"Log value\",DataLog!AM1843,\"\")","v":""}]
[null,null,null,null,null,null,{"$f":"IF(DataLog!$C1846=\"Log value\",DataLog!D1846&\"_\"&TEXT(DataLog!B1846,\"åååå-mm-dd\"),\"\")","v":""},{"$f":"IF(DataLog!$C1846=\"Log value\",DataLog!E1846,\"\")","v":""},{"$f":"IF(DataLog!$C1846=\"Log value\",DataLog!F1846,\"\")","v":""},{"$f":"IF(DataLog!$C1846=\"Log value\",DataLog!G1846,\"\")","v":""},{"$f":"IF(DataLog!$C1846=\"Log value\",DataLog!H1846,\"\")","v":""},{"$f":"IF(DataLog!$C1846=\"Log value\",DataLog!I1846,\"\")","v":""},{"$f":"IF(DataLog!$C1846=\"Log value\",DataLog!J1846,\"\")","v":""},{"$f":"IF(DataLog!$C1846=\"Log value\",DataLog!K1846,\"\")","v":""},{"$f":"IF(DataLog!$C1846=\"Log value\",DataLog!L1846,\"\")","v":""},{"$f":"IF(DataLog!$C1846=\"Log value\",DataLog!M1846,\"\")","v":""},{"$f":"IF(DataLog!$C1846=\"Log value\",DataLog!N1846,\"\")","v":""},{"$f":"IF(DataLog!$C1846=\"Log value\",DataLog!O1846,\"\")","v":""},{"$f":"IF(DataLog!$C1846=\"Log value\",DataLog!P1846,\"\")","v":""},{"$f":"IF(DataLog!$C1846=\"Log value\",DataLog!Q1846,\"\")","v":""},{"$f":"IF(DataLog!$C1846=\"Log value\",DataLog!R1846,\"\")","v":""},{"$f":"IF(DataLog!$C1846=\"Log value\",DataLog!S1846,\"\")","v":""},{"$f":"IF(DataLog!$C1846=\"Log value\",DataLog!T1846,\"\")","v":""},{"$f":"IF(DataLog!$C1846=\"Log value\",DataLog!U1846,\"\")","v":""},{"$f":"IF(DataLog!$C1846=\"Log value\",DataLog!V1846,\"\")","v":""},{"$f":"IF(DataLog!$C1846=\"Log value\",DataLog!W1846,\"\")","v":""},{"$f":"IF(DataLog!$C1846=\"Log value\",DataLog!X1846,\"\")","v":""},{"$f":"IF(DataLog!$C1846=\"Log value\",DataLog!Y1846,\"\")","v":""},{"$f":"IF(DataLog!$C1846=\"Log value\",DataLog!Z1846,\"\")","v":""},{"$f":"IF(DataLog!$C1846=\"Log value\",DataLog!AA1846,\"\")","v":""},{"$f":"IF(DataLog!$C1846=\"Log value\",DataLog!AB1846,\"\")","v":""},{"$f":"IF(DataLog!$C1846=\"Log value\",DataLog!AC1846,\"\")","v":""},{"$f":"IF(DataLog!$C1846=\"Log value\",DataLog!AD1846,\"\")","v":""},{"$f":"IF(DataLog!$C1846=\"Log value\",DataLog!AE1846,\"\")","v":""},{"$f":"IF(DataLog!$C1846=\"Log value\",DataLog!AF1846,\"\")","v":""},{"$f":"IF(DataLog!$C1846=\"Log value\",DataLog!AG1846,\"\")","v":""},{"$f":"IF(DataLog!$C1846=\"Log value\",DataLog!AH1846,\"\")","v":""},{"$f":"IF(DataLog!$C1846=\"Log value\",DataLog!AI1846,\"\")","v":""},{"$f":"IF(DataLog!$C1846=\"Log value\",DataLog!AJ1846,\"\")","v":""},{"$f":"IF(DataLog!$C1846=\"Log value\",DataLog!AK1846,\"\")","v":""},{"$f":"IF(DataLog!$C1846=\"Log value\",DataLog!AL1846,\"\")","v":""},{"$f":"IF(DataLog!$C1846=\"Log value\",DataLog!AM1846,\"\")","v":""}]
[null,null,null,null,null,null,{"$f":"IF(DataLog!$C1847=\"Log value\",DataLog!D1847&\"_\"&TEXT(DataLog!B1847,\"åååå-mm-dd\"),\"\")","v":""},{"$f":"IF(DataLog!$C1847=\"Log value\",DataLog!E1847,\"\")","v":""},{"$f":"IF(DataLog!$C1847=\"Log value\",DataLog!F1847,\"\")","v":""},{"$f":"IF(DataLog!$C1847=\"Log value\",DataLog!G1847,\"\")","v":""},{"$f":"IF(DataLog!$C1847=\"Log value\",DataLog!H1847,\"\")","v":""},{"$f":"IF(DataLog!$C1847=\"Log value\",DataLog!I1847,\"\")","v":""},{"$f":"IF(DataLog!$C1847=\"Log value\",DataLog!J1847,\"\")","v":""},{"$f":"IF(DataLog!$C1847=\"Log value\",DataLog!K1847,\"\")","v":""},{"$f":"IF(DataLog!$C1847=\"Log value\",DataLog!L1847,\"\")","v":""},{"$f":"IF(DataLog!$C1847=\"Log value\",DataLog!M1847,\"\")","v":""},{"$f":"IF(DataLog!$C1847=\"Log value\",DataLog!N1847,\"\")","v":""},{"$f":"IF(DataLog!$C1847=\"Log value\",DataLog!O1847,\"\")","v":""},{"$f":"IF(DataLog!$C1847=\"Log value\",DataLog!P1847,\"\")","v":""},{"$f":"IF(DataLog!$C1847=\"Log value\",DataLog!Q1847,\"\")","v":""},{"$f":"IF(DataLog!$C1847=\"Log value\",DataLog!R1847,\"\")","v":""},{"$f":"IF(DataLog!$C1847=\"Log value\",DataLog!S1847,\"\")","v":""},{"$f":"IF(DataLog!$C1847=\"Log value\",DataLog!T1847,\"\")","v":""},{"$f":"IF(DataLog!$C1847=\"Log value\",DataLog!U1847,\"\")","v":""},{"$f":"IF(DataLog!$C1847=\"Log value\",DataLog!V1847,\"\")","v":""},{"$f":"IF(DataLog!$C1847=\"Log value\",DataLog!W1847,\"\")","v":""},{"$f":"IF(DataLog!$C1847=\"Log value\",DataLog!X1847,\"\")","v":""},{"$f":"IF(DataLog!$C1847=\"Log value\",DataLog!Y1847,\"\")","v":""},{"$f":"IF(DataLog!$C1847=\"Log value\",DataLog!Z1847,\"\")","v":""},{"$f":"IF(DataLog!$C1847=\"Log value\",DataLog!AA1847,\"\")","v":""},{"$f":"IF(DataLog!$C1847=\"Log value\",DataLog!AB1847,\"\")","v":""},{"$f":"IF(DataLog!$C1847=\"Log value\",DataLog!AC1847,\"\")","v":""},{"$f":"IF(DataLog!$C1847=\"Log value\",DataLog!AD1847,\"\")","v":""},{"$f":"IF(DataLog!$C1847=\"Log value\",DataLog!AE1847,\"\")","v":""},{"$f":"IF(DataLog!$C1847=\"Log value\",DataLog!AF1847,\"\")","v":""},{"$f":"IF(DataLog!$C1847=\"Log value\",DataLog!AG1847,\"\")","v":""},{"$f":"IF(DataLog!$C1847=\"Log value\",DataLog!AH1847,\"\")","v":""},{"$f":"IF(DataLog!$C1847=\"Log value\",DataLog!AI1847,\"\")","v":""},{"$f":"IF(DataLog!$C1847=\"Log value\",DataLog!AJ1847,\"\")","v":""},{"$f":"IF(DataLog!$C1847=\"Log value\",DataLog!AK1847,\"\")","v":""},{"$f":"IF(DataLog!$C1847=\"Log value\",DataLog!AL1847,\"\")","v":""},{"$f":"IF(DataLog!$C1847=\"Log value\",DataLog!AM1847,\"\")","v":""}]
[null,null,null,null,null,null,{"$f":"IF(DataLog!$C1850=\"Log value\",DataLog!D1850&\"_\"&TEXT(DataLog!B1850,\"åååå-mm-dd\"),\"\")","v":""},{"$f":"IF(DataLog!$C1850=\"Log value\",DataLog!E1850,\"\")","v":""},{"$f":"IF(DataLog!$C1850=\"Log value\",DataLog!F1850,\"\")","v":""},{"$f":"IF(DataLog!$C1850=\"Log value\",DataLog!G1850,\"\")","v":""},{"$f":"IF(DataLog!$C1850=\"Log value\",DataLog!H1850,\"\")","v":""},{"$f":"IF(DataLog!$C1850=\"Log value\",DataLog!I1850,\"\")","v":""},{"$f":"IF(DataLog!$C1850=\"Log value\",DataLog!J1850,\"\")","v":""},{"$f":"IF(DataLog!$C1850=\"Log value\",DataLog!K1850,\"\")","v":""},{"$f":"IF(DataLog!$C1850=\"Log value\",DataLog!L1850,\"\")","v":""},{"$f":"IF(DataLog!$C1850=\"Log value\",DataLog!M1850,\"\")","v":""},{"$f":"IF(DataLog!$C1850=\"Log value\",DataLog!N1850,\"\")","v":""},{"$f":"IF(DataLog!$C1850=\"Log value\",DataLog!O1850,\"\")","v":""},{"$f":"IF(DataLog!$C1850=\"Log value\",DataLog!P1850,\"\")","v":""},{"$f":"IF(DataLog!$C1850=\"Log value\",DataLog!Q1850,\"\")","v":""},{"$f":"IF(DataLog!$C1850=\"Log value\",DataLog!R1850,\"\")","v":""},{"$f":"IF(DataLog!$C1850=\"Log value\",DataLog!S1850,\"\")","v":""},{"$f":"IF(DataLog!$C1850=\"Log value\",DataLog!T1850,\"\")","v":""},{"$f":"IF(DataLog!$C1850=\"Log value\",DataLog!U1850,\"\")","v":""},{"$f":"IF(DataLog!$C1850=\"Log value\",DataLog!V1850,\"\")","v":""},{"$f":"IF(DataLog!$C1850=\"Log value\",DataLog!W1850,\"\")","v":""},{"$f":"IF(DataLog!$C1850=\"Log value\",DataLog!X1850,\"\")","v":""},{"$f":"IF(DataLog!$C1850=\"Log value\",DataLog!Y1850,\"\")","v":""},{"$f":"IF(DataLog!$C1850=\"Log value\",DataLog!Z1850,\"\")","v":""},{"$f":"IF(DataLog!$C1850=\"Log value\",DataLog!AA1850,\"\")","v":""},{"$f":"IF(DataLog!$C1850=\"Log value\",DataLog!AB1850,\"\")","v":""},{"$f":"IF(DataLog!$C1850=\"Log value\",DataLog!AC1850,\"\")","v":""},{"$f":"IF(DataLog!$C1850=\"Log value\",DataLog!AD1850,\"\")","v":""},{"$f":"IF(DataLog!$C1850=\"Log value\",DataLog!AE1850,\"\")","v":""},{"$f":"IF(DataLog!$C1850=\"Log value\",DataLog!AF1850,\"\")","v":""},{"$f":"IF(DataLog!$C1850=\"Log value\",DataLog!AG1850,\"\")","v":""},{"$f":"IF(DataLog!$C1850=\"Log value\",DataLog!AH1850,\"\")","v":""},{"$f":"IF(DataLog!$C1850=\"Log value\",DataLog!AI1850,\"\")","v":""},{"$f":"IF(DataLog!$C1850=\"Log value\",DataLog!AJ1850,\"\")","v":""},{"$f":"IF(DataLog!$C1850=\"Log value\",DataLog!AK1850,\"\")","v":""},{"$f":"IF(DataLog!$C1850=\"Log value\",DataLog!AL1850,\"\")","v":""},{"$f":"IF(DataLog!$C1850=\"Log value\",DataLog!AM1850,\"\")","v":""}]
[null,null,null,null,null,null,{"$f":"IF(DataLog!$C1851=\"Log value\",DataLog!D1851&\"_\"&TEXT(DataLog!B1851,\"åååå-mm-dd\"),\"\")","v":""},{"$f":"IF(DataLog!$C1851=\"Log value\",DataLog!E1851,\"\")","v":""},{"$f":"IF(DataLog!$C1851=\"Log value\",DataLog!F1851,\"\")","v":""},{"$f":"IF(DataLog!$C1851=\"Log value\",DataLog!G1851,\"\")","v":""},{"$f":"IF(DataLog!$C1851=\"Log value\",DataLog!H1851,\"\")","v":""},{"$f":"IF(DataLog!$C1851=\"Log value\",DataLog!I1851,\"\")","v":""},{"$f":"IF(DataLog!$C1851=\"Log value\",DataLog!J1851,\"\")","v":""},{"$f":"IF(DataLog!$C1851=\"Log value\",DataLog!K1851,\"\")","v":""},{"$f":"IF(DataLog!$C1851=\"Log value\",DataLog!L1851,\"\")","v":""},{"$f":"IF(DataLog!$C1851=\"Log value\",DataLog!M1851,\"\")","v":""},{"$f":"IF(DataLog!$C1851=\"Log value\",DataLog!N1851,\"\")","v":""},{"$f":"IF(DataLog!$C1851=\"Log value\",DataLog!O1851,\"\")","v":""},{"$f":"IF(DataLog!$C1851=\"Log value\",DataLog!P1851,\"\")","v":""},{"$f":"IF(DataLog!$C1851=\"Log value\",DataLog!Q1851,\"\")","v":""},{"$f":"IF(DataLog!$C1851=\"Log value\",DataLog!R1851,\"\")","v":""},{"$f":"IF(DataLog!$C1851=\"Log value\",DataLog!S1851,\"\")","v":""},{"$f":"IF(DataLog!$C1851=\"Log value\",DataLog!T1851,\"\")","v":""},{"$f":"IF(DataLog!$C1851=\"Log value\",DataLog!U1851,\"\")","v":""},{"$f":"IF(DataLog!$C1851=\"Log value\",DataLog!V1851,\"\")","v":""},{"$f":"IF(DataLog!$C1851=\"Log value\",DataLog!W1851,\"\")","v":""},{"$f":"IF(DataLog!$C1851=\"Log value\",DataLog!X1851,\"\")","v":""},{"$f":"IF(DataLog!$C1851=\"Log value\",DataLog!Y1851,\"\")","v":""},{"$f":"IF(DataLog!$C1851=\"Log value\",DataLog!Z1851,\"\")","v":""},{"$f":"IF(DataLog!$C1851=\"Log value\",DataLog!AA1851,\"\")","v":""},{"$f":"IF(DataLog!$C1851=\"Log value\",DataLog!AB1851,\"\")","v":""},{"$f":"IF(DataLog!$C1851=\"Log value\",DataLog!AC1851,\"\")","v":""},{"$f":"IF(DataLog!$C1851=\"Log value\",DataLog!AD1851,\"\")","v":""},{"$f":"IF(DataLog!$C1851=\"Log value\",DataLog!AE1851,\"\")","v":""},{"$f":"IF(DataLog!$C1851=\"Log value\",DataLog!AF1851,\"\")","v":""},{"$f":"IF(DataLog!$C1851=\"Log value\",DataLog!AG1851,\"\")","v":""},{"$f":"IF(DataLog!$C1851=\"Log value\",DataLog!AH1851,\"\")","v":""},{"$f":"IF(DataLog!$C1851=\"Log value\",DataLog!AI1851,\"\")","v":""},{"$f":"IF(DataLog!$C1851=\"Log value\",DataLog!AJ1851,\"\")","v":""},{"$f":"IF(DataLog!$C1851=\"Log value\",DataLog!AK1851,\"\")","v":""},{"$f":"IF(DataLog!$C1851=\"Log value\",DataLog!AL1851,\"\")","v":""},{"$f":"IF(DataLog!$C1851=\"Log value\",DataLog!AM1851,\"\")","v":""}]
[null,null,null,null,null,null,{"$f":"IF(DataLog!$C1855=\"Log value\",DataLog!D1855&\"_\"&TEXT(DataLog!B1855,\"åååå-mm-dd\"),\"\")","v":""},{"$f":"IF(DataLog!$C1855=\"Log value\",DataLog!E1855,\"\")","v":""},{"$f":"IF(DataLog!$C1855=\"Log value\",DataLog!F1855,\"\")","v":""},{"$f":"IF(DataLog!$C1855=\"Log value\",DataLog!G1855,\"\")","v":""},{"$f":"IF(DataLog!$C1855=\"Log value\",DataLog!H1855,\"\")","v":""},{"$f":"IF(DataLog!$C1855=\"Log value\",DataLog!I1855,\"\")","v":""},{"$f":"IF(DataLog!$C1855=\"Log value\",DataLog!J1855,\"\")","v":""},{"$f":"IF(DataLog!$C1855=\"Log value\",DataLog!K1855,\"\")","v":""},{"$f":"IF(DataLog!$C1855=\"Log value\",DataLog!L1855,\"\")","v":""},{"$f":"IF(DataLog!$C1855=\"Log value\",DataLog!M1855,\"\")","v":""},{"$f":"IF(DataLog!$C1855=\"Log value\",DataLog!N1855,\"\")","v":""},{"$f":"IF(DataLog!$C1855=\"Log value\",DataLog!O1855,\"\")","v":""},{"$f":"IF(DataLog!$C1855=\"Log value\",DataLog!P1855,\"\")","v":""},{"$f":"IF(DataLog!$C1855=\"Log value\",DataLog!Q1855,\"\")","v":""},{"$f":"IF(DataLog!$C1855=\"Log value\",DataLog!R1855,\"\")","v":""},{"$f":"IF(DataLog!$C1855=\"Log value\",DataLog!S1855,\"\")","v":""},{"$f":"IF(DataLog!$C1855=\"Log value\",DataLog!T1855,\"\")","v":""},{"$f":"IF(DataLog!$C1855=\"Log value\",DataLog!U1855,\"\")","v":""},{"$f":"IF(DataLog!$C1855=\"Log value\",DataLog!V1855,\"\")","v":""},{"$f":"IF(DataLog!$C1855=\"Log value\",DataLog!W1855,\"\")","v":""},{"$f":"IF(DataLog!$C1855=\"Log value\",DataLog!X1855,\"\")","v":""},{"$f":"IF(DataLog!$C1855=\"Log value\",DataLog!Y1855,\"\")","v":""},{"$f":"IF(DataLog!$C1855=\"Log value\",DataLog!Z1855,\"\")","v":""},{"$f":"IF(DataLog!$C1855=\"Log value\",DataLog!AA1855,\"\")","v":""},{"$f":"IF(DataLog!$C1855=\"Log value\",DataLog!AB1855,\"\")","v":""},{"$f":"IF(DataLog!$C1855=\"Log value\",DataLog!AC1855,\"\")","v":""},{"$f":"IF(DataLog!$C1855=\"Log value\",DataLog!AD1855,\"\")","v":""},{"$f":"IF(DataLog!$C1855=\"Log value\",DataLog!AE1855,\"\")","v":""},{"$f":"IF(DataLog!$C1855=\"Log value\",DataLog!AF1855,\"\")","v":""},{"$f":"IF(DataLog!$C1855=\"Log value\",DataLog!AG1855,\"\")","v":""},{"$f":"IF(DataLog!$C1855=\"Log value\",DataLog!AH1855,\"\")","v":""},{"$f":"IF(DataLog!$C1855=\"Log value\",DataLog!AI1855,\"\")","v":""},{"$f":"IF(DataLog!$C1855=\"Log value\",DataLog!AJ1855,\"\")","v":""},{"$f":"IF(DataLog!$C1855=\"Log value\",DataLog!AK1855,\"\")","v":""},{"$f":"IF(DataLog!$C1855=\"Log value\",DataLog!AL1855,\"\")","v":""},{"$f":"IF(DataLog!$C1855=\"Log value\",DataLog!AM1855,\"\")","v":""}]
[null,null,null,null,null,null,{"$f":"IF(DataLog!$C1856=\"Log value\",DataLog!D1856&\"_\"&TEXT(DataLog!B1856,\"åååå-mm-dd\"),\"\")","v":""},{"$f":"IF(DataLog!$C1856=\"Log value\",DataLog!E1856,\"\")","v":""},{"$f":"IF(DataLog!$C1856=\"Log value\",DataLog!F1856,\"\")","v":""},{"$f":"IF(DataLog!$C1856=\"Log value\",DataLog!G1856,\"\")","v":""},{"$f":"IF(DataLog!$C1856=\"Log value\",DataLog!H1856,\"\")","v":""},{"$f":"IF(DataLog!$C1856=\"Log value\",DataLog!I1856,\"\")","v":""},{"$f":"IF(DataLog!$C1856=\"Log value\",DataLog!J1856,\"\")","v":""},{"$f":"IF(DataLog!$C1856=\"Log value\",DataLog!K1856,\"\")","v":""},{"$f":"IF(DataLog!$C1856=\"Log value\",DataLog!L1856,\"\")","v":""},{"$f":"IF(DataLog!$C1856=\"Log value\",DataLog!M1856,\"\")","v":""},{"$f":"IF(DataLog!$C1856=\"Log value\",DataLog!N1856,\"\")","v":""},{"$f":"IF(DataLog!$C1856=\"Log value\",DataLog!O1856,\"\")","v":""},{"$f":"IF(DataLog!$C1856=\"Log value\",DataLog!P1856,\"\")","v":""},{"$f":"IF(DataLog!$C1856=\"Log value\",DataLog!Q1856,\"\")","v":""},{"$f":"IF(DataLog!$C1856=\"Log value\",DataLog!R1856,\"\")","v":""},{"$f":"IF(DataLog!$C1856=\"Log value\",DataLog!S1856,\"\")","v":""},{"$f":"IF(DataLog!$C1856=\"Log value\",DataLog!T1856,\"\")","v":""},{"$f":"IF(DataLog!$C1856=\"Log value\",DataLog!U1856,\"\")","v":""},{"$f":"IF(DataLog!$C1856=\"Log value\",DataLog!V1856,\"\")","v":""},{"$f":"IF(DataLog!$C1856=\"Log value\",DataLog!W1856,\"\")","v":""},{"$f":"IF(DataLog!$C1856=\"Log value\",DataLog!X1856,\"\")","v":""},{"$f":"IF(DataLog!$C1856=\"Log value\",DataLog!Y1856,\"\")","v":""},{"$f":"IF(DataLog!$C1856=\"Log value\",DataLog!Z1856,\"\")","v":""},{"$f":"IF(DataLog!$C1856=\"Log value\",DataLog!AA1856,\"\")","v":""},{"$f":"IF(DataLog!$C1856=\"Log value\",DataLog!AB1856,\"\")","v":""},{"$f":"IF(DataLog!$C1856=\"Log value\",DataLog!AC1856,\"\")","v":""},{"$f":"IF(DataLog!$C1856=\"Log value\",DataLog!AD1856,\"\")","v":""},{"$f":"IF(DataLog!$C1856=\"Log value\",DataLog!AE1856,\"\")","v":""},{"$f":"IF(DataLog!$C1856=\"Log value\",DataLog!AF1856,\"\")","v":""},{"$f":"IF(DataLog!$C1856=\"Log value\",DataLog!AG1856,\"\")","v":""},{"$f":"IF(DataLog!$C1856=\"Log value\",DataLog!AH1856,\"\")","v":""},{"$f":"IF(DataLog!$C1856=\"Log value\",DataLog!AI1856,\"\")","v":""},{"$f":"IF(DataLog!$C1856=\"Log value\",DataLog!AJ1856,\"\")","v":""},{"$f":"IF(DataLog!$C1856=\"Log value\",DataLog!AK1856,\"\")","v":""},{"$f":"IF(DataLog!$C1856=\"Log value\",DataLog!AL1856,\"\")","v":""},{"$f":"IF(DataLog!$C1856=\"Log value\",DataLog!AM1856,\"\")","v":""}]
[null,null,null,null,null,null,{"$f":"IF(DataLog!$C1859=\"Log value\",DataLog!D1859&\"_\"&TEXT(DataLog!B1859,\"åååå-mm-dd\"),\"\")","v":""},{"$f":"IF(DataLog!$C1859=\"Log value\",DataLog!E1859,\"\")","v":""},{"$f":"IF(DataLog!$C1859=\"Log value\",DataLog!F1859,\"\")","v":""},{"$f":"IF(DataLog!$C1859=\"Log value\",DataLog!G1859,\"\")","v":""},{"$f":"IF(DataLog!$C1859=\"Log value\",DataLog!H1859,\"\")","v":""},{"$f":"IF(DataLog!$C1859=\"Log value\",DataLog!I1859,\"\")","v":""},{"$f":"IF(DataLog!$C1859=\"Log value\",DataLog!J1859,\"\")","v":""},{"$f":"IF(DataLog!$C1859=\"Log value\",DataLog!K1859,\"\")","v":""},{"$f":"IF(DataLog!$C1859=\"Log value\",DataLog!L1859,\"\")","v":""},{"$f":"IF(DataLog!$C1859=\"Log value\",DataLog!M1859,\"\")","v":""},{"$f":"IF(DataLog!$C1859=\"Log value\",DataLog!N1859,\"\")","v":""},{"$f":"IF(DataLog!$C1859=\"Log value\",DataLog!O1859,\"\")","v":""},{"$f":"IF(DataLog!$C1859=\"Log value\",DataLog!P1859,\"\")","v":""},{"$f":"IF(DataLog!$C1859=\"Log value\",DataLog!Q1859,\"\")","v":""},{"$f":"IF(DataLog!$C1859=\"Log value\",DataLog!R1859,\"\")","v":""},{"$f":"IF(DataLog!$C1859=\"Log value\",DataLog!S1859,\"\")","v":""},{"$f":"IF(DataLog!$C1859=\"Log value\",DataLog!T1859,\"\")","v":""},{"$f":"IF(DataLog!$C1859=\"Log value\",DataLog!U1859,\"\")","v":""},{"$f":"IF(DataLog!$C1859=\"Log value\",DataLog!V1859,\"\")","v":""},{"$f":"IF(DataLog!$C1859=\"Log value\",DataLog!W1859,\"\")","v":""},{"$f":"IF(DataLog!$C1859=\"Log value\",DataLog!X1859,\"\")","v":""},{"$f":"IF(DataLog!$C1859=\"Log value\",DataLog!Y1859,\"\")","v":""},{"$f":"IF(DataLog!$C1859=\"Log value\",DataLog!Z1859,\"\")","v":""},{"$f":"IF(DataLog!$C1859=\"Log value\",DataLog!AA1859,\"\")","v":""},{"$f":"IF(DataLog!$C1859=\"Log value\",DataLog!AB1859,\"\")","v":""},{"$f":"IF(DataLog!$C1859=\"Log value\",DataLog!AC1859,\"\")","v":""},{"$f":"IF(DataLog!$C1859=\"Log value\",DataLog!AD1859,\"\")","v":""},{"$f":"IF(DataLog!$C1859=\"Log value\",DataLog!AE1859,\"\")","v":""},{"$f":"IF(DataLog!$C1859=\"Log value\",DataLog!AF1859,\"\")","v":""},{"$f":"IF(DataLog!$C1859=\"Log value\",DataLog!AG1859,\"\")","v":""},{"$f":"IF(DataLog!$C1859=\"Log value\",DataLog!AH1859,\"\")","v":""},{"$f":"IF(DataLog!$C1859=\"Log value\",DataLog!AI1859,\"\")","v":""},{"$f":"IF(DataLog!$C1859=\"Log value\",DataLog!AJ1859,\"\")","v":""},{"$f":"IF(DataLog!$C1859=\"Log value\",DataLog!AK1859,\"\")","v":""},{"$f":"IF(DataLog!$C1859=\"Log value\",DataLog!AL1859,\"\")","v":""},{"$f":"IF(DataLog!$C1859=\"Log value\",DataLog!AM1859,\"\")","v":""}]
[null,null,null,null,null,null,{"$f":"IF(DataLog!$C1861=\"Log value\",DataLog!D1861&\"_\"&TEXT(DataLog!B1861,\"åååå-mm-dd\"),\"\")","v":""},{"$f":"IF(DataLog!$C1861=\"Log value\",DataLog!E1861,\"\")","v":""},{"$f":"IF(DataLog!$C1861=\"Log value\",DataLog!F1861,\"\")","v":""},{"$f":"IF(DataLog!$C1861=\"Log value\",DataLog!G1861,\"\")","v":""},{"$f":"IF(DataLog!$C1861=\"Log value\",DataLog!H1861,\"\")","v":""},{"$f":"IF(DataLog!$C1861=\"Log value\",DataLog!I1861,\"\")","v":""},{"$f":"IF(DataLog!$C1861=\"Log value\",DataLog!J1861,\"\")","v":""},{"$f":"IF(DataLog!$C1861=\"Log value\",DataLog!K1861,\"\")","v":""},{"$f":"IF(DataLog!$C1861=\"Log value\",DataLog!L1861,\"\")","v":""},{"$f":"IF(DataLog!$C1861=\"Log value\",DataLog!M1861,\"\")","v":""},{"$f":"IF(DataLog!$C1861=\"Log value\",DataLog!N1861,\"\")","v":""},{"$f":"IF(DataLog!$C1861=\"Log value\",DataLog!O1861,\"\")","v":""},{"$f":"IF(DataLog!$C1861=\"Log value\",DataLog!P1861,\"\")","v":""},{"$f":"IF(DataLog!$C1861=\"Log value\",DataLog!Q1861,\"\")","v":""},{"$f":"IF(DataLog!$C1861=\"Log value\",DataLog!R1861,\"\")","v":""},{"$f":"IF(DataLog!$C1861=\"Log value\",DataLog!S1861,\"\")","v":""},{"$f":"IF(DataLog!$C1861=\"Log value\",DataLog!T1861,\"\")","v":""},{"$f":"IF(DataLog!$C1861=\"Log value\",DataLog!U1861,\"\")","v":""},{"$f":"IF(DataLog!$C1861=\"Log value\",DataLog!V1861,\"\")","v":""},{"$f":"IF(DataLog!$C1861=\"Log value\",DataLog!W1861,\"\")","v":""},{"$f":"IF(DataLog!$C1861=\"Log value\",DataLog!X1861,\"\")","v":""},{"$f":"IF(DataLog!$C1861=\"Log value\",DataLog!Y1861,\"\")","v":""},{"$f":"IF(DataLog!$C1861=\"Log value\",DataLog!Z1861,\"\")","v":""},{"$f":"IF(DataLog!$C1861=\"Log value\",DataLog!AA1861,\"\")","v":""},{"$f":"IF(DataLog!$C1861=\"Log value\",DataLog!AB1861,\"\")","v":""},{"$f":"IF(DataLog!$C1861=\"Log value\",DataLog!AC1861,\"\")","v":""},{"$f":"IF(DataLog!$C1861=\"Log value\",DataLog!AD1861,\"\")","v":""},{"$f":"IF(DataLog!$C1861=\"Log value\",DataLog!AE1861,\"\")","v":""},{"$f":"IF(DataLog!$C1861=\"Log value\",DataLog!AF1861,\"\")","v":""},{"$f":"IF(DataLog!$C1861=\"Log value\",DataLog!AG1861,\"\")","v":""},{"$f":"IF(DataLog!$C1861=\"Log value\",DataLog!AH1861,\"\")","v":""},{"$f":"IF(DataLog!$C1861=\"Log value\",DataLog!AI1861,\"\")","v":""},{"$f":"IF(DataLog!$C1861=\"Log value\",DataLog!AJ1861,\"\")","v":""},{"$f":"IF(DataLog!$C1861=\"Log value\",DataLog!AK1861,\"\")","v":""},{"$f":"IF(DataLog!$C1861=\"Log value\",DataLog!AL1861,\"\")","v":""},{"$f":"IF(DataLog!$C1861=\"Log value\",DataLog!AM1861,\"\")","v":""}]
[null,null,null,null,null,null,{"$f":"IF(DataLog!$C1864=\"Log value\",DataLog!D1864&\"_\"&TEXT(DataLog!B1864,\"åååå-mm-dd\"),\"\")","v":""},{"$f":"IF(DataLog!$C1864=\"Log value\",DataLog!E1864,\"\")","v":""},{"$f":"IF(DataLog!$C1864=\"Log value\",DataLog!F1864,\"\")","v":""},{"$f":"IF(DataLog!$C1864=\"Log value\",DataLog!G1864,\"\")","v":""},{"$f":"IF(DataLog!$C1864=\"Log value\",DataLog!H1864,\"\")","v":""},{"$f":"IF(DataLog!$C1864=\"Log value\",DataLog!I1864,\"\")","v":""},{"$f":"IF(DataLog!$C1864=\"Log value\",DataLog!J1864,\"\")","v":""},{"$f":"IF(DataLog!$C1864=\"Log value\",DataLog!K1864,\"\")","v":""},{"$f":"IF(DataLog!$C1864=\"Log value\",DataLog!L1864,\"\")","v":""},{"$f":"IF(DataLog!$C1864=\"Log value\",DataLog!M1864,\"\")","v":""},{"$f":"IF(DataLog!$C1864=\"Log value\",DataLog!N1864,\"\")","v":""},{"$f":"IF(DataLog!$C1864=\"Log value\",DataLog!O1864,\"\")","v":""},{"$f":"IF(DataLog!$C1864=\"Log value\",DataLog!P1864,\"\")","v":""},{"$f":"IF(DataLog!$C1864=\"Log value\",DataLog!Q1864,\"\")","v":""},{"$f":"IF(DataLog!$C1864=\"Log value\",DataLog!R1864,\"\")","v":""},{"$f":"IF(DataLog!$C1864=\"Log value\",DataLog!S1864,\"\")","v":""},{"$f":"IF(DataLog!$C1864=\"Log value\",DataLog!T1864,\"\")","v":""},{"$f":"IF(DataLog!$C1864=\"Log value\",DataLog!U1864,\"\")","v":""},{"$f":"IF(DataLog!$C1864=\"Log value\",DataLog!V1864,\"\")","v":""},{"$f":"IF(DataLog!$C1864=\"Log value\",DataLog!W1864,\"\")","v":""},{"$f":"IF(DataLog!$C1864=\"Log value\",DataLog!X1864,\"\")","v":""},{"$f":"IF(DataLog!$C1864=\"Log value\",DataLog!Y1864,\"\")","v":""},{"$f":"IF(DataLog!$C1864=\"Log value\",DataLog!Z1864,\"\")","v":""},{"$f":"IF(DataLog!$C1864=\"Log value\",DataLog!AA1864,\"\")","v":""},{"$f":"IF(DataLog!$C1864=\"Log value\",DataLog!AB1864,\"\")","v":""},{"$f":"IF(DataLog!$C1864=\"Log value\",DataLog!AC1864,\"\")","v":""},{"$f":"IF(DataLog!$C1864=\"Log value\",DataLog!AD1864,\"\")","v":""},{"$f":"IF(DataLog!$C1864=\"Log value\",DataLog!AE1864,\"\")","v":""},{"$f":"IF(DataLog!$C1864=\"Log value\",DataLog!AF1864,\"\")","v":""},{"$f":"IF(DataLog!$C1864=\"Log value\",DataLog!AG1864,\"\")","v":""},{"$f":"IF(DataLog!$C1864=\"Log value\",DataLog!AH1864,\"\")","v":""},{"$f":"IF(DataLog!$C1864=\"Log value\",DataLog!AI1864,\"\")","v":""},{"$f":"IF(DataLog!$C1864=\"Log value\",DataLog!AJ1864,\"\")","v":""},{"$f":"IF(DataLog!$C1864=\"Log value\",DataLog!AK1864,\"\")","v":""},{"$f":"IF(DataLog!$C1864=\"Log value\",DataLog!AL1864,\"\")","v":""},{"$f":"IF(DataLog!$C1864=\"Log value\",DataLog!AM1864,\"\")","v":""}]
[null,null,null,null,null,null,{"$f":"IF(DataLog!$C1865=\"Log value\",DataLog!D1865&\"_\"&TEXT(DataLog!B1865,\"åååå-mm-dd\"),\"\")","v":""},{"$f":"IF(DataLog!$C1865=\"Log value\",DataLog!E1865,\"\")","v":""},{"$f":"IF(DataLog!$C1865=\"Log value\",DataLog!F1865,\"\")","v":""},{"$f":"IF(DataLog!$C1865=\"Log value\",DataLog!G1865,\"\")","v":""},{"$f":"IF(DataLog!$C1865=\"Log value\",DataLog!H1865,\"\")","v":""},{"$f":"IF(DataLog!$C1865=\"Log value\",DataLog!I1865,\"\")","v":""},{"$f":"IF(DataLog!$C1865=\"Log value\",DataLog!J1865,\"\")","v":""},{"$f":"IF(DataLog!$C1865=\"Log value\",DataLog!K1865,\"\")","v":""},{"$f":"IF(DataLog!$C1865=\"Log value\",DataLog!L1865,\"\")","v":""},{"$f":"IF(DataLog!$C1865=\"Log value\",DataLog!M1865,\"\")","v":""},{"$f":"IF(DataLog!$C1865=\"Log value\",DataLog!N1865,\"\")","v":""},{"$f":"IF(DataLog!$C1865=\"Log value\",DataLog!O1865,\"\")","v":""},{"$f":"IF(DataLog!$C1865=\"Log value\",DataLog!P1865,\"\")","v":""},{"$f":"IF(DataLog!$C1865=\"Log value\",DataLog!Q1865,\"\")","v":""},{"$f":"IF(DataLog!$C1865=\"Log value\",DataLog!R1865,\"\")","v":""},{"$f":"IF(DataLog!$C1865=\"Log value\",DataLog!S1865,\"\")","v":""},{"$f":"IF(DataLog!$C1865=\"Log value\",DataLog!T1865,\"\")","v":""},{"$f":"IF(DataLog!$C1865=\"Log value\",DataLog!U1865,\"\")","v":""},{"$f":"IF(DataLog!$C1865=\"Log value\",DataLog!V1865,\"\")","v":""},{"$f":"IF(DataLog!$C1865=\"Log value\",DataLog!W1865,\"\")","v":""},{"$f":"IF(DataLog!$C1865=\"Log value\",DataLog!X1865,\"\")","v":""},{"$f":"IF(DataLog!$C1865=\"Log value\",DataLog!Y1865,\"\")","v":""},{"$f":"IF(DataLog!$C1865=\"Log value\",DataLog!Z1865,\"\")","v":""},{"$f":"IF(DataLog!$C1865=\"Log value\",DataLog!AA1865,\"\")","v":""},{"$f":"IF(DataLog!$C1865=\"Log value\",DataLog!AB1865,\"\")","v":""},{"$f":"IF(DataLog!$C1865=\"Log value\",DataLog!AC1865,\"\")","v":""},{"$f":"IF(DataLog!$C1865=\"Log value\",DataLog!AD1865,\"\")","v":""},{"$f":"IF(DataLog!$C1865=\"Log value\",DataLog!AE1865,\"\")","v":""},{"$f":"IF(DataLog!$C1865=\"Log value\",DataLog!AF1865,\"\")","v":""},{"$f":"IF(DataLog!$C1865=\"Log value\",DataLog!AG1865,\"\")","v":""},{"$f":"IF(DataLog!$C1865=\"Log value\",DataLog!AH1865,\"\")","v":""},{"$f":"IF(DataLog!$C1865=\"Log value\",DataLog!AI1865,\"\")","v":""},{"$f":"IF(DataLog!$C1865=\"Log value\",DataLog!AJ1865,\"\")","v":""},{"$f":"IF(DataLog!$C1865=\"Log value\",DataLog!AK1865,\"\")","v":""},{"$f":"IF(DataLog!$C1865=\"Log value\",DataLog!AL1865,\"\")","v":""},{"$f":"IF(DataLog!$C1865=\"Log value\",DataLog!AM1865,\"\")","v":""}]
[null,null,null,null,null,null,{"$f":"IF(DataLog!$C1868=\"Log value\",DataLog!D1868&\"_\"&TEXT(DataLog!B1868,\"åååå-mm-dd\"),\"\")","v":""},{"$f":"IF(DataLog!$C1868=\"Log value\",DataLog!E1868,\"\")","v":""},{"$f":"IF(DataLog!$C1868=\"Log value\",DataLog!F1868,\"\")","v":""},{"$f":"IF(DataLog!$C1868=\"Log value\",DataLog!G1868,\"\")","v":""},{"$f":"IF(DataLog!$C1868=\"Log value\",DataLog!H1868,\"\")","v":""},{"$f":"IF(DataLog!$C1868=\"Log value\",DataLog!I1868,\"\")","v":""},{"$f":"IF(DataLog!$C1868=\"Log value\",DataLog!J1868,\"\")","v":""},{"$f":"IF(DataLog!$C1868=\"Log value\",DataLog!K1868,\"\")","v":""},{"$f":"IF(DataLog!$C1868=\"Log value\",DataLog!L1868,\"\")","v":""},{"$f":"IF(DataLog!$C1868=\"Log value\",DataLog!M1868,\"\")","v":""},{"$f":"IF(DataLog!$C1868=\"Log value\",DataLog!N1868,\"\")","v":""},{"$f":"IF(DataLog!$C1868=\"Log value\",DataLog!O1868,\"\")","v":""},{"$f":"IF(DataLog!$C1868=\"Log value\",DataLog!P1868,\"\")","v":""},{"$f":"IF(DataLog!$C1868=\"Log value\",DataLog!Q1868,\"\")","v":""},{"$f":"IF(DataLog!$C1868=\"Log value\",DataLog!R1868,\"\")","v":""},{"$f":"IF(DataLog!$C1868=\"Log value\",DataLog!S1868,\"\")","v":""},{"$f":"IF(DataLog!$C1868=\"Log value\",DataLog!T1868,\"\")","v":""},{"$f":"IF(DataLog!$C1868=\"Log value\",DataLog!U1868,\"\")","v":""},{"$f":"IF(DataLog!$C1868=\"Log value\",DataLog!V1868,\"\")","v":""},{"$f":"IF(DataLog!$C1868=\"Log value\",DataLog!W1868,\"\")","v":""},{"$f":"IF(DataLog!$C1868=\"Log value\",DataLog!X1868,\"\")","v":""},{"$f":"IF(DataLog!$C1868=\"Log value\",DataLog!Y1868,\"\")","v":""},{"$f":"IF(DataLog!$C1868=\"Log value\",DataLog!Z1868,\"\")","v":""},{"$f":"IF(DataLog!$C1868=\"Log value\",DataLog!AA1868,\"\")","v":""},{"$f":"IF(DataLog!$C1868=\"Log value\",DataLog!AB1868,\"\")","v":""},{"$f":"IF(DataLog!$C1868=\"Log value\",DataLog!AC1868,\"\")","v":""},{"$f":"IF(DataLog!$C1868=\"Log value\",DataLog!AD1868,\"\")","v":""},{"$f":"IF(DataLog!$C1868=\"Log value\",DataLog!AE1868,\"\")","v":""},{"$f":"IF(DataLog!$C1868=\"Log value\",DataLog!AF1868,\"\")","v":""},{"$f":"IF(DataLog!$C1868=\"Log value\",DataLog!AG1868,\"\")","v":""},{"$f":"IF(DataLog!$C1868=\"Log value\",DataLog!AH1868,\"\")","v":""},{"$f":"IF(DataLog!$C1868=\"Log value\",DataLog!AI1868,\"\")","v":""},{"$f":"IF(DataLog!$C1868=\"Log value\",DataLog!AJ1868,\"\")","v":""},{"$f":"IF(DataLog!$C1868=\"Log value\",DataLog!AK1868,\"\")","v":""},{"$f":"IF(DataLog!$C1868=\"Log value\",DataLog!AL1868,\"\")","v":""},{"$f":"IF(DataLog!$C1868=\"Log value\",DataLog!AM1868,\"\")","v":""}]
[null,null,null,null,null,null,{"$f":"IF(DataLog!$C1869=\"Log value\",DataLog!D1869&\"_\"&TEXT(DataLog!B1869,\"åååå-mm-dd\"),\"\")","v":""},{"$f":"IF(DataLog!$C1869=\"Log value\",DataLog!E1869,\"\")","v":""},{"$f":"IF(DataLog!$C1869=\"Log value\",DataLog!F1869,\"\")","v":""},{"$f":"IF(DataLog!$C1869=\"Log value\",DataLog!G1869,\"\")","v":""},{"$f":"IF(DataLog!$C1869=\"Log value\",DataLog!H1869,\"\")","v":""},{"$f":"IF(DataLog!$C1869=\"Log value\",DataLog!I1869,\"\")","v":""},{"$f":"IF(DataLog!$C1869=\"Log value\",DataLog!J1869,\"\")","v":""},{"$f":"IF(DataLog!$C1869=\"Log value\",DataLog!K1869,\"\")","v":""},{"$f":"IF(DataLog!$C1869=\"Log value\",DataLog!L1869,\"\")","v":""},{"$f":"IF(DataLog!$C1869=\"Log value\",DataLog!M1869,\"\")","v":""},{"$f":"IF(DataLog!$C1869=\"Log value\",DataLog!N1869,\"\")","v":""},{"$f":"IF(DataLog!$C1869=\"Log value\",DataLog!O1869,\"\")","v":""},{"$f":"IF(DataLog!$C1869=\"Log value\",DataLog!P1869,\"\")","v":""},{"$f":"IF(DataLog!$C1869=\"Log value\",DataLog!Q1869,\"\")","v":""},{"$f":"IF(DataLog!$C1869=\"Log value\",DataLog!R1869,\"\")","v":""},{"$f":"IF(DataLog!$C1869=\"Log value\",DataLog!S1869,\"\")","v":""},{"$f":"IF(DataLog!$C1869=\"Log value\",DataLog!T1869,\"\")","v":""},{"$f":"IF(DataLog!$C1869=\"Log value\",DataLog!U1869,\"\")","v":""},{"$f":"IF(DataLog!$C1869=\"Log value\",DataLog!V1869,\"\")","v":""},{"$f":"IF(DataLog!$C1869=\"Log value\",DataLog!W1869,\"\")","v":""},{"$f":"IF(DataLog!$C1869=\"Log value\",DataLog!X1869,\"\")","v":""},{"$f":"IF(DataLog!$C1869=\"Log value\",DataLog!Y1869,\"\")","v":""},{"$f":"IF(DataLog!$C1869=\"Log value\",DataLog!Z1869,\"\")","v":""},{"$f":"IF(DataLog!$C1869=\"Log value\",DataLog!AA1869,\"\")","v":""},{"$f":"IF(DataLog!$C1869=\"Log value\",DataLog!AB1869,\"\")","v":""},{"$f":"IF(DataLog!$C1869=\"Log value\",DataLog!AC1869,\"\")","v":""},{"$f":"IF(DataLog!$C1869=\"Log value\",DataLog!AD1869,\"\")","v":""},{"$f":"IF(DataLog!$C1869=\"Log value\",DataLog!AE1869,\"\")","v":""},{"$f":"IF(DataLog!$C1869=\"Log value\",DataLog!AF1869,\"\")","v":""},{"$f":"IF(DataLog!$C1869=\"Log value\",DataLog!AG1869,\"\")","v":""},{"$f":"IF(DataLog!$C1869=\"Log value\",DataLog!AH1869,\"\")","v":""},{"$f":"IF(DataLog!$C1869=\"Log value\",DataLog!AI1869,\"\")","v":""},{"$f":"IF(DataLog!$C1869=\"Log value\",DataLog!AJ1869,\"\")","v":""},{"$f":"IF(DataLog!$C1869=\"Log value\",DataLog!AK1869,\"\")","v":""},{"$f":"IF(DataLog!$C1869=\"Log value\",DataLog!AL1869,\"\")","v":""},{"$f":"IF(DataLog!$C1869=\"Log value\",DataLog!AM1869,\"\")","v":""}]
[null,null,null,null,null,null,{"$f":"IF(DataLog!$C1873=\"Log value\",DataLog!D1873&\"_\"&TEXT(DataLog!B1873,\"åååå-mm-dd\"),\"\")","v":""},{"$f":"IF(DataLog!$C1873=\"Log value\",DataLog!E1873,\"\")","v":""},{"$f":"IF(DataLog!$C1873=\"Log value\",DataLog!F1873,\"\")","v":""},{"$f":"IF(DataLog!$C1873=\"Log value\",DataLog!G1873,\"\")","v":""},{"$f":"IF(DataLog!$C1873=\"Log value\",DataLog!H1873,\"\")","v":""},{"$f":"IF(DataLog!$C1873=\"Log value\",DataLog!I1873,\"\")","v":""},{"$f":"IF(DataLog!$C1873=\"Log value\",DataLog!J1873,\"\")","v":""},{"$f":"IF(DataLog!$C1873=\"Log value\",DataLog!K1873,\"\")","v":""},{"$f":"IF(DataLog!$C1873=\"Log value\",DataLog!L1873,\"\")","v":""},{"$f":"IF(DataLog!$C1873=\"Log value\",DataLog!M1873,\"\")","v":""},{"$f":"IF(DataLog!$C1873=\"Log value\",DataLog!N1873,\"\")","v":""},{"$f":"IF(DataLog!$C1873=\"Log value\",DataLog!O1873,\"\")","v":""},{"$f":"IF(DataLog!$C1873=\"Log value\",DataLog!P1873,\"\")","v":""},{"$f":"IF(DataLog!$C1873=\"Log value\",DataLog!Q1873,\"\")","v":""},{"$f":"IF(DataLog!$C1873=\"Log value\",DataLog!R1873,\"\")","v":""},{"$f":"IF(DataLog!$C1873=\"Log value\",DataLog!S1873,\"\")","v":""},{"$f":"IF(DataLog!$C1873=\"Log value\",DataLog!T1873,\"\")","v":""},{"$f":"IF(DataLog!$C1873=\"Log value\",DataLog!U1873,\"\")","v":""},{"$f":"IF(DataLog!$C1873=\"Log value\",DataLog!V1873,\"\")","v":""},{"$f":"IF(DataLog!$C1873=\"Log value\",DataLog!W1873,\"\")","v":""},{"$f":"IF(DataLog!$C1873=\"Log value\",DataLog!X1873,\"\")","v":""},{"$f":"IF(DataLog!$C1873=\"Log value\",DataLog!Y1873,\"\")","v":""},{"$f":"IF(DataLog!$C1873=\"Log value\",DataLog!Z1873,\"\")","v":""},{"$f":"IF(DataLog!$C1873=\"Log value\",DataLog!AA1873,\"\")","v":""},{"$f":"IF(DataLog!$C1873=\"Log value\",DataLog!AB1873,\"\")","v":""},{"$f":"IF(DataLog!$C1873=\"Log value\",DataLog!AC1873,\"\")","v":""},{"$f":"IF(DataLog!$C1873=\"Log value\",DataLog!AD1873,\"\")","v":""},{"$f":"IF(DataLog!$C1873=\"Log value\",DataLog!AE1873,\"\")","v":""},{"$f":"IF(DataLog!$C1873=\"Log value\",DataLog!AF1873,\"\")","v":""},{"$f":"IF(DataLog!$C1873=\"Log value\",DataLog!AG1873,\"\")","v":""},{"$f":"IF(DataLog!$C1873=\"Log value\",DataLog!AH1873,\"\")","v":""},{"$f":"IF(DataLog!$C1873=\"Log value\",DataLog!AI1873,\"\")","v":""},{"$f":"IF(DataLog!$C1873=\"Log value\",DataLog!AJ1873,\"\")","v":""},{"$f":"IF(DataLog!$C1873=\"Log value\",DataLog!AK1873,\"\")","v":""},{"$f":"IF(DataLog!$C1873=\"Log value\",DataLog!AL1873,\"\")","v":""},{"$f":"IF(DataLog!$C1873=\"Log value\",DataLog!AM1873,\"\")","v":""}]
[null,null,null,null,null,null,{"$f":"IF(DataLog!$C1874=\"Log value\",DataLog!D1874&\"_\"&TEXT(DataLog!B1874,\"åååå-mm-dd\"),\"\")","v":""},{"$f":"IF(DataLog!$C1874=\"Log value\",DataLog!E1874,\"\")","v":""},{"$f":"IF(DataLog!$C1874=\"Log value\",DataLog!F1874,\"\")","v":""},{"$f":"IF(DataLog!$C1874=\"Log value\",DataLog!G1874,\"\")","v":""},{"$f":"IF(DataLog!$C1874=\"Log value\",DataLog!H1874,\"\")","v":""},{"$f":"IF(DataLog!$C1874=\"Log value\",DataLog!I1874,\"\")","v":""},{"$f":"IF(DataLog!$C1874=\"Log value\",DataLog!J1874,\"\")","v":""},{"$f":"IF(DataLog!$C1874=\"Log value\",DataLog!K1874,\"\")","v":""},{"$f":"IF(DataLog!$C1874=\"Log value\",DataLog!L1874,\"\")","v":""},{"$f":"IF(DataLog!$C1874=\"Log value\",DataLog!M1874,\"\")","v":""},{"$f":"IF(DataLog!$C1874=\"Log value\",DataLog!N1874,\"\")","v":""},{"$f":"IF(DataLog!$C1874=\"Log value\",DataLog!O1874,\"\")","v":""},{"$f":"IF(DataLog!$C1874=\"Log value\",DataLog!P1874,\"\")","v":""},{"$f":"IF(DataLog!$C1874=\"Log value\",DataLog!Q1874,\"\")","v":""},{"$f":"IF(DataLog!$C1874=\"Log value\",DataLog!R1874,\"\")","v":""},{"$f":"IF(DataLog!$C1874=\"Log value\",DataLog!S1874,\"\")","v":""},{"$f":"IF(DataLog!$C1874=\"Log value\",DataLog!T1874,\"\")","v":""},{"$f":"IF(DataLog!$C1874=\"Log value\",DataLog!U1874,\"\")","v":""},{"$f":"IF(DataLog!$C1874=\"Log value\",DataLog!V1874,\"\")","v":""},{"$f":"IF(DataLog!$C1874=\"Log value\",DataLog!W1874,\"\")","v":""},{"$f":"IF(DataLog!$C1874=\"Log value\",DataLog!X1874,\"\")","v":""},{"$f":"IF(DataLog!$C1874=\"Log value\",DataLog!Y1874,\"\")","v":""},{"$f":"IF(DataLog!$C1874=\"Log value\",DataLog!Z1874,\"\")","v":""},{"$f":"IF(DataLog!$C1874=\"Log value\",DataLog!AA1874,\"\")","v":""},{"$f":"IF(DataLog!$C1874=\"Log value\",DataLog!AB1874,\"\")","v":""},{"$f":"IF(DataLog!$C1874=\"Log value\",DataLog!AC1874,\"\")","v":""},{"$f":"IF(DataLog!$C1874=\"Log value\",DataLog!AD1874,\"\")","v":""},{"$f":"IF(DataLog!$C1874=\"Log value\",DataLog!AE1874,\"\")","v":""},{"$f":"IF(DataLog!$C1874=\"Log value\",DataLog!AF1874,\"\")","v":""},{"$f":"IF(DataLog!$C1874=\"Log value\",DataLog!AG1874,\"\")","v":""},{"$f":"IF(DataLog!$C1874=\"Log value\",DataLog!AH1874,\"\")","v":""},{"$f":"IF(DataLog!$C1874=\"Log value\",DataLog!AI1874,\"\")","v":""},{"$f":"IF(DataLog!$C1874=\"Log value\",DataLog!AJ1874,\"\")","v":""},{"$f":"IF(DataLog!$C1874=\"Log value\",DataLog!AK1874,\"\")","v":""},{"$f":"IF(DataLog!$C1874=\"Log value\",DataLog!AL1874,\"\")","v":""},{"$f":"IF(DataLog!$C1874=\"Log value\",DataLog!AM1874,\"\")","v":""}]
[null,null,null,null,null,null,{"$f":"IF(DataLog!$C1877=\"Log value\",DataLog!D1877&\"_\"&TEXT(DataLog!B1877,\"åååå-mm-dd\"),\"\")","v":""},{"$f":"IF(DataLog!$C1877=\"Log value\",DataLog!E1877,\"\")","v":""},{"$f":"IF(DataLog!$C1877=\"Log value\",DataLog!F1877,\"\")","v":""},{"$f":"IF(DataLog!$C1877=\"Log value\",DataLog!G1877,\"\")","v":""},{"$f":"IF(DataLog!$C1877=\"Log value\",DataLog!H1877,\"\")","v":""},{"$f":"IF(DataLog!$C1877=\"Log value\",DataLog!I1877,\"\")","v":""},{"$f":"IF(DataLog!$C1877=\"Log value\",DataLog!J1877,\"\")","v":""},{"$f":"IF(DataLog!$C1877=\"Log value\",DataLog!K1877,\"\")","v":""},{"$f":"IF(DataLog!$C1877=\"Log value\",DataLog!L1877,\"\")","v":""},{"$f":"IF(DataLog!$C1877=\"Log value\",DataLog!M1877,\"\")","v":""},{"$f":"IF(DataLog!$C1877=\"Log value\",DataLog!N1877,\"\")","v":""},{"$f":"IF(DataLog!$C1877=\"Log value\",DataLog!O1877,\"\")","v":""},{"$f":"IF(DataLog!$C1877=\"Log value\",DataLog!P1877,\"\")","v":""},{"$f":"IF(DataLog!$C1877=\"Log value\",DataLog!Q1877,\"\")","v":""},{"$f":"IF(DataLog!$C1877=\"Log value\",DataLog!R1877,\"\")","v":""},{"$f":"IF(DataLog!$C1877=\"Log value\",DataLog!S1877,\"\")","v":""},{"$f":"IF(DataLog!$C1877=\"Log value\",DataLog!T1877,\"\")","v":""},{"$f":"IF(DataLog!$C1877=\"Log value\",DataLog!U1877,\"\")","v":""},{"$f":"IF(DataLog!$C1877=\"Log value\",DataLog!V1877,\"\")","v":""},{"$f":"IF(DataLog!$C1877=\"Log value\",DataLog!W1877,\"\")","v":""},{"$f":"IF(DataLog!$C1877=\"Log value\",DataLog!X1877,\"\")","v":""},{"$f":"IF(DataLog!$C1877=\"Log value\",DataLog!Y1877,\"\")","v":""},{"$f":"IF(DataLog!$C1877=\"Log value\",DataLog!Z1877,\"\")","v":""},{"$f":"IF(DataLog!$C1877=\"Log value\",DataLog!AA1877,\"\")","v":""},{"$f":"IF(DataLog!$C1877=\"Log value\",DataLog!AB1877,\"\")","v":""},{"$f":"IF(DataLog!$C1877=\"Log value\",DataLog!AC1877,\"\")","v":""},{"$f":"IF(DataLog!$C1877=\"Log value\",DataLog!AD1877,\"\")","v":""},{"$f":"IF(DataLog!$C1877=\"Log value\",DataLog!AE1877,\"\")","v":""},{"$f":"IF(DataLog!$C1877=\"Log value\",DataLog!AF1877,\"\")","v":""},{"$f":"IF(DataLog!$C1877=\"Log value\",DataLog!AG1877,\"\")","v":""},{"$f":"IF(DataLog!$C1877=\"Log value\",DataLog!AH1877,\"\")","v":""},{"$f":"IF(DataLog!$C1877=\"Log value\",DataLog!AI1877,\"\")","v":""},{"$f":"IF(DataLog!$C1877=\"Log value\",DataLog!AJ1877,\"\")","v":""},{"$f":"IF(DataLog!$C1877=\"Log value\",DataLog!AK1877,\"\")","v":""},{"$f":"IF(DataLog!$C1877=\"Log value\",DataLog!AL1877,\"\")","v":""},{"$f":"IF(DataLog!$C1877=\"Log value\",DataLog!AM1877,\"\")","v":""}]
[null,null,null,null,null,null,{"$f":"IF(DataLog!$C1879=\"Log value\",DataLog!D1879&\"_\"&TEXT(DataLog!B1879,\"åååå-mm-dd\"),\"\")","v":""},{"$f":"IF(DataLog!$C1879=\"Log value\",DataLog!E1879,\"\")","v":""},{"$f":"IF(DataLog!$C1879=\"Log value\",DataLog!F1879,\"\")","v":""},{"$f":"IF(DataLog!$C1879=\"Log value\",DataLog!G1879,\"\")","v":""},{"$f":"IF(DataLog!$C1879=\"Log value\",DataLog!H1879,\"\")","v":""},{"$f":"IF(DataLog!$C1879=\"Log value\",DataLog!I1879,\"\")","v":""},{"$f":"IF(DataLog!$C1879=\"Log value\",DataLog!J1879,\"\")","v":""},{"$f":"IF(DataLog!$C1879=\"Log value\",DataLog!K1879,\"\")","v":""},{"$f":"IF(DataLog!$C1879=\"Log value\",DataLog!L1879,\"\")","v":""},{"$f":"IF(DataLog!$C1879=\"Log value\",DataLog!M1879,\"\")","v":""},{"$f":"IF(DataLog!$C1879=\"Log value\",DataLog!N1879,\"\")","v":""},{"$f":"IF(DataLog!$C1879=\"Log value\",DataLog!O1879,\"\")","v":""},{"$f":"IF(DataLog!$C1879=\"Log value\",DataLog!P1879,\"\")","v":""},{"$f":"IF(DataLog!$C1879=\"Log value\",DataLog!Q1879,\"\")","v":""},{"$f":"IF(DataLog!$C1879=\"Log value\",DataLog!R1879,\"\")","v":""},{"$f":"IF(DataLog!$C1879=\"Log value\",DataLog!S1879,\"\")","v":""},{"$f":"IF(DataLog!$C1879=\"Log value\",DataLog!T1879,\"\")","v":""},{"$f":"IF(DataLog!$C1879=\"Log value\",DataLog!U1879,\"\")","v":""},{"$f":"IF(DataLog!$C1879=\"Log value\",DataLog!V1879,\"\")","v":""},{"$f":"IF(DataLog!$C1879=\"Log value\",DataLog!W1879,\"\")","v":""},{"$f":"IF(DataLog!$C1879=\"Log value\",DataLog!X1879,\"\")","v":""},{"$f":"IF(DataLog!$C1879=\"Log value\",DataLog!Y1879,\"\")","v":""},{"$f":"IF(DataLog!$C1879=\"Log value\",DataLog!Z1879,\"\")","v":""},{"$f":"IF(DataLog!$C1879=\"Log value\",DataLog!AA1879,\"\")","v":""},{"$f":"IF(DataLog!$C1879=\"Log value\",DataLog!AB1879,\"\")","v":""},{"$f":"IF(DataLog!$C1879=\"Log value\",DataLog!AC1879,\"\")","v":""},{"$f":"IF(DataLog!$C1879=\"Log value\",DataLog!AD1879,\"\")","v":""},{"$f":"IF(DataLog!$C1879=\"Log value\",DataLog!AE1879,\"\")","v":""},{"$f":"IF(DataLog!$C1879=\"Log value\",DataLog!AF1879,\"\")","v":""},{"$f":"IF(DataLog!$C1879=\"Log value\",DataLog!AG1879,\"\")","v":""},{"$f":"IF(DataLog!$C1879=\"Log value\",DataLog!AH1879,\"\")","v":""},{"$f":"IF(DataLog!$C1879=\"Log value\",DataLog!AI1879,\"\")","v":""},{"$f":"IF(DataLog!$C1879=\"Log value\",DataLog!AJ1879,\"\")","v":""},{"$f":"IF(DataLog!$C1879=\"Log value\",DataLog!AK1879,\"\")","v":""},{"$f":"IF(DataLog!$C1879=\"Log value\",DataLog!AL1879,\"\")","v":""},{"$f":"IF(DataLog!$C1879=\"Log value\",DataLog!AM1879,\"\")","v":""}]
[null,null,null,null,null,null,{"$f":"IF(DataLog!$C1882=\"Log value\",DataLog!D1882&\"_\"&TEXT(DataLog!B1882,\"åååå-mm-dd\"),\"\")","v":""},{"$f":"IF(DataLog!$C1882=\"Log value\",DataLog!E1882,\"\")","v":""},{"$f":"IF(DataLog!$C1882=\"Log value\",DataLog!F1882,\"\")","v":""},{"$f":"IF(DataLog!$C1882=\"Log value\",DataLog!G1882,\"\")","v":""},{"$f":"IF(DataLog!$C1882=\"Log value\",DataLog!H1882,\"\")","v":""},{"$f":"IF(DataLog!$C1882=\"Log value\",DataLog!I1882,\"\")","v":""},{"$f":"IF(DataLog!$C1882=\"Log value\",DataLog!J1882,\"\")","v":""},{"$f":"IF(DataLog!$C1882=\"Log value\",DataLog!K1882,\"\")","v":""},{"$f":"IF(DataLog!$C1882=\"Log value\",DataLog!L1882,\"\")","v":""},{"$f":"IF(DataLog!$C1882=\"Log value\",DataLog!M1882,\"\")","v":""},{"$f":"IF(DataLog!$C1882=\"Log value\",DataLog!N1882,\"\")","v":""},{"$f":"IF(DataLog!$C1882=\"Log value\",DataLog!O1882,\"\")","v":""},{"$f":"IF(DataLog!$C1882=\"Log value\",DataLog!P1882,\"\")","v":""},{"$f":"IF(DataLog!$C1882=\"Log value\",DataLog!Q1882,\"\")","v":""},{"$f":"IF(DataLog!$C1882=\"Log value\",DataLog!R1882,\"\")","v":""},{"$f":"IF(DataLog!$C1882=\"Log value\",DataLog!S1882,\"\")","v":""},{"$f":"IF(DataLog!$C1882=\"Log value\",DataLog!T1882,\"\")","v":""},{"$f":"IF(DataLog!$C1882=\"Log value\",DataLog!U1882,\"\")","v":""},{"$f":"IF(DataLog!$C1882=\"Log value\",DataLog!V1882,\"\")","v":""},{"$f":"IF(DataLog!$C1882=\"Log value\",DataLog!W1882,\"\")","v":""},{"$f":"IF(DataLog!$C1882=\"Log value\",DataLog!X1882,\"\")","v":""},{"$f":"IF(DataLog!$C1882=\"Log value\",DataLog!Y1882,\"\")","v":""},{"$f":"IF(DataLog!$C1882=\"Log value\",DataLog!Z1882,\"\")","v":""},{"$f":"IF(DataLog!$C1882=\"Log value\",DataLog!AA1882,\"\")","v":""},{"$f":"IF(DataLog!$C1882=\"Log value\",DataLog!AB1882,\"\")","v":""},{"$f":"IF(DataLog!$C1882=\"Log value\",DataLog!AC1882,\"\")","v":""},{"$f":"IF(DataLog!$C1882=\"Log value\",DataLog!AD1882,\"\")","v":""},{"$f":"IF(DataLog!$C1882=\"Log value\",DataLog!AE1882,\"\")","v":""},{"$f":"IF(DataLog!$C1882=\"Log value\",DataLog!AF1882,\"\")","v":""},{"$f":"IF(DataLog!$C1882=\"Log value\",DataLog!AG1882,\"\")","v":""},{"$f":"IF(DataLog!$C1882=\"Log value\",DataLog!AH1882,\"\")","v":""},{"$f":"IF(DataLog!$C1882=\"Log value\",DataLog!AI1882,\"\")","v":""},{"$f":"IF(DataLog!$C1882=\"Log value\",DataLog!AJ1882,\"\")","v":""},{"$f":"IF(DataLog!$C1882=\"Log value\",DataLog!AK1882,\"\")","v":""},{"$f":"IF(DataLog!$C1882=\"Log value\",DataLog!AL1882,\"\")","v":""},{"$f":"IF(DataLog!$C1882=\"Log value\",DataLog!AM1882,\"\")","v":""}]
[null,null,null,null,null,null,{"$f":"IF(DataLog!$C1883=\"Log value\",DataLog!D1883&\"_\"&TEXT(DataLog!B1883,\"åååå-mm-dd\"),\"\")","v":""},{"$f":"IF(DataLog!$C1883=\"Log value\",DataLog!E1883,\"\")","v":""},{"$f":"IF(DataLog!$C1883=\"Log value\",DataLog!F1883,\"\")","v":""},{"$f":"IF(DataLog!$C1883=\"Log value\",DataLog!G1883,\"\")","v":""},{"$f":"IF(DataLog!$C1883=\"Log value\",DataLog!H1883,\"\")","v":""},{"$f":"IF(DataLog!$C1883=\"Log value\",DataLog!I1883,\"\")","v":""},{"$f":"IF(DataLog!$C1883=\"Log value\",DataLog!J1883,\"\")","v":""},{"$f":"IF(DataLog!$C1883=\"Log value\",DataLog!K1883,\"\")","v":""},{"$f":"IF(DataLog!$C1883=\"Log value\",DataLog!L1883,\"\")","v":""},{"$f":"IF(DataLog!$C1883=\"Log value\",DataLog!M1883,\"\")","v":""},{"$f":"IF(DataLog!$C1883=\"Log value\",DataLog!N1883,\"\")","v":""},{"$f":"IF(DataLog!$C1883=\"Log value\",DataLog!O1883,\"\")","v":""},{"$f":"IF(DataLog!$C1883=\"Log value\",DataLog!P1883,\"\")","v":""},{"$f":"IF(DataLog!$C1883=\"Log value\",DataLog!Q1883,\"\")","v":""},{"$f":"IF(DataLog!$C1883=\"Log value\",DataLog!R1883,\"\")","v":""},{"$f":"IF(DataLog!$C1883=\"Log value\",DataLog!S1883,\"\")","v":""},{"$f":"IF(DataLog!$C1883=\"Log value\",DataLog!T1883,\"\")","v":""},{"$f":"IF(DataLog!$C1883=\"Log value\",DataLog!U1883,\"\")","v":""},{"$f":"IF(DataLog!$C1883=\"Log value\",DataLog!V1883,\"\")","v":""},{"$f":"IF(DataLog!$C1883=\"Log value\",DataLog!W1883,\"\")","v":""},{"$f":"IF(DataLog!$C1883=\"Log value\",DataLog!X1883,\"\")","v":""},{"$f":"IF(DataLog!$C1883=\"Log value\",DataLog!Y1883,\"\")","v":""},{"$f":"IF(DataLog!$C1883=\"Log value\",DataLog!Z1883,\"\")","v":""},{"$f":"IF(DataLog!$C1883=\"Log value\",DataLog!AA1883,\"\")","v":""},{"$f":"IF(DataLog!$C1883=\"Log value\",DataLog!AB1883,\"\")","v":""},{"$f":"IF(DataLog!$C1883=\"Log value\",DataLog!AC1883,\"\")","v":""},{"$f":"IF(DataLog!$C1883=\"Log value\",DataLog!AD1883,\"\")","v":""},{"$f":"IF(DataLog!$C1883=\"Log value\",DataLog!AE1883,\"\")","v":""},{"$f":"IF(DataLog!$C1883=\"Log value\",DataLog!AF1883,\"\")","v":""},{"$f":"IF(DataLog!$C1883=\"Log value\",DataLog!AG1883,\"\")","v":""},{"$f":"IF(DataLog!$C1883=\"Log value\",DataLog!AH1883,\"\")","v":""},{"$f":"IF(DataLog!$C1883=\"Log value\",DataLog!AI1883,\"\")","v":""},{"$f":"IF(DataLog!$C1883=\"Log value\",DataLog!AJ1883,\"\")","v":""},{"$f":"IF(DataLog!$C1883=\"Log value\",DataLog!AK1883,\"\")","v":""},{"$f":"IF(DataLog!$C1883=\"Log value\",DataLog!AL1883,\"\")","v":""},{"$f":"IF(DataLog!$C1883=\"Log value\",DataLog!AM1883,\"\")","v":""}]
[null,null,null,null,null,null,{"$f":"IF(DataLog!$C1885=\"Log value\",DataLog!D1885&\"_\"&TEXT(DataLog!B1885,\"åååå-mm-dd\"),\"\")","v":""},{"$f":"IF(DataLog!$C1885=\"Log value\",DataLog!E1885,\"\")","v":""},{"$f":"IF(DataLog!$C1885=\"Log value\",DataLog!F1885,\"\")","v":""},{"$f":"IF(DataLog!$C1885=\"Log value\",DataLog!G1885,\"\")","v":""},{"$f":"IF(DataLog!$C1885=\"Log value\",DataLog!H1885,\"\")","v":""},{"$f":"IF(DataLog!$C1885=\"Log value\",DataLog!I1885,\"\")","v":""},{"$f":"IF(DataLog!$C1885=\"Log value\",DataLog!J1885,\"\")","v":""},{"$f":"IF(DataLog!$C1885=\"Log value\",DataLog!K1885,\"\")","v":""},{"$f":"IF(DataLog!$C1885=\"Log value\",DataLog!L1885,\"\")","v":""},{"$f":"IF(DataLog!$C1885=\"Log value\",DataLog!M1885,\"\")","v":""},{"$f":"IF(DataLog!$C1885=\"Log value\",DataLog!N1885,\"\")","v":""},{"$f":"IF(DataLog!$C1885=\"Log value\",DataLog!O1885,\"\")","v":""},{"$f":"IF(DataLog!$C1885=\"Log value\",DataLog!P1885,\"\")","v":""},{"$f":"IF(DataLog!$C1885=\"Log value\",DataLog!Q1885,\"\")","v":""},{"$f":"IF(DataLog!$C1885=\"Log value\",DataLog!R1885,\"\")","v":""},{"$f":"IF(DataLog!$C1885=\"Log value\",DataLog!S1885,\"\")","v":""},{"$f":"IF(DataLog!$C1885=\"Log value\",DataLog!T1885,\"\")","v":""},{"$f":"IF(DataLog!$C1885=\"Log value\",DataLog!U1885,\"\")","v":""},{"$f":"IF(DataLog!$C1885=\"Log value\",DataLog!V1885,\"\")","v":""},{"$f":"IF(DataLog!$C1885=\"Log value\",DataLog!W1885,\"\")","v":""},{"$f":"IF(DataLog!$C1885=\"Log value\",DataLog!X1885,\"\")","v":""},{"$f":"IF(DataLog!$C1885=\"Log value\",DataLog!Y1885,\"\")","v":""},{"$f":"IF(DataLog!$C1885=\"Log value\",DataLog!Z1885,\"\")","v":""},{"$f":"IF(DataLog!$C1885=\"Log value\",DataLog!AA1885,\"\")","v":""},{"$f":"IF(DataLog!$C1885=\"Log value\",DataLog!AB1885,\"\")","v":""},{"$f":"IF(DataLog!$C1885=\"Log value\",DataLog!AC1885,\"\")","v":""},{"$f":"IF(DataLog!$C1885=\"Log value\",DataLog!AD1885,\"\")","v":""},{"$f":"IF(DataLog!$C1885=\"Log value\",DataLog!AE1885,\"\")","v":""},{"$f":"IF(DataLog!$C1885=\"Log value\",DataLog!AF1885,\"\")","v":""},{"$f":"IF(DataLog!$C1885=\"Log value\",DataLog!AG1885,\"\")","v":""},{"$f":"IF(DataLog!$C1885=\"Log value\",DataLog!AH1885,\"\")","v":""},{"$f":"IF(DataLog!$C1885=\"Log value\",DataLog!AI1885,\"\")","v":""},{"$f":"IF(DataLog!$C1885=\"Log value\",DataLog!AJ1885,\"\")","v":""},{"$f":"IF(DataLog!$C1885=\"Log value\",DataLog!AK1885,\"\")","v":""},{"$f":"IF(DataLog!$C1885=\"Log value\",DataLog!AL1885,\"\")","v":""},{"$f":"IF(DataLog!$C1885=\"Log value\",DataLog!AM1885,\"\")","v":""}]
[null,null,null,null,null,null,{"$f":"IF(DataLog!$C1888=\"Log value\",DataLog!D1888&\"_\"&TEXT(DataLog!B1888,\"åååå-mm-dd\"),\"\")","v":""},{"$f":"IF(DataLog!$C1888=\"Log value\",DataLog!E1888,\"\")","v":""},{"$f":"IF(DataLog!$C1888=\"Log value\",DataLog!F1888,\"\")","v":""},{"$f":"IF(DataLog!$C1888=\"Log value\",DataLog!G1888,\"\")","v":""},{"$f":"IF(DataLog!$C1888=\"Log value\",DataLog!H1888,\"\")","v":""},{"$f":"IF(DataLog!$C1888=\"Log value\",DataLog!I1888,\"\")","v":""},{"$f":"IF(DataLog!$C1888=\"Log value\",DataLog!J1888,\"\")","v":""},{"$f":"IF(DataLog!$C1888=\"Log value\",DataLog!K1888,\"\")","v":""},{"$f":"IF(DataLog!$C1888=\"Log value\",DataLog!L1888,\"\")","v":""},{"$f":"IF(DataLog!$C1888=\"Log value\",DataLog!M1888,\"\")","v":""},{"$f":"IF(DataLog!$C1888=\"Log value\",DataLog!N1888,\"\")","v":""},{"$f":"IF(DataLog!$C1888=\"Log value\",DataLog!O1888,\"\")","v":""},{"$f":"IF(DataLog!$C1888=\"Log value\",DataLog!P1888,\"\")","v":""},{"$f":"IF(DataLog!$C1888=\"Log value\",DataLog!Q1888,\"\")","v":""},{"$f":"IF(DataLog!$C1888=\"Log value\",DataLog!R1888,\"\")","v":""},{"$f":"IF(DataLog!$C1888=\"Log value\",DataLog!S1888,\"\")","v":""},{"$f":"IF(DataLog!$C1888=\"Log value\",DataLog!T1888,\"\")","v":""},{"$f":"IF(DataLog!$C1888=\"Log value\",DataLog!U1888,\"\")","v":""},{"$f":"IF(DataLog!$C1888=\"Log value\",DataLog!V1888,\"\")","v":""},{"$f":"IF(DataLog!$C1888=\"Log value\",DataLog!W1888,\"\")","v":""},{"$f":"IF(DataLog!$C1888=\"Log value\",DataLog!X1888,\"\")","v":""},{"$f":"IF(DataLog!$C1888=\"Log value\",DataLog!Y1888,\"\")","v":""},{"$f":"IF(DataLog!$C1888=\"Log value\",DataLog!Z1888,\"\")","v":""},{"$f":"IF(DataLog!$C1888=\"Log value\",DataLog!AA1888,\"\")","v":""},{"$f":"IF(DataLog!$C1888=\"Log value\",DataLog!AB1888,\"\")","v":""},{"$f":"IF(DataLog!$C1888=\"Log value\",DataLog!AC1888,\"\")","v":""},{"$f":"IF(DataLog!$C1888=\"Log value\",DataLog!AD1888,\"\")","v":""},{"$f":"IF(DataLog!$C1888=\"Log value\",DataLog!AE1888,\"\")","v":""},{"$f":"IF(DataLog!$C1888=\"Log value\",DataLog!AF1888,\"\")","v":""},{"$f":"IF(DataLog!$C1888=\"Log value\",DataLog!AG1888,\"\")","v":""},{"$f":"IF(DataLog!$C1888=\"Log value\",DataLog!AH1888,\"\")","v":""},{"$f":"IF(DataLog!$C1888=\"Log value\",DataLog!AI1888,\"\")","v":""},{"$f":"IF(DataLog!$C1888=\"Log value\",DataLog!AJ1888,\"\")","v":""},{"$f":"IF(DataLog!$C1888=\"Log value\",DataLog!AK1888,\"\")","v":""},{"$f":"IF(DataLog!$C1888=\"Log value\",DataLog!AL1888,\"\")","v":""},{"$f":"IF(DataLog!$C1888=\"Log value\",DataLog!AM1888,\"\")","v":""}]
[null,null,null,null,null,null,{"$f":"IF(DataLog!$C1891=\"Log value\",DataLog!D1891&\"_\"&TEXT(DataLog!B1891,\"åååå-mm-dd\"),\"\")","v":""},{"$f":"IF(DataLog!$C1891=\"Log value\",DataLog!E1891,\"\")","v":""},{"$f":"IF(DataLog!$C1891=\"Log value\",DataLog!F1891,\"\")","v":""},{"$f":"IF(DataLog!$C1891=\"Log value\",DataLog!G1891,\"\")","v":""},{"$f":"IF(DataLog!$C1891=\"Log value\",DataLog!H1891,\"\")","v":""},{"$f":"IF(DataLog!$C1891=\"Log value\",DataLog!I1891,\"\")","v":""},{"$f":"IF(DataLog!$C1891=\"Log value\",DataLog!J1891,\"\")","v":""},{"$f":"IF(DataLog!$C1891=\"Log value\",DataLog!K1891,\"\")","v":""},{"$f":"IF(DataLog!$C1891=\"Log value\",DataLog!L1891,\"\")","v":""},{"$f":"IF(DataLog!$C1891=\"Log value\",DataLog!M1891,\"\")","v":""},{"$f":"IF(DataLog!$C1891=\"Log value\",DataLog!N1891,\"\")","v":""},{"$f":"IF(DataLog!$C1891=\"Log value\",DataLog!O1891,\"\")","v":""},{"$f":"IF(DataLog!$C1891=\"Log value\",DataLog!P1891,\"\")","v":""},{"$f":"IF(DataLog!$C1891=\"Log value\",DataLog!Q1891,\"\")","v":""},{"$f":"IF(DataLog!$C1891=\"Log value\",DataLog!R1891,\"\")","v":""},{"$f":"IF(DataLog!$C1891=\"Log value\",DataLog!S1891,\"\")","v":""},{"$f":"IF(DataLog!$C1891=\"Log value\",DataLog!T1891,\"\")","v":""},{"$f":"IF(DataLog!$C1891=\"Log value\",DataLog!U1891,\"\")","v":""},{"$f":"IF(DataLog!$C1891=\"Log value\",DataLog!V1891,\"\")","v":""},{"$f":"IF(DataLog!$C1891=\"Log value\",DataLog!W1891,\"\")","v":""},{"$f":"IF(DataLog!$C1891=\"Log value\",DataLog!X1891,\"\")","v":""},{"$f":"IF(DataLog!$C1891=\"Log value\",DataLog!Y1891,\"\")","v":""},{"$f":"IF(DataLog!$C1891=\"Log value\",DataLog!Z1891,\"\")","v":""},{"$f":"IF(DataLog!$C1891=\"Log value\",DataLog!AA1891,\"\")","v":""},{"$f":"IF(DataLog!$C1891=\"Log value\",DataLog!AB1891,\"\")","v":""},{"$f":"IF(DataLog!$C1891=\"Log value\",DataLog!AC1891,\"\")","v":""},{"$f":"IF(DataLog!$C1891=\"Log value\",DataLog!AD1891,\"\")","v":""},{"$f":"IF(DataLog!$C1891=\"Log value\",DataLog!AE1891,\"\")","v":""},{"$f":"IF(DataLog!$C1891=\"Log value\",DataLog!AF1891,\"\")","v":""},{"$f":"IF(DataLog!$C1891=\"Log value\",DataLog!AG1891,\"\")","v":""},{"$f":"IF(DataLog!$C1891=\"Log value\",DataLog!AH1891,\"\")","v":""},{"$f":"IF(DataLog!$C1891=\"Log value\",DataLog!AI1891,\"\")","v":""},{"$f":"IF(DataLog!$C1891=\"Log value\",DataLog!AJ1891,\"\")","v":""},{"$f":"IF(DataLog!$C1891=\"Log value\",DataLog!AK1891,\"\")","v":""},{"$f":"IF(DataLog!$C1891=\"Log value\",DataLog!AL1891,\"\")","v":""},{"$f":"IF(DataLog!$C1891=\"Log value\",DataLog!AM1891,\"\")","v":""}]
[null,null,null,null,null,null,{"$f":"IF(DataLog!$C1892=\"Log value\",DataLog!D1892&\"_\"&TEXT(DataLog!B1892,\"åååå-mm-dd\"),\"\")","v":""},{"$f":"IF(DataLog!$C1892=\"Log value\",DataLog!E1892,\"\")","v":""},{"$f":"IF(DataLog!$C1892=\"Log value\",DataLog!F1892,\"\")","v":""},{"$f":"IF(DataLog!$C1892=\"Log value\",DataLog!G1892,\"\")","v":""},{"$f":"IF(DataLog!$C1892=\"Log value\",DataLog!H1892,\"\")","v":""},{"$f":"IF(DataLog!$C1892=\"Log value\",DataLog!I1892,\"\")","v":""},{"$f":"IF(DataLog!$C1892=\"Log value\",DataLog!J1892,\"\")","v":""},{"$f":"IF(DataLog!$C1892=\"Log value\",DataLog!K1892,\"\")","v":""},{"$f":"IF(DataLog!$C1892=\"Log value\",DataLog!L1892,\"\")","v":""},{"$f":"IF(DataLog!$C1892=\"Log value\",DataLog!M1892,\"\")","v":""},{"$f":"IF(DataLog!$C1892=\"Log value\",DataLog!N1892,\"\")","v":""},{"$f":"IF(DataLog!$C1892=\"Log value\",DataLog!O1892,\"\")","v":""},{"$f":"IF(DataLog!$C1892=\"Log value\",DataLog!P1892,\"\")","v":""},{"$f":"IF(DataLog!$C1892=\"Log value\",DataLog!Q1892,\"\")","v":""},{"$f":"IF(DataLog!$C1892=\"Log value\",DataLog!R1892,\"\")","v":""},{"$f":"IF(DataLog!$C1892=\"Log value\",DataLog!S1892,\"\")","v":""},{"$f":"IF(DataLog!$C1892=\"Log value\",DataLog!T1892,\"\")","v":""},{"$f":"IF(DataLog!$C1892=\"Log value\",DataLog!U1892,\"\")","v":""},{"$f":"IF(DataLog!$C1892=\"Log value\",DataLog!V1892,\"\")","v":""},{"$f":"IF(DataLog!$C1892=\"Log value\",DataLog!W1892,\"\")","v":""},{"$f":"IF(DataLog!$C1892=\"Log value\",DataLog!X1892,\"\")","v":""},{"$f":"IF(DataLog!$C1892=\"Log value\",DataLog!Y1892,\"\")","v":""},{"$f":"IF(DataLog!$C1892=\"Log value\",DataLog!Z1892,\"\")","v":""},{"$f":"IF(DataLog!$C1892=\"Log value\",DataLog!AA1892,\"\")","v":""},{"$f":"IF(DataLog!$C1892=\"Log value\",DataLog!AB1892,\"\")","v":""},{"$f":"IF(DataLog!$C1892=\"Log value\",DataLog!AC1892,\"\")","v":""},{"$f":"IF(DataLog!$C1892=\"Log value\",DataLog!AD1892,\"\")","v":""},{"$f":"IF(DataLog!$C1892=\"Log value\",DataLog!AE1892,\"\")","v":""},{"$f":"IF(DataLog!$C1892=\"Log value\",DataLog!AF1892,\"\")","v":""},{"$f":"IF(DataLog!$C1892=\"Log value\",DataLog!AG1892,\"\")","v":""},{"$f":"IF(DataLog!$C1892=\"Log value\",DataLog!AH1892,\"\")","v":""},{"$f":"IF(DataLog!$C1892=\"Log value\",DataLog!AI1892,\"\")","v":""},{"$f":"IF(DataLog!$C1892=\"Log value\",DataLog!AJ1892,\"\")","v":""},{"$f":"IF(DataLog!$C1892=\"Log value\",DataLog!AK1892,\"\")","v":""},{"$f":"IF(DataLog!$C1892=\"Log value\",DataLog!AL1892,\"\")","v":""},{"$f":"IF(DataLog!$C1892=\"Log value\",DataLog!AM1892,\"\")","v":""}]
[null,null,null,null,null,null,{"$f":"IF(DataLog!$C1895=\"Log value\",DataLog!D1895&\"_\"&TEXT(DataLog!B1895,\"åååå-mm-dd\"),\"\")","v":""},{"$f":"IF(DataLog!$C1895=\"Log value\",DataLog!E1895,\"\")","v":""},{"$f":"IF(DataLog!$C1895=\"Log value\",DataLog!F1895,\"\")","v":""},{"$f":"IF(DataLog!$C1895=\"Log value\",DataLog!G1895,\"\")","v":""},{"$f":"IF(DataLog!$C1895=\"Log value\",DataLog!H1895,\"\")","v":""},{"$f":"IF(DataLog!$C1895=\"Log value\",DataLog!I1895,\"\")","v":""},{"$f":"IF(DataLog!$C1895=\"Log value\",DataLog!J1895,\"\")","v":""},{"$f":"IF(DataLog!$C1895=\"Log value\",DataLog!K1895,\"\")","v":""},{"$f":"IF(DataLog!$C1895=\"Log value\",DataLog!L1895,\"\")","v":""},{"$f":"IF(DataLog!$C1895=\"Log value\",DataLog!M1895,\"\")","v":""},{"$f":"IF(DataLog!$C1895=\"Log value\",DataLog!N1895,\"\")","v":""},{"$f":"IF(DataLog!$C1895=\"Log value\",DataLog!O1895,\"\")","v":""},{"$f":"IF(DataLog!$C1895=\"Log value\",DataLog!P1895,\"\")","v":""},{"$f":"IF(DataLog!$C1895=\"Log value\",DataLog!Q1895,\"\")","v":""},{"$f":"IF(DataLog!$C1895=\"Log value\",DataLog!R1895,\"\")","v":""},{"$f":"IF(DataLog!$C1895=\"Log value\",DataLog!S1895,\"\")","v":""},{"$f":"IF(DataLog!$C1895=\"Log value\",DataLog!T1895,\"\")","v":""},{"$f":"IF(DataLog!$C1895=\"Log value\",DataLog!U1895,\"\")","v":""},{"$f":"IF(DataLog!$C1895=\"Log value\",DataLog!V1895,\"\")","v":""},{"$f":"IF(DataLog!$C1895=\"Log value\",DataLog!W1895,\"\")","v":""},{"$f":"IF(DataLog!$C1895=\"Log value\",DataLog!X1895,\"\")","v":""},{"$f":"IF(DataLog!$C1895=\"Log value\",DataLog!Y1895,\"\")","v":""},{"$f":"IF(DataLog!$C1895=\"Log value\",DataLog!Z1895,\"\")","v":""},{"$f":"IF(DataLog!$C1895=\"Log value\",DataLog!AA1895,\"\")","v":""},{"$f":"IF(DataLog!$C1895=\"Log value\",DataLog!AB1895,\"\")","v":""},{"$f":"IF(DataLog!$C1895=\"Log value\",DataLog!AC1895,\"\")","v":""},{"$f":"IF(DataLog!$C1895=\"Log value\",DataLog!AD1895,\"\")","v":""},{"$f":"IF(DataLog!$C1895=\"Log value\",DataLog!AE1895,\"\")","v":""},{"$f":"IF(DataLog!$C1895=\"Log value\",DataLog!AF1895,\"\")","v":""},{"$f":"IF(DataLog!$C1895=\"Log value\",DataLog!AG1895,\"\")","v":""},{"$f":"IF(DataLog!$C1895=\"Log value\",DataLog!AH1895,\"\")","v":""},{"$f":"IF(DataLog!$C1895=\"Log value\",DataLog!AI1895,\"\")","v":""},{"$f":"IF(DataLog!$C1895=\"Log value\",DataLog!AJ1895,\"\")","v":""},{"$f":"IF(DataLog!$C1895=\"Log value\",DataLog!AK1895,\"\")","v":""},{"$f":"IF(DataLog!$C1895=\"Log value\",DataLog!AL1895,\"\")","v":""},{"$f":"IF(DataLog!$C1895=\"Log value\",DataLog!AM1895,\"\")","v":""}]
[null,null,null,null,null,null,{"$f":"IF(DataLog!$C1897=\"Log value\",DataLog!D1897&\"_\"&TEXT(DataLog!B1897,\"åååå-mm-dd\"),\"\")","v":""},{"$f":"IF(DataLog!$C1897=\"Log value\",DataLog!E1897,\"\")","v":""},{"$f":"IF(DataLog!$C1897=\"Log value\",DataLog!F1897,\"\")","v":""},{"$f":"IF(DataLog!$C1897=\"Log value\",DataLog!G1897,\"\")","v":""},{"$f":"IF(DataLog!$C1897=\"Log value\",DataLog!H1897,\"\")","v":""},{"$f":"IF(DataLog!$C1897=\"Log value\",DataLog!I1897,\"\")","v":""},{"$f":"IF(DataLog!$C1897=\"Log value\",DataLog!J1897,\"\")","v":""},{"$f":"IF(DataLog!$C1897=\"Log value\",DataLog!K1897,\"\")","v":""},{"$f":"IF(DataLog!$C1897=\"Log value\",DataLog!L1897,\"\")","v":""},{"$f":"IF(DataLog!$C1897=\"Log value\",DataLog!M1897,\"\")","v":""},{"$f":"IF(DataLog!$C1897=\"Log value\",DataLog!N1897,\"\")","v":""},{"$f":"IF(DataLog!$C1897=\"Log value\",DataLog!O1897,\"\")","v":""},{"$f":"IF(DataLog!$C1897=\"Log value\",DataLog!P1897,\"\")","v":""},{"$f":"IF(DataLog!$C1897=\"Log value\",DataLog!Q1897,\"\")","v":""},{"$f":"IF(DataLog!$C1897=\"Log value\",DataLog!R1897,\"\")","v":""},{"$f":"IF(DataLog!$C1897=\"Log value\",DataLog!S1897,\"\")","v":""},{"$f":"IF(DataLog!$C1897=\"Log value\",DataLog!T1897,\"\")","v":""},{"$f":"IF(DataLog!$C1897=\"Log value\",DataLog!U1897,\"\")","v":""},{"$f":"IF(DataLog!$C1897=\"Log value\",DataLog!V1897,\"\")","v":""},{"$f":"IF(DataLog!$C1897=\"Log value\",DataLog!W1897,\"\")","v":""},{"$f":"IF(DataLog!$C1897=\"Log value\",DataLog!X1897,\"\")","v":""},{"$f":"IF(DataLog!$C1897=\"Log value\",DataLog!Y1897,\"\")","v":""},{"$f":"IF(DataLog!$C1897=\"Log value\",DataLog!Z1897,\"\")","v":""},{"$f":"IF(DataLog!$C1897=\"Log value\",DataLog!AA1897,\"\")","v":""},{"$f":"IF(DataLog!$C1897=\"Log value\",DataLog!AB1897,\"\")","v":""},{"$f":"IF(DataLog!$C1897=\"Log value\",DataLog!AC1897,\"\")","v":""},{"$f":"IF(DataLog!$C1897=\"Log value\",DataLog!AD1897,\"\")","v":""},{"$f":"IF(DataLog!$C1897=\"Log value\",DataLog!AE1897,\"\")","v":""},{"$f":"IF(DataLog!$C1897=\"Log value\",DataLog!AF1897,\"\")","v":""},{"$f":"IF(DataLog!$C1897=\"Log value\",DataLog!AG1897,\"\")","v":""},{"$f":"IF(DataLog!$C1897=\"Log value\",DataLog!AH1897,\"\")","v":""},{"$f":"IF(DataLog!$C1897=\"Log value\",DataLog!AI1897,\"\")","v":""},{"$f":"IF(DataLog!$C1897=\"Log value\",DataLog!AJ1897,\"\")","v":""},{"$f":"IF(DataLog!$C1897=\"Log value\",DataLog!AK1897,\"\")","v":""},{"$f":"IF(DataLog!$C1897=\"Log value\",DataLog!AL1897,\"\")","v":""},{"$f":"IF(DataLog!$C1897=\"Log value\",DataLog!AM1897,\"\")","v":""}]
[null,null,null,null,null,null,{"$f":"IF(DataLog!$C1900=\"Log value\",DataLog!D1900&\"_\"&TEXT(DataLog!B1900,\"åååå-mm-dd\"),\"\")","v":""},{"$f":"IF(DataLog!$C1900=\"Log value\",DataLog!E1900,\"\")","v":""},{"$f":"IF(DataLog!$C1900=\"Log value\",DataLog!F1900,\"\")","v":""},{"$f":"IF(DataLog!$C1900=\"Log value\",DataLog!G1900,\"\")","v":""},{"$f":"IF(DataLog!$C1900=\"Log value\",DataLog!H1900,\"\")","v":""},{"$f":"IF(DataLog!$C1900=\"Log value\",DataLog!I1900,\"\")","v":""},{"$f":"IF(DataLog!$C1900=\"Log value\",DataLog!J1900,\"\")","v":""},{"$f":"IF(DataLog!$C1900=\"Log value\",DataLog!K1900,\"\")","v":""},{"$f":"IF(DataLog!$C1900=\"Log value\",DataLog!L1900,\"\")","v":""},{"$f":"IF(DataLog!$C1900=\"Log value\",DataLog!M1900,\"\")","v":""},{"$f":"IF(DataLog!$C1900=\"Log value\",DataLog!N1900,\"\")","v":""},{"$f":"IF(DataLog!$C1900=\"Log value\",DataLog!O1900,\"\")","v":""},{"$f":"IF(DataLog!$C1900=\"Log value\",DataLog!P1900,\"\")","v":""},{"$f":"IF(DataLog!$C1900=\"Log value\",DataLog!Q1900,\"\")","v":""},{"$f":"IF(DataLog!$C1900=\"Log value\",DataLog!R1900,\"\")","v":""},{"$f":"IF(DataLog!$C1900=\"Log value\",DataLog!S1900,\"\")","v":""},{"$f":"IF(DataLog!$C1900=\"Log value\",DataLog!T1900,\"\")","v":""},{"$f":"IF(DataLog!$C1900=\"Log value\",DataLog!U1900,\"\")","v":""},{"$f":"IF(DataLog!$C1900=\"Log value\",DataLog!V1900,\"\")","v":""},{"$f":"IF(DataLog!$C1900=\"Log value\",DataLog!W1900,\"\")","v":""},{"$f":"IF(DataLog!$C1900=\"Log value\",DataLog!X1900,\"\")","v":""},{"$f":"IF(DataLog!$C1900=\"Log value\",DataLog!Y1900,\"\")","v":""},{"$f":"IF(DataLog!$C1900=\"Log value\",DataLog!Z1900,\"\")","v":""},{"$f":"IF(DataLog!$C1900=\"Log value\",DataLog!AA1900,\"\")","v":""},{"$f":"IF(DataLog!$C1900=\"Log value\",DataLog!AB1900,\"\")","v":""},{"$f":"IF(DataLog!$C1900=\"Log value\",DataLog!AC1900,\"\")","v":""},{"$f":"IF(DataLog!$C1900=\"Log value\",DataLog!AD1900,\"\")","v":""},{"$f":"IF(DataLog!$C1900=\"Log value\",DataLog!AE1900,\"\")","v":""},{"$f":"IF(DataLog!$C1900=\"Log value\",DataLog!AF1900,\"\")","v":""},{"$f":"IF(DataLog!$C1900=\"Log value\",DataLog!AG1900,\"\")","v":""},{"$f":"IF(DataLog!$C1900=\"Log value\",DataLog!AH1900,\"\")","v":""},{"$f":"IF(DataLog!$C1900=\"Log value\",DataLog!AI1900,\"\")","v":""},{"$f":"IF(DataLog!$C1900=\"Log value\",DataLog!AJ1900,\"\")","v":""},{"$f":"IF(DataLog!$C1900=\"Log value\",DataLog!AK1900,\"\")","v":""},{"$f":"IF(DataLog!$C1900=\"Log value\",DataLog!AL1900,\"\")","v":""},{"$f":"IF(DataLog!$C1900=\"Log value\",DataLog!AM1900,\"\")","v":""}]
[null,null,null,null,null,null,{"$f":"IF(DataLog!$C1901=\"Log value\",DataLog!D1901&\"_\"&TEXT(DataLog!B1901,\"åååå-mm-dd\"),\"\")","v":""},{"$f":"IF(DataLog!$C1901=\"Log value\",DataLog!E1901,\"\")","v":""},{"$f":"IF(DataLog!$C1901=\"Log value\",DataLog!F1901,\"\")","v":""},{"$f":"IF(DataLog!$C1901=\"Log value\",DataLog!G1901,\"\")","v":""},{"$f":"IF(DataLog!$C1901=\"Log value\",DataLog!H1901,\"\")","v":""},{"$f":"IF(DataLog!$C1901=\"Log value\",DataLog!I1901,\"\")","v":""},{"$f":"IF(DataLog!$C1901=\"Log value\",DataLog!J1901,\"\")","v":""},{"$f":"IF(DataLog!$C1901=\"Log value\",DataLog!K1901,\"\")","v":""},{"$f":"IF(DataLog!$C1901=\"Log value\",DataLog!L1901,\"\")","v":""},{"$f":"IF(DataLog!$C1901=\"Log value\",DataLog!M1901,\"\")","v":""},{"$f":"IF(DataLog!$C1901=\"Log value\",DataLog!N1901,\"\")","v":""},{"$f":"IF(DataLog!$C1901=\"Log value\",DataLog!O1901,\"\")","v":""},{"$f":"IF(DataLog!$C1901=\"Log value\",DataLog!P1901,\"\")","v":""},{"$f":"IF(DataLog!$C1901=\"Log value\",DataLog!Q1901,\"\")","v":""},{"$f":"IF(DataLog!$C1901=\"Log value\",DataLog!R1901,\"\")","v":""},{"$f":"IF(DataLog!$C1901=\"Log value\",DataLog!S1901,\"\")","v":""},{"$f":"IF(DataLog!$C1901=\"Log value\",DataLog!T1901,\"\")","v":""},{"$f":"IF(DataLog!$C1901=\"Log value\",DataLog!U1901,\"\")","v":""},{"$f":"IF(DataLog!$C1901=\"Log value\",DataLog!V1901,\"\")","v":""},{"$f":"IF(DataLog!$C1901=\"Log value\",DataLog!W1901,\"\")","v":""},{"$f":"IF(DataLog!$C1901=\"Log value\",DataLog!X1901,\"\")","v":""},{"$f":"IF(DataLog!$C1901=\"Log value\",DataLog!Y1901,\"\")","v":""},{"$f":"IF(DataLog!$C1901=\"Log value\",DataLog!Z1901,\"\")","v":""},{"$f":"IF(DataLog!$C1901=\"Log value\",DataLog!AA1901,\"\")","v":""},{"$f":"IF(DataLog!$C1901=\"Log value\",DataLog!AB1901,\"\")","v":""},{"$f":"IF(DataLog!$C1901=\"Log value\",DataLog!AC1901,\"\")","v":""},{"$f":"IF(DataLog!$C1901=\"Log value\",DataLog!AD1901,\"\")","v":""},{"$f":"IF(DataLog!$C1901=\"Log value\",DataLog!AE1901,\"\")","v":""},{"$f":"IF(DataLog!$C1901=\"Log value\",DataLog!AF1901,\"\")","v":""},{"$f":"IF(DataLog!$C1901=\"Log value\",DataLog!AG1901,\"\")","v":""},{"$f":"IF(DataLog!$C1901=\"Log value\",DataLog!AH1901,\"\")","v":""},{"$f":"IF(DataLog!$C1901=\"Log value\",DataLog!AI1901,\"\")","v":""},{"$f":"IF(DataLog!$C1901=\"Log value\",DataLog!AJ1901,\"\")","v":""},{"$f":"IF(DataLog!$C1901=\"Log value\",DataLog!AK1901,\"\")","v":""},{"$f":"IF(DataLog!$C1901=\"Log value\",DataLog!AL1901,\"\")","v":""},{"$f":"IF(DataLog!$C1901=\"Log value\",DataLog!AM1901,\"\")","v":""}]
[null,null,null,null,null,null,{"$f":"IF(DataLog!$C1903=\"Log value\",DataLog!D1903&\"_\"&TEXT(DataLog!B1903,\"åååå-mm-dd\"),\"\")","v":""},{"$f":"IF(DataLog!$C1903=\"Log value\",DataLog!E1903,\"\")","v":""},{"$f":"IF(DataLog!$C1903=\"Log value\",DataLog!F1903,\"\")","v":""},{"$f":"IF(DataLog!$C1903=\"Log value\",DataLog!G1903,\"\")","v":""},{"$f":"IF(DataLog!$C1903=\"Log value\",DataLog!H1903,\"\")","v":""},{"$f":"IF(DataLog!$C1903=\"Log value\",DataLog!I1903,\"\")","v":""},{"$f":"IF(DataLog!$C1903=\"Log value\",DataLog!J1903,\"\")","v":""},{"$f":"IF(DataLog!$C1903=\"Log value\",DataLog!K1903,\"\")","v":""},{"$f":"IF(DataLog!$C1903=\"Log value\",DataLog!L1903,\"\")","v":""},{"$f":"IF(DataLog!$C1903=\"Log value\",DataLog!M1903,\"\")","v":""},{"$f":"IF(DataLog!$C1903=\"Log value\",DataLog!N1903,\"\")","v":""},{"$f":"IF(DataLog!$C1903=\"Log value\",DataLog!O1903,\"\")","v":""},{"$f":"IF(DataLog!$C1903=\"Log value\",DataLog!P1903,\"\")","v":""},{"$f":"IF(DataLog!$C1903=\"Log value\",DataLog!Q1903,\"\")","v":""},{"$f":"IF(DataLog!$C1903=\"Log value\",DataLog!R1903,\"\")","v":""},{"$f":"IF(DataLog!$C1903=\"Log value\",DataLog!S1903,\"\")","v":""},{"$f":"IF(DataLog!$C1903=\"Log value\",DataLog!T1903,\"\")","v":""},{"$f":"IF(DataLog!$C1903=\"Log value\",DataLog!U1903,\"\")","v":""},{"$f":"IF(DataLog!$C1903=\"Log value\",DataLog!V1903,\"\")","v":""},{"$f":"IF(DataLog!$C1903=\"Log value\",DataLog!W1903,\"\")","v":""},{"$f":"IF(DataLog!$C1903=\"Log value\",DataLog!X1903,\"\")","v":""},{"$f":"IF(DataLog!$C1903=\"Log value\",DataLog!Y1903,\"\")","v":""},{"$f":"IF(DataLog!$C1903=\"Log value\",DataLog!Z1903,\"\")","v":""},{"$f":"IF(DataLog!$C1903=\"Log value\",DataLog!AA1903,\"\")","v":""},{"$f":"IF(DataLog!$C1903=\"Log value\",DataLog!AB1903,\"\")","v":""},{"$f":"IF(DataLog!$C1903=\"Log value\",DataLog!AC1903,\"\")","v":""},{"$f":"IF(DataLog!$C1903=\"Log value\",DataLog!AD1903,\"\")","v":""},{"$f":"IF(DataLog!$C1903=\"Log value\",DataLog!AE1903,\"\")","v":""},{"$f":"IF(DataLog!$C1903=\"Log value\",DataLog!AF1903,\"\")","v":""},{"$f":"IF(DataLog!$C1903=\"Log value\",DataLog!AG1903,\"\")","v":""},{"$f":"IF(DataLog!$C1903=\"Log value\",DataLog!AH1903,\"\")","v":""},{"$f":"IF(DataLog!$C1903=\"Log value\",DataLog!AI1903,\"\")","v":""},{"$f":"IF(DataLog!$C1903=\"Log value\",DataLog!AJ1903,\"\")","v":""},{"$f":"IF(DataLog!$C1903=\"Log value\",DataLog!AK1903,\"\")","v":""},{"$f":"IF(DataLog!$C1903=\"Log value\",DataLog!AL1903,\"\")","v":""},{"$f":"IF(DataLog!$C1903=\"Log value\",DataLog!AM1903,\"\")","v":""}]
[null,null,null,null,null,null,{"$f":"IF(DataLog!$C1906=\"Log value\",DataLog!D1906&\"_\"&TEXT(DataLog!B1906,\"åååå-mm-dd\"),\"\")","v":""},{"$f":"IF(DataLog!$C1906=\"Log value\",DataLog!E1906,\"\")","v":""},{"$f":"IF(DataLog!$C1906=\"Log value\",DataLog!F1906,\"\")","v":""},{"$f":"IF(DataLog!$C1906=\"Log value\",DataLog!G1906,\"\")","v":""},{"$f":"IF(DataLog!$C1906=\"Log value\",DataLog!H1906,\"\")","v":""},{"$f":"IF(DataLog!$C1906=\"Log value\",DataLog!I1906,\"\")","v":""},{"$f":"IF(DataLog!$C1906=\"Log value\",DataLog!J1906,\"\")","v":""},{"$f":"IF(DataLog!$C1906=\"Log value\",DataLog!K1906,\"\")","v":""},{"$f":"IF(DataLog!$C1906=\"Log value\",DataLog!L1906,\"\")","v":""},{"$f":"IF(DataLog!$C1906=\"Log value\",DataLog!M1906,\"\")","v":""},{"$f":"IF(DataLog!$C1906=\"Log value\",DataLog!N1906,\"\")","v":""},{"$f":"IF(DataLog!$C1906=\"Log value\",DataLog!O1906,\"\")","v":""},{"$f":"IF(DataLog!$C1906=\"Log value\",DataLog!P1906,\"\")","v":""},{"$f":"IF(DataLog!$C1906=\"Log value\",DataLog!Q1906,\"\")","v":""},{"$f":"IF(DataLog!$C1906=\"Log value\",DataLog!R1906,\"\")","v":""},{"$f":"IF(DataLog!$C1906=\"Log value\",DataLog!S1906,\"\")","v":""},{"$f":"IF(DataLog!$C1906=\"Log value\",DataLog!T1906,\"\")","v":""},{"$f":"IF(DataLog!$C1906=\"Log value\",DataLog!U1906,\"\")","v":""},{"$f":"IF(DataLog!$C1906=\"Log value\",DataLog!V1906,\"\")","v":""},{"$f":"IF(DataLog!$C1906=\"Log value\",DataLog!W1906,\"\")","v":""},{"$f":"IF(DataLog!$C1906=\"Log value\",DataLog!X1906,\"\")","v":""},{"$f":"IF(DataLog!$C1906=\"Log value\",DataLog!Y1906,\"\")","v":""},{"$f":"IF(DataLog!$C1906=\"Log value\",DataLog!Z1906,\"\")","v":""},{"$f":"IF(DataLog!$C1906=\"Log value\",DataLog!AA1906,\"\")","v":""},{"$f":"IF(DataLog!$C1906=\"Log value\",DataLog!AB1906,\"\")","v":""},{"$f":"IF(DataLog!$C1906=\"Log value\",DataLog!AC1906,\"\")","v":""},{"$f":"IF(DataLog!$C1906=\"Log value\",DataLog!AD1906,\"\")","v":""},{"$f":"IF(DataLog!$C1906=\"Log value\",DataLog!AE1906,\"\")","v":""},{"$f":"IF(DataLog!$C1906=\"Log value\",DataLog!AF1906,\"\")","v":""},{"$f":"IF(DataLog!$C1906=\"Log value\",DataLog!AG1906,\"\")","v":""},{"$f":"IF(DataLog!$C1906=\"Log value\",DataLog!AH1906,\"\")","v":""},{"$f":"IF(DataLog!$C1906=\"Log value\",DataLog!AI1906,\"\")","v":""},{"$f":"IF(DataLog!$C1906=\"Log value\",DataLog!AJ1906,\"\")","v":""},{"$f":"IF(DataLog!$C1906=\"Log value\",DataLog!AK1906,\"\")","v":""},{"$f":"IF(DataLog!$C1906=\"Log value\",DataLog!AL1906,\"\")","v":""},{"$f":"IF(DataLog!$C1906=\"Log value\",DataLog!AM1906,\"\")","v":""}]
[null,null,null,null,null,null,{"$f":"IF(DataLog!$C1909=\"Log value\",DataLog!D1909&\"_\"&TEXT(DataLog!B1909,\"åååå-mm-dd\"),\"\")","v":""},{"$f":"IF(DataLog!$C1909=\"Log value\",DataLog!E1909,\"\")","v":""},{"$f":"IF(DataLog!$C1909=\"Log value\",DataLog!F1909,\"\")","v":""},{"$f":"IF(DataLog!$C1909=\"Log value\",DataLog!G1909,\"\")","v":""},{"$f":"IF(DataLog!$C1909=\"Log value\",DataLog!H1909,\"\")","v":""},{"$f":"IF(DataLog!$C1909=\"Log value\",DataLog!I1909,\"\")","v":""},{"$f":"IF(DataLog!$C1909=\"Log value\",DataLog!J1909,\"\")","v":""},{"$f":"IF(DataLog!$C1909=\"Log value\",DataLog!K1909,\"\")","v":""},{"$f":"IF(DataLog!$C1909=\"Log value\",DataLog!L1909,\"\")","v":""},{"$f":"IF(DataLog!$C1909=\"Log value\",DataLog!M1909,\"\")","v":""},{"$f":"IF(DataLog!$C1909=\"Log value\",DataLog!N1909,\"\")","v":""},{"$f":"IF(DataLog!$C1909=\"Log value\",DataLog!O1909,\"\")","v":""},{"$f":"IF(DataLog!$C1909=\"Log value\",DataLog!P1909,\"\")","v":""},{"$f":"IF(DataLog!$C1909=\"Log value\",DataLog!Q1909,\"\")","v":""},{"$f":"IF(DataLog!$C1909=\"Log value\",DataLog!R1909,\"\")","v":""},{"$f":"IF(DataLog!$C1909=\"Log value\",DataLog!S1909,\"\")","v":""},{"$f":"IF(DataLog!$C1909=\"Log value\",DataLog!T1909,\"\")","v":""},{"$f":"IF(DataLog!$C1909=\"Log value\",DataLog!U1909,\"\")","v":""},{"$f":"IF(DataLog!$C1909=\"Log value\",DataLog!V1909,\"\")","v":""},{"$f":"IF(DataLog!$C1909=\"Log value\",DataLog!W1909,\"\")","v":""},{"$f":"IF(DataLog!$C1909=\"Log value\",DataLog!X1909,\"\")","v":""},{"$f":"IF(DataLog!$C1909=\"Log value\",DataLog!Y1909,\"\")","v":""},{"$f":"IF(DataLog!$C1909=\"Log value\",DataLog!Z1909,\"\")","v":""},{"$f":"IF(DataLog!$C1909=\"Log value\",DataLog!AA1909,\"\")","v":""},{"$f":"IF(DataLog!$C1909=\"Log value\",DataLog!AB1909,\"\")","v":""},{"$f":"IF(DataLog!$C1909=\"Log value\",DataLog!AC1909,\"\")","v":""},{"$f":"IF(DataLog!$C1909=\"Log value\",DataLog!AD1909,\"\")","v":""},{"$f":"IF(DataLog!$C1909=\"Log value\",DataLog!AE1909,\"\")","v":""},{"$f":"IF(DataLog!$C1909=\"Log value\",DataLog!AF1909,\"\")","v":""},{"$f":"IF(DataLog!$C1909=\"Log value\",DataLog!AG1909,\"\")","v":""},{"$f":"IF(DataLog!$C1909=\"Log value\",DataLog!AH1909,\"\")","v":""},{"$f":"IF(DataLog!$C1909=\"Log value\",DataLog!AI1909,\"\")","v":""},{"$f":"IF(DataLog!$C1909=\"Log value\",DataLog!AJ1909,\"\")","v":""},{"$f":"IF(DataLog!$C1909=\"Log value\",DataLog!AK1909,\"\")","v":""},{"$f":"IF(DataLog!$C1909=\"Log value\",DataLog!AL1909,\"\")","v":""},{"$f":"IF(DataLog!$C1909=\"Log value\",DataLog!AM1909,\"\")","v":""}]
[null,null,null,null,null,null,{"$f":"IF(DataLog!$C1910=\"Log value\",DataLog!D1910&\"_\"&TEXT(DataLog!B1910,\"åååå-mm-dd\"),\"\")","v":""},{"$f":"IF(DataLog!$C1910=\"Log value\",DataLog!E1910,\"\")","v":""},{"$f":"IF(DataLog!$C1910=\"Log value\",DataLog!F1910,\"\")","v":""},{"$f":"IF(DataLog!$C1910=\"Log value\",DataLog!G1910,\"\")","v":""},{"$f":"IF(DataLog!$C1910=\"Log value\",DataLog!H1910,\"\")","v":""},{"$f":"IF(DataLog!$C1910=\"Log value\",DataLog!I1910,\"\")","v":""},{"$f":"IF(DataLog!$C1910=\"Log value\",DataLog!J1910,\"\")","v":""},{"$f":"IF(DataLog!$C1910=\"Log value\",DataLog!K1910,\"\")","v":""},{"$f":"IF(DataLog!$C1910=\"Log value\",DataLog!L1910,\"\")","v":""},{"$f":"IF(DataLog!$C1910=\"Log value\",DataLog!M1910,\"\")","v":""},{"$f":"IF(DataLog!$C1910=\"Log value\",DataLog!N1910,\"\")","v":""},{"$f":"IF(DataLog!$C1910=\"Log value\",DataLog!O1910,\"\")","v":""},{"$f":"IF(DataLog!$C1910=\"Log value\",DataLog!P1910,\"\")","v":""},{"$f":"IF(DataLog!$C1910=\"Log value\",DataLog!Q1910,\"\")","v":""},{"$f":"IF(DataLog!$C1910=\"Log value\",DataLog!R1910,\"\")","v":""},{"$f":"IF(DataLog!$C1910=\"Log value\",DataLog!S1910,\"\")","v":""},{"$f":"IF(DataLog!$C1910=\"Log value\",DataLog!T1910,\"\")","v":""},{"$f":"IF(DataLog!$C1910=\"Log value\",DataLog!U1910,\"\")","v":""},{"$f":"IF(DataLog!$C1910=\"Log value\",DataLog!V1910,\"\")","v":""},{"$f":"IF(DataLog!$C1910=\"Log value\",DataLog!W1910,\"\")","v":""},{"$f":"IF(DataLog!$C1910=\"Log value\",DataLog!X1910,\"\")","v":""},{"$f":"IF(DataLog!$C1910=\"Log value\",DataLog!Y1910,\"\")","v":""},{"$f":"IF(DataLog!$C1910=\"Log value\",DataLog!Z1910,\"\")","v":""},{"$f":"IF(DataLog!$C1910=\"Log value\",DataLog!AA1910,\"\")","v":""},{"$f":"IF(DataLog!$C1910=\"Log value\",DataLog!AB1910,\"\")","v":""},{"$f":"IF(DataLog!$C1910=\"Log value\",DataLog!AC1910,\"\")","v":""},{"$f":"IF(DataLog!$C1910=\"Log value\",DataLog!AD1910,\"\")","v":""},{"$f":"IF(DataLog!$C1910=\"Log value\",DataLog!AE1910,\"\")","v":""},{"$f":"IF(DataLog!$C1910=\"Log value\",DataLog!AF1910,\"\")","v":""},{"$f":"IF(DataLog!$C1910=\"Log value\",DataLog!AG1910,\"\")","v":""},{"$f":"IF(DataLog!$C1910=\"Log value\",DataLog!AH1910,\"\")","v":""},{"$f":"IF(DataLog!$C1910=\"Log value\",DataLog!AI1910,\"\")","v":""},{"$f":"IF(DataLog!$C1910=\"Log value\",DataLog!AJ1910,\"\")","v":""},{"$f":"IF(DataLog!$C1910=\"Log value\",DataLog!AK1910,\"\")","v":""},{"$f":"IF(DataLog!$C1910=\"Log value\",DataLog!AL1910,\"\")","v":""},{"$f":"IF(DataLog!$C1910=\"Log value\",DataLog!AM1910,\"\")","v":""}]
[null,null,null,null,null,null,{"$f":"IF(DataLog!$C1913=\"Log value\",DataLog!D1913&\"_\"&TEXT(DataLog!B1913,\"åååå-mm-dd\"),\"\")","v":""},{"$f":"IF(DataLog!$C1913=\"Log value\",DataLog!E1913,\"\")","v":""},{"$f":"IF(DataLog!$C1913=\"Log value\",DataLog!F1913,\"\")","v":""},{"$f":"IF(DataLog!$C1913=\"Log value\",DataLog!G1913,\"\")","v":""},{"$f":"IF(DataLog!$C1913=\"Log value\",DataLog!H1913,\"\")","v":""},{"$f":"IF(DataLog!$C1913=\"Log value\",DataLog!I1913,\"\")","v":""},{"$f":"IF(DataLog!$C1913=\"Log value\",DataLog!J1913,\"\")","v":""},{"$f":"IF(DataLog!$C1913=\"Log value\",DataLog!K1913,\"\")","v":""},{"$f":"IF(DataLog!$C1913=\"Log value\",DataLog!L1913,\"\")","v":""},{"$f":"IF(DataLog!$C1913=\"Log value\",DataLog!M1913,\"\")","v":""},{"$f":"IF(DataLog!$C1913=\"Log value\",DataLog!N1913,\"\")","v":""},{"$f":"IF(DataLog!$C1913=\"Log value\",DataLog!O1913,\"\")","v":""},{"$f":"IF(DataLog!$C1913=\"Log value\",DataLog!P1913,\"\")","v":""},{"$f":"IF(DataLog!$C1913=\"Log value\",DataLog!Q1913,\"\")","v":""},{"$f":"IF(DataLog!$C1913=\"Log value\",DataLog!R1913,\"\")","v":""},{"$f":"IF(DataLog!$C1913=\"Log value\",DataLog!S1913,\"\")","v":""},{"$f":"IF(DataLog!$C1913=\"Log value\",DataLog!T1913,\"\")","v":""},{"$f":"IF(DataLog!$C1913=\"Log value\",DataLog!U1913,\"\")","v":""},{"$f":"IF(DataLog!$C1913=\"Log value\",DataLog!V1913,\"\")","v":""},{"$f":"IF(DataLog!$C1913=\"Log value\",DataLog!W1913,\"\")","v":""},{"$f":"IF(DataLog!$C1913=\"Log value\",DataLog!X1913,\"\")","v":""},{"$f":"IF(DataLog!$C1913=\"Log value\",DataLog!Y1913,\"\")","v":""},{"$f":"IF(DataLog!$C1913=\"Log value\",DataLog!Z1913,\"\")","v":""},{"$f":"IF(DataLog!$C1913=\"Log value\",DataLog!AA1913,\"\")","v":""},{"$f":"IF(DataLog!$C1913=\"Log value\",DataLog!AB1913,\"\")","v":""},{"$f":"IF(DataLog!$C1913=\"Log value\",DataLog!AC1913,\"\")","v":""},{"$f":"IF(DataLog!$C1913=\"Log value\",DataLog!AD1913,\"\")","v":""},{"$f":"IF(DataLog!$C1913=\"Log value\",DataLog!AE1913,\"\")","v":""},{"$f":"IF(DataLog!$C1913=\"Log value\",DataLog!AF1913,\"\")","v":""},{"$f":"IF(DataLog!$C1913=\"Log value\",DataLog!AG1913,\"\")","v":""},{"$f":"IF(DataLog!$C1913=\"Log value\",DataLog!AH1913,\"\")","v":""},{"$f":"IF(DataLog!$C1913=\"Log value\",DataLog!AI1913,\"\")","v":""},{"$f":"IF(DataLog!$C1913=\"Log value\",DataLog!AJ1913,\"\")","v":""},{"$f":"IF(DataLog!$C1913=\"Log value\",DataLog!AK1913,\"\")","v":""},{"$f":"IF(DataLog!$C1913=\"Log value\",DataLog!AL1913,\"\")","v":""},{"$f":"IF(DataLog!$C1913=\"Log value\",DataLog!AM1913,\"\")","v":""}]
[null,null,null,null,null,null,{"$f":"IF(DataLog!$C1915=\"Log value\",DataLog!D1915&\"_\"&TEXT(DataLog!B1915,\"åååå-mm-dd\"),\"\")","v":""},{"$f":"IF(DataLog!$C1915=\"Log value\",DataLog!E1915,\"\")","v":""},{"$f":"IF(DataLog!$C1915=\"Log value\",DataLog!F1915,\"\")","v":""},{"$f":"IF(DataLog!$C1915=\"Log value\",DataLog!G1915,\"\")","v":""},{"$f":"IF(DataLog!$C1915=\"Log value\",DataLog!H1915,\"\")","v":""},{"$f":"IF(DataLog!$C1915=\"Log value\",DataLog!I1915,\"\")","v":""},{"$f":"IF(DataLog!$C1915=\"Log value\",DataLog!J1915,\"\")","v":""},{"$f":"IF(DataLog!$C1915=\"Log value\",DataLog!K1915,\"\")","v":""},{"$f":"IF(DataLog!$C1915=\"Log value\",DataLog!L1915,\"\")","v":""},{"$f":"IF(DataLog!$C1915=\"Log value\",DataLog!M1915,\"\")","v":""},{"$f":"IF(DataLog!$C1915=\"Log value\",DataLog!N1915,\"\")","v":""},{"$f":"IF(DataLog!$C1915=\"Log value\",DataLog!O1915,\"\")","v":""},{"$f":"IF(DataLog!$C1915=\"Log value\",DataLog!P1915,\"\")","v":""},{"$f":"IF(DataLog!$C1915=\"Log value\",DataLog!Q1915,\"\")","v":""},{"$f":"IF(DataLog!$C1915=\"Log value\",DataLog!R1915,\"\")","v":""},{"$f":"IF(DataLog!$C1915=\"Log value\",DataLog!S1915,\"\")","v":""},{"$f":"IF(DataLog!$C1915=\"Log value\",DataLog!T1915,\"\")","v":""},{"$f":"IF(DataLog!$C1915=\"Log value\",DataLog!U1915,\"\")","v":""},{"$f":"IF(DataLog!$C1915=\"Log value\",DataLog!V1915,\"\")","v":""},{"$f":"IF(DataLog!$C1915=\"Log value\",DataLog!W1915,\"\")","v":""},{"$f":"IF(DataLog!$C1915=\"Log value\",DataLog!X1915,\"\")","v":""},{"$f":"IF(DataLog!$C1915=\"Log value\",DataLog!Y1915,\"\")","v":""},{"$f":"IF(DataLog!$C1915=\"Log value\",DataLog!Z1915,\"\")","v":""},{"$f":"IF(DataLog!$C1915=\"Log value\",DataLog!AA1915,\"\")","v":""},{"$f":"IF(DataLog!$C1915=\"Log value\",DataLog!AB1915,\"\")","v":""},{"$f":"IF(DataLog!$C1915=\"Log value\",DataLog!AC1915,\"\")","v":""},{"$f":"IF(DataLog!$C1915=\"Log value\",DataLog!AD1915,\"\")","v":""},{"$f":"IF(DataLog!$C1915=\"Log value\",DataLog!AE1915,\"\")","v":""},{"$f":"IF(DataLog!$C1915=\"Log value\",DataLog!AF1915,\"\")","v":""},{"$f":"IF(DataLog!$C1915=\"Log value\",DataLog!AG1915,\"\")","v":""},{"$f":"IF(DataLog!$C1915=\"Log value\",DataLog!AH1915,\"\")","v":""},{"$f":"IF(DataLog!$C1915=\"Log value\",DataLog!AI1915,\"\")","v":""},{"$f":"IF(DataLog!$C1915=\"Log value\",DataLog!AJ1915,\"\")","v":""},{"$f":"IF(DataLog!$C1915=\"Log value\",DataLog!AK1915,\"\")","v":""},{"$f":"IF(DataLog!$C1915=\"Log value\",DataLog!AL1915,\"\")","v":""},{"$f":"IF(DataLog!$C1915=\"Log value\",DataLog!AM1915,\"\")","v":""}]
[null,null,null,null,null,null,{"$f":"IF(DataLog!$C1918=\"Log value\",DataLog!D1918&\"_\"&TEXT(DataLog!B1918,\"åååå-mm-dd\"),\"\")","v":""},{"$f":"IF(DataLog!$C1918=\"Log value\",DataLog!E1918,\"\")","v":""},{"$f":"IF(DataLog!$C1918=\"Log value\",DataLog!F1918,\"\")","v":""},{"$f":"IF(DataLog!$C1918=\"Log value\",DataLog!G1918,\"\")","v":""},{"$f":"IF(DataLog!$C1918=\"Log value\",DataLog!H1918,\"\")","v":""},{"$f":"IF(DataLog!$C1918=\"Log value\",DataLog!I1918,\"\")","v":""},{"$f":"IF(DataLog!$C1918=\"Log value\",DataLog!J1918,\"\")","v":""},{"$f":"IF(DataLog!$C1918=\"Log value\",DataLog!K1918,\"\")","v":""},{"$f":"IF(DataLog!$C1918=\"Log value\",DataLog!L1918,\"\")","v":""},{"$f":"IF(DataLog!$C1918=\"Log value\",DataLog!M1918,\"\")","v":""},{"$f":"IF(DataLog!$C1918=\"Log value\",DataLog!N1918,\"\")","v":""},{"$f":"IF(DataLog!$C1918=\"Log value\",DataLog!O1918,\"\")","v":""},{"$f":"IF(DataLog!$C1918=\"Log value\",DataLog!P1918,\"\")","v":""},{"$f":"IF(DataLog!$C1918=\"Log value\",DataLog!Q1918,\"\")","v":""},{"$f":"IF(DataLog!$C1918=\"Log value\",DataLog!R1918,\"\")","v":""},{"$f":"IF(DataLog!$C1918=\"Log value\",DataLog!S1918,\"\")","v":""},{"$f":"IF(DataLog!$C1918=\"Log value\",DataLog!T1918,\"\")","v":""},{"$f":"IF(DataLog!$C1918=\"Log value\",DataLog!U1918,\"\")","v":""},{"$f":"IF(DataLog!$C1918=\"Log value\",DataLog!V1918,\"\")","v":""},{"$f":"IF(DataLog!$C1918=\"Log value\",DataLog!W1918,\"\")","v":""},{"$f":"IF(DataLog!$C1918=\"Log value\",DataLog!X1918,\"\")","v":""},{"$f":"IF(DataLog!$C1918=\"Log value\",DataLog!Y1918,\"\")","v":""},{"$f":"IF(DataLog!$C1918=\"Log value\",DataLog!Z1918,\"\")","v":""},{"$f":"IF(DataLog!$C1918=\"Log value\",DataLog!AA1918,\"\")","v":""},{"$f":"IF(DataLog!$C1918=\"Log value\",DataLog!AB1918,\"\")","v":""},{"$f":"IF(DataLog!$C1918=\"Log value\",DataLog!AC1918,\"\")","v":""},{"$f":"IF(DataLog!$C1918=\"Log value\",DataLog!AD1918,\"\")","v":""},{"$f":"IF(DataLog!$C1918=\"Log value\",DataLog!AE1918,\"\")","v":""},{"$f":"IF(DataLog!$C1918=\"Log value\",DataLog!AF1918,\"\")","v":""},{"$f":"IF(DataLog!$C1918=\"Log value\",DataLog!AG1918,\"\")","v":""},{"$f":"IF(DataLog!$C1918=\"Log value\",DataLog!AH1918,\"\")","v":""},{"$f":"IF(DataLog!$C1918=\"Log value\",DataLog!AI1918,\"\")","v":""},{"$f":"IF(DataLog!$C1918=\"Log value\",DataLog!AJ1918,\"\")","v":""},{"$f":"IF(DataLog!$C1918=\"Log value\",DataLog!AK1918,\"\")","v":""},{"$f":"IF(DataLog!$C1918=\"Log value\",DataLog!AL1918,\"\")","v":""},{"$f":"IF(DataLog!$C1918=\"Log value\",DataLog!AM1918,\"\")","v":""}]
[null,null,null,null,null,null,{"$f":"IF(DataLog!$C1919=\"Log value\",DataLog!D1919&\"_\"&TEXT(DataLog!B1919,\"åååå-mm-dd\"),\"\")","v":""},{"$f":"IF(DataLog!$C1919=\"Log value\",DataLog!E1919,\"\")","v":""},{"$f":"IF(DataLog!$C1919=\"Log value\",DataLog!F1919,\"\")","v":""},{"$f":"IF(DataLog!$C1919=\"Log value\",DataLog!G1919,\"\")","v":""},{"$f":"IF(DataLog!$C1919=\"Log value\",DataLog!H1919,\"\")","v":""},{"$f":"IF(DataLog!$C1919=\"Log value\",DataLog!I1919,\"\")","v":""},{"$f":"IF(DataLog!$C1919=\"Log value\",DataLog!J1919,\"\")","v":""},{"$f":"IF(DataLog!$C1919=\"Log value\",DataLog!K1919,\"\")","v":""},{"$f":"IF(DataLog!$C1919=\"Log value\",DataLog!L1919,\"\")","v":""},{"$f":"IF(DataLog!$C1919=\"Log value\",DataLog!M1919,\"\")","v":""},{"$f":"IF(DataLog!$C1919=\"Log value\",DataLog!N1919,\"\")","v":""},{"$f":"IF(DataLog!$C1919=\"Log value\",DataLog!O1919,\"\")","v":""},{"$f":"IF(DataLog!$C1919=\"Log value\",DataLog!P1919,\"\")","v":""},{"$f":"IF(DataLog!$C1919=\"Log value\",DataLog!Q1919,\"\")","v":""},{"$f":"IF(DataLog!$C1919=\"Log value\",DataLog!R1919,\"\")","v":""},{"$f":"IF(DataLog!$C1919=\"Log value\",DataLog!S1919,\"\")","v":""},{"$f":"IF(DataLog!$C1919=\"Log value\",DataLog!T1919,\"\")","v":""},{"$f":"IF(DataLog!$C1919=\"Log value\",DataLog!U1919,\"\")","v":""},{"$f":"IF(DataLog!$C1919=\"Log value\",DataLog!V1919,\"\")","v":""},{"$f":"IF(DataLog!$C1919=\"Log value\",DataLog!W1919,\"\")","v":""},{"$f":"IF(DataLog!$C1919=\"Log value\",DataLog!X1919,\"\")","v":""},{"$f":"IF(DataLog!$C1919=\"Log value\",DataLog!Y1919,\"\")","v":""},{"$f":"IF(DataLog!$C1919=\"Log value\",DataLog!Z1919,\"\")","v":""},{"$f":"IF(DataLog!$C1919=\"Log value\",DataLog!AA1919,\"\")","v":""},{"$f":"IF(DataLog!$C1919=\"Log value\",DataLog!AB1919,\"\")","v":""},{"$f":"IF(DataLog!$C1919=\"Log value\",DataLog!AC1919,\"\")","v":""},{"$f":"IF(DataLog!$C1919=\"Log value\",DataLog!AD1919,\"\")","v":""},{"$f":"IF(DataLog!$C1919=\"Log value\",DataLog!AE1919,\"\")","v":""},{"$f":"IF(DataLog!$C1919=\"Log value\",DataLog!AF1919,\"\")","v":""},{"$f":"IF(DataLog!$C1919=\"Log value\",DataLog!AG1919,\"\")","v":""},{"$f":"IF(DataLog!$C1919=\"Log value\",DataLog!AH1919,\"\")","v":""},{"$f":"IF(DataLog!$C1919=\"Log value\",DataLog!AI1919,\"\")","v":""},{"$f":"IF(DataLog!$C1919=\"Log value\",DataLog!AJ1919,\"\")","v":""},{"$f":"IF(DataLog!$C1919=\"Log value\",DataLog!AK1919,\"\")","v":""},{"$f":"IF(DataLog!$C1919=\"Log value\",DataLog!AL1919,\"\")","v":""},{"$f":"IF(DataLog!$C1919=\"Log value\",DataLog!AM1919,\"\")","v":""}]
[null,null,null,null,null,null,{"$f":"IF(DataLog!$C1921=\"Log value\",DataLog!D1921&\"_\"&TEXT(DataLog!B1921,\"åååå-mm-dd\"),\"\")","v":""},{"$f":"IF(DataLog!$C1921=\"Log value\",DataLog!E1921,\"\")","v":""},{"$f":"IF(DataLog!$C1921=\"Log value\",DataLog!F1921,\"\")","v":""},{"$f":"IF(DataLog!$C1921=\"Log value\",DataLog!G1921,\"\")","v":""},{"$f":"IF(DataLog!$C1921=\"Log value\",DataLog!H1921,\"\")","v":""},{"$f":"IF(DataLog!$C1921=\"Log value\",DataLog!I1921,\"\")","v":""},{"$f":"IF(DataLog!$C1921=\"Log value\",DataLog!J1921,\"\")","v":""},{"$f":"IF(DataLog!$C1921=\"Log value\",DataLog!K1921,\"\")","v":""},{"$f":"IF(DataLog!$C1921=\"Log value\",DataLog!L1921,\"\")","v":""},{"$f":"IF(DataLog!$C1921=\"Log value\",DataLog!M1921,\"\")","v":""},{"$f":"IF(DataLog!$C1921=\"Log value\",DataLog!N1921,\"\")","v":""},{"$f":"IF(DataLog!$C1921=\"Log value\",DataLog!O1921,\"\")","v":""},{"$f":"IF(DataLog!$C1921=\"Log value\",DataLog!P1921,\"\")","v":""},{"$f":"IF(DataLog!$C1921=\"Log value\",DataLog!Q1921,\"\")","v":""},{"$f":"IF(DataLog!$C1921=\"Log value\",DataLog!R1921,\"\")","v":""},{"$f":"IF(DataLog!$C1921=\"Log value\",DataLog!S1921,\"\")","v":""},{"$f":"IF(DataLog!$C1921=\"Log value\",DataLog!T1921,\"\")","v":""},{"$f":"IF(DataLog!$C1921=\"Log value\",DataLog!U1921,\"\")","v":""},{"$f":"IF(DataLog!$C1921=\"Log value\",DataLog!V1921,\"\")","v":""},{"$f":"IF(DataLog!$C1921=\"Log value\",DataLog!W1921,\"\")","v":""},{"$f":"IF(DataLog!$C1921=\"Log value\",DataLog!X1921,\"\")","v":""},{"$f":"IF(DataLog!$C1921=\"Log value\",DataLog!Y1921,\"\")","v":""},{"$f":"IF(DataLog!$C1921=\"Log value\",DataLog!Z1921,\"\")","v":""},{"$f":"IF(DataLog!$C1921=\"Log value\",DataLog!AA1921,\"\")","v":""},{"$f":"IF(DataLog!$C1921=\"Log value\",DataLog!AB1921,\"\")","v":""},{"$f":"IF(DataLog!$C1921=\"Log value\",DataLog!AC1921,\"\")","v":""},{"$f":"IF(DataLog!$C1921=\"Log value\",DataLog!AD1921,\"\")","v":""},{"$f":"IF(DataLog!$C1921=\"Log value\",DataLog!AE1921,\"\")","v":""},{"$f":"IF(DataLog!$C1921=\"Log value\",DataLog!AF1921,\"\")","v":""},{"$f":"IF(DataLog!$C1921=\"Log value\",DataLog!AG1921,\"\")","v":""},{"$f":"IF(DataLog!$C1921=\"Log value\",DataLog!AH1921,\"\")","v":""},{"$f":"IF(DataLog!$C1921=\"Log value\",DataLog!AI1921,\"\")","v":""},{"$f":"IF(DataLog!$C1921=\"Log value\",DataLog!AJ1921,\"\")","v":""},{"$f":"IF(DataLog!$C1921=\"Log value\",DataLog!AK1921,\"\")","v":""},{"$f":"IF(DataLog!$C1921=\"Log value\",DataLog!AL1921,\"\")","v":""},{"$f":"IF(DataLog!$C1921=\"Log value\",DataLog!AM1921,\"\")","v":""}]
[null,null,null,null,null,null,{"$f":"IF(DataLog!$C1924=\"Log value\",DataLog!D1924&\"_\"&TEXT(DataLog!B1924,\"åååå-mm-dd\"),\"\")","v":""},{"$f":"IF(DataLog!$C1924=\"Log value\",DataLog!E1924,\"\")","v":""},{"$f":"IF(DataLog!$C1924=\"Log value\",DataLog!F1924,\"\")","v":""},{"$f":"IF(DataLog!$C1924=\"Log value\",DataLog!G1924,\"\")","v":""},{"$f":"IF(DataLog!$C1924=\"Log value\",DataLog!H1924,\"\")","v":""},{"$f":"IF(DataLog!$C1924=\"Log value\",DataLog!I1924,\"\")","v":""},{"$f":"IF(DataLog!$C1924=\"Log value\",DataLog!J1924,\"\")","v":""},{"$f":"IF(DataLog!$C1924=\"Log value\",DataLog!K1924,\"\")","v":""},{"$f":"IF(DataLog!$C1924=\"Log value\",DataLog!L1924,\"\")","v":""},{"$f":"IF(DataLog!$C1924=\"Log value\",DataLog!M1924,\"\")","v":""},{"$f":"IF(DataLog!$C1924=\"Log value\",DataLog!N1924,\"\")","v":""},{"$f":"IF(DataLog!$C1924=\"Log value\",DataLog!O1924,\"\")","v":""},{"$f":"IF(DataLog!$C1924=\"Log value\",DataLog!P1924,\"\")","v":""},{"$f":"IF(DataLog!$C1924=\"Log value\",DataLog!Q1924,\"\")","v":""},{"$f":"IF(DataLog!$C1924=\"Log value\",DataLog!R1924,\"\")","v":""},{"$f":"IF(DataLog!$C1924=\"Log value\",DataLog!S1924,\"\")","v":""},{"$f":"IF(DataLog!$C1924=\"Log value\",DataLog!T1924,\"\")","v":""},{"$f":"IF(DataLog!$C1924=\"Log value\",DataLog!U1924,\"\")","v":""},{"$f":"IF(DataLog!$C1924=\"Log value\",DataLog!V1924,\"\")","v":""},{"$f":"IF(DataLog!$C1924=\"Log value\",DataLog!W1924,\"\")","v":""},{"$f":"IF(DataLog!$C1924=\"Log value\",DataLog!X1924,\"\")","v":""},{"$f":"IF(DataLog!$C1924=\"Log value\",DataLog!Y1924,\"\")","v":""},{"$f":"IF(DataLog!$C1924=\"Log value\",DataLog!Z1924,\"\")","v":""},{"$f":"IF(DataLog!$C1924=\"Log value\",DataLog!AA1924,\"\")","v":""},{"$f":"IF(DataLog!$C1924=\"Log value\",DataLog!AB1924,\"\")","v":""},{"$f":"IF(DataLog!$C1924=\"Log value\",DataLog!AC1924,\"\")","v":""},{"$f":"IF(DataLog!$C1924=\"Log value\",DataLog!AD1924,\"\")","v":""},{"$f":"IF(DataLog!$C1924=\"Log value\",DataLog!AE1924,\"\")","v":""},{"$f":"IF(DataLog!$C1924=\"Log value\",DataLog!AF1924,\"\")","v":""},{"$f":"IF(DataLog!$C1924=\"Log value\",DataLog!AG1924,\"\")","v":""},{"$f":"IF(DataLog!$C1924=\"Log value\",DataLog!AH1924,\"\")","v":""},{"$f":"IF(DataLog!$C1924=\"Log value\",DataLog!AI1924,\"\")","v":""},{"$f":"IF(DataLog!$C1924=\"Log value\",DataLog!AJ1924,\"\")","v":""},{"$f":"IF(DataLog!$C1924=\"Log value\",DataLog!AK1924,\"\")","v":""},{"$f":"IF(DataLog!$C1924=\"Log value\",DataLog!AL1924,\"\")","v":""},{"$f":"IF(DataLog!$C1924=\"Log value\",DataLog!AM1924,\"\")","v":""}]
[null,null,null,null,null,null,{"$f":"IF(DataLog!$C1927=\"Log value\",DataLog!D1927&\"_\"&TEXT(DataLog!B1927,\"åååå-mm-dd\"),\"\")","v":""},{"$f":"IF(DataLog!$C1927=\"Log value\",DataLog!E1927,\"\")","v":""},{"$f":"IF(DataLog!$C1927=\"Log value\",DataLog!F1927,\"\")","v":""},{"$f":"IF(DataLog!$C1927=\"Log value\",DataLog!G1927,\"\")","v":""},{"$f":"IF(DataLog!$C1927=\"Log value\",DataLog!H1927,\"\")","v":""},{"$f":"IF(DataLog!$C1927=\"Log value\",DataLog!I1927,\"\")","v":""},{"$f":"IF(DataLog!$C1927=\"Log value\",DataLog!J1927,\"\")","v":""},{"$f":"IF(DataLog!$C1927=\"Log value\",DataLog!K1927,\"\")","v":""},{"$f":"IF(DataLog!$C1927=\"Log value\",DataLog!L1927,\"\")","v":""},{"$f":"IF(DataLog!$C1927=\"Log value\",DataLog!M1927,\"\")","v":""},{"$f":"IF(DataLog!$C1927=\"Log value\",DataLog!N1927,\"\")","v":""},{"$f":"IF(DataLog!$C1927=\"Log value\",DataLog!O1927,\"\")","v":""},{"$f":"IF(DataLog!$C1927=\"Log value\",DataLog!P1927,\"\")","v":""},{"$f":"IF(DataLog!$C1927=\"Log value\",DataLog!Q1927,\"\")","v":""},{"$f":"IF(DataLog!$C1927=\"Log value\",DataLog!R1927,\"\")","v":""},{"$f":"IF(DataLog!$C1927=\"Log value\",DataLog!S1927,\"\")","v":""},{"$f":"IF(DataLog!$C1927=\"Log value\",DataLog!T1927,\"\")","v":""},{"$f":"IF(DataLog!$C1927=\"Log value\",DataLog!U1927,\"\")","v":""},{"$f":"IF(DataLog!$C1927=\"Log value\",DataLog!V1927,\"\")","v":""},{"$f":"IF(DataLog!$C1927=\"Log value\",DataLog!W1927,\"\")","v":""},{"$f":"IF(DataLog!$C1927=\"Log value\",DataLog!X1927,\"\")","v":""},{"$f":"IF(DataLog!$C1927=\"Log value\",DataLog!Y1927,\"\")","v":""},{"$f":"IF(DataLog!$C1927=\"Log value\",DataLog!Z1927,\"\")","v":""},{"$f":"IF(DataLog!$C1927=\"Log value\",DataLog!AA1927,\"\")","v":""},{"$f":"IF(DataLog!$C1927=\"Log value\",DataLog!AB1927,\"\")","v":""},{"$f":"IF(DataLog!$C1927=\"Log value\",DataLog!AC1927,\"\")","v":""},{"$f":"IF(DataLog!$C1927=\"Log value\",DataLog!AD1927,\"\")","v":""},{"$f":"IF(DataLog!$C1927=\"Log value\",DataLog!AE1927,\"\")","v":""},{"$f":"IF(DataLog!$C1927=\"Log value\",DataLog!AF1927,\"\")","v":""},{"$f":"IF(DataLog!$C1927=\"Log value\",DataLog!AG1927,\"\")","v":""},{"$f":"IF(DataLog!$C1927=\"Log value\",DataLog!AH1927,\"\")","v":""},{"$f":"IF(DataLog!$C1927=\"Log value\",DataLog!AI1927,\"\")","v":""},{"$f":"IF(DataLog!$C1927=\"Log value\",DataLog!AJ1927,\"\")","v":""},{"$f":"IF(DataLog!$C1927=\"Log value\",DataLog!AK1927,\"\")","v":""},{"$f":"IF(DataLog!$C1927=\"Log value\",DataLog!AL1927,\"\")","v":""},{"$f":"IF(DataLog!$C1927=\"Log value\",DataLog!AM1927,\"\")","v":""}]
[null,null,null,null,null,null,{"$f":"IF(DataLog!$C1929=\"Log value\",DataLog!D1929&\"_\"&TEXT(DataLog!B1929,\"åååå-mm-dd\"),\"\")","v":""},{"$f":"IF(DataLog!$C1929=\"Log value\",DataLog!E1929,\"\")","v":""},{"$f":"IF(DataLog!$C1929=\"Log value\",DataLog!F1929,\"\")","v":""},{"$f":"IF(DataLog!$C1929=\"Log value\",DataLog!G1929,\"\")","v":""},{"$f":"IF(DataLog!$C1929=\"Log value\",DataLog!H1929,\"\")","v":""},{"$f":"IF(DataLog!$C1929=\"Log value\",DataLog!I1929,\"\")","v":""},{"$f":"IF(DataLog!$C1929=\"Log value\",DataLog!J1929,\"\")","v":""},{"$f":"IF(DataLog!$C1929=\"Log value\",DataLog!K1929,\"\")","v":""},{"$f":"IF(DataLog!$C1929=\"Log value\",DataLog!L1929,\"\")","v":""},{"$f":"IF(DataLog!$C1929=\"Log value\",DataLog!M1929,\"\")","v":""},{"$f":"IF(DataLog!$C1929=\"Log value\",DataLog!N1929,\"\")","v":""},{"$f":"IF(DataLog!$C1929=\"Log value\",DataLog!O1929,\"\")","v":""},{"$f":"IF(DataLog!$C1929=\"Log value\",DataLog!P1929,\"\")","v":""},{"$f":"IF(DataLog!$C1929=\"Log value\",DataLog!Q1929,\"\")","v":""},{"$f":"IF(DataLog!$C1929=\"Log value\",DataLog!R1929,\"\")","v":""},{"$f":"IF(DataLog!$C1929=\"Log value\",DataLog!S1929,\"\")","v":""},{"$f":"IF(DataLog!$C1929=\"Log value\",DataLog!T1929,\"\")","v":""},{"$f":"IF(DataLog!$C1929=\"Log value\",DataLog!U1929,\"\")","v":""},{"$f":"IF(DataLog!$C1929=\"Log value\",DataLog!V1929,\"\")","v":""},{"$f":"IF(DataLog!$C1929=\"Log value\",DataLog!W1929,\"\")","v":""},{"$f":"IF(DataLog!$C1929=\"Log value\",DataLog!X1929,\"\")","v":""},{"$f":"IF(DataLog!$C1929=\"Log value\",DataLog!Y1929,\"\")","v":""},{"$f":"IF(DataLog!$C1929=\"Log value\",DataLog!Z1929,\"\")","v":""},{"$f":"IF(DataLog!$C1929=\"Log value\",DataLog!AA1929,\"\")","v":""},{"$f":"IF(DataLog!$C1929=\"Log value\",DataLog!AB1929,\"\")","v":""},{"$f":"IF(DataLog!$C1929=\"Log value\",DataLog!AC1929,\"\")","v":""},{"$f":"IF(DataLog!$C1929=\"Log value\",DataLog!AD1929,\"\")","v":""},{"$f":"IF(DataLog!$C1929=\"Log value\",DataLog!AE1929,\"\")","v":""},{"$f":"IF(DataLog!$C1929=\"Log value\",DataLog!AF1929,\"\")","v":""},{"$f":"IF(DataLog!$C1929=\"Log value\",DataLog!AG1929,\"\")","v":""},{"$f":"IF(DataLog!$C1929=\"Log value\",DataLog!AH1929,\"\")","v":""},{"$f":"IF(DataLog!$C1929=\"Log value\",DataLog!AI1929,\"\")","v":""},{"$f":"IF(DataLog!$C1929=\"Log value\",DataLog!AJ1929,\"\")","v":""},{"$f":"IF(DataLog!$C1929=\"Log value\",DataLog!AK1929,\"\")","v":""},{"$f":"IF(DataLog!$C1929=\"Log value\",DataLog!AL1929,\"\")","v":""},{"$f":"IF(DataLog!$C1929=\"Log value\",DataLog!AM1929,\"\")","v":""}]
[null,null,null,null,null,null,{"$f":"IF(DataLog!$C1932=\"Log value\",DataLog!D1932&\"_\"&TEXT(DataLog!B1932,\"åååå-mm-dd\"),\"\")","v":""},{"$f":"IF(DataLog!$C1932=\"Log value\",DataLog!E1932,\"\")","v":""},{"$f":"IF(DataLog!$C1932=\"Log value\",DataLog!F1932,\"\")","v":""},{"$f":"IF(DataLog!$C1932=\"Log value\",DataLog!G1932,\"\")","v":""},{"$f":"IF(DataLog!$C1932=\"Log value\",DataLog!H1932,\"\")","v":""},{"$f":"IF(DataLog!$C1932=\"Log value\",DataLog!I1932,\"\")","v":""},{"$f":"IF(DataLog!$C1932=\"Log value\",DataLog!J1932,\"\")","v":""},{"$f":"IF(DataLog!$C1932=\"Log value\",DataLog!K1932,\"\")","v":""},{"$f":"IF(DataLog!$C1932=\"Log value\",DataLog!L1932,\"\")","v":""},{"$f":"IF(DataLog!$C1932=\"Log value\",DataLog!M1932,\"\")","v":""},{"$f":"IF(DataLog!$C1932=\"Log value\",DataLog!N1932,\"\")","v":""},{"$f":"IF(DataLog!$C1932=\"Log value\",DataLog!O1932,\"\")","v":""},{"$f":"IF(DataLog!$C1932=\"Log value\",DataLog!P1932,\"\")","v":""},{"$f":"IF(DataLog!$C1932=\"Log value\",DataLog!Q1932,\"\")","v":""},{"$f":"IF(DataLog!$C1932=\"Log value\",DataLog!R1932,\"\")","v":""},{"$f":"IF(DataLog!$C1932=\"Log value\",DataLog!S1932,\"\")","v":""},{"$f":"IF(DataLog!$C1932=\"Log value\",DataLog!T1932,\"\")","v":""},{"$f":"IF(DataLog!$C1932=\"Log value\",DataLog!U1932,\"\")","v":""},{"$f":"IF(DataLog!$C1932=\"Log value\",DataLog!V1932,\"\")","v":""},{"$f":"IF(DataLog!$C1932=\"Log value\",DataLog!W1932,\"\")","v":""},{"$f":"IF(DataLog!$C1932=\"Log value\",DataLog!X1932,\"\")","v":""},{"$f":"IF(DataLog!$C1932=\"Log value\",DataLog!Y1932,\"\")","v":""},{"$f":"IF(DataLog!$C1932=\"Log value\",DataLog!Z1932,\"\")","v":""},{"$f":"IF(DataLog!$C1932=\"Log value\",DataLog!AA1932,\"\")","v":""},{"$f":"IF(DataLog!$C1932=\"Log value\",DataLog!AB1932,\"\")","v":""},{"$f":"IF(DataLog!$C1932=\"Log value\",DataLog!AC1932,\"\")","v":""},{"$f":"IF(DataLog!$C1932=\"Log value\",DataLog!AD1932,\"\")","v":""},{"$f":"IF(DataLog!$C1932=\"Log value\",DataLog!AE1932,\"\")","v":""},{"$f":"IF(DataLog!$C1932=\"Log value\",DataLog!AF1932,\"\")","v":""},{"$f":"IF(DataLog!$C1932=\"Log value\",DataLog!AG1932,\"\")","v":""},{"$f":"IF(DataLog!$C1932=\"Log value\",DataLog!AH1932,\"\")","v":""},{"$f":"IF(DataLog!$C1932=\"Log value\",DataLog!AI1932,\"\")","v":""},{"$f":"IF(DataLog!$C1932=\"Log value\",DataLog!AJ1932,\"\")","v":""},{"$f":"IF(DataLog!$C1932=\"Log value\",DataLog!AK1932,\"\")","v":""},{"$f":"IF(DataLog!$C1932=\"Log value\",DataLog!AL1932,\"\")","v":""},{"$f":"IF(DataLog!$C1932=\"Log value\",DataLog!AM1932,\"\")","v":""}]
[null,null,null,null,null,null,{"$f":"IF(DataLog!$C1933=\"Log value\",DataLog!D1933&\"_\"&TEXT(DataLog!B1933,\"åååå-mm-dd\"),\"\")","v":""},{"$f":"IF(DataLog!$C1933=\"Log value\",DataLog!E1933,\"\")","v":""},{"$f":"IF(DataLog!$C1933=\"Log value\",DataLog!F1933,\"\")","v":""},{"$f":"IF(DataLog!$C1933=\"Log value\",DataLog!G1933,\"\")","v":""},{"$f":"IF(DataLog!$C1933=\"Log value\",DataLog!H1933,\"\")","v":""},{"$f":"IF(DataLog!$C1933=\"Log value\",DataLog!I1933,\"\")","v":""},{"$f":"IF(DataLog!$C1933=\"Log value\",DataLog!J1933,\"\")","v":""},{"$f":"IF(DataLog!$C1933=\"Log value\",DataLog!K1933,\"\")","v":""},{"$f":"IF(DataLog!$C1933=\"Log value\",DataLog!L1933,\"\")","v":""},{"$f":"IF(DataLog!$C1933=\"Log value\",DataLog!M1933,\"\")","v":""},{"$f":"IF(DataLog!$C1933=\"Log value\",DataLog!N1933,\"\")","v":""},{"$f":"IF(DataLog!$C1933=\"Log value\",DataLog!O1933,\"\")","v":""},{"$f":"IF(DataLog!$C1933=\"Log value\",DataLog!P1933,\"\")","v":""},{"$f":"IF(DataLog!$C1933=\"Log value\",DataLog!Q1933,\"\")","v":""},{"$f":"IF(DataLog!$C1933=\"Log value\",DataLog!R1933,\"\")","v":""},{"$f":"IF(DataLog!$C1933=\"Log value\",DataLog!S1933,\"\")","v":""},{"$f":"IF(DataLog!$C1933=\"Log value\",DataLog!T1933,\"\")","v":""},{"$f":"IF(DataLog!$C1933=\"Log value\",DataLog!U1933,\"\")","v":""},{"$f":"IF(DataLog!$C1933=\"Log value\",DataLog!V1933,\"\")","v":""},{"$f":"IF(DataLog!$C1933=\"Log value\",DataLog!W1933,\"\")","v":""},{"$f":"IF(DataLog!$C1933=\"Log value\",DataLog!X1933,\"\")","v":""},{"$f":"IF(DataLog!$C1933=\"Log value\",DataLog!Y1933,\"\")","v":""},{"$f":"IF(DataLog!$C1933=\"Log value\",DataLog!Z1933,\"\")","v":""},{"$f":"IF(DataLog!$C1933=\"Log value\",DataLog!AA1933,\"\")","v":""},{"$f":"IF(DataLog!$C1933=\"Log value\",DataLog!AB1933,\"\")","v":""},{"$f":"IF(DataLog!$C1933=\"Log value\",DataLog!AC1933,\"\")","v":""},{"$f":"IF(DataLog!$C1933=\"Log value\",DataLog!AD1933,\"\")","v":""},{"$f":"IF(DataLog!$C1933=\"Log value\",DataLog!AE1933,\"\")","v":""},{"$f":"IF(DataLog!$C1933=\"Log value\",DataLog!AF1933,\"\")","v":""},{"$f":"IF(DataLog!$C1933=\"Log value\",DataLog!AG1933,\"\")","v":""},{"$f":"IF(DataLog!$C1933=\"Log value\",DataLog!AH1933,\"\")","v":""},{"$f":"IF(DataLog!$C1933=\"Log value\",DataLog!AI1933,\"\")","v":""},{"$f":"IF(DataLog!$C1933=\"Log value\",DataLog!AJ1933,\"\")","v":""},{"$f":"IF(DataLog!$C1933=\"Log value\",DataLog!AK1933,\"\")","v":""},{"$f":"IF(DataLog!$C1933=\"Log value\",DataLog!AL1933,\"\")","v":""},{"$f":"IF(DataLog!$C1933=\"Log value\",DataLog!AM1933,\"\")","v":""}]
[null,null,null,null,null,null,{"$f":"IF(DataLog!$C1936=\"Log value\",DataLog!D1936&\"_\"&TEXT(DataLog!B1936,\"åååå-mm-dd\"),\"\")","v":""},{"$f":"IF(DataLog!$C1936=\"Log value\",DataLog!E1936,\"\")","v":""},{"$f":"IF(DataLog!$C1936=\"Log value\",DataLog!F1936,\"\")","v":""},{"$f":"IF(DataLog!$C1936=\"Log value\",DataLog!G1936,\"\")","v":""},{"$f":"IF(DataLog!$C1936=\"Log value\",DataLog!H1936,\"\")","v":""},{"$f":"IF(DataLog!$C1936=\"Log value\",DataLog!I1936,\"\")","v":""},{"$f":"IF(DataLog!$C1936=\"Log value\",DataLog!J1936,\"\")","v":""},{"$f":"IF(DataLog!$C1936=\"Log value\",DataLog!K1936,\"\")","v":""},{"$f":"IF(DataLog!$C1936=\"Log value\",DataLog!L1936,\"\")","v":""},{"$f":"IF(DataLog!$C1936=\"Log value\",DataLog!M1936,\"\")","v":""},{"$f":"IF(DataLog!$C1936=\"Log value\",DataLog!N1936,\"\")","v":""},{"$f":"IF(DataLog!$C1936=\"Log value\",DataLog!O1936,\"\")","v":""},{"$f":"IF(DataLog!$C1936=\"Log value\",DataLog!P1936,\"\")","v":""},{"$f":"IF(DataLog!$C1936=\"Log value\",DataLog!Q1936,\"\")","v":""},{"$f":"IF(DataLog!$C1936=\"Log value\",DataLog!R1936,\"\")","v":""},{"$f":"IF(DataLog!$C1936=\"Log value\",DataLog!S1936,\"\")","v":""},{"$f":"IF(DataLog!$C1936=\"Log value\",DataLog!T1936,\"\")","v":""},{"$f":"IF(DataLog!$C1936=\"Log value\",DataLog!U1936,\"\")","v":""},{"$f":"IF(DataLog!$C1936=\"Log value\",DataLog!V1936,\"\")","v":""},{"$f":"IF(DataLog!$C1936=\"Log value\",DataLog!W1936,\"\")","v":""},{"$f":"IF(DataLog!$C1936=\"Log value\",DataLog!X1936,\"\")","v":""},{"$f":"IF(DataLog!$C1936=\"Log value\",DataLog!Y1936,\"\")","v":""},{"$f":"IF(DataLog!$C1936=\"Log value\",DataLog!Z1936,\"\")","v":""},{"$f":"IF(DataLog!$C1936=\"Log value\",DataLog!AA1936,\"\")","v":""},{"$f":"IF(DataLog!$C1936=\"Log value\",DataLog!AB1936,\"\")","v":""},{"$f":"IF(DataLog!$C1936=\"Log value\",DataLog!AC1936,\"\")","v":""},{"$f":"IF(DataLog!$C1936=\"Log value\",DataLog!AD1936,\"\")","v":""},{"$f":"IF(DataLog!$C1936=\"Log value\",DataLog!AE1936,\"\")","v":""},{"$f":"IF(DataLog!$C1936=\"Log value\",DataLog!AF1936,\"\")","v":""},{"$f":"IF(DataLog!$C1936=\"Log value\",DataLog!AG1936,\"\")","v":""},{"$f":"IF(DataLog!$C1936=\"Log value\",DataLog!AH1936,\"\")","v":""},{"$f":"IF(DataLog!$C1936=\"Log value\",DataLog!AI1936,\"\")","v":""},{"$f":"IF(DataLog!$C1936=\"Log value\",DataLog!AJ1936,\"\")","v":""},{"$f":"IF(DataLog!$C1936=\"Log value\",DataLog!AK1936,\"\")","v":""},{"$f":"IF(DataLog!$C1936=\"Log value\",DataLog!AL1936,\"\")","v":""},{"$f":"IF(DataLog!$C1936=\"Log value\",DataLog!AM1936,\"\")","v":""}]
[null,null,null,null,null,null,{"$f":"IF(DataLog!$C1939=\"Log value\",DataLog!D1939&\"_\"&TEXT(DataLog!B1939,\"åååå-mm-dd\"),\"\")","v":""},{"$f":"IF(DataLog!$C1939=\"Log value\",DataLog!E1939,\"\")","v":""},{"$f":"IF(DataLog!$C1939=\"Log value\",DataLog!F1939,\"\")","v":""},{"$f":"IF(DataLog!$C1939=\"Log value\",DataLog!G1939,\"\")","v":""},{"$f":"IF(DataLog!$C1939=\"Log value\",DataLog!H1939,\"\")","v":""},{"$f":"IF(DataLog!$C1939=\"Log value\",DataLog!I1939,\"\")","v":""},{"$f":"IF(DataLog!$C1939=\"Log value\",DataLog!J1939,\"\")","v":""},{"$f":"IF(DataLog!$C1939=\"Log value\",DataLog!K1939,\"\")","v":""},{"$f":"IF(DataLog!$C1939=\"Log value\",DataLog!L1939,\"\")","v":""},{"$f":"IF(DataLog!$C1939=\"Log value\",DataLog!M1939,\"\")","v":""},{"$f":"IF(DataLog!$C1939=\"Log value\",DataLog!N1939,\"\")","v":""},{"$f":"IF(DataLog!$C1939=\"Log value\",DataLog!O1939,\"\")","v":""},{"$f":"IF(DataLog!$C1939=\"Log value\",DataLog!P1939,\"\")","v":""},{"$f":"IF(DataLog!$C1939=\"Log value\",DataLog!Q1939,\"\")","v":""},{"$f":"IF(DataLog!$C1939=\"Log value\",DataLog!R1939,\"\")","v":""},{"$f":"IF(DataLog!$C1939=\"Log value\",DataLog!S1939,\"\")","v":""},{"$f":"IF(DataLog!$C1939=\"Log value\",DataLog!T1939,\"\")","v":""},{"$f":"IF(DataLog!$C1939=\"Log value\",DataLog!U1939,\"\")","v":""},{"$f":"IF(DataLog!$C1939=\"Log value\",DataLog!V1939,\"\")","v":""},{"$f":"IF(DataLog!$C1939=\"Log value\",DataLog!W1939,\"\")","v":""},{"$f":"IF(DataLog!$C1939=\"Log value\",DataLog!X1939,\"\")","v":""},{"$f":"IF(DataLog!$C1939=\"Log value\",DataLog!Y1939,\"\")","v":""},{"$f":"IF(DataLog!$C1939=\"Log value\",DataLog!Z1939,\"\")","v":""},{"$f":"IF(DataLog!$C1939=\"Log value\",DataLog!AA1939,\"\")","v":""},{"$f":"IF(DataLog!$C1939=\"Log value\",DataLog!AB1939,\"\")","v":""},{"$f":"IF(DataLog!$C1939=\"Log value\",DataLog!AC1939,\"\")","v":""},{"$f":"IF(DataLog!$C1939=\"Log value\",DataLog!AD1939,\"\")","v":""},{"$f":"IF(DataLog!$C1939=\"Log value\",DataLog!AE1939,\"\")","v":""},{"$f":"IF(DataLog!$C1939=\"Log value\",DataLog!AF1939,\"\")","v":""},{"$f":"IF(DataLog!$C1939=\"Log value\",DataLog!AG1939,\"\")","v":""},{"$f":"IF(DataLog!$C1939=\"Log value\",DataLog!AH1939,\"\")","v":""},{"$f":"IF(DataLog!$C1939=\"Log value\",DataLog!AI1939,\"\")","v":""},{"$f":"IF(DataLog!$C1939=\"Log value\",DataLog!AJ1939,\"\")","v":""},{"$f":"IF(DataLog!$C1939=\"Log value\",DataLog!AK1939,\"\")","v":""},{"$f":"IF(DataLog!$C1939=\"Log value\",DataLog!AL1939,\"\")","v":""},{"$f":"IF(DataLog!$C1939=\"Log value\",DataLog!AM1939,\"\")","v":""}]
[null,null,null,null,null,null,{"$f":"IF(DataLog!$C1941=\"Log value\",DataLog!D1941&\"_\"&TEXT(DataLog!B1941,\"åååå-mm-dd\"),\"\")","v":""},{"$f":"IF(DataLog!$C1941=\"Log value\",DataLog!E1941,\"\")","v":""},{"$f":"IF(DataLog!$C1941=\"Log value\",DataLog!F1941,\"\")","v":""},{"$f":"IF(DataLog!$C1941=\"Log value\",DataLog!G1941,\"\")","v":""},{"$f":"IF(DataLog!$C1941=\"Log value\",DataLog!H1941,\"\")","v":""},{"$f":"IF(DataLog!$C1941=\"Log value\",DataLog!I1941,\"\")","v":""},{"$f":"IF(DataLog!$C1941=\"Log value\",DataLog!J1941,\"\")","v":""},{"$f":"IF(DataLog!$C1941=\"Log value\",DataLog!K1941,\"\")","v":""},{"$f":"IF(DataLog!$C1941=\"Log value\",DataLog!L1941,\"\")","v":""},{"$f":"IF(DataLog!$C1941=\"Log value\",DataLog!M1941,\"\")","v":""},{"$f":"IF(DataLog!$C1941=\"Log value\",DataLog!N1941,\"\")","v":""},{"$f":"IF(DataLog!$C1941=\"Log value\",DataLog!O1941,\"\")","v":""},{"$f":"IF(DataLog!$C1941=\"Log value\",DataLog!P1941,\"\")","v":""},{"$f":"IF(DataLog!$C1941=\"Log value\",DataLog!Q1941,\"\")","v":""},{"$f":"IF(DataLog!$C1941=\"Log value\",DataLog!R1941,\"\")","v":""},{"$f":"IF(DataLog!$C1941=\"Log value\",DataLog!S1941,\"\")","v":""},{"$f":"IF(DataLog!$C1941=\"Log value\",DataLog!T1941,\"\")","v":""},{"$f":"IF(DataLog!$C1941=\"Log value\",DataLog!U1941,\"\")","v":""},{"$f":"IF(DataLog!$C1941=\"Log value\",DataLog!V1941,\"\")","v":""},{"$f":"IF(DataLog!$C1941=\"Log value\",DataLog!W1941,\"\")","v":""},{"$f":"IF(DataLog!$C1941=\"Log value\",DataLog!X1941,\"\")","v":""},{"$f":"IF(DataLog!$C1941=\"Log value\",DataLog!Y1941,\"\")","v":""},{"$f":"IF(DataLog!$C1941=\"Log value\",DataLog!Z1941,\"\")","v":""},{"$f":"IF(DataLog!$C1941=\"Log value\",DataLog!AA1941,\"\")","v":""},{"$f":"IF(DataLog!$C1941=\"Log value\",DataLog!AB1941,\"\")","v":""},{"$f":"IF(DataLog!$C1941=\"Log value\",DataLog!AC1941,\"\")","v":""},{"$f":"IF(DataLog!$C1941=\"Log value\",DataLog!AD1941,\"\")","v":""},{"$f":"IF(DataLog!$C1941=\"Log value\",DataLog!AE1941,\"\")","v":""},{"$f":"IF(DataLog!$C1941=\"Log value\",DataLog!AF1941,\"\")","v":""},{"$f":"IF(DataLog!$C1941=\"Log value\",DataLog!AG1941,\"\")","v":""},{"$f":"IF(DataLog!$C1941=\"Log value\",DataLog!AH1941,\"\")","v":""},{"$f":"IF(DataLog!$C1941=\"Log value\",DataLog!AI1941,\"\")","v":""},{"$f":"IF(DataLog!$C1941=\"Log value\",DataLog!AJ1941,\"\")","v":""},{"$f":"IF(DataLog!$C1941=\"Log value\",DataLog!AK1941,\"\")","v":""},{"$f":"IF(DataLog!$C1941=\"Log value\",DataLog!AL1941,\"\")","v":""},{"$f":"IF(DataLog!$C1941=\"Log value\",DataLog!AM1941,\"\")","v":""}]
[null,null,null,null,null,null,{"$f":"IF(DataLog!$C1942=\"Log value\",DataLog!D1942&\"_\"&TEXT(DataLog!B1942,\"åååå-mm-dd\"),\"\")","v":""},{"$f":"IF(DataLog!$C1942=\"Log value\",DataLog!E1942,\"\")","v":""},{"$f":"IF(DataLog!$C1942=\"Log value\",DataLog!F1942,\"\")","v":""},{"$f":"IF(DataLog!$C1942=\"Log value\",DataLog!G1942,\"\")","v":""},{"$f":"IF(DataLog!$C1942=\"Log value\",DataLog!H1942,\"\")","v":""},{"$f":"IF(DataLog!$C1942=\"Log value\",DataLog!I1942,\"\")","v":""},{"$f":"IF(DataLog!$C1942=\"Log value\",DataLog!J1942,\"\")","v":""},{"$f":"IF(DataLog!$C1942=\"Log value\",DataLog!K1942,\"\")","v":""},{"$f":"IF(DataLog!$C1942=\"Log value\",DataLog!L1942,\"\")","v":""},{"$f":"IF(DataLog!$C1942=\"Log value\",DataLog!M1942,\"\")","v":""},{"$f":"IF(DataLog!$C1942=\"Log value\",DataLog!N1942,\"\")","v":""},{"$f":"IF(DataLog!$C1942=\"Log value\",DataLog!O1942,\"\")","v":""},{"$f":"IF(DataLog!$C1942=\"Log value\",DataLog!P1942,\"\")","v":""},{"$f":"IF(DataLog!$C1942=\"Log value\",DataLog!Q1942,\"\")","v":""},{"$f":"IF(DataLog!$C1942=\"Log value\",DataLog!R1942,\"\")","v":""},{"$f":"IF(DataLog!$C1942=\"Log value\",DataLog!S1942,\"\")","v":""},{"$f":"IF(DataLog!$C1942=\"Log value\",DataLog!T1942,\"\")","v":""},{"$f":"IF(DataLog!$C1942=\"Log value\",DataLog!U1942,\"\")","v":""},{"$f":"IF(DataLog!$C1942=\"Log value\",DataLog!V1942,\"\")","v":""},{"$f":"IF(DataLog!$C1942=\"Log value\",DataLog!W1942,\"\")","v":""},{"$f":"IF(DataLog!$C1942=\"Log value\",DataLog!X1942,\"\")","v":""},{"$f":"IF(DataLog!$C1942=\"Log value\",DataLog!Y1942,\"\")","v":""},{"$f":"IF(DataLog!$C1942=\"Log value\",DataLog!Z1942,\"\")","v":""},{"$f":"IF(DataLog!$C1942=\"Log value\",DataLog!AA1942,\"\")","v":""},{"$f":"IF(DataLog!$C1942=\"Log value\",DataLog!AB1942,\"\")","v":""},{"$f":"IF(DataLog!$C1942=\"Log value\",DataLog!AC1942,\"\")","v":""},{"$f":"IF(DataLog!$C1942=\"Log value\",DataLog!AD1942,\"\")","v":""},{"$f":"IF(DataLog!$C1942=\"Log value\",DataLog!AE1942,\"\")","v":""},{"$f":"IF(DataLog!$C1942=\"Log value\",DataLog!AF1942,\"\")","v":""},{"$f":"IF(DataLog!$C1942=\"Log value\",DataLog!AG1942,\"\")","v":""},{"$f":"IF(DataLog!$C1942=\"Log value\",DataLog!AH1942,\"\")","v":""},{"$f":"IF(DataLog!$C1942=\"Log value\",DataLog!AI1942,\"\")","v":""},{"$f":"IF(DataLog!$C1942=\"Log value\",DataLog!AJ1942,\"\")","v":""},{"$f":"IF(DataLog!$C1942=\"Log value\",DataLog!AK1942,\"\")","v":""},{"$f":"IF(DataLog!$C1942=\"Log value\",DataLog!AL1942,\"\")","v":""},{"$f":"IF(DataLog!$C1942=\"Log value\",DataLog!AM1942,\"\")","v":""}]
[null,null,null,null,null,null,{"$f":"IF(DataLog!$C1945=\"Log value\",DataLog!D1945&\"_\"&TEXT(DataLog!B1945,\"åååå-mm-dd\"),\"\")","v":""},{"$f":"IF(DataLog!$C1945=\"Log value\",DataLog!E1945,\"\")","v":""},{"$f":"IF(DataLog!$C1945=\"Log value\",DataLog!F1945,\"\")","v":""},{"$f":"IF(DataLog!$C1945=\"Log value\",DataLog!G1945,\"\")","v":""},{"$f":"IF(DataLog!$C1945=\"Log value\",DataLog!H1945,\"\")","v":""},{"$f":"IF(DataLog!$C1945=\"Log value\",DataLog!I1945,\"\")","v":""},{"$f":"IF(DataLog!$C1945=\"Log value\",DataLog!J1945,\"\")","v":""},{"$f":"IF(DataLog!$C1945=\"Log value\",DataLog!K1945,\"\")","v":""},{"$f":"IF(DataLog!$C1945=\"Log value\",DataLog!L1945,\"\")","v":""},{"$f":"IF(DataLog!$C1945=\"Log value\",DataLog!M1945,\"\")","v":""},{"$f":"IF(DataLog!$C1945=\"Log value\",DataLog!N1945,\"\")","v":""},{"$f":"IF(DataLog!$C1945=\"Log value\",DataLog!O1945,\"\")","v":""},{"$f":"IF(DataLog!$C1945=\"Log value\",DataLog!P1945,\"\")","v":""},{"$f":"IF(DataLog!$C1945=\"Log value\",DataLog!Q1945,\"\")","v":""},{"$f":"IF(DataLog!$C1945=\"Log value\",DataLog!R1945,\"\")","v":""},{"$f":"IF(DataLog!$C1945=\"Log value\",DataLog!S1945,\"\")","v":""},{"$f":"IF(DataLog!$C1945=\"Log value\",DataLog!T1945,\"\")","v":""},{"$f":"IF(DataLog!$C1945=\"Log value\",DataLog!U1945,\"\")","v":""},{"$f":"IF(DataLog!$C1945=\"Log value\",DataLog!V1945,\"\")","v":""},{"$f":"IF(DataLog!$C1945=\"Log value\",DataLog!W1945,\"\")","v":""},{"$f":"IF(DataLog!$C1945=\"Log value\",DataLog!X1945,\"\")","v":""},{"$f":"IF(DataLog!$C1945=\"Log value\",DataLog!Y1945,\"\")","v":""},{"$f":"IF(DataLog!$C1945=\"Log value\",DataLog!Z1945,\"\")","v":""},{"$f":"IF(DataLog!$C1945=\"Log value\",DataLog!AA1945,\"\")","v":""},{"$f":"IF(DataLog!$C1945=\"Log value\",DataLog!AB1945,\"\")","v":""},{"$f":"IF(DataLog!$C1945=\"Log value\",DataLog!AC1945,\"\")","v":""},{"$f":"IF(DataLog!$C1945=\"Log value\",DataLog!AD1945,\"\")","v":""},{"$f":"IF(DataLog!$C1945=\"Log value\",DataLog!AE1945,\"\")","v":""},{"$f":"IF(DataLog!$C1945=\"Log value\",DataLog!AF1945,\"\")","v":""},{"$f":"IF(DataLog!$C1945=\"Log value\",DataLog!AG1945,\"\")","v":""},{"$f":"IF(DataLog!$C1945=\"Log value\",DataLog!AH1945,\"\")","v":""},{"$f":"IF(DataLog!$C1945=\"Log value\",DataLog!AI1945,\"\")","v":""},{"$f":"IF(DataLog!$C1945=\"Log value\",DataLog!AJ1945,\"\")","v":""},{"$f":"IF(DataLog!$C1945=\"Log value\",DataLog!AK1945,\"\")","v":""},{"$f":"IF(DataLog!$C1945=\"Log value\",DataLog!AL1945,\"\")","v":""},{"$f":"IF(DataLog!$C1945=\"Log value\",DataLog!AM1945,\"\")","v":""}]
[null,null,null,null,null,null,{"$f":"IF(DataLog!$C1947=\"Log value\",DataLog!D1947&\"_\"&TEXT(DataLog!B1947,\"åååå-mm-dd\"),\"\")","v":""},{"$f":"IF(DataLog!$C1947=\"Log value\",DataLog!E1947,\"\")","v":""},{"$f":"IF(DataLog!$C1947=\"Log value\",DataLog!F1947,\"\")","v":""},{"$f":"IF(DataLog!$C1947=\"Log value\",DataLog!G1947,\"\")","v":""},{"$f":"IF(DataLog!$C1947=\"Log value\",DataLog!H1947,\"\")","v":""},{"$f":"IF(DataLog!$C1947=\"Log value\",DataLog!I1947,\"\")","v":""},{"$f":"IF(DataLog!$C1947=\"Log value\",DataLog!J1947,\"\")","v":""},{"$f":"IF(DataLog!$C1947=\"Log value\",DataLog!K1947,\"\")","v":""},{"$f":"IF(DataLog!$C1947=\"Log value\",DataLog!L1947,\"\")","v":""},{"$f":"IF(DataLog!$C1947=\"Log value\",DataLog!M1947,\"\")","v":""},{"$f":"IF(DataLog!$C1947=\"Log value\",DataLog!N1947,\"\")","v":""},{"$f":"IF(DataLog!$C1947=\"Log value\",DataLog!O1947,\"\")","v":""},{"$f":"IF(DataLog!$C1947=\"Log value\",DataLog!P1947,\"\")","v":""},{"$f":"IF(DataLog!$C1947=\"Log value\",DataLog!Q1947,\"\")","v":""},{"$f":"IF(DataLog!$C1947=\"Log value\",DataLog!R1947,\"\")","v":""},{"$f":"IF(DataLog!$C1947=\"Log value\",DataLog!S1947,\"\")","v":""},{"$f":"IF(DataLog!$C1947=\"Log value\",DataLog!T1947,\"\")","v":""},{"$f":"IF(DataLog!$C1947=\"Log value\",DataLog!U1947,\"\")","v":""},{"$f":"IF(DataLog!$C1947=\"Log value\",DataLog!V1947,\"\")","v":""},{"$f":"IF(DataLog!$C1947=\"Log value\",DataLog!W1947,\"\")","v":""},{"$f":"IF(DataLog!$C1947=\"Log value\",DataLog!X1947,\"\")","v":""},{"$f":"IF(DataLog!$C1947=\"Log value\",DataLog!Y1947,\"\")","v":""},{"$f":"IF(DataLog!$C1947=\"Log value\",DataLog!Z1947,\"\")","v":""},{"$f":"IF(DataLog!$C1947=\"Log value\",DataLog!AA1947,\"\")","v":""},{"$f":"IF(DataLog!$C1947=\"Log value\",DataLog!AB1947,\"\")","v":""},{"$f":"IF(DataLog!$C1947=\"Log value\",DataLog!AC1947,\"\")","v":""},{"$f":"IF(DataLog!$C1947=\"Log value\",DataLog!AD1947,\"\")","v":""},{"$f":"IF(DataLog!$C1947=\"Log value\",DataLog!AE1947,\"\")","v":""},{"$f":"IF(DataLog!$C1947=\"Log value\",DataLog!AF1947,\"\")","v":""},{"$f":"IF(DataLog!$C1947=\"Log value\",DataLog!AG1947,\"\")","v":""},{"$f":"IF(DataLog!$C1947=\"Log value\",DataLog!AH1947,\"\")","v":""},{"$f":"IF(DataLog!$C1947=\"Log value\",DataLog!AI1947,\"\")","v":""},{"$f":"IF(DataLog!$C1947=\"Log value\",DataLog!AJ1947,\"\")","v":""},{"$f":"IF(DataLog!$C1947=\"Log value\",DataLog!AK1947,\"\")","v":""},{"$f":"IF(DataLog!$C1947=\"Log value\",DataLog!AL1947,\"\")","v":""},{"$f":"IF(DataLog!$C1947=\"Log value\",DataLog!AM1947,\"\")","v":""}]
[null,null,null,null,null,null,{"$f":"IF(DataLog!$C1950=\"Log value\",DataLog!D1950&\"_\"&TEXT(DataLog!B1950,\"åååå-mm-dd\"),\"\")","v":""},{"$f":"IF(DataLog!$C1950=\"Log value\",DataLog!E1950,\"\")","v":""},{"$f":"IF(DataLog!$C1950=\"Log value\",DataLog!F1950,\"\")","v":""},{"$f":"IF(DataLog!$C1950=\"Log value\",DataLog!G1950,\"\")","v":""},{"$f":"IF(DataLog!$C1950=\"Log value\",DataLog!H1950,\"\")","v":""},{"$f":"IF(DataLog!$C1950=\"Log value\",DataLog!I1950,\"\")","v":""},{"$f":"IF(DataLog!$C1950=\"Log value\",DataLog!J1950,\"\")","v":""},{"$f":"IF(DataLog!$C1950=\"Log value\",DataLog!K1950,\"\")","v":""},{"$f":"IF(DataLog!$C1950=\"Log value\",DataLog!L1950,\"\")","v":""},{"$f":"IF(DataLog!$C1950=\"Log value\",DataLog!M1950,\"\")","v":""},{"$f":"IF(DataLog!$C1950=\"Log value\",DataLog!N1950,\"\")","v":""},{"$f":"IF(DataLog!$C1950=\"Log value\",DataLog!O1950,\"\")","v":""},{"$f":"IF(DataLog!$C1950=\"Log value\",DataLog!P1950,\"\")","v":""},{"$f":"IF(DataLog!$C1950=\"Log value\",DataLog!Q1950,\"\")","v":""},{"$f":"IF(DataLog!$C1950=\"Log value\",DataLog!R1950,\"\")","v":""},{"$f":"IF(DataLog!$C1950=\"Log value\",DataLog!S1950,\"\")","v":""},{"$f":"IF(DataLog!$C1950=\"Log value\",DataLog!T1950,\"\")","v":""},{"$f":"IF(DataLog!$C1950=\"Log value\",DataLog!U1950,\"\")","v":""},{"$f":"IF(DataLog!$C1950=\"Log value\",DataLog!V1950,\"\")","v":""},{"$f":"IF(DataLog!$C1950=\"Log value\",DataLog!W1950,\"\")","v":""},{"$f":"IF(DataLog!$C1950=\"Log value\",DataLog!X1950,\"\")","v":""},{"$f":"IF(DataLog!$C1950=\"Log value\",DataLog!Y1950,\"\")","v":""},{"$f":"IF(DataLog!$C1950=\"Log value\",DataLog!Z1950,\"\")","v":""},{"$f":"IF(DataLog!$C1950=\"Log value\",DataLog!AA1950,\"\")","v":""},{"$f":"IF(DataLog!$C1950=\"Log value\",DataLog!AB1950,\"\")","v":""},{"$f":"IF(DataLog!$C1950=\"Log value\",DataLog!AC1950,\"\")","v":""},{"$f":"IF(DataLog!$C1950=\"Log value\",DataLog!AD1950,\"\")","v":""},{"$f":"IF(DataLog!$C1950=\"Log value\",DataLog!AE1950,\"\")","v":""},{"$f":"IF(DataLog!$C1950=\"Log value\",DataLog!AF1950,\"\")","v":""},{"$f":"IF(DataLog!$C1950=\"Log value\",DataLog!AG1950,\"\")","v":""},{"$f":"IF(DataLog!$C1950=\"Log value\",DataLog!AH1950,\"\")","v":""},{"$f":"IF(DataLog!$C1950=\"Log value\",DataLog!AI1950,\"\")","v":""},{"$f":"IF(DataLog!$C1950=\"Log value\",DataLog!AJ1950,\"\")","v":""},{"$f":"IF(DataLog!$C1950=\"Log value\",DataLog!AK1950,\"\")","v":""},{"$f":"IF(DataLog!$C1950=\"Log value\",DataLog!AL1950,\"\")","v":""},{"$f":"IF(DataLog!$C1950=\"Log value\",DataLog!AM1950,\"\")","v":""}]
[null,null,null,null,null,null,{"$f":"IF(DataLog!$C1951=\"Log value\",DataLog!D1951&\"_\"&TEXT(DataLog!B1951,\"åååå-mm-dd\"),\"\")","v":""},{"$f":"IF(DataLog!$C1951=\"Log value\",DataLog!E1951,\"\")","v":""},{"$f":"IF(DataLog!$C1951=\"Log value\",DataLog!F1951,\"\")","v":""},{"$f":"IF(DataLog!$C1951=\"Log value\",DataLog!G1951,\"\")","v":""},{"$f":"IF(DataLog!$C1951=\"Log value\",DataLog!H1951,\"\")","v":""},{"$f":"IF(DataLog!$C1951=\"Log value\",DataLog!I1951,\"\")","v":""},{"$f":"IF(DataLog!$C1951=\"Log value\",DataLog!J1951,\"\")","v":""},{"$f":"IF(DataLog!$C1951=\"Log value\",DataLog!K1951,\"\")","v":""},{"$f":"IF(DataLog!$C1951=\"Log value\",DataLog!L1951,\"\")","v":""},{"$f":"IF(DataLog!$C1951=\"Log value\",DataLog!M1951,\"\")","v":""},{"$f":"IF(DataLog!$C1951=\"Log value\",DataLog!N1951,\"\")","v":""},{"$f":"IF(DataLog!$C1951=\"Log value\",DataLog!O1951,\"\")","v":""},{"$f":"IF(DataLog!$C1951=\"Log value\",DataLog!P1951,\"\")","v":""},{"$f":"IF(DataLog!$C1951=\"Log value\",DataLog!Q1951,\"\")","v":""},{"$f":"IF(DataLog!$C1951=\"Log value\",DataLog!R1951,\"\")","v":""},{"$f":"IF(DataLog!$C1951=\"Log value\",DataLog!S1951,\"\")","v":""},{"$f":"IF(DataLog!$C1951=\"Log value\",DataLog!T1951,\"\")","v":""},{"$f":"IF(DataLog!$C1951=\"Log value\",DataLog!U1951,\"\")","v":""},{"$f":"IF(DataLog!$C1951=\"Log value\",DataLog!V1951,\"\")","v":""},{"$f":"IF(DataLog!$C1951=\"Log value\",DataLog!W1951,\"\")","v":""},{"$f":"IF(DataLog!$C1951=\"Log value\",DataLog!X1951,\"\")","v":""},{"$f":"IF(DataLog!$C1951=\"Log value\",DataLog!Y1951,\"\")","v":""},{"$f":"IF(DataLog!$C1951=\"Log value\",DataLog!Z1951,\"\")","v":""},{"$f":"IF(DataLog!$C1951=\"Log value\",DataLog!AA1951,\"\")","v":""},{"$f":"IF(DataLog!$C1951=\"Log value\",DataLog!AB1951,\"\")","v":""},{"$f":"IF(DataLog!$C1951=\"Log value\",DataLog!AC1951,\"\")","v":""},{"$f":"IF(DataLog!$C1951=\"Log value\",DataLog!AD1951,\"\")","v":""},{"$f":"IF(DataLog!$C1951=\"Log value\",DataLog!AE1951,\"\")","v":""},{"$f":"IF(DataLog!$C1951=\"Log value\",DataLog!AF1951,\"\")","v":""},{"$f":"IF(DataLog!$C1951=\"Log value\",DataLog!AG1951,\"\")","v":""},{"$f":"IF(DataLog!$C1951=\"Log value\",DataLog!AH1951,\"\")","v":""},{"$f":"IF(DataLog!$C1951=\"Log value\",DataLog!AI1951,\"\")","v":""},{"$f":"IF(DataLog!$C1951=\"Log value\",DataLog!AJ1951,\"\")","v":""},{"$f":"IF(DataLog!$C1951=\"Log value\",DataLog!AK1951,\"\")","v":""},{"$f":"IF(DataLog!$C1951=\"Log value\",DataLog!AL1951,\"\")","v":""},{"$f":"IF(DataLog!$C1951=\"Log value\",DataLog!AM1951,\"\")","v":""}]
[null,null,null,null,null,null,{"$f":"IF(DataLog!$C1954=\"Log value\",DataLog!D1954&\"_\"&TEXT(DataLog!B1954,\"åååå-mm-dd\"),\"\")","v":""},{"$f":"IF(DataLog!$C1954=\"Log value\",DataLog!E1954,\"\")","v":""},{"$f":"IF(DataLog!$C1954=\"Log value\",DataLog!F1954,\"\")","v":""},{"$f":"IF(DataLog!$C1954=\"Log value\",DataLog!G1954,\"\")","v":""},{"$f":"IF(DataLog!$C1954=\"Log value\",DataLog!H1954,\"\")","v":""},{"$f":"IF(DataLog!$C1954=\"Log value\",DataLog!I1954,\"\")","v":""},{"$f":"IF(DataLog!$C1954=\"Log value\",DataLog!J1954,\"\")","v":""},{"$f":"IF(DataLog!$C1954=\"Log value\",DataLog!K1954,\"\")","v":""},{"$f":"IF(DataLog!$C1954=\"Log value\",DataLog!L1954,\"\")","v":""},{"$f":"IF(DataLog!$C1954=\"Log value\",DataLog!M1954,\"\")","v":""},{"$f":"IF(DataLog!$C1954=\"Log value\",DataLog!N1954,\"\")","v":""},{"$f":"IF(DataLog!$C1954=\"Log value\",DataLog!O1954,\"\")","v":""},{"$f":"IF(DataLog!$C1954=\"Log value\",DataLog!P1954,\"\")","v":""},{"$f":"IF(DataLog!$C1954=\"Log value\",DataLog!Q1954,\"\")","v":""},{"$f":"IF(DataLog!$C1954=\"Log value\",DataLog!R1954,\"\")","v":""},{"$f":"IF(DataLog!$C1954=\"Log value\",DataLog!S1954,\"\")","v":""},{"$f":"IF(DataLog!$C1954=\"Log value\",DataLog!T1954,\"\")","v":""},{"$f":"IF(DataLog!$C1954=\"Log value\",DataLog!U1954,\"\")","v":""},{"$f":"IF(DataLog!$C1954=\"Log value\",DataLog!V1954,\"\")","v":""},{"$f":"IF(DataLog!$C1954=\"Log value\",DataLog!W1954,\"\")","v":""},{"$f":"IF(DataLog!$C1954=\"Log value\",DataLog!X1954,\"\")","v":""},{"$f":"IF(DataLog!$C1954=\"Log value\",DataLog!Y1954,\"\")","v":""},{"$f":"IF(DataLog!$C1954=\"Log value\",DataLog!Z1954,\"\")","v":""},{"$f":"IF(DataLog!$C1954=\"Log value\",DataLog!AA1954,\"\")","v":""},{"$f":"IF(DataLog!$C1954=\"Log value\",DataLog!AB1954,\"\")","v":""},{"$f":"IF(DataLog!$C1954=\"Log value\",DataLog!AC1954,\"\")","v":""},{"$f":"IF(DataLog!$C1954=\"Log value\",DataLog!AD1954,\"\")","v":""},{"$f":"IF(DataLog!$C1954=\"Log value\",DataLog!AE1954,\"\")","v":""},{"$f":"IF(DataLog!$C1954=\"Log value\",DataLog!AF1954,\"\")","v":""},{"$f":"IF(DataLog!$C1954=\"Log value\",DataLog!AG1954,\"\")","v":""},{"$f":"IF(DataLog!$C1954=\"Log value\",DataLog!AH1954,\"\")","v":""},{"$f":"IF(DataLog!$C1954=\"Log value\",DataLog!AI1954,\"\")","v":""},{"$f":"IF(DataLog!$C1954=\"Log value\",DataLog!AJ1954,\"\")","v":""},{"$f":"IF(DataLog!$C1954=\"Log value\",DataLog!AK1954,\"\")","v":""},{"$f":"IF(DataLog!$C1954=\"Log value\",DataLog!AL1954,\"\")","v":""},{"$f":"IF(DataLog!$C1954=\"Log value\",DataLog!AM1954,\"\")","v":""}]
[null,null,null,null,null,null,{"$f":"IF(DataLog!$C1957=\"Log value\",DataLog!D1957&\"_\"&TEXT(DataLog!B1957,\"åååå-mm-dd\"),\"\")","v":""},{"$f":"IF(DataLog!$C1957=\"Log value\",DataLog!E1957,\"\")","v":""},{"$f":"IF(DataLog!$C1957=\"Log value\",DataLog!F1957,\"\")","v":""},{"$f":"IF(DataLog!$C1957=\"Log value\",DataLog!G1957,\"\")","v":""},{"$f":"IF(DataLog!$C1957=\"Log value\",DataLog!H1957,\"\")","v":""},{"$f":"IF(DataLog!$C1957=\"Log value\",DataLog!I1957,\"\")","v":""},{"$f":"IF(DataLog!$C1957=\"Log value\",DataLog!J1957,\"\")","v":""},{"$f":"IF(DataLog!$C1957=\"Log value\",DataLog!K1957,\"\")","v":""},{"$f":"IF(DataLog!$C1957=\"Log value\",DataLog!L1957,\"\")","v":""},{"$f":"IF(DataLog!$C1957=\"Log value\",DataLog!M1957,\"\")","v":""},{"$f":"IF(DataLog!$C1957=\"Log value\",DataLog!N1957,\"\")","v":""},{"$f":"IF(DataLog!$C1957=\"Log value\",DataLog!O1957,\"\")","v":""},{"$f":"IF(DataLog!$C1957=\"Log value\",DataLog!P1957,\"\")","v":""},{"$f":"IF(DataLog!$C1957=\"Log value\",DataLog!Q1957,\"\")","v":""},{"$f":"IF(DataLog!$C1957=\"Log value\",DataLog!R1957,\"\")","v":""},{"$f":"IF(DataLog!$C1957=\"Log value\",DataLog!S1957,\"\")","v":""},{"$f":"IF(DataLog!$C1957=\"Log value\",DataLog!T1957,\"\")","v":""},{"$f":"IF(DataLog!$C1957=\"Log value\",DataLog!U1957,\"\")","v":""},{"$f":"IF(DataLog!$C1957=\"Log value\",DataLog!V1957,\"\")","v":""},{"$f":"IF(DataLog!$C1957=\"Log value\",DataLog!W1957,\"\")","v":""},{"$f":"IF(DataLog!$C1957=\"Log value\",DataLog!X1957,\"\")","v":""},{"$f":"IF(DataLog!$C1957=\"Log value\",DataLog!Y1957,\"\")","v":""},{"$f":"IF(DataLog!$C1957=\"Log value\",DataLog!Z1957,\"\")","v":""},{"$f":"IF(DataLog!$C1957=\"Log value\",DataLog!AA1957,\"\")","v":""},{"$f":"IF(DataLog!$C1957=\"Log value\",DataLog!AB1957,\"\")","v":""},{"$f":"IF(DataLog!$C1957=\"Log value\",DataLog!AC1957,\"\")","v":""},{"$f":"IF(DataLog!$C1957=\"Log value\",DataLog!AD1957,\"\")","v":""},{"$f":"IF(DataLog!$C1957=\"Log value\",DataLog!AE1957,\"\")","v":""},{"$f":"IF(DataLog!$C1957=\"Log value\",DataLog!AF1957,\"\")","v":""},{"$f":"IF(DataLog!$C1957=\"Log value\",DataLog!AG1957,\"\")","v":""},{"$f":"IF(DataLog!$C1957=\"Log value\",DataLog!AH1957,\"\")","v":""},{"$f":"IF(DataLog!$C1957=\"Log value\",DataLog!AI1957,\"\")","v":""},{"$f":"IF(DataLog!$C1957=\"Log value\",DataLog!AJ1957,\"\")","v":""},{"$f":"IF(DataLog!$C1957=\"Log value\",DataLog!AK1957,\"\")","v":""},{"$f":"IF(DataLog!$C1957=\"Log value\",DataLog!AL1957,\"\")","v":""},{"$f":"IF(DataLog!$C1957=\"Log value\",DataLog!AM1957,\"\")","v":""}]
[null,null,null,null,null,null,{"$f":"IF(DataLog!$C1959=\"Log value\",DataLog!D1959&\"_\"&TEXT(DataLog!B1959,\"åååå-mm-dd\"),\"\")","v":""},{"$f":"IF(DataLog!$C1959=\"Log value\",DataLog!E1959,\"\")","v":""},{"$f":"IF(DataLog!$C1959=\"Log value\",DataLog!F1959,\"\")","v":""},{"$f":"IF(DataLog!$C1959=\"Log value\",DataLog!G1959,\"\")","v":""},{"$f":"IF(DataLog!$C1959=\"Log value\",DataLog!H1959,\"\")","v":""},{"$f":"IF(DataLog!$C1959=\"Log value\",DataLog!I1959,\"\")","v":""},{"$f":"IF(DataLog!$C1959=\"Log value\",DataLog!J1959,\"\")","v":""},{"$f":"IF(DataLog!$C1959=\"Log value\",DataLog!K1959,\"\")","v":""},{"$f":"IF(DataLog!$C1959=\"Log value\",DataLog!L1959,\"\")","v":""},{"$f":"IF(DataLog!$C1959=\"Log value\",DataLog!M1959,\"\")","v":""},{"$f":"IF(DataLog!$C1959=\"Log value\",DataLog!N1959,\"\")","v":""},{"$f":"IF(DataLog!$C1959=\"Log value\",DataLog!O1959,\"\")","v":""},{"$f":"IF(DataLog!$C1959=\"Log value\",DataLog!P1959,\"\")","v":""},{"$f":"IF(DataLog!$C1959=\"Log value\",DataLog!Q1959,\"\")","v":""},{"$f":"IF(DataLog!$C1959=\"Log value\",DataLog!R1959,\"\")","v":""},{"$f":"IF(DataLog!$C1959=\"Log value\",DataLog!S1959,\"\")","v":""},{"$f":"IF(DataLog!$C1959=\"Log value\",DataLog!T1959,\"\")","v":""},{"$f":"IF(DataLog!$C1959=\"Log value\",DataLog!U1959,\"\")","v":""},{"$f":"IF(DataLog!$C1959=\"Log value\",DataLog!V1959,\"\")","v":""},{"$f":"IF(DataLog!$C1959=\"Log value\",DataLog!W1959,\"\")","v":""},{"$f":"IF(DataLog!$C1959=\"Log value\",DataLog!X1959,\"\")","v":""},{"$f":"IF(DataLog!$C1959=\"Log value\",DataLog!Y1959,\"\")","v":""},{"$f":"IF(DataLog!$C1959=\"Log value\",DataLog!Z1959,\"\")","v":""},{"$f":"IF(DataLog!$C1959=\"Log value\",DataLog!AA1959,\"\")","v":""},{"$f":"IF(DataLog!$C1959=\"Log value\",DataLog!AB1959,\"\")","v":""},{"$f":"IF(DataLog!$C1959=\"Log value\",DataLog!AC1959,\"\")","v":""},{"$f":"IF(DataLog!$C1959=\"Log value\",DataLog!AD1959,\"\")","v":""},{"$f":"IF(DataLog!$C1959=\"Log value\",DataLog!AE1959,\"\")","v":""},{"$f":"IF(DataLog!$C1959=\"Log value\",DataLog!AF1959,\"\")","v":""},{"$f":"IF(DataLog!$C1959=\"Log value\",DataLog!AG1959,\"\")","v":""},{"$f":"IF(DataLog!$C1959=\"Log value\",DataLog!AH1959,\"\")","v":""},{"$f":"IF(DataLog!$C1959=\"Log value\",DataLog!AI1959,\"\")","v":""},{"$f":"IF(DataLog!$C1959=\"Log value\",DataLog!AJ1959,\"\")","v":""},{"$f":"IF(DataLog!$C1959=\"Log value\",DataLog!AK1959,\"\")","v":""},{"$f":"IF(DataLog!$C1959=\"Log value\",DataLog!AL1959,\"\")","v":""},{"$f":"IF(DataLog!$C1959=\"Log value\",DataLog!AM1959,\"\")","v":""}]
[null,null,null,null,null,null,{"$f":"IF(DataLog!$C1960=\"Log value\",DataLog!D1960&\"_\"&TEXT(DataLog!B1960,\"åååå-mm-dd\"),\"\")","v":""},{"$f":"IF(DataLog!$C1960=\"Log value\",DataLog!E1960,\"\")","v":""},{"$f":"IF(DataLog!$C1960=\"Log value\",DataLog!F1960,\"\")","v":""},{"$f":"IF(DataLog!$C1960=\"Log value\",DataLog!G1960,\"\")","v":""},{"$f":"IF(DataLog!$C1960=\"Log value\",DataLog!H1960,\"\")","v":""},{"$f":"IF(DataLog!$C1960=\"Log value\",DataLog!I1960,\"\")","v":""},{"$f":"IF(DataLog!$C1960=\"Log value\",DataLog!J1960,\"\")","v":""},{"$f":"IF(DataLog!$C1960=\"Log value\",DataLog!K1960,\"\")","v":""},{"$f":"IF(DataLog!$C1960=\"Log value\",DataLog!L1960,\"\")","v":""},{"$f":"IF(DataLog!$C1960=\"Log value\",DataLog!M1960,\"\")","v":""},{"$f":"IF(DataLog!$C1960=\"Log value\",DataLog!N1960,\"\")","v":""},{"$f":"IF(DataLog!$C1960=\"Log value\",DataLog!O1960,\"\")","v":""},{"$f":"IF(DataLog!$C1960=\"Log value\",DataLog!P1960,\"\")","v":""},{"$f":"IF(DataLog!$C1960=\"Log value\",DataLog!Q1960,\"\")","v":""},{"$f":"IF(DataLog!$C1960=\"Log value\",DataLog!R1960,\"\")","v":""},{"$f":"IF(DataLog!$C1960=\"Log value\",DataLog!S1960,\"\")","v":""},{"$f":"IF(DataLog!$C1960=\"Log value\",DataLog!T1960,\"\")","v":""},{"$f":"IF(DataLog!$C1960=\"Log value\",DataLog!U1960,\"\")","v":""},{"$f":"IF(DataLog!$C1960=\"Log value\",DataLog!V1960,\"\")","v":""},{"$f":"IF(DataLog!$C1960=\"Log value\",DataLog!W1960,\"\")","v":""},{"$f":"IF(DataLog!$C1960=\"Log value\",DataLog!X1960,\"\")","v":""},{"$f":"IF(DataLog!$C1960=\"Log value\",DataLog!Y1960,\"\")","v":""},{"$f":"IF(DataLog!$C1960=\"Log value\",DataLog!Z1960,\"\")","v":""},{"$f":"IF(DataLog!$C1960=\"Log value\",DataLog!AA1960,\"\")","v":""},{"$f":"IF(DataLog!$C1960=\"Log value\",DataLog!AB1960,\"\")","v":""},{"$f":"IF(DataLog!$C1960=\"Log value\",DataLog!AC1960,\"\")","v":""},{"$f":"IF(DataLog!$C1960=\"Log value\",DataLog!AD1960,\"\")","v":""},{"$f":"IF(DataLog!$C1960=\"Log value\",DataLog!AE1960,\"\")","v":""},{"$f":"IF(DataLog!$C1960=\"Log value\",DataLog!AF1960,\"\")","v":""},{"$f":"IF(DataLog!$C1960=\"Log value\",DataLog!AG1960,\"\")","v":""},{"$f":"IF(DataLog!$C1960=\"Log value\",DataLog!AH1960,\"\")","v":""},{"$f":"IF(DataLog!$C1960=\"Log value\",DataLog!AI1960,\"\")","v":""},{"$f":"IF(DataLog!$C1960=\"Log value\",DataLog!AJ1960,\"\")","v":""},{"$f":"IF(DataLog!$C1960=\"Log value\",DataLog!AK1960,\"\")","v":""},{"$f":"IF(DataLog!$C1960=\"Log value\",DataLog!AL1960,\"\")","v":""},{"$f":"IF(DataLog!$C1960=\"Log value\",DataLog!AM1960,\"\")","v":""}]
[null,null,null,null,null,null,{"$f":"IF(DataLog!$C1963=\"Log value\",DataLog!D1963&\"_\"&TEXT(DataLog!B1963,\"åååå-mm-dd\"),\"\")","v":""},{"$f":"IF(DataLog!$C1963=\"Log value\",DataLog!E1963,\"\")","v":""},{"$f":"IF(DataLog!$C1963=\"Log value\",DataLog!F1963,\"\")","v":""},{"$f":"IF(DataLog!$C1963=\"Log value\",DataLog!G1963,\"\")","v":""},{"$f":"IF(DataLog!$C1963=\"Log value\",DataLog!H1963,\"\")","v":""},{"$f":"IF(DataLog!$C1963=\"Log value\",DataLog!I1963,\"\")","v":""},{"$f":"IF(DataLog!$C1963=\"Log value\",DataLog!J1963,\"\")","v":""},{"$f":"IF(DataLog!$C1963=\"Log value\",DataLog!K1963,\"\")","v":""},{"$f":"IF(DataLog!$C1963=\"Log value\",DataLog!L1963,\"\")","v":""},{"$f":"IF(DataLog!$C1963=\"Log value\",DataLog!M1963,\"\")","v":""},{"$f":"IF(DataLog!$C1963=\"Log value\",DataLog!N1963,\"\")","v":""},{"$f":"IF(DataLog!$C1963=\"Log value\",DataLog!O1963,\"\")","v":""},{"$f":"IF(DataLog!$C1963=\"Log value\",DataLog!P1963,\"\")","v":""},{"$f":"IF(DataLog!$C1963=\"Log value\",DataLog!Q1963,\"\")","v":""},{"$f":"IF(DataLog!$C1963=\"Log value\",DataLog!R1963,\"\")","v":""},{"$f":"IF(DataLog!$C1963=\"Log value\",DataLog!S1963,\"\")","v":""},{"$f":"IF(DataLog!$C1963=\"Log value\",DataLog!T1963,\"\")","v":""},{"$f":"IF(DataLog!$C1963=\"Log value\",DataLog!U1963,\"\")","v":""},{"$f":"IF(DataLog!$C1963=\"Log value\",DataLog!V1963,\"\")","v":""},{"$f":"IF(DataLog!$C1963=\"Log value\",DataLog!W1963,\"\")","v":""},{"$f":"IF(DataLog!$C1963=\"Log value\",DataLog!X1963,\"\")","v":""},{"$f":"IF(DataLog!$C1963=\"Log value\",DataLog!Y1963,\"\")","v":""},{"$f":"IF(DataLog!$C1963=\"Log value\",DataLog!Z1963,\"\")","v":""},{"$f":"IF(DataLog!$C1963=\"Log value\",DataLog!AA1963,\"\")","v":""},{"$f":"IF(DataLog!$C1963=\"Log value\",DataLog!AB1963,\"\")","v":""},{"$f":"IF(DataLog!$C1963=\"Log value\",DataLog!AC1963,\"\")","v":""},{"$f":"IF(DataLog!$C1963=\"Log value\",DataLog!AD1963,\"\")","v":""},{"$f":"IF(DataLog!$C1963=\"Log value\",DataLog!AE1963,\"\")","v":""},{"$f":"IF(DataLog!$C1963=\"Log value\",DataLog!AF1963,\"\")","v":""},{"$f":"IF(DataLog!$C1963=\"Log value\",DataLog!AG1963,\"\")","v":""},{"$f":"IF(DataLog!$C1963=\"Log value\",DataLog!AH1963,\"\")","v":""},{"$f":"IF(DataLog!$C1963=\"Log value\",DataLog!AI1963,\"\")","v":""},{"$f":"IF(DataLog!$C1963=\"Log value\",DataLog!AJ1963,\"\")","v":""},{"$f":"IF(DataLog!$C1963=\"Log value\",DataLog!AK1963,\"\")","v":""},{"$f":"IF(DataLog!$C1963=\"Log value\",DataLog!AL1963,\"\")","v":""},{"$f":"IF(DataLog!$C1963=\"Log value\",DataLog!AM1963,\"\")","v":""}]
[null,null,null,null,null,null,{"$f":"IF(DataLog!$C1965=\"Log value\",DataLog!D1965&\"_\"&TEXT(DataLog!B1965,\"åååå-mm-dd\"),\"\")","v":""},{"$f":"IF(DataLog!$C1965=\"Log value\",DataLog!E1965,\"\")","v":""},{"$f":"IF(DataLog!$C1965=\"Log value\",DataLog!F1965,\"\")","v":""},{"$f":"IF(DataLog!$C1965=\"Log value\",DataLog!G1965,\"\")","v":""},{"$f":"IF(DataLog!$C1965=\"Log value\",DataLog!H1965,\"\")","v":""},{"$f":"IF(DataLog!$C1965=\"Log value\",DataLog!I1965,\"\")","v":""},{"$f":"IF(DataLog!$C1965=\"Log value\",DataLog!J1965,\"\")","v":""},{"$f":"IF(DataLog!$C1965=\"Log value\",DataLog!K1965,\"\")","v":""},{"$f":"IF(DataLog!$C1965=\"Log value\",DataLog!L1965,\"\")","v":""},{"$f":"IF(DataLog!$C1965=\"Log value\",DataLog!M1965,\"\")","v":""},{"$f":"IF(DataLog!$C1965=\"Log value\",DataLog!N1965,\"\")","v":""},{"$f":"IF(DataLog!$C1965=\"Log value\",DataLog!O1965,\"\")","v":""},{"$f":"IF(DataLog!$C1965=\"Log value\",DataLog!P1965,\"\")","v":""},{"$f":"IF(DataLog!$C1965=\"Log value\",DataLog!Q1965,\"\")","v":""},{"$f":"IF(DataLog!$C1965=\"Log value\",DataLog!R1965,\"\")","v":""},{"$f":"IF(DataLog!$C1965=\"Log value\",DataLog!S1965,\"\")","v":""},{"$f":"IF(DataLog!$C1965=\"Log value\",DataLog!T1965,\"\")","v":""},{"$f":"IF(DataLog!$C1965=\"Log value\",DataLog!U1965,\"\")","v":""},{"$f":"IF(DataLog!$C1965=\"Log value\",DataLog!V1965,\"\")","v":""},{"$f":"IF(DataLog!$C1965=\"Log value\",DataLog!W1965,\"\")","v":""},{"$f":"IF(DataLog!$C1965=\"Log value\",DataLog!X1965,\"\")","v":""},{"$f":"IF(DataLog!$C1965=\"Log value\",DataLog!Y1965,\"\")","v":""},{"$f":"IF(DataLog!$C1965=\"Log value\",DataLog!Z1965,\"\")","v":""},{"$f":"IF(DataLog!$C1965=\"Log value\",DataLog!AA1965,\"\")","v":""},{"$f":"IF(DataLog!$C1965=\"Log value\",DataLog!AB1965,\"\")","v":""},{"$f":"IF(DataLog!$C1965=\"Log value\",DataLog!AC1965,\"\")","v":""},{"$f":"IF(DataLog!$C1965=\"Log value\",DataLog!AD1965,\"\")","v":""},{"$f":"IF(DataLog!$C1965=\"Log value\",DataLog!AE1965,\"\")","v":""},{"$f":"IF(DataLog!$C1965=\"Log value\",DataLog!AF1965,\"\")","v":""},{"$f":"IF(DataLog!$C1965=\"Log value\",DataLog!AG1965,\"\")","v":""},{"$f":"IF(DataLog!$C1965=\"Log value\",DataLog!AH1965,\"\")","v":""},{"$f":"IF(DataLog!$C1965=\"Log value\",DataLog!AI1965,\"\")","v":""},{"$f":"IF(DataLog!$C1965=\"Log value\",DataLog!AJ1965,\"\")","v":""},{"$f":"IF(DataLog!$C1965=\"Log value\",DataLog!AK1965,\"\")","v":""},{"$f":"IF(DataLog!$C1965=\"Log value\",DataLog!AL1965,\"\")","v":""},{"$f":"IF(DataLog!$C1965=\"Log value\",DataLog!AM1965,\"\")","v":""}]
[null,null,null,null,null,null,{"$f":"IF(DataLog!$C1968=\"Log value\",DataLog!D1968&\"_\"&TEXT(DataLog!B1968,\"åååå-mm-dd\"),\"\")","v":""},{"$f":"IF(DataLog!$C1968=\"Log value\",DataLog!E1968,\"\")","v":""},{"$f":"IF(DataLog!$C1968=\"Log value\",DataLog!F1968,\"\")","v":""},{"$f":"IF(DataLog!$C1968=\"Log value\",DataLog!G1968,\"\")","v":""},{"$f":"IF(DataLog!$C1968=\"Log value\",DataLog!H1968,\"\")","v":""},{"$f":"IF(DataLog!$C1968=\"Log value\",DataLog!I1968,\"\")","v":""},{"$f":"IF(DataLog!$C1968=\"Log value\",DataLog!J1968,\"\")","v":""},{"$f":"IF(DataLog!$C1968=\"Log value\",DataLog!K1968,\"\")","v":""},{"$f":"IF(DataLog!$C1968=\"Log value\",DataLog!L1968,\"\")","v":""},{"$f":"IF(DataLog!$C1968=\"Log value\",DataLog!M1968,\"\")","v":""},{"$f":"IF(DataLog!$C1968=\"Log value\",DataLog!N1968,\"\")","v":""},{"$f":"IF(DataLog!$C1968=\"Log value\",DataLog!O1968,\"\")","v":""},{"$f":"IF(DataLog!$C1968=\"Log value\",DataLog!P1968,\"\")","v":""},{"$f":"IF(DataLog!$C1968=\"Log value\",DataLog!Q1968,\"\")","v":""},{"$f":"IF(DataLog!$C1968=\"Log value\",DataLog!R1968,\"\")","v":""},{"$f":"IF(DataLog!$C1968=\"Log value\",DataLog!S1968,\"\")","v":""},{"$f":"IF(DataLog!$C1968=\"Log value\",DataLog!T1968,\"\")","v":""},{"$f":"IF(DataLog!$C1968=\"Log value\",DataLog!U1968,\"\")","v":""},{"$f":"IF(DataLog!$C1968=\"Log value\",DataLog!V1968,\"\")","v":""},{"$f":"IF(DataLog!$C1968=\"Log value\",DataLog!W1968,\"\")","v":""},{"$f":"IF(DataLog!$C1968=\"Log value\",DataLog!X1968,\"\")","v":""},{"$f":"IF(DataLog!$C1968=\"Log value\",DataLog!Y1968,\"\")","v":""},{"$f":"IF(DataLog!$C1968=\"Log value\",DataLog!Z1968,\"\")","v":""},{"$f":"IF(DataLog!$C1968=\"Log value\",DataLog!AA1968,\"\")","v":""},{"$f":"IF(DataLog!$C1968=\"Log value\",DataLog!AB1968,\"\")","v":""},{"$f":"IF(DataLog!$C1968=\"Log value\",DataLog!AC1968,\"\")","v":""},{"$f":"IF(DataLog!$C1968=\"Log value\",DataLog!AD1968,\"\")","v":""},{"$f":"IF(DataLog!$C1968=\"Log value\",DataLog!AE1968,\"\")","v":""},{"$f":"IF(DataLog!$C1968=\"Log value\",DataLog!AF1968,\"\")","v":""},{"$f":"IF(DataLog!$C1968=\"Log value\",DataLog!AG1968,\"\")","v":""},{"$f":"IF(DataLog!$C1968=\"Log value\",DataLog!AH1968,\"\")","v":""},{"$f":"IF(DataLog!$C1968=\"Log value\",DataLog!AI1968,\"\")","v":""},{"$f":"IF(DataLog!$C1968=\"Log value\",DataLog!AJ1968,\"\")","v":""},{"$f":"IF(DataLog!$C1968=\"Log value\",DataLog!AK1968,\"\")","v":""},{"$f":"IF(DataLog!$C1968=\"Log value\",DataLog!AL1968,\"\")","v":""},{"$f":"IF(DataLog!$C1968=\"Log value\",DataLog!AM1968,\"\")","v":""}]
[null,null,null,null,null,null,{"$f":"IF(DataLog!$C1969=\"Log value\",DataLog!D1969&\"_\"&TEXT(DataLog!B1969,\"åååå-mm-dd\"),\"\")","v":""},{"$f":"IF(DataLog!$C1969=\"Log value\",DataLog!E1969,\"\")","v":""},{"$f":"IF(DataLog!$C1969=\"Log value\",DataLog!F1969,\"\")","v":""},{"$f":"IF(DataLog!$C1969=\"Log value\",DataLog!G1969,\"\")","v":""},{"$f":"IF(DataLog!$C1969=\"Log value\",DataLog!H1969,\"\")","v":""},{"$f":"IF(DataLog!$C1969=\"Log value\",DataLog!I1969,\"\")","v":""},{"$f":"IF(DataLog!$C1969=\"Log value\",DataLog!J1969,\"\")","v":""},{"$f":"IF(DataLog!$C1969=\"Log value\",DataLog!K1969,\"\")","v":""},{"$f":"IF(DataLog!$C1969=\"Log value\",DataLog!L1969,\"\")","v":""},{"$f":"IF(DataLog!$C1969=\"Log value\",DataLog!M1969,\"\")","v":""},{"$f":"IF(DataLog!$C1969=\"Log value\",DataLog!N1969,\"\")","v":""},{"$f":"IF(DataLog!$C1969=\"Log value\",DataLog!O1969,\"\")","v":""},{"$f":"IF(DataLog!$C1969=\"Log value\",DataLog!P1969,\"\")","v":""},{"$f":"IF(DataLog!$C1969=\"Log value\",DataLog!Q1969,\"\")","v":""},{"$f":"IF(DataLog!$C1969=\"Log value\",DataLog!R1969,\"\")","v":""},{"$f":"IF(DataLog!$C1969=\"Log value\",DataLog!S1969,\"\")","v":""},{"$f":"IF(DataLog!$C1969=\"Log value\",DataLog!T1969,\"\")","v":""},{"$f":"IF(DataLog!$C1969=\"Log value\",DataLog!U1969,\"\")","v":""},{"$f":"IF(DataLog!$C1969=\"Log value\",DataLog!V1969,\"\")","v":""},{"$f":"IF(DataLog!$C1969=\"Log value\",DataLog!W1969,\"\")","v":""},{"$f":"IF(DataLog!$C1969=\"Log value\",DataLog!X1969,\"\")","v":""},{"$f":"IF(DataLog!$C1969=\"Log value\",DataLog!Y1969,\"\")","v":""},{"$f":"IF(DataLog!$C1969=\"Log value\",DataLog!Z1969,\"\")","v":""},{"$f":"IF(DataLog!$C1969=\"Log value\",DataLog!AA1969,\"\")","v":""},{"$f":"IF(DataLog!$C1969=\"Log value\",DataLog!AB1969,\"\")","v":""},{"$f":"IF(DataLog!$C1969=\"Log value\",DataLog!AC1969,\"\")","v":""},{"$f":"IF(DataLog!$C1969=\"Log value\",DataLog!AD1969,\"\")","v":""},{"$f":"IF(DataLog!$C1969=\"Log value\",DataLog!AE1969,\"\")","v":""},{"$f":"IF(DataLog!$C1969=\"Log value\",DataLog!AF1969,\"\")","v":""},{"$f":"IF(DataLog!$C1969=\"Log value\",DataLog!AG1969,\"\")","v":""},{"$f":"IF(DataLog!$C1969=\"Log value\",DataLog!AH1969,\"\")","v":""},{"$f":"IF(DataLog!$C1969=\"Log value\",DataLog!AI1969,\"\")","v":""},{"$f":"IF(DataLog!$C1969=\"Log value\",DataLog!AJ1969,\"\")","v":""},{"$f":"IF(DataLog!$C1969=\"Log value\",DataLog!AK1969,\"\")","v":""},{"$f":"IF(DataLog!$C1969=\"Log value\",DataLog!AL1969,\"\")","v":""},{"$f":"IF(DataLog!$C1969=\"Log value\",DataLog!AM1969,\"\")","v":""}]
[null,null,null,null,null,null,{"$f":"IF(DataLog!$C1973=\"Log value\",DataLog!D1973&\"_\"&TEXT(DataLog!B1973,\"åååå-mm-dd\"),\"\")","v":""},{"$f":"IF(DataLog!$C1973=\"Log value\",DataLog!E1973,\"\")","v":""},{"$f":"IF(DataLog!$C1973=\"Log value\",DataLog!F1973,\"\")","v":""},{"$f":"IF(DataLog!$C1973=\"Log value\",DataLog!G1973,\"\")","v":""},{"$f":"IF(DataLog!$C1973=\"Log value\",DataLog!H1973,\"\")","v":""},{"$f":"IF(DataLog!$C1973=\"Log value\",DataLog!I1973,\"\")","v":""},{"$f":"IF(DataLog!$C1973=\"Log value\",DataLog!J1973,\"\")","v":""},{"$f":"IF(DataLog!$C1973=\"Log value\",DataLog!K1973,\"\")","v":""},{"$f":"IF(DataLog!$C1973=\"Log value\",DataLog!L1973,\"\")","v":""},{"$f":"IF(DataLog!$C1973=\"Log value\",DataLog!M1973,\"\")","v":""},{"$f":"IF(DataLog!$C1973=\"Log value\",DataLog!N1973,\"\")","v":""},{"$f":"IF(DataLog!$C1973=\"Log value\",DataLog!O1973,\"\")","v":""},{"$f":"IF(DataLog!$C1973=\"Log value\",DataLog!P1973,\"\")","v":""},{"$f":"IF(DataLog!$C1973=\"Log value\",DataLog!Q1973,\"\")","v":""},{"$f":"IF(DataLog!$C1973=\"Log value\",DataLog!R1973,\"\")","v":""},{"$f":"IF(DataLog!$C1973=\"Log value\",DataLog!S1973,\"\")","v":""},{"$f":"IF(DataLog!$C1973=\"Log value\",DataLog!T1973,\"\")","v":""},{"$f":"IF(DataLog!$C1973=\"Log value\",DataLog!U1973,\"\")","v":""},{"$f":"IF(DataLog!$C1973=\"Log value\",DataLog!V1973,\"\")","v":""},{"$f":"IF(DataLog!$C1973=\"Log value\",DataLog!W1973,\"\")","v":""},{"$f":"IF(DataLog!$C1973=\"Log value\",DataLog!X1973,\"\")","v":""},{"$f":"IF(DataLog!$C1973=\"Log value\",DataLog!Y1973,\"\")","v":""},{"$f":"IF(DataLog!$C1973=\"Log value\",DataLog!Z1973,\"\")","v":""},{"$f":"IF(DataLog!$C1973=\"Log value\",DataLog!AA1973,\"\")","v":""},{"$f":"IF(DataLog!$C1973=\"Log value\",DataLog!AB1973,\"\")","v":""},{"$f":"IF(DataLog!$C1973=\"Log value\",DataLog!AC1973,\"\")","v":""},{"$f":"IF(DataLog!$C1973=\"Log value\",DataLog!AD1973,\"\")","v":""},{"$f":"IF(DataLog!$C1973=\"Log value\",DataLog!AE1973,\"\")","v":""},{"$f":"IF(DataLog!$C1973=\"Log value\",DataLog!AF1973,\"\")","v":""},{"$f":"IF(DataLog!$C1973=\"Log value\",DataLog!AG1973,\"\")","v":""},{"$f":"IF(DataLog!$C1973=\"Log value\",DataLog!AH1973,\"\")","v":""},{"$f":"IF(DataLog!$C1973=\"Log value\",DataLog!AI1973,\"\")","v":""},{"$f":"IF(DataLog!$C1973=\"Log value\",DataLog!AJ1973,\"\")","v":""},{"$f":"IF(DataLog!$C1973=\"Log value\",DataLog!AK1973,\"\")","v":""},{"$f":"IF(DataLog!$C1973=\"Log value\",DataLog!AL1973,\"\")","v":""},{"$f":"IF(DataLog!$C1973=\"Log value\",DataLog!AM1973,\"\")","v":""}]
[null,null,null,null,null,null,{"$f":"IF(DataLog!$C1974=\"Log value\",DataLog!D1974&\"_\"&TEXT(DataLog!B1974,\"åååå-mm-dd\"),\"\")","v":""},{"$f":"IF(DataLog!$C1974=\"Log value\",DataLog!E1974,\"\")","v":""},{"$f":"IF(DataLog!$C1974=\"Log value\",DataLog!F1974,\"\")","v":""},{"$f":"IF(DataLog!$C1974=\"Log value\",DataLog!G1974,\"\")","v":""},{"$f":"IF(DataLog!$C1974=\"Log value\",DataLog!H1974,\"\")","v":""},{"$f":"IF(DataLog!$C1974=\"Log value\",DataLog!I1974,\"\")","v":""},{"$f":"IF(DataLog!$C1974=\"Log value\",DataLog!J1974,\"\")","v":""},{"$f":"IF(DataLog!$C1974=\"Log value\",DataLog!K1974,\"\")","v":""},{"$f":"IF(DataLog!$C1974=\"Log value\",DataLog!L1974,\"\")","v":""},{"$f":"IF(DataLog!$C1974=\"Log value\",DataLog!M1974,\"\")","v":""},{"$f":"IF(DataLog!$C1974=\"Log value\",DataLog!N1974,\"\")","v":""},{"$f":"IF(DataLog!$C1974=\"Log value\",DataLog!O1974,\"\")","v":""},{"$f":"IF(DataLog!$C1974=\"Log value\",DataLog!P1974,\"\")","v":""},{"$f":"IF(DataLog!$C1974=\"Log value\",DataLog!Q1974,\"\")","v":""},{"$f":"IF(DataLog!$C1974=\"Log value\",DataLog!R1974,\"\")","v":""},{"$f":"IF(DataLog!$C1974=\"Log value\",DataLog!S1974,\"\")","v":""},{"$f":"IF(DataLog!$C1974=\"Log value\",DataLog!T1974,\"\")","v":""},{"$f":"IF(DataLog!$C1974=\"Log value\",DataLog!U1974,\"\")","v":""},{"$f":"IF(DataLog!$C1974=\"Log value\",DataLog!V1974,\"\")","v":""},{"$f":"IF(DataLog!$C1974=\"Log value\",DataLog!W1974,\"\")","v":""},{"$f":"IF(DataLog!$C1974=\"Log value\",DataLog!X1974,\"\")","v":""},{"$f":"IF(DataLog!$C1974=\"Log value\",DataLog!Y1974,\"\")","v":""},{"$f":"IF(DataLog!$C1974=\"Log value\",DataLog!Z1974,\"\")","v":""},{"$f":"IF(DataLog!$C1974=\"Log value\",DataLog!AA1974,\"\")","v":""},{"$f":"IF(DataLog!$C1974=\"Log value\",DataLog!AB1974,\"\")","v":""},{"$f":"IF(DataLog!$C1974=\"Log value\",DataLog!AC1974,\"\")","v":""},{"$f":"IF(DataLog!$C1974=\"Log value\",DataLog!AD1974,\"\")","v":""},{"$f":"IF(DataLog!$C1974=\"Log value\",DataLog!AE1974,\"\")","v":""},{"$f":"IF(DataLog!$C1974=\"Log value\",DataLog!AF1974,\"\")","v":""},{"$f":"IF(DataLog!$C1974=\"Log value\",DataLog!AG1974,\"\")","v":""},{"$f":"IF(DataLog!$C1974=\"Log value\",DataLog!AH1974,\"\")","v":""},{"$f":"IF(DataLog!$C1974=\"Log value\",DataLog!AI1974,\"\")","v":""},{"$f":"IF(DataLog!$C1974=\"Log value\",DataLog!AJ1974,\"\")","v":""},{"$f":"IF(DataLog!$C1974=\"Log value\",DataLog!AK1974,\"\")","v":""},{"$f":"IF(DataLog!$C1974=\"Log value\",DataLog!AL1974,\"\")","v":""},{"$f":"IF(DataLog!$C1974=\"Log value\",DataLog!AM1974,\"\")","v":""}]
[null,null,null,null,null,null,{"$f":"IF(DataLog!$C1977=\"Log value\",DataLog!D1977&\"_\"&TEXT(DataLog!B1977,\"åååå-mm-dd\"),\"\")","v":""},{"$f":"IF(DataLog!$C1977=\"Log value\",DataLog!E1977,\"\")","v":""},{"$f":"IF(DataLog!$C1977=\"Log value\",DataLog!F1977,\"\")","v":""},{"$f":"IF(DataLog!$C1977=\"Log value\",DataLog!G1977,\"\")","v":""},{"$f":"IF(DataLog!$C1977=\"Log value\",DataLog!H1977,\"\")","v":""},{"$f":"IF(DataLog!$C1977=\"Log value\",DataLog!I1977,\"\")","v":""},{"$f":"IF(DataLog!$C1977=\"Log value\",DataLog!J1977,\"\")","v":""},{"$f":"IF(DataLog!$C1977=\"Log value\",DataLog!K1977,\"\")","v":""},{"$f":"IF(DataLog!$C1977=\"Log value\",DataLog!L1977,\"\")","v":""},{"$f":"IF(DataLog!$C1977=\"Log value\",DataLog!M1977,\"\")","v":""},{"$f":"IF(DataLog!$C1977=\"Log value\",DataLog!N1977,\"\")","v":""},{"$f":"IF(DataLog!$C1977=\"Log value\",DataLog!O1977,\"\")","v":""},{"$f":"IF(DataLog!$C1977=\"Log value\",DataLog!P1977,\"\")","v":""},{"$f":"IF(DataLog!$C1977=\"Log value\",DataLog!Q1977,\"\")","v":""},{"$f":"IF(DataLog!$C1977=\"Log value\",DataLog!R1977,\"\")","v":""},{"$f":"IF(DataLog!$C1977=\"Log value\",DataLog!S1977,\"\")","v":""},{"$f":"IF(DataLog!$C1977=\"Log value\",DataLog!T1977,\"\")","v":""},{"$f":"IF(DataLog!$C1977=\"Log value\",DataLog!U1977,\"\")","v":""},{"$f":"IF(DataLog!$C1977=\"Log value\",DataLog!V1977,\"\")","v":""},{"$f":"IF(DataLog!$C1977=\"Log value\",DataLog!W1977,\"\")","v":""},{"$f":"IF(DataLog!$C1977=\"Log value\",DataLog!X1977,\"\")","v":""},{"$f":"IF(DataLog!$C1977=\"Log value\",DataLog!Y1977,\"\")","v":""},{"$f":"IF(DataLog!$C1977=\"Log value\",DataLog!Z1977,\"\")","v":""},{"$f":"IF(DataLog!$C1977=\"Log value\",DataLog!AA1977,\"\")","v":""},{"$f":"IF(DataLog!$C1977=\"Log value\",DataLog!AB1977,\"\")","v":""},{"$f":"IF(DataLog!$C1977=\"Log value\",DataLog!AC1977,\"\")","v":""},{"$f":"IF(DataLog!$C1977=\"Log value\",DataLog!AD1977,\"\")","v":""},{"$f":"IF(DataLog!$C1977=\"Log value\",DataLog!AE1977,\"\")","v":""},{"$f":"IF(DataLog!$C1977=\"Log value\",DataLog!AF1977,\"\")","v":""},{"$f":"IF(DataLog!$C1977=\"Log value\",DataLog!AG1977,\"\")","v":""},{"$f":"IF(DataLog!$C1977=\"Log value\",DataLog!AH1977,\"\")","v":""},{"$f":"IF(DataLog!$C1977=\"Log value\",DataLog!AI1977,\"\")","v":""},{"$f":"IF(DataLog!$C1977=\"Log value\",DataLog!AJ1977,\"\")","v":""},{"$f":"IF(DataLog!$C1977=\"Log value\",DataLog!AK1977,\"\")","v":""},{"$f":"IF(DataLog!$C1977=\"Log value\",DataLog!AL1977,\"\")","v":""},{"$f":"IF(DataLog!$C1977=\"Log value\",DataLog!AM1977,\"\")","v":""}]
[null,null,null,null,null,null,{"$f":"IF(DataLog!$C1978=\"Log value\",DataLog!D1978&\"_\"&TEXT(DataLog!B1978,\"åååå-mm-dd\"),\"\")","v":""},{"$f":"IF(DataLog!$C1978=\"Log value\",DataLog!E1978,\"\")","v":""},{"$f":"IF(DataLog!$C1978=\"Log value\",DataLog!F1978,\"\")","v":""},{"$f":"IF(DataLog!$C1978=\"Log value\",DataLog!G1978,\"\")","v":""},{"$f":"IF(DataLog!$C1978=\"Log value\",DataLog!H1978,\"\")","v":""},{"$f":"IF(DataLog!$C1978=\"Log value\",DataLog!I1978,\"\")","v":""},{"$f":"IF(DataLog!$C1978=\"Log value\",DataLog!J1978,\"\")","v":""},{"$f":"IF(DataLog!$C1978=\"Log value\",DataLog!K1978,\"\")","v":""},{"$f":"IF(DataLog!$C1978=\"Log value\",DataLog!L1978,\"\")","v":""},{"$f":"IF(DataLog!$C1978=\"Log value\",DataLog!M1978,\"\")","v":""},{"$f":"IF(DataLog!$C1978=\"Log value\",DataLog!N1978,\"\")","v":""},{"$f":"IF(DataLog!$C1978=\"Log value\",DataLog!O1978,\"\")","v":""},{"$f":"IF(DataLog!$C1978=\"Log value\",DataLog!P1978,\"\")","v":""},{"$f":"IF(DataLog!$C1978=\"Log value\",DataLog!Q1978,\"\")","v":""},{"$f":"IF(DataLog!$C1978=\"Log value\",DataLog!R1978,\"\")","v":""},{"$f":"IF(DataLog!$C1978=\"Log value\",DataLog!S1978,\"\")","v":""},{"$f":"IF(DataLog!$C1978=\"Log value\",DataLog!T1978,\"\")","v":""},{"$f":"IF(DataLog!$C1978=\"Log value\",DataLog!U1978,\"\")","v":""},{"$f":"IF(DataLog!$C1978=\"Log value\",DataLog!V1978,\"\")","v":""},{"$f":"IF(DataLog!$C1978=\"Log value\",DataLog!W1978,\"\")","v":""},{"$f":"IF(DataLog!$C1978=\"Log value\",DataLog!X1978,\"\")","v":""},{"$f":"IF(DataLog!$C1978=\"Log value\",DataLog!Y1978,\"\")","v":""},{"$f":"IF(DataLog!$C1978=\"Log value\",DataLog!Z1978,\"\")","v":""},{"$f":"IF(DataLog!$C1978=\"Log value\",DataLog!AA1978,\"\")","v":""},{"$f":"IF(DataLog!$C1978=\"Log value\",DataLog!AB1978,\"\")","v":""},{"$f":"IF(DataLog!$C1978=\"Log value\",DataLog!AC1978,\"\")","v":""},{"$f":"IF(DataLog!$C1978=\"Log value\",DataLog!AD1978,\"\")","v":""},{"$f":"IF(DataLog!$C1978=\"Log value\",DataLog!AE1978,\"\")","v":""},{"$f":"IF(DataLog!$C1978=\"Log value\",DataLog!AF1978,\"\")","v":""},{"$f":"IF(DataLog!$C1978=\"Log value\",DataLog!AG1978,\"\")","v":""},{"$f":"IF(DataLog!$C1978=\"Log value\",DataLog!AH1978,\"\")","v":""},{"$f":"IF(DataLog!$C1978=\"Log value\",DataLog!AI1978,\"\")","v":""},{"$f":"IF(DataLog!$C1978=\"Log value\",DataLog!AJ1978,\"\")","v":""},{"$f":"IF(DataLog!$C1978=\"Log value\",DataLog!AK1978,\"\")","v":""},{"$f":"IF(DataLog!$C1978=\"Log value\",DataLog!AL1978,\"\")","v":""},{"$f":"IF(DataLog!$C1978=\"Log value\",DataLog!AM1978,\"\")","v":""}]
[null,null,null,null,null,null,{"$f":"IF(DataLog!$C1981=\"Log value\",DataLog!D1981&\"_\"&TEXT(DataLog!B1981,\"åååå-mm-dd\"),\"\")","v":""},{"$f":"IF(DataLog!$C1981=\"Log value\",DataLog!E1981,\"\")","v":""},{"$f":"IF(DataLog!$C1981=\"Log value\",DataLog!F1981,\"\")","v":""},{"$f":"IF(DataLog!$C1981=\"Log value\",DataLog!G1981,\"\")","v":""},{"$f":"IF(DataLog!$C1981=\"Log value\",DataLog!H1981,\"\")","v":""},{"$f":"IF(DataLog!$C1981=\"Log value\",DataLog!I1981,\"\")","v":""},{"$f":"IF(DataLog!$C1981=\"Log value\",DataLog!J1981,\"\")","v":""},{"$f":"IF(DataLog!$C1981=\"Log value\",DataLog!K1981,\"\")","v":""},{"$f":"IF(DataLog!$C1981=\"Log value\",DataLog!L1981,\"\")","v":""},{"$f":"IF(DataLog!$C1981=\"Log value\",DataLog!M1981,\"\")","v":""},{"$f":"IF(DataLog!$C1981=\"Log value\",DataLog!N1981,\"\")","v":""},{"$f":"IF(DataLog!$C1981=\"Log value\",DataLog!O1981,\"\")","v":""},{"$f":"IF(DataLog!$C1981=\"Log value\",DataLog!P1981,\"\")","v":""},{"$f":"IF(DataLog!$C1981=\"Log value\",DataLog!Q1981,\"\")","v":""},{"$f":"IF(DataLog!$C1981=\"Log value\",DataLog!R1981,\"\")","v":""},{"$f":"IF(DataLog!$C1981=\"Log value\",DataLog!S1981,\"\")","v":""},{"$f":"IF(DataLog!$C1981=\"Log value\",DataLog!T1981,\"\")","v":""},{"$f":"IF(DataLog!$C1981=\"Log value\",DataLog!U1981,\"\")","v":""},{"$f":"IF(DataLog!$C1981=\"Log value\",DataLog!V1981,\"\")","v":""},{"$f":"IF(DataLog!$C1981=\"Log value\",DataLog!W1981,\"\")","v":""},{"$f":"IF(DataLog!$C1981=\"Log value\",DataLog!X1981,\"\")","v":""},{"$f":"IF(DataLog!$C1981=\"Log value\",DataLog!Y1981,\"\")","v":""},{"$f":"IF(DataLog!$C1981=\"Log value\",DataLog!Z1981,\"\")","v":""},{"$f":"IF(DataLog!$C1981=\"Log value\",DataLog!AA1981,\"\")","v":""},{"$f":"IF(DataLog!$C1981=\"Log value\",DataLog!AB1981,\"\")","v":""},{"$f":"IF(DataLog!$C1981=\"Log value\",DataLog!AC1981,\"\")","v":""},{"$f":"IF(DataLog!$C1981=\"Log value\",DataLog!AD1981,\"\")","v":""},{"$f":"IF(DataLog!$C1981=\"Log value\",DataLog!AE1981,\"\")","v":""},{"$f":"IF(DataLog!$C1981=\"Log value\",DataLog!AF1981,\"\")","v":""},{"$f":"IF(DataLog!$C1981=\"Log value\",DataLog!AG1981,\"\")","v":""},{"$f":"IF(DataLog!$C1981=\"Log value\",DataLog!AH1981,\"\")","v":""},{"$f":"IF(DataLog!$C1981=\"Log value\",DataLog!AI1981,\"\")","v":""},{"$f":"IF(DataLog!$C1981=\"Log value\",DataLog!AJ1981,\"\")","v":""},{"$f":"IF(DataLog!$C1981=\"Log value\",DataLog!AK1981,\"\")","v":""},{"$f":"IF(DataLog!$C1981=\"Log value\",DataLog!AL1981,\"\")","v":""},{"$f":"IF(DataLog!$C1981=\"Log value\",DataLog!AM1981,\"\")","v":""}]
[null,null,null,null,null,null,{"$f":"IF(DataLog!$C1983=\"Log value\",DataLog!D1983&\"_\"&TEXT(DataLog!B1983,\"åååå-mm-dd\"),\"\")","v":""},{"$f":"IF(DataLog!$C1983=\"Log value\",DataLog!E1983,\"\")","v":""},{"$f":"IF(DataLog!$C1983=\"Log value\",DataLog!F1983,\"\")","v":""},{"$f":"IF(DataLog!$C1983=\"Log value\",DataLog!G1983,\"\")","v":""},{"$f":"IF(DataLog!$C1983=\"Log value\",DataLog!H1983,\"\")","v":""},{"$f":"IF(DataLog!$C1983=\"Log value\",DataLog!I1983,\"\")","v":""},{"$f":"IF(DataLog!$C1983=\"Log value\",DataLog!J1983,\"\")","v":""},{"$f":"IF(DataLog!$C1983=\"Log value\",DataLog!K1983,\"\")","v":""},{"$f":"IF(DataLog!$C1983=\"Log value\",DataLog!L1983,\"\")","v":""},{"$f":"IF(DataLog!$C1983=\"Log value\",DataLog!M1983,\"\")","v":""},{"$f":"IF(DataLog!$C1983=\"Log value\",DataLog!N1983,\"\")","v":""},{"$f":"IF(DataLog!$C1983=\"Log value\",DataLog!O1983,\"\")","v":""},{"$f":"IF(DataLog!$C1983=\"Log value\",DataLog!P1983,\"\")","v":""},{"$f":"IF(DataLog!$C1983=\"Log value\",DataLog!Q1983,\"\")","v":""},{"$f":"IF(DataLog!$C1983=\"Log value\",DataLog!R1983,\"\")","v":""},{"$f":"IF(DataLog!$C1983=\"Log value\",DataLog!S1983,\"\")","v":""},{"$f":"IF(DataLog!$C1983=\"Log value\",DataLog!T1983,\"\")","v":""},{"$f":"IF(DataLog!$C1983=\"Log value\",DataLog!U1983,\"\")","v":""},{"$f":"IF(DataLog!$C1983=\"Log value\",DataLog!V1983,\"\")","v":""},{"$f":"IF(DataLog!$C1983=\"Log value\",DataLog!W1983,\"\")","v":""},{"$f":"IF(DataLog!$C1983=\"Log value\",DataLog!X1983,\"\")","v":""},{"$f":"IF(DataLog!$C1983=\"Log value\",DataLog!Y1983,\"\")","v":""},{"$f":"IF(DataLog!$C1983=\"Log value\",DataLog!Z1983,\"\")","v":""},{"$f":"IF(DataLog!$C1983=\"Log value\",DataLog!AA1983,\"\")","v":""},{"$f":"IF(DataLog!$C1983=\"Log value\",DataLog!AB1983,\"\")","v":""},{"$f":"IF(DataLog!$C1983=\"Log value\",DataLog!AC1983,\"\")","v":""},{"$f":"IF(DataLog!$C1983=\"Log value\",DataLog!AD1983,\"\")","v":""},{"$f":"IF(DataLog!$C1983=\"Log value\",DataLog!AE1983,\"\")","v":""},{"$f":"IF(DataLog!$C1983=\"Log value\",DataLog!AF1983,\"\")","v":""},{"$f":"IF(DataLog!$C1983=\"Log value\",DataLog!AG1983,\"\")","v":""},{"$f":"IF(DataLog!$C1983=\"Log value\",DataLog!AH1983,\"\")","v":""},{"$f":"IF(DataLog!$C1983=\"Log value\",DataLog!AI1983,\"\")","v":""},{"$f":"IF(DataLog!$C1983=\"Log value\",DataLog!AJ1983,\"\")","v":""},{"$f":"IF(DataLog!$C1983=\"Log value\",DataLog!AK1983,\"\")","v":""},{"$f":"IF(DataLog!$C1983=\"Log value\",DataLog!AL1983,\"\")","v":""},{"$f":"IF(DataLog!$C1983=\"Log value\",DataLog!AM1983,\"\")","v":""}]
[null,null,null,null,null,null,{"$f":"IF(DataLog!$C1986=\"Log value\",DataLog!D1986&\"_\"&TEXT(DataLog!B1986,\"åååå-mm-dd\"),\"\")","v":""},{"$f":"IF(DataLog!$C1986=\"Log value\",DataLog!E1986,\"\")","v":""},{"$f":"IF(DataLog!$C1986=\"Log value\",DataLog!F1986,\"\")","v":""},{"$f":"IF(DataLog!$C1986=\"Log value\",DataLog!G1986,\"\")","v":""},{"$f":"IF(DataLog!$C1986=\"Log value\",DataLog!H1986,\"\")","v":""},{"$f":"IF(DataLog!$C1986=\"Log value\",DataLog!I1986,\"\")","v":""},{"$f":"IF(DataLog!$C1986=\"Log value\",DataLog!J1986,\"\")","v":""},{"$f":"IF(DataLog!$C1986=\"Log value\",DataLog!K1986,\"\")","v":""},{"$f":"IF(DataLog!$C1986=\"Log value\",DataLog!L1986,\"\")","v":""},{"$f":"IF(DataLog!$C1986=\"Log value\",DataLog!M1986,\"\")","v":""},{"$f":"IF(DataLog!$C1986=\"Log value\",DataLog!N1986,\"\")","v":""},{"$f":"IF(DataLog!$C1986=\"Log value\",DataLog!O1986,\"\")","v":""},{"$f":"IF(DataLog!$C1986=\"Log value\",DataLog!P1986,\"\")","v":""},{"$f":"IF(DataLog!$C1986=\"Log value\",DataLog!Q1986,\"\")","v":""},{"$f":"IF(DataLog!$C1986=\"Log value\",DataLog!R1986,\"\")","v":""},{"$f":"IF(DataLog!$C1986=\"Log value\",DataLog!S1986,\"\")","v":""},{"$f":"IF(DataLog!$C1986=\"Log value\",DataLog!T1986,\"\")","v":""},{"$f":"IF(DataLog!$C1986=\"Log value\",DataLog!U1986,\"\")","v":""},{"$f":"IF(DataLog!$C1986=\"Log value\",DataLog!V1986,\"\")","v":""},{"$f":"IF(DataLog!$C1986=\"Log value\",DataLog!W1986,\"\")","v":""},{"$f":"IF(DataLog!$C1986=\"Log value\",DataLog!X1986,\"\")","v":""},{"$f":"IF(DataLog!$C1986=\"Log value\",DataLog!Y1986,\"\")","v":""},{"$f":"IF(DataLog!$C1986=\"Log value\",DataLog!Z1986,\"\")","v":""},{"$f":"IF(DataLog!$C1986=\"Log value\",DataLog!AA1986,\"\")","v":""},{"$f":"IF(DataLog!$C1986=\"Log value\",DataLog!AB1986,\"\")","v":""},{"$f":"IF(DataLog!$C1986=\"Log value\",DataLog!AC1986,\"\")","v":""},{"$f":"IF(DataLog!$C1986=\"Log value\",DataLog!AD1986,\"\")","v":""},{"$f":"IF(DataLog!$C1986=\"Log value\",DataLog!AE1986,\"\")","v":""},{"$f":"IF(DataLog!$C1986=\"Log value\",DataLog!AF1986,\"\")","v":""},{"$f":"IF(DataLog!$C1986=\"Log value\",DataLog!AG1986,\"\")","v":""},{"$f":"IF(DataLog!$C1986=\"Log value\",DataLog!AH1986,\"\")","v":""},{"$f":"IF(DataLog!$C1986=\"Log value\",DataLog!AI1986,\"\")","v":""},{"$f":"IF(DataLog!$C1986=\"Log value\",DataLog!AJ1986,\"\")","v":""},{"$f":"IF(DataLog!$C1986=\"Log value\",DataLog!AK1986,\"\")","v":""},{"$f":"IF(DataLog!$C1986=\"Log value\",DataLog!AL1986,\"\")","v":""},{"$f":"IF(DataLog!$C1986=\"Log value\",DataLog!AM1986,\"\")","v":""}]
[null,null,null,null,null,null,{"$f":"IF(DataLog!$C1987=\"Log value\",DataLog!D1987&\"_\"&TEXT(DataLog!B1987,\"åååå-mm-dd\"),\"\")","v":""},{"$f":"IF(DataLog!$C1987=\"Log value\",DataLog!E1987,\"\")","v":""},{"$f":"IF(DataLog!$C1987=\"Log value\",DataLog!F1987,\"\")","v":""},{"$f":"IF(DataLog!$C1987=\"Log value\",DataLog!G1987,\"\")","v":""},{"$f":"IF(DataLog!$C1987=\"Log value\",DataLog!H1987,\"\")","v":""},{"$f":"IF(DataLog!$C1987=\"Log value\",DataLog!I1987,\"\")","v":""},{"$f":"IF(DataLog!$C1987=\"Log value\",DataLog!J1987,\"\")","v":""},{"$f":"IF(DataLog!$C1987=\"Log value\",DataLog!K1987,\"\")","v":""},{"$f":"IF(DataLog!$C1987=\"Log value\",DataLog!L1987,\"\")","v":""},{"$f":"IF(DataLog!$C1987=\"Log value\",DataLog!M1987,\"\")","v":""},{"$f":"IF(DataLog!$C1987=\"Log value\",DataLog!N1987,\"\")","v":""},{"$f":"IF(DataLog!$C1987=\"Log value\",DataLog!O1987,\"\")","v":""},{"$f":"IF(DataLog!$C1987=\"Log value\",DataLog!P1987,\"\")","v":""},{"$f":"IF(DataLog!$C1987=\"Log value\",DataLog!Q1987,\"\")","v":""},{"$f":"IF(DataLog!$C1987=\"Log value\",DataLog!R1987,\"\")","v":""},{"$f":"IF(DataLog!$C1987=\"Log value\",DataLog!S1987,\"\")","v":""},{"$f":"IF(DataLog!$C1987=\"Log value\",DataLog!T1987,\"\")","v":""},{"$f":"IF(DataLog!$C1987=\"Log value\",DataLog!U1987,\"\")","v":""},{"$f":"IF(DataLog!$C1987=\"Log value\",DataLog!V1987,\"\")","v":""},{"$f":"IF(DataLog!$C1987=\"Log value\",DataLog!W1987,\"\")","v":""},{"$f":"IF(DataLog!$C1987=\"Log value\",DataLog!X1987,\"\")","v":""},{"$f":"IF(DataLog!$C1987=\"Log value\",DataLog!Y1987,\"\")","v":""},{"$f":"IF(DataLog!$C1987=\"Log value\",DataLog!Z1987,\"\")","v":""},{"$f":"IF(DataLog!$C1987=\"Log value\",DataLog!AA1987,\"\")","v":""},{"$f":"IF(DataLog!$C1987=\"Log value\",DataLog!AB1987,\"\")","v":""},{"$f":"IF(DataLog!$C1987=\"Log value\",DataLog!AC1987,\"\")","v":""},{"$f":"IF(DataLog!$C1987=\"Log value\",DataLog!AD1987,\"\")","v":""},{"$f":"IF(DataLog!$C1987=\"Log value\",DataLog!AE1987,\"\")","v":""},{"$f":"IF(DataLog!$C1987=\"Log value\",DataLog!AF1987,\"\")","v":""},{"$f":"IF(DataLog!$C1987=\"Log value\",DataLog!AG1987,\"\")","v":""},{"$f":"IF(DataLog!$C1987=\"Log value\",DataLog!AH1987,\"\")","v":""},{"$f":"IF(DataLog!$C1987=\"Log value\",DataLog!AI1987,\"\")","v":""},{"$f":"IF(DataLog!$C1987=\"Log value\",DataLog!AJ1987,\"\")","v":""},{"$f":"IF(DataLog!$C1987=\"Log value\",DataLog!AK1987,\"\")","v":""},{"$f":"IF(DataLog!$C1987=\"Log value\",DataLog!AL1987,\"\")","v":""},{"$f":"IF(DataLog!$C1987=\"Log value\",DataLog!AM1987,\"\")","v":""}]
[null,null,null,null,null,null,{"$f":"IF(DataLog!$C1991=\"Log value\",DataLog!D1991&\"_\"&TEXT(DataLog!B1991,\"åååå-mm-dd\"),\"\")","v":""},{"$f":"IF(DataLog!$C1991=\"Log value\",DataLog!E1991,\"\")","v":""},{"$f":"IF(DataLog!$C1991=\"Log value\",DataLog!F1991,\"\")","v":""},{"$f":"IF(DataLog!$C1991=\"Log value\",DataLog!G1991,\"\")","v":""},{"$f":"IF(DataLog!$C1991=\"Log value\",DataLog!H1991,\"\")","v":""},{"$f":"IF(DataLog!$C1991=\"Log value\",DataLog!I1991,\"\")","v":""},{"$f":"IF(DataLog!$C1991=\"Log value\",DataLog!J1991,\"\")","v":""},{"$f":"IF(DataLog!$C1991=\"Log value\",DataLog!K1991,\"\")","v":""},{"$f":"IF(DataLog!$C1991=\"Log value\",DataLog!L1991,\"\")","v":""},{"$f":"IF(DataLog!$C1991=\"Log value\",DataLog!M1991,\"\")","v":""},{"$f":"IF(DataLog!$C1991=\"Log value\",DataLog!N1991,\"\")","v":""},{"$f":"IF(DataLog!$C1991=\"Log value\",DataLog!O1991,\"\")","v":""},{"$f":"IF(DataLog!$C1991=\"Log value\",DataLog!P1991,\"\")","v":""},{"$f":"IF(DataLog!$C1991=\"Log value\",DataLog!Q1991,\"\")","v":""},{"$f":"IF(DataLog!$C1991=\"Log value\",DataLog!R1991,\"\")","v":""},{"$f":"IF(DataLog!$C1991=\"Log value\",DataLog!S1991,\"\")","v":""},{"$f":"IF(DataLog!$C1991=\"Log value\",DataLog!T1991,\"\")","v":""},{"$f":"IF(DataLog!$C1991=\"Log value\",DataLog!U1991,\"\")","v":""},{"$f":"IF(DataLog!$C1991=\"Log value\",DataLog!V1991,\"\")","v":""},{"$f":"IF(DataLog!$C1991=\"Log value\",DataLog!W1991,\"\")","v":""},{"$f":"IF(DataLog!$C1991=\"Log value\",DataLog!X1991,\"\")","v":""},{"$f":"IF(DataLog!$C1991=\"Log value\",DataLog!Y1991,\"\")","v":""},{"$f":"IF(DataLog!$C1991=\"Log value\",DataLog!Z1991,\"\")","v":""},{"$f":"IF(DataLog!$C1991=\"Log value\",DataLog!AA1991,\"\")","v":""},{"$f":"IF(DataLog!$C1991=\"Log value\",DataLog!AB1991,\"\")","v":""},{"$f":"IF(DataLog!$C1991=\"Log value\",DataLog!AC1991,\"\")","v":""},{"$f":"IF(DataLog!$C1991=\"Log value\",DataLog!AD1991,\"\")","v":""},{"$f":"IF(DataLog!$C1991=\"Log value\",DataLog!AE1991,\"\")","v":""},{"$f":"IF(DataLog!$C1991=\"Log value\",DataLog!AF1991,\"\")","v":""},{"$f":"IF(DataLog!$C1991=\"Log value\",DataLog!AG1991,\"\")","v":""},{"$f":"IF(DataLog!$C1991=\"Log value\",DataLog!AH1991,\"\")","v":""},{"$f":"IF(DataLog!$C1991=\"Log value\",DataLog!AI1991,\"\")","v":""},{"$f":"IF(DataLog!$C1991=\"Log value\",DataLog!AJ1991,\"\")","v":""},{"$f":"IF(DataLog!$C1991=\"Log value\",DataLog!AK1991,\"\")","v":""},{"$f":"IF(DataLog!$C1991=\"Log value\",DataLog!AL1991,\"\")","v":""},{"$f":"IF(DataLog!$C1991=\"Log value\",DataLog!AM1991,\"\")","v":""}]
[null,null,null,null,null,null,{"$f":"IF(DataLog!$C1992=\"Log value\",DataLog!D1992&\"_\"&TEXT(DataLog!B1992,\"åååå-mm-dd\"),\"\")","v":""},{"$f":"IF(DataLog!$C1992=\"Log value\",DataLog!E1992,\"\")","v":""},{"$f":"IF(DataLog!$C1992=\"Log value\",DataLog!F1992,\"\")","v":""},{"$f":"IF(DataLog!$C1992=\"Log value\",DataLog!G1992,\"\")","v":""},{"$f":"IF(DataLog!$C1992=\"Log value\",DataLog!H1992,\"\")","v":""},{"$f":"IF(DataLog!$C1992=\"Log value\",DataLog!I1992,\"\")","v":""},{"$f":"IF(DataLog!$C1992=\"Log value\",DataLog!J1992,\"\")","v":""},{"$f":"IF(DataLog!$C1992=\"Log value\",DataLog!K1992,\"\")","v":""},{"$f":"IF(DataLog!$C1992=\"Log value\",DataLog!L1992,\"\")","v":""},{"$f":"IF(DataLog!$C1992=\"Log value\",DataLog!M1992,\"\")","v":""},{"$f":"IF(DataLog!$C1992=\"Log value\",DataLog!N1992,\"\")","v":""},{"$f":"IF(DataLog!$C1992=\"Log value\",DataLog!O1992,\"\")","v":""},{"$f":"IF(DataLog!$C1992=\"Log value\",DataLog!P1992,\"\")","v":""},{"$f":"IF(DataLog!$C1992=\"Log value\",DataLog!Q1992,\"\")","v":""},{"$f":"IF(DataLog!$C1992=\"Log value\",DataLog!R1992,\"\")","v":""},{"$f":"IF(DataLog!$C1992=\"Log value\",DataLog!S1992,\"\")","v":""},{"$f":"IF(DataLog!$C1992=\"Log value\",DataLog!T1992,\"\")","v":""},{"$f":"IF(DataLog!$C1992=\"Log value\",DataLog!U1992,\"\")","v":""},{"$f":"IF(DataLog!$C1992=\"Log value\",DataLog!V1992,\"\")","v":""},{"$f":"IF(DataLog!$C1992=\"Log value\",DataLog!W1992,\"\")","v":""},{"$f":"IF(DataLog!$C1992=\"Log value\",DataLog!X1992,\"\")","v":""},{"$f":"IF(DataLog!$C1992=\"Log value\",DataLog!Y1992,\"\")","v":""},{"$f":"IF(DataLog!$C1992=\"Log value\",DataLog!Z1992,\"\")","v":""},{"$f":"IF(DataLog!$C1992=\"Log value\",DataLog!AA1992,\"\")","v":""},{"$f":"IF(DataLog!$C1992=\"Log value\",DataLog!AB1992,\"\")","v":""},{"$f":"IF(DataLog!$C1992=\"Log value\",DataLog!AC1992,\"\")","v":""},{"$f":"IF(DataLog!$C1992=\"Log value\",DataLog!AD1992,\"\")","v":""},{"$f":"IF(DataLog!$C1992=\"Log value\",DataLog!AE1992,\"\")","v":""},{"$f":"IF(DataLog!$C1992=\"Log value\",DataLog!AF1992,\"\")","v":""},{"$f":"IF(DataLog!$C1992=\"Log value\",DataLog!AG1992,\"\")","v":""},{"$f":"IF(DataLog!$C1992=\"Log value\",DataLog!AH1992,\"\")","v":""},{"$f":"IF(DataLog!$C1992=\"Log value\",DataLog!AI1992,\"\")","v":""},{"$f":"IF(DataLog!$C1992=\"Log value\",DataLog!AJ1992,\"\")","v":""},{"$f":"IF(DataLog!$C1992=\"Log value\",DataLog!AK1992,\"\")","v":""},{"$f":"IF(DataLog!$C1992=\"Log value\",DataLog!AL1992,\"\")","v":""},{"$f":"IF(DataLog!$C1992=\"Log value\",DataLog!AM1992,\"\")","v":""}]
[null,null,null,null,null,null,{"$f":"IF(DataLog!$C1995=\"Log value\",DataLog!D1995&\"_\"&TEXT(DataLog!B1995,\"åååå-mm-dd\"),\"\")","v":""},{"$f":"IF(DataLog!$C1995=\"Log value\",DataLog!E1995,\"\")","v":""},{"$f":"IF(DataLog!$C1995=\"Log value\",DataLog!F1995,\"\")","v":""},{"$f":"IF(DataLog!$C1995=\"Log value\",DataLog!G1995,\"\")","v":""},{"$f":"IF(DataLog!$C1995=\"Log value\",DataLog!H1995,\"\")","v":""},{"$f":"IF(DataLog!$C1995=\"Log value\",DataLog!I1995,\"\")","v":""},{"$f":"IF(DataLog!$C1995=\"Log value\",DataLog!J1995,\"\")","v":""},{"$f":"IF(DataLog!$C1995=\"Log value\",DataLog!K1995,\"\")","v":""},{"$f":"IF(DataLog!$C1995=\"Log value\",DataLog!L1995,\"\")","v":""},{"$f":"IF(DataLog!$C1995=\"Log value\",DataLog!M1995,\"\")","v":""},{"$f":"IF(DataLog!$C1995=\"Log value\",DataLog!N1995,\"\")","v":""},{"$f":"IF(DataLog!$C1995=\"Log value\",DataLog!O1995,\"\")","v":""},{"$f":"IF(DataLog!$C1995=\"Log value\",DataLog!P1995,\"\")","v":""},{"$f":"IF(DataLog!$C1995=\"Log value\",DataLog!Q1995,\"\")","v":""},{"$f":"IF(DataLog!$C1995=\"Log value\",DataLog!R1995,\"\")","v":""},{"$f":"IF(DataLog!$C1995=\"Log value\",DataLog!S1995,\"\")","v":""},{"$f":"IF(DataLog!$C1995=\"Log value\",DataLog!T1995,\"\")","v":""},{"$f":"IF(DataLog!$C1995=\"Log value\",DataLog!U1995,\"\")","v":""},{"$f":"IF(DataLog!$C1995=\"Log value\",DataLog!V1995,\"\")","v":""},{"$f":"IF(DataLog!$C1995=\"Log value\",DataLog!W1995,\"\")","v":""},{"$f":"IF(DataLog!$C1995=\"Log value\",DataLog!X1995,\"\")","v":""},{"$f":"IF(DataLog!$C1995=\"Log value\",DataLog!Y1995,\"\")","v":""},{"$f":"IF(DataLog!$C1995=\"Log value\",DataLog!Z1995,\"\")","v":""},{"$f":"IF(DataLog!$C1995=\"Log value\",DataLog!AA1995,\"\")","v":""},{"$f":"IF(DataLog!$C1995=\"Log value\",DataLog!AB1995,\"\")","v":""},{"$f":"IF(DataLog!$C1995=\"Log value\",DataLog!AC1995,\"\")","v":""},{"$f":"IF(DataLog!$C1995=\"Log value\",DataLog!AD1995,\"\")","v":""},{"$f":"IF(DataLog!$C1995=\"Log value\",DataLog!AE1995,\"\")","v":""},{"$f":"IF(DataLog!$C1995=\"Log value\",DataLog!AF1995,\"\")","v":""},{"$f":"IF(DataLog!$C1995=\"Log value\",DataLog!AG1995,\"\")","v":""},{"$f":"IF(DataLog!$C1995=\"Log value\",DataLog!AH1995,\"\")","v":""},{"$f":"IF(DataLog!$C1995=\"Log value\",DataLog!AI1995,\"\")","v":""},{"$f":"IF(DataLog!$C1995=\"Log value\",DataLog!AJ1995,\"\")","v":""},{"$f":"IF(DataLog!$C1995=\"Log value\",DataLog!AK1995,\"\")","v":""},{"$f":"IF(DataLog!$C1995=\"Log value\",DataLog!AL1995,\"\")","v":""},{"$f":"IF(DataLog!$C1995=\"Log value\",DataLog!AM1995,\"\")","v":""}]
[null,null,null,null,null,null,{"$f":"IF(DataLog!$C1996=\"Log value\",DataLog!D1996&\"_\"&TEXT(DataLog!B1996,\"åååå-mm-dd\"),\"\")","v":""},{"$f":"IF(DataLog!$C1996=\"Log value\",DataLog!E1996,\"\")","v":""},{"$f":"IF(DataLog!$C1996=\"Log value\",DataLog!F1996,\"\")","v":""},{"$f":"IF(DataLog!$C1996=\"Log value\",DataLog!G1996,\"\")","v":""},{"$f":"IF(DataLog!$C1996=\"Log value\",DataLog!H1996,\"\")","v":""},{"$f":"IF(DataLog!$C1996=\"Log value\",DataLog!I1996,\"\")","v":""},{"$f":"IF(DataLog!$C1996=\"Log value\",DataLog!J1996,\"\")","v":""},{"$f":"IF(DataLog!$C1996=\"Log value\",DataLog!K1996,\"\")","v":""},{"$f":"IF(DataLog!$C1996=\"Log value\",DataLog!L1996,\"\")","v":""},{"$f":"IF(DataLog!$C1996=\"Log value\",DataLog!M1996,\"\")","v":""},{"$f":"IF(DataLog!$C1996=\"Log value\",DataLog!N1996,\"\")","v":""},{"$f":"IF(DataLog!$C1996=\"Log value\",DataLog!O1996,\"\")","v":""},{"$f":"IF(DataLog!$C1996=\"Log value\",DataLog!P1996,\"\")","v":""},{"$f":"IF(DataLog!$C1996=\"Log value\",DataLog!Q1996,\"\")","v":""},{"$f":"IF(DataLog!$C1996=\"Log value\",DataLog!R1996,\"\")","v":""},{"$f":"IF(DataLog!$C1996=\"Log value\",DataLog!S1996,\"\")","v":""},{"$f":"IF(DataLog!$C1996=\"Log value\",DataLog!T1996,\"\")","v":""},{"$f":"IF(DataLog!$C1996=\"Log value\",DataLog!U1996,\"\")","v":""},{"$f":"IF(DataLog!$C1996=\"Log value\",DataLog!V1996,\"\")","v":""},{"$f":"IF(DataLog!$C1996=\"Log value\",DataLog!W1996,\"\")","v":""},{"$f":"IF(DataLog!$C1996=\"Log value\",DataLog!X1996,\"\")","v":""},{"$f":"IF(DataLog!$C1996=\"Log value\",DataLog!Y1996,\"\")","v":""},{"$f":"IF(DataLog!$C1996=\"Log value\",DataLog!Z1996,\"\")","v":""},{"$f":"IF(DataLog!$C1996=\"Log value\",DataLog!AA1996,\"\")","v":""},{"$f":"IF(DataLog!$C1996=\"Log value\",DataLog!AB1996,\"\")","v":""},{"$f":"IF(DataLog!$C1996=\"Log value\",DataLog!AC1996,\"\")","v":""},{"$f":"IF(DataLog!$C1996=\"Log value\",DataLog!AD1996,\"\")","v":""},{"$f":"IF(DataLog!$C1996=\"Log value\",DataLog!AE1996,\"\")","v":""},{"$f":"IF(DataLog!$C1996=\"Log value\",DataLog!AF1996,\"\")","v":""},{"$f":"IF(DataLog!$C1996=\"Log value\",DataLog!AG1996,\"\")","v":""},{"$f":"IF(DataLog!$C1996=\"Log value\",DataLog!AH1996,\"\")","v":""},{"$f":"IF(DataLog!$C1996=\"Log value\",DataLog!AI1996,\"\")","v":""},{"$f":"IF(DataLog!$C1996=\"Log value\",DataLog!AJ1996,\"\")","v":""},{"$f":"IF(DataLog!$C1996=\"Log value\",DataLog!AK1996,\"\")","v":""},{"$f":"IF(DataLog!$C1996=\"Log value\",DataLog!AL1996,\"\")","v":""},{"$f":"IF(DataLog!$C1996=\"Log value\",DataLog!AM1996,\"\")","v":""}]
[null,null,null,null,null,null,{"$f":"IF(DataLog!$C1999=\"Log value\",DataLog!D1999&\"_\"&TEXT(DataLog!B1999,\"åååå-mm-dd\"),\"\")","v":""},{"$f":"IF(DataLog!$C1999=\"Log value\",DataLog!E1999,\"\")","v":""},{"$f":"IF(DataLog!$C1999=\"Log value\",DataLog!F1999,\"\")","v":""},{"$f":"IF(DataLog!$C1999=\"Log value\",DataLog!G1999,\"\")","v":""},{"$f":"IF(DataLog!$C1999=\"Log value\",DataLog!H1999,\"\")","v":""},{"$f":"IF(DataLog!$C1999=\"Log value\",DataLog!I1999,\"\")","v":""},{"$f":"IF(DataLog!$C1999=\"Log value\",DataLog!J1999,\"\")","v":""},{"$f":"IF(DataLog!$C1999=\"Log value\",DataLog!K1999,\"\")","v":""},{"$f":"IF(DataLog!$C1999=\"Log value\",DataLog!L1999,\"\")","v":""},{"$f":"IF(DataLog!$C1999=\"Log value\",DataLog!M1999,\"\")","v":""},{"$f":"IF(DataLog!$C1999=\"Log value\",DataLog!N1999,\"\")","v":""},{"$f":"IF(DataLog!$C1999=\"Log value\",DataLog!O1999,\"\")","v":""},{"$f":"IF(DataLog!$C1999=\"Log value\",DataLog!P1999,\"\")","v":""},{"$f":"IF(DataLog!$C1999=\"Log value\",DataLog!Q1999,\"\")","v":""},{"$f":"IF(DataLog!$C1999=\"Log value\",DataLog!R1999,\"\")","v":""},{"$f":"IF(DataLog!$C1999=\"Log value\",DataLog!S1999,\"\")","v":""},{"$f":"IF(DataLog!$C1999=\"Log value\",DataLog!T1999,\"\")","v":""},{"$f":"IF(DataLog!$C1999=\"Log value\",DataLog!U1999,\"\")","v":""},{"$f":"IF(DataLog!$C1999=\"Log value\",DataLog!V1999,\"\")","v":""},{"$f":"IF(DataLog!$C1999=\"Log value\",DataLog!W1999,\"\")","v":""},{"$f":"IF(DataLog!$C1999=\"Log value\",DataLog!X1999,\"\")","v":""},{"$f":"IF(DataLog!$C1999=\"Log value\",DataLog!Y1999,\"\")","v":""},{"$f":"IF(DataLog!$C1999=\"Log value\",DataLog!Z1999,\"\")","v":""},{"$f":"IF(DataLog!$C1999=\"Log value\",DataLog!AA1999,\"\")","v":""},{"$f":"IF(DataLog!$C1999=\"Log value\",DataLog!AB1999,\"\")","v":""},{"$f":"IF(DataLog!$C1999=\"Log value\",DataLog!AC1999,\"\")","v":""},{"$f":"IF(DataLog!$C1999=\"Log value\",DataLog!AD1999,\"\")","v":""},{"$f":"IF(DataLog!$C1999=\"Log value\",DataLog!AE1999,\"\")","v":""},{"$f":"IF(DataLog!$C1999=\"Log value\",DataLog!AF1999,\"\")","v":""},{"$f":"IF(DataLog!$C1999=\"Log value\",DataLog!AG1999,\"\")","v":""},{"$f":"IF(DataLog!$C1999=\"Log value\",DataLog!AH1999,\"\")","v":""},{"$f":"IF(DataLog!$C1999=\"Log value\",DataLog!AI1999,\"\")","v":""},{"$f":"IF(DataLog!$C1999=\"Log value\",DataLog!AJ1999,\"\")","v":""},{"$f":"IF(DataLog!$C1999=\"Log value\",DataLog!AK1999,\"\")","v":""},{"$f":"IF(DataLog!$C1999=\"Log value\",DataLog!AL1999,\"\")","v":""},{"$f":"IF(DataLog!$C1999=\"Log value\",DataLog!AM1999,\"\")","v":""}]
[null,null,null,null,null,null,{"$f":"IF(DataLog!$C2001=\"Log value\",DataLog!D2001&\"_\"&TEXT(DataLog!B2001,\"åååå-mm-dd\"),\"\")","v":""},{"$f":"IF(DataLog!$C2001=\"Log value\",DataLog!E2001,\"\")","v":""},{"$f":"IF(DataLog!$C2001=\"Log value\",DataLog!F2001,\"\")","v":""},{"$f":"IF(DataLog!$C2001=\"Log value\",DataLog!G2001,\"\")","v":""},{"$f":"IF(DataLog!$C2001=\"Log value\",DataLog!H2001,\"\")","v":""},{"$f":"IF(DataLog!$C2001=\"Log value\",DataLog!I2001,\"\")","v":""},{"$f":"IF(DataLog!$C2001=\"Log value\",DataLog!J2001,\"\")","v":""},{"$f":"IF(DataLog!$C2001=\"Log value\",DataLog!K2001,\"\")","v":""},{"$f":"IF(DataLog!$C2001=\"Log value\",DataLog!L2001,\"\")","v":""},{"$f":"IF(DataLog!$C2001=\"Log value\",DataLog!M2001,\"\")","v":""},{"$f":"IF(DataLog!$C2001=\"Log value\",DataLog!N2001,\"\")","v":""},{"$f":"IF(DataLog!$C2001=\"Log value\",DataLog!O2001,\"\")","v":""},{"$f":"IF(DataLog!$C2001=\"Log value\",DataLog!P2001,\"\")","v":""},{"$f":"IF(DataLog!$C2001=\"Log value\",DataLog!Q2001,\"\")","v":""},{"$f":"IF(DataLog!$C2001=\"Log value\",DataLog!R2001,\"\")","v":""},{"$f":"IF(DataLog!$C2001=\"Log value\",DataLog!S2001,\"\")","v":""},{"$f":"IF(DataLog!$C2001=\"Log value\",DataLog!T2001,\"\")","v":""},{"$f":"IF(DataLog!$C2001=\"Log value\",DataLog!U2001,\"\")","v":""},{"$f":"IF(DataLog!$C2001=\"Log value\",DataLog!V2001,\"\")","v":""},{"$f":"IF(DataLog!$C2001=\"Log value\",DataLog!W2001,\"\")","v":""},{"$f":"IF(DataLog!$C2001=\"Log value\",DataLog!X2001,\"\")","v":""},{"$f":"IF(DataLog!$C2001=\"Log value\",DataLog!Y2001,\"\")","v":""},{"$f":"IF(DataLog!$C2001=\"Log value\",DataLog!Z2001,\"\")","v":""},{"$f":"IF(DataLog!$C2001=\"Log value\",DataLog!AA2001,\"\")","v":""},{"$f":"IF(DataLog!$C2001=\"Log value\",DataLog!AB2001,\"\")","v":""},{"$f":"IF(DataLog!$C2001=\"Log value\",DataLog!AC2001,\"\")","v":""},{"$f":"IF(DataLog!$C2001=\"Log value\",DataLog!AD2001,\"\")","v":""},{"$f":"IF(DataLog!$C2001=\"Log value\",DataLog!AE2001,\"\")","v":""},{"$f":"IF(DataLog!$C2001=\"Log value\",DataLog!AF2001,\"\")","v":""},{"$f":"IF(DataLog!$C2001=\"Log value\",DataLog!AG2001,\"\")","v":""},{"$f":"IF(DataLog!$C2001=\"Log value\",DataLog!AH2001,\"\")","v":""},{"$f":"IF(DataLog!$C2001=\"Log value\",DataLog!AI2001,\"\")","v":""},{"$f":"IF(DataLog!$C2001=\"Log value\",DataLog!AJ2001,\"\")","v":""},{"$f":"IF(DataLog!$C2001=\"Log value\",DataLog!AK2001,\"\")","v":""},{"$f":"IF(DataLog!$C2001=\"Log value\",DataLog!AL2001,\"\")","v":""},{"$f":"IF(DataLog!$C2001=\"Log value\",DataLog!AM2001,\"\")","v":""}]
[null,null,null,null,null,null,{"$f":"IF(DataLog!$C2004=\"Log value\",DataLog!D2004&\"_\"&TEXT(DataLog!B2004,\"åååå-mm-dd\"),\"\")","v":""},{"$f":"IF(DataLog!$C2004=\"Log value\",DataLog!E2004,\"\")","v":""},{"$f":"IF(DataLog!$C2004=\"Log value\",DataLog!F2004,\"\")","v":""},{"$f":"IF(DataLog!$C2004=\"Log value\",DataLog!G2004,\"\")","v":""},{"$f":"IF(DataLog!$C2004=\"Log value\",DataLog!H2004,\"\")","v":""},{"$f":"IF(DataLog!$C2004=\"Log value\",DataLog!I2004,\"\")","v":""},{"$f":"IF(DataLog!$C2004=\"Log value\",DataLog!J2004,\"\")","v":""},{"$f":"IF(DataLog!$C2004=\"Log value\",DataLog!K2004,\"\")","v":""},{"$f":"IF(DataLog!$C2004=\"Log value\",DataLog!L2004,\"\")","v":""},{"$f":"IF(DataLog!$C2004=\"Log value\",DataLog!M2004,\"\")","v":""},{"$f":"IF(DataLog!$C2004=\"Log value\",DataLog!N2004,\"\")","v":""},{"$f":"IF(DataLog!$C2004=\"Log value\",DataLog!O2004,\"\")","v":""},{"$f":"IF(DataLog!$C2004=\"Log value\",DataLog!P2004,\"\")","v":""},{"$f":"IF(DataLog!$C2004=\"Log value\",DataLog!Q2004,\"\")","v":""},{"$f":"IF(DataLog!$C2004=\"Log value\",DataLog!R2004,\"\")","v":""},{"$f":"IF(DataLog!$C2004=\"Log value\",DataLog!S2004,\"\")","v":""},{"$f":"IF(DataLog!$C2004=\"Log value\",DataLog!T2004,\"\")","v":""},{"$f":"IF(DataLog!$C2004=\"Log value\",DataLog!U2004,\"\")","v":""},{"$f":"IF(DataLog!$C2004=\"Log value\",DataLog!V2004,\"\")","v":""},{"$f":"IF(DataLog!$C2004=\"Log value\",DataLog!W2004,\"\")","v":""},{"$f":"IF(DataLog!$C2004=\"Log value\",DataLog!X2004,\"\")","v":""},{"$f":"IF(DataLog!$C2004=\"Log value\",DataLog!Y2004,\"\")","v":""},{"$f":"IF(DataLog!$C2004=\"Log value\",DataLog!Z2004,\"\")","v":""},{"$f":"IF(DataLog!$C2004=\"Log value\",DataLog!AA2004,\"\")","v":""},{"$f":"IF(DataLog!$C2004=\"Log value\",DataLog!AB2004,\"\")","v":""},{"$f":"IF(DataLog!$C2004=\"Log value\",DataLog!AC2004,\"\")","v":""},{"$f":"IF(DataLog!$C2004=\"Log value\",DataLog!AD2004,\"\")","v":""},{"$f":"IF(DataLog!$C2004=\"Log value\",DataLog!AE2004,\"\")","v":""},{"$f":"IF(DataLog!$C2004=\"Log value\",DataLog!AF2004,\"\")","v":""},{"$f":"IF(DataLog!$C2004=\"Log value\",DataLog!AG2004,\"\")","v":""},{"$f":"IF(DataLog!$C2004=\"Log value\",DataLog!AH2004,\"\")","v":""},{"$f":"IF(DataLog!$C2004=\"Log value\",DataLog!AI2004,\"\")","v":""},{"$f":"IF(DataLog!$C2004=\"Log value\",DataLog!AJ2004,\"\")","v":""},{"$f":"IF(DataLog!$C2004=\"Log value\",DataLog!AK2004,\"\")","v":""},{"$f":"IF(DataLog!$C2004=\"Log value\",DataLog!AL2004,\"\")","v":""},{"$f":"IF(DataLog!$C2004=\"Log value\",DataLog!AM2004,\"\")","v":""}]
[null,null,null,null,null,null,{"$f":"IF(DataLog!$C2005=\"Log value\",DataLog!D2005&\"_\"&TEXT(DataLog!B2005,\"åååå-mm-dd\"),\"\")","v":""},{"$f":"IF(DataLog!$C2005=\"Log value\",DataLog!E2005,\"\")","v":""},{"$f":"IF(DataLog!$C2005=\"Log value\",DataLog!F2005,\"\")","v":""},{"$f":"IF(DataLog!$C2005=\"Log value\",DataLog!G2005,\"\")","v":""},{"$f":"IF(DataLog!$C2005=\"Log value\",DataLog!H2005,\"\")","v":""},{"$f":"IF(DataLog!$C2005=\"Log value\",DataLog!I2005,\"\")","v":""},{"$f":"IF(DataLog!$C2005=\"Log value\",DataLog!J2005,\"\")","v":""},{"$f":"IF(DataLog!$C2005=\"Log value\",DataLog!K2005,\"\")","v":""},{"$f":"IF(DataLog!$C2005=\"Log value\",DataLog!L2005,\"\")","v":""},{"$f":"IF(DataLog!$C2005=\"Log value\",DataLog!M2005,\"\")","v":""},{"$f":"IF(DataLog!$C2005=\"Log value\",DataLog!N2005,\"\")","v":""},{"$f":"IF(DataLog!$C2005=\"Log value\",DataLog!O2005,\"\")","v":""},{"$f":"IF(DataLog!$C2005=\"Log value\",DataLog!P2005,\"\")","v":""},{"$f":"IF(DataLog!$C2005=\"Log value\",DataLog!Q2005,\"\")","v":""},{"$f":"IF(DataLog!$C2005=\"Log value\",DataLog!R2005,\"\")","v":""},{"$f":"IF(DataLog!$C2005=\"Log value\",DataLog!S2005,\"\")","v":""},{"$f":"IF(DataLog!$C2005=\"Log value\",DataLog!T2005,\"\")","v":""},{"$f":"IF(DataLog!$C2005=\"Log value\",DataLog!U2005,\"\")","v":""},{"$f":"IF(DataLog!$C2005=\"Log value\",DataLog!V2005,\"\")","v":""},{"$f":"IF(DataLog!$C2005=\"Log value\",DataLog!W2005,\"\")","v":""},{"$f":"IF(DataLog!$C2005=\"Log value\",DataLog!X2005,\"\")","v":""},{"$f":"IF(DataLog!$C2005=\"Log value\",DataLog!Y2005,\"\")","v":""},{"$f":"IF(DataLog!$C2005=\"Log value\",DataLog!Z2005,\"\")","v":""},{"$f":"IF(DataLog!$C2005=\"Log value\",DataLog!AA2005,\"\")","v":""},{"$f":"IF(DataLog!$C2005=\"Log value\",DataLog!AB2005,\"\")","v":""},{"$f":"IF(DataLog!$C2005=\"Log value\",DataLog!AC2005,\"\")","v":""},{"$f":"IF(DataLog!$C2005=\"Log value\",DataLog!AD2005,\"\")","v":""},{"$f":"IF(DataLog!$C2005=\"Log value\",DataLog!AE2005,\"\")","v":""},{"$f":"IF(DataLog!$C2005=\"Log value\",DataLog!AF2005,\"\")","v":""},{"$f":"IF(DataLog!$C2005=\"Log value\",DataLog!AG2005,\"\")","v":""},{"$f":"IF(DataLog!$C2005=\"Log value\",DataLog!AH2005,\"\")","v":""},{"$f":"IF(DataLog!$C2005=\"Log value\",DataLog!AI2005,\"\")","v":""},{"$f":"IF(DataLog!$C2005=\"Log value\",DataLog!AJ2005,\"\")","v":""},{"$f":"IF(DataLog!$C2005=\"Log value\",DataLog!AK2005,\"\")","v":""},{"$f":"IF(DataLog!$C2005=\"Log value\",DataLog!AL2005,\"\")","v":""},{"$f":"IF(DataLog!$C2005=\"Log value\",DataLog!AM2005,\"\")","v":""}]
[null,null,null,null,null,null,{"$f":"IF(DataLog!$C2009=\"Log value\",DataLog!D2009&\"_\"&TEXT(DataLog!B2009,\"åååå-mm-dd\"),\"\")","v":""},{"$f":"IF(DataLog!$C2009=\"Log value\",DataLog!E2009,\"\")","v":""},{"$f":"IF(DataLog!$C2009=\"Log value\",DataLog!F2009,\"\")","v":""},{"$f":"IF(DataLog!$C2009=\"Log value\",DataLog!G2009,\"\")","v":""},{"$f":"IF(DataLog!$C2009=\"Log value\",DataLog!H2009,\"\")","v":""},{"$f":"IF(DataLog!$C2009=\"Log value\",DataLog!I2009,\"\")","v":""},{"$f":"IF(DataLog!$C2009=\"Log value\",DataLog!J2009,\"\")","v":""},{"$f":"IF(DataLog!$C2009=\"Log value\",DataLog!K2009,\"\")","v":""},{"$f":"IF(DataLog!$C2009=\"Log value\",DataLog!L2009,\"\")","v":""},{"$f":"IF(DataLog!$C2009=\"Log value\",DataLog!M2009,\"\")","v":""},{"$f":"IF(DataLog!$C2009=\"Log value\",DataLog!N2009,\"\")","v":""},{"$f":"IF(DataLog!$C2009=\"Log value\",DataLog!O2009,\"\")","v":""},{"$f":"IF(DataLog!$C2009=\"Log value\",DataLog!P2009,\"\")","v":""},{"$f":"IF(DataLog!$C2009=\"Log value\",DataLog!Q2009,\"\")","v":""},{"$f":"IF(DataLog!$C2009=\"Log value\",DataLog!R2009,\"\")","v":""},{"$f":"IF(DataLog!$C2009=\"Log value\",DataLog!S2009,\"\")","v":""},{"$f":"IF(DataLog!$C2009=\"Log value\",DataLog!T2009,\"\")","v":""},{"$f":"IF(DataLog!$C2009=\"Log value\",DataLog!U2009,\"\")","v":""},{"$f":"IF(DataLog!$C2009=\"Log value\",DataLog!V2009,\"\")","v":""},{"$f":"IF(DataLog!$C2009=\"Log value\",DataLog!W2009,\"\")","v":""},{"$f":"IF(DataLog!$C2009=\"Log value\",DataLog!X2009,\"\")","v":""},{"$f":"IF(DataLog!$C2009=\"Log value\",DataLog!Y2009,\"\")","v":""},{"$f":"IF(DataLog!$C2009=\"Log value\",DataLog!Z2009,\"\")","v":""},{"$f":"IF(DataLog!$C2009=\"Log value\",DataLog!AA2009,\"\")","v":""},{"$f":"IF(DataLog!$C2009=\"Log value\",DataLog!AB2009,\"\")","v":""},{"$f":"IF(DataLog!$C2009=\"Log value\",DataLog!AC2009,\"\")","v":""},{"$f":"IF(DataLog!$C2009=\"Log value\",DataLog!AD2009,\"\")","v":""},{"$f":"IF(DataLog!$C2009=\"Log value\",DataLog!AE2009,\"\")","v":""},{"$f":"IF(DataLog!$C2009=\"Log value\",DataLog!AF2009,\"\")","v":""},{"$f":"IF(DataLog!$C2009=\"Log value\",DataLog!AG2009,\"\")","v":""},{"$f":"IF(DataLog!$C2009=\"Log value\",DataLog!AH2009,\"\")","v":""},{"$f":"IF(DataLog!$C2009=\"Log value\",DataLog!AI2009,\"\")","v":""},{"$f":"IF(DataLog!$C2009=\"Log value\",DataLog!AJ2009,\"\")","v":""},{"$f":"IF(DataLog!$C2009=\"Log value\",DataLog!AK2009,\"\")","v":""},{"$f":"IF(DataLog!$C2009=\"Log value\",DataLog!AL2009,\"\")","v":""},{"$f":"IF(DataLog!$C2009=\"Log value\",DataLog!AM2009,\"\")","v":""}]
[null,null,null,null,null,null,{"$f":"IF(DataLog!$C2010=\"Log value\",DataLog!D2010&\"_\"&TEXT(DataLog!B2010,\"åååå-mm-dd\"),\"\")","v":""},{"$f":"IF(DataLog!$C2010=\"Log value\",DataLog!E2010,\"\")","v":""},{"$f":"IF(DataLog!$C2010=\"Log value\",DataLog!F2010,\"\")","v":""},{"$f":"IF(DataLog!$C2010=\"Log value\",DataLog!G2010,\"\")","v":""},{"$f":"IF(DataLog!$C2010=\"Log value\",DataLog!H2010,\"\")","v":""},{"$f":"IF(DataLog!$C2010=\"Log value\",DataLog!I2010,\"\")","v":""},{"$f":"IF(DataLog!$C2010=\"Log value\",DataLog!J2010,\"\")","v":""},{"$f":"IF(DataLog!$C2010=\"Log value\",DataLog!K2010,\"\")","v":""},{"$f":"IF(DataLog!$C2010=\"Log value\",DataLog!L2010,\"\")","v":""},{"$f":"IF(DataLog!$C2010=\"Log value\",DataLog!M2010,\"\")","v":""},{"$f":"IF(DataLog!$C2010=\"Log value\",DataLog!N2010,\"\")","v":""},{"$f":"IF(DataLog!$C2010=\"Log value\",DataLog!O2010,\"\")","v":""},{"$f":"IF(DataLog!$C2010=\"Log value\",DataLog!P2010,\"\")","v":""},{"$f":"IF(DataLog!$C2010=\"Log value\",DataLog!Q2010,\"\")","v":""},{"$f":"IF(DataLog!$C2010=\"Log value\",DataLog!R2010,\"\")","v":""},{"$f":"IF(DataLog!$C2010=\"Log value\",DataLog!S2010,\"\")","v":""},{"$f":"IF(DataLog!$C2010=\"Log value\",DataLog!T2010,\"\")","v":""},{"$f":"IF(DataLog!$C2010=\"Log value\",DataLog!U2010,\"\")","v":""},{"$f":"IF(DataLog!$C2010=\"Log value\",DataLog!V2010,\"\")","v":""},{"$f":"IF(DataLog!$C2010=\"Log value\",DataLog!W2010,\"\")","v":""},{"$f":"IF(DataLog!$C2010=\"Log value\",DataLog!X2010,\"\")","v":""},{"$f":"IF(DataLog!$C2010=\"Log value\",DataLog!Y2010,\"\")","v":""},{"$f":"IF(DataLog!$C2010=\"Log value\",DataLog!Z2010,\"\")","v":""},{"$f":"IF(DataLog!$C2010=\"Log value\",DataLog!AA2010,\"\")","v":""},{"$f":"IF(DataLog!$C2010=\"Log value\",DataLog!AB2010,\"\")","v":""},{"$f":"IF(DataLog!$C2010=\"Log value\",DataLog!AC2010,\"\")","v":""},{"$f":"IF(DataLog!$C2010=\"Log value\",DataLog!AD2010,\"\")","v":""},{"$f":"IF(DataLog!$C2010=\"Log value\",DataLog!AE2010,\"\")","v":""},{"$f":"IF(DataLog!$C2010=\"Log value\",DataLog!AF2010,\"\")","v":""},{"$f":"IF(DataLog!$C2010=\"Log value\",DataLog!AG2010,\"\")","v":""},{"$f":"IF(DataLog!$C2010=\"Log value\",DataLog!AH2010,\"\")","v":""},{"$f":"IF(DataLog!$C2010=\"Log value\",DataLog!AI2010,\"\")","v":""},{"$f":"IF(DataLog!$C2010=\"Log value\",DataLog!AJ2010,\"\")","v":""},{"$f":"IF(DataLog!$C2010=\"Log value\",DataLog!AK2010,\"\")","v":""},{"$f":"IF(DataLog!$C2010=\"Log value\",DataLog!AL2010,\"\")","v":""},{"$f":"IF(DataLog!$C2010=\"Log value\",DataLog!AM2010,\"\")","v":""}]
[null,null,null,null,null,null,{"$f":"IF(DataLog!$C2013=\"Log value\",DataLog!D2013&\"_\"&TEXT(DataLog!B2013,\"åååå-mm-dd\"),\"\")","v":""},{"$f":"IF(DataLog!$C2013=\"Log value\",DataLog!E2013,\"\")","v":""},{"$f":"IF(DataLog!$C2013=\"Log value\",DataLog!F2013,\"\")","v":""},{"$f":"IF(DataLog!$C2013=\"Log value\",DataLog!G2013,\"\")","v":""},{"$f":"IF(DataLog!$C2013=\"Log value\",DataLog!H2013,\"\")","v":""},{"$f":"IF(DataLog!$C2013=\"Log value\",DataLog!I2013,\"\")","v":""},{"$f":"IF(DataLog!$C2013=\"Log value\",DataLog!J2013,\"\")","v":""},{"$f":"IF(DataLog!$C2013=\"Log value\",DataLog!K2013,\"\")","v":""},{"$f":"IF(DataLog!$C2013=\"Log value\",DataLog!L2013,\"\")","v":""},{"$f":"IF(DataLog!$C2013=\"Log value\",DataLog!M2013,\"\")","v":""},{"$f":"IF(DataLog!$C2013=\"Log value\",DataLog!N2013,\"\")","v":""},{"$f":"IF(DataLog!$C2013=\"Log value\",DataLog!O2013,\"\")","v":""},{"$f":"IF(DataLog!$C2013=\"Log value\",DataLog!P2013,\"\")","v":""},{"$f":"IF(DataLog!$C2013=\"Log value\",DataLog!Q2013,\"\")","v":""},{"$f":"IF(DataLog!$C2013=\"Log value\",DataLog!R2013,\"\")","v":""},{"$f":"IF(DataLog!$C2013=\"Log value\",DataLog!S2013,\"\")","v":""},{"$f":"IF(DataLog!$C2013=\"Log value\",DataLog!T2013,\"\")","v":""},{"$f":"IF(DataLog!$C2013=\"Log value\",DataLog!U2013,\"\")","v":""},{"$f":"IF(DataLog!$C2013=\"Log value\",DataLog!V2013,\"\")","v":""},{"$f":"IF(DataLog!$C2013=\"Log value\",DataLog!W2013,\"\")","v":""},{"$f":"IF(DataLog!$C2013=\"Log value\",DataLog!X2013,\"\")","v":""},{"$f":"IF(DataLog!$C2013=\"Log value\",DataLog!Y2013,\"\")","v":""},{"$f":"IF(DataLog!$C2013=\"Log value\",DataLog!Z2013,\"\")","v":""},{"$f":"IF(DataLog!$C2013=\"Log value\",DataLog!AA2013,\"\")","v":""},{"$f":"IF(DataLog!$C2013=\"Log value\",DataLog!AB2013,\"\")","v":""},{"$f":"IF(DataLog!$C2013=\"Log value\",DataLog!AC2013,\"\")","v":""},{"$f":"IF(DataLog!$C2013=\"Log value\",DataLog!AD2013,\"\")","v":""},{"$f":"IF(DataLog!$C2013=\"Log value\",DataLog!AE2013,\"\")","v":""},{"$f":"IF(DataLog!$C2013=\"Log value\",DataLog!AF2013,\"\")","v":""},{"$f":"IF(DataLog!$C2013=\"Log value\",DataLog!AG2013,\"\")","v":""},{"$f":"IF(DataLog!$C2013=\"Log value\",DataLog!AH2013,\"\")","v":""},{"$f":"IF(DataLog!$C2013=\"Log value\",DataLog!AI2013,\"\")","v":""},{"$f":"IF(DataLog!$C2013=\"Log value\",DataLog!AJ2013,\"\")","v":""},{"$f":"IF(DataLog!$C2013=\"Log value\",DataLog!AK2013,\"\")","v":""},{"$f":"IF(DataLog!$C2013=\"Log value\",DataLog!AL2013,\"\")","v":""},{"$f":"IF(DataLog!$C2013=\"Log value\",DataLog!AM2013,\"\")","v":""}]
[null,null,null,null,null,null,{"$f":"IF(DataLog!$C2014=\"Log value\",DataLog!D2014&\"_\"&TEXT(DataLog!B2014,\"åååå-mm-dd\"),\"\")","v":""},{"$f":"IF(DataLog!$C2014=\"Log value\",DataLog!E2014,\"\")","v":""},{"$f":"IF(DataLog!$C2014=\"Log value\",DataLog!F2014,\"\")","v":""},{"$f":"IF(DataLog!$C2014=\"Log value\",DataLog!G2014,\"\")","v":""},{"$f":"IF(DataLog!$C2014=\"Log value\",DataLog!H2014,\"\")","v":""},{"$f":"IF(DataLog!$C2014=\"Log value\",DataLog!I2014,\"\")","v":""},{"$f":"IF(DataLog!$C2014=\"Log value\",DataLog!J2014,\"\")","v":""},{"$f":"IF(DataLog!$C2014=\"Log value\",DataLog!K2014,\"\")","v":""},{"$f":"IF(DataLog!$C2014=\"Log value\",DataLog!L2014,\"\")","v":""},{"$f":"IF(DataLog!$C2014=\"Log value\",DataLog!M2014,\"\")","v":""},{"$f":"IF(DataLog!$C2014=\"Log value\",DataLog!N2014,\"\")","v":""},{"$f":"IF(DataLog!$C2014=\"Log value\",DataLog!O2014,\"\")","v":""},{"$f":"IF(DataLog!$C2014=\"Log value\",DataLog!P2014,\"\")","v":""},{"$f":"IF(DataLog!$C2014=\"Log value\",DataLog!Q2014,\"\")","v":""},{"$f":"IF(DataLog!$C2014=\"Log value\",DataLog!R2014,\"\")","v":""},{"$f":"IF(DataLog!$C2014=\"Log value\",DataLog!S2014,\"\")","v":""},{"$f":"IF(DataLog!$C2014=\"Log value\",DataLog!T2014,\"\")","v":""},{"$f":"IF(DataLog!$C2014=\"Log value\",DataLog!U2014,\"\")","v":""},{"$f":"IF(DataLog!$C2014=\"Log value\",DataLog!V2014,\"\")","v":""},{"$f":"IF(DataLog!$C2014=\"Log value\",DataLog!W2014,\"\")","v":""},{"$f":"IF(DataLog!$C2014=\"Log value\",DataLog!X2014,\"\")","v":""},{"$f":"IF(DataLog!$C2014=\"Log value\",DataLog!Y2014,\"\")","v":""},{"$f":"IF(DataLog!$C2014=\"Log value\",DataLog!Z2014,\"\")","v":""},{"$f":"IF(DataLog!$C2014=\"Log value\",DataLog!AA2014,\"\")","v":""},{"$f":"IF(DataLog!$C2014=\"Log value\",DataLog!AB2014,\"\")","v":""},{"$f":"IF(DataLog!$C2014=\"Log value\",DataLog!AC2014,\"\")","v":""},{"$f":"IF(DataLog!$C2014=\"Log value\",DataLog!AD2014,\"\")","v":""},{"$f":"IF(DataLog!$C2014=\"Log value\",DataLog!AE2014,\"\")","v":""},{"$f":"IF(DataLog!$C2014=\"Log value\",DataLog!AF2014,\"\")","v":""},{"$f":"IF(DataLog!$C2014=\"Log value\",DataLog!AG2014,\"\")","v":""},{"$f":"IF(DataLog!$C2014=\"Log value\",DataLog!AH2014,\"\")","v":""},{"$f":"IF(DataLog!$C2014=\"Log value\",DataLog!AI2014,\"\")","v":""},{"$f":"IF(DataLog!$C2014=\"Log value\",DataLog!AJ2014,\"\")","v":""},{"$f":"IF(DataLog!$C2014=\"Log value\",DataLog!AK2014,\"\")","v":""},{"$f":"IF(DataLog!$C2014=\"Log value\",DataLog!AL2014,\"\")","v":""},{"$f":"IF(DataLog!$C2014=\"Log value\",DataLog!AM2014,\"\")","v":""}]
[null,null,null,null,null,null,{"$f":"IF(DataLog!$C2018=\"Log value\",DataLog!D2018&\"_\"&TEXT(DataLog!B2018,\"åååå-mm-dd\"),\"\")","v":""},{"$f":"IF(DataLog!$C2018=\"Log value\",DataLog!E2018,\"\")","v":""},{"$f":"IF(DataLog!$C2018=\"Log value\",DataLog!F2018,\"\")","v":""},{"$f":"IF(DataLog!$C2018=\"Log value\",DataLog!G2018,\"\")","v":""},{"$f":"IF(DataLog!$C2018=\"Log value\",DataLog!H2018,\"\")","v":""},{"$f":"IF(DataLog!$C2018=\"Log value\",DataLog!I2018,\"\")","v":""},{"$f":"IF(DataLog!$C2018=\"Log value\",DataLog!J2018,\"\")","v":""},{"$f":"IF(DataLog!$C2018=\"Log value\",DataLog!K2018,\"\")","v":""},{"$f":"IF(DataLog!$C2018=\"Log value\",DataLog!L2018,\"\")","v":""},{"$f":"IF(DataLog!$C2018=\"Log value\",DataLog!M2018,\"\")","v":""},{"$f":"IF(DataLog!$C2018=\"Log value\",DataLog!N2018,\"\")","v":""},{"$f":"IF(DataLog!$C2018=\"Log value\",DataLog!O2018,\"\")","v":""},{"$f":"IF(DataLog!$C2018=\"Log value\",DataLog!P2018,\"\")","v":""},{"$f":"IF(DataLog!$C2018=\"Log value\",DataLog!Q2018,\"\")","v":""},{"$f":"IF(DataLog!$C2018=\"Log value\",DataLog!R2018,\"\")","v":""},{"$f":"IF(DataLog!$C2018=\"Log value\",DataLog!S2018,\"\")","v":""},{"$f":"IF(DataLog!$C2018=\"Log value\",DataLog!T2018,\"\")","v":""},{"$f":"IF(DataLog!$C2018=\"Log value\",DataLog!U2018,\"\")","v":""},{"$f":"IF(DataLog!$C2018=\"Log value\",DataLog!V2018,\"\")","v":""},{"$f":"IF(DataLog!$C2018=\"Log value\",DataLog!W2018,\"\")","v":""},{"$f":"IF(DataLog!$C2018=\"Log value\",DataLog!X2018,\"\")","v":""},{"$f":"IF(DataLog!$C2018=\"Log value\",DataLog!Y2018,\"\")","v":""},{"$f":"IF(DataLog!$C2018=\"Log value\",DataLog!Z2018,\"\")","v":""},{"$f":"IF(DataLog!$C2018=\"Log value\",DataLog!AA2018,\"\")","v":""},{"$f":"IF(DataLog!$C2018=\"Log value\",DataLog!AB2018,\"\")","v":""},{"$f":"IF(DataLog!$C2018=\"Log value\",DataLog!AC2018,\"\")","v":""},{"$f":"IF(DataLog!$C2018=\"Log value\",DataLog!AD2018,\"\")","v":""},{"$f":"IF(DataLog!$C2018=\"Log value\",DataLog!AE2018,\"\")","v":""},{"$f":"IF(DataLog!$C2018=\"Log value\",DataLog!AF2018,\"\")","v":""},{"$f":"IF(DataLog!$C2018=\"Log value\",DataLog!AG2018,\"\")","v":""},{"$f":"IF(DataLog!$C2018=\"Log value\",DataLog!AH2018,\"\")","v":""},{"$f":"IF(DataLog!$C2018=\"Log value\",DataLog!AI2018,\"\")","v":""},{"$f":"IF(DataLog!$C2018=\"Log value\",DataLog!AJ2018,\"\")","v":""},{"$f":"IF(DataLog!$C2018=\"Log value\",DataLog!AK2018,\"\")","v":""},{"$f":"IF(DataLog!$C2018=\"Log value\",DataLog!AL2018,\"\")","v":""},{"$f":"IF(DataLog!$C2018=\"Log value\",DataLog!AM2018,\"\")","v":""}]
[null,null,null,null,null,null,{"$f":"IF(DataLog!$C2019=\"Log value\",DataLog!D2019&\"_\"&TEXT(DataLog!B2019,\"åååå-mm-dd\"),\"\")","v":""},{"$f":"IF(DataLog!$C2019=\"Log value\",DataLog!E2019,\"\")","v":""},{"$f":"IF(DataLog!$C2019=\"Log value\",DataLog!F2019,\"\")","v":""},{"$f":"IF(DataLog!$C2019=\"Log value\",DataLog!G2019,\"\")","v":""},{"$f":"IF(DataLog!$C2019=\"Log value\",DataLog!H2019,\"\")","v":""},{"$f":"IF(DataLog!$C2019=\"Log value\",DataLog!I2019,\"\")","v":""},{"$f":"IF(DataLog!$C2019=\"Log value\",DataLog!J2019,\"\")","v":""},{"$f":"IF(DataLog!$C2019=\"Log value\",DataLog!K2019,\"\")","v":""},{"$f":"IF(DataLog!$C2019=\"Log value\",DataLog!L2019,\"\")","v":""},{"$f":"IF(DataLog!$C2019=\"Log value\",DataLog!M2019,\"\")","v":""},{"$f":"IF(DataLog!$C2019=\"Log value\",DataLog!N2019,\"\")","v":""},{"$f":"IF(DataLog!$C2019=\"Log value\",DataLog!O2019,\"\")","v":""},{"$f":"IF(DataLog!$C2019=\"Log value\",DataLog!P2019,\"\")","v":""},{"$f":"IF(DataLog!$C2019=\"Log value\",DataLog!Q2019,\"\")","v":""},{"$f":"IF(DataLog!$C2019=\"Log value\",DataLog!R2019,\"\")","v":""},{"$f":"IF(DataLog!$C2019=\"Log value\",DataLog!S2019,\"\")","v":""},{"$f":"IF(DataLog!$C2019=\"Log value\",DataLog!T2019,\"\")","v":""},{"$f":"IF(DataLog!$C2019=\"Log value\",DataLog!U2019,\"\")","v":""},{"$f":"IF(DataLog!$C2019=\"Log value\",DataLog!V2019,\"\")","v":""},{"$f":"IF(DataLog!$C2019=\"Log value\",DataLog!W2019,\"\")","v":""},{"$f":"IF(DataLog!$C2019=\"Log value\",DataLog!X2019,\"\")","v":""},{"$f":"IF(DataLog!$C2019=\"Log value\",DataLog!Y2019,\"\")","v":""},{"$f":"IF(DataLog!$C2019=\"Log value\",DataLog!Z2019,\"\")","v":""},{"$f":"IF(DataLog!$C2019=\"Log value\",DataLog!AA2019,\"\")","v":""},{"$f":"IF(DataLog!$C2019=\"Log value\",DataLog!AB2019,\"\")","v":""},{"$f":"IF(DataLog!$C2019=\"Log value\",DataLog!AC2019,\"\")","v":""},{"$f":"IF(DataLog!$C2019=\"Log value\",DataLog!AD2019,\"\")","v":""},{"$f":"IF(DataLog!$C2019=\"Log value\",DataLog!AE2019,\"\")","v":""},{"$f":"IF(DataLog!$C2019=\"Log value\",DataLog!AF2019,\"\")","v":""},{"$f":"IF(DataLog!$C2019=\"Log value\",DataLog!AG2019,\"\")","v":""},{"$f":"IF(DataLog!$C2019=\"Log value\",DataLog!AH2019,\"\")","v":""},{"$f":"IF(DataLog!$C2019=\"Log value\",DataLog!AI2019,\"\")","v":""},{"$f":"IF(DataLog!$C2019=\"Log value\",DataLog!AJ2019,\"\")","v":""},{"$f":"IF(DataLog!$C2019=\"Log value\",DataLog!AK2019,\"\")","v":""},{"$f":"IF(DataLog!$C2019=\"Log value\",DataLog!AL2019,\"\")","v":""},{"$f":"IF(DataLog!$C2019=\"Log value\",DataLog!AM2019,\"\")","v":""}]
[null,null,null,null,null,null,{"$f":"IF(DataLog!$C2022=\"Log value\",DataLog!D2022&\"_\"&TEXT(DataLog!B2022,\"åååå-mm-dd\"),\"\")","v":""},{"$f":"IF(DataLog!$C2022=\"Log value\",DataLog!E2022,\"\")","v":""},{"$f":"IF(DataLog!$C2022=\"Log value\",DataLog!F2022,\"\")","v":""},{"$f":"IF(DataLog!$C2022=\"Log value\",DataLog!G2022,\"\")","v":""},{"$f":"IF(DataLog!$C2022=\"Log value\",DataLog!H2022,\"\")","v":""},{"$f":"IF(DataLog!$C2022=\"Log value\",DataLog!I2022,\"\")","v":""},{"$f":"IF(DataLog!$C2022=\"Log value\",DataLog!J2022,\"\")","v":""},{"$f":"IF(DataLog!$C2022=\"Log value\",DataLog!K2022,\"\")","v":""},{"$f":"IF(DataLog!$C2022=\"Log value\",DataLog!L2022,\"\")","v":""},{"$f":"IF(DataLog!$C2022=\"Log value\",DataLog!M2022,\"\")","v":""},{"$f":"IF(DataLog!$C2022=\"Log value\",DataLog!N2022,\"\")","v":""},{"$f":"IF(DataLog!$C2022=\"Log value\",DataLog!O2022,\"\")","v":""},{"$f":"IF(DataLog!$C2022=\"Log value\",DataLog!P2022,\"\")","v":""},{"$f":"IF(DataLog!$C2022=\"Log value\",DataLog!Q2022,\"\")","v":""},{"$f":"IF(DataLog!$C2022=\"Log value\",DataLog!R2022,\"\")","v":""},{"$f":"IF(DataLog!$C2022=\"Log value\",DataLog!S2022,\"\")","v":""},{"$f":"IF(DataLog!$C2022=\"Log value\",DataLog!T2022,\"\")","v":""},{"$f":"IF(DataLog!$C2022=\"Log value\",DataLog!U2022,\"\")","v":""},{"$f":"IF(DataLog!$C2022=\"Log value\",DataLog!V2022,\"\")","v":""},{"$f":"IF(DataLog!$C2022=\"Log value\",DataLog!W2022,\"\")","v":""},{"$f":"IF(DataLog!$C2022=\"Log value\",DataLog!X2022,\"\")","v":""},{"$f":"IF(DataLog!$C2022=\"Log value\",DataLog!Y2022,\"\")","v":""},{"$f":"IF(DataLog!$C2022=\"Log value\",DataLog!Z2022,\"\")","v":""},{"$f":"IF(DataLog!$C2022=\"Log value\",DataLog!AA2022,\"\")","v":""},{"$f":"IF(DataLog!$C2022=\"Log value\",DataLog!AB2022,\"\")","v":""},{"$f":"IF(DataLog!$C2022=\"Log value\",DataLog!AC2022,\"\")","v":""},{"$f":"IF(DataLog!$C2022=\"Log value\",DataLog!AD2022,\"\")","v":""},{"$f":"IF(DataLog!$C2022=\"Log value\",DataLog!AE2022,\"\")","v":""},{"$f":"IF(DataLog!$C2022=\"Log value\",DataLog!AF2022,\"\")","v":""},{"$f":"IF(DataLog!$C2022=\"Log value\",DataLog!AG2022,\"\")","v":""},{"$f":"IF(DataLog!$C2022=\"Log value\",DataLog!AH2022,\"\")","v":""},{"$f":"IF(DataLog!$C2022=\"Log value\",DataLog!AI2022,\"\")","v":""},{"$f":"IF(DataLog!$C2022=\"Log value\",DataLog!AJ2022,\"\")","v":""},{"$f":"IF(DataLog!$C2022=\"Log value\",DataLog!AK2022,\"\")","v":""},{"$f":"IF(DataLog!$C2022=\"Log value\",DataLog!AL2022,\"\")","v":""},{"$f":"IF(DataLog!$C2022=\"Log value\",DataLog!AM2022,\"\")","v":""}]
[null,null,null,null,null,null,{"$f":"IF(DataLog!$C2025=\"Log value\",DataLog!D2025&\"_\"&TEXT(DataLog!B2025,\"åååå-mm-dd\"),\"\")","v":""},{"$f":"IF(DataLog!$C2025=\"Log value\",DataLog!E2025,\"\")","v":""},{"$f":"IF(DataLog!$C2025=\"Log value\",DataLog!F2025,\"\")","v":""},{"$f":"IF(DataLog!$C2025=\"Log value\",DataLog!G2025,\"\")","v":""},{"$f":"IF(DataLog!$C2025=\"Log value\",DataLog!H2025,\"\")","v":""},{"$f":"IF(DataLog!$C2025=\"Log value\",DataLog!I2025,\"\")","v":""},{"$f":"IF(DataLog!$C2025=\"Log value\",DataLog!J2025,\"\")","v":""},{"$f":"IF(DataLog!$C2025=\"Log value\",DataLog!K2025,\"\")","v":""},{"$f":"IF(DataLog!$C2025=\"Log value\",DataLog!L2025,\"\")","v":""},{"$f":"IF(DataLog!$C2025=\"Log value\",DataLog!M2025,\"\")","v":""},{"$f":"IF(DataLog!$C2025=\"Log value\",DataLog!N2025,\"\")","v":""},{"$f":"IF(DataLog!$C2025=\"Log value\",DataLog!O2025,\"\")","v":""},{"$f":"IF(DataLog!$C2025=\"Log value\",DataLog!P2025,\"\")","v":""},{"$f":"IF(DataLog!$C2025=\"Log value\",DataLog!Q2025,\"\")","v":""},{"$f":"IF(DataLog!$C2025=\"Log value\",DataLog!R2025,\"\")","v":""},{"$f":"IF(DataLog!$C2025=\"Log value\",DataLog!S2025,\"\")","v":""},{"$f":"IF(DataLog!$C2025=\"Log value\",DataLog!T2025,\"\")","v":""},{"$f":"IF(DataLog!$C2025=\"Log value\",DataLog!U2025,\"\")","v":""},{"$f":"IF(DataLog!$C2025=\"Log value\",DataLog!V2025,\"\")","v":""},{"$f":"IF(DataLog!$C2025=\"Log value\",DataLog!W2025,\"\")","v":""},{"$f":"IF(DataLog!$C2025=\"Log value\",DataLog!X2025,\"\")","v":""},{"$f":"IF(DataLog!$C2025=\"Log value\",DataLog!Y2025,\"\")","v":""},{"$f":"IF(DataLog!$C2025=\"Log value\",DataLog!Z2025,\"\")","v":""},{"$f":"IF(DataLog!$C2025=\"Log value\",DataLog!AA2025,\"\")","v":""},{"$f":"IF(DataLog!$C2025=\"Log value\",DataLog!AB2025,\"\")","v":""},{"$f":"IF(DataLog!$C2025=\"Log value\",DataLog!AC2025,\"\")","v":""},{"$f":"IF(DataLog!$C2025=\"Log value\",DataLog!AD2025,\"\")","v":""},{"$f":"IF(DataLog!$C2025=\"Log value\",DataLog!AE2025,\"\")","v":""},{"$f":"IF(DataLog!$C2025=\"Log value\",DataLog!AF2025,\"\")","v":""},{"$f":"IF(DataLog!$C2025=\"Log value\",DataLog!AG2025,\"\")","v":""},{"$f":"IF(DataLog!$C2025=\"Log value\",DataLog!AH2025,\"\")","v":""},{"$f":"IF(DataLog!$C2025=\"Log value\",DataLog!AI2025,\"\")","v":""},{"$f":"IF(DataLog!$C2025=\"Log value\",DataLog!AJ2025,\"\")","v":""},{"$f":"IF(DataLog!$C2025=\"Log value\",DataLog!AK2025,\"\")","v":""},{"$f":"IF(DataLog!$C2025=\"Log value\",DataLog!AL2025,\"\")","v":""},{"$f":"IF(DataLog!$C2025=\"Log value\",DataLog!AM2025,\"\")","v":""}]
[null,null,null,null,null,null,{"$f":"IF(DataLog!$C2027=\"Log value\",DataLog!D2027&\"_\"&TEXT(DataLog!B2027,\"åååå-mm-dd\"),\"\")","v":""},{"$f":"IF(DataLog!$C2027=\"Log value\",DataLog!E2027,\"\")","v":""},{"$f":"IF(DataLog!$C2027=\"Log value\",DataLog!F2027,\"\")","v":""},{"$f":"IF(DataLog!$C2027=\"Log value\",DataLog!G2027,\"\")","v":""},{"$f":"IF(DataLog!$C2027=\"Log value\",DataLog!H2027,\"\")","v":""},{"$f":"IF(DataLog!$C2027=\"Log value\",DataLog!I2027,\"\")","v":""},{"$f":"IF(DataLog!$C2027=\"Log value\",DataLog!J2027,\"\")","v":""},{"$f":"IF(DataLog!$C2027=\"Log value\",DataLog!K2027,\"\")","v":""},{"$f":"IF(DataLog!$C2027=\"Log value\",DataLog!L2027,\"\")","v":""},{"$f":"IF(DataLog!$C2027=\"Log value\",DataLog!M2027,\"\")","v":""},{"$f":"IF(DataLog!$C2027=\"Log value\",DataLog!N2027,\"\")","v":""},{"$f":"IF(DataLog!$C2027=\"Log value\",DataLog!O2027,\"\")","v":""},{"$f":"IF(DataLog!$C2027=\"Log value\",DataLog!P2027,\"\")","v":""},{"$f":"IF(DataLog!$C2027=\"Log value\",DataLog!Q2027,\"\")","v":""},{"$f":"IF(DataLog!$C2027=\"Log value\",DataLog!R2027,\"\")","v":""},{"$f":"IF(DataLog!$C2027=\"Log value\",DataLog!S2027,\"\")","v":""},{"$f":"IF(DataLog!$C2027=\"Log value\",DataLog!T2027,\"\")","v":""},{"$f":"IF(DataLog!$C2027=\"Log value\",DataLog!U2027,\"\")","v":""},{"$f":"IF(DataLog!$C2027=\"Log value\",DataLog!V2027,\"\")","v":""},{"$f":"IF(DataLog!$C2027=\"Log value\",DataLog!W2027,\"\")","v":""},{"$f":"IF(DataLog!$C2027=\"Log value\",DataLog!X2027,\"\")","v":""},{"$f":"IF(DataLog!$C2027=\"Log value\",DataLog!Y2027,\"\")","v":""},{"$f":"IF(DataLog!$C2027=\"Log value\",DataLog!Z2027,\"\")","v":""},{"$f":"IF(DataLog!$C2027=\"Log value\",DataLog!AA2027,\"\")","v":""},{"$f":"IF(DataLog!$C2027=\"Log value\",DataLog!AB2027,\"\")","v":""},{"$f":"IF(DataLog!$C2027=\"Log value\",DataLog!AC2027,\"\")","v":""},{"$f":"IF(DataLog!$C2027=\"Log value\",DataLog!AD2027,\"\")","v":""},{"$f":"IF(DataLog!$C2027=\"Log value\",DataLog!AE2027,\"\")","v":""},{"$f":"IF(DataLog!$C2027=\"Log value\",DataLog!AF2027,\"\")","v":""},{"$f":"IF(DataLog!$C2027=\"Log value\",DataLog!AG2027,\"\")","v":""},{"$f":"IF(DataLog!$C2027=\"Log value\",DataLog!AH2027,\"\")","v":""},{"$f":"IF(DataLog!$C2027=\"Log value\",DataLog!AI2027,\"\")","v":""},{"$f":"IF(DataLog!$C2027=\"Log value\",DataLog!AJ2027,\"\")","v":""},{"$f":"IF(DataLog!$C2027=\"Log value\",DataLog!AK2027,\"\")","v":""},{"$f":"IF(DataLog!$C2027=\"Log value\",DataLog!AL2027,\"\")","v":""},{"$f":"IF(DataLog!$C2027=\"Log value\",DataLog!AM2027,\"\")","v":""}]
[null,null,null,null,null,null,{"$f":"IF(DataLog!$C2028=\"Log value\",DataLog!D2028&\"_\"&TEXT(DataLog!B2028,\"åååå-mm-dd\"),\"\")","v":""},{"$f":"IF(DataLog!$C2028=\"Log value\",DataLog!E2028,\"\")","v":""},{"$f":"IF(DataLog!$C2028=\"Log value\",DataLog!F2028,\"\")","v":""},{"$f":"IF(DataLog!$C2028=\"Log value\",DataLog!G2028,\"\")","v":""},{"$f":"IF(DataLog!$C2028=\"Log value\",DataLog!H2028,\"\")","v":""},{"$f":"IF(DataLog!$C2028=\"Log value\",DataLog!I2028,\"\")","v":""},{"$f":"IF(DataLog!$C2028=\"Log value\",DataLog!J2028,\"\")","v":""},{"$f":"IF(DataLog!$C2028=\"Log value\",DataLog!K2028,\"\")","v":""},{"$f":"IF(DataLog!$C2028=\"Log value\",DataLog!L2028,\"\")","v":""},{"$f":"IF(DataLog!$C2028=\"Log value\",DataLog!M2028,\"\")","v":""},{"$f":"IF(DataLog!$C2028=\"Log value\",DataLog!N2028,\"\")","v":""},{"$f":"IF(DataLog!$C2028=\"Log value\",DataLog!O2028,\"\")","v":""},{"$f":"IF(DataLog!$C2028=\"Log value\",DataLog!P2028,\"\")","v":""},{"$f":"IF(DataLog!$C2028=\"Log value\",DataLog!Q2028,\"\")","v":""},{"$f":"IF(DataLog!$C2028=\"Log value\",DataLog!R2028,\"\")","v":""},{"$f":"IF(DataLog!$C2028=\"Log value\",DataLog!S2028,\"\")","v":""},{"$f":"IF(DataLog!$C2028=\"Log value\",DataLog!T2028,\"\")","v":""},{"$f":"IF(DataLog!$C2028=\"Log value\",DataLog!U2028,\"\")","v":""},{"$f":"IF(DataLog!$C2028=\"Log value\",DataLog!V2028,\"\")","v":""},{"$f":"IF(DataLog!$C2028=\"Log value\",DataLog!W2028,\"\")","v":""},{"$f":"IF(DataLog!$C2028=\"Log value\",DataLog!X2028,\"\")","v":""},{"$f":"IF(DataLog!$C2028=\"Log value\",DataLog!Y2028,\"\")","v":""},{"$f":"IF(DataLog!$C2028=\"Log value\",DataLog!Z2028,\"\")","v":""},{"$f":"IF(DataLog!$C2028=\"Log value\",DataLog!AA2028,\"\")","v":""},{"$f":"IF(DataLog!$C2028=\"Log value\",DataLog!AB2028,\"\")","v":""},{"$f":"IF(DataLog!$C2028=\"Log value\",DataLog!AC2028,\"\")","v":""},{"$f":"IF(DataLog!$C2028=\"Log value\",DataLog!AD2028,\"\")","v":""},{"$f":"IF(DataLog!$C2028=\"Log value\",DataLog!AE2028,\"\")","v":""},{"$f":"IF(DataLog!$C2028=\"Log value\",DataLog!AF2028,\"\")","v":""},{"$f":"IF(DataLog!$C2028=\"Log value\",DataLog!AG2028,\"\")","v":""},{"$f":"IF(DataLog!$C2028=\"Log value\",DataLog!AH2028,\"\")","v":""},{"$f":"IF(DataLog!$C2028=\"Log value\",DataLog!AI2028,\"\")","v":""},{"$f":"IF(DataLog!$C2028=\"Log value\",DataLog!AJ2028,\"\")","v":""},{"$f":"IF(DataLog!$C2028=\"Log value\",DataLog!AK2028,\"\")","v":""},{"$f":"IF(DataLog!$C2028=\"Log value\",DataLog!AL2028,\"\")","v":""},{"$f":"IF(DataLog!$C2028=\"Log value\",DataLog!AM2028,\"\")","v":""}]
[null,null,null,null,null,null,{"$f":"IF(DataLog!$C2031=\"Log value\",DataLog!D2031&\"_\"&TEXT(DataLog!B2031,\"åååå-mm-dd\"),\"\")","v":""},{"$f":"IF(DataLog!$C2031=\"Log value\",DataLog!E2031,\"\")","v":""},{"$f":"IF(DataLog!$C2031=\"Log value\",DataLog!F2031,\"\")","v":""},{"$f":"IF(DataLog!$C2031=\"Log value\",DataLog!G2031,\"\")","v":""},{"$f":"IF(DataLog!$C2031=\"Log value\",DataLog!H2031,\"\")","v":""},{"$f":"IF(DataLog!$C2031=\"Log value\",DataLog!I2031,\"\")","v":""},{"$f":"IF(DataLog!$C2031=\"Log value\",DataLog!J2031,\"\")","v":""},{"$f":"IF(DataLog!$C2031=\"Log value\",DataLog!K2031,\"\")","v":""},{"$f":"IF(DataLog!$C2031=\"Log value\",DataLog!L2031,\"\")","v":""},{"$f":"IF(DataLog!$C2031=\"Log value\",DataLog!M2031,\"\")","v":""},{"$f":"IF(DataLog!$C2031=\"Log value\",DataLog!N2031,\"\")","v":""},{"$f":"IF(DataLog!$C2031=\"Log value\",DataLog!O2031,\"\")","v":""},{"$f":"IF(DataLog!$C2031=\"Log value\",DataLog!P2031,\"\")","v":""},{"$f":"IF(DataLog!$C2031=\"Log value\",DataLog!Q2031,\"\")","v":""},{"$f":"IF(DataLog!$C2031=\"Log value\",DataLog!R2031,\"\")","v":""},{"$f":"IF(DataLog!$C2031=\"Log value\",DataLog!S2031,\"\")","v":""},{"$f":"IF(DataLog!$C2031=\"Log value\",DataLog!T2031,\"\")","v":""},{"$f":"IF(DataLog!$C2031=\"Log value\",DataLog!U2031,\"\")","v":""},{"$f":"IF(DataLog!$C2031=\"Log value\",DataLog!V2031,\"\")","v":""},{"$f":"IF(DataLog!$C2031=\"Log value\",DataLog!W2031,\"\")","v":""},{"$f":"IF(DataLog!$C2031=\"Log value\",DataLog!X2031,\"\")","v":""},{"$f":"IF(DataLog!$C2031=\"Log value\",DataLog!Y2031,\"\")","v":""},{"$f":"IF(DataLog!$C2031=\"Log value\",DataLog!Z2031,\"\")","v":""},{"$f":"IF(DataLog!$C2031=\"Log value\",DataLog!AA2031,\"\")","v":""},{"$f":"IF(DataLog!$C2031=\"Log value\",DataLog!AB2031,\"\")","v":""},{"$f":"IF(DataLog!$C2031=\"Log value\",DataLog!AC2031,\"\")","v":""},{"$f":"IF(DataLog!$C2031=\"Log value\",DataLog!AD2031,\"\")","v":""},{"$f":"IF(DataLog!$C2031=\"Log value\",DataLog!AE2031,\"\")","v":""},{"$f":"IF(DataLog!$C2031=\"Log value\",DataLog!AF2031,\"\")","v":""},{"$f":"IF(DataLog!$C2031=\"Log value\",DataLog!AG2031,\"\")","v":""},{"$f":"IF(DataLog!$C2031=\"Log value\",DataLog!AH2031,\"\")","v":""},{"$f":"IF(DataLog!$C2031=\"Log value\",DataLog!AI2031,\"\")","v":""},{"$f":"IF(DataLog!$C2031=\"Log value\",DataLog!AJ2031,\"\")","v":""},{"$f":"IF(DataLog!$C2031=\"Log value\",DataLog!AK2031,\"\")","v":""},{"$f":"IF(DataLog!$C2031=\"Log value\",DataLog!AL2031,\"\")","v":""},{"$f":"IF(DataLog!$C2031=\"Log value\",DataLog!AM2031,\"\")","v":""}]
[null,null,null,null,null,null,{"$f":"IF(DataLog!$C2032=\"Log value\",DataLog!D2032&\"_\"&TEXT(DataLog!B2032,\"åååå-mm-dd\"),\"\")","v":""},{"$f":"IF(DataLog!$C2032=\"Log value\",DataLog!E2032,\"\")","v":""},{"$f":"IF(DataLog!$C2032=\"Log value\",DataLog!F2032,\"\")","v":""},{"$f":"IF(DataLog!$C2032=\"Log value\",DataLog!G2032,\"\")","v":""},{"$f":"IF(DataLog!$C2032=\"Log value\",DataLog!H2032,\"\")","v":""},{"$f":"IF(DataLog!$C2032=\"Log value\",DataLog!I2032,\"\")","v":""},{"$f":"IF(DataLog!$C2032=\"Log value\",DataLog!J2032,\"\")","v":""},{"$f":"IF(DataLog!$C2032=\"Log value\",DataLog!K2032,\"\")","v":""},{"$f":"IF(DataLog!$C2032=\"Log value\",DataLog!L2032,\"\")","v":""},{"$f":"IF(DataLog!$C2032=\"Log value\",DataLog!M2032,\"\")","v":""},{"$f":"IF(DataLog!$C2032=\"Log value\",DataLog!N2032,\"\")","v":""},{"$f":"IF(DataLog!$C2032=\"Log value\",DataLog!O2032,\"\")","v":""},{"$f":"IF(DataLog!$C2032=\"Log value\",DataLog!P2032,\"\")","v":""},{"$f":"IF(DataLog!$C2032=\"Log value\",DataLog!Q2032,\"\")","v":""},{"$f":"IF(DataLog!$C2032=\"Log value\",DataLog!R2032,\"\")","v":""},{"$f":"IF(DataLog!$C2032=\"Log value\",DataLog!S2032,\"\")","v":""},{"$f":"IF(DataLog!$C2032=\"Log value\",DataLog!T2032,\"\")","v":""},{"$f":"IF(DataLog!$C2032=\"Log value\",DataLog!U2032,\"\")","v":""},{"$f":"IF(DataLog!$C2032=\"Log value\",DataLog!V2032,\"\")","v":""},{"$f":"IF(DataLog!$C2032=\"Log value\",DataLog!W2032,\"\")","v":""},{"$f":"IF(DataLog!$C2032=\"Log value\",DataLog!X2032,\"\")","v":""},{"$f":"IF(DataLog!$C2032=\"Log value\",DataLog!Y2032,\"\")","v":""},{"$f":"IF(DataLog!$C2032=\"Log value\",DataLog!Z2032,\"\")","v":""},{"$f":"IF(DataLog!$C2032=\"Log value\",DataLog!AA2032,\"\")","v":""},{"$f":"IF(DataLog!$C2032=\"Log value\",DataLog!AB2032,\"\")","v":""},{"$f":"IF(DataLog!$C2032=\"Log value\",DataLog!AC2032,\"\")","v":""},{"$f":"IF(DataLog!$C2032=\"Log value\",DataLog!AD2032,\"\")","v":""},{"$f":"IF(DataLog!$C2032=\"Log value\",DataLog!AE2032,\"\")","v":""},{"$f":"IF(DataLog!$C2032=\"Log value\",DataLog!AF2032,\"\")","v":""},{"$f":"IF(DataLog!$C2032=\"Log value\",DataLog!AG2032,\"\")","v":""},{"$f":"IF(DataLog!$C2032=\"Log value\",DataLog!AH2032,\"\")","v":""},{"$f":"IF(DataLog!$C2032=\"Log value\",DataLog!AI2032,\"\")","v":""},{"$f":"IF(DataLog!$C2032=\"Log value\",DataLog!AJ2032,\"\")","v":""},{"$f":"IF(DataLog!$C2032=\"Log value\",DataLog!AK2032,\"\")","v":""},{"$f":"IF(DataLog!$C2032=\"Log value\",DataLog!AL2032,\"\")","v":""},{"$f":"IF(DataLog!$C2032=\"Log value\",DataLog!AM2032,\"\")","v":""}]
[null,null,null,null,null,null,{"$f":"IF(DataLog!$C2036=\"Log value\",DataLog!D2036&\"_\"&TEXT(DataLog!B2036,\"åååå-mm-dd\"),\"\")","v":""},{"$f":"IF(DataLog!$C2036=\"Log value\",DataLog!E2036,\"\")","v":""},{"$f":"IF(DataLog!$C2036=\"Log value\",DataLog!F2036,\"\")","v":""},{"$f":"IF(DataLog!$C2036=\"Log value\",DataLog!G2036,\"\")","v":""},{"$f":"IF(DataLog!$C2036=\"Log value\",DataLog!H2036,\"\")","v":""},{"$f":"IF(DataLog!$C2036=\"Log value\",DataLog!I2036,\"\")","v":""},{"$f":"IF(DataLog!$C2036=\"Log value\",DataLog!J2036,\"\")","v":""},{"$f":"IF(DataLog!$C2036=\"Log value\",DataLog!K2036,\"\")","v":""},{"$f":"IF(DataLog!$C2036=\"Log value\",DataLog!L2036,\"\")","v":""},{"$f":"IF(DataLog!$C2036=\"Log value\",DataLog!M2036,\"\")","v":""},{"$f":"IF(DataLog!$C2036=\"Log value\",DataLog!N2036,\"\")","v":""},{"$f":"IF(DataLog!$C2036=\"Log value\",DataLog!O2036,\"\")","v":""},{"$f":"IF(DataLog!$C2036=\"Log value\",DataLog!P2036,\"\")","v":""},{"$f":"IF(DataLog!$C2036=\"Log value\",DataLog!Q2036,\"\")","v":""},{"$f":"IF(DataLog!$C2036=\"Log value\",DataLog!R2036,\"\")","v":""},{"$f":"IF(DataLog!$C2036=\"Log value\",DataLog!S2036,\"\")","v":""},{"$f":"IF(DataLog!$C2036=\"Log value\",DataLog!T2036,\"\")","v":""},{"$f":"IF(DataLog!$C2036=\"Log value\",DataLog!U2036,\"\")","v":""},{"$f":"IF(DataLog!$C2036=\"Log value\",DataLog!V2036,\"\")","v":""},{"$f":"IF(DataLog!$C2036=\"Log value\",DataLog!W2036,\"\")","v":""},{"$f":"IF(DataLog!$C2036=\"Log value\",DataLog!X2036,\"\")","v":""},{"$f":"IF(DataLog!$C2036=\"Log value\",DataLog!Y2036,\"\")","v":""},{"$f":"IF(DataLog!$C2036=\"Log value\",DataLog!Z2036,\"\")","v":""},{"$f":"IF(DataLog!$C2036=\"Log value\",DataLog!AA2036,\"\")","v":""},{"$f":"IF(DataLog!$C2036=\"Log value\",DataLog!AB2036,\"\")","v":""},{"$f":"IF(DataLog!$C2036=\"Log value\",DataLog!AC2036,\"\")","v":""},{"$f":"IF(DataLog!$C2036=\"Log value\",DataLog!AD2036,\"\")","v":""},{"$f":"IF(DataLog!$C2036=\"Log value\",DataLog!AE2036,\"\")","v":""},{"$f":"IF(DataLog!$C2036=\"Log value\",DataLog!AF2036,\"\")","v":""},{"$f":"IF(DataLog!$C2036=\"Log value\",DataLog!AG2036,\"\")","v":""},{"$f":"IF(DataLog!$C2036=\"Log value\",DataLog!AH2036,\"\")","v":""},{"$f":"IF(DataLog!$C2036=\"Log value\",DataLog!AI2036,\"\")","v":""},{"$f":"IF(DataLog!$C2036=\"Log value\",DataLog!AJ2036,\"\")","v":""},{"$f":"IF(DataLog!$C2036=\"Log value\",DataLog!AK2036,\"\")","v":""},{"$f":"IF(DataLog!$C2036=\"Log value\",DataLog!AL2036,\"\")","v":""},{"$f":"IF(DataLog!$C2036=\"Log value\",DataLog!AM2036,\"\")","v":""}]
[null,null,null,null,null,null,{"$f":"IF(DataLog!$C2037=\"Log value\",DataLog!D2037&\"_\"&TEXT(DataLog!B2037,\"åååå-mm-dd\"),\"\")","v":""},{"$f":"IF(DataLog!$C2037=\"Log value\",DataLog!E2037,\"\")","v":""},{"$f":"IF(DataLog!$C2037=\"Log value\",DataLog!F2037,\"\")","v":""},{"$f":"IF(DataLog!$C2037=\"Log value\",DataLog!G2037,\"\")","v":""},{"$f":"IF(DataLog!$C2037=\"Log value\",DataLog!H2037,\"\")","v":""},{"$f":"IF(DataLog!$C2037=\"Log value\",DataLog!I2037,\"\")","v":""},{"$f":"IF(DataLog!$C2037=\"Log value\",DataLog!J2037,\"\")","v":""},{"$f":"IF(DataLog!$C2037=\"Log value\",DataLog!K2037,\"\")","v":""},{"$f":"IF(DataLog!$C2037=\"Log value\",DataLog!L2037,\"\")","v":""},{"$f":"IF(DataLog!$C2037=\"Log value\",DataLog!M2037,\"\")","v":""},{"$f":"IF(DataLog!$C2037=\"Log value\",DataLog!N2037,\"\")","v":""},{"$f":"IF(DataLog!$C2037=\"Log value\",DataLog!O2037,\"\")","v":""},{"$f":"IF(DataLog!$C2037=\"Log value\",DataLog!P2037,\"\")","v":""},{"$f":"IF(DataLog!$C2037=\"Log value\",DataLog!Q2037,\"\")","v":""},{"$f":"IF(DataLog!$C2037=\"Log value\",DataLog!R2037,\"\")","v":""},{"$f":"IF(DataLog!$C2037=\"Log value\",DataLog!S2037,\"\")","v":""},{"$f":"IF(DataLog!$C2037=\"Log value\",DataLog!T2037,\"\")","v":""},{"$f":"IF(DataLog!$C2037=\"Log value\",DataLog!U2037,\"\")","v":""},{"$f":"IF(DataLog!$C2037=\"Log value\",DataLog!V2037,\"\")","v":""},{"$f":"IF(DataLog!$C2037=\"Log value\",DataLog!W2037,\"\")","v":""},{"$f":"IF(DataLog!$C2037=\"Log value\",DataLog!X2037,\"\")","v":""},{"$f":"IF(DataLog!$C2037=\"Log value\",DataLog!Y2037,\"\")","v":""},{"$f":"IF(DataLog!$C2037=\"Log value\",DataLog!Z2037,\"\")","v":""},{"$f":"IF(DataLog!$C2037=\"Log value\",DataLog!AA2037,\"\")","v":""},{"$f":"IF(DataLog!$C2037=\"Log value\",DataLog!AB2037,\"\")","v":""},{"$f":"IF(DataLog!$C2037=\"Log value\",DataLog!AC2037,\"\")","v":""},{"$f":"IF(DataLog!$C2037=\"Log value\",DataLog!AD2037,\"\")","v":""},{"$f":"IF(DataLog!$C2037=\"Log value\",DataLog!AE2037,\"\")","v":""},{"$f":"IF(DataLog!$C2037=\"Log value\",DataLog!AF2037,\"\")","v":""},{"$f":"IF(DataLog!$C2037=\"Log value\",DataLog!AG2037,\"\")","v":""},{"$f":"IF(DataLog!$C2037=\"Log value\",DataLog!AH2037,\"\")","v":""},{"$f":"IF(DataLog!$C2037=\"Log value\",DataLog!AI2037,\"\")","v":""},{"$f":"IF(DataLog!$C2037=\"Log value\",DataLog!AJ2037,\"\")","v":""},{"$f":"IF(DataLog!$C2037=\"Log value\",DataLog!AK2037,\"\")","v":""},{"$f":"IF(DataLog!$C2037=\"Log value\",DataLog!AL2037,\"\")","v":""},{"$f":"IF(DataLog!$C2037=\"Log value\",DataLog!AM2037,\"\")","v":""}]
[null,null,null,null,null,null,{"$f":"IF(DataLog!$C2040=\"Log value\",DataLog!D2040&\"_\"&TEXT(DataLog!B2040,\"åååå-mm-dd\"),\"\")","v":""},{"$f":"IF(DataLog!$C2040=\"Log value\",DataLog!E2040,\"\")","v":""},{"$f":"IF(DataLog!$C2040=\"Log value\",DataLog!F2040,\"\")","v":""},{"$f":"IF(DataLog!$C2040=\"Log value\",DataLog!G2040,\"\")","v":""},{"$f":"IF(DataLog!$C2040=\"Log value\",DataLog!H2040,\"\")","v":""},{"$f":"IF(DataLog!$C2040=\"Log value\",DataLog!I2040,\"\")","v":""},{"$f":"IF(DataLog!$C2040=\"Log value\",DataLog!J2040,\"\")","v":""},{"$f":"IF(DataLog!$C2040=\"Log value\",DataLog!K2040,\"\")","v":""},{"$f":"IF(DataLog!$C2040=\"Log value\",DataLog!L2040,\"\")","v":""},{"$f":"IF(DataLog!$C2040=\"Log value\",DataLog!M2040,\"\")","v":""},{"$f":"IF(DataLog!$C2040=\"Log value\",DataLog!N2040,\"\")","v":""},{"$f":"IF(DataLog!$C2040=\"Log value\",DataLog!O2040,\"\")","v":""},{"$f":"IF(DataLog!$C2040=\"Log value\",DataLog!P2040,\"\")","v":""},{"$f":"IF(DataLog!$C2040=\"Log value\",DataLog!Q2040,\"\")","v":""},{"$f":"IF(DataLog!$C2040=\"Log value\",DataLog!R2040,\"\")","v":""},{"$f":"IF(DataLog!$C2040=\"Log value\",DataLog!S2040,\"\")","v":""},{"$f":"IF(DataLog!$C2040=\"Log value\",DataLog!T2040,\"\")","v":""},{"$f":"IF(DataLog!$C2040=\"Log value\",DataLog!U2040,\"\")","v":""},{"$f":"IF(DataLog!$C2040=\"Log value\",DataLog!V2040,\"\")","v":""},{"$f":"IF(DataLog!$C2040=\"Log value\",DataLog!W2040,\"\")","v":""},{"$f":"IF(DataLog!$C2040=\"Log value\",DataLog!X2040,\"\")","v":""},{"$f":"IF(DataLog!$C2040=\"Log value\",DataLog!Y2040,\"\")","v":""},{"$f":"IF(DataLog!$C2040=\"Log value\",DataLog!Z2040,\"\")","v":""},{"$f":"IF(DataLog!$C2040=\"Log value\",DataLog!AA2040,\"\")","v":""},{"$f":"IF(DataLog!$C2040=\"Log value\",DataLog!AB2040,\"\")","v":""},{"$f":"IF(DataLog!$C2040=\"Log value\",DataLog!AC2040,\"\")","v":""},{"$f":"IF(DataLog!$C2040=\"Log value\",DataLog!AD2040,\"\")","v":""},{"$f":"IF(DataLog!$C2040=\"Log value\",DataLog!AE2040,\"\")","v":""},{"$f":"IF(DataLog!$C2040=\"Log value\",DataLog!AF2040,\"\")","v":""},{"$f":"IF(DataLog!$C2040=\"Log value\",DataLog!AG2040,\"\")","v":""},{"$f":"IF(DataLog!$C2040=\"Log value\",DataLog!AH2040,\"\")","v":""},{"$f":"IF(DataLog!$C2040=\"Log value\",DataLog!AI2040,\"\")","v":""},{"$f":"IF(DataLog!$C2040=\"Log value\",DataLog!AJ2040,\"\")","v":""},{"$f":"IF(DataLog!$C2040=\"Log value\",DataLog!AK2040,\"\")","v":""},{"$f":"IF(DataLog!$C2040=\"Log value\",DataLog!AL2040,\"\")","v":""},{"$f":"IF(DataLog!$C2040=\"Log value\",DataLog!AM2040,\"\")","v":""}]
[null,null,null,null,null,null,{"$f":"IF(DataLog!$C2043=\"Log value\",DataLog!D2043&\"_\"&TEXT(DataLog!B2043,\"åååå-mm-dd\"),\"\")","v":""},{"$f":"IF(DataLog!$C2043=\"Log value\",DataLog!E2043,\"\")","v":""},{"$f":"IF(DataLog!$C2043=\"Log value\",DataLog!F2043,\"\")","v":""},{"$f":"IF(DataLog!$C2043=\"Log value\",DataLog!G2043,\"\")","v":""},{"$f":"IF(DataLog!$C2043=\"Log value\",DataLog!H2043,\"\")","v":""},{"$f":"IF(DataLog!$C2043=\"Log value\",DataLog!I2043,\"\")","v":""},{"$f":"IF(DataLog!$C2043=\"Log value\",DataLog!J2043,\"\")","v":""},{"$f":"IF(DataLog!$C2043=\"Log value\",DataLog!K2043,\"\")","v":""},{"$f":"IF(DataLog!$C2043=\"Log value\",DataLog!L2043,\"\")","v":""},{"$f":"IF(DataLog!$C2043=\"Log value\",DataLog!M2043,\"\")","v":""},{"$f":"IF(DataLog!$C2043=\"Log value\",DataLog!N2043,\"\")","v":""},{"$f":"IF(DataLog!$C2043=\"Log value\",DataLog!O2043,\"\")","v":""},{"$f":"IF(DataLog!$C2043=\"Log value\",DataLog!P2043,\"\")","v":""},{"$f":"IF(DataLog!$C2043=\"Log value\",DataLog!Q2043,\"\")","v":""},{"$f":"IF(DataLog!$C2043=\"Log value\",DataLog!R2043,\"\")","v":""},{"$f":"IF(DataLog!$C2043=\"Log value\",DataLog!S2043,\"\")","v":""},{"$f":"IF(DataLog!$C2043=\"Log value\",DataLog!T2043,\"\")","v":""},{"$f":"IF(DataLog!$C2043=\"Log value\",DataLog!U2043,\"\")","v":""},{"$f":"IF(DataLog!$C2043=\"Log value\",DataLog!V2043,\"\")","v":""},{"$f":"IF(DataLog!$C2043=\"Log value\",DataLog!W2043,\"\")","v":""},{"$f":"IF(DataLog!$C2043=\"Log value\",DataLog!X2043,\"\")","v":""},{"$f":"IF(DataLog!$C2043=\"Log value\",DataLog!Y2043,\"\")","v":""},{"$f":"IF(DataLog!$C2043=\"Log value\",DataLog!Z2043,\"\")","v":""},{"$f":"IF(DataLog!$C2043=\"Log value\",DataLog!AA2043,\"\")","v":""},{"$f":"IF(DataLog!$C2043=\"Log value\",DataLog!AB2043,\"\")","v":""},{"$f":"IF(DataLog!$C2043=\"Log value\",DataLog!AC2043,\"\")","v":""},{"$f":"IF(DataLog!$C2043=\"Log value\",DataLog!AD2043,\"\")","v":""},{"$f":"IF(DataLog!$C2043=\"Log value\",DataLog!AE2043,\"\")","v":""},{"$f":"IF(DataLog!$C2043=\"Log value\",DataLog!AF2043,\"\")","v":""},{"$f":"IF(DataLog!$C2043=\"Log value\",DataLog!AG2043,\"\")","v":""},{"$f":"IF(DataLog!$C2043=\"Log value\",DataLog!AH2043,\"\")","v":""},{"$f":"IF(DataLog!$C2043=\"Log value\",DataLog!AI2043,\"\")","v":""},{"$f":"IF(DataLog!$C2043=\"Log value\",DataLog!AJ2043,\"\")","v":""},{"$f":"IF(DataLog!$C2043=\"Log value\",DataLog!AK2043,\"\")","v":""},{"$f":"IF(DataLog!$C2043=\"Log value\",DataLog!AL2043,\"\")","v":""},{"$f":"IF(DataLog!$C2043=\"Log value\",DataLog!AM2043,\"\")","v":""}]
[null,null,null,null,null,null,{"$f":"IF(DataLog!$C2045=\"Log value\",DataLog!D2045&\"_\"&TEXT(DataLog!B2045,\"åååå-mm-dd\"),\"\")","v":""},{"$f":"IF(DataLog!$C2045=\"Log value\",DataLog!E2045,\"\")","v":""},{"$f":"IF(DataLog!$C2045=\"Log value\",DataLog!F2045,\"\")","v":""},{"$f":"IF(DataLog!$C2045=\"Log value\",DataLog!G2045,\"\")","v":""},{"$f":"IF(DataLog!$C2045=\"Log value\",DataLog!H2045,\"\")","v":""},{"$f":"IF(DataLog!$C2045=\"Log value\",DataLog!I2045,\"\")","v":""},{"$f":"IF(DataLog!$C2045=\"Log value\",DataLog!J2045,\"\")","v":""},{"$f":"IF(DataLog!$C2045=\"Log value\",DataLog!K2045,\"\")","v":""},{"$f":"IF(DataLog!$C2045=\"Log value\",DataLog!L2045,\"\")","v":""},{"$f":"IF(DataLog!$C2045=\"Log value\",DataLog!M2045,\"\")","v":""},{"$f":"IF(DataLog!$C2045=\"Log value\",DataLog!N2045,\"\")","v":""},{"$f":"IF(DataLog!$C2045=\"Log value\",DataLog!O2045,\"\")","v":""},{"$f":"IF(DataLog!$C2045=\"Log value\",DataLog!P2045,\"\")","v":""},{"$f":"IF(DataLog!$C2045=\"Log value\",DataLog!Q2045,\"\")","v":""},{"$f":"IF(DataLog!$C2045=\"Log value\",DataLog!R2045,\"\")","v":""},{"$f":"IF(DataLog!$C2045=\"Log value\",DataLog!S2045,\"\")","v":""},{"$f":"IF(DataLog!$C2045=\"Log value\",DataLog!T2045,\"\")","v":""},{"$f":"IF(DataLog!$C2045=\"Log value\",DataLog!U2045,\"\")","v":""},{"$f":"IF(DataLog!$C2045=\"Log value\",DataLog!V2045,\"\")","v":""},{"$f":"IF(DataLog!$C2045=\"Log value\",DataLog!W2045,\"\")","v":""},{"$f":"IF(DataLog!$C2045=\"Log value\",DataLog!X2045,\"\")","v":""},{"$f":"IF(DataLog!$C2045=\"Log value\",DataLog!Y2045,\"\")","v":""},{"$f":"IF(DataLog!$C2045=\"Log value\",DataLog!Z2045,\"\")","v":""},{"$f":"IF(DataLog!$C2045=\"Log value\",DataLog!AA2045,\"\")","v":""},{"$f":"IF(DataLog!$C2045=\"Log value\",DataLog!AB2045,\"\")","v":""},{"$f":"IF(DataLog!$C2045=\"Log value\",DataLog!AC2045,\"\")","v":""},{"$f":"IF(DataLog!$C2045=\"Log value\",DataLog!AD2045,\"\")","v":""},{"$f":"IF(DataLog!$C2045=\"Log value\",DataLog!AE2045,\"\")","v":""},{"$f":"IF(DataLog!$C2045=\"Log value\",DataLog!AF2045,\"\")","v":""},{"$f":"IF(DataLog!$C2045=\"Log value\",DataLog!AG2045,\"\")","v":""},{"$f":"IF(DataLog!$C2045=\"Log value\",DataLog!AH2045,\"\")","v":""},{"$f":"IF(DataLog!$C2045=\"Log value\",DataLog!AI2045,\"\")","v":""},{"$f":"IF(DataLog!$C2045=\"Log value\",DataLog!AJ2045,\"\")","v":""},{"$f":"IF(DataLog!$C2045=\"Log value\",DataLog!AK2045,\"\")","v":""},{"$f":"IF(DataLog!$C2045=\"Log value\",DataLog!AL2045,\"\")","v":""},{"$f":"IF(DataLog!$C2045=\"Log value\",DataLog!AM2045,\"\")","v":""}]
[null,null,null,null,null,null,{"$f":"IF(DataLog!$C2046=\"Log value\",DataLog!D2046&\"_\"&TEXT(DataLog!B2046,\"åååå-mm-dd\"),\"\")","v":""},{"$f":"IF(DataLog!$C2046=\"Log value\",DataLog!E2046,\"\")","v":""},{"$f":"IF(DataLog!$C2046=\"Log value\",DataLog!F2046,\"\")","v":""},{"$f":"IF(DataLog!$C2046=\"Log value\",DataLog!G2046,\"\")","v":""},{"$f":"IF(DataLog!$C2046=\"Log value\",DataLog!H2046,\"\")","v":""},{"$f":"IF(DataLog!$C2046=\"Log value\",DataLog!I2046,\"\")","v":""},{"$f":"IF(DataLog!$C2046=\"Log value\",DataLog!J2046,\"\")","v":""},{"$f":"IF(DataLog!$C2046=\"Log value\",DataLog!K2046,\"\")","v":""},{"$f":"IF(DataLog!$C2046=\"Log value\",DataLog!L2046,\"\")","v":""},{"$f":"IF(DataLog!$C2046=\"Log value\",DataLog!M2046,\"\")","v":""},{"$f":"IF(DataLog!$C2046=\"Log value\",DataLog!N2046,\"\")","v":""},{"$f":"IF(DataLog!$C2046=\"Log value\",DataLog!O2046,\"\")","v":""},{"$f":"IF(DataLog!$C2046=\"Log value\",DataLog!P2046,\"\")","v":""},{"$f":"IF(DataLog!$C2046=\"Log value\",DataLog!Q2046,\"\")","v":""},{"$f":"IF(DataLog!$C2046=\"Log value\",DataLog!R2046,\"\")","v":""},{"$f":"IF(DataLog!$C2046=\"Log value\",DataLog!S2046,\"\")","v":""},{"$f":"IF(DataLog!$C2046=\"Log value\",DataLog!T2046,\"\")","v":""},{"$f":"IF(DataLog!$C2046=\"Log value\",DataLog!U2046,\"\")","v":""},{"$f":"IF(DataLog!$C2046=\"Log value\",DataLog!V2046,\"\")","v":""},{"$f":"IF(DataLog!$C2046=\"Log value\",DataLog!W2046,\"\")","v":""},{"$f":"IF(DataLog!$C2046=\"Log value\",DataLog!X2046,\"\")","v":""},{"$f":"IF(DataLog!$C2046=\"Log value\",DataLog!Y2046,\"\")","v":""},{"$f":"IF(DataLog!$C2046=\"Log value\",DataLog!Z2046,\"\")","v":""},{"$f":"IF(DataLog!$C2046=\"Log value\",DataLog!AA2046,\"\")","v":""},{"$f":"IF(DataLog!$C2046=\"Log value\",DataLog!AB2046,\"\")","v":""},{"$f":"IF(DataLog!$C2046=\"Log value\",DataLog!AC2046,\"\")","v":""},{"$f":"IF(DataLog!$C2046=\"Log value\",DataLog!AD2046,\"\")","v":""},{"$f":"IF(DataLog!$C2046=\"Log value\",DataLog!AE2046,\"\")","v":""},{"$f":"IF(DataLog!$C2046=\"Log value\",DataLog!AF2046,\"\")","v":""},{"$f":"IF(DataLog!$C2046=\"Log value\",DataLog!AG2046,\"\")","v":""},{"$f":"IF(DataLog!$C2046=\"Log value\",DataLog!AH2046,\"\")","v":""},{"$f":"IF(DataLog!$C2046=\"Log value\",DataLog!AI2046,\"\")","v":""},{"$f":"IF(DataLog!$C2046=\"Log value\",DataLog!AJ2046,\"\")","v":""},{"$f":"IF(DataLog!$C2046=\"Log value\",DataLog!AK2046,\"\")","v":""},{"$f":"IF(DataLog!$C2046=\"Log value\",DataLog!AL2046,\"\")","v":""},{"$f":"IF(DataLog!$C2046=\"Log value\",DataLog!AM2046,\"\")","v":""}]
[null,null,null,null,null,null,{"$f":"IF(DataLog!$C2049=\"Log value\",DataLog!D2049&\"_\"&TEXT(DataLog!B2049,\"åååå-mm-dd\"),\"\")","v":""},{"$f":"IF(DataLog!$C2049=\"Log value\",DataLog!E2049,\"\")","v":""},{"$f":"IF(DataLog!$C2049=\"Log value\",DataLog!F2049,\"\")","v":""},{"$f":"IF(DataLog!$C2049=\"Log value\",DataLog!G2049,\"\")","v":""},{"$f":"IF(DataLog!$C2049=\"Log value\",DataLog!H2049,\"\")","v":""},{"$f":"IF(DataLog!$C2049=\"Log value\",DataLog!I2049,\"\")","v":""},{"$f":"IF(DataLog!$C2049=\"Log value\",DataLog!J2049,\"\")","v":""},{"$f":"IF(DataLog!$C2049=\"Log value\",DataLog!K2049,\"\")","v":""},{"$f":"IF(DataLog!$C2049=\"Log value\",DataLog!L2049,\"\")","v":""},{"$f":"IF(DataLog!$C2049=\"Log value\",DataLog!M2049,\"\")","v":""},{"$f":"IF(DataLog!$C2049=\"Log value\",DataLog!N2049,\"\")","v":""},{"$f":"IF(DataLog!$C2049=\"Log value\",DataLog!O2049,\"\")","v":""},{"$f":"IF(DataLog!$C2049=\"Log value\",DataLog!P2049,\"\")","v":""},{"$f":"IF(DataLog!$C2049=\"Log value\",DataLog!Q2049,\"\")","v":""},{"$f":"IF(DataLog!$C2049=\"Log value\",DataLog!R2049,\"\")","v":""},{"$f":"IF(DataLog!$C2049=\"Log value\",DataLog!S2049,\"\")","v":""},{"$f":"IF(DataLog!$C2049=\"Log value\",DataLog!T2049,\"\")","v":""},{"$f":"IF(DataLog!$C2049=\"Log value\",DataLog!U2049,\"\")","v":""},{"$f":"IF(DataLog!$C2049=\"Log value\",DataLog!V2049,\"\")","v":""},{"$f":"IF(DataLog!$C2049=\"Log value\",DataLog!W2049,\"\")","v":""},{"$f":"IF(DataLog!$C2049=\"Log value\",DataLog!X2049,\"\")","v":""},{"$f":"IF(DataLog!$C2049=\"Log value\",DataLog!Y2049,\"\")","v":""},{"$f":"IF(DataLog!$C2049=\"Log value\",DataLog!Z2049,\"\")","v":""},{"$f":"IF(DataLog!$C2049=\"Log value\",DataLog!AA2049,\"\")","v":""},{"$f":"IF(DataLog!$C2049=\"Log value\",DataLog!AB2049,\"\")","v":""},{"$f":"IF(DataLog!$C2049=\"Log value\",DataLog!AC2049,\"\")","v":""},{"$f":"IF(DataLog!$C2049=\"Log value\",DataLog!AD2049,\"\")","v":""},{"$f":"IF(DataLog!$C2049=\"Log value\",DataLog!AE2049,\"\")","v":""},{"$f":"IF(DataLog!$C2049=\"Log value\",DataLog!AF2049,\"\")","v":""},{"$f":"IF(DataLog!$C2049=\"Log value\",DataLog!AG2049,\"\")","v":""},{"$f":"IF(DataLog!$C2049=\"Log value\",DataLog!AH2049,\"\")","v":""},{"$f":"IF(DataLog!$C2049=\"Log value\",DataLog!AI2049,\"\")","v":""},{"$f":"IF(DataLog!$C2049=\"Log value\",DataLog!AJ2049,\"\")","v":""},{"$f":"IF(DataLog!$C2049=\"Log value\",DataLog!AK2049,\"\")","v":""},{"$f":"IF(DataLog!$C2049=\"Log value\",DataLog!AL2049,\"\")","v":""},{"$f":"IF(DataLog!$C2049=\"Log value\",DataLog!AM2049,\"\")","v":""}]
[null,null,null,null,null,null,{"$f":"IF(DataLog!$C2050=\"Log value\",DataLog!D2050&\"_\"&TEXT(DataLog!B2050,\"åååå-mm-dd\"),\"\")","v":""},{"$f":"IF(DataLog!$C2050=\"Log value\",DataLog!E2050,\"\")","v":""},{"$f":"IF(DataLog!$C2050=\"Log value\",DataLog!F2050,\"\")","v":""},{"$f":"IF(DataLog!$C2050=\"Log value\",DataLog!G2050,\"\")","v":""},{"$f":"IF(DataLog!$C2050=\"Log value\",DataLog!H2050,\"\")","v":""},{"$f":"IF(DataLog!$C2050=\"Log value\",DataLog!I2050,\"\")","v":""},{"$f":"IF(DataLog!$C2050=\"Log value\",DataLog!J2050,\"\")","v":""},{"$f":"IF(DataLog!$C2050=\"Log value\",DataLog!K2050,\"\")","v":""},{"$f":"IF(DataLog!$C2050=\"Log value\",DataLog!L2050,\"\")","v":""},{"$f":"IF(DataLog!$C2050=\"Log value\",DataLog!M2050,\"\")","v":""},{"$f":"IF(DataLog!$C2050=\"Log value\",DataLog!N2050,\"\")","v":""},{"$f":"IF(DataLog!$C2050=\"Log value\",DataLog!O2050,\"\")","v":""},{"$f":"IF(DataLog!$C2050=\"Log value\",DataLog!P2050,\"\")","v":""},{"$f":"IF(DataLog!$C2050=\"Log value\",DataLog!Q2050,\"\")","v":""},{"$f":"IF(DataLog!$C2050=\"Log value\",DataLog!R2050,\"\")","v":""},{"$f":"IF(DataLog!$C2050=\"Log value\",DataLog!S2050,\"\")","v":""},{"$f":"IF(DataLog!$C2050=\"Log value\",DataLog!T2050,\"\")","v":""},{"$f":"IF(DataLog!$C2050=\"Log value\",DataLog!U2050,\"\")","v":""},{"$f":"IF(DataLog!$C2050=\"Log value\",DataLog!V2050,\"\")","v":""},{"$f":"IF(DataLog!$C2050=\"Log value\",DataLog!W2050,\"\")","v":""},{"$f":"IF(DataLog!$C2050=\"Log value\",DataLog!X2050,\"\")","v":""},{"$f":"IF(DataLog!$C2050=\"Log value\",DataLog!Y2050,\"\")","v":""},{"$f":"IF(DataLog!$C2050=\"Log value\",DataLog!Z2050,\"\")","v":""},{"$f":"IF(DataLog!$C2050=\"Log value\",DataLog!AA2050,\"\")","v":""},{"$f":"IF(DataLog!$C2050=\"Log value\",DataLog!AB2050,\"\")","v":""},{"$f":"IF(DataLog!$C2050=\"Log value\",DataLog!AC2050,\"\")","v":""},{"$f":"IF(DataLog!$C2050=\"Log value\",DataLog!AD2050,\"\")","v":""},{"$f":"IF(DataLog!$C2050=\"Log value\",DataLog!AE2050,\"\")","v":""},{"$f":"IF(DataLog!$C2050=\"Log value\",DataLog!AF2050,\"\")","v":""},{"$f":"IF(DataLog!$C2050=\"Log value\",DataLog!AG2050,\"\")","v":""},{"$f":"IF(DataLog!$C2050=\"Log value\",DataLog!AH2050,\"\")","v":""},{"$f":"IF(DataLog!$C2050=\"Log value\",DataLog!AI2050,\"\")","v":""},{"$f":"IF(DataLog!$C2050=\"Log value\",DataLog!AJ2050,\"\")","v":""},{"$f":"IF(DataLog!$C2050=\"Log value\",DataLog!AK2050,\"\")","v":""},{"$f":"IF(DataLog!$C2050=\"Log value\",DataLog!AL2050,\"\")","v":""},{"$f":"IF(DataLog!$C2050=\"Log value\",DataLog!AM2050,\"\")","v":""}]
[null,null,null,null,null,null,{"$f":"IF(DataLog!$C2054=\"Log value\",DataLog!D2054&\"_\"&TEXT(DataLog!B2054,\"åååå-mm-dd\"),\"\")","v":""},{"$f":"IF(DataLog!$C2054=\"Log value\",DataLog!E2054,\"\")","v":""},{"$f":"IF(DataLog!$C2054=\"Log value\",DataLog!F2054,\"\")","v":""},{"$f":"IF(DataLog!$C2054=\"Log value\",DataLog!G2054,\"\")","v":""},{"$f":"IF(DataLog!$C2054=\"Log value\",DataLog!H2054,\"\")","v":""},{"$f":"IF(DataLog!$C2054=\"Log value\",DataLog!I2054,\"\")","v":""},{"$f":"IF(DataLog!$C2054=\"Log value\",DataLog!J2054,\"\")","v":""},{"$f":"IF(DataLog!$C2054=\"Log value\",DataLog!K2054,\"\")","v":""},{"$f":"IF(DataLog!$C2054=\"Log value\",DataLog!L2054,\"\")","v":""},{"$f":"IF(DataLog!$C2054=\"Log value\",DataLog!M2054,\"\")","v":""},{"$f":"IF(DataLog!$C2054=\"Log value\",DataLog!N2054,\"\")","v":""},{"$f":"IF(DataLog!$C2054=\"Log value\",DataLog!O2054,\"\")","v":""},{"$f":"IF(DataLog!$C2054=\"Log value\",DataLog!P2054,\"\")","v":""},{"$f":"IF(DataLog!$C2054=\"Log value\",DataLog!Q2054,\"\")","v":""},{"$f":"IF(DataLog!$C2054=\"Log value\",DataLog!R2054,\"\")","v":""},{"$f":"IF(DataLog!$C2054=\"Log value\",DataLog!S2054,\"\")","v":""},{"$f":"IF(DataLog!$C2054=\"Log value\",DataLog!T2054,\"\")","v":""},{"$f":"IF(DataLog!$C2054=\"Log value\",DataLog!U2054,\"\")","v":""},{"$f":"IF(DataLog!$C2054=\"Log value\",DataLog!V2054,\"\")","v":""},{"$f":"IF(DataLog!$C2054=\"Log value\",DataLog!W2054,\"\")","v":""},{"$f":"IF(DataLog!$C2054=\"Log value\",DataLog!X2054,\"\")","v":""},{"$f":"IF(DataLog!$C2054=\"Log value\",DataLog!Y2054,\"\")","v":""},{"$f":"IF(DataLog!$C2054=\"Log value\",DataLog!Z2054,\"\")","v":""},{"$f":"IF(DataLog!$C2054=\"Log value\",DataLog!AA2054,\"\")","v":""},{"$f":"IF(DataLog!$C2054=\"Log value\",DataLog!AB2054,\"\")","v":""},{"$f":"IF(DataLog!$C2054=\"Log value\",DataLog!AC2054,\"\")","v":""},{"$f":"IF(DataLog!$C2054=\"Log value\",DataLog!AD2054,\"\")","v":""},{"$f":"IF(DataLog!$C2054=\"Log value\",DataLog!AE2054,\"\")","v":""},{"$f":"IF(DataLog!$C2054=\"Log value\",DataLog!AF2054,\"\")","v":""},{"$f":"IF(DataLog!$C2054=\"Log value\",DataLog!AG2054,\"\")","v":""},{"$f":"IF(DataLog!$C2054=\"Log value\",DataLog!AH2054,\"\")","v":""},{"$f":"IF(DataLog!$C2054=\"Log value\",DataLog!AI2054,\"\")","v":""},{"$f":"IF(DataLog!$C2054=\"Log value\",DataLog!AJ2054,\"\")","v":""},{"$f":"IF(DataLog!$C2054=\"Log value\",DataLog!AK2054,\"\")","v":""},{"$f":"IF(DataLog!$C2054=\"Log value\",DataLog!AL2054,\"\")","v":""},{"$f":"IF(DataLog!$C2054=\"Log value\",DataLog!AM2054,\"\")","v":""}]
[null,null,null,null,null,null,{"$f":"IF(DataLog!$C2055=\"Log value\",DataLog!D2055&\"_\"&TEXT(DataLog!B2055,\"åååå-mm-dd\"),\"\")","v":""},{"$f":"IF(DataLog!$C2055=\"Log value\",DataLog!E2055,\"\")","v":""},{"$f":"IF(DataLog!$C2055=\"Log value\",DataLog!F2055,\"\")","v":""},{"$f":"IF(DataLog!$C2055=\"Log value\",DataLog!G2055,\"\")","v":""},{"$f":"IF(DataLog!$C2055=\"Log value\",DataLog!H2055,\"\")","v":""},{"$f":"IF(DataLog!$C2055=\"Log value\",DataLog!I2055,\"\")","v":""},{"$f":"IF(DataLog!$C2055=\"Log value\",DataLog!J2055,\"\")","v":""},{"$f":"IF(DataLog!$C2055=\"Log value\",DataLog!K2055,\"\")","v":""},{"$f":"IF(DataLog!$C2055=\"Log value\",DataLog!L2055,\"\")","v":""},{"$f":"IF(DataLog!$C2055=\"Log value\",DataLog!M2055,\"\")","v":""},{"$f":"IF(DataLog!$C2055=\"Log value\",DataLog!N2055,\"\")","v":""},{"$f":"IF(DataLog!$C2055=\"Log value\",DataLog!O2055,\"\")","v":""},{"$f":"IF(DataLog!$C2055=\"Log value\",DataLog!P2055,\"\")","v":""},{"$f":"IF(DataLog!$C2055=\"Log value\",DataLog!Q2055,\"\")","v":""},{"$f":"IF(DataLog!$C2055=\"Log value\",DataLog!R2055,\"\")","v":""},{"$f":"IF(DataLog!$C2055=\"Log value\",DataLog!S2055,\"\")","v":""},{"$f":"IF(DataLog!$C2055=\"Log value\",DataLog!T2055,\"\")","v":""},{"$f":"IF(DataLog!$C2055=\"Log value\",DataLog!U2055,\"\")","v":""},{"$f":"IF(DataLog!$C2055=\"Log value\",DataLog!V2055,\"\")","v":""},{"$f":"IF(DataLog!$C2055=\"Log value\",DataLog!W2055,\"\")","v":""},{"$f":"IF(DataLog!$C2055=\"Log value\",DataLog!X2055,\"\")","v":""},{"$f":"IF(DataLog!$C2055=\"Log value\",DataLog!Y2055,\"\")","v":""},{"$f":"IF(DataLog!$C2055=\"Log value\",DataLog!Z2055,\"\")","v":""},{"$f":"IF(DataLog!$C2055=\"Log value\",DataLog!AA2055,\"\")","v":""},{"$f":"IF(DataLog!$C2055=\"Log value\",DataLog!AB2055,\"\")","v":""},{"$f":"IF(DataLog!$C2055=\"Log value\",DataLog!AC2055,\"\")","v":""},{"$f":"IF(DataLog!$C2055=\"Log value\",DataLog!AD2055,\"\")","v":""},{"$f":"IF(DataLog!$C2055=\"Log value\",DataLog!AE2055,\"\")","v":""},{"$f":"IF(DataLog!$C2055=\"Log value\",DataLog!AF2055,\"\")","v":""},{"$f":"IF(DataLog!$C2055=\"Log value\",DataLog!AG2055,\"\")","v":""},{"$f":"IF(DataLog!$C2055=\"Log value\",DataLog!AH2055,\"\")","v":""},{"$f":"IF(DataLog!$C2055=\"Log value\",DataLog!AI2055,\"\")","v":""},{"$f":"IF(DataLog!$C2055=\"Log value\",DataLog!AJ2055,\"\")","v":""},{"$f":"IF(DataLog!$C2055=\"Log value\",DataLog!AK2055,\"\")","v":""},{"$f":"IF(DataLog!$C2055=\"Log value\",DataLog!AL2055,\"\")","v":""},{"$f":"IF(DataLog!$C2055=\"Log value\",DataLog!AM2055,\"\")","v":""}]
[null,null,null,null,null,null,{"$f":"IF(DataLog!$C2059=\"Log value\",DataLog!D2059&\"_\"&TEXT(DataLog!B2059,\"åååå-mm-dd\"),\"\")","v":""},{"$f":"IF(DataLog!$C2059=\"Log value\",DataLog!E2059,\"\")","v":""},{"$f":"IF(DataLog!$C2059=\"Log value\",DataLog!F2059,\"\")","v":""},{"$f":"IF(DataLog!$C2059=\"Log value\",DataLog!G2059,\"\")","v":""},{"$f":"IF(DataLog!$C2059=\"Log value\",DataLog!H2059,\"\")","v":""},{"$f":"IF(DataLog!$C2059=\"Log value\",DataLog!I2059,\"\")","v":""},{"$f":"IF(DataLog!$C2059=\"Log value\",DataLog!J2059,\"\")","v":""},{"$f":"IF(DataLog!$C2059=\"Log value\",DataLog!K2059,\"\")","v":""},{"$f":"IF(DataLog!$C2059=\"Log value\",DataLog!L2059,\"\")","v":""},{"$f":"IF(DataLog!$C2059=\"Log value\",DataLog!M2059,\"\")","v":""},{"$f":"IF(DataLog!$C2059=\"Log value\",DataLog!N2059,\"\")","v":""},{"$f":"IF(DataLog!$C2059=\"Log value\",DataLog!O2059,\"\")","v":""},{"$f":"IF(DataLog!$C2059=\"Log value\",DataLog!P2059,\"\")","v":""},{"$f":"IF(DataLog!$C2059=\"Log value\",DataLog!Q2059,\"\")","v":""},{"$f":"IF(DataLog!$C2059=\"Log value\",DataLog!R2059,\"\")","v":""},{"$f":"IF(DataLog!$C2059=\"Log value\",DataLog!S2059,\"\")","v":""},{"$f":"IF(DataLog!$C2059=\"Log value\",DataLog!T2059,\"\")","v":""},{"$f":"IF(DataLog!$C2059=\"Log value\",DataLog!U2059,\"\")","v":""},{"$f":"IF(DataLog!$C2059=\"Log value\",DataLog!V2059,\"\")","v":""},{"$f":"IF(DataLog!$C2059=\"Log value\",DataLog!W2059,\"\")","v":""},{"$f":"IF(DataLog!$C2059=\"Log value\",DataLog!X2059,\"\")","v":""},{"$f":"IF(DataLog!$C2059=\"Log value\",DataLog!Y2059,\"\")","v":""},{"$f":"IF(DataLog!$C2059=\"Log value\",DataLog!Z2059,\"\")","v":""},{"$f":"IF(DataLog!$C2059=\"Log value\",DataLog!AA2059,\"\")","v":""},{"$f":"IF(DataLog!$C2059=\"Log value\",DataLog!AB2059,\"\")","v":""},{"$f":"IF(DataLog!$C2059=\"Log value\",DataLog!AC2059,\"\")","v":""},{"$f":"IF(DataLog!$C2059=\"Log value\",DataLog!AD2059,\"\")","v":""},{"$f":"IF(DataLog!$C2059=\"Log value\",DataLog!AE2059,\"\")","v":""},{"$f":"IF(DataLog!$C2059=\"Log value\",DataLog!AF2059,\"\")","v":""},{"$f":"IF(DataLog!$C2059=\"Log value\",DataLog!AG2059,\"\")","v":""},{"$f":"IF(DataLog!$C2059=\"Log value\",DataLog!AH2059,\"\")","v":""},{"$f":"IF(DataLog!$C2059=\"Log value\",DataLog!AI2059,\"\")","v":""},{"$f":"IF(DataLog!$C2059=\"Log value\",DataLog!AJ2059,\"\")","v":""},{"$f":"IF(DataLog!$C2059=\"Log value\",DataLog!AK2059,\"\")","v":""},{"$f":"IF(DataLog!$C2059=\"Log value\",DataLog!AL2059,\"\")","v":""},{"$f":"IF(DataLog!$C2059=\"Log value\",DataLog!AM2059,\"\")","v":""}]
[null,null,null,null,null,null,{"$f":"IF(DataLog!$C2060=\"Log value\",DataLog!D2060&\"_\"&TEXT(DataLog!B2060,\"åååå-mm-dd\"),\"\")","v":""},{"$f":"IF(DataLog!$C2060=\"Log value\",DataLog!E2060,\"\")","v":""},{"$f":"IF(DataLog!$C2060=\"Log value\",DataLog!F2060,\"\")","v":""},{"$f":"IF(DataLog!$C2060=\"Log value\",DataLog!G2060,\"\")","v":""},{"$f":"IF(DataLog!$C2060=\"Log value\",DataLog!H2060,\"\")","v":""},{"$f":"IF(DataLog!$C2060=\"Log value\",DataLog!I2060,\"\")","v":""},{"$f":"IF(DataLog!$C2060=\"Log value\",DataLog!J2060,\"\")","v":""},{"$f":"IF(DataLog!$C2060=\"Log value\",DataLog!K2060,\"\")","v":""},{"$f":"IF(DataLog!$C2060=\"Log value\",DataLog!L2060,\"\")","v":""},{"$f":"IF(DataLog!$C2060=\"Log value\",DataLog!M2060,\"\")","v":""},{"$f":"IF(DataLog!$C2060=\"Log value\",DataLog!N2060,\"\")","v":""},{"$f":"IF(DataLog!$C2060=\"Log value\",DataLog!O2060,\"\")","v":""},{"$f":"IF(DataLog!$C2060=\"Log value\",DataLog!P2060,\"\")","v":""},{"$f":"IF(DataLog!$C2060=\"Log value\",DataLog!Q2060,\"\")","v":""},{"$f":"IF(DataLog!$C2060=\"Log value\",DataLog!R2060,\"\")","v":""},{"$f":"IF(DataLog!$C2060=\"Log value\",DataLog!S2060,\"\")","v":""},{"$f":"IF(DataLog!$C2060=\"Log value\",DataLog!T2060,\"\")","v":""},{"$f":"IF(DataLog!$C2060=\"Log value\",DataLog!U2060,\"\")","v":""},{"$f":"IF(DataLog!$C2060=\"Log value\",DataLog!V2060,\"\")","v":""},{"$f":"IF(DataLog!$C2060=\"Log value\",DataLog!W2060,\"\")","v":""},{"$f":"IF(DataLog!$C2060=\"Log value\",DataLog!X2060,\"\")","v":""},{"$f":"IF(DataLog!$C2060=\"Log value\",DataLog!Y2060,\"\")","v":""},{"$f":"IF(DataLog!$C2060=\"Log value\",DataLog!Z2060,\"\")","v":""},{"$f":"IF(DataLog!$C2060=\"Log value\",DataLog!AA2060,\"\")","v":""},{"$f":"IF(DataLog!$C2060=\"Log value\",DataLog!AB2060,\"\")","v":""},{"$f":"IF(DataLog!$C2060=\"Log value\",DataLog!AC2060,\"\")","v":""},{"$f":"IF(DataLog!$C2060=\"Log value\",DataLog!AD2060,\"\")","v":""},{"$f":"IF(DataLog!$C2060=\"Log value\",DataLog!AE2060,\"\")","v":""},{"$f":"IF(DataLog!$C2060=\"Log value\",DataLog!AF2060,\"\")","v":""},{"$f":"IF(DataLog!$C2060=\"Log value\",DataLog!AG2060,\"\")","v":""},{"$f":"IF(DataLog!$C2060=\"Log value\",DataLog!AH2060,\"\")","v":""},{"$f":"IF(DataLog!$C2060=\"Log value\",DataLog!AI2060,\"\")","v":""},{"$f":"IF(DataLog!$C2060=\"Log value\",DataLog!AJ2060,\"\")","v":""},{"$f":"IF(DataLog!$C2060=\"Log value\",DataLog!AK2060,\"\")","v":""},{"$f":"IF(DataLog!$C2060=\"Log value\",DataLog!AL2060,\"\")","v":""},{"$f":"IF(DataLog!$C2060=\"Log value\",DataLog!AM2060,\"\")","v":""}]
[null,null,null,null,null,null,{"$f":"IF(DataLog!$C2063=\"Log value\",DataLog!D2063&\"_\"&TEXT(DataLog!B2063,\"åååå-mm-dd\"),\"\")","v":""},{"$f":"IF(DataLog!$C2063=\"Log value\",DataLog!E2063,\"\")","v":""},{"$f":"IF(DataLog!$C2063=\"Log value\",DataLog!F2063,\"\")","v":""},{"$f":"IF(DataLog!$C2063=\"Log value\",DataLog!G2063,\"\")","v":""},{"$f":"IF(DataLog!$C2063=\"Log value\",DataLog!H2063,\"\")","v":""},{"$f":"IF(DataLog!$C2063=\"Log value\",DataLog!I2063,\"\")","v":""},{"$f":"IF(DataLog!$C2063=\"Log value\",DataLog!J2063,\"\")","v":""},{"$f":"IF(DataLog!$C2063=\"Log value\",DataLog!K2063,\"\")","v":""},{"$f":"IF(DataLog!$C2063=\"Log value\",DataLog!L2063,\"\")","v":""},{"$f":"IF(DataLog!$C2063=\"Log value\",DataLog!M2063,\"\")","v":""},{"$f":"IF(DataLog!$C2063=\"Log value\",DataLog!N2063,\"\")","v":""},{"$f":"IF(DataLog!$C2063=\"Log value\",DataLog!O2063,\"\")","v":""},{"$f":"IF(DataLog!$C2063=\"Log value\",DataLog!P2063,\"\")","v":""},{"$f":"IF(DataLog!$C2063=\"Log value\",DataLog!Q2063,\"\")","v":""},{"$f":"IF(DataLog!$C2063=\"Log value\",DataLog!R2063,\"\")","v":""},{"$f":"IF(DataLog!$C2063=\"Log value\",DataLog!S2063,\"\")","v":""},{"$f":"IF(DataLog!$C2063=\"Log value\",DataLog!T2063,\"\")","v":""},{"$f":"IF(DataLog!$C2063=\"Log value\",DataLog!U2063,\"\")","v":""},{"$f":"IF(DataLog!$C2063=\"Log value\",DataLog!V2063,\"\")","v":""},{"$f":"IF(DataLog!$C2063=\"Log value\",DataLog!W2063,\"\")","v":""},{"$f":"IF(DataLog!$C2063=\"Log value\",DataLog!X2063,\"\")","v":""},{"$f":"IF(DataLog!$C2063=\"Log value\",DataLog!Y2063,\"\")","v":""},{"$f":"IF(DataLog!$C2063=\"Log value\",DataLog!Z2063,\"\")","v":""},{"$f":"IF(DataLog!$C2063=\"Log value\",DataLog!AA2063,\"\")","v":""},{"$f":"IF(DataLog!$C2063=\"Log value\",DataLog!AB2063,\"\")","v":""},{"$f":"IF(DataLog!$C2063=\"Log value\",DataLog!AC2063,\"\")","v":""},{"$f":"IF(DataLog!$C2063=\"Log value\",DataLog!AD2063,\"\")","v":""},{"$f":"IF(DataLog!$C2063=\"Log value\",DataLog!AE2063,\"\")","v":""},{"$f":"IF(DataLog!$C2063=\"Log value\",DataLog!AF2063,\"\")","v":""},{"$f":"IF(DataLog!$C2063=\"Log value\",DataLog!AG2063,\"\")","v":""},{"$f":"IF(DataLog!$C2063=\"Log value\",DataLog!AH2063,\"\")","v":""},{"$f":"IF(DataLog!$C2063=\"Log value\",DataLog!AI2063,\"\")","v":""},{"$f":"IF(DataLog!$C2063=\"Log value\",DataLog!AJ2063,\"\")","v":""},{"$f":"IF(DataLog!$C2063=\"Log value\",DataLog!AK2063,\"\")","v":""},{"$f":"IF(DataLog!$C2063=\"Log value\",DataLog!AL2063,\"\")","v":""},{"$f":"IF(DataLog!$C2063=\"Log value\",DataLog!AM2063,\"\")","v":""}]
[null,null,null,null,null,null,{"$f":"IF(DataLog!$C2064=\"Log value\",DataLog!D2064&\"_\"&TEXT(DataLog!B2064,\"åååå-mm-dd\"),\"\")","v":""},{"$f":"IF(DataLog!$C2064=\"Log value\",DataLog!E2064,\"\")","v":""},{"$f":"IF(DataLog!$C2064=\"Log value\",DataLog!F2064,\"\")","v":""},{"$f":"IF(DataLog!$C2064=\"Log value\",DataLog!G2064,\"\")","v":""},{"$f":"IF(DataLog!$C2064=\"Log value\",DataLog!H2064,\"\")","v":""},{"$f":"IF(DataLog!$C2064=\"Log value\",DataLog!I2064,\"\")","v":""},{"$f":"IF(DataLog!$C2064=\"Log value\",DataLog!J2064,\"\")","v":""},{"$f":"IF(DataLog!$C2064=\"Log value\",DataLog!K2064,\"\")","v":""},{"$f":"IF(DataLog!$C2064=\"Log value\",DataLog!L2064,\"\")","v":""},{"$f":"IF(DataLog!$C2064=\"Log value\",DataLog!M2064,\"\")","v":""},{"$f":"IF(DataLog!$C2064=\"Log value\",DataLog!N2064,\"\")","v":""},{"$f":"IF(DataLog!$C2064=\"Log value\",DataLog!O2064,\"\")","v":""},{"$f":"IF(DataLog!$C2064=\"Log value\",DataLog!P2064,\"\")","v":""},{"$f":"IF(DataLog!$C2064=\"Log value\",DataLog!Q2064,\"\")","v":""},{"$f":"IF(DataLog!$C2064=\"Log value\",DataLog!R2064,\"\")","v":""},{"$f":"IF(DataLog!$C2064=\"Log value\",DataLog!S2064,\"\")","v":""},{"$f":"IF(DataLog!$C2064=\"Log value\",DataLog!T2064,\"\")","v":""},{"$f":"IF(DataLog!$C2064=\"Log value\",DataLog!U2064,\"\")","v":""},{"$f":"IF(DataLog!$C2064=\"Log value\",DataLog!V2064,\"\")","v":""},{"$f":"IF(DataLog!$C2064=\"Log value\",DataLog!W2064,\"\")","v":""},{"$f":"IF(DataLog!$C2064=\"Log value\",DataLog!X2064,\"\")","v":""},{"$f":"IF(DataLog!$C2064=\"Log value\",DataLog!Y2064,\"\")","v":""},{"$f":"IF(DataLog!$C2064=\"Log value\",DataLog!Z2064,\"\")","v":""},{"$f":"IF(DataLog!$C2064=\"Log value\",DataLog!AA2064,\"\")","v":""},{"$f":"IF(DataLog!$C2064=\"Log value\",DataLog!AB2064,\"\")","v":""},{"$f":"IF(DataLog!$C2064=\"Log value\",DataLog!AC2064,\"\")","v":""},{"$f":"IF(DataLog!$C2064=\"Log value\",DataLog!AD2064,\"\")","v":""},{"$f":"IF(DataLog!$C2064=\"Log value\",DataLog!AE2064,\"\")","v":""},{"$f":"IF(DataLog!$C2064=\"Log value\",DataLog!AF2064,\"\")","v":""},{"$f":"IF(DataLog!$C2064=\"Log value\",DataLog!AG2064,\"\")","v":""},{"$f":"IF(DataLog!$C2064=\"Log value\",DataLog!AH2064,\"\")","v":""},{"$f":"IF(DataLog!$C2064=\"Log value\",DataLog!AI2064,\"\")","v":""},{"$f":"IF(DataLog!$C2064=\"Log value\",DataLog!AJ2064,\"\")","v":""},{"$f":"IF(DataLog!$C2064=\"Log value\",DataLog!AK2064,\"\")","v":""},{"$f":"IF(DataLog!$C2064=\"Log value\",DataLog!AL2064,\"\")","v":""},{"$f":"IF(DataLog!$C2064=\"Log value\",DataLog!AM2064,\"\")","v":""}]
[null,null,null,null,null,null,{"$f":"IF(DataLog!$C2066=\"Log value\",DataLog!D2066&\"_\"&TEXT(DataLog!B2066,\"åååå-mm-dd\"),\"\")","v":""},{"$f":"IF(DataLog!$C2066=\"Log value\",DataLog!E2066,\"\")","v":""},{"$f":"IF(DataLog!$C2066=\"Log value\",DataLog!F2066,\"\")","v":""},{"$f":"IF(DataLog!$C2066=\"Log value\",DataLog!G2066,\"\")","v":""},{"$f":"IF(DataLog!$C2066=\"Log value\",DataLog!H2066,\"\")","v":""},{"$f":"IF(DataLog!$C2066=\"Log value\",DataLog!I2066,\"\")","v":""},{"$f":"IF(DataLog!$C2066=\"Log value\",DataLog!J2066,\"\")","v":""},{"$f":"IF(DataLog!$C2066=\"Log value\",DataLog!K2066,\"\")","v":""},{"$f":"IF(DataLog!$C2066=\"Log value\",DataLog!L2066,\"\")","v":""},{"$f":"IF(DataLog!$C2066=\"Log value\",DataLog!M2066,\"\")","v":""},{"$f":"IF(DataLog!$C2066=\"Log value\",DataLog!N2066,\"\")","v":""},{"$f":"IF(DataLog!$C2066=\"Log value\",DataLog!O2066,\"\")","v":""},{"$f":"IF(DataLog!$C2066=\"Log value\",DataLog!P2066,\"\")","v":""},{"$f":"IF(DataLog!$C2066=\"Log value\",DataLog!Q2066,\"\")","v":""},{"$f":"IF(DataLog!$C2066=\"Log value\",DataLog!R2066,\"\")","v":""},{"$f":"IF(DataLog!$C2066=\"Log value\",DataLog!S2066,\"\")","v":""},{"$f":"IF(DataLog!$C2066=\"Log value\",DataLog!T2066,\"\")","v":""},{"$f":"IF(DataLog!$C2066=\"Log value\",DataLog!U2066,\"\")","v":""},{"$f":"IF(DataLog!$C2066=\"Log value\",DataLog!V2066,\"\")","v":""},{"$f":"IF(DataLog!$C2066=\"Log value\",DataLog!W2066,\"\")","v":""},{"$f":"IF(DataLog!$C2066=\"Log value\",DataLog!X2066,\"\")","v":""},{"$f":"IF(DataLog!$C2066=\"Log value\",DataLog!Y2066,\"\")","v":""},{"$f":"IF(DataLog!$C2066=\"Log value\",DataLog!Z2066,\"\")","v":""},{"$f":"IF(DataLog!$C2066=\"Log value\",DataLog!AA2066,\"\")","v":""},{"$f":"IF(DataLog!$C2066=\"Log value\",DataLog!AB2066,\"\")","v":""},{"$f":"IF(DataLog!$C2066=\"Log value\",DataLog!AC2066,\"\")","v":""},{"$f":"IF(DataLog!$C2066=\"Log value\",DataLog!AD2066,\"\")","v":""},{"$f":"IF(DataLog!$C2066=\"Log value\",DataLog!AE2066,\"\")","v":""},{"$f":"IF(DataLog!$C2066=\"Log value\",DataLog!AF2066,\"\")","v":""},{"$f":"IF(DataLog!$C2066=\"Log value\",DataLog!AG2066,\"\")","v":""},{"$f":"IF(DataLog!$C2066=\"Log value\",DataLog!AH2066,\"\")","v":""},{"$f":"IF(DataLog!$C2066=\"Log value\",DataLog!AI2066,\"\")","v":""},{"$f":"IF(DataLog!$C2066=\"Log value\",DataLog!AJ2066,\"\")","v":""},{"$f":"IF(DataLog!$C2066=\"Log value\",DataLog!AK2066,\"\")","v":""},{"$f":"IF(DataLog!$C2066=\"Log value\",DataLog!AL2066,\"\")","v":""},{"$f":"IF(DataLog!$C2066=\"Log value\",DataLog!AM2066,\"\")","v":""}]
[null,null,null,null,null,null,{"$f":"IF(DataLog!$C2069=\"Log value\",DataLog!D2069&\"_\"&TEXT(DataLog!B2069,\"åååå-mm-dd\"),\"\")","v":""},{"$f":"IF(DataLog!$C2069=\"Log value\",DataLog!E2069,\"\")","v":""},{"$f":"IF(DataLog!$C2069=\"Log value\",DataLog!F2069,\"\")","v":""},{"$f":"IF(DataLog!$C2069=\"Log value\",DataLog!G2069,\"\")","v":""},{"$f":"IF(DataLog!$C2069=\"Log value\",DataLog!H2069,\"\")","v":""},{"$f":"IF(DataLog!$C2069=\"Log value\",DataLog!I2069,\"\")","v":""},{"$f":"IF(DataLog!$C2069=\"Log value\",DataLog!J2069,\"\")","v":""},{"$f":"IF(DataLog!$C2069=\"Log value\",DataLog!K2069,\"\")","v":""},{"$f":"IF(DataLog!$C2069=\"Log value\",DataLog!L2069,\"\")","v":""},{"$f":"IF(DataLog!$C2069=\"Log value\",DataLog!M2069,\"\")","v":""},{"$f":"IF(DataLog!$C2069=\"Log value\",DataLog!N2069,\"\")","v":""},{"$f":"IF(DataLog!$C2069=\"Log value\",DataLog!O2069,\"\")","v":""},{"$f":"IF(DataLog!$C2069=\"Log value\",DataLog!P2069,\"\")","v":""},{"$f":"IF(DataLog!$C2069=\"Log value\",DataLog!Q2069,\"\")","v":""},{"$f":"IF(DataLog!$C2069=\"Log value\",DataLog!R2069,\"\")","v":""},{"$f":"IF(DataLog!$C2069=\"Log value\",DataLog!S2069,\"\")","v":""},{"$f":"IF(DataLog!$C2069=\"Log value\",DataLog!T2069,\"\")","v":""},{"$f":"IF(DataLog!$C2069=\"Log value\",DataLog!U2069,\"\")","v":""},{"$f":"IF(DataLog!$C2069=\"Log value\",DataLog!V2069,\"\")","v":""},{"$f":"IF(DataLog!$C2069=\"Log value\",DataLog!W2069,\"\")","v":""},{"$f":"IF(DataLog!$C2069=\"Log value\",DataLog!X2069,\"\")","v":""},{"$f":"IF(DataLog!$C2069=\"Log value\",DataLog!Y2069,\"\")","v":""},{"$f":"IF(DataLog!$C2069=\"Log value\",DataLog!Z2069,\"\")","v":""},{"$f":"IF(DataLog!$C2069=\"Log value\",DataLog!AA2069,\"\")","v":""},{"$f":"IF(DataLog!$C2069=\"Log value\",DataLog!AB2069,\"\")","v":""},{"$f":"IF(DataLog!$C2069=\"Log value\",DataLog!AC2069,\"\")","v":""},{"$f":"IF(DataLog!$C2069=\"Log value\",DataLog!AD2069,\"\")","v":""},{"$f":"IF(DataLog!$C2069=\"Log value\",DataLog!AE2069,\"\")","v":""},{"$f":"IF(DataLog!$C2069=\"Log value\",DataLog!AF2069,\"\")","v":""},{"$f":"IF(DataLog!$C2069=\"Log value\",DataLog!AG2069,\"\")","v":""},{"$f":"IF(DataLog!$C2069=\"Log value\",DataLog!AH2069,\"\")","v":""},{"$f":"IF(DataLog!$C2069=\"Log value\",DataLog!AI2069,\"\")","v":""},{"$f":"IF(DataLog!$C2069=\"Log value\",DataLog!AJ2069,\"\")","v":""},{"$f":"IF(DataLog!$C2069=\"Log value\",DataLog!AK2069,\"\")","v":""},{"$f":"IF(DataLog!$C2069=\"Log value\",DataLog!AL2069,\"\")","v":""},{"$f":"IF(DataLog!$C2069=\"Log value\",DataLog!AM2069,\"\")","v":""}]
[null,null,null,null,null,null,{"$f":"IF(DataLog!$C2072=\"Log value\",DataLog!D2072&\"_\"&TEXT(DataLog!B2072,\"åååå-mm-dd\"),\"\")","v":""},{"$f":"IF(DataLog!$C2072=\"Log value\",DataLog!E2072,\"\")","v":""},{"$f":"IF(DataLog!$C2072=\"Log value\",DataLog!F2072,\"\")","v":""},{"$f":"IF(DataLog!$C2072=\"Log value\",DataLog!G2072,\"\")","v":""},{"$f":"IF(DataLog!$C2072=\"Log value\",DataLog!H2072,\"\")","v":""},{"$f":"IF(DataLog!$C2072=\"Log value\",DataLog!I2072,\"\")","v":""},{"$f":"IF(DataLog!$C2072=\"Log value\",DataLog!J2072,\"\")","v":""},{"$f":"IF(DataLog!$C2072=\"Log value\",DataLog!K2072,\"\")","v":""},{"$f":"IF(DataLog!$C2072=\"Log value\",DataLog!L2072,\"\")","v":""},{"$f":"IF(DataLog!$C2072=\"Log value\",DataLog!M2072,\"\")","v":""},{"$f":"IF(DataLog!$C2072=\"Log value\",DataLog!N2072,\"\")","v":""},{"$f":"IF(DataLog!$C2072=\"Log value\",DataLog!O2072,\"\")","v":""},{"$f":"IF(DataLog!$C2072=\"Log value\",DataLog!P2072,\"\")","v":""},{"$f":"IF(DataLog!$C2072=\"Log value\",DataLog!Q2072,\"\")","v":""},{"$f":"IF(DataLog!$C2072=\"Log value\",DataLog!R2072,\"\")","v":""},{"$f":"IF(DataLog!$C2072=\"Log value\",DataLog!S2072,\"\")","v":""},{"$f":"IF(DataLog!$C2072=\"Log value\",DataLog!T2072,\"\")","v":""},{"$f":"IF(DataLog!$C2072=\"Log value\",DataLog!U2072,\"\")","v":""},{"$f":"IF(DataLog!$C2072=\"Log value\",DataLog!V2072,\"\")","v":""},{"$f":"IF(DataLog!$C2072=\"Log value\",DataLog!W2072,\"\")","v":""},{"$f":"IF(DataLog!$C2072=\"Log value\",DataLog!X2072,\"\")","v":""},{"$f":"IF(DataLog!$C2072=\"Log value\",DataLog!Y2072,\"\")","v":""},{"$f":"IF(DataLog!$C2072=\"Log value\",DataLog!Z2072,\"\")","v":""},{"$f":"IF(DataLog!$C2072=\"Log value\",DataLog!AA2072,\"\")","v":""},{"$f":"IF(DataLog!$C2072=\"Log value\",DataLog!AB2072,\"\")","v":""},{"$f":"IF(DataLog!$C2072=\"Log value\",DataLog!AC2072,\"\")","v":""},{"$f":"IF(DataLog!$C2072=\"Log value\",DataLog!AD2072,\"\")","v":""},{"$f":"IF(DataLog!$C2072=\"Log value\",DataLog!AE2072,\"\")","v":""},{"$f":"IF(DataLog!$C2072=\"Log value\",DataLog!AF2072,\"\")","v":""},{"$f":"IF(DataLog!$C2072=\"Log value\",DataLog!AG2072,\"\")","v":""},{"$f":"IF(DataLog!$C2072=\"Log value\",DataLog!AH2072,\"\")","v":""},{"$f":"IF(DataLog!$C2072=\"Log value\",DataLog!AI2072,\"\")","v":""},{"$f":"IF(DataLog!$C2072=\"Log value\",DataLog!AJ2072,\"\")","v":""},{"$f":"IF(DataLog!$C2072=\"Log value\",DataLog!AK2072,\"\")","v":""},{"$f":"IF(DataLog!$C2072=\"Log value\",DataLog!AL2072,\"\")","v":""},{"$f":"IF(DataLog!$C2072=\"Log value\",DataLog!AM2072,\"\")","v":""}]
[null,null,null,null,null,null,{"$f":"IF(DataLog!$C2073=\"Log value\",DataLog!D2073&\"_\"&TEXT(DataLog!B2073,\"åååå-mm-dd\"),\"\")","v":""},{"$f":"IF(DataLog!$C2073=\"Log value\",DataLog!E2073,\"\")","v":""},{"$f":"IF(DataLog!$C2073=\"Log value\",DataLog!F2073,\"\")","v":""},{"$f":"IF(DataLog!$C2073=\"Log value\",DataLog!G2073,\"\")","v":""},{"$f":"IF(DataLog!$C2073=\"Log value\",DataLog!H2073,\"\")","v":""},{"$f":"IF(DataLog!$C2073=\"Log value\",DataLog!I2073,\"\")","v":""},{"$f":"IF(DataLog!$C2073=\"Log value\",DataLog!J2073,\"\")","v":""},{"$f":"IF(DataLog!$C2073=\"Log value\",DataLog!K2073,\"\")","v":""},{"$f":"IF(DataLog!$C2073=\"Log value\",DataLog!L2073,\"\")","v":""},{"$f":"IF(DataLog!$C2073=\"Log value\",DataLog!M2073,\"\")","v":""},{"$f":"IF(DataLog!$C2073=\"Log value\",DataLog!N2073,\"\")","v":""},{"$f":"IF(DataLog!$C2073=\"Log value\",DataLog!O2073,\"\")","v":""},{"$f":"IF(DataLog!$C2073=\"Log value\",DataLog!P2073,\"\")","v":""},{"$f":"IF(DataLog!$C2073=\"Log value\",DataLog!Q2073,\"\")","v":""},{"$f":"IF(DataLog!$C2073=\"Log value\",DataLog!R2073,\"\")","v":""},{"$f":"IF(DataLog!$C2073=\"Log value\",DataLog!S2073,\"\")","v":""},{"$f":"IF(DataLog!$C2073=\"Log value\",DataLog!T2073,\"\")","v":""},{"$f":"IF(DataLog!$C2073=\"Log value\",DataLog!U2073,\"\")","v":""},{"$f":"IF(DataLog!$C2073=\"Log value\",DataLog!V2073,\"\")","v":""},{"$f":"IF(DataLog!$C2073=\"Log value\",DataLog!W2073,\"\")","v":""},{"$f":"IF(DataLog!$C2073=\"Log value\",DataLog!X2073,\"\")","v":""},{"$f":"IF(DataLog!$C2073=\"Log value\",DataLog!Y2073,\"\")","v":""},{"$f":"IF(DataLog!$C2073=\"Log value\",DataLog!Z2073,\"\")","v":""},{"$f":"IF(DataLog!$C2073=\"Log value\",DataLog!AA2073,\"\")","v":""},{"$f":"IF(DataLog!$C2073=\"Log value\",DataLog!AB2073,\"\")","v":""},{"$f":"IF(DataLog!$C2073=\"Log value\",DataLog!AC2073,\"\")","v":""},{"$f":"IF(DataLog!$C2073=\"Log value\",DataLog!AD2073,\"\")","v":""},{"$f":"IF(DataLog!$C2073=\"Log value\",DataLog!AE2073,\"\")","v":""},{"$f":"IF(DataLog!$C2073=\"Log value\",DataLog!AF2073,\"\")","v":""},{"$f":"IF(DataLog!$C2073=\"Log value\",DataLog!AG2073,\"\")","v":""},{"$f":"IF(DataLog!$C2073=\"Log value\",DataLog!AH2073,\"\")","v":""},{"$f":"IF(DataLog!$C2073=\"Log value\",DataLog!AI2073,\"\")","v":""},{"$f":"IF(DataLog!$C2073=\"Log value\",DataLog!AJ2073,\"\")","v":""},{"$f":"IF(DataLog!$C2073=\"Log value\",DataLog!AK2073,\"\")","v":""},{"$f":"IF(DataLog!$C2073=\"Log value\",DataLog!AL2073,\"\")","v":""},{"$f":"IF(DataLog!$C2073=\"Log value\",DataLog!AM2073,\"\")","v":""}]
[null,null,null,null,null,null,{"$f":"IF(DataLog!$C2077=\"Log value\",DataLog!D2077&\"_\"&TEXT(DataLog!B2077,\"åååå-mm-dd\"),\"\")","v":""},{"$f":"IF(DataLog!$C2077=\"Log value\",DataLog!E2077,\"\")","v":""},{"$f":"IF(DataLog!$C2077=\"Log value\",DataLog!F2077,\"\")","v":""},{"$f":"IF(DataLog!$C2077=\"Log value\",DataLog!G2077,\"\")","v":""},{"$f":"IF(DataLog!$C2077=\"Log value\",DataLog!H2077,\"\")","v":""},{"$f":"IF(DataLog!$C2077=\"Log value\",DataLog!I2077,\"\")","v":""},{"$f":"IF(DataLog!$C2077=\"Log value\",DataLog!J2077,\"\")","v":""},{"$f":"IF(DataLog!$C2077=\"Log value\",DataLog!K2077,\"\")","v":""},{"$f":"IF(DataLog!$C2077=\"Log value\",DataLog!L2077,\"\")","v":""},{"$f":"IF(DataLog!$C2077=\"Log value\",DataLog!M2077,\"\")","v":""},{"$f":"IF(DataLog!$C2077=\"Log value\",DataLog!N2077,\"\")","v":""},{"$f":"IF(DataLog!$C2077=\"Log value\",DataLog!O2077,\"\")","v":""},{"$f":"IF(DataLog!$C2077=\"Log value\",DataLog!P2077,\"\")","v":""},{"$f":"IF(DataLog!$C2077=\"Log value\",DataLog!Q2077,\"\")","v":""},{"$f":"IF(DataLog!$C2077=\"Log value\",DataLog!R2077,\"\")","v":""},{"$f":"IF(DataLog!$C2077=\"Log value\",DataLog!S2077,\"\")","v":""},{"$f":"IF(DataLog!$C2077=\"Log value\",DataLog!T2077,\"\")","v":""},{"$f":"IF(DataLog!$C2077=\"Log value\",DataLog!U2077,\"\")","v":""},{"$f":"IF(DataLog!$C2077=\"Log value\",DataLog!V2077,\"\")","v":""},{"$f":"IF(DataLog!$C2077=\"Log value\",DataLog!W2077,\"\")","v":""},{"$f":"IF(DataLog!$C2077=\"Log value\",DataLog!X2077,\"\")","v":""},{"$f":"IF(DataLog!$C2077=\"Log value\",DataLog!Y2077,\"\")","v":""},{"$f":"IF(DataLog!$C2077=\"Log value\",DataLog!Z2077,\"\")","v":""},{"$f":"IF(DataLog!$C2077=\"Log value\",DataLog!AA2077,\"\")","v":""},{"$f":"IF(DataLog!$C2077=\"Log value\",DataLog!AB2077,\"\")","v":""},{"$f":"IF(DataLog!$C2077=\"Log value\",DataLog!AC2077,\"\")","v":""},{"$f":"IF(DataLog!$C2077=\"Log value\",DataLog!AD2077,\"\")","v":""},{"$f":"IF(DataLog!$C2077=\"Log value\",DataLog!AE2077,\"\")","v":""},{"$f":"IF(DataLog!$C2077=\"Log value\",DataLog!AF2077,\"\")","v":""},{"$f":"IF(DataLog!$C2077=\"Log value\",DataLog!AG2077,\"\")","v":""},{"$f":"IF(DataLog!$C2077=\"Log value\",DataLog!AH2077,\"\")","v":""},{"$f":"IF(DataLog!$C2077=\"Log value\",DataLog!AI2077,\"\")","v":""},{"$f":"IF(DataLog!$C2077=\"Log value\",DataLog!AJ2077,\"\")","v":""},{"$f":"IF(DataLog!$C2077=\"Log value\",DataLog!AK2077,\"\")","v":""},{"$f":"IF(DataLog!$C2077=\"Log value\",DataLog!AL2077,\"\")","v":""},{"$f":"IF(DataLog!$C2077=\"Log value\",DataLog!AM2077,\"\")","v":""}]
[null,null,null,null,null,null,{"$f":"IF(DataLog!$C2078=\"Log value\",DataLog!D2078&\"_\"&TEXT(DataLog!B2078,\"åååå-mm-dd\"),\"\")","v":""},{"$f":"IF(DataLog!$C2078=\"Log value\",DataLog!E2078,\"\")","v":""},{"$f":"IF(DataLog!$C2078=\"Log value\",DataLog!F2078,\"\")","v":""},{"$f":"IF(DataLog!$C2078=\"Log value\",DataLog!G2078,\"\")","v":""},{"$f":"IF(DataLog!$C2078=\"Log value\",DataLog!H2078,\"\")","v":""},{"$f":"IF(DataLog!$C2078=\"Log value\",DataLog!I2078,\"\")","v":""},{"$f":"IF(DataLog!$C2078=\"Log value\",DataLog!J2078,\"\")","v":""},{"$f":"IF(DataLog!$C2078=\"Log value\",DataLog!K2078,\"\")","v":""},{"$f":"IF(DataLog!$C2078=\"Log value\",DataLog!L2078,\"\")","v":""},{"$f":"IF(DataLog!$C2078=\"Log value\",DataLog!M2078,\"\")","v":""},{"$f":"IF(DataLog!$C2078=\"Log value\",DataLog!N2078,\"\")","v":""},{"$f":"IF(DataLog!$C2078=\"Log value\",DataLog!O2078,\"\")","v":""},{"$f":"IF(DataLog!$C2078=\"Log value\",DataLog!P2078,\"\")","v":""},{"$f":"IF(DataLog!$C2078=\"Log value\",DataLog!Q2078,\"\")","v":""},{"$f":"IF(DataLog!$C2078=\"Log value\",DataLog!R2078,\"\")","v":""},{"$f":"IF(DataLog!$C2078=\"Log value\",DataLog!S2078,\"\")","v":""},{"$f":"IF(DataLog!$C2078=\"Log value\",DataLog!T2078,\"\")","v":""},{"$f":"IF(DataLog!$C2078=\"Log value\",DataLog!U2078,\"\")","v":""},{"$f":"IF(DataLog!$C2078=\"Log value\",DataLog!V2078,\"\")","v":""},{"$f":"IF(DataLog!$C2078=\"Log value\",DataLog!W2078,\"\")","v":""},{"$f":"IF(DataLog!$C2078=\"Log value\",DataLog!X2078,\"\")","v":""},{"$f":"IF(DataLog!$C2078=\"Log value\",DataLog!Y2078,\"\")","v":""},{"$f":"IF(DataLog!$C2078=\"Log value\",DataLog!Z2078,\"\")","v":""},{"$f":"IF(DataLog!$C2078=\"Log value\",DataLog!AA2078,\"\")","v":""},{"$f":"IF(DataLog!$C2078=\"Log value\",DataLog!AB2078,\"\")","v":""},{"$f":"IF(DataLog!$C2078=\"Log value\",DataLog!AC2078,\"\")","v":""},{"$f":"IF(DataLog!$C2078=\"Log value\",DataLog!AD2078,\"\")","v":""},{"$f":"IF(DataLog!$C2078=\"Log value\",DataLog!AE2078,\"\")","v":""},{"$f":"IF(DataLog!$C2078=\"Log value\",DataLog!AF2078,\"\")","v":""},{"$f":"IF(DataLog!$C2078=\"Log value\",DataLog!AG2078,\"\")","v":""},{"$f":"IF(DataLog!$C2078=\"Log value\",DataLog!AH2078,\"\")","v":""},{"$f":"IF(DataLog!$C2078=\"Log value\",DataLog!AI2078,\"\")","v":""},{"$f":"IF(DataLog!$C2078=\"Log value\",DataLog!AJ2078,\"\")","v":""},{"$f":"IF(DataLog!$C2078=\"Log value\",DataLog!AK2078,\"\")","v":""},{"$f":"IF(DataLog!$C2078=\"Log value\",DataLog!AL2078,\"\")","v":""},{"$f":"IF(DataLog!$C2078=\"Log value\",DataLog!AM2078,\"\")","v":""}]
[null,null,null,null,null,null,{"$f":"IF(DataLog!$C2081=\"Log value\",DataLog!D2081&\"_\"&TEXT(DataLog!B2081,\"åååå-mm-dd\"),\"\")","v":""},{"$f":"IF(DataLog!$C2081=\"Log value\",DataLog!E2081,\"\")","v":""},{"$f":"IF(DataLog!$C2081=\"Log value\",DataLog!F2081,\"\")","v":""},{"$f":"IF(DataLog!$C2081=\"Log value\",DataLog!G2081,\"\")","v":""},{"$f":"IF(DataLog!$C2081=\"Log value\",DataLog!H2081,\"\")","v":""},{"$f":"IF(DataLog!$C2081=\"Log value\",DataLog!I2081,\"\")","v":""},{"$f":"IF(DataLog!$C2081=\"Log value\",DataLog!J2081,\"\")","v":""},{"$f":"IF(DataLog!$C2081=\"Log value\",DataLog!K2081,\"\")","v":""},{"$f":"IF(DataLog!$C2081=\"Log value\",DataLog!L2081,\"\")","v":""},{"$f":"IF(DataLog!$C2081=\"Log value\",DataLog!M2081,\"\")","v":""},{"$f":"IF(DataLog!$C2081=\"Log value\",DataLog!N2081,\"\")","v":""},{"$f":"IF(DataLog!$C2081=\"Log value\",DataLog!O2081,\"\")","v":""},{"$f":"IF(DataLog!$C2081=\"Log value\",DataLog!P2081,\"\")","v":""},{"$f":"IF(DataLog!$C2081=\"Log value\",DataLog!Q2081,\"\")","v":""},{"$f":"IF(DataLog!$C2081=\"Log value\",DataLog!R2081,\"\")","v":""},{"$f":"IF(DataLog!$C2081=\"Log value\",DataLog!S2081,\"\")","v":""},{"$f":"IF(DataLog!$C2081=\"Log value\",DataLog!T2081,\"\")","v":""},{"$f":"IF(DataLog!$C2081=\"Log value\",DataLog!U2081,\"\")","v":""},{"$f":"IF(DataLog!$C2081=\"Log value\",DataLog!V2081,\"\")","v":""},{"$f":"IF(DataLog!$C2081=\"Log value\",DataLog!W2081,\"\")","v":""},{"$f":"IF(DataLog!$C2081=\"Log value\",DataLog!X2081,\"\")","v":""},{"$f":"IF(DataLog!$C2081=\"Log value\",DataLog!Y2081,\"\")","v":""},{"$f":"IF(DataLog!$C2081=\"Log value\",DataLog!Z2081,\"\")","v":""},{"$f":"IF(DataLog!$C2081=\"Log value\",DataLog!AA2081,\"\")","v":""},{"$f":"IF(DataLog!$C2081=\"Log value\",DataLog!AB2081,\"\")","v":""},{"$f":"IF(DataLog!$C2081=\"Log value\",DataLog!AC2081,\"\")","v":""},{"$f":"IF(DataLog!$C2081=\"Log value\",DataLog!AD2081,\"\")","v":""},{"$f":"IF(DataLog!$C2081=\"Log value\",DataLog!AE2081,\"\")","v":""},{"$f":"IF(DataLog!$C2081=\"Log value\",DataLog!AF2081,\"\")","v":""},{"$f":"IF(DataLog!$C2081=\"Log value\",DataLog!AG2081,\"\")","v":""},{"$f":"IF(DataLog!$C2081=\"Log value\",DataLog!AH2081,\"\")","v":""},{"$f":"IF(DataLog!$C2081=\"Log value\",DataLog!AI2081,\"\")","v":""},{"$f":"IF(DataLog!$C2081=\"Log value\",DataLog!AJ2081,\"\")","v":""},{"$f":"IF(DataLog!$C2081=\"Log value\",DataLog!AK2081,\"\")","v":""},{"$f":"IF(DataLog!$C2081=\"Log value\",DataLog!AL2081,\"\")","v":""},{"$f":"IF(DataLog!$C2081=\"Log value\",DataLog!AM2081,\"\")","v":""}]
[null,null,null,null,null,null,{"$f":"IF(DataLog!$C2082=\"Log value\",DataLog!D2082&\"_\"&TEXT(DataLog!B2082,\"åååå-mm-dd\"),\"\")","v":""},{"$f":"IF(DataLog!$C2082=\"Log value\",DataLog!E2082,\"\")","v":""},{"$f":"IF(DataLog!$C2082=\"Log value\",DataLog!F2082,\"\")","v":""},{"$f":"IF(DataLog!$C2082=\"Log value\",DataLog!G2082,\"\")","v":""},{"$f":"IF(DataLog!$C2082=\"Log value\",DataLog!H2082,\"\")","v":""},{"$f":"IF(DataLog!$C2082=\"Log value\",DataLog!I2082,\"\")","v":""},{"$f":"IF(DataLog!$C2082=\"Log value\",DataLog!J2082,\"\")","v":""},{"$f":"IF(DataLog!$C2082=\"Log value\",DataLog!K2082,\"\")","v":""},{"$f":"IF(DataLog!$C2082=\"Log value\",DataLog!L2082,\"\")","v":""},{"$f":"IF(DataLog!$C2082=\"Log value\",DataLog!M2082,\"\")","v":""},{"$f":"IF(DataLog!$C2082=\"Log value\",DataLog!N2082,\"\")","v":""},{"$f":"IF(DataLog!$C2082=\"Log value\",DataLog!O2082,\"\")","v":""},{"$f":"IF(DataLog!$C2082=\"Log value\",DataLog!P2082,\"\")","v":""},{"$f":"IF(DataLog!$C2082=\"Log value\",DataLog!Q2082,\"\")","v":""},{"$f":"IF(DataLog!$C2082=\"Log value\",DataLog!R2082,\"\")","v":""},{"$f":"IF(DataLog!$C2082=\"Log value\",DataLog!S2082,\"\")","v":""},{"$f":"IF(DataLog!$C2082=\"Log value\",DataLog!T2082,\"\")","v":""},{"$f":"IF(DataLog!$C2082=\"Log value\",DataLog!U2082,\"\")","v":""},{"$f":"IF(DataLog!$C2082=\"Log value\",DataLog!V2082,\"\")","v":""},{"$f":"IF(DataLog!$C2082=\"Log value\",DataLog!W2082,\"\")","v":""},{"$f":"IF(DataLog!$C2082=\"Log value\",DataLog!X2082,\"\")","v":""},{"$f":"IF(DataLog!$C2082=\"Log value\",DataLog!Y2082,\"\")","v":""},{"$f":"IF(DataLog!$C2082=\"Log value\",DataLog!Z2082,\"\")","v":""},{"$f":"IF(DataLog!$C2082=\"Log value\",DataLog!AA2082,\"\")","v":""},{"$f":"IF(DataLog!$C2082=\"Log value\",DataLog!AB2082,\"\")","v":""},{"$f":"IF(DataLog!$C2082=\"Log value\",DataLog!AC2082,\"\")","v":""},{"$f":"IF(DataLog!$C2082=\"Log value\",DataLog!AD2082,\"\")","v":""},{"$f":"IF(DataLog!$C2082=\"Log value\",DataLog!AE2082,\"\")","v":""},{"$f":"IF(DataLog!$C2082=\"Log value\",DataLog!AF2082,\"\")","v":""},{"$f":"IF(DataLog!$C2082=\"Log value\",DataLog!AG2082,\"\")","v":""},{"$f":"IF(DataLog!$C2082=\"Log value\",DataLog!AH2082,\"\")","v":""},{"$f":"IF(DataLog!$C2082=\"Log value\",DataLog!AI2082,\"\")","v":""},{"$f":"IF(DataLog!$C2082=\"Log value\",DataLog!AJ2082,\"\")","v":""},{"$f":"IF(DataLog!$C2082=\"Log value\",DataLog!AK2082,\"\")","v":""},{"$f":"IF(DataLog!$C2082=\"Log value\",DataLog!AL2082,\"\")","v":""},{"$f":"IF(DataLog!$C2082=\"Log value\",DataLog!AM2082,\"\")","v":""}]
[null,null,null,null,null,null,{"$f":"IF(DataLog!$C2084=\"Log value\",DataLog!D2084&\"_\"&TEXT(DataLog!B2084,\"åååå-mm-dd\"),\"\")","v":""},{"$f":"IF(DataLog!$C2084=\"Log value\",DataLog!E2084,\"\")","v":""},{"$f":"IF(DataLog!$C2084=\"Log value\",DataLog!F2084,\"\")","v":""},{"$f":"IF(DataLog!$C2084=\"Log value\",DataLog!G2084,\"\")","v":""},{"$f":"IF(DataLog!$C2084=\"Log value\",DataLog!H2084,\"\")","v":""},{"$f":"IF(DataLog!$C2084=\"Log value\",DataLog!I2084,\"\")","v":""},{"$f":"IF(DataLog!$C2084=\"Log value\",DataLog!J2084,\"\")","v":""},{"$f":"IF(DataLog!$C2084=\"Log value\",DataLog!K2084,\"\")","v":""},{"$f":"IF(DataLog!$C2084=\"Log value\",DataLog!L2084,\"\")","v":""},{"$f":"IF(DataLog!$C2084=\"Log value\",DataLog!M2084,\"\")","v":""},{"$f":"IF(DataLog!$C2084=\"Log value\",DataLog!N2084,\"\")","v":""},{"$f":"IF(DataLog!$C2084=\"Log value\",DataLog!O2084,\"\")","v":""},{"$f":"IF(DataLog!$C2084=\"Log value\",DataLog!P2084,\"\")","v":""},{"$f":"IF(DataLog!$C2084=\"Log value\",DataLog!Q2084,\"\")","v":""},{"$f":"IF(DataLog!$C2084=\"Log value\",DataLog!R2084,\"\")","v":""},{"$f":"IF(DataLog!$C2084=\"Log value\",DataLog!S2084,\"\")","v":""},{"$f":"IF(DataLog!$C2084=\"Log value\",DataLog!T2084,\"\")","v":""},{"$f":"IF(DataLog!$C2084=\"Log value\",DataLog!U2084,\"\")","v":""},{"$f":"IF(DataLog!$C2084=\"Log value\",DataLog!V2084,\"\")","v":""},{"$f":"IF(DataLog!$C2084=\"Log value\",DataLog!W2084,\"\")","v":""},{"$f":"IF(DataLog!$C2084=\"Log value\",DataLog!X2084,\"\")","v":""},{"$f":"IF(DataLog!$C2084=\"Log value\",DataLog!Y2084,\"\")","v":""},{"$f":"IF(DataLog!$C2084=\"Log value\",DataLog!Z2084,\"\")","v":""},{"$f":"IF(DataLog!$C2084=\"Log value\",DataLog!AA2084,\"\")","v":""},{"$f":"IF(DataLog!$C2084=\"Log value\",DataLog!AB2084,\"\")","v":""},{"$f":"IF(DataLog!$C2084=\"Log value\",DataLog!AC2084,\"\")","v":""},{"$f":"IF(DataLog!$C2084=\"Log value\",DataLog!AD2084,\"\")","v":""},{"$f":"IF(DataLog!$C2084=\"Log value\",DataLog!AE2084,\"\")","v":""},{"$f":"IF(DataLog!$C2084=\"Log value\",DataLog!AF2084,\"\")","v":""},{"$f":"IF(DataLog!$C2084=\"Log value\",DataLog!AG2084,\"\")","v":""},{"$f":"IF(DataLog!$C2084=\"Log value\",DataLog!AH2084,\"\")","v":""},{"$f":"IF(DataLog!$C2084=\"Log value\",DataLog!AI2084,\"\")","v":""},{"$f":"IF(DataLog!$C2084=\"Log value\",DataLog!AJ2084,\"\")","v":""},{"$f":"IF(DataLog!$C2084=\"Log value\",DataLog!AK2084,\"\")","v":""},{"$f":"IF(DataLog!$C2084=\"Log value\",DataLog!AL2084,\"\")","v":""},{"$f":"IF(DataLog!$C2084=\"Log value\",DataLog!AM2084,\"\")","v":""}]
[null,null,null,null,null,null,{"$f":"IF(DataLog!$C2087=\"Log value\",DataLog!D2087&\"_\"&TEXT(DataLog!B2087,\"åååå-mm-dd\"),\"\")","v":""},{"$f":"IF(DataLog!$C2087=\"Log value\",DataLog!E2087,\"\")","v":""},{"$f":"IF(DataLog!$C2087=\"Log value\",DataLog!F2087,\"\")","v":""},{"$f":"IF(DataLog!$C2087=\"Log value\",DataLog!G2087,\"\")","v":""},{"$f":"IF(DataLog!$C2087=\"Log value\",DataLog!H2087,\"\")","v":""},{"$f":"IF(DataLog!$C2087=\"Log value\",DataLog!I2087,\"\")","v":""},{"$f":"IF(DataLog!$C2087=\"Log value\",DataLog!J2087,\"\")","v":""},{"$f":"IF(DataLog!$C2087=\"Log value\",DataLog!K2087,\"\")","v":""},{"$f":"IF(DataLog!$C2087=\"Log value\",DataLog!L2087,\"\")","v":""},{"$f":"IF(DataLog!$C2087=\"Log value\",DataLog!M2087,\"\")","v":""},{"$f":"IF(DataLog!$C2087=\"Log value\",DataLog!N2087,\"\")","v":""},{"$f":"IF(DataLog!$C2087=\"Log value\",DataLog!O2087,\"\")","v":""},{"$f":"IF(DataLog!$C2087=\"Log value\",DataLog!P2087,\"\")","v":""},{"$f":"IF(DataLog!$C2087=\"Log value\",DataLog!Q2087,\"\")","v":""},{"$f":"IF(DataLog!$C2087=\"Log value\",DataLog!R2087,\"\")","v":""},{"$f":"IF(DataLog!$C2087=\"Log value\",DataLog!S2087,\"\")","v":""},{"$f":"IF(DataLog!$C2087=\"Log value\",DataLog!T2087,\"\")","v":""},{"$f":"IF(DataLog!$C2087=\"Log value\",DataLog!U2087,\"\")","v":""},{"$f":"IF(DataLog!$C2087=\"Log value\",DataLog!V2087,\"\")","v":""},{"$f":"IF(DataLog!$C2087=\"Log value\",DataLog!W2087,\"\")","v":""},{"$f":"IF(DataLog!$C2087=\"Log value\",DataLog!X2087,\"\")","v":""},{"$f":"IF(DataLog!$C2087=\"Log value\",DataLog!Y2087,\"\")","v":""},{"$f":"IF(DataLog!$C2087=\"Log value\",DataLog!Z2087,\"\")","v":""},{"$f":"IF(DataLog!$C2087=\"Log value\",DataLog!AA2087,\"\")","v":""},{"$f":"IF(DataLog!$C2087=\"Log value\",DataLog!AB2087,\"\")","v":""},{"$f":"IF(DataLog!$C2087=\"Log value\",DataLog!AC2087,\"\")","v":""},{"$f":"IF(DataLog!$C2087=\"Log value\",DataLog!AD2087,\"\")","v":""},{"$f":"IF(DataLog!$C2087=\"Log value\",DataLog!AE2087,\"\")","v":""},{"$f":"IF(DataLog!$C2087=\"Log value\",DataLog!AF2087,\"\")","v":""},{"$f":"IF(DataLog!$C2087=\"Log value\",DataLog!AG2087,\"\")","v":""},{"$f":"IF(DataLog!$C2087=\"Log value\",DataLog!AH2087,\"\")","v":""},{"$f":"IF(DataLog!$C2087=\"Log value\",DataLog!AI2087,\"\")","v":""},{"$f":"IF(DataLog!$C2087=\"Log value\",DataLog!AJ2087,\"\")","v":""},{"$f":"IF(DataLog!$C2087=\"Log value\",DataLog!AK2087,\"\")","v":""},{"$f":"IF(DataLog!$C2087=\"Log value\",DataLog!AL2087,\"\")","v":""},{"$f":"IF(DataLog!$C2087=\"Log value\",DataLog!AM2087,\"\")","v":""}]
[null,null,null,null,null,null,{"$f":"IF(DataLog!$C2090=\"Log value\",DataLog!D2090&\"_\"&TEXT(DataLog!B2090,\"åååå-mm-dd\"),\"\")","v":""},{"$f":"IF(DataLog!$C2090=\"Log value\",DataLog!E2090,\"\")","v":""},{"$f":"IF(DataLog!$C2090=\"Log value\",DataLog!F2090,\"\")","v":""},{"$f":"IF(DataLog!$C2090=\"Log value\",DataLog!G2090,\"\")","v":""},{"$f":"IF(DataLog!$C2090=\"Log value\",DataLog!H2090,\"\")","v":""},{"$f":"IF(DataLog!$C2090=\"Log value\",DataLog!I2090,\"\")","v":""},{"$f":"IF(DataLog!$C2090=\"Log value\",DataLog!J2090,\"\")","v":""},{"$f":"IF(DataLog!$C2090=\"Log value\",DataLog!K2090,\"\")","v":""},{"$f":"IF(DataLog!$C2090=\"Log value\",DataLog!L2090,\"\")","v":""},{"$f":"IF(DataLog!$C2090=\"Log value\",DataLog!M2090,\"\")","v":""},{"$f":"IF(DataLog!$C2090=\"Log value\",DataLog!N2090,\"\")","v":""},{"$f":"IF(DataLog!$C2090=\"Log value\",DataLog!O2090,\"\")","v":""},{"$f":"IF(DataLog!$C2090=\"Log value\",DataLog!P2090,\"\")","v":""},{"$f":"IF(DataLog!$C2090=\"Log value\",DataLog!Q2090,\"\")","v":""},{"$f":"IF(DataLog!$C2090=\"Log value\",DataLog!R2090,\"\")","v":""},{"$f":"IF(DataLog!$C2090=\"Log value\",DataLog!S2090,\"\")","v":""},{"$f":"IF(DataLog!$C2090=\"Log value\",DataLog!T2090,\"\")","v":""},{"$f":"IF(DataLog!$C2090=\"Log value\",DataLog!U2090,\"\")","v":""},{"$f":"IF(DataLog!$C2090=\"Log value\",DataLog!V2090,\"\")","v":""},{"$f":"IF(DataLog!$C2090=\"Log value\",DataLog!W2090,\"\")","v":""},{"$f":"IF(DataLog!$C2090=\"Log value\",DataLog!X2090,\"\")","v":""},{"$f":"IF(DataLog!$C2090=\"Log value\",DataLog!Y2090,\"\")","v":""},{"$f":"IF(DataLog!$C2090=\"Log value\",DataLog!Z2090,\"\")","v":""},{"$f":"IF(DataLog!$C2090=\"Log value\",DataLog!AA2090,\"\")","v":""},{"$f":"IF(DataLog!$C2090=\"Log value\",DataLog!AB2090,\"\")","v":""},{"$f":"IF(DataLog!$C2090=\"Log value\",DataLog!AC2090,\"\")","v":""},{"$f":"IF(DataLog!$C2090=\"Log value\",DataLog!AD2090,\"\")","v":""},{"$f":"IF(DataLog!$C2090=\"Log value\",DataLog!AE2090,\"\")","v":""},{"$f":"IF(DataLog!$C2090=\"Log value\",DataLog!AF2090,\"\")","v":""},{"$f":"IF(DataLog!$C2090=\"Log value\",DataLog!AG2090,\"\")","v":""},{"$f":"IF(DataLog!$C2090=\"Log value\",DataLog!AH2090,\"\")","v":""},{"$f":"IF(DataLog!$C2090=\"Log value\",DataLog!AI2090,\"\")","v":""},{"$f":"IF(DataLog!$C2090=\"Log value\",DataLog!AJ2090,\"\")","v":""},{"$f":"IF(DataLog!$C2090=\"Log value\",DataLog!AK2090,\"\")","v":""},{"$f":"IF(DataLog!$C2090=\"Log value\",DataLog!AL2090,\"\")","v":""},{"$f":"IF(DataLog!$C2090=\"Log value\",DataLog!AM2090,\"\")","v":""}]
[null,null,null,null,null,null,{"$f":"IF(DataLog!$C2091=\"Log value\",DataLog!D2091&\"_\"&TEXT(DataLog!B2091,\"åååå-mm-dd\"),\"\")","v":""},{"$f":"IF(DataLog!$C2091=\"Log value\",DataLog!E2091,\"\")","v":""},{"$f":"IF(DataLog!$C2091=\"Log value\",DataLog!F2091,\"\")","v":""},{"$f":"IF(DataLog!$C2091=\"Log value\",DataLog!G2091,\"\")","v":""},{"$f":"IF(DataLog!$C2091=\"Log value\",DataLog!H2091,\"\")","v":""},{"$f":"IF(DataLog!$C2091=\"Log value\",DataLog!I2091,\"\")","v":""},{"$f":"IF(DataLog!$C2091=\"Log value\",DataLog!J2091,\"\")","v":""},{"$f":"IF(DataLog!$C2091=\"Log value\",DataLog!K2091,\"\")","v":""},{"$f":"IF(DataLog!$C2091=\"Log value\",DataLog!L2091,\"\")","v":""},{"$f":"IF(DataLog!$C2091=\"Log value\",DataLog!M2091,\"\")","v":""},{"$f":"IF(DataLog!$C2091=\"Log value\",DataLog!N2091,\"\")","v":""},{"$f":"IF(DataLog!$C2091=\"Log value\",DataLog!O2091,\"\")","v":""},{"$f":"IF(DataLog!$C2091=\"Log value\",DataLog!P2091,\"\")","v":""},{"$f":"IF(DataLog!$C2091=\"Log value\",DataLog!Q2091,\"\")","v":""},{"$f":"IF(DataLog!$C2091=\"Log value\",DataLog!R2091,\"\")","v":""},{"$f":"IF(DataLog!$C2091=\"Log value\",DataLog!S2091,\"\")","v":""},{"$f":"IF(DataLog!$C2091=\"Log value\",DataLog!T2091,\"\")","v":""},{"$f":"IF(DataLog!$C2091=\"Log value\",DataLog!U2091,\"\")","v":""},{"$f":"IF(DataLog!$C2091=\"Log value\",DataLog!V2091,\"\")","v":""},{"$f":"IF(DataLog!$C2091=\"Log value\",DataLog!W2091,\"\")","v":""},{"$f":"IF(DataLog!$C2091=\"Log value\",DataLog!X2091,\"\")","v":""},{"$f":"IF(DataLog!$C2091=\"Log value\",DataLog!Y2091,\"\")","v":""},{"$f":"IF(DataLog!$C2091=\"Log value\",DataLog!Z2091,\"\")","v":""},{"$f":"IF(DataLog!$C2091=\"Log value\",DataLog!AA2091,\"\")","v":""},{"$f":"IF(DataLog!$C2091=\"Log value\",DataLog!AB2091,\"\")","v":""},{"$f":"IF(DataLog!$C2091=\"Log value\",DataLog!AC2091,\"\")","v":""},{"$f":"IF(DataLog!$C2091=\"Log value\",DataLog!AD2091,\"\")","v":""},{"$f":"IF(DataLog!$C2091=\"Log value\",DataLog!AE2091,\"\")","v":""},{"$f":"IF(DataLog!$C2091=\"Log value\",DataLog!AF2091,\"\")","v":""},{"$f":"IF(DataLog!$C2091=\"Log value\",DataLog!AG2091,\"\")","v":""},{"$f":"IF(DataLog!$C2091=\"Log value\",DataLog!AH2091,\"\")","v":""},{"$f":"IF(DataLog!$C2091=\"Log value\",DataLog!AI2091,\"\")","v":""},{"$f":"IF(DataLog!$C2091=\"Log value\",DataLog!AJ2091,\"\")","v":""},{"$f":"IF(DataLog!$C2091=\"Log value\",DataLog!AK2091,\"\")","v":""},{"$f":"IF(DataLog!$C2091=\"Log value\",DataLog!AL2091,\"\")","v":""},{"$f":"IF(DataLog!$C2091=\"Log value\",DataLog!AM2091,\"\")","v":""}]
[null,null,null,null,null,null,{"$f":"IF(DataLog!$C2095=\"Log value\",DataLog!D2095&\"_\"&TEXT(DataLog!B2095,\"åååå-mm-dd\"),\"\")","v":""},{"$f":"IF(DataLog!$C2095=\"Log value\",DataLog!E2095,\"\")","v":""},{"$f":"IF(DataLog!$C2095=\"Log value\",DataLog!F2095,\"\")","v":""},{"$f":"IF(DataLog!$C2095=\"Log value\",DataLog!G2095,\"\")","v":""},{"$f":"IF(DataLog!$C2095=\"Log value\",DataLog!H2095,\"\")","v":""},{"$f":"IF(DataLog!$C2095=\"Log value\",DataLog!I2095,\"\")","v":""},{"$f":"IF(DataLog!$C2095=\"Log value\",DataLog!J2095,\"\")","v":""},{"$f":"IF(DataLog!$C2095=\"Log value\",DataLog!K2095,\"\")","v":""},{"$f":"IF(DataLog!$C2095=\"Log value\",DataLog!L2095,\"\")","v":""},{"$f":"IF(DataLog!$C2095=\"Log value\",DataLog!M2095,\"\")","v":""},{"$f":"IF(DataLog!$C2095=\"Log value\",DataLog!N2095,\"\")","v":""},{"$f":"IF(DataLog!$C2095=\"Log value\",DataLog!O2095,\"\")","v":""},{"$f":"IF(DataLog!$C2095=\"Log value\",DataLog!P2095,\"\")","v":""},{"$f":"IF(DataLog!$C2095=\"Log value\",DataLog!Q2095,\"\")","v":""},{"$f":"IF(DataLog!$C2095=\"Log value\",DataLog!R2095,\"\")","v":""},{"$f":"IF(DataLog!$C2095=\"Log value\",DataLog!S2095,\"\")","v":""},{"$f":"IF(DataLog!$C2095=\"Log value\",DataLog!T2095,\"\")","v":""},{"$f":"IF(DataLog!$C2095=\"Log value\",DataLog!U2095,\"\")","v":""},{"$f":"IF(DataLog!$C2095=\"Log value\",DataLog!V2095,\"\")","v":""},{"$f":"IF(DataLog!$C2095=\"Log value\",DataLog!W2095,\"\")","v":""},{"$f":"IF(DataLog!$C2095=\"Log value\",DataLog!X2095,\"\")","v":""},{"$f":"IF(DataLog!$C2095=\"Log value\",DataLog!Y2095,\"\")","v":""},{"$f":"IF(DataLog!$C2095=\"Log value\",DataLog!Z2095,\"\")","v":""},{"$f":"IF(DataLog!$C2095=\"Log value\",DataLog!AA2095,\"\")","v":""},{"$f":"IF(DataLog!$C2095=\"Log value\",DataLog!AB2095,\"\")","v":""},{"$f":"IF(DataLog!$C2095=\"Log value\",DataLog!AC2095,\"\")","v":""},{"$f":"IF(DataLog!$C2095=\"Log value\",DataLog!AD2095,\"\")","v":""},{"$f":"IF(DataLog!$C2095=\"Log value\",DataLog!AE2095,\"\")","v":""},{"$f":"IF(DataLog!$C2095=\"Log value\",DataLog!AF2095,\"\")","v":""},{"$f":"IF(DataLog!$C2095=\"Log value\",DataLog!AG2095,\"\")","v":""},{"$f":"IF(DataLog!$C2095=\"Log value\",DataLog!AH2095,\"\")","v":""},{"$f":"IF(DataLog!$C2095=\"Log value\",DataLog!AI2095,\"\")","v":""},{"$f":"IF(DataLog!$C2095=\"Log value\",DataLog!AJ2095,\"\")","v":""},{"$f":"IF(DataLog!$C2095=\"Log value\",DataLog!AK2095,\"\")","v":""},{"$f":"IF(DataLog!$C2095=\"Log value\",DataLog!AL2095,\"\")","v":""},{"$f":"IF(DataLog!$C2095=\"Log value\",DataLog!AM2095,\"\")","v":""}]
[null,null,null,null,null,null,{"$f":"IF(DataLog!$C2096=\"Log value\",DataLog!D2096&\"_\"&TEXT(DataLog!B2096,\"åååå-mm-dd\"),\"\")","v":""},{"$f":"IF(DataLog!$C2096=\"Log value\",DataLog!E2096,\"\")","v":""},{"$f":"IF(DataLog!$C2096=\"Log value\",DataLog!F2096,\"\")","v":""},{"$f":"IF(DataLog!$C2096=\"Log value\",DataLog!G2096,\"\")","v":""},{"$f":"IF(DataLog!$C2096=\"Log value\",DataLog!H2096,\"\")","v":""},{"$f":"IF(DataLog!$C2096=\"Log value\",DataLog!I2096,\"\")","v":""},{"$f":"IF(DataLog!$C2096=\"Log value\",DataLog!J2096,\"\")","v":""},{"$f":"IF(DataLog!$C2096=\"Log value\",DataLog!K2096,\"\")","v":""},{"$f":"IF(DataLog!$C2096=\"Log value\",DataLog!L2096,\"\")","v":""},{"$f":"IF(DataLog!$C2096=\"Log value\",DataLog!M2096,\"\")","v":""},{"$f":"IF(DataLog!$C2096=\"Log value\",DataLog!N2096,\"\")","v":""},{"$f":"IF(DataLog!$C2096=\"Log value\",DataLog!O2096,\"\")","v":""},{"$f":"IF(DataLog!$C2096=\"Log value\",DataLog!P2096,\"\")","v":""},{"$f":"IF(DataLog!$C2096=\"Log value\",DataLog!Q2096,\"\")","v":""},{"$f":"IF(DataLog!$C2096=\"Log value\",DataLog!R2096,\"\")","v":""},{"$f":"IF(DataLog!$C2096=\"Log value\",DataLog!S2096,\"\")","v":""},{"$f":"IF(DataLog!$C2096=\"Log value\",DataLog!T2096,\"\")","v":""},{"$f":"IF(DataLog!$C2096=\"Log value\",DataLog!U2096,\"\")","v":""},{"$f":"IF(DataLog!$C2096=\"Log value\",DataLog!V2096,\"\")","v":""},{"$f":"IF(DataLog!$C2096=\"Log value\",DataLog!W2096,\"\")","v":""},{"$f":"IF(DataLog!$C2096=\"Log value\",DataLog!X2096,\"\")","v":""},{"$f":"IF(DataLog!$C2096=\"Log value\",DataLog!Y2096,\"\")","v":""},{"$f":"IF(DataLog!$C2096=\"Log value\",DataLog!Z2096,\"\")","v":""},{"$f":"IF(DataLog!$C2096=\"Log value\",DataLog!AA2096,\"\")","v":""},{"$f":"IF(DataLog!$C2096=\"Log value\",DataLog!AB2096,\"\")","v":""},{"$f":"IF(DataLog!$C2096=\"Log value\",DataLog!AC2096,\"\")","v":""},{"$f":"IF(DataLog!$C2096=\"Log value\",DataLog!AD2096,\"\")","v":""},{"$f":"IF(DataLog!$C2096=\"Log value\",DataLog!AE2096,\"\")","v":""},{"$f":"IF(DataLog!$C2096=\"Log value\",DataLog!AF2096,\"\")","v":""},{"$f":"IF(DataLog!$C2096=\"Log value\",DataLog!AG2096,\"\")","v":""},{"$f":"IF(DataLog!$C2096=\"Log value\",DataLog!AH2096,\"\")","v":""},{"$f":"IF(DataLog!$C2096=\"Log value\",DataLog!AI2096,\"\")","v":""},{"$f":"IF(DataLog!$C2096=\"Log value\",DataLog!AJ2096,\"\")","v":""},{"$f":"IF(DataLog!$C2096=\"Log value\",DataLog!AK2096,\"\")","v":""},{"$f":"IF(DataLog!$C2096=\"Log value\",DataLog!AL2096,\"\")","v":""},{"$f":"IF(DataLog!$C2096=\"Log value\",DataLog!AM2096,\"\")","v":""}]
[null,null,null,null,null,null,{"$f":"IF(DataLog!$C2099=\"Log value\",DataLog!D2099&\"_\"&TEXT(DataLog!B2099,\"åååå-mm-dd\"),\"\")","v":""},{"$f":"IF(DataLog!$C2099=\"Log value\",DataLog!E2099,\"\")","v":""},{"$f":"IF(DataLog!$C2099=\"Log value\",DataLog!F2099,\"\")","v":""},{"$f":"IF(DataLog!$C2099=\"Log value\",DataLog!G2099,\"\")","v":""},{"$f":"IF(DataLog!$C2099=\"Log value\",DataLog!H2099,\"\")","v":""},{"$f":"IF(DataLog!$C2099=\"Log value\",DataLog!I2099,\"\")","v":""},{"$f":"IF(DataLog!$C2099=\"Log value\",DataLog!J2099,\"\")","v":""},{"$f":"IF(DataLog!$C2099=\"Log value\",DataLog!K2099,\"\")","v":""},{"$f":"IF(DataLog!$C2099=\"Log value\",DataLog!L2099,\"\")","v":""},{"$f":"IF(DataLog!$C2099=\"Log value\",DataLog!M2099,\"\")","v":""},{"$f":"IF(DataLog!$C2099=\"Log value\",DataLog!N2099,\"\")","v":""},{"$f":"IF(DataLog!$C2099=\"Log value\",DataLog!O2099,\"\")","v":""},{"$f":"IF(DataLog!$C2099=\"Log value\",DataLog!P2099,\"\")","v":""},{"$f":"IF(DataLog!$C2099=\"Log value\",DataLog!Q2099,\"\")","v":""},{"$f":"IF(DataLog!$C2099=\"Log value\",DataLog!R2099,\"\")","v":""},{"$f":"IF(DataLog!$C2099=\"Log value\",DataLog!S2099,\"\")","v":""},{"$f":"IF(DataLog!$C2099=\"Log value\",DataLog!T2099,\"\")","v":""},{"$f":"IF(DataLog!$C2099=\"Log value\",DataLog!U2099,\"\")","v":""},{"$f":"IF(DataLog!$C2099=\"Log value\",DataLog!V2099,\"\")","v":""},{"$f":"IF(DataLog!$C2099=\"Log value\",DataLog!W2099,\"\")","v":""},{"$f":"IF(DataLog!$C2099=\"Log value\",DataLog!X2099,\"\")","v":""},{"$f":"IF(DataLog!$C2099=\"Log value\",DataLog!Y2099,\"\")","v":""},{"$f":"IF(DataLog!$C2099=\"Log value\",DataLog!Z2099,\"\")","v":""},{"$f":"IF(DataLog!$C2099=\"Log value\",DataLog!AA2099,\"\")","v":""},{"$f":"IF(DataLog!$C2099=\"Log value\",DataLog!AB2099,\"\")","v":""},{"$f":"IF(DataLog!$C2099=\"Log value\",DataLog!AC2099,\"\")","v":""},{"$f":"IF(DataLog!$C2099=\"Log value\",DataLog!AD2099,\"\")","v":""},{"$f":"IF(DataLog!$C2099=\"Log value\",DataLog!AE2099,\"\")","v":""},{"$f":"IF(DataLog!$C2099=\"Log value\",DataLog!AF2099,\"\")","v":""},{"$f":"IF(DataLog!$C2099=\"Log value\",DataLog!AG2099,\"\")","v":""},{"$f":"IF(DataLog!$C2099=\"Log value\",DataLog!AH2099,\"\")","v":""},{"$f":"IF(DataLog!$C2099=\"Log value\",DataLog!AI2099,\"\")","v":""},{"$f":"IF(DataLog!$C2099=\"Log value\",DataLog!AJ2099,\"\")","v":""},{"$f":"IF(DataLog!$C2099=\"Log value\",DataLog!AK2099,\"\")","v":""},{"$f":"IF(DataLog!$C2099=\"Log value\",DataLog!AL2099,\"\")","v":""},{"$f":"IF(DataLog!$C2099=\"Log value\",DataLog!AM2099,\"\")","v":""}]
[null,null,null,null,null,null,{"$f":"IF(DataLog!$C2100=\"Log value\",DataLog!D2100&\"_\"&TEXT(DataLog!B2100,\"åååå-mm-dd\"),\"\")","v":""},{"$f":"IF(DataLog!$C2100=\"Log value\",DataLog!E2100,\"\")","v":""},{"$f":"IF(DataLog!$C2100=\"Log value\",DataLog!F2100,\"\")","v":""},{"$f":"IF(DataLog!$C2100=\"Log value\",DataLog!G2100,\"\")","v":""},{"$f":"IF(DataLog!$C2100=\"Log value\",DataLog!H2100,\"\")","v":""},{"$f":"IF(DataLog!$C2100=\"Log value\",DataLog!I2100,\"\")","v":""},{"$f":"IF(DataLog!$C2100=\"Log value\",DataLog!J2100,\"\")","v":""},{"$f":"IF(DataLog!$C2100=\"Log value\",DataLog!K2100,\"\")","v":""},{"$f":"IF(DataLog!$C2100=\"Log value\",DataLog!L2100,\"\")","v":""},{"$f":"IF(DataLog!$C2100=\"Log value\",DataLog!M2100,\"\")","v":""},{"$f":"IF(DataLog!$C2100=\"Log value\",DataLog!N2100,\"\")","v":""},{"$f":"IF(DataLog!$C2100=\"Log value\",DataLog!O2100,\"\")","v":""},{"$f":"IF(DataLog!$C2100=\"Log value\",DataLog!P2100,\"\")","v":""},{"$f":"IF(DataLog!$C2100=\"Log value\",DataLog!Q2100,\"\")","v":""},{"$f":"IF(DataLog!$C2100=\"Log value\",DataLog!R2100,\"\")","v":""},{"$f":"IF(DataLog!$C2100=\"Log value\",DataLog!S2100,\"\")","v":""},{"$f":"IF(DataLog!$C2100=\"Log value\",DataLog!T2100,\"\")","v":""},{"$f":"IF(DataLog!$C2100=\"Log value\",DataLog!U2100,\"\")","v":""},{"$f":"IF(DataLog!$C2100=\"Log value\",DataLog!V2100,\"\")","v":""},{"$f":"IF(DataLog!$C2100=\"Log value\",DataLog!W2100,\"\")","v":""},{"$f":"IF(DataLog!$C2100=\"Log value\",DataLog!X2100,\"\")","v":""},{"$f":"IF(DataLog!$C2100=\"Log value\",DataLog!Y2100,\"\")","v":""},{"$f":"IF(DataLog!$C2100=\"Log value\",DataLog!Z2100,\"\")","v":""},{"$f":"IF(DataLog!$C2100=\"Log value\",DataLog!AA2100,\"\")","v":""},{"$f":"IF(DataLog!$C2100=\"Log value\",DataLog!AB2100,\"\")","v":""},{"$f":"IF(DataLog!$C2100=\"Log value\",DataLog!AC2100,\"\")","v":""},{"$f":"IF(DataLog!$C2100=\"Log value\",DataLog!AD2100,\"\")","v":""},{"$f":"IF(DataLog!$C2100=\"Log value\",DataLog!AE2100,\"\")","v":""},{"$f":"IF(DataLog!$C2100=\"Log value\",DataLog!AF2100,\"\")","v":""},{"$f":"IF(DataLog!$C2100=\"Log value\",DataLog!AG2100,\"\")","v":""},{"$f":"IF(DataLog!$C2100=\"Log value\",DataLog!AH2100,\"\")","v":""},{"$f":"IF(DataLog!$C2100=\"Log value\",DataLog!AI2100,\"\")","v":""},{"$f":"IF(DataLog!$C2100=\"Log value\",DataLog!AJ2100,\"\")","v":""},{"$f":"IF(DataLog!$C2100=\"Log value\",DataLog!AK2100,\"\")","v":""},{"$f":"IF(DataLog!$C2100=\"Log value\",DataLog!AL2100,\"\")","v":""},{"$f":"IF(DataLog!$C2100=\"Log value\",DataLog!AM2100,\"\")","v":""}]
[null,null,null,null,null,null,{"$f":"IF(DataLog!$C2104=\"Log value\",DataLog!D2104&\"_\"&TEXT(DataLog!B2104,\"åååå-mm-dd\"),\"\")","v":""},{"$f":"IF(DataLog!$C2104=\"Log value\",DataLog!E2104,\"\")","v":""},{"$f":"IF(DataLog!$C2104=\"Log value\",DataLog!F2104,\"\")","v":""},{"$f":"IF(DataLog!$C2104=\"Log value\",DataLog!G2104,\"\")","v":""},{"$f":"IF(DataLog!$C2104=\"Log value\",DataLog!H2104,\"\")","v":""},{"$f":"IF(DataLog!$C2104=\"Log value\",DataLog!I2104,\"\")","v":""},{"$f":"IF(DataLog!$C2104=\"Log value\",DataLog!J2104,\"\")","v":""},{"$f":"IF(DataLog!$C2104=\"Log value\",DataLog!K2104,\"\")","v":""},{"$f":"IF(DataLog!$C2104=\"Log value\",DataLog!L2104,\"\")","v":""},{"$f":"IF(DataLog!$C2104=\"Log value\",DataLog!M2104,\"\")","v":""},{"$f":"IF(DataLog!$C2104=\"Log value\",DataLog!N2104,\"\")","v":""},{"$f":"IF(DataLog!$C2104=\"Log value\",DataLog!O2104,\"\")","v":""},{"$f":"IF(DataLog!$C2104=\"Log value\",DataLog!P2104,\"\")","v":""},{"$f":"IF(DataLog!$C2104=\"Log value\",DataLog!Q2104,\"\")","v":""},{"$f":"IF(DataLog!$C2104=\"Log value\",DataLog!R2104,\"\")","v":""},{"$f":"IF(DataLog!$C2104=\"Log value\",DataLog!S2104,\"\")","v":""},{"$f":"IF(DataLog!$C2104=\"Log value\",DataLog!T2104,\"\")","v":""},{"$f":"IF(DataLog!$C2104=\"Log value\",DataLog!U2104,\"\")","v":""},{"$f":"IF(DataLog!$C2104=\"Log value\",DataLog!V2104,\"\")","v":""},{"$f":"IF(DataLog!$C2104=\"Log value\",DataLog!W2104,\"\")","v":""},{"$f":"IF(DataLog!$C2104=\"Log value\",DataLog!X2104,\"\")","v":""},{"$f":"IF(DataLog!$C2104=\"Log value\",DataLog!Y2104,\"\")","v":""},{"$f":"IF(DataLog!$C2104=\"Log value\",DataLog!Z2104,\"\")","v":""},{"$f":"IF(DataLog!$C2104=\"Log value\",DataLog!AA2104,\"\")","v":""},{"$f":"IF(DataLog!$C2104=\"Log value\",DataLog!AB2104,\"\")","v":""},{"$f":"IF(DataLog!$C2104=\"Log value\",DataLog!AC2104,\"\")","v":""},{"$f":"IF(DataLog!$C2104=\"Log value\",DataLog!AD2104,\"\")","v":""},{"$f":"IF(DataLog!$C2104=\"Log value\",DataLog!AE2104,\"\")","v":""},{"$f":"IF(DataLog!$C2104=\"Log value\",DataLog!AF2104,\"\")","v":""},{"$f":"IF(DataLog!$C2104=\"Log value\",DataLog!AG2104,\"\")","v":""},{"$f":"IF(DataLog!$C2104=\"Log value\",DataLog!AH2104,\"\")","v":""},{"$f":"IF(DataLog!$C2104=\"Log value\",DataLog!AI2104,\"\")","v":""},{"$f":"IF(DataLog!$C2104=\"Log value\",DataLog!AJ2104,\"\")","v":""},{"$f":"IF(DataLog!$C2104=\"Log value\",DataLog!AK2104,\"\")","v":""},{"$f":"IF(DataLog!$C2104=\"Log value\",DataLog!AL2104,\"\")","v":""},{"$f":"IF(DataLog!$C2104=\"Log value\",DataLog!AM2104,\"\")","v":""}]
[null,null,null,null,null,null,{"$f":"IF(DataLog!$C2105=\"Log value\",DataLog!D2105&\"_\"&TEXT(DataLog!B2105,\"åååå-mm-dd\"),\"\")","v":""},{"$f":"IF(DataLog!$C2105=\"Log value\",DataLog!E2105,\"\")","v":""},{"$f":"IF(DataLog!$C2105=\"Log value\",DataLog!F2105,\"\")","v":""},{"$f":"IF(DataLog!$C2105=\"Log value\",DataLog!G2105,\"\")","v":""},{"$f":"IF(DataLog!$C2105=\"Log value\",DataLog!H2105,\"\")","v":""},{"$f":"IF(DataLog!$C2105=\"Log value\",DataLog!I2105,\"\")","v":""},{"$f":"IF(DataLog!$C2105=\"Log value\",DataLog!J2105,\"\")","v":""},{"$f":"IF(DataLog!$C2105=\"Log value\",DataLog!K2105,\"\")","v":""},{"$f":"IF(DataLog!$C2105=\"Log value\",DataLog!L2105,\"\")","v":""},{"$f":"IF(DataLog!$C2105=\"Log value\",DataLog!M2105,\"\")","v":""},{"$f":"IF(DataLog!$C2105=\"Log value\",DataLog!N2105,\"\")","v":""},{"$f":"IF(DataLog!$C2105=\"Log value\",DataLog!O2105,\"\")","v":""},{"$f":"IF(DataLog!$C2105=\"Log value\",DataLog!P2105,\"\")","v":""},{"$f":"IF(DataLog!$C2105=\"Log value\",DataLog!Q2105,\"\")","v":""},{"$f":"IF(DataLog!$C2105=\"Log value\",DataLog!R2105,\"\")","v":""},{"$f":"IF(DataLog!$C2105=\"Log value\",DataLog!S2105,\"\")","v":""},{"$f":"IF(DataLog!$C2105=\"Log value\",DataLog!T2105,\"\")","v":""},{"$f":"IF(DataLog!$C2105=\"Log value\",DataLog!U2105,\"\")","v":""},{"$f":"IF(DataLog!$C2105=\"Log value\",DataLog!V2105,\"\")","v":""},{"$f":"IF(DataLog!$C2105=\"Log value\",DataLog!W2105,\"\")","v":""},{"$f":"IF(DataLog!$C2105=\"Log value\",DataLog!X2105,\"\")","v":""},{"$f":"IF(DataLog!$C2105=\"Log value\",DataLog!Y2105,\"\")","v":""},{"$f":"IF(DataLog!$C2105=\"Log value\",DataLog!Z2105,\"\")","v":""},{"$f":"IF(DataLog!$C2105=\"Log value\",DataLog!AA2105,\"\")","v":""},{"$f":"IF(DataLog!$C2105=\"Log value\",DataLog!AB2105,\"\")","v":""},{"$f":"IF(DataLog!$C2105=\"Log value\",DataLog!AC2105,\"\")","v":""},{"$f":"IF(DataLog!$C2105=\"Log value\",DataLog!AD2105,\"\")","v":""},{"$f":"IF(DataLog!$C2105=\"Log value\",DataLog!AE2105,\"\")","v":""},{"$f":"IF(DataLog!$C2105=\"Log value\",DataLog!AF2105,\"\")","v":""},{"$f":"IF(DataLog!$C2105=\"Log value\",DataLog!AG2105,\"\")","v":""},{"$f":"IF(DataLog!$C2105=\"Log value\",DataLog!AH2105,\"\")","v":""},{"$f":"IF(DataLog!$C2105=\"Log value\",DataLog!AI2105,\"\")","v":""},{"$f":"IF(DataLog!$C2105=\"Log value\",DataLog!AJ2105,\"\")","v":""},{"$f":"IF(DataLog!$C2105=\"Log value\",DataLog!AK2105,\"\")","v":""},{"$f":"IF(DataLog!$C2105=\"Log value\",DataLog!AL2105,\"\")","v":""},{"$f":"IF(DataLog!$C2105=\"Log value\",DataLog!AM2105,\"\")","v":""}]
[null,null,null,null,null,null,{"$f":"IF(DataLog!$C2108=\"Log value\",DataLog!D2108&\"_\"&TEXT(DataLog!B2108,\"åååå-mm-dd\"),\"\")","v":""},{"$f":"IF(DataLog!$C2108=\"Log value\",DataLog!E2108,\"\")","v":""},{"$f":"IF(DataLog!$C2108=\"Log value\",DataLog!F2108,\"\")","v":""},{"$f":"IF(DataLog!$C2108=\"Log value\",DataLog!G2108,\"\")","v":""},{"$f":"IF(DataLog!$C2108=\"Log value\",DataLog!H2108,\"\")","v":""},{"$f":"IF(DataLog!$C2108=\"Log value\",DataLog!I2108,\"\")","v":""},{"$f":"IF(DataLog!$C2108=\"Log value\",DataLog!J2108,\"\")","v":""},{"$f":"IF(DataLog!$C2108=\"Log value\",DataLog!K2108,\"\")","v":""},{"$f":"IF(DataLog!$C2108=\"Log value\",DataLog!L2108,\"\")","v":""},{"$f":"IF(DataLog!$C2108=\"Log value\",DataLog!M2108,\"\")","v":""},{"$f":"IF(DataLog!$C2108=\"Log value\",DataLog!N2108,\"\")","v":""},{"$f":"IF(DataLog!$C2108=\"Log value\",DataLog!O2108,\"\")","v":""},{"$f":"IF(DataLog!$C2108=\"Log value\",DataLog!P2108,\"\")","v":""},{"$f":"IF(DataLog!$C2108=\"Log value\",DataLog!Q2108,\"\")","v":""},{"$f":"IF(DataLog!$C2108=\"Log value\",DataLog!R2108,\"\")","v":""},{"$f":"IF(DataLog!$C2108=\"Log value\",DataLog!S2108,\"\")","v":""},{"$f":"IF(DataLog!$C2108=\"Log value\",DataLog!T2108,\"\")","v":""},{"$f":"IF(DataLog!$C2108=\"Log value\",DataLog!U2108,\"\")","v":""},{"$f":"IF(DataLog!$C2108=\"Log value\",DataLog!V2108,\"\")","v":""},{"$f":"IF(DataLog!$C2108=\"Log value\",DataLog!W2108,\"\")","v":""},{"$f":"IF(DataLog!$C2108=\"Log value\",DataLog!X2108,\"\")","v":""},{"$f":"IF(DataLog!$C2108=\"Log value\",DataLog!Y2108,\"\")","v":""},{"$f":"IF(DataLog!$C2108=\"Log value\",DataLog!Z2108,\"\")","v":""},{"$f":"IF(DataLog!$C2108=\"Log value\",DataLog!AA2108,\"\")","v":""},{"$f":"IF(DataLog!$C2108=\"Log value\",DataLog!AB2108,\"\")","v":""},{"$f":"IF(DataLog!$C2108=\"Log value\",DataLog!AC2108,\"\")","v":""},{"$f":"IF(DataLog!$C2108=\"Log value\",DataLog!AD2108,\"\")","v":""},{"$f":"IF(DataLog!$C2108=\"Log value\",DataLog!AE2108,\"\")","v":""},{"$f":"IF(DataLog!$C2108=\"Log value\",DataLog!AF2108,\"\")","v":""},{"$f":"IF(DataLog!$C2108=\"Log value\",DataLog!AG2108,\"\")","v":""},{"$f":"IF(DataLog!$C2108=\"Log value\",DataLog!AH2108,\"\")","v":""},{"$f":"IF(DataLog!$C2108=\"Log value\",DataLog!AI2108,\"\")","v":""},{"$f":"IF(DataLog!$C2108=\"Log value\",DataLog!AJ2108,\"\")","v":""},{"$f":"IF(DataLog!$C2108=\"Log value\",DataLog!AK2108,\"\")","v":""},{"$f":"IF(DataLog!$C2108=\"Log value\",DataLog!AL2108,\"\")","v":""},{"$f":"IF(DataLog!$C2108=\"Log value\",DataLog!AM2108,\"\")","v":""}]
[null,null,null,null,null,null,{"$f":"IF(DataLog!$C2110=\"Log value\",DataLog!D2110&\"_\"&TEXT(DataLog!B2110,\"åååå-mm-dd\"),\"\")","v":""},{"$f":"IF(DataLog!$C2110=\"Log value\",DataLog!E2110,\"\")","v":""},{"$f":"IF(DataLog!$C2110=\"Log value\",DataLog!F2110,\"\")","v":""},{"$f":"IF(DataLog!$C2110=\"Log value\",DataLog!G2110,\"\")","v":""},{"$f":"IF(DataLog!$C2110=\"Log value\",DataLog!H2110,\"\")","v":""},{"$f":"IF(DataLog!$C2110=\"Log value\",DataLog!I2110,\"\")","v":""},{"$f":"IF(DataLog!$C2110=\"Log value\",DataLog!J2110,\"\")","v":""},{"$f":"IF(DataLog!$C2110=\"Log value\",DataLog!K2110,\"\")","v":""},{"$f":"IF(DataLog!$C2110=\"Log value\",DataLog!L2110,\"\")","v":""},{"$f":"IF(DataLog!$C2110=\"Log value\",DataLog!M2110,\"\")","v":""},{"$f":"IF(DataLog!$C2110=\"Log value\",DataLog!N2110,\"\")","v":""},{"$f":"IF(DataLog!$C2110=\"Log value\",DataLog!O2110,\"\")","v":""},{"$f":"IF(DataLog!$C2110=\"Log value\",DataLog!P2110,\"\")","v":""},{"$f":"IF(DataLog!$C2110=\"Log value\",DataLog!Q2110,\"\")","v":""},{"$f":"IF(DataLog!$C2110=\"Log value\",DataLog!R2110,\"\")","v":""},{"$f":"IF(DataLog!$C2110=\"Log value\",DataLog!S2110,\"\")","v":""},{"$f":"IF(DataLog!$C2110=\"Log value\",DataLog!T2110,\"\")","v":""},{"$f":"IF(DataLog!$C2110=\"Log value\",DataLog!U2110,\"\")","v":""},{"$f":"IF(DataLog!$C2110=\"Log value\",DataLog!V2110,\"\")","v":""},{"$f":"IF(DataLog!$C2110=\"Log value\",DataLog!W2110,\"\")","v":""},{"$f":"IF(DataLog!$C2110=\"Log value\",DataLog!X2110,\"\")","v":""},{"$f":"IF(DataLog!$C2110=\"Log value\",DataLog!Y2110,\"\")","v":""},{"$f":"IF(DataLog!$C2110=\"Log value\",DataLog!Z2110,\"\")","v":""},{"$f":"IF(DataLog!$C2110=\"Log value\",DataLog!AA2110,\"\")","v":""},{"$f":"IF(DataLog!$C2110=\"Log value\",DataLog!AB2110,\"\")","v":""},{"$f":"IF(DataLog!$C2110=\"Log value\",DataLog!AC2110,\"\")","v":""},{"$f":"IF(DataLog!$C2110=\"Log value\",DataLog!AD2110,\"\")","v":""},{"$f":"IF(DataLog!$C2110=\"Log value\",DataLog!AE2110,\"\")","v":""},{"$f":"IF(DataLog!$C2110=\"Log value\",DataLog!AF2110,\"\")","v":""},{"$f":"IF(DataLog!$C2110=\"Log value\",DataLog!AG2110,\"\")","v":""},{"$f":"IF(DataLog!$C2110=\"Log value\",DataLog!AH2110,\"\")","v":""},{"$f":"IF(DataLog!$C2110=\"Log value\",DataLog!AI2110,\"\")","v":""},{"$f":"IF(DataLog!$C2110=\"Log value\",DataLog!AJ2110,\"\")","v":""},{"$f":"IF(DataLog!$C2110=\"Log value\",DataLog!AK2110,\"\")","v":""},{"$f":"IF(DataLog!$C2110=\"Log value\",DataLog!AL2110,\"\")","v":""},{"$f":"IF(DataLog!$C2110=\"Log value\",DataLog!AM2110,\"\")","v":""}]
[null,null,null,null,null,null,{"$f":"IF(DataLog!$C2113=\"Log value\",DataLog!D2113&\"_\"&TEXT(DataLog!B2113,\"åååå-mm-dd\"),\"\")","v":""},{"$f":"IF(DataLog!$C2113=\"Log value\",DataLog!E2113,\"\")","v":""},{"$f":"IF(DataLog!$C2113=\"Log value\",DataLog!F2113,\"\")","v":""},{"$f":"IF(DataLog!$C2113=\"Log value\",DataLog!G2113,\"\")","v":""},{"$f":"IF(DataLog!$C2113=\"Log value\",DataLog!H2113,\"\")","v":""},{"$f":"IF(DataLog!$C2113=\"Log value\",DataLog!I2113,\"\")","v":""},{"$f":"IF(DataLog!$C2113=\"Log value\",DataLog!J2113,\"\")","v":""},{"$f":"IF(DataLog!$C2113=\"Log value\",DataLog!K2113,\"\")","v":""},{"$f":"IF(DataLog!$C2113=\"Log value\",DataLog!L2113,\"\")","v":""},{"$f":"IF(DataLog!$C2113=\"Log value\",DataLog!M2113,\"\")","v":""},{"$f":"IF(DataLog!$C2113=\"Log value\",DataLog!N2113,\"\")","v":""},{"$f":"IF(DataLog!$C2113=\"Log value\",DataLog!O2113,\"\")","v":""},{"$f":"IF(DataLog!$C2113=\"Log value\",DataLog!P2113,\"\")","v":""},{"$f":"IF(DataLog!$C2113=\"Log value\",DataLog!Q2113,\"\")","v":""},{"$f":"IF(DataLog!$C2113=\"Log value\",DataLog!R2113,\"\")","v":""},{"$f":"IF(DataLog!$C2113=\"Log value\",DataLog!S2113,\"\")","v":""},{"$f":"IF(DataLog!$C2113=\"Log value\",DataLog!T2113,\"\")","v":""},{"$f":"IF(DataLog!$C2113=\"Log value\",DataLog!U2113,\"\")","v":""},{"$f":"IF(DataLog!$C2113=\"Log value\",DataLog!V2113,\"\")","v":""},{"$f":"IF(DataLog!$C2113=\"Log value\",DataLog!W2113,\"\")","v":""},{"$f":"IF(DataLog!$C2113=\"Log value\",DataLog!X2113,\"\")","v":""},{"$f":"IF(DataLog!$C2113=\"Log value\",DataLog!Y2113,\"\")","v":""},{"$f":"IF(DataLog!$C2113=\"Log value\",DataLog!Z2113,\"\")","v":""},{"$f":"IF(DataLog!$C2113=\"Log value\",DataLog!AA2113,\"\")","v":""},{"$f":"IF(DataLog!$C2113=\"Log value\",DataLog!AB2113,\"\")","v":""},{"$f":"IF(DataLog!$C2113=\"Log value\",DataLog!AC2113,\"\")","v":""},{"$f":"IF(DataLog!$C2113=\"Log value\",DataLog!AD2113,\"\")","v":""},{"$f":"IF(DataLog!$C2113=\"Log value\",DataLog!AE2113,\"\")","v":""},{"$f":"IF(DataLog!$C2113=\"Log value\",DataLog!AF2113,\"\")","v":""},{"$f":"IF(DataLog!$C2113=\"Log value\",DataLog!AG2113,\"\")","v":""},{"$f":"IF(DataLog!$C2113=\"Log value\",DataLog!AH2113,\"\")","v":""},{"$f":"IF(DataLog!$C2113=\"Log value\",DataLog!AI2113,\"\")","v":""},{"$f":"IF(DataLog!$C2113=\"Log value\",DataLog!AJ2113,\"\")","v":""},{"$f":"IF(DataLog!$C2113=\"Log value\",DataLog!AK2113,\"\")","v":""},{"$f":"IF(DataLog!$C2113=\"Log value\",DataLog!AL2113,\"\")","v":""},{"$f":"IF(DataLog!$C2113=\"Log value\",DataLog!AM2113,\"\")","v":""}]
[null,null,null,null,null,null,{"$f":"IF(DataLog!$C2114=\"Log value\",DataLog!D2114&\"_\"&TEXT(DataLog!B2114,\"åååå-mm-dd\"),\"\")","v":""},{"$f":"IF(DataLog!$C2114=\"Log value\",DataLog!E2114,\"\")","v":""},{"$f":"IF(DataLog!$C2114=\"Log value\",DataLog!F2114,\"\")","v":""},{"$f":"IF(DataLog!$C2114=\"Log value\",DataLog!G2114,\"\")","v":""},{"$f":"IF(DataLog!$C2114=\"Log value\",DataLog!H2114,\"\")","v":""},{"$f":"IF(DataLog!$C2114=\"Log value\",DataLog!I2114,\"\")","v":""},{"$f":"IF(DataLog!$C2114=\"Log value\",DataLog!J2114,\"\")","v":""},{"$f":"IF(DataLog!$C2114=\"Log value\",DataLog!K2114,\"\")","v":""},{"$f":"IF(DataLog!$C2114=\"Log value\",DataLog!L2114,\"\")","v":""},{"$f":"IF(DataLog!$C2114=\"Log value\",DataLog!M2114,\"\")","v":""},{"$f":"IF(DataLog!$C2114=\"Log value\",DataLog!N2114,\"\")","v":""},{"$f":"IF(DataLog!$C2114=\"Log value\",DataLog!O2114,\"\")","v":""},{"$f":"IF(DataLog!$C2114=\"Log value\",DataLog!P2114,\"\")","v":""},{"$f":"IF(DataLog!$C2114=\"Log value\",DataLog!Q2114,\"\")","v":""},{"$f":"IF(DataLog!$C2114=\"Log value\",DataLog!R2114,\"\")","v":""},{"$f":"IF(DataLog!$C2114=\"Log value\",DataLog!S2114,\"\")","v":""},{"$f":"IF(DataLog!$C2114=\"Log value\",DataLog!T2114,\"\")","v":""},{"$f":"IF(DataLog!$C2114=\"Log value\",DataLog!U2114,\"\")","v":""},{"$f":"IF(DataLog!$C2114=\"Log value\",DataLog!V2114,\"\")","v":""},{"$f":"IF(DataLog!$C2114=\"Log value\",DataLog!W2114,\"\")","v":""},{"$f":"IF(DataLog!$C2114=\"Log value\",DataLog!X2114,\"\")","v":""},{"$f":"IF(DataLog!$C2114=\"Log value\",DataLog!Y2114,\"\")","v":""},{"$f":"IF(DataLog!$C2114=\"Log value\",DataLog!Z2114,\"\")","v":""},{"$f":"IF(DataLog!$C2114=\"Log value\",DataLog!AA2114,\"\")","v":""},{"$f":"IF(DataLog!$C2114=\"Log value\",DataLog!AB2114,\"\")","v":""},{"$f":"IF(DataLog!$C2114=\"Log value\",DataLog!AC2114,\"\")","v":""},{"$f":"IF(DataLog!$C2114=\"Log value\",DataLog!AD2114,\"\")","v":""},{"$f":"IF(DataLog!$C2114=\"Log value\",DataLog!AE2114,\"\")","v":""},{"$f":"IF(DataLog!$C2114=\"Log value\",DataLog!AF2114,\"\")","v":""},{"$f":"IF(DataLog!$C2114=\"Log value\",DataLog!AG2114,\"\")","v":""},{"$f":"IF(DataLog!$C2114=\"Log value\",DataLog!AH2114,\"\")","v":""},{"$f":"IF(DataLog!$C2114=\"Log value\",DataLog!AI2114,\"\")","v":""},{"$f":"IF(DataLog!$C2114=\"Log value\",DataLog!AJ2114,\"\")","v":""},{"$f":"IF(DataLog!$C2114=\"Log value\",DataLog!AK2114,\"\")","v":""},{"$f":"IF(DataLog!$C2114=\"Log value\",DataLog!AL2114,\"\")","v":""},{"$f":"IF(DataLog!$C2114=\"Log value\",DataLog!AM2114,\"\")","v":""}]
[null,null,null,null,null,null,{"$f":"IF(DataLog!$C2117=\"Log value\",DataLog!D2117&\"_\"&TEXT(DataLog!B2117,\"åååå-mm-dd\"),\"\")","v":""},{"$f":"IF(DataLog!$C2117=\"Log value\",DataLog!E2117,\"\")","v":""},{"$f":"IF(DataLog!$C2117=\"Log value\",DataLog!F2117,\"\")","v":""},{"$f":"IF(DataLog!$C2117=\"Log value\",DataLog!G2117,\"\")","v":""},{"$f":"IF(DataLog!$C2117=\"Log value\",DataLog!H2117,\"\")","v":""},{"$f":"IF(DataLog!$C2117=\"Log value\",DataLog!I2117,\"\")","v":""},{"$f":"IF(DataLog!$C2117=\"Log value\",DataLog!J2117,\"\")","v":""},{"$f":"IF(DataLog!$C2117=\"Log value\",DataLog!K2117,\"\")","v":""},{"$f":"IF(DataLog!$C2117=\"Log value\",DataLog!L2117,\"\")","v":""},{"$f":"IF(DataLog!$C2117=\"Log value\",DataLog!M2117,\"\")","v":""},{"$f":"IF(DataLog!$C2117=\"Log value\",DataLog!N2117,\"\")","v":""},{"$f":"IF(DataLog!$C2117=\"Log value\",DataLog!O2117,\"\")","v":""},{"$f":"IF(DataLog!$C2117=\"Log value\",DataLog!P2117,\"\")","v":""},{"$f":"IF(DataLog!$C2117=\"Log value\",DataLog!Q2117,\"\")","v":""},{"$f":"IF(DataLog!$C2117=\"Log value\",DataLog!R2117,\"\")","v":""},{"$f":"IF(DataLog!$C2117=\"Log value\",DataLog!S2117,\"\")","v":""},{"$f":"IF(DataLog!$C2117=\"Log value\",DataLog!T2117,\"\")","v":""},{"$f":"IF(DataLog!$C2117=\"Log value\",DataLog!U2117,\"\")","v":""},{"$f":"IF(DataLog!$C2117=\"Log value\",DataLog!V2117,\"\")","v":""},{"$f":"IF(DataLog!$C2117=\"Log value\",DataLog!W2117,\"\")","v":""},{"$f":"IF(DataLog!$C2117=\"Log value\",DataLog!X2117,\"\")","v":""},{"$f":"IF(DataLog!$C2117=\"Log value\",DataLog!Y2117,\"\")","v":""},{"$f":"IF(DataLog!$C2117=\"Log value\",DataLog!Z2117,\"\")","v":""},{"$f":"IF(DataLog!$C2117=\"Log value\",DataLog!AA2117,\"\")","v":""},{"$f":"IF(DataLog!$C2117=\"Log value\",DataLog!AB2117,\"\")","v":""},{"$f":"IF(DataLog!$C2117=\"Log value\",DataLog!AC2117,\"\")","v":""},{"$f":"IF(DataLog!$C2117=\"Log value\",DataLog!AD2117,\"\")","v":""},{"$f":"IF(DataLog!$C2117=\"Log value\",DataLog!AE2117,\"\")","v":""},{"$f":"IF(DataLog!$C2117=\"Log value\",DataLog!AF2117,\"\")","v":""},{"$f":"IF(DataLog!$C2117=\"Log value\",DataLog!AG2117,\"\")","v":""},{"$f":"IF(DataLog!$C2117=\"Log value\",DataLog!AH2117,\"\")","v":""},{"$f":"IF(DataLog!$C2117=\"Log value\",DataLog!AI2117,\"\")","v":""},{"$f":"IF(DataLog!$C2117=\"Log value\",DataLog!AJ2117,\"\")","v":""},{"$f":"IF(DataLog!$C2117=\"Log value\",DataLog!AK2117,\"\")","v":""},{"$f":"IF(DataLog!$C2117=\"Log value\",DataLog!AL2117,\"\")","v":""},{"$f":"IF(DataLog!$C2117=\"Log value\",DataLog!AM2117,\"\")","v":""}]
[null,null,null,null,null,null,{"$f":"IF(DataLog!$C2118=\"Log value\",DataLog!D2118&\"_\"&TEXT(DataLog!B2118,\"åååå-mm-dd\"),\"\")","v":""},{"$f":"IF(DataLog!$C2118=\"Log value\",DataLog!E2118,\"\")","v":""},{"$f":"IF(DataLog!$C2118=\"Log value\",DataLog!F2118,\"\")","v":""},{"$f":"IF(DataLog!$C2118=\"Log value\",DataLog!G2118,\"\")","v":""},{"$f":"IF(DataLog!$C2118=\"Log value\",DataLog!H2118,\"\")","v":""},{"$f":"IF(DataLog!$C2118=\"Log value\",DataLog!I2118,\"\")","v":""},{"$f":"IF(DataLog!$C2118=\"Log value\",DataLog!J2118,\"\")","v":""},{"$f":"IF(DataLog!$C2118=\"Log value\",DataLog!K2118,\"\")","v":""},{"$f":"IF(DataLog!$C2118=\"Log value\",DataLog!L2118,\"\")","v":""},{"$f":"IF(DataLog!$C2118=\"Log value\",DataLog!M2118,\"\")","v":""},{"$f":"IF(DataLog!$C2118=\"Log value\",DataLog!N2118,\"\")","v":""},{"$f":"IF(DataLog!$C2118=\"Log value\",DataLog!O2118,\"\")","v":""},{"$f":"IF(DataLog!$C2118=\"Log value\",DataLog!P2118,\"\")","v":""},{"$f":"IF(DataLog!$C2118=\"Log value\",DataLog!Q2118,\"\")","v":""},{"$f":"IF(DataLog!$C2118=\"Log value\",DataLog!R2118,\"\")","v":""},{"$f":"IF(DataLog!$C2118=\"Log value\",DataLog!S2118,\"\")","v":""},{"$f":"IF(DataLog!$C2118=\"Log value\",DataLog!T2118,\"\")","v":""},{"$f":"IF(DataLog!$C2118=\"Log value\",DataLog!U2118,\"\")","v":""},{"$f":"IF(DataLog!$C2118=\"Log value\",DataLog!V2118,\"\")","v":""},{"$f":"IF(DataLog!$C2118=\"Log value\",DataLog!W2118,\"\")","v":""},{"$f":"IF(DataLog!$C2118=\"Log value\",DataLog!X2118,\"\")","v":""},{"$f":"IF(DataLog!$C2118=\"Log value\",DataLog!Y2118,\"\")","v":""},{"$f":"IF(DataLog!$C2118=\"Log value\",DataLog!Z2118,\"\")","v":""},{"$f":"IF(DataLog!$C2118=\"Log value\",DataLog!AA2118,\"\")","v":""},{"$f":"IF(DataLog!$C2118=\"Log value\",DataLog!AB2118,\"\")","v":""},{"$f":"IF(DataLog!$C2118=\"Log value\",DataLog!AC2118,\"\")","v":""},{"$f":"IF(DataLog!$C2118=\"Log value\",DataLog!AD2118,\"\")","v":""},{"$f":"IF(DataLog!$C2118=\"Log value\",DataLog!AE2118,\"\")","v":""},{"$f":"IF(DataLog!$C2118=\"Log value\",DataLog!AF2118,\"\")","v":""},{"$f":"IF(DataLog!$C2118=\"Log value\",DataLog!AG2118,\"\")","v":""},{"$f":"IF(DataLog!$C2118=\"Log value\",DataLog!AH2118,\"\")","v":""},{"$f":"IF(DataLog!$C2118=\"Log value\",DataLog!AI2118,\"\")","v":""},{"$f":"IF(DataLog!$C2118=\"Log value\",DataLog!AJ2118,\"\")","v":""},{"$f":"IF(DataLog!$C2118=\"Log value\",DataLog!AK2118,\"\")","v":""},{"$f":"IF(DataLog!$C2118=\"Log value\",DataLog!AL2118,\"\")","v":""},{"$f":"IF(DataLog!$C2118=\"Log value\",DataLog!AM2118,\"\")","v":""}]
[null,null,null,null,null,null,{"$f":"IF(DataLog!$C2122=\"Log value\",DataLog!D2122&\"_\"&TEXT(DataLog!B2122,\"åååå-mm-dd\"),\"\")","v":""},{"$f":"IF(DataLog!$C2122=\"Log value\",DataLog!E2122,\"\")","v":""},{"$f":"IF(DataLog!$C2122=\"Log value\",DataLog!F2122,\"\")","v":""},{"$f":"IF(DataLog!$C2122=\"Log value\",DataLog!G2122,\"\")","v":""},{"$f":"IF(DataLog!$C2122=\"Log value\",DataLog!H2122,\"\")","v":""},{"$f":"IF(DataLog!$C2122=\"Log value\",DataLog!I2122,\"\")","v":""},{"$f":"IF(DataLog!$C2122=\"Log value\",DataLog!J2122,\"\")","v":""},{"$f":"IF(DataLog!$C2122=\"Log value\",DataLog!K2122,\"\")","v":""},{"$f":"IF(DataLog!$C2122=\"Log value\",DataLog!L2122,\"\")","v":""},{"$f":"IF(DataLog!$C2122=\"Log value\",DataLog!M2122,\"\")","v":""},{"$f":"IF(DataLog!$C2122=\"Log value\",DataLog!N2122,\"\")","v":""},{"$f":"IF(DataLog!$C2122=\"Log value\",DataLog!O2122,\"\")","v":""},{"$f":"IF(DataLog!$C2122=\"Log value\",DataLog!P2122,\"\")","v":""},{"$f":"IF(DataLog!$C2122=\"Log value\",DataLog!Q2122,\"\")","v":""},{"$f":"IF(DataLog!$C2122=\"Log value\",DataLog!R2122,\"\")","v":""},{"$f":"IF(DataLog!$C2122=\"Log value\",DataLog!S2122,\"\")","v":""},{"$f":"IF(DataLog!$C2122=\"Log value\",DataLog!T2122,\"\")","v":""},{"$f":"IF(DataLog!$C2122=\"Log value\",DataLog!U2122,\"\")","v":""},{"$f":"IF(DataLog!$C2122=\"Log value\",DataLog!V2122,\"\")","v":""},{"$f":"IF(DataLog!$C2122=\"Log value\",DataLog!W2122,\"\")","v":""},{"$f":"IF(DataLog!$C2122=\"Log value\",DataLog!X2122,\"\")","v":""},{"$f":"IF(DataLog!$C2122=\"Log value\",DataLog!Y2122,\"\")","v":""},{"$f":"IF(DataLog!$C2122=\"Log value\",DataLog!Z2122,\"\")","v":""},{"$f":"IF(DataLog!$C2122=\"Log value\",DataLog!AA2122,\"\")","v":""},{"$f":"IF(DataLog!$C2122=\"Log value\",DataLog!AB2122,\"\")","v":""},{"$f":"IF(DataLog!$C2122=\"Log value\",DataLog!AC2122,\"\")","v":""},{"$f":"IF(DataLog!$C2122=\"Log value\",DataLog!AD2122,\"\")","v":""},{"$f":"IF(DataLog!$C2122=\"Log value\",DataLog!AE2122,\"\")","v":""},{"$f":"IF(DataLog!$C2122=\"Log value\",DataLog!AF2122,\"\")","v":""},{"$f":"IF(DataLog!$C2122=\"Log value\",DataLog!AG2122,\"\")","v":""},{"$f":"IF(DataLog!$C2122=\"Log value\",DataLog!AH2122,\"\")","v":""},{"$f":"IF(DataLog!$C2122=\"Log value\",DataLog!AI2122,\"\")","v":""},{"$f":"IF(DataLog!$C2122=\"Log value\",DataLog!AJ2122,\"\")","v":""},{"$f":"IF(DataLog!$C2122=\"Log value\",DataLog!AK2122,\"\")","v":""},{"$f":"IF(DataLog!$C2122=\"Log value\",DataLog!AL2122,\"\")","v":""},{"$f":"IF(DataLog!$C2122=\"Log value\",DataLog!AM2122,\"\")","v":""}]
[null,null,null,null,null,null,{"$f":"IF(DataLog!$C2123=\"Log value\",DataLog!D2123&\"_\"&TEXT(DataLog!B2123,\"åååå-mm-dd\"),\"\")","v":""},{"$f":"IF(DataLog!$C2123=\"Log value\",DataLog!E2123,\"\")","v":""},{"$f":"IF(DataLog!$C2123=\"Log value\",DataLog!F2123,\"\")","v":""},{"$f":"IF(DataLog!$C2123=\"Log value\",DataLog!G2123,\"\")","v":""},{"$f":"IF(DataLog!$C2123=\"Log value\",DataLog!H2123,\"\")","v":""},{"$f":"IF(DataLog!$C2123=\"Log value\",DataLog!I2123,\"\")","v":""},{"$f":"IF(DataLog!$C2123=\"Log value\",DataLog!J2123,\"\")","v":""},{"$f":"IF(DataLog!$C2123=\"Log value\",DataLog!K2123,\"\")","v":""},{"$f":"IF(DataLog!$C2123=\"Log value\",DataLog!L2123,\"\")","v":""},{"$f":"IF(DataLog!$C2123=\"Log value\",DataLog!M2123,\"\")","v":""},{"$f":"IF(DataLog!$C2123=\"Log value\",DataLog!N2123,\"\")","v":""},{"$f":"IF(DataLog!$C2123=\"Log value\",DataLog!O2123,\"\")","v":""},{"$f":"IF(DataLog!$C2123=\"Log value\",DataLog!P2123,\"\")","v":""},{"$f":"IF(DataLog!$C2123=\"Log value\",DataLog!Q2123,\"\")","v":""},{"$f":"IF(DataLog!$C2123=\"Log value\",DataLog!R2123,\"\")","v":""},{"$f":"IF(DataLog!$C2123=\"Log value\",DataLog!S2123,\"\")","v":""},{"$f":"IF(DataLog!$C2123=\"Log value\",DataLog!T2123,\"\")","v":""},{"$f":"IF(DataLog!$C2123=\"Log value\",DataLog!U2123,\"\")","v":""},{"$f":"IF(DataLog!$C2123=\"Log value\",DataLog!V2123,\"\")","v":""},{"$f":"IF(DataLog!$C2123=\"Log value\",DataLog!W2123,\"\")","v":""},{"$f":"IF(DataLog!$C2123=\"Log value\",DataLog!X2123,\"\")","v":""},{"$f":"IF(DataLog!$C2123=\"Log value\",DataLog!Y2123,\"\")","v":""},{"$f":"IF(DataLog!$C2123=\"Log value\",DataLog!Z2123,\"\")","v":""},{"$f":"IF(DataLog!$C2123=\"Log value\",DataLog!AA2123,\"\")","v":""},{"$f":"IF(DataLog!$C2123=\"Log value\",DataLog!AB2123,\"\")","v":""},{"$f":"IF(DataLog!$C2123=\"Log value\",DataLog!AC2123,\"\")","v":""},{"$f":"IF(DataLog!$C2123=\"Log value\",DataLog!AD2123,\"\")","v":""},{"$f":"IF(DataLog!$C2123=\"Log value\",DataLog!AE2123,\"\")","v":""},{"$f":"IF(DataLog!$C2123=\"Log value\",DataLog!AF2123,\"\")","v":""},{"$f":"IF(DataLog!$C2123=\"Log value\",DataLog!AG2123,\"\")","v":""},{"$f":"IF(DataLog!$C2123=\"Log value\",DataLog!AH2123,\"\")","v":""},{"$f":"IF(DataLog!$C2123=\"Log value\",DataLog!AI2123,\"\")","v":""},{"$f":"IF(DataLog!$C2123=\"Log value\",DataLog!AJ2123,\"\")","v":""},{"$f":"IF(DataLog!$C2123=\"Log value\",DataLog!AK2123,\"\")","v":""},{"$f":"IF(DataLog!$C2123=\"Log value\",DataLog!AL2123,\"\")","v":""},{"$f":"IF(DataLog!$C2123=\"Log value\",DataLog!AM2123,\"\")","v":""}]
[null,null,null,null,null,null,{"$f":"IF(DataLog!$C2126=\"Log value\",DataLog!D2126&\"_\"&TEXT(DataLog!B2126,\"åååå-mm-dd\"),\"\")","v":""},{"$f":"IF(DataLog!$C2126=\"Log value\",DataLog!E2126,\"\")","v":""},{"$f":"IF(DataLog!$C2126=\"Log value\",DataLog!F2126,\"\")","v":""},{"$f":"IF(DataLog!$C2126=\"Log value\",DataLog!G2126,\"\")","v":""},{"$f":"IF(DataLog!$C2126=\"Log value\",DataLog!H2126,\"\")","v":""},{"$f":"IF(DataLog!$C2126=\"Log value\",DataLog!I2126,\"\")","v":""},{"$f":"IF(DataLog!$C2126=\"Log value\",DataLog!J2126,\"\")","v":""},{"$f":"IF(DataLog!$C2126=\"Log value\",DataLog!K2126,\"\")","v":""},{"$f":"IF(DataLog!$C2126=\"Log value\",DataLog!L2126,\"\")","v":""},{"$f":"IF(DataLog!$C2126=\"Log value\",DataLog!M2126,\"\")","v":""},{"$f":"IF(DataLog!$C2126=\"Log value\",DataLog!N2126,\"\")","v":""},{"$f":"IF(DataLog!$C2126=\"Log value\",DataLog!O2126,\"\")","v":""},{"$f":"IF(DataLog!$C2126=\"Log value\",DataLog!P2126,\"\")","v":""},{"$f":"IF(DataLog!$C2126=\"Log value\",DataLog!Q2126,\"\")","v":""},{"$f":"IF(DataLog!$C2126=\"Log value\",DataLog!R2126,\"\")","v":""},{"$f":"IF(DataLog!$C2126=\"Log value\",DataLog!S2126,\"\")","v":""},{"$f":"IF(DataLog!$C2126=\"Log value\",DataLog!T2126,\"\")","v":""},{"$f":"IF(DataLog!$C2126=\"Log value\",DataLog!U2126,\"\")","v":""},{"$f":"IF(DataLog!$C2126=\"Log value\",DataLog!V2126,\"\")","v":""},{"$f":"IF(DataLog!$C2126=\"Log value\",DataLog!W2126,\"\")","v":""},{"$f":"IF(DataLog!$C2126=\"Log value\",DataLog!X2126,\"\")","v":""},{"$f":"IF(DataLog!$C2126=\"Log value\",DataLog!Y2126,\"\")","v":""},{"$f":"IF(DataLog!$C2126=\"Log value\",DataLog!Z2126,\"\")","v":""},{"$f":"IF(DataLog!$C2126=\"Log value\",DataLog!AA2126,\"\")","v":""},{"$f":"IF(DataLog!$C2126=\"Log value\",DataLog!AB2126,\"\")","v":""},{"$f":"IF(DataLog!$C2126=\"Log value\",DataLog!AC2126,\"\")","v":""},{"$f":"IF(DataLog!$C2126=\"Log value\",DataLog!AD2126,\"\")","v":""},{"$f":"IF(DataLog!$C2126=\"Log value\",DataLog!AE2126,\"\")","v":""},{"$f":"IF(DataLog!$C2126=\"Log value\",DataLog!AF2126,\"\")","v":""},{"$f":"IF(DataLog!$C2126=\"Log value\",DataLog!AG2126,\"\")","v":""},{"$f":"IF(DataLog!$C2126=\"Log value\",DataLog!AH2126,\"\")","v":""},{"$f":"IF(DataLog!$C2126=\"Log value\",DataLog!AI2126,\"\")","v":""},{"$f":"IF(DataLog!$C2126=\"Log value\",DataLog!AJ2126,\"\")","v":""},{"$f":"IF(DataLog!$C2126=\"Log value\",DataLog!AK2126,\"\")","v":""},{"$f":"IF(DataLog!$C2126=\"Log value\",DataLog!AL2126,\"\")","v":""},{"$f":"IF(DataLog!$C2126=\"Log value\",DataLog!AM2126,\"\")","v":""}]
[null,null,null,null,null,null,{"$f":"IF(DataLog!$C2128=\"Log value\",DataLog!D2128&\"_\"&TEXT(DataLog!B2128,\"åååå-mm-dd\"),\"\")","v":""},{"$f":"IF(DataLog!$C2128=\"Log value\",DataLog!E2128,\"\")","v":""},{"$f":"IF(DataLog!$C2128=\"Log value\",DataLog!F2128,\"\")","v":""},{"$f":"IF(DataLog!$C2128=\"Log value\",DataLog!G2128,\"\")","v":""},{"$f":"IF(DataLog!$C2128=\"Log value\",DataLog!H2128,\"\")","v":""},{"$f":"IF(DataLog!$C2128=\"Log value\",DataLog!I2128,\"\")","v":""},{"$f":"IF(DataLog!$C2128=\"Log value\",DataLog!J2128,\"\")","v":""},{"$f":"IF(DataLog!$C2128=\"Log value\",DataLog!K2128,\"\")","v":""},{"$f":"IF(DataLog!$C2128=\"Log value\",DataLog!L2128,\"\")","v":""},{"$f":"IF(DataLog!$C2128=\"Log value\",DataLog!M2128,\"\")","v":""},{"$f":"IF(DataLog!$C2128=\"Log value\",DataLog!N2128,\"\")","v":""},{"$f":"IF(DataLog!$C2128=\"Log value\",DataLog!O2128,\"\")","v":""},{"$f":"IF(DataLog!$C2128=\"Log value\",DataLog!P2128,\"\")","v":""},{"$f":"IF(DataLog!$C2128=\"Log value\",DataLog!Q2128,\"\")","v":""},{"$f":"IF(DataLog!$C2128=\"Log value\",DataLog!R2128,\"\")","v":""},{"$f":"IF(DataLog!$C2128=\"Log value\",DataLog!S2128,\"\")","v":""},{"$f":"IF(DataLog!$C2128=\"Log value\",DataLog!T2128,\"\")","v":""},{"$f":"IF(DataLog!$C2128=\"Log value\",DataLog!U2128,\"\")","v":""},{"$f":"IF(DataLog!$C2128=\"Log value\",DataLog!V2128,\"\")","v":""},{"$f":"IF(DataLog!$C2128=\"Log value\",DataLog!W2128,\"\")","v":""},{"$f":"IF(DataLog!$C2128=\"Log value\",DataLog!X2128,\"\")","v":""},{"$f":"IF(DataLog!$C2128=\"Log value\",DataLog!Y2128,\"\")","v":""},{"$f":"IF(DataLog!$C2128=\"Log value\",DataLog!Z2128,\"\")","v":""},{"$f":"IF(DataLog!$C2128=\"Log value\",DataLog!AA2128,\"\")","v":""},{"$f":"IF(DataLog!$C2128=\"Log value\",DataLog!AB2128,\"\")","v":""},{"$f":"IF(DataLog!$C2128=\"Log value\",DataLog!AC2128,\"\")","v":""},{"$f":"IF(DataLog!$C2128=\"Log value\",DataLog!AD2128,\"\")","v":""},{"$f":"IF(DataLog!$C2128=\"Log value\",DataLog!AE2128,\"\")","v":""},{"$f":"IF(DataLog!$C2128=\"Log value\",DataLog!AF2128,\"\")","v":""},{"$f":"IF(DataLog!$C2128=\"Log value\",DataLog!AG2128,\"\")","v":""},{"$f":"IF(DataLog!$C2128=\"Log value\",DataLog!AH2128,\"\")","v":""},{"$f":"IF(DataLog!$C2128=\"Log value\",DataLog!AI2128,\"\")","v":""},{"$f":"IF(DataLog!$C2128=\"Log value\",DataLog!AJ2128,\"\")","v":""},{"$f":"IF(DataLog!$C2128=\"Log value\",DataLog!AK2128,\"\")","v":""},{"$f":"IF(DataLog!$C2128=\"Log value\",DataLog!AL2128,\"\")","v":""},{"$f":"IF(DataLog!$C2128=\"Log value\",DataLog!AM2128,\"\")","v":""}]
[null,null,null,null,null,null,{"$f":"IF(DataLog!$C2131=\"Log value\",DataLog!D2131&\"_\"&TEXT(DataLog!B2131,\"åååå-mm-dd\"),\"\")","v":""},{"$f":"IF(DataLog!$C2131=\"Log value\",DataLog!E2131,\"\")","v":""},{"$f":"IF(DataLog!$C2131=\"Log value\",DataLog!F2131,\"\")","v":""},{"$f":"IF(DataLog!$C2131=\"Log value\",DataLog!G2131,\"\")","v":""},{"$f":"IF(DataLog!$C2131=\"Log value\",DataLog!H2131,\"\")","v":""},{"$f":"IF(DataLog!$C2131=\"Log value\",DataLog!I2131,\"\")","v":""},{"$f":"IF(DataLog!$C2131=\"Log value\",DataLog!J2131,\"\")","v":""},{"$f":"IF(DataLog!$C2131=\"Log value\",DataLog!K2131,\"\")","v":""},{"$f":"IF(DataLog!$C2131=\"Log value\",DataLog!L2131,\"\")","v":""},{"$f":"IF(DataLog!$C2131=\"Log value\",DataLog!M2131,\"\")","v":""},{"$f":"IF(DataLog!$C2131=\"Log value\",DataLog!N2131,\"\")","v":""},{"$f":"IF(DataLog!$C2131=\"Log value\",DataLog!O2131,\"\")","v":""},{"$f":"IF(DataLog!$C2131=\"Log value\",DataLog!P2131,\"\")","v":""},{"$f":"IF(DataLog!$C2131=\"Log value\",DataLog!Q2131,\"\")","v":""},{"$f":"IF(DataLog!$C2131=\"Log value\",DataLog!R2131,\"\")","v":""},{"$f":"IF(DataLog!$C2131=\"Log value\",DataLog!S2131,\"\")","v":""},{"$f":"IF(DataLog!$C2131=\"Log value\",DataLog!T2131,\"\")","v":""},{"$f":"IF(DataLog!$C2131=\"Log value\",DataLog!U2131,\"\")","v":""},{"$f":"IF(DataLog!$C2131=\"Log value\",DataLog!V2131,\"\")","v":""},{"$f":"IF(DataLog!$C2131=\"Log value\",DataLog!W2131,\"\")","v":""},{"$f":"IF(DataLog!$C2131=\"Log value\",DataLog!X2131,\"\")","v":""},{"$f":"IF(DataLog!$C2131=\"Log value\",DataLog!Y2131,\"\")","v":""},{"$f":"IF(DataLog!$C2131=\"Log value\",DataLog!Z2131,\"\")","v":""},{"$f":"IF(DataLog!$C2131=\"Log value\",DataLog!AA2131,\"\")","v":""},{"$f":"IF(DataLog!$C2131=\"Log value\",DataLog!AB2131,\"\")","v":""},{"$f":"IF(DataLog!$C2131=\"Log value\",DataLog!AC2131,\"\")","v":""},{"$f":"IF(DataLog!$C2131=\"Log value\",DataLog!AD2131,\"\")","v":""},{"$f":"IF(DataLog!$C2131=\"Log value\",DataLog!AE2131,\"\")","v":""},{"$f":"IF(DataLog!$C2131=\"Log value\",DataLog!AF2131,\"\")","v":""},{"$f":"IF(DataLog!$C2131=\"Log value\",DataLog!AG2131,\"\")","v":""},{"$f":"IF(DataLog!$C2131=\"Log value\",DataLog!AH2131,\"\")","v":""},{"$f":"IF(DataLog!$C2131=\"Log value\",DataLog!AI2131,\"\")","v":""},{"$f":"IF(DataLog!$C2131=\"Log value\",DataLog!AJ2131,\"\")","v":""},{"$f":"IF(DataLog!$C2131=\"Log value\",DataLog!AK2131,\"\")","v":""},{"$f":"IF(DataLog!$C2131=\"Log value\",DataLog!AL2131,\"\")","v":""},{"$f":"IF(DataLog!$C2131=\"Log value\",DataLog!AM2131,\"\")","v":""}]
[null,null,null,null,null,null,{"$f":"IF(DataLog!$C2132=\"Log value\",DataLog!D2132&\"_\"&TEXT(DataLog!B2132,\"åååå-mm-dd\"),\"\")","v":""},{"$f":"IF(DataLog!$C2132=\"Log value\",DataLog!E2132,\"\")","v":""},{"$f":"IF(DataLog!$C2132=\"Log value\",DataLog!F2132,\"\")","v":""},{"$f":"IF(DataLog!$C2132=\"Log value\",DataLog!G2132,\"\")","v":""},{"$f":"IF(DataLog!$C2132=\"Log value\",DataLog!H2132,\"\")","v":""},{"$f":"IF(DataLog!$C2132=\"Log value\",DataLog!I2132,\"\")","v":""},{"$f":"IF(DataLog!$C2132=\"Log value\",DataLog!J2132,\"\")","v":""},{"$f":"IF(DataLog!$C2132=\"Log value\",DataLog!K2132,\"\")","v":""},{"$f":"IF(DataLog!$C2132=\"Log value\",DataLog!L2132,\"\")","v":""},{"$f":"IF(DataLog!$C2132=\"Log value\",DataLog!M2132,\"\")","v":""},{"$f":"IF(DataLog!$C2132=\"Log value\",DataLog!N2132,\"\")","v":""},{"$f":"IF(DataLog!$C2132=\"Log value\",DataLog!O2132,\"\")","v":""},{"$f":"IF(DataLog!$C2132=\"Log value\",DataLog!P2132,\"\")","v":""},{"$f":"IF(DataLog!$C2132=\"Log value\",DataLog!Q2132,\"\")","v":""},{"$f":"IF(DataLog!$C2132=\"Log value\",DataLog!R2132,\"\")","v":""},{"$f":"IF(DataLog!$C2132=\"Log value\",DataLog!S2132,\"\")","v":""},{"$f":"IF(DataLog!$C2132=\"Log value\",DataLog!T2132,\"\")","v":""},{"$f":"IF(DataLog!$C2132=\"Log value\",DataLog!U2132,\"\")","v":""},{"$f":"IF(DataLog!$C2132=\"Log value\",DataLog!V2132,\"\")","v":""},{"$f":"IF(DataLog!$C2132=\"Log value\",DataLog!W2132,\"\")","v":""},{"$f":"IF(DataLog!$C2132=\"Log value\",DataLog!X2132,\"\")","v":""},{"$f":"IF(DataLog!$C2132=\"Log value\",DataLog!Y2132,\"\")","v":""},{"$f":"IF(DataLog!$C2132=\"Log value\",DataLog!Z2132,\"\")","v":""},{"$f":"IF(DataLog!$C2132=\"Log value\",DataLog!AA2132,\"\")","v":""},{"$f":"IF(DataLog!$C2132=\"Log value\",DataLog!AB2132,\"\")","v":""},{"$f":"IF(DataLog!$C2132=\"Log value\",DataLog!AC2132,\"\")","v":""},{"$f":"IF(DataLog!$C2132=\"Log value\",DataLog!AD2132,\"\")","v":""},{"$f":"IF(DataLog!$C2132=\"Log value\",DataLog!AE2132,\"\")","v":""},{"$f":"IF(DataLog!$C2132=\"Log value\",DataLog!AF2132,\"\")","v":""},{"$f":"IF(DataLog!$C2132=\"Log value\",DataLog!AG2132,\"\")","v":""},{"$f":"IF(DataLog!$C2132=\"Log value\",DataLog!AH2132,\"\")","v":""},{"$f":"IF(DataLog!$C2132=\"Log value\",DataLog!AI2132,\"\")","v":""},{"$f":"IF(DataLog!$C2132=\"Log value\",DataLog!AJ2132,\"\")","v":""},{"$f":"IF(DataLog!$C2132=\"Log value\",DataLog!AK2132,\"\")","v":""},{"$f":"IF(DataLog!$C2132=\"Log value\",DataLog!AL2132,\"\")","v":""},{"$f":"IF(DataLog!$C2132=\"Log value\",DataLog!AM2132,\"\")","v":""}]
[null,null,null,null,null,null,{"$f":"IF(DataLog!$C2135=\"Log value\",DataLog!D2135&\"_\"&TEXT(DataLog!B2135,\"åååå-mm-dd\"),\"\")","v":""},{"$f":"IF(DataLog!$C2135=\"Log value\",DataLog!E2135,\"\")","v":""},{"$f":"IF(DataLog!$C2135=\"Log value\",DataLog!F2135,\"\")","v":""},{"$f":"IF(DataLog!$C2135=\"Log value\",DataLog!G2135,\"\")","v":""},{"$f":"IF(DataLog!$C2135=\"Log value\",DataLog!H2135,\"\")","v":""},{"$f":"IF(DataLog!$C2135=\"Log value\",DataLog!I2135,\"\")","v":""},{"$f":"IF(DataLog!$C2135=\"Log value\",DataLog!J2135,\"\")","v":""},{"$f":"IF(DataLog!$C2135=\"Log value\",DataLog!K2135,\"\")","v":""},{"$f":"IF(DataLog!$C2135=\"Log value\",DataLog!L2135,\"\")","v":""},{"$f":"IF(DataLog!$C2135=\"Log value\",DataLog!M2135,\"\")","v":""},{"$f":"IF(DataLog!$C2135=\"Log value\",DataLog!N2135,\"\")","v":""},{"$f":"IF(DataLog!$C2135=\"Log value\",DataLog!O2135,\"\")","v":""},{"$f":"IF(DataLog!$C2135=\"Log value\",DataLog!P2135,\"\")","v":""},{"$f":"IF(DataLog!$C2135=\"Log value\",DataLog!Q2135,\"\")","v":""},{"$f":"IF(DataLog!$C2135=\"Log value\",DataLog!R2135,\"\")","v":""},{"$f":"IF(DataLog!$C2135=\"Log value\",DataLog!S2135,\"\")","v":""},{"$f":"IF(DataLog!$C2135=\"Log value\",DataLog!T2135,\"\")","v":""},{"$f":"IF(DataLog!$C2135=\"Log value\",DataLog!U2135,\"\")","v":""},{"$f":"IF(DataLog!$C2135=\"Log value\",DataLog!V2135,\"\")","v":""},{"$f":"IF(DataLog!$C2135=\"Log value\",DataLog!W2135,\"\")","v":""},{"$f":"IF(DataLog!$C2135=\"Log value\",DataLog!X2135,\"\")","v":""},{"$f":"IF(DataLog!$C2135=\"Log value\",DataLog!Y2135,\"\")","v":""},{"$f":"IF(DataLog!$C2135=\"Log value\",DataLog!Z2135,\"\")","v":""},{"$f":"IF(DataLog!$C2135=\"Log value\",DataLog!AA2135,\"\")","v":""},{"$f":"IF(DataLog!$C2135=\"Log value\",DataLog!AB2135,\"\")","v":""},{"$f":"IF(DataLog!$C2135=\"Log value\",DataLog!AC2135,\"\")","v":""},{"$f":"IF(DataLog!$C2135=\"Log value\",DataLog!AD2135,\"\")","v":""},{"$f":"IF(DataLog!$C2135=\"Log value\",DataLog!AE2135,\"\")","v":""},{"$f":"IF(DataLog!$C2135=\"Log value\",DataLog!AF2135,\"\")","v":""},{"$f":"IF(DataLog!$C2135=\"Log value\",DataLog!AG2135,\"\")","v":""},{"$f":"IF(DataLog!$C2135=\"Log value\",DataLog!AH2135,\"\")","v":""},{"$f":"IF(DataLog!$C2135=\"Log value\",DataLog!AI2135,\"\")","v":""},{"$f":"IF(DataLog!$C2135=\"Log value\",DataLog!AJ2135,\"\")","v":""},{"$f":"IF(DataLog!$C2135=\"Log value\",DataLog!AK2135,\"\")","v":""},{"$f":"IF(DataLog!$C2135=\"Log value\",DataLog!AL2135,\"\")","v":""},{"$f":"IF(DataLog!$C2135=\"Log value\",DataLog!AM2135,\"\")","v":""}]
[null,null,null,null,null,null,{"$f":"IF(DataLog!$C2136=\"Log value\",DataLog!D2136&\"_\"&TEXT(DataLog!B2136,\"åååå-mm-dd\"),\"\")","v":""},{"$f":"IF(DataLog!$C2136=\"Log value\",DataLog!E2136,\"\")","v":""},{"$f":"IF(DataLog!$C2136=\"Log value\",DataLog!F2136,\"\")","v":""},{"$f":"IF(DataLog!$C2136=\"Log value\",DataLog!G2136,\"\")","v":""},{"$f":"IF(DataLog!$C2136=\"Log value\",DataLog!H2136,\"\")","v":""},{"$f":"IF(DataLog!$C2136=\"Log value\",DataLog!I2136,\"\")","v":""},{"$f":"IF(DataLog!$C2136=\"Log value\",DataLog!J2136,\"\")","v":""},{"$f":"IF(DataLog!$C2136=\"Log value\",DataLog!K2136,\"\")","v":""},{"$f":"IF(DataLog!$C2136=\"Log value\",DataLog!L2136,\"\")","v":""},{"$f":"IF(DataLog!$C2136=\"Log value\",DataLog!M2136,\"\")","v":""},{"$f":"IF(DataLog!$C2136=\"Log value\",DataLog!N2136,\"\")","v":""},{"$f":"IF(DataLog!$C2136=\"Log value\",DataLog!O2136,\"\")","v":""},{"$f":"IF(DataLog!$C2136=\"Log value\",DataLog!P2136,\"\")","v":""},{"$f":"IF(DataLog!$C2136=\"Log value\",DataLog!Q2136,\"\")","v":""},{"$f":"IF(DataLog!$C2136=\"Log value\",DataLog!R2136,\"\")","v":""},{"$f":"IF(DataLog!$C2136=\"Log value\",DataLog!S2136,\"\")","v":""},{"$f":"IF(DataLog!$C2136=\"Log value\",DataLog!T2136,\"\")","v":""},{"$f":"IF(DataLog!$C2136=\"Log value\",DataLog!U2136,\"\")","v":""},{"$f":"IF(DataLog!$C2136=\"Log value\",DataLog!V2136,\"\")","v":""},{"$f":"IF(DataLog!$C2136=\"Log value\",DataLog!W2136,\"\")","v":""},{"$f":"IF(DataLog!$C2136=\"Log value\",DataLog!X2136,\"\")","v":""},{"$f":"IF(DataLog!$C2136=\"Log value\",DataLog!Y2136,\"\")","v":""},{"$f":"IF(DataLog!$C2136=\"Log value\",DataLog!Z2136,\"\")","v":""},{"$f":"IF(DataLog!$C2136=\"Log value\",DataLog!AA2136,\"\")","v":""},{"$f":"IF(DataLog!$C2136=\"Log value\",DataLog!AB2136,\"\")","v":""},{"$f":"IF(DataLog!$C2136=\"Log value\",DataLog!AC2136,\"\")","v":""},{"$f":"IF(DataLog!$C2136=\"Log value\",DataLog!AD2136,\"\")","v":""},{"$f":"IF(DataLog!$C2136=\"Log value\",DataLog!AE2136,\"\")","v":""},{"$f":"IF(DataLog!$C2136=\"Log value\",DataLog!AF2136,\"\")","v":""},{"$f":"IF(DataLog!$C2136=\"Log value\",DataLog!AG2136,\"\")","v":""},{"$f":"IF(DataLog!$C2136=\"Log value\",DataLog!AH2136,\"\")","v":""},{"$f":"IF(DataLog!$C2136=\"Log value\",DataLog!AI2136,\"\")","v":""},{"$f":"IF(DataLog!$C2136=\"Log value\",DataLog!AJ2136,\"\")","v":""},{"$f":"IF(DataLog!$C2136=\"Log value\",DataLog!AK2136,\"\")","v":""},{"$f":"IF(DataLog!$C2136=\"Log value\",DataLog!AL2136,\"\")","v":""},{"$f":"IF(DataLog!$C2136=\"Log value\",DataLog!AM2136,\"\")","v":""}]
[null,null,null,null,null,null,{"$f":"IF(DataLog!$C2140=\"Log value\",DataLog!D2140&\"_\"&TEXT(DataLog!B2140,\"åååå-mm-dd\"),\"\")","v":""},{"$f":"IF(DataLog!$C2140=\"Log value\",DataLog!E2140,\"\")","v":""},{"$f":"IF(DataLog!$C2140=\"Log value\",DataLog!F2140,\"\")","v":""},{"$f":"IF(DataLog!$C2140=\"Log value\",DataLog!G2140,\"\")","v":""},{"$f":"IF(DataLog!$C2140=\"Log value\",DataLog!H2140,\"\")","v":""},{"$f":"IF(DataLog!$C2140=\"Log value\",DataLog!I2140,\"\")","v":""},{"$f":"IF(DataLog!$C2140=\"Log value\",DataLog!J2140,\"\")","v":""},{"$f":"IF(DataLog!$C2140=\"Log value\",DataLog!K2140,\"\")","v":""},{"$f":"IF(DataLog!$C2140=\"Log value\",DataLog!L2140,\"\")","v":""},{"$f":"IF(DataLog!$C2140=\"Log value\",DataLog!M2140,\"\")","v":""},{"$f":"IF(DataLog!$C2140=\"Log value\",DataLog!N2140,\"\")","v":""},{"$f":"IF(DataLog!$C2140=\"Log value\",DataLog!O2140,\"\")","v":""},{"$f":"IF(DataLog!$C2140=\"Log value\",DataLog!P2140,\"\")","v":""},{"$f":"IF(DataLog!$C2140=\"Log value\",DataLog!Q2140,\"\")","v":""},{"$f":"IF(DataLog!$C2140=\"Log value\",DataLog!R2140,\"\")","v":""},{"$f":"IF(DataLog!$C2140=\"Log value\",DataLog!S2140,\"\")","v":""},{"$f":"IF(DataLog!$C2140=\"Log value\",DataLog!T2140,\"\")","v":""},{"$f":"IF(DataLog!$C2140=\"Log value\",DataLog!U2140,\"\")","v":""},{"$f":"IF(DataLog!$C2140=\"Log value\",DataLog!V2140,\"\")","v":""},{"$f":"IF(DataLog!$C2140=\"Log value\",DataLog!W2140,\"\")","v":""},{"$f":"IF(DataLog!$C2140=\"Log value\",DataLog!X2140,\"\")","v":""},{"$f":"IF(DataLog!$C2140=\"Log value\",DataLog!Y2140,\"\")","v":""},{"$f":"IF(DataLog!$C2140=\"Log value\",DataLog!Z2140,\"\")","v":""},{"$f":"IF(DataLog!$C2140=\"Log value\",DataLog!AA2140,\"\")","v":""},{"$f":"IF(DataLog!$C2140=\"Log value\",DataLog!AB2140,\"\")","v":""},{"$f":"IF(DataLog!$C2140=\"Log value\",DataLog!AC2140,\"\")","v":""},{"$f":"IF(DataLog!$C2140=\"Log value\",DataLog!AD2140,\"\")","v":""},{"$f":"IF(DataLog!$C2140=\"Log value\",DataLog!AE2140,\"\")","v":""},{"$f":"IF(DataLog!$C2140=\"Log value\",DataLog!AF2140,\"\")","v":""},{"$f":"IF(DataLog!$C2140=\"Log value\",DataLog!AG2140,\"\")","v":""},{"$f":"IF(DataLog!$C2140=\"Log value\",DataLog!AH2140,\"\")","v":""},{"$f":"IF(DataLog!$C2140=\"Log value\",DataLog!AI2140,\"\")","v":""},{"$f":"IF(DataLog!$C2140=\"Log value\",DataLog!AJ2140,\"\")","v":""},{"$f":"IF(DataLog!$C2140=\"Log value\",DataLog!AK2140,\"\")","v":""},{"$f":"IF(DataLog!$C2140=\"Log value\",DataLog!AL2140,\"\")","v":""},{"$f":"IF(DataLog!$C2140=\"Log value\",DataLog!AM2140,\"\")","v":""}]
[null,null,null,null,null,null,{"$f":"IF(DataLog!$C2141=\"Log value\",DataLog!D2141&\"_\"&TEXT(DataLog!B2141,\"åååå-mm-dd\"),\"\")","v":""},{"$f":"IF(DataLog!$C2141=\"Log value\",DataLog!E2141,\"\")","v":""},{"$f":"IF(DataLog!$C2141=\"Log value\",DataLog!F2141,\"\")","v":""},{"$f":"IF(DataLog!$C2141=\"Log value\",DataLog!G2141,\"\")","v":""},{"$f":"IF(DataLog!$C2141=\"Log value\",DataLog!H2141,\"\")","v":""},{"$f":"IF(DataLog!$C2141=\"Log value\",DataLog!I2141,\"\")","v":""},{"$f":"IF(DataLog!$C2141=\"Log value\",DataLog!J2141,\"\")","v":""},{"$f":"IF(DataLog!$C2141=\"Log value\",DataLog!K2141,\"\")","v":""},{"$f":"IF(DataLog!$C2141=\"Log value\",DataLog!L2141,\"\")","v":""},{"$f":"IF(DataLog!$C2141=\"Log value\",DataLog!M2141,\"\")","v":""},{"$f":"IF(DataLog!$C2141=\"Log value\",DataLog!N2141,\"\")","v":""},{"$f":"IF(DataLog!$C2141=\"Log value\",DataLog!O2141,\"\")","v":""},{"$f":"IF(DataLog!$C2141=\"Log value\",DataLog!P2141,\"\")","v":""},{"$f":"IF(DataLog!$C2141=\"Log value\",DataLog!Q2141,\"\")","v":""},{"$f":"IF(DataLog!$C2141=\"Log value\",DataLog!R2141,\"\")","v":""},{"$f":"IF(DataLog!$C2141=\"Log value\",DataLog!S2141,\"\")","v":""},{"$f":"IF(DataLog!$C2141=\"Log value\",DataLog!T2141,\"\")","v":""},{"$f":"IF(DataLog!$C2141=\"Log value\",DataLog!U2141,\"\")","v":""},{"$f":"IF(DataLog!$C2141=\"Log value\",DataLog!V2141,\"\")","v":""},{"$f":"IF(DataLog!$C2141=\"Log value\",DataLog!W2141,\"\")","v":""},{"$f":"IF(DataLog!$C2141=\"Log value\",DataLog!X2141,\"\")","v":""},{"$f":"IF(DataLog!$C2141=\"Log value\",DataLog!Y2141,\"\")","v":""},{"$f":"IF(DataLog!$C2141=\"Log value\",DataLog!Z2141,\"\")","v":""},{"$f":"IF(DataLog!$C2141=\"Log value\",DataLog!AA2141,\"\")","v":""},{"$f":"IF(DataLog!$C2141=\"Log value\",DataLog!AB2141,\"\")","v":""},{"$f":"IF(DataLog!$C2141=\"Log value\",DataLog!AC2141,\"\")","v":""},{"$f":"IF(DataLog!$C2141=\"Log value\",DataLog!AD2141,\"\")","v":""},{"$f":"IF(DataLog!$C2141=\"Log value\",DataLog!AE2141,\"\")","v":""},{"$f":"IF(DataLog!$C2141=\"Log value\",DataLog!AF2141,\"\")","v":""},{"$f":"IF(DataLog!$C2141=\"Log value\",DataLog!AG2141,\"\")","v":""},{"$f":"IF(DataLog!$C2141=\"Log value\",DataLog!AH2141,\"\")","v":""},{"$f":"IF(DataLog!$C2141=\"Log value\",DataLog!AI2141,\"\")","v":""},{"$f":"IF(DataLog!$C2141=\"Log value\",DataLog!AJ2141,\"\")","v":""},{"$f":"IF(DataLog!$C2141=\"Log value\",DataLog!AK2141,\"\")","v":""},{"$f":"IF(DataLog!$C2141=\"Log value\",DataLog!AL2141,\"\")","v":""},{"$f":"IF(DataLog!$C2141=\"Log value\",DataLog!AM2141,\"\")","v":""}]
[null,null,null,null,null,null,{"$f":"IF(DataLog!$C2144=\"Log value\",DataLog!D2144&\"_\"&TEXT(DataLog!B2144,\"åååå-mm-dd\"),\"\")","v":""},{"$f":"IF(DataLog!$C2144=\"Log value\",DataLog!E2144,\"\")","v":""},{"$f":"IF(DataLog!$C2144=\"Log value\",DataLog!F2144,\"\")","v":""},{"$f":"IF(DataLog!$C2144=\"Log value\",DataLog!G2144,\"\")","v":""},{"$f":"IF(DataLog!$C2144=\"Log value\",DataLog!H2144,\"\")","v":""},{"$f":"IF(DataLog!$C2144=\"Log value\",DataLog!I2144,\"\")","v":""},{"$f":"IF(DataLog!$C2144=\"Log value\",DataLog!J2144,\"\")","v":""},{"$f":"IF(DataLog!$C2144=\"Log value\",DataLog!K2144,\"\")","v":""},{"$f":"IF(DataLog!$C2144=\"Log value\",DataLog!L2144,\"\")","v":""},{"$f":"IF(DataLog!$C2144=\"Log value\",DataLog!M2144,\"\")","v":""},{"$f":"IF(DataLog!$C2144=\"Log value\",DataLog!N2144,\"\")","v":""},{"$f":"IF(DataLog!$C2144=\"Log value\",DataLog!O2144,\"\")","v":""},{"$f":"IF(DataLog!$C2144=\"Log value\",DataLog!P2144,\"\")","v":""},{"$f":"IF(DataLog!$C2144=\"Log value\",DataLog!Q2144,\"\")","v":""},{"$f":"IF(DataLog!$C2144=\"Log value\",DataLog!R2144,\"\")","v":""},{"$f":"IF(DataLog!$C2144=\"Log value\",DataLog!S2144,\"\")","v":""},{"$f":"IF(DataLog!$C2144=\"Log value\",DataLog!T2144,\"\")","v":""},{"$f":"IF(DataLog!$C2144=\"Log value\",DataLog!U2144,\"\")","v":""},{"$f":"IF(DataLog!$C2144=\"Log value\",DataLog!V2144,\"\")","v":""},{"$f":"IF(DataLog!$C2144=\"Log value\",DataLog!W2144,\"\")","v":""},{"$f":"IF(DataLog!$C2144=\"Log value\",DataLog!X2144,\"\")","v":""},{"$f":"IF(DataLog!$C2144=\"Log value\",DataLog!Y2144,\"\")","v":""},{"$f":"IF(DataLog!$C2144=\"Log value\",DataLog!Z2144,\"\")","v":""},{"$f":"IF(DataLog!$C2144=\"Log value\",DataLog!AA2144,\"\")","v":""},{"$f":"IF(DataLog!$C2144=\"Log value\",DataLog!AB2144,\"\")","v":""},{"$f":"IF(DataLog!$C2144=\"Log value\",DataLog!AC2144,\"\")","v":""},{"$f":"IF(DataLog!$C2144=\"Log value\",DataLog!AD2144,\"\")","v":""},{"$f":"IF(DataLog!$C2144=\"Log value\",DataLog!AE2144,\"\")","v":""},{"$f":"IF(DataLog!$C2144=\"Log value\",DataLog!AF2144,\"\")","v":""},{"$f":"IF(DataLog!$C2144=\"Log value\",DataLog!AG2144,\"\")","v":""},{"$f":"IF(DataLog!$C2144=\"Log value\",DataLog!AH2144,\"\")","v":""},{"$f":"IF(DataLog!$C2144=\"Log value\",DataLog!AI2144,\"\")","v":""},{"$f":"IF(DataLog!$C2144=\"Log value\",DataLog!AJ2144,\"\")","v":""},{"$f":"IF(DataLog!$C2144=\"Log value\",DataLog!AK2144,\"\")","v":""},{"$f":"IF(DataLog!$C2144=\"Log value\",DataLog!AL2144,\"\")","v":""},{"$f":"IF(DataLog!$C2144=\"Log value\",DataLog!AM2144,\"\")","v":""}]
[null,null,null,null,null,null,{"$f":"IF(DataLog!$C2146=\"Log value\",DataLog!D2146&\"_\"&TEXT(DataLog!B2146,\"åååå-mm-dd\"),\"\")","v":""},{"$f":"IF(DataLog!$C2146=\"Log value\",DataLog!E2146,\"\")","v":""},{"$f":"IF(DataLog!$C2146=\"Log value\",DataLog!F2146,\"\")","v":""},{"$f":"IF(DataLog!$C2146=\"Log value\",DataLog!G2146,\"\")","v":""},{"$f":"IF(DataLog!$C2146=\"Log value\",DataLog!H2146,\"\")","v":""},{"$f":"IF(DataLog!$C2146=\"Log value\",DataLog!I2146,\"\")","v":""},{"$f":"IF(DataLog!$C2146=\"Log value\",DataLog!J2146,\"\")","v":""},{"$f":"IF(DataLog!$C2146=\"Log value\",DataLog!K2146,\"\")","v":""},{"$f":"IF(DataLog!$C2146=\"Log value\",DataLog!L2146,\"\")","v":""},{"$f":"IF(DataLog!$C2146=\"Log value\",DataLog!M2146,\"\")","v":""},{"$f":"IF(DataLog!$C2146=\"Log value\",DataLog!N2146,\"\")","v":""},{"$f":"IF(DataLog!$C2146=\"Log value\",DataLog!O2146,\"\")","v":""},{"$f":"IF(DataLog!$C2146=\"Log value\",DataLog!P2146,\"\")","v":""},{"$f":"IF(DataLog!$C2146=\"Log value\",DataLog!Q2146,\"\")","v":""},{"$f":"IF(DataLog!$C2146=\"Log value\",DataLog!R2146,\"\")","v":""},{"$f":"IF(DataLog!$C2146=\"Log value\",DataLog!S2146,\"\")","v":""},{"$f":"IF(DataLog!$C2146=\"Log value\",DataLog!T2146,\"\")","v":""},{"$f":"IF(DataLog!$C2146=\"Log value\",DataLog!U2146,\"\")","v":""},{"$f":"IF(DataLog!$C2146=\"Log value\",DataLog!V2146,\"\")","v":""},{"$f":"IF(DataLog!$C2146=\"Log value\",DataLog!W2146,\"\")","v":""},{"$f":"IF(DataLog!$C2146=\"Log value\",DataLog!X2146,\"\")","v":""},{"$f":"IF(DataLog!$C2146=\"Log value\",DataLog!Y2146,\"\")","v":""},{"$f":"IF(DataLog!$C2146=\"Log value\",DataLog!Z2146,\"\")","v":""},{"$f":"IF(DataLog!$C2146=\"Log value\",DataLog!AA2146,\"\")","v":""},{"$f":"IF(DataLog!$C2146=\"Log value\",DataLog!AB2146,\"\")","v":""},{"$f":"IF(DataLog!$C2146=\"Log value\",DataLog!AC2146,\"\")","v":""},{"$f":"IF(DataLog!$C2146=\"Log value\",DataLog!AD2146,\"\")","v":""},{"$f":"IF(DataLog!$C2146=\"Log value\",DataLog!AE2146,\"\")","v":""},{"$f":"IF(DataLog!$C2146=\"Log value\",DataLog!AF2146,\"\")","v":""},{"$f":"IF(DataLog!$C2146=\"Log value\",DataLog!AG2146,\"\")","v":""},{"$f":"IF(DataLog!$C2146=\"Log value\",DataLog!AH2146,\"\")","v":""},{"$f":"IF(DataLog!$C2146=\"Log value\",DataLog!AI2146,\"\")","v":""},{"$f":"IF(DataLog!$C2146=\"Log value\",DataLog!AJ2146,\"\")","v":""},{"$f":"IF(DataLog!$C2146=\"Log value\",DataLog!AK2146,\"\")","v":""},{"$f":"IF(DataLog!$C2146=\"Log value\",DataLog!AL2146,\"\")","v":""},{"$f":"IF(DataLog!$C2146=\"Log value\",DataLog!AM2146,\"\")","v":""}]
[null,null,null,null,null,null,{"$f":"IF(DataLog!$C2149=\"Log value\",DataLog!D2149&\"_\"&TEXT(DataLog!B2149,\"åååå-mm-dd\"),\"\")","v":""},{"$f":"IF(DataLog!$C2149=\"Log value\",DataLog!E2149,\"\")","v":""},{"$f":"IF(DataLog!$C2149=\"Log value\",DataLog!F2149,\"\")","v":""},{"$f":"IF(DataLog!$C2149=\"Log value\",DataLog!G2149,\"\")","v":""},{"$f":"IF(DataLog!$C2149=\"Log value\",DataLog!H2149,\"\")","v":""},{"$f":"IF(DataLog!$C2149=\"Log value\",DataLog!I2149,\"\")","v":""},{"$f":"IF(DataLog!$C2149=\"Log value\",DataLog!J2149,\"\")","v":""},{"$f":"IF(DataLog!$C2149=\"Log value\",DataLog!K2149,\"\")","v":""},{"$f":"IF(DataLog!$C2149=\"Log value\",DataLog!L2149,\"\")","v":""},{"$f":"IF(DataLog!$C2149=\"Log value\",DataLog!M2149,\"\")","v":""},{"$f":"IF(DataLog!$C2149=\"Log value\",DataLog!N2149,\"\")","v":""},{"$f":"IF(DataLog!$C2149=\"Log value\",DataLog!O2149,\"\")","v":""},{"$f":"IF(DataLog!$C2149=\"Log value\",DataLog!P2149,\"\")","v":""},{"$f":"IF(DataLog!$C2149=\"Log value\",DataLog!Q2149,\"\")","v":""},{"$f":"IF(DataLog!$C2149=\"Log value\",DataLog!R2149,\"\")","v":""},{"$f":"IF(DataLog!$C2149=\"Log value\",DataLog!S2149,\"\")","v":""},{"$f":"IF(DataLog!$C2149=\"Log value\",DataLog!T2149,\"\")","v":""},{"$f":"IF(DataLog!$C2149=\"Log value\",DataLog!U2149,\"\")","v":""},{"$f":"IF(DataLog!$C2149=\"Log value\",DataLog!V2149,\"\")","v":""},{"$f":"IF(DataLog!$C2149=\"Log value\",DataLog!W2149,\"\")","v":""},{"$f":"IF(DataLog!$C2149=\"Log value\",DataLog!X2149,\"\")","v":""},{"$f":"IF(DataLog!$C2149=\"Log value\",DataLog!Y2149,\"\")","v":""},{"$f":"IF(DataLog!$C2149=\"Log value\",DataLog!Z2149,\"\")","v":""},{"$f":"IF(DataLog!$C2149=\"Log value\",DataLog!AA2149,\"\")","v":""},{"$f":"IF(DataLog!$C2149=\"Log value\",DataLog!AB2149,\"\")","v":""},{"$f":"IF(DataLog!$C2149=\"Log value\",DataLog!AC2149,\"\")","v":""},{"$f":"IF(DataLog!$C2149=\"Log value\",DataLog!AD2149,\"\")","v":""},{"$f":"IF(DataLog!$C2149=\"Log value\",DataLog!AE2149,\"\")","v":""},{"$f":"IF(DataLog!$C2149=\"Log value\",DataLog!AF2149,\"\")","v":""},{"$f":"IF(DataLog!$C2149=\"Log value\",DataLog!AG2149,\"\")","v":""},{"$f":"IF(DataLog!$C2149=\"Log value\",DataLog!AH2149,\"\")","v":""},{"$f":"IF(DataLog!$C2149=\"Log value\",DataLog!AI2149,\"\")","v":""},{"$f":"IF(DataLog!$C2149=\"Log value\",DataLog!AJ2149,\"\")","v":""},{"$f":"IF(DataLog!$C2149=\"Log value\",DataLog!AK2149,\"\")","v":""},{"$f":"IF(DataLog!$C2149=\"Log value\",DataLog!AL2149,\"\")","v":""},{"$f":"IF(DataLog!$C2149=\"Log value\",DataLog!AM2149,\"\")","v":""}]
[null,null,null,null,null,null,{"$f":"IF(DataLog!$C2150=\"Log value\",DataLog!D2150&\"_\"&TEXT(DataLog!B2150,\"åååå-mm-dd\"),\"\")","v":""},{"$f":"IF(DataLog!$C2150=\"Log value\",DataLog!E2150,\"\")","v":""},{"$f":"IF(DataLog!$C2150=\"Log value\",DataLog!F2150,\"\")","v":""},{"$f":"IF(DataLog!$C2150=\"Log value\",DataLog!G2150,\"\")","v":""},{"$f":"IF(DataLog!$C2150=\"Log value\",DataLog!H2150,\"\")","v":""},{"$f":"IF(DataLog!$C2150=\"Log value\",DataLog!I2150,\"\")","v":""},{"$f":"IF(DataLog!$C2150=\"Log value\",DataLog!J2150,\"\")","v":""},{"$f":"IF(DataLog!$C2150=\"Log value\",DataLog!K2150,\"\")","v":""},{"$f":"IF(DataLog!$C2150=\"Log value\",DataLog!L2150,\"\")","v":""},{"$f":"IF(DataLog!$C2150=\"Log value\",DataLog!M2150,\"\")","v":""},{"$f":"IF(DataLog!$C2150=\"Log value\",DataLog!N2150,\"\")","v":""},{"$f":"IF(DataLog!$C2150=\"Log value\",DataLog!O2150,\"\")","v":""},{"$f":"IF(DataLog!$C2150=\"Log value\",DataLog!P2150,\"\")","v":""},{"$f":"IF(DataLog!$C2150=\"Log value\",DataLog!Q2150,\"\")","v":""},{"$f":"IF(DataLog!$C2150=\"Log value\",DataLog!R2150,\"\")","v":""},{"$f":"IF(DataLog!$C2150=\"Log value\",DataLog!S2150,\"\")","v":""},{"$f":"IF(DataLog!$C2150=\"Log value\",DataLog!T2150,\"\")","v":""},{"$f":"IF(DataLog!$C2150=\"Log value\",DataLog!U2150,\"\")","v":""},{"$f":"IF(DataLog!$C2150=\"Log value\",DataLog!V2150,\"\")","v":""},{"$f":"IF(DataLog!$C2150=\"Log value\",DataLog!W2150,\"\")","v":""},{"$f":"IF(DataLog!$C2150=\"Log value\",DataLog!X2150,\"\")","v":""},{"$f":"IF(DataLog!$C2150=\"Log value\",DataLog!Y2150,\"\")","v":""},{"$f":"IF(DataLog!$C2150=\"Log value\",DataLog!Z2150,\"\")","v":""},{"$f":"IF(DataLog!$C2150=\"Log value\",DataLog!AA2150,\"\")","v":""},{"$f":"IF(DataLog!$C2150=\"Log value\",DataLog!AB2150,\"\")","v":""},{"$f":"IF(DataLog!$C2150=\"Log value\",DataLog!AC2150,\"\")","v":""},{"$f":"IF(DataLog!$C2150=\"Log value\",DataLog!AD2150,\"\")","v":""},{"$f":"IF(DataLog!$C2150=\"Log value\",DataLog!AE2150,\"\")","v":""},{"$f":"IF(DataLog!$C2150=\"Log value\",DataLog!AF2150,\"\")","v":""},{"$f":"IF(DataLog!$C2150=\"Log value\",DataLog!AG2150,\"\")","v":""},{"$f":"IF(DataLog!$C2150=\"Log value\",DataLog!AH2150,\"\")","v":""},{"$f":"IF(DataLog!$C2150=\"Log value\",DataLog!AI2150,\"\")","v":""},{"$f":"IF(DataLog!$C2150=\"Log value\",DataLog!AJ2150,\"\")","v":""},{"$f":"IF(DataLog!$C2150=\"Log value\",DataLog!AK2150,\"\")","v":""},{"$f":"IF(DataLog!$C2150=\"Log value\",DataLog!AL2150,\"\")","v":""},{"$f":"IF(DataLog!$C2150=\"Log value\",DataLog!AM2150,\"\")","v":""}]
[null,null,null,null,null,null,{"$f":"IF(DataLog!$C2152=\"Log value\",DataLog!D2152&\"_\"&TEXT(DataLog!B2152,\"åååå-mm-dd\"),\"\")","v":""},{"$f":"IF(DataLog!$C2152=\"Log value\",DataLog!E2152,\"\")","v":""},{"$f":"IF(DataLog!$C2152=\"Log value\",DataLog!F2152,\"\")","v":""},{"$f":"IF(DataLog!$C2152=\"Log value\",DataLog!G2152,\"\")","v":""},{"$f":"IF(DataLog!$C2152=\"Log value\",DataLog!H2152,\"\")","v":""},{"$f":"IF(DataLog!$C2152=\"Log value\",DataLog!I2152,\"\")","v":""},{"$f":"IF(DataLog!$C2152=\"Log value\",DataLog!J2152,\"\")","v":""},{"$f":"IF(DataLog!$C2152=\"Log value\",DataLog!K2152,\"\")","v":""},{"$f":"IF(DataLog!$C2152=\"Log value\",DataLog!L2152,\"\")","v":""},{"$f":"IF(DataLog!$C2152=\"Log value\",DataLog!M2152,\"\")","v":""},{"$f":"IF(DataLog!$C2152=\"Log value\",DataLog!N2152,\"\")","v":""},{"$f":"IF(DataLog!$C2152=\"Log value\",DataLog!O2152,\"\")","v":""},{"$f":"IF(DataLog!$C2152=\"Log value\",DataLog!P2152,\"\")","v":""},{"$f":"IF(DataLog!$C2152=\"Log value\",DataLog!Q2152,\"\")","v":""},{"$f":"IF(DataLog!$C2152=\"Log value\",DataLog!R2152,\"\")","v":""},{"$f":"IF(DataLog!$C2152=\"Log value\",DataLog!S2152,\"\")","v":""},{"$f":"IF(DataLog!$C2152=\"Log value\",DataLog!T2152,\"\")","v":""},{"$f":"IF(DataLog!$C2152=\"Log value\",DataLog!U2152,\"\")","v":""},{"$f":"IF(DataLog!$C2152=\"Log value\",DataLog!V2152,\"\")","v":""},{"$f":"IF(DataLog!$C2152=\"Log value\",DataLog!W2152,\"\")","v":""},{"$f":"IF(DataLog!$C2152=\"Log value\",DataLog!X2152,\"\")","v":""},{"$f":"IF(DataLog!$C2152=\"Log value\",DataLog!Y2152,\"\")","v":""},{"$f":"IF(DataLog!$C2152=\"Log value\",DataLog!Z2152,\"\")","v":""},{"$f":"IF(DataLog!$C2152=\"Log value\",DataLog!AA2152,\"\")","v":""},{"$f":"IF(DataLog!$C2152=\"Log value\",DataLog!AB2152,\"\")","v":""},{"$f":"IF(DataLog!$C2152=\"Log value\",DataLog!AC2152,\"\")","v":""},{"$f":"IF(DataLog!$C2152=\"Log value\",DataLog!AD2152,\"\")","v":""},{"$f":"IF(DataLog!$C2152=\"Log value\",DataLog!AE2152,\"\")","v":""},{"$f":"IF(DataLog!$C2152=\"Log value\",DataLog!AF2152,\"\")","v":""},{"$f":"IF(DataLog!$C2152=\"Log value\",DataLog!AG2152,\"\")","v":""},{"$f":"IF(DataLog!$C2152=\"Log value\",DataLog!AH2152,\"\")","v":""},{"$f":"IF(DataLog!$C2152=\"Log value\",DataLog!AI2152,\"\")","v":""},{"$f":"IF(DataLog!$C2152=\"Log value\",DataLog!AJ2152,\"\")","v":""},{"$f":"IF(DataLog!$C2152=\"Log value\",DataLog!AK2152,\"\")","v":""},{"$f":"IF(DataLog!$C2152=\"Log value\",DataLog!AL2152,\"\")","v":""},{"$f":"IF(DataLog!$C2152=\"Log value\",DataLog!AM2152,\"\")","v":""}]
[null,null,null,null,null,null,{"$f":"IF(DataLog!$C2155=\"Log value\",DataLog!D2155&\"_\"&TEXT(DataLog!B2155,\"åååå-mm-dd\"),\"\")","v":""},{"$f":"IF(DataLog!$C2155=\"Log value\",DataLog!E2155,\"\")","v":""},{"$f":"IF(DataLog!$C2155=\"Log value\",DataLog!F2155,\"\")","v":""},{"$f":"IF(DataLog!$C2155=\"Log value\",DataLog!G2155,\"\")","v":""},{"$f":"IF(DataLog!$C2155=\"Log value\",DataLog!H2155,\"\")","v":""},{"$f":"IF(DataLog!$C2155=\"Log value\",DataLog!I2155,\"\")","v":""},{"$f":"IF(DataLog!$C2155=\"Log value\",DataLog!J2155,\"\")","v":""},{"$f":"IF(DataLog!$C2155=\"Log value\",DataLog!K2155,\"\")","v":""},{"$f":"IF(DataLog!$C2155=\"Log value\",DataLog!L2155,\"\")","v":""},{"$f":"IF(DataLog!$C2155=\"Log value\",DataLog!M2155,\"\")","v":""},{"$f":"IF(DataLog!$C2155=\"Log value\",DataLog!N2155,\"\")","v":""},{"$f":"IF(DataLog!$C2155=\"Log value\",DataLog!O2155,\"\")","v":""},{"$f":"IF(DataLog!$C2155=\"Log value\",DataLog!P2155,\"\")","v":""},{"$f":"IF(DataLog!$C2155=\"Log value\",DataLog!Q2155,\"\")","v":""},{"$f":"IF(DataLog!$C2155=\"Log value\",DataLog!R2155,\"\")","v":""},{"$f":"IF(DataLog!$C2155=\"Log value\",DataLog!S2155,\"\")","v":""},{"$f":"IF(DataLog!$C2155=\"Log value\",DataLog!T2155,\"\")","v":""},{"$f":"IF(DataLog!$C2155=\"Log value\",DataLog!U2155,\"\")","v":""},{"$f":"IF(DataLog!$C2155=\"Log value\",DataLog!V2155,\"\")","v":""},{"$f":"IF(DataLog!$C2155=\"Log value\",DataLog!W2155,\"\")","v":""},{"$f":"IF(DataLog!$C2155=\"Log value\",DataLog!X2155,\"\")","v":""},{"$f":"IF(DataLog!$C2155=\"Log value\",DataLog!Y2155,\"\")","v":""},{"$f":"IF(DataLog!$C2155=\"Log value\",DataLog!Z2155,\"\")","v":""},{"$f":"IF(DataLog!$C2155=\"Log value\",DataLog!AA2155,\"\")","v":""},{"$f":"IF(DataLog!$C2155=\"Log value\",DataLog!AB2155,\"\")","v":""},{"$f":"IF(DataLog!$C2155=\"Log value\",DataLog!AC2155,\"\")","v":""},{"$f":"IF(DataLog!$C2155=\"Log value\",DataLog!AD2155,\"\")","v":""},{"$f":"IF(DataLog!$C2155=\"Log value\",DataLog!AE2155,\"\")","v":""},{"$f":"IF(DataLog!$C2155=\"Log value\",DataLog!AF2155,\"\")","v":""},{"$f":"IF(DataLog!$C2155=\"Log value\",DataLog!AG2155,\"\")","v":""},{"$f":"IF(DataLog!$C2155=\"Log value\",DataLog!AH2155,\"\")","v":""},{"$f":"IF(DataLog!$C2155=\"Log value\",DataLog!AI2155,\"\")","v":""},{"$f":"IF(DataLog!$C2155=\"Log value\",DataLog!AJ2155,\"\")","v":""},{"$f":"IF(DataLog!$C2155=\"Log value\",DataLog!AK2155,\"\")","v":""},{"$f":"IF(DataLog!$C2155=\"Log value\",DataLog!AL2155,\"\")","v":""},{"$f":"IF(DataLog!$C2155=\"Log value\",DataLog!AM2155,\"\")","v":""}]
[null,null,null,null,null,null,{"$f":"IF(DataLog!$C2158=\"Log value\",DataLog!D2158&\"_\"&TEXT(DataLog!B2158,\"åååå-mm-dd\"),\"\")","v":""},{"$f":"IF(DataLog!$C2158=\"Log value\",DataLog!E2158,\"\")","v":""},{"$f":"IF(DataLog!$C2158=\"Log value\",DataLog!F2158,\"\")","v":""},{"$f":"IF(DataLog!$C2158=\"Log value\",DataLog!G2158,\"\")","v":""},{"$f":"IF(DataLog!$C2158=\"Log value\",DataLog!H2158,\"\")","v":""},{"$f":"IF(DataLog!$C2158=\"Log value\",DataLog!I2158,\"\")","v":""},{"$f":"IF(DataLog!$C2158=\"Log value\",DataLog!J2158,\"\")","v":""},{"$f":"IF(DataLog!$C2158=\"Log value\",DataLog!K2158,\"\")","v":""},{"$f":"IF(DataLog!$C2158=\"Log value\",DataLog!L2158,\"\")","v":""},{"$f":"IF(DataLog!$C2158=\"Log value\",DataLog!M2158,\"\")","v":""},{"$f":"IF(DataLog!$C2158=\"Log value\",DataLog!N2158,\"\")","v":""},{"$f":"IF(DataLog!$C2158=\"Log value\",DataLog!O2158,\"\")","v":""},{"$f":"IF(DataLog!$C2158=\"Log value\",DataLog!P2158,\"\")","v":""},{"$f":"IF(DataLog!$C2158=\"Log value\",DataLog!Q2158,\"\")","v":""},{"$f":"IF(DataLog!$C2158=\"Log value\",DataLog!R2158,\"\")","v":""},{"$f":"IF(DataLog!$C2158=\"Log value\",DataLog!S2158,\"\")","v":""},{"$f":"IF(DataLog!$C2158=\"Log value\",DataLog!T2158,\"\")","v":""},{"$f":"IF(DataLog!$C2158=\"Log value\",DataLog!U2158,\"\")","v":""},{"$f":"IF(DataLog!$C2158=\"Log value\",DataLog!V2158,\"\")","v":""},{"$f":"IF(DataLog!$C2158=\"Log value\",DataLog!W2158,\"\")","v":""},{"$f":"IF(DataLog!$C2158=\"Log value\",DataLog!X2158,\"\")","v":""},{"$f":"IF(DataLog!$C2158=\"Log value\",DataLog!Y2158,\"\")","v":""},{"$f":"IF(DataLog!$C2158=\"Log value\",DataLog!Z2158,\"\")","v":""},{"$f":"IF(DataLog!$C2158=\"Log value\",DataLog!AA2158,\"\")","v":""},{"$f":"IF(DataLog!$C2158=\"Log value\",DataLog!AB2158,\"\")","v":""},{"$f":"IF(DataLog!$C2158=\"Log value\",DataLog!AC2158,\"\")","v":""},{"$f":"IF(DataLog!$C2158=\"Log value\",DataLog!AD2158,\"\")","v":""},{"$f":"IF(DataLog!$C2158=\"Log value\",DataLog!AE2158,\"\")","v":""},{"$f":"IF(DataLog!$C2158=\"Log value\",DataLog!AF2158,\"\")","v":""},{"$f":"IF(DataLog!$C2158=\"Log value\",DataLog!AG2158,\"\")","v":""},{"$f":"IF(DataLog!$C2158=\"Log value\",DataLog!AH2158,\"\")","v":""},{"$f":"IF(DataLog!$C2158=\"Log value\",DataLog!AI2158,\"\")","v":""},{"$f":"IF(DataLog!$C2158=\"Log value\",DataLog!AJ2158,\"\")","v":""},{"$f":"IF(DataLog!$C2158=\"Log value\",DataLog!AK2158,\"\")","v":""},{"$f":"IF(DataLog!$C2158=\"Log value\",DataLog!AL2158,\"\")","v":""},{"$f":"IF(DataLog!$C2158=\"Log value\",DataLog!AM2158,\"\")","v":""}]
[null,null,null,null,null,null,{"$f":"IF(DataLog!$C2159=\"Log value\",DataLog!D2159&\"_\"&TEXT(DataLog!B2159,\"åååå-mm-dd\"),\"\")","v":""},{"$f":"IF(DataLog!$C2159=\"Log value\",DataLog!E2159,\"\")","v":""},{"$f":"IF(DataLog!$C2159=\"Log value\",DataLog!F2159,\"\")","v":""},{"$f":"IF(DataLog!$C2159=\"Log value\",DataLog!G2159,\"\")","v":""},{"$f":"IF(DataLog!$C2159=\"Log value\",DataLog!H2159,\"\")","v":""},{"$f":"IF(DataLog!$C2159=\"Log value\",DataLog!I2159,\"\")","v":""},{"$f":"IF(DataLog!$C2159=\"Log value\",DataLog!J2159,\"\")","v":""},{"$f":"IF(DataLog!$C2159=\"Log value\",DataLog!K2159,\"\")","v":""},{"$f":"IF(DataLog!$C2159=\"Log value\",DataLog!L2159,\"\")","v":""},{"$f":"IF(DataLog!$C2159=\"Log value\",DataLog!M2159,\"\")","v":""},{"$f":"IF(DataLog!$C2159=\"Log value\",DataLog!N2159,\"\")","v":""},{"$f":"IF(DataLog!$C2159=\"Log value\",DataLog!O2159,\"\")","v":""},{"$f":"IF(DataLog!$C2159=\"Log value\",DataLog!P2159,\"\")","v":""},{"$f":"IF(DataLog!$C2159=\"Log value\",DataLog!Q2159,\"\")","v":""},{"$f":"IF(DataLog!$C2159=\"Log value\",DataLog!R2159,\"\")","v":""},{"$f":"IF(DataLog!$C2159=\"Log value\",DataLog!S2159,\"\")","v":""},{"$f":"IF(DataLog!$C2159=\"Log value\",DataLog!T2159,\"\")","v":""},{"$f":"IF(DataLog!$C2159=\"Log value\",DataLog!U2159,\"\")","v":""},{"$f":"IF(DataLog!$C2159=\"Log value\",DataLog!V2159,\"\")","v":""},{"$f":"IF(DataLog!$C2159=\"Log value\",DataLog!W2159,\"\")","v":""},{"$f":"IF(DataLog!$C2159=\"Log value\",DataLog!X2159,\"\")","v":""},{"$f":"IF(DataLog!$C2159=\"Log value\",DataLog!Y2159,\"\")","v":""},{"$f":"IF(DataLog!$C2159=\"Log value\",DataLog!Z2159,\"\")","v":""},{"$f":"IF(DataLog!$C2159=\"Log value\",DataLog!AA2159,\"\")","v":""},{"$f":"IF(DataLog!$C2159=\"Log value\",DataLog!AB2159,\"\")","v":""},{"$f":"IF(DataLog!$C2159=\"Log value\",DataLog!AC2159,\"\")","v":""},{"$f":"IF(DataLog!$C2159=\"Log value\",DataLog!AD2159,\"\")","v":""},{"$f":"IF(DataLog!$C2159=\"Log value\",DataLog!AE2159,\"\")","v":""},{"$f":"IF(DataLog!$C2159=\"Log value\",DataLog!AF2159,\"\")","v":""},{"$f":"IF(DataLog!$C2159=\"Log value\",DataLog!AG2159,\"\")","v":""},{"$f":"IF(DataLog!$C2159=\"Log value\",DataLog!AH2159,\"\")","v":""},{"$f":"IF(DataLog!$C2159=\"Log value\",DataLog!AI2159,\"\")","v":""},{"$f":"IF(DataLog!$C2159=\"Log value\",DataLog!AJ2159,\"\")","v":""},{"$f":"IF(DataLog!$C2159=\"Log value\",DataLog!AK2159,\"\")","v":""},{"$f":"IF(DataLog!$C2159=\"Log value\",DataLog!AL2159,\"\")","v":""},{"$f":"IF(DataLog!$C2159=\"Log value\",DataLog!AM2159,\"\")","v":""}]
[null,null,null,null,null,null,{"$f":"IF(DataLog!$C2162=\"Log value\",DataLog!D2162&\"_\"&TEXT(DataLog!B2162,\"åååå-mm-dd\"),\"\")","v":""},{"$f":"IF(DataLog!$C2162=\"Log value\",DataLog!E2162,\"\")","v":""},{"$f":"IF(DataLog!$C2162=\"Log value\",DataLog!F2162,\"\")","v":""},{"$f":"IF(DataLog!$C2162=\"Log value\",DataLog!G2162,\"\")","v":""},{"$f":"IF(DataLog!$C2162=\"Log value\",DataLog!H2162,\"\")","v":""},{"$f":"IF(DataLog!$C2162=\"Log value\",DataLog!I2162,\"\")","v":""},{"$f":"IF(DataLog!$C2162=\"Log value\",DataLog!J2162,\"\")","v":""},{"$f":"IF(DataLog!$C2162=\"Log value\",DataLog!K2162,\"\")","v":""},{"$f":"IF(DataLog!$C2162=\"Log value\",DataLog!L2162,\"\")","v":""},{"$f":"IF(DataLog!$C2162=\"Log value\",DataLog!M2162,\"\")","v":""},{"$f":"IF(DataLog!$C2162=\"Log value\",DataLog!N2162,\"\")","v":""},{"$f":"IF(DataLog!$C2162=\"Log value\",DataLog!O2162,\"\")","v":""},{"$f":"IF(DataLog!$C2162=\"Log value\",DataLog!P2162,\"\")","v":""},{"$f":"IF(DataLog!$C2162=\"Log value\",DataLog!Q2162,\"\")","v":""},{"$f":"IF(DataLog!$C2162=\"Log value\",DataLog!R2162,\"\")","v":""},{"$f":"IF(DataLog!$C2162=\"Log value\",DataLog!S2162,\"\")","v":""},{"$f":"IF(DataLog!$C2162=\"Log value\",DataLog!T2162,\"\")","v":""},{"$f":"IF(DataLog!$C2162=\"Log value\",DataLog!U2162,\"\")","v":""},{"$f":"IF(DataLog!$C2162=\"Log value\",DataLog!V2162,\"\")","v":""},{"$f":"IF(DataLog!$C2162=\"Log value\",DataLog!W2162,\"\")","v":""},{"$f":"IF(DataLog!$C2162=\"Log value\",DataLog!X2162,\"\")","v":""},{"$f":"IF(DataLog!$C2162=\"Log value\",DataLog!Y2162,\"\")","v":""},{"$f":"IF(DataLog!$C2162=\"Log value\",DataLog!Z2162,\"\")","v":""},{"$f":"IF(DataLog!$C2162=\"Log value\",DataLog!AA2162,\"\")","v":""},{"$f":"IF(DataLog!$C2162=\"Log value\",DataLog!AB2162,\"\")","v":""},{"$f":"IF(DataLog!$C2162=\"Log value\",DataLog!AC2162,\"\")","v":""},{"$f":"IF(DataLog!$C2162=\"Log value\",DataLog!AD2162,\"\")","v":""},{"$f":"IF(DataLog!$C2162=\"Log value\",DataLog!AE2162,\"\")","v":""},{"$f":"IF(DataLog!$C2162=\"Log value\",DataLog!AF2162,\"\")","v":""},{"$f":"IF(DataLog!$C2162=\"Log value\",DataLog!AG2162,\"\")","v":""},{"$f":"IF(DataLog!$C2162=\"Log value\",DataLog!AH2162,\"\")","v":""},{"$f":"IF(DataLog!$C2162=\"Log value\",DataLog!AI2162,\"\")","v":""},{"$f":"IF(DataLog!$C2162=\"Log value\",DataLog!AJ2162,\"\")","v":""},{"$f":"IF(DataLog!$C2162=\"Log value\",DataLog!AK2162,\"\")","v":""},{"$f":"IF(DataLog!$C2162=\"Log value\",DataLog!AL2162,\"\")","v":""},{"$f":"IF(DataLog!$C2162=\"Log value\",DataLog!AM2162,\"\")","v":""}]
[null,null,null,null,null,null,{"$f":"IF(DataLog!$C2164=\"Log value\",DataLog!D2164&\"_\"&TEXT(DataLog!B2164,\"åååå-mm-dd\"),\"\")","v":""},{"$f":"IF(DataLog!$C2164=\"Log value\",DataLog!E2164,\"\")","v":""},{"$f":"IF(DataLog!$C2164=\"Log value\",DataLog!F2164,\"\")","v":""},{"$f":"IF(DataLog!$C2164=\"Log value\",DataLog!G2164,\"\")","v":""},{"$f":"IF(DataLog!$C2164=\"Log value\",DataLog!H2164,\"\")","v":""},{"$f":"IF(DataLog!$C2164=\"Log value\",DataLog!I2164,\"\")","v":""},{"$f":"IF(DataLog!$C2164=\"Log value\",DataLog!J2164,\"\")","v":""},{"$f":"IF(DataLog!$C2164=\"Log value\",DataLog!K2164,\"\")","v":""},{"$f":"IF(DataLog!$C2164=\"Log value\",DataLog!L2164,\"\")","v":""},{"$f":"IF(DataLog!$C2164=\"Log value\",DataLog!M2164,\"\")","v":""},{"$f":"IF(DataLog!$C2164=\"Log value\",DataLog!N2164,\"\")","v":""},{"$f":"IF(DataLog!$C2164=\"Log value\",DataLog!O2164,\"\")","v":""},{"$f":"IF(DataLog!$C2164=\"Log value\",DataLog!P2164,\"\")","v":""},{"$f":"IF(DataLog!$C2164=\"Log value\",DataLog!Q2164,\"\")","v":""},{"$f":"IF(DataLog!$C2164=\"Log value\",DataLog!R2164,\"\")","v":""},{"$f":"IF(DataLog!$C2164=\"Log value\",DataLog!S2164,\"\")","v":""},{"$f":"IF(DataLog!$C2164=\"Log value\",DataLog!T2164,\"\")","v":""},{"$f":"IF(DataLog!$C2164=\"Log value\",DataLog!U2164,\"\")","v":""},{"$f":"IF(DataLog!$C2164=\"Log value\",DataLog!V2164,\"\")","v":""},{"$f":"IF(DataLog!$C2164=\"Log value\",DataLog!W2164,\"\")","v":""},{"$f":"IF(DataLog!$C2164=\"Log value\",DataLog!X2164,\"\")","v":""},{"$f":"IF(DataLog!$C2164=\"Log value\",DataLog!Y2164,\"\")","v":""},{"$f":"IF(DataLog!$C2164=\"Log value\",DataLog!Z2164,\"\")","v":""},{"$f":"IF(DataLog!$C2164=\"Log value\",DataLog!AA2164,\"\")","v":""},{"$f":"IF(DataLog!$C2164=\"Log value\",DataLog!AB2164,\"\")","v":""},{"$f":"IF(DataLog!$C2164=\"Log value\",DataLog!AC2164,\"\")","v":""},{"$f":"IF(DataLog!$C2164=\"Log value\",DataLog!AD2164,\"\")","v":""},{"$f":"IF(DataLog!$C2164=\"Log value\",DataLog!AE2164,\"\")","v":""},{"$f":"IF(DataLog!$C2164=\"Log value\",DataLog!AF2164,\"\")","v":""},{"$f":"IF(DataLog!$C2164=\"Log value\",DataLog!AG2164,\"\")","v":""},{"$f":"IF(DataLog!$C2164=\"Log value\",DataLog!AH2164,\"\")","v":""},{"$f":"IF(DataLog!$C2164=\"Log value\",DataLog!AI2164,\"\")","v":""},{"$f":"IF(DataLog!$C2164=\"Log value\",DataLog!AJ2164,\"\")","v":""},{"$f":"IF(DataLog!$C2164=\"Log value\",DataLog!AK2164,\"\")","v":""},{"$f":"IF(DataLog!$C2164=\"Log value\",DataLog!AL2164,\"\")","v":""},{"$f":"IF(DataLog!$C2164=\"Log value\",DataLog!AM2164,\"\")","v":""}]
[null,null,null,null,null,null,{"$f":"IF(DataLog!$C2167=\"Log value\",DataLog!D2167&\"_\"&TEXT(DataLog!B2167,\"åååå-mm-dd\"),\"\")","v":""},{"$f":"IF(DataLog!$C2167=\"Log value\",DataLog!E2167,\"\")","v":""},{"$f":"IF(DataLog!$C2167=\"Log value\",DataLog!F2167,\"\")","v":""},{"$f":"IF(DataLog!$C2167=\"Log value\",DataLog!G2167,\"\")","v":""},{"$f":"IF(DataLog!$C2167=\"Log value\",DataLog!H2167,\"\")","v":""},{"$f":"IF(DataLog!$C2167=\"Log value\",DataLog!I2167,\"\")","v":""},{"$f":"IF(DataLog!$C2167=\"Log value\",DataLog!J2167,\"\")","v":""},{"$f":"IF(DataLog!$C2167=\"Log value\",DataLog!K2167,\"\")","v":""},{"$f":"IF(DataLog!$C2167=\"Log value\",DataLog!L2167,\"\")","v":""},{"$f":"IF(DataLog!$C2167=\"Log value\",DataLog!M2167,\"\")","v":""},{"$f":"IF(DataLog!$C2167=\"Log value\",DataLog!N2167,\"\")","v":""},{"$f":"IF(DataLog!$C2167=\"Log value\",DataLog!O2167,\"\")","v":""},{"$f":"IF(DataLog!$C2167=\"Log value\",DataLog!P2167,\"\")","v":""},{"$f":"IF(DataLog!$C2167=\"Log value\",DataLog!Q2167,\"\")","v":""},{"$f":"IF(DataLog!$C2167=\"Log value\",DataLog!R2167,\"\")","v":""},{"$f":"IF(DataLog!$C2167=\"Log value\",DataLog!S2167,\"\")","v":""},{"$f":"IF(DataLog!$C2167=\"Log value\",DataLog!T2167,\"\")","v":""},{"$f":"IF(DataLog!$C2167=\"Log value\",DataLog!U2167,\"\")","v":""},{"$f":"IF(DataLog!$C2167=\"Log value\",DataLog!V2167,\"\")","v":""},{"$f":"IF(DataLog!$C2167=\"Log value\",DataLog!W2167,\"\")","v":""},{"$f":"IF(DataLog!$C2167=\"Log value\",DataLog!X2167,\"\")","v":""},{"$f":"IF(DataLog!$C2167=\"Log value\",DataLog!Y2167,\"\")","v":""},{"$f":"IF(DataLog!$C2167=\"Log value\",DataLog!Z2167,\"\")","v":""},{"$f":"IF(DataLog!$C2167=\"Log value\",DataLog!AA2167,\"\")","v":""},{"$f":"IF(DataLog!$C2167=\"Log value\",DataLog!AB2167,\"\")","v":""},{"$f":"IF(DataLog!$C2167=\"Log value\",DataLog!AC2167,\"\")","v":""},{"$f":"IF(DataLog!$C2167=\"Log value\",DataLog!AD2167,\"\")","v":""},{"$f":"IF(DataLog!$C2167=\"Log value\",DataLog!AE2167,\"\")","v":""},{"$f":"IF(DataLog!$C2167=\"Log value\",DataLog!AF2167,\"\")","v":""},{"$f":"IF(DataLog!$C2167=\"Log value\",DataLog!AG2167,\"\")","v":""},{"$f":"IF(DataLog!$C2167=\"Log value\",DataLog!AH2167,\"\")","v":""},{"$f":"IF(DataLog!$C2167=\"Log value\",DataLog!AI2167,\"\")","v":""},{"$f":"IF(DataLog!$C2167=\"Log value\",DataLog!AJ2167,\"\")","v":""},{"$f":"IF(DataLog!$C2167=\"Log value\",DataLog!AK2167,\"\")","v":""},{"$f":"IF(DataLog!$C2167=\"Log value\",DataLog!AL2167,\"\")","v":""},{"$f":"IF(DataLog!$C2167=\"Log value\",DataLog!AM2167,\"\")","v":""}]
[null,null,null,null,null,null,{"$f":"IF(DataLog!$C2168=\"Log value\",DataLog!D2168&\"_\"&TEXT(DataLog!B2168,\"åååå-mm-dd\"),\"\")","v":""},{"$f":"IF(DataLog!$C2168=\"Log value\",DataLog!E2168,\"\")","v":""},{"$f":"IF(DataLog!$C2168=\"Log value\",DataLog!F2168,\"\")","v":""},{"$f":"IF(DataLog!$C2168=\"Log value\",DataLog!G2168,\"\")","v":""},{"$f":"IF(DataLog!$C2168=\"Log value\",DataLog!H2168,\"\")","v":""},{"$f":"IF(DataLog!$C2168=\"Log value\",DataLog!I2168,\"\")","v":""},{"$f":"IF(DataLog!$C2168=\"Log value\",DataLog!J2168,\"\")","v":""},{"$f":"IF(DataLog!$C2168=\"Log value\",DataLog!K2168,\"\")","v":""},{"$f":"IF(DataLog!$C2168=\"Log value\",DataLog!L2168,\"\")","v":""},{"$f":"IF(DataLog!$C2168=\"Log value\",DataLog!M2168,\"\")","v":""},{"$f":"IF(DataLog!$C2168=\"Log value\",DataLog!N2168,\"\")","v":""},{"$f":"IF(DataLog!$C2168=\"Log value\",DataLog!O2168,\"\")","v":""},{"$f":"IF(DataLog!$C2168=\"Log value\",DataLog!P2168,\"\")","v":""},{"$f":"IF(DataLog!$C2168=\"Log value\",DataLog!Q2168,\"\")","v":""},{"$f":"IF(DataLog!$C2168=\"Log value\",DataLog!R2168,\"\")","v":""},{"$f":"IF(DataLog!$C2168=\"Log value\",DataLog!S2168,\"\")","v":""},{"$f":"IF(DataLog!$C2168=\"Log value\",DataLog!T2168,\"\")","v":""},{"$f":"IF(DataLog!$C2168=\"Log value\",DataLog!U2168,\"\")","v":""},{"$f":"IF(DataLog!$C2168=\"Log value\",DataLog!V2168,\"\")","v":""},{"$f":"IF(DataLog!$C2168=\"Log value\",DataLog!W2168,\"\")","v":""},{"$f":"IF(DataLog!$C2168=\"Log value\",DataLog!X2168,\"\")","v":""},{"$f":"IF(DataLog!$C2168=\"Log value\",DataLog!Y2168,\"\")","v":""},{"$f":"IF(DataLog!$C2168=\"Log value\",DataLog!Z2168,\"\")","v":""},{"$f":"IF(DataLog!$C2168=\"Log value\",DataLog!AA2168,\"\")","v":""},{"$f":"IF(DataLog!$C2168=\"Log value\",DataLog!AB2168,\"\")","v":""},{"$f":"IF(DataLog!$C2168=\"Log value\",DataLog!AC2168,\"\")","v":""},{"$f":"IF(DataLog!$C2168=\"Log value\",DataLog!AD2168,\"\")","v":""},{"$f":"IF(DataLog!$C2168=\"Log value\",DataLog!AE2168,\"\")","v":""},{"$f":"IF(DataLog!$C2168=\"Log value\",DataLog!AF2168,\"\")","v":""},{"$f":"IF(DataLog!$C2168=\"Log value\",DataLog!AG2168,\"\")","v":""},{"$f":"IF(DataLog!$C2168=\"Log value\",DataLog!AH2168,\"\")","v":""},{"$f":"IF(DataLog!$C2168=\"Log value\",DataLog!AI2168,\"\")","v":""},{"$f":"IF(DataLog!$C2168=\"Log value\",DataLog!AJ2168,\"\")","v":""},{"$f":"IF(DataLog!$C2168=\"Log value\",DataLog!AK2168,\"\")","v":""},{"$f":"IF(DataLog!$C2168=\"Log value\",DataLog!AL2168,\"\")","v":""},{"$f":"IF(DataLog!$C2168=\"Log value\",DataLog!AM2168,\"\")","v":""}]
[null,null,null,null,null,null,{"$f":"IF(DataLog!$C2170=\"Log value\",DataLog!D2170&\"_\"&TEXT(DataLog!B2170,\"åååå-mm-dd\"),\"\")","v":""},{"$f":"IF(DataLog!$C2170=\"Log value\",DataLog!E2170,\"\")","v":""},{"$f":"IF(DataLog!$C2170=\"Log value\",DataLog!F2170,\"\")","v":""},{"$f":"IF(DataLog!$C2170=\"Log value\",DataLog!G2170,\"\")","v":""},{"$f":"IF(DataLog!$C2170=\"Log value\",DataLog!H2170,\"\")","v":""},{"$f":"IF(DataLog!$C2170=\"Log value\",DataLog!I2170,\"\")","v":""},{"$f":"IF(DataLog!$C2170=\"Log value\",DataLog!J2170,\"\")","v":""},{"$f":"IF(DataLog!$C2170=\"Log value\",DataLog!K2170,\"\")","v":""},{"$f":"IF(DataLog!$C2170=\"Log value\",DataLog!L2170,\"\")","v":""},{"$f":"IF(DataLog!$C2170=\"Log value\",DataLog!M2170,\"\")","v":""},{"$f":"IF(DataLog!$C2170=\"Log value\",DataLog!N2170,\"\")","v":""},{"$f":"IF(DataLog!$C2170=\"Log value\",DataLog!O2170,\"\")","v":""},{"$f":"IF(DataLog!$C2170=\"Log value\",DataLog!P2170,\"\")","v":""},{"$f":"IF(DataLog!$C2170=\"Log value\",DataLog!Q2170,\"\")","v":""},{"$f":"IF(DataLog!$C2170=\"Log value\",DataLog!R2170,\"\")","v":""},{"$f":"IF(DataLog!$C2170=\"Log value\",DataLog!S2170,\"\")","v":""},{"$f":"IF(DataLog!$C2170=\"Log value\",DataLog!T2170,\"\")","v":""},{"$f":"IF(DataLog!$C2170=\"Log value\",DataLog!U2170,\"\")","v":""},{"$f":"IF(DataLog!$C2170=\"Log value\",DataLog!V2170,\"\")","v":""},{"$f":"IF(DataLog!$C2170=\"Log value\",DataLog!W2170,\"\")","v":""},{"$f":"IF(DataLog!$C2170=\"Log value\",DataLog!X2170,\"\")","v":""},{"$f":"IF(DataLog!$C2170=\"Log value\",DataLog!Y2170,\"\")","v":""},{"$f":"IF(DataLog!$C2170=\"Log value\",DataLog!Z2170,\"\")","v":""},{"$f":"IF(DataLog!$C2170=\"Log value\",DataLog!AA2170,\"\")","v":""},{"$f":"IF(DataLog!$C2170=\"Log value\",DataLog!AB2170,\"\")","v":""},{"$f":"IF(DataLog!$C2170=\"Log value\",DataLog!AC2170,\"\")","v":""},{"$f":"IF(DataLog!$C2170=\"Log value\",DataLog!AD2170,\"\")","v":""},{"$f":"IF(DataLog!$C2170=\"Log value\",DataLog!AE2170,\"\")","v":""},{"$f":"IF(DataLog!$C2170=\"Log value\",DataLog!AF2170,\"\")","v":""},{"$f":"IF(DataLog!$C2170=\"Log value\",DataLog!AG2170,\"\")","v":""},{"$f":"IF(DataLog!$C2170=\"Log value\",DataLog!AH2170,\"\")","v":""},{"$f":"IF(DataLog!$C2170=\"Log value\",DataLog!AI2170,\"\")","v":""},{"$f":"IF(DataLog!$C2170=\"Log value\",DataLog!AJ2170,\"\")","v":""},{"$f":"IF(DataLog!$C2170=\"Log value\",DataLog!AK2170,\"\")","v":""},{"$f":"IF(DataLog!$C2170=\"Log value\",DataLog!AL2170,\"\")","v":""},{"$f":"IF(DataLog!$C2170=\"Log value\",DataLog!AM2170,\"\")","v":""}]
[null,null,null,null,null,null,{"$f":"IF(DataLog!$C2173=\"Log value\",DataLog!D2173&\"_\"&TEXT(DataLog!B2173,\"åååå-mm-dd\"),\"\")","v":""},{"$f":"IF(DataLog!$C2173=\"Log value\",DataLog!E2173,\"\")","v":""},{"$f":"IF(DataLog!$C2173=\"Log value\",DataLog!F2173,\"\")","v":""},{"$f":"IF(DataLog!$C2173=\"Log value\",DataLog!G2173,\"\")","v":""},{"$f":"IF(DataLog!$C2173=\"Log value\",DataLog!H2173,\"\")","v":""},{"$f":"IF(DataLog!$C2173=\"Log value\",DataLog!I2173,\"\")","v":""},{"$f":"IF(DataLog!$C2173=\"Log value\",DataLog!J2173,\"\")","v":""},{"$f":"IF(DataLog!$C2173=\"Log value\",DataLog!K2173,\"\")","v":""},{"$f":"IF(DataLog!$C2173=\"Log value\",DataLog!L2173,\"\")","v":""},{"$f":"IF(DataLog!$C2173=\"Log value\",DataLog!M2173,\"\")","v":""},{"$f":"IF(DataLog!$C2173=\"Log value\",DataLog!N2173,\"\")","v":""},{"$f":"IF(DataLog!$C2173=\"Log value\",DataLog!O2173,\"\")","v":""},{"$f":"IF(DataLog!$C2173=\"Log value\",DataLog!P2173,\"\")","v":""},{"$f":"IF(DataLog!$C2173=\"Log value\",DataLog!Q2173,\"\")","v":""},{"$f":"IF(DataLog!$C2173=\"Log value\",DataLog!R2173,\"\")","v":""},{"$f":"IF(DataLog!$C2173=\"Log value\",DataLog!S2173,\"\")","v":""},{"$f":"IF(DataLog!$C2173=\"Log value\",DataLog!T2173,\"\")","v":""},{"$f":"IF(DataLog!$C2173=\"Log value\",DataLog!U2173,\"\")","v":""},{"$f":"IF(DataLog!$C2173=\"Log value\",DataLog!V2173,\"\")","v":""},{"$f":"IF(DataLog!$C2173=\"Log value\",DataLog!W2173,\"\")","v":""},{"$f":"IF(DataLog!$C2173=\"Log value\",DataLog!X2173,\"\")","v":""},{"$f":"IF(DataLog!$C2173=\"Log value\",DataLog!Y2173,\"\")","v":""},{"$f":"IF(DataLog!$C2173=\"Log value\",DataLog!Z2173,\"\")","v":""},{"$f":"IF(DataLog!$C2173=\"Log value\",DataLog!AA2173,\"\")","v":""},{"$f":"IF(DataLog!$C2173=\"Log value\",DataLog!AB2173,\"\")","v":""},{"$f":"IF(DataLog!$C2173=\"Log value\",DataLog!AC2173,\"\")","v":""},{"$f":"IF(DataLog!$C2173=\"Log value\",DataLog!AD2173,\"\")","v":""},{"$f":"IF(DataLog!$C2173=\"Log value\",DataLog!AE2173,\"\")","v":""},{"$f":"IF(DataLog!$C2173=\"Log value\",DataLog!AF2173,\"\")","v":""},{"$f":"IF(DataLog!$C2173=\"Log value\",DataLog!AG2173,\"\")","v":""},{"$f":"IF(DataLog!$C2173=\"Log value\",DataLog!AH2173,\"\")","v":""},{"$f":"IF(DataLog!$C2173=\"Log value\",DataLog!AI2173,\"\")","v":""},{"$f":"IF(DataLog!$C2173=\"Log value\",DataLog!AJ2173,\"\")","v":""},{"$f":"IF(DataLog!$C2173=\"Log value\",DataLog!AK2173,\"\")","v":""},{"$f":"IF(DataLog!$C2173=\"Log value\",DataLog!AL2173,\"\")","v":""},{"$f":"IF(DataLog!$C2173=\"Log value\",DataLog!AM2173,\"\")","v":""}]
[null,null,null,null,null,null,{"$f":"IF(DataLog!$C2176=\"Log value\",DataLog!D2176&\"_\"&TEXT(DataLog!B2176,\"åååå-mm-dd\"),\"\")","v":""},{"$f":"IF(DataLog!$C2176=\"Log value\",DataLog!E2176,\"\")","v":""},{"$f":"IF(DataLog!$C2176=\"Log value\",DataLog!F2176,\"\")","v":""},{"$f":"IF(DataLog!$C2176=\"Log value\",DataLog!G2176,\"\")","v":""},{"$f":"IF(DataLog!$C2176=\"Log value\",DataLog!H2176,\"\")","v":""},{"$f":"IF(DataLog!$C2176=\"Log value\",DataLog!I2176,\"\")","v":""},{"$f":"IF(DataLog!$C2176=\"Log value\",DataLog!J2176,\"\")","v":""},{"$f":"IF(DataLog!$C2176=\"Log value\",DataLog!K2176,\"\")","v":""},{"$f":"IF(DataLog!$C2176=\"Log value\",DataLog!L2176,\"\")","v":""},{"$f":"IF(DataLog!$C2176=\"Log value\",DataLog!M2176,\"\")","v":""},{"$f":"IF(DataLog!$C2176=\"Log value\",DataLog!N2176,\"\")","v":""},{"$f":"IF(DataLog!$C2176=\"Log value\",DataLog!O2176,\"\")","v":""},{"$f":"IF(DataLog!$C2176=\"Log value\",DataLog!P2176,\"\")","v":""},{"$f":"IF(DataLog!$C2176=\"Log value\",DataLog!Q2176,\"\")","v":""},{"$f":"IF(DataLog!$C2176=\"Log value\",DataLog!R2176,\"\")","v":""},{"$f":"IF(DataLog!$C2176=\"Log value\",DataLog!S2176,\"\")","v":""},{"$f":"IF(DataLog!$C2176=\"Log value\",DataLog!T2176,\"\")","v":""},{"$f":"IF(DataLog!$C2176=\"Log value\",DataLog!U2176,\"\")","v":""},{"$f":"IF(DataLog!$C2176=\"Log value\",DataLog!V2176,\"\")","v":""},{"$f":"IF(DataLog!$C2176=\"Log value\",DataLog!W2176,\"\")","v":""},{"$f":"IF(DataLog!$C2176=\"Log value\",DataLog!X2176,\"\")","v":""},{"$f":"IF(DataLog!$C2176=\"Log value\",DataLog!Y2176,\"\")","v":""},{"$f":"IF(DataLog!$C2176=\"Log value\",DataLog!Z2176,\"\")","v":""},{"$f":"IF(DataLog!$C2176=\"Log value\",DataLog!AA2176,\"\")","v":""},{"$f":"IF(DataLog!$C2176=\"Log value\",DataLog!AB2176,\"\")","v":""},{"$f":"IF(DataLog!$C2176=\"Log value\",DataLog!AC2176,\"\")","v":""},{"$f":"IF(DataLog!$C2176=\"Log value\",DataLog!AD2176,\"\")","v":""},{"$f":"IF(DataLog!$C2176=\"Log value\",DataLog!AE2176,\"\")","v":""},{"$f":"IF(DataLog!$C2176=\"Log value\",DataLog!AF2176,\"\")","v":""},{"$f":"IF(DataLog!$C2176=\"Log value\",DataLog!AG2176,\"\")","v":""},{"$f":"IF(DataLog!$C2176=\"Log value\",DataLog!AH2176,\"\")","v":""},{"$f":"IF(DataLog!$C2176=\"Log value\",DataLog!AI2176,\"\")","v":""},{"$f":"IF(DataLog!$C2176=\"Log value\",DataLog!AJ2176,\"\")","v":""},{"$f":"IF(DataLog!$C2176=\"Log value\",DataLog!AK2176,\"\")","v":""},{"$f":"IF(DataLog!$C2176=\"Log value\",DataLog!AL2176,\"\")","v":""},{"$f":"IF(DataLog!$C2176=\"Log value\",DataLog!AM2176,\"\")","v":""}]
[null,null,null,null,null,null,{"$f":"IF(DataLog!$C2177=\"Log value\",DataLog!D2177&\"_\"&TEXT(DataLog!B2177,\"åååå-mm-dd\"),\"\")","v":""},{"$f":"IF(DataLog!$C2177=\"Log value\",DataLog!E2177,\"\")","v":""},{"$f":"IF(DataLog!$C2177=\"Log value\",DataLog!F2177,\"\")","v":""},{"$f":"IF(DataLog!$C2177=\"Log value\",DataLog!G2177,\"\")","v":""},{"$f":"IF(DataLog!$C2177=\"Log value\",DataLog!H2177,\"\")","v":""},{"$f":"IF(DataLog!$C2177=\"Log value\",DataLog!I2177,\"\")","v":""},{"$f":"IF(DataLog!$C2177=\"Log value\",DataLog!J2177,\"\")","v":""},{"$f":"IF(DataLog!$C2177=\"Log value\",DataLog!K2177,\"\")","v":""},{"$f":"IF(DataLog!$C2177=\"Log value\",DataLog!L2177,\"\")","v":""},{"$f":"IF(DataLog!$C2177=\"Log value\",DataLog!M2177,\"\")","v":""},{"$f":"IF(DataLog!$C2177=\"Log value\",DataLog!N2177,\"\")","v":""},{"$f":"IF(DataLog!$C2177=\"Log value\",DataLog!O2177,\"\")","v":""},{"$f":"IF(DataLog!$C2177=\"Log value\",DataLog!P2177,\"\")","v":""},{"$f":"IF(DataLog!$C2177=\"Log value\",DataLog!Q2177,\"\")","v":""},{"$f":"IF(DataLog!$C2177=\"Log value\",DataLog!R2177,\"\")","v":""},{"$f":"IF(DataLog!$C2177=\"Log value\",DataLog!S2177,\"\")","v":""},{"$f":"IF(DataLog!$C2177=\"Log value\",DataLog!T2177,\"\")","v":""},{"$f":"IF(DataLog!$C2177=\"Log value\",DataLog!U2177,\"\")","v":""},{"$f":"IF(DataLog!$C2177=\"Log value\",DataLog!V2177,\"\")","v":""},{"$f":"IF(DataLog!$C2177=\"Log value\",DataLog!W2177,\"\")","v":""},{"$f":"IF(DataLog!$C2177=\"Log value\",DataLog!X2177,\"\")","v":""},{"$f":"IF(DataLog!$C2177=\"Log value\",DataLog!Y2177,\"\")","v":""},{"$f":"IF(DataLog!$C2177=\"Log value\",DataLog!Z2177,\"\")","v":""},{"$f":"IF(DataLog!$C2177=\"Log value\",DataLog!AA2177,\"\")","v":""},{"$f":"IF(DataLog!$C2177=\"Log value\",DataLog!AB2177,\"\")","v":""},{"$f":"IF(DataLog!$C2177=\"Log value\",DataLog!AC2177,\"\")","v":""},{"$f":"IF(DataLog!$C2177=\"Log value\",DataLog!AD2177,\"\")","v":""},{"$f":"IF(DataLog!$C2177=\"Log value\",DataLog!AE2177,\"\")","v":""},{"$f":"IF(DataLog!$C2177=\"Log value\",DataLog!AF2177,\"\")","v":""},{"$f":"IF(DataLog!$C2177=\"Log value\",DataLog!AG2177,\"\")","v":""},{"$f":"IF(DataLog!$C2177=\"Log value\",DataLog!AH2177,\"\")","v":""},{"$f":"IF(DataLog!$C2177=\"Log value\",DataLog!AI2177,\"\")","v":""},{"$f":"IF(DataLog!$C2177=\"Log value\",DataLog!AJ2177,\"\")","v":""},{"$f":"IF(DataLog!$C2177=\"Log value\",DataLog!AK2177,\"\")","v":""},{"$f":"IF(DataLog!$C2177=\"Log value\",DataLog!AL2177,\"\")","v":""},{"$f":"IF(DataLog!$C2177=\"Log value\",DataLog!AM2177,\"\")","v":""}]
[null,null,null,null,null,null,{"$f":"IF(DataLog!$C2180=\"Log value\",DataLog!D2180&\"_\"&TEXT(DataLog!B2180,\"åååå-mm-dd\"),\"\")","v":""},{"$f":"IF(DataLog!$C2180=\"Log value\",DataLog!E2180,\"\")","v":""},{"$f":"IF(DataLog!$C2180=\"Log value\",DataLog!F2180,\"\")","v":""},{"$f":"IF(DataLog!$C2180=\"Log value\",DataLog!G2180,\"\")","v":""},{"$f":"IF(DataLog!$C2180=\"Log value\",DataLog!H2180,\"\")","v":""},{"$f":"IF(DataLog!$C2180=\"Log value\",DataLog!I2180,\"\")","v":""},{"$f":"IF(DataLog!$C2180=\"Log value\",DataLog!J2180,\"\")","v":""},{"$f":"IF(DataLog!$C2180=\"Log value\",DataLog!K2180,\"\")","v":""},{"$f":"IF(DataLog!$C2180=\"Log value\",DataLog!L2180,\"\")","v":""},{"$f":"IF(DataLog!$C2180=\"Log value\",DataLog!M2180,\"\")","v":""},{"$f":"IF(DataLog!$C2180=\"Log value\",DataLog!N2180,\"\")","v":""},{"$f":"IF(DataLog!$C2180=\"Log value\",DataLog!O2180,\"\")","v":""},{"$f":"IF(DataLog!$C2180=\"Log value\",DataLog!P2180,\"\")","v":""},{"$f":"IF(DataLog!$C2180=\"Log value\",DataLog!Q2180,\"\")","v":""},{"$f":"IF(DataLog!$C2180=\"Log value\",DataLog!R2180,\"\")","v":""},{"$f":"IF(DataLog!$C2180=\"Log value\",DataLog!S2180,\"\")","v":""},{"$f":"IF(DataLog!$C2180=\"Log value\",DataLog!T2180,\"\")","v":""},{"$f":"IF(DataLog!$C2180=\"Log value\",DataLog!U2180,\"\")","v":""},{"$f":"IF(DataLog!$C2180=\"Log value\",DataLog!V2180,\"\")","v":""},{"$f":"IF(DataLog!$C2180=\"Log value\",DataLog!W2180,\"\")","v":""},{"$f":"IF(DataLog!$C2180=\"Log value\",DataLog!X2180,\"\")","v":""},{"$f":"IF(DataLog!$C2180=\"Log value\",DataLog!Y2180,\"\")","v":""},{"$f":"IF(DataLog!$C2180=\"Log value\",DataLog!Z2180,\"\")","v":""},{"$f":"IF(DataLog!$C2180=\"Log value\",DataLog!AA2180,\"\")","v":""},{"$f":"IF(DataLog!$C2180=\"Log value\",DataLog!AB2180,\"\")","v":""},{"$f":"IF(DataLog!$C2180=\"Log value\",DataLog!AC2180,\"\")","v":""},{"$f":"IF(DataLog!$C2180=\"Log value\",DataLog!AD2180,\"\")","v":""},{"$f":"IF(DataLog!$C2180=\"Log value\",DataLog!AE2180,\"\")","v":""},{"$f":"IF(DataLog!$C2180=\"Log value\",DataLog!AF2180,\"\")","v":""},{"$f":"IF(DataLog!$C2180=\"Log value\",DataLog!AG2180,\"\")","v":""},{"$f":"IF(DataLog!$C2180=\"Log value\",DataLog!AH2180,\"\")","v":""},{"$f":"IF(DataLog!$C2180=\"Log value\",DataLog!AI2180,\"\")","v":""},{"$f":"IF(DataLog!$C2180=\"Log value\",DataLog!AJ2180,\"\")","v":""},{"$f":"IF(DataLog!$C2180=\"Log value\",DataLog!AK2180,\"\")","v":""},{"$f":"IF(DataLog!$C2180=\"Log value\",DataLog!AL2180,\"\")","v":""},{"$f":"IF(DataLog!$C2180=\"Log value\",DataLog!AM2180,\"\")","v":""}]
[null,null,null,null,null,null,{"$f":"IF(DataLog!$C2182=\"Log value\",DataLog!D2182&\"_\"&TEXT(DataLog!B2182,\"åååå-mm-dd\"),\"\")","v":""},{"$f":"IF(DataLog!$C2182=\"Log value\",DataLog!E2182,\"\")","v":""},{"$f":"IF(DataLog!$C2182=\"Log value\",DataLog!F2182,\"\")","v":""},{"$f":"IF(DataLog!$C2182=\"Log value\",DataLog!G2182,\"\")","v":""},{"$f":"IF(DataLog!$C2182=\"Log value\",DataLog!H2182,\"\")","v":""},{"$f":"IF(DataLog!$C2182=\"Log value\",DataLog!I2182,\"\")","v":""},{"$f":"IF(DataLog!$C2182=\"Log value\",DataLog!J2182,\"\")","v":""},{"$f":"IF(DataLog!$C2182=\"Log value\",DataLog!K2182,\"\")","v":""},{"$f":"IF(DataLog!$C2182=\"Log value\",DataLog!L2182,\"\")","v":""},{"$f":"IF(DataLog!$C2182=\"Log value\",DataLog!M2182,\"\")","v":""},{"$f":"IF(DataLog!$C2182=\"Log value\",DataLog!N2182,\"\")","v":""},{"$f":"IF(DataLog!$C2182=\"Log value\",DataLog!O2182,\"\")","v":""},{"$f":"IF(DataLog!$C2182=\"Log value\",DataLog!P2182,\"\")","v":""},{"$f":"IF(DataLog!$C2182=\"Log value\",DataLog!Q2182,\"\")","v":""},{"$f":"IF(DataLog!$C2182=\"Log value\",DataLog!R2182,\"\")","v":""},{"$f":"IF(DataLog!$C2182=\"Log value\",DataLog!S2182,\"\")","v":""},{"$f":"IF(DataLog!$C2182=\"Log value\",DataLog!T2182,\"\")","v":""},{"$f":"IF(DataLog!$C2182=\"Log value\",DataLog!U2182,\"\")","v":""},{"$f":"IF(DataLog!$C2182=\"Log value\",DataLog!V2182,\"\")","v":""},{"$f":"IF(DataLog!$C2182=\"Log value\",DataLog!W2182,\"\")","v":""},{"$f":"IF(DataLog!$C2182=\"Log value\",DataLog!X2182,\"\")","v":""},{"$f":"IF(DataLog!$C2182=\"Log value\",DataLog!Y2182,\"\")","v":""},{"$f":"IF(DataLog!$C2182=\"Log value\",DataLog!Z2182,\"\")","v":""},{"$f":"IF(DataLog!$C2182=\"Log value\",DataLog!AA2182,\"\")","v":""},{"$f":"IF(DataLog!$C2182=\"Log value\",DataLog!AB2182,\"\")","v":""},{"$f":"IF(DataLog!$C2182=\"Log value\",DataLog!AC2182,\"\")","v":""},{"$f":"IF(DataLog!$C2182=\"Log value\",DataLog!AD2182,\"\")","v":""},{"$f":"IF(DataLog!$C2182=\"Log value\",DataLog!AE2182,\"\")","v":""},{"$f":"IF(DataLog!$C2182=\"Log value\",DataLog!AF2182,\"\")","v":""},{"$f":"IF(DataLog!$C2182=\"Log value\",DataLog!AG2182,\"\")","v":""},{"$f":"IF(DataLog!$C2182=\"Log value\",DataLog!AH2182,\"\")","v":""},{"$f":"IF(DataLog!$C2182=\"Log value\",DataLog!AI2182,\"\")","v":""},{"$f":"IF(DataLog!$C2182=\"Log value\",DataLog!AJ2182,\"\")","v":""},{"$f":"IF(DataLog!$C2182=\"Log value\",DataLog!AK2182,\"\")","v":""},{"$f":"IF(DataLog!$C2182=\"Log value\",DataLog!AL2182,\"\")","v":""},{"$f":"IF(DataLog!$C2182=\"Log value\",DataLog!AM2182,\"\")","v":""}]
[null,null,null,null,null,null,{"$f":"IF(DataLog!$C2185=\"Log value\",DataLog!D2185&\"_\"&TEXT(DataLog!B2185,\"åååå-mm-dd\"),\"\")","v":""},{"$f":"IF(DataLog!$C2185=\"Log value\",DataLog!E2185,\"\")","v":""},{"$f":"IF(DataLog!$C2185=\"Log value\",DataLog!F2185,\"\")","v":""},{"$f":"IF(DataLog!$C2185=\"Log value\",DataLog!G2185,\"\")","v":""},{"$f":"IF(DataLog!$C2185=\"Log value\",DataLog!H2185,\"\")","v":""},{"$f":"IF(DataLog!$C2185=\"Log value\",DataLog!I2185,\"\")","v":""},{"$f":"IF(DataLog!$C2185=\"Log value\",DataLog!J2185,\"\")","v":""},{"$f":"IF(DataLog!$C2185=\"Log value\",DataLog!K2185,\"\")","v":""},{"$f":"IF(DataLog!$C2185=\"Log value\",DataLog!L2185,\"\")","v":""},{"$f":"IF(DataLog!$C2185=\"Log value\",DataLog!M2185,\"\")","v":""},{"$f":"IF(DataLog!$C2185=\"Log value\",DataLog!N2185,\"\")","v":""},{"$f":"IF(DataLog!$C2185=\"Log value\",DataLog!O2185,\"\")","v":""},{"$f":"IF(DataLog!$C2185=\"Log value\",DataLog!P2185,\"\")","v":""},{"$f":"IF(DataLog!$C2185=\"Log value\",DataLog!Q2185,\"\")","v":""},{"$f":"IF(DataLog!$C2185=\"Log value\",DataLog!R2185,\"\")","v":""},{"$f":"IF(DataLog!$C2185=\"Log value\",DataLog!S2185,\"\")","v":""},{"$f":"IF(DataLog!$C2185=\"Log value\",DataLog!T2185,\"\")","v":""},{"$f":"IF(DataLog!$C2185=\"Log value\",DataLog!U2185,\"\")","v":""},{"$f":"IF(DataLog!$C2185=\"Log value\",DataLog!V2185,\"\")","v":""},{"$f":"IF(DataLog!$C2185=\"Log value\",DataLog!W2185,\"\")","v":""},{"$f":"IF(DataLog!$C2185=\"Log value\",DataLog!X2185,\"\")","v":""},{"$f":"IF(DataLog!$C2185=\"Log value\",DataLog!Y2185,\"\")","v":""},{"$f":"IF(DataLog!$C2185=\"Log value\",DataLog!Z2185,\"\")","v":""},{"$f":"IF(DataLog!$C2185=\"Log value\",DataLog!AA2185,\"\")","v":""},{"$f":"IF(DataLog!$C2185=\"Log value\",DataLog!AB2185,\"\")","v":""},{"$f":"IF(DataLog!$C2185=\"Log value\",DataLog!AC2185,\"\")","v":""},{"$f":"IF(DataLog!$C2185=\"Log value\",DataLog!AD2185,\"\")","v":""},{"$f":"IF(DataLog!$C2185=\"Log value\",DataLog!AE2185,\"\")","v":""},{"$f":"IF(DataLog!$C2185=\"Log value\",DataLog!AF2185,\"\")","v":""},{"$f":"IF(DataLog!$C2185=\"Log value\",DataLog!AG2185,\"\")","v":""},{"$f":"IF(DataLog!$C2185=\"Log value\",DataLog!AH2185,\"\")","v":""},{"$f":"IF(DataLog!$C2185=\"Log value\",DataLog!AI2185,\"\")","v":""},{"$f":"IF(DataLog!$C2185=\"Log value\",DataLog!AJ2185,\"\")","v":""},{"$f":"IF(DataLog!$C2185=\"Log value\",DataLog!AK2185,\"\")","v":""},{"$f":"IF(DataLog!$C2185=\"Log value\",DataLog!AL2185,\"\")","v":""},{"$f":"IF(DataLog!$C2185=\"Log value\",DataLog!AM2185,\"\")","v":""}]
[null,null,null,null,null,null,{"$f":"IF(DataLog!$C2188=\"Log value\",DataLog!D2188&\"_\"&TEXT(DataLog!B2188,\"åååå-mm-dd\"),\"\")","v":""},{"$f":"IF(DataLog!$C2188=\"Log value\",DataLog!E2188,\"\")","v":""},{"$f":"IF(DataLog!$C2188=\"Log value\",DataLog!F2188,\"\")","v":""},{"$f":"IF(DataLog!$C2188=\"Log value\",DataLog!G2188,\"\")","v":""},{"$f":"IF(DataLog!$C2188=\"Log value\",DataLog!H2188,\"\")","v":""},{"$f":"IF(DataLog!$C2188=\"Log value\",DataLog!I2188,\"\")","v":""},{"$f":"IF(DataLog!$C2188=\"Log value\",DataLog!J2188,\"\")","v":""},{"$f":"IF(DataLog!$C2188=\"Log value\",DataLog!K2188,\"\")","v":""},{"$f":"IF(DataLog!$C2188=\"Log value\",DataLog!L2188,\"\")","v":""},{"$f":"IF(DataLog!$C2188=\"Log value\",DataLog!M2188,\"\")","v":""},{"$f":"IF(DataLog!$C2188=\"Log value\",DataLog!N2188,\"\")","v":""},{"$f":"IF(DataLog!$C2188=\"Log value\",DataLog!O2188,\"\")","v":""},{"$f":"IF(DataLog!$C2188=\"Log value\",DataLog!P2188,\"\")","v":""},{"$f":"IF(DataLog!$C2188=\"Log value\",DataLog!Q2188,\"\")","v":""},{"$f":"IF(DataLog!$C2188=\"Log value\",DataLog!R2188,\"\")","v":""},{"$f":"IF(DataLog!$C2188=\"Log value\",DataLog!S2188,\"\")","v":""},{"$f":"IF(DataLog!$C2188=\"Log value\",DataLog!T2188,\"\")","v":""},{"$f":"IF(DataLog!$C2188=\"Log value\",DataLog!U2188,\"\")","v":""},{"$f":"IF(DataLog!$C2188=\"Log value\",DataLog!V2188,\"\")","v":""},{"$f":"IF(DataLog!$C2188=\"Log value\",DataLog!W2188,\"\")","v":""},{"$f":"IF(DataLog!$C2188=\"Log value\",DataLog!X2188,\"\")","v":""},{"$f":"IF(DataLog!$C2188=\"Log value\",DataLog!Y2188,\"\")","v":""},{"$f":"IF(DataLog!$C2188=\"Log value\",DataLog!Z2188,\"\")","v":""},{"$f":"IF(DataLog!$C2188=\"Log value\",DataLog!AA2188,\"\")","v":""},{"$f":"IF(DataLog!$C2188=\"Log value\",DataLog!AB2188,\"\")","v":""},{"$f":"IF(DataLog!$C2188=\"Log value\",DataLog!AC2188,\"\")","v":""},{"$f":"IF(DataLog!$C2188=\"Log value\",DataLog!AD2188,\"\")","v":""},{"$f":"IF(DataLog!$C2188=\"Log value\",DataLog!AE2188,\"\")","v":""},{"$f":"IF(DataLog!$C2188=\"Log value\",DataLog!AF2188,\"\")","v":""},{"$f":"IF(DataLog!$C2188=\"Log value\",DataLog!AG2188,\"\")","v":""},{"$f":"IF(DataLog!$C2188=\"Log value\",DataLog!AH2188,\"\")","v":""},{"$f":"IF(DataLog!$C2188=\"Log value\",DataLog!AI2188,\"\")","v":""},{"$f":"IF(DataLog!$C2188=\"Log value\",DataLog!AJ2188,\"\")","v":""},{"$f":"IF(DataLog!$C2188=\"Log value\",DataLog!AK2188,\"\")","v":""},{"$f":"IF(DataLog!$C2188=\"Log value\",DataLog!AL2188,\"\")","v":""},{"$f":"IF(DataLog!$C2188=\"Log value\",DataLog!AM2188,\"\")","v":""}]
[null,null,null,null,null,null,{"$f":"IF(DataLog!$C2190=\"Log value\",DataLog!D2190&\"_\"&TEXT(DataLog!B2190,\"åååå-mm-dd\"),\"\")","v":""},{"$f":"IF(DataLog!$C2190=\"Log value\",DataLog!E2190,\"\")","v":""},{"$f":"IF(DataLog!$C2190=\"Log value\",DataLog!F2190,\"\")","v":""},{"$f":"IF(DataLog!$C2190=\"Log value\",DataLog!G2190,\"\")","v":""},{"$f":"IF(DataLog!$C2190=\"Log value\",DataLog!H2190,\"\")","v":""},{"$f":"IF(DataLog!$C2190=\"Log value\",DataLog!I2190,\"\")","v":""},{"$f":"IF(DataLog!$C2190=\"Log value\",DataLog!J2190,\"\")","v":""},{"$f":"IF(DataLog!$C2190=\"Log value\",DataLog!K2190,\"\")","v":""},{"$f":"IF(DataLog!$C2190=\"Log value\",DataLog!L2190,\"\")","v":""},{"$f":"IF(DataLog!$C2190=\"Log value\",DataLog!M2190,\"\")","v":""},{"$f":"IF(DataLog!$C2190=\"Log value\",DataLog!N2190,\"\")","v":""},{"$f":"IF(DataLog!$C2190=\"Log value\",DataLog!O2190,\"\")","v":""},{"$f":"IF(DataLog!$C2190=\"Log value\",DataLog!P2190,\"\")","v":""},{"$f":"IF(DataLog!$C2190=\"Log value\",DataLog!Q2190,\"\")","v":""},{"$f":"IF(DataLog!$C2190=\"Log value\",DataLog!R2190,\"\")","v":""},{"$f":"IF(DataLog!$C2190=\"Log value\",DataLog!S2190,\"\")","v":""},{"$f":"IF(DataLog!$C2190=\"Log value\",DataLog!T2190,\"\")","v":""},{"$f":"IF(DataLog!$C2190=\"Log value\",DataLog!U2190,\"\")","v":""},{"$f":"IF(DataLog!$C2190=\"Log value\",DataLog!V2190,\"\")","v":""},{"$f":"IF(DataLog!$C2190=\"Log value\",DataLog!W2190,\"\")","v":""},{"$f":"IF(DataLog!$C2190=\"Log value\",DataLog!X2190,\"\")","v":""},{"$f":"IF(DataLog!$C2190=\"Log value\",DataLog!Y2190,\"\")","v":""},{"$f":"IF(DataLog!$C2190=\"Log value\",DataLog!Z2190,\"\")","v":""},{"$f":"IF(DataLog!$C2190=\"Log value\",DataLog!AA2190,\"\")","v":""},{"$f":"IF(DataLog!$C2190=\"Log value\",DataLog!AB2190,\"\")","v":""},{"$f":"IF(DataLog!$C2190=\"Log value\",DataLog!AC2190,\"\")","v":""},{"$f":"IF(DataLog!$C2190=\"Log value\",DataLog!AD2190,\"\")","v":""},{"$f":"IF(DataLog!$C2190=\"Log value\",DataLog!AE2190,\"\")","v":""},{"$f":"IF(DataLog!$C2190=\"Log value\",DataLog!AF2190,\"\")","v":""},{"$f":"IF(DataLog!$C2190=\"Log value\",DataLog!AG2190,\"\")","v":""},{"$f":"IF(DataLog!$C2190=\"Log value\",DataLog!AH2190,\"\")","v":""},{"$f":"IF(DataLog!$C2190=\"Log value\",DataLog!AI2190,\"\")","v":""},{"$f":"IF(DataLog!$C2190=\"Log value\",DataLog!AJ2190,\"\")","v":""},{"$f":"IF(DataLog!$C2190=\"Log value\",DataLog!AK2190,\"\")","v":""},{"$f":"IF(DataLog!$C2190=\"Log value\",DataLog!AL2190,\"\")","v":""},{"$f":"IF(DataLog!$C2190=\"Log value\",DataLog!AM2190,\"\")","v":""}]
[null,null,null,null,null,null,{"$f":"IF(DataLog!$C2191=\"Log value\",DataLog!D2191&\"_\"&TEXT(DataLog!B2191,\"åååå-mm-dd\"),\"\")","v":""},{"$f":"IF(DataLog!$C2191=\"Log value\",DataLog!E2191,\"\")","v":""},{"$f":"IF(DataLog!$C2191=\"Log value\",DataLog!F2191,\"\")","v":""},{"$f":"IF(DataLog!$C2191=\"Log value\",DataLog!G2191,\"\")","v":""},{"$f":"IF(DataLog!$C2191=\"Log value\",DataLog!H2191,\"\")","v":""},{"$f":"IF(DataLog!$C2191=\"Log value\",DataLog!I2191,\"\")","v":""},{"$f":"IF(DataLog!$C2191=\"Log value\",DataLog!J2191,\"\")","v":""},{"$f":"IF(DataLog!$C2191=\"Log value\",DataLog!K2191,\"\")","v":""},{"$f":"IF(DataLog!$C2191=\"Log value\",DataLog!L2191,\"\")","v":""},{"$f":"IF(DataLog!$C2191=\"Log value\",DataLog!M2191,\"\")","v":""},{"$f":"IF(DataLog!$C2191=\"Log value\",DataLog!N2191,\"\")","v":""},{"$f":"IF(DataLog!$C2191=\"Log value\",DataLog!O2191,\"\")","v":""},{"$f":"IF(DataLog!$C2191=\"Log value\",DataLog!P2191,\"\")","v":""},{"$f":"IF(DataLog!$C2191=\"Log value\",DataLog!Q2191,\"\")","v":""},{"$f":"IF(DataLog!$C2191=\"Log value\",DataLog!R2191,\"\")","v":""},{"$f":"IF(DataLog!$C2191=\"Log value\",DataLog!S2191,\"\")","v":""},{"$f":"IF(DataLog!$C2191=\"Log value\",DataLog!T2191,\"\")","v":""},{"$f":"IF(DataLog!$C2191=\"Log value\",DataLog!U2191,\"\")","v":""},{"$f":"IF(DataLog!$C2191=\"Log value\",DataLog!V2191,\"\")","v":""},{"$f":"IF(DataLog!$C2191=\"Log value\",DataLog!W2191,\"\")","v":""},{"$f":"IF(DataLog!$C2191=\"Log value\",DataLog!X2191,\"\")","v":""},{"$f":"IF(DataLog!$C2191=\"Log value\",DataLog!Y2191,\"\")","v":""},{"$f":"IF(DataLog!$C2191=\"Log value\",DataLog!Z2191,\"\")","v":""},{"$f":"IF(DataLog!$C2191=\"Log value\",DataLog!AA2191,\"\")","v":""},{"$f":"IF(DataLog!$C2191=\"Log value\",DataLog!AB2191,\"\")","v":""},{"$f":"IF(DataLog!$C2191=\"Log value\",DataLog!AC2191,\"\")","v":""},{"$f":"IF(DataLog!$C2191=\"Log value\",DataLog!AD2191,\"\")","v":""},{"$f":"IF(DataLog!$C2191=\"Log value\",DataLog!AE2191,\"\")","v":""},{"$f":"IF(DataLog!$C2191=\"Log value\",DataLog!AF2191,\"\")","v":""},{"$f":"IF(DataLog!$C2191=\"Log value\",DataLog!AG2191,\"\")","v":""},{"$f":"IF(DataLog!$C2191=\"Log value\",DataLog!AH2191,\"\")","v":""},{"$f":"IF(DataLog!$C2191=\"Log value\",DataLog!AI2191,\"\")","v":""},{"$f":"IF(DataLog!$C2191=\"Log value\",DataLog!AJ2191,\"\")","v":""},{"$f":"IF(DataLog!$C2191=\"Log value\",DataLog!AK2191,\"\")","v":""},{"$f":"IF(DataLog!$C2191=\"Log value\",DataLog!AL2191,\"\")","v":""},{"$f":"IF(DataLog!$C2191=\"Log value\",DataLog!AM2191,\"\")","v":""}]
[null,null,null,null,null,null,{"$f":"IF(DataLog!$C2194=\"Log value\",DataLog!D2194&\"_\"&TEXT(DataLog!B2194,\"åååå-mm-dd\"),\"\")","v":""},{"$f":"IF(DataLog!$C2194=\"Log value\",DataLog!E2194,\"\")","v":""},{"$f":"IF(DataLog!$C2194=\"Log value\",DataLog!F2194,\"\")","v":""},{"$f":"IF(DataLog!$C2194=\"Log value\",DataLog!G2194,\"\")","v":""},{"$f":"IF(DataLog!$C2194=\"Log value\",DataLog!H2194,\"\")","v":""},{"$f":"IF(DataLog!$C2194=\"Log value\",DataLog!I2194,\"\")","v":""},{"$f":"IF(DataLog!$C2194=\"Log value\",DataLog!J2194,\"\")","v":""},{"$f":"IF(DataLog!$C2194=\"Log value\",DataLog!K2194,\"\")","v":""},{"$f":"IF(DataLog!$C2194=\"Log value\",DataLog!L2194,\"\")","v":""},{"$f":"IF(DataLog!$C2194=\"Log value\",DataLog!M2194,\"\")","v":""},{"$f":"IF(DataLog!$C2194=\"Log value\",DataLog!N2194,\"\")","v":""},{"$f":"IF(DataLog!$C2194=\"Log value\",DataLog!O2194,\"\")","v":""},{"$f":"IF(DataLog!$C2194=\"Log value\",DataLog!P2194,\"\")","v":""},{"$f":"IF(DataLog!$C2194=\"Log value\",DataLog!Q2194,\"\")","v":""},{"$f":"IF(DataLog!$C2194=\"Log value\",DataLog!R2194,\"\")","v":""},{"$f":"IF(DataLog!$C2194=\"Log value\",DataLog!S2194,\"\")","v":""},{"$f":"IF(DataLog!$C2194=\"Log value\",DataLog!T2194,\"\")","v":""},{"$f":"IF(DataLog!$C2194=\"Log value\",DataLog!U2194,\"\")","v":""},{"$f":"IF(DataLog!$C2194=\"Log value\",DataLog!V2194,\"\")","v":""},{"$f":"IF(DataLog!$C2194=\"Log value\",DataLog!W2194,\"\")","v":""},{"$f":"IF(DataLog!$C2194=\"Log value\",DataLog!X2194,\"\")","v":""},{"$f":"IF(DataLog!$C2194=\"Log value\",DataLog!Y2194,\"\")","v":""},{"$f":"IF(DataLog!$C2194=\"Log value\",DataLog!Z2194,\"\")","v":""},{"$f":"IF(DataLog!$C2194=\"Log value\",DataLog!AA2194,\"\")","v":""},{"$f":"IF(DataLog!$C2194=\"Log value\",DataLog!AB2194,\"\")","v":""},{"$f":"IF(DataLog!$C2194=\"Log value\",DataLog!AC2194,\"\")","v":""},{"$f":"IF(DataLog!$C2194=\"Log value\",DataLog!AD2194,\"\")","v":""},{"$f":"IF(DataLog!$C2194=\"Log value\",DataLog!AE2194,\"\")","v":""},{"$f":"IF(DataLog!$C2194=\"Log value\",DataLog!AF2194,\"\")","v":""},{"$f":"IF(DataLog!$C2194=\"Log value\",DataLog!AG2194,\"\")","v":""},{"$f":"IF(DataLog!$C2194=\"Log value\",DataLog!AH2194,\"\")","v":""},{"$f":"IF(DataLog!$C2194=\"Log value\",DataLog!AI2194,\"\")","v":""},{"$f":"IF(DataLog!$C2194=\"Log value\",DataLog!AJ2194,\"\")","v":""},{"$f":"IF(DataLog!$C2194=\"Log value\",DataLog!AK2194,\"\")","v":""},{"$f":"IF(DataLog!$C2194=\"Log value\",DataLog!AL2194,\"\")","v":""},{"$f":"IF(DataLog!$C2194=\"Log value\",DataLog!AM2194,\"\")","v":""}]
[null,null,null,null,null,null,{"$f":"IF(DataLog!$C2196=\"Log value\",DataLog!D2196&\"_\"&TEXT(DataLog!B2196,\"åååå-mm-dd\"),\"\")","v":""},{"$f":"IF(DataLog!$C2196=\"Log value\",DataLog!E2196,\"\")","v":""},{"$f":"IF(DataLog!$C2196=\"Log value\",DataLog!F2196,\"\")","v":""},{"$f":"IF(DataLog!$C2196=\"Log value\",DataLog!G2196,\"\")","v":""},{"$f":"IF(DataLog!$C2196=\"Log value\",DataLog!H2196,\"\")","v":""},{"$f":"IF(DataLog!$C2196=\"Log value\",DataLog!I2196,\"\")","v":""},{"$f":"IF(DataLog!$C2196=\"Log value\",DataLog!J2196,\"\")","v":""},{"$f":"IF(DataLog!$C2196=\"Log value\",DataLog!K2196,\"\")","v":""},{"$f":"IF(DataLog!$C2196=\"Log value\",DataLog!L2196,\"\")","v":""},{"$f":"IF(DataLog!$C2196=\"Log value\",DataLog!M2196,\"\")","v":""},{"$f":"IF(DataLog!$C2196=\"Log value\",DataLog!N2196,\"\")","v":""},{"$f":"IF(DataLog!$C2196=\"Log value\",DataLog!O2196,\"\")","v":""},{"$f":"IF(DataLog!$C2196=\"Log value\",DataLog!P2196,\"\")","v":""},{"$f":"IF(DataLog!$C2196=\"Log value\",DataLog!Q2196,\"\")","v":""},{"$f":"IF(DataLog!$C2196=\"Log value\",DataLog!R2196,\"\")","v":""},{"$f":"IF(DataLog!$C2196=\"Log value\",DataLog!S2196,\"\")","v":""},{"$f":"IF(DataLog!$C2196=\"Log value\",DataLog!T2196,\"\")","v":""},{"$f":"IF(DataLog!$C2196=\"Log value\",DataLog!U2196,\"\")","v":""},{"$f":"IF(DataLog!$C2196=\"Log value\",DataLog!V2196,\"\")","v":""},{"$f":"IF(DataLog!$C2196=\"Log value\",DataLog!W2196,\"\")","v":""},{"$f":"IF(DataLog!$C2196=\"Log value\",DataLog!X2196,\"\")","v":""},{"$f":"IF(DataLog!$C2196=\"Log value\",DataLog!Y2196,\"\")","v":""},{"$f":"IF(DataLog!$C2196=\"Log value\",DataLog!Z2196,\"\")","v":""},{"$f":"IF(DataLog!$C2196=\"Log value\",DataLog!AA2196,\"\")","v":""},{"$f":"IF(DataLog!$C2196=\"Log value\",DataLog!AB2196,\"\")","v":""},{"$f":"IF(DataLog!$C2196=\"Log value\",DataLog!AC2196,\"\")","v":""},{"$f":"IF(DataLog!$C2196=\"Log value\",DataLog!AD2196,\"\")","v":""},{"$f":"IF(DataLog!$C2196=\"Log value\",DataLog!AE2196,\"\")","v":""},{"$f":"IF(DataLog!$C2196=\"Log value\",DataLog!AF2196,\"\")","v":""},{"$f":"IF(DataLog!$C2196=\"Log value\",DataLog!AG2196,\"\")","v":""},{"$f":"IF(DataLog!$C2196=\"Log value\",DataLog!AH2196,\"\")","v":""},{"$f":"IF(DataLog!$C2196=\"Log value\",DataLog!AI2196,\"\")","v":""},{"$f":"IF(DataLog!$C2196=\"Log value\",DataLog!AJ2196,\"\")","v":""},{"$f":"IF(DataLog!$C2196=\"Log value\",DataLog!AK2196,\"\")","v":""},{"$f":"IF(DataLog!$C2196=\"Log value\",DataLog!AL2196,\"\")","v":""},{"$f":"IF(DataLog!$C2196=\"Log value\",DataLog!AM2196,\"\")","v":""}]
[null,null,null,null,null,null,{"$f":"IF(DataLog!$C2199=\"Log value\",DataLog!D2199&\"_\"&TEXT(DataLog!B2199,\"åååå-mm-dd\"),\"\")","v":""},{"$f":"IF(DataLog!$C2199=\"Log value\",DataLog!E2199,\"\")","v":""},{"$f":"IF(DataLog!$C2199=\"Log value\",DataLog!F2199,\"\")","v":""},{"$f":"IF(DataLog!$C2199=\"Log value\",DataLog!G2199,\"\")","v":""},{"$f":"IF(DataLog!$C2199=\"Log value\",DataLog!H2199,\"\")","v":""},{"$f":"IF(DataLog!$C2199=\"Log value\",DataLog!I2199,\"\")","v":""},{"$f":"IF(DataLog!$C2199=\"Log value\",DataLog!J2199,\"\")","v":""},{"$f":"IF(DataLog!$C2199=\"Log value\",DataLog!K2199,\"\")","v":""},{"$f":"IF(DataLog!$C2199=\"Log value\",DataLog!L2199,\"\")","v":""},{"$f":"IF(DataLog!$C2199=\"Log value\",DataLog!M2199,\"\")","v":""},{"$f":"IF(DataLog!$C2199=\"Log value\",DataLog!N2199,\"\")","v":""},{"$f":"IF(DataLog!$C2199=\"Log value\",DataLog!O2199,\"\")","v":""},{"$f":"IF(DataLog!$C2199=\"Log value\",DataLog!P2199,\"\")","v":""},{"$f":"IF(DataLog!$C2199=\"Log value\",DataLog!Q2199,\"\")","v":""},{"$f":"IF(DataLog!$C2199=\"Log value\",DataLog!R2199,\"\")","v":""},{"$f":"IF(DataLog!$C2199=\"Log value\",DataLog!S2199,\"\")","v":""},{"$f":"IF(DataLog!$C2199=\"Log value\",DataLog!T2199,\"\")","v":""},{"$f":"IF(DataLog!$C2199=\"Log value\",DataLog!U2199,\"\")","v":""},{"$f":"IF(DataLog!$C2199=\"Log value\",DataLog!V2199,\"\")","v":""},{"$f":"IF(DataLog!$C2199=\"Log value\",DataLog!W2199,\"\")","v":""},{"$f":"IF(DataLog!$C2199=\"Log value\",DataLog!X2199,\"\")","v":""},{"$f":"IF(DataLog!$C2199=\"Log value\",DataLog!Y2199,\"\")","v":""},{"$f":"IF(DataLog!$C2199=\"Log value\",DataLog!Z2199,\"\")","v":""},{"$f":"IF(DataLog!$C2199=\"Log value\",DataLog!AA2199,\"\")","v":""},{"$f":"IF(DataLog!$C2199=\"Log value\",DataLog!AB2199,\"\")","v":""},{"$f":"IF(DataLog!$C2199=\"Log value\",DataLog!AC2199,\"\")","v":""},{"$f":"IF(DataLog!$C2199=\"Log value\",DataLog!AD2199,\"\")","v":""},{"$f":"IF(DataLog!$C2199=\"Log value\",DataLog!AE2199,\"\")","v":""},{"$f":"IF(DataLog!$C2199=\"Log value\",DataLog!AF2199,\"\")","v":""},{"$f":"IF(DataLog!$C2199=\"Log value\",DataLog!AG2199,\"\")","v":""},{"$f":"IF(DataLog!$C2199=\"Log value\",DataLog!AH2199,\"\")","v":""},{"$f":"IF(DataLog!$C2199=\"Log value\",DataLog!AI2199,\"\")","v":""},{"$f":"IF(DataLog!$C2199=\"Log value\",DataLog!AJ2199,\"\")","v":""},{"$f":"IF(DataLog!$C2199=\"Log value\",DataLog!AK2199,\"\")","v":""},{"$f":"IF(DataLog!$C2199=\"Log value\",DataLog!AL2199,\"\")","v":""},{"$f":"IF(DataLog!$C2199=\"Log value\",DataLog!AM2199,\"\")","v":""}]
[null,null,null,null,null,null,{"$f":"IF(DataLog!$C2200=\"Log value\",DataLog!D2200&\"_\"&TEXT(DataLog!B2200,\"åååå-mm-dd\"),\"\")","v":""},{"$f":"IF(DataLog!$C2200=\"Log value\",DataLog!E2200,\"\")","v":""},{"$f":"IF(DataLog!$C2200=\"Log value\",DataLog!F2200,\"\")","v":""},{"$f":"IF(DataLog!$C2200=\"Log value\",DataLog!G2200,\"\")","v":""},{"$f":"IF(DataLog!$C2200=\"Log value\",DataLog!H2200,\"\")","v":""},{"$f":"IF(DataLog!$C2200=\"Log value\",DataLog!I2200,\"\")","v":""},{"$f":"IF(DataLog!$C2200=\"Log value\",DataLog!J2200,\"\")","v":""},{"$f":"IF(DataLog!$C2200=\"Log value\",DataLog!K2200,\"\")","v":""},{"$f":"IF(DataLog!$C2200=\"Log value\",DataLog!L2200,\"\")","v":""},{"$f":"IF(DataLog!$C2200=\"Log value\",DataLog!M2200,\"\")","v":""},{"$f":"IF(DataLog!$C2200=\"Log value\",DataLog!N2200,\"\")","v":""},{"$f":"IF(DataLog!$C2200=\"Log value\",DataLog!O2200,\"\")","v":""},{"$f":"IF(DataLog!$C2200=\"Log value\",DataLog!P2200,\"\")","v":""},{"$f":"IF(DataLog!$C2200=\"Log value\",DataLog!Q2200,\"\")","v":""},{"$f":"IF(DataLog!$C2200=\"Log value\",DataLog!R2200,\"\")","v":""},{"$f":"IF(DataLog!$C2200=\"Log value\",DataLog!S2200,\"\")","v":""},{"$f":"IF(DataLog!$C2200=\"Log value\",DataLog!T2200,\"\")","v":""},{"$f":"IF(DataLog!$C2200=\"Log value\",DataLog!U2200,\"\")","v":""},{"$f":"IF(DataLog!$C2200=\"Log value\",DataLog!V2200,\"\")","v":""},{"$f":"IF(DataLog!$C2200=\"Log value\",DataLog!W2200,\"\")","v":""},{"$f":"IF(DataLog!$C2200=\"Log value\",DataLog!X2200,\"\")","v":""},{"$f":"IF(DataLog!$C2200=\"Log value\",DataLog!Y2200,\"\")","v":""},{"$f":"IF(DataLog!$C2200=\"Log value\",DataLog!Z2200,\"\")","v":""},{"$f":"IF(DataLog!$C2200=\"Log value\",DataLog!AA2200,\"\")","v":""},{"$f":"IF(DataLog!$C2200=\"Log value\",DataLog!AB2200,\"\")","v":""},{"$f":"IF(DataLog!$C2200=\"Log value\",DataLog!AC2200,\"\")","v":""},{"$f":"IF(DataLog!$C2200=\"Log value\",DataLog!AD2200,\"\")","v":""},{"$f":"IF(DataLog!$C2200=\"Log value\",DataLog!AE2200,\"\")","v":""},{"$f":"IF(DataLog!$C2200=\"Log value\",DataLog!AF2200,\"\")","v":""},{"$f":"IF(DataLog!$C2200=\"Log value\",DataLog!AG2200,\"\")","v":""},{"$f":"IF(DataLog!$C2200=\"Log value\",DataLog!AH2200,\"\")","v":""},{"$f":"IF(DataLog!$C2200=\"Log value\",DataLog!AI2200,\"\")","v":""},{"$f":"IF(DataLog!$C2200=\"Log value\",DataLog!AJ2200,\"\")","v":""},{"$f":"IF(DataLog!$C2200=\"Log value\",DataLog!AK2200,\"\")","v":""},{"$f":"IF(DataLog!$C2200=\"Log value\",DataLog!AL2200,\"\")","v":""},{"$f":"IF(DataLog!$C2200=\"Log value\",DataLog!AM2200,\"\")","v":""}]
[null,null,null,null,null,null,{"$f":"IF(DataLog!$C2203=\"Log value\",DataLog!D2203&\"_\"&TEXT(DataLog!B2203,\"åååå-mm-dd\"),\"\")","v":""},{"$f":"IF(DataLog!$C2203=\"Log value\",DataLog!E2203,\"\")","v":""},{"$f":"IF(DataLog!$C2203=\"Log value\",DataLog!F2203,\"\")","v":""},{"$f":"IF(DataLog!$C2203=\"Log value\",DataLog!G2203,\"\")","v":""},{"$f":"IF(DataLog!$C2203=\"Log value\",DataLog!H2203,\"\")","v":""},{"$f":"IF(DataLog!$C2203=\"Log value\",DataLog!I2203,\"\")","v":""},{"$f":"IF(DataLog!$C2203=\"Log value\",DataLog!J2203,\"\")","v":""},{"$f":"IF(DataLog!$C2203=\"Log value\",DataLog!K2203,\"\")","v":""},{"$f":"IF(DataLog!$C2203=\"Log value\",DataLog!L2203,\"\")","v":""},{"$f":"IF(DataLog!$C2203=\"Log value\",DataLog!M2203,\"\")","v":""},{"$f":"IF(DataLog!$C2203=\"Log value\",DataLog!N2203,\"\")","v":""},{"$f":"IF(DataLog!$C2203=\"Log value\",DataLog!O2203,\"\")","v":""},{"$f":"IF(DataLog!$C2203=\"Log value\",DataLog!P2203,\"\")","v":""},{"$f":"IF(DataLog!$C2203=\"Log value\",DataLog!Q2203,\"\")","v":""},{"$f":"IF(DataLog!$C2203=\"Log value\",DataLog!R2203,\"\")","v":""},{"$f":"IF(DataLog!$C2203=\"Log value\",DataLog!S2203,\"\")","v":""},{"$f":"IF(DataLog!$C2203=\"Log value\",DataLog!T2203,\"\")","v":""},{"$f":"IF(DataLog!$C2203=\"Log value\",DataLog!U2203,\"\")","v":""},{"$f":"IF(DataLog!$C2203=\"Log value\",DataLog!V2203,\"\")","v":""},{"$f":"IF(DataLog!$C2203=\"Log value\",DataLog!W2203,\"\")","v":""},{"$f":"IF(DataLog!$C2203=\"Log value\",DataLog!X2203,\"\")","v":""},{"$f":"IF(DataLog!$C2203=\"Log value\",DataLog!Y2203,\"\")","v":""},{"$f":"IF(DataLog!$C2203=\"Log value\",DataLog!Z2203,\"\")","v":""},{"$f":"IF(DataLog!$C2203=\"Log value\",DataLog!AA2203,\"\")","v":""},{"$f":"IF(DataLog!$C2203=\"Log value\",DataLog!AB2203,\"\")","v":""},{"$f":"IF(DataLog!$C2203=\"Log value\",DataLog!AC2203,\"\")","v":""},{"$f":"IF(DataLog!$C2203=\"Log value\",DataLog!AD2203,\"\")","v":""},{"$f":"IF(DataLog!$C2203=\"Log value\",DataLog!AE2203,\"\")","v":""},{"$f":"IF(DataLog!$C2203=\"Log value\",DataLog!AF2203,\"\")","v":""},{"$f":"IF(DataLog!$C2203=\"Log value\",DataLog!AG2203,\"\")","v":""},{"$f":"IF(DataLog!$C2203=\"Log value\",DataLog!AH2203,\"\")","v":""},{"$f":"IF(DataLog!$C2203=\"Log value\",DataLog!AI2203,\"\")","v":""},{"$f":"IF(DataLog!$C2203=\"Log value\",DataLog!AJ2203,\"\")","v":""},{"$f":"IF(DataLog!$C2203=\"Log value\",DataLog!AK2203,\"\")","v":""},{"$f":"IF(DataLog!$C2203=\"Log value\",DataLog!AL2203,\"\")","v":""},{"$f":"IF(DataLog!$C2203=\"Log value\",DataLog!AM2203,\"\")","v":""}]
[null,null,null,null,null,null,{"$f":"IF(DataLog!$C2206=\"Log value\",DataLog!D2206&\"_\"&TEXT(DataLog!B2206,\"åååå-mm-dd\"),\"\")","v":""},{"$f":"IF(DataLog!$C2206=\"Log value\",DataLog!E2206,\"\")","v":""},{"$f":"IF(DataLog!$C2206=\"Log value\",DataLog!F2206,\"\")","v":""},{"$f":"IF(DataLog!$C2206=\"Log value\",DataLog!G2206,\"\")","v":""},{"$f":"IF(DataLog!$C2206=\"Log value\",DataLog!H2206,\"\")","v":""},{"$f":"IF(DataLog!$C2206=\"Log value\",DataLog!I2206,\"\")","v":""},{"$f":"IF(DataLog!$C2206=\"Log value\",DataLog!J2206,\"\")","v":""},{"$f":"IF(DataLog!$C2206=\"Log value\",DataLog!K2206,\"\")","v":""},{"$f":"IF(DataLog!$C2206=\"Log value\",DataLog!L2206,\"\")","v":""},{"$f":"IF(DataLog!$C2206=\"Log value\",DataLog!M2206,\"\")","v":""},{"$f":"IF(DataLog!$C2206=\"Log value\",DataLog!N2206,\"\")","v":""},{"$f":"IF(DataLog!$C2206=\"Log value\",DataLog!O2206,\"\")","v":""},{"$f":"IF(DataLog!$C2206=\"Log value\",DataLog!P2206,\"\")","v":""},{"$f":"IF(DataLog!$C2206=\"Log value\",DataLog!Q2206,\"\")","v":""},{"$f":"IF(DataLog!$C2206=\"Log value\",DataLog!R2206,\"\")","v":""},{"$f":"IF(DataLog!$C2206=\"Log value\",DataLog!S2206,\"\")","v":""},{"$f":"IF(DataLog!$C2206=\"Log value\",DataLog!T2206,\"\")","v":""},{"$f":"IF(DataLog!$C2206=\"Log value\",DataLog!U2206,\"\")","v":""},{"$f":"IF(DataLog!$C2206=\"Log value\",DataLog!V2206,\"\")","v":""},{"$f":"IF(DataLog!$C2206=\"Log value\",DataLog!W2206,\"\")","v":""},{"$f":"IF(DataLog!$C2206=\"Log value\",DataLog!X2206,\"\")","v":""},{"$f":"IF(DataLog!$C2206=\"Log value\",DataLog!Y2206,\"\")","v":""},{"$f":"IF(DataLog!$C2206=\"Log value\",DataLog!Z2206,\"\")","v":""},{"$f":"IF(DataLog!$C2206=\"Log value\",DataLog!AA2206,\"\")","v":""},{"$f":"IF(DataLog!$C2206=\"Log value\",DataLog!AB2206,\"\")","v":""},{"$f":"IF(DataLog!$C2206=\"Log value\",DataLog!AC2206,\"\")","v":""},{"$f":"IF(DataLog!$C2206=\"Log value\",DataLog!AD2206,\"\")","v":""},{"$f":"IF(DataLog!$C2206=\"Log value\",DataLog!AE2206,\"\")","v":""},{"$f":"IF(DataLog!$C2206=\"Log value\",DataLog!AF2206,\"\")","v":""},{"$f":"IF(DataLog!$C2206=\"Log value\",DataLog!AG2206,\"\")","v":""},{"$f":"IF(DataLog!$C2206=\"Log value\",DataLog!AH2206,\"\")","v":""},{"$f":"IF(DataLog!$C2206=\"Log value\",DataLog!AI2206,\"\")","v":""},{"$f":"IF(DataLog!$C2206=\"Log value\",DataLog!AJ2206,\"\")","v":""},{"$f":"IF(DataLog!$C2206=\"Log value\",DataLog!AK2206,\"\")","v":""},{"$f":"IF(DataLog!$C2206=\"Log value\",DataLog!AL2206,\"\")","v":""},{"$f":"IF(DataLog!$C2206=\"Log value\",DataLog!AM2206,\"\")","v":""}]
[null,null,null,null,null,null,{"$f":"IF(DataLog!$C2208=\"Log value\",DataLog!D2208&\"_\"&TEXT(DataLog!B2208,\"åååå-mm-dd\"),\"\")","v":""},{"$f":"IF(DataLog!$C2208=\"Log value\",DataLog!E2208,\"\")","v":""},{"$f":"IF(DataLog!$C2208=\"Log value\",DataLog!F2208,\"\")","v":""},{"$f":"IF(DataLog!$C2208=\"Log value\",DataLog!G2208,\"\")","v":""},{"$f":"IF(DataLog!$C2208=\"Log value\",DataLog!H2208,\"\")","v":""},{"$f":"IF(DataLog!$C2208=\"Log value\",DataLog!I2208,\"\")","v":""},{"$f":"IF(DataLog!$C2208=\"Log value\",DataLog!J2208,\"\")","v":""},{"$f":"IF(DataLog!$C2208=\"Log value\",DataLog!K2208,\"\")","v":""},{"$f":"IF(DataLog!$C2208=\"Log value\",DataLog!L2208,\"\")","v":""},{"$f":"IF(DataLog!$C2208=\"Log value\",DataLog!M2208,\"\")","v":""},{"$f":"IF(DataLog!$C2208=\"Log value\",DataLog!N2208,\"\")","v":""},{"$f":"IF(DataLog!$C2208=\"Log value\",DataLog!O2208,\"\")","v":""},{"$f":"IF(DataLog!$C2208=\"Log value\",DataLog!P2208,\"\")","v":""},{"$f":"IF(DataLog!$C2208=\"Log value\",DataLog!Q2208,\"\")","v":""},{"$f":"IF(DataLog!$C2208=\"Log value\",DataLog!R2208,\"\")","v":""},{"$f":"IF(DataLog!$C2208=\"Log value\",DataLog!S2208,\"\")","v":""},{"$f":"IF(DataLog!$C2208=\"Log value\",DataLog!T2208,\"\")","v":""},{"$f":"IF(DataLog!$C2208=\"Log value\",DataLog!U2208,\"\")","v":""},{"$f":"IF(DataLog!$C2208=\"Log value\",DataLog!V2208,\"\")","v":""},{"$f":"IF(DataLog!$C2208=\"Log value\",DataLog!W2208,\"\")","v":""},{"$f":"IF(DataLog!$C2208=\"Log value\",DataLog!X2208,\"\")","v":""},{"$f":"IF(DataLog!$C2208=\"Log value\",DataLog!Y2208,\"\")","v":""},{"$f":"IF(DataLog!$C2208=\"Log value\",DataLog!Z2208,\"\")","v":""},{"$f":"IF(DataLog!$C2208=\"Log value\",DataLog!AA2208,\"\")","v":""},{"$f":"IF(DataLog!$C2208=\"Log value\",DataLog!AB2208,\"\")","v":""},{"$f":"IF(DataLog!$C2208=\"Log value\",DataLog!AC2208,\"\")","v":""},{"$f":"IF(DataLog!$C2208=\"Log value\",DataLog!AD2208,\"\")","v":""},{"$f":"IF(DataLog!$C2208=\"Log value\",DataLog!AE2208,\"\")","v":""},{"$f":"IF(DataLog!$C2208=\"Log value\",DataLog!AF2208,\"\")","v":""},{"$f":"IF(DataLog!$C2208=\"Log value\",DataLog!AG2208,\"\")","v":""},{"$f":"IF(DataLog!$C2208=\"Log value\",DataLog!AH2208,\"\")","v":""},{"$f":"IF(DataLog!$C2208=\"Log value\",DataLog!AI2208,\"\")","v":""},{"$f":"IF(DataLog!$C2208=\"Log value\",DataLog!AJ2208,\"\")","v":""},{"$f":"IF(DataLog!$C2208=\"Log value\",DataLog!AK2208,\"\")","v":""},{"$f":"IF(DataLog!$C2208=\"Log value\",DataLog!AL2208,\"\")","v":""},{"$f":"IF(DataLog!$C2208=\"Log value\",DataLog!AM2208,\"\")","v":""}]
[null,null,null,null,null,null,{"$f":"IF(DataLog!$C2209=\"Log value\",DataLog!D2209&\"_\"&TEXT(DataLog!B2209,\"åååå-mm-dd\"),\"\")","v":""},{"$f":"IF(DataLog!$C2209=\"Log value\",DataLog!E2209,\"\")","v":""},{"$f":"IF(DataLog!$C2209=\"Log value\",DataLog!F2209,\"\")","v":""},{"$f":"IF(DataLog!$C2209=\"Log value\",DataLog!G2209,\"\")","v":""},{"$f":"IF(DataLog!$C2209=\"Log value\",DataLog!H2209,\"\")","v":""},{"$f":"IF(DataLog!$C2209=\"Log value\",DataLog!I2209,\"\")","v":""},{"$f":"IF(DataLog!$C2209=\"Log value\",DataLog!J2209,\"\")","v":""},{"$f":"IF(DataLog!$C2209=\"Log value\",DataLog!K2209,\"\")","v":""},{"$f":"IF(DataLog!$C2209=\"Log value\",DataLog!L2209,\"\")","v":""},{"$f":"IF(DataLog!$C2209=\"Log value\",DataLog!M2209,\"\")","v":""},{"$f":"IF(DataLog!$C2209=\"Log value\",DataLog!N2209,\"\")","v":""},{"$f":"IF(DataLog!$C2209=\"Log value\",DataLog!O2209,\"\")","v":""},{"$f":"IF(DataLog!$C2209=\"Log value\",DataLog!P2209,\"\")","v":""},{"$f":"IF(DataLog!$C2209=\"Log value\",DataLog!Q2209,\"\")","v":""},{"$f":"IF(DataLog!$C2209=\"Log value\",DataLog!R2209,\"\")","v":""},{"$f":"IF(DataLog!$C2209=\"Log value\",DataLog!S2209,\"\")","v":""},{"$f":"IF(DataLog!$C2209=\"Log value\",DataLog!T2209,\"\")","v":""},{"$f":"IF(DataLog!$C2209=\"Log value\",DataLog!U2209,\"\")","v":""},{"$f":"IF(DataLog!$C2209=\"Log value\",DataLog!V2209,\"\")","v":""},{"$f":"IF(DataLog!$C2209=\"Log value\",DataLog!W2209,\"\")","v":""},{"$f":"IF(DataLog!$C2209=\"Log value\",DataLog!X2209,\"\")","v":""},{"$f":"IF(DataLog!$C2209=\"Log value\",DataLog!Y2209,\"\")","v":""},{"$f":"IF(DataLog!$C2209=\"Log value\",DataLog!Z2209,\"\")","v":""},{"$f":"IF(DataLog!$C2209=\"Log value\",DataLog!AA2209,\"\")","v":""},{"$f":"IF(DataLog!$C2209=\"Log value\",DataLog!AB2209,\"\")","v":""},{"$f":"IF(DataLog!$C2209=\"Log value\",DataLog!AC2209,\"\")","v":""},{"$f":"IF(DataLog!$C2209=\"Log value\",DataLog!AD2209,\"\")","v":""},{"$f":"IF(DataLog!$C2209=\"Log value\",DataLog!AE2209,\"\")","v":""},{"$f":"IF(DataLog!$C2209=\"Log value\",DataLog!AF2209,\"\")","v":""},{"$f":"IF(DataLog!$C2209=\"Log value\",DataLog!AG2209,\"\")","v":""},{"$f":"IF(DataLog!$C2209=\"Log value\",DataLog!AH2209,\"\")","v":""},{"$f":"IF(DataLog!$C2209=\"Log value\",DataLog!AI2209,\"\")","v":""},{"$f":"IF(DataLog!$C2209=\"Log value\",DataLog!AJ2209,\"\")","v":""},{"$f":"IF(DataLog!$C2209=\"Log value\",DataLog!AK2209,\"\")","v":""},{"$f":"IF(DataLog!$C2209=\"Log value\",DataLog!AL2209,\"\")","v":""},{"$f":"IF(DataLog!$C2209=\"Log value\",DataLog!AM2209,\"\")","v":""}]
[null,null,null,null,null,null,{"$f":"IF(DataLog!$C2212=\"Log value\",DataLog!D2212&\"_\"&TEXT(DataLog!B2212,\"åååå-mm-dd\"),\"\")","v":""},{"$f":"IF(DataLog!$C2212=\"Log value\",DataLog!E2212,\"\")","v":""},{"$f":"IF(DataLog!$C2212=\"Log value\",DataLog!F2212,\"\")","v":""},{"$f":"IF(DataLog!$C2212=\"Log value\",DataLog!G2212,\"\")","v":""},{"$f":"IF(DataLog!$C2212=\"Log value\",DataLog!H2212,\"\")","v":""},{"$f":"IF(DataLog!$C2212=\"Log value\",DataLog!I2212,\"\")","v":""},{"$f":"IF(DataLog!$C2212=\"Log value\",DataLog!J2212,\"\")","v":""},{"$f":"IF(DataLog!$C2212=\"Log value\",DataLog!K2212,\"\")","v":""},{"$f":"IF(DataLog!$C2212=\"Log value\",DataLog!L2212,\"\")","v":""},{"$f":"IF(DataLog!$C2212=\"Log value\",DataLog!M2212,\"\")","v":""},{"$f":"IF(DataLog!$C2212=\"Log value\",DataLog!N2212,\"\")","v":""},{"$f":"IF(DataLog!$C2212=\"Log value\",DataLog!O2212,\"\")","v":""},{"$f":"IF(DataLog!$C2212=\"Log value\",DataLog!P2212,\"\")","v":""},{"$f":"IF(DataLog!$C2212=\"Log value\",DataLog!Q2212,\"\")","v":""},{"$f":"IF(DataLog!$C2212=\"Log value\",DataLog!R2212,\"\")","v":""},{"$f":"IF(DataLog!$C2212=\"Log value\",DataLog!S2212,\"\")","v":""},{"$f":"IF(DataLog!$C2212=\"Log value\",DataLog!T2212,\"\")","v":""},{"$f":"IF(DataLog!$C2212=\"Log value\",DataLog!U2212,\"\")","v":""},{"$f":"IF(DataLog!$C2212=\"Log value\",DataLog!V2212,\"\")","v":""},{"$f":"IF(DataLog!$C2212=\"Log value\",DataLog!W2212,\"\")","v":""},{"$f":"IF(DataLog!$C2212=\"Log value\",DataLog!X2212,\"\")","v":""},{"$f":"IF(DataLog!$C2212=\"Log value\",DataLog!Y2212,\"\")","v":""},{"$f":"IF(DataLog!$C2212=\"Log value\",DataLog!Z2212,\"\")","v":""},{"$f":"IF(DataLog!$C2212=\"Log value\",DataLog!AA2212,\"\")","v":""},{"$f":"IF(DataLog!$C2212=\"Log value\",DataLog!AB2212,\"\")","v":""},{"$f":"IF(DataLog!$C2212=\"Log value\",DataLog!AC2212,\"\")","v":""},{"$f":"IF(DataLog!$C2212=\"Log value\",DataLog!AD2212,\"\")","v":""},{"$f":"IF(DataLog!$C2212=\"Log value\",DataLog!AE2212,\"\")","v":""},{"$f":"IF(DataLog!$C2212=\"Log value\",DataLog!AF2212,\"\")","v":""},{"$f":"IF(DataLog!$C2212=\"Log value\",DataLog!AG2212,\"\")","v":""},{"$f":"IF(DataLog!$C2212=\"Log value\",DataLog!AH2212,\"\")","v":""},{"$f":"IF(DataLog!$C2212=\"Log value\",DataLog!AI2212,\"\")","v":""},{"$f":"IF(DataLog!$C2212=\"Log value\",DataLog!AJ2212,\"\")","v":""},{"$f":"IF(DataLog!$C2212=\"Log value\",DataLog!AK2212,\"\")","v":""},{"$f":"IF(DataLog!$C2212=\"Log value\",DataLog!AL2212,\"\")","v":""},{"$f":"IF(DataLog!$C2212=\"Log value\",DataLog!AM2212,\"\")","v":""}]
[null,null,null,null,null,null,{"$f":"IF(DataLog!$C2214=\"Log value\",DataLog!D2214&\"_\"&TEXT(DataLog!B2214,\"åååå-mm-dd\"),\"\")","v":""},{"$f":"IF(DataLog!$C2214=\"Log value\",DataLog!E2214,\"\")","v":""},{"$f":"IF(DataLog!$C2214=\"Log value\",DataLog!F2214,\"\")","v":""},{"$f":"IF(DataLog!$C2214=\"Log value\",DataLog!G2214,\"\")","v":""},{"$f":"IF(DataLog!$C2214=\"Log value\",DataLog!H2214,\"\")","v":""},{"$f":"IF(DataLog!$C2214=\"Log value\",DataLog!I2214,\"\")","v":""},{"$f":"IF(DataLog!$C2214=\"Log value\",DataLog!J2214,\"\")","v":""},{"$f":"IF(DataLog!$C2214=\"Log value\",DataLog!K2214,\"\")","v":""},{"$f":"IF(DataLog!$C2214=\"Log value\",DataLog!L2214,\"\")","v":""},{"$f":"IF(DataLog!$C2214=\"Log value\",DataLog!M2214,\"\")","v":""},{"$f":"IF(DataLog!$C2214=\"Log value\",DataLog!N2214,\"\")","v":""},{"$f":"IF(DataLog!$C2214=\"Log value\",DataLog!O2214,\"\")","v":""},{"$f":"IF(DataLog!$C2214=\"Log value\",DataLog!P2214,\"\")","v":""},{"$f":"IF(DataLog!$C2214=\"Log value\",DataLog!Q2214,\"\")","v":""},{"$f":"IF(DataLog!$C2214=\"Log value\",DataLog!R2214,\"\")","v":""},{"$f":"IF(DataLog!$C2214=\"Log value\",DataLog!S2214,\"\")","v":""},{"$f":"IF(DataLog!$C2214=\"Log value\",DataLog!T2214,\"\")","v":""},{"$f":"IF(DataLog!$C2214=\"Log value\",DataLog!U2214,\"\")","v":""},{"$f":"IF(DataLog!$C2214=\"Log value\",DataLog!V2214,\"\")","v":""},{"$f":"IF(DataLog!$C2214=\"Log value\",DataLog!W2214,\"\")","v":""},{"$f":"IF(DataLog!$C2214=\"Log value\",DataLog!X2214,\"\")","v":""},{"$f":"IF(DataLog!$C2214=\"Log value\",DataLog!Y2214,\"\")","v":""},{"$f":"IF(DataLog!$C2214=\"Log value\",DataLog!Z2214,\"\")","v":""},{"$f":"IF(DataLog!$C2214=\"Log value\",DataLog!AA2214,\"\")","v":""},{"$f":"IF(DataLog!$C2214=\"Log value\",DataLog!AB2214,\"\")","v":""},{"$f":"IF(DataLog!$C2214=\"Log value\",DataLog!AC2214,\"\")","v":""},{"$f":"IF(DataLog!$C2214=\"Log value\",DataLog!AD2214,\"\")","v":""},{"$f":"IF(DataLog!$C2214=\"Log value\",DataLog!AE2214,\"\")","v":""},{"$f":"IF(DataLog!$C2214=\"Log value\",DataLog!AF2214,\"\")","v":""},{"$f":"IF(DataLog!$C2214=\"Log value\",DataLog!AG2214,\"\")","v":""},{"$f":"IF(DataLog!$C2214=\"Log value\",DataLog!AH2214,\"\")","v":""},{"$f":"IF(DataLog!$C2214=\"Log value\",DataLog!AI2214,\"\")","v":""},{"$f":"IF(DataLog!$C2214=\"Log value\",DataLog!AJ2214,\"\")","v":""},{"$f":"IF(DataLog!$C2214=\"Log value\",DataLog!AK2214,\"\")","v":""},{"$f":"IF(DataLog!$C2214=\"Log value\",DataLog!AL2214,\"\")","v":""},{"$f":"IF(DataLog!$C2214=\"Log value\",DataLog!AM2214,\"\")","v":""}]
[null,null,null,null,null,null,{"$f":"IF(DataLog!$C2217=\"Log value\",DataLog!D2217&\"_\"&TEXT(DataLog!B2217,\"åååå-mm-dd\"),\"\")","v":""},{"$f":"IF(DataLog!$C2217=\"Log value\",DataLog!E2217,\"\")","v":""},{"$f":"IF(DataLog!$C2217=\"Log value\",DataLog!F2217,\"\")","v":""},{"$f":"IF(DataLog!$C2217=\"Log value\",DataLog!G2217,\"\")","v":""},{"$f":"IF(DataLog!$C2217=\"Log value\",DataLog!H2217,\"\")","v":""},{"$f":"IF(DataLog!$C2217=\"Log value\",DataLog!I2217,\"\")","v":""},{"$f":"IF(DataLog!$C2217=\"Log value\",DataLog!J2217,\"\")","v":""},{"$f":"IF(DataLog!$C2217=\"Log value\",DataLog!K2217,\"\")","v":""},{"$f":"IF(DataLog!$C2217=\"Log value\",DataLog!L2217,\"\")","v":""},{"$f":"IF(DataLog!$C2217=\"Log value\",DataLog!M2217,\"\")","v":""},{"$f":"IF(DataLog!$C2217=\"Log value\",DataLog!N2217,\"\")","v":""},{"$f":"IF(DataLog!$C2217=\"Log value\",DataLog!O2217,\"\")","v":""},{"$f":"IF(DataLog!$C2217=\"Log value\",DataLog!P2217,\"\")","v":""},{"$f":"IF(DataLog!$C2217=\"Log value\",DataLog!Q2217,\"\")","v":""},{"$f":"IF(DataLog!$C2217=\"Log value\",DataLog!R2217,\"\")","v":""},{"$f":"IF(DataLog!$C2217=\"Log value\",DataLog!S2217,\"\")","v":""},{"$f":"IF(DataLog!$C2217=\"Log value\",DataLog!T2217,\"\")","v":""},{"$f":"IF(DataLog!$C2217=\"Log value\",DataLog!U2217,\"\")","v":""},{"$f":"IF(DataLog!$C2217=\"Log value\",DataLog!V2217,\"\")","v":""},{"$f":"IF(DataLog!$C2217=\"Log value\",DataLog!W2217,\"\")","v":""},{"$f":"IF(DataLog!$C2217=\"Log value\",DataLog!X2217,\"\")","v":""},{"$f":"IF(DataLog!$C2217=\"Log value\",DataLog!Y2217,\"\")","v":""},{"$f":"IF(DataLog!$C2217=\"Log value\",DataLog!Z2217,\"\")","v":""},{"$f":"IF(DataLog!$C2217=\"Log value\",DataLog!AA2217,\"\")","v":""},{"$f":"IF(DataLog!$C2217=\"Log value\",DataLog!AB2217,\"\")","v":""},{"$f":"IF(DataLog!$C2217=\"Log value\",DataLog!AC2217,\"\")","v":""},{"$f":"IF(DataLog!$C2217=\"Log value\",DataLog!AD2217,\"\")","v":""},{"$f":"IF(DataLog!$C2217=\"Log value\",DataLog!AE2217,\"\")","v":""},{"$f":"IF(DataLog!$C2217=\"Log value\",DataLog!AF2217,\"\")","v":""},{"$f":"IF(DataLog!$C2217=\"Log value\",DataLog!AG2217,\"\")","v":""},{"$f":"IF(DataLog!$C2217=\"Log value\",DataLog!AH2217,\"\")","v":""},{"$f":"IF(DataLog!$C2217=\"Log value\",DataLog!AI2217,\"\")","v":""},{"$f":"IF(DataLog!$C2217=\"Log value\",DataLog!AJ2217,\"\")","v":""},{"$f":"IF(DataLog!$C2217=\"Log value\",DataLog!AK2217,\"\")","v":""},{"$f":"IF(DataLog!$C2217=\"Log value\",DataLog!AL2217,\"\")","v":""},{"$f":"IF(DataLog!$C2217=\"Log value\",DataLog!AM2217,\"\")","v":""}]
[null,null,null,null,null,null,{"$f":"IF(DataLog!$C2218=\"Log value\",DataLog!D2218&\"_\"&TEXT(DataLog!B2218,\"åååå-mm-dd\"),\"\")","v":""},{"$f":"IF(DataLog!$C2218=\"Log value\",DataLog!E2218,\"\")","v":""},{"$f":"IF(DataLog!$C2218=\"Log value\",DataLog!F2218,\"\")","v":""},{"$f":"IF(DataLog!$C2218=\"Log value\",DataLog!G2218,\"\")","v":""},{"$f":"IF(DataLog!$C2218=\"Log value\",DataLog!H2218,\"\")","v":""},{"$f":"IF(DataLog!$C2218=\"Log value\",DataLog!I2218,\"\")","v":""},{"$f":"IF(DataLog!$C2218=\"Log value\",DataLog!J2218,\"\")","v":""},{"$f":"IF(DataLog!$C2218=\"Log value\",DataLog!K2218,\"\")","v":""},{"$f":"IF(DataLog!$C2218=\"Log value\",DataLog!L2218,\"\")","v":""},{"$f":"IF(DataLog!$C2218=\"Log value\",DataLog!M2218,\"\")","v":""},{"$f":"IF(DataLog!$C2218=\"Log value\",DataLog!N2218,\"\")","v":""},{"$f":"IF(DataLog!$C2218=\"Log value\",DataLog!O2218,\"\")","v":""},{"$f":"IF(DataLog!$C2218=\"Log value\",DataLog!P2218,\"\")","v":""},{"$f":"IF(DataLog!$C2218=\"Log value\",DataLog!Q2218,\"\")","v":""},{"$f":"IF(DataLog!$C2218=\"Log value\",DataLog!R2218,\"\")","v":""},{"$f":"IF(DataLog!$C2218=\"Log value\",DataLog!S2218,\"\")","v":""},{"$f":"IF(DataLog!$C2218=\"Log value\",DataLog!T2218,\"\")","v":""},{"$f":"IF(DataLog!$C2218=\"Log value\",DataLog!U2218,\"\")","v":""},{"$f":"IF(DataLog!$C2218=\"Log value\",DataLog!V2218,\"\")","v":""},{"$f":"IF(DataLog!$C2218=\"Log value\",DataLog!W2218,\"\")","v":""},{"$f":"IF(DataLog!$C2218=\"Log value\",DataLog!X2218,\"\")","v":""},{"$f":"IF(DataLog!$C2218=\"Log value\",DataLog!Y2218,\"\")","v":""},{"$f":"IF(DataLog!$C2218=\"Log value\",DataLog!Z2218,\"\")","v":""},{"$f":"IF(DataLog!$C2218=\"Log value\",DataLog!AA2218,\"\")","v":""},{"$f":"IF(DataLog!$C2218=\"Log value\",DataLog!AB2218,\"\")","v":""},{"$f":"IF(DataLog!$C2218=\"Log value\",DataLog!AC2218,\"\")","v":""},{"$f":"IF(DataLog!$C2218=\"Log value\",DataLog!AD2218,\"\")","v":""},{"$f":"IF(DataLog!$C2218=\"Log value\",DataLog!AE2218,\"\")","v":""},{"$f":"IF(DataLog!$C2218=\"Log value\",DataLog!AF2218,\"\")","v":""},{"$f":"IF(DataLog!$C2218=\"Log value\",DataLog!AG2218,\"\")","v":""},{"$f":"IF(DataLog!$C2218=\"Log value\",DataLog!AH2218,\"\")","v":""},{"$f":"IF(DataLog!$C2218=\"Log value\",DataLog!AI2218,\"\")","v":""},{"$f":"IF(DataLog!$C2218=\"Log value\",DataLog!AJ2218,\"\")","v":""},{"$f":"IF(DataLog!$C2218=\"Log value\",DataLog!AK2218,\"\")","v":""},{"$f":"IF(DataLog!$C2218=\"Log value\",DataLog!AL2218,\"\")","v":""},{"$f":"IF(DataLog!$C2218=\"Log value\",DataLog!AM2218,\"\")","v":""}]
[null,null,null,null,null,null,{"$f":"IF(DataLog!$C2221=\"Log value\",DataLog!D2221&\"_\"&TEXT(DataLog!B2221,\"åååå-mm-dd\"),\"\")","v":""},{"$f":"IF(DataLog!$C2221=\"Log value\",DataLog!E2221,\"\")","v":""},{"$f":"IF(DataLog!$C2221=\"Log value\",DataLog!F2221,\"\")","v":""},{"$f":"IF(DataLog!$C2221=\"Log value\",DataLog!G2221,\"\")","v":""},{"$f":"IF(DataLog!$C2221=\"Log value\",DataLog!H2221,\"\")","v":""},{"$f":"IF(DataLog!$C2221=\"Log value\",DataLog!I2221,\"\")","v":""},{"$f":"IF(DataLog!$C2221=\"Log value\",DataLog!J2221,\"\")","v":""},{"$f":"IF(DataLog!$C2221=\"Log value\",DataLog!K2221,\"\")","v":""},{"$f":"IF(DataLog!$C2221=\"Log value\",DataLog!L2221,\"\")","v":""},{"$f":"IF(DataLog!$C2221=\"Log value\",DataLog!M2221,\"\")","v":""},{"$f":"IF(DataLog!$C2221=\"Log value\",DataLog!N2221,\"\")","v":""},{"$f":"IF(DataLog!$C2221=\"Log value\",DataLog!O2221,\"\")","v":""},{"$f":"IF(DataLog!$C2221=\"Log value\",DataLog!P2221,\"\")","v":""},{"$f":"IF(DataLog!$C2221=\"Log value\",DataLog!Q2221,\"\")","v":""},{"$f":"IF(DataLog!$C2221=\"Log value\",DataLog!R2221,\"\")","v":""},{"$f":"IF(DataLog!$C2221=\"Log value\",DataLog!S2221,\"\")","v":""},{"$f":"IF(DataLog!$C2221=\"Log value\",DataLog!T2221,\"\")","v":""},{"$f":"IF(DataLog!$C2221=\"Log value\",DataLog!U2221,\"\")","v":""},{"$f":"IF(DataLog!$C2221=\"Log value\",DataLog!V2221,\"\")","v":""},{"$f":"IF(DataLog!$C2221=\"Log value\",DataLog!W2221,\"\")","v":""},{"$f":"IF(DataLog!$C2221=\"Log value\",DataLog!X2221,\"\")","v":""},{"$f":"IF(DataLog!$C2221=\"Log value\",DataLog!Y2221,\"\")","v":""},{"$f":"IF(DataLog!$C2221=\"Log value\",DataLog!Z2221,\"\")","v":""},{"$f":"IF(DataLog!$C2221=\"Log value\",DataLog!AA2221,\"\")","v":""},{"$f":"IF(DataLog!$C2221=\"Log value\",DataLog!AB2221,\"\")","v":""},{"$f":"IF(DataLog!$C2221=\"Log value\",DataLog!AC2221,\"\")","v":""},{"$f":"IF(DataLog!$C2221=\"Log value\",DataLog!AD2221,\"\")","v":""},{"$f":"IF(DataLog!$C2221=\"Log value\",DataLog!AE2221,\"\")","v":""},{"$f":"IF(DataLog!$C2221=\"Log value\",DataLog!AF2221,\"\")","v":""},{"$f":"IF(DataLog!$C2221=\"Log value\",DataLog!AG2221,\"\")","v":""},{"$f":"IF(DataLog!$C2221=\"Log value\",DataLog!AH2221,\"\")","v":""},{"$f":"IF(DataLog!$C2221=\"Log value\",DataLog!AI2221,\"\")","v":""},{"$f":"IF(DataLog!$C2221=\"Log value\",DataLog!AJ2221,\"\")","v":""},{"$f":"IF(DataLog!$C2221=\"Log value\",DataLog!AK2221,\"\")","v":""},{"$f":"IF(DataLog!$C2221=\"Log value\",DataLog!AL2221,\"\")","v":""},{"$f":"IF(DataLog!$C2221=\"Log value\",DataLog!AM2221,\"\")","v":""}]
[null,null,null,null,null,null,{"$f":"IF(DataLog!$C2224=\"Log value\",DataLog!D2224&\"_\"&TEXT(DataLog!B2224,\"åååå-mm-dd\"),\"\")","v":""},{"$f":"IF(DataLog!$C2224=\"Log value\",DataLog!E2224,\"\")","v":""},{"$f":"IF(DataLog!$C2224=\"Log value\",DataLog!F2224,\"\")","v":""},{"$f":"IF(DataLog!$C2224=\"Log value\",DataLog!G2224,\"\")","v":""},{"$f":"IF(DataLog!$C2224=\"Log value\",DataLog!H2224,\"\")","v":""},{"$f":"IF(DataLog!$C2224=\"Log value\",DataLog!I2224,\"\")","v":""},{"$f":"IF(DataLog!$C2224=\"Log value\",DataLog!J2224,\"\")","v":""},{"$f":"IF(DataLog!$C2224=\"Log value\",DataLog!K2224,\"\")","v":""},{"$f":"IF(DataLog!$C2224=\"Log value\",DataLog!L2224,\"\")","v":""},{"$f":"IF(DataLog!$C2224=\"Log value\",DataLog!M2224,\"\")","v":""},{"$f":"IF(DataLog!$C2224=\"Log value\",DataLog!N2224,\"\")","v":""},{"$f":"IF(DataLog!$C2224=\"Log value\",DataLog!O2224,\"\")","v":""},{"$f":"IF(DataLog!$C2224=\"Log value\",DataLog!P2224,\"\")","v":""},{"$f":"IF(DataLog!$C2224=\"Log value\",DataLog!Q2224,\"\")","v":""},{"$f":"IF(DataLog!$C2224=\"Log value\",DataLog!R2224,\"\")","v":""},{"$f":"IF(DataLog!$C2224=\"Log value\",DataLog!S2224,\"\")","v":""},{"$f":"IF(DataLog!$C2224=\"Log value\",DataLog!T2224,\"\")","v":""},{"$f":"IF(DataLog!$C2224=\"Log value\",DataLog!U2224,\"\")","v":""},{"$f":"IF(DataLog!$C2224=\"Log value\",DataLog!V2224,\"\")","v":""},{"$f":"IF(DataLog!$C2224=\"Log value\",DataLog!W2224,\"\")","v":""},{"$f":"IF(DataLog!$C2224=\"Log value\",DataLog!X2224,\"\")","v":""},{"$f":"IF(DataLog!$C2224=\"Log value\",DataLog!Y2224,\"\")","v":""},{"$f":"IF(DataLog!$C2224=\"Log value\",DataLog!Z2224,\"\")","v":""},{"$f":"IF(DataLog!$C2224=\"Log value\",DataLog!AA2224,\"\")","v":""},{"$f":"IF(DataLog!$C2224=\"Log value\",DataLog!AB2224,\"\")","v":""},{"$f":"IF(DataLog!$C2224=\"Log value\",DataLog!AC2224,\"\")","v":""},{"$f":"IF(DataLog!$C2224=\"Log value\",DataLog!AD2224,\"\")","v":""},{"$f":"IF(DataLog!$C2224=\"Log value\",DataLog!AE2224,\"\")","v":""},{"$f":"IF(DataLog!$C2224=\"Log value\",DataLog!AF2224,\"\")","v":""},{"$f":"IF(DataLog!$C2224=\"Log value\",DataLog!AG2224,\"\")","v":""},{"$f":"IF(DataLog!$C2224=\"Log value\",DataLog!AH2224,\"\")","v":""},{"$f":"IF(DataLog!$C2224=\"Log value\",DataLog!AI2224,\"\")","v":""},{"$f":"IF(DataLog!$C2224=\"Log value\",DataLog!AJ2224,\"\")","v":""},{"$f":"IF(DataLog!$C2224=\"Log value\",DataLog!AK2224,\"\")","v":""},{"$f":"IF(DataLog!$C2224=\"Log value\",DataLog!AL2224,\"\")","v":""},{"$f":"IF(DataLog!$C2224=\"Log value\",DataLog!AM2224,\"\")","v":""}]
[null,null,null,null,null,null,{"$f":"IF(DataLog!$C2226=\"Log value\",DataLog!D2226&\"_\"&TEXT(DataLog!B2226,\"åååå-mm-dd\"),\"\")","v":""},{"$f":"IF(DataLog!$C2226=\"Log value\",DataLog!E2226,\"\")","v":""},{"$f":"IF(DataLog!$C2226=\"Log value\",DataLog!F2226,\"\")","v":""},{"$f":"IF(DataLog!$C2226=\"Log value\",DataLog!G2226,\"\")","v":""},{"$f":"IF(DataLog!$C2226=\"Log value\",DataLog!H2226,\"\")","v":""},{"$f":"IF(DataLog!$C2226=\"Log value\",DataLog!I2226,\"\")","v":""},{"$f":"IF(DataLog!$C2226=\"Log value\",DataLog!J2226,\"\")","v":""},{"$f":"IF(DataLog!$C2226=\"Log value\",DataLog!K2226,\"\")","v":""},{"$f":"IF(DataLog!$C2226=\"Log value\",DataLog!L2226,\"\")","v":""},{"$f":"IF(DataLog!$C2226=\"Log value\",DataLog!M2226,\"\")","v":""},{"$f":"IF(DataLog!$C2226=\"Log value\",DataLog!N2226,\"\")","v":""},{"$f":"IF(DataLog!$C2226=\"Log value\",DataLog!O2226,\"\")","v":""},{"$f":"IF(DataLog!$C2226=\"Log value\",DataLog!P2226,\"\")","v":""},{"$f":"IF(DataLog!$C2226=\"Log value\",DataLog!Q2226,\"\")","v":""},{"$f":"IF(DataLog!$C2226=\"Log value\",DataLog!R2226,\"\")","v":""},{"$f":"IF(DataLog!$C2226=\"Log value\",DataLog!S2226,\"\")","v":""},{"$f":"IF(DataLog!$C2226=\"Log value\",DataLog!T2226,\"\")","v":""},{"$f":"IF(DataLog!$C2226=\"Log value\",DataLog!U2226,\"\")","v":""},{"$f":"IF(DataLog!$C2226=\"Log value\",DataLog!V2226,\"\")","v":""},{"$f":"IF(DataLog!$C2226=\"Log value\",DataLog!W2226,\"\")","v":""},{"$f":"IF(DataLog!$C2226=\"Log value\",DataLog!X2226,\"\")","v":""},{"$f":"IF(DataLog!$C2226=\"Log value\",DataLog!Y2226,\"\")","v":""},{"$f":"IF(DataLog!$C2226=\"Log value\",DataLog!Z2226,\"\")","v":""},{"$f":"IF(DataLog!$C2226=\"Log value\",DataLog!AA2226,\"\")","v":""},{"$f":"IF(DataLog!$C2226=\"Log value\",DataLog!AB2226,\"\")","v":""},{"$f":"IF(DataLog!$C2226=\"Log value\",DataLog!AC2226,\"\")","v":""},{"$f":"IF(DataLog!$C2226=\"Log value\",DataLog!AD2226,\"\")","v":""},{"$f":"IF(DataLog!$C2226=\"Log value\",DataLog!AE2226,\"\")","v":""},{"$f":"IF(DataLog!$C2226=\"Log value\",DataLog!AF2226,\"\")","v":""},{"$f":"IF(DataLog!$C2226=\"Log value\",DataLog!AG2226,\"\")","v":""},{"$f":"IF(DataLog!$C2226=\"Log value\",DataLog!AH2226,\"\")","v":""},{"$f":"IF(DataLog!$C2226=\"Log value\",DataLog!AI2226,\"\")","v":""},{"$f":"IF(DataLog!$C2226=\"Log value\",DataLog!AJ2226,\"\")","v":""},{"$f":"IF(DataLog!$C2226=\"Log value\",DataLog!AK2226,\"\")","v":""},{"$f":"IF(DataLog!$C2226=\"Log value\",DataLog!AL2226,\"\")","v":""},{"$f":"IF(DataLog!$C2226=\"Log value\",DataLog!AM2226,\"\")","v":""}]
[null,null,null,null,null,null,{"$f":"IF(DataLog!$C2227=\"Log value\",DataLog!D2227&\"_\"&TEXT(DataLog!B2227,\"åååå-mm-dd\"),\"\")","v":""},{"$f":"IF(DataLog!$C2227=\"Log value\",DataLog!E2227,\"\")","v":""},{"$f":"IF(DataLog!$C2227=\"Log value\",DataLog!F2227,\"\")","v":""},{"$f":"IF(DataLog!$C2227=\"Log value\",DataLog!G2227,\"\")","v":""},{"$f":"IF(DataLog!$C2227=\"Log value\",DataLog!H2227,\"\")","v":""},{"$f":"IF(DataLog!$C2227=\"Log value\",DataLog!I2227,\"\")","v":""},{"$f":"IF(DataLog!$C2227=\"Log value\",DataLog!J2227,\"\")","v":""},{"$f":"IF(DataLog!$C2227=\"Log value\",DataLog!K2227,\"\")","v":""},{"$f":"IF(DataLog!$C2227=\"Log value\",DataLog!L2227,\"\")","v":""},{"$f":"IF(DataLog!$C2227=\"Log value\",DataLog!M2227,\"\")","v":""},{"$f":"IF(DataLog!$C2227=\"Log value\",DataLog!N2227,\"\")","v":""},{"$f":"IF(DataLog!$C2227=\"Log value\",DataLog!O2227,\"\")","v":""},{"$f":"IF(DataLog!$C2227=\"Log value\",DataLog!P2227,\"\")","v":""},{"$f":"IF(DataLog!$C2227=\"Log value\",DataLog!Q2227,\"\")","v":""},{"$f":"IF(DataLog!$C2227=\"Log value\",DataLog!R2227,\"\")","v":""},{"$f":"IF(DataLog!$C2227=\"Log value\",DataLog!S2227,\"\")","v":""},{"$f":"IF(DataLog!$C2227=\"Log value\",DataLog!T2227,\"\")","v":""},{"$f":"IF(DataLog!$C2227=\"Log value\",DataLog!U2227,\"\")","v":""},{"$f":"IF(DataLog!$C2227=\"Log value\",DataLog!V2227,\"\")","v":""},{"$f":"IF(DataLog!$C2227=\"Log value\",DataLog!W2227,\"\")","v":""},{"$f":"IF(DataLog!$C2227=\"Log value\",DataLog!X2227,\"\")","v":""},{"$f":"IF(DataLog!$C2227=\"Log value\",DataLog!Y2227,\"\")","v":""},{"$f":"IF(DataLog!$C2227=\"Log value\",DataLog!Z2227,\"\")","v":""},{"$f":"IF(DataLog!$C2227=\"Log value\",DataLog!AA2227,\"\")","v":""},{"$f":"IF(DataLog!$C2227=\"Log value\",DataLog!AB2227,\"\")","v":""},{"$f":"IF(DataLog!$C2227=\"Log value\",DataLog!AC2227,\"\")","v":""},{"$f":"IF(DataLog!$C2227=\"Log value\",DataLog!AD2227,\"\")","v":""},{"$f":"IF(DataLog!$C2227=\"Log value\",DataLog!AE2227,\"\")","v":""},{"$f":"IF(DataLog!$C2227=\"Log value\",DataLog!AF2227,\"\")","v":""},{"$f":"IF(DataLog!$C2227=\"Log value\",DataLog!AG2227,\"\")","v":""},{"$f":"IF(DataLog!$C2227=\"Log value\",DataLog!AH2227,\"\")","v":""},{"$f":"IF(DataLog!$C2227=\"Log value\",DataLog!AI2227,\"\")","v":""},{"$f":"IF(DataLog!$C2227=\"Log value\",DataLog!AJ2227,\"\")","v":""},{"$f":"IF(DataLog!$C2227=\"Log value\",DataLog!AK2227,\"\")","v":""},{"$f":"IF(DataLog!$C2227=\"Log value\",DataLog!AL2227,\"\")","v":""},{"$f":"IF(DataLog!$C2227=\"Log value\",DataLog!AM2227,\"\")","v":""}]
[null,null,null,null,null,null,{"$f":"IF(DataLog!$C2230=\"Log value\",DataLog!D2230&\"_\"&TEXT(DataLog!B2230,\"åååå-mm-dd\"),\"\")","v":""},{"$f":"IF(DataLog!$C2230=\"Log value\",DataLog!E2230,\"\")","v":""},{"$f":"IF(DataLog!$C2230=\"Log value\",DataLog!F2230,\"\")","v":""},{"$f":"IF(DataLog!$C2230=\"Log value\",DataLog!G2230,\"\")","v":""},{"$f":"IF(DataLog!$C2230=\"Log value\",DataLog!H2230,\"\")","v":""},{"$f":"IF(DataLog!$C2230=\"Log value\",DataLog!I2230,\"\")","v":""},{"$f":"IF(DataLog!$C2230=\"Log value\",DataLog!J2230,\"\")","v":""},{"$f":"IF(DataLog!$C2230=\"Log value\",DataLog!K2230,\"\")","v":""},{"$f":"IF(DataLog!$C2230=\"Log value\",DataLog!L2230,\"\")","v":""},{"$f":"IF(DataLog!$C2230=\"Log value\",DataLog!M2230,\"\")","v":""},{"$f":"IF(DataLog!$C2230=\"Log value\",DataLog!N2230,\"\")","v":""},{"$f":"IF(DataLog!$C2230=\"Log value\",DataLog!O2230,\"\")","v":""},{"$f":"IF(DataLog!$C2230=\"Log value\",DataLog!P2230,\"\")","v":""},{"$f":"IF(DataLog!$C2230=\"Log value\",DataLog!Q2230,\"\")","v":""},{"$f":"IF(DataLog!$C2230=\"Log value\",DataLog!R2230,\"\")","v":""},{"$f":"IF(DataLog!$C2230=\"Log value\",DataLog!S2230,\"\")","v":""},{"$f":"IF(DataLog!$C2230=\"Log value\",DataLog!T2230,\"\")","v":""},{"$f":"IF(DataLog!$C2230=\"Log value\",DataLog!U2230,\"\")","v":""},{"$f":"IF(DataLog!$C2230=\"Log value\",DataLog!V2230,\"\")","v":""},{"$f":"IF(DataLog!$C2230=\"Log value\",DataLog!W2230,\"\")","v":""},{"$f":"IF(DataLog!$C2230=\"Log value\",DataLog!X2230,\"\")","v":""},{"$f":"IF(DataLog!$C2230=\"Log value\",DataLog!Y2230,\"\")","v":""},{"$f":"IF(DataLog!$C2230=\"Log value\",DataLog!Z2230,\"\")","v":""},{"$f":"IF(DataLog!$C2230=\"Log value\",DataLog!AA2230,\"\")","v":""},{"$f":"IF(DataLog!$C2230=\"Log value\",DataLog!AB2230,\"\")","v":""},{"$f":"IF(DataLog!$C2230=\"Log value\",DataLog!AC2230,\"\")","v":""},{"$f":"IF(DataLog!$C2230=\"Log value\",DataLog!AD2230,\"\")","v":""},{"$f":"IF(DataLog!$C2230=\"Log value\",DataLog!AE2230,\"\")","v":""},{"$f":"IF(DataLog!$C2230=\"Log value\",DataLog!AF2230,\"\")","v":""},{"$f":"IF(DataLog!$C2230=\"Log value\",DataLog!AG2230,\"\")","v":""},{"$f":"IF(DataLog!$C2230=\"Log value\",DataLog!AH2230,\"\")","v":""},{"$f":"IF(DataLog!$C2230=\"Log value\",DataLog!AI2230,\"\")","v":""},{"$f":"IF(DataLog!$C2230=\"Log value\",DataLog!AJ2230,\"\")","v":""},{"$f":"IF(DataLog!$C2230=\"Log value\",DataLog!AK2230,\"\")","v":""},{"$f":"IF(DataLog!$C2230=\"Log value\",DataLog!AL2230,\"\")","v":""},{"$f":"IF(DataLog!$C2230=\"Log value\",DataLog!AM2230,\"\")","v":""}]
[null,null,null,null,null,null,{"$f":"IF(DataLog!$C2232=\"Log value\",DataLog!D2232&\"_\"&TEXT(DataLog!B2232,\"åååå-mm-dd\"),\"\")","v":""},{"$f":"IF(DataLog!$C2232=\"Log value\",DataLog!E2232,\"\")","v":""},{"$f":"IF(DataLog!$C2232=\"Log value\",DataLog!F2232,\"\")","v":""},{"$f":"IF(DataLog!$C2232=\"Log value\",DataLog!G2232,\"\")","v":""},{"$f":"IF(DataLog!$C2232=\"Log value\",DataLog!H2232,\"\")","v":""},{"$f":"IF(DataLog!$C2232=\"Log value\",DataLog!I2232,\"\")","v":""},{"$f":"IF(DataLog!$C2232=\"Log value\",DataLog!J2232,\"\")","v":""},{"$f":"IF(DataLog!$C2232=\"Log value\",DataLog!K2232,\"\")","v":""},{"$f":"IF(DataLog!$C2232=\"Log value\",DataLog!L2232,\"\")","v":""},{"$f":"IF(DataLog!$C2232=\"Log value\",DataLog!M2232,\"\")","v":""},{"$f":"IF(DataLog!$C2232=\"Log value\",DataLog!N2232,\"\")","v":""},{"$f":"IF(DataLog!$C2232=\"Log value\",DataLog!O2232,\"\")","v":""},{"$f":"IF(DataLog!$C2232=\"Log value\",DataLog!P2232,\"\")","v":""},{"$f":"IF(DataLog!$C2232=\"Log value\",DataLog!Q2232,\"\")","v":""},{"$f":"IF(DataLog!$C2232=\"Log value\",DataLog!R2232,\"\")","v":""},{"$f":"IF(DataLog!$C2232=\"Log value\",DataLog!S2232,\"\")","v":""},{"$f":"IF(DataLog!$C2232=\"Log value\",DataLog!T2232,\"\")","v":""},{"$f":"IF(DataLog!$C2232=\"Log value\",DataLog!U2232,\"\")","v":""},{"$f":"IF(DataLog!$C2232=\"Log value\",DataLog!V2232,\"\")","v":""},{"$f":"IF(DataLog!$C2232=\"Log value\",DataLog!W2232,\"\")","v":""},{"$f":"IF(DataLog!$C2232=\"Log value\",DataLog!X2232,\"\")","v":""},{"$f":"IF(DataLog!$C2232=\"Log value\",DataLog!Y2232,\"\")","v":""},{"$f":"IF(DataLog!$C2232=\"Log value\",DataLog!Z2232,\"\")","v":""},{"$f":"IF(DataLog!$C2232=\"Log value\",DataLog!AA2232,\"\")","v":""},{"$f":"IF(DataLog!$C2232=\"Log value\",DataLog!AB2232,\"\")","v":""},{"$f":"IF(DataLog!$C2232=\"Log value\",DataLog!AC2232,\"\")","v":""},{"$f":"IF(DataLog!$C2232=\"Log value\",DataLog!AD2232,\"\")","v":""},{"$f":"IF(DataLog!$C2232=\"Log value\",DataLog!AE2232,\"\")","v":""},{"$f":"IF(DataLog!$C2232=\"Log value\",DataLog!AF2232,\"\")","v":""},{"$f":"IF(DataLog!$C2232=\"Log value\",DataLog!AG2232,\"\")","v":""},{"$f":"IF(DataLog!$C2232=\"Log value\",DataLog!AH2232,\"\")","v":""},{"$f":"IF(DataLog!$C2232=\"Log value\",DataLog!AI2232,\"\")","v":""},{"$f":"IF(DataLog!$C2232=\"Log value\",DataLog!AJ2232,\"\")","v":""},{"$f":"IF(DataLog!$C2232=\"Log value\",DataLog!AK2232,\"\")","v":""},{"$f":"IF(DataLog!$C2232=\"Log value\",DataLog!AL2232,\"\")","v":""},{"$f":"IF(DataLog!$C2232=\"Log value\",DataLog!AM2232,\"\")","v":""}]
[null,null,null,null,null,null,{"$f":"IF(DataLog!$C2235=\"Log value\",DataLog!D2235&\"_\"&TEXT(DataLog!B2235,\"åååå-mm-dd\"),\"\")","v":""},{"$f":"IF(DataLog!$C2235=\"Log value\",DataLog!E2235,\"\")","v":""},{"$f":"IF(DataLog!$C2235=\"Log value\",DataLog!F2235,\"\")","v":""},{"$f":"IF(DataLog!$C2235=\"Log value\",DataLog!G2235,\"\")","v":""},{"$f":"IF(DataLog!$C2235=\"Log value\",DataLog!H2235,\"\")","v":""},{"$f":"IF(DataLog!$C2235=\"Log value\",DataLog!I2235,\"\")","v":""},{"$f":"IF(DataLog!$C2235=\"Log value\",DataLog!J2235,\"\")","v":""},{"$f":"IF(DataLog!$C2235=\"Log value\",DataLog!K2235,\"\")","v":""},{"$f":"IF(DataLog!$C2235=\"Log value\",DataLog!L2235,\"\")","v":""},{"$f":"IF(DataLog!$C2235=\"Log value\",DataLog!M2235,\"\")","v":""},{"$f":"IF(DataLog!$C2235=\"Log value\",DataLog!N2235,\"\")","v":""},{"$f":"IF(DataLog!$C2235=\"Log value\",DataLog!O2235,\"\")","v":""},{"$f":"IF(DataLog!$C2235=\"Log value\",DataLog!P2235,\"\")","v":""},{"$f":"IF(DataLog!$C2235=\"Log value\",DataLog!Q2235,\"\")","v":""},{"$f":"IF(DataLog!$C2235=\"Log value\",DataLog!R2235,\"\")","v":""},{"$f":"IF(DataLog!$C2235=\"Log value\",DataLog!S2235,\"\")","v":""},{"$f":"IF(DataLog!$C2235=\"Log value\",DataLog!T2235,\"\")","v":""},{"$f":"IF(DataLog!$C2235=\"Log value\",DataLog!U2235,\"\")","v":""},{"$f":"IF(DataLog!$C2235=\"Log value\",DataLog!V2235,\"\")","v":""},{"$f":"IF(DataLog!$C2235=\"Log value\",DataLog!W2235,\"\")","v":""},{"$f":"IF(DataLog!$C2235=\"Log value\",DataLog!X2235,\"\")","v":""},{"$f":"IF(DataLog!$C2235=\"Log value\",DataLog!Y2235,\"\")","v":""},{"$f":"IF(DataLog!$C2235=\"Log value\",DataLog!Z2235,\"\")","v":""},{"$f":"IF(DataLog!$C2235=\"Log value\",DataLog!AA2235,\"\")","v":""},{"$f":"IF(DataLog!$C2235=\"Log value\",DataLog!AB2235,\"\")","v":""},{"$f":"IF(DataLog!$C2235=\"Log value\",DataLog!AC2235,\"\")","v":""},{"$f":"IF(DataLog!$C2235=\"Log value\",DataLog!AD2235,\"\")","v":""},{"$f":"IF(DataLog!$C2235=\"Log value\",DataLog!AE2235,\"\")","v":""},{"$f":"IF(DataLog!$C2235=\"Log value\",DataLog!AF2235,\"\")","v":""},{"$f":"IF(DataLog!$C2235=\"Log value\",DataLog!AG2235,\"\")","v":""},{"$f":"IF(DataLog!$C2235=\"Log value\",DataLog!AH2235,\"\")","v":""},{"$f":"IF(DataLog!$C2235=\"Log value\",DataLog!AI2235,\"\")","v":""},{"$f":"IF(DataLog!$C2235=\"Log value\",DataLog!AJ2235,\"\")","v":""},{"$f":"IF(DataLog!$C2235=\"Log value\",DataLog!AK2235,\"\")","v":""},{"$f":"IF(DataLog!$C2235=\"Log value\",DataLog!AL2235,\"\")","v":""},{"$f":"IF(DataLog!$C2235=\"Log value\",DataLog!AM2235,\"\")","v":""}]
[null,null,null,null,null,null,{"$f":"IF(DataLog!$C2236=\"Log value\",DataLog!D2236&\"_\"&TEXT(DataLog!B2236,\"åååå-mm-dd\"),\"\")","v":""},{"$f":"IF(DataLog!$C2236=\"Log value\",DataLog!E2236,\"\")","v":""},{"$f":"IF(DataLog!$C2236=\"Log value\",DataLog!F2236,\"\")","v":""},{"$f":"IF(DataLog!$C2236=\"Log value\",DataLog!G2236,\"\")","v":""},{"$f":"IF(DataLog!$C2236=\"Log value\",DataLog!H2236,\"\")","v":""},{"$f":"IF(DataLog!$C2236=\"Log value\",DataLog!I2236,\"\")","v":""},{"$f":"IF(DataLog!$C2236=\"Log value\",DataLog!J2236,\"\")","v":""},{"$f":"IF(DataLog!$C2236=\"Log value\",DataLog!K2236,\"\")","v":""},{"$f":"IF(DataLog!$C2236=\"Log value\",DataLog!L2236,\"\")","v":""},{"$f":"IF(DataLog!$C2236=\"Log value\",DataLog!M2236,\"\")","v":""},{"$f":"IF(DataLog!$C2236=\"Log value\",DataLog!N2236,\"\")","v":""},{"$f":"IF(DataLog!$C2236=\"Log value\",DataLog!O2236,\"\")","v":""},{"$f":"IF(DataLog!$C2236=\"Log value\",DataLog!P2236,\"\")","v":""},{"$f":"IF(DataLog!$C2236=\"Log value\",DataLog!Q2236,\"\")","v":""},{"$f":"IF(DataLog!$C2236=\"Log value\",DataLog!R2236,\"\")","v":""},{"$f":"IF(DataLog!$C2236=\"Log value\",DataLog!S2236,\"\")","v":""},{"$f":"IF(DataLog!$C2236=\"Log value\",DataLog!T2236,\"\")","v":""},{"$f":"IF(DataLog!$C2236=\"Log value\",DataLog!U2236,\"\")","v":""},{"$f":"IF(DataLog!$C2236=\"Log value\",DataLog!V2236,\"\")","v":""},{"$f":"IF(DataLog!$C2236=\"Log value\",DataLog!W2236,\"\")","v":""},{"$f":"IF(DataLog!$C2236=\"Log value\",DataLog!X2236,\"\")","v":""},{"$f":"IF(DataLog!$C2236=\"Log value\",DataLog!Y2236,\"\")","v":""},{"$f":"IF(DataLog!$C2236=\"Log value\",DataLog!Z2236,\"\")","v":""},{"$f":"IF(DataLog!$C2236=\"Log value\",DataLog!AA2236,\"\")","v":""},{"$f":"IF(DataLog!$C2236=\"Log value\",DataLog!AB2236,\"\")","v":""},{"$f":"IF(DataLog!$C2236=\"Log value\",DataLog!AC2236,\"\")","v":""},{"$f":"IF(DataLog!$C2236=\"Log value\",DataLog!AD2236,\"\")","v":""},{"$f":"IF(DataLog!$C2236=\"Log value\",DataLog!AE2236,\"\")","v":""},{"$f":"IF(DataLog!$C2236=\"Log value\",DataLog!AF2236,\"\")","v":""},{"$f":"IF(DataLog!$C2236=\"Log value\",DataLog!AG2236,\"\")","v":""},{"$f":"IF(DataLog!$C2236=\"Log value\",DataLog!AH2236,\"\")","v":""},{"$f":"IF(DataLog!$C2236=\"Log value\",DataLog!AI2236,\"\")","v":""},{"$f":"IF(DataLog!$C2236=\"Log value\",DataLog!AJ2236,\"\")","v":""},{"$f":"IF(DataLog!$C2236=\"Log value\",DataLog!AK2236,\"\")","v":""},{"$f":"IF(DataLog!$C2236=\"Log value\",DataLog!AL2236,\"\")","v":""},{"$f":"IF(DataLog!$C2236=\"Log value\",DataLog!AM2236,\"\")","v":""}]
[null,null,null,null,null,null,{"$f":"IF(DataLog!$C2240=\"Log value\",DataLog!D2240&\"_\"&TEXT(DataLog!B2240,\"åååå-mm-dd\"),\"\")","v":""},{"$f":"IF(DataLog!$C2240=\"Log value\",DataLog!E2240,\"\")","v":""},{"$f":"IF(DataLog!$C2240=\"Log value\",DataLog!F2240,\"\")","v":""},{"$f":"IF(DataLog!$C2240=\"Log value\",DataLog!G2240,\"\")","v":""},{"$f":"IF(DataLog!$C2240=\"Log value\",DataLog!H2240,\"\")","v":""},{"$f":"IF(DataLog!$C2240=\"Log value\",DataLog!I2240,\"\")","v":""},{"$f":"IF(DataLog!$C2240=\"Log value\",DataLog!J2240,\"\")","v":""},{"$f":"IF(DataLog!$C2240=\"Log value\",DataLog!K2240,\"\")","v":""},{"$f":"IF(DataLog!$C2240=\"Log value\",DataLog!L2240,\"\")","v":""},{"$f":"IF(DataLog!$C2240=\"Log value\",DataLog!M2240,\"\")","v":""},{"$f":"IF(DataLog!$C2240=\"Log value\",DataLog!N2240,\"\")","v":""},{"$f":"IF(DataLog!$C2240=\"Log value\",DataLog!O2240,\"\")","v":""},{"$f":"IF(DataLog!$C2240=\"Log value\",DataLog!P2240,\"\")","v":""},{"$f":"IF(DataLog!$C2240=\"Log value\",DataLog!Q2240,\"\")","v":""},{"$f":"IF(DataLog!$C2240=\"Log value\",DataLog!R2240,\"\")","v":""},{"$f":"IF(DataLog!$C2240=\"Log value\",DataLog!S2240,\"\")","v":""},{"$f":"IF(DataLog!$C2240=\"Log value\",DataLog!T2240,\"\")","v":""},{"$f":"IF(DataLog!$C2240=\"Log value\",DataLog!U2240,\"\")","v":""},{"$f":"IF(DataLog!$C2240=\"Log value\",DataLog!V2240,\"\")","v":""},{"$f":"IF(DataLog!$C2240=\"Log value\",DataLog!W2240,\"\")","v":""},{"$f":"IF(DataLog!$C2240=\"Log value\",DataLog!X2240,\"\")","v":""},{"$f":"IF(DataLog!$C2240=\"Log value\",DataLog!Y2240,\"\")","v":""},{"$f":"IF(DataLog!$C2240=\"Log value\",DataLog!Z2240,\"\")","v":""},{"$f":"IF(DataLog!$C2240=\"Log value\",DataLog!AA2240,\"\")","v":""},{"$f":"IF(DataLog!$C2240=\"Log value\",DataLog!AB2240,\"\")","v":""},{"$f":"IF(DataLog!$C2240=\"Log value\",DataLog!AC2240,\"\")","v":""},{"$f":"IF(DataLog!$C2240=\"Log value\",DataLog!AD2240,\"\")","v":""},{"$f":"IF(DataLog!$C2240=\"Log value\",DataLog!AE2240,\"\")","v":""},{"$f":"IF(DataLog!$C2240=\"Log value\",DataLog!AF2240,\"\")","v":""},{"$f":"IF(DataLog!$C2240=\"Log value\",DataLog!AG2240,\"\")","v":""},{"$f":"IF(DataLog!$C2240=\"Log value\",DataLog!AH2240,\"\")","v":""},{"$f":"IF(DataLog!$C2240=\"Log value\",DataLog!AI2240,\"\")","v":""},{"$f":"IF(DataLog!$C2240=\"Log value\",DataLog!AJ2240,\"\")","v":""},{"$f":"IF(DataLog!$C2240=\"Log value\",DataLog!AK2240,\"\")","v":""},{"$f":"IF(DataLog!$C2240=\"Log value\",DataLog!AL2240,\"\")","v":""},{"$f":"IF(DataLog!$C2240=\"Log value\",DataLog!AM2240,\"\")","v":""}]
[null,null,null,null,null,null,{"$f":"IF(DataLog!$C2241=\"Log value\",DataLog!D2241&\"_\"&TEXT(DataLog!B2241,\"åååå-mm-dd\"),\"\")","v":""},{"$f":"IF(DataLog!$C2241=\"Log value\",DataLog!E2241,\"\")","v":""},{"$f":"IF(DataLog!$C2241=\"Log value\",DataLog!F2241,\"\")","v":""},{"$f":"IF(DataLog!$C2241=\"Log value\",DataLog!G2241,\"\")","v":""},{"$f":"IF(DataLog!$C2241=\"Log value\",DataLog!H2241,\"\")","v":""},{"$f":"IF(DataLog!$C2241=\"Log value\",DataLog!I2241,\"\")","v":""},{"$f":"IF(DataLog!$C2241=\"Log value\",DataLog!J2241,\"\")","v":""},{"$f":"IF(DataLog!$C2241=\"Log value\",DataLog!K2241,\"\")","v":""},{"$f":"IF(DataLog!$C2241=\"Log value\",DataLog!L2241,\"\")","v":""},{"$f":"IF(DataLog!$C2241=\"Log value\",DataLog!M2241,\"\")","v":""},{"$f":"IF(DataLog!$C2241=\"Log value\",DataLog!N2241,\"\")","v":""},{"$f":"IF(DataLog!$C2241=\"Log value\",DataLog!O2241,\"\")","v":""},{"$f":"IF(DataLog!$C2241=\"Log value\",DataLog!P2241,\"\")","v":""},{"$f":"IF(DataLog!$C2241=\"Log value\",DataLog!Q2241,\"\")","v":""},{"$f":"IF(DataLog!$C2241=\"Log value\",DataLog!R2241,\"\")","v":""},{"$f":"IF(DataLog!$C2241=\"Log value\",DataLog!S2241,\"\")","v":""},{"$f":"IF(DataLog!$C2241=\"Log value\",DataLog!T2241,\"\")","v":""},{"$f":"IF(DataLog!$C2241=\"Log value\",DataLog!U2241,\"\")","v":""},{"$f":"IF(DataLog!$C2241=\"Log value\",DataLog!V2241,\"\")","v":""},{"$f":"IF(DataLog!$C2241=\"Log value\",DataLog!W2241,\"\")","v":""},{"$f":"IF(DataLog!$C2241=\"Log value\",DataLog!X2241,\"\")","v":""},{"$f":"IF(DataLog!$C2241=\"Log value\",DataLog!Y2241,\"\")","v":""},{"$f":"IF(DataLog!$C2241=\"Log value\",DataLog!Z2241,\"\")","v":""},{"$f":"IF(DataLog!$C2241=\"Log value\",DataLog!AA2241,\"\")","v":""},{"$f":"IF(DataLog!$C2241=\"Log value\",DataLog!AB2241,\"\")","v":""},{"$f":"IF(DataLog!$C2241=\"Log value\",DataLog!AC2241,\"\")","v":""},{"$f":"IF(DataLog!$C2241=\"Log value\",DataLog!AD2241,\"\")","v":""},{"$f":"IF(DataLog!$C2241=\"Log value\",DataLog!AE2241,\"\")","v":""},{"$f":"IF(DataLog!$C2241=\"Log value\",DataLog!AF2241,\"\")","v":""},{"$f":"IF(DataLog!$C2241=\"Log value\",DataLog!AG2241,\"\")","v":""},{"$f":"IF(DataLog!$C2241=\"Log value\",DataLog!AH2241,\"\")","v":""},{"$f":"IF(DataLog!$C2241=\"Log value\",DataLog!AI2241,\"\")","v":""},{"$f":"IF(DataLog!$C2241=\"Log value\",DataLog!AJ2241,\"\")","v":""},{"$f":"IF(DataLog!$C2241=\"Log value\",DataLog!AK2241,\"\")","v":""},{"$f":"IF(DataLog!$C2241=\"Log value\",DataLog!AL2241,\"\")","v":""},{"$f":"IF(DataLog!$C2241=\"Log value\",DataLog!AM2241,\"\")","v":""}]
[null,null,null,null,null,null,{"$f":"IF(DataLog!$C2244=\"Log value\",DataLog!D2244&\"_\"&TEXT(DataLog!B2244,\"åååå-mm-dd\"),\"\")","v":""},{"$f":"IF(DataLog!$C2244=\"Log value\",DataLog!E2244,\"\")","v":""},{"$f":"IF(DataLog!$C2244=\"Log value\",DataLog!F2244,\"\")","v":""},{"$f":"IF(DataLog!$C2244=\"Log value\",DataLog!G2244,\"\")","v":""},{"$f":"IF(DataLog!$C2244=\"Log value\",DataLog!H2244,\"\")","v":""},{"$f":"IF(DataLog!$C2244=\"Log value\",DataLog!I2244,\"\")","v":""},{"$f":"IF(DataLog!$C2244=\"Log value\",DataLog!J2244,\"\")","v":""},{"$f":"IF(DataLog!$C2244=\"Log value\",DataLog!K2244,\"\")","v":""},{"$f":"IF(DataLog!$C2244=\"Log value\",DataLog!L2244,\"\")","v":""},{"$f":"IF(DataLog!$C2244=\"Log value\",DataLog!M2244,\"\")","v":""},{"$f":"IF(DataLog!$C2244=\"Log value\",DataLog!N2244,\"\")","v":""},{"$f":"IF(DataLog!$C2244=\"Log value\",DataLog!O2244,\"\")","v":""},{"$f":"IF(DataLog!$C2244=\"Log value\",DataLog!P2244,\"\")","v":""},{"$f":"IF(DataLog!$C2244=\"Log value\",DataLog!Q2244,\"\")","v":""},{"$f":"IF(DataLog!$C2244=\"Log value\",DataLog!R2244,\"\")","v":""},{"$f":"IF(DataLog!$C2244=\"Log value\",DataLog!S2244,\"\")","v":""},{"$f":"IF(DataLog!$C2244=\"Log value\",DataLog!T2244,\"\")","v":""},{"$f":"IF(DataLog!$C2244=\"Log value\",DataLog!U2244,\"\")","v":""},{"$f":"IF(DataLog!$C2244=\"Log value\",DataLog!V2244,\"\")","v":""},{"$f":"IF(DataLog!$C2244=\"Log value\",DataLog!W2244,\"\")","v":""},{"$f":"IF(DataLog!$C2244=\"Log value\",DataLog!X2244,\"\")","v":""},{"$f":"IF(DataLog!$C2244=\"Log value\",DataLog!Y2244,\"\")","v":""},{"$f":"IF(DataLog!$C2244=\"Log value\",DataLog!Z2244,\"\")","v":""},{"$f":"IF(DataLog!$C2244=\"Log value\",DataLog!AA2244,\"\")","v":""},{"$f":"IF(DataLog!$C2244=\"Log value\",DataLog!AB2244,\"\")","v":""},{"$f":"IF(DataLog!$C2244=\"Log value\",DataLog!AC2244,\"\")","v":""},{"$f":"IF(DataLog!$C2244=\"Log value\",DataLog!AD2244,\"\")","v":""},{"$f":"IF(DataLog!$C2244=\"Log value\",DataLog!AE2244,\"\")","v":""},{"$f":"IF(DataLog!$C2244=\"Log value\",DataLog!AF2244,\"\")","v":""},{"$f":"IF(DataLog!$C2244=\"Log value\",DataLog!AG2244,\"\")","v":""},{"$f":"IF(DataLog!$C2244=\"Log value\",DataLog!AH2244,\"\")","v":""},{"$f":"IF(DataLog!$C2244=\"Log value\",DataLog!AI2244,\"\")","v":""},{"$f":"IF(DataLog!$C2244=\"Log value\",DataLog!AJ2244,\"\")","v":""},{"$f":"IF(DataLog!$C2244=\"Log value\",DataLog!AK2244,\"\")","v":""},{"$f":"IF(DataLog!$C2244=\"Log value\",DataLog!AL2244,\"\")","v":""},{"$f":"IF(DataLog!$C2244=\"Log value\",DataLog!AM2244,\"\")","v":""}]
[null,null,null,null,null,null,{"$f":"IF(DataLog!$C2245=\"Log value\",DataLog!D2245&\"_\"&TEXT(DataLog!B2245,\"åååå-mm-dd\"),\"\")","v":""},{"$f":"IF(DataLog!$C2245=\"Log value\",DataLog!E2245,\"\")","v":""},{"$f":"IF(DataLog!$C2245=\"Log value\",DataLog!F2245,\"\")","v":""},{"$f":"IF(DataLog!$C2245=\"Log value\",DataLog!G2245,\"\")","v":""},{"$f":"IF(DataLog!$C2245=\"Log value\",DataLog!H2245,\"\")","v":""},{"$f":"IF(DataLog!$C2245=\"Log value\",DataLog!I2245,\"\")","v":""},{"$f":"IF(DataLog!$C2245=\"Log value\",DataLog!J2245,\"\")","v":""},{"$f":"IF(DataLog!$C2245=\"Log value\",DataLog!K2245,\"\")","v":""},{"$f":"IF(DataLog!$C2245=\"Log value\",DataLog!L2245,\"\")","v":""},{"$f":"IF(DataLog!$C2245=\"Log value\",DataLog!M2245,\"\")","v":""},{"$f":"IF(DataLog!$C2245=\"Log value\",DataLog!N2245,\"\")","v":""},{"$f":"IF(DataLog!$C2245=\"Log value\",DataLog!O2245,\"\")","v":""},{"$f":"IF(DataLog!$C2245=\"Log value\",DataLog!P2245,\"\")","v":""},{"$f":"IF(DataLog!$C2245=\"Log value\",DataLog!Q2245,\"\")","v":""},{"$f":"IF(DataLog!$C2245=\"Log value\",DataLog!R2245,\"\")","v":""},{"$f":"IF(DataLog!$C2245=\"Log value\",DataLog!S2245,\"\")","v":""},{"$f":"IF(DataLog!$C2245=\"Log value\",DataLog!T2245,\"\")","v":""},{"$f":"IF(DataLog!$C2245=\"Log value\",DataLog!U2245,\"\")","v":""},{"$f":"IF(DataLog!$C2245=\"Log value\",DataLog!V2245,\"\")","v":""},{"$f":"IF(DataLog!$C2245=\"Log value\",DataLog!W2245,\"\")","v":""},{"$f":"IF(DataLog!$C2245=\"Log value\",DataLog!X2245,\"\")","v":""},{"$f":"IF(DataLog!$C2245=\"Log value\",DataLog!Y2245,\"\")","v":""},{"$f":"IF(DataLog!$C2245=\"Log value\",DataLog!Z2245,\"\")","v":""},{"$f":"IF(DataLog!$C2245=\"Log value\",DataLog!AA2245,\"\")","v":""},{"$f":"IF(DataLog!$C2245=\"Log value\",DataLog!AB2245,\"\")","v":""},{"$f":"IF(DataLog!$C2245=\"Log value\",DataLog!AC2245,\"\")","v":""},{"$f":"IF(DataLog!$C2245=\"Log value\",DataLog!AD2245,\"\")","v":""},{"$f":"IF(DataLog!$C2245=\"Log value\",DataLog!AE2245,\"\")","v":""},{"$f":"IF(DataLog!$C2245=\"Log value\",DataLog!AF2245,\"\")","v":""},{"$f":"IF(DataLog!$C2245=\"Log value\",DataLog!AG2245,\"\")","v":""},{"$f":"IF(DataLog!$C2245=\"Log value\",DataLog!AH2245,\"\")","v":""},{"$f":"IF(DataLog!$C2245=\"Log value\",DataLog!AI2245,\"\")","v":""},{"$f":"IF(DataLog!$C2245=\"Log value\",DataLog!AJ2245,\"\")","v":""},{"$f":"IF(DataLog!$C2245=\"Log value\",DataLog!AK2245,\"\")","v":""},{"$f":"IF(DataLog!$C2245=\"Log value\",DataLog!AL2245,\"\")","v":""},{"$f":"IF(DataLog!$C2245=\"Log value\",DataLog!AM2245,\"\")","v":""}]
[null,null,null,null,null,null,{"$f":"IF(DataLog!$C2248=\"Log value\",DataLog!D2248&\"_\"&TEXT(DataLog!B2248,\"åååå-mm-dd\"),\"\")","v":""},{"$f":"IF(DataLog!$C2248=\"Log value\",DataLog!E2248,\"\")","v":""},{"$f":"IF(DataLog!$C2248=\"Log value\",DataLog!F2248,\"\")","v":""},{"$f":"IF(DataLog!$C2248=\"Log value\",DataLog!G2248,\"\")","v":""},{"$f":"IF(DataLog!$C2248=\"Log value\",DataLog!H2248,\"\")","v":""},{"$f":"IF(DataLog!$C2248=\"Log value\",DataLog!I2248,\"\")","v":""},{"$f":"IF(DataLog!$C2248=\"Log value\",DataLog!J2248,\"\")","v":""},{"$f":"IF(DataLog!$C2248=\"Log value\",DataLog!K2248,\"\")","v":""},{"$f":"IF(DataLog!$C2248=\"Log value\",DataLog!L2248,\"\")","v":""},{"$f":"IF(DataLog!$C2248=\"Log value\",DataLog!M2248,\"\")","v":""},{"$f":"IF(DataLog!$C2248=\"Log value\",DataLog!N2248,\"\")","v":""},{"$f":"IF(DataLog!$C2248=\"Log value\",DataLog!O2248,\"\")","v":""},{"$f":"IF(DataLog!$C2248=\"Log value\",DataLog!P2248,\"\")","v":""},{"$f":"IF(DataLog!$C2248=\"Log value\",DataLog!Q2248,\"\")","v":""},{"$f":"IF(DataLog!$C2248=\"Log value\",DataLog!R2248,\"\")","v":""},{"$f":"IF(DataLog!$C2248=\"Log value\",DataLog!S2248,\"\")","v":""},{"$f":"IF(DataLog!$C2248=\"Log value\",DataLog!T2248,\"\")","v":""},{"$f":"IF(DataLog!$C2248=\"Log value\",DataLog!U2248,\"\")","v":""},{"$f":"IF(DataLog!$C2248=\"Log value\",DataLog!V2248,\"\")","v":""},{"$f":"IF(DataLog!$C2248=\"Log value\",DataLog!W2248,\"\")","v":""},{"$f":"IF(DataLog!$C2248=\"Log value\",DataLog!X2248,\"\")","v":""},{"$f":"IF(DataLog!$C2248=\"Log value\",DataLog!Y2248,\"\")","v":""},{"$f":"IF(DataLog!$C2248=\"Log value\",DataLog!Z2248,\"\")","v":""},{"$f":"IF(DataLog!$C2248=\"Log value\",DataLog!AA2248,\"\")","v":""},{"$f":"IF(DataLog!$C2248=\"Log value\",DataLog!AB2248,\"\")","v":""},{"$f":"IF(DataLog!$C2248=\"Log value\",DataLog!AC2248,\"\")","v":""},{"$f":"IF(DataLog!$C2248=\"Log value\",DataLog!AD2248,\"\")","v":""},{"$f":"IF(DataLog!$C2248=\"Log value\",DataLog!AE2248,\"\")","v":""},{"$f":"IF(DataLog!$C2248=\"Log value\",DataLog!AF2248,\"\")","v":""},{"$f":"IF(DataLog!$C2248=\"Log value\",DataLog!AG2248,\"\")","v":""},{"$f":"IF(DataLog!$C2248=\"Log value\",DataLog!AH2248,\"\")","v":""},{"$f":"IF(DataLog!$C2248=\"Log value\",DataLog!AI2248,\"\")","v":""},{"$f":"IF(DataLog!$C2248=\"Log value\",DataLog!AJ2248,\"\")","v":""},{"$f":"IF(DataLog!$C2248=\"Log value\",DataLog!AK2248,\"\")","v":""},{"$f":"IF(DataLog!$C2248=\"Log value\",DataLog!AL2248,\"\")","v":""},{"$f":"IF(DataLog!$C2248=\"Log value\",DataLog!AM2248,\"\")","v":""}]
[null,null,null,null,null,null,{"$f":"IF(DataLog!$C2250=\"Log value\",DataLog!D2250&\"_\"&TEXT(DataLog!B2250,\"åååå-mm-dd\"),\"\")","v":""},{"$f":"IF(DataLog!$C2250=\"Log value\",DataLog!E2250,\"\")","v":""},{"$f":"IF(DataLog!$C2250=\"Log value\",DataLog!F2250,\"\")","v":""},{"$f":"IF(DataLog!$C2250=\"Log value\",DataLog!G2250,\"\")","v":""},{"$f":"IF(DataLog!$C2250=\"Log value\",DataLog!H2250,\"\")","v":""},{"$f":"IF(DataLog!$C2250=\"Log value\",DataLog!I2250,\"\")","v":""},{"$f":"IF(DataLog!$C2250=\"Log value\",DataLog!J2250,\"\")","v":""},{"$f":"IF(DataLog!$C2250=\"Log value\",DataLog!K2250,\"\")","v":""},{"$f":"IF(DataLog!$C2250=\"Log value\",DataLog!L2250,\"\")","v":""},{"$f":"IF(DataLog!$C2250=\"Log value\",DataLog!M2250,\"\")","v":""},{"$f":"IF(DataLog!$C2250=\"Log value\",DataLog!N2250,\"\")","v":""},{"$f":"IF(DataLog!$C2250=\"Log value\",DataLog!O2250,\"\")","v":""},{"$f":"IF(DataLog!$C2250=\"Log value\",DataLog!P2250,\"\")","v":""},{"$f":"IF(DataLog!$C2250=\"Log value\",DataLog!Q2250,\"\")","v":""},{"$f":"IF(DataLog!$C2250=\"Log value\",DataLog!R2250,\"\")","v":""},{"$f":"IF(DataLog!$C2250=\"Log value\",DataLog!S2250,\"\")","v":""},{"$f":"IF(DataLog!$C2250=\"Log value\",DataLog!T2250,\"\")","v":""},{"$f":"IF(DataLog!$C2250=\"Log value\",DataLog!U2250,\"\")","v":""},{"$f":"IF(DataLog!$C2250=\"Log value\",DataLog!V2250,\"\")","v":""},{"$f":"IF(DataLog!$C2250=\"Log value\",DataLog!W2250,\"\")","v":""},{"$f":"IF(DataLog!$C2250=\"Log value\",DataLog!X2250,\"\")","v":""},{"$f":"IF(DataLog!$C2250=\"Log value\",DataLog!Y2250,\"\")","v":""},{"$f":"IF(DataLog!$C2250=\"Log value\",DataLog!Z2250,\"\")","v":""},{"$f":"IF(DataLog!$C2250=\"Log value\",DataLog!AA2250,\"\")","v":""},{"$f":"IF(DataLog!$C2250=\"Log value\",DataLog!AB2250,\"\")","v":""},{"$f":"IF(DataLog!$C2250=\"Log value\",DataLog!AC2250,\"\")","v":""},{"$f":"IF(DataLog!$C2250=\"Log value\",DataLog!AD2250,\"\")","v":""},{"$f":"IF(DataLog!$C2250=\"Log value\",DataLog!AE2250,\"\")","v":""},{"$f":"IF(DataLog!$C2250=\"Log value\",DataLog!AF2250,\"\")","v":""},{"$f":"IF(DataLog!$C2250=\"Log value\",DataLog!AG2250,\"\")","v":""},{"$f":"IF(DataLog!$C2250=\"Log value\",DataLog!AH2250,\"\")","v":""},{"$f":"IF(DataLog!$C2250=\"Log value\",DataLog!AI2250,\"\")","v":""},{"$f":"IF(DataLog!$C2250=\"Log value\",DataLog!AJ2250,\"\")","v":""},{"$f":"IF(DataLog!$C2250=\"Log value\",DataLog!AK2250,\"\")","v":""},{"$f":"IF(DataLog!$C2250=\"Log value\",DataLog!AL2250,\"\")","v":""},{"$f":"IF(DataLog!$C2250=\"Log value\",DataLog!AM2250,\"\")","v":""}]
[null,null,null,null,null,null,{"$f":"IF(DataLog!$C2253=\"Log value\",DataLog!D2253&\"_\"&TEXT(DataLog!B2253,\"åååå-mm-dd\"),\"\")","v":""},{"$f":"IF(DataLog!$C2253=\"Log value\",DataLog!E2253,\"\")","v":""},{"$f":"IF(DataLog!$C2253=\"Log value\",DataLog!F2253,\"\")","v":""},{"$f":"IF(DataLog!$C2253=\"Log value\",DataLog!G2253,\"\")","v":""},{"$f":"IF(DataLog!$C2253=\"Log value\",DataLog!H2253,\"\")","v":""},{"$f":"IF(DataLog!$C2253=\"Log value\",DataLog!I2253,\"\")","v":""},{"$f":"IF(DataLog!$C2253=\"Log value\",DataLog!J2253,\"\")","v":""},{"$f":"IF(DataLog!$C2253=\"Log value\",DataLog!K2253,\"\")","v":""},{"$f":"IF(DataLog!$C2253=\"Log value\",DataLog!L2253,\"\")","v":""},{"$f":"IF(DataLog!$C2253=\"Log value\",DataLog!M2253,\"\")","v":""},{"$f":"IF(DataLog!$C2253=\"Log value\",DataLog!N2253,\"\")","v":""},{"$f":"IF(DataLog!$C2253=\"Log value\",DataLog!O2253,\"\")","v":""},{"$f":"IF(DataLog!$C2253=\"Log value\",DataLog!P2253,\"\")","v":""},{"$f":"IF(DataLog!$C2253=\"Log value\",DataLog!Q2253,\"\")","v":""},{"$f":"IF(DataLog!$C2253=\"Log value\",DataLog!R2253,\"\")","v":""},{"$f":"IF(DataLog!$C2253=\"Log value\",DataLog!S2253,\"\")","v":""},{"$f":"IF(DataLog!$C2253=\"Log value\",DataLog!T2253,\"\")","v":""},{"$f":"IF(DataLog!$C2253=\"Log value\",DataLog!U2253,\"\")","v":""},{"$f":"IF(DataLog!$C2253=\"Log value\",DataLog!V2253,\"\")","v":""},{"$f":"IF(DataLog!$C2253=\"Log value\",DataLog!W2253,\"\")","v":""},{"$f":"IF(DataLog!$C2253=\"Log value\",DataLog!X2253,\"\")","v":""},{"$f":"IF(DataLog!$C2253=\"Log value\",DataLog!Y2253,\"\")","v":""},{"$f":"IF(DataLog!$C2253=\"Log value\",DataLog!Z2253,\"\")","v":""},{"$f":"IF(DataLog!$C2253=\"Log value\",DataLog!AA2253,\"\")","v":""},{"$f":"IF(DataLog!$C2253=\"Log value\",DataLog!AB2253,\"\")","v":""},{"$f":"IF(DataLog!$C2253=\"Log value\",DataLog!AC2253,\"\")","v":""},{"$f":"IF(DataLog!$C2253=\"Log value\",DataLog!AD2253,\"\")","v":""},{"$f":"IF(DataLog!$C2253=\"Log value\",DataLog!AE2253,\"\")","v":""},{"$f":"IF(DataLog!$C2253=\"Log value\",DataLog!AF2253,\"\")","v":""},{"$f":"IF(DataLog!$C2253=\"Log value\",DataLog!AG2253,\"\")","v":""},{"$f":"IF(DataLog!$C2253=\"Log value\",DataLog!AH2253,\"\")","v":""},{"$f":"IF(DataLog!$C2253=\"Log value\",DataLog!AI2253,\"\")","v":""},{"$f":"IF(DataLog!$C2253=\"Log value\",DataLog!AJ2253,\"\")","v":""},{"$f":"IF(DataLog!$C2253=\"Log value\",DataLog!AK2253,\"\")","v":""},{"$f":"IF(DataLog!$C2253=\"Log value\",DataLog!AL2253,\"\")","v":""},{"$f":"IF(DataLog!$C2253=\"Log value\",DataLog!AM2253,\"\")","v":""}]
[null,null,null,null,null,null,{"$f":"IF(DataLog!$C2254=\"Log value\",DataLog!D2254&\"_\"&TEXT(DataLog!B2254,\"åååå-mm-dd\"),\"\")","v":""},{"$f":"IF(DataLog!$C2254=\"Log value\",DataLog!E2254,\"\")","v":""},{"$f":"IF(DataLog!$C2254=\"Log value\",DataLog!F2254,\"\")","v":""},{"$f":"IF(DataLog!$C2254=\"Log value\",DataLog!G2254,\"\")","v":""},{"$f":"IF(DataLog!$C2254=\"Log value\",DataLog!H2254,\"\")","v":""},{"$f":"IF(DataLog!$C2254=\"Log value\",DataLog!I2254,\"\")","v":""},{"$f":"IF(DataLog!$C2254=\"Log value\",DataLog!J2254,\"\")","v":""},{"$f":"IF(DataLog!$C2254=\"Log value\",DataLog!K2254,\"\")","v":""},{"$f":"IF(DataLog!$C2254=\"Log value\",DataLog!L2254,\"\")","v":""},{"$f":"IF(DataLog!$C2254=\"Log value\",DataLog!M2254,\"\")","v":""},{"$f":"IF(DataLog!$C2254=\"Log value\",DataLog!N2254,\"\")","v":""},{"$f":"IF(DataLog!$C2254=\"Log value\",DataLog!O2254,\"\")","v":""},{"$f":"IF(DataLog!$C2254=\"Log value\",DataLog!P2254,\"\")","v":""},{"$f":"IF(DataLog!$C2254=\"Log value\",DataLog!Q2254,\"\")","v":""},{"$f":"IF(DataLog!$C2254=\"Log value\",DataLog!R2254,\"\")","v":""},{"$f":"IF(DataLog!$C2254=\"Log value\",DataLog!S2254,\"\")","v":""},{"$f":"IF(DataLog!$C2254=\"Log value\",DataLog!T2254,\"\")","v":""},{"$f":"IF(DataLog!$C2254=\"Log value\",DataLog!U2254,\"\")","v":""},{"$f":"IF(DataLog!$C2254=\"Log value\",DataLog!V2254,\"\")","v":""},{"$f":"IF(DataLog!$C2254=\"Log value\",DataLog!W2254,\"\")","v":""},{"$f":"IF(DataLog!$C2254=\"Log value\",DataLog!X2254,\"\")","v":""},{"$f":"IF(DataLog!$C2254=\"Log value\",DataLog!Y2254,\"\")","v":""},{"$f":"IF(DataLog!$C2254=\"Log value\",DataLog!Z2254,\"\")","v":""},{"$f":"IF(DataLog!$C2254=\"Log value\",DataLog!AA2254,\"\")","v":""},{"$f":"IF(DataLog!$C2254=\"Log value\",DataLog!AB2254,\"\")","v":""},{"$f":"IF(DataLog!$C2254=\"Log value\",DataLog!AC2254,\"\")","v":""},{"$f":"IF(DataLog!$C2254=\"Log value\",DataLog!AD2254,\"\")","v":""},{"$f":"IF(DataLog!$C2254=\"Log value\",DataLog!AE2254,\"\")","v":""},{"$f":"IF(DataLog!$C2254=\"Log value\",DataLog!AF2254,\"\")","v":""},{"$f":"IF(DataLog!$C2254=\"Log value\",DataLog!AG2254,\"\")","v":""},{"$f":"IF(DataLog!$C2254=\"Log value\",DataLog!AH2254,\"\")","v":""},{"$f":"IF(DataLog!$C2254=\"Log value\",DataLog!AI2254,\"\")","v":""},{"$f":"IF(DataLog!$C2254=\"Log value\",DataLog!AJ2254,\"\")","v":""},{"$f":"IF(DataLog!$C2254=\"Log value\",DataLog!AK2254,\"\")","v":""},{"$f":"IF(DataLog!$C2254=\"Log value\",DataLog!AL2254,\"\")","v":""},{"$f":"IF(DataLog!$C2254=\"Log value\",DataLog!AM2254,\"\")","v":""}]
[null,null,null,null,null,null,{"$f":"IF(DataLog!$C2258=\"Log value\",DataLog!D2258&\"_\"&TEXT(DataLog!B2258,\"åååå-mm-dd\"),\"\")","v":""},{"$f":"IF(DataLog!$C2258=\"Log value\",DataLog!E2258,\"\")","v":""},{"$f":"IF(DataLog!$C2258=\"Log value\",DataLog!F2258,\"\")","v":""},{"$f":"IF(DataLog!$C2258=\"Log value\",DataLog!G2258,\"\")","v":""},{"$f":"IF(DataLog!$C2258=\"Log value\",DataLog!H2258,\"\")","v":""},{"$f":"IF(DataLog!$C2258=\"Log value\",DataLog!I2258,\"\")","v":""},{"$f":"IF(DataLog!$C2258=\"Log value\",DataLog!J2258,\"\")","v":""},{"$f":"IF(DataLog!$C2258=\"Log value\",DataLog!K2258,\"\")","v":""},{"$f":"IF(DataLog!$C2258=\"Log value\",DataLog!L2258,\"\")","v":""},{"$f":"IF(DataLog!$C2258=\"Log value\",DataLog!M2258,\"\")","v":""},{"$f":"IF(DataLog!$C2258=\"Log value\",DataLog!N2258,\"\")","v":""},{"$f":"IF(DataLog!$C2258=\"Log value\",DataLog!O2258,\"\")","v":""},{"$f":"IF(DataLog!$C2258=\"Log value\",DataLog!P2258,\"\")","v":""},{"$f":"IF(DataLog!$C2258=\"Log value\",DataLog!Q2258,\"\")","v":""},{"$f":"IF(DataLog!$C2258=\"Log value\",DataLog!R2258,\"\")","v":""},{"$f":"IF(DataLog!$C2258=\"Log value\",DataLog!S2258,\"\")","v":""},{"$f":"IF(DataLog!$C2258=\"Log value\",DataLog!T2258,\"\")","v":""},{"$f":"IF(DataLog!$C2258=\"Log value\",DataLog!U2258,\"\")","v":""},{"$f":"IF(DataLog!$C2258=\"Log value\",DataLog!V2258,\"\")","v":""},{"$f":"IF(DataLog!$C2258=\"Log value\",DataLog!W2258,\"\")","v":""},{"$f":"IF(DataLog!$C2258=\"Log value\",DataLog!X2258,\"\")","v":""},{"$f":"IF(DataLog!$C2258=\"Log value\",DataLog!Y2258,\"\")","v":""},{"$f":"IF(DataLog!$C2258=\"Log value\",DataLog!Z2258,\"\")","v":""},{"$f":"IF(DataLog!$C2258=\"Log value\",DataLog!AA2258,\"\")","v":""},{"$f":"IF(DataLog!$C2258=\"Log value\",DataLog!AB2258,\"\")","v":""},{"$f":"IF(DataLog!$C2258=\"Log value\",DataLog!AC2258,\"\")","v":""},{"$f":"IF(DataLog!$C2258=\"Log value\",DataLog!AD2258,\"\")","v":""},{"$f":"IF(DataLog!$C2258=\"Log value\",DataLog!AE2258,\"\")","v":""},{"$f":"IF(DataLog!$C2258=\"Log value\",DataLog!AF2258,\"\")","v":""},{"$f":"IF(DataLog!$C2258=\"Log value\",DataLog!AG2258,\"\")","v":""},{"$f":"IF(DataLog!$C2258=\"Log value\",DataLog!AH2258,\"\")","v":""},{"$f":"IF(DataLog!$C2258=\"Log value\",DataLog!AI2258,\"\")","v":""},{"$f":"IF(DataLog!$C2258=\"Log value\",DataLog!AJ2258,\"\")","v":""},{"$f":"IF(DataLog!$C2258=\"Log value\",DataLog!AK2258,\"\")","v":""},{"$f":"IF(DataLog!$C2258=\"Log value\",DataLog!AL2258,\"\")","v":""},{"$f":"IF(DataLog!$C2258=\"Log value\",DataLog!AM2258,\"\")","v":""}]
[null,null,null,null,null,null,{"$f":"IF(DataLog!$C2259=\"Log value\",DataLog!D2259&\"_\"&TEXT(DataLog!B2259,\"åååå-mm-dd\"),\"\")","v":""},{"$f":"IF(DataLog!$C2259=\"Log value\",DataLog!E2259,\"\")","v":""},{"$f":"IF(DataLog!$C2259=\"Log value\",DataLog!F2259,\"\")","v":""},{"$f":"IF(DataLog!$C2259=\"Log value\",DataLog!G2259,\"\")","v":""},{"$f":"IF(DataLog!$C2259=\"Log value\",DataLog!H2259,\"\")","v":""},{"$f":"IF(DataLog!$C2259=\"Log value\",DataLog!I2259,\"\")","v":""},{"$f":"IF(DataLog!$C2259=\"Log value\",DataLog!J2259,\"\")","v":""},{"$f":"IF(DataLog!$C2259=\"Log value\",DataLog!K2259,\"\")","v":""},{"$f":"IF(DataLog!$C2259=\"Log value\",DataLog!L2259,\"\")","v":""},{"$f":"IF(DataLog!$C2259=\"Log value\",DataLog!M2259,\"\")","v":""},{"$f":"IF(DataLog!$C2259=\"Log value\",DataLog!N2259,\"\")","v":""},{"$f":"IF(DataLog!$C2259=\"Log value\",DataLog!O2259,\"\")","v":""},{"$f":"IF(DataLog!$C2259=\"Log value\",DataLog!P2259,\"\")","v":""},{"$f":"IF(DataLog!$C2259=\"Log value\",DataLog!Q2259,\"\")","v":""},{"$f":"IF(DataLog!$C2259=\"Log value\",DataLog!R2259,\"\")","v":""},{"$f":"IF(DataLog!$C2259=\"Log value\",DataLog!S2259,\"\")","v":""},{"$f":"IF(DataLog!$C2259=\"Log value\",DataLog!T2259,\"\")","v":""},{"$f":"IF(DataLog!$C2259=\"Log value\",DataLog!U2259,\"\")","v":""},{"$f":"IF(DataLog!$C2259=\"Log value\",DataLog!V2259,\"\")","v":""},{"$f":"IF(DataLog!$C2259=\"Log value\",DataLog!W2259,\"\")","v":""},{"$f":"IF(DataLog!$C2259=\"Log value\",DataLog!X2259,\"\")","v":""},{"$f":"IF(DataLog!$C2259=\"Log value\",DataLog!Y2259,\"\")","v":""},{"$f":"IF(DataLog!$C2259=\"Log value\",DataLog!Z2259,\"\")","v":""},{"$f":"IF(DataLog!$C2259=\"Log value\",DataLog!AA2259,\"\")","v":""},{"$f":"IF(DataLog!$C2259=\"Log value\",DataLog!AB2259,\"\")","v":""},{"$f":"IF(DataLog!$C2259=\"Log value\",DataLog!AC2259,\"\")","v":""},{"$f":"IF(DataLog!$C2259=\"Log value\",DataLog!AD2259,\"\")","v":""},{"$f":"IF(DataLog!$C2259=\"Log value\",DataLog!AE2259,\"\")","v":""},{"$f":"IF(DataLog!$C2259=\"Log value\",DataLog!AF2259,\"\")","v":""},{"$f":"IF(DataLog!$C2259=\"Log value\",DataLog!AG2259,\"\")","v":""},{"$f":"IF(DataLog!$C2259=\"Log value\",DataLog!AH2259,\"\")","v":""},{"$f":"IF(DataLog!$C2259=\"Log value\",DataLog!AI2259,\"\")","v":""},{"$f":"IF(DataLog!$C2259=\"Log value\",DataLog!AJ2259,\"\")","v":""},{"$f":"IF(DataLog!$C2259=\"Log value\",DataLog!AK2259,\"\")","v":""},{"$f":"IF(DataLog!$C2259=\"Log value\",DataLog!AL2259,\"\")","v":""},{"$f":"IF(DataLog!$C2259=\"Log value\",DataLog!AM2259,\"\")","v":""}]
[null,null,null,null,null,null,{"$f":"IF(DataLog!$C2262=\"Log value\",DataLog!D2262&\"_\"&TEXT(DataLog!B2262,\"åååå-mm-dd\"),\"\")","v":""},{"$f":"IF(DataLog!$C2262=\"Log value\",DataLog!E2262,\"\")","v":""},{"$f":"IF(DataLog!$C2262=\"Log value\",DataLog!F2262,\"\")","v":""},{"$f":"IF(DataLog!$C2262=\"Log value\",DataLog!G2262,\"\")","v":""},{"$f":"IF(DataLog!$C2262=\"Log value\",DataLog!H2262,\"\")","v":""},{"$f":"IF(DataLog!$C2262=\"Log value\",DataLog!I2262,\"\")","v":""},{"$f":"IF(DataLog!$C2262=\"Log value\",DataLog!J2262,\"\")","v":""},{"$f":"IF(DataLog!$C2262=\"Log value\",DataLog!K2262,\"\")","v":""},{"$f":"IF(DataLog!$C2262=\"Log value\",DataLog!L2262,\"\")","v":""},{"$f":"IF(DataLog!$C2262=\"Log value\",DataLog!M2262,\"\")","v":""},{"$f":"IF(DataLog!$C2262=\"Log value\",DataLog!N2262,\"\")","v":""},{"$f":"IF(DataLog!$C2262=\"Log value\",DataLog!O2262,\"\")","v":""},{"$f":"IF(DataLog!$C2262=\"Log value\",DataLog!P2262,\"\")","v":""},{"$f":"IF(DataLog!$C2262=\"Log value\",DataLog!Q2262,\"\")","v":""},{"$f":"IF(DataLog!$C2262=\"Log value\",DataLog!R2262,\"\")","v":""},{"$f":"IF(DataLog!$C2262=\"Log value\",DataLog!S2262,\"\")","v":""},{"$f":"IF(DataLog!$C2262=\"Log value\",DataLog!T2262,\"\")","v":""},{"$f":"IF(DataLog!$C2262=\"Log value\",DataLog!U2262,\"\")","v":""},{"$f":"IF(DataLog!$C2262=\"Log value\",DataLog!V2262,\"\")","v":""},{"$f":"IF(DataLog!$C2262=\"Log value\",DataLog!W2262,\"\")","v":""},{"$f":"IF(DataLog!$C2262=\"Log value\",DataLog!X2262,\"\")","v":""},{"$f":"IF(DataLog!$C2262=\"Log value\",DataLog!Y2262,\"\")","v":""},{"$f":"IF(DataLog!$C2262=\"Log value\",DataLog!Z2262,\"\")","v":""},{"$f":"IF(DataLog!$C2262=\"Log value\",DataLog!AA2262,\"\")","v":""},{"$f":"IF(DataLog!$C2262=\"Log value\",DataLog!AB2262,\"\")","v":""},{"$f":"IF(DataLog!$C2262=\"Log value\",DataLog!AC2262,\"\")","v":""},{"$f":"IF(DataLog!$C2262=\"Log value\",DataLog!AD2262,\"\")","v":""},{"$f":"IF(DataLog!$C2262=\"Log value\",DataLog!AE2262,\"\")","v":""},{"$f":"IF(DataLog!$C2262=\"Log value\",DataLog!AF2262,\"\")","v":""},{"$f":"IF(DataLog!$C2262=\"Log value\",DataLog!AG2262,\"\")","v":""},{"$f":"IF(DataLog!$C2262=\"Log value\",DataLog!AH2262,\"\")","v":""},{"$f":"IF(DataLog!$C2262=\"Log value\",DataLog!AI2262,\"\")","v":""},{"$f":"IF(DataLog!$C2262=\"Log value\",DataLog!AJ2262,\"\")","v":""},{"$f":"IF(DataLog!$C2262=\"Log value\",DataLog!AK2262,\"\")","v":""},{"$f":"IF(DataLog!$C2262=\"Log value\",DataLog!AL2262,\"\")","v":""},{"$f":"IF(DataLog!$C2262=\"Log value\",DataLog!AM2262,\"\")","v":""}]
[null,null,null,null,null,null,{"$f":"IF(DataLog!$C2263=\"Log value\",DataLog!D2263&\"_\"&TEXT(DataLog!B2263,\"åååå-mm-dd\"),\"\")","v":""},{"$f":"IF(DataLog!$C2263=\"Log value\",DataLog!E2263,\"\")","v":""},{"$f":"IF(DataLog!$C2263=\"Log value\",DataLog!F2263,\"\")","v":""},{"$f":"IF(DataLog!$C2263=\"Log value\",DataLog!G2263,\"\")","v":""},{"$f":"IF(DataLog!$C2263=\"Log value\",DataLog!H2263,\"\")","v":""},{"$f":"IF(DataLog!$C2263=\"Log value\",DataLog!I2263,\"\")","v":""},{"$f":"IF(DataLog!$C2263=\"Log value\",DataLog!J2263,\"\")","v":""},{"$f":"IF(DataLog!$C2263=\"Log value\",DataLog!K2263,\"\")","v":""},{"$f":"IF(DataLog!$C2263=\"Log value\",DataLog!L2263,\"\")","v":""},{"$f":"IF(DataLog!$C2263=\"Log value\",DataLog!M2263,\"\")","v":""},{"$f":"IF(DataLog!$C2263=\"Log value\",DataLog!N2263,\"\")","v":""},{"$f":"IF(DataLog!$C2263=\"Log value\",DataLog!O2263,\"\")","v":""},{"$f":"IF(DataLog!$C2263=\"Log value\",DataLog!P2263,\"\")","v":""},{"$f":"IF(DataLog!$C2263=\"Log value\",DataLog!Q2263,\"\")","v":""},{"$f":"IF(DataLog!$C2263=\"Log value\",DataLog!R2263,\"\")","v":""},{"$f":"IF(DataLog!$C2263=\"Log value\",DataLog!S2263,\"\")","v":""},{"$f":"IF(DataLog!$C2263=\"Log value\",DataLog!T2263,\"\")","v":""},{"$f":"IF(DataLog!$C2263=\"Log value\",DataLog!U2263,\"\")","v":""},{"$f":"IF(DataLog!$C2263=\"Log value\",DataLog!V2263,\"\")","v":""},{"$f":"IF(DataLog!$C2263=\"Log value\",DataLog!W2263,\"\")","v":""},{"$f":"IF(DataLog!$C2263=\"Log value\",DataLog!X2263,\"\")","v":""},{"$f":"IF(DataLog!$C2263=\"Log value\",DataLog!Y2263,\"\")","v":""},{"$f":"IF(DataLog!$C2263=\"Log value\",DataLog!Z2263,\"\")","v":""},{"$f":"IF(DataLog!$C2263=\"Log value\",DataLog!AA2263,\"\")","v":""},{"$f":"IF(DataLog!$C2263=\"Log value\",DataLog!AB2263,\"\")","v":""},{"$f":"IF(DataLog!$C2263=\"Log value\",DataLog!AC2263,\"\")","v":""},{"$f":"IF(DataLog!$C2263=\"Log value\",DataLog!AD2263,\"\")","v":""},{"$f":"IF(DataLog!$C2263=\"Log value\",DataLog!AE2263,\"\")","v":""},{"$f":"IF(DataLog!$C2263=\"Log value\",DataLog!AF2263,\"\")","v":""},{"$f":"IF(DataLog!$C2263=\"Log value\",DataLog!AG2263,\"\")","v":""},{"$f":"IF(DataLog!$C2263=\"Log value\",DataLog!AH2263,\"\")","v":""},{"$f":"IF(DataLog!$C2263=\"Log value\",DataLog!AI2263,\"\")","v":""},{"$f":"IF(DataLog!$C2263=\"Log value\",DataLog!AJ2263,\"\")","v":""},{"$f":"IF(DataLog!$C2263=\"Log value\",DataLog!AK2263,\"\")","v":""},{"$f":"IF(DataLog!$C2263=\"Log value\",DataLog!AL2263,\"\")","v":""},{"$f":"IF(DataLog!$C2263=\"Log value\",DataLog!AM2263,\"\")","v":""}]
[null,null,null,null,null,null,{"$f":"IF(DataLog!$C2266=\"Log value\",DataLog!D2266&\"_\"&TEXT(DataLog!B2266,\"åååå-mm-dd\"),\"\")","v":""},{"$f":"IF(DataLog!$C2266=\"Log value\",DataLog!E2266,\"\")","v":""},{"$f":"IF(DataLog!$C2266=\"Log value\",DataLog!F2266,\"\")","v":""},{"$f":"IF(DataLog!$C2266=\"Log value\",DataLog!G2266,\"\")","v":""},{"$f":"IF(DataLog!$C2266=\"Log value\",DataLog!H2266,\"\")","v":""},{"$f":"IF(DataLog!$C2266=\"Log value\",DataLog!I2266,\"\")","v":""},{"$f":"IF(DataLog!$C2266=\"Log value\",DataLog!J2266,\"\")","v":""},{"$f":"IF(DataLog!$C2266=\"Log value\",DataLog!K2266,\"\")","v":""},{"$f":"IF(DataLog!$C2266=\"Log value\",DataLog!L2266,\"\")","v":""},{"$f":"IF(DataLog!$C2266=\"Log value\",DataLog!M2266,\"\")","v":""},{"$f":"IF(DataLog!$C2266=\"Log value\",DataLog!N2266,\"\")","v":""},{"$f":"IF(DataLog!$C2266=\"Log value\",DataLog!O2266,\"\")","v":""},{"$f":"IF(DataLog!$C2266=\"Log value\",DataLog!P2266,\"\")","v":""},{"$f":"IF(DataLog!$C2266=\"Log value\",DataLog!Q2266,\"\")","v":""},{"$f":"IF(DataLog!$C2266=\"Log value\",DataLog!R2266,\"\")","v":""},{"$f":"IF(DataLog!$C2266=\"Log value\",DataLog!S2266,\"\")","v":""},{"$f":"IF(DataLog!$C2266=\"Log value\",DataLog!T2266,\"\")","v":""},{"$f":"IF(DataLog!$C2266=\"Log value\",DataLog!U2266,\"\")","v":""},{"$f":"IF(DataLog!$C2266=\"Log value\",DataLog!V2266,\"\")","v":""},{"$f":"IF(DataLog!$C2266=\"Log value\",DataLog!W2266,\"\")","v":""},{"$f":"IF(DataLog!$C2266=\"Log value\",DataLog!X2266,\"\")","v":""},{"$f":"IF(DataLog!$C2266=\"Log value\",DataLog!Y2266,\"\")","v":""},{"$f":"IF(DataLog!$C2266=\"Log value\",DataLog!Z2266,\"\")","v":""},{"$f":"IF(DataLog!$C2266=\"Log value\",DataLog!AA2266,\"\")","v":""},{"$f":"IF(DataLog!$C2266=\"Log value\",DataLog!AB2266,\"\")","v":""},{"$f":"IF(DataLog!$C2266=\"Log value\",DataLog!AC2266,\"\")","v":""},{"$f":"IF(DataLog!$C2266=\"Log value\",DataLog!AD2266,\"\")","v":""},{"$f":"IF(DataLog!$C2266=\"Log value\",DataLog!AE2266,\"\")","v":""},{"$f":"IF(DataLog!$C2266=\"Log value\",DataLog!AF2266,\"\")","v":""},{"$f":"IF(DataLog!$C2266=\"Log value\",DataLog!AG2266,\"\")","v":""},{"$f":"IF(DataLog!$C2266=\"Log value\",DataLog!AH2266,\"\")","v":""},{"$f":"IF(DataLog!$C2266=\"Log value\",DataLog!AI2266,\"\")","v":""},{"$f":"IF(DataLog!$C2266=\"Log value\",DataLog!AJ2266,\"\")","v":""},{"$f":"IF(DataLog!$C2266=\"Log value\",DataLog!AK2266,\"\")","v":""},{"$f":"IF(DataLog!$C2266=\"Log value\",DataLog!AL2266,\"\")","v":""},{"$f":"IF(DataLog!$C2266=\"Log value\",DataLog!AM2266,\"\")","v":""}]
[null,null,null,null,null,null,{"$f":"IF(DataLog!$C2268=\"Log value\",DataLog!D2268&\"_\"&TEXT(DataLog!B2268,\"åååå-mm-dd\"),\"\")","v":""},{"$f":"IF(DataLog!$C2268=\"Log value\",DataLog!E2268,\"\")","v":""},{"$f":"IF(DataLog!$C2268=\"Log value\",DataLog!F2268,\"\")","v":""},{"$f":"IF(DataLog!$C2268=\"Log value\",DataLog!G2268,\"\")","v":""},{"$f":"IF(DataLog!$C2268=\"Log value\",DataLog!H2268,\"\")","v":""},{"$f":"IF(DataLog!$C2268=\"Log value\",DataLog!I2268,\"\")","v":""},{"$f":"IF(DataLog!$C2268=\"Log value\",DataLog!J2268,\"\")","v":""},{"$f":"IF(DataLog!$C2268=\"Log value\",DataLog!K2268,\"\")","v":""},{"$f":"IF(DataLog!$C2268=\"Log value\",DataLog!L2268,\"\")","v":""},{"$f":"IF(DataLog!$C2268=\"Log value\",DataLog!M2268,\"\")","v":""},{"$f":"IF(DataLog!$C2268=\"Log value\",DataLog!N2268,\"\")","v":""},{"$f":"IF(DataLog!$C2268=\"Log value\",DataLog!O2268,\"\")","v":""},{"$f":"IF(DataLog!$C2268=\"Log value\",DataLog!P2268,\"\")","v":""},{"$f":"IF(DataLog!$C2268=\"Log value\",DataLog!Q2268,\"\")","v":""},{"$f":"IF(DataLog!$C2268=\"Log value\",DataLog!R2268,\"\")","v":""},{"$f":"IF(DataLog!$C2268=\"Log value\",DataLog!S2268,\"\")","v":""},{"$f":"IF(DataLog!$C2268=\"Log value\",DataLog!T2268,\"\")","v":""},{"$f":"IF(DataLog!$C2268=\"Log value\",DataLog!U2268,\"\")","v":""},{"$f":"IF(DataLog!$C2268=\"Log value\",DataLog!V2268,\"\")","v":""},{"$f":"IF(DataLog!$C2268=\"Log value\",DataLog!W2268,\"\")","v":""},{"$f":"IF(DataLog!$C2268=\"Log value\",DataLog!X2268,\"\")","v":""},{"$f":"IF(DataLog!$C2268=\"Log value\",DataLog!Y2268,\"\")","v":""},{"$f":"IF(DataLog!$C2268=\"Log value\",DataLog!Z2268,\"\")","v":""},{"$f":"IF(DataLog!$C2268=\"Log value\",DataLog!AA2268,\"\")","v":""},{"$f":"IF(DataLog!$C2268=\"Log value\",DataLog!AB2268,\"\")","v":""},{"$f":"IF(DataLog!$C2268=\"Log value\",DataLog!AC2268,\"\")","v":""},{"$f":"IF(DataLog!$C2268=\"Log value\",DataLog!AD2268,\"\")","v":""},{"$f":"IF(DataLog!$C2268=\"Log value\",DataLog!AE2268,\"\")","v":""},{"$f":"IF(DataLog!$C2268=\"Log value\",DataLog!AF2268,\"\")","v":""},{"$f":"IF(DataLog!$C2268=\"Log value\",DataLog!AG2268,\"\")","v":""},{"$f":"IF(DataLog!$C2268=\"Log value\",DataLog!AH2268,\"\")","v":""},{"$f":"IF(DataLog!$C2268=\"Log value\",DataLog!AI2268,\"\")","v":""},{"$f":"IF(DataLog!$C2268=\"Log value\",DataLog!AJ2268,\"\")","v":""},{"$f":"IF(DataLog!$C2268=\"Log value\",DataLog!AK2268,\"\")","v":""},{"$f":"IF(DataLog!$C2268=\"Log value\",DataLog!AL2268,\"\")","v":""},{"$f":"IF(DataLog!$C2268=\"Log value\",DataLog!AM2268,\"\")","v":""}]
[null,null,null,null,null,null,{"$f":"IF(DataLog!$C2271=\"Log value\",DataLog!D2271&\"_\"&TEXT(DataLog!B2271,\"åååå-mm-dd\"),\"\")","v":""},{"$f":"IF(DataLog!$C2271=\"Log value\",DataLog!E2271,\"\")","v":""},{"$f":"IF(DataLog!$C2271=\"Log value\",DataLog!F2271,\"\")","v":""},{"$f":"IF(DataLog!$C2271=\"Log value\",DataLog!G2271,\"\")","v":""},{"$f":"IF(DataLog!$C2271=\"Log value\",DataLog!H2271,\"\")","v":""},{"$f":"IF(DataLog!$C2271=\"Log value\",DataLog!I2271,\"\")","v":""},{"$f":"IF(DataLog!$C2271=\"Log value\",DataLog!J2271,\"\")","v":""},{"$f":"IF(DataLog!$C2271=\"Log value\",DataLog!K2271,\"\")","v":""},{"$f":"IF(DataLog!$C2271=\"Log value\",DataLog!L2271,\"\")","v":""},{"$f":"IF(DataLog!$C2271=\"Log value\",DataLog!M2271,\"\")","v":""},{"$f":"IF(DataLog!$C2271=\"Log value\",DataLog!N2271,\"\")","v":""},{"$f":"IF(DataLog!$C2271=\"Log value\",DataLog!O2271,\"\")","v":""},{"$f":"IF(DataLog!$C2271=\"Log value\",DataLog!P2271,\"\")","v":""},{"$f":"IF(DataLog!$C2271=\"Log value\",DataLog!Q2271,\"\")","v":""},{"$f":"IF(DataLog!$C2271=\"Log value\",DataLog!R2271,\"\")","v":""},{"$f":"IF(DataLog!$C2271=\"Log value\",DataLog!S2271,\"\")","v":""},{"$f":"IF(DataLog!$C2271=\"Log value\",DataLog!T2271,\"\")","v":""},{"$f":"IF(DataLog!$C2271=\"Log value\",DataLog!U2271,\"\")","v":""},{"$f":"IF(DataLog!$C2271=\"Log value\",DataLog!V2271,\"\")","v":""},{"$f":"IF(DataLog!$C2271=\"Log value\",DataLog!W2271,\"\")","v":""},{"$f":"IF(DataLog!$C2271=\"Log value\",DataLog!X2271,\"\")","v":""},{"$f":"IF(DataLog!$C2271=\"Log value\",DataLog!Y2271,\"\")","v":""},{"$f":"IF(DataLog!$C2271=\"Log value\",DataLog!Z2271,\"\")","v":""},{"$f":"IF(DataLog!$C2271=\"Log value\",DataLog!AA2271,\"\")","v":""},{"$f":"IF(DataLog!$C2271=\"Log value\",DataLog!AB2271,\"\")","v":""},{"$f":"IF(DataLog!$C2271=\"Log value\",DataLog!AC2271,\"\")","v":""},{"$f":"IF(DataLog!$C2271=\"Log value\",DataLog!AD2271,\"\")","v":""},{"$f":"IF(DataLog!$C2271=\"Log value\",DataLog!AE2271,\"\")","v":""},{"$f":"IF(DataLog!$C2271=\"Log value\",DataLog!AF2271,\"\")","v":""},{"$f":"IF(DataLog!$C2271=\"Log value\",DataLog!AG2271,\"\")","v":""},{"$f":"IF(DataLog!$C2271=\"Log value\",DataLog!AH2271,\"\")","v":""},{"$f":"IF(DataLog!$C2271=\"Log value\",DataLog!AI2271,\"\")","v":""},{"$f":"IF(DataLog!$C2271=\"Log value\",DataLog!AJ2271,\"\")","v":""},{"$f":"IF(DataLog!$C2271=\"Log value\",DataLog!AK2271,\"\")","v":""},{"$f":"IF(DataLog!$C2271=\"Log value\",DataLog!AL2271,\"\")","v":""},{"$f":"IF(DataLog!$C2271=\"Log value\",DataLog!AM2271,\"\")","v":""}]
[null,null,null,null,null,null,{"$f":"IF(DataLog!$C2274=\"Log value\",DataLog!D2274&\"_\"&TEXT(DataLog!B2274,\"åååå-mm-dd\"),\"\")","v":""},{"$f":"IF(DataLog!$C2274=\"Log value\",DataLog!E2274,\"\")","v":""},{"$f":"IF(DataLog!$C2274=\"Log value\",DataLog!F2274,\"\")","v":""},{"$f":"IF(DataLog!$C2274=\"Log value\",DataLog!G2274,\"\")","v":""},{"$f":"IF(DataLog!$C2274=\"Log value\",DataLog!H2274,\"\")","v":""},{"$f":"IF(DataLog!$C2274=\"Log value\",DataLog!I2274,\"\")","v":""},{"$f":"IF(DataLog!$C2274=\"Log value\",DataLog!J2274,\"\")","v":""},{"$f":"IF(DataLog!$C2274=\"Log value\",DataLog!K2274,\"\")","v":""},{"$f":"IF(DataLog!$C2274=\"Log value\",DataLog!L2274,\"\")","v":""},{"$f":"IF(DataLog!$C2274=\"Log value\",DataLog!M2274,\"\")","v":""},{"$f":"IF(DataLog!$C2274=\"Log value\",DataLog!N2274,\"\")","v":""},{"$f":"IF(DataLog!$C2274=\"Log value\",DataLog!O2274,\"\")","v":""},{"$f":"IF(DataLog!$C2274=\"Log value\",DataLog!P2274,\"\")","v":""},{"$f":"IF(DataLog!$C2274=\"Log value\",DataLog!Q2274,\"\")","v":""},{"$f":"IF(DataLog!$C2274=\"Log value\",DataLog!R2274,\"\")","v":""},{"$f":"IF(DataLog!$C2274=\"Log value\",DataLog!S2274,\"\")","v":""},{"$f":"IF(DataLog!$C2274=\"Log value\",DataLog!T2274,\"\")","v":""},{"$f":"IF(DataLog!$C2274=\"Log value\",DataLog!U2274,\"\")","v":""},{"$f":"IF(DataLog!$C2274=\"Log value\",DataLog!V2274,\"\")","v":""},{"$f":"IF(DataLog!$C2274=\"Log value\",DataLog!W2274,\"\")","v":""},{"$f":"IF(DataLog!$C2274=\"Log value\",DataLog!X2274,\"\")","v":""},{"$f":"IF(DataLog!$C2274=\"Log value\",DataLog!Y2274,\"\")","v":""},{"$f":"IF(DataLog!$C2274=\"Log value\",DataLog!Z2274,\"\")","v":""},{"$f":"IF(DataLog!$C2274=\"Log value\",DataLog!AA2274,\"\")","v":""},{"$f":"IF(DataLog!$C2274=\"Log value\",DataLog!AB2274,\"\")","v":""},{"$f":"IF(DataLog!$C2274=\"Log value\",DataLog!AC2274,\"\")","v":""},{"$f":"IF(DataLog!$C2274=\"Log value\",DataLog!AD2274,\"\")","v":""},{"$f":"IF(DataLog!$C2274=\"Log value\",DataLog!AE2274,\"\")","v":""},{"$f":"IF(DataLog!$C2274=\"Log value\",DataLog!AF2274,\"\")","v":""},{"$f":"IF(DataLog!$C2274=\"Log value\",DataLog!AG2274,\"\")","v":""},{"$f":"IF(DataLog!$C2274=\"Log value\",DataLog!AH2274,\"\")","v":""},{"$f":"IF(DataLog!$C2274=\"Log value\",DataLog!AI2274,\"\")","v":""},{"$f":"IF(DataLog!$C2274=\"Log value\",DataLog!AJ2274,\"\")","v":""},{"$f":"IF(DataLog!$C2274=\"Log value\",DataLog!AK2274,\"\")","v":""},{"$f":"IF(DataLog!$C2274=\"Log value\",DataLog!AL2274,\"\")","v":""},{"$f":"IF(DataLog!$C2274=\"Log value\",DataLog!AM2274,\"\")","v":""}]
[null,null,null,null,null,null,{"$f":"IF(DataLog!$C2276=\"Log value\",DataLog!D2276&\"_\"&TEXT(DataLog!B2276,\"åååå-mm-dd\"),\"\")","v":""},{"$f":"IF(DataLog!$C2276=\"Log value\",DataLog!E2276,\"\")","v":""},{"$f":"IF(DataLog!$C2276=\"Log value\",DataLog!F2276,\"\")","v":""},{"$f":"IF(DataLog!$C2276=\"Log value\",DataLog!G2276,\"\")","v":""},{"$f":"IF(DataLog!$C2276=\"Log value\",DataLog!H2276,\"\")","v":""},{"$f":"IF(DataLog!$C2276=\"Log value\",DataLog!I2276,\"\")","v":""},{"$f":"IF(DataLog!$C2276=\"Log value\",DataLog!J2276,\"\")","v":""},{"$f":"IF(DataLog!$C2276=\"Log value\",DataLog!K2276,\"\")","v":""},{"$f":"IF(DataLog!$C2276=\"Log value\",DataLog!L2276,\"\")","v":""},{"$f":"IF(DataLog!$C2276=\"Log value\",DataLog!M2276,\"\")","v":""},{"$f":"IF(DataLog!$C2276=\"Log value\",DataLog!N2276,\"\")","v":""},{"$f":"IF(DataLog!$C2276=\"Log value\",DataLog!O2276,\"\")","v":""},{"$f":"IF(DataLog!$C2276=\"Log value\",DataLog!P2276,\"\")","v":""},{"$f":"IF(DataLog!$C2276=\"Log value\",DataLog!Q2276,\"\")","v":""},{"$f":"IF(DataLog!$C2276=\"Log value\",DataLog!R2276,\"\")","v":""},{"$f":"IF(DataLog!$C2276=\"Log value\",DataLog!S2276,\"\")","v":""},{"$f":"IF(DataLog!$C2276=\"Log value\",DataLog!T2276,\"\")","v":""},{"$f":"IF(DataLog!$C2276=\"Log value\",DataLog!U2276,\"\")","v":""},{"$f":"IF(DataLog!$C2276=\"Log value\",DataLog!V2276,\"\")","v":""},{"$f":"IF(DataLog!$C2276=\"Log value\",DataLog!W2276,\"\")","v":""},{"$f":"IF(DataLog!$C2276=\"Log value\",DataLog!X2276,\"\")","v":""},{"$f":"IF(DataLog!$C2276=\"Log value\",DataLog!Y2276,\"\")","v":""},{"$f":"IF(DataLog!$C2276=\"Log value\",DataLog!Z2276,\"\")","v":""},{"$f":"IF(DataLog!$C2276=\"Log value\",DataLog!AA2276,\"\")","v":""},{"$f":"IF(DataLog!$C2276=\"Log value\",DataLog!AB2276,\"\")","v":""},{"$f":"IF(DataLog!$C2276=\"Log value\",DataLog!AC2276,\"\")","v":""},{"$f":"IF(DataLog!$C2276=\"Log value\",DataLog!AD2276,\"\")","v":""},{"$f":"IF(DataLog!$C2276=\"Log value\",DataLog!AE2276,\"\")","v":""},{"$f":"IF(DataLog!$C2276=\"Log value\",DataLog!AF2276,\"\")","v":""},{"$f":"IF(DataLog!$C2276=\"Log value\",DataLog!AG2276,\"\")","v":""},{"$f":"IF(DataLog!$C2276=\"Log value\",DataLog!AH2276,\"\")","v":""},{"$f":"IF(DataLog!$C2276=\"Log value\",DataLog!AI2276,\"\")","v":""},{"$f":"IF(DataLog!$C2276=\"Log value\",DataLog!AJ2276,\"\")","v":""},{"$f":"IF(DataLog!$C2276=\"Log value\",DataLog!AK2276,\"\")","v":""},{"$f":"IF(DataLog!$C2276=\"Log value\",DataLog!AL2276,\"\")","v":""},{"$f":"IF(DataLog!$C2276=\"Log value\",DataLog!AM2276,\"\")","v":""}]
[null,null,null,null,null,null,{"$f":"IF(DataLog!$C2277=\"Log value\",DataLog!D2277&\"_\"&TEXT(DataLog!B2277,\"åååå-mm-dd\"),\"\")","v":""},{"$f":"IF(DataLog!$C2277=\"Log value\",DataLog!E2277,\"\")","v":""},{"$f":"IF(DataLog!$C2277=\"Log value\",DataLog!F2277,\"\")","v":""},{"$f":"IF(DataLog!$C2277=\"Log value\",DataLog!G2277,\"\")","v":""},{"$f":"IF(DataLog!$C2277=\"Log value\",DataLog!H2277,\"\")","v":""},{"$f":"IF(DataLog!$C2277=\"Log value\",DataLog!I2277,\"\")","v":""},{"$f":"IF(DataLog!$C2277=\"Log value\",DataLog!J2277,\"\")","v":""},{"$f":"IF(DataLog!$C2277=\"Log value\",DataLog!K2277,\"\")","v":""},{"$f":"IF(DataLog!$C2277=\"Log value\",DataLog!L2277,\"\")","v":""},{"$f":"IF(DataLog!$C2277=\"Log value\",DataLog!M2277,\"\")","v":""},{"$f":"IF(DataLog!$C2277=\"Log value\",DataLog!N2277,\"\")","v":""},{"$f":"IF(DataLog!$C2277=\"Log value\",DataLog!O2277,\"\")","v":""},{"$f":"IF(DataLog!$C2277=\"Log value\",DataLog!P2277,\"\")","v":""},{"$f":"IF(DataLog!$C2277=\"Log value\",DataLog!Q2277,\"\")","v":""},{"$f":"IF(DataLog!$C2277=\"Log value\",DataLog!R2277,\"\")","v":""},{"$f":"IF(DataLog!$C2277=\"Log value\",DataLog!S2277,\"\")","v":""},{"$f":"IF(DataLog!$C2277=\"Log value\",DataLog!T2277,\"\")","v":""},{"$f":"IF(DataLog!$C2277=\"Log value\",DataLog!U2277,\"\")","v":""},{"$f":"IF(DataLog!$C2277=\"Log value\",DataLog!V2277,\"\")","v":""},{"$f":"IF(DataLog!$C2277=\"Log value\",DataLog!W2277,\"\")","v":""},{"$f":"IF(DataLog!$C2277=\"Log value\",DataLog!X2277,\"\")","v":""},{"$f":"IF(DataLog!$C2277=\"Log value\",DataLog!Y2277,\"\")","v":""},{"$f":"IF(DataLog!$C2277=\"Log value\",DataLog!Z2277,\"\")","v":""},{"$f":"IF(DataLog!$C2277=\"Log value\",DataLog!AA2277,\"\")","v":""},{"$f":"IF(DataLog!$C2277=\"Log value\",DataLog!AB2277,\"\")","v":""},{"$f":"IF(DataLog!$C2277=\"Log value\",DataLog!AC2277,\"\")","v":""},{"$f":"IF(DataLog!$C2277=\"Log value\",DataLog!AD2277,\"\")","v":""},{"$f":"IF(DataLog!$C2277=\"Log value\",DataLog!AE2277,\"\")","v":""},{"$f":"IF(DataLog!$C2277=\"Log value\",DataLog!AF2277,\"\")","v":""},{"$f":"IF(DataLog!$C2277=\"Log value\",DataLog!AG2277,\"\")","v":""},{"$f":"IF(DataLog!$C2277=\"Log value\",DataLog!AH2277,\"\")","v":""},{"$f":"IF(DataLog!$C2277=\"Log value\",DataLog!AI2277,\"\")","v":""},{"$f":"IF(DataLog!$C2277=\"Log value\",DataLog!AJ2277,\"\")","v":""},{"$f":"IF(DataLog!$C2277=\"Log value\",DataLog!AK2277,\"\")","v":""},{"$f":"IF(DataLog!$C2277=\"Log value\",DataLog!AL2277,\"\")","v":""},{"$f":"IF(DataLog!$C2277=\"Log value\",DataLog!AM2277,\"\")","v":""}]
[null,null,null,null,null,null,{"$f":"IF(DataLog!$C2280=\"Log value\",DataLog!D2280&\"_\"&TEXT(DataLog!B2280,\"åååå-mm-dd\"),\"\")","v":""},{"$f":"IF(DataLog!$C2280=\"Log value\",DataLog!E2280,\"\")","v":""},{"$f":"IF(DataLog!$C2280=\"Log value\",DataLog!F2280,\"\")","v":""},{"$f":"IF(DataLog!$C2280=\"Log value\",DataLog!G2280,\"\")","v":""},{"$f":"IF(DataLog!$C2280=\"Log value\",DataLog!H2280,\"\")","v":""},{"$f":"IF(DataLog!$C2280=\"Log value\",DataLog!I2280,\"\")","v":""},{"$f":"IF(DataLog!$C2280=\"Log value\",DataLog!J2280,\"\")","v":""},{"$f":"IF(DataLog!$C2280=\"Log value\",DataLog!K2280,\"\")","v":""},{"$f":"IF(DataLog!$C2280=\"Log value\",DataLog!L2280,\"\")","v":""},{"$f":"IF(DataLog!$C2280=\"Log value\",DataLog!M2280,\"\")","v":""},{"$f":"IF(DataLog!$C2280=\"Log value\",DataLog!N2280,\"\")","v":""},{"$f":"IF(DataLog!$C2280=\"Log value\",DataLog!O2280,\"\")","v":""},{"$f":"IF(DataLog!$C2280=\"Log value\",DataLog!P2280,\"\")","v":""},{"$f":"IF(DataLog!$C2280=\"Log value\",DataLog!Q2280,\"\")","v":""},{"$f":"IF(DataLog!$C2280=\"Log value\",DataLog!R2280,\"\")","v":""},{"$f":"IF(DataLog!$C2280=\"Log value\",DataLog!S2280,\"\")","v":""},{"$f":"IF(DataLog!$C2280=\"Log value\",DataLog!T2280,\"\")","v":""},{"$f":"IF(DataLog!$C2280=\"Log value\",DataLog!U2280,\"\")","v":""},{"$f":"IF(DataLog!$C2280=\"Log value\",DataLog!V2280,\"\")","v":""},{"$f":"IF(DataLog!$C2280=\"Log value\",DataLog!W2280,\"\")","v":""},{"$f":"IF(DataLog!$C2280=\"Log value\",DataLog!X2280,\"\")","v":""},{"$f":"IF(DataLog!$C2280=\"Log value\",DataLog!Y2280,\"\")","v":""},{"$f":"IF(DataLog!$C2280=\"Log value\",DataLog!Z2280,\"\")","v":""},{"$f":"IF(DataLog!$C2280=\"Log value\",DataLog!AA2280,\"\")","v":""},{"$f":"IF(DataLog!$C2280=\"Log value\",DataLog!AB2280,\"\")","v":""},{"$f":"IF(DataLog!$C2280=\"Log value\",DataLog!AC2280,\"\")","v":""},{"$f":"IF(DataLog!$C2280=\"Log value\",DataLog!AD2280,\"\")","v":""},{"$f":"IF(DataLog!$C2280=\"Log value\",DataLog!AE2280,\"\")","v":""},{"$f":"IF(DataLog!$C2280=\"Log value\",DataLog!AF2280,\"\")","v":""},{"$f":"IF(DataLog!$C2280=\"Log value\",DataLog!AG2280,\"\")","v":""},{"$f":"IF(DataLog!$C2280=\"Log value\",DataLog!AH2280,\"\")","v":""},{"$f":"IF(DataLog!$C2280=\"Log value\",DataLog!AI2280,\"\")","v":""},{"$f":"IF(DataLog!$C2280=\"Log value\",DataLog!AJ2280,\"\")","v":""},{"$f":"IF(DataLog!$C2280=\"Log value\",DataLog!AK2280,\"\")","v":""},{"$f":"IF(DataLog!$C2280=\"Log value\",DataLog!AL2280,\"\")","v":""},{"$f":"IF(DataLog!$C2280=\"Log value\",DataLog!AM2280,\"\")","v":""}]
[null,null,null,null,null,null,{"$f":"IF(DataLog!$C2281=\"Log value\",DataLog!D2281&\"_\"&TEXT(DataLog!B2281,\"åååå-mm-dd\"),\"\")","v":""},{"$f":"IF(DataLog!$C2281=\"Log value\",DataLog!E2281,\"\")","v":""},{"$f":"IF(DataLog!$C2281=\"Log value\",DataLog!F2281,\"\")","v":""},{"$f":"IF(DataLog!$C2281=\"Log value\",DataLog!G2281,\"\")","v":""},{"$f":"IF(DataLog!$C2281=\"Log value\",DataLog!H2281,\"\")","v":""},{"$f":"IF(DataLog!$C2281=\"Log value\",DataLog!I2281,\"\")","v":""},{"$f":"IF(DataLog!$C2281=\"Log value\",DataLog!J2281,\"\")","v":""},{"$f":"IF(DataLog!$C2281=\"Log value\",DataLog!K2281,\"\")","v":""},{"$f":"IF(DataLog!$C2281=\"Log value\",DataLog!L2281,\"\")","v":""},{"$f":"IF(DataLog!$C2281=\"Log value\",DataLog!M2281,\"\")","v":""},{"$f":"IF(DataLog!$C2281=\"Log value\",DataLog!N2281,\"\")","v":""},{"$f":"IF(DataLog!$C2281=\"Log value\",DataLog!O2281,\"\")","v":""},{"$f":"IF(DataLog!$C2281=\"Log value\",DataLog!P2281,\"\")","v":""},{"$f":"IF(DataLog!$C2281=\"Log value\",DataLog!Q2281,\"\")","v":""},{"$f":"IF(DataLog!$C2281=\"Log value\",DataLog!R2281,\"\")","v":""},{"$f":"IF(DataLog!$C2281=\"Log value\",DataLog!S2281,\"\")","v":""},{"$f":"IF(DataLog!$C2281=\"Log value\",DataLog!T2281,\"\")","v":""},{"$f":"IF(DataLog!$C2281=\"Log value\",DataLog!U2281,\"\")","v":""},{"$f":"IF(DataLog!$C2281=\"Log value\",DataLog!V2281,\"\")","v":""},{"$f":"IF(DataLog!$C2281=\"Log value\",DataLog!W2281,\"\")","v":""},{"$f":"IF(DataLog!$C2281=\"Log value\",DataLog!X2281,\"\")","v":""},{"$f":"IF(DataLog!$C2281=\"Log value\",DataLog!Y2281,\"\")","v":""},{"$f":"IF(DataLog!$C2281=\"Log value\",DataLog!Z2281,\"\")","v":""},{"$f":"IF(DataLog!$C2281=\"Log value\",DataLog!AA2281,\"\")","v":""},{"$f":"IF(DataLog!$C2281=\"Log value\",DataLog!AB2281,\"\")","v":""},{"$f":"IF(DataLog!$C2281=\"Log value\",DataLog!AC2281,\"\")","v":""},{"$f":"IF(DataLog!$C2281=\"Log value\",DataLog!AD2281,\"\")","v":""},{"$f":"IF(DataLog!$C2281=\"Log value\",DataLog!AE2281,\"\")","v":""},{"$f":"IF(DataLog!$C2281=\"Log value\",DataLog!AF2281,\"\")","v":""},{"$f":"IF(DataLog!$C2281=\"Log value\",DataLog!AG2281,\"\")","v":""},{"$f":"IF(DataLog!$C2281=\"Log value\",DataLog!AH2281,\"\")","v":""},{"$f":"IF(DataLog!$C2281=\"Log value\",DataLog!AI2281,\"\")","v":""},{"$f":"IF(DataLog!$C2281=\"Log value\",DataLog!AJ2281,\"\")","v":""},{"$f":"IF(DataLog!$C2281=\"Log value\",DataLog!AK2281,\"\")","v":""},{"$f":"IF(DataLog!$C2281=\"Log value\",DataLog!AL2281,\"\")","v":""},{"$f":"IF(DataLog!$C2281=\"Log value\",DataLog!AM2281,\"\")","v":""}]
[null,null,null,null,null,null,{"$f":"IF(DataLog!$C2285=\"Log value\",DataLog!D2285&\"_\"&TEXT(DataLog!B2285,\"åååå-mm-dd\"),\"\")","v":""},{"$f":"IF(DataLog!$C2285=\"Log value\",DataLog!E2285,\"\")","v":""},{"$f":"IF(DataLog!$C2285=\"Log value\",DataLog!F2285,\"\")","v":""},{"$f":"IF(DataLog!$C2285=\"Log value\",DataLog!G2285,\"\")","v":""},{"$f":"IF(DataLog!$C2285=\"Log value\",DataLog!H2285,\"\")","v":""},{"$f":"IF(DataLog!$C2285=\"Log value\",DataLog!I2285,\"\")","v":""},{"$f":"IF(DataLog!$C2285=\"Log value\",DataLog!J2285,\"\")","v":""},{"$f":"IF(DataLog!$C2285=\"Log value\",DataLog!K2285,\"\")","v":""},{"$f":"IF(DataLog!$C2285=\"Log value\",DataLog!L2285,\"\")","v":""},{"$f":"IF(DataLog!$C2285=\"Log value\",DataLog!M2285,\"\")","v":""},{"$f":"IF(DataLog!$C2285=\"Log value\",DataLog!N2285,\"\")","v":""},{"$f":"IF(DataLog!$C2285=\"Log value\",DataLog!O2285,\"\")","v":""},{"$f":"IF(DataLog!$C2285=\"Log value\",DataLog!P2285,\"\")","v":""},{"$f":"IF(DataLog!$C2285=\"Log value\",DataLog!Q2285,\"\")","v":""},{"$f":"IF(DataLog!$C2285=\"Log value\",DataLog!R2285,\"\")","v":""},{"$f":"IF(DataLog!$C2285=\"Log value\",DataLog!S2285,\"\")","v":""},{"$f":"IF(DataLog!$C2285=\"Log value\",DataLog!T2285,\"\")","v":""},{"$f":"IF(DataLog!$C2285=\"Log value\",DataLog!U2285,\"\")","v":""},{"$f":"IF(DataLog!$C2285=\"Log value\",DataLog!V2285,\"\")","v":""},{"$f":"IF(DataLog!$C2285=\"Log value\",DataLog!W2285,\"\")","v":""},{"$f":"IF(DataLog!$C2285=\"Log value\",DataLog!X2285,\"\")","v":""},{"$f":"IF(DataLog!$C2285=\"Log value\",DataLog!Y2285,\"\")","v":""},{"$f":"IF(DataLog!$C2285=\"Log value\",DataLog!Z2285,\"\")","v":""},{"$f":"IF(DataLog!$C2285=\"Log value\",DataLog!AA2285,\"\")","v":""},{"$f":"IF(DataLog!$C2285=\"Log value\",DataLog!AB2285,\"\")","v":""},{"$f":"IF(DataLog!$C2285=\"Log value\",DataLog!AC2285,\"\")","v":""},{"$f":"IF(DataLog!$C2285=\"Log value\",DataLog!AD2285,\"\")","v":""},{"$f":"IF(DataLog!$C2285=\"Log value\",DataLog!AE2285,\"\")","v":""},{"$f":"IF(DataLog!$C2285=\"Log value\",DataLog!AF2285,\"\")","v":""},{"$f":"IF(DataLog!$C2285=\"Log value\",DataLog!AG2285,\"\")","v":""},{"$f":"IF(DataLog!$C2285=\"Log value\",DataLog!AH2285,\"\")","v":""},{"$f":"IF(DataLog!$C2285=\"Log value\",DataLog!AI2285,\"\")","v":""},{"$f":"IF(DataLog!$C2285=\"Log value\",DataLog!AJ2285,\"\")","v":""},{"$f":"IF(DataLog!$C2285=\"Log value\",DataLog!AK2285,\"\")","v":""},{"$f":"IF(DataLog!$C2285=\"Log value\",DataLog!AL2285,\"\")","v":""},{"$f":"IF(DataLog!$C2285=\"Log value\",DataLog!AM2285,\"\")","v":""}]
[null,null,null,null,null,null,{"$f":"IF(DataLog!$C2286=\"Log value\",DataLog!D2286&\"_\"&TEXT(DataLog!B2286,\"åååå-mm-dd\"),\"\")","v":""},{"$f":"IF(DataLog!$C2286=\"Log value\",DataLog!E2286,\"\")","v":""},{"$f":"IF(DataLog!$C2286=\"Log value\",DataLog!F2286,\"\")","v":""},{"$f":"IF(DataLog!$C2286=\"Log value\",DataLog!G2286,\"\")","v":""},{"$f":"IF(DataLog!$C2286=\"Log value\",DataLog!H2286,\"\")","v":""},{"$f":"IF(DataLog!$C2286=\"Log value\",DataLog!I2286,\"\")","v":""},{"$f":"IF(DataLog!$C2286=\"Log value\",DataLog!J2286,\"\")","v":""},{"$f":"IF(DataLog!$C2286=\"Log value\",DataLog!K2286,\"\")","v":""},{"$f":"IF(DataLog!$C2286=\"Log value\",DataLog!L2286,\"\")","v":""},{"$f":"IF(DataLog!$C2286=\"Log value\",DataLog!M2286,\"\")","v":""},{"$f":"IF(DataLog!$C2286=\"Log value\",DataLog!N2286,\"\")","v":""},{"$f":"IF(DataLog!$C2286=\"Log value\",DataLog!O2286,\"\")","v":""},{"$f":"IF(DataLog!$C2286=\"Log value\",DataLog!P2286,\"\")","v":""},{"$f":"IF(DataLog!$C2286=\"Log value\",DataLog!Q2286,\"\")","v":""},{"$f":"IF(DataLog!$C2286=\"Log value\",DataLog!R2286,\"\")","v":""},{"$f":"IF(DataLog!$C2286=\"Log value\",DataLog!S2286,\"\")","v":""},{"$f":"IF(DataLog!$C2286=\"Log value\",DataLog!T2286,\"\")","v":""},{"$f":"IF(DataLog!$C2286=\"Log value\",DataLog!U2286,\"\")","v":""},{"$f":"IF(DataLog!$C2286=\"Log value\",DataLog!V2286,\"\")","v":""},{"$f":"IF(DataLog!$C2286=\"Log value\",DataLog!W2286,\"\")","v":""},{"$f":"IF(DataLog!$C2286=\"Log value\",DataLog!X2286,\"\")","v":""},{"$f":"IF(DataLog!$C2286=\"Log value\",DataLog!Y2286,\"\")","v":""},{"$f":"IF(DataLog!$C2286=\"Log value\",DataLog!Z2286,\"\")","v":""},{"$f":"IF(DataLog!$C2286=\"Log value\",DataLog!AA2286,\"\")","v":""},{"$f":"IF(DataLog!$C2286=\"Log value\",DataLog!AB2286,\"\")","v":""},{"$f":"IF(DataLog!$C2286=\"Log value\",DataLog!AC2286,\"\")","v":""},{"$f":"IF(DataLog!$C2286=\"Log value\",DataLog!AD2286,\"\")","v":""},{"$f":"IF(DataLog!$C2286=\"Log value\",DataLog!AE2286,\"\")","v":""},{"$f":"IF(DataLog!$C2286=\"Log value\",DataLog!AF2286,\"\")","v":""},{"$f":"IF(DataLog!$C2286=\"Log value\",DataLog!AG2286,\"\")","v":""},{"$f":"IF(DataLog!$C2286=\"Log value\",DataLog!AH2286,\"\")","v":""},{"$f":"IF(DataLog!$C2286=\"Log value\",DataLog!AI2286,\"\")","v":""},{"$f":"IF(DataLog!$C2286=\"Log value\",DataLog!AJ2286,\"\")","v":""},{"$f":"IF(DataLog!$C2286=\"Log value\",DataLog!AK2286,\"\")","v":""},{"$f":"IF(DataLog!$C2286=\"Log value\",DataLog!AL2286,\"\")","v":""},{"$f":"IF(DataLog!$C2286=\"Log value\",DataLog!AM2286,\"\")","v":""}]
[null,null,null,null,null,null,{"$f":"IF(DataLog!$C2289=\"Log value\",DataLog!D2289&\"_\"&TEXT(DataLog!B2289,\"åååå-mm-dd\"),\"\")","v":""},{"$f":"IF(DataLog!$C2289=\"Log value\",DataLog!E2289,\"\")","v":""},{"$f":"IF(DataLog!$C2289=\"Log value\",DataLog!F2289,\"\")","v":""},{"$f":"IF(DataLog!$C2289=\"Log value\",DataLog!G2289,\"\")","v":""},{"$f":"IF(DataLog!$C2289=\"Log value\",DataLog!H2289,\"\")","v":""},{"$f":"IF(DataLog!$C2289=\"Log value\",DataLog!I2289,\"\")","v":""},{"$f":"IF(DataLog!$C2289=\"Log value\",DataLog!J2289,\"\")","v":""},{"$f":"IF(DataLog!$C2289=\"Log value\",DataLog!K2289,\"\")","v":""},{"$f":"IF(DataLog!$C2289=\"Log value\",DataLog!L2289,\"\")","v":""},{"$f":"IF(DataLog!$C2289=\"Log value\",DataLog!M2289,\"\")","v":""},{"$f":"IF(DataLog!$C2289=\"Log value\",DataLog!N2289,\"\")","v":""},{"$f":"IF(DataLog!$C2289=\"Log value\",DataLog!O2289,\"\")","v":""},{"$f":"IF(DataLog!$C2289=\"Log value\",DataLog!P2289,\"\")","v":""},{"$f":"IF(DataLog!$C2289=\"Log value\",DataLog!Q2289,\"\")","v":""},{"$f":"IF(DataLog!$C2289=\"Log value\",DataLog!R2289,\"\")","v":""},{"$f":"IF(DataLog!$C2289=\"Log value\",DataLog!S2289,\"\")","v":""},{"$f":"IF(DataLog!$C2289=\"Log value\",DataLog!T2289,\"\")","v":""},{"$f":"IF(DataLog!$C2289=\"Log value\",DataLog!U2289,\"\")","v":""},{"$f":"IF(DataLog!$C2289=\"Log value\",DataLog!V2289,\"\")","v":""},{"$f":"IF(DataLog!$C2289=\"Log value\",DataLog!W2289,\"\")","v":""},{"$f":"IF(DataLog!$C2289=\"Log value\",DataLog!X2289,\"\")","v":""},{"$f":"IF(DataLog!$C2289=\"Log value\",DataLog!Y2289,\"\")","v":""},{"$f":"IF(DataLog!$C2289=\"Log value\",DataLog!Z2289,\"\")","v":""},{"$f":"IF(DataLog!$C2289=\"Log value\",DataLog!AA2289,\"\")","v":""},{"$f":"IF(DataLog!$C2289=\"Log value\",DataLog!AB2289,\"\")","v":""},{"$f":"IF(DataLog!$C2289=\"Log value\",DataLog!AC2289,\"\")","v":""},{"$f":"IF(DataLog!$C2289=\"Log value\",DataLog!AD2289,\"\")","v":""},{"$f":"IF(DataLog!$C2289=\"Log value\",DataLog!AE2289,\"\")","v":""},{"$f":"IF(DataLog!$C2289=\"Log value\",DataLog!AF2289,\"\")","v":""},{"$f":"IF(DataLog!$C2289=\"Log value\",DataLog!AG2289,\"\")","v":""},{"$f":"IF(DataLog!$C2289=\"Log value\",DataLog!AH2289,\"\")","v":""},{"$f":"IF(DataLog!$C2289=\"Log value\",DataLog!AI2289,\"\")","v":""},{"$f":"IF(DataLog!$C2289=\"Log value\",DataLog!AJ2289,\"\")","v":""},{"$f":"IF(DataLog!$C2289=\"Log value\",DataLog!AK2289,\"\")","v":""},{"$f":"IF(DataLog!$C2289=\"Log value\",DataLog!AL2289,\"\")","v":""},{"$f":"IF(DataLog!$C2289=\"Log value\",DataLog!AM2289,\"\")","v":""}]
[null,null,null,null,null,null,{"$f":"IF(DataLog!$C2292=\"Log value\",DataLog!D2292&\"_\"&TEXT(DataLog!B2292,\"åååå-mm-dd\"),\"\")","v":""},{"$f":"IF(DataLog!$C2292=\"Log value\",DataLog!E2292,\"\")","v":""},{"$f":"IF(DataLog!$C2292=\"Log value\",DataLog!F2292,\"\")","v":""},{"$f":"IF(DataLog!$C2292=\"Log value\",DataLog!G2292,\"\")","v":""},{"$f":"IF(DataLog!$C2292=\"Log value\",DataLog!H2292,\"\")","v":""},{"$f":"IF(DataLog!$C2292=\"Log value\",DataLog!I2292,\"\")","v":""},{"$f":"IF(DataLog!$C2292=\"Log value\",DataLog!J2292,\"\")","v":""},{"$f":"IF(DataLog!$C2292=\"Log value\",DataLog!K2292,\"\")","v":""},{"$f":"IF(DataLog!$C2292=\"Log value\",DataLog!L2292,\"\")","v":""},{"$f":"IF(DataLog!$C2292=\"Log value\",DataLog!M2292,\"\")","v":""},{"$f":"IF(DataLog!$C2292=\"Log value\",DataLog!N2292,\"\")","v":""},{"$f":"IF(DataLog!$C2292=\"Log value\",DataLog!O2292,\"\")","v":""},{"$f":"IF(DataLog!$C2292=\"Log value\",DataLog!P2292,\"\")","v":""},{"$f":"IF(DataLog!$C2292=\"Log value\",DataLog!Q2292,\"\")","v":""},{"$f":"IF(DataLog!$C2292=\"Log value\",DataLog!R2292,\"\")","v":""},{"$f":"IF(DataLog!$C2292=\"Log value\",DataLog!S2292,\"\")","v":""},{"$f":"IF(DataLog!$C2292=\"Log value\",DataLog!T2292,\"\")","v":""},{"$f":"IF(DataLog!$C2292=\"Log value\",DataLog!U2292,\"\")","v":""},{"$f":"IF(DataLog!$C2292=\"Log value\",DataLog!V2292,\"\")","v":""},{"$f":"IF(DataLog!$C2292=\"Log value\",DataLog!W2292,\"\")","v":""},{"$f":"IF(DataLog!$C2292=\"Log value\",DataLog!X2292,\"\")","v":""},{"$f":"IF(DataLog!$C2292=\"Log value\",DataLog!Y2292,\"\")","v":""},{"$f":"IF(DataLog!$C2292=\"Log value\",DataLog!Z2292,\"\")","v":""},{"$f":"IF(DataLog!$C2292=\"Log value\",DataLog!AA2292,\"\")","v":""},{"$f":"IF(DataLog!$C2292=\"Log value\",DataLog!AB2292,\"\")","v":""},{"$f":"IF(DataLog!$C2292=\"Log value\",DataLog!AC2292,\"\")","v":""},{"$f":"IF(DataLog!$C2292=\"Log value\",DataLog!AD2292,\"\")","v":""},{"$f":"IF(DataLog!$C2292=\"Log value\",DataLog!AE2292,\"\")","v":""},{"$f":"IF(DataLog!$C2292=\"Log value\",DataLog!AF2292,\"\")","v":""},{"$f":"IF(DataLog!$C2292=\"Log value\",DataLog!AG2292,\"\")","v":""},{"$f":"IF(DataLog!$C2292=\"Log value\",DataLog!AH2292,\"\")","v":""},{"$f":"IF(DataLog!$C2292=\"Log value\",DataLog!AI2292,\"\")","v":""},{"$f":"IF(DataLog!$C2292=\"Log value\",DataLog!AJ2292,\"\")","v":""},{"$f":"IF(DataLog!$C2292=\"Log value\",DataLog!AK2292,\"\")","v":""},{"$f":"IF(DataLog!$C2292=\"Log value\",DataLog!AL2292,\"\")","v":""},{"$f":"IF(DataLog!$C2292=\"Log value\",DataLog!AM2292,\"\")","v":""}]
[null,null,null,null,null,null,{"$f":"IF(DataLog!$C2294=\"Log value\",DataLog!D2294&\"_\"&TEXT(DataLog!B2294,\"åååå-mm-dd\"),\"\")","v":""},{"$f":"IF(DataLog!$C2294=\"Log value\",DataLog!E2294,\"\")","v":""},{"$f":"IF(DataLog!$C2294=\"Log value\",DataLog!F2294,\"\")","v":""},{"$f":"IF(DataLog!$C2294=\"Log value\",DataLog!G2294,\"\")","v":""},{"$f":"IF(DataLog!$C2294=\"Log value\",DataLog!H2294,\"\")","v":""},{"$f":"IF(DataLog!$C2294=\"Log value\",DataLog!I2294,\"\")","v":""},{"$f":"IF(DataLog!$C2294=\"Log value\",DataLog!J2294,\"\")","v":""},{"$f":"IF(DataLog!$C2294=\"Log value\",DataLog!K2294,\"\")","v":""},{"$f":"IF(DataLog!$C2294=\"Log value\",DataLog!L2294,\"\")","v":""},{"$f":"IF(DataLog!$C2294=\"Log value\",DataLog!M2294,\"\")","v":""},{"$f":"IF(DataLog!$C2294=\"Log value\",DataLog!N2294,\"\")","v":""},{"$f":"IF(DataLog!$C2294=\"Log value\",DataLog!O2294,\"\")","v":""},{"$f":"IF(DataLog!$C2294=\"Log value\",DataLog!P2294,\"\")","v":""},{"$f":"IF(DataLog!$C2294=\"Log value\",DataLog!Q2294,\"\")","v":""},{"$f":"IF(DataLog!$C2294=\"Log value\",DataLog!R2294,\"\")","v":""},{"$f":"IF(DataLog!$C2294=\"Log value\",DataLog!S2294,\"\")","v":""},{"$f":"IF(DataLog!$C2294=\"Log value\",DataLog!T2294,\"\")","v":""},{"$f":"IF(DataLog!$C2294=\"Log value\",DataLog!U2294,\"\")","v":""},{"$f":"IF(DataLog!$C2294=\"Log value\",DataLog!V2294,\"\")","v":""},{"$f":"IF(DataLog!$C2294=\"Log value\",DataLog!W2294,\"\")","v":""},{"$f":"IF(DataLog!$C2294=\"Log value\",DataLog!X2294,\"\")","v":""},{"$f":"IF(DataLog!$C2294=\"Log value\",DataLog!Y2294,\"\")","v":""},{"$f":"IF(DataLog!$C2294=\"Log value\",DataLog!Z2294,\"\")","v":""},{"$f":"IF(DataLog!$C2294=\"Log value\",DataLog!AA2294,\"\")","v":""},{"$f":"IF(DataLog!$C2294=\"Log value\",DataLog!AB2294,\"\")","v":""},{"$f":"IF(DataLog!$C2294=\"Log value\",DataLog!AC2294,\"\")","v":""},{"$f":"IF(DataLog!$C2294=\"Log value\",DataLog!AD2294,\"\")","v":""},{"$f":"IF(DataLog!$C2294=\"Log value\",DataLog!AE2294,\"\")","v":""},{"$f":"IF(DataLog!$C2294=\"Log value\",DataLog!AF2294,\"\")","v":""},{"$f":"IF(DataLog!$C2294=\"Log value\",DataLog!AG2294,\"\")","v":""},{"$f":"IF(DataLog!$C2294=\"Log value\",DataLog!AH2294,\"\")","v":""},{"$f":"IF(DataLog!$C2294=\"Log value\",DataLog!AI2294,\"\")","v":""},{"$f":"IF(DataLog!$C2294=\"Log value\",DataLog!AJ2294,\"\")","v":""},{"$f":"IF(DataLog!$C2294=\"Log value\",DataLog!AK2294,\"\")","v":""},{"$f":"IF(DataLog!$C2294=\"Log value\",DataLog!AL2294,\"\")","v":""},{"$f":"IF(DataLog!$C2294=\"Log value\",DataLog!AM2294,\"\")","v":""}]
[null,null,null,null,null,null,{"$f":"IF(DataLog!$C2295=\"Log value\",DataLog!D2295&\"_\"&TEXT(DataLog!B2295,\"åååå-mm-dd\"),\"\")","v":""},{"$f":"IF(DataLog!$C2295=\"Log value\",DataLog!E2295,\"\")","v":""},{"$f":"IF(DataLog!$C2295=\"Log value\",DataLog!F2295,\"\")","v":""},{"$f":"IF(DataLog!$C2295=\"Log value\",DataLog!G2295,\"\")","v":""},{"$f":"IF(DataLog!$C2295=\"Log value\",DataLog!H2295,\"\")","v":""},{"$f":"IF(DataLog!$C2295=\"Log value\",DataLog!I2295,\"\")","v":""},{"$f":"IF(DataLog!$C2295=\"Log value\",DataLog!J2295,\"\")","v":""},{"$f":"IF(DataLog!$C2295=\"Log value\",DataLog!K2295,\"\")","v":""},{"$f":"IF(DataLog!$C2295=\"Log value\",DataLog!L2295,\"\")","v":""},{"$f":"IF(DataLog!$C2295=\"Log value\",DataLog!M2295,\"\")","v":""},{"$f":"IF(DataLog!$C2295=\"Log value\",DataLog!N2295,\"\")","v":""},{"$f":"IF(DataLog!$C2295=\"Log value\",DataLog!O2295,\"\")","v":""},{"$f":"IF(DataLog!$C2295=\"Log value\",DataLog!P2295,\"\")","v":""},{"$f":"IF(DataLog!$C2295=\"Log value\",DataLog!Q2295,\"\")","v":""},{"$f":"IF(DataLog!$C2295=\"Log value\",DataLog!R2295,\"\")","v":""},{"$f":"IF(DataLog!$C2295=\"Log value\",DataLog!S2295,\"\")","v":""},{"$f":"IF(DataLog!$C2295=\"Log value\",DataLog!T2295,\"\")","v":""},{"$f":"IF(DataLog!$C2295=\"Log value\",DataLog!U2295,\"\")","v":""},{"$f":"IF(DataLog!$C2295=\"Log value\",DataLog!V2295,\"\")","v":""},{"$f":"IF(DataLog!$C2295=\"Log value\",DataLog!W2295,\"\")","v":""},{"$f":"IF(DataLog!$C2295=\"Log value\",DataLog!X2295,\"\")","v":""},{"$f":"IF(DataLog!$C2295=\"Log value\",DataLog!Y2295,\"\")","v":""},{"$f":"IF(DataLog!$C2295=\"Log value\",DataLog!Z2295,\"\")","v":""},{"$f":"IF(DataLog!$C2295=\"Log value\",DataLog!AA2295,\"\")","v":""},{"$f":"IF(DataLog!$C2295=\"Log value\",DataLog!AB2295,\"\")","v":""},{"$f":"IF(DataLog!$C2295=\"Log value\",DataLog!AC2295,\"\")","v":""},{"$f":"IF(DataLog!$C2295=\"Log value\",DataLog!AD2295,\"\")","v":""},{"$f":"IF(DataLog!$C2295=\"Log value\",DataLog!AE2295,\"\")","v":""},{"$f":"IF(DataLog!$C2295=\"Log value\",DataLog!AF2295,\"\")","v":""},{"$f":"IF(DataLog!$C2295=\"Log value\",DataLog!AG2295,\"\")","v":""},{"$f":"IF(DataLog!$C2295=\"Log value\",DataLog!AH2295,\"\")","v":""},{"$f":"IF(DataLog!$C2295=\"Log value\",DataLog!AI2295,\"\")","v":""},{"$f":"IF(DataLog!$C2295=\"Log value\",DataLog!AJ2295,\"\")","v":""},{"$f":"IF(DataLog!$C2295=\"Log value\",DataLog!AK2295,\"\")","v":""},{"$f":"IF(DataLog!$C2295=\"Log value\",DataLog!AL2295,\"\")","v":""},{"$f":"IF(DataLog!$C2295=\"Log value\",DataLog!AM2295,\"\")","v":""}]
[null,null,null,null,null,null,{"$f":"IF(DataLog!$C2298=\"Log value\",DataLog!D2298&\"_\"&TEXT(DataLog!B2298,\"åååå-mm-dd\"),\"\")","v":""},{"$f":"IF(DataLog!$C2298=\"Log value\",DataLog!E2298,\"\")","v":""},{"$f":"IF(DataLog!$C2298=\"Log value\",DataLog!F2298,\"\")","v":""},{"$f":"IF(DataLog!$C2298=\"Log value\",DataLog!G2298,\"\")","v":""},{"$f":"IF(DataLog!$C2298=\"Log value\",DataLog!H2298,\"\")","v":""},{"$f":"IF(DataLog!$C2298=\"Log value\",DataLog!I2298,\"\")","v":""},{"$f":"IF(DataLog!$C2298=\"Log value\",DataLog!J2298,\"\")","v":""},{"$f":"IF(DataLog!$C2298=\"Log value\",DataLog!K2298,\"\")","v":""},{"$f":"IF(DataLog!$C2298=\"Log value\",DataLog!L2298,\"\")","v":""},{"$f":"IF(DataLog!$C2298=\"Log value\",DataLog!M2298,\"\")","v":""},{"$f":"IF(DataLog!$C2298=\"Log value\",DataLog!N2298,\"\")","v":""},{"$f":"IF(DataLog!$C2298=\"Log value\",DataLog!O2298,\"\")","v":""},{"$f":"IF(DataLog!$C2298=\"Log value\",DataLog!P2298,\"\")","v":""},{"$f":"IF(DataLog!$C2298=\"Log value\",DataLog!Q2298,\"\")","v":""},{"$f":"IF(DataLog!$C2298=\"Log value\",DataLog!R2298,\"\")","v":""},{"$f":"IF(DataLog!$C2298=\"Log value\",DataLog!S2298,\"\")","v":""},{"$f":"IF(DataLog!$C2298=\"Log value\",DataLog!T2298,\"\")","v":""},{"$f":"IF(DataLog!$C2298=\"Log value\",DataLog!U2298,\"\")","v":""},{"$f":"IF(DataLog!$C2298=\"Log value\",DataLog!V2298,\"\")","v":""},{"$f":"IF(DataLog!$C2298=\"Log value\",DataLog!W2298,\"\")","v":""},{"$f":"IF(DataLog!$C2298=\"Log value\",DataLog!X2298,\"\")","v":""},{"$f":"IF(DataLog!$C2298=\"Log value\",DataLog!Y2298,\"\")","v":""},{"$f":"IF(DataLog!$C2298=\"Log value\",DataLog!Z2298,\"\")","v":""},{"$f":"IF(DataLog!$C2298=\"Log value\",DataLog!AA2298,\"\")","v":""},{"$f":"IF(DataLog!$C2298=\"Log value\",DataLog!AB2298,\"\")","v":""},{"$f":"IF(DataLog!$C2298=\"Log value\",DataLog!AC2298,\"\")","v":""},{"$f":"IF(DataLog!$C2298=\"Log value\",DataLog!AD2298,\"\")","v":""},{"$f":"IF(DataLog!$C2298=\"Log value\",DataLog!AE2298,\"\")","v":""},{"$f":"IF(DataLog!$C2298=\"Log value\",DataLog!AF2298,\"\")","v":""},{"$f":"IF(DataLog!$C2298=\"Log value\",DataLog!AG2298,\"\")","v":""},{"$f":"IF(DataLog!$C2298=\"Log value\",DataLog!AH2298,\"\")","v":""},{"$f":"IF(DataLog!$C2298=\"Log value\",DataLog!AI2298,\"\")","v":""},{"$f":"IF(DataLog!$C2298=\"Log value\",DataLog!AJ2298,\"\")","v":""},{"$f":"IF(DataLog!$C2298=\"Log value\",DataLog!AK2298,\"\")","v":""},{"$f":"IF(DataLog!$C2298=\"Log value\",DataLog!AL2298,\"\")","v":""},{"$f":"IF(DataLog!$C2298=\"Log value\",DataLog!AM2298,\"\")","v":""}]
[null,null,null,null,null,null,{"$f":"IF(DataLog!$C2299=\"Log value\",DataLog!D2299&\"_\"&TEXT(DataLog!B2299,\"åååå-mm-dd\"),\"\")","v":""},{"$f":"IF(DataLog!$C2299=\"Log value\",DataLog!E2299,\"\")","v":""},{"$f":"IF(DataLog!$C2299=\"Log value\",DataLog!F2299,\"\")","v":""},{"$f":"IF(DataLog!$C2299=\"Log value\",DataLog!G2299,\"\")","v":""},{"$f":"IF(DataLog!$C2299=\"Log value\",DataLog!H2299,\"\")","v":""},{"$f":"IF(DataLog!$C2299=\"Log value\",DataLog!I2299,\"\")","v":""},{"$f":"IF(DataLog!$C2299=\"Log value\",DataLog!J2299,\"\")","v":""},{"$f":"IF(DataLog!$C2299=\"Log value\",DataLog!K2299,\"\")","v":""},{"$f":"IF(DataLog!$C2299=\"Log value\",DataLog!L2299,\"\")","v":""},{"$f":"IF(DataLog!$C2299=\"Log value\",DataLog!M2299,\"\")","v":""},{"$f":"IF(DataLog!$C2299=\"Log value\",DataLog!N2299,\"\")","v":""},{"$f":"IF(DataLog!$C2299=\"Log value\",DataLog!O2299,\"\")","v":""},{"$f":"IF(DataLog!$C2299=\"Log value\",DataLog!P2299,\"\")","v":""},{"$f":"IF(DataLog!$C2299=\"Log value\",DataLog!Q2299,\"\")","v":""},{"$f":"IF(DataLog!$C2299=\"Log value\",DataLog!R2299,\"\")","v":""},{"$f":"IF(DataLog!$C2299=\"Log value\",DataLog!S2299,\"\")","v":""},{"$f":"IF(DataLog!$C2299=\"Log value\",DataLog!T2299,\"\")","v":""},{"$f":"IF(DataLog!$C2299=\"Log value\",DataLog!U2299,\"\")","v":""},{"$f":"IF(DataLog!$C2299=\"Log value\",DataLog!V2299,\"\")","v":""},{"$f":"IF(DataLog!$C2299=\"Log value\",DataLog!W2299,\"\")","v":""},{"$f":"IF(DataLog!$C2299=\"Log value\",DataLog!X2299,\"\")","v":""},{"$f":"IF(DataLog!$C2299=\"Log value\",DataLog!Y2299,\"\")","v":""},{"$f":"IF(DataLog!$C2299=\"Log value\",DataLog!Z2299,\"\")","v":""},{"$f":"IF(DataLog!$C2299=\"Log value\",DataLog!AA2299,\"\")","v":""},{"$f":"IF(DataLog!$C2299=\"Log value\",DataLog!AB2299,\"\")","v":""},{"$f":"IF(DataLog!$C2299=\"Log value\",DataLog!AC2299,\"\")","v":""},{"$f":"IF(DataLog!$C2299=\"Log value\",DataLog!AD2299,\"\")","v":""},{"$f":"IF(DataLog!$C2299=\"Log value\",DataLog!AE2299,\"\")","v":""},{"$f":"IF(DataLog!$C2299=\"Log value\",DataLog!AF2299,\"\")","v":""},{"$f":"IF(DataLog!$C2299=\"Log value\",DataLog!AG2299,\"\")","v":""},{"$f":"IF(DataLog!$C2299=\"Log value\",DataLog!AH2299,\"\")","v":""},{"$f":"IF(DataLog!$C2299=\"Log value\",DataLog!AI2299,\"\")","v":""},{"$f":"IF(DataLog!$C2299=\"Log value\",DataLog!AJ2299,\"\")","v":""},{"$f":"IF(DataLog!$C2299=\"Log value\",DataLog!AK2299,\"\")","v":""},{"$f":"IF(DataLog!$C2299=\"Log value\",DataLog!AL2299,\"\")","v":""},{"$f":"IF(DataLog!$C2299=\"Log value\",DataLog!AM2299,\"\")","v":""}]
[null,null,null,null,null,null,{"$f":"IF(DataLog!$C2303=\"Log value\",DataLog!D2303&\"_\"&TEXT(DataLog!B2303,\"åååå-mm-dd\"),\"\")","v":""},{"$f":"IF(DataLog!$C2303=\"Log value\",DataLog!E2303,\"\")","v":""},{"$f":"IF(DataLog!$C2303=\"Log value\",DataLog!F2303,\"\")","v":""},{"$f":"IF(DataLog!$C2303=\"Log value\",DataLog!G2303,\"\")","v":""},{"$f":"IF(DataLog!$C2303=\"Log value\",DataLog!H2303,\"\")","v":""},{"$f":"IF(DataLog!$C2303=\"Log value\",DataLog!I2303,\"\")","v":""},{"$f":"IF(DataLog!$C2303=\"Log value\",DataLog!J2303,\"\")","v":""},{"$f":"IF(DataLog!$C2303=\"Log value\",DataLog!K2303,\"\")","v":""},{"$f":"IF(DataLog!$C2303=\"Log value\",DataLog!L2303,\"\")","v":""},{"$f":"IF(DataLog!$C2303=\"Log value\",DataLog!M2303,\"\")","v":""},{"$f":"IF(DataLog!$C2303=\"Log value\",DataLog!N2303,\"\")","v":""},{"$f":"IF(DataLog!$C2303=\"Log value\",DataLog!O2303,\"\")","v":""},{"$f":"IF(DataLog!$C2303=\"Log value\",DataLog!P2303,\"\")","v":""},{"$f":"IF(DataLog!$C2303=\"Log value\",DataLog!Q2303,\"\")","v":""},{"$f":"IF(DataLog!$C2303=\"Log value\",DataLog!R2303,\"\")","v":""},{"$f":"IF(DataLog!$C2303=\"Log value\",DataLog!S2303,\"\")","v":""},{"$f":"IF(DataLog!$C2303=\"Log value\",DataLog!T2303,\"\")","v":""},{"$f":"IF(DataLog!$C2303=\"Log value\",DataLog!U2303,\"\")","v":""},{"$f":"IF(DataLog!$C2303=\"Log value\",DataLog!V2303,\"\")","v":""},{"$f":"IF(DataLog!$C2303=\"Log value\",DataLog!W2303,\"\")","v":""},{"$f":"IF(DataLog!$C2303=\"Log value\",DataLog!X2303,\"\")","v":""},{"$f":"IF(DataLog!$C2303=\"Log value\",DataLog!Y2303,\"\")","v":""},{"$f":"IF(DataLog!$C2303=\"Log value\",DataLog!Z2303,\"\")","v":""},{"$f":"IF(DataLog!$C2303=\"Log value\",DataLog!AA2303,\"\")","v":""},{"$f":"IF(DataLog!$C2303=\"Log value\",DataLog!AB2303,\"\")","v":""},{"$f":"IF(DataLog!$C2303=\"Log value\",DataLog!AC2303,\"\")","v":""},{"$f":"IF(DataLog!$C2303=\"Log value\",DataLog!AD2303,\"\")","v":""},{"$f":"IF(DataLog!$C2303=\"Log value\",DataLog!AE2303,\"\")","v":""},{"$f":"IF(DataLog!$C2303=\"Log value\",DataLog!AF2303,\"\")","v":""},{"$f":"IF(DataLog!$C2303=\"Log value\",DataLog!AG2303,\"\")","v":""},{"$f":"IF(DataLog!$C2303=\"Log value\",DataLog!AH2303,\"\")","v":""},{"$f":"IF(DataLog!$C2303=\"Log value\",DataLog!AI2303,\"\")","v":""},{"$f":"IF(DataLog!$C2303=\"Log value\",DataLog!AJ2303,\"\")","v":""},{"$f":"IF(DataLog!$C2303=\"Log value\",DataLog!AK2303,\"\")","v":""},{"$f":"IF(DataLog!$C2303=\"Log value\",DataLog!AL2303,\"\")","v":""},{"$f":"IF(DataLog!$C2303=\"Log value\",DataLog!AM2303,\"\")","v":""}]
[null,null,null,null,null,null,{"$f":"IF(DataLog!$C2304=\"Log value\",DataLog!D2304&\"_\"&TEXT(DataLog!B2304,\"åååå-mm-dd\"),\"\")","v":""},{"$f":"IF(DataLog!$C2304=\"Log value\",DataLog!E2304,\"\")","v":""},{"$f":"IF(DataLog!$C2304=\"Log value\",DataLog!F2304,\"\")","v":""},{"$f":"IF(DataLog!$C2304=\"Log value\",DataLog!G2304,\"\")","v":""},{"$f":"IF(DataLog!$C2304=\"Log value\",DataLog!H2304,\"\")","v":""},{"$f":"IF(DataLog!$C2304=\"Log value\",DataLog!I2304,\"\")","v":""},{"$f":"IF(DataLog!$C2304=\"Log value\",DataLog!J2304,\"\")","v":""},{"$f":"IF(DataLog!$C2304=\"Log value\",DataLog!K2304,\"\")","v":""},{"$f":"IF(DataLog!$C2304=\"Log value\",DataLog!L2304,\"\")","v":""},{"$f":"IF(DataLog!$C2304=\"Log value\",DataLog!M2304,\"\")","v":""},{"$f":"IF(DataLog!$C2304=\"Log value\",DataLog!N2304,\"\")","v":""},{"$f":"IF(DataLog!$C2304=\"Log value\",DataLog!O2304,\"\")","v":""},{"$f":"IF(DataLog!$C2304=\"Log value\",DataLog!P2304,\"\")","v":""},{"$f":"IF(DataLog!$C2304=\"Log value\",DataLog!Q2304,\"\")","v":""},{"$f":"IF(DataLog!$C2304=\"Log value\",DataLog!R2304,\"\")","v":""},{"$f":"IF(DataLog!$C2304=\"Log value\",DataLog!S2304,\"\")","v":""},{"$f":"IF(DataLog!$C2304=\"Log value\",DataLog!T2304,\"\")","v":""},{"$f":"IF(DataLog!$C2304=\"Log value\",DataLog!U2304,\"\")","v":""},{"$f":"IF(DataLog!$C2304=\"Log value\",DataLog!V2304,\"\")","v":""},{"$f":"IF(DataLog!$C2304=\"Log value\",DataLog!W2304,\"\")","v":""},{"$f":"IF(DataLog!$C2304=\"Log value\",DataLog!X2304,\"\")","v":""},{"$f":"IF(DataLog!$C2304=\"Log value\",DataLog!Y2304,\"\")","v":""},{"$f":"IF(DataLog!$C2304=\"Log value\",DataLog!Z2304,\"\")","v":""},{"$f":"IF(DataLog!$C2304=\"Log value\",DataLog!AA2304,\"\")","v":""},{"$f":"IF(DataLog!$C2304=\"Log value\",DataLog!AB2304,\"\")","v":""},{"$f":"IF(DataLog!$C2304=\"Log value\",DataLog!AC2304,\"\")","v":""},{"$f":"IF(DataLog!$C2304=\"Log value\",DataLog!AD2304,\"\")","v":""},{"$f":"IF(DataLog!$C2304=\"Log value\",DataLog!AE2304,\"\")","v":""},{"$f":"IF(DataLog!$C2304=\"Log value\",DataLog!AF2304,\"\")","v":""},{"$f":"IF(DataLog!$C2304=\"Log value\",DataLog!AG2304,\"\")","v":""},{"$f":"IF(DataLog!$C2304=\"Log value\",DataLog!AH2304,\"\")","v":""},{"$f":"IF(DataLog!$C2304=\"Log value\",DataLog!AI2304,\"\")","v":""},{"$f":"IF(DataLog!$C2304=\"Log value\",DataLog!AJ2304,\"\")","v":""},{"$f":"IF(DataLog!$C2304=\"Log value\",DataLog!AK2304,\"\")","v":""},{"$f":"IF(DataLog!$C2304=\"Log value\",DataLog!AL2304,\"\")","v":""},{"$f":"IF(DataLog!$C2304=\"Log value\",DataLog!AM2304,\"\")","v":""}]
[null,null,null,null,null,null,{"$f":"IF(DataLog!$C2307=\"Log value\",DataLog!D2307&\"_\"&TEXT(DataLog!B2307,\"åååå-mm-dd\"),\"\")","v":""},{"$f":"IF(DataLog!$C2307=\"Log value\",DataLog!E2307,\"\")","v":""},{"$f":"IF(DataLog!$C2307=\"Log value\",DataLog!F2307,\"\")","v":""},{"$f":"IF(DataLog!$C2307=\"Log value\",DataLog!G2307,\"\")","v":""},{"$f":"IF(DataLog!$C2307=\"Log value\",DataLog!H2307,\"\")","v":""},{"$f":"IF(DataLog!$C2307=\"Log value\",DataLog!I2307,\"\")","v":""},{"$f":"IF(DataLog!$C2307=\"Log value\",DataLog!J2307,\"\")","v":""},{"$f":"IF(DataLog!$C2307=\"Log value\",DataLog!K2307,\"\")","v":""},{"$f":"IF(DataLog!$C2307=\"Log value\",DataLog!L2307,\"\")","v":""},{"$f":"IF(DataLog!$C2307=\"Log value\",DataLog!M2307,\"\")","v":""},{"$f":"IF(DataLog!$C2307=\"Log value\",DataLog!N2307,\"\")","v":""},{"$f":"IF(DataLog!$C2307=\"Log value\",DataLog!O2307,\"\")","v":""},{"$f":"IF(DataLog!$C2307=\"Log value\",DataLog!P2307,\"\")","v":""},{"$f":"IF(DataLog!$C2307=\"Log value\",DataLog!Q2307,\"\")","v":""},{"$f":"IF(DataLog!$C2307=\"Log value\",DataLog!R2307,\"\")","v":""},{"$f":"IF(DataLog!$C2307=\"Log value\",DataLog!S2307,\"\")","v":""},{"$f":"IF(DataLog!$C2307=\"Log value\",DataLog!T2307,\"\")","v":""},{"$f":"IF(DataLog!$C2307=\"Log value\",DataLog!U2307,\"\")","v":""},{"$f":"IF(DataLog!$C2307=\"Log value\",DataLog!V2307,\"\")","v":""},{"$f":"IF(DataLog!$C2307=\"Log value\",DataLog!W2307,\"\")","v":""},{"$f":"IF(DataLog!$C2307=\"Log value\",DataLog!X2307,\"\")","v":""},{"$f":"IF(DataLog!$C2307=\"Log value\",DataLog!Y2307,\"\")","v":""},{"$f":"IF(DataLog!$C2307=\"Log value\",DataLog!Z2307,\"\")","v":""},{"$f":"IF(DataLog!$C2307=\"Log value\",DataLog!AA2307,\"\")","v":""},{"$f":"IF(DataLog!$C2307=\"Log value\",DataLog!AB2307,\"\")","v":""},{"$f":"IF(DataLog!$C2307=\"Log value\",DataLog!AC2307,\"\")","v":""},{"$f":"IF(DataLog!$C2307=\"Log value\",DataLog!AD2307,\"\")","v":""},{"$f":"IF(DataLog!$C2307=\"Log value\",DataLog!AE2307,\"\")","v":""},{"$f":"IF(DataLog!$C2307=\"Log value\",DataLog!AF2307,\"\")","v":""},{"$f":"IF(DataLog!$C2307=\"Log value\",DataLog!AG2307,\"\")","v":""},{"$f":"IF(DataLog!$C2307=\"Log value\",DataLog!AH2307,\"\")","v":""},{"$f":"IF(DataLog!$C2307=\"Log value\",DataLog!AI2307,\"\")","v":""},{"$f":"IF(DataLog!$C2307=\"Log value\",DataLog!AJ2307,\"\")","v":""},{"$f":"IF(DataLog!$C2307=\"Log value\",DataLog!AK2307,\"\")","v":""},{"$f":"IF(DataLog!$C2307=\"Log value\",DataLog!AL2307,\"\")","v":""},{"$f":"IF(DataLog!$C2307=\"Log value\",DataLog!AM2307,\"\")","v":""}]
[null,null,null,null,null,null,{"$f":"IF(DataLog!$C2310=\"Log value\",DataLog!D2310&\"_\"&TEXT(DataLog!B2310,\"åååå-mm-dd\"),\"\")","v":""},{"$f":"IF(DataLog!$C2310=\"Log value\",DataLog!E2310,\"\")","v":""},{"$f":"IF(DataLog!$C2310=\"Log value\",DataLog!F2310,\"\")","v":""},{"$f":"IF(DataLog!$C2310=\"Log value\",DataLog!G2310,\"\")","v":""},{"$f":"IF(DataLog!$C2310=\"Log value\",DataLog!H2310,\"\")","v":""},{"$f":"IF(DataLog!$C2310=\"Log value\",DataLog!I2310,\"\")","v":""},{"$f":"IF(DataLog!$C2310=\"Log value\",DataLog!J2310,\"\")","v":""},{"$f":"IF(DataLog!$C2310=\"Log value\",DataLog!K2310,\"\")","v":""},{"$f":"IF(DataLog!$C2310=\"Log value\",DataLog!L2310,\"\")","v":""},{"$f":"IF(DataLog!$C2310=\"Log value\",DataLog!M2310,\"\")","v":""},{"$f":"IF(DataLog!$C2310=\"Log value\",DataLog!N2310,\"\")","v":""},{"$f":"IF(DataLog!$C2310=\"Log value\",DataLog!O2310,\"\")","v":""},{"$f":"IF(DataLog!$C2310=\"Log value\",DataLog!P2310,\"\")","v":""},{"$f":"IF(DataLog!$C2310=\"Log value\",DataLog!Q2310,\"\")","v":""},{"$f":"IF(DataLog!$C2310=\"Log value\",DataLog!R2310,\"\")","v":""},{"$f":"IF(DataLog!$C2310=\"Log value\",DataLog!S2310,\"\")","v":""},{"$f":"IF(DataLog!$C2310=\"Log value\",DataLog!T2310,\"\")","v":""},{"$f":"IF(DataLog!$C2310=\"Log value\",DataLog!U2310,\"\")","v":""},{"$f":"IF(DataLog!$C2310=\"Log value\",DataLog!V2310,\"\")","v":""},{"$f":"IF(DataLog!$C2310=\"Log value\",DataLog!W2310,\"\")","v":""},{"$f":"IF(DataLog!$C2310=\"Log value\",DataLog!X2310,\"\")","v":""},{"$f":"IF(DataLog!$C2310=\"Log value\",DataLog!Y2310,\"\")","v":""},{"$f":"IF(DataLog!$C2310=\"Log value\",DataLog!Z2310,\"\")","v":""},{"$f":"IF(DataLog!$C2310=\"Log value\",DataLog!AA2310,\"\")","v":""},{"$f":"IF(DataLog!$C2310=\"Log value\",DataLog!AB2310,\"\")","v":""},{"$f":"IF(DataLog!$C2310=\"Log value\",DataLog!AC2310,\"\")","v":""},{"$f":"IF(DataLog!$C2310=\"Log value\",DataLog!AD2310,\"\")","v":""},{"$f":"IF(DataLog!$C2310=\"Log value\",DataLog!AE2310,\"\")","v":""},{"$f":"IF(DataLog!$C2310=\"Log value\",DataLog!AF2310,\"\")","v":""},{"$f":"IF(DataLog!$C2310=\"Log value\",DataLog!AG2310,\"\")","v":""},{"$f":"IF(DataLog!$C2310=\"Log value\",DataLog!AH2310,\"\")","v":""},{"$f":"IF(DataLog!$C2310=\"Log value\",DataLog!AI2310,\"\")","v":""},{"$f":"IF(DataLog!$C2310=\"Log value\",DataLog!AJ2310,\"\")","v":""},{"$f":"IF(DataLog!$C2310=\"Log value\",DataLog!AK2310,\"\")","v":""},{"$f":"IF(DataLog!$C2310=\"Log value\",DataLog!AL2310,\"\")","v":""},{"$f":"IF(DataLog!$C2310=\"Log value\",DataLog!AM2310,\"\")","v":""}]
[null,null,null,null,null,null,{"$f":"IF(DataLog!$C2312=\"Log value\",DataLog!D2312&\"_\"&TEXT(DataLog!B2312,\"åååå-mm-dd\"),\"\")","v":""},{"$f":"IF(DataLog!$C2312=\"Log value\",DataLog!E2312,\"\")","v":""},{"$f":"IF(DataLog!$C2312=\"Log value\",DataLog!F2312,\"\")","v":""},{"$f":"IF(DataLog!$C2312=\"Log value\",DataLog!G2312,\"\")","v":""},{"$f":"IF(DataLog!$C2312=\"Log value\",DataLog!H2312,\"\")","v":""},{"$f":"IF(DataLog!$C2312=\"Log value\",DataLog!I2312,\"\")","v":""},{"$f":"IF(DataLog!$C2312=\"Log value\",DataLog!J2312,\"\")","v":""},{"$f":"IF(DataLog!$C2312=\"Log value\",DataLog!K2312,\"\")","v":""},{"$f":"IF(DataLog!$C2312=\"Log value\",DataLog!L2312,\"\")","v":""},{"$f":"IF(DataLog!$C2312=\"Log value\",DataLog!M2312,\"\")","v":""},{"$f":"IF(DataLog!$C2312=\"Log value\",DataLog!N2312,\"\")","v":""},{"$f":"IF(DataLog!$C2312=\"Log value\",DataLog!O2312,\"\")","v":""},{"$f":"IF(DataLog!$C2312=\"Log value\",DataLog!P2312,\"\")","v":""},{"$f":"IF(DataLog!$C2312=\"Log value\",DataLog!Q2312,\"\")","v":""},{"$f":"IF(DataLog!$C2312=\"Log value\",DataLog!R2312,\"\")","v":""},{"$f":"IF(DataLog!$C2312=\"Log value\",DataLog!S2312,\"\")","v":""},{"$f":"IF(DataLog!$C2312=\"Log value\",DataLog!T2312,\"\")","v":""},{"$f":"IF(DataLog!$C2312=\"Log value\",DataLog!U2312,\"\")","v":""},{"$f":"IF(DataLog!$C2312=\"Log value\",DataLog!V2312,\"\")","v":""},{"$f":"IF(DataLog!$C2312=\"Log value\",DataLog!W2312,\"\")","v":""},{"$f":"IF(DataLog!$C2312=\"Log value\",DataLog!X2312,\"\")","v":""},{"$f":"IF(DataLog!$C2312=\"Log value\",DataLog!Y2312,\"\")","v":""},{"$f":"IF(DataLog!$C2312=\"Log value\",DataLog!Z2312,\"\")","v":""},{"$f":"IF(DataLog!$C2312=\"Log value\",DataLog!AA2312,\"\")","v":""},{"$f":"IF(DataLog!$C2312=\"Log value\",DataLog!AB2312,\"\")","v":""},{"$f":"IF(DataLog!$C2312=\"Log value\",DataLog!AC2312,\"\")","v":""},{"$f":"IF(DataLog!$C2312=\"Log value\",DataLog!AD2312,\"\")","v":""},{"$f":"IF(DataLog!$C2312=\"Log value\",DataLog!AE2312,\"\")","v":""},{"$f":"IF(DataLog!$C2312=\"Log value\",DataLog!AF2312,\"\")","v":""},{"$f":"IF(DataLog!$C2312=\"Log value\",DataLog!AG2312,\"\")","v":""},{"$f":"IF(DataLog!$C2312=\"Log value\",DataLog!AH2312,\"\")","v":""},{"$f":"IF(DataLog!$C2312=\"Log value\",DataLog!AI2312,\"\")","v":""},{"$f":"IF(DataLog!$C2312=\"Log value\",DataLog!AJ2312,\"\")","v":""},{"$f":"IF(DataLog!$C2312=\"Log value\",DataLog!AK2312,\"\")","v":""},{"$f":"IF(DataLog!$C2312=\"Log value\",DataLog!AL2312,\"\")","v":""},{"$f":"IF(DataLog!$C2312=\"Log value\",DataLog!AM2312,\"\")","v":""}]
[null,null,null,null,null,null,{"$f":"IF(DataLog!$C2313=\"Log value\",DataLog!D2313&\"_\"&TEXT(DataLog!B2313,\"åååå-mm-dd\"),\"\")","v":""},{"$f":"IF(DataLog!$C2313=\"Log value\",DataLog!E2313,\"\")","v":""},{"$f":"IF(DataLog!$C2313=\"Log value\",DataLog!F2313,\"\")","v":""},{"$f":"IF(DataLog!$C2313=\"Log value\",DataLog!G2313,\"\")","v":""},{"$f":"IF(DataLog!$C2313=\"Log value\",DataLog!H2313,\"\")","v":""},{"$f":"IF(DataLog!$C2313=\"Log value\",DataLog!I2313,\"\")","v":""},{"$f":"IF(DataLog!$C2313=\"Log value\",DataLog!J2313,\"\")","v":""},{"$f":"IF(DataLog!$C2313=\"Log value\",DataLog!K2313,\"\")","v":""},{"$f":"IF(DataLog!$C2313=\"Log value\",DataLog!L2313,\"\")","v":""},{"$f":"IF(DataLog!$C2313=\"Log value\",DataLog!M2313,\"\")","v":""},{"$f":"IF(DataLog!$C2313=\"Log value\",DataLog!N2313,\"\")","v":""},{"$f":"IF(DataLog!$C2313=\"Log value\",DataLog!O2313,\"\")","v":""},{"$f":"IF(DataLog!$C2313=\"Log value\",DataLog!P2313,\"\")","v":""},{"$f":"IF(DataLog!$C2313=\"Log value\",DataLog!Q2313,\"\")","v":""},{"$f":"IF(DataLog!$C2313=\"Log value\",DataLog!R2313,\"\")","v":""},{"$f":"IF(DataLog!$C2313=\"Log value\",DataLog!S2313,\"\")","v":""},{"$f":"IF(DataLog!$C2313=\"Log value\",DataLog!T2313,\"\")","v":""},{"$f":"IF(DataLog!$C2313=\"Log value\",DataLog!U2313,\"\")","v":""},{"$f":"IF(DataLog!$C2313=\"Log value\",DataLog!V2313,\"\")","v":""},{"$f":"IF(DataLog!$C2313=\"Log value\",DataLog!W2313,\"\")","v":""},{"$f":"IF(DataLog!$C2313=\"Log value\",DataLog!X2313,\"\")","v":""},{"$f":"IF(DataLog!$C2313=\"Log value\",DataLog!Y2313,\"\")","v":""},{"$f":"IF(DataLog!$C2313=\"Log value\",DataLog!Z2313,\"\")","v":""},{"$f":"IF(DataLog!$C2313=\"Log value\",DataLog!AA2313,\"\")","v":""},{"$f":"IF(DataLog!$C2313=\"Log value\",DataLog!AB2313,\"\")","v":""},{"$f":"IF(DataLog!$C2313=\"Log value\",DataLog!AC2313,\"\")","v":""},{"$f":"IF(DataLog!$C2313=\"Log value\",DataLog!AD2313,\"\")","v":""},{"$f":"IF(DataLog!$C2313=\"Log value\",DataLog!AE2313,\"\")","v":""},{"$f":"IF(DataLog!$C2313=\"Log value\",DataLog!AF2313,\"\")","v":""},{"$f":"IF(DataLog!$C2313=\"Log value\",DataLog!AG2313,\"\")","v":""},{"$f":"IF(DataLog!$C2313=\"Log value\",DataLog!AH2313,\"\")","v":""},{"$f":"IF(DataLog!$C2313=\"Log value\",DataLog!AI2313,\"\")","v":""},{"$f":"IF(DataLog!$C2313=\"Log value\",DataLog!AJ2313,\"\")","v":""},{"$f":"IF(DataLog!$C2313=\"Log value\",DataLog!AK2313,\"\")","v":""},{"$f":"IF(DataLog!$C2313=\"Log value\",DataLog!AL2313,\"\")","v":""},{"$f":"IF(DataLog!$C2313=\"Log value\",DataLog!AM2313,\"\")","v":""}]
[null,null,null,null,null,null,{"$f":"IF(DataLog!$C2315=\"Log value\",DataLog!D2315&\"_\"&TEXT(DataLog!B2315,\"åååå-mm-dd\"),\"\")","v":""},{"$f":"IF(DataLog!$C2315=\"Log value\",DataLog!E2315,\"\")","v":""},{"$f":"IF(DataLog!$C2315=\"Log value\",DataLog!F2315,\"\")","v":""},{"$f":"IF(DataLog!$C2315=\"Log value\",DataLog!G2315,\"\")","v":""},{"$f":"IF(DataLog!$C2315=\"Log value\",DataLog!H2315,\"\")","v":""},{"$f":"IF(DataLog!$C2315=\"Log value\",DataLog!I2315,\"\")","v":""},{"$f":"IF(DataLog!$C2315=\"Log value\",DataLog!J2315,\"\")","v":""},{"$f":"IF(DataLog!$C2315=\"Log value\",DataLog!K2315,\"\")","v":""},{"$f":"IF(DataLog!$C2315=\"Log value\",DataLog!L2315,\"\")","v":""},{"$f":"IF(DataLog!$C2315=\"Log value\",DataLog!M2315,\"\")","v":""},{"$f":"IF(DataLog!$C2315=\"Log value\",DataLog!N2315,\"\")","v":""},{"$f":"IF(DataLog!$C2315=\"Log value\",DataLog!O2315,\"\")","v":""},{"$f":"IF(DataLog!$C2315=\"Log value\",DataLog!P2315,\"\")","v":""},{"$f":"IF(DataLog!$C2315=\"Log value\",DataLog!Q2315,\"\")","v":""},{"$f":"IF(DataLog!$C2315=\"Log value\",DataLog!R2315,\"\")","v":""},{"$f":"IF(DataLog!$C2315=\"Log value\",DataLog!S2315,\"\")","v":""},{"$f":"IF(DataLog!$C2315=\"Log value\",DataLog!T2315,\"\")","v":""},{"$f":"IF(DataLog!$C2315=\"Log value\",DataLog!U2315,\"\")","v":""},{"$f":"IF(DataLog!$C2315=\"Log value\",DataLog!V2315,\"\")","v":""},{"$f":"IF(DataLog!$C2315=\"Log value\",DataLog!W2315,\"\")","v":""},{"$f":"IF(DataLog!$C2315=\"Log value\",DataLog!X2315,\"\")","v":""},{"$f":"IF(DataLog!$C2315=\"Log value\",DataLog!Y2315,\"\")","v":""},{"$f":"IF(DataLog!$C2315=\"Log value\",DataLog!Z2315,\"\")","v":""},{"$f":"IF(DataLog!$C2315=\"Log value\",DataLog!AA2315,\"\")","v":""},{"$f":"IF(DataLog!$C2315=\"Log value\",DataLog!AB2315,\"\")","v":""},{"$f":"IF(DataLog!$C2315=\"Log value\",DataLog!AC2315,\"\")","v":""},{"$f":"IF(DataLog!$C2315=\"Log value\",DataLog!AD2315,\"\")","v":""},{"$f":"IF(DataLog!$C2315=\"Log value\",DataLog!AE2315,\"\")","v":""},{"$f":"IF(DataLog!$C2315=\"Log value\",DataLog!AF2315,\"\")","v":""},{"$f":"IF(DataLog!$C2315=\"Log value\",DataLog!AG2315,\"\")","v":""},{"$f":"IF(DataLog!$C2315=\"Log value\",DataLog!AH2315,\"\")","v":""},{"$f":"IF(DataLog!$C2315=\"Log value\",DataLog!AI2315,\"\")","v":""},{"$f":"IF(DataLog!$C2315=\"Log value\",DataLog!AJ2315,\"\")","v":""},{"$f":"IF(DataLog!$C2315=\"Log value\",DataLog!AK2315,\"\")","v":""},{"$f":"IF(DataLog!$C2315=\"Log value\",DataLog!AL2315,\"\")","v":""},{"$f":"IF(DataLog!$C2315=\"Log value\",DataLog!AM2315,\"\")","v":""}]
[null,null,null,null,null,null,{"$f":"IF(DataLog!$C2318=\"Log value\",DataLog!D2318&\"_\"&TEXT(DataLog!B2318,\"åååå-mm-dd\"),\"\")","v":""},{"$f":"IF(DataLog!$C2318=\"Log value\",DataLog!E2318,\"\")","v":""},{"$f":"IF(DataLog!$C2318=\"Log value\",DataLog!F2318,\"\")","v":""},{"$f":"IF(DataLog!$C2318=\"Log value\",DataLog!G2318,\"\")","v":""},{"$f":"IF(DataLog!$C2318=\"Log value\",DataLog!H2318,\"\")","v":""},{"$f":"IF(DataLog!$C2318=\"Log value\",DataLog!I2318,\"\")","v":""},{"$f":"IF(DataLog!$C2318=\"Log value\",DataLog!J2318,\"\")","v":""},{"$f":"IF(DataLog!$C2318=\"Log value\",DataLog!K2318,\"\")","v":""},{"$f":"IF(DataLog!$C2318=\"Log value\",DataLog!L2318,\"\")","v":""},{"$f":"IF(DataLog!$C2318=\"Log value\",DataLog!M2318,\"\")","v":""},{"$f":"IF(DataLog!$C2318=\"Log value\",DataLog!N2318,\"\")","v":""},{"$f":"IF(DataLog!$C2318=\"Log value\",DataLog!O2318,\"\")","v":""},{"$f":"IF(DataLog!$C2318=\"Log value\",DataLog!P2318,\"\")","v":""},{"$f":"IF(DataLog!$C2318=\"Log value\",DataLog!Q2318,\"\")","v":""},{"$f":"IF(DataLog!$C2318=\"Log value\",DataLog!R2318,\"\")","v":""},{"$f":"IF(DataLog!$C2318=\"Log value\",DataLog!S2318,\"\")","v":""},{"$f":"IF(DataLog!$C2318=\"Log value\",DataLog!T2318,\"\")","v":""},{"$f":"IF(DataLog!$C2318=\"Log value\",DataLog!U2318,\"\")","v":""},{"$f":"IF(DataLog!$C2318=\"Log value\",DataLog!V2318,\"\")","v":""},{"$f":"IF(DataLog!$C2318=\"Log value\",DataLog!W2318,\"\")","v":""},{"$f":"IF(DataLog!$C2318=\"Log value\",DataLog!X2318,\"\")","v":""},{"$f":"IF(DataLog!$C2318=\"Log value\",DataLog!Y2318,\"\")","v":""},{"$f":"IF(DataLog!$C2318=\"Log value\",DataLog!Z2318,\"\")","v":""},{"$f":"IF(DataLog!$C2318=\"Log value\",DataLog!AA2318,\"\")","v":""},{"$f":"IF(DataLog!$C2318=\"Log value\",DataLog!AB2318,\"\")","v":""},{"$f":"IF(DataLog!$C2318=\"Log value\",DataLog!AC2318,\"\")","v":""},{"$f":"IF(DataLog!$C2318=\"Log value\",DataLog!AD2318,\"\")","v":""},{"$f":"IF(DataLog!$C2318=\"Log value\",DataLog!AE2318,\"\")","v":""},{"$f":"IF(DataLog!$C2318=\"Log value\",DataLog!AF2318,\"\")","v":""},{"$f":"IF(DataLog!$C2318=\"Log value\",DataLog!AG2318,\"\")","v":""},{"$f":"IF(DataLog!$C2318=\"Log value\",DataLog!AH2318,\"\")","v":""},{"$f":"IF(DataLog!$C2318=\"Log value\",DataLog!AI2318,\"\")","v":""},{"$f":"IF(DataLog!$C2318=\"Log value\",DataLog!AJ2318,\"\")","v":""},{"$f":"IF(DataLog!$C2318=\"Log value\",DataLog!AK2318,\"\")","v":""},{"$f":"IF(DataLog!$C2318=\"Log value\",DataLog!AL2318,\"\")","v":""},{"$f":"IF(DataLog!$C2318=\"Log value\",DataLog!AM2318,\"\")","v":""}]
[null,null,null,null,null,null,{"$f":"IF(DataLog!$C2321=\"Log value\",DataLog!D2321&\"_\"&TEXT(DataLog!B2321,\"åååå-mm-dd\"),\"\")","v":""},{"$f":"IF(DataLog!$C2321=\"Log value\",DataLog!E2321,\"\")","v":""},{"$f":"IF(DataLog!$C2321=\"Log value\",DataLog!F2321,\"\")","v":""},{"$f":"IF(DataLog!$C2321=\"Log value\",DataLog!G2321,\"\")","v":""},{"$f":"IF(DataLog!$C2321=\"Log value\",DataLog!H2321,\"\")","v":""},{"$f":"IF(DataLog!$C2321=\"Log value\",DataLog!I2321,\"\")","v":""},{"$f":"IF(DataLog!$C2321=\"Log value\",DataLog!J2321,\"\")","v":""},{"$f":"IF(DataLog!$C2321=\"Log value\",DataLog!K2321,\"\")","v":""},{"$f":"IF(DataLog!$C2321=\"Log value\",DataLog!L2321,\"\")","v":""},{"$f":"IF(DataLog!$C2321=\"Log value\",DataLog!M2321,\"\")","v":""},{"$f":"IF(DataLog!$C2321=\"Log value\",DataLog!N2321,\"\")","v":""},{"$f":"IF(DataLog!$C2321=\"Log value\",DataLog!O2321,\"\")","v":""},{"$f":"IF(DataLog!$C2321=\"Log value\",DataLog!P2321,\"\")","v":""},{"$f":"IF(DataLog!$C2321=\"Log value\",DataLog!Q2321,\"\")","v":""},{"$f":"IF(DataLog!$C2321=\"Log value\",DataLog!R2321,\"\")","v":""},{"$f":"IF(DataLog!$C2321=\"Log value\",DataLog!S2321,\"\")","v":""},{"$f":"IF(DataLog!$C2321=\"Log value\",DataLog!T2321,\"\")","v":""},{"$f":"IF(DataLog!$C2321=\"Log value\",DataLog!U2321,\"\")","v":""},{"$f":"IF(DataLog!$C2321=\"Log value\",DataLog!V2321,\"\")","v":""},{"$f":"IF(DataLog!$C2321=\"Log value\",DataLog!W2321,\"\")","v":""},{"$f":"IF(DataLog!$C2321=\"Log value\",DataLog!X2321,\"\")","v":""},{"$f":"IF(DataLog!$C2321=\"Log value\",DataLog!Y2321,\"\")","v":""},{"$f":"IF(DataLog!$C2321=\"Log value\",DataLog!Z2321,\"\")","v":""},{"$f":"IF(DataLog!$C2321=\"Log value\",DataLog!AA2321,\"\")","v":""},{"$f":"IF(DataLog!$C2321=\"Log value\",DataLog!AB2321,\"\")","v":""},{"$f":"IF(DataLog!$C2321=\"Log value\",DataLog!AC2321,\"\")","v":""},{"$f":"IF(DataLog!$C2321=\"Log value\",DataLog!AD2321,\"\")","v":""},{"$f":"IF(DataLog!$C2321=\"Log value\",DataLog!AE2321,\"\")","v":""},{"$f":"IF(DataLog!$C2321=\"Log value\",DataLog!AF2321,\"\")","v":""},{"$f":"IF(DataLog!$C2321=\"Log value\",DataLog!AG2321,\"\")","v":""},{"$f":"IF(DataLog!$C2321=\"Log value\",DataLog!AH2321,\"\")","v":""},{"$f":"IF(DataLog!$C2321=\"Log value\",DataLog!AI2321,\"\")","v":""},{"$f":"IF(DataLog!$C2321=\"Log value\",DataLog!AJ2321,\"\")","v":""},{"$f":"IF(DataLog!$C2321=\"Log value\",DataLog!AK2321,\"\")","v":""},{"$f":"IF(DataLog!$C2321=\"Log value\",DataLog!AL2321,\"\")","v":""},{"$f":"IF(DataLog!$C2321=\"Log value\",DataLog!AM2321,\"\")","v":""}]
[null,null,null,null,null,null,{"$f":"IF(DataLog!$C2322=\"Log value\",DataLog!D2322&\"_\"&TEXT(DataLog!B2322,\"åååå-mm-dd\"),\"\")","v":""},{"$f":"IF(DataLog!$C2322=\"Log value\",DataLog!E2322,\"\")","v":""},{"$f":"IF(DataLog!$C2322=\"Log value\",DataLog!F2322,\"\")","v":""},{"$f":"IF(DataLog!$C2322=\"Log value\",DataLog!G2322,\"\")","v":""},{"$f":"IF(DataLog!$C2322=\"Log value\",DataLog!H2322,\"\")","v":""},{"$f":"IF(DataLog!$C2322=\"Log value\",DataLog!I2322,\"\")","v":""},{"$f":"IF(DataLog!$C2322=\"Log value\",DataLog!J2322,\"\")","v":""},{"$f":"IF(DataLog!$C2322=\"Log value\",DataLog!K2322,\"\")","v":""},{"$f":"IF(DataLog!$C2322=\"Log value\",DataLog!L2322,\"\")","v":""},{"$f":"IF(DataLog!$C2322=\"Log value\",DataLog!M2322,\"\")","v":""},{"$f":"IF(DataLog!$C2322=\"Log value\",DataLog!N2322,\"\")","v":""},{"$f":"IF(DataLog!$C2322=\"Log value\",DataLog!O2322,\"\")","v":""},{"$f":"IF(DataLog!$C2322=\"Log value\",DataLog!P2322,\"\")","v":""},{"$f":"IF(DataLog!$C2322=\"Log value\",DataLog!Q2322,\"\")","v":""},{"$f":"IF(DataLog!$C2322=\"Log value\",DataLog!R2322,\"\")","v":""},{"$f":"IF(DataLog!$C2322=\"Log value\",DataLog!S2322,\"\")","v":""},{"$f":"IF(DataLog!$C2322=\"Log value\",DataLog!T2322,\"\")","v":""},{"$f":"IF(DataLog!$C2322=\"Log value\",DataLog!U2322,\"\")","v":""},{"$f":"IF(DataLog!$C2322=\"Log value\",DataLog!V2322,\"\")","v":""},{"$f":"IF(DataLog!$C2322=\"Log value\",DataLog!W2322,\"\")","v":""},{"$f":"IF(DataLog!$C2322=\"Log value\",DataLog!X2322,\"\")","v":""},{"$f":"IF(DataLog!$C2322=\"Log value\",DataLog!Y2322,\"\")","v":""},{"$f":"IF(DataLog!$C2322=\"Log value\",DataLog!Z2322,\"\")","v":""},{"$f":"IF(DataLog!$C2322=\"Log value\",DataLog!AA2322,\"\")","v":""},{"$f":"IF(DataLog!$C2322=\"Log value\",DataLog!AB2322,\"\")","v":""},{"$f":"IF(DataLog!$C2322=\"Log value\",DataLog!AC2322,\"\")","v":""},{"$f":"IF(DataLog!$C2322=\"Log value\",DataLog!AD2322,\"\")","v":""},{"$f":"IF(DataLog!$C2322=\"Log value\",DataLog!AE2322,\"\")","v":""},{"$f":"IF(DataLog!$C2322=\"Log value\",DataLog!AF2322,\"\")","v":""},{"$f":"IF(DataLog!$C2322=\"Log value\",DataLog!AG2322,\"\")","v":""},{"$f":"IF(DataLog!$C2322=\"Log value\",DataLog!AH2322,\"\")","v":""},{"$f":"IF(DataLog!$C2322=\"Log value\",DataLog!AI2322,\"\")","v":""},{"$f":"IF(DataLog!$C2322=\"Log value\",DataLog!AJ2322,\"\")","v":""},{"$f":"IF(DataLog!$C2322=\"Log value\",DataLog!AK2322,\"\")","v":""},{"$f":"IF(DataLog!$C2322=\"Log value\",DataLog!AL2322,\"\")","v":""},{"$f":"IF(DataLog!$C2322=\"Log value\",DataLog!AM2322,\"\")","v":""}]
[null,null,null,null,null,null,{"$f":"IF(DataLog!$C2326=\"Log value\",DataLog!D2326&\"_\"&TEXT(DataLog!B2326,\"åååå-mm-dd\"),\"\")","v":""},{"$f":"IF(DataLog!$C2326=\"Log value\",DataLog!E2326,\"\")","v":""},{"$f":"IF(DataLog!$C2326=\"Log value\",DataLog!F2326,\"\")","v":""},{"$f":"IF(DataLog!$C2326=\"Log value\",DataLog!G2326,\"\")","v":""},{"$f":"IF(DataLog!$C2326=\"Log value\",DataLog!H2326,\"\")","v":""},{"$f":"IF(DataLog!$C2326=\"Log value\",DataLog!I2326,\"\")","v":""},{"$f":"IF(DataLog!$C2326=\"Log value\",DataLog!J2326,\"\")","v":""},{"$f":"IF(DataLog!$C2326=\"Log value\",DataLog!K2326,\"\")","v":""},{"$f":"IF(DataLog!$C2326=\"Log value\",DataLog!L2326,\"\")","v":""},{"$f":"IF(DataLog!$C2326=\"Log value\",DataLog!M2326,\"\")","v":""},{"$f":"IF(DataLog!$C2326=\"Log value\",DataLog!N2326,\"\")","v":""},{"$f":"IF(DataLog!$C2326=\"Log value\",DataLog!O2326,\"\")","v":""},{"$f":"IF(DataLog!$C2326=\"Log value\",DataLog!P2326,\"\")","v":""},{"$f":"IF(DataLog!$C2326=\"Log value\",DataLog!Q2326,\"\")","v":""},{"$f":"IF(DataLog!$C2326=\"Log value\",DataLog!R2326,\"\")","v":""},{"$f":"IF(DataLog!$C2326=\"Log value\",DataLog!S2326,\"\")","v":""},{"$f":"IF(DataLog!$C2326=\"Log value\",DataLog!T2326,\"\")","v":""},{"$f":"IF(DataLog!$C2326=\"Log value\",DataLog!U2326,\"\")","v":""},{"$f":"IF(DataLog!$C2326=\"Log value\",DataLog!V2326,\"\")","v":""},{"$f":"IF(DataLog!$C2326=\"Log value\",DataLog!W2326,\"\")","v":""},{"$f":"IF(DataLog!$C2326=\"Log value\",DataLog!X2326,\"\")","v":""},{"$f":"IF(DataLog!$C2326=\"Log value\",DataLog!Y2326,\"\")","v":""},{"$f":"IF(DataLog!$C2326=\"Log value\",DataLog!Z2326,\"\")","v":""},{"$f":"IF(DataLog!$C2326=\"Log value\",DataLog!AA2326,\"\")","v":""},{"$f":"IF(DataLog!$C2326=\"Log value\",DataLog!AB2326,\"\")","v":""},{"$f":"IF(DataLog!$C2326=\"Log value\",DataLog!AC2326,\"\")","v":""},{"$f":"IF(DataLog!$C2326=\"Log value\",DataLog!AD2326,\"\")","v":""},{"$f":"IF(DataLog!$C2326=\"Log value\",DataLog!AE2326,\"\")","v":""},{"$f":"IF(DataLog!$C2326=\"Log value\",DataLog!AF2326,\"\")","v":""},{"$f":"IF(DataLog!$C2326=\"Log value\",DataLog!AG2326,\"\")","v":""},{"$f":"IF(DataLog!$C2326=\"Log value\",DataLog!AH2326,\"\")","v":""},{"$f":"IF(DataLog!$C2326=\"Log value\",DataLog!AI2326,\"\")","v":""},{"$f":"IF(DataLog!$C2326=\"Log value\",DataLog!AJ2326,\"\")","v":""},{"$f":"IF(DataLog!$C2326=\"Log value\",DataLog!AK2326,\"\")","v":""},{"$f":"IF(DataLog!$C2326=\"Log value\",DataLog!AL2326,\"\")","v":""},{"$f":"IF(DataLog!$C2326=\"Log value\",DataLog!AM2326,\"\")","v":""}]
[null,null,null,null,null,null,{"$f":"IF(DataLog!$C2327=\"Log value\",DataLog!D2327&\"_\"&TEXT(DataLog!B2327,\"åååå-mm-dd\"),\"\")","v":""},{"$f":"IF(DataLog!$C2327=\"Log value\",DataLog!E2327,\"\")","v":""},{"$f":"IF(DataLog!$C2327=\"Log value\",DataLog!F2327,\"\")","v":""},{"$f":"IF(DataLog!$C2327=\"Log value\",DataLog!G2327,\"\")","v":""},{"$f":"IF(DataLog!$C2327=\"Log value\",DataLog!H2327,\"\")","v":""},{"$f":"IF(DataLog!$C2327=\"Log value\",DataLog!I2327,\"\")","v":""},{"$f":"IF(DataLog!$C2327=\"Log value\",DataLog!J2327,\"\")","v":""},{"$f":"IF(DataLog!$C2327=\"Log value\",DataLog!K2327,\"\")","v":""},{"$f":"IF(DataLog!$C2327=\"Log value\",DataLog!L2327,\"\")","v":""},{"$f":"IF(DataLog!$C2327=\"Log value\",DataLog!M2327,\"\")","v":""},{"$f":"IF(DataLog!$C2327=\"Log value\",DataLog!N2327,\"\")","v":""},{"$f":"IF(DataLog!$C2327=\"Log value\",DataLog!O2327,\"\")","v":""},{"$f":"IF(DataLog!$C2327=\"Log value\",DataLog!P2327,\"\")","v":""},{"$f":"IF(DataLog!$C2327=\"Log value\",DataLog!Q2327,\"\")","v":""},{"$f":"IF(DataLog!$C2327=\"Log value\",DataLog!R2327,\"\")","v":""},{"$f":"IF(DataLog!$C2327=\"Log value\",DataLog!S2327,\"\")","v":""},{"$f":"IF(DataLog!$C2327=\"Log value\",DataLog!T2327,\"\")","v":""},{"$f":"IF(DataLog!$C2327=\"Log value\",DataLog!U2327,\"\")","v":""},{"$f":"IF(DataLog!$C2327=\"Log value\",DataLog!V2327,\"\")","v":""},{"$f":"IF(DataLog!$C2327=\"Log value\",DataLog!W2327,\"\")","v":""},{"$f":"IF(DataLog!$C2327=\"Log value\",DataLog!X2327,\"\")","v":""},{"$f":"IF(DataLog!$C2327=\"Log value\",DataLog!Y2327,\"\")","v":""},{"$f":"IF(DataLog!$C2327=\"Log value\",DataLog!Z2327,\"\")","v":""},{"$f":"IF(DataLog!$C2327=\"Log value\",DataLog!AA2327,\"\")","v":""},{"$f":"IF(DataLog!$C2327=\"Log value\",DataLog!AB2327,\"\")","v":""},{"$f":"IF(DataLog!$C2327=\"Log value\",DataLog!AC2327,\"\")","v":""},{"$f":"IF(DataLog!$C2327=\"Log value\",DataLog!AD2327,\"\")","v":""},{"$f":"IF(DataLog!$C2327=\"Log value\",DataLog!AE2327,\"\")","v":""},{"$f":"IF(DataLog!$C2327=\"Log value\",DataLog!AF2327,\"\")","v":""},{"$f":"IF(DataLog!$C2327=\"Log value\",DataLog!AG2327,\"\")","v":""},{"$f":"IF(DataLog!$C2327=\"Log value\",DataLog!AH2327,\"\")","v":""},{"$f":"IF(DataLog!$C2327=\"Log value\",DataLog!AI2327,\"\")","v":""},{"$f":"IF(DataLog!$C2327=\"Log value\",DataLog!AJ2327,\"\")","v":""},{"$f":"IF(DataLog!$C2327=\"Log value\",DataLog!AK2327,\"\")","v":""},{"$f":"IF(DataLog!$C2327=\"Log value\",DataLog!AL2327,\"\")","v":""},{"$f":"IF(DataLog!$C2327=\"Log value\",DataLog!AM2327,\"\")","v":""}]
[null,null,null,null,null,null,{"$f":"IF(DataLog!$C2330=\"Log value\",DataLog!D2330&\"_\"&TEXT(DataLog!B2330,\"åååå-mm-dd\"),\"\")","v":""},{"$f":"IF(DataLog!$C2330=\"Log value\",DataLog!E2330,\"\")","v":""},{"$f":"IF(DataLog!$C2330=\"Log value\",DataLog!F2330,\"\")","v":""},{"$f":"IF(DataLog!$C2330=\"Log value\",DataLog!G2330,\"\")","v":""},{"$f":"IF(DataLog!$C2330=\"Log value\",DataLog!H2330,\"\")","v":""},{"$f":"IF(DataLog!$C2330=\"Log value\",DataLog!I2330,\"\")","v":""},{"$f":"IF(DataLog!$C2330=\"Log value\",DataLog!J2330,\"\")","v":""},{"$f":"IF(DataLog!$C2330=\"Log value\",DataLog!K2330,\"\")","v":""},{"$f":"IF(DataLog!$C2330=\"Log value\",DataLog!L2330,\"\")","v":""},{"$f":"IF(DataLog!$C2330=\"Log value\",DataLog!M2330,\"\")","v":""},{"$f":"IF(DataLog!$C2330=\"Log value\",DataLog!N2330,\"\")","v":""},{"$f":"IF(DataLog!$C2330=\"Log value\",DataLog!O2330,\"\")","v":""},{"$f":"IF(DataLog!$C2330=\"Log value\",DataLog!P2330,\"\")","v":""},{"$f":"IF(DataLog!$C2330=\"Log value\",DataLog!Q2330,\"\")","v":""},{"$f":"IF(DataLog!$C2330=\"Log value\",DataLog!R2330,\"\")","v":""},{"$f":"IF(DataLog!$C2330=\"Log value\",DataLog!S2330,\"\")","v":""},{"$f":"IF(DataLog!$C2330=\"Log value\",DataLog!T2330,\"\")","v":""},{"$f":"IF(DataLog!$C2330=\"Log value\",DataLog!U2330,\"\")","v":""},{"$f":"IF(DataLog!$C2330=\"Log value\",DataLog!V2330,\"\")","v":""},{"$f":"IF(DataLog!$C2330=\"Log value\",DataLog!W2330,\"\")","v":""},{"$f":"IF(DataLog!$C2330=\"Log value\",DataLog!X2330,\"\")","v":""},{"$f":"IF(DataLog!$C2330=\"Log value\",DataLog!Y2330,\"\")","v":""},{"$f":"IF(DataLog!$C2330=\"Log value\",DataLog!Z2330,\"\")","v":""},{"$f":"IF(DataLog!$C2330=\"Log value\",DataLog!AA2330,\"\")","v":""},{"$f":"IF(DataLog!$C2330=\"Log value\",DataLog!AB2330,\"\")","v":""},{"$f":"IF(DataLog!$C2330=\"Log value\",DataLog!AC2330,\"\")","v":""},{"$f":"IF(DataLog!$C2330=\"Log value\",DataLog!AD2330,\"\")","v":""},{"$f":"IF(DataLog!$C2330=\"Log value\",DataLog!AE2330,\"\")","v":""},{"$f":"IF(DataLog!$C2330=\"Log value\",DataLog!AF2330,\"\")","v":""},{"$f":"IF(DataLog!$C2330=\"Log value\",DataLog!AG2330,\"\")","v":""},{"$f":"IF(DataLog!$C2330=\"Log value\",DataLog!AH2330,\"\")","v":""},{"$f":"IF(DataLog!$C2330=\"Log value\",DataLog!AI2330,\"\")","v":""},{"$f":"IF(DataLog!$C2330=\"Log value\",DataLog!AJ2330,\"\")","v":""},{"$f":"IF(DataLog!$C2330=\"Log value\",DataLog!AK2330,\"\")","v":""},{"$f":"IF(DataLog!$C2330=\"Log value\",DataLog!AL2330,\"\")","v":""},{"$f":"IF(DataLog!$C2330=\"Log value\",DataLog!AM2330,\"\")","v":""}]
[null,null,null,null,null,null,{"$f":"IF(DataLog!$C2331=\"Log value\",DataLog!D2331&\"_\"&TEXT(DataLog!B2331,\"åååå-mm-dd\"),\"\")","v":""},{"$f":"IF(DataLog!$C2331=\"Log value\",DataLog!E2331,\"\")","v":""},{"$f":"IF(DataLog!$C2331=\"Log value\",DataLog!F2331,\"\")","v":""},{"$f":"IF(DataLog!$C2331=\"Log value\",DataLog!G2331,\"\")","v":""},{"$f":"IF(DataLog!$C2331=\"Log value\",DataLog!H2331,\"\")","v":""},{"$f":"IF(DataLog!$C2331=\"Log value\",DataLog!I2331,\"\")","v":""},{"$f":"IF(DataLog!$C2331=\"Log value\",DataLog!J2331,\"\")","v":""},{"$f":"IF(DataLog!$C2331=\"Log value\",DataLog!K2331,\"\")","v":""},{"$f":"IF(DataLog!$C2331=\"Log value\",DataLog!L2331,\"\")","v":""},{"$f":"IF(DataLog!$C2331=\"Log value\",DataLog!M2331,\"\")","v":""},{"$f":"IF(DataLog!$C2331=\"Log value\",DataLog!N2331,\"\")","v":""},{"$f":"IF(DataLog!$C2331=\"Log value\",DataLog!O2331,\"\")","v":""},{"$f":"IF(DataLog!$C2331=\"Log value\",DataLog!P2331,\"\")","v":""},{"$f":"IF(DataLog!$C2331=\"Log value\",DataLog!Q2331,\"\")","v":""},{"$f":"IF(DataLog!$C2331=\"Log value\",DataLog!R2331,\"\")","v":""},{"$f":"IF(DataLog!$C2331=\"Log value\",DataLog!S2331,\"\")","v":""},{"$f":"IF(DataLog!$C2331=\"Log value\",DataLog!T2331,\"\")","v":""},{"$f":"IF(DataLog!$C2331=\"Log value\",DataLog!U2331,\"\")","v":""},{"$f":"IF(DataLog!$C2331=\"Log value\",DataLog!V2331,\"\")","v":""},{"$f":"IF(DataLog!$C2331=\"Log value\",DataLog!W2331,\"\")","v":""},{"$f":"IF(DataLog!$C2331=\"Log value\",DataLog!X2331,\"\")","v":""},{"$f":"IF(DataLog!$C2331=\"Log value\",DataLog!Y2331,\"\")","v":""},{"$f":"IF(DataLog!$C2331=\"Log value\",DataLog!Z2331,\"\")","v":""},{"$f":"IF(DataLog!$C2331=\"Log value\",DataLog!AA2331,\"\")","v":""},{"$f":"IF(DataLog!$C2331=\"Log value\",DataLog!AB2331,\"\")","v":""},{"$f":"IF(DataLog!$C2331=\"Log value\",DataLog!AC2331,\"\")","v":""},{"$f":"IF(DataLog!$C2331=\"Log value\",DataLog!AD2331,\"\")","v":""},{"$f":"IF(DataLog!$C2331=\"Log value\",DataLog!AE2331,\"\")","v":""},{"$f":"IF(DataLog!$C2331=\"Log value\",DataLog!AF2331,\"\")","v":""},{"$f":"IF(DataLog!$C2331=\"Log value\",DataLog!AG2331,\"\")","v":""},{"$f":"IF(DataLog!$C2331=\"Log value\",DataLog!AH2331,\"\")","v":""},{"$f":"IF(DataLog!$C2331=\"Log value\",DataLog!AI2331,\"\")","v":""},{"$f":"IF(DataLog!$C2331=\"Log value\",DataLog!AJ2331,\"\")","v":""},{"$f":"IF(DataLog!$C2331=\"Log value\",DataLog!AK2331,\"\")","v":""},{"$f":"IF(DataLog!$C2331=\"Log value\",DataLog!AL2331,\"\")","v":""},{"$f":"IF(DataLog!$C2331=\"Log value\",DataLog!AM2331,\"\")","v":""}]
[null,null,null,null,null,null,{"$f":"IF(DataLog!$C2333=\"Log value\",DataLog!D2333&\"_\"&TEXT(DataLog!B2333,\"åååå-mm-dd\"),\"\")","v":""},{"$f":"IF(DataLog!$C2333=\"Log value\",DataLog!E2333,\"\")","v":""},{"$f":"IF(DataLog!$C2333=\"Log value\",DataLog!F2333,\"\")","v":""},{"$f":"IF(DataLog!$C2333=\"Log value\",DataLog!G2333,\"\")","v":""},{"$f":"IF(DataLog!$C2333=\"Log value\",DataLog!H2333,\"\")","v":""},{"$f":"IF(DataLog!$C2333=\"Log value\",DataLog!I2333,\"\")","v":""},{"$f":"IF(DataLog!$C2333=\"Log value\",DataLog!J2333,\"\")","v":""},{"$f":"IF(DataLog!$C2333=\"Log value\",DataLog!K2333,\"\")","v":""},{"$f":"IF(DataLog!$C2333=\"Log value\",DataLog!L2333,\"\")","v":""},{"$f":"IF(DataLog!$C2333=\"Log value\",DataLog!M2333,\"\")","v":""},{"$f":"IF(DataLog!$C2333=\"Log value\",DataLog!N2333,\"\")","v":""},{"$f":"IF(DataLog!$C2333=\"Log value\",DataLog!O2333,\"\")","v":""},{"$f":"IF(DataLog!$C2333=\"Log value\",DataLog!P2333,\"\")","v":""},{"$f":"IF(DataLog!$C2333=\"Log value\",DataLog!Q2333,\"\")","v":""},{"$f":"IF(DataLog!$C2333=\"Log value\",DataLog!R2333,\"\")","v":""},{"$f":"IF(DataLog!$C2333=\"Log value\",DataLog!S2333,\"\")","v":""},{"$f":"IF(DataLog!$C2333=\"Log value\",DataLog!T2333,\"\")","v":""},{"$f":"IF(DataLog!$C2333=\"Log value\",DataLog!U2333,\"\")","v":""},{"$f":"IF(DataLog!$C2333=\"Log value\",DataLog!V2333,\"\")","v":""},{"$f":"IF(DataLog!$C2333=\"Log value\",DataLog!W2333,\"\")","v":""},{"$f":"IF(DataLog!$C2333=\"Log value\",DataLog!X2333,\"\")","v":""},{"$f":"IF(DataLog!$C2333=\"Log value\",DataLog!Y2333,\"\")","v":""},{"$f":"IF(DataLog!$C2333=\"Log value\",DataLog!Z2333,\"\")","v":""},{"$f":"IF(DataLog!$C2333=\"Log value\",DataLog!AA2333,\"\")","v":""},{"$f":"IF(DataLog!$C2333=\"Log value\",DataLog!AB2333,\"\")","v":""},{"$f":"IF(DataLog!$C2333=\"Log value\",DataLog!AC2333,\"\")","v":""},{"$f":"IF(DataLog!$C2333=\"Log value\",DataLog!AD2333,\"\")","v":""},{"$f":"IF(DataLog!$C2333=\"Log value\",DataLog!AE2333,\"\")","v":""},{"$f":"IF(DataLog!$C2333=\"Log value\",DataLog!AF2333,\"\")","v":""},{"$f":"IF(DataLog!$C2333=\"Log value\",DataLog!AG2333,\"\")","v":""},{"$f":"IF(DataLog!$C2333=\"Log value\",DataLog!AH2333,\"\")","v":""},{"$f":"IF(DataLog!$C2333=\"Log value\",DataLog!AI2333,\"\")","v":""},{"$f":"IF(DataLog!$C2333=\"Log value\",DataLog!AJ2333,\"\")","v":""},{"$f":"IF(DataLog!$C2333=\"Log value\",DataLog!AK2333,\"\")","v":""},{"$f":"IF(DataLog!$C2333=\"Log value\",DataLog!AL2333,\"\")","v":""},{"$f":"IF(DataLog!$C2333=\"Log value\",DataLog!AM2333,\"\")","v":""}]
[null,null,null,null,null,null,{"$f":"IF(DataLog!$C2336=\"Log value\",DataLog!D2336&\"_\"&TEXT(DataLog!B2336,\"åååå-mm-dd\"),\"\")","v":""},{"$f":"IF(DataLog!$C2336=\"Log value\",DataLog!E2336,\"\")","v":""},{"$f":"IF(DataLog!$C2336=\"Log value\",DataLog!F2336,\"\")","v":""},{"$f":"IF(DataLog!$C2336=\"Log value\",DataLog!G2336,\"\")","v":""},{"$f":"IF(DataLog!$C2336=\"Log value\",DataLog!H2336,\"\")","v":""},{"$f":"IF(DataLog!$C2336=\"Log value\",DataLog!I2336,\"\")","v":""},{"$f":"IF(DataLog!$C2336=\"Log value\",DataLog!J2336,\"\")","v":""},{"$f":"IF(DataLog!$C2336=\"Log value\",DataLog!K2336,\"\")","v":""},{"$f":"IF(DataLog!$C2336=\"Log value\",DataLog!L2336,\"\")","v":""},{"$f":"IF(DataLog!$C2336=\"Log value\",DataLog!M2336,\"\")","v":""},{"$f":"IF(DataLog!$C2336=\"Log value\",DataLog!N2336,\"\")","v":""},{"$f":"IF(DataLog!$C2336=\"Log value\",DataLog!O2336,\"\")","v":""},{"$f":"IF(DataLog!$C2336=\"Log value\",DataLog!P2336,\"\")","v":""},{"$f":"IF(DataLog!$C2336=\"Log value\",DataLog!Q2336,\"\")","v":""},{"$f":"IF(DataLog!$C2336=\"Log value\",DataLog!R2336,\"\")","v":""},{"$f":"IF(DataLog!$C2336=\"Log value\",DataLog!S2336,\"\")","v":""},{"$f":"IF(DataLog!$C2336=\"Log value\",DataLog!T2336,\"\")","v":""},{"$f":"IF(DataLog!$C2336=\"Log value\",DataLog!U2336,\"\")","v":""},{"$f":"IF(DataLog!$C2336=\"Log value\",DataLog!V2336,\"\")","v":""},{"$f":"IF(DataLog!$C2336=\"Log value\",DataLog!W2336,\"\")","v":""},{"$f":"IF(DataLog!$C2336=\"Log value\",DataLog!X2336,\"\")","v":""},{"$f":"IF(DataLog!$C2336=\"Log value\",DataLog!Y2336,\"\")","v":""},{"$f":"IF(DataLog!$C2336=\"Log value\",DataLog!Z2336,\"\")","v":""},{"$f":"IF(DataLog!$C2336=\"Log value\",DataLog!AA2336,\"\")","v":""},{"$f":"IF(DataLog!$C2336=\"Log value\",DataLog!AB2336,\"\")","v":""},{"$f":"IF(DataLog!$C2336=\"Log value\",DataLog!AC2336,\"\")","v":""},{"$f":"IF(DataLog!$C2336=\"Log value\",DataLog!AD2336,\"\")","v":""},{"$f":"IF(DataLog!$C2336=\"Log value\",DataLog!AE2336,\"\")","v":""},{"$f":"IF(DataLog!$C2336=\"Log value\",DataLog!AF2336,\"\")","v":""},{"$f":"IF(DataLog!$C2336=\"Log value\",DataLog!AG2336,\"\")","v":""},{"$f":"IF(DataLog!$C2336=\"Log value\",DataLog!AH2336,\"\")","v":""},{"$f":"IF(DataLog!$C2336=\"Log value\",DataLog!AI2336,\"\")","v":""},{"$f":"IF(DataLog!$C2336=\"Log value\",DataLog!AJ2336,\"\")","v":""},{"$f":"IF(DataLog!$C2336=\"Log value\",DataLog!AK2336,\"\")","v":""},{"$f":"IF(DataLog!$C2336=\"Log value\",DataLog!AL2336,\"\")","v":""},{"$f":"IF(DataLog!$C2336=\"Log value\",DataLog!AM2336,\"\")","v":""}]
[null,null,null,null,null,null,{"$f":"IF(DataLog!$C2339=\"Log value\",DataLog!D2339&\"_\"&TEXT(DataLog!B2339,\"åååå-mm-dd\"),\"\")","v":""},{"$f":"IF(DataLog!$C2339=\"Log value\",DataLog!E2339,\"\")","v":""},{"$f":"IF(DataLog!$C2339=\"Log value\",DataLog!F2339,\"\")","v":""},{"$f":"IF(DataLog!$C2339=\"Log value\",DataLog!G2339,\"\")","v":""},{"$f":"IF(DataLog!$C2339=\"Log value\",DataLog!H2339,\"\")","v":""},{"$f":"IF(DataLog!$C2339=\"Log value\",DataLog!I2339,\"\")","v":""},{"$f":"IF(DataLog!$C2339=\"Log value\",DataLog!J2339,\"\")","v":""},{"$f":"IF(DataLog!$C2339=\"Log value\",DataLog!K2339,\"\")","v":""},{"$f":"IF(DataLog!$C2339=\"Log value\",DataLog!L2339,\"\")","v":""},{"$f":"IF(DataLog!$C2339=\"Log value\",DataLog!M2339,\"\")","v":""},{"$f":"IF(DataLog!$C2339=\"Log value\",DataLog!N2339,\"\")","v":""},{"$f":"IF(DataLog!$C2339=\"Log value\",DataLog!O2339,\"\")","v":""},{"$f":"IF(DataLog!$C2339=\"Log value\",DataLog!P2339,\"\")","v":""},{"$f":"IF(DataLog!$C2339=\"Log value\",DataLog!Q2339,\"\")","v":""},{"$f":"IF(DataLog!$C2339=\"Log value\",DataLog!R2339,\"\")","v":""},{"$f":"IF(DataLog!$C2339=\"Log value\",DataLog!S2339,\"\")","v":""},{"$f":"IF(DataLog!$C2339=\"Log value\",DataLog!T2339,\"\")","v":""},{"$f":"IF(DataLog!$C2339=\"Log value\",DataLog!U2339,\"\")","v":""},{"$f":"IF(DataLog!$C2339=\"Log value\",DataLog!V2339,\"\")","v":""},{"$f":"IF(DataLog!$C2339=\"Log value\",DataLog!W2339,\"\")","v":""},{"$f":"IF(DataLog!$C2339=\"Log value\",DataLog!X2339,\"\")","v":""},{"$f":"IF(DataLog!$C2339=\"Log value\",DataLog!Y2339,\"\")","v":""},{"$f":"IF(DataLog!$C2339=\"Log value\",DataLog!Z2339,\"\")","v":""},{"$f":"IF(DataLog!$C2339=\"Log value\",DataLog!AA2339,\"\")","v":""},{"$f":"IF(DataLog!$C2339=\"Log value\",DataLog!AB2339,\"\")","v":""},{"$f":"IF(DataLog!$C2339=\"Log value\",DataLog!AC2339,\"\")","v":""},{"$f":"IF(DataLog!$C2339=\"Log value\",DataLog!AD2339,\"\")","v":""},{"$f":"IF(DataLog!$C2339=\"Log value\",DataLog!AE2339,\"\")","v":""},{"$f":"IF(DataLog!$C2339=\"Log value\",DataLog!AF2339,\"\")","v":""},{"$f":"IF(DataLog!$C2339=\"Log value\",DataLog!AG2339,\"\")","v":""},{"$f":"IF(DataLog!$C2339=\"Log value\",DataLog!AH2339,\"\")","v":""},{"$f":"IF(DataLog!$C2339=\"Log value\",DataLog!AI2339,\"\")","v":""},{"$f":"IF(DataLog!$C2339=\"Log value\",DataLog!AJ2339,\"\")","v":""},{"$f":"IF(DataLog!$C2339=\"Log value\",DataLog!AK2339,\"\")","v":""},{"$f":"IF(DataLog!$C2339=\"Log value\",DataLog!AL2339,\"\")","v":""},{"$f":"IF(DataLog!$C2339=\"Log value\",DataLog!AM2339,\"\")","v":""}]
[null,null,null,null,null,null,{"$f":"IF(DataLog!$C2340=\"Log value\",DataLog!D2340&\"_\"&TEXT(DataLog!B2340,\"åååå-mm-dd\"),\"\")","v":""},{"$f":"IF(DataLog!$C2340=\"Log value\",DataLog!E2340,\"\")","v":""},{"$f":"IF(DataLog!$C2340=\"Log value\",DataLog!F2340,\"\")","v":""},{"$f":"IF(DataLog!$C2340=\"Log value\",DataLog!G2340,\"\")","v":""},{"$f":"IF(DataLog!$C2340=\"Log value\",DataLog!H2340,\"\")","v":""},{"$f":"IF(DataLog!$C2340=\"Log value\",DataLog!I2340,\"\")","v":""},{"$f":"IF(DataLog!$C2340=\"Log value\",DataLog!J2340,\"\")","v":""},{"$f":"IF(DataLog!$C2340=\"Log value\",DataLog!K2340,\"\")","v":""},{"$f":"IF(DataLog!$C2340=\"Log value\",DataLog!L2340,\"\")","v":""},{"$f":"IF(DataLog!$C2340=\"Log value\",DataLog!M2340,\"\")","v":""},{"$f":"IF(DataLog!$C2340=\"Log value\",DataLog!N2340,\"\")","v":""},{"$f":"IF(DataLog!$C2340=\"Log value\",DataLog!O2340,\"\")","v":""},{"$f":"IF(DataLog!$C2340=\"Log value\",DataLog!P2340,\"\")","v":""},{"$f":"IF(DataLog!$C2340=\"Log value\",DataLog!Q2340,\"\")","v":""},{"$f":"IF(DataLog!$C2340=\"Log value\",DataLog!R2340,\"\")","v":""},{"$f":"IF(DataLog!$C2340=\"Log value\",DataLog!S2340,\"\")","v":""},{"$f":"IF(DataLog!$C2340=\"Log value\",DataLog!T2340,\"\")","v":""},{"$f":"IF(DataLog!$C2340=\"Log value\",DataLog!U2340,\"\")","v":""},{"$f":"IF(DataLog!$C2340=\"Log value\",DataLog!V2340,\"\")","v":""},{"$f":"IF(DataLog!$C2340=\"Log value\",DataLog!W2340,\"\")","v":""},{"$f":"IF(DataLog!$C2340=\"Log value\",DataLog!X2340,\"\")","v":""},{"$f":"IF(DataLog!$C2340=\"Log value\",DataLog!Y2340,\"\")","v":""},{"$f":"IF(DataLog!$C2340=\"Log value\",DataLog!Z2340,\"\")","v":""},{"$f":"IF(DataLog!$C2340=\"Log value\",DataLog!AA2340,\"\")","v":""},{"$f":"IF(DataLog!$C2340=\"Log value\",DataLog!AB2340,\"\")","v":""},{"$f":"IF(DataLog!$C2340=\"Log value\",DataLog!AC2340,\"\")","v":""},{"$f":"IF(DataLog!$C2340=\"Log value\",DataLog!AD2340,\"\")","v":""},{"$f":"IF(DataLog!$C2340=\"Log value\",DataLog!AE2340,\"\")","v":""},{"$f":"IF(DataLog!$C2340=\"Log value\",DataLog!AF2340,\"\")","v":""},{"$f":"IF(DataLog!$C2340=\"Log value\",DataLog!AG2340,\"\")","v":""},{"$f":"IF(DataLog!$C2340=\"Log value\",DataLog!AH2340,\"\")","v":""},{"$f":"IF(DataLog!$C2340=\"Log value\",DataLog!AI2340,\"\")","v":""},{"$f":"IF(DataLog!$C2340=\"Log value\",DataLog!AJ2340,\"\")","v":""},{"$f":"IF(DataLog!$C2340=\"Log value\",DataLog!AK2340,\"\")","v":""},{"$f":"IF(DataLog!$C2340=\"Log value\",DataLog!AL2340,\"\")","v":""},{"$f":"IF(DataLog!$C2340=\"Log value\",DataLog!AM2340,\"\")","v":""}]
[null,null,null,null,null,null,{"$f":"IF(DataLog!$C2344=\"Log value\",DataLog!D2344&\"_\"&TEXT(DataLog!B2344,\"åååå-mm-dd\"),\"\")","v":""},{"$f":"IF(DataLog!$C2344=\"Log value\",DataLog!E2344,\"\")","v":""},{"$f":"IF(DataLog!$C2344=\"Log value\",DataLog!F2344,\"\")","v":""},{"$f":"IF(DataLog!$C2344=\"Log value\",DataLog!G2344,\"\")","v":""},{"$f":"IF(DataLog!$C2344=\"Log value\",DataLog!H2344,\"\")","v":""},{"$f":"IF(DataLog!$C2344=\"Log value\",DataLog!I2344,\"\")","v":""},{"$f":"IF(DataLog!$C2344=\"Log value\",DataLog!J2344,\"\")","v":""},{"$f":"IF(DataLog!$C2344=\"Log value\",DataLog!K2344,\"\")","v":""},{"$f":"IF(DataLog!$C2344=\"Log value\",DataLog!L2344,\"\")","v":""},{"$f":"IF(DataLog!$C2344=\"Log value\",DataLog!M2344,\"\")","v":""},{"$f":"IF(DataLog!$C2344=\"Log value\",DataLog!N2344,\"\")","v":""},{"$f":"IF(DataLog!$C2344=\"Log value\",DataLog!O2344,\"\")","v":""},{"$f":"IF(DataLog!$C2344=\"Log value\",DataLog!P2344,\"\")","v":""},{"$f":"IF(DataLog!$C2344=\"Log value\",DataLog!Q2344,\"\")","v":""},{"$f":"IF(DataLog!$C2344=\"Log value\",DataLog!R2344,\"\")","v":""},{"$f":"IF(DataLog!$C2344=\"Log value\",DataLog!S2344,\"\")","v":""},{"$f":"IF(DataLog!$C2344=\"Log value\",DataLog!T2344,\"\")","v":""},{"$f":"IF(DataLog!$C2344=\"Log value\",DataLog!U2344,\"\")","v":""},{"$f":"IF(DataLog!$C2344=\"Log value\",DataLog!V2344,\"\")","v":""},{"$f":"IF(DataLog!$C2344=\"Log value\",DataLog!W2344,\"\")","v":""},{"$f":"IF(DataLog!$C2344=\"Log value\",DataLog!X2344,\"\")","v":""},{"$f":"IF(DataLog!$C2344=\"Log value\",DataLog!Y2344,\"\")","v":""},{"$f":"IF(DataLog!$C2344=\"Log value\",DataLog!Z2344,\"\")","v":""},{"$f":"IF(DataLog!$C2344=\"Log value\",DataLog!AA2344,\"\")","v":""},{"$f":"IF(DataLog!$C2344=\"Log value\",DataLog!AB2344,\"\")","v":""},{"$f":"IF(DataLog!$C2344=\"Log value\",DataLog!AC2344,\"\")","v":""},{"$f":"IF(DataLog!$C2344=\"Log value\",DataLog!AD2344,\"\")","v":""},{"$f":"IF(DataLog!$C2344=\"Log value\",DataLog!AE2344,\"\")","v":""},{"$f":"IF(DataLog!$C2344=\"Log value\",DataLog!AF2344,\"\")","v":""},{"$f":"IF(DataLog!$C2344=\"Log value\",DataLog!AG2344,\"\")","v":""},{"$f":"IF(DataLog!$C2344=\"Log value\",DataLog!AH2344,\"\")","v":""},{"$f":"IF(DataLog!$C2344=\"Log value\",DataLog!AI2344,\"\")","v":""},{"$f":"IF(DataLog!$C2344=\"Log value\",DataLog!AJ2344,\"\")","v":""},{"$f":"IF(DataLog!$C2344=\"Log value\",DataLog!AK2344,\"\")","v":""},{"$f":"IF(DataLog!$C2344=\"Log value\",DataLog!AL2344,\"\")","v":""},{"$f":"IF(DataLog!$C2344=\"Log value\",DataLog!AM2344,\"\")","v":""}]
[null,null,null,null,null,null,{"$f":"IF(DataLog!$C2345=\"Log value\",DataLog!D2345&\"_\"&TEXT(DataLog!B2345,\"åååå-mm-dd\"),\"\")","v":""},{"$f":"IF(DataLog!$C2345=\"Log value\",DataLog!E2345,\"\")","v":""},{"$f":"IF(DataLog!$C2345=\"Log value\",DataLog!F2345,\"\")","v":""},{"$f":"IF(DataLog!$C2345=\"Log value\",DataLog!G2345,\"\")","v":""},{"$f":"IF(DataLog!$C2345=\"Log value\",DataLog!H2345,\"\")","v":""},{"$f":"IF(DataLog!$C2345=\"Log value\",DataLog!I2345,\"\")","v":""},{"$f":"IF(DataLog!$C2345=\"Log value\",DataLog!J2345,\"\")","v":""},{"$f":"IF(DataLog!$C2345=\"Log value\",DataLog!K2345,\"\")","v":""},{"$f":"IF(DataLog!$C2345=\"Log value\",DataLog!L2345,\"\")","v":""},{"$f":"IF(DataLog!$C2345=\"Log value\",DataLog!M2345,\"\")","v":""},{"$f":"IF(DataLog!$C2345=\"Log value\",DataLog!N2345,\"\")","v":""},{"$f":"IF(DataLog!$C2345=\"Log value\",DataLog!O2345,\"\")","v":""},{"$f":"IF(DataLog!$C2345=\"Log value\",DataLog!P2345,\"\")","v":""},{"$f":"IF(DataLog!$C2345=\"Log value\",DataLog!Q2345,\"\")","v":""},{"$f":"IF(DataLog!$C2345=\"Log value\",DataLog!R2345,\"\")","v":""},{"$f":"IF(DataLog!$C2345=\"Log value\",DataLog!S2345,\"\")","v":""},{"$f":"IF(DataLog!$C2345=\"Log value\",DataLog!T2345,\"\")","v":""},{"$f":"IF(DataLog!$C2345=\"Log value\",DataLog!U2345,\"\")","v":""},{"$f":"IF(DataLog!$C2345=\"Log value\",DataLog!V2345,\"\")","v":""},{"$f":"IF(DataLog!$C2345=\"Log value\",DataLog!W2345,\"\")","v":""},{"$f":"IF(DataLog!$C2345=\"Log value\",DataLog!X2345,\"\")","v":""},{"$f":"IF(DataLog!$C2345=\"Log value\",DataLog!Y2345,\"\")","v":""},{"$f":"IF(DataLog!$C2345=\"Log value\",DataLog!Z2345,\"\")","v":""},{"$f":"IF(DataLog!$C2345=\"Log value\",DataLog!AA2345,\"\")","v":""},{"$f":"IF(DataLog!$C2345=\"Log value\",DataLog!AB2345,\"\")","v":""},{"$f":"IF(DataLog!$C2345=\"Log value\",DataLog!AC2345,\"\")","v":""},{"$f":"IF(DataLog!$C2345=\"Log value\",DataLog!AD2345,\"\")","v":""},{"$f":"IF(DataLog!$C2345=\"Log value\",DataLog!AE2345,\"\")","v":""},{"$f":"IF(DataLog!$C2345=\"Log value\",DataLog!AF2345,\"\")","v":""},{"$f":"IF(DataLog!$C2345=\"Log value\",DataLog!AG2345,\"\")","v":""},{"$f":"IF(DataLog!$C2345=\"Log value\",DataLog!AH2345,\"\")","v":""},{"$f":"IF(DataLog!$C2345=\"Log value\",DataLog!AI2345,\"\")","v":""},{"$f":"IF(DataLog!$C2345=\"Log value\",DataLog!AJ2345,\"\")","v":""},{"$f":"IF(DataLog!$C2345=\"Log value\",DataLog!AK2345,\"\")","v":""},{"$f":"IF(DataLog!$C2345=\"Log value\",DataLog!AL2345,\"\")","v":""},{"$f":"IF(DataLog!$C2345=\"Log value\",DataLog!AM2345,\"\")","v":""}]
[null,null,null,null,null,null,{"$f":"IF(DataLog!$C2348=\"Log value\",DataLog!D2348&\"_\"&TEXT(DataLog!B2348,\"åååå-mm-dd\"),\"\")","v":""},{"$f":"IF(DataLog!$C2348=\"Log value\",DataLog!E2348,\"\")","v":""},{"$f":"IF(DataLog!$C2348=\"Log value\",DataLog!F2348,\"\")","v":""},{"$f":"IF(DataLog!$C2348=\"Log value\",DataLog!G2348,\"\")","v":""},{"$f":"IF(DataLog!$C2348=\"Log value\",DataLog!H2348,\"\")","v":""},{"$f":"IF(DataLog!$C2348=\"Log value\",DataLog!I2348,\"\")","v":""},{"$f":"IF(DataLog!$C2348=\"Log value\",DataLog!J2348,\"\")","v":""},{"$f":"IF(DataLog!$C2348=\"Log value\",DataLog!K2348,\"\")","v":""},{"$f":"IF(DataLog!$C2348=\"Log value\",DataLog!L2348,\"\")","v":""},{"$f":"IF(DataLog!$C2348=\"Log value\",DataLog!M2348,\"\")","v":""},{"$f":"IF(DataLog!$C2348=\"Log value\",DataLog!N2348,\"\")","v":""},{"$f":"IF(DataLog!$C2348=\"Log value\",DataLog!O2348,\"\")","v":""},{"$f":"IF(DataLog!$C2348=\"Log value\",DataLog!P2348,\"\")","v":""},{"$f":"IF(DataLog!$C2348=\"Log value\",DataLog!Q2348,\"\")","v":""},{"$f":"IF(DataLog!$C2348=\"Log value\",DataLog!R2348,\"\")","v":""},{"$f":"IF(DataLog!$C2348=\"Log value\",DataLog!S2348,\"\")","v":""},{"$f":"IF(DataLog!$C2348=\"Log value\",DataLog!T2348,\"\")","v":""},{"$f":"IF(DataLog!$C2348=\"Log value\",DataLog!U2348,\"\")","v":""},{"$f":"IF(DataLog!$C2348=\"Log value\",DataLog!V2348,\"\")","v":""},{"$f":"IF(DataLog!$C2348=\"Log value\",DataLog!W2348,\"\")","v":""},{"$f":"IF(DataLog!$C2348=\"Log value\",DataLog!X2348,\"\")","v":""},{"$f":"IF(DataLog!$C2348=\"Log value\",DataLog!Y2348,\"\")","v":""},{"$f":"IF(DataLog!$C2348=\"Log value\",DataLog!Z2348,\"\")","v":""},{"$f":"IF(DataLog!$C2348=\"Log value\",DataLog!AA2348,\"\")","v":""},{"$f":"IF(DataLog!$C2348=\"Log value\",DataLog!AB2348,\"\")","v":""},{"$f":"IF(DataLog!$C2348=\"Log value\",DataLog!AC2348,\"\")","v":""},{"$f":"IF(DataLog!$C2348=\"Log value\",DataLog!AD2348,\"\")","v":""},{"$f":"IF(DataLog!$C2348=\"Log value\",DataLog!AE2348,\"\")","v":""},{"$f":"IF(DataLog!$C2348=\"Log value\",DataLog!AF2348,\"\")","v":""},{"$f":"IF(DataLog!$C2348=\"Log value\",DataLog!AG2348,\"\")","v":""},{"$f":"IF(DataLog!$C2348=\"Log value\",DataLog!AH2348,\"\")","v":""},{"$f":"IF(DataLog!$C2348=\"Log value\",DataLog!AI2348,\"\")","v":""},{"$f":"IF(DataLog!$C2348=\"Log value\",DataLog!AJ2348,\"\")","v":""},{"$f":"IF(DataLog!$C2348=\"Log value\",DataLog!AK2348,\"\")","v":""},{"$f":"IF(DataLog!$C2348=\"Log value\",DataLog!AL2348,\"\")","v":""},{"$f":"IF(DataLog!$C2348=\"Log value\",DataLog!AM2348,\"\")","v":""}]
[null,null,null,null,null,null,{"$f":"IF(DataLog!$C2349=\"Log value\",DataLog!D2349&\"_\"&TEXT(DataLog!B2349,\"åååå-mm-dd\"),\"\")","v":""},{"$f":"IF(DataLog!$C2349=\"Log value\",DataLog!E2349,\"\")","v":""},{"$f":"IF(DataLog!$C2349=\"Log value\",DataLog!F2349,\"\")","v":""},{"$f":"IF(DataLog!$C2349=\"Log value\",DataLog!G2349,\"\")","v":""},{"$f":"IF(DataLog!$C2349=\"Log value\",DataLog!H2349,\"\")","v":""},{"$f":"IF(DataLog!$C2349=\"Log value\",DataLog!I2349,\"\")","v":""},{"$f":"IF(DataLog!$C2349=\"Log value\",DataLog!J2349,\"\")","v":""},{"$f":"IF(DataLog!$C2349=\"Log value\",DataLog!K2349,\"\")","v":""},{"$f":"IF(DataLog!$C2349=\"Log value\",DataLog!L2349,\"\")","v":""},{"$f":"IF(DataLog!$C2349=\"Log value\",DataLog!M2349,\"\")","v":""},{"$f":"IF(DataLog!$C2349=\"Log value\",DataLog!N2349,\"\")","v":""},{"$f":"IF(DataLog!$C2349=\"Log value\",DataLog!O2349,\"\")","v":""},{"$f":"IF(DataLog!$C2349=\"Log value\",DataLog!P2349,\"\")","v":""},{"$f":"IF(DataLog!$C2349=\"Log value\",DataLog!Q2349,\"\")","v":""},{"$f":"IF(DataLog!$C2349=\"Log value\",DataLog!R2349,\"\")","v":""},{"$f":"IF(DataLog!$C2349=\"Log value\",DataLog!S2349,\"\")","v":""},{"$f":"IF(DataLog!$C2349=\"Log value\",DataLog!T2349,\"\")","v":""},{"$f":"IF(DataLog!$C2349=\"Log value\",DataLog!U2349,\"\")","v":""},{"$f":"IF(DataLog!$C2349=\"Log value\",DataLog!V2349,\"\")","v":""},{"$f":"IF(DataLog!$C2349=\"Log value\",DataLog!W2349,\"\")","v":""},{"$f":"IF(DataLog!$C2349=\"Log value\",DataLog!X2349,\"\")","v":""},{"$f":"IF(DataLog!$C2349=\"Log value\",DataLog!Y2349,\"\")","v":""},{"$f":"IF(DataLog!$C2349=\"Log value\",DataLog!Z2349,\"\")","v":""},{"$f":"IF(DataLog!$C2349=\"Log value\",DataLog!AA2349,\"\")","v":""},{"$f":"IF(DataLog!$C2349=\"Log value\",DataLog!AB2349,\"\")","v":""},{"$f":"IF(DataLog!$C2349=\"Log value\",DataLog!AC2349,\"\")","v":""},{"$f":"IF(DataLog!$C2349=\"Log value\",DataLog!AD2349,\"\")","v":""},{"$f":"IF(DataLog!$C2349=\"Log value\",DataLog!AE2349,\"\")","v":""},{"$f":"IF(DataLog!$C2349=\"Log value\",DataLog!AF2349,\"\")","v":""},{"$f":"IF(DataLog!$C2349=\"Log value\",DataLog!AG2349,\"\")","v":""},{"$f":"IF(DataLog!$C2349=\"Log value\",DataLog!AH2349,\"\")","v":""},{"$f":"IF(DataLog!$C2349=\"Log value\",DataLog!AI2349,\"\")","v":""},{"$f":"IF(DataLog!$C2349=\"Log value\",DataLog!AJ2349,\"\")","v":""},{"$f":"IF(DataLog!$C2349=\"Log value\",DataLog!AK2349,\"\")","v":""},{"$f":"IF(DataLog!$C2349=\"Log value\",DataLog!AL2349,\"\")","v":""},{"$f":"IF(DataLog!$C2349=\"Log value\",DataLog!AM2349,\"\")","v":""}]
[null,null,null,null,null,null,{"$f":"IF(DataLog!$C2351=\"Log value\",DataLog!D2351&\"_\"&TEXT(DataLog!B2351,\"åååå-mm-dd\"),\"\")","v":""},{"$f":"IF(DataLog!$C2351=\"Log value\",DataLog!E2351,\"\")","v":""},{"$f":"IF(DataLog!$C2351=\"Log value\",DataLog!F2351,\"\")","v":""},{"$f":"IF(DataLog!$C2351=\"Log value\",DataLog!G2351,\"\")","v":""},{"$f":"IF(DataLog!$C2351=\"Log value\",DataLog!H2351,\"\")","v":""},{"$f":"IF(DataLog!$C2351=\"Log value\",DataLog!I2351,\"\")","v":""},{"$f":"IF(DataLog!$C2351=\"Log value\",DataLog!J2351,\"\")","v":""},{"$f":"IF(DataLog!$C2351=\"Log value\",DataLog!K2351,\"\")","v":""},{"$f":"IF(DataLog!$C2351=\"Log value\",DataLog!L2351,\"\")","v":""},{"$f":"IF(DataLog!$C2351=\"Log value\",DataLog!M2351,\"\")","v":""},{"$f":"IF(DataLog!$C2351=\"Log value\",DataLog!N2351,\"\")","v":""},{"$f":"IF(DataLog!$C2351=\"Log value\",DataLog!O2351,\"\")","v":""},{"$f":"IF(DataLog!$C2351=\"Log value\",DataLog!P2351,\"\")","v":""},{"$f":"IF(DataLog!$C2351=\"Log value\",DataLog!Q2351,\"\")","v":""},{"$f":"IF(DataLog!$C2351=\"Log value\",DataLog!R2351,\"\")","v":""},{"$f":"IF(DataLog!$C2351=\"Log value\",DataLog!S2351,\"\")","v":""},{"$f":"IF(DataLog!$C2351=\"Log value\",DataLog!T2351,\"\")","v":""},{"$f":"IF(DataLog!$C2351=\"Log value\",DataLog!U2351,\"\")","v":""},{"$f":"IF(DataLog!$C2351=\"Log value\",DataLog!V2351,\"\")","v":""},{"$f":"IF(DataLog!$C2351=\"Log value\",DataLog!W2351,\"\")","v":""},{"$f":"IF(DataLog!$C2351=\"Log value\",DataLog!X2351,\"\")","v":""},{"$f":"IF(DataLog!$C2351=\"Log value\",DataLog!Y2351,\"\")","v":""},{"$f":"IF(DataLog!$C2351=\"Log value\",DataLog!Z2351,\"\")","v":""},{"$f":"IF(DataLog!$C2351=\"Log value\",DataLog!AA2351,\"\")","v":""},{"$f":"IF(DataLog!$C2351=\"Log value\",DataLog!AB2351,\"\")","v":""},{"$f":"IF(DataLog!$C2351=\"Log value\",DataLog!AC2351,\"\")","v":""},{"$f":"IF(DataLog!$C2351=\"Log value\",DataLog!AD2351,\"\")","v":""},{"$f":"IF(DataLog!$C2351=\"Log value\",DataLog!AE2351,\"\")","v":""},{"$f":"IF(DataLog!$C2351=\"Log value\",DataLog!AF2351,\"\")","v":""},{"$f":"IF(DataLog!$C2351=\"Log value\",DataLog!AG2351,\"\")","v":""},{"$f":"IF(DataLog!$C2351=\"Log value\",DataLog!AH2351,\"\")","v":""},{"$f":"IF(DataLog!$C2351=\"Log value\",DataLog!AI2351,\"\")","v":""},{"$f":"IF(DataLog!$C2351=\"Log value\",DataLog!AJ2351,\"\")","v":""},{"$f":"IF(DataLog!$C2351=\"Log value\",DataLog!AK2351,\"\")","v":""},{"$f":"IF(DataLog!$C2351=\"Log value\",DataLog!AL2351,\"\")","v":""},{"$f":"IF(DataLog!$C2351=\"Log value\",DataLog!AM2351,\"\")","v":""}]
[null,null,null,null,null,null,{"$f":"IF(DataLog!$C2354=\"Log value\",DataLog!D2354&\"_\"&TEXT(DataLog!B2354,\"åååå-mm-dd\"),\"\")","v":""},{"$f":"IF(DataLog!$C2354=\"Log value\",DataLog!E2354,\"\")","v":""},{"$f":"IF(DataLog!$C2354=\"Log value\",DataLog!F2354,\"\")","v":""},{"$f":"IF(DataLog!$C2354=\"Log value\",DataLog!G2354,\"\")","v":""},{"$f":"IF(DataLog!$C2354=\"Log value\",DataLog!H2354,\"\")","v":""},{"$f":"IF(DataLog!$C2354=\"Log value\",DataLog!I2354,\"\")","v":""},{"$f":"IF(DataLog!$C2354=\"Log value\",DataLog!J2354,\"\")","v":""},{"$f":"IF(DataLog!$C2354=\"Log value\",DataLog!K2354,\"\")","v":""},{"$f":"IF(DataLog!$C2354=\"Log value\",DataLog!L2354,\"\")","v":""},{"$f":"IF(DataLog!$C2354=\"Log value\",DataLog!M2354,\"\")","v":""},{"$f":"IF(DataLog!$C2354=\"Log value\",DataLog!N2354,\"\")","v":""},{"$f":"IF(DataLog!$C2354=\"Log value\",DataLog!O2354,\"\")","v":""},{"$f":"IF(DataLog!$C2354=\"Log value\",DataLog!P2354,\"\")","v":""},{"$f":"IF(DataLog!$C2354=\"Log value\",DataLog!Q2354,\"\")","v":""},{"$f":"IF(DataLog!$C2354=\"Log value\",DataLog!R2354,\"\")","v":""},{"$f":"IF(DataLog!$C2354=\"Log value\",DataLog!S2354,\"\")","v":""},{"$f":"IF(DataLog!$C2354=\"Log value\",DataLog!T2354,\"\")","v":""},{"$f":"IF(DataLog!$C2354=\"Log value\",DataLog!U2354,\"\")","v":""},{"$f":"IF(DataLog!$C2354=\"Log value\",DataLog!V2354,\"\")","v":""},{"$f":"IF(DataLog!$C2354=\"Log value\",DataLog!W2354,\"\")","v":""},{"$f":"IF(DataLog!$C2354=\"Log value\",DataLog!X2354,\"\")","v":""},{"$f":"IF(DataLog!$C2354=\"Log value\",DataLog!Y2354,\"\")","v":""},{"$f":"IF(DataLog!$C2354=\"Log value\",DataLog!Z2354,\"\")","v":""},{"$f":"IF(DataLog!$C2354=\"Log value\",DataLog!AA2354,\"\")","v":""},{"$f":"IF(DataLog!$C2354=\"Log value\",DataLog!AB2354,\"\")","v":""},{"$f":"IF(DataLog!$C2354=\"Log value\",DataLog!AC2354,\"\")","v":""},{"$f":"IF(DataLog!$C2354=\"Log value\",DataLog!AD2354,\"\")","v":""},{"$f":"IF(DataLog!$C2354=\"Log value\",DataLog!AE2354,\"\")","v":""},{"$f":"IF(DataLog!$C2354=\"Log value\",DataLog!AF2354,\"\")","v":""},{"$f":"IF(DataLog!$C2354=\"Log value\",DataLog!AG2354,\"\")","v":""},{"$f":"IF(DataLog!$C2354=\"Log value\",DataLog!AH2354,\"\")","v":""},{"$f":"IF(DataLog!$C2354=\"Log value\",DataLog!AI2354,\"\")","v":""},{"$f":"IF(DataLog!$C2354=\"Log value\",DataLog!AJ2354,\"\")","v":""},{"$f":"IF(DataLog!$C2354=\"Log value\",DataLog!AK2354,\"\")","v":""},{"$f":"IF(DataLog!$C2354=\"Log value\",DataLog!AL2354,\"\")","v":""},{"$f":"IF(DataLog!$C2354=\"Log value\",DataLog!AM2354,\"\")","v":""}]
[null,null,null,null,null,null,{"$f":"IF(DataLog!$C2357=\"Log value\",DataLog!D2357&\"_\"&TEXT(DataLog!B2357,\"åååå-mm-dd\"),\"\")","v":""},{"$f":"IF(DataLog!$C2357=\"Log value\",DataLog!E2357,\"\")","v":""},{"$f":"IF(DataLog!$C2357=\"Log value\",DataLog!F2357,\"\")","v":""},{"$f":"IF(DataLog!$C2357=\"Log value\",DataLog!G2357,\"\")","v":""},{"$f":"IF(DataLog!$C2357=\"Log value\",DataLog!H2357,\"\")","v":""},{"$f":"IF(DataLog!$C2357=\"Log value\",DataLog!I2357,\"\")","v":""},{"$f":"IF(DataLog!$C2357=\"Log value\",DataLog!J2357,\"\")","v":""},{"$f":"IF(DataLog!$C2357=\"Log value\",DataLog!K2357,\"\")","v":""},{"$f":"IF(DataLog!$C2357=\"Log value\",DataLog!L2357,\"\")","v":""},{"$f":"IF(DataLog!$C2357=\"Log value\",DataLog!M2357,\"\")","v":""},{"$f":"IF(DataLog!$C2357=\"Log value\",DataLog!N2357,\"\")","v":""},{"$f":"IF(DataLog!$C2357=\"Log value\",DataLog!O2357,\"\")","v":""},{"$f":"IF(DataLog!$C2357=\"Log value\",DataLog!P2357,\"\")","v":""},{"$f":"IF(DataLog!$C2357=\"Log value\",DataLog!Q2357,\"\")","v":""},{"$f":"IF(DataLog!$C2357=\"Log value\",DataLog!R2357,\"\")","v":""},{"$f":"IF(DataLog!$C2357=\"Log value\",DataLog!S2357,\"\")","v":""},{"$f":"IF(DataLog!$C2357=\"Log value\",DataLog!T2357,\"\")","v":""},{"$f":"IF(DataLog!$C2357=\"Log value\",DataLog!U2357,\"\")","v":""},{"$f":"IF(DataLog!$C2357=\"Log value\",DataLog!V2357,\"\")","v":""},{"$f":"IF(DataLog!$C2357=\"Log value\",DataLog!W2357,\"\")","v":""},{"$f":"IF(DataLog!$C2357=\"Log value\",DataLog!X2357,\"\")","v":""},{"$f":"IF(DataLog!$C2357=\"Log value\",DataLog!Y2357,\"\")","v":""},{"$f":"IF(DataLog!$C2357=\"Log value\",DataLog!Z2357,\"\")","v":""},{"$f":"IF(DataLog!$C2357=\"Log value\",DataLog!AA2357,\"\")","v":""},{"$f":"IF(DataLog!$C2357=\"Log value\",DataLog!AB2357,\"\")","v":""},{"$f":"IF(DataLog!$C2357=\"Log value\",DataLog!AC2357,\"\")","v":""},{"$f":"IF(DataLog!$C2357=\"Log value\",DataLog!AD2357,\"\")","v":""},{"$f":"IF(DataLog!$C2357=\"Log value\",DataLog!AE2357,\"\")","v":""},{"$f":"IF(DataLog!$C2357=\"Log value\",DataLog!AF2357,\"\")","v":""},{"$f":"IF(DataLog!$C2357=\"Log value\",DataLog!AG2357,\"\")","v":""},{"$f":"IF(DataLog!$C2357=\"Log value\",DataLog!AH2357,\"\")","v":""},{"$f":"IF(DataLog!$C2357=\"Log value\",DataLog!AI2357,\"\")","v":""},{"$f":"IF(DataLog!$C2357=\"Log value\",DataLog!AJ2357,\"\")","v":""},{"$f":"IF(DataLog!$C2357=\"Log value\",DataLog!AK2357,\"\")","v":""},{"$f":"IF(DataLog!$C2357=\"Log value\",DataLog!AL2357,\"\")","v":""},{"$f":"IF(DataLog!$C2357=\"Log value\",DataLog!AM2357,\"\")","v":""}]
[null,null,null,null,null,null,{"$f":"IF(DataLog!$C2359=\"Log value\",DataLog!D2359&\"_\"&TEXT(DataLog!B2359,\"åååå-mm-dd\"),\"\")","v":""},{"$f":"IF(DataLog!$C2359=\"Log value\",DataLog!E2359,\"\")","v":""},{"$f":"IF(DataLog!$C2359=\"Log value\",DataLog!F2359,\"\")","v":""},{"$f":"IF(DataLog!$C2359=\"Log value\",DataLog!G2359,\"\")","v":""},{"$f":"IF(DataLog!$C2359=\"Log value\",DataLog!H2359,\"\")","v":""},{"$f":"IF(DataLog!$C2359=\"Log value\",DataLog!I2359,\"\")","v":""},{"$f":"IF(DataLog!$C2359=\"Log value\",DataLog!J2359,\"\")","v":""},{"$f":"IF(DataLog!$C2359=\"Log value\",DataLog!K2359,\"\")","v":""},{"$f":"IF(DataLog!$C2359=\"Log value\",DataLog!L2359,\"\")","v":""},{"$f":"IF(DataLog!$C2359=\"Log value\",DataLog!M2359,\"\")","v":""},{"$f":"IF(DataLog!$C2359=\"Log value\",DataLog!N2359,\"\")","v":""},{"$f":"IF(DataLog!$C2359=\"Log value\",DataLog!O2359,\"\")","v":""},{"$f":"IF(DataLog!$C2359=\"Log value\",DataLog!P2359,\"\")","v":""},{"$f":"IF(DataLog!$C2359=\"Log value\",DataLog!Q2359,\"\")","v":""},{"$f":"IF(DataLog!$C2359=\"Log value\",DataLog!R2359,\"\")","v":""},{"$f":"IF(DataLog!$C2359=\"Log value\",DataLog!S2359,\"\")","v":""},{"$f":"IF(DataLog!$C2359=\"Log value\",DataLog!T2359,\"\")","v":""},{"$f":"IF(DataLog!$C2359=\"Log value\",DataLog!U2359,\"\")","v":""},{"$f":"IF(DataLog!$C2359=\"Log value\",DataLog!V2359,\"\")","v":""},{"$f":"IF(DataLog!$C2359=\"Log value\",DataLog!W2359,\"\")","v":""},{"$f":"IF(DataLog!$C2359=\"Log value\",DataLog!X2359,\"\")","v":""},{"$f":"IF(DataLog!$C2359=\"Log value\",DataLog!Y2359,\"\")","v":""},{"$f":"IF(DataLog!$C2359=\"Log value\",DataLog!Z2359,\"\")","v":""},{"$f":"IF(DataLog!$C2359=\"Log value\",DataLog!AA2359,\"\")","v":""},{"$f":"IF(DataLog!$C2359=\"Log value\",DataLog!AB2359,\"\")","v":""},{"$f":"IF(DataLog!$C2359=\"Log value\",DataLog!AC2359,\"\")","v":""},{"$f":"IF(DataLog!$C2359=\"Log value\",DataLog!AD2359,\"\")","v":""},{"$f":"IF(DataLog!$C2359=\"Log value\",DataLog!AE2359,\"\")","v":""},{"$f":"IF(DataLog!$C2359=\"Log value\",DataLog!AF2359,\"\")","v":""},{"$f":"IF(DataLog!$C2359=\"Log value\",DataLog!AG2359,\"\")","v":""},{"$f":"IF(DataLog!$C2359=\"Log value\",DataLog!AH2359,\"\")","v":""},{"$f":"IF(DataLog!$C2359=\"Log value\",DataLog!AI2359,\"\")","v":""},{"$f":"IF(DataLog!$C2359=\"Log value\",DataLog!AJ2359,\"\")","v":""},{"$f":"IF(DataLog!$C2359=\"Log value\",DataLog!AK2359,\"\")","v":""},{"$f":"IF(DataLog!$C2359=\"Log value\",DataLog!AL2359,\"\")","v":""},{"$f":"IF(DataLog!$C2359=\"Log value\",DataLog!AM2359,\"\")","v":""}]
[null,null,null,null,null,null,{"$f":"IF(DataLog!$C2362=\"Log value\",DataLog!D2362&\"_\"&TEXT(DataLog!B2362,\"åååå-mm-dd\"),\"\")","v":""},{"$f":"IF(DataLog!$C2362=\"Log value\",DataLog!E2362,\"\")","v":""},{"$f":"IF(DataLog!$C2362=\"Log value\",DataLog!F2362,\"\")","v":""},{"$f":"IF(DataLog!$C2362=\"Log value\",DataLog!G2362,\"\")","v":""},{"$f":"IF(DataLog!$C2362=\"Log value\",DataLog!H2362,\"\")","v":""},{"$f":"IF(DataLog!$C2362=\"Log value\",DataLog!I2362,\"\")","v":""},{"$f":"IF(DataLog!$C2362=\"Log value\",DataLog!J2362,\"\")","v":""},{"$f":"IF(DataLog!$C2362=\"Log value\",DataLog!K2362,\"\")","v":""},{"$f":"IF(DataLog!$C2362=\"Log value\",DataLog!L2362,\"\")","v":""},{"$f":"IF(DataLog!$C2362=\"Log value\",DataLog!M2362,\"\")","v":""},{"$f":"IF(DataLog!$C2362=\"Log value\",DataLog!N2362,\"\")","v":""},{"$f":"IF(DataLog!$C2362=\"Log value\",DataLog!O2362,\"\")","v":""},{"$f":"IF(DataLog!$C2362=\"Log value\",DataLog!P2362,\"\")","v":""},{"$f":"IF(DataLog!$C2362=\"Log value\",DataLog!Q2362,\"\")","v":""},{"$f":"IF(DataLog!$C2362=\"Log value\",DataLog!R2362,\"\")","v":""},{"$f":"IF(DataLog!$C2362=\"Log value\",DataLog!S2362,\"\")","v":""},{"$f":"IF(DataLog!$C2362=\"Log value\",DataLog!T2362,\"\")","v":""},{"$f":"IF(DataLog!$C2362=\"Log value\",DataLog!U2362,\"\")","v":""},{"$f":"IF(DataLog!$C2362=\"Log value\",DataLog!V2362,\"\")","v":""},{"$f":"IF(DataLog!$C2362=\"Log value\",DataLog!W2362,\"\")","v":""},{"$f":"IF(DataLog!$C2362=\"Log value\",DataLog!X2362,\"\")","v":""},{"$f":"IF(DataLog!$C2362=\"Log value\",DataLog!Y2362,\"\")","v":""},{"$f":"IF(DataLog!$C2362=\"Log value\",DataLog!Z2362,\"\")","v":""},{"$f":"IF(DataLog!$C2362=\"Log value\",DataLog!AA2362,\"\")","v":""},{"$f":"IF(DataLog!$C2362=\"Log value\",DataLog!AB2362,\"\")","v":""},{"$f":"IF(DataLog!$C2362=\"Log value\",DataLog!AC2362,\"\")","v":""},{"$f":"IF(DataLog!$C2362=\"Log value\",DataLog!AD2362,\"\")","v":""},{"$f":"IF(DataLog!$C2362=\"Log value\",DataLog!AE2362,\"\")","v":""},{"$f":"IF(DataLog!$C2362=\"Log value\",DataLog!AF2362,\"\")","v":""},{"$f":"IF(DataLog!$C2362=\"Log value\",DataLog!AG2362,\"\")","v":""},{"$f":"IF(DataLog!$C2362=\"Log value\",DataLog!AH2362,\"\")","v":""},{"$f":"IF(DataLog!$C2362=\"Log value\",DataLog!AI2362,\"\")","v":""},{"$f":"IF(DataLog!$C2362=\"Log value\",DataLog!AJ2362,\"\")","v":""},{"$f":"IF(DataLog!$C2362=\"Log value\",DataLog!AK2362,\"\")","v":""},{"$f":"IF(DataLog!$C2362=\"Log value\",DataLog!AL2362,\"\")","v":""},{"$f":"IF(DataLog!$C2362=\"Log value\",DataLog!AM2362,\"\")","v":""}]
[null,null,null,null,null,null,{"$f":"IF(DataLog!$C2363=\"Log value\",DataLog!D2363&\"_\"&TEXT(DataLog!B2363,\"åååå-mm-dd\"),\"\")","v":""},{"$f":"IF(DataLog!$C2363=\"Log value\",DataLog!E2363,\"\")","v":""},{"$f":"IF(DataLog!$C2363=\"Log value\",DataLog!F2363,\"\")","v":""},{"$f":"IF(DataLog!$C2363=\"Log value\",DataLog!G2363,\"\")","v":""},{"$f":"IF(DataLog!$C2363=\"Log value\",DataLog!H2363,\"\")","v":""},{"$f":"IF(DataLog!$C2363=\"Log value\",DataLog!I2363,\"\")","v":""},{"$f":"IF(DataLog!$C2363=\"Log value\",DataLog!J2363,\"\")","v":""},{"$f":"IF(DataLog!$C2363=\"Log value\",DataLog!K2363,\"\")","v":""},{"$f":"IF(DataLog!$C2363=\"Log value\",DataLog!L2363,\"\")","v":""},{"$f":"IF(DataLog!$C2363=\"Log value\",DataLog!M2363,\"\")","v":""},{"$f":"IF(DataLog!$C2363=\"Log value\",DataLog!N2363,\"\")","v":""},{"$f":"IF(DataLog!$C2363=\"Log value\",DataLog!O2363,\"\")","v":""},{"$f":"IF(DataLog!$C2363=\"Log value\",DataLog!P2363,\"\")","v":""},{"$f":"IF(DataLog!$C2363=\"Log value\",DataLog!Q2363,\"\")","v":""},{"$f":"IF(DataLog!$C2363=\"Log value\",DataLog!R2363,\"\")","v":""},{"$f":"IF(DataLog!$C2363=\"Log value\",DataLog!S2363,\"\")","v":""},{"$f":"IF(DataLog!$C2363=\"Log value\",DataLog!T2363,\"\")","v":""},{"$f":"IF(DataLog!$C2363=\"Log value\",DataLog!U2363,\"\")","v":""},{"$f":"IF(DataLog!$C2363=\"Log value\",DataLog!V2363,\"\")","v":""},{"$f":"IF(DataLog!$C2363=\"Log value\",DataLog!W2363,\"\")","v":""},{"$f":"IF(DataLog!$C2363=\"Log value\",DataLog!X2363,\"\")","v":""},{"$f":"IF(DataLog!$C2363=\"Log value\",DataLog!Y2363,\"\")","v":""},{"$f":"IF(DataLog!$C2363=\"Log value\",DataLog!Z2363,\"\")","v":""},{"$f":"IF(DataLog!$C2363=\"Log value\",DataLog!AA2363,\"\")","v":""},{"$f":"IF(DataLog!$C2363=\"Log value\",DataLog!AB2363,\"\")","v":""},{"$f":"IF(DataLog!$C2363=\"Log value\",DataLog!AC2363,\"\")","v":""},{"$f":"IF(DataLog!$C2363=\"Log value\",DataLog!AD2363,\"\")","v":""},{"$f":"IF(DataLog!$C2363=\"Log value\",DataLog!AE2363,\"\")","v":""},{"$f":"IF(DataLog!$C2363=\"Log value\",DataLog!AF2363,\"\")","v":""},{"$f":"IF(DataLog!$C2363=\"Log value\",DataLog!AG2363,\"\")","v":""},{"$f":"IF(DataLog!$C2363=\"Log value\",DataLog!AH2363,\"\")","v":""},{"$f":"IF(DataLog!$C2363=\"Log value\",DataLog!AI2363,\"\")","v":""},{"$f":"IF(DataLog!$C2363=\"Log value\",DataLog!AJ2363,\"\")","v":""},{"$f":"IF(DataLog!$C2363=\"Log value\",DataLog!AK2363,\"\")","v":""},{"$f":"IF(DataLog!$C2363=\"Log value\",DataLog!AL2363,\"\")","v":""},{"$f":"IF(DataLog!$C2363=\"Log value\",DataLog!AM2363,\"\")","v":""}]
[null,null,null,null,null,null,{"$f":"IF(DataLog!$C2366=\"Log value\",DataLog!D2366&\"_\"&TEXT(DataLog!B2366,\"åååå-mm-dd\"),\"\")","v":""},{"$f":"IF(DataLog!$C2366=\"Log value\",DataLog!E2366,\"\")","v":""},{"$f":"IF(DataLog!$C2366=\"Log value\",DataLog!F2366,\"\")","v":""},{"$f":"IF(DataLog!$C2366=\"Log value\",DataLog!G2366,\"\")","v":""},{"$f":"IF(DataLog!$C2366=\"Log value\",DataLog!H2366,\"\")","v":""},{"$f":"IF(DataLog!$C2366=\"Log value\",DataLog!I2366,\"\")","v":""},{"$f":"IF(DataLog!$C2366=\"Log value\",DataLog!J2366,\"\")","v":""},{"$f":"IF(DataLog!$C2366=\"Log value\",DataLog!K2366,\"\")","v":""},{"$f":"IF(DataLog!$C2366=\"Log value\",DataLog!L2366,\"\")","v":""},{"$f":"IF(DataLog!$C2366=\"Log value\",DataLog!M2366,\"\")","v":""},{"$f":"IF(DataLog!$C2366=\"Log value\",DataLog!N2366,\"\")","v":""},{"$f":"IF(DataLog!$C2366=\"Log value\",DataLog!O2366,\"\")","v":""},{"$f":"IF(DataLog!$C2366=\"Log value\",DataLog!P2366,\"\")","v":""},{"$f":"IF(DataLog!$C2366=\"Log value\",DataLog!Q2366,\"\")","v":""},{"$f":"IF(DataLog!$C2366=\"Log value\",DataLog!R2366,\"\")","v":""},{"$f":"IF(DataLog!$C2366=\"Log value\",DataLog!S2366,\"\")","v":""},{"$f":"IF(DataLog!$C2366=\"Log value\",DataLog!T2366,\"\")","v":""},{"$f":"IF(DataLog!$C2366=\"Log value\",DataLog!U2366,\"\")","v":""},{"$f":"IF(DataLog!$C2366=\"Log value\",DataLog!V2366,\"\")","v":""},{"$f":"IF(DataLog!$C2366=\"Log value\",DataLog!W2366,\"\")","v":""},{"$f":"IF(DataLog!$C2366=\"Log value\",DataLog!X2366,\"\")","v":""},{"$f":"IF(DataLog!$C2366=\"Log value\",DataLog!Y2366,\"\")","v":""},{"$f":"IF(DataLog!$C2366=\"Log value\",DataLog!Z2366,\"\")","v":""},{"$f":"IF(DataLog!$C2366=\"Log value\",DataLog!AA2366,\"\")","v":""},{"$f":"IF(DataLog!$C2366=\"Log value\",DataLog!AB2366,\"\")","v":""},{"$f":"IF(DataLog!$C2366=\"Log value\",DataLog!AC2366,\"\")","v":""},{"$f":"IF(DataLog!$C2366=\"Log value\",DataLog!AD2366,\"\")","v":""},{"$f":"IF(DataLog!$C2366=\"Log value\",DataLog!AE2366,\"\")","v":""},{"$f":"IF(DataLog!$C2366=\"Log value\",DataLog!AF2366,\"\")","v":""},{"$f":"IF(DataLog!$C2366=\"Log value\",DataLog!AG2366,\"\")","v":""},{"$f":"IF(DataLog!$C2366=\"Log value\",DataLog!AH2366,\"\")","v":""},{"$f":"IF(DataLog!$C2366=\"Log value\",DataLog!AI2366,\"\")","v":""},{"$f":"IF(DataLog!$C2366=\"Log value\",DataLog!AJ2366,\"\")","v":""},{"$f":"IF(DataLog!$C2366=\"Log value\",DataLog!AK2366,\"\")","v":""},{"$f":"IF(DataLog!$C2366=\"Log value\",DataLog!AL2366,\"\")","v":""},{"$f":"IF(DataLog!$C2366=\"Log value\",DataLog!AM2366,\"\")","v":""}]
[null,null,null,null,null,null,{"$f":"IF(DataLog!$C2367=\"Log value\",DataLog!D2367&\"_\"&TEXT(DataLog!B2367,\"åååå-mm-dd\"),\"\")","v":""},{"$f":"IF(DataLog!$C2367=\"Log value\",DataLog!E2367,\"\")","v":""},{"$f":"IF(DataLog!$C2367=\"Log value\",DataLog!F2367,\"\")","v":""},{"$f":"IF(DataLog!$C2367=\"Log value\",DataLog!G2367,\"\")","v":""},{"$f":"IF(DataLog!$C2367=\"Log value\",DataLog!H2367,\"\")","v":""},{"$f":"IF(DataLog!$C2367=\"Log value\",DataLog!I2367,\"\")","v":""},{"$f":"IF(DataLog!$C2367=\"Log value\",DataLog!J2367,\"\")","v":""},{"$f":"IF(DataLog!$C2367=\"Log value\",DataLog!K2367,\"\")","v":""},{"$f":"IF(DataLog!$C2367=\"Log value\",DataLog!L2367,\"\")","v":""},{"$f":"IF(DataLog!$C2367=\"Log value\",DataLog!M2367,\"\")","v":""},{"$f":"IF(DataLog!$C2367=\"Log value\",DataLog!N2367,\"\")","v":""},{"$f":"IF(DataLog!$C2367=\"Log value\",DataLog!O2367,\"\")","v":""},{"$f":"IF(DataLog!$C2367=\"Log value\",DataLog!P2367,\"\")","v":""},{"$f":"IF(DataLog!$C2367=\"Log value\",DataLog!Q2367,\"\")","v":""},{"$f":"IF(DataLog!$C2367=\"Log value\",DataLog!R2367,\"\")","v":""},{"$f":"IF(DataLog!$C2367=\"Log value\",DataLog!S2367,\"\")","v":""},{"$f":"IF(DataLog!$C2367=\"Log value\",DataLog!T2367,\"\")","v":""},{"$f":"IF(DataLog!$C2367=\"Log value\",DataLog!U2367,\"\")","v":""},{"$f":"IF(DataLog!$C2367=\"Log value\",DataLog!V2367,\"\")","v":""},{"$f":"IF(DataLog!$C2367=\"Log value\",DataLog!W2367,\"\")","v":""},{"$f":"IF(DataLog!$C2367=\"Log value\",DataLog!X2367,\"\")","v":""},{"$f":"IF(DataLog!$C2367=\"Log value\",DataLog!Y2367,\"\")","v":""},{"$f":"IF(DataLog!$C2367=\"Log value\",DataLog!Z2367,\"\")","v":""},{"$f":"IF(DataLog!$C2367=\"Log value\",DataLog!AA2367,\"\")","v":""},{"$f":"IF(DataLog!$C2367=\"Log value\",DataLog!AB2367,\"\")","v":""},{"$f":"IF(DataLog!$C2367=\"Log value\",DataLog!AC2367,\"\")","v":""},{"$f":"IF(DataLog!$C2367=\"Log value\",DataLog!AD2367,\"\")","v":""},{"$f":"IF(DataLog!$C2367=\"Log value\",DataLog!AE2367,\"\")","v":""},{"$f":"IF(DataLog!$C2367=\"Log value\",DataLog!AF2367,\"\")","v":""},{"$f":"IF(DataLog!$C2367=\"Log value\",DataLog!AG2367,\"\")","v":""},{"$f":"IF(DataLog!$C2367=\"Log value\",DataLog!AH2367,\"\")","v":""},{"$f":"IF(DataLog!$C2367=\"Log value\",DataLog!AI2367,\"\")","v":""},{"$f":"IF(DataLog!$C2367=\"Log value\",DataLog!AJ2367,\"\")","v":""},{"$f":"IF(DataLog!$C2367=\"Log value\",DataLog!AK2367,\"\")","v":""},{"$f":"IF(DataLog!$C2367=\"Log value\",DataLog!AL2367,\"\")","v":""},{"$f":"IF(DataLog!$C2367=\"Log value\",DataLog!AM2367,\"\")","v":""}]
[null,null,null,null,null,null,{"$f":"IF(DataLog!$C2371=\"Log value\",DataLog!D2371&\"_\"&TEXT(DataLog!B2371,\"åååå-mm-dd\"),\"\")","v":""},{"$f":"IF(DataLog!$C2371=\"Log value\",DataLog!E2371,\"\")","v":""},{"$f":"IF(DataLog!$C2371=\"Log value\",DataLog!F2371,\"\")","v":""},{"$f":"IF(DataLog!$C2371=\"Log value\",DataLog!G2371,\"\")","v":""},{"$f":"IF(DataLog!$C2371=\"Log value\",DataLog!H2371,\"\")","v":""},{"$f":"IF(DataLog!$C2371=\"Log value\",DataLog!I2371,\"\")","v":""},{"$f":"IF(DataLog!$C2371=\"Log value\",DataLog!J2371,\"\")","v":""},{"$f":"IF(DataLog!$C2371=\"Log value\",DataLog!K2371,\"\")","v":""},{"$f":"IF(DataLog!$C2371=\"Log value\",DataLog!L2371,\"\")","v":""},{"$f":"IF(DataLog!$C2371=\"Log value\",DataLog!M2371,\"\")","v":""},{"$f":"IF(DataLog!$C2371=\"Log value\",DataLog!N2371,\"\")","v":""},{"$f":"IF(DataLog!$C2371=\"Log value\",DataLog!O2371,\"\")","v":""},{"$f":"IF(DataLog!$C2371=\"Log value\",DataLog!P2371,\"\")","v":""},{"$f":"IF(DataLog!$C2371=\"Log value\",DataLog!Q2371,\"\")","v":""},{"$f":"IF(DataLog!$C2371=\"Log value\",DataLog!R2371,\"\")","v":""},{"$f":"IF(DataLog!$C2371=\"Log value\",DataLog!S2371,\"\")","v":""},{"$f":"IF(DataLog!$C2371=\"Log value\",DataLog!T2371,\"\")","v":""},{"$f":"IF(DataLog!$C2371=\"Log value\",DataLog!U2371,\"\")","v":""},{"$f":"IF(DataLog!$C2371=\"Log value\",DataLog!V2371,\"\")","v":""},{"$f":"IF(DataLog!$C2371=\"Log value\",DataLog!W2371,\"\")","v":""},{"$f":"IF(DataLog!$C2371=\"Log value\",DataLog!X2371,\"\")","v":""},{"$f":"IF(DataLog!$C2371=\"Log value\",DataLog!Y2371,\"\")","v":""},{"$f":"IF(DataLog!$C2371=\"Log value\",DataLog!Z2371,\"\")","v":""},{"$f":"IF(DataLog!$C2371=\"Log value\",DataLog!AA2371,\"\")","v":""},{"$f":"IF(DataLog!$C2371=\"Log value\",DataLog!AB2371,\"\")","v":""},{"$f":"IF(DataLog!$C2371=\"Log value\",DataLog!AC2371,\"\")","v":""},{"$f":"IF(DataLog!$C2371=\"Log value\",DataLog!AD2371,\"\")","v":""},{"$f":"IF(DataLog!$C2371=\"Log value\",DataLog!AE2371,\"\")","v":""},{"$f":"IF(DataLog!$C2371=\"Log value\",DataLog!AF2371,\"\")","v":""},{"$f":"IF(DataLog!$C2371=\"Log value\",DataLog!AG2371,\"\")","v":""},{"$f":"IF(DataLog!$C2371=\"Log value\",DataLog!AH2371,\"\")","v":""},{"$f":"IF(DataLog!$C2371=\"Log value\",DataLog!AI2371,\"\")","v":""},{"$f":"IF(DataLog!$C2371=\"Log value\",DataLog!AJ2371,\"\")","v":""},{"$f":"IF(DataLog!$C2371=\"Log value\",DataLog!AK2371,\"\")","v":""},{"$f":"IF(DataLog!$C2371=\"Log value\",DataLog!AL2371,\"\")","v":""},{"$f":"IF(DataLog!$C2371=\"Log value\",DataLog!AM2371,\"\")","v":""}]
[null,null,null,null,null,null,{"$f":"IF(DataLog!$C2372=\"Log value\",DataLog!D2372&\"_\"&TEXT(DataLog!B2372,\"åååå-mm-dd\"),\"\")","v":""},{"$f":"IF(DataLog!$C2372=\"Log value\",DataLog!E2372,\"\")","v":""},{"$f":"IF(DataLog!$C2372=\"Log value\",DataLog!F2372,\"\")","v":""},{"$f":"IF(DataLog!$C2372=\"Log value\",DataLog!G2372,\"\")","v":""},{"$f":"IF(DataLog!$C2372=\"Log value\",DataLog!H2372,\"\")","v":""},{"$f":"IF(DataLog!$C2372=\"Log value\",DataLog!I2372,\"\")","v":""},{"$f":"IF(DataLog!$C2372=\"Log value\",DataLog!J2372,\"\")","v":""},{"$f":"IF(DataLog!$C2372=\"Log value\",DataLog!K2372,\"\")","v":""},{"$f":"IF(DataLog!$C2372=\"Log value\",DataLog!L2372,\"\")","v":""},{"$f":"IF(DataLog!$C2372=\"Log value\",DataLog!M2372,\"\")","v":""},{"$f":"IF(DataLog!$C2372=\"Log value\",DataLog!N2372,\"\")","v":""},{"$f":"IF(DataLog!$C2372=\"Log value\",DataLog!O2372,\"\")","v":""},{"$f":"IF(DataLog!$C2372=\"Log value\",DataLog!P2372,\"\")","v":""},{"$f":"IF(DataLog!$C2372=\"Log value\",DataLog!Q2372,\"\")","v":""},{"$f":"IF(DataLog!$C2372=\"Log value\",DataLog!R2372,\"\")","v":""},{"$f":"IF(DataLog!$C2372=\"Log value\",DataLog!S2372,\"\")","v":""},{"$f":"IF(DataLog!$C2372=\"Log value\",DataLog!T2372,\"\")","v":""},{"$f":"IF(DataLog!$C2372=\"Log value\",DataLog!U2372,\"\")","v":""},{"$f":"IF(DataLog!$C2372=\"Log value\",DataLog!V2372,\"\")","v":""},{"$f":"IF(DataLog!$C2372=\"Log value\",DataLog!W2372,\"\")","v":""},{"$f":"IF(DataLog!$C2372=\"Log value\",DataLog!X2372,\"\")","v":""},{"$f":"IF(DataLog!$C2372=\"Log value\",DataLog!Y2372,\"\")","v":""},{"$f":"IF(DataLog!$C2372=\"Log value\",DataLog!Z2372,\"\")","v":""},{"$f":"IF(DataLog!$C2372=\"Log value\",DataLog!AA2372,\"\")","v":""},{"$f":"IF(DataLog!$C2372=\"Log value\",DataLog!AB2372,\"\")","v":""},{"$f":"IF(DataLog!$C2372=\"Log value\",DataLog!AC2372,\"\")","v":""},{"$f":"IF(DataLog!$C2372=\"Log value\",DataLog!AD2372,\"\")","v":""},{"$f":"IF(DataLog!$C2372=\"Log value\",DataLog!AE2372,\"\")","v":""},{"$f":"IF(DataLog!$C2372=\"Log value\",DataLog!AF2372,\"\")","v":""},{"$f":"IF(DataLog!$C2372=\"Log value\",DataLog!AG2372,\"\")","v":""},{"$f":"IF(DataLog!$C2372=\"Log value\",DataLog!AH2372,\"\")","v":""},{"$f":"IF(DataLog!$C2372=\"Log value\",DataLog!AI2372,\"\")","v":""},{"$f":"IF(DataLog!$C2372=\"Log value\",DataLog!AJ2372,\"\")","v":""},{"$f":"IF(DataLog!$C2372=\"Log value\",DataLog!AK2372,\"\")","v":""},{"$f":"IF(DataLog!$C2372=\"Log value\",DataLog!AL2372,\"\")","v":""},{"$f":"IF(DataLog!$C2372=\"Log value\",DataLog!AM2372,\"\")","v":""}]
[null,null,null,null,null,null,{"$f":"IF(DataLog!$C2375=\"Log value\",DataLog!D2375&\"_\"&TEXT(DataLog!B2375,\"åååå-mm-dd\"),\"\")","v":""},{"$f":"IF(DataLog!$C2375=\"Log value\",DataLog!E2375,\"\")","v":""},{"$f":"IF(DataLog!$C2375=\"Log value\",DataLog!F2375,\"\")","v":""},{"$f":"IF(DataLog!$C2375=\"Log value\",DataLog!G2375,\"\")","v":""},{"$f":"IF(DataLog!$C2375=\"Log value\",DataLog!H2375,\"\")","v":""},{"$f":"IF(DataLog!$C2375=\"Log value\",DataLog!I2375,\"\")","v":""},{"$f":"IF(DataLog!$C2375=\"Log value\",DataLog!J2375,\"\")","v":""},{"$f":"IF(DataLog!$C2375=\"Log value\",DataLog!K2375,\"\")","v":""},{"$f":"IF(DataLog!$C2375=\"Log value\",DataLog!L2375,\"\")","v":""},{"$f":"IF(DataLog!$C2375=\"Log value\",DataLog!M2375,\"\")","v":""},{"$f":"IF(DataLog!$C2375=\"Log value\",DataLog!N2375,\"\")","v":""},{"$f":"IF(DataLog!$C2375=\"Log value\",DataLog!O2375,\"\")","v":""},{"$f":"IF(DataLog!$C2375=\"Log value\",DataLog!P2375,\"\")","v":""},{"$f":"IF(DataLog!$C2375=\"Log value\",DataLog!Q2375,\"\")","v":""},{"$f":"IF(DataLog!$C2375=\"Log value\",DataLog!R2375,\"\")","v":""},{"$f":"IF(DataLog!$C2375=\"Log value\",DataLog!S2375,\"\")","v":""},{"$f":"IF(DataLog!$C2375=\"Log value\",DataLog!T2375,\"\")","v":""},{"$f":"IF(DataLog!$C2375=\"Log value\",DataLog!U2375,\"\")","v":""},{"$f":"IF(DataLog!$C2375=\"Log value\",DataLog!V2375,\"\")","v":""},{"$f":"IF(DataLog!$C2375=\"Log value\",DataLog!W2375,\"\")","v":""},{"$f":"IF(DataLog!$C2375=\"Log value\",DataLog!X2375,\"\")","v":""},{"$f":"IF(DataLog!$C2375=\"Log value\",DataLog!Y2375,\"\")","v":""},{"$f":"IF(DataLog!$C2375=\"Log value\",DataLog!Z2375,\"\")","v":""},{"$f":"IF(DataLog!$C2375=\"Log value\",DataLog!AA2375,\"\")","v":""},{"$f":"IF(DataLog!$C2375=\"Log value\",DataLog!AB2375,\"\")","v":""},{"$f":"IF(DataLog!$C2375=\"Log value\",DataLog!AC2375,\"\")","v":""},{"$f":"IF(DataLog!$C2375=\"Log value\",DataLog!AD2375,\"\")","v":""},{"$f":"IF(DataLog!$C2375=\"Log value\",DataLog!AE2375,\"\")","v":""},{"$f":"IF(DataLog!$C2375=\"Log value\",DataLog!AF2375,\"\")","v":""},{"$f":"IF(DataLog!$C2375=\"Log value\",DataLog!AG2375,\"\")","v":""},{"$f":"IF(DataLog!$C2375=\"Log value\",DataLog!AH2375,\"\")","v":""},{"$f":"IF(DataLog!$C2375=\"Log value\",DataLog!AI2375,\"\")","v":""},{"$f":"IF(DataLog!$C2375=\"Log value\",DataLog!AJ2375,\"\")","v":""},{"$f":"IF(DataLog!$C2375=\"Log value\",DataLog!AK2375,\"\")","v":""},{"$f":"IF(DataLog!$C2375=\"Log value\",DataLog!AL2375,\"\")","v":""},{"$f":"IF(DataLog!$C2375=\"Log value\",DataLog!AM2375,\"\")","v":""}]
[null,null,null,null,null,null,{"$f":"IF(DataLog!$C2377=\"Log value\",DataLog!D2377&\"_\"&TEXT(DataLog!B2377,\"åååå-mm-dd\"),\"\")","v":""},{"$f":"IF(DataLog!$C2377=\"Log value\",DataLog!E2377,\"\")","v":""},{"$f":"IF(DataLog!$C2377=\"Log value\",DataLog!F2377,\"\")","v":""},{"$f":"IF(DataLog!$C2377=\"Log value\",DataLog!G2377,\"\")","v":""},{"$f":"IF(DataLog!$C2377=\"Log value\",DataLog!H2377,\"\")","v":""},{"$f":"IF(DataLog!$C2377=\"Log value\",DataLog!I2377,\"\")","v":""},{"$f":"IF(DataLog!$C2377=\"Log value\",DataLog!J2377,\"\")","v":""},{"$f":"IF(DataLog!$C2377=\"Log value\",DataLog!K2377,\"\")","v":""},{"$f":"IF(DataLog!$C2377=\"Log value\",DataLog!L2377,\"\")","v":""},{"$f":"IF(DataLog!$C2377=\"Log value\",DataLog!M2377,\"\")","v":""},{"$f":"IF(DataLog!$C2377=\"Log value\",DataLog!N2377,\"\")","v":""},{"$f":"IF(DataLog!$C2377=\"Log value\",DataLog!O2377,\"\")","v":""},{"$f":"IF(DataLog!$C2377=\"Log value\",DataLog!P2377,\"\")","v":""},{"$f":"IF(DataLog!$C2377=\"Log value\",DataLog!Q2377,\"\")","v":""},{"$f":"IF(DataLog!$C2377=\"Log value\",DataLog!R2377,\"\")","v":""},{"$f":"IF(DataLog!$C2377=\"Log value\",DataLog!S2377,\"\")","v":""},{"$f":"IF(DataLog!$C2377=\"Log value\",DataLog!T2377,\"\")","v":""},{"$f":"IF(DataLog!$C2377=\"Log value\",DataLog!U2377,\"\")","v":""},{"$f":"IF(DataLog!$C2377=\"Log value\",DataLog!V2377,\"\")","v":""},{"$f":"IF(DataLog!$C2377=\"Log value\",DataLog!W2377,\"\")","v":""},{"$f":"IF(DataLog!$C2377=\"Log value\",DataLog!X2377,\"\")","v":""},{"$f":"IF(DataLog!$C2377=\"Log value\",DataLog!Y2377,\"\")","v":""},{"$f":"IF(DataLog!$C2377=\"Log value\",DataLog!Z2377,\"\")","v":""},{"$f":"IF(DataLog!$C2377=\"Log value\",DataLog!AA2377,\"\")","v":""},{"$f":"IF(DataLog!$C2377=\"Log value\",DataLog!AB2377,\"\")","v":""},{"$f":"IF(DataLog!$C2377=\"Log value\",DataLog!AC2377,\"\")","v":""},{"$f":"IF(DataLog!$C2377=\"Log value\",DataLog!AD2377,\"\")","v":""},{"$f":"IF(DataLog!$C2377=\"Log value\",DataLog!AE2377,\"\")","v":""},{"$f":"IF(DataLog!$C2377=\"Log value\",DataLog!AF2377,\"\")","v":""},{"$f":"IF(DataLog!$C2377=\"Log value\",DataLog!AG2377,\"\")","v":""},{"$f":"IF(DataLog!$C2377=\"Log value\",DataLog!AH2377,\"\")","v":""},{"$f":"IF(DataLog!$C2377=\"Log value\",DataLog!AI2377,\"\")","v":""},{"$f":"IF(DataLog!$C2377=\"Log value\",DataLog!AJ2377,\"\")","v":""},{"$f":"IF(DataLog!$C2377=\"Log value\",DataLog!AK2377,\"\")","v":""},{"$f":"IF(DataLog!$C2377=\"Log value\",DataLog!AL2377,\"\")","v":""},{"$f":"IF(DataLog!$C2377=\"Log value\",DataLog!AM2377,\"\")","v":""}]
[null,null,null,null,null,null,{"$f":"IF(DataLog!$C2380=\"Log value\",DataLog!D2380&\"_\"&TEXT(DataLog!B2380,\"åååå-mm-dd\"),\"\")","v":""},{"$f":"IF(DataLog!$C2380=\"Log value\",DataLog!E2380,\"\")","v":""},{"$f":"IF(DataLog!$C2380=\"Log value\",DataLog!F2380,\"\")","v":""},{"$f":"IF(DataLog!$C2380=\"Log value\",DataLog!G2380,\"\")","v":""},{"$f":"IF(DataLog!$C2380=\"Log value\",DataLog!H2380,\"\")","v":""},{"$f":"IF(DataLog!$C2380=\"Log value\",DataLog!I2380,\"\")","v":""},{"$f":"IF(DataLog!$C2380=\"Log value\",DataLog!J2380,\"\")","v":""},{"$f":"IF(DataLog!$C2380=\"Log value\",DataLog!K2380,\"\")","v":""},{"$f":"IF(DataLog!$C2380=\"Log value\",DataLog!L2380,\"\")","v":""},{"$f":"IF(DataLog!$C2380=\"Log value\",DataLog!M2380,\"\")","v":""},{"$f":"IF(DataLog!$C2380=\"Log value\",DataLog!N2380,\"\")","v":""},{"$f":"IF(DataLog!$C2380=\"Log value\",DataLog!O2380,\"\")","v":""},{"$f":"IF(DataLog!$C2380=\"Log value\",DataLog!P2380,\"\")","v":""},{"$f":"IF(DataLog!$C2380=\"Log value\",DataLog!Q2380,\"\")","v":""},{"$f":"IF(DataLog!$C2380=\"Log value\",DataLog!R2380,\"\")","v":""},{"$f":"IF(DataLog!$C2380=\"Log value\",DataLog!S2380,\"\")","v":""},{"$f":"IF(DataLog!$C2380=\"Log value\",DataLog!T2380,\"\")","v":""},{"$f":"IF(DataLog!$C2380=\"Log value\",DataLog!U2380,\"\")","v":""},{"$f":"IF(DataLog!$C2380=\"Log value\",DataLog!V2380,\"\")","v":""},{"$f":"IF(DataLog!$C2380=\"Log value\",DataLog!W2380,\"\")","v":""},{"$f":"IF(DataLog!$C2380=\"Log value\",DataLog!X2380,\"\")","v":""},{"$f":"IF(DataLog!$C2380=\"Log value\",DataLog!Y2380,\"\")","v":""},{"$f":"IF(DataLog!$C2380=\"Log value\",DataLog!Z2380,\"\")","v":""},{"$f":"IF(DataLog!$C2380=\"Log value\",DataLog!AA2380,\"\")","v":""},{"$f":"IF(DataLog!$C2380=\"Log value\",DataLog!AB2380,\"\")","v":""},{"$f":"IF(DataLog!$C2380=\"Log value\",DataLog!AC2380,\"\")","v":""},{"$f":"IF(DataLog!$C2380=\"Log value\",DataLog!AD2380,\"\")","v":""},{"$f":"IF(DataLog!$C2380=\"Log value\",DataLog!AE2380,\"\")","v":""},{"$f":"IF(DataLog!$C2380=\"Log value\",DataLog!AF2380,\"\")","v":""},{"$f":"IF(DataLog!$C2380=\"Log value\",DataLog!AG2380,\"\")","v":""},{"$f":"IF(DataLog!$C2380=\"Log value\",DataLog!AH2380,\"\")","v":""},{"$f":"IF(DataLog!$C2380=\"Log value\",DataLog!AI2380,\"\")","v":""},{"$f":"IF(DataLog!$C2380=\"Log value\",DataLog!AJ2380,\"\")","v":""},{"$f":"IF(DataLog!$C2380=\"Log value\",DataLog!AK2380,\"\")","v":""},{"$f":"IF(DataLog!$C2380=\"Log value\",DataLog!AL2380,\"\")","v":""},{"$f":"IF(DataLog!$C2380=\"Log value\",DataLog!AM2380,\"\")","v":""}]
[null,null,null,null,null,null,{"$f":"IF(DataLog!$C2381=\"Log value\",DataLog!D2381&\"_\"&TEXT(DataLog!B2381,\"åååå-mm-dd\"),\"\")","v":""},{"$f":"IF(DataLog!$C2381=\"Log value\",DataLog!E2381,\"\")","v":""},{"$f":"IF(DataLog!$C2381=\"Log value\",DataLog!F2381,\"\")","v":""},{"$f":"IF(DataLog!$C2381=\"Log value\",DataLog!G2381,\"\")","v":""},{"$f":"IF(DataLog!$C2381=\"Log value\",DataLog!H2381,\"\")","v":""},{"$f":"IF(DataLog!$C2381=\"Log value\",DataLog!I2381,\"\")","v":""},{"$f":"IF(DataLog!$C2381=\"Log value\",DataLog!J2381,\"\")","v":""},{"$f":"IF(DataLog!$C2381=\"Log value\",DataLog!K2381,\"\")","v":""},{"$f":"IF(DataLog!$C2381=\"Log value\",DataLog!L2381,\"\")","v":""},{"$f":"IF(DataLog!$C2381=\"Log value\",DataLog!M2381,\"\")","v":""},{"$f":"IF(DataLog!$C2381=\"Log value\",DataLog!N2381,\"\")","v":""},{"$f":"IF(DataLog!$C2381=\"Log value\",DataLog!O2381,\"\")","v":""},{"$f":"IF(DataLog!$C2381=\"Log value\",DataLog!P2381,\"\")","v":""},{"$f":"IF(DataLog!$C2381=\"Log value\",DataLog!Q2381,\"\")","v":""},{"$f":"IF(DataLog!$C2381=\"Log value\",DataLog!R2381,\"\")","v":""},{"$f":"IF(DataLog!$C2381=\"Log value\",DataLog!S2381,\"\")","v":""},{"$f":"IF(DataLog!$C2381=\"Log value\",DataLog!T2381,\"\")","v":""},{"$f":"IF(DataLog!$C2381=\"Log value\",DataLog!U2381,\"\")","v":""},{"$f":"IF(DataLog!$C2381=\"Log value\",DataLog!V2381,\"\")","v":""},{"$f":"IF(DataLog!$C2381=\"Log value\",DataLog!W2381,\"\")","v":""},{"$f":"IF(DataLog!$C2381=\"Log value\",DataLog!X2381,\"\")","v":""},{"$f":"IF(DataLog!$C2381=\"Log value\",DataLog!Y2381,\"\")","v":""},{"$f":"IF(DataLog!$C2381=\"Log value\",DataLog!Z2381,\"\")","v":""},{"$f":"IF(DataLog!$C2381=\"Log value\",DataLog!AA2381,\"\")","v":""},{"$f":"IF(DataLog!$C2381=\"Log value\",DataLog!AB2381,\"\")","v":""},{"$f":"IF(DataLog!$C2381=\"Log value\",DataLog!AC2381,\"\")","v":""},{"$f":"IF(DataLog!$C2381=\"Log value\",DataLog!AD2381,\"\")","v":""},{"$f":"IF(DataLog!$C2381=\"Log value\",DataLog!AE2381,\"\")","v":""},{"$f":"IF(DataLog!$C2381=\"Log value\",DataLog!AF2381,\"\")","v":""},{"$f":"IF(DataLog!$C2381=\"Log value\",DataLog!AG2381,\"\")","v":""},{"$f":"IF(DataLog!$C2381=\"Log value\",DataLog!AH2381,\"\")","v":""},{"$f":"IF(DataLog!$C2381=\"Log value\",DataLog!AI2381,\"\")","v":""},{"$f":"IF(DataLog!$C2381=\"Log value\",DataLog!AJ2381,\"\")","v":""},{"$f":"IF(DataLog!$C2381=\"Log value\",DataLog!AK2381,\"\")","v":""},{"$f":"IF(DataLog!$C2381=\"Log value\",DataLog!AL2381,\"\")","v":""},{"$f":"IF(DataLog!$C2381=\"Log value\",DataLog!AM2381,\"\")","v":""}]
[null,null,null,null,null,null,{"$f":"IF(DataLog!$C2384=\"Log value\",DataLog!D2384&\"_\"&TEXT(DataLog!B2384,\"åååå-mm-dd\"),\"\")","v":""},{"$f":"IF(DataLog!$C2384=\"Log value\",DataLog!E2384,\"\")","v":""},{"$f":"IF(DataLog!$C2384=\"Log value\",DataLog!F2384,\"\")","v":""},{"$f":"IF(DataLog!$C2384=\"Log value\",DataLog!G2384,\"\")","v":""},{"$f":"IF(DataLog!$C2384=\"Log value\",DataLog!H2384,\"\")","v":""},{"$f":"IF(DataLog!$C2384=\"Log value\",DataLog!I2384,\"\")","v":""},{"$f":"IF(DataLog!$C2384=\"Log value\",DataLog!J2384,\"\")","v":""},{"$f":"IF(DataLog!$C2384=\"Log value\",DataLog!K2384,\"\")","v":""},{"$f":"IF(DataLog!$C2384=\"Log value\",DataLog!L2384,\"\")","v":""},{"$f":"IF(DataLog!$C2384=\"Log value\",DataLog!M2384,\"\")","v":""},{"$f":"IF(DataLog!$C2384=\"Log value\",DataLog!N2384,\"\")","v":""},{"$f":"IF(DataLog!$C2384=\"Log value\",DataLog!O2384,\"\")","v":""},{"$f":"IF(DataLog!$C2384=\"Log value\",DataLog!P2384,\"\")","v":""},{"$f":"IF(DataLog!$C2384=\"Log value\",DataLog!Q2384,\"\")","v":""},{"$f":"IF(DataLog!$C2384=\"Log value\",DataLog!R2384,\"\")","v":""},{"$f":"IF(DataLog!$C2384=\"Log value\",DataLog!S2384,\"\")","v":""},{"$f":"IF(DataLog!$C2384=\"Log value\",DataLog!T2384,\"\")","v":""},{"$f":"IF(DataLog!$C2384=\"Log value\",DataLog!U2384,\"\")","v":""},{"$f":"IF(DataLog!$C2384=\"Log value\",DataLog!V2384,\"\")","v":""},{"$f":"IF(DataLog!$C2384=\"Log value\",DataLog!W2384,\"\")","v":""},{"$f":"IF(DataLog!$C2384=\"Log value\",DataLog!X2384,\"\")","v":""},{"$f":"IF(DataLog!$C2384=\"Log value\",DataLog!Y2384,\"\")","v":""},{"$f":"IF(DataLog!$C2384=\"Log value\",DataLog!Z2384,\"\")","v":""},{"$f":"IF(DataLog!$C2384=\"Log value\",DataLog!AA2384,\"\")","v":""},{"$f":"IF(DataLog!$C2384=\"Log value\",DataLog!AB2384,\"\")","v":""},{"$f":"IF(DataLog!$C2384=\"Log value\",DataLog!AC2384,\"\")","v":""},{"$f":"IF(DataLog!$C2384=\"Log value\",DataLog!AD2384,\"\")","v":""},{"$f":"IF(DataLog!$C2384=\"Log value\",DataLog!AE2384,\"\")","v":""},{"$f":"IF(DataLog!$C2384=\"Log value\",DataLog!AF2384,\"\")","v":""},{"$f":"IF(DataLog!$C2384=\"Log value\",DataLog!AG2384,\"\")","v":""},{"$f":"IF(DataLog!$C2384=\"Log value\",DataLog!AH2384,\"\")","v":""},{"$f":"IF(DataLog!$C2384=\"Log value\",DataLog!AI2384,\"\")","v":""},{"$f":"IF(DataLog!$C2384=\"Log value\",DataLog!AJ2384,\"\")","v":""},{"$f":"IF(DataLog!$C2384=\"Log value\",DataLog!AK2384,\"\")","v":""},{"$f":"IF(DataLog!$C2384=\"Log value\",DataLog!AL2384,\"\")","v":""},{"$f":"IF(DataLog!$C2384=\"Log value\",DataLog!AM2384,\"\")","v":""}]
[null,null,null,null,null,null,{"$f":"IF(DataLog!$C2385=\"Log value\",DataLog!D2385&\"_\"&TEXT(DataLog!B2385,\"åååå-mm-dd\"),\"\")","v":""},{"$f":"IF(DataLog!$C2385=\"Log value\",DataLog!E2385,\"\")","v":""},{"$f":"IF(DataLog!$C2385=\"Log value\",DataLog!F2385,\"\")","v":""},{"$f":"IF(DataLog!$C2385=\"Log value\",DataLog!G2385,\"\")","v":""},{"$f":"IF(DataLog!$C2385=\"Log value\",DataLog!H2385,\"\")","v":""},{"$f":"IF(DataLog!$C2385=\"Log value\",DataLog!I2385,\"\")","v":""},{"$f":"IF(DataLog!$C2385=\"Log value\",DataLog!J2385,\"\")","v":""},{"$f":"IF(DataLog!$C2385=\"Log value\",DataLog!K2385,\"\")","v":""},{"$f":"IF(DataLog!$C2385=\"Log value\",DataLog!L2385,\"\")","v":""},{"$f":"IF(DataLog!$C2385=\"Log value\",DataLog!M2385,\"\")","v":""},{"$f":"IF(DataLog!$C2385=\"Log value\",DataLog!N2385,\"\")","v":""},{"$f":"IF(DataLog!$C2385=\"Log value\",DataLog!O2385,\"\")","v":""},{"$f":"IF(DataLog!$C2385=\"Log value\",DataLog!P2385,\"\")","v":""},{"$f":"IF(DataLog!$C2385=\"Log value\",DataLog!Q2385,\"\")","v":""},{"$f":"IF(DataLog!$C2385=\"Log value\",DataLog!R2385,\"\")","v":""},{"$f":"IF(DataLog!$C2385=\"Log value\",DataLog!S2385,\"\")","v":""},{"$f":"IF(DataLog!$C2385=\"Log value\",DataLog!T2385,\"\")","v":""},{"$f":"IF(DataLog!$C2385=\"Log value\",DataLog!U2385,\"\")","v":""},{"$f":"IF(DataLog!$C2385=\"Log value\",DataLog!V2385,\"\")","v":""},{"$f":"IF(DataLog!$C2385=\"Log value\",DataLog!W2385,\"\")","v":""},{"$f":"IF(DataLog!$C2385=\"Log value\",DataLog!X2385,\"\")","v":""},{"$f":"IF(DataLog!$C2385=\"Log value\",DataLog!Y2385,\"\")","v":""},{"$f":"IF(DataLog!$C2385=\"Log value\",DataLog!Z2385,\"\")","v":""},{"$f":"IF(DataLog!$C2385=\"Log value\",DataLog!AA2385,\"\")","v":""},{"$f":"IF(DataLog!$C2385=\"Log value\",DataLog!AB2385,\"\")","v":""},{"$f":"IF(DataLog!$C2385=\"Log value\",DataLog!AC2385,\"\")","v":""},{"$f":"IF(DataLog!$C2385=\"Log value\",DataLog!AD2385,\"\")","v":""},{"$f":"IF(DataLog!$C2385=\"Log value\",DataLog!AE2385,\"\")","v":""},{"$f":"IF(DataLog!$C2385=\"Log value\",DataLog!AF2385,\"\")","v":""},{"$f":"IF(DataLog!$C2385=\"Log value\",DataLog!AG2385,\"\")","v":""},{"$f":"IF(DataLog!$C2385=\"Log value\",DataLog!AH2385,\"\")","v":""},{"$f":"IF(DataLog!$C2385=\"Log value\",DataLog!AI2385,\"\")","v":""},{"$f":"IF(DataLog!$C2385=\"Log value\",DataLog!AJ2385,\"\")","v":""},{"$f":"IF(DataLog!$C2385=\"Log value\",DataLog!AK2385,\"\")","v":""},{"$f":"IF(DataLog!$C2385=\"Log value\",DataLog!AL2385,\"\")","v":""},{"$f":"IF(DataLog!$C2385=\"Log value\",DataLog!AM2385,\"\")","v":""}]
[null,null,null,null,null,null,{"$f":"IF(DataLog!$C2389=\"Log value\",DataLog!D2389&\"_\"&TEXT(DataLog!B2389,\"åååå-mm-dd\"),\"\")","v":""},{"$f":"IF(DataLog!$C2389=\"Log value\",DataLog!E2389,\"\")","v":""},{"$f":"IF(DataLog!$C2389=\"Log value\",DataLog!F2389,\"\")","v":""},{"$f":"IF(DataLog!$C2389=\"Log value\",DataLog!G2389,\"\")","v":""},{"$f":"IF(DataLog!$C2389=\"Log value\",DataLog!H2389,\"\")","v":""},{"$f":"IF(DataLog!$C2389=\"Log value\",DataLog!I2389,\"\")","v":""},{"$f":"IF(DataLog!$C2389=\"Log value\",DataLog!J2389,\"\")","v":""},{"$f":"IF(DataLog!$C2389=\"Log value\",DataLog!K2389,\"\")","v":""},{"$f":"IF(DataLog!$C2389=\"Log value\",DataLog!L2389,\"\")","v":""},{"$f":"IF(DataLog!$C2389=\"Log value\",DataLog!M2389,\"\")","v":""},{"$f":"IF(DataLog!$C2389=\"Log value\",DataLog!N2389,\"\")","v":""},{"$f":"IF(DataLog!$C2389=\"Log value\",DataLog!O2389,\"\")","v":""},{"$f":"IF(DataLog!$C2389=\"Log value\",DataLog!P2389,\"\")","v":""},{"$f":"IF(DataLog!$C2389=\"Log value\",DataLog!Q2389,\"\")","v":""},{"$f":"IF(DataLog!$C2389=\"Log value\",DataLog!R2389,\"\")","v":""},{"$f":"IF(DataLog!$C2389=\"Log value\",DataLog!S2389,\"\")","v":""},{"$f":"IF(DataLog!$C2389=\"Log value\",DataLog!T2389,\"\")","v":""},{"$f":"IF(DataLog!$C2389=\"Log value\",DataLog!U2389,\"\")","v":""},{"$f":"IF(DataLog!$C2389=\"Log value\",DataLog!V2389,\"\")","v":""},{"$f":"IF(DataLog!$C2389=\"Log value\",DataLog!W2389,\"\")","v":""},{"$f":"IF(DataLog!$C2389=\"Log value\",DataLog!X2389,\"\")","v":""},{"$f":"IF(DataLog!$C2389=\"Log value\",DataLog!Y2389,\"\")","v":""},{"$f":"IF(DataLog!$C2389=\"Log value\",DataLog!Z2389,\"\")","v":""},{"$f":"IF(DataLog!$C2389=\"Log value\",DataLog!AA2389,\"\")","v":""},{"$f":"IF(DataLog!$C2389=\"Log value\",DataLog!AB2389,\"\")","v":""},{"$f":"IF(DataLog!$C2389=\"Log value\",DataLog!AC2389,\"\")","v":""},{"$f":"IF(DataLog!$C2389=\"Log value\",DataLog!AD2389,\"\")","v":""},{"$f":"IF(DataLog!$C2389=\"Log value\",DataLog!AE2389,\"\")","v":""},{"$f":"IF(DataLog!$C2389=\"Log value\",DataLog!AF2389,\"\")","v":""},{"$f":"IF(DataLog!$C2389=\"Log value\",DataLog!AG2389,\"\")","v":""},{"$f":"IF(DataLog!$C2389=\"Log value\",DataLog!AH2389,\"\")","v":""},{"$f":"IF(DataLog!$C2389=\"Log value\",DataLog!AI2389,\"\")","v":""},{"$f":"IF(DataLog!$C2389=\"Log value\",DataLog!AJ2389,\"\")","v":""},{"$f":"IF(DataLog!$C2389=\"Log value\",DataLog!AK2389,\"\")","v":""},{"$f":"IF(DataLog!$C2389=\"Log value\",DataLog!AL2389,\"\")","v":""},{"$f":"IF(DataLog!$C2389=\"Log value\",DataLog!AM2389,\"\")","v":""}]
[null,null,null,null,null,null,{"$f":"IF(DataLog!$C2390=\"Log value\",DataLog!D2390&\"_\"&TEXT(DataLog!B2390,\"åååå-mm-dd\"),\"\")","v":""},{"$f":"IF(DataLog!$C2390=\"Log value\",DataLog!E2390,\"\")","v":""},{"$f":"IF(DataLog!$C2390=\"Log value\",DataLog!F2390,\"\")","v":""},{"$f":"IF(DataLog!$C2390=\"Log value\",DataLog!G2390,\"\")","v":""},{"$f":"IF(DataLog!$C2390=\"Log value\",DataLog!H2390,\"\")","v":""},{"$f":"IF(DataLog!$C2390=\"Log value\",DataLog!I2390,\"\")","v":""},{"$f":"IF(DataLog!$C2390=\"Log value\",DataLog!J2390,\"\")","v":""},{"$f":"IF(DataLog!$C2390=\"Log value\",DataLog!K2390,\"\")","v":""},{"$f":"IF(DataLog!$C2390=\"Log value\",DataLog!L2390,\"\")","v":""},{"$f":"IF(DataLog!$C2390=\"Log value\",DataLog!M2390,\"\")","v":""},{"$f":"IF(DataLog!$C2390=\"Log value\",DataLog!N2390,\"\")","v":""},{"$f":"IF(DataLog!$C2390=\"Log value\",DataLog!O2390,\"\")","v":""},{"$f":"IF(DataLog!$C2390=\"Log value\",DataLog!P2390,\"\")","v":""},{"$f":"IF(DataLog!$C2390=\"Log value\",DataLog!Q2390,\"\")","v":""},{"$f":"IF(DataLog!$C2390=\"Log value\",DataLog!R2390,\"\")","v":""},{"$f":"IF(DataLog!$C2390=\"Log value\",DataLog!S2390,\"\")","v":""},{"$f":"IF(DataLog!$C2390=\"Log value\",DataLog!T2390,\"\")","v":""},{"$f":"IF(DataLog!$C2390=\"Log value\",DataLog!U2390,\"\")","v":""},{"$f":"IF(DataLog!$C2390=\"Log value\",DataLog!V2390,\"\")","v":""},{"$f":"IF(DataLog!$C2390=\"Log value\",DataLog!W2390,\"\")","v":""},{"$f":"IF(DataLog!$C2390=\"Log value\",DataLog!X2390,\"\")","v":""},{"$f":"IF(DataLog!$C2390=\"Log value\",DataLog!Y2390,\"\")","v":""},{"$f":"IF(DataLog!$C2390=\"Log value\",DataLog!Z2390,\"\")","v":""},{"$f":"IF(DataLog!$C2390=\"Log value\",DataLog!AA2390,\"\")","v":""},{"$f":"IF(DataLog!$C2390=\"Log value\",DataLog!AB2390,\"\")","v":""},{"$f":"IF(DataLog!$C2390=\"Log value\",DataLog!AC2390,\"\")","v":""},{"$f":"IF(DataLog!$C2390=\"Log value\",DataLog!AD2390,\"\")","v":""},{"$f":"IF(DataLog!$C2390=\"Log value\",DataLog!AE2390,\"\")","v":""},{"$f":"IF(DataLog!$C2390=\"Log value\",DataLog!AF2390,\"\")","v":""},{"$f":"IF(DataLog!$C2390=\"Log value\",DataLog!AG2390,\"\")","v":""},{"$f":"IF(DataLog!$C2390=\"Log value\",DataLog!AH2390,\"\")","v":""},{"$f":"IF(DataLog!$C2390=\"Log value\",DataLog!AI2390,\"\")","v":""},{"$f":"IF(DataLog!$C2390=\"Log value\",DataLog!AJ2390,\"\")","v":""},{"$f":"IF(DataLog!$C2390=\"Log value\",DataLog!AK2390,\"\")","v":""},{"$f":"IF(DataLog!$C2390=\"Log value\",DataLog!AL2390,\"\")","v":""},{"$f":"IF(DataLog!$C2390=\"Log value\",DataLog!AM2390,\"\")","v":""}]
[null,null,null,null,null,null,{"$f":"IF(DataLog!$C2393=\"Log value\",DataLog!D2393&\"_\"&TEXT(DataLog!B2393,\"åååå-mm-dd\"),\"\")","v":""},{"$f":"IF(DataLog!$C2393=\"Log value\",DataLog!E2393,\"\")","v":""},{"$f":"IF(DataLog!$C2393=\"Log value\",DataLog!F2393,\"\")","v":""},{"$f":"IF(DataLog!$C2393=\"Log value\",DataLog!G2393,\"\")","v":""},{"$f":"IF(DataLog!$C2393=\"Log value\",DataLog!H2393,\"\")","v":""},{"$f":"IF(DataLog!$C2393=\"Log value\",DataLog!I2393,\"\")","v":""},{"$f":"IF(DataLog!$C2393=\"Log value\",DataLog!J2393,\"\")","v":""},{"$f":"IF(DataLog!$C2393=\"Log value\",DataLog!K2393,\"\")","v":""},{"$f":"IF(DataLog!$C2393=\"Log value\",DataLog!L2393,\"\")","v":""},{"$f":"IF(DataLog!$C2393=\"Log value\",DataLog!M2393,\"\")","v":""},{"$f":"IF(DataLog!$C2393=\"Log value\",DataLog!N2393,\"\")","v":""},{"$f":"IF(DataLog!$C2393=\"Log value\",DataLog!O2393,\"\")","v":""},{"$f":"IF(DataLog!$C2393=\"Log value\",DataLog!P2393,\"\")","v":""},{"$f":"IF(DataLog!$C2393=\"Log value\",DataLog!Q2393,\"\")","v":""},{"$f":"IF(DataLog!$C2393=\"Log value\",DataLog!R2393,\"\")","v":""},{"$f":"IF(DataLog!$C2393=\"Log value\",DataLog!S2393,\"\")","v":""},{"$f":"IF(DataLog!$C2393=\"Log value\",DataLog!T2393,\"\")","v":""},{"$f":"IF(DataLog!$C2393=\"Log value\",DataLog!U2393,\"\")","v":""},{"$f":"IF(DataLog!$C2393=\"Log value\",DataLog!V2393,\"\")","v":""},{"$f":"IF(DataLog!$C2393=\"Log value\",DataLog!W2393,\"\")","v":""},{"$f":"IF(DataLog!$C2393=\"Log value\",DataLog!X2393,\"\")","v":""},{"$f":"IF(DataLog!$C2393=\"Log value\",DataLog!Y2393,\"\")","v":""},{"$f":"IF(DataLog!$C2393=\"Log value\",DataLog!Z2393,\"\")","v":""},{"$f":"IF(DataLog!$C2393=\"Log value\",DataLog!AA2393,\"\")","v":""},{"$f":"IF(DataLog!$C2393=\"Log value\",DataLog!AB2393,\"\")","v":""},{"$f":"IF(DataLog!$C2393=\"Log value\",DataLog!AC2393,\"\")","v":""},{"$f":"IF(DataLog!$C2393=\"Log value\",DataLog!AD2393,\"\")","v":""},{"$f":"IF(DataLog!$C2393=\"Log value\",DataLog!AE2393,\"\")","v":""},{"$f":"IF(DataLog!$C2393=\"Log value\",DataLog!AF2393,\"\")","v":""},{"$f":"IF(DataLog!$C2393=\"Log value\",DataLog!AG2393,\"\")","v":""},{"$f":"IF(DataLog!$C2393=\"Log value\",DataLog!AH2393,\"\")","v":""},{"$f":"IF(DataLog!$C2393=\"Log value\",DataLog!AI2393,\"\")","v":""},{"$f":"IF(DataLog!$C2393=\"Log value\",DataLog!AJ2393,\"\")","v":""},{"$f":"IF(DataLog!$C2393=\"Log value\",DataLog!AK2393,\"\")","v":""},{"$f":"IF(DataLog!$C2393=\"Log value\",DataLog!AL2393,\"\")","v":""},{"$f":"IF(DataLog!$C2393=\"Log value\",DataLog!AM2393,\"\")","v":""}]
[null,null,null,null,null,null,{"$f":"IF(DataLog!$C2396=\"Log value\",DataLog!D2396&\"_\"&TEXT(DataLog!B2396,\"åååå-mm-dd\"),\"\")","v":""},{"$f":"IF(DataLog!$C2396=\"Log value\",DataLog!E2396,\"\")","v":""},{"$f":"IF(DataLog!$C2396=\"Log value\",DataLog!F2396,\"\")","v":""},{"$f":"IF(DataLog!$C2396=\"Log value\",DataLog!G2396,\"\")","v":""},{"$f":"IF(DataLog!$C2396=\"Log value\",DataLog!H2396,\"\")","v":""},{"$f":"IF(DataLog!$C2396=\"Log value\",DataLog!I2396,\"\")","v":""},{"$f":"IF(DataLog!$C2396=\"Log value\",DataLog!J2396,\"\")","v":""},{"$f":"IF(DataLog!$C2396=\"Log value\",DataLog!K2396,\"\")","v":""},{"$f":"IF(DataLog!$C2396=\"Log value\",DataLog!L2396,\"\")","v":""},{"$f":"IF(DataLog!$C2396=\"Log value\",DataLog!M2396,\"\")","v":""},{"$f":"IF(DataLog!$C2396=\"Log value\",DataLog!N2396,\"\")","v":""},{"$f":"IF(DataLog!$C2396=\"Log value\",DataLog!O2396,\"\")","v":""},{"$f":"IF(DataLog!$C2396=\"Log value\",DataLog!P2396,\"\")","v":""},{"$f":"IF(DataLog!$C2396=\"Log value\",DataLog!Q2396,\"\")","v":""},{"$f":"IF(DataLog!$C2396=\"Log value\",DataLog!R2396,\"\")","v":""},{"$f":"IF(DataLog!$C2396=\"Log value\",DataLog!S2396,\"\")","v":""},{"$f":"IF(DataLog!$C2396=\"Log value\",DataLog!T2396,\"\")","v":""},{"$f":"IF(DataLog!$C2396=\"Log value\",DataLog!U2396,\"\")","v":""},{"$f":"IF(DataLog!$C2396=\"Log value\",DataLog!V2396,\"\")","v":""},{"$f":"IF(DataLog!$C2396=\"Log value\",DataLog!W2396,\"\")","v":""},{"$f":"IF(DataLog!$C2396=\"Log value\",DataLog!X2396,\"\")","v":""},{"$f":"IF(DataLog!$C2396=\"Log value\",DataLog!Y2396,\"\")","v":""},{"$f":"IF(DataLog!$C2396=\"Log value\",DataLog!Z2396,\"\")","v":""},{"$f":"IF(DataLog!$C2396=\"Log value\",DataLog!AA2396,\"\")","v":""},{"$f":"IF(DataLog!$C2396=\"Log value\",DataLog!AB2396,\"\")","v":""},{"$f":"IF(DataLog!$C2396=\"Log value\",DataLog!AC2396,\"\")","v":""},{"$f":"IF(DataLog!$C2396=\"Log value\",DataLog!AD2396,\"\")","v":""},{"$f":"IF(DataLog!$C2396=\"Log value\",DataLog!AE2396,\"\")","v":""},{"$f":"IF(DataLog!$C2396=\"Log value\",DataLog!AF2396,\"\")","v":""},{"$f":"IF(DataLog!$C2396=\"Log value\",DataLog!AG2396,\"\")","v":""},{"$f":"IF(DataLog!$C2396=\"Log value\",DataLog!AH2396,\"\")","v":""},{"$f":"IF(DataLog!$C2396=\"Log value\",DataLog!AI2396,\"\")","v":""},{"$f":"IF(DataLog!$C2396=\"Log value\",DataLog!AJ2396,\"\")","v":""},{"$f":"IF(DataLog!$C2396=\"Log value\",DataLog!AK2396,\"\")","v":""},{"$f":"IF(DataLog!$C2396=\"Log value\",DataLog!AL2396,\"\")","v":""},{"$f":"IF(DataLog!$C2396=\"Log value\",DataLog!AM2396,\"\")","v":""}]
[null,null,null,null,null,null,{"$f":"IF(DataLog!$C2398=\"Log value\",DataLog!D2398&\"_\"&TEXT(DataLog!B2398,\"åååå-mm-dd\"),\"\")","v":""},{"$f":"IF(DataLog!$C2398=\"Log value\",DataLog!E2398,\"\")","v":""},{"$f":"IF(DataLog!$C2398=\"Log value\",DataLog!F2398,\"\")","v":""},{"$f":"IF(DataLog!$C2398=\"Log value\",DataLog!G2398,\"\")","v":""},{"$f":"IF(DataLog!$C2398=\"Log value\",DataLog!H2398,\"\")","v":""},{"$f":"IF(DataLog!$C2398=\"Log value\",DataLog!I2398,\"\")","v":""},{"$f":"IF(DataLog!$C2398=\"Log value\",DataLog!J2398,\"\")","v":""},{"$f":"IF(DataLog!$C2398=\"Log value\",DataLog!K2398,\"\")","v":""},{"$f":"IF(DataLog!$C2398=\"Log value\",DataLog!L2398,\"\")","v":""},{"$f":"IF(DataLog!$C2398=\"Log value\",DataLog!M2398,\"\")","v":""},{"$f":"IF(DataLog!$C2398=\"Log value\",DataLog!N2398,\"\")","v":""},{"$f":"IF(DataLog!$C2398=\"Log value\",DataLog!O2398,\"\")","v":""},{"$f":"IF(DataLog!$C2398=\"Log value\",DataLog!P2398,\"\")","v":""},{"$f":"IF(DataLog!$C2398=\"Log value\",DataLog!Q2398,\"\")","v":""},{"$f":"IF(DataLog!$C2398=\"Log value\",DataLog!R2398,\"\")","v":""},{"$f":"IF(DataLog!$C2398=\"Log value\",DataLog!S2398,\"\")","v":""},{"$f":"IF(DataLog!$C2398=\"Log value\",DataLog!T2398,\"\")","v":""},{"$f":"IF(DataLog!$C2398=\"Log value\",DataLog!U2398,\"\")","v":""},{"$f":"IF(DataLog!$C2398=\"Log value\",DataLog!V2398,\"\")","v":""},{"$f":"IF(DataLog!$C2398=\"Log value\",DataLog!W2398,\"\")","v":""},{"$f":"IF(DataLog!$C2398=\"Log value\",DataLog!X2398,\"\")","v":""},{"$f":"IF(DataLog!$C2398=\"Log value\",DataLog!Y2398,\"\")","v":""},{"$f":"IF(DataLog!$C2398=\"Log value\",DataLog!Z2398,\"\")","v":""},{"$f":"IF(DataLog!$C2398=\"Log value\",DataLog!AA2398,\"\")","v":""},{"$f":"IF(DataLog!$C2398=\"Log value\",DataLog!AB2398,\"\")","v":""},{"$f":"IF(DataLog!$C2398=\"Log value\",DataLog!AC2398,\"\")","v":""},{"$f":"IF(DataLog!$C2398=\"Log value\",DataLog!AD2398,\"\")","v":""},{"$f":"IF(DataLog!$C2398=\"Log value\",DataLog!AE2398,\"\")","v":""},{"$f":"IF(DataLog!$C2398=\"Log value\",DataLog!AF2398,\"\")","v":""},{"$f":"IF(DataLog!$C2398=\"Log value\",DataLog!AG2398,\"\")","v":""},{"$f":"IF(DataLog!$C2398=\"Log value\",DataLog!AH2398,\"\")","v":""},{"$f":"IF(DataLog!$C2398=\"Log value\",DataLog!AI2398,\"\")","v":""},{"$f":"IF(DataLog!$C2398=\"Log value\",DataLog!AJ2398,\"\")","v":""},{"$f":"IF(DataLog!$C2398=\"Log value\",DataLog!AK2398,\"\")","v":""},{"$f":"IF(DataLog!$C2398=\"Log value\",DataLog!AL2398,\"\")","v":""},{"$f":"IF(DataLog!$C2398=\"Log value\",DataLog!AM2398,\"\")","v":""}]
[null,null,null,null,null,null,{"$f":"IF(DataLog!$C2399=\"Log value\",DataLog!D2399&\"_\"&TEXT(DataLog!B2399,\"åååå-mm-dd\"),\"\")","v":""},{"$f":"IF(DataLog!$C2399=\"Log value\",DataLog!E2399,\"\")","v":""},{"$f":"IF(DataLog!$C2399=\"Log value\",DataLog!F2399,\"\")","v":""},{"$f":"IF(DataLog!$C2399=\"Log value\",DataLog!G2399,\"\")","v":""},{"$f":"IF(DataLog!$C2399=\"Log value\",DataLog!H2399,\"\")","v":""},{"$f":"IF(DataLog!$C2399=\"Log value\",DataLog!I2399,\"\")","v":""},{"$f":"IF(DataLog!$C2399=\"Log value\",DataLog!J2399,\"\")","v":""},{"$f":"IF(DataLog!$C2399=\"Log value\",DataLog!K2399,\"\")","v":""},{"$f":"IF(DataLog!$C2399=\"Log value\",DataLog!L2399,\"\")","v":""},{"$f":"IF(DataLog!$C2399=\"Log value\",DataLog!M2399,\"\")","v":""},{"$f":"IF(DataLog!$C2399=\"Log value\",DataLog!N2399,\"\")","v":""},{"$f":"IF(DataLog!$C2399=\"Log value\",DataLog!O2399,\"\")","v":""},{"$f":"IF(DataLog!$C2399=\"Log value\",DataLog!P2399,\"\")","v":""},{"$f":"IF(DataLog!$C2399=\"Log value\",DataLog!Q2399,\"\")","v":""},{"$f":"IF(DataLog!$C2399=\"Log value\",DataLog!R2399,\"\")","v":""},{"$f":"IF(DataLog!$C2399=\"Log value\",DataLog!S2399,\"\")","v":""},{"$f":"IF(DataLog!$C2399=\"Log value\",DataLog!T2399,\"\")","v":""},{"$f":"IF(DataLog!$C2399=\"Log value\",DataLog!U2399,\"\")","v":""},{"$f":"IF(DataLog!$C2399=\"Log value\",DataLog!V2399,\"\")","v":""},{"$f":"IF(DataLog!$C2399=\"Log value\",DataLog!W2399,\"\")","v":""},{"$f":"IF(DataLog!$C2399=\"Log value\",DataLog!X2399,\"\")","v":""},{"$f":"IF(DataLog!$C2399=\"Log value\",DataLog!Y2399,\"\")","v":""},{"$f":"IF(DataLog!$C2399=\"Log value\",DataLog!Z2399,\"\")","v":""},{"$f":"IF(DataLog!$C2399=\"Log value\",DataLog!AA2399,\"\")","v":""},{"$f":"IF(DataLog!$C2399=\"Log value\",DataLog!AB2399,\"\")","v":""},{"$f":"IF(DataLog!$C2399=\"Log value\",DataLog!AC2399,\"\")","v":""},{"$f":"IF(DataLog!$C2399=\"Log value\",DataLog!AD2399,\"\")","v":""},{"$f":"IF(DataLog!$C2399=\"Log value\",DataLog!AE2399,\"\")","v":""},{"$f":"IF(DataLog!$C2399=\"Log value\",DataLog!AF2399,\"\")","v":""},{"$f":"IF(DataLog!$C2399=\"Log value\",DataLog!AG2399,\"\")","v":""},{"$f":"IF(DataLog!$C2399=\"Log value\",DataLog!AH2399,\"\")","v":""},{"$f":"IF(DataLog!$C2399=\"Log value\",DataLog!AI2399,\"\")","v":""},{"$f":"IF(DataLog!$C2399=\"Log value\",DataLog!AJ2399,\"\")","v":""},{"$f":"IF(DataLog!$C2399=\"Log value\",DataLog!AK2399,\"\")","v":""},{"$f":"IF(DataLog!$C2399=\"Log value\",DataLog!AL2399,\"\")","v":""},{"$f":"IF(DataLog!$C2399=\"Log value\",DataLog!AM2399,\"\")","v":""}]
[null,null,null,null,null,null,{"$f":"IF(DataLog!$C2401=\"Log value\",DataLog!D2401&\"_\"&TEXT(DataLog!B2401,\"åååå-mm-dd\"),\"\")","v":""},{"$f":"IF(DataLog!$C2401=\"Log value\",DataLog!E2401,\"\")","v":""},{"$f":"IF(DataLog!$C2401=\"Log value\",DataLog!F2401,\"\")","v":""},{"$f":"IF(DataLog!$C2401=\"Log value\",DataLog!G2401,\"\")","v":""},{"$f":"IF(DataLog!$C2401=\"Log value\",DataLog!H2401,\"\")","v":""},{"$f":"IF(DataLog!$C2401=\"Log value\",DataLog!I2401,\"\")","v":""},{"$f":"IF(DataLog!$C2401=\"Log value\",DataLog!J2401,\"\")","v":""},{"$f":"IF(DataLog!$C2401=\"Log value\",DataLog!K2401,\"\")","v":""},{"$f":"IF(DataLog!$C2401=\"Log value\",DataLog!L2401,\"\")","v":""},{"$f":"IF(DataLog!$C2401=\"Log value\",DataLog!M2401,\"\")","v":""},{"$f":"IF(DataLog!$C2401=\"Log value\",DataLog!N2401,\"\")","v":""},{"$f":"IF(DataLog!$C2401=\"Log value\",DataLog!O2401,\"\")","v":""},{"$f":"IF(DataLog!$C2401=\"Log value\",DataLog!P2401,\"\")","v":""},{"$f":"IF(DataLog!$C2401=\"Log value\",DataLog!Q2401,\"\")","v":""},{"$f":"IF(DataLog!$C2401=\"Log value\",DataLog!R2401,\"\")","v":""},{"$f":"IF(DataLog!$C2401=\"Log value\",DataLog!S2401,\"\")","v":""},{"$f":"IF(DataLog!$C2401=\"Log value\",DataLog!T2401,\"\")","v":""},{"$f":"IF(DataLog!$C2401=\"Log value\",DataLog!U2401,\"\")","v":""},{"$f":"IF(DataLog!$C2401=\"Log value\",DataLog!V2401,\"\")","v":""},{"$f":"IF(DataLog!$C2401=\"Log value\",DataLog!W2401,\"\")","v":""},{"$f":"IF(DataLog!$C2401=\"Log value\",DataLog!X2401,\"\")","v":""},{"$f":"IF(DataLog!$C2401=\"Log value\",DataLog!Y2401,\"\")","v":""},{"$f":"IF(DataLog!$C2401=\"Log value\",DataLog!Z2401,\"\")","v":""},{"$f":"IF(DataLog!$C2401=\"Log value\",DataLog!AA2401,\"\")","v":""},{"$f":"IF(DataLog!$C2401=\"Log value\",DataLog!AB2401,\"\")","v":""},{"$f":"IF(DataLog!$C2401=\"Log value\",DataLog!AC2401,\"\")","v":""},{"$f":"IF(DataLog!$C2401=\"Log value\",DataLog!AD2401,\"\")","v":""},{"$f":"IF(DataLog!$C2401=\"Log value\",DataLog!AE2401,\"\")","v":""},{"$f":"IF(DataLog!$C2401=\"Log value\",DataLog!AF2401,\"\")","v":""},{"$f":"IF(DataLog!$C2401=\"Log value\",DataLog!AG2401,\"\")","v":""},{"$f":"IF(DataLog!$C2401=\"Log value\",DataLog!AH2401,\"\")","v":""},{"$f":"IF(DataLog!$C2401=\"Log value\",DataLog!AI2401,\"\")","v":""},{"$f":"IF(DataLog!$C2401=\"Log value\",DataLog!AJ2401,\"\")","v":""},{"$f":"IF(DataLog!$C2401=\"Log value\",DataLog!AK2401,\"\")","v":""},{"$f":"IF(DataLog!$C2401=\"Log value\",DataLog!AL2401,\"\")","v":""},{"$f":"IF(DataLog!$C2401=\"Log value\",DataLog!AM2401,\"\")","v":""}]
[null,null,null,null,null,null,{"$f":"IF(DataLog!$C2404=\"Log value\",DataLog!D2404&\"_\"&TEXT(DataLog!B2404,\"åååå-mm-dd\"),\"\")","v":""},{"$f":"IF(DataLog!$C2404=\"Log value\",DataLog!E2404,\"\")","v":""},{"$f":"IF(DataLog!$C2404=\"Log value\",DataLog!F2404,\"\")","v":""},{"$f":"IF(DataLog!$C2404=\"Log value\",DataLog!G2404,\"\")","v":""},{"$f":"IF(DataLog!$C2404=\"Log value\",DataLog!H2404,\"\")","v":""},{"$f":"IF(DataLog!$C2404=\"Log value\",DataLog!I2404,\"\")","v":""},{"$f":"IF(DataLog!$C2404=\"Log value\",DataLog!J2404,\"\")","v":""},{"$f":"IF(DataLog!$C2404=\"Log value\",DataLog!K2404,\"\")","v":""},{"$f":"IF(DataLog!$C2404=\"Log value\",DataLog!L2404,\"\")","v":""},{"$f":"IF(DataLog!$C2404=\"Log value\",DataLog!M2404,\"\")","v":""},{"$f":"IF(DataLog!$C2404=\"Log value\",DataLog!N2404,\"\")","v":""},{"$f":"IF(DataLog!$C2404=\"Log value\",DataLog!O2404,\"\")","v":""},{"$f":"IF(DataLog!$C2404=\"Log value\",DataLog!P2404,\"\")","v":""},{"$f":"IF(DataLog!$C2404=\"Log value\",DataLog!Q2404,\"\")","v":""},{"$f":"IF(DataLog!$C2404=\"Log value\",DataLog!R2404,\"\")","v":""},{"$f":"IF(DataLog!$C2404=\"Log value\",DataLog!S2404,\"\")","v":""},{"$f":"IF(DataLog!$C2404=\"Log value\",DataLog!T2404,\"\")","v":""},{"$f":"IF(DataLog!$C2404=\"Log value\",DataLog!U2404,\"\")","v":""},{"$f":"IF(DataLog!$C2404=\"Log value\",DataLog!V2404,\"\")","v":""},{"$f":"IF(DataLog!$C2404=\"Log value\",DataLog!W2404,\"\")","v":""},{"$f":"IF(DataLog!$C2404=\"Log value\",DataLog!X2404,\"\")","v":""},{"$f":"IF(DataLog!$C2404=\"Log value\",DataLog!Y2404,\"\")","v":""},{"$f":"IF(DataLog!$C2404=\"Log value\",DataLog!Z2404,\"\")","v":""},{"$f":"IF(DataLog!$C2404=\"Log value\",DataLog!AA2404,\"\")","v":""},{"$f":"IF(DataLog!$C2404=\"Log value\",DataLog!AB2404,\"\")","v":""},{"$f":"IF(DataLog!$C2404=\"Log value\",DataLog!AC2404,\"\")","v":""},{"$f":"IF(DataLog!$C2404=\"Log value\",DataLog!AD2404,\"\")","v":""},{"$f":"IF(DataLog!$C2404=\"Log value\",DataLog!AE2404,\"\")","v":""},{"$f":"IF(DataLog!$C2404=\"Log value\",DataLog!AF2404,\"\")","v":""},{"$f":"IF(DataLog!$C2404=\"Log value\",DataLog!AG2404,\"\")","v":""},{"$f":"IF(DataLog!$C2404=\"Log value\",DataLog!AH2404,\"\")","v":""},{"$f":"IF(DataLog!$C2404=\"Log value\",DataLog!AI2404,\"\")","v":""},{"$f":"IF(DataLog!$C2404=\"Log value\",DataLog!AJ2404,\"\")","v":""},{"$f":"IF(DataLog!$C2404=\"Log value\",DataLog!AK2404,\"\")","v":""},{"$f":"IF(DataLog!$C2404=\"Log value\",DataLog!AL2404,\"\")","v":""},{"$f":"IF(DataLog!$C2404=\"Log value\",DataLog!AM2404,\"\")","v":""}]
[null,null,null,null,null,null,{"$f":"IF(DataLog!$C2407=\"Log value\",DataLog!D2407&\"_\"&TEXT(DataLog!B2407,\"åååå-mm-dd\"),\"\")","v":""},{"$f":"IF(DataLog!$C2407=\"Log value\",DataLog!E2407,\"\")","v":""},{"$f":"IF(DataLog!$C2407=\"Log value\",DataLog!F2407,\"\")","v":""},{"$f":"IF(DataLog!$C2407=\"Log value\",DataLog!G2407,\"\")","v":""},{"$f":"IF(DataLog!$C2407=\"Log value\",DataLog!H2407,\"\")","v":""},{"$f":"IF(DataLog!$C2407=\"Log value\",DataLog!I2407,\"\")","v":""},{"$f":"IF(DataLog!$C2407=\"Log value\",DataLog!J2407,\"\")","v":""},{"$f":"IF(DataLog!$C2407=\"Log value\",DataLog!K2407,\"\")","v":""},{"$f":"IF(DataLog!$C2407=\"Log value\",DataLog!L2407,\"\")","v":""},{"$f":"IF(DataLog!$C2407=\"Log value\",DataLog!M2407,\"\")","v":""},{"$f":"IF(DataLog!$C2407=\"Log value\",DataLog!N2407,\"\")","v":""},{"$f":"IF(DataLog!$C2407=\"Log value\",DataLog!O2407,\"\")","v":""},{"$f":"IF(DataLog!$C2407=\"Log value\",DataLog!P2407,\"\")","v":""},{"$f":"IF(DataLog!$C2407=\"Log value\",DataLog!Q2407,\"\")","v":""},{"$f":"IF(DataLog!$C2407=\"Log value\",DataLog!R2407,\"\")","v":""},{"$f":"IF(DataLog!$C2407=\"Log value\",DataLog!S2407,\"\")","v":""},{"$f":"IF(DataLog!$C2407=\"Log value\",DataLog!T2407,\"\")","v":""},{"$f":"IF(DataLog!$C2407=\"Log value\",DataLog!U2407,\"\")","v":""},{"$f":"IF(DataLog!$C2407=\"Log value\",DataLog!V2407,\"\")","v":""},{"$f":"IF(DataLog!$C2407=\"Log value\",DataLog!W2407,\"\")","v":""},{"$f":"IF(DataLog!$C2407=\"Log value\",DataLog!X2407,\"\")","v":""},{"$f":"IF(DataLog!$C2407=\"Log value\",DataLog!Y2407,\"\")","v":""},{"$f":"IF(DataLog!$C2407=\"Log value\",DataLog!Z2407,\"\")","v":""},{"$f":"IF(DataLog!$C2407=\"Log value\",DataLog!AA2407,\"\")","v":""},{"$f":"IF(DataLog!$C2407=\"Log value\",DataLog!AB2407,\"\")","v":""},{"$f":"IF(DataLog!$C2407=\"Log value\",DataLog!AC2407,\"\")","v":""},{"$f":"IF(DataLog!$C2407=\"Log value\",DataLog!AD2407,\"\")","v":""},{"$f":"IF(DataLog!$C2407=\"Log value\",DataLog!AE2407,\"\")","v":""},{"$f":"IF(DataLog!$C2407=\"Log value\",DataLog!AF2407,\"\")","v":""},{"$f":"IF(DataLog!$C2407=\"Log value\",DataLog!AG2407,\"\")","v":""},{"$f":"IF(DataLog!$C2407=\"Log value\",DataLog!AH2407,\"\")","v":""},{"$f":"IF(DataLog!$C2407=\"Log value\",DataLog!AI2407,\"\")","v":""},{"$f":"IF(DataLog!$C2407=\"Log value\",DataLog!AJ2407,\"\")","v":""},{"$f":"IF(DataLog!$C2407=\"Log value\",DataLog!AK2407,\"\")","v":""},{"$f":"IF(DataLog!$C2407=\"Log value\",DataLog!AL2407,\"\")","v":""},{"$f":"IF(DataLog!$C2407=\"Log value\",DataLog!AM2407,\"\")","v":""}]
[null,null,null,null,null,null,{"$f":"IF(DataLog!$C2408=\"Log value\",DataLog!D2408&\"_\"&TEXT(DataLog!B2408,\"åååå-mm-dd\"),\"\")","v":""},{"$f":"IF(DataLog!$C2408=\"Log value\",DataLog!E2408,\"\")","v":""},{"$f":"IF(DataLog!$C2408=\"Log value\",DataLog!F2408,\"\")","v":""},{"$f":"IF(DataLog!$C2408=\"Log value\",DataLog!G2408,\"\")","v":""},{"$f":"IF(DataLog!$C2408=\"Log value\",DataLog!H2408,\"\")","v":""},{"$f":"IF(DataLog!$C2408=\"Log value\",DataLog!I2408,\"\")","v":""},{"$f":"IF(DataLog!$C2408=\"Log value\",DataLog!J2408,\"\")","v":""},{"$f":"IF(DataLog!$C2408=\"Log value\",DataLog!K2408,\"\")","v":""},{"$f":"IF(DataLog!$C2408=\"Log value\",DataLog!L2408,\"\")","v":""},{"$f":"IF(DataLog!$C2408=\"Log value\",DataLog!M2408,\"\")","v":""},{"$f":"IF(DataLog!$C2408=\"Log value\",DataLog!N2408,\"\")","v":""},{"$f":"IF(DataLog!$C2408=\"Log value\",DataLog!O2408,\"\")","v":""},{"$f":"IF(DataLog!$C2408=\"Log value\",DataLog!P2408,\"\")","v":""},{"$f":"IF(DataLog!$C2408=\"Log value\",DataLog!Q2408,\"\")","v":""},{"$f":"IF(DataLog!$C2408=\"Log value\",DataLog!R2408,\"\")","v":""},{"$f":"IF(DataLog!$C2408=\"Log value\",DataLog!S2408,\"\")","v":""},{"$f":"IF(DataLog!$C2408=\"Log value\",DataLog!T2408,\"\")","v":""},{"$f":"IF(DataLog!$C2408=\"Log value\",DataLog!U2408,\"\")","v":""},{"$f":"IF(DataLog!$C2408=\"Log value\",DataLog!V2408,\"\")","v":""},{"$f":"IF(DataLog!$C2408=\"Log value\",DataLog!W2408,\"\")","v":""},{"$f":"IF(DataLog!$C2408=\"Log value\",DataLog!X2408,\"\")","v":""},{"$f":"IF(DataLog!$C2408=\"Log value\",DataLog!Y2408,\"\")","v":""},{"$f":"IF(DataLog!$C2408=\"Log value\",DataLog!Z2408,\"\")","v":""},{"$f":"IF(DataLog!$C2408=\"Log value\",DataLog!AA2408,\"\")","v":""},{"$f":"IF(DataLog!$C2408=\"Log value\",DataLog!AB2408,\"\")","v":""},{"$f":"IF(DataLog!$C2408=\"Log value\",DataLog!AC2408,\"\")","v":""},{"$f":"IF(DataLog!$C2408=\"Log value\",DataLog!AD2408,\"\")","v":""},{"$f":"IF(DataLog!$C2408=\"Log value\",DataLog!AE2408,\"\")","v":""},{"$f":"IF(DataLog!$C2408=\"Log value\",DataLog!AF2408,\"\")","v":""},{"$f":"IF(DataLog!$C2408=\"Log value\",DataLog!AG2408,\"\")","v":""},{"$f":"IF(DataLog!$C2408=\"Log value\",DataLog!AH2408,\"\")","v":""},{"$f":"IF(DataLog!$C2408=\"Log value\",DataLog!AI2408,\"\")","v":""},{"$f":"IF(DataLog!$C2408=\"Log value\",DataLog!AJ2408,\"\")","v":""},{"$f":"IF(DataLog!$C2408=\"Log value\",DataLog!AK2408,\"\")","v":""},{"$f":"IF(DataLog!$C2408=\"Log value\",DataLog!AL2408,\"\")","v":""},{"$f":"IF(DataLog!$C2408=\"Log value\",DataLog!AM2408,\"\")","v":""}]
[null,null,null,null,null,null,{"$f":"IF(DataLog!$C2411=\"Log value\",DataLog!D2411&\"_\"&TEXT(DataLog!B2411,\"åååå-mm-dd\"),\"\")","v":""},{"$f":"IF(DataLog!$C2411=\"Log value\",DataLog!E2411,\"\")","v":""},{"$f":"IF(DataLog!$C2411=\"Log value\",DataLog!F2411,\"\")","v":""},{"$f":"IF(DataLog!$C2411=\"Log value\",DataLog!G2411,\"\")","v":""},{"$f":"IF(DataLog!$C2411=\"Log value\",DataLog!H2411,\"\")","v":""},{"$f":"IF(DataLog!$C2411=\"Log value\",DataLog!I2411,\"\")","v":""},{"$f":"IF(DataLog!$C2411=\"Log value\",DataLog!J2411,\"\")","v":""},{"$f":"IF(DataLog!$C2411=\"Log value\",DataLog!K2411,\"\")","v":""},{"$f":"IF(DataLog!$C2411=\"Log value\",DataLog!L2411,\"\")","v":""},{"$f":"IF(DataLog!$C2411=\"Log value\",DataLog!M2411,\"\")","v":""},{"$f":"IF(DataLog!$C2411=\"Log value\",DataLog!N2411,\"\")","v":""},{"$f":"IF(DataLog!$C2411=\"Log value\",DataLog!O2411,\"\")","v":""},{"$f":"IF(DataLog!$C2411=\"Log value\",DataLog!P2411,\"\")","v":""},{"$f":"IF(DataLog!$C2411=\"Log value\",DataLog!Q2411,\"\")","v":""},{"$f":"IF(DataLog!$C2411=\"Log value\",DataLog!R2411,\"\")","v":""},{"$f":"IF(DataLog!$C2411=\"Log value\",DataLog!S2411,\"\")","v":""},{"$f":"IF(DataLog!$C2411=\"Log value\",DataLog!T2411,\"\")","v":""},{"$f":"IF(DataLog!$C2411=\"Log value\",DataLog!U2411,\"\")","v":""},{"$f":"IF(DataLog!$C2411=\"Log value\",DataLog!V2411,\"\")","v":""},{"$f":"IF(DataLog!$C2411=\"Log value\",DataLog!W2411,\"\")","v":""},{"$f":"IF(DataLog!$C2411=\"Log value\",DataLog!X2411,\"\")","v":""},{"$f":"IF(DataLog!$C2411=\"Log value\",DataLog!Y2411,\"\")","v":""},{"$f":"IF(DataLog!$C2411=\"Log value\",DataLog!Z2411,\"\")","v":""},{"$f":"IF(DataLog!$C2411=\"Log value\",DataLog!AA2411,\"\")","v":""},{"$f":"IF(DataLog!$C2411=\"Log value\",DataLog!AB2411,\"\")","v":""},{"$f":"IF(DataLog!$C2411=\"Log value\",DataLog!AC2411,\"\")","v":""},{"$f":"IF(DataLog!$C2411=\"Log value\",DataLog!AD2411,\"\")","v":""},{"$f":"IF(DataLog!$C2411=\"Log value\",DataLog!AE2411,\"\")","v":""},{"$f":"IF(DataLog!$C2411=\"Log value\",DataLog!AF2411,\"\")","v":""},{"$f":"IF(DataLog!$C2411=\"Log value\",DataLog!AG2411,\"\")","v":""},{"$f":"IF(DataLog!$C2411=\"Log value\",DataLog!AH2411,\"\")","v":""},{"$f":"IF(DataLog!$C2411=\"Log value\",DataLog!AI2411,\"\")","v":""},{"$f":"IF(DataLog!$C2411=\"Log value\",DataLog!AJ2411,\"\")","v":""},{"$f":"IF(DataLog!$C2411=\"Log value\",DataLog!AK2411,\"\")","v":""},{"$f":"IF(DataLog!$C2411=\"Log value\",DataLog!AL2411,\"\")","v":""},{"$f":"IF(DataLog!$C2411=\"Log value\",DataLog!AM2411,\"\")","v":""}]
[null,null,null,null,null,null,{"$f":"IF(DataLog!$C2413=\"Log value\",DataLog!D2413&\"_\"&TEXT(DataLog!B2413,\"åååå-mm-dd\"),\"\")","v":""},{"$f":"IF(DataLog!$C2413=\"Log value\",DataLog!E2413,\"\")","v":""},{"$f":"IF(DataLog!$C2413=\"Log value\",DataLog!F2413,\"\")","v":""},{"$f":"IF(DataLog!$C2413=\"Log value\",DataLog!G2413,\"\")","v":""},{"$f":"IF(DataLog!$C2413=\"Log value\",DataLog!H2413,\"\")","v":""},{"$f":"IF(DataLog!$C2413=\"Log value\",DataLog!I2413,\"\")","v":""},{"$f":"IF(DataLog!$C2413=\"Log value\",DataLog!J2413,\"\")","v":""},{"$f":"IF(DataLog!$C2413=\"Log value\",DataLog!K2413,\"\")","v":""},{"$f":"IF(DataLog!$C2413=\"Log value\",DataLog!L2413,\"\")","v":""},{"$f":"IF(DataLog!$C2413=\"Log value\",DataLog!M2413,\"\")","v":""},{"$f":"IF(DataLog!$C2413=\"Log value\",DataLog!N2413,\"\")","v":""},{"$f":"IF(DataLog!$C2413=\"Log value\",DataLog!O2413,\"\")","v":""},{"$f":"IF(DataLog!$C2413=\"Log value\",DataLog!P2413,\"\")","v":""},{"$f":"IF(DataLog!$C2413=\"Log value\",DataLog!Q2413,\"\")","v":""},{"$f":"IF(DataLog!$C2413=\"Log value\",DataLog!R2413,\"\")","v":""},{"$f":"IF(DataLog!$C2413=\"Log value\",DataLog!S2413,\"\")","v":""},{"$f":"IF(DataLog!$C2413=\"Log value\",DataLog!T2413,\"\")","v":""},{"$f":"IF(DataLog!$C2413=\"Log value\",DataLog!U2413,\"\")","v":""},{"$f":"IF(DataLog!$C2413=\"Log value\",DataLog!V2413,\"\")","v":""},{"$f":"IF(DataLog!$C2413=\"Log value\",DataLog!W2413,\"\")","v":""},{"$f":"IF(DataLog!$C2413=\"Log value\",DataLog!X2413,\"\")","v":""},{"$f":"IF(DataLog!$C2413=\"Log value\",DataLog!Y2413,\"\")","v":""},{"$f":"IF(DataLog!$C2413=\"Log value\",DataLog!Z2413,\"\")","v":""},{"$f":"IF(DataLog!$C2413=\"Log value\",DataLog!AA2413,\"\")","v":""},{"$f":"IF(DataLog!$C2413=\"Log value\",DataLog!AB2413,\"\")","v":""},{"$f":"IF(DataLog!$C2413=\"Log value\",DataLog!AC2413,\"\")","v":""},{"$f":"IF(DataLog!$C2413=\"Log value\",DataLog!AD2413,\"\")","v":""},{"$f":"IF(DataLog!$C2413=\"Log value\",DataLog!AE2413,\"\")","v":""},{"$f":"IF(DataLog!$C2413=\"Log value\",DataLog!AF2413,\"\")","v":""},{"$f":"IF(DataLog!$C2413=\"Log value\",DataLog!AG2413,\"\")","v":""},{"$f":"IF(DataLog!$C2413=\"Log value\",DataLog!AH2413,\"\")","v":""},{"$f":"IF(DataLog!$C2413=\"Log value\",DataLog!AI2413,\"\")","v":""},{"$f":"IF(DataLog!$C2413=\"Log value\",DataLog!AJ2413,\"\")","v":""},{"$f":"IF(DataLog!$C2413=\"Log value\",DataLog!AK2413,\"\")","v":""},{"$f":"IF(DataLog!$C2413=\"Log value\",DataLog!AL2413,\"\")","v":""},{"$f":"IF(DataLog!$C2413=\"Log value\",DataLog!AM2413,\"\")","v":""}]
[null,null,null,null,null,null,{"$f":"IF(DataLog!$C2416=\"Log value\",DataLog!D2416&\"_\"&TEXT(DataLog!B2416,\"åååå-mm-dd\"),\"\")","v":""},{"$f":"IF(DataLog!$C2416=\"Log value\",DataLog!E2416,\"\")","v":""},{"$f":"IF(DataLog!$C2416=\"Log value\",DataLog!F2416,\"\")","v":""},{"$f":"IF(DataLog!$C2416=\"Log value\",DataLog!G2416,\"\")","v":""},{"$f":"IF(DataLog!$C2416=\"Log value\",DataLog!H2416,\"\")","v":""},{"$f":"IF(DataLog!$C2416=\"Log value\",DataLog!I2416,\"\")","v":""},{"$f":"IF(DataLog!$C2416=\"Log value\",DataLog!J2416,\"\")","v":""},{"$f":"IF(DataLog!$C2416=\"Log value\",DataLog!K2416,\"\")","v":""},{"$f":"IF(DataLog!$C2416=\"Log value\",DataLog!L2416,\"\")","v":""},{"$f":"IF(DataLog!$C2416=\"Log value\",DataLog!M2416,\"\")","v":""},{"$f":"IF(DataLog!$C2416=\"Log value\",DataLog!N2416,\"\")","v":""},{"$f":"IF(DataLog!$C2416=\"Log value\",DataLog!O2416,\"\")","v":""},{"$f":"IF(DataLog!$C2416=\"Log value\",DataLog!P2416,\"\")","v":""},{"$f":"IF(DataLog!$C2416=\"Log value\",DataLog!Q2416,\"\")","v":""},{"$f":"IF(DataLog!$C2416=\"Log value\",DataLog!R2416,\"\")","v":""},{"$f":"IF(DataLog!$C2416=\"Log value\",DataLog!S2416,\"\")","v":""},{"$f":"IF(DataLog!$C2416=\"Log value\",DataLog!T2416,\"\")","v":""},{"$f":"IF(DataLog!$C2416=\"Log value\",DataLog!U2416,\"\")","v":""},{"$f":"IF(DataLog!$C2416=\"Log value\",DataLog!V2416,\"\")","v":""},{"$f":"IF(DataLog!$C2416=\"Log value\",DataLog!W2416,\"\")","v":""},{"$f":"IF(DataLog!$C2416=\"Log value\",DataLog!X2416,\"\")","v":""},{"$f":"IF(DataLog!$C2416=\"Log value\",DataLog!Y2416,\"\")","v":""},{"$f":"IF(DataLog!$C2416=\"Log value\",DataLog!Z2416,\"\")","v":""},{"$f":"IF(DataLog!$C2416=\"Log value\",DataLog!AA2416,\"\")","v":""},{"$f":"IF(DataLog!$C2416=\"Log value\",DataLog!AB2416,\"\")","v":""},{"$f":"IF(DataLog!$C2416=\"Log value\",DataLog!AC2416,\"\")","v":""},{"$f":"IF(DataLog!$C2416=\"Log value\",DataLog!AD2416,\"\")","v":""},{"$f":"IF(DataLog!$C2416=\"Log value\",DataLog!AE2416,\"\")","v":""},{"$f":"IF(DataLog!$C2416=\"Log value\",DataLog!AF2416,\"\")","v":""},{"$f":"IF(DataLog!$C2416=\"Log value\",DataLog!AG2416,\"\")","v":""},{"$f":"IF(DataLog!$C2416=\"Log value\",DataLog!AH2416,\"\")","v":""},{"$f":"IF(DataLog!$C2416=\"Log value\",DataLog!AI2416,\"\")","v":""},{"$f":"IF(DataLog!$C2416=\"Log value\",DataLog!AJ2416,\"\")","v":""},{"$f":"IF(DataLog!$C2416=\"Log value\",DataLog!AK2416,\"\")","v":""},{"$f":"IF(DataLog!$C2416=\"Log value\",DataLog!AL2416,\"\")","v":""},{"$f":"IF(DataLog!$C2416=\"Log value\",DataLog!AM2416,\"\")","v":""}]
[null,null,null,null,null,null,{"$f":"IF(DataLog!$C2417=\"Log value\",DataLog!D2417&\"_\"&TEXT(DataLog!B2417,\"åååå-mm-dd\"),\"\")","v":""},{"$f":"IF(DataLog!$C2417=\"Log value\",DataLog!E2417,\"\")","v":""},{"$f":"IF(DataLog!$C2417=\"Log value\",DataLog!F2417,\"\")","v":""},{"$f":"IF(DataLog!$C2417=\"Log value\",DataLog!G2417,\"\")","v":""},{"$f":"IF(DataLog!$C2417=\"Log value\",DataLog!H2417,\"\")","v":""},{"$f":"IF(DataLog!$C2417=\"Log value\",DataLog!I2417,\"\")","v":""},{"$f":"IF(DataLog!$C2417=\"Log value\",DataLog!J2417,\"\")","v":""},{"$f":"IF(DataLog!$C2417=\"Log value\",DataLog!K2417,\"\")","v":""},{"$f":"IF(DataLog!$C2417=\"Log value\",DataLog!L2417,\"\")","v":""},{"$f":"IF(DataLog!$C2417=\"Log value\",DataLog!M2417,\"\")","v":""},{"$f":"IF(DataLog!$C2417=\"Log value\",DataLog!N2417,\"\")","v":""},{"$f":"IF(DataLog!$C2417=\"Log value\",DataLog!O2417,\"\")","v":""},{"$f":"IF(DataLog!$C2417=\"Log value\",DataLog!P2417,\"\")","v":""},{"$f":"IF(DataLog!$C2417=\"Log value\",DataLog!Q2417,\"\")","v":""},{"$f":"IF(DataLog!$C2417=\"Log value\",DataLog!R2417,\"\")","v":""},{"$f":"IF(DataLog!$C2417=\"Log value\",DataLog!S2417,\"\")","v":""},{"$f":"IF(DataLog!$C2417=\"Log value\",DataLog!T2417,\"\")","v":""},{"$f":"IF(DataLog!$C2417=\"Log value\",DataLog!U2417,\"\")","v":""},{"$f":"IF(DataLog!$C2417=\"Log value\",DataLog!V2417,\"\")","v":""},{"$f":"IF(DataLog!$C2417=\"Log value\",DataLog!W2417,\"\")","v":""},{"$f":"IF(DataLog!$C2417=\"Log value\",DataLog!X2417,\"\")","v":""},{"$f":"IF(DataLog!$C2417=\"Log value\",DataLog!Y2417,\"\")","v":""},{"$f":"IF(DataLog!$C2417=\"Log value\",DataLog!Z2417,\"\")","v":""},{"$f":"IF(DataLog!$C2417=\"Log value\",DataLog!AA2417,\"\")","v":""},{"$f":"IF(DataLog!$C2417=\"Log value\",DataLog!AB2417,\"\")","v":""},{"$f":"IF(DataLog!$C2417=\"Log value\",DataLog!AC2417,\"\")","v":""},{"$f":"IF(DataLog!$C2417=\"Log value\",DataLog!AD2417,\"\")","v":""},{"$f":"IF(DataLog!$C2417=\"Log value\",DataLog!AE2417,\"\")","v":""},{"$f":"IF(DataLog!$C2417=\"Log value\",DataLog!AF2417,\"\")","v":""},{"$f":"IF(DataLog!$C2417=\"Log value\",DataLog!AG2417,\"\")","v":""},{"$f":"IF(DataLog!$C2417=\"Log value\",DataLog!AH2417,\"\")","v":""},{"$f":"IF(DataLog!$C2417=\"Log value\",DataLog!AI2417,\"\")","v":""},{"$f":"IF(DataLog!$C2417=\"Log value\",DataLog!AJ2417,\"\")","v":""},{"$f":"IF(DataLog!$C2417=\"Log value\",DataLog!AK2417,\"\")","v":""},{"$f":"IF(DataLog!$C2417=\"Log value\",DataLog!AL2417,\"\")","v":""},{"$f":"IF(DataLog!$C2417=\"Log value\",DataLog!AM2417,\"\")","v":""}]
[null,null,null,null,null,null,{"$f":"IF(DataLog!$C2419=\"Log value\",DataLog!D2419&\"_\"&TEXT(DataLog!B2419,\"åååå-mm-dd\"),\"\")","v":""},{"$f":"IF(DataLog!$C2419=\"Log value\",DataLog!E2419,\"\")","v":""},{"$f":"IF(DataLog!$C2419=\"Log value\",DataLog!F2419,\"\")","v":""},{"$f":"IF(DataLog!$C2419=\"Log value\",DataLog!G2419,\"\")","v":""},{"$f":"IF(DataLog!$C2419=\"Log value\",DataLog!H2419,\"\")","v":""},{"$f":"IF(DataLog!$C2419=\"Log value\",DataLog!I2419,\"\")","v":""},{"$f":"IF(DataLog!$C2419=\"Log value\",DataLog!J2419,\"\")","v":""},{"$f":"IF(DataLog!$C2419=\"Log value\",DataLog!K2419,\"\")","v":""},{"$f":"IF(DataLog!$C2419=\"Log value\",DataLog!L2419,\"\")","v":""},{"$f":"IF(DataLog!$C2419=\"Log value\",DataLog!M2419,\"\")","v":""},{"$f":"IF(DataLog!$C2419=\"Log value\",DataLog!N2419,\"\")","v":""},{"$f":"IF(DataLog!$C2419=\"Log value\",DataLog!O2419,\"\")","v":""},{"$f":"IF(DataLog!$C2419=\"Log value\",DataLog!P2419,\"\")","v":""},{"$f":"IF(DataLog!$C2419=\"Log value\",DataLog!Q2419,\"\")","v":""},{"$f":"IF(DataLog!$C2419=\"Log value\",DataLog!R2419,\"\")","v":""},{"$f":"IF(DataLog!$C2419=\"Log value\",DataLog!S2419,\"\")","v":""},{"$f":"IF(DataLog!$C2419=\"Log value\",DataLog!T2419,\"\")","v":""},{"$f":"IF(DataLog!$C2419=\"Log value\",DataLog!U2419,\"\")","v":""},{"$f":"IF(DataLog!$C2419=\"Log value\",DataLog!V2419,\"\")","v":""},{"$f":"IF(DataLog!$C2419=\"Log value\",DataLog!W2419,\"\")","v":""},{"$f":"IF(DataLog!$C2419=\"Log value\",DataLog!X2419,\"\")","v":""},{"$f":"IF(DataLog!$C2419=\"Log value\",DataLog!Y2419,\"\")","v":""},{"$f":"IF(DataLog!$C2419=\"Log value\",DataLog!Z2419,\"\")","v":""},{"$f":"IF(DataLog!$C2419=\"Log value\",DataLog!AA2419,\"\")","v":""},{"$f":"IF(DataLog!$C2419=\"Log value\",DataLog!AB2419,\"\")","v":""},{"$f":"IF(DataLog!$C2419=\"Log value\",DataLog!AC2419,\"\")","v":""},{"$f":"IF(DataLog!$C2419=\"Log value\",DataLog!AD2419,\"\")","v":""},{"$f":"IF(DataLog!$C2419=\"Log value\",DataLog!AE2419,\"\")","v":""},{"$f":"IF(DataLog!$C2419=\"Log value\",DataLog!AF2419,\"\")","v":""},{"$f":"IF(DataLog!$C2419=\"Log value\",DataLog!AG2419,\"\")","v":""},{"$f":"IF(DataLog!$C2419=\"Log value\",DataLog!AH2419,\"\")","v":""},{"$f":"IF(DataLog!$C2419=\"Log value\",DataLog!AI2419,\"\")","v":""},{"$f":"IF(DataLog!$C2419=\"Log value\",DataLog!AJ2419,\"\")","v":""},{"$f":"IF(DataLog!$C2419=\"Log value\",DataLog!AK2419,\"\")","v":""},{"$f":"IF(DataLog!$C2419=\"Log value\",DataLog!AL2419,\"\")","v":""},{"$f":"IF(DataLog!$C2419=\"Log value\",DataLog!AM2419,\"\")","v":""}]
[null,null,null,null,null,null,{"$f":"IF(DataLog!$C2422=\"Log value\",DataLog!D2422&\"_\"&TEXT(DataLog!B2422,\"åååå-mm-dd\"),\"\")","v":""},{"$f":"IF(DataLog!$C2422=\"Log value\",DataLog!E2422,\"\")","v":""},{"$f":"IF(DataLog!$C2422=\"Log value\",DataLog!F2422,\"\")","v":""},{"$f":"IF(DataLog!$C2422=\"Log value\",DataLog!G2422,\"\")","v":""},{"$f":"IF(DataLog!$C2422=\"Log value\",DataLog!H2422,\"\")","v":""},{"$f":"IF(DataLog!$C2422=\"Log value\",DataLog!I2422,\"\")","v":""},{"$f":"IF(DataLog!$C2422=\"Log value\",DataLog!J2422,\"\")","v":""},{"$f":"IF(DataLog!$C2422=\"Log value\",DataLog!K2422,\"\")","v":""},{"$f":"IF(DataLog!$C2422=\"Log value\",DataLog!L2422,\"\")","v":""},{"$f":"IF(DataLog!$C2422=\"Log value\",DataLog!M2422,\"\")","v":""},{"$f":"IF(DataLog!$C2422=\"Log value\",DataLog!N2422,\"\")","v":""},{"$f":"IF(DataLog!$C2422=\"Log value\",DataLog!O2422,\"\")","v":""},{"$f":"IF(DataLog!$C2422=\"Log value\",DataLog!P2422,\"\")","v":""},{"$f":"IF(DataLog!$C2422=\"Log value\",DataLog!Q2422,\"\")","v":""},{"$f":"IF(DataLog!$C2422=\"Log value\",DataLog!R2422,\"\")","v":""},{"$f":"IF(DataLog!$C2422=\"Log value\",DataLog!S2422,\"\")","v":""},{"$f":"IF(DataLog!$C2422=\"Log value\",DataLog!T2422,\"\")","v":""},{"$f":"IF(DataLog!$C2422=\"Log value\",DataLog!U2422,\"\")","v":""},{"$f":"IF(DataLog!$C2422=\"Log value\",DataLog!V2422,\"\")","v":""},{"$f":"IF(DataLog!$C2422=\"Log value\",DataLog!W2422,\"\")","v":""},{"$f":"IF(DataLog!$C2422=\"Log value\",DataLog!X2422,\"\")","v":""},{"$f":"IF(DataLog!$C2422=\"Log value\",DataLog!Y2422,\"\")","v":""},{"$f":"IF(DataLog!$C2422=\"Log value\",DataLog!Z2422,\"\")","v":""},{"$f":"IF(DataLog!$C2422=\"Log value\",DataLog!AA2422,\"\")","v":""},{"$f":"IF(DataLog!$C2422=\"Log value\",DataLog!AB2422,\"\")","v":""},{"$f":"IF(DataLog!$C2422=\"Log value\",DataLog!AC2422,\"\")","v":""},{"$f":"IF(DataLog!$C2422=\"Log value\",DataLog!AD2422,\"\")","v":""},{"$f":"IF(DataLog!$C2422=\"Log value\",DataLog!AE2422,\"\")","v":""},{"$f":"IF(DataLog!$C2422=\"Log value\",DataLog!AF2422,\"\")","v":""},{"$f":"IF(DataLog!$C2422=\"Log value\",DataLog!AG2422,\"\")","v":""},{"$f":"IF(DataLog!$C2422=\"Log value\",DataLog!AH2422,\"\")","v":""},{"$f":"IF(DataLog!$C2422=\"Log value\",DataLog!AI2422,\"\")","v":""},{"$f":"IF(DataLog!$C2422=\"Log value\",DataLog!AJ2422,\"\")","v":""},{"$f":"IF(DataLog!$C2422=\"Log value\",DataLog!AK2422,\"\")","v":""},{"$f":"IF(DataLog!$C2422=\"Log value\",DataLog!AL2422,\"\")","v":""},{"$f":"IF(DataLog!$C2422=\"Log value\",DataLog!AM2422,\"\")","v":""}]
[null,null,null,null,null,null,{"$f":"IF(DataLog!$C2425=\"Log value\",DataLog!D2425&\"_\"&TEXT(DataLog!B2425,\"åååå-mm-dd\"),\"\")","v":""},{"$f":"IF(DataLog!$C2425=\"Log value\",DataLog!E2425,\"\")","v":""},{"$f":"IF(DataLog!$C2425=\"Log value\",DataLog!F2425,\"\")","v":""},{"$f":"IF(DataLog!$C2425=\"Log value\",DataLog!G2425,\"\")","v":""},{"$f":"IF(DataLog!$C2425=\"Log value\",DataLog!H2425,\"\")","v":""},{"$f":"IF(DataLog!$C2425=\"Log value\",DataLog!I2425,\"\")","v":""},{"$f":"IF(DataLog!$C2425=\"Log value\",DataLog!J2425,\"\")","v":""},{"$f":"IF(DataLog!$C2425=\"Log value\",DataLog!K2425,\"\")","v":""},{"$f":"IF(DataLog!$C2425=\"Log value\",DataLog!L2425,\"\")","v":""},{"$f":"IF(DataLog!$C2425=\"Log value\",DataLog!M2425,\"\")","v":""},{"$f":"IF(DataLog!$C2425=\"Log value\",DataLog!N2425,\"\")","v":""},{"$f":"IF(DataLog!$C2425=\"Log value\",DataLog!O2425,\"\")","v":""},{"$f":"IF(DataLog!$C2425=\"Log value\",DataLog!P2425,\"\")","v":""},{"$f":"IF(DataLog!$C2425=\"Log value\",DataLog!Q2425,\"\")","v":""},{"$f":"IF(DataLog!$C2425=\"Log value\",DataLog!R2425,\"\")","v":""},{"$f":"IF(DataLog!$C2425=\"Log value\",DataLog!S2425,\"\")","v":""},{"$f":"IF(DataLog!$C2425=\"Log value\",DataLog!T2425,\"\")","v":""},{"$f":"IF(DataLog!$C2425=\"Log value\",DataLog!U2425,\"\")","v":""},{"$f":"IF(DataLog!$C2425=\"Log value\",DataLog!V2425,\"\")","v":""},{"$f":"IF(DataLog!$C2425=\"Log value\",DataLog!W2425,\"\")","v":""},{"$f":"IF(DataLog!$C2425=\"Log value\",DataLog!X2425,\"\")","v":""},{"$f":"IF(DataLog!$C2425=\"Log value\",DataLog!Y2425,\"\")","v":""},{"$f":"IF(DataLog!$C2425=\"Log value\",DataLog!Z2425,\"\")","v":""},{"$f":"IF(DataLog!$C2425=\"Log value\",DataLog!AA2425,\"\")","v":""},{"$f":"IF(DataLog!$C2425=\"Log value\",DataLog!AB2425,\"\")","v":""},{"$f":"IF(DataLog!$C2425=\"Log value\",DataLog!AC2425,\"\")","v":""},{"$f":"IF(DataLog!$C2425=\"Log value\",DataLog!AD2425,\"\")","v":""},{"$f":"IF(DataLog!$C2425=\"Log value\",DataLog!AE2425,\"\")","v":""},{"$f":"IF(DataLog!$C2425=\"Log value\",DataLog!AF2425,\"\")","v":""},{"$f":"IF(DataLog!$C2425=\"Log value\",DataLog!AG2425,\"\")","v":""},{"$f":"IF(DataLog!$C2425=\"Log value\",DataLog!AH2425,\"\")","v":""},{"$f":"IF(DataLog!$C2425=\"Log value\",DataLog!AI2425,\"\")","v":""},{"$f":"IF(DataLog!$C2425=\"Log value\",DataLog!AJ2425,\"\")","v":""},{"$f":"IF(DataLog!$C2425=\"Log value\",DataLog!AK2425,\"\")","v":""},{"$f":"IF(DataLog!$C2425=\"Log value\",DataLog!AL2425,\"\")","v":""},{"$f":"IF(DataLog!$C2425=\"Log value\",DataLog!AM2425,\"\")","v":""}]
[null,null,null,null,null,null,{"$f":"IF(DataLog!$C2426=\"Log value\",DataLog!D2426&\"_\"&TEXT(DataLog!B2426,\"åååå-mm-dd\"),\"\")","v":""},{"$f":"IF(DataLog!$C2426=\"Log value\",DataLog!E2426,\"\")","v":""},{"$f":"IF(DataLog!$C2426=\"Log value\",DataLog!F2426,\"\")","v":""},{"$f":"IF(DataLog!$C2426=\"Log value\",DataLog!G2426,\"\")","v":""},{"$f":"IF(DataLog!$C2426=\"Log value\",DataLog!H2426,\"\")","v":""},{"$f":"IF(DataLog!$C2426=\"Log value\",DataLog!I2426,\"\")","v":""},{"$f":"IF(DataLog!$C2426=\"Log value\",DataLog!J2426,\"\")","v":""},{"$f":"IF(DataLog!$C2426=\"Log value\",DataLog!K2426,\"\")","v":""},{"$f":"IF(DataLog!$C2426=\"Log value\",DataLog!L2426,\"\")","v":""},{"$f":"IF(DataLog!$C2426=\"Log value\",DataLog!M2426,\"\")","v":""},{"$f":"IF(DataLog!$C2426=\"Log value\",DataLog!N2426,\"\")","v":""},{"$f":"IF(DataLog!$C2426=\"Log value\",DataLog!O2426,\"\")","v":""},{"$f":"IF(DataLog!$C2426=\"Log value\",DataLog!P2426,\"\")","v":""},{"$f":"IF(DataLog!$C2426=\"Log value\",DataLog!Q2426,\"\")","v":""},{"$f":"IF(DataLog!$C2426=\"Log value\",DataLog!R2426,\"\")","v":""},{"$f":"IF(DataLog!$C2426=\"Log value\",DataLog!S2426,\"\")","v":""},{"$f":"IF(DataLog!$C2426=\"Log value\",DataLog!T2426,\"\")","v":""},{"$f":"IF(DataLog!$C2426=\"Log value\",DataLog!U2426,\"\")","v":""},{"$f":"IF(DataLog!$C2426=\"Log value\",DataLog!V2426,\"\")","v":""},{"$f":"IF(DataLog!$C2426=\"Log value\",DataLog!W2426,\"\")","v":""},{"$f":"IF(DataLog!$C2426=\"Log value\",DataLog!X2426,\"\")","v":""},{"$f":"IF(DataLog!$C2426=\"Log value\",DataLog!Y2426,\"\")","v":""},{"$f":"IF(DataLog!$C2426=\"Log value\",DataLog!Z2426,\"\")","v":""},{"$f":"IF(DataLog!$C2426=\"Log value\",DataLog!AA2426,\"\")","v":""},{"$f":"IF(DataLog!$C2426=\"Log value\",DataLog!AB2426,\"\")","v":""},{"$f":"IF(DataLog!$C2426=\"Log value\",DataLog!AC2426,\"\")","v":""},{"$f":"IF(DataLog!$C2426=\"Log value\",DataLog!AD2426,\"\")","v":""},{"$f":"IF(DataLog!$C2426=\"Log value\",DataLog!AE2426,\"\")","v":""},{"$f":"IF(DataLog!$C2426=\"Log value\",DataLog!AF2426,\"\")","v":""},{"$f":"IF(DataLog!$C2426=\"Log value\",DataLog!AG2426,\"\")","v":""},{"$f":"IF(DataLog!$C2426=\"Log value\",DataLog!AH2426,\"\")","v":""},{"$f":"IF(DataLog!$C2426=\"Log value\",DataLog!AI2426,\"\")","v":""},{"$f":"IF(DataLog!$C2426=\"Log value\",DataLog!AJ2426,\"\")","v":""},{"$f":"IF(DataLog!$C2426=\"Log value\",DataLog!AK2426,\"\")","v":""},{"$f":"IF(DataLog!$C2426=\"Log value\",DataLog!AL2426,\"\")","v":""},{"$f":"IF(DataLog!$C2426=\"Log value\",DataLog!AM2426,\"\")","v":""}]
[null,null,null,null,null,null,{"$f":"IF(DataLog!$C2429=\"Log value\",DataLog!D2429&\"_\"&TEXT(DataLog!B2429,\"åååå-mm-dd\"),\"\")","v":""},{"$f":"IF(DataLog!$C2429=\"Log value\",DataLog!E2429,\"\")","v":""},{"$f":"IF(DataLog!$C2429=\"Log value\",DataLog!F2429,\"\")","v":""},{"$f":"IF(DataLog!$C2429=\"Log value\",DataLog!G2429,\"\")","v":""},{"$f":"IF(DataLog!$C2429=\"Log value\",DataLog!H2429,\"\")","v":""},{"$f":"IF(DataLog!$C2429=\"Log value\",DataLog!I2429,\"\")","v":""},{"$f":"IF(DataLog!$C2429=\"Log value\",DataLog!J2429,\"\")","v":""},{"$f":"IF(DataLog!$C2429=\"Log value\",DataLog!K2429,\"\")","v":""},{"$f":"IF(DataLog!$C2429=\"Log value\",DataLog!L2429,\"\")","v":""},{"$f":"IF(DataLog!$C2429=\"Log value\",DataLog!M2429,\"\")","v":""},{"$f":"IF(DataLog!$C2429=\"Log value\",DataLog!N2429,\"\")","v":""},{"$f":"IF(DataLog!$C2429=\"Log value\",DataLog!O2429,\"\")","v":""},{"$f":"IF(DataLog!$C2429=\"Log value\",DataLog!P2429,\"\")","v":""},{"$f":"IF(DataLog!$C2429=\"Log value\",DataLog!Q2429,\"\")","v":""},{"$f":"IF(DataLog!$C2429=\"Log value\",DataLog!R2429,\"\")","v":""},{"$f":"IF(DataLog!$C2429=\"Log value\",DataLog!S2429,\"\")","v":""},{"$f":"IF(DataLog!$C2429=\"Log value\",DataLog!T2429,\"\")","v":""},{"$f":"IF(DataLog!$C2429=\"Log value\",DataLog!U2429,\"\")","v":""},{"$f":"IF(DataLog!$C2429=\"Log value\",DataLog!V2429,\"\")","v":""},{"$f":"IF(DataLog!$C2429=\"Log value\",DataLog!W2429,\"\")","v":""},{"$f":"IF(DataLog!$C2429=\"Log value\",DataLog!X2429,\"\")","v":""},{"$f":"IF(DataLog!$C2429=\"Log value\",DataLog!Y2429,\"\")","v":""},{"$f":"IF(DataLog!$C2429=\"Log value\",DataLog!Z2429,\"\")","v":""},{"$f":"IF(DataLog!$C2429=\"Log value\",DataLog!AA2429,\"\")","v":""},{"$f":"IF(DataLog!$C2429=\"Log value\",DataLog!AB2429,\"\")","v":""},{"$f":"IF(DataLog!$C2429=\"Log value\",DataLog!AC2429,\"\")","v":""},{"$f":"IF(DataLog!$C2429=\"Log value\",DataLog!AD2429,\"\")","v":""},{"$f":"IF(DataLog!$C2429=\"Log value\",DataLog!AE2429,\"\")","v":""},{"$f":"IF(DataLog!$C2429=\"Log value\",DataLog!AF2429,\"\")","v":""},{"$f":"IF(DataLog!$C2429=\"Log value\",DataLog!AG2429,\"\")","v":""},{"$f":"IF(DataLog!$C2429=\"Log value\",DataLog!AH2429,\"\")","v":""},{"$f":"IF(DataLog!$C2429=\"Log value\",DataLog!AI2429,\"\")","v":""},{"$f":"IF(DataLog!$C2429=\"Log value\",DataLog!AJ2429,\"\")","v":""},{"$f":"IF(DataLog!$C2429=\"Log value\",DataLog!AK2429,\"\")","v":""},{"$f":"IF(DataLog!$C2429=\"Log value\",DataLog!AL2429,\"\")","v":""},{"$f":"IF(DataLog!$C2429=\"Log value\",DataLog!AM2429,\"\")","v":""}]
[null,null,null,null,null,null,{"$f":"IF(DataLog!$C2431=\"Log value\",DataLog!D2431&\"_\"&TEXT(DataLog!B2431,\"åååå-mm-dd\"),\"\")","v":""},{"$f":"IF(DataLog!$C2431=\"Log value\",DataLog!E2431,\"\")","v":""},{"$f":"IF(DataLog!$C2431=\"Log value\",DataLog!F2431,\"\")","v":""},{"$f":"IF(DataLog!$C2431=\"Log value\",DataLog!G2431,\"\")","v":""},{"$f":"IF(DataLog!$C2431=\"Log value\",DataLog!H2431,\"\")","v":""},{"$f":"IF(DataLog!$C2431=\"Log value\",DataLog!I2431,\"\")","v":""},{"$f":"IF(DataLog!$C2431=\"Log value\",DataLog!J2431,\"\")","v":""},{"$f":"IF(DataLog!$C2431=\"Log value\",DataLog!K2431,\"\")","v":""},{"$f":"IF(DataLog!$C2431=\"Log value\",DataLog!L2431,\"\")","v":""},{"$f":"IF(DataLog!$C2431=\"Log value\",DataLog!M2431,\"\")","v":""},{"$f":"IF(DataLog!$C2431=\"Log value\",DataLog!N2431,\"\")","v":""},{"$f":"IF(DataLog!$C2431=\"Log value\",DataLog!O2431,\"\")","v":""},{"$f":"IF(DataLog!$C2431=\"Log value\",DataLog!P2431,\"\")","v":""},{"$f":"IF(DataLog!$C2431=\"Log value\",DataLog!Q2431,\"\")","v":""},{"$f":"IF(DataLog!$C2431=\"Log value\",DataLog!R2431,\"\")","v":""},{"$f":"IF(DataLog!$C2431=\"Log value\",DataLog!S2431,\"\")","v":""},{"$f":"IF(DataLog!$C2431=\"Log value\",DataLog!T2431,\"\")","v":""},{"$f":"IF(DataLog!$C2431=\"Log value\",DataLog!U2431,\"\")","v":""},{"$f":"IF(DataLog!$C2431=\"Log value\",DataLog!V2431,\"\")","v":""},{"$f":"IF(DataLog!$C2431=\"Log value\",DataLog!W2431,\"\")","v":""},{"$f":"IF(DataLog!$C2431=\"Log value\",DataLog!X2431,\"\")","v":""},{"$f":"IF(DataLog!$C2431=\"Log value\",DataLog!Y2431,\"\")","v":""},{"$f":"IF(DataLog!$C2431=\"Log value\",DataLog!Z2431,\"\")","v":""},{"$f":"IF(DataLog!$C2431=\"Log value\",DataLog!AA2431,\"\")","v":""},{"$f":"IF(DataLog!$C2431=\"Log value\",DataLog!AB2431,\"\")","v":""},{"$f":"IF(DataLog!$C2431=\"Log value\",DataLog!AC2431,\"\")","v":""},{"$f":"IF(DataLog!$C2431=\"Log value\",DataLog!AD2431,\"\")","v":""},{"$f":"IF(DataLog!$C2431=\"Log value\",DataLog!AE2431,\"\")","v":""},{"$f":"IF(DataLog!$C2431=\"Log value\",DataLog!AF2431,\"\")","v":""},{"$f":"IF(DataLog!$C2431=\"Log value\",DataLog!AG2431,\"\")","v":""},{"$f":"IF(DataLog!$C2431=\"Log value\",DataLog!AH2431,\"\")","v":""},{"$f":"IF(DataLog!$C2431=\"Log value\",DataLog!AI2431,\"\")","v":""},{"$f":"IF(DataLog!$C2431=\"Log value\",DataLog!AJ2431,\"\")","v":""},{"$f":"IF(DataLog!$C2431=\"Log value\",DataLog!AK2431,\"\")","v":""},{"$f":"IF(DataLog!$C2431=\"Log value\",DataLog!AL2431,\"\")","v":""},{"$f":"IF(DataLog!$C2431=\"Log value\",DataLog!AM2431,\"\")","v":""}]
[null,null,null,null,null,null,{"$f":"IF(DataLog!$C2434=\"Log value\",DataLog!D2434&\"_\"&TEXT(DataLog!B2434,\"åååå-mm-dd\"),\"\")","v":""},{"$f":"IF(DataLog!$C2434=\"Log value\",DataLog!E2434,\"\")","v":""},{"$f":"IF(DataLog!$C2434=\"Log value\",DataLog!F2434,\"\")","v":""},{"$f":"IF(DataLog!$C2434=\"Log value\",DataLog!G2434,\"\")","v":""},{"$f":"IF(DataLog!$C2434=\"Log value\",DataLog!H2434,\"\")","v":""},{"$f":"IF(DataLog!$C2434=\"Log value\",DataLog!I2434,\"\")","v":""},{"$f":"IF(DataLog!$C2434=\"Log value\",DataLog!J2434,\"\")","v":""},{"$f":"IF(DataLog!$C2434=\"Log value\",DataLog!K2434,\"\")","v":""},{"$f":"IF(DataLog!$C2434=\"Log value\",DataLog!L2434,\"\")","v":""},{"$f":"IF(DataLog!$C2434=\"Log value\",DataLog!M2434,\"\")","v":""},{"$f":"IF(DataLog!$C2434=\"Log value\",DataLog!N2434,\"\")","v":""},{"$f":"IF(DataLog!$C2434=\"Log value\",DataLog!O2434,\"\")","v":""},{"$f":"IF(DataLog!$C2434=\"Log value\",DataLog!P2434,\"\")","v":""},{"$f":"IF(DataLog!$C2434=\"Log value\",DataLog!Q2434,\"\")","v":""},{"$f":"IF(DataLog!$C2434=\"Log value\",DataLog!R2434,\"\")","v":""},{"$f":"IF(DataLog!$C2434=\"Log value\",DataLog!S2434,\"\")","v":""},{"$f":"IF(DataLog!$C2434=\"Log value\",DataLog!T2434,\"\")","v":""},{"$f":"IF(DataLog!$C2434=\"Log value\",DataLog!U2434,\"\")","v":""},{"$f":"IF(DataLog!$C2434=\"Log value\",DataLog!V2434,\"\")","v":""},{"$f":"IF(DataLog!$C2434=\"Log value\",DataLog!W2434,\"\")","v":""},{"$f":"IF(DataLog!$C2434=\"Log value\",DataLog!X2434,\"\")","v":""},{"$f":"IF(DataLog!$C2434=\"Log value\",DataLog!Y2434,\"\")","v":""},{"$f":"IF(DataLog!$C2434=\"Log value\",DataLog!Z2434,\"\")","v":""},{"$f":"IF(DataLog!$C2434=\"Log value\",DataLog!AA2434,\"\")","v":""},{"$f":"IF(DataLog!$C2434=\"Log value\",DataLog!AB2434,\"\")","v":""},{"$f":"IF(DataLog!$C2434=\"Log value\",DataLog!AC2434,\"\")","v":""},{"$f":"IF(DataLog!$C2434=\"Log value\",DataLog!AD2434,\"\")","v":""},{"$f":"IF(DataLog!$C2434=\"Log value\",DataLog!AE2434,\"\")","v":""},{"$f":"IF(DataLog!$C2434=\"Log value\",DataLog!AF2434,\"\")","v":""},{"$f":"IF(DataLog!$C2434=\"Log value\",DataLog!AG2434,\"\")","v":""},{"$f":"IF(DataLog!$C2434=\"Log value\",DataLog!AH2434,\"\")","v":""},{"$f":"IF(DataLog!$C2434=\"Log value\",DataLog!AI2434,\"\")","v":""},{"$f":"IF(DataLog!$C2434=\"Log value\",DataLog!AJ2434,\"\")","v":""},{"$f":"IF(DataLog!$C2434=\"Log value\",DataLog!AK2434,\"\")","v":""},{"$f":"IF(DataLog!$C2434=\"Log value\",DataLog!AL2434,\"\")","v":""},{"$f":"IF(DataLog!$C2434=\"Log value\",DataLog!AM2434,\"\")","v":""}]
[null,null,null,null,null,null,{"$f":"IF(DataLog!$C2435=\"Log value\",DataLog!D2435&\"_\"&TEXT(DataLog!B2435,\"åååå-mm-dd\"),\"\")","v":""},{"$f":"IF(DataLog!$C2435=\"Log value\",DataLog!E2435,\"\")","v":""},{"$f":"IF(DataLog!$C2435=\"Log value\",DataLog!F2435,\"\")","v":""},{"$f":"IF(DataLog!$C2435=\"Log value\",DataLog!G2435,\"\")","v":""},{"$f":"IF(DataLog!$C2435=\"Log value\",DataLog!H2435,\"\")","v":""},{"$f":"IF(DataLog!$C2435=\"Log value\",DataLog!I2435,\"\")","v":""},{"$f":"IF(DataLog!$C2435=\"Log value\",DataLog!J2435,\"\")","v":""},{"$f":"IF(DataLog!$C2435=\"Log value\",DataLog!K2435,\"\")","v":""},{"$f":"IF(DataLog!$C2435=\"Log value\",DataLog!L2435,\"\")","v":""},{"$f":"IF(DataLog!$C2435=\"Log value\",DataLog!M2435,\"\")","v":""},{"$f":"IF(DataLog!$C2435=\"Log value\",DataLog!N2435,\"\")","v":""},{"$f":"IF(DataLog!$C2435=\"Log value\",DataLog!O2435,\"\")","v":""},{"$f":"IF(DataLog!$C2435=\"Log value\",DataLog!P2435,\"\")","v":""},{"$f":"IF(DataLog!$C2435=\"Log value\",DataLog!Q2435,\"\")","v":""},{"$f":"IF(DataLog!$C2435=\"Log value\",DataLog!R2435,\"\")","v":""},{"$f":"IF(DataLog!$C2435=\"Log value\",DataLog!S2435,\"\")","v":""},{"$f":"IF(DataLog!$C2435=\"Log value\",DataLog!T2435,\"\")","v":""},{"$f":"IF(DataLog!$C2435=\"Log value\",DataLog!U2435,\"\")","v":""},{"$f":"IF(DataLog!$C2435=\"Log value\",DataLog!V2435,\"\")","v":""},{"$f":"IF(DataLog!$C2435=\"Log value\",DataLog!W2435,\"\")","v":""},{"$f":"IF(DataLog!$C2435=\"Log value\",DataLog!X2435,\"\")","v":""},{"$f":"IF(DataLog!$C2435=\"Log value\",DataLog!Y2435,\"\")","v":""},{"$f":"IF(DataLog!$C2435=\"Log value\",DataLog!Z2435,\"\")","v":""},{"$f":"IF(DataLog!$C2435=\"Log value\",DataLog!AA2435,\"\")","v":""},{"$f":"IF(DataLog!$C2435=\"Log value\",DataLog!AB2435,\"\")","v":""},{"$f":"IF(DataLog!$C2435=\"Log value\",DataLog!AC2435,\"\")","v":""},{"$f":"IF(DataLog!$C2435=\"Log value\",DataLog!AD2435,\"\")","v":""},{"$f":"IF(DataLog!$C2435=\"Log value\",DataLog!AE2435,\"\")","v":""},{"$f":"IF(DataLog!$C2435=\"Log value\",DataLog!AF2435,\"\")","v":""},{"$f":"IF(DataLog!$C2435=\"Log value\",DataLog!AG2435,\"\")","v":""},{"$f":"IF(DataLog!$C2435=\"Log value\",DataLog!AH2435,\"\")","v":""},{"$f":"IF(DataLog!$C2435=\"Log value\",DataLog!AI2435,\"\")","v":""},{"$f":"IF(DataLog!$C2435=\"Log value\",DataLog!AJ2435,\"\")","v":""},{"$f":"IF(DataLog!$C2435=\"Log value\",DataLog!AK2435,\"\")","v":""},{"$f":"IF(DataLog!$C2435=\"Log value\",DataLog!AL2435,\"\")","v":""},{"$f":"IF(DataLog!$C2435=\"Log value\",DataLog!AM2435,\"\")","v":""}]
[null,null,null,null,null,null,{"$f":"IF(DataLog!$C2437=\"Log value\",DataLog!D2437&\"_\"&TEXT(DataLog!B2437,\"åååå-mm-dd\"),\"\")","v":""},{"$f":"IF(DataLog!$C2437=\"Log value\",DataLog!E2437,\"\")","v":""},{"$f":"IF(DataLog!$C2437=\"Log value\",DataLog!F2437,\"\")","v":""},{"$f":"IF(DataLog!$C2437=\"Log value\",DataLog!G2437,\"\")","v":""},{"$f":"IF(DataLog!$C2437=\"Log value\",DataLog!H2437,\"\")","v":""},{"$f":"IF(DataLog!$C2437=\"Log value\",DataLog!I2437,\"\")","v":""},{"$f":"IF(DataLog!$C2437=\"Log value\",DataLog!J2437,\"\")","v":""},{"$f":"IF(DataLog!$C2437=\"Log value\",DataLog!K2437,\"\")","v":""},{"$f":"IF(DataLog!$C2437=\"Log value\",DataLog!L2437,\"\")","v":""},{"$f":"IF(DataLog!$C2437=\"Log value\",DataLog!M2437,\"\")","v":""},{"$f":"IF(DataLog!$C2437=\"Log value\",DataLog!N2437,\"\")","v":""},{"$f":"IF(DataLog!$C2437=\"Log value\",DataLog!O2437,\"\")","v":""},{"$f":"IF(DataLog!$C2437=\"Log value\",DataLog!P2437,\"\")","v":""},{"$f":"IF(DataLog!$C2437=\"Log value\",DataLog!Q2437,\"\")","v":""},{"$f":"IF(DataLog!$C2437=\"Log value\",DataLog!R2437,\"\")","v":""},{"$f":"IF(DataLog!$C2437=\"Log value\",DataLog!S2437,\"\")","v":""},{"$f":"IF(DataLog!$C2437=\"Log value\",DataLog!T2437,\"\")","v":""},{"$f":"IF(DataLog!$C2437=\"Log value\",DataLog!U2437,\"\")","v":""},{"$f":"IF(DataLog!$C2437=\"Log value\",DataLog!V2437,\"\")","v":""},{"$f":"IF(DataLog!$C2437=\"Log value\",DataLog!W2437,\"\")","v":""},{"$f":"IF(DataLog!$C2437=\"Log value\",DataLog!X2437,\"\")","v":""},{"$f":"IF(DataLog!$C2437=\"Log value\",DataLog!Y2437,\"\")","v":""},{"$f":"IF(DataLog!$C2437=\"Log value\",DataLog!Z2437,\"\")","v":""},{"$f":"IF(DataLog!$C2437=\"Log value\",DataLog!AA2437,\"\")","v":""},{"$f":"IF(DataLog!$C2437=\"Log value\",DataLog!AB2437,\"\")","v":""},{"$f":"IF(DataLog!$C2437=\"Log value\",DataLog!AC2437,\"\")","v":""},{"$f":"IF(DataLog!$C2437=\"Log value\",DataLog!AD2437,\"\")","v":""},{"$f":"IF(DataLog!$C2437=\"Log value\",DataLog!AE2437,\"\")","v":""},{"$f":"IF(DataLog!$C2437=\"Log value\",DataLog!AF2437,\"\")","v":""},{"$f":"IF(DataLog!$C2437=\"Log value\",DataLog!AG2437,\"\")","v":""},{"$f":"IF(DataLog!$C2437=\"Log value\",DataLog!AH2437,\"\")","v":""},{"$f":"IF(DataLog!$C2437=\"Log value\",DataLog!AI2437,\"\")","v":""},{"$f":"IF(DataLog!$C2437=\"Log value\",DataLog!AJ2437,\"\")","v":""},{"$f":"IF(DataLog!$C2437=\"Log value\",DataLog!AK2437,\"\")","v":""},{"$f":"IF(DataLog!$C2437=\"Log value\",DataLog!AL2437,\"\")","v":""},{"$f":"IF(DataLog!$C2437=\"Log value\",DataLog!AM2437,\"\")","v":""}]
[null,null,null,null,null,null,{"$f":"IF(DataLog!$C2440=\"Log value\",DataLog!D2440&\"_\"&TEXT(DataLog!B2440,\"åååå-mm-dd\"),\"\")","v":""},{"$f":"IF(DataLog!$C2440=\"Log value\",DataLog!E2440,\"\")","v":""},{"$f":"IF(DataLog!$C2440=\"Log value\",DataLog!F2440,\"\")","v":""},{"$f":"IF(DataLog!$C2440=\"Log value\",DataLog!G2440,\"\")","v":""},{"$f":"IF(DataLog!$C2440=\"Log value\",DataLog!H2440,\"\")","v":""},{"$f":"IF(DataLog!$C2440=\"Log value\",DataLog!I2440,\"\")","v":""},{"$f":"IF(DataLog!$C2440=\"Log value\",DataLog!J2440,\"\")","v":""},{"$f":"IF(DataLog!$C2440=\"Log value\",DataLog!K2440,\"\")","v":""},{"$f":"IF(DataLog!$C2440=\"Log value\",DataLog!L2440,\"\")","v":""},{"$f":"IF(DataLog!$C2440=\"Log value\",DataLog!M2440,\"\")","v":""},{"$f":"IF(DataLog!$C2440=\"Log value\",DataLog!N2440,\"\")","v":""},{"$f":"IF(DataLog!$C2440=\"Log value\",DataLog!O2440,\"\")","v":""},{"$f":"IF(DataLog!$C2440=\"Log value\",DataLog!P2440,\"\")","v":""},{"$f":"IF(DataLog!$C2440=\"Log value\",DataLog!Q2440,\"\")","v":""},{"$f":"IF(DataLog!$C2440=\"Log value\",DataLog!R2440,\"\")","v":""},{"$f":"IF(DataLog!$C2440=\"Log value\",DataLog!S2440,\"\")","v":""},{"$f":"IF(DataLog!$C2440=\"Log value\",DataLog!T2440,\"\")","v":""},{"$f":"IF(DataLog!$C2440=\"Log value\",DataLog!U2440,\"\")","v":""},{"$f":"IF(DataLog!$C2440=\"Log value\",DataLog!V2440,\"\")","v":""},{"$f":"IF(DataLog!$C2440=\"Log value\",DataLog!W2440,\"\")","v":""},{"$f":"IF(DataLog!$C2440=\"Log value\",DataLog!X2440,\"\")","v":""},{"$f":"IF(DataLog!$C2440=\"Log value\",DataLog!Y2440,\"\")","v":""},{"$f":"IF(DataLog!$C2440=\"Log value\",DataLog!Z2440,\"\")","v":""},{"$f":"IF(DataLog!$C2440=\"Log value\",DataLog!AA2440,\"\")","v":""},{"$f":"IF(DataLog!$C2440=\"Log value\",DataLog!AB2440,\"\")","v":""},{"$f":"IF(DataLog!$C2440=\"Log value\",DataLog!AC2440,\"\")","v":""},{"$f":"IF(DataLog!$C2440=\"Log value\",DataLog!AD2440,\"\")","v":""},{"$f":"IF(DataLog!$C2440=\"Log value\",DataLog!AE2440,\"\")","v":""},{"$f":"IF(DataLog!$C2440=\"Log value\",DataLog!AF2440,\"\")","v":""},{"$f":"IF(DataLog!$C2440=\"Log value\",DataLog!AG2440,\"\")","v":""},{"$f":"IF(DataLog!$C2440=\"Log value\",DataLog!AH2440,\"\")","v":""},{"$f":"IF(DataLog!$C2440=\"Log value\",DataLog!AI2440,\"\")","v":""},{"$f":"IF(DataLog!$C2440=\"Log value\",DataLog!AJ2440,\"\")","v":""},{"$f":"IF(DataLog!$C2440=\"Log value\",DataLog!AK2440,\"\")","v":""},{"$f":"IF(DataLog!$C2440=\"Log value\",DataLog!AL2440,\"\")","v":""},{"$f":"IF(DataLog!$C2440=\"Log value\",DataLog!AM2440,\"\")","v":""}]
[null,null,null,null,null,null,{"$f":"IF(DataLog!$C2443=\"Log value\",DataLog!D2443&\"_\"&TEXT(DataLog!B2443,\"åååå-mm-dd\"),\"\")","v":""},{"$f":"IF(DataLog!$C2443=\"Log value\",DataLog!E2443,\"\")","v":""},{"$f":"IF(DataLog!$C2443=\"Log value\",DataLog!F2443,\"\")","v":""},{"$f":"IF(DataLog!$C2443=\"Log value\",DataLog!G2443,\"\")","v":""},{"$f":"IF(DataLog!$C2443=\"Log value\",DataLog!H2443,\"\")","v":""},{"$f":"IF(DataLog!$C2443=\"Log value\",DataLog!I2443,\"\")","v":""},{"$f":"IF(DataLog!$C2443=\"Log value\",DataLog!J2443,\"\")","v":""},{"$f":"IF(DataLog!$C2443=\"Log value\",DataLog!K2443,\"\")","v":""},{"$f":"IF(DataLog!$C2443=\"Log value\",DataLog!L2443,\"\")","v":""},{"$f":"IF(DataLog!$C2443=\"Log value\",DataLog!M2443,\"\")","v":""},{"$f":"IF(DataLog!$C2443=\"Log value\",DataLog!N2443,\"\")","v":""},{"$f":"IF(DataLog!$C2443=\"Log value\",DataLog!O2443,\"\")","v":""},{"$f":"IF(DataLog!$C2443=\"Log value\",DataLog!P2443,\"\")","v":""},{"$f":"IF(DataLog!$C2443=\"Log value\",DataLog!Q2443,\"\")","v":""},{"$f":"IF(DataLog!$C2443=\"Log value\",DataLog!R2443,\"\")","v":""},{"$f":"IF(DataLog!$C2443=\"Log value\",DataLog!S2443,\"\")","v":""},{"$f":"IF(DataLog!$C2443=\"Log value\",DataLog!T2443,\"\")","v":""},{"$f":"IF(DataLog!$C2443=\"Log value\",DataLog!U2443,\"\")","v":""},{"$f":"IF(DataLog!$C2443=\"Log value\",DataLog!V2443,\"\")","v":""},{"$f":"IF(DataLog!$C2443=\"Log value\",DataLog!W2443,\"\")","v":""},{"$f":"IF(DataLog!$C2443=\"Log value\",DataLog!X2443,\"\")","v":""},{"$f":"IF(DataLog!$C2443=\"Log value\",DataLog!Y2443,\"\")","v":""},{"$f":"IF(DataLog!$C2443=\"Log value\",DataLog!Z2443,\"\")","v":""},{"$f":"IF(DataLog!$C2443=\"Log value\",DataLog!AA2443,\"\")","v":""},{"$f":"IF(DataLog!$C2443=\"Log value\",DataLog!AB2443,\"\")","v":""},{"$f":"IF(DataLog!$C2443=\"Log value\",DataLog!AC2443,\"\")","v":""},{"$f":"IF(DataLog!$C2443=\"Log value\",DataLog!AD2443,\"\")","v":""},{"$f":"IF(DataLog!$C2443=\"Log value\",DataLog!AE2443,\"\")","v":""},{"$f":"IF(DataLog!$C2443=\"Log value\",DataLog!AF2443,\"\")","v":""},{"$f":"IF(DataLog!$C2443=\"Log value\",DataLog!AG2443,\"\")","v":""},{"$f":"IF(DataLog!$C2443=\"Log value\",DataLog!AH2443,\"\")","v":""},{"$f":"IF(DataLog!$C2443=\"Log value\",DataLog!AI2443,\"\")","v":""},{"$f":"IF(DataLog!$C2443=\"Log value\",DataLog!AJ2443,\"\")","v":""},{"$f":"IF(DataLog!$C2443=\"Log value\",DataLog!AK2443,\"\")","v":""},{"$f":"IF(DataLog!$C2443=\"Log value\",DataLog!AL2443,\"\")","v":""},{"$f":"IF(DataLog!$C2443=\"Log value\",DataLog!AM2443,\"\")","v":""}]
[null,null,null,null,null,null,{"$f":"IF(DataLog!$C2445=\"Log value\",DataLog!D2445&\"_\"&TEXT(DataLog!B2445,\"åååå-mm-dd\"),\"\")","v":""},{"$f":"IF(DataLog!$C2445=\"Log value\",DataLog!E2445,\"\")","v":""},{"$f":"IF(DataLog!$C2445=\"Log value\",DataLog!F2445,\"\")","v":""},{"$f":"IF(DataLog!$C2445=\"Log value\",DataLog!G2445,\"\")","v":""},{"$f":"IF(DataLog!$C2445=\"Log value\",DataLog!H2445,\"\")","v":""},{"$f":"IF(DataLog!$C2445=\"Log value\",DataLog!I2445,\"\")","v":""},{"$f":"IF(DataLog!$C2445=\"Log value\",DataLog!J2445,\"\")","v":""},{"$f":"IF(DataLog!$C2445=\"Log value\",DataLog!K2445,\"\")","v":""},{"$f":"IF(DataLog!$C2445=\"Log value\",DataLog!L2445,\"\")","v":""},{"$f":"IF(DataLog!$C2445=\"Log value\",DataLog!M2445,\"\")","v":""},{"$f":"IF(DataLog!$C2445=\"Log value\",DataLog!N2445,\"\")","v":""},{"$f":"IF(DataLog!$C2445=\"Log value\",DataLog!O2445,\"\")","v":""},{"$f":"IF(DataLog!$C2445=\"Log value\",DataLog!P2445,\"\")","v":""},{"$f":"IF(DataLog!$C2445=\"Log value\",DataLog!Q2445,\"\")","v":""},{"$f":"IF(DataLog!$C2445=\"Log value\",DataLog!R2445,\"\")","v":""},{"$f":"IF(DataLog!$C2445=\"Log value\",DataLog!S2445,\"\")","v":""},{"$f":"IF(DataLog!$C2445=\"Log value\",DataLog!T2445,\"\")","v":""},{"$f":"IF(DataLog!$C2445=\"Log value\",DataLog!U2445,\"\")","v":""},{"$f":"IF(DataLog!$C2445=\"Log value\",DataLog!V2445,\"\")","v":""},{"$f":"IF(DataLog!$C2445=\"Log value\",DataLog!W2445,\"\")","v":""},{"$f":"IF(DataLog!$C2445=\"Log value\",DataLog!X2445,\"\")","v":""},{"$f":"IF(DataLog!$C2445=\"Log value\",DataLog!Y2445,\"\")","v":""},{"$f":"IF(DataLog!$C2445=\"Log value\",DataLog!Z2445,\"\")","v":""},{"$f":"IF(DataLog!$C2445=\"Log value\",DataLog!AA2445,\"\")","v":""},{"$f":"IF(DataLog!$C2445=\"Log value\",DataLog!AB2445,\"\")","v":""},{"$f":"IF(DataLog!$C2445=\"Log value\",DataLog!AC2445,\"\")","v":""},{"$f":"IF(DataLog!$C2445=\"Log value\",DataLog!AD2445,\"\")","v":""},{"$f":"IF(DataLog!$C2445=\"Log value\",DataLog!AE2445,\"\")","v":""},{"$f":"IF(DataLog!$C2445=\"Log value\",DataLog!AF2445,\"\")","v":""},{"$f":"IF(DataLog!$C2445=\"Log value\",DataLog!AG2445,\"\")","v":""},{"$f":"IF(DataLog!$C2445=\"Log value\",DataLog!AH2445,\"\")","v":""},{"$f":"IF(DataLog!$C2445=\"Log value\",DataLog!AI2445,\"\")","v":""},{"$f":"IF(DataLog!$C2445=\"Log value\",DataLog!AJ2445,\"\")","v":""},{"$f":"IF(DataLog!$C2445=\"Log value\",DataLog!AK2445,\"\")","v":""},{"$f":"IF(DataLog!$C2445=\"Log value\",DataLog!AL2445,\"\")","v":""},{"$f":"IF(DataLog!$C2445=\"Log value\",DataLog!AM2445,\"\")","v":""}]
[null,null,null,null,null,null,{"$f":"IF(DataLog!$C2448=\"Log value\",DataLog!D2448&\"_\"&TEXT(DataLog!B2448,\"åååå-mm-dd\"),\"\")","v":""},{"$f":"IF(DataLog!$C2448=\"Log value\",DataLog!E2448,\"\")","v":""},{"$f":"IF(DataLog!$C2448=\"Log value\",DataLog!F2448,\"\")","v":""},{"$f":"IF(DataLog!$C2448=\"Log value\",DataLog!G2448,\"\")","v":""},{"$f":"IF(DataLog!$C2448=\"Log value\",DataLog!H2448,\"\")","v":""},{"$f":"IF(DataLog!$C2448=\"Log value\",DataLog!I2448,\"\")","v":""},{"$f":"IF(DataLog!$C2448=\"Log value\",DataLog!J2448,\"\")","v":""},{"$f":"IF(DataLog!$C2448=\"Log value\",DataLog!K2448,\"\")","v":""},{"$f":"IF(DataLog!$C2448=\"Log value\",DataLog!L2448,\"\")","v":""},{"$f":"IF(DataLog!$C2448=\"Log value\",DataLog!M2448,\"\")","v":""},{"$f":"IF(DataLog!$C2448=\"Log value\",DataLog!N2448,\"\")","v":""},{"$f":"IF(DataLog!$C2448=\"Log value\",DataLog!O2448,\"\")","v":""},{"$f":"IF(DataLog!$C2448=\"Log value\",DataLog!P2448,\"\")","v":""},{"$f":"IF(DataLog!$C2448=\"Log value\",DataLog!Q2448,\"\")","v":""},{"$f":"IF(DataLog!$C2448=\"Log value\",DataLog!R2448,\"\")","v":""},{"$f":"IF(DataLog!$C2448=\"Log value\",DataLog!S2448,\"\")","v":""},{"$f":"IF(DataLog!$C2448=\"Log value\",DataLog!T2448,\"\")","v":""},{"$f":"IF(DataLog!$C2448=\"Log value\",DataLog!U2448,\"\")","v":""},{"$f":"IF(DataLog!$C2448=\"Log value\",DataLog!V2448,\"\")","v":""},{"$f":"IF(DataLog!$C2448=\"Log value\",DataLog!W2448,\"\")","v":""},{"$f":"IF(DataLog!$C2448=\"Log value\",DataLog!X2448,\"\")","v":""},{"$f":"IF(DataLog!$C2448=\"Log value\",DataLog!Y2448,\"\")","v":""},{"$f":"IF(DataLog!$C2448=\"Log value\",DataLog!Z2448,\"\")","v":""},{"$f":"IF(DataLog!$C2448=\"Log value\",DataLog!AA2448,\"\")","v":""},{"$f":"IF(DataLog!$C2448=\"Log value\",DataLog!AB2448,\"\")","v":""},{"$f":"IF(DataLog!$C2448=\"Log value\",DataLog!AC2448,\"\")","v":""},{"$f":"IF(DataLog!$C2448=\"Log value\",DataLog!AD2448,\"\")","v":""},{"$f":"IF(DataLog!$C2448=\"Log value\",DataLog!AE2448,\"\")","v":""},{"$f":"IF(DataLog!$C2448=\"Log value\",DataLog!AF2448,\"\")","v":""},{"$f":"IF(DataLog!$C2448=\"Log value\",DataLog!AG2448,\"\")","v":""},{"$f":"IF(DataLog!$C2448=\"Log value\",DataLog!AH2448,\"\")","v":""},{"$f":"IF(DataLog!$C2448=\"Log value\",DataLog!AI2448,\"\")","v":""},{"$f":"IF(DataLog!$C2448=\"Log value\",DataLog!AJ2448,\"\")","v":""},{"$f":"IF(DataLog!$C2448=\"Log value\",DataLog!AK2448,\"\")","v":""},{"$f":"IF(DataLog!$C2448=\"Log value\",DataLog!AL2448,\"\")","v":""},{"$f":"IF(DataLog!$C2448=\"Log value\",DataLog!AM2448,\"\")","v":""}]
[null,null,null,null,null,null,{"$f":"IF(DataLog!$C2449=\"Log value\",DataLog!D2449&\"_\"&TEXT(DataLog!B2449,\"åååå-mm-dd\"),\"\")","v":""},{"$f":"IF(DataLog!$C2449=\"Log value\",DataLog!E2449,\"\")","v":""},{"$f":"IF(DataLog!$C2449=\"Log value\",DataLog!F2449,\"\")","v":""},{"$f":"IF(DataLog!$C2449=\"Log value\",DataLog!G2449,\"\")","v":""},{"$f":"IF(DataLog!$C2449=\"Log value\",DataLog!H2449,\"\")","v":""},{"$f":"IF(DataLog!$C2449=\"Log value\",DataLog!I2449,\"\")","v":""},{"$f":"IF(DataLog!$C2449=\"Log value\",DataLog!J2449,\"\")","v":""},{"$f":"IF(DataLog!$C2449=\"Log value\",DataLog!K2449,\"\")","v":""},{"$f":"IF(DataLog!$C2449=\"Log value\",DataLog!L2449,\"\")","v":""},{"$f":"IF(DataLog!$C2449=\"Log value\",DataLog!M2449,\"\")","v":""},{"$f":"IF(DataLog!$C2449=\"Log value\",DataLog!N2449,\"\")","v":""},{"$f":"IF(DataLog!$C2449=\"Log value\",DataLog!O2449,\"\")","v":""},{"$f":"IF(DataLog!$C2449=\"Log value\",DataLog!P2449,\"\")","v":""},{"$f":"IF(DataLog!$C2449=\"Log value\",DataLog!Q2449,\"\")","v":""},{"$f":"IF(DataLog!$C2449=\"Log value\",DataLog!R2449,\"\")","v":""},{"$f":"IF(DataLog!$C2449=\"Log value\",DataLog!S2449,\"\")","v":""},{"$f":"IF(DataLog!$C2449=\"Log value\",DataLog!T2449,\"\")","v":""},{"$f":"IF(DataLog!$C2449=\"Log value\",DataLog!U2449,\"\")","v":""},{"$f":"IF(DataLog!$C2449=\"Log value\",DataLog!V2449,\"\")","v":""},{"$f":"IF(DataLog!$C2449=\"Log value\",DataLog!W2449,\"\")","v":""},{"$f":"IF(DataLog!$C2449=\"Log value\",DataLog!X2449,\"\")","v":""},{"$f":"IF(DataLog!$C2449=\"Log value\",DataLog!Y2449,\"\")","v":""},{"$f":"IF(DataLog!$C2449=\"Log value\",DataLog!Z2449,\"\")","v":""},{"$f":"IF(DataLog!$C2449=\"Log value\",DataLog!AA2449,\"\")","v":""},{"$f":"IF(DataLog!$C2449=\"Log value\",DataLog!AB2449,\"\")","v":""},{"$f":"IF(DataLog!$C2449=\"Log value\",DataLog!AC2449,\"\")","v":""},{"$f":"IF(DataLog!$C2449=\"Log value\",DataLog!AD2449,\"\")","v":""},{"$f":"IF(DataLog!$C2449=\"Log value\",DataLog!AE2449,\"\")","v":""},{"$f":"IF(DataLog!$C2449=\"Log value\",DataLog!AF2449,\"\")","v":""},{"$f":"IF(DataLog!$C2449=\"Log value\",DataLog!AG2449,\"\")","v":""},{"$f":"IF(DataLog!$C2449=\"Log value\",DataLog!AH2449,\"\")","v":""},{"$f":"IF(DataLog!$C2449=\"Log value\",DataLog!AI2449,\"\")","v":""},{"$f":"IF(DataLog!$C2449=\"Log value\",DataLog!AJ2449,\"\")","v":""},{"$f":"IF(DataLog!$C2449=\"Log value\",DataLog!AK2449,\"\")","v":""},{"$f":"IF(DataLog!$C2449=\"Log value\",DataLog!AL2449,\"\")","v":""},{"$f":"IF(DataLog!$C2449=\"Log value\",DataLog!AM2449,\"\")","v":""}]
[null,null,null,null,null,null,{"$f":"IF(DataLog!$C2452=\"Log value\",DataLog!D2452&\"_\"&TEXT(DataLog!B2452,\"åååå-mm-dd\"),\"\")","v":""},{"$f":"IF(DataLog!$C2452=\"Log value\",DataLog!E2452,\"\")","v":""},{"$f":"IF(DataLog!$C2452=\"Log value\",DataLog!F2452,\"\")","v":""},{"$f":"IF(DataLog!$C2452=\"Log value\",DataLog!G2452,\"\")","v":""},{"$f":"IF(DataLog!$C2452=\"Log value\",DataLog!H2452,\"\")","v":""},{"$f":"IF(DataLog!$C2452=\"Log value\",DataLog!I2452,\"\")","v":""},{"$f":"IF(DataLog!$C2452=\"Log value\",DataLog!J2452,\"\")","v":""},{"$f":"IF(DataLog!$C2452=\"Log value\",DataLog!K2452,\"\")","v":""},{"$f":"IF(DataLog!$C2452=\"Log value\",DataLog!L2452,\"\")","v":""},{"$f":"IF(DataLog!$C2452=\"Log value\",DataLog!M2452,\"\")","v":""},{"$f":"IF(DataLog!$C2452=\"Log value\",DataLog!N2452,\"\")","v":""},{"$f":"IF(DataLog!$C2452=\"Log value\",DataLog!O2452,\"\")","v":""},{"$f":"IF(DataLog!$C2452=\"Log value\",DataLog!P2452,\"\")","v":""},{"$f":"IF(DataLog!$C2452=\"Log value\",DataLog!Q2452,\"\")","v":""},{"$f":"IF(DataLog!$C2452=\"Log value\",DataLog!R2452,\"\")","v":""},{"$f":"IF(DataLog!$C2452=\"Log value\",DataLog!S2452,\"\")","v":""},{"$f":"IF(DataLog!$C2452=\"Log value\",DataLog!T2452,\"\")","v":""},{"$f":"IF(DataLog!$C2452=\"Log value\",DataLog!U2452,\"\")","v":""},{"$f":"IF(DataLog!$C2452=\"Log value\",DataLog!V2452,\"\")","v":""},{"$f":"IF(DataLog!$C2452=\"Log value\",DataLog!W2452,\"\")","v":""},{"$f":"IF(DataLog!$C2452=\"Log value\",DataLog!X2452,\"\")","v":""},{"$f":"IF(DataLog!$C2452=\"Log value\",DataLog!Y2452,\"\")","v":""},{"$f":"IF(DataLog!$C2452=\"Log value\",DataLog!Z2452,\"\")","v":""},{"$f":"IF(DataLog!$C2452=\"Log value\",DataLog!AA2452,\"\")","v":""},{"$f":"IF(DataLog!$C2452=\"Log value\",DataLog!AB2452,\"\")","v":""},{"$f":"IF(DataLog!$C2452=\"Log value\",DataLog!AC2452,\"\")","v":""},{"$f":"IF(DataLog!$C2452=\"Log value\",DataLog!AD2452,\"\")","v":""},{"$f":"IF(DataLog!$C2452=\"Log value\",DataLog!AE2452,\"\")","v":""},{"$f":"IF(DataLog!$C2452=\"Log value\",DataLog!AF2452,\"\")","v":""},{"$f":"IF(DataLog!$C2452=\"Log value\",DataLog!AG2452,\"\")","v":""},{"$f":"IF(DataLog!$C2452=\"Log value\",DataLog!AH2452,\"\")","v":""},{"$f":"IF(DataLog!$C2452=\"Log value\",DataLog!AI2452,\"\")","v":""},{"$f":"IF(DataLog!$C2452=\"Log value\",DataLog!AJ2452,\"\")","v":""},{"$f":"IF(DataLog!$C2452=\"Log value\",DataLog!AK2452,\"\")","v":""},{"$f":"IF(DataLog!$C2452=\"Log value\",DataLog!AL2452,\"\")","v":""},{"$f":"IF(DataLog!$C2452=\"Log value\",DataLog!AM2452,\"\")","v":""}]
[null,null,null,null,null,null,{"$f":"IF(DataLog!$C2455=\"Log value\",DataLog!D2455&\"_\"&TEXT(DataLog!B2455,\"åååå-mm-dd\"),\"\")","v":""},{"$f":"IF(DataLog!$C2455=\"Log value\",DataLog!E2455,\"\")","v":""},{"$f":"IF(DataLog!$C2455=\"Log value\",DataLog!F2455,\"\")","v":""},{"$f":"IF(DataLog!$C2455=\"Log value\",DataLog!G2455,\"\")","v":""},{"$f":"IF(DataLog!$C2455=\"Log value\",DataLog!H2455,\"\")","v":""},{"$f":"IF(DataLog!$C2455=\"Log value\",DataLog!I2455,\"\")","v":""},{"$f":"IF(DataLog!$C2455=\"Log value\",DataLog!J2455,\"\")","v":""},{"$f":"IF(DataLog!$C2455=\"Log value\",DataLog!K2455,\"\")","v":""},{"$f":"IF(DataLog!$C2455=\"Log value\",DataLog!L2455,\"\")","v":""},{"$f":"IF(DataLog!$C2455=\"Log value\",DataLog!M2455,\"\")","v":""},{"$f":"IF(DataLog!$C2455=\"Log value\",DataLog!N2455,\"\")","v":""},{"$f":"IF(DataLog!$C2455=\"Log value\",DataLog!O2455,\"\")","v":""},{"$f":"IF(DataLog!$C2455=\"Log value\",DataLog!P2455,\"\")","v":""},{"$f":"IF(DataLog!$C2455=\"Log value\",DataLog!Q2455,\"\")","v":""},{"$f":"IF(DataLog!$C2455=\"Log value\",DataLog!R2455,\"\")","v":""},{"$f":"IF(DataLog!$C2455=\"Log value\",DataLog!S2455,\"\")","v":""},{"$f":"IF(DataLog!$C2455=\"Log value\",DataLog!T2455,\"\")","v":""},{"$f":"IF(DataLog!$C2455=\"Log value\",DataLog!U2455,\"\")","v":""},{"$f":"IF(DataLog!$C2455=\"Log value\",DataLog!V2455,\"\")","v":""},{"$f":"IF(DataLog!$C2455=\"Log value\",DataLog!W2455,\"\")","v":""},{"$f":"IF(DataLog!$C2455=\"Log value\",DataLog!X2455,\"\")","v":""},{"$f":"IF(DataLog!$C2455=\"Log value\",DataLog!Y2455,\"\")","v":""},{"$f":"IF(DataLog!$C2455=\"Log value\",DataLog!Z2455,\"\")","v":""},{"$f":"IF(DataLog!$C2455=\"Log value\",DataLog!AA2455,\"\")","v":""},{"$f":"IF(DataLog!$C2455=\"Log value\",DataLog!AB2455,\"\")","v":""},{"$f":"IF(DataLog!$C2455=\"Log value\",DataLog!AC2455,\"\")","v":""},{"$f":"IF(DataLog!$C2455=\"Log value\",DataLog!AD2455,\"\")","v":""},{"$f":"IF(DataLog!$C2455=\"Log value\",DataLog!AE2455,\"\")","v":""},{"$f":"IF(DataLog!$C2455=\"Log value\",DataLog!AF2455,\"\")","v":""},{"$f":"IF(DataLog!$C2455=\"Log value\",DataLog!AG2455,\"\")","v":""},{"$f":"IF(DataLog!$C2455=\"Log value\",DataLog!AH2455,\"\")","v":""},{"$f":"IF(DataLog!$C2455=\"Log value\",DataLog!AI2455,\"\")","v":""},{"$f":"IF(DataLog!$C2455=\"Log value\",DataLog!AJ2455,\"\")","v":""},{"$f":"IF(DataLog!$C2455=\"Log value\",DataLog!AK2455,\"\")","v":""},{"$f":"IF(DataLog!$C2455=\"Log value\",DataLog!AL2455,\"\")","v":""},{"$f":"IF(DataLog!$C2455=\"Log value\",DataLog!AM2455,\"\")","v":""}]
[null,null,null,null,null,null,{"$f":"IF(DataLog!$C2457=\"Log value\",DataLog!D2457&\"_\"&TEXT(DataLog!B2457,\"åååå-mm-dd\"),\"\")","v":""},{"$f":"IF(DataLog!$C2457=\"Log value\",DataLog!E2457,\"\")","v":""},{"$f":"IF(DataLog!$C2457=\"Log value\",DataLog!F2457,\"\")","v":""},{"$f":"IF(DataLog!$C2457=\"Log value\",DataLog!G2457,\"\")","v":""},{"$f":"IF(DataLog!$C2457=\"Log value\",DataLog!H2457,\"\")","v":""},{"$f":"IF(DataLog!$C2457=\"Log value\",DataLog!I2457,\"\")","v":""},{"$f":"IF(DataLog!$C2457=\"Log value\",DataLog!J2457,\"\")","v":""},{"$f":"IF(DataLog!$C2457=\"Log value\",DataLog!K2457,\"\")","v":""},{"$f":"IF(DataLog!$C2457=\"Log value\",DataLog!L2457,\"\")","v":""},{"$f":"IF(DataLog!$C2457=\"Log value\",DataLog!M2457,\"\")","v":""},{"$f":"IF(DataLog!$C2457=\"Log value\",DataLog!N2457,\"\")","v":""},{"$f":"IF(DataLog!$C2457=\"Log value\",DataLog!O2457,\"\")","v":""},{"$f":"IF(DataLog!$C2457=\"Log value\",DataLog!P2457,\"\")","v":""},{"$f":"IF(DataLog!$C2457=\"Log value\",DataLog!Q2457,\"\")","v":""},{"$f":"IF(DataLog!$C2457=\"Log value\",DataLog!R2457,\"\")","v":""},{"$f":"IF(DataLog!$C2457=\"Log value\",DataLog!S2457,\"\")","v":""},{"$f":"IF(DataLog!$C2457=\"Log value\",DataLog!T2457,\"\")","v":""},{"$f":"IF(DataLog!$C2457=\"Log value\",DataLog!U2457,\"\")","v":""},{"$f":"IF(DataLog!$C2457=\"Log value\",DataLog!V2457,\"\")","v":""},{"$f":"IF(DataLog!$C2457=\"Log value\",DataLog!W2457,\"\")","v":""},{"$f":"IF(DataLog!$C2457=\"Log value\",DataLog!X2457,\"\")","v":""},{"$f":"IF(DataLog!$C2457=\"Log value\",DataLog!Y2457,\"\")","v":""},{"$f":"IF(DataLog!$C2457=\"Log value\",DataLog!Z2457,\"\")","v":""},{"$f":"IF(DataLog!$C2457=\"Log value\",DataLog!AA2457,\"\")","v":""},{"$f":"IF(DataLog!$C2457=\"Log value\",DataLog!AB2457,\"\")","v":""},{"$f":"IF(DataLog!$C2457=\"Log value\",DataLog!AC2457,\"\")","v":""},{"$f":"IF(DataLog!$C2457=\"Log value\",DataLog!AD2457,\"\")","v":""},{"$f":"IF(DataLog!$C2457=\"Log value\",DataLog!AE2457,\"\")","v":""},{"$f":"IF(DataLog!$C2457=\"Log value\",DataLog!AF2457,\"\")","v":""},{"$f":"IF(DataLog!$C2457=\"Log value\",DataLog!AG2457,\"\")","v":""},{"$f":"IF(DataLog!$C2457=\"Log value\",DataLog!AH2457,\"\")","v":""},{"$f":"IF(DataLog!$C2457=\"Log value\",DataLog!AI2457,\"\")","v":""},{"$f":"IF(DataLog!$C2457=\"Log value\",DataLog!AJ2457,\"\")","v":""},{"$f":"IF(DataLog!$C2457=\"Log value\",DataLog!AK2457,\"\")","v":""},{"$f":"IF(DataLog!$C2457=\"Log value\",DataLog!AL2457,\"\")","v":""},{"$f":"IF(DataLog!$C2457=\"Log value\",DataLog!AM2457,\"\")","v":""}]
[null,null,null,null,null,null,{"$f":"IF(DataLog!$C2458=\"Log value\",DataLog!D2458&\"_\"&TEXT(DataLog!B2458,\"åååå-mm-dd\"),\"\")","v":""},{"$f":"IF(DataLog!$C2458=\"Log value\",DataLog!E2458,\"\")","v":""},{"$f":"IF(DataLog!$C2458=\"Log value\",DataLog!F2458,\"\")","v":""},{"$f":"IF(DataLog!$C2458=\"Log value\",DataLog!G2458,\"\")","v":""},{"$f":"IF(DataLog!$C2458=\"Log value\",DataLog!H2458,\"\")","v":""},{"$f":"IF(DataLog!$C2458=\"Log value\",DataLog!I2458,\"\")","v":""},{"$f":"IF(DataLog!$C2458=\"Log value\",DataLog!J2458,\"\")","v":""},{"$f":"IF(DataLog!$C2458=\"Log value\",DataLog!K2458,\"\")","v":""},{"$f":"IF(DataLog!$C2458=\"Log value\",DataLog!L2458,\"\")","v":""},{"$f":"IF(DataLog!$C2458=\"Log value\",DataLog!M2458,\"\")","v":""},{"$f":"IF(DataLog!$C2458=\"Log value\",DataLog!N2458,\"\")","v":""},{"$f":"IF(DataLog!$C2458=\"Log value\",DataLog!O2458,\"\")","v":""},{"$f":"IF(DataLog!$C2458=\"Log value\",DataLog!P2458,\"\")","v":""},{"$f":"IF(DataLog!$C2458=\"Log value\",DataLog!Q2458,\"\")","v":""},{"$f":"IF(DataLog!$C2458=\"Log value\",DataLog!R2458,\"\")","v":""},{"$f":"IF(DataLog!$C2458=\"Log value\",DataLog!S2458,\"\")","v":""},{"$f":"IF(DataLog!$C2458=\"Log value\",DataLog!T2458,\"\")","v":""},{"$f":"IF(DataLog!$C2458=\"Log value\",DataLog!U2458,\"\")","v":""},{"$f":"IF(DataLog!$C2458=\"Log value\",DataLog!V2458,\"\")","v":""},{"$f":"IF(DataLog!$C2458=\"Log value\",DataLog!W2458,\"\")","v":""},{"$f":"IF(DataLog!$C2458=\"Log value\",DataLog!X2458,\"\")","v":""},{"$f":"IF(DataLog!$C2458=\"Log value\",DataLog!Y2458,\"\")","v":""},{"$f":"IF(DataLog!$C2458=\"Log value\",DataLog!Z2458,\"\")","v":""},{"$f":"IF(DataLog!$C2458=\"Log value\",DataLog!AA2458,\"\")","v":""},{"$f":"IF(DataLog!$C2458=\"Log value\",DataLog!AB2458,\"\")","v":""},{"$f":"IF(DataLog!$C2458=\"Log value\",DataLog!AC2458,\"\")","v":""},{"$f":"IF(DataLog!$C2458=\"Log value\",DataLog!AD2458,\"\")","v":""},{"$f":"IF(DataLog!$C2458=\"Log value\",DataLog!AE2458,\"\")","v":""},{"$f":"IF(DataLog!$C2458=\"Log value\",DataLog!AF2458,\"\")","v":""},{"$f":"IF(DataLog!$C2458=\"Log value\",DataLog!AG2458,\"\")","v":""},{"$f":"IF(DataLog!$C2458=\"Log value\",DataLog!AH2458,\"\")","v":""},{"$f":"IF(DataLog!$C2458=\"Log value\",DataLog!AI2458,\"\")","v":""},{"$f":"IF(DataLog!$C2458=\"Log value\",DataLog!AJ2458,\"\")","v":""},{"$f":"IF(DataLog!$C2458=\"Log value\",DataLog!AK2458,\"\")","v":""},{"$f":"IF(DataLog!$C2458=\"Log value\",DataLog!AL2458,\"\")","v":""},{"$f":"IF(DataLog!$C2458=\"Log value\",DataLog!AM2458,\"\")","v":""}]
[null,null,null,null,null,null,{"$f":"IF(DataLog!$C2461=\"Log value\",DataLog!D2461&\"_\"&TEXT(DataLog!B2461,\"åååå-mm-dd\"),\"\")","v":""},{"$f":"IF(DataLog!$C2461=\"Log value\",DataLog!E2461,\"\")","v":""},{"$f":"IF(DataLog!$C2461=\"Log value\",DataLog!F2461,\"\")","v":""},{"$f":"IF(DataLog!$C2461=\"Log value\",DataLog!G2461,\"\")","v":""},{"$f":"IF(DataLog!$C2461=\"Log value\",DataLog!H2461,\"\")","v":""},{"$f":"IF(DataLog!$C2461=\"Log value\",DataLog!I2461,\"\")","v":""},{"$f":"IF(DataLog!$C2461=\"Log value\",DataLog!J2461,\"\")","v":""},{"$f":"IF(DataLog!$C2461=\"Log value\",DataLog!K2461,\"\")","v":""},{"$f":"IF(DataLog!$C2461=\"Log value\",DataLog!L2461,\"\")","v":""},{"$f":"IF(DataLog!$C2461=\"Log value\",DataLog!M2461,\"\")","v":""},{"$f":"IF(DataLog!$C2461=\"Log value\",DataLog!N2461,\"\")","v":""},{"$f":"IF(DataLog!$C2461=\"Log value\",DataLog!O2461,\"\")","v":""},{"$f":"IF(DataLog!$C2461=\"Log value\",DataLog!P2461,\"\")","v":""},{"$f":"IF(DataLog!$C2461=\"Log value\",DataLog!Q2461,\"\")","v":""},{"$f":"IF(DataLog!$C2461=\"Log value\",DataLog!R2461,\"\")","v":""},{"$f":"IF(DataLog!$C2461=\"Log value\",DataLog!S2461,\"\")","v":""},{"$f":"IF(DataLog!$C2461=\"Log value\",DataLog!T2461,\"\")","v":""},{"$f":"IF(DataLog!$C2461=\"Log value\",DataLog!U2461,\"\")","v":""},{"$f":"IF(DataLog!$C2461=\"Log value\",DataLog!V2461,\"\")","v":""},{"$f":"IF(DataLog!$C2461=\"Log value\",DataLog!W2461,\"\")","v":""},{"$f":"IF(DataLog!$C2461=\"Log value\",DataLog!X2461,\"\")","v":""},{"$f":"IF(DataLog!$C2461=\"Log value\",DataLog!Y2461,\"\")","v":""},{"$f":"IF(DataLog!$C2461=\"Log value\",DataLog!Z2461,\"\")","v":""},{"$f":"IF(DataLog!$C2461=\"Log value\",DataLog!AA2461,\"\")","v":""},{"$f":"IF(DataLog!$C2461=\"Log value\",DataLog!AB2461,\"\")","v":""},{"$f":"IF(DataLog!$C2461=\"Log value\",DataLog!AC2461,\"\")","v":""},{"$f":"IF(DataLog!$C2461=\"Log value\",DataLog!AD2461,\"\")","v":""},{"$f":"IF(DataLog!$C2461=\"Log value\",DataLog!AE2461,\"\")","v":""},{"$f":"IF(DataLog!$C2461=\"Log value\",DataLog!AF2461,\"\")","v":""},{"$f":"IF(DataLog!$C2461=\"Log value\",DataLog!AG2461,\"\")","v":""},{"$f":"IF(DataLog!$C2461=\"Log value\",DataLog!AH2461,\"\")","v":""},{"$f":"IF(DataLog!$C2461=\"Log value\",DataLog!AI2461,\"\")","v":""},{"$f":"IF(DataLog!$C2461=\"Log value\",DataLog!AJ2461,\"\")","v":""},{"$f":"IF(DataLog!$C2461=\"Log value\",DataLog!AK2461,\"\")","v":""},{"$f":"IF(DataLog!$C2461=\"Log value\",DataLog!AL2461,\"\")","v":""},{"$f":"IF(DataLog!$C2461=\"Log value\",DataLog!AM2461,\"\")","v":""}]
[null,null,null,null,null,null,{"$f":"IF(DataLog!$C2463=\"Log value\",DataLog!D2463&\"_\"&TEXT(DataLog!B2463,\"åååå-mm-dd\"),\"\")","v":""},{"$f":"IF(DataLog!$C2463=\"Log value\",DataLog!E2463,\"\")","v":""},{"$f":"IF(DataLog!$C2463=\"Log value\",DataLog!F2463,\"\")","v":""},{"$f":"IF(DataLog!$C2463=\"Log value\",DataLog!G2463,\"\")","v":""},{"$f":"IF(DataLog!$C2463=\"Log value\",DataLog!H2463,\"\")","v":""},{"$f":"IF(DataLog!$C2463=\"Log value\",DataLog!I2463,\"\")","v":""},{"$f":"IF(DataLog!$C2463=\"Log value\",DataLog!J2463,\"\")","v":""},{"$f":"IF(DataLog!$C2463=\"Log value\",DataLog!K2463,\"\")","v":""},{"$f":"IF(DataLog!$C2463=\"Log value\",DataLog!L2463,\"\")","v":""},{"$f":"IF(DataLog!$C2463=\"Log value\",DataLog!M2463,\"\")","v":""},{"$f":"IF(DataLog!$C2463=\"Log value\",DataLog!N2463,\"\")","v":""},{"$f":"IF(DataLog!$C2463=\"Log value\",DataLog!O2463,\"\")","v":""},{"$f":"IF(DataLog!$C2463=\"Log value\",DataLog!P2463,\"\")","v":""},{"$f":"IF(DataLog!$C2463=\"Log value\",DataLog!Q2463,\"\")","v":""},{"$f":"IF(DataLog!$C2463=\"Log value\",DataLog!R2463,\"\")","v":""},{"$f":"IF(DataLog!$C2463=\"Log value\",DataLog!S2463,\"\")","v":""},{"$f":"IF(DataLog!$C2463=\"Log value\",DataLog!T2463,\"\")","v":""},{"$f":"IF(DataLog!$C2463=\"Log value\",DataLog!U2463,\"\")","v":""},{"$f":"IF(DataLog!$C2463=\"Log value\",DataLog!V2463,\"\")","v":""},{"$f":"IF(DataLog!$C2463=\"Log value\",DataLog!W2463,\"\")","v":""},{"$f":"IF(DataLog!$C2463=\"Log value\",DataLog!X2463,\"\")","v":""},{"$f":"IF(DataLog!$C2463=\"Log value\",DataLog!Y2463,\"\")","v":""},{"$f":"IF(DataLog!$C2463=\"Log value\",DataLog!Z2463,\"\")","v":""},{"$f":"IF(DataLog!$C2463=\"Log value\",DataLog!AA2463,\"\")","v":""},{"$f":"IF(DataLog!$C2463=\"Log value\",DataLog!AB2463,\"\")","v":""},{"$f":"IF(DataLog!$C2463=\"Log value\",DataLog!AC2463,\"\")","v":""},{"$f":"IF(DataLog!$C2463=\"Log value\",DataLog!AD2463,\"\")","v":""},{"$f":"IF(DataLog!$C2463=\"Log value\",DataLog!AE2463,\"\")","v":""},{"$f":"IF(DataLog!$C2463=\"Log value\",DataLog!AF2463,\"\")","v":""},{"$f":"IF(DataLog!$C2463=\"Log value\",DataLog!AG2463,\"\")","v":""},{"$f":"IF(DataLog!$C2463=\"Log value\",DataLog!AH2463,\"\")","v":""},{"$f":"IF(DataLog!$C2463=\"Log value\",DataLog!AI2463,\"\")","v":""},{"$f":"IF(DataLog!$C2463=\"Log value\",DataLog!AJ2463,\"\")","v":""},{"$f":"IF(DataLog!$C2463=\"Log value\",DataLog!AK2463,\"\")","v":""},{"$f":"IF(DataLog!$C2463=\"Log value\",DataLog!AL2463,\"\")","v":""},{"$f":"IF(DataLog!$C2463=\"Log value\",DataLog!AM2463,\"\")","v":""}]
[null,null,null,null,null,null,{"$f":"IF(DataLog!$C2466=\"Log value\",DataLog!D2466&\"_\"&TEXT(DataLog!B2466,\"åååå-mm-dd\"),\"\")","v":""},{"$f":"IF(DataLog!$C2466=\"Log value\",DataLog!E2466,\"\")","v":""},{"$f":"IF(DataLog!$C2466=\"Log value\",DataLog!F2466,\"\")","v":""},{"$f":"IF(DataLog!$C2466=\"Log value\",DataLog!G2466,\"\")","v":""},{"$f":"IF(DataLog!$C2466=\"Log value\",DataLog!H2466,\"\")","v":""},{"$f":"IF(DataLog!$C2466=\"Log value\",DataLog!I2466,\"\")","v":""},{"$f":"IF(DataLog!$C2466=\"Log value\",DataLog!J2466,\"\")","v":""},{"$f":"IF(DataLog!$C2466=\"Log value\",DataLog!K2466,\"\")","v":""},{"$f":"IF(DataLog!$C2466=\"Log value\",DataLog!L2466,\"\")","v":""},{"$f":"IF(DataLog!$C2466=\"Log value\",DataLog!M2466,\"\")","v":""},{"$f":"IF(DataLog!$C2466=\"Log value\",DataLog!N2466,\"\")","v":""},{"$f":"IF(DataLog!$C2466=\"Log value\",DataLog!O2466,\"\")","v":""},{"$f":"IF(DataLog!$C2466=\"Log value\",DataLog!P2466,\"\")","v":""},{"$f":"IF(DataLog!$C2466=\"Log value\",DataLog!Q2466,\"\")","v":""},{"$f":"IF(DataLog!$C2466=\"Log value\",DataLog!R2466,\"\")","v":""},{"$f":"IF(DataLog!$C2466=\"Log value\",DataLog!S2466,\"\")","v":""},{"$f":"IF(DataLog!$C2466=\"Log value\",DataLog!T2466,\"\")","v":""},{"$f":"IF(DataLog!$C2466=\"Log value\",DataLog!U2466,\"\")","v":""},{"$f":"IF(DataLog!$C2466=\"Log value\",DataLog!V2466,\"\")","v":""},{"$f":"IF(DataLog!$C2466=\"Log value\",DataLog!W2466,\"\")","v":""},{"$f":"IF(DataLog!$C2466=\"Log value\",DataLog!X2466,\"\")","v":""},{"$f":"IF(DataLog!$C2466=\"Log value\",DataLog!Y2466,\"\")","v":""},{"$f":"IF(DataLog!$C2466=\"Log value\",DataLog!Z2466,\"\")","v":""},{"$f":"IF(DataLog!$C2466=\"Log value\",DataLog!AA2466,\"\")","v":""},{"$f":"IF(DataLog!$C2466=\"Log value\",DataLog!AB2466,\"\")","v":""},{"$f":"IF(DataLog!$C2466=\"Log value\",DataLog!AC2466,\"\")","v":""},{"$f":"IF(DataLog!$C2466=\"Log value\",DataLog!AD2466,\"\")","v":""},{"$f":"IF(DataLog!$C2466=\"Log value\",DataLog!AE2466,\"\")","v":""},{"$f":"IF(DataLog!$C2466=\"Log value\",DataLog!AF2466,\"\")","v":""},{"$f":"IF(DataLog!$C2466=\"Log value\",DataLog!AG2466,\"\")","v":""},{"$f":"IF(DataLog!$C2466=\"Log value\",DataLog!AH2466,\"\")","v":""},{"$f":"IF(DataLog!$C2466=\"Log value\",DataLog!AI2466,\"\")","v":""},{"$f":"IF(DataLog!$C2466=\"Log value\",DataLog!AJ2466,\"\")","v":""},{"$f":"IF(DataLog!$C2466=\"Log value\",DataLog!AK2466,\"\")","v":""},{"$f":"IF(DataLog!$C2466=\"Log value\",DataLog!AL2466,\"\")","v":""},{"$f":"IF(DataLog!$C2466=\"Log value\",DataLog!AM2466,\"\")","v":""}]
[null,null,null,null,null,null,{"$f":"IF(DataLog!$C2467=\"Log value\",DataLog!D2467&\"_\"&TEXT(DataLog!B2467,\"åååå-mm-dd\"),\"\")","v":""},{"$f":"IF(DataLog!$C2467=\"Log value\",DataLog!E2467,\"\")","v":""},{"$f":"IF(DataLog!$C2467=\"Log value\",DataLog!F2467,\"\")","v":""},{"$f":"IF(DataLog!$C2467=\"Log value\",DataLog!G2467,\"\")","v":""},{"$f":"IF(DataLog!$C2467=\"Log value\",DataLog!H2467,\"\")","v":""},{"$f":"IF(DataLog!$C2467=\"Log value\",DataLog!I2467,\"\")","v":""},{"$f":"IF(DataLog!$C2467=\"Log value\",DataLog!J2467,\"\")","v":""},{"$f":"IF(DataLog!$C2467=\"Log value\",DataLog!K2467,\"\")","v":""},{"$f":"IF(DataLog!$C2467=\"Log value\",DataLog!L2467,\"\")","v":""},{"$f":"IF(DataLog!$C2467=\"Log value\",DataLog!M2467,\"\")","v":""},{"$f":"IF(DataLog!$C2467=\"Log value\",DataLog!N2467,\"\")","v":""},{"$f":"IF(DataLog!$C2467=\"Log value\",DataLog!O2467,\"\")","v":""},{"$f":"IF(DataLog!$C2467=\"Log value\",DataLog!P2467,\"\")","v":""},{"$f":"IF(DataLog!$C2467=\"Log value\",DataLog!Q2467,\"\")","v":""},{"$f":"IF(DataLog!$C2467=\"Log value\",DataLog!R2467,\"\")","v":""},{"$f":"IF(DataLog!$C2467=\"Log value\",DataLog!S2467,\"\")","v":""},{"$f":"IF(DataLog!$C2467=\"Log value\",DataLog!T2467,\"\")","v":""},{"$f":"IF(DataLog!$C2467=\"Log value\",DataLog!U2467,\"\")","v":""},{"$f":"IF(DataLog!$C2467=\"Log value\",DataLog!V2467,\"\")","v":""},{"$f":"IF(DataLog!$C2467=\"Log value\",DataLog!W2467,\"\")","v":""},{"$f":"IF(DataLog!$C2467=\"Log value\",DataLog!X2467,\"\")","v":""},{"$f":"IF(DataLog!$C2467=\"Log value\",DataLog!Y2467,\"\")","v":""},{"$f":"IF(DataLog!$C2467=\"Log value\",DataLog!Z2467,\"\")","v":""},{"$f":"IF(DataLog!$C2467=\"Log value\",DataLog!AA2467,\"\")","v":""},{"$f":"IF(DataLog!$C2467=\"Log value\",DataLog!AB2467,\"\")","v":""},{"$f":"IF(DataLog!$C2467=\"Log value\",DataLog!AC2467,\"\")","v":""},{"$f":"IF(DataLog!$C2467=\"Log value\",DataLog!AD2467,\"\")","v":""},{"$f":"IF(DataLog!$C2467=\"Log value\",DataLog!AE2467,\"\")","v":""},{"$f":"IF(DataLog!$C2467=\"Log value\",DataLog!AF2467,\"\")","v":""},{"$f":"IF(DataLog!$C2467=\"Log value\",DataLog!AG2467,\"\")","v":""},{"$f":"IF(DataLog!$C2467=\"Log value\",DataLog!AH2467,\"\")","v":""},{"$f":"IF(DataLog!$C2467=\"Log value\",DataLog!AI2467,\"\")","v":""},{"$f":"IF(DataLog!$C2467=\"Log value\",DataLog!AJ2467,\"\")","v":""},{"$f":"IF(DataLog!$C2467=\"Log value\",DataLog!AK2467,\"\")","v":""},{"$f":"IF(DataLog!$C2467=\"Log value\",DataLog!AL2467,\"\")","v":""},{"$f":"IF(DataLog!$C2467=\"Log value\",DataLog!AM2467,\"\")","v":""}]
[null,null,null,null,null,null,{"$f":"IF(DataLog!$C2470=\"Log value\",DataLog!D2470&\"_\"&TEXT(DataLog!B2470,\"åååå-mm-dd\"),\"\")","v":""},{"$f":"IF(DataLog!$C2470=\"Log value\",DataLog!E2470,\"\")","v":""},{"$f":"IF(DataLog!$C2470=\"Log value\",DataLog!F2470,\"\")","v":""},{"$f":"IF(DataLog!$C2470=\"Log value\",DataLog!G2470,\"\")","v":""},{"$f":"IF(DataLog!$C2470=\"Log value\",DataLog!H2470,\"\")","v":""},{"$f":"IF(DataLog!$C2470=\"Log value\",DataLog!I2470,\"\")","v":""},{"$f":"IF(DataLog!$C2470=\"Log value\",DataLog!J2470,\"\")","v":""},{"$f":"IF(DataLog!$C2470=\"Log value\",DataLog!K2470,\"\")","v":""},{"$f":"IF(DataLog!$C2470=\"Log value\",DataLog!L2470,\"\")","v":""},{"$f":"IF(DataLog!$C2470=\"Log value\",DataLog!M2470,\"\")","v":""},{"$f":"IF(DataLog!$C2470=\"Log value\",DataLog!N2470,\"\")","v":""},{"$f":"IF(DataLog!$C2470=\"Log value\",DataLog!O2470,\"\")","v":""},{"$f":"IF(DataLog!$C2470=\"Log value\",DataLog!P2470,\"\")","v":""},{"$f":"IF(DataLog!$C2470=\"Log value\",DataLog!Q2470,\"\")","v":""},{"$f":"IF(DataLog!$C2470=\"Log value\",DataLog!R2470,\"\")","v":""},{"$f":"IF(DataLog!$C2470=\"Log value\",DataLog!S2470,\"\")","v":""},{"$f":"IF(DataLog!$C2470=\"Log value\",DataLog!T2470,\"\")","v":""},{"$f":"IF(DataLog!$C2470=\"Log value\",DataLog!U2470,\"\")","v":""},{"$f":"IF(DataLog!$C2470=\"Log value\",DataLog!V2470,\"\")","v":""},{"$f":"IF(DataLog!$C2470=\"Log value\",DataLog!W2470,\"\")","v":""},{"$f":"IF(DataLog!$C2470=\"Log value\",DataLog!X2470,\"\")","v":""},{"$f":"IF(DataLog!$C2470=\"Log value\",DataLog!Y2470,\"\")","v":""},{"$f":"IF(DataLog!$C2470=\"Log value\",DataLog!Z2470,\"\")","v":""},{"$f":"IF(DataLog!$C2470=\"Log value\",DataLog!AA2470,\"\")","v":""},{"$f":"IF(DataLog!$C2470=\"Log value\",DataLog!AB2470,\"\")","v":""},{"$f":"IF(DataLog!$C2470=\"Log value\",DataLog!AC2470,\"\")","v":""},{"$f":"IF(DataLog!$C2470=\"Log value\",DataLog!AD2470,\"\")","v":""},{"$f":"IF(DataLog!$C2470=\"Log value\",DataLog!AE2470,\"\")","v":""},{"$f":"IF(DataLog!$C2470=\"Log value\",DataLog!AF2470,\"\")","v":""},{"$f":"IF(DataLog!$C2470=\"Log value\",DataLog!AG2470,\"\")","v":""},{"$f":"IF(DataLog!$C2470=\"Log value\",DataLog!AH2470,\"\")","v":""},{"$f":"IF(DataLog!$C2470=\"Log value\",DataLog!AI2470,\"\")","v":""},{"$f":"IF(DataLog!$C2470=\"Log value\",DataLog!AJ2470,\"\")","v":""},{"$f":"IF(DataLog!$C2470=\"Log value\",DataLog!AK2470,\"\")","v":""},{"$f":"IF(DataLog!$C2470=\"Log value\",DataLog!AL2470,\"\")","v":""},{"$f":"IF(DataLog!$C2470=\"Log value\",DataLog!AM2470,\"\")","v":""}]
[null,null,null,null,null,null,{"$f":"IF(DataLog!$C2471=\"Log value\",DataLog!D2471&\"_\"&TEXT(DataLog!B2471,\"åååå-mm-dd\"),\"\")","v":""},{"$f":"IF(DataLog!$C2471=\"Log value\",DataLog!E2471,\"\")","v":""},{"$f":"IF(DataLog!$C2471=\"Log value\",DataLog!F2471,\"\")","v":""},{"$f":"IF(DataLog!$C2471=\"Log value\",DataLog!G2471,\"\")","v":""},{"$f":"IF(DataLog!$C2471=\"Log value\",DataLog!H2471,\"\")","v":""},{"$f":"IF(DataLog!$C2471=\"Log value\",DataLog!I2471,\"\")","v":""},{"$f":"IF(DataLog!$C2471=\"Log value\",DataLog!J2471,\"\")","v":""},{"$f":"IF(DataLog!$C2471=\"Log value\",DataLog!K2471,\"\")","v":""},{"$f":"IF(DataLog!$C2471=\"Log value\",DataLog!L2471,\"\")","v":""},{"$f":"IF(DataLog!$C2471=\"Log value\",DataLog!M2471,\"\")","v":""},{"$f":"IF(DataLog!$C2471=\"Log value\",DataLog!N2471,\"\")","v":""},{"$f":"IF(DataLog!$C2471=\"Log value\",DataLog!O2471,\"\")","v":""},{"$f":"IF(DataLog!$C2471=\"Log value\",DataLog!P2471,\"\")","v":""},{"$f":"IF(DataLog!$C2471=\"Log value\",DataLog!Q2471,\"\")","v":""},{"$f":"IF(DataLog!$C2471=\"Log value\",DataLog!R2471,\"\")","v":""},{"$f":"IF(DataLog!$C2471=\"Log value\",DataLog!S2471,\"\")","v":""},{"$f":"IF(DataLog!$C2471=\"Log value\",DataLog!T2471,\"\")","v":""},{"$f":"IF(DataLog!$C2471=\"Log value\",DataLog!U2471,\"\")","v":""},{"$f":"IF(DataLog!$C2471=\"Log value\",DataLog!V2471,\"\")","v":""},{"$f":"IF(DataLog!$C2471=\"Log value\",DataLog!W2471,\"\")","v":""},{"$f":"IF(DataLog!$C2471=\"Log value\",DataLog!X2471,\"\")","v":""},{"$f":"IF(DataLog!$C2471=\"Log value\",DataLog!Y2471,\"\")","v":""},{"$f":"IF(DataLog!$C2471=\"Log value\",DataLog!Z2471,\"\")","v":""},{"$f":"IF(DataLog!$C2471=\"Log value\",DataLog!AA2471,\"\")","v":""},{"$f":"IF(DataLog!$C2471=\"Log value\",DataLog!AB2471,\"\")","v":""},{"$f":"IF(DataLog!$C2471=\"Log value\",DataLog!AC2471,\"\")","v":""},{"$f":"IF(DataLog!$C2471=\"Log value\",DataLog!AD2471,\"\")","v":""},{"$f":"IF(DataLog!$C2471=\"Log value\",DataLog!AE2471,\"\")","v":""},{"$f":"IF(DataLog!$C2471=\"Log value\",DataLog!AF2471,\"\")","v":""},{"$f":"IF(DataLog!$C2471=\"Log value\",DataLog!AG2471,\"\")","v":""},{"$f":"IF(DataLog!$C2471=\"Log value\",DataLog!AH2471,\"\")","v":""},{"$f":"IF(DataLog!$C2471=\"Log value\",DataLog!AI2471,\"\")","v":""},{"$f":"IF(DataLog!$C2471=\"Log value\",DataLog!AJ2471,\"\")","v":""},{"$f":"IF(DataLog!$C2471=\"Log value\",DataLog!AK2471,\"\")","v":""},{"$f":"IF(DataLog!$C2471=\"Log value\",DataLog!AL2471,\"\")","v":""},{"$f":"IF(DataLog!$C2471=\"Log value\",DataLog!AM2471,\"\")","v":""}]
[null,null,null,null,null,null,{"$f":"IF(DataLog!$C2475=\"Log value\",DataLog!D2475&\"_\"&TEXT(DataLog!B2475,\"åååå-mm-dd\"),\"\")","v":""},{"$f":"IF(DataLog!$C2475=\"Log value\",DataLog!E2475,\"\")","v":""},{"$f":"IF(DataLog!$C2475=\"Log value\",DataLog!F2475,\"\")","v":""},{"$f":"IF(DataLog!$C2475=\"Log value\",DataLog!G2475,\"\")","v":""},{"$f":"IF(DataLog!$C2475=\"Log value\",DataLog!H2475,\"\")","v":""},{"$f":"IF(DataLog!$C2475=\"Log value\",DataLog!I2475,\"\")","v":""},{"$f":"IF(DataLog!$C2475=\"Log value\",DataLog!J2475,\"\")","v":""},{"$f":"IF(DataLog!$C2475=\"Log value\",DataLog!K2475,\"\")","v":""},{"$f":"IF(DataLog!$C2475=\"Log value\",DataLog!L2475,\"\")","v":""},{"$f":"IF(DataLog!$C2475=\"Log value\",DataLog!M2475,\"\")","v":""},{"$f":"IF(DataLog!$C2475=\"Log value\",DataLog!N2475,\"\")","v":""},{"$f":"IF(DataLog!$C2475=\"Log value\",DataLog!O2475,\"\")","v":""},{"$f":"IF(DataLog!$C2475=\"Log value\",DataLog!P2475,\"\")","v":""},{"$f":"IF(DataLog!$C2475=\"Log value\",DataLog!Q2475,\"\")","v":""},{"$f":"IF(DataLog!$C2475=\"Log value\",DataLog!R2475,\"\")","v":""},{"$f":"IF(DataLog!$C2475=\"Log value\",DataLog!S2475,\"\")","v":""},{"$f":"IF(DataLog!$C2475=\"Log value\",DataLog!T2475,\"\")","v":""},{"$f":"IF(DataLog!$C2475=\"Log value\",DataLog!U2475,\"\")","v":""},{"$f":"IF(DataLog!$C2475=\"Log value\",DataLog!V2475,\"\")","v":""},{"$f":"IF(DataLog!$C2475=\"Log value\",DataLog!W2475,\"\")","v":""},{"$f":"IF(DataLog!$C2475=\"Log value\",DataLog!X2475,\"\")","v":""},{"$f":"IF(DataLog!$C2475=\"Log value\",DataLog!Y2475,\"\")","v":""},{"$f":"IF(DataLog!$C2475=\"Log value\",DataLog!Z2475,\"\")","v":""},{"$f":"IF(DataLog!$C2475=\"Log value\",DataLog!AA2475,\"\")","v":""},{"$f":"IF(DataLog!$C2475=\"Log value\",DataLog!AB2475,\"\")","v":""},{"$f":"IF(DataLog!$C2475=\"Log value\",DataLog!AC2475,\"\")","v":""},{"$f":"IF(DataLog!$C2475=\"Log value\",DataLog!AD2475,\"\")","v":""},{"$f":"IF(DataLog!$C2475=\"Log value\",DataLog!AE2475,\"\")","v":""},{"$f":"IF(DataLog!$C2475=\"Log value\",DataLog!AF2475,\"\")","v":""},{"$f":"IF(DataLog!$C2475=\"Log value\",DataLog!AG2475,\"\")","v":""},{"$f":"IF(DataLog!$C2475=\"Log value\",DataLog!AH2475,\"\")","v":""},{"$f":"IF(DataLog!$C2475=\"Log value\",DataLog!AI2475,\"\")","v":""},{"$f":"IF(DataLog!$C2475=\"Log value\",DataLog!AJ2475,\"\")","v":""},{"$f":"IF(DataLog!$C2475=\"Log value\",DataLog!AK2475,\"\")","v":""},{"$f":"IF(DataLog!$C2475=\"Log value\",DataLog!AL2475,\"\")","v":""},{"$f":"IF(DataLog!$C2475=\"Log value\",DataLog!AM2475,\"\")","v":""}]
[null,null,null,null,null,null,{"$f":"IF(DataLog!$C2476=\"Log value\",DataLog!D2476&\"_\"&TEXT(DataLog!B2476,\"åååå-mm-dd\"),\"\")","v":""},{"$f":"IF(DataLog!$C2476=\"Log value\",DataLog!E2476,\"\")","v":""},{"$f":"IF(DataLog!$C2476=\"Log value\",DataLog!F2476,\"\")","v":""},{"$f":"IF(DataLog!$C2476=\"Log value\",DataLog!G2476,\"\")","v":""},{"$f":"IF(DataLog!$C2476=\"Log value\",DataLog!H2476,\"\")","v":""},{"$f":"IF(DataLog!$C2476=\"Log value\",DataLog!I2476,\"\")","v":""},{"$f":"IF(DataLog!$C2476=\"Log value\",DataLog!J2476,\"\")","v":""},{"$f":"IF(DataLog!$C2476=\"Log value\",DataLog!K2476,\"\")","v":""},{"$f":"IF(DataLog!$C2476=\"Log value\",DataLog!L2476,\"\")","v":""},{"$f":"IF(DataLog!$C2476=\"Log value\",DataLog!M2476,\"\")","v":""},{"$f":"IF(DataLog!$C2476=\"Log value\",DataLog!N2476,\"\")","v":""},{"$f":"IF(DataLog!$C2476=\"Log value\",DataLog!O2476,\"\")","v":""},{"$f":"IF(DataLog!$C2476=\"Log value\",DataLog!P2476,\"\")","v":""},{"$f":"IF(DataLog!$C2476=\"Log value\",DataLog!Q2476,\"\")","v":""},{"$f":"IF(DataLog!$C2476=\"Log value\",DataLog!R2476,\"\")","v":""},{"$f":"IF(DataLog!$C2476=\"Log value\",DataLog!S2476,\"\")","v":""},{"$f":"IF(DataLog!$C2476=\"Log value\",DataLog!T2476,\"\")","v":""},{"$f":"IF(DataLog!$C2476=\"Log value\",DataLog!U2476,\"\")","v":""},{"$f":"IF(DataLog!$C2476=\"Log value\",DataLog!V2476,\"\")","v":""},{"$f":"IF(DataLog!$C2476=\"Log value\",DataLog!W2476,\"\")","v":""},{"$f":"IF(DataLog!$C2476=\"Log value\",DataLog!X2476,\"\")","v":""},{"$f":"IF(DataLog!$C2476=\"Log value\",DataLog!Y2476,\"\")","v":""},{"$f":"IF(DataLog!$C2476=\"Log value\",DataLog!Z2476,\"\")","v":""},{"$f":"IF(DataLog!$C2476=\"Log value\",DataLog!AA2476,\"\")","v":""},{"$f":"IF(DataLog!$C2476=\"Log value\",DataLog!AB2476,\"\")","v":""},{"$f":"IF(DataLog!$C2476=\"Log value\",DataLog!AC2476,\"\")","v":""},{"$f":"IF(DataLog!$C2476=\"Log value\",DataLog!AD2476,\"\")","v":""},{"$f":"IF(DataLog!$C2476=\"Log value\",DataLog!AE2476,\"\")","v":""},{"$f":"IF(DataLog!$C2476=\"Log value\",DataLog!AF2476,\"\")","v":""},{"$f":"IF(DataLog!$C2476=\"Log value\",DataLog!AG2476,\"\")","v":""},{"$f":"IF(DataLog!$C2476=\"Log value\",DataLog!AH2476,\"\")","v":""},{"$f":"IF(DataLog!$C2476=\"Log value\",DataLog!AI2476,\"\")","v":""},{"$f":"IF(DataLog!$C2476=\"Log value\",DataLog!AJ2476,\"\")","v":""},{"$f":"IF(DataLog!$C2476=\"Log value\",DataLog!AK2476,\"\")","v":""},{"$f":"IF(DataLog!$C2476=\"Log value\",DataLog!AL2476,\"\")","v":""},{"$f":"IF(DataLog!$C2476=\"Log value\",DataLog!AM2476,\"\")","v":""}]
[null,null,null,null,null,null,{"$f":"IF(DataLog!$C2479=\"Log value\",DataLog!D2479&\"_\"&TEXT(DataLog!B2479,\"åååå-mm-dd\"),\"\")","v":""},{"$f":"IF(DataLog!$C2479=\"Log value\",DataLog!E2479,\"\")","v":""},{"$f":"IF(DataLog!$C2479=\"Log value\",DataLog!F2479,\"\")","v":""},{"$f":"IF(DataLog!$C2479=\"Log value\",DataLog!G2479,\"\")","v":""},{"$f":"IF(DataLog!$C2479=\"Log value\",DataLog!H2479,\"\")","v":""},{"$f":"IF(DataLog!$C2479=\"Log value\",DataLog!I2479,\"\")","v":""},{"$f":"IF(DataLog!$C2479=\"Log value\",DataLog!J2479,\"\")","v":""},{"$f":"IF(DataLog!$C2479=\"Log value\",DataLog!K2479,\"\")","v":""},{"$f":"IF(DataLog!$C2479=\"Log value\",DataLog!L2479,\"\")","v":""},{"$f":"IF(DataLog!$C2479=\"Log value\",DataLog!M2479,\"\")","v":""},{"$f":"IF(DataLog!$C2479=\"Log value\",DataLog!N2479,\"\")","v":""},{"$f":"IF(DataLog!$C2479=\"Log value\",DataLog!O2479,\"\")","v":""},{"$f":"IF(DataLog!$C2479=\"Log value\",DataLog!P2479,\"\")","v":""},{"$f":"IF(DataLog!$C2479=\"Log value\",DataLog!Q2479,\"\")","v":""},{"$f":"IF(DataLog!$C2479=\"Log value\",DataLog!R2479,\"\")","v":""},{"$f":"IF(DataLog!$C2479=\"Log value\",DataLog!S2479,\"\")","v":""},{"$f":"IF(DataLog!$C2479=\"Log value\",DataLog!T2479,\"\")","v":""},{"$f":"IF(DataLog!$C2479=\"Log value\",DataLog!U2479,\"\")","v":""},{"$f":"IF(DataLog!$C2479=\"Log value\",DataLog!V2479,\"\")","v":""},{"$f":"IF(DataLog!$C2479=\"Log value\",DataLog!W2479,\"\")","v":""},{"$f":"IF(DataLog!$C2479=\"Log value\",DataLog!X2479,\"\")","v":""},{"$f":"IF(DataLog!$C2479=\"Log value\",DataLog!Y2479,\"\")","v":""},{"$f":"IF(DataLog!$C2479=\"Log value\",DataLog!Z2479,\"\")","v":""},{"$f":"IF(DataLog!$C2479=\"Log value\",DataLog!AA2479,\"\")","v":""},{"$f":"IF(DataLog!$C2479=\"Log value\",DataLog!AB2479,\"\")","v":""},{"$f":"IF(DataLog!$C2479=\"Log value\",DataLog!AC2479,\"\")","v":""},{"$f":"IF(DataLog!$C2479=\"Log value\",DataLog!AD2479,\"\")","v":""},{"$f":"IF(DataLog!$C2479=\"Log value\",DataLog!AE2479,\"\")","v":""},{"$f":"IF(DataLog!$C2479=\"Log value\",DataLog!AF2479,\"\")","v":""},{"$f":"IF(DataLog!$C2479=\"Log value\",DataLog!AG2479,\"\")","v":""},{"$f":"IF(DataLog!$C2479=\"Log value\",DataLog!AH2479,\"\")","v":""},{"$f":"IF(DataLog!$C2479=\"Log value\",DataLog!AI2479,\"\")","v":""},{"$f":"IF(DataLog!$C2479=\"Log value\",DataLog!AJ2479,\"\")","v":""},{"$f":"IF(DataLog!$C2479=\"Log value\",DataLog!AK2479,\"\")","v":""},{"$f":"IF(DataLog!$C2479=\"Log value\",DataLog!AL2479,\"\")","v":""},{"$f":"IF(DataLog!$C2479=\"Log value\",DataLog!AM2479,\"\")","v":""}]
[null,null,null,null,null,null,{"$f":"IF(DataLog!$C2481=\"Log value\",DataLog!D2481&\"_\"&TEXT(DataLog!B2481,\"åååå-mm-dd\"),\"\")","v":""},{"$f":"IF(DataLog!$C2481=\"Log value\",DataLog!E2481,\"\")","v":""},{"$f":"IF(DataLog!$C2481=\"Log value\",DataLog!F2481,\"\")","v":""},{"$f":"IF(DataLog!$C2481=\"Log value\",DataLog!G2481,\"\")","v":""},{"$f":"IF(DataLog!$C2481=\"Log value\",DataLog!H2481,\"\")","v":""},{"$f":"IF(DataLog!$C2481=\"Log value\",DataLog!I2481,\"\")","v":""},{"$f":"IF(DataLog!$C2481=\"Log value\",DataLog!J2481,\"\")","v":""},{"$f":"IF(DataLog!$C2481=\"Log value\",DataLog!K2481,\"\")","v":""},{"$f":"IF(DataLog!$C2481=\"Log value\",DataLog!L2481,\"\")","v":""},{"$f":"IF(DataLog!$C2481=\"Log value\",DataLog!M2481,\"\")","v":""},{"$f":"IF(DataLog!$C2481=\"Log value\",DataLog!N2481,\"\")","v":""},{"$f":"IF(DataLog!$C2481=\"Log value\",DataLog!O2481,\"\")","v":""},{"$f":"IF(DataLog!$C2481=\"Log value\",DataLog!P2481,\"\")","v":""},{"$f":"IF(DataLog!$C2481=\"Log value\",DataLog!Q2481,\"\")","v":""},{"$f":"IF(DataLog!$C2481=\"Log value\",DataLog!R2481,\"\")","v":""},{"$f":"IF(DataLog!$C2481=\"Log value\",DataLog!S2481,\"\")","v":""},{"$f":"IF(DataLog!$C2481=\"Log value\",DataLog!T2481,\"\")","v":""},{"$f":"IF(DataLog!$C2481=\"Log value\",DataLog!U2481,\"\")","v":""},{"$f":"IF(DataLog!$C2481=\"Log value\",DataLog!V2481,\"\")","v":""},{"$f":"IF(DataLog!$C2481=\"Log value\",DataLog!W2481,\"\")","v":""},{"$f":"IF(DataLog!$C2481=\"Log value\",DataLog!X2481,\"\")","v":""},{"$f":"IF(DataLog!$C2481=\"Log value\",DataLog!Y2481,\"\")","v":""},{"$f":"IF(DataLog!$C2481=\"Log value\",DataLog!Z2481,\"\")","v":""},{"$f":"IF(DataLog!$C2481=\"Log value\",DataLog!AA2481,\"\")","v":""},{"$f":"IF(DataLog!$C2481=\"Log value\",DataLog!AB2481,\"\")","v":""},{"$f":"IF(DataLog!$C2481=\"Log value\",DataLog!AC2481,\"\")","v":""},{"$f":"IF(DataLog!$C2481=\"Log value\",DataLog!AD2481,\"\")","v":""},{"$f":"IF(DataLog!$C2481=\"Log value\",DataLog!AE2481,\"\")","v":""},{"$f":"IF(DataLog!$C2481=\"Log value\",DataLog!AF2481,\"\")","v":""},{"$f":"IF(DataLog!$C2481=\"Log value\",DataLog!AG2481,\"\")","v":""},{"$f":"IF(DataLog!$C2481=\"Log value\",DataLog!AH2481,\"\")","v":""},{"$f":"IF(DataLog!$C2481=\"Log value\",DataLog!AI2481,\"\")","v":""},{"$f":"IF(DataLog!$C2481=\"Log value\",DataLog!AJ2481,\"\")","v":""},{"$f":"IF(DataLog!$C2481=\"Log value\",DataLog!AK2481,\"\")","v":""},{"$f":"IF(DataLog!$C2481=\"Log value\",DataLog!AL2481,\"\")","v":""},{"$f":"IF(DataLog!$C2481=\"Log value\",DataLog!AM2481,\"\")","v":""}]
[null,null,null,null,null,null,{"$f":"IF(DataLog!$C2484=\"Log value\",DataLog!D2484&\"_\"&TEXT(DataLog!B2484,\"åååå-mm-dd\"),\"\")","v":""},{"$f":"IF(DataLog!$C2484=\"Log value\",DataLog!E2484,\"\")","v":""},{"$f":"IF(DataLog!$C2484=\"Log value\",DataLog!F2484,\"\")","v":""},{"$f":"IF(DataLog!$C2484=\"Log value\",DataLog!G2484,\"\")","v":""},{"$f":"IF(DataLog!$C2484=\"Log value\",DataLog!H2484,\"\")","v":""},{"$f":"IF(DataLog!$C2484=\"Log value\",DataLog!I2484,\"\")","v":""},{"$f":"IF(DataLog!$C2484=\"Log value\",DataLog!J2484,\"\")","v":""},{"$f":"IF(DataLog!$C2484=\"Log value\",DataLog!K2484,\"\")","v":""},{"$f":"IF(DataLog!$C2484=\"Log value\",DataLog!L2484,\"\")","v":""},{"$f":"IF(DataLog!$C2484=\"Log value\",DataLog!M2484,\"\")","v":""},{"$f":"IF(DataLog!$C2484=\"Log value\",DataLog!N2484,\"\")","v":""},{"$f":"IF(DataLog!$C2484=\"Log value\",DataLog!O2484,\"\")","v":""},{"$f":"IF(DataLog!$C2484=\"Log value\",DataLog!P2484,\"\")","v":""},{"$f":"IF(DataLog!$C2484=\"Log value\",DataLog!Q2484,\"\")","v":""},{"$f":"IF(DataLog!$C2484=\"Log value\",DataLog!R2484,\"\")","v":""},{"$f":"IF(DataLog!$C2484=\"Log value\",DataLog!S2484,\"\")","v":""},{"$f":"IF(DataLog!$C2484=\"Log value\",DataLog!T2484,\"\")","v":""},{"$f":"IF(DataLog!$C2484=\"Log value\",DataLog!U2484,\"\")","v":""},{"$f":"IF(DataLog!$C2484=\"Log value\",DataLog!V2484,\"\")","v":""},{"$f":"IF(DataLog!$C2484=\"Log value\",DataLog!W2484,\"\")","v":""},{"$f":"IF(DataLog!$C2484=\"Log value\",DataLog!X2484,\"\")","v":""},{"$f":"IF(DataLog!$C2484=\"Log value\",DataLog!Y2484,\"\")","v":""},{"$f":"IF(DataLog!$C2484=\"Log value\",DataLog!Z2484,\"\")","v":""},{"$f":"IF(DataLog!$C2484=\"Log value\",DataLog!AA2484,\"\")","v":""},{"$f":"IF(DataLog!$C2484=\"Log value\",DataLog!AB2484,\"\")","v":""},{"$f":"IF(DataLog!$C2484=\"Log value\",DataLog!AC2484,\"\")","v":""},{"$f":"IF(DataLog!$C2484=\"Log value\",DataLog!AD2484,\"\")","v":""},{"$f":"IF(DataLog!$C2484=\"Log value\",DataLog!AE2484,\"\")","v":""},{"$f":"IF(DataLog!$C2484=\"Log value\",DataLog!AF2484,\"\")","v":""},{"$f":"IF(DataLog!$C2484=\"Log value\",DataLog!AG2484,\"\")","v":""},{"$f":"IF(DataLog!$C2484=\"Log value\",DataLog!AH2484,\"\")","v":""},{"$f":"IF(DataLog!$C2484=\"Log value\",DataLog!AI2484,\"\")","v":""},{"$f":"IF(DataLog!$C2484=\"Log value\",DataLog!AJ2484,\"\")","v":""},{"$f":"IF(DataLog!$C2484=\"Log value\",DataLog!AK2484,\"\")","v":""},{"$f":"IF(DataLog!$C2484=\"Log value\",DataLog!AL2484,\"\")","v":""},{"$f":"IF(DataLog!$C2484=\"Log value\",DataLog!AM2484,\"\")","v":""}]
[null,null,null,null,null,null,{"$f":"IF(DataLog!$C2485=\"Log value\",DataLog!D2485&\"_\"&TEXT(DataLog!B2485,\"åååå-mm-dd\"),\"\")","v":""},{"$f":"IF(DataLog!$C2485=\"Log value\",DataLog!E2485,\"\")","v":""},{"$f":"IF(DataLog!$C2485=\"Log value\",DataLog!F2485,\"\")","v":""},{"$f":"IF(DataLog!$C2485=\"Log value\",DataLog!G2485,\"\")","v":""},{"$f":"IF(DataLog!$C2485=\"Log value\",DataLog!H2485,\"\")","v":""},{"$f":"IF(DataLog!$C2485=\"Log value\",DataLog!I2485,\"\")","v":""},{"$f":"IF(DataLog!$C2485=\"Log value\",DataLog!J2485,\"\")","v":""},{"$f":"IF(DataLog!$C2485=\"Log value\",DataLog!K2485,\"\")","v":""},{"$f":"IF(DataLog!$C2485=\"Log value\",DataLog!L2485,\"\")","v":""},{"$f":"IF(DataLog!$C2485=\"Log value\",DataLog!M2485,\"\")","v":""},{"$f":"IF(DataLog!$C2485=\"Log value\",DataLog!N2485,\"\")","v":""},{"$f":"IF(DataLog!$C2485=\"Log value\",DataLog!O2485,\"\")","v":""},{"$f":"IF(DataLog!$C2485=\"Log value\",DataLog!P2485,\"\")","v":""},{"$f":"IF(DataLog!$C2485=\"Log value\",DataLog!Q2485,\"\")","v":""},{"$f":"IF(DataLog!$C2485=\"Log value\",DataLog!R2485,\"\")","v":""},{"$f":"IF(DataLog!$C2485=\"Log value\",DataLog!S2485,\"\")","v":""},{"$f":"IF(DataLog!$C2485=\"Log value\",DataLog!T2485,\"\")","v":""},{"$f":"IF(DataLog!$C2485=\"Log value\",DataLog!U2485,\"\")","v":""},{"$f":"IF(DataLog!$C2485=\"Log value\",DataLog!V2485,\"\")","v":""},{"$f":"IF(DataLog!$C2485=\"Log value\",DataLog!W2485,\"\")","v":""},{"$f":"IF(DataLog!$C2485=\"Log value\",DataLog!X2485,\"\")","v":""},{"$f":"IF(DataLog!$C2485=\"Log value\",DataLog!Y2485,\"\")","v":""},{"$f":"IF(DataLog!$C2485=\"Log value\",DataLog!Z2485,\"\")","v":""},{"$f":"IF(DataLog!$C2485=\"Log value\",DataLog!AA2485,\"\")","v":""},{"$f":"IF(DataLog!$C2485=\"Log value\",DataLog!AB2485,\"\")","v":""},{"$f":"IF(DataLog!$C2485=\"Log value\",DataLog!AC2485,\"\")","v":""},{"$f":"IF(DataLog!$C2485=\"Log value\",DataLog!AD2485,\"\")","v":""},{"$f":"IF(DataLog!$C2485=\"Log value\",DataLog!AE2485,\"\")","v":""},{"$f":"IF(DataLog!$C2485=\"Log value\",DataLog!AF2485,\"\")","v":""},{"$f":"IF(DataLog!$C2485=\"Log value\",DataLog!AG2485,\"\")","v":""},{"$f":"IF(DataLog!$C2485=\"Log value\",DataLog!AH2485,\"\")","v":""},{"$f":"IF(DataLog!$C2485=\"Log value\",DataLog!AI2485,\"\")","v":""},{"$f":"IF(DataLog!$C2485=\"Log value\",DataLog!AJ2485,\"\")","v":""},{"$f":"IF(DataLog!$C2485=\"Log value\",DataLog!AK2485,\"\")","v":""},{"$f":"IF(DataLog!$C2485=\"Log value\",DataLog!AL2485,\"\")","v":""},{"$f":"IF(DataLog!$C2485=\"Log value\",DataLog!AM2485,\"\")","v":""}]
[null,null,null,null,null,null,{"$f":"IF(DataLog!$C2488=\"Log value\",DataLog!D2488&\"_\"&TEXT(DataLog!B2488,\"åååå-mm-dd\"),\"\")","v":""},{"$f":"IF(DataLog!$C2488=\"Log value\",DataLog!E2488,\"\")","v":""},{"$f":"IF(DataLog!$C2488=\"Log value\",DataLog!F2488,\"\")","v":""},{"$f":"IF(DataLog!$C2488=\"Log value\",DataLog!G2488,\"\")","v":""},{"$f":"IF(DataLog!$C2488=\"Log value\",DataLog!H2488,\"\")","v":""},{"$f":"IF(DataLog!$C2488=\"Log value\",DataLog!I2488,\"\")","v":""},{"$f":"IF(DataLog!$C2488=\"Log value\",DataLog!J2488,\"\")","v":""},{"$f":"IF(DataLog!$C2488=\"Log value\",DataLog!K2488,\"\")","v":""},{"$f":"IF(DataLog!$C2488=\"Log value\",DataLog!L2488,\"\")","v":""},{"$f":"IF(DataLog!$C2488=\"Log value\",DataLog!M2488,\"\")","v":""},{"$f":"IF(DataLog!$C2488=\"Log value\",DataLog!N2488,\"\")","v":""},{"$f":"IF(DataLog!$C2488=\"Log value\",DataLog!O2488,\"\")","v":""},{"$f":"IF(DataLog!$C2488=\"Log value\",DataLog!P2488,\"\")","v":""},{"$f":"IF(DataLog!$C2488=\"Log value\",DataLog!Q2488,\"\")","v":""},{"$f":"IF(DataLog!$C2488=\"Log value\",DataLog!R2488,\"\")","v":""},{"$f":"IF(DataLog!$C2488=\"Log value\",DataLog!S2488,\"\")","v":""},{"$f":"IF(DataLog!$C2488=\"Log value\",DataLog!T2488,\"\")","v":""},{"$f":"IF(DataLog!$C2488=\"Log value\",DataLog!U2488,\"\")","v":""},{"$f":"IF(DataLog!$C2488=\"Log value\",DataLog!V2488,\"\")","v":""},{"$f":"IF(DataLog!$C2488=\"Log value\",DataLog!W2488,\"\")","v":""},{"$f":"IF(DataLog!$C2488=\"Log value\",DataLog!X2488,\"\")","v":""},{"$f":"IF(DataLog!$C2488=\"Log value\",DataLog!Y2488,\"\")","v":""},{"$f":"IF(DataLog!$C2488=\"Log value\",DataLog!Z2488,\"\")","v":""},{"$f":"IF(DataLog!$C2488=\"Log value\",DataLog!AA2488,\"\")","v":""},{"$f":"IF(DataLog!$C2488=\"Log value\",DataLog!AB2488,\"\")","v":""},{"$f":"IF(DataLog!$C2488=\"Log value\",DataLog!AC2488,\"\")","v":""},{"$f":"IF(DataLog!$C2488=\"Log value\",DataLog!AD2488,\"\")","v":""},{"$f":"IF(DataLog!$C2488=\"Log value\",DataLog!AE2488,\"\")","v":""},{"$f":"IF(DataLog!$C2488=\"Log value\",DataLog!AF2488,\"\")","v":""},{"$f":"IF(DataLog!$C2488=\"Log value\",DataLog!AG2488,\"\")","v":""},{"$f":"IF(DataLog!$C2488=\"Log value\",DataLog!AH2488,\"\")","v":""},{"$f":"IF(DataLog!$C2488=\"Log value\",DataLog!AI2488,\"\")","v":""},{"$f":"IF(DataLog!$C2488=\"Log value\",DataLog!AJ2488,\"\")","v":""},{"$f":"IF(DataLog!$C2488=\"Log value\",DataLog!AK2488,\"\")","v":""},{"$f":"IF(DataLog!$C2488=\"Log value\",DataLog!AL2488,\"\")","v":""},{"$f":"IF(DataLog!$C2488=\"Log value\",DataLog!AM2488,\"\")","v":""}]
[null,null,null,null,null,null,{"$f":"IF(DataLog!$C2489=\"Log value\",DataLog!D2489&\"_\"&TEXT(DataLog!B2489,\"åååå-mm-dd\"),\"\")","v":""},{"$f":"IF(DataLog!$C2489=\"Log value\",DataLog!E2489,\"\")","v":""},{"$f":"IF(DataLog!$C2489=\"Log value\",DataLog!F2489,\"\")","v":""},{"$f":"IF(DataLog!$C2489=\"Log value\",DataLog!G2489,\"\")","v":""},{"$f":"IF(DataLog!$C2489=\"Log value\",DataLog!H2489,\"\")","v":""},{"$f":"IF(DataLog!$C2489=\"Log value\",DataLog!I2489,\"\")","v":""},{"$f":"IF(DataLog!$C2489=\"Log value\",DataLog!J2489,\"\")","v":""},{"$f":"IF(DataLog!$C2489=\"Log value\",DataLog!K2489,\"\")","v":""},{"$f":"IF(DataLog!$C2489=\"Log value\",DataLog!L2489,\"\")","v":""},{"$f":"IF(DataLog!$C2489=\"Log value\",DataLog!M2489,\"\")","v":""},{"$f":"IF(DataLog!$C2489=\"Log value\",DataLog!N2489,\"\")","v":""},{"$f":"IF(DataLog!$C2489=\"Log value\",DataLog!O2489,\"\")","v":""},{"$f":"IF(DataLog!$C2489=\"Log value\",DataLog!P2489,\"\")","v":""},{"$f":"IF(DataLog!$C2489=\"Log value\",DataLog!Q2489,\"\")","v":""},{"$f":"IF(DataLog!$C2489=\"Log value\",DataLog!R2489,\"\")","v":""},{"$f":"IF(DataLog!$C2489=\"Log value\",DataLog!S2489,\"\")","v":""},{"$f":"IF(DataLog!$C2489=\"Log value\",DataLog!T2489,\"\")","v":""},{"$f":"IF(DataLog!$C2489=\"Log value\",DataLog!U2489,\"\")","v":""},{"$f":"IF(DataLog!$C2489=\"Log value\",DataLog!V2489,\"\")","v":""},{"$f":"IF(DataLog!$C2489=\"Log value\",DataLog!W2489,\"\")","v":""},{"$f":"IF(DataLog!$C2489=\"Log value\",DataLog!X2489,\"\")","v":""},{"$f":"IF(DataLog!$C2489=\"Log value\",DataLog!Y2489,\"\")","v":""},{"$f":"IF(DataLog!$C2489=\"Log value\",DataLog!Z2489,\"\")","v":""},{"$f":"IF(DataLog!$C2489=\"Log value\",DataLog!AA2489,\"\")","v":""},{"$f":"IF(DataLog!$C2489=\"Log value\",DataLog!AB2489,\"\")","v":""},{"$f":"IF(DataLog!$C2489=\"Log value\",DataLog!AC2489,\"\")","v":""},{"$f":"IF(DataLog!$C2489=\"Log value\",DataLog!AD2489,\"\")","v":""},{"$f":"IF(DataLog!$C2489=\"Log value\",DataLog!AE2489,\"\")","v":""},{"$f":"IF(DataLog!$C2489=\"Log value\",DataLog!AF2489,\"\")","v":""},{"$f":"IF(DataLog!$C2489=\"Log value\",DataLog!AG2489,\"\")","v":""},{"$f":"IF(DataLog!$C2489=\"Log value\",DataLog!AH2489,\"\")","v":""},{"$f":"IF(DataLog!$C2489=\"Log value\",DataLog!AI2489,\"\")","v":""},{"$f":"IF(DataLog!$C2489=\"Log value\",DataLog!AJ2489,\"\")","v":""},{"$f":"IF(DataLog!$C2489=\"Log value\",DataLog!AK2489,\"\")","v":""},{"$f":"IF(DataLog!$C2489=\"Log value\",DataLog!AL2489,\"\")","v":""},{"$f":"IF(DataLog!$C2489=\"Log value\",DataLog!AM2489,\"\")","v":""}]
[null,null,null,null,null,null,{"$f":"IF(DataLog!$C2493=\"Log value\",DataLog!D2493&\"_\"&TEXT(DataLog!B2493,\"åååå-mm-dd\"),\"\")","v":""},{"$f":"IF(DataLog!$C2493=\"Log value\",DataLog!E2493,\"\")","v":""},{"$f":"IF(DataLog!$C2493=\"Log value\",DataLog!F2493,\"\")","v":""},{"$f":"IF(DataLog!$C2493=\"Log value\",DataLog!G2493,\"\")","v":""},{"$f":"IF(DataLog!$C2493=\"Log value\",DataLog!H2493,\"\")","v":""},{"$f":"IF(DataLog!$C2493=\"Log value\",DataLog!I2493,\"\")","v":""},{"$f":"IF(DataLog!$C2493=\"Log value\",DataLog!J2493,\"\")","v":""},{"$f":"IF(DataLog!$C2493=\"Log value\",DataLog!K2493,\"\")","v":""},{"$f":"IF(DataLog!$C2493=\"Log value\",DataLog!L2493,\"\")","v":""},{"$f":"IF(DataLog!$C2493=\"Log value\",DataLog!M2493,\"\")","v":""},{"$f":"IF(DataLog!$C2493=\"Log value\",DataLog!N2493,\"\")","v":""},{"$f":"IF(DataLog!$C2493=\"Log value\",DataLog!O2493,\"\")","v":""},{"$f":"IF(DataLog!$C2493=\"Log value\",DataLog!P2493,\"\")","v":""},{"$f":"IF(DataLog!$C2493=\"Log value\",DataLog!Q2493,\"\")","v":""},{"$f":"IF(DataLog!$C2493=\"Log value\",DataLog!R2493,\"\")","v":""},{"$f":"IF(DataLog!$C2493=\"Log value\",DataLog!S2493,\"\")","v":""},{"$f":"IF(DataLog!$C2493=\"Log value\",DataLog!T2493,\"\")","v":""},{"$f":"IF(DataLog!$C2493=\"Log value\",DataLog!U2493,\"\")","v":""},{"$f":"IF(DataLog!$C2493=\"Log value\",DataLog!V2493,\"\")","v":""},{"$f":"IF(DataLog!$C2493=\"Log value\",DataLog!W2493,\"\")","v":""},{"$f":"IF(DataLog!$C2493=\"Log value\",DataLog!X2493,\"\")","v":""},{"$f":"IF(DataLog!$C2493=\"Log value\",DataLog!Y2493,\"\")","v":""},{"$f":"IF(DataLog!$C2493=\"Log value\",DataLog!Z2493,\"\")","v":""},{"$f":"IF(DataLog!$C2493=\"Log value\",DataLog!AA2493,\"\")","v":""},{"$f":"IF(DataLog!$C2493=\"Log value\",DataLog!AB2493,\"\")","v":""},{"$f":"IF(DataLog!$C2493=\"Log value\",DataLog!AC2493,\"\")","v":""},{"$f":"IF(DataLog!$C2493=\"Log value\",DataLog!AD2493,\"\")","v":""},{"$f":"IF(DataLog!$C2493=\"Log value\",DataLog!AE2493,\"\")","v":""},{"$f":"IF(DataLog!$C2493=\"Log value\",DataLog!AF2493,\"\")","v":""},{"$f":"IF(DataLog!$C2493=\"Log value\",DataLog!AG2493,\"\")","v":""},{"$f":"IF(DataLog!$C2493=\"Log value\",DataLog!AH2493,\"\")","v":""},{"$f":"IF(DataLog!$C2493=\"Log value\",DataLog!AI2493,\"\")","v":""},{"$f":"IF(DataLog!$C2493=\"Log value\",DataLog!AJ2493,\"\")","v":""},{"$f":"IF(DataLog!$C2493=\"Log value\",DataLog!AK2493,\"\")","v":""},{"$f":"IF(DataLog!$C2493=\"Log value\",DataLog!AL2493,\"\")","v":""},{"$f":"IF(DataLog!$C2493=\"Log value\",DataLog!AM2493,\"\")","v":""}]
[null,null,null,null,null,null,{"$f":"IF(DataLog!$C2494=\"Log value\",DataLog!D2494&\"_\"&TEXT(DataLog!B2494,\"åååå-mm-dd\"),\"\")","v":""},{"$f":"IF(DataLog!$C2494=\"Log value\",DataLog!E2494,\"\")","v":""},{"$f":"IF(DataLog!$C2494=\"Log value\",DataLog!F2494,\"\")","v":""},{"$f":"IF(DataLog!$C2494=\"Log value\",DataLog!G2494,\"\")","v":""},{"$f":"IF(DataLog!$C2494=\"Log value\",DataLog!H2494,\"\")","v":""},{"$f":"IF(DataLog!$C2494=\"Log value\",DataLog!I2494,\"\")","v":""},{"$f":"IF(DataLog!$C2494=\"Log value\",DataLog!J2494,\"\")","v":""},{"$f":"IF(DataLog!$C2494=\"Log value\",DataLog!K2494,\"\")","v":""},{"$f":"IF(DataLog!$C2494=\"Log value\",DataLog!L2494,\"\")","v":""},{"$f":"IF(DataLog!$C2494=\"Log value\",DataLog!M2494,\"\")","v":""},{"$f":"IF(DataLog!$C2494=\"Log value\",DataLog!N2494,\"\")","v":""},{"$f":"IF(DataLog!$C2494=\"Log value\",DataLog!O2494,\"\")","v":""},{"$f":"IF(DataLog!$C2494=\"Log value\",DataLog!P2494,\"\")","v":""},{"$f":"IF(DataLog!$C2494=\"Log value\",DataLog!Q2494,\"\")","v":""},{"$f":"IF(DataLog!$C2494=\"Log value\",DataLog!R2494,\"\")","v":""},{"$f":"IF(DataLog!$C2494=\"Log value\",DataLog!S2494,\"\")","v":""},{"$f":"IF(DataLog!$C2494=\"Log value\",DataLog!T2494,\"\")","v":""},{"$f":"IF(DataLog!$C2494=\"Log value\",DataLog!U2494,\"\")","v":""},{"$f":"IF(DataLog!$C2494=\"Log value\",DataLog!V2494,\"\")","v":""},{"$f":"IF(DataLog!$C2494=\"Log value\",DataLog!W2494,\"\")","v":""},{"$f":"IF(DataLog!$C2494=\"Log value\",DataLog!X2494,\"\")","v":""},{"$f":"IF(DataLog!$C2494=\"Log value\",DataLog!Y2494,\"\")","v":""},{"$f":"IF(DataLog!$C2494=\"Log value\",DataLog!Z2494,\"\")","v":""},{"$f":"IF(DataLog!$C2494=\"Log value\",DataLog!AA2494,\"\")","v":""},{"$f":"IF(DataLog!$C2494=\"Log value\",DataLog!AB2494,\"\")","v":""},{"$f":"IF(DataLog!$C2494=\"Log value\",DataLog!AC2494,\"\")","v":""},{"$f":"IF(DataLog!$C2494=\"Log value\",DataLog!AD2494,\"\")","v":""},{"$f":"IF(DataLog!$C2494=\"Log value\",DataLog!AE2494,\"\")","v":""},{"$f":"IF(DataLog!$C2494=\"Log value\",DataLog!AF2494,\"\")","v":""},{"$f":"IF(DataLog!$C2494=\"Log value\",DataLog!AG2494,\"\")","v":""},{"$f":"IF(DataLog!$C2494=\"Log value\",DataLog!AH2494,\"\")","v":""},{"$f":"IF(DataLog!$C2494=\"Log value\",DataLog!AI2494,\"\")","v":""},{"$f":"IF(DataLog!$C2494=\"Log value\",DataLog!AJ2494,\"\")","v":""},{"$f":"IF(DataLog!$C2494=\"Log value\",DataLog!AK2494,\"\")","v":""},{"$f":"IF(DataLog!$C2494=\"Log value\",DataLog!AL2494,\"\")","v":""},{"$f":"IF(DataLog!$C2494=\"Log value\",DataLog!AM2494,\"\")","v":""}]
[null,null,null,null,null,null,{"$f":"IF(DataLog!$C2497=\"Log value\",DataLog!D2497&\"_\"&TEXT(DataLog!B2497,\"åååå-mm-dd\"),\"\")","v":""},{"$f":"IF(DataLog!$C2497=\"Log value\",DataLog!E2497,\"\")","v":""},{"$f":"IF(DataLog!$C2497=\"Log value\",DataLog!F2497,\"\")","v":""},{"$f":"IF(DataLog!$C2497=\"Log value\",DataLog!G2497,\"\")","v":""},{"$f":"IF(DataLog!$C2497=\"Log value\",DataLog!H2497,\"\")","v":""},{"$f":"IF(DataLog!$C2497=\"Log value\",DataLog!I2497,\"\")","v":""},{"$f":"IF(DataLog!$C2497=\"Log value\",DataLog!J2497,\"\")","v":""},{"$f":"IF(DataLog!$C2497=\"Log value\",DataLog!K2497,\"\")","v":""},{"$f":"IF(DataLog!$C2497=\"Log value\",DataLog!L2497,\"\")","v":""},{"$f":"IF(DataLog!$C2497=\"Log value\",DataLog!M2497,\"\")","v":""},{"$f":"IF(DataLog!$C2497=\"Log value\",DataLog!N2497,\"\")","v":""},{"$f":"IF(DataLog!$C2497=\"Log value\",DataLog!O2497,\"\")","v":""},{"$f":"IF(DataLog!$C2497=\"Log value\",DataLog!P2497,\"\")","v":""},{"$f":"IF(DataLog!$C2497=\"Log value\",DataLog!Q2497,\"\")","v":""},{"$f":"IF(DataLog!$C2497=\"Log value\",DataLog!R2497,\"\")","v":""},{"$f":"IF(DataLog!$C2497=\"Log value\",DataLog!S2497,\"\")","v":""},{"$f":"IF(DataLog!$C2497=\"Log value\",DataLog!T2497,\"\")","v":""},{"$f":"IF(DataLog!$C2497=\"Log value\",DataLog!U2497,\"\")","v":""},{"$f":"IF(DataLog!$C2497=\"Log value\",DataLog!V2497,\"\")","v":""},{"$f":"IF(DataLog!$C2497=\"Log value\",DataLog!W2497,\"\")","v":""},{"$f":"IF(DataLog!$C2497=\"Log value\",DataLog!X2497,\"\")","v":""},{"$f":"IF(DataLog!$C2497=\"Log value\",DataLog!Y2497,\"\")","v":""},{"$f":"IF(DataLog!$C2497=\"Log value\",DataLog!Z2497,\"\")","v":""},{"$f":"IF(DataLog!$C2497=\"Log value\",DataLog!AA2497,\"\")","v":""},{"$f":"IF(DataLog!$C2497=\"Log value\",DataLog!AB2497,\"\")","v":""},{"$f":"IF(DataLog!$C2497=\"Log value\",DataLog!AC2497,\"\")","v":""},{"$f":"IF(DataLog!$C2497=\"Log value\",DataLog!AD2497,\"\")","v":""},{"$f":"IF(DataLog!$C2497=\"Log value\",DataLog!AE2497,\"\")","v":""},{"$f":"IF(DataLog!$C2497=\"Log value\",DataLog!AF2497,\"\")","v":""},{"$f":"IF(DataLog!$C2497=\"Log value\",DataLog!AG2497,\"\")","v":""},{"$f":"IF(DataLog!$C2497=\"Log value\",DataLog!AH2497,\"\")","v":""},{"$f":"IF(DataLog!$C2497=\"Log value\",DataLog!AI2497,\"\")","v":""},{"$f":"IF(DataLog!$C2497=\"Log value\",DataLog!AJ2497,\"\")","v":""},{"$f":"IF(DataLog!$C2497=\"Log value\",DataLog!AK2497,\"\")","v":""},{"$f":"IF(DataLog!$C2497=\"Log value\",DataLog!AL2497,\"\")","v":""},{"$f":"IF(DataLog!$C2497=\"Log value\",DataLog!AM2497,\"\")","v":""}]
[null,null,null,null,null,null,{"$f":"IF(DataLog!$C2499=\"Log value\",DataLog!D2499&\"_\"&TEXT(DataLog!B2499,\"åååå-mm-dd\"),\"\")","v":""},{"$f":"IF(DataLog!$C2499=\"Log value\",DataLog!E2499,\"\")","v":""},{"$f":"IF(DataLog!$C2499=\"Log value\",DataLog!F2499,\"\")","v":""},{"$f":"IF(DataLog!$C2499=\"Log value\",DataLog!G2499,\"\")","v":""},{"$f":"IF(DataLog!$C2499=\"Log value\",DataLog!H2499,\"\")","v":""},{"$f":"IF(DataLog!$C2499=\"Log value\",DataLog!I2499,\"\")","v":""},{"$f":"IF(DataLog!$C2499=\"Log value\",DataLog!J2499,\"\")","v":""},{"$f":"IF(DataLog!$C2499=\"Log value\",DataLog!K2499,\"\")","v":""},{"$f":"IF(DataLog!$C2499=\"Log value\",DataLog!L2499,\"\")","v":""},{"$f":"IF(DataLog!$C2499=\"Log value\",DataLog!M2499,\"\")","v":""},{"$f":"IF(DataLog!$C2499=\"Log value\",DataLog!N2499,\"\")","v":""},{"$f":"IF(DataLog!$C2499=\"Log value\",DataLog!O2499,\"\")","v":""},{"$f":"IF(DataLog!$C2499=\"Log value\",DataLog!P2499,\"\")","v":""},{"$f":"IF(DataLog!$C2499=\"Log value\",DataLog!Q2499,\"\")","v":""},{"$f":"IF(DataLog!$C2499=\"Log value\",DataLog!R2499,\"\")","v":""},{"$f":"IF(DataLog!$C2499=\"Log value\",DataLog!S2499,\"\")","v":""},{"$f":"IF(DataLog!$C2499=\"Log value\",DataLog!T2499,\"\")","v":""},{"$f":"IF(DataLog!$C2499=\"Log value\",DataLog!U2499,\"\")","v":""},{"$f":"IF(DataLog!$C2499=\"Log value\",DataLog!V2499,\"\")","v":""},{"$f":"IF(DataLog!$C2499=\"Log value\",DataLog!W2499,\"\")","v":""},{"$f":"IF(DataLog!$C2499=\"Log value\",DataLog!X2499,\"\")","v":""},{"$f":"IF(DataLog!$C2499=\"Log value\",DataLog!Y2499,\"\")","v":""},{"$f":"IF(DataLog!$C2499=\"Log value\",DataLog!Z2499,\"\")","v":""},{"$f":"IF(DataLog!$C2499=\"Log value\",DataLog!AA2499,\"\")","v":""},{"$f":"IF(DataLog!$C2499=\"Log value\",DataLog!AB2499,\"\")","v":""},{"$f":"IF(DataLog!$C2499=\"Log value\",DataLog!AC2499,\"\")","v":""},{"$f":"IF(DataLog!$C2499=\"Log value\",DataLog!AD2499,\"\")","v":""},{"$f":"IF(DataLog!$C2499=\"Log value\",DataLog!AE2499,\"\")","v":""},{"$f":"IF(DataLog!$C2499=\"Log value\",DataLog!AF2499,\"\")","v":""},{"$f":"IF(DataLog!$C2499=\"Log value\",DataLog!AG2499,\"\")","v":""},{"$f":"IF(DataLog!$C2499=\"Log value\",DataLog!AH2499,\"\")","v":""},{"$f":"IF(DataLog!$C2499=\"Log value\",DataLog!AI2499,\"\")","v":""},{"$f":"IF(DataLog!$C2499=\"Log value\",DataLog!AJ2499,\"\")","v":""},{"$f":"IF(DataLog!$C2499=\"Log value\",DataLog!AK2499,\"\")","v":""},{"$f":"IF(DataLog!$C2499=\"Log value\",DataLog!AL2499,\"\")","v":""},{"$f":"IF(DataLog!$C2499=\"Log value\",DataLog!AM2499,\"\")","v":""}]
[null,null,null,null,null,null,{"$f":"IF(DataLog!$C2502=\"Log value\",DataLog!D2502&\"_\"&TEXT(DataLog!B2502,\"åååå-mm-dd\"),\"\")","v":""},{"$f":"IF(DataLog!$C2502=\"Log value\",DataLog!E2502,\"\")","v":""},{"$f":"IF(DataLog!$C2502=\"Log value\",DataLog!F2502,\"\")","v":""},{"$f":"IF(DataLog!$C2502=\"Log value\",DataLog!G2502,\"\")","v":""},{"$f":"IF(DataLog!$C2502=\"Log value\",DataLog!H2502,\"\")","v":""},{"$f":"IF(DataLog!$C2502=\"Log value\",DataLog!I2502,\"\")","v":""},{"$f":"IF(DataLog!$C2502=\"Log value\",DataLog!J2502,\"\")","v":""},{"$f":"IF(DataLog!$C2502=\"Log value\",DataLog!K2502,\"\")","v":""},{"$f":"IF(DataLog!$C2502=\"Log value\",DataLog!L2502,\"\")","v":""},{"$f":"IF(DataLog!$C2502=\"Log value\",DataLog!M2502,\"\")","v":""},{"$f":"IF(DataLog!$C2502=\"Log value\",DataLog!N2502,\"\")","v":""},{"$f":"IF(DataLog!$C2502=\"Log value\",DataLog!O2502,\"\")","v":""},{"$f":"IF(DataLog!$C2502=\"Log value\",DataLog!P2502,\"\")","v":""},{"$f":"IF(DataLog!$C2502=\"Log value\",DataLog!Q2502,\"\")","v":""},{"$f":"IF(DataLog!$C2502=\"Log value\",DataLog!R2502,\"\")","v":""},{"$f":"IF(DataLog!$C2502=\"Log value\",DataLog!S2502,\"\")","v":""},{"$f":"IF(DataLog!$C2502=\"Log value\",DataLog!T2502,\"\")","v":""},{"$f":"IF(DataLog!$C2502=\"Log value\",DataLog!U2502,\"\")","v":""},{"$f":"IF(DataLog!$C2502=\"Log value\",DataLog!V2502,\"\")","v":""},{"$f":"IF(DataLog!$C2502=\"Log value\",DataLog!W2502,\"\")","v":""},{"$f":"IF(DataLog!$C2502=\"Log value\",DataLog!X2502,\"\")","v":""},{"$f":"IF(DataLog!$C2502=\"Log value\",DataLog!Y2502,\"\")","v":""},{"$f":"IF(DataLog!$C2502=\"Log value\",DataLog!Z2502,\"\")","v":""},{"$f":"IF(DataLog!$C2502=\"Log value\",DataLog!AA2502,\"\")","v":""},{"$f":"IF(DataLog!$C2502=\"Log value\",DataLog!AB2502,\"\")","v":""},{"$f":"IF(DataLog!$C2502=\"Log value\",DataLog!AC2502,\"\")","v":""},{"$f":"IF(DataLog!$C2502=\"Log value\",DataLog!AD2502,\"\")","v":""},{"$f":"IF(DataLog!$C2502=\"Log value\",DataLog!AE2502,\"\")","v":""},{"$f":"IF(DataLog!$C2502=\"Log value\",DataLog!AF2502,\"\")","v":""},{"$f":"IF(DataLog!$C2502=\"Log value\",DataLog!AG2502,\"\")","v":""},{"$f":"IF(DataLog!$C2502=\"Log value\",DataLog!AH2502,\"\")","v":""},{"$f":"IF(DataLog!$C2502=\"Log value\",DataLog!AI2502,\"\")","v":""},{"$f":"IF(DataLog!$C2502=\"Log value\",DataLog!AJ2502,\"\")","v":""},{"$f":"IF(DataLog!$C2502=\"Log value\",DataLog!AK2502,\"\")","v":""},{"$f":"IF(DataLog!$C2502=\"Log value\",DataLog!AL2502,\"\")","v":""},{"$f":"IF(DataLog!$C2502=\"Log value\",DataLog!AM2502,\"\")","v":""}]
[null,null,null,null,null,null,{"$f":"IF(DataLog!$C2503=\"Log value\",DataLog!D2503&\"_\"&TEXT(DataLog!B2503,\"åååå-mm-dd\"),\"\")","v":""},{"$f":"IF(DataLog!$C2503=\"Log value\",DataLog!E2503,\"\")","v":""},{"$f":"IF(DataLog!$C2503=\"Log value\",DataLog!F2503,\"\")","v":""},{"$f":"IF(DataLog!$C2503=\"Log value\",DataLog!G2503,\"\")","v":""},{"$f":"IF(DataLog!$C2503=\"Log value\",DataLog!H2503,\"\")","v":""},{"$f":"IF(DataLog!$C2503=\"Log value\",DataLog!I2503,\"\")","v":""},{"$f":"IF(DataLog!$C2503=\"Log value\",DataLog!J2503,\"\")","v":""},{"$f":"IF(DataLog!$C2503=\"Log value\",DataLog!K2503,\"\")","v":""},{"$f":"IF(DataLog!$C2503=\"Log value\",DataLog!L2503,\"\")","v":""},{"$f":"IF(DataLog!$C2503=\"Log value\",DataLog!M2503,\"\")","v":""},{"$f":"IF(DataLog!$C2503=\"Log value\",DataLog!N2503,\"\")","v":""},{"$f":"IF(DataLog!$C2503=\"Log value\",DataLog!O2503,\"\")","v":""},{"$f":"IF(DataLog!$C2503=\"Log value\",DataLog!P2503,\"\")","v":""},{"$f":"IF(DataLog!$C2503=\"Log value\",DataLog!Q2503,\"\")","v":""},{"$f":"IF(DataLog!$C2503=\"Log value\",DataLog!R2503,\"\")","v":""},{"$f":"IF(DataLog!$C2503=\"Log value\",DataLog!S2503,\"\")","v":""},{"$f":"IF(DataLog!$C2503=\"Log value\",DataLog!T2503,\"\")","v":""},{"$f":"IF(DataLog!$C2503=\"Log value\",DataLog!U2503,\"\")","v":""},{"$f":"IF(DataLog!$C2503=\"Log value\",DataLog!V2503,\"\")","v":""},{"$f":"IF(DataLog!$C2503=\"Log value\",DataLog!W2503,\"\")","v":""},{"$f":"IF(DataLog!$C2503=\"Log value\",DataLog!X2503,\"\")","v":""},{"$f":"IF(DataLog!$C2503=\"Log value\",DataLog!Y2503,\"\")","v":""},{"$f":"IF(DataLog!$C2503=\"Log value\",DataLog!Z2503,\"\")","v":""},{"$f":"IF(DataLog!$C2503=\"Log value\",DataLog!AA2503,\"\")","v":""},{"$f":"IF(DataLog!$C2503=\"Log value\",DataLog!AB2503,\"\")","v":""},{"$f":"IF(DataLog!$C2503=\"Log value\",DataLog!AC2503,\"\")","v":""},{"$f":"IF(DataLog!$C2503=\"Log value\",DataLog!AD2503,\"\")","v":""},{"$f":"IF(DataLog!$C2503=\"Log value\",DataLog!AE2503,\"\")","v":""},{"$f":"IF(DataLog!$C2503=\"Log value\",DataLog!AF2503,\"\")","v":""},{"$f":"IF(DataLog!$C2503=\"Log value\",DataLog!AG2503,\"\")","v":""},{"$f":"IF(DataLog!$C2503=\"Log value\",DataLog!AH2503,\"\")","v":""},{"$f":"IF(DataLog!$C2503=\"Log value\",DataLog!AI2503,\"\")","v":""},{"$f":"IF(DataLog!$C2503=\"Log value\",DataLog!AJ2503,\"\")","v":""},{"$f":"IF(DataLog!$C2503=\"Log value\",DataLog!AK2503,\"\")","v":""},{"$f":"IF(DataLog!$C2503=\"Log value\",DataLog!AL2503,\"\")","v":""},{"$f":"IF(DataLog!$C2503=\"Log value\",DataLog!AM2503,\"\")","v":""}]
[null,null,null,null,null,null,{"$f":"IF(DataLog!$C2507=\"Log value\",DataLog!D2507&\"_\"&TEXT(DataLog!B2507,\"åååå-mm-dd\"),\"\")","v":""},{"$f":"IF(DataLog!$C2507=\"Log value\",DataLog!E2507,\"\")","v":""},{"$f":"IF(DataLog!$C2507=\"Log value\",DataLog!F2507,\"\")","v":""},{"$f":"IF(DataLog!$C2507=\"Log value\",DataLog!G2507,\"\")","v":""},{"$f":"IF(DataLog!$C2507=\"Log value\",DataLog!H2507,\"\")","v":""},{"$f":"IF(DataLog!$C2507=\"Log value\",DataLog!I2507,\"\")","v":""},{"$f":"IF(DataLog!$C2507=\"Log value\",DataLog!J2507,\"\")","v":""},{"$f":"IF(DataLog!$C2507=\"Log value\",DataLog!K2507,\"\")","v":""},{"$f":"IF(DataLog!$C2507=\"Log value\",DataLog!L2507,\"\")","v":""},{"$f":"IF(DataLog!$C2507=\"Log value\",DataLog!M2507,\"\")","v":""},{"$f":"IF(DataLog!$C2507=\"Log value\",DataLog!N2507,\"\")","v":""},{"$f":"IF(DataLog!$C2507=\"Log value\",DataLog!O2507,\"\")","v":""},{"$f":"IF(DataLog!$C2507=\"Log value\",DataLog!P2507,\"\")","v":""},{"$f":"IF(DataLog!$C2507=\"Log value\",DataLog!Q2507,\"\")","v":""},{"$f":"IF(DataLog!$C2507=\"Log value\",DataLog!R2507,\"\")","v":""},{"$f":"IF(DataLog!$C2507=\"Log value\",DataLog!S2507,\"\")","v":""},{"$f":"IF(DataLog!$C2507=\"Log value\",DataLog!T2507,\"\")","v":""},{"$f":"IF(DataLog!$C2507=\"Log value\",DataLog!U2507,\"\")","v":""},{"$f":"IF(DataLog!$C2507=\"Log value\",DataLog!V2507,\"\")","v":""},{"$f":"IF(DataLog!$C2507=\"Log value\",DataLog!W2507,\"\")","v":""},{"$f":"IF(DataLog!$C2507=\"Log value\",DataLog!X2507,\"\")","v":""},{"$f":"IF(DataLog!$C2507=\"Log value\",DataLog!Y2507,\"\")","v":""},{"$f":"IF(DataLog!$C2507=\"Log value\",DataLog!Z2507,\"\")","v":""},{"$f":"IF(DataLog!$C2507=\"Log value\",DataLog!AA2507,\"\")","v":""},{"$f":"IF(DataLog!$C2507=\"Log value\",DataLog!AB2507,\"\")","v":""},{"$f":"IF(DataLog!$C2507=\"Log value\",DataLog!AC2507,\"\")","v":""},{"$f":"IF(DataLog!$C2507=\"Log value\",DataLog!AD2507,\"\")","v":""},{"$f":"IF(DataLog!$C2507=\"Log value\",DataLog!AE2507,\"\")","v":""},{"$f":"IF(DataLog!$C2507=\"Log value\",DataLog!AF2507,\"\")","v":""},{"$f":"IF(DataLog!$C2507=\"Log value\",DataLog!AG2507,\"\")","v":""},{"$f":"IF(DataLog!$C2507=\"Log value\",DataLog!AH2507,\"\")","v":""},{"$f":"IF(DataLog!$C2507=\"Log value\",DataLog!AI2507,\"\")","v":""},{"$f":"IF(DataLog!$C2507=\"Log value\",DataLog!AJ2507,\"\")","v":""},{"$f":"IF(DataLog!$C2507=\"Log value\",DataLog!AK2507,\"\")","v":""},{"$f":"IF(DataLog!$C2507=\"Log value\",DataLog!AL2507,\"\")","v":""},{"$f":"IF(DataLog!$C2507=\"Log value\",DataLog!AM2507,\"\")","v":""}]
[null,null,null,null,null,null,{"$f":"IF(DataLog!$C2508=\"Log value\",DataLog!D2508&\"_\"&TEXT(DataLog!B2508,\"åååå-mm-dd\"),\"\")","v":""},{"$f":"IF(DataLog!$C2508=\"Log value\",DataLog!E2508,\"\")","v":""},{"$f":"IF(DataLog!$C2508=\"Log value\",DataLog!F2508,\"\")","v":""},{"$f":"IF(DataLog!$C2508=\"Log value\",DataLog!G2508,\"\")","v":""},{"$f":"IF(DataLog!$C2508=\"Log value\",DataLog!H2508,\"\")","v":""},{"$f":"IF(DataLog!$C2508=\"Log value\",DataLog!I2508,\"\")","v":""},{"$f":"IF(DataLog!$C2508=\"Log value\",DataLog!J2508,\"\")","v":""},{"$f":"IF(DataLog!$C2508=\"Log value\",DataLog!K2508,\"\")","v":""},{"$f":"IF(DataLog!$C2508=\"Log value\",DataLog!L2508,\"\")","v":""},{"$f":"IF(DataLog!$C2508=\"Log value\",DataLog!M2508,\"\")","v":""},{"$f":"IF(DataLog!$C2508=\"Log value\",DataLog!N2508,\"\")","v":""},{"$f":"IF(DataLog!$C2508=\"Log value\",DataLog!O2508,\"\")","v":""},{"$f":"IF(DataLog!$C2508=\"Log value\",DataLog!P2508,\"\")","v":""},{"$f":"IF(DataLog!$C2508=\"Log value\",DataLog!Q2508,\"\")","v":""},{"$f":"IF(DataLog!$C2508=\"Log value\",DataLog!R2508,\"\")","v":""},{"$f":"IF(DataLog!$C2508=\"Log value\",DataLog!S2508,\"\")","v":""},{"$f":"IF(DataLog!$C2508=\"Log value\",DataLog!T2508,\"\")","v":""},{"$f":"IF(DataLog!$C2508=\"Log value\",DataLog!U2508,\"\")","v":""},{"$f":"IF(DataLog!$C2508=\"Log value\",DataLog!V2508,\"\")","v":""},{"$f":"IF(DataLog!$C2508=\"Log value\",DataLog!W2508,\"\")","v":""},{"$f":"IF(DataLog!$C2508=\"Log value\",DataLog!X2508,\"\")","v":""},{"$f":"IF(DataLog!$C2508=\"Log value\",DataLog!Y2508,\"\")","v":""},{"$f":"IF(DataLog!$C2508=\"Log value\",DataLog!Z2508,\"\")","v":""},{"$f":"IF(DataLog!$C2508=\"Log value\",DataLog!AA2508,\"\")","v":""},{"$f":"IF(DataLog!$C2508=\"Log value\",DataLog!AB2508,\"\")","v":""},{"$f":"IF(DataLog!$C2508=\"Log value\",DataLog!AC2508,\"\")","v":""},{"$f":"IF(DataLog!$C2508=\"Log value\",DataLog!AD2508,\"\")","v":""},{"$f":"IF(DataLog!$C2508=\"Log value\",DataLog!AE2508,\"\")","v":""},{"$f":"IF(DataLog!$C2508=\"Log value\",DataLog!AF2508,\"\")","v":""},{"$f":"IF(DataLog!$C2508=\"Log value\",DataLog!AG2508,\"\")","v":""},{"$f":"IF(DataLog!$C2508=\"Log value\",DataLog!AH2508,\"\")","v":""},{"$f":"IF(DataLog!$C2508=\"Log value\",DataLog!AI2508,\"\")","v":""},{"$f":"IF(DataLog!$C2508=\"Log value\",DataLog!AJ2508,\"\")","v":""},{"$f":"IF(DataLog!$C2508=\"Log value\",DataLog!AK2508,\"\")","v":""},{"$f":"IF(DataLog!$C2508=\"Log value\",DataLog!AL2508,\"\")","v":""},{"$f":"IF(DataLog!$C2508=\"Log value\",DataLog!AM2508,\"\")","v":""}]
[null,null,null,null,null,null,{"$f":"IF(DataLog!$C2511=\"Log value\",DataLog!D2511&\"_\"&TEXT(DataLog!B2511,\"åååå-mm-dd\"),\"\")","v":""},{"$f":"IF(DataLog!$C2511=\"Log value\",DataLog!E2511,\"\")","v":""},{"$f":"IF(DataLog!$C2511=\"Log value\",DataLog!F2511,\"\")","v":""},{"$f":"IF(DataLog!$C2511=\"Log value\",DataLog!G2511,\"\")","v":""},{"$f":"IF(DataLog!$C2511=\"Log value\",DataLog!H2511,\"\")","v":""},{"$f":"IF(DataLog!$C2511=\"Log value\",DataLog!I2511,\"\")","v":""},{"$f":"IF(DataLog!$C2511=\"Log value\",DataLog!J2511,\"\")","v":""},{"$f":"IF(DataLog!$C2511=\"Log value\",DataLog!K2511,\"\")","v":""},{"$f":"IF(DataLog!$C2511=\"Log value\",DataLog!L2511,\"\")","v":""},{"$f":"IF(DataLog!$C2511=\"Log value\",DataLog!M2511,\"\")","v":""},{"$f":"IF(DataLog!$C2511=\"Log value\",DataLog!N2511,\"\")","v":""},{"$f":"IF(DataLog!$C2511=\"Log value\",DataLog!O2511,\"\")","v":""},{"$f":"IF(DataLog!$C2511=\"Log value\",DataLog!P2511,\"\")","v":""},{"$f":"IF(DataLog!$C2511=\"Log value\",DataLog!Q2511,\"\")","v":""},{"$f":"IF(DataLog!$C2511=\"Log value\",DataLog!R2511,\"\")","v":""},{"$f":"IF(DataLog!$C2511=\"Log value\",DataLog!S2511,\"\")","v":""},{"$f":"IF(DataLog!$C2511=\"Log value\",DataLog!T2511,\"\")","v":""},{"$f":"IF(DataLog!$C2511=\"Log value\",DataLog!U2511,\"\")","v":""},{"$f":"IF(DataLog!$C2511=\"Log value\",DataLog!V2511,\"\")","v":""},{"$f":"IF(DataLog!$C2511=\"Log value\",DataLog!W2511,\"\")","v":""},{"$f":"IF(DataLog!$C2511=\"Log value\",DataLog!X2511,\"\")","v":""},{"$f":"IF(DataLog!$C2511=\"Log value\",DataLog!Y2511,\"\")","v":""},{"$f":"IF(DataLog!$C2511=\"Log value\",DataLog!Z2511,\"\")","v":""},{"$f":"IF(DataLog!$C2511=\"Log value\",DataLog!AA2511,\"\")","v":""},{"$f":"IF(DataLog!$C2511=\"Log value\",DataLog!AB2511,\"\")","v":""},{"$f":"IF(DataLog!$C2511=\"Log value\",DataLog!AC2511,\"\")","v":""},{"$f":"IF(DataLog!$C2511=\"Log value\",DataLog!AD2511,\"\")","v":""},{"$f":"IF(DataLog!$C2511=\"Log value\",DataLog!AE2511,\"\")","v":""},{"$f":"IF(DataLog!$C2511=\"Log value\",DataLog!AF2511,\"\")","v":""},{"$f":"IF(DataLog!$C2511=\"Log value\",DataLog!AG2511,\"\")","v":""},{"$f":"IF(DataLog!$C2511=\"Log value\",DataLog!AH2511,\"\")","v":""},{"$f":"IF(DataLog!$C2511=\"Log value\",DataLog!AI2511,\"\")","v":""},{"$f":"IF(DataLog!$C2511=\"Log value\",DataLog!AJ2511,\"\")","v":""},{"$f":"IF(DataLog!$C2511=\"Log value\",DataLog!AK2511,\"\")","v":""},{"$f":"IF(DataLog!$C2511=\"Log value\",DataLog!AL2511,\"\")","v":""},{"$f":"IF(DataLog!$C2511=\"Log value\",DataLog!AM2511,\"\")","v":""}]
[null,null,null,null,null,null,{"$f":"IF(DataLog!$C2512=\"Log value\",DataLog!D2512&\"_\"&TEXT(DataLog!B2512,\"åååå-mm-dd\"),\"\")","v":""},{"$f":"IF(DataLog!$C2512=\"Log value\",DataLog!E2512,\"\")","v":""},{"$f":"IF(DataLog!$C2512=\"Log value\",DataLog!F2512,\"\")","v":""},{"$f":"IF(DataLog!$C2512=\"Log value\",DataLog!G2512,\"\")","v":""},{"$f":"IF(DataLog!$C2512=\"Log value\",DataLog!H2512,\"\")","v":""},{"$f":"IF(DataLog!$C2512=\"Log value\",DataLog!I2512,\"\")","v":""},{"$f":"IF(DataLog!$C2512=\"Log value\",DataLog!J2512,\"\")","v":""},{"$f":"IF(DataLog!$C2512=\"Log value\",DataLog!K2512,\"\")","v":""},{"$f":"IF(DataLog!$C2512=\"Log value\",DataLog!L2512,\"\")","v":""},{"$f":"IF(DataLog!$C2512=\"Log value\",DataLog!M2512,\"\")","v":""},{"$f":"IF(DataLog!$C2512=\"Log value\",DataLog!N2512,\"\")","v":""},{"$f":"IF(DataLog!$C2512=\"Log value\",DataLog!O2512,\"\")","v":""},{"$f":"IF(DataLog!$C2512=\"Log value\",DataLog!P2512,\"\")","v":""},{"$f":"IF(DataLog!$C2512=\"Log value\",DataLog!Q2512,\"\")","v":""},{"$f":"IF(DataLog!$C2512=\"Log value\",DataLog!R2512,\"\")","v":""},{"$f":"IF(DataLog!$C2512=\"Log value\",DataLog!S2512,\"\")","v":""},{"$f":"IF(DataLog!$C2512=\"Log value\",DataLog!T2512,\"\")","v":""},{"$f":"IF(DataLog!$C2512=\"Log value\",DataLog!U2512,\"\")","v":""},{"$f":"IF(DataLog!$C2512=\"Log value\",DataLog!V2512,\"\")","v":""},{"$f":"IF(DataLog!$C2512=\"Log value\",DataLog!W2512,\"\")","v":""},{"$f":"IF(DataLog!$C2512=\"Log value\",DataLog!X2512,\"\")","v":""},{"$f":"IF(DataLog!$C2512=\"Log value\",DataLog!Y2512,\"\")","v":""},{"$f":"IF(DataLog!$C2512=\"Log value\",DataLog!Z2512,\"\")","v":""},{"$f":"IF(DataLog!$C2512=\"Log value\",DataLog!AA2512,\"\")","v":""},{"$f":"IF(DataLog!$C2512=\"Log value\",DataLog!AB2512,\"\")","v":""},{"$f":"IF(DataLog!$C2512=\"Log value\",DataLog!AC2512,\"\")","v":""},{"$f":"IF(DataLog!$C2512=\"Log value\",DataLog!AD2512,\"\")","v":""},{"$f":"IF(DataLog!$C2512=\"Log value\",DataLog!AE2512,\"\")","v":""},{"$f":"IF(DataLog!$C2512=\"Log value\",DataLog!AF2512,\"\")","v":""},{"$f":"IF(DataLog!$C2512=\"Log value\",DataLog!AG2512,\"\")","v":""},{"$f":"IF(DataLog!$C2512=\"Log value\",DataLog!AH2512,\"\")","v":""},{"$f":"IF(DataLog!$C2512=\"Log value\",DataLog!AI2512,\"\")","v":""},{"$f":"IF(DataLog!$C2512=\"Log value\",DataLog!AJ2512,\"\")","v":""},{"$f":"IF(DataLog!$C2512=\"Log value\",DataLog!AK2512,\"\")","v":""},{"$f":"IF(DataLog!$C2512=\"Log value\",DataLog!AL2512,\"\")","v":""},{"$f":"IF(DataLog!$C2512=\"Log value\",DataLog!AM2512,\"\")","v":""}]
[null,null,null,null,null,null,{"$f":"IF(DataLog!$C2515=\"Log value\",DataLog!D2515&\"_\"&TEXT(DataLog!B2515,\"åååå-mm-dd\"),\"\")","v":""},{"$f":"IF(DataLog!$C2515=\"Log value\",DataLog!E2515,\"\")","v":""},{"$f":"IF(DataLog!$C2515=\"Log value\",DataLog!F2515,\"\")","v":""},{"$f":"IF(DataLog!$C2515=\"Log value\",DataLog!G2515,\"\")","v":""},{"$f":"IF(DataLog!$C2515=\"Log value\",DataLog!H2515,\"\")","v":""},{"$f":"IF(DataLog!$C2515=\"Log value\",DataLog!I2515,\"\")","v":""},{"$f":"IF(DataLog!$C2515=\"Log value\",DataLog!J2515,\"\")","v":""},{"$f":"IF(DataLog!$C2515=\"Log value\",DataLog!K2515,\"\")","v":""},{"$f":"IF(DataLog!$C2515=\"Log value\",DataLog!L2515,\"\")","v":""},{"$f":"IF(DataLog!$C2515=\"Log value\",DataLog!M2515,\"\")","v":""},{"$f":"IF(DataLog!$C2515=\"Log value\",DataLog!N2515,\"\")","v":""},{"$f":"IF(DataLog!$C2515=\"Log value\",DataLog!O2515,\"\")","v":""},{"$f":"IF(DataLog!$C2515=\"Log value\",DataLog!P2515,\"\")","v":""},{"$f":"IF(DataLog!$C2515=\"Log value\",DataLog!Q2515,\"\")","v":""},{"$f":"IF(DataLog!$C2515=\"Log value\",DataLog!R2515,\"\")","v":""},{"$f":"IF(DataLog!$C2515=\"Log value\",DataLog!S2515,\"\")","v":""},{"$f":"IF(DataLog!$C2515=\"Log value\",DataLog!T2515,\"\")","v":""},{"$f":"IF(DataLog!$C2515=\"Log value\",DataLog!U2515,\"\")","v":""},{"$f":"IF(DataLog!$C2515=\"Log value\",DataLog!V2515,\"\")","v":""},{"$f":"IF(DataLog!$C2515=\"Log value\",DataLog!W2515,\"\")","v":""},{"$f":"IF(DataLog!$C2515=\"Log value\",DataLog!X2515,\"\")","v":""},{"$f":"IF(DataLog!$C2515=\"Log value\",DataLog!Y2515,\"\")","v":""},{"$f":"IF(DataLog!$C2515=\"Log value\",DataLog!Z2515,\"\")","v":""},{"$f":"IF(DataLog!$C2515=\"Log value\",DataLog!AA2515,\"\")","v":""},{"$f":"IF(DataLog!$C2515=\"Log value\",DataLog!AB2515,\"\")","v":""},{"$f":"IF(DataLog!$C2515=\"Log value\",DataLog!AC2515,\"\")","v":""},{"$f":"IF(DataLog!$C2515=\"Log value\",DataLog!AD2515,\"\")","v":""},{"$f":"IF(DataLog!$C2515=\"Log value\",DataLog!AE2515,\"\")","v":""},{"$f":"IF(DataLog!$C2515=\"Log value\",DataLog!AF2515,\"\")","v":""},{"$f":"IF(DataLog!$C2515=\"Log value\",DataLog!AG2515,\"\")","v":""},{"$f":"IF(DataLog!$C2515=\"Log value\",DataLog!AH2515,\"\")","v":""},{"$f":"IF(DataLog!$C2515=\"Log value\",DataLog!AI2515,\"\")","v":""},{"$f":"IF(DataLog!$C2515=\"Log value\",DataLog!AJ2515,\"\")","v":""},{"$f":"IF(DataLog!$C2515=\"Log value\",DataLog!AK2515,\"\")","v":""},{"$f":"IF(DataLog!$C2515=\"Log value\",DataLog!AL2515,\"\")","v":""},{"$f":"IF(DataLog!$C2515=\"Log value\",DataLog!AM2515,\"\")","v":""}]
[null,null,null,null,null,null,{"$f":"IF(DataLog!$C2517=\"Log value\",DataLog!D2517&\"_\"&TEXT(DataLog!B2517,\"åååå-mm-dd\"),\"\")","v":""},{"$f":"IF(DataLog!$C2517=\"Log value\",DataLog!E2517,\"\")","v":""},{"$f":"IF(DataLog!$C2517=\"Log value\",DataLog!F2517,\"\")","v":""},{"$f":"IF(DataLog!$C2517=\"Log value\",DataLog!G2517,\"\")","v":""},{"$f":"IF(DataLog!$C2517=\"Log value\",DataLog!H2517,\"\")","v":""},{"$f":"IF(DataLog!$C2517=\"Log value\",DataLog!I2517,\"\")","v":""},{"$f":"IF(DataLog!$C2517=\"Log value\",DataLog!J2517,\"\")","v":""},{"$f":"IF(DataLog!$C2517=\"Log value\",DataLog!K2517,\"\")","v":""},{"$f":"IF(DataLog!$C2517=\"Log value\",DataLog!L2517,\"\")","v":""},{"$f":"IF(DataLog!$C2517=\"Log value\",DataLog!M2517,\"\")","v":""},{"$f":"IF(DataLog!$C2517=\"Log value\",DataLog!N2517,\"\")","v":""},{"$f":"IF(DataLog!$C2517=\"Log value\",DataLog!O2517,\"\")","v":""},{"$f":"IF(DataLog!$C2517=\"Log value\",DataLog!P2517,\"\")","v":""},{"$f":"IF(DataLog!$C2517=\"Log value\",DataLog!Q2517,\"\")","v":""},{"$f":"IF(DataLog!$C2517=\"Log value\",DataLog!R2517,\"\")","v":""},{"$f":"IF(DataLog!$C2517=\"Log value\",DataLog!S2517,\"\")","v":""},{"$f":"IF(DataLog!$C2517=\"Log value\",DataLog!T2517,\"\")","v":""},{"$f":"IF(DataLog!$C2517=\"Log value\",DataLog!U2517,\"\")","v":""},{"$f":"IF(DataLog!$C2517=\"Log value\",DataLog!V2517,\"\")","v":""},{"$f":"IF(DataLog!$C2517=\"Log value\",DataLog!W2517,\"\")","v":""},{"$f":"IF(DataLog!$C2517=\"Log value\",DataLog!X2517,\"\")","v":""},{"$f":"IF(DataLog!$C2517=\"Log value\",DataLog!Y2517,\"\")","v":""},{"$f":"IF(DataLog!$C2517=\"Log value\",DataLog!Z2517,\"\")","v":""},{"$f":"IF(DataLog!$C2517=\"Log value\",DataLog!AA2517,\"\")","v":""},{"$f":"IF(DataLog!$C2517=\"Log value\",DataLog!AB2517,\"\")","v":""},{"$f":"IF(DataLog!$C2517=\"Log value\",DataLog!AC2517,\"\")","v":""},{"$f":"IF(DataLog!$C2517=\"Log value\",DataLog!AD2517,\"\")","v":""},{"$f":"IF(DataLog!$C2517=\"Log value\",DataLog!AE2517,\"\")","v":""},{"$f":"IF(DataLog!$C2517=\"Log value\",DataLog!AF2517,\"\")","v":""},{"$f":"IF(DataLog!$C2517=\"Log value\",DataLog!AG2517,\"\")","v":""},{"$f":"IF(DataLog!$C2517=\"Log value\",DataLog!AH2517,\"\")","v":""},{"$f":"IF(DataLog!$C2517=\"Log value\",DataLog!AI2517,\"\")","v":""},{"$f":"IF(DataLog!$C2517=\"Log value\",DataLog!AJ2517,\"\")","v":""},{"$f":"IF(DataLog!$C2517=\"Log value\",DataLog!AK2517,\"\")","v":""},{"$f":"IF(DataLog!$C2517=\"Log value\",DataLog!AL2517,\"\")","v":""},{"$f":"IF(DataLog!$C2517=\"Log value\",DataLog!AM2517,\"\")","v":""}]
[null,null,null,null,null,null,{"$f":"IF(DataLog!$C2520=\"Log value\",DataLog!D2520&\"_\"&TEXT(DataLog!B2520,\"åååå-mm-dd\"),\"\")","v":""},{"$f":"IF(DataLog!$C2520=\"Log value\",DataLog!E2520,\"\")","v":""},{"$f":"IF(DataLog!$C2520=\"Log value\",DataLog!F2520,\"\")","v":""},{"$f":"IF(DataLog!$C2520=\"Log value\",DataLog!G2520,\"\")","v":""},{"$f":"IF(DataLog!$C2520=\"Log value\",DataLog!H2520,\"\")","v":""},{"$f":"IF(DataLog!$C2520=\"Log value\",DataLog!I2520,\"\")","v":""},{"$f":"IF(DataLog!$C2520=\"Log value\",DataLog!J2520,\"\")","v":""},{"$f":"IF(DataLog!$C2520=\"Log value\",DataLog!K2520,\"\")","v":""},{"$f":"IF(DataLog!$C2520=\"Log value\",DataLog!L2520,\"\")","v":""},{"$f":"IF(DataLog!$C2520=\"Log value\",DataLog!M2520,\"\")","v":""},{"$f":"IF(DataLog!$C2520=\"Log value\",DataLog!N2520,\"\")","v":""},{"$f":"IF(DataLog!$C2520=\"Log value\",DataLog!O2520,\"\")","v":""},{"$f":"IF(DataLog!$C2520=\"Log value\",DataLog!P2520,\"\")","v":""},{"$f":"IF(DataLog!$C2520=\"Log value\",DataLog!Q2520,\"\")","v":""},{"$f":"IF(DataLog!$C2520=\"Log value\",DataLog!R2520,\"\")","v":""},{"$f":"IF(DataLog!$C2520=\"Log value\",DataLog!S2520,\"\")","v":""},{"$f":"IF(DataLog!$C2520=\"Log value\",DataLog!T2520,\"\")","v":""},{"$f":"IF(DataLog!$C2520=\"Log value\",DataLog!U2520,\"\")","v":""},{"$f":"IF(DataLog!$C2520=\"Log value\",DataLog!V2520,\"\")","v":""},{"$f":"IF(DataLog!$C2520=\"Log value\",DataLog!W2520,\"\")","v":""},{"$f":"IF(DataLog!$C2520=\"Log value\",DataLog!X2520,\"\")","v":""},{"$f":"IF(DataLog!$C2520=\"Log value\",DataLog!Y2520,\"\")","v":""},{"$f":"IF(DataLog!$C2520=\"Log value\",DataLog!Z2520,\"\")","v":""},{"$f":"IF(DataLog!$C2520=\"Log value\",DataLog!AA2520,\"\")","v":""},{"$f":"IF(DataLog!$C2520=\"Log value\",DataLog!AB2520,\"\")","v":""},{"$f":"IF(DataLog!$C2520=\"Log value\",DataLog!AC2520,\"\")","v":""},{"$f":"IF(DataLog!$C2520=\"Log value\",DataLog!AD2520,\"\")","v":""},{"$f":"IF(DataLog!$C2520=\"Log value\",DataLog!AE2520,\"\")","v":""},{"$f":"IF(DataLog!$C2520=\"Log value\",DataLog!AF2520,\"\")","v":""},{"$f":"IF(DataLog!$C2520=\"Log value\",DataLog!AG2520,\"\")","v":""},{"$f":"IF(DataLog!$C2520=\"Log value\",DataLog!AH2520,\"\")","v":""},{"$f":"IF(DataLog!$C2520=\"Log value\",DataLog!AI2520,\"\")","v":""},{"$f":"IF(DataLog!$C2520=\"Log value\",DataLog!AJ2520,\"\")","v":""},{"$f":"IF(DataLog!$C2520=\"Log value\",DataLog!AK2520,\"\")","v":""},{"$f":"IF(DataLog!$C2520=\"Log value\",DataLog!AL2520,\"\")","v":""},{"$f":"IF(DataLog!$C2520=\"Log value\",DataLog!AM2520,\"\")","v":""}]
[null,null,null,null,null,null,{"$f":"IF(DataLog!$C2521=\"Log value\",DataLog!D2521&\"_\"&TEXT(DataLog!B2521,\"åååå-mm-dd\"),\"\")","v":""},{"$f":"IF(DataLog!$C2521=\"Log value\",DataLog!E2521,\"\")","v":""},{"$f":"IF(DataLog!$C2521=\"Log value\",DataLog!F2521,\"\")","v":""},{"$f":"IF(DataLog!$C2521=\"Log value\",DataLog!G2521,\"\")","v":""},{"$f":"IF(DataLog!$C2521=\"Log value\",DataLog!H2521,\"\")","v":""},{"$f":"IF(DataLog!$C2521=\"Log value\",DataLog!I2521,\"\")","v":""},{"$f":"IF(DataLog!$C2521=\"Log value\",DataLog!J2521,\"\")","v":""},{"$f":"IF(DataLog!$C2521=\"Log value\",DataLog!K2521,\"\")","v":""},{"$f":"IF(DataLog!$C2521=\"Log value\",DataLog!L2521,\"\")","v":""},{"$f":"IF(DataLog!$C2521=\"Log value\",DataLog!M2521,\"\")","v":""},{"$f":"IF(DataLog!$C2521=\"Log value\",DataLog!N2521,\"\")","v":""},{"$f":"IF(DataLog!$C2521=\"Log value\",DataLog!O2521,\"\")","v":""},{"$f":"IF(DataLog!$C2521=\"Log value\",DataLog!P2521,\"\")","v":""},{"$f":"IF(DataLog!$C2521=\"Log value\",DataLog!Q2521,\"\")","v":""},{"$f":"IF(DataLog!$C2521=\"Log value\",DataLog!R2521,\"\")","v":""},{"$f":"IF(DataLog!$C2521=\"Log value\",DataLog!S2521,\"\")","v":""},{"$f":"IF(DataLog!$C2521=\"Log value\",DataLog!T2521,\"\")","v":""},{"$f":"IF(DataLog!$C2521=\"Log value\",DataLog!U2521,\"\")","v":""},{"$f":"IF(DataLog!$C2521=\"Log value\",DataLog!V2521,\"\")","v":""},{"$f":"IF(DataLog!$C2521=\"Log value\",DataLog!W2521,\"\")","v":""},{"$f":"IF(DataLog!$C2521=\"Log value\",DataLog!X2521,\"\")","v":""},{"$f":"IF(DataLog!$C2521=\"Log value\",DataLog!Y2521,\"\")","v":""},{"$f":"IF(DataLog!$C2521=\"Log value\",DataLog!Z2521,\"\")","v":""},{"$f":"IF(DataLog!$C2521=\"Log value\",DataLog!AA2521,\"\")","v":""},{"$f":"IF(DataLog!$C2521=\"Log value\",DataLog!AB2521,\"\")","v":""},{"$f":"IF(DataLog!$C2521=\"Log value\",DataLog!AC2521,\"\")","v":""},{"$f":"IF(DataLog!$C2521=\"Log value\",DataLog!AD2521,\"\")","v":""},{"$f":"IF(DataLog!$C2521=\"Log value\",DataLog!AE2521,\"\")","v":""},{"$f":"IF(DataLog!$C2521=\"Log value\",DataLog!AF2521,\"\")","v":""},{"$f":"IF(DataLog!$C2521=\"Log value\",DataLog!AG2521,\"\")","v":""},{"$f":"IF(DataLog!$C2521=\"Log value\",DataLog!AH2521,\"\")","v":""},{"$f":"IF(DataLog!$C2521=\"Log value\",DataLog!AI2521,\"\")","v":""},{"$f":"IF(DataLog!$C2521=\"Log value\",DataLog!AJ2521,\"\")","v":""},{"$f":"IF(DataLog!$C2521=\"Log value\",DataLog!AK2521,\"\")","v":""},{"$f":"IF(DataLog!$C2521=\"Log value\",DataLog!AL2521,\"\")","v":""},{"$f":"IF(DataLog!$C2521=\"Log value\",DataLog!AM2521,\"\")","v":""}]
[null,null,null,null,null,null,{"$f":"IF(DataLog!$C2525=\"Log value\",DataLog!D2525&\"_\"&TEXT(DataLog!B2525,\"åååå-mm-dd\"),\"\")","v":""},{"$f":"IF(DataLog!$C2525=\"Log value\",DataLog!E2525,\"\")","v":""},{"$f":"IF(DataLog!$C2525=\"Log value\",DataLog!F2525,\"\")","v":""},{"$f":"IF(DataLog!$C2525=\"Log value\",DataLog!G2525,\"\")","v":""},{"$f":"IF(DataLog!$C2525=\"Log value\",DataLog!H2525,\"\")","v":""},{"$f":"IF(DataLog!$C2525=\"Log value\",DataLog!I2525,\"\")","v":""},{"$f":"IF(DataLog!$C2525=\"Log value\",DataLog!J2525,\"\")","v":""},{"$f":"IF(DataLog!$C2525=\"Log value\",DataLog!K2525,\"\")","v":""},{"$f":"IF(DataLog!$C2525=\"Log value\",DataLog!L2525,\"\")","v":""},{"$f":"IF(DataLog!$C2525=\"Log value\",DataLog!M2525,\"\")","v":""},{"$f":"IF(DataLog!$C2525=\"Log value\",DataLog!N2525,\"\")","v":""},{"$f":"IF(DataLog!$C2525=\"Log value\",DataLog!O2525,\"\")","v":""},{"$f":"IF(DataLog!$C2525=\"Log value\",DataLog!P2525,\"\")","v":""},{"$f":"IF(DataLog!$C2525=\"Log value\",DataLog!Q2525,\"\")","v":""},{"$f":"IF(DataLog!$C2525=\"Log value\",DataLog!R2525,\"\")","v":""},{"$f":"IF(DataLog!$C2525=\"Log value\",DataLog!S2525,\"\")","v":""},{"$f":"IF(DataLog!$C2525=\"Log value\",DataLog!T2525,\"\")","v":""},{"$f":"IF(DataLog!$C2525=\"Log value\",DataLog!U2525,\"\")","v":""},{"$f":"IF(DataLog!$C2525=\"Log value\",DataLog!V2525,\"\")","v":""},{"$f":"IF(DataLog!$C2525=\"Log value\",DataLog!W2525,\"\")","v":""},{"$f":"IF(DataLog!$C2525=\"Log value\",DataLog!X2525,\"\")","v":""},{"$f":"IF(DataLog!$C2525=\"Log value\",DataLog!Y2525,\"\")","v":""},{"$f":"IF(DataLog!$C2525=\"Log value\",DataLog!Z2525,\"\")","v":""},{"$f":"IF(DataLog!$C2525=\"Log value\",DataLog!AA2525,\"\")","v":""},{"$f":"IF(DataLog!$C2525=\"Log value\",DataLog!AB2525,\"\")","v":""},{"$f":"IF(DataLog!$C2525=\"Log value\",DataLog!AC2525,\"\")","v":""},{"$f":"IF(DataLog!$C2525=\"Log value\",DataLog!AD2525,\"\")","v":""},{"$f":"IF(DataLog!$C2525=\"Log value\",DataLog!AE2525,\"\")","v":""},{"$f":"IF(DataLog!$C2525=\"Log value\",DataLog!AF2525,\"\")","v":""},{"$f":"IF(DataLog!$C2525=\"Log value\",DataLog!AG2525,\"\")","v":""},{"$f":"IF(DataLog!$C2525=\"Log value\",DataLog!AH2525,\"\")","v":""},{"$f":"IF(DataLog!$C2525=\"Log value\",DataLog!AI2525,\"\")","v":""},{"$f":"IF(DataLog!$C2525=\"Log value\",DataLog!AJ2525,\"\")","v":""},{"$f":"IF(DataLog!$C2525=\"Log value\",DataLog!AK2525,\"\")","v":""},{"$f":"IF(DataLog!$C2525=\"Log value\",DataLog!AL2525,\"\")","v":""},{"$f":"IF(DataLog!$C2525=\"Log value\",DataLog!AM2525,\"\")","v":""}]
[null,null,null,null,null,null,{"$f":"IF(DataLog!$C2526=\"Log value\",DataLog!D2526&\"_\"&TEXT(DataLog!B2526,\"åååå-mm-dd\"),\"\")","v":""},{"$f":"IF(DataLog!$C2526=\"Log value\",DataLog!E2526,\"\")","v":""},{"$f":"IF(DataLog!$C2526=\"Log value\",DataLog!F2526,\"\")","v":""},{"$f":"IF(DataLog!$C2526=\"Log value\",DataLog!G2526,\"\")","v":""},{"$f":"IF(DataLog!$C2526=\"Log value\",DataLog!H2526,\"\")","v":""},{"$f":"IF(DataLog!$C2526=\"Log value\",DataLog!I2526,\"\")","v":""},{"$f":"IF(DataLog!$C2526=\"Log value\",DataLog!J2526,\"\")","v":""},{"$f":"IF(DataLog!$C2526=\"Log value\",DataLog!K2526,\"\")","v":""},{"$f":"IF(DataLog!$C2526=\"Log value\",DataLog!L2526,\"\")","v":""},{"$f":"IF(DataLog!$C2526=\"Log value\",DataLog!M2526,\"\")","v":""},{"$f":"IF(DataLog!$C2526=\"Log value\",DataLog!N2526,\"\")","v":""},{"$f":"IF(DataLog!$C2526=\"Log value\",DataLog!O2526,\"\")","v":""},{"$f":"IF(DataLog!$C2526=\"Log value\",DataLog!P2526,\"\")","v":""},{"$f":"IF(DataLog!$C2526=\"Log value\",DataLog!Q2526,\"\")","v":""},{"$f":"IF(DataLog!$C2526=\"Log value\",DataLog!R2526,\"\")","v":""},{"$f":"IF(DataLog!$C2526=\"Log value\",DataLog!S2526,\"\")","v":""},{"$f":"IF(DataLog!$C2526=\"Log value\",DataLog!T2526,\"\")","v":""},{"$f":"IF(DataLog!$C2526=\"Log value\",DataLog!U2526,\"\")","v":""},{"$f":"IF(DataLog!$C2526=\"Log value\",DataLog!V2526,\"\")","v":""},{"$f":"IF(DataLog!$C2526=\"Log value\",DataLog!W2526,\"\")","v":""},{"$f":"IF(DataLog!$C2526=\"Log value\",DataLog!X2526,\"\")","v":""},{"$f":"IF(DataLog!$C2526=\"Log value\",DataLog!Y2526,\"\")","v":""},{"$f":"IF(DataLog!$C2526=\"Log value\",DataLog!Z2526,\"\")","v":""},{"$f":"IF(DataLog!$C2526=\"Log value\",DataLog!AA2526,\"\")","v":""},{"$f":"IF(DataLog!$C2526=\"Log value\",DataLog!AB2526,\"\")","v":""},{"$f":"IF(DataLog!$C2526=\"Log value\",DataLog!AC2526,\"\")","v":""},{"$f":"IF(DataLog!$C2526=\"Log value\",DataLog!AD2526,\"\")","v":""},{"$f":"IF(DataLog!$C2526=\"Log value\",DataLog!AE2526,\"\")","v":""},{"$f":"IF(DataLog!$C2526=\"Log value\",DataLog!AF2526,\"\")","v":""},{"$f":"IF(DataLog!$C2526=\"Log value\",DataLog!AG2526,\"\")","v":""},{"$f":"IF(DataLog!$C2526=\"Log value\",DataLog!AH2526,\"\")","v":""},{"$f":"IF(DataLog!$C2526=\"Log value\",DataLog!AI2526,\"\")","v":""},{"$f":"IF(DataLog!$C2526=\"Log value\",DataLog!AJ2526,\"\")","v":""},{"$f":"IF(DataLog!$C2526=\"Log value\",DataLog!AK2526,\"\")","v":""},{"$f":"IF(DataLog!$C2526=\"Log value\",DataLog!AL2526,\"\")","v":""},{"$f":"IF(DataLog!$C2526=\"Log value\",DataLog!AM2526,\"\")","v":""}]
[null,null,null,null,null,null,{"$f":"IF(DataLog!$C2529=\"Log value\",DataLog!D2529&\"_\"&TEXT(DataLog!B2529,\"åååå-mm-dd\"),\"\")","v":""},{"$f":"IF(DataLog!$C2529=\"Log value\",DataLog!E2529,\"\")","v":""},{"$f":"IF(DataLog!$C2529=\"Log value\",DataLog!F2529,\"\")","v":""},{"$f":"IF(DataLog!$C2529=\"Log value\",DataLog!G2529,\"\")","v":""},{"$f":"IF(DataLog!$C2529=\"Log value\",DataLog!H2529,\"\")","v":""},{"$f":"IF(DataLog!$C2529=\"Log value\",DataLog!I2529,\"\")","v":""},{"$f":"IF(DataLog!$C2529=\"Log value\",DataLog!J2529,\"\")","v":""},{"$f":"IF(DataLog!$C2529=\"Log value\",DataLog!K2529,\"\")","v":""},{"$f":"IF(DataLog!$C2529=\"Log value\",DataLog!L2529,\"\")","v":""},{"$f":"IF(DataLog!$C2529=\"Log value\",DataLog!M2529,\"\")","v":""},{"$f":"IF(DataLog!$C2529=\"Log value\",DataLog!N2529,\"\")","v":""},{"$f":"IF(DataLog!$C2529=\"Log value\",DataLog!O2529,\"\")","v":""},{"$f":"IF(DataLog!$C2529=\"Log value\",DataLog!P2529,\"\")","v":""},{"$f":"IF(DataLog!$C2529=\"Log value\",DataLog!Q2529,\"\")","v":""},{"$f":"IF(DataLog!$C2529=\"Log value\",DataLog!R2529,\"\")","v":""},{"$f":"IF(DataLog!$C2529=\"Log value\",DataLog!S2529,\"\")","v":""},{"$f":"IF(DataLog!$C2529=\"Log value\",DataLog!T2529,\"\")","v":""},{"$f":"IF(DataLog!$C2529=\"Log value\",DataLog!U2529,\"\")","v":""},{"$f":"IF(DataLog!$C2529=\"Log value\",DataLog!V2529,\"\")","v":""},{"$f":"IF(DataLog!$C2529=\"Log value\",DataLog!W2529,\"\")","v":""},{"$f":"IF(DataLog!$C2529=\"Log value\",DataLog!X2529,\"\")","v":""},{"$f":"IF(DataLog!$C2529=\"Log value\",DataLog!Y2529,\"\")","v":""},{"$f":"IF(DataLog!$C2529=\"Log value\",DataLog!Z2529,\"\")","v":""},{"$f":"IF(DataLog!$C2529=\"Log value\",DataLog!AA2529,\"\")","v":""},{"$f":"IF(DataLog!$C2529=\"Log value\",DataLog!AB2529,\"\")","v":""},{"$f":"IF(DataLog!$C2529=\"Log value\",DataLog!AC2529,\"\")","v":""},{"$f":"IF(DataLog!$C2529=\"Log value\",DataLog!AD2529,\"\")","v":""},{"$f":"IF(DataLog!$C2529=\"Log value\",DataLog!AE2529,\"\")","v":""},{"$f":"IF(DataLog!$C2529=\"Log value\",DataLog!AF2529,\"\")","v":""},{"$f":"IF(DataLog!$C2529=\"Log value\",DataLog!AG2529,\"\")","v":""},{"$f":"IF(DataLog!$C2529=\"Log value\",DataLog!AH2529,\"\")","v":""},{"$f":"IF(DataLog!$C2529=\"Log value\",DataLog!AI2529,\"\")","v":""},{"$f":"IF(DataLog!$C2529=\"Log value\",DataLog!AJ2529,\"\")","v":""},{"$f":"IF(DataLog!$C2529=\"Log value\",DataLog!AK2529,\"\")","v":""},{"$f":"IF(DataLog!$C2529=\"Log value\",DataLog!AL2529,\"\")","v":""},{"$f":"IF(DataLog!$C2529=\"Log value\",DataLog!AM2529,\"\")","v":""}]
[null,null,null,null,null,null,{"$f":"IF(DataLog!$C2530=\"Log value\",DataLog!D2530&\"_\"&TEXT(DataLog!B2530,\"åååå-mm-dd\"),\"\")","v":""},{"$f":"IF(DataLog!$C2530=\"Log value\",DataLog!E2530,\"\")","v":""},{"$f":"IF(DataLog!$C2530=\"Log value\",DataLog!F2530,\"\")","v":""},{"$f":"IF(DataLog!$C2530=\"Log value\",DataLog!G2530,\"\")","v":""},{"$f":"IF(DataLog!$C2530=\"Log value\",DataLog!H2530,\"\")","v":""},{"$f":"IF(DataLog!$C2530=\"Log value\",DataLog!I2530,\"\")","v":""},{"$f":"IF(DataLog!$C2530=\"Log value\",DataLog!J2530,\"\")","v":""},{"$f":"IF(DataLog!$C2530=\"Log value\",DataLog!K2530,\"\")","v":""},{"$f":"IF(DataLog!$C2530=\"Log value\",DataLog!L2530,\"\")","v":""},{"$f":"IF(DataLog!$C2530=\"Log value\",DataLog!M2530,\"\")","v":""},{"$f":"IF(DataLog!$C2530=\"Log value\",DataLog!N2530,\"\")","v":""},{"$f":"IF(DataLog!$C2530=\"Log value\",DataLog!O2530,\"\")","v":""},{"$f":"IF(DataLog!$C2530=\"Log value\",DataLog!P2530,\"\")","v":""},{"$f":"IF(DataLog!$C2530=\"Log value\",DataLog!Q2530,\"\")","v":""},{"$f":"IF(DataLog!$C2530=\"Log value\",DataLog!R2530,\"\")","v":""},{"$f":"IF(DataLog!$C2530=\"Log value\",DataLog!S2530,\"\")","v":""},{"$f":"IF(DataLog!$C2530=\"Log value\",DataLog!T2530,\"\")","v":""},{"$f":"IF(DataLog!$C2530=\"Log value\",DataLog!U2530,\"\")","v":""},{"$f":"IF(DataLog!$C2530=\"Log value\",DataLog!V2530,\"\")","v":""},{"$f":"IF(DataLog!$C2530=\"Log value\",DataLog!W2530,\"\")","v":""},{"$f":"IF(DataLog!$C2530=\"Log value\",DataLog!X2530,\"\")","v":""},{"$f":"IF(DataLog!$C2530=\"Log value\",DataLog!Y2530,\"\")","v":""},{"$f":"IF(DataLog!$C2530=\"Log value\",DataLog!Z2530,\"\")","v":""},{"$f":"IF(DataLog!$C2530=\"Log value\",DataLog!AA2530,\"\")","v":""},{"$f":"IF(DataLog!$C2530=\"Log value\",DataLog!AB2530,\"\")","v":""},{"$f":"IF(DataLog!$C2530=\"Log value\",DataLog!AC2530,\"\")","v":""},{"$f":"IF(DataLog!$C2530=\"Log value\",DataLog!AD2530,\"\")","v":""},{"$f":"IF(DataLog!$C2530=\"Log value\",DataLog!AE2530,\"\")","v":""},{"$f":"IF(DataLog!$C2530=\"Log value\",DataLog!AF2530,\"\")","v":""},{"$f":"IF(DataLog!$C2530=\"Log value\",DataLog!AG2530,\"\")","v":""},{"$f":"IF(DataLog!$C2530=\"Log value\",DataLog!AH2530,\"\")","v":""},{"$f":"IF(DataLog!$C2530=\"Log value\",DataLog!AI2530,\"\")","v":""},{"$f":"IF(DataLog!$C2530=\"Log value\",DataLog!AJ2530,\"\")","v":""},{"$f":"IF(DataLog!$C2530=\"Log value\",DataLog!AK2530,\"\")","v":""},{"$f":"IF(DataLog!$C2530=\"Log value\",DataLog!AL2530,\"\")","v":""},{"$f":"IF(DataLog!$C2530=\"Log value\",DataLog!AM2530,\"\")","v":""}]
[null,null,null,null,null,null,{"$f":"IF(DataLog!$C2533=\"Log value\",DataLog!D2533&\"_\"&TEXT(DataLog!B2533,\"åååå-mm-dd\"),\"\")","v":""},{"$f":"IF(DataLog!$C2533=\"Log value\",DataLog!E2533,\"\")","v":""},{"$f":"IF(DataLog!$C2533=\"Log value\",DataLog!F2533,\"\")","v":""},{"$f":"IF(DataLog!$C2533=\"Log value\",DataLog!G2533,\"\")","v":""},{"$f":"IF(DataLog!$C2533=\"Log value\",DataLog!H2533,\"\")","v":""},{"$f":"IF(DataLog!$C2533=\"Log value\",DataLog!I2533,\"\")","v":""},{"$f":"IF(DataLog!$C2533=\"Log value\",DataLog!J2533,\"\")","v":""},{"$f":"IF(DataLog!$C2533=\"Log value\",DataLog!K2533,\"\")","v":""},{"$f":"IF(DataLog!$C2533=\"Log value\",DataLog!L2533,\"\")","v":""},{"$f":"IF(DataLog!$C2533=\"Log value\",DataLog!M2533,\"\")","v":""},{"$f":"IF(DataLog!$C2533=\"Log value\",DataLog!N2533,\"\")","v":""},{"$f":"IF(DataLog!$C2533=\"Log value\",DataLog!O2533,\"\")","v":""},{"$f":"IF(DataLog!$C2533=\"Log value\",DataLog!P2533,\"\")","v":""},{"$f":"IF(DataLog!$C2533=\"Log value\",DataLog!Q2533,\"\")","v":""},{"$f":"IF(DataLog!$C2533=\"Log value\",DataLog!R2533,\"\")","v":""},{"$f":"IF(DataLog!$C2533=\"Log value\",DataLog!S2533,\"\")","v":""},{"$f":"IF(DataLog!$C2533=\"Log value\",DataLog!T2533,\"\")","v":""},{"$f":"IF(DataLog!$C2533=\"Log value\",DataLog!U2533,\"\")","v":""},{"$f":"IF(DataLog!$C2533=\"Log value\",DataLog!V2533,\"\")","v":""},{"$f":"IF(DataLog!$C2533=\"Log value\",DataLog!W2533,\"\")","v":""},{"$f":"IF(DataLog!$C2533=\"Log value\",DataLog!X2533,\"\")","v":""},{"$f":"IF(DataLog!$C2533=\"Log value\",DataLog!Y2533,\"\")","v":""},{"$f":"IF(DataLog!$C2533=\"Log value\",DataLog!Z2533,\"\")","v":""},{"$f":"IF(DataLog!$C2533=\"Log value\",DataLog!AA2533,\"\")","v":""},{"$f":"IF(DataLog!$C2533=\"Log value\",DataLog!AB2533,\"\")","v":""},{"$f":"IF(DataLog!$C2533=\"Log value\",DataLog!AC2533,\"\")","v":""},{"$f":"IF(DataLog!$C2533=\"Log value\",DataLog!AD2533,\"\")","v":""},{"$f":"IF(DataLog!$C2533=\"Log value\",DataLog!AE2533,\"\")","v":""},{"$f":"IF(DataLog!$C2533=\"Log value\",DataLog!AF2533,\"\")","v":""},{"$f":"IF(DataLog!$C2533=\"Log value\",DataLog!AG2533,\"\")","v":""},{"$f":"IF(DataLog!$C2533=\"Log value\",DataLog!AH2533,\"\")","v":""},{"$f":"IF(DataLog!$C2533=\"Log value\",DataLog!AI2533,\"\")","v":""},{"$f":"IF(DataLog!$C2533=\"Log value\",DataLog!AJ2533,\"\")","v":""},{"$f":"IF(DataLog!$C2533=\"Log value\",DataLog!AK2533,\"\")","v":""},{"$f":"IF(DataLog!$C2533=\"Log value\",DataLog!AL2533,\"\")","v":""},{"$f":"IF(DataLog!$C2533=\"Log value\",DataLog!AM2533,\"\")","v":""}]
[null,null,null,null,null,null,{"$f":"IF(DataLog!$C2535=\"Log value\",DataLog!D2535&\"_\"&TEXT(DataLog!B2535,\"åååå-mm-dd\"),\"\")","v":""},{"$f":"IF(DataLog!$C2535=\"Log value\",DataLog!E2535,\"\")","v":""},{"$f":"IF(DataLog!$C2535=\"Log value\",DataLog!F2535,\"\")","v":""},{"$f":"IF(DataLog!$C2535=\"Log value\",DataLog!G2535,\"\")","v":""},{"$f":"IF(DataLog!$C2535=\"Log value\",DataLog!H2535,\"\")","v":""},{"$f":"IF(DataLog!$C2535=\"Log value\",DataLog!I2535,\"\")","v":""},{"$f":"IF(DataLog!$C2535=\"Log value\",DataLog!J2535,\"\")","v":""},{"$f":"IF(DataLog!$C2535=\"Log value\",DataLog!K2535,\"\")","v":""},{"$f":"IF(DataLog!$C2535=\"Log value\",DataLog!L2535,\"\")","v":""},{"$f":"IF(DataLog!$C2535=\"Log value\",DataLog!M2535,\"\")","v":""},{"$f":"IF(DataLog!$C2535=\"Log value\",DataLog!N2535,\"\")","v":""},{"$f":"IF(DataLog!$C2535=\"Log value\",DataLog!O2535,\"\")","v":""},{"$f":"IF(DataLog!$C2535=\"Log value\",DataLog!P2535,\"\")","v":""},{"$f":"IF(DataLog!$C2535=\"Log value\",DataLog!Q2535,\"\")","v":""},{"$f":"IF(DataLog!$C2535=\"Log value\",DataLog!R2535,\"\")","v":""},{"$f":"IF(DataLog!$C2535=\"Log value\",DataLog!S2535,\"\")","v":""},{"$f":"IF(DataLog!$C2535=\"Log value\",DataLog!T2535,\"\")","v":""},{"$f":"IF(DataLog!$C2535=\"Log value\",DataLog!U2535,\"\")","v":""},{"$f":"IF(DataLog!$C2535=\"Log value\",DataLog!V2535,\"\")","v":""},{"$f":"IF(DataLog!$C2535=\"Log value\",DataLog!W2535,\"\")","v":""},{"$f":"IF(DataLog!$C2535=\"Log value\",DataLog!X2535,\"\")","v":""},{"$f":"IF(DataLog!$C2535=\"Log value\",DataLog!Y2535,\"\")","v":""},{"$f":"IF(DataLog!$C2535=\"Log value\",DataLog!Z2535,\"\")","v":""},{"$f":"IF(DataLog!$C2535=\"Log value\",DataLog!AA2535,\"\")","v":""},{"$f":"IF(DataLog!$C2535=\"Log value\",DataLog!AB2535,\"\")","v":""},{"$f":"IF(DataLog!$C2535=\"Log value\",DataLog!AC2535,\"\")","v":""},{"$f":"IF(DataLog!$C2535=\"Log value\",DataLog!AD2535,\"\")","v":""},{"$f":"IF(DataLog!$C2535=\"Log value\",DataLog!AE2535,\"\")","v":""},{"$f":"IF(DataLog!$C2535=\"Log value\",DataLog!AF2535,\"\")","v":""},{"$f":"IF(DataLog!$C2535=\"Log value\",DataLog!AG2535,\"\")","v":""},{"$f":"IF(DataLog!$C2535=\"Log value\",DataLog!AH2535,\"\")","v":""},{"$f":"IF(DataLog!$C2535=\"Log value\",DataLog!AI2535,\"\")","v":""},{"$f":"IF(DataLog!$C2535=\"Log value\",DataLog!AJ2535,\"\")","v":""},{"$f":"IF(DataLog!$C2535=\"Log value\",DataLog!AK2535,\"\")","v":""},{"$f":"IF(DataLog!$C2535=\"Log value\",DataLog!AL2535,\"\")","v":""},{"$f":"IF(DataLog!$C2535=\"Log value\",DataLog!AM2535,\"\")","v":""}]
[null,null,null,null,null,null,{"$f":"IF(DataLog!$C2538=\"Log value\",DataLog!D2538&\"_\"&TEXT(DataLog!B2538,\"åååå-mm-dd\"),\"\")","v":""},{"$f":"IF(DataLog!$C2538=\"Log value\",DataLog!E2538,\"\")","v":""},{"$f":"IF(DataLog!$C2538=\"Log value\",DataLog!F2538,\"\")","v":""},{"$f":"IF(DataLog!$C2538=\"Log value\",DataLog!G2538,\"\")","v":""},{"$f":"IF(DataLog!$C2538=\"Log value\",DataLog!H2538,\"\")","v":""},{"$f":"IF(DataLog!$C2538=\"Log value\",DataLog!I2538,\"\")","v":""},{"$f":"IF(DataLog!$C2538=\"Log value\",DataLog!J2538,\"\")","v":""},{"$f":"IF(DataLog!$C2538=\"Log value\",DataLog!K2538,\"\")","v":""},{"$f":"IF(DataLog!$C2538=\"Log value\",DataLog!L2538,\"\")","v":""},{"$f":"IF(DataLog!$C2538=\"Log value\",DataLog!M2538,\"\")","v":""},{"$f":"IF(DataLog!$C2538=\"Log value\",DataLog!N2538,\"\")","v":""},{"$f":"IF(DataLog!$C2538=\"Log value\",DataLog!O2538,\"\")","v":""},{"$f":"IF(DataLog!$C2538=\"Log value\",DataLog!P2538,\"\")","v":""},{"$f":"IF(DataLog!$C2538=\"Log value\",DataLog!Q2538,\"\")","v":""},{"$f":"IF(DataLog!$C2538=\"Log value\",DataLog!R2538,\"\")","v":""},{"$f":"IF(DataLog!$C2538=\"Log value\",DataLog!S2538,\"\")","v":""},{"$f":"IF(DataLog!$C2538=\"Log value\",DataLog!T2538,\"\")","v":""},{"$f":"IF(DataLog!$C2538=\"Log value\",DataLog!U2538,\"\")","v":""},{"$f":"IF(DataLog!$C2538=\"Log value\",DataLog!V2538,\"\")","v":""},{"$f":"IF(DataLog!$C2538=\"Log value\",DataLog!W2538,\"\")","v":""},{"$f":"IF(DataLog!$C2538=\"Log value\",DataLog!X2538,\"\")","v":""},{"$f":"IF(DataLog!$C2538=\"Log value\",DataLog!Y2538,\"\")","v":""},{"$f":"IF(DataLog!$C2538=\"Log value\",DataLog!Z2538,\"\")","v":""},{"$f":"IF(DataLog!$C2538=\"Log value\",DataLog!AA2538,\"\")","v":""},{"$f":"IF(DataLog!$C2538=\"Log value\",DataLog!AB2538,\"\")","v":""},{"$f":"IF(DataLog!$C2538=\"Log value\",DataLog!AC2538,\"\")","v":""},{"$f":"IF(DataLog!$C2538=\"Log value\",DataLog!AD2538,\"\")","v":""},{"$f":"IF(DataLog!$C2538=\"Log value\",DataLog!AE2538,\"\")","v":""},{"$f":"IF(DataLog!$C2538=\"Log value\",DataLog!AF2538,\"\")","v":""},{"$f":"IF(DataLog!$C2538=\"Log value\",DataLog!AG2538,\"\")","v":""},{"$f":"IF(DataLog!$C2538=\"Log value\",DataLog!AH2538,\"\")","v":""},{"$f":"IF(DataLog!$C2538=\"Log value\",DataLog!AI2538,\"\")","v":""},{"$f":"IF(DataLog!$C2538=\"Log value\",DataLog!AJ2538,\"\")","v":""},{"$f":"IF(DataLog!$C2538=\"Log value\",DataLog!AK2538,\"\")","v":""},{"$f":"IF(DataLog!$C2538=\"Log value\",DataLog!AL2538,\"\")","v":""},{"$f":"IF(DataLog!$C2538=\"Log value\",DataLog!AM2538,\"\")","v":""}]
[null,null,null,null,null,null,{"$f":"IF(DataLog!$C2541=\"Log value\",DataLog!D2541&\"_\"&TEXT(DataLog!B2541,\"åååå-mm-dd\"),\"\")","v":""},{"$f":"IF(DataLog!$C2541=\"Log value\",DataLog!E2541,\"\")","v":""},{"$f":"IF(DataLog!$C2541=\"Log value\",DataLog!F2541,\"\")","v":""},{"$f":"IF(DataLog!$C2541=\"Log value\",DataLog!G2541,\"\")","v":""},{"$f":"IF(DataLog!$C2541=\"Log value\",DataLog!H2541,\"\")","v":""},{"$f":"IF(DataLog!$C2541=\"Log value\",DataLog!I2541,\"\")","v":""},{"$f":"IF(DataLog!$C2541=\"Log value\",DataLog!J2541,\"\")","v":""},{"$f":"IF(DataLog!$C2541=\"Log value\",DataLog!K2541,\"\")","v":""},{"$f":"IF(DataLog!$C2541=\"Log value\",DataLog!L2541,\"\")","v":""},{"$f":"IF(DataLog!$C2541=\"Log value\",DataLog!M2541,\"\")","v":""},{"$f":"IF(DataLog!$C2541=\"Log value\",DataLog!N2541,\"\")","v":""},{"$f":"IF(DataLog!$C2541=\"Log value\",DataLog!O2541,\"\")","v":""},{"$f":"IF(DataLog!$C2541=\"Log value\",DataLog!P2541,\"\")","v":""},{"$f":"IF(DataLog!$C2541=\"Log value\",DataLog!Q2541,\"\")","v":""},{"$f":"IF(DataLog!$C2541=\"Log value\",DataLog!R2541,\"\")","v":""},{"$f":"IF(DataLog!$C2541=\"Log value\",DataLog!S2541,\"\")","v":""},{"$f":"IF(DataLog!$C2541=\"Log value\",DataLog!T2541,\"\")","v":""},{"$f":"IF(DataLog!$C2541=\"Log value\",DataLog!U2541,\"\")","v":""},{"$f":"IF(DataLog!$C2541=\"Log value\",DataLog!V2541,\"\")","v":""},{"$f":"IF(DataLog!$C2541=\"Log value\",DataLog!W2541,\"\")","v":""},{"$f":"IF(DataLog!$C2541=\"Log value\",DataLog!X2541,\"\")","v":""},{"$f":"IF(DataLog!$C2541=\"Log value\",DataLog!Y2541,\"\")","v":""},{"$f":"IF(DataLog!$C2541=\"Log value\",DataLog!Z2541,\"\")","v":""},{"$f":"IF(DataLog!$C2541=\"Log value\",DataLog!AA2541,\"\")","v":""},{"$f":"IF(DataLog!$C2541=\"Log value\",DataLog!AB2541,\"\")","v":""},{"$f":"IF(DataLog!$C2541=\"Log value\",DataLog!AC2541,\"\")","v":""},{"$f":"IF(DataLog!$C2541=\"Log value\",DataLog!AD2541,\"\")","v":""},{"$f":"IF(DataLog!$C2541=\"Log value\",DataLog!AE2541,\"\")","v":""},{"$f":"IF(DataLog!$C2541=\"Log value\",DataLog!AF2541,\"\")","v":""},{"$f":"IF(DataLog!$C2541=\"Log value\",DataLog!AG2541,\"\")","v":""},{"$f":"IF(DataLog!$C2541=\"Log value\",DataLog!AH2541,\"\")","v":""},{"$f":"IF(DataLog!$C2541=\"Log value\",DataLog!AI2541,\"\")","v":""},{"$f":"IF(DataLog!$C2541=\"Log value\",DataLog!AJ2541,\"\")","v":""},{"$f":"IF(DataLog!$C2541=\"Log value\",DataLog!AK2541,\"\")","v":""},{"$f":"IF(DataLog!$C2541=\"Log value\",DataLog!AL2541,\"\")","v":""},{"$f":"IF(DataLog!$C2541=\"Log value\",DataLog!AM2541,\"\")","v":""}]
[null,null,null,null,null,null,{"$f":"IF(DataLog!$C2543=\"Log value\",DataLog!D2543&\"_\"&TEXT(DataLog!B2543,\"åååå-mm-dd\"),\"\")","v":""},{"$f":"IF(DataLog!$C2543=\"Log value\",DataLog!E2543,\"\")","v":""},{"$f":"IF(DataLog!$C2543=\"Log value\",DataLog!F2543,\"\")","v":""},{"$f":"IF(DataLog!$C2543=\"Log value\",DataLog!G2543,\"\")","v":""},{"$f":"IF(DataLog!$C2543=\"Log value\",DataLog!H2543,\"\")","v":""},{"$f":"IF(DataLog!$C2543=\"Log value\",DataLog!I2543,\"\")","v":""},{"$f":"IF(DataLog!$C2543=\"Log value\",DataLog!J2543,\"\")","v":""},{"$f":"IF(DataLog!$C2543=\"Log value\",DataLog!K2543,\"\")","v":""},{"$f":"IF(DataLog!$C2543=\"Log value\",DataLog!L2543,\"\")","v":""},{"$f":"IF(DataLog!$C2543=\"Log value\",DataLog!M2543,\"\")","v":""},{"$f":"IF(DataLog!$C2543=\"Log value\",DataLog!N2543,\"\")","v":""},{"$f":"IF(DataLog!$C2543=\"Log value\",DataLog!O2543,\"\")","v":""},{"$f":"IF(DataLog!$C2543=\"Log value\",DataLog!P2543,\"\")","v":""},{"$f":"IF(DataLog!$C2543=\"Log value\",DataLog!Q2543,\"\")","v":""},{"$f":"IF(DataLog!$C2543=\"Log value\",DataLog!R2543,\"\")","v":""},{"$f":"IF(DataLog!$C2543=\"Log value\",DataLog!S2543,\"\")","v":""},{"$f":"IF(DataLog!$C2543=\"Log value\",DataLog!T2543,\"\")","v":""},{"$f":"IF(DataLog!$C2543=\"Log value\",DataLog!U2543,\"\")","v":""},{"$f":"IF(DataLog!$C2543=\"Log value\",DataLog!V2543,\"\")","v":""},{"$f":"IF(DataLog!$C2543=\"Log value\",DataLog!W2543,\"\")","v":""},{"$f":"IF(DataLog!$C2543=\"Log value\",DataLog!X2543,\"\")","v":""},{"$f":"IF(DataLog!$C2543=\"Log value\",DataLog!Y2543,\"\")","v":""},{"$f":"IF(DataLog!$C2543=\"Log value\",DataLog!Z2543,\"\")","v":""},{"$f":"IF(DataLog!$C2543=\"Log value\",DataLog!AA2543,\"\")","v":""},{"$f":"IF(DataLog!$C2543=\"Log value\",DataLog!AB2543,\"\")","v":""},{"$f":"IF(DataLog!$C2543=\"Log value\",DataLog!AC2543,\"\")","v":""},{"$f":"IF(DataLog!$C2543=\"Log value\",DataLog!AD2543,\"\")","v":""},{"$f":"IF(DataLog!$C2543=\"Log value\",DataLog!AE2543,\"\")","v":""},{"$f":"IF(DataLog!$C2543=\"Log value\",DataLog!AF2543,\"\")","v":""},{"$f":"IF(DataLog!$C2543=\"Log value\",DataLog!AG2543,\"\")","v":""},{"$f":"IF(DataLog!$C2543=\"Log value\",DataLog!AH2543,\"\")","v":""},{"$f":"IF(DataLog!$C2543=\"Log value\",DataLog!AI2543,\"\")","v":""},{"$f":"IF(DataLog!$C2543=\"Log value\",DataLog!AJ2543,\"\")","v":""},{"$f":"IF(DataLog!$C2543=\"Log value\",DataLog!AK2543,\"\")","v":""},{"$f":"IF(DataLog!$C2543=\"Log value\",DataLog!AL2543,\"\")","v":""},{"$f":"IF(DataLog!$C2543=\"Log value\",DataLog!AM2543,\"\")","v":""}]
[null,null,null,null,null,null,{"$f":"IF(DataLog!$C2544=\"Log value\",DataLog!D2544&\"_\"&TEXT(DataLog!B2544,\"åååå-mm-dd\"),\"\")","v":""},{"$f":"IF(DataLog!$C2544=\"Log value\",DataLog!E2544,\"\")","v":""},{"$f":"IF(DataLog!$C2544=\"Log value\",DataLog!F2544,\"\")","v":""},{"$f":"IF(DataLog!$C2544=\"Log value\",DataLog!G2544,\"\")","v":""},{"$f":"IF(DataLog!$C2544=\"Log value\",DataLog!H2544,\"\")","v":""},{"$f":"IF(DataLog!$C2544=\"Log value\",DataLog!I2544,\"\")","v":""},{"$f":"IF(DataLog!$C2544=\"Log value\",DataLog!J2544,\"\")","v":""},{"$f":"IF(DataLog!$C2544=\"Log value\",DataLog!K2544,\"\")","v":""},{"$f":"IF(DataLog!$C2544=\"Log value\",DataLog!L2544,\"\")","v":""},{"$f":"IF(DataLog!$C2544=\"Log value\",DataLog!M2544,\"\")","v":""},{"$f":"IF(DataLog!$C2544=\"Log value\",DataLog!N2544,\"\")","v":""},{"$f":"IF(DataLog!$C2544=\"Log value\",DataLog!O2544,\"\")","v":""},{"$f":"IF(DataLog!$C2544=\"Log value\",DataLog!P2544,\"\")","v":""},{"$f":"IF(DataLog!$C2544=\"Log value\",DataLog!Q2544,\"\")","v":""},{"$f":"IF(DataLog!$C2544=\"Log value\",DataLog!R2544,\"\")","v":""},{"$f":"IF(DataLog!$C2544=\"Log value\",DataLog!S2544,\"\")","v":""},{"$f":"IF(DataLog!$C2544=\"Log value\",DataLog!T2544,\"\")","v":""},{"$f":"IF(DataLog!$C2544=\"Log value\",DataLog!U2544,\"\")","v":""},{"$f":"IF(DataLog!$C2544=\"Log value\",DataLog!V2544,\"\")","v":""},{"$f":"IF(DataLog!$C2544=\"Log value\",DataLog!W2544,\"\")","v":""},{"$f":"IF(DataLog!$C2544=\"Log value\",DataLog!X2544,\"\")","v":""},{"$f":"IF(DataLog!$C2544=\"Log value\",DataLog!Y2544,\"\")","v":""},{"$f":"IF(DataLog!$C2544=\"Log value\",DataLog!Z2544,\"\")","v":""},{"$f":"IF(DataLog!$C2544=\"Log value\",DataLog!AA2544,\"\")","v":""},{"$f":"IF(DataLog!$C2544=\"Log value\",DataLog!AB2544,\"\")","v":""},{"$f":"IF(DataLog!$C2544=\"Log value\",DataLog!AC2544,\"\")","v":""},{"$f":"IF(DataLog!$C2544=\"Log value\",DataLog!AD2544,\"\")","v":""},{"$f":"IF(DataLog!$C2544=\"Log value\",DataLog!AE2544,\"\")","v":""},{"$f":"IF(DataLog!$C2544=\"Log value\",DataLog!AF2544,\"\")","v":""},{"$f":"IF(DataLog!$C2544=\"Log value\",DataLog!AG2544,\"\")","v":""},{"$f":"IF(DataLog!$C2544=\"Log value\",DataLog!AH2544,\"\")","v":""},{"$f":"IF(DataLog!$C2544=\"Log value\",DataLog!AI2544,\"\")","v":""},{"$f":"IF(DataLog!$C2544=\"Log value\",DataLog!AJ2544,\"\")","v":""},{"$f":"IF(DataLog!$C2544=\"Log value\",DataLog!AK2544,\"\")","v":""},{"$f":"IF(DataLog!$C2544=\"Log value\",DataLog!AL2544,\"\")","v":""},{"$f":"IF(DataLog!$C2544=\"Log value\",DataLog!AM2544,\"\")","v":""}]
[null,null,null,null,null,null,{"$f":"IF(DataLog!$C2547=\"Log value\",DataLog!D2547&\"_\"&TEXT(DataLog!B2547,\"åååå-mm-dd\"),\"\")","v":""},{"$f":"IF(DataLog!$C2547=\"Log value\",DataLog!E2547,\"\")","v":""},{"$f":"IF(DataLog!$C2547=\"Log value\",DataLog!F2547,\"\")","v":""},{"$f":"IF(DataLog!$C2547=\"Log value\",DataLog!G2547,\"\")","v":""},{"$f":"IF(DataLog!$C2547=\"Log value\",DataLog!H2547,\"\")","v":""},{"$f":"IF(DataLog!$C2547=\"Log value\",DataLog!I2547,\"\")","v":""},{"$f":"IF(DataLog!$C2547=\"Log value\",DataLog!J2547,\"\")","v":""},{"$f":"IF(DataLog!$C2547=\"Log value\",DataLog!K2547,\"\")","v":""},{"$f":"IF(DataLog!$C2547=\"Log value\",DataLog!L2547,\"\")","v":""},{"$f":"IF(DataLog!$C2547=\"Log value\",DataLog!M2547,\"\")","v":""},{"$f":"IF(DataLog!$C2547=\"Log value\",DataLog!N2547,\"\")","v":""},{"$f":"IF(DataLog!$C2547=\"Log value\",DataLog!O2547,\"\")","v":""},{"$f":"IF(DataLog!$C2547=\"Log value\",DataLog!P2547,\"\")","v":""},{"$f":"IF(DataLog!$C2547=\"Log value\",DataLog!Q2547,\"\")","v":""},{"$f":"IF(DataLog!$C2547=\"Log value\",DataLog!R2547,\"\")","v":""},{"$f":"IF(DataLog!$C2547=\"Log value\",DataLog!S2547,\"\")","v":""},{"$f":"IF(DataLog!$C2547=\"Log value\",DataLog!T2547,\"\")","v":""},{"$f":"IF(DataLog!$C2547=\"Log value\",DataLog!U2547,\"\")","v":""},{"$f":"IF(DataLog!$C2547=\"Log value\",DataLog!V2547,\"\")","v":""},{"$f":"IF(DataLog!$C2547=\"Log value\",DataLog!W2547,\"\")","v":""},{"$f":"IF(DataLog!$C2547=\"Log value\",DataLog!X2547,\"\")","v":""},{"$f":"IF(DataLog!$C2547=\"Log value\",DataLog!Y2547,\"\")","v":""},{"$f":"IF(DataLog!$C2547=\"Log value\",DataLog!Z2547,\"\")","v":""},{"$f":"IF(DataLog!$C2547=\"Log value\",DataLog!AA2547,\"\")","v":""},{"$f":"IF(DataLog!$C2547=\"Log value\",DataLog!AB2547,\"\")","v":""},{"$f":"IF(DataLog!$C2547=\"Log value\",DataLog!AC2547,\"\")","v":""},{"$f":"IF(DataLog!$C2547=\"Log value\",DataLog!AD2547,\"\")","v":""},{"$f":"IF(DataLog!$C2547=\"Log value\",DataLog!AE2547,\"\")","v":""},{"$f":"IF(DataLog!$C2547=\"Log value\",DataLog!AF2547,\"\")","v":""},{"$f":"IF(DataLog!$C2547=\"Log value\",DataLog!AG2547,\"\")","v":""},{"$f":"IF(DataLog!$C2547=\"Log value\",DataLog!AH2547,\"\")","v":""},{"$f":"IF(DataLog!$C2547=\"Log value\",DataLog!AI2547,\"\")","v":""},{"$f":"IF(DataLog!$C2547=\"Log value\",DataLog!AJ2547,\"\")","v":""},{"$f":"IF(DataLog!$C2547=\"Log value\",DataLog!AK2547,\"\")","v":""},{"$f":"IF(DataLog!$C2547=\"Log value\",DataLog!AL2547,\"\")","v":""},{"$f":"IF(DataLog!$C2547=\"Log value\",DataLog!AM2547,\"\")","v":""}]
[null,null,null,null,null,null,{"$f":"IF(DataLog!$C2548=\"Log value\",DataLog!D2548&\"_\"&TEXT(DataLog!B2548,\"åååå-mm-dd\"),\"\")","v":""},{"$f":"IF(DataLog!$C2548=\"Log value\",DataLog!E2548,\"\")","v":""},{"$f":"IF(DataLog!$C2548=\"Log value\",DataLog!F2548,\"\")","v":""},{"$f":"IF(DataLog!$C2548=\"Log value\",DataLog!G2548,\"\")","v":""},{"$f":"IF(DataLog!$C2548=\"Log value\",DataLog!H2548,\"\")","v":""},{"$f":"IF(DataLog!$C2548=\"Log value\",DataLog!I2548,\"\")","v":""},{"$f":"IF(DataLog!$C2548=\"Log value\",DataLog!J2548,\"\")","v":""},{"$f":"IF(DataLog!$C2548=\"Log value\",DataLog!K2548,\"\")","v":""},{"$f":"IF(DataLog!$C2548=\"Log value\",DataLog!L2548,\"\")","v":""},{"$f":"IF(DataLog!$C2548=\"Log value\",DataLog!M2548,\"\")","v":""},{"$f":"IF(DataLog!$C2548=\"Log value\",DataLog!N2548,\"\")","v":""},{"$f":"IF(DataLog!$C2548=\"Log value\",DataLog!O2548,\"\")","v":""},{"$f":"IF(DataLog!$C2548=\"Log value\",DataLog!P2548,\"\")","v":""},{"$f":"IF(DataLog!$C2548=\"Log value\",DataLog!Q2548,\"\")","v":""},{"$f":"IF(DataLog!$C2548=\"Log value\",DataLog!R2548,\"\")","v":""},{"$f":"IF(DataLog!$C2548=\"Log value\",DataLog!S2548,\"\")","v":""},{"$f":"IF(DataLog!$C2548=\"Log value\",DataLog!T2548,\"\")","v":""},{"$f":"IF(DataLog!$C2548=\"Log value\",DataLog!U2548,\"\")","v":""},{"$f":"IF(DataLog!$C2548=\"Log value\",DataLog!V2548,\"\")","v":""},{"$f":"IF(DataLog!$C2548=\"Log value\",DataLog!W2548,\"\")","v":""},{"$f":"IF(DataLog!$C2548=\"Log value\",DataLog!X2548,\"\")","v":""},{"$f":"IF(DataLog!$C2548=\"Log value\",DataLog!Y2548,\"\")","v":""},{"$f":"IF(DataLog!$C2548=\"Log value\",DataLog!Z2548,\"\")","v":""},{"$f":"IF(DataLog!$C2548=\"Log value\",DataLog!AA2548,\"\")","v":""},{"$f":"IF(DataLog!$C2548=\"Log value\",DataLog!AB2548,\"\")","v":""},{"$f":"IF(DataLog!$C2548=\"Log value\",DataLog!AC2548,\"\")","v":""},{"$f":"IF(DataLog!$C2548=\"Log value\",DataLog!AD2548,\"\")","v":""},{"$f":"IF(DataLog!$C2548=\"Log value\",DataLog!AE2548,\"\")","v":""},{"$f":"IF(DataLog!$C2548=\"Log value\",DataLog!AF2548,\"\")","v":""},{"$f":"IF(DataLog!$C2548=\"Log value\",DataLog!AG2548,\"\")","v":""},{"$f":"IF(DataLog!$C2548=\"Log value\",DataLog!AH2548,\"\")","v":""},{"$f":"IF(DataLog!$C2548=\"Log value\",DataLog!AI2548,\"\")","v":""},{"$f":"IF(DataLog!$C2548=\"Log value\",DataLog!AJ2548,\"\")","v":""},{"$f":"IF(DataLog!$C2548=\"Log value\",DataLog!AK2548,\"\")","v":""},{"$f":"IF(DataLog!$C2548=\"Log value\",DataLog!AL2548,\"\")","v":""},{"$f":"IF(DataLog!$C2548=\"Log value\",DataLog!AM2548,\"\")","v":""}]
[null,null,null,null,null,null,{"$f":"IF(DataLog!$C2552=\"Log value\",DataLog!D2552&\"_\"&TEXT(DataLog!B2552,\"åååå-mm-dd\"),\"\")","v":""},{"$f":"IF(DataLog!$C2552=\"Log value\",DataLog!E2552,\"\")","v":""},{"$f":"IF(DataLog!$C2552=\"Log value\",DataLog!F2552,\"\")","v":""},{"$f":"IF(DataLog!$C2552=\"Log value\",DataLog!G2552,\"\")","v":""},{"$f":"IF(DataLog!$C2552=\"Log value\",DataLog!H2552,\"\")","v":""},{"$f":"IF(DataLog!$C2552=\"Log value\",DataLog!I2552,\"\")","v":""},{"$f":"IF(DataLog!$C2552=\"Log value\",DataLog!J2552,\"\")","v":""},{"$f":"IF(DataLog!$C2552=\"Log value\",DataLog!K2552,\"\")","v":""},{"$f":"IF(DataLog!$C2552=\"Log value\",DataLog!L2552,\"\")","v":""},{"$f":"IF(DataLog!$C2552=\"Log value\",DataLog!M2552,\"\")","v":""},{"$f":"IF(DataLog!$C2552=\"Log value\",DataLog!N2552,\"\")","v":""},{"$f":"IF(DataLog!$C2552=\"Log value\",DataLog!O2552,\"\")","v":""},{"$f":"IF(DataLog!$C2552=\"Log value\",DataLog!P2552,\"\")","v":""},{"$f":"IF(DataLog!$C2552=\"Log value\",DataLog!Q2552,\"\")","v":""},{"$f":"IF(DataLog!$C2552=\"Log value\",DataLog!R2552,\"\")","v":""},{"$f":"IF(DataLog!$C2552=\"Log value\",DataLog!S2552,\"\")","v":""},{"$f":"IF(DataLog!$C2552=\"Log value\",DataLog!T2552,\"\")","v":""},{"$f":"IF(DataLog!$C2552=\"Log value\",DataLog!U2552,\"\")","v":""},{"$f":"IF(DataLog!$C2552=\"Log value\",DataLog!V2552,\"\")","v":""},{"$f":"IF(DataLog!$C2552=\"Log value\",DataLog!W2552,\"\")","v":""},{"$f":"IF(DataLog!$C2552=\"Log value\",DataLog!X2552,\"\")","v":""},{"$f":"IF(DataLog!$C2552=\"Log value\",DataLog!Y2552,\"\")","v":""},{"$f":"IF(DataLog!$C2552=\"Log value\",DataLog!Z2552,\"\")","v":""},{"$f":"IF(DataLog!$C2552=\"Log value\",DataLog!AA2552,\"\")","v":""},{"$f":"IF(DataLog!$C2552=\"Log value\",DataLog!AB2552,\"\")","v":""},{"$f":"IF(DataLog!$C2552=\"Log value\",DataLog!AC2552,\"\")","v":""},{"$f":"IF(DataLog!$C2552=\"Log value\",DataLog!AD2552,\"\")","v":""},{"$f":"IF(DataLog!$C2552=\"Log value\",DataLog!AE2552,\"\")","v":""},{"$f":"IF(DataLog!$C2552=\"Log value\",DataLog!AF2552,\"\")","v":""},{"$f":"IF(DataLog!$C2552=\"Log value\",DataLog!AG2552,\"\")","v":""},{"$f":"IF(DataLog!$C2552=\"Log value\",DataLog!AH2552,\"\")","v":""},{"$f":"IF(DataLog!$C2552=\"Log value\",DataLog!AI2552,\"\")","v":""},{"$f":"IF(DataLog!$C2552=\"Log value\",DataLog!AJ2552,\"\")","v":""},{"$f":"IF(DataLog!$C2552=\"Log value\",DataLog!AK2552,\"\")","v":""},{"$f":"IF(DataLog!$C2552=\"Log value\",DataLog!AL2552,\"\")","v":""},{"$f":"IF(DataLog!$C2552=\"Log value\",DataLog!AM2552,\"\")","v":""}]
[null,null,null,null,null,null,{"$f":"IF(DataLog!$C2553=\"Log value\",DataLog!D2553&\"_\"&TEXT(DataLog!B2553,\"åååå-mm-dd\"),\"\")","v":""},{"$f":"IF(DataLog!$C2553=\"Log value\",DataLog!E2553,\"\")","v":""},{"$f":"IF(DataLog!$C2553=\"Log value\",DataLog!F2553,\"\")","v":""},{"$f":"IF(DataLog!$C2553=\"Log value\",DataLog!G2553,\"\")","v":""},{"$f":"IF(DataLog!$C2553=\"Log value\",DataLog!H2553,\"\")","v":""},{"$f":"IF(DataLog!$C2553=\"Log value\",DataLog!I2553,\"\")","v":""},{"$f":"IF(DataLog!$C2553=\"Log value\",DataLog!J2553,\"\")","v":""},{"$f":"IF(DataLog!$C2553=\"Log value\",DataLog!K2553,\"\")","v":""},{"$f":"IF(DataLog!$C2553=\"Log value\",DataLog!L2553,\"\")","v":""},{"$f":"IF(DataLog!$C2553=\"Log value\",DataLog!M2553,\"\")","v":""},{"$f":"IF(DataLog!$C2553=\"Log value\",DataLog!N2553,\"\")","v":""},{"$f":"IF(DataLog!$C2553=\"Log value\",DataLog!O2553,\"\")","v":""},{"$f":"IF(DataLog!$C2553=\"Log value\",DataLog!P2553,\"\")","v":""},{"$f":"IF(DataLog!$C2553=\"Log value\",DataLog!Q2553,\"\")","v":""},{"$f":"IF(DataLog!$C2553=\"Log value\",DataLog!R2553,\"\")","v":""},{"$f":"IF(DataLog!$C2553=\"Log value\",DataLog!S2553,\"\")","v":""},{"$f":"IF(DataLog!$C2553=\"Log value\",DataLog!T2553,\"\")","v":""},{"$f":"IF(DataLog!$C2553=\"Log value\",DataLog!U2553,\"\")","v":""},{"$f":"IF(DataLog!$C2553=\"Log value\",DataLog!V2553,\"\")","v":""},{"$f":"IF(DataLog!$C2553=\"Log value\",DataLog!W2553,\"\")","v":""},{"$f":"IF(DataLog!$C2553=\"Log value\",DataLog!X2553,\"\")","v":""},{"$f":"IF(DataLog!$C2553=\"Log value\",DataLog!Y2553,\"\")","v":""},{"$f":"IF(DataLog!$C2553=\"Log value\",DataLog!Z2553,\"\")","v":""},{"$f":"IF(DataLog!$C2553=\"Log value\",DataLog!AA2553,\"\")","v":""},{"$f":"IF(DataLog!$C2553=\"Log value\",DataLog!AB2553,\"\")","v":""},{"$f":"IF(DataLog!$C2553=\"Log value\",DataLog!AC2553,\"\")","v":""},{"$f":"IF(DataLog!$C2553=\"Log value\",DataLog!AD2553,\"\")","v":""},{"$f":"IF(DataLog!$C2553=\"Log value\",DataLog!AE2553,\"\")","v":""},{"$f":"IF(DataLog!$C2553=\"Log value\",DataLog!AF2553,\"\")","v":""},{"$f":"IF(DataLog!$C2553=\"Log value\",DataLog!AG2553,\"\")","v":""},{"$f":"IF(DataLog!$C2553=\"Log value\",DataLog!AH2553,\"\")","v":""},{"$f":"IF(DataLog!$C2553=\"Log value\",DataLog!AI2553,\"\")","v":""},{"$f":"IF(DataLog!$C2553=\"Log value\",DataLog!AJ2553,\"\")","v":""},{"$f":"IF(DataLog!$C2553=\"Log value\",DataLog!AK2553,\"\")","v":""},{"$f":"IF(DataLog!$C2553=\"Log value\",DataLog!AL2553,\"\")","v":""},{"$f":"IF(DataLog!$C2553=\"Log value\",DataLog!AM2553,\"\")","v":""}]
[null,null,null,null,null,null,{"$f":"IF(DataLog!$C2556=\"Log value\",DataLog!D2556&\"_\"&TEXT(DataLog!B2556,\"åååå-mm-dd\"),\"\")","v":""},{"$f":"IF(DataLog!$C2556=\"Log value\",DataLog!E2556,\"\")","v":""},{"$f":"IF(DataLog!$C2556=\"Log value\",DataLog!F2556,\"\")","v":""},{"$f":"IF(DataLog!$C2556=\"Log value\",DataLog!G2556,\"\")","v":""},{"$f":"IF(DataLog!$C2556=\"Log value\",DataLog!H2556,\"\")","v":""},{"$f":"IF(DataLog!$C2556=\"Log value\",DataLog!I2556,\"\")","v":""},{"$f":"IF(DataLog!$C2556=\"Log value\",DataLog!J2556,\"\")","v":""},{"$f":"IF(DataLog!$C2556=\"Log value\",DataLog!K2556,\"\")","v":""},{"$f":"IF(DataLog!$C2556=\"Log value\",DataLog!L2556,\"\")","v":""},{"$f":"IF(DataLog!$C2556=\"Log value\",DataLog!M2556,\"\")","v":""},{"$f":"IF(DataLog!$C2556=\"Log value\",DataLog!N2556,\"\")","v":""},{"$f":"IF(DataLog!$C2556=\"Log value\",DataLog!O2556,\"\")","v":""},{"$f":"IF(DataLog!$C2556=\"Log value\",DataLog!P2556,\"\")","v":""},{"$f":"IF(DataLog!$C2556=\"Log value\",DataLog!Q2556,\"\")","v":""},{"$f":"IF(DataLog!$C2556=\"Log value\",DataLog!R2556,\"\")","v":""},{"$f":"IF(DataLog!$C2556=\"Log value\",DataLog!S2556,\"\")","v":""},{"$f":"IF(DataLog!$C2556=\"Log value\",DataLog!T2556,\"\")","v":""},{"$f":"IF(DataLog!$C2556=\"Log value\",DataLog!U2556,\"\")","v":""},{"$f":"IF(DataLog!$C2556=\"Log value\",DataLog!V2556,\"\")","v":""},{"$f":"IF(DataLog!$C2556=\"Log value\",DataLog!W2556,\"\")","v":""},{"$f":"IF(DataLog!$C2556=\"Log value\",DataLog!X2556,\"\")","v":""},{"$f":"IF(DataLog!$C2556=\"Log value\",DataLog!Y2556,\"\")","v":""},{"$f":"IF(DataLog!$C2556=\"Log value\",DataLog!Z2556,\"\")","v":""},{"$f":"IF(DataLog!$C2556=\"Log value\",DataLog!AA2556,\"\")","v":""},{"$f":"IF(DataLog!$C2556=\"Log value\",DataLog!AB2556,\"\")","v":""},{"$f":"IF(DataLog!$C2556=\"Log value\",DataLog!AC2556,\"\")","v":""},{"$f":"IF(DataLog!$C2556=\"Log value\",DataLog!AD2556,\"\")","v":""},{"$f":"IF(DataLog!$C2556=\"Log value\",DataLog!AE2556,\"\")","v":""},{"$f":"IF(DataLog!$C2556=\"Log value\",DataLog!AF2556,\"\")","v":""},{"$f":"IF(DataLog!$C2556=\"Log value\",DataLog!AG2556,\"\")","v":""},{"$f":"IF(DataLog!$C2556=\"Log value\",DataLog!AH2556,\"\")","v":""},{"$f":"IF(DataLog!$C2556=\"Log value\",DataLog!AI2556,\"\")","v":""},{"$f":"IF(DataLog!$C2556=\"Log value\",DataLog!AJ2556,\"\")","v":""},{"$f":"IF(DataLog!$C2556=\"Log value\",DataLog!AK2556,\"\")","v":""},{"$f":"IF(DataLog!$C2556=\"Log value\",DataLog!AL2556,\"\")","v":""},{"$f":"IF(DataLog!$C2556=\"Log value\",DataLog!AM2556,\"\")","v":""}]
[null,null,null,null,null,null,{"$f":"IF(DataLog!$C2559=\"Log value\",DataLog!D2559&\"_\"&TEXT(DataLog!B2559,\"åååå-mm-dd\"),\"\")","v":""},{"$f":"IF(DataLog!$C2559=\"Log value\",DataLog!E2559,\"\")","v":""},{"$f":"IF(DataLog!$C2559=\"Log value\",DataLog!F2559,\"\")","v":""},{"$f":"IF(DataLog!$C2559=\"Log value\",DataLog!G2559,\"\")","v":""},{"$f":"IF(DataLog!$C2559=\"Log value\",DataLog!H2559,\"\")","v":""},{"$f":"IF(DataLog!$C2559=\"Log value\",DataLog!I2559,\"\")","v":""},{"$f":"IF(DataLog!$C2559=\"Log value\",DataLog!J2559,\"\")","v":""},{"$f":"IF(DataLog!$C2559=\"Log value\",DataLog!K2559,\"\")","v":""},{"$f":"IF(DataLog!$C2559=\"Log value\",DataLog!L2559,\"\")","v":""},{"$f":"IF(DataLog!$C2559=\"Log value\",DataLog!M2559,\"\")","v":""},{"$f":"IF(DataLog!$C2559=\"Log value\",DataLog!N2559,\"\")","v":""},{"$f":"IF(DataLog!$C2559=\"Log value\",DataLog!O2559,\"\")","v":""},{"$f":"IF(DataLog!$C2559=\"Log value\",DataLog!P2559,\"\")","v":""},{"$f":"IF(DataLog!$C2559=\"Log value\",DataLog!Q2559,\"\")","v":""},{"$f":"IF(DataLog!$C2559=\"Log value\",DataLog!R2559,\"\")","v":""},{"$f":"IF(DataLog!$C2559=\"Log value\",DataLog!S2559,\"\")","v":""},{"$f":"IF(DataLog!$C2559=\"Log value\",DataLog!T2559,\"\")","v":""},{"$f":"IF(DataLog!$C2559=\"Log value\",DataLog!U2559,\"\")","v":""},{"$f":"IF(DataLog!$C2559=\"Log value\",DataLog!V2559,\"\")","v":""},{"$f":"IF(DataLog!$C2559=\"Log value\",DataLog!W2559,\"\")","v":""},{"$f":"IF(DataLog!$C2559=\"Log value\",DataLog!X2559,\"\")","v":""},{"$f":"IF(DataLog!$C2559=\"Log value\",DataLog!Y2559,\"\")","v":""},{"$f":"IF(DataLog!$C2559=\"Log value\",DataLog!Z2559,\"\")","v":""},{"$f":"IF(DataLog!$C2559=\"Log value\",DataLog!AA2559,\"\")","v":""},{"$f":"IF(DataLog!$C2559=\"Log value\",DataLog!AB2559,\"\")","v":""},{"$f":"IF(DataLog!$C2559=\"Log value\",DataLog!AC2559,\"\")","v":""},{"$f":"IF(DataLog!$C2559=\"Log value\",DataLog!AD2559,\"\")","v":""},{"$f":"IF(DataLog!$C2559=\"Log value\",DataLog!AE2559,\"\")","v":""},{"$f":"IF(DataLog!$C2559=\"Log value\",DataLog!AF2559,\"\")","v":""},{"$f":"IF(DataLog!$C2559=\"Log value\",DataLog!AG2559,\"\")","v":""},{"$f":"IF(DataLog!$C2559=\"Log value\",DataLog!AH2559,\"\")","v":""},{"$f":"IF(DataLog!$C2559=\"Log value\",DataLog!AI2559,\"\")","v":""},{"$f":"IF(DataLog!$C2559=\"Log value\",DataLog!AJ2559,\"\")","v":""},{"$f":"IF(DataLog!$C2559=\"Log value\",DataLog!AK2559,\"\")","v":""},{"$f":"IF(DataLog!$C2559=\"Log value\",DataLog!AL2559,\"\")","v":""},{"$f":"IF(DataLog!$C2559=\"Log value\",DataLog!AM2559,\"\")","v":""}]
[null,null,null,null,null,null,{"$f":"IF(DataLog!$C2561=\"Log value\",DataLog!D2561&\"_\"&TEXT(DataLog!B2561,\"åååå-mm-dd\"),\"\")","v":""},{"$f":"IF(DataLog!$C2561=\"Log value\",DataLog!E2561,\"\")","v":""},{"$f":"IF(DataLog!$C2561=\"Log value\",DataLog!F2561,\"\")","v":""},{"$f":"IF(DataLog!$C2561=\"Log value\",DataLog!G2561,\"\")","v":""},{"$f":"IF(DataLog!$C2561=\"Log value\",DataLog!H2561,\"\")","v":""},{"$f":"IF(DataLog!$C2561=\"Log value\",DataLog!I2561,\"\")","v":""},{"$f":"IF(DataLog!$C2561=\"Log value\",DataLog!J2561,\"\")","v":""},{"$f":"IF(DataLog!$C2561=\"Log value\",DataLog!K2561,\"\")","v":""},{"$f":"IF(DataLog!$C2561=\"Log value\",DataLog!L2561,\"\")","v":""},{"$f":"IF(DataLog!$C2561=\"Log value\",DataLog!M2561,\"\")","v":""},{"$f":"IF(DataLog!$C2561=\"Log value\",DataLog!N2561,\"\")","v":""},{"$f":"IF(DataLog!$C2561=\"Log value\",DataLog!O2561,\"\")","v":""},{"$f":"IF(DataLog!$C2561=\"Log value\",DataLog!P2561,\"\")","v":""},{"$f":"IF(DataLog!$C2561=\"Log value\",DataLog!Q2561,\"\")","v":""},{"$f":"IF(DataLog!$C2561=\"Log value\",DataLog!R2561,\"\")","v":""},{"$f":"IF(DataLog!$C2561=\"Log value\",DataLog!S2561,\"\")","v":""},{"$f":"IF(DataLog!$C2561=\"Log value\",DataLog!T2561,\"\")","v":""},{"$f":"IF(DataLog!$C2561=\"Log value\",DataLog!U2561,\"\")","v":""},{"$f":"IF(DataLog!$C2561=\"Log value\",DataLog!V2561,\"\")","v":""},{"$f":"IF(DataLog!$C2561=\"Log value\",DataLog!W2561,\"\")","v":""},{"$f":"IF(DataLog!$C2561=\"Log value\",DataLog!X2561,\"\")","v":""},{"$f":"IF(DataLog!$C2561=\"Log value\",DataLog!Y2561,\"\")","v":""},{"$f":"IF(DataLog!$C2561=\"Log value\",DataLog!Z2561,\"\")","v":""},{"$f":"IF(DataLog!$C2561=\"Log value\",DataLog!AA2561,\"\")","v":""},{"$f":"IF(DataLog!$C2561=\"Log value\",DataLog!AB2561,\"\")","v":""},{"$f":"IF(DataLog!$C2561=\"Log value\",DataLog!AC2561,\"\")","v":""},{"$f":"IF(DataLog!$C2561=\"Log value\",DataLog!AD2561,\"\")","v":""},{"$f":"IF(DataLog!$C2561=\"Log value\",DataLog!AE2561,\"\")","v":""},{"$f":"IF(DataLog!$C2561=\"Log value\",DataLog!AF2561,\"\")","v":""},{"$f":"IF(DataLog!$C2561=\"Log value\",DataLog!AG2561,\"\")","v":""},{"$f":"IF(DataLog!$C2561=\"Log value\",DataLog!AH2561,\"\")","v":""},{"$f":"IF(DataLog!$C2561=\"Log value\",DataLog!AI2561,\"\")","v":""},{"$f":"IF(DataLog!$C2561=\"Log value\",DataLog!AJ2561,\"\")","v":""},{"$f":"IF(DataLog!$C2561=\"Log value\",DataLog!AK2561,\"\")","v":""},{"$f":"IF(DataLog!$C2561=\"Log value\",DataLog!AL2561,\"\")","v":""},{"$f":"IF(DataLog!$C2561=\"Log value\",DataLog!AM2561,\"\")","v":""}]
[null,null,null,null,null,null,{"$f":"IF(DataLog!$C2562=\"Log value\",DataLog!D2562&\"_\"&TEXT(DataLog!B2562,\"åååå-mm-dd\"),\"\")","v":""},{"$f":"IF(DataLog!$C2562=\"Log value\",DataLog!E2562,\"\")","v":""},{"$f":"IF(DataLog!$C2562=\"Log value\",DataLog!F2562,\"\")","v":""},{"$f":"IF(DataLog!$C2562=\"Log value\",DataLog!G2562,\"\")","v":""},{"$f":"IF(DataLog!$C2562=\"Log value\",DataLog!H2562,\"\")","v":""},{"$f":"IF(DataLog!$C2562=\"Log value\",DataLog!I2562,\"\")","v":""},{"$f":"IF(DataLog!$C2562=\"Log value\",DataLog!J2562,\"\")","v":""},{"$f":"IF(DataLog!$C2562=\"Log value\",DataLog!K2562,\"\")","v":""},{"$f":"IF(DataLog!$C2562=\"Log value\",DataLog!L2562,\"\")","v":""},{"$f":"IF(DataLog!$C2562=\"Log value\",DataLog!M2562,\"\")","v":""},{"$f":"IF(DataLog!$C2562=\"Log value\",DataLog!N2562,\"\")","v":""},{"$f":"IF(DataLog!$C2562=\"Log value\",DataLog!O2562,\"\")","v":""},{"$f":"IF(DataLog!$C2562=\"Log value\",DataLog!P2562,\"\")","v":""},{"$f":"IF(DataLog!$C2562=\"Log value\",DataLog!Q2562,\"\")","v":""},{"$f":"IF(DataLog!$C2562=\"Log value\",DataLog!R2562,\"\")","v":""},{"$f":"IF(DataLog!$C2562=\"Log value\",DataLog!S2562,\"\")","v":""},{"$f":"IF(DataLog!$C2562=\"Log value\",DataLog!T2562,\"\")","v":""},{"$f":"IF(DataLog!$C2562=\"Log value\",DataLog!U2562,\"\")","v":""},{"$f":"IF(DataLog!$C2562=\"Log value\",DataLog!V2562,\"\")","v":""},{"$f":"IF(DataLog!$C2562=\"Log value\",DataLog!W2562,\"\")","v":""},{"$f":"IF(DataLog!$C2562=\"Log value\",DataLog!X2562,\"\")","v":""},{"$f":"IF(DataLog!$C2562=\"Log value\",DataLog!Y2562,\"\")","v":""},{"$f":"IF(DataLog!$C2562=\"Log value\",DataLog!Z2562,\"\")","v":""},{"$f":"IF(DataLog!$C2562=\"Log value\",DataLog!AA2562,\"\")","v":""},{"$f":"IF(DataLog!$C2562=\"Log value\",DataLog!AB2562,\"\")","v":""},{"$f":"IF(DataLog!$C2562=\"Log value\",DataLog!AC2562,\"\")","v":""},{"$f":"IF(DataLog!$C2562=\"Log value\",DataLog!AD2562,\"\")","v":""},{"$f":"IF(DataLog!$C2562=\"Log value\",DataLog!AE2562,\"\")","v":""},{"$f":"IF(DataLog!$C2562=\"Log value\",DataLog!AF2562,\"\")","v":""},{"$f":"IF(DataLog!$C2562=\"Log value\",DataLog!AG2562,\"\")","v":""},{"$f":"IF(DataLog!$C2562=\"Log value\",DataLog!AH2562,\"\")","v":""},{"$f":"IF(DataLog!$C2562=\"Log value\",DataLog!AI2562,\"\")","v":""},{"$f":"IF(DataLog!$C2562=\"Log value\",DataLog!AJ2562,\"\")","v":""},{"$f":"IF(DataLog!$C2562=\"Log value\",DataLog!AK2562,\"\")","v":""},{"$f":"IF(DataLog!$C2562=\"Log value\",DataLog!AL2562,\"\")","v":""},{"$f":"IF(DataLog!$C2562=\"Log value\",DataLog!AM2562,\"\")","v":""}]
[null,null,null,null,null,null,{"$f":"IF(DataLog!$C2565=\"Log value\",DataLog!D2565&\"_\"&TEXT(DataLog!B2565,\"åååå-mm-dd\"),\"\")","v":""},{"$f":"IF(DataLog!$C2565=\"Log value\",DataLog!E2565,\"\")","v":""},{"$f":"IF(DataLog!$C2565=\"Log value\",DataLog!F2565,\"\")","v":""},{"$f":"IF(DataLog!$C2565=\"Log value\",DataLog!G2565,\"\")","v":""},{"$f":"IF(DataLog!$C2565=\"Log value\",DataLog!H2565,\"\")","v":""},{"$f":"IF(DataLog!$C2565=\"Log value\",DataLog!I2565,\"\")","v":""},{"$f":"IF(DataLog!$C2565=\"Log value\",DataLog!J2565,\"\")","v":""},{"$f":"IF(DataLog!$C2565=\"Log value\",DataLog!K2565,\"\")","v":""},{"$f":"IF(DataLog!$C2565=\"Log value\",DataLog!L2565,\"\")","v":""},{"$f":"IF(DataLog!$C2565=\"Log value\",DataLog!M2565,\"\")","v":""},{"$f":"IF(DataLog!$C2565=\"Log value\",DataLog!N2565,\"\")","v":""},{"$f":"IF(DataLog!$C2565=\"Log value\",DataLog!O2565,\"\")","v":""},{"$f":"IF(DataLog!$C2565=\"Log value\",DataLog!P2565,\"\")","v":""},{"$f":"IF(DataLog!$C2565=\"Log value\",DataLog!Q2565,\"\")","v":""},{"$f":"IF(DataLog!$C2565=\"Log value\",DataLog!R2565,\"\")","v":""},{"$f":"IF(DataLog!$C2565=\"Log value\",DataLog!S2565,\"\")","v":""},{"$f":"IF(DataLog!$C2565=\"Log value\",DataLog!T2565,\"\")","v":""},{"$f":"IF(DataLog!$C2565=\"Log value\",DataLog!U2565,\"\")","v":""},{"$f":"IF(DataLog!$C2565=\"Log value\",DataLog!V2565,\"\")","v":""},{"$f":"IF(DataLog!$C2565=\"Log value\",DataLog!W2565,\"\")","v":""},{"$f":"IF(DataLog!$C2565=\"Log value\",DataLog!X2565,\"\")","v":""},{"$f":"IF(DataLog!$C2565=\"Log value\",DataLog!Y2565,\"\")","v":""},{"$f":"IF(DataLog!$C2565=\"Log value\",DataLog!Z2565,\"\")","v":""},{"$f":"IF(DataLog!$C2565=\"Log value\",DataLog!AA2565,\"\")","v":""},{"$f":"IF(DataLog!$C2565=\"Log value\",DataLog!AB2565,\"\")","v":""},{"$f":"IF(DataLog!$C2565=\"Log value\",DataLog!AC2565,\"\")","v":""},{"$f":"IF(DataLog!$C2565=\"Log value\",DataLog!AD2565,\"\")","v":""},{"$f":"IF(DataLog!$C2565=\"Log value\",DataLog!AE2565,\"\")","v":""},{"$f":"IF(DataLog!$C2565=\"Log value\",DataLog!AF2565,\"\")","v":""},{"$f":"IF(DataLog!$C2565=\"Log value\",DataLog!AG2565,\"\")","v":""},{"$f":"IF(DataLog!$C2565=\"Log value\",DataLog!AH2565,\"\")","v":""},{"$f":"IF(DataLog!$C2565=\"Log value\",DataLog!AI2565,\"\")","v":""},{"$f":"IF(DataLog!$C2565=\"Log value\",DataLog!AJ2565,\"\")","v":""},{"$f":"IF(DataLog!$C2565=\"Log value\",DataLog!AK2565,\"\")","v":""},{"$f":"IF(DataLog!$C2565=\"Log value\",DataLog!AL2565,\"\")","v":""},{"$f":"IF(DataLog!$C2565=\"Log value\",DataLog!AM2565,\"\")","v":""}]
[null,null,null,null,null,null,{"$f":"IF(DataLog!$C2567=\"Log value\",DataLog!D2567&\"_\"&TEXT(DataLog!B2567,\"åååå-mm-dd\"),\"\")","v":""},{"$f":"IF(DataLog!$C2567=\"Log value\",DataLog!E2567,\"\")","v":""},{"$f":"IF(DataLog!$C2567=\"Log value\",DataLog!F2567,\"\")","v":""},{"$f":"IF(DataLog!$C2567=\"Log value\",DataLog!G2567,\"\")","v":""},{"$f":"IF(DataLog!$C2567=\"Log value\",DataLog!H2567,\"\")","v":""},{"$f":"IF(DataLog!$C2567=\"Log value\",DataLog!I2567,\"\")","v":""},{"$f":"IF(DataLog!$C2567=\"Log value\",DataLog!J2567,\"\")","v":""},{"$f":"IF(DataLog!$C2567=\"Log value\",DataLog!K2567,\"\")","v":""},{"$f":"IF(DataLog!$C2567=\"Log value\",DataLog!L2567,\"\")","v":""},{"$f":"IF(DataLog!$C2567=\"Log value\",DataLog!M2567,\"\")","v":""},{"$f":"IF(DataLog!$C2567=\"Log value\",DataLog!N2567,\"\")","v":""},{"$f":"IF(DataLog!$C2567=\"Log value\",DataLog!O2567,\"\")","v":""},{"$f":"IF(DataLog!$C2567=\"Log value\",DataLog!P2567,\"\")","v":""},{"$f":"IF(DataLog!$C2567=\"Log value\",DataLog!Q2567,\"\")","v":""},{"$f":"IF(DataLog!$C2567=\"Log value\",DataLog!R2567,\"\")","v":""},{"$f":"IF(DataLog!$C2567=\"Log value\",DataLog!S2567,\"\")","v":""},{"$f":"IF(DataLog!$C2567=\"Log value\",DataLog!T2567,\"\")","v":""},{"$f":"IF(DataLog!$C2567=\"Log value\",DataLog!U2567,\"\")","v":""},{"$f":"IF(DataLog!$C2567=\"Log value\",DataLog!V2567,\"\")","v":""},{"$f":"IF(DataLog!$C2567=\"Log value\",DataLog!W2567,\"\")","v":""},{"$f":"IF(DataLog!$C2567=\"Log value\",DataLog!X2567,\"\")","v":""},{"$f":"IF(DataLog!$C2567=\"Log value\",DataLog!Y2567,\"\")","v":""},{"$f":"IF(DataLog!$C2567=\"Log value\",DataLog!Z2567,\"\")","v":""},{"$f":"IF(DataLog!$C2567=\"Log value\",DataLog!AA2567,\"\")","v":""},{"$f":"IF(DataLog!$C2567=\"Log value\",DataLog!AB2567,\"\")","v":""},{"$f":"IF(DataLog!$C2567=\"Log value\",DataLog!AC2567,\"\")","v":""},{"$f":"IF(DataLog!$C2567=\"Log value\",DataLog!AD2567,\"\")","v":""},{"$f":"IF(DataLog!$C2567=\"Log value\",DataLog!AE2567,\"\")","v":""},{"$f":"IF(DataLog!$C2567=\"Log value\",DataLog!AF2567,\"\")","v":""},{"$f":"IF(DataLog!$C2567=\"Log value\",DataLog!AG2567,\"\")","v":""},{"$f":"IF(DataLog!$C2567=\"Log value\",DataLog!AH2567,\"\")","v":""},{"$f":"IF(DataLog!$C2567=\"Log value\",DataLog!AI2567,\"\")","v":""},{"$f":"IF(DataLog!$C2567=\"Log value\",DataLog!AJ2567,\"\")","v":""},{"$f":"IF(DataLog!$C2567=\"Log value\",DataLog!AK2567,\"\")","v":""},{"$f":"IF(DataLog!$C2567=\"Log value\",DataLog!AL2567,\"\")","v":""},{"$f":"IF(DataLog!$C2567=\"Log value\",DataLog!AM2567,\"\")","v":""}]
[null,null,null,null,null,null,{"$f":"IF(DataLog!$C2570=\"Log value\",DataLog!D2570&\"_\"&TEXT(DataLog!B2570,\"åååå-mm-dd\"),\"\")","v":""},{"$f":"IF(DataLog!$C2570=\"Log value\",DataLog!E2570,\"\")","v":""},{"$f":"IF(DataLog!$C2570=\"Log value\",DataLog!F2570,\"\")","v":""},{"$f":"IF(DataLog!$C2570=\"Log value\",DataLog!G2570,\"\")","v":""},{"$f":"IF(DataLog!$C2570=\"Log value\",DataLog!H2570,\"\")","v":""},{"$f":"IF(DataLog!$C2570=\"Log value\",DataLog!I2570,\"\")","v":""},{"$f":"IF(DataLog!$C2570=\"Log value\",DataLog!J2570,\"\")","v":""},{"$f":"IF(DataLog!$C2570=\"Log value\",DataLog!K2570,\"\")","v":""},{"$f":"IF(DataLog!$C2570=\"Log value\",DataLog!L2570,\"\")","v":""},{"$f":"IF(DataLog!$C2570=\"Log value\",DataLog!M2570,\"\")","v":""},{"$f":"IF(DataLog!$C2570=\"Log value\",DataLog!N2570,\"\")","v":""},{"$f":"IF(DataLog!$C2570=\"Log value\",DataLog!O2570,\"\")","v":""},{"$f":"IF(DataLog!$C2570=\"Log value\",DataLog!P2570,\"\")","v":""},{"$f":"IF(DataLog!$C2570=\"Log value\",DataLog!Q2570,\"\")","v":""},{"$f":"IF(DataLog!$C2570=\"Log value\",DataLog!R2570,\"\")","v":""},{"$f":"IF(DataLog!$C2570=\"Log value\",DataLog!S2570,\"\")","v":""},{"$f":"IF(DataLog!$C2570=\"Log value\",DataLog!T2570,\"\")","v":""},{"$f":"IF(DataLog!$C2570=\"Log value\",DataLog!U2570,\"\")","v":""},{"$f":"IF(DataLog!$C2570=\"Log value\",DataLog!V2570,\"\")","v":""},{"$f":"IF(DataLog!$C2570=\"Log value\",DataLog!W2570,\"\")","v":""},{"$f":"IF(DataLog!$C2570=\"Log value\",DataLog!X2570,\"\")","v":""},{"$f":"IF(DataLog!$C2570=\"Log value\",DataLog!Y2570,\"\")","v":""},{"$f":"IF(DataLog!$C2570=\"Log value\",DataLog!Z2570,\"\")","v":""},{"$f":"IF(DataLog!$C2570=\"Log value\",DataLog!AA2570,\"\")","v":""},{"$f":"IF(DataLog!$C2570=\"Log value\",DataLog!AB2570,\"\")","v":""},{"$f":"IF(DataLog!$C2570=\"Log value\",DataLog!AC2570,\"\")","v":""},{"$f":"IF(DataLog!$C2570=\"Log value\",DataLog!AD2570,\"\")","v":""},{"$f":"IF(DataLog!$C2570=\"Log value\",DataLog!AE2570,\"\")","v":""},{"$f":"IF(DataLog!$C2570=\"Log value\",DataLog!AF2570,\"\")","v":""},{"$f":"IF(DataLog!$C2570=\"Log value\",DataLog!AG2570,\"\")","v":""},{"$f":"IF(DataLog!$C2570=\"Log value\",DataLog!AH2570,\"\")","v":""},{"$f":"IF(DataLog!$C2570=\"Log value\",DataLog!AI2570,\"\")","v":""},{"$f":"IF(DataLog!$C2570=\"Log value\",DataLog!AJ2570,\"\")","v":""},{"$f":"IF(DataLog!$C2570=\"Log value\",DataLog!AK2570,\"\")","v":""},{"$f":"IF(DataLog!$C2570=\"Log value\",DataLog!AL2570,\"\")","v":""},{"$f":"IF(DataLog!$C2570=\"Log value\",DataLog!AM2570,\"\")","v":""}]
[null,null,null,null,null,null,{"$f":"IF(DataLog!$C2571=\"Log value\",DataLog!D2571&\"_\"&TEXT(DataLog!B2571,\"åååå-mm-dd\"),\"\")","v":""},{"$f":"IF(DataLog!$C2571=\"Log value\",DataLog!E2571,\"\")","v":""},{"$f":"IF(DataLog!$C2571=\"Log value\",DataLog!F2571,\"\")","v":""},{"$f":"IF(DataLog!$C2571=\"Log value\",DataLog!G2571,\"\")","v":""},{"$f":"IF(DataLog!$C2571=\"Log value\",DataLog!H2571,\"\")","v":""},{"$f":"IF(DataLog!$C2571=\"Log value\",DataLog!I2571,\"\")","v":""},{"$f":"IF(DataLog!$C2571=\"Log value\",DataLog!J2571,\"\")","v":""},{"$f":"IF(DataLog!$C2571=\"Log value\",DataLog!K2571,\"\")","v":""},{"$f":"IF(DataLog!$C2571=\"Log value\",DataLog!L2571,\"\")","v":""},{"$f":"IF(DataLog!$C2571=\"Log value\",DataLog!M2571,\"\")","v":""},{"$f":"IF(DataLog!$C2571=\"Log value\",DataLog!N2571,\"\")","v":""},{"$f":"IF(DataLog!$C2571=\"Log value\",DataLog!O2571,\"\")","v":""},{"$f":"IF(DataLog!$C2571=\"Log value\",DataLog!P2571,\"\")","v":""},{"$f":"IF(DataLog!$C2571=\"Log value\",DataLog!Q2571,\"\")","v":""},{"$f":"IF(DataLog!$C2571=\"Log value\",DataLog!R2571,\"\")","v":""},{"$f":"IF(DataLog!$C2571=\"Log value\",DataLog!S2571,\"\")","v":""},{"$f":"IF(DataLog!$C2571=\"Log value\",DataLog!T2571,\"\")","v":""},{"$f":"IF(DataLog!$C2571=\"Log value\",DataLog!U2571,\"\")","v":""},{"$f":"IF(DataLog!$C2571=\"Log value\",DataLog!V2571,\"\")","v":""},{"$f":"IF(DataLog!$C2571=\"Log value\",DataLog!W2571,\"\")","v":""},{"$f":"IF(DataLog!$C2571=\"Log value\",DataLog!X2571,\"\")","v":""},{"$f":"IF(DataLog!$C2571=\"Log value\",DataLog!Y2571,\"\")","v":""},{"$f":"IF(DataLog!$C2571=\"Log value\",DataLog!Z2571,\"\")","v":""},{"$f":"IF(DataLog!$C2571=\"Log value\",DataLog!AA2571,\"\")","v":""},{"$f":"IF(DataLog!$C2571=\"Log value\",DataLog!AB2571,\"\")","v":""},{"$f":"IF(DataLog!$C2571=\"Log value\",DataLog!AC2571,\"\")","v":""},{"$f":"IF(DataLog!$C2571=\"Log value\",DataLog!AD2571,\"\")","v":""},{"$f":"IF(DataLog!$C2571=\"Log value\",DataLog!AE2571,\"\")","v":""},{"$f":"IF(DataLog!$C2571=\"Log value\",DataLog!AF2571,\"\")","v":""},{"$f":"IF(DataLog!$C2571=\"Log value\",DataLog!AG2571,\"\")","v":""},{"$f":"IF(DataLog!$C2571=\"Log value\",DataLog!AH2571,\"\")","v":""},{"$f":"IF(DataLog!$C2571=\"Log value\",DataLog!AI2571,\"\")","v":""},{"$f":"IF(DataLog!$C2571=\"Log value\",DataLog!AJ2571,\"\")","v":""},{"$f":"IF(DataLog!$C2571=\"Log value\",DataLog!AK2571,\"\")","v":""},{"$f":"IF(DataLog!$C2571=\"Log value\",DataLog!AL2571,\"\")","v":""},{"$f":"IF(DataLog!$C2571=\"Log value\",DataLog!AM2571,\"\")","v":""}]
[null,null,null,null,null,null,{"$f":"IF(DataLog!$C2574=\"Log value\",DataLog!D2574&\"_\"&TEXT(DataLog!B2574,\"åååå-mm-dd\"),\"\")","v":""},{"$f":"IF(DataLog!$C2574=\"Log value\",DataLog!E2574,\"\")","v":""},{"$f":"IF(DataLog!$C2574=\"Log value\",DataLog!F2574,\"\")","v":""},{"$f":"IF(DataLog!$C2574=\"Log value\",DataLog!G2574,\"\")","v":""},{"$f":"IF(DataLog!$C2574=\"Log value\",DataLog!H2574,\"\")","v":""},{"$f":"IF(DataLog!$C2574=\"Log value\",DataLog!I2574,\"\")","v":""},{"$f":"IF(DataLog!$C2574=\"Log value\",DataLog!J2574,\"\")","v":""},{"$f":"IF(DataLog!$C2574=\"Log value\",DataLog!K2574,\"\")","v":""},{"$f":"IF(DataLog!$C2574=\"Log value\",DataLog!L2574,\"\")","v":""},{"$f":"IF(DataLog!$C2574=\"Log value\",DataLog!M2574,\"\")","v":""},{"$f":"IF(DataLog!$C2574=\"Log value\",DataLog!N2574,\"\")","v":""},{"$f":"IF(DataLog!$C2574=\"Log value\",DataLog!O2574,\"\")","v":""},{"$f":"IF(DataLog!$C2574=\"Log value\",DataLog!P2574,\"\")","v":""},{"$f":"IF(DataLog!$C2574=\"Log value\",DataLog!Q2574,\"\")","v":""},{"$f":"IF(DataLog!$C2574=\"Log value\",DataLog!R2574,\"\")","v":""},{"$f":"IF(DataLog!$C2574=\"Log value\",DataLog!S2574,\"\")","v":""},{"$f":"IF(DataLog!$C2574=\"Log value\",DataLog!T2574,\"\")","v":""},{"$f":"IF(DataLog!$C2574=\"Log value\",DataLog!U2574,\"\")","v":""},{"$f":"IF(DataLog!$C2574=\"Log value\",DataLog!V2574,\"\")","v":""},{"$f":"IF(DataLog!$C2574=\"Log value\",DataLog!W2574,\"\")","v":""},{"$f":"IF(DataLog!$C2574=\"Log value\",DataLog!X2574,\"\")","v":""},{"$f":"IF(DataLog!$C2574=\"Log value\",DataLog!Y2574,\"\")","v":""},{"$f":"IF(DataLog!$C2574=\"Log value\",DataLog!Z2574,\"\")","v":""},{"$f":"IF(DataLog!$C2574=\"Log value\",DataLog!AA2574,\"\")","v":""},{"$f":"IF(DataLog!$C2574=\"Log value\",DataLog!AB2574,\"\")","v":""},{"$f":"IF(DataLog!$C2574=\"Log value\",DataLog!AC2574,\"\")","v":""},{"$f":"IF(DataLog!$C2574=\"Log value\",DataLog!AD2574,\"\")","v":""},{"$f":"IF(DataLog!$C2574=\"Log value\",DataLog!AE2574,\"\")","v":""},{"$f":"IF(DataLog!$C2574=\"Log value\",DataLog!AF2574,\"\")","v":""},{"$f":"IF(DataLog!$C2574=\"Log value\",DataLog!AG2574,\"\")","v":""},{"$f":"IF(DataLog!$C2574=\"Log value\",DataLog!AH2574,\"\")","v":""},{"$f":"IF(DataLog!$C2574=\"Log value\",DataLog!AI2574,\"\")","v":""},{"$f":"IF(DataLog!$C2574=\"Log value\",DataLog!AJ2574,\"\")","v":""},{"$f":"IF(DataLog!$C2574=\"Log value\",DataLog!AK2574,\"\")","v":""},{"$f":"IF(DataLog!$C2574=\"Log value\",DataLog!AL2574,\"\")","v":""},{"$f":"IF(DataLog!$C2574=\"Log value\",DataLog!AM2574,\"\")","v":""}]
[null,null,null,null,null,null,{"$f":"IF(DataLog!$C2577=\"Log value\",DataLog!D2577&\"_\"&TEXT(DataLog!B2577,\"åååå-mm-dd\"),\"\")","v":""},{"$f":"IF(DataLog!$C2577=\"Log value\",DataLog!E2577,\"\")","v":""},{"$f":"IF(DataLog!$C2577=\"Log value\",DataLog!F2577,\"\")","v":""},{"$f":"IF(DataLog!$C2577=\"Log value\",DataLog!G2577,\"\")","v":""},{"$f":"IF(DataLog!$C2577=\"Log value\",DataLog!H2577,\"\")","v":""},{"$f":"IF(DataLog!$C2577=\"Log value\",DataLog!I2577,\"\")","v":""},{"$f":"IF(DataLog!$C2577=\"Log value\",DataLog!J2577,\"\")","v":""},{"$f":"IF(DataLog!$C2577=\"Log value\",DataLog!K2577,\"\")","v":""},{"$f":"IF(DataLog!$C2577=\"Log value\",DataLog!L2577,\"\")","v":""},{"$f":"IF(DataLog!$C2577=\"Log value\",DataLog!M2577,\"\")","v":""},{"$f":"IF(DataLog!$C2577=\"Log value\",DataLog!N2577,\"\")","v":""},{"$f":"IF(DataLog!$C2577=\"Log value\",DataLog!O2577,\"\")","v":""},{"$f":"IF(DataLog!$C2577=\"Log value\",DataLog!P2577,\"\")","v":""},{"$f":"IF(DataLog!$C2577=\"Log value\",DataLog!Q2577,\"\")","v":""},{"$f":"IF(DataLog!$C2577=\"Log value\",DataLog!R2577,\"\")","v":""},{"$f":"IF(DataLog!$C2577=\"Log value\",DataLog!S2577,\"\")","v":""},{"$f":"IF(DataLog!$C2577=\"Log value\",DataLog!T2577,\"\")","v":""},{"$f":"IF(DataLog!$C2577=\"Log value\",DataLog!U2577,\"\")","v":""},{"$f":"IF(DataLog!$C2577=\"Log value\",DataLog!V2577,\"\")","v":""},{"$f":"IF(DataLog!$C2577=\"Log value\",DataLog!W2577,\"\")","v":""},{"$f":"IF(DataLog!$C2577=\"Log value\",DataLog!X2577,\"\")","v":""},{"$f":"IF(DataLog!$C2577=\"Log value\",DataLog!Y2577,\"\")","v":""},{"$f":"IF(DataLog!$C2577=\"Log value\",DataLog!Z2577,\"\")","v":""},{"$f":"IF(DataLog!$C2577=\"Log value\",DataLog!AA2577,\"\")","v":""},{"$f":"IF(DataLog!$C2577=\"Log value\",DataLog!AB2577,\"\")","v":""},{"$f":"IF(DataLog!$C2577=\"Log value\",DataLog!AC2577,\"\")","v":""},{"$f":"IF(DataLog!$C2577=\"Log value\",DataLog!AD2577,\"\")","v":""},{"$f":"IF(DataLog!$C2577=\"Log value\",DataLog!AE2577,\"\")","v":""},{"$f":"IF(DataLog!$C2577=\"Log value\",DataLog!AF2577,\"\")","v":""},{"$f":"IF(DataLog!$C2577=\"Log value\",DataLog!AG2577,\"\")","v":""},{"$f":"IF(DataLog!$C2577=\"Log value\",DataLog!AH2577,\"\")","v":""},{"$f":"IF(DataLog!$C2577=\"Log value\",DataLog!AI2577,\"\")","v":""},{"$f":"IF(DataLog!$C2577=\"Log value\",DataLog!AJ2577,\"\")","v":""},{"$f":"IF(DataLog!$C2577=\"Log value\",DataLog!AK2577,\"\")","v":""},{"$f":"IF(DataLog!$C2577=\"Log value\",DataLog!AL2577,\"\")","v":""},{"$f":"IF(DataLog!$C2577=\"Log value\",DataLog!AM2577,\"\")","v":""}]
[null,null,null,null,null,null,{"$f":"IF(DataLog!$C2579=\"Log value\",DataLog!D2579&\"_\"&TEXT(DataLog!B2579,\"åååå-mm-dd\"),\"\")","v":""},{"$f":"IF(DataLog!$C2579=\"Log value\",DataLog!E2579,\"\")","v":""},{"$f":"IF(DataLog!$C2579=\"Log value\",DataLog!F2579,\"\")","v":""},{"$f":"IF(DataLog!$C2579=\"Log value\",DataLog!G2579,\"\")","v":""},{"$f":"IF(DataLog!$C2579=\"Log value\",DataLog!H2579,\"\")","v":""},{"$f":"IF(DataLog!$C2579=\"Log value\",DataLog!I2579,\"\")","v":""},{"$f":"IF(DataLog!$C2579=\"Log value\",DataLog!J2579,\"\")","v":""},{"$f":"IF(DataLog!$C2579=\"Log value\",DataLog!K2579,\"\")","v":""},{"$f":"IF(DataLog!$C2579=\"Log value\",DataLog!L2579,\"\")","v":""},{"$f":"IF(DataLog!$C2579=\"Log value\",DataLog!M2579,\"\")","v":""},{"$f":"IF(DataLog!$C2579=\"Log value\",DataLog!N2579,\"\")","v":""},{"$f":"IF(DataLog!$C2579=\"Log value\",DataLog!O2579,\"\")","v":""},{"$f":"IF(DataLog!$C2579=\"Log value\",DataLog!P2579,\"\")","v":""},{"$f":"IF(DataLog!$C2579=\"Log value\",DataLog!Q2579,\"\")","v":""},{"$f":"IF(DataLog!$C2579=\"Log value\",DataLog!R2579,\"\")","v":""},{"$f":"IF(DataLog!$C2579=\"Log value\",DataLog!S2579,\"\")","v":""},{"$f":"IF(DataLog!$C2579=\"Log value\",DataLog!T2579,\"\")","v":""},{"$f":"IF(DataLog!$C2579=\"Log value\",DataLog!U2579,\"\")","v":""},{"$f":"IF(DataLog!$C2579=\"Log value\",DataLog!V2579,\"\")","v":""},{"$f":"IF(DataLog!$C2579=\"Log value\",DataLog!W2579,\"\")","v":""},{"$f":"IF(DataLog!$C2579=\"Log value\",DataLog!X2579,\"\")","v":""},{"$f":"IF(DataLog!$C2579=\"Log value\",DataLog!Y2579,\"\")","v":""},{"$f":"IF(DataLog!$C2579=\"Log value\",DataLog!Z2579,\"\")","v":""},{"$f":"IF(DataLog!$C2579=\"Log value\",DataLog!AA2579,\"\")","v":""},{"$f":"IF(DataLog!$C2579=\"Log value\",DataLog!AB2579,\"\")","v":""},{"$f":"IF(DataLog!$C2579=\"Log value\",DataLog!AC2579,\"\")","v":""},{"$f":"IF(DataLog!$C2579=\"Log value\",DataLog!AD2579,\"\")","v":""},{"$f":"IF(DataLog!$C2579=\"Log value\",DataLog!AE2579,\"\")","v":""},{"$f":"IF(DataLog!$C2579=\"Log value\",DataLog!AF2579,\"\")","v":""},{"$f":"IF(DataLog!$C2579=\"Log value\",DataLog!AG2579,\"\")","v":""},{"$f":"IF(DataLog!$C2579=\"Log value\",DataLog!AH2579,\"\")","v":""},{"$f":"IF(DataLog!$C2579=\"Log value\",DataLog!AI2579,\"\")","v":""},{"$f":"IF(DataLog!$C2579=\"Log value\",DataLog!AJ2579,\"\")","v":""},{"$f":"IF(DataLog!$C2579=\"Log value\",DataLog!AK2579,\"\")","v":""},{"$f":"IF(DataLog!$C2579=\"Log value\",DataLog!AL2579,\"\")","v":""},{"$f":"IF(DataLog!$C2579=\"Log value\",DataLog!AM2579,\"\")","v":""}]
[null,null,null,null,null,null,{"$f":"IF(DataLog!$C2580=\"Log value\",DataLog!D2580&\"_\"&TEXT(DataLog!B2580,\"åååå-mm-dd\"),\"\")","v":""},{"$f":"IF(DataLog!$C2580=\"Log value\",DataLog!E2580,\"\")","v":""},{"$f":"IF(DataLog!$C2580=\"Log value\",DataLog!F2580,\"\")","v":""},{"$f":"IF(DataLog!$C2580=\"Log value\",DataLog!G2580,\"\")","v":""},{"$f":"IF(DataLog!$C2580=\"Log value\",DataLog!H2580,\"\")","v":""},{"$f":"IF(DataLog!$C2580=\"Log value\",DataLog!I2580,\"\")","v":""},{"$f":"IF(DataLog!$C2580=\"Log value\",DataLog!J2580,\"\")","v":""},{"$f":"IF(DataLog!$C2580=\"Log value\",DataLog!K2580,\"\")","v":""},{"$f":"IF(DataLog!$C2580=\"Log value\",DataLog!L2580,\"\")","v":""},{"$f":"IF(DataLog!$C2580=\"Log value\",DataLog!M2580,\"\")","v":""},{"$f":"IF(DataLog!$C2580=\"Log value\",DataLog!N2580,\"\")","v":""},{"$f":"IF(DataLog!$C2580=\"Log value\",DataLog!O2580,\"\")","v":""},{"$f":"IF(DataLog!$C2580=\"Log value\",DataLog!P2580,\"\")","v":""},{"$f":"IF(DataLog!$C2580=\"Log value\",DataLog!Q2580,\"\")","v":""},{"$f":"IF(DataLog!$C2580=\"Log value\",DataLog!R2580,\"\")","v":""},{"$f":"IF(DataLog!$C2580=\"Log value\",DataLog!S2580,\"\")","v":""},{"$f":"IF(DataLog!$C2580=\"Log value\",DataLog!T2580,\"\")","v":""},{"$f":"IF(DataLog!$C2580=\"Log value\",DataLog!U2580,\"\")","v":""},{"$f":"IF(DataLog!$C2580=\"Log value\",DataLog!V2580,\"\")","v":""},{"$f":"IF(DataLog!$C2580=\"Log value\",DataLog!W2580,\"\")","v":""},{"$f":"IF(DataLog!$C2580=\"Log value\",DataLog!X2580,\"\")","v":""},{"$f":"IF(DataLog!$C2580=\"Log value\",DataLog!Y2580,\"\")","v":""},{"$f":"IF(DataLog!$C2580=\"Log value\",DataLog!Z2580,\"\")","v":""},{"$f":"IF(DataLog!$C2580=\"Log value\",DataLog!AA2580,\"\")","v":""},{"$f":"IF(DataLog!$C2580=\"Log value\",DataLog!AB2580,\"\")","v":""},{"$f":"IF(DataLog!$C2580=\"Log value\",DataLog!AC2580,\"\")","v":""},{"$f":"IF(DataLog!$C2580=\"Log value\",DataLog!AD2580,\"\")","v":""},{"$f":"IF(DataLog!$C2580=\"Log value\",DataLog!AE2580,\"\")","v":""},{"$f":"IF(DataLog!$C2580=\"Log value\",DataLog!AF2580,\"\")","v":""},{"$f":"IF(DataLog!$C2580=\"Log value\",DataLog!AG2580,\"\")","v":""},{"$f":"IF(DataLog!$C2580=\"Log value\",DataLog!AH2580,\"\")","v":""},{"$f":"IF(DataLog!$C2580=\"Log value\",DataLog!AI2580,\"\")","v":""},{"$f":"IF(DataLog!$C2580=\"Log value\",DataLog!AJ2580,\"\")","v":""},{"$f":"IF(DataLog!$C2580=\"Log value\",DataLog!AK2580,\"\")","v":""},{"$f":"IF(DataLog!$C2580=\"Log value\",DataLog!AL2580,\"\")","v":""},{"$f":"IF(DataLog!$C2580=\"Log value\",DataLog!AM2580,\"\")","v":""}]
[null,null,null,null,null,null,{"$f":"IF(DataLog!$C2582=\"Log value\",DataLog!D2582&\"_\"&TEXT(DataLog!B2582,\"åååå-mm-dd\"),\"\")","v":""},{"$f":"IF(DataLog!$C2582=\"Log value\",DataLog!E2582,\"\")","v":""},{"$f":"IF(DataLog!$C2582=\"Log value\",DataLog!F2582,\"\")","v":""},{"$f":"IF(DataLog!$C2582=\"Log value\",DataLog!G2582,\"\")","v":""},{"$f":"IF(DataLog!$C2582=\"Log value\",DataLog!H2582,\"\")","v":""},{"$f":"IF(DataLog!$C2582=\"Log value\",DataLog!I2582,\"\")","v":""},{"$f":"IF(DataLog!$C2582=\"Log value\",DataLog!J2582,\"\")","v":""},{"$f":"IF(DataLog!$C2582=\"Log value\",DataLog!K2582,\"\")","v":""},{"$f":"IF(DataLog!$C2582=\"Log value\",DataLog!L2582,\"\")","v":""},{"$f":"IF(DataLog!$C2582=\"Log value\",DataLog!M2582,\"\")","v":""},{"$f":"IF(DataLog!$C2582=\"Log value\",DataLog!N2582,\"\")","v":""},{"$f":"IF(DataLog!$C2582=\"Log value\",DataLog!O2582,\"\")","v":""},{"$f":"IF(DataLog!$C2582=\"Log value\",DataLog!P2582,\"\")","v":""},{"$f":"IF(DataLog!$C2582=\"Log value\",DataLog!Q2582,\"\")","v":""},{"$f":"IF(DataLog!$C2582=\"Log value\",DataLog!R2582,\"\")","v":""},{"$f":"IF(DataLog!$C2582=\"Log value\",DataLog!S2582,\"\")","v":""},{"$f":"IF(DataLog!$C2582=\"Log value\",DataLog!T2582,\"\")","v":""},{"$f":"IF(DataLog!$C2582=\"Log value\",DataLog!U2582,\"\")","v":""},{"$f":"IF(DataLog!$C2582=\"Log value\",DataLog!V2582,\"\")","v":""},{"$f":"IF(DataLog!$C2582=\"Log value\",DataLog!W2582,\"\")","v":""},{"$f":"IF(DataLog!$C2582=\"Log value\",DataLog!X2582,\"\")","v":""},{"$f":"IF(DataLog!$C2582=\"Log value\",DataLog!Y2582,\"\")","v":""},{"$f":"IF(DataLog!$C2582=\"Log value\",DataLog!Z2582,\"\")","v":""},{"$f":"IF(DataLog!$C2582=\"Log value\",DataLog!AA2582,\"\")","v":""},{"$f":"IF(DataLog!$C2582=\"Log value\",DataLog!AB2582,\"\")","v":""},{"$f":"IF(DataLog!$C2582=\"Log value\",DataLog!AC2582,\"\")","v":""},{"$f":"IF(DataLog!$C2582=\"Log value\",DataLog!AD2582,\"\")","v":""},{"$f":"IF(DataLog!$C2582=\"Log value\",DataLog!AE2582,\"\")","v":""},{"$f":"IF(DataLog!$C2582=\"Log value\",DataLog!AF2582,\"\")","v":""},{"$f":"IF(DataLog!$C2582=\"Log value\",DataLog!AG2582,\"\")","v":""},{"$f":"IF(DataLog!$C2582=\"Log value\",DataLog!AH2582,\"\")","v":""},{"$f":"IF(DataLog!$C2582=\"Log value\",DataLog!AI2582,\"\")","v":""},{"$f":"IF(DataLog!$C2582=\"Log value\",DataLog!AJ2582,\"\")","v":""},{"$f":"IF(DataLog!$C2582=\"Log value\",DataLog!AK2582,\"\")","v":""},{"$f":"IF(DataLog!$C2582=\"Log value\",DataLog!AL2582,\"\")","v":""},{"$f":"IF(DataLog!$C2582=\"Log value\",DataLog!AM2582,\"\")","v":""}]
[null,null,null,null,null,null,{"$f":"IF(DataLog!$C2585=\"Log value\",DataLog!D2585&\"_\"&TEXT(DataLog!B2585,\"åååå-mm-dd\"),\"\")","v":""},{"$f":"IF(DataLog!$C2585=\"Log value\",DataLog!E2585,\"\")","v":""},{"$f":"IF(DataLog!$C2585=\"Log value\",DataLog!F2585,\"\")","v":""},{"$f":"IF(DataLog!$C2585=\"Log value\",DataLog!G2585,\"\")","v":""},{"$f":"IF(DataLog!$C2585=\"Log value\",DataLog!H2585,\"\")","v":""},{"$f":"IF(DataLog!$C2585=\"Log value\",DataLog!I2585,\"\")","v":""},{"$f":"IF(DataLog!$C2585=\"Log value\",DataLog!J2585,\"\")","v":""},{"$f":"IF(DataLog!$C2585=\"Log value\",DataLog!K2585,\"\")","v":""},{"$f":"IF(DataLog!$C2585=\"Log value\",DataLog!L2585,\"\")","v":""},{"$f":"IF(DataLog!$C2585=\"Log value\",DataLog!M2585,\"\")","v":""},{"$f":"IF(DataLog!$C2585=\"Log value\",DataLog!N2585,\"\")","v":""},{"$f":"IF(DataLog!$C2585=\"Log value\",DataLog!O2585,\"\")","v":""},{"$f":"IF(DataLog!$C2585=\"Log value\",DataLog!P2585,\"\")","v":""},{"$f":"IF(DataLog!$C2585=\"Log value\",DataLog!Q2585,\"\")","v":""},{"$f":"IF(DataLog!$C2585=\"Log value\",DataLog!R2585,\"\")","v":""},{"$f":"IF(DataLog!$C2585=\"Log value\",DataLog!S2585,\"\")","v":""},{"$f":"IF(DataLog!$C2585=\"Log value\",DataLog!T2585,\"\")","v":""},{"$f":"IF(DataLog!$C2585=\"Log value\",DataLog!U2585,\"\")","v":""},{"$f":"IF(DataLog!$C2585=\"Log value\",DataLog!V2585,\"\")","v":""},{"$f":"IF(DataLog!$C2585=\"Log value\",DataLog!W2585,\"\")","v":""},{"$f":"IF(DataLog!$C2585=\"Log value\",DataLog!X2585,\"\")","v":""},{"$f":"IF(DataLog!$C2585=\"Log value\",DataLog!Y2585,\"\")","v":""},{"$f":"IF(DataLog!$C2585=\"Log value\",DataLog!Z2585,\"\")","v":""},{"$f":"IF(DataLog!$C2585=\"Log value\",DataLog!AA2585,\"\")","v":""},{"$f":"IF(DataLog!$C2585=\"Log value\",DataLog!AB2585,\"\")","v":""},{"$f":"IF(DataLog!$C2585=\"Log value\",DataLog!AC2585,\"\")","v":""},{"$f":"IF(DataLog!$C2585=\"Log value\",DataLog!AD2585,\"\")","v":""},{"$f":"IF(DataLog!$C2585=\"Log value\",DataLog!AE2585,\"\")","v":""},{"$f":"IF(DataLog!$C2585=\"Log value\",DataLog!AF2585,\"\")","v":""},{"$f":"IF(DataLog!$C2585=\"Log value\",DataLog!AG2585,\"\")","v":""},{"$f":"IF(DataLog!$C2585=\"Log value\",DataLog!AH2585,\"\")","v":""},{"$f":"IF(DataLog!$C2585=\"Log value\",DataLog!AI2585,\"\")","v":""},{"$f":"IF(DataLog!$C2585=\"Log value\",DataLog!AJ2585,\"\")","v":""},{"$f":"IF(DataLog!$C2585=\"Log value\",DataLog!AK2585,\"\")","v":""},{"$f":"IF(DataLog!$C2585=\"Log value\",DataLog!AL2585,\"\")","v":""},{"$f":"IF(DataLog!$C2585=\"Log value\",DataLog!AM2585,\"\")","v":""}]
[null,null,null,null,null,null,{"$f":"IF(DataLog!$C2588=\"Log value\",DataLog!D2588&\"_\"&TEXT(DataLog!B2588,\"åååå-mm-dd\"),\"\")","v":""},{"$f":"IF(DataLog!$C2588=\"Log value\",DataLog!E2588,\"\")","v":""},{"$f":"IF(DataLog!$C2588=\"Log value\",DataLog!F2588,\"\")","v":""},{"$f":"IF(DataLog!$C2588=\"Log value\",DataLog!G2588,\"\")","v":""},{"$f":"IF(DataLog!$C2588=\"Log value\",DataLog!H2588,\"\")","v":""},{"$f":"IF(DataLog!$C2588=\"Log value\",DataLog!I2588,\"\")","v":""},{"$f":"IF(DataLog!$C2588=\"Log value\",DataLog!J2588,\"\")","v":""},{"$f":"IF(DataLog!$C2588=\"Log value\",DataLog!K2588,\"\")","v":""},{"$f":"IF(DataLog!$C2588=\"Log value\",DataLog!L2588,\"\")","v":""},{"$f":"IF(DataLog!$C2588=\"Log value\",DataLog!M2588,\"\")","v":""},{"$f":"IF(DataLog!$C2588=\"Log value\",DataLog!N2588,\"\")","v":""},{"$f":"IF(DataLog!$C2588=\"Log value\",DataLog!O2588,\"\")","v":""},{"$f":"IF(DataLog!$C2588=\"Log value\",DataLog!P2588,\"\")","v":""},{"$f":"IF(DataLog!$C2588=\"Log value\",DataLog!Q2588,\"\")","v":""},{"$f":"IF(DataLog!$C2588=\"Log value\",DataLog!R2588,\"\")","v":""},{"$f":"IF(DataLog!$C2588=\"Log value\",DataLog!S2588,\"\")","v":""},{"$f":"IF(DataLog!$C2588=\"Log value\",DataLog!T2588,\"\")","v":""},{"$f":"IF(DataLog!$C2588=\"Log value\",DataLog!U2588,\"\")","v":""},{"$f":"IF(DataLog!$C2588=\"Log value\",DataLog!V2588,\"\")","v":""},{"$f":"IF(DataLog!$C2588=\"Log value\",DataLog!W2588,\"\")","v":""},{"$f":"IF(DataLog!$C2588=\"Log value\",DataLog!X2588,\"\")","v":""},{"$f":"IF(DataLog!$C2588=\"Log value\",DataLog!Y2588,\"\")","v":""},{"$f":"IF(DataLog!$C2588=\"Log value\",DataLog!Z2588,\"\")","v":""},{"$f":"IF(DataLog!$C2588=\"Log value\",DataLog!AA2588,\"\")","v":""},{"$f":"IF(DataLog!$C2588=\"Log value\",DataLog!AB2588,\"\")","v":""},{"$f":"IF(DataLog!$C2588=\"Log value\",DataLog!AC2588,\"\")","v":""},{"$f":"IF(DataLog!$C2588=\"Log value\",DataLog!AD2588,\"\")","v":""},{"$f":"IF(DataLog!$C2588=\"Log value\",DataLog!AE2588,\"\")","v":""},{"$f":"IF(DataLog!$C2588=\"Log value\",DataLog!AF2588,\"\")","v":""},{"$f":"IF(DataLog!$C2588=\"Log value\",DataLog!AG2588,\"\")","v":""},{"$f":"IF(DataLog!$C2588=\"Log value\",DataLog!AH2588,\"\")","v":""},{"$f":"IF(DataLog!$C2588=\"Log value\",DataLog!AI2588,\"\")","v":""},{"$f":"IF(DataLog!$C2588=\"Log value\",DataLog!AJ2588,\"\")","v":""},{"$f":"IF(DataLog!$C2588=\"Log value\",DataLog!AK2588,\"\")","v":""},{"$f":"IF(DataLog!$C2588=\"Log value\",DataLog!AL2588,\"\")","v":""},{"$f":"IF(DataLog!$C2588=\"Log value\",DataLog!AM2588,\"\")","v":""}]
[null,null,null,null,null,null,{"$f":"IF(DataLog!$C2589=\"Log value\",DataLog!D2589&\"_\"&TEXT(DataLog!B2589,\"åååå-mm-dd\"),\"\")","v":""},{"$f":"IF(DataLog!$C2589=\"Log value\",DataLog!E2589,\"\")","v":""},{"$f":"IF(DataLog!$C2589=\"Log value\",DataLog!F2589,\"\")","v":""},{"$f":"IF(DataLog!$C2589=\"Log value\",DataLog!G2589,\"\")","v":""},{"$f":"IF(DataLog!$C2589=\"Log value\",DataLog!H2589,\"\")","v":""},{"$f":"IF(DataLog!$C2589=\"Log value\",DataLog!I2589,\"\")","v":""},{"$f":"IF(DataLog!$C2589=\"Log value\",DataLog!J2589,\"\")","v":""},{"$f":"IF(DataLog!$C2589=\"Log value\",DataLog!K2589,\"\")","v":""},{"$f":"IF(DataLog!$C2589=\"Log value\",DataLog!L2589,\"\")","v":""},{"$f":"IF(DataLog!$C2589=\"Log value\",DataLog!M2589,\"\")","v":""},{"$f":"IF(DataLog!$C2589=\"Log value\",DataLog!N2589,\"\")","v":""},{"$f":"IF(DataLog!$C2589=\"Log value\",DataLog!O2589,\"\")","v":""},{"$f":"IF(DataLog!$C2589=\"Log value\",DataLog!P2589,\"\")","v":""},{"$f":"IF(DataLog!$C2589=\"Log value\",DataLog!Q2589,\"\")","v":""},{"$f":"IF(DataLog!$C2589=\"Log value\",DataLog!R2589,\"\")","v":""},{"$f":"IF(DataLog!$C2589=\"Log value\",DataLog!S2589,\"\")","v":""},{"$f":"IF(DataLog!$C2589=\"Log value\",DataLog!T2589,\"\")","v":""},{"$f":"IF(DataLog!$C2589=\"Log value\",DataLog!U2589,\"\")","v":""},{"$f":"IF(DataLog!$C2589=\"Log value\",DataLog!V2589,\"\")","v":""},{"$f":"IF(DataLog!$C2589=\"Log value\",DataLog!W2589,\"\")","v":""},{"$f":"IF(DataLog!$C2589=\"Log value\",DataLog!X2589,\"\")","v":""},{"$f":"IF(DataLog!$C2589=\"Log value\",DataLog!Y2589,\"\")","v":""},{"$f":"IF(DataLog!$C2589=\"Log value\",DataLog!Z2589,\"\")","v":""},{"$f":"IF(DataLog!$C2589=\"Log value\",DataLog!AA2589,\"\")","v":""},{"$f":"IF(DataLog!$C2589=\"Log value\",DataLog!AB2589,\"\")","v":""},{"$f":"IF(DataLog!$C2589=\"Log value\",DataLog!AC2589,\"\")","v":""},{"$f":"IF(DataLog!$C2589=\"Log value\",DataLog!AD2589,\"\")","v":""},{"$f":"IF(DataLog!$C2589=\"Log value\",DataLog!AE2589,\"\")","v":""},{"$f":"IF(DataLog!$C2589=\"Log value\",DataLog!AF2589,\"\")","v":""},{"$f":"IF(DataLog!$C2589=\"Log value\",DataLog!AG2589,\"\")","v":""},{"$f":"IF(DataLog!$C2589=\"Log value\",DataLog!AH2589,\"\")","v":""},{"$f":"IF(DataLog!$C2589=\"Log value\",DataLog!AI2589,\"\")","v":""},{"$f":"IF(DataLog!$C2589=\"Log value\",DataLog!AJ2589,\"\")","v":""},{"$f":"IF(DataLog!$C2589=\"Log value\",DataLog!AK2589,\"\")","v":""},{"$f":"IF(DataLog!$C2589=\"Log value\",DataLog!AL2589,\"\")","v":""},{"$f":"IF(DataLog!$C2589=\"Log value\",DataLog!AM2589,\"\")","v":""}]
[null,null,null,null,null,null,{"$f":"IF(DataLog!$C2593=\"Log value\",DataLog!D2593&\"_\"&TEXT(DataLog!B2593,\"åååå-mm-dd\"),\"\")","v":""},{"$f":"IF(DataLog!$C2593=\"Log value\",DataLog!E2593,\"\")","v":""},{"$f":"IF(DataLog!$C2593=\"Log value\",DataLog!F2593,\"\")","v":""},{"$f":"IF(DataLog!$C2593=\"Log value\",DataLog!G2593,\"\")","v":""},{"$f":"IF(DataLog!$C2593=\"Log value\",DataLog!H2593,\"\")","v":""},{"$f":"IF(DataLog!$C2593=\"Log value\",DataLog!I2593,\"\")","v":""},{"$f":"IF(DataLog!$C2593=\"Log value\",DataLog!J2593,\"\")","v":""},{"$f":"IF(DataLog!$C2593=\"Log value\",DataLog!K2593,\"\")","v":""},{"$f":"IF(DataLog!$C2593=\"Log value\",DataLog!L2593,\"\")","v":""},{"$f":"IF(DataLog!$C2593=\"Log value\",DataLog!M2593,\"\")","v":""},{"$f":"IF(DataLog!$C2593=\"Log value\",DataLog!N2593,\"\")","v":""},{"$f":"IF(DataLog!$C2593=\"Log value\",DataLog!O2593,\"\")","v":""},{"$f":"IF(DataLog!$C2593=\"Log value\",DataLog!P2593,\"\")","v":""},{"$f":"IF(DataLog!$C2593=\"Log value\",DataLog!Q2593,\"\")","v":""},{"$f":"IF(DataLog!$C2593=\"Log value\",DataLog!R2593,\"\")","v":""},{"$f":"IF(DataLog!$C2593=\"Log value\",DataLog!S2593,\"\")","v":""},{"$f":"IF(DataLog!$C2593=\"Log value\",DataLog!T2593,\"\")","v":""},{"$f":"IF(DataLog!$C2593=\"Log value\",DataLog!U2593,\"\")","v":""},{"$f":"IF(DataLog!$C2593=\"Log value\",DataLog!V2593,\"\")","v":""},{"$f":"IF(DataLog!$C2593=\"Log value\",DataLog!W2593,\"\")","v":""},{"$f":"IF(DataLog!$C2593=\"Log value\",DataLog!X2593,\"\")","v":""},{"$f":"IF(DataLog!$C2593=\"Log value\",DataLog!Y2593,\"\")","v":""},{"$f":"IF(DataLog!$C2593=\"Log value\",DataLog!Z2593,\"\")","v":""},{"$f":"IF(DataLog!$C2593=\"Log value\",DataLog!AA2593,\"\")","v":""},{"$f":"IF(DataLog!$C2593=\"Log value\",DataLog!AB2593,\"\")","v":""},{"$f":"IF(DataLog!$C2593=\"Log value\",DataLog!AC2593,\"\")","v":""},{"$f":"IF(DataLog!$C2593=\"Log value\",DataLog!AD2593,\"\")","v":""},{"$f":"IF(DataLog!$C2593=\"Log value\",DataLog!AE2593,\"\")","v":""},{"$f":"IF(DataLog!$C2593=\"Log value\",DataLog!AF2593,\"\")","v":""},{"$f":"IF(DataLog!$C2593=\"Log value\",DataLog!AG2593,\"\")","v":""},{"$f":"IF(DataLog!$C2593=\"Log value\",DataLog!AH2593,\"\")","v":""},{"$f":"IF(DataLog!$C2593=\"Log value\",DataLog!AI2593,\"\")","v":""},{"$f":"IF(DataLog!$C2593=\"Log value\",DataLog!AJ2593,\"\")","v":""},{"$f":"IF(DataLog!$C2593=\"Log value\",DataLog!AK2593,\"\")","v":""},{"$f":"IF(DataLog!$C2593=\"Log value\",DataLog!AL2593,\"\")","v":""},{"$f":"IF(DataLog!$C2593=\"Log value\",DataLog!AM2593,\"\")","v":""}]
[null,null,null,null,null,null,{"$f":"IF(DataLog!$C2594=\"Log value\",DataLog!D2594&\"_\"&TEXT(DataLog!B2594,\"åååå-mm-dd\"),\"\")","v":""},{"$f":"IF(DataLog!$C2594=\"Log value\",DataLog!E2594,\"\")","v":""},{"$f":"IF(DataLog!$C2594=\"Log value\",DataLog!F2594,\"\")","v":""},{"$f":"IF(DataLog!$C2594=\"Log value\",DataLog!G2594,\"\")","v":""},{"$f":"IF(DataLog!$C2594=\"Log value\",DataLog!H2594,\"\")","v":""},{"$f":"IF(DataLog!$C2594=\"Log value\",DataLog!I2594,\"\")","v":""},{"$f":"IF(DataLog!$C2594=\"Log value\",DataLog!J2594,\"\")","v":""},{"$f":"IF(DataLog!$C2594=\"Log value\",DataLog!K2594,\"\")","v":""},{"$f":"IF(DataLog!$C2594=\"Log value\",DataLog!L2594,\"\")","v":""},{"$f":"IF(DataLog!$C2594=\"Log value\",DataLog!M2594,\"\")","v":""},{"$f":"IF(DataLog!$C2594=\"Log value\",DataLog!N2594,\"\")","v":""},{"$f":"IF(DataLog!$C2594=\"Log value\",DataLog!O2594,\"\")","v":""},{"$f":"IF(DataLog!$C2594=\"Log value\",DataLog!P2594,\"\")","v":""},{"$f":"IF(DataLog!$C2594=\"Log value\",DataLog!Q2594,\"\")","v":""},{"$f":"IF(DataLog!$C2594=\"Log value\",DataLog!R2594,\"\")","v":""},{"$f":"IF(DataLog!$C2594=\"Log value\",DataLog!S2594,\"\")","v":""},{"$f":"IF(DataLog!$C2594=\"Log value\",DataLog!T2594,\"\")","v":""},{"$f":"IF(DataLog!$C2594=\"Log value\",DataLog!U2594,\"\")","v":""},{"$f":"IF(DataLog!$C2594=\"Log value\",DataLog!V2594,\"\")","v":""},{"$f":"IF(DataLog!$C2594=\"Log value\",DataLog!W2594,\"\")","v":""},{"$f":"IF(DataLog!$C2594=\"Log value\",DataLog!X2594,\"\")","v":""},{"$f":"IF(DataLog!$C2594=\"Log value\",DataLog!Y2594,\"\")","v":""},{"$f":"IF(DataLog!$C2594=\"Log value\",DataLog!Z2594,\"\")","v":""},{"$f":"IF(DataLog!$C2594=\"Log value\",DataLog!AA2594,\"\")","v":""},{"$f":"IF(DataLog!$C2594=\"Log value\",DataLog!AB2594,\"\")","v":""},{"$f":"IF(DataLog!$C2594=\"Log value\",DataLog!AC2594,\"\")","v":""},{"$f":"IF(DataLog!$C2594=\"Log value\",DataLog!AD2594,\"\")","v":""},{"$f":"IF(DataLog!$C2594=\"Log value\",DataLog!AE2594,\"\")","v":""},{"$f":"IF(DataLog!$C2594=\"Log value\",DataLog!AF2594,\"\")","v":""},{"$f":"IF(DataLog!$C2594=\"Log value\",DataLog!AG2594,\"\")","v":""},{"$f":"IF(DataLog!$C2594=\"Log value\",DataLog!AH2594,\"\")","v":""},{"$f":"IF(DataLog!$C2594=\"Log value\",DataLog!AI2594,\"\")","v":""},{"$f":"IF(DataLog!$C2594=\"Log value\",DataLog!AJ2594,\"\")","v":""},{"$f":"IF(DataLog!$C2594=\"Log value\",DataLog!AK2594,\"\")","v":""},{"$f":"IF(DataLog!$C2594=\"Log value\",DataLog!AL2594,\"\")","v":""},{"$f":"IF(DataLog!$C2594=\"Log value\",DataLog!AM2594,\"\")","v":""}]
[null,null,null,null,null,null,{"$f":"IF(DataLog!$C2597=\"Log value\",DataLog!D2597&\"_\"&TEXT(DataLog!B2597,\"åååå-mm-dd\"),\"\")","v":""},{"$f":"IF(DataLog!$C2597=\"Log value\",DataLog!E2597,\"\")","v":""},{"$f":"IF(DataLog!$C2597=\"Log value\",DataLog!F2597,\"\")","v":""},{"$f":"IF(DataLog!$C2597=\"Log value\",DataLog!G2597,\"\")","v":""},{"$f":"IF(DataLog!$C2597=\"Log value\",DataLog!H2597,\"\")","v":""},{"$f":"IF(DataLog!$C2597=\"Log value\",DataLog!I2597,\"\")","v":""},{"$f":"IF(DataLog!$C2597=\"Log value\",DataLog!J2597,\"\")","v":""},{"$f":"IF(DataLog!$C2597=\"Log value\",DataLog!K2597,\"\")","v":""},{"$f":"IF(DataLog!$C2597=\"Log value\",DataLog!L2597,\"\")","v":""},{"$f":"IF(DataLog!$C2597=\"Log value\",DataLog!M2597,\"\")","v":""},{"$f":"IF(DataLog!$C2597=\"Log value\",DataLog!N2597,\"\")","v":""},{"$f":"IF(DataLog!$C2597=\"Log value\",DataLog!O2597,\"\")","v":""},{"$f":"IF(DataLog!$C2597=\"Log value\",DataLog!P2597,\"\")","v":""},{"$f":"IF(DataLog!$C2597=\"Log value\",DataLog!Q2597,\"\")","v":""},{"$f":"IF(DataLog!$C2597=\"Log value\",DataLog!R2597,\"\")","v":""},{"$f":"IF(DataLog!$C2597=\"Log value\",DataLog!S2597,\"\")","v":""},{"$f":"IF(DataLog!$C2597=\"Log value\",DataLog!T2597,\"\")","v":""},{"$f":"IF(DataLog!$C2597=\"Log value\",DataLog!U2597,\"\")","v":""},{"$f":"IF(DataLog!$C2597=\"Log value\",DataLog!V2597,\"\")","v":""},{"$f":"IF(DataLog!$C2597=\"Log value\",DataLog!W2597,\"\")","v":""},{"$f":"IF(DataLog!$C2597=\"Log value\",DataLog!X2597,\"\")","v":""},{"$f":"IF(DataLog!$C2597=\"Log value\",DataLog!Y2597,\"\")","v":""},{"$f":"IF(DataLog!$C2597=\"Log value\",DataLog!Z2597,\"\")","v":""},{"$f":"IF(DataLog!$C2597=\"Log value\",DataLog!AA2597,\"\")","v":""},{"$f":"IF(DataLog!$C2597=\"Log value\",DataLog!AB2597,\"\")","v":""},{"$f":"IF(DataLog!$C2597=\"Log value\",DataLog!AC2597,\"\")","v":""},{"$f":"IF(DataLog!$C2597=\"Log value\",DataLog!AD2597,\"\")","v":""},{"$f":"IF(DataLog!$C2597=\"Log value\",DataLog!AE2597,\"\")","v":""},{"$f":"IF(DataLog!$C2597=\"Log value\",DataLog!AF2597,\"\")","v":""},{"$f":"IF(DataLog!$C2597=\"Log value\",DataLog!AG2597,\"\")","v":""},{"$f":"IF(DataLog!$C2597=\"Log value\",DataLog!AH2597,\"\")","v":""},{"$f":"IF(DataLog!$C2597=\"Log value\",DataLog!AI2597,\"\")","v":""},{"$f":"IF(DataLog!$C2597=\"Log value\",DataLog!AJ2597,\"\")","v":""},{"$f":"IF(DataLog!$C2597=\"Log value\",DataLog!AK2597,\"\")","v":""},{"$f":"IF(DataLog!$C2597=\"Log value\",DataLog!AL2597,\"\")","v":""},{"$f":"IF(DataLog!$C2597=\"Log value\",DataLog!AM2597,\"\")","v":""}]
[null,null,null,null,null,null,{"$f":"IF(DataLog!$C2598=\"Log value\",DataLog!D2598&\"_\"&TEXT(DataLog!B2598,\"åååå-mm-dd\"),\"\")","v":""},{"$f":"IF(DataLog!$C2598=\"Log value\",DataLog!E2598,\"\")","v":""},{"$f":"IF(DataLog!$C2598=\"Log value\",DataLog!F2598,\"\")","v":""},{"$f":"IF(DataLog!$C2598=\"Log value\",DataLog!G2598,\"\")","v":""},{"$f":"IF(DataLog!$C2598=\"Log value\",DataLog!H2598,\"\")","v":""},{"$f":"IF(DataLog!$C2598=\"Log value\",DataLog!I2598,\"\")","v":""},{"$f":"IF(DataLog!$C2598=\"Log value\",DataLog!J2598,\"\")","v":""},{"$f":"IF(DataLog!$C2598=\"Log value\",DataLog!K2598,\"\")","v":""},{"$f":"IF(DataLog!$C2598=\"Log value\",DataLog!L2598,\"\")","v":""},{"$f":"IF(DataLog!$C2598=\"Log value\",DataLog!M2598,\"\")","v":""},{"$f":"IF(DataLog!$C2598=\"Log value\",DataLog!N2598,\"\")","v":""},{"$f":"IF(DataLog!$C2598=\"Log value\",DataLog!O2598,\"\")","v":""},{"$f":"IF(DataLog!$C2598=\"Log value\",DataLog!P2598,\"\")","v":""},{"$f":"IF(DataLog!$C2598=\"Log value\",DataLog!Q2598,\"\")","v":""},{"$f":"IF(DataLog!$C2598=\"Log value\",DataLog!R2598,\"\")","v":""},{"$f":"IF(DataLog!$C2598=\"Log value\",DataLog!S2598,\"\")","v":""},{"$f":"IF(DataLog!$C2598=\"Log value\",DataLog!T2598,\"\")","v":""},{"$f":"IF(DataLog!$C2598=\"Log value\",DataLog!U2598,\"\")","v":""},{"$f":"IF(DataLog!$C2598=\"Log value\",DataLog!V2598,\"\")","v":""},{"$f":"IF(DataLog!$C2598=\"Log value\",DataLog!W2598,\"\")","v":""},{"$f":"IF(DataLog!$C2598=\"Log value\",DataLog!X2598,\"\")","v":""},{"$f":"IF(DataLog!$C2598=\"Log value\",DataLog!Y2598,\"\")","v":""},{"$f":"IF(DataLog!$C2598=\"Log value\",DataLog!Z2598,\"\")","v":""},{"$f":"IF(DataLog!$C2598=\"Log value\",DataLog!AA2598,\"\")","v":""},{"$f":"IF(DataLog!$C2598=\"Log value\",DataLog!AB2598,\"\")","v":""},{"$f":"IF(DataLog!$C2598=\"Log value\",DataLog!AC2598,\"\")","v":""},{"$f":"IF(DataLog!$C2598=\"Log value\",DataLog!AD2598,\"\")","v":""},{"$f":"IF(DataLog!$C2598=\"Log value\",DataLog!AE2598,\"\")","v":""},{"$f":"IF(DataLog!$C2598=\"Log value\",DataLog!AF2598,\"\")","v":""},{"$f":"IF(DataLog!$C2598=\"Log value\",DataLog!AG2598,\"\")","v":""},{"$f":"IF(DataLog!$C2598=\"Log value\",DataLog!AH2598,\"\")","v":""},{"$f":"IF(DataLog!$C2598=\"Log value\",DataLog!AI2598,\"\")","v":""},{"$f":"IF(DataLog!$C2598=\"Log value\",DataLog!AJ2598,\"\")","v":""},{"$f":"IF(DataLog!$C2598=\"Log value\",DataLog!AK2598,\"\")","v":""},{"$f":"IF(DataLog!$C2598=\"Log value\",DataLog!AL2598,\"\")","v":""},{"$f":"IF(DataLog!$C2598=\"Log value\",DataLog!AM2598,\"\")","v":""}]
[null,null,null,null,null,null,{"$f":"IF(DataLog!$C2600=\"Log value\",DataLog!D2600&\"_\"&TEXT(DataLog!B2600,\"åååå-mm-dd\"),\"\")","v":""},{"$f":"IF(DataLog!$C2600=\"Log value\",DataLog!E2600,\"\")","v":""},{"$f":"IF(DataLog!$C2600=\"Log value\",DataLog!F2600,\"\")","v":""},{"$f":"IF(DataLog!$C2600=\"Log value\",DataLog!G2600,\"\")","v":""},{"$f":"IF(DataLog!$C2600=\"Log value\",DataLog!H2600,\"\")","v":""},{"$f":"IF(DataLog!$C2600=\"Log value\",DataLog!I2600,\"\")","v":""},{"$f":"IF(DataLog!$C2600=\"Log value\",DataLog!J2600,\"\")","v":""},{"$f":"IF(DataLog!$C2600=\"Log value\",DataLog!K2600,\"\")","v":""},{"$f":"IF(DataLog!$C2600=\"Log value\",DataLog!L2600,\"\")","v":""},{"$f":"IF(DataLog!$C2600=\"Log value\",DataLog!M2600,\"\")","v":""},{"$f":"IF(DataLog!$C2600=\"Log value\",DataLog!N2600,\"\")","v":""},{"$f":"IF(DataLog!$C2600=\"Log value\",DataLog!O2600,\"\")","v":""},{"$f":"IF(DataLog!$C2600=\"Log value\",DataLog!P2600,\"\")","v":""},{"$f":"IF(DataLog!$C2600=\"Log value\",DataLog!Q2600,\"\")","v":""},{"$f":"IF(DataLog!$C2600=\"Log value\",DataLog!R2600,\"\")","v":""},{"$f":"IF(DataLog!$C2600=\"Log value\",DataLog!S2600,\"\")","v":""},{"$f":"IF(DataLog!$C2600=\"Log value\",DataLog!T2600,\"\")","v":""},{"$f":"IF(DataLog!$C2600=\"Log value\",DataLog!U2600,\"\")","v":""},{"$f":"IF(DataLog!$C2600=\"Log value\",DataLog!V2600,\"\")","v":""},{"$f":"IF(DataLog!$C2600=\"Log value\",DataLog!W2600,\"\")","v":""},{"$f":"IF(DataLog!$C2600=\"Log value\",DataLog!X2600,\"\")","v":""},{"$f":"IF(DataLog!$C2600=\"Log value\",DataLog!Y2600,\"\")","v":""},{"$f":"IF(DataLog!$C2600=\"Log value\",DataLog!Z2600,\"\")","v":""},{"$f":"IF(DataLog!$C2600=\"Log value\",DataLog!AA2600,\"\")","v":""},{"$f":"IF(DataLog!$C2600=\"Log value\",DataLog!AB2600,\"\")","v":""},{"$f":"IF(DataLog!$C2600=\"Log value\",DataLog!AC2600,\"\")","v":""},{"$f":"IF(DataLog!$C2600=\"Log value\",DataLog!AD2600,\"\")","v":""},{"$f":"IF(DataLog!$C2600=\"Log value\",DataLog!AE2600,\"\")","v":""},{"$f":"IF(DataLog!$C2600=\"Log value\",DataLog!AF2600,\"\")","v":""},{"$f":"IF(DataLog!$C2600=\"Log value\",DataLog!AG2600,\"\")","v":""},{"$f":"IF(DataLog!$C2600=\"Log value\",DataLog!AH2600,\"\")","v":""},{"$f":"IF(DataLog!$C2600=\"Log value\",DataLog!AI2600,\"\")","v":""},{"$f":"IF(DataLog!$C2600=\"Log value\",DataLog!AJ2600,\"\")","v":""},{"$f":"IF(DataLog!$C2600=\"Log value\",DataLog!AK2600,\"\")","v":""},{"$f":"IF(DataLog!$C2600=\"Log value\",DataLog!AL2600,\"\")","v":""},{"$f":"IF(DataLog!$C2600=\"Log value\",DataLog!AM2600,\"\")","v":""}]
[null,null,null,null,null,null,{"$f":"IF(DataLog!$C2603=\"Log value\",DataLog!D2603&\"_\"&TEXT(DataLog!B2603,\"åååå-mm-dd\"),\"\")","v":""},{"$f":"IF(DataLog!$C2603=\"Log value\",DataLog!E2603,\"\")","v":""},{"$f":"IF(DataLog!$C2603=\"Log value\",DataLog!F2603,\"\")","v":""},{"$f":"IF(DataLog!$C2603=\"Log value\",DataLog!G2603,\"\")","v":""},{"$f":"IF(DataLog!$C2603=\"Log value\",DataLog!H2603,\"\")","v":""},{"$f":"IF(DataLog!$C2603=\"Log value\",DataLog!I2603,\"\")","v":""},{"$f":"IF(DataLog!$C2603=\"Log value\",DataLog!J2603,\"\")","v":""},{"$f":"IF(DataLog!$C2603=\"Log value\",DataLog!K2603,\"\")","v":""},{"$f":"IF(DataLog!$C2603=\"Log value\",DataLog!L2603,\"\")","v":""},{"$f":"IF(DataLog!$C2603=\"Log value\",DataLog!M2603,\"\")","v":""},{"$f":"IF(DataLog!$C2603=\"Log value\",DataLog!N2603,\"\")","v":""},{"$f":"IF(DataLog!$C2603=\"Log value\",DataLog!O2603,\"\")","v":""},{"$f":"IF(DataLog!$C2603=\"Log value\",DataLog!P2603,\"\")","v":""},{"$f":"IF(DataLog!$C2603=\"Log value\",DataLog!Q2603,\"\")","v":""},{"$f":"IF(DataLog!$C2603=\"Log value\",DataLog!R2603,\"\")","v":""},{"$f":"IF(DataLog!$C2603=\"Log value\",DataLog!S2603,\"\")","v":""},{"$f":"IF(DataLog!$C2603=\"Log value\",DataLog!T2603,\"\")","v":""},{"$f":"IF(DataLog!$C2603=\"Log value\",DataLog!U2603,\"\")","v":""},{"$f":"IF(DataLog!$C2603=\"Log value\",DataLog!V2603,\"\")","v":""},{"$f":"IF(DataLog!$C2603=\"Log value\",DataLog!W2603,\"\")","v":""},{"$f":"IF(DataLog!$C2603=\"Log value\",DataLog!X2603,\"\")","v":""},{"$f":"IF(DataLog!$C2603=\"Log value\",DataLog!Y2603,\"\")","v":""},{"$f":"IF(DataLog!$C2603=\"Log value\",DataLog!Z2603,\"\")","v":""},{"$f":"IF(DataLog!$C2603=\"Log value\",DataLog!AA2603,\"\")","v":""},{"$f":"IF(DataLog!$C2603=\"Log value\",DataLog!AB2603,\"\")","v":""},{"$f":"IF(DataLog!$C2603=\"Log value\",DataLog!AC2603,\"\")","v":""},{"$f":"IF(DataLog!$C2603=\"Log value\",DataLog!AD2603,\"\")","v":""},{"$f":"IF(DataLog!$C2603=\"Log value\",DataLog!AE2603,\"\")","v":""},{"$f":"IF(DataLog!$C2603=\"Log value\",DataLog!AF2603,\"\")","v":""},{"$f":"IF(DataLog!$C2603=\"Log value\",DataLog!AG2603,\"\")","v":""},{"$f":"IF(DataLog!$C2603=\"Log value\",DataLog!AH2603,\"\")","v":""},{"$f":"IF(DataLog!$C2603=\"Log value\",DataLog!AI2603,\"\")","v":""},{"$f":"IF(DataLog!$C2603=\"Log value\",DataLog!AJ2603,\"\")","v":""},{"$f":"IF(DataLog!$C2603=\"Log value\",DataLog!AK2603,\"\")","v":""},{"$f":"IF(DataLog!$C2603=\"Log value\",DataLog!AL2603,\"\")","v":""},{"$f":"IF(DataLog!$C2603=\"Log value\",DataLog!AM2603,\"\")","v":""}]
[null,null,null,null,null,null,{"$f":"IF(DataLog!$C2606=\"Log value\",DataLog!D2606&\"_\"&TEXT(DataLog!B2606,\"åååå-mm-dd\"),\"\")","v":""},{"$f":"IF(DataLog!$C2606=\"Log value\",DataLog!E2606,\"\")","v":""},{"$f":"IF(DataLog!$C2606=\"Log value\",DataLog!F2606,\"\")","v":""},{"$f":"IF(DataLog!$C2606=\"Log value\",DataLog!G2606,\"\")","v":""},{"$f":"IF(DataLog!$C2606=\"Log value\",DataLog!H2606,\"\")","v":""},{"$f":"IF(DataLog!$C2606=\"Log value\",DataLog!I2606,\"\")","v":""},{"$f":"IF(DataLog!$C2606=\"Log value\",DataLog!J2606,\"\")","v":""},{"$f":"IF(DataLog!$C2606=\"Log value\",DataLog!K2606,\"\")","v":""},{"$f":"IF(DataLog!$C2606=\"Log value\",DataLog!L2606,\"\")","v":""},{"$f":"IF(DataLog!$C2606=\"Log value\",DataLog!M2606,\"\")","v":""},{"$f":"IF(DataLog!$C2606=\"Log value\",DataLog!N2606,\"\")","v":""},{"$f":"IF(DataLog!$C2606=\"Log value\",DataLog!O2606,\"\")","v":""},{"$f":"IF(DataLog!$C2606=\"Log value\",DataLog!P2606,\"\")","v":""},{"$f":"IF(DataLog!$C2606=\"Log value\",DataLog!Q2606,\"\")","v":""},{"$f":"IF(DataLog!$C2606=\"Log value\",DataLog!R2606,\"\")","v":""},{"$f":"IF(DataLog!$C2606=\"Log value\",DataLog!S2606,\"\")","v":""},{"$f":"IF(DataLog!$C2606=\"Log value\",DataLog!T2606,\"\")","v":""},{"$f":"IF(DataLog!$C2606=\"Log value\",DataLog!U2606,\"\")","v":""},{"$f":"IF(DataLog!$C2606=\"Log value\",DataLog!V2606,\"\")","v":""},{"$f":"IF(DataLog!$C2606=\"Log value\",DataLog!W2606,\"\")","v":""},{"$f":"IF(DataLog!$C2606=\"Log value\",DataLog!X2606,\"\")","v":""},{"$f":"IF(DataLog!$C2606=\"Log value\",DataLog!Y2606,\"\")","v":""},{"$f":"IF(DataLog!$C2606=\"Log value\",DataLog!Z2606,\"\")","v":""},{"$f":"IF(DataLog!$C2606=\"Log value\",DataLog!AA2606,\"\")","v":""},{"$f":"IF(DataLog!$C2606=\"Log value\",DataLog!AB2606,\"\")","v":""},{"$f":"IF(DataLog!$C2606=\"Log value\",DataLog!AC2606,\"\")","v":""},{"$f":"IF(DataLog!$C2606=\"Log value\",DataLog!AD2606,\"\")","v":""},{"$f":"IF(DataLog!$C2606=\"Log value\",DataLog!AE2606,\"\")","v":""},{"$f":"IF(DataLog!$C2606=\"Log value\",DataLog!AF2606,\"\")","v":""},{"$f":"IF(DataLog!$C2606=\"Log value\",DataLog!AG2606,\"\")","v":""},{"$f":"IF(DataLog!$C2606=\"Log value\",DataLog!AH2606,\"\")","v":""},{"$f":"IF(DataLog!$C2606=\"Log value\",DataLog!AI2606,\"\")","v":""},{"$f":"IF(DataLog!$C2606=\"Log value\",DataLog!AJ2606,\"\")","v":""},{"$f":"IF(DataLog!$C2606=\"Log value\",DataLog!AK2606,\"\")","v":""},{"$f":"IF(DataLog!$C2606=\"Log value\",DataLog!AL2606,\"\")","v":""},{"$f":"IF(DataLog!$C2606=\"Log value\",DataLog!AM2606,\"\")","v":""}]
[null,null,null,null,null,null,{"$f":"IF(DataLog!$C2607=\"Log value\",DataLog!D2607&\"_\"&TEXT(DataLog!B2607,\"åååå-mm-dd\"),\"\")","v":""},{"$f":"IF(DataLog!$C2607=\"Log value\",DataLog!E2607,\"\")","v":""},{"$f":"IF(DataLog!$C2607=\"Log value\",DataLog!F2607,\"\")","v":""},{"$f":"IF(DataLog!$C2607=\"Log value\",DataLog!G2607,\"\")","v":""},{"$f":"IF(DataLog!$C2607=\"Log value\",DataLog!H2607,\"\")","v":""},{"$f":"IF(DataLog!$C2607=\"Log value\",DataLog!I2607,\"\")","v":""},{"$f":"IF(DataLog!$C2607=\"Log value\",DataLog!J2607,\"\")","v":""},{"$f":"IF(DataLog!$C2607=\"Log value\",DataLog!K2607,\"\")","v":""},{"$f":"IF(DataLog!$C2607=\"Log value\",DataLog!L2607,\"\")","v":""},{"$f":"IF(DataLog!$C2607=\"Log value\",DataLog!M2607,\"\")","v":""},{"$f":"IF(DataLog!$C2607=\"Log value\",DataLog!N2607,\"\")","v":""},{"$f":"IF(DataLog!$C2607=\"Log value\",DataLog!O2607,\"\")","v":""},{"$f":"IF(DataLog!$C2607=\"Log value\",DataLog!P2607,\"\")","v":""},{"$f":"IF(DataLog!$C2607=\"Log value\",DataLog!Q2607,\"\")","v":""},{"$f":"IF(DataLog!$C2607=\"Log value\",DataLog!R2607,\"\")","v":""},{"$f":"IF(DataLog!$C2607=\"Log value\",DataLog!S2607,\"\")","v":""},{"$f":"IF(DataLog!$C2607=\"Log value\",DataLog!T2607,\"\")","v":""},{"$f":"IF(DataLog!$C2607=\"Log value\",DataLog!U2607,\"\")","v":""},{"$f":"IF(DataLog!$C2607=\"Log value\",DataLog!V2607,\"\")","v":""},{"$f":"IF(DataLog!$C2607=\"Log value\",DataLog!W2607,\"\")","v":""},{"$f":"IF(DataLog!$C2607=\"Log value\",DataLog!X2607,\"\")","v":""},{"$f":"IF(DataLog!$C2607=\"Log value\",DataLog!Y2607,\"\")","v":""},{"$f":"IF(DataLog!$C2607=\"Log value\",DataLog!Z2607,\"\")","v":""},{"$f":"IF(DataLog!$C2607=\"Log value\",DataLog!AA2607,\"\")","v":""},{"$f":"IF(DataLog!$C2607=\"Log value\",DataLog!AB2607,\"\")","v":""},{"$f":"IF(DataLog!$C2607=\"Log value\",DataLog!AC2607,\"\")","v":""},{"$f":"IF(DataLog!$C2607=\"Log value\",DataLog!AD2607,\"\")","v":""},{"$f":"IF(DataLog!$C2607=\"Log value\",DataLog!AE2607,\"\")","v":""},{"$f":"IF(DataLog!$C2607=\"Log value\",DataLog!AF2607,\"\")","v":""},{"$f":"IF(DataLog!$C2607=\"Log value\",DataLog!AG2607,\"\")","v":""},{"$f":"IF(DataLog!$C2607=\"Log value\",DataLog!AH2607,\"\")","v":""},{"$f":"IF(DataLog!$C2607=\"Log value\",DataLog!AI2607,\"\")","v":""},{"$f":"IF(DataLog!$C2607=\"Log value\",DataLog!AJ2607,\"\")","v":""},{"$f":"IF(DataLog!$C2607=\"Log value\",DataLog!AK2607,\"\")","v":""},{"$f":"IF(DataLog!$C2607=\"Log value\",DataLog!AL2607,\"\")","v":""},{"$f":"IF(DataLog!$C2607=\"Log value\",DataLog!AM2607,\"\")","v":""}]
[null,null,null,null,null,null,{"$f":"IF(DataLog!$C2611=\"Log value\",DataLog!D2611&\"_\"&TEXT(DataLog!B2611,\"åååå-mm-dd\"),\"\")","v":""},{"$f":"IF(DataLog!$C2611=\"Log value\",DataLog!E2611,\"\")","v":""},{"$f":"IF(DataLog!$C2611=\"Log value\",DataLog!F2611,\"\")","v":""},{"$f":"IF(DataLog!$C2611=\"Log value\",DataLog!G2611,\"\")","v":""},{"$f":"IF(DataLog!$C2611=\"Log value\",DataLog!H2611,\"\")","v":""},{"$f":"IF(DataLog!$C2611=\"Log value\",DataLog!I2611,\"\")","v":""},{"$f":"IF(DataLog!$C2611=\"Log value\",DataLog!J2611,\"\")","v":""},{"$f":"IF(DataLog!$C2611=\"Log value\",DataLog!K2611,\"\")","v":""},{"$f":"IF(DataLog!$C2611=\"Log value\",DataLog!L2611,\"\")","v":""},{"$f":"IF(DataLog!$C2611=\"Log value\",DataLog!M2611,\"\")","v":""},{"$f":"IF(DataLog!$C2611=\"Log value\",DataLog!N2611,\"\")","v":""},{"$f":"IF(DataLog!$C2611=\"Log value\",DataLog!O2611,\"\")","v":""},{"$f":"IF(DataLog!$C2611=\"Log value\",DataLog!P2611,\"\")","v":""},{"$f":"IF(DataLog!$C2611=\"Log value\",DataLog!Q2611,\"\")","v":""},{"$f":"IF(DataLog!$C2611=\"Log value\",DataLog!R2611,\"\")","v":""},{"$f":"IF(DataLog!$C2611=\"Log value\",DataLog!S2611,\"\")","v":""},{"$f":"IF(DataLog!$C2611=\"Log value\",DataLog!T2611,\"\")","v":""},{"$f":"IF(DataLog!$C2611=\"Log value\",DataLog!U2611,\"\")","v":""},{"$f":"IF(DataLog!$C2611=\"Log value\",DataLog!V2611,\"\")","v":""},{"$f":"IF(DataLog!$C2611=\"Log value\",DataLog!W2611,\"\")","v":""},{"$f":"IF(DataLog!$C2611=\"Log value\",DataLog!X2611,\"\")","v":""},{"$f":"IF(DataLog!$C2611=\"Log value\",DataLog!Y2611,\"\")","v":""},{"$f":"IF(DataLog!$C2611=\"Log value\",DataLog!Z2611,\"\")","v":""},{"$f":"IF(DataLog!$C2611=\"Log value\",DataLog!AA2611,\"\")","v":""},{"$f":"IF(DataLog!$C2611=\"Log value\",DataLog!AB2611,\"\")","v":""},{"$f":"IF(DataLog!$C2611=\"Log value\",DataLog!AC2611,\"\")","v":""},{"$f":"IF(DataLog!$C2611=\"Log value\",DataLog!AD2611,\"\")","v":""},{"$f":"IF(DataLog!$C2611=\"Log value\",DataLog!AE2611,\"\")","v":""},{"$f":"IF(DataLog!$C2611=\"Log value\",DataLog!AF2611,\"\")","v":""},{"$f":"IF(DataLog!$C2611=\"Log value\",DataLog!AG2611,\"\")","v":""},{"$f":"IF(DataLog!$C2611=\"Log value\",DataLog!AH2611,\"\")","v":""},{"$f":"IF(DataLog!$C2611=\"Log value\",DataLog!AI2611,\"\")","v":""},{"$f":"IF(DataLog!$C2611=\"Log value\",DataLog!AJ2611,\"\")","v":""},{"$f":"IF(DataLog!$C2611=\"Log value\",DataLog!AK2611,\"\")","v":""},{"$f":"IF(DataLog!$C2611=\"Log value\",DataLog!AL2611,\"\")","v":""},{"$f":"IF(DataLog!$C2611=\"Log value\",DataLog!AM2611,\"\")","v":""}]
[null,null,null,null,null,null,{"$f":"IF(DataLog!$C2612=\"Log value\",DataLog!D2612&\"_\"&TEXT(DataLog!B2612,\"åååå-mm-dd\"),\"\")","v":""},{"$f":"IF(DataLog!$C2612=\"Log value\",DataLog!E2612,\"\")","v":""},{"$f":"IF(DataLog!$C2612=\"Log value\",DataLog!F2612,\"\")","v":""},{"$f":"IF(DataLog!$C2612=\"Log value\",DataLog!G2612,\"\")","v":""},{"$f":"IF(DataLog!$C2612=\"Log value\",DataLog!H2612,\"\")","v":""},{"$f":"IF(DataLog!$C2612=\"Log value\",DataLog!I2612,\"\")","v":""},{"$f":"IF(DataLog!$C2612=\"Log value\",DataLog!J2612,\"\")","v":""},{"$f":"IF(DataLog!$C2612=\"Log value\",DataLog!K2612,\"\")","v":""},{"$f":"IF(DataLog!$C2612=\"Log value\",DataLog!L2612,\"\")","v":""},{"$f":"IF(DataLog!$C2612=\"Log value\",DataLog!M2612,\"\")","v":""},{"$f":"IF(DataLog!$C2612=\"Log value\",DataLog!N2612,\"\")","v":""},{"$f":"IF(DataLog!$C2612=\"Log value\",DataLog!O2612,\"\")","v":""},{"$f":"IF(DataLog!$C2612=\"Log value\",DataLog!P2612,\"\")","v":""},{"$f":"IF(DataLog!$C2612=\"Log value\",DataLog!Q2612,\"\")","v":""},{"$f":"IF(DataLog!$C2612=\"Log value\",DataLog!R2612,\"\")","v":""},{"$f":"IF(DataLog!$C2612=\"Log value\",DataLog!S2612,\"\")","v":""},{"$f":"IF(DataLog!$C2612=\"Log value\",DataLog!T2612,\"\")","v":""},{"$f":"IF(DataLog!$C2612=\"Log value\",DataLog!U2612,\"\")","v":""},{"$f":"IF(DataLog!$C2612=\"Log value\",DataLog!V2612,\"\")","v":""},{"$f":"IF(DataLog!$C2612=\"Log value\",DataLog!W2612,\"\")","v":""},{"$f":"IF(DataLog!$C2612=\"Log value\",DataLog!X2612,\"\")","v":""},{"$f":"IF(DataLog!$C2612=\"Log value\",DataLog!Y2612,\"\")","v":""},{"$f":"IF(DataLog!$C2612=\"Log value\",DataLog!Z2612,\"\")","v":""},{"$f":"IF(DataLog!$C2612=\"Log value\",DataLog!AA2612,\"\")","v":""},{"$f":"IF(DataLog!$C2612=\"Log value\",DataLog!AB2612,\"\")","v":""},{"$f":"IF(DataLog!$C2612=\"Log value\",DataLog!AC2612,\"\")","v":""},{"$f":"IF(DataLog!$C2612=\"Log value\",DataLog!AD2612,\"\")","v":""},{"$f":"IF(DataLog!$C2612=\"Log value\",DataLog!AE2612,\"\")","v":""},{"$f":"IF(DataLog!$C2612=\"Log value\",DataLog!AF2612,\"\")","v":""},{"$f":"IF(DataLog!$C2612=\"Log value\",DataLog!AG2612,\"\")","v":""},{"$f":"IF(DataLog!$C2612=\"Log value\",DataLog!AH2612,\"\")","v":""},{"$f":"IF(DataLog!$C2612=\"Log value\",DataLog!AI2612,\"\")","v":""},{"$f":"IF(DataLog!$C2612=\"Log value\",DataLog!AJ2612,\"\")","v":""},{"$f":"IF(DataLog!$C2612=\"Log value\",DataLog!AK2612,\"\")","v":""},{"$f":"IF(DataLog!$C2612=\"Log value\",DataLog!AL2612,\"\")","v":""},{"$f":"IF(DataLog!$C2612=\"Log value\",DataLog!AM2612,\"\")","v":""}]
[null,null,null,null,null,null,{"$f":"IF(DataLog!$C2615=\"Log value\",DataLog!D2615&\"_\"&TEXT(DataLog!B2615,\"åååå-mm-dd\"),\"\")","v":""},{"$f":"IF(DataLog!$C2615=\"Log value\",DataLog!E2615,\"\")","v":""},{"$f":"IF(DataLog!$C2615=\"Log value\",DataLog!F2615,\"\")","v":""},{"$f":"IF(DataLog!$C2615=\"Log value\",DataLog!G2615,\"\")","v":""},{"$f":"IF(DataLog!$C2615=\"Log value\",DataLog!H2615,\"\")","v":""},{"$f":"IF(DataLog!$C2615=\"Log value\",DataLog!I2615,\"\")","v":""},{"$f":"IF(DataLog!$C2615=\"Log value\",DataLog!J2615,\"\")","v":""},{"$f":"IF(DataLog!$C2615=\"Log value\",DataLog!K2615,\"\")","v":""},{"$f":"IF(DataLog!$C2615=\"Log value\",DataLog!L2615,\"\")","v":""},{"$f":"IF(DataLog!$C2615=\"Log value\",DataLog!M2615,\"\")","v":""},{"$f":"IF(DataLog!$C2615=\"Log value\",DataLog!N2615,\"\")","v":""},{"$f":"IF(DataLog!$C2615=\"Log value\",DataLog!O2615,\"\")","v":""},{"$f":"IF(DataLog!$C2615=\"Log value\",DataLog!P2615,\"\")","v":""},{"$f":"IF(DataLog!$C2615=\"Log value\",DataLog!Q2615,\"\")","v":""},{"$f":"IF(DataLog!$C2615=\"Log value\",DataLog!R2615,\"\")","v":""},{"$f":"IF(DataLog!$C2615=\"Log value\",DataLog!S2615,\"\")","v":""},{"$f":"IF(DataLog!$C2615=\"Log value\",DataLog!T2615,\"\")","v":""},{"$f":"IF(DataLog!$C2615=\"Log value\",DataLog!U2615,\"\")","v":""},{"$f":"IF(DataLog!$C2615=\"Log value\",DataLog!V2615,\"\")","v":""},{"$f":"IF(DataLog!$C2615=\"Log value\",DataLog!W2615,\"\")","v":""},{"$f":"IF(DataLog!$C2615=\"Log value\",DataLog!X2615,\"\")","v":""},{"$f":"IF(DataLog!$C2615=\"Log value\",DataLog!Y2615,\"\")","v":""},{"$f":"IF(DataLog!$C2615=\"Log value\",DataLog!Z2615,\"\")","v":""},{"$f":"IF(DataLog!$C2615=\"Log value\",DataLog!AA2615,\"\")","v":""},{"$f":"IF(DataLog!$C2615=\"Log value\",DataLog!AB2615,\"\")","v":""},{"$f":"IF(DataLog!$C2615=\"Log value\",DataLog!AC2615,\"\")","v":""},{"$f":"IF(DataLog!$C2615=\"Log value\",DataLog!AD2615,\"\")","v":""},{"$f":"IF(DataLog!$C2615=\"Log value\",DataLog!AE2615,\"\")","v":""},{"$f":"IF(DataLog!$C2615=\"Log value\",DataLog!AF2615,\"\")","v":""},{"$f":"IF(DataLog!$C2615=\"Log value\",DataLog!AG2615,\"\")","v":""},{"$f":"IF(DataLog!$C2615=\"Log value\",DataLog!AH2615,\"\")","v":""},{"$f":"IF(DataLog!$C2615=\"Log value\",DataLog!AI2615,\"\")","v":""},{"$f":"IF(DataLog!$C2615=\"Log value\",DataLog!AJ2615,\"\")","v":""},{"$f":"IF(DataLog!$C2615=\"Log value\",DataLog!AK2615,\"\")","v":""},{"$f":"IF(DataLog!$C2615=\"Log value\",DataLog!AL2615,\"\")","v":""},{"$f":"IF(DataLog!$C2615=\"Log value\",DataLog!AM2615,\"\")","v":""}]
[null,null,null,null,null,null,{"$f":"IF(DataLog!$C2616=\"Log value\",DataLog!D2616&\"_\"&TEXT(DataLog!B2616,\"åååå-mm-dd\"),\"\")","v":""},{"$f":"IF(DataLog!$C2616=\"Log value\",DataLog!E2616,\"\")","v":""},{"$f":"IF(DataLog!$C2616=\"Log value\",DataLog!F2616,\"\")","v":""},{"$f":"IF(DataLog!$C2616=\"Log value\",DataLog!G2616,\"\")","v":""},{"$f":"IF(DataLog!$C2616=\"Log value\",DataLog!H2616,\"\")","v":""},{"$f":"IF(DataLog!$C2616=\"Log value\",DataLog!I2616,\"\")","v":""},{"$f":"IF(DataLog!$C2616=\"Log value\",DataLog!J2616,\"\")","v":""},{"$f":"IF(DataLog!$C2616=\"Log value\",DataLog!K2616,\"\")","v":""},{"$f":"IF(DataLog!$C2616=\"Log value\",DataLog!L2616,\"\")","v":""},{"$f":"IF(DataLog!$C2616=\"Log value\",DataLog!M2616,\"\")","v":""},{"$f":"IF(DataLog!$C2616=\"Log value\",DataLog!N2616,\"\")","v":""},{"$f":"IF(DataLog!$C2616=\"Log value\",DataLog!O2616,\"\")","v":""},{"$f":"IF(DataLog!$C2616=\"Log value\",DataLog!P2616,\"\")","v":""},{"$f":"IF(DataLog!$C2616=\"Log value\",DataLog!Q2616,\"\")","v":""},{"$f":"IF(DataLog!$C2616=\"Log value\",DataLog!R2616,\"\")","v":""},{"$f":"IF(DataLog!$C2616=\"Log value\",DataLog!S2616,\"\")","v":""},{"$f":"IF(DataLog!$C2616=\"Log value\",DataLog!T2616,\"\")","v":""},{"$f":"IF(DataLog!$C2616=\"Log value\",DataLog!U2616,\"\")","v":""},{"$f":"IF(DataLog!$C2616=\"Log value\",DataLog!V2616,\"\")","v":""},{"$f":"IF(DataLog!$C2616=\"Log value\",DataLog!W2616,\"\")","v":""},{"$f":"IF(DataLog!$C2616=\"Log value\",DataLog!X2616,\"\")","v":""},{"$f":"IF(DataLog!$C2616=\"Log value\",DataLog!Y2616,\"\")","v":""},{"$f":"IF(DataLog!$C2616=\"Log value\",DataLog!Z2616,\"\")","v":""},{"$f":"IF(DataLog!$C2616=\"Log value\",DataLog!AA2616,\"\")","v":""},{"$f":"IF(DataLog!$C2616=\"Log value\",DataLog!AB2616,\"\")","v":""},{"$f":"IF(DataLog!$C2616=\"Log value\",DataLog!AC2616,\"\")","v":""},{"$f":"IF(DataLog!$C2616=\"Log value\",DataLog!AD2616,\"\")","v":""},{"$f":"IF(DataLog!$C2616=\"Log value\",DataLog!AE2616,\"\")","v":""},{"$f":"IF(DataLog!$C2616=\"Log value\",DataLog!AF2616,\"\")","v":""},{"$f":"IF(DataLog!$C2616=\"Log value\",DataLog!AG2616,\"\")","v":""},{"$f":"IF(DataLog!$C2616=\"Log value\",DataLog!AH2616,\"\")","v":""},{"$f":"IF(DataLog!$C2616=\"Log value\",DataLog!AI2616,\"\")","v":""},{"$f":"IF(DataLog!$C2616=\"Log value\",DataLog!AJ2616,\"\")","v":""},{"$f":"IF(DataLog!$C2616=\"Log value\",DataLog!AK2616,\"\")","v":""},{"$f":"IF(DataLog!$C2616=\"Log value\",DataLog!AL2616,\"\")","v":""},{"$f":"IF(DataLog!$C2616=\"Log value\",DataLog!AM2616,\"\")","v":""}]
[null,null,null,null,null,null,{"$f":"IF(DataLog!$C2618=\"Log value\",DataLog!D2618&\"_\"&TEXT(DataLog!B2618,\"åååå-mm-dd\"),\"\")","v":""},{"$f":"IF(DataLog!$C2618=\"Log value\",DataLog!E2618,\"\")","v":""},{"$f":"IF(DataLog!$C2618=\"Log value\",DataLog!F2618,\"\")","v":""},{"$f":"IF(DataLog!$C2618=\"Log value\",DataLog!G2618,\"\")","v":""},{"$f":"IF(DataLog!$C2618=\"Log value\",DataLog!H2618,\"\")","v":""},{"$f":"IF(DataLog!$C2618=\"Log value\",DataLog!I2618,\"\")","v":""},{"$f":"IF(DataLog!$C2618=\"Log value\",DataLog!J2618,\"\")","v":""},{"$f":"IF(DataLog!$C2618=\"Log value\",DataLog!K2618,\"\")","v":""},{"$f":"IF(DataLog!$C2618=\"Log value\",DataLog!L2618,\"\")","v":""},{"$f":"IF(DataLog!$C2618=\"Log value\",DataLog!M2618,\"\")","v":""},{"$f":"IF(DataLog!$C2618=\"Log value\",DataLog!N2618,\"\")","v":""},{"$f":"IF(DataLog!$C2618=\"Log value\",DataLog!O2618,\"\")","v":""},{"$f":"IF(DataLog!$C2618=\"Log value\",DataLog!P2618,\"\")","v":""},{"$f":"IF(DataLog!$C2618=\"Log value\",DataLog!Q2618,\"\")","v":""},{"$f":"IF(DataLog!$C2618=\"Log value\",DataLog!R2618,\"\")","v":""},{"$f":"IF(DataLog!$C2618=\"Log value\",DataLog!S2618,\"\")","v":""},{"$f":"IF(DataLog!$C2618=\"Log value\",DataLog!T2618,\"\")","v":""},{"$f":"IF(DataLog!$C2618=\"Log value\",DataLog!U2618,\"\")","v":""},{"$f":"IF(DataLog!$C2618=\"Log value\",DataLog!V2618,\"\")","v":""},{"$f":"IF(DataLog!$C2618=\"Log value\",DataLog!W2618,\"\")","v":""},{"$f":"IF(DataLog!$C2618=\"Log value\",DataLog!X2618,\"\")","v":""},{"$f":"IF(DataLog!$C2618=\"Log value\",DataLog!Y2618,\"\")","v":""},{"$f":"IF(DataLog!$C2618=\"Log value\",DataLog!Z2618,\"\")","v":""},{"$f":"IF(DataLog!$C2618=\"Log value\",DataLog!AA2618,\"\")","v":""},{"$f":"IF(DataLog!$C2618=\"Log value\",DataLog!AB2618,\"\")","v":""},{"$f":"IF(DataLog!$C2618=\"Log value\",DataLog!AC2618,\"\")","v":""},{"$f":"IF(DataLog!$C2618=\"Log value\",DataLog!AD2618,\"\")","v":""},{"$f":"IF(DataLog!$C2618=\"Log value\",DataLog!AE2618,\"\")","v":""},{"$f":"IF(DataLog!$C2618=\"Log value\",DataLog!AF2618,\"\")","v":""},{"$f":"IF(DataLog!$C2618=\"Log value\",DataLog!AG2618,\"\")","v":""},{"$f":"IF(DataLog!$C2618=\"Log value\",DataLog!AH2618,\"\")","v":""},{"$f":"IF(DataLog!$C2618=\"Log value\",DataLog!AI2618,\"\")","v":""},{"$f":"IF(DataLog!$C2618=\"Log value\",DataLog!AJ2618,\"\")","v":""},{"$f":"IF(DataLog!$C2618=\"Log value\",DataLog!AK2618,\"\")","v":""},{"$f":"IF(DataLog!$C2618=\"Log value\",DataLog!AL2618,\"\")","v":""},{"$f":"IF(DataLog!$C2618=\"Log value\",DataLog!AM2618,\"\")","v":""}]
[null,null,null,null,null,null,{"$f":"IF(DataLog!$C2621=\"Log value\",DataLog!D2621&\"_\"&TEXT(DataLog!B2621,\"åååå-mm-dd\"),\"\")","v":""},{"$f":"IF(DataLog!$C2621=\"Log value\",DataLog!E2621,\"\")","v":""},{"$f":"IF(DataLog!$C2621=\"Log value\",DataLog!F2621,\"\")","v":""},{"$f":"IF(DataLog!$C2621=\"Log value\",DataLog!G2621,\"\")","v":""},{"$f":"IF(DataLog!$C2621=\"Log value\",DataLog!H2621,\"\")","v":""},{"$f":"IF(DataLog!$C2621=\"Log value\",DataLog!I2621,\"\")","v":""},{"$f":"IF(DataLog!$C2621=\"Log value\",DataLog!J2621,\"\")","v":""},{"$f":"IF(DataLog!$C2621=\"Log value\",DataLog!K2621,\"\")","v":""},{"$f":"IF(DataLog!$C2621=\"Log value\",DataLog!L2621,\"\")","v":""},{"$f":"IF(DataLog!$C2621=\"Log value\",DataLog!M2621,\"\")","v":""},{"$f":"IF(DataLog!$C2621=\"Log value\",DataLog!N2621,\"\")","v":""},{"$f":"IF(DataLog!$C2621=\"Log value\",DataLog!O2621,\"\")","v":""},{"$f":"IF(DataLog!$C2621=\"Log value\",DataLog!P2621,\"\")","v":""},{"$f":"IF(DataLog!$C2621=\"Log value\",DataLog!Q2621,\"\")","v":""},{"$f":"IF(DataLog!$C2621=\"Log value\",DataLog!R2621,\"\")","v":""},{"$f":"IF(DataLog!$C2621=\"Log value\",DataLog!S2621,\"\")","v":""},{"$f":"IF(DataLog!$C2621=\"Log value\",DataLog!T2621,\"\")","v":""},{"$f":"IF(DataLog!$C2621=\"Log value\",DataLog!U2621,\"\")","v":""},{"$f":"IF(DataLog!$C2621=\"Log value\",DataLog!V2621,\"\")","v":""},{"$f":"IF(DataLog!$C2621=\"Log value\",DataLog!W2621,\"\")","v":""},{"$f":"IF(DataLog!$C2621=\"Log value\",DataLog!X2621,\"\")","v":""},{"$f":"IF(DataLog!$C2621=\"Log value\",DataLog!Y2621,\"\")","v":""},{"$f":"IF(DataLog!$C2621=\"Log value\",DataLog!Z2621,\"\")","v":""},{"$f":"IF(DataLog!$C2621=\"Log value\",DataLog!AA2621,\"\")","v":""},{"$f":"IF(DataLog!$C2621=\"Log value\",DataLog!AB2621,\"\")","v":""},{"$f":"IF(DataLog!$C2621=\"Log value\",DataLog!AC2621,\"\")","v":""},{"$f":"IF(DataLog!$C2621=\"Log value\",DataLog!AD2621,\"\")","v":""},{"$f":"IF(DataLog!$C2621=\"Log value\",DataLog!AE2621,\"\")","v":""},{"$f":"IF(DataLog!$C2621=\"Log value\",DataLog!AF2621,\"\")","v":""},{"$f":"IF(DataLog!$C2621=\"Log value\",DataLog!AG2621,\"\")","v":""},{"$f":"IF(DataLog!$C2621=\"Log value\",DataLog!AH2621,\"\")","v":""},{"$f":"IF(DataLog!$C2621=\"Log value\",DataLog!AI2621,\"\")","v":""},{"$f":"IF(DataLog!$C2621=\"Log value\",DataLog!AJ2621,\"\")","v":""},{"$f":"IF(DataLog!$C2621=\"Log value\",DataLog!AK2621,\"\")","v":""},{"$f":"IF(DataLog!$C2621=\"Log value\",DataLog!AL2621,\"\")","v":""},{"$f":"IF(DataLog!$C2621=\"Log value\",DataLog!AM2621,\"\")","v":""}]
[null,null,null,null,null,null,{"$f":"IF(DataLog!$C2624=\"Log value\",DataLog!D2624&\"_\"&TEXT(DataLog!B2624,\"åååå-mm-dd\"),\"\")","v":""},{"$f":"IF(DataLog!$C2624=\"Log value\",DataLog!E2624,\"\")","v":""},{"$f":"IF(DataLog!$C2624=\"Log value\",DataLog!F2624,\"\")","v":""},{"$f":"IF(DataLog!$C2624=\"Log value\",DataLog!G2624,\"\")","v":""},{"$f":"IF(DataLog!$C2624=\"Log value\",DataLog!H2624,\"\")","v":""},{"$f":"IF(DataLog!$C2624=\"Log value\",DataLog!I2624,\"\")","v":""},{"$f":"IF(DataLog!$C2624=\"Log value\",DataLog!J2624,\"\")","v":""},{"$f":"IF(DataLog!$C2624=\"Log value\",DataLog!K2624,\"\")","v":""},{"$f":"IF(DataLog!$C2624=\"Log value\",DataLog!L2624,\"\")","v":""},{"$f":"IF(DataLog!$C2624=\"Log value\",DataLog!M2624,\"\")","v":""},{"$f":"IF(DataLog!$C2624=\"Log value\",DataLog!N2624,\"\")","v":""},{"$f":"IF(DataLog!$C2624=\"Log value\",DataLog!O2624,\"\")","v":""},{"$f":"IF(DataLog!$C2624=\"Log value\",DataLog!P2624,\"\")","v":""},{"$f":"IF(DataLog!$C2624=\"Log value\",DataLog!Q2624,\"\")","v":""},{"$f":"IF(DataLog!$C2624=\"Log value\",DataLog!R2624,\"\")","v":""},{"$f":"IF(DataLog!$C2624=\"Log value\",DataLog!S2624,\"\")","v":""},{"$f":"IF(DataLog!$C2624=\"Log value\",DataLog!T2624,\"\")","v":""},{"$f":"IF(DataLog!$C2624=\"Log value\",DataLog!U2624,\"\")","v":""},{"$f":"IF(DataLog!$C2624=\"Log value\",DataLog!V2624,\"\")","v":""},{"$f":"IF(DataLog!$C2624=\"Log value\",DataLog!W2624,\"\")","v":""},{"$f":"IF(DataLog!$C2624=\"Log value\",DataLog!X2624,\"\")","v":""},{"$f":"IF(DataLog!$C2624=\"Log value\",DataLog!Y2624,\"\")","v":""},{"$f":"IF(DataLog!$C2624=\"Log value\",DataLog!Z2624,\"\")","v":""},{"$f":"IF(DataLog!$C2624=\"Log value\",DataLog!AA2624,\"\")","v":""},{"$f":"IF(DataLog!$C2624=\"Log value\",DataLog!AB2624,\"\")","v":""},{"$f":"IF(DataLog!$C2624=\"Log value\",DataLog!AC2624,\"\")","v":""},{"$f":"IF(DataLog!$C2624=\"Log value\",DataLog!AD2624,\"\")","v":""},{"$f":"IF(DataLog!$C2624=\"Log value\",DataLog!AE2624,\"\")","v":""},{"$f":"IF(DataLog!$C2624=\"Log value\",DataLog!AF2624,\"\")","v":""},{"$f":"IF(DataLog!$C2624=\"Log value\",DataLog!AG2624,\"\")","v":""},{"$f":"IF(DataLog!$C2624=\"Log value\",DataLog!AH2624,\"\")","v":""},{"$f":"IF(DataLog!$C2624=\"Log value\",DataLog!AI2624,\"\")","v":""},{"$f":"IF(DataLog!$C2624=\"Log value\",DataLog!AJ2624,\"\")","v":""},{"$f":"IF(DataLog!$C2624=\"Log value\",DataLog!AK2624,\"\")","v":""},{"$f":"IF(DataLog!$C2624=\"Log value\",DataLog!AL2624,\"\")","v":""},{"$f":"IF(DataLog!$C2624=\"Log value\",DataLog!AM2624,\"\")","v":""}]
[null,null,null,null,null,null,{"$f":"IF(DataLog!$C2626=\"Log value\",DataLog!D2626&\"_\"&TEXT(DataLog!B2626,\"åååå-mm-dd\"),\"\")","v":""},{"$f":"IF(DataLog!$C2626=\"Log value\",DataLog!E2626,\"\")","v":""},{"$f":"IF(DataLog!$C2626=\"Log value\",DataLog!F2626,\"\")","v":""},{"$f":"IF(DataLog!$C2626=\"Log value\",DataLog!G2626,\"\")","v":""},{"$f":"IF(DataLog!$C2626=\"Log value\",DataLog!H2626,\"\")","v":""},{"$f":"IF(DataLog!$C2626=\"Log value\",DataLog!I2626,\"\")","v":""},{"$f":"IF(DataLog!$C2626=\"Log value\",DataLog!J2626,\"\")","v":""},{"$f":"IF(DataLog!$C2626=\"Log value\",DataLog!K2626,\"\")","v":""},{"$f":"IF(DataLog!$C2626=\"Log value\",DataLog!L2626,\"\")","v":""},{"$f":"IF(DataLog!$C2626=\"Log value\",DataLog!M2626,\"\")","v":""},{"$f":"IF(DataLog!$C2626=\"Log value\",DataLog!N2626,\"\")","v":""},{"$f":"IF(DataLog!$C2626=\"Log value\",DataLog!O2626,\"\")","v":""},{"$f":"IF(DataLog!$C2626=\"Log value\",DataLog!P2626,\"\")","v":""},{"$f":"IF(DataLog!$C2626=\"Log value\",DataLog!Q2626,\"\")","v":""},{"$f":"IF(DataLog!$C2626=\"Log value\",DataLog!R2626,\"\")","v":""},{"$f":"IF(DataLog!$C2626=\"Log value\",DataLog!S2626,\"\")","v":""},{"$f":"IF(DataLog!$C2626=\"Log value\",DataLog!T2626,\"\")","v":""},{"$f":"IF(DataLog!$C2626=\"Log value\",DataLog!U2626,\"\")","v":""},{"$f":"IF(DataLog!$C2626=\"Log value\",DataLog!V2626,\"\")","v":""},{"$f":"IF(DataLog!$C2626=\"Log value\",DataLog!W2626,\"\")","v":""},{"$f":"IF(DataLog!$C2626=\"Log value\",DataLog!X2626,\"\")","v":""},{"$f":"IF(DataLog!$C2626=\"Log value\",DataLog!Y2626,\"\")","v":""},{"$f":"IF(DataLog!$C2626=\"Log value\",DataLog!Z2626,\"\")","v":""},{"$f":"IF(DataLog!$C2626=\"Log value\",DataLog!AA2626,\"\")","v":""},{"$f":"IF(DataLog!$C2626=\"Log value\",DataLog!AB2626,\"\")","v":""},{"$f":"IF(DataLog!$C2626=\"Log value\",DataLog!AC2626,\"\")","v":""},{"$f":"IF(DataLog!$C2626=\"Log value\",DataLog!AD2626,\"\")","v":""},{"$f":"IF(DataLog!$C2626=\"Log value\",DataLog!AE2626,\"\")","v":""},{"$f":"IF(DataLog!$C2626=\"Log value\",DataLog!AF2626,\"\")","v":""},{"$f":"IF(DataLog!$C2626=\"Log value\",DataLog!AG2626,\"\")","v":""},{"$f":"IF(DataLog!$C2626=\"Log value\",DataLog!AH2626,\"\")","v":""},{"$f":"IF(DataLog!$C2626=\"Log value\",DataLog!AI2626,\"\")","v":""},{"$f":"IF(DataLog!$C2626=\"Log value\",DataLog!AJ2626,\"\")","v":""},{"$f":"IF(DataLog!$C2626=\"Log value\",DataLog!AK2626,\"\")","v":""},{"$f":"IF(DataLog!$C2626=\"Log value\",DataLog!AL2626,\"\")","v":""},{"$f":"IF(DataLog!$C2626=\"Log value\",DataLog!AM2626,\"\")","v":""}]
[null,null,null,null,null,null,{"$f":"IF(DataLog!$C2629=\"Log value\",DataLog!D2629&\"_\"&TEXT(DataLog!B2629,\"åååå-mm-dd\"),\"\")","v":""},{"$f":"IF(DataLog!$C2629=\"Log value\",DataLog!E2629,\"\")","v":""},{"$f":"IF(DataLog!$C2629=\"Log value\",DataLog!F2629,\"\")","v":""},{"$f":"IF(DataLog!$C2629=\"Log value\",DataLog!G2629,\"\")","v":""},{"$f":"IF(DataLog!$C2629=\"Log value\",DataLog!H2629,\"\")","v":""},{"$f":"IF(DataLog!$C2629=\"Log value\",DataLog!I2629,\"\")","v":""},{"$f":"IF(DataLog!$C2629=\"Log value\",DataLog!J2629,\"\")","v":""},{"$f":"IF(DataLog!$C2629=\"Log value\",DataLog!K2629,\"\")","v":""},{"$f":"IF(DataLog!$C2629=\"Log value\",DataLog!L2629,\"\")","v":""},{"$f":"IF(DataLog!$C2629=\"Log value\",DataLog!M2629,\"\")","v":""},{"$f":"IF(DataLog!$C2629=\"Log value\",DataLog!N2629,\"\")","v":""},{"$f":"IF(DataLog!$C2629=\"Log value\",DataLog!O2629,\"\")","v":""},{"$f":"IF(DataLog!$C2629=\"Log value\",DataLog!P2629,\"\")","v":""},{"$f":"IF(DataLog!$C2629=\"Log value\",DataLog!Q2629,\"\")","v":""},{"$f":"IF(DataLog!$C2629=\"Log value\",DataLog!R2629,\"\")","v":""},{"$f":"IF(DataLog!$C2629=\"Log value\",DataLog!S2629,\"\")","v":""},{"$f":"IF(DataLog!$C2629=\"Log value\",DataLog!T2629,\"\")","v":""},{"$f":"IF(DataLog!$C2629=\"Log value\",DataLog!U2629,\"\")","v":""},{"$f":"IF(DataLog!$C2629=\"Log value\",DataLog!V2629,\"\")","v":""},{"$f":"IF(DataLog!$C2629=\"Log value\",DataLog!W2629,\"\")","v":""},{"$f":"IF(DataLog!$C2629=\"Log value\",DataLog!X2629,\"\")","v":""},{"$f":"IF(DataLog!$C2629=\"Log value\",DataLog!Y2629,\"\")","v":""},{"$f":"IF(DataLog!$C2629=\"Log value\",DataLog!Z2629,\"\")","v":""},{"$f":"IF(DataLog!$C2629=\"Log value\",DataLog!AA2629,\"\")","v":""},{"$f":"IF(DataLog!$C2629=\"Log value\",DataLog!AB2629,\"\")","v":""},{"$f":"IF(DataLog!$C2629=\"Log value\",DataLog!AC2629,\"\")","v":""},{"$f":"IF(DataLog!$C2629=\"Log value\",DataLog!AD2629,\"\")","v":""},{"$f":"IF(DataLog!$C2629=\"Log value\",DataLog!AE2629,\"\")","v":""},{"$f":"IF(DataLog!$C2629=\"Log value\",DataLog!AF2629,\"\")","v":""},{"$f":"IF(DataLog!$C2629=\"Log value\",DataLog!AG2629,\"\")","v":""},{"$f":"IF(DataLog!$C2629=\"Log value\",DataLog!AH2629,\"\")","v":""},{"$f":"IF(DataLog!$C2629=\"Log value\",DataLog!AI2629,\"\")","v":""},{"$f":"IF(DataLog!$C2629=\"Log value\",DataLog!AJ2629,\"\")","v":""},{"$f":"IF(DataLog!$C2629=\"Log value\",DataLog!AK2629,\"\")","v":""},{"$f":"IF(DataLog!$C2629=\"Log value\",DataLog!AL2629,\"\")","v":""},{"$f":"IF(DataLog!$C2629=\"Log value\",DataLog!AM2629,\"\")","v":""}]
[null,null,null,null,null,null,{"$f":"IF(DataLog!$C2630=\"Log value\",DataLog!D2630&\"_\"&TEXT(DataLog!B2630,\"åååå-mm-dd\"),\"\")","v":""},{"$f":"IF(DataLog!$C2630=\"Log value\",DataLog!E2630,\"\")","v":""},{"$f":"IF(DataLog!$C2630=\"Log value\",DataLog!F2630,\"\")","v":""},{"$f":"IF(DataLog!$C2630=\"Log value\",DataLog!G2630,\"\")","v":""},{"$f":"IF(DataLog!$C2630=\"Log value\",DataLog!H2630,\"\")","v":""},{"$f":"IF(DataLog!$C2630=\"Log value\",DataLog!I2630,\"\")","v":""},{"$f":"IF(DataLog!$C2630=\"Log value\",DataLog!J2630,\"\")","v":""},{"$f":"IF(DataLog!$C2630=\"Log value\",DataLog!K2630,\"\")","v":""},{"$f":"IF(DataLog!$C2630=\"Log value\",DataLog!L2630,\"\")","v":""},{"$f":"IF(DataLog!$C2630=\"Log value\",DataLog!M2630,\"\")","v":""},{"$f":"IF(DataLog!$C2630=\"Log value\",DataLog!N2630,\"\")","v":""},{"$f":"IF(DataLog!$C2630=\"Log value\",DataLog!O2630,\"\")","v":""},{"$f":"IF(DataLog!$C2630=\"Log value\",DataLog!P2630,\"\")","v":""},{"$f":"IF(DataLog!$C2630=\"Log value\",DataLog!Q2630,\"\")","v":""},{"$f":"IF(DataLog!$C2630=\"Log value\",DataLog!R2630,\"\")","v":""},{"$f":"IF(DataLog!$C2630=\"Log value\",DataLog!S2630,\"\")","v":""},{"$f":"IF(DataLog!$C2630=\"Log value\",DataLog!T2630,\"\")","v":""},{"$f":"IF(DataLog!$C2630=\"Log value\",DataLog!U2630,\"\")","v":""},{"$f":"IF(DataLog!$C2630=\"Log value\",DataLog!V2630,\"\")","v":""},{"$f":"IF(DataLog!$C2630=\"Log value\",DataLog!W2630,\"\")","v":""},{"$f":"IF(DataLog!$C2630=\"Log value\",DataLog!X2630,\"\")","v":""},{"$f":"IF(DataLog!$C2630=\"Log value\",DataLog!Y2630,\"\")","v":""},{"$f":"IF(DataLog!$C2630=\"Log value\",DataLog!Z2630,\"\")","v":""},{"$f":"IF(DataLog!$C2630=\"Log value\",DataLog!AA2630,\"\")","v":""},{"$f":"IF(DataLog!$C2630=\"Log value\",DataLog!AB2630,\"\")","v":""},{"$f":"IF(DataLog!$C2630=\"Log value\",DataLog!AC2630,\"\")","v":""},{"$f":"IF(DataLog!$C2630=\"Log value\",DataLog!AD2630,\"\")","v":""},{"$f":"IF(DataLog!$C2630=\"Log value\",DataLog!AE2630,\"\")","v":""},{"$f":"IF(DataLog!$C2630=\"Log value\",DataLog!AF2630,\"\")","v":""},{"$f":"IF(DataLog!$C2630=\"Log value\",DataLog!AG2630,\"\")","v":""},{"$f":"IF(DataLog!$C2630=\"Log value\",DataLog!AH2630,\"\")","v":""},{"$f":"IF(DataLog!$C2630=\"Log value\",DataLog!AI2630,\"\")","v":""},{"$f":"IF(DataLog!$C2630=\"Log value\",DataLog!AJ2630,\"\")","v":""},{"$f":"IF(DataLog!$C2630=\"Log value\",DataLog!AK2630,\"\")","v":""},{"$f":"IF(DataLog!$C2630=\"Log value\",DataLog!AL2630,\"\")","v":""},{"$f":"IF(DataLog!$C2630=\"Log value\",DataLog!AM2630,\"\")","v":""}]
[null,null,null,null,null,null,{"$f":"IF(DataLog!$C2633=\"Log value\",DataLog!D2633&\"_\"&TEXT(DataLog!B2633,\"åååå-mm-dd\"),\"\")","v":""},{"$f":"IF(DataLog!$C2633=\"Log value\",DataLog!E2633,\"\")","v":""},{"$f":"IF(DataLog!$C2633=\"Log value\",DataLog!F2633,\"\")","v":""},{"$f":"IF(DataLog!$C2633=\"Log value\",DataLog!G2633,\"\")","v":""},{"$f":"IF(DataLog!$C2633=\"Log value\",DataLog!H2633,\"\")","v":""},{"$f":"IF(DataLog!$C2633=\"Log value\",DataLog!I2633,\"\")","v":""},{"$f":"IF(DataLog!$C2633=\"Log value\",DataLog!J2633,\"\")","v":""},{"$f":"IF(DataLog!$C2633=\"Log value\",DataLog!K2633,\"\")","v":""},{"$f":"IF(DataLog!$C2633=\"Log value\",DataLog!L2633,\"\")","v":""},{"$f":"IF(DataLog!$C2633=\"Log value\",DataLog!M2633,\"\")","v":""},{"$f":"IF(DataLog!$C2633=\"Log value\",DataLog!N2633,\"\")","v":""},{"$f":"IF(DataLog!$C2633=\"Log value\",DataLog!O2633,\"\")","v":""},{"$f":"IF(DataLog!$C2633=\"Log value\",DataLog!P2633,\"\")","v":""},{"$f":"IF(DataLog!$C2633=\"Log value\",DataLog!Q2633,\"\")","v":""},{"$f":"IF(DataLog!$C2633=\"Log value\",DataLog!R2633,\"\")","v":""},{"$f":"IF(DataLog!$C2633=\"Log value\",DataLog!S2633,\"\")","v":""},{"$f":"IF(DataLog!$C2633=\"Log value\",DataLog!T2633,\"\")","v":""},{"$f":"IF(DataLog!$C2633=\"Log value\",DataLog!U2633,\"\")","v":""},{"$f":"IF(DataLog!$C2633=\"Log value\",DataLog!V2633,\"\")","v":""},{"$f":"IF(DataLog!$C2633=\"Log value\",DataLog!W2633,\"\")","v":""},{"$f":"IF(DataLog!$C2633=\"Log value\",DataLog!X2633,\"\")","v":""},{"$f":"IF(DataLog!$C2633=\"Log value\",DataLog!Y2633,\"\")","v":""},{"$f":"IF(DataLog!$C2633=\"Log value\",DataLog!Z2633,\"\")","v":""},{"$f":"IF(DataLog!$C2633=\"Log value\",DataLog!AA2633,\"\")","v":""},{"$f":"IF(DataLog!$C2633=\"Log value\",DataLog!AB2633,\"\")","v":""},{"$f":"IF(DataLog!$C2633=\"Log value\",DataLog!AC2633,\"\")","v":""},{"$f":"IF(DataLog!$C2633=\"Log value\",DataLog!AD2633,\"\")","v":""},{"$f":"IF(DataLog!$C2633=\"Log value\",DataLog!AE2633,\"\")","v":""},{"$f":"IF(DataLog!$C2633=\"Log value\",DataLog!AF2633,\"\")","v":""},{"$f":"IF(DataLog!$C2633=\"Log value\",DataLog!AG2633,\"\")","v":""},{"$f":"IF(DataLog!$C2633=\"Log value\",DataLog!AH2633,\"\")","v":""},{"$f":"IF(DataLog!$C2633=\"Log value\",DataLog!AI2633,\"\")","v":""},{"$f":"IF(DataLog!$C2633=\"Log value\",DataLog!AJ2633,\"\")","v":""},{"$f":"IF(DataLog!$C2633=\"Log value\",DataLog!AK2633,\"\")","v":""},{"$f":"IF(DataLog!$C2633=\"Log value\",DataLog!AL2633,\"\")","v":""},{"$f":"IF(DataLog!$C2633=\"Log value\",DataLog!AM2633,\"\")","v":""}]
[null,null,null,null,null,null,{"$f":"IF(DataLog!$C2634=\"Log value\",DataLog!D2634&\"_\"&TEXT(DataLog!B2634,\"åååå-mm-dd\"),\"\")","v":""},{"$f":"IF(DataLog!$C2634=\"Log value\",DataLog!E2634,\"\")","v":""},{"$f":"IF(DataLog!$C2634=\"Log value\",DataLog!F2634,\"\")","v":""},{"$f":"IF(DataLog!$C2634=\"Log value\",DataLog!G2634,\"\")","v":""},{"$f":"IF(DataLog!$C2634=\"Log value\",DataLog!H2634,\"\")","v":""},{"$f":"IF(DataLog!$C2634=\"Log value\",DataLog!I2634,\"\")","v":""},{"$f":"IF(DataLog!$C2634=\"Log value\",DataLog!J2634,\"\")","v":""},{"$f":"IF(DataLog!$C2634=\"Log value\",DataLog!K2634,\"\")","v":""},{"$f":"IF(DataLog!$C2634=\"Log value\",DataLog!L2634,\"\")","v":""},{"$f":"IF(DataLog!$C2634=\"Log value\",DataLog!M2634,\"\")","v":""},{"$f":"IF(DataLog!$C2634=\"Log value\",DataLog!N2634,\"\")","v":""},{"$f":"IF(DataLog!$C2634=\"Log value\",DataLog!O2634,\"\")","v":""},{"$f":"IF(DataLog!$C2634=\"Log value\",DataLog!P2634,\"\")","v":""},{"$f":"IF(DataLog!$C2634=\"Log value\",DataLog!Q2634,\"\")","v":""},{"$f":"IF(DataLog!$C2634=\"Log value\",DataLog!R2634,\"\")","v":""},{"$f":"IF(DataLog!$C2634=\"Log value\",DataLog!S2634,\"\")","v":""},{"$f":"IF(DataLog!$C2634=\"Log value\",DataLog!T2634,\"\")","v":""},{"$f":"IF(DataLog!$C2634=\"Log value\",DataLog!U2634,\"\")","v":""},{"$f":"IF(DataLog!$C2634=\"Log value\",DataLog!V2634,\"\")","v":""},{"$f":"IF(DataLog!$C2634=\"Log value\",DataLog!W2634,\"\")","v":""},{"$f":"IF(DataLog!$C2634=\"Log value\",DataLog!X2634,\"\")","v":""},{"$f":"IF(DataLog!$C2634=\"Log value\",DataLog!Y2634,\"\")","v":""},{"$f":"IF(DataLog!$C2634=\"Log value\",DataLog!Z2634,\"\")","v":""},{"$f":"IF(DataLog!$C2634=\"Log value\",DataLog!AA2634,\"\")","v":""},{"$f":"IF(DataLog!$C2634=\"Log value\",DataLog!AB2634,\"\")","v":""},{"$f":"IF(DataLog!$C2634=\"Log value\",DataLog!AC2634,\"\")","v":""},{"$f":"IF(DataLog!$C2634=\"Log value\",DataLog!AD2634,\"\")","v":""},{"$f":"IF(DataLog!$C2634=\"Log value\",DataLog!AE2634,\"\")","v":""},{"$f":"IF(DataLog!$C2634=\"Log value\",DataLog!AF2634,\"\")","v":""},{"$f":"IF(DataLog!$C2634=\"Log value\",DataLog!AG2634,\"\")","v":""},{"$f":"IF(DataLog!$C2634=\"Log value\",DataLog!AH2634,\"\")","v":""},{"$f":"IF(DataLog!$C2634=\"Log value\",DataLog!AI2634,\"\")","v":""},{"$f":"IF(DataLog!$C2634=\"Log value\",DataLog!AJ2634,\"\")","v":""},{"$f":"IF(DataLog!$C2634=\"Log value\",DataLog!AK2634,\"\")","v":""},{"$f":"IF(DataLog!$C2634=\"Log value\",DataLog!AL2634,\"\")","v":""},{"$f":"IF(DataLog!$C2634=\"Log value\",DataLog!AM2634,\"\")","v":""}]
[null,null,null,null,null,null,{"$f":"IF(DataLog!$C2638=\"Log value\",DataLog!D2638&\"_\"&TEXT(DataLog!B2638,\"åååå-mm-dd\"),\"\")","v":""},{"$f":"IF(DataLog!$C2638=\"Log value\",DataLog!E2638,\"\")","v":""},{"$f":"IF(DataLog!$C2638=\"Log value\",DataLog!F2638,\"\")","v":""},{"$f":"IF(DataLog!$C2638=\"Log value\",DataLog!G2638,\"\")","v":""},{"$f":"IF(DataLog!$C2638=\"Log value\",DataLog!H2638,\"\")","v":""},{"$f":"IF(DataLog!$C2638=\"Log value\",DataLog!I2638,\"\")","v":""},{"$f":"IF(DataLog!$C2638=\"Log value\",DataLog!J2638,\"\")","v":""},{"$f":"IF(DataLog!$C2638=\"Log value\",DataLog!K2638,\"\")","v":""},{"$f":"IF(DataLog!$C2638=\"Log value\",DataLog!L2638,\"\")","v":""},{"$f":"IF(DataLog!$C2638=\"Log value\",DataLog!M2638,\"\")","v":""},{"$f":"IF(DataLog!$C2638=\"Log value\",DataLog!N2638,\"\")","v":""},{"$f":"IF(DataLog!$C2638=\"Log value\",DataLog!O2638,\"\")","v":""},{"$f":"IF(DataLog!$C2638=\"Log value\",DataLog!P2638,\"\")","v":""},{"$f":"IF(DataLog!$C2638=\"Log value\",DataLog!Q2638,\"\")","v":""},{"$f":"IF(DataLog!$C2638=\"Log value\",DataLog!R2638,\"\")","v":""},{"$f":"IF(DataLog!$C2638=\"Log value\",DataLog!S2638,\"\")","v":""},{"$f":"IF(DataLog!$C2638=\"Log value\",DataLog!T2638,\"\")","v":""},{"$f":"IF(DataLog!$C2638=\"Log value\",DataLog!U2638,\"\")","v":""},{"$f":"IF(DataLog!$C2638=\"Log value\",DataLog!V2638,\"\")","v":""},{"$f":"IF(DataLog!$C2638=\"Log value\",DataLog!W2638,\"\")","v":""},{"$f":"IF(DataLog!$C2638=\"Log value\",DataLog!X2638,\"\")","v":""},{"$f":"IF(DataLog!$C2638=\"Log value\",DataLog!Y2638,\"\")","v":""},{"$f":"IF(DataLog!$C2638=\"Log value\",DataLog!Z2638,\"\")","v":""},{"$f":"IF(DataLog!$C2638=\"Log value\",DataLog!AA2638,\"\")","v":""},{"$f":"IF(DataLog!$C2638=\"Log value\",DataLog!AB2638,\"\")","v":""},{"$f":"IF(DataLog!$C2638=\"Log value\",DataLog!AC2638,\"\")","v":""},{"$f":"IF(DataLog!$C2638=\"Log value\",DataLog!AD2638,\"\")","v":""},{"$f":"IF(DataLog!$C2638=\"Log value\",DataLog!AE2638,\"\")","v":""},{"$f":"IF(DataLog!$C2638=\"Log value\",DataLog!AF2638,\"\")","v":""},{"$f":"IF(DataLog!$C2638=\"Log value\",DataLog!AG2638,\"\")","v":""},{"$f":"IF(DataLog!$C2638=\"Log value\",DataLog!AH2638,\"\")","v":""},{"$f":"IF(DataLog!$C2638=\"Log value\",DataLog!AI2638,\"\")","v":""},{"$f":"IF(DataLog!$C2638=\"Log value\",DataLog!AJ2638,\"\")","v":""},{"$f":"IF(DataLog!$C2638=\"Log value\",DataLog!AK2638,\"\")","v":""},{"$f":"IF(DataLog!$C2638=\"Log value\",DataLog!AL2638,\"\")","v":""},{"$f":"IF(DataLog!$C2638=\"Log value\",DataLog!AM2638,\"\")","v":""}]
[null,null,null,null,null,null,{"$f":"IF(DataLog!$C2639=\"Log value\",DataLog!D2639&\"_\"&TEXT(DataLog!B2639,\"åååå-mm-dd\"),\"\")","v":""},{"$f":"IF(DataLog!$C2639=\"Log value\",DataLog!E2639,\"\")","v":""},{"$f":"IF(DataLog!$C2639=\"Log value\",DataLog!F2639,\"\")","v":""},{"$f":"IF(DataLog!$C2639=\"Log value\",DataLog!G2639,\"\")","v":""},{"$f":"IF(DataLog!$C2639=\"Log value\",DataLog!H2639,\"\")","v":""},{"$f":"IF(DataLog!$C2639=\"Log value\",DataLog!I2639,\"\")","v":""},{"$f":"IF(DataLog!$C2639=\"Log value\",DataLog!J2639,\"\")","v":""},{"$f":"IF(DataLog!$C2639=\"Log value\",DataLog!K2639,\"\")","v":""},{"$f":"IF(DataLog!$C2639=\"Log value\",DataLog!L2639,\"\")","v":""},{"$f":"IF(DataLog!$C2639=\"Log value\",DataLog!M2639,\"\")","v":""},{"$f":"IF(DataLog!$C2639=\"Log value\",DataLog!N2639,\"\")","v":""},{"$f":"IF(DataLog!$C2639=\"Log value\",DataLog!O2639,\"\")","v":""},{"$f":"IF(DataLog!$C2639=\"Log value\",DataLog!P2639,\"\")","v":""},{"$f":"IF(DataLog!$C2639=\"Log value\",DataLog!Q2639,\"\")","v":""},{"$f":"IF(DataLog!$C2639=\"Log value\",DataLog!R2639,\"\")","v":""},{"$f":"IF(DataLog!$C2639=\"Log value\",DataLog!S2639,\"\")","v":""},{"$f":"IF(DataLog!$C2639=\"Log value\",DataLog!T2639,\"\")","v":""},{"$f":"IF(DataLog!$C2639=\"Log value\",DataLog!U2639,\"\")","v":""},{"$f":"IF(DataLog!$C2639=\"Log value\",DataLog!V2639,\"\")","v":""},{"$f":"IF(DataLog!$C2639=\"Log value\",DataLog!W2639,\"\")","v":""},{"$f":"IF(DataLog!$C2639=\"Log value\",DataLog!X2639,\"\")","v":""},{"$f":"IF(DataLog!$C2639=\"Log value\",DataLog!Y2639,\"\")","v":""},{"$f":"IF(DataLog!$C2639=\"Log value\",DataLog!Z2639,\"\")","v":""},{"$f":"IF(DataLog!$C2639=\"Log value\",DataLog!AA2639,\"\")","v":""},{"$f":"IF(DataLog!$C2639=\"Log value\",DataLog!AB2639,\"\")","v":""},{"$f":"IF(DataLog!$C2639=\"Log value\",DataLog!AC2639,\"\")","v":""},{"$f":"IF(DataLog!$C2639=\"Log value\",DataLog!AD2639,\"\")","v":""},{"$f":"IF(DataLog!$C2639=\"Log value\",DataLog!AE2639,\"\")","v":""},{"$f":"IF(DataLog!$C2639=\"Log value\",DataLog!AF2639,\"\")","v":""},{"$f":"IF(DataLog!$C2639=\"Log value\",DataLog!AG2639,\"\")","v":""},{"$f":"IF(DataLog!$C2639=\"Log value\",DataLog!AH2639,\"\")","v":""},{"$f":"IF(DataLog!$C2639=\"Log value\",DataLog!AI2639,\"\")","v":""},{"$f":"IF(DataLog!$C2639=\"Log value\",DataLog!AJ2639,\"\")","v":""},{"$f":"IF(DataLog!$C2639=\"Log value\",DataLog!AK2639,\"\")","v":""},{"$f":"IF(DataLog!$C2639=\"Log value\",DataLog!AL2639,\"\")","v":""},{"$f":"IF(DataLog!$C2639=\"Log value\",DataLog!AM2639,\"\")","v":""}]
[null,null,null,null,null,null,{"$f":"IF(DataLog!$C2642=\"Log value\",DataLog!D2642&\"_\"&TEXT(DataLog!B2642,\"åååå-mm-dd\"),\"\")","v":""},{"$f":"IF(DataLog!$C2642=\"Log value\",DataLog!E2642,\"\")","v":""},{"$f":"IF(DataLog!$C2642=\"Log value\",DataLog!F2642,\"\")","v":""},{"$f":"IF(DataLog!$C2642=\"Log value\",DataLog!G2642,\"\")","v":""},{"$f":"IF(DataLog!$C2642=\"Log value\",DataLog!H2642,\"\")","v":""},{"$f":"IF(DataLog!$C2642=\"Log value\",DataLog!I2642,\"\")","v":""},{"$f":"IF(DataLog!$C2642=\"Log value\",DataLog!J2642,\"\")","v":""},{"$f":"IF(DataLog!$C2642=\"Log value\",DataLog!K2642,\"\")","v":""},{"$f":"IF(DataLog!$C2642=\"Log value\",DataLog!L2642,\"\")","v":""},{"$f":"IF(DataLog!$C2642=\"Log value\",DataLog!M2642,\"\")","v":""},{"$f":"IF(DataLog!$C2642=\"Log value\",DataLog!N2642,\"\")","v":""},{"$f":"IF(DataLog!$C2642=\"Log value\",DataLog!O2642,\"\")","v":""},{"$f":"IF(DataLog!$C2642=\"Log value\",DataLog!P2642,\"\")","v":""},{"$f":"IF(DataLog!$C2642=\"Log value\",DataLog!Q2642,\"\")","v":""},{"$f":"IF(DataLog!$C2642=\"Log value\",DataLog!R2642,\"\")","v":""},{"$f":"IF(DataLog!$C2642=\"Log value\",DataLog!S2642,\"\")","v":""},{"$f":"IF(DataLog!$C2642=\"Log value\",DataLog!T2642,\"\")","v":""},{"$f":"IF(DataLog!$C2642=\"Log value\",DataLog!U2642,\"\")","v":""},{"$f":"IF(DataLog!$C2642=\"Log value\",DataLog!V2642,\"\")","v":""},{"$f":"IF(DataLog!$C2642=\"Log value\",DataLog!W2642,\"\")","v":""},{"$f":"IF(DataLog!$C2642=\"Log value\",DataLog!X2642,\"\")","v":""},{"$f":"IF(DataLog!$C2642=\"Log value\",DataLog!Y2642,\"\")","v":""},{"$f":"IF(DataLog!$C2642=\"Log value\",DataLog!Z2642,\"\")","v":""},{"$f":"IF(DataLog!$C2642=\"Log value\",DataLog!AA2642,\"\")","v":""},{"$f":"IF(DataLog!$C2642=\"Log value\",DataLog!AB2642,\"\")","v":""},{"$f":"IF(DataLog!$C2642=\"Log value\",DataLog!AC2642,\"\")","v":""},{"$f":"IF(DataLog!$C2642=\"Log value\",DataLog!AD2642,\"\")","v":""},{"$f":"IF(DataLog!$C2642=\"Log value\",DataLog!AE2642,\"\")","v":""},{"$f":"IF(DataLog!$C2642=\"Log value\",DataLog!AF2642,\"\")","v":""},{"$f":"IF(DataLog!$C2642=\"Log value\",DataLog!AG2642,\"\")","v":""},{"$f":"IF(DataLog!$C2642=\"Log value\",DataLog!AH2642,\"\")","v":""},{"$f":"IF(DataLog!$C2642=\"Log value\",DataLog!AI2642,\"\")","v":""},{"$f":"IF(DataLog!$C2642=\"Log value\",DataLog!AJ2642,\"\")","v":""},{"$f":"IF(DataLog!$C2642=\"Log value\",DataLog!AK2642,\"\")","v":""},{"$f":"IF(DataLog!$C2642=\"Log value\",DataLog!AL2642,\"\")","v":""},{"$f":"IF(DataLog!$C2642=\"Log value\",DataLog!AM2642,\"\")","v":""}]
[null,null,null,null,null,null,{"$f":"IF(DataLog!$C2645=\"Log value\",DataLog!D2645&\"_\"&TEXT(DataLog!B2645,\"åååå-mm-dd\"),\"\")","v":""},{"$f":"IF(DataLog!$C2645=\"Log value\",DataLog!E2645,\"\")","v":""},{"$f":"IF(DataLog!$C2645=\"Log value\",DataLog!F2645,\"\")","v":""},{"$f":"IF(DataLog!$C2645=\"Log value\",DataLog!G2645,\"\")","v":""},{"$f":"IF(DataLog!$C2645=\"Log value\",DataLog!H2645,\"\")","v":""},{"$f":"IF(DataLog!$C2645=\"Log value\",DataLog!I2645,\"\")","v":""},{"$f":"IF(DataLog!$C2645=\"Log value\",DataLog!J2645,\"\")","v":""},{"$f":"IF(DataLog!$C2645=\"Log value\",DataLog!K2645,\"\")","v":""},{"$f":"IF(DataLog!$C2645=\"Log value\",DataLog!L2645,\"\")","v":""},{"$f":"IF(DataLog!$C2645=\"Log value\",DataLog!M2645,\"\")","v":""},{"$f":"IF(DataLog!$C2645=\"Log value\",DataLog!N2645,\"\")","v":""},{"$f":"IF(DataLog!$C2645=\"Log value\",DataLog!O2645,\"\")","v":""},{"$f":"IF(DataLog!$C2645=\"Log value\",DataLog!P2645,\"\")","v":""},{"$f":"IF(DataLog!$C2645=\"Log value\",DataLog!Q2645,\"\")","v":""},{"$f":"IF(DataLog!$C2645=\"Log value\",DataLog!R2645,\"\")","v":""},{"$f":"IF(DataLog!$C2645=\"Log value\",DataLog!S2645,\"\")","v":""},{"$f":"IF(DataLog!$C2645=\"Log value\",DataLog!T2645,\"\")","v":""},{"$f":"IF(DataLog!$C2645=\"Log value\",DataLog!U2645,\"\")","v":""},{"$f":"IF(DataLog!$C2645=\"Log value\",DataLog!V2645,\"\")","v":""},{"$f":"IF(DataLog!$C2645=\"Log value\",DataLog!W2645,\"\")","v":""},{"$f":"IF(DataLog!$C2645=\"Log value\",DataLog!X2645,\"\")","v":""},{"$f":"IF(DataLog!$C2645=\"Log value\",DataLog!Y2645,\"\")","v":""},{"$f":"IF(DataLog!$C2645=\"Log value\",DataLog!Z2645,\"\")","v":""},{"$f":"IF(DataLog!$C2645=\"Log value\",DataLog!AA2645,\"\")","v":""},{"$f":"IF(DataLog!$C2645=\"Log value\",DataLog!AB2645,\"\")","v":""},{"$f":"IF(DataLog!$C2645=\"Log value\",DataLog!AC2645,\"\")","v":""},{"$f":"IF(DataLog!$C2645=\"Log value\",DataLog!AD2645,\"\")","v":""},{"$f":"IF(DataLog!$C2645=\"Log value\",DataLog!AE2645,\"\")","v":""},{"$f":"IF(DataLog!$C2645=\"Log value\",DataLog!AF2645,\"\")","v":""},{"$f":"IF(DataLog!$C2645=\"Log value\",DataLog!AG2645,\"\")","v":""},{"$f":"IF(DataLog!$C2645=\"Log value\",DataLog!AH2645,\"\")","v":""},{"$f":"IF(DataLog!$C2645=\"Log value\",DataLog!AI2645,\"\")","v":""},{"$f":"IF(DataLog!$C2645=\"Log value\",DataLog!AJ2645,\"\")","v":""},{"$f":"IF(DataLog!$C2645=\"Log value\",DataLog!AK2645,\"\")","v":""},{"$f":"IF(DataLog!$C2645=\"Log value\",DataLog!AL2645,\"\")","v":""},{"$f":"IF(DataLog!$C2645=\"Log value\",DataLog!AM2645,\"\")","v":""}]
[null,null,null,null,null,null,{"$f":"IF(DataLog!$C2647=\"Log value\",DataLog!D2647&\"_\"&TEXT(DataLog!B2647,\"åååå-mm-dd\"),\"\")","v":""},{"$f":"IF(DataLog!$C2647=\"Log value\",DataLog!E2647,\"\")","v":""},{"$f":"IF(DataLog!$C2647=\"Log value\",DataLog!F2647,\"\")","v":""},{"$f":"IF(DataLog!$C2647=\"Log value\",DataLog!G2647,\"\")","v":""},{"$f":"IF(DataLog!$C2647=\"Log value\",DataLog!H2647,\"\")","v":""},{"$f":"IF(DataLog!$C2647=\"Log value\",DataLog!I2647,\"\")","v":""},{"$f":"IF(DataLog!$C2647=\"Log value\",DataLog!J2647,\"\")","v":""},{"$f":"IF(DataLog!$C2647=\"Log value\",DataLog!K2647,\"\")","v":""},{"$f":"IF(DataLog!$C2647=\"Log value\",DataLog!L2647,\"\")","v":""},{"$f":"IF(DataLog!$C2647=\"Log value\",DataLog!M2647,\"\")","v":""},{"$f":"IF(DataLog!$C2647=\"Log value\",DataLog!N2647,\"\")","v":""},{"$f":"IF(DataLog!$C2647=\"Log value\",DataLog!O2647,\"\")","v":""},{"$f":"IF(DataLog!$C2647=\"Log value\",DataLog!P2647,\"\")","v":""},{"$f":"IF(DataLog!$C2647=\"Log value\",DataLog!Q2647,\"\")","v":""},{"$f":"IF(DataLog!$C2647=\"Log value\",DataLog!R2647,\"\")","v":""},{"$f":"IF(DataLog!$C2647=\"Log value\",DataLog!S2647,\"\")","v":""},{"$f":"IF(DataLog!$C2647=\"Log value\",DataLog!T2647,\"\")","v":""},{"$f":"IF(DataLog!$C2647=\"Log value\",DataLog!U2647,\"\")","v":""},{"$f":"IF(DataLog!$C2647=\"Log value\",DataLog!V2647,\"\")","v":""},{"$f":"IF(DataLog!$C2647=\"Log value\",DataLog!W2647,\"\")","v":""},{"$f":"IF(DataLog!$C2647=\"Log value\",DataLog!X2647,\"\")","v":""},{"$f":"IF(DataLog!$C2647=\"Log value\",DataLog!Y2647,\"\")","v":""},{"$f":"IF(DataLog!$C2647=\"Log value\",DataLog!Z2647,\"\")","v":""},{"$f":"IF(DataLog!$C2647=\"Log value\",DataLog!AA2647,\"\")","v":""},{"$f":"IF(DataLog!$C2647=\"Log value\",DataLog!AB2647,\"\")","v":""},{"$f":"IF(DataLog!$C2647=\"Log value\",DataLog!AC2647,\"\")","v":""},{"$f":"IF(DataLog!$C2647=\"Log value\",DataLog!AD2647,\"\")","v":""},{"$f":"IF(DataLog!$C2647=\"Log value\",DataLog!AE2647,\"\")","v":""},{"$f":"IF(DataLog!$C2647=\"Log value\",DataLog!AF2647,\"\")","v":""},{"$f":"IF(DataLog!$C2647=\"Log value\",DataLog!AG2647,\"\")","v":""},{"$f":"IF(DataLog!$C2647=\"Log value\",DataLog!AH2647,\"\")","v":""},{"$f":"IF(DataLog!$C2647=\"Log value\",DataLog!AI2647,\"\")","v":""},{"$f":"IF(DataLog!$C2647=\"Log value\",DataLog!AJ2647,\"\")","v":""},{"$f":"IF(DataLog!$C2647=\"Log value\",DataLog!AK2647,\"\")","v":""},{"$f":"IF(DataLog!$C2647=\"Log value\",DataLog!AL2647,\"\")","v":""},{"$f":"IF(DataLog!$C2647=\"Log value\",DataLog!AM2647,\"\")","v":""}]
[null,null,null,null,null,null,{"$f":"IF(DataLog!$C2648=\"Log value\",DataLog!D2648&\"_\"&TEXT(DataLog!B2648,\"åååå-mm-dd\"),\"\")","v":""},{"$f":"IF(DataLog!$C2648=\"Log value\",DataLog!E2648,\"\")","v":""},{"$f":"IF(DataLog!$C2648=\"Log value\",DataLog!F2648,\"\")","v":""},{"$f":"IF(DataLog!$C2648=\"Log value\",DataLog!G2648,\"\")","v":""},{"$f":"IF(DataLog!$C2648=\"Log value\",DataLog!H2648,\"\")","v":""},{"$f":"IF(DataLog!$C2648=\"Log value\",DataLog!I2648,\"\")","v":""},{"$f":"IF(DataLog!$C2648=\"Log value\",DataLog!J2648,\"\")","v":""},{"$f":"IF(DataLog!$C2648=\"Log value\",DataLog!K2648,\"\")","v":""},{"$f":"IF(DataLog!$C2648=\"Log value\",DataLog!L2648,\"\")","v":""},{"$f":"IF(DataLog!$C2648=\"Log value\",DataLog!M2648,\"\")","v":""},{"$f":"IF(DataLog!$C2648=\"Log value\",DataLog!N2648,\"\")","v":""},{"$f":"IF(DataLog!$C2648=\"Log value\",DataLog!O2648,\"\")","v":""},{"$f":"IF(DataLog!$C2648=\"Log value\",DataLog!P2648,\"\")","v":""},{"$f":"IF(DataLog!$C2648=\"Log value\",DataLog!Q2648,\"\")","v":""},{"$f":"IF(DataLog!$C2648=\"Log value\",DataLog!R2648,\"\")","v":""},{"$f":"IF(DataLog!$C2648=\"Log value\",DataLog!S2648,\"\")","v":""},{"$f":"IF(DataLog!$C2648=\"Log value\",DataLog!T2648,\"\")","v":""},{"$f":"IF(DataLog!$C2648=\"Log value\",DataLog!U2648,\"\")","v":""},{"$f":"IF(DataLog!$C2648=\"Log value\",DataLog!V2648,\"\")","v":""},{"$f":"IF(DataLog!$C2648=\"Log value\",DataLog!W2648,\"\")","v":""},{"$f":"IF(DataLog!$C2648=\"Log value\",DataLog!X2648,\"\")","v":""},{"$f":"IF(DataLog!$C2648=\"Log value\",DataLog!Y2648,\"\")","v":""},{"$f":"IF(DataLog!$C2648=\"Log value\",DataLog!Z2648,\"\")","v":""},{"$f":"IF(DataLog!$C2648=\"Log value\",DataLog!AA2648,\"\")","v":""},{"$f":"IF(DataLog!$C2648=\"Log value\",DataLog!AB2648,\"\")","v":""},{"$f":"IF(DataLog!$C2648=\"Log value\",DataLog!AC2648,\"\")","v":""},{"$f":"IF(DataLog!$C2648=\"Log value\",DataLog!AD2648,\"\")","v":""},{"$f":"IF(DataLog!$C2648=\"Log value\",DataLog!AE2648,\"\")","v":""},{"$f":"IF(DataLog!$C2648=\"Log value\",DataLog!AF2648,\"\")","v":""},{"$f":"IF(DataLog!$C2648=\"Log value\",DataLog!AG2648,\"\")","v":""},{"$f":"IF(DataLog!$C2648=\"Log value\",DataLog!AH2648,\"\")","v":""},{"$f":"IF(DataLog!$C2648=\"Log value\",DataLog!AI2648,\"\")","v":""},{"$f":"IF(DataLog!$C2648=\"Log value\",DataLog!AJ2648,\"\")","v":""},{"$f":"IF(DataLog!$C2648=\"Log value\",DataLog!AK2648,\"\")","v":""},{"$f":"IF(DataLog!$C2648=\"Log value\",DataLog!AL2648,\"\")","v":""},{"$f":"IF(DataLog!$C2648=\"Log value\",DataLog!AM2648,\"\")","v":""}]
[null,null,null,null,null,null,{"$f":"IF(DataLog!$C2651=\"Log value\",DataLog!D2651&\"_\"&TEXT(DataLog!B2651,\"åååå-mm-dd\"),\"\")","v":""},{"$f":"IF(DataLog!$C2651=\"Log value\",DataLog!E2651,\"\")","v":""},{"$f":"IF(DataLog!$C2651=\"Log value\",DataLog!F2651,\"\")","v":""},{"$f":"IF(DataLog!$C2651=\"Log value\",DataLog!G2651,\"\")","v":""},{"$f":"IF(DataLog!$C2651=\"Log value\",DataLog!H2651,\"\")","v":""},{"$f":"IF(DataLog!$C2651=\"Log value\",DataLog!I2651,\"\")","v":""},{"$f":"IF(DataLog!$C2651=\"Log value\",DataLog!J2651,\"\")","v":""},{"$f":"IF(DataLog!$C2651=\"Log value\",DataLog!K2651,\"\")","v":""},{"$f":"IF(DataLog!$C2651=\"Log value\",DataLog!L2651,\"\")","v":""},{"$f":"IF(DataLog!$C2651=\"Log value\",DataLog!M2651,\"\")","v":""},{"$f":"IF(DataLog!$C2651=\"Log value\",DataLog!N2651,\"\")","v":""},{"$f":"IF(DataLog!$C2651=\"Log value\",DataLog!O2651,\"\")","v":""},{"$f":"IF(DataLog!$C2651=\"Log value\",DataLog!P2651,\"\")","v":""},{"$f":"IF(DataLog!$C2651=\"Log value\",DataLog!Q2651,\"\")","v":""},{"$f":"IF(DataLog!$C2651=\"Log value\",DataLog!R2651,\"\")","v":""},{"$f":"IF(DataLog!$C2651=\"Log value\",DataLog!S2651,\"\")","v":""},{"$f":"IF(DataLog!$C2651=\"Log value\",DataLog!T2651,\"\")","v":""},{"$f":"IF(DataLog!$C2651=\"Log value\",DataLog!U2651,\"\")","v":""},{"$f":"IF(DataLog!$C2651=\"Log value\",DataLog!V2651,\"\")","v":""},{"$f":"IF(DataLog!$C2651=\"Log value\",DataLog!W2651,\"\")","v":""},{"$f":"IF(DataLog!$C2651=\"Log value\",DataLog!X2651,\"\")","v":""},{"$f":"IF(DataLog!$C2651=\"Log value\",DataLog!Y2651,\"\")","v":""},{"$f":"IF(DataLog!$C2651=\"Log value\",DataLog!Z2651,\"\")","v":""},{"$f":"IF(DataLog!$C2651=\"Log value\",DataLog!AA2651,\"\")","v":""},{"$f":"IF(DataLog!$C2651=\"Log value\",DataLog!AB2651,\"\")","v":""},{"$f":"IF(DataLog!$C2651=\"Log value\",DataLog!AC2651,\"\")","v":""},{"$f":"IF(DataLog!$C2651=\"Log value\",DataLog!AD2651,\"\")","v":""},{"$f":"IF(DataLog!$C2651=\"Log value\",DataLog!AE2651,\"\")","v":""},{"$f":"IF(DataLog!$C2651=\"Log value\",DataLog!AF2651,\"\")","v":""},{"$f":"IF(DataLog!$C2651=\"Log value\",DataLog!AG2651,\"\")","v":""},{"$f":"IF(DataLog!$C2651=\"Log value\",DataLog!AH2651,\"\")","v":""},{"$f":"IF(DataLog!$C2651=\"Log value\",DataLog!AI2651,\"\")","v":""},{"$f":"IF(DataLog!$C2651=\"Log value\",DataLog!AJ2651,\"\")","v":""},{"$f":"IF(DataLog!$C2651=\"Log value\",DataLog!AK2651,\"\")","v":""},{"$f":"IF(DataLog!$C2651=\"Log value\",DataLog!AL2651,\"\")","v":""},{"$f":"IF(DataLog!$C2651=\"Log value\",DataLog!AM2651,\"\")","v":""}]
[null,null,null,null,null,null,{"$f":"IF(DataLog!$C2652=\"Log value\",DataLog!D2652&\"_\"&TEXT(DataLog!B2652,\"åååå-mm-dd\"),\"\")","v":""},{"$f":"IF(DataLog!$C2652=\"Log value\",DataLog!E2652,\"\")","v":""},{"$f":"IF(DataLog!$C2652=\"Log value\",DataLog!F2652,\"\")","v":""},{"$f":"IF(DataLog!$C2652=\"Log value\",DataLog!G2652,\"\")","v":""},{"$f":"IF(DataLog!$C2652=\"Log value\",DataLog!H2652,\"\")","v":""},{"$f":"IF(DataLog!$C2652=\"Log value\",DataLog!I2652,\"\")","v":""},{"$f":"IF(DataLog!$C2652=\"Log value\",DataLog!J2652,\"\")","v":""},{"$f":"IF(DataLog!$C2652=\"Log value\",DataLog!K2652,\"\")","v":""},{"$f":"IF(DataLog!$C2652=\"Log value\",DataLog!L2652,\"\")","v":""},{"$f":"IF(DataLog!$C2652=\"Log value\",DataLog!M2652,\"\")","v":""},{"$f":"IF(DataLog!$C2652=\"Log value\",DataLog!N2652,\"\")","v":""},{"$f":"IF(DataLog!$C2652=\"Log value\",DataLog!O2652,\"\")","v":""},{"$f":"IF(DataLog!$C2652=\"Log value\",DataLog!P2652,\"\")","v":""},{"$f":"IF(DataLog!$C2652=\"Log value\",DataLog!Q2652,\"\")","v":""},{"$f":"IF(DataLog!$C2652=\"Log value\",DataLog!R2652,\"\")","v":""},{"$f":"IF(DataLog!$C2652=\"Log value\",DataLog!S2652,\"\")","v":""},{"$f":"IF(DataLog!$C2652=\"Log value\",DataLog!T2652,\"\")","v":""},{"$f":"IF(DataLog!$C2652=\"Log value\",DataLog!U2652,\"\")","v":""},{"$f":"IF(DataLog!$C2652=\"Log value\",DataLog!V2652,\"\")","v":""},{"$f":"IF(DataLog!$C2652=\"Log value\",DataLog!W2652,\"\")","v":""},{"$f":"IF(DataLog!$C2652=\"Log value\",DataLog!X2652,\"\")","v":""},{"$f":"IF(DataLog!$C2652=\"Log value\",DataLog!Y2652,\"\")","v":""},{"$f":"IF(DataLog!$C2652=\"Log value\",DataLog!Z2652,\"\")","v":""},{"$f":"IF(DataLog!$C2652=\"Log value\",DataLog!AA2652,\"\")","v":""},{"$f":"IF(DataLog!$C2652=\"Log value\",DataLog!AB2652,\"\")","v":""},{"$f":"IF(DataLog!$C2652=\"Log value\",DataLog!AC2652,\"\")","v":""},{"$f":"IF(DataLog!$C2652=\"Log value\",DataLog!AD2652,\"\")","v":""},{"$f":"IF(DataLog!$C2652=\"Log value\",DataLog!AE2652,\"\")","v":""},{"$f":"IF(DataLog!$C2652=\"Log value\",DataLog!AF2652,\"\")","v":""},{"$f":"IF(DataLog!$C2652=\"Log value\",DataLog!AG2652,\"\")","v":""},{"$f":"IF(DataLog!$C2652=\"Log value\",DataLog!AH2652,\"\")","v":""},{"$f":"IF(DataLog!$C2652=\"Log value\",DataLog!AI2652,\"\")","v":""},{"$f":"IF(DataLog!$C2652=\"Log value\",DataLog!AJ2652,\"\")","v":""},{"$f":"IF(DataLog!$C2652=\"Log value\",DataLog!AK2652,\"\")","v":""},{"$f":"IF(DataLog!$C2652=\"Log value\",DataLog!AL2652,\"\")","v":""},{"$f":"IF(DataLog!$C2652=\"Log value\",DataLog!AM2652,\"\")","v":""}]
[null,null,null,null,null,null,{"$f":"IF(DataLog!$C2656=\"Log value\",DataLog!D2656&\"_\"&TEXT(DataLog!B2656,\"åååå-mm-dd\"),\"\")","v":""},{"$f":"IF(DataLog!$C2656=\"Log value\",DataLog!E2656,\"\")","v":""},{"$f":"IF(DataLog!$C2656=\"Log value\",DataLog!F2656,\"\")","v":""},{"$f":"IF(DataLog!$C2656=\"Log value\",DataLog!G2656,\"\")","v":""},{"$f":"IF(DataLog!$C2656=\"Log value\",DataLog!H2656,\"\")","v":""},{"$f":"IF(DataLog!$C2656=\"Log value\",DataLog!I2656,\"\")","v":""},{"$f":"IF(DataLog!$C2656=\"Log value\",DataLog!J2656,\"\")","v":""},{"$f":"IF(DataLog!$C2656=\"Log value\",DataLog!K2656,\"\")","v":""},{"$f":"IF(DataLog!$C2656=\"Log value\",DataLog!L2656,\"\")","v":""},{"$f":"IF(DataLog!$C2656=\"Log value\",DataLog!M2656,\"\")","v":""},{"$f":"IF(DataLog!$C2656=\"Log value\",DataLog!N2656,\"\")","v":""},{"$f":"IF(DataLog!$C2656=\"Log value\",DataLog!O2656,\"\")","v":""},{"$f":"IF(DataLog!$C2656=\"Log value\",DataLog!P2656,\"\")","v":""},{"$f":"IF(DataLog!$C2656=\"Log value\",DataLog!Q2656,\"\")","v":""},{"$f":"IF(DataLog!$C2656=\"Log value\",DataLog!R2656,\"\")","v":""},{"$f":"IF(DataLog!$C2656=\"Log value\",DataLog!S2656,\"\")","v":""},{"$f":"IF(DataLog!$C2656=\"Log value\",DataLog!T2656,\"\")","v":""},{"$f":"IF(DataLog!$C2656=\"Log value\",DataLog!U2656,\"\")","v":""},{"$f":"IF(DataLog!$C2656=\"Log value\",DataLog!V2656,\"\")","v":""},{"$f":"IF(DataLog!$C2656=\"Log value\",DataLog!W2656,\"\")","v":""},{"$f":"IF(DataLog!$C2656=\"Log value\",DataLog!X2656,\"\")","v":""},{"$f":"IF(DataLog!$C2656=\"Log value\",DataLog!Y2656,\"\")","v":""},{"$f":"IF(DataLog!$C2656=\"Log value\",DataLog!Z2656,\"\")","v":""},{"$f":"IF(DataLog!$C2656=\"Log value\",DataLog!AA2656,\"\")","v":""},{"$f":"IF(DataLog!$C2656=\"Log value\",DataLog!AB2656,\"\")","v":""},{"$f":"IF(DataLog!$C2656=\"Log value\",DataLog!AC2656,\"\")","v":""},{"$f":"IF(DataLog!$C2656=\"Log value\",DataLog!AD2656,\"\")","v":""},{"$f":"IF(DataLog!$C2656=\"Log value\",DataLog!AE2656,\"\")","v":""},{"$f":"IF(DataLog!$C2656=\"Log value\",DataLog!AF2656,\"\")","v":""},{"$f":"IF(DataLog!$C2656=\"Log value\",DataLog!AG2656,\"\")","v":""},{"$f":"IF(DataLog!$C2656=\"Log value\",DataLog!AH2656,\"\")","v":""},{"$f":"IF(DataLog!$C2656=\"Log value\",DataLog!AI2656,\"\")","v":""},{"$f":"IF(DataLog!$C2656=\"Log value\",DataLog!AJ2656,\"\")","v":""},{"$f":"IF(DataLog!$C2656=\"Log value\",DataLog!AK2656,\"\")","v":""},{"$f":"IF(DataLog!$C2656=\"Log value\",DataLog!AL2656,\"\")","v":""},{"$f":"IF(DataLog!$C2656=\"Log value\",DataLog!AM2656,\"\")","v":""}]
[null,null,null,null,null,null,{"$f":"IF(DataLog!$C2657=\"Log value\",DataLog!D2657&\"_\"&TEXT(DataLog!B2657,\"åååå-mm-dd\"),\"\")","v":""},{"$f":"IF(DataLog!$C2657=\"Log value\",DataLog!E2657,\"\")","v":""},{"$f":"IF(DataLog!$C2657=\"Log value\",DataLog!F2657,\"\")","v":""},{"$f":"IF(DataLog!$C2657=\"Log value\",DataLog!G2657,\"\")","v":""},{"$f":"IF(DataLog!$C2657=\"Log value\",DataLog!H2657,\"\")","v":""},{"$f":"IF(DataLog!$C2657=\"Log value\",DataLog!I2657,\"\")","v":""},{"$f":"IF(DataLog!$C2657=\"Log value\",DataLog!J2657,\"\")","v":""},{"$f":"IF(DataLog!$C2657=\"Log value\",DataLog!K2657,\"\")","v":""},{"$f":"IF(DataLog!$C2657=\"Log value\",DataLog!L2657,\"\")","v":""},{"$f":"IF(DataLog!$C2657=\"Log value\",DataLog!M2657,\"\")","v":""},{"$f":"IF(DataLog!$C2657=\"Log value\",DataLog!N2657,\"\")","v":""},{"$f":"IF(DataLog!$C2657=\"Log value\",DataLog!O2657,\"\")","v":""},{"$f":"IF(DataLog!$C2657=\"Log value\",DataLog!P2657,\"\")","v":""},{"$f":"IF(DataLog!$C2657=\"Log value\",DataLog!Q2657,\"\")","v":""},{"$f":"IF(DataLog!$C2657=\"Log value\",DataLog!R2657,\"\")","v":""},{"$f":"IF(DataLog!$C2657=\"Log value\",DataLog!S2657,\"\")","v":""},{"$f":"IF(DataLog!$C2657=\"Log value\",DataLog!T2657,\"\")","v":""},{"$f":"IF(DataLog!$C2657=\"Log value\",DataLog!U2657,\"\")","v":""},{"$f":"IF(DataLog!$C2657=\"Log value\",DataLog!V2657,\"\")","v":""},{"$f":"IF(DataLog!$C2657=\"Log value\",DataLog!W2657,\"\")","v":""},{"$f":"IF(DataLog!$C2657=\"Log value\",DataLog!X2657,\"\")","v":""},{"$f":"IF(DataLog!$C2657=\"Log value\",DataLog!Y2657,\"\")","v":""},{"$f":"IF(DataLog!$C2657=\"Log value\",DataLog!Z2657,\"\")","v":""},{"$f":"IF(DataLog!$C2657=\"Log value\",DataLog!AA2657,\"\")","v":""},{"$f":"IF(DataLog!$C2657=\"Log value\",DataLog!AB2657,\"\")","v":""},{"$f":"IF(DataLog!$C2657=\"Log value\",DataLog!AC2657,\"\")","v":""},{"$f":"IF(DataLog!$C2657=\"Log value\",DataLog!AD2657,\"\")","v":""},{"$f":"IF(DataLog!$C2657=\"Log value\",DataLog!AE2657,\"\")","v":""},{"$f":"IF(DataLog!$C2657=\"Log value\",DataLog!AF2657,\"\")","v":""},{"$f":"IF(DataLog!$C2657=\"Log value\",DataLog!AG2657,\"\")","v":""},{"$f":"IF(DataLog!$C2657=\"Log value\",DataLog!AH2657,\"\")","v":""},{"$f":"IF(DataLog!$C2657=\"Log value\",DataLog!AI2657,\"\")","v":""},{"$f":"IF(DataLog!$C2657=\"Log value\",DataLog!AJ2657,\"\")","v":""},{"$f":"IF(DataLog!$C2657=\"Log value\",DataLog!AK2657,\"\")","v":""},{"$f":"IF(DataLog!$C2657=\"Log value\",DataLog!AL2657,\"\")","v":""},{"$f":"IF(DataLog!$C2657=\"Log value\",DataLog!AM2657,\"\")","v":""}]
[null,null,null,null,null,null,{"$f":"IF(DataLog!$C2660=\"Log value\",DataLog!D2660&\"_\"&TEXT(DataLog!B2660,\"åååå-mm-dd\"),\"\")","v":""},{"$f":"IF(DataLog!$C2660=\"Log value\",DataLog!E2660,\"\")","v":""},{"$f":"IF(DataLog!$C2660=\"Log value\",DataLog!F2660,\"\")","v":""},{"$f":"IF(DataLog!$C2660=\"Log value\",DataLog!G2660,\"\")","v":""},{"$f":"IF(DataLog!$C2660=\"Log value\",DataLog!H2660,\"\")","v":""},{"$f":"IF(DataLog!$C2660=\"Log value\",DataLog!I2660,\"\")","v":""},{"$f":"IF(DataLog!$C2660=\"Log value\",DataLog!J2660,\"\")","v":""},{"$f":"IF(DataLog!$C2660=\"Log value\",DataLog!K2660,\"\")","v":""},{"$f":"IF(DataLog!$C2660=\"Log value\",DataLog!L2660,\"\")","v":""},{"$f":"IF(DataLog!$C2660=\"Log value\",DataLog!M2660,\"\")","v":""},{"$f":"IF(DataLog!$C2660=\"Log value\",DataLog!N2660,\"\")","v":""},{"$f":"IF(DataLog!$C2660=\"Log value\",DataLog!O2660,\"\")","v":""},{"$f":"IF(DataLog!$C2660=\"Log value\",DataLog!P2660,\"\")","v":""},{"$f":"IF(DataLog!$C2660=\"Log value\",DataLog!Q2660,\"\")","v":""},{"$f":"IF(DataLog!$C2660=\"Log value\",DataLog!R2660,\"\")","v":""},{"$f":"IF(DataLog!$C2660=\"Log value\",DataLog!S2660,\"\")","v":""},{"$f":"IF(DataLog!$C2660=\"Log value\",DataLog!T2660,\"\")","v":""},{"$f":"IF(DataLog!$C2660=\"Log value\",DataLog!U2660,\"\")","v":""},{"$f":"IF(DataLog!$C2660=\"Log value\",DataLog!V2660,\"\")","v":""},{"$f":"IF(DataLog!$C2660=\"Log value\",DataLog!W2660,\"\")","v":""},{"$f":"IF(DataLog!$C2660=\"Log value\",DataLog!X2660,\"\")","v":""},{"$f":"IF(DataLog!$C2660=\"Log value\",DataLog!Y2660,\"\")","v":""},{"$f":"IF(DataLog!$C2660=\"Log value\",DataLog!Z2660,\"\")","v":""},{"$f":"IF(DataLog!$C2660=\"Log value\",DataLog!AA2660,\"\")","v":""},{"$f":"IF(DataLog!$C2660=\"Log value\",DataLog!AB2660,\"\")","v":""},{"$f":"IF(DataLog!$C2660=\"Log value\",DataLog!AC2660,\"\")","v":""},{"$f":"IF(DataLog!$C2660=\"Log value\",DataLog!AD2660,\"\")","v":""},{"$f":"IF(DataLog!$C2660=\"Log value\",DataLog!AE2660,\"\")","v":""},{"$f":"IF(DataLog!$C2660=\"Log value\",DataLog!AF2660,\"\")","v":""},{"$f":"IF(DataLog!$C2660=\"Log value\",DataLog!AG2660,\"\")","v":""},{"$f":"IF(DataLog!$C2660=\"Log value\",DataLog!AH2660,\"\")","v":""},{"$f":"IF(DataLog!$C2660=\"Log value\",DataLog!AI2660,\"\")","v":""},{"$f":"IF(DataLog!$C2660=\"Log value\",DataLog!AJ2660,\"\")","v":""},{"$f":"IF(DataLog!$C2660=\"Log value\",DataLog!AK2660,\"\")","v":""},{"$f":"IF(DataLog!$C2660=\"Log value\",DataLog!AL2660,\"\")","v":""},{"$f":"IF(DataLog!$C2660=\"Log value\",DataLog!AM2660,\"\")","v":""}]
[null,null,null,null,null,null,{"$f":"IF(DataLog!$C2663=\"Log value\",DataLog!D2663&\"_\"&TEXT(DataLog!B2663,\"åååå-mm-dd\"),\"\")","v":""},{"$f":"IF(DataLog!$C2663=\"Log value\",DataLog!E2663,\"\")","v":""},{"$f":"IF(DataLog!$C2663=\"Log value\",DataLog!F2663,\"\")","v":""},{"$f":"IF(DataLog!$C2663=\"Log value\",DataLog!G2663,\"\")","v":""},{"$f":"IF(DataLog!$C2663=\"Log value\",DataLog!H2663,\"\")","v":""},{"$f":"IF(DataLog!$C2663=\"Log value\",DataLog!I2663,\"\")","v":""},{"$f":"IF(DataLog!$C2663=\"Log value\",DataLog!J2663,\"\")","v":""},{"$f":"IF(DataLog!$C2663=\"Log value\",DataLog!K2663,\"\")","v":""},{"$f":"IF(DataLog!$C2663=\"Log value\",DataLog!L2663,\"\")","v":""},{"$f":"IF(DataLog!$C2663=\"Log value\",DataLog!M2663,\"\")","v":""},{"$f":"IF(DataLog!$C2663=\"Log value\",DataLog!N2663,\"\")","v":""},{"$f":"IF(DataLog!$C2663=\"Log value\",DataLog!O2663,\"\")","v":""},{"$f":"IF(DataLog!$C2663=\"Log value\",DataLog!P2663,\"\")","v":""},{"$f":"IF(DataLog!$C2663=\"Log value\",DataLog!Q2663,\"\")","v":""},{"$f":"IF(DataLog!$C2663=\"Log value\",DataLog!R2663,\"\")","v":""},{"$f":"IF(DataLog!$C2663=\"Log value\",DataLog!S2663,\"\")","v":""},{"$f":"IF(DataLog!$C2663=\"Log value\",DataLog!T2663,\"\")","v":""},{"$f":"IF(DataLog!$C2663=\"Log value\",DataLog!U2663,\"\")","v":""},{"$f":"IF(DataLog!$C2663=\"Log value\",DataLog!V2663,\"\")","v":""},{"$f":"IF(DataLog!$C2663=\"Log value\",DataLog!W2663,\"\")","v":""},{"$f":"IF(DataLog!$C2663=\"Log value\",DataLog!X2663,\"\")","v":""},{"$f":"IF(DataLog!$C2663=\"Log value\",DataLog!Y2663,\"\")","v":""},{"$f":"IF(DataLog!$C2663=\"Log value\",DataLog!Z2663,\"\")","v":""},{"$f":"IF(DataLog!$C2663=\"Log value\",DataLog!AA2663,\"\")","v":""},{"$f":"IF(DataLog!$C2663=\"Log value\",DataLog!AB2663,\"\")","v":""},{"$f":"IF(DataLog!$C2663=\"Log value\",DataLog!AC2663,\"\")","v":""},{"$f":"IF(DataLog!$C2663=\"Log value\",DataLog!AD2663,\"\")","v":""},{"$f":"IF(DataLog!$C2663=\"Log value\",DataLog!AE2663,\"\")","v":""},{"$f":"IF(DataLog!$C2663=\"Log value\",DataLog!AF2663,\"\")","v":""},{"$f":"IF(DataLog!$C2663=\"Log value\",DataLog!AG2663,\"\")","v":""},{"$f":"IF(DataLog!$C2663=\"Log value\",DataLog!AH2663,\"\")","v":""},{"$f":"IF(DataLog!$C2663=\"Log value\",DataLog!AI2663,\"\")","v":""},{"$f":"IF(DataLog!$C2663=\"Log value\",DataLog!AJ2663,\"\")","v":""},{"$f":"IF(DataLog!$C2663=\"Log value\",DataLog!AK2663,\"\")","v":""},{"$f":"IF(DataLog!$C2663=\"Log value\",DataLog!AL2663,\"\")","v":""},{"$f":"IF(DataLog!$C2663=\"Log value\",DataLog!AM2663,\"\")","v":""}]
[null,null,null,null,null,null,{"$f":"IF(DataLog!$C2665=\"Log value\",DataLog!D2665&\"_\"&TEXT(DataLog!B2665,\"åååå-mm-dd\"),\"\")","v":""},{"$f":"IF(DataLog!$C2665=\"Log value\",DataLog!E2665,\"\")","v":""},{"$f":"IF(DataLog!$C2665=\"Log value\",DataLog!F2665,\"\")","v":""},{"$f":"IF(DataLog!$C2665=\"Log value\",DataLog!G2665,\"\")","v":""},{"$f":"IF(DataLog!$C2665=\"Log value\",DataLog!H2665,\"\")","v":""},{"$f":"IF(DataLog!$C2665=\"Log value\",DataLog!I2665,\"\")","v":""},{"$f":"IF(DataLog!$C2665=\"Log value\",DataLog!J2665,\"\")","v":""},{"$f":"IF(DataLog!$C2665=\"Log value\",DataLog!K2665,\"\")","v":""},{"$f":"IF(DataLog!$C2665=\"Log value\",DataLog!L2665,\"\")","v":""},{"$f":"IF(DataLog!$C2665=\"Log value\",DataLog!M2665,\"\")","v":""},{"$f":"IF(DataLog!$C2665=\"Log value\",DataLog!N2665,\"\")","v":""},{"$f":"IF(DataLog!$C2665=\"Log value\",DataLog!O2665,\"\")","v":""},{"$f":"IF(DataLog!$C2665=\"Log value\",DataLog!P2665,\"\")","v":""},{"$f":"IF(DataLog!$C2665=\"Log value\",DataLog!Q2665,\"\")","v":""},{"$f":"IF(DataLog!$C2665=\"Log value\",DataLog!R2665,\"\")","v":""},{"$f":"IF(DataLog!$C2665=\"Log value\",DataLog!S2665,\"\")","v":""},{"$f":"IF(DataLog!$C2665=\"Log value\",DataLog!T2665,\"\")","v":""},{"$f":"IF(DataLog!$C2665=\"Log value\",DataLog!U2665,\"\")","v":""},{"$f":"IF(DataLog!$C2665=\"Log value\",DataLog!V2665,\"\")","v":""},{"$f":"IF(DataLog!$C2665=\"Log value\",DataLog!W2665,\"\")","v":""},{"$f":"IF(DataLog!$C2665=\"Log value\",DataLog!X2665,\"\")","v":""},{"$f":"IF(DataLog!$C2665=\"Log value\",DataLog!Y2665,\"\")","v":""},{"$f":"IF(DataLog!$C2665=\"Log value\",DataLog!Z2665,\"\")","v":""},{"$f":"IF(DataLog!$C2665=\"Log value\",DataLog!AA2665,\"\")","v":""},{"$f":"IF(DataLog!$C2665=\"Log value\",DataLog!AB2665,\"\")","v":""},{"$f":"IF(DataLog!$C2665=\"Log value\",DataLog!AC2665,\"\")","v":""},{"$f":"IF(DataLog!$C2665=\"Log value\",DataLog!AD2665,\"\")","v":""},{"$f":"IF(DataLog!$C2665=\"Log value\",DataLog!AE2665,\"\")","v":""},{"$f":"IF(DataLog!$C2665=\"Log value\",DataLog!AF2665,\"\")","v":""},{"$f":"IF(DataLog!$C2665=\"Log value\",DataLog!AG2665,\"\")","v":""},{"$f":"IF(DataLog!$C2665=\"Log value\",DataLog!AH2665,\"\")","v":""},{"$f":"IF(DataLog!$C2665=\"Log value\",DataLog!AI2665,\"\")","v":""},{"$f":"IF(DataLog!$C2665=\"Log value\",DataLog!AJ2665,\"\")","v":""},{"$f":"IF(DataLog!$C2665=\"Log value\",DataLog!AK2665,\"\")","v":""},{"$f":"IF(DataLog!$C2665=\"Log value\",DataLog!AL2665,\"\")","v":""},{"$f":"IF(DataLog!$C2665=\"Log value\",DataLog!AM2665,\"\")","v":""}]
[null,null,null,null,null,null,{"$f":"IF(DataLog!$C2666=\"Log value\",DataLog!D2666&\"_\"&TEXT(DataLog!B2666,\"åååå-mm-dd\"),\"\")","v":""},{"$f":"IF(DataLog!$C2666=\"Log value\",DataLog!E2666,\"\")","v":""},{"$f":"IF(DataLog!$C2666=\"Log value\",DataLog!F2666,\"\")","v":""},{"$f":"IF(DataLog!$C2666=\"Log value\",DataLog!G2666,\"\")","v":""},{"$f":"IF(DataLog!$C2666=\"Log value\",DataLog!H2666,\"\")","v":""},{"$f":"IF(DataLog!$C2666=\"Log value\",DataLog!I2666,\"\")","v":""},{"$f":"IF(DataLog!$C2666=\"Log value\",DataLog!J2666,\"\")","v":""},{"$f":"IF(DataLog!$C2666=\"Log value\",DataLog!K2666,\"\")","v":""},{"$f":"IF(DataLog!$C2666=\"Log value\",DataLog!L2666,\"\")","v":""},{"$f":"IF(DataLog!$C2666=\"Log value\",DataLog!M2666,\"\")","v":""},{"$f":"IF(DataLog!$C2666=\"Log value\",DataLog!N2666,\"\")","v":""},{"$f":"IF(DataLog!$C2666=\"Log value\",DataLog!O2666,\"\")","v":""},{"$f":"IF(DataLog!$C2666=\"Log value\",DataLog!P2666,\"\")","v":""},{"$f":"IF(DataLog!$C2666=\"Log value\",DataLog!Q2666,\"\")","v":""},{"$f":"IF(DataLog!$C2666=\"Log value\",DataLog!R2666,\"\")","v":""},{"$f":"IF(DataLog!$C2666=\"Log value\",DataLog!S2666,\"\")","v":""},{"$f":"IF(DataLog!$C2666=\"Log value\",DataLog!T2666,\"\")","v":""},{"$f":"IF(DataLog!$C2666=\"Log value\",DataLog!U2666,\"\")","v":""},{"$f":"IF(DataLog!$C2666=\"Log value\",DataLog!V2666,\"\")","v":""},{"$f":"IF(DataLog!$C2666=\"Log value\",DataLog!W2666,\"\")","v":""},{"$f":"IF(DataLog!$C2666=\"Log value\",DataLog!X2666,\"\")","v":""},{"$f":"IF(DataLog!$C2666=\"Log value\",DataLog!Y2666,\"\")","v":""},{"$f":"IF(DataLog!$C2666=\"Log value\",DataLog!Z2666,\"\")","v":""},{"$f":"IF(DataLog!$C2666=\"Log value\",DataLog!AA2666,\"\")","v":""},{"$f":"IF(DataLog!$C2666=\"Log value\",DataLog!AB2666,\"\")","v":""},{"$f":"IF(DataLog!$C2666=\"Log value\",DataLog!AC2666,\"\")","v":""},{"$f":"IF(DataLog!$C2666=\"Log value\",DataLog!AD2666,\"\")","v":""},{"$f":"IF(DataLog!$C2666=\"Log value\",DataLog!AE2666,\"\")","v":""},{"$f":"IF(DataLog!$C2666=\"Log value\",DataLog!AF2666,\"\")","v":""},{"$f":"IF(DataLog!$C2666=\"Log value\",DataLog!AG2666,\"\")","v":""},{"$f":"IF(DataLog!$C2666=\"Log value\",DataLog!AH2666,\"\")","v":""},{"$f":"IF(DataLog!$C2666=\"Log value\",DataLog!AI2666,\"\")","v":""},{"$f":"IF(DataLog!$C2666=\"Log value\",DataLog!AJ2666,\"\")","v":""},{"$f":"IF(DataLog!$C2666=\"Log value\",DataLog!AK2666,\"\")","v":""},{"$f":"IF(DataLog!$C2666=\"Log value\",DataLog!AL2666,\"\")","v":""},{"$f":"IF(DataLog!$C2666=\"Log value\",DataLog!AM2666,\"\")","v":""}]
[null,null,null,null,null,null,{"$f":"IF(DataLog!$C2668=\"Log value\",DataLog!D2668&\"_\"&TEXT(DataLog!B2668,\"åååå-mm-dd\"),\"\")","v":""},{"$f":"IF(DataLog!$C2668=\"Log value\",DataLog!E2668,\"\")","v":""},{"$f":"IF(DataLog!$C2668=\"Log value\",DataLog!F2668,\"\")","v":""},{"$f":"IF(DataLog!$C2668=\"Log value\",DataLog!G2668,\"\")","v":""},{"$f":"IF(DataLog!$C2668=\"Log value\",DataLog!H2668,\"\")","v":""},{"$f":"IF(DataLog!$C2668=\"Log value\",DataLog!I2668,\"\")","v":""},{"$f":"IF(DataLog!$C2668=\"Log value\",DataLog!J2668,\"\")","v":""},{"$f":"IF(DataLog!$C2668=\"Log value\",DataLog!K2668,\"\")","v":""},{"$f":"IF(DataLog!$C2668=\"Log value\",DataLog!L2668,\"\")","v":""},{"$f":"IF(DataLog!$C2668=\"Log value\",DataLog!M2668,\"\")","v":""},{"$f":"IF(DataLog!$C2668=\"Log value\",DataLog!N2668,\"\")","v":""},{"$f":"IF(DataLog!$C2668=\"Log value\",DataLog!O2668,\"\")","v":""},{"$f":"IF(DataLog!$C2668=\"Log value\",DataLog!P2668,\"\")","v":""},{"$f":"IF(DataLog!$C2668=\"Log value\",DataLog!Q2668,\"\")","v":""},{"$f":"IF(DataLog!$C2668=\"Log value\",DataLog!R2668,\"\")","v":""},{"$f":"IF(DataLog!$C2668=\"Log value\",DataLog!S2668,\"\")","v":""},{"$f":"IF(DataLog!$C2668=\"Log value\",DataLog!T2668,\"\")","v":""},{"$f":"IF(DataLog!$C2668=\"Log value\",DataLog!U2668,\"\")","v":""},{"$f":"IF(DataLog!$C2668=\"Log value\",DataLog!V2668,\"\")","v":""},{"$f":"IF(DataLog!$C2668=\"Log value\",DataLog!W2668,\"\")","v":""},{"$f":"IF(DataLog!$C2668=\"Log value\",DataLog!X2668,\"\")","v":""},{"$f":"IF(DataLog!$C2668=\"Log value\",DataLog!Y2668,\"\")","v":""},{"$f":"IF(DataLog!$C2668=\"Log value\",DataLog!Z2668,\"\")","v":""},{"$f":"IF(DataLog!$C2668=\"Log value\",DataLog!AA2668,\"\")","v":""},{"$f":"IF(DataLog!$C2668=\"Log value\",DataLog!AB2668,\"\")","v":""},{"$f":"IF(DataLog!$C2668=\"Log value\",DataLog!AC2668,\"\")","v":""},{"$f":"IF(DataLog!$C2668=\"Log value\",DataLog!AD2668,\"\")","v":""},{"$f":"IF(DataLog!$C2668=\"Log value\",DataLog!AE2668,\"\")","v":""},{"$f":"IF(DataLog!$C2668=\"Log value\",DataLog!AF2668,\"\")","v":""},{"$f":"IF(DataLog!$C2668=\"Log value\",DataLog!AG2668,\"\")","v":""},{"$f":"IF(DataLog!$C2668=\"Log value\",DataLog!AH2668,\"\")","v":""},{"$f":"IF(DataLog!$C2668=\"Log value\",DataLog!AI2668,\"\")","v":""},{"$f":"IF(DataLog!$C2668=\"Log value\",DataLog!AJ2668,\"\")","v":""},{"$f":"IF(DataLog!$C2668=\"Log value\",DataLog!AK2668,\"\")","v":""},{"$f":"IF(DataLog!$C2668=\"Log value\",DataLog!AL2668,\"\")","v":""},{"$f":"IF(DataLog!$C2668=\"Log value\",DataLog!AM2668,\"\")","v":""}]
[null,null,null,null,null,null,{"$f":"IF(DataLog!$C2671=\"Log value\",DataLog!D2671&\"_\"&TEXT(DataLog!B2671,\"åååå-mm-dd\"),\"\")","v":""},{"$f":"IF(DataLog!$C2671=\"Log value\",DataLog!E2671,\"\")","v":""},{"$f":"IF(DataLog!$C2671=\"Log value\",DataLog!F2671,\"\")","v":""},{"$f":"IF(DataLog!$C2671=\"Log value\",DataLog!G2671,\"\")","v":""},{"$f":"IF(DataLog!$C2671=\"Log value\",DataLog!H2671,\"\")","v":""},{"$f":"IF(DataLog!$C2671=\"Log value\",DataLog!I2671,\"\")","v":""},{"$f":"IF(DataLog!$C2671=\"Log value\",DataLog!J2671,\"\")","v":""},{"$f":"IF(DataLog!$C2671=\"Log value\",DataLog!K2671,\"\")","v":""},{"$f":"IF(DataLog!$C2671=\"Log value\",DataLog!L2671,\"\")","v":""},{"$f":"IF(DataLog!$C2671=\"Log value\",DataLog!M2671,\"\")","v":""},{"$f":"IF(DataLog!$C2671=\"Log value\",DataLog!N2671,\"\")","v":""},{"$f":"IF(DataLog!$C2671=\"Log value\",DataLog!O2671,\"\")","v":""},{"$f":"IF(DataLog!$C2671=\"Log value\",DataLog!P2671,\"\")","v":""},{"$f":"IF(DataLog!$C2671=\"Log value\",DataLog!Q2671,\"\")","v":""},{"$f":"IF(DataLog!$C2671=\"Log value\",DataLog!R2671,\"\")","v":""},{"$f":"IF(DataLog!$C2671=\"Log value\",DataLog!S2671,\"\")","v":""},{"$f":"IF(DataLog!$C2671=\"Log value\",DataLog!T2671,\"\")","v":""},{"$f":"IF(DataLog!$C2671=\"Log value\",DataLog!U2671,\"\")","v":""},{"$f":"IF(DataLog!$C2671=\"Log value\",DataLog!V2671,\"\")","v":""},{"$f":"IF(DataLog!$C2671=\"Log value\",DataLog!W2671,\"\")","v":""},{"$f":"IF(DataLog!$C2671=\"Log value\",DataLog!X2671,\"\")","v":""},{"$f":"IF(DataLog!$C2671=\"Log value\",DataLog!Y2671,\"\")","v":""},{"$f":"IF(DataLog!$C2671=\"Log value\",DataLog!Z2671,\"\")","v":""},{"$f":"IF(DataLog!$C2671=\"Log value\",DataLog!AA2671,\"\")","v":""},{"$f":"IF(DataLog!$C2671=\"Log value\",DataLog!AB2671,\"\")","v":""},{"$f":"IF(DataLog!$C2671=\"Log value\",DataLog!AC2671,\"\")","v":""},{"$f":"IF(DataLog!$C2671=\"Log value\",DataLog!AD2671,\"\")","v":""},{"$f":"IF(DataLog!$C2671=\"Log value\",DataLog!AE2671,\"\")","v":""},{"$f":"IF(DataLog!$C2671=\"Log value\",DataLog!AF2671,\"\")","v":""},{"$f":"IF(DataLog!$C2671=\"Log value\",DataLog!AG2671,\"\")","v":""},{"$f":"IF(DataLog!$C2671=\"Log value\",DataLog!AH2671,\"\")","v":""},{"$f":"IF(DataLog!$C2671=\"Log value\",DataLog!AI2671,\"\")","v":""},{"$f":"IF(DataLog!$C2671=\"Log value\",DataLog!AJ2671,\"\")","v":""},{"$f":"IF(DataLog!$C2671=\"Log value\",DataLog!AK2671,\"\")","v":""},{"$f":"IF(DataLog!$C2671=\"Log value\",DataLog!AL2671,\"\")","v":""},{"$f":"IF(DataLog!$C2671=\"Log value\",DataLog!AM2671,\"\")","v":""}]
[null,null,null,null,null,null,{"$f":"IF(DataLog!$C2674=\"Log value\",DataLog!D2674&\"_\"&TEXT(DataLog!B2674,\"åååå-mm-dd\"),\"\")","v":""},{"$f":"IF(DataLog!$C2674=\"Log value\",DataLog!E2674,\"\")","v":""},{"$f":"IF(DataLog!$C2674=\"Log value\",DataLog!F2674,\"\")","v":""},{"$f":"IF(DataLog!$C2674=\"Log value\",DataLog!G2674,\"\")","v":""},{"$f":"IF(DataLog!$C2674=\"Log value\",DataLog!H2674,\"\")","v":""},{"$f":"IF(DataLog!$C2674=\"Log value\",DataLog!I2674,\"\")","v":""},{"$f":"IF(DataLog!$C2674=\"Log value\",DataLog!J2674,\"\")","v":""},{"$f":"IF(DataLog!$C2674=\"Log value\",DataLog!K2674,\"\")","v":""},{"$f":"IF(DataLog!$C2674=\"Log value\",DataLog!L2674,\"\")","v":""},{"$f":"IF(DataLog!$C2674=\"Log value\",DataLog!M2674,\"\")","v":""},{"$f":"IF(DataLog!$C2674=\"Log value\",DataLog!N2674,\"\")","v":""},{"$f":"IF(DataLog!$C2674=\"Log value\",DataLog!O2674,\"\")","v":""},{"$f":"IF(DataLog!$C2674=\"Log value\",DataLog!P2674,\"\")","v":""},{"$f":"IF(DataLog!$C2674=\"Log value\",DataLog!Q2674,\"\")","v":""},{"$f":"IF(DataLog!$C2674=\"Log value\",DataLog!R2674,\"\")","v":""},{"$f":"IF(DataLog!$C2674=\"Log value\",DataLog!S2674,\"\")","v":""},{"$f":"IF(DataLog!$C2674=\"Log value\",DataLog!T2674,\"\")","v":""},{"$f":"IF(DataLog!$C2674=\"Log value\",DataLog!U2674,\"\")","v":""},{"$f":"IF(DataLog!$C2674=\"Log value\",DataLog!V2674,\"\")","v":""},{"$f":"IF(DataLog!$C2674=\"Log value\",DataLog!W2674,\"\")","v":""},{"$f":"IF(DataLog!$C2674=\"Log value\",DataLog!X2674,\"\")","v":""},{"$f":"IF(DataLog!$C2674=\"Log value\",DataLog!Y2674,\"\")","v":""},{"$f":"IF(DataLog!$C2674=\"Log value\",DataLog!Z2674,\"\")","v":""},{"$f":"IF(DataLog!$C2674=\"Log value\",DataLog!AA2674,\"\")","v":""},{"$f":"IF(DataLog!$C2674=\"Log value\",DataLog!AB2674,\"\")","v":""},{"$f":"IF(DataLog!$C2674=\"Log value\",DataLog!AC2674,\"\")","v":""},{"$f":"IF(DataLog!$C2674=\"Log value\",DataLog!AD2674,\"\")","v":""},{"$f":"IF(DataLog!$C2674=\"Log value\",DataLog!AE2674,\"\")","v":""},{"$f":"IF(DataLog!$C2674=\"Log value\",DataLog!AF2674,\"\")","v":""},{"$f":"IF(DataLog!$C2674=\"Log value\",DataLog!AG2674,\"\")","v":""},{"$f":"IF(DataLog!$C2674=\"Log value\",DataLog!AH2674,\"\")","v":""},{"$f":"IF(DataLog!$C2674=\"Log value\",DataLog!AI2674,\"\")","v":""},{"$f":"IF(DataLog!$C2674=\"Log value\",DataLog!AJ2674,\"\")","v":""},{"$f":"IF(DataLog!$C2674=\"Log value\",DataLog!AK2674,\"\")","v":""},{"$f":"IF(DataLog!$C2674=\"Log value\",DataLog!AL2674,\"\")","v":""},{"$f":"IF(DataLog!$C2674=\"Log value\",DataLog!AM2674,\"\")","v":""}]
[null,null,null,null,null,null,{"$f":"IF(DataLog!$C2675=\"Log value\",DataLog!D2675&\"_\"&TEXT(DataLog!B2675,\"åååå-mm-dd\"),\"\")","v":""},{"$f":"IF(DataLog!$C2675=\"Log value\",DataLog!E2675,\"\")","v":""},{"$f":"IF(DataLog!$C2675=\"Log value\",DataLog!F2675,\"\")","v":""},{"$f":"IF(DataLog!$C2675=\"Log value\",DataLog!G2675,\"\")","v":""},{"$f":"IF(DataLog!$C2675=\"Log value\",DataLog!H2675,\"\")","v":""},{"$f":"IF(DataLog!$C2675=\"Log value\",DataLog!I2675,\"\")","v":""},{"$f":"IF(DataLog!$C2675=\"Log value\",DataLog!J2675,\"\")","v":""},{"$f":"IF(DataLog!$C2675=\"Log value\",DataLog!K2675,\"\")","v":""},{"$f":"IF(DataLog!$C2675=\"Log value\",DataLog!L2675,\"\")","v":""},{"$f":"IF(DataLog!$C2675=\"Log value\",DataLog!M2675,\"\")","v":""},{"$f":"IF(DataLog!$C2675=\"Log value\",DataLog!N2675,\"\")","v":""},{"$f":"IF(DataLog!$C2675=\"Log value\",DataLog!O2675,\"\")","v":""},{"$f":"IF(DataLog!$C2675=\"Log value\",DataLog!P2675,\"\")","v":""},{"$f":"IF(DataLog!$C2675=\"Log value\",DataLog!Q2675,\"\")","v":""},{"$f":"IF(DataLog!$C2675=\"Log value\",DataLog!R2675,\"\")","v":""},{"$f":"IF(DataLog!$C2675=\"Log value\",DataLog!S2675,\"\")","v":""},{"$f":"IF(DataLog!$C2675=\"Log value\",DataLog!T2675,\"\")","v":""},{"$f":"IF(DataLog!$C2675=\"Log value\",DataLog!U2675,\"\")","v":""},{"$f":"IF(DataLog!$C2675=\"Log value\",DataLog!V2675,\"\")","v":""},{"$f":"IF(DataLog!$C2675=\"Log value\",DataLog!W2675,\"\")","v":""},{"$f":"IF(DataLog!$C2675=\"Log value\",DataLog!X2675,\"\")","v":""},{"$f":"IF(DataLog!$C2675=\"Log value\",DataLog!Y2675,\"\")","v":""},{"$f":"IF(DataLog!$C2675=\"Log value\",DataLog!Z2675,\"\")","v":""},{"$f":"IF(DataLog!$C2675=\"Log value\",DataLog!AA2675,\"\")","v":""},{"$f":"IF(DataLog!$C2675=\"Log value\",DataLog!AB2675,\"\")","v":""},{"$f":"IF(DataLog!$C2675=\"Log value\",DataLog!AC2675,\"\")","v":""},{"$f":"IF(DataLog!$C2675=\"Log value\",DataLog!AD2675,\"\")","v":""},{"$f":"IF(DataLog!$C2675=\"Log value\",DataLog!AE2675,\"\")","v":""},{"$f":"IF(DataLog!$C2675=\"Log value\",DataLog!AF2675,\"\")","v":""},{"$f":"IF(DataLog!$C2675=\"Log value\",DataLog!AG2675,\"\")","v":""},{"$f":"IF(DataLog!$C2675=\"Log value\",DataLog!AH2675,\"\")","v":""},{"$f":"IF(DataLog!$C2675=\"Log value\",DataLog!AI2675,\"\")","v":""},{"$f":"IF(DataLog!$C2675=\"Log value\",DataLog!AJ2675,\"\")","v":""},{"$f":"IF(DataLog!$C2675=\"Log value\",DataLog!AK2675,\"\")","v":""},{"$f":"IF(DataLog!$C2675=\"Log value\",DataLog!AL2675,\"\")","v":""},{"$f":"IF(DataLog!$C2675=\"Log value\",DataLog!AM2675,\"\")","v":""}]
[null,null,null,null,null,null,{"$f":"IF(DataLog!$C2678=\"Log value\",DataLog!D2678&\"_\"&TEXT(DataLog!B2678,\"åååå-mm-dd\"),\"\")","v":""},{"$f":"IF(DataLog!$C2678=\"Log value\",DataLog!E2678,\"\")","v":""},{"$f":"IF(DataLog!$C2678=\"Log value\",DataLog!F2678,\"\")","v":""},{"$f":"IF(DataLog!$C2678=\"Log value\",DataLog!G2678,\"\")","v":""},{"$f":"IF(DataLog!$C2678=\"Log value\",DataLog!H2678,\"\")","v":""},{"$f":"IF(DataLog!$C2678=\"Log value\",DataLog!I2678,\"\")","v":""},{"$f":"IF(DataLog!$C2678=\"Log value\",DataLog!J2678,\"\")","v":""},{"$f":"IF(DataLog!$C2678=\"Log value\",DataLog!K2678,\"\")","v":""},{"$f":"IF(DataLog!$C2678=\"Log value\",DataLog!L2678,\"\")","v":""},{"$f":"IF(DataLog!$C2678=\"Log value\",DataLog!M2678,\"\")","v":""},{"$f":"IF(DataLog!$C2678=\"Log value\",DataLog!N2678,\"\")","v":""},{"$f":"IF(DataLog!$C2678=\"Log value\",DataLog!O2678,\"\")","v":""},{"$f":"IF(DataLog!$C2678=\"Log value\",DataLog!P2678,\"\")","v":""},{"$f":"IF(DataLog!$C2678=\"Log value\",DataLog!Q2678,\"\")","v":""},{"$f":"IF(DataLog!$C2678=\"Log value\",DataLog!R2678,\"\")","v":""},{"$f":"IF(DataLog!$C2678=\"Log value\",DataLog!S2678,\"\")","v":""},{"$f":"IF(DataLog!$C2678=\"Log value\",DataLog!T2678,\"\")","v":""},{"$f":"IF(DataLog!$C2678=\"Log value\",DataLog!U2678,\"\")","v":""},{"$f":"IF(DataLog!$C2678=\"Log value\",DataLog!V2678,\"\")","v":""},{"$f":"IF(DataLog!$C2678=\"Log value\",DataLog!W2678,\"\")","v":""},{"$f":"IF(DataLog!$C2678=\"Log value\",DataLog!X2678,\"\")","v":""},{"$f":"IF(DataLog!$C2678=\"Log value\",DataLog!Y2678,\"\")","v":""},{"$f":"IF(DataLog!$C2678=\"Log value\",DataLog!Z2678,\"\")","v":""},{"$f":"IF(DataLog!$C2678=\"Log value\",DataLog!AA2678,\"\")","v":""},{"$f":"IF(DataLog!$C2678=\"Log value\",DataLog!AB2678,\"\")","v":""},{"$f":"IF(DataLog!$C2678=\"Log value\",DataLog!AC2678,\"\")","v":""},{"$f":"IF(DataLog!$C2678=\"Log value\",DataLog!AD2678,\"\")","v":""},{"$f":"IF(DataLog!$C2678=\"Log value\",DataLog!AE2678,\"\")","v":""},{"$f":"IF(DataLog!$C2678=\"Log value\",DataLog!AF2678,\"\")","v":""},{"$f":"IF(DataLog!$C2678=\"Log value\",DataLog!AG2678,\"\")","v":""},{"$f":"IF(DataLog!$C2678=\"Log value\",DataLog!AH2678,\"\")","v":""},{"$f":"IF(DataLog!$C2678=\"Log value\",DataLog!AI2678,\"\")","v":""},{"$f":"IF(DataLog!$C2678=\"Log value\",DataLog!AJ2678,\"\")","v":""},{"$f":"IF(DataLog!$C2678=\"Log value\",DataLog!AK2678,\"\")","v":""},{"$f":"IF(DataLog!$C2678=\"Log value\",DataLog!AL2678,\"\")","v":""},{"$f":"IF(DataLog!$C2678=\"Log value\",DataLog!AM2678,\"\")","v":""}]
[null,null,null,null,null,null,{"$f":"IF(DataLog!$C2680=\"Log value\",DataLog!D2680&\"_\"&TEXT(DataLog!B2680,\"åååå-mm-dd\"),\"\")","v":""},{"$f":"IF(DataLog!$C2680=\"Log value\",DataLog!E2680,\"\")","v":""},{"$f":"IF(DataLog!$C2680=\"Log value\",DataLog!F2680,\"\")","v":""},{"$f":"IF(DataLog!$C2680=\"Log value\",DataLog!G2680,\"\")","v":""},{"$f":"IF(DataLog!$C2680=\"Log value\",DataLog!H2680,\"\")","v":""},{"$f":"IF(DataLog!$C2680=\"Log value\",DataLog!I2680,\"\")","v":""},{"$f":"IF(DataLog!$C2680=\"Log value\",DataLog!J2680,\"\")","v":""},{"$f":"IF(DataLog!$C2680=\"Log value\",DataLog!K2680,\"\")","v":""},{"$f":"IF(DataLog!$C2680=\"Log value\",DataLog!L2680,\"\")","v":""},{"$f":"IF(DataLog!$C2680=\"Log value\",DataLog!M2680,\"\")","v":""},{"$f":"IF(DataLog!$C2680=\"Log value\",DataLog!N2680,\"\")","v":""},{"$f":"IF(DataLog!$C2680=\"Log value\",DataLog!O2680,\"\")","v":""},{"$f":"IF(DataLog!$C2680=\"Log value\",DataLog!P2680,\"\")","v":""},{"$f":"IF(DataLog!$C2680=\"Log value\",DataLog!Q2680,\"\")","v":""},{"$f":"IF(DataLog!$C2680=\"Log value\",DataLog!R2680,\"\")","v":""},{"$f":"IF(DataLog!$C2680=\"Log value\",DataLog!S2680,\"\")","v":""},{"$f":"IF(DataLog!$C2680=\"Log value\",DataLog!T2680,\"\")","v":""},{"$f":"IF(DataLog!$C2680=\"Log value\",DataLog!U2680,\"\")","v":""},{"$f":"IF(DataLog!$C2680=\"Log value\",DataLog!V2680,\"\")","v":""},{"$f":"IF(DataLog!$C2680=\"Log value\",DataLog!W2680,\"\")","v":""},{"$f":"IF(DataLog!$C2680=\"Log value\",DataLog!X2680,\"\")","v":""},{"$f":"IF(DataLog!$C2680=\"Log value\",DataLog!Y2680,\"\")","v":""},{"$f":"IF(DataLog!$C2680=\"Log value\",DataLog!Z2680,\"\")","v":""},{"$f":"IF(DataLog!$C2680=\"Log value\",DataLog!AA2680,\"\")","v":""},{"$f":"IF(DataLog!$C2680=\"Log value\",DataLog!AB2680,\"\")","v":""},{"$f":"IF(DataLog!$C2680=\"Log value\",DataLog!AC2680,\"\")","v":""},{"$f":"IF(DataLog!$C2680=\"Log value\",DataLog!AD2680,\"\")","v":""},{"$f":"IF(DataLog!$C2680=\"Log value\",DataLog!AE2680,\"\")","v":""},{"$f":"IF(DataLog!$C2680=\"Log value\",DataLog!AF2680,\"\")","v":""},{"$f":"IF(DataLog!$C2680=\"Log value\",DataLog!AG2680,\"\")","v":""},{"$f":"IF(DataLog!$C2680=\"Log value\",DataLog!AH2680,\"\")","v":""},{"$f":"IF(DataLog!$C2680=\"Log value\",DataLog!AI2680,\"\")","v":""},{"$f":"IF(DataLog!$C2680=\"Log value\",DataLog!AJ2680,\"\")","v":""},{"$f":"IF(DataLog!$C2680=\"Log value\",DataLog!AK2680,\"\")","v":""},{"$f":"IF(DataLog!$C2680=\"Log value\",DataLog!AL2680,\"\")","v":""},{"$f":"IF(DataLog!$C2680=\"Log value\",DataLog!AM2680,\"\")","v":""}]
[null,null,null,null,null,null,{"$f":"IF(DataLog!$C2683=\"Log value\",DataLog!D2683&\"_\"&TEXT(DataLog!B2683,\"åååå-mm-dd\"),\"\")","v":""},{"$f":"IF(DataLog!$C2683=\"Log value\",DataLog!E2683,\"\")","v":""},{"$f":"IF(DataLog!$C2683=\"Log value\",DataLog!F2683,\"\")","v":""},{"$f":"IF(DataLog!$C2683=\"Log value\",DataLog!G2683,\"\")","v":""},{"$f":"IF(DataLog!$C2683=\"Log value\",DataLog!H2683,\"\")","v":""},{"$f":"IF(DataLog!$C2683=\"Log value\",DataLog!I2683,\"\")","v":""},{"$f":"IF(DataLog!$C2683=\"Log value\",DataLog!J2683,\"\")","v":""},{"$f":"IF(DataLog!$C2683=\"Log value\",DataLog!K2683,\"\")","v":""},{"$f":"IF(DataLog!$C2683=\"Log value\",DataLog!L2683,\"\")","v":""},{"$f":"IF(DataLog!$C2683=\"Log value\",DataLog!M2683,\"\")","v":""},{"$f":"IF(DataLog!$C2683=\"Log value\",DataLog!N2683,\"\")","v":""},{"$f":"IF(DataLog!$C2683=\"Log value\",DataLog!O2683,\"\")","v":""},{"$f":"IF(DataLog!$C2683=\"Log value\",DataLog!P2683,\"\")","v":""},{"$f":"IF(DataLog!$C2683=\"Log value\",DataLog!Q2683,\"\")","v":""},{"$f":"IF(DataLog!$C2683=\"Log value\",DataLog!R2683,\"\")","v":""},{"$f":"IF(DataLog!$C2683=\"Log value\",DataLog!S2683,\"\")","v":""},{"$f":"IF(DataLog!$C2683=\"Log value\",DataLog!T2683,\"\")","v":""},{"$f":"IF(DataLog!$C2683=\"Log value\",DataLog!U2683,\"\")","v":""},{"$f":"IF(DataLog!$C2683=\"Log value\",DataLog!V2683,\"\")","v":""},{"$f":"IF(DataLog!$C2683=\"Log value\",DataLog!W2683,\"\")","v":""},{"$f":"IF(DataLog!$C2683=\"Log value\",DataLog!X2683,\"\")","v":""},{"$f":"IF(DataLog!$C2683=\"Log value\",DataLog!Y2683,\"\")","v":""},{"$f":"IF(DataLog!$C2683=\"Log value\",DataLog!Z2683,\"\")","v":""},{"$f":"IF(DataLog!$C2683=\"Log value\",DataLog!AA2683,\"\")","v":""},{"$f":"IF(DataLog!$C2683=\"Log value\",DataLog!AB2683,\"\")","v":""},{"$f":"IF(DataLog!$C2683=\"Log value\",DataLog!AC2683,\"\")","v":""},{"$f":"IF(DataLog!$C2683=\"Log value\",DataLog!AD2683,\"\")","v":""},{"$f":"IF(DataLog!$C2683=\"Log value\",DataLog!AE2683,\"\")","v":""},{"$f":"IF(DataLog!$C2683=\"Log value\",DataLog!AF2683,\"\")","v":""},{"$f":"IF(DataLog!$C2683=\"Log value\",DataLog!AG2683,\"\")","v":""},{"$f":"IF(DataLog!$C2683=\"Log value\",DataLog!AH2683,\"\")","v":""},{"$f":"IF(DataLog!$C2683=\"Log value\",DataLog!AI2683,\"\")","v":""},{"$f":"IF(DataLog!$C2683=\"Log value\",DataLog!AJ2683,\"\")","v":""},{"$f":"IF(DataLog!$C2683=\"Log value\",DataLog!AK2683,\"\")","v":""},{"$f":"IF(DataLog!$C2683=\"Log value\",DataLog!AL2683,\"\")","v":""},{"$f":"IF(DataLog!$C2683=\"Log value\",DataLog!AM2683,\"\")","v":""}]
[null,null,null,null,null,null,{"$f":"IF(DataLog!$C2684=\"Log value\",DataLog!D2684&\"_\"&TEXT(DataLog!B2684,\"åååå-mm-dd\"),\"\")","v":""},{"$f":"IF(DataLog!$C2684=\"Log value\",DataLog!E2684,\"\")","v":""},{"$f":"IF(DataLog!$C2684=\"Log value\",DataLog!F2684,\"\")","v":""},{"$f":"IF(DataLog!$C2684=\"Log value\",DataLog!G2684,\"\")","v":""},{"$f":"IF(DataLog!$C2684=\"Log value\",DataLog!H2684,\"\")","v":""},{"$f":"IF(DataLog!$C2684=\"Log value\",DataLog!I2684,\"\")","v":""},{"$f":"IF(DataLog!$C2684=\"Log value\",DataLog!J2684,\"\")","v":""},{"$f":"IF(DataLog!$C2684=\"Log value\",DataLog!K2684,\"\")","v":""},{"$f":"IF(DataLog!$C2684=\"Log value\",DataLog!L2684,\"\")","v":""},{"$f":"IF(DataLog!$C2684=\"Log value\",DataLog!M2684,\"\")","v":""},{"$f":"IF(DataLog!$C2684=\"Log value\",DataLog!N2684,\"\")","v":""},{"$f":"IF(DataLog!$C2684=\"Log value\",DataLog!O2684,\"\")","v":""},{"$f":"IF(DataLog!$C2684=\"Log value\",DataLog!P2684,\"\")","v":""},{"$f":"IF(DataLog!$C2684=\"Log value\",DataLog!Q2684,\"\")","v":""},{"$f":"IF(DataLog!$C2684=\"Log value\",DataLog!R2684,\"\")","v":""},{"$f":"IF(DataLog!$C2684=\"Log value\",DataLog!S2684,\"\")","v":""},{"$f":"IF(DataLog!$C2684=\"Log value\",DataLog!T2684,\"\")","v":""},{"$f":"IF(DataLog!$C2684=\"Log value\",DataLog!U2684,\"\")","v":""},{"$f":"IF(DataLog!$C2684=\"Log value\",DataLog!V2684,\"\")","v":""},{"$f":"IF(DataLog!$C2684=\"Log value\",DataLog!W2684,\"\")","v":""},{"$f":"IF(DataLog!$C2684=\"Log value\",DataLog!X2684,\"\")","v":""},{"$f":"IF(DataLog!$C2684=\"Log value\",DataLog!Y2684,\"\")","v":""},{"$f":"IF(DataLog!$C2684=\"Log value\",DataLog!Z2684,\"\")","v":""},{"$f":"IF(DataLog!$C2684=\"Log value\",DataLog!AA2684,\"\")","v":""},{"$f":"IF(DataLog!$C2684=\"Log value\",DataLog!AB2684,\"\")","v":""},{"$f":"IF(DataLog!$C2684=\"Log value\",DataLog!AC2684,\"\")","v":""},{"$f":"IF(DataLog!$C2684=\"Log value\",DataLog!AD2684,\"\")","v":""},{"$f":"IF(DataLog!$C2684=\"Log value\",DataLog!AE2684,\"\")","v":""},{"$f":"IF(DataLog!$C2684=\"Log value\",DataLog!AF2684,\"\")","v":""},{"$f":"IF(DataLog!$C2684=\"Log value\",DataLog!AG2684,\"\")","v":""},{"$f":"IF(DataLog!$C2684=\"Log value\",DataLog!AH2684,\"\")","v":""},{"$f":"IF(DataLog!$C2684=\"Log value\",DataLog!AI2684,\"\")","v":""},{"$f":"IF(DataLog!$C2684=\"Log value\",DataLog!AJ2684,\"\")","v":""},{"$f":"IF(DataLog!$C2684=\"Log value\",DataLog!AK2684,\"\")","v":""},{"$f":"IF(DataLog!$C2684=\"Log value\",DataLog!AL2684,\"\")","v":""},{"$f":"IF(DataLog!$C2684=\"Log value\",DataLog!AM2684,\"\")","v":""}]
[null,null,null,null,null,null,{"$f":"IF(DataLog!$C2686=\"Log value\",DataLog!D2686&\"_\"&TEXT(DataLog!B2686,\"åååå-mm-dd\"),\"\")","v":""},{"$f":"IF(DataLog!$C2686=\"Log value\",DataLog!E2686,\"\")","v":""},{"$f":"IF(DataLog!$C2686=\"Log value\",DataLog!F2686,\"\")","v":""},{"$f":"IF(DataLog!$C2686=\"Log value\",DataLog!G2686,\"\")","v":""},{"$f":"IF(DataLog!$C2686=\"Log value\",DataLog!H2686,\"\")","v":""},{"$f":"IF(DataLog!$C2686=\"Log value\",DataLog!I2686,\"\")","v":""},{"$f":"IF(DataLog!$C2686=\"Log value\",DataLog!J2686,\"\")","v":""},{"$f":"IF(DataLog!$C2686=\"Log value\",DataLog!K2686,\"\")","v":""},{"$f":"IF(DataLog!$C2686=\"Log value\",DataLog!L2686,\"\")","v":""},{"$f":"IF(DataLog!$C2686=\"Log value\",DataLog!M2686,\"\")","v":""},{"$f":"IF(DataLog!$C2686=\"Log value\",DataLog!N2686,\"\")","v":""},{"$f":"IF(DataLog!$C2686=\"Log value\",DataLog!O2686,\"\")","v":""},{"$f":"IF(DataLog!$C2686=\"Log value\",DataLog!P2686,\"\")","v":""},{"$f":"IF(DataLog!$C2686=\"Log value\",DataLog!Q2686,\"\")","v":""},{"$f":"IF(DataLog!$C2686=\"Log value\",DataLog!R2686,\"\")","v":""},{"$f":"IF(DataLog!$C2686=\"Log value\",DataLog!S2686,\"\")","v":""},{"$f":"IF(DataLog!$C2686=\"Log value\",DataLog!T2686,\"\")","v":""},{"$f":"IF(DataLog!$C2686=\"Log value\",DataLog!U2686,\"\")","v":""},{"$f":"IF(DataLog!$C2686=\"Log value\",DataLog!V2686,\"\")","v":""},{"$f":"IF(DataLog!$C2686=\"Log value\",DataLog!W2686,\"\")","v":""},{"$f":"IF(DataLog!$C2686=\"Log value\",DataLog!X2686,\"\")","v":""},{"$f":"IF(DataLog!$C2686=\"Log value\",DataLog!Y2686,\"\")","v":""},{"$f":"IF(DataLog!$C2686=\"Log value\",DataLog!Z2686,\"\")","v":""},{"$f":"IF(DataLog!$C2686=\"Log value\",DataLog!AA2686,\"\")","v":""},{"$f":"IF(DataLog!$C2686=\"Log value\",DataLog!AB2686,\"\")","v":""},{"$f":"IF(DataLog!$C2686=\"Log value\",DataLog!AC2686,\"\")","v":""},{"$f":"IF(DataLog!$C2686=\"Log value\",DataLog!AD2686,\"\")","v":""},{"$f":"IF(DataLog!$C2686=\"Log value\",DataLog!AE2686,\"\")","v":""},{"$f":"IF(DataLog!$C2686=\"Log value\",DataLog!AF2686,\"\")","v":""},{"$f":"IF(DataLog!$C2686=\"Log value\",DataLog!AG2686,\"\")","v":""},{"$f":"IF(DataLog!$C2686=\"Log value\",DataLog!AH2686,\"\")","v":""},{"$f":"IF(DataLog!$C2686=\"Log value\",DataLog!AI2686,\"\")","v":""},{"$f":"IF(DataLog!$C2686=\"Log value\",DataLog!AJ2686,\"\")","v":""},{"$f":"IF(DataLog!$C2686=\"Log value\",DataLog!AK2686,\"\")","v":""},{"$f":"IF(DataLog!$C2686=\"Log value\",DataLog!AL2686,\"\")","v":""},{"$f":"IF(DataLog!$C2686=\"Log value\",DataLog!AM2686,\"\")","v":""}]
[null,null,null,null,null,null,{"$f":"IF(DataLog!$C2689=\"Log value\",DataLog!D2689&\"_\"&TEXT(DataLog!B2689,\"åååå-mm-dd\"),\"\")","v":""},{"$f":"IF(DataLog!$C2689=\"Log value\",DataLog!E2689,\"\")","v":""},{"$f":"IF(DataLog!$C2689=\"Log value\",DataLog!F2689,\"\")","v":""},{"$f":"IF(DataLog!$C2689=\"Log value\",DataLog!G2689,\"\")","v":""},{"$f":"IF(DataLog!$C2689=\"Log value\",DataLog!H2689,\"\")","v":""},{"$f":"IF(DataLog!$C2689=\"Log value\",DataLog!I2689,\"\")","v":""},{"$f":"IF(DataLog!$C2689=\"Log value\",DataLog!J2689,\"\")","v":""},{"$f":"IF(DataLog!$C2689=\"Log value\",DataLog!K2689,\"\")","v":""},{"$f":"IF(DataLog!$C2689=\"Log value\",DataLog!L2689,\"\")","v":""},{"$f":"IF(DataLog!$C2689=\"Log value\",DataLog!M2689,\"\")","v":""},{"$f":"IF(DataLog!$C2689=\"Log value\",DataLog!N2689,\"\")","v":""},{"$f":"IF(DataLog!$C2689=\"Log value\",DataLog!O2689,\"\")","v":""},{"$f":"IF(DataLog!$C2689=\"Log value\",DataLog!P2689,\"\")","v":""},{"$f":"IF(DataLog!$C2689=\"Log value\",DataLog!Q2689,\"\")","v":""},{"$f":"IF(DataLog!$C2689=\"Log value\",DataLog!R2689,\"\")","v":""},{"$f":"IF(DataLog!$C2689=\"Log value\",DataLog!S2689,\"\")","v":""},{"$f":"IF(DataLog!$C2689=\"Log value\",DataLog!T2689,\"\")","v":""},{"$f":"IF(DataLog!$C2689=\"Log value\",DataLog!U2689,\"\")","v":""},{"$f":"IF(DataLog!$C2689=\"Log value\",DataLog!V2689,\"\")","v":""},{"$f":"IF(DataLog!$C2689=\"Log value\",DataLog!W2689,\"\")","v":""},{"$f":"IF(DataLog!$C2689=\"Log value\",DataLog!X2689,\"\")","v":""},{"$f":"IF(DataLog!$C2689=\"Log value\",DataLog!Y2689,\"\")","v":""},{"$f":"IF(DataLog!$C2689=\"Log value\",DataLog!Z2689,\"\")","v":""},{"$f":"IF(DataLog!$C2689=\"Log value\",DataLog!AA2689,\"\")","v":""},{"$f":"IF(DataLog!$C2689=\"Log value\",DataLog!AB2689,\"\")","v":""},{"$f":"IF(DataLog!$C2689=\"Log value\",DataLog!AC2689,\"\")","v":""},{"$f":"IF(DataLog!$C2689=\"Log value\",DataLog!AD2689,\"\")","v":""},{"$f":"IF(DataLog!$C2689=\"Log value\",DataLog!AE2689,\"\")","v":""},{"$f":"IF(DataLog!$C2689=\"Log value\",DataLog!AF2689,\"\")","v":""},{"$f":"IF(DataLog!$C2689=\"Log value\",DataLog!AG2689,\"\")","v":""},{"$f":"IF(DataLog!$C2689=\"Log value\",DataLog!AH2689,\"\")","v":""},{"$f":"IF(DataLog!$C2689=\"Log value\",DataLog!AI2689,\"\")","v":""},{"$f":"IF(DataLog!$C2689=\"Log value\",DataLog!AJ2689,\"\")","v":""},{"$f":"IF(DataLog!$C2689=\"Log value\",DataLog!AK2689,\"\")","v":""},{"$f":"IF(DataLog!$C2689=\"Log value\",DataLog!AL2689,\"\")","v":""},{"$f":"IF(DataLog!$C2689=\"Log value\",DataLog!AM2689,\"\")","v":""}]
[null,null,null,null,null,null,{"$f":"IF(DataLog!$C2692=\"Log value\",DataLog!D2692&\"_\"&TEXT(DataLog!B2692,\"åååå-mm-dd\"),\"\")","v":""},{"$f":"IF(DataLog!$C2692=\"Log value\",DataLog!E2692,\"\")","v":""},{"$f":"IF(DataLog!$C2692=\"Log value\",DataLog!F2692,\"\")","v":""},{"$f":"IF(DataLog!$C2692=\"Log value\",DataLog!G2692,\"\")","v":""},{"$f":"IF(DataLog!$C2692=\"Log value\",DataLog!H2692,\"\")","v":""},{"$f":"IF(DataLog!$C2692=\"Log value\",DataLog!I2692,\"\")","v":""},{"$f":"IF(DataLog!$C2692=\"Log value\",DataLog!J2692,\"\")","v":""},{"$f":"IF(DataLog!$C2692=\"Log value\",DataLog!K2692,\"\")","v":""},{"$f":"IF(DataLog!$C2692=\"Log value\",DataLog!L2692,\"\")","v":""},{"$f":"IF(DataLog!$C2692=\"Log value\",DataLog!M2692,\"\")","v":""},{"$f":"IF(DataLog!$C2692=\"Log value\",DataLog!N2692,\"\")","v":""},{"$f":"IF(DataLog!$C2692=\"Log value\",DataLog!O2692,\"\")","v":""},{"$f":"IF(DataLog!$C2692=\"Log value\",DataLog!P2692,\"\")","v":""},{"$f":"IF(DataLog!$C2692=\"Log value\",DataLog!Q2692,\"\")","v":""},{"$f":"IF(DataLog!$C2692=\"Log value\",DataLog!R2692,\"\")","v":""},{"$f":"IF(DataLog!$C2692=\"Log value\",DataLog!S2692,\"\")","v":""},{"$f":"IF(DataLog!$C2692=\"Log value\",DataLog!T2692,\"\")","v":""},{"$f":"IF(DataLog!$C2692=\"Log value\",DataLog!U2692,\"\")","v":""},{"$f":"IF(DataLog!$C2692=\"Log value\",DataLog!V2692,\"\")","v":""},{"$f":"IF(DataLog!$C2692=\"Log value\",DataLog!W2692,\"\")","v":""},{"$f":"IF(DataLog!$C2692=\"Log value\",DataLog!X2692,\"\")","v":""},{"$f":"IF(DataLog!$C2692=\"Log value\",DataLog!Y2692,\"\")","v":""},{"$f":"IF(DataLog!$C2692=\"Log value\",DataLog!Z2692,\"\")","v":""},{"$f":"IF(DataLog!$C2692=\"Log value\",DataLog!AA2692,\"\")","v":""},{"$f":"IF(DataLog!$C2692=\"Log value\",DataLog!AB2692,\"\")","v":""},{"$f":"IF(DataLog!$C2692=\"Log value\",DataLog!AC2692,\"\")","v":""},{"$f":"IF(DataLog!$C2692=\"Log value\",DataLog!AD2692,\"\")","v":""},{"$f":"IF(DataLog!$C2692=\"Log value\",DataLog!AE2692,\"\")","v":""},{"$f":"IF(DataLog!$C2692=\"Log value\",DataLog!AF2692,\"\")","v":""},{"$f":"IF(DataLog!$C2692=\"Log value\",DataLog!AG2692,\"\")","v":""},{"$f":"IF(DataLog!$C2692=\"Log value\",DataLog!AH2692,\"\")","v":""},{"$f":"IF(DataLog!$C2692=\"Log value\",DataLog!AI2692,\"\")","v":""},{"$f":"IF(DataLog!$C2692=\"Log value\",DataLog!AJ2692,\"\")","v":""},{"$f":"IF(DataLog!$C2692=\"Log value\",DataLog!AK2692,\"\")","v":""},{"$f":"IF(DataLog!$C2692=\"Log value\",DataLog!AL2692,\"\")","v":""},{"$f":"IF(DataLog!$C2692=\"Log value\",DataLog!AM2692,\"\")","v":""}]
[null,null,null,null,null,null,{"$f":"IF(DataLog!$C2693=\"Log value\",DataLog!D2693&\"_\"&TEXT(DataLog!B2693,\"åååå-mm-dd\"),\"\")","v":""},{"$f":"IF(DataLog!$C2693=\"Log value\",DataLog!E2693,\"\")","v":""},{"$f":"IF(DataLog!$C2693=\"Log value\",DataLog!F2693,\"\")","v":""},{"$f":"IF(DataLog!$C2693=\"Log value\",DataLog!G2693,\"\")","v":""},{"$f":"IF(DataLog!$C2693=\"Log value\",DataLog!H2693,\"\")","v":""},{"$f":"IF(DataLog!$C2693=\"Log value\",DataLog!I2693,\"\")","v":""},{"$f":"IF(DataLog!$C2693=\"Log value\",DataLog!J2693,\"\")","v":""},{"$f":"IF(DataLog!$C2693=\"Log value\",DataLog!K2693,\"\")","v":""},{"$f":"IF(DataLog!$C2693=\"Log value\",DataLog!L2693,\"\")","v":""},{"$f":"IF(DataLog!$C2693=\"Log value\",DataLog!M2693,\"\")","v":""},{"$f":"IF(DataLog!$C2693=\"Log value\",DataLog!N2693,\"\")","v":""},{"$f":"IF(DataLog!$C2693=\"Log value\",DataLog!O2693,\"\")","v":""},{"$f":"IF(DataLog!$C2693=\"Log value\",DataLog!P2693,\"\")","v":""},{"$f":"IF(DataLog!$C2693=\"Log value\",DataLog!Q2693,\"\")","v":""},{"$f":"IF(DataLog!$C2693=\"Log value\",DataLog!R2693,\"\")","v":""},{"$f":"IF(DataLog!$C2693=\"Log value\",DataLog!S2693,\"\")","v":""},{"$f":"IF(DataLog!$C2693=\"Log value\",DataLog!T2693,\"\")","v":""},{"$f":"IF(DataLog!$C2693=\"Log value\",DataLog!U2693,\"\")","v":""},{"$f":"IF(DataLog!$C2693=\"Log value\",DataLog!V2693,\"\")","v":""},{"$f":"IF(DataLog!$C2693=\"Log value\",DataLog!W2693,\"\")","v":""},{"$f":"IF(DataLog!$C2693=\"Log value\",DataLog!X2693,\"\")","v":""},{"$f":"IF(DataLog!$C2693=\"Log value\",DataLog!Y2693,\"\")","v":""},{"$f":"IF(DataLog!$C2693=\"Log value\",DataLog!Z2693,\"\")","v":""},{"$f":"IF(DataLog!$C2693=\"Log value\",DataLog!AA2693,\"\")","v":""},{"$f":"IF(DataLog!$C2693=\"Log value\",DataLog!AB2693,\"\")","v":""},{"$f":"IF(DataLog!$C2693=\"Log value\",DataLog!AC2693,\"\")","v":""},{"$f":"IF(DataLog!$C2693=\"Log value\",DataLog!AD2693,\"\")","v":""},{"$f":"IF(DataLog!$C2693=\"Log value\",DataLog!AE2693,\"\")","v":""},{"$f":"IF(DataLog!$C2693=\"Log value\",DataLog!AF2693,\"\")","v":""},{"$f":"IF(DataLog!$C2693=\"Log value\",DataLog!AG2693,\"\")","v":""},{"$f":"IF(DataLog!$C2693=\"Log value\",DataLog!AH2693,\"\")","v":""},{"$f":"IF(DataLog!$C2693=\"Log value\",DataLog!AI2693,\"\")","v":""},{"$f":"IF(DataLog!$C2693=\"Log value\",DataLog!AJ2693,\"\")","v":""},{"$f":"IF(DataLog!$C2693=\"Log value\",DataLog!AK2693,\"\")","v":""},{"$f":"IF(DataLog!$C2693=\"Log value\",DataLog!AL2693,\"\")","v":""},{"$f":"IF(DataLog!$C2693=\"Log value\",DataLog!AM2693,\"\")","v":""}]
[null,null,null,null,null,null,{"$f":"IF(DataLog!$C2696=\"Log value\",DataLog!D2696&\"_\"&TEXT(DataLog!B2696,\"åååå-mm-dd\"),\"\")","v":""},{"$f":"IF(DataLog!$C2696=\"Log value\",DataLog!E2696,\"\")","v":""},{"$f":"IF(DataLog!$C2696=\"Log value\",DataLog!F2696,\"\")","v":""},{"$f":"IF(DataLog!$C2696=\"Log value\",DataLog!G2696,\"\")","v":""},{"$f":"IF(DataLog!$C2696=\"Log value\",DataLog!H2696,\"\")","v":""},{"$f":"IF(DataLog!$C2696=\"Log value\",DataLog!I2696,\"\")","v":""},{"$f":"IF(DataLog!$C2696=\"Log value\",DataLog!J2696,\"\")","v":""},{"$f":"IF(DataLog!$C2696=\"Log value\",DataLog!K2696,\"\")","v":""},{"$f":"IF(DataLog!$C2696=\"Log value\",DataLog!L2696,\"\")","v":""},{"$f":"IF(DataLog!$C2696=\"Log value\",DataLog!M2696,\"\")","v":""},{"$f":"IF(DataLog!$C2696=\"Log value\",DataLog!N2696,\"\")","v":""},{"$f":"IF(DataLog!$C2696=\"Log value\",DataLog!O2696,\"\")","v":""},{"$f":"IF(DataLog!$C2696=\"Log value\",DataLog!P2696,\"\")","v":""},{"$f":"IF(DataLog!$C2696=\"Log value\",DataLog!Q2696,\"\")","v":""},{"$f":"IF(DataLog!$C2696=\"Log value\",DataLog!R2696,\"\")","v":""},{"$f":"IF(DataLog!$C2696=\"Log value\",DataLog!S2696,\"\")","v":""},{"$f":"IF(DataLog!$C2696=\"Log value\",DataLog!T2696,\"\")","v":""},{"$f":"IF(DataLog!$C2696=\"Log value\",DataLog!U2696,\"\")","v":""},{"$f":"IF(DataLog!$C2696=\"Log value\",DataLog!V2696,\"\")","v":""},{"$f":"IF(DataLog!$C2696=\"Log value\",DataLog!W2696,\"\")","v":""},{"$f":"IF(DataLog!$C2696=\"Log value\",DataLog!X2696,\"\")","v":""},{"$f":"IF(DataLog!$C2696=\"Log value\",DataLog!Y2696,\"\")","v":""},{"$f":"IF(DataLog!$C2696=\"Log value\",DataLog!Z2696,\"\")","v":""},{"$f":"IF(DataLog!$C2696=\"Log value\",DataLog!AA2696,\"\")","v":""},{"$f":"IF(DataLog!$C2696=\"Log value\",DataLog!AB2696,\"\")","v":""},{"$f":"IF(DataLog!$C2696=\"Log value\",DataLog!AC2696,\"\")","v":""},{"$f":"IF(DataLog!$C2696=\"Log value\",DataLog!AD2696,\"\")","v":""},{"$f":"IF(DataLog!$C2696=\"Log value\",DataLog!AE2696,\"\")","v":""},{"$f":"IF(DataLog!$C2696=\"Log value\",DataLog!AF2696,\"\")","v":""},{"$f":"IF(DataLog!$C2696=\"Log value\",DataLog!AG2696,\"\")","v":""},{"$f":"IF(DataLog!$C2696=\"Log value\",DataLog!AH2696,\"\")","v":""},{"$f":"IF(DataLog!$C2696=\"Log value\",DataLog!AI2696,\"\")","v":""},{"$f":"IF(DataLog!$C2696=\"Log value\",DataLog!AJ2696,\"\")","v":""},{"$f":"IF(DataLog!$C2696=\"Log value\",DataLog!AK2696,\"\")","v":""},{"$f":"IF(DataLog!$C2696=\"Log value\",DataLog!AL2696,\"\")","v":""},{"$f":"IF(DataLog!$C2696=\"Log value\",DataLog!AM2696,\"\")","v":""}]
[null,null,null,null,null,null,{"$f":"IF(DataLog!$C2698=\"Log value\",DataLog!D2698&\"_\"&TEXT(DataLog!B2698,\"åååå-mm-dd\"),\"\")","v":""},{"$f":"IF(DataLog!$C2698=\"Log value\",DataLog!E2698,\"\")","v":""},{"$f":"IF(DataLog!$C2698=\"Log value\",DataLog!F2698,\"\")","v":""},{"$f":"IF(DataLog!$C2698=\"Log value\",DataLog!G2698,\"\")","v":""},{"$f":"IF(DataLog!$C2698=\"Log value\",DataLog!H2698,\"\")","v":""},{"$f":"IF(DataLog!$C2698=\"Log value\",DataLog!I2698,\"\")","v":""},{"$f":"IF(DataLog!$C2698=\"Log value\",DataLog!J2698,\"\")","v":""},{"$f":"IF(DataLog!$C2698=\"Log value\",DataLog!K2698,\"\")","v":""},{"$f":"IF(DataLog!$C2698=\"Log value\",DataLog!L2698,\"\")","v":""},{"$f":"IF(DataLog!$C2698=\"Log value\",DataLog!M2698,\"\")","v":""},{"$f":"IF(DataLog!$C2698=\"Log value\",DataLog!N2698,\"\")","v":""},{"$f":"IF(DataLog!$C2698=\"Log value\",DataLog!O2698,\"\")","v":""},{"$f":"IF(DataLog!$C2698=\"Log value\",DataLog!P2698,\"\")","v":""},{"$f":"IF(DataLog!$C2698=\"Log value\",DataLog!Q2698,\"\")","v":""},{"$f":"IF(DataLog!$C2698=\"Log value\",DataLog!R2698,\"\")","v":""},{"$f":"IF(DataLog!$C2698=\"Log value\",DataLog!S2698,\"\")","v":""},{"$f":"IF(DataLog!$C2698=\"Log value\",DataLog!T2698,\"\")","v":""},{"$f":"IF(DataLog!$C2698=\"Log value\",DataLog!U2698,\"\")","v":""},{"$f":"IF(DataLog!$C2698=\"Log value\",DataLog!V2698,\"\")","v":""},{"$f":"IF(DataLog!$C2698=\"Log value\",DataLog!W2698,\"\")","v":""},{"$f":"IF(DataLog!$C2698=\"Log value\",DataLog!X2698,\"\")","v":""},{"$f":"IF(DataLog!$C2698=\"Log value\",DataLog!Y2698,\"\")","v":""},{"$f":"IF(DataLog!$C2698=\"Log value\",DataLog!Z2698,\"\")","v":""},{"$f":"IF(DataLog!$C2698=\"Log value\",DataLog!AA2698,\"\")","v":""},{"$f":"IF(DataLog!$C2698=\"Log value\",DataLog!AB2698,\"\")","v":""},{"$f":"IF(DataLog!$C2698=\"Log value\",DataLog!AC2698,\"\")","v":""},{"$f":"IF(DataLog!$C2698=\"Log value\",DataLog!AD2698,\"\")","v":""},{"$f":"IF(DataLog!$C2698=\"Log value\",DataLog!AE2698,\"\")","v":""},{"$f":"IF(DataLog!$C2698=\"Log value\",DataLog!AF2698,\"\")","v":""},{"$f":"IF(DataLog!$C2698=\"Log value\",DataLog!AG2698,\"\")","v":""},{"$f":"IF(DataLog!$C2698=\"Log value\",DataLog!AH2698,\"\")","v":""},{"$f":"IF(DataLog!$C2698=\"Log value\",DataLog!AI2698,\"\")","v":""},{"$f":"IF(DataLog!$C2698=\"Log value\",DataLog!AJ2698,\"\")","v":""},{"$f":"IF(DataLog!$C2698=\"Log value\",DataLog!AK2698,\"\")","v":""},{"$f":"IF(DataLog!$C2698=\"Log value\",DataLog!AL2698,\"\")","v":""},{"$f":"IF(DataLog!$C2698=\"Log value\",DataLog!AM2698,\"\")","v":""}]
[null,null,null,null,null,null,{"$f":"IF(DataLog!$C2701=\"Log value\",DataLog!D2701&\"_\"&TEXT(DataLog!B2701,\"åååå-mm-dd\"),\"\")","v":""},{"$f":"IF(DataLog!$C2701=\"Log value\",DataLog!E2701,\"\")","v":""},{"$f":"IF(DataLog!$C2701=\"Log value\",DataLog!F2701,\"\")","v":""},{"$f":"IF(DataLog!$C2701=\"Log value\",DataLog!G2701,\"\")","v":""},{"$f":"IF(DataLog!$C2701=\"Log value\",DataLog!H2701,\"\")","v":""},{"$f":"IF(DataLog!$C2701=\"Log value\",DataLog!I2701,\"\")","v":""},{"$f":"IF(DataLog!$C2701=\"Log value\",DataLog!J2701,\"\")","v":""},{"$f":"IF(DataLog!$C2701=\"Log value\",DataLog!K2701,\"\")","v":""},{"$f":"IF(DataLog!$C2701=\"Log value\",DataLog!L2701,\"\")","v":""},{"$f":"IF(DataLog!$C2701=\"Log value\",DataLog!M2701,\"\")","v":""},{"$f":"IF(DataLog!$C2701=\"Log value\",DataLog!N2701,\"\")","v":""},{"$f":"IF(DataLog!$C2701=\"Log value\",DataLog!O2701,\"\")","v":""},{"$f":"IF(DataLog!$C2701=\"Log value\",DataLog!P2701,\"\")","v":""},{"$f":"IF(DataLog!$C2701=\"Log value\",DataLog!Q2701,\"\")","v":""},{"$f":"IF(DataLog!$C2701=\"Log value\",DataLog!R2701,\"\")","v":""},{"$f":"IF(DataLog!$C2701=\"Log value\",DataLog!S2701,\"\")","v":""},{"$f":"IF(DataLog!$C2701=\"Log value\",DataLog!T2701,\"\")","v":""},{"$f":"IF(DataLog!$C2701=\"Log value\",DataLog!U2701,\"\")","v":""},{"$f":"IF(DataLog!$C2701=\"Log value\",DataLog!V2701,\"\")","v":""},{"$f":"IF(DataLog!$C2701=\"Log value\",DataLog!W2701,\"\")","v":""},{"$f":"IF(DataLog!$C2701=\"Log value\",DataLog!X2701,\"\")","v":""},{"$f":"IF(DataLog!$C2701=\"Log value\",DataLog!Y2701,\"\")","v":""},{"$f":"IF(DataLog!$C2701=\"Log value\",DataLog!Z2701,\"\")","v":""},{"$f":"IF(DataLog!$C2701=\"Log value\",DataLog!AA2701,\"\")","v":""},{"$f":"IF(DataLog!$C2701=\"Log value\",DataLog!AB2701,\"\")","v":""},{"$f":"IF(DataLog!$C2701=\"Log value\",DataLog!AC2701,\"\")","v":""},{"$f":"IF(DataLog!$C2701=\"Log value\",DataLog!AD2701,\"\")","v":""},{"$f":"IF(DataLog!$C2701=\"Log value\",DataLog!AE2701,\"\")","v":""},{"$f":"IF(DataLog!$C2701=\"Log value\",DataLog!AF2701,\"\")","v":""},{"$f":"IF(DataLog!$C2701=\"Log value\",DataLog!AG2701,\"\")","v":""},{"$f":"IF(DataLog!$C2701=\"Log value\",DataLog!AH2701,\"\")","v":""},{"$f":"IF(DataLog!$C2701=\"Log value\",DataLog!AI2701,\"\")","v":""},{"$f":"IF(DataLog!$C2701=\"Log value\",DataLog!AJ2701,\"\")","v":""},{"$f":"IF(DataLog!$C2701=\"Log value\",DataLog!AK2701,\"\")","v":""},{"$f":"IF(DataLog!$C2701=\"Log value\",DataLog!AL2701,\"\")","v":""},{"$f":"IF(DataLog!$C2701=\"Log value\",DataLog!AM2701,\"\")","v":""}]
[null,null,null,null,null,null,{"$f":"IF(DataLog!$C2702=\"Log value\",DataLog!D2702&\"_\"&TEXT(DataLog!B2702,\"åååå-mm-dd\"),\"\")","v":""},{"$f":"IF(DataLog!$C2702=\"Log value\",DataLog!E2702,\"\")","v":""},{"$f":"IF(DataLog!$C2702=\"Log value\",DataLog!F2702,\"\")","v":""},{"$f":"IF(DataLog!$C2702=\"Log value\",DataLog!G2702,\"\")","v":""},{"$f":"IF(DataLog!$C2702=\"Log value\",DataLog!H2702,\"\")","v":""},{"$f":"IF(DataLog!$C2702=\"Log value\",DataLog!I2702,\"\")","v":""},{"$f":"IF(DataLog!$C2702=\"Log value\",DataLog!J2702,\"\")","v":""},{"$f":"IF(DataLog!$C2702=\"Log value\",DataLog!K2702,\"\")","v":""},{"$f":"IF(DataLog!$C2702=\"Log value\",DataLog!L2702,\"\")","v":""},{"$f":"IF(DataLog!$C2702=\"Log value\",DataLog!M2702,\"\")","v":""},{"$f":"IF(DataLog!$C2702=\"Log value\",DataLog!N2702,\"\")","v":""},{"$f":"IF(DataLog!$C2702=\"Log value\",DataLog!O2702,\"\")","v":""},{"$f":"IF(DataLog!$C2702=\"Log value\",DataLog!P2702,\"\")","v":""},{"$f":"IF(DataLog!$C2702=\"Log value\",DataLog!Q2702,\"\")","v":""},{"$f":"IF(DataLog!$C2702=\"Log value\",DataLog!R2702,\"\")","v":""},{"$f":"IF(DataLog!$C2702=\"Log value\",DataLog!S2702,\"\")","v":""},{"$f":"IF(DataLog!$C2702=\"Log value\",DataLog!T2702,\"\")","v":""},{"$f":"IF(DataLog!$C2702=\"Log value\",DataLog!U2702,\"\")","v":""},{"$f":"IF(DataLog!$C2702=\"Log value\",DataLog!V2702,\"\")","v":""},{"$f":"IF(DataLog!$C2702=\"Log value\",DataLog!W2702,\"\")","v":""},{"$f":"IF(DataLog!$C2702=\"Log value\",DataLog!X2702,\"\")","v":""},{"$f":"IF(DataLog!$C2702=\"Log value\",DataLog!Y2702,\"\")","v":""},{"$f":"IF(DataLog!$C2702=\"Log value\",DataLog!Z2702,\"\")","v":""},{"$f":"IF(DataLog!$C2702=\"Log value\",DataLog!AA2702,\"\")","v":""},{"$f":"IF(DataLog!$C2702=\"Log value\",DataLog!AB2702,\"\")","v":""},{"$f":"IF(DataLog!$C2702=\"Log value\",DataLog!AC2702,\"\")","v":""},{"$f":"IF(DataLog!$C2702=\"Log value\",DataLog!AD2702,\"\")","v":""},{"$f":"IF(DataLog!$C2702=\"Log value\",DataLog!AE2702,\"\")","v":""},{"$f":"IF(DataLog!$C2702=\"Log value\",DataLog!AF2702,\"\")","v":""},{"$f":"IF(DataLog!$C2702=\"Log value\",DataLog!AG2702,\"\")","v":""},{"$f":"IF(DataLog!$C2702=\"Log value\",DataLog!AH2702,\"\")","v":""},{"$f":"IF(DataLog!$C2702=\"Log value\",DataLog!AI2702,\"\")","v":""},{"$f":"IF(DataLog!$C2702=\"Log value\",DataLog!AJ2702,\"\")","v":""},{"$f":"IF(DataLog!$C2702=\"Log value\",DataLog!AK2702,\"\")","v":""},{"$f":"IF(DataLog!$C2702=\"Log value\",DataLog!AL2702,\"\")","v":""},{"$f":"IF(DataLog!$C2702=\"Log value\",DataLog!AM2702,\"\")","v":""}]
[null,null,null,null,null,null,{"$f":"IF(DataLog!$C2704=\"Log value\",DataLog!D2704&\"_\"&TEXT(DataLog!B2704,\"åååå-mm-dd\"),\"\")","v":""},{"$f":"IF(DataLog!$C2704=\"Log value\",DataLog!E2704,\"\")","v":""},{"$f":"IF(DataLog!$C2704=\"Log value\",DataLog!F2704,\"\")","v":""},{"$f":"IF(DataLog!$C2704=\"Log value\",DataLog!G2704,\"\")","v":""},{"$f":"IF(DataLog!$C2704=\"Log value\",DataLog!H2704,\"\")","v":""},{"$f":"IF(DataLog!$C2704=\"Log value\",DataLog!I2704,\"\")","v":""},{"$f":"IF(DataLog!$C2704=\"Log value\",DataLog!J2704,\"\")","v":""},{"$f":"IF(DataLog!$C2704=\"Log value\",DataLog!K2704,\"\")","v":""},{"$f":"IF(DataLog!$C2704=\"Log value\",DataLog!L2704,\"\")","v":""},{"$f":"IF(DataLog!$C2704=\"Log value\",DataLog!M2704,\"\")","v":""},{"$f":"IF(DataLog!$C2704=\"Log value\",DataLog!N2704,\"\")","v":""},{"$f":"IF(DataLog!$C2704=\"Log value\",DataLog!O2704,\"\")","v":""},{"$f":"IF(DataLog!$C2704=\"Log value\",DataLog!P2704,\"\")","v":""},{"$f":"IF(DataLog!$C2704=\"Log value\",DataLog!Q2704,\"\")","v":""},{"$f":"IF(DataLog!$C2704=\"Log value\",DataLog!R2704,\"\")","v":""},{"$f":"IF(DataLog!$C2704=\"Log value\",DataLog!S2704,\"\")","v":""},{"$f":"IF(DataLog!$C2704=\"Log value\",DataLog!T2704,\"\")","v":""},{"$f":"IF(DataLog!$C2704=\"Log value\",DataLog!U2704,\"\")","v":""},{"$f":"IF(DataLog!$C2704=\"Log value\",DataLog!V2704,\"\")","v":""},{"$f":"IF(DataLog!$C2704=\"Log value\",DataLog!W2704,\"\")","v":""},{"$f":"IF(DataLog!$C2704=\"Log value\",DataLog!X2704,\"\")","v":""},{"$f":"IF(DataLog!$C2704=\"Log value\",DataLog!Y2704,\"\")","v":""},{"$f":"IF(DataLog!$C2704=\"Log value\",DataLog!Z2704,\"\")","v":""},{"$f":"IF(DataLog!$C2704=\"Log value\",DataLog!AA2704,\"\")","v":""},{"$f":"IF(DataLog!$C2704=\"Log value\",DataLog!AB2704,\"\")","v":""},{"$f":"IF(DataLog!$C2704=\"Log value\",DataLog!AC2704,\"\")","v":""},{"$f":"IF(DataLog!$C2704=\"Log value\",DataLog!AD2704,\"\")","v":""},{"$f":"IF(DataLog!$C2704=\"Log value\",DataLog!AE2704,\"\")","v":""},{"$f":"IF(DataLog!$C2704=\"Log value\",DataLog!AF2704,\"\")","v":""},{"$f":"IF(DataLog!$C2704=\"Log value\",DataLog!AG2704,\"\")","v":""},{"$f":"IF(DataLog!$C2704=\"Log value\",DataLog!AH2704,\"\")","v":""},{"$f":"IF(DataLog!$C2704=\"Log value\",DataLog!AI2704,\"\")","v":""},{"$f":"IF(DataLog!$C2704=\"Log value\",DataLog!AJ2704,\"\")","v":""},{"$f":"IF(DataLog!$C2704=\"Log value\",DataLog!AK2704,\"\")","v":""},{"$f":"IF(DataLog!$C2704=\"Log value\",DataLog!AL2704,\"\")","v":""},{"$f":"IF(DataLog!$C2704=\"Log value\",DataLog!AM2704,\"\")","v":""}]
[null,null,null,null,null,null,{"$f":"IF(DataLog!$C2707=\"Log value\",DataLog!D2707&\"_\"&TEXT(DataLog!B2707,\"åååå-mm-dd\"),\"\")","v":""},{"$f":"IF(DataLog!$C2707=\"Log value\",DataLog!E2707,\"\")","v":""},{"$f":"IF(DataLog!$C2707=\"Log value\",DataLog!F2707,\"\")","v":""},{"$f":"IF(DataLog!$C2707=\"Log value\",DataLog!G2707,\"\")","v":""},{"$f":"IF(DataLog!$C2707=\"Log value\",DataLog!H2707,\"\")","v":""},{"$f":"IF(DataLog!$C2707=\"Log value\",DataLog!I2707,\"\")","v":""},{"$f":"IF(DataLog!$C2707=\"Log value\",DataLog!J2707,\"\")","v":""},{"$f":"IF(DataLog!$C2707=\"Log value\",DataLog!K2707,\"\")","v":""},{"$f":"IF(DataLog!$C2707=\"Log value\",DataLog!L2707,\"\")","v":""},{"$f":"IF(DataLog!$C2707=\"Log value\",DataLog!M2707,\"\")","v":""},{"$f":"IF(DataLog!$C2707=\"Log value\",DataLog!N2707,\"\")","v":""},{"$f":"IF(DataLog!$C2707=\"Log value\",DataLog!O2707,\"\")","v":""},{"$f":"IF(DataLog!$C2707=\"Log value\",DataLog!P2707,\"\")","v":""},{"$f":"IF(DataLog!$C2707=\"Log value\",DataLog!Q2707,\"\")","v":""},{"$f":"IF(DataLog!$C2707=\"Log value\",DataLog!R2707,\"\")","v":""},{"$f":"IF(DataLog!$C2707=\"Log value\",DataLog!S2707,\"\")","v":""},{"$f":"IF(DataLog!$C2707=\"Log value\",DataLog!T2707,\"\")","v":""},{"$f":"IF(DataLog!$C2707=\"Log value\",DataLog!U2707,\"\")","v":""},{"$f":"IF(DataLog!$C2707=\"Log value\",DataLog!V2707,\"\")","v":""},{"$f":"IF(DataLog!$C2707=\"Log value\",DataLog!W2707,\"\")","v":""},{"$f":"IF(DataLog!$C2707=\"Log value\",DataLog!X2707,\"\")","v":""},{"$f":"IF(DataLog!$C2707=\"Log value\",DataLog!Y2707,\"\")","v":""},{"$f":"IF(DataLog!$C2707=\"Log value\",DataLog!Z2707,\"\")","v":""},{"$f":"IF(DataLog!$C2707=\"Log value\",DataLog!AA2707,\"\")","v":""},{"$f":"IF(DataLog!$C2707=\"Log value\",DataLog!AB2707,\"\")","v":""},{"$f":"IF(DataLog!$C2707=\"Log value\",DataLog!AC2707,\"\")","v":""},{"$f":"IF(DataLog!$C2707=\"Log value\",DataLog!AD2707,\"\")","v":""},{"$f":"IF(DataLog!$C2707=\"Log value\",DataLog!AE2707,\"\")","v":""},{"$f":"IF(DataLog!$C2707=\"Log value\",DataLog!AF2707,\"\")","v":""},{"$f":"IF(DataLog!$C2707=\"Log value\",DataLog!AG2707,\"\")","v":""},{"$f":"IF(DataLog!$C2707=\"Log value\",DataLog!AH2707,\"\")","v":""},{"$f":"IF(DataLog!$C2707=\"Log value\",DataLog!AI2707,\"\")","v":""},{"$f":"IF(DataLog!$C2707=\"Log value\",DataLog!AJ2707,\"\")","v":""},{"$f":"IF(DataLog!$C2707=\"Log value\",DataLog!AK2707,\"\")","v":""},{"$f":"IF(DataLog!$C2707=\"Log value\",DataLog!AL2707,\"\")","v":""},{"$f":"IF(DataLog!$C2707=\"Log value\",DataLog!AM2707,\"\")","v":""}]
[null,null,null,null,null,null,{"$f":"IF(DataLog!$C2710=\"Log value\",DataLog!D2710&\"_\"&TEXT(DataLog!B2710,\"åååå-mm-dd\"),\"\")","v":""},{"$f":"IF(DataLog!$C2710=\"Log value\",DataLog!E2710,\"\")","v":""},{"$f":"IF(DataLog!$C2710=\"Log value\",DataLog!F2710,\"\")","v":""},{"$f":"IF(DataLog!$C2710=\"Log value\",DataLog!G2710,\"\")","v":""},{"$f":"IF(DataLog!$C2710=\"Log value\",DataLog!H2710,\"\")","v":""},{"$f":"IF(DataLog!$C2710=\"Log value\",DataLog!I2710,\"\")","v":""},{"$f":"IF(DataLog!$C2710=\"Log value\",DataLog!J2710,\"\")","v":""},{"$f":"IF(DataLog!$C2710=\"Log value\",DataLog!K2710,\"\")","v":""},{"$f":"IF(DataLog!$C2710=\"Log value\",DataLog!L2710,\"\")","v":""},{"$f":"IF(DataLog!$C2710=\"Log value\",DataLog!M2710,\"\")","v":""},{"$f":"IF(DataLog!$C2710=\"Log value\",DataLog!N2710,\"\")","v":""},{"$f":"IF(DataLog!$C2710=\"Log value\",DataLog!O2710,\"\")","v":""},{"$f":"IF(DataLog!$C2710=\"Log value\",DataLog!P2710,\"\")","v":""},{"$f":"IF(DataLog!$C2710=\"Log value\",DataLog!Q2710,\"\")","v":""},{"$f":"IF(DataLog!$C2710=\"Log value\",DataLog!R2710,\"\")","v":""},{"$f":"IF(DataLog!$C2710=\"Log value\",DataLog!S2710,\"\")","v":""},{"$f":"IF(DataLog!$C2710=\"Log value\",DataLog!T2710,\"\")","v":""},{"$f":"IF(DataLog!$C2710=\"Log value\",DataLog!U2710,\"\")","v":""},{"$f":"IF(DataLog!$C2710=\"Log value\",DataLog!V2710,\"\")","v":""},{"$f":"IF(DataLog!$C2710=\"Log value\",DataLog!W2710,\"\")","v":""},{"$f":"IF(DataLog!$C2710=\"Log value\",DataLog!X2710,\"\")","v":""},{"$f":"IF(DataLog!$C2710=\"Log value\",DataLog!Y2710,\"\")","v":""},{"$f":"IF(DataLog!$C2710=\"Log value\",DataLog!Z2710,\"\")","v":""},{"$f":"IF(DataLog!$C2710=\"Log value\",DataLog!AA2710,\"\")","v":""},{"$f":"IF(DataLog!$C2710=\"Log value\",DataLog!AB2710,\"\")","v":""},{"$f":"IF(DataLog!$C2710=\"Log value\",DataLog!AC2710,\"\")","v":""},{"$f":"IF(DataLog!$C2710=\"Log value\",DataLog!AD2710,\"\")","v":""},{"$f":"IF(DataLog!$C2710=\"Log value\",DataLog!AE2710,\"\")","v":""},{"$f":"IF(DataLog!$C2710=\"Log value\",DataLog!AF2710,\"\")","v":""},{"$f":"IF(DataLog!$C2710=\"Log value\",DataLog!AG2710,\"\")","v":""},{"$f":"IF(DataLog!$C2710=\"Log value\",DataLog!AH2710,\"\")","v":""},{"$f":"IF(DataLog!$C2710=\"Log value\",DataLog!AI2710,\"\")","v":""},{"$f":"IF(DataLog!$C2710=\"Log value\",DataLog!AJ2710,\"\")","v":""},{"$f":"IF(DataLog!$C2710=\"Log value\",DataLog!AK2710,\"\")","v":""},{"$f":"IF(DataLog!$C2710=\"Log value\",DataLog!AL2710,\"\")","v":""},{"$f":"IF(DataLog!$C2710=\"Log value\",DataLog!AM2710,\"\")","v":""}]
[null,null,null,null,null,null,{"$f":"IF(DataLog!$C2712=\"Log value\",DataLog!D2712&\"_\"&TEXT(DataLog!B2712,\"åååå-mm-dd\"),\"\")","v":""},{"$f":"IF(DataLog!$C2712=\"Log value\",DataLog!E2712,\"\")","v":""},{"$f":"IF(DataLog!$C2712=\"Log value\",DataLog!F2712,\"\")","v":""},{"$f":"IF(DataLog!$C2712=\"Log value\",DataLog!G2712,\"\")","v":""},{"$f":"IF(DataLog!$C2712=\"Log value\",DataLog!H2712,\"\")","v":""},{"$f":"IF(DataLog!$C2712=\"Log value\",DataLog!I2712,\"\")","v":""},{"$f":"IF(DataLog!$C2712=\"Log value\",DataLog!J2712,\"\")","v":""},{"$f":"IF(DataLog!$C2712=\"Log value\",DataLog!K2712,\"\")","v":""},{"$f":"IF(DataLog!$C2712=\"Log value\",DataLog!L2712,\"\")","v":""},{"$f":"IF(DataLog!$C2712=\"Log value\",DataLog!M2712,\"\")","v":""},{"$f":"IF(DataLog!$C2712=\"Log value\",DataLog!N2712,\"\")","v":""},{"$f":"IF(DataLog!$C2712=\"Log value\",DataLog!O2712,\"\")","v":""},{"$f":"IF(DataLog!$C2712=\"Log value\",DataLog!P2712,\"\")","v":""},{"$f":"IF(DataLog!$C2712=\"Log value\",DataLog!Q2712,\"\")","v":""},{"$f":"IF(DataLog!$C2712=\"Log value\",DataLog!R2712,\"\")","v":""},{"$f":"IF(DataLog!$C2712=\"Log value\",DataLog!S2712,\"\")","v":""},{"$f":"IF(DataLog!$C2712=\"Log value\",DataLog!T2712,\"\")","v":""},{"$f":"IF(DataLog!$C2712=\"Log value\",DataLog!U2712,\"\")","v":""},{"$f":"IF(DataLog!$C2712=\"Log value\",DataLog!V2712,\"\")","v":""},{"$f":"IF(DataLog!$C2712=\"Log value\",DataLog!W2712,\"\")","v":""},{"$f":"IF(DataLog!$C2712=\"Log value\",DataLog!X2712,\"\")","v":""},{"$f":"IF(DataLog!$C2712=\"Log value\",DataLog!Y2712,\"\")","v":""},{"$f":"IF(DataLog!$C2712=\"Log value\",DataLog!Z2712,\"\")","v":""},{"$f":"IF(DataLog!$C2712=\"Log value\",DataLog!AA2712,\"\")","v":""},{"$f":"IF(DataLog!$C2712=\"Log value\",DataLog!AB2712,\"\")","v":""},{"$f":"IF(DataLog!$C2712=\"Log value\",DataLog!AC2712,\"\")","v":""},{"$f":"IF(DataLog!$C2712=\"Log value\",DataLog!AD2712,\"\")","v":""},{"$f":"IF(DataLog!$C2712=\"Log value\",DataLog!AE2712,\"\")","v":""},{"$f":"IF(DataLog!$C2712=\"Log value\",DataLog!AF2712,\"\")","v":""},{"$f":"IF(DataLog!$C2712=\"Log value\",DataLog!AG2712,\"\")","v":""},{"$f":"IF(DataLog!$C2712=\"Log value\",DataLog!AH2712,\"\")","v":""},{"$f":"IF(DataLog!$C2712=\"Log value\",DataLog!AI2712,\"\")","v":""},{"$f":"IF(DataLog!$C2712=\"Log value\",DataLog!AJ2712,\"\")","v":""},{"$f":"IF(DataLog!$C2712=\"Log value\",DataLog!AK2712,\"\")","v":""},{"$f":"IF(DataLog!$C2712=\"Log value\",DataLog!AL2712,\"\")","v":""},{"$f":"IF(DataLog!$C2712=\"Log value\",DataLog!AM2712,\"\")","v":""}]
[null,null,null,null,null,null,{"$f":"IF(DataLog!$C2715=\"Log value\",DataLog!D2715&\"_\"&TEXT(DataLog!B2715,\"åååå-mm-dd\"),\"\")","v":""},{"$f":"IF(DataLog!$C2715=\"Log value\",DataLog!E2715,\"\")","v":""},{"$f":"IF(DataLog!$C2715=\"Log value\",DataLog!F2715,\"\")","v":""},{"$f":"IF(DataLog!$C2715=\"Log value\",DataLog!G2715,\"\")","v":""},{"$f":"IF(DataLog!$C2715=\"Log value\",DataLog!H2715,\"\")","v":""},{"$f":"IF(DataLog!$C2715=\"Log value\",DataLog!I2715,\"\")","v":""},{"$f":"IF(DataLog!$C2715=\"Log value\",DataLog!J2715,\"\")","v":""},{"$f":"IF(DataLog!$C2715=\"Log value\",DataLog!K2715,\"\")","v":""},{"$f":"IF(DataLog!$C2715=\"Log value\",DataLog!L2715,\"\")","v":""},{"$f":"IF(DataLog!$C2715=\"Log value\",DataLog!M2715,\"\")","v":""},{"$f":"IF(DataLog!$C2715=\"Log value\",DataLog!N2715,\"\")","v":""},{"$f":"IF(DataLog!$C2715=\"Log value\",DataLog!O2715,\"\")","v":""},{"$f":"IF(DataLog!$C2715=\"Log value\",DataLog!P2715,\"\")","v":""},{"$f":"IF(DataLog!$C2715=\"Log value\",DataLog!Q2715,\"\")","v":""},{"$f":"IF(DataLog!$C2715=\"Log value\",DataLog!R2715,\"\")","v":""},{"$f":"IF(DataLog!$C2715=\"Log value\",DataLog!S2715,\"\")","v":""},{"$f":"IF(DataLog!$C2715=\"Log value\",DataLog!T2715,\"\")","v":""},{"$f":"IF(DataLog!$C2715=\"Log value\",DataLog!U2715,\"\")","v":""},{"$f":"IF(DataLog!$C2715=\"Log value\",DataLog!V2715,\"\")","v":""},{"$f":"IF(DataLog!$C2715=\"Log value\",DataLog!W2715,\"\")","v":""},{"$f":"IF(DataLog!$C2715=\"Log value\",DataLog!X2715,\"\")","v":""},{"$f":"IF(DataLog!$C2715=\"Log value\",DataLog!Y2715,\"\")","v":""},{"$f":"IF(DataLog!$C2715=\"Log value\",DataLog!Z2715,\"\")","v":""},{"$f":"IF(DataLog!$C2715=\"Log value\",DataLog!AA2715,\"\")","v":""},{"$f":"IF(DataLog!$C2715=\"Log value\",DataLog!AB2715,\"\")","v":""},{"$f":"IF(DataLog!$C2715=\"Log value\",DataLog!AC2715,\"\")","v":""},{"$f":"IF(DataLog!$C2715=\"Log value\",DataLog!AD2715,\"\")","v":""},{"$f":"IF(DataLog!$C2715=\"Log value\",DataLog!AE2715,\"\")","v":""},{"$f":"IF(DataLog!$C2715=\"Log value\",DataLog!AF2715,\"\")","v":""},{"$f":"IF(DataLog!$C2715=\"Log value\",DataLog!AG2715,\"\")","v":""},{"$f":"IF(DataLog!$C2715=\"Log value\",DataLog!AH2715,\"\")","v":""},{"$f":"IF(DataLog!$C2715=\"Log value\",DataLog!AI2715,\"\")","v":""},{"$f":"IF(DataLog!$C2715=\"Log value\",DataLog!AJ2715,\"\")","v":""},{"$f":"IF(DataLog!$C2715=\"Log value\",DataLog!AK2715,\"\")","v":""},{"$f":"IF(DataLog!$C2715=\"Log value\",DataLog!AL2715,\"\")","v":""},{"$f":"IF(DataLog!$C2715=\"Log value\",DataLog!AM2715,\"\")","v":""}]
[null,null,null,null,null,null,{"$f":"IF(DataLog!$C2716=\"Log value\",DataLog!D2716&\"_\"&TEXT(DataLog!B2716,\"åååå-mm-dd\"),\"\")","v":""},{"$f":"IF(DataLog!$C2716=\"Log value\",DataLog!E2716,\"\")","v":""},{"$f":"IF(DataLog!$C2716=\"Log value\",DataLog!F2716,\"\")","v":""},{"$f":"IF(DataLog!$C2716=\"Log value\",DataLog!G2716,\"\")","v":""},{"$f":"IF(DataLog!$C2716=\"Log value\",DataLog!H2716,\"\")","v":""},{"$f":"IF(DataLog!$C2716=\"Log value\",DataLog!I2716,\"\")","v":""},{"$f":"IF(DataLog!$C2716=\"Log value\",DataLog!J2716,\"\")","v":""},{"$f":"IF(DataLog!$C2716=\"Log value\",DataLog!K2716,\"\")","v":""},{"$f":"IF(DataLog!$C2716=\"Log value\",DataLog!L2716,\"\")","v":""},{"$f":"IF(DataLog!$C2716=\"Log value\",DataLog!M2716,\"\")","v":""},{"$f":"IF(DataLog!$C2716=\"Log value\",DataLog!N2716,\"\")","v":""},{"$f":"IF(DataLog!$C2716=\"Log value\",DataLog!O2716,\"\")","v":""},{"$f":"IF(DataLog!$C2716=\"Log value\",DataLog!P2716,\"\")","v":""},{"$f":"IF(DataLog!$C2716=\"Log value\",DataLog!Q2716,\"\")","v":""},{"$f":"IF(DataLog!$C2716=\"Log value\",DataLog!R2716,\"\")","v":""},{"$f":"IF(DataLog!$C2716=\"Log value\",DataLog!S2716,\"\")","v":""},{"$f":"IF(DataLog!$C2716=\"Log value\",DataLog!T2716,\"\")","v":""},{"$f":"IF(DataLog!$C2716=\"Log value\",DataLog!U2716,\"\")","v":""},{"$f":"IF(DataLog!$C2716=\"Log value\",DataLog!V2716,\"\")","v":""},{"$f":"IF(DataLog!$C2716=\"Log value\",DataLog!W2716,\"\")","v":""},{"$f":"IF(DataLog!$C2716=\"Log value\",DataLog!X2716,\"\")","v":""},{"$f":"IF(DataLog!$C2716=\"Log value\",DataLog!Y2716,\"\")","v":""},{"$f":"IF(DataLog!$C2716=\"Log value\",DataLog!Z2716,\"\")","v":""},{"$f":"IF(DataLog!$C2716=\"Log value\",DataLog!AA2716,\"\")","v":""},{"$f":"IF(DataLog!$C2716=\"Log value\",DataLog!AB2716,\"\")","v":""},{"$f":"IF(DataLog!$C2716=\"Log value\",DataLog!AC2716,\"\")","v":""},{"$f":"IF(DataLog!$C2716=\"Log value\",DataLog!AD2716,\"\")","v":""},{"$f":"IF(DataLog!$C2716=\"Log value\",DataLog!AE2716,\"\")","v":""},{"$f":"IF(DataLog!$C2716=\"Log value\",DataLog!AF2716,\"\")","v":""},{"$f":"IF(DataLog!$C2716=\"Log value\",DataLog!AG2716,\"\")","v":""},{"$f":"IF(DataLog!$C2716=\"Log value\",DataLog!AH2716,\"\")","v":""},{"$f":"IF(DataLog!$C2716=\"Log value\",DataLog!AI2716,\"\")","v":""},{"$f":"IF(DataLog!$C2716=\"Log value\",DataLog!AJ2716,\"\")","v":""},{"$f":"IF(DataLog!$C2716=\"Log value\",DataLog!AK2716,\"\")","v":""},{"$f":"IF(DataLog!$C2716=\"Log value\",DataLog!AL2716,\"\")","v":""},{"$f":"IF(DataLog!$C2716=\"Log value\",DataLog!AM2716,\"\")","v":""}]
[null,null,null,null,null,null,{"$f":"IF(DataLog!$C2719=\"Log value\",DataLog!D2719&\"_\"&TEXT(DataLog!B2719,\"åååå-mm-dd\"),\"\")","v":""},{"$f":"IF(DataLog!$C2719=\"Log value\",DataLog!E2719,\"\")","v":""},{"$f":"IF(DataLog!$C2719=\"Log value\",DataLog!F2719,\"\")","v":""},{"$f":"IF(DataLog!$C2719=\"Log value\",DataLog!G2719,\"\")","v":""},{"$f":"IF(DataLog!$C2719=\"Log value\",DataLog!H2719,\"\")","v":""},{"$f":"IF(DataLog!$C2719=\"Log value\",DataLog!I2719,\"\")","v":""},{"$f":"IF(DataLog!$C2719=\"Log value\",DataLog!J2719,\"\")","v":""},{"$f":"IF(DataLog!$C2719=\"Log value\",DataLog!K2719,\"\")","v":""},{"$f":"IF(DataLog!$C2719=\"Log value\",DataLog!L2719,\"\")","v":""},{"$f":"IF(DataLog!$C2719=\"Log value\",DataLog!M2719,\"\")","v":""},{"$f":"IF(DataLog!$C2719=\"Log value\",DataLog!N2719,\"\")","v":""},{"$f":"IF(DataLog!$C2719=\"Log value\",DataLog!O2719,\"\")","v":""},{"$f":"IF(DataLog!$C2719=\"Log value\",DataLog!P2719,\"\")","v":""},{"$f":"IF(DataLog!$C2719=\"Log value\",DataLog!Q2719,\"\")","v":""},{"$f":"IF(DataLog!$C2719=\"Log value\",DataLog!R2719,\"\")","v":""},{"$f":"IF(DataLog!$C2719=\"Log value\",DataLog!S2719,\"\")","v":""},{"$f":"IF(DataLog!$C2719=\"Log value\",DataLog!T2719,\"\")","v":""},{"$f":"IF(DataLog!$C2719=\"Log value\",DataLog!U2719,\"\")","v":""},{"$f":"IF(DataLog!$C2719=\"Log value\",DataLog!V2719,\"\")","v":""},{"$f":"IF(DataLog!$C2719=\"Log value\",DataLog!W2719,\"\")","v":""},{"$f":"IF(DataLog!$C2719=\"Log value\",DataLog!X2719,\"\")","v":""},{"$f":"IF(DataLog!$C2719=\"Log value\",DataLog!Y2719,\"\")","v":""},{"$f":"IF(DataLog!$C2719=\"Log value\",DataLog!Z2719,\"\")","v":""},{"$f":"IF(DataLog!$C2719=\"Log value\",DataLog!AA2719,\"\")","v":""},{"$f":"IF(DataLog!$C2719=\"Log value\",DataLog!AB2719,\"\")","v":""},{"$f":"IF(DataLog!$C2719=\"Log value\",DataLog!AC2719,\"\")","v":""},{"$f":"IF(DataLog!$C2719=\"Log value\",DataLog!AD2719,\"\")","v":""},{"$f":"IF(DataLog!$C2719=\"Log value\",DataLog!AE2719,\"\")","v":""},{"$f":"IF(DataLog!$C2719=\"Log value\",DataLog!AF2719,\"\")","v":""},{"$f":"IF(DataLog!$C2719=\"Log value\",DataLog!AG2719,\"\")","v":""},{"$f":"IF(DataLog!$C2719=\"Log value\",DataLog!AH2719,\"\")","v":""},{"$f":"IF(DataLog!$C2719=\"Log value\",DataLog!AI2719,\"\")","v":""},{"$f":"IF(DataLog!$C2719=\"Log value\",DataLog!AJ2719,\"\")","v":""},{"$f":"IF(DataLog!$C2719=\"Log value\",DataLog!AK2719,\"\")","v":""},{"$f":"IF(DataLog!$C2719=\"Log value\",DataLog!AL2719,\"\")","v":""},{"$f":"IF(DataLog!$C2719=\"Log value\",DataLog!AM2719,\"\")","v":""}]
[null,null,null,null,null,null,{"$f":"IF(DataLog!$C2720=\"Log value\",DataLog!D2720&\"_\"&TEXT(DataLog!B2720,\"åååå-mm-dd\"),\"\")","v":""},{"$f":"IF(DataLog!$C2720=\"Log value\",DataLog!E2720,\"\")","v":""},{"$f":"IF(DataLog!$C2720=\"Log value\",DataLog!F2720,\"\")","v":""},{"$f":"IF(DataLog!$C2720=\"Log value\",DataLog!G2720,\"\")","v":""},{"$f":"IF(DataLog!$C2720=\"Log value\",DataLog!H2720,\"\")","v":""},{"$f":"IF(DataLog!$C2720=\"Log value\",DataLog!I2720,\"\")","v":""},{"$f":"IF(DataLog!$C2720=\"Log value\",DataLog!J2720,\"\")","v":""},{"$f":"IF(DataLog!$C2720=\"Log value\",DataLog!K2720,\"\")","v":""},{"$f":"IF(DataLog!$C2720=\"Log value\",DataLog!L2720,\"\")","v":""},{"$f":"IF(DataLog!$C2720=\"Log value\",DataLog!M2720,\"\")","v":""},{"$f":"IF(DataLog!$C2720=\"Log value\",DataLog!N2720,\"\")","v":""},{"$f":"IF(DataLog!$C2720=\"Log value\",DataLog!O2720,\"\")","v":""},{"$f":"IF(DataLog!$C2720=\"Log value\",DataLog!P2720,\"\")","v":""},{"$f":"IF(DataLog!$C2720=\"Log value\",DataLog!Q2720,\"\")","v":""},{"$f":"IF(DataLog!$C2720=\"Log value\",DataLog!R2720,\"\")","v":""},{"$f":"IF(DataLog!$C2720=\"Log value\",DataLog!S2720,\"\")","v":""},{"$f":"IF(DataLog!$C2720=\"Log value\",DataLog!T2720,\"\")","v":""},{"$f":"IF(DataLog!$C2720=\"Log value\",DataLog!U2720,\"\")","v":""},{"$f":"IF(DataLog!$C2720=\"Log value\",DataLog!V2720,\"\")","v":""},{"$f":"IF(DataLog!$C2720=\"Log value\",DataLog!W2720,\"\")","v":""},{"$f":"IF(DataLog!$C2720=\"Log value\",DataLog!X2720,\"\")","v":""},{"$f":"IF(DataLog!$C2720=\"Log value\",DataLog!Y2720,\"\")","v":""},{"$f":"IF(DataLog!$C2720=\"Log value\",DataLog!Z2720,\"\")","v":""},{"$f":"IF(DataLog!$C2720=\"Log value\",DataLog!AA2720,\"\")","v":""},{"$f":"IF(DataLog!$C2720=\"Log value\",DataLog!AB2720,\"\")","v":""},{"$f":"IF(DataLog!$C2720=\"Log value\",DataLog!AC2720,\"\")","v":""},{"$f":"IF(DataLog!$C2720=\"Log value\",DataLog!AD2720,\"\")","v":""},{"$f":"IF(DataLog!$C2720=\"Log value\",DataLog!AE2720,\"\")","v":""},{"$f":"IF(DataLog!$C2720=\"Log value\",DataLog!AF2720,\"\")","v":""},{"$f":"IF(DataLog!$C2720=\"Log value\",DataLog!AG2720,\"\")","v":""},{"$f":"IF(DataLog!$C2720=\"Log value\",DataLog!AH2720,\"\")","v":""},{"$f":"IF(DataLog!$C2720=\"Log value\",DataLog!AI2720,\"\")","v":""},{"$f":"IF(DataLog!$C2720=\"Log value\",DataLog!AJ2720,\"\")","v":""},{"$f":"IF(DataLog!$C2720=\"Log value\",DataLog!AK2720,\"\")","v":""},{"$f":"IF(DataLog!$C2720=\"Log value\",DataLog!AL2720,\"\")","v":""},{"$f":"IF(DataLog!$C2720=\"Log value\",DataLog!AM2720,\"\")","v":""}]
[null,null,null,null,null,null,{"$f":"IF(DataLog!$C2724=\"Log value\",DataLog!D2724&\"_\"&TEXT(DataLog!B2724,\"åååå-mm-dd\"),\"\")","v":""},{"$f":"IF(DataLog!$C2724=\"Log value\",DataLog!E2724,\"\")","v":""},{"$f":"IF(DataLog!$C2724=\"Log value\",DataLog!F2724,\"\")","v":""},{"$f":"IF(DataLog!$C2724=\"Log value\",DataLog!G2724,\"\")","v":""},{"$f":"IF(DataLog!$C2724=\"Log value\",DataLog!H2724,\"\")","v":""},{"$f":"IF(DataLog!$C2724=\"Log value\",DataLog!I2724,\"\")","v":""},{"$f":"IF(DataLog!$C2724=\"Log value\",DataLog!J2724,\"\")","v":""},{"$f":"IF(DataLog!$C2724=\"Log value\",DataLog!K2724,\"\")","v":""},{"$f":"IF(DataLog!$C2724=\"Log value\",DataLog!L2724,\"\")","v":""},{"$f":"IF(DataLog!$C2724=\"Log value\",DataLog!M2724,\"\")","v":""},{"$f":"IF(DataLog!$C2724=\"Log value\",DataLog!N2724,\"\")","v":""},{"$f":"IF(DataLog!$C2724=\"Log value\",DataLog!O2724,\"\")","v":""},{"$f":"IF(DataLog!$C2724=\"Log value\",DataLog!P2724,\"\")","v":""},{"$f":"IF(DataLog!$C2724=\"Log value\",DataLog!Q2724,\"\")","v":""},{"$f":"IF(DataLog!$C2724=\"Log value\",DataLog!R2724,\"\")","v":""},{"$f":"IF(DataLog!$C2724=\"Log value\",DataLog!S2724,\"\")","v":""},{"$f":"IF(DataLog!$C2724=\"Log value\",DataLog!T2724,\"\")","v":""},{"$f":"IF(DataLog!$C2724=\"Log value\",DataLog!U2724,\"\")","v":""},{"$f":"IF(DataLog!$C2724=\"Log value\",DataLog!V2724,\"\")","v":""},{"$f":"IF(DataLog!$C2724=\"Log value\",DataLog!W2724,\"\")","v":""},{"$f":"IF(DataLog!$C2724=\"Log value\",DataLog!X2724,\"\")","v":""},{"$f":"IF(DataLog!$C2724=\"Log value\",DataLog!Y2724,\"\")","v":""},{"$f":"IF(DataLog!$C2724=\"Log value\",DataLog!Z2724,\"\")","v":""},{"$f":"IF(DataLog!$C2724=\"Log value\",DataLog!AA2724,\"\")","v":""},{"$f":"IF(DataLog!$C2724=\"Log value\",DataLog!AB2724,\"\")","v":""},{"$f":"IF(DataLog!$C2724=\"Log value\",DataLog!AC2724,\"\")","v":""},{"$f":"IF(DataLog!$C2724=\"Log value\",DataLog!AD2724,\"\")","v":""},{"$f":"IF(DataLog!$C2724=\"Log value\",DataLog!AE2724,\"\")","v":""},{"$f":"IF(DataLog!$C2724=\"Log value\",DataLog!AF2724,\"\")","v":""},{"$f":"IF(DataLog!$C2724=\"Log value\",DataLog!AG2724,\"\")","v":""},{"$f":"IF(DataLog!$C2724=\"Log value\",DataLog!AH2724,\"\")","v":""},{"$f":"IF(DataLog!$C2724=\"Log value\",DataLog!AI2724,\"\")","v":""},{"$f":"IF(DataLog!$C2724=\"Log value\",DataLog!AJ2724,\"\")","v":""},{"$f":"IF(DataLog!$C2724=\"Log value\",DataLog!AK2724,\"\")","v":""},{"$f":"IF(DataLog!$C2724=\"Log value\",DataLog!AL2724,\"\")","v":""},{"$f":"IF(DataLog!$C2724=\"Log value\",DataLog!AM2724,\"\")","v":""}]
[null,null,null,null,null,null,{"$f":"IF(DataLog!$C2725=\"Log value\",DataLog!D2725&\"_\"&TEXT(DataLog!B2725,\"åååå-mm-dd\"),\"\")","v":""},{"$f":"IF(DataLog!$C2725=\"Log value\",DataLog!E2725,\"\")","v":""},{"$f":"IF(DataLog!$C2725=\"Log value\",DataLog!F2725,\"\")","v":""},{"$f":"IF(DataLog!$C2725=\"Log value\",DataLog!G2725,\"\")","v":""},{"$f":"IF(DataLog!$C2725=\"Log value\",DataLog!H2725,\"\")","v":""},{"$f":"IF(DataLog!$C2725=\"Log value\",DataLog!I2725,\"\")","v":""},{"$f":"IF(DataLog!$C2725=\"Log value\",DataLog!J2725,\"\")","v":""},{"$f":"IF(DataLog!$C2725=\"Log value\",DataLog!K2725,\"\")","v":""},{"$f":"IF(DataLog!$C2725=\"Log value\",DataLog!L2725,\"\")","v":""},{"$f":"IF(DataLog!$C2725=\"Log value\",DataLog!M2725,\"\")","v":""},{"$f":"IF(DataLog!$C2725=\"Log value\",DataLog!N2725,\"\")","v":""},{"$f":"IF(DataLog!$C2725=\"Log value\",DataLog!O2725,\"\")","v":""},{"$f":"IF(DataLog!$C2725=\"Log value\",DataLog!P2725,\"\")","v":""},{"$f":"IF(DataLog!$C2725=\"Log value\",DataLog!Q2725,\"\")","v":""},{"$f":"IF(DataLog!$C2725=\"Log value\",DataLog!R2725,\"\")","v":""},{"$f":"IF(DataLog!$C2725=\"Log value\",DataLog!S2725,\"\")","v":""},{"$f":"IF(DataLog!$C2725=\"Log value\",DataLog!T2725,\"\")","v":""},{"$f":"IF(DataLog!$C2725=\"Log value\",DataLog!U2725,\"\")","v":""},{"$f":"IF(DataLog!$C2725=\"Log value\",DataLog!V2725,\"\")","v":""},{"$f":"IF(DataLog!$C2725=\"Log value\",DataLog!W2725,\"\")","v":""},{"$f":"IF(DataLog!$C2725=\"Log value\",DataLog!X2725,\"\")","v":""},{"$f":"IF(DataLog!$C2725=\"Log value\",DataLog!Y2725,\"\")","v":""},{"$f":"IF(DataLog!$C2725=\"Log value\",DataLog!Z2725,\"\")","v":""},{"$f":"IF(DataLog!$C2725=\"Log value\",DataLog!AA2725,\"\")","v":""},{"$f":"IF(DataLog!$C2725=\"Log value\",DataLog!AB2725,\"\")","v":""},{"$f":"IF(DataLog!$C2725=\"Log value\",DataLog!AC2725,\"\")","v":""},{"$f":"IF(DataLog!$C2725=\"Log value\",DataLog!AD2725,\"\")","v":""},{"$f":"IF(DataLog!$C2725=\"Log value\",DataLog!AE2725,\"\")","v":""},{"$f":"IF(DataLog!$C2725=\"Log value\",DataLog!AF2725,\"\")","v":""},{"$f":"IF(DataLog!$C2725=\"Log value\",DataLog!AG2725,\"\")","v":""},{"$f":"IF(DataLog!$C2725=\"Log value\",DataLog!AH2725,\"\")","v":""},{"$f":"IF(DataLog!$C2725=\"Log value\",DataLog!AI2725,\"\")","v":""},{"$f":"IF(DataLog!$C2725=\"Log value\",DataLog!AJ2725,\"\")","v":""},{"$f":"IF(DataLog!$C2725=\"Log value\",DataLog!AK2725,\"\")","v":""},{"$f":"IF(DataLog!$C2725=\"Log value\",DataLog!AL2725,\"\")","v":""},{"$f":"IF(DataLog!$C2725=\"Log value\",DataLog!AM2725,\"\")","v":""}]
[null,null,null,null,null,null,{"$f":"IF(DataLog!$C2728=\"Log value\",DataLog!D2728&\"_\"&TEXT(DataLog!B2728,\"åååå-mm-dd\"),\"\")","v":""},{"$f":"IF(DataLog!$C2728=\"Log value\",DataLog!E2728,\"\")","v":""},{"$f":"IF(DataLog!$C2728=\"Log value\",DataLog!F2728,\"\")","v":""},{"$f":"IF(DataLog!$C2728=\"Log value\",DataLog!G2728,\"\")","v":""},{"$f":"IF(DataLog!$C2728=\"Log value\",DataLog!H2728,\"\")","v":""},{"$f":"IF(DataLog!$C2728=\"Log value\",DataLog!I2728,\"\")","v":""},{"$f":"IF(DataLog!$C2728=\"Log value\",DataLog!J2728,\"\")","v":""},{"$f":"IF(DataLog!$C2728=\"Log value\",DataLog!K2728,\"\")","v":""},{"$f":"IF(DataLog!$C2728=\"Log value\",DataLog!L2728,\"\")","v":""},{"$f":"IF(DataLog!$C2728=\"Log value\",DataLog!M2728,\"\")","v":""},{"$f":"IF(DataLog!$C2728=\"Log value\",DataLog!N2728,\"\")","v":""},{"$f":"IF(DataLog!$C2728=\"Log value\",DataLog!O2728,\"\")","v":""},{"$f":"IF(DataLog!$C2728=\"Log value\",DataLog!P2728,\"\")","v":""},{"$f":"IF(DataLog!$C2728=\"Log value\",DataLog!Q2728,\"\")","v":""},{"$f":"IF(DataLog!$C2728=\"Log value\",DataLog!R2728,\"\")","v":""},{"$f":"IF(DataLog!$C2728=\"Log value\",DataLog!S2728,\"\")","v":""},{"$f":"IF(DataLog!$C2728=\"Log value\",DataLog!T2728,\"\")","v":""},{"$f":"IF(DataLog!$C2728=\"Log value\",DataLog!U2728,\"\")","v":""},{"$f":"IF(DataLog!$C2728=\"Log value\",DataLog!V2728,\"\")","v":""},{"$f":"IF(DataLog!$C2728=\"Log value\",DataLog!W2728,\"\")","v":""},{"$f":"IF(DataLog!$C2728=\"Log value\",DataLog!X2728,\"\")","v":""},{"$f":"IF(DataLog!$C2728=\"Log value\",DataLog!Y2728,\"\")","v":""},{"$f":"IF(DataLog!$C2728=\"Log value\",DataLog!Z2728,\"\")","v":""},{"$f":"IF(DataLog!$C2728=\"Log value\",DataLog!AA2728,\"\")","v":""},{"$f":"IF(DataLog!$C2728=\"Log value\",DataLog!AB2728,\"\")","v":""},{"$f":"IF(DataLog!$C2728=\"Log value\",DataLog!AC2728,\"\")","v":""},{"$f":"IF(DataLog!$C2728=\"Log value\",DataLog!AD2728,\"\")","v":""},{"$f":"IF(DataLog!$C2728=\"Log value\",DataLog!AE2728,\"\")","v":""},{"$f":"IF(DataLog!$C2728=\"Log value\",DataLog!AF2728,\"\")","v":""},{"$f":"IF(DataLog!$C2728=\"Log value\",DataLog!AG2728,\"\")","v":""},{"$f":"IF(DataLog!$C2728=\"Log value\",DataLog!AH2728,\"\")","v":""},{"$f":"IF(DataLog!$C2728=\"Log value\",DataLog!AI2728,\"\")","v":""},{"$f":"IF(DataLog!$C2728=\"Log value\",DataLog!AJ2728,\"\")","v":""},{"$f":"IF(DataLog!$C2728=\"Log value\",DataLog!AK2728,\"\")","v":""},{"$f":"IF(DataLog!$C2728=\"Log value\",DataLog!AL2728,\"\")","v":""},{"$f":"IF(DataLog!$C2728=\"Log value\",DataLog!AM2728,\"\")","v":""}]
[null,null,null,null,null,null,{"$f":"IF(DataLog!$C2730=\"Log value\",DataLog!D2730&\"_\"&TEXT(DataLog!B2730,\"åååå-mm-dd\"),\"\")","v":""},{"$f":"IF(DataLog!$C2730=\"Log value\",DataLog!E2730,\"\")","v":""},{"$f":"IF(DataLog!$C2730=\"Log value\",DataLog!F2730,\"\")","v":""},{"$f":"IF(DataLog!$C2730=\"Log value\",DataLog!G2730,\"\")","v":""},{"$f":"IF(DataLog!$C2730=\"Log value\",DataLog!H2730,\"\")","v":""},{"$f":"IF(DataLog!$C2730=\"Log value\",DataLog!I2730,\"\")","v":""},{"$f":"IF(DataLog!$C2730=\"Log value\",DataLog!J2730,\"\")","v":""},{"$f":"IF(DataLog!$C2730=\"Log value\",DataLog!K2730,\"\")","v":""},{"$f":"IF(DataLog!$C2730=\"Log value\",DataLog!L2730,\"\")","v":""},{"$f":"IF(DataLog!$C2730=\"Log value\",DataLog!M2730,\"\")","v":""},{"$f":"IF(DataLog!$C2730=\"Log value\",DataLog!N2730,\"\")","v":""},{"$f":"IF(DataLog!$C2730=\"Log value\",DataLog!O2730,\"\")","v":""},{"$f":"IF(DataLog!$C2730=\"Log value\",DataLog!P2730,\"\")","v":""},{"$f":"IF(DataLog!$C2730=\"Log value\",DataLog!Q2730,\"\")","v":""},{"$f":"IF(DataLog!$C2730=\"Log value\",DataLog!R2730,\"\")","v":""},{"$f":"IF(DataLog!$C2730=\"Log value\",DataLog!S2730,\"\")","v":""},{"$f":"IF(DataLog!$C2730=\"Log value\",DataLog!T2730,\"\")","v":""},{"$f":"IF(DataLog!$C2730=\"Log value\",DataLog!U2730,\"\")","v":""},{"$f":"IF(DataLog!$C2730=\"Log value\",DataLog!V2730,\"\")","v":""},{"$f":"IF(DataLog!$C2730=\"Log value\",DataLog!W2730,\"\")","v":""},{"$f":"IF(DataLog!$C2730=\"Log value\",DataLog!X2730,\"\")","v":""},{"$f":"IF(DataLog!$C2730=\"Log value\",DataLog!Y2730,\"\")","v":""},{"$f":"IF(DataLog!$C2730=\"Log value\",DataLog!Z2730,\"\")","v":""},{"$f":"IF(DataLog!$C2730=\"Log value\",DataLog!AA2730,\"\")","v":""},{"$f":"IF(DataLog!$C2730=\"Log value\",DataLog!AB2730,\"\")","v":""},{"$f":"IF(DataLog!$C2730=\"Log value\",DataLog!AC2730,\"\")","v":""},{"$f":"IF(DataLog!$C2730=\"Log value\",DataLog!AD2730,\"\")","v":""},{"$f":"IF(DataLog!$C2730=\"Log value\",DataLog!AE2730,\"\")","v":""},{"$f":"IF(DataLog!$C2730=\"Log value\",DataLog!AF2730,\"\")","v":""},{"$f":"IF(DataLog!$C2730=\"Log value\",DataLog!AG2730,\"\")","v":""},{"$f":"IF(DataLog!$C2730=\"Log value\",DataLog!AH2730,\"\")","v":""},{"$f":"IF(DataLog!$C2730=\"Log value\",DataLog!AI2730,\"\")","v":""},{"$f":"IF(DataLog!$C2730=\"Log value\",DataLog!AJ2730,\"\")","v":""},{"$f":"IF(DataLog!$C2730=\"Log value\",DataLog!AK2730,\"\")","v":""},{"$f":"IF(DataLog!$C2730=\"Log value\",DataLog!AL2730,\"\")","v":""},{"$f":"IF(DataLog!$C2730=\"Log value\",DataLog!AM2730,\"\")","v":""}]
[null,null,null,null,null,null,{"$f":"IF(DataLog!$C2733=\"Log value\",DataLog!D2733&\"_\"&TEXT(DataLog!B2733,\"åååå-mm-dd\"),\"\")","v":""},{"$f":"IF(DataLog!$C2733=\"Log value\",DataLog!E2733,\"\")","v":""},{"$f":"IF(DataLog!$C2733=\"Log value\",DataLog!F2733,\"\")","v":""},{"$f":"IF(DataLog!$C2733=\"Log value\",DataLog!G2733,\"\")","v":""},{"$f":"IF(DataLog!$C2733=\"Log value\",DataLog!H2733,\"\")","v":""},{"$f":"IF(DataLog!$C2733=\"Log value\",DataLog!I2733,\"\")","v":""},{"$f":"IF(DataLog!$C2733=\"Log value\",DataLog!J2733,\"\")","v":""},{"$f":"IF(DataLog!$C2733=\"Log value\",DataLog!K2733,\"\")","v":""},{"$f":"IF(DataLog!$C2733=\"Log value\",DataLog!L2733,\"\")","v":""},{"$f":"IF(DataLog!$C2733=\"Log value\",DataLog!M2733,\"\")","v":""},{"$f":"IF(DataLog!$C2733=\"Log value\",DataLog!N2733,\"\")","v":""},{"$f":"IF(DataLog!$C2733=\"Log value\",DataLog!O2733,\"\")","v":""},{"$f":"IF(DataLog!$C2733=\"Log value\",DataLog!P2733,\"\")","v":""},{"$f":"IF(DataLog!$C2733=\"Log value\",DataLog!Q2733,\"\")","v":""},{"$f":"IF(DataLog!$C2733=\"Log value\",DataLog!R2733,\"\")","v":""},{"$f":"IF(DataLog!$C2733=\"Log value\",DataLog!S2733,\"\")","v":""},{"$f":"IF(DataLog!$C2733=\"Log value\",DataLog!T2733,\"\")","v":""},{"$f":"IF(DataLog!$C2733=\"Log value\",DataLog!U2733,\"\")","v":""},{"$f":"IF(DataLog!$C2733=\"Log value\",DataLog!V2733,\"\")","v":""},{"$f":"IF(DataLog!$C2733=\"Log value\",DataLog!W2733,\"\")","v":""},{"$f":"IF(DataLog!$C2733=\"Log value\",DataLog!X2733,\"\")","v":""},{"$f":"IF(DataLog!$C2733=\"Log value\",DataLog!Y2733,\"\")","v":""},{"$f":"IF(DataLog!$C2733=\"Log value\",DataLog!Z2733,\"\")","v":""},{"$f":"IF(DataLog!$C2733=\"Log value\",DataLog!AA2733,\"\")","v":""},{"$f":"IF(DataLog!$C2733=\"Log value\",DataLog!AB2733,\"\")","v":""},{"$f":"IF(DataLog!$C2733=\"Log value\",DataLog!AC2733,\"\")","v":""},{"$f":"IF(DataLog!$C2733=\"Log value\",DataLog!AD2733,\"\")","v":""},{"$f":"IF(DataLog!$C2733=\"Log value\",DataLog!AE2733,\"\")","v":""},{"$f":"IF(DataLog!$C2733=\"Log value\",DataLog!AF2733,\"\")","v":""},{"$f":"IF(DataLog!$C2733=\"Log value\",DataLog!AG2733,\"\")","v":""},{"$f":"IF(DataLog!$C2733=\"Log value\",DataLog!AH2733,\"\")","v":""},{"$f":"IF(DataLog!$C2733=\"Log value\",DataLog!AI2733,\"\")","v":""},{"$f":"IF(DataLog!$C2733=\"Log value\",DataLog!AJ2733,\"\")","v":""},{"$f":"IF(DataLog!$C2733=\"Log value\",DataLog!AK2733,\"\")","v":""},{"$f":"IF(DataLog!$C2733=\"Log value\",DataLog!AL2733,\"\")","v":""},{"$f":"IF(DataLog!$C2733=\"Log value\",DataLog!AM2733,\"\")","v":""}]
[null,null,null,null,null,null,{"$f":"IF(DataLog!$C2734=\"Log value\",DataLog!D2734&\"_\"&TEXT(DataLog!B2734,\"åååå-mm-dd\"),\"\")","v":""},{"$f":"IF(DataLog!$C2734=\"Log value\",DataLog!E2734,\"\")","v":""},{"$f":"IF(DataLog!$C2734=\"Log value\",DataLog!F2734,\"\")","v":""},{"$f":"IF(DataLog!$C2734=\"Log value\",DataLog!G2734,\"\")","v":""},{"$f":"IF(DataLog!$C2734=\"Log value\",DataLog!H2734,\"\")","v":""},{"$f":"IF(DataLog!$C2734=\"Log value\",DataLog!I2734,\"\")","v":""},{"$f":"IF(DataLog!$C2734=\"Log value\",DataLog!J2734,\"\")","v":""},{"$f":"IF(DataLog!$C2734=\"Log value\",DataLog!K2734,\"\")","v":""},{"$f":"IF(DataLog!$C2734=\"Log value\",DataLog!L2734,\"\")","v":""},{"$f":"IF(DataLog!$C2734=\"Log value\",DataLog!M2734,\"\")","v":""},{"$f":"IF(DataLog!$C2734=\"Log value\",DataLog!N2734,\"\")","v":""},{"$f":"IF(DataLog!$C2734=\"Log value\",DataLog!O2734,\"\")","v":""},{"$f":"IF(DataLog!$C2734=\"Log value\",DataLog!P2734,\"\")","v":""},{"$f":"IF(DataLog!$C2734=\"Log value\",DataLog!Q2734,\"\")","v":""},{"$f":"IF(DataLog!$C2734=\"Log value\",DataLog!R2734,\"\")","v":""},{"$f":"IF(DataLog!$C2734=\"Log value\",DataLog!S2734,\"\")","v":""},{"$f":"IF(DataLog!$C2734=\"Log value\",DataLog!T2734,\"\")","v":""},{"$f":"IF(DataLog!$C2734=\"Log value\",DataLog!U2734,\"\")","v":""},{"$f":"IF(DataLog!$C2734=\"Log value\",DataLog!V2734,\"\")","v":""},{"$f":"IF(DataLog!$C2734=\"Log value\",DataLog!W2734,\"\")","v":""},{"$f":"IF(DataLog!$C2734=\"Log value\",DataLog!X2734,\"\")","v":""},{"$f":"IF(DataLog!$C2734=\"Log value\",DataLog!Y2734,\"\")","v":""},{"$f":"IF(DataLog!$C2734=\"Log value\",DataLog!Z2734,\"\")","v":""},{"$f":"IF(DataLog!$C2734=\"Log value\",DataLog!AA2734,\"\")","v":""},{"$f":"IF(DataLog!$C2734=\"Log value\",DataLog!AB2734,\"\")","v":""},{"$f":"IF(DataLog!$C2734=\"Log value\",DataLog!AC2734,\"\")","v":""},{"$f":"IF(DataLog!$C2734=\"Log value\",DataLog!AD2734,\"\")","v":""},{"$f":"IF(DataLog!$C2734=\"Log value\",DataLog!AE2734,\"\")","v":""},{"$f":"IF(DataLog!$C2734=\"Log value\",DataLog!AF2734,\"\")","v":""},{"$f":"IF(DataLog!$C2734=\"Log value\",DataLog!AG2734,\"\")","v":""},{"$f":"IF(DataLog!$C2734=\"Log value\",DataLog!AH2734,\"\")","v":""},{"$f":"IF(DataLog!$C2734=\"Log value\",DataLog!AI2734,\"\")","v":""},{"$f":"IF(DataLog!$C2734=\"Log value\",DataLog!AJ2734,\"\")","v":""},{"$f":"IF(DataLog!$C2734=\"Log value\",DataLog!AK2734,\"\")","v":""},{"$f":"IF(DataLog!$C2734=\"Log value\",DataLog!AL2734,\"\")","v":""},{"$f":"IF(DataLog!$C2734=\"Log value\",DataLog!AM2734,\"\")","v":""}]
[null,null,null,null,null,null,{"$f":"IF(DataLog!$C2737=\"Log value\",DataLog!D2737&\"_\"&TEXT(DataLog!B2737,\"åååå-mm-dd\"),\"\")","v":""},{"$f":"IF(DataLog!$C2737=\"Log value\",DataLog!E2737,\"\")","v":""},{"$f":"IF(DataLog!$C2737=\"Log value\",DataLog!F2737,\"\")","v":""},{"$f":"IF(DataLog!$C2737=\"Log value\",DataLog!G2737,\"\")","v":""},{"$f":"IF(DataLog!$C2737=\"Log value\",DataLog!H2737,\"\")","v":""},{"$f":"IF(DataLog!$C2737=\"Log value\",DataLog!I2737,\"\")","v":""},{"$f":"IF(DataLog!$C2737=\"Log value\",DataLog!J2737,\"\")","v":""},{"$f":"IF(DataLog!$C2737=\"Log value\",DataLog!K2737,\"\")","v":""},{"$f":"IF(DataLog!$C2737=\"Log value\",DataLog!L2737,\"\")","v":""},{"$f":"IF(DataLog!$C2737=\"Log value\",DataLog!M2737,\"\")","v":""},{"$f":"IF(DataLog!$C2737=\"Log value\",DataLog!N2737,\"\")","v":""},{"$f":"IF(DataLog!$C2737=\"Log value\",DataLog!O2737,\"\")","v":""},{"$f":"IF(DataLog!$C2737=\"Log value\",DataLog!P2737,\"\")","v":""},{"$f":"IF(DataLog!$C2737=\"Log value\",DataLog!Q2737,\"\")","v":""},{"$f":"IF(DataLog!$C2737=\"Log value\",DataLog!R2737,\"\")","v":""},{"$f":"IF(DataLog!$C2737=\"Log value\",DataLog!S2737,\"\")","v":""},{"$f":"IF(DataLog!$C2737=\"Log value\",DataLog!T2737,\"\")","v":""},{"$f":"IF(DataLog!$C2737=\"Log value\",DataLog!U2737,\"\")","v":""},{"$f":"IF(DataLog!$C2737=\"Log value\",DataLog!V2737,\"\")","v":""},{"$f":"IF(DataLog!$C2737=\"Log value\",DataLog!W2737,\"\")","v":""},{"$f":"IF(DataLog!$C2737=\"Log value\",DataLog!X2737,\"\")","v":""},{"$f":"IF(DataLog!$C2737=\"Log value\",DataLog!Y2737,\"\")","v":""},{"$f":"IF(DataLog!$C2737=\"Log value\",DataLog!Z2737,\"\")","v":""},{"$f":"IF(DataLog!$C2737=\"Log value\",DataLog!AA2737,\"\")","v":""},{"$f":"IF(DataLog!$C2737=\"Log value\",DataLog!AB2737,\"\")","v":""},{"$f":"IF(DataLog!$C2737=\"Log value\",DataLog!AC2737,\"\")","v":""},{"$f":"IF(DataLog!$C2737=\"Log value\",DataLog!AD2737,\"\")","v":""},{"$f":"IF(DataLog!$C2737=\"Log value\",DataLog!AE2737,\"\")","v":""},{"$f":"IF(DataLog!$C2737=\"Log value\",DataLog!AF2737,\"\")","v":""},{"$f":"IF(DataLog!$C2737=\"Log value\",DataLog!AG2737,\"\")","v":""},{"$f":"IF(DataLog!$C2737=\"Log value\",DataLog!AH2737,\"\")","v":""},{"$f":"IF(DataLog!$C2737=\"Log value\",DataLog!AI2737,\"\")","v":""},{"$f":"IF(DataLog!$C2737=\"Log value\",DataLog!AJ2737,\"\")","v":""},{"$f":"IF(DataLog!$C2737=\"Log value\",DataLog!AK2737,\"\")","v":""},{"$f":"IF(DataLog!$C2737=\"Log value\",DataLog!AL2737,\"\")","v":""},{"$f":"IF(DataLog!$C2737=\"Log value\",DataLog!AM2737,\"\")","v":""}]
[null,null,null,null,null,null,{"$f":"IF(DataLog!$C2738=\"Log value\",DataLog!D2738&\"_\"&TEXT(DataLog!B2738,\"åååå-mm-dd\"),\"\")","v":""},{"$f":"IF(DataLog!$C2738=\"Log value\",DataLog!E2738,\"\")","v":""},{"$f":"IF(DataLog!$C2738=\"Log value\",DataLog!F2738,\"\")","v":""},{"$f":"IF(DataLog!$C2738=\"Log value\",DataLog!G2738,\"\")","v":""},{"$f":"IF(DataLog!$C2738=\"Log value\",DataLog!H2738,\"\")","v":""},{"$f":"IF(DataLog!$C2738=\"Log value\",DataLog!I2738,\"\")","v":""},{"$f":"IF(DataLog!$C2738=\"Log value\",DataLog!J2738,\"\")","v":""},{"$f":"IF(DataLog!$C2738=\"Log value\",DataLog!K2738,\"\")","v":""},{"$f":"IF(DataLog!$C2738=\"Log value\",DataLog!L2738,\"\")","v":""},{"$f":"IF(DataLog!$C2738=\"Log value\",DataLog!M2738,\"\")","v":""},{"$f":"IF(DataLog!$C2738=\"Log value\",DataLog!N2738,\"\")","v":""},{"$f":"IF(DataLog!$C2738=\"Log value\",DataLog!O2738,\"\")","v":""},{"$f":"IF(DataLog!$C2738=\"Log value\",DataLog!P2738,\"\")","v":""},{"$f":"IF(DataLog!$C2738=\"Log value\",DataLog!Q2738,\"\")","v":""},{"$f":"IF(DataLog!$C2738=\"Log value\",DataLog!R2738,\"\")","v":""},{"$f":"IF(DataLog!$C2738=\"Log value\",DataLog!S2738,\"\")","v":""},{"$f":"IF(DataLog!$C2738=\"Log value\",DataLog!T2738,\"\")","v":""},{"$f":"IF(DataLog!$C2738=\"Log value\",DataLog!U2738,\"\")","v":""},{"$f":"IF(DataLog!$C2738=\"Log value\",DataLog!V2738,\"\")","v":""},{"$f":"IF(DataLog!$C2738=\"Log value\",DataLog!W2738,\"\")","v":""},{"$f":"IF(DataLog!$C2738=\"Log value\",DataLog!X2738,\"\")","v":""},{"$f":"IF(DataLog!$C2738=\"Log value\",DataLog!Y2738,\"\")","v":""},{"$f":"IF(DataLog!$C2738=\"Log value\",DataLog!Z2738,\"\")","v":""},{"$f":"IF(DataLog!$C2738=\"Log value\",DataLog!AA2738,\"\")","v":""},{"$f":"IF(DataLog!$C2738=\"Log value\",DataLog!AB2738,\"\")","v":""},{"$f":"IF(DataLog!$C2738=\"Log value\",DataLog!AC2738,\"\")","v":""},{"$f":"IF(DataLog!$C2738=\"Log value\",DataLog!AD2738,\"\")","v":""},{"$f":"IF(DataLog!$C2738=\"Log value\",DataLog!AE2738,\"\")","v":""},{"$f":"IF(DataLog!$C2738=\"Log value\",DataLog!AF2738,\"\")","v":""},{"$f":"IF(DataLog!$C2738=\"Log value\",DataLog!AG2738,\"\")","v":""},{"$f":"IF(DataLog!$C2738=\"Log value\",DataLog!AH2738,\"\")","v":""},{"$f":"IF(DataLog!$C2738=\"Log value\",DataLog!AI2738,\"\")","v":""},{"$f":"IF(DataLog!$C2738=\"Log value\",DataLog!AJ2738,\"\")","v":""},{"$f":"IF(DataLog!$C2738=\"Log value\",DataLog!AK2738,\"\")","v":""},{"$f":"IF(DataLog!$C2738=\"Log value\",DataLog!AL2738,\"\")","v":""},{"$f":"IF(DataLog!$C2738=\"Log value\",DataLog!AM2738,\"\")","v":""}]
[null,null,null,null,null,null,{"$f":"IF(DataLog!$C2742=\"Log value\",DataLog!D2742&\"_\"&TEXT(DataLog!B2742,\"åååå-mm-dd\"),\"\")","v":""},{"$f":"IF(DataLog!$C2742=\"Log value\",DataLog!E2742,\"\")","v":""},{"$f":"IF(DataLog!$C2742=\"Log value\",DataLog!F2742,\"\")","v":""},{"$f":"IF(DataLog!$C2742=\"Log value\",DataLog!G2742,\"\")","v":""},{"$f":"IF(DataLog!$C2742=\"Log value\",DataLog!H2742,\"\")","v":""},{"$f":"IF(DataLog!$C2742=\"Log value\",DataLog!I2742,\"\")","v":""},{"$f":"IF(DataLog!$C2742=\"Log value\",DataLog!J2742,\"\")","v":""},{"$f":"IF(DataLog!$C2742=\"Log value\",DataLog!K2742,\"\")","v":""},{"$f":"IF(DataLog!$C2742=\"Log value\",DataLog!L2742,\"\")","v":""},{"$f":"IF(DataLog!$C2742=\"Log value\",DataLog!M2742,\"\")","v":""},{"$f":"IF(DataLog!$C2742=\"Log value\",DataLog!N2742,\"\")","v":""},{"$f":"IF(DataLog!$C2742=\"Log value\",DataLog!O2742,\"\")","v":""},{"$f":"IF(DataLog!$C2742=\"Log value\",DataLog!P2742,\"\")","v":""},{"$f":"IF(DataLog!$C2742=\"Log value\",DataLog!Q2742,\"\")","v":""},{"$f":"IF(DataLog!$C2742=\"Log value\",DataLog!R2742,\"\")","v":""},{"$f":"IF(DataLog!$C2742=\"Log value\",DataLog!S2742,\"\")","v":""},{"$f":"IF(DataLog!$C2742=\"Log value\",DataLog!T2742,\"\")","v":""},{"$f":"IF(DataLog!$C2742=\"Log value\",DataLog!U2742,\"\")","v":""},{"$f":"IF(DataLog!$C2742=\"Log value\",DataLog!V2742,\"\")","v":""},{"$f":"IF(DataLog!$C2742=\"Log value\",DataLog!W2742,\"\")","v":""},{"$f":"IF(DataLog!$C2742=\"Log value\",DataLog!X2742,\"\")","v":""},{"$f":"IF(DataLog!$C2742=\"Log value\",DataLog!Y2742,\"\")","v":""},{"$f":"IF(DataLog!$C2742=\"Log value\",DataLog!Z2742,\"\")","v":""},{"$f":"IF(DataLog!$C2742=\"Log value\",DataLog!AA2742,\"\")","v":""},{"$f":"IF(DataLog!$C2742=\"Log value\",DataLog!AB2742,\"\")","v":""},{"$f":"IF(DataLog!$C2742=\"Log value\",DataLog!AC2742,\"\")","v":""},{"$f":"IF(DataLog!$C2742=\"Log value\",DataLog!AD2742,\"\")","v":""},{"$f":"IF(DataLog!$C2742=\"Log value\",DataLog!AE2742,\"\")","v":""},{"$f":"IF(DataLog!$C2742=\"Log value\",DataLog!AF2742,\"\")","v":""},{"$f":"IF(DataLog!$C2742=\"Log value\",DataLog!AG2742,\"\")","v":""},{"$f":"IF(DataLog!$C2742=\"Log value\",DataLog!AH2742,\"\")","v":""},{"$f":"IF(DataLog!$C2742=\"Log value\",DataLog!AI2742,\"\")","v":""},{"$f":"IF(DataLog!$C2742=\"Log value\",DataLog!AJ2742,\"\")","v":""},{"$f":"IF(DataLog!$C2742=\"Log value\",DataLog!AK2742,\"\")","v":""},{"$f":"IF(DataLog!$C2742=\"Log value\",DataLog!AL2742,\"\")","v":""},{"$f":"IF(DataLog!$C2742=\"Log value\",DataLog!AM2742,\"\")","v":""}]
[null,null,null,null,null,null,{"$f":"IF(DataLog!$C2743=\"Log value\",DataLog!D2743&\"_\"&TEXT(DataLog!B2743,\"åååå-mm-dd\"),\"\")","v":""},{"$f":"IF(DataLog!$C2743=\"Log value\",DataLog!E2743,\"\")","v":""},{"$f":"IF(DataLog!$C2743=\"Log value\",DataLog!F2743,\"\")","v":""},{"$f":"IF(DataLog!$C2743=\"Log value\",DataLog!G2743,\"\")","v":""},{"$f":"IF(DataLog!$C2743=\"Log value\",DataLog!H2743,\"\")","v":""},{"$f":"IF(DataLog!$C2743=\"Log value\",DataLog!I2743,\"\")","v":""},{"$f":"IF(DataLog!$C2743=\"Log value\",DataLog!J2743,\"\")","v":""},{"$f":"IF(DataLog!$C2743=\"Log value\",DataLog!K2743,\"\")","v":""},{"$f":"IF(DataLog!$C2743=\"Log value\",DataLog!L2743,\"\")","v":""},{"$f":"IF(DataLog!$C2743=\"Log value\",DataLog!M2743,\"\")","v":""},{"$f":"IF(DataLog!$C2743=\"Log value\",DataLog!N2743,\"\")","v":""},{"$f":"IF(DataLog!$C2743=\"Log value\",DataLog!O2743,\"\")","v":""},{"$f":"IF(DataLog!$C2743=\"Log value\",DataLog!P2743,\"\")","v":""},{"$f":"IF(DataLog!$C2743=\"Log value\",DataLog!Q2743,\"\")","v":""},{"$f":"IF(DataLog!$C2743=\"Log value\",DataLog!R2743,\"\")","v":""},{"$f":"IF(DataLog!$C2743=\"Log value\",DataLog!S2743,\"\")","v":""},{"$f":"IF(DataLog!$C2743=\"Log value\",DataLog!T2743,\"\")","v":""},{"$f":"IF(DataLog!$C2743=\"Log value\",DataLog!U2743,\"\")","v":""},{"$f":"IF(DataLog!$C2743=\"Log value\",DataLog!V2743,\"\")","v":""},{"$f":"IF(DataLog!$C2743=\"Log value\",DataLog!W2743,\"\")","v":""},{"$f":"IF(DataLog!$C2743=\"Log value\",DataLog!X2743,\"\")","v":""},{"$f":"IF(DataLog!$C2743=\"Log value\",DataLog!Y2743,\"\")","v":""},{"$f":"IF(DataLog!$C2743=\"Log value\",DataLog!Z2743,\"\")","v":""},{"$f":"IF(DataLog!$C2743=\"Log value\",DataLog!AA2743,\"\")","v":""},{"$f":"IF(DataLog!$C2743=\"Log value\",DataLog!AB2743,\"\")","v":""},{"$f":"IF(DataLog!$C2743=\"Log value\",DataLog!AC2743,\"\")","v":""},{"$f":"IF(DataLog!$C2743=\"Log value\",DataLog!AD2743,\"\")","v":""},{"$f":"IF(DataLog!$C2743=\"Log value\",DataLog!AE2743,\"\")","v":""},{"$f":"IF(DataLog!$C2743=\"Log value\",DataLog!AF2743,\"\")","v":""},{"$f":"IF(DataLog!$C2743=\"Log value\",DataLog!AG2743,\"\")","v":""},{"$f":"IF(DataLog!$C2743=\"Log value\",DataLog!AH2743,\"\")","v":""},{"$f":"IF(DataLog!$C2743=\"Log value\",DataLog!AI2743,\"\")","v":""},{"$f":"IF(DataLog!$C2743=\"Log value\",DataLog!AJ2743,\"\")","v":""},{"$f":"IF(DataLog!$C2743=\"Log value\",DataLog!AK2743,\"\")","v":""},{"$f":"IF(DataLog!$C2743=\"Log value\",DataLog!AL2743,\"\")","v":""},{"$f":"IF(DataLog!$C2743=\"Log value\",DataLog!AM2743,\"\")","v":""}]
[null,null,null,null,null,null,{"$f":"IF(DataLog!$C2746=\"Log value\",DataLog!D2746&\"_\"&TEXT(DataLog!B2746,\"åååå-mm-dd\"),\"\")","v":""},{"$f":"IF(DataLog!$C2746=\"Log value\",DataLog!E2746,\"\")","v":""},{"$f":"IF(DataLog!$C2746=\"Log value\",DataLog!F2746,\"\")","v":""},{"$f":"IF(DataLog!$C2746=\"Log value\",DataLog!G2746,\"\")","v":""},{"$f":"IF(DataLog!$C2746=\"Log value\",DataLog!H2746,\"\")","v":""},{"$f":"IF(DataLog!$C2746=\"Log value\",DataLog!I2746,\"\")","v":""},{"$f":"IF(DataLog!$C2746=\"Log value\",DataLog!J2746,\"\")","v":""},{"$f":"IF(DataLog!$C2746=\"Log value\",DataLog!K2746,\"\")","v":""},{"$f":"IF(DataLog!$C2746=\"Log value\",DataLog!L2746,\"\")","v":""},{"$f":"IF(DataLog!$C2746=\"Log value\",DataLog!M2746,\"\")","v":""},{"$f":"IF(DataLog!$C2746=\"Log value\",DataLog!N2746,\"\")","v":""},{"$f":"IF(DataLog!$C2746=\"Log value\",DataLog!O2746,\"\")","v":""},{"$f":"IF(DataLog!$C2746=\"Log value\",DataLog!P2746,\"\")","v":""},{"$f":"IF(DataLog!$C2746=\"Log value\",DataLog!Q2746,\"\")","v":""},{"$f":"IF(DataLog!$C2746=\"Log value\",DataLog!R2746,\"\")","v":""},{"$f":"IF(DataLog!$C2746=\"Log value\",DataLog!S2746,\"\")","v":""},{"$f":"IF(DataLog!$C2746=\"Log value\",DataLog!T2746,\"\")","v":""},{"$f":"IF(DataLog!$C2746=\"Log value\",DataLog!U2746,\"\")","v":""},{"$f":"IF(DataLog!$C2746=\"Log value\",DataLog!V2746,\"\")","v":""},{"$f":"IF(DataLog!$C2746=\"Log value\",DataLog!W2746,\"\")","v":""},{"$f":"IF(DataLog!$C2746=\"Log value\",DataLog!X2746,\"\")","v":""},{"$f":"IF(DataLog!$C2746=\"Log value\",DataLog!Y2746,\"\")","v":""},{"$f":"IF(DataLog!$C2746=\"Log value\",DataLog!Z2746,\"\")","v":""},{"$f":"IF(DataLog!$C2746=\"Log value\",DataLog!AA2746,\"\")","v":""},{"$f":"IF(DataLog!$C2746=\"Log value\",DataLog!AB2746,\"\")","v":""},{"$f":"IF(DataLog!$C2746=\"Log value\",DataLog!AC2746,\"\")","v":""},{"$f":"IF(DataLog!$C2746=\"Log value\",DataLog!AD2746,\"\")","v":""},{"$f":"IF(DataLog!$C2746=\"Log value\",DataLog!AE2746,\"\")","v":""},{"$f":"IF(DataLog!$C2746=\"Log value\",DataLog!AF2746,\"\")","v":""},{"$f":"IF(DataLog!$C2746=\"Log value\",DataLog!AG2746,\"\")","v":""},{"$f":"IF(DataLog!$C2746=\"Log value\",DataLog!AH2746,\"\")","v":""},{"$f":"IF(DataLog!$C2746=\"Log value\",DataLog!AI2746,\"\")","v":""},{"$f":"IF(DataLog!$C2746=\"Log value\",DataLog!AJ2746,\"\")","v":""},{"$f":"IF(DataLog!$C2746=\"Log value\",DataLog!AK2746,\"\")","v":""},{"$f":"IF(DataLog!$C2746=\"Log value\",DataLog!AL2746,\"\")","v":""},{"$f":"IF(DataLog!$C2746=\"Log value\",DataLog!AM2746,\"\")","v":""}]
[null,null,null,null,null,null,{"$f":"IF(DataLog!$C2748=\"Log value\",DataLog!D2748&\"_\"&TEXT(DataLog!B2748,\"åååå-mm-dd\"),\"\")","v":""},{"$f":"IF(DataLog!$C2748=\"Log value\",DataLog!E2748,\"\")","v":""},{"$f":"IF(DataLog!$C2748=\"Log value\",DataLog!F2748,\"\")","v":""},{"$f":"IF(DataLog!$C2748=\"Log value\",DataLog!G2748,\"\")","v":""},{"$f":"IF(DataLog!$C2748=\"Log value\",DataLog!H2748,\"\")","v":""},{"$f":"IF(DataLog!$C2748=\"Log value\",DataLog!I2748,\"\")","v":""},{"$f":"IF(DataLog!$C2748=\"Log value\",DataLog!J2748,\"\")","v":""},{"$f":"IF(DataLog!$C2748=\"Log value\",DataLog!K2748,\"\")","v":""},{"$f":"IF(DataLog!$C2748=\"Log value\",DataLog!L2748,\"\")","v":""},{"$f":"IF(DataLog!$C2748=\"Log value\",DataLog!M2748,\"\")","v":""},{"$f":"IF(DataLog!$C2748=\"Log value\",DataLog!N2748,\"\")","v":""},{"$f":"IF(DataLog!$C2748=\"Log value\",DataLog!O2748,\"\")","v":""},{"$f":"IF(DataLog!$C2748=\"Log value\",DataLog!P2748,\"\")","v":""},{"$f":"IF(DataLog!$C2748=\"Log value\",DataLog!Q2748,\"\")","v":""},{"$f":"IF(DataLog!$C2748=\"Log value\",DataLog!R2748,\"\")","v":""},{"$f":"IF(DataLog!$C2748=\"Log value\",DataLog!S2748,\"\")","v":""},{"$f":"IF(DataLog!$C2748=\"Log value\",DataLog!T2748,\"\")","v":""},{"$f":"IF(DataLog!$C2748=\"Log value\",DataLog!U2748,\"\")","v":""},{"$f":"IF(DataLog!$C2748=\"Log value\",DataLog!V2748,\"\")","v":""},{"$f":"IF(DataLog!$C2748=\"Log value\",DataLog!W2748,\"\")","v":""},{"$f":"IF(DataLog!$C2748=\"Log value\",DataLog!X2748,\"\")","v":""},{"$f":"IF(DataLog!$C2748=\"Log value\",DataLog!Y2748,\"\")","v":""},{"$f":"IF(DataLog!$C2748=\"Log value\",DataLog!Z2748,\"\")","v":""},{"$f":"IF(DataLog!$C2748=\"Log value\",DataLog!AA2748,\"\")","v":""},{"$f":"IF(DataLog!$C2748=\"Log value\",DataLog!AB2748,\"\")","v":""},{"$f":"IF(DataLog!$C2748=\"Log value\",DataLog!AC2748,\"\")","v":""},{"$f":"IF(DataLog!$C2748=\"Log value\",DataLog!AD2748,\"\")","v":""},{"$f":"IF(DataLog!$C2748=\"Log value\",DataLog!AE2748,\"\")","v":""},{"$f":"IF(DataLog!$C2748=\"Log value\",DataLog!AF2748,\"\")","v":""},{"$f":"IF(DataLog!$C2748=\"Log value\",DataLog!AG2748,\"\")","v":""},{"$f":"IF(DataLog!$C2748=\"Log value\",DataLog!AH2748,\"\")","v":""},{"$f":"IF(DataLog!$C2748=\"Log value\",DataLog!AI2748,\"\")","v":""},{"$f":"IF(DataLog!$C2748=\"Log value\",DataLog!AJ2748,\"\")","v":""},{"$f":"IF(DataLog!$C2748=\"Log value\",DataLog!AK2748,\"\")","v":""},{"$f":"IF(DataLog!$C2748=\"Log value\",DataLog!AL2748,\"\")","v":""},{"$f":"IF(DataLog!$C2748=\"Log value\",DataLog!AM2748,\"\")","v":""}]
[null,null,null,null,null,null,{"$f":"IF(DataLog!$C2751=\"Log value\",DataLog!D2751&\"_\"&TEXT(DataLog!B2751,\"åååå-mm-dd\"),\"\")","v":""},{"$f":"IF(DataLog!$C2751=\"Log value\",DataLog!E2751,\"\")","v":""},{"$f":"IF(DataLog!$C2751=\"Log value\",DataLog!F2751,\"\")","v":""},{"$f":"IF(DataLog!$C2751=\"Log value\",DataLog!G2751,\"\")","v":""},{"$f":"IF(DataLog!$C2751=\"Log value\",DataLog!H2751,\"\")","v":""},{"$f":"IF(DataLog!$C2751=\"Log value\",DataLog!I2751,\"\")","v":""},{"$f":"IF(DataLog!$C2751=\"Log value\",DataLog!J2751,\"\")","v":""},{"$f":"IF(DataLog!$C2751=\"Log value\",DataLog!K2751,\"\")","v":""},{"$f":"IF(DataLog!$C2751=\"Log value\",DataLog!L2751,\"\")","v":""},{"$f":"IF(DataLog!$C2751=\"Log value\",DataLog!M2751,\"\")","v":""},{"$f":"IF(DataLog!$C2751=\"Log value\",DataLog!N2751,\"\")","v":""},{"$f":"IF(DataLog!$C2751=\"Log value\",DataLog!O2751,\"\")","v":""},{"$f":"IF(DataLog!$C2751=\"Log value\",DataLog!P2751,\"\")","v":""},{"$f":"IF(DataLog!$C2751=\"Log value\",DataLog!Q2751,\"\")","v":""},{"$f":"IF(DataLog!$C2751=\"Log value\",DataLog!R2751,\"\")","v":""},{"$f":"IF(DataLog!$C2751=\"Log value\",DataLog!S2751,\"\")","v":""},{"$f":"IF(DataLog!$C2751=\"Log value\",DataLog!T2751,\"\")","v":""},{"$f":"IF(DataLog!$C2751=\"Log value\",DataLog!U2751,\"\")","v":""},{"$f":"IF(DataLog!$C2751=\"Log value\",DataLog!V2751,\"\")","v":""},{"$f":"IF(DataLog!$C2751=\"Log value\",DataLog!W2751,\"\")","v":""},{"$f":"IF(DataLog!$C2751=\"Log value\",DataLog!X2751,\"\")","v":""},{"$f":"IF(DataLog!$C2751=\"Log value\",DataLog!Y2751,\"\")","v":""},{"$f":"IF(DataLog!$C2751=\"Log value\",DataLog!Z2751,\"\")","v":""},{"$f":"IF(DataLog!$C2751=\"Log value\",DataLog!AA2751,\"\")","v":""},{"$f":"IF(DataLog!$C2751=\"Log value\",DataLog!AB2751,\"\")","v":""},{"$f":"IF(DataLog!$C2751=\"Log value\",DataLog!AC2751,\"\")","v":""},{"$f":"IF(DataLog!$C2751=\"Log value\",DataLog!AD2751,\"\")","v":""},{"$f":"IF(DataLog!$C2751=\"Log value\",DataLog!AE2751,\"\")","v":""},{"$f":"IF(DataLog!$C2751=\"Log value\",DataLog!AF2751,\"\")","v":""},{"$f":"IF(DataLog!$C2751=\"Log value\",DataLog!AG2751,\"\")","v":""},{"$f":"IF(DataLog!$C2751=\"Log value\",DataLog!AH2751,\"\")","v":""},{"$f":"IF(DataLog!$C2751=\"Log value\",DataLog!AI2751,\"\")","v":""},{"$f":"IF(DataLog!$C2751=\"Log value\",DataLog!AJ2751,\"\")","v":""},{"$f":"IF(DataLog!$C2751=\"Log value\",DataLog!AK2751,\"\")","v":""},{"$f":"IF(DataLog!$C2751=\"Log value\",DataLog!AL2751,\"\")","v":""},{"$f":"IF(DataLog!$C2751=\"Log value\",DataLog!AM2751,\"\")","v":""}]
[null,null,null,null,null,null,{"$f":"IF(DataLog!$C2752=\"Log value\",DataLog!D2752&\"_\"&TEXT(DataLog!B2752,\"åååå-mm-dd\"),\"\")","v":""},{"$f":"IF(DataLog!$C2752=\"Log value\",DataLog!E2752,\"\")","v":""},{"$f":"IF(DataLog!$C2752=\"Log value\",DataLog!F2752,\"\")","v":""},{"$f":"IF(DataLog!$C2752=\"Log value\",DataLog!G2752,\"\")","v":""},{"$f":"IF(DataLog!$C2752=\"Log value\",DataLog!H2752,\"\")","v":""},{"$f":"IF(DataLog!$C2752=\"Log value\",DataLog!I2752,\"\")","v":""},{"$f":"IF(DataLog!$C2752=\"Log value\",DataLog!J2752,\"\")","v":""},{"$f":"IF(DataLog!$C2752=\"Log value\",DataLog!K2752,\"\")","v":""},{"$f":"IF(DataLog!$C2752=\"Log value\",DataLog!L2752,\"\")","v":""},{"$f":"IF(DataLog!$C2752=\"Log value\",DataLog!M2752,\"\")","v":""},{"$f":"IF(DataLog!$C2752=\"Log value\",DataLog!N2752,\"\")","v":""},{"$f":"IF(DataLog!$C2752=\"Log value\",DataLog!O2752,\"\")","v":""},{"$f":"IF(DataLog!$C2752=\"Log value\",DataLog!P2752,\"\")","v":""},{"$f":"IF(DataLog!$C2752=\"Log value\",DataLog!Q2752,\"\")","v":""},{"$f":"IF(DataLog!$C2752=\"Log value\",DataLog!R2752,\"\")","v":""},{"$f":"IF(DataLog!$C2752=\"Log value\",DataLog!S2752,\"\")","v":""},{"$f":"IF(DataLog!$C2752=\"Log value\",DataLog!T2752,\"\")","v":""},{"$f":"IF(DataLog!$C2752=\"Log value\",DataLog!U2752,\"\")","v":""},{"$f":"IF(DataLog!$C2752=\"Log value\",DataLog!V2752,\"\")","v":""},{"$f":"IF(DataLog!$C2752=\"Log value\",DataLog!W2752,\"\")","v":""},{"$f":"IF(DataLog!$C2752=\"Log value\",DataLog!X2752,\"\")","v":""},{"$f":"IF(DataLog!$C2752=\"Log value\",DataLog!Y2752,\"\")","v":""},{"$f":"IF(DataLog!$C2752=\"Log value\",DataLog!Z2752,\"\")","v":""},{"$f":"IF(DataLog!$C2752=\"Log value\",DataLog!AA2752,\"\")","v":""},{"$f":"IF(DataLog!$C2752=\"Log value\",DataLog!AB2752,\"\")","v":""},{"$f":"IF(DataLog!$C2752=\"Log value\",DataLog!AC2752,\"\")","v":""},{"$f":"IF(DataLog!$C2752=\"Log value\",DataLog!AD2752,\"\")","v":""},{"$f":"IF(DataLog!$C2752=\"Log value\",DataLog!AE2752,\"\")","v":""},{"$f":"IF(DataLog!$C2752=\"Log value\",DataLog!AF2752,\"\")","v":""},{"$f":"IF(DataLog!$C2752=\"Log value\",DataLog!AG2752,\"\")","v":""},{"$f":"IF(DataLog!$C2752=\"Log value\",DataLog!AH2752,\"\")","v":""},{"$f":"IF(DataLog!$C2752=\"Log value\",DataLog!AI2752,\"\")","v":""},{"$f":"IF(DataLog!$C2752=\"Log value\",DataLog!AJ2752,\"\")","v":""},{"$f":"IF(DataLog!$C2752=\"Log value\",DataLog!AK2752,\"\")","v":""},{"$f":"IF(DataLog!$C2752=\"Log value\",DataLog!AL2752,\"\")","v":""},{"$f":"IF(DataLog!$C2752=\"Log value\",DataLog!AM2752,\"\")","v":""}]
[null,null,null,null,null,null,{"$f":"IF(DataLog!$C2756=\"Log value\",DataLog!D2756&\"_\"&TEXT(DataLog!B2756,\"åååå-mm-dd\"),\"\")","v":""},{"$f":"IF(DataLog!$C2756=\"Log value\",DataLog!E2756,\"\")","v":""},{"$f":"IF(DataLog!$C2756=\"Log value\",DataLog!F2756,\"\")","v":""},{"$f":"IF(DataLog!$C2756=\"Log value\",DataLog!G2756,\"\")","v":""},{"$f":"IF(DataLog!$C2756=\"Log value\",DataLog!H2756,\"\")","v":""},{"$f":"IF(DataLog!$C2756=\"Log value\",DataLog!I2756,\"\")","v":""},{"$f":"IF(DataLog!$C2756=\"Log value\",DataLog!J2756,\"\")","v":""},{"$f":"IF(DataLog!$C2756=\"Log value\",DataLog!K2756,\"\")","v":""},{"$f":"IF(DataLog!$C2756=\"Log value\",DataLog!L2756,\"\")","v":""},{"$f":"IF(DataLog!$C2756=\"Log value\",DataLog!M2756,\"\")","v":""},{"$f":"IF(DataLog!$C2756=\"Log value\",DataLog!N2756,\"\")","v":""},{"$f":"IF(DataLog!$C2756=\"Log value\",DataLog!O2756,\"\")","v":""},{"$f":"IF(DataLog!$C2756=\"Log value\",DataLog!P2756,\"\")","v":""},{"$f":"IF(DataLog!$C2756=\"Log value\",DataLog!Q2756,\"\")","v":""},{"$f":"IF(DataLog!$C2756=\"Log value\",DataLog!R2756,\"\")","v":""},{"$f":"IF(DataLog!$C2756=\"Log value\",DataLog!S2756,\"\")","v":""},{"$f":"IF(DataLog!$C2756=\"Log value\",DataLog!T2756,\"\")","v":""},{"$f":"IF(DataLog!$C2756=\"Log value\",DataLog!U2756,\"\")","v":""},{"$f":"IF(DataLog!$C2756=\"Log value\",DataLog!V2756,\"\")","v":""},{"$f":"IF(DataLog!$C2756=\"Log value\",DataLog!W2756,\"\")","v":""},{"$f":"IF(DataLog!$C2756=\"Log value\",DataLog!X2756,\"\")","v":""},{"$f":"IF(DataLog!$C2756=\"Log value\",DataLog!Y2756,\"\")","v":""},{"$f":"IF(DataLog!$C2756=\"Log value\",DataLog!Z2756,\"\")","v":""},{"$f":"IF(DataLog!$C2756=\"Log value\",DataLog!AA2756,\"\")","v":""},{"$f":"IF(DataLog!$C2756=\"Log value\",DataLog!AB2756,\"\")","v":""},{"$f":"IF(DataLog!$C2756=\"Log value\",DataLog!AC2756,\"\")","v":""},{"$f":"IF(DataLog!$C2756=\"Log value\",DataLog!AD2756,\"\")","v":""},{"$f":"IF(DataLog!$C2756=\"Log value\",DataLog!AE2756,\"\")","v":""},{"$f":"IF(DataLog!$C2756=\"Log value\",DataLog!AF2756,\"\")","v":""},{"$f":"IF(DataLog!$C2756=\"Log value\",DataLog!AG2756,\"\")","v":""},{"$f":"IF(DataLog!$C2756=\"Log value\",DataLog!AH2756,\"\")","v":""},{"$f":"IF(DataLog!$C2756=\"Log value\",DataLog!AI2756,\"\")","v":""},{"$f":"IF(DataLog!$C2756=\"Log value\",DataLog!AJ2756,\"\")","v":""},{"$f":"IF(DataLog!$C2756=\"Log value\",DataLog!AK2756,\"\")","v":""},{"$f":"IF(DataLog!$C2756=\"Log value\",DataLog!AL2756,\"\")","v":""},{"$f":"IF(DataLog!$C2756=\"Log value\",DataLog!AM2756,\"\")","v":""}]
[null,null,null,null,null,null,{"$f":"IF(DataLog!$C2757=\"Log value\",DataLog!D2757&\"_\"&TEXT(DataLog!B2757,\"åååå-mm-dd\"),\"\")","v":""},{"$f":"IF(DataLog!$C2757=\"Log value\",DataLog!E2757,\"\")","v":""},{"$f":"IF(DataLog!$C2757=\"Log value\",DataLog!F2757,\"\")","v":""},{"$f":"IF(DataLog!$C2757=\"Log value\",DataLog!G2757,\"\")","v":""},{"$f":"IF(DataLog!$C2757=\"Log value\",DataLog!H2757,\"\")","v":""},{"$f":"IF(DataLog!$C2757=\"Log value\",DataLog!I2757,\"\")","v":""},{"$f":"IF(DataLog!$C2757=\"Log value\",DataLog!J2757,\"\")","v":""},{"$f":"IF(DataLog!$C2757=\"Log value\",DataLog!K2757,\"\")","v":""},{"$f":"IF(DataLog!$C2757=\"Log value\",DataLog!L2757,\"\")","v":""},{"$f":"IF(DataLog!$C2757=\"Log value\",DataLog!M2757,\"\")","v":""},{"$f":"IF(DataLog!$C2757=\"Log value\",DataLog!N2757,\"\")","v":""},{"$f":"IF(DataLog!$C2757=\"Log value\",DataLog!O2757,\"\")","v":""},{"$f":"IF(DataLog!$C2757=\"Log value\",DataLog!P2757,\"\")","v":""},{"$f":"IF(DataLog!$C2757=\"Log value\",DataLog!Q2757,\"\")","v":""},{"$f":"IF(DataLog!$C2757=\"Log value\",DataLog!R2757,\"\")","v":""},{"$f":"IF(DataLog!$C2757=\"Log value\",DataLog!S2757,\"\")","v":""},{"$f":"IF(DataLog!$C2757=\"Log value\",DataLog!T2757,\"\")","v":""},{"$f":"IF(DataLog!$C2757=\"Log value\",DataLog!U2757,\"\")","v":""},{"$f":"IF(DataLog!$C2757=\"Log value\",DataLog!V2757,\"\")","v":""},{"$f":"IF(DataLog!$C2757=\"Log value\",DataLog!W2757,\"\")","v":""},{"$f":"IF(DataLog!$C2757=\"Log value\",DataLog!X2757,\"\")","v":""},{"$f":"IF(DataLog!$C2757=\"Log value\",DataLog!Y2757,\"\")","v":""},{"$f":"IF(DataLog!$C2757=\"Log value\",DataLog!Z2757,\"\")","v":""},{"$f":"IF(DataLog!$C2757=\"Log value\",DataLog!AA2757,\"\")","v":""},{"$f":"IF(DataLog!$C2757=\"Log value\",DataLog!AB2757,\"\")","v":""},{"$f":"IF(DataLog!$C2757=\"Log value\",DataLog!AC2757,\"\")","v":""},{"$f":"IF(DataLog!$C2757=\"Log value\",DataLog!AD2757,\"\")","v":""},{"$f":"IF(DataLog!$C2757=\"Log value\",DataLog!AE2757,\"\")","v":""},{"$f":"IF(DataLog!$C2757=\"Log value\",DataLog!AF2757,\"\")","v":""},{"$f":"IF(DataLog!$C2757=\"Log value\",DataLog!AG2757,\"\")","v":""},{"$f":"IF(DataLog!$C2757=\"Log value\",DataLog!AH2757,\"\")","v":""},{"$f":"IF(DataLog!$C2757=\"Log value\",DataLog!AI2757,\"\")","v":""},{"$f":"IF(DataLog!$C2757=\"Log value\",DataLog!AJ2757,\"\")","v":""},{"$f":"IF(DataLog!$C2757=\"Log value\",DataLog!AK2757,\"\")","v":""},{"$f":"IF(DataLog!$C2757=\"Log value\",DataLog!AL2757,\"\")","v":""},{"$f":"IF(DataLog!$C2757=\"Log value\",DataLog!AM2757,\"\")","v":""}]
[null,null,null,null,null,null,{"$f":"IF(DataLog!$C2760=\"Log value\",DataLog!D2760&\"_\"&TEXT(DataLog!B2760,\"åååå-mm-dd\"),\"\")","v":""},{"$f":"IF(DataLog!$C2760=\"Log value\",DataLog!E2760,\"\")","v":""},{"$f":"IF(DataLog!$C2760=\"Log value\",DataLog!F2760,\"\")","v":""},{"$f":"IF(DataLog!$C2760=\"Log value\",DataLog!G2760,\"\")","v":""},{"$f":"IF(DataLog!$C2760=\"Log value\",DataLog!H2760,\"\")","v":""},{"$f":"IF(DataLog!$C2760=\"Log value\",DataLog!I2760,\"\")","v":""},{"$f":"IF(DataLog!$C2760=\"Log value\",DataLog!J2760,\"\")","v":""},{"$f":"IF(DataLog!$C2760=\"Log value\",DataLog!K2760,\"\")","v":""},{"$f":"IF(DataLog!$C2760=\"Log value\",DataLog!L2760,\"\")","v":""},{"$f":"IF(DataLog!$C2760=\"Log value\",DataLog!M2760,\"\")","v":""},{"$f":"IF(DataLog!$C2760=\"Log value\",DataLog!N2760,\"\")","v":""},{"$f":"IF(DataLog!$C2760=\"Log value\",DataLog!O2760,\"\")","v":""},{"$f":"IF(DataLog!$C2760=\"Log value\",DataLog!P2760,\"\")","v":""},{"$f":"IF(DataLog!$C2760=\"Log value\",DataLog!Q2760,\"\")","v":""},{"$f":"IF(DataLog!$C2760=\"Log value\",DataLog!R2760,\"\")","v":""},{"$f":"IF(DataLog!$C2760=\"Log value\",DataLog!S2760,\"\")","v":""},{"$f":"IF(DataLog!$C2760=\"Log value\",DataLog!T2760,\"\")","v":""},{"$f":"IF(DataLog!$C2760=\"Log value\",DataLog!U2760,\"\")","v":""},{"$f":"IF(DataLog!$C2760=\"Log value\",DataLog!V2760,\"\")","v":""},{"$f":"IF(DataLog!$C2760=\"Log value\",DataLog!W2760,\"\")","v":""},{"$f":"IF(DataLog!$C2760=\"Log value\",DataLog!X2760,\"\")","v":""},{"$f":"IF(DataLog!$C2760=\"Log value\",DataLog!Y2760,\"\")","v":""},{"$f":"IF(DataLog!$C2760=\"Log value\",DataLog!Z2760,\"\")","v":""},{"$f":"IF(DataLog!$C2760=\"Log value\",DataLog!AA2760,\"\")","v":""},{"$f":"IF(DataLog!$C2760=\"Log value\",DataLog!AB2760,\"\")","v":""},{"$f":"IF(DataLog!$C2760=\"Log value\",DataLog!AC2760,\"\")","v":""},{"$f":"IF(DataLog!$C2760=\"Log value\",DataLog!AD2760,\"\")","v":""},{"$f":"IF(DataLog!$C2760=\"Log value\",DataLog!AE2760,\"\")","v":""},{"$f":"IF(DataLog!$C2760=\"Log value\",DataLog!AF2760,\"\")","v":""},{"$f":"IF(DataLog!$C2760=\"Log value\",DataLog!AG2760,\"\")","v":""},{"$f":"IF(DataLog!$C2760=\"Log value\",DataLog!AH2760,\"\")","v":""},{"$f":"IF(DataLog!$C2760=\"Log value\",DataLog!AI2760,\"\")","v":""},{"$f":"IF(DataLog!$C2760=\"Log value\",DataLog!AJ2760,\"\")","v":""},{"$f":"IF(DataLog!$C2760=\"Log value\",DataLog!AK2760,\"\")","v":""},{"$f":"IF(DataLog!$C2760=\"Log value\",DataLog!AL2760,\"\")","v":""},{"$f":"IF(DataLog!$C2760=\"Log value\",DataLog!AM2760,\"\")","v":""}]
[null,null,null,null,null,null,{"$f":"IF(DataLog!$C2761=\"Log value\",DataLog!D2761&\"_\"&TEXT(DataLog!B2761,\"åååå-mm-dd\"),\"\")","v":""},{"$f":"IF(DataLog!$C2761=\"Log value\",DataLog!E2761,\"\")","v":""},{"$f":"IF(DataLog!$C2761=\"Log value\",DataLog!F2761,\"\")","v":""},{"$f":"IF(DataLog!$C2761=\"Log value\",DataLog!G2761,\"\")","v":""},{"$f":"IF(DataLog!$C2761=\"Log value\",DataLog!H2761,\"\")","v":""},{"$f":"IF(DataLog!$C2761=\"Log value\",DataLog!I2761,\"\")","v":""},{"$f":"IF(DataLog!$C2761=\"Log value\",DataLog!J2761,\"\")","v":""},{"$f":"IF(DataLog!$C2761=\"Log value\",DataLog!K2761,\"\")","v":""},{"$f":"IF(DataLog!$C2761=\"Log value\",DataLog!L2761,\"\")","v":""},{"$f":"IF(DataLog!$C2761=\"Log value\",DataLog!M2761,\"\")","v":""},{"$f":"IF(DataLog!$C2761=\"Log value\",DataLog!N2761,\"\")","v":""},{"$f":"IF(DataLog!$C2761=\"Log value\",DataLog!O2761,\"\")","v":""},{"$f":"IF(DataLog!$C2761=\"Log value\",DataLog!P2761,\"\")","v":""},{"$f":"IF(DataLog!$C2761=\"Log value\",DataLog!Q2761,\"\")","v":""},{"$f":"IF(DataLog!$C2761=\"Log value\",DataLog!R2761,\"\")","v":""},{"$f":"IF(DataLog!$C2761=\"Log value\",DataLog!S2761,\"\")","v":""},{"$f":"IF(DataLog!$C2761=\"Log value\",DataLog!T2761,\"\")","v":""},{"$f":"IF(DataLog!$C2761=\"Log value\",DataLog!U2761,\"\")","v":""},{"$f":"IF(DataLog!$C2761=\"Log value\",DataLog!V2761,\"\")","v":""},{"$f":"IF(DataLog!$C2761=\"Log value\",DataLog!W2761,\"\")","v":""},{"$f":"IF(DataLog!$C2761=\"Log value\",DataLog!X2761,\"\")","v":""},{"$f":"IF(DataLog!$C2761=\"Log value\",DataLog!Y2761,\"\")","v":""},{"$f":"IF(DataLog!$C2761=\"Log value\",DataLog!Z2761,\"\")","v":""},{"$f":"IF(DataLog!$C2761=\"Log value\",DataLog!AA2761,\"\")","v":""},{"$f":"IF(DataLog!$C2761=\"Log value\",DataLog!AB2761,\"\")","v":""},{"$f":"IF(DataLog!$C2761=\"Log value\",DataLog!AC2761,\"\")","v":""},{"$f":"IF(DataLog!$C2761=\"Log value\",DataLog!AD2761,\"\")","v":""},{"$f":"IF(DataLog!$C2761=\"Log value\",DataLog!AE2761,\"\")","v":""},{"$f":"IF(DataLog!$C2761=\"Log value\",DataLog!AF2761,\"\")","v":""},{"$f":"IF(DataLog!$C2761=\"Log value\",DataLog!AG2761,\"\")","v":""},{"$f":"IF(DataLog!$C2761=\"Log value\",DataLog!AH2761,\"\")","v":""},{"$f":"IF(DataLog!$C2761=\"Log value\",DataLog!AI2761,\"\")","v":""},{"$f":"IF(DataLog!$C2761=\"Log value\",DataLog!AJ2761,\"\")","v":""},{"$f":"IF(DataLog!$C2761=\"Log value\",DataLog!AK2761,\"\")","v":""},{"$f":"IF(DataLog!$C2761=\"Log value\",DataLog!AL2761,\"\")","v":""},{"$f":"IF(DataLog!$C2761=\"Log value\",DataLog!AM2761,\"\")","v":""}]
[null,null,null,null,null,null,{"$f":"IF(DataLog!$C2764=\"Log value\",DataLog!D2764&\"_\"&TEXT(DataLog!B2764,\"åååå-mm-dd\"),\"\")","v":""},{"$f":"IF(DataLog!$C2764=\"Log value\",DataLog!E2764,\"\")","v":""},{"$f":"IF(DataLog!$C2764=\"Log value\",DataLog!F2764,\"\")","v":""},{"$f":"IF(DataLog!$C2764=\"Log value\",DataLog!G2764,\"\")","v":""},{"$f":"IF(DataLog!$C2764=\"Log value\",DataLog!H2764,\"\")","v":""},{"$f":"IF(DataLog!$C2764=\"Log value\",DataLog!I2764,\"\")","v":""},{"$f":"IF(DataLog!$C2764=\"Log value\",DataLog!J2764,\"\")","v":""},{"$f":"IF(DataLog!$C2764=\"Log value\",DataLog!K2764,\"\")","v":""},{"$f":"IF(DataLog!$C2764=\"Log value\",DataLog!L2764,\"\")","v":""},{"$f":"IF(DataLog!$C2764=\"Log value\",DataLog!M2764,\"\")","v":""},{"$f":"IF(DataLog!$C2764=\"Log value\",DataLog!N2764,\"\")","v":""},{"$f":"IF(DataLog!$C2764=\"Log value\",DataLog!O2764,\"\")","v":""},{"$f":"IF(DataLog!$C2764=\"Log value\",DataLog!P2764,\"\")","v":""},{"$f":"IF(DataLog!$C2764=\"Log value\",DataLog!Q2764,\"\")","v":""},{"$f":"IF(DataLog!$C2764=\"Log value\",DataLog!R2764,\"\")","v":""},{"$f":"IF(DataLog!$C2764=\"Log value\",DataLog!S2764,\"\")","v":""},{"$f":"IF(DataLog!$C2764=\"Log value\",DataLog!T2764,\"\")","v":""},{"$f":"IF(DataLog!$C2764=\"Log value\",DataLog!U2764,\"\")","v":""},{"$f":"IF(DataLog!$C2764=\"Log value\",DataLog!V2764,\"\")","v":""},{"$f":"IF(DataLog!$C2764=\"Log value\",DataLog!W2764,\"\")","v":""},{"$f":"IF(DataLog!$C2764=\"Log value\",DataLog!X2764,\"\")","v":""},{"$f":"IF(DataLog!$C2764=\"Log value\",DataLog!Y2764,\"\")","v":""},{"$f":"IF(DataLog!$C2764=\"Log value\",DataLog!Z2764,\"\")","v":""},{"$f":"IF(DataLog!$C2764=\"Log value\",DataLog!AA2764,\"\")","v":""},{"$f":"IF(DataLog!$C2764=\"Log value\",DataLog!AB2764,\"\")","v":""},{"$f":"IF(DataLog!$C2764=\"Log value\",DataLog!AC2764,\"\")","v":""},{"$f":"IF(DataLog!$C2764=\"Log value\",DataLog!AD2764,\"\")","v":""},{"$f":"IF(DataLog!$C2764=\"Log value\",DataLog!AE2764,\"\")","v":""},{"$f":"IF(DataLog!$C2764=\"Log value\",DataLog!AF2764,\"\")","v":""},{"$f":"IF(DataLog!$C2764=\"Log value\",DataLog!AG2764,\"\")","v":""},{"$f":"IF(DataLog!$C2764=\"Log value\",DataLog!AH2764,\"\")","v":""},{"$f":"IF(DataLog!$C2764=\"Log value\",DataLog!AI2764,\"\")","v":""},{"$f":"IF(DataLog!$C2764=\"Log value\",DataLog!AJ2764,\"\")","v":""},{"$f":"IF(DataLog!$C2764=\"Log value\",DataLog!AK2764,\"\")","v":""},{"$f":"IF(DataLog!$C2764=\"Log value\",DataLog!AL2764,\"\")","v":""},{"$f":"IF(DataLog!$C2764=\"Log value\",DataLog!AM2764,\"\")","v":""}]
[null,null,null,null,null,null,{"$f":"IF(DataLog!$C2766=\"Log value\",DataLog!D2766&\"_\"&TEXT(DataLog!B2766,\"åååå-mm-dd\"),\"\")","v":""},{"$f":"IF(DataLog!$C2766=\"Log value\",DataLog!E2766,\"\")","v":""},{"$f":"IF(DataLog!$C2766=\"Log value\",DataLog!F2766,\"\")","v":""},{"$f":"IF(DataLog!$C2766=\"Log value\",DataLog!G2766,\"\")","v":""},{"$f":"IF(DataLog!$C2766=\"Log value\",DataLog!H2766,\"\")","v":""},{"$f":"IF(DataLog!$C2766=\"Log value\",DataLog!I2766,\"\")","v":""},{"$f":"IF(DataLog!$C2766=\"Log value\",DataLog!J2766,\"\")","v":""},{"$f":"IF(DataLog!$C2766=\"Log value\",DataLog!K2766,\"\")","v":""},{"$f":"IF(DataLog!$C2766=\"Log value\",DataLog!L2766,\"\")","v":""},{"$f":"IF(DataLog!$C2766=\"Log value\",DataLog!M2766,\"\")","v":""},{"$f":"IF(DataLog!$C2766=\"Log value\",DataLog!N2766,\"\")","v":""},{"$f":"IF(DataLog!$C2766=\"Log value\",DataLog!O2766,\"\")","v":""},{"$f":"IF(DataLog!$C2766=\"Log value\",DataLog!P2766,\"\")","v":""},{"$f":"IF(DataLog!$C2766=\"Log value\",DataLog!Q2766,\"\")","v":""},{"$f":"IF(DataLog!$C2766=\"Log value\",DataLog!R2766,\"\")","v":""},{"$f":"IF(DataLog!$C2766=\"Log value\",DataLog!S2766,\"\")","v":""},{"$f":"IF(DataLog!$C2766=\"Log value\",DataLog!T2766,\"\")","v":""},{"$f":"IF(DataLog!$C2766=\"Log value\",DataLog!U2766,\"\")","v":""},{"$f":"IF(DataLog!$C2766=\"Log value\",DataLog!V2766,\"\")","v":""},{"$f":"IF(DataLog!$C2766=\"Log value\",DataLog!W2766,\"\")","v":""},{"$f":"IF(DataLog!$C2766=\"Log value\",DataLog!X2766,\"\")","v":""},{"$f":"IF(DataLog!$C2766=\"Log value\",DataLog!Y2766,\"\")","v":""},{"$f":"IF(DataLog!$C2766=\"Log value\",DataLog!Z2766,\"\")","v":""},{"$f":"IF(DataLog!$C2766=\"Log value\",DataLog!AA2766,\"\")","v":""},{"$f":"IF(DataLog!$C2766=\"Log value\",DataLog!AB2766,\"\")","v":""},{"$f":"IF(DataLog!$C2766=\"Log value\",DataLog!AC2766,\"\")","v":""},{"$f":"IF(DataLog!$C2766=\"Log value\",DataLog!AD2766,\"\")","v":""},{"$f":"IF(DataLog!$C2766=\"Log value\",DataLog!AE2766,\"\")","v":""},{"$f":"IF(DataLog!$C2766=\"Log value\",DataLog!AF2766,\"\")","v":""},{"$f":"IF(DataLog!$C2766=\"Log value\",DataLog!AG2766,\"\")","v":""},{"$f":"IF(DataLog!$C2766=\"Log value\",DataLog!AH2766,\"\")","v":""},{"$f":"IF(DataLog!$C2766=\"Log value\",DataLog!AI2766,\"\")","v":""},{"$f":"IF(DataLog!$C2766=\"Log value\",DataLog!AJ2766,\"\")","v":""},{"$f":"IF(DataLog!$C2766=\"Log value\",DataLog!AK2766,\"\")","v":""},{"$f":"IF(DataLog!$C2766=\"Log value\",DataLog!AL2766,\"\")","v":""},{"$f":"IF(DataLog!$C2766=\"Log value\",DataLog!AM2766,\"\")","v":""}]
[null,null,null,null,null,null,{"$f":"IF(DataLog!$C2769=\"Log value\",DataLog!D2769&\"_\"&TEXT(DataLog!B2769,\"åååå-mm-dd\"),\"\")","v":""},{"$f":"IF(DataLog!$C2769=\"Log value\",DataLog!E2769,\"\")","v":""},{"$f":"IF(DataLog!$C2769=\"Log value\",DataLog!F2769,\"\")","v":""},{"$f":"IF(DataLog!$C2769=\"Log value\",DataLog!G2769,\"\")","v":""},{"$f":"IF(DataLog!$C2769=\"Log value\",DataLog!H2769,\"\")","v":""},{"$f":"IF(DataLog!$C2769=\"Log value\",DataLog!I2769,\"\")","v":""},{"$f":"IF(DataLog!$C2769=\"Log value\",DataLog!J2769,\"\")","v":""},{"$f":"IF(DataLog!$C2769=\"Log value\",DataLog!K2769,\"\")","v":""},{"$f":"IF(DataLog!$C2769=\"Log value\",DataLog!L2769,\"\")","v":""},{"$f":"IF(DataLog!$C2769=\"Log value\",DataLog!M2769,\"\")","v":""},{"$f":"IF(DataLog!$C2769=\"Log value\",DataLog!N2769,\"\")","v":""},{"$f":"IF(DataLog!$C2769=\"Log value\",DataLog!O2769,\"\")","v":""},{"$f":"IF(DataLog!$C2769=\"Log value\",DataLog!P2769,\"\")","v":""},{"$f":"IF(DataLog!$C2769=\"Log value\",DataLog!Q2769,\"\")","v":""},{"$f":"IF(DataLog!$C2769=\"Log value\",DataLog!R2769,\"\")","v":""},{"$f":"IF(DataLog!$C2769=\"Log value\",DataLog!S2769,\"\")","v":""},{"$f":"IF(DataLog!$C2769=\"Log value\",DataLog!T2769,\"\")","v":""},{"$f":"IF(DataLog!$C2769=\"Log value\",DataLog!U2769,\"\")","v":""},{"$f":"IF(DataLog!$C2769=\"Log value\",DataLog!V2769,\"\")","v":""},{"$f":"IF(DataLog!$C2769=\"Log value\",DataLog!W2769,\"\")","v":""},{"$f":"IF(DataLog!$C2769=\"Log value\",DataLog!X2769,\"\")","v":""},{"$f":"IF(DataLog!$C2769=\"Log value\",DataLog!Y2769,\"\")","v":""},{"$f":"IF(DataLog!$C2769=\"Log value\",DataLog!Z2769,\"\")","v":""},{"$f":"IF(DataLog!$C2769=\"Log value\",DataLog!AA2769,\"\")","v":""},{"$f":"IF(DataLog!$C2769=\"Log value\",DataLog!AB2769,\"\")","v":""},{"$f":"IF(DataLog!$C2769=\"Log value\",DataLog!AC2769,\"\")","v":""},{"$f":"IF(DataLog!$C2769=\"Log value\",DataLog!AD2769,\"\")","v":""},{"$f":"IF(DataLog!$C2769=\"Log value\",DataLog!AE2769,\"\")","v":""},{"$f":"IF(DataLog!$C2769=\"Log value\",DataLog!AF2769,\"\")","v":""},{"$f":"IF(DataLog!$C2769=\"Log value\",DataLog!AG2769,\"\")","v":""},{"$f":"IF(DataLog!$C2769=\"Log value\",DataLog!AH2769,\"\")","v":""},{"$f":"IF(DataLog!$C2769=\"Log value\",DataLog!AI2769,\"\")","v":""},{"$f":"IF(DataLog!$C2769=\"Log value\",DataLog!AJ2769,\"\")","v":""},{"$f":"IF(DataLog!$C2769=\"Log value\",DataLog!AK2769,\"\")","v":""},{"$f":"IF(DataLog!$C2769=\"Log value\",DataLog!AL2769,\"\")","v":""},{"$f":"IF(DataLog!$C2769=\"Log value\",DataLog!AM2769,\"\")","v":""}]
[null,null,null,null,null,null,{"$f":"IF(DataLog!$C2770=\"Log value\",DataLog!D2770&\"_\"&TEXT(DataLog!B2770,\"åååå-mm-dd\"),\"\")","v":""},{"$f":"IF(DataLog!$C2770=\"Log value\",DataLog!E2770,\"\")","v":""},{"$f":"IF(DataLog!$C2770=\"Log value\",DataLog!F2770,\"\")","v":""},{"$f":"IF(DataLog!$C2770=\"Log value\",DataLog!G2770,\"\")","v":""},{"$f":"IF(DataLog!$C2770=\"Log value\",DataLog!H2770,\"\")","v":""},{"$f":"IF(DataLog!$C2770=\"Log value\",DataLog!I2770,\"\")","v":""},{"$f":"IF(DataLog!$C2770=\"Log value\",DataLog!J2770,\"\")","v":""},{"$f":"IF(DataLog!$C2770=\"Log value\",DataLog!K2770,\"\")","v":""},{"$f":"IF(DataLog!$C2770=\"Log value\",DataLog!L2770,\"\")","v":""},{"$f":"IF(DataLog!$C2770=\"Log value\",DataLog!M2770,\"\")","v":""},{"$f":"IF(DataLog!$C2770=\"Log value\",DataLog!N2770,\"\")","v":""},{"$f":"IF(DataLog!$C2770=\"Log value\",DataLog!O2770,\"\")","v":""},{"$f":"IF(DataLog!$C2770=\"Log value\",DataLog!P2770,\"\")","v":""},{"$f":"IF(DataLog!$C2770=\"Log value\",DataLog!Q2770,\"\")","v":""},{"$f":"IF(DataLog!$C2770=\"Log value\",DataLog!R2770,\"\")","v":""},{"$f":"IF(DataLog!$C2770=\"Log value\",DataLog!S2770,\"\")","v":""},{"$f":"IF(DataLog!$C2770=\"Log value\",DataLog!T2770,\"\")","v":""},{"$f":"IF(DataLog!$C2770=\"Log value\",DataLog!U2770,\"\")","v":""},{"$f":"IF(DataLog!$C2770=\"Log value\",DataLog!V2770,\"\")","v":""},{"$f":"IF(DataLog!$C2770=\"Log value\",DataLog!W2770,\"\")","v":""},{"$f":"IF(DataLog!$C2770=\"Log value\",DataLog!X2770,\"\")","v":""},{"$f":"IF(DataLog!$C2770=\"Log value\",DataLog!Y2770,\"\")","v":""},{"$f":"IF(DataLog!$C2770=\"Log value\",DataLog!Z2770,\"\")","v":""},{"$f":"IF(DataLog!$C2770=\"Log value\",DataLog!AA2770,\"\")","v":""},{"$f":"IF(DataLog!$C2770=\"Log value\",DataLog!AB2770,\"\")","v":""},{"$f":"IF(DataLog!$C2770=\"Log value\",DataLog!AC2770,\"\")","v":""},{"$f":"IF(DataLog!$C2770=\"Log value\",DataLog!AD2770,\"\")","v":""},{"$f":"IF(DataLog!$C2770=\"Log value\",DataLog!AE2770,\"\")","v":""},{"$f":"IF(DataLog!$C2770=\"Log value\",DataLog!AF2770,\"\")","v":""},{"$f":"IF(DataLog!$C2770=\"Log value\",DataLog!AG2770,\"\")","v":""},{"$f":"IF(DataLog!$C2770=\"Log value\",DataLog!AH2770,\"\")","v":""},{"$f":"IF(DataLog!$C2770=\"Log value\",DataLog!AI2770,\"\")","v":""},{"$f":"IF(DataLog!$C2770=\"Log value\",DataLog!AJ2770,\"\")","v":""},{"$f":"IF(DataLog!$C2770=\"Log value\",DataLog!AK2770,\"\")","v":""},{"$f":"IF(DataLog!$C2770=\"Log value\",DataLog!AL2770,\"\")","v":""},{"$f":"IF(DataLog!$C2770=\"Log value\",DataLog!AM2770,\"\")","v":""}]
[null,null,null,null,null,null,{"$f":"IF(DataLog!$C2774=\"Log value\",DataLog!D2774&\"_\"&TEXT(DataLog!B2774,\"åååå-mm-dd\"),\"\")","v":""},{"$f":"IF(DataLog!$C2774=\"Log value\",DataLog!E2774,\"\")","v":""},{"$f":"IF(DataLog!$C2774=\"Log value\",DataLog!F2774,\"\")","v":""},{"$f":"IF(DataLog!$C2774=\"Log value\",DataLog!G2774,\"\")","v":""},{"$f":"IF(DataLog!$C2774=\"Log value\",DataLog!H2774,\"\")","v":""},{"$f":"IF(DataLog!$C2774=\"Log value\",DataLog!I2774,\"\")","v":""},{"$f":"IF(DataLog!$C2774=\"Log value\",DataLog!J2774,\"\")","v":""},{"$f":"IF(DataLog!$C2774=\"Log value\",DataLog!K2774,\"\")","v":""},{"$f":"IF(DataLog!$C2774=\"Log value\",DataLog!L2774,\"\")","v":""},{"$f":"IF(DataLog!$C2774=\"Log value\",DataLog!M2774,\"\")","v":""},{"$f":"IF(DataLog!$C2774=\"Log value\",DataLog!N2774,\"\")","v":""},{"$f":"IF(DataLog!$C2774=\"Log value\",DataLog!O2774,\"\")","v":""},{"$f":"IF(DataLog!$C2774=\"Log value\",DataLog!P2774,\"\")","v":""},{"$f":"IF(DataLog!$C2774=\"Log value\",DataLog!Q2774,\"\")","v":""},{"$f":"IF(DataLog!$C2774=\"Log value\",DataLog!R2774,\"\")","v":""},{"$f":"IF(DataLog!$C2774=\"Log value\",DataLog!S2774,\"\")","v":""},{"$f":"IF(DataLog!$C2774=\"Log value\",DataLog!T2774,\"\")","v":""},{"$f":"IF(DataLog!$C2774=\"Log value\",DataLog!U2774,\"\")","v":""},{"$f":"IF(DataLog!$C2774=\"Log value\",DataLog!V2774,\"\")","v":""},{"$f":"IF(DataLog!$C2774=\"Log value\",DataLog!W2774,\"\")","v":""},{"$f":"IF(DataLog!$C2774=\"Log value\",DataLog!X2774,\"\")","v":""},{"$f":"IF(DataLog!$C2774=\"Log value\",DataLog!Y2774,\"\")","v":""},{"$f":"IF(DataLog!$C2774=\"Log value\",DataLog!Z2774,\"\")","v":""},{"$f":"IF(DataLog!$C2774=\"Log value\",DataLog!AA2774,\"\")","v":""},{"$f":"IF(DataLog!$C2774=\"Log value\",DataLog!AB2774,\"\")","v":""},{"$f":"IF(DataLog!$C2774=\"Log value\",DataLog!AC2774,\"\")","v":""},{"$f":"IF(DataLog!$C2774=\"Log value\",DataLog!AD2774,\"\")","v":""},{"$f":"IF(DataLog!$C2774=\"Log value\",DataLog!AE2774,\"\")","v":""},{"$f":"IF(DataLog!$C2774=\"Log value\",DataLog!AF2774,\"\")","v":""},{"$f":"IF(DataLog!$C2774=\"Log value\",DataLog!AG2774,\"\")","v":""},{"$f":"IF(DataLog!$C2774=\"Log value\",DataLog!AH2774,\"\")","v":""},{"$f":"IF(DataLog!$C2774=\"Log value\",DataLog!AI2774,\"\")","v":""},{"$f":"IF(DataLog!$C2774=\"Log value\",DataLog!AJ2774,\"\")","v":""},{"$f":"IF(DataLog!$C2774=\"Log value\",DataLog!AK2774,\"\")","v":""},{"$f":"IF(DataLog!$C2774=\"Log value\",DataLog!AL2774,\"\")","v":""},{"$f":"IF(DataLog!$C2774=\"Log value\",DataLog!AM2774,\"\")","v":""}]
[null,null,null,null,null,null,{"$f":"IF(DataLog!$C2775=\"Log value\",DataLog!D2775&\"_\"&TEXT(DataLog!B2775,\"åååå-mm-dd\"),\"\")","v":""},{"$f":"IF(DataLog!$C2775=\"Log value\",DataLog!E2775,\"\")","v":""},{"$f":"IF(DataLog!$C2775=\"Log value\",DataLog!F2775,\"\")","v":""},{"$f":"IF(DataLog!$C2775=\"Log value\",DataLog!G2775,\"\")","v":""},{"$f":"IF(DataLog!$C2775=\"Log value\",DataLog!H2775,\"\")","v":""},{"$f":"IF(DataLog!$C2775=\"Log value\",DataLog!I2775,\"\")","v":""},{"$f":"IF(DataLog!$C2775=\"Log value\",DataLog!J2775,\"\")","v":""},{"$f":"IF(DataLog!$C2775=\"Log value\",DataLog!K2775,\"\")","v":""},{"$f":"IF(DataLog!$C2775=\"Log value\",DataLog!L2775,\"\")","v":""},{"$f":"IF(DataLog!$C2775=\"Log value\",DataLog!M2775,\"\")","v":""},{"$f":"IF(DataLog!$C2775=\"Log value\",DataLog!N2775,\"\")","v":""},{"$f":"IF(DataLog!$C2775=\"Log value\",DataLog!O2775,\"\")","v":""},{"$f":"IF(DataLog!$C2775=\"Log value\",DataLog!P2775,\"\")","v":""},{"$f":"IF(DataLog!$C2775=\"Log value\",DataLog!Q2775,\"\")","v":""},{"$f":"IF(DataLog!$C2775=\"Log value\",DataLog!R2775,\"\")","v":""},{"$f":"IF(DataLog!$C2775=\"Log value\",DataLog!S2775,\"\")","v":""},{"$f":"IF(DataLog!$C2775=\"Log value\",DataLog!T2775,\"\")","v":""},{"$f":"IF(DataLog!$C2775=\"Log value\",DataLog!U2775,\"\")","v":""},{"$f":"IF(DataLog!$C2775=\"Log value\",DataLog!V2775,\"\")","v":""},{"$f":"IF(DataLog!$C2775=\"Log value\",DataLog!W2775,\"\")","v":""},{"$f":"IF(DataLog!$C2775=\"Log value\",DataLog!X2775,\"\")","v":""},{"$f":"IF(DataLog!$C2775=\"Log value\",DataLog!Y2775,\"\")","v":""},{"$f":"IF(DataLog!$C2775=\"Log value\",DataLog!Z2775,\"\")","v":""},{"$f":"IF(DataLog!$C2775=\"Log value\",DataLog!AA2775,\"\")","v":""},{"$f":"IF(DataLog!$C2775=\"Log value\",DataLog!AB2775,\"\")","v":""},{"$f":"IF(DataLog!$C2775=\"Log value\",DataLog!AC2775,\"\")","v":""},{"$f":"IF(DataLog!$C2775=\"Log value\",DataLog!AD2775,\"\")","v":""},{"$f":"IF(DataLog!$C2775=\"Log value\",DataLog!AE2775,\"\")","v":""},{"$f":"IF(DataLog!$C2775=\"Log value\",DataLog!AF2775,\"\")","v":""},{"$f":"IF(DataLog!$C2775=\"Log value\",DataLog!AG2775,\"\")","v":""},{"$f":"IF(DataLog!$C2775=\"Log value\",DataLog!AH2775,\"\")","v":""},{"$f":"IF(DataLog!$C2775=\"Log value\",DataLog!AI2775,\"\")","v":""},{"$f":"IF(DataLog!$C2775=\"Log value\",DataLog!AJ2775,\"\")","v":""},{"$f":"IF(DataLog!$C2775=\"Log value\",DataLog!AK2775,\"\")","v":""},{"$f":"IF(DataLog!$C2775=\"Log value\",DataLog!AL2775,\"\")","v":""},{"$f":"IF(DataLog!$C2775=\"Log value\",DataLog!AM2775,\"\")","v":""}]
[null,null,null,null,null,null,{"$f":"IF(DataLog!$C2778=\"Log value\",DataLog!D2778&\"_\"&TEXT(DataLog!B2778,\"åååå-mm-dd\"),\"\")","v":""},{"$f":"IF(DataLog!$C2778=\"Log value\",DataLog!E2778,\"\")","v":""},{"$f":"IF(DataLog!$C2778=\"Log value\",DataLog!F2778,\"\")","v":""},{"$f":"IF(DataLog!$C2778=\"Log value\",DataLog!G2778,\"\")","v":""},{"$f":"IF(DataLog!$C2778=\"Log value\",DataLog!H2778,\"\")","v":""},{"$f":"IF(DataLog!$C2778=\"Log value\",DataLog!I2778,\"\")","v":""},{"$f":"IF(DataLog!$C2778=\"Log value\",DataLog!J2778,\"\")","v":""},{"$f":"IF(DataLog!$C2778=\"Log value\",DataLog!K2778,\"\")","v":""},{"$f":"IF(DataLog!$C2778=\"Log value\",DataLog!L2778,\"\")","v":""},{"$f":"IF(DataLog!$C2778=\"Log value\",DataLog!M2778,\"\")","v":""},{"$f":"IF(DataLog!$C2778=\"Log value\",DataLog!N2778,\"\")","v":""},{"$f":"IF(DataLog!$C2778=\"Log value\",DataLog!O2778,\"\")","v":""},{"$f":"IF(DataLog!$C2778=\"Log value\",DataLog!P2778,\"\")","v":""},{"$f":"IF(DataLog!$C2778=\"Log value\",DataLog!Q2778,\"\")","v":""},{"$f":"IF(DataLog!$C2778=\"Log value\",DataLog!R2778,\"\")","v":""},{"$f":"IF(DataLog!$C2778=\"Log value\",DataLog!S2778,\"\")","v":""},{"$f":"IF(DataLog!$C2778=\"Log value\",DataLog!T2778,\"\")","v":""},{"$f":"IF(DataLog!$C2778=\"Log value\",DataLog!U2778,\"\")","v":""},{"$f":"IF(DataLog!$C2778=\"Log value\",DataLog!V2778,\"\")","v":""},{"$f":"IF(DataLog!$C2778=\"Log value\",DataLog!W2778,\"\")","v":""},{"$f":"IF(DataLog!$C2778=\"Log value\",DataLog!X2778,\"\")","v":""},{"$f":"IF(DataLog!$C2778=\"Log value\",DataLog!Y2778,\"\")","v":""},{"$f":"IF(DataLog!$C2778=\"Log value\",DataLog!Z2778,\"\")","v":""},{"$f":"IF(DataLog!$C2778=\"Log value\",DataLog!AA2778,\"\")","v":""},{"$f":"IF(DataLog!$C2778=\"Log value\",DataLog!AB2778,\"\")","v":""},{"$f":"IF(DataLog!$C2778=\"Log value\",DataLog!AC2778,\"\")","v":""},{"$f":"IF(DataLog!$C2778=\"Log value\",DataLog!AD2778,\"\")","v":""},{"$f":"IF(DataLog!$C2778=\"Log value\",DataLog!AE2778,\"\")","v":""},{"$f":"IF(DataLog!$C2778=\"Log value\",DataLog!AF2778,\"\")","v":""},{"$f":"IF(DataLog!$C2778=\"Log value\",DataLog!AG2778,\"\")","v":""},{"$f":"IF(DataLog!$C2778=\"Log value\",DataLog!AH2778,\"\")","v":""},{"$f":"IF(DataLog!$C2778=\"Log value\",DataLog!AI2778,\"\")","v":""},{"$f":"IF(DataLog!$C2778=\"Log value\",DataLog!AJ2778,\"\")","v":""},{"$f":"IF(DataLog!$C2778=\"Log value\",DataLog!AK2778,\"\")","v":""},{"$f":"IF(DataLog!$C2778=\"Log value\",DataLog!AL2778,\"\")","v":""},{"$f":"IF(DataLog!$C2778=\"Log value\",DataLog!AM2778,\"\")","v":""}]
[null,null,null,null,null,null,{"$f":"IF(DataLog!$C2779=\"Log value\",DataLog!D2779&\"_\"&TEXT(DataLog!B2779,\"åååå-mm-dd\"),\"\")","v":""},{"$f":"IF(DataLog!$C2779=\"Log value\",DataLog!E2779,\"\")","v":""},{"$f":"IF(DataLog!$C2779=\"Log value\",DataLog!F2779,\"\")","v":""},{"$f":"IF(DataLog!$C2779=\"Log value\",DataLog!G2779,\"\")","v":""},{"$f":"IF(DataLog!$C2779=\"Log value\",DataLog!H2779,\"\")","v":""},{"$f":"IF(DataLog!$C2779=\"Log value\",DataLog!I2779,\"\")","v":""},{"$f":"IF(DataLog!$C2779=\"Log value\",DataLog!J2779,\"\")","v":""},{"$f":"IF(DataLog!$C2779=\"Log value\",DataLog!K2779,\"\")","v":""},{"$f":"IF(DataLog!$C2779=\"Log value\",DataLog!L2779,\"\")","v":""},{"$f":"IF(DataLog!$C2779=\"Log value\",DataLog!M2779,\"\")","v":""},{"$f":"IF(DataLog!$C2779=\"Log value\",DataLog!N2779,\"\")","v":""},{"$f":"IF(DataLog!$C2779=\"Log value\",DataLog!O2779,\"\")","v":""},{"$f":"IF(DataLog!$C2779=\"Log value\",DataLog!P2779,\"\")","v":""},{"$f":"IF(DataLog!$C2779=\"Log value\",DataLog!Q2779,\"\")","v":""},{"$f":"IF(DataLog!$C2779=\"Log value\",DataLog!R2779,\"\")","v":""},{"$f":"IF(DataLog!$C2779=\"Log value\",DataLog!S2779,\"\")","v":""},{"$f":"IF(DataLog!$C2779=\"Log value\",DataLog!T2779,\"\")","v":""},{"$f":"IF(DataLog!$C2779=\"Log value\",DataLog!U2779,\"\")","v":""},{"$f":"IF(DataLog!$C2779=\"Log value\",DataLog!V2779,\"\")","v":""},{"$f":"IF(DataLog!$C2779=\"Log value\",DataLog!W2779,\"\")","v":""},{"$f":"IF(DataLog!$C2779=\"Log value\",DataLog!X2779,\"\")","v":""},{"$f":"IF(DataLog!$C2779=\"Log value\",DataLog!Y2779,\"\")","v":""},{"$f":"IF(DataLog!$C2779=\"Log value\",DataLog!Z2779,\"\")","v":""},{"$f":"IF(DataLog!$C2779=\"Log value\",DataLog!AA2779,\"\")","v":""},{"$f":"IF(DataLog!$C2779=\"Log value\",DataLog!AB2779,\"\")","v":""},{"$f":"IF(DataLog!$C2779=\"Log value\",DataLog!AC2779,\"\")","v":""},{"$f":"IF(DataLog!$C2779=\"Log value\",DataLog!AD2779,\"\")","v":""},{"$f":"IF(DataLog!$C2779=\"Log value\",DataLog!AE2779,\"\")","v":""},{"$f":"IF(DataLog!$C2779=\"Log value\",DataLog!AF2779,\"\")","v":""},{"$f":"IF(DataLog!$C2779=\"Log value\",DataLog!AG2779,\"\")","v":""},{"$f":"IF(DataLog!$C2779=\"Log value\",DataLog!AH2779,\"\")","v":""},{"$f":"IF(DataLog!$C2779=\"Log value\",DataLog!AI2779,\"\")","v":""},{"$f":"IF(DataLog!$C2779=\"Log value\",DataLog!AJ2779,\"\")","v":""},{"$f":"IF(DataLog!$C2779=\"Log value\",DataLog!AK2779,\"\")","v":""},{"$f":"IF(DataLog!$C2779=\"Log value\",DataLog!AL2779,\"\")","v":""},{"$f":"IF(DataLog!$C2779=\"Log value\",DataLog!AM2779,\"\")","v":""}]
[null,null,null,null,null,null,{"$f":"IF(DataLog!$C2782=\"Log value\",DataLog!D2782&\"_\"&TEXT(DataLog!B2782,\"åååå-mm-dd\"),\"\")","v":""},{"$f":"IF(DataLog!$C2782=\"Log value\",DataLog!E2782,\"\")","v":""},{"$f":"IF(DataLog!$C2782=\"Log value\",DataLog!F2782,\"\")","v":""},{"$f":"IF(DataLog!$C2782=\"Log value\",DataLog!G2782,\"\")","v":""},{"$f":"IF(DataLog!$C2782=\"Log value\",DataLog!H2782,\"\")","v":""},{"$f":"IF(DataLog!$C2782=\"Log value\",DataLog!I2782,\"\")","v":""},{"$f":"IF(DataLog!$C2782=\"Log value\",DataLog!J2782,\"\")","v":""},{"$f":"IF(DataLog!$C2782=\"Log value\",DataLog!K2782,\"\")","v":""},{"$f":"IF(DataLog!$C2782=\"Log value\",DataLog!L2782,\"\")","v":""},{"$f":"IF(DataLog!$C2782=\"Log value\",DataLog!M2782,\"\")","v":""},{"$f":"IF(DataLog!$C2782=\"Log value\",DataLog!N2782,\"\")","v":""},{"$f":"IF(DataLog!$C2782=\"Log value\",DataLog!O2782,\"\")","v":""},{"$f":"IF(DataLog!$C2782=\"Log value\",DataLog!P2782,\"\")","v":""},{"$f":"IF(DataLog!$C2782=\"Log value\",DataLog!Q2782,\"\")","v":""},{"$f":"IF(DataLog!$C2782=\"Log value\",DataLog!R2782,\"\")","v":""},{"$f":"IF(DataLog!$C2782=\"Log value\",DataLog!S2782,\"\")","v":""},{"$f":"IF(DataLog!$C2782=\"Log value\",DataLog!T2782,\"\")","v":""},{"$f":"IF(DataLog!$C2782=\"Log value\",DataLog!U2782,\"\")","v":""},{"$f":"IF(DataLog!$C2782=\"Log value\",DataLog!V2782,\"\")","v":""},{"$f":"IF(DataLog!$C2782=\"Log value\",DataLog!W2782,\"\")","v":""},{"$f":"IF(DataLog!$C2782=\"Log value\",DataLog!X2782,\"\")","v":""},{"$f":"IF(DataLog!$C2782=\"Log value\",DataLog!Y2782,\"\")","v":""},{"$f":"IF(DataLog!$C2782=\"Log value\",DataLog!Z2782,\"\")","v":""},{"$f":"IF(DataLog!$C2782=\"Log value\",DataLog!AA2782,\"\")","v":""},{"$f":"IF(DataLog!$C2782=\"Log value\",DataLog!AB2782,\"\")","v":""},{"$f":"IF(DataLog!$C2782=\"Log value\",DataLog!AC2782,\"\")","v":""},{"$f":"IF(DataLog!$C2782=\"Log value\",DataLog!AD2782,\"\")","v":""},{"$f":"IF(DataLog!$C2782=\"Log value\",DataLog!AE2782,\"\")","v":""},{"$f":"IF(DataLog!$C2782=\"Log value\",DataLog!AF2782,\"\")","v":""},{"$f":"IF(DataLog!$C2782=\"Log value\",DataLog!AG2782,\"\")","v":""},{"$f":"IF(DataLog!$C2782=\"Log value\",DataLog!AH2782,\"\")","v":""},{"$f":"IF(DataLog!$C2782=\"Log value\",DataLog!AI2782,\"\")","v":""},{"$f":"IF(DataLog!$C2782=\"Log value\",DataLog!AJ2782,\"\")","v":""},{"$f":"IF(DataLog!$C2782=\"Log value\",DataLog!AK2782,\"\")","v":""},{"$f":"IF(DataLog!$C2782=\"Log value\",DataLog!AL2782,\"\")","v":""},{"$f":"IF(DataLog!$C2782=\"Log value\",DataLog!AM2782,\"\")","v":""}]
[null,null,null,null,null,null,{"$f":"IF(DataLog!$C2784=\"Log value\",DataLog!D2784&\"_\"&TEXT(DataLog!B2784,\"åååå-mm-dd\"),\"\")","v":""},{"$f":"IF(DataLog!$C2784=\"Log value\",DataLog!E2784,\"\")","v":""},{"$f":"IF(DataLog!$C2784=\"Log value\",DataLog!F2784,\"\")","v":""},{"$f":"IF(DataLog!$C2784=\"Log value\",DataLog!G2784,\"\")","v":""},{"$f":"IF(DataLog!$C2784=\"Log value\",DataLog!H2784,\"\")","v":""},{"$f":"IF(DataLog!$C2784=\"Log value\",DataLog!I2784,\"\")","v":""},{"$f":"IF(DataLog!$C2784=\"Log value\",DataLog!J2784,\"\")","v":""},{"$f":"IF(DataLog!$C2784=\"Log value\",DataLog!K2784,\"\")","v":""},{"$f":"IF(DataLog!$C2784=\"Log value\",DataLog!L2784,\"\")","v":""},{"$f":"IF(DataLog!$C2784=\"Log value\",DataLog!M2784,\"\")","v":""},{"$f":"IF(DataLog!$C2784=\"Log value\",DataLog!N2784,\"\")","v":""},{"$f":"IF(DataLog!$C2784=\"Log value\",DataLog!O2784,\"\")","v":""},{"$f":"IF(DataLog!$C2784=\"Log value\",DataLog!P2784,\"\")","v":""},{"$f":"IF(DataLog!$C2784=\"Log value\",DataLog!Q2784,\"\")","v":""},{"$f":"IF(DataLog!$C2784=\"Log value\",DataLog!R2784,\"\")","v":""},{"$f":"IF(DataLog!$C2784=\"Log value\",DataLog!S2784,\"\")","v":""},{"$f":"IF(DataLog!$C2784=\"Log value\",DataLog!T2784,\"\")","v":""},{"$f":"IF(DataLog!$C2784=\"Log value\",DataLog!U2784,\"\")","v":""},{"$f":"IF(DataLog!$C2784=\"Log value\",DataLog!V2784,\"\")","v":""},{"$f":"IF(DataLog!$C2784=\"Log value\",DataLog!W2784,\"\")","v":""},{"$f":"IF(DataLog!$C2784=\"Log value\",DataLog!X2784,\"\")","v":""},{"$f":"IF(DataLog!$C2784=\"Log value\",DataLog!Y2784,\"\")","v":""},{"$f":"IF(DataLog!$C2784=\"Log value\",DataLog!Z2784,\"\")","v":""},{"$f":"IF(DataLog!$C2784=\"Log value\",DataLog!AA2784,\"\")","v":""},{"$f":"IF(DataLog!$C2784=\"Log value\",DataLog!AB2784,\"\")","v":""},{"$f":"IF(DataLog!$C2784=\"Log value\",DataLog!AC2784,\"\")","v":""},{"$f":"IF(DataLog!$C2784=\"Log value\",DataLog!AD2784,\"\")","v":""},{"$f":"IF(DataLog!$C2784=\"Log value\",DataLog!AE2784,\"\")","v":""},{"$f":"IF(DataLog!$C2784=\"Log value\",DataLog!AF2784,\"\")","v":""},{"$f":"IF(DataLog!$C2784=\"Log value\",DataLog!AG2784,\"\")","v":""},{"$f":"IF(DataLog!$C2784=\"Log value\",DataLog!AH2784,\"\")","v":""},{"$f":"IF(DataLog!$C2784=\"Log value\",DataLog!AI2784,\"\")","v":""},{"$f":"IF(DataLog!$C2784=\"Log value\",DataLog!AJ2784,\"\")","v":""},{"$f":"IF(DataLog!$C2784=\"Log value\",DataLog!AK2784,\"\")","v":""},{"$f":"IF(DataLog!$C2784=\"Log value\",DataLog!AL2784,\"\")","v":""},{"$f":"IF(DataLog!$C2784=\"Log value\",DataLog!AM2784,\"\")","v":""}]
[null,null,null,null,null,null,{"$f":"IF(DataLog!$C2787=\"Log value\",DataLog!D2787&\"_\"&TEXT(DataLog!B2787,\"åååå-mm-dd\"),\"\")","v":""},{"$f":"IF(DataLog!$C2787=\"Log value\",DataLog!E2787,\"\")","v":""},{"$f":"IF(DataLog!$C2787=\"Log value\",DataLog!F2787,\"\")","v":""},{"$f":"IF(DataLog!$C2787=\"Log value\",DataLog!G2787,\"\")","v":""},{"$f":"IF(DataLog!$C2787=\"Log value\",DataLog!H2787,\"\")","v":""},{"$f":"IF(DataLog!$C2787=\"Log value\",DataLog!I2787,\"\")","v":""},{"$f":"IF(DataLog!$C2787=\"Log value\",DataLog!J2787,\"\")","v":""},{"$f":"IF(DataLog!$C2787=\"Log value\",DataLog!K2787,\"\")","v":""},{"$f":"IF(DataLog!$C2787=\"Log value\",DataLog!L2787,\"\")","v":""},{"$f":"IF(DataLog!$C2787=\"Log value\",DataLog!M2787,\"\")","v":""},{"$f":"IF(DataLog!$C2787=\"Log value\",DataLog!N2787,\"\")","v":""},{"$f":"IF(DataLog!$C2787=\"Log value\",DataLog!O2787,\"\")","v":""},{"$f":"IF(DataLog!$C2787=\"Log value\",DataLog!P2787,\"\")","v":""},{"$f":"IF(DataLog!$C2787=\"Log value\",DataLog!Q2787,\"\")","v":""},{"$f":"IF(DataLog!$C2787=\"Log value\",DataLog!R2787,\"\")","v":""},{"$f":"IF(DataLog!$C2787=\"Log value\",DataLog!S2787,\"\")","v":""},{"$f":"IF(DataLog!$C2787=\"Log value\",DataLog!T2787,\"\")","v":""},{"$f":"IF(DataLog!$C2787=\"Log value\",DataLog!U2787,\"\")","v":""},{"$f":"IF(DataLog!$C2787=\"Log value\",DataLog!V2787,\"\")","v":""},{"$f":"IF(DataLog!$C2787=\"Log value\",DataLog!W2787,\"\")","v":""},{"$f":"IF(DataLog!$C2787=\"Log value\",DataLog!X2787,\"\")","v":""},{"$f":"IF(DataLog!$C2787=\"Log value\",DataLog!Y2787,\"\")","v":""},{"$f":"IF(DataLog!$C2787=\"Log value\",DataLog!Z2787,\"\")","v":""},{"$f":"IF(DataLog!$C2787=\"Log value\",DataLog!AA2787,\"\")","v":""},{"$f":"IF(DataLog!$C2787=\"Log value\",DataLog!AB2787,\"\")","v":""},{"$f":"IF(DataLog!$C2787=\"Log value\",DataLog!AC2787,\"\")","v":""},{"$f":"IF(DataLog!$C2787=\"Log value\",DataLog!AD2787,\"\")","v":""},{"$f":"IF(DataLog!$C2787=\"Log value\",DataLog!AE2787,\"\")","v":""},{"$f":"IF(DataLog!$C2787=\"Log value\",DataLog!AF2787,\"\")","v":""},{"$f":"IF(DataLog!$C2787=\"Log value\",DataLog!AG2787,\"\")","v":""},{"$f":"IF(DataLog!$C2787=\"Log value\",DataLog!AH2787,\"\")","v":""},{"$f":"IF(DataLog!$C2787=\"Log value\",DataLog!AI2787,\"\")","v":""},{"$f":"IF(DataLog!$C2787=\"Log value\",DataLog!AJ2787,\"\")","v":""},{"$f":"IF(DataLog!$C2787=\"Log value\",DataLog!AK2787,\"\")","v":""},{"$f":"IF(DataLog!$C2787=\"Log value\",DataLog!AL2787,\"\")","v":""},{"$f":"IF(DataLog!$C2787=\"Log value\",DataLog!AM2787,\"\")","v":""}]
[null,null,null,null,null,null,{"$f":"IF(DataLog!$C2788=\"Log value\",DataLog!D2788&\"_\"&TEXT(DataLog!B2788,\"åååå-mm-dd\"),\"\")","v":""},{"$f":"IF(DataLog!$C2788=\"Log value\",DataLog!E2788,\"\")","v":""},{"$f":"IF(DataLog!$C2788=\"Log value\",DataLog!F2788,\"\")","v":""},{"$f":"IF(DataLog!$C2788=\"Log value\",DataLog!G2788,\"\")","v":""},{"$f":"IF(DataLog!$C2788=\"Log value\",DataLog!H2788,\"\")","v":""},{"$f":"IF(DataLog!$C2788=\"Log value\",DataLog!I2788,\"\")","v":""},{"$f":"IF(DataLog!$C2788=\"Log value\",DataLog!J2788,\"\")","v":""},{"$f":"IF(DataLog!$C2788=\"Log value\",DataLog!K2788,\"\")","v":""},{"$f":"IF(DataLog!$C2788=\"Log value\",DataLog!L2788,\"\")","v":""},{"$f":"IF(DataLog!$C2788=\"Log value\",DataLog!M2788,\"\")","v":""},{"$f":"IF(DataLog!$C2788=\"Log value\",DataLog!N2788,\"\")","v":""},{"$f":"IF(DataLog!$C2788=\"Log value\",DataLog!O2788,\"\")","v":""},{"$f":"IF(DataLog!$C2788=\"Log value\",DataLog!P2788,\"\")","v":""},{"$f":"IF(DataLog!$C2788=\"Log value\",DataLog!Q2788,\"\")","v":""},{"$f":"IF(DataLog!$C2788=\"Log value\",DataLog!R2788,\"\")","v":""},{"$f":"IF(DataLog!$C2788=\"Log value\",DataLog!S2788,\"\")","v":""},{"$f":"IF(DataLog!$C2788=\"Log value\",DataLog!T2788,\"\")","v":""},{"$f":"IF(DataLog!$C2788=\"Log value\",DataLog!U2788,\"\")","v":""},{"$f":"IF(DataLog!$C2788=\"Log value\",DataLog!V2788,\"\")","v":""},{"$f":"IF(DataLog!$C2788=\"Log value\",DataLog!W2788,\"\")","v":""},{"$f":"IF(DataLog!$C2788=\"Log value\",DataLog!X2788,\"\")","v":""},{"$f":"IF(DataLog!$C2788=\"Log value\",DataLog!Y2788,\"\")","v":""},{"$f":"IF(DataLog!$C2788=\"Log value\",DataLog!Z2788,\"\")","v":""},{"$f":"IF(DataLog!$C2788=\"Log value\",DataLog!AA2788,\"\")","v":""},{"$f":"IF(DataLog!$C2788=\"Log value\",DataLog!AB2788,\"\")","v":""},{"$f":"IF(DataLog!$C2788=\"Log value\",DataLog!AC2788,\"\")","v":""},{"$f":"IF(DataLog!$C2788=\"Log value\",DataLog!AD2788,\"\")","v":""},{"$f":"IF(DataLog!$C2788=\"Log value\",DataLog!AE2788,\"\")","v":""},{"$f":"IF(DataLog!$C2788=\"Log value\",DataLog!AF2788,\"\")","v":""},{"$f":"IF(DataLog!$C2788=\"Log value\",DataLog!AG2788,\"\")","v":""},{"$f":"IF(DataLog!$C2788=\"Log value\",DataLog!AH2788,\"\")","v":""},{"$f":"IF(DataLog!$C2788=\"Log value\",DataLog!AI2788,\"\")","v":""},{"$f":"IF(DataLog!$C2788=\"Log value\",DataLog!AJ2788,\"\")","v":""},{"$f":"IF(DataLog!$C2788=\"Log value\",DataLog!AK2788,\"\")","v":""},{"$f":"IF(DataLog!$C2788=\"Log value\",DataLog!AL2788,\"\")","v":""},{"$f":"IF(DataLog!$C2788=\"Log value\",DataLog!AM2788,\"\")","v":""}]
[null,null,null,null,null,null,{"$f":"IF(DataLog!$C2792=\"Log value\",DataLog!D2792&\"_\"&TEXT(DataLog!B2792,\"åååå-mm-dd\"),\"\")","v":""},{"$f":"IF(DataLog!$C2792=\"Log value\",DataLog!E2792,\"\")","v":""},{"$f":"IF(DataLog!$C2792=\"Log value\",DataLog!F2792,\"\")","v":""},{"$f":"IF(DataLog!$C2792=\"Log value\",DataLog!G2792,\"\")","v":""},{"$f":"IF(DataLog!$C2792=\"Log value\",DataLog!H2792,\"\")","v":""},{"$f":"IF(DataLog!$C2792=\"Log value\",DataLog!I2792,\"\")","v":""},{"$f":"IF(DataLog!$C2792=\"Log value\",DataLog!J2792,\"\")","v":""},{"$f":"IF(DataLog!$C2792=\"Log value\",DataLog!K2792,\"\")","v":""},{"$f":"IF(DataLog!$C2792=\"Log value\",DataLog!L2792,\"\")","v":""},{"$f":"IF(DataLog!$C2792=\"Log value\",DataLog!M2792,\"\")","v":""},{"$f":"IF(DataLog!$C2792=\"Log value\",DataLog!N2792,\"\")","v":""},{"$f":"IF(DataLog!$C2792=\"Log value\",DataLog!O2792,\"\")","v":""},{"$f":"IF(DataLog!$C2792=\"Log value\",DataLog!P2792,\"\")","v":""},{"$f":"IF(DataLog!$C2792=\"Log value\",DataLog!Q2792,\"\")","v":""},{"$f":"IF(DataLog!$C2792=\"Log value\",DataLog!R2792,\"\")","v":""},{"$f":"IF(DataLog!$C2792=\"Log value\",DataLog!S2792,\"\")","v":""},{"$f":"IF(DataLog!$C2792=\"Log value\",DataLog!T2792,\"\")","v":""},{"$f":"IF(DataLog!$C2792=\"Log value\",DataLog!U2792,\"\")","v":""},{"$f":"IF(DataLog!$C2792=\"Log value\",DataLog!V2792,\"\")","v":""},{"$f":"IF(DataLog!$C2792=\"Log value\",DataLog!W2792,\"\")","v":""},{"$f":"IF(DataLog!$C2792=\"Log value\",DataLog!X2792,\"\")","v":""},{"$f":"IF(DataLog!$C2792=\"Log value\",DataLog!Y2792,\"\")","v":""},{"$f":"IF(DataLog!$C2792=\"Log value\",DataLog!Z2792,\"\")","v":""},{"$f":"IF(DataLog!$C2792=\"Log value\",DataLog!AA2792,\"\")","v":""},{"$f":"IF(DataLog!$C2792=\"Log value\",DataLog!AB2792,\"\")","v":""},{"$f":"IF(DataLog!$C2792=\"Log value\",DataLog!AC2792,\"\")","v":""},{"$f":"IF(DataLog!$C2792=\"Log value\",DataLog!AD2792,\"\")","v":""},{"$f":"IF(DataLog!$C2792=\"Log value\",DataLog!AE2792,\"\")","v":""},{"$f":"IF(DataLog!$C2792=\"Log value\",DataLog!AF2792,\"\")","v":""},{"$f":"IF(DataLog!$C2792=\"Log value\",DataLog!AG2792,\"\")","v":""},{"$f":"IF(DataLog!$C2792=\"Log value\",DataLog!AH2792,\"\")","v":""},{"$f":"IF(DataLog!$C2792=\"Log value\",DataLog!AI2792,\"\")","v":""},{"$f":"IF(DataLog!$C2792=\"Log value\",DataLog!AJ2792,\"\")","v":""},{"$f":"IF(DataLog!$C2792=\"Log value\",DataLog!AK2792,\"\")","v":""},{"$f":"IF(DataLog!$C2792=\"Log value\",DataLog!AL2792,\"\")","v":""},{"$f":"IF(DataLog!$C2792=\"Log value\",DataLog!AM2792,\"\")","v":""}]
[null,null,null,null,null,null,{"$f":"IF(DataLog!$C2793=\"Log value\",DataLog!D2793&\"_\"&TEXT(DataLog!B2793,\"åååå-mm-dd\"),\"\")","v":""},{"$f":"IF(DataLog!$C2793=\"Log value\",DataLog!E2793,\"\")","v":""},{"$f":"IF(DataLog!$C2793=\"Log value\",DataLog!F2793,\"\")","v":""},{"$f":"IF(DataLog!$C2793=\"Log value\",DataLog!G2793,\"\")","v":""},{"$f":"IF(DataLog!$C2793=\"Log value\",DataLog!H2793,\"\")","v":""},{"$f":"IF(DataLog!$C2793=\"Log value\",DataLog!I2793,\"\")","v":""},{"$f":"IF(DataLog!$C2793=\"Log value\",DataLog!J2793,\"\")","v":""},{"$f":"IF(DataLog!$C2793=\"Log value\",DataLog!K2793,\"\")","v":""},{"$f":"IF(DataLog!$C2793=\"Log value\",DataLog!L2793,\"\")","v":""},{"$f":"IF(DataLog!$C2793=\"Log value\",DataLog!M2793,\"\")","v":""},{"$f":"IF(DataLog!$C2793=\"Log value\",DataLog!N2793,\"\")","v":""},{"$f":"IF(DataLog!$C2793=\"Log value\",DataLog!O2793,\"\")","v":""},{"$f":"IF(DataLog!$C2793=\"Log value\",DataLog!P2793,\"\")","v":""},{"$f":"IF(DataLog!$C2793=\"Log value\",DataLog!Q2793,\"\")","v":""},{"$f":"IF(DataLog!$C2793=\"Log value\",DataLog!R2793,\"\")","v":""},{"$f":"IF(DataLog!$C2793=\"Log value\",DataLog!S2793,\"\")","v":""},{"$f":"IF(DataLog!$C2793=\"Log value\",DataLog!T2793,\"\")","v":""},{"$f":"IF(DataLog!$C2793=\"Log value\",DataLog!U2793,\"\")","v":""},{"$f":"IF(DataLog!$C2793=\"Log value\",DataLog!V2793,\"\")","v":""},{"$f":"IF(DataLog!$C2793=\"Log value\",DataLog!W2793,\"\")","v":""},{"$f":"IF(DataLog!$C2793=\"Log value\",DataLog!X2793,\"\")","v":""},{"$f":"IF(DataLog!$C2793=\"Log value\",DataLog!Y2793,\"\")","v":""},{"$f":"IF(DataLog!$C2793=\"Log value\",DataLog!Z2793,\"\")","v":""},{"$f":"IF(DataLog!$C2793=\"Log value\",DataLog!AA2793,\"\")","v":""},{"$f":"IF(DataLog!$C2793=\"Log value\",DataLog!AB2793,\"\")","v":""},{"$f":"IF(DataLog!$C2793=\"Log value\",DataLog!AC2793,\"\")","v":""},{"$f":"IF(DataLog!$C2793=\"Log value\",DataLog!AD2793,\"\")","v":""},{"$f":"IF(DataLog!$C2793=\"Log value\",DataLog!AE2793,\"\")","v":""},{"$f":"IF(DataLog!$C2793=\"Log value\",DataLog!AF2793,\"\")","v":""},{"$f":"IF(DataLog!$C2793=\"Log value\",DataLog!AG2793,\"\")","v":""},{"$f":"IF(DataLog!$C2793=\"Log value\",DataLog!AH2793,\"\")","v":""},{"$f":"IF(DataLog!$C2793=\"Log value\",DataLog!AI2793,\"\")","v":""},{"$f":"IF(DataLog!$C2793=\"Log value\",DataLog!AJ2793,\"\")","v":""},{"$f":"IF(DataLog!$C2793=\"Log value\",DataLog!AK2793,\"\")","v":""},{"$f":"IF(DataLog!$C2793=\"Log value\",DataLog!AL2793,\"\")","v":""},{"$f":"IF(DataLog!$C2793=\"Log value\",DataLog!AM2793,\"\")","v":""}]
[null,null,null,null,null,null,{"$f":"IF(DataLog!$C2796=\"Log value\",DataLog!D2796&\"_\"&TEXT(DataLog!B2796,\"åååå-mm-dd\"),\"\")","v":""},{"$f":"IF(DataLog!$C2796=\"Log value\",DataLog!E2796,\"\")","v":""},{"$f":"IF(DataLog!$C2796=\"Log value\",DataLog!F2796,\"\")","v":""},{"$f":"IF(DataLog!$C2796=\"Log value\",DataLog!G2796,\"\")","v":""},{"$f":"IF(DataLog!$C2796=\"Log value\",DataLog!H2796,\"\")","v":""},{"$f":"IF(DataLog!$C2796=\"Log value\",DataLog!I2796,\"\")","v":""},{"$f":"IF(DataLog!$C2796=\"Log value\",DataLog!J2796,\"\")","v":""},{"$f":"IF(DataLog!$C2796=\"Log value\",DataLog!K2796,\"\")","v":""},{"$f":"IF(DataLog!$C2796=\"Log value\",DataLog!L2796,\"\")","v":""},{"$f":"IF(DataLog!$C2796=\"Log value\",DataLog!M2796,\"\")","v":""},{"$f":"IF(DataLog!$C2796=\"Log value\",DataLog!N2796,\"\")","v":""},{"$f":"IF(DataLog!$C2796=\"Log value\",DataLog!O2796,\"\")","v":""},{"$f":"IF(DataLog!$C2796=\"Log value\",DataLog!P2796,\"\")","v":""},{"$f":"IF(DataLog!$C2796=\"Log value\",DataLog!Q2796,\"\")","v":""},{"$f":"IF(DataLog!$C2796=\"Log value\",DataLog!R2796,\"\")","v":""},{"$f":"IF(DataLog!$C2796=\"Log value\",DataLog!S2796,\"\")","v":""},{"$f":"IF(DataLog!$C2796=\"Log value\",DataLog!T2796,\"\")","v":""},{"$f":"IF(DataLog!$C2796=\"Log value\",DataLog!U2796,\"\")","v":""},{"$f":"IF(DataLog!$C2796=\"Log value\",DataLog!V2796,\"\")","v":""},{"$f":"IF(DataLog!$C2796=\"Log value\",DataLog!W2796,\"\")","v":""},{"$f":"IF(DataLog!$C2796=\"Log value\",DataLog!X2796,\"\")","v":""},{"$f":"IF(DataLog!$C2796=\"Log value\",DataLog!Y2796,\"\")","v":""},{"$f":"IF(DataLog!$C2796=\"Log value\",DataLog!Z2796,\"\")","v":""},{"$f":"IF(DataLog!$C2796=\"Log value\",DataLog!AA2796,\"\")","v":""},{"$f":"IF(DataLog!$C2796=\"Log value\",DataLog!AB2796,\"\")","v":""},{"$f":"IF(DataLog!$C2796=\"Log value\",DataLog!AC2796,\"\")","v":""},{"$f":"IF(DataLog!$C2796=\"Log value\",DataLog!AD2796,\"\")","v":""},{"$f":"IF(DataLog!$C2796=\"Log value\",DataLog!AE2796,\"\")","v":""},{"$f":"IF(DataLog!$C2796=\"Log value\",DataLog!AF2796,\"\")","v":""},{"$f":"IF(DataLog!$C2796=\"Log value\",DataLog!AG2796,\"\")","v":""},{"$f":"IF(DataLog!$C2796=\"Log value\",DataLog!AH2796,\"\")","v":""},{"$f":"IF(DataLog!$C2796=\"Log value\",DataLog!AI2796,\"\")","v":""},{"$f":"IF(DataLog!$C2796=\"Log value\",DataLog!AJ2796,\"\")","v":""},{"$f":"IF(DataLog!$C2796=\"Log value\",DataLog!AK2796,\"\")","v":""},{"$f":"IF(DataLog!$C2796=\"Log value\",DataLog!AL2796,\"\")","v":""},{"$f":"IF(DataLog!$C2796=\"Log value\",DataLog!AM2796,\"\")","v":""}]
[null,null,null,null,null,null,{"$f":"IF(DataLog!$C2798=\"Log value\",DataLog!D2798&\"_\"&TEXT(DataLog!B2798,\"åååå-mm-dd\"),\"\")","v":""},{"$f":"IF(DataLog!$C2798=\"Log value\",DataLog!E2798,\"\")","v":""},{"$f":"IF(DataLog!$C2798=\"Log value\",DataLog!F2798,\"\")","v":""},{"$f":"IF(DataLog!$C2798=\"Log value\",DataLog!G2798,\"\")","v":""},{"$f":"IF(DataLog!$C2798=\"Log value\",DataLog!H2798,\"\")","v":""},{"$f":"IF(DataLog!$C2798=\"Log value\",DataLog!I2798,\"\")","v":""},{"$f":"IF(DataLog!$C2798=\"Log value\",DataLog!J2798,\"\")","v":""},{"$f":"IF(DataLog!$C2798=\"Log value\",DataLog!K2798,\"\")","v":""},{"$f":"IF(DataLog!$C2798=\"Log value\",DataLog!L2798,\"\")","v":""},{"$f":"IF(DataLog!$C2798=\"Log value\",DataLog!M2798,\"\")","v":""},{"$f":"IF(DataLog!$C2798=\"Log value\",DataLog!N2798,\"\")","v":""},{"$f":"IF(DataLog!$C2798=\"Log value\",DataLog!O2798,\"\")","v":""},{"$f":"IF(DataLog!$C2798=\"Log value\",DataLog!P2798,\"\")","v":""},{"$f":"IF(DataLog!$C2798=\"Log value\",DataLog!Q2798,\"\")","v":""},{"$f":"IF(DataLog!$C2798=\"Log value\",DataLog!R2798,\"\")","v":""},{"$f":"IF(DataLog!$C2798=\"Log value\",DataLog!S2798,\"\")","v":""},{"$f":"IF(DataLog!$C2798=\"Log value\",DataLog!T2798,\"\")","v":""},{"$f":"IF(DataLog!$C2798=\"Log value\",DataLog!U2798,\"\")","v":""},{"$f":"IF(DataLog!$C2798=\"Log value\",DataLog!V2798,\"\")","v":""},{"$f":"IF(DataLog!$C2798=\"Log value\",DataLog!W2798,\"\")","v":""},{"$f":"IF(DataLog!$C2798=\"Log value\",DataLog!X2798,\"\")","v":""},{"$f":"IF(DataLog!$C2798=\"Log value\",DataLog!Y2798,\"\")","v":""},{"$f":"IF(DataLog!$C2798=\"Log value\",DataLog!Z2798,\"\")","v":""},{"$f":"IF(DataLog!$C2798=\"Log value\",DataLog!AA2798,\"\")","v":""},{"$f":"IF(DataLog!$C2798=\"Log value\",DataLog!AB2798,\"\")","v":""},{"$f":"IF(DataLog!$C2798=\"Log value\",DataLog!AC2798,\"\")","v":""},{"$f":"IF(DataLog!$C2798=\"Log value\",DataLog!AD2798,\"\")","v":""},{"$f":"IF(DataLog!$C2798=\"Log value\",DataLog!AE2798,\"\")","v":""},{"$f":"IF(DataLog!$C2798=\"Log value\",DataLog!AF2798,\"\")","v":""},{"$f":"IF(DataLog!$C2798=\"Log value\",DataLog!AG2798,\"\")","v":""},{"$f":"IF(DataLog!$C2798=\"Log value\",DataLog!AH2798,\"\")","v":""},{"$f":"IF(DataLog!$C2798=\"Log value\",DataLog!AI2798,\"\")","v":""},{"$f":"IF(DataLog!$C2798=\"Log value\",DataLog!AJ2798,\"\")","v":""},{"$f":"IF(DataLog!$C2798=\"Log value\",DataLog!AK2798,\"\")","v":""},{"$f":"IF(DataLog!$C2798=\"Log value\",DataLog!AL2798,\"\")","v":""},{"$f":"IF(DataLog!$C2798=\"Log value\",DataLog!AM2798,\"\")","v":""}]
[null,null,null,null,null,null,{"$f":"IF(DataLog!$C2801=\"Log value\",DataLog!D2801&\"_\"&TEXT(DataLog!B2801,\"åååå-mm-dd\"),\"\")","v":""},{"$f":"IF(DataLog!$C2801=\"Log value\",DataLog!E2801,\"\")","v":""},{"$f":"IF(DataLog!$C2801=\"Log value\",DataLog!F2801,\"\")","v":""},{"$f":"IF(DataLog!$C2801=\"Log value\",DataLog!G2801,\"\")","v":""},{"$f":"IF(DataLog!$C2801=\"Log value\",DataLog!H2801,\"\")","v":""},{"$f":"IF(DataLog!$C2801=\"Log value\",DataLog!I2801,\"\")","v":""},{"$f":"IF(DataLog!$C2801=\"Log value\",DataLog!J2801,\"\")","v":""},{"$f":"IF(DataLog!$C2801=\"Log value\",DataLog!K2801,\"\")","v":""},{"$f":"IF(DataLog!$C2801=\"Log value\",DataLog!L2801,\"\")","v":""},{"$f":"IF(DataLog!$C2801=\"Log value\",DataLog!M2801,\"\")","v":""},{"$f":"IF(DataLog!$C2801=\"Log value\",DataLog!N2801,\"\")","v":""},{"$f":"IF(DataLog!$C2801=\"Log value\",DataLog!O2801,\"\")","v":""},{"$f":"IF(DataLog!$C2801=\"Log value\",DataLog!P2801,\"\")","v":""},{"$f":"IF(DataLog!$C2801=\"Log value\",DataLog!Q2801,\"\")","v":""},{"$f":"IF(DataLog!$C2801=\"Log value\",DataLog!R2801,\"\")","v":""},{"$f":"IF(DataLog!$C2801=\"Log value\",DataLog!S2801,\"\")","v":""},{"$f":"IF(DataLog!$C2801=\"Log value\",DataLog!T2801,\"\")","v":""},{"$f":"IF(DataLog!$C2801=\"Log value\",DataLog!U2801,\"\")","v":""},{"$f":"IF(DataLog!$C2801=\"Log value\",DataLog!V2801,\"\")","v":""},{"$f":"IF(DataLog!$C2801=\"Log value\",DataLog!W2801,\"\")","v":""},{"$f":"IF(DataLog!$C2801=\"Log value\",DataLog!X2801,\"\")","v":""},{"$f":"IF(DataLog!$C2801=\"Log value\",DataLog!Y2801,\"\")","v":""},{"$f":"IF(DataLog!$C2801=\"Log value\",DataLog!Z2801,\"\")","v":""},{"$f":"IF(DataLog!$C2801=\"Log value\",DataLog!AA2801,\"\")","v":""},{"$f":"IF(DataLog!$C2801=\"Log value\",DataLog!AB2801,\"\")","v":""},{"$f":"IF(DataLog!$C2801=\"Log value\",DataLog!AC2801,\"\")","v":""},{"$f":"IF(DataLog!$C2801=\"Log value\",DataLog!AD2801,\"\")","v":""},{"$f":"IF(DataLog!$C2801=\"Log value\",DataLog!AE2801,\"\")","v":""},{"$f":"IF(DataLog!$C2801=\"Log value\",DataLog!AF2801,\"\")","v":""},{"$f":"IF(DataLog!$C2801=\"Log value\",DataLog!AG2801,\"\")","v":""},{"$f":"IF(DataLog!$C2801=\"Log value\",DataLog!AH2801,\"\")","v":""},{"$f":"IF(DataLog!$C2801=\"Log value\",DataLog!AI2801,\"\")","v":""},{"$f":"IF(DataLog!$C2801=\"Log value\",DataLog!AJ2801,\"\")","v":""},{"$f":"IF(DataLog!$C2801=\"Log value\",DataLog!AK2801,\"\")","v":""},{"$f":"IF(DataLog!$C2801=\"Log value\",DataLog!AL2801,\"\")","v":""},{"$f":"IF(DataLog!$C2801=\"Log value\",DataLog!AM2801,\"\")","v":""}]
[null,null,null,null,null,null,{"$f":"IF(DataLog!$C2802=\"Log value\",DataLog!D2802&\"_\"&TEXT(DataLog!B2802,\"åååå-mm-dd\"),\"\")","v":""},{"$f":"IF(DataLog!$C2802=\"Log value\",DataLog!E2802,\"\")","v":""},{"$f":"IF(DataLog!$C2802=\"Log value\",DataLog!F2802,\"\")","v":""},{"$f":"IF(DataLog!$C2802=\"Log value\",DataLog!G2802,\"\")","v":""},{"$f":"IF(DataLog!$C2802=\"Log value\",DataLog!H2802,\"\")","v":""},{"$f":"IF(DataLog!$C2802=\"Log value\",DataLog!I2802,\"\")","v":""},{"$f":"IF(DataLog!$C2802=\"Log value\",DataLog!J2802,\"\")","v":""},{"$f":"IF(DataLog!$C2802=\"Log value\",DataLog!K2802,\"\")","v":""},{"$f":"IF(DataLog!$C2802=\"Log value\",DataLog!L2802,\"\")","v":""},{"$f":"IF(DataLog!$C2802=\"Log value\",DataLog!M2802,\"\")","v":""},{"$f":"IF(DataLog!$C2802=\"Log value\",DataLog!N2802,\"\")","v":""},{"$f":"IF(DataLog!$C2802=\"Log value\",DataLog!O2802,\"\")","v":""},{"$f":"IF(DataLog!$C2802=\"Log value\",DataLog!P2802,\"\")","v":""},{"$f":"IF(DataLog!$C2802=\"Log value\",DataLog!Q2802,\"\")","v":""},{"$f":"IF(DataLog!$C2802=\"Log value\",DataLog!R2802,\"\")","v":""},{"$f":"IF(DataLog!$C2802=\"Log value\",DataLog!S2802,\"\")","v":""},{"$f":"IF(DataLog!$C2802=\"Log value\",DataLog!T2802,\"\")","v":""},{"$f":"IF(DataLog!$C2802=\"Log value\",DataLog!U2802,\"\")","v":""},{"$f":"IF(DataLog!$C2802=\"Log value\",DataLog!V2802,\"\")","v":""},{"$f":"IF(DataLog!$C2802=\"Log value\",DataLog!W2802,\"\")","v":""},{"$f":"IF(DataLog!$C2802=\"Log value\",DataLog!X2802,\"\")","v":""},{"$f":"IF(DataLog!$C2802=\"Log value\",DataLog!Y2802,\"\")","v":""},{"$f":"IF(DataLog!$C2802=\"Log value\",DataLog!Z2802,\"\")","v":""},{"$f":"IF(DataLog!$C2802=\"Log value\",DataLog!AA2802,\"\")","v":""},{"$f":"IF(DataLog!$C2802=\"Log value\",DataLog!AB2802,\"\")","v":""},{"$f":"IF(DataLog!$C2802=\"Log value\",DataLog!AC2802,\"\")","v":""},{"$f":"IF(DataLog!$C2802=\"Log value\",DataLog!AD2802,\"\")","v":""},{"$f":"IF(DataLog!$C2802=\"Log value\",DataLog!AE2802,\"\")","v":""},{"$f":"IF(DataLog!$C2802=\"Log value\",DataLog!AF2802,\"\")","v":""},{"$f":"IF(DataLog!$C2802=\"Log value\",DataLog!AG2802,\"\")","v":""},{"$f":"IF(DataLog!$C2802=\"Log value\",DataLog!AH2802,\"\")","v":""},{"$f":"IF(DataLog!$C2802=\"Log value\",DataLog!AI2802,\"\")","v":""},{"$f":"IF(DataLog!$C2802=\"Log value\",DataLog!AJ2802,\"\")","v":""},{"$f":"IF(DataLog!$C2802=\"Log value\",DataLog!AK2802,\"\")","v":""},{"$f":"IF(DataLog!$C2802=\"Log value\",DataLog!AL2802,\"\")","v":""},{"$f":"IF(DataLog!$C2802=\"Log value\",DataLog!AM2802,\"\")","v":""}]
[null,null,null,null,null,null,{"$f":"IF(DataLog!$C2805=\"Log value\",DataLog!D2805&\"_\"&TEXT(DataLog!B2805,\"åååå-mm-dd\"),\"\")","v":""},{"$f":"IF(DataLog!$C2805=\"Log value\",DataLog!E2805,\"\")","v":""},{"$f":"IF(DataLog!$C2805=\"Log value\",DataLog!F2805,\"\")","v":""},{"$f":"IF(DataLog!$C2805=\"Log value\",DataLog!G2805,\"\")","v":""},{"$f":"IF(DataLog!$C2805=\"Log value\",DataLog!H2805,\"\")","v":""},{"$f":"IF(DataLog!$C2805=\"Log value\",DataLog!I2805,\"\")","v":""},{"$f":"IF(DataLog!$C2805=\"Log value\",DataLog!J2805,\"\")","v":""},{"$f":"IF(DataLog!$C2805=\"Log value\",DataLog!K2805,\"\")","v":""},{"$f":"IF(DataLog!$C2805=\"Log value\",DataLog!L2805,\"\")","v":""},{"$f":"IF(DataLog!$C2805=\"Log value\",DataLog!M2805,\"\")","v":""},{"$f":"IF(DataLog!$C2805=\"Log value\",DataLog!N2805,\"\")","v":""},{"$f":"IF(DataLog!$C2805=\"Log value\",DataLog!O2805,\"\")","v":""},{"$f":"IF(DataLog!$C2805=\"Log value\",DataLog!P2805,\"\")","v":""},{"$f":"IF(DataLog!$C2805=\"Log value\",DataLog!Q2805,\"\")","v":""},{"$f":"IF(DataLog!$C2805=\"Log value\",DataLog!R2805,\"\")","v":""},{"$f":"IF(DataLog!$C2805=\"Log value\",DataLog!S2805,\"\")","v":""},{"$f":"IF(DataLog!$C2805=\"Log value\",DataLog!T2805,\"\")","v":""},{"$f":"IF(DataLog!$C2805=\"Log value\",DataLog!U2805,\"\")","v":""},{"$f":"IF(DataLog!$C2805=\"Log value\",DataLog!V2805,\"\")","v":""},{"$f":"IF(DataLog!$C2805=\"Log value\",DataLog!W2805,\"\")","v":""},{"$f":"IF(DataLog!$C2805=\"Log value\",DataLog!X2805,\"\")","v":""},{"$f":"IF(DataLog!$C2805=\"Log value\",DataLog!Y2805,\"\")","v":""},{"$f":"IF(DataLog!$C2805=\"Log value\",DataLog!Z2805,\"\")","v":""},{"$f":"IF(DataLog!$C2805=\"Log value\",DataLog!AA2805,\"\")","v":""},{"$f":"IF(DataLog!$C2805=\"Log value\",DataLog!AB2805,\"\")","v":""},{"$f":"IF(DataLog!$C2805=\"Log value\",DataLog!AC2805,\"\")","v":""},{"$f":"IF(DataLog!$C2805=\"Log value\",DataLog!AD2805,\"\")","v":""},{"$f":"IF(DataLog!$C2805=\"Log value\",DataLog!AE2805,\"\")","v":""},{"$f":"IF(DataLog!$C2805=\"Log value\",DataLog!AF2805,\"\")","v":""},{"$f":"IF(DataLog!$C2805=\"Log value\",DataLog!AG2805,\"\")","v":""},{"$f":"IF(DataLog!$C2805=\"Log value\",DataLog!AH2805,\"\")","v":""},{"$f":"IF(DataLog!$C2805=\"Log value\",DataLog!AI2805,\"\")","v":""},{"$f":"IF(DataLog!$C2805=\"Log value\",DataLog!AJ2805,\"\")","v":""},{"$f":"IF(DataLog!$C2805=\"Log value\",DataLog!AK2805,\"\")","v":""},{"$f":"IF(DataLog!$C2805=\"Log value\",DataLog!AL2805,\"\")","v":""},{"$f":"IF(DataLog!$C2805=\"Log value\",DataLog!AM2805,\"\")","v":""}]
[null,null,null,null,null,null,{"$f":"IF(DataLog!$C2808=\"Log value\",DataLog!D2808&\"_\"&TEXT(DataLog!B2808,\"åååå-mm-dd\"),\"\")","v":""},{"$f":"IF(DataLog!$C2808=\"Log value\",DataLog!E2808,\"\")","v":""},{"$f":"IF(DataLog!$C2808=\"Log value\",DataLog!F2808,\"\")","v":""},{"$f":"IF(DataLog!$C2808=\"Log value\",DataLog!G2808,\"\")","v":""},{"$f":"IF(DataLog!$C2808=\"Log value\",DataLog!H2808,\"\")","v":""},{"$f":"IF(DataLog!$C2808=\"Log value\",DataLog!I2808,\"\")","v":""},{"$f":"IF(DataLog!$C2808=\"Log value\",DataLog!J2808,\"\")","v":""},{"$f":"IF(DataLog!$C2808=\"Log value\",DataLog!K2808,\"\")","v":""},{"$f":"IF(DataLog!$C2808=\"Log value\",DataLog!L2808,\"\")","v":""},{"$f":"IF(DataLog!$C2808=\"Log value\",DataLog!M2808,\"\")","v":""},{"$f":"IF(DataLog!$C2808=\"Log value\",DataLog!N2808,\"\")","v":""},{"$f":"IF(DataLog!$C2808=\"Log value\",DataLog!O2808,\"\")","v":""},{"$f":"IF(DataLog!$C2808=\"Log value\",DataLog!P2808,\"\")","v":""},{"$f":"IF(DataLog!$C2808=\"Log value\",DataLog!Q2808,\"\")","v":""},{"$f":"IF(DataLog!$C2808=\"Log value\",DataLog!R2808,\"\")","v":""},{"$f":"IF(DataLog!$C2808=\"Log value\",DataLog!S2808,\"\")","v":""},{"$f":"IF(DataLog!$C2808=\"Log value\",DataLog!T2808,\"\")","v":""},{"$f":"IF(DataLog!$C2808=\"Log value\",DataLog!U2808,\"\")","v":""},{"$f":"IF(DataLog!$C2808=\"Log value\",DataLog!V2808,\"\")","v":""},{"$f":"IF(DataLog!$C2808=\"Log value\",DataLog!W2808,\"\")","v":""},{"$f":"IF(DataLog!$C2808=\"Log value\",DataLog!X2808,\"\")","v":""},{"$f":"IF(DataLog!$C2808=\"Log value\",DataLog!Y2808,\"\")","v":""},{"$f":"IF(DataLog!$C2808=\"Log value\",DataLog!Z2808,\"\")","v":""},{"$f":"IF(DataLog!$C2808=\"Log value\",DataLog!AA2808,\"\")","v":""},{"$f":"IF(DataLog!$C2808=\"Log value\",DataLog!AB2808,\"\")","v":""},{"$f":"IF(DataLog!$C2808=\"Log value\",DataLog!AC2808,\"\")","v":""},{"$f":"IF(DataLog!$C2808=\"Log value\",DataLog!AD2808,\"\")","v":""},{"$f":"IF(DataLog!$C2808=\"Log value\",DataLog!AE2808,\"\")","v":""},{"$f":"IF(DataLog!$C2808=\"Log value\",DataLog!AF2808,\"\")","v":""},{"$f":"IF(DataLog!$C2808=\"Log value\",DataLog!AG2808,\"\")","v":""},{"$f":"IF(DataLog!$C2808=\"Log value\",DataLog!AH2808,\"\")","v":""},{"$f":"IF(DataLog!$C2808=\"Log value\",DataLog!AI2808,\"\")","v":""},{"$f":"IF(DataLog!$C2808=\"Log value\",DataLog!AJ2808,\"\")","v":""},{"$f":"IF(DataLog!$C2808=\"Log value\",DataLog!AK2808,\"\")","v":""},{"$f":"IF(DataLog!$C2808=\"Log value\",DataLog!AL2808,\"\")","v":""},{"$f":"IF(DataLog!$C2808=\"Log value\",DataLog!AM2808,\"\")","v":""}]
[null,null,null,null,null,null,{"$f":"IF(DataLog!$C2810=\"Log value\",DataLog!D2810&\"_\"&TEXT(DataLog!B2810,\"åååå-mm-dd\"),\"\")","v":""},{"$f":"IF(DataLog!$C2810=\"Log value\",DataLog!E2810,\"\")","v":""},{"$f":"IF(DataLog!$C2810=\"Log value\",DataLog!F2810,\"\")","v":""},{"$f":"IF(DataLog!$C2810=\"Log value\",DataLog!G2810,\"\")","v":""},{"$f":"IF(DataLog!$C2810=\"Log value\",DataLog!H2810,\"\")","v":""},{"$f":"IF(DataLog!$C2810=\"Log value\",DataLog!I2810,\"\")","v":""},{"$f":"IF(DataLog!$C2810=\"Log value\",DataLog!J2810,\"\")","v":""},{"$f":"IF(DataLog!$C2810=\"Log value\",DataLog!K2810,\"\")","v":""},{"$f":"IF(DataLog!$C2810=\"Log value\",DataLog!L2810,\"\")","v":""},{"$f":"IF(DataLog!$C2810=\"Log value\",DataLog!M2810,\"\")","v":""},{"$f":"IF(DataLog!$C2810=\"Log value\",DataLog!N2810,\"\")","v":""},{"$f":"IF(DataLog!$C2810=\"Log value\",DataLog!O2810,\"\")","v":""},{"$f":"IF(DataLog!$C2810=\"Log value\",DataLog!P2810,\"\")","v":""},{"$f":"IF(DataLog!$C2810=\"Log value\",DataLog!Q2810,\"\")","v":""},{"$f":"IF(DataLog!$C2810=\"Log value\",DataLog!R2810,\"\")","v":""},{"$f":"IF(DataLog!$C2810=\"Log value\",DataLog!S2810,\"\")","v":""},{"$f":"IF(DataLog!$C2810=\"Log value\",DataLog!T2810,\"\")","v":""},{"$f":"IF(DataLog!$C2810=\"Log value\",DataLog!U2810,\"\")","v":""},{"$f":"IF(DataLog!$C2810=\"Log value\",DataLog!V2810,\"\")","v":""},{"$f":"IF(DataLog!$C2810=\"Log value\",DataLog!W2810,\"\")","v":""},{"$f":"IF(DataLog!$C2810=\"Log value\",DataLog!X2810,\"\")","v":""},{"$f":"IF(DataLog!$C2810=\"Log value\",DataLog!Y2810,\"\")","v":""},{"$f":"IF(DataLog!$C2810=\"Log value\",DataLog!Z2810,\"\")","v":""},{"$f":"IF(DataLog!$C2810=\"Log value\",DataLog!AA2810,\"\")","v":""},{"$f":"IF(DataLog!$C2810=\"Log value\",DataLog!AB2810,\"\")","v":""},{"$f":"IF(DataLog!$C2810=\"Log value\",DataLog!AC2810,\"\")","v":""},{"$f":"IF(DataLog!$C2810=\"Log value\",DataLog!AD2810,\"\")","v":""},{"$f":"IF(DataLog!$C2810=\"Log value\",DataLog!AE2810,\"\")","v":""},{"$f":"IF(DataLog!$C2810=\"Log value\",DataLog!AF2810,\"\")","v":""},{"$f":"IF(DataLog!$C2810=\"Log value\",DataLog!AG2810,\"\")","v":""},{"$f":"IF(DataLog!$C2810=\"Log value\",DataLog!AH2810,\"\")","v":""},{"$f":"IF(DataLog!$C2810=\"Log value\",DataLog!AI2810,\"\")","v":""},{"$f":"IF(DataLog!$C2810=\"Log value\",DataLog!AJ2810,\"\")","v":""},{"$f":"IF(DataLog!$C2810=\"Log value\",DataLog!AK2810,\"\")","v":""},{"$f":"IF(DataLog!$C2810=\"Log value\",DataLog!AL2810,\"\")","v":""},{"$f":"IF(DataLog!$C2810=\"Log value\",DataLog!AM2810,\"\")","v":""}]
[null,null,null,null,null,null,{"$f":"IF(DataLog!$C2811=\"Log value\",DataLog!D2811&\"_\"&TEXT(DataLog!B2811,\"åååå-mm-dd\"),\"\")","v":""},{"$f":"IF(DataLog!$C2811=\"Log value\",DataLog!E2811,\"\")","v":""},{"$f":"IF(DataLog!$C2811=\"Log value\",DataLog!F2811,\"\")","v":""},{"$f":"IF(DataLog!$C2811=\"Log value\",DataLog!G2811,\"\")","v":""},{"$f":"IF(DataLog!$C2811=\"Log value\",DataLog!H2811,\"\")","v":""},{"$f":"IF(DataLog!$C2811=\"Log value\",DataLog!I2811,\"\")","v":""},{"$f":"IF(DataLog!$C2811=\"Log value\",DataLog!J2811,\"\")","v":""},{"$f":"IF(DataLog!$C2811=\"Log value\",DataLog!K2811,\"\")","v":""},{"$f":"IF(DataLog!$C2811=\"Log value\",DataLog!L2811,\"\")","v":""},{"$f":"IF(DataLog!$C2811=\"Log value\",DataLog!M2811,\"\")","v":""},{"$f":"IF(DataLog!$C2811=\"Log value\",DataLog!N2811,\"\")","v":""},{"$f":"IF(DataLog!$C2811=\"Log value\",DataLog!O2811,\"\")","v":""},{"$f":"IF(DataLog!$C2811=\"Log value\",DataLog!P2811,\"\")","v":""},{"$f":"IF(DataLog!$C2811=\"Log value\",DataLog!Q2811,\"\")","v":""},{"$f":"IF(DataLog!$C2811=\"Log value\",DataLog!R2811,\"\")","v":""},{"$f":"IF(DataLog!$C2811=\"Log value\",DataLog!S2811,\"\")","v":""},{"$f":"IF(DataLog!$C2811=\"Log value\",DataLog!T2811,\"\")","v":""},{"$f":"IF(DataLog!$C2811=\"Log value\",DataLog!U2811,\"\")","v":""},{"$f":"IF(DataLog!$C2811=\"Log value\",DataLog!V2811,\"\")","v":""},{"$f":"IF(DataLog!$C2811=\"Log value\",DataLog!W2811,\"\")","v":""},{"$f":"IF(DataLog!$C2811=\"Log value\",DataLog!X2811,\"\")","v":""},{"$f":"IF(DataLog!$C2811=\"Log value\",DataLog!Y2811,\"\")","v":""},{"$f":"IF(DataLog!$C2811=\"Log value\",DataLog!Z2811,\"\")","v":""},{"$f":"IF(DataLog!$C2811=\"Log value\",DataLog!AA2811,\"\")","v":""},{"$f":"IF(DataLog!$C2811=\"Log value\",DataLog!AB2811,\"\")","v":""},{"$f":"IF(DataLog!$C2811=\"Log value\",DataLog!AC2811,\"\")","v":""},{"$f":"IF(DataLog!$C2811=\"Log value\",DataLog!AD2811,\"\")","v":""},{"$f":"IF(DataLog!$C2811=\"Log value\",DataLog!AE2811,\"\")","v":""},{"$f":"IF(DataLog!$C2811=\"Log value\",DataLog!AF2811,\"\")","v":""},{"$f":"IF(DataLog!$C2811=\"Log value\",DataLog!AG2811,\"\")","v":""},{"$f":"IF(DataLog!$C2811=\"Log value\",DataLog!AH2811,\"\")","v":""},{"$f":"IF(DataLog!$C2811=\"Log value\",DataLog!AI2811,\"\")","v":""},{"$f":"IF(DataLog!$C2811=\"Log value\",DataLog!AJ2811,\"\")","v":""},{"$f":"IF(DataLog!$C2811=\"Log value\",DataLog!AK2811,\"\")","v":""},{"$f":"IF(DataLog!$C2811=\"Log value\",DataLog!AL2811,\"\")","v":""},{"$f":"IF(DataLog!$C2811=\"Log value\",DataLog!AM2811,\"\")","v":""}]
[null,null,null,null,null,null,{"$f":"IF(DataLog!$C2814=\"Log value\",DataLog!D2814&\"_\"&TEXT(DataLog!B2814,\"åååå-mm-dd\"),\"\")","v":""},{"$f":"IF(DataLog!$C2814=\"Log value\",DataLog!E2814,\"\")","v":""},{"$f":"IF(DataLog!$C2814=\"Log value\",DataLog!F2814,\"\")","v":""},{"$f":"IF(DataLog!$C2814=\"Log value\",DataLog!G2814,\"\")","v":""},{"$f":"IF(DataLog!$C2814=\"Log value\",DataLog!H2814,\"\")","v":""},{"$f":"IF(DataLog!$C2814=\"Log value\",DataLog!I2814,\"\")","v":""},{"$f":"IF(DataLog!$C2814=\"Log value\",DataLog!J2814,\"\")","v":""},{"$f":"IF(DataLog!$C2814=\"Log value\",DataLog!K2814,\"\")","v":""},{"$f":"IF(DataLog!$C2814=\"Log value\",DataLog!L2814,\"\")","v":""},{"$f":"IF(DataLog!$C2814=\"Log value\",DataLog!M2814,\"\")","v":""},{"$f":"IF(DataLog!$C2814=\"Log value\",DataLog!N2814,\"\")","v":""},{"$f":"IF(DataLog!$C2814=\"Log value\",DataLog!O2814,\"\")","v":""},{"$f":"IF(DataLog!$C2814=\"Log value\",DataLog!P2814,\"\")","v":""},{"$f":"IF(DataLog!$C2814=\"Log value\",DataLog!Q2814,\"\")","v":""},{"$f":"IF(DataLog!$C2814=\"Log value\",DataLog!R2814,\"\")","v":""},{"$f":"IF(DataLog!$C2814=\"Log value\",DataLog!S2814,\"\")","v":""},{"$f":"IF(DataLog!$C2814=\"Log value\",DataLog!T2814,\"\")","v":""},{"$f":"IF(DataLog!$C2814=\"Log value\",DataLog!U2814,\"\")","v":""},{"$f":"IF(DataLog!$C2814=\"Log value\",DataLog!V2814,\"\")","v":""},{"$f":"IF(DataLog!$C2814=\"Log value\",DataLog!W2814,\"\")","v":""},{"$f":"IF(DataLog!$C2814=\"Log value\",DataLog!X2814,\"\")","v":""},{"$f":"IF(DataLog!$C2814=\"Log value\",DataLog!Y2814,\"\")","v":""},{"$f":"IF(DataLog!$C2814=\"Log value\",DataLog!Z2814,\"\")","v":""},{"$f":"IF(DataLog!$C2814=\"Log value\",DataLog!AA2814,\"\")","v":""},{"$f":"IF(DataLog!$C2814=\"Log value\",DataLog!AB2814,\"\")","v":""},{"$f":"IF(DataLog!$C2814=\"Log value\",DataLog!AC2814,\"\")","v":""},{"$f":"IF(DataLog!$C2814=\"Log value\",DataLog!AD2814,\"\")","v":""},{"$f":"IF(DataLog!$C2814=\"Log value\",DataLog!AE2814,\"\")","v":""},{"$f":"IF(DataLog!$C2814=\"Log value\",DataLog!AF2814,\"\")","v":""},{"$f":"IF(DataLog!$C2814=\"Log value\",DataLog!AG2814,\"\")","v":""},{"$f":"IF(DataLog!$C2814=\"Log value\",DataLog!AH2814,\"\")","v":""},{"$f":"IF(DataLog!$C2814=\"Log value\",DataLog!AI2814,\"\")","v":""},{"$f":"IF(DataLog!$C2814=\"Log value\",DataLog!AJ2814,\"\")","v":""},{"$f":"IF(DataLog!$C2814=\"Log value\",DataLog!AK2814,\"\")","v":""},{"$f":"IF(DataLog!$C2814=\"Log value\",DataLog!AL2814,\"\")","v":""},{"$f":"IF(DataLog!$C2814=\"Log value\",DataLog!AM2814,\"\")","v":""}]
[null,null,null,null,null,null,{"$f":"IF(DataLog!$C2816=\"Log value\",DataLog!D2816&\"_\"&TEXT(DataLog!B2816,\"åååå-mm-dd\"),\"\")","v":""},{"$f":"IF(DataLog!$C2816=\"Log value\",DataLog!E2816,\"\")","v":""},{"$f":"IF(DataLog!$C2816=\"Log value\",DataLog!F2816,\"\")","v":""},{"$f":"IF(DataLog!$C2816=\"Log value\",DataLog!G2816,\"\")","v":""},{"$f":"IF(DataLog!$C2816=\"Log value\",DataLog!H2816,\"\")","v":""},{"$f":"IF(DataLog!$C2816=\"Log value\",DataLog!I2816,\"\")","v":""},{"$f":"IF(DataLog!$C2816=\"Log value\",DataLog!J2816,\"\")","v":""},{"$f":"IF(DataLog!$C2816=\"Log value\",DataLog!K2816,\"\")","v":""},{"$f":"IF(DataLog!$C2816=\"Log value\",DataLog!L2816,\"\")","v":""},{"$f":"IF(DataLog!$C2816=\"Log value\",DataLog!M2816,\"\")","v":""},{"$f":"IF(DataLog!$C2816=\"Log value\",DataLog!N2816,\"\")","v":""},{"$f":"IF(DataLog!$C2816=\"Log value\",DataLog!O2816,\"\")","v":""},{"$f":"IF(DataLog!$C2816=\"Log value\",DataLog!P2816,\"\")","v":""},{"$f":"IF(DataLog!$C2816=\"Log value\",DataLog!Q2816,\"\")","v":""},{"$f":"IF(DataLog!$C2816=\"Log value\",DataLog!R2816,\"\")","v":""},{"$f":"IF(DataLog!$C2816=\"Log value\",DataLog!S2816,\"\")","v":""},{"$f":"IF(DataLog!$C2816=\"Log value\",DataLog!T2816,\"\")","v":""},{"$f":"IF(DataLog!$C2816=\"Log value\",DataLog!U2816,\"\")","v":""},{"$f":"IF(DataLog!$C2816=\"Log value\",DataLog!V2816,\"\")","v":""},{"$f":"IF(DataLog!$C2816=\"Log value\",DataLog!W2816,\"\")","v":""},{"$f":"IF(DataLog!$C2816=\"Log value\",DataLog!X2816,\"\")","v":""},{"$f":"IF(DataLog!$C2816=\"Log value\",DataLog!Y2816,\"\")","v":""},{"$f":"IF(DataLog!$C2816=\"Log value\",DataLog!Z2816,\"\")","v":""},{"$f":"IF(DataLog!$C2816=\"Log value\",DataLog!AA2816,\"\")","v":""},{"$f":"IF(DataLog!$C2816=\"Log value\",DataLog!AB2816,\"\")","v":""},{"$f":"IF(DataLog!$C2816=\"Log value\",DataLog!AC2816,\"\")","v":""},{"$f":"IF(DataLog!$C2816=\"Log value\",DataLog!AD2816,\"\")","v":""},{"$f":"IF(DataLog!$C2816=\"Log value\",DataLog!AE2816,\"\")","v":""},{"$f":"IF(DataLog!$C2816=\"Log value\",DataLog!AF2816,\"\")","v":""},{"$f":"IF(DataLog!$C2816=\"Log value\",DataLog!AG2816,\"\")","v":""},{"$f":"IF(DataLog!$C2816=\"Log value\",DataLog!AH2816,\"\")","v":""},{"$f":"IF(DataLog!$C2816=\"Log value\",DataLog!AI2816,\"\")","v":""},{"$f":"IF(DataLog!$C2816=\"Log value\",DataLog!AJ2816,\"\")","v":""},{"$f":"IF(DataLog!$C2816=\"Log value\",DataLog!AK2816,\"\")","v":""},{"$f":"IF(DataLog!$C2816=\"Log value\",DataLog!AL2816,\"\")","v":""},{"$f":"IF(DataLog!$C2816=\"Log value\",DataLog!AM2816,\"\")","v":""}]
[null,null,null,null,null,null,{"$f":"IF(DataLog!$C2819=\"Log value\",DataLog!D2819&\"_\"&TEXT(DataLog!B2819,\"åååå-mm-dd\"),\"\")","v":""},{"$f":"IF(DataLog!$C2819=\"Log value\",DataLog!E2819,\"\")","v":""},{"$f":"IF(DataLog!$C2819=\"Log value\",DataLog!F2819,\"\")","v":""},{"$f":"IF(DataLog!$C2819=\"Log value\",DataLog!G2819,\"\")","v":""},{"$f":"IF(DataLog!$C2819=\"Log value\",DataLog!H2819,\"\")","v":""},{"$f":"IF(DataLog!$C2819=\"Log value\",DataLog!I2819,\"\")","v":""},{"$f":"IF(DataLog!$C2819=\"Log value\",DataLog!J2819,\"\")","v":""},{"$f":"IF(DataLog!$C2819=\"Log value\",DataLog!K2819,\"\")","v":""},{"$f":"IF(DataLog!$C2819=\"Log value\",DataLog!L2819,\"\")","v":""},{"$f":"IF(DataLog!$C2819=\"Log value\",DataLog!M2819,\"\")","v":""},{"$f":"IF(DataLog!$C2819=\"Log value\",DataLog!N2819,\"\")","v":""},{"$f":"IF(DataLog!$C2819=\"Log value\",DataLog!O2819,\"\")","v":""},{"$f":"IF(DataLog!$C2819=\"Log value\",DataLog!P2819,\"\")","v":""},{"$f":"IF(DataLog!$C2819=\"Log value\",DataLog!Q2819,\"\")","v":""},{"$f":"IF(DataLog!$C2819=\"Log value\",DataLog!R2819,\"\")","v":""},{"$f":"IF(DataLog!$C2819=\"Log value\",DataLog!S2819,\"\")","v":""},{"$f":"IF(DataLog!$C2819=\"Log value\",DataLog!T2819,\"\")","v":""},{"$f":"IF(DataLog!$C2819=\"Log value\",DataLog!U2819,\"\")","v":""},{"$f":"IF(DataLog!$C2819=\"Log value\",DataLog!V2819,\"\")","v":""},{"$f":"IF(DataLog!$C2819=\"Log value\",DataLog!W2819,\"\")","v":""},{"$f":"IF(DataLog!$C2819=\"Log value\",DataLog!X2819,\"\")","v":""},{"$f":"IF(DataLog!$C2819=\"Log value\",DataLog!Y2819,\"\")","v":""},{"$f":"IF(DataLog!$C2819=\"Log value\",DataLog!Z2819,\"\")","v":""},{"$f":"IF(DataLog!$C2819=\"Log value\",DataLog!AA2819,\"\")","v":""},{"$f":"IF(DataLog!$C2819=\"Log value\",DataLog!AB2819,\"\")","v":""},{"$f":"IF(DataLog!$C2819=\"Log value\",DataLog!AC2819,\"\")","v":""},{"$f":"IF(DataLog!$C2819=\"Log value\",DataLog!AD2819,\"\")","v":""},{"$f":"IF(DataLog!$C2819=\"Log value\",DataLog!AE2819,\"\")","v":""},{"$f":"IF(DataLog!$C2819=\"Log value\",DataLog!AF2819,\"\")","v":""},{"$f":"IF(DataLog!$C2819=\"Log value\",DataLog!AG2819,\"\")","v":""},{"$f":"IF(DataLog!$C2819=\"Log value\",DataLog!AH2819,\"\")","v":""},{"$f":"IF(DataLog!$C2819=\"Log value\",DataLog!AI2819,\"\")","v":""},{"$f":"IF(DataLog!$C2819=\"Log value\",DataLog!AJ2819,\"\")","v":""},{"$f":"IF(DataLog!$C2819=\"Log value\",DataLog!AK2819,\"\")","v":""},{"$f":"IF(DataLog!$C2819=\"Log value\",DataLog!AL2819,\"\")","v":""},{"$f":"IF(DataLog!$C2819=\"Log value\",DataLog!AM2819,\"\")","v":""}]
[null,null,null,null,null,null,{"$f":"IF(DataLog!$C2820=\"Log value\",DataLog!D2820&\"_\"&TEXT(DataLog!B2820,\"åååå-mm-dd\"),\"\")","v":""},{"$f":"IF(DataLog!$C2820=\"Log value\",DataLog!E2820,\"\")","v":""},{"$f":"IF(DataLog!$C2820=\"Log value\",DataLog!F2820,\"\")","v":""},{"$f":"IF(DataLog!$C2820=\"Log value\",DataLog!G2820,\"\")","v":""},{"$f":"IF(DataLog!$C2820=\"Log value\",DataLog!H2820,\"\")","v":""},{"$f":"IF(DataLog!$C2820=\"Log value\",DataLog!I2820,\"\")","v":""},{"$f":"IF(DataLog!$C2820=\"Log value\",DataLog!J2820,\"\")","v":""},{"$f":"IF(DataLog!$C2820=\"Log value\",DataLog!K2820,\"\")","v":""},{"$f":"IF(DataLog!$C2820=\"Log value\",DataLog!L2820,\"\")","v":""},{"$f":"IF(DataLog!$C2820=\"Log value\",DataLog!M2820,\"\")","v":""},{"$f":"IF(DataLog!$C2820=\"Log value\",DataLog!N2820,\"\")","v":""},{"$f":"IF(DataLog!$C2820=\"Log value\",DataLog!O2820,\"\")","v":""},{"$f":"IF(DataLog!$C2820=\"Log value\",DataLog!P2820,\"\")","v":""},{"$f":"IF(DataLog!$C2820=\"Log value\",DataLog!Q2820,\"\")","v":""},{"$f":"IF(DataLog!$C2820=\"Log value\",DataLog!R2820,\"\")","v":""},{"$f":"IF(DataLog!$C2820=\"Log value\",DataLog!S2820,\"\")","v":""},{"$f":"IF(DataLog!$C2820=\"Log value\",DataLog!T2820,\"\")","v":""},{"$f":"IF(DataLog!$C2820=\"Log value\",DataLog!U2820,\"\")","v":""},{"$f":"IF(DataLog!$C2820=\"Log value\",DataLog!V2820,\"\")","v":""},{"$f":"IF(DataLog!$C2820=\"Log value\",DataLog!W2820,\"\")","v":""},{"$f":"IF(DataLog!$C2820=\"Log value\",DataLog!X2820,\"\")","v":""},{"$f":"IF(DataLog!$C2820=\"Log value\",DataLog!Y2820,\"\")","v":""},{"$f":"IF(DataLog!$C2820=\"Log value\",DataLog!Z2820,\"\")","v":""},{"$f":"IF(DataLog!$C2820=\"Log value\",DataLog!AA2820,\"\")","v":""},{"$f":"IF(DataLog!$C2820=\"Log value\",DataLog!AB2820,\"\")","v":""},{"$f":"IF(DataLog!$C2820=\"Log value\",DataLog!AC2820,\"\")","v":""},{"$f":"IF(DataLog!$C2820=\"Log value\",DataLog!AD2820,\"\")","v":""},{"$f":"IF(DataLog!$C2820=\"Log value\",DataLog!AE2820,\"\")","v":""},{"$f":"IF(DataLog!$C2820=\"Log value\",DataLog!AF2820,\"\")","v":""},{"$f":"IF(DataLog!$C2820=\"Log value\",DataLog!AG2820,\"\")","v":""},{"$f":"IF(DataLog!$C2820=\"Log value\",DataLog!AH2820,\"\")","v":""},{"$f":"IF(DataLog!$C2820=\"Log value\",DataLog!AI2820,\"\")","v":""},{"$f":"IF(DataLog!$C2820=\"Log value\",DataLog!AJ2820,\"\")","v":""},{"$f":"IF(DataLog!$C2820=\"Log value\",DataLog!AK2820,\"\")","v":""},{"$f":"IF(DataLog!$C2820=\"Log value\",DataLog!AL2820,\"\")","v":""},{"$f":"IF(DataLog!$C2820=\"Log value\",DataLog!AM2820,\"\")","v":""}]
[null,null,null,null,null,null,{"$f":"IF(DataLog!$C2823=\"Log value\",DataLog!D2823&\"_\"&TEXT(DataLog!B2823,\"åååå-mm-dd\"),\"\")","v":""},{"$f":"IF(DataLog!$C2823=\"Log value\",DataLog!E2823,\"\")","v":""},{"$f":"IF(DataLog!$C2823=\"Log value\",DataLog!F2823,\"\")","v":""},{"$f":"IF(DataLog!$C2823=\"Log value\",DataLog!G2823,\"\")","v":""},{"$f":"IF(DataLog!$C2823=\"Log value\",DataLog!H2823,\"\")","v":""},{"$f":"IF(DataLog!$C2823=\"Log value\",DataLog!I2823,\"\")","v":""},{"$f":"IF(DataLog!$C2823=\"Log value\",DataLog!J2823,\"\")","v":""},{"$f":"IF(DataLog!$C2823=\"Log value\",DataLog!K2823,\"\")","v":""},{"$f":"IF(DataLog!$C2823=\"Log value\",DataLog!L2823,\"\")","v":""},{"$f":"IF(DataLog!$C2823=\"Log value\",DataLog!M2823,\"\")","v":""},{"$f":"IF(DataLog!$C2823=\"Log value\",DataLog!N2823,\"\")","v":""},{"$f":"IF(DataLog!$C2823=\"Log value\",DataLog!O2823,\"\")","v":""},{"$f":"IF(DataLog!$C2823=\"Log value\",DataLog!P2823,\"\")","v":""},{"$f":"IF(DataLog!$C2823=\"Log value\",DataLog!Q2823,\"\")","v":""},{"$f":"IF(DataLog!$C2823=\"Log value\",DataLog!R2823,\"\")","v":""},{"$f":"IF(DataLog!$C2823=\"Log value\",DataLog!S2823,\"\")","v":""},{"$f":"IF(DataLog!$C2823=\"Log value\",DataLog!T2823,\"\")","v":""},{"$f":"IF(DataLog!$C2823=\"Log value\",DataLog!U2823,\"\")","v":""},{"$f":"IF(DataLog!$C2823=\"Log value\",DataLog!V2823,\"\")","v":""},{"$f":"IF(DataLog!$C2823=\"Log value\",DataLog!W2823,\"\")","v":""},{"$f":"IF(DataLog!$C2823=\"Log value\",DataLog!X2823,\"\")","v":""},{"$f":"IF(DataLog!$C2823=\"Log value\",DataLog!Y2823,\"\")","v":""},{"$f":"IF(DataLog!$C2823=\"Log value\",DataLog!Z2823,\"\")","v":""},{"$f":"IF(DataLog!$C2823=\"Log value\",DataLog!AA2823,\"\")","v":""},{"$f":"IF(DataLog!$C2823=\"Log value\",DataLog!AB2823,\"\")","v":""},{"$f":"IF(DataLog!$C2823=\"Log value\",DataLog!AC2823,\"\")","v":""},{"$f":"IF(DataLog!$C2823=\"Log value\",DataLog!AD2823,\"\")","v":""},{"$f":"IF(DataLog!$C2823=\"Log value\",DataLog!AE2823,\"\")","v":""},{"$f":"IF(DataLog!$C2823=\"Log value\",DataLog!AF2823,\"\")","v":""},{"$f":"IF(DataLog!$C2823=\"Log value\",DataLog!AG2823,\"\")","v":""},{"$f":"IF(DataLog!$C2823=\"Log value\",DataLog!AH2823,\"\")","v":""},{"$f":"IF(DataLog!$C2823=\"Log value\",DataLog!AI2823,\"\")","v":""},{"$f":"IF(DataLog!$C2823=\"Log value\",DataLog!AJ2823,\"\")","v":""},{"$f":"IF(DataLog!$C2823=\"Log value\",DataLog!AK2823,\"\")","v":""},{"$f":"IF(DataLog!$C2823=\"Log value\",DataLog!AL2823,\"\")","v":""},{"$f":"IF(DataLog!$C2823=\"Log value\",DataLog!AM2823,\"\")","v":""}]
[null,null,null,null,null,null,{"$f":"IF(DataLog!$C2826=\"Log value\",DataLog!D2826&\"_\"&TEXT(DataLog!B2826,\"åååå-mm-dd\"),\"\")","v":""},{"$f":"IF(DataLog!$C2826=\"Log value\",DataLog!E2826,\"\")","v":""},{"$f":"IF(DataLog!$C2826=\"Log value\",DataLog!F2826,\"\")","v":""},{"$f":"IF(DataLog!$C2826=\"Log value\",DataLog!G2826,\"\")","v":""},{"$f":"IF(DataLog!$C2826=\"Log value\",DataLog!H2826,\"\")","v":""},{"$f":"IF(DataLog!$C2826=\"Log value\",DataLog!I2826,\"\")","v":""},{"$f":"IF(DataLog!$C2826=\"Log value\",DataLog!J2826,\"\")","v":""},{"$f":"IF(DataLog!$C2826=\"Log value\",DataLog!K2826,\"\")","v":""},{"$f":"IF(DataLog!$C2826=\"Log value\",DataLog!L2826,\"\")","v":""},{"$f":"IF(DataLog!$C2826=\"Log value\",DataLog!M2826,\"\")","v":""},{"$f":"IF(DataLog!$C2826=\"Log value\",DataLog!N2826,\"\")","v":""},{"$f":"IF(DataLog!$C2826=\"Log value\",DataLog!O2826,\"\")","v":""},{"$f":"IF(DataLog!$C2826=\"Log value\",DataLog!P2826,\"\")","v":""},{"$f":"IF(DataLog!$C2826=\"Log value\",DataLog!Q2826,\"\")","v":""},{"$f":"IF(DataLog!$C2826=\"Log value\",DataLog!R2826,\"\")","v":""},{"$f":"IF(DataLog!$C2826=\"Log value\",DataLog!S2826,\"\")","v":""},{"$f":"IF(DataLog!$C2826=\"Log value\",DataLog!T2826,\"\")","v":""},{"$f":"IF(DataLog!$C2826=\"Log value\",DataLog!U2826,\"\")","v":""},{"$f":"IF(DataLog!$C2826=\"Log value\",DataLog!V2826,\"\")","v":""},{"$f":"IF(DataLog!$C2826=\"Log value\",DataLog!W2826,\"\")","v":""},{"$f":"IF(DataLog!$C2826=\"Log value\",DataLog!X2826,\"\")","v":""},{"$f":"IF(DataLog!$C2826=\"Log value\",DataLog!Y2826,\"\")","v":""},{"$f":"IF(DataLog!$C2826=\"Log value\",DataLog!Z2826,\"\")","v":""},{"$f":"IF(DataLog!$C2826=\"Log value\",DataLog!AA2826,\"\")","v":""},{"$f":"IF(DataLog!$C2826=\"Log value\",DataLog!AB2826,\"\")","v":""},{"$f":"IF(DataLog!$C2826=\"Log value\",DataLog!AC2826,\"\")","v":""},{"$f":"IF(DataLog!$C2826=\"Log value\",DataLog!AD2826,\"\")","v":""},{"$f":"IF(DataLog!$C2826=\"Log value\",DataLog!AE2826,\"\")","v":""},{"$f":"IF(DataLog!$C2826=\"Log value\",DataLog!AF2826,\"\")","v":""},{"$f":"IF(DataLog!$C2826=\"Log value\",DataLog!AG2826,\"\")","v":""},{"$f":"IF(DataLog!$C2826=\"Log value\",DataLog!AH2826,\"\")","v":""},{"$f":"IF(DataLog!$C2826=\"Log value\",DataLog!AI2826,\"\")","v":""},{"$f":"IF(DataLog!$C2826=\"Log value\",DataLog!AJ2826,\"\")","v":""},{"$f":"IF(DataLog!$C2826=\"Log value\",DataLog!AK2826,\"\")","v":""},{"$f":"IF(DataLog!$C2826=\"Log value\",DataLog!AL2826,\"\")","v":""},{"$f":"IF(DataLog!$C2826=\"Log value\",DataLog!AM2826,\"\")","v":""}]
[null,null,null,null,null,null,{"$f":"IF(DataLog!$C2828=\"Log value\",DataLog!D2828&\"_\"&TEXT(DataLog!B2828,\"åååå-mm-dd\"),\"\")","v":""},{"$f":"IF(DataLog!$C2828=\"Log value\",DataLog!E2828,\"\")","v":""},{"$f":"IF(DataLog!$C2828=\"Log value\",DataLog!F2828,\"\")","v":""},{"$f":"IF(DataLog!$C2828=\"Log value\",DataLog!G2828,\"\")","v":""},{"$f":"IF(DataLog!$C2828=\"Log value\",DataLog!H2828,\"\")","v":""},{"$f":"IF(DataLog!$C2828=\"Log value\",DataLog!I2828,\"\")","v":""},{"$f":"IF(DataLog!$C2828=\"Log value\",DataLog!J2828,\"\")","v":""},{"$f":"IF(DataLog!$C2828=\"Log value\",DataLog!K2828,\"\")","v":""},{"$f":"IF(DataLog!$C2828=\"Log value\",DataLog!L2828,\"\")","v":""},{"$f":"IF(DataLog!$C2828=\"Log value\",DataLog!M2828,\"\")","v":""},{"$f":"IF(DataLog!$C2828=\"Log value\",DataLog!N2828,\"\")","v":""},{"$f":"IF(DataLog!$C2828=\"Log value\",DataLog!O2828,\"\")","v":""},{"$f":"IF(DataLog!$C2828=\"Log value\",DataLog!P2828,\"\")","v":""},{"$f":"IF(DataLog!$C2828=\"Log value\",DataLog!Q2828,\"\")","v":""},{"$f":"IF(DataLog!$C2828=\"Log value\",DataLog!R2828,\"\")","v":""},{"$f":"IF(DataLog!$C2828=\"Log value\",DataLog!S2828,\"\")","v":""},{"$f":"IF(DataLog!$C2828=\"Log value\",DataLog!T2828,\"\")","v":""},{"$f":"IF(DataLog!$C2828=\"Log value\",DataLog!U2828,\"\")","v":""},{"$f":"IF(DataLog!$C2828=\"Log value\",DataLog!V2828,\"\")","v":""},{"$f":"IF(DataLog!$C2828=\"Log value\",DataLog!W2828,\"\")","v":""},{"$f":"IF(DataLog!$C2828=\"Log value\",DataLog!X2828,\"\")","v":""},{"$f":"IF(DataLog!$C2828=\"Log value\",DataLog!Y2828,\"\")","v":""},{"$f":"IF(DataLog!$C2828=\"Log value\",DataLog!Z2828,\"\")","v":""},{"$f":"IF(DataLog!$C2828=\"Log value\",DataLog!AA2828,\"\")","v":""},{"$f":"IF(DataLog!$C2828=\"Log value\",DataLog!AB2828,\"\")","v":""},{"$f":"IF(DataLog!$C2828=\"Log value\",DataLog!AC2828,\"\")","v":""},{"$f":"IF(DataLog!$C2828=\"Log value\",DataLog!AD2828,\"\")","v":""},{"$f":"IF(DataLog!$C2828=\"Log value\",DataLog!AE2828,\"\")","v":""},{"$f":"IF(DataLog!$C2828=\"Log value\",DataLog!AF2828,\"\")","v":""},{"$f":"IF(DataLog!$C2828=\"Log value\",DataLog!AG2828,\"\")","v":""},{"$f":"IF(DataLog!$C2828=\"Log value\",DataLog!AH2828,\"\")","v":""},{"$f":"IF(DataLog!$C2828=\"Log value\",DataLog!AI2828,\"\")","v":""},{"$f":"IF(DataLog!$C2828=\"Log value\",DataLog!AJ2828,\"\")","v":""},{"$f":"IF(DataLog!$C2828=\"Log value\",DataLog!AK2828,\"\")","v":""},{"$f":"IF(DataLog!$C2828=\"Log value\",DataLog!AL2828,\"\")","v":""},{"$f":"IF(DataLog!$C2828=\"Log value\",DataLog!AM2828,\"\")","v":""}]
[null,null,null,null,null,null,{"$f":"IF(DataLog!$C2829=\"Log value\",DataLog!D2829&\"_\"&TEXT(DataLog!B2829,\"åååå-mm-dd\"),\"\")","v":""},{"$f":"IF(DataLog!$C2829=\"Log value\",DataLog!E2829,\"\")","v":""},{"$f":"IF(DataLog!$C2829=\"Log value\",DataLog!F2829,\"\")","v":""},{"$f":"IF(DataLog!$C2829=\"Log value\",DataLog!G2829,\"\")","v":""},{"$f":"IF(DataLog!$C2829=\"Log value\",DataLog!H2829,\"\")","v":""},{"$f":"IF(DataLog!$C2829=\"Log value\",DataLog!I2829,\"\")","v":""},{"$f":"IF(DataLog!$C2829=\"Log value\",DataLog!J2829,\"\")","v":""},{"$f":"IF(DataLog!$C2829=\"Log value\",DataLog!K2829,\"\")","v":""},{"$f":"IF(DataLog!$C2829=\"Log value\",DataLog!L2829,\"\")","v":""},{"$f":"IF(DataLog!$C2829=\"Log value\",DataLog!M2829,\"\")","v":""},{"$f":"IF(DataLog!$C2829=\"Log value\",DataLog!N2829,\"\")","v":""},{"$f":"IF(DataLog!$C2829=\"Log value\",DataLog!O2829,\"\")","v":""},{"$f":"IF(DataLog!$C2829=\"Log value\",DataLog!P2829,\"\")","v":""},{"$f":"IF(DataLog!$C2829=\"Log value\",DataLog!Q2829,\"\")","v":""},{"$f":"IF(DataLog!$C2829=\"Log value\",DataLog!R2829,\"\")","v":""},{"$f":"IF(DataLog!$C2829=\"Log value\",DataLog!S2829,\"\")","v":""},{"$f":"IF(DataLog!$C2829=\"Log value\",DataLog!T2829,\"\")","v":""},{"$f":"IF(DataLog!$C2829=\"Log value\",DataLog!U2829,\"\")","v":""},{"$f":"IF(DataLog!$C2829=\"Log value\",DataLog!V2829,\"\")","v":""},{"$f":"IF(DataLog!$C2829=\"Log value\",DataLog!W2829,\"\")","v":""},{"$f":"IF(DataLog!$C2829=\"Log value\",DataLog!X2829,\"\")","v":""},{"$f":"IF(DataLog!$C2829=\"Log value\",DataLog!Y2829,\"\")","v":""},{"$f":"IF(DataLog!$C2829=\"Log value\",DataLog!Z2829,\"\")","v":""},{"$f":"IF(DataLog!$C2829=\"Log value\",DataLog!AA2829,\"\")","v":""},{"$f":"IF(DataLog!$C2829=\"Log value\",DataLog!AB2829,\"\")","v":""},{"$f":"IF(DataLog!$C2829=\"Log value\",DataLog!AC2829,\"\")","v":""},{"$f":"IF(DataLog!$C2829=\"Log value\",DataLog!AD2829,\"\")","v":""},{"$f":"IF(DataLog!$C2829=\"Log value\",DataLog!AE2829,\"\")","v":""},{"$f":"IF(DataLog!$C2829=\"Log value\",DataLog!AF2829,\"\")","v":""},{"$f":"IF(DataLog!$C2829=\"Log value\",DataLog!AG2829,\"\")","v":""},{"$f":"IF(DataLog!$C2829=\"Log value\",DataLog!AH2829,\"\")","v":""},{"$f":"IF(DataLog!$C2829=\"Log value\",DataLog!AI2829,\"\")","v":""},{"$f":"IF(DataLog!$C2829=\"Log value\",DataLog!AJ2829,\"\")","v":""},{"$f":"IF(DataLog!$C2829=\"Log value\",DataLog!AK2829,\"\")","v":""},{"$f":"IF(DataLog!$C2829=\"Log value\",DataLog!AL2829,\"\")","v":""},{"$f":"IF(DataLog!$C2829=\"Log value\",DataLog!AM2829,\"\")","v":""}]
[null,null,null,null,null,null,{"$f":"IF(DataLog!$C2832=\"Log value\",DataLog!D2832&\"_\"&TEXT(DataLog!B2832,\"åååå-mm-dd\"),\"\")","v":""},{"$f":"IF(DataLog!$C2832=\"Log value\",DataLog!E2832,\"\")","v":""},{"$f":"IF(DataLog!$C2832=\"Log value\",DataLog!F2832,\"\")","v":""},{"$f":"IF(DataLog!$C2832=\"Log value\",DataLog!G2832,\"\")","v":""},{"$f":"IF(DataLog!$C2832=\"Log value\",DataLog!H2832,\"\")","v":""},{"$f":"IF(DataLog!$C2832=\"Log value\",DataLog!I2832,\"\")","v":""},{"$f":"IF(DataLog!$C2832=\"Log value\",DataLog!J2832,\"\")","v":""},{"$f":"IF(DataLog!$C2832=\"Log value\",DataLog!K2832,\"\")","v":""},{"$f":"IF(DataLog!$C2832=\"Log value\",DataLog!L2832,\"\")","v":""},{"$f":"IF(DataLog!$C2832=\"Log value\",DataLog!M2832,\"\")","v":""},{"$f":"IF(DataLog!$C2832=\"Log value\",DataLog!N2832,\"\")","v":""},{"$f":"IF(DataLog!$C2832=\"Log value\",DataLog!O2832,\"\")","v":""},{"$f":"IF(DataLog!$C2832=\"Log value\",DataLog!P2832,\"\")","v":""},{"$f":"IF(DataLog!$C2832=\"Log value\",DataLog!Q2832,\"\")","v":""},{"$f":"IF(DataLog!$C2832=\"Log value\",DataLog!R2832,\"\")","v":""},{"$f":"IF(DataLog!$C2832=\"Log value\",DataLog!S2832,\"\")","v":""},{"$f":"IF(DataLog!$C2832=\"Log value\",DataLog!T2832,\"\")","v":""},{"$f":"IF(DataLog!$C2832=\"Log value\",DataLog!U2832,\"\")","v":""},{"$f":"IF(DataLog!$C2832=\"Log value\",DataLog!V2832,\"\")","v":""},{"$f":"IF(DataLog!$C2832=\"Log value\",DataLog!W2832,\"\")","v":""},{"$f":"IF(DataLog!$C2832=\"Log value\",DataLog!X2832,\"\")","v":""},{"$f":"IF(DataLog!$C2832=\"Log value\",DataLog!Y2832,\"\")","v":""},{"$f":"IF(DataLog!$C2832=\"Log value\",DataLog!Z2832,\"\")","v":""},{"$f":"IF(DataLog!$C2832=\"Log value\",DataLog!AA2832,\"\")","v":""},{"$f":"IF(DataLog!$C2832=\"Log value\",DataLog!AB2832,\"\")","v":""},{"$f":"IF(DataLog!$C2832=\"Log value\",DataLog!AC2832,\"\")","v":""},{"$f":"IF(DataLog!$C2832=\"Log value\",DataLog!AD2832,\"\")","v":""},{"$f":"IF(DataLog!$C2832=\"Log value\",DataLog!AE2832,\"\")","v":""},{"$f":"IF(DataLog!$C2832=\"Log value\",DataLog!AF2832,\"\")","v":""},{"$f":"IF(DataLog!$C2832=\"Log value\",DataLog!AG2832,\"\")","v":""},{"$f":"IF(DataLog!$C2832=\"Log value\",DataLog!AH2832,\"\")","v":""},{"$f":"IF(DataLog!$C2832=\"Log value\",DataLog!AI2832,\"\")","v":""},{"$f":"IF(DataLog!$C2832=\"Log value\",DataLog!AJ2832,\"\")","v":""},{"$f":"IF(DataLog!$C2832=\"Log value\",DataLog!AK2832,\"\")","v":""},{"$f":"IF(DataLog!$C2832=\"Log value\",DataLog!AL2832,\"\")","v":""},{"$f":"IF(DataLog!$C2832=\"Log value\",DataLog!AM2832,\"\")","v":""}]
[null,null,null,null,null,null,{"$f":"IF(DataLog!$C2834=\"Log value\",DataLog!D2834&\"_\"&TEXT(DataLog!B2834,\"åååå-mm-dd\"),\"\")","v":""},{"$f":"IF(DataLog!$C2834=\"Log value\",DataLog!E2834,\"\")","v":""},{"$f":"IF(DataLog!$C2834=\"Log value\",DataLog!F2834,\"\")","v":""},{"$f":"IF(DataLog!$C2834=\"Log value\",DataLog!G2834,\"\")","v":""},{"$f":"IF(DataLog!$C2834=\"Log value\",DataLog!H2834,\"\")","v":""},{"$f":"IF(DataLog!$C2834=\"Log value\",DataLog!I2834,\"\")","v":""},{"$f":"IF(DataLog!$C2834=\"Log value\",DataLog!J2834,\"\")","v":""},{"$f":"IF(DataLog!$C2834=\"Log value\",DataLog!K2834,\"\")","v":""},{"$f":"IF(DataLog!$C2834=\"Log value\",DataLog!L2834,\"\")","v":""},{"$f":"IF(DataLog!$C2834=\"Log value\",DataLog!M2834,\"\")","v":""},{"$f":"IF(DataLog!$C2834=\"Log value\",DataLog!N2834,\"\")","v":""},{"$f":"IF(DataLog!$C2834=\"Log value\",DataLog!O2834,\"\")","v":""},{"$f":"IF(DataLog!$C2834=\"Log value\",DataLog!P2834,\"\")","v":""},{"$f":"IF(DataLog!$C2834=\"Log value\",DataLog!Q2834,\"\")","v":""},{"$f":"IF(DataLog!$C2834=\"Log value\",DataLog!R2834,\"\")","v":""},{"$f":"IF(DataLog!$C2834=\"Log value\",DataLog!S2834,\"\")","v":""},{"$f":"IF(DataLog!$C2834=\"Log value\",DataLog!T2834,\"\")","v":""},{"$f":"IF(DataLog!$C2834=\"Log value\",DataLog!U2834,\"\")","v":""},{"$f":"IF(DataLog!$C2834=\"Log value\",DataLog!V2834,\"\")","v":""},{"$f":"IF(DataLog!$C2834=\"Log value\",DataLog!W2834,\"\")","v":""},{"$f":"IF(DataLog!$C2834=\"Log value\",DataLog!X2834,\"\")","v":""},{"$f":"IF(DataLog!$C2834=\"Log value\",DataLog!Y2834,\"\")","v":""},{"$f":"IF(DataLog!$C2834=\"Log value\",DataLog!Z2834,\"\")","v":""},{"$f":"IF(DataLog!$C2834=\"Log value\",DataLog!AA2834,\"\")","v":""},{"$f":"IF(DataLog!$C2834=\"Log value\",DataLog!AB2834,\"\")","v":""},{"$f":"IF(DataLog!$C2834=\"Log value\",DataLog!AC2834,\"\")","v":""},{"$f":"IF(DataLog!$C2834=\"Log value\",DataLog!AD2834,\"\")","v":""},{"$f":"IF(DataLog!$C2834=\"Log value\",DataLog!AE2834,\"\")","v":""},{"$f":"IF(DataLog!$C2834=\"Log value\",DataLog!AF2834,\"\")","v":""},{"$f":"IF(DataLog!$C2834=\"Log value\",DataLog!AG2834,\"\")","v":""},{"$f":"IF(DataLog!$C2834=\"Log value\",DataLog!AH2834,\"\")","v":""},{"$f":"IF(DataLog!$C2834=\"Log value\",DataLog!AI2834,\"\")","v":""},{"$f":"IF(DataLog!$C2834=\"Log value\",DataLog!AJ2834,\"\")","v":""},{"$f":"IF(DataLog!$C2834=\"Log value\",DataLog!AK2834,\"\")","v":""},{"$f":"IF(DataLog!$C2834=\"Log value\",DataLog!AL2834,\"\")","v":""},{"$f":"IF(DataLog!$C2834=\"Log value\",DataLog!AM2834,\"\")","v":""}]
[null,null,null,null,null,null,{"$f":"IF(DataLog!$C2837=\"Log value\",DataLog!D2837&\"_\"&TEXT(DataLog!B2837,\"åååå-mm-dd\"),\"\")","v":""},{"$f":"IF(DataLog!$C2837=\"Log value\",DataLog!E2837,\"\")","v":""},{"$f":"IF(DataLog!$C2837=\"Log value\",DataLog!F2837,\"\")","v":""},{"$f":"IF(DataLog!$C2837=\"Log value\",DataLog!G2837,\"\")","v":""},{"$f":"IF(DataLog!$C2837=\"Log value\",DataLog!H2837,\"\")","v":""},{"$f":"IF(DataLog!$C2837=\"Log value\",DataLog!I2837,\"\")","v":""},{"$f":"IF(DataLog!$C2837=\"Log value\",DataLog!J2837,\"\")","v":""},{"$f":"IF(DataLog!$C2837=\"Log value\",DataLog!K2837,\"\")","v":""},{"$f":"IF(DataLog!$C2837=\"Log value\",DataLog!L2837,\"\")","v":""},{"$f":"IF(DataLog!$C2837=\"Log value\",DataLog!M2837,\"\")","v":""},{"$f":"IF(DataLog!$C2837=\"Log value\",DataLog!N2837,\"\")","v":""},{"$f":"IF(DataLog!$C2837=\"Log value\",DataLog!O2837,\"\")","v":""},{"$f":"IF(DataLog!$C2837=\"Log value\",DataLog!P2837,\"\")","v":""},{"$f":"IF(DataLog!$C2837=\"Log value\",DataLog!Q2837,\"\")","v":""},{"$f":"IF(DataLog!$C2837=\"Log value\",DataLog!R2837,\"\")","v":""},{"$f":"IF(DataLog!$C2837=\"Log value\",DataLog!S2837,\"\")","v":""},{"$f":"IF(DataLog!$C2837=\"Log value\",DataLog!T2837,\"\")","v":""},{"$f":"IF(DataLog!$C2837=\"Log value\",DataLog!U2837,\"\")","v":""},{"$f":"IF(DataLog!$C2837=\"Log value\",DataLog!V2837,\"\")","v":""},{"$f":"IF(DataLog!$C2837=\"Log value\",DataLog!W2837,\"\")","v":""},{"$f":"IF(DataLog!$C2837=\"Log value\",DataLog!X2837,\"\")","v":""},{"$f":"IF(DataLog!$C2837=\"Log value\",DataLog!Y2837,\"\")","v":""},{"$f":"IF(DataLog!$C2837=\"Log value\",DataLog!Z2837,\"\")","v":""},{"$f":"IF(DataLog!$C2837=\"Log value\",DataLog!AA2837,\"\")","v":""},{"$f":"IF(DataLog!$C2837=\"Log value\",DataLog!AB2837,\"\")","v":""},{"$f":"IF(DataLog!$C2837=\"Log value\",DataLog!AC2837,\"\")","v":""},{"$f":"IF(DataLog!$C2837=\"Log value\",DataLog!AD2837,\"\")","v":""},{"$f":"IF(DataLog!$C2837=\"Log value\",DataLog!AE2837,\"\")","v":""},{"$f":"IF(DataLog!$C2837=\"Log value\",DataLog!AF2837,\"\")","v":""},{"$f":"IF(DataLog!$C2837=\"Log value\",DataLog!AG2837,\"\")","v":""},{"$f":"IF(DataLog!$C2837=\"Log value\",DataLog!AH2837,\"\")","v":""},{"$f":"IF(DataLog!$C2837=\"Log value\",DataLog!AI2837,\"\")","v":""},{"$f":"IF(DataLog!$C2837=\"Log value\",DataLog!AJ2837,\"\")","v":""},{"$f":"IF(DataLog!$C2837=\"Log value\",DataLog!AK2837,\"\")","v":""},{"$f":"IF(DataLog!$C2837=\"Log value\",DataLog!AL2837,\"\")","v":""},{"$f":"IF(DataLog!$C2837=\"Log value\",DataLog!AM2837,\"\")","v":""}]
[null,null,null,null,null,null,{"$f":"IF(DataLog!$C2838=\"Log value\",DataLog!D2838&\"_\"&TEXT(DataLog!B2838,\"åååå-mm-dd\"),\"\")","v":""},{"$f":"IF(DataLog!$C2838=\"Log value\",DataLog!E2838,\"\")","v":""},{"$f":"IF(DataLog!$C2838=\"Log value\",DataLog!F2838,\"\")","v":""},{"$f":"IF(DataLog!$C2838=\"Log value\",DataLog!G2838,\"\")","v":""},{"$f":"IF(DataLog!$C2838=\"Log value\",DataLog!H2838,\"\")","v":""},{"$f":"IF(DataLog!$C2838=\"Log value\",DataLog!I2838,\"\")","v":""},{"$f":"IF(DataLog!$C2838=\"Log value\",DataLog!J2838,\"\")","v":""},{"$f":"IF(DataLog!$C2838=\"Log value\",DataLog!K2838,\"\")","v":""},{"$f":"IF(DataLog!$C2838=\"Log value\",DataLog!L2838,\"\")","v":""},{"$f":"IF(DataLog!$C2838=\"Log value\",DataLog!M2838,\"\")","v":""},{"$f":"IF(DataLog!$C2838=\"Log value\",DataLog!N2838,\"\")","v":""},{"$f":"IF(DataLog!$C2838=\"Log value\",DataLog!O2838,\"\")","v":""},{"$f":"IF(DataLog!$C2838=\"Log value\",DataLog!P2838,\"\")","v":""},{"$f":"IF(DataLog!$C2838=\"Log value\",DataLog!Q2838,\"\")","v":""},{"$f":"IF(DataLog!$C2838=\"Log value\",DataLog!R2838,\"\")","v":""},{"$f":"IF(DataLog!$C2838=\"Log value\",DataLog!S2838,\"\")","v":""},{"$f":"IF(DataLog!$C2838=\"Log value\",DataLog!T2838,\"\")","v":""},{"$f":"IF(DataLog!$C2838=\"Log value\",DataLog!U2838,\"\")","v":""},{"$f":"IF(DataLog!$C2838=\"Log value\",DataLog!V2838,\"\")","v":""},{"$f":"IF(DataLog!$C2838=\"Log value\",DataLog!W2838,\"\")","v":""},{"$f":"IF(DataLog!$C2838=\"Log value\",DataLog!X2838,\"\")","v":""},{"$f":"IF(DataLog!$C2838=\"Log value\",DataLog!Y2838,\"\")","v":""},{"$f":"IF(DataLog!$C2838=\"Log value\",DataLog!Z2838,\"\")","v":""},{"$f":"IF(DataLog!$C2838=\"Log value\",DataLog!AA2838,\"\")","v":""},{"$f":"IF(DataLog!$C2838=\"Log value\",DataLog!AB2838,\"\")","v":""},{"$f":"IF(DataLog!$C2838=\"Log value\",DataLog!AC2838,\"\")","v":""},{"$f":"IF(DataLog!$C2838=\"Log value\",DataLog!AD2838,\"\")","v":""},{"$f":"IF(DataLog!$C2838=\"Log value\",DataLog!AE2838,\"\")","v":""},{"$f":"IF(DataLog!$C2838=\"Log value\",DataLog!AF2838,\"\")","v":""},{"$f":"IF(DataLog!$C2838=\"Log value\",DataLog!AG2838,\"\")","v":""},{"$f":"IF(DataLog!$C2838=\"Log value\",DataLog!AH2838,\"\")","v":""},{"$f":"IF(DataLog!$C2838=\"Log value\",DataLog!AI2838,\"\")","v":""},{"$f":"IF(DataLog!$C2838=\"Log value\",DataLog!AJ2838,\"\")","v":""},{"$f":"IF(DataLog!$C2838=\"Log value\",DataLog!AK2838,\"\")","v":""},{"$f":"IF(DataLog!$C2838=\"Log value\",DataLog!AL2838,\"\")","v":""},{"$f":"IF(DataLog!$C2838=\"Log value\",DataLog!AM2838,\"\")","v":""}]
[null,null,null,null,null,null,{"$f":"IF(DataLog!$C2842=\"Log value\",DataLog!D2842&\"_\"&TEXT(DataLog!B2842,\"åååå-mm-dd\"),\"\")","v":""},{"$f":"IF(DataLog!$C2842=\"Log value\",DataLog!E2842,\"\")","v":""},{"$f":"IF(DataLog!$C2842=\"Log value\",DataLog!F2842,\"\")","v":""},{"$f":"IF(DataLog!$C2842=\"Log value\",DataLog!G2842,\"\")","v":""},{"$f":"IF(DataLog!$C2842=\"Log value\",DataLog!H2842,\"\")","v":""},{"$f":"IF(DataLog!$C2842=\"Log value\",DataLog!I2842,\"\")","v":""},{"$f":"IF(DataLog!$C2842=\"Log value\",DataLog!J2842,\"\")","v":""},{"$f":"IF(DataLog!$C2842=\"Log value\",DataLog!K2842,\"\")","v":""},{"$f":"IF(DataLog!$C2842=\"Log value\",DataLog!L2842,\"\")","v":""},{"$f":"IF(DataLog!$C2842=\"Log value\",DataLog!M2842,\"\")","v":""},{"$f":"IF(DataLog!$C2842=\"Log value\",DataLog!N2842,\"\")","v":""},{"$f":"IF(DataLog!$C2842=\"Log value\",DataLog!O2842,\"\")","v":""},{"$f":"IF(DataLog!$C2842=\"Log value\",DataLog!P2842,\"\")","v":""},{"$f":"IF(DataLog!$C2842=\"Log value\",DataLog!Q2842,\"\")","v":""},{"$f":"IF(DataLog!$C2842=\"Log value\",DataLog!R2842,\"\")","v":""},{"$f":"IF(DataLog!$C2842=\"Log value\",DataLog!S2842,\"\")","v":""},{"$f":"IF(DataLog!$C2842=\"Log value\",DataLog!T2842,\"\")","v":""},{"$f":"IF(DataLog!$C2842=\"Log value\",DataLog!U2842,\"\")","v":""},{"$f":"IF(DataLog!$C2842=\"Log value\",DataLog!V2842,\"\")","v":""},{"$f":"IF(DataLog!$C2842=\"Log value\",DataLog!W2842,\"\")","v":""},{"$f":"IF(DataLog!$C2842=\"Log value\",DataLog!X2842,\"\")","v":""},{"$f":"IF(DataLog!$C2842=\"Log value\",DataLog!Y2842,\"\")","v":""},{"$f":"IF(DataLog!$C2842=\"Log value\",DataLog!Z2842,\"\")","v":""},{"$f":"IF(DataLog!$C2842=\"Log value\",DataLog!AA2842,\"\")","v":""},{"$f":"IF(DataLog!$C2842=\"Log value\",DataLog!AB2842,\"\")","v":""},{"$f":"IF(DataLog!$C2842=\"Log value\",DataLog!AC2842,\"\")","v":""},{"$f":"IF(DataLog!$C2842=\"Log value\",DataLog!AD2842,\"\")","v":""},{"$f":"IF(DataLog!$C2842=\"Log value\",DataLog!AE2842,\"\")","v":""},{"$f":"IF(DataLog!$C2842=\"Log value\",DataLog!AF2842,\"\")","v":""},{"$f":"IF(DataLog!$C2842=\"Log value\",DataLog!AG2842,\"\")","v":""},{"$f":"IF(DataLog!$C2842=\"Log value\",DataLog!AH2842,\"\")","v":""},{"$f":"IF(DataLog!$C2842=\"Log value\",DataLog!AI2842,\"\")","v":""},{"$f":"IF(DataLog!$C2842=\"Log value\",DataLog!AJ2842,\"\")","v":""},{"$f":"IF(DataLog!$C2842=\"Log value\",DataLog!AK2842,\"\")","v":""},{"$f":"IF(DataLog!$C2842=\"Log value\",DataLog!AL2842,\"\")","v":""},{"$f":"IF(DataLog!$C2842=\"Log value\",DataLog!AM2842,\"\")","v":""}]
[null,null,null,null,null,null,{"$f":"IF(DataLog!$C2843=\"Log value\",DataLog!D2843&\"_\"&TEXT(DataLog!B2843,\"åååå-mm-dd\"),\"\")","v":""},{"$f":"IF(DataLog!$C2843=\"Log value\",DataLog!E2843,\"\")","v":""},{"$f":"IF(DataLog!$C2843=\"Log value\",DataLog!F2843,\"\")","v":""},{"$f":"IF(DataLog!$C2843=\"Log value\",DataLog!G2843,\"\")","v":""},{"$f":"IF(DataLog!$C2843=\"Log value\",DataLog!H2843,\"\")","v":""},{"$f":"IF(DataLog!$C2843=\"Log value\",DataLog!I2843,\"\")","v":""},{"$f":"IF(DataLog!$C2843=\"Log value\",DataLog!J2843,\"\")","v":""},{"$f":"IF(DataLog!$C2843=\"Log value\",DataLog!K2843,\"\")","v":""},{"$f":"IF(DataLog!$C2843=\"Log value\",DataLog!L2843,\"\")","v":""},{"$f":"IF(DataLog!$C2843=\"Log value\",DataLog!M2843,\"\")","v":""},{"$f":"IF(DataLog!$C2843=\"Log value\",DataLog!N2843,\"\")","v":""},{"$f":"IF(DataLog!$C2843=\"Log value\",DataLog!O2843,\"\")","v":""},{"$f":"IF(DataLog!$C2843=\"Log value\",DataLog!P2843,\"\")","v":""},{"$f":"IF(DataLog!$C2843=\"Log value\",DataLog!Q2843,\"\")","v":""},{"$f":"IF(DataLog!$C2843=\"Log value\",DataLog!R2843,\"\")","v":""},{"$f":"IF(DataLog!$C2843=\"Log value\",DataLog!S2843,\"\")","v":""},{"$f":"IF(DataLog!$C2843=\"Log value\",DataLog!T2843,\"\")","v":""},{"$f":"IF(DataLog!$C2843=\"Log value\",DataLog!U2843,\"\")","v":""},{"$f":"IF(DataLog!$C2843=\"Log value\",DataLog!V2843,\"\")","v":""},{"$f":"IF(DataLog!$C2843=\"Log value\",DataLog!W2843,\"\")","v":""},{"$f":"IF(DataLog!$C2843=\"Log value\",DataLog!X2843,\"\")","v":""},{"$f":"IF(DataLog!$C2843=\"Log value\",DataLog!Y2843,\"\")","v":""},{"$f":"IF(DataLog!$C2843=\"Log value\",DataLog!Z2843,\"\")","v":""},{"$f":"IF(DataLog!$C2843=\"Log value\",DataLog!AA2843,\"\")","v":""},{"$f":"IF(DataLog!$C2843=\"Log value\",DataLog!AB2843,\"\")","v":""},{"$f":"IF(DataLog!$C2843=\"Log value\",DataLog!AC2843,\"\")","v":""},{"$f":"IF(DataLog!$C2843=\"Log value\",DataLog!AD2843,\"\")","v":""},{"$f":"IF(DataLog!$C2843=\"Log value\",DataLog!AE2843,\"\")","v":""},{"$f":"IF(DataLog!$C2843=\"Log value\",DataLog!AF2843,\"\")","v":""},{"$f":"IF(DataLog!$C2843=\"Log value\",DataLog!AG2843,\"\")","v":""},{"$f":"IF(DataLog!$C2843=\"Log value\",DataLog!AH2843,\"\")","v":""},{"$f":"IF(DataLog!$C2843=\"Log value\",DataLog!AI2843,\"\")","v":""},{"$f":"IF(DataLog!$C2843=\"Log value\",DataLog!AJ2843,\"\")","v":""},{"$f":"IF(DataLog!$C2843=\"Log value\",DataLog!AK2843,\"\")","v":""},{"$f":"IF(DataLog!$C2843=\"Log value\",DataLog!AL2843,\"\")","v":""},{"$f":"IF(DataLog!$C2843=\"Log value\",DataLog!AM2843,\"\")","v":""}]
[null,null,null,null,null,null,{"$f":"IF(DataLog!$C2846=\"Log value\",DataLog!D2846&\"_\"&TEXT(DataLog!B2846,\"åååå-mm-dd\"),\"\")","v":""},{"$f":"IF(DataLog!$C2846=\"Log value\",DataLog!E2846,\"\")","v":""},{"$f":"IF(DataLog!$C2846=\"Log value\",DataLog!F2846,\"\")","v":""},{"$f":"IF(DataLog!$C2846=\"Log value\",DataLog!G2846,\"\")","v":""},{"$f":"IF(DataLog!$C2846=\"Log value\",DataLog!H2846,\"\")","v":""},{"$f":"IF(DataLog!$C2846=\"Log value\",DataLog!I2846,\"\")","v":""},{"$f":"IF(DataLog!$C2846=\"Log value\",DataLog!J2846,\"\")","v":""},{"$f":"IF(DataLog!$C2846=\"Log value\",DataLog!K2846,\"\")","v":""},{"$f":"IF(DataLog!$C2846=\"Log value\",DataLog!L2846,\"\")","v":""},{"$f":"IF(DataLog!$C2846=\"Log value\",DataLog!M2846,\"\")","v":""},{"$f":"IF(DataLog!$C2846=\"Log value\",DataLog!N2846,\"\")","v":""},{"$f":"IF(DataLog!$C2846=\"Log value\",DataLog!O2846,\"\")","v":""},{"$f":"IF(DataLog!$C2846=\"Log value\",DataLog!P2846,\"\")","v":""},{"$f":"IF(DataLog!$C2846=\"Log value\",DataLog!Q2846,\"\")","v":""},{"$f":"IF(DataLog!$C2846=\"Log value\",DataLog!R2846,\"\")","v":""},{"$f":"IF(DataLog!$C2846=\"Log value\",DataLog!S2846,\"\")","v":""},{"$f":"IF(DataLog!$C2846=\"Log value\",DataLog!T2846,\"\")","v":""},{"$f":"IF(DataLog!$C2846=\"Log value\",DataLog!U2846,\"\")","v":""},{"$f":"IF(DataLog!$C2846=\"Log value\",DataLog!V2846,\"\")","v":""},{"$f":"IF(DataLog!$C2846=\"Log value\",DataLog!W2846,\"\")","v":""},{"$f":"IF(DataLog!$C2846=\"Log value\",DataLog!X2846,\"\")","v":""},{"$f":"IF(DataLog!$C2846=\"Log value\",DataLog!Y2846,\"\")","v":""},{"$f":"IF(DataLog!$C2846=\"Log value\",DataLog!Z2846,\"\")","v":""},{"$f":"IF(DataLog!$C2846=\"Log value\",DataLog!AA2846,\"\")","v":""},{"$f":"IF(DataLog!$C2846=\"Log value\",DataLog!AB2846,\"\")","v":""},{"$f":"IF(DataLog!$C2846=\"Log value\",DataLog!AC2846,\"\")","v":""},{"$f":"IF(DataLog!$C2846=\"Log value\",DataLog!AD2846,\"\")","v":""},{"$f":"IF(DataLog!$C2846=\"Log value\",DataLog!AE2846,\"\")","v":""},{"$f":"IF(DataLog!$C2846=\"Log value\",DataLog!AF2846,\"\")","v":""},{"$f":"IF(DataLog!$C2846=\"Log value\",DataLog!AG2846,\"\")","v":""},{"$f":"IF(DataLog!$C2846=\"Log value\",DataLog!AH2846,\"\")","v":""},{"$f":"IF(DataLog!$C2846=\"Log value\",DataLog!AI2846,\"\")","v":""},{"$f":"IF(DataLog!$C2846=\"Log value\",DataLog!AJ2846,\"\")","v":""},{"$f":"IF(DataLog!$C2846=\"Log value\",DataLog!AK2846,\"\")","v":""},{"$f":"IF(DataLog!$C2846=\"Log value\",DataLog!AL2846,\"\")","v":""},{"$f":"IF(DataLog!$C2846=\"Log value\",DataLog!AM2846,\"\")","v":""}]
[null,null,null,null,null,null,{"$f":"IF(DataLog!$C2847=\"Log value\",DataLog!D2847&\"_\"&TEXT(DataLog!B2847,\"åååå-mm-dd\"),\"\")","v":""},{"$f":"IF(DataLog!$C2847=\"Log value\",DataLog!E2847,\"\")","v":""},{"$f":"IF(DataLog!$C2847=\"Log value\",DataLog!F2847,\"\")","v":""},{"$f":"IF(DataLog!$C2847=\"Log value\",DataLog!G2847,\"\")","v":""},{"$f":"IF(DataLog!$C2847=\"Log value\",DataLog!H2847,\"\")","v":""},{"$f":"IF(DataLog!$C2847=\"Log value\",DataLog!I2847,\"\")","v":""},{"$f":"IF(DataLog!$C2847=\"Log value\",DataLog!J2847,\"\")","v":""},{"$f":"IF(DataLog!$C2847=\"Log value\",DataLog!K2847,\"\")","v":""},{"$f":"IF(DataLog!$C2847=\"Log value\",DataLog!L2847,\"\")","v":""},{"$f":"IF(DataLog!$C2847=\"Log value\",DataLog!M2847,\"\")","v":""},{"$f":"IF(DataLog!$C2847=\"Log value\",DataLog!N2847,\"\")","v":""},{"$f":"IF(DataLog!$C2847=\"Log value\",DataLog!O2847,\"\")","v":""},{"$f":"IF(DataLog!$C2847=\"Log value\",DataLog!P2847,\"\")","v":""},{"$f":"IF(DataLog!$C2847=\"Log value\",DataLog!Q2847,\"\")","v":""},{"$f":"IF(DataLog!$C2847=\"Log value\",DataLog!R2847,\"\")","v":""},{"$f":"IF(DataLog!$C2847=\"Log value\",DataLog!S2847,\"\")","v":""},{"$f":"IF(DataLog!$C2847=\"Log value\",DataLog!T2847,\"\")","v":""},{"$f":"IF(DataLog!$C2847=\"Log value\",DataLog!U2847,\"\")","v":""},{"$f":"IF(DataLog!$C2847=\"Log value\",DataLog!V2847,\"\")","v":""},{"$f":"IF(DataLog!$C2847=\"Log value\",DataLog!W2847,\"\")","v":""},{"$f":"IF(DataLog!$C2847=\"Log value\",DataLog!X2847,\"\")","v":""},{"$f":"IF(DataLog!$C2847=\"Log value\",DataLog!Y2847,\"\")","v":""},{"$f":"IF(DataLog!$C2847=\"Log value\",DataLog!Z2847,\"\")","v":""},{"$f":"IF(DataLog!$C2847=\"Log value\",DataLog!AA2847,\"\")","v":""},{"$f":"IF(DataLog!$C2847=\"Log value\",DataLog!AB2847,\"\")","v":""},{"$f":"IF(DataLog!$C2847=\"Log value\",DataLog!AC2847,\"\")","v":""},{"$f":"IF(DataLog!$C2847=\"Log value\",DataLog!AD2847,\"\")","v":""},{"$f":"IF(DataLog!$C2847=\"Log value\",DataLog!AE2847,\"\")","v":""},{"$f":"IF(DataLog!$C2847=\"Log value\",DataLog!AF2847,\"\")","v":""},{"$f":"IF(DataLog!$C2847=\"Log value\",DataLog!AG2847,\"\")","v":""},{"$f":"IF(DataLog!$C2847=\"Log value\",DataLog!AH2847,\"\")","v":""},{"$f":"IF(DataLog!$C2847=\"Log value\",DataLog!AI2847,\"\")","v":""},{"$f":"IF(DataLog!$C2847=\"Log value\",DataLog!AJ2847,\"\")","v":""},{"$f":"IF(DataLog!$C2847=\"Log value\",DataLog!AK2847,\"\")","v":""},{"$f":"IF(DataLog!$C2847=\"Log value\",DataLog!AL2847,\"\")","v":""},{"$f":"IF(DataLog!$C2847=\"Log value\",DataLog!AM2847,\"\")","v":""}]
[null,null,null,null,null,null,{"$f":"IF(DataLog!$C2849=\"Log value\",DataLog!D2849&\"_\"&TEXT(DataLog!B2849,\"åååå-mm-dd\"),\"\")","v":""},{"$f":"IF(DataLog!$C2849=\"Log value\",DataLog!E2849,\"\")","v":""},{"$f":"IF(DataLog!$C2849=\"Log value\",DataLog!F2849,\"\")","v":""},{"$f":"IF(DataLog!$C2849=\"Log value\",DataLog!G2849,\"\")","v":""},{"$f":"IF(DataLog!$C2849=\"Log value\",DataLog!H2849,\"\")","v":""},{"$f":"IF(DataLog!$C2849=\"Log value\",DataLog!I2849,\"\")","v":""},{"$f":"IF(DataLog!$C2849=\"Log value\",DataLog!J2849,\"\")","v":""},{"$f":"IF(DataLog!$C2849=\"Log value\",DataLog!K2849,\"\")","v":""},{"$f":"IF(DataLog!$C2849=\"Log value\",DataLog!L2849,\"\")","v":""},{"$f":"IF(DataLog!$C2849=\"Log value\",DataLog!M2849,\"\")","v":""},{"$f":"IF(DataLog!$C2849=\"Log value\",DataLog!N2849,\"\")","v":""},{"$f":"IF(DataLog!$C2849=\"Log value\",DataLog!O2849,\"\")","v":""},{"$f":"IF(DataLog!$C2849=\"Log value\",DataLog!P2849,\"\")","v":""},{"$f":"IF(DataLog!$C2849=\"Log value\",DataLog!Q2849,\"\")","v":""},{"$f":"IF(DataLog!$C2849=\"Log value\",DataLog!R2849,\"\")","v":""},{"$f":"IF(DataLog!$C2849=\"Log value\",DataLog!S2849,\"\")","v":""},{"$f":"IF(DataLog!$C2849=\"Log value\",DataLog!T2849,\"\")","v":""},{"$f":"IF(DataLog!$C2849=\"Log value\",DataLog!U2849,\"\")","v":""},{"$f":"IF(DataLog!$C2849=\"Log value\",DataLog!V2849,\"\")","v":""},{"$f":"IF(DataLog!$C2849=\"Log value\",DataLog!W2849,\"\")","v":""},{"$f":"IF(DataLog!$C2849=\"Log value\",DataLog!X2849,\"\")","v":""},{"$f":"IF(DataLog!$C2849=\"Log value\",DataLog!Y2849,\"\")","v":""},{"$f":"IF(DataLog!$C2849=\"Log value\",DataLog!Z2849,\"\")","v":""},{"$f":"IF(DataLog!$C2849=\"Log value\",DataLog!AA2849,\"\")","v":""},{"$f":"IF(DataLog!$C2849=\"Log value\",DataLog!AB2849,\"\")","v":""},{"$f":"IF(DataLog!$C2849=\"Log value\",DataLog!AC2849,\"\")","v":""},{"$f":"IF(DataLog!$C2849=\"Log value\",DataLog!AD2849,\"\")","v":""},{"$f":"IF(DataLog!$C2849=\"Log value\",DataLog!AE2849,\"\")","v":""},{"$f":"IF(DataLog!$C2849=\"Log value\",DataLog!AF2849,\"\")","v":""},{"$f":"IF(DataLog!$C2849=\"Log value\",DataLog!AG2849,\"\")","v":""},{"$f":"IF(DataLog!$C2849=\"Log value\",DataLog!AH2849,\"\")","v":""},{"$f":"IF(DataLog!$C2849=\"Log value\",DataLog!AI2849,\"\")","v":""},{"$f":"IF(DataLog!$C2849=\"Log value\",DataLog!AJ2849,\"\")","v":""},{"$f":"IF(DataLog!$C2849=\"Log value\",DataLog!AK2849,\"\")","v":""},{"$f":"IF(DataLog!$C2849=\"Log value\",DataLog!AL2849,\"\")","v":""},{"$f":"IF(DataLog!$C2849=\"Log value\",DataLog!AM2849,\"\")","v":""}]
[null,null,null,null,null,null,{"$f":"IF(DataLog!$C2852=\"Log value\",DataLog!D2852&\"_\"&TEXT(DataLog!B2852,\"åååå-mm-dd\"),\"\")","v":""},{"$f":"IF(DataLog!$C2852=\"Log value\",DataLog!E2852,\"\")","v":""},{"$f":"IF(DataLog!$C2852=\"Log value\",DataLog!F2852,\"\")","v":""},{"$f":"IF(DataLog!$C2852=\"Log value\",DataLog!G2852,\"\")","v":""},{"$f":"IF(DataLog!$C2852=\"Log value\",DataLog!H2852,\"\")","v":""},{"$f":"IF(DataLog!$C2852=\"Log value\",DataLog!I2852,\"\")","v":""},{"$f":"IF(DataLog!$C2852=\"Log value\",DataLog!J2852,\"\")","v":""},{"$f":"IF(DataLog!$C2852=\"Log value\",DataLog!K2852,\"\")","v":""},{"$f":"IF(DataLog!$C2852=\"Log value\",DataLog!L2852,\"\")","v":""},{"$f":"IF(DataLog!$C2852=\"Log value\",DataLog!M2852,\"\")","v":""},{"$f":"IF(DataLog!$C2852=\"Log value\",DataLog!N2852,\"\")","v":""},{"$f":"IF(DataLog!$C2852=\"Log value\",DataLog!O2852,\"\")","v":""},{"$f":"IF(DataLog!$C2852=\"Log value\",DataLog!P2852,\"\")","v":""},{"$f":"IF(DataLog!$C2852=\"Log value\",DataLog!Q2852,\"\")","v":""},{"$f":"IF(DataLog!$C2852=\"Log value\",DataLog!R2852,\"\")","v":""},{"$f":"IF(DataLog!$C2852=\"Log value\",DataLog!S2852,\"\")","v":""},{"$f":"IF(DataLog!$C2852=\"Log value\",DataLog!T2852,\"\")","v":""},{"$f":"IF(DataLog!$C2852=\"Log value\",DataLog!U2852,\"\")","v":""},{"$f":"IF(DataLog!$C2852=\"Log value\",DataLog!V2852,\"\")","v":""},{"$f":"IF(DataLog!$C2852=\"Log value\",DataLog!W2852,\"\")","v":""},{"$f":"IF(DataLog!$C2852=\"Log value\",DataLog!X2852,\"\")","v":""},{"$f":"IF(DataLog!$C2852=\"Log value\",DataLog!Y2852,\"\")","v":""},{"$f":"IF(DataLog!$C2852=\"Log value\",DataLog!Z2852,\"\")","v":""},{"$f":"IF(DataLog!$C2852=\"Log value\",DataLog!AA2852,\"\")","v":""},{"$f":"IF(DataLog!$C2852=\"Log value\",DataLog!AB2852,\"\")","v":""},{"$f":"IF(DataLog!$C2852=\"Log value\",DataLog!AC2852,\"\")","v":""},{"$f":"IF(DataLog!$C2852=\"Log value\",DataLog!AD2852,\"\")","v":""},{"$f":"IF(DataLog!$C2852=\"Log value\",DataLog!AE2852,\"\")","v":""},{"$f":"IF(DataLog!$C2852=\"Log value\",DataLog!AF2852,\"\")","v":""},{"$f":"IF(DataLog!$C2852=\"Log value\",DataLog!AG2852,\"\")","v":""},{"$f":"IF(DataLog!$C2852=\"Log value\",DataLog!AH2852,\"\")","v":""},{"$f":"IF(DataLog!$C2852=\"Log value\",DataLog!AI2852,\"\")","v":""},{"$f":"IF(DataLog!$C2852=\"Log value\",DataLog!AJ2852,\"\")","v":""},{"$f":"IF(DataLog!$C2852=\"Log value\",DataLog!AK2852,\"\")","v":""},{"$f":"IF(DataLog!$C2852=\"Log value\",DataLog!AL2852,\"\")","v":""},{"$f":"IF(DataLog!$C2852=\"Log value\",DataLog!AM2852,\"\")","v":""}]
[null,null,null,null,null,null,{"$f":"IF(DataLog!$C2855=\"Log value\",DataLog!D2855&\"_\"&TEXT(DataLog!B2855,\"åååå-mm-dd\"),\"\")","v":""},{"$f":"IF(DataLog!$C2855=\"Log value\",DataLog!E2855,\"\")","v":""},{"$f":"IF(DataLog!$C2855=\"Log value\",DataLog!F2855,\"\")","v":""},{"$f":"IF(DataLog!$C2855=\"Log value\",DataLog!G2855,\"\")","v":""},{"$f":"IF(DataLog!$C2855=\"Log value\",DataLog!H2855,\"\")","v":""},{"$f":"IF(DataLog!$C2855=\"Log value\",DataLog!I2855,\"\")","v":""},{"$f":"IF(DataLog!$C2855=\"Log value\",DataLog!J2855,\"\")","v":""},{"$f":"IF(DataLog!$C2855=\"Log value\",DataLog!K2855,\"\")","v":""},{"$f":"IF(DataLog!$C2855=\"Log value\",DataLog!L2855,\"\")","v":""},{"$f":"IF(DataLog!$C2855=\"Log value\",DataLog!M2855,\"\")","v":""},{"$f":"IF(DataLog!$C2855=\"Log value\",DataLog!N2855,\"\")","v":""},{"$f":"IF(DataLog!$C2855=\"Log value\",DataLog!O2855,\"\")","v":""},{"$f":"IF(DataLog!$C2855=\"Log value\",DataLog!P2855,\"\")","v":""},{"$f":"IF(DataLog!$C2855=\"Log value\",DataLog!Q2855,\"\")","v":""},{"$f":"IF(DataLog!$C2855=\"Log value\",DataLog!R2855,\"\")","v":""},{"$f":"IF(DataLog!$C2855=\"Log value\",DataLog!S2855,\"\")","v":""},{"$f":"IF(DataLog!$C2855=\"Log value\",DataLog!T2855,\"\")","v":""},{"$f":"IF(DataLog!$C2855=\"Log value\",DataLog!U2855,\"\")","v":""},{"$f":"IF(DataLog!$C2855=\"Log value\",DataLog!V2855,\"\")","v":""},{"$f":"IF(DataLog!$C2855=\"Log value\",DataLog!W2855,\"\")","v":""},{"$f":"IF(DataLog!$C2855=\"Log value\",DataLog!X2855,\"\")","v":""},{"$f":"IF(DataLog!$C2855=\"Log value\",DataLog!Y2855,\"\")","v":""},{"$f":"IF(DataLog!$C2855=\"Log value\",DataLog!Z2855,\"\")","v":""},{"$f":"IF(DataLog!$C2855=\"Log value\",DataLog!AA2855,\"\")","v":""},{"$f":"IF(DataLog!$C2855=\"Log value\",DataLog!AB2855,\"\")","v":""},{"$f":"IF(DataLog!$C2855=\"Log value\",DataLog!AC2855,\"\")","v":""},{"$f":"IF(DataLog!$C2855=\"Log value\",DataLog!AD2855,\"\")","v":""},{"$f":"IF(DataLog!$C2855=\"Log value\",DataLog!AE2855,\"\")","v":""},{"$f":"IF(DataLog!$C2855=\"Log value\",DataLog!AF2855,\"\")","v":""},{"$f":"IF(DataLog!$C2855=\"Log value\",DataLog!AG2855,\"\")","v":""},{"$f":"IF(DataLog!$C2855=\"Log value\",DataLog!AH2855,\"\")","v":""},{"$f":"IF(DataLog!$C2855=\"Log value\",DataLog!AI2855,\"\")","v":""},{"$f":"IF(DataLog!$C2855=\"Log value\",DataLog!AJ2855,\"\")","v":""},{"$f":"IF(DataLog!$C2855=\"Log value\",DataLog!AK2855,\"\")","v":""},{"$f":"IF(DataLog!$C2855=\"Log value\",DataLog!AL2855,\"\")","v":""},{"$f":"IF(DataLog!$C2855=\"Log value\",DataLog!AM2855,\"\")","v":""}]
[null,null,null,null,null,null,{"$f":"IF(DataLog!$C2856=\"Log value\",DataLog!D2856&\"_\"&TEXT(DataLog!B2856,\"åååå-mm-dd\"),\"\")","v":""},{"$f":"IF(DataLog!$C2856=\"Log value\",DataLog!E2856,\"\")","v":""},{"$f":"IF(DataLog!$C2856=\"Log value\",DataLog!F2856,\"\")","v":""},{"$f":"IF(DataLog!$C2856=\"Log value\",DataLog!G2856,\"\")","v":""},{"$f":"IF(DataLog!$C2856=\"Log value\",DataLog!H2856,\"\")","v":""},{"$f":"IF(DataLog!$C2856=\"Log value\",DataLog!I2856,\"\")","v":""},{"$f":"IF(DataLog!$C2856=\"Log value\",DataLog!J2856,\"\")","v":""},{"$f":"IF(DataLog!$C2856=\"Log value\",DataLog!K2856,\"\")","v":""},{"$f":"IF(DataLog!$C2856=\"Log value\",DataLog!L2856,\"\")","v":""},{"$f":"IF(DataLog!$C2856=\"Log value\",DataLog!M2856,\"\")","v":""},{"$f":"IF(DataLog!$C2856=\"Log value\",DataLog!N2856,\"\")","v":""},{"$f":"IF(DataLog!$C2856=\"Log value\",DataLog!O2856,\"\")","v":""},{"$f":"IF(DataLog!$C2856=\"Log value\",DataLog!P2856,\"\")","v":""},{"$f":"IF(DataLog!$C2856=\"Log value\",DataLog!Q2856,\"\")","v":""},{"$f":"IF(DataLog!$C2856=\"Log value\",DataLog!R2856,\"\")","v":""},{"$f":"IF(DataLog!$C2856=\"Log value\",DataLog!S2856,\"\")","v":""},{"$f":"IF(DataLog!$C2856=\"Log value\",DataLog!T2856,\"\")","v":""},{"$f":"IF(DataLog!$C2856=\"Log value\",DataLog!U2856,\"\")","v":""},{"$f":"IF(DataLog!$C2856=\"Log value\",DataLog!V2856,\"\")","v":""},{"$f":"IF(DataLog!$C2856=\"Log value\",DataLog!W2856,\"\")","v":""},{"$f":"IF(DataLog!$C2856=\"Log value\",DataLog!X2856,\"\")","v":""},{"$f":"IF(DataLog!$C2856=\"Log value\",DataLog!Y2856,\"\")","v":""},{"$f":"IF(DataLog!$C2856=\"Log value\",DataLog!Z2856,\"\")","v":""},{"$f":"IF(DataLog!$C2856=\"Log value\",DataLog!AA2856,\"\")","v":""},{"$f":"IF(DataLog!$C2856=\"Log value\",DataLog!AB2856,\"\")","v":""},{"$f":"IF(DataLog!$C2856=\"Log value\",DataLog!AC2856,\"\")","v":""},{"$f":"IF(DataLog!$C2856=\"Log value\",DataLog!AD2856,\"\")","v":""},{"$f":"IF(DataLog!$C2856=\"Log value\",DataLog!AE2856,\"\")","v":""},{"$f":"IF(DataLog!$C2856=\"Log value\",DataLog!AF2856,\"\")","v":""},{"$f":"IF(DataLog!$C2856=\"Log value\",DataLog!AG2856,\"\")","v":""},{"$f":"IF(DataLog!$C2856=\"Log value\",DataLog!AH2856,\"\")","v":""},{"$f":"IF(DataLog!$C2856=\"Log value\",DataLog!AI2856,\"\")","v":""},{"$f":"IF(DataLog!$C2856=\"Log value\",DataLog!AJ2856,\"\")","v":""},{"$f":"IF(DataLog!$C2856=\"Log value\",DataLog!AK2856,\"\")","v":""},{"$f":"IF(DataLog!$C2856=\"Log value\",DataLog!AL2856,\"\")","v":""},{"$f":"IF(DataLog!$C2856=\"Log value\",DataLog!AM2856,\"\")","v":""}]
[null,null,null,null,null,null,{"$f":"IF(DataLog!$C2860=\"Log value\",DataLog!D2860&\"_\"&TEXT(DataLog!B2860,\"åååå-mm-dd\"),\"\")","v":""},{"$f":"IF(DataLog!$C2860=\"Log value\",DataLog!E2860,\"\")","v":""},{"$f":"IF(DataLog!$C2860=\"Log value\",DataLog!F2860,\"\")","v":""},{"$f":"IF(DataLog!$C2860=\"Log value\",DataLog!G2860,\"\")","v":""},{"$f":"IF(DataLog!$C2860=\"Log value\",DataLog!H2860,\"\")","v":""},{"$f":"IF(DataLog!$C2860=\"Log value\",DataLog!I2860,\"\")","v":""},{"$f":"IF(DataLog!$C2860=\"Log value\",DataLog!J2860,\"\")","v":""},{"$f":"IF(DataLog!$C2860=\"Log value\",DataLog!K2860,\"\")","v":""},{"$f":"IF(DataLog!$C2860=\"Log value\",DataLog!L2860,\"\")","v":""},{"$f":"IF(DataLog!$C2860=\"Log value\",DataLog!M2860,\"\")","v":""},{"$f":"IF(DataLog!$C2860=\"Log value\",DataLog!N2860,\"\")","v":""},{"$f":"IF(DataLog!$C2860=\"Log value\",DataLog!O2860,\"\")","v":""},{"$f":"IF(DataLog!$C2860=\"Log value\",DataLog!P2860,\"\")","v":""},{"$f":"IF(DataLog!$C2860=\"Log value\",DataLog!Q2860,\"\")","v":""},{"$f":"IF(DataLog!$C2860=\"Log value\",DataLog!R2860,\"\")","v":""},{"$f":"IF(DataLog!$C2860=\"Log value\",DataLog!S2860,\"\")","v":""},{"$f":"IF(DataLog!$C2860=\"Log value\",DataLog!T2860,\"\")","v":""},{"$f":"IF(DataLog!$C2860=\"Log value\",DataLog!U2860,\"\")","v":""},{"$f":"IF(DataLog!$C2860=\"Log value\",DataLog!V2860,\"\")","v":""},{"$f":"IF(DataLog!$C2860=\"Log value\",DataLog!W2860,\"\")","v":""},{"$f":"IF(DataLog!$C2860=\"Log value\",DataLog!X2860,\"\")","v":""},{"$f":"IF(DataLog!$C2860=\"Log value\",DataLog!Y2860,\"\")","v":""},{"$f":"IF(DataLog!$C2860=\"Log value\",DataLog!Z2860,\"\")","v":""},{"$f":"IF(DataLog!$C2860=\"Log value\",DataLog!AA2860,\"\")","v":""},{"$f":"IF(DataLog!$C2860=\"Log value\",DataLog!AB2860,\"\")","v":""},{"$f":"IF(DataLog!$C2860=\"Log value\",DataLog!AC2860,\"\")","v":""},{"$f":"IF(DataLog!$C2860=\"Log value\",DataLog!AD2860,\"\")","v":""},{"$f":"IF(DataLog!$C2860=\"Log value\",DataLog!AE2860,\"\")","v":""},{"$f":"IF(DataLog!$C2860=\"Log value\",DataLog!AF2860,\"\")","v":""},{"$f":"IF(DataLog!$C2860=\"Log value\",DataLog!AG2860,\"\")","v":""},{"$f":"IF(DataLog!$C2860=\"Log value\",DataLog!AH2860,\"\")","v":""},{"$f":"IF(DataLog!$C2860=\"Log value\",DataLog!AI2860,\"\")","v":""},{"$f":"IF(DataLog!$C2860=\"Log value\",DataLog!AJ2860,\"\")","v":""},{"$f":"IF(DataLog!$C2860=\"Log value\",DataLog!AK2860,\"\")","v":""},{"$f":"IF(DataLog!$C2860=\"Log value\",DataLog!AL2860,\"\")","v":""},{"$f":"IF(DataLog!$C2860=\"Log value\",DataLog!AM2860,\"\")","v":""}]
[null,null,null,null,null,null,{"$f":"IF(DataLog!$C2861=\"Log value\",DataLog!D2861&\"_\"&TEXT(DataLog!B2861,\"åååå-mm-dd\"),\"\")","v":""},{"$f":"IF(DataLog!$C2861=\"Log value\",DataLog!E2861,\"\")","v":""},{"$f":"IF(DataLog!$C2861=\"Log value\",DataLog!F2861,\"\")","v":""},{"$f":"IF(DataLog!$C2861=\"Log value\",DataLog!G2861,\"\")","v":""},{"$f":"IF(DataLog!$C2861=\"Log value\",DataLog!H2861,\"\")","v":""},{"$f":"IF(DataLog!$C2861=\"Log value\",DataLog!I2861,\"\")","v":""},{"$f":"IF(DataLog!$C2861=\"Log value\",DataLog!J2861,\"\")","v":""},{"$f":"IF(DataLog!$C2861=\"Log value\",DataLog!K2861,\"\")","v":""},{"$f":"IF(DataLog!$C2861=\"Log value\",DataLog!L2861,\"\")","v":""},{"$f":"IF(DataLog!$C2861=\"Log value\",DataLog!M2861,\"\")","v":""},{"$f":"IF(DataLog!$C2861=\"Log value\",DataLog!N2861,\"\")","v":""},{"$f":"IF(DataLog!$C2861=\"Log value\",DataLog!O2861,\"\")","v":""},{"$f":"IF(DataLog!$C2861=\"Log value\",DataLog!P2861,\"\")","v":""},{"$f":"IF(DataLog!$C2861=\"Log value\",DataLog!Q2861,\"\")","v":""},{"$f":"IF(DataLog!$C2861=\"Log value\",DataLog!R2861,\"\")","v":""},{"$f":"IF(DataLog!$C2861=\"Log value\",DataLog!S2861,\"\")","v":""},{"$f":"IF(DataLog!$C2861=\"Log value\",DataLog!T2861,\"\")","v":""},{"$f":"IF(DataLog!$C2861=\"Log value\",DataLog!U2861,\"\")","v":""},{"$f":"IF(DataLog!$C2861=\"Log value\",DataLog!V2861,\"\")","v":""},{"$f":"IF(DataLog!$C2861=\"Log value\",DataLog!W2861,\"\")","v":""},{"$f":"IF(DataLog!$C2861=\"Log value\",DataLog!X2861,\"\")","v":""},{"$f":"IF(DataLog!$C2861=\"Log value\",DataLog!Y2861,\"\")","v":""},{"$f":"IF(DataLog!$C2861=\"Log value\",DataLog!Z2861,\"\")","v":""},{"$f":"IF(DataLog!$C2861=\"Log value\",DataLog!AA2861,\"\")","v":""},{"$f":"IF(DataLog!$C2861=\"Log value\",DataLog!AB2861,\"\")","v":""},{"$f":"IF(DataLog!$C2861=\"Log value\",DataLog!AC2861,\"\")","v":""},{"$f":"IF(DataLog!$C2861=\"Log value\",DataLog!AD2861,\"\")","v":""},{"$f":"IF(DataLog!$C2861=\"Log value\",DataLog!AE2861,\"\")","v":""},{"$f":"IF(DataLog!$C2861=\"Log value\",DataLog!AF2861,\"\")","v":""},{"$f":"IF(DataLog!$C2861=\"Log value\",DataLog!AG2861,\"\")","v":""},{"$f":"IF(DataLog!$C2861=\"Log value\",DataLog!AH2861,\"\")","v":""},{"$f":"IF(DataLog!$C2861=\"Log value\",DataLog!AI2861,\"\")","v":""},{"$f":"IF(DataLog!$C2861=\"Log value\",DataLog!AJ2861,\"\")","v":""},{"$f":"IF(DataLog!$C2861=\"Log value\",DataLog!AK2861,\"\")","v":""},{"$f":"IF(DataLog!$C2861=\"Log value\",DataLog!AL2861,\"\")","v":""},{"$f":"IF(DataLog!$C2861=\"Log value\",DataLog!AM2861,\"\")","v":""}]
[null,null,null,null,null,null,{"$f":"IF(DataLog!$C2864=\"Log value\",DataLog!D2864&\"_\"&TEXT(DataLog!B2864,\"åååå-mm-dd\"),\"\")","v":""},{"$f":"IF(DataLog!$C2864=\"Log value\",DataLog!E2864,\"\")","v":""},{"$f":"IF(DataLog!$C2864=\"Log value\",DataLog!F2864,\"\")","v":""},{"$f":"IF(DataLog!$C2864=\"Log value\",DataLog!G2864,\"\")","v":""},{"$f":"IF(DataLog!$C2864=\"Log value\",DataLog!H2864,\"\")","v":""},{"$f":"IF(DataLog!$C2864=\"Log value\",DataLog!I2864,\"\")","v":""},{"$f":"IF(DataLog!$C2864=\"Log value\",DataLog!J2864,\"\")","v":""},{"$f":"IF(DataLog!$C2864=\"Log value\",DataLog!K2864,\"\")","v":""},{"$f":"IF(DataLog!$C2864=\"Log value\",DataLog!L2864,\"\")","v":""},{"$f":"IF(DataLog!$C2864=\"Log value\",DataLog!M2864,\"\")","v":""},{"$f":"IF(DataLog!$C2864=\"Log value\",DataLog!N2864,\"\")","v":""},{"$f":"IF(DataLog!$C2864=\"Log value\",DataLog!O2864,\"\")","v":""},{"$f":"IF(DataLog!$C2864=\"Log value\",DataLog!P2864,\"\")","v":""},{"$f":"IF(DataLog!$C2864=\"Log value\",DataLog!Q2864,\"\")","v":""},{"$f":"IF(DataLog!$C2864=\"Log value\",DataLog!R2864,\"\")","v":""},{"$f":"IF(DataLog!$C2864=\"Log value\",DataLog!S2864,\"\")","v":""},{"$f":"IF(DataLog!$C2864=\"Log value\",DataLog!T2864,\"\")","v":""},{"$f":"IF(DataLog!$C2864=\"Log value\",DataLog!U2864,\"\")","v":""},{"$f":"IF(DataLog!$C2864=\"Log value\",DataLog!V2864,\"\")","v":""},{"$f":"IF(DataLog!$C2864=\"Log value\",DataLog!W2864,\"\")","v":""},{"$f":"IF(DataLog!$C2864=\"Log value\",DataLog!X2864,\"\")","v":""},{"$f":"IF(DataLog!$C2864=\"Log value\",DataLog!Y2864,\"\")","v":""},{"$f":"IF(DataLog!$C2864=\"Log value\",DataLog!Z2864,\"\")","v":""},{"$f":"IF(DataLog!$C2864=\"Log value\",DataLog!AA2864,\"\")","v":""},{"$f":"IF(DataLog!$C2864=\"Log value\",DataLog!AB2864,\"\")","v":""},{"$f":"IF(DataLog!$C2864=\"Log value\",DataLog!AC2864,\"\")","v":""},{"$f":"IF(DataLog!$C2864=\"Log value\",DataLog!AD2864,\"\")","v":""},{"$f":"IF(DataLog!$C2864=\"Log value\",DataLog!AE2864,\"\")","v":""},{"$f":"IF(DataLog!$C2864=\"Log value\",DataLog!AF2864,\"\")","v":""},{"$f":"IF(DataLog!$C2864=\"Log value\",DataLog!AG2864,\"\")","v":""},{"$f":"IF(DataLog!$C2864=\"Log value\",DataLog!AH2864,\"\")","v":""},{"$f":"IF(DataLog!$C2864=\"Log value\",DataLog!AI2864,\"\")","v":""},{"$f":"IF(DataLog!$C2864=\"Log value\",DataLog!AJ2864,\"\")","v":""},{"$f":"IF(DataLog!$C2864=\"Log value\",DataLog!AK2864,\"\")","v":""},{"$f":"IF(DataLog!$C2864=\"Log value\",DataLog!AL2864,\"\")","v":""},{"$f":"IF(DataLog!$C2864=\"Log value\",DataLog!AM2864,\"\")","v":""}]
[null,null,null,null,null,null,{"$f":"IF(DataLog!$C2865=\"Log value\",DataLog!D2865&\"_\"&TEXT(DataLog!B2865,\"åååå-mm-dd\"),\"\")","v":""},{"$f":"IF(DataLog!$C2865=\"Log value\",DataLog!E2865,\"\")","v":""},{"$f":"IF(DataLog!$C2865=\"Log value\",DataLog!F2865,\"\")","v":""},{"$f":"IF(DataLog!$C2865=\"Log value\",DataLog!G2865,\"\")","v":""},{"$f":"IF(DataLog!$C2865=\"Log value\",DataLog!H2865,\"\")","v":""},{"$f":"IF(DataLog!$C2865=\"Log value\",DataLog!I2865,\"\")","v":""},{"$f":"IF(DataLog!$C2865=\"Log value\",DataLog!J2865,\"\")","v":""},{"$f":"IF(DataLog!$C2865=\"Log value\",DataLog!K2865,\"\")","v":""},{"$f":"IF(DataLog!$C2865=\"Log value\",DataLog!L2865,\"\")","v":""},{"$f":"IF(DataLog!$C2865=\"Log value\",DataLog!M2865,\"\")","v":""},{"$f":"IF(DataLog!$C2865=\"Log value\",DataLog!N2865,\"\")","v":""},{"$f":"IF(DataLog!$C2865=\"Log value\",DataLog!O2865,\"\")","v":""},{"$f":"IF(DataLog!$C2865=\"Log value\",DataLog!P2865,\"\")","v":""},{"$f":"IF(DataLog!$C2865=\"Log value\",DataLog!Q2865,\"\")","v":""},{"$f":"IF(DataLog!$C2865=\"Log value\",DataLog!R2865,\"\")","v":""},{"$f":"IF(DataLog!$C2865=\"Log value\",DataLog!S2865,\"\")","v":""},{"$f":"IF(DataLog!$C2865=\"Log value\",DataLog!T2865,\"\")","v":""},{"$f":"IF(DataLog!$C2865=\"Log value\",DataLog!U2865,\"\")","v":""},{"$f":"IF(DataLog!$C2865=\"Log value\",DataLog!V2865,\"\")","v":""},{"$f":"IF(DataLog!$C2865=\"Log value\",DataLog!W2865,\"\")","v":""},{"$f":"IF(DataLog!$C2865=\"Log value\",DataLog!X2865,\"\")","v":""},{"$f":"IF(DataLog!$C2865=\"Log value\",DataLog!Y2865,\"\")","v":""},{"$f":"IF(DataLog!$C2865=\"Log value\",DataLog!Z2865,\"\")","v":""},{"$f":"IF(DataLog!$C2865=\"Log value\",DataLog!AA2865,\"\")","v":""},{"$f":"IF(DataLog!$C2865=\"Log value\",DataLog!AB2865,\"\")","v":""},{"$f":"IF(DataLog!$C2865=\"Log value\",DataLog!AC2865,\"\")","v":""},{"$f":"IF(DataLog!$C2865=\"Log value\",DataLog!AD2865,\"\")","v":""},{"$f":"IF(DataLog!$C2865=\"Log value\",DataLog!AE2865,\"\")","v":""},{"$f":"IF(DataLog!$C2865=\"Log value\",DataLog!AF2865,\"\")","v":""},{"$f":"IF(DataLog!$C2865=\"Log value\",DataLog!AG2865,\"\")","v":""},{"$f":"IF(DataLog!$C2865=\"Log value\",DataLog!AH2865,\"\")","v":""},{"$f":"IF(DataLog!$C2865=\"Log value\",DataLog!AI2865,\"\")","v":""},{"$f":"IF(DataLog!$C2865=\"Log value\",DataLog!AJ2865,\"\")","v":""},{"$f":"IF(DataLog!$C2865=\"Log value\",DataLog!AK2865,\"\")","v":""},{"$f":"IF(DataLog!$C2865=\"Log value\",DataLog!AL2865,\"\")","v":""},{"$f":"IF(DataLog!$C2865=\"Log value\",DataLog!AM2865,\"\")","v":""}]
[null,null,null,null,null,null,{"$f":"IF(DataLog!$C2867=\"Log value\",DataLog!D2867&\"_\"&TEXT(DataLog!B2867,\"åååå-mm-dd\"),\"\")","v":""},{"$f":"IF(DataLog!$C2867=\"Log value\",DataLog!E2867,\"\")","v":""},{"$f":"IF(DataLog!$C2867=\"Log value\",DataLog!F2867,\"\")","v":""},{"$f":"IF(DataLog!$C2867=\"Log value\",DataLog!G2867,\"\")","v":""},{"$f":"IF(DataLog!$C2867=\"Log value\",DataLog!H2867,\"\")","v":""},{"$f":"IF(DataLog!$C2867=\"Log value\",DataLog!I2867,\"\")","v":""},{"$f":"IF(DataLog!$C2867=\"Log value\",DataLog!J2867,\"\")","v":""},{"$f":"IF(DataLog!$C2867=\"Log value\",DataLog!K2867,\"\")","v":""},{"$f":"IF(DataLog!$C2867=\"Log value\",DataLog!L2867,\"\")","v":""},{"$f":"IF(DataLog!$C2867=\"Log value\",DataLog!M2867,\"\")","v":""},{"$f":"IF(DataLog!$C2867=\"Log value\",DataLog!N2867,\"\")","v":""},{"$f":"IF(DataLog!$C2867=\"Log value\",DataLog!O2867,\"\")","v":""},{"$f":"IF(DataLog!$C2867=\"Log value\",DataLog!P2867,\"\")","v":""},{"$f":"IF(DataLog!$C2867=\"Log value\",DataLog!Q2867,\"\")","v":""},{"$f":"IF(DataLog!$C2867=\"Log value\",DataLog!R2867,\"\")","v":""},{"$f":"IF(DataLog!$C2867=\"Log value\",DataLog!S2867,\"\")","v":""},{"$f":"IF(DataLog!$C2867=\"Log value\",DataLog!T2867,\"\")","v":""},{"$f":"IF(DataLog!$C2867=\"Log value\",DataLog!U2867,\"\")","v":""},{"$f":"IF(DataLog!$C2867=\"Log value\",DataLog!V2867,\"\")","v":""},{"$f":"IF(DataLog!$C2867=\"Log value\",DataLog!W2867,\"\")","v":""},{"$f":"IF(DataLog!$C2867=\"Log value\",DataLog!X2867,\"\")","v":""},{"$f":"IF(DataLog!$C2867=\"Log value\",DataLog!Y2867,\"\")","v":""},{"$f":"IF(DataLog!$C2867=\"Log value\",DataLog!Z2867,\"\")","v":""},{"$f":"IF(DataLog!$C2867=\"Log value\",DataLog!AA2867,\"\")","v":""},{"$f":"IF(DataLog!$C2867=\"Log value\",DataLog!AB2867,\"\")","v":""},{"$f":"IF(DataLog!$C2867=\"Log value\",DataLog!AC2867,\"\")","v":""},{"$f":"IF(DataLog!$C2867=\"Log value\",DataLog!AD2867,\"\")","v":""},{"$f":"IF(DataLog!$C2867=\"Log value\",DataLog!AE2867,\"\")","v":""},{"$f":"IF(DataLog!$C2867=\"Log value\",DataLog!AF2867,\"\")","v":""},{"$f":"IF(DataLog!$C2867=\"Log value\",DataLog!AG2867,\"\")","v":""},{"$f":"IF(DataLog!$C2867=\"Log value\",DataLog!AH2867,\"\")","v":""},{"$f":"IF(DataLog!$C2867=\"Log value\",DataLog!AI2867,\"\")","v":""},{"$f":"IF(DataLog!$C2867=\"Log value\",DataLog!AJ2867,\"\")","v":""},{"$f":"IF(DataLog!$C2867=\"Log value\",DataLog!AK2867,\"\")","v":""},{"$f":"IF(DataLog!$C2867=\"Log value\",DataLog!AL2867,\"\")","v":""},{"$f":"IF(DataLog!$C2867=\"Log value\",DataLog!AM2867,\"\")","v":""}]
[null,null,null,null,null,null,{"$f":"IF(DataLog!$C2870=\"Log value\",DataLog!D2870&\"_\"&TEXT(DataLog!B2870,\"åååå-mm-dd\"),\"\")","v":""},{"$f":"IF(DataLog!$C2870=\"Log value\",DataLog!E2870,\"\")","v":""},{"$f":"IF(DataLog!$C2870=\"Log value\",DataLog!F2870,\"\")","v":""},{"$f":"IF(DataLog!$C2870=\"Log value\",DataLog!G2870,\"\")","v":""},{"$f":"IF(DataLog!$C2870=\"Log value\",DataLog!H2870,\"\")","v":""},{"$f":"IF(DataLog!$C2870=\"Log value\",DataLog!I2870,\"\")","v":""},{"$f":"IF(DataLog!$C2870=\"Log value\",DataLog!J2870,\"\")","v":""},{"$f":"IF(DataLog!$C2870=\"Log value\",DataLog!K2870,\"\")","v":""},{"$f":"IF(DataLog!$C2870=\"Log value\",DataLog!L2870,\"\")","v":""},{"$f":"IF(DataLog!$C2870=\"Log value\",DataLog!M2870,\"\")","v":""},{"$f":"IF(DataLog!$C2870=\"Log value\",DataLog!N2870,\"\")","v":""},{"$f":"IF(DataLog!$C2870=\"Log value\",DataLog!O2870,\"\")","v":""},{"$f":"IF(DataLog!$C2870=\"Log value\",DataLog!P2870,\"\")","v":""},{"$f":"IF(DataLog!$C2870=\"Log value\",DataLog!Q2870,\"\")","v":""},{"$f":"IF(DataLog!$C2870=\"Log value\",DataLog!R2870,\"\")","v":""},{"$f":"IF(DataLog!$C2870=\"Log value\",DataLog!S2870,\"\")","v":""},{"$f":"IF(DataLog!$C2870=\"Log value\",DataLog!T2870,\"\")","v":""},{"$f":"IF(DataLog!$C2870=\"Log value\",DataLog!U2870,\"\")","v":""},{"$f":"IF(DataLog!$C2870=\"Log value\",DataLog!V2870,\"\")","v":""},{"$f":"IF(DataLog!$C2870=\"Log value\",DataLog!W2870,\"\")","v":""},{"$f":"IF(DataLog!$C2870=\"Log value\",DataLog!X2870,\"\")","v":""},{"$f":"IF(DataLog!$C2870=\"Log value\",DataLog!Y2870,\"\")","v":""},{"$f":"IF(DataLog!$C2870=\"Log value\",DataLog!Z2870,\"\")","v":""},{"$f":"IF(DataLog!$C2870=\"Log value\",DataLog!AA2870,\"\")","v":""},{"$f":"IF(DataLog!$C2870=\"Log value\",DataLog!AB2870,\"\")","v":""},{"$f":"IF(DataLog!$C2870=\"Log value\",DataLog!AC2870,\"\")","v":""},{"$f":"IF(DataLog!$C2870=\"Log value\",DataLog!AD2870,\"\")","v":""},{"$f":"IF(DataLog!$C2870=\"Log value\",DataLog!AE2870,\"\")","v":""},{"$f":"IF(DataLog!$C2870=\"Log value\",DataLog!AF2870,\"\")","v":""},{"$f":"IF(DataLog!$C2870=\"Log value\",DataLog!AG2870,\"\")","v":""},{"$f":"IF(DataLog!$C2870=\"Log value\",DataLog!AH2870,\"\")","v":""},{"$f":"IF(DataLog!$C2870=\"Log value\",DataLog!AI2870,\"\")","v":""},{"$f":"IF(DataLog!$C2870=\"Log value\",DataLog!AJ2870,\"\")","v":""},{"$f":"IF(DataLog!$C2870=\"Log value\",DataLog!AK2870,\"\")","v":""},{"$f":"IF(DataLog!$C2870=\"Log value\",DataLog!AL2870,\"\")","v":""},{"$f":"IF(DataLog!$C2870=\"Log value\",DataLog!AM2870,\"\")","v":""}]
[null,null,null,null,null,null,{"$f":"IF(DataLog!$C2873=\"Log value\",DataLog!D2873&\"_\"&TEXT(DataLog!B2873,\"åååå-mm-dd\"),\"\")","v":""},{"$f":"IF(DataLog!$C2873=\"Log value\",DataLog!E2873,\"\")","v":""},{"$f":"IF(DataLog!$C2873=\"Log value\",DataLog!F2873,\"\")","v":""},{"$f":"IF(DataLog!$C2873=\"Log value\",DataLog!G2873,\"\")","v":""},{"$f":"IF(DataLog!$C2873=\"Log value\",DataLog!H2873,\"\")","v":""},{"$f":"IF(DataLog!$C2873=\"Log value\",DataLog!I2873,\"\")","v":""},{"$f":"IF(DataLog!$C2873=\"Log value\",DataLog!J2873,\"\")","v":""},{"$f":"IF(DataLog!$C2873=\"Log value\",DataLog!K2873,\"\")","v":""},{"$f":"IF(DataLog!$C2873=\"Log value\",DataLog!L2873,\"\")","v":""},{"$f":"IF(DataLog!$C2873=\"Log value\",DataLog!M2873,\"\")","v":""},{"$f":"IF(DataLog!$C2873=\"Log value\",DataLog!N2873,\"\")","v":""},{"$f":"IF(DataLog!$C2873=\"Log value\",DataLog!O2873,\"\")","v":""},{"$f":"IF(DataLog!$C2873=\"Log value\",DataLog!P2873,\"\")","v":""},{"$f":"IF(DataLog!$C2873=\"Log value\",DataLog!Q2873,\"\")","v":""},{"$f":"IF(DataLog!$C2873=\"Log value\",DataLog!R2873,\"\")","v":""},{"$f":"IF(DataLog!$C2873=\"Log value\",DataLog!S2873,\"\")","v":""},{"$f":"IF(DataLog!$C2873=\"Log value\",DataLog!T2873,\"\")","v":""},{"$f":"IF(DataLog!$C2873=\"Log value\",DataLog!U2873,\"\")","v":""},{"$f":"IF(DataLog!$C2873=\"Log value\",DataLog!V2873,\"\")","v":""},{"$f":"IF(DataLog!$C2873=\"Log value\",DataLog!W2873,\"\")","v":""},{"$f":"IF(DataLog!$C2873=\"Log value\",DataLog!X2873,\"\")","v":""},{"$f":"IF(DataLog!$C2873=\"Log value\",DataLog!Y2873,\"\")","v":""},{"$f":"IF(DataLog!$C2873=\"Log value\",DataLog!Z2873,\"\")","v":""},{"$f":"IF(DataLog!$C2873=\"Log value\",DataLog!AA2873,\"\")","v":""},{"$f":"IF(DataLog!$C2873=\"Log value\",DataLog!AB2873,\"\")","v":""},{"$f":"IF(DataLog!$C2873=\"Log value\",DataLog!AC2873,\"\")","v":""},{"$f":"IF(DataLog!$C2873=\"Log value\",DataLog!AD2873,\"\")","v":""},{"$f":"IF(DataLog!$C2873=\"Log value\",DataLog!AE2873,\"\")","v":""},{"$f":"IF(DataLog!$C2873=\"Log value\",DataLog!AF2873,\"\")","v":""},{"$f":"IF(DataLog!$C2873=\"Log value\",DataLog!AG2873,\"\")","v":""},{"$f":"IF(DataLog!$C2873=\"Log value\",DataLog!AH2873,\"\")","v":""},{"$f":"IF(DataLog!$C2873=\"Log value\",DataLog!AI2873,\"\")","v":""},{"$f":"IF(DataLog!$C2873=\"Log value\",DataLog!AJ2873,\"\")","v":""},{"$f":"IF(DataLog!$C2873=\"Log value\",DataLog!AK2873,\"\")","v":""},{"$f":"IF(DataLog!$C2873=\"Log value\",DataLog!AL2873,\"\")","v":""},{"$f":"IF(DataLog!$C2873=\"Log value\",DataLog!AM2873,\"\")","v":""}]
[null,null,null,null,null,null,{"$f":"IF(DataLog!$C2874=\"Log value\",DataLog!D2874&\"_\"&TEXT(DataLog!B2874,\"åååå-mm-dd\"),\"\")","v":""},{"$f":"IF(DataLog!$C2874=\"Log value\",DataLog!E2874,\"\")","v":""},{"$f":"IF(DataLog!$C2874=\"Log value\",DataLog!F2874,\"\")","v":""},{"$f":"IF(DataLog!$C2874=\"Log value\",DataLog!G2874,\"\")","v":""},{"$f":"IF(DataLog!$C2874=\"Log value\",DataLog!H2874,\"\")","v":""},{"$f":"IF(DataLog!$C2874=\"Log value\",DataLog!I2874,\"\")","v":""},{"$f":"IF(DataLog!$C2874=\"Log value\",DataLog!J2874,\"\")","v":""},{"$f":"IF(DataLog!$C2874=\"Log value\",DataLog!K2874,\"\")","v":""},{"$f":"IF(DataLog!$C2874=\"Log value\",DataLog!L2874,\"\")","v":""},{"$f":"IF(DataLog!$C2874=\"Log value\",DataLog!M2874,\"\")","v":""},{"$f":"IF(DataLog!$C2874=\"Log value\",DataLog!N2874,\"\")","v":""},{"$f":"IF(DataLog!$C2874=\"Log value\",DataLog!O2874,\"\")","v":""},{"$f":"IF(DataLog!$C2874=\"Log value\",DataLog!P2874,\"\")","v":""},{"$f":"IF(DataLog!$C2874=\"Log value\",DataLog!Q2874,\"\")","v":""},{"$f":"IF(DataLog!$C2874=\"Log value\",DataLog!R2874,\"\")","v":""},{"$f":"IF(DataLog!$C2874=\"Log value\",DataLog!S2874,\"\")","v":""},{"$f":"IF(DataLog!$C2874=\"Log value\",DataLog!T2874,\"\")","v":""},{"$f":"IF(DataLog!$C2874=\"Log value\",DataLog!U2874,\"\")","v":""},{"$f":"IF(DataLog!$C2874=\"Log value\",DataLog!V2874,\"\")","v":""},{"$f":"IF(DataLog!$C2874=\"Log value\",DataLog!W2874,\"\")","v":""},{"$f":"IF(DataLog!$C2874=\"Log value\",DataLog!X2874,\"\")","v":""},{"$f":"IF(DataLog!$C2874=\"Log value\",DataLog!Y2874,\"\")","v":""},{"$f":"IF(DataLog!$C2874=\"Log value\",DataLog!Z2874,\"\")","v":""},{"$f":"IF(DataLog!$C2874=\"Log value\",DataLog!AA2874,\"\")","v":""},{"$f":"IF(DataLog!$C2874=\"Log value\",DataLog!AB2874,\"\")","v":""},{"$f":"IF(DataLog!$C2874=\"Log value\",DataLog!AC2874,\"\")","v":""},{"$f":"IF(DataLog!$C2874=\"Log value\",DataLog!AD2874,\"\")","v":""},{"$f":"IF(DataLog!$C2874=\"Log value\",DataLog!AE2874,\"\")","v":""},{"$f":"IF(DataLog!$C2874=\"Log value\",DataLog!AF2874,\"\")","v":""},{"$f":"IF(DataLog!$C2874=\"Log value\",DataLog!AG2874,\"\")","v":""},{"$f":"IF(DataLog!$C2874=\"Log value\",DataLog!AH2874,\"\")","v":""},{"$f":"IF(DataLog!$C2874=\"Log value\",DataLog!AI2874,\"\")","v":""},{"$f":"IF(DataLog!$C2874=\"Log value\",DataLog!AJ2874,\"\")","v":""},{"$f":"IF(DataLog!$C2874=\"Log value\",DataLog!AK2874,\"\")","v":""},{"$f":"IF(DataLog!$C2874=\"Log value\",DataLog!AL2874,\"\")","v":""},{"$f":"IF(DataLog!$C2874=\"Log value\",DataLog!AM2874,\"\")","v":""}]
[null,null,null,null,null,null,{"$f":"IF(DataLog!$C2878=\"Log value\",DataLog!D2878&\"_\"&TEXT(DataLog!B2878,\"åååå-mm-dd\"),\"\")","v":""},{"$f":"IF(DataLog!$C2878=\"Log value\",DataLog!E2878,\"\")","v":""},{"$f":"IF(DataLog!$C2878=\"Log value\",DataLog!F2878,\"\")","v":""},{"$f":"IF(DataLog!$C2878=\"Log value\",DataLog!G2878,\"\")","v":""},{"$f":"IF(DataLog!$C2878=\"Log value\",DataLog!H2878,\"\")","v":""},{"$f":"IF(DataLog!$C2878=\"Log value\",DataLog!I2878,\"\")","v":""},{"$f":"IF(DataLog!$C2878=\"Log value\",DataLog!J2878,\"\")","v":""},{"$f":"IF(DataLog!$C2878=\"Log value\",DataLog!K2878,\"\")","v":""},{"$f":"IF(DataLog!$C2878=\"Log value\",DataLog!L2878,\"\")","v":""},{"$f":"IF(DataLog!$C2878=\"Log value\",DataLog!M2878,\"\")","v":""},{"$f":"IF(DataLog!$C2878=\"Log value\",DataLog!N2878,\"\")","v":""},{"$f":"IF(DataLog!$C2878=\"Log value\",DataLog!O2878,\"\")","v":""},{"$f":"IF(DataLog!$C2878=\"Log value\",DataLog!P2878,\"\")","v":""},{"$f":"IF(DataLog!$C2878=\"Log value\",DataLog!Q2878,\"\")","v":""},{"$f":"IF(DataLog!$C2878=\"Log value\",DataLog!R2878,\"\")","v":""},{"$f":"IF(DataLog!$C2878=\"Log value\",DataLog!S2878,\"\")","v":""},{"$f":"IF(DataLog!$C2878=\"Log value\",DataLog!T2878,\"\")","v":""},{"$f":"IF(DataLog!$C2878=\"Log value\",DataLog!U2878,\"\")","v":""},{"$f":"IF(DataLog!$C2878=\"Log value\",DataLog!V2878,\"\")","v":""},{"$f":"IF(DataLog!$C2878=\"Log value\",DataLog!W2878,\"\")","v":""},{"$f":"IF(DataLog!$C2878=\"Log value\",DataLog!X2878,\"\")","v":""},{"$f":"IF(DataLog!$C2878=\"Log value\",DataLog!Y2878,\"\")","v":""},{"$f":"IF(DataLog!$C2878=\"Log value\",DataLog!Z2878,\"\")","v":""},{"$f":"IF(DataLog!$C2878=\"Log value\",DataLog!AA2878,\"\")","v":""},{"$f":"IF(DataLog!$C2878=\"Log value\",DataLog!AB2878,\"\")","v":""},{"$f":"IF(DataLog!$C2878=\"Log value\",DataLog!AC2878,\"\")","v":""},{"$f":"IF(DataLog!$C2878=\"Log value\",DataLog!AD2878,\"\")","v":""},{"$f":"IF(DataLog!$C2878=\"Log value\",DataLog!AE2878,\"\")","v":""},{"$f":"IF(DataLog!$C2878=\"Log value\",DataLog!AF2878,\"\")","v":""},{"$f":"IF(DataLog!$C2878=\"Log value\",DataLog!AG2878,\"\")","v":""},{"$f":"IF(DataLog!$C2878=\"Log value\",DataLog!AH2878,\"\")","v":""},{"$f":"IF(DataLog!$C2878=\"Log value\",DataLog!AI2878,\"\")","v":""},{"$f":"IF(DataLog!$C2878=\"Log value\",DataLog!AJ2878,\"\")","v":""},{"$f":"IF(DataLog!$C2878=\"Log value\",DataLog!AK2878,\"\")","v":""},{"$f":"IF(DataLog!$C2878=\"Log value\",DataLog!AL2878,\"\")","v":""},{"$f":"IF(DataLog!$C2878=\"Log value\",DataLog!AM2878,\"\")","v":""}]
[null,null,null,null,null,null,{"$f":"IF(DataLog!$C2879=\"Log value\",DataLog!D2879&\"_\"&TEXT(DataLog!B2879,\"åååå-mm-dd\"),\"\")","v":""},{"$f":"IF(DataLog!$C2879=\"Log value\",DataLog!E2879,\"\")","v":""},{"$f":"IF(DataLog!$C2879=\"Log value\",DataLog!F2879,\"\")","v":""},{"$f":"IF(DataLog!$C2879=\"Log value\",DataLog!G2879,\"\")","v":""},{"$f":"IF(DataLog!$C2879=\"Log value\",DataLog!H2879,\"\")","v":""},{"$f":"IF(DataLog!$C2879=\"Log value\",DataLog!I2879,\"\")","v":""},{"$f":"IF(DataLog!$C2879=\"Log value\",DataLog!J2879,\"\")","v":""},{"$f":"IF(DataLog!$C2879=\"Log value\",DataLog!K2879,\"\")","v":""},{"$f":"IF(DataLog!$C2879=\"Log value\",DataLog!L2879,\"\")","v":""},{"$f":"IF(DataLog!$C2879=\"Log value\",DataLog!M2879,\"\")","v":""},{"$f":"IF(DataLog!$C2879=\"Log value\",DataLog!N2879,\"\")","v":""},{"$f":"IF(DataLog!$C2879=\"Log value\",DataLog!O2879,\"\")","v":""},{"$f":"IF(DataLog!$C2879=\"Log value\",DataLog!P2879,\"\")","v":""},{"$f":"IF(DataLog!$C2879=\"Log value\",DataLog!Q2879,\"\")","v":""},{"$f":"IF(DataLog!$C2879=\"Log value\",DataLog!R2879,\"\")","v":""},{"$f":"IF(DataLog!$C2879=\"Log value\",DataLog!S2879,\"\")","v":""},{"$f":"IF(DataLog!$C2879=\"Log value\",DataLog!T2879,\"\")","v":""},{"$f":"IF(DataLog!$C2879=\"Log value\",DataLog!U2879,\"\")","v":""},{"$f":"IF(DataLog!$C2879=\"Log value\",DataLog!V2879,\"\")","v":""},{"$f":"IF(DataLog!$C2879=\"Log value\",DataLog!W2879,\"\")","v":""},{"$f":"IF(DataLog!$C2879=\"Log value\",DataLog!X2879,\"\")","v":""},{"$f":"IF(DataLog!$C2879=\"Log value\",DataLog!Y2879,\"\")","v":""},{"$f":"IF(DataLog!$C2879=\"Log value\",DataLog!Z2879,\"\")","v":""},{"$f":"IF(DataLog!$C2879=\"Log value\",DataLog!AA2879,\"\")","v":""},{"$f":"IF(DataLog!$C2879=\"Log value\",DataLog!AB2879,\"\")","v":""},{"$f":"IF(DataLog!$C2879=\"Log value\",DataLog!AC2879,\"\")","v":""},{"$f":"IF(DataLog!$C2879=\"Log value\",DataLog!AD2879,\"\")","v":""},{"$f":"IF(DataLog!$C2879=\"Log value\",DataLog!AE2879,\"\")","v":""},{"$f":"IF(DataLog!$C2879=\"Log value\",DataLog!AF2879,\"\")","v":""},{"$f":"IF(DataLog!$C2879=\"Log value\",DataLog!AG2879,\"\")","v":""},{"$f":"IF(DataLog!$C2879=\"Log value\",DataLog!AH2879,\"\")","v":""},{"$f":"IF(DataLog!$C2879=\"Log value\",DataLog!AI2879,\"\")","v":""},{"$f":"IF(DataLog!$C2879=\"Log value\",DataLog!AJ2879,\"\")","v":""},{"$f":"IF(DataLog!$C2879=\"Log value\",DataLog!AK2879,\"\")","v":""},{"$f":"IF(DataLog!$C2879=\"Log value\",DataLog!AL2879,\"\")","v":""},{"$f":"IF(DataLog!$C2879=\"Log value\",DataLog!AM2879,\"\")","v":""}]
[null,null,null,null,null,null,{"$f":"IF(DataLog!$C2882=\"Log value\",DataLog!D2882&\"_\"&TEXT(DataLog!B2882,\"åååå-mm-dd\"),\"\")","v":""},{"$f":"IF(DataLog!$C2882=\"Log value\",DataLog!E2882,\"\")","v":""},{"$f":"IF(DataLog!$C2882=\"Log value\",DataLog!F2882,\"\")","v":""},{"$f":"IF(DataLog!$C2882=\"Log value\",DataLog!G2882,\"\")","v":""},{"$f":"IF(DataLog!$C2882=\"Log value\",DataLog!H2882,\"\")","v":""},{"$f":"IF(DataLog!$C2882=\"Log value\",DataLog!I2882,\"\")","v":""},{"$f":"IF(DataLog!$C2882=\"Log value\",DataLog!J2882,\"\")","v":""},{"$f":"IF(DataLog!$C2882=\"Log value\",DataLog!K2882,\"\")","v":""},{"$f":"IF(DataLog!$C2882=\"Log value\",DataLog!L2882,\"\")","v":""},{"$f":"IF(DataLog!$C2882=\"Log value\",DataLog!M2882,\"\")","v":""},{"$f":"IF(DataLog!$C2882=\"Log value\",DataLog!N2882,\"\")","v":""},{"$f":"IF(DataLog!$C2882=\"Log value\",DataLog!O2882,\"\")","v":""},{"$f":"IF(DataLog!$C2882=\"Log value\",DataLog!P2882,\"\")","v":""},{"$f":"IF(DataLog!$C2882=\"Log value\",DataLog!Q2882,\"\")","v":""},{"$f":"IF(DataLog!$C2882=\"Log value\",DataLog!R2882,\"\")","v":""},{"$f":"IF(DataLog!$C2882=\"Log value\",DataLog!S2882,\"\")","v":""},{"$f":"IF(DataLog!$C2882=\"Log value\",DataLog!T2882,\"\")","v":""},{"$f":"IF(DataLog!$C2882=\"Log value\",DataLog!U2882,\"\")","v":""},{"$f":"IF(DataLog!$C2882=\"Log value\",DataLog!V2882,\"\")","v":""},{"$f":"IF(DataLog!$C2882=\"Log value\",DataLog!W2882,\"\")","v":""},{"$f":"IF(DataLog!$C2882=\"Log value\",DataLog!X2882,\"\")","v":""},{"$f":"IF(DataLog!$C2882=\"Log value\",DataLog!Y2882,\"\")","v":""},{"$f":"IF(DataLog!$C2882=\"Log value\",DataLog!Z2882,\"\")","v":""},{"$f":"IF(DataLog!$C2882=\"Log value\",DataLog!AA2882,\"\")","v":""},{"$f":"IF(DataLog!$C2882=\"Log value\",DataLog!AB2882,\"\")","v":""},{"$f":"IF(DataLog!$C2882=\"Log value\",DataLog!AC2882,\"\")","v":""},{"$f":"IF(DataLog!$C2882=\"Log value\",DataLog!AD2882,\"\")","v":""},{"$f":"IF(DataLog!$C2882=\"Log value\",DataLog!AE2882,\"\")","v":""},{"$f":"IF(DataLog!$C2882=\"Log value\",DataLog!AF2882,\"\")","v":""},{"$f":"IF(DataLog!$C2882=\"Log value\",DataLog!AG2882,\"\")","v":""},{"$f":"IF(DataLog!$C2882=\"Log value\",DataLog!AH2882,\"\")","v":""},{"$f":"IF(DataLog!$C2882=\"Log value\",DataLog!AI2882,\"\")","v":""},{"$f":"IF(DataLog!$C2882=\"Log value\",DataLog!AJ2882,\"\")","v":""},{"$f":"IF(DataLog!$C2882=\"Log value\",DataLog!AK2882,\"\")","v":""},{"$f":"IF(DataLog!$C2882=\"Log value\",DataLog!AL2882,\"\")","v":""},{"$f":"IF(DataLog!$C2882=\"Log value\",DataLog!AM2882,\"\")","v":""}]
[null,null,null,null,null,null,{"$f":"IF(DataLog!$C2883=\"Log value\",DataLog!D2883&\"_\"&TEXT(DataLog!B2883,\"åååå-mm-dd\"),\"\")","v":""},{"$f":"IF(DataLog!$C2883=\"Log value\",DataLog!E2883,\"\")","v":""},{"$f":"IF(DataLog!$C2883=\"Log value\",DataLog!F2883,\"\")","v":""},{"$f":"IF(DataLog!$C2883=\"Log value\",DataLog!G2883,\"\")","v":""},{"$f":"IF(DataLog!$C2883=\"Log value\",DataLog!H2883,\"\")","v":""},{"$f":"IF(DataLog!$C2883=\"Log value\",DataLog!I2883,\"\")","v":""},{"$f":"IF(DataLog!$C2883=\"Log value\",DataLog!J2883,\"\")","v":""},{"$f":"IF(DataLog!$C2883=\"Log value\",DataLog!K2883,\"\")","v":""},{"$f":"IF(DataLog!$C2883=\"Log value\",DataLog!L2883,\"\")","v":""},{"$f":"IF(DataLog!$C2883=\"Log value\",DataLog!M2883,\"\")","v":""},{"$f":"IF(DataLog!$C2883=\"Log value\",DataLog!N2883,\"\")","v":""},{"$f":"IF(DataLog!$C2883=\"Log value\",DataLog!O2883,\"\")","v":""},{"$f":"IF(DataLog!$C2883=\"Log value\",DataLog!P2883,\"\")","v":""},{"$f":"IF(DataLog!$C2883=\"Log value\",DataLog!Q2883,\"\")","v":""},{"$f":"IF(DataLog!$C2883=\"Log value\",DataLog!R2883,\"\")","v":""},{"$f":"IF(DataLog!$C2883=\"Log value\",DataLog!S2883,\"\")","v":""},{"$f":"IF(DataLog!$C2883=\"Log value\",DataLog!T2883,\"\")","v":""},{"$f":"IF(DataLog!$C2883=\"Log value\",DataLog!U2883,\"\")","v":""},{"$f":"IF(DataLog!$C2883=\"Log value\",DataLog!V2883,\"\")","v":""},{"$f":"IF(DataLog!$C2883=\"Log value\",DataLog!W2883,\"\")","v":""},{"$f":"IF(DataLog!$C2883=\"Log value\",DataLog!X2883,\"\")","v":""},{"$f":"IF(DataLog!$C2883=\"Log value\",DataLog!Y2883,\"\")","v":""},{"$f":"IF(DataLog!$C2883=\"Log value\",DataLog!Z2883,\"\")","v":""},{"$f":"IF(DataLog!$C2883=\"Log value\",DataLog!AA2883,\"\")","v":""},{"$f":"IF(DataLog!$C2883=\"Log value\",DataLog!AB2883,\"\")","v":""},{"$f":"IF(DataLog!$C2883=\"Log value\",DataLog!AC2883,\"\")","v":""},{"$f":"IF(DataLog!$C2883=\"Log value\",DataLog!AD2883,\"\")","v":""},{"$f":"IF(DataLog!$C2883=\"Log value\",DataLog!AE2883,\"\")","v":""},{"$f":"IF(DataLog!$C2883=\"Log value\",DataLog!AF2883,\"\")","v":""},{"$f":"IF(DataLog!$C2883=\"Log value\",DataLog!AG2883,\"\")","v":""},{"$f":"IF(DataLog!$C2883=\"Log value\",DataLog!AH2883,\"\")","v":""},{"$f":"IF(DataLog!$C2883=\"Log value\",DataLog!AI2883,\"\")","v":""},{"$f":"IF(DataLog!$C2883=\"Log value\",DataLog!AJ2883,\"\")","v":""},{"$f":"IF(DataLog!$C2883=\"Log value\",DataLog!AK2883,\"\")","v":""},{"$f":"IF(DataLog!$C2883=\"Log value\",DataLog!AL2883,\"\")","v":""},{"$f":"IF(DataLog!$C2883=\"Log value\",DataLog!AM2883,\"\")","v":""}]
[null,null,null,null,null,null,{"$f":"IF(DataLog!$C2887=\"Log value\",DataLog!D2887&\"_\"&TEXT(DataLog!B2887,\"åååå-mm-dd\"),\"\")","v":""},{"$f":"IF(DataLog!$C2887=\"Log value\",DataLog!E2887,\"\")","v":""},{"$f":"IF(DataLog!$C2887=\"Log value\",DataLog!F2887,\"\")","v":""},{"$f":"IF(DataLog!$C2887=\"Log value\",DataLog!G2887,\"\")","v":""},{"$f":"IF(DataLog!$C2887=\"Log value\",DataLog!H2887,\"\")","v":""},{"$f":"IF(DataLog!$C2887=\"Log value\",DataLog!I2887,\"\")","v":""},{"$f":"IF(DataLog!$C2887=\"Log value\",DataLog!J2887,\"\")","v":""},{"$f":"IF(DataLog!$C2887=\"Log value\",DataLog!K2887,\"\")","v":""},{"$f":"IF(DataLog!$C2887=\"Log value\",DataLog!L2887,\"\")","v":""},{"$f":"IF(DataLog!$C2887=\"Log value\",DataLog!M2887,\"\")","v":""},{"$f":"IF(DataLog!$C2887=\"Log value\",DataLog!N2887,\"\")","v":""},{"$f":"IF(DataLog!$C2887=\"Log value\",DataLog!O2887,\"\")","v":""},{"$f":"IF(DataLog!$C2887=\"Log value\",DataLog!P2887,\"\")","v":""},{"$f":"IF(DataLog!$C2887=\"Log value\",DataLog!Q2887,\"\")","v":""},{"$f":"IF(DataLog!$C2887=\"Log value\",DataLog!R2887,\"\")","v":""},{"$f":"IF(DataLog!$C2887=\"Log value\",DataLog!S2887,\"\")","v":""},{"$f":"IF(DataLog!$C2887=\"Log value\",DataLog!T2887,\"\")","v":""},{"$f":"IF(DataLog!$C2887=\"Log value\",DataLog!U2887,\"\")","v":""},{"$f":"IF(DataLog!$C2887=\"Log value\",DataLog!V2887,\"\")","v":""},{"$f":"IF(DataLog!$C2887=\"Log value\",DataLog!W2887,\"\")","v":""},{"$f":"IF(DataLog!$C2887=\"Log value\",DataLog!X2887,\"\")","v":""},{"$f":"IF(DataLog!$C2887=\"Log value\",DataLog!Y2887,\"\")","v":""},{"$f":"IF(DataLog!$C2887=\"Log value\",DataLog!Z2887,\"\")","v":""},{"$f":"IF(DataLog!$C2887=\"Log value\",DataLog!AA2887,\"\")","v":""},{"$f":"IF(DataLog!$C2887=\"Log value\",DataLog!AB2887,\"\")","v":""},{"$f":"IF(DataLog!$C2887=\"Log value\",DataLog!AC2887,\"\")","v":""},{"$f":"IF(DataLog!$C2887=\"Log value\",DataLog!AD2887,\"\")","v":""},{"$f":"IF(DataLog!$C2887=\"Log value\",DataLog!AE2887,\"\")","v":""},{"$f":"IF(DataLog!$C2887=\"Log value\",DataLog!AF2887,\"\")","v":""},{"$f":"IF(DataLog!$C2887=\"Log value\",DataLog!AG2887,\"\")","v":""},{"$f":"IF(DataLog!$C2887=\"Log value\",DataLog!AH2887,\"\")","v":""},{"$f":"IF(DataLog!$C2887=\"Log value\",DataLog!AI2887,\"\")","v":""},{"$f":"IF(DataLog!$C2887=\"Log value\",DataLog!AJ2887,\"\")","v":""},{"$f":"IF(DataLog!$C2887=\"Log value\",DataLog!AK2887,\"\")","v":""},{"$f":"IF(DataLog!$C2887=\"Log value\",DataLog!AL2887,\"\")","v":""},{"$f":"IF(DataLog!$C2887=\"Log value\",DataLog!AM2887,\"\")","v":""}]
[null,null,null,null,null,null,{"$f":"IF(DataLog!$C2888=\"Log value\",DataLog!D2888&\"_\"&TEXT(DataLog!B2888,\"åååå-mm-dd\"),\"\")","v":""},{"$f":"IF(DataLog!$C2888=\"Log value\",DataLog!E2888,\"\")","v":""},{"$f":"IF(DataLog!$C2888=\"Log value\",DataLog!F2888,\"\")","v":""},{"$f":"IF(DataLog!$C2888=\"Log value\",DataLog!G2888,\"\")","v":""},{"$f":"IF(DataLog!$C2888=\"Log value\",DataLog!H2888,\"\")","v":""},{"$f":"IF(DataLog!$C2888=\"Log value\",DataLog!I2888,\"\")","v":""},{"$f":"IF(DataLog!$C2888=\"Log value\",DataLog!J2888,\"\")","v":""},{"$f":"IF(DataLog!$C2888=\"Log value\",DataLog!K2888,\"\")","v":""},{"$f":"IF(DataLog!$C2888=\"Log value\",DataLog!L2888,\"\")","v":""},{"$f":"IF(DataLog!$C2888=\"Log value\",DataLog!M2888,\"\")","v":""},{"$f":"IF(DataLog!$C2888=\"Log value\",DataLog!N2888,\"\")","v":""},{"$f":"IF(DataLog!$C2888=\"Log value\",DataLog!O2888,\"\")","v":""},{"$f":"IF(DataLog!$C2888=\"Log value\",DataLog!P2888,\"\")","v":""},{"$f":"IF(DataLog!$C2888=\"Log value\",DataLog!Q2888,\"\")","v":""},{"$f":"IF(DataLog!$C2888=\"Log value\",DataLog!R2888,\"\")","v":""},{"$f":"IF(DataLog!$C2888=\"Log value\",DataLog!S2888,\"\")","v":""},{"$f":"IF(DataLog!$C2888=\"Log value\",DataLog!T2888,\"\")","v":""},{"$f":"IF(DataLog!$C2888=\"Log value\",DataLog!U2888,\"\")","v":""},{"$f":"IF(DataLog!$C2888=\"Log value\",DataLog!V2888,\"\")","v":""},{"$f":"IF(DataLog!$C2888=\"Log value\",DataLog!W2888,\"\")","v":""},{"$f":"IF(DataLog!$C2888=\"Log value\",DataLog!X2888,\"\")","v":""},{"$f":"IF(DataLog!$C2888=\"Log value\",DataLog!Y2888,\"\")","v":""},{"$f":"IF(DataLog!$C2888=\"Log value\",DataLog!Z2888,\"\")","v":""},{"$f":"IF(DataLog!$C2888=\"Log value\",DataLog!AA2888,\"\")","v":""},{"$f":"IF(DataLog!$C2888=\"Log value\",DataLog!AB2888,\"\")","v":""},{"$f":"IF(DataLog!$C2888=\"Log value\",DataLog!AC2888,\"\")","v":""},{"$f":"IF(DataLog!$C2888=\"Log value\",DataLog!AD2888,\"\")","v":""},{"$f":"IF(DataLog!$C2888=\"Log value\",DataLog!AE2888,\"\")","v":""},{"$f":"IF(DataLog!$C2888=\"Log value\",DataLog!AF2888,\"\")","v":""},{"$f":"IF(DataLog!$C2888=\"Log value\",DataLog!AG2888,\"\")","v":""},{"$f":"IF(DataLog!$C2888=\"Log value\",DataLog!AH2888,\"\")","v":""},{"$f":"IF(DataLog!$C2888=\"Log value\",DataLog!AI2888,\"\")","v":""},{"$f":"IF(DataLog!$C2888=\"Log value\",DataLog!AJ2888,\"\")","v":""},{"$f":"IF(DataLog!$C2888=\"Log value\",DataLog!AK2888,\"\")","v":""},{"$f":"IF(DataLog!$C2888=\"Log value\",DataLog!AL2888,\"\")","v":""},{"$f":"IF(DataLog!$C2888=\"Log value\",DataLog!AM2888,\"\")","v":""}]
[null,null,null,null,null,null,{"$f":"IF(DataLog!$C2891=\"Log value\",DataLog!D2891&\"_\"&TEXT(DataLog!B2891,\"åååå-mm-dd\"),\"\")","v":""},{"$f":"IF(DataLog!$C2891=\"Log value\",DataLog!E2891,\"\")","v":""},{"$f":"IF(DataLog!$C2891=\"Log value\",DataLog!F2891,\"\")","v":""},{"$f":"IF(DataLog!$C2891=\"Log value\",DataLog!G2891,\"\")","v":""},{"$f":"IF(DataLog!$C2891=\"Log value\",DataLog!H2891,\"\")","v":""},{"$f":"IF(DataLog!$C2891=\"Log value\",DataLog!I2891,\"\")","v":""},{"$f":"IF(DataLog!$C2891=\"Log value\",DataLog!J2891,\"\")","v":""},{"$f":"IF(DataLog!$C2891=\"Log value\",DataLog!K2891,\"\")","v":""},{"$f":"IF(DataLog!$C2891=\"Log value\",DataLog!L2891,\"\")","v":""},{"$f":"IF(DataLog!$C2891=\"Log value\",DataLog!M2891,\"\")","v":""},{"$f":"IF(DataLog!$C2891=\"Log value\",DataLog!N2891,\"\")","v":""},{"$f":"IF(DataLog!$C2891=\"Log value\",DataLog!O2891,\"\")","v":""},{"$f":"IF(DataLog!$C2891=\"Log value\",DataLog!P2891,\"\")","v":""},{"$f":"IF(DataLog!$C2891=\"Log value\",DataLog!Q2891,\"\")","v":""},{"$f":"IF(DataLog!$C2891=\"Log value\",DataLog!R2891,\"\")","v":""},{"$f":"IF(DataLog!$C2891=\"Log value\",DataLog!S2891,\"\")","v":""},{"$f":"IF(DataLog!$C2891=\"Log value\",DataLog!T2891,\"\")","v":""},{"$f":"IF(DataLog!$C2891=\"Log value\",DataLog!U2891,\"\")","v":""},{"$f":"IF(DataLog!$C2891=\"Log value\",DataLog!V2891,\"\")","v":""},{"$f":"IF(DataLog!$C2891=\"Log value\",DataLog!W2891,\"\")","v":""},{"$f":"IF(DataLog!$C2891=\"Log value\",DataLog!X2891,\"\")","v":""},{"$f":"IF(DataLog!$C2891=\"Log value\",DataLog!Y2891,\"\")","v":""},{"$f":"IF(DataLog!$C2891=\"Log value\",DataLog!Z2891,\"\")","v":""},{"$f":"IF(DataLog!$C2891=\"Log value\",DataLog!AA2891,\"\")","v":""},{"$f":"IF(DataLog!$C2891=\"Log value\",DataLog!AB2891,\"\")","v":""},{"$f":"IF(DataLog!$C2891=\"Log value\",DataLog!AC2891,\"\")","v":""},{"$f":"IF(DataLog!$C2891=\"Log value\",DataLog!AD2891,\"\")","v":""},{"$f":"IF(DataLog!$C2891=\"Log value\",DataLog!AE2891,\"\")","v":""},{"$f":"IF(DataLog!$C2891=\"Log value\",DataLog!AF2891,\"\")","v":""},{"$f":"IF(DataLog!$C2891=\"Log value\",DataLog!AG2891,\"\")","v":""},{"$f":"IF(DataLog!$C2891=\"Log value\",DataLog!AH2891,\"\")","v":""},{"$f":"IF(DataLog!$C2891=\"Log value\",DataLog!AI2891,\"\")","v":""},{"$f":"IF(DataLog!$C2891=\"Log value\",DataLog!AJ2891,\"\")","v":""},{"$f":"IF(DataLog!$C2891=\"Log value\",DataLog!AK2891,\"\")","v":""},{"$f":"IF(DataLog!$C2891=\"Log value\",DataLog!AL2891,\"\")","v":""},{"$f":"IF(DataLog!$C2891=\"Log value\",DataLog!AM2891,\"\")","v":""}]
[null,null,null,null,null,null,{"$f":"IF(DataLog!$C2894=\"Log value\",DataLog!D2894&\"_\"&TEXT(DataLog!B2894,\"åååå-mm-dd\"),\"\")","v":""},{"$f":"IF(DataLog!$C2894=\"Log value\",DataLog!E2894,\"\")","v":""},{"$f":"IF(DataLog!$C2894=\"Log value\",DataLog!F2894,\"\")","v":""},{"$f":"IF(DataLog!$C2894=\"Log value\",DataLog!G2894,\"\")","v":""},{"$f":"IF(DataLog!$C2894=\"Log value\",DataLog!H2894,\"\")","v":""},{"$f":"IF(DataLog!$C2894=\"Log value\",DataLog!I2894,\"\")","v":""},{"$f":"IF(DataLog!$C2894=\"Log value\",DataLog!J2894,\"\")","v":""},{"$f":"IF(DataLog!$C2894=\"Log value\",DataLog!K2894,\"\")","v":""},{"$f":"IF(DataLog!$C2894=\"Log value\",DataLog!L2894,\"\")","v":""},{"$f":"IF(DataLog!$C2894=\"Log value\",DataLog!M2894,\"\")","v":""},{"$f":"IF(DataLog!$C2894=\"Log value\",DataLog!N2894,\"\")","v":""},{"$f":"IF(DataLog!$C2894=\"Log value\",DataLog!O2894,\"\")","v":""},{"$f":"IF(DataLog!$C2894=\"Log value\",DataLog!P2894,\"\")","v":""},{"$f":"IF(DataLog!$C2894=\"Log value\",DataLog!Q2894,\"\")","v":""},{"$f":"IF(DataLog!$C2894=\"Log value\",DataLog!R2894,\"\")","v":""},{"$f":"IF(DataLog!$C2894=\"Log value\",DataLog!S2894,\"\")","v":""},{"$f":"IF(DataLog!$C2894=\"Log value\",DataLog!T2894,\"\")","v":""},{"$f":"IF(DataLog!$C2894=\"Log value\",DataLog!U2894,\"\")","v":""},{"$f":"IF(DataLog!$C2894=\"Log value\",DataLog!V2894,\"\")","v":""},{"$f":"IF(DataLog!$C2894=\"Log value\",DataLog!W2894,\"\")","v":""},{"$f":"IF(DataLog!$C2894=\"Log value\",DataLog!X2894,\"\")","v":""},{"$f":"IF(DataLog!$C2894=\"Log value\",DataLog!Y2894,\"\")","v":""},{"$f":"IF(DataLog!$C2894=\"Log value\",DataLog!Z2894,\"\")","v":""},{"$f":"IF(DataLog!$C2894=\"Log value\",DataLog!AA2894,\"\")","v":""},{"$f":"IF(DataLog!$C2894=\"Log value\",DataLog!AB2894,\"\")","v":""},{"$f":"IF(DataLog!$C2894=\"Log value\",DataLog!AC2894,\"\")","v":""},{"$f":"IF(DataLog!$C2894=\"Log value\",DataLog!AD2894,\"\")","v":""},{"$f":"IF(DataLog!$C2894=\"Log value\",DataLog!AE2894,\"\")","v":""},{"$f":"IF(DataLog!$C2894=\"Log value\",DataLog!AF2894,\"\")","v":""},{"$f":"IF(DataLog!$C2894=\"Log value\",DataLog!AG2894,\"\")","v":""},{"$f":"IF(DataLog!$C2894=\"Log value\",DataLog!AH2894,\"\")","v":""},{"$f":"IF(DataLog!$C2894=\"Log value\",DataLog!AI2894,\"\")","v":""},{"$f":"IF(DataLog!$C2894=\"Log value\",DataLog!AJ2894,\"\")","v":""},{"$f":"IF(DataLog!$C2894=\"Log value\",DataLog!AK2894,\"\")","v":""},{"$f":"IF(DataLog!$C2894=\"Log value\",DataLog!AL2894,\"\")","v":""},{"$f":"IF(DataLog!$C2894=\"Log value\",DataLog!AM2894,\"\")","v":""}]
[null,null,null,null,null,null,{"$f":"IF(DataLog!$C2896=\"Log value\",DataLog!D2896&\"_\"&TEXT(DataLog!B2896,\"åååå-mm-dd\"),\"\")","v":""},{"$f":"IF(DataLog!$C2896=\"Log value\",DataLog!E2896,\"\")","v":""},{"$f":"IF(DataLog!$C2896=\"Log value\",DataLog!F2896,\"\")","v":""},{"$f":"IF(DataLog!$C2896=\"Log value\",DataLog!G2896,\"\")","v":""},{"$f":"IF(DataLog!$C2896=\"Log value\",DataLog!H2896,\"\")","v":""},{"$f":"IF(DataLog!$C2896=\"Log value\",DataLog!I2896,\"\")","v":""},{"$f":"IF(DataLog!$C2896=\"Log value\",DataLog!J2896,\"\")","v":""},{"$f":"IF(DataLog!$C2896=\"Log value\",DataLog!K2896,\"\")","v":""},{"$f":"IF(DataLog!$C2896=\"Log value\",DataLog!L2896,\"\")","v":""},{"$f":"IF(DataLog!$C2896=\"Log value\",DataLog!M2896,\"\")","v":""},{"$f":"IF(DataLog!$C2896=\"Log value\",DataLog!N2896,\"\")","v":""},{"$f":"IF(DataLog!$C2896=\"Log value\",DataLog!O2896,\"\")","v":""},{"$f":"IF(DataLog!$C2896=\"Log value\",DataLog!P2896,\"\")","v":""},{"$f":"IF(DataLog!$C2896=\"Log value\",DataLog!Q2896,\"\")","v":""},{"$f":"IF(DataLog!$C2896=\"Log value\",DataLog!R2896,\"\")","v":""},{"$f":"IF(DataLog!$C2896=\"Log value\",DataLog!S2896,\"\")","v":""},{"$f":"IF(DataLog!$C2896=\"Log value\",DataLog!T2896,\"\")","v":""},{"$f":"IF(DataLog!$C2896=\"Log value\",DataLog!U2896,\"\")","v":""},{"$f":"IF(DataLog!$C2896=\"Log value\",DataLog!V2896,\"\")","v":""},{"$f":"IF(DataLog!$C2896=\"Log value\",DataLog!W2896,\"\")","v":""},{"$f":"IF(DataLog!$C2896=\"Log value\",DataLog!X2896,\"\")","v":""},{"$f":"IF(DataLog!$C2896=\"Log value\",DataLog!Y2896,\"\")","v":""},{"$f":"IF(DataLog!$C2896=\"Log value\",DataLog!Z2896,\"\")","v":""},{"$f":"IF(DataLog!$C2896=\"Log value\",DataLog!AA2896,\"\")","v":""},{"$f":"IF(DataLog!$C2896=\"Log value\",DataLog!AB2896,\"\")","v":""},{"$f":"IF(DataLog!$C2896=\"Log value\",DataLog!AC2896,\"\")","v":""},{"$f":"IF(DataLog!$C2896=\"Log value\",DataLog!AD2896,\"\")","v":""},{"$f":"IF(DataLog!$C2896=\"Log value\",DataLog!AE2896,\"\")","v":""},{"$f":"IF(DataLog!$C2896=\"Log value\",DataLog!AF2896,\"\")","v":""},{"$f":"IF(DataLog!$C2896=\"Log value\",DataLog!AG2896,\"\")","v":""},{"$f":"IF(DataLog!$C2896=\"Log value\",DataLog!AH2896,\"\")","v":""},{"$f":"IF(DataLog!$C2896=\"Log value\",DataLog!AI2896,\"\")","v":""},{"$f":"IF(DataLog!$C2896=\"Log value\",DataLog!AJ2896,\"\")","v":""},{"$f":"IF(DataLog!$C2896=\"Log value\",DataLog!AK2896,\"\")","v":""},{"$f":"IF(DataLog!$C2896=\"Log value\",DataLog!AL2896,\"\")","v":""},{"$f":"IF(DataLog!$C2896=\"Log value\",DataLog!AM2896,\"\")","v":""}]
[null,null,null,null,null,null,{"$f":"IF(DataLog!$C2897=\"Log value\",DataLog!D2897&\"_\"&TEXT(DataLog!B2897,\"åååå-mm-dd\"),\"\")","v":""},{"$f":"IF(DataLog!$C2897=\"Log value\",DataLog!E2897,\"\")","v":""},{"$f":"IF(DataLog!$C2897=\"Log value\",DataLog!F2897,\"\")","v":""},{"$f":"IF(DataLog!$C2897=\"Log value\",DataLog!G2897,\"\")","v":""},{"$f":"IF(DataLog!$C2897=\"Log value\",DataLog!H2897,\"\")","v":""},{"$f":"IF(DataLog!$C2897=\"Log value\",DataLog!I2897,\"\")","v":""},{"$f":"IF(DataLog!$C2897=\"Log value\",DataLog!J2897,\"\")","v":""},{"$f":"IF(DataLog!$C2897=\"Log value\",DataLog!K2897,\"\")","v":""},{"$f":"IF(DataLog!$C2897=\"Log value\",DataLog!L2897,\"\")","v":""},{"$f":"IF(DataLog!$C2897=\"Log value\",DataLog!M2897,\"\")","v":""},{"$f":"IF(DataLog!$C2897=\"Log value\",DataLog!N2897,\"\")","v":""},{"$f":"IF(DataLog!$C2897=\"Log value\",DataLog!O2897,\"\")","v":""},{"$f":"IF(DataLog!$C2897=\"Log value\",DataLog!P2897,\"\")","v":""},{"$f":"IF(DataLog!$C2897=\"Log value\",DataLog!Q2897,\"\")","v":""},{"$f":"IF(DataLog!$C2897=\"Log value\",DataLog!R2897,\"\")","v":""},{"$f":"IF(DataLog!$C2897=\"Log value\",DataLog!S2897,\"\")","v":""},{"$f":"IF(DataLog!$C2897=\"Log value\",DataLog!T2897,\"\")","v":""},{"$f":"IF(DataLog!$C2897=\"Log value\",DataLog!U2897,\"\")","v":""},{"$f":"IF(DataLog!$C2897=\"Log value\",DataLog!V2897,\"\")","v":""},{"$f":"IF(DataLog!$C2897=\"Log value\",DataLog!W2897,\"\")","v":""},{"$f":"IF(DataLog!$C2897=\"Log value\",DataLog!X2897,\"\")","v":""},{"$f":"IF(DataLog!$C2897=\"Log value\",DataLog!Y2897,\"\")","v":""},{"$f":"IF(DataLog!$C2897=\"Log value\",DataLog!Z2897,\"\")","v":""},{"$f":"IF(DataLog!$C2897=\"Log value\",DataLog!AA2897,\"\")","v":""},{"$f":"IF(DataLog!$C2897=\"Log value\",DataLog!AB2897,\"\")","v":""},{"$f":"IF(DataLog!$C2897=\"Log value\",DataLog!AC2897,\"\")","v":""},{"$f":"IF(DataLog!$C2897=\"Log value\",DataLog!AD2897,\"\")","v":""},{"$f":"IF(DataLog!$C2897=\"Log value\",DataLog!AE2897,\"\")","v":""},{"$f":"IF(DataLog!$C2897=\"Log value\",DataLog!AF2897,\"\")","v":""},{"$f":"IF(DataLog!$C2897=\"Log value\",DataLog!AG2897,\"\")","v":""},{"$f":"IF(DataLog!$C2897=\"Log value\",DataLog!AH2897,\"\")","v":""},{"$f":"IF(DataLog!$C2897=\"Log value\",DataLog!AI2897,\"\")","v":""},{"$f":"IF(DataLog!$C2897=\"Log value\",DataLog!AJ2897,\"\")","v":""},{"$f":"IF(DataLog!$C2897=\"Log value\",DataLog!AK2897,\"\")","v":""},{"$f":"IF(DataLog!$C2897=\"Log value\",DataLog!AL2897,\"\")","v":""},{"$f":"IF(DataLog!$C2897=\"Log value\",DataLog!AM2897,\"\")","v":""}]
[null,null,null,null,null,null,{"$f":"IF(DataLog!$C2900=\"Log value\",DataLog!D2900&\"_\"&TEXT(DataLog!B2900,\"åååå-mm-dd\"),\"\")","v":""},{"$f":"IF(DataLog!$C2900=\"Log value\",DataLog!E2900,\"\")","v":""},{"$f":"IF(DataLog!$C2900=\"Log value\",DataLog!F2900,\"\")","v":""},{"$f":"IF(DataLog!$C2900=\"Log value\",DataLog!G2900,\"\")","v":""},{"$f":"IF(DataLog!$C2900=\"Log value\",DataLog!H2900,\"\")","v":""},{"$f":"IF(DataLog!$C2900=\"Log value\",DataLog!I2900,\"\")","v":""},{"$f":"IF(DataLog!$C2900=\"Log value\",DataLog!J2900,\"\")","v":""},{"$f":"IF(DataLog!$C2900=\"Log value\",DataLog!K2900,\"\")","v":""},{"$f":"IF(DataLog!$C2900=\"Log value\",DataLog!L2900,\"\")","v":""},{"$f":"IF(DataLog!$C2900=\"Log value\",DataLog!M2900,\"\")","v":""},{"$f":"IF(DataLog!$C2900=\"Log value\",DataLog!N2900,\"\")","v":""},{"$f":"IF(DataLog!$C2900=\"Log value\",DataLog!O2900,\"\")","v":""},{"$f":"IF(DataLog!$C2900=\"Log value\",DataLog!P2900,\"\")","v":""},{"$f":"IF(DataLog!$C2900=\"Log value\",DataLog!Q2900,\"\")","v":""},{"$f":"IF(DataLog!$C2900=\"Log value\",DataLog!R2900,\"\")","v":""},{"$f":"IF(DataLog!$C2900=\"Log value\",DataLog!S2900,\"\")","v":""},{"$f":"IF(DataLog!$C2900=\"Log value\",DataLog!T2900,\"\")","v":""},{"$f":"IF(DataLog!$C2900=\"Log value\",DataLog!U2900,\"\")","v":""},{"$f":"IF(DataLog!$C2900=\"Log value\",DataLog!V2900,\"\")","v":""},{"$f":"IF(DataLog!$C2900=\"Log value\",DataLog!W2900,\"\")","v":""},{"$f":"IF(DataLog!$C2900=\"Log value\",DataLog!X2900,\"\")","v":""},{"$f":"IF(DataLog!$C2900=\"Log value\",DataLog!Y2900,\"\")","v":""},{"$f":"IF(DataLog!$C2900=\"Log value\",DataLog!Z2900,\"\")","v":""},{"$f":"IF(DataLog!$C2900=\"Log value\",DataLog!AA2900,\"\")","v":""},{"$f":"IF(DataLog!$C2900=\"Log value\",DataLog!AB2900,\"\")","v":""},{"$f":"IF(DataLog!$C2900=\"Log value\",DataLog!AC2900,\"\")","v":""},{"$f":"IF(DataLog!$C2900=\"Log value\",DataLog!AD2900,\"\")","v":""},{"$f":"IF(DataLog!$C2900=\"Log value\",DataLog!AE2900,\"\")","v":""},{"$f":"IF(DataLog!$C2900=\"Log value\",DataLog!AF2900,\"\")","v":""},{"$f":"IF(DataLog!$C2900=\"Log value\",DataLog!AG2900,\"\")","v":""},{"$f":"IF(DataLog!$C2900=\"Log value\",DataLog!AH2900,\"\")","v":""},{"$f":"IF(DataLog!$C2900=\"Log value\",DataLog!AI2900,\"\")","v":""},{"$f":"IF(DataLog!$C2900=\"Log value\",DataLog!AJ2900,\"\")","v":""},{"$f":"IF(DataLog!$C2900=\"Log value\",DataLog!AK2900,\"\")","v":""},{"$f":"IF(DataLog!$C2900=\"Log value\",DataLog!AL2900,\"\")","v":""},{"$f":"IF(DataLog!$C2900=\"Log value\",DataLog!AM2900,\"\")","v":""}]
[null,null,null,null,null,null,{"$f":"IF(DataLog!$C2901=\"Log value\",DataLog!D2901&\"_\"&TEXT(DataLog!B2901,\"åååå-mm-dd\"),\"\")","v":""},{"$f":"IF(DataLog!$C2901=\"Log value\",DataLog!E2901,\"\")","v":""},{"$f":"IF(DataLog!$C2901=\"Log value\",DataLog!F2901,\"\")","v":""},{"$f":"IF(DataLog!$C2901=\"Log value\",DataLog!G2901,\"\")","v":""},{"$f":"IF(DataLog!$C2901=\"Log value\",DataLog!H2901,\"\")","v":""},{"$f":"IF(DataLog!$C2901=\"Log value\",DataLog!I2901,\"\")","v":""},{"$f":"IF(DataLog!$C2901=\"Log value\",DataLog!J2901,\"\")","v":""},{"$f":"IF(DataLog!$C2901=\"Log value\",DataLog!K2901,\"\")","v":""},{"$f":"IF(DataLog!$C2901=\"Log value\",DataLog!L2901,\"\")","v":""},{"$f":"IF(DataLog!$C2901=\"Log value\",DataLog!M2901,\"\")","v":""},{"$f":"IF(DataLog!$C2901=\"Log value\",DataLog!N2901,\"\")","v":""},{"$f":"IF(DataLog!$C2901=\"Log value\",DataLog!O2901,\"\")","v":""},{"$f":"IF(DataLog!$C2901=\"Log value\",DataLog!P2901,\"\")","v":""},{"$f":"IF(DataLog!$C2901=\"Log value\",DataLog!Q2901,\"\")","v":""},{"$f":"IF(DataLog!$C2901=\"Log value\",DataLog!R2901,\"\")","v":""},{"$f":"IF(DataLog!$C2901=\"Log value\",DataLog!S2901,\"\")","v":""},{"$f":"IF(DataLog!$C2901=\"Log value\",DataLog!T2901,\"\")","v":""},{"$f":"IF(DataLog!$C2901=\"Log value\",DataLog!U2901,\"\")","v":""},{"$f":"IF(DataLog!$C2901=\"Log value\",DataLog!V2901,\"\")","v":""},{"$f":"IF(DataLog!$C2901=\"Log value\",DataLog!W2901,\"\")","v":""},{"$f":"IF(DataLog!$C2901=\"Log value\",DataLog!X2901,\"\")","v":""},{"$f":"IF(DataLog!$C2901=\"Log value\",DataLog!Y2901,\"\")","v":""},{"$f":"IF(DataLog!$C2901=\"Log value\",DataLog!Z2901,\"\")","v":""},{"$f":"IF(DataLog!$C2901=\"Log value\",DataLog!AA2901,\"\")","v":""},{"$f":"IF(DataLog!$C2901=\"Log value\",DataLog!AB2901,\"\")","v":""},{"$f":"IF(DataLog!$C2901=\"Log value\",DataLog!AC2901,\"\")","v":""},{"$f":"IF(DataLog!$C2901=\"Log value\",DataLog!AD2901,\"\")","v":""},{"$f":"IF(DataLog!$C2901=\"Log value\",DataLog!AE2901,\"\")","v":""},{"$f":"IF(DataLog!$C2901=\"Log value\",DataLog!AF2901,\"\")","v":""},{"$f":"IF(DataLog!$C2901=\"Log value\",DataLog!AG2901,\"\")","v":""},{"$f":"IF(DataLog!$C2901=\"Log value\",DataLog!AH2901,\"\")","v":""},{"$f":"IF(DataLog!$C2901=\"Log value\",DataLog!AI2901,\"\")","v":""},{"$f":"IF(DataLog!$C2901=\"Log value\",DataLog!AJ2901,\"\")","v":""},{"$f":"IF(DataLog!$C2901=\"Log value\",DataLog!AK2901,\"\")","v":""},{"$f":"IF(DataLog!$C2901=\"Log value\",DataLog!AL2901,\"\")","v":""},{"$f":"IF(DataLog!$C2901=\"Log value\",DataLog!AM2901,\"\")","v":""}]
[null,null,null,null,null,null,{"$f":"IF(DataLog!$C2905=\"Log value\",DataLog!D2905&\"_\"&TEXT(DataLog!B2905,\"åååå-mm-dd\"),\"\")","v":""},{"$f":"IF(DataLog!$C2905=\"Log value\",DataLog!E2905,\"\")","v":""},{"$f":"IF(DataLog!$C2905=\"Log value\",DataLog!F2905,\"\")","v":""},{"$f":"IF(DataLog!$C2905=\"Log value\",DataLog!G2905,\"\")","v":""},{"$f":"IF(DataLog!$C2905=\"Log value\",DataLog!H2905,\"\")","v":""},{"$f":"IF(DataLog!$C2905=\"Log value\",DataLog!I2905,\"\")","v":""},{"$f":"IF(DataLog!$C2905=\"Log value\",DataLog!J2905,\"\")","v":""},{"$f":"IF(DataLog!$C2905=\"Log value\",DataLog!K2905,\"\")","v":""},{"$f":"IF(DataLog!$C2905=\"Log value\",DataLog!L2905,\"\")","v":""},{"$f":"IF(DataLog!$C2905=\"Log value\",DataLog!M2905,\"\")","v":""},{"$f":"IF(DataLog!$C2905=\"Log value\",DataLog!N2905,\"\")","v":""},{"$f":"IF(DataLog!$C2905=\"Log value\",DataLog!O2905,\"\")","v":""},{"$f":"IF(DataLog!$C2905=\"Log value\",DataLog!P2905,\"\")","v":""},{"$f":"IF(DataLog!$C2905=\"Log value\",DataLog!Q2905,\"\")","v":""},{"$f":"IF(DataLog!$C2905=\"Log value\",DataLog!R2905,\"\")","v":""},{"$f":"IF(DataLog!$C2905=\"Log value\",DataLog!S2905,\"\")","v":""},{"$f":"IF(DataLog!$C2905=\"Log value\",DataLog!T2905,\"\")","v":""},{"$f":"IF(DataLog!$C2905=\"Log value\",DataLog!U2905,\"\")","v":""},{"$f":"IF(DataLog!$C2905=\"Log value\",DataLog!V2905,\"\")","v":""},{"$f":"IF(DataLog!$C2905=\"Log value\",DataLog!W2905,\"\")","v":""},{"$f":"IF(DataLog!$C2905=\"Log value\",DataLog!X2905,\"\")","v":""},{"$f":"IF(DataLog!$C2905=\"Log value\",DataLog!Y2905,\"\")","v":""},{"$f":"IF(DataLog!$C2905=\"Log value\",DataLog!Z2905,\"\")","v":""},{"$f":"IF(DataLog!$C2905=\"Log value\",DataLog!AA2905,\"\")","v":""},{"$f":"IF(DataLog!$C2905=\"Log value\",DataLog!AB2905,\"\")","v":""},{"$f":"IF(DataLog!$C2905=\"Log value\",DataLog!AC2905,\"\")","v":""},{"$f":"IF(DataLog!$C2905=\"Log value\",DataLog!AD2905,\"\")","v":""},{"$f":"IF(DataLog!$C2905=\"Log value\",DataLog!AE2905,\"\")","v":""},{"$f":"IF(DataLog!$C2905=\"Log value\",DataLog!AF2905,\"\")","v":""},{"$f":"IF(DataLog!$C2905=\"Log value\",DataLog!AG2905,\"\")","v":""},{"$f":"IF(DataLog!$C2905=\"Log value\",DataLog!AH2905,\"\")","v":""},{"$f":"IF(DataLog!$C2905=\"Log value\",DataLog!AI2905,\"\")","v":""},{"$f":"IF(DataLog!$C2905=\"Log value\",DataLog!AJ2905,\"\")","v":""},{"$f":"IF(DataLog!$C2905=\"Log value\",DataLog!AK2905,\"\")","v":""},{"$f":"IF(DataLog!$C2905=\"Log value\",DataLog!AL2905,\"\")","v":""},{"$f":"IF(DataLog!$C2905=\"Log value\",DataLog!AM2905,\"\")","v":""}]
[null,null,null,null,null,null,{"$f":"IF(DataLog!$C2906=\"Log value\",DataLog!D2906&\"_\"&TEXT(DataLog!B2906,\"åååå-mm-dd\"),\"\")","v":""},{"$f":"IF(DataLog!$C2906=\"Log value\",DataLog!E2906,\"\")","v":""},{"$f":"IF(DataLog!$C2906=\"Log value\",DataLog!F2906,\"\")","v":""},{"$f":"IF(DataLog!$C2906=\"Log value\",DataLog!G2906,\"\")","v":""},{"$f":"IF(DataLog!$C2906=\"Log value\",DataLog!H2906,\"\")","v":""},{"$f":"IF(DataLog!$C2906=\"Log value\",DataLog!I2906,\"\")","v":""},{"$f":"IF(DataLog!$C2906=\"Log value\",DataLog!J2906,\"\")","v":""},{"$f":"IF(DataLog!$C2906=\"Log value\",DataLog!K2906,\"\")","v":""},{"$f":"IF(DataLog!$C2906=\"Log value\",DataLog!L2906,\"\")","v":""},{"$f":"IF(DataLog!$C2906=\"Log value\",DataLog!M2906,\"\")","v":""},{"$f":"IF(DataLog!$C2906=\"Log value\",DataLog!N2906,\"\")","v":""},{"$f":"IF(DataLog!$C2906=\"Log value\",DataLog!O2906,\"\")","v":""},{"$f":"IF(DataLog!$C2906=\"Log value\",DataLog!P2906,\"\")","v":""},{"$f":"IF(DataLog!$C2906=\"Log value\",DataLog!Q2906,\"\")","v":""},{"$f":"IF(DataLog!$C2906=\"Log value\",DataLog!R2906,\"\")","v":""},{"$f":"IF(DataLog!$C2906=\"Log value\",DataLog!S2906,\"\")","v":""},{"$f":"IF(DataLog!$C2906=\"Log value\",DataLog!T2906,\"\")","v":""},{"$f":"IF(DataLog!$C2906=\"Log value\",DataLog!U2906,\"\")","v":""},{"$f":"IF(DataLog!$C2906=\"Log value\",DataLog!V2906,\"\")","v":""},{"$f":"IF(DataLog!$C2906=\"Log value\",DataLog!W2906,\"\")","v":""},{"$f":"IF(DataLog!$C2906=\"Log value\",DataLog!X2906,\"\")","v":""},{"$f":"IF(DataLog!$C2906=\"Log value\",DataLog!Y2906,\"\")","v":""},{"$f":"IF(DataLog!$C2906=\"Log value\",DataLog!Z2906,\"\")","v":""},{"$f":"IF(DataLog!$C2906=\"Log value\",DataLog!AA2906,\"\")","v":""},{"$f":"IF(DataLog!$C2906=\"Log value\",DataLog!AB2906,\"\")","v":""},{"$f":"IF(DataLog!$C2906=\"Log value\",DataLog!AC2906,\"\")","v":""},{"$f":"IF(DataLog!$C2906=\"Log value\",DataLog!AD2906,\"\")","v":""},{"$f":"IF(DataLog!$C2906=\"Log value\",DataLog!AE2906,\"\")","v":""},{"$f":"IF(DataLog!$C2906=\"Log value\",DataLog!AF2906,\"\")","v":""},{"$f":"IF(DataLog!$C2906=\"Log value\",DataLog!AG2906,\"\")","v":""},{"$f":"IF(DataLog!$C2906=\"Log value\",DataLog!AH2906,\"\")","v":""},{"$f":"IF(DataLog!$C2906=\"Log value\",DataLog!AI2906,\"\")","v":""},{"$f":"IF(DataLog!$C2906=\"Log value\",DataLog!AJ2906,\"\")","v":""},{"$f":"IF(DataLog!$C2906=\"Log value\",DataLog!AK2906,\"\")","v":""},{"$f":"IF(DataLog!$C2906=\"Log value\",DataLog!AL2906,\"\")","v":""},{"$f":"IF(DataLog!$C2906=\"Log value\",DataLog!AM2906,\"\")","v":""}]
[null,null,null,null,null,null,{"$f":"IF(DataLog!$C2909=\"Log value\",DataLog!D2909&\"_\"&TEXT(DataLog!B2909,\"åååå-mm-dd\"),\"\")","v":""},{"$f":"IF(DataLog!$C2909=\"Log value\",DataLog!E2909,\"\")","v":""},{"$f":"IF(DataLog!$C2909=\"Log value\",DataLog!F2909,\"\")","v":""},{"$f":"IF(DataLog!$C2909=\"Log value\",DataLog!G2909,\"\")","v":""},{"$f":"IF(DataLog!$C2909=\"Log value\",DataLog!H2909,\"\")","v":""},{"$f":"IF(DataLog!$C2909=\"Log value\",DataLog!I2909,\"\")","v":""},{"$f":"IF(DataLog!$C2909=\"Log value\",DataLog!J2909,\"\")","v":""},{"$f":"IF(DataLog!$C2909=\"Log value\",DataLog!K2909,\"\")","v":""},{"$f":"IF(DataLog!$C2909=\"Log value\",DataLog!L2909,\"\")","v":""},{"$f":"IF(DataLog!$C2909=\"Log value\",DataLog!M2909,\"\")","v":""},{"$f":"IF(DataLog!$C2909=\"Log value\",DataLog!N2909,\"\")","v":""},{"$f":"IF(DataLog!$C2909=\"Log value\",DataLog!O2909,\"\")","v":""},{"$f":"IF(DataLog!$C2909=\"Log value\",DataLog!P2909,\"\")","v":""},{"$f":"IF(DataLog!$C2909=\"Log value\",DataLog!Q2909,\"\")","v":""},{"$f":"IF(DataLog!$C2909=\"Log value\",DataLog!R2909,\"\")","v":""},{"$f":"IF(DataLog!$C2909=\"Log value\",DataLog!S2909,\"\")","v":""},{"$f":"IF(DataLog!$C2909=\"Log value\",DataLog!T2909,\"\")","v":""},{"$f":"IF(DataLog!$C2909=\"Log value\",DataLog!U2909,\"\")","v":""},{"$f":"IF(DataLog!$C2909=\"Log value\",DataLog!V2909,\"\")","v":""},{"$f":"IF(DataLog!$C2909=\"Log value\",DataLog!W2909,\"\")","v":""},{"$f":"IF(DataLog!$C2909=\"Log value\",DataLog!X2909,\"\")","v":""},{"$f":"IF(DataLog!$C2909=\"Log value\",DataLog!Y2909,\"\")","v":""},{"$f":"IF(DataLog!$C2909=\"Log value\",DataLog!Z2909,\"\")","v":""},{"$f":"IF(DataLog!$C2909=\"Log value\",DataLog!AA2909,\"\")","v":""},{"$f":"IF(DataLog!$C2909=\"Log value\",DataLog!AB2909,\"\")","v":""},{"$f":"IF(DataLog!$C2909=\"Log value\",DataLog!AC2909,\"\")","v":""},{"$f":"IF(DataLog!$C2909=\"Log value\",DataLog!AD2909,\"\")","v":""},{"$f":"IF(DataLog!$C2909=\"Log value\",DataLog!AE2909,\"\")","v":""},{"$f":"IF(DataLog!$C2909=\"Log value\",DataLog!AF2909,\"\")","v":""},{"$f":"IF(DataLog!$C2909=\"Log value\",DataLog!AG2909,\"\")","v":""},{"$f":"IF(DataLog!$C2909=\"Log value\",DataLog!AH2909,\"\")","v":""},{"$f":"IF(DataLog!$C2909=\"Log value\",DataLog!AI2909,\"\")","v":""},{"$f":"IF(DataLog!$C2909=\"Log value\",DataLog!AJ2909,\"\")","v":""},{"$f":"IF(DataLog!$C2909=\"Log value\",DataLog!AK2909,\"\")","v":""},{"$f":"IF(DataLog!$C2909=\"Log value\",DataLog!AL2909,\"\")","v":""},{"$f":"IF(DataLog!$C2909=\"Log value\",DataLog!AM2909,\"\")","v":""}]
[null,null,null,null,null,null,{"$f":"IF(DataLog!$C2912=\"Log value\",DataLog!D2912&\"_\"&TEXT(DataLog!B2912,\"åååå-mm-dd\"),\"\")","v":""},{"$f":"IF(DataLog!$C2912=\"Log value\",DataLog!E2912,\"\")","v":""},{"$f":"IF(DataLog!$C2912=\"Log value\",DataLog!F2912,\"\")","v":""},{"$f":"IF(DataLog!$C2912=\"Log value\",DataLog!G2912,\"\")","v":""},{"$f":"IF(DataLog!$C2912=\"Log value\",DataLog!H2912,\"\")","v":""},{"$f":"IF(DataLog!$C2912=\"Log value\",DataLog!I2912,\"\")","v":""},{"$f":"IF(DataLog!$C2912=\"Log value\",DataLog!J2912,\"\")","v":""},{"$f":"IF(DataLog!$C2912=\"Log value\",DataLog!K2912,\"\")","v":""},{"$f":"IF(DataLog!$C2912=\"Log value\",DataLog!L2912,\"\")","v":""},{"$f":"IF(DataLog!$C2912=\"Log value\",DataLog!M2912,\"\")","v":""},{"$f":"IF(DataLog!$C2912=\"Log value\",DataLog!N2912,\"\")","v":""},{"$f":"IF(DataLog!$C2912=\"Log value\",DataLog!O2912,\"\")","v":""},{"$f":"IF(DataLog!$C2912=\"Log value\",DataLog!P2912,\"\")","v":""},{"$f":"IF(DataLog!$C2912=\"Log value\",DataLog!Q2912,\"\")","v":""},{"$f":"IF(DataLog!$C2912=\"Log value\",DataLog!R2912,\"\")","v":""},{"$f":"IF(DataLog!$C2912=\"Log value\",DataLog!S2912,\"\")","v":""},{"$f":"IF(DataLog!$C2912=\"Log value\",DataLog!T2912,\"\")","v":""},{"$f":"IF(DataLog!$C2912=\"Log value\",DataLog!U2912,\"\")","v":""},{"$f":"IF(DataLog!$C2912=\"Log value\",DataLog!V2912,\"\")","v":""},{"$f":"IF(DataLog!$C2912=\"Log value\",DataLog!W2912,\"\")","v":""},{"$f":"IF(DataLog!$C2912=\"Log value\",DataLog!X2912,\"\")","v":""},{"$f":"IF(DataLog!$C2912=\"Log value\",DataLog!Y2912,\"\")","v":""},{"$f":"IF(DataLog!$C2912=\"Log value\",DataLog!Z2912,\"\")","v":""},{"$f":"IF(DataLog!$C2912=\"Log value\",DataLog!AA2912,\"\")","v":""},{"$f":"IF(DataLog!$C2912=\"Log value\",DataLog!AB2912,\"\")","v":""},{"$f":"IF(DataLog!$C2912=\"Log value\",DataLog!AC2912,\"\")","v":""},{"$f":"IF(DataLog!$C2912=\"Log value\",DataLog!AD2912,\"\")","v":""},{"$f":"IF(DataLog!$C2912=\"Log value\",DataLog!AE2912,\"\")","v":""},{"$f":"IF(DataLog!$C2912=\"Log value\",DataLog!AF2912,\"\")","v":""},{"$f":"IF(DataLog!$C2912=\"Log value\",DataLog!AG2912,\"\")","v":""},{"$f":"IF(DataLog!$C2912=\"Log value\",DataLog!AH2912,\"\")","v":""},{"$f":"IF(DataLog!$C2912=\"Log value\",DataLog!AI2912,\"\")","v":""},{"$f":"IF(DataLog!$C2912=\"Log value\",DataLog!AJ2912,\"\")","v":""},{"$f":"IF(DataLog!$C2912=\"Log value\",DataLog!AK2912,\"\")","v":""},{"$f":"IF(DataLog!$C2912=\"Log value\",DataLog!AL2912,\"\")","v":""},{"$f":"IF(DataLog!$C2912=\"Log value\",DataLog!AM2912,\"\")","v":""}]
[null,null,null,null,null,null,{"$f":"IF(DataLog!$C2914=\"Log value\",DataLog!D2914&\"_\"&TEXT(DataLog!B2914,\"åååå-mm-dd\"),\"\")","v":""},{"$f":"IF(DataLog!$C2914=\"Log value\",DataLog!E2914,\"\")","v":""},{"$f":"IF(DataLog!$C2914=\"Log value\",DataLog!F2914,\"\")","v":""},{"$f":"IF(DataLog!$C2914=\"Log value\",DataLog!G2914,\"\")","v":""},{"$f":"IF(DataLog!$C2914=\"Log value\",DataLog!H2914,\"\")","v":""},{"$f":"IF(DataLog!$C2914=\"Log value\",DataLog!I2914,\"\")","v":""},{"$f":"IF(DataLog!$C2914=\"Log value\",DataLog!J2914,\"\")","v":""},{"$f":"IF(DataLog!$C2914=\"Log value\",DataLog!K2914,\"\")","v":""},{"$f":"IF(DataLog!$C2914=\"Log value\",DataLog!L2914,\"\")","v":""},{"$f":"IF(DataLog!$C2914=\"Log value\",DataLog!M2914,\"\")","v":""},{"$f":"IF(DataLog!$C2914=\"Log value\",DataLog!N2914,\"\")","v":""},{"$f":"IF(DataLog!$C2914=\"Log value\",DataLog!O2914,\"\")","v":""},{"$f":"IF(DataLog!$C2914=\"Log value\",DataLog!P2914,\"\")","v":""},{"$f":"IF(DataLog!$C2914=\"Log value\",DataLog!Q2914,\"\")","v":""},{"$f":"IF(DataLog!$C2914=\"Log value\",DataLog!R2914,\"\")","v":""},{"$f":"IF(DataLog!$C2914=\"Log value\",DataLog!S2914,\"\")","v":""},{"$f":"IF(DataLog!$C2914=\"Log value\",DataLog!T2914,\"\")","v":""},{"$f":"IF(DataLog!$C2914=\"Log value\",DataLog!U2914,\"\")","v":""},{"$f":"IF(DataLog!$C2914=\"Log value\",DataLog!V2914,\"\")","v":""},{"$f":"IF(DataLog!$C2914=\"Log value\",DataLog!W2914,\"\")","v":""},{"$f":"IF(DataLog!$C2914=\"Log value\",DataLog!X2914,\"\")","v":""},{"$f":"IF(DataLog!$C2914=\"Log value\",DataLog!Y2914,\"\")","v":""},{"$f":"IF(DataLog!$C2914=\"Log value\",DataLog!Z2914,\"\")","v":""},{"$f":"IF(DataLog!$C2914=\"Log value\",DataLog!AA2914,\"\")","v":""},{"$f":"IF(DataLog!$C2914=\"Log value\",DataLog!AB2914,\"\")","v":""},{"$f":"IF(DataLog!$C2914=\"Log value\",DataLog!AC2914,\"\")","v":""},{"$f":"IF(DataLog!$C2914=\"Log value\",DataLog!AD2914,\"\")","v":""},{"$f":"IF(DataLog!$C2914=\"Log value\",DataLog!AE2914,\"\")","v":""},{"$f":"IF(DataLog!$C2914=\"Log value\",DataLog!AF2914,\"\")","v":""},{"$f":"IF(DataLog!$C2914=\"Log value\",DataLog!AG2914,\"\")","v":""},{"$f":"IF(DataLog!$C2914=\"Log value\",DataLog!AH2914,\"\")","v":""},{"$f":"IF(DataLog!$C2914=\"Log value\",DataLog!AI2914,\"\")","v":""},{"$f":"IF(DataLog!$C2914=\"Log value\",DataLog!AJ2914,\"\")","v":""},{"$f":"IF(DataLog!$C2914=\"Log value\",DataLog!AK2914,\"\")","v":""},{"$f":"IF(DataLog!$C2914=\"Log value\",DataLog!AL2914,\"\")","v":""},{"$f":"IF(DataLog!$C2914=\"Log value\",DataLog!AM2914,\"\")","v":""}]
[null,null,null,null,null,null,{"$f":"IF(DataLog!$C2915=\"Log value\",DataLog!D2915&\"_\"&TEXT(DataLog!B2915,\"åååå-mm-dd\"),\"\")","v":""},{"$f":"IF(DataLog!$C2915=\"Log value\",DataLog!E2915,\"\")","v":""},{"$f":"IF(DataLog!$C2915=\"Log value\",DataLog!F2915,\"\")","v":""},{"$f":"IF(DataLog!$C2915=\"Log value\",DataLog!G2915,\"\")","v":""},{"$f":"IF(DataLog!$C2915=\"Log value\",DataLog!H2915,\"\")","v":""},{"$f":"IF(DataLog!$C2915=\"Log value\",DataLog!I2915,\"\")","v":""},{"$f":"IF(DataLog!$C2915=\"Log value\",DataLog!J2915,\"\")","v":""},{"$f":"IF(DataLog!$C2915=\"Log value\",DataLog!K2915,\"\")","v":""},{"$f":"IF(DataLog!$C2915=\"Log value\",DataLog!L2915,\"\")","v":""},{"$f":"IF(DataLog!$C2915=\"Log value\",DataLog!M2915,\"\")","v":""},{"$f":"IF(DataLog!$C2915=\"Log value\",DataLog!N2915,\"\")","v":""},{"$f":"IF(DataLog!$C2915=\"Log value\",DataLog!O2915,\"\")","v":""},{"$f":"IF(DataLog!$C2915=\"Log value\",DataLog!P2915,\"\")","v":""},{"$f":"IF(DataLog!$C2915=\"Log value\",DataLog!Q2915,\"\")","v":""},{"$f":"IF(DataLog!$C2915=\"Log value\",DataLog!R2915,\"\")","v":""},{"$f":"IF(DataLog!$C2915=\"Log value\",DataLog!S2915,\"\")","v":""},{"$f":"IF(DataLog!$C2915=\"Log value\",DataLog!T2915,\"\")","v":""},{"$f":"IF(DataLog!$C2915=\"Log value\",DataLog!U2915,\"\")","v":""},{"$f":"IF(DataLog!$C2915=\"Log value\",DataLog!V2915,\"\")","v":""},{"$f":"IF(DataLog!$C2915=\"Log value\",DataLog!W2915,\"\")","v":""},{"$f":"IF(DataLog!$C2915=\"Log value\",DataLog!X2915,\"\")","v":""},{"$f":"IF(DataLog!$C2915=\"Log value\",DataLog!Y2915,\"\")","v":""},{"$f":"IF(DataLog!$C2915=\"Log value\",DataLog!Z2915,\"\")","v":""},{"$f":"IF(DataLog!$C2915=\"Log value\",DataLog!AA2915,\"\")","v":""},{"$f":"IF(DataLog!$C2915=\"Log value\",DataLog!AB2915,\"\")","v":""},{"$f":"IF(DataLog!$C2915=\"Log value\",DataLog!AC2915,\"\")","v":""},{"$f":"IF(DataLog!$C2915=\"Log value\",DataLog!AD2915,\"\")","v":""},{"$f":"IF(DataLog!$C2915=\"Log value\",DataLog!AE2915,\"\")","v":""},{"$f":"IF(DataLog!$C2915=\"Log value\",DataLog!AF2915,\"\")","v":""},{"$f":"IF(DataLog!$C2915=\"Log value\",DataLog!AG2915,\"\")","v":""},{"$f":"IF(DataLog!$C2915=\"Log value\",DataLog!AH2915,\"\")","v":""},{"$f":"IF(DataLog!$C2915=\"Log value\",DataLog!AI2915,\"\")","v":""},{"$f":"IF(DataLog!$C2915=\"Log value\",DataLog!AJ2915,\"\")","v":""},{"$f":"IF(DataLog!$C2915=\"Log value\",DataLog!AK2915,\"\")","v":""},{"$f":"IF(DataLog!$C2915=\"Log value\",DataLog!AL2915,\"\")","v":""},{"$f":"IF(DataLog!$C2915=\"Log value\",DataLog!AM2915,\"\")","v":""}]
[null,null,null,null,null,null,{"$f":"IF(DataLog!$C2918=\"Log value\",DataLog!D2918&\"_\"&TEXT(DataLog!B2918,\"åååå-mm-dd\"),\"\")","v":""},{"$f":"IF(DataLog!$C2918=\"Log value\",DataLog!E2918,\"\")","v":""},{"$f":"IF(DataLog!$C2918=\"Log value\",DataLog!F2918,\"\")","v":""},{"$f":"IF(DataLog!$C2918=\"Log value\",DataLog!G2918,\"\")","v":""},{"$f":"IF(DataLog!$C2918=\"Log value\",DataLog!H2918,\"\")","v":""},{"$f":"IF(DataLog!$C2918=\"Log value\",DataLog!I2918,\"\")","v":""},{"$f":"IF(DataLog!$C2918=\"Log value\",DataLog!J2918,\"\")","v":""},{"$f":"IF(DataLog!$C2918=\"Log value\",DataLog!K2918,\"\")","v":""},{"$f":"IF(DataLog!$C2918=\"Log value\",DataLog!L2918,\"\")","v":""},{"$f":"IF(DataLog!$C2918=\"Log value\",DataLog!M2918,\"\")","v":""},{"$f":"IF(DataLog!$C2918=\"Log value\",DataLog!N2918,\"\")","v":""},{"$f":"IF(DataLog!$C2918=\"Log value\",DataLog!O2918,\"\")","v":""},{"$f":"IF(DataLog!$C2918=\"Log value\",DataLog!P2918,\"\")","v":""},{"$f":"IF(DataLog!$C2918=\"Log value\",DataLog!Q2918,\"\")","v":""},{"$f":"IF(DataLog!$C2918=\"Log value\",DataLog!R2918,\"\")","v":""},{"$f":"IF(DataLog!$C2918=\"Log value\",DataLog!S2918,\"\")","v":""},{"$f":"IF(DataLog!$C2918=\"Log value\",DataLog!T2918,\"\")","v":""},{"$f":"IF(DataLog!$C2918=\"Log value\",DataLog!U2918,\"\")","v":""},{"$f":"IF(DataLog!$C2918=\"Log value\",DataLog!V2918,\"\")","v":""},{"$f":"IF(DataLog!$C2918=\"Log value\",DataLog!W2918,\"\")","v":""},{"$f":"IF(DataLog!$C2918=\"Log value\",DataLog!X2918,\"\")","v":""},{"$f":"IF(DataLog!$C2918=\"Log value\",DataLog!Y2918,\"\")","v":""},{"$f":"IF(DataLog!$C2918=\"Log value\",DataLog!Z2918,\"\")","v":""},{"$f":"IF(DataLog!$C2918=\"Log value\",DataLog!AA2918,\"\")","v":""},{"$f":"IF(DataLog!$C2918=\"Log value\",DataLog!AB2918,\"\")","v":""},{"$f":"IF(DataLog!$C2918=\"Log value\",DataLog!AC2918,\"\")","v":""},{"$f":"IF(DataLog!$C2918=\"Log value\",DataLog!AD2918,\"\")","v":""},{"$f":"IF(DataLog!$C2918=\"Log value\",DataLog!AE2918,\"\")","v":""},{"$f":"IF(DataLog!$C2918=\"Log value\",DataLog!AF2918,\"\")","v":""},{"$f":"IF(DataLog!$C2918=\"Log value\",DataLog!AG2918,\"\")","v":""},{"$f":"IF(DataLog!$C2918=\"Log value\",DataLog!AH2918,\"\")","v":""},{"$f":"IF(DataLog!$C2918=\"Log value\",DataLog!AI2918,\"\")","v":""},{"$f":"IF(DataLog!$C2918=\"Log value\",DataLog!AJ2918,\"\")","v":""},{"$f":"IF(DataLog!$C2918=\"Log value\",DataLog!AK2918,\"\")","v":""},{"$f":"IF(DataLog!$C2918=\"Log value\",DataLog!AL2918,\"\")","v":""},{"$f":"IF(DataLog!$C2918=\"Log value\",DataLog!AM2918,\"\")","v":""}]
[null,null,null,null,null,null,{"$f":"IF(DataLog!$C2919=\"Log value\",DataLog!D2919&\"_\"&TEXT(DataLog!B2919,\"åååå-mm-dd\"),\"\")","v":""},{"$f":"IF(DataLog!$C2919=\"Log value\",DataLog!E2919,\"\")","v":""},{"$f":"IF(DataLog!$C2919=\"Log value\",DataLog!F2919,\"\")","v":""},{"$f":"IF(DataLog!$C2919=\"Log value\",DataLog!G2919,\"\")","v":""},{"$f":"IF(DataLog!$C2919=\"Log value\",DataLog!H2919,\"\")","v":""},{"$f":"IF(DataLog!$C2919=\"Log value\",DataLog!I2919,\"\")","v":""},{"$f":"IF(DataLog!$C2919=\"Log value\",DataLog!J2919,\"\")","v":""},{"$f":"IF(DataLog!$C2919=\"Log value\",DataLog!K2919,\"\")","v":""},{"$f":"IF(DataLog!$C2919=\"Log value\",DataLog!L2919,\"\")","v":""},{"$f":"IF(DataLog!$C2919=\"Log value\",DataLog!M2919,\"\")","v":""},{"$f":"IF(DataLog!$C2919=\"Log value\",DataLog!N2919,\"\")","v":""},{"$f":"IF(DataLog!$C2919=\"Log value\",DataLog!O2919,\"\")","v":""},{"$f":"IF(DataLog!$C2919=\"Log value\",DataLog!P2919,\"\")","v":""},{"$f":"IF(DataLog!$C2919=\"Log value\",DataLog!Q2919,\"\")","v":""},{"$f":"IF(DataLog!$C2919=\"Log value\",DataLog!R2919,\"\")","v":""},{"$f":"IF(DataLog!$C2919=\"Log value\",DataLog!S2919,\"\")","v":""},{"$f":"IF(DataLog!$C2919=\"Log value\",DataLog!T2919,\"\")","v":""},{"$f":"IF(DataLog!$C2919=\"Log value\",DataLog!U2919,\"\")","v":""},{"$f":"IF(DataLog!$C2919=\"Log value\",DataLog!V2919,\"\")","v":""},{"$f":"IF(DataLog!$C2919=\"Log value\",DataLog!W2919,\"\")","v":""},{"$f":"IF(DataLog!$C2919=\"Log value\",DataLog!X2919,\"\")","v":""},{"$f":"IF(DataLog!$C2919=\"Log value\",DataLog!Y2919,\"\")","v":""},{"$f":"IF(DataLog!$C2919=\"Log value\",DataLog!Z2919,\"\")","v":""},{"$f":"IF(DataLog!$C2919=\"Log value\",DataLog!AA2919,\"\")","v":""},{"$f":"IF(DataLog!$C2919=\"Log value\",DataLog!AB2919,\"\")","v":""},{"$f":"IF(DataLog!$C2919=\"Log value\",DataLog!AC2919,\"\")","v":""},{"$f":"IF(DataLog!$C2919=\"Log value\",DataLog!AD2919,\"\")","v":""},{"$f":"IF(DataLog!$C2919=\"Log value\",DataLog!AE2919,\"\")","v":""},{"$f":"IF(DataLog!$C2919=\"Log value\",DataLog!AF2919,\"\")","v":""},{"$f":"IF(DataLog!$C2919=\"Log value\",DataLog!AG2919,\"\")","v":""},{"$f":"IF(DataLog!$C2919=\"Log value\",DataLog!AH2919,\"\")","v":""},{"$f":"IF(DataLog!$C2919=\"Log value\",DataLog!AI2919,\"\")","v":""},{"$f":"IF(DataLog!$C2919=\"Log value\",DataLog!AJ2919,\"\")","v":""},{"$f":"IF(DataLog!$C2919=\"Log value\",DataLog!AK2919,\"\")","v":""},{"$f":"IF(DataLog!$C2919=\"Log value\",DataLog!AL2919,\"\")","v":""},{"$f":"IF(DataLog!$C2919=\"Log value\",DataLog!AM2919,\"\")","v":""}]
[null,null,null,null,null,null,{"$f":"IF(DataLog!$C2923=\"Log value\",DataLog!D2923&\"_\"&TEXT(DataLog!B2923,\"åååå-mm-dd\"),\"\")","v":""},{"$f":"IF(DataLog!$C2923=\"Log value\",DataLog!E2923,\"\")","v":""},{"$f":"IF(DataLog!$C2923=\"Log value\",DataLog!F2923,\"\")","v":""},{"$f":"IF(DataLog!$C2923=\"Log value\",DataLog!G2923,\"\")","v":""},{"$f":"IF(DataLog!$C2923=\"Log value\",DataLog!H2923,\"\")","v":""},{"$f":"IF(DataLog!$C2923=\"Log value\",DataLog!I2923,\"\")","v":""},{"$f":"IF(DataLog!$C2923=\"Log value\",DataLog!J2923,\"\")","v":""},{"$f":"IF(DataLog!$C2923=\"Log value\",DataLog!K2923,\"\")","v":""},{"$f":"IF(DataLog!$C2923=\"Log value\",DataLog!L2923,\"\")","v":""},{"$f":"IF(DataLog!$C2923=\"Log value\",DataLog!M2923,\"\")","v":""},{"$f":"IF(DataLog!$C2923=\"Log value\",DataLog!N2923,\"\")","v":""},{"$f":"IF(DataLog!$C2923=\"Log value\",DataLog!O2923,\"\")","v":""},{"$f":"IF(DataLog!$C2923=\"Log value\",DataLog!P2923,\"\")","v":""},{"$f":"IF(DataLog!$C2923=\"Log value\",DataLog!Q2923,\"\")","v":""},{"$f":"IF(DataLog!$C2923=\"Log value\",DataLog!R2923,\"\")","v":""},{"$f":"IF(DataLog!$C2923=\"Log value\",DataLog!S2923,\"\")","v":""},{"$f":"IF(DataLog!$C2923=\"Log value\",DataLog!T2923,\"\")","v":""},{"$f":"IF(DataLog!$C2923=\"Log value\",DataLog!U2923,\"\")","v":""},{"$f":"IF(DataLog!$C2923=\"Log value\",DataLog!V2923,\"\")","v":""},{"$f":"IF(DataLog!$C2923=\"Log value\",DataLog!W2923,\"\")","v":""},{"$f":"IF(DataLog!$C2923=\"Log value\",DataLog!X2923,\"\")","v":""},{"$f":"IF(DataLog!$C2923=\"Log value\",DataLog!Y2923,\"\")","v":""},{"$f":"IF(DataLog!$C2923=\"Log value\",DataLog!Z2923,\"\")","v":""},{"$f":"IF(DataLog!$C2923=\"Log value\",DataLog!AA2923,\"\")","v":""},{"$f":"IF(DataLog!$C2923=\"Log value\",DataLog!AB2923,\"\")","v":""},{"$f":"IF(DataLog!$C2923=\"Log value\",DataLog!AC2923,\"\")","v":""},{"$f":"IF(DataLog!$C2923=\"Log value\",DataLog!AD2923,\"\")","v":""},{"$f":"IF(DataLog!$C2923=\"Log value\",DataLog!AE2923,\"\")","v":""},{"$f":"IF(DataLog!$C2923=\"Log value\",DataLog!AF2923,\"\")","v":""},{"$f":"IF(DataLog!$C2923=\"Log value\",DataLog!AG2923,\"\")","v":""},{"$f":"IF(DataLog!$C2923=\"Log value\",DataLog!AH2923,\"\")","v":""},{"$f":"IF(DataLog!$C2923=\"Log value\",DataLog!AI2923,\"\")","v":""},{"$f":"IF(DataLog!$C2923=\"Log value\",DataLog!AJ2923,\"\")","v":""},{"$f":"IF(DataLog!$C2923=\"Log value\",DataLog!AK2923,\"\")","v":""},{"$f":"IF(DataLog!$C2923=\"Log value\",DataLog!AL2923,\"\")","v":""},{"$f":"IF(DataLog!$C2923=\"Log value\",DataLog!AM2923,\"\")","v":""}]
[null,null,null,null,null,null,{"$f":"IF(DataLog!$C2924=\"Log value\",DataLog!D2924&\"_\"&TEXT(DataLog!B2924,\"åååå-mm-dd\"),\"\")","v":""},{"$f":"IF(DataLog!$C2924=\"Log value\",DataLog!E2924,\"\")","v":""},{"$f":"IF(DataLog!$C2924=\"Log value\",DataLog!F2924,\"\")","v":""},{"$f":"IF(DataLog!$C2924=\"Log value\",DataLog!G2924,\"\")","v":""},{"$f":"IF(DataLog!$C2924=\"Log value\",DataLog!H2924,\"\")","v":""},{"$f":"IF(DataLog!$C2924=\"Log value\",DataLog!I2924,\"\")","v":""},{"$f":"IF(DataLog!$C2924=\"Log value\",DataLog!J2924,\"\")","v":""},{"$f":"IF(DataLog!$C2924=\"Log value\",DataLog!K2924,\"\")","v":""},{"$f":"IF(DataLog!$C2924=\"Log value\",DataLog!L2924,\"\")","v":""},{"$f":"IF(DataLog!$C2924=\"Log value\",DataLog!M2924,\"\")","v":""},{"$f":"IF(DataLog!$C2924=\"Log value\",DataLog!N2924,\"\")","v":""},{"$f":"IF(DataLog!$C2924=\"Log value\",DataLog!O2924,\"\")","v":""},{"$f":"IF(DataLog!$C2924=\"Log value\",DataLog!P2924,\"\")","v":""},{"$f":"IF(DataLog!$C2924=\"Log value\",DataLog!Q2924,\"\")","v":""},{"$f":"IF(DataLog!$C2924=\"Log value\",DataLog!R2924,\"\")","v":""},{"$f":"IF(DataLog!$C2924=\"Log value\",DataLog!S2924,\"\")","v":""},{"$f":"IF(DataLog!$C2924=\"Log value\",DataLog!T2924,\"\")","v":""},{"$f":"IF(DataLog!$C2924=\"Log value\",DataLog!U2924,\"\")","v":""},{"$f":"IF(DataLog!$C2924=\"Log value\",DataLog!V2924,\"\")","v":""},{"$f":"IF(DataLog!$C2924=\"Log value\",DataLog!W2924,\"\")","v":""},{"$f":"IF(DataLog!$C2924=\"Log value\",DataLog!X2924,\"\")","v":""},{"$f":"IF(DataLog!$C2924=\"Log value\",DataLog!Y2924,\"\")","v":""},{"$f":"IF(DataLog!$C2924=\"Log value\",DataLog!Z2924,\"\")","v":""},{"$f":"IF(DataLog!$C2924=\"Log value\",DataLog!AA2924,\"\")","v":""},{"$f":"IF(DataLog!$C2924=\"Log value\",DataLog!AB2924,\"\")","v":""},{"$f":"IF(DataLog!$C2924=\"Log value\",DataLog!AC2924,\"\")","v":""},{"$f":"IF(DataLog!$C2924=\"Log value\",DataLog!AD2924,\"\")","v":""},{"$f":"IF(DataLog!$C2924=\"Log value\",DataLog!AE2924,\"\")","v":""},{"$f":"IF(DataLog!$C2924=\"Log value\",DataLog!AF2924,\"\")","v":""},{"$f":"IF(DataLog!$C2924=\"Log value\",DataLog!AG2924,\"\")","v":""},{"$f":"IF(DataLog!$C2924=\"Log value\",DataLog!AH2924,\"\")","v":""},{"$f":"IF(DataLog!$C2924=\"Log value\",DataLog!AI2924,\"\")","v":""},{"$f":"IF(DataLog!$C2924=\"Log value\",DataLog!AJ2924,\"\")","v":""},{"$f":"IF(DataLog!$C2924=\"Log value\",DataLog!AK2924,\"\")","v":""},{"$f":"IF(DataLog!$C2924=\"Log value\",DataLog!AL2924,\"\")","v":""},{"$f":"IF(DataLog!$C2924=\"Log value\",DataLog!AM2924,\"\")","v":""}]
[null,null,null,null,null,null,{"$f":"IF(DataLog!$C2927=\"Log value\",DataLog!D2927&\"_\"&TEXT(DataLog!B2927,\"åååå-mm-dd\"),\"\")","v":""},{"$f":"IF(DataLog!$C2927=\"Log value\",DataLog!E2927,\"\")","v":""},{"$f":"IF(DataLog!$C2927=\"Log value\",DataLog!F2927,\"\")","v":""},{"$f":"IF(DataLog!$C2927=\"Log value\",DataLog!G2927,\"\")","v":""},{"$f":"IF(DataLog!$C2927=\"Log value\",DataLog!H2927,\"\")","v":""},{"$f":"IF(DataLog!$C2927=\"Log value\",DataLog!I2927,\"\")","v":""},{"$f":"IF(DataLog!$C2927=\"Log value\",DataLog!J2927,\"\")","v":""},{"$f":"IF(DataLog!$C2927=\"Log value\",DataLog!K2927,\"\")","v":""},{"$f":"IF(DataLog!$C2927=\"Log value\",DataLog!L2927,\"\")","v":""},{"$f":"IF(DataLog!$C2927=\"Log value\",DataLog!M2927,\"\")","v":""},{"$f":"IF(DataLog!$C2927=\"Log value\",DataLog!N2927,\"\")","v":""},{"$f":"IF(DataLog!$C2927=\"Log value\",DataLog!O2927,\"\")","v":""},{"$f":"IF(DataLog!$C2927=\"Log value\",DataLog!P2927,\"\")","v":""},{"$f":"IF(DataLog!$C2927=\"Log value\",DataLog!Q2927,\"\")","v":""},{"$f":"IF(DataLog!$C2927=\"Log value\",DataLog!R2927,\"\")","v":""},{"$f":"IF(DataLog!$C2927=\"Log value\",DataLog!S2927,\"\")","v":""},{"$f":"IF(DataLog!$C2927=\"Log value\",DataLog!T2927,\"\")","v":""},{"$f":"IF(DataLog!$C2927=\"Log value\",DataLog!U2927,\"\")","v":""},{"$f":"IF(DataLog!$C2927=\"Log value\",DataLog!V2927,\"\")","v":""},{"$f":"IF(DataLog!$C2927=\"Log value\",DataLog!W2927,\"\")","v":""},{"$f":"IF(DataLog!$C2927=\"Log value\",DataLog!X2927,\"\")","v":""},{"$f":"IF(DataLog!$C2927=\"Log value\",DataLog!Y2927,\"\")","v":""},{"$f":"IF(DataLog!$C2927=\"Log value\",DataLog!Z2927,\"\")","v":""},{"$f":"IF(DataLog!$C2927=\"Log value\",DataLog!AA2927,\"\")","v":""},{"$f":"IF(DataLog!$C2927=\"Log value\",DataLog!AB2927,\"\")","v":""},{"$f":"IF(DataLog!$C2927=\"Log value\",DataLog!AC2927,\"\")","v":""},{"$f":"IF(DataLog!$C2927=\"Log value\",DataLog!AD2927,\"\")","v":""},{"$f":"IF(DataLog!$C2927=\"Log value\",DataLog!AE2927,\"\")","v":""},{"$f":"IF(DataLog!$C2927=\"Log value\",DataLog!AF2927,\"\")","v":""},{"$f":"IF(DataLog!$C2927=\"Log value\",DataLog!AG2927,\"\")","v":""},{"$f":"IF(DataLog!$C2927=\"Log value\",DataLog!AH2927,\"\")","v":""},{"$f":"IF(DataLog!$C2927=\"Log value\",DataLog!AI2927,\"\")","v":""},{"$f":"IF(DataLog!$C2927=\"Log value\",DataLog!AJ2927,\"\")","v":""},{"$f":"IF(DataLog!$C2927=\"Log value\",DataLog!AK2927,\"\")","v":""},{"$f":"IF(DataLog!$C2927=\"Log value\",DataLog!AL2927,\"\")","v":""},{"$f":"IF(DataLog!$C2927=\"Log value\",DataLog!AM2927,\"\")","v":""}]
[null,null,null,null,null,null,{"$f":"IF(DataLog!$C2929=\"Log value\",DataLog!D2929&\"_\"&TEXT(DataLog!B2929,\"åååå-mm-dd\"),\"\")","v":""},{"$f":"IF(DataLog!$C2929=\"Log value\",DataLog!E2929,\"\")","v":""},{"$f":"IF(DataLog!$C2929=\"Log value\",DataLog!F2929,\"\")","v":""},{"$f":"IF(DataLog!$C2929=\"Log value\",DataLog!G2929,\"\")","v":""},{"$f":"IF(DataLog!$C2929=\"Log value\",DataLog!H2929,\"\")","v":""},{"$f":"IF(DataLog!$C2929=\"Log value\",DataLog!I2929,\"\")","v":""},{"$f":"IF(DataLog!$C2929=\"Log value\",DataLog!J2929,\"\")","v":""},{"$f":"IF(DataLog!$C2929=\"Log value\",DataLog!K2929,\"\")","v":""},{"$f":"IF(DataLog!$C2929=\"Log value\",DataLog!L2929,\"\")","v":""},{"$f":"IF(DataLog!$C2929=\"Log value\",DataLog!M2929,\"\")","v":""},{"$f":"IF(DataLog!$C2929=\"Log value\",DataLog!N2929,\"\")","v":""},{"$f":"IF(DataLog!$C2929=\"Log value\",DataLog!O2929,\"\")","v":""},{"$f":"IF(DataLog!$C2929=\"Log value\",DataLog!P2929,\"\")","v":""},{"$f":"IF(DataLog!$C2929=\"Log value\",DataLog!Q2929,\"\")","v":""},{"$f":"IF(DataLog!$C2929=\"Log value\",DataLog!R2929,\"\")","v":""},{"$f":"IF(DataLog!$C2929=\"Log value\",DataLog!S2929,\"\")","v":""},{"$f":"IF(DataLog!$C2929=\"Log value\",DataLog!T2929,\"\")","v":""},{"$f":"IF(DataLog!$C2929=\"Log value\",DataLog!U2929,\"\")","v":""},{"$f":"IF(DataLog!$C2929=\"Log value\",DataLog!V2929,\"\")","v":""},{"$f":"IF(DataLog!$C2929=\"Log value\",DataLog!W2929,\"\")","v":""},{"$f":"IF(DataLog!$C2929=\"Log value\",DataLog!X2929,\"\")","v":""},{"$f":"IF(DataLog!$C2929=\"Log value\",DataLog!Y2929,\"\")","v":""},{"$f":"IF(DataLog!$C2929=\"Log value\",DataLog!Z2929,\"\")","v":""},{"$f":"IF(DataLog!$C2929=\"Log value\",DataLog!AA2929,\"\")","v":""},{"$f":"IF(DataLog!$C2929=\"Log value\",DataLog!AB2929,\"\")","v":""},{"$f":"IF(DataLog!$C2929=\"Log value\",DataLog!AC2929,\"\")","v":""},{"$f":"IF(DataLog!$C2929=\"Log value\",DataLog!AD2929,\"\")","v":""},{"$f":"IF(DataLog!$C2929=\"Log value\",DataLog!AE2929,\"\")","v":""},{"$f":"IF(DataLog!$C2929=\"Log value\",DataLog!AF2929,\"\")","v":""},{"$f":"IF(DataLog!$C2929=\"Log value\",DataLog!AG2929,\"\")","v":""},{"$f":"IF(DataLog!$C2929=\"Log value\",DataLog!AH2929,\"\")","v":""},{"$f":"IF(DataLog!$C2929=\"Log value\",DataLog!AI2929,\"\")","v":""},{"$f":"IF(DataLog!$C2929=\"Log value\",DataLog!AJ2929,\"\")","v":""},{"$f":"IF(DataLog!$C2929=\"Log value\",DataLog!AK2929,\"\")","v":""},{"$f":"IF(DataLog!$C2929=\"Log value\",DataLog!AL2929,\"\")","v":""},{"$f":"IF(DataLog!$C2929=\"Log value\",DataLog!AM2929,\"\")","v":""}]
[null,null,null,null,null,null,{"$f":"IF(DataLog!$C2932=\"Log value\",DataLog!D2932&\"_\"&TEXT(DataLog!B2932,\"åååå-mm-dd\"),\"\")","v":""},{"$f":"IF(DataLog!$C2932=\"Log value\",DataLog!E2932,\"\")","v":""},{"$f":"IF(DataLog!$C2932=\"Log value\",DataLog!F2932,\"\")","v":""},{"$f":"IF(DataLog!$C2932=\"Log value\",DataLog!G2932,\"\")","v":""},{"$f":"IF(DataLog!$C2932=\"Log value\",DataLog!H2932,\"\")","v":""},{"$f":"IF(DataLog!$C2932=\"Log value\",DataLog!I2932,\"\")","v":""},{"$f":"IF(DataLog!$C2932=\"Log value\",DataLog!J2932,\"\")","v":""},{"$f":"IF(DataLog!$C2932=\"Log value\",DataLog!K2932,\"\")","v":""},{"$f":"IF(DataLog!$C2932=\"Log value\",DataLog!L2932,\"\")","v":""},{"$f":"IF(DataLog!$C2932=\"Log value\",DataLog!M2932,\"\")","v":""},{"$f":"IF(DataLog!$C2932=\"Log value\",DataLog!N2932,\"\")","v":""},{"$f":"IF(DataLog!$C2932=\"Log value\",DataLog!O2932,\"\")","v":""},{"$f":"IF(DataLog!$C2932=\"Log value\",DataLog!P2932,\"\")","v":""},{"$f":"IF(DataLog!$C2932=\"Log value\",DataLog!Q2932,\"\")","v":""},{"$f":"IF(DataLog!$C2932=\"Log value\",DataLog!R2932,\"\")","v":""},{"$f":"IF(DataLog!$C2932=\"Log value\",DataLog!S2932,\"\")","v":""},{"$f":"IF(DataLog!$C2932=\"Log value\",DataLog!T2932,\"\")","v":""},{"$f":"IF(DataLog!$C2932=\"Log value\",DataLog!U2932,\"\")","v":""},{"$f":"IF(DataLog!$C2932=\"Log value\",DataLog!V2932,\"\")","v":""},{"$f":"IF(DataLog!$C2932=\"Log value\",DataLog!W2932,\"\")","v":""},{"$f":"IF(DataLog!$C2932=\"Log value\",DataLog!X2932,\"\")","v":""},{"$f":"IF(DataLog!$C2932=\"Log value\",DataLog!Y2932,\"\")","v":""},{"$f":"IF(DataLog!$C2932=\"Log value\",DataLog!Z2932,\"\")","v":""},{"$f":"IF(DataLog!$C2932=\"Log value\",DataLog!AA2932,\"\")","v":""},{"$f":"IF(DataLog!$C2932=\"Log value\",DataLog!AB2932,\"\")","v":""},{"$f":"IF(DataLog!$C2932=\"Log value\",DataLog!AC2932,\"\")","v":""},{"$f":"IF(DataLog!$C2932=\"Log value\",DataLog!AD2932,\"\")","v":""},{"$f":"IF(DataLog!$C2932=\"Log value\",DataLog!AE2932,\"\")","v":""},{"$f":"IF(DataLog!$C2932=\"Log value\",DataLog!AF2932,\"\")","v":""},{"$f":"IF(DataLog!$C2932=\"Log value\",DataLog!AG2932,\"\")","v":""},{"$f":"IF(DataLog!$C2932=\"Log value\",DataLog!AH2932,\"\")","v":""},{"$f":"IF(DataLog!$C2932=\"Log value\",DataLog!AI2932,\"\")","v":""},{"$f":"IF(DataLog!$C2932=\"Log value\",DataLog!AJ2932,\"\")","v":""},{"$f":"IF(DataLog!$C2932=\"Log value\",DataLog!AK2932,\"\")","v":""},{"$f":"IF(DataLog!$C2932=\"Log value\",DataLog!AL2932,\"\")","v":""},{"$f":"IF(DataLog!$C2932=\"Log value\",DataLog!AM2932,\"\")","v":""}]
[null,null,null,null,null,null,{"$f":"IF(DataLog!$C2933=\"Log value\",DataLog!D2933&\"_\"&TEXT(DataLog!B2933,\"åååå-mm-dd\"),\"\")","v":""},{"$f":"IF(DataLog!$C2933=\"Log value\",DataLog!E2933,\"\")","v":""},{"$f":"IF(DataLog!$C2933=\"Log value\",DataLog!F2933,\"\")","v":""},{"$f":"IF(DataLog!$C2933=\"Log value\",DataLog!G2933,\"\")","v":""},{"$f":"IF(DataLog!$C2933=\"Log value\",DataLog!H2933,\"\")","v":""},{"$f":"IF(DataLog!$C2933=\"Log value\",DataLog!I2933,\"\")","v":""},{"$f":"IF(DataLog!$C2933=\"Log value\",DataLog!J2933,\"\")","v":""},{"$f":"IF(DataLog!$C2933=\"Log value\",DataLog!K2933,\"\")","v":""},{"$f":"IF(DataLog!$C2933=\"Log value\",DataLog!L2933,\"\")","v":""},{"$f":"IF(DataLog!$C2933=\"Log value\",DataLog!M2933,\"\")","v":""},{"$f":"IF(DataLog!$C2933=\"Log value\",DataLog!N2933,\"\")","v":""},{"$f":"IF(DataLog!$C2933=\"Log value\",DataLog!O2933,\"\")","v":""},{"$f":"IF(DataLog!$C2933=\"Log value\",DataLog!P2933,\"\")","v":""},{"$f":"IF(DataLog!$C2933=\"Log value\",DataLog!Q2933,\"\")","v":""},{"$f":"IF(DataLog!$C2933=\"Log value\",DataLog!R2933,\"\")","v":""},{"$f":"IF(DataLog!$C2933=\"Log value\",DataLog!S2933,\"\")","v":""},{"$f":"IF(DataLog!$C2933=\"Log value\",DataLog!T2933,\"\")","v":""},{"$f":"IF(DataLog!$C2933=\"Log value\",DataLog!U2933,\"\")","v":""},{"$f":"IF(DataLog!$C2933=\"Log value\",DataLog!V2933,\"\")","v":""},{"$f":"IF(DataLog!$C2933=\"Log value\",DataLog!W2933,\"\")","v":""},{"$f":"IF(DataLog!$C2933=\"Log value\",DataLog!X2933,\"\")","v":""},{"$f":"IF(DataLog!$C2933=\"Log value\",DataLog!Y2933,\"\")","v":""},{"$f":"IF(DataLog!$C2933=\"Log value\",DataLog!Z2933,\"\")","v":""},{"$f":"IF(DataLog!$C2933=\"Log value\",DataLog!AA2933,\"\")","v":""},{"$f":"IF(DataLog!$C2933=\"Log value\",DataLog!AB2933,\"\")","v":""},{"$f":"IF(DataLog!$C2933=\"Log value\",DataLog!AC2933,\"\")","v":""},{"$f":"IF(DataLog!$C2933=\"Log value\",DataLog!AD2933,\"\")","v":""},{"$f":"IF(DataLog!$C2933=\"Log value\",DataLog!AE2933,\"\")","v":""},{"$f":"IF(DataLog!$C2933=\"Log value\",DataLog!AF2933,\"\")","v":""},{"$f":"IF(DataLog!$C2933=\"Log value\",DataLog!AG2933,\"\")","v":""},{"$f":"IF(DataLog!$C2933=\"Log value\",DataLog!AH2933,\"\")","v":""},{"$f":"IF(DataLog!$C2933=\"Log value\",DataLog!AI2933,\"\")","v":""},{"$f":"IF(DataLog!$C2933=\"Log value\",DataLog!AJ2933,\"\")","v":""},{"$f":"IF(DataLog!$C2933=\"Log value\",DataLog!AK2933,\"\")","v":""},{"$f":"IF(DataLog!$C2933=\"Log value\",DataLog!AL2933,\"\")","v":""},{"$f":"IF(DataLog!$C2933=\"Log value\",DataLog!AM2933,\"\")","v":""}]
[null,null,null,null,null,null,{"$f":"IF(DataLog!$C2935=\"Log value\",DataLog!D2935&\"_\"&TEXT(DataLog!B2935,\"åååå-mm-dd\"),\"\")","v":""},{"$f":"IF(DataLog!$C2935=\"Log value\",DataLog!E2935,\"\")","v":""},{"$f":"IF(DataLog!$C2935=\"Log value\",DataLog!F2935,\"\")","v":""},{"$f":"IF(DataLog!$C2935=\"Log value\",DataLog!G2935,\"\")","v":""},{"$f":"IF(DataLog!$C2935=\"Log value\",DataLog!H2935,\"\")","v":""},{"$f":"IF(DataLog!$C2935=\"Log value\",DataLog!I2935,\"\")","v":""},{"$f":"IF(DataLog!$C2935=\"Log value\",DataLog!J2935,\"\")","v":""},{"$f":"IF(DataLog!$C2935=\"Log value\",DataLog!K2935,\"\")","v":""},{"$f":"IF(DataLog!$C2935=\"Log value\",DataLog!L2935,\"\")","v":""},{"$f":"IF(DataLog!$C2935=\"Log value\",DataLog!M2935,\"\")","v":""},{"$f":"IF(DataLog!$C2935=\"Log value\",DataLog!N2935,\"\")","v":""},{"$f":"IF(DataLog!$C2935=\"Log value\",DataLog!O2935,\"\")","v":""},{"$f":"IF(DataLog!$C2935=\"Log value\",DataLog!P2935,\"\")","v":""},{"$f":"IF(DataLog!$C2935=\"Log value\",DataLog!Q2935,\"\")","v":""},{"$f":"IF(DataLog!$C2935=\"Log value\",DataLog!R2935,\"\")","v":""},{"$f":"IF(DataLog!$C2935=\"Log value\",DataLog!S2935,\"\")","v":""},{"$f":"IF(DataLog!$C2935=\"Log value\",DataLog!T2935,\"\")","v":""},{"$f":"IF(DataLog!$C2935=\"Log value\",DataLog!U2935,\"\")","v":""},{"$f":"IF(DataLog!$C2935=\"Log value\",DataLog!V2935,\"\")","v":""},{"$f":"IF(DataLog!$C2935=\"Log value\",DataLog!W2935,\"\")","v":""},{"$f":"IF(DataLog!$C2935=\"Log value\",DataLog!X2935,\"\")","v":""},{"$f":"IF(DataLog!$C2935=\"Log value\",DataLog!Y2935,\"\")","v":""},{"$f":"IF(DataLog!$C2935=\"Log value\",DataLog!Z2935,\"\")","v":""},{"$f":"IF(DataLog!$C2935=\"Log value\",DataLog!AA2935,\"\")","v":""},{"$f":"IF(DataLog!$C2935=\"Log value\",DataLog!AB2935,\"\")","v":""},{"$f":"IF(DataLog!$C2935=\"Log value\",DataLog!AC2935,\"\")","v":""},{"$f":"IF(DataLog!$C2935=\"Log value\",DataLog!AD2935,\"\")","v":""},{"$f":"IF(DataLog!$C2935=\"Log value\",DataLog!AE2935,\"\")","v":""},{"$f":"IF(DataLog!$C2935=\"Log value\",DataLog!AF2935,\"\")","v":""},{"$f":"IF(DataLog!$C2935=\"Log value\",DataLog!AG2935,\"\")","v":""},{"$f":"IF(DataLog!$C2935=\"Log value\",DataLog!AH2935,\"\")","v":""},{"$f":"IF(DataLog!$C2935=\"Log value\",DataLog!AI2935,\"\")","v":""},{"$f":"IF(DataLog!$C2935=\"Log value\",DataLog!AJ2935,\"\")","v":""},{"$f":"IF(DataLog!$C2935=\"Log value\",DataLog!AK2935,\"\")","v":""},{"$f":"IF(DataLog!$C2935=\"Log value\",DataLog!AL2935,\"\")","v":""},{"$f":"IF(DataLog!$C2935=\"Log value\",DataLog!AM2935,\"\")","v":""}]
[null,null,null,null,null,null,{"$f":"IF(DataLog!$C2938=\"Log value\",DataLog!D2938&\"_\"&TEXT(DataLog!B2938,\"åååå-mm-dd\"),\"\")","v":""},{"$f":"IF(DataLog!$C2938=\"Log value\",DataLog!E2938,\"\")","v":""},{"$f":"IF(DataLog!$C2938=\"Log value\",DataLog!F2938,\"\")","v":""},{"$f":"IF(DataLog!$C2938=\"Log value\",DataLog!G2938,\"\")","v":""},{"$f":"IF(DataLog!$C2938=\"Log value\",DataLog!H2938,\"\")","v":""},{"$f":"IF(DataLog!$C2938=\"Log value\",DataLog!I2938,\"\")","v":""},{"$f":"IF(DataLog!$C2938=\"Log value\",DataLog!J2938,\"\")","v":""},{"$f":"IF(DataLog!$C2938=\"Log value\",DataLog!K2938,\"\")","v":""},{"$f":"IF(DataLog!$C2938=\"Log value\",DataLog!L2938,\"\")","v":""},{"$f":"IF(DataLog!$C2938=\"Log value\",DataLog!M2938,\"\")","v":""},{"$f":"IF(DataLog!$C2938=\"Log value\",DataLog!N2938,\"\")","v":""},{"$f":"IF(DataLog!$C2938=\"Log value\",DataLog!O2938,\"\")","v":""},{"$f":"IF(DataLog!$C2938=\"Log value\",DataLog!P2938,\"\")","v":""},{"$f":"IF(DataLog!$C2938=\"Log value\",DataLog!Q2938,\"\")","v":""},{"$f":"IF(DataLog!$C2938=\"Log value\",DataLog!R2938,\"\")","v":""},{"$f":"IF(DataLog!$C2938=\"Log value\",DataLog!S2938,\"\")","v":""},{"$f":"IF(DataLog!$C2938=\"Log value\",DataLog!T2938,\"\")","v":""},{"$f":"IF(DataLog!$C2938=\"Log value\",DataLog!U2938,\"\")","v":""},{"$f":"IF(DataLog!$C2938=\"Log value\",DataLog!V2938,\"\")","v":""},{"$f":"IF(DataLog!$C2938=\"Log value\",DataLog!W2938,\"\")","v":""},{"$f":"IF(DataLog!$C2938=\"Log value\",DataLog!X2938,\"\")","v":""},{"$f":"IF(DataLog!$C2938=\"Log value\",DataLog!Y2938,\"\")","v":""},{"$f":"IF(DataLog!$C2938=\"Log value\",DataLog!Z2938,\"\")","v":""},{"$f":"IF(DataLog!$C2938=\"Log value\",DataLog!AA2938,\"\")","v":""},{"$f":"IF(DataLog!$C2938=\"Log value\",DataLog!AB2938,\"\")","v":""},{"$f":"IF(DataLog!$C2938=\"Log value\",DataLog!AC2938,\"\")","v":""},{"$f":"IF(DataLog!$C2938=\"Log value\",DataLog!AD2938,\"\")","v":""},{"$f":"IF(DataLog!$C2938=\"Log value\",DataLog!AE2938,\"\")","v":""},{"$f":"IF(DataLog!$C2938=\"Log value\",DataLog!AF2938,\"\")","v":""},{"$f":"IF(DataLog!$C2938=\"Log value\",DataLog!AG2938,\"\")","v":""},{"$f":"IF(DataLog!$C2938=\"Log value\",DataLog!AH2938,\"\")","v":""},{"$f":"IF(DataLog!$C2938=\"Log value\",DataLog!AI2938,\"\")","v":""},{"$f":"IF(DataLog!$C2938=\"Log value\",DataLog!AJ2938,\"\")","v":""},{"$f":"IF(DataLog!$C2938=\"Log value\",DataLog!AK2938,\"\")","v":""},{"$f":"IF(DataLog!$C2938=\"Log value\",DataLog!AL2938,\"\")","v":""},{"$f":"IF(DataLog!$C2938=\"Log value\",DataLog!AM2938,\"\")","v":""}]
[null,null,null,null,null,null,{"$f":"IF(DataLog!$C2941=\"Log value\",DataLog!D2941&\"_\"&TEXT(DataLog!B2941,\"åååå-mm-dd\"),\"\")","v":""},{"$f":"IF(DataLog!$C2941=\"Log value\",DataLog!E2941,\"\")","v":""},{"$f":"IF(DataLog!$C2941=\"Log value\",DataLog!F2941,\"\")","v":""},{"$f":"IF(DataLog!$C2941=\"Log value\",DataLog!G2941,\"\")","v":""},{"$f":"IF(DataLog!$C2941=\"Log value\",DataLog!H2941,\"\")","v":""},{"$f":"IF(DataLog!$C2941=\"Log value\",DataLog!I2941,\"\")","v":""},{"$f":"IF(DataLog!$C2941=\"Log value\",DataLog!J2941,\"\")","v":""},{"$f":"IF(DataLog!$C2941=\"Log value\",DataLog!K2941,\"\")","v":""},{"$f":"IF(DataLog!$C2941=\"Log value\",DataLog!L2941,\"\")","v":""},{"$f":"IF(DataLog!$C2941=\"Log value\",DataLog!M2941,\"\")","v":""},{"$f":"IF(DataLog!$C2941=\"Log value\",DataLog!N2941,\"\")","v":""},{"$f":"IF(DataLog!$C2941=\"Log value\",DataLog!O2941,\"\")","v":""},{"$f":"IF(DataLog!$C2941=\"Log value\",DataLog!P2941,\"\")","v":""},{"$f":"IF(DataLog!$C2941=\"Log value\",DataLog!Q2941,\"\")","v":""},{"$f":"IF(DataLog!$C2941=\"Log value\",DataLog!R2941,\"\")","v":""},{"$f":"IF(DataLog!$C2941=\"Log value\",DataLog!S2941,\"\")","v":""},{"$f":"IF(DataLog!$C2941=\"Log value\",DataLog!T2941,\"\")","v":""},{"$f":"IF(DataLog!$C2941=\"Log value\",DataLog!U2941,\"\")","v":""},{"$f":"IF(DataLog!$C2941=\"Log value\",DataLog!V2941,\"\")","v":""},{"$f":"IF(DataLog!$C2941=\"Log value\",DataLog!W2941,\"\")","v":""},{"$f":"IF(DataLog!$C2941=\"Log value\",DataLog!X2941,\"\")","v":""},{"$f":"IF(DataLog!$C2941=\"Log value\",DataLog!Y2941,\"\")","v":""},{"$f":"IF(DataLog!$C2941=\"Log value\",DataLog!Z2941,\"\")","v":""},{"$f":"IF(DataLog!$C2941=\"Log value\",DataLog!AA2941,\"\")","v":""},{"$f":"IF(DataLog!$C2941=\"Log value\",DataLog!AB2941,\"\")","v":""},{"$f":"IF(DataLog!$C2941=\"Log value\",DataLog!AC2941,\"\")","v":""},{"$f":"IF(DataLog!$C2941=\"Log value\",DataLog!AD2941,\"\")","v":""},{"$f":"IF(DataLog!$C2941=\"Log value\",DataLog!AE2941,\"\")","v":""},{"$f":"IF(DataLog!$C2941=\"Log value\",DataLog!AF2941,\"\")","v":""},{"$f":"IF(DataLog!$C2941=\"Log value\",DataLog!AG2941,\"\")","v":""},{"$f":"IF(DataLog!$C2941=\"Log value\",DataLog!AH2941,\"\")","v":""},{"$f":"IF(DataLog!$C2941=\"Log value\",DataLog!AI2941,\"\")","v":""},{"$f":"IF(DataLog!$C2941=\"Log value\",DataLog!AJ2941,\"\")","v":""},{"$f":"IF(DataLog!$C2941=\"Log value\",DataLog!AK2941,\"\")","v":""},{"$f":"IF(DataLog!$C2941=\"Log value\",DataLog!AL2941,\"\")","v":""},{"$f":"IF(DataLog!$C2941=\"Log value\",DataLog!AM2941,\"\")","v":""}]
[null,null,null,null,null,null,{"$f":"IF(DataLog!$C2942=\"Log value\",DataLog!D2942&\"_\"&TEXT(DataLog!B2942,\"åååå-mm-dd\"),\"\")","v":""},{"$f":"IF(DataLog!$C2942=\"Log value\",DataLog!E2942,\"\")","v":""},{"$f":"IF(DataLog!$C2942=\"Log value\",DataLog!F2942,\"\")","v":""},{"$f":"IF(DataLog!$C2942=\"Log value\",DataLog!G2942,\"\")","v":""},{"$f":"IF(DataLog!$C2942=\"Log value\",DataLog!H2942,\"\")","v":""},{"$f":"IF(DataLog!$C2942=\"Log value\",DataLog!I2942,\"\")","v":""},{"$f":"IF(DataLog!$C2942=\"Log value\",DataLog!J2942,\"\")","v":""},{"$f":"IF(DataLog!$C2942=\"Log value\",DataLog!K2942,\"\")","v":""},{"$f":"IF(DataLog!$C2942=\"Log value\",DataLog!L2942,\"\")","v":""},{"$f":"IF(DataLog!$C2942=\"Log value\",DataLog!M2942,\"\")","v":""},{"$f":"IF(DataLog!$C2942=\"Log value\",DataLog!N2942,\"\")","v":""},{"$f":"IF(DataLog!$C2942=\"Log value\",DataLog!O2942,\"\")","v":""},{"$f":"IF(DataLog!$C2942=\"Log value\",DataLog!P2942,\"\")","v":""},{"$f":"IF(DataLog!$C2942=\"Log value\",DataLog!Q2942,\"\")","v":""},{"$f":"IF(DataLog!$C2942=\"Log value\",DataLog!R2942,\"\")","v":""},{"$f":"IF(DataLog!$C2942=\"Log value\",DataLog!S2942,\"\")","v":""},{"$f":"IF(DataLog!$C2942=\"Log value\",DataLog!T2942,\"\")","v":""},{"$f":"IF(DataLog!$C2942=\"Log value\",DataLog!U2942,\"\")","v":""},{"$f":"IF(DataLog!$C2942=\"Log value\",DataLog!V2942,\"\")","v":""},{"$f":"IF(DataLog!$C2942=\"Log value\",DataLog!W2942,\"\")","v":""},{"$f":"IF(DataLog!$C2942=\"Log value\",DataLog!X2942,\"\")","v":""},{"$f":"IF(DataLog!$C2942=\"Log value\",DataLog!Y2942,\"\")","v":""},{"$f":"IF(DataLog!$C2942=\"Log value\",DataLog!Z2942,\"\")","v":""},{"$f":"IF(DataLog!$C2942=\"Log value\",DataLog!AA2942,\"\")","v":""},{"$f":"IF(DataLog!$C2942=\"Log value\",DataLog!AB2942,\"\")","v":""},{"$f":"IF(DataLog!$C2942=\"Log value\",DataLog!AC2942,\"\")","v":""},{"$f":"IF(DataLog!$C2942=\"Log value\",DataLog!AD2942,\"\")","v":""},{"$f":"IF(DataLog!$C2942=\"Log value\",DataLog!AE2942,\"\")","v":""},{"$f":"IF(DataLog!$C2942=\"Log value\",DataLog!AF2942,\"\")","v":""},{"$f":"IF(DataLog!$C2942=\"Log value\",DataLog!AG2942,\"\")","v":""},{"$f":"IF(DataLog!$C2942=\"Log value\",DataLog!AH2942,\"\")","v":""},{"$f":"IF(DataLog!$C2942=\"Log value\",DataLog!AI2942,\"\")","v":""},{"$f":"IF(DataLog!$C2942=\"Log value\",DataLog!AJ2942,\"\")","v":""},{"$f":"IF(DataLog!$C2942=\"Log value\",DataLog!AK2942,\"\")","v":""},{"$f":"IF(DataLog!$C2942=\"Log value\",DataLog!AL2942,\"\")","v":""},{"$f":"IF(DataLog!$C2942=\"Log value\",DataLog!AM2942,\"\")","v":""}]
[null,null,null,null,null,null,{"$f":"IF(DataLog!$C2945=\"Log value\",DataLog!D2945&\"_\"&TEXT(DataLog!B2945,\"åååå-mm-dd\"),\"\")","v":""},{"$f":"IF(DataLog!$C2945=\"Log value\",DataLog!E2945,\"\")","v":""},{"$f":"IF(DataLog!$C2945=\"Log value\",DataLog!F2945,\"\")","v":""},{"$f":"IF(DataLog!$C2945=\"Log value\",DataLog!G2945,\"\")","v":""},{"$f":"IF(DataLog!$C2945=\"Log value\",DataLog!H2945,\"\")","v":""},{"$f":"IF(DataLog!$C2945=\"Log value\",DataLog!I2945,\"\")","v":""},{"$f":"IF(DataLog!$C2945=\"Log value\",DataLog!J2945,\"\")","v":""},{"$f":"IF(DataLog!$C2945=\"Log value\",DataLog!K2945,\"\")","v":""},{"$f":"IF(DataLog!$C2945=\"Log value\",DataLog!L2945,\"\")","v":""},{"$f":"IF(DataLog!$C2945=\"Log value\",DataLog!M2945,\"\")","v":""},{"$f":"IF(DataLog!$C2945=\"Log value\",DataLog!N2945,\"\")","v":""},{"$f":"IF(DataLog!$C2945=\"Log value\",DataLog!O2945,\"\")","v":""},{"$f":"IF(DataLog!$C2945=\"Log value\",DataLog!P2945,\"\")","v":""},{"$f":"IF(DataLog!$C2945=\"Log value\",DataLog!Q2945,\"\")","v":""},{"$f":"IF(DataLog!$C2945=\"Log value\",DataLog!R2945,\"\")","v":""},{"$f":"IF(DataLog!$C2945=\"Log value\",DataLog!S2945,\"\")","v":""},{"$f":"IF(DataLog!$C2945=\"Log value\",DataLog!T2945,\"\")","v":""},{"$f":"IF(DataLog!$C2945=\"Log value\",DataLog!U2945,\"\")","v":""},{"$f":"IF(DataLog!$C2945=\"Log value\",DataLog!V2945,\"\")","v":""},{"$f":"IF(DataLog!$C2945=\"Log value\",DataLog!W2945,\"\")","v":""},{"$f":"IF(DataLog!$C2945=\"Log value\",DataLog!X2945,\"\")","v":""},{"$f":"IF(DataLog!$C2945=\"Log value\",DataLog!Y2945,\"\")","v":""},{"$f":"IF(DataLog!$C2945=\"Log value\",DataLog!Z2945,\"\")","v":""},{"$f":"IF(DataLog!$C2945=\"Log value\",DataLog!AA2945,\"\")","v":""},{"$f":"IF(DataLog!$C2945=\"Log value\",DataLog!AB2945,\"\")","v":""},{"$f":"IF(DataLog!$C2945=\"Log value\",DataLog!AC2945,\"\")","v":""},{"$f":"IF(DataLog!$C2945=\"Log value\",DataLog!AD2945,\"\")","v":""},{"$f":"IF(DataLog!$C2945=\"Log value\",DataLog!AE2945,\"\")","v":""},{"$f":"IF(DataLog!$C2945=\"Log value\",DataLog!AF2945,\"\")","v":""},{"$f":"IF(DataLog!$C2945=\"Log value\",DataLog!AG2945,\"\")","v":""},{"$f":"IF(DataLog!$C2945=\"Log value\",DataLog!AH2945,\"\")","v":""},{"$f":"IF(DataLog!$C2945=\"Log value\",DataLog!AI2945,\"\")","v":""},{"$f":"IF(DataLog!$C2945=\"Log value\",DataLog!AJ2945,\"\")","v":""},{"$f":"IF(DataLog!$C2945=\"Log value\",DataLog!AK2945,\"\")","v":""},{"$f":"IF(DataLog!$C2945=\"Log value\",DataLog!AL2945,\"\")","v":""},{"$f":"IF(DataLog!$C2945=\"Log value\",DataLog!AM2945,\"\")","v":""}]
[null,null,null,null,null,null,{"$f":"IF(DataLog!$C2947=\"Log value\",DataLog!D2947&\"_\"&TEXT(DataLog!B2947,\"åååå-mm-dd\"),\"\")","v":""},{"$f":"IF(DataLog!$C2947=\"Log value\",DataLog!E2947,\"\")","v":""},{"$f":"IF(DataLog!$C2947=\"Log value\",DataLog!F2947,\"\")","v":""},{"$f":"IF(DataLog!$C2947=\"Log value\",DataLog!G2947,\"\")","v":""},{"$f":"IF(DataLog!$C2947=\"Log value\",DataLog!H2947,\"\")","v":""},{"$f":"IF(DataLog!$C2947=\"Log value\",DataLog!I2947,\"\")","v":""},{"$f":"IF(DataLog!$C2947=\"Log value\",DataLog!J2947,\"\")","v":""},{"$f":"IF(DataLog!$C2947=\"Log value\",DataLog!K2947,\"\")","v":""},{"$f":"IF(DataLog!$C2947=\"Log value\",DataLog!L2947,\"\")","v":""},{"$f":"IF(DataLog!$C2947=\"Log value\",DataLog!M2947,\"\")","v":""},{"$f":"IF(DataLog!$C2947=\"Log value\",DataLog!N2947,\"\")","v":""},{"$f":"IF(DataLog!$C2947=\"Log value\",DataLog!O2947,\"\")","v":""},{"$f":"IF(DataLog!$C2947=\"Log value\",DataLog!P2947,\"\")","v":""},{"$f":"IF(DataLog!$C2947=\"Log value\",DataLog!Q2947,\"\")","v":""},{"$f":"IF(DataLog!$C2947=\"Log value\",DataLog!R2947,\"\")","v":""},{"$f":"IF(DataLog!$C2947=\"Log value\",DataLog!S2947,\"\")","v":""},{"$f":"IF(DataLog!$C2947=\"Log value\",DataLog!T2947,\"\")","v":""},{"$f":"IF(DataLog!$C2947=\"Log value\",DataLog!U2947,\"\")","v":""},{"$f":"IF(DataLog!$C2947=\"Log value\",DataLog!V2947,\"\")","v":""},{"$f":"IF(DataLog!$C2947=\"Log value\",DataLog!W2947,\"\")","v":""},{"$f":"IF(DataLog!$C2947=\"Log value\",DataLog!X2947,\"\")","v":""},{"$f":"IF(DataLog!$C2947=\"Log value\",DataLog!Y2947,\"\")","v":""},{"$f":"IF(DataLog!$C2947=\"Log value\",DataLog!Z2947,\"\")","v":""},{"$f":"IF(DataLog!$C2947=\"Log value\",DataLog!AA2947,\"\")","v":""},{"$f":"IF(DataLog!$C2947=\"Log value\",DataLog!AB2947,\"\")","v":""},{"$f":"IF(DataLog!$C2947=\"Log value\",DataLog!AC2947,\"\")","v":""},{"$f":"IF(DataLog!$C2947=\"Log value\",DataLog!AD2947,\"\")","v":""},{"$f":"IF(DataLog!$C2947=\"Log value\",DataLog!AE2947,\"\")","v":""},{"$f":"IF(DataLog!$C2947=\"Log value\",DataLog!AF2947,\"\")","v":""},{"$f":"IF(DataLog!$C2947=\"Log value\",DataLog!AG2947,\"\")","v":""},{"$f":"IF(DataLog!$C2947=\"Log value\",DataLog!AH2947,\"\")","v":""},{"$f":"IF(DataLog!$C2947=\"Log value\",DataLog!AI2947,\"\")","v":""},{"$f":"IF(DataLog!$C2947=\"Log value\",DataLog!AJ2947,\"\")","v":""},{"$f":"IF(DataLog!$C2947=\"Log value\",DataLog!AK2947,\"\")","v":""},{"$f":"IF(DataLog!$C2947=\"Log value\",DataLog!AL2947,\"\")","v":""},{"$f":"IF(DataLog!$C2947=\"Log value\",DataLog!AM2947,\"\")","v":""}]
[null,null,null,null,null,null,{"$f":"IF(DataLog!$C2950=\"Log value\",DataLog!D2950&\"_\"&TEXT(DataLog!B2950,\"åååå-mm-dd\"),\"\")","v":""},{"$f":"IF(DataLog!$C2950=\"Log value\",DataLog!E2950,\"\")","v":""},{"$f":"IF(DataLog!$C2950=\"Log value\",DataLog!F2950,\"\")","v":""},{"$f":"IF(DataLog!$C2950=\"Log value\",DataLog!G2950,\"\")","v":""},{"$f":"IF(DataLog!$C2950=\"Log value\",DataLog!H2950,\"\")","v":""},{"$f":"IF(DataLog!$C2950=\"Log value\",DataLog!I2950,\"\")","v":""},{"$f":"IF(DataLog!$C2950=\"Log value\",DataLog!J2950,\"\")","v":""},{"$f":"IF(DataLog!$C2950=\"Log value\",DataLog!K2950,\"\")","v":""},{"$f":"IF(DataLog!$C2950=\"Log value\",DataLog!L2950,\"\")","v":""},{"$f":"IF(DataLog!$C2950=\"Log value\",DataLog!M2950,\"\")","v":""},{"$f":"IF(DataLog!$C2950=\"Log value\",DataLog!N2950,\"\")","v":""},{"$f":"IF(DataLog!$C2950=\"Log value\",DataLog!O2950,\"\")","v":""},{"$f":"IF(DataLog!$C2950=\"Log value\",DataLog!P2950,\"\")","v":""},{"$f":"IF(DataLog!$C2950=\"Log value\",DataLog!Q2950,\"\")","v":""},{"$f":"IF(DataLog!$C2950=\"Log value\",DataLog!R2950,\"\")","v":""},{"$f":"IF(DataLog!$C2950=\"Log value\",DataLog!S2950,\"\")","v":""},{"$f":"IF(DataLog!$C2950=\"Log value\",DataLog!T2950,\"\")","v":""},{"$f":"IF(DataLog!$C2950=\"Log value\",DataLog!U2950,\"\")","v":""},{"$f":"IF(DataLog!$C2950=\"Log value\",DataLog!V2950,\"\")","v":""},{"$f":"IF(DataLog!$C2950=\"Log value\",DataLog!W2950,\"\")","v":""},{"$f":"IF(DataLog!$C2950=\"Log value\",DataLog!X2950,\"\")","v":""},{"$f":"IF(DataLog!$C2950=\"Log value\",DataLog!Y2950,\"\")","v":""},{"$f":"IF(DataLog!$C2950=\"Log value\",DataLog!Z2950,\"\")","v":""},{"$f":"IF(DataLog!$C2950=\"Log value\",DataLog!AA2950,\"\")","v":""},{"$f":"IF(DataLog!$C2950=\"Log value\",DataLog!AB2950,\"\")","v":""},{"$f":"IF(DataLog!$C2950=\"Log value\",DataLog!AC2950,\"\")","v":""},{"$f":"IF(DataLog!$C2950=\"Log value\",DataLog!AD2950,\"\")","v":""},{"$f":"IF(DataLog!$C2950=\"Log value\",DataLog!AE2950,\"\")","v":""},{"$f":"IF(DataLog!$C2950=\"Log value\",DataLog!AF2950,\"\")","v":""},{"$f":"IF(DataLog!$C2950=\"Log value\",DataLog!AG2950,\"\")","v":""},{"$f":"IF(DataLog!$C2950=\"Log value\",DataLog!AH2950,\"\")","v":""},{"$f":"IF(DataLog!$C2950=\"Log value\",DataLog!AI2950,\"\")","v":""},{"$f":"IF(DataLog!$C2950=\"Log value\",DataLog!AJ2950,\"\")","v":""},{"$f":"IF(DataLog!$C2950=\"Log value\",DataLog!AK2950,\"\")","v":""},{"$f":"IF(DataLog!$C2950=\"Log value\",DataLog!AL2950,\"\")","v":""},{"$f":"IF(DataLog!$C2950=\"Log value\",DataLog!AM2950,\"\")","v":""}]
[null,null,null,null,null,null,{"$f":"IF(DataLog!$C2951=\"Log value\",DataLog!D2951&\"_\"&TEXT(DataLog!B2951,\"åååå-mm-dd\"),\"\")","v":""},{"$f":"IF(DataLog!$C2951=\"Log value\",DataLog!E2951,\"\")","v":""},{"$f":"IF(DataLog!$C2951=\"Log value\",DataLog!F2951,\"\")","v":""},{"$f":"IF(DataLog!$C2951=\"Log value\",DataLog!G2951,\"\")","v":""},{"$f":"IF(DataLog!$C2951=\"Log value\",DataLog!H2951,\"\")","v":""},{"$f":"IF(DataLog!$C2951=\"Log value\",DataLog!I2951,\"\")","v":""},{"$f":"IF(DataLog!$C2951=\"Log value\",DataLog!J2951,\"\")","v":""},{"$f":"IF(DataLog!$C2951=\"Log value\",DataLog!K2951,\"\")","v":""},{"$f":"IF(DataLog!$C2951=\"Log value\",DataLog!L2951,\"\")","v":""},{"$f":"IF(DataLog!$C2951=\"Log value\",DataLog!M2951,\"\")","v":""},{"$f":"IF(DataLog!$C2951=\"Log value\",DataLog!N2951,\"\")","v":""},{"$f":"IF(DataLog!$C2951=\"Log value\",DataLog!O2951,\"\")","v":""},{"$f":"IF(DataLog!$C2951=\"Log value\",DataLog!P2951,\"\")","v":""},{"$f":"IF(DataLog!$C2951=\"Log value\",DataLog!Q2951,\"\")","v":""},{"$f":"IF(DataLog!$C2951=\"Log value\",DataLog!R2951,\"\")","v":""},{"$f":"IF(DataLog!$C2951=\"Log value\",DataLog!S2951,\"\")","v":""},{"$f":"IF(DataLog!$C2951=\"Log value\",DataLog!T2951,\"\")","v":""},{"$f":"IF(DataLog!$C2951=\"Log value\",DataLog!U2951,\"\")","v":""},{"$f":"IF(DataLog!$C2951=\"Log value\",DataLog!V2951,\"\")","v":""},{"$f":"IF(DataLog!$C2951=\"Log value\",DataLog!W2951,\"\")","v":""},{"$f":"IF(DataLog!$C2951=\"Log value\",DataLog!X2951,\"\")","v":""},{"$f":"IF(DataLog!$C2951=\"Log value\",DataLog!Y2951,\"\")","v":""},{"$f":"IF(DataLog!$C2951=\"Log value\",DataLog!Z2951,\"\")","v":""},{"$f":"IF(DataLog!$C2951=\"Log value\",DataLog!AA2951,\"\")","v":""},{"$f":"IF(DataLog!$C2951=\"Log value\",DataLog!AB2951,\"\")","v":""},{"$f":"IF(DataLog!$C2951=\"Log value\",DataLog!AC2951,\"\")","v":""},{"$f":"IF(DataLog!$C2951=\"Log value\",DataLog!AD2951,\"\")","v":""},{"$f":"IF(DataLog!$C2951=\"Log value\",DataLog!AE2951,\"\")","v":""},{"$f":"IF(DataLog!$C2951=\"Log value\",DataLog!AF2951,\"\")","v":""},{"$f":"IF(DataLog!$C2951=\"Log value\",DataLog!AG2951,\"\")","v":""},{"$f":"IF(DataLog!$C2951=\"Log value\",DataLog!AH2951,\"\")","v":""},{"$f":"IF(DataLog!$C2951=\"Log value\",DataLog!AI2951,\"\")","v":""},{"$f":"IF(DataLog!$C2951=\"Log value\",DataLog!AJ2951,\"\")","v":""},{"$f":"IF(DataLog!$C2951=\"Log value\",DataLog!AK2951,\"\")","v":""},{"$f":"IF(DataLog!$C2951=\"Log value\",DataLog!AL2951,\"\")","v":""},{"$f":"IF(DataLog!$C2951=\"Log value\",DataLog!AM2951,\"\")","v":""}]
[null,null,null,null,null,null,{"$f":"IF(DataLog!$C2953=\"Log value\",DataLog!D2953&\"_\"&TEXT(DataLog!B2953,\"åååå-mm-dd\"),\"\")","v":""},{"$f":"IF(DataLog!$C2953=\"Log value\",DataLog!E2953,\"\")","v":""},{"$f":"IF(DataLog!$C2953=\"Log value\",DataLog!F2953,\"\")","v":""},{"$f":"IF(DataLog!$C2953=\"Log value\",DataLog!G2953,\"\")","v":""},{"$f":"IF(DataLog!$C2953=\"Log value\",DataLog!H2953,\"\")","v":""},{"$f":"IF(DataLog!$C2953=\"Log value\",DataLog!I2953,\"\")","v":""},{"$f":"IF(DataLog!$C2953=\"Log value\",DataLog!J2953,\"\")","v":""},{"$f":"IF(DataLog!$C2953=\"Log value\",DataLog!K2953,\"\")","v":""},{"$f":"IF(DataLog!$C2953=\"Log value\",DataLog!L2953,\"\")","v":""},{"$f":"IF(DataLog!$C2953=\"Log value\",DataLog!M2953,\"\")","v":""},{"$f":"IF(DataLog!$C2953=\"Log value\",DataLog!N2953,\"\")","v":""},{"$f":"IF(DataLog!$C2953=\"Log value\",DataLog!O2953,\"\")","v":""},{"$f":"IF(DataLog!$C2953=\"Log value\",DataLog!P2953,\"\")","v":""},{"$f":"IF(DataLog!$C2953=\"Log value\",DataLog!Q2953,\"\")","v":""},{"$f":"IF(DataLog!$C2953=\"Log value\",DataLog!R2953,\"\")","v":""},{"$f":"IF(DataLog!$C2953=\"Log value\",DataLog!S2953,\"\")","v":""},{"$f":"IF(DataLog!$C2953=\"Log value\",DataLog!T2953,\"\")","v":""},{"$f":"IF(DataLog!$C2953=\"Log value\",DataLog!U2953,\"\")","v":""},{"$f":"IF(DataLog!$C2953=\"Log value\",DataLog!V2953,\"\")","v":""},{"$f":"IF(DataLog!$C2953=\"Log value\",DataLog!W2953,\"\")","v":""},{"$f":"IF(DataLog!$C2953=\"Log value\",DataLog!X2953,\"\")","v":""},{"$f":"IF(DataLog!$C2953=\"Log value\",DataLog!Y2953,\"\")","v":""},{"$f":"IF(DataLog!$C2953=\"Log value\",DataLog!Z2953,\"\")","v":""},{"$f":"IF(DataLog!$C2953=\"Log value\",DataLog!AA2953,\"\")","v":""},{"$f":"IF(DataLog!$C2953=\"Log value\",DataLog!AB2953,\"\")","v":""},{"$f":"IF(DataLog!$C2953=\"Log value\",DataLog!AC2953,\"\")","v":""},{"$f":"IF(DataLog!$C2953=\"Log value\",DataLog!AD2953,\"\")","v":""},{"$f":"IF(DataLog!$C2953=\"Log value\",DataLog!AE2953,\"\")","v":""},{"$f":"IF(DataLog!$C2953=\"Log value\",DataLog!AF2953,\"\")","v":""},{"$f":"IF(DataLog!$C2953=\"Log value\",DataLog!AG2953,\"\")","v":""},{"$f":"IF(DataLog!$C2953=\"Log value\",DataLog!AH2953,\"\")","v":""},{"$f":"IF(DataLog!$C2953=\"Log value\",DataLog!AI2953,\"\")","v":""},{"$f":"IF(DataLog!$C2953=\"Log value\",DataLog!AJ2953,\"\")","v":""},{"$f":"IF(DataLog!$C2953=\"Log value\",DataLog!AK2953,\"\")","v":""},{"$f":"IF(DataLog!$C2953=\"Log value\",DataLog!AL2953,\"\")","v":""},{"$f":"IF(DataLog!$C2953=\"Log value\",DataLog!AM2953,\"\")","v":""}]
[null,null,null,null,null,null,{"$f":"IF(DataLog!$C2956=\"Log value\",DataLog!D2956&\"_\"&TEXT(DataLog!B2956,\"åååå-mm-dd\"),\"\")","v":""},{"$f":"IF(DataLog!$C2956=\"Log value\",DataLog!E2956,\"\")","v":""},{"$f":"IF(DataLog!$C2956=\"Log value\",DataLog!F2956,\"\")","v":""},{"$f":"IF(DataLog!$C2956=\"Log value\",DataLog!G2956,\"\")","v":""},{"$f":"IF(DataLog!$C2956=\"Log value\",DataLog!H2956,\"\")","v":""},{"$f":"IF(DataLog!$C2956=\"Log value\",DataLog!I2956,\"\")","v":""},{"$f":"IF(DataLog!$C2956=\"Log value\",DataLog!J2956,\"\")","v":""},{"$f":"IF(DataLog!$C2956=\"Log value\",DataLog!K2956,\"\")","v":""},{"$f":"IF(DataLog!$C2956=\"Log value\",DataLog!L2956,\"\")","v":""},{"$f":"IF(DataLog!$C2956=\"Log value\",DataLog!M2956,\"\")","v":""},{"$f":"IF(DataLog!$C2956=\"Log value\",DataLog!N2956,\"\")","v":""},{"$f":"IF(DataLog!$C2956=\"Log value\",DataLog!O2956,\"\")","v":""},{"$f":"IF(DataLog!$C2956=\"Log value\",DataLog!P2956,\"\")","v":""},{"$f":"IF(DataLog!$C2956=\"Log value\",DataLog!Q2956,\"\")","v":""},{"$f":"IF(DataLog!$C2956=\"Log value\",DataLog!R2956,\"\")","v":""},{"$f":"IF(DataLog!$C2956=\"Log value\",DataLog!S2956,\"\")","v":""},{"$f":"IF(DataLog!$C2956=\"Log value\",DataLog!T2956,\"\")","v":""},{"$f":"IF(DataLog!$C2956=\"Log value\",DataLog!U2956,\"\")","v":""},{"$f":"IF(DataLog!$C2956=\"Log value\",DataLog!V2956,\"\")","v":""},{"$f":"IF(DataLog!$C2956=\"Log value\",DataLog!W2956,\"\")","v":""},{"$f":"IF(DataLog!$C2956=\"Log value\",DataLog!X2956,\"\")","v":""},{"$f":"IF(DataLog!$C2956=\"Log value\",DataLog!Y2956,\"\")","v":""},{"$f":"IF(DataLog!$C2956=\"Log value\",DataLog!Z2956,\"\")","v":""},{"$f":"IF(DataLog!$C2956=\"Log value\",DataLog!AA2956,\"\")","v":""},{"$f":"IF(DataLog!$C2956=\"Log value\",DataLog!AB2956,\"\")","v":""},{"$f":"IF(DataLog!$C2956=\"Log value\",DataLog!AC2956,\"\")","v":""},{"$f":"IF(DataLog!$C2956=\"Log value\",DataLog!AD2956,\"\")","v":""},{"$f":"IF(DataLog!$C2956=\"Log value\",DataLog!AE2956,\"\")","v":""},{"$f":"IF(DataLog!$C2956=\"Log value\",DataLog!AF2956,\"\")","v":""},{"$f":"IF(DataLog!$C2956=\"Log value\",DataLog!AG2956,\"\")","v":""},{"$f":"IF(DataLog!$C2956=\"Log value\",DataLog!AH2956,\"\")","v":""},{"$f":"IF(DataLog!$C2956=\"Log value\",DataLog!AI2956,\"\")","v":""},{"$f":"IF(DataLog!$C2956=\"Log value\",DataLog!AJ2956,\"\")","v":""},{"$f":"IF(DataLog!$C2956=\"Log value\",DataLog!AK2956,\"\")","v":""},{"$f":"IF(DataLog!$C2956=\"Log value\",DataLog!AL2956,\"\")","v":""},{"$f":"IF(DataLog!$C2956=\"Log value\",DataLog!AM2956,\"\")","v":""}]
[null,null,null,null,null,null,{"$f":"IF(DataLog!$C2959=\"Log value\",DataLog!D2959&\"_\"&TEXT(DataLog!B2959,\"åååå-mm-dd\"),\"\")","v":""},{"$f":"IF(DataLog!$C2959=\"Log value\",DataLog!E2959,\"\")","v":""},{"$f":"IF(DataLog!$C2959=\"Log value\",DataLog!F2959,\"\")","v":""},{"$f":"IF(DataLog!$C2959=\"Log value\",DataLog!G2959,\"\")","v":""},{"$f":"IF(DataLog!$C2959=\"Log value\",DataLog!H2959,\"\")","v":""},{"$f":"IF(DataLog!$C2959=\"Log value\",DataLog!I2959,\"\")","v":""},{"$f":"IF(DataLog!$C2959=\"Log value\",DataLog!J2959,\"\")","v":""},{"$f":"IF(DataLog!$C2959=\"Log value\",DataLog!K2959,\"\")","v":""},{"$f":"IF(DataLog!$C2959=\"Log value\",DataLog!L2959,\"\")","v":""},{"$f":"IF(DataLog!$C2959=\"Log value\",DataLog!M2959,\"\")","v":""},{"$f":"IF(DataLog!$C2959=\"Log value\",DataLog!N2959,\"\")","v":""},{"$f":"IF(DataLog!$C2959=\"Log value\",DataLog!O2959,\"\")","v":""},{"$f":"IF(DataLog!$C2959=\"Log value\",DataLog!P2959,\"\")","v":""},{"$f":"IF(DataLog!$C2959=\"Log value\",DataLog!Q2959,\"\")","v":""},{"$f":"IF(DataLog!$C2959=\"Log value\",DataLog!R2959,\"\")","v":""},{"$f":"IF(DataLog!$C2959=\"Log value\",DataLog!S2959,\"\")","v":""},{"$f":"IF(DataLog!$C2959=\"Log value\",DataLog!T2959,\"\")","v":""},{"$f":"IF(DataLog!$C2959=\"Log value\",DataLog!U2959,\"\")","v":""},{"$f":"IF(DataLog!$C2959=\"Log value\",DataLog!V2959,\"\")","v":""},{"$f":"IF(DataLog!$C2959=\"Log value\",DataLog!W2959,\"\")","v":""},{"$f":"IF(DataLog!$C2959=\"Log value\",DataLog!X2959,\"\")","v":""},{"$f":"IF(DataLog!$C2959=\"Log value\",DataLog!Y2959,\"\")","v":""},{"$f":"IF(DataLog!$C2959=\"Log value\",DataLog!Z2959,\"\")","v":""},{"$f":"IF(DataLog!$C2959=\"Log value\",DataLog!AA2959,\"\")","v":""},{"$f":"IF(DataLog!$C2959=\"Log value\",DataLog!AB2959,\"\")","v":""},{"$f":"IF(DataLog!$C2959=\"Log value\",DataLog!AC2959,\"\")","v":""},{"$f":"IF(DataLog!$C2959=\"Log value\",DataLog!AD2959,\"\")","v":""},{"$f":"IF(DataLog!$C2959=\"Log value\",DataLog!AE2959,\"\")","v":""},{"$f":"IF(DataLog!$C2959=\"Log value\",DataLog!AF2959,\"\")","v":""},{"$f":"IF(DataLog!$C2959=\"Log value\",DataLog!AG2959,\"\")","v":""},{"$f":"IF(DataLog!$C2959=\"Log value\",DataLog!AH2959,\"\")","v":""},{"$f":"IF(DataLog!$C2959=\"Log value\",DataLog!AI2959,\"\")","v":""},{"$f":"IF(DataLog!$C2959=\"Log value\",DataLog!AJ2959,\"\")","v":""},{"$f":"IF(DataLog!$C2959=\"Log value\",DataLog!AK2959,\"\")","v":""},{"$f":"IF(DataLog!$C2959=\"Log value\",DataLog!AL2959,\"\")","v":""},{"$f":"IF(DataLog!$C2959=\"Log value\",DataLog!AM2959,\"\")","v":""}]
[null,null,null,null,null,null,{"$f":"IF(DataLog!$C2960=\"Log value\",DataLog!D2960&\"_\"&TEXT(DataLog!B2960,\"åååå-mm-dd\"),\"\")","v":""},{"$f":"IF(DataLog!$C2960=\"Log value\",DataLog!E2960,\"\")","v":""},{"$f":"IF(DataLog!$C2960=\"Log value\",DataLog!F2960,\"\")","v":""},{"$f":"IF(DataLog!$C2960=\"Log value\",DataLog!G2960,\"\")","v":""},{"$f":"IF(DataLog!$C2960=\"Log value\",DataLog!H2960,\"\")","v":""},{"$f":"IF(DataLog!$C2960=\"Log value\",DataLog!I2960,\"\")","v":""},{"$f":"IF(DataLog!$C2960=\"Log value\",DataLog!J2960,\"\")","v":""},{"$f":"IF(DataLog!$C2960=\"Log value\",DataLog!K2960,\"\")","v":""},{"$f":"IF(DataLog!$C2960=\"Log value\",DataLog!L2960,\"\")","v":""},{"$f":"IF(DataLog!$C2960=\"Log value\",DataLog!M2960,\"\")","v":""},{"$f":"IF(DataLog!$C2960=\"Log value\",DataLog!N2960,\"\")","v":""},{"$f":"IF(DataLog!$C2960=\"Log value\",DataLog!O2960,\"\")","v":""},{"$f":"IF(DataLog!$C2960=\"Log value\",DataLog!P2960,\"\")","v":""},{"$f":"IF(DataLog!$C2960=\"Log value\",DataLog!Q2960,\"\")","v":""},{"$f":"IF(DataLog!$C2960=\"Log value\",DataLog!R2960,\"\")","v":""},{"$f":"IF(DataLog!$C2960=\"Log value\",DataLog!S2960,\"\")","v":""},{"$f":"IF(DataLog!$C2960=\"Log value\",DataLog!T2960,\"\")","v":""},{"$f":"IF(DataLog!$C2960=\"Log value\",DataLog!U2960,\"\")","v":""},{"$f":"IF(DataLog!$C2960=\"Log value\",DataLog!V2960,\"\")","v":""},{"$f":"IF(DataLog!$C2960=\"Log value\",DataLog!W2960,\"\")","v":""},{"$f":"IF(DataLog!$C2960=\"Log value\",DataLog!X2960,\"\")","v":""},{"$f":"IF(DataLog!$C2960=\"Log value\",DataLog!Y2960,\"\")","v":""},{"$f":"IF(DataLog!$C2960=\"Log value\",DataLog!Z2960,\"\")","v":""},{"$f":"IF(DataLog!$C2960=\"Log value\",DataLog!AA2960,\"\")","v":""},{"$f":"IF(DataLog!$C2960=\"Log value\",DataLog!AB2960,\"\")","v":""},{"$f":"IF(DataLog!$C2960=\"Log value\",DataLog!AC2960,\"\")","v":""},{"$f":"IF(DataLog!$C2960=\"Log value\",DataLog!AD2960,\"\")","v":""},{"$f":"IF(DataLog!$C2960=\"Log value\",DataLog!AE2960,\"\")","v":""},{"$f":"IF(DataLog!$C2960=\"Log value\",DataLog!AF2960,\"\")","v":""},{"$f":"IF(DataLog!$C2960=\"Log value\",DataLog!AG2960,\"\")","v":""},{"$f":"IF(DataLog!$C2960=\"Log value\",DataLog!AH2960,\"\")","v":""},{"$f":"IF(DataLog!$C2960=\"Log value\",DataLog!AI2960,\"\")","v":""},{"$f":"IF(DataLog!$C2960=\"Log value\",DataLog!AJ2960,\"\")","v":""},{"$f":"IF(DataLog!$C2960=\"Log value\",DataLog!AK2960,\"\")","v":""},{"$f":"IF(DataLog!$C2960=\"Log value\",DataLog!AL2960,\"\")","v":""},{"$f":"IF(DataLog!$C2960=\"Log value\",DataLog!AM2960,\"\")","v":""}]
[null,null,null,null,null,null,{"$f":"IF(DataLog!$C2963=\"Log value\",DataLog!D2963&\"_\"&TEXT(DataLog!B2963,\"åååå-mm-dd\"),\"\")","v":""},{"$f":"IF(DataLog!$C2963=\"Log value\",DataLog!E2963,\"\")","v":""},{"$f":"IF(DataLog!$C2963=\"Log value\",DataLog!F2963,\"\")","v":""},{"$f":"IF(DataLog!$C2963=\"Log value\",DataLog!G2963,\"\")","v":""},{"$f":"IF(DataLog!$C2963=\"Log value\",DataLog!H2963,\"\")","v":""},{"$f":"IF(DataLog!$C2963=\"Log value\",DataLog!I2963,\"\")","v":""},{"$f":"IF(DataLog!$C2963=\"Log value\",DataLog!J2963,\"\")","v":""},{"$f":"IF(DataLog!$C2963=\"Log value\",DataLog!K2963,\"\")","v":""},{"$f":"IF(DataLog!$C2963=\"Log value\",DataLog!L2963,\"\")","v":""},{"$f":"IF(DataLog!$C2963=\"Log value\",DataLog!M2963,\"\")","v":""},{"$f":"IF(DataLog!$C2963=\"Log value\",DataLog!N2963,\"\")","v":""},{"$f":"IF(DataLog!$C2963=\"Log value\",DataLog!O2963,\"\")","v":""},{"$f":"IF(DataLog!$C2963=\"Log value\",DataLog!P2963,\"\")","v":""},{"$f":"IF(DataLog!$C2963=\"Log value\",DataLog!Q2963,\"\")","v":""},{"$f":"IF(DataLog!$C2963=\"Log value\",DataLog!R2963,\"\")","v":""},{"$f":"IF(DataLog!$C2963=\"Log value\",DataLog!S2963,\"\")","v":""},{"$f":"IF(DataLog!$C2963=\"Log value\",DataLog!T2963,\"\")","v":""},{"$f":"IF(DataLog!$C2963=\"Log value\",DataLog!U2963,\"\")","v":""},{"$f":"IF(DataLog!$C2963=\"Log value\",DataLog!V2963,\"\")","v":""},{"$f":"IF(DataLog!$C2963=\"Log value\",DataLog!W2963,\"\")","v":""},{"$f":"IF(DataLog!$C2963=\"Log value\",DataLog!X2963,\"\")","v":""},{"$f":"IF(DataLog!$C2963=\"Log value\",DataLog!Y2963,\"\")","v":""},{"$f":"IF(DataLog!$C2963=\"Log value\",DataLog!Z2963,\"\")","v":""},{"$f":"IF(DataLog!$C2963=\"Log value\",DataLog!AA2963,\"\")","v":""},{"$f":"IF(DataLog!$C2963=\"Log value\",DataLog!AB2963,\"\")","v":""},{"$f":"IF(DataLog!$C2963=\"Log value\",DataLog!AC2963,\"\")","v":""},{"$f":"IF(DataLog!$C2963=\"Log value\",DataLog!AD2963,\"\")","v":""},{"$f":"IF(DataLog!$C2963=\"Log value\",DataLog!AE2963,\"\")","v":""},{"$f":"IF(DataLog!$C2963=\"Log value\",DataLog!AF2963,\"\")","v":""},{"$f":"IF(DataLog!$C2963=\"Log value\",DataLog!AG2963,\"\")","v":""},{"$f":"IF(DataLog!$C2963=\"Log value\",DataLog!AH2963,\"\")","v":""},{"$f":"IF(DataLog!$C2963=\"Log value\",DataLog!AI2963,\"\")","v":""},{"$f":"IF(DataLog!$C2963=\"Log value\",DataLog!AJ2963,\"\")","v":""},{"$f":"IF(DataLog!$C2963=\"Log value\",DataLog!AK2963,\"\")","v":""},{"$f":"IF(DataLog!$C2963=\"Log value\",DataLog!AL2963,\"\")","v":""},{"$f":"IF(DataLog!$C2963=\"Log value\",DataLog!AM2963,\"\")","v":""}]
[null,null,null,null,null,null,{"$f":"IF(DataLog!$C2965=\"Log value\",DataLog!D2965&\"_\"&TEXT(DataLog!B2965,\"åååå-mm-dd\"),\"\")","v":""},{"$f":"IF(DataLog!$C2965=\"Log value\",DataLog!E2965,\"\")","v":""},{"$f":"IF(DataLog!$C2965=\"Log value\",DataLog!F2965,\"\")","v":""},{"$f":"IF(DataLog!$C2965=\"Log value\",DataLog!G2965,\"\")","v":""},{"$f":"IF(DataLog!$C2965=\"Log value\",DataLog!H2965,\"\")","v":""},{"$f":"IF(DataLog!$C2965=\"Log value\",DataLog!I2965,\"\")","v":""},{"$f":"IF(DataLog!$C2965=\"Log value\",DataLog!J2965,\"\")","v":""},{"$f":"IF(DataLog!$C2965=\"Log value\",DataLog!K2965,\"\")","v":""},{"$f":"IF(DataLog!$C2965=\"Log value\",DataLog!L2965,\"\")","v":""},{"$f":"IF(DataLog!$C2965=\"Log value\",DataLog!M2965,\"\")","v":""},{"$f":"IF(DataLog!$C2965=\"Log value\",DataLog!N2965,\"\")","v":""},{"$f":"IF(DataLog!$C2965=\"Log value\",DataLog!O2965,\"\")","v":""},{"$f":"IF(DataLog!$C2965=\"Log value\",DataLog!P2965,\"\")","v":""},{"$f":"IF(DataLog!$C2965=\"Log value\",DataLog!Q2965,\"\")","v":""},{"$f":"IF(DataLog!$C2965=\"Log value\",DataLog!R2965,\"\")","v":""},{"$f":"IF(DataLog!$C2965=\"Log value\",DataLog!S2965,\"\")","v":""},{"$f":"IF(DataLog!$C2965=\"Log value\",DataLog!T2965,\"\")","v":""},{"$f":"IF(DataLog!$C2965=\"Log value\",DataLog!U2965,\"\")","v":""},{"$f":"IF(DataLog!$C2965=\"Log value\",DataLog!V2965,\"\")","v":""},{"$f":"IF(DataLog!$C2965=\"Log value\",DataLog!W2965,\"\")","v":""},{"$f":"IF(DataLog!$C2965=\"Log value\",DataLog!X2965,\"\")","v":""},{"$f":"IF(DataLog!$C2965=\"Log value\",DataLog!Y2965,\"\")","v":""},{"$f":"IF(DataLog!$C2965=\"Log value\",DataLog!Z2965,\"\")","v":""},{"$f":"IF(DataLog!$C2965=\"Log value\",DataLog!AA2965,\"\")","v":""},{"$f":"IF(DataLog!$C2965=\"Log value\",DataLog!AB2965,\"\")","v":""},{"$f":"IF(DataLog!$C2965=\"Log value\",DataLog!AC2965,\"\")","v":""},{"$f":"IF(DataLog!$C2965=\"Log value\",DataLog!AD2965,\"\")","v":""},{"$f":"IF(DataLog!$C2965=\"Log value\",DataLog!AE2965,\"\")","v":""},{"$f":"IF(DataLog!$C2965=\"Log value\",DataLog!AF2965,\"\")","v":""},{"$f":"IF(DataLog!$C2965=\"Log value\",DataLog!AG2965,\"\")","v":""},{"$f":"IF(DataLog!$C2965=\"Log value\",DataLog!AH2965,\"\")","v":""},{"$f":"IF(DataLog!$C2965=\"Log value\",DataLog!AI2965,\"\")","v":""},{"$f":"IF(DataLog!$C2965=\"Log value\",DataLog!AJ2965,\"\")","v":""},{"$f":"IF(DataLog!$C2965=\"Log value\",DataLog!AK2965,\"\")","v":""},{"$f":"IF(DataLog!$C2965=\"Log value\",DataLog!AL2965,\"\")","v":""},{"$f":"IF(DataLog!$C2965=\"Log value\",DataLog!AM2965,\"\")","v":""}]
[null,null,null,null,null,null,{"$f":"IF(DataLog!$C2968=\"Log value\",DataLog!D2968&\"_\"&TEXT(DataLog!B2968,\"åååå-mm-dd\"),\"\")","v":""},{"$f":"IF(DataLog!$C2968=\"Log value\",DataLog!E2968,\"\")","v":""},{"$f":"IF(DataLog!$C2968=\"Log value\",DataLog!F2968,\"\")","v":""},{"$f":"IF(DataLog!$C2968=\"Log value\",DataLog!G2968,\"\")","v":""},{"$f":"IF(DataLog!$C2968=\"Log value\",DataLog!H2968,\"\")","v":""},{"$f":"IF(DataLog!$C2968=\"Log value\",DataLog!I2968,\"\")","v":""},{"$f":"IF(DataLog!$C2968=\"Log value\",DataLog!J2968,\"\")","v":""},{"$f":"IF(DataLog!$C2968=\"Log value\",DataLog!K2968,\"\")","v":""},{"$f":"IF(DataLog!$C2968=\"Log value\",DataLog!L2968,\"\")","v":""},{"$f":"IF(DataLog!$C2968=\"Log value\",DataLog!M2968,\"\")","v":""},{"$f":"IF(DataLog!$C2968=\"Log value\",DataLog!N2968,\"\")","v":""},{"$f":"IF(DataLog!$C2968=\"Log value\",DataLog!O2968,\"\")","v":""},{"$f":"IF(DataLog!$C2968=\"Log value\",DataLog!P2968,\"\")","v":""},{"$f":"IF(DataLog!$C2968=\"Log value\",DataLog!Q2968,\"\")","v":""},{"$f":"IF(DataLog!$C2968=\"Log value\",DataLog!R2968,\"\")","v":""},{"$f":"IF(DataLog!$C2968=\"Log value\",DataLog!S2968,\"\")","v":""},{"$f":"IF(DataLog!$C2968=\"Log value\",DataLog!T2968,\"\")","v":""},{"$f":"IF(DataLog!$C2968=\"Log value\",DataLog!U2968,\"\")","v":""},{"$f":"IF(DataLog!$C2968=\"Log value\",DataLog!V2968,\"\")","v":""},{"$f":"IF(DataLog!$C2968=\"Log value\",DataLog!W2968,\"\")","v":""},{"$f":"IF(DataLog!$C2968=\"Log value\",DataLog!X2968,\"\")","v":""},{"$f":"IF(DataLog!$C2968=\"Log value\",DataLog!Y2968,\"\")","v":""},{"$f":"IF(DataLog!$C2968=\"Log value\",DataLog!Z2968,\"\")","v":""},{"$f":"IF(DataLog!$C2968=\"Log value\",DataLog!AA2968,\"\")","v":""},{"$f":"IF(DataLog!$C2968=\"Log value\",DataLog!AB2968,\"\")","v":""},{"$f":"IF(DataLog!$C2968=\"Log value\",DataLog!AC2968,\"\")","v":""},{"$f":"IF(DataLog!$C2968=\"Log value\",DataLog!AD2968,\"\")","v":""},{"$f":"IF(DataLog!$C2968=\"Log value\",DataLog!AE2968,\"\")","v":""},{"$f":"IF(DataLog!$C2968=\"Log value\",DataLog!AF2968,\"\")","v":""},{"$f":"IF(DataLog!$C2968=\"Log value\",DataLog!AG2968,\"\")","v":""},{"$f":"IF(DataLog!$C2968=\"Log value\",DataLog!AH2968,\"\")","v":""},{"$f":"IF(DataLog!$C2968=\"Log value\",DataLog!AI2968,\"\")","v":""},{"$f":"IF(DataLog!$C2968=\"Log value\",DataLog!AJ2968,\"\")","v":""},{"$f":"IF(DataLog!$C2968=\"Log value\",DataLog!AK2968,\"\")","v":""},{"$f":"IF(DataLog!$C2968=\"Log value\",DataLog!AL2968,\"\")","v":""},{"$f":"IF(DataLog!$C2968=\"Log value\",DataLog!AM2968,\"\")","v":""}]
[null,null,null,null,null,null,{"$f":"IF(DataLog!$C2969=\"Log value\",DataLog!D2969&\"_\"&TEXT(DataLog!B2969,\"åååå-mm-dd\"),\"\")","v":""},{"$f":"IF(DataLog!$C2969=\"Log value\",DataLog!E2969,\"\")","v":""},{"$f":"IF(DataLog!$C2969=\"Log value\",DataLog!F2969,\"\")","v":""},{"$f":"IF(DataLog!$C2969=\"Log value\",DataLog!G2969,\"\")","v":""},{"$f":"IF(DataLog!$C2969=\"Log value\",DataLog!H2969,\"\")","v":""},{"$f":"IF(DataLog!$C2969=\"Log value\",DataLog!I2969,\"\")","v":""},{"$f":"IF(DataLog!$C2969=\"Log value\",DataLog!J2969,\"\")","v":""},{"$f":"IF(DataLog!$C2969=\"Log value\",DataLog!K2969,\"\")","v":""},{"$f":"IF(DataLog!$C2969=\"Log value\",DataLog!L2969,\"\")","v":""},{"$f":"IF(DataLog!$C2969=\"Log value\",DataLog!M2969,\"\")","v":""},{"$f":"IF(DataLog!$C2969=\"Log value\",DataLog!N2969,\"\")","v":""},{"$f":"IF(DataLog!$C2969=\"Log value\",DataLog!O2969,\"\")","v":""},{"$f":"IF(DataLog!$C2969=\"Log value\",DataLog!P2969,\"\")","v":""},{"$f":"IF(DataLog!$C2969=\"Log value\",DataLog!Q2969,\"\")","v":""},{"$f":"IF(DataLog!$C2969=\"Log value\",DataLog!R2969,\"\")","v":""},{"$f":"IF(DataLog!$C2969=\"Log value\",DataLog!S2969,\"\")","v":""},{"$f":"IF(DataLog!$C2969=\"Log value\",DataLog!T2969,\"\")","v":""},{"$f":"IF(DataLog!$C2969=\"Log value\",DataLog!U2969,\"\")","v":""},{"$f":"IF(DataLog!$C2969=\"Log value\",DataLog!V2969,\"\")","v":""},{"$f":"IF(DataLog!$C2969=\"Log value\",DataLog!W2969,\"\")","v":""},{"$f":"IF(DataLog!$C2969=\"Log value\",DataLog!X2969,\"\")","v":""},{"$f":"IF(DataLog!$C2969=\"Log value\",DataLog!Y2969,\"\")","v":""},{"$f":"IF(DataLog!$C2969=\"Log value\",DataLog!Z2969,\"\")","v":""},{"$f":"IF(DataLog!$C2969=\"Log value\",DataLog!AA2969,\"\")","v":""},{"$f":"IF(DataLog!$C2969=\"Log value\",DataLog!AB2969,\"\")","v":""},{"$f":"IF(DataLog!$C2969=\"Log value\",DataLog!AC2969,\"\")","v":""},{"$f":"IF(DataLog!$C2969=\"Log value\",DataLog!AD2969,\"\")","v":""},{"$f":"IF(DataLog!$C2969=\"Log value\",DataLog!AE2969,\"\")","v":""},{"$f":"IF(DataLog!$C2969=\"Log value\",DataLog!AF2969,\"\")","v":""},{"$f":"IF(DataLog!$C2969=\"Log value\",DataLog!AG2969,\"\")","v":""},{"$f":"IF(DataLog!$C2969=\"Log value\",DataLog!AH2969,\"\")","v":""},{"$f":"IF(DataLog!$C2969=\"Log value\",DataLog!AI2969,\"\")","v":""},{"$f":"IF(DataLog!$C2969=\"Log value\",DataLog!AJ2969,\"\")","v":""},{"$f":"IF(DataLog!$C2969=\"Log value\",DataLog!AK2969,\"\")","v":""},{"$f":"IF(DataLog!$C2969=\"Log value\",DataLog!AL2969,\"\")","v":""},{"$f":"IF(DataLog!$C2969=\"Log value\",DataLog!AM2969,\"\")","v":""}]
[null,null,null,null,null,null,{"$f":"IF(DataLog!$C2973=\"Log value\",DataLog!D2973&\"_\"&TEXT(DataLog!B2973,\"åååå-mm-dd\"),\"\")","v":""},{"$f":"IF(DataLog!$C2973=\"Log value\",DataLog!E2973,\"\")","v":""},{"$f":"IF(DataLog!$C2973=\"Log value\",DataLog!F2973,\"\")","v":""},{"$f":"IF(DataLog!$C2973=\"Log value\",DataLog!G2973,\"\")","v":""},{"$f":"IF(DataLog!$C2973=\"Log value\",DataLog!H2973,\"\")","v":""},{"$f":"IF(DataLog!$C2973=\"Log value\",DataLog!I2973,\"\")","v":""},{"$f":"IF(DataLog!$C2973=\"Log value\",DataLog!J2973,\"\")","v":""},{"$f":"IF(DataLog!$C2973=\"Log value\",DataLog!K2973,\"\")","v":""},{"$f":"IF(DataLog!$C2973=\"Log value\",DataLog!L2973,\"\")","v":""},{"$f":"IF(DataLog!$C2973=\"Log value\",DataLog!M2973,\"\")","v":""},{"$f":"IF(DataLog!$C2973=\"Log value\",DataLog!N2973,\"\")","v":""},{"$f":"IF(DataLog!$C2973=\"Log value\",DataLog!O2973,\"\")","v":""},{"$f":"IF(DataLog!$C2973=\"Log value\",DataLog!P2973,\"\")","v":""},{"$f":"IF(DataLog!$C2973=\"Log value\",DataLog!Q2973,\"\")","v":""},{"$f":"IF(DataLog!$C2973=\"Log value\",DataLog!R2973,\"\")","v":""},{"$f":"IF(DataLog!$C2973=\"Log value\",DataLog!S2973,\"\")","v":""},{"$f":"IF(DataLog!$C2973=\"Log value\",DataLog!T2973,\"\")","v":""},{"$f":"IF(DataLog!$C2973=\"Log value\",DataLog!U2973,\"\")","v":""},{"$f":"IF(DataLog!$C2973=\"Log value\",DataLog!V2973,\"\")","v":""},{"$f":"IF(DataLog!$C2973=\"Log value\",DataLog!W2973,\"\")","v":""},{"$f":"IF(DataLog!$C2973=\"Log value\",DataLog!X2973,\"\")","v":""},{"$f":"IF(DataLog!$C2973=\"Log value\",DataLog!Y2973,\"\")","v":""},{"$f":"IF(DataLog!$C2973=\"Log value\",DataLog!Z2973,\"\")","v":""},{"$f":"IF(DataLog!$C2973=\"Log value\",DataLog!AA2973,\"\")","v":""},{"$f":"IF(DataLog!$C2973=\"Log value\",DataLog!AB2973,\"\")","v":""},{"$f":"IF(DataLog!$C2973=\"Log value\",DataLog!AC2973,\"\")","v":""},{"$f":"IF(DataLog!$C2973=\"Log value\",DataLog!AD2973,\"\")","v":""},{"$f":"IF(DataLog!$C2973=\"Log value\",DataLog!AE2973,\"\")","v":""},{"$f":"IF(DataLog!$C2973=\"Log value\",DataLog!AF2973,\"\")","v":""},{"$f":"IF(DataLog!$C2973=\"Log value\",DataLog!AG2973,\"\")","v":""},{"$f":"IF(DataLog!$C2973=\"Log value\",DataLog!AH2973,\"\")","v":""},{"$f":"IF(DataLog!$C2973=\"Log value\",DataLog!AI2973,\"\")","v":""},{"$f":"IF(DataLog!$C2973=\"Log value\",DataLog!AJ2973,\"\")","v":""},{"$f":"IF(DataLog!$C2973=\"Log value\",DataLog!AK2973,\"\")","v":""},{"$f":"IF(DataLog!$C2973=\"Log value\",DataLog!AL2973,\"\")","v":""},{"$f":"IF(DataLog!$C2973=\"Log value\",DataLog!AM2973,\"\")","v":""}]
[null,null,null,null,null,null,{"$f":"IF(DataLog!$C2974=\"Log value\",DataLog!D2974&\"_\"&TEXT(DataLog!B2974,\"åååå-mm-dd\"),\"\")","v":""},{"$f":"IF(DataLog!$C2974=\"Log value\",DataLog!E2974,\"\")","v":""},{"$f":"IF(DataLog!$C2974=\"Log value\",DataLog!F2974,\"\")","v":""},{"$f":"IF(DataLog!$C2974=\"Log value\",DataLog!G2974,\"\")","v":""},{"$f":"IF(DataLog!$C2974=\"Log value\",DataLog!H2974,\"\")","v":""},{"$f":"IF(DataLog!$C2974=\"Log value\",DataLog!I2974,\"\")","v":""},{"$f":"IF(DataLog!$C2974=\"Log value\",DataLog!J2974,\"\")","v":""},{"$f":"IF(DataLog!$C2974=\"Log value\",DataLog!K2974,\"\")","v":""},{"$f":"IF(DataLog!$C2974=\"Log value\",DataLog!L2974,\"\")","v":""},{"$f":"IF(DataLog!$C2974=\"Log value\",DataLog!M2974,\"\")","v":""},{"$f":"IF(DataLog!$C2974=\"Log value\",DataLog!N2974,\"\")","v":""},{"$f":"IF(DataLog!$C2974=\"Log value\",DataLog!O2974,\"\")","v":""},{"$f":"IF(DataLog!$C2974=\"Log value\",DataLog!P2974,\"\")","v":""},{"$f":"IF(DataLog!$C2974=\"Log value\",DataLog!Q2974,\"\")","v":""},{"$f":"IF(DataLog!$C2974=\"Log value\",DataLog!R2974,\"\")","v":""},{"$f":"IF(DataLog!$C2974=\"Log value\",DataLog!S2974,\"\")","v":""},{"$f":"IF(DataLog!$C2974=\"Log value\",DataLog!T2974,\"\")","v":""},{"$f":"IF(DataLog!$C2974=\"Log value\",DataLog!U2974,\"\")","v":""},{"$f":"IF(DataLog!$C2974=\"Log value\",DataLog!V2974,\"\")","v":""},{"$f":"IF(DataLog!$C2974=\"Log value\",DataLog!W2974,\"\")","v":""},{"$f":"IF(DataLog!$C2974=\"Log value\",DataLog!X2974,\"\")","v":""},{"$f":"IF(DataLog!$C2974=\"Log value\",DataLog!Y2974,\"\")","v":""},{"$f":"IF(DataLog!$C2974=\"Log value\",DataLog!Z2974,\"\")","v":""},{"$f":"IF(DataLog!$C2974=\"Log value\",DataLog!AA2974,\"\")","v":""},{"$f":"IF(DataLog!$C2974=\"Log value\",DataLog!AB2974,\"\")","v":""},{"$f":"IF(DataLog!$C2974=\"Log value\",DataLog!AC2974,\"\")","v":""},{"$f":"IF(DataLog!$C2974=\"Log value\",DataLog!AD2974,\"\")","v":""},{"$f":"IF(DataLog!$C2974=\"Log value\",DataLog!AE2974,\"\")","v":""},{"$f":"IF(DataLog!$C2974=\"Log value\",DataLog!AF2974,\"\")","v":""},{"$f":"IF(DataLog!$C2974=\"Log value\",DataLog!AG2974,\"\")","v":""},{"$f":"IF(DataLog!$C2974=\"Log value\",DataLog!AH2974,\"\")","v":""},{"$f":"IF(DataLog!$C2974=\"Log value\",DataLog!AI2974,\"\")","v":""},{"$f":"IF(DataLog!$C2974=\"Log value\",DataLog!AJ2974,\"\")","v":""},{"$f":"IF(DataLog!$C2974=\"Log value\",DataLog!AK2974,\"\")","v":""},{"$f":"IF(DataLog!$C2974=\"Log value\",DataLog!AL2974,\"\")","v":""},{"$f":"IF(DataLog!$C2974=\"Log value\",DataLog!AM2974,\"\")","v":""}]
[null,null,null,null,null,null,{"$f":"IF(DataLog!$C2977=\"Log value\",DataLog!D2977&\"_\"&TEXT(DataLog!B2977,\"åååå-mm-dd\"),\"\")","v":""},{"$f":"IF(DataLog!$C2977=\"Log value\",DataLog!E2977,\"\")","v":""},{"$f":"IF(DataLog!$C2977=\"Log value\",DataLog!F2977,\"\")","v":""},{"$f":"IF(DataLog!$C2977=\"Log value\",DataLog!G2977,\"\")","v":""},{"$f":"IF(DataLog!$C2977=\"Log value\",DataLog!H2977,\"\")","v":""},{"$f":"IF(DataLog!$C2977=\"Log value\",DataLog!I2977,\"\")","v":""},{"$f":"IF(DataLog!$C2977=\"Log value\",DataLog!J2977,\"\")","v":""},{"$f":"IF(DataLog!$C2977=\"Log value\",DataLog!K2977,\"\")","v":""},{"$f":"IF(DataLog!$C2977=\"Log value\",DataLog!L2977,\"\")","v":""},{"$f":"IF(DataLog!$C2977=\"Log value\",DataLog!M2977,\"\")","v":""},{"$f":"IF(DataLog!$C2977=\"Log value\",DataLog!N2977,\"\")","v":""},{"$f":"IF(DataLog!$C2977=\"Log value\",DataLog!O2977,\"\")","v":""},{"$f":"IF(DataLog!$C2977=\"Log value\",DataLog!P2977,\"\")","v":""},{"$f":"IF(DataLog!$C2977=\"Log value\",DataLog!Q2977,\"\")","v":""},{"$f":"IF(DataLog!$C2977=\"Log value\",DataLog!R2977,\"\")","v":""},{"$f":"IF(DataLog!$C2977=\"Log value\",DataLog!S2977,\"\")","v":""},{"$f":"IF(DataLog!$C2977=\"Log value\",DataLog!T2977,\"\")","v":""},{"$f":"IF(DataLog!$C2977=\"Log value\",DataLog!U2977,\"\")","v":""},{"$f":"IF(DataLog!$C2977=\"Log value\",DataLog!V2977,\"\")","v":""},{"$f":"IF(DataLog!$C2977=\"Log value\",DataLog!W2977,\"\")","v":""},{"$f":"IF(DataLog!$C2977=\"Log value\",DataLog!X2977,\"\")","v":""},{"$f":"IF(DataLog!$C2977=\"Log value\",DataLog!Y2977,\"\")","v":""},{"$f":"IF(DataLog!$C2977=\"Log value\",DataLog!Z2977,\"\")","v":""},{"$f":"IF(DataLog!$C2977=\"Log value\",DataLog!AA2977,\"\")","v":""},{"$f":"IF(DataLog!$C2977=\"Log value\",DataLog!AB2977,\"\")","v":""},{"$f":"IF(DataLog!$C2977=\"Log value\",DataLog!AC2977,\"\")","v":""},{"$f":"IF(DataLog!$C2977=\"Log value\",DataLog!AD2977,\"\")","v":""},{"$f":"IF(DataLog!$C2977=\"Log value\",DataLog!AE2977,\"\")","v":""},{"$f":"IF(DataLog!$C2977=\"Log value\",DataLog!AF2977,\"\")","v":""},{"$f":"IF(DataLog!$C2977=\"Log value\",DataLog!AG2977,\"\")","v":""},{"$f":"IF(DataLog!$C2977=\"Log value\",DataLog!AH2977,\"\")","v":""},{"$f":"IF(DataLog!$C2977=\"Log value\",DataLog!AI2977,\"\")","v":""},{"$f":"IF(DataLog!$C2977=\"Log value\",DataLog!AJ2977,\"\")","v":""},{"$f":"IF(DataLog!$C2977=\"Log value\",DataLog!AK2977,\"\")","v":""},{"$f":"IF(DataLog!$C2977=\"Log value\",DataLog!AL2977,\"\")","v":""},{"$f":"IF(DataLog!$C2977=\"Log value\",DataLog!AM2977,\"\")","v":""}]
[null,null,null,null,null,null,{"$f":"IF(DataLog!$C2979=\"Log value\",DataLog!D2979&\"_\"&TEXT(DataLog!B2979,\"åååå-mm-dd\"),\"\")","v":""},{"$f":"IF(DataLog!$C2979=\"Log value\",DataLog!E2979,\"\")","v":""},{"$f":"IF(DataLog!$C2979=\"Log value\",DataLog!F2979,\"\")","v":""},{"$f":"IF(DataLog!$C2979=\"Log value\",DataLog!G2979,\"\")","v":""},{"$f":"IF(DataLog!$C2979=\"Log value\",DataLog!H2979,\"\")","v":""},{"$f":"IF(DataLog!$C2979=\"Log value\",DataLog!I2979,\"\")","v":""},{"$f":"IF(DataLog!$C2979=\"Log value\",DataLog!J2979,\"\")","v":""},{"$f":"IF(DataLog!$C2979=\"Log value\",DataLog!K2979,\"\")","v":""},{"$f":"IF(DataLog!$C2979=\"Log value\",DataLog!L2979,\"\")","v":""},{"$f":"IF(DataLog!$C2979=\"Log value\",DataLog!M2979,\"\")","v":""},{"$f":"IF(DataLog!$C2979=\"Log value\",DataLog!N2979,\"\")","v":""},{"$f":"IF(DataLog!$C2979=\"Log value\",DataLog!O2979,\"\")","v":""},{"$f":"IF(DataLog!$C2979=\"Log value\",DataLog!P2979,\"\")","v":""},{"$f":"IF(DataLog!$C2979=\"Log value\",DataLog!Q2979,\"\")","v":""},{"$f":"IF(DataLog!$C2979=\"Log value\",DataLog!R2979,\"\")","v":""},{"$f":"IF(DataLog!$C2979=\"Log value\",DataLog!S2979,\"\")","v":""},{"$f":"IF(DataLog!$C2979=\"Log value\",DataLog!T2979,\"\")","v":""},{"$f":"IF(DataLog!$C2979=\"Log value\",DataLog!U2979,\"\")","v":""},{"$f":"IF(DataLog!$C2979=\"Log value\",DataLog!V2979,\"\")","v":""},{"$f":"IF(DataLog!$C2979=\"Log value\",DataLog!W2979,\"\")","v":""},{"$f":"IF(DataLog!$C2979=\"Log value\",DataLog!X2979,\"\")","v":""},{"$f":"IF(DataLog!$C2979=\"Log value\",DataLog!Y2979,\"\")","v":""},{"$f":"IF(DataLog!$C2979=\"Log value\",DataLog!Z2979,\"\")","v":""},{"$f":"IF(DataLog!$C2979=\"Log value\",DataLog!AA2979,\"\")","v":""},{"$f":"IF(DataLog!$C2979=\"Log value\",DataLog!AB2979,\"\")","v":""},{"$f":"IF(DataLog!$C2979=\"Log value\",DataLog!AC2979,\"\")","v":""},{"$f":"IF(DataLog!$C2979=\"Log value\",DataLog!AD2979,\"\")","v":""},{"$f":"IF(DataLog!$C2979=\"Log value\",DataLog!AE2979,\"\")","v":""},{"$f":"IF(DataLog!$C2979=\"Log value\",DataLog!AF2979,\"\")","v":""},{"$f":"IF(DataLog!$C2979=\"Log value\",DataLog!AG2979,\"\")","v":""},{"$f":"IF(DataLog!$C2979=\"Log value\",DataLog!AH2979,\"\")","v":""},{"$f":"IF(DataLog!$C2979=\"Log value\",DataLog!AI2979,\"\")","v":""},{"$f":"IF(DataLog!$C2979=\"Log value\",DataLog!AJ2979,\"\")","v":""},{"$f":"IF(DataLog!$C2979=\"Log value\",DataLog!AK2979,\"\")","v":""},{"$f":"IF(DataLog!$C2979=\"Log value\",DataLog!AL2979,\"\")","v":""},{"$f":"IF(DataLog!$C2979=\"Log value\",DataLog!AM2979,\"\")","v":""}]
[null,null,null,null,null,null,{"$f":"IF(DataLog!$C2982=\"Log value\",DataLog!D2982&\"_\"&TEXT(DataLog!B2982,\"åååå-mm-dd\"),\"\")","v":""},{"$f":"IF(DataLog!$C2982=\"Log value\",DataLog!E2982,\"\")","v":""},{"$f":"IF(DataLog!$C2982=\"Log value\",DataLog!F2982,\"\")","v":""},{"$f":"IF(DataLog!$C2982=\"Log value\",DataLog!G2982,\"\")","v":""},{"$f":"IF(DataLog!$C2982=\"Log value\",DataLog!H2982,\"\")","v":""},{"$f":"IF(DataLog!$C2982=\"Log value\",DataLog!I2982,\"\")","v":""},{"$f":"IF(DataLog!$C2982=\"Log value\",DataLog!J2982,\"\")","v":""},{"$f":"IF(DataLog!$C2982=\"Log value\",DataLog!K2982,\"\")","v":""},{"$f":"IF(DataLog!$C2982=\"Log value\",DataLog!L2982,\"\")","v":""},{"$f":"IF(DataLog!$C2982=\"Log value\",DataLog!M2982,\"\")","v":""},{"$f":"IF(DataLog!$C2982=\"Log value\",DataLog!N2982,\"\")","v":""},{"$f":"IF(DataLog!$C2982=\"Log value\",DataLog!O2982,\"\")","v":""},{"$f":"IF(DataLog!$C2982=\"Log value\",DataLog!P2982,\"\")","v":""},{"$f":"IF(DataLog!$C2982=\"Log value\",DataLog!Q2982,\"\")","v":""},{"$f":"IF(DataLog!$C2982=\"Log value\",DataLog!R2982,\"\")","v":""},{"$f":"IF(DataLog!$C2982=\"Log value\",DataLog!S2982,\"\")","v":""},{"$f":"IF(DataLog!$C2982=\"Log value\",DataLog!T2982,\"\")","v":""},{"$f":"IF(DataLog!$C2982=\"Log value\",DataLog!U2982,\"\")","v":""},{"$f":"IF(DataLog!$C2982=\"Log value\",DataLog!V2982,\"\")","v":""},{"$f":"IF(DataLog!$C2982=\"Log value\",DataLog!W2982,\"\")","v":""},{"$f":"IF(DataLog!$C2982=\"Log value\",DataLog!X2982,\"\")","v":""},{"$f":"IF(DataLog!$C2982=\"Log value\",DataLog!Y2982,\"\")","v":""},{"$f":"IF(DataLog!$C2982=\"Log value\",DataLog!Z2982,\"\")","v":""},{"$f":"IF(DataLog!$C2982=\"Log value\",DataLog!AA2982,\"\")","v":""},{"$f":"IF(DataLog!$C2982=\"Log value\",DataLog!AB2982,\"\")","v":""},{"$f":"IF(DataLog!$C2982=\"Log value\",DataLog!AC2982,\"\")","v":""},{"$f":"IF(DataLog!$C2982=\"Log value\",DataLog!AD2982,\"\")","v":""},{"$f":"IF(DataLog!$C2982=\"Log value\",DataLog!AE2982,\"\")","v":""},{"$f":"IF(DataLog!$C2982=\"Log value\",DataLog!AF2982,\"\")","v":""},{"$f":"IF(DataLog!$C2982=\"Log value\",DataLog!AG2982,\"\")","v":""},{"$f":"IF(DataLog!$C2982=\"Log value\",DataLog!AH2982,\"\")","v":""},{"$f":"IF(DataLog!$C2982=\"Log value\",DataLog!AI2982,\"\")","v":""},{"$f":"IF(DataLog!$C2982=\"Log value\",DataLog!AJ2982,\"\")","v":""},{"$f":"IF(DataLog!$C2982=\"Log value\",DataLog!AK2982,\"\")","v":""},{"$f":"IF(DataLog!$C2982=\"Log value\",DataLog!AL2982,\"\")","v":""},{"$f":"IF(DataLog!$C2982=\"Log value\",DataLog!AM2982,\"\")","v":""}]
[null,null,null,null,null,null,{"$f":"IF(DataLog!$C2983=\"Log value\",DataLog!D2983&\"_\"&TEXT(DataLog!B2983,\"åååå-mm-dd\"),\"\")","v":""},{"$f":"IF(DataLog!$C2983=\"Log value\",DataLog!E2983,\"\")","v":""},{"$f":"IF(DataLog!$C2983=\"Log value\",DataLog!F2983,\"\")","v":""},{"$f":"IF(DataLog!$C2983=\"Log value\",DataLog!G2983,\"\")","v":""},{"$f":"IF(DataLog!$C2983=\"Log value\",DataLog!H2983,\"\")","v":""},{"$f":"IF(DataLog!$C2983=\"Log value\",DataLog!I2983,\"\")","v":""},{"$f":"IF(DataLog!$C2983=\"Log value\",DataLog!J2983,\"\")","v":""},{"$f":"IF(DataLog!$C2983=\"Log value\",DataLog!K2983,\"\")","v":""},{"$f":"IF(DataLog!$C2983=\"Log value\",DataLog!L2983,\"\")","v":""},{"$f":"IF(DataLog!$C2983=\"Log value\",DataLog!M2983,\"\")","v":""},{"$f":"IF(DataLog!$C2983=\"Log value\",DataLog!N2983,\"\")","v":""},{"$f":"IF(DataLog!$C2983=\"Log value\",DataLog!O2983,\"\")","v":""},{"$f":"IF(DataLog!$C2983=\"Log value\",DataLog!P2983,\"\")","v":""},{"$f":"IF(DataLog!$C2983=\"Log value\",DataLog!Q2983,\"\")","v":""},{"$f":"IF(DataLog!$C2983=\"Log value\",DataLog!R2983,\"\")","v":""},{"$f":"IF(DataLog!$C2983=\"Log value\",DataLog!S2983,\"\")","v":""},{"$f":"IF(DataLog!$C2983=\"Log value\",DataLog!T2983,\"\")","v":""},{"$f":"IF(DataLog!$C2983=\"Log value\",DataLog!U2983,\"\")","v":""},{"$f":"IF(DataLog!$C2983=\"Log value\",DataLog!V2983,\"\")","v":""},{"$f":"IF(DataLog!$C2983=\"Log value\",DataLog!W2983,\"\")","v":""},{"$f":"IF(DataLog!$C2983=\"Log value\",DataLog!X2983,\"\")","v":""},{"$f":"IF(DataLog!$C2983=\"Log value\",DataLog!Y2983,\"\")","v":""},{"$f":"IF(DataLog!$C2983=\"Log value\",DataLog!Z2983,\"\")","v":""},{"$f":"IF(DataLog!$C2983=\"Log value\",DataLog!AA2983,\"\")","v":""},{"$f":"IF(DataLog!$C2983=\"Log value\",DataLog!AB2983,\"\")","v":""},{"$f":"IF(DataLog!$C2983=\"Log value\",DataLog!AC2983,\"\")","v":""},{"$f":"IF(DataLog!$C2983=\"Log value\",DataLog!AD2983,\"\")","v":""},{"$f":"IF(DataLog!$C2983=\"Log value\",DataLog!AE2983,\"\")","v":""},{"$f":"IF(DataLog!$C2983=\"Log value\",DataLog!AF2983,\"\")","v":""},{"$f":"IF(DataLog!$C2983=\"Log value\",DataLog!AG2983,\"\")","v":""},{"$f":"IF(DataLog!$C2983=\"Log value\",DataLog!AH2983,\"\")","v":""},{"$f":"IF(DataLog!$C2983=\"Log value\",DataLog!AI2983,\"\")","v":""},{"$f":"IF(DataLog!$C2983=\"Log value\",DataLog!AJ2983,\"\")","v":""},{"$f":"IF(DataLog!$C2983=\"Log value\",DataLog!AK2983,\"\")","v":""},{"$f":"IF(DataLog!$C2983=\"Log value\",DataLog!AL2983,\"\")","v":""},{"$f":"IF(DataLog!$C2983=\"Log value\",DataLog!AM2983,\"\")","v":""}]
[null,null,null,null,null,null,{"$f":"IF(DataLog!$C2986=\"Log value\",DataLog!D2986&\"_\"&TEXT(DataLog!B2986,\"åååå-mm-dd\"),\"\")","v":""},{"$f":"IF(DataLog!$C2986=\"Log value\",DataLog!E2986,\"\")","v":""},{"$f":"IF(DataLog!$C2986=\"Log value\",DataLog!F2986,\"\")","v":""},{"$f":"IF(DataLog!$C2986=\"Log value\",DataLog!G2986,\"\")","v":""},{"$f":"IF(DataLog!$C2986=\"Log value\",DataLog!H2986,\"\")","v":""},{"$f":"IF(DataLog!$C2986=\"Log value\",DataLog!I2986,\"\")","v":""},{"$f":"IF(DataLog!$C2986=\"Log value\",DataLog!J2986,\"\")","v":""},{"$f":"IF(DataLog!$C2986=\"Log value\",DataLog!K2986,\"\")","v":""},{"$f":"IF(DataLog!$C2986=\"Log value\",DataLog!L2986,\"\")","v":""},{"$f":"IF(DataLog!$C2986=\"Log value\",DataLog!M2986,\"\")","v":""},{"$f":"IF(DataLog!$C2986=\"Log value\",DataLog!N2986,\"\")","v":""},{"$f":"IF(DataLog!$C2986=\"Log value\",DataLog!O2986,\"\")","v":""},{"$f":"IF(DataLog!$C2986=\"Log value\",DataLog!P2986,\"\")","v":""},{"$f":"IF(DataLog!$C2986=\"Log value\",DataLog!Q2986,\"\")","v":""},{"$f":"IF(DataLog!$C2986=\"Log value\",DataLog!R2986,\"\")","v":""},{"$f":"IF(DataLog!$C2986=\"Log value\",DataLog!S2986,\"\")","v":""},{"$f":"IF(DataLog!$C2986=\"Log value\",DataLog!T2986,\"\")","v":""},{"$f":"IF(DataLog!$C2986=\"Log value\",DataLog!U2986,\"\")","v":""},{"$f":"IF(DataLog!$C2986=\"Log value\",DataLog!V2986,\"\")","v":""},{"$f":"IF(DataLog!$C2986=\"Log value\",DataLog!W2986,\"\")","v":""},{"$f":"IF(DataLog!$C2986=\"Log value\",DataLog!X2986,\"\")","v":""},{"$f":"IF(DataLog!$C2986=\"Log value\",DataLog!Y2986,\"\")","v":""},{"$f":"IF(DataLog!$C2986=\"Log value\",DataLog!Z2986,\"\")","v":""},{"$f":"IF(DataLog!$C2986=\"Log value\",DataLog!AA2986,\"\")","v":""},{"$f":"IF(DataLog!$C2986=\"Log value\",DataLog!AB2986,\"\")","v":""},{"$f":"IF(DataLog!$C2986=\"Log value\",DataLog!AC2986,\"\")","v":""},{"$f":"IF(DataLog!$C2986=\"Log value\",DataLog!AD2986,\"\")","v":""},{"$f":"IF(DataLog!$C2986=\"Log value\",DataLog!AE2986,\"\")","v":""},{"$f":"IF(DataLog!$C2986=\"Log value\",DataLog!AF2986,\"\")","v":""},{"$f":"IF(DataLog!$C2986=\"Log value\",DataLog!AG2986,\"\")","v":""},{"$f":"IF(DataLog!$C2986=\"Log value\",DataLog!AH2986,\"\")","v":""},{"$f":"IF(DataLog!$C2986=\"Log value\",DataLog!AI2986,\"\")","v":""},{"$f":"IF(DataLog!$C2986=\"Log value\",DataLog!AJ2986,\"\")","v":""},{"$f":"IF(DataLog!$C2986=\"Log value\",DataLog!AK2986,\"\")","v":""},{"$f":"IF(DataLog!$C2986=\"Log value\",DataLog!AL2986,\"\")","v":""},{"$f":"IF(DataLog!$C2986=\"Log value\",DataLog!AM2986,\"\")","v":""}]
[null,null,null,null,null,null,{"$f":"IF(DataLog!$C2987=\"Log value\",DataLog!D2987&\"_\"&TEXT(DataLog!B2987,\"åååå-mm-dd\"),\"\")","v":""},{"$f":"IF(DataLog!$C2987=\"Log value\",DataLog!E2987,\"\")","v":""},{"$f":"IF(DataLog!$C2987=\"Log value\",DataLog!F2987,\"\")","v":""},{"$f":"IF(DataLog!$C2987=\"Log value\",DataLog!G2987,\"\")","v":""},{"$f":"IF(DataLog!$C2987=\"Log value\",DataLog!H2987,\"\")","v":""},{"$f":"IF(DataLog!$C2987=\"Log value\",DataLog!I2987,\"\")","v":""},{"$f":"IF(DataLog!$C2987=\"Log value\",DataLog!J2987,\"\")","v":""},{"$f":"IF(DataLog!$C2987=\"Log value\",DataLog!K2987,\"\")","v":""},{"$f":"IF(DataLog!$C2987=\"Log value\",DataLog!L2987,\"\")","v":""},{"$f":"IF(DataLog!$C2987=\"Log value\",DataLog!M2987,\"\")","v":""},{"$f":"IF(DataLog!$C2987=\"Log value\",DataLog!N2987,\"\")","v":""},{"$f":"IF(DataLog!$C2987=\"Log value\",DataLog!O2987,\"\")","v":""},{"$f":"IF(DataLog!$C2987=\"Log value\",DataLog!P2987,\"\")","v":""},{"$f":"IF(DataLog!$C2987=\"Log value\",DataLog!Q2987,\"\")","v":""},{"$f":"IF(DataLog!$C2987=\"Log value\",DataLog!R2987,\"\")","v":""},{"$f":"IF(DataLog!$C2987=\"Log value\",DataLog!S2987,\"\")","v":""},{"$f":"IF(DataLog!$C2987=\"Log value\",DataLog!T2987,\"\")","v":""},{"$f":"IF(DataLog!$C2987=\"Log value\",DataLog!U2987,\"\")","v":""},{"$f":"IF(DataLog!$C2987=\"Log value\",DataLog!V2987,\"\")","v":""},{"$f":"IF(DataLog!$C2987=\"Log value\",DataLog!W2987,\"\")","v":""},{"$f":"IF(DataLog!$C2987=\"Log value\",DataLog!X2987,\"\")","v":""},{"$f":"IF(DataLog!$C2987=\"Log value\",DataLog!Y2987,\"\")","v":""},{"$f":"IF(DataLog!$C2987=\"Log value\",DataLog!Z2987,\"\")","v":""},{"$f":"IF(DataLog!$C2987=\"Log value\",DataLog!AA2987,\"\")","v":""},{"$f":"IF(DataLog!$C2987=\"Log value\",DataLog!AB2987,\"\")","v":""},{"$f":"IF(DataLog!$C2987=\"Log value\",DataLog!AC2987,\"\")","v":""},{"$f":"IF(DataLog!$C2987=\"Log value\",DataLog!AD2987,\"\")","v":""},{"$f":"IF(DataLog!$C2987=\"Log value\",DataLog!AE2987,\"\")","v":""},{"$f":"IF(DataLog!$C2987=\"Log value\",DataLog!AF2987,\"\")","v":""},{"$f":"IF(DataLog!$C2987=\"Log value\",DataLog!AG2987,\"\")","v":""},{"$f":"IF(DataLog!$C2987=\"Log value\",DataLog!AH2987,\"\")","v":""},{"$f":"IF(DataLog!$C2987=\"Log value\",DataLog!AI2987,\"\")","v":""},{"$f":"IF(DataLog!$C2987=\"Log value\",DataLog!AJ2987,\"\")","v":""},{"$f":"IF(DataLog!$C2987=\"Log value\",DataLog!AK2987,\"\")","v":""},{"$f":"IF(DataLog!$C2987=\"Log value\",DataLog!AL2987,\"\")","v":""},{"$f":"IF(DataLog!$C2987=\"Log value\",DataLog!AM2987,\"\")","v":""}]
[null,null,null,null,null,null,{"$f":"IF(DataLog!$C2991=\"Log value\",DataLog!D2991&\"_\"&TEXT(DataLog!B2991,\"åååå-mm-dd\"),\"\")","v":""},{"$f":"IF(DataLog!$C2991=\"Log value\",DataLog!E2991,\"\")","v":""},{"$f":"IF(DataLog!$C2991=\"Log value\",DataLog!F2991,\"\")","v":""},{"$f":"IF(DataLog!$C2991=\"Log value\",DataLog!G2991,\"\")","v":""},{"$f":"IF(DataLog!$C2991=\"Log value\",DataLog!H2991,\"\")","v":""},{"$f":"IF(DataLog!$C2991=\"Log value\",DataLog!I2991,\"\")","v":""},{"$f":"IF(DataLog!$C2991=\"Log value\",DataLog!J2991,\"\")","v":""},{"$f":"IF(DataLog!$C2991=\"Log value\",DataLog!K2991,\"\")","v":""},{"$f":"IF(DataLog!$C2991=\"Log value\",DataLog!L2991,\"\")","v":""},{"$f":"IF(DataLog!$C2991=\"Log value\",DataLog!M2991,\"\")","v":""},{"$f":"IF(DataLog!$C2991=\"Log value\",DataLog!N2991,\"\")","v":""},{"$f":"IF(DataLog!$C2991=\"Log value\",DataLog!O2991,\"\")","v":""},{"$f":"IF(DataLog!$C2991=\"Log value\",DataLog!P2991,\"\")","v":""},{"$f":"IF(DataLog!$C2991=\"Log value\",DataLog!Q2991,\"\")","v":""},{"$f":"IF(DataLog!$C2991=\"Log value\",DataLog!R2991,\"\")","v":""},{"$f":"IF(DataLog!$C2991=\"Log value\",DataLog!S2991,\"\")","v":""},{"$f":"IF(DataLog!$C2991=\"Log value\",DataLog!T2991,\"\")","v":""},{"$f":"IF(DataLog!$C2991=\"Log value\",DataLog!U2991,\"\")","v":""},{"$f":"IF(DataLog!$C2991=\"Log value\",DataLog!V2991,\"\")","v":""},{"$f":"IF(DataLog!$C2991=\"Log value\",DataLog!W2991,\"\")","v":""},{"$f":"IF(DataLog!$C2991=\"Log value\",DataLog!X2991,\"\")","v":""},{"$f":"IF(DataLog!$C2991=\"Log value\",DataLog!Y2991,\"\")","v":""},{"$f":"IF(DataLog!$C2991=\"Log value\",DataLog!Z2991,\"\")","v":""},{"$f":"IF(DataLog!$C2991=\"Log value\",DataLog!AA2991,\"\")","v":""},{"$f":"IF(DataLog!$C2991=\"Log value\",DataLog!AB2991,\"\")","v":""},{"$f":"IF(DataLog!$C2991=\"Log value\",DataLog!AC2991,\"\")","v":""},{"$f":"IF(DataLog!$C2991=\"Log value\",DataLog!AD2991,\"\")","v":""},{"$f":"IF(DataLog!$C2991=\"Log value\",DataLog!AE2991,\"\")","v":""},{"$f":"IF(DataLog!$C2991=\"Log value\",DataLog!AF2991,\"\")","v":""},{"$f":"IF(DataLog!$C2991=\"Log value\",DataLog!AG2991,\"\")","v":""},{"$f":"IF(DataLog!$C2991=\"Log value\",DataLog!AH2991,\"\")","v":""},{"$f":"IF(DataLog!$C2991=\"Log value\",DataLog!AI2991,\"\")","v":""},{"$f":"IF(DataLog!$C2991=\"Log value\",DataLog!AJ2991,\"\")","v":""},{"$f":"IF(DataLog!$C2991=\"Log value\",DataLog!AK2991,\"\")","v":""},{"$f":"IF(DataLog!$C2991=\"Log value\",DataLog!AL2991,\"\")","v":""},{"$f":"IF(DataLog!$C2991=\"Log value\",DataLog!AM2991,\"\")","v":""}]
[null,null,null,null,null,null,{"$f":"IF(DataLog!$C2992=\"Log value\",DataLog!D2992&\"_\"&TEXT(DataLog!B2992,\"åååå-mm-dd\"),\"\")","v":""},{"$f":"IF(DataLog!$C2992=\"Log value\",DataLog!E2992,\"\")","v":""},{"$f":"IF(DataLog!$C2992=\"Log value\",DataLog!F2992,\"\")","v":""},{"$f":"IF(DataLog!$C2992=\"Log value\",DataLog!G2992,\"\")","v":""},{"$f":"IF(DataLog!$C2992=\"Log value\",DataLog!H2992,\"\")","v":""},{"$f":"IF(DataLog!$C2992=\"Log value\",DataLog!I2992,\"\")","v":""},{"$f":"IF(DataLog!$C2992=\"Log value\",DataLog!J2992,\"\")","v":""},{"$f":"IF(DataLog!$C2992=\"Log value\",DataLog!K2992,\"\")","v":""},{"$f":"IF(DataLog!$C2992=\"Log value\",DataLog!L2992,\"\")","v":""},{"$f":"IF(DataLog!$C2992=\"Log value\",DataLog!M2992,\"\")","v":""},{"$f":"IF(DataLog!$C2992=\"Log value\",DataLog!N2992,\"\")","v":""},{"$f":"IF(DataLog!$C2992=\"Log value\",DataLog!O2992,\"\")","v":""},{"$f":"IF(DataLog!$C2992=\"Log value\",DataLog!P2992,\"\")","v":""},{"$f":"IF(DataLog!$C2992=\"Log value\",DataLog!Q2992,\"\")","v":""},{"$f":"IF(DataLog!$C2992=\"Log value\",DataLog!R2992,\"\")","v":""},{"$f":"IF(DataLog!$C2992=\"Log value\",DataLog!S2992,\"\")","v":""},{"$f":"IF(DataLog!$C2992=\"Log value\",DataLog!T2992,\"\")","v":""},{"$f":"IF(DataLog!$C2992=\"Log value\",DataLog!U2992,\"\")","v":""},{"$f":"IF(DataLog!$C2992=\"Log value\",DataLog!V2992,\"\")","v":""},{"$f":"IF(DataLog!$C2992=\"Log value\",DataLog!W2992,\"\")","v":""},{"$f":"IF(DataLog!$C2992=\"Log value\",DataLog!X2992,\"\")","v":""},{"$f":"IF(DataLog!$C2992=\"Log value\",DataLog!Y2992,\"\")","v":""},{"$f":"IF(DataLog!$C2992=\"Log value\",DataLog!Z2992,\"\")","v":""},{"$f":"IF(DataLog!$C2992=\"Log value\",DataLog!AA2992,\"\")","v":""},{"$f":"IF(DataLog!$C2992=\"Log value\",DataLog!AB2992,\"\")","v":""},{"$f":"IF(DataLog!$C2992=\"Log value\",DataLog!AC2992,\"\")","v":""},{"$f":"IF(DataLog!$C2992=\"Log value\",DataLog!AD2992,\"\")","v":""},{"$f":"IF(DataLog!$C2992=\"Log value\",DataLog!AE2992,\"\")","v":""},{"$f":"IF(DataLog!$C2992=\"Log value\",DataLog!AF2992,\"\")","v":""},{"$f":"IF(DataLog!$C2992=\"Log value\",DataLog!AG2992,\"\")","v":""},{"$f":"IF(DataLog!$C2992=\"Log value\",DataLog!AH2992,\"\")","v":""},{"$f":"IF(DataLog!$C2992=\"Log value\",DataLog!AI2992,\"\")","v":""},{"$f":"IF(DataLog!$C2992=\"Log value\",DataLog!AJ2992,\"\")","v":""},{"$f":"IF(DataLog!$C2992=\"Log value\",DataLog!AK2992,\"\")","v":""},{"$f":"IF(DataLog!$C2992=\"Log value\",DataLog!AL2992,\"\")","v":""},{"$f":"IF(DataLog!$C2992=\"Log value\",DataLog!AM2992,\"\")","v":""}]
[null,null,null,null,null,null,{"$f":"IF(DataLog!$C2995=\"Log value\",DataLog!D2995&\"_\"&TEXT(DataLog!B2995,\"åååå-mm-dd\"),\"\")","v":""},{"$f":"IF(DataLog!$C2995=\"Log value\",DataLog!E2995,\"\")","v":""},{"$f":"IF(DataLog!$C2995=\"Log value\",DataLog!F2995,\"\")","v":""},{"$f":"IF(DataLog!$C2995=\"Log value\",DataLog!G2995,\"\")","v":""},{"$f":"IF(DataLog!$C2995=\"Log value\",DataLog!H2995,\"\")","v":""},{"$f":"IF(DataLog!$C2995=\"Log value\",DataLog!I2995,\"\")","v":""},{"$f":"IF(DataLog!$C2995=\"Log value\",DataLog!J2995,\"\")","v":""},{"$f":"IF(DataLog!$C2995=\"Log value\",DataLog!K2995,\"\")","v":""},{"$f":"IF(DataLog!$C2995=\"Log value\",DataLog!L2995,\"\")","v":""},{"$f":"IF(DataLog!$C2995=\"Log value\",DataLog!M2995,\"\")","v":""},{"$f":"IF(DataLog!$C2995=\"Log value\",DataLog!N2995,\"\")","v":""},{"$f":"IF(DataLog!$C2995=\"Log value\",DataLog!O2995,\"\")","v":""},{"$f":"IF(DataLog!$C2995=\"Log value\",DataLog!P2995,\"\")","v":""},{"$f":"IF(DataLog!$C2995=\"Log value\",DataLog!Q2995,\"\")","v":""},{"$f":"IF(DataLog!$C2995=\"Log value\",DataLog!R2995,\"\")","v":""},{"$f":"IF(DataLog!$C2995=\"Log value\",DataLog!S2995,\"\")","v":""},{"$f":"IF(DataLog!$C2995=\"Log value\",DataLog!T2995,\"\")","v":""},{"$f":"IF(DataLog!$C2995=\"Log value\",DataLog!U2995,\"\")","v":""},{"$f":"IF(DataLog!$C2995=\"Log value\",DataLog!V2995,\"\")","v":""},{"$f":"IF(DataLog!$C2995=\"Log value\",DataLog!W2995,\"\")","v":""},{"$f":"IF(DataLog!$C2995=\"Log value\",DataLog!X2995,\"\")","v":""},{"$f":"IF(DataLog!$C2995=\"Log value\",DataLog!Y2995,\"\")","v":""},{"$f":"IF(DataLog!$C2995=\"Log value\",DataLog!Z2995,\"\")","v":""},{"$f":"IF(DataLog!$C2995=\"Log value\",DataLog!AA2995,\"\")","v":""},{"$f":"IF(DataLog!$C2995=\"Log value\",DataLog!AB2995,\"\")","v":""},{"$f":"IF(DataLog!$C2995=\"Log value\",DataLog!AC2995,\"\")","v":""},{"$f":"IF(DataLog!$C2995=\"Log value\",DataLog!AD2995,\"\")","v":""},{"$f":"IF(DataLog!$C2995=\"Log value\",DataLog!AE2995,\"\")","v":""},{"$f":"IF(DataLog!$C2995=\"Log value\",DataLog!AF2995,\"\")","v":""},{"$f":"IF(DataLog!$C2995=\"Log value\",DataLog!AG2995,\"\")","v":""},{"$f":"IF(DataLog!$C2995=\"Log value\",DataLog!AH2995,\"\")","v":""},{"$f":"IF(DataLog!$C2995=\"Log value\",DataLog!AI2995,\"\")","v":""},{"$f":"IF(DataLog!$C2995=\"Log value\",DataLog!AJ2995,\"\")","v":""},{"$f":"IF(DataLog!$C2995=\"Log value\",DataLog!AK2995,\"\")","v":""},{"$f":"IF(DataLog!$C2995=\"Log value\",DataLog!AL2995,\"\")","v":""},{"$f":"IF(DataLog!$C2995=\"Log value\",DataLog!AM2995,\"\")","v":""}]
[null,null,null,null,null,null,{"$f":"IF(DataLog!$C2997=\"Log value\",DataLog!D2997&\"_\"&TEXT(DataLog!B2997,\"åååå-mm-dd\"),\"\")","v":""},{"$f":"IF(DataLog!$C2997=\"Log value\",DataLog!E2997,\"\")","v":""},{"$f":"IF(DataLog!$C2997=\"Log value\",DataLog!F2997,\"\")","v":""},{"$f":"IF(DataLog!$C2997=\"Log value\",DataLog!G2997,\"\")","v":""},{"$f":"IF(DataLog!$C2997=\"Log value\",DataLog!H2997,\"\")","v":""},{"$f":"IF(DataLog!$C2997=\"Log value\",DataLog!I2997,\"\")","v":""},{"$f":"IF(DataLog!$C2997=\"Log value\",DataLog!J2997,\"\")","v":""},{"$f":"IF(DataLog!$C2997=\"Log value\",DataLog!K2997,\"\")","v":""},{"$f":"IF(DataLog!$C2997=\"Log value\",DataLog!L2997,\"\")","v":""},{"$f":"IF(DataLog!$C2997=\"Log value\",DataLog!M2997,\"\")","v":""},{"$f":"IF(DataLog!$C2997=\"Log value\",DataLog!N2997,\"\")","v":""},{"$f":"IF(DataLog!$C2997=\"Log value\",DataLog!O2997,\"\")","v":""},{"$f":"IF(DataLog!$C2997=\"Log value\",DataLog!P2997,\"\")","v":""},{"$f":"IF(DataLog!$C2997=\"Log value\",DataLog!Q2997,\"\")","v":""},{"$f":"IF(DataLog!$C2997=\"Log value\",DataLog!R2997,\"\")","v":""},{"$f":"IF(DataLog!$C2997=\"Log value\",DataLog!S2997,\"\")","v":""},{"$f":"IF(DataLog!$C2997=\"Log value\",DataLog!T2997,\"\")","v":""},{"$f":"IF(DataLog!$C2997=\"Log value\",DataLog!U2997,\"\")","v":""},{"$f":"IF(DataLog!$C2997=\"Log value\",DataLog!V2997,\"\")","v":""},{"$f":"IF(DataLog!$C2997=\"Log value\",DataLog!W2997,\"\")","v":""},{"$f":"IF(DataLog!$C2997=\"Log value\",DataLog!X2997,\"\")","v":""},{"$f":"IF(DataLog!$C2997=\"Log value\",DataLog!Y2997,\"\")","v":""},{"$f":"IF(DataLog!$C2997=\"Log value\",DataLog!Z2997,\"\")","v":""},{"$f":"IF(DataLog!$C2997=\"Log value\",DataLog!AA2997,\"\")","v":""},{"$f":"IF(DataLog!$C2997=\"Log value\",DataLog!AB2997,\"\")","v":""},{"$f":"IF(DataLog!$C2997=\"Log value\",DataLog!AC2997,\"\")","v":""},{"$f":"IF(DataLog!$C2997=\"Log value\",DataLog!AD2997,\"\")","v":""},{"$f":"IF(DataLog!$C2997=\"Log value\",DataLog!AE2997,\"\")","v":""},{"$f":"IF(DataLog!$C2997=\"Log value\",DataLog!AF2997,\"\")","v":""},{"$f":"IF(DataLog!$C2997=\"Log value\",DataLog!AG2997,\"\")","v":""},{"$f":"IF(DataLog!$C2997=\"Log value\",DataLog!AH2997,\"\")","v":""},{"$f":"IF(DataLog!$C2997=\"Log value\",DataLog!AI2997,\"\")","v":""},{"$f":"IF(DataLog!$C2997=\"Log value\",DataLog!AJ2997,\"\")","v":""},{"$f":"IF(DataLog!$C2997=\"Log value\",DataLog!AK2997,\"\")","v":""},{"$f":"IF(DataLog!$C2997=\"Log value\",DataLog!AL2997,\"\")","v":""},{"$f":"IF(DataLog!$C2997=\"Log value\",DataLog!AM2997,\"\")","v":""}]
[null,null,null,null,null,null,{"$f":"IF(DataLog!$C3000=\"Log value\",DataLog!D3000&\"_\"&TEXT(DataLog!B3000,\"åååå-mm-dd\"),\"\")","v":""},{"$f":"IF(DataLog!$C3000=\"Log value\",DataLog!E3000,\"\")","v":""},{"$f":"IF(DataLog!$C3000=\"Log value\",DataLog!F3000,\"\")","v":""},{"$f":"IF(DataLog!$C3000=\"Log value\",DataLog!G3000,\"\")","v":""},{"$f":"IF(DataLog!$C3000=\"Log value\",DataLog!H3000,\"\")","v":""},{"$f":"IF(DataLog!$C3000=\"Log value\",DataLog!I3000,\"\")","v":""},{"$f":"IF(DataLog!$C3000=\"Log value\",DataLog!J3000,\"\")","v":""},{"$f":"IF(DataLog!$C3000=\"Log value\",DataLog!K3000,\"\")","v":""},{"$f":"IF(DataLog!$C3000=\"Log value\",DataLog!L3000,\"\")","v":""},{"$f":"IF(DataLog!$C3000=\"Log value\",DataLog!M3000,\"\")","v":""},{"$f":"IF(DataLog!$C3000=\"Log value\",DataLog!N3000,\"\")","v":""},{"$f":"IF(DataLog!$C3000=\"Log value\",DataLog!O3000,\"\")","v":""},{"$f":"IF(DataLog!$C3000=\"Log value\",DataLog!P3000,\"\")","v":""},{"$f":"IF(DataLog!$C3000=\"Log value\",DataLog!Q3000,\"\")","v":""},{"$f":"IF(DataLog!$C3000=\"Log value\",DataLog!R3000,\"\")","v":""},{"$f":"IF(DataLog!$C3000=\"Log value\",DataLog!S3000,\"\")","v":""},{"$f":"IF(DataLog!$C3000=\"Log value\",DataLog!T3000,\"\")","v":""},{"$f":"IF(DataLog!$C3000=\"Log value\",DataLog!U3000,\"\")","v":""},{"$f":"IF(DataLog!$C3000=\"Log value\",DataLog!V3000,\"\")","v":""},{"$f":"IF(DataLog!$C3000=\"Log value\",DataLog!W3000,\"\")","v":""},{"$f":"IF(DataLog!$C3000=\"Log value\",DataLog!X3000,\"\")","v":""},{"$f":"IF(DataLog!$C3000=\"Log value\",DataLog!Y3000,\"\")","v":""},{"$f":"IF(DataLog!$C3000=\"Log value\",DataLog!Z3000,\"\")","v":""},{"$f":"IF(DataLog!$C3000=\"Log value\",DataLog!AA3000,\"\")","v":""},{"$f":"IF(DataLog!$C3000=\"Log value\",DataLog!AB3000,\"\")","v":""},{"$f":"IF(DataLog!$C3000=\"Log value\",DataLog!AC3000,\"\")","v":""},{"$f":"IF(DataLog!$C3000=\"Log value\",DataLog!AD3000,\"\")","v":""},{"$f":"IF(DataLog!$C3000=\"Log value\",DataLog!AE3000,\"\")","v":""},{"$f":"IF(DataLog!$C3000=\"Log value\",DataLog!AF3000,\"\")","v":""},{"$f":"IF(DataLog!$C3000=\"Log value\",DataLog!AG3000,\"\")","v":""},{"$f":"IF(DataLog!$C3000=\"Log value\",DataLog!AH3000,\"\")","v":""},{"$f":"IF(DataLog!$C3000=\"Log value\",DataLog!AI3000,\"\")","v":""},{"$f":"IF(DataLog!$C3000=\"Log value\",DataLog!AJ3000,\"\")","v":""},{"$f":"IF(DataLog!$C3000=\"Log value\",DataLog!AK3000,\"\")","v":""},{"$f":"IF(DataLog!$C3000=\"Log value\",DataLog!AL3000,\"\")","v":""},{"$f":"IF(DataLog!$C3000=\"Log value\",DataLog!AM3000,\"\")","v":""}]
[null,null,null,null,null,null,{"$f":"IF(DataLog!$C3001=\"Log value\",DataLog!D3001&\"_\"&TEXT(DataLog!B3001,\"åååå-mm-dd\"),\"\")","v":""},{"$f":"IF(DataLog!$C3001=\"Log value\",DataLog!E3001,\"\")","v":""},{"$f":"IF(DataLog!$C3001=\"Log value\",DataLog!F3001,\"\")","v":""},{"$f":"IF(DataLog!$C3001=\"Log value\",DataLog!G3001,\"\")","v":""},{"$f":"IF(DataLog!$C3001=\"Log value\",DataLog!H3001,\"\")","v":""},{"$f":"IF(DataLog!$C3001=\"Log value\",DataLog!I3001,\"\")","v":""},{"$f":"IF(DataLog!$C3001=\"Log value\",DataLog!J3001,\"\")","v":""},{"$f":"IF(DataLog!$C3001=\"Log value\",DataLog!K3001,\"\")","v":""},{"$f":"IF(DataLog!$C3001=\"Log value\",DataLog!L3001,\"\")","v":""},{"$f":"IF(DataLog!$C3001=\"Log value\",DataLog!M3001,\"\")","v":""},{"$f":"IF(DataLog!$C3001=\"Log value\",DataLog!N3001,\"\")","v":""},{"$f":"IF(DataLog!$C3001=\"Log value\",DataLog!O3001,\"\")","v":""},{"$f":"IF(DataLog!$C3001=\"Log value\",DataLog!P3001,\"\")","v":""},{"$f":"IF(DataLog!$C3001=\"Log value\",DataLog!Q3001,\"\")","v":""},{"$f":"IF(DataLog!$C3001=\"Log value\",DataLog!R3001,\"\")","v":""},{"$f":"IF(DataLog!$C3001=\"Log value\",DataLog!S3001,\"\")","v":""},{"$f":"IF(DataLog!$C3001=\"Log value\",DataLog!T3001,\"\")","v":""},{"$f":"IF(DataLog!$C3001=\"Log value\",DataLog!U3001,\"\")","v":""},{"$f":"IF(DataLog!$C3001=\"Log value\",DataLog!V3001,\"\")","v":""},{"$f":"IF(DataLog!$C3001=\"Log value\",DataLog!W3001,\"\")","v":""},{"$f":"IF(DataLog!$C3001=\"Log value\",DataLog!X3001,\"\")","v":""},{"$f":"IF(DataLog!$C3001=\"Log value\",DataLog!Y3001,\"\")","v":""},{"$f":"IF(DataLog!$C3001=\"Log value\",DataLog!Z3001,\"\")","v":""},{"$f":"IF(DataLog!$C3001=\"Log value\",DataLog!AA3001,\"\")","v":""},{"$f":"IF(DataLog!$C3001=\"Log value\",DataLog!AB3001,\"\")","v":""},{"$f":"IF(DataLog!$C3001=\"Log value\",DataLog!AC3001,\"\")","v":""},{"$f":"IF(DataLog!$C3001=\"Log value\",DataLog!AD3001,\"\")","v":""},{"$f":"IF(DataLog!$C3001=\"Log value\",DataLog!AE3001,\"\")","v":""},{"$f":"IF(DataLog!$C3001=\"Log value\",DataLog!AF3001,\"\")","v":""},{"$f":"IF(DataLog!$C3001=\"Log value\",DataLog!AG3001,\"\")","v":""},{"$f":"IF(DataLog!$C3001=\"Log value\",DataLog!AH3001,\"\")","v":""},{"$f":"IF(DataLog!$C3001=\"Log value\",DataLog!AI3001,\"\")","v":""},{"$f":"IF(DataLog!$C3001=\"Log value\",DataLog!AJ3001,\"\")","v":""},{"$f":"IF(DataLog!$C3001=\"Log value\",DataLog!AK3001,\"\")","v":""},{"$f":"IF(DataLog!$C3001=\"Log value\",DataLog!AL3001,\"\")","v":""},{"$f":"IF(DataLog!$C3001=\"Log value\",DataLog!AM3001,\"\")","v":""}]
[null,null,null,null,null,null,{"$f":"IF(DataLog!$C3004=\"Log value\",DataLog!D3004&\"_\"&TEXT(DataLog!B3004,\"åååå-mm-dd\"),\"\")","v":""},{"$f":"IF(DataLog!$C3004=\"Log value\",DataLog!E3004,\"\")","v":""},{"$f":"IF(DataLog!$C3004=\"Log value\",DataLog!F3004,\"\")","v":""},{"$f":"IF(DataLog!$C3004=\"Log value\",DataLog!G3004,\"\")","v":""},{"$f":"IF(DataLog!$C3004=\"Log value\",DataLog!H3004,\"\")","v":""},{"$f":"IF(DataLog!$C3004=\"Log value\",DataLog!I3004,\"\")","v":""},{"$f":"IF(DataLog!$C3004=\"Log value\",DataLog!J3004,\"\")","v":""},{"$f":"IF(DataLog!$C3004=\"Log value\",DataLog!K3004,\"\")","v":""},{"$f":"IF(DataLog!$C3004=\"Log value\",DataLog!L3004,\"\")","v":""},{"$f":"IF(DataLog!$C3004=\"Log value\",DataLog!M3004,\"\")","v":""},{"$f":"IF(DataLog!$C3004=\"Log value\",DataLog!N3004,\"\")","v":""},{"$f":"IF(DataLog!$C3004=\"Log value\",DataLog!O3004,\"\")","v":""},{"$f":"IF(DataLog!$C3004=\"Log value\",DataLog!P3004,\"\")","v":""},{"$f":"IF(DataLog!$C3004=\"Log value\",DataLog!Q3004,\"\")","v":""},{"$f":"IF(DataLog!$C3004=\"Log value\",DataLog!R3004,\"\")","v":""},{"$f":"IF(DataLog!$C3004=\"Log value\",DataLog!S3004,\"\")","v":""},{"$f":"IF(DataLog!$C3004=\"Log value\",DataLog!T3004,\"\")","v":""},{"$f":"IF(DataLog!$C3004=\"Log value\",DataLog!U3004,\"\")","v":""},{"$f":"IF(DataLog!$C3004=\"Log value\",DataLog!V3004,\"\")","v":""},{"$f":"IF(DataLog!$C3004=\"Log value\",DataLog!W3004,\"\")","v":""},{"$f":"IF(DataLog!$C3004=\"Log value\",DataLog!X3004,\"\")","v":""},{"$f":"IF(DataLog!$C3004=\"Log value\",DataLog!Y3004,\"\")","v":""},{"$f":"IF(DataLog!$C3004=\"Log value\",DataLog!Z3004,\"\")","v":""},{"$f":"IF(DataLog!$C3004=\"Log value\",DataLog!AA3004,\"\")","v":""},{"$f":"IF(DataLog!$C3004=\"Log value\",DataLog!AB3004,\"\")","v":""},{"$f":"IF(DataLog!$C3004=\"Log value\",DataLog!AC3004,\"\")","v":""},{"$f":"IF(DataLog!$C3004=\"Log value\",DataLog!AD3004,\"\")","v":""},{"$f":"IF(DataLog!$C3004=\"Log value\",DataLog!AE3004,\"\")","v":""},{"$f":"IF(DataLog!$C3004=\"Log value\",DataLog!AF3004,\"\")","v":""},{"$f":"IF(DataLog!$C3004=\"Log value\",DataLog!AG3004,\"\")","v":""},{"$f":"IF(DataLog!$C3004=\"Log value\",DataLog!AH3004,\"\")","v":""},{"$f":"IF(DataLog!$C3004=\"Log value\",DataLog!AI3004,\"\")","v":""},{"$f":"IF(DataLog!$C3004=\"Log value\",DataLog!AJ3004,\"\")","v":""},{"$f":"IF(DataLog!$C3004=\"Log value\",DataLog!AK3004,\"\")","v":""},{"$f":"IF(DataLog!$C3004=\"Log value\",DataLog!AL3004,\"\")","v":""},{"$f":"IF(DataLog!$C3004=\"Log value\",DataLog!AM3004,\"\")","v":""}]
[null,null,null,null,null,null,{"$f":"IF(DataLog!$C3005=\"Log value\",DataLog!D3005&\"_\"&TEXT(DataLog!B3005,\"åååå-mm-dd\"),\"\")","v":""},{"$f":"IF(DataLog!$C3005=\"Log value\",DataLog!E3005,\"\")","v":""},{"$f":"IF(DataLog!$C3005=\"Log value\",DataLog!F3005,\"\")","v":""},{"$f":"IF(DataLog!$C3005=\"Log value\",DataLog!G3005,\"\")","v":""},{"$f":"IF(DataLog!$C3005=\"Log value\",DataLog!H3005,\"\")","v":""},{"$f":"IF(DataLog!$C3005=\"Log value\",DataLog!I3005,\"\")","v":""},{"$f":"IF(DataLog!$C3005=\"Log value\",DataLog!J3005,\"\")","v":""},{"$f":"IF(DataLog!$C3005=\"Log value\",DataLog!K3005,\"\")","v":""},{"$f":"IF(DataLog!$C3005=\"Log value\",DataLog!L3005,\"\")","v":""},{"$f":"IF(DataLog!$C3005=\"Log value\",DataLog!M3005,\"\")","v":""},{"$f":"IF(DataLog!$C3005=\"Log value\",DataLog!N3005,\"\")","v":""},{"$f":"IF(DataLog!$C3005=\"Log value\",DataLog!O3005,\"\")","v":""},{"$f":"IF(DataLog!$C3005=\"Log value\",DataLog!P3005,\"\")","v":""},{"$f":"IF(DataLog!$C3005=\"Log value\",DataLog!Q3005,\"\")","v":""},{"$f":"IF(DataLog!$C3005=\"Log value\",DataLog!R3005,\"\")","v":""},{"$f":"IF(DataLog!$C3005=\"Log value\",DataLog!S3005,\"\")","v":""},{"$f":"IF(DataLog!$C3005=\"Log value\",DataLog!T3005,\"\")","v":""},{"$f":"IF(DataLog!$C3005=\"Log value\",DataLog!U3005,\"\")","v":""},{"$f":"IF(DataLog!$C3005=\"Log value\",DataLog!V3005,\"\")","v":""},{"$f":"IF(DataLog!$C3005=\"Log value\",DataLog!W3005,\"\")","v":""},{"$f":"IF(DataLog!$C3005=\"Log value\",DataLog!X3005,\"\")","v":""},{"$f":"IF(DataLog!$C3005=\"Log value\",DataLog!Y3005,\"\")","v":""},{"$f":"IF(DataLog!$C3005=\"Log value\",DataLog!Z3005,\"\")","v":""},{"$f":"IF(DataLog!$C3005=\"Log value\",DataLog!AA3005,\"\")","v":""},{"$f":"IF(DataLog!$C3005=\"Log value\",DataLog!AB3005,\"\")","v":""},{"$f":"IF(DataLog!$C3005=\"Log value\",DataLog!AC3005,\"\")","v":""},{"$f":"IF(DataLog!$C3005=\"Log value\",DataLog!AD3005,\"\")","v":""},{"$f":"IF(DataLog!$C3005=\"Log value\",DataLog!AE3005,\"\")","v":""},{"$f":"IF(DataLog!$C3005=\"Log value\",DataLog!AF3005,\"\")","v":""},{"$f":"IF(DataLog!$C3005=\"Log value\",DataLog!AG3005,\"\")","v":""},{"$f":"IF(DataLog!$C3005=\"Log value\",DataLog!AH3005,\"\")","v":""},{"$f":"IF(DataLog!$C3005=\"Log value\",DataLog!AI3005,\"\")","v":""},{"$f":"IF(DataLog!$C3005=\"Log value\",DataLog!AJ3005,\"\")","v":""},{"$f":"IF(DataLog!$C3005=\"Log value\",DataLog!AK3005,\"\")","v":""},{"$f":"IF(DataLog!$C3005=\"Log value\",DataLog!AL3005,\"\")","v":""},{"$f":"IF(DataLog!$C3005=\"Log value\",DataLog!AM3005,\"\")","v":""}]
[null,null,null,null,null,null,{"$f":"IF(DataLog!$C3009=\"Log value\",DataLog!D3009&\"_\"&TEXT(DataLog!B3009,\"åååå-mm-dd\"),\"\")","v":""},{"$f":"IF(DataLog!$C3009=\"Log value\",DataLog!E3009,\"\")","v":""},{"$f":"IF(DataLog!$C3009=\"Log value\",DataLog!F3009,\"\")","v":""},{"$f":"IF(DataLog!$C3009=\"Log value\",DataLog!G3009,\"\")","v":""},{"$f":"IF(DataLog!$C3009=\"Log value\",DataLog!H3009,\"\")","v":""},{"$f":"IF(DataLog!$C3009=\"Log value\",DataLog!I3009,\"\")","v":""},{"$f":"IF(DataLog!$C3009=\"Log value\",DataLog!J3009,\"\")","v":""},{"$f":"IF(DataLog!$C3009=\"Log value\",DataLog!K3009,\"\")","v":""},{"$f":"IF(DataLog!$C3009=\"Log value\",DataLog!L3009,\"\")","v":""},{"$f":"IF(DataLog!$C3009=\"Log value\",DataLog!M3009,\"\")","v":""},{"$f":"IF(DataLog!$C3009=\"Log value\",DataLog!N3009,\"\")","v":""},{"$f":"IF(DataLog!$C3009=\"Log value\",DataLog!O3009,\"\")","v":""},{"$f":"IF(DataLog!$C3009=\"Log value\",DataLog!P3009,\"\")","v":""},{"$f":"IF(DataLog!$C3009=\"Log value\",DataLog!Q3009,\"\")","v":""},{"$f":"IF(DataLog!$C3009=\"Log value\",DataLog!R3009,\"\")","v":""},{"$f":"IF(DataLog!$C3009=\"Log value\",DataLog!S3009,\"\")","v":""},{"$f":"IF(DataLog!$C3009=\"Log value\",DataLog!T3009,\"\")","v":""},{"$f":"IF(DataLog!$C3009=\"Log value\",DataLog!U3009,\"\")","v":""},{"$f":"IF(DataLog!$C3009=\"Log value\",DataLog!V3009,\"\")","v":""},{"$f":"IF(DataLog!$C3009=\"Log value\",DataLog!W3009,\"\")","v":""},{"$f":"IF(DataLog!$C3009=\"Log value\",DataLog!X3009,\"\")","v":""},{"$f":"IF(DataLog!$C3009=\"Log value\",DataLog!Y3009,\"\")","v":""},{"$f":"IF(DataLog!$C3009=\"Log value\",DataLog!Z3009,\"\")","v":""},{"$f":"IF(DataLog!$C3009=\"Log value\",DataLog!AA3009,\"\")","v":""},{"$f":"IF(DataLog!$C3009=\"Log value\",DataLog!AB3009,\"\")","v":""},{"$f":"IF(DataLog!$C3009=\"Log value\",DataLog!AC3009,\"\")","v":""},{"$f":"IF(DataLog!$C3009=\"Log value\",DataLog!AD3009,\"\")","v":""},{"$f":"IF(DataLog!$C3009=\"Log value\",DataLog!AE3009,\"\")","v":""},{"$f":"IF(DataLog!$C3009=\"Log value\",DataLog!AF3009,\"\")","v":""},{"$f":"IF(DataLog!$C3009=\"Log value\",DataLog!AG3009,\"\")","v":""},{"$f":"IF(DataLog!$C3009=\"Log value\",DataLog!AH3009,\"\")","v":""},{"$f":"IF(DataLog!$C3009=\"Log value\",DataLog!AI3009,\"\")","v":""},{"$f":"IF(DataLog!$C3009=\"Log value\",DataLog!AJ3009,\"\")","v":""},{"$f":"IF(DataLog!$C3009=\"Log value\",DataLog!AK3009,\"\")","v":""},{"$f":"IF(DataLog!$C3009=\"Log value\",DataLog!AL3009,\"\")","v":""},{"$f":"IF(DataLog!$C3009=\"Log value\",DataLog!AM3009,\"\")","v":""}]
[null,null,null,null,null,null,{"$f":"IF(DataLog!$C3010=\"Log value\",DataLog!D3010&\"_\"&TEXT(DataLog!B3010,\"åååå-mm-dd\"),\"\")","v":""},{"$f":"IF(DataLog!$C3010=\"Log value\",DataLog!E3010,\"\")","v":""},{"$f":"IF(DataLog!$C3010=\"Log value\",DataLog!F3010,\"\")","v":""},{"$f":"IF(DataLog!$C3010=\"Log value\",DataLog!G3010,\"\")","v":""},{"$f":"IF(DataLog!$C3010=\"Log value\",DataLog!H3010,\"\")","v":""},{"$f":"IF(DataLog!$C3010=\"Log value\",DataLog!I3010,\"\")","v":""},{"$f":"IF(DataLog!$C3010=\"Log value\",DataLog!J3010,\"\")","v":""},{"$f":"IF(DataLog!$C3010=\"Log value\",DataLog!K3010,\"\")","v":""},{"$f":"IF(DataLog!$C3010=\"Log value\",DataLog!L3010,\"\")","v":""},{"$f":"IF(DataLog!$C3010=\"Log value\",DataLog!M3010,\"\")","v":""},{"$f":"IF(DataLog!$C3010=\"Log value\",DataLog!N3010,\"\")","v":""},{"$f":"IF(DataLog!$C3010=\"Log value\",DataLog!O3010,\"\")","v":""},{"$f":"IF(DataLog!$C3010=\"Log value\",DataLog!P3010,\"\")","v":""},{"$f":"IF(DataLog!$C3010=\"Log value\",DataLog!Q3010,\"\")","v":""},{"$f":"IF(DataLog!$C3010=\"Log value\",DataLog!R3010,\"\")","v":""},{"$f":"IF(DataLog!$C3010=\"Log value\",DataLog!S3010,\"\")","v":""},{"$f":"IF(DataLog!$C3010=\"Log value\",DataLog!T3010,\"\")","v":""},{"$f":"IF(DataLog!$C3010=\"Log value\",DataLog!U3010,\"\")","v":""},{"$f":"IF(DataLog!$C3010=\"Log value\",DataLog!V3010,\"\")","v":""},{"$f":"IF(DataLog!$C3010=\"Log value\",DataLog!W3010,\"\")","v":""},{"$f":"IF(DataLog!$C3010=\"Log value\",DataLog!X3010,\"\")","v":""},{"$f":"IF(DataLog!$C3010=\"Log value\",DataLog!Y3010,\"\")","v":""},{"$f":"IF(DataLog!$C3010=\"Log value\",DataLog!Z3010,\"\")","v":""},{"$f":"IF(DataLog!$C3010=\"Log value\",DataLog!AA3010,\"\")","v":""},{"$f":"IF(DataLog!$C3010=\"Log value\",DataLog!AB3010,\"\")","v":""},{"$f":"IF(DataLog!$C3010=\"Log value\",DataLog!AC3010,\"\")","v":""},{"$f":"IF(DataLog!$C3010=\"Log value\",DataLog!AD3010,\"\")","v":""},{"$f":"IF(DataLog!$C3010=\"Log value\",DataLog!AE3010,\"\")","v":""},{"$f":"IF(DataLog!$C3010=\"Log value\",DataLog!AF3010,\"\")","v":""},{"$f":"IF(DataLog!$C3010=\"Log value\",DataLog!AG3010,\"\")","v":""},{"$f":"IF(DataLog!$C3010=\"Log value\",DataLog!AH3010,\"\")","v":""},{"$f":"IF(DataLog!$C3010=\"Log value\",DataLog!AI3010,\"\")","v":""},{"$f":"IF(DataLog!$C3010=\"Log value\",DataLog!AJ3010,\"\")","v":""},{"$f":"IF(DataLog!$C3010=\"Log value\",DataLog!AK3010,\"\")","v":""},{"$f":"IF(DataLog!$C3010=\"Log value\",DataLog!AL3010,\"\")","v":""},{"$f":"IF(DataLog!$C3010=\"Log value\",DataLog!AM3010,\"\")","v":""}]
[null,null,null,null,null,null,{"$f":"IF(DataLog!$C3013=\"Log value\",DataLog!D3013&\"_\"&TEXT(DataLog!B3013,\"åååå-mm-dd\"),\"\")","v":""},{"$f":"IF(DataLog!$C3013=\"Log value\",DataLog!E3013,\"\")","v":""},{"$f":"IF(DataLog!$C3013=\"Log value\",DataLog!F3013,\"\")","v":""},{"$f":"IF(DataLog!$C3013=\"Log value\",DataLog!G3013,\"\")","v":""},{"$f":"IF(DataLog!$C3013=\"Log value\",DataLog!H3013,\"\")","v":""},{"$f":"IF(DataLog!$C3013=\"Log value\",DataLog!I3013,\"\")","v":""},{"$f":"IF(DataLog!$C3013=\"Log value\",DataLog!J3013,\"\")","v":""},{"$f":"IF(DataLog!$C3013=\"Log value\",DataLog!K3013,\"\")","v":""},{"$f":"IF(DataLog!$C3013=\"Log value\",DataLog!L3013,\"\")","v":""},{"$f":"IF(DataLog!$C3013=\"Log value\",DataLog!M3013,\"\")","v":""},{"$f":"IF(DataLog!$C3013=\"Log value\",DataLog!N3013,\"\")","v":""},{"$f":"IF(DataLog!$C3013=\"Log value\",DataLog!O3013,\"\")","v":""},{"$f":"IF(DataLog!$C3013=\"Log value\",DataLog!P3013,\"\")","v":""},{"$f":"IF(DataLog!$C3013=\"Log value\",DataLog!Q3013,\"\")","v":""},{"$f":"IF(DataLog!$C3013=\"Log value\",DataLog!R3013,\"\")","v":""},{"$f":"IF(DataLog!$C3013=\"Log value\",DataLog!S3013,\"\")","v":""},{"$f":"IF(DataLog!$C3013=\"Log value\",DataLog!T3013,\"\")","v":""},{"$f":"IF(DataLog!$C3013=\"Log value\",DataLog!U3013,\"\")","v":""},{"$f":"IF(DataLog!$C3013=\"Log value\",DataLog!V3013,\"\")","v":""},{"$f":"IF(DataLog!$C3013=\"Log value\",DataLog!W3013,\"\")","v":""},{"$f":"IF(DataLog!$C3013=\"Log value\",DataLog!X3013,\"\")","v":""},{"$f":"IF(DataLog!$C3013=\"Log value\",DataLog!Y3013,\"\")","v":""},{"$f":"IF(DataLog!$C3013=\"Log value\",DataLog!Z3013,\"\")","v":""},{"$f":"IF(DataLog!$C3013=\"Log value\",DataLog!AA3013,\"\")","v":""},{"$f":"IF(DataLog!$C3013=\"Log value\",DataLog!AB3013,\"\")","v":""},{"$f":"IF(DataLog!$C3013=\"Log value\",DataLog!AC3013,\"\")","v":""},{"$f":"IF(DataLog!$C3013=\"Log value\",DataLog!AD3013,\"\")","v":""},{"$f":"IF(DataLog!$C3013=\"Log value\",DataLog!AE3013,\"\")","v":""},{"$f":"IF(DataLog!$C3013=\"Log value\",DataLog!AF3013,\"\")","v":""},{"$f":"IF(DataLog!$C3013=\"Log value\",DataLog!AG3013,\"\")","v":""},{"$f":"IF(DataLog!$C3013=\"Log value\",DataLog!AH3013,\"\")","v":""},{"$f":"IF(DataLog!$C3013=\"Log value\",DataLog!AI3013,\"\")","v":""},{"$f":"IF(DataLog!$C3013=\"Log value\",DataLog!AJ3013,\"\")","v":""},{"$f":"IF(DataLog!$C3013=\"Log value\",DataLog!AK3013,\"\")","v":""},{"$f":"IF(DataLog!$C3013=\"Log value\",DataLog!AL3013,\"\")","v":""},{"$f":"IF(DataLog!$C3013=\"Log value\",DataLog!AM3013,\"\")","v":""}]
[null,null,null,null,null,null,{"$f":"IF(DataLog!$C3015=\"Log value\",DataLog!D3015&\"_\"&TEXT(DataLog!B3015,\"åååå-mm-dd\"),\"\")","v":""},{"$f":"IF(DataLog!$C3015=\"Log value\",DataLog!E3015,\"\")","v":""},{"$f":"IF(DataLog!$C3015=\"Log value\",DataLog!F3015,\"\")","v":""},{"$f":"IF(DataLog!$C3015=\"Log value\",DataLog!G3015,\"\")","v":""},{"$f":"IF(DataLog!$C3015=\"Log value\",DataLog!H3015,\"\")","v":""},{"$f":"IF(DataLog!$C3015=\"Log value\",DataLog!I3015,\"\")","v":""},{"$f":"IF(DataLog!$C3015=\"Log value\",DataLog!J3015,\"\")","v":""},{"$f":"IF(DataLog!$C3015=\"Log value\",DataLog!K3015,\"\")","v":""},{"$f":"IF(DataLog!$C3015=\"Log value\",DataLog!L3015,\"\")","v":""},{"$f":"IF(DataLog!$C3015=\"Log value\",DataLog!M3015,\"\")","v":""},{"$f":"IF(DataLog!$C3015=\"Log value\",DataLog!N3015,\"\")","v":""},{"$f":"IF(DataLog!$C3015=\"Log value\",DataLog!O3015,\"\")","v":""},{"$f":"IF(DataLog!$C3015=\"Log value\",DataLog!P3015,\"\")","v":""},{"$f":"IF(DataLog!$C3015=\"Log value\",DataLog!Q3015,\"\")","v":""},{"$f":"IF(DataLog!$C3015=\"Log value\",DataLog!R3015,\"\")","v":""},{"$f":"IF(DataLog!$C3015=\"Log value\",DataLog!S3015,\"\")","v":""},{"$f":"IF(DataLog!$C3015=\"Log value\",DataLog!T3015,\"\")","v":""},{"$f":"IF(DataLog!$C3015=\"Log value\",DataLog!U3015,\"\")","v":""},{"$f":"IF(DataLog!$C3015=\"Log value\",DataLog!V3015,\"\")","v":""},{"$f":"IF(DataLog!$C3015=\"Log value\",DataLog!W3015,\"\")","v":""},{"$f":"IF(DataLog!$C3015=\"Log value\",DataLog!X3015,\"\")","v":""},{"$f":"IF(DataLog!$C3015=\"Log value\",DataLog!Y3015,\"\")","v":""},{"$f":"IF(DataLog!$C3015=\"Log value\",DataLog!Z3015,\"\")","v":""},{"$f":"IF(DataLog!$C3015=\"Log value\",DataLog!AA3015,\"\")","v":""},{"$f":"IF(DataLog!$C3015=\"Log value\",DataLog!AB3015,\"\")","v":""},{"$f":"IF(DataLog!$C3015=\"Log value\",DataLog!AC3015,\"\")","v":""},{"$f":"IF(DataLog!$C3015=\"Log value\",DataLog!AD3015,\"\")","v":""},{"$f":"IF(DataLog!$C3015=\"Log value\",DataLog!AE3015,\"\")","v":""},{"$f":"IF(DataLog!$C3015=\"Log value\",DataLog!AF3015,\"\")","v":""},{"$f":"IF(DataLog!$C3015=\"Log value\",DataLog!AG3015,\"\")","v":""},{"$f":"IF(DataLog!$C3015=\"Log value\",DataLog!AH3015,\"\")","v":""},{"$f":"IF(DataLog!$C3015=\"Log value\",DataLog!AI3015,\"\")","v":""},{"$f":"IF(DataLog!$C3015=\"Log value\",DataLog!AJ3015,\"\")","v":""},{"$f":"IF(DataLog!$C3015=\"Log value\",DataLog!AK3015,\"\")","v":""},{"$f":"IF(DataLog!$C3015=\"Log value\",DataLog!AL3015,\"\")","v":""},{"$f":"IF(DataLog!$C3015=\"Log value\",DataLog!AM3015,\"\")","v":""}]
[null,null,null,null,null,null,{"$f":"IF(DataLog!$C3018=\"Log value\",DataLog!D3018&\"_\"&TEXT(DataLog!B3018,\"åååå-mm-dd\"),\"\")","v":""},{"$f":"IF(DataLog!$C3018=\"Log value\",DataLog!E3018,\"\")","v":""},{"$f":"IF(DataLog!$C3018=\"Log value\",DataLog!F3018,\"\")","v":""},{"$f":"IF(DataLog!$C3018=\"Log value\",DataLog!G3018,\"\")","v":""},{"$f":"IF(DataLog!$C3018=\"Log value\",DataLog!H3018,\"\")","v":""},{"$f":"IF(DataLog!$C3018=\"Log value\",DataLog!I3018,\"\")","v":""},{"$f":"IF(DataLog!$C3018=\"Log value\",DataLog!J3018,\"\")","v":""},{"$f":"IF(DataLog!$C3018=\"Log value\",DataLog!K3018,\"\")","v":""},{"$f":"IF(DataLog!$C3018=\"Log value\",DataLog!L3018,\"\")","v":""},{"$f":"IF(DataLog!$C3018=\"Log value\",DataLog!M3018,\"\")","v":""},{"$f":"IF(DataLog!$C3018=\"Log value\",DataLog!N3018,\"\")","v":""},{"$f":"IF(DataLog!$C3018=\"Log value\",DataLog!O3018,\"\")","v":""},{"$f":"IF(DataLog!$C3018=\"Log value\",DataLog!P3018,\"\")","v":""},{"$f":"IF(DataLog!$C3018=\"Log value\",DataLog!Q3018,\"\")","v":""},{"$f":"IF(DataLog!$C3018=\"Log value\",DataLog!R3018,\"\")","v":""},{"$f":"IF(DataLog!$C3018=\"Log value\",DataLog!S3018,\"\")","v":""},{"$f":"IF(DataLog!$C3018=\"Log value\",DataLog!T3018,\"\")","v":""},{"$f":"IF(DataLog!$C3018=\"Log value\",DataLog!U3018,\"\")","v":""},{"$f":"IF(DataLog!$C3018=\"Log value\",DataLog!V3018,\"\")","v":""},{"$f":"IF(DataLog!$C3018=\"Log value\",DataLog!W3018,\"\")","v":""},{"$f":"IF(DataLog!$C3018=\"Log value\",DataLog!X3018,\"\")","v":""},{"$f":"IF(DataLog!$C3018=\"Log value\",DataLog!Y3018,\"\")","v":""},{"$f":"IF(DataLog!$C3018=\"Log value\",DataLog!Z3018,\"\")","v":""},{"$f":"IF(DataLog!$C3018=\"Log value\",DataLog!AA3018,\"\")","v":""},{"$f":"IF(DataLog!$C3018=\"Log value\",DataLog!AB3018,\"\")","v":""},{"$f":"IF(DataLog!$C3018=\"Log value\",DataLog!AC3018,\"\")","v":""},{"$f":"IF(DataLog!$C3018=\"Log value\",DataLog!AD3018,\"\")","v":""},{"$f":"IF(DataLog!$C3018=\"Log value\",DataLog!AE3018,\"\")","v":""},{"$f":"IF(DataLog!$C3018=\"Log value\",DataLog!AF3018,\"\")","v":""},{"$f":"IF(DataLog!$C3018=\"Log value\",DataLog!AG3018,\"\")","v":""},{"$f":"IF(DataLog!$C3018=\"Log value\",DataLog!AH3018,\"\")","v":""},{"$f":"IF(DataLog!$C3018=\"Log value\",DataLog!AI3018,\"\")","v":""},{"$f":"IF(DataLog!$C3018=\"Log value\",DataLog!AJ3018,\"\")","v":""},{"$f":"IF(DataLog!$C3018=\"Log value\",DataLog!AK3018,\"\")","v":""},{"$f":"IF(DataLog!$C3018=\"Log value\",DataLog!AL3018,\"\")","v":""},{"$f":"IF(DataLog!$C3018=\"Log value\",DataLog!AM3018,\"\")","v":""}]
[null,null,null,null,null,null,{"$f":"IF(DataLog!$C3019=\"Log value\",DataLog!D3019&\"_\"&TEXT(DataLog!B3019,\"åååå-mm-dd\"),\"\")","v":""},{"$f":"IF(DataLog!$C3019=\"Log value\",DataLog!E3019,\"\")","v":""},{"$f":"IF(DataLog!$C3019=\"Log value\",DataLog!F3019,\"\")","v":""},{"$f":"IF(DataLog!$C3019=\"Log value\",DataLog!G3019,\"\")","v":""},{"$f":"IF(DataLog!$C3019=\"Log value\",DataLog!H3019,\"\")","v":""},{"$f":"IF(DataLog!$C3019=\"Log value\",DataLog!I3019,\"\")","v":""},{"$f":"IF(DataLog!$C3019=\"Log value\",DataLog!J3019,\"\")","v":""},{"$f":"IF(DataLog!$C3019=\"Log value\",DataLog!K3019,\"\")","v":""},{"$f":"IF(DataLog!$C3019=\"Log value\",DataLog!L3019,\"\")","v":""},{"$f":"IF(DataLog!$C3019=\"Log value\",DataLog!M3019,\"\")","v":""},{"$f":"IF(DataLog!$C3019=\"Log value\",DataLog!N3019,\"\")","v":""},{"$f":"IF(DataLog!$C3019=\"Log value\",DataLog!O3019,\"\")","v":""},{"$f":"IF(DataLog!$C3019=\"Log value\",DataLog!P3019,\"\")","v":""},{"$f":"IF(DataLog!$C3019=\"Log value\",DataLog!Q3019,\"\")","v":""},{"$f":"IF(DataLog!$C3019=\"Log value\",DataLog!R3019,\"\")","v":""},{"$f":"IF(DataLog!$C3019=\"Log value\",DataLog!S3019,\"\")","v":""},{"$f":"IF(DataLog!$C3019=\"Log value\",DataLog!T3019,\"\")","v":""},{"$f":"IF(DataLog!$C3019=\"Log value\",DataLog!U3019,\"\")","v":""},{"$f":"IF(DataLog!$C3019=\"Log value\",DataLog!V3019,\"\")","v":""},{"$f":"IF(DataLog!$C3019=\"Log value\",DataLog!W3019,\"\")","v":""},{"$f":"IF(DataLog!$C3019=\"Log value\",DataLog!X3019,\"\")","v":""},{"$f":"IF(DataLog!$C3019=\"Log value\",DataLog!Y3019,\"\")","v":""},{"$f":"IF(DataLog!$C3019=\"Log value\",DataLog!Z3019,\"\")","v":""},{"$f":"IF(DataLog!$C3019=\"Log value\",DataLog!AA3019,\"\")","v":""},{"$f":"IF(DataLog!$C3019=\"Log value\",DataLog!AB3019,\"\")","v":""},{"$f":"IF(DataLog!$C3019=\"Log value\",DataLog!AC3019,\"\")","v":""},{"$f":"IF(DataLog!$C3019=\"Log value\",DataLog!AD3019,\"\")","v":""},{"$f":"IF(DataLog!$C3019=\"Log value\",DataLog!AE3019,\"\")","v":""},{"$f":"IF(DataLog!$C3019=\"Log value\",DataLog!AF3019,\"\")","v":""},{"$f":"IF(DataLog!$C3019=\"Log value\",DataLog!AG3019,\"\")","v":""},{"$f":"IF(DataLog!$C3019=\"Log value\",DataLog!AH3019,\"\")","v":""},{"$f":"IF(DataLog!$C3019=\"Log value\",DataLog!AI3019,\"\")","v":""},{"$f":"IF(DataLog!$C3019=\"Log value\",DataLog!AJ3019,\"\")","v":""},{"$f":"IF(DataLog!$C3019=\"Log value\",DataLog!AK3019,\"\")","v":""},{"$f":"IF(DataLog!$C3019=\"Log value\",DataLog!AL3019,\"\")","v":""},{"$f":"IF(DataLog!$C3019=\"Log value\",DataLog!AM3019,\"\")","v":""}]
[null,null,null,null,null,null,{"$f":"IF(DataLog!$C3023=\"Log value\",DataLog!D3023&\"_\"&TEXT(DataLog!B3023,\"åååå-mm-dd\"),\"\")","v":""},{"$f":"IF(DataLog!$C3023=\"Log value\",DataLog!E3023,\"\")","v":""},{"$f":"IF(DataLog!$C3023=\"Log value\",DataLog!F3023,\"\")","v":""},{"$f":"IF(DataLog!$C3023=\"Log value\",DataLog!G3023,\"\")","v":""},{"$f":"IF(DataLog!$C3023=\"Log value\",DataLog!H3023,\"\")","v":""},{"$f":"IF(DataLog!$C3023=\"Log value\",DataLog!I3023,\"\")","v":""},{"$f":"IF(DataLog!$C3023=\"Log value\",DataLog!J3023,\"\")","v":""},{"$f":"IF(DataLog!$C3023=\"Log value\",DataLog!K3023,\"\")","v":""},{"$f":"IF(DataLog!$C3023=\"Log value\",DataLog!L3023,\"\")","v":""},{"$f":"IF(DataLog!$C3023=\"Log value\",DataLog!M3023,\"\")","v":""},{"$f":"IF(DataLog!$C3023=\"Log value\",DataLog!N3023,\"\")","v":""},{"$f":"IF(DataLog!$C3023=\"Log value\",DataLog!O3023,\"\")","v":""},{"$f":"IF(DataLog!$C3023=\"Log value\",DataLog!P3023,\"\")","v":""},{"$f":"IF(DataLog!$C3023=\"Log value\",DataLog!Q3023,\"\")","v":""},{"$f":"IF(DataLog!$C3023=\"Log value\",DataLog!R3023,\"\")","v":""},{"$f":"IF(DataLog!$C3023=\"Log value\",DataLog!S3023,\"\")","v":""},{"$f":"IF(DataLog!$C3023=\"Log value\",DataLog!T3023,\"\")","v":""},{"$f":"IF(DataLog!$C3023=\"Log value\",DataLog!U3023,\"\")","v":""},{"$f":"IF(DataLog!$C3023=\"Log value\",DataLog!V3023,\"\")","v":""},{"$f":"IF(DataLog!$C3023=\"Log value\",DataLog!W3023,\"\")","v":""},{"$f":"IF(DataLog!$C3023=\"Log value\",DataLog!X3023,\"\")","v":""},{"$f":"IF(DataLog!$C3023=\"Log value\",DataLog!Y3023,\"\")","v":""},{"$f":"IF(DataLog!$C3023=\"Log value\",DataLog!Z3023,\"\")","v":""},{"$f":"IF(DataLog!$C3023=\"Log value\",DataLog!AA3023,\"\")","v":""},{"$f":"IF(DataLog!$C3023=\"Log value\",DataLog!AB3023,\"\")","v":""},{"$f":"IF(DataLog!$C3023=\"Log value\",DataLog!AC3023,\"\")","v":""},{"$f":"IF(DataLog!$C3023=\"Log value\",DataLog!AD3023,\"\")","v":""},{"$f":"IF(DataLog!$C3023=\"Log value\",DataLog!AE3023,\"\")","v":""},{"$f":"IF(DataLog!$C3023=\"Log value\",DataLog!AF3023,\"\")","v":""},{"$f":"IF(DataLog!$C3023=\"Log value\",DataLog!AG3023,\"\")","v":""},{"$f":"IF(DataLog!$C3023=\"Log value\",DataLog!AH3023,\"\")","v":""},{"$f":"IF(DataLog!$C3023=\"Log value\",DataLog!AI3023,\"\")","v":""},{"$f":"IF(DataLog!$C3023=\"Log value\",DataLog!AJ3023,\"\")","v":""},{"$f":"IF(DataLog!$C3023=\"Log value\",DataLog!AK3023,\"\")","v":""},{"$f":"IF(DataLog!$C3023=\"Log value\",DataLog!AL3023,\"\")","v":""},{"$f":"IF(DataLog!$C3023=\"Log value\",DataLog!AM3023,\"\")","v":""}]
[null,null,null,null,null,null,{"$f":"IF(DataLog!$C3024=\"Log value\",DataLog!D3024&\"_\"&TEXT(DataLog!B3024,\"åååå-mm-dd\"),\"\")","v":""},{"$f":"IF(DataLog!$C3024=\"Log value\",DataLog!E3024,\"\")","v":""},{"$f":"IF(DataLog!$C3024=\"Log value\",DataLog!F3024,\"\")","v":""},{"$f":"IF(DataLog!$C3024=\"Log value\",DataLog!G3024,\"\")","v":""},{"$f":"IF(DataLog!$C3024=\"Log value\",DataLog!H3024,\"\")","v":""},{"$f":"IF(DataLog!$C3024=\"Log value\",DataLog!I3024,\"\")","v":""},{"$f":"IF(DataLog!$C3024=\"Log value\",DataLog!J3024,\"\")","v":""},{"$f":"IF(DataLog!$C3024=\"Log value\",DataLog!K3024,\"\")","v":""},{"$f":"IF(DataLog!$C3024=\"Log value\",DataLog!L3024,\"\")","v":""},{"$f":"IF(DataLog!$C3024=\"Log value\",DataLog!M3024,\"\")","v":""},{"$f":"IF(DataLog!$C3024=\"Log value\",DataLog!N3024,\"\")","v":""},{"$f":"IF(DataLog!$C3024=\"Log value\",DataLog!O3024,\"\")","v":""},{"$f":"IF(DataLog!$C3024=\"Log value\",DataLog!P3024,\"\")","v":""},{"$f":"IF(DataLog!$C3024=\"Log value\",DataLog!Q3024,\"\")","v":""},{"$f":"IF(DataLog!$C3024=\"Log value\",DataLog!R3024,\"\")","v":""},{"$f":"IF(DataLog!$C3024=\"Log value\",DataLog!S3024,\"\")","v":""},{"$f":"IF(DataLog!$C3024=\"Log value\",DataLog!T3024,\"\")","v":""},{"$f":"IF(DataLog!$C3024=\"Log value\",DataLog!U3024,\"\")","v":""},{"$f":"IF(DataLog!$C3024=\"Log value\",DataLog!V3024,\"\")","v":""},{"$f":"IF(DataLog!$C3024=\"Log value\",DataLog!W3024,\"\")","v":""},{"$f":"IF(DataLog!$C3024=\"Log value\",DataLog!X3024,\"\")","v":""},{"$f":"IF(DataLog!$C3024=\"Log value\",DataLog!Y3024,\"\")","v":""},{"$f":"IF(DataLog!$C3024=\"Log value\",DataLog!Z3024,\"\")","v":""},{"$f":"IF(DataLog!$C3024=\"Log value\",DataLog!AA3024,\"\")","v":""},{"$f":"IF(DataLog!$C3024=\"Log value\",DataLog!AB3024,\"\")","v":""},{"$f":"IF(DataLog!$C3024=\"Log value\",DataLog!AC3024,\"\")","v":""},{"$f":"IF(DataLog!$C3024=\"Log value\",DataLog!AD3024,\"\")","v":""},{"$f":"IF(DataLog!$C3024=\"Log value\",DataLog!AE3024,\"\")","v":""},{"$f":"IF(DataLog!$C3024=\"Log value\",DataLog!AF3024,\"\")","v":""},{"$f":"IF(DataLog!$C3024=\"Log value\",DataLog!AG3024,\"\")","v":""},{"$f":"IF(DataLog!$C3024=\"Log value\",DataLog!AH3024,\"\")","v":""},{"$f":"IF(DataLog!$C3024=\"Log value\",DataLog!AI3024,\"\")","v":""},{"$f":"IF(DataLog!$C3024=\"Log value\",DataLog!AJ3024,\"\")","v":""},{"$f":"IF(DataLog!$C3024=\"Log value\",DataLog!AK3024,\"\")","v":""},{"$f":"IF(DataLog!$C3024=\"Log value\",DataLog!AL3024,\"\")","v":""},{"$f":"IF(DataLog!$C3024=\"Log value\",DataLog!AM3024,\"\")","v":""}]
[null,null,null,null,null,null,{"$f":"IF(DataLog!$C3027=\"Log value\",DataLog!D3027&\"_\"&TEXT(DataLog!B3027,\"åååå-mm-dd\"),\"\")","v":""},{"$f":"IF(DataLog!$C3027=\"Log value\",DataLog!E3027,\"\")","v":""},{"$f":"IF(DataLog!$C3027=\"Log value\",DataLog!F3027,\"\")","v":""},{"$f":"IF(DataLog!$C3027=\"Log value\",DataLog!G3027,\"\")","v":""},{"$f":"IF(DataLog!$C3027=\"Log value\",DataLog!H3027,\"\")","v":""},{"$f":"IF(DataLog!$C3027=\"Log value\",DataLog!I3027,\"\")","v":""},{"$f":"IF(DataLog!$C3027=\"Log value\",DataLog!J3027,\"\")","v":""},{"$f":"IF(DataLog!$C3027=\"Log value\",DataLog!K3027,\"\")","v":""},{"$f":"IF(DataLog!$C3027=\"Log value\",DataLog!L3027,\"\")","v":""},{"$f":"IF(DataLog!$C3027=\"Log value\",DataLog!M3027,\"\")","v":""},{"$f":"IF(DataLog!$C3027=\"Log value\",DataLog!N3027,\"\")","v":""},{"$f":"IF(DataLog!$C3027=\"Log value\",DataLog!O3027,\"\")","v":""},{"$f":"IF(DataLog!$C3027=\"Log value\",DataLog!P3027,\"\")","v":""},{"$f":"IF(DataLog!$C3027=\"Log value\",DataLog!Q3027,\"\")","v":""},{"$f":"IF(DataLog!$C3027=\"Log value\",DataLog!R3027,\"\")","v":""},{"$f":"IF(DataLog!$C3027=\"Log value\",DataLog!S3027,\"\")","v":""},{"$f":"IF(DataLog!$C3027=\"Log value\",DataLog!T3027,\"\")","v":""},{"$f":"IF(DataLog!$C3027=\"Log value\",DataLog!U3027,\"\")","v":""},{"$f":"IF(DataLog!$C3027=\"Log value\",DataLog!V3027,\"\")","v":""},{"$f":"IF(DataLog!$C3027=\"Log value\",DataLog!W3027,\"\")","v":""},{"$f":"IF(DataLog!$C3027=\"Log value\",DataLog!X3027,\"\")","v":""},{"$f":"IF(DataLog!$C3027=\"Log value\",DataLog!Y3027,\"\")","v":""},{"$f":"IF(DataLog!$C3027=\"Log value\",DataLog!Z3027,\"\")","v":""},{"$f":"IF(DataLog!$C3027=\"Log value\",DataLog!AA3027,\"\")","v":""},{"$f":"IF(DataLog!$C3027=\"Log value\",DataLog!AB3027,\"\")","v":""},{"$f":"IF(DataLog!$C3027=\"Log value\",DataLog!AC3027,\"\")","v":""},{"$f":"IF(DataLog!$C3027=\"Log value\",DataLog!AD3027,\"\")","v":""},{"$f":"IF(DataLog!$C3027=\"Log value\",DataLog!AE3027,\"\")","v":""},{"$f":"IF(DataLog!$C3027=\"Log value\",DataLog!AF3027,\"\")","v":""},{"$f":"IF(DataLog!$C3027=\"Log value\",DataLog!AG3027,\"\")","v":""},{"$f":"IF(DataLog!$C3027=\"Log value\",DataLog!AH3027,\"\")","v":""},{"$f":"IF(DataLog!$C3027=\"Log value\",DataLog!AI3027,\"\")","v":""},{"$f":"IF(DataLog!$C3027=\"Log value\",DataLog!AJ3027,\"\")","v":""},{"$f":"IF(DataLog!$C3027=\"Log value\",DataLog!AK3027,\"\")","v":""},{"$f":"IF(DataLog!$C3027=\"Log value\",DataLog!AL3027,\"\")","v":""},{"$f":"IF(DataLog!$C3027=\"Log value\",DataLog!AM3027,\"\")","v":""}]
[null,null,null,null,null,null,{"$f":"IF(DataLog!$C3028=\"Log value\",DataLog!D3028&\"_\"&TEXT(DataLog!B3028,\"åååå-mm-dd\"),\"\")","v":""},{"$f":"IF(DataLog!$C3028=\"Log value\",DataLog!E3028,\"\")","v":""},{"$f":"IF(DataLog!$C3028=\"Log value\",DataLog!F3028,\"\")","v":""},{"$f":"IF(DataLog!$C3028=\"Log value\",DataLog!G3028,\"\")","v":""},{"$f":"IF(DataLog!$C3028=\"Log value\",DataLog!H3028,\"\")","v":""},{"$f":"IF(DataLog!$C3028=\"Log value\",DataLog!I3028,\"\")","v":""},{"$f":"IF(DataLog!$C3028=\"Log value\",DataLog!J3028,\"\")","v":""},{"$f":"IF(DataLog!$C3028=\"Log value\",DataLog!K3028,\"\")","v":""},{"$f":"IF(DataLog!$C3028=\"Log value\",DataLog!L3028,\"\")","v":""},{"$f":"IF(DataLog!$C3028=\"Log value\",DataLog!M3028,\"\")","v":""},{"$f":"IF(DataLog!$C3028=\"Log value\",DataLog!N3028,\"\")","v":""},{"$f":"IF(DataLog!$C3028=\"Log value\",DataLog!O3028,\"\")","v":""},{"$f":"IF(DataLog!$C3028=\"Log value\",DataLog!P3028,\"\")","v":""},{"$f":"IF(DataLog!$C3028=\"Log value\",DataLog!Q3028,\"\")","v":""},{"$f":"IF(DataLog!$C3028=\"Log value\",DataLog!R3028,\"\")","v":""},{"$f":"IF(DataLog!$C3028=\"Log value\",DataLog!S3028,\"\")","v":""},{"$f":"IF(DataLog!$C3028=\"Log value\",DataLog!T3028,\"\")","v":""},{"$f":"IF(DataLog!$C3028=\"Log value\",DataLog!U3028,\"\")","v":""},{"$f":"IF(DataLog!$C3028=\"Log value\",DataLog!V3028,\"\")","v":""},{"$f":"IF(DataLog!$C3028=\"Log value\",DataLog!W3028,\"\")","v":""},{"$f":"IF(DataLog!$C3028=\"Log value\",DataLog!X3028,\"\")","v":""},{"$f":"IF(DataLog!$C3028=\"Log value\",DataLog!Y3028,\"\")","v":""},{"$f":"IF(DataLog!$C3028=\"Log value\",DataLog!Z3028,\"\")","v":""},{"$f":"IF(DataLog!$C3028=\"Log value\",DataLog!AA3028,\"\")","v":""},{"$f":"IF(DataLog!$C3028=\"Log value\",DataLog!AB3028,\"\")","v":""},{"$f":"IF(DataLog!$C3028=\"Log value\",DataLog!AC3028,\"\")","v":""},{"$f":"IF(DataLog!$C3028=\"Log value\",DataLog!AD3028,\"\")","v":""},{"$f":"IF(DataLog!$C3028=\"Log value\",DataLog!AE3028,\"\")","v":""},{"$f":"IF(DataLog!$C3028=\"Log value\",DataLog!AF3028,\"\")","v":""},{"$f":"IF(DataLog!$C3028=\"Log value\",DataLog!AG3028,\"\")","v":""},{"$f":"IF(DataLog!$C3028=\"Log value\",DataLog!AH3028,\"\")","v":""},{"$f":"IF(DataLog!$C3028=\"Log value\",DataLog!AI3028,\"\")","v":""},{"$f":"IF(DataLog!$C3028=\"Log value\",DataLog!AJ3028,\"\")","v":""},{"$f":"IF(DataLog!$C3028=\"Log value\",DataLog!AK3028,\"\")","v":""},{"$f":"IF(DataLog!$C3028=\"Log value\",DataLog!AL3028,\"\")","v":""},{"$f":"IF(DataLog!$C3028=\"Log value\",DataLog!AM3028,\"\")","v":""}]
[null,null,null,null,null,null,{"$f":"IF(DataLog!$C3031=\"Log value\",DataLog!D3031&\"_\"&TEXT(DataLog!B3031,\"åååå-mm-dd\"),\"\")","v":""},{"$f":"IF(DataLog!$C3031=\"Log value\",DataLog!E3031,\"\")","v":""},{"$f":"IF(DataLog!$C3031=\"Log value\",DataLog!F3031,\"\")","v":""},{"$f":"IF(DataLog!$C3031=\"Log value\",DataLog!G3031,\"\")","v":""},{"$f":"IF(DataLog!$C3031=\"Log value\",DataLog!H3031,\"\")","v":""},{"$f":"IF(DataLog!$C3031=\"Log value\",DataLog!I3031,\"\")","v":""},{"$f":"IF(DataLog!$C3031=\"Log value\",DataLog!J3031,\"\")","v":""},{"$f":"IF(DataLog!$C3031=\"Log value\",DataLog!K3031,\"\")","v":""},{"$f":"IF(DataLog!$C3031=\"Log value\",DataLog!L3031,\"\")","v":""},{"$f":"IF(DataLog!$C3031=\"Log value\",DataLog!M3031,\"\")","v":""},{"$f":"IF(DataLog!$C3031=\"Log value\",DataLog!N3031,\"\")","v":""},{"$f":"IF(DataLog!$C3031=\"Log value\",DataLog!O3031,\"\")","v":""},{"$f":"IF(DataLog!$C3031=\"Log value\",DataLog!P3031,\"\")","v":""},{"$f":"IF(DataLog!$C3031=\"Log value\",DataLog!Q3031,\"\")","v":""},{"$f":"IF(DataLog!$C3031=\"Log value\",DataLog!R3031,\"\")","v":""},{"$f":"IF(DataLog!$C3031=\"Log value\",DataLog!S3031,\"\")","v":""},{"$f":"IF(DataLog!$C3031=\"Log value\",DataLog!T3031,\"\")","v":""},{"$f":"IF(DataLog!$C3031=\"Log value\",DataLog!U3031,\"\")","v":""},{"$f":"IF(DataLog!$C3031=\"Log value\",DataLog!V3031,\"\")","v":""},{"$f":"IF(DataLog!$C3031=\"Log value\",DataLog!W3031,\"\")","v":""},{"$f":"IF(DataLog!$C3031=\"Log value\",DataLog!X3031,\"\")","v":""},{"$f":"IF(DataLog!$C3031=\"Log value\",DataLog!Y3031,\"\")","v":""},{"$f":"IF(DataLog!$C3031=\"Log value\",DataLog!Z3031,\"\")","v":""},{"$f":"IF(DataLog!$C3031=\"Log value\",DataLog!AA3031,\"\")","v":""},{"$f":"IF(DataLog!$C3031=\"Log value\",DataLog!AB3031,\"\")","v":""},{"$f":"IF(DataLog!$C3031=\"Log value\",DataLog!AC3031,\"\")","v":""},{"$f":"IF(DataLog!$C3031=\"Log value\",DataLog!AD3031,\"\")","v":""},{"$f":"IF(DataLog!$C3031=\"Log value\",DataLog!AE3031,\"\")","v":""},{"$f":"IF(DataLog!$C3031=\"Log value\",DataLog!AF3031,\"\")","v":""},{"$f":"IF(DataLog!$C3031=\"Log value\",DataLog!AG3031,\"\")","v":""},{"$f":"IF(DataLog!$C3031=\"Log value\",DataLog!AH3031,\"\")","v":""},{"$f":"IF(DataLog!$C3031=\"Log value\",DataLog!AI3031,\"\")","v":""},{"$f":"IF(DataLog!$C3031=\"Log value\",DataLog!AJ3031,\"\")","v":""},{"$f":"IF(DataLog!$C3031=\"Log value\",DataLog!AK3031,\"\")","v":""},{"$f":"IF(DataLog!$C3031=\"Log value\",DataLog!AL3031,\"\")","v":""},{"$f":"IF(DataLog!$C3031=\"Log value\",DataLog!AM3031,\"\")","v":""}]
[null,null,null,null,null,null,{"$f":"IF(DataLog!$C3033=\"Log value\",DataLog!D3033&\"_\"&TEXT(DataLog!B3033,\"åååå-mm-dd\"),\"\")","v":""},{"$f":"IF(DataLog!$C3033=\"Log value\",DataLog!E3033,\"\")","v":""},{"$f":"IF(DataLog!$C3033=\"Log value\",DataLog!F3033,\"\")","v":""},{"$f":"IF(DataLog!$C3033=\"Log value\",DataLog!G3033,\"\")","v":""},{"$f":"IF(DataLog!$C3033=\"Log value\",DataLog!H3033,\"\")","v":""},{"$f":"IF(DataLog!$C3033=\"Log value\",DataLog!I3033,\"\")","v":""},{"$f":"IF(DataLog!$C3033=\"Log value\",DataLog!J3033,\"\")","v":""},{"$f":"IF(DataLog!$C3033=\"Log value\",DataLog!K3033,\"\")","v":""},{"$f":"IF(DataLog!$C3033=\"Log value\",DataLog!L3033,\"\")","v":""},{"$f":"IF(DataLog!$C3033=\"Log value\",DataLog!M3033,\"\")","v":""},{"$f":"IF(DataLog!$C3033=\"Log value\",DataLog!N3033,\"\")","v":""},{"$f":"IF(DataLog!$C3033=\"Log value\",DataLog!O3033,\"\")","v":""},{"$f":"IF(DataLog!$C3033=\"Log value\",DataLog!P3033,\"\")","v":""},{"$f":"IF(DataLog!$C3033=\"Log value\",DataLog!Q3033,\"\")","v":""},{"$f":"IF(DataLog!$C3033=\"Log value\",DataLog!R3033,\"\")","v":""},{"$f":"IF(DataLog!$C3033=\"Log value\",DataLog!S3033,\"\")","v":""},{"$f":"IF(DataLog!$C3033=\"Log value\",DataLog!T3033,\"\")","v":""},{"$f":"IF(DataLog!$C3033=\"Log value\",DataLog!U3033,\"\")","v":""},{"$f":"IF(DataLog!$C3033=\"Log value\",DataLog!V3033,\"\")","v":""},{"$f":"IF(DataLog!$C3033=\"Log value\",DataLog!W3033,\"\")","v":""},{"$f":"IF(DataLog!$C3033=\"Log value\",DataLog!X3033,\"\")","v":""},{"$f":"IF(DataLog!$C3033=\"Log value\",DataLog!Y3033,\"\")","v":""},{"$f":"IF(DataLog!$C3033=\"Log value\",DataLog!Z3033,\"\")","v":""},{"$f":"IF(DataLog!$C3033=\"Log value\",DataLog!AA3033,\"\")","v":""},{"$f":"IF(DataLog!$C3033=\"Log value\",DataLog!AB3033,\"\")","v":""},{"$f":"IF(DataLog!$C3033=\"Log value\",DataLog!AC3033,\"\")","v":""},{"$f":"IF(DataLog!$C3033=\"Log value\",DataLog!AD3033,\"\")","v":""},{"$f":"IF(DataLog!$C3033=\"Log value\",DataLog!AE3033,\"\")","v":""},{"$f":"IF(DataLog!$C3033=\"Log value\",DataLog!AF3033,\"\")","v":""},{"$f":"IF(DataLog!$C3033=\"Log value\",DataLog!AG3033,\"\")","v":""},{"$f":"IF(DataLog!$C3033=\"Log value\",DataLog!AH3033,\"\")","v":""},{"$f":"IF(DataLog!$C3033=\"Log value\",DataLog!AI3033,\"\")","v":""},{"$f":"IF(DataLog!$C3033=\"Log value\",DataLog!AJ3033,\"\")","v":""},{"$f":"IF(DataLog!$C3033=\"Log value\",DataLog!AK3033,\"\")","v":""},{"$f":"IF(DataLog!$C3033=\"Log value\",DataLog!AL3033,\"\")","v":""},{"$f":"IF(DataLog!$C3033=\"Log value\",DataLog!AM3033,\"\")","v":""}]
[null,null,null,null,null,null,{"$f":"IF(DataLog!$C3036=\"Log value\",DataLog!D3036&\"_\"&TEXT(DataLog!B3036,\"åååå-mm-dd\"),\"\")","v":""},{"$f":"IF(DataLog!$C3036=\"Log value\",DataLog!E3036,\"\")","v":""},{"$f":"IF(DataLog!$C3036=\"Log value\",DataLog!F3036,\"\")","v":""},{"$f":"IF(DataLog!$C3036=\"Log value\",DataLog!G3036,\"\")","v":""},{"$f":"IF(DataLog!$C3036=\"Log value\",DataLog!H3036,\"\")","v":""},{"$f":"IF(DataLog!$C3036=\"Log value\",DataLog!I3036,\"\")","v":""},{"$f":"IF(DataLog!$C3036=\"Log value\",DataLog!J3036,\"\")","v":""},{"$f":"IF(DataLog!$C3036=\"Log value\",DataLog!K3036,\"\")","v":""},{"$f":"IF(DataLog!$C3036=\"Log value\",DataLog!L3036,\"\")","v":""},{"$f":"IF(DataLog!$C3036=\"Log value\",DataLog!M3036,\"\")","v":""},{"$f":"IF(DataLog!$C3036=\"Log value\",DataLog!N3036,\"\")","v":""},{"$f":"IF(DataLog!$C3036=\"Log value\",DataLog!O3036,\"\")","v":""},{"$f":"IF(DataLog!$C3036=\"Log value\",DataLog!P3036,\"\")","v":""},{"$f":"IF(DataLog!$C3036=\"Log value\",DataLog!Q3036,\"\")","v":""},{"$f":"IF(DataLog!$C3036=\"Log value\",DataLog!R3036,\"\")","v":""},{"$f":"IF(DataLog!$C3036=\"Log value\",DataLog!S3036,\"\")","v":""},{"$f":"IF(DataLog!$C3036=\"Log value\",DataLog!T3036,\"\")","v":""},{"$f":"IF(DataLog!$C3036=\"Log value\",DataLog!U3036,\"\")","v":""},{"$f":"IF(DataLog!$C3036=\"Log value\",DataLog!V3036,\"\")","v":""},{"$f":"IF(DataLog!$C3036=\"Log value\",DataLog!W3036,\"\")","v":""},{"$f":"IF(DataLog!$C3036=\"Log value\",DataLog!X3036,\"\")","v":""},{"$f":"IF(DataLog!$C3036=\"Log value\",DataLog!Y3036,\"\")","v":""},{"$f":"IF(DataLog!$C3036=\"Log value\",DataLog!Z3036,\"\")","v":""},{"$f":"IF(DataLog!$C3036=\"Log value\",DataLog!AA3036,\"\")","v":""},{"$f":"IF(DataLog!$C3036=\"Log value\",DataLog!AB3036,\"\")","v":""},{"$f":"IF(DataLog!$C3036=\"Log value\",DataLog!AC3036,\"\")","v":""},{"$f":"IF(DataLog!$C3036=\"Log value\",DataLog!AD3036,\"\")","v":""},{"$f":"IF(DataLog!$C3036=\"Log value\",DataLog!AE3036,\"\")","v":""},{"$f":"IF(DataLog!$C3036=\"Log value\",DataLog!AF3036,\"\")","v":""},{"$f":"IF(DataLog!$C3036=\"Log value\",DataLog!AG3036,\"\")","v":""},{"$f":"IF(DataLog!$C3036=\"Log value\",DataLog!AH3036,\"\")","v":""},{"$f":"IF(DataLog!$C3036=\"Log value\",DataLog!AI3036,\"\")","v":""},{"$f":"IF(DataLog!$C3036=\"Log value\",DataLog!AJ3036,\"\")","v":""},{"$f":"IF(DataLog!$C3036=\"Log value\",DataLog!AK3036,\"\")","v":""},{"$f":"IF(DataLog!$C3036=\"Log value\",DataLog!AL3036,\"\")","v":""},{"$f":"IF(DataLog!$C3036=\"Log value\",DataLog!AM3036,\"\")","v":""}]
[null,null,null,null,null,null,{"$f":"IF(DataLog!$C3037=\"Log value\",DataLog!D3037&\"_\"&TEXT(DataLog!B3037,\"åååå-mm-dd\"),\"\")","v":""},{"$f":"IF(DataLog!$C3037=\"Log value\",DataLog!E3037,\"\")","v":""},{"$f":"IF(DataLog!$C3037=\"Log value\",DataLog!F3037,\"\")","v":""},{"$f":"IF(DataLog!$C3037=\"Log value\",DataLog!G3037,\"\")","v":""},{"$f":"IF(DataLog!$C3037=\"Log value\",DataLog!H3037,\"\")","v":""},{"$f":"IF(DataLog!$C3037=\"Log value\",DataLog!I3037,\"\")","v":""},{"$f":"IF(DataLog!$C3037=\"Log value\",DataLog!J3037,\"\")","v":""},{"$f":"IF(DataLog!$C3037=\"Log value\",DataLog!K3037,\"\")","v":""},{"$f":"IF(DataLog!$C3037=\"Log value\",DataLog!L3037,\"\")","v":""},{"$f":"IF(DataLog!$C3037=\"Log value\",DataLog!M3037,\"\")","v":""},{"$f":"IF(DataLog!$C3037=\"Log value\",DataLog!N3037,\"\")","v":""},{"$f":"IF(DataLog!$C3037=\"Log value\",DataLog!O3037,\"\")","v":""},{"$f":"IF(DataLog!$C3037=\"Log value\",DataLog!P3037,\"\")","v":""},{"$f":"IF(DataLog!$C3037=\"Log value\",DataLog!Q3037,\"\")","v":""},{"$f":"IF(DataLog!$C3037=\"Log value\",DataLog!R3037,\"\")","v":""},{"$f":"IF(DataLog!$C3037=\"Log value\",DataLog!S3037,\"\")","v":""},{"$f":"IF(DataLog!$C3037=\"Log value\",DataLog!T3037,\"\")","v":""},{"$f":"IF(DataLog!$C3037=\"Log value\",DataLog!U3037,\"\")","v":""},{"$f":"IF(DataLog!$C3037=\"Log value\",DataLog!V3037,\"\")","v":""},{"$f":"IF(DataLog!$C3037=\"Log value\",DataLog!W3037,\"\")","v":""},{"$f":"IF(DataLog!$C3037=\"Log value\",DataLog!X3037,\"\")","v":""},{"$f":"IF(DataLog!$C3037=\"Log value\",DataLog!Y3037,\"\")","v":""},{"$f":"IF(DataLog!$C3037=\"Log value\",DataLog!Z3037,\"\")","v":""},{"$f":"IF(DataLog!$C3037=\"Log value\",DataLog!AA3037,\"\")","v":""},{"$f":"IF(DataLog!$C3037=\"Log value\",DataLog!AB3037,\"\")","v":""},{"$f":"IF(DataLog!$C3037=\"Log value\",DataLog!AC3037,\"\")","v":""},{"$f":"IF(DataLog!$C3037=\"Log value\",DataLog!AD3037,\"\")","v":""},{"$f":"IF(DataLog!$C3037=\"Log value\",DataLog!AE3037,\"\")","v":""},{"$f":"IF(DataLog!$C3037=\"Log value\",DataLog!AF3037,\"\")","v":""},{"$f":"IF(DataLog!$C3037=\"Log value\",DataLog!AG3037,\"\")","v":""},{"$f":"IF(DataLog!$C3037=\"Log value\",DataLog!AH3037,\"\")","v":""},{"$f":"IF(DataLog!$C3037=\"Log value\",DataLog!AI3037,\"\")","v":""},{"$f":"IF(DataLog!$C3037=\"Log value\",DataLog!AJ3037,\"\")","v":""},{"$f":"IF(DataLog!$C3037=\"Log value\",DataLog!AK3037,\"\")","v":""},{"$f":"IF(DataLog!$C3037=\"Log value\",DataLog!AL3037,\"\")","v":""},{"$f":"IF(DataLog!$C3037=\"Log value\",DataLog!AM3037,\"\")","v":""}]
[null,null,null,null,null,null,{"$f":"IF(DataLog!$C3041=\"Log value\",DataLog!D3041&\"_\"&TEXT(DataLog!B3041,\"åååå-mm-dd\"),\"\")","v":""},{"$f":"IF(DataLog!$C3041=\"Log value\",DataLog!E3041,\"\")","v":""},{"$f":"IF(DataLog!$C3041=\"Log value\",DataLog!F3041,\"\")","v":""},{"$f":"IF(DataLog!$C3041=\"Log value\",DataLog!G3041,\"\")","v":""},{"$f":"IF(DataLog!$C3041=\"Log value\",DataLog!H3041,\"\")","v":""},{"$f":"IF(DataLog!$C3041=\"Log value\",DataLog!I3041,\"\")","v":""},{"$f":"IF(DataLog!$C3041=\"Log value\",DataLog!J3041,\"\")","v":""},{"$f":"IF(DataLog!$C3041=\"Log value\",DataLog!K3041,\"\")","v":""},{"$f":"IF(DataLog!$C3041=\"Log value\",DataLog!L3041,\"\")","v":""},{"$f":"IF(DataLog!$C3041=\"Log value\",DataLog!M3041,\"\")","v":""},{"$f":"IF(DataLog!$C3041=\"Log value\",DataLog!N3041,\"\")","v":""},{"$f":"IF(DataLog!$C3041=\"Log value\",DataLog!O3041,\"\")","v":""},{"$f":"IF(DataLog!$C3041=\"Log value\",DataLog!P3041,\"\")","v":""},{"$f":"IF(DataLog!$C3041=\"Log value\",DataLog!Q3041,\"\")","v":""},{"$f":"IF(DataLog!$C3041=\"Log value\",DataLog!R3041,\"\")","v":""},{"$f":"IF(DataLog!$C3041=\"Log value\",DataLog!S3041,\"\")","v":""},{"$f":"IF(DataLog!$C3041=\"Log value\",DataLog!T3041,\"\")","v":""},{"$f":"IF(DataLog!$C3041=\"Log value\",DataLog!U3041,\"\")","v":""},{"$f":"IF(DataLog!$C3041=\"Log value\",DataLog!V3041,\"\")","v":""},{"$f":"IF(DataLog!$C3041=\"Log value\",DataLog!W3041,\"\")","v":""},{"$f":"IF(DataLog!$C3041=\"Log value\",DataLog!X3041,\"\")","v":""},{"$f":"IF(DataLog!$C3041=\"Log value\",DataLog!Y3041,\"\")","v":""},{"$f":"IF(DataLog!$C3041=\"Log value\",DataLog!Z3041,\"\")","v":""},{"$f":"IF(DataLog!$C3041=\"Log value\",DataLog!AA3041,\"\")","v":""},{"$f":"IF(DataLog!$C3041=\"Log value\",DataLog!AB3041,\"\")","v":""},{"$f":"IF(DataLog!$C3041=\"Log value\",DataLog!AC3041,\"\")","v":""},{"$f":"IF(DataLog!$C3041=\"Log value\",DataLog!AD3041,\"\")","v":""},{"$f":"IF(DataLog!$C3041=\"Log value\",DataLog!AE3041,\"\")","v":""},{"$f":"IF(DataLog!$C3041=\"Log value\",DataLog!AF3041,\"\")","v":""},{"$f":"IF(DataLog!$C3041=\"Log value\",DataLog!AG3041,\"\")","v":""},{"$f":"IF(DataLog!$C3041=\"Log value\",DataLog!AH3041,\"\")","v":""},{"$f":"IF(DataLog!$C3041=\"Log value\",DataLog!AI3041,\"\")","v":""},{"$f":"IF(DataLog!$C3041=\"Log value\",DataLog!AJ3041,\"\")","v":""},{"$f":"IF(DataLog!$C3041=\"Log value\",DataLog!AK3041,\"\")","v":""},{"$f":"IF(DataLog!$C3041=\"Log value\",DataLog!AL3041,\"\")","v":""},{"$f":"IF(DataLog!$C3041=\"Log value\",DataLog!AM3041,\"\")","v":""}]
[null,null,null,null,null,null,{"$f":"IF(DataLog!$C3042=\"Log value\",DataLog!D3042&\"_\"&TEXT(DataLog!B3042,\"åååå-mm-dd\"),\"\")","v":""},{"$f":"IF(DataLog!$C3042=\"Log value\",DataLog!E3042,\"\")","v":""},{"$f":"IF(DataLog!$C3042=\"Log value\",DataLog!F3042,\"\")","v":""},{"$f":"IF(DataLog!$C3042=\"Log value\",DataLog!G3042,\"\")","v":""},{"$f":"IF(DataLog!$C3042=\"Log value\",DataLog!H3042,\"\")","v":""},{"$f":"IF(DataLog!$C3042=\"Log value\",DataLog!I3042,\"\")","v":""},{"$f":"IF(DataLog!$C3042=\"Log value\",DataLog!J3042,\"\")","v":""},{"$f":"IF(DataLog!$C3042=\"Log value\",DataLog!K3042,\"\")","v":""},{"$f":"IF(DataLog!$C3042=\"Log value\",DataLog!L3042,\"\")","v":""},{"$f":"IF(DataLog!$C3042=\"Log value\",DataLog!M3042,\"\")","v":""},{"$f":"IF(DataLog!$C3042=\"Log value\",DataLog!N3042,\"\")","v":""},{"$f":"IF(DataLog!$C3042=\"Log value\",DataLog!O3042,\"\")","v":""},{"$f":"IF(DataLog!$C3042=\"Log value\",DataLog!P3042,\"\")","v":""},{"$f":"IF(DataLog!$C3042=\"Log value\",DataLog!Q3042,\"\")","v":""},{"$f":"IF(DataLog!$C3042=\"Log value\",DataLog!R3042,\"\")","v":""},{"$f":"IF(DataLog!$C3042=\"Log value\",DataLog!S3042,\"\")","v":""},{"$f":"IF(DataLog!$C3042=\"Log value\",DataLog!T3042,\"\")","v":""},{"$f":"IF(DataLog!$C3042=\"Log value\",DataLog!U3042,\"\")","v":""},{"$f":"IF(DataLog!$C3042=\"Log value\",DataLog!V3042,\"\")","v":""},{"$f":"IF(DataLog!$C3042=\"Log value\",DataLog!W3042,\"\")","v":""},{"$f":"IF(DataLog!$C3042=\"Log value\",DataLog!X3042,\"\")","v":""},{"$f":"IF(DataLog!$C3042=\"Log value\",DataLog!Y3042,\"\")","v":""},{"$f":"IF(DataLog!$C3042=\"Log value\",DataLog!Z3042,\"\")","v":""},{"$f":"IF(DataLog!$C3042=\"Log value\",DataLog!AA3042,\"\")","v":""},{"$f":"IF(DataLog!$C3042=\"Log value\",DataLog!AB3042,\"\")","v":""},{"$f":"IF(DataLog!$C3042=\"Log value\",DataLog!AC3042,\"\")","v":""},{"$f":"IF(DataLog!$C3042=\"Log value\",DataLog!AD3042,\"\")","v":""},{"$f":"IF(DataLog!$C3042=\"Log value\",DataLog!AE3042,\"\")","v":""},{"$f":"IF(DataLog!$C3042=\"Log value\",DataLog!AF3042,\"\")","v":""},{"$f":"IF(DataLog!$C3042=\"Log value\",DataLog!AG3042,\"\")","v":""},{"$f":"IF(DataLog!$C3042=\"Log value\",DataLog!AH3042,\"\")","v":""},{"$f":"IF(DataLog!$C3042=\"Log value\",DataLog!AI3042,\"\")","v":""},{"$f":"IF(DataLog!$C3042=\"Log value\",DataLog!AJ3042,\"\")","v":""},{"$f":"IF(DataLog!$C3042=\"Log value\",DataLog!AK3042,\"\")","v":""},{"$f":"IF(DataLog!$C3042=\"Log value\",DataLog!AL3042,\"\")","v":""},{"$f":"IF(DataLog!$C3042=\"Log value\",DataLog!AM3042,\"\")","v":""}]
[null,null,null,null,null,null,{"$f":"IF(DataLog!$C3045=\"Log value\",DataLog!D3045&\"_\"&TEXT(DataLog!B3045,\"åååå-mm-dd\"),\"\")","v":""},{"$f":"IF(DataLog!$C3045=\"Log value\",DataLog!E3045,\"\")","v":""},{"$f":"IF(DataLog!$C3045=\"Log value\",DataLog!F3045,\"\")","v":""},{"$f":"IF(DataLog!$C3045=\"Log value\",DataLog!G3045,\"\")","v":""},{"$f":"IF(DataLog!$C3045=\"Log value\",DataLog!H3045,\"\")","v":""},{"$f":"IF(DataLog!$C3045=\"Log value\",DataLog!I3045,\"\")","v":""},{"$f":"IF(DataLog!$C3045=\"Log value\",DataLog!J3045,\"\")","v":""},{"$f":"IF(DataLog!$C3045=\"Log value\",DataLog!K3045,\"\")","v":""},{"$f":"IF(DataLog!$C3045=\"Log value\",DataLog!L3045,\"\")","v":""},{"$f":"IF(DataLog!$C3045=\"Log value\",DataLog!M3045,\"\")","v":""},{"$f":"IF(DataLog!$C3045=\"Log value\",DataLog!N3045,\"\")","v":""},{"$f":"IF(DataLog!$C3045=\"Log value\",DataLog!O3045,\"\")","v":""},{"$f":"IF(DataLog!$C3045=\"Log value\",DataLog!P3045,\"\")","v":""},{"$f":"IF(DataLog!$C3045=\"Log value\",DataLog!Q3045,\"\")","v":""},{"$f":"IF(DataLog!$C3045=\"Log value\",DataLog!R3045,\"\")","v":""},{"$f":"IF(DataLog!$C3045=\"Log value\",DataLog!S3045,\"\")","v":""},{"$f":"IF(DataLog!$C3045=\"Log value\",DataLog!T3045,\"\")","v":""},{"$f":"IF(DataLog!$C3045=\"Log value\",DataLog!U3045,\"\")","v":""},{"$f":"IF(DataLog!$C3045=\"Log value\",DataLog!V3045,\"\")","v":""},{"$f":"IF(DataLog!$C3045=\"Log value\",DataLog!W3045,\"\")","v":""},{"$f":"IF(DataLog!$C3045=\"Log value\",DataLog!X3045,\"\")","v":""},{"$f":"IF(DataLog!$C3045=\"Log value\",DataLog!Y3045,\"\")","v":""},{"$f":"IF(DataLog!$C3045=\"Log value\",DataLog!Z3045,\"\")","v":""},{"$f":"IF(DataLog!$C3045=\"Log value\",DataLog!AA3045,\"\")","v":""},{"$f":"IF(DataLog!$C3045=\"Log value\",DataLog!AB3045,\"\")","v":""},{"$f":"IF(DataLog!$C3045=\"Log value\",DataLog!AC3045,\"\")","v":""},{"$f":"IF(DataLog!$C3045=\"Log value\",DataLog!AD3045,\"\")","v":""},{"$f":"IF(DataLog!$C3045=\"Log value\",DataLog!AE3045,\"\")","v":""},{"$f":"IF(DataLog!$C3045=\"Log value\",DataLog!AF3045,\"\")","v":""},{"$f":"IF(DataLog!$C3045=\"Log value\",DataLog!AG3045,\"\")","v":""},{"$f":"IF(DataLog!$C3045=\"Log value\",DataLog!AH3045,\"\")","v":""},{"$f":"IF(DataLog!$C3045=\"Log value\",DataLog!AI3045,\"\")","v":""},{"$f":"IF(DataLog!$C3045=\"Log value\",DataLog!AJ3045,\"\")","v":""},{"$f":"IF(DataLog!$C3045=\"Log value\",DataLog!AK3045,\"\")","v":""},{"$f":"IF(DataLog!$C3045=\"Log value\",DataLog!AL3045,\"\")","v":""},{"$f":"IF(DataLog!$C3045=\"Log value\",DataLog!AM3045,\"\")","v":""}]
[null,null,null,null,null,null,{"$f":"IF(DataLog!$C3046=\"Log value\",DataLog!D3046&\"_\"&TEXT(DataLog!B3046,\"åååå-mm-dd\"),\"\")","v":""},{"$f":"IF(DataLog!$C3046=\"Log value\",DataLog!E3046,\"\")","v":""},{"$f":"IF(DataLog!$C3046=\"Log value\",DataLog!F3046,\"\")","v":""},{"$f":"IF(DataLog!$C3046=\"Log value\",DataLog!G3046,\"\")","v":""},{"$f":"IF(DataLog!$C3046=\"Log value\",DataLog!H3046,\"\")","v":""},{"$f":"IF(DataLog!$C3046=\"Log value\",DataLog!I3046,\"\")","v":""},{"$f":"IF(DataLog!$C3046=\"Log value\",DataLog!J3046,\"\")","v":""},{"$f":"IF(DataLog!$C3046=\"Log value\",DataLog!K3046,\"\")","v":""},{"$f":"IF(DataLog!$C3046=\"Log value\",DataLog!L3046,\"\")","v":""},{"$f":"IF(DataLog!$C3046=\"Log value\",DataLog!M3046,\"\")","v":""},{"$f":"IF(DataLog!$C3046=\"Log value\",DataLog!N3046,\"\")","v":""},{"$f":"IF(DataLog!$C3046=\"Log value\",DataLog!O3046,\"\")","v":""},{"$f":"IF(DataLog!$C3046=\"Log value\",DataLog!P3046,\"\")","v":""},{"$f":"IF(DataLog!$C3046=\"Log value\",DataLog!Q3046,\"\")","v":""},{"$f":"IF(DataLog!$C3046=\"Log value\",DataLog!R3046,\"\")","v":""},{"$f":"IF(DataLog!$C3046=\"Log value\",DataLog!S3046,\"\")","v":""},{"$f":"IF(DataLog!$C3046=\"Log value\",DataLog!T3046,\"\")","v":""},{"$f":"IF(DataLog!$C3046=\"Log value\",DataLog!U3046,\"\")","v":""},{"$f":"IF(DataLog!$C3046=\"Log value\",DataLog!V3046,\"\")","v":""},{"$f":"IF(DataLog!$C3046=\"Log value\",DataLog!W3046,\"\")","v":""},{"$f":"IF(DataLog!$C3046=\"Log value\",DataLog!X3046,\"\")","v":""},{"$f":"IF(DataLog!$C3046=\"Log value\",DataLog!Y3046,\"\")","v":""},{"$f":"IF(DataLog!$C3046=\"Log value\",DataLog!Z3046,\"\")","v":""},{"$f":"IF(DataLog!$C3046=\"Log value\",DataLog!AA3046,\"\")","v":""},{"$f":"IF(DataLog!$C3046=\"Log value\",DataLog!AB3046,\"\")","v":""},{"$f":"IF(DataLog!$C3046=\"Log value\",DataLog!AC3046,\"\")","v":""},{"$f":"IF(DataLog!$C3046=\"Log value\",DataLog!AD3046,\"\")","v":""},{"$f":"IF(DataLog!$C3046=\"Log value\",DataLog!AE3046,\"\")","v":""},{"$f":"IF(DataLog!$C3046=\"Log value\",DataLog!AF3046,\"\")","v":""},{"$f":"IF(DataLog!$C3046=\"Log value\",DataLog!AG3046,\"\")","v":""},{"$f":"IF(DataLog!$C3046=\"Log value\",DataLog!AH3046,\"\")","v":""},{"$f":"IF(DataLog!$C3046=\"Log value\",DataLog!AI3046,\"\")","v":""},{"$f":"IF(DataLog!$C3046=\"Log value\",DataLog!AJ3046,\"\")","v":""},{"$f":"IF(DataLog!$C3046=\"Log value\",DataLog!AK3046,\"\")","v":""},{"$f":"IF(DataLog!$C3046=\"Log value\",DataLog!AL3046,\"\")","v":""},{"$f":"IF(DataLog!$C3046=\"Log value\",DataLog!AM3046,\"\")","v":""}]
[null,null,null,null,null,null,{"$f":"IF(DataLog!$C3049=\"Log value\",DataLog!D3049&\"_\"&TEXT(DataLog!B3049,\"åååå-mm-dd\"),\"\")","v":""},{"$f":"IF(DataLog!$C3049=\"Log value\",DataLog!E3049,\"\")","v":""},{"$f":"IF(DataLog!$C3049=\"Log value\",DataLog!F3049,\"\")","v":""},{"$f":"IF(DataLog!$C3049=\"Log value\",DataLog!G3049,\"\")","v":""},{"$f":"IF(DataLog!$C3049=\"Log value\",DataLog!H3049,\"\")","v":""},{"$f":"IF(DataLog!$C3049=\"Log value\",DataLog!I3049,\"\")","v":""},{"$f":"IF(DataLog!$C3049=\"Log value\",DataLog!J3049,\"\")","v":""},{"$f":"IF(DataLog!$C3049=\"Log value\",DataLog!K3049,\"\")","v":""},{"$f":"IF(DataLog!$C3049=\"Log value\",DataLog!L3049,\"\")","v":""},{"$f":"IF(DataLog!$C3049=\"Log value\",DataLog!M3049,\"\")","v":""},{"$f":"IF(DataLog!$C3049=\"Log value\",DataLog!N3049,\"\")","v":""},{"$f":"IF(DataLog!$C3049=\"Log value\",DataLog!O3049,\"\")","v":""},{"$f":"IF(DataLog!$C3049=\"Log value\",DataLog!P3049,\"\")","v":""},{"$f":"IF(DataLog!$C3049=\"Log value\",DataLog!Q3049,\"\")","v":""},{"$f":"IF(DataLog!$C3049=\"Log value\",DataLog!R3049,\"\")","v":""},{"$f":"IF(DataLog!$C3049=\"Log value\",DataLog!S3049,\"\")","v":""},{"$f":"IF(DataLog!$C3049=\"Log value\",DataLog!T3049,\"\")","v":""},{"$f":"IF(DataLog!$C3049=\"Log value\",DataLog!U3049,\"\")","v":""},{"$f":"IF(DataLog!$C3049=\"Log value\",DataLog!V3049,\"\")","v":""},{"$f":"IF(DataLog!$C3049=\"Log value\",DataLog!W3049,\"\")","v":""},{"$f":"IF(DataLog!$C3049=\"Log value\",DataLog!X3049,\"\")","v":""},{"$f":"IF(DataLog!$C3049=\"Log value\",DataLog!Y3049,\"\")","v":""},{"$f":"IF(DataLog!$C3049=\"Log value\",DataLog!Z3049,\"\")","v":""},{"$f":"IF(DataLog!$C3049=\"Log value\",DataLog!AA3049,\"\")","v":""},{"$f":"IF(DataLog!$C3049=\"Log value\",DataLog!AB3049,\"\")","v":""},{"$f":"IF(DataLog!$C3049=\"Log value\",DataLog!AC3049,\"\")","v":""},{"$f":"IF(DataLog!$C3049=\"Log value\",DataLog!AD3049,\"\")","v":""},{"$f":"IF(DataLog!$C3049=\"Log value\",DataLog!AE3049,\"\")","v":""},{"$f":"IF(DataLog!$C3049=\"Log value\",DataLog!AF3049,\"\")","v":""},{"$f":"IF(DataLog!$C3049=\"Log value\",DataLog!AG3049,\"\")","v":""},{"$f":"IF(DataLog!$C3049=\"Log value\",DataLog!AH3049,\"\")","v":""},{"$f":"IF(DataLog!$C3049=\"Log value\",DataLog!AI3049,\"\")","v":""},{"$f":"IF(DataLog!$C3049=\"Log value\",DataLog!AJ3049,\"\")","v":""},{"$f":"IF(DataLog!$C3049=\"Log value\",DataLog!AK3049,\"\")","v":""},{"$f":"IF(DataLog!$C3049=\"Log value\",DataLog!AL3049,\"\")","v":""},{"$f":"IF(DataLog!$C3049=\"Log value\",DataLog!AM3049,\"\")","v":""}]
[null,null,null,null,null,null,{"$f":"IF(DataLog!$C3051=\"Log value\",DataLog!D3051&\"_\"&TEXT(DataLog!B3051,\"åååå-mm-dd\"),\"\")","v":""},{"$f":"IF(DataLog!$C3051=\"Log value\",DataLog!E3051,\"\")","v":""},{"$f":"IF(DataLog!$C3051=\"Log value\",DataLog!F3051,\"\")","v":""},{"$f":"IF(DataLog!$C3051=\"Log value\",DataLog!G3051,\"\")","v":""},{"$f":"IF(DataLog!$C3051=\"Log value\",DataLog!H3051,\"\")","v":""},{"$f":"IF(DataLog!$C3051=\"Log value\",DataLog!I3051,\"\")","v":""},{"$f":"IF(DataLog!$C3051=\"Log value\",DataLog!J3051,\"\")","v":""},{"$f":"IF(DataLog!$C3051=\"Log value\",DataLog!K3051,\"\")","v":""},{"$f":"IF(DataLog!$C3051=\"Log value\",DataLog!L3051,\"\")","v":""},{"$f":"IF(DataLog!$C3051=\"Log value\",DataLog!M3051,\"\")","v":""},{"$f":"IF(DataLog!$C3051=\"Log value\",DataLog!N3051,\"\")","v":""},{"$f":"IF(DataLog!$C3051=\"Log value\",DataLog!O3051,\"\")","v":""},{"$f":"IF(DataLog!$C3051=\"Log value\",DataLog!P3051,\"\")","v":""},{"$f":"IF(DataLog!$C3051=\"Log value\",DataLog!Q3051,\"\")","v":""},{"$f":"IF(DataLog!$C3051=\"Log value\",DataLog!R3051,\"\")","v":""},{"$f":"IF(DataLog!$C3051=\"Log value\",DataLog!S3051,\"\")","v":""},{"$f":"IF(DataLog!$C3051=\"Log value\",DataLog!T3051,\"\")","v":""},{"$f":"IF(DataLog!$C3051=\"Log value\",DataLog!U3051,\"\")","v":""},{"$f":"IF(DataLog!$C3051=\"Log value\",DataLog!V3051,\"\")","v":""},{"$f":"IF(DataLog!$C3051=\"Log value\",DataLog!W3051,\"\")","v":""},{"$f":"IF(DataLog!$C3051=\"Log value\",DataLog!X3051,\"\")","v":""},{"$f":"IF(DataLog!$C3051=\"Log value\",DataLog!Y3051,\"\")","v":""},{"$f":"IF(DataLog!$C3051=\"Log value\",DataLog!Z3051,\"\")","v":""},{"$f":"IF(DataLog!$C3051=\"Log value\",DataLog!AA3051,\"\")","v":""},{"$f":"IF(DataLog!$C3051=\"Log value\",DataLog!AB3051,\"\")","v":""},{"$f":"IF(DataLog!$C3051=\"Log value\",DataLog!AC3051,\"\")","v":""},{"$f":"IF(DataLog!$C3051=\"Log value\",DataLog!AD3051,\"\")","v":""},{"$f":"IF(DataLog!$C3051=\"Log value\",DataLog!AE3051,\"\")","v":""},{"$f":"IF(DataLog!$C3051=\"Log value\",DataLog!AF3051,\"\")","v":""},{"$f":"IF(DataLog!$C3051=\"Log value\",DataLog!AG3051,\"\")","v":""},{"$f":"IF(DataLog!$C3051=\"Log value\",DataLog!AH3051,\"\")","v":""},{"$f":"IF(DataLog!$C3051=\"Log value\",DataLog!AI3051,\"\")","v":""},{"$f":"IF(DataLog!$C3051=\"Log value\",DataLog!AJ3051,\"\")","v":""},{"$f":"IF(DataLog!$C3051=\"Log value\",DataLog!AK3051,\"\")","v":""},{"$f":"IF(DataLog!$C3051=\"Log value\",DataLog!AL3051,\"\")","v":""},{"$f":"IF(DataLog!$C3051=\"Log value\",DataLog!AM3051,\"\")","v":""}]
[null,null,null,null,null,null,{"$f":"IF(DataLog!$C3054=\"Log value\",DataLog!D3054&\"_\"&TEXT(DataLog!B3054,\"åååå-mm-dd\"),\"\")","v":""},{"$f":"IF(DataLog!$C3054=\"Log value\",DataLog!E3054,\"\")","v":""},{"$f":"IF(DataLog!$C3054=\"Log value\",DataLog!F3054,\"\")","v":""},{"$f":"IF(DataLog!$C3054=\"Log value\",DataLog!G3054,\"\")","v":""},{"$f":"IF(DataLog!$C3054=\"Log value\",DataLog!H3054,\"\")","v":""},{"$f":"IF(DataLog!$C3054=\"Log value\",DataLog!I3054,\"\")","v":""},{"$f":"IF(DataLog!$C3054=\"Log value\",DataLog!J3054,\"\")","v":""},{"$f":"IF(DataLog!$C3054=\"Log value\",DataLog!K3054,\"\")","v":""},{"$f":"IF(DataLog!$C3054=\"Log value\",DataLog!L3054,\"\")","v":""},{"$f":"IF(DataLog!$C3054=\"Log value\",DataLog!M3054,\"\")","v":""},{"$f":"IF(DataLog!$C3054=\"Log value\",DataLog!N3054,\"\")","v":""},{"$f":"IF(DataLog!$C3054=\"Log value\",DataLog!O3054,\"\")","v":""},{"$f":"IF(DataLog!$C3054=\"Log value\",DataLog!P3054,\"\")","v":""},{"$f":"IF(DataLog!$C3054=\"Log value\",DataLog!Q3054,\"\")","v":""},{"$f":"IF(DataLog!$C3054=\"Log value\",DataLog!R3054,\"\")","v":""},{"$f":"IF(DataLog!$C3054=\"Log value\",DataLog!S3054,\"\")","v":""},{"$f":"IF(DataLog!$C3054=\"Log value\",DataLog!T3054,\"\")","v":""},{"$f":"IF(DataLog!$C3054=\"Log value\",DataLog!U3054,\"\")","v":""},{"$f":"IF(DataLog!$C3054=\"Log value\",DataLog!V3054,\"\")","v":""},{"$f":"IF(DataLog!$C3054=\"Log value\",DataLog!W3054,\"\")","v":""},{"$f":"IF(DataLog!$C3054=\"Log value\",DataLog!X3054,\"\")","v":""},{"$f":"IF(DataLog!$C3054=\"Log value\",DataLog!Y3054,\"\")","v":""},{"$f":"IF(DataLog!$C3054=\"Log value\",DataLog!Z3054,\"\")","v":""},{"$f":"IF(DataLog!$C3054=\"Log value\",DataLog!AA3054,\"\")","v":""},{"$f":"IF(DataLog!$C3054=\"Log value\",DataLog!AB3054,\"\")","v":""},{"$f":"IF(DataLog!$C3054=\"Log value\",DataLog!AC3054,\"\")","v":""},{"$f":"IF(DataLog!$C3054=\"Log value\",DataLog!AD3054,\"\")","v":""},{"$f":"IF(DataLog!$C3054=\"Log value\",DataLog!AE3054,\"\")","v":""},{"$f":"IF(DataLog!$C3054=\"Log value\",DataLog!AF3054,\"\")","v":""},{"$f":"IF(DataLog!$C3054=\"Log value\",DataLog!AG3054,\"\")","v":""},{"$f":"IF(DataLog!$C3054=\"Log value\",DataLog!AH3054,\"\")","v":""},{"$f":"IF(DataLog!$C3054=\"Log value\",DataLog!AI3054,\"\")","v":""},{"$f":"IF(DataLog!$C3054=\"Log value\",DataLog!AJ3054,\"\")","v":""},{"$f":"IF(DataLog!$C3054=\"Log value\",DataLog!AK3054,\"\")","v":""},{"$f":"IF(DataLog!$C3054=\"Log value\",DataLog!AL3054,\"\")","v":""},{"$f":"IF(DataLog!$C3054=\"Log value\",DataLog!AM3054,\"\")","v":""}]
[null,null,null,null,null,null,{"$f":"IF(DataLog!$C3057=\"Log value\",DataLog!D3057&\"_\"&TEXT(DataLog!B3057,\"åååå-mm-dd\"),\"\")","v":""},{"$f":"IF(DataLog!$C3057=\"Log value\",DataLog!E3057,\"\")","v":""},{"$f":"IF(DataLog!$C3057=\"Log value\",DataLog!F3057,\"\")","v":""},{"$f":"IF(DataLog!$C3057=\"Log value\",DataLog!G3057,\"\")","v":""},{"$f":"IF(DataLog!$C3057=\"Log value\",DataLog!H3057,\"\")","v":""},{"$f":"IF(DataLog!$C3057=\"Log value\",DataLog!I3057,\"\")","v":""},{"$f":"IF(DataLog!$C3057=\"Log value\",DataLog!J3057,\"\")","v":""},{"$f":"IF(DataLog!$C3057=\"Log value\",DataLog!K3057,\"\")","v":""},{"$f":"IF(DataLog!$C3057=\"Log value\",DataLog!L3057,\"\")","v":""},{"$f":"IF(DataLog!$C3057=\"Log value\",DataLog!M3057,\"\")","v":""},{"$f":"IF(DataLog!$C3057=\"Log value\",DataLog!N3057,\"\")","v":""},{"$f":"IF(DataLog!$C3057=\"Log value\",DataLog!O3057,\"\")","v":""},{"$f":"IF(DataLog!$C3057=\"Log value\",DataLog!P3057,\"\")","v":""},{"$f":"IF(DataLog!$C3057=\"Log value\",DataLog!Q3057,\"\")","v":""},{"$f":"IF(DataLog!$C3057=\"Log value\",DataLog!R3057,\"\")","v":""},{"$f":"IF(DataLog!$C3057=\"Log value\",DataLog!S3057,\"\")","v":""},{"$f":"IF(DataLog!$C3057=\"Log value\",DataLog!T3057,\"\")","v":""},{"$f":"IF(DataLog!$C3057=\"Log value\",DataLog!U3057,\"\")","v":""},{"$f":"IF(DataLog!$C3057=\"Log value\",DataLog!V3057,\"\")","v":""},{"$f":"IF(DataLog!$C3057=\"Log value\",DataLog!W3057,\"\")","v":""},{"$f":"IF(DataLog!$C3057=\"Log value\",DataLog!X3057,\"\")","v":""},{"$f":"IF(DataLog!$C3057=\"Log value\",DataLog!Y3057,\"\")","v":""},{"$f":"IF(DataLog!$C3057=\"Log value\",DataLog!Z3057,\"\")","v":""},{"$f":"IF(DataLog!$C3057=\"Log value\",DataLog!AA3057,\"\")","v":""},{"$f":"IF(DataLog!$C3057=\"Log value\",DataLog!AB3057,\"\")","v":""},{"$f":"IF(DataLog!$C3057=\"Log value\",DataLog!AC3057,\"\")","v":""},{"$f":"IF(DataLog!$C3057=\"Log value\",DataLog!AD3057,\"\")","v":""},{"$f":"IF(DataLog!$C3057=\"Log value\",DataLog!AE3057,\"\")","v":""},{"$f":"IF(DataLog!$C3057=\"Log value\",DataLog!AF3057,\"\")","v":""},{"$f":"IF(DataLog!$C3057=\"Log value\",DataLog!AG3057,\"\")","v":""},{"$f":"IF(DataLog!$C3057=\"Log value\",DataLog!AH3057,\"\")","v":""},{"$f":"IF(DataLog!$C3057=\"Log value\",DataLog!AI3057,\"\")","v":""},{"$f":"IF(DataLog!$C3057=\"Log value\",DataLog!AJ3057,\"\")","v":""},{"$f":"IF(DataLog!$C3057=\"Log value\",DataLog!AK3057,\"\")","v":""},{"$f":"IF(DataLog!$C3057=\"Log value\",DataLog!AL3057,\"\")","v":""},{"$f":"IF(DataLog!$C3057=\"Log value\",DataLog!AM3057,\"\")","v":""}]
[null,null,null,null,null,null,{"$f":"IF(DataLog!$C3059=\"Log value\",DataLog!D3059&\"_\"&TEXT(DataLog!B3059,\"åååå-mm-dd\"),\"\")","v":""},{"$f":"IF(DataLog!$C3059=\"Log value\",DataLog!E3059,\"\")","v":""},{"$f":"IF(DataLog!$C3059=\"Log value\",DataLog!F3059,\"\")","v":""},{"$f":"IF(DataLog!$C3059=\"Log value\",DataLog!G3059,\"\")","v":""},{"$f":"IF(DataLog!$C3059=\"Log value\",DataLog!H3059,\"\")","v":""},{"$f":"IF(DataLog!$C3059=\"Log value\",DataLog!I3059,\"\")","v":""},{"$f":"IF(DataLog!$C3059=\"Log value\",DataLog!J3059,\"\")","v":""},{"$f":"IF(DataLog!$C3059=\"Log value\",DataLog!K3059,\"\")","v":""},{"$f":"IF(DataLog!$C3059=\"Log value\",DataLog!L3059,\"\")","v":""},{"$f":"IF(DataLog!$C3059=\"Log value\",DataLog!M3059,\"\")","v":""},{"$f":"IF(DataLog!$C3059=\"Log value\",DataLog!N3059,\"\")","v":""},{"$f":"IF(DataLog!$C3059=\"Log value\",DataLog!O3059,\"\")","v":""},{"$f":"IF(DataLog!$C3059=\"Log value\",DataLog!P3059,\"\")","v":""},{"$f":"IF(DataLog!$C3059=\"Log value\",DataLog!Q3059,\"\")","v":""},{"$f":"IF(DataLog!$C3059=\"Log value\",DataLog!R3059,\"\")","v":""},{"$f":"IF(DataLog!$C3059=\"Log value\",DataLog!S3059,\"\")","v":""},{"$f":"IF(DataLog!$C3059=\"Log value\",DataLog!T3059,\"\")","v":""},{"$f":"IF(DataLog!$C3059=\"Log value\",DataLog!U3059,\"\")","v":""},{"$f":"IF(DataLog!$C3059=\"Log value\",DataLog!V3059,\"\")","v":""},{"$f":"IF(DataLog!$C3059=\"Log value\",DataLog!W3059,\"\")","v":""},{"$f":"IF(DataLog!$C3059=\"Log value\",DataLog!X3059,\"\")","v":""},{"$f":"IF(DataLog!$C3059=\"Log value\",DataLog!Y3059,\"\")","v":""},{"$f":"IF(DataLog!$C3059=\"Log value\",DataLog!Z3059,\"\")","v":""},{"$f":"IF(DataLog!$C3059=\"Log value\",DataLog!AA3059,\"\")","v":""},{"$f":"IF(DataLog!$C3059=\"Log value\",DataLog!AB3059,\"\")","v":""},{"$f":"IF(DataLog!$C3059=\"Log value\",DataLog!AC3059,\"\")","v":""},{"$f":"IF(DataLog!$C3059=\"Log value\",DataLog!AD3059,\"\")","v":""},{"$f":"IF(DataLog!$C3059=\"Log value\",DataLog!AE3059,\"\")","v":""},{"$f":"IF(DataLog!$C3059=\"Log value\",DataLog!AF3059,\"\")","v":""},{"$f":"IF(DataLog!$C3059=\"Log value\",DataLog!AG3059,\"\")","v":""},{"$f":"IF(DataLog!$C3059=\"Log value\",DataLog!AH3059,\"\")","v":""},{"$f":"IF(DataLog!$C3059=\"Log value\",DataLog!AI3059,\"\")","v":""},{"$f":"IF(DataLog!$C3059=\"Log value\",DataLog!AJ3059,\"\")","v":""},{"$f":"IF(DataLog!$C3059=\"Log value\",DataLog!AK3059,\"\")","v":""},{"$f":"IF(DataLog!$C3059=\"Log value\",DataLog!AL3059,\"\")","v":""},{"$f":"IF(DataLog!$C3059=\"Log value\",DataLog!AM3059,\"\")","v":""}]
[null,null,null,null,null,null,{"$f":"IF(DataLog!$C3060=\"Log value\",DataLog!D3060&\"_\"&TEXT(DataLog!B3060,\"åååå-mm-dd\"),\"\")","v":""},{"$f":"IF(DataLog!$C3060=\"Log value\",DataLog!E3060,\"\")","v":""},{"$f":"IF(DataLog!$C3060=\"Log value\",DataLog!F3060,\"\")","v":""},{"$f":"IF(DataLog!$C3060=\"Log value\",DataLog!G3060,\"\")","v":""},{"$f":"IF(DataLog!$C3060=\"Log value\",DataLog!H3060,\"\")","v":""},{"$f":"IF(DataLog!$C3060=\"Log value\",DataLog!I3060,\"\")","v":""},{"$f":"IF(DataLog!$C3060=\"Log value\",DataLog!J3060,\"\")","v":""},{"$f":"IF(DataLog!$C3060=\"Log value\",DataLog!K3060,\"\")","v":""},{"$f":"IF(DataLog!$C3060=\"Log value\",DataLog!L3060,\"\")","v":""},{"$f":"IF(DataLog!$C3060=\"Log value\",DataLog!M3060,\"\")","v":""},{"$f":"IF(DataLog!$C3060=\"Log value\",DataLog!N3060,\"\")","v":""},{"$f":"IF(DataLog!$C3060=\"Log value\",DataLog!O3060,\"\")","v":""},{"$f":"IF(DataLog!$C3060=\"Log value\",DataLog!P3060,\"\")","v":""},{"$f":"IF(DataLog!$C3060=\"Log value\",DataLog!Q3060,\"\")","v":""},{"$f":"IF(DataLog!$C3060=\"Log value\",DataLog!R3060,\"\")","v":""},{"$f":"IF(DataLog!$C3060=\"Log value\",DataLog!S3060,\"\")","v":""},{"$f":"IF(DataLog!$C3060=\"Log value\",DataLog!T3060,\"\")","v":""},{"$f":"IF(DataLog!$C3060=\"Log value\",DataLog!U3060,\"\")","v":""},{"$f":"IF(DataLog!$C3060=\"Log value\",DataLog!V3060,\"\")","v":""},{"$f":"IF(DataLog!$C3060=\"Log value\",DataLog!W3060,\"\")","v":""},{"$f":"IF(DataLog!$C3060=\"Log value\",DataLog!X3060,\"\")","v":""},{"$f":"IF(DataLog!$C3060=\"Log value\",DataLog!Y3060,\"\")","v":""},{"$f":"IF(DataLog!$C3060=\"Log value\",DataLog!Z3060,\"\")","v":""},{"$f":"IF(DataLog!$C3060=\"Log value\",DataLog!AA3060,\"\")","v":""},{"$f":"IF(DataLog!$C3060=\"Log value\",DataLog!AB3060,\"\")","v":""},{"$f":"IF(DataLog!$C3060=\"Log value\",DataLog!AC3060,\"\")","v":""},{"$f":"IF(DataLog!$C3060=\"Log value\",DataLog!AD3060,\"\")","v":""},{"$f":"IF(DataLog!$C3060=\"Log value\",DataLog!AE3060,\"\")","v":""},{"$f":"IF(DataLog!$C3060=\"Log value\",DataLog!AF3060,\"\")","v":""},{"$f":"IF(DataLog!$C3060=\"Log value\",DataLog!AG3060,\"\")","v":""},{"$f":"IF(DataLog!$C3060=\"Log value\",DataLog!AH3060,\"\")","v":""},{"$f":"IF(DataLog!$C3060=\"Log value\",DataLog!AI3060,\"\")","v":""},{"$f":"IF(DataLog!$C3060=\"Log value\",DataLog!AJ3060,\"\")","v":""},{"$f":"IF(DataLog!$C3060=\"Log value\",DataLog!AK3060,\"\")","v":""},{"$f":"IF(DataLog!$C3060=\"Log value\",DataLog!AL3060,\"\")","v":""},{"$f":"IF(DataLog!$C3060=\"Log value\",DataLog!AM3060,\"\")","v":""}]
[null,null,null,null,null,null,{"$f":"IF(DataLog!$C3063=\"Log value\",DataLog!D3063&\"_\"&TEXT(DataLog!B3063,\"åååå-mm-dd\"),\"\")","v":""},{"$f":"IF(DataLog!$C3063=\"Log value\",DataLog!E3063,\"\")","v":""},{"$f":"IF(DataLog!$C3063=\"Log value\",DataLog!F3063,\"\")","v":""},{"$f":"IF(DataLog!$C3063=\"Log value\",DataLog!G3063,\"\")","v":""},{"$f":"IF(DataLog!$C3063=\"Log value\",DataLog!H3063,\"\")","v":""},{"$f":"IF(DataLog!$C3063=\"Log value\",DataLog!I3063,\"\")","v":""},{"$f":"IF(DataLog!$C3063=\"Log value\",DataLog!J3063,\"\")","v":""},{"$f":"IF(DataLog!$C3063=\"Log value\",DataLog!K3063,\"\")","v":""},{"$f":"IF(DataLog!$C3063=\"Log value\",DataLog!L3063,\"\")","v":""},{"$f":"IF(DataLog!$C3063=\"Log value\",DataLog!M3063,\"\")","v":""},{"$f":"IF(DataLog!$C3063=\"Log value\",DataLog!N3063,\"\")","v":""},{"$f":"IF(DataLog!$C3063=\"Log value\",DataLog!O3063,\"\")","v":""},{"$f":"IF(DataLog!$C3063=\"Log value\",DataLog!P3063,\"\")","v":""},{"$f":"IF(DataLog!$C3063=\"Log value\",DataLog!Q3063,\"\")","v":""},{"$f":"IF(DataLog!$C3063=\"Log value\",DataLog!R3063,\"\")","v":""},{"$f":"IF(DataLog!$C3063=\"Log value\",DataLog!S3063,\"\")","v":""},{"$f":"IF(DataLog!$C3063=\"Log value\",DataLog!T3063,\"\")","v":""},{"$f":"IF(DataLog!$C3063=\"Log value\",DataLog!U3063,\"\")","v":""},{"$f":"IF(DataLog!$C3063=\"Log value\",DataLog!V3063,\"\")","v":""},{"$f":"IF(DataLog!$C3063=\"Log value\",DataLog!W3063,\"\")","v":""},{"$f":"IF(DataLog!$C3063=\"Log value\",DataLog!X3063,\"\")","v":""},{"$f":"IF(DataLog!$C3063=\"Log value\",DataLog!Y3063,\"\")","v":""},{"$f":"IF(DataLog!$C3063=\"Log value\",DataLog!Z3063,\"\")","v":""},{"$f":"IF(DataLog!$C3063=\"Log value\",DataLog!AA3063,\"\")","v":""},{"$f":"IF(DataLog!$C3063=\"Log value\",DataLog!AB3063,\"\")","v":""},{"$f":"IF(DataLog!$C3063=\"Log value\",DataLog!AC3063,\"\")","v":""},{"$f":"IF(DataLog!$C3063=\"Log value\",DataLog!AD3063,\"\")","v":""},{"$f":"IF(DataLog!$C3063=\"Log value\",DataLog!AE3063,\"\")","v":""},{"$f":"IF(DataLog!$C3063=\"Log value\",DataLog!AF3063,\"\")","v":""},{"$f":"IF(DataLog!$C3063=\"Log value\",DataLog!AG3063,\"\")","v":""},{"$f":"IF(DataLog!$C3063=\"Log value\",DataLog!AH3063,\"\")","v":""},{"$f":"IF(DataLog!$C3063=\"Log value\",DataLog!AI3063,\"\")","v":""},{"$f":"IF(DataLog!$C3063=\"Log value\",DataLog!AJ3063,\"\")","v":""},{"$f":"IF(DataLog!$C3063=\"Log value\",DataLog!AK3063,\"\")","v":""},{"$f":"IF(DataLog!$C3063=\"Log value\",DataLog!AL3063,\"\")","v":""},{"$f":"IF(DataLog!$C3063=\"Log value\",DataLog!AM3063,\"\")","v":""}]
[null,null,null,null,null,null,{"$f":"IF(DataLog!$C3065=\"Log value\",DataLog!D3065&\"_\"&TEXT(DataLog!B3065,\"åååå-mm-dd\"),\"\")","v":""},{"$f":"IF(DataLog!$C3065=\"Log value\",DataLog!E3065,\"\")","v":""},{"$f":"IF(DataLog!$C3065=\"Log value\",DataLog!F3065,\"\")","v":""},{"$f":"IF(DataLog!$C3065=\"Log value\",DataLog!G3065,\"\")","v":""},{"$f":"IF(DataLog!$C3065=\"Log value\",DataLog!H3065,\"\")","v":""},{"$f":"IF(DataLog!$C3065=\"Log value\",DataLog!I3065,\"\")","v":""},{"$f":"IF(DataLog!$C3065=\"Log value\",DataLog!J3065,\"\")","v":""},{"$f":"IF(DataLog!$C3065=\"Log value\",DataLog!K3065,\"\")","v":""},{"$f":"IF(DataLog!$C3065=\"Log value\",DataLog!L3065,\"\")","v":""},{"$f":"IF(DataLog!$C3065=\"Log value\",DataLog!M3065,\"\")","v":""},{"$f":"IF(DataLog!$C3065=\"Log value\",DataLog!N3065,\"\")","v":""},{"$f":"IF(DataLog!$C3065=\"Log value\",DataLog!O3065,\"\")","v":""},{"$f":"IF(DataLog!$C3065=\"Log value\",DataLog!P3065,\"\")","v":""},{"$f":"IF(DataLog!$C3065=\"Log value\",DataLog!Q3065,\"\")","v":""},{"$f":"IF(DataLog!$C3065=\"Log value\",DataLog!R3065,\"\")","v":""},{"$f":"IF(DataLog!$C3065=\"Log value\",DataLog!S3065,\"\")","v":""},{"$f":"IF(DataLog!$C3065=\"Log value\",DataLog!T3065,\"\")","v":""},{"$f":"IF(DataLog!$C3065=\"Log value\",DataLog!U3065,\"\")","v":""},{"$f":"IF(DataLog!$C3065=\"Log value\",DataLog!V3065,\"\")","v":""},{"$f":"IF(DataLog!$C3065=\"Log value\",DataLog!W3065,\"\")","v":""},{"$f":"IF(DataLog!$C3065=\"Log value\",DataLog!X3065,\"\")","v":""},{"$f":"IF(DataLog!$C3065=\"Log value\",DataLog!Y3065,\"\")","v":""},{"$f":"IF(DataLog!$C3065=\"Log value\",DataLog!Z3065,\"\")","v":""},{"$f":"IF(DataLog!$C3065=\"Log value\",DataLog!AA3065,\"\")","v":""},{"$f":"IF(DataLog!$C3065=\"Log value\",DataLog!AB3065,\"\")","v":""},{"$f":"IF(DataLog!$C3065=\"Log value\",DataLog!AC3065,\"\")","v":""},{"$f":"IF(DataLog!$C3065=\"Log value\",DataLog!AD3065,\"\")","v":""},{"$f":"IF(DataLog!$C3065=\"Log value\",DataLog!AE3065,\"\")","v":""},{"$f":"IF(DataLog!$C3065=\"Log value\",DataLog!AF3065,\"\")","v":""},{"$f":"IF(DataLog!$C3065=\"Log value\",DataLog!AG3065,\"\")","v":""},{"$f":"IF(DataLog!$C3065=\"Log value\",DataLog!AH3065,\"\")","v":""},{"$f":"IF(DataLog!$C3065=\"Log value\",DataLog!AI3065,\"\")","v":""},{"$f":"IF(DataLog!$C3065=\"Log value\",DataLog!AJ3065,\"\")","v":""},{"$f":"IF(DataLog!$C3065=\"Log value\",DataLog!AK3065,\"\")","v":""},{"$f":"IF(DataLog!$C3065=\"Log value\",DataLog!AL3065,\"\")","v":""},{"$f":"IF(DataLog!$C3065=\"Log value\",DataLog!AM3065,\"\")","v":""}]
[null,null,null,null,null,null,{"$f":"IF(DataLog!$C3068=\"Log value\",DataLog!D3068&\"_\"&TEXT(DataLog!B3068,\"åååå-mm-dd\"),\"\")","v":""},{"$f":"IF(DataLog!$C3068=\"Log value\",DataLog!E3068,\"\")","v":""},{"$f":"IF(DataLog!$C3068=\"Log value\",DataLog!F3068,\"\")","v":""},{"$f":"IF(DataLog!$C3068=\"Log value\",DataLog!G3068,\"\")","v":""},{"$f":"IF(DataLog!$C3068=\"Log value\",DataLog!H3068,\"\")","v":""},{"$f":"IF(DataLog!$C3068=\"Log value\",DataLog!I3068,\"\")","v":""},{"$f":"IF(DataLog!$C3068=\"Log value\",DataLog!J3068,\"\")","v":""},{"$f":"IF(DataLog!$C3068=\"Log value\",DataLog!K3068,\"\")","v":""},{"$f":"IF(DataLog!$C3068=\"Log value\",DataLog!L3068,\"\")","v":""},{"$f":"IF(DataLog!$C3068=\"Log value\",DataLog!M3068,\"\")","v":""},{"$f":"IF(DataLog!$C3068=\"Log value\",DataLog!N3068,\"\")","v":""},{"$f":"IF(DataLog!$C3068=\"Log value\",DataLog!O3068,\"\")","v":""},{"$f":"IF(DataLog!$C3068=\"Log value\",DataLog!P3068,\"\")","v":""},{"$f":"IF(DataLog!$C3068=\"Log value\",DataLog!Q3068,\"\")","v":""},{"$f":"IF(DataLog!$C3068=\"Log value\",DataLog!R3068,\"\")","v":""},{"$f":"IF(DataLog!$C3068=\"Log value\",DataLog!S3068,\"\")","v":""},{"$f":"IF(DataLog!$C3068=\"Log value\",DataLog!T3068,\"\")","v":""},{"$f":"IF(DataLog!$C3068=\"Log value\",DataLog!U3068,\"\")","v":""},{"$f":"IF(DataLog!$C3068=\"Log value\",DataLog!V3068,\"\")","v":""},{"$f":"IF(DataLog!$C3068=\"Log value\",DataLog!W3068,\"\")","v":""},{"$f":"IF(DataLog!$C3068=\"Log value\",DataLog!X3068,\"\")","v":""},{"$f":"IF(DataLog!$C3068=\"Log value\",DataLog!Y3068,\"\")","v":""},{"$f":"IF(DataLog!$C3068=\"Log value\",DataLog!Z3068,\"\")","v":""},{"$f":"IF(DataLog!$C3068=\"Log value\",DataLog!AA3068,\"\")","v":""},{"$f":"IF(DataLog!$C3068=\"Log value\",DataLog!AB3068,\"\")","v":""},{"$f":"IF(DataLog!$C3068=\"Log value\",DataLog!AC3068,\"\")","v":""},{"$f":"IF(DataLog!$C3068=\"Log value\",DataLog!AD3068,\"\")","v":""},{"$f":"IF(DataLog!$C3068=\"Log value\",DataLog!AE3068,\"\")","v":""},{"$f":"IF(DataLog!$C3068=\"Log value\",DataLog!AF3068,\"\")","v":""},{"$f":"IF(DataLog!$C3068=\"Log value\",DataLog!AG3068,\"\")","v":""},{"$f":"IF(DataLog!$C3068=\"Log value\",DataLog!AH3068,\"\")","v":""},{"$f":"IF(DataLog!$C3068=\"Log value\",DataLog!AI3068,\"\")","v":""},{"$f":"IF(DataLog!$C3068=\"Log value\",DataLog!AJ3068,\"\")","v":""},{"$f":"IF(DataLog!$C3068=\"Log value\",DataLog!AK3068,\"\")","v":""},{"$f":"IF(DataLog!$C3068=\"Log value\",DataLog!AL3068,\"\")","v":""},{"$f":"IF(DataLog!$C3068=\"Log value\",DataLog!AM3068,\"\")","v":""}]
[null,null,null,null,null,null,{"$f":"IF(DataLog!$C3069=\"Log value\",DataLog!D3069&\"_\"&TEXT(DataLog!B3069,\"åååå-mm-dd\"),\"\")","v":""},{"$f":"IF(DataLog!$C3069=\"Log value\",DataLog!E3069,\"\")","v":""},{"$f":"IF(DataLog!$C3069=\"Log value\",DataLog!F3069,\"\")","v":""},{"$f":"IF(DataLog!$C3069=\"Log value\",DataLog!G3069,\"\")","v":""},{"$f":"IF(DataLog!$C3069=\"Log value\",DataLog!H3069,\"\")","v":""},{"$f":"IF(DataLog!$C3069=\"Log value\",DataLog!I3069,\"\")","v":""},{"$f":"IF(DataLog!$C3069=\"Log value\",DataLog!J3069,\"\")","v":""},{"$f":"IF(DataLog!$C3069=\"Log value\",DataLog!K3069,\"\")","v":""},{"$f":"IF(DataLog!$C3069=\"Log value\",DataLog!L3069,\"\")","v":""},{"$f":"IF(DataLog!$C3069=\"Log value\",DataLog!M3069,\"\")","v":""},{"$f":"IF(DataLog!$C3069=\"Log value\",DataLog!N3069,\"\")","v":""},{"$f":"IF(DataLog!$C3069=\"Log value\",DataLog!O3069,\"\")","v":""},{"$f":"IF(DataLog!$C3069=\"Log value\",DataLog!P3069,\"\")","v":""},{"$f":"IF(DataLog!$C3069=\"Log value\",DataLog!Q3069,\"\")","v":""},{"$f":"IF(DataLog!$C3069=\"Log value\",DataLog!R3069,\"\")","v":""},{"$f":"IF(DataLog!$C3069=\"Log value\",DataLog!S3069,\"\")","v":""},{"$f":"IF(DataLog!$C3069=\"Log value\",DataLog!T3069,\"\")","v":""},{"$f":"IF(DataLog!$C3069=\"Log value\",DataLog!U3069,\"\")","v":""},{"$f":"IF(DataLog!$C3069=\"Log value\",DataLog!V3069,\"\")","v":""},{"$f":"IF(DataLog!$C3069=\"Log value\",DataLog!W3069,\"\")","v":""},{"$f":"IF(DataLog!$C3069=\"Log value\",DataLog!X3069,\"\")","v":""},{"$f":"IF(DataLog!$C3069=\"Log value\",DataLog!Y3069,\"\")","v":""},{"$f":"IF(DataLog!$C3069=\"Log value\",DataLog!Z3069,\"\")","v":""},{"$f":"IF(DataLog!$C3069=\"Log value\",DataLog!AA3069,\"\")","v":""},{"$f":"IF(DataLog!$C3069=\"Log value\",DataLog!AB3069,\"\")","v":""},{"$f":"IF(DataLog!$C3069=\"Log value\",DataLog!AC3069,\"\")","v":""},{"$f":"IF(DataLog!$C3069=\"Log value\",DataLog!AD3069,\"\")","v":""},{"$f":"IF(DataLog!$C3069=\"Log value\",DataLog!AE3069,\"\")","v":""},{"$f":"IF(DataLog!$C3069=\"Log value\",DataLog!AF3069,\"\")","v":""},{"$f":"IF(DataLog!$C3069=\"Log value\",DataLog!AG3069,\"\")","v":""},{"$f":"IF(DataLog!$C3069=\"Log value\",DataLog!AH3069,\"\")","v":""},{"$f":"IF(DataLog!$C3069=\"Log value\",DataLog!AI3069,\"\")","v":""},{"$f":"IF(DataLog!$C3069=\"Log value\",DataLog!AJ3069,\"\")","v":""},{"$f":"IF(DataLog!$C3069=\"Log value\",DataLog!AK3069,\"\")","v":""},{"$f":"IF(DataLog!$C3069=\"Log value\",DataLog!AL3069,\"\")","v":""},{"$f":"IF(DataLog!$C3069=\"Log value\",DataLog!AM3069,\"\")","v":""}]
[null,null,null,null,null,null,{"$f":"IF(DataLog!$C3072=\"Log value\",DataLog!D3072&\"_\"&TEXT(DataLog!B3072,\"åååå-mm-dd\"),\"\")","v":""},{"$f":"IF(DataLog!$C3072=\"Log value\",DataLog!E3072,\"\")","v":""},{"$f":"IF(DataLog!$C3072=\"Log value\",DataLog!F3072,\"\")","v":""},{"$f":"IF(DataLog!$C3072=\"Log value\",DataLog!G3072,\"\")","v":""},{"$f":"IF(DataLog!$C3072=\"Log value\",DataLog!H3072,\"\")","v":""},{"$f":"IF(DataLog!$C3072=\"Log value\",DataLog!I3072,\"\")","v":""},{"$f":"IF(DataLog!$C3072=\"Log value\",DataLog!J3072,\"\")","v":""},{"$f":"IF(DataLog!$C3072=\"Log value\",DataLog!K3072,\"\")","v":""},{"$f":"IF(DataLog!$C3072=\"Log value\",DataLog!L3072,\"\")","v":""},{"$f":"IF(DataLog!$C3072=\"Log value\",DataLog!M3072,\"\")","v":""},{"$f":"IF(DataLog!$C3072=\"Log value\",DataLog!N3072,\"\")","v":""},{"$f":"IF(DataLog!$C3072=\"Log value\",DataLog!O3072,\"\")","v":""},{"$f":"IF(DataLog!$C3072=\"Log value\",DataLog!P3072,\"\")","v":""},{"$f":"IF(DataLog!$C3072=\"Log value\",DataLog!Q3072,\"\")","v":""},{"$f":"IF(DataLog!$C3072=\"Log value\",DataLog!R3072,\"\")","v":""},{"$f":"IF(DataLog!$C3072=\"Log value\",DataLog!S3072,\"\")","v":""},{"$f":"IF(DataLog!$C3072=\"Log value\",DataLog!T3072,\"\")","v":""},{"$f":"IF(DataLog!$C3072=\"Log value\",DataLog!U3072,\"\")","v":""},{"$f":"IF(DataLog!$C3072=\"Log value\",DataLog!V3072,\"\")","v":""},{"$f":"IF(DataLog!$C3072=\"Log value\",DataLog!W3072,\"\")","v":""},{"$f":"IF(DataLog!$C3072=\"Log value\",DataLog!X3072,\"\")","v":""},{"$f":"IF(DataLog!$C3072=\"Log value\",DataLog!Y3072,\"\")","v":""},{"$f":"IF(DataLog!$C3072=\"Log value\",DataLog!Z3072,\"\")","v":""},{"$f":"IF(DataLog!$C3072=\"Log value\",DataLog!AA3072,\"\")","v":""},{"$f":"IF(DataLog!$C3072=\"Log value\",DataLog!AB3072,\"\")","v":""},{"$f":"IF(DataLog!$C3072=\"Log value\",DataLog!AC3072,\"\")","v":""},{"$f":"IF(DataLog!$C3072=\"Log value\",DataLog!AD3072,\"\")","v":""},{"$f":"IF(DataLog!$C3072=\"Log value\",DataLog!AE3072,\"\")","v":""},{"$f":"IF(DataLog!$C3072=\"Log value\",DataLog!AF3072,\"\")","v":""},{"$f":"IF(DataLog!$C3072=\"Log value\",DataLog!AG3072,\"\")","v":""},{"$f":"IF(DataLog!$C3072=\"Log value\",DataLog!AH3072,\"\")","v":""},{"$f":"IF(DataLog!$C3072=\"Log value\",DataLog!AI3072,\"\")","v":""},{"$f":"IF(DataLog!$C3072=\"Log value\",DataLog!AJ3072,\"\")","v":""},{"$f":"IF(DataLog!$C3072=\"Log value\",DataLog!AK3072,\"\")","v":""},{"$f":"IF(DataLog!$C3072=\"Log value\",DataLog!AL3072,\"\")","v":""},{"$f":"IF(DataLog!$C3072=\"Log value\",DataLog!AM3072,\"\")","v":""}]
[null,null,null,null,null,null,{"$f":"IF(DataLog!$C3075=\"Log value\",DataLog!D3075&\"_\"&TEXT(DataLog!B3075,\"åååå-mm-dd\"),\"\")","v":""},{"$f":"IF(DataLog!$C3075=\"Log value\",DataLog!E3075,\"\")","v":""},{"$f":"IF(DataLog!$C3075=\"Log value\",DataLog!F3075,\"\")","v":""},{"$f":"IF(DataLog!$C3075=\"Log value\",DataLog!G3075,\"\")","v":""},{"$f":"IF(DataLog!$C3075=\"Log value\",DataLog!H3075,\"\")","v":""},{"$f":"IF(DataLog!$C3075=\"Log value\",DataLog!I3075,\"\")","v":""},{"$f":"IF(DataLog!$C3075=\"Log value\",DataLog!J3075,\"\")","v":""},{"$f":"IF(DataLog!$C3075=\"Log value\",DataLog!K3075,\"\")","v":""},{"$f":"IF(DataLog!$C3075=\"Log value\",DataLog!L3075,\"\")","v":""},{"$f":"IF(DataLog!$C3075=\"Log value\",DataLog!M3075,\"\")","v":""},{"$f":"IF(DataLog!$C3075=\"Log value\",DataLog!N3075,\"\")","v":""},{"$f":"IF(DataLog!$C3075=\"Log value\",DataLog!O3075,\"\")","v":""},{"$f":"IF(DataLog!$C3075=\"Log value\",DataLog!P3075,\"\")","v":""},{"$f":"IF(DataLog!$C3075=\"Log value\",DataLog!Q3075,\"\")","v":""},{"$f":"IF(DataLog!$C3075=\"Log value\",DataLog!R3075,\"\")","v":""},{"$f":"IF(DataLog!$C3075=\"Log value\",DataLog!S3075,\"\")","v":""},{"$f":"IF(DataLog!$C3075=\"Log value\",DataLog!T3075,\"\")","v":""},{"$f":"IF(DataLog!$C3075=\"Log value\",DataLog!U3075,\"\")","v":""},{"$f":"IF(DataLog!$C3075=\"Log value\",DataLog!V3075,\"\")","v":""},{"$f":"IF(DataLog!$C3075=\"Log value\",DataLog!W3075,\"\")","v":""},{"$f":"IF(DataLog!$C3075=\"Log value\",DataLog!X3075,\"\")","v":""},{"$f":"IF(DataLog!$C3075=\"Log value\",DataLog!Y3075,\"\")","v":""},{"$f":"IF(DataLog!$C3075=\"Log value\",DataLog!Z3075,\"\")","v":""},{"$f":"IF(DataLog!$C3075=\"Log value\",DataLog!AA3075,\"\")","v":""},{"$f":"IF(DataLog!$C3075=\"Log value\",DataLog!AB3075,\"\")","v":""},{"$f":"IF(DataLog!$C3075=\"Log value\",DataLog!AC3075,\"\")","v":""},{"$f":"IF(DataLog!$C3075=\"Log value\",DataLog!AD3075,\"\")","v":""},{"$f":"IF(DataLog!$C3075=\"Log value\",DataLog!AE3075,\"\")","v":""},{"$f":"IF(DataLog!$C3075=\"Log value\",DataLog!AF3075,\"\")","v":""},{"$f":"IF(DataLog!$C3075=\"Log value\",DataLog!AG3075,\"\")","v":""},{"$f":"IF(DataLog!$C3075=\"Log value\",DataLog!AH3075,\"\")","v":""},{"$f":"IF(DataLog!$C3075=\"Log value\",DataLog!AI3075,\"\")","v":""},{"$f":"IF(DataLog!$C3075=\"Log value\",DataLog!AJ3075,\"\")","v":""},{"$f":"IF(DataLog!$C3075=\"Log value\",DataLog!AK3075,\"\")","v":""},{"$f":"IF(DataLog!$C3075=\"Log value\",DataLog!AL3075,\"\")","v":""},{"$f":"IF(DataLog!$C3075=\"Log value\",DataLog!AM3075,\"\")","v":""}]
[null,null,null,null,null,null,{"$f":"IF(DataLog!$C3077=\"Log value\",DataLog!D3077&\"_\"&TEXT(DataLog!B3077,\"åååå-mm-dd\"),\"\")","v":""},{"$f":"IF(DataLog!$C3077=\"Log value\",DataLog!E3077,\"\")","v":""},{"$f":"IF(DataLog!$C3077=\"Log value\",DataLog!F3077,\"\")","v":""},{"$f":"IF(DataLog!$C3077=\"Log value\",DataLog!G3077,\"\")","v":""},{"$f":"IF(DataLog!$C3077=\"Log value\",DataLog!H3077,\"\")","v":""},{"$f":"IF(DataLog!$C3077=\"Log value\",DataLog!I3077,\"\")","v":""},{"$f":"IF(DataLog!$C3077=\"Log value\",DataLog!J3077,\"\")","v":""},{"$f":"IF(DataLog!$C3077=\"Log value\",DataLog!K3077,\"\")","v":""},{"$f":"IF(DataLog!$C3077=\"Log value\",DataLog!L3077,\"\")","v":""},{"$f":"IF(DataLog!$C3077=\"Log value\",DataLog!M3077,\"\")","v":""},{"$f":"IF(DataLog!$C3077=\"Log value\",DataLog!N3077,\"\")","v":""},{"$f":"IF(DataLog!$C3077=\"Log value\",DataLog!O3077,\"\")","v":""},{"$f":"IF(DataLog!$C3077=\"Log value\",DataLog!P3077,\"\")","v":""},{"$f":"IF(DataLog!$C3077=\"Log value\",DataLog!Q3077,\"\")","v":""},{"$f":"IF(DataLog!$C3077=\"Log value\",DataLog!R3077,\"\")","v":""},{"$f":"IF(DataLog!$C3077=\"Log value\",DataLog!S3077,\"\")","v":""},{"$f":"IF(DataLog!$C3077=\"Log value\",DataLog!T3077,\"\")","v":""},{"$f":"IF(DataLog!$C3077=\"Log value\",DataLog!U3077,\"\")","v":""},{"$f":"IF(DataLog!$C3077=\"Log value\",DataLog!V3077,\"\")","v":""},{"$f":"IF(DataLog!$C3077=\"Log value\",DataLog!W3077,\"\")","v":""},{"$f":"IF(DataLog!$C3077=\"Log value\",DataLog!X3077,\"\")","v":""},{"$f":"IF(DataLog!$C3077=\"Log value\",DataLog!Y3077,\"\")","v":""},{"$f":"IF(DataLog!$C3077=\"Log value\",DataLog!Z3077,\"\")","v":""},{"$f":"IF(DataLog!$C3077=\"Log value\",DataLog!AA3077,\"\")","v":""},{"$f":"IF(DataLog!$C3077=\"Log value\",DataLog!AB3077,\"\")","v":""},{"$f":"IF(DataLog!$C3077=\"Log value\",DataLog!AC3077,\"\")","v":""},{"$f":"IF(DataLog!$C3077=\"Log value\",DataLog!AD3077,\"\")","v":""},{"$f":"IF(DataLog!$C3077=\"Log value\",DataLog!AE3077,\"\")","v":""},{"$f":"IF(DataLog!$C3077=\"Log value\",DataLog!AF3077,\"\")","v":""},{"$f":"IF(DataLog!$C3077=\"Log value\",DataLog!AG3077,\"\")","v":""},{"$f":"IF(DataLog!$C3077=\"Log value\",DataLog!AH3077,\"\")","v":""},{"$f":"IF(DataLog!$C3077=\"Log value\",DataLog!AI3077,\"\")","v":""},{"$f":"IF(DataLog!$C3077=\"Log value\",DataLog!AJ3077,\"\")","v":""},{"$f":"IF(DataLog!$C3077=\"Log value\",DataLog!AK3077,\"\")","v":""},{"$f":"IF(DataLog!$C3077=\"Log value\",DataLog!AL3077,\"\")","v":""},{"$f":"IF(DataLog!$C3077=\"Log value\",DataLog!AM3077,\"\")","v":""}]
[null,null,null,null,null,null,{"$f":"IF(DataLog!$C3078=\"Log value\",DataLog!D3078&\"_\"&TEXT(DataLog!B3078,\"åååå-mm-dd\"),\"\")","v":""},{"$f":"IF(DataLog!$C3078=\"Log value\",DataLog!E3078,\"\")","v":""},{"$f":"IF(DataLog!$C3078=\"Log value\",DataLog!F3078,\"\")","v":""},{"$f":"IF(DataLog!$C3078=\"Log value\",DataLog!G3078,\"\")","v":""},{"$f":"IF(DataLog!$C3078=\"Log value\",DataLog!H3078,\"\")","v":""},{"$f":"IF(DataLog!$C3078=\"Log value\",DataLog!I3078,\"\")","v":""},{"$f":"IF(DataLog!$C3078=\"Log value\",DataLog!J3078,\"\")","v":""},{"$f":"IF(DataLog!$C3078=\"Log value\",DataLog!K3078,\"\")","v":""},{"$f":"IF(DataLog!$C3078=\"Log value\",DataLog!L3078,\"\")","v":""},{"$f":"IF(DataLog!$C3078=\"Log value\",DataLog!M3078,\"\")","v":""},{"$f":"IF(DataLog!$C3078=\"Log value\",DataLog!N3078,\"\")","v":""},{"$f":"IF(DataLog!$C3078=\"Log value\",DataLog!O3078,\"\")","v":""},{"$f":"IF(DataLog!$C3078=\"Log value\",DataLog!P3078,\"\")","v":""},{"$f":"IF(DataLog!$C3078=\"Log value\",DataLog!Q3078,\"\")","v":""},{"$f":"IF(DataLog!$C3078=\"Log value\",DataLog!R3078,\"\")","v":""},{"$f":"IF(DataLog!$C3078=\"Log value\",DataLog!S3078,\"\")","v":""},{"$f":"IF(DataLog!$C3078=\"Log value\",DataLog!T3078,\"\")","v":""},{"$f":"IF(DataLog!$C3078=\"Log value\",DataLog!U3078,\"\")","v":""},{"$f":"IF(DataLog!$C3078=\"Log value\",DataLog!V3078,\"\")","v":""},{"$f":"IF(DataLog!$C3078=\"Log value\",DataLog!W3078,\"\")","v":""},{"$f":"IF(DataLog!$C3078=\"Log value\",DataLog!X3078,\"\")","v":""},{"$f":"IF(DataLog!$C3078=\"Log value\",DataLog!Y3078,\"\")","v":""},{"$f":"IF(DataLog!$C3078=\"Log value\",DataLog!Z3078,\"\")","v":""},{"$f":"IF(DataLog!$C3078=\"Log value\",DataLog!AA3078,\"\")","v":""},{"$f":"IF(DataLog!$C3078=\"Log value\",DataLog!AB3078,\"\")","v":""},{"$f":"IF(DataLog!$C3078=\"Log value\",DataLog!AC3078,\"\")","v":""},{"$f":"IF(DataLog!$C3078=\"Log value\",DataLog!AD3078,\"\")","v":""},{"$f":"IF(DataLog!$C3078=\"Log value\",DataLog!AE3078,\"\")","v":""},{"$f":"IF(DataLog!$C3078=\"Log value\",DataLog!AF3078,\"\")","v":""},{"$f":"IF(DataLog!$C3078=\"Log value\",DataLog!AG3078,\"\")","v":""},{"$f":"IF(DataLog!$C3078=\"Log value\",DataLog!AH3078,\"\")","v":""},{"$f":"IF(DataLog!$C3078=\"Log value\",DataLog!AI3078,\"\")","v":""},{"$f":"IF(DataLog!$C3078=\"Log value\",DataLog!AJ3078,\"\")","v":""},{"$f":"IF(DataLog!$C3078=\"Log value\",DataLog!AK3078,\"\")","v":""},{"$f":"IF(DataLog!$C3078=\"Log value\",DataLog!AL3078,\"\")","v":""},{"$f":"IF(DataLog!$C3078=\"Log value\",DataLog!AM3078,\"\")","v":""}]
[null,null,null,null,null,null,{"$f":"IF(DataLog!$C3081=\"Log value\",DataLog!D3081&\"_\"&TEXT(DataLog!B3081,\"åååå-mm-dd\"),\"\")","v":""},{"$f":"IF(DataLog!$C3081=\"Log value\",DataLog!E3081,\"\")","v":""},{"$f":"IF(DataLog!$C3081=\"Log value\",DataLog!F3081,\"\")","v":""},{"$f":"IF(DataLog!$C3081=\"Log value\",DataLog!G3081,\"\")","v":""},{"$f":"IF(DataLog!$C3081=\"Log value\",DataLog!H3081,\"\")","v":""},{"$f":"IF(DataLog!$C3081=\"Log value\",DataLog!I3081,\"\")","v":""},{"$f":"IF(DataLog!$C3081=\"Log value\",DataLog!J3081,\"\")","v":""},{"$f":"IF(DataLog!$C3081=\"Log value\",DataLog!K3081,\"\")","v":""},{"$f":"IF(DataLog!$C3081=\"Log value\",DataLog!L3081,\"\")","v":""},{"$f":"IF(DataLog!$C3081=\"Log value\",DataLog!M3081,\"\")","v":""},{"$f":"IF(DataLog!$C3081=\"Log value\",DataLog!N3081,\"\")","v":""},{"$f":"IF(DataLog!$C3081=\"Log value\",DataLog!O3081,\"\")","v":""},{"$f":"IF(DataLog!$C3081=\"Log value\",DataLog!P3081,\"\")","v":""},{"$f":"IF(DataLog!$C3081=\"Log value\",DataLog!Q3081,\"\")","v":""},{"$f":"IF(DataLog!$C3081=\"Log value\",DataLog!R3081,\"\")","v":""},{"$f":"IF(DataLog!$C3081=\"Log value\",DataLog!S3081,\"\")","v":""},{"$f":"IF(DataLog!$C3081=\"Log value\",DataLog!T3081,\"\")","v":""},{"$f":"IF(DataLog!$C3081=\"Log value\",DataLog!U3081,\"\")","v":""},{"$f":"IF(DataLog!$C3081=\"Log value\",DataLog!V3081,\"\")","v":""},{"$f":"IF(DataLog!$C3081=\"Log value\",DataLog!W3081,\"\")","v":""},{"$f":"IF(DataLog!$C3081=\"Log value\",DataLog!X3081,\"\")","v":""},{"$f":"IF(DataLog!$C3081=\"Log value\",DataLog!Y3081,\"\")","v":""},{"$f":"IF(DataLog!$C3081=\"Log value\",DataLog!Z3081,\"\")","v":""},{"$f":"IF(DataLog!$C3081=\"Log value\",DataLog!AA3081,\"\")","v":""},{"$f":"IF(DataLog!$C3081=\"Log value\",DataLog!AB3081,\"\")","v":""},{"$f":"IF(DataLog!$C3081=\"Log value\",DataLog!AC3081,\"\")","v":""},{"$f":"IF(DataLog!$C3081=\"Log value\",DataLog!AD3081,\"\")","v":""},{"$f":"IF(DataLog!$C3081=\"Log value\",DataLog!AE3081,\"\")","v":""},{"$f":"IF(DataLog!$C3081=\"Log value\",DataLog!AF3081,\"\")","v":""},{"$f":"IF(DataLog!$C3081=\"Log value\",DataLog!AG3081,\"\")","v":""},{"$f":"IF(DataLog!$C3081=\"Log value\",DataLog!AH3081,\"\")","v":""},{"$f":"IF(DataLog!$C3081=\"Log value\",DataLog!AI3081,\"\")","v":""},{"$f":"IF(DataLog!$C3081=\"Log value\",DataLog!AJ3081,\"\")","v":""},{"$f":"IF(DataLog!$C3081=\"Log value\",DataLog!AK3081,\"\")","v":""},{"$f":"IF(DataLog!$C3081=\"Log value\",DataLog!AL3081,\"\")","v":""},{"$f":"IF(DataLog!$C3081=\"Log value\",DataLog!AM3081,\"\")","v":""}]
[null,null,null,null,null,null,{"$f":"IF(DataLog!$C3083=\"Log value\",DataLog!D3083&\"_\"&TEXT(DataLog!B3083,\"åååå-mm-dd\"),\"\")","v":""},{"$f":"IF(DataLog!$C3083=\"Log value\",DataLog!E3083,\"\")","v":""},{"$f":"IF(DataLog!$C3083=\"Log value\",DataLog!F3083,\"\")","v":""},{"$f":"IF(DataLog!$C3083=\"Log value\",DataLog!G3083,\"\")","v":""},{"$f":"IF(DataLog!$C3083=\"Log value\",DataLog!H3083,\"\")","v":""},{"$f":"IF(DataLog!$C3083=\"Log value\",DataLog!I3083,\"\")","v":""},{"$f":"IF(DataLog!$C3083=\"Log value\",DataLog!J3083,\"\")","v":""},{"$f":"IF(DataLog!$C3083=\"Log value\",DataLog!K3083,\"\")","v":""},{"$f":"IF(DataLog!$C3083=\"Log value\",DataLog!L3083,\"\")","v":""},{"$f":"IF(DataLog!$C3083=\"Log value\",DataLog!M3083,\"\")","v":""},{"$f":"IF(DataLog!$C3083=\"Log value\",DataLog!N3083,\"\")","v":""},{"$f":"IF(DataLog!$C3083=\"Log value\",DataLog!O3083,\"\")","v":""},{"$f":"IF(DataLog!$C3083=\"Log value\",DataLog!P3083,\"\")","v":""},{"$f":"IF(DataLog!$C3083=\"Log value\",DataLog!Q3083,\"\")","v":""},{"$f":"IF(DataLog!$C3083=\"Log value\",DataLog!R3083,\"\")","v":""},{"$f":"IF(DataLog!$C3083=\"Log value\",DataLog!S3083,\"\")","v":""},{"$f":"IF(DataLog!$C3083=\"Log value\",DataLog!T3083,\"\")","v":""},{"$f":"IF(DataLog!$C3083=\"Log value\",DataLog!U3083,\"\")","v":""},{"$f":"IF(DataLog!$C3083=\"Log value\",DataLog!V3083,\"\")","v":""},{"$f":"IF(DataLog!$C3083=\"Log value\",DataLog!W3083,\"\")","v":""},{"$f":"IF(DataLog!$C3083=\"Log value\",DataLog!X3083,\"\")","v":""},{"$f":"IF(DataLog!$C3083=\"Log value\",DataLog!Y3083,\"\")","v":""},{"$f":"IF(DataLog!$C3083=\"Log value\",DataLog!Z3083,\"\")","v":""},{"$f":"IF(DataLog!$C3083=\"Log value\",DataLog!AA3083,\"\")","v":""},{"$f":"IF(DataLog!$C3083=\"Log value\",DataLog!AB3083,\"\")","v":""},{"$f":"IF(DataLog!$C3083=\"Log value\",DataLog!AC3083,\"\")","v":""},{"$f":"IF(DataLog!$C3083=\"Log value\",DataLog!AD3083,\"\")","v":""},{"$f":"IF(DataLog!$C3083=\"Log value\",DataLog!AE3083,\"\")","v":""},{"$f":"IF(DataLog!$C3083=\"Log value\",DataLog!AF3083,\"\")","v":""},{"$f":"IF(DataLog!$C3083=\"Log value\",DataLog!AG3083,\"\")","v":""},{"$f":"IF(DataLog!$C3083=\"Log value\",DataLog!AH3083,\"\")","v":""},{"$f":"IF(DataLog!$C3083=\"Log value\",DataLog!AI3083,\"\")","v":""},{"$f":"IF(DataLog!$C3083=\"Log value\",DataLog!AJ3083,\"\")","v":""},{"$f":"IF(DataLog!$C3083=\"Log value\",DataLog!AK3083,\"\")","v":""},{"$f":"IF(DataLog!$C3083=\"Log value\",DataLog!AL3083,\"\")","v":""},{"$f":"IF(DataLog!$C3083=\"Log value\",DataLog!AM3083,\"\")","v":""}]
[null,null,null,null,null,null,{"$f":"IF(DataLog!$C3086=\"Log value\",DataLog!D3086&\"_\"&TEXT(DataLog!B3086,\"åååå-mm-dd\"),\"\")","v":""},{"$f":"IF(DataLog!$C3086=\"Log value\",DataLog!E3086,\"\")","v":""},{"$f":"IF(DataLog!$C3086=\"Log value\",DataLog!F3086,\"\")","v":""},{"$f":"IF(DataLog!$C3086=\"Log value\",DataLog!G3086,\"\")","v":""},{"$f":"IF(DataLog!$C3086=\"Log value\",DataLog!H3086,\"\")","v":""},{"$f":"IF(DataLog!$C3086=\"Log value\",DataLog!I3086,\"\")","v":""},{"$f":"IF(DataLog!$C3086=\"Log value\",DataLog!J3086,\"\")","v":""},{"$f":"IF(DataLog!$C3086=\"Log value\",DataLog!K3086,\"\")","v":""},{"$f":"IF(DataLog!$C3086=\"Log value\",DataLog!L3086,\"\")","v":""},{"$f":"IF(DataLog!$C3086=\"Log value\",DataLog!M3086,\"\")","v":""},{"$f":"IF(DataLog!$C3086=\"Log value\",DataLog!N3086,\"\")","v":""},{"$f":"IF(DataLog!$C3086=\"Log value\",DataLog!O3086,\"\")","v":""},{"$f":"IF(DataLog!$C3086=\"Log value\",DataLog!P3086,\"\")","v":""},{"$f":"IF(DataLog!$C3086=\"Log value\",DataLog!Q3086,\"\")","v":""},{"$f":"IF(DataLog!$C3086=\"Log value\",DataLog!R3086,\"\")","v":""},{"$f":"IF(DataLog!$C3086=\"Log value\",DataLog!S3086,\"\")","v":""},{"$f":"IF(DataLog!$C3086=\"Log value\",DataLog!T3086,\"\")","v":""},{"$f":"IF(DataLog!$C3086=\"Log value\",DataLog!U3086,\"\")","v":""},{"$f":"IF(DataLog!$C3086=\"Log value\",DataLog!V3086,\"\")","v":""},{"$f":"IF(DataLog!$C3086=\"Log value\",DataLog!W3086,\"\")","v":""},{"$f":"IF(DataLog!$C3086=\"Log value\",DataLog!X3086,\"\")","v":""},{"$f":"IF(DataLog!$C3086=\"Log value\",DataLog!Y3086,\"\")","v":""},{"$f":"IF(DataLog!$C3086=\"Log value\",DataLog!Z3086,\"\")","v":""},{"$f":"IF(DataLog!$C3086=\"Log value\",DataLog!AA3086,\"\")","v":""},{"$f":"IF(DataLog!$C3086=\"Log value\",DataLog!AB3086,\"\")","v":""},{"$f":"IF(DataLog!$C3086=\"Log value\",DataLog!AC3086,\"\")","v":""},{"$f":"IF(DataLog!$C3086=\"Log value\",DataLog!AD3086,\"\")","v":""},{"$f":"IF(DataLog!$C3086=\"Log value\",DataLog!AE3086,\"\")","v":""},{"$f":"IF(DataLog!$C3086=\"Log value\",DataLog!AF3086,\"\")","v":""},{"$f":"IF(DataLog!$C3086=\"Log value\",DataLog!AG3086,\"\")","v":""},{"$f":"IF(DataLog!$C3086=\"Log value\",DataLog!AH3086,\"\")","v":""},{"$f":"IF(DataLog!$C3086=\"Log value\",DataLog!AI3086,\"\")","v":""},{"$f":"IF(DataLog!$C3086=\"Log value\",DataLog!AJ3086,\"\")","v":""},{"$f":"IF(DataLog!$C3086=\"Log value\",DataLog!AK3086,\"\")","v":""},{"$f":"IF(DataLog!$C3086=\"Log value\",DataLog!AL3086,\"\")","v":""},{"$f":"IF(DataLog!$C3086=\"Log value\",DataLog!AM3086,\"\")","v":""}]
[null,null,null,null,null,null,{"$f":"IF(DataLog!$C3087=\"Log value\",DataLog!D3087&\"_\"&TEXT(DataLog!B3087,\"åååå-mm-dd\"),\"\")","v":""},{"$f":"IF(DataLog!$C3087=\"Log value\",DataLog!E3087,\"\")","v":""},{"$f":"IF(DataLog!$C3087=\"Log value\",DataLog!F3087,\"\")","v":""},{"$f":"IF(DataLog!$C3087=\"Log value\",DataLog!G3087,\"\")","v":""},{"$f":"IF(DataLog!$C3087=\"Log value\",DataLog!H3087,\"\")","v":""},{"$f":"IF(DataLog!$C3087=\"Log value\",DataLog!I3087,\"\")","v":""},{"$f":"IF(DataLog!$C3087=\"Log value\",DataLog!J3087,\"\")","v":""},{"$f":"IF(DataLog!$C3087=\"Log value\",DataLog!K3087,\"\")","v":""},{"$f":"IF(DataLog!$C3087=\"Log value\",DataLog!L3087,\"\")","v":""},{"$f":"IF(DataLog!$C3087=\"Log value\",DataLog!M3087,\"\")","v":""},{"$f":"IF(DataLog!$C3087=\"Log value\",DataLog!N3087,\"\")","v":""},{"$f":"IF(DataLog!$C3087=\"Log value\",DataLog!O3087,\"\")","v":""},{"$f":"IF(DataLog!$C3087=\"Log value\",DataLog!P3087,\"\")","v":""},{"$f":"IF(DataLog!$C3087=\"Log value\",DataLog!Q3087,\"\")","v":""},{"$f":"IF(DataLog!$C3087=\"Log value\",DataLog!R3087,\"\")","v":""},{"$f":"IF(DataLog!$C3087=\"Log value\",DataLog!S3087,\"\")","v":""},{"$f":"IF(DataLog!$C3087=\"Log value\",DataLog!T3087,\"\")","v":""},{"$f":"IF(DataLog!$C3087=\"Log value\",DataLog!U3087,\"\")","v":""},{"$f":"IF(DataLog!$C3087=\"Log value\",DataLog!V3087,\"\")","v":""},{"$f":"IF(DataLog!$C3087=\"Log value\",DataLog!W3087,\"\")","v":""},{"$f":"IF(DataLog!$C3087=\"Log value\",DataLog!X3087,\"\")","v":""},{"$f":"IF(DataLog!$C3087=\"Log value\",DataLog!Y3087,\"\")","v":""},{"$f":"IF(DataLog!$C3087=\"Log value\",DataLog!Z3087,\"\")","v":""},{"$f":"IF(DataLog!$C3087=\"Log value\",DataLog!AA3087,\"\")","v":""},{"$f":"IF(DataLog!$C3087=\"Log value\",DataLog!AB3087,\"\")","v":""},{"$f":"IF(DataLog!$C3087=\"Log value\",DataLog!AC3087,\"\")","v":""},{"$f":"IF(DataLog!$C3087=\"Log value\",DataLog!AD3087,\"\")","v":""},{"$f":"IF(DataLog!$C3087=\"Log value\",DataLog!AE3087,\"\")","v":""},{"$f":"IF(DataLog!$C3087=\"Log value\",DataLog!AF3087,\"\")","v":""},{"$f":"IF(DataLog!$C3087=\"Log value\",DataLog!AG3087,\"\")","v":""},{"$f":"IF(DataLog!$C3087=\"Log value\",DataLog!AH3087,\"\")","v":""},{"$f":"IF(DataLog!$C3087=\"Log value\",DataLog!AI3087,\"\")","v":""},{"$f":"IF(DataLog!$C3087=\"Log value\",DataLog!AJ3087,\"\")","v":""},{"$f":"IF(DataLog!$C3087=\"Log value\",DataLog!AK3087,\"\")","v":""},{"$f":"IF(DataLog!$C3087=\"Log value\",DataLog!AL3087,\"\")","v":""},{"$f":"IF(DataLog!$C3087=\"Log value\",DataLog!AM3087,\"\")","v":""}]
[null,null,null,null,null,null,{"$f":"IF(DataLog!$C3090=\"Log value\",DataLog!D3090&\"_\"&TEXT(DataLog!B3090,\"åååå-mm-dd\"),\"\")","v":""},{"$f":"IF(DataLog!$C3090=\"Log value\",DataLog!E3090,\"\")","v":""},{"$f":"IF(DataLog!$C3090=\"Log value\",DataLog!F3090,\"\")","v":""},{"$f":"IF(DataLog!$C3090=\"Log value\",DataLog!G3090,\"\")","v":""},{"$f":"IF(DataLog!$C3090=\"Log value\",DataLog!H3090,\"\")","v":""},{"$f":"IF(DataLog!$C3090=\"Log value\",DataLog!I3090,\"\")","v":""},{"$f":"IF(DataLog!$C3090=\"Log value\",DataLog!J3090,\"\")","v":""},{"$f":"IF(DataLog!$C3090=\"Log value\",DataLog!K3090,\"\")","v":""},{"$f":"IF(DataLog!$C3090=\"Log value\",DataLog!L3090,\"\")","v":""},{"$f":"IF(DataLog!$C3090=\"Log value\",DataLog!M3090,\"\")","v":""},{"$f":"IF(DataLog!$C3090=\"Log value\",DataLog!N3090,\"\")","v":""},{"$f":"IF(DataLog!$C3090=\"Log value\",DataLog!O3090,\"\")","v":""},{"$f":"IF(DataLog!$C3090=\"Log value\",DataLog!P3090,\"\")","v":""},{"$f":"IF(DataLog!$C3090=\"Log value\",DataLog!Q3090,\"\")","v":""},{"$f":"IF(DataLog!$C3090=\"Log value\",DataLog!R3090,\"\")","v":""},{"$f":"IF(DataLog!$C3090=\"Log value\",DataLog!S3090,\"\")","v":""},{"$f":"IF(DataLog!$C3090=\"Log value\",DataLog!T3090,\"\")","v":""},{"$f":"IF(DataLog!$C3090=\"Log value\",DataLog!U3090,\"\")","v":""},{"$f":"IF(DataLog!$C3090=\"Log value\",DataLog!V3090,\"\")","v":""},{"$f":"IF(DataLog!$C3090=\"Log value\",DataLog!W3090,\"\")","v":""},{"$f":"IF(DataLog!$C3090=\"Log value\",DataLog!X3090,\"\")","v":""},{"$f":"IF(DataLog!$C3090=\"Log value\",DataLog!Y3090,\"\")","v":""},{"$f":"IF(DataLog!$C3090=\"Log value\",DataLog!Z3090,\"\")","v":""},{"$f":"IF(DataLog!$C3090=\"Log value\",DataLog!AA3090,\"\")","v":""},{"$f":"IF(DataLog!$C3090=\"Log value\",DataLog!AB3090,\"\")","v":""},{"$f":"IF(DataLog!$C3090=\"Log value\",DataLog!AC3090,\"\")","v":""},{"$f":"IF(DataLog!$C3090=\"Log value\",DataLog!AD3090,\"\")","v":""},{"$f":"IF(DataLog!$C3090=\"Log value\",DataLog!AE3090,\"\")","v":""},{"$f":"IF(DataLog!$C3090=\"Log value\",DataLog!AF3090,\"\")","v":""},{"$f":"IF(DataLog!$C3090=\"Log value\",DataLog!AG3090,\"\")","v":""},{"$f":"IF(DataLog!$C3090=\"Log value\",DataLog!AH3090,\"\")","v":""},{"$f":"IF(DataLog!$C3090=\"Log value\",DataLog!AI3090,\"\")","v":""},{"$f":"IF(DataLog!$C3090=\"Log value\",DataLog!AJ3090,\"\")","v":""},{"$f":"IF(DataLog!$C3090=\"Log value\",DataLog!AK3090,\"\")","v":""},{"$f":"IF(DataLog!$C3090=\"Log value\",DataLog!AL3090,\"\")","v":""},{"$f":"IF(DataLog!$C3090=\"Log value\",DataLog!AM3090,\"\")","v":""}]
[null,null,null,null,null,null,{"$f":"IF(DataLog!$C3093=\"Log value\",DataLog!D3093&\"_\"&TEXT(DataLog!B3093,\"åååå-mm-dd\"),\"\")","v":""},{"$f":"IF(DataLog!$C3093=\"Log value\",DataLog!E3093,\"\")","v":""},{"$f":"IF(DataLog!$C3093=\"Log value\",DataLog!F3093,\"\")","v":""},{"$f":"IF(DataLog!$C3093=\"Log value\",DataLog!G3093,\"\")","v":""},{"$f":"IF(DataLog!$C3093=\"Log value\",DataLog!H3093,\"\")","v":""},{"$f":"IF(DataLog!$C3093=\"Log value\",DataLog!I3093,\"\")","v":""},{"$f":"IF(DataLog!$C3093=\"Log value\",DataLog!J3093,\"\")","v":""},{"$f":"IF(DataLog!$C3093=\"Log value\",DataLog!K3093,\"\")","v":""},{"$f":"IF(DataLog!$C3093=\"Log value\",DataLog!L3093,\"\")","v":""},{"$f":"IF(DataLog!$C3093=\"Log value\",DataLog!M3093,\"\")","v":""},{"$f":"IF(DataLog!$C3093=\"Log value\",DataLog!N3093,\"\")","v":""},{"$f":"IF(DataLog!$C3093=\"Log value\",DataLog!O3093,\"\")","v":""},{"$f":"IF(DataLog!$C3093=\"Log value\",DataLog!P3093,\"\")","v":""},{"$f":"IF(DataLog!$C3093=\"Log value\",DataLog!Q3093,\"\")","v":""},{"$f":"IF(DataLog!$C3093=\"Log value\",DataLog!R3093,\"\")","v":""},{"$f":"IF(DataLog!$C3093=\"Log value\",DataLog!S3093,\"\")","v":""},{"$f":"IF(DataLog!$C3093=\"Log value\",DataLog!T3093,\"\")","v":""},{"$f":"IF(DataLog!$C3093=\"Log value\",DataLog!U3093,\"\")","v":""},{"$f":"IF(DataLog!$C3093=\"Log value\",DataLog!V3093,\"\")","v":""},{"$f":"IF(DataLog!$C3093=\"Log value\",DataLog!W3093,\"\")","v":""},{"$f":"IF(DataLog!$C3093=\"Log value\",DataLog!X3093,\"\")","v":""},{"$f":"IF(DataLog!$C3093=\"Log value\",DataLog!Y3093,\"\")","v":""},{"$f":"IF(DataLog!$C3093=\"Log value\",DataLog!Z3093,\"\")","v":""},{"$f":"IF(DataLog!$C3093=\"Log value\",DataLog!AA3093,\"\")","v":""},{"$f":"IF(DataLog!$C3093=\"Log value\",DataLog!AB3093,\"\")","v":""},{"$f":"IF(DataLog!$C3093=\"Log value\",DataLog!AC3093,\"\")","v":""},{"$f":"IF(DataLog!$C3093=\"Log value\",DataLog!AD3093,\"\")","v":""},{"$f":"IF(DataLog!$C3093=\"Log value\",DataLog!AE3093,\"\")","v":""},{"$f":"IF(DataLog!$C3093=\"Log value\",DataLog!AF3093,\"\")","v":""},{"$f":"IF(DataLog!$C3093=\"Log value\",DataLog!AG3093,\"\")","v":""},{"$f":"IF(DataLog!$C3093=\"Log value\",DataLog!AH3093,\"\")","v":""},{"$f":"IF(DataLog!$C3093=\"Log value\",DataLog!AI3093,\"\")","v":""},{"$f":"IF(DataLog!$C3093=\"Log value\",DataLog!AJ3093,\"\")","v":""},{"$f":"IF(DataLog!$C3093=\"Log value\",DataLog!AK3093,\"\")","v":""},{"$f":"IF(DataLog!$C3093=\"Log value\",DataLog!AL3093,\"\")","v":""},{"$f":"IF(DataLog!$C3093=\"Log value\",DataLog!AM3093,\"\")","v":""}]
[null,null,null,null,null,null,{"$f":"IF(DataLog!$C3095=\"Log value\",DataLog!D3095&\"_\"&TEXT(DataLog!B3095,\"åååå-mm-dd\"),\"\")","v":""},{"$f":"IF(DataLog!$C3095=\"Log value\",DataLog!E3095,\"\")","v":""},{"$f":"IF(DataLog!$C3095=\"Log value\",DataLog!F3095,\"\")","v":""},{"$f":"IF(DataLog!$C3095=\"Log value\",DataLog!G3095,\"\")","v":""},{"$f":"IF(DataLog!$C3095=\"Log value\",DataLog!H3095,\"\")","v":""},{"$f":"IF(DataLog!$C3095=\"Log value\",DataLog!I3095,\"\")","v":""},{"$f":"IF(DataLog!$C3095=\"Log value\",DataLog!J3095,\"\")","v":""},{"$f":"IF(DataLog!$C3095=\"Log value\",DataLog!K3095,\"\")","v":""},{"$f":"IF(DataLog!$C3095=\"Log value\",DataLog!L3095,\"\")","v":""},{"$f":"IF(DataLog!$C3095=\"Log value\",DataLog!M3095,\"\")","v":""},{"$f":"IF(DataLog!$C3095=\"Log value\",DataLog!N3095,\"\")","v":""},{"$f":"IF(DataLog!$C3095=\"Log value\",DataLog!O3095,\"\")","v":""},{"$f":"IF(DataLog!$C3095=\"Log value\",DataLog!P3095,\"\")","v":""},{"$f":"IF(DataLog!$C3095=\"Log value\",DataLog!Q3095,\"\")","v":""},{"$f":"IF(DataLog!$C3095=\"Log value\",DataLog!R3095,\"\")","v":""},{"$f":"IF(DataLog!$C3095=\"Log value\",DataLog!S3095,\"\")","v":""},{"$f":"IF(DataLog!$C3095=\"Log value\",DataLog!T3095,\"\")","v":""},{"$f":"IF(DataLog!$C3095=\"Log value\",DataLog!U3095,\"\")","v":""},{"$f":"IF(DataLog!$C3095=\"Log value\",DataLog!V3095,\"\")","v":""},{"$f":"IF(DataLog!$C3095=\"Log value\",DataLog!W3095,\"\")","v":""},{"$f":"IF(DataLog!$C3095=\"Log value\",DataLog!X3095,\"\")","v":""},{"$f":"IF(DataLog!$C3095=\"Log value\",DataLog!Y3095,\"\")","v":""},{"$f":"IF(DataLog!$C3095=\"Log value\",DataLog!Z3095,\"\")","v":""},{"$f":"IF(DataLog!$C3095=\"Log value\",DataLog!AA3095,\"\")","v":""},{"$f":"IF(DataLog!$C3095=\"Log value\",DataLog!AB3095,\"\")","v":""},{"$f":"IF(DataLog!$C3095=\"Log value\",DataLog!AC3095,\"\")","v":""},{"$f":"IF(DataLog!$C3095=\"Log value\",DataLog!AD3095,\"\")","v":""},{"$f":"IF(DataLog!$C3095=\"Log value\",DataLog!AE3095,\"\")","v":""},{"$f":"IF(DataLog!$C3095=\"Log value\",DataLog!AF3095,\"\")","v":""},{"$f":"IF(DataLog!$C3095=\"Log value\",DataLog!AG3095,\"\")","v":""},{"$f":"IF(DataLog!$C3095=\"Log value\",DataLog!AH3095,\"\")","v":""},{"$f":"IF(DataLog!$C3095=\"Log value\",DataLog!AI3095,\"\")","v":""},{"$f":"IF(DataLog!$C3095=\"Log value\",DataLog!AJ3095,\"\")","v":""},{"$f":"IF(DataLog!$C3095=\"Log value\",DataLog!AK3095,\"\")","v":""},{"$f":"IF(DataLog!$C3095=\"Log value\",DataLog!AL3095,\"\")","v":""},{"$f":"IF(DataLog!$C3095=\"Log value\",DataLog!AM3095,\"\")","v":""}]
[null,null,null,null,null,null,{"$f":"IF(DataLog!$C3096=\"Log value\",DataLog!D3096&\"_\"&TEXT(DataLog!B3096,\"åååå-mm-dd\"),\"\")","v":""},{"$f":"IF(DataLog!$C3096=\"Log value\",DataLog!E3096,\"\")","v":""},{"$f":"IF(DataLog!$C3096=\"Log value\",DataLog!F3096,\"\")","v":""},{"$f":"IF(DataLog!$C3096=\"Log value\",DataLog!G3096,\"\")","v":""},{"$f":"IF(DataLog!$C3096=\"Log value\",DataLog!H3096,\"\")","v":""},{"$f":"IF(DataLog!$C3096=\"Log value\",DataLog!I3096,\"\")","v":""},{"$f":"IF(DataLog!$C3096=\"Log value\",DataLog!J3096,\"\")","v":""},{"$f":"IF(DataLog!$C3096=\"Log value\",DataLog!K3096,\"\")","v":""},{"$f":"IF(DataLog!$C3096=\"Log value\",DataLog!L3096,\"\")","v":""},{"$f":"IF(DataLog!$C3096=\"Log value\",DataLog!M3096,\"\")","v":""},{"$f":"IF(DataLog!$C3096=\"Log value\",DataLog!N3096,\"\")","v":""},{"$f":"IF(DataLog!$C3096=\"Log value\",DataLog!O3096,\"\")","v":""},{"$f":"IF(DataLog!$C3096=\"Log value\",DataLog!P3096,\"\")","v":""},{"$f":"IF(DataLog!$C3096=\"Log value\",DataLog!Q3096,\"\")","v":""},{"$f":"IF(DataLog!$C3096=\"Log value\",DataLog!R3096,\"\")","v":""},{"$f":"IF(DataLog!$C3096=\"Log value\",DataLog!S3096,\"\")","v":""},{"$f":"IF(DataLog!$C3096=\"Log value\",DataLog!T3096,\"\")","v":""},{"$f":"IF(DataLog!$C3096=\"Log value\",DataLog!U3096,\"\")","v":""},{"$f":"IF(DataLog!$C3096=\"Log value\",DataLog!V3096,\"\")","v":""},{"$f":"IF(DataLog!$C3096=\"Log value\",DataLog!W3096,\"\")","v":""},{"$f":"IF(DataLog!$C3096=\"Log value\",DataLog!X3096,\"\")","v":""},{"$f":"IF(DataLog!$C3096=\"Log value\",DataLog!Y3096,\"\")","v":""},{"$f":"IF(DataLog!$C3096=\"Log value\",DataLog!Z3096,\"\")","v":""},{"$f":"IF(DataLog!$C3096=\"Log value\",DataLog!AA3096,\"\")","v":""},{"$f":"IF(DataLog!$C3096=\"Log value\",DataLog!AB3096,\"\")","v":""},{"$f":"IF(DataLog!$C3096=\"Log value\",DataLog!AC3096,\"\")","v":""},{"$f":"IF(DataLog!$C3096=\"Log value\",DataLog!AD3096,\"\")","v":""},{"$f":"IF(DataLog!$C3096=\"Log value\",DataLog!AE3096,\"\")","v":""},{"$f":"IF(DataLog!$C3096=\"Log value\",DataLog!AF3096,\"\")","v":""},{"$f":"IF(DataLog!$C3096=\"Log value\",DataLog!AG3096,\"\")","v":""},{"$f":"IF(DataLog!$C3096=\"Log value\",DataLog!AH3096,\"\")","v":""},{"$f":"IF(DataLog!$C3096=\"Log value\",DataLog!AI3096,\"\")","v":""},{"$f":"IF(DataLog!$C3096=\"Log value\",DataLog!AJ3096,\"\")","v":""},{"$f":"IF(DataLog!$C3096=\"Log value\",DataLog!AK3096,\"\")","v":""},{"$f":"IF(DataLog!$C3096=\"Log value\",DataLog!AL3096,\"\")","v":""},{"$f":"IF(DataLog!$C3096=\"Log value\",DataLog!AM3096,\"\")","v":""}]
[null,null,null,null,null,null,{"$f":"IF(DataLog!$C3098=\"Log value\",DataLog!D3098&\"_\"&TEXT(DataLog!B3098,\"åååå-mm-dd\"),\"\")","v":""},{"$f":"IF(DataLog!$C3098=\"Log value\",DataLog!E3098,\"\")","v":""},{"$f":"IF(DataLog!$C3098=\"Log value\",DataLog!F3098,\"\")","v":""},{"$f":"IF(DataLog!$C3098=\"Log value\",DataLog!G3098,\"\")","v":""},{"$f":"IF(DataLog!$C3098=\"Log value\",DataLog!H3098,\"\")","v":""},{"$f":"IF(DataLog!$C3098=\"Log value\",DataLog!I3098,\"\")","v":""},{"$f":"IF(DataLog!$C3098=\"Log value\",DataLog!J3098,\"\")","v":""},{"$f":"IF(DataLog!$C3098=\"Log value\",DataLog!K3098,\"\")","v":""},{"$f":"IF(DataLog!$C3098=\"Log value\",DataLog!L3098,\"\")","v":""},{"$f":"IF(DataLog!$C3098=\"Log value\",DataLog!M3098,\"\")","v":""},{"$f":"IF(DataLog!$C3098=\"Log value\",DataLog!N3098,\"\")","v":""},{"$f":"IF(DataLog!$C3098=\"Log value\",DataLog!O3098,\"\")","v":""},{"$f":"IF(DataLog!$C3098=\"Log value\",DataLog!P3098,\"\")","v":""},{"$f":"IF(DataLog!$C3098=\"Log value\",DataLog!Q3098,\"\")","v":""},{"$f":"IF(DataLog!$C3098=\"Log value\",DataLog!R3098,\"\")","v":""},{"$f":"IF(DataLog!$C3098=\"Log value\",DataLog!S3098,\"\")","v":""},{"$f":"IF(DataLog!$C3098=\"Log value\",DataLog!T3098,\"\")","v":""},{"$f":"IF(DataLog!$C3098=\"Log value\",DataLog!U3098,\"\")","v":""},{"$f":"IF(DataLog!$C3098=\"Log value\",DataLog!V3098,\"\")","v":""},{"$f":"IF(DataLog!$C3098=\"Log value\",DataLog!W3098,\"\")","v":""},{"$f":"IF(DataLog!$C3098=\"Log value\",DataLog!X3098,\"\")","v":""},{"$f":"IF(DataLog!$C3098=\"Log value\",DataLog!Y3098,\"\")","v":""},{"$f":"IF(DataLog!$C3098=\"Log value\",DataLog!Z3098,\"\")","v":""},{"$f":"IF(DataLog!$C3098=\"Log value\",DataLog!AA3098,\"\")","v":""},{"$f":"IF(DataLog!$C3098=\"Log value\",DataLog!AB3098,\"\")","v":""},{"$f":"IF(DataLog!$C3098=\"Log value\",DataLog!AC3098,\"\")","v":""},{"$f":"IF(DataLog!$C3098=\"Log value\",DataLog!AD3098,\"\")","v":""},{"$f":"IF(DataLog!$C3098=\"Log value\",DataLog!AE3098,\"\")","v":""},{"$f":"IF(DataLog!$C3098=\"Log value\",DataLog!AF3098,\"\")","v":""},{"$f":"IF(DataLog!$C3098=\"Log value\",DataLog!AG3098,\"\")","v":""},{"$f":"IF(DataLog!$C3098=\"Log value\",DataLog!AH3098,\"\")","v":""},{"$f":"IF(DataLog!$C3098=\"Log value\",DataLog!AI3098,\"\")","v":""},{"$f":"IF(DataLog!$C3098=\"Log value\",DataLog!AJ3098,\"\")","v":""},{"$f":"IF(DataLog!$C3098=\"Log value\",DataLog!AK3098,\"\")","v":""},{"$f":"IF(DataLog!$C3098=\"Log value\",DataLog!AL3098,\"\")","v":""},{"$f":"IF(DataLog!$C3098=\"Log value\",DataLog!AM3098,\"\")","v":""}]
[null,null,null,null,null,null,{"$f":"IF(DataLog!$C3101=\"Log value\",DataLog!D3101&\"_\"&TEXT(DataLog!B3101,\"åååå-mm-dd\"),\"\")","v":""},{"$f":"IF(DataLog!$C3101=\"Log value\",DataLog!E3101,\"\")","v":""},{"$f":"IF(DataLog!$C3101=\"Log value\",DataLog!F3101,\"\")","v":""},{"$f":"IF(DataLog!$C3101=\"Log value\",DataLog!G3101,\"\")","v":""},{"$f":"IF(DataLog!$C3101=\"Log value\",DataLog!H3101,\"\")","v":""},{"$f":"IF(DataLog!$C3101=\"Log value\",DataLog!I3101,\"\")","v":""},{"$f":"IF(DataLog!$C3101=\"Log value\",DataLog!J3101,\"\")","v":""},{"$f":"IF(DataLog!$C3101=\"Log value\",DataLog!K3101,\"\")","v":""},{"$f":"IF(DataLog!$C3101=\"Log value\",DataLog!L3101,\"\")","v":""},{"$f":"IF(DataLog!$C3101=\"Log value\",DataLog!M3101,\"\")","v":""},{"$f":"IF(DataLog!$C3101=\"Log value\",DataLog!N3101,\"\")","v":""},{"$f":"IF(DataLog!$C3101=\"Log value\",DataLog!O3101,\"\")","v":""},{"$f":"IF(DataLog!$C3101=\"Log value\",DataLog!P3101,\"\")","v":""},{"$f":"IF(DataLog!$C3101=\"Log value\",DataLog!Q3101,\"\")","v":""},{"$f":"IF(DataLog!$C3101=\"Log value\",DataLog!R3101,\"\")","v":""},{"$f":"IF(DataLog!$C3101=\"Log value\",DataLog!S3101,\"\")","v":""},{"$f":"IF(DataLog!$C3101=\"Log value\",DataLog!T3101,\"\")","v":""},{"$f":"IF(DataLog!$C3101=\"Log value\",DataLog!U3101,\"\")","v":""},{"$f":"IF(DataLog!$C3101=\"Log value\",DataLog!V3101,\"\")","v":""},{"$f":"IF(DataLog!$C3101=\"Log value\",DataLog!W3101,\"\")","v":""},{"$f":"IF(DataLog!$C3101=\"Log value\",DataLog!X3101,\"\")","v":""},{"$f":"IF(DataLog!$C3101=\"Log value\",DataLog!Y3101,\"\")","v":""},{"$f":"IF(DataLog!$C3101=\"Log value\",DataLog!Z3101,\"\")","v":""},{"$f":"IF(DataLog!$C3101=\"Log value\",DataLog!AA3101,\"\")","v":""},{"$f":"IF(DataLog!$C3101=\"Log value\",DataLog!AB3101,\"\")","v":""},{"$f":"IF(DataLog!$C3101=\"Log value\",DataLog!AC3101,\"\")","v":""},{"$f":"IF(DataLog!$C3101=\"Log value\",DataLog!AD3101,\"\")","v":""},{"$f":"IF(DataLog!$C3101=\"Log value\",DataLog!AE3101,\"\")","v":""},{"$f":"IF(DataLog!$C3101=\"Log value\",DataLog!AF3101,\"\")","v":""},{"$f":"IF(DataLog!$C3101=\"Log value\",DataLog!AG3101,\"\")","v":""},{"$f":"IF(DataLog!$C3101=\"Log value\",DataLog!AH3101,\"\")","v":""},{"$f":"IF(DataLog!$C3101=\"Log value\",DataLog!AI3101,\"\")","v":""},{"$f":"IF(DataLog!$C3101=\"Log value\",DataLog!AJ3101,\"\")","v":""},{"$f":"IF(DataLog!$C3101=\"Log value\",DataLog!AK3101,\"\")","v":""},{"$f":"IF(DataLog!$C3101=\"Log value\",DataLog!AL3101,\"\")","v":""},{"$f":"IF(DataLog!$C3101=\"Log value\",DataLog!AM3101,\"\")","v":""}]
[null,null,null,null,null,null,{"$f":"IF(DataLog!$C3104=\"Log value\",DataLog!D3104&\"_\"&TEXT(DataLog!B3104,\"åååå-mm-dd\"),\"\")","v":""},{"$f":"IF(DataLog!$C3104=\"Log value\",DataLog!E3104,\"\")","v":""},{"$f":"IF(DataLog!$C3104=\"Log value\",DataLog!F3104,\"\")","v":""},{"$f":"IF(DataLog!$C3104=\"Log value\",DataLog!G3104,\"\")","v":""},{"$f":"IF(DataLog!$C3104=\"Log value\",DataLog!H3104,\"\")","v":""},{"$f":"IF(DataLog!$C3104=\"Log value\",DataLog!I3104,\"\")","v":""},{"$f":"IF(DataLog!$C3104=\"Log value\",DataLog!J3104,\"\")","v":""},{"$f":"IF(DataLog!$C3104=\"Log value\",DataLog!K3104,\"\")","v":""},{"$f":"IF(DataLog!$C3104=\"Log value\",DataLog!L3104,\"\")","v":""},{"$f":"IF(DataLog!$C3104=\"Log value\",DataLog!M3104,\"\")","v":""},{"$f":"IF(DataLog!$C3104=\"Log value\",DataLog!N3104,\"\")","v":""},{"$f":"IF(DataLog!$C3104=\"Log value\",DataLog!O3104,\"\")","v":""},{"$f":"IF(DataLog!$C3104=\"Log value\",DataLog!P3104,\"\")","v":""},{"$f":"IF(DataLog!$C3104=\"Log value\",DataLog!Q3104,\"\")","v":""},{"$f":"IF(DataLog!$C3104=\"Log value\",DataLog!R3104,\"\")","v":""},{"$f":"IF(DataLog!$C3104=\"Log value\",DataLog!S3104,\"\")","v":""},{"$f":"IF(DataLog!$C3104=\"Log value\",DataLog!T3104,\"\")","v":""},{"$f":"IF(DataLog!$C3104=\"Log value\",DataLog!U3104,\"\")","v":""},{"$f":"IF(DataLog!$C3104=\"Log value\",DataLog!V3104,\"\")","v":""},{"$f":"IF(DataLog!$C3104=\"Log value\",DataLog!W3104,\"\")","v":""},{"$f":"IF(DataLog!$C3104=\"Log value\",DataLog!X3104,\"\")","v":""},{"$f":"IF(DataLog!$C3104=\"Log value\",DataLog!Y3104,\"\")","v":""},{"$f":"IF(DataLog!$C3104=\"Log value\",DataLog!Z3104,\"\")","v":""},{"$f":"IF(DataLog!$C3104=\"Log value\",DataLog!AA3104,\"\")","v":""},{"$f":"IF(DataLog!$C3104=\"Log value\",DataLog!AB3104,\"\")","v":""},{"$f":"IF(DataLog!$C3104=\"Log value\",DataLog!AC3104,\"\")","v":""},{"$f":"IF(DataLog!$C3104=\"Log value\",DataLog!AD3104,\"\")","v":""},{"$f":"IF(DataLog!$C3104=\"Log value\",DataLog!AE3104,\"\")","v":""},{"$f":"IF(DataLog!$C3104=\"Log value\",DataLog!AF3104,\"\")","v":""},{"$f":"IF(DataLog!$C3104=\"Log value\",DataLog!AG3104,\"\")","v":""},{"$f":"IF(DataLog!$C3104=\"Log value\",DataLog!AH3104,\"\")","v":""},{"$f":"IF(DataLog!$C3104=\"Log value\",DataLog!AI3104,\"\")","v":""},{"$f":"IF(DataLog!$C3104=\"Log value\",DataLog!AJ3104,\"\")","v":""},{"$f":"IF(DataLog!$C3104=\"Log value\",DataLog!AK3104,\"\")","v":""},{"$f":"IF(DataLog!$C3104=\"Log value\",DataLog!AL3104,\"\")","v":""},{"$f":"IF(DataLog!$C3104=\"Log value\",DataLog!AM3104,\"\")","v":""}]
[null,null,null,null,null,null,{"$f":"IF(DataLog!$C3105=\"Log value\",DataLog!D3105&\"_\"&TEXT(DataLog!B3105,\"åååå-mm-dd\"),\"\")","v":""},{"$f":"IF(DataLog!$C3105=\"Log value\",DataLog!E3105,\"\")","v":""},{"$f":"IF(DataLog!$C3105=\"Log value\",DataLog!F3105,\"\")","v":""},{"$f":"IF(DataLog!$C3105=\"Log value\",DataLog!G3105,\"\")","v":""},{"$f":"IF(DataLog!$C3105=\"Log value\",DataLog!H3105,\"\")","v":""},{"$f":"IF(DataLog!$C3105=\"Log value\",DataLog!I3105,\"\")","v":""},{"$f":"IF(DataLog!$C3105=\"Log value\",DataLog!J3105,\"\")","v":""},{"$f":"IF(DataLog!$C3105=\"Log value\",DataLog!K3105,\"\")","v":""},{"$f":"IF(DataLog!$C3105=\"Log value\",DataLog!L3105,\"\")","v":""},{"$f":"IF(DataLog!$C3105=\"Log value\",DataLog!M3105,\"\")","v":""},{"$f":"IF(DataLog!$C3105=\"Log value\",DataLog!N3105,\"\")","v":""},{"$f":"IF(DataLog!$C3105=\"Log value\",DataLog!O3105,\"\")","v":""},{"$f":"IF(DataLog!$C3105=\"Log value\",DataLog!P3105,\"\")","v":""},{"$f":"IF(DataLog!$C3105=\"Log value\",DataLog!Q3105,\"\")","v":""},{"$f":"IF(DataLog!$C3105=\"Log value\",DataLog!R3105,\"\")","v":""},{"$f":"IF(DataLog!$C3105=\"Log value\",DataLog!S3105,\"\")","v":""},{"$f":"IF(DataLog!$C3105=\"Log value\",DataLog!T3105,\"\")","v":""},{"$f":"IF(DataLog!$C3105=\"Log value\",DataLog!U3105,\"\")","v":""},{"$f":"IF(DataLog!$C3105=\"Log value\",DataLog!V3105,\"\")","v":""},{"$f":"IF(DataLog!$C3105=\"Log value\",DataLog!W3105,\"\")","v":""},{"$f":"IF(DataLog!$C3105=\"Log value\",DataLog!X3105,\"\")","v":""},{"$f":"IF(DataLog!$C3105=\"Log value\",DataLog!Y3105,\"\")","v":""},{"$f":"IF(DataLog!$C3105=\"Log value\",DataLog!Z3105,\"\")","v":""},{"$f":"IF(DataLog!$C3105=\"Log value\",DataLog!AA3105,\"\")","v":""},{"$f":"IF(DataLog!$C3105=\"Log value\",DataLog!AB3105,\"\")","v":""},{"$f":"IF(DataLog!$C3105=\"Log value\",DataLog!AC3105,\"\")","v":""},{"$f":"IF(DataLog!$C3105=\"Log value\",DataLog!AD3105,\"\")","v":""},{"$f":"IF(DataLog!$C3105=\"Log value\",DataLog!AE3105,\"\")","v":""},{"$f":"IF(DataLog!$C3105=\"Log value\",DataLog!AF3105,\"\")","v":""},{"$f":"IF(DataLog!$C3105=\"Log value\",DataLog!AG3105,\"\")","v":""},{"$f":"IF(DataLog!$C3105=\"Log value\",DataLog!AH3105,\"\")","v":""},{"$f":"IF(DataLog!$C3105=\"Log value\",DataLog!AI3105,\"\")","v":""},{"$f":"IF(DataLog!$C3105=\"Log value\",DataLog!AJ3105,\"\")","v":""},{"$f":"IF(DataLog!$C3105=\"Log value\",DataLog!AK3105,\"\")","v":""},{"$f":"IF(DataLog!$C3105=\"Log value\",DataLog!AL3105,\"\")","v":""},{"$f":"IF(DataLog!$C3105=\"Log value\",DataLog!AM3105,\"\")","v":""}]
[null,null,null,null,null,null,{"$f":"IF(DataLog!$C3109=\"Log value\",DataLog!D3109&\"_\"&TEXT(DataLog!B3109,\"åååå-mm-dd\"),\"\")","v":""},{"$f":"IF(DataLog!$C3109=\"Log value\",DataLog!E3109,\"\")","v":""},{"$f":"IF(DataLog!$C3109=\"Log value\",DataLog!F3109,\"\")","v":""},{"$f":"IF(DataLog!$C3109=\"Log value\",DataLog!G3109,\"\")","v":""},{"$f":"IF(DataLog!$C3109=\"Log value\",DataLog!H3109,\"\")","v":""},{"$f":"IF(DataLog!$C3109=\"Log value\",DataLog!I3109,\"\")","v":""},{"$f":"IF(DataLog!$C3109=\"Log value\",DataLog!J3109,\"\")","v":""},{"$f":"IF(DataLog!$C3109=\"Log value\",DataLog!K3109,\"\")","v":""},{"$f":"IF(DataLog!$C3109=\"Log value\",DataLog!L3109,\"\")","v":""},{"$f":"IF(DataLog!$C3109=\"Log value\",DataLog!M3109,\"\")","v":""},{"$f":"IF(DataLog!$C3109=\"Log value\",DataLog!N3109,\"\")","v":""},{"$f":"IF(DataLog!$C3109=\"Log value\",DataLog!O3109,\"\")","v":""},{"$f":"IF(DataLog!$C3109=\"Log value\",DataLog!P3109,\"\")","v":""},{"$f":"IF(DataLog!$C3109=\"Log value\",DataLog!Q3109,\"\")","v":""},{"$f":"IF(DataLog!$C3109=\"Log value\",DataLog!R3109,\"\")","v":""},{"$f":"IF(DataLog!$C3109=\"Log value\",DataLog!S3109,\"\")","v":""},{"$f":"IF(DataLog!$C3109=\"Log value\",DataLog!T3109,\"\")","v":""},{"$f":"IF(DataLog!$C3109=\"Log value\",DataLog!U3109,\"\")","v":""},{"$f":"IF(DataLog!$C3109=\"Log value\",DataLog!V3109,\"\")","v":""},{"$f":"IF(DataLog!$C3109=\"Log value\",DataLog!W3109,\"\")","v":""},{"$f":"IF(DataLog!$C3109=\"Log value\",DataLog!X3109,\"\")","v":""},{"$f":"IF(DataLog!$C3109=\"Log value\",DataLog!Y3109,\"\")","v":""},{"$f":"IF(DataLog!$C3109=\"Log value\",DataLog!Z3109,\"\")","v":""},{"$f":"IF(DataLog!$C3109=\"Log value\",DataLog!AA3109,\"\")","v":""},{"$f":"IF(DataLog!$C3109=\"Log value\",DataLog!AB3109,\"\")","v":""},{"$f":"IF(DataLog!$C3109=\"Log value\",DataLog!AC3109,\"\")","v":""},{"$f":"IF(DataLog!$C3109=\"Log value\",DataLog!AD3109,\"\")","v":""},{"$f":"IF(DataLog!$C3109=\"Log value\",DataLog!AE3109,\"\")","v":""},{"$f":"IF(DataLog!$C3109=\"Log value\",DataLog!AF3109,\"\")","v":""},{"$f":"IF(DataLog!$C3109=\"Log value\",DataLog!AG3109,\"\")","v":""},{"$f":"IF(DataLog!$C3109=\"Log value\",DataLog!AH3109,\"\")","v":""},{"$f":"IF(DataLog!$C3109=\"Log value\",DataLog!AI3109,\"\")","v":""},{"$f":"IF(DataLog!$C3109=\"Log value\",DataLog!AJ3109,\"\")","v":""},{"$f":"IF(DataLog!$C3109=\"Log value\",DataLog!AK3109,\"\")","v":""},{"$f":"IF(DataLog!$C3109=\"Log value\",DataLog!AL3109,\"\")","v":""},{"$f":"IF(DataLog!$C3109=\"Log value\",DataLog!AM3109,\"\")","v":""}]
[null,null,null,null,null,null,{"$f":"IF(DataLog!$C3110=\"Log value\",DataLog!D3110&\"_\"&TEXT(DataLog!B3110,\"åååå-mm-dd\"),\"\")","v":""},{"$f":"IF(DataLog!$C3110=\"Log value\",DataLog!E3110,\"\")","v":""},{"$f":"IF(DataLog!$C3110=\"Log value\",DataLog!F3110,\"\")","v":""},{"$f":"IF(DataLog!$C3110=\"Log value\",DataLog!G3110,\"\")","v":""},{"$f":"IF(DataLog!$C3110=\"Log value\",DataLog!H3110,\"\")","v":""},{"$f":"IF(DataLog!$C3110=\"Log value\",DataLog!I3110,\"\")","v":""},{"$f":"IF(DataLog!$C3110=\"Log value\",DataLog!J3110,\"\")","v":""},{"$f":"IF(DataLog!$C3110=\"Log value\",DataLog!K3110,\"\")","v":""},{"$f":"IF(DataLog!$C3110=\"Log value\",DataLog!L3110,\"\")","v":""},{"$f":"IF(DataLog!$C3110=\"Log value\",DataLog!M3110,\"\")","v":""},{"$f":"IF(DataLog!$C3110=\"Log value\",DataLog!N3110,\"\")","v":""},{"$f":"IF(DataLog!$C3110=\"Log value\",DataLog!O3110,\"\")","v":""},{"$f":"IF(DataLog!$C3110=\"Log value\",DataLog!P3110,\"\")","v":""},{"$f":"IF(DataLog!$C3110=\"Log value\",DataLog!Q3110,\"\")","v":""},{"$f":"IF(DataLog!$C3110=\"Log value\",DataLog!R3110,\"\")","v":""},{"$f":"IF(DataLog!$C3110=\"Log value\",DataLog!S3110,\"\")","v":""},{"$f":"IF(DataLog!$C3110=\"Log value\",DataLog!T3110,\"\")","v":""},{"$f":"IF(DataLog!$C3110=\"Log value\",DataLog!U3110,\"\")","v":""},{"$f":"IF(DataLog!$C3110=\"Log value\",DataLog!V3110,\"\")","v":""},{"$f":"IF(DataLog!$C3110=\"Log value\",DataLog!W3110,\"\")","v":""},{"$f":"IF(DataLog!$C3110=\"Log value\",DataLog!X3110,\"\")","v":""},{"$f":"IF(DataLog!$C3110=\"Log value\",DataLog!Y3110,\"\")","v":""},{"$f":"IF(DataLog!$C3110=\"Log value\",DataLog!Z3110,\"\")","v":""},{"$f":"IF(DataLog!$C3110=\"Log value\",DataLog!AA3110,\"\")","v":""},{"$f":"IF(DataLog!$C3110=\"Log value\",DataLog!AB3110,\"\")","v":""},{"$f":"IF(DataLog!$C3110=\"Log value\",DataLog!AC3110,\"\")","v":""},{"$f":"IF(DataLog!$C3110=\"Log value\",DataLog!AD3110,\"\")","v":""},{"$f":"IF(DataLog!$C3110=\"Log value\",DataLog!AE3110,\"\")","v":""},{"$f":"IF(DataLog!$C3110=\"Log value\",DataLog!AF3110,\"\")","v":""},{"$f":"IF(DataLog!$C3110=\"Log value\",DataLog!AG3110,\"\")","v":""},{"$f":"IF(DataLog!$C3110=\"Log value\",DataLog!AH3110,\"\")","v":""},{"$f":"IF(DataLog!$C3110=\"Log value\",DataLog!AI3110,\"\")","v":""},{"$f":"IF(DataLog!$C3110=\"Log value\",DataLog!AJ3110,\"\")","v":""},{"$f":"IF(DataLog!$C3110=\"Log value\",DataLog!AK3110,\"\")","v":""},{"$f":"IF(DataLog!$C3110=\"Log value\",DataLog!AL3110,\"\")","v":""},{"$f":"IF(DataLog!$C3110=\"Log value\",DataLog!AM3110,\"\")","v":""}]
[null,null,null,null,null,null,{"$f":"IF(DataLog!$C3113=\"Log value\",DataLog!D3113&\"_\"&TEXT(DataLog!B3113,\"åååå-mm-dd\"),\"\")","v":""},{"$f":"IF(DataLog!$C3113=\"Log value\",DataLog!E3113,\"\")","v":""},{"$f":"IF(DataLog!$C3113=\"Log value\",DataLog!F3113,\"\")","v":""},{"$f":"IF(DataLog!$C3113=\"Log value\",DataLog!G3113,\"\")","v":""},{"$f":"IF(DataLog!$C3113=\"Log value\",DataLog!H3113,\"\")","v":""},{"$f":"IF(DataLog!$C3113=\"Log value\",DataLog!I3113,\"\")","v":""},{"$f":"IF(DataLog!$C3113=\"Log value\",DataLog!J3113,\"\")","v":""},{"$f":"IF(DataLog!$C3113=\"Log value\",DataLog!K3113,\"\")","v":""},{"$f":"IF(DataLog!$C3113=\"Log value\",DataLog!L3113,\"\")","v":""},{"$f":"IF(DataLog!$C3113=\"Log value\",DataLog!M3113,\"\")","v":""},{"$f":"IF(DataLog!$C3113=\"Log value\",DataLog!N3113,\"\")","v":""},{"$f":"IF(DataLog!$C3113=\"Log value\",DataLog!O3113,\"\")","v":""},{"$f":"IF(DataLog!$C3113=\"Log value\",DataLog!P3113,\"\")","v":""},{"$f":"IF(DataLog!$C3113=\"Log value\",DataLog!Q3113,\"\")","v":""},{"$f":"IF(DataLog!$C3113=\"Log value\",DataLog!R3113,\"\")","v":""},{"$f":"IF(DataLog!$C3113=\"Log value\",DataLog!S3113,\"\")","v":""},{"$f":"IF(DataLog!$C3113=\"Log value\",DataLog!T3113,\"\")","v":""},{"$f":"IF(DataLog!$C3113=\"Log value\",DataLog!U3113,\"\")","v":""},{"$f":"IF(DataLog!$C3113=\"Log value\",DataLog!V3113,\"\")","v":""},{"$f":"IF(DataLog!$C3113=\"Log value\",DataLog!W3113,\"\")","v":""},{"$f":"IF(DataLog!$C3113=\"Log value\",DataLog!X3113,\"\")","v":""},{"$f":"IF(DataLog!$C3113=\"Log value\",DataLog!Y3113,\"\")","v":""},{"$f":"IF(DataLog!$C3113=\"Log value\",DataLog!Z3113,\"\")","v":""},{"$f":"IF(DataLog!$C3113=\"Log value\",DataLog!AA3113,\"\")","v":""},{"$f":"IF(DataLog!$C3113=\"Log value\",DataLog!AB3113,\"\")","v":""},{"$f":"IF(DataLog!$C3113=\"Log value\",DataLog!AC3113,\"\")","v":""},{"$f":"IF(DataLog!$C3113=\"Log value\",DataLog!AD3113,\"\")","v":""},{"$f":"IF(DataLog!$C3113=\"Log value\",DataLog!AE3113,\"\")","v":""},{"$f":"IF(DataLog!$C3113=\"Log value\",DataLog!AF3113,\"\")","v":""},{"$f":"IF(DataLog!$C3113=\"Log value\",DataLog!AG3113,\"\")","v":""},{"$f":"IF(DataLog!$C3113=\"Log value\",DataLog!AH3113,\"\")","v":""},{"$f":"IF(DataLog!$C3113=\"Log value\",DataLog!AI3113,\"\")","v":""},{"$f":"IF(DataLog!$C3113=\"Log value\",DataLog!AJ3113,\"\")","v":""},{"$f":"IF(DataLog!$C3113=\"Log value\",DataLog!AK3113,\"\")","v":""},{"$f":"IF(DataLog!$C3113=\"Log value\",DataLog!AL3113,\"\")","v":""},{"$f":"IF(DataLog!$C3113=\"Log value\",DataLog!AM3113,\"\")","v":""}]
[null,null,null,null,null,null,{"$f":"IF(DataLog!$C3114=\"Log value\",DataLog!D3114&\"_\"&TEXT(DataLog!B3114,\"åååå-mm-dd\"),\"\")","v":""},{"$f":"IF(DataLog!$C3114=\"Log value\",DataLog!E3114,\"\")","v":""},{"$f":"IF(DataLog!$C3114=\"Log value\",DataLog!F3114,\"\")","v":""},{"$f":"IF(DataLog!$C3114=\"Log value\",DataLog!G3114,\"\")","v":""},{"$f":"IF(DataLog!$C3114=\"Log value\",DataLog!H3114,\"\")","v":""},{"$f":"IF(DataLog!$C3114=\"Log value\",DataLog!I3114,\"\")","v":""},{"$f":"IF(DataLog!$C3114=\"Log value\",DataLog!J3114,\"\")","v":""},{"$f":"IF(DataLog!$C3114=\"Log value\",DataLog!K3114,\"\")","v":""},{"$f":"IF(DataLog!$C3114=\"Log value\",DataLog!L3114,\"\")","v":""},{"$f":"IF(DataLog!$C3114=\"Log value\",DataLog!M3114,\"\")","v":""},{"$f":"IF(DataLog!$C3114=\"Log value\",DataLog!N3114,\"\")","v":""},{"$f":"IF(DataLog!$C3114=\"Log value\",DataLog!O3114,\"\")","v":""},{"$f":"IF(DataLog!$C3114=\"Log value\",DataLog!P3114,\"\")","v":""},{"$f":"IF(DataLog!$C3114=\"Log value\",DataLog!Q3114,\"\")","v":""},{"$f":"IF(DataLog!$C3114=\"Log value\",DataLog!R3114,\"\")","v":""},{"$f":"IF(DataLog!$C3114=\"Log value\",DataLog!S3114,\"\")","v":""},{"$f":"IF(DataLog!$C3114=\"Log value\",DataLog!T3114,\"\")","v":""},{"$f":"IF(DataLog!$C3114=\"Log value\",DataLog!U3114,\"\")","v":""},{"$f":"IF(DataLog!$C3114=\"Log value\",DataLog!V3114,\"\")","v":""},{"$f":"IF(DataLog!$C3114=\"Log value\",DataLog!W3114,\"\")","v":""},{"$f":"IF(DataLog!$C3114=\"Log value\",DataLog!X3114,\"\")","v":""},{"$f":"IF(DataLog!$C3114=\"Log value\",DataLog!Y3114,\"\")","v":""},{"$f":"IF(DataLog!$C3114=\"Log value\",DataLog!Z3114,\"\")","v":""},{"$f":"IF(DataLog!$C3114=\"Log value\",DataLog!AA3114,\"\")","v":""},{"$f":"IF(DataLog!$C3114=\"Log value\",DataLog!AB3114,\"\")","v":""},{"$f":"IF(DataLog!$C3114=\"Log value\",DataLog!AC3114,\"\")","v":""},{"$f":"IF(DataLog!$C3114=\"Log value\",DataLog!AD3114,\"\")","v":""},{"$f":"IF(DataLog!$C3114=\"Log value\",DataLog!AE3114,\"\")","v":""},{"$f":"IF(DataLog!$C3114=\"Log value\",DataLog!AF3114,\"\")","v":""},{"$f":"IF(DataLog!$C3114=\"Log value\",DataLog!AG3114,\"\")","v":""},{"$f":"IF(DataLog!$C3114=\"Log value\",DataLog!AH3114,\"\")","v":""},{"$f":"IF(DataLog!$C3114=\"Log value\",DataLog!AI3114,\"\")","v":""},{"$f":"IF(DataLog!$C3114=\"Log value\",DataLog!AJ3114,\"\")","v":""},{"$f":"IF(DataLog!$C3114=\"Log value\",DataLog!AK3114,\"\")","v":""},{"$f":"IF(DataLog!$C3114=\"Log value\",DataLog!AL3114,\"\")","v":""},{"$f":"IF(DataLog!$C3114=\"Log value\",DataLog!AM3114,\"\")","v":""}]
[null,null,null,null,null,null,{"$f":"IF(DataLog!$C3116=\"Log value\",DataLog!D3116&\"_\"&TEXT(DataLog!B3116,\"åååå-mm-dd\"),\"\")","v":""},{"$f":"IF(DataLog!$C3116=\"Log value\",DataLog!E3116,\"\")","v":""},{"$f":"IF(DataLog!$C3116=\"Log value\",DataLog!F3116,\"\")","v":""},{"$f":"IF(DataLog!$C3116=\"Log value\",DataLog!G3116,\"\")","v":""},{"$f":"IF(DataLog!$C3116=\"Log value\",DataLog!H3116,\"\")","v":""},{"$f":"IF(DataLog!$C3116=\"Log value\",DataLog!I3116,\"\")","v":""},{"$f":"IF(DataLog!$C3116=\"Log value\",DataLog!J3116,\"\")","v":""},{"$f":"IF(DataLog!$C3116=\"Log value\",DataLog!K3116,\"\")","v":""},{"$f":"IF(DataLog!$C3116=\"Log value\",DataLog!L3116,\"\")","v":""},{"$f":"IF(DataLog!$C3116=\"Log value\",DataLog!M3116,\"\")","v":""},{"$f":"IF(DataLog!$C3116=\"Log value\",DataLog!N3116,\"\")","v":""},{"$f":"IF(DataLog!$C3116=\"Log value\",DataLog!O3116,\"\")","v":""},{"$f":"IF(DataLog!$C3116=\"Log value\",DataLog!P3116,\"\")","v":""},{"$f":"IF(DataLog!$C3116=\"Log value\",DataLog!Q3116,\"\")","v":""},{"$f":"IF(DataLog!$C3116=\"Log value\",DataLog!R3116,\"\")","v":""},{"$f":"IF(DataLog!$C3116=\"Log value\",DataLog!S3116,\"\")","v":""},{"$f":"IF(DataLog!$C3116=\"Log value\",DataLog!T3116,\"\")","v":""},{"$f":"IF(DataLog!$C3116=\"Log value\",DataLog!U3116,\"\")","v":""},{"$f":"IF(DataLog!$C3116=\"Log value\",DataLog!V3116,\"\")","v":""},{"$f":"IF(DataLog!$C3116=\"Log value\",DataLog!W3116,\"\")","v":""},{"$f":"IF(DataLog!$C3116=\"Log value\",DataLog!X3116,\"\")","v":""},{"$f":"IF(DataLog!$C3116=\"Log value\",DataLog!Y3116,\"\")","v":""},{"$f":"IF(DataLog!$C3116=\"Log value\",DataLog!Z3116,\"\")","v":""},{"$f":"IF(DataLog!$C3116=\"Log value\",DataLog!AA3116,\"\")","v":""},{"$f":"IF(DataLog!$C3116=\"Log value\",DataLog!AB3116,\"\")","v":""},{"$f":"IF(DataLog!$C3116=\"Log value\",DataLog!AC3116,\"\")","v":""},{"$f":"IF(DataLog!$C3116=\"Log value\",DataLog!AD3116,\"\")","v":""},{"$f":"IF(DataLog!$C3116=\"Log value\",DataLog!AE3116,\"\")","v":""},{"$f":"IF(DataLog!$C3116=\"Log value\",DataLog!AF3116,\"\")","v":""},{"$f":"IF(DataLog!$C3116=\"Log value\",DataLog!AG3116,\"\")","v":""},{"$f":"IF(DataLog!$C3116=\"Log value\",DataLog!AH3116,\"\")","v":""},{"$f":"IF(DataLog!$C3116=\"Log value\",DataLog!AI3116,\"\")","v":""},{"$f":"IF(DataLog!$C3116=\"Log value\",DataLog!AJ3116,\"\")","v":""},{"$f":"IF(DataLog!$C3116=\"Log value\",DataLog!AK3116,\"\")","v":""},{"$f":"IF(DataLog!$C3116=\"Log value\",DataLog!AL3116,\"\")","v":""},{"$f":"IF(DataLog!$C3116=\"Log value\",DataLog!AM3116,\"\")","v":""}]
[null,null,null,null,null,null,{"$f":"IF(DataLog!$C3119=\"Log value\",DataLog!D3119&\"_\"&TEXT(DataLog!B3119,\"åååå-mm-dd\"),\"\")","v":""},{"$f":"IF(DataLog!$C3119=\"Log value\",DataLog!E3119,\"\")","v":""},{"$f":"IF(DataLog!$C3119=\"Log value\",DataLog!F3119,\"\")","v":""},{"$f":"IF(DataLog!$C3119=\"Log value\",DataLog!G3119,\"\")","v":""},{"$f":"IF(DataLog!$C3119=\"Log value\",DataLog!H3119,\"\")","v":""},{"$f":"IF(DataLog!$C3119=\"Log value\",DataLog!I3119,\"\")","v":""},{"$f":"IF(DataLog!$C3119=\"Log value\",DataLog!J3119,\"\")","v":""},{"$f":"IF(DataLog!$C3119=\"Log value\",DataLog!K3119,\"\")","v":""},{"$f":"IF(DataLog!$C3119=\"Log value\",DataLog!L3119,\"\")","v":""},{"$f":"IF(DataLog!$C3119=\"Log value\",DataLog!M3119,\"\")","v":""},{"$f":"IF(DataLog!$C3119=\"Log value\",DataLog!N3119,\"\")","v":""},{"$f":"IF(DataLog!$C3119=\"Log value\",DataLog!O3119,\"\")","v":""},{"$f":"IF(DataLog!$C3119=\"Log value\",DataLog!P3119,\"\")","v":""},{"$f":"IF(DataLog!$C3119=\"Log value\",DataLog!Q3119,\"\")","v":""},{"$f":"IF(DataLog!$C3119=\"Log value\",DataLog!R3119,\"\")","v":""},{"$f":"IF(DataLog!$C3119=\"Log value\",DataLog!S3119,\"\")","v":""},{"$f":"IF(DataLog!$C3119=\"Log value\",DataLog!T3119,\"\")","v":""},{"$f":"IF(DataLog!$C3119=\"Log value\",DataLog!U3119,\"\")","v":""},{"$f":"IF(DataLog!$C3119=\"Log value\",DataLog!V3119,\"\")","v":""},{"$f":"IF(DataLog!$C3119=\"Log value\",DataLog!W3119,\"\")","v":""},{"$f":"IF(DataLog!$C3119=\"Log value\",DataLog!X3119,\"\")","v":""},{"$f":"IF(DataLog!$C3119=\"Log value\",DataLog!Y3119,\"\")","v":""},{"$f":"IF(DataLog!$C3119=\"Log value\",DataLog!Z3119,\"\")","v":""},{"$f":"IF(DataLog!$C3119=\"Log value\",DataLog!AA3119,\"\")","v":""},{"$f":"IF(DataLog!$C3119=\"Log value\",DataLog!AB3119,\"\")","v":""},{"$f":"IF(DataLog!$C3119=\"Log value\",DataLog!AC3119,\"\")","v":""},{"$f":"IF(DataLog!$C3119=\"Log value\",DataLog!AD3119,\"\")","v":""},{"$f":"IF(DataLog!$C3119=\"Log value\",DataLog!AE3119,\"\")","v":""},{"$f":"IF(DataLog!$C3119=\"Log value\",DataLog!AF3119,\"\")","v":""},{"$f":"IF(DataLog!$C3119=\"Log value\",DataLog!AG3119,\"\")","v":""},{"$f":"IF(DataLog!$C3119=\"Log value\",DataLog!AH3119,\"\")","v":""},{"$f":"IF(DataLog!$C3119=\"Log value\",DataLog!AI3119,\"\")","v":""},{"$f":"IF(DataLog!$C3119=\"Log value\",DataLog!AJ3119,\"\")","v":""},{"$f":"IF(DataLog!$C3119=\"Log value\",DataLog!AK3119,\"\")","v":""},{"$f":"IF(DataLog!$C3119=\"Log value\",DataLog!AL3119,\"\")","v":""},{"$f":"IF(DataLog!$C3119=\"Log value\",DataLog!AM3119,\"\")","v":""}]
[null,null,null,null,null,null,{"$f":"IF(DataLog!$C3122=\"Log value\",DataLog!D3122&\"_\"&TEXT(DataLog!B3122,\"åååå-mm-dd\"),\"\")","v":""},{"$f":"IF(DataLog!$C3122=\"Log value\",DataLog!E3122,\"\")","v":""},{"$f":"IF(DataLog!$C3122=\"Log value\",DataLog!F3122,\"\")","v":""},{"$f":"IF(DataLog!$C3122=\"Log value\",DataLog!G3122,\"\")","v":""},{"$f":"IF(DataLog!$C3122=\"Log value\",DataLog!H3122,\"\")","v":""},{"$f":"IF(DataLog!$C3122=\"Log value\",DataLog!I3122,\"\")","v":""},{"$f":"IF(DataLog!$C3122=\"Log value\",DataLog!J3122,\"\")","v":""},{"$f":"IF(DataLog!$C3122=\"Log value\",DataLog!K3122,\"\")","v":""},{"$f":"IF(DataLog!$C3122=\"Log value\",DataLog!L3122,\"\")","v":""},{"$f":"IF(DataLog!$C3122=\"Log value\",DataLog!M3122,\"\")","v":""},{"$f":"IF(DataLog!$C3122=\"Log value\",DataLog!N3122,\"\")","v":""},{"$f":"IF(DataLog!$C3122=\"Log value\",DataLog!O3122,\"\")","v":""},{"$f":"IF(DataLog!$C3122=\"Log value\",DataLog!P3122,\"\")","v":""},{"$f":"IF(DataLog!$C3122=\"Log value\",DataLog!Q3122,\"\")","v":""},{"$f":"IF(DataLog!$C3122=\"Log value\",DataLog!R3122,\"\")","v":""},{"$f":"IF(DataLog!$C3122=\"Log value\",DataLog!S3122,\"\")","v":""},{"$f":"IF(DataLog!$C3122=\"Log value\",DataLog!T3122,\"\")","v":""},{"$f":"IF(DataLog!$C3122=\"Log value\",DataLog!U3122,\"\")","v":""},{"$f":"IF(DataLog!$C3122=\"Log value\",DataLog!V3122,\"\")","v":""},{"$f":"IF(DataLog!$C3122=\"Log value\",DataLog!W3122,\"\")","v":""},{"$f":"IF(DataLog!$C3122=\"Log value\",DataLog!X3122,\"\")","v":""},{"$f":"IF(DataLog!$C3122=\"Log value\",DataLog!Y3122,\"\")","v":""},{"$f":"IF(DataLog!$C3122=\"Log value\",DataLog!Z3122,\"\")","v":""},{"$f":"IF(DataLog!$C3122=\"Log value\",DataLog!AA3122,\"\")","v":""},{"$f":"IF(DataLog!$C3122=\"Log value\",DataLog!AB3122,\"\")","v":""},{"$f":"IF(DataLog!$C3122=\"Log value\",DataLog!AC3122,\"\")","v":""},{"$f":"IF(DataLog!$C3122=\"Log value\",DataLog!AD3122,\"\")","v":""},{"$f":"IF(DataLog!$C3122=\"Log value\",DataLog!AE3122,\"\")","v":""},{"$f":"IF(DataLog!$C3122=\"Log value\",DataLog!AF3122,\"\")","v":""},{"$f":"IF(DataLog!$C3122=\"Log value\",DataLog!AG3122,\"\")","v":""},{"$f":"IF(DataLog!$C3122=\"Log value\",DataLog!AH3122,\"\")","v":""},{"$f":"IF(DataLog!$C3122=\"Log value\",DataLog!AI3122,\"\")","v":""},{"$f":"IF(DataLog!$C3122=\"Log value\",DataLog!AJ3122,\"\")","v":""},{"$f":"IF(DataLog!$C3122=\"Log value\",DataLog!AK3122,\"\")","v":""},{"$f":"IF(DataLog!$C3122=\"Log value\",DataLog!AL3122,\"\")","v":""},{"$f":"IF(DataLog!$C3122=\"Log value\",DataLog!AM3122,\"\")","v":""}]
[null,null,null,null,null,null,{"$f":"IF(DataLog!$C3123=\"Log value\",DataLog!D3123&\"_\"&TEXT(DataLog!B3123,\"åååå-mm-dd\"),\"\")","v":""},{"$f":"IF(DataLog!$C3123=\"Log value\",DataLog!E3123,\"\")","v":""},{"$f":"IF(DataLog!$C3123=\"Log value\",DataLog!F3123,\"\")","v":""},{"$f":"IF(DataLog!$C3123=\"Log value\",DataLog!G3123,\"\")","v":""},{"$f":"IF(DataLog!$C3123=\"Log value\",DataLog!H3123,\"\")","v":""},{"$f":"IF(DataLog!$C3123=\"Log value\",DataLog!I3123,\"\")","v":""},{"$f":"IF(DataLog!$C3123=\"Log value\",DataLog!J3123,\"\")","v":""},{"$f":"IF(DataLog!$C3123=\"Log value\",DataLog!K3123,\"\")","v":""},{"$f":"IF(DataLog!$C3123=\"Log value\",DataLog!L3123,\"\")","v":""},{"$f":"IF(DataLog!$C3123=\"Log value\",DataLog!M3123,\"\")","v":""},{"$f":"IF(DataLog!$C3123=\"Log value\",DataLog!N3123,\"\")","v":""},{"$f":"IF(DataLog!$C3123=\"Log value\",DataLog!O3123,\"\")","v":""},{"$f":"IF(DataLog!$C3123=\"Log value\",DataLog!P3123,\"\")","v":""},{"$f":"IF(DataLog!$C3123=\"Log value\",DataLog!Q3123,\"\")","v":""},{"$f":"IF(DataLog!$C3123=\"Log value\",DataLog!R3123,\"\")","v":""},{"$f":"IF(DataLog!$C3123=\"Log value\",DataLog!S3123,\"\")","v":""},{"$f":"IF(DataLog!$C3123=\"Log value\",DataLog!T3123,\"\")","v":""},{"$f":"IF(DataLog!$C3123=\"Log value\",DataLog!U3123,\"\")","v":""},{"$f":"IF(DataLog!$C3123=\"Log value\",DataLog!V3123,\"\")","v":""},{"$f":"IF(DataLog!$C3123=\"Log value\",DataLog!W3123,\"\")","v":""},{"$f":"IF(DataLog!$C3123=\"Log value\",DataLog!X3123,\"\")","v":""},{"$f":"IF(DataLog!$C3123=\"Log value\",DataLog!Y3123,\"\")","v":""},{"$f":"IF(DataLog!$C3123=\"Log value\",DataLog!Z3123,\"\")","v":""},{"$f":"IF(DataLog!$C3123=\"Log value\",DataLog!AA3123,\"\")","v":""},{"$f":"IF(DataLog!$C3123=\"Log value\",DataLog!AB3123,\"\")","v":""},{"$f":"IF(DataLog!$C3123=\"Log value\",DataLog!AC3123,\"\")","v":""},{"$f":"IF(DataLog!$C3123=\"Log value\",DataLog!AD3123,\"\")","v":""},{"$f":"IF(DataLog!$C3123=\"Log value\",DataLog!AE3123,\"\")","v":""},{"$f":"IF(DataLog!$C3123=\"Log value\",DataLog!AF3123,\"\")","v":""},{"$f":"IF(DataLog!$C3123=\"Log value\",DataLog!AG3123,\"\")","v":""},{"$f":"IF(DataLog!$C3123=\"Log value\",DataLog!AH3123,\"\")","v":""},{"$f":"IF(DataLog!$C3123=\"Log value\",DataLog!AI3123,\"\")","v":""},{"$f":"IF(DataLog!$C3123=\"Log value\",DataLog!AJ3123,\"\")","v":""},{"$f":"IF(DataLog!$C3123=\"Log value\",DataLog!AK3123,\"\")","v":""},{"$f":"IF(DataLog!$C3123=\"Log value\",DataLog!AL3123,\"\")","v":""},{"$f":"IF(DataLog!$C3123=\"Log value\",DataLog!AM3123,\"\")","v":""}]
[null,null,null,null,null,null,{"$f":"IF(DataLog!$C3127=\"Log value\",DataLog!D3127&\"_\"&TEXT(DataLog!B3127,\"åååå-mm-dd\"),\"\")","v":""},{"$f":"IF(DataLog!$C3127=\"Log value\",DataLog!E3127,\"\")","v":""},{"$f":"IF(DataLog!$C3127=\"Log value\",DataLog!F3127,\"\")","v":""},{"$f":"IF(DataLog!$C3127=\"Log value\",DataLog!G3127,\"\")","v":""},{"$f":"IF(DataLog!$C3127=\"Log value\",DataLog!H3127,\"\")","v":""},{"$f":"IF(DataLog!$C3127=\"Log value\",DataLog!I3127,\"\")","v":""},{"$f":"IF(DataLog!$C3127=\"Log value\",DataLog!J3127,\"\")","v":""},{"$f":"IF(DataLog!$C3127=\"Log value\",DataLog!K3127,\"\")","v":""},{"$f":"IF(DataLog!$C3127=\"Log value\",DataLog!L3127,\"\")","v":""},{"$f":"IF(DataLog!$C3127=\"Log value\",DataLog!M3127,\"\")","v":""},{"$f":"IF(DataLog!$C3127=\"Log value\",DataLog!N3127,\"\")","v":""},{"$f":"IF(DataLog!$C3127=\"Log value\",DataLog!O3127,\"\")","v":""},{"$f":"IF(DataLog!$C3127=\"Log value\",DataLog!P3127,\"\")","v":""},{"$f":"IF(DataLog!$C3127=\"Log value\",DataLog!Q3127,\"\")","v":""},{"$f":"IF(DataLog!$C3127=\"Log value\",DataLog!R3127,\"\")","v":""},{"$f":"IF(DataLog!$C3127=\"Log value\",DataLog!S3127,\"\")","v":""},{"$f":"IF(DataLog!$C3127=\"Log value\",DataLog!T3127,\"\")","v":""},{"$f":"IF(DataLog!$C3127=\"Log value\",DataLog!U3127,\"\")","v":""},{"$f":"IF(DataLog!$C3127=\"Log value\",DataLog!V3127,\"\")","v":""},{"$f":"IF(DataLog!$C3127=\"Log value\",DataLog!W3127,\"\")","v":""},{"$f":"IF(DataLog!$C3127=\"Log value\",DataLog!X3127,\"\")","v":""},{"$f":"IF(DataLog!$C3127=\"Log value\",DataLog!Y3127,\"\")","v":""},{"$f":"IF(DataLog!$C3127=\"Log value\",DataLog!Z3127,\"\")","v":""},{"$f":"IF(DataLog!$C3127=\"Log value\",DataLog!AA3127,\"\")","v":""},{"$f":"IF(DataLog!$C3127=\"Log value\",DataLog!AB3127,\"\")","v":""},{"$f":"IF(DataLog!$C3127=\"Log value\",DataLog!AC3127,\"\")","v":""},{"$f":"IF(DataLog!$C3127=\"Log value\",DataLog!AD3127,\"\")","v":""},{"$f":"IF(DataLog!$C3127=\"Log value\",DataLog!AE3127,\"\")","v":""},{"$f":"IF(DataLog!$C3127=\"Log value\",DataLog!AF3127,\"\")","v":""},{"$f":"IF(DataLog!$C3127=\"Log value\",DataLog!AG3127,\"\")","v":""},{"$f":"IF(DataLog!$C3127=\"Log value\",DataLog!AH3127,\"\")","v":""},{"$f":"IF(DataLog!$C3127=\"Log value\",DataLog!AI3127,\"\")","v":""},{"$f":"IF(DataLog!$C3127=\"Log value\",DataLog!AJ3127,\"\")","v":""},{"$f":"IF(DataLog!$C3127=\"Log value\",DataLog!AK3127,\"\")","v":""},{"$f":"IF(DataLog!$C3127=\"Log value\",DataLog!AL3127,\"\")","v":""},{"$f":"IF(DataLog!$C3127=\"Log value\",DataLog!AM3127,\"\")","v":""}]
[null,null,null,null,null,null,{"$f":"IF(DataLog!$C3128=\"Log value\",DataLog!D3128&\"_\"&TEXT(DataLog!B3128,\"åååå-mm-dd\"),\"\")","v":""},{"$f":"IF(DataLog!$C3128=\"Log value\",DataLog!E3128,\"\")","v":""},{"$f":"IF(DataLog!$C3128=\"Log value\",DataLog!F3128,\"\")","v":""},{"$f":"IF(DataLog!$C3128=\"Log value\",DataLog!G3128,\"\")","v":""},{"$f":"IF(DataLog!$C3128=\"Log value\",DataLog!H3128,\"\")","v":""},{"$f":"IF(DataLog!$C3128=\"Log value\",DataLog!I3128,\"\")","v":""},{"$f":"IF(DataLog!$C3128=\"Log value\",DataLog!J3128,\"\")","v":""},{"$f":"IF(DataLog!$C3128=\"Log value\",DataLog!K3128,\"\")","v":""},{"$f":"IF(DataLog!$C3128=\"Log value\",DataLog!L3128,\"\")","v":""},{"$f":"IF(DataLog!$C3128=\"Log value\",DataLog!M3128,\"\")","v":""},{"$f":"IF(DataLog!$C3128=\"Log value\",DataLog!N3128,\"\")","v":""},{"$f":"IF(DataLog!$C3128=\"Log value\",DataLog!O3128,\"\")","v":""},{"$f":"IF(DataLog!$C3128=\"Log value\",DataLog!P3128,\"\")","v":""},{"$f":"IF(DataLog!$C3128=\"Log value\",DataLog!Q3128,\"\")","v":""},{"$f":"IF(DataLog!$C3128=\"Log value\",DataLog!R3128,\"\")","v":""},{"$f":"IF(DataLog!$C3128=\"Log value\",DataLog!S3128,\"\")","v":""},{"$f":"IF(DataLog!$C3128=\"Log value\",DataLog!T3128,\"\")","v":""},{"$f":"IF(DataLog!$C3128=\"Log value\",DataLog!U3128,\"\")","v":""},{"$f":"IF(DataLog!$C3128=\"Log value\",DataLog!V3128,\"\")","v":""},{"$f":"IF(DataLog!$C3128=\"Log value\",DataLog!W3128,\"\")","v":""},{"$f":"IF(DataLog!$C3128=\"Log value\",DataLog!X3128,\"\")","v":""},{"$f":"IF(DataLog!$C3128=\"Log value\",DataLog!Y3128,\"\")","v":""},{"$f":"IF(DataLog!$C3128=\"Log value\",DataLog!Z3128,\"\")","v":""},{"$f":"IF(DataLog!$C3128=\"Log value\",DataLog!AA3128,\"\")","v":""},{"$f":"IF(DataLog!$C3128=\"Log value\",DataLog!AB3128,\"\")","v":""},{"$f":"IF(DataLog!$C3128=\"Log value\",DataLog!AC3128,\"\")","v":""},{"$f":"IF(DataLog!$C3128=\"Log value\",DataLog!AD3128,\"\")","v":""},{"$f":"IF(DataLog!$C3128=\"Log value\",DataLog!AE3128,\"\")","v":""},{"$f":"IF(DataLog!$C3128=\"Log value\",DataLog!AF3128,\"\")","v":""},{"$f":"IF(DataLog!$C3128=\"Log value\",DataLog!AG3128,\"\")","v":""},{"$f":"IF(DataLog!$C3128=\"Log value\",DataLog!AH3128,\"\")","v":""},{"$f":"IF(DataLog!$C3128=\"Log value\",DataLog!AI3128,\"\")","v":""},{"$f":"IF(DataLog!$C3128=\"Log value\",DataLog!AJ3128,\"\")","v":""},{"$f":"IF(DataLog!$C3128=\"Log value\",DataLog!AK3128,\"\")","v":""},{"$f":"IF(DataLog!$C3128=\"Log value\",DataLog!AL3128,\"\")","v":""},{"$f":"IF(DataLog!$C3128=\"Log value\",DataLog!AM3128,\"\")","v":""}]
[null,null,null,null,null,null,{"$f":"IF(DataLog!$C3131=\"Log value\",DataLog!D3131&\"_\"&TEXT(DataLog!B3131,\"åååå-mm-dd\"),\"\")","v":""},{"$f":"IF(DataLog!$C3131=\"Log value\",DataLog!E3131,\"\")","v":""},{"$f":"IF(DataLog!$C3131=\"Log value\",DataLog!F3131,\"\")","v":""},{"$f":"IF(DataLog!$C3131=\"Log value\",DataLog!G3131,\"\")","v":""},{"$f":"IF(DataLog!$C3131=\"Log value\",DataLog!H3131,\"\")","v":""},{"$f":"IF(DataLog!$C3131=\"Log value\",DataLog!I3131,\"\")","v":""},{"$f":"IF(DataLog!$C3131=\"Log value\",DataLog!J3131,\"\")","v":""},{"$f":"IF(DataLog!$C3131=\"Log value\",DataLog!K3131,\"\")","v":""},{"$f":"IF(DataLog!$C3131=\"Log value\",DataLog!L3131,\"\")","v":""},{"$f":"IF(DataLog!$C3131=\"Log value\",DataLog!M3131,\"\")","v":""},{"$f":"IF(DataLog!$C3131=\"Log value\",DataLog!N3131,\"\")","v":""},{"$f":"IF(DataLog!$C3131=\"Log value\",DataLog!O3131,\"\")","v":""},{"$f":"IF(DataLog!$C3131=\"Log value\",DataLog!P3131,\"\")","v":""},{"$f":"IF(DataLog!$C3131=\"Log value\",DataLog!Q3131,\"\")","v":""},{"$f":"IF(DataLog!$C3131=\"Log value\",DataLog!R3131,\"\")","v":""},{"$f":"IF(DataLog!$C3131=\"Log value\",DataLog!S3131,\"\")","v":""},{"$f":"IF(DataLog!$C3131=\"Log value\",DataLog!T3131,\"\")","v":""},{"$f":"IF(DataLog!$C3131=\"Log value\",DataLog!U3131,\"\")","v":""},{"$f":"IF(DataLog!$C3131=\"Log value\",DataLog!V3131,\"\")","v":""},{"$f":"IF(DataLog!$C3131=\"Log value\",DataLog!W3131,\"\")","v":""},{"$f":"IF(DataLog!$C3131=\"Log value\",DataLog!X3131,\"\")","v":""},{"$f":"IF(DataLog!$C3131=\"Log value\",DataLog!Y3131,\"\")","v":""},{"$f":"IF(DataLog!$C3131=\"Log value\",DataLog!Z3131,\"\")","v":""},{"$f":"IF(DataLog!$C3131=\"Log value\",DataLog!AA3131,\"\")","v":""},{"$f":"IF(DataLog!$C3131=\"Log value\",DataLog!AB3131,\"\")","v":""},{"$f":"IF(DataLog!$C3131=\"Log value\",DataLog!AC3131,\"\")","v":""},{"$f":"IF(DataLog!$C3131=\"Log value\",DataLog!AD3131,\"\")","v":""},{"$f":"IF(DataLog!$C3131=\"Log value\",DataLog!AE3131,\"\")","v":""},{"$f":"IF(DataLog!$C3131=\"Log value\",DataLog!AF3131,\"\")","v":""},{"$f":"IF(DataLog!$C3131=\"Log value\",DataLog!AG3131,\"\")","v":""},{"$f":"IF(DataLog!$C3131=\"Log value\",DataLog!AH3131,\"\")","v":""},{"$f":"IF(DataLog!$C3131=\"Log value\",DataLog!AI3131,\"\")","v":""},{"$f":"IF(DataLog!$C3131=\"Log value\",DataLog!AJ3131,\"\")","v":""},{"$f":"IF(DataLog!$C3131=\"Log value\",DataLog!AK3131,\"\")","v":""},{"$f":"IF(DataLog!$C3131=\"Log value\",DataLog!AL3131,\"\")","v":""},{"$f":"IF(DataLog!$C3131=\"Log value\",DataLog!AM3131,\"\")","v":""}]
[null,null,null,null,null,null,{"$f":"IF(DataLog!$C3132=\"Log value\",DataLog!D3132&\"_\"&TEXT(DataLog!B3132,\"åååå-mm-dd\"),\"\")","v":""},{"$f":"IF(DataLog!$C3132=\"Log value\",DataLog!E3132,\"\")","v":""},{"$f":"IF(DataLog!$C3132=\"Log value\",DataLog!F3132,\"\")","v":""},{"$f":"IF(DataLog!$C3132=\"Log value\",DataLog!G3132,\"\")","v":""},{"$f":"IF(DataLog!$C3132=\"Log value\",DataLog!H3132,\"\")","v":""},{"$f":"IF(DataLog!$C3132=\"Log value\",DataLog!I3132,\"\")","v":""},{"$f":"IF(DataLog!$C3132=\"Log value\",DataLog!J3132,\"\")","v":""},{"$f":"IF(DataLog!$C3132=\"Log value\",DataLog!K3132,\"\")","v":""},{"$f":"IF(DataLog!$C3132=\"Log value\",DataLog!L3132,\"\")","v":""},{"$f":"IF(DataLog!$C3132=\"Log value\",DataLog!M3132,\"\")","v":""},{"$f":"IF(DataLog!$C3132=\"Log value\",DataLog!N3132,\"\")","v":""},{"$f":"IF(DataLog!$C3132=\"Log value\",DataLog!O3132,\"\")","v":""},{"$f":"IF(DataLog!$C3132=\"Log value\",DataLog!P3132,\"\")","v":""},{"$f":"IF(DataLog!$C3132=\"Log value\",DataLog!Q3132,\"\")","v":""},{"$f":"IF(DataLog!$C3132=\"Log value\",DataLog!R3132,\"\")","v":""},{"$f":"IF(DataLog!$C3132=\"Log value\",DataLog!S3132,\"\")","v":""},{"$f":"IF(DataLog!$C3132=\"Log value\",DataLog!T3132,\"\")","v":""},{"$f":"IF(DataLog!$C3132=\"Log value\",DataLog!U3132,\"\")","v":""},{"$f":"IF(DataLog!$C3132=\"Log value\",DataLog!V3132,\"\")","v":""},{"$f":"IF(DataLog!$C3132=\"Log value\",DataLog!W3132,\"\")","v":""},{"$f":"IF(DataLog!$C3132=\"Log value\",DataLog!X3132,\"\")","v":""},{"$f":"IF(DataLog!$C3132=\"Log value\",DataLog!Y3132,\"\")","v":""},{"$f":"IF(DataLog!$C3132=\"Log value\",DataLog!Z3132,\"\")","v":""},{"$f":"IF(DataLog!$C3132=\"Log value\",DataLog!AA3132,\"\")","v":""},{"$f":"IF(DataLog!$C3132=\"Log value\",DataLog!AB3132,\"\")","v":""},{"$f":"IF(DataLog!$C3132=\"Log value\",DataLog!AC3132,\"\")","v":""},{"$f":"IF(DataLog!$C3132=\"Log value\",DataLog!AD3132,\"\")","v":""},{"$f":"IF(DataLog!$C3132=\"Log value\",DataLog!AE3132,\"\")","v":""},{"$f":"IF(DataLog!$C3132=\"Log value\",DataLog!AF3132,\"\")","v":""},{"$f":"IF(DataLog!$C3132=\"Log value\",DataLog!AG3132,\"\")","v":""},{"$f":"IF(DataLog!$C3132=\"Log value\",DataLog!AH3132,\"\")","v":""},{"$f":"IF(DataLog!$C3132=\"Log value\",DataLog!AI3132,\"\")","v":""},{"$f":"IF(DataLog!$C3132=\"Log value\",DataLog!AJ3132,\"\")","v":""},{"$f":"IF(DataLog!$C3132=\"Log value\",DataLog!AK3132,\"\")","v":""},{"$f":"IF(DataLog!$C3132=\"Log value\",DataLog!AL3132,\"\")","v":""},{"$f":"IF(DataLog!$C3132=\"Log value\",DataLog!AM3132,\"\")","v":""}]
[null,null,null,null,null,null,{"$f":"IF(DataLog!$C3134=\"Log value\",DataLog!D3134&\"_\"&TEXT(DataLog!B3134,\"åååå-mm-dd\"),\"\")","v":""},{"$f":"IF(DataLog!$C3134=\"Log value\",DataLog!E3134,\"\")","v":""},{"$f":"IF(DataLog!$C3134=\"Log value\",DataLog!F3134,\"\")","v":""},{"$f":"IF(DataLog!$C3134=\"Log value\",DataLog!G3134,\"\")","v":""},{"$f":"IF(DataLog!$C3134=\"Log value\",DataLog!H3134,\"\")","v":""},{"$f":"IF(DataLog!$C3134=\"Log value\",DataLog!I3134,\"\")","v":""},{"$f":"IF(DataLog!$C3134=\"Log value\",DataLog!J3134,\"\")","v":""},{"$f":"IF(DataLog!$C3134=\"Log value\",DataLog!K3134,\"\")","v":""},{"$f":"IF(DataLog!$C3134=\"Log value\",DataLog!L3134,\"\")","v":""},{"$f":"IF(DataLog!$C3134=\"Log value\",DataLog!M3134,\"\")","v":""},{"$f":"IF(DataLog!$C3134=\"Log value\",DataLog!N3134,\"\")","v":""},{"$f":"IF(DataLog!$C3134=\"Log value\",DataLog!O3134,\"\")","v":""},{"$f":"IF(DataLog!$C3134=\"Log value\",DataLog!P3134,\"\")","v":""},{"$f":"IF(DataLog!$C3134=\"Log value\",DataLog!Q3134,\"\")","v":""},{"$f":"IF(DataLog!$C3134=\"Log value\",DataLog!R3134,\"\")","v":""},{"$f":"IF(DataLog!$C3134=\"Log value\",DataLog!S3134,\"\")","v":""},{"$f":"IF(DataLog!$C3134=\"Log value\",DataLog!T3134,\"\")","v":""},{"$f":"IF(DataLog!$C3134=\"Log value\",DataLog!U3134,\"\")","v":""},{"$f":"IF(DataLog!$C3134=\"Log value\",DataLog!V3134,\"\")","v":""},{"$f":"IF(DataLog!$C3134=\"Log value\",DataLog!W3134,\"\")","v":""},{"$f":"IF(DataLog!$C3134=\"Log value\",DataLog!X3134,\"\")","v":""},{"$f":"IF(DataLog!$C3134=\"Log value\",DataLog!Y3134,\"\")","v":""},{"$f":"IF(DataLog!$C3134=\"Log value\",DataLog!Z3134,\"\")","v":""},{"$f":"IF(DataLog!$C3134=\"Log value\",DataLog!AA3134,\"\")","v":""},{"$f":"IF(DataLog!$C3134=\"Log value\",DataLog!AB3134,\"\")","v":""},{"$f":"IF(DataLog!$C3134=\"Log value\",DataLog!AC3134,\"\")","v":""},{"$f":"IF(DataLog!$C3134=\"Log value\",DataLog!AD3134,\"\")","v":""},{"$f":"IF(DataLog!$C3134=\"Log value\",DataLog!AE3134,\"\")","v":""},{"$f":"IF(DataLog!$C3134=\"Log value\",DataLog!AF3134,\"\")","v":""},{"$f":"IF(DataLog!$C3134=\"Log value\",DataLog!AG3134,\"\")","v":""},{"$f":"IF(DataLog!$C3134=\"Log value\",DataLog!AH3134,\"\")","v":""},{"$f":"IF(DataLog!$C3134=\"Log value\",DataLog!AI3134,\"\")","v":""},{"$f":"IF(DataLog!$C3134=\"Log value\",DataLog!AJ3134,\"\")","v":""},{"$f":"IF(DataLog!$C3134=\"Log value\",DataLog!AK3134,\"\")","v":""},{"$f":"IF(DataLog!$C3134=\"Log value\",DataLog!AL3134,\"\")","v":""},{"$f":"IF(DataLog!$C3134=\"Log value\",DataLog!AM3134,\"\")","v":""}]
[null,null,null,null,null,null,{"$f":"IF(DataLog!$C3137=\"Log value\",DataLog!D3137&\"_\"&TEXT(DataLog!B3137,\"åååå-mm-dd\"),\"\")","v":""},{"$f":"IF(DataLog!$C3137=\"Log value\",DataLog!E3137,\"\")","v":""},{"$f":"IF(DataLog!$C3137=\"Log value\",DataLog!F3137,\"\")","v":""},{"$f":"IF(DataLog!$C3137=\"Log value\",DataLog!G3137,\"\")","v":""},{"$f":"IF(DataLog!$C3137=\"Log value\",DataLog!H3137,\"\")","v":""},{"$f":"IF(DataLog!$C3137=\"Log value\",DataLog!I3137,\"\")","v":""},{"$f":"IF(DataLog!$C3137=\"Log value\",DataLog!J3137,\"\")","v":""},{"$f":"IF(DataLog!$C3137=\"Log value\",DataLog!K3137,\"\")","v":""},{"$f":"IF(DataLog!$C3137=\"Log value\",DataLog!L3137,\"\")","v":""},{"$f":"IF(DataLog!$C3137=\"Log value\",DataLog!M3137,\"\")","v":""},{"$f":"IF(DataLog!$C3137=\"Log value\",DataLog!N3137,\"\")","v":""},{"$f":"IF(DataLog!$C3137=\"Log value\",DataLog!O3137,\"\")","v":""},{"$f":"IF(DataLog!$C3137=\"Log value\",DataLog!P3137,\"\")","v":""},{"$f":"IF(DataLog!$C3137=\"Log value\",DataLog!Q3137,\"\")","v":""},{"$f":"IF(DataLog!$C3137=\"Log value\",DataLog!R3137,\"\")","v":""},{"$f":"IF(DataLog!$C3137=\"Log value\",DataLog!S3137,\"\")","v":""},{"$f":"IF(DataLog!$C3137=\"Log value\",DataLog!T3137,\"\")","v":""},{"$f":"IF(DataLog!$C3137=\"Log value\",DataLog!U3137,\"\")","v":""},{"$f":"IF(DataLog!$C3137=\"Log value\",DataLog!V3137,\"\")","v":""},{"$f":"IF(DataLog!$C3137=\"Log value\",DataLog!W3137,\"\")","v":""},{"$f":"IF(DataLog!$C3137=\"Log value\",DataLog!X3137,\"\")","v":""},{"$f":"IF(DataLog!$C3137=\"Log value\",DataLog!Y3137,\"\")","v":""},{"$f":"IF(DataLog!$C3137=\"Log value\",DataLog!Z3137,\"\")","v":""},{"$f":"IF(DataLog!$C3137=\"Log value\",DataLog!AA3137,\"\")","v":""},{"$f":"IF(DataLog!$C3137=\"Log value\",DataLog!AB3137,\"\")","v":""},{"$f":"IF(DataLog!$C3137=\"Log value\",DataLog!AC3137,\"\")","v":""},{"$f":"IF(DataLog!$C3137=\"Log value\",DataLog!AD3137,\"\")","v":""},{"$f":"IF(DataLog!$C3137=\"Log value\",DataLog!AE3137,\"\")","v":""},{"$f":"IF(DataLog!$C3137=\"Log value\",DataLog!AF3137,\"\")","v":""},{"$f":"IF(DataLog!$C3137=\"Log value\",DataLog!AG3137,\"\")","v":""},{"$f":"IF(DataLog!$C3137=\"Log value\",DataLog!AH3137,\"\")","v":""},{"$f":"IF(DataLog!$C3137=\"Log value\",DataLog!AI3137,\"\")","v":""},{"$f":"IF(DataLog!$C3137=\"Log value\",DataLog!AJ3137,\"\")","v":""},{"$f":"IF(DataLog!$C3137=\"Log value\",DataLog!AK3137,\"\")","v":""},{"$f":"IF(DataLog!$C3137=\"Log value\",DataLog!AL3137,\"\")","v":""},{"$f":"IF(DataLog!$C3137=\"Log value\",DataLog!AM3137,\"\")","v":""}]
[null,null,null,null,null,null,{"$f":"IF(DataLog!$C3140=\"Log value\",DataLog!D3140&\"_\"&TEXT(DataLog!B3140,\"åååå-mm-dd\"),\"\")","v":""},{"$f":"IF(DataLog!$C3140=\"Log value\",DataLog!E3140,\"\")","v":""},{"$f":"IF(DataLog!$C3140=\"Log value\",DataLog!F3140,\"\")","v":""},{"$f":"IF(DataLog!$C3140=\"Log value\",DataLog!G3140,\"\")","v":""},{"$f":"IF(DataLog!$C3140=\"Log value\",DataLog!H3140,\"\")","v":""},{"$f":"IF(DataLog!$C3140=\"Log value\",DataLog!I3140,\"\")","v":""},{"$f":"IF(DataLog!$C3140=\"Log value\",DataLog!J3140,\"\")","v":""},{"$f":"IF(DataLog!$C3140=\"Log value\",DataLog!K3140,\"\")","v":""},{"$f":"IF(DataLog!$C3140=\"Log value\",DataLog!L3140,\"\")","v":""},{"$f":"IF(DataLog!$C3140=\"Log value\",DataLog!M3140,\"\")","v":""},{"$f":"IF(DataLog!$C3140=\"Log value\",DataLog!N3140,\"\")","v":""},{"$f":"IF(DataLog!$C3140=\"Log value\",DataLog!O3140,\"\")","v":""},{"$f":"IF(DataLog!$C3140=\"Log value\",DataLog!P3140,\"\")","v":""},{"$f":"IF(DataLog!$C3140=\"Log value\",DataLog!Q3140,\"\")","v":""},{"$f":"IF(DataLog!$C3140=\"Log value\",DataLog!R3140,\"\")","v":""},{"$f":"IF(DataLog!$C3140=\"Log value\",DataLog!S3140,\"\")","v":""},{"$f":"IF(DataLog!$C3140=\"Log value\",DataLog!T3140,\"\")","v":""},{"$f":"IF(DataLog!$C3140=\"Log value\",DataLog!U3140,\"\")","v":""},{"$f":"IF(DataLog!$C3140=\"Log value\",DataLog!V3140,\"\")","v":""},{"$f":"IF(DataLog!$C3140=\"Log value\",DataLog!W3140,\"\")","v":""},{"$f":"IF(DataLog!$C3140=\"Log value\",DataLog!X3140,\"\")","v":""},{"$f":"IF(DataLog!$C3140=\"Log value\",DataLog!Y3140,\"\")","v":""},{"$f":"IF(DataLog!$C3140=\"Log value\",DataLog!Z3140,\"\")","v":""},{"$f":"IF(DataLog!$C3140=\"Log value\",DataLog!AA3140,\"\")","v":""},{"$f":"IF(DataLog!$C3140=\"Log value\",DataLog!AB3140,\"\")","v":""},{"$f":"IF(DataLog!$C3140=\"Log value\",DataLog!AC3140,\"\")","v":""},{"$f":"IF(DataLog!$C3140=\"Log value\",DataLog!AD3140,\"\")","v":""},{"$f":"IF(DataLog!$C3140=\"Log value\",DataLog!AE3140,\"\")","v":""},{"$f":"IF(DataLog!$C3140=\"Log value\",DataLog!AF3140,\"\")","v":""},{"$f":"IF(DataLog!$C3140=\"Log value\",DataLog!AG3140,\"\")","v":""},{"$f":"IF(DataLog!$C3140=\"Log value\",DataLog!AH3140,\"\")","v":""},{"$f":"IF(DataLog!$C3140=\"Log value\",DataLog!AI3140,\"\")","v":""},{"$f":"IF(DataLog!$C3140=\"Log value\",DataLog!AJ3140,\"\")","v":""},{"$f":"IF(DataLog!$C3140=\"Log value\",DataLog!AK3140,\"\")","v":""},{"$f":"IF(DataLog!$C3140=\"Log value\",DataLog!AL3140,\"\")","v":""},{"$f":"IF(DataLog!$C3140=\"Log value\",DataLog!AM3140,\"\")","v":""}]
[null,null,null,null,null,null,{"$f":"IF(DataLog!$C3143=\"Log value\",DataLog!D3143&\"_\"&TEXT(DataLog!B3143,\"åååå-mm-dd\"),\"\")","v":""},{"$f":"IF(DataLog!$C3143=\"Log value\",DataLog!E3143,\"\")","v":""},{"$f":"IF(DataLog!$C3143=\"Log value\",DataLog!F3143,\"\")","v":""},{"$f":"IF(DataLog!$C3143=\"Log value\",DataLog!G3143,\"\")","v":""},{"$f":"IF(DataLog!$C3143=\"Log value\",DataLog!H3143,\"\")","v":""},{"$f":"IF(DataLog!$C3143=\"Log value\",DataLog!I3143,\"\")","v":""},{"$f":"IF(DataLog!$C3143=\"Log value\",DataLog!J3143,\"\")","v":""},{"$f":"IF(DataLog!$C3143=\"Log value\",DataLog!K3143,\"\")","v":""},{"$f":"IF(DataLog!$C3143=\"Log value\",DataLog!L3143,\"\")","v":""},{"$f":"IF(DataLog!$C3143=\"Log value\",DataLog!M3143,\"\")","v":""},{"$f":"IF(DataLog!$C3143=\"Log value\",DataLog!N3143,\"\")","v":""},{"$f":"IF(DataLog!$C3143=\"Log value\",DataLog!O3143,\"\")","v":""},{"$f":"IF(DataLog!$C3143=\"Log value\",DataLog!P3143,\"\")","v":""},{"$f":"IF(DataLog!$C3143=\"Log value\",DataLog!Q3143,\"\")","v":""},{"$f":"IF(DataLog!$C3143=\"Log value\",DataLog!R3143,\"\")","v":""},{"$f":"IF(DataLog!$C3143=\"Log value\",DataLog!S3143,\"\")","v":""},{"$f":"IF(DataLog!$C3143=\"Log value\",DataLog!T3143,\"\")","v":""},{"$f":"IF(DataLog!$C3143=\"Log value\",DataLog!U3143,\"\")","v":""},{"$f":"IF(DataLog!$C3143=\"Log value\",DataLog!V3143,\"\")","v":""},{"$f":"IF(DataLog!$C3143=\"Log value\",DataLog!W3143,\"\")","v":""},{"$f":"IF(DataLog!$C3143=\"Log value\",DataLog!X3143,\"\")","v":""},{"$f":"IF(DataLog!$C3143=\"Log value\",DataLog!Y3143,\"\")","v":""},{"$f":"IF(DataLog!$C3143=\"Log value\",DataLog!Z3143,\"\")","v":""},{"$f":"IF(DataLog!$C3143=\"Log value\",DataLog!AA3143,\"\")","v":""},{"$f":"IF(DataLog!$C3143=\"Log value\",DataLog!AB3143,\"\")","v":""},{"$f":"IF(DataLog!$C3143=\"Log value\",DataLog!AC3143,\"\")","v":""},{"$f":"IF(DataLog!$C3143=\"Log value\",DataLog!AD3143,\"\")","v":""},{"$f":"IF(DataLog!$C3143=\"Log value\",DataLog!AE3143,\"\")","v":""},{"$f":"IF(DataLog!$C3143=\"Log value\",DataLog!AF3143,\"\")","v":""},{"$f":"IF(DataLog!$C3143=\"Log value\",DataLog!AG3143,\"\")","v":""},{"$f":"IF(DataLog!$C3143=\"Log value\",DataLog!AH3143,\"\")","v":""},{"$f":"IF(DataLog!$C3143=\"Log value\",DataLog!AI3143,\"\")","v":""},{"$f":"IF(DataLog!$C3143=\"Log value\",DataLog!AJ3143,\"\")","v":""},{"$f":"IF(DataLog!$C3143=\"Log value\",DataLog!AK3143,\"\")","v":""},{"$f":"IF(DataLog!$C3143=\"Log value\",DataLog!AL3143,\"\")","v":""},{"$f":"IF(DataLog!$C3143=\"Log value\",DataLog!AM3143,\"\")","v":""}]
[null,null,null,null,null,null,{"$f":"IF(DataLog!$C3145=\"Log value\",DataLog!D3145&\"_\"&TEXT(DataLog!B3145,\"åååå-mm-dd\"),\"\")","v":""},{"$f":"IF(DataLog!$C3145=\"Log value\",DataLog!E3145,\"\")","v":""},{"$f":"IF(DataLog!$C3145=\"Log value\",DataLog!F3145,\"\")","v":""},{"$f":"IF(DataLog!$C3145=\"Log value\",DataLog!G3145,\"\")","v":""},{"$f":"IF(DataLog!$C3145=\"Log value\",DataLog!H3145,\"\")","v":""},{"$f":"IF(DataLog!$C3145=\"Log value\",DataLog!I3145,\"\")","v":""},{"$f":"IF(DataLog!$C3145=\"Log value\",DataLog!J3145,\"\")","v":""},{"$f":"IF(DataLog!$C3145=\"Log value\",DataLog!K3145,\"\")","v":""},{"$f":"IF(DataLog!$C3145=\"Log value\",DataLog!L3145,\"\")","v":""},{"$f":"IF(DataLog!$C3145=\"Log value\",DataLog!M3145,\"\")","v":""},{"$f":"IF(DataLog!$C3145=\"Log value\",DataLog!N3145,\"\")","v":""},{"$f":"IF(DataLog!$C3145=\"Log value\",DataLog!O3145,\"\")","v":""},{"$f":"IF(DataLog!$C3145=\"Log value\",DataLog!P3145,\"\")","v":""},{"$f":"IF(DataLog!$C3145=\"Log value\",DataLog!Q3145,\"\")","v":""},{"$f":"IF(DataLog!$C3145=\"Log value\",DataLog!R3145,\"\")","v":""},{"$f":"IF(DataLog!$C3145=\"Log value\",DataLog!S3145,\"\")","v":""},{"$f":"IF(DataLog!$C3145=\"Log value\",DataLog!T3145,\"\")","v":""},{"$f":"IF(DataLog!$C3145=\"Log value\",DataLog!U3145,\"\")","v":""},{"$f":"IF(DataLog!$C3145=\"Log value\",DataLog!V3145,\"\")","v":""},{"$f":"IF(DataLog!$C3145=\"Log value\",DataLog!W3145,\"\")","v":""},{"$f":"IF(DataLog!$C3145=\"Log value\",DataLog!X3145,\"\")","v":""},{"$f":"IF(DataLog!$C3145=\"Log value\",DataLog!Y3145,\"\")","v":""},{"$f":"IF(DataLog!$C3145=\"Log value\",DataLog!Z3145,\"\")","v":""},{"$f":"IF(DataLog!$C3145=\"Log value\",DataLog!AA3145,\"\")","v":""},{"$f":"IF(DataLog!$C3145=\"Log value\",DataLog!AB3145,\"\")","v":""},{"$f":"IF(DataLog!$C3145=\"Log value\",DataLog!AC3145,\"\")","v":""},{"$f":"IF(DataLog!$C3145=\"Log value\",DataLog!AD3145,\"\")","v":""},{"$f":"IF(DataLog!$C3145=\"Log value\",DataLog!AE3145,\"\")","v":""},{"$f":"IF(DataLog!$C3145=\"Log value\",DataLog!AF3145,\"\")","v":""},{"$f":"IF(DataLog!$C3145=\"Log value\",DataLog!AG3145,\"\")","v":""},{"$f":"IF(DataLog!$C3145=\"Log value\",DataLog!AH3145,\"\")","v":""},{"$f":"IF(DataLog!$C3145=\"Log value\",DataLog!AI3145,\"\")","v":""},{"$f":"IF(DataLog!$C3145=\"Log value\",DataLog!AJ3145,\"\")","v":""},{"$f":"IF(DataLog!$C3145=\"Log value\",DataLog!AK3145,\"\")","v":""},{"$f":"IF(DataLog!$C3145=\"Log value\",DataLog!AL3145,\"\")","v":""},{"$f":"IF(DataLog!$C3145=\"Log value\",DataLog!AM3145,\"\")","v":""}]
[null,null,null,null,null,null,{"$f":"IF(DataLog!$C3146=\"Log value\",DataLog!D3146&\"_\"&TEXT(DataLog!B3146,\"åååå-mm-dd\"),\"\")","v":""},{"$f":"IF(DataLog!$C3146=\"Log value\",DataLog!E3146,\"\")","v":""},{"$f":"IF(DataLog!$C3146=\"Log value\",DataLog!F3146,\"\")","v":""},{"$f":"IF(DataLog!$C3146=\"Log value\",DataLog!G3146,\"\")","v":""},{"$f":"IF(DataLog!$C3146=\"Log value\",DataLog!H3146,\"\")","v":""},{"$f":"IF(DataLog!$C3146=\"Log value\",DataLog!I3146,\"\")","v":""},{"$f":"IF(DataLog!$C3146=\"Log value\",DataLog!J3146,\"\")","v":""},{"$f":"IF(DataLog!$C3146=\"Log value\",DataLog!K3146,\"\")","v":""},{"$f":"IF(DataLog!$C3146=\"Log value\",DataLog!L3146,\"\")","v":""},{"$f":"IF(DataLog!$C3146=\"Log value\",DataLog!M3146,\"\")","v":""},{"$f":"IF(DataLog!$C3146=\"Log value\",DataLog!N3146,\"\")","v":""},{"$f":"IF(DataLog!$C3146=\"Log value\",DataLog!O3146,\"\")","v":""},{"$f":"IF(DataLog!$C3146=\"Log value\",DataLog!P3146,\"\")","v":""},{"$f":"IF(DataLog!$C3146=\"Log value\",DataLog!Q3146,\"\")","v":""},{"$f":"IF(DataLog!$C3146=\"Log value\",DataLog!R3146,\"\")","v":""},{"$f":"IF(DataLog!$C3146=\"Log value\",DataLog!S3146,\"\")","v":""},{"$f":"IF(DataLog!$C3146=\"Log value\",DataLog!T3146,\"\")","v":""},{"$f":"IF(DataLog!$C3146=\"Log value\",DataLog!U3146,\"\")","v":""},{"$f":"IF(DataLog!$C3146=\"Log value\",DataLog!V3146,\"\")","v":""},{"$f":"IF(DataLog!$C3146=\"Log value\",DataLog!W3146,\"\")","v":""},{"$f":"IF(DataLog!$C3146=\"Log value\",DataLog!X3146,\"\")","v":""},{"$f":"IF(DataLog!$C3146=\"Log value\",DataLog!Y3146,\"\")","v":""},{"$f":"IF(DataLog!$C3146=\"Log value\",DataLog!Z3146,\"\")","v":""},{"$f":"IF(DataLog!$C3146=\"Log value\",DataLog!AA3146,\"\")","v":""},{"$f":"IF(DataLog!$C3146=\"Log value\",DataLog!AB3146,\"\")","v":""},{"$f":"IF(DataLog!$C3146=\"Log value\",DataLog!AC3146,\"\")","v":""},{"$f":"IF(DataLog!$C3146=\"Log value\",DataLog!AD3146,\"\")","v":""},{"$f":"IF(DataLog!$C3146=\"Log value\",DataLog!AE3146,\"\")","v":""},{"$f":"IF(DataLog!$C3146=\"Log value\",DataLog!AF3146,\"\")","v":""},{"$f":"IF(DataLog!$C3146=\"Log value\",DataLog!AG3146,\"\")","v":""},{"$f":"IF(DataLog!$C3146=\"Log value\",DataLog!AH3146,\"\")","v":""},{"$f":"IF(DataLog!$C3146=\"Log value\",DataLog!AI3146,\"\")","v":""},{"$f":"IF(DataLog!$C3146=\"Log value\",DataLog!AJ3146,\"\")","v":""},{"$f":"IF(DataLog!$C3146=\"Log value\",DataLog!AK3146,\"\")","v":""},{"$f":"IF(DataLog!$C3146=\"Log value\",DataLog!AL3146,\"\")","v":""},{"$f":"IF(DataLog!$C3146=\"Log value\",DataLog!AM3146,\"\")","v":""}]
[null,null,null,null,null,null,{"$f":"IF(DataLog!$C3149=\"Log value\",DataLog!D3149&\"_\"&TEXT(DataLog!B3149,\"åååå-mm-dd\"),\"\")","v":""},{"$f":"IF(DataLog!$C3149=\"Log value\",DataLog!E3149,\"\")","v":""},{"$f":"IF(DataLog!$C3149=\"Log value\",DataLog!F3149,\"\")","v":""},{"$f":"IF(DataLog!$C3149=\"Log value\",DataLog!G3149,\"\")","v":""},{"$f":"IF(DataLog!$C3149=\"Log value\",DataLog!H3149,\"\")","v":""},{"$f":"IF(DataLog!$C3149=\"Log value\",DataLog!I3149,\"\")","v":""},{"$f":"IF(DataLog!$C3149=\"Log value\",DataLog!J3149,\"\")","v":""},{"$f":"IF(DataLog!$C3149=\"Log value\",DataLog!K3149,\"\")","v":""},{"$f":"IF(DataLog!$C3149=\"Log value\",DataLog!L3149,\"\")","v":""},{"$f":"IF(DataLog!$C3149=\"Log value\",DataLog!M3149,\"\")","v":""},{"$f":"IF(DataLog!$C3149=\"Log value\",DataLog!N3149,\"\")","v":""},{"$f":"IF(DataLog!$C3149=\"Log value\",DataLog!O3149,\"\")","v":""},{"$f":"IF(DataLog!$C3149=\"Log value\",DataLog!P3149,\"\")","v":""},{"$f":"IF(DataLog!$C3149=\"Log value\",DataLog!Q3149,\"\")","v":""},{"$f":"IF(DataLog!$C3149=\"Log value\",DataLog!R3149,\"\")","v":""},{"$f":"IF(DataLog!$C3149=\"Log value\",DataLog!S3149,\"\")","v":""},{"$f":"IF(DataLog!$C3149=\"Log value\",DataLog!T3149,\"\")","v":""},{"$f":"IF(DataLog!$C3149=\"Log value\",DataLog!U3149,\"\")","v":""},{"$f":"IF(DataLog!$C3149=\"Log value\",DataLog!V3149,\"\")","v":""},{"$f":"IF(DataLog!$C3149=\"Log value\",DataLog!W3149,\"\")","v":""},{"$f":"IF(DataLog!$C3149=\"Log value\",DataLog!X3149,\"\")","v":""},{"$f":"IF(DataLog!$C3149=\"Log value\",DataLog!Y3149,\"\")","v":""},{"$f":"IF(DataLog!$C3149=\"Log value\",DataLog!Z3149,\"\")","v":""},{"$f":"IF(DataLog!$C3149=\"Log value\",DataLog!AA3149,\"\")","v":""},{"$f":"IF(DataLog!$C3149=\"Log value\",DataLog!AB3149,\"\")","v":""},{"$f":"IF(DataLog!$C3149=\"Log value\",DataLog!AC3149,\"\")","v":""},{"$f":"IF(DataLog!$C3149=\"Log value\",DataLog!AD3149,\"\")","v":""},{"$f":"IF(DataLog!$C3149=\"Log value\",DataLog!AE3149,\"\")","v":""},{"$f":"IF(DataLog!$C3149=\"Log value\",DataLog!AF3149,\"\")","v":""},{"$f":"IF(DataLog!$C3149=\"Log value\",DataLog!AG3149,\"\")","v":""},{"$f":"IF(DataLog!$C3149=\"Log value\",DataLog!AH3149,\"\")","v":""},{"$f":"IF(DataLog!$C3149=\"Log value\",DataLog!AI3149,\"\")","v":""},{"$f":"IF(DataLog!$C3149=\"Log value\",DataLog!AJ3149,\"\")","v":""},{"$f":"IF(DataLog!$C3149=\"Log value\",DataLog!AK3149,\"\")","v":""},{"$f":"IF(DataLog!$C3149=\"Log value\",DataLog!AL3149,\"\")","v":""},{"$f":"IF(DataLog!$C3149=\"Log value\",DataLog!AM3149,\"\")","v":""}]
[null,null,null,null,null,null,{"$f":"IF(DataLog!$C3150=\"Log value\",DataLog!D3150&\"_\"&TEXT(DataLog!B3150,\"åååå-mm-dd\"),\"\")","v":""},{"$f":"IF(DataLog!$C3150=\"Log value\",DataLog!E3150,\"\")","v":""},{"$f":"IF(DataLog!$C3150=\"Log value\",DataLog!F3150,\"\")","v":""},{"$f":"IF(DataLog!$C3150=\"Log value\",DataLog!G3150,\"\")","v":""},{"$f":"IF(DataLog!$C3150=\"Log value\",DataLog!H3150,\"\")","v":""},{"$f":"IF(DataLog!$C3150=\"Log value\",DataLog!I3150,\"\")","v":""},{"$f":"IF(DataLog!$C3150=\"Log value\",DataLog!J3150,\"\")","v":""},{"$f":"IF(DataLog!$C3150=\"Log value\",DataLog!K3150,\"\")","v":""},{"$f":"IF(DataLog!$C3150=\"Log value\",DataLog!L3150,\"\")","v":""},{"$f":"IF(DataLog!$C3150=\"Log value\",DataLog!M3150,\"\")","v":""},{"$f":"IF(DataLog!$C3150=\"Log value\",DataLog!N3150,\"\")","v":""},{"$f":"IF(DataLog!$C3150=\"Log value\",DataLog!O3150,\"\")","v":""},{"$f":"IF(DataLog!$C3150=\"Log value\",DataLog!P3150,\"\")","v":""},{"$f":"IF(DataLog!$C3150=\"Log value\",DataLog!Q3150,\"\")","v":""},{"$f":"IF(DataLog!$C3150=\"Log value\",DataLog!R3150,\"\")","v":""},{"$f":"IF(DataLog!$C3150=\"Log value\",DataLog!S3150,\"\")","v":""},{"$f":"IF(DataLog!$C3150=\"Log value\",DataLog!T3150,\"\")","v":""},{"$f":"IF(DataLog!$C3150=\"Log value\",DataLog!U3150,\"\")","v":""},{"$f":"IF(DataLog!$C3150=\"Log value\",DataLog!V3150,\"\")","v":""},{"$f":"IF(DataLog!$C3150=\"Log value\",DataLog!W3150,\"\")","v":""},{"$f":"IF(DataLog!$C3150=\"Log value\",DataLog!X3150,\"\")","v":""},{"$f":"IF(DataLog!$C3150=\"Log value\",DataLog!Y3150,\"\")","v":""},{"$f":"IF(DataLog!$C3150=\"Log value\",DataLog!Z3150,\"\")","v":""},{"$f":"IF(DataLog!$C3150=\"Log value\",DataLog!AA3150,\"\")","v":""},{"$f":"IF(DataLog!$C3150=\"Log value\",DataLog!AB3150,\"\")","v":""},{"$f":"IF(DataLog!$C3150=\"Log value\",DataLog!AC3150,\"\")","v":""},{"$f":"IF(DataLog!$C3150=\"Log value\",DataLog!AD3150,\"\")","v":""},{"$f":"IF(DataLog!$C3150=\"Log value\",DataLog!AE3150,\"\")","v":""},{"$f":"IF(DataLog!$C3150=\"Log value\",DataLog!AF3150,\"\")","v":""},{"$f":"IF(DataLog!$C3150=\"Log value\",DataLog!AG3150,\"\")","v":""},{"$f":"IF(DataLog!$C3150=\"Log value\",DataLog!AH3150,\"\")","v":""},{"$f":"IF(DataLog!$C3150=\"Log value\",DataLog!AI3150,\"\")","v":""},{"$f":"IF(DataLog!$C3150=\"Log value\",DataLog!AJ3150,\"\")","v":""},{"$f":"IF(DataLog!$C3150=\"Log value\",DataLog!AK3150,\"\")","v":""},{"$f":"IF(DataLog!$C3150=\"Log value\",DataLog!AL3150,\"\")","v":""},{"$f":"IF(DataLog!$C3150=\"Log value\",DataLog!AM3150,\"\")","v":""}]
[null,null,null,null,null,null,{"$f":"IF(DataLog!$C3154=\"Log value\",DataLog!D3154&\"_\"&TEXT(DataLog!B3154,\"åååå-mm-dd\"),\"\")","v":""},{"$f":"IF(DataLog!$C3154=\"Log value\",DataLog!E3154,\"\")","v":""},{"$f":"IF(DataLog!$C3154=\"Log value\",DataLog!F3154,\"\")","v":""},{"$f":"IF(DataLog!$C3154=\"Log value\",DataLog!G3154,\"\")","v":""},{"$f":"IF(DataLog!$C3154=\"Log value\",DataLog!H3154,\"\")","v":""},{"$f":"IF(DataLog!$C3154=\"Log value\",DataLog!I3154,\"\")","v":""},{"$f":"IF(DataLog!$C3154=\"Log value\",DataLog!J3154,\"\")","v":""},{"$f":"IF(DataLog!$C3154=\"Log value\",DataLog!K3154,\"\")","v":""},{"$f":"IF(DataLog!$C3154=\"Log value\",DataLog!L3154,\"\")","v":""},{"$f":"IF(DataLog!$C3154=\"Log value\",DataLog!M3154,\"\")","v":""},{"$f":"IF(DataLog!$C3154=\"Log value\",DataLog!N3154,\"\")","v":""},{"$f":"IF(DataLog!$C3154=\"Log value\",DataLog!O3154,\"\")","v":""},{"$f":"IF(DataLog!$C3154=\"Log value\",DataLog!P3154,\"\")","v":""},{"$f":"IF(DataLog!$C3154=\"Log value\",DataLog!Q3154,\"\")","v":""},{"$f":"IF(DataLog!$C3154=\"Log value\",DataLog!R3154,\"\")","v":""},{"$f":"IF(DataLog!$C3154=\"Log value\",DataLog!S3154,\"\")","v":""},{"$f":"IF(DataLog!$C3154=\"Log value\",DataLog!T3154,\"\")","v":""},{"$f":"IF(DataLog!$C3154=\"Log value\",DataLog!U3154,\"\")","v":""},{"$f":"IF(DataLog!$C3154=\"Log value\",DataLog!V3154,\"\")","v":""},{"$f":"IF(DataLog!$C3154=\"Log value\",DataLog!W3154,\"\")","v":""},{"$f":"IF(DataLog!$C3154=\"Log value\",DataLog!X3154,\"\")","v":""},{"$f":"IF(DataLog!$C3154=\"Log value\",DataLog!Y3154,\"\")","v":""},{"$f":"IF(DataLog!$C3154=\"Log value\",DataLog!Z3154,\"\")","v":""},{"$f":"IF(DataLog!$C3154=\"Log value\",DataLog!AA3154,\"\")","v":""},{"$f":"IF(DataLog!$C3154=\"Log value\",DataLog!AB3154,\"\")","v":""},{"$f":"IF(DataLog!$C3154=\"Log value\",DataLog!AC3154,\"\")","v":""},{"$f":"IF(DataLog!$C3154=\"Log value\",DataLog!AD3154,\"\")","v":""},{"$f":"IF(DataLog!$C3154=\"Log value\",DataLog!AE3154,\"\")","v":""},{"$f":"IF(DataLog!$C3154=\"Log value\",DataLog!AF3154,\"\")","v":""},{"$f":"IF(DataLog!$C3154=\"Log value\",DataLog!AG3154,\"\")","v":""},{"$f":"IF(DataLog!$C3154=\"Log value\",DataLog!AH3154,\"\")","v":""},{"$f":"IF(DataLog!$C3154=\"Log value\",DataLog!AI3154,\"\")","v":""},{"$f":"IF(DataLog!$C3154=\"Log value\",DataLog!AJ3154,\"\")","v":""},{"$f":"IF(DataLog!$C3154=\"Log value\",DataLog!AK3154,\"\")","v":""},{"$f":"IF(DataLog!$C3154=\"Log value\",DataLog!AL3154,\"\")","v":""},{"$f":"IF(DataLog!$C3154=\"Log value\",DataLog!AM3154,\"\")","v":""}]
[null,null,null,null,null,null,{"$f":"IF(DataLog!$C3155=\"Log value\",DataLog!D3155&\"_\"&TEXT(DataLog!B3155,\"åååå-mm-dd\"),\"\")","v":""},{"$f":"IF(DataLog!$C3155=\"Log value\",DataLog!E3155,\"\")","v":""},{"$f":"IF(DataLog!$C3155=\"Log value\",DataLog!F3155,\"\")","v":""},{"$f":"IF(DataLog!$C3155=\"Log value\",DataLog!G3155,\"\")","v":""},{"$f":"IF(DataLog!$C3155=\"Log value\",DataLog!H3155,\"\")","v":""},{"$f":"IF(DataLog!$C3155=\"Log value\",DataLog!I3155,\"\")","v":""},{"$f":"IF(DataLog!$C3155=\"Log value\",DataLog!J3155,\"\")","v":""},{"$f":"IF(DataLog!$C3155=\"Log value\",DataLog!K3155,\"\")","v":""},{"$f":"IF(DataLog!$C3155=\"Log value\",DataLog!L3155,\"\")","v":""},{"$f":"IF(DataLog!$C3155=\"Log value\",DataLog!M3155,\"\")","v":""},{"$f":"IF(DataLog!$C3155=\"Log value\",DataLog!N3155,\"\")","v":""},{"$f":"IF(DataLog!$C3155=\"Log value\",DataLog!O3155,\"\")","v":""},{"$f":"IF(DataLog!$C3155=\"Log value\",DataLog!P3155,\"\")","v":""},{"$f":"IF(DataLog!$C3155=\"Log value\",DataLog!Q3155,\"\")","v":""},{"$f":"IF(DataLog!$C3155=\"Log value\",DataLog!R3155,\"\")","v":""},{"$f":"IF(DataLog!$C3155=\"Log value\",DataLog!S3155,\"\")","v":""},{"$f":"IF(DataLog!$C3155=\"Log value\",DataLog!T3155,\"\")","v":""},{"$f":"IF(DataLog!$C3155=\"Log value\",DataLog!U3155,\"\")","v":""},{"$f":"IF(DataLog!$C3155=\"Log value\",DataLog!V3155,\"\")","v":""},{"$f":"IF(DataLog!$C3155=\"Log value\",DataLog!W3155,\"\")","v":""},{"$f":"IF(DataLog!$C3155=\"Log value\",DataLog!X3155,\"\")","v":""},{"$f":"IF(DataLog!$C3155=\"Log value\",DataLog!Y3155,\"\")","v":""},{"$f":"IF(DataLog!$C3155=\"Log value\",DataLog!Z3155,\"\")","v":""},{"$f":"IF(DataLog!$C3155=\"Log value\",DataLog!AA3155,\"\")","v":""},{"$f":"IF(DataLog!$C3155=\"Log value\",DataLog!AB3155,\"\")","v":""},{"$f":"IF(DataLog!$C3155=\"Log value\",DataLog!AC3155,\"\")","v":""},{"$f":"IF(DataLog!$C3155=\"Log value\",DataLog!AD3155,\"\")","v":""},{"$f":"IF(DataLog!$C3155=\"Log value\",DataLog!AE3155,\"\")","v":""},{"$f":"IF(DataLog!$C3155=\"Log value\",DataLog!AF3155,\"\")","v":""},{"$f":"IF(DataLog!$C3155=\"Log value\",DataLog!AG3155,\"\")","v":""},{"$f":"IF(DataLog!$C3155=\"Log value\",DataLog!AH3155,\"\")","v":""},{"$f":"IF(DataLog!$C3155=\"Log value\",DataLog!AI3155,\"\")","v":""},{"$f":"IF(DataLog!$C3155=\"Log value\",DataLog!AJ3155,\"\")","v":""},{"$f":"IF(DataLog!$C3155=\"Log value\",DataLog!AK3155,\"\")","v":""},{"$f":"IF(DataLog!$C3155=\"Log value\",DataLog!AL3155,\"\")","v":""},{"$f":"IF(DataLog!$C3155=\"Log value\",DataLog!AM3155,\"\")","v":""}]
[null,null,null,null,null,null,{"$f":"IF(DataLog!$C3158=\"Log value\",DataLog!D3158&\"_\"&TEXT(DataLog!B3158,\"åååå-mm-dd\"),\"\")","v":""},{"$f":"IF(DataLog!$C3158=\"Log value\",DataLog!E3158,\"\")","v":""},{"$f":"IF(DataLog!$C3158=\"Log value\",DataLog!F3158,\"\")","v":""},{"$f":"IF(DataLog!$C3158=\"Log value\",DataLog!G3158,\"\")","v":""},{"$f":"IF(DataLog!$C3158=\"Log value\",DataLog!H3158,\"\")","v":""},{"$f":"IF(DataLog!$C3158=\"Log value\",DataLog!I3158,\"\")","v":""},{"$f":"IF(DataLog!$C3158=\"Log value\",DataLog!J3158,\"\")","v":""},{"$f":"IF(DataLog!$C3158=\"Log value\",DataLog!K3158,\"\")","v":""},{"$f":"IF(DataLog!$C3158=\"Log value\",DataLog!L3158,\"\")","v":""},{"$f":"IF(DataLog!$C3158=\"Log value\",DataLog!M3158,\"\")","v":""},{"$f":"IF(DataLog!$C3158=\"Log value\",DataLog!N3158,\"\")","v":""},{"$f":"IF(DataLog!$C3158=\"Log value\",DataLog!O3158,\"\")","v":""},{"$f":"IF(DataLog!$C3158=\"Log value\",DataLog!P3158,\"\")","v":""},{"$f":"IF(DataLog!$C3158=\"Log value\",DataLog!Q3158,\"\")","v":""},{"$f":"IF(DataLog!$C3158=\"Log value\",DataLog!R3158,\"\")","v":""},{"$f":"IF(DataLog!$C3158=\"Log value\",DataLog!S3158,\"\")","v":""},{"$f":"IF(DataLog!$C3158=\"Log value\",DataLog!T3158,\"\")","v":""},{"$f":"IF(DataLog!$C3158=\"Log value\",DataLog!U3158,\"\")","v":""},{"$f":"IF(DataLog!$C3158=\"Log value\",DataLog!V3158,\"\")","v":""},{"$f":"IF(DataLog!$C3158=\"Log value\",DataLog!W3158,\"\")","v":""},{"$f":"IF(DataLog!$C3158=\"Log value\",DataLog!X3158,\"\")","v":""},{"$f":"IF(DataLog!$C3158=\"Log value\",DataLog!Y3158,\"\")","v":""},{"$f":"IF(DataLog!$C3158=\"Log value\",DataLog!Z3158,\"\")","v":""},{"$f":"IF(DataLog!$C3158=\"Log value\",DataLog!AA3158,\"\")","v":""},{"$f":"IF(DataLog!$C3158=\"Log value\",DataLog!AB3158,\"\")","v":""},{"$f":"IF(DataLog!$C3158=\"Log value\",DataLog!AC3158,\"\")","v":""},{"$f":"IF(DataLog!$C3158=\"Log value\",DataLog!AD3158,\"\")","v":""},{"$f":"IF(DataLog!$C3158=\"Log value\",DataLog!AE3158,\"\")","v":""},{"$f":"IF(DataLog!$C3158=\"Log value\",DataLog!AF3158,\"\")","v":""},{"$f":"IF(DataLog!$C3158=\"Log value\",DataLog!AG3158,\"\")","v":""},{"$f":"IF(DataLog!$C3158=\"Log value\",DataLog!AH3158,\"\")","v":""},{"$f":"IF(DataLog!$C3158=\"Log value\",DataLog!AI3158,\"\")","v":""},{"$f":"IF(DataLog!$C3158=\"Log value\",DataLog!AJ3158,\"\")","v":""},{"$f":"IF(DataLog!$C3158=\"Log value\",DataLog!AK3158,\"\")","v":""},{"$f":"IF(DataLog!$C3158=\"Log value\",DataLog!AL3158,\"\")","v":""},{"$f":"IF(DataLog!$C3158=\"Log value\",DataLog!AM3158,\"\")","v":""}]
[null,null,null,null,null,null,{"$f":"IF(DataLog!$C3161=\"Log value\",DataLog!D3161&\"_\"&TEXT(DataLog!B3161,\"åååå-mm-dd\"),\"\")","v":""},{"$f":"IF(DataLog!$C3161=\"Log value\",DataLog!E3161,\"\")","v":""},{"$f":"IF(DataLog!$C3161=\"Log value\",DataLog!F3161,\"\")","v":""},{"$f":"IF(DataLog!$C3161=\"Log value\",DataLog!G3161,\"\")","v":""},{"$f":"IF(DataLog!$C3161=\"Log value\",DataLog!H3161,\"\")","v":""},{"$f":"IF(DataLog!$C3161=\"Log value\",DataLog!I3161,\"\")","v":""},{"$f":"IF(DataLog!$C3161=\"Log value\",DataLog!J3161,\"\")","v":""},{"$f":"IF(DataLog!$C3161=\"Log value\",DataLog!K3161,\"\")","v":""},{"$f":"IF(DataLog!$C3161=\"Log value\",DataLog!L3161,\"\")","v":""},{"$f":"IF(DataLog!$C3161=\"Log value\",DataLog!M3161,\"\")","v":""},{"$f":"IF(DataLog!$C3161=\"Log value\",DataLog!N3161,\"\")","v":""},{"$f":"IF(DataLog!$C3161=\"Log value\",DataLog!O3161,\"\")","v":""},{"$f":"IF(DataLog!$C3161=\"Log value\",DataLog!P3161,\"\")","v":""},{"$f":"IF(DataLog!$C3161=\"Log value\",DataLog!Q3161,\"\")","v":""},{"$f":"IF(DataLog!$C3161=\"Log value\",DataLog!R3161,\"\")","v":""},{"$f":"IF(DataLog!$C3161=\"Log value\",DataLog!S3161,\"\")","v":""},{"$f":"IF(DataLog!$C3161=\"Log value\",DataLog!T3161,\"\")","v":""},{"$f":"IF(DataLog!$C3161=\"Log value\",DataLog!U3161,\"\")","v":""},{"$f":"IF(DataLog!$C3161=\"Log value\",DataLog!V3161,\"\")","v":""},{"$f":"IF(DataLog!$C3161=\"Log value\",DataLog!W3161,\"\")","v":""},{"$f":"IF(DataLog!$C3161=\"Log value\",DataLog!X3161,\"\")","v":""},{"$f":"IF(DataLog!$C3161=\"Log value\",DataLog!Y3161,\"\")","v":""},{"$f":"IF(DataLog!$C3161=\"Log value\",DataLog!Z3161,\"\")","v":""},{"$f":"IF(DataLog!$C3161=\"Log value\",DataLog!AA3161,\"\")","v":""},{"$f":"IF(DataLog!$C3161=\"Log value\",DataLog!AB3161,\"\")","v":""},{"$f":"IF(DataLog!$C3161=\"Log value\",DataLog!AC3161,\"\")","v":""},{"$f":"IF(DataLog!$C3161=\"Log value\",DataLog!AD3161,\"\")","v":""},{"$f":"IF(DataLog!$C3161=\"Log value\",DataLog!AE3161,\"\")","v":""},{"$f":"IF(DataLog!$C3161=\"Log value\",DataLog!AF3161,\"\")","v":""},{"$f":"IF(DataLog!$C3161=\"Log value\",DataLog!AG3161,\"\")","v":""},{"$f":"IF(DataLog!$C3161=\"Log value\",DataLog!AH3161,\"\")","v":""},{"$f":"IF(DataLog!$C3161=\"Log value\",DataLog!AI3161,\"\")","v":""},{"$f":"IF(DataLog!$C3161=\"Log value\",DataLog!AJ3161,\"\")","v":""},{"$f":"IF(DataLog!$C3161=\"Log value\",DataLog!AK3161,\"\")","v":""},{"$f":"IF(DataLog!$C3161=\"Log value\",DataLog!AL3161,\"\")","v":""},{"$f":"IF(DataLog!$C3161=\"Log value\",DataLog!AM3161,\"\")","v":""}]
[null,null,null,null,null,null,{"$f":"IF(DataLog!$C3163=\"Log value\",DataLog!D3163&\"_\"&TEXT(DataLog!B3163,\"åååå-mm-dd\"),\"\")","v":""},{"$f":"IF(DataLog!$C3163=\"Log value\",DataLog!E3163,\"\")","v":""},{"$f":"IF(DataLog!$C3163=\"Log value\",DataLog!F3163,\"\")","v":""},{"$f":"IF(DataLog!$C3163=\"Log value\",DataLog!G3163,\"\")","v":""},{"$f":"IF(DataLog!$C3163=\"Log value\",DataLog!H3163,\"\")","v":""},{"$f":"IF(DataLog!$C3163=\"Log value\",DataLog!I3163,\"\")","v":""},{"$f":"IF(DataLog!$C3163=\"Log value\",DataLog!J3163,\"\")","v":""},{"$f":"IF(DataLog!$C3163=\"Log value\",DataLog!K3163,\"\")","v":""},{"$f":"IF(DataLog!$C3163=\"Log value\",DataLog!L3163,\"\")","v":""},{"$f":"IF(DataLog!$C3163=\"Log value\",DataLog!M3163,\"\")","v":""},{"$f":"IF(DataLog!$C3163=\"Log value\",DataLog!N3163,\"\")","v":""},{"$f":"IF(DataLog!$C3163=\"Log value\",DataLog!O3163,\"\")","v":""},{"$f":"IF(DataLog!$C3163=\"Log value\",DataLog!P3163,\"\")","v":""},{"$f":"IF(DataLog!$C3163=\"Log value\",DataLog!Q3163,\"\")","v":""},{"$f":"IF(DataLog!$C3163=\"Log value\",DataLog!R3163,\"\")","v":""},{"$f":"IF(DataLog!$C3163=\"Log value\",DataLog!S3163,\"\")","v":""},{"$f":"IF(DataLog!$C3163=\"Log value\",DataLog!T3163,\"\")","v":""},{"$f":"IF(DataLog!$C3163=\"Log value\",DataLog!U3163,\"\")","v":""},{"$f":"IF(DataLog!$C3163=\"Log value\",DataLog!V3163,\"\")","v":""},{"$f":"IF(DataLog!$C3163=\"Log value\",DataLog!W3163,\"\")","v":""},{"$f":"IF(DataLog!$C3163=\"Log value\",DataLog!X3163,\"\")","v":""},{"$f":"IF(DataLog!$C3163=\"Log value\",DataLog!Y3163,\"\")","v":""},{"$f":"IF(DataLog!$C3163=\"Log value\",DataLog!Z3163,\"\")","v":""},{"$f":"IF(DataLog!$C3163=\"Log value\",DataLog!AA3163,\"\")","v":""},{"$f":"IF(DataLog!$C3163=\"Log value\",DataLog!AB3163,\"\")","v":""},{"$f":"IF(DataLog!$C3163=\"Log value\",DataLog!AC3163,\"\")","v":""},{"$f":"IF(DataLog!$C3163=\"Log value\",DataLog!AD3163,\"\")","v":""},{"$f":"IF(DataLog!$C3163=\"Log value\",DataLog!AE3163,\"\")","v":""},{"$f":"IF(DataLog!$C3163=\"Log value\",DataLog!AF3163,\"\")","v":""},{"$f":"IF(DataLog!$C3163=\"Log value\",DataLog!AG3163,\"\")","v":""},{"$f":"IF(DataLog!$C3163=\"Log value\",DataLog!AH3163,\"\")","v":""},{"$f":"IF(DataLog!$C3163=\"Log value\",DataLog!AI3163,\"\")","v":""},{"$f":"IF(DataLog!$C3163=\"Log value\",DataLog!AJ3163,\"\")","v":""},{"$f":"IF(DataLog!$C3163=\"Log value\",DataLog!AK3163,\"\")","v":""},{"$f":"IF(DataLog!$C3163=\"Log value\",DataLog!AL3163,\"\")","v":""},{"$f":"IF(DataLog!$C3163=\"Log value\",DataLog!AM3163,\"\")","v":""}]
[null,null,null,null,null,null,{"$f":"IF(DataLog!$C3164=\"Log value\",DataLog!D3164&\"_\"&TEXT(DataLog!B3164,\"åååå-mm-dd\"),\"\")","v":""},{"$f":"IF(DataLog!$C3164=\"Log value\",DataLog!E3164,\"\")","v":""},{"$f":"IF(DataLog!$C3164=\"Log value\",DataLog!F3164,\"\")","v":""},{"$f":"IF(DataLog!$C3164=\"Log value\",DataLog!G3164,\"\")","v":""},{"$f":"IF(DataLog!$C3164=\"Log value\",DataLog!H3164,\"\")","v":""},{"$f":"IF(DataLog!$C3164=\"Log value\",DataLog!I3164,\"\")","v":""},{"$f":"IF(DataLog!$C3164=\"Log value\",DataLog!J3164,\"\")","v":""},{"$f":"IF(DataLog!$C3164=\"Log value\",DataLog!K3164,\"\")","v":""},{"$f":"IF(DataLog!$C3164=\"Log value\",DataLog!L3164,\"\")","v":""},{"$f":"IF(DataLog!$C3164=\"Log value\",DataLog!M3164,\"\")","v":""},{"$f":"IF(DataLog!$C3164=\"Log value\",DataLog!N3164,\"\")","v":""},{"$f":"IF(DataLog!$C3164=\"Log value\",DataLog!O3164,\"\")","v":""},{"$f":"IF(DataLog!$C3164=\"Log value\",DataLog!P3164,\"\")","v":""},{"$f":"IF(DataLog!$C3164=\"Log value\",DataLog!Q3164,\"\")","v":""},{"$f":"IF(DataLog!$C3164=\"Log value\",DataLog!R3164,\"\")","v":""},{"$f":"IF(DataLog!$C3164=\"Log value\",DataLog!S3164,\"\")","v":""},{"$f":"IF(DataLog!$C3164=\"Log value\",DataLog!T3164,\"\")","v":""},{"$f":"IF(DataLog!$C3164=\"Log value\",DataLog!U3164,\"\")","v":""},{"$f":"IF(DataLog!$C3164=\"Log value\",DataLog!V3164,\"\")","v":""},{"$f":"IF(DataLog!$C3164=\"Log value\",DataLog!W3164,\"\")","v":""},{"$f":"IF(DataLog!$C3164=\"Log value\",DataLog!X3164,\"\")","v":""},{"$f":"IF(DataLog!$C3164=\"Log value\",DataLog!Y3164,\"\")","v":""},{"$f":"IF(DataLog!$C3164=\"Log value\",DataLog!Z3164,\"\")","v":""},{"$f":"IF(DataLog!$C3164=\"Log value\",DataLog!AA3164,\"\")","v":""},{"$f":"IF(DataLog!$C3164=\"Log value\",DataLog!AB3164,\"\")","v":""},{"$f":"IF(DataLog!$C3164=\"Log value\",DataLog!AC3164,\"\")","v":""},{"$f":"IF(DataLog!$C3164=\"Log value\",DataLog!AD3164,\"\")","v":""},{"$f":"IF(DataLog!$C3164=\"Log value\",DataLog!AE3164,\"\")","v":""},{"$f":"IF(DataLog!$C3164=\"Log value\",DataLog!AF3164,\"\")","v":""},{"$f":"IF(DataLog!$C3164=\"Log value\",DataLog!AG3164,\"\")","v":""},{"$f":"IF(DataLog!$C3164=\"Log value\",DataLog!AH3164,\"\")","v":""},{"$f":"IF(DataLog!$C3164=\"Log value\",DataLog!AI3164,\"\")","v":""},{"$f":"IF(DataLog!$C3164=\"Log value\",DataLog!AJ3164,\"\")","v":""},{"$f":"IF(DataLog!$C3164=\"Log value\",DataLog!AK3164,\"\")","v":""},{"$f":"IF(DataLog!$C3164=\"Log value\",DataLog!AL3164,\"\")","v":""},{"$f":"IF(DataLog!$C3164=\"Log value\",DataLog!AM3164,\"\")","v":""}]
[null,null,null,null,null,null,{"$f":"IF(DataLog!$C3167=\"Log value\",DataLog!D3167&\"_\"&TEXT(DataLog!B3167,\"åååå-mm-dd\"),\"\")","v":""},{"$f":"IF(DataLog!$C3167=\"Log value\",DataLog!E3167,\"\")","v":""},{"$f":"IF(DataLog!$C3167=\"Log value\",DataLog!F3167,\"\")","v":""},{"$f":"IF(DataLog!$C3167=\"Log value\",DataLog!G3167,\"\")","v":""},{"$f":"IF(DataLog!$C3167=\"Log value\",DataLog!H3167,\"\")","v":""},{"$f":"IF(DataLog!$C3167=\"Log value\",DataLog!I3167,\"\")","v":""},{"$f":"IF(DataLog!$C3167=\"Log value\",DataLog!J3167,\"\")","v":""},{"$f":"IF(DataLog!$C3167=\"Log value\",DataLog!K3167,\"\")","v":""},{"$f":"IF(DataLog!$C3167=\"Log value\",DataLog!L3167,\"\")","v":""},{"$f":"IF(DataLog!$C3167=\"Log value\",DataLog!M3167,\"\")","v":""},{"$f":"IF(DataLog!$C3167=\"Log value\",DataLog!N3167,\"\")","v":""},{"$f":"IF(DataLog!$C3167=\"Log value\",DataLog!O3167,\"\")","v":""},{"$f":"IF(DataLog!$C3167=\"Log value\",DataLog!P3167,\"\")","v":""},{"$f":"IF(DataLog!$C3167=\"Log value\",DataLog!Q3167,\"\")","v":""},{"$f":"IF(DataLog!$C3167=\"Log value\",DataLog!R3167,\"\")","v":""},{"$f":"IF(DataLog!$C3167=\"Log value\",DataLog!S3167,\"\")","v":""},{"$f":"IF(DataLog!$C3167=\"Log value\",DataLog!T3167,\"\")","v":""},{"$f":"IF(DataLog!$C3167=\"Log value\",DataLog!U3167,\"\")","v":""},{"$f":"IF(DataLog!$C3167=\"Log value\",DataLog!V3167,\"\")","v":""},{"$f":"IF(DataLog!$C3167=\"Log value\",DataLog!W3167,\"\")","v":""},{"$f":"IF(DataLog!$C3167=\"Log value\",DataLog!X3167,\"\")","v":""},{"$f":"IF(DataLog!$C3167=\"Log value\",DataLog!Y3167,\"\")","v":""},{"$f":"IF(DataLog!$C3167=\"Log value\",DataLog!Z3167,\"\")","v":""},{"$f":"IF(DataLog!$C3167=\"Log value\",DataLog!AA3167,\"\")","v":""},{"$f":"IF(DataLog!$C3167=\"Log value\",DataLog!AB3167,\"\")","v":""},{"$f":"IF(DataLog!$C3167=\"Log value\",DataLog!AC3167,\"\")","v":""},{"$f":"IF(DataLog!$C3167=\"Log value\",DataLog!AD3167,\"\")","v":""},{"$f":"IF(DataLog!$C3167=\"Log value\",DataLog!AE3167,\"\")","v":""},{"$f":"IF(DataLog!$C3167=\"Log value\",DataLog!AF3167,\"\")","v":""},{"$f":"IF(DataLog!$C3167=\"Log value\",DataLog!AG3167,\"\")","v":""},{"$f":"IF(DataLog!$C3167=\"Log value\",DataLog!AH3167,\"\")","v":""},{"$f":"IF(DataLog!$C3167=\"Log value\",DataLog!AI3167,\"\")","v":""},{"$f":"IF(DataLog!$C3167=\"Log value\",DataLog!AJ3167,\"\")","v":""},{"$f":"IF(DataLog!$C3167=\"Log value\",DataLog!AK3167,\"\")","v":""},{"$f":"IF(DataLog!$C3167=\"Log value\",DataLog!AL3167,\"\")","v":""},{"$f":"IF(DataLog!$C3167=\"Log value\",DataLog!AM3167,\"\")","v":""}]
[null,null,null,null,null,null,{"$f":"IF(DataLog!$C3168=\"Log value\",DataLog!D3168&\"_\"&TEXT(DataLog!B3168,\"åååå-mm-dd\"),\"\")","v":""},{"$f":"IF(DataLog!$C3168=\"Log value\",DataLog!E3168,\"\")","v":""},{"$f":"IF(DataLog!$C3168=\"Log value\",DataLog!F3168,\"\")","v":""},{"$f":"IF(DataLog!$C3168=\"Log value\",DataLog!G3168,\"\")","v":""},{"$f":"IF(DataLog!$C3168=\"Log value\",DataLog!H3168,\"\")","v":""},{"$f":"IF(DataLog!$C3168=\"Log value\",DataLog!I3168,\"\")","v":""},{"$f":"IF(DataLog!$C3168=\"Log value\",DataLog!J3168,\"\")","v":""},{"$f":"IF(DataLog!$C3168=\"Log value\",DataLog!K3168,\"\")","v":""},{"$f":"IF(DataLog!$C3168=\"Log value\",DataLog!L3168,\"\")","v":""},{"$f":"IF(DataLog!$C3168=\"Log value\",DataLog!M3168,\"\")","v":""},{"$f":"IF(DataLog!$C3168=\"Log value\",DataLog!N3168,\"\")","v":""},{"$f":"IF(DataLog!$C3168=\"Log value\",DataLog!O3168,\"\")","v":""},{"$f":"IF(DataLog!$C3168=\"Log value\",DataLog!P3168,\"\")","v":""},{"$f":"IF(DataLog!$C3168=\"Log value\",DataLog!Q3168,\"\")","v":""},{"$f":"IF(DataLog!$C3168=\"Log value\",DataLog!R3168,\"\")","v":""},{"$f":"IF(DataLog!$C3168=\"Log value\",DataLog!S3168,\"\")","v":""},{"$f":"IF(DataLog!$C3168=\"Log value\",DataLog!T3168,\"\")","v":""},{"$f":"IF(DataLog!$C3168=\"Log value\",DataLog!U3168,\"\")","v":""},{"$f":"IF(DataLog!$C3168=\"Log value\",DataLog!V3168,\"\")","v":""},{"$f":"IF(DataLog!$C3168=\"Log value\",DataLog!W3168,\"\")","v":""},{"$f":"IF(DataLog!$C3168=\"Log value\",DataLog!X3168,\"\")","v":""},{"$f":"IF(DataLog!$C3168=\"Log value\",DataLog!Y3168,\"\")","v":""},{"$f":"IF(DataLog!$C3168=\"Log value\",DataLog!Z3168,\"\")","v":""},{"$f":"IF(DataLog!$C3168=\"Log value\",DataLog!AA3168,\"\")","v":""},{"$f":"IF(DataLog!$C3168=\"Log value\",DataLog!AB3168,\"\")","v":""},{"$f":"IF(DataLog!$C3168=\"Log value\",DataLog!AC3168,\"\")","v":""},{"$f":"IF(DataLog!$C3168=\"Log value\",DataLog!AD3168,\"\")","v":""},{"$f":"IF(DataLog!$C3168=\"Log value\",DataLog!AE3168,\"\")","v":""},{"$f":"IF(DataLog!$C3168=\"Log value\",DataLog!AF3168,\"\")","v":""},{"$f":"IF(DataLog!$C3168=\"Log value\",DataLog!AG3168,\"\")","v":""},{"$f":"IF(DataLog!$C3168=\"Log value\",DataLog!AH3168,\"\")","v":""},{"$f":"IF(DataLog!$C3168=\"Log value\",DataLog!AI3168,\"\")","v":""},{"$f":"IF(DataLog!$C3168=\"Log value\",DataLog!AJ3168,\"\")","v":""},{"$f":"IF(DataLog!$C3168=\"Log value\",DataLog!AK3168,\"\")","v":""},{"$f":"IF(DataLog!$C3168=\"Log value\",DataLog!AL3168,\"\")","v":""},{"$f":"IF(DataLog!$C3168=\"Log value\",DataLog!AM3168,\"\")","v":""}]
[null,null,null,null,null,null,{"$f":"IF(DataLog!$C3172=\"Log value\",DataLog!D3172&\"_\"&TEXT(DataLog!B3172,\"åååå-mm-dd\"),\"\")","v":""},{"$f":"IF(DataLog!$C3172=\"Log value\",DataLog!E3172,\"\")","v":""},{"$f":"IF(DataLog!$C3172=\"Log value\",DataLog!F3172,\"\")","v":""},{"$f":"IF(DataLog!$C3172=\"Log value\",DataLog!G3172,\"\")","v":""},{"$f":"IF(DataLog!$C3172=\"Log value\",DataLog!H3172,\"\")","v":""},{"$f":"IF(DataLog!$C3172=\"Log value\",DataLog!I3172,\"\")","v":""},{"$f":"IF(DataLog!$C3172=\"Log value\",DataLog!J3172,\"\")","v":""},{"$f":"IF(DataLog!$C3172=\"Log value\",DataLog!K3172,\"\")","v":""},{"$f":"IF(DataLog!$C3172=\"Log value\",DataLog!L3172,\"\")","v":""},{"$f":"IF(DataLog!$C3172=\"Log value\",DataLog!M3172,\"\")","v":""},{"$f":"IF(DataLog!$C3172=\"Log value\",DataLog!N3172,\"\")","v":""},{"$f":"IF(DataLog!$C3172=\"Log value\",DataLog!O3172,\"\")","v":""},{"$f":"IF(DataLog!$C3172=\"Log value\",DataLog!P3172,\"\")","v":""},{"$f":"IF(DataLog!$C3172=\"Log value\",DataLog!Q3172,\"\")","v":""},{"$f":"IF(DataLog!$C3172=\"Log value\",DataLog!R3172,\"\")","v":""},{"$f":"IF(DataLog!$C3172=\"Log value\",DataLog!S3172,\"\")","v":""},{"$f":"IF(DataLog!$C3172=\"Log value\",DataLog!T3172,\"\")","v":""},{"$f":"IF(DataLog!$C3172=\"Log value\",DataLog!U3172,\"\")","v":""},{"$f":"IF(DataLog!$C3172=\"Log value\",DataLog!V3172,\"\")","v":""},{"$f":"IF(DataLog!$C3172=\"Log value\",DataLog!W3172,\"\")","v":""},{"$f":"IF(DataLog!$C3172=\"Log value\",DataLog!X3172,\"\")","v":""},{"$f":"IF(DataLog!$C3172=\"Log value\",DataLog!Y3172,\"\")","v":""},{"$f":"IF(DataLog!$C3172=\"Log value\",DataLog!Z3172,\"\")","v":""},{"$f":"IF(DataLog!$C3172=\"Log value\",DataLog!AA3172,\"\")","v":""},{"$f":"IF(DataLog!$C3172=\"Log value\",DataLog!AB3172,\"\")","v":""},{"$f":"IF(DataLog!$C3172=\"Log value\",DataLog!AC3172,\"\")","v":""},{"$f":"IF(DataLog!$C3172=\"Log value\",DataLog!AD3172,\"\")","v":""},{"$f":"IF(DataLog!$C3172=\"Log value\",DataLog!AE3172,\"\")","v":""},{"$f":"IF(DataLog!$C3172=\"Log value\",DataLog!AF3172,\"\")","v":""},{"$f":"IF(DataLog!$C3172=\"Log value\",DataLog!AG3172,\"\")","v":""},{"$f":"IF(DataLog!$C3172=\"Log value\",DataLog!AH3172,\"\")","v":""},{"$f":"IF(DataLog!$C3172=\"Log value\",DataLog!AI3172,\"\")","v":""},{"$f":"IF(DataLog!$C3172=\"Log value\",DataLog!AJ3172,\"\")","v":""},{"$f":"IF(DataLog!$C3172=\"Log value\",DataLog!AK3172,\"\")","v":""},{"$f":"IF(DataLog!$C3172=\"Log value\",DataLog!AL3172,\"\")","v":""},{"$f":"IF(DataLog!$C3172=\"Log value\",DataLog!AM3172,\"\")","v":""}]
[null,null,null,null,null,null,{"$f":"IF(DataLog!$C3173=\"Log value\",DataLog!D3173&\"_\"&TEXT(DataLog!B3173,\"åååå-mm-dd\"),\"\")","v":""},{"$f":"IF(DataLog!$C3173=\"Log value\",DataLog!E3173,\"\")","v":""},{"$f":"IF(DataLog!$C3173=\"Log value\",DataLog!F3173,\"\")","v":""},{"$f":"IF(DataLog!$C3173=\"Log value\",DataLog!G3173,\"\")","v":""},{"$f":"IF(DataLog!$C3173=\"Log value\",DataLog!H3173,\"\")","v":""},{"$f":"IF(DataLog!$C3173=\"Log value\",DataLog!I3173,\"\")","v":""},{"$f":"IF(DataLog!$C3173=\"Log value\",DataLog!J3173,\"\")","v":""},{"$f":"IF(DataLog!$C3173=\"Log value\",DataLog!K3173,\"\")","v":""},{"$f":"IF(DataLog!$C3173=\"Log value\",DataLog!L3173,\"\")","v":""},{"$f":"IF(DataLog!$C3173=\"Log value\",DataLog!M3173,\"\")","v":""},{"$f":"IF(DataLog!$C3173=\"Log value\",DataLog!N3173,\"\")","v":""},{"$f":"IF(DataLog!$C3173=\"Log value\",DataLog!O3173,\"\")","v":""},{"$f":"IF(DataLog!$C3173=\"Log value\",DataLog!P3173,\"\")","v":""},{"$f":"IF(DataLog!$C3173=\"Log value\",DataLog!Q3173,\"\")","v":""},{"$f":"IF(DataLog!$C3173=\"Log value\",DataLog!R3173,\"\")","v":""},{"$f":"IF(DataLog!$C3173=\"Log value\",DataLog!S3173,\"\")","v":""},{"$f":"IF(DataLog!$C3173=\"Log value\",DataLog!T3173,\"\")","v":""},{"$f":"IF(DataLog!$C3173=\"Log value\",DataLog!U3173,\"\")","v":""},{"$f":"IF(DataLog!$C3173=\"Log value\",DataLog!V3173,\"\")","v":""},{"$f":"IF(DataLog!$C3173=\"Log value\",DataLog!W3173,\"\")","v":""},{"$f":"IF(DataLog!$C3173=\"Log value\",DataLog!X3173,\"\")","v":""},{"$f":"IF(DataLog!$C3173=\"Log value\",DataLog!Y3173,\"\")","v":""},{"$f":"IF(DataLog!$C3173=\"Log value\",DataLog!Z3173,\"\")","v":""},{"$f":"IF(DataLog!$C3173=\"Log value\",DataLog!AA3173,\"\")","v":""},{"$f":"IF(DataLog!$C3173=\"Log value\",DataLog!AB3173,\"\")","v":""},{"$f":"IF(DataLog!$C3173=\"Log value\",DataLog!AC3173,\"\")","v":""},{"$f":"IF(DataLog!$C3173=\"Log value\",DataLog!AD3173,\"\")","v":""},{"$f":"IF(DataLog!$C3173=\"Log value\",DataLog!AE3173,\"\")","v":""},{"$f":"IF(DataLog!$C3173=\"Log value\",DataLog!AF3173,\"\")","v":""},{"$f":"IF(DataLog!$C3173=\"Log value\",DataLog!AG3173,\"\")","v":""},{"$f":"IF(DataLog!$C3173=\"Log value\",DataLog!AH3173,\"\")","v":""},{"$f":"IF(DataLog!$C3173=\"Log value\",DataLog!AI3173,\"\")","v":""},{"$f":"IF(DataLog!$C3173=\"Log value\",DataLog!AJ3173,\"\")","v":""},{"$f":"IF(DataLog!$C3173=\"Log value\",DataLog!AK3173,\"\")","v":""},{"$f":"IF(DataLog!$C3173=\"Log value\",DataLog!AL3173,\"\")","v":""},{"$f":"IF(DataLog!$C3173=\"Log value\",DataLog!AM3173,\"\")","v":""}]
[null,null,null,null,null,null,{"$f":"IF(DataLog!$C3176=\"Log value\",DataLog!D3176&\"_\"&TEXT(DataLog!B3176,\"åååå-mm-dd\"),\"\")","v":""},{"$f":"IF(DataLog!$C3176=\"Log value\",DataLog!E3176,\"\")","v":""},{"$f":"IF(DataLog!$C3176=\"Log value\",DataLog!F3176,\"\")","v":""},{"$f":"IF(DataLog!$C3176=\"Log value\",DataLog!G3176,\"\")","v":""},{"$f":"IF(DataLog!$C3176=\"Log value\",DataLog!H3176,\"\")","v":""},{"$f":"IF(DataLog!$C3176=\"Log value\",DataLog!I3176,\"\")","v":""},{"$f":"IF(DataLog!$C3176=\"Log value\",DataLog!J3176,\"\")","v":""},{"$f":"IF(DataLog!$C3176=\"Log value\",DataLog!K3176,\"\")","v":""},{"$f":"IF(DataLog!$C3176=\"Log value\",DataLog!L3176,\"\")","v":""},{"$f":"IF(DataLog!$C3176=\"Log value\",DataLog!M3176,\"\")","v":""},{"$f":"IF(DataLog!$C3176=\"Log value\",DataLog!N3176,\"\")","v":""},{"$f":"IF(DataLog!$C3176=\"Log value\",DataLog!O3176,\"\")","v":""},{"$f":"IF(DataLog!$C3176=\"Log value\",DataLog!P3176,\"\")","v":""},{"$f":"IF(DataLog!$C3176=\"Log value\",DataLog!Q3176,\"\")","v":""},{"$f":"IF(DataLog!$C3176=\"Log value\",DataLog!R3176,\"\")","v":""},{"$f":"IF(DataLog!$C3176=\"Log value\",DataLog!S3176,\"\")","v":""},{"$f":"IF(DataLog!$C3176=\"Log value\",DataLog!T3176,\"\")","v":""},{"$f":"IF(DataLog!$C3176=\"Log value\",DataLog!U3176,\"\")","v":""},{"$f":"IF(DataLog!$C3176=\"Log value\",DataLog!V3176,\"\")","v":""},{"$f":"IF(DataLog!$C3176=\"Log value\",DataLog!W3176,\"\")","v":""},{"$f":"IF(DataLog!$C3176=\"Log value\",DataLog!X3176,\"\")","v":""},{"$f":"IF(DataLog!$C3176=\"Log value\",DataLog!Y3176,\"\")","v":""},{"$f":"IF(DataLog!$C3176=\"Log value\",DataLog!Z3176,\"\")","v":""},{"$f":"IF(DataLog!$C3176=\"Log value\",DataLog!AA3176,\"\")","v":""},{"$f":"IF(DataLog!$C3176=\"Log value\",DataLog!AB3176,\"\")","v":""},{"$f":"IF(DataLog!$C3176=\"Log value\",DataLog!AC3176,\"\")","v":""},{"$f":"IF(DataLog!$C3176=\"Log value\",DataLog!AD3176,\"\")","v":""},{"$f":"IF(DataLog!$C3176=\"Log value\",DataLog!AE3176,\"\")","v":""},{"$f":"IF(DataLog!$C3176=\"Log value\",DataLog!AF3176,\"\")","v":""},{"$f":"IF(DataLog!$C3176=\"Log value\",DataLog!AG3176,\"\")","v":""},{"$f":"IF(DataLog!$C3176=\"Log value\",DataLog!AH3176,\"\")","v":""},{"$f":"IF(DataLog!$C3176=\"Log value\",DataLog!AI3176,\"\")","v":""},{"$f":"IF(DataLog!$C3176=\"Log value\",DataLog!AJ3176,\"\")","v":""},{"$f":"IF(DataLog!$C3176=\"Log value\",DataLog!AK3176,\"\")","v":""},{"$f":"IF(DataLog!$C3176=\"Log value\",DataLog!AL3176,\"\")","v":""},{"$f":"IF(DataLog!$C3176=\"Log value\",DataLog!AM3176,\"\")","v":""}]
[null,null,null,null,null,null,{"$f":"IF(DataLog!$C3179=\"Log value\",DataLog!D3179&\"_\"&TEXT(DataLog!B3179,\"åååå-mm-dd\"),\"\")","v":""},{"$f":"IF(DataLog!$C3179=\"Log value\",DataLog!E3179,\"\")","v":""},{"$f":"IF(DataLog!$C3179=\"Log value\",DataLog!F3179,\"\")","v":""},{"$f":"IF(DataLog!$C3179=\"Log value\",DataLog!G3179,\"\")","v":""},{"$f":"IF(DataLog!$C3179=\"Log value\",DataLog!H3179,\"\")","v":""},{"$f":"IF(DataLog!$C3179=\"Log value\",DataLog!I3179,\"\")","v":""},{"$f":"IF(DataLog!$C3179=\"Log value\",DataLog!J3179,\"\")","v":""},{"$f":"IF(DataLog!$C3179=\"Log value\",DataLog!K3179,\"\")","v":""},{"$f":"IF(DataLog!$C3179=\"Log value\",DataLog!L3179,\"\")","v":""},{"$f":"IF(DataLog!$C3179=\"Log value\",DataLog!M3179,\"\")","v":""},{"$f":"IF(DataLog!$C3179=\"Log value\",DataLog!N3179,\"\")","v":""},{"$f":"IF(DataLog!$C3179=\"Log value\",DataLog!O3179,\"\")","v":""},{"$f":"IF(DataLog!$C3179=\"Log value\",DataLog!P3179,\"\")","v":""},{"$f":"IF(DataLog!$C3179=\"Log value\",DataLog!Q3179,\"\")","v":""},{"$f":"IF(DataLog!$C3179=\"Log value\",DataLog!R3179,\"\")","v":""},{"$f":"IF(DataLog!$C3179=\"Log value\",DataLog!S3179,\"\")","v":""},{"$f":"IF(DataLog!$C3179=\"Log value\",DataLog!T3179,\"\")","v":""},{"$f":"IF(DataLog!$C3179=\"Log value\",DataLog!U3179,\"\")","v":""},{"$f":"IF(DataLog!$C3179=\"Log value\",DataLog!V3179,\"\")","v":""},{"$f":"IF(DataLog!$C3179=\"Log value\",DataLog!W3179,\"\")","v":""},{"$f":"IF(DataLog!$C3179=\"Log value\",DataLog!X3179,\"\")","v":""},{"$f":"IF(DataLog!$C3179=\"Log value\",DataLog!Y3179,\"\")","v":""},{"$f":"IF(DataLog!$C3179=\"Log value\",DataLog!Z3179,\"\")","v":""},{"$f":"IF(DataLog!$C3179=\"Log value\",DataLog!AA3179,\"\")","v":""},{"$f":"IF(DataLog!$C3179=\"Log value\",DataLog!AB3179,\"\")","v":""},{"$f":"IF(DataLog!$C3179=\"Log value\",DataLog!AC3179,\"\")","v":""},{"$f":"IF(DataLog!$C3179=\"Log value\",DataLog!AD3179,\"\")","v":""},{"$f":"IF(DataLog!$C3179=\"Log value\",DataLog!AE3179,\"\")","v":""},{"$f":"IF(DataLog!$C3179=\"Log value\",DataLog!AF3179,\"\")","v":""},{"$f":"IF(DataLog!$C3179=\"Log value\",DataLog!AG3179,\"\")","v":""},{"$f":"IF(DataLog!$C3179=\"Log value\",DataLog!AH3179,\"\")","v":""},{"$f":"IF(DataLog!$C3179=\"Log value\",DataLog!AI3179,\"\")","v":""},{"$f":"IF(DataLog!$C3179=\"Log value\",DataLog!AJ3179,\"\")","v":""},{"$f":"IF(DataLog!$C3179=\"Log value\",DataLog!AK3179,\"\")","v":""},{"$f":"IF(DataLog!$C3179=\"Log value\",DataLog!AL3179,\"\")","v":""},{"$f":"IF(DataLog!$C3179=\"Log value\",DataLog!AM3179,\"\")","v":""}]
[null,null,null,null,null,null,{"$f":"IF(DataLog!$C3181=\"Log value\",DataLog!D3181&\"_\"&TEXT(DataLog!B3181,\"åååå-mm-dd\"),\"\")","v":""},{"$f":"IF(DataLog!$C3181=\"Log value\",DataLog!E3181,\"\")","v":""},{"$f":"IF(DataLog!$C3181=\"Log value\",DataLog!F3181,\"\")","v":""},{"$f":"IF(DataLog!$C3181=\"Log value\",DataLog!G3181,\"\")","v":""},{"$f":"IF(DataLog!$C3181=\"Log value\",DataLog!H3181,\"\")","v":""},{"$f":"IF(DataLog!$C3181=\"Log value\",DataLog!I3181,\"\")","v":""},{"$f":"IF(DataLog!$C3181=\"Log value\",DataLog!J3181,\"\")","v":""},{"$f":"IF(DataLog!$C3181=\"Log value\",DataLog!K3181,\"\")","v":""},{"$f":"IF(DataLog!$C3181=\"Log value\",DataLog!L3181,\"\")","v":""},{"$f":"IF(DataLog!$C3181=\"Log value\",DataLog!M3181,\"\")","v":""},{"$f":"IF(DataLog!$C3181=\"Log value\",DataLog!N3181,\"\")","v":""},{"$f":"IF(DataLog!$C3181=\"Log value\",DataLog!O3181,\"\")","v":""},{"$f":"IF(DataLog!$C3181=\"Log value\",DataLog!P3181,\"\")","v":""},{"$f":"IF(DataLog!$C3181=\"Log value\",DataLog!Q3181,\"\")","v":""},{"$f":"IF(DataLog!$C3181=\"Log value\",DataLog!R3181,\"\")","v":""},{"$f":"IF(DataLog!$C3181=\"Log value\",DataLog!S3181,\"\")","v":""},{"$f":"IF(DataLog!$C3181=\"Log value\",DataLog!T3181,\"\")","v":""},{"$f":"IF(DataLog!$C3181=\"Log value\",DataLog!U3181,\"\")","v":""},{"$f":"IF(DataLog!$C3181=\"Log value\",DataLog!V3181,\"\")","v":""},{"$f":"IF(DataLog!$C3181=\"Log value\",DataLog!W3181,\"\")","v":""},{"$f":"IF(DataLog!$C3181=\"Log value\",DataLog!X3181,\"\")","v":""},{"$f":"IF(DataLog!$C3181=\"Log value\",DataLog!Y3181,\"\")","v":""},{"$f":"IF(DataLog!$C3181=\"Log value\",DataLog!Z3181,\"\")","v":""},{"$f":"IF(DataLog!$C3181=\"Log value\",DataLog!AA3181,\"\")","v":""},{"$f":"IF(DataLog!$C3181=\"Log value\",DataLog!AB3181,\"\")","v":""},{"$f":"IF(DataLog!$C3181=\"Log value\",DataLog!AC3181,\"\")","v":""},{"$f":"IF(DataLog!$C3181=\"Log value\",DataLog!AD3181,\"\")","v":""},{"$f":"IF(DataLog!$C3181=\"Log value\",DataLog!AE3181,\"\")","v":""},{"$f":"IF(DataLog!$C3181=\"Log value\",DataLog!AF3181,\"\")","v":""},{"$f":"IF(DataLog!$C3181=\"Log value\",DataLog!AG3181,\"\")","v":""},{"$f":"IF(DataLog!$C3181=\"Log value\",DataLog!AH3181,\"\")","v":""},{"$f":"IF(DataLog!$C3181=\"Log value\",DataLog!AI3181,\"\")","v":""},{"$f":"IF(DataLog!$C3181=\"Log value\",DataLog!AJ3181,\"\")","v":""},{"$f":"IF(DataLog!$C3181=\"Log value\",DataLog!AK3181,\"\")","v":""},{"$f":"IF(DataLog!$C3181=\"Log value\",DataLog!AL3181,\"\")","v":""},{"$f":"IF(DataLog!$C3181=\"Log value\",DataLog!AM3181,\"\")","v":""}]
[null,null,null,null,null,null,{"$f":"IF(DataLog!$C3182=\"Log value\",DataLog!D3182&\"_\"&TEXT(DataLog!B3182,\"åååå-mm-dd\"),\"\")","v":""},{"$f":"IF(DataLog!$C3182=\"Log value\",DataLog!E3182,\"\")","v":""},{"$f":"IF(DataLog!$C3182=\"Log value\",DataLog!F3182,\"\")","v":""},{"$f":"IF(DataLog!$C3182=\"Log value\",DataLog!G3182,\"\")","v":""},{"$f":"IF(DataLog!$C3182=\"Log value\",DataLog!H3182,\"\")","v":""},{"$f":"IF(DataLog!$C3182=\"Log value\",DataLog!I3182,\"\")","v":""},{"$f":"IF(DataLog!$C3182=\"Log value\",DataLog!J3182,\"\")","v":""},{"$f":"IF(DataLog!$C3182=\"Log value\",DataLog!K3182,\"\")","v":""},{"$f":"IF(DataLog!$C3182=\"Log value\",DataLog!L3182,\"\")","v":""},{"$f":"IF(DataLog!$C3182=\"Log value\",DataLog!M3182,\"\")","v":""},{"$f":"IF(DataLog!$C3182=\"Log value\",DataLog!N3182,\"\")","v":""},{"$f":"IF(DataLog!$C3182=\"Log value\",DataLog!O3182,\"\")","v":""},{"$f":"IF(DataLog!$C3182=\"Log value\",DataLog!P3182,\"\")","v":""},{"$f":"IF(DataLog!$C3182=\"Log value\",DataLog!Q3182,\"\")","v":""},{"$f":"IF(DataLog!$C3182=\"Log value\",DataLog!R3182,\"\")","v":""},{"$f":"IF(DataLog!$C3182=\"Log value\",DataLog!S3182,\"\")","v":""},{"$f":"IF(DataLog!$C3182=\"Log value\",DataLog!T3182,\"\")","v":""},{"$f":"IF(DataLog!$C3182=\"Log value\",DataLog!U3182,\"\")","v":""},{"$f":"IF(DataLog!$C3182=\"Log value\",DataLog!V3182,\"\")","v":""},{"$f":"IF(DataLog!$C3182=\"Log value\",DataLog!W3182,\"\")","v":""},{"$f":"IF(DataLog!$C3182=\"Log value\",DataLog!X3182,\"\")","v":""},{"$f":"IF(DataLog!$C3182=\"Log value\",DataLog!Y3182,\"\")","v":""},{"$f":"IF(DataLog!$C3182=\"Log value\",DataLog!Z3182,\"\")","v":""},{"$f":"IF(DataLog!$C3182=\"Log value\",DataLog!AA3182,\"\")","v":""},{"$f":"IF(DataLog!$C3182=\"Log value\",DataLog!AB3182,\"\")","v":""},{"$f":"IF(DataLog!$C3182=\"Log value\",DataLog!AC3182,\"\")","v":""},{"$f":"IF(DataLog!$C3182=\"Log value\",DataLog!AD3182,\"\")","v":""},{"$f":"IF(DataLog!$C3182=\"Log value\",DataLog!AE3182,\"\")","v":""},{"$f":"IF(DataLog!$C3182=\"Log value\",DataLog!AF3182,\"\")","v":""},{"$f":"IF(DataLog!$C3182=\"Log value\",DataLog!AG3182,\"\")","v":""},{"$f":"IF(DataLog!$C3182=\"Log value\",DataLog!AH3182,\"\")","v":""},{"$f":"IF(DataLog!$C3182=\"Log value\",DataLog!AI3182,\"\")","v":""},{"$f":"IF(DataLog!$C3182=\"Log value\",DataLog!AJ3182,\"\")","v":""},{"$f":"IF(DataLog!$C3182=\"Log value\",DataLog!AK3182,\"\")","v":""},{"$f":"IF(DataLog!$C3182=\"Log value\",DataLog!AL3182,\"\")","v":""},{"$f":"IF(DataLog!$C3182=\"Log value\",DataLog!AM3182,\"\")","v":""}]
[null,null,null,null,null,null,{"$f":"IF(DataLog!$C3184=\"Log value\",DataLog!D3184&\"_\"&TEXT(DataLog!B3184,\"åååå-mm-dd\"),\"\")","v":""},{"$f":"IF(DataLog!$C3184=\"Log value\",DataLog!E3184,\"\")","v":""},{"$f":"IF(DataLog!$C3184=\"Log value\",DataLog!F3184,\"\")","v":""},{"$f":"IF(DataLog!$C3184=\"Log value\",DataLog!G3184,\"\")","v":""},{"$f":"IF(DataLog!$C3184=\"Log value\",DataLog!H3184,\"\")","v":""},{"$f":"IF(DataLog!$C3184=\"Log value\",DataLog!I3184,\"\")","v":""},{"$f":"IF(DataLog!$C3184=\"Log value\",DataLog!J3184,\"\")","v":""},{"$f":"IF(DataLog!$C3184=\"Log value\",DataLog!K3184,\"\")","v":""},{"$f":"IF(DataLog!$C3184=\"Log value\",DataLog!L3184,\"\")","v":""},{"$f":"IF(DataLog!$C3184=\"Log value\",DataLog!M3184,\"\")","v":""},{"$f":"IF(DataLog!$C3184=\"Log value\",DataLog!N3184,\"\")","v":""},{"$f":"IF(DataLog!$C3184=\"Log value\",DataLog!O3184,\"\")","v":""},{"$f":"IF(DataLog!$C3184=\"Log value\",DataLog!P3184,\"\")","v":""},{"$f":"IF(DataLog!$C3184=\"Log value\",DataLog!Q3184,\"\")","v":""},{"$f":"IF(DataLog!$C3184=\"Log value\",DataLog!R3184,\"\")","v":""},{"$f":"IF(DataLog!$C3184=\"Log value\",DataLog!S3184,\"\")","v":""},{"$f":"IF(DataLog!$C3184=\"Log value\",DataLog!T3184,\"\")","v":""},{"$f":"IF(DataLog!$C3184=\"Log value\",DataLog!U3184,\"\")","v":""},{"$f":"IF(DataLog!$C3184=\"Log value\",DataLog!V3184,\"\")","v":""},{"$f":"IF(DataLog!$C3184=\"Log value\",DataLog!W3184,\"\")","v":""},{"$f":"IF(DataLog!$C3184=\"Log value\",DataLog!X3184,\"\")","v":""},{"$f":"IF(DataLog!$C3184=\"Log value\",DataLog!Y3184,\"\")","v":""},{"$f":"IF(DataLog!$C3184=\"Log value\",DataLog!Z3184,\"\")","v":""},{"$f":"IF(DataLog!$C3184=\"Log value\",DataLog!AA3184,\"\")","v":""},{"$f":"IF(DataLog!$C3184=\"Log value\",DataLog!AB3184,\"\")","v":""},{"$f":"IF(DataLog!$C3184=\"Log value\",DataLog!AC3184,\"\")","v":""},{"$f":"IF(DataLog!$C3184=\"Log value\",DataLog!AD3184,\"\")","v":""},{"$f":"IF(DataLog!$C3184=\"Log value\",DataLog!AE3184,\"\")","v":""},{"$f":"IF(DataLog!$C3184=\"Log value\",DataLog!AF3184,\"\")","v":""},{"$f":"IF(DataLog!$C3184=\"Log value\",DataLog!AG3184,\"\")","v":""},{"$f":"IF(DataLog!$C3184=\"Log value\",DataLog!AH3184,\"\")","v":""},{"$f":"IF(DataLog!$C3184=\"Log value\",DataLog!AI3184,\"\")","v":""},{"$f":"IF(DataLog!$C3184=\"Log value\",DataLog!AJ3184,\"\")","v":""},{"$f":"IF(DataLog!$C3184=\"Log value\",DataLog!AK3184,\"\")","v":""},{"$f":"IF(DataLog!$C3184=\"Log value\",DataLog!AL3184,\"\")","v":""},{"$f":"IF(DataLog!$C3184=\"Log value\",DataLog!AM3184,\"\")","v":""}]
[null,null,null,null,null,null,{"$f":"IF(DataLog!$C3187=\"Log value\",DataLog!D3187&\"_\"&TEXT(DataLog!B3187,\"åååå-mm-dd\"),\"\")","v":""},{"$f":"IF(DataLog!$C3187=\"Log value\",DataLog!E3187,\"\")","v":""},{"$f":"IF(DataLog!$C3187=\"Log value\",DataLog!F3187,\"\")","v":""},{"$f":"IF(DataLog!$C3187=\"Log value\",DataLog!G3187,\"\")","v":""},{"$f":"IF(DataLog!$C3187=\"Log value\",DataLog!H3187,\"\")","v":""},{"$f":"IF(DataLog!$C3187=\"Log value\",DataLog!I3187,\"\")","v":""},{"$f":"IF(DataLog!$C3187=\"Log value\",DataLog!J3187,\"\")","v":""},{"$f":"IF(DataLog!$C3187=\"Log value\",DataLog!K3187,\"\")","v":""},{"$f":"IF(DataLog!$C3187=\"Log value\",DataLog!L3187,\"\")","v":""},{"$f":"IF(DataLog!$C3187=\"Log value\",DataLog!M3187,\"\")","v":""},{"$f":"IF(DataLog!$C3187=\"Log value\",DataLog!N3187,\"\")","v":""},{"$f":"IF(DataLog!$C3187=\"Log value\",DataLog!O3187,\"\")","v":""},{"$f":"IF(DataLog!$C3187=\"Log value\",DataLog!P3187,\"\")","v":""},{"$f":"IF(DataLog!$C3187=\"Log value\",DataLog!Q3187,\"\")","v":""},{"$f":"IF(DataLog!$C3187=\"Log value\",DataLog!R3187,\"\")","v":""},{"$f":"IF(DataLog!$C3187=\"Log value\",DataLog!S3187,\"\")","v":""},{"$f":"IF(DataLog!$C3187=\"Log value\",DataLog!T3187,\"\")","v":""},{"$f":"IF(DataLog!$C3187=\"Log value\",DataLog!U3187,\"\")","v":""},{"$f":"IF(DataLog!$C3187=\"Log value\",DataLog!V3187,\"\")","v":""},{"$f":"IF(DataLog!$C3187=\"Log value\",DataLog!W3187,\"\")","v":""},{"$f":"IF(DataLog!$C3187=\"Log value\",DataLog!X3187,\"\")","v":""},{"$f":"IF(DataLog!$C3187=\"Log value\",DataLog!Y3187,\"\")","v":""},{"$f":"IF(DataLog!$C3187=\"Log value\",DataLog!Z3187,\"\")","v":""},{"$f":"IF(DataLog!$C3187=\"Log value\",DataLog!AA3187,\"\")","v":""},{"$f":"IF(DataLog!$C3187=\"Log value\",DataLog!AB3187,\"\")","v":""},{"$f":"IF(DataLog!$C3187=\"Log value\",DataLog!AC3187,\"\")","v":""},{"$f":"IF(DataLog!$C3187=\"Log value\",DataLog!AD3187,\"\")","v":""},{"$f":"IF(DataLog!$C3187=\"Log value\",DataLog!AE3187,\"\")","v":""},{"$f":"IF(DataLog!$C3187=\"Log value\",DataLog!AF3187,\"\")","v":""},{"$f":"IF(DataLog!$C3187=\"Log value\",DataLog!AG3187,\"\")","v":""},{"$f":"IF(DataLog!$C3187=\"Log value\",DataLog!AH3187,\"\")","v":""},{"$f":"IF(DataLog!$C3187=\"Log value\",DataLog!AI3187,\"\")","v":""},{"$f":"IF(DataLog!$C3187=\"Log value\",DataLog!AJ3187,\"\")","v":""},{"$f":"IF(DataLog!$C3187=\"Log value\",DataLog!AK3187,\"\")","v":""},{"$f":"IF(DataLog!$C3187=\"Log value\",DataLog!AL3187,\"\")","v":""},{"$f":"IF(DataLog!$C3187=\"Log value\",DataLog!AM3187,\"\")","v":""}]
[null,null,null,null,null,null,{"$f":"IF(DataLog!$C3190=\"Log value\",DataLog!D3190&\"_\"&TEXT(DataLog!B3190,\"åååå-mm-dd\"),\"\")","v":""},{"$f":"IF(DataLog!$C3190=\"Log value\",DataLog!E3190,\"\")","v":""},{"$f":"IF(DataLog!$C3190=\"Log value\",DataLog!F3190,\"\")","v":""},{"$f":"IF(DataLog!$C3190=\"Log value\",DataLog!G3190,\"\")","v":""},{"$f":"IF(DataLog!$C3190=\"Log value\",DataLog!H3190,\"\")","v":""},{"$f":"IF(DataLog!$C3190=\"Log value\",DataLog!I3190,\"\")","v":""},{"$f":"IF(DataLog!$C3190=\"Log value\",DataLog!J3190,\"\")","v":""},{"$f":"IF(DataLog!$C3190=\"Log value\",DataLog!K3190,\"\")","v":""},{"$f":"IF(DataLog!$C3190=\"Log value\",DataLog!L3190,\"\")","v":""},{"$f":"IF(DataLog!$C3190=\"Log value\",DataLog!M3190,\"\")","v":""},{"$f":"IF(DataLog!$C3190=\"Log value\",DataLog!N3190,\"\")","v":""},{"$f":"IF(DataLog!$C3190=\"Log value\",DataLog!O3190,\"\")","v":""},{"$f":"IF(DataLog!$C3190=\"Log value\",DataLog!P3190,\"\")","v":""},{"$f":"IF(DataLog!$C3190=\"Log value\",DataLog!Q3190,\"\")","v":""},{"$f":"IF(DataLog!$C3190=\"Log value\",DataLog!R3190,\"\")","v":""},{"$f":"IF(DataLog!$C3190=\"Log value\",DataLog!S3190,\"\")","v":""},{"$f":"IF(DataLog!$C3190=\"Log value\",DataLog!T3190,\"\")","v":""},{"$f":"IF(DataLog!$C3190=\"Log value\",DataLog!U3190,\"\")","v":""},{"$f":"IF(DataLog!$C3190=\"Log value\",DataLog!V3190,\"\")","v":""},{"$f":"IF(DataLog!$C3190=\"Log value\",DataLog!W3190,\"\")","v":""},{"$f":"IF(DataLog!$C3190=\"Log value\",DataLog!X3190,\"\")","v":""},{"$f":"IF(DataLog!$C3190=\"Log value\",DataLog!Y3190,\"\")","v":""},{"$f":"IF(DataLog!$C3190=\"Log value\",DataLog!Z3190,\"\")","v":""},{"$f":"IF(DataLog!$C3190=\"Log value\",DataLog!AA3190,\"\")","v":""},{"$f":"IF(DataLog!$C3190=\"Log value\",DataLog!AB3190,\"\")","v":""},{"$f":"IF(DataLog!$C3190=\"Log value\",DataLog!AC3190,\"\")","v":""},{"$f":"IF(DataLog!$C3190=\"Log value\",DataLog!AD3190,\"\")","v":""},{"$f":"IF(DataLog!$C3190=\"Log value\",DataLog!AE3190,\"\")","v":""},{"$f":"IF(DataLog!$C3190=\"Log value\",DataLog!AF3190,\"\")","v":""},{"$f":"IF(DataLog!$C3190=\"Log value\",DataLog!AG3190,\"\")","v":""},{"$f":"IF(DataLog!$C3190=\"Log value\",DataLog!AH3190,\"\")","v":""},{"$f":"IF(DataLog!$C3190=\"Log value\",DataLog!AI3190,\"\")","v":""},{"$f":"IF(DataLog!$C3190=\"Log value\",DataLog!AJ3190,\"\")","v":""},{"$f":"IF(DataLog!$C3190=\"Log value\",DataLog!AK3190,\"\")","v":""},{"$f":"IF(DataLog!$C3190=\"Log value\",DataLog!AL3190,\"\")","v":""},{"$f":"IF(DataLog!$C3190=\"Log value\",DataLog!AM3190,\"\")","v":""}]
[null,null,null,null,null,null,{"$f":"IF(DataLog!$C3191=\"Log value\",DataLog!D3191&\"_\"&TEXT(DataLog!B3191,\"åååå-mm-dd\"),\"\")","v":""},{"$f":"IF(DataLog!$C3191=\"Log value\",DataLog!E3191,\"\")","v":""},{"$f":"IF(DataLog!$C3191=\"Log value\",DataLog!F3191,\"\")","v":""},{"$f":"IF(DataLog!$C3191=\"Log value\",DataLog!G3191,\"\")","v":""},{"$f":"IF(DataLog!$C3191=\"Log value\",DataLog!H3191,\"\")","v":""},{"$f":"IF(DataLog!$C3191=\"Log value\",DataLog!I3191,\"\")","v":""},{"$f":"IF(DataLog!$C3191=\"Log value\",DataLog!J3191,\"\")","v":""},{"$f":"IF(DataLog!$C3191=\"Log value\",DataLog!K3191,\"\")","v":""},{"$f":"IF(DataLog!$C3191=\"Log value\",DataLog!L3191,\"\")","v":""},{"$f":"IF(DataLog!$C3191=\"Log value\",DataLog!M3191,\"\")","v":""},{"$f":"IF(DataLog!$C3191=\"Log value\",DataLog!N3191,\"\")","v":""},{"$f":"IF(DataLog!$C3191=\"Log value\",DataLog!O3191,\"\")","v":""},{"$f":"IF(DataLog!$C3191=\"Log value\",DataLog!P3191,\"\")","v":""},{"$f":"IF(DataLog!$C3191=\"Log value\",DataLog!Q3191,\"\")","v":""},{"$f":"IF(DataLog!$C3191=\"Log value\",DataLog!R3191,\"\")","v":""},{"$f":"IF(DataLog!$C3191=\"Log value\",DataLog!S3191,\"\")","v":""},{"$f":"IF(DataLog!$C3191=\"Log value\",DataLog!T3191,\"\")","v":""},{"$f":"IF(DataLog!$C3191=\"Log value\",DataLog!U3191,\"\")","v":""},{"$f":"IF(DataLog!$C3191=\"Log value\",DataLog!V3191,\"\")","v":""},{"$f":"IF(DataLog!$C3191=\"Log value\",DataLog!W3191,\"\")","v":""},{"$f":"IF(DataLog!$C3191=\"Log value\",DataLog!X3191,\"\")","v":""},{"$f":"IF(DataLog!$C3191=\"Log value\",DataLog!Y3191,\"\")","v":""},{"$f":"IF(DataLog!$C3191=\"Log value\",DataLog!Z3191,\"\")","v":""},{"$f":"IF(DataLog!$C3191=\"Log value\",DataLog!AA3191,\"\")","v":""},{"$f":"IF(DataLog!$C3191=\"Log value\",DataLog!AB3191,\"\")","v":""},{"$f":"IF(DataLog!$C3191=\"Log value\",DataLog!AC3191,\"\")","v":""},{"$f":"IF(DataLog!$C3191=\"Log value\",DataLog!AD3191,\"\")","v":""},{"$f":"IF(DataLog!$C3191=\"Log value\",DataLog!AE3191,\"\")","v":""},{"$f":"IF(DataLog!$C3191=\"Log value\",DataLog!AF3191,\"\")","v":""},{"$f":"IF(DataLog!$C3191=\"Log value\",DataLog!AG3191,\"\")","v":""},{"$f":"IF(DataLog!$C3191=\"Log value\",DataLog!AH3191,\"\")","v":""},{"$f":"IF(DataLog!$C3191=\"Log value\",DataLog!AI3191,\"\")","v":""},{"$f":"IF(DataLog!$C3191=\"Log value\",DataLog!AJ3191,\"\")","v":""},{"$f":"IF(DataLog!$C3191=\"Log value\",DataLog!AK3191,\"\")","v":""},{"$f":"IF(DataLog!$C3191=\"Log value\",DataLog!AL3191,\"\")","v":""},{"$f":"IF(DataLog!$C3191=\"Log value\",DataLog!AM3191,\"\")","v":""}]
[null,null,null,null,null,null,{"$f":"IF(DataLog!$C3194=\"Log value\",DataLog!D3194&\"_\"&TEXT(DataLog!B3194,\"åååå-mm-dd\"),\"\")","v":""},{"$f":"IF(DataLog!$C3194=\"Log value\",DataLog!E3194,\"\")","v":""},{"$f":"IF(DataLog!$C3194=\"Log value\",DataLog!F3194,\"\")","v":""},{"$f":"IF(DataLog!$C3194=\"Log value\",DataLog!G3194,\"\")","v":""},{"$f":"IF(DataLog!$C3194=\"Log value\",DataLog!H3194,\"\")","v":""},{"$f":"IF(DataLog!$C3194=\"Log value\",DataLog!I3194,\"\")","v":""},{"$f":"IF(DataLog!$C3194=\"Log value\",DataLog!J3194,\"\")","v":""},{"$f":"IF(DataLog!$C3194=\"Log value\",DataLog!K3194,\"\")","v":""},{"$f":"IF(DataLog!$C3194=\"Log value\",DataLog!L3194,\"\")","v":""},{"$f":"IF(DataLog!$C3194=\"Log value\",DataLog!M3194,\"\")","v":""},{"$f":"IF(DataLog!$C3194=\"Log value\",DataLog!N3194,\"\")","v":""},{"$f":"IF(DataLog!$C3194=\"Log value\",DataLog!O3194,\"\")","v":""},{"$f":"IF(DataLog!$C3194=\"Log value\",DataLog!P3194,\"\")","v":""},{"$f":"IF(DataLog!$C3194=\"Log value\",DataLog!Q3194,\"\")","v":""},{"$f":"IF(DataLog!$C3194=\"Log value\",DataLog!R3194,\"\")","v":""},{"$f":"IF(DataLog!$C3194=\"Log value\",DataLog!S3194,\"\")","v":""},{"$f":"IF(DataLog!$C3194=\"Log value\",DataLog!T3194,\"\")","v":""},{"$f":"IF(DataLog!$C3194=\"Log value\",DataLog!U3194,\"\")","v":""},{"$f":"IF(DataLog!$C3194=\"Log value\",DataLog!V3194,\"\")","v":""},{"$f":"IF(DataLog!$C3194=\"Log value\",DataLog!W3194,\"\")","v":""},{"$f":"IF(DataLog!$C3194=\"Log value\",DataLog!X3194,\"\")","v":""},{"$f":"IF(DataLog!$C3194=\"Log value\",DataLog!Y3194,\"\")","v":""},{"$f":"IF(DataLog!$C3194=\"Log value\",DataLog!Z3194,\"\")","v":""},{"$f":"IF(DataLog!$C3194=\"Log value\",DataLog!AA3194,\"\")","v":""},{"$f":"IF(DataLog!$C3194=\"Log value\",DataLog!AB3194,\"\")","v":""},{"$f":"IF(DataLog!$C3194=\"Log value\",DataLog!AC3194,\"\")","v":""},{"$f":"IF(DataLog!$C3194=\"Log value\",DataLog!AD3194,\"\")","v":""},{"$f":"IF(DataLog!$C3194=\"Log value\",DataLog!AE3194,\"\")","v":""},{"$f":"IF(DataLog!$C3194=\"Log value\",DataLog!AF3194,\"\")","v":""},{"$f":"IF(DataLog!$C3194=\"Log value\",DataLog!AG3194,\"\")","v":""},{"$f":"IF(DataLog!$C3194=\"Log value\",DataLog!AH3194,\"\")","v":""},{"$f":"IF(DataLog!$C3194=\"Log value\",DataLog!AI3194,\"\")","v":""},{"$f":"IF(DataLog!$C3194=\"Log value\",DataLog!AJ3194,\"\")","v":""},{"$f":"IF(DataLog!$C3194=\"Log value\",DataLog!AK3194,\"\")","v":""},{"$f":"IF(DataLog!$C3194=\"Log value\",DataLog!AL3194,\"\")","v":""},{"$f":"IF(DataLog!$C3194=\"Log value\",DataLog!AM3194,\"\")","v":""}]
[null,null,null,null,null,null,{"$f":"IF(DataLog!$C3196=\"Log value\",DataLog!D3196&\"_\"&TEXT(DataLog!B3196,\"åååå-mm-dd\"),\"\")","v":""},{"$f":"IF(DataLog!$C3196=\"Log value\",DataLog!E3196,\"\")","v":""},{"$f":"IF(DataLog!$C3196=\"Log value\",DataLog!F3196,\"\")","v":""},{"$f":"IF(DataLog!$C3196=\"Log value\",DataLog!G3196,\"\")","v":""},{"$f":"IF(DataLog!$C3196=\"Log value\",DataLog!H3196,\"\")","v":""},{"$f":"IF(DataLog!$C3196=\"Log value\",DataLog!I3196,\"\")","v":""},{"$f":"IF(DataLog!$C3196=\"Log value\",DataLog!J3196,\"\")","v":""},{"$f":"IF(DataLog!$C3196=\"Log value\",DataLog!K3196,\"\")","v":""},{"$f":"IF(DataLog!$C3196=\"Log value\",DataLog!L3196,\"\")","v":""},{"$f":"IF(DataLog!$C3196=\"Log value\",DataLog!M3196,\"\")","v":""},{"$f":"IF(DataLog!$C3196=\"Log value\",DataLog!N3196,\"\")","v":""},{"$f":"IF(DataLog!$C3196=\"Log value\",DataLog!O3196,\"\")","v":""},{"$f":"IF(DataLog!$C3196=\"Log value\",DataLog!P3196,\"\")","v":""},{"$f":"IF(DataLog!$C3196=\"Log value\",DataLog!Q3196,\"\")","v":""},{"$f":"IF(DataLog!$C3196=\"Log value\",DataLog!R3196,\"\")","v":""},{"$f":"IF(DataLog!$C3196=\"Log value\",DataLog!S3196,\"\")","v":""},{"$f":"IF(DataLog!$C3196=\"Log value\",DataLog!T3196,\"\")","v":""},{"$f":"IF(DataLog!$C3196=\"Log value\",DataLog!U3196,\"\")","v":""},{"$f":"IF(DataLog!$C3196=\"Log value\",DataLog!V3196,\"\")","v":""},{"$f":"IF(DataLog!$C3196=\"Log value\",DataLog!W3196,\"\")","v":""},{"$f":"IF(DataLog!$C3196=\"Log value\",DataLog!X3196,\"\")","v":""},{"$f":"IF(DataLog!$C3196=\"Log value\",DataLog!Y3196,\"\")","v":""},{"$f":"IF(DataLog!$C3196=\"Log value\",DataLog!Z3196,\"\")","v":""},{"$f":"IF(DataLog!$C3196=\"Log value\",DataLog!AA3196,\"\")","v":""},{"$f":"IF(DataLog!$C3196=\"Log value\",DataLog!AB3196,\"\")","v":""},{"$f":"IF(DataLog!$C3196=\"Log value\",DataLog!AC3196,\"\")","v":""},{"$f":"IF(DataLog!$C3196=\"Log value\",DataLog!AD3196,\"\")","v":""},{"$f":"IF(DataLog!$C3196=\"Log value\",DataLog!AE3196,\"\")","v":""},{"$f":"IF(DataLog!$C3196=\"Log value\",DataLog!AF3196,\"\")","v":""},{"$f":"IF(DataLog!$C3196=\"Log value\",DataLog!AG3196,\"\")","v":""},{"$f":"IF(DataLog!$C3196=\"Log value\",DataLog!AH3196,\"\")","v":""},{"$f":"IF(DataLog!$C3196=\"Log value\",DataLog!AI3196,\"\")","v":""},{"$f":"IF(DataLog!$C3196=\"Log value\",DataLog!AJ3196,\"\")","v":""},{"$f":"IF(DataLog!$C3196=\"Log value\",DataLog!AK3196,\"\")","v":""},{"$f":"IF(DataLog!$C3196=\"Log value\",DataLog!AL3196,\"\")","v":""},{"$f":"IF(DataLog!$C3196=\"Log value\",DataLog!AM3196,\"\")","v":""}]
[null,null,null,null,null,null,{"$f":"IF(DataLog!$C3199=\"Log value\",DataLog!D3199&\"_\"&TEXT(DataLog!B3199,\"åååå-mm-dd\"),\"\")","v":""},{"$f":"IF(DataLog!$C3199=\"Log value\",DataLog!E3199,\"\")","v":""},{"$f":"IF(DataLog!$C3199=\"Log value\",DataLog!F3199,\"\")","v":""},{"$f":"IF(DataLog!$C3199=\"Log value\",DataLog!G3199,\"\")","v":""},{"$f":"IF(DataLog!$C3199=\"Log value\",DataLog!H3199,\"\")","v":""},{"$f":"IF(DataLog!$C3199=\"Log value\",DataLog!I3199,\"\")","v":""},{"$f":"IF(DataLog!$C3199=\"Log value\",DataLog!J3199,\"\")","v":""},{"$f":"IF(DataLog!$C3199=\"Log value\",DataLog!K3199,\"\")","v":""},{"$f":"IF(DataLog!$C3199=\"Log value\",DataLog!L3199,\"\")","v":""},{"$f":"IF(DataLog!$C3199=\"Log value\",DataLog!M3199,\"\")","v":""},{"$f":"IF(DataLog!$C3199=\"Log value\",DataLog!N3199,\"\")","v":""},{"$f":"IF(DataLog!$C3199=\"Log value\",DataLog!O3199,\"\")","v":""},{"$f":"IF(DataLog!$C3199=\"Log value\",DataLog!P3199,\"\")","v":""},{"$f":"IF(DataLog!$C3199=\"Log value\",DataLog!Q3199,\"\")","v":""},{"$f":"IF(DataLog!$C3199=\"Log value\",DataLog!R3199,\"\")","v":""},{"$f":"IF(DataLog!$C3199=\"Log value\",DataLog!S3199,\"\")","v":""},{"$f":"IF(DataLog!$C3199=\"Log value\",DataLog!T3199,\"\")","v":""},{"$f":"IF(DataLog!$C3199=\"Log value\",DataLog!U3199,\"\")","v":""},{"$f":"IF(DataLog!$C3199=\"Log value\",DataLog!V3199,\"\")","v":""},{"$f":"IF(DataLog!$C3199=\"Log value\",DataLog!W3199,\"\")","v":""},{"$f":"IF(DataLog!$C3199=\"Log value\",DataLog!X3199,\"\")","v":""},{"$f":"IF(DataLog!$C3199=\"Log value\",DataLog!Y3199,\"\")","v":""},{"$f":"IF(DataLog!$C3199=\"Log value\",DataLog!Z3199,\"\")","v":""},{"$f":"IF(DataLog!$C3199=\"Log value\",DataLog!AA3199,\"\")","v":""},{"$f":"IF(DataLog!$C3199=\"Log value\",DataLog!AB3199,\"\")","v":""},{"$f":"IF(DataLog!$C3199=\"Log value\",DataLog!AC3199,\"\")","v":""},{"$f":"IF(DataLog!$C3199=\"Log value\",DataLog!AD3199,\"\")","v":""},{"$f":"IF(DataLog!$C3199=\"Log value\",DataLog!AE3199,\"\")","v":""},{"$f":"IF(DataLog!$C3199=\"Log value\",DataLog!AF3199,\"\")","v":""},{"$f":"IF(DataLog!$C3199=\"Log value\",DataLog!AG3199,\"\")","v":""},{"$f":"IF(DataLog!$C3199=\"Log value\",DataLog!AH3199,\"\")","v":""},{"$f":"IF(DataLog!$C3199=\"Log value\",DataLog!AI3199,\"\")","v":""},{"$f":"IF(DataLog!$C3199=\"Log value\",DataLog!AJ3199,\"\")","v":""},{"$f":"IF(DataLog!$C3199=\"Log value\",DataLog!AK3199,\"\")","v":""},{"$f":"IF(DataLog!$C3199=\"Log value\",DataLog!AL3199,\"\")","v":""},{"$f":"IF(DataLog!$C3199=\"Log value\",DataLog!AM3199,\"\")","v":""}]
[null,null,null,null,null,null,{"$f":"IF(DataLog!$C3200=\"Log value\",DataLog!D3200&\"_\"&TEXT(DataLog!B3200,\"åååå-mm-dd\"),\"\")","v":""},{"$f":"IF(DataLog!$C3200=\"Log value\",DataLog!E3200,\"\")","v":""},{"$f":"IF(DataLog!$C3200=\"Log value\",DataLog!F3200,\"\")","v":""},{"$f":"IF(DataLog!$C3200=\"Log value\",DataLog!G3200,\"\")","v":""},{"$f":"IF(DataLog!$C3200=\"Log value\",DataLog!H3200,\"\")","v":""},{"$f":"IF(DataLog!$C3200=\"Log value\",DataLog!I3200,\"\")","v":""},{"$f":"IF(DataLog!$C3200=\"Log value\",DataLog!J3200,\"\")","v":""},{"$f":"IF(DataLog!$C3200=\"Log value\",DataLog!K3200,\"\")","v":""},{"$f":"IF(DataLog!$C3200=\"Log value\",DataLog!L3200,\"\")","v":""},{"$f":"IF(DataLog!$C3200=\"Log value\",DataLog!M3200,\"\")","v":""},{"$f":"IF(DataLog!$C3200=\"Log value\",DataLog!N3200,\"\")","v":""},{"$f":"IF(DataLog!$C3200=\"Log value\",DataLog!O3200,\"\")","v":""},{"$f":"IF(DataLog!$C3200=\"Log value\",DataLog!P3200,\"\")","v":""},{"$f":"IF(DataLog!$C3200=\"Log value\",DataLog!Q3200,\"\")","v":""},{"$f":"IF(DataLog!$C3200=\"Log value\",DataLog!R3200,\"\")","v":""},{"$f":"IF(DataLog!$C3200=\"Log value\",DataLog!S3200,\"\")","v":""},{"$f":"IF(DataLog!$C3200=\"Log value\",DataLog!T3200,\"\")","v":""},{"$f":"IF(DataLog!$C3200=\"Log value\",DataLog!U3200,\"\")","v":""},{"$f":"IF(DataLog!$C3200=\"Log value\",DataLog!V3200,\"\")","v":""},{"$f":"IF(DataLog!$C3200=\"Log value\",DataLog!W3200,\"\")","v":""},{"$f":"IF(DataLog!$C3200=\"Log value\",DataLog!X3200,\"\")","v":""},{"$f":"IF(DataLog!$C3200=\"Log value\",DataLog!Y3200,\"\")","v":""},{"$f":"IF(DataLog!$C3200=\"Log value\",DataLog!Z3200,\"\")","v":""},{"$f":"IF(DataLog!$C3200=\"Log value\",DataLog!AA3200,\"\")","v":""},{"$f":"IF(DataLog!$C3200=\"Log value\",DataLog!AB3200,\"\")","v":""},{"$f":"IF(DataLog!$C3200=\"Log value\",DataLog!AC3200,\"\")","v":""},{"$f":"IF(DataLog!$C3200=\"Log value\",DataLog!AD3200,\"\")","v":""},{"$f":"IF(DataLog!$C3200=\"Log value\",DataLog!AE3200,\"\")","v":""},{"$f":"IF(DataLog!$C3200=\"Log value\",DataLog!AF3200,\"\")","v":""},{"$f":"IF(DataLog!$C3200=\"Log value\",DataLog!AG3200,\"\")","v":""},{"$f":"IF(DataLog!$C3200=\"Log value\",DataLog!AH3200,\"\")","v":""},{"$f":"IF(DataLog!$C3200=\"Log value\",DataLog!AI3200,\"\")","v":""},{"$f":"IF(DataLog!$C3200=\"Log value\",DataLog!AJ3200,\"\")","v":""},{"$f":"IF(DataLog!$C3200=\"Log value\",DataLog!AK3200,\"\")","v":""},{"$f":"IF(DataLog!$C3200=\"Log value\",DataLog!AL3200,\"\")","v":""},{"$f":"IF(DataLog!$C3200=\"Log value\",DataLog!AM3200,\"\")","v":""}]
[null,null,null,null,null,null,{"$f":"IF(DataLog!$C3202=\"Log value\",DataLog!D3202&\"_\"&TEXT(DataLog!B3202,\"åååå-mm-dd\"),\"\")","v":""},{"$f":"IF(DataLog!$C3202=\"Log value\",DataLog!E3202,\"\")","v":""},{"$f":"IF(DataLog!$C3202=\"Log value\",DataLog!F3202,\"\")","v":""},{"$f":"IF(DataLog!$C3202=\"Log value\",DataLog!G3202,\"\")","v":""},{"$f":"IF(DataLog!$C3202=\"Log value\",DataLog!H3202,\"\")","v":""},{"$f":"IF(DataLog!$C3202=\"Log value\",DataLog!I3202,\"\")","v":""},{"$f":"IF(DataLog!$C3202=\"Log value\",DataLog!J3202,\"\")","v":""},{"$f":"IF(DataLog!$C3202=\"Log value\",DataLog!K3202,\"\")","v":""},{"$f":"IF(DataLog!$C3202=\"Log value\",DataLog!L3202,\"\")","v":""},{"$f":"IF(DataLog!$C3202=\"Log value\",DataLog!M3202,\"\")","v":""},{"$f":"IF(DataLog!$C3202=\"Log value\",DataLog!N3202,\"\")","v":""},{"$f":"IF(DataLog!$C3202=\"Log value\",DataLog!O3202,\"\")","v":""},{"$f":"IF(DataLog!$C3202=\"Log value\",DataLog!P3202,\"\")","v":""},{"$f":"IF(DataLog!$C3202=\"Log value\",DataLog!Q3202,\"\")","v":""},{"$f":"IF(DataLog!$C3202=\"Log value\",DataLog!R3202,\"\")","v":""},{"$f":"IF(DataLog!$C3202=\"Log value\",DataLog!S3202,\"\")","v":""},{"$f":"IF(DataLog!$C3202=\"Log value\",DataLog!T3202,\"\")","v":""},{"$f":"IF(DataLog!$C3202=\"Log value\",DataLog!U3202,\"\")","v":""},{"$f":"IF(DataLog!$C3202=\"Log value\",DataLog!V3202,\"\")","v":""},{"$f":"IF(DataLog!$C3202=\"Log value\",DataLog!W3202,\"\")","v":""},{"$f":"IF(DataLog!$C3202=\"Log value\",DataLog!X3202,\"\")","v":""},{"$f":"IF(DataLog!$C3202=\"Log value\",DataLog!Y3202,\"\")","v":""},{"$f":"IF(DataLog!$C3202=\"Log value\",DataLog!Z3202,\"\")","v":""},{"$f":"IF(DataLog!$C3202=\"Log value\",DataLog!AA3202,\"\")","v":""},{"$f":"IF(DataLog!$C3202=\"Log value\",DataLog!AB3202,\"\")","v":""},{"$f":"IF(DataLog!$C3202=\"Log value\",DataLog!AC3202,\"\")","v":""},{"$f":"IF(DataLog!$C3202=\"Log value\",DataLog!AD3202,\"\")","v":""},{"$f":"IF(DataLog!$C3202=\"Log value\",DataLog!AE3202,\"\")","v":""},{"$f":"IF(DataLog!$C3202=\"Log value\",DataLog!AF3202,\"\")","v":""},{"$f":"IF(DataLog!$C3202=\"Log value\",DataLog!AG3202,\"\")","v":""},{"$f":"IF(DataLog!$C3202=\"Log value\",DataLog!AH3202,\"\")","v":""},{"$f":"IF(DataLog!$C3202=\"Log value\",DataLog!AI3202,\"\")","v":""},{"$f":"IF(DataLog!$C3202=\"Log value\",DataLog!AJ3202,\"\")","v":""},{"$f":"IF(DataLog!$C3202=\"Log value\",DataLog!AK3202,\"\")","v":""},{"$f":"IF(DataLog!$C3202=\"Log value\",DataLog!AL3202,\"\")","v":""},{"$f":"IF(DataLog!$C3202=\"Log value\",DataLog!AM3202,\"\")","v":""}]
[null,null,null,null,null,null,{"$f":"IF(DataLog!$C3205=\"Log value\",DataLog!D3205&\"_\"&TEXT(DataLog!B3205,\"åååå-mm-dd\"),\"\")","v":""},{"$f":"IF(DataLog!$C3205=\"Log value\",DataLog!E3205,\"\")","v":""},{"$f":"IF(DataLog!$C3205=\"Log value\",DataLog!F3205,\"\")","v":""},{"$f":"IF(DataLog!$C3205=\"Log value\",DataLog!G3205,\"\")","v":""},{"$f":"IF(DataLog!$C3205=\"Log value\",DataLog!H3205,\"\")","v":""},{"$f":"IF(DataLog!$C3205=\"Log value\",DataLog!I3205,\"\")","v":""},{"$f":"IF(DataLog!$C3205=\"Log value\",DataLog!J3205,\"\")","v":""},{"$f":"IF(DataLog!$C3205=\"Log value\",DataLog!K3205,\"\")","v":""},{"$f":"IF(DataLog!$C3205=\"Log value\",DataLog!L3205,\"\")","v":""},{"$f":"IF(DataLog!$C3205=\"Log value\",DataLog!M3205,\"\")","v":""},{"$f":"IF(DataLog!$C3205=\"Log value\",DataLog!N3205,\"\")","v":""},{"$f":"IF(DataLog!$C3205=\"Log value\",DataLog!O3205,\"\")","v":""},{"$f":"IF(DataLog!$C3205=\"Log value\",DataLog!P3205,\"\")","v":""},{"$f":"IF(DataLog!$C3205=\"Log value\",DataLog!Q3205,\"\")","v":""},{"$f":"IF(DataLog!$C3205=\"Log value\",DataLog!R3205,\"\")","v":""},{"$f":"IF(DataLog!$C3205=\"Log value\",DataLog!S3205,\"\")","v":""},{"$f":"IF(DataLog!$C3205=\"Log value\",DataLog!T3205,\"\")","v":""},{"$f":"IF(DataLog!$C3205=\"Log value\",DataLog!U3205,\"\")","v":""},{"$f":"IF(DataLog!$C3205=\"Log value\",DataLog!V3205,\"\")","v":""},{"$f":"IF(DataLog!$C3205=\"Log value\",DataLog!W3205,\"\")","v":""},{"$f":"IF(DataLog!$C3205=\"Log value\",DataLog!X3205,\"\")","v":""},{"$f":"IF(DataLog!$C3205=\"Log value\",DataLog!Y3205,\"\")","v":""},{"$f":"IF(DataLog!$C3205=\"Log value\",DataLog!Z3205,\"\")","v":""},{"$f":"IF(DataLog!$C3205=\"Log value\",DataLog!AA3205,\"\")","v":""},{"$f":"IF(DataLog!$C3205=\"Log value\",DataLog!AB3205,\"\")","v":""},{"$f":"IF(DataLog!$C3205=\"Log value\",DataLog!AC3205,\"\")","v":""},{"$f":"IF(DataLog!$C3205=\"Log value\",DataLog!AD3205,\"\")","v":""},{"$f":"IF(DataLog!$C3205=\"Log value\",DataLog!AE3205,\"\")","v":""},{"$f":"IF(DataLog!$C3205=\"Log value\",DataLog!AF3205,\"\")","v":""},{"$f":"IF(DataLog!$C3205=\"Log value\",DataLog!AG3205,\"\")","v":""},{"$f":"IF(DataLog!$C3205=\"Log value\",DataLog!AH3205,\"\")","v":""},{"$f":"IF(DataLog!$C3205=\"Log value\",DataLog!AI3205,\"\")","v":""},{"$f":"IF(DataLog!$C3205=\"Log value\",DataLog!AJ3205,\"\")","v":""},{"$f":"IF(DataLog!$C3205=\"Log value\",DataLog!AK3205,\"\")","v":""},{"$f":"IF(DataLog!$C3205=\"Log value\",DataLog!AL3205,\"\")","v":""},{"$f":"IF(DataLog!$C3205=\"Log value\",DataLog!AM3205,\"\")","v":""}]
[null,null,null,null,null,null,{"$f":"IF(DataLog!$C3208=\"Log value\",DataLog!D3208&\"_\"&TEXT(DataLog!B3208,\"åååå-mm-dd\"),\"\")","v":""},{"$f":"IF(DataLog!$C3208=\"Log value\",DataLog!E3208,\"\")","v":""},{"$f":"IF(DataLog!$C3208=\"Log value\",DataLog!F3208,\"\")","v":""},{"$f":"IF(DataLog!$C3208=\"Log value\",DataLog!G3208,\"\")","v":""},{"$f":"IF(DataLog!$C3208=\"Log value\",DataLog!H3208,\"\")","v":""},{"$f":"IF(DataLog!$C3208=\"Log value\",DataLog!I3208,\"\")","v":""},{"$f":"IF(DataLog!$C3208=\"Log value\",DataLog!J3208,\"\")","v":""},{"$f":"IF(DataLog!$C3208=\"Log value\",DataLog!K3208,\"\")","v":""},{"$f":"IF(DataLog!$C3208=\"Log value\",DataLog!L3208,\"\")","v":""},{"$f":"IF(DataLog!$C3208=\"Log value\",DataLog!M3208,\"\")","v":""},{"$f":"IF(DataLog!$C3208=\"Log value\",DataLog!N3208,\"\")","v":""},{"$f":"IF(DataLog!$C3208=\"Log value\",DataLog!O3208,\"\")","v":""},{"$f":"IF(DataLog!$C3208=\"Log value\",DataLog!P3208,\"\")","v":""},{"$f":"IF(DataLog!$C3208=\"Log value\",DataLog!Q3208,\"\")","v":""},{"$f":"IF(DataLog!$C3208=\"Log value\",DataLog!R3208,\"\")","v":""},{"$f":"IF(DataLog!$C3208=\"Log value\",DataLog!S3208,\"\")","v":""},{"$f":"IF(DataLog!$C3208=\"Log value\",DataLog!T3208,\"\")","v":""},{"$f":"IF(DataLog!$C3208=\"Log value\",DataLog!U3208,\"\")","v":""},{"$f":"IF(DataLog!$C3208=\"Log value\",DataLog!V3208,\"\")","v":""},{"$f":"IF(DataLog!$C3208=\"Log value\",DataLog!W3208,\"\")","v":""},{"$f":"IF(DataLog!$C3208=\"Log value\",DataLog!X3208,\"\")","v":""},{"$f":"IF(DataLog!$C3208=\"Log value\",DataLog!Y3208,\"\")","v":""},{"$f":"IF(DataLog!$C3208=\"Log value\",DataLog!Z3208,\"\")","v":""},{"$f":"IF(DataLog!$C3208=\"Log value\",DataLog!AA3208,\"\")","v":""},{"$f":"IF(DataLog!$C3208=\"Log value\",DataLog!AB3208,\"\")","v":""},{"$f":"IF(DataLog!$C3208=\"Log value\",DataLog!AC3208,\"\")","v":""},{"$f":"IF(DataLog!$C3208=\"Log value\",DataLog!AD3208,\"\")","v":""},{"$f":"IF(DataLog!$C3208=\"Log value\",DataLog!AE3208,\"\")","v":""},{"$f":"IF(DataLog!$C3208=\"Log value\",DataLog!AF3208,\"\")","v":""},{"$f":"IF(DataLog!$C3208=\"Log value\",DataLog!AG3208,\"\")","v":""},{"$f":"IF(DataLog!$C3208=\"Log value\",DataLog!AH3208,\"\")","v":""},{"$f":"IF(DataLog!$C3208=\"Log value\",DataLog!AI3208,\"\")","v":""},{"$f":"IF(DataLog!$C3208=\"Log value\",DataLog!AJ3208,\"\")","v":""},{"$f":"IF(DataLog!$C3208=\"Log value\",DataLog!AK3208,\"\")","v":""},{"$f":"IF(DataLog!$C3208=\"Log value\",DataLog!AL3208,\"\")","v":""},{"$f":"IF(DataLog!$C3208=\"Log value\",DataLog!AM3208,\"\")","v":""}]
[null,null,null,null,null,null,{"$f":"IF(DataLog!$C3209=\"Log value\",DataLog!D3209&\"_\"&TEXT(DataLog!B3209,\"åååå-mm-dd\"),\"\")","v":""},{"$f":"IF(DataLog!$C3209=\"Log value\",DataLog!E3209,\"\")","v":""},{"$f":"IF(DataLog!$C3209=\"Log value\",DataLog!F3209,\"\")","v":""},{"$f":"IF(DataLog!$C3209=\"Log value\",DataLog!G3209,\"\")","v":""},{"$f":"IF(DataLog!$C3209=\"Log value\",DataLog!H3209,\"\")","v":""},{"$f":"IF(DataLog!$C3209=\"Log value\",DataLog!I3209,\"\")","v":""},{"$f":"IF(DataLog!$C3209=\"Log value\",DataLog!J3209,\"\")","v":""},{"$f":"IF(DataLog!$C3209=\"Log value\",DataLog!K3209,\"\")","v":""},{"$f":"IF(DataLog!$C3209=\"Log value\",DataLog!L3209,\"\")","v":""},{"$f":"IF(DataLog!$C3209=\"Log value\",DataLog!M3209,\"\")","v":""},{"$f":"IF(DataLog!$C3209=\"Log value\",DataLog!N3209,\"\")","v":""},{"$f":"IF(DataLog!$C3209=\"Log value\",DataLog!O3209,\"\")","v":""},{"$f":"IF(DataLog!$C3209=\"Log value\",DataLog!P3209,\"\")","v":""},{"$f":"IF(DataLog!$C3209=\"Log value\",DataLog!Q3209,\"\")","v":""},{"$f":"IF(DataLog!$C3209=\"Log value\",DataLog!R3209,\"\")","v":""},{"$f":"IF(DataLog!$C3209=\"Log value\",DataLog!S3209,\"\")","v":""},{"$f":"IF(DataLog!$C3209=\"Log value\",DataLog!T3209,\"\")","v":""},{"$f":"IF(DataLog!$C3209=\"Log value\",DataLog!U3209,\"\")","v":""},{"$f":"IF(DataLog!$C3209=\"Log value\",DataLog!V3209,\"\")","v":""},{"$f":"IF(DataLog!$C3209=\"Log value\",DataLog!W3209,\"\")","v":""},{"$f":"IF(DataLog!$C3209=\"Log value\",DataLog!X3209,\"\")","v":""},{"$f":"IF(DataLog!$C3209=\"Log value\",DataLog!Y3209,\"\")","v":""},{"$f":"IF(DataLog!$C3209=\"Log value\",DataLog!Z3209,\"\")","v":""},{"$f":"IF(DataLog!$C3209=\"Log value\",DataLog!AA3209,\"\")","v":""},{"$f":"IF(DataLog!$C3209=\"Log value\",DataLog!AB3209,\"\")","v":""},{"$f":"IF(DataLog!$C3209=\"Log value\",DataLog!AC3209,\"\")","v":""},{"$f":"IF(DataLog!$C3209=\"Log value\",DataLog!AD3209,\"\")","v":""},{"$f":"IF(DataLog!$C3209=\"Log value\",DataLog!AE3209,\"\")","v":""},{"$f":"IF(DataLog!$C3209=\"Log value\",DataLog!AF3209,\"\")","v":""},{"$f":"IF(DataLog!$C3209=\"Log value\",DataLog!AG3209,\"\")","v":""},{"$f":"IF(DataLog!$C3209=\"Log value\",DataLog!AH3209,\"\")","v":""},{"$f":"IF(DataLog!$C3209=\"Log value\",DataLog!AI3209,\"\")","v":""},{"$f":"IF(DataLog!$C3209=\"Log value\",DataLog!AJ3209,\"\")","v":""},{"$f":"IF(DataLog!$C3209=\"Log value\",DataLog!AK3209,\"\")","v":""},{"$f":"IF(DataLog!$C3209=\"Log value\",DataLog!AL3209,\"\")","v":""},{"$f":"IF(DataLog!$C3209=\"Log value\",DataLog!AM3209,\"\")","v":""}]
[null,null,null,null,null,null,{"$f":"IF(DataLog!$C3212=\"Log value\",DataLog!D3212&\"_\"&TEXT(DataLog!B3212,\"åååå-mm-dd\"),\"\")","v":""},{"$f":"IF(DataLog!$C3212=\"Log value\",DataLog!E3212,\"\")","v":""},{"$f":"IF(DataLog!$C3212=\"Log value\",DataLog!F3212,\"\")","v":""},{"$f":"IF(DataLog!$C3212=\"Log value\",DataLog!G3212,\"\")","v":""},{"$f":"IF(DataLog!$C3212=\"Log value\",DataLog!H3212,\"\")","v":""},{"$f":"IF(DataLog!$C3212=\"Log value\",DataLog!I3212,\"\")","v":""},{"$f":"IF(DataLog!$C3212=\"Log value\",DataLog!J3212,\"\")","v":""},{"$f":"IF(DataLog!$C3212=\"Log value\",DataLog!K3212,\"\")","v":""},{"$f":"IF(DataLog!$C3212=\"Log value\",DataLog!L3212,\"\")","v":""},{"$f":"IF(DataLog!$C3212=\"Log value\",DataLog!M3212,\"\")","v":""},{"$f":"IF(DataLog!$C3212=\"Log value\",DataLog!N3212,\"\")","v":""},{"$f":"IF(DataLog!$C3212=\"Log value\",DataLog!O3212,\"\")","v":""},{"$f":"IF(DataLog!$C3212=\"Log value\",DataLog!P3212,\"\")","v":""},{"$f":"IF(DataLog!$C3212=\"Log value\",DataLog!Q3212,\"\")","v":""},{"$f":"IF(DataLog!$C3212=\"Log value\",DataLog!R3212,\"\")","v":""},{"$f":"IF(DataLog!$C3212=\"Log value\",DataLog!S3212,\"\")","v":""},{"$f":"IF(DataLog!$C3212=\"Log value\",DataLog!T3212,\"\")","v":""},{"$f":"IF(DataLog!$C3212=\"Log value\",DataLog!U3212,\"\")","v":""},{"$f":"IF(DataLog!$C3212=\"Log value\",DataLog!V3212,\"\")","v":""},{"$f":"IF(DataLog!$C3212=\"Log value\",DataLog!W3212,\"\")","v":""},{"$f":"IF(DataLog!$C3212=\"Log value\",DataLog!X3212,\"\")","v":""},{"$f":"IF(DataLog!$C3212=\"Log value\",DataLog!Y3212,\"\")","v":""},{"$f":"IF(DataLog!$C3212=\"Log value\",DataLog!Z3212,\"\")","v":""},{"$f":"IF(DataLog!$C3212=\"Log value\",DataLog!AA3212,\"\")","v":""},{"$f":"IF(DataLog!$C3212=\"Log value\",DataLog!AB3212,\"\")","v":""},{"$f":"IF(DataLog!$C3212=\"Log value\",DataLog!AC3212,\"\")","v":""},{"$f":"IF(DataLog!$C3212=\"Log value\",DataLog!AD3212,\"\")","v":""},{"$f":"IF(DataLog!$C3212=\"Log value\",DataLog!AE3212,\"\")","v":""},{"$f":"IF(DataLog!$C3212=\"Log value\",DataLog!AF3212,\"\")","v":""},{"$f":"IF(DataLog!$C3212=\"Log value\",DataLog!AG3212,\"\")","v":""},{"$f":"IF(DataLog!$C3212=\"Log value\",DataLog!AH3212,\"\")","v":""},{"$f":"IF(DataLog!$C3212=\"Log value\",DataLog!AI3212,\"\")","v":""},{"$f":"IF(DataLog!$C3212=\"Log value\",DataLog!AJ3212,\"\")","v":""},{"$f":"IF(DataLog!$C3212=\"Log value\",DataLog!AK3212,\"\")","v":""},{"$f":"IF(DataLog!$C3212=\"Log value\",DataLog!AL3212,\"\")","v":""},{"$f":"IF(DataLog!$C3212=\"Log value\",DataLog!AM3212,\"\")","v":""}]
[null,null,null,null,null,null,{"$f":"IF(DataLog!$C3214=\"Log value\",DataLog!D3214&\"_\"&TEXT(DataLog!B3214,\"åååå-mm-dd\"),\"\")","v":""},{"$f":"IF(DataLog!$C3214=\"Log value\",DataLog!E3214,\"\")","v":""},{"$f":"IF(DataLog!$C3214=\"Log value\",DataLog!F3214,\"\")","v":""},{"$f":"IF(DataLog!$C3214=\"Log value\",DataLog!G3214,\"\")","v":""},{"$f":"IF(DataLog!$C3214=\"Log value\",DataLog!H3214,\"\")","v":""},{"$f":"IF(DataLog!$C3214=\"Log value\",DataLog!I3214,\"\")","v":""},{"$f":"IF(DataLog!$C3214=\"Log value\",DataLog!J3214,\"\")","v":""},{"$f":"IF(DataLog!$C3214=\"Log value\",DataLog!K3214,\"\")","v":""},{"$f":"IF(DataLog!$C3214=\"Log value\",DataLog!L3214,\"\")","v":""},{"$f":"IF(DataLog!$C3214=\"Log value\",DataLog!M3214,\"\")","v":""},{"$f":"IF(DataLog!$C3214=\"Log value\",DataLog!N3214,\"\")","v":""},{"$f":"IF(DataLog!$C3214=\"Log value\",DataLog!O3214,\"\")","v":""},{"$f":"IF(DataLog!$C3214=\"Log value\",DataLog!P3214,\"\")","v":""},{"$f":"IF(DataLog!$C3214=\"Log value\",DataLog!Q3214,\"\")","v":""},{"$f":"IF(DataLog!$C3214=\"Log value\",DataLog!R3214,\"\")","v":""},{"$f":"IF(DataLog!$C3214=\"Log value\",DataLog!S3214,\"\")","v":""},{"$f":"IF(DataLog!$C3214=\"Log value\",DataLog!T3214,\"\")","v":""},{"$f":"IF(DataLog!$C3214=\"Log value\",DataLog!U3214,\"\")","v":""},{"$f":"IF(DataLog!$C3214=\"Log value\",DataLog!V3214,\"\")","v":""},{"$f":"IF(DataLog!$C3214=\"Log value\",DataLog!W3214,\"\")","v":""},{"$f":"IF(DataLog!$C3214=\"Log value\",DataLog!X3214,\"\")","v":""},{"$f":"IF(DataLog!$C3214=\"Log value\",DataLog!Y3214,\"\")","v":""},{"$f":"IF(DataLog!$C3214=\"Log value\",DataLog!Z3214,\"\")","v":""},{"$f":"IF(DataLog!$C3214=\"Log value\",DataLog!AA3214,\"\")","v":""},{"$f":"IF(DataLog!$C3214=\"Log value\",DataLog!AB3214,\"\")","v":""},{"$f":"IF(DataLog!$C3214=\"Log value\",DataLog!AC3214,\"\")","v":""},{"$f":"IF(DataLog!$C3214=\"Log value\",DataLog!AD3214,\"\")","v":""},{"$f":"IF(DataLog!$C3214=\"Log value\",DataLog!AE3214,\"\")","v":""},{"$f":"IF(DataLog!$C3214=\"Log value\",DataLog!AF3214,\"\")","v":""},{"$f":"IF(DataLog!$C3214=\"Log value\",DataLog!AG3214,\"\")","v":""},{"$f":"IF(DataLog!$C3214=\"Log value\",DataLog!AH3214,\"\")","v":""},{"$f":"IF(DataLog!$C3214=\"Log value\",DataLog!AI3214,\"\")","v":""},{"$f":"IF(DataLog!$C3214=\"Log value\",DataLog!AJ3214,\"\")","v":""},{"$f":"IF(DataLog!$C3214=\"Log value\",DataLog!AK3214,\"\")","v":""},{"$f":"IF(DataLog!$C3214=\"Log value\",DataLog!AL3214,\"\")","v":""},{"$f":"IF(DataLog!$C3214=\"Log value\",DataLog!AM3214,\"\")","v":""}]
[null,null,null,null,null,null,{"$f":"IF(DataLog!$C3217=\"Log value\",DataLog!D3217&\"_\"&TEXT(DataLog!B3217,\"åååå-mm-dd\"),\"\")","v":""},{"$f":"IF(DataLog!$C3217=\"Log value\",DataLog!E3217,\"\")","v":""},{"$f":"IF(DataLog!$C3217=\"Log value\",DataLog!F3217,\"\")","v":""},{"$f":"IF(DataLog!$C3217=\"Log value\",DataLog!G3217,\"\")","v":""},{"$f":"IF(DataLog!$C3217=\"Log value\",DataLog!H3217,\"\")","v":""},{"$f":"IF(DataLog!$C3217=\"Log value\",DataLog!I3217,\"\")","v":""},{"$f":"IF(DataLog!$C3217=\"Log value\",DataLog!J3217,\"\")","v":""},{"$f":"IF(DataLog!$C3217=\"Log value\",DataLog!K3217,\"\")","v":""},{"$f":"IF(DataLog!$C3217=\"Log value\",DataLog!L3217,\"\")","v":""},{"$f":"IF(DataLog!$C3217=\"Log value\",DataLog!M3217,\"\")","v":""},{"$f":"IF(DataLog!$C3217=\"Log value\",DataLog!N3217,\"\")","v":""},{"$f":"IF(DataLog!$C3217=\"Log value\",DataLog!O3217,\"\")","v":""},{"$f":"IF(DataLog!$C3217=\"Log value\",DataLog!P3217,\"\")","v":""},{"$f":"IF(DataLog!$C3217=\"Log value\",DataLog!Q3217,\"\")","v":""},{"$f":"IF(DataLog!$C3217=\"Log value\",DataLog!R3217,\"\")","v":""},{"$f":"IF(DataLog!$C3217=\"Log value\",DataLog!S3217,\"\")","v":""},{"$f":"IF(DataLog!$C3217=\"Log value\",DataLog!T3217,\"\")","v":""},{"$f":"IF(DataLog!$C3217=\"Log value\",DataLog!U3217,\"\")","v":""},{"$f":"IF(DataLog!$C3217=\"Log value\",DataLog!V3217,\"\")","v":""},{"$f":"IF(DataLog!$C3217=\"Log value\",DataLog!W3217,\"\")","v":""},{"$f":"IF(DataLog!$C3217=\"Log value\",DataLog!X3217,\"\")","v":""},{"$f":"IF(DataLog!$C3217=\"Log value\",DataLog!Y3217,\"\")","v":""},{"$f":"IF(DataLog!$C3217=\"Log value\",DataLog!Z3217,\"\")","v":""},{"$f":"IF(DataLog!$C3217=\"Log value\",DataLog!AA3217,\"\")","v":""},{"$f":"IF(DataLog!$C3217=\"Log value\",DataLog!AB3217,\"\")","v":""},{"$f":"IF(DataLog!$C3217=\"Log value\",DataLog!AC3217,\"\")","v":""},{"$f":"IF(DataLog!$C3217=\"Log value\",DataLog!AD3217,\"\")","v":""},{"$f":"IF(DataLog!$C3217=\"Log value\",DataLog!AE3217,\"\")","v":""},{"$f":"IF(DataLog!$C3217=\"Log value\",DataLog!AF3217,\"\")","v":""},{"$f":"IF(DataLog!$C3217=\"Log value\",DataLog!AG3217,\"\")","v":""},{"$f":"IF(DataLog!$C3217=\"Log value\",DataLog!AH3217,\"\")","v":""},{"$f":"IF(DataLog!$C3217=\"Log value\",DataLog!AI3217,\"\")","v":""},{"$f":"IF(DataLog!$C3217=\"Log value\",DataLog!AJ3217,\"\")","v":""},{"$f":"IF(DataLog!$C3217=\"Log value\",DataLog!AK3217,\"\")","v":""},{"$f":"IF(DataLog!$C3217=\"Log value\",DataLog!AL3217,\"\")","v":""},{"$f":"IF(DataLog!$C3217=\"Log value\",DataLog!AM3217,\"\")","v":""}]
[null,null,null,null,null,null,{"$f":"IF(DataLog!$C3218=\"Log value\",DataLog!D3218&\"_\"&TEXT(DataLog!B3218,\"åååå-mm-dd\"),\"\")","v":""},{"$f":"IF(DataLog!$C3218=\"Log value\",DataLog!E3218,\"\")","v":""},{"$f":"IF(DataLog!$C3218=\"Log value\",DataLog!F3218,\"\")","v":""},{"$f":"IF(DataLog!$C3218=\"Log value\",DataLog!G3218,\"\")","v":""},{"$f":"IF(DataLog!$C3218=\"Log value\",DataLog!H3218,\"\")","v":""},{"$f":"IF(DataLog!$C3218=\"Log value\",DataLog!I3218,\"\")","v":""},{"$f":"IF(DataLog!$C3218=\"Log value\",DataLog!J3218,\"\")","v":""},{"$f":"IF(DataLog!$C3218=\"Log value\",DataLog!K3218,\"\")","v":""},{"$f":"IF(DataLog!$C3218=\"Log value\",DataLog!L3218,\"\")","v":""},{"$f":"IF(DataLog!$C3218=\"Log value\",DataLog!M3218,\"\")","v":""},{"$f":"IF(DataLog!$C3218=\"Log value\",DataLog!N3218,\"\")","v":""},{"$f":"IF(DataLog!$C3218=\"Log value\",DataLog!O3218,\"\")","v":""},{"$f":"IF(DataLog!$C3218=\"Log value\",DataLog!P3218,\"\")","v":""},{"$f":"IF(DataLog!$C3218=\"Log value\",DataLog!Q3218,\"\")","v":""},{"$f":"IF(DataLog!$C3218=\"Log value\",DataLog!R3218,\"\")","v":""},{"$f":"IF(DataLog!$C3218=\"Log value\",DataLog!S3218,\"\")","v":""},{"$f":"IF(DataLog!$C3218=\"Log value\",DataLog!T3218,\"\")","v":""},{"$f":"IF(DataLog!$C3218=\"Log value\",DataLog!U3218,\"\")","v":""},{"$f":"IF(DataLog!$C3218=\"Log value\",DataLog!V3218,\"\")","v":""},{"$f":"IF(DataLog!$C3218=\"Log value\",DataLog!W3218,\"\")","v":""},{"$f":"IF(DataLog!$C3218=\"Log value\",DataLog!X3218,\"\")","v":""},{"$f":"IF(DataLog!$C3218=\"Log value\",DataLog!Y3218,\"\")","v":""},{"$f":"IF(DataLog!$C3218=\"Log value\",DataLog!Z3218,\"\")","v":""},{"$f":"IF(DataLog!$C3218=\"Log value\",DataLog!AA3218,\"\")","v":""},{"$f":"IF(DataLog!$C3218=\"Log value\",DataLog!AB3218,\"\")","v":""},{"$f":"IF(DataLog!$C3218=\"Log value\",DataLog!AC3218,\"\")","v":""},{"$f":"IF(DataLog!$C3218=\"Log value\",DataLog!AD3218,\"\")","v":""},{"$f":"IF(DataLog!$C3218=\"Log value\",DataLog!AE3218,\"\")","v":""},{"$f":"IF(DataLog!$C3218=\"Log value\",DataLog!AF3218,\"\")","v":""},{"$f":"IF(DataLog!$C3218=\"Log value\",DataLog!AG3218,\"\")","v":""},{"$f":"IF(DataLog!$C3218=\"Log value\",DataLog!AH3218,\"\")","v":""},{"$f":"IF(DataLog!$C3218=\"Log value\",DataLog!AI3218,\"\")","v":""},{"$f":"IF(DataLog!$C3218=\"Log value\",DataLog!AJ3218,\"\")","v":""},{"$f":"IF(DataLog!$C3218=\"Log value\",DataLog!AK3218,\"\")","v":""},{"$f":"IF(DataLog!$C3218=\"Log value\",DataLog!AL3218,\"\")","v":""},{"$f":"IF(DataLog!$C3218=\"Log value\",DataLog!AM3218,\"\")","v":""}]
[null,null,null,null,null,null,{"$f":"IF(DataLog!$C3220=\"Log value\",DataLog!D3220&\"_\"&TEXT(DataLog!B3220,\"åååå-mm-dd\"),\"\")","v":""},{"$f":"IF(DataLog!$C3220=\"Log value\",DataLog!E3220,\"\")","v":""},{"$f":"IF(DataLog!$C3220=\"Log value\",DataLog!F3220,\"\")","v":""},{"$f":"IF(DataLog!$C3220=\"Log value\",DataLog!G3220,\"\")","v":""},{"$f":"IF(DataLog!$C3220=\"Log value\",DataLog!H3220,\"\")","v":""},{"$f":"IF(DataLog!$C3220=\"Log value\",DataLog!I3220,\"\")","v":""},{"$f":"IF(DataLog!$C3220=\"Log value\",DataLog!J3220,\"\")","v":""},{"$f":"IF(DataLog!$C3220=\"Log value\",DataLog!K3220,\"\")","v":""},{"$f":"IF(DataLog!$C3220=\"Log value\",DataLog!L3220,\"\")","v":""},{"$f":"IF(DataLog!$C3220=\"Log value\",DataLog!M3220,\"\")","v":""},{"$f":"IF(DataLog!$C3220=\"Log value\",DataLog!N3220,\"\")","v":""},{"$f":"IF(DataLog!$C3220=\"Log value\",DataLog!O3220,\"\")","v":""},{"$f":"IF(DataLog!$C3220=\"Log value\",DataLog!P3220,\"\")","v":""},{"$f":"IF(DataLog!$C3220=\"Log value\",DataLog!Q3220,\"\")","v":""},{"$f":"IF(DataLog!$C3220=\"Log value\",DataLog!R3220,\"\")","v":""},{"$f":"IF(DataLog!$C3220=\"Log value\",DataLog!S3220,\"\")","v":""},{"$f":"IF(DataLog!$C3220=\"Log value\",DataLog!T3220,\"\")","v":""},{"$f":"IF(DataLog!$C3220=\"Log value\",DataLog!U3220,\"\")","v":""},{"$f":"IF(DataLog!$C3220=\"Log value\",DataLog!V3220,\"\")","v":""},{"$f":"IF(DataLog!$C3220=\"Log value\",DataLog!W3220,\"\")","v":""},{"$f":"IF(DataLog!$C3220=\"Log value\",DataLog!X3220,\"\")","v":""},{"$f":"IF(DataLog!$C3220=\"Log value\",DataLog!Y3220,\"\")","v":""},{"$f":"IF(DataLog!$C3220=\"Log value\",DataLog!Z3220,\"\")","v":""},{"$f":"IF(DataLog!$C3220=\"Log value\",DataLog!AA3220,\"\")","v":""},{"$f":"IF(DataLog!$C3220=\"Log value\",DataLog!AB3220,\"\")","v":""},{"$f":"IF(DataLog!$C3220=\"Log value\",DataLog!AC3220,\"\")","v":""},{"$f":"IF(DataLog!$C3220=\"Log value\",DataLog!AD3220,\"\")","v":""},{"$f":"IF(DataLog!$C3220=\"Log value\",DataLog!AE3220,\"\")","v":""},{"$f":"IF(DataLog!$C3220=\"Log value\",DataLog!AF3220,\"\")","v":""},{"$f":"IF(DataLog!$C3220=\"Log value\",DataLog!AG3220,\"\")","v":""},{"$f":"IF(DataLog!$C3220=\"Log value\",DataLog!AH3220,\"\")","v":""},{"$f":"IF(DataLog!$C3220=\"Log value\",DataLog!AI3220,\"\")","v":""},{"$f":"IF(DataLog!$C3220=\"Log value\",DataLog!AJ3220,\"\")","v":""},{"$f":"IF(DataLog!$C3220=\"Log value\",DataLog!AK3220,\"\")","v":""},{"$f":"IF(DataLog!$C3220=\"Log value\",DataLog!AL3220,\"\")","v":""},{"$f":"IF(DataLog!$C3220=\"Log value\",DataLog!AM3220,\"\")","v":""}]
[null,null,null,null,null,null,{"$f":"IF(DataLog!$C3223=\"Log value\",DataLog!D3223&\"_\"&TEXT(DataLog!B3223,\"åååå-mm-dd\"),\"\")","v":""},{"$f":"IF(DataLog!$C3223=\"Log value\",DataLog!E3223,\"\")","v":""},{"$f":"IF(DataLog!$C3223=\"Log value\",DataLog!F3223,\"\")","v":""},{"$f":"IF(DataLog!$C3223=\"Log value\",DataLog!G3223,\"\")","v":""},{"$f":"IF(DataLog!$C3223=\"Log value\",DataLog!H3223,\"\")","v":""},{"$f":"IF(DataLog!$C3223=\"Log value\",DataLog!I3223,\"\")","v":""},{"$f":"IF(DataLog!$C3223=\"Log value\",DataLog!J3223,\"\")","v":""},{"$f":"IF(DataLog!$C3223=\"Log value\",DataLog!K3223,\"\")","v":""},{"$f":"IF(DataLog!$C3223=\"Log value\",DataLog!L3223,\"\")","v":""},{"$f":"IF(DataLog!$C3223=\"Log value\",DataLog!M3223,\"\")","v":""},{"$f":"IF(DataLog!$C3223=\"Log value\",DataLog!N3223,\"\")","v":""},{"$f":"IF(DataLog!$C3223=\"Log value\",DataLog!O3223,\"\")","v":""},{"$f":"IF(DataLog!$C3223=\"Log value\",DataLog!P3223,\"\")","v":""},{"$f":"IF(DataLog!$C3223=\"Log value\",DataLog!Q3223,\"\")","v":""},{"$f":"IF(DataLog!$C3223=\"Log value\",DataLog!R3223,\"\")","v":""},{"$f":"IF(DataLog!$C3223=\"Log value\",DataLog!S3223,\"\")","v":""},{"$f":"IF(DataLog!$C3223=\"Log value\",DataLog!T3223,\"\")","v":""},{"$f":"IF(DataLog!$C3223=\"Log value\",DataLog!U3223,\"\")","v":""},{"$f":"IF(DataLog!$C3223=\"Log value\",DataLog!V3223,\"\")","v":""},{"$f":"IF(DataLog!$C3223=\"Log value\",DataLog!W3223,\"\")","v":""},{"$f":"IF(DataLog!$C3223=\"Log value\",DataLog!X3223,\"\")","v":""},{"$f":"IF(DataLog!$C3223=\"Log value\",DataLog!Y3223,\"\")","v":""},{"$f":"IF(DataLog!$C3223=\"Log value\",DataLog!Z3223,\"\")","v":""},{"$f":"IF(DataLog!$C3223=\"Log value\",DataLog!AA3223,\"\")","v":""},{"$f":"IF(DataLog!$C3223=\"Log value\",DataLog!AB3223,\"\")","v":""},{"$f":"IF(DataLog!$C3223=\"Log value\",DataLog!AC3223,\"\")","v":""},{"$f":"IF(DataLog!$C3223=\"Log value\",DataLog!AD3223,\"\")","v":""},{"$f":"IF(DataLog!$C3223=\"Log value\",DataLog!AE3223,\"\")","v":""},{"$f":"IF(DataLog!$C3223=\"Log value\",DataLog!AF3223,\"\")","v":""},{"$f":"IF(DataLog!$C3223=\"Log value\",DataLog!AG3223,\"\")","v":""},{"$f":"IF(DataLog!$C3223=\"Log value\",DataLog!AH3223,\"\")","v":""},{"$f":"IF(DataLog!$C3223=\"Log value\",DataLog!AI3223,\"\")","v":""},{"$f":"IF(DataLog!$C3223=\"Log value\",DataLog!AJ3223,\"\")","v":""},{"$f":"IF(DataLog!$C3223=\"Log value\",DataLog!AK3223,\"\")","v":""},{"$f":"IF(DataLog!$C3223=\"Log value\",DataLog!AL3223,\"\")","v":""},{"$f":"IF(DataLog!$C3223=\"Log value\",DataLog!AM3223,\"\")","v":""}]
[null,null,null,null,null,null,{"$f":"IF(DataLog!$C3226=\"Log value\",DataLog!D3226&\"_\"&TEXT(DataLog!B3226,\"åååå-mm-dd\"),\"\")","v":""},{"$f":"IF(DataLog!$C3226=\"Log value\",DataLog!E3226,\"\")","v":""},{"$f":"IF(DataLog!$C3226=\"Log value\",DataLog!F3226,\"\")","v":""},{"$f":"IF(DataLog!$C3226=\"Log value\",DataLog!G3226,\"\")","v":""},{"$f":"IF(DataLog!$C3226=\"Log value\",DataLog!H3226,\"\")","v":""},{"$f":"IF(DataLog!$C3226=\"Log value\",DataLog!I3226,\"\")","v":""},{"$f":"IF(DataLog!$C3226=\"Log value\",DataLog!J3226,\"\")","v":""},{"$f":"IF(DataLog!$C3226=\"Log value\",DataLog!K3226,\"\")","v":""},{"$f":"IF(DataLog!$C3226=\"Log value\",DataLog!L3226,\"\")","v":""},{"$f":"IF(DataLog!$C3226=\"Log value\",DataLog!M3226,\"\")","v":""},{"$f":"IF(DataLog!$C3226=\"Log value\",DataLog!N3226,\"\")","v":""},{"$f":"IF(DataLog!$C3226=\"Log value\",DataLog!O3226,\"\")","v":""},{"$f":"IF(DataLog!$C3226=\"Log value\",DataLog!P3226,\"\")","v":""},{"$f":"IF(DataLog!$C3226=\"Log value\",DataLog!Q3226,\"\")","v":""},{"$f":"IF(DataLog!$C3226=\"Log value\",DataLog!R3226,\"\")","v":""},{"$f":"IF(DataLog!$C3226=\"Log value\",DataLog!S3226,\"\")","v":""},{"$f":"IF(DataLog!$C3226=\"Log value\",DataLog!T3226,\"\")","v":""},{"$f":"IF(DataLog!$C3226=\"Log value\",DataLog!U3226,\"\")","v":""},{"$f":"IF(DataLog!$C3226=\"Log value\",DataLog!V3226,\"\")","v":""},{"$f":"IF(DataLog!$C3226=\"Log value\",DataLog!W3226,\"\")","v":""},{"$f":"IF(DataLog!$C3226=\"Log value\",DataLog!X3226,\"\")","v":""},{"$f":"IF(DataLog!$C3226=\"Log value\",DataLog!Y3226,\"\")","v":""},{"$f":"IF(DataLog!$C3226=\"Log value\",DataLog!Z3226,\"\")","v":""},{"$f":"IF(DataLog!$C3226=\"Log value\",DataLog!AA3226,\"\")","v":""},{"$f":"IF(DataLog!$C3226=\"Log value\",DataLog!AB3226,\"\")","v":""},{"$f":"IF(DataLog!$C3226=\"Log value\",DataLog!AC3226,\"\")","v":""},{"$f":"IF(DataLog!$C3226=\"Log value\",DataLog!AD3226,\"\")","v":""},{"$f":"IF(DataLog!$C3226=\"Log value\",DataLog!AE3226,\"\")","v":""},{"$f":"IF(DataLog!$C3226=\"Log value\",DataLog!AF3226,\"\")","v":""},{"$f":"IF(DataLog!$C3226=\"Log value\",DataLog!AG3226,\"\")","v":""},{"$f":"IF(DataLog!$C3226=\"Log value\",DataLog!AH3226,\"\")","v":""},{"$f":"IF(DataLog!$C3226=\"Log value\",DataLog!AI3226,\"\")","v":""},{"$f":"IF(DataLog!$C3226=\"Log value\",DataLog!AJ3226,\"\")","v":""},{"$f":"IF(DataLog!$C3226=\"Log value\",DataLog!AK3226,\"\")","v":""},{"$f":"IF(DataLog!$C3226=\"Log value\",DataLog!AL3226,\"\")","v":""},{"$f":"IF(DataLog!$C3226=\"Log value\",DataLog!AM3226,\"\")","v":""}]
[null,null,null,null,null,null,{"$f":"IF(DataLog!$C3228=\"Log value\",DataLog!D3228&\"_\"&TEXT(DataLog!B3228,\"åååå-mm-dd\"),\"\")","v":""},{"$f":"IF(DataLog!$C3228=\"Log value\",DataLog!E3228,\"\")","v":""},{"$f":"IF(DataLog!$C3228=\"Log value\",DataLog!F3228,\"\")","v":""},{"$f":"IF(DataLog!$C3228=\"Log value\",DataLog!G3228,\"\")","v":""},{"$f":"IF(DataLog!$C3228=\"Log value\",DataLog!H3228,\"\")","v":""},{"$f":"IF(DataLog!$C3228=\"Log value\",DataLog!I3228,\"\")","v":""},{"$f":"IF(DataLog!$C3228=\"Log value\",DataLog!J3228,\"\")","v":""},{"$f":"IF(DataLog!$C3228=\"Log value\",DataLog!K3228,\"\")","v":""},{"$f":"IF(DataLog!$C3228=\"Log value\",DataLog!L3228,\"\")","v":""},{"$f":"IF(DataLog!$C3228=\"Log value\",DataLog!M3228,\"\")","v":""},{"$f":"IF(DataLog!$C3228=\"Log value\",DataLog!N3228,\"\")","v":""},{"$f":"IF(DataLog!$C3228=\"Log value\",DataLog!O3228,\"\")","v":""},{"$f":"IF(DataLog!$C3228=\"Log value\",DataLog!P3228,\"\")","v":""},{"$f":"IF(DataLog!$C3228=\"Log value\",DataLog!Q3228,\"\")","v":""},{"$f":"IF(DataLog!$C3228=\"Log value\",DataLog!R3228,\"\")","v":""},{"$f":"IF(DataLog!$C3228=\"Log value\",DataLog!S3228,\"\")","v":""},{"$f":"IF(DataLog!$C3228=\"Log value\",DataLog!T3228,\"\")","v":""},{"$f":"IF(DataLog!$C3228=\"Log value\",DataLog!U3228,\"\")","v":""},{"$f":"IF(DataLog!$C3228=\"Log value\",DataLog!V3228,\"\")","v":""},{"$f":"IF(DataLog!$C3228=\"Log value\",DataLog!W3228,\"\")","v":""},{"$f":"IF(DataLog!$C3228=\"Log value\",DataLog!X3228,\"\")","v":""},{"$f":"IF(DataLog!$C3228=\"Log value\",DataLog!Y3228,\"\")","v":""},{"$f":"IF(DataLog!$C3228=\"Log value\",DataLog!Z3228,\"\")","v":""},{"$f":"IF(DataLog!$C3228=\"Log value\",DataLog!AA3228,\"\")","v":""},{"$f":"IF(DataLog!$C3228=\"Log value\",DataLog!AB3228,\"\")","v":""},{"$f":"IF(DataLog!$C3228=\"Log value\",DataLog!AC3228,\"\")","v":""},{"$f":"IF(DataLog!$C3228=\"Log value\",DataLog!AD3228,\"\")","v":""},{"$f":"IF(DataLog!$C3228=\"Log value\",DataLog!AE3228,\"\")","v":""},{"$f":"IF(DataLog!$C3228=\"Log value\",DataLog!AF3228,\"\")","v":""},{"$f":"IF(DataLog!$C3228=\"Log value\",DataLog!AG3228,\"\")","v":""},{"$f":"IF(DataLog!$C3228=\"Log value\",DataLog!AH3228,\"\")","v":""},{"$f":"IF(DataLog!$C3228=\"Log value\",DataLog!AI3228,\"\")","v":""},{"$f":"IF(DataLog!$C3228=\"Log value\",DataLog!AJ3228,\"\")","v":""},{"$f":"IF(DataLog!$C3228=\"Log value\",DataLog!AK3228,\"\")","v":""},{"$f":"IF(DataLog!$C3228=\"Log value\",DataLog!AL3228,\"\")","v":""},{"$f":"IF(DataLog!$C3228=\"Log value\",DataLog!AM3228,\"\")","v":""}]
[null,null,null,null,null,null,{"$f":"IF(DataLog!$C3230=\"Log value\",DataLog!D3230&\"_\"&TEXT(DataLog!B3230,\"åååå-mm-dd\"),\"\")","v":""},{"$f":"IF(DataLog!$C3230=\"Log value\",DataLog!E3230,\"\")","v":""},{"$f":"IF(DataLog!$C3230=\"Log value\",DataLog!F3230,\"\")","v":""},{"$f":"IF(DataLog!$C3230=\"Log value\",DataLog!G3230,\"\")","v":""},{"$f":"IF(DataLog!$C3230=\"Log value\",DataLog!H3230,\"\")","v":""},{"$f":"IF(DataLog!$C3230=\"Log value\",DataLog!I3230,\"\")","v":""},{"$f":"IF(DataLog!$C3230=\"Log value\",DataLog!J3230,\"\")","v":""},{"$f":"IF(DataLog!$C3230=\"Log value\",DataLog!K3230,\"\")","v":""},{"$f":"IF(DataLog!$C3230=\"Log value\",DataLog!L3230,\"\")","v":""},{"$f":"IF(DataLog!$C3230=\"Log value\",DataLog!M3230,\"\")","v":""},{"$f":"IF(DataLog!$C3230=\"Log value\",DataLog!N3230,\"\")","v":""},{"$f":"IF(DataLog!$C3230=\"Log value\",DataLog!O3230,\"\")","v":""},{"$f":"IF(DataLog!$C3230=\"Log value\",DataLog!P3230,\"\")","v":""},{"$f":"IF(DataLog!$C3230=\"Log value\",DataLog!Q3230,\"\")","v":""},{"$f":"IF(DataLog!$C3230=\"Log value\",DataLog!R3230,\"\")","v":""},{"$f":"IF(DataLog!$C3230=\"Log value\",DataLog!S3230,\"\")","v":""},{"$f":"IF(DataLog!$C3230=\"Log value\",DataLog!T3230,\"\")","v":""},{"$f":"IF(DataLog!$C3230=\"Log value\",DataLog!U3230,\"\")","v":""},{"$f":"IF(DataLog!$C3230=\"Log value\",DataLog!V3230,\"\")","v":""},{"$f":"IF(DataLog!$C3230=\"Log value\",DataLog!W3230,\"\")","v":""},{"$f":"IF(DataLog!$C3230=\"Log value\",DataLog!X3230,\"\")","v":""},{"$f":"IF(DataLog!$C3230=\"Log value\",DataLog!Y3230,\"\")","v":""},{"$f":"IF(DataLog!$C3230=\"Log value\",DataLog!Z3230,\"\")","v":""},{"$f":"IF(DataLog!$C3230=\"Log value\",DataLog!AA3230,\"\")","v":""},{"$f":"IF(DataLog!$C3230=\"Log value\",DataLog!AB3230,\"\")","v":""},{"$f":"IF(DataLog!$C3230=\"Log value\",DataLog!AC3230,\"\")","v":""},{"$f":"IF(DataLog!$C3230=\"Log value\",DataLog!AD3230,\"\")","v":""},{"$f":"IF(DataLog!$C3230=\"Log value\",DataLog!AE3230,\"\")","v":""},{"$f":"IF(DataLog!$C3230=\"Log value\",DataLog!AF3230,\"\")","v":""},{"$f":"IF(DataLog!$C3230=\"Log value\",DataLog!AG3230,\"\")","v":""},{"$f":"IF(DataLog!$C3230=\"Log value\",DataLog!AH3230,\"\")","v":""},{"$f":"IF(DataLog!$C3230=\"Log value\",DataLog!AI3230,\"\")","v":""},{"$f":"IF(DataLog!$C3230=\"Log value\",DataLog!AJ3230,\"\")","v":""},{"$f":"IF(DataLog!$C3230=\"Log value\",DataLog!AK3230,\"\")","v":""},{"$f":"IF(DataLog!$C3230=\"Log value\",DataLog!AL3230,\"\")","v":""},{"$f":"IF(DataLog!$C3230=\"Log value\",DataLog!AM3230,\"\")","v":""}]
[null,null,null,null,null,null,{"$f":"IF(DataLog!$C3231=\"Log value\",DataLog!D3231&\"_\"&TEXT(DataLog!B3231,\"åååå-mm-dd\"),\"\")","v":""},{"$f":"IF(DataLog!$C3231=\"Log value\",DataLog!E3231,\"\")","v":""},{"$f":"IF(DataLog!$C3231=\"Log value\",DataLog!F3231,\"\")","v":""},{"$f":"IF(DataLog!$C3231=\"Log value\",DataLog!G3231,\"\")","v":""},{"$f":"IF(DataLog!$C3231=\"Log value\",DataLog!H3231,\"\")","v":""},{"$f":"IF(DataLog!$C3231=\"Log value\",DataLog!I3231,\"\")","v":""},{"$f":"IF(DataLog!$C3231=\"Log value\",DataLog!J3231,\"\")","v":""},{"$f":"IF(DataLog!$C3231=\"Log value\",DataLog!K3231,\"\")","v":""},{"$f":"IF(DataLog!$C3231=\"Log value\",DataLog!L3231,\"\")","v":""},{"$f":"IF(DataLog!$C3231=\"Log value\",DataLog!M3231,\"\")","v":""},{"$f":"IF(DataLog!$C3231=\"Log value\",DataLog!N3231,\"\")","v":""},{"$f":"IF(DataLog!$C3231=\"Log value\",DataLog!O3231,\"\")","v":""},{"$f":"IF(DataLog!$C3231=\"Log value\",DataLog!P3231,\"\")","v":""},{"$f":"IF(DataLog!$C3231=\"Log value\",DataLog!Q3231,\"\")","v":""},{"$f":"IF(DataLog!$C3231=\"Log value\",DataLog!R3231,\"\")","v":""},{"$f":"IF(DataLog!$C3231=\"Log value\",DataLog!S3231,\"\")","v":""},{"$f":"IF(DataLog!$C3231=\"Log value\",DataLog!T3231,\"\")","v":""},{"$f":"IF(DataLog!$C3231=\"Log value\",DataLog!U3231,\"\")","v":""},{"$f":"IF(DataLog!$C3231=\"Log value\",DataLog!V3231,\"\")","v":""},{"$f":"IF(DataLog!$C3231=\"Log value\",DataLog!W3231,\"\")","v":""},{"$f":"IF(DataLog!$C3231=\"Log value\",DataLog!X3231,\"\")","v":""},{"$f":"IF(DataLog!$C3231=\"Log value\",DataLog!Y3231,\"\")","v":""},{"$f":"IF(DataLog!$C3231=\"Log value\",DataLog!Z3231,\"\")","v":""},{"$f":"IF(DataLog!$C3231=\"Log value\",DataLog!AA3231,\"\")","v":""},{"$f":"IF(DataLog!$C3231=\"Log value\",DataLog!AB3231,\"\")","v":""},{"$f":"IF(DataLog!$C3231=\"Log value\",DataLog!AC3231,\"\")","v":""},{"$f":"IF(DataLog!$C3231=\"Log value\",DataLog!AD3231,\"\")","v":""},{"$f":"IF(DataLog!$C3231=\"Log value\",DataLog!AE3231,\"\")","v":""},{"$f":"IF(DataLog!$C3231=\"Log value\",DataLog!AF3231,\"\")","v":""},{"$f":"IF(DataLog!$C3231=\"Log value\",DataLog!AG3231,\"\")","v":""},{"$f":"IF(DataLog!$C3231=\"Log value\",DataLog!AH3231,\"\")","v":""},{"$f":"IF(DataLog!$C3231=\"Log value\",DataLog!AI3231,\"\")","v":""},{"$f":"IF(DataLog!$C3231=\"Log value\",DataLog!AJ3231,\"\")","v":""},{"$f":"IF(DataLog!$C3231=\"Log value\",DataLog!AK3231,\"\")","v":""},{"$f":"IF(DataLog!$C3231=\"Log value\",DataLog!AL3231,\"\")","v":""},{"$f":"IF(DataLog!$C3231=\"Log value\",DataLog!AM3231,\"\")","v":""}]
[null,null,null,null,null,null,{"$f":"IF(DataLog!$C3232=\"Log value\",DataLog!D3232&\"_\"&TEXT(DataLog!B3232,\"åååå-mm-dd\"),\"\")","v":""},{"$f":"IF(DataLog!$C3232=\"Log value\",DataLog!E3232,\"\")","v":""},{"$f":"IF(DataLog!$C3232=\"Log value\",DataLog!F3232,\"\")","v":""},{"$f":"IF(DataLog!$C3232=\"Log value\",DataLog!G3232,\"\")","v":""},{"$f":"IF(DataLog!$C3232=\"Log value\",DataLog!H3232,\"\")","v":""},{"$f":"IF(DataLog!$C3232=\"Log value\",DataLog!I3232,\"\")","v":""},{"$f":"IF(DataLog!$C3232=\"Log value\",DataLog!J3232,\"\")","v":""},{"$f":"IF(DataLog!$C3232=\"Log value\",DataLog!K3232,\"\")","v":""},{"$f":"IF(DataLog!$C3232=\"Log value\",DataLog!L3232,\"\")","v":""},{"$f":"IF(DataLog!$C3232=\"Log value\",DataLog!M3232,\"\")","v":""},{"$f":"IF(DataLog!$C3232=\"Log value\",DataLog!N3232,\"\")","v":""},{"$f":"IF(DataLog!$C3232=\"Log value\",DataLog!O3232,\"\")","v":""},{"$f":"IF(DataLog!$C3232=\"Log value\",DataLog!P3232,\"\")","v":""},{"$f":"IF(DataLog!$C3232=\"Log value\",DataLog!Q3232,\"\")","v":""},{"$f":"IF(DataLog!$C3232=\"Log value\",DataLog!R3232,\"\")","v":""},{"$f":"IF(DataLog!$C3232=\"Log value\",DataLog!S3232,\"\")","v":""},{"$f":"IF(DataLog!$C3232=\"Log value\",DataLog!T3232,\"\")","v":""},{"$f":"IF(DataLog!$C3232=\"Log value\",DataLog!U3232,\"\")","v":""},{"$f":"IF(DataLog!$C3232=\"Log value\",DataLog!V3232,\"\")","v":""},{"$f":"IF(DataLog!$C3232=\"Log value\",DataLog!W3232,\"\")","v":""},{"$f":"IF(DataLog!$C3232=\"Log value\",DataLog!X3232,\"\")","v":""},{"$f":"IF(DataLog!$C3232=\"Log value\",DataLog!Y3232,\"\")","v":""},{"$f":"IF(DataLog!$C3232=\"Log value\",DataLog!Z3232,\"\")","v":""},{"$f":"IF(DataLog!$C3232=\"Log value\",DataLog!AA3232,\"\")","v":""},{"$f":"IF(DataLog!$C3232=\"Log value\",DataLog!AB3232,\"\")","v":""},{"$f":"IF(DataLog!$C3232=\"Log value\",DataLog!AC3232,\"\")","v":""},{"$f":"IF(DataLog!$C3232=\"Log value\",DataLog!AD3232,\"\")","v":""},{"$f":"IF(DataLog!$C3232=\"Log value\",DataLog!AE3232,\"\")","v":""},{"$f":"IF(DataLog!$C3232=\"Log value\",DataLog!AF3232,\"\")","v":""},{"$f":"IF(DataLog!$C3232=\"Log value\",DataLog!AG3232,\"\")","v":""},{"$f":"IF(DataLog!$C3232=\"Log value\",DataLog!AH3232,\"\")","v":""},{"$f":"IF(DataLog!$C3232=\"Log value\",DataLog!AI3232,\"\")","v":""},{"$f":"IF(DataLog!$C3232=\"Log value\",DataLog!AJ3232,\"\")","v":""},{"$f":"IF(DataLog!$C3232=\"Log value\",DataLog!AK3232,\"\")","v":""},{"$f":"IF(DataLog!$C3232=\"Log value\",DataLog!AL3232,\"\")","v":""},{"$f":"IF(DataLog!$C3232=\"Log value\",DataLog!AM3232,\"\")","v":""}]
[null,null,null,null,null,null,{"$f":"IF(DataLog!$C3233=\"Log value\",DataLog!D3233&\"_\"&TEXT(DataLog!B3233,\"åååå-mm-dd\"),\"\")","v":""},{"$f":"IF(DataLog!$C3233=\"Log value\",DataLog!E3233,\"\")","v":""},{"$f":"IF(DataLog!$C3233=\"Log value\",DataLog!F3233,\"\")","v":""},{"$f":"IF(DataLog!$C3233=\"Log value\",DataLog!G3233,\"\")","v":""},{"$f":"IF(DataLog!$C3233=\"Log value\",DataLog!H3233,\"\")","v":""},{"$f":"IF(DataLog!$C3233=\"Log value\",DataLog!I3233,\"\")","v":""},{"$f":"IF(DataLog!$C3233=\"Log value\",DataLog!J3233,\"\")","v":""},{"$f":"IF(DataLog!$C3233=\"Log value\",DataLog!K3233,\"\")","v":""},{"$f":"IF(DataLog!$C3233=\"Log value\",DataLog!L3233,\"\")","v":""},{"$f":"IF(DataLog!$C3233=\"Log value\",DataLog!M3233,\"\")","v":""},{"$f":"IF(DataLog!$C3233=\"Log value\",DataLog!N3233,\"\")","v":""},{"$f":"IF(DataLog!$C3233=\"Log value\",DataLog!O3233,\"\")","v":""},{"$f":"IF(DataLog!$C3233=\"Log value\",DataLog!P3233,\"\")","v":""},{"$f":"IF(DataLog!$C3233=\"Log value\",DataLog!Q3233,\"\")","v":""},{"$f":"IF(DataLog!$C3233=\"Log value\",DataLog!R3233,\"\")","v":""},{"$f":"IF(DataLog!$C3233=\"Log value\",DataLog!S3233,\"\")","v":""},{"$f":"IF(DataLog!$C3233=\"Log value\",DataLog!T3233,\"\")","v":""},{"$f":"IF(DataLog!$C3233=\"Log value\",DataLog!U3233,\"\")","v":""},{"$f":"IF(DataLog!$C3233=\"Log value\",DataLog!V3233,\"\")","v":""},{"$f":"IF(DataLog!$C3233=\"Log value\",DataLog!W3233,\"\")","v":""},{"$f":"IF(DataLog!$C3233=\"Log value\",DataLog!X3233,\"\")","v":""},{"$f":"IF(DataLog!$C3233=\"Log value\",DataLog!Y3233,\"\")","v":""},{"$f":"IF(DataLog!$C3233=\"Log value\",DataLog!Z3233,\"\")","v":""},{"$f":"IF(DataLog!$C3233=\"Log value\",DataLog!AA3233,\"\")","v":""},{"$f":"IF(DataLog!$C3233=\"Log value\",DataLog!AB3233,\"\")","v":""},{"$f":"IF(DataLog!$C3233=\"Log value\",DataLog!AC3233,\"\")","v":""},{"$f":"IF(DataLog!$C3233=\"Log value\",DataLog!AD3233,\"\")","v":""},{"$f":"IF(DataLog!$C3233=\"Log value\",DataLog!AE3233,\"\")","v":""},{"$f":"IF(DataLog!$C3233=\"Log value\",DataLog!AF3233,\"\")","v":""},{"$f":"IF(DataLog!$C3233=\"Log value\",DataLog!AG3233,\"\")","v":""},{"$f":"IF(DataLog!$C3233=\"Log value\",DataLog!AH3233,\"\")","v":""},{"$f":"IF(DataLog!$C3233=\"Log value\",DataLog!AI3233,\"\")","v":""},{"$f":"IF(DataLog!$C3233=\"Log value\",DataLog!AJ3233,\"\")","v":""},{"$f":"IF(DataLog!$C3233=\"Log value\",DataLog!AK3233,\"\")","v":""},{"$f":"IF(DataLog!$C3233=\"Log value\",DataLog!AL3233,\"\")","v":""},{"$f":"IF(DataLog!$C3233=\"Log value\",DataLog!AM3233,\"\")","v":""}]
[null,null,null,null,null,null,{"$f":"IF(DataLog!$C3234=\"Log value\",DataLog!D3234&\"_\"&TEXT(DataLog!B3234,\"åååå-mm-dd\"),\"\")","v":""},{"$f":"IF(DataLog!$C3234=\"Log value\",DataLog!E3234,\"\")","v":""},{"$f":"IF(DataLog!$C3234=\"Log value\",DataLog!F3234,\"\")","v":""},{"$f":"IF(DataLog!$C3234=\"Log value\",DataLog!G3234,\"\")","v":""},{"$f":"IF(DataLog!$C3234=\"Log value\",DataLog!H3234,\"\")","v":""},{"$f":"IF(DataLog!$C3234=\"Log value\",DataLog!I3234,\"\")","v":""},{"$f":"IF(DataLog!$C3234=\"Log value\",DataLog!J3234,\"\")","v":""},{"$f":"IF(DataLog!$C3234=\"Log value\",DataLog!K3234,\"\")","v":""},{"$f":"IF(DataLog!$C3234=\"Log value\",DataLog!L3234,\"\")","v":""},{"$f":"IF(DataLog!$C3234=\"Log value\",DataLog!M3234,\"\")","v":""},{"$f":"IF(DataLog!$C3234=\"Log value\",DataLog!N3234,\"\")","v":""},{"$f":"IF(DataLog!$C3234=\"Log value\",DataLog!O3234,\"\")","v":""},{"$f":"IF(DataLog!$C3234=\"Log value\",DataLog!P3234,\"\")","v":""},{"$f":"IF(DataLog!$C3234=\"Log value\",DataLog!Q3234,\"\")","v":""},{"$f":"IF(DataLog!$C3234=\"Log value\",DataLog!R3234,\"\")","v":""},{"$f":"IF(DataLog!$C3234=\"Log value\",DataLog!S3234,\"\")","v":""},{"$f":"IF(DataLog!$C3234=\"Log value\",DataLog!T3234,\"\")","v":""},{"$f":"IF(DataLog!$C3234=\"Log value\",DataLog!U3234,\"\")","v":""},{"$f":"IF(DataLog!$C3234=\"Log value\",DataLog!V3234,\"\")","v":""},{"$f":"IF(DataLog!$C3234=\"Log value\",DataLog!W3234,\"\")","v":""},{"$f":"IF(DataLog!$C3234=\"Log value\",DataLog!X3234,\"\")","v":""},{"$f":"IF(DataLog!$C3234=\"Log value\",DataLog!Y3234,\"\")","v":""},{"$f":"IF(DataLog!$C3234=\"Log value\",DataLog!Z3234,\"\")","v":""},{"$f":"IF(DataLog!$C3234=\"Log value\",DataLog!AA3234,\"\")","v":""},{"$f":"IF(DataLog!$C3234=\"Log value\",DataLog!AB3234,\"\")","v":""},{"$f":"IF(DataLog!$C3234=\"Log value\",DataLog!AC3234,\"\")","v":""},{"$f":"IF(DataLog!$C3234=\"Log value\",DataLog!AD3234,\"\")","v":""},{"$f":"IF(DataLog!$C3234=\"Log value\",DataLog!AE3234,\"\")","v":""},{"$f":"IF(DataLog!$C3234=\"Log value\",DataLog!AF3234,\"\")","v":""},{"$f":"IF(DataLog!$C3234=\"Log value\",DataLog!AG3234,\"\")","v":""},{"$f":"IF(DataLog!$C3234=\"Log value\",DataLog!AH3234,\"\")","v":""},{"$f":"IF(DataLog!$C3234=\"Log value\",DataLog!AI3234,\"\")","v":""},{"$f":"IF(DataLog!$C3234=\"Log value\",DataLog!AJ3234,\"\")","v":""},{"$f":"IF(DataLog!$C3234=\"Log value\",DataLog!AK3234,\"\")","v":""},{"$f":"IF(DataLog!$C3234=\"Log value\",DataLog!AL3234,\"\")","v":""},{"$f":"IF(DataLog!$C3234=\"Log value\",DataLog!AM3234,\"\")","v":""}]
[null,null,null,null,null,null,{"$f":"IF(DataLog!$C3235=\"Log value\",DataLog!D3235&\"_\"&TEXT(DataLog!B3235,\"åååå-mm-dd\"),\"\")","v":""},{"$f":"IF(DataLog!$C3235=\"Log value\",DataLog!E3235,\"\")","v":""},{"$f":"IF(DataLog!$C3235=\"Log value\",DataLog!F3235,\"\")","v":""},{"$f":"IF(DataLog!$C3235=\"Log value\",DataLog!G3235,\"\")","v":""},{"$f":"IF(DataLog!$C3235=\"Log value\",DataLog!H3235,\"\")","v":""},{"$f":"IF(DataLog!$C3235=\"Log value\",DataLog!I3235,\"\")","v":""},{"$f":"IF(DataLog!$C3235=\"Log value\",DataLog!J3235,\"\")","v":""},{"$f":"IF(DataLog!$C3235=\"Log value\",DataLog!K3235,\"\")","v":""},{"$f":"IF(DataLog!$C3235=\"Log value\",DataLog!L3235,\"\")","v":""},{"$f":"IF(DataLog!$C3235=\"Log value\",DataLog!M3235,\"\")","v":""},{"$f":"IF(DataLog!$C3235=\"Log value\",DataLog!N3235,\"\")","v":""},{"$f":"IF(DataLog!$C3235=\"Log value\",DataLog!O3235,\"\")","v":""},{"$f":"IF(DataLog!$C3235=\"Log value\",DataLog!P3235,\"\")","v":""},{"$f":"IF(DataLog!$C3235=\"Log value\",DataLog!Q3235,\"\")","v":""},{"$f":"IF(DataLog!$C3235=\"Log value\",DataLog!R3235,\"\")","v":""},{"$f":"IF(DataLog!$C3235=\"Log value\",DataLog!S3235,\"\")","v":""},{"$f":"IF(DataLog!$C3235=\"Log value\",DataLog!T3235,\"\")","v":""},{"$f":"IF(DataLog!$C3235=\"Log value\",DataLog!U3235,\"\")","v":""},{"$f":"IF(DataLog!$C3235=\"Log value\",DataLog!V3235,\"\")","v":""},{"$f":"IF(DataLog!$C3235=\"Log value\",DataLog!W3235,\"\")","v":""},{"$f":"IF(DataLog!$C3235=\"Log value\",DataLog!X3235,\"\")","v":""},{"$f":"IF(DataLog!$C3235=\"Log value\",DataLog!Y3235,\"\")","v":""},{"$f":"IF(DataLog!$C3235=\"Log value\",DataLog!Z3235,\"\")","v":""},{"$f":"IF(DataLog!$C3235=\"Log value\",DataLog!AA3235,\"\")","v":""},{"$f":"IF(DataLog!$C3235=\"Log value\",DataLog!AB3235,\"\")","v":""},{"$f":"IF(DataLog!$C3235=\"Log value\",DataLog!AC3235,\"\")","v":""},{"$f":"IF(DataLog!$C3235=\"Log value\",DataLog!AD3235,\"\")","v":""},{"$f":"IF(DataLog!$C3235=\"Log value\",DataLog!AE3235,\"\")","v":""},{"$f":"IF(DataLog!$C3235=\"Log value\",DataLog!AF3235,\"\")","v":""},{"$f":"IF(DataLog!$C3235=\"Log value\",DataLog!AG3235,\"\")","v":""},{"$f":"IF(DataLog!$C3235=\"Log value\",DataLog!AH3235,\"\")","v":""},{"$f":"IF(DataLog!$C3235=\"Log value\",DataLog!AI3235,\"\")","v":""},{"$f":"IF(DataLog!$C3235=\"Log value\",DataLog!AJ3235,\"\")","v":""},{"$f":"IF(DataLog!$C3235=\"Log value\",DataLog!AK3235,\"\")","v":""},{"$f":"IF(DataLog!$C3235=\"Log value\",DataLog!AL3235,\"\")","v":""},{"$f":"IF(DataLog!$C3235=\"Log value\",DataLog!AM3235,\"\")","v":""}]
[null,null,null,null,null,null,{"$f":"IF(DataLog!$C3236=\"Log value\",DataLog!D3236&\"_\"&TEXT(DataLog!B3236,\"åååå-mm-dd\"),\"\")","v":""},{"$f":"IF(DataLog!$C3236=\"Log value\",DataLog!E3236,\"\")","v":""},{"$f":"IF(DataLog!$C3236=\"Log value\",DataLog!F3236,\"\")","v":""},{"$f":"IF(DataLog!$C3236=\"Log value\",DataLog!G3236,\"\")","v":""},{"$f":"IF(DataLog!$C3236=\"Log value\",DataLog!H3236,\"\")","v":""},{"$f":"IF(DataLog!$C3236=\"Log value\",DataLog!I3236,\"\")","v":""},{"$f":"IF(DataLog!$C3236=\"Log value\",DataLog!J3236,\"\")","v":""},{"$f":"IF(DataLog!$C3236=\"Log value\",DataLog!K3236,\"\")","v":""},{"$f":"IF(DataLog!$C3236=\"Log value\",DataLog!L3236,\"\")","v":""},{"$f":"IF(DataLog!$C3236=\"Log value\",DataLog!M3236,\"\")","v":""},{"$f":"IF(DataLog!$C3236=\"Log value\",DataLog!N3236,\"\")","v":""},{"$f":"IF(DataLog!$C3236=\"Log value\",DataLog!O3236,\"\")","v":""},{"$f":"IF(DataLog!$C3236=\"Log value\",DataLog!P3236,\"\")","v":""},{"$f":"IF(DataLog!$C3236=\"Log value\",DataLog!Q3236,\"\")","v":""},{"$f":"IF(DataLog!$C3236=\"Log value\",DataLog!R3236,\"\")","v":""},{"$f":"IF(DataLog!$C3236=\"Log value\",DataLog!S3236,\"\")","v":""},{"$f":"IF(DataLog!$C3236=\"Log value\",DataLog!T3236,\"\")","v":""},{"$f":"IF(DataLog!$C3236=\"Log value\",DataLog!U3236,\"\")","v":""},{"$f":"IF(DataLog!$C3236=\"Log value\",DataLog!V3236,\"\")","v":""},{"$f":"IF(DataLog!$C3236=\"Log value\",DataLog!W3236,\"\")","v":""},{"$f":"IF(DataLog!$C3236=\"Log value\",DataLog!X3236,\"\")","v":""},{"$f":"IF(DataLog!$C3236=\"Log value\",DataLog!Y3236,\"\")","v":""},{"$f":"IF(DataLog!$C3236=\"Log value\",DataLog!Z3236,\"\")","v":""},{"$f":"IF(DataLog!$C3236=\"Log value\",DataLog!AA3236,\"\")","v":""},{"$f":"IF(DataLog!$C3236=\"Log value\",DataLog!AB3236,\"\")","v":""},{"$f":"IF(DataLog!$C3236=\"Log value\",DataLog!AC3236,\"\")","v":""},{"$f":"IF(DataLog!$C3236=\"Log value\",DataLog!AD3236,\"\")","v":""},{"$f":"IF(DataLog!$C3236=\"Log value\",DataLog!AE3236,\"\")","v":""},{"$f":"IF(DataLog!$C3236=\"Log value\",DataLog!AF3236,\"\")","v":""},{"$f":"IF(DataLog!$C3236=\"Log value\",DataLog!AG3236,\"\")","v":""},{"$f":"IF(DataLog!$C3236=\"Log value\",DataLog!AH3236,\"\")","v":""},{"$f":"IF(DataLog!$C3236=\"Log value\",DataLog!AI3236,\"\")","v":""},{"$f":"IF(DataLog!$C3236=\"Log value\",DataLog!AJ3236,\"\")","v":""},{"$f":"IF(DataLog!$C3236=\"Log value\",DataLog!AK3236,\"\")","v":""},{"$f":"IF(DataLog!$C3236=\"Log value\",DataLog!AL3236,\"\")","v":""},{"$f":"IF(DataLog!$C3236=\"Log value\",DataLog!AM3236,\"\")","v":""}]
[null,null,null,null,null,null,{"$f":"IF(DataLog!$C3237=\"Log value\",DataLog!D3237&\"_\"&TEXT(DataLog!B3237,\"åååå-mm-dd\"),\"\")","v":""},{"$f":"IF(DataLog!$C3237=\"Log value\",DataLog!E3237,\"\")","v":""},{"$f":"IF(DataLog!$C3237=\"Log value\",DataLog!F3237,\"\")","v":""},{"$f":"IF(DataLog!$C3237=\"Log value\",DataLog!G3237,\"\")","v":""},{"$f":"IF(DataLog!$C3237=\"Log value\",DataLog!H3237,\"\")","v":""},{"$f":"IF(DataLog!$C3237=\"Log value\",DataLog!I3237,\"\")","v":""},{"$f":"IF(DataLog!$C3237=\"Log value\",DataLog!J3237,\"\")","v":""},{"$f":"IF(DataLog!$C3237=\"Log value\",DataLog!K3237,\"\")","v":""},{"$f":"IF(DataLog!$C3237=\"Log value\",DataLog!L3237,\"\")","v":""},{"$f":"IF(DataLog!$C3237=\"Log value\",DataLog!M3237,\"\")","v":""},{"$f":"IF(DataLog!$C3237=\"Log value\",DataLog!N3237,\"\")","v":""},{"$f":"IF(DataLog!$C3237=\"Log value\",DataLog!O3237,\"\")","v":""},{"$f":"IF(DataLog!$C3237=\"Log value\",DataLog!P3237,\"\")","v":""},{"$f":"IF(DataLog!$C3237=\"Log value\",DataLog!Q3237,\"\")","v":""},{"$f":"IF(DataLog!$C3237=\"Log value\",DataLog!R3237,\"\")","v":""},{"$f":"IF(DataLog!$C3237=\"Log value\",DataLog!S3237,\"\")","v":""},{"$f":"IF(DataLog!$C3237=\"Log value\",DataLog!T3237,\"\")","v":""},{"$f":"IF(DataLog!$C3237=\"Log value\",DataLog!U3237,\"\")","v":""},{"$f":"IF(DataLog!$C3237=\"Log value\",DataLog!V3237,\"\")","v":""},{"$f":"IF(DataLog!$C3237=\"Log value\",DataLog!W3237,\"\")","v":""},{"$f":"IF(DataLog!$C3237=\"Log value\",DataLog!X3237,\"\")","v":""},{"$f":"IF(DataLog!$C3237=\"Log value\",DataLog!Y3237,\"\")","v":""},{"$f":"IF(DataLog!$C3237=\"Log value\",DataLog!Z3237,\"\")","v":""},{"$f":"IF(DataLog!$C3237=\"Log value\",DataLog!AA3237,\"\")","v":""},{"$f":"IF(DataLog!$C3237=\"Log value\",DataLog!AB3237,\"\")","v":""},{"$f":"IF(DataLog!$C3237=\"Log value\",DataLog!AC3237,\"\")","v":""},{"$f":"IF(DataLog!$C3237=\"Log value\",DataLog!AD3237,\"\")","v":""},{"$f":"IF(DataLog!$C3237=\"Log value\",DataLog!AE3237,\"\")","v":""},{"$f":"IF(DataLog!$C3237=\"Log value\",DataLog!AF3237,\"\")","v":""},{"$f":"IF(DataLog!$C3237=\"Log value\",DataLog!AG3237,\"\")","v":""},{"$f":"IF(DataLog!$C3237=\"Log value\",DataLog!AH3237,\"\")","v":""},{"$f":"IF(DataLog!$C3237=\"Log value\",DataLog!AI3237,\"\")","v":""},{"$f":"IF(DataLog!$C3237=\"Log value\",DataLog!AJ3237,\"\")","v":""},{"$f":"IF(DataLog!$C3237=\"Log value\",DataLog!AK3237,\"\")","v":""},{"$f":"IF(DataLog!$C3237=\"Log value\",DataLog!AL3237,\"\")","v":""},{"$f":"IF(DataLog!$C3237=\"Log value\",DataLog!AM3237,\"\")","v":""}]
[null,null,null,null,null,null,{"$f":"IF(DataLog!$C3238=\"Log value\",DataLog!D3238&\"_\"&TEXT(DataLog!B3238,\"åååå-mm-dd\"),\"\")","v":""},{"$f":"IF(DataLog!$C3238=\"Log value\",DataLog!E3238,\"\")","v":""},{"$f":"IF(DataLog!$C3238=\"Log value\",DataLog!F3238,\"\")","v":""},{"$f":"IF(DataLog!$C3238=\"Log value\",DataLog!G3238,\"\")","v":""},{"$f":"IF(DataLog!$C3238=\"Log value\",DataLog!H3238,\"\")","v":""},{"$f":"IF(DataLog!$C3238=\"Log value\",DataLog!I3238,\"\")","v":""},{"$f":"IF(DataLog!$C3238=\"Log value\",DataLog!J3238,\"\")","v":""},{"$f":"IF(DataLog!$C3238=\"Log value\",DataLog!K3238,\"\")","v":""},{"$f":"IF(DataLog!$C3238=\"Log value\",DataLog!L3238,\"\")","v":""},{"$f":"IF(DataLog!$C3238=\"Log value\",DataLog!M3238,\"\")","v":""},{"$f":"IF(DataLog!$C3238=\"Log value\",DataLog!N3238,\"\")","v":""},{"$f":"IF(DataLog!$C3238=\"Log value\",DataLog!O3238,\"\")","v":""},{"$f":"IF(DataLog!$C3238=\"Log value\",DataLog!P3238,\"\")","v":""},{"$f":"IF(DataLog!$C3238=\"Log value\",DataLog!Q3238,\"\")","v":""},{"$f":"IF(DataLog!$C3238=\"Log value\",DataLog!R3238,\"\")","v":""},{"$f":"IF(DataLog!$C3238=\"Log value\",DataLog!S3238,\"\")","v":""},{"$f":"IF(DataLog!$C3238=\"Log value\",DataLog!T3238,\"\")","v":""},{"$f":"IF(DataLog!$C3238=\"Log value\",DataLog!U3238,\"\")","v":""},{"$f":"IF(DataLog!$C3238=\"Log value\",DataLog!V3238,\"\")","v":""},{"$f":"IF(DataLog!$C3238=\"Log value\",DataLog!W3238,\"\")","v":""},{"$f":"IF(DataLog!$C3238=\"Log value\",DataLog!X3238,\"\")","v":""},{"$f":"IF(DataLog!$C3238=\"Log value\",DataLog!Y3238,\"\")","v":""},{"$f":"IF(DataLog!$C3238=\"Log value\",DataLog!Z3238,\"\")","v":""},{"$f":"IF(DataLog!$C3238=\"Log value\",DataLog!AA3238,\"\")","v":""},{"$f":"IF(DataLog!$C3238=\"Log value\",DataLog!AB3238,\"\")","v":""},{"$f":"IF(DataLog!$C3238=\"Log value\",DataLog!AC3238,\"\")","v":""},{"$f":"IF(DataLog!$C3238=\"Log value\",DataLog!AD3238,\"\")","v":""},{"$f":"IF(DataLog!$C3238=\"Log value\",DataLog!AE3238,\"\")","v":""},{"$f":"IF(DataLog!$C3238=\"Log value\",DataLog!AF3238,\"\")","v":""},{"$f":"IF(DataLog!$C3238=\"Log value\",DataLog!AG3238,\"\")","v":""},{"$f":"IF(DataLog!$C3238=\"Log value\",DataLog!AH3238,\"\")","v":""},{"$f":"IF(DataLog!$C3238=\"Log value\",DataLog!AI3238,\"\")","v":""},{"$f":"IF(DataLog!$C3238=\"Log value\",DataLog!AJ3238,\"\")","v":""},{"$f":"IF(DataLog!$C3238=\"Log value\",DataLog!AK3238,\"\")","v":""},{"$f":"IF(DataLog!$C3238=\"Log value\",DataLog!AL3238,\"\")","v":""},{"$f":"IF(DataLog!$C3238=\"Log value\",DataLog!AM3238,\"\")","v":""}]
[null,null,null,null,null,null,{"$f":"IF(DataLog!$C3239=\"Log value\",DataLog!D3239&\"_\"&TEXT(DataLog!B3239,\"åååå-mm-dd\"),\"\")","v":""},{"$f":"IF(DataLog!$C3239=\"Log value\",DataLog!E3239,\"\")","v":""},{"$f":"IF(DataLog!$C3239=\"Log value\",DataLog!F3239,\"\")","v":""},{"$f":"IF(DataLog!$C3239=\"Log value\",DataLog!G3239,\"\")","v":""},{"$f":"IF(DataLog!$C3239=\"Log value\",DataLog!H3239,\"\")","v":""},{"$f":"IF(DataLog!$C3239=\"Log value\",DataLog!I3239,\"\")","v":""},{"$f":"IF(DataLog!$C3239=\"Log value\",DataLog!J3239,\"\")","v":""},{"$f":"IF(DataLog!$C3239=\"Log value\",DataLog!K3239,\"\")","v":""},{"$f":"IF(DataLog!$C3239=\"Log value\",DataLog!L3239,\"\")","v":""},{"$f":"IF(DataLog!$C3239=\"Log value\",DataLog!M3239,\"\")","v":""},{"$f":"IF(DataLog!$C3239=\"Log value\",DataLog!N3239,\"\")","v":""},{"$f":"IF(DataLog!$C3239=\"Log value\",DataLog!O3239,\"\")","v":""},{"$f":"IF(DataLog!$C3239=\"Log value\",DataLog!P3239,\"\")","v":""},{"$f":"IF(DataLog!$C3239=\"Log value\",DataLog!Q3239,\"\")","v":""},{"$f":"IF(DataLog!$C3239=\"Log value\",DataLog!R3239,\"\")","v":""},{"$f":"IF(DataLog!$C3239=\"Log value\",DataLog!S3239,\"\")","v":""},{"$f":"IF(DataLog!$C3239=\"Log value\",DataLog!T3239,\"\")","v":""},{"$f":"IF(DataLog!$C3239=\"Log value\",DataLog!U3239,\"\")","v":""},{"$f":"IF(DataLog!$C3239=\"Log value\",DataLog!V3239,\"\")","v":""},{"$f":"IF(DataLog!$C3239=\"Log value\",DataLog!W3239,\"\")","v":""},{"$f":"IF(DataLog!$C3239=\"Log value\",DataLog!X3239,\"\")","v":""},{"$f":"IF(DataLog!$C3239=\"Log value\",DataLog!Y3239,\"\")","v":""},{"$f":"IF(DataLog!$C3239=\"Log value\",DataLog!Z3239,\"\")","v":""},{"$f":"IF(DataLog!$C3239=\"Log value\",DataLog!AA3239,\"\")","v":""},{"$f":"IF(DataLog!$C3239=\"Log value\",DataLog!AB3239,\"\")","v":""},{"$f":"IF(DataLog!$C3239=\"Log value\",DataLog!AC3239,\"\")","v":""},{"$f":"IF(DataLog!$C3239=\"Log value\",DataLog!AD3239,\"\")","v":""},{"$f":"IF(DataLog!$C3239=\"Log value\",DataLog!AE3239,\"\")","v":""},{"$f":"IF(DataLog!$C3239=\"Log value\",DataLog!AF3239,\"\")","v":""},{"$f":"IF(DataLog!$C3239=\"Log value\",DataLog!AG3239,\"\")","v":""},{"$f":"IF(DataLog!$C3239=\"Log value\",DataLog!AH3239,\"\")","v":""},{"$f":"IF(DataLog!$C3239=\"Log value\",DataLog!AI3239,\"\")","v":""},{"$f":"IF(DataLog!$C3239=\"Log value\",DataLog!AJ3239,\"\")","v":""},{"$f":"IF(DataLog!$C3239=\"Log value\",DataLog!AK3239,\"\")","v":""},{"$f":"IF(DataLog!$C3239=\"Log value\",DataLog!AL3239,\"\")","v":""},{"$f":"IF(DataLog!$C3239=\"Log value\",DataLog!AM3239,\"\")","v":""}]
[null,null,null,null,null,null,{"$f":"IF(DataLog!$C3240=\"Log value\",DataLog!D3240&\"_\"&TEXT(DataLog!B3240,\"åååå-mm-dd\"),\"\")","v":""},{"$f":"IF(DataLog!$C3240=\"Log value\",DataLog!E3240,\"\")","v":""},{"$f":"IF(DataLog!$C3240=\"Log value\",DataLog!F3240,\"\")","v":""},{"$f":"IF(DataLog!$C3240=\"Log value\",DataLog!G3240,\"\")","v":""},{"$f":"IF(DataLog!$C3240=\"Log value\",DataLog!H3240,\"\")","v":""},{"$f":"IF(DataLog!$C3240=\"Log value\",DataLog!I3240,\"\")","v":""},{"$f":"IF(DataLog!$C3240=\"Log value\",DataLog!J3240,\"\")","v":""},{"$f":"IF(DataLog!$C3240=\"Log value\",DataLog!K3240,\"\")","v":""},{"$f":"IF(DataLog!$C3240=\"Log value\",DataLog!L3240,\"\")","v":""},{"$f":"IF(DataLog!$C3240=\"Log value\",DataLog!M3240,\"\")","v":""},{"$f":"IF(DataLog!$C3240=\"Log value\",DataLog!N3240,\"\")","v":""},{"$f":"IF(DataLog!$C3240=\"Log value\",DataLog!O3240,\"\")","v":""},{"$f":"IF(DataLog!$C3240=\"Log value\",DataLog!P3240,\"\")","v":""},{"$f":"IF(DataLog!$C3240=\"Log value\",DataLog!Q3240,\"\")","v":""},{"$f":"IF(DataLog!$C3240=\"Log value\",DataLog!R3240,\"\")","v":""},{"$f":"IF(DataLog!$C3240=\"Log value\",DataLog!S3240,\"\")","v":""},{"$f":"IF(DataLog!$C3240=\"Log value\",DataLog!T3240,\"\")","v":""},{"$f":"IF(DataLog!$C3240=\"Log value\",DataLog!U3240,\"\")","v":""},{"$f":"IF(DataLog!$C3240=\"Log value\",DataLog!V3240,\"\")","v":""},{"$f":"IF(DataLog!$C3240=\"Log value\",DataLog!W3240,\"\")","v":""},{"$f":"IF(DataLog!$C3240=\"Log value\",DataLog!X3240,\"\")","v":""},{"$f":"IF(DataLog!$C3240=\"Log value\",DataLog!Y3240,\"\")","v":""},{"$f":"IF(DataLog!$C3240=\"Log value\",DataLog!Z3240,\"\")","v":""},{"$f":"IF(DataLog!$C3240=\"Log value\",DataLog!AA3240,\"\")","v":""},{"$f":"IF(DataLog!$C3240=\"Log value\",DataLog!AB3240,\"\")","v":""},{"$f":"IF(DataLog!$C3240=\"Log value\",DataLog!AC3240,\"\")","v":""},{"$f":"IF(DataLog!$C3240=\"Log value\",DataLog!AD3240,\"\")","v":""},{"$f":"IF(DataLog!$C3240=\"Log value\",DataLog!AE3240,\"\")","v":""},{"$f":"IF(DataLog!$C3240=\"Log value\",DataLog!AF3240,\"\")","v":""},{"$f":"IF(DataLog!$C3240=\"Log value\",DataLog!AG3240,\"\")","v":""},{"$f":"IF(DataLog!$C3240=\"Log value\",DataLog!AH3240,\"\")","v":""},{"$f":"IF(DataLog!$C3240=\"Log value\",DataLog!AI3240,\"\")","v":""},{"$f":"IF(DataLog!$C3240=\"Log value\",DataLog!AJ3240,\"\")","v":""},{"$f":"IF(DataLog!$C3240=\"Log value\",DataLog!AK3240,\"\")","v":""},{"$f":"IF(DataLog!$C3240=\"Log value\",DataLog!AL3240,\"\")","v":""},{"$f":"IF(DataLog!$C3240=\"Log value\",DataLog!AM3240,\"\")","v":""}]
[null,null,null,null,null,null,{"$f":"IF(DataLog!$C3241=\"Log value\",DataLog!D3241&\"_\"&TEXT(DataLog!B3241,\"åååå-mm-dd\"),\"\")","v":""},{"$f":"IF(DataLog!$C3241=\"Log value\",DataLog!E3241,\"\")","v":""},{"$f":"IF(DataLog!$C3241=\"Log value\",DataLog!F3241,\"\")","v":""},{"$f":"IF(DataLog!$C3241=\"Log value\",DataLog!G3241,\"\")","v":""},{"$f":"IF(DataLog!$C3241=\"Log value\",DataLog!H3241,\"\")","v":""},{"$f":"IF(DataLog!$C3241=\"Log value\",DataLog!I3241,\"\")","v":""},{"$f":"IF(DataLog!$C3241=\"Log value\",DataLog!J3241,\"\")","v":""},{"$f":"IF(DataLog!$C3241=\"Log value\",DataLog!K3241,\"\")","v":""},{"$f":"IF(DataLog!$C3241=\"Log value\",DataLog!L3241,\"\")","v":""},{"$f":"IF(DataLog!$C3241=\"Log value\",DataLog!M3241,\"\")","v":""},{"$f":"IF(DataLog!$C3241=\"Log value\",DataLog!N3241,\"\")","v":""},{"$f":"IF(DataLog!$C3241=\"Log value\",DataLog!O3241,\"\")","v":""},{"$f":"IF(DataLog!$C3241=\"Log value\",DataLog!P3241,\"\")","v":""},{"$f":"IF(DataLog!$C3241=\"Log value\",DataLog!Q3241,\"\")","v":""},{"$f":"IF(DataLog!$C3241=\"Log value\",DataLog!R3241,\"\")","v":""},{"$f":"IF(DataLog!$C3241=\"Log value\",DataLog!S3241,\"\")","v":""},{"$f":"IF(DataLog!$C3241=\"Log value\",DataLog!T3241,\"\")","v":""},{"$f":"IF(DataLog!$C3241=\"Log value\",DataLog!U3241,\"\")","v":""},{"$f":"IF(DataLog!$C3241=\"Log value\",DataLog!V3241,\"\")","v":""},{"$f":"IF(DataLog!$C3241=\"Log value\",DataLog!W3241,\"\")","v":""},{"$f":"IF(DataLog!$C3241=\"Log value\",DataLog!X3241,\"\")","v":""},{"$f":"IF(DataLog!$C3241=\"Log value\",DataLog!Y3241,\"\")","v":""},{"$f":"IF(DataLog!$C3241=\"Log value\",DataLog!Z3241,\"\")","v":""},{"$f":"IF(DataLog!$C3241=\"Log value\",DataLog!AA3241,\"\")","v":""},{"$f":"IF(DataLog!$C3241=\"Log value\",DataLog!AB3241,\"\")","v":""},{"$f":"IF(DataLog!$C3241=\"Log value\",DataLog!AC3241,\"\")","v":""},{"$f":"IF(DataLog!$C3241=\"Log value\",DataLog!AD3241,\"\")","v":""},{"$f":"IF(DataLog!$C3241=\"Log value\",DataLog!AE3241,\"\")","v":""},{"$f":"IF(DataLog!$C3241=\"Log value\",DataLog!AF3241,\"\")","v":""},{"$f":"IF(DataLog!$C3241=\"Log value\",DataLog!AG3241,\"\")","v":""},{"$f":"IF(DataLog!$C3241=\"Log value\",DataLog!AH3241,\"\")","v":""},{"$f":"IF(DataLog!$C3241=\"Log value\",DataLog!AI3241,\"\")","v":""},{"$f":"IF(DataLog!$C3241=\"Log value\",DataLog!AJ3241,\"\")","v":""},{"$f":"IF(DataLog!$C3241=\"Log value\",DataLog!AK3241,\"\")","v":""},{"$f":"IF(DataLog!$C3241=\"Log value\",DataLog!AL3241,\"\")","v":""},{"$f":"IF(DataLog!$C3241=\"Log value\",DataLog!AM3241,\"\")","v":""}]
[null,null,null,null,null,null,{"$f":"IF(DataLog!$C3242=\"Log value\",DataLog!D3242&\"_\"&TEXT(DataLog!B3242,\"åååå-mm-dd\"),\"\")","v":""},{"$f":"IF(DataLog!$C3242=\"Log value\",DataLog!E3242,\"\")","v":""},{"$f":"IF(DataLog!$C3242=\"Log value\",DataLog!F3242,\"\")","v":""},{"$f":"IF(DataLog!$C3242=\"Log value\",DataLog!G3242,\"\")","v":""},{"$f":"IF(DataLog!$C3242=\"Log value\",DataLog!H3242,\"\")","v":""},{"$f":"IF(DataLog!$C3242=\"Log value\",DataLog!I3242,\"\")","v":""},{"$f":"IF(DataLog!$C3242=\"Log value\",DataLog!J3242,\"\")","v":""},{"$f":"IF(DataLog!$C3242=\"Log value\",DataLog!K3242,\"\")","v":""},{"$f":"IF(DataLog!$C3242=\"Log value\",DataLog!L3242,\"\")","v":""},{"$f":"IF(DataLog!$C3242=\"Log value\",DataLog!M3242,\"\")","v":""},{"$f":"IF(DataLog!$C3242=\"Log value\",DataLog!N3242,\"\")","v":""},{"$f":"IF(DataLog!$C3242=\"Log value\",DataLog!O3242,\"\")","v":""},{"$f":"IF(DataLog!$C3242=\"Log value\",DataLog!P3242,\"\")","v":""},{"$f":"IF(DataLog!$C3242=\"Log value\",DataLog!Q3242,\"\")","v":""},{"$f":"IF(DataLog!$C3242=\"Log value\",DataLog!R3242,\"\")","v":""},{"$f":"IF(DataLog!$C3242=\"Log value\",DataLog!S3242,\"\")","v":""},{"$f":"IF(DataLog!$C3242=\"Log value\",DataLog!T3242,\"\")","v":""},{"$f":"IF(DataLog!$C3242=\"Log value\",DataLog!U3242,\"\")","v":""},{"$f":"IF(DataLog!$C3242=\"Log value\",DataLog!V3242,\"\")","v":""},{"$f":"IF(DataLog!$C3242=\"Log value\",DataLog!W3242,\"\")","v":""},{"$f":"IF(DataLog!$C3242=\"Log value\",DataLog!X3242,\"\")","v":""},{"$f":"IF(DataLog!$C3242=\"Log value\",DataLog!Y3242,\"\")","v":""},{"$f":"IF(DataLog!$C3242=\"Log value\",DataLog!Z3242,\"\")","v":""},{"$f":"IF(DataLog!$C3242=\"Log value\",DataLog!AA3242,\"\")","v":""},{"$f":"IF(DataLog!$C3242=\"Log value\",DataLog!AB3242,\"\")","v":""},{"$f":"IF(DataLog!$C3242=\"Log value\",DataLog!AC3242,\"\")","v":""},{"$f":"IF(DataLog!$C3242=\"Log value\",DataLog!AD3242,\"\")","v":""},{"$f":"IF(DataLog!$C3242=\"Log value\",DataLog!AE3242,\"\")","v":""},{"$f":"IF(DataLog!$C3242=\"Log value\",DataLog!AF3242,\"\")","v":""},{"$f":"IF(DataLog!$C3242=\"Log value\",DataLog!AG3242,\"\")","v":""},{"$f":"IF(DataLog!$C3242=\"Log value\",DataLog!AH3242,\"\")","v":""},{"$f":"IF(DataLog!$C3242=\"Log value\",DataLog!AI3242,\"\")","v":""},{"$f":"IF(DataLog!$C3242=\"Log value\",DataLog!AJ3242,\"\")","v":""},{"$f":"IF(DataLog!$C3242=\"Log value\",DataLog!AK3242,\"\")","v":""},{"$f":"IF(DataLog!$C3242=\"Log value\",DataLog!AL3242,\"\")","v":""},{"$f":"IF(DataLog!$C3242=\"Log value\",DataLog!AM3242,\"\")","v":""}]
[null,null,null,null,null,null,{"$f":"IF(DataLog!$C3243=\"Log value\",DataLog!D3243&\"_\"&TEXT(DataLog!B3243,\"åååå-mm-dd\"),\"\")","v":""},{"$f":"IF(DataLog!$C3243=\"Log value\",DataLog!E3243,\"\")","v":""},{"$f":"IF(DataLog!$C3243=\"Log value\",DataLog!F3243,\"\")","v":""},{"$f":"IF(DataLog!$C3243=\"Log value\",DataLog!G3243,\"\")","v":""},{"$f":"IF(DataLog!$C3243=\"Log value\",DataLog!H3243,\"\")","v":""},{"$f":"IF(DataLog!$C3243=\"Log value\",DataLog!I3243,\"\")","v":""},{"$f":"IF(DataLog!$C3243=\"Log value\",DataLog!J3243,\"\")","v":""},{"$f":"IF(DataLog!$C3243=\"Log value\",DataLog!K3243,\"\")","v":""},{"$f":"IF(DataLog!$C3243=\"Log value\",DataLog!L3243,\"\")","v":""},{"$f":"IF(DataLog!$C3243=\"Log value\",DataLog!M3243,\"\")","v":""},{"$f":"IF(DataLog!$C3243=\"Log value\",DataLog!N3243,\"\")","v":""},{"$f":"IF(DataLog!$C3243=\"Log value\",DataLog!O3243,\"\")","v":""},{"$f":"IF(DataLog!$C3243=\"Log value\",DataLog!P3243,\"\")","v":""},{"$f":"IF(DataLog!$C3243=\"Log value\",DataLog!Q3243,\"\")","v":""},{"$f":"IF(DataLog!$C3243=\"Log value\",DataLog!R3243,\"\")","v":""},{"$f":"IF(DataLog!$C3243=\"Log value\",DataLog!S3243,\"\")","v":""},{"$f":"IF(DataLog!$C3243=\"Log value\",DataLog!T3243,\"\")","v":""},{"$f":"IF(DataLog!$C3243=\"Log value\",DataLog!U3243,\"\")","v":""},{"$f":"IF(DataLog!$C3243=\"Log value\",DataLog!V3243,\"\")","v":""},{"$f":"IF(DataLog!$C3243=\"Log value\",DataLog!W3243,\"\")","v":""},{"$f":"IF(DataLog!$C3243=\"Log value\",DataLog!X3243,\"\")","v":""},{"$f":"IF(DataLog!$C3243=\"Log value\",DataLog!Y3243,\"\")","v":""},{"$f":"IF(DataLog!$C3243=\"Log value\",DataLog!Z3243,\"\")","v":""},{"$f":"IF(DataLog!$C3243=\"Log value\",DataLog!AA3243,\"\")","v":""},{"$f":"IF(DataLog!$C3243=\"Log value\",DataLog!AB3243,\"\")","v":""},{"$f":"IF(DataLog!$C3243=\"Log value\",DataLog!AC3243,\"\")","v":""},{"$f":"IF(DataLog!$C3243=\"Log value\",DataLog!AD3243,\"\")","v":""},{"$f":"IF(DataLog!$C3243=\"Log value\",DataLog!AE3243,\"\")","v":""},{"$f":"IF(DataLog!$C3243=\"Log value\",DataLog!AF3243,\"\")","v":""},{"$f":"IF(DataLog!$C3243=\"Log value\",DataLog!AG3243,\"\")","v":""},{"$f":"IF(DataLog!$C3243=\"Log value\",DataLog!AH3243,\"\")","v":""},{"$f":"IF(DataLog!$C3243=\"Log value\",DataLog!AI3243,\"\")","v":""},{"$f":"IF(DataLog!$C3243=\"Log value\",DataLog!AJ3243,\"\")","v":""},{"$f":"IF(DataLog!$C3243=\"Log value\",DataLog!AK3243,\"\")","v":""},{"$f":"IF(DataLog!$C3243=\"Log value\",DataLog!AL3243,\"\")","v":""},{"$f":"IF(DataLog!$C3243=\"Log value\",DataLog!AM3243,\"\")","v":""}]
[null,null,null,null,null,null,{"$f":"IF(DataLog!$C3244=\"Log value\",DataLog!D3244&\"_\"&TEXT(DataLog!B3244,\"åååå-mm-dd\"),\"\")","v":""},{"$f":"IF(DataLog!$C3244=\"Log value\",DataLog!E3244,\"\")","v":""},{"$f":"IF(DataLog!$C3244=\"Log value\",DataLog!F3244,\"\")","v":""},{"$f":"IF(DataLog!$C3244=\"Log value\",DataLog!G3244,\"\")","v":""},{"$f":"IF(DataLog!$C3244=\"Log value\",DataLog!H3244,\"\")","v":""},{"$f":"IF(DataLog!$C3244=\"Log value\",DataLog!I3244,\"\")","v":""},{"$f":"IF(DataLog!$C3244=\"Log value\",DataLog!J3244,\"\")","v":""},{"$f":"IF(DataLog!$C3244=\"Log value\",DataLog!K3244,\"\")","v":""},{"$f":"IF(DataLog!$C3244=\"Log value\",DataLog!L3244,\"\")","v":""},{"$f":"IF(DataLog!$C3244=\"Log value\",DataLog!M3244,\"\")","v":""},{"$f":"IF(DataLog!$C3244=\"Log value\",DataLog!N3244,\"\")","v":""},{"$f":"IF(DataLog!$C3244=\"Log value\",DataLog!O3244,\"\")","v":""},{"$f":"IF(DataLog!$C3244=\"Log value\",DataLog!P3244,\"\")","v":""},{"$f":"IF(DataLog!$C3244=\"Log value\",DataLog!Q3244,\"\")","v":""},{"$f":"IF(DataLog!$C3244=\"Log value\",DataLog!R3244,\"\")","v":""},{"$f":"IF(DataLog!$C3244=\"Log value\",DataLog!S3244,\"\")","v":""},{"$f":"IF(DataLog!$C3244=\"Log value\",DataLog!T3244,\"\")","v":""},{"$f":"IF(DataLog!$C3244=\"Log value\",DataLog!U3244,\"\")","v":""},{"$f":"IF(DataLog!$C3244=\"Log value\",DataLog!V3244,\"\")","v":""},{"$f":"IF(DataLog!$C3244=\"Log value\",DataLog!W3244,\"\")","v":""},{"$f":"IF(DataLog!$C3244=\"Log value\",DataLog!X3244,\"\")","v":""},{"$f":"IF(DataLog!$C3244=\"Log value\",DataLog!Y3244,\"\")","v":""},{"$f":"IF(DataLog!$C3244=\"Log value\",DataLog!Z3244,\"\")","v":""},{"$f":"IF(DataLog!$C3244=\"Log value\",DataLog!AA3244,\"\")","v":""},{"$f":"IF(DataLog!$C3244=\"Log value\",DataLog!AB3244,\"\")","v":""},{"$f":"IF(DataLog!$C3244=\"Log value\",DataLog!AC3244,\"\")","v":""},{"$f":"IF(DataLog!$C3244=\"Log value\",DataLog!AD3244,\"\")","v":""},{"$f":"IF(DataLog!$C3244=\"Log value\",DataLog!AE3244,\"\")","v":""},{"$f":"IF(DataLog!$C3244=\"Log value\",DataLog!AF3244,\"\")","v":""},{"$f":"IF(DataLog!$C3244=\"Log value\",DataLog!AG3244,\"\")","v":""},{"$f":"IF(DataLog!$C3244=\"Log value\",DataLog!AH3244,\"\")","v":""},{"$f":"IF(DataLog!$C3244=\"Log value\",DataLog!AI3244,\"\")","v":""},{"$f":"IF(DataLog!$C3244=\"Log value\",DataLog!AJ3244,\"\")","v":""},{"$f":"IF(DataLog!$C3244=\"Log value\",DataLog!AK3244,\"\")","v":""},{"$f":"IF(DataLog!$C3244=\"Log value\",DataLog!AL3244,\"\")","v":""},{"$f":"IF(DataLog!$C3244=\"Log value\",DataLog!AM3244,\"\")","v":""}]
[null,null,null,null,null,null,{"$f":"IF(DataLog!$C3245=\"Log value\",DataLog!D3245&\"_\"&TEXT(DataLog!B3245,\"åååå-mm-dd\"),\"\")","v":""},{"$f":"IF(DataLog!$C3245=\"Log value\",DataLog!E3245,\"\")","v":""},{"$f":"IF(DataLog!$C3245=\"Log value\",DataLog!F3245,\"\")","v":""},{"$f":"IF(DataLog!$C3245=\"Log value\",DataLog!G3245,\"\")","v":""},{"$f":"IF(DataLog!$C3245=\"Log value\",DataLog!H3245,\"\")","v":""},{"$f":"IF(DataLog!$C3245=\"Log value\",DataLog!I3245,\"\")","v":""},{"$f":"IF(DataLog!$C3245=\"Log value\",DataLog!J3245,\"\")","v":""},{"$f":"IF(DataLog!$C3245=\"Log value\",DataLog!K3245,\"\")","v":""},{"$f":"IF(DataLog!$C3245=\"Log value\",DataLog!L3245,\"\")","v":""},{"$f":"IF(DataLog!$C3245=\"Log value\",DataLog!M3245,\"\")","v":""},{"$f":"IF(DataLog!$C3245=\"Log value\",DataLog!N3245,\"\")","v":""},{"$f":"IF(DataLog!$C3245=\"Log value\",DataLog!O3245,\"\")","v":""},{"$f":"IF(DataLog!$C3245=\"Log value\",DataLog!P3245,\"\")","v":""},{"$f":"IF(DataLog!$C3245=\"Log value\",DataLog!Q3245,\"\")","v":""},{"$f":"IF(DataLog!$C3245=\"Log value\",DataLog!R3245,\"\")","v":""},{"$f":"IF(DataLog!$C3245=\"Log value\",DataLog!S3245,\"\")","v":""},{"$f":"IF(DataLog!$C3245=\"Log value\",DataLog!T3245,\"\")","v":""},{"$f":"IF(DataLog!$C3245=\"Log value\",DataLog!U3245,\"\")","v":""},{"$f":"IF(DataLog!$C3245=\"Log value\",DataLog!V3245,\"\")","v":""},{"$f":"IF(DataLog!$C3245=\"Log value\",DataLog!W3245,\"\")","v":""},{"$f":"IF(DataLog!$C3245=\"Log value\",DataLog!X3245,\"\")","v":""},{"$f":"IF(DataLog!$C3245=\"Log value\",DataLog!Y3245,\"\")","v":""},{"$f":"IF(DataLog!$C3245=\"Log value\",DataLog!Z3245,\"\")","v":""},{"$f":"IF(DataLog!$C3245=\"Log value\",DataLog!AA3245,\"\")","v":""},{"$f":"IF(DataLog!$C3245=\"Log value\",DataLog!AB3245,\"\")","v":""},{"$f":"IF(DataLog!$C3245=\"Log value\",DataLog!AC3245,\"\")","v":""},{"$f":"IF(DataLog!$C3245=\"Log value\",DataLog!AD3245,\"\")","v":""},{"$f":"IF(DataLog!$C3245=\"Log value\",DataLog!AE3245,\"\")","v":""},{"$f":"IF(DataLog!$C3245=\"Log value\",DataLog!AF3245,\"\")","v":""},{"$f":"IF(DataLog!$C3245=\"Log value\",DataLog!AG3245,\"\")","v":""},{"$f":"IF(DataLog!$C3245=\"Log value\",DataLog!AH3245,\"\")","v":""},{"$f":"IF(DataLog!$C3245=\"Log value\",DataLog!AI3245,\"\")","v":""},{"$f":"IF(DataLog!$C3245=\"Log value\",DataLog!AJ3245,\"\")","v":""},{"$f":"IF(DataLog!$C3245=\"Log value\",DataLog!AK3245,\"\")","v":""},{"$f":"IF(DataLog!$C3245=\"Log value\",DataLog!AL3245,\"\")","v":""},{"$f":"IF(DataLog!$C3245=\"Log value\",DataLog!AM3245,\"\")","v":""}]
[null,null,null,null,null,null,{"$f":"IF(DataLog!$C3246=\"Log value\",DataLog!D3246&\"_\"&TEXT(DataLog!B3246,\"åååå-mm-dd\"),\"\")","v":""},{"$f":"IF(DataLog!$C3246=\"Log value\",DataLog!E3246,\"\")","v":""},{"$f":"IF(DataLog!$C3246=\"Log value\",DataLog!F3246,\"\")","v":""},{"$f":"IF(DataLog!$C3246=\"Log value\",DataLog!G3246,\"\")","v":""},{"$f":"IF(DataLog!$C3246=\"Log value\",DataLog!H3246,\"\")","v":""},{"$f":"IF(DataLog!$C3246=\"Log value\",DataLog!I3246,\"\")","v":""},{"$f":"IF(DataLog!$C3246=\"Log value\",DataLog!J3246,\"\")","v":""},{"$f":"IF(DataLog!$C3246=\"Log value\",DataLog!K3246,\"\")","v":""},{"$f":"IF(DataLog!$C3246=\"Log value\",DataLog!L3246,\"\")","v":""},{"$f":"IF(DataLog!$C3246=\"Log value\",DataLog!M3246,\"\")","v":""},{"$f":"IF(DataLog!$C3246=\"Log value\",DataLog!N3246,\"\")","v":""},{"$f":"IF(DataLog!$C3246=\"Log value\",DataLog!O3246,\"\")","v":""},{"$f":"IF(DataLog!$C3246=\"Log value\",DataLog!P3246,\"\")","v":""},{"$f":"IF(DataLog!$C3246=\"Log value\",DataLog!Q3246,\"\")","v":""},{"$f":"IF(DataLog!$C3246=\"Log value\",DataLog!R3246,\"\")","v":""},{"$f":"IF(DataLog!$C3246=\"Log value\",DataLog!S3246,\"\")","v":""},{"$f":"IF(DataLog!$C3246=\"Log value\",DataLog!T3246,\"\")","v":""},{"$f":"IF(DataLog!$C3246=\"Log value\",DataLog!U3246,\"\")","v":""},{"$f":"IF(DataLog!$C3246=\"Log value\",DataLog!V3246,\"\")","v":""},{"$f":"IF(DataLog!$C3246=\"Log value\",DataLog!W3246,\"\")","v":""},{"$f":"IF(DataLog!$C3246=\"Log value\",DataLog!X3246,\"\")","v":""},{"$f":"IF(DataLog!$C3246=\"Log value\",DataLog!Y3246,\"\")","v":""},{"$f":"IF(DataLog!$C3246=\"Log value\",DataLog!Z3246,\"\")","v":""},{"$f":"IF(DataLog!$C3246=\"Log value\",DataLog!AA3246,\"\")","v":""},{"$f":"IF(DataLog!$C3246=\"Log value\",DataLog!AB3246,\"\")","v":""},{"$f":"IF(DataLog!$C3246=\"Log value\",DataLog!AC3246,\"\")","v":""},{"$f":"IF(DataLog!$C3246=\"Log value\",DataLog!AD3246,\"\")","v":""},{"$f":"IF(DataLog!$C3246=\"Log value\",DataLog!AE3246,\"\")","v":""},{"$f":"IF(DataLog!$C3246=\"Log value\",DataLog!AF3246,\"\")","v":""},{"$f":"IF(DataLog!$C3246=\"Log value\",DataLog!AG3246,\"\")","v":""},{"$f":"IF(DataLog!$C3246=\"Log value\",DataLog!AH3246,\"\")","v":""},{"$f":"IF(DataLog!$C3246=\"Log value\",DataLog!AI3246,\"\")","v":""},{"$f":"IF(DataLog!$C3246=\"Log value\",DataLog!AJ3246,\"\")","v":""},{"$f":"IF(DataLog!$C3246=\"Log value\",DataLog!AK3246,\"\")","v":""},{"$f":"IF(DataLog!$C3246=\"Log value\",DataLog!AL3246,\"\")","v":""},{"$f":"IF(DataLog!$C3246=\"Log value\",DataLog!AM3246,\"\")","v":""}]
[null,null,null,null,null,null,{"$f":"IF(DataLog!$C3247=\"Log value\",DataLog!D3247&\"_\"&TEXT(DataLog!B3247,\"åååå-mm-dd\"),\"\")","v":""},{"$f":"IF(DataLog!$C3247=\"Log value\",DataLog!E3247,\"\")","v":""},{"$f":"IF(DataLog!$C3247=\"Log value\",DataLog!F3247,\"\")","v":""},{"$f":"IF(DataLog!$C3247=\"Log value\",DataLog!G3247,\"\")","v":""},{"$f":"IF(DataLog!$C3247=\"Log value\",DataLog!H3247,\"\")","v":""},{"$f":"IF(DataLog!$C3247=\"Log value\",DataLog!I3247,\"\")","v":""},{"$f":"IF(DataLog!$C3247=\"Log value\",DataLog!J3247,\"\")","v":""},{"$f":"IF(DataLog!$C3247=\"Log value\",DataLog!K3247,\"\")","v":""},{"$f":"IF(DataLog!$C3247=\"Log value\",DataLog!L3247,\"\")","v":""},{"$f":"IF(DataLog!$C3247=\"Log value\",DataLog!M3247,\"\")","v":""},{"$f":"IF(DataLog!$C3247=\"Log value\",DataLog!N3247,\"\")","v":""},{"$f":"IF(DataLog!$C3247=\"Log value\",DataLog!O3247,\"\")","v":""},{"$f":"IF(DataLog!$C3247=\"Log value\",DataLog!P3247,\"\")","v":""},{"$f":"IF(DataLog!$C3247=\"Log value\",DataLog!Q3247,\"\")","v":""},{"$f":"IF(DataLog!$C3247=\"Log value\",DataLog!R3247,\"\")","v":""},{"$f":"IF(DataLog!$C3247=\"Log value\",DataLog!S3247,\"\")","v":""},{"$f":"IF(DataLog!$C3247=\"Log value\",DataLog!T3247,\"\")","v":""},{"$f":"IF(DataLog!$C3247=\"Log value\",DataLog!U3247,\"\")","v":""},{"$f":"IF(DataLog!$C3247=\"Log value\",DataLog!V3247,\"\")","v":""},{"$f":"IF(DataLog!$C3247=\"Log value\",DataLog!W3247,\"\")","v":""},{"$f":"IF(DataLog!$C3247=\"Log value\",DataLog!X3247,\"\")","v":""},{"$f":"IF(DataLog!$C3247=\"Log value\",DataLog!Y3247,\"\")","v":""},{"$f":"IF(DataLog!$C3247=\"Log value\",DataLog!Z3247,\"\")","v":""},{"$f":"IF(DataLog!$C3247=\"Log value\",DataLog!AA3247,\"\")","v":""},{"$f":"IF(DataLog!$C3247=\"Log value\",DataLog!AB3247,\"\")","v":""},{"$f":"IF(DataLog!$C3247=\"Log value\",DataLog!AC3247,\"\")","v":""},{"$f":"IF(DataLog!$C3247=\"Log value\",DataLog!AD3247,\"\")","v":""},{"$f":"IF(DataLog!$C3247=\"Log value\",DataLog!AE3247,\"\")","v":""},{"$f":"IF(DataLog!$C3247=\"Log value\",DataLog!AF3247,\"\")","v":""},{"$f":"IF(DataLog!$C3247=\"Log value\",DataLog!AG3247,\"\")","v":""},{"$f":"IF(DataLog!$C3247=\"Log value\",DataLog!AH3247,\"\")","v":""},{"$f":"IF(DataLog!$C3247=\"Log value\",DataLog!AI3247,\"\")","v":""},{"$f":"IF(DataLog!$C3247=\"Log value\",DataLog!AJ3247,\"\")","v":""},{"$f":"IF(DataLog!$C3247=\"Log value\",DataLog!AK3247,\"\")","v":""},{"$f":"IF(DataLog!$C3247=\"Log value\",DataLog!AL3247,\"\")","v":""},{"$f":"IF(DataLog!$C3247=\"Log value\",DataLog!AM3247,\"\")","v":""}]
[null,null,null,null,null,null,{"$f":"IF(DataLog!$C3248=\"Log value\",DataLog!D3248&\"_\"&TEXT(DataLog!B3248,\"åååå-mm-dd\"),\"\")","v":""},{"$f":"IF(DataLog!$C3248=\"Log value\",DataLog!E3248,\"\")","v":""},{"$f":"IF(DataLog!$C3248=\"Log value\",DataLog!F3248,\"\")","v":""},{"$f":"IF(DataLog!$C3248=\"Log value\",DataLog!G3248,\"\")","v":""},{"$f":"IF(DataLog!$C3248=\"Log value\",DataLog!H3248,\"\")","v":""},{"$f":"IF(DataLog!$C3248=\"Log value\",DataLog!I3248,\"\")","v":""},{"$f":"IF(DataLog!$C3248=\"Log value\",DataLog!J3248,\"\")","v":""},{"$f":"IF(DataLog!$C3248=\"Log value\",DataLog!K3248,\"\")","v":""},{"$f":"IF(DataLog!$C3248=\"Log value\",DataLog!L3248,\"\")","v":""},{"$f":"IF(DataLog!$C3248=\"Log value\",DataLog!M3248,\"\")","v":""},{"$f":"IF(DataLog!$C3248=\"Log value\",DataLog!N3248,\"\")","v":""},{"$f":"IF(DataLog!$C3248=\"Log value\",DataLog!O3248,\"\")","v":""},{"$f":"IF(DataLog!$C3248=\"Log value\",DataLog!P3248,\"\")","v":""},{"$f":"IF(DataLog!$C3248=\"Log value\",DataLog!Q3248,\"\")","v":""},{"$f":"IF(DataLog!$C3248=\"Log value\",DataLog!R3248,\"\")","v":""},{"$f":"IF(DataLog!$C3248=\"Log value\",DataLog!S3248,\"\")","v":""},{"$f":"IF(DataLog!$C3248=\"Log value\",DataLog!T3248,\"\")","v":""},{"$f":"IF(DataLog!$C3248=\"Log value\",DataLog!U3248,\"\")","v":""},{"$f":"IF(DataLog!$C3248=\"Log value\",DataLog!V3248,\"\")","v":""},{"$f":"IF(DataLog!$C3248=\"Log value\",DataLog!W3248,\"\")","v":""},{"$f":"IF(DataLog!$C3248=\"Log value\",DataLog!X3248,\"\")","v":""},{"$f":"IF(DataLog!$C3248=\"Log value\",DataLog!Y3248,\"\")","v":""},{"$f":"IF(DataLog!$C3248=\"Log value\",DataLog!Z3248,\"\")","v":""},{"$f":"IF(DataLog!$C3248=\"Log value\",DataLog!AA3248,\"\")","v":""},{"$f":"IF(DataLog!$C3248=\"Log value\",DataLog!AB3248,\"\")","v":""},{"$f":"IF(DataLog!$C3248=\"Log value\",DataLog!AC3248,\"\")","v":""},{"$f":"IF(DataLog!$C3248=\"Log value\",DataLog!AD3248,\"\")","v":""},{"$f":"IF(DataLog!$C3248=\"Log value\",DataLog!AE3248,\"\")","v":""},{"$f":"IF(DataLog!$C3248=\"Log value\",DataLog!AF3248,\"\")","v":""},{"$f":"IF(DataLog!$C3248=\"Log value\",DataLog!AG3248,\"\")","v":""},{"$f":"IF(DataLog!$C3248=\"Log value\",DataLog!AH3248,\"\")","v":""},{"$f":"IF(DataLog!$C3248=\"Log value\",DataLog!AI3248,\"\")","v":""},{"$f":"IF(DataLog!$C3248=\"Log value\",DataLog!AJ3248,\"\")","v":""},{"$f":"IF(DataLog!$C3248=\"Log value\",DataLog!AK3248,\"\")","v":""},{"$f":"IF(DataLog!$C3248=\"Log value\",DataLog!AL3248,\"\")","v":""},{"$f":"IF(DataLog!$C3248=\"Log value\",DataLog!AM3248,\"\")","v":""}]
[null,null,null,null,null,null,{"$f":"IF(DataLog!$C3249=\"Log value\",DataLog!D3249&\"_\"&TEXT(DataLog!B3249,\"åååå-mm-dd\"),\"\")","v":""},{"$f":"IF(DataLog!$C3249=\"Log value\",DataLog!E3249,\"\")","v":""},{"$f":"IF(DataLog!$C3249=\"Log value\",DataLog!F3249,\"\")","v":""},{"$f":"IF(DataLog!$C3249=\"Log value\",DataLog!G3249,\"\")","v":""},{"$f":"IF(DataLog!$C3249=\"Log value\",DataLog!H3249,\"\")","v":""},{"$f":"IF(DataLog!$C3249=\"Log value\",DataLog!I3249,\"\")","v":""},{"$f":"IF(DataLog!$C3249=\"Log value\",DataLog!J3249,\"\")","v":""},{"$f":"IF(DataLog!$C3249=\"Log value\",DataLog!K3249,\"\")","v":""},{"$f":"IF(DataLog!$C3249=\"Log value\",DataLog!L3249,\"\")","v":""},{"$f":"IF(DataLog!$C3249=\"Log value\",DataLog!M3249,\"\")","v":""},{"$f":"IF(DataLog!$C3249=\"Log value\",DataLog!N3249,\"\")","v":""},{"$f":"IF(DataLog!$C3249=\"Log value\",DataLog!O3249,\"\")","v":""},{"$f":"IF(DataLog!$C3249=\"Log value\",DataLog!P3249,\"\")","v":""},{"$f":"IF(DataLog!$C3249=\"Log value\",DataLog!Q3249,\"\")","v":""},{"$f":"IF(DataLog!$C3249=\"Log value\",DataLog!R3249,\"\")","v":""},{"$f":"IF(DataLog!$C3249=\"Log value\",DataLog!S3249,\"\")","v":""},{"$f":"IF(DataLog!$C3249=\"Log value\",DataLog!T3249,\"\")","v":""},{"$f":"IF(DataLog!$C3249=\"Log value\",DataLog!U3249,\"\")","v":""},{"$f":"IF(DataLog!$C3249=\"Log value\",DataLog!V3249,\"\")","v":""},{"$f":"IF(DataLog!$C3249=\"Log value\",DataLog!W3249,\"\")","v":""},{"$f":"IF(DataLog!$C3249=\"Log value\",DataLog!X3249,\"\")","v":""},{"$f":"IF(DataLog!$C3249=\"Log value\",DataLog!Y3249,\"\")","v":""},{"$f":"IF(DataLog!$C3249=\"Log value\",DataLog!Z3249,\"\")","v":""},{"$f":"IF(DataLog!$C3249=\"Log value\",DataLog!AA3249,\"\")","v":""},{"$f":"IF(DataLog!$C3249=\"Log value\",DataLog!AB3249,\"\")","v":""},{"$f":"IF(DataLog!$C3249=\"Log value\",DataLog!AC3249,\"\")","v":""},{"$f":"IF(DataLog!$C3249=\"Log value\",DataLog!AD3249,\"\")","v":""},{"$f":"IF(DataLog!$C3249=\"Log value\",DataLog!AE3249,\"\")","v":""},{"$f":"IF(DataLog!$C3249=\"Log value\",DataLog!AF3249,\"\")","v":""},{"$f":"IF(DataLog!$C3249=\"Log value\",DataLog!AG3249,\"\")","v":""},{"$f":"IF(DataLog!$C3249=\"Log value\",DataLog!AH3249,\"\")","v":""},{"$f":"IF(DataLog!$C3249=\"Log value\",DataLog!AI3249,\"\")","v":""},{"$f":"IF(DataLog!$C3249=\"Log value\",DataLog!AJ3249,\"\")","v":""},{"$f":"IF(DataLog!$C3249=\"Log value\",DataLog!AK3249,\"\")","v":""},{"$f":"IF(DataLog!$C3249=\"Log value\",DataLog!AL3249,\"\")","v":""},{"$f":"IF(DataLog!$C3249=\"Log value\",DataLog!AM3249,\"\")","v":""}]
[null,null,null,null,null,null,{"$f":"IF(DataLog!$C3250=\"Log value\",DataLog!D3250&\"_\"&TEXT(DataLog!B3250,\"åååå-mm-dd\"),\"\")","v":""},{"$f":"IF(DataLog!$C3250=\"Log value\",DataLog!E3250,\"\")","v":""},{"$f":"IF(DataLog!$C3250=\"Log value\",DataLog!F3250,\"\")","v":""},{"$f":"IF(DataLog!$C3250=\"Log value\",DataLog!G3250,\"\")","v":""},{"$f":"IF(DataLog!$C3250=\"Log value\",DataLog!H3250,\"\")","v":""},{"$f":"IF(DataLog!$C3250=\"Log value\",DataLog!I3250,\"\")","v":""},{"$f":"IF(DataLog!$C3250=\"Log value\",DataLog!J3250,\"\")","v":""},{"$f":"IF(DataLog!$C3250=\"Log value\",DataLog!K3250,\"\")","v":""},{"$f":"IF(DataLog!$C3250=\"Log value\",DataLog!L3250,\"\")","v":""},{"$f":"IF(DataLog!$C3250=\"Log value\",DataLog!M3250,\"\")","v":""},{"$f":"IF(DataLog!$C3250=\"Log value\",DataLog!N3250,\"\")","v":""},{"$f":"IF(DataLog!$C3250=\"Log value\",DataLog!O3250,\"\")","v":""},{"$f":"IF(DataLog!$C3250=\"Log value\",DataLog!P3250,\"\")","v":""},{"$f":"IF(DataLog!$C3250=\"Log value\",DataLog!Q3250,\"\")","v":""},{"$f":"IF(DataLog!$C3250=\"Log value\",DataLog!R3250,\"\")","v":""},{"$f":"IF(DataLog!$C3250=\"Log value\",DataLog!S3250,\"\")","v":""},{"$f":"IF(DataLog!$C3250=\"Log value\",DataLog!T3250,\"\")","v":""},{"$f":"IF(DataLog!$C3250=\"Log value\",DataLog!U3250,\"\")","v":""},{"$f":"IF(DataLog!$C3250=\"Log value\",DataLog!V3250,\"\")","v":""},{"$f":"IF(DataLog!$C3250=\"Log value\",DataLog!W3250,\"\")","v":""},{"$f":"IF(DataLog!$C3250=\"Log value\",DataLog!X3250,\"\")","v":""},{"$f":"IF(DataLog!$C3250=\"Log value\",DataLog!Y3250,\"\")","v":""},{"$f":"IF(DataLog!$C3250=\"Log value\",DataLog!Z3250,\"\")","v":""},{"$f":"IF(DataLog!$C3250=\"Log value\",DataLog!AA3250,\"\")","v":""},{"$f":"IF(DataLog!$C3250=\"Log value\",DataLog!AB3250,\"\")","v":""},{"$f":"IF(DataLog!$C3250=\"Log value\",DataLog!AC3250,\"\")","v":""},{"$f":"IF(DataLog!$C3250=\"Log value\",DataLog!AD3250,\"\")","v":""},{"$f":"IF(DataLog!$C3250=\"Log value\",DataLog!AE3250,\"\")","v":""},{"$f":"IF(DataLog!$C3250=\"Log value\",DataLog!AF3250,\"\")","v":""},{"$f":"IF(DataLog!$C3250=\"Log value\",DataLog!AG3250,\"\")","v":""},{"$f":"IF(DataLog!$C3250=\"Log value\",DataLog!AH3250,\"\")","v":""},{"$f":"IF(DataLog!$C3250=\"Log value\",DataLog!AI3250,\"\")","v":""},{"$f":"IF(DataLog!$C3250=\"Log value\",DataLog!AJ3250,\"\")","v":""},{"$f":"IF(DataLog!$C3250=\"Log value\",DataLog!AK3250,\"\")","v":""},{"$f":"IF(DataLog!$C3250=\"Log value\",DataLog!AL3250,\"\")","v":""},{"$f":"IF(DataLog!$C3250=\"Log value\",DataLog!AM3250,\"\")","v":""}]
[null,null,null,null,null,null,{"$f":"IF(DataLog!$C3251=\"Log value\",DataLog!D3251&\"_\"&TEXT(DataLog!B3251,\"åååå-mm-dd\"),\"\")","v":""},{"$f":"IF(DataLog!$C3251=\"Log value\",DataLog!E3251,\"\")","v":""},{"$f":"IF(DataLog!$C3251=\"Log value\",DataLog!F3251,\"\")","v":""},{"$f":"IF(DataLog!$C3251=\"Log value\",DataLog!G3251,\"\")","v":""},{"$f":"IF(DataLog!$C3251=\"Log value\",DataLog!H3251,\"\")","v":""},{"$f":"IF(DataLog!$C3251=\"Log value\",DataLog!I3251,\"\")","v":""},{"$f":"IF(DataLog!$C3251=\"Log value\",DataLog!J3251,\"\")","v":""},{"$f":"IF(DataLog!$C3251=\"Log value\",DataLog!K3251,\"\")","v":""},{"$f":"IF(DataLog!$C3251=\"Log value\",DataLog!L3251,\"\")","v":""},{"$f":"IF(DataLog!$C3251=\"Log value\",DataLog!M3251,\"\")","v":""},{"$f":"IF(DataLog!$C3251=\"Log value\",DataLog!N3251,\"\")","v":""},{"$f":"IF(DataLog!$C3251=\"Log value\",DataLog!O3251,\"\")","v":""},{"$f":"IF(DataLog!$C3251=\"Log value\",DataLog!P3251,\"\")","v":""},{"$f":"IF(DataLog!$C3251=\"Log value\",DataLog!Q3251,\"\")","v":""},{"$f":"IF(DataLog!$C3251=\"Log value\",DataLog!R3251,\"\")","v":""},{"$f":"IF(DataLog!$C3251=\"Log value\",DataLog!S3251,\"\")","v":""},{"$f":"IF(DataLog!$C3251=\"Log value\",DataLog!T3251,\"\")","v":""},{"$f":"IF(DataLog!$C3251=\"Log value\",DataLog!U3251,\"\")","v":""},{"$f":"IF(DataLog!$C3251=\"Log value\",DataLog!V3251,\"\")","v":""},{"$f":"IF(DataLog!$C3251=\"Log value\",DataLog!W3251,\"\")","v":""},{"$f":"IF(DataLog!$C3251=\"Log value\",DataLog!X3251,\"\")","v":""},{"$f":"IF(DataLog!$C3251=\"Log value\",DataLog!Y3251,\"\")","v":""},{"$f":"IF(DataLog!$C3251=\"Log value\",DataLog!Z3251,\"\")","v":""},{"$f":"IF(DataLog!$C3251=\"Log value\",DataLog!AA3251,\"\")","v":""},{"$f":"IF(DataLog!$C3251=\"Log value\",DataLog!AB3251,\"\")","v":""},{"$f":"IF(DataLog!$C3251=\"Log value\",DataLog!AC3251,\"\")","v":""},{"$f":"IF(DataLog!$C3251=\"Log value\",DataLog!AD3251,\"\")","v":""},{"$f":"IF(DataLog!$C3251=\"Log value\",DataLog!AE3251,\"\")","v":""},{"$f":"IF(DataLog!$C3251=\"Log value\",DataLog!AF3251,\"\")","v":""},{"$f":"IF(DataLog!$C3251=\"Log value\",DataLog!AG3251,\"\")","v":""},{"$f":"IF(DataLog!$C3251=\"Log value\",DataLog!AH3251,\"\")","v":""},{"$f":"IF(DataLog!$C3251=\"Log value\",DataLog!AI3251,\"\")","v":""},{"$f":"IF(DataLog!$C3251=\"Log value\",DataLog!AJ3251,\"\")","v":""},{"$f":"IF(DataLog!$C3251=\"Log value\",DataLog!AK3251,\"\")","v":""},{"$f":"IF(DataLog!$C3251=\"Log value\",DataLog!AL3251,\"\")","v":""},{"$f":"IF(DataLog!$C3251=\"Log value\",DataLog!AM3251,\"\")","v":""}]
[null,null,null,null,null,null,{"$f":"IF(DataLog!$C3252=\"Log value\",DataLog!D3252&\"_\"&TEXT(DataLog!B3252,\"åååå-mm-dd\"),\"\")","v":""},{"$f":"IF(DataLog!$C3252=\"Log value\",DataLog!E3252,\"\")","v":""},{"$f":"IF(DataLog!$C3252=\"Log value\",DataLog!F3252,\"\")","v":""},{"$f":"IF(DataLog!$C3252=\"Log value\",DataLog!G3252,\"\")","v":""},{"$f":"IF(DataLog!$C3252=\"Log value\",DataLog!H3252,\"\")","v":""},{"$f":"IF(DataLog!$C3252=\"Log value\",DataLog!I3252,\"\")","v":""},{"$f":"IF(DataLog!$C3252=\"Log value\",DataLog!J3252,\"\")","v":""},{"$f":"IF(DataLog!$C3252=\"Log value\",DataLog!K3252,\"\")","v":""},{"$f":"IF(DataLog!$C3252=\"Log value\",DataLog!L3252,\"\")","v":""},{"$f":"IF(DataLog!$C3252=\"Log value\",DataLog!M3252,\"\")","v":""},{"$f":"IF(DataLog!$C3252=\"Log value\",DataLog!N3252,\"\")","v":""},{"$f":"IF(DataLog!$C3252=\"Log value\",DataLog!O3252,\"\")","v":""},{"$f":"IF(DataLog!$C3252=\"Log value\",DataLog!P3252,\"\")","v":""},{"$f":"IF(DataLog!$C3252=\"Log value\",DataLog!Q3252,\"\")","v":""},{"$f":"IF(DataLog!$C3252=\"Log value\",DataLog!R3252,\"\")","v":""},{"$f":"IF(DataLog!$C3252=\"Log value\",DataLog!S3252,\"\")","v":""},{"$f":"IF(DataLog!$C3252=\"Log value\",DataLog!T3252,\"\")","v":""},{"$f":"IF(DataLog!$C3252=\"Log value\",DataLog!U3252,\"\")","v":""},{"$f":"IF(DataLog!$C3252=\"Log value\",DataLog!V3252,\"\")","v":""},{"$f":"IF(DataLog!$C3252=\"Log value\",DataLog!W3252,\"\")","v":""},{"$f":"IF(DataLog!$C3252=\"Log value\",DataLog!X3252,\"\")","v":""},{"$f":"IF(DataLog!$C3252=\"Log value\",DataLog!Y3252,\"\")","v":""},{"$f":"IF(DataLog!$C3252=\"Log value\",DataLog!Z3252,\"\")","v":""},{"$f":"IF(DataLog!$C3252=\"Log value\",DataLog!AA3252,\"\")","v":""},{"$f":"IF(DataLog!$C3252=\"Log value\",DataLog!AB3252,\"\")","v":""},{"$f":"IF(DataLog!$C3252=\"Log value\",DataLog!AC3252,\"\")","v":""},{"$f":"IF(DataLog!$C3252=\"Log value\",DataLog!AD3252,\"\")","v":""},{"$f":"IF(DataLog!$C3252=\"Log value\",DataLog!AE3252,\"\")","v":""},{"$f":"IF(DataLog!$C3252=\"Log value\",DataLog!AF3252,\"\")","v":""},{"$f":"IF(DataLog!$C3252=\"Log value\",DataLog!AG3252,\"\")","v":""},{"$f":"IF(DataLog!$C3252=\"Log value\",DataLog!AH3252,\"\")","v":""},{"$f":"IF(DataLog!$C3252=\"Log value\",DataLog!AI3252,\"\")","v":""},{"$f":"IF(DataLog!$C3252=\"Log value\",DataLog!AJ3252,\"\")","v":""},{"$f":"IF(DataLog!$C3252=\"Log value\",DataLog!AK3252,\"\")","v":""},{"$f":"IF(DataLog!$C3252=\"Log value\",DataLog!AL3252,\"\")","v":""},{"$f":"IF(DataLog!$C3252=\"Log value\",DataLog!AM3252,\"\")","v":""}]
[null,null,null,null,null,null,{"$f":"IF(DataLog!$C3253=\"Log value\",DataLog!D3253&\"_\"&TEXT(DataLog!B3253,\"åååå-mm-dd\"),\"\")","v":""},{"$f":"IF(DataLog!$C3253=\"Log value\",DataLog!E3253,\"\")","v":""},{"$f":"IF(DataLog!$C3253=\"Log value\",DataLog!F3253,\"\")","v":""},{"$f":"IF(DataLog!$C3253=\"Log value\",DataLog!G3253,\"\")","v":""},{"$f":"IF(DataLog!$C3253=\"Log value\",DataLog!H3253,\"\")","v":""},{"$f":"IF(DataLog!$C3253=\"Log value\",DataLog!I3253,\"\")","v":""},{"$f":"IF(DataLog!$C3253=\"Log value\",DataLog!J3253,\"\")","v":""},{"$f":"IF(DataLog!$C3253=\"Log value\",DataLog!K3253,\"\")","v":""},{"$f":"IF(DataLog!$C3253=\"Log value\",DataLog!L3253,\"\")","v":""},{"$f":"IF(DataLog!$C3253=\"Log value\",DataLog!M3253,\"\")","v":""},{"$f":"IF(DataLog!$C3253=\"Log value\",DataLog!N3253,\"\")","v":""},{"$f":"IF(DataLog!$C3253=\"Log value\",DataLog!O3253,\"\")","v":""},{"$f":"IF(DataLog!$C3253=\"Log value\",DataLog!P3253,\"\")","v":""},{"$f":"IF(DataLog!$C3253=\"Log value\",DataLog!Q3253,\"\")","v":""},{"$f":"IF(DataLog!$C3253=\"Log value\",DataLog!R3253,\"\")","v":""},{"$f":"IF(DataLog!$C3253=\"Log value\",DataLog!S3253,\"\")","v":""},{"$f":"IF(DataLog!$C3253=\"Log value\",DataLog!T3253,\"\")","v":""},{"$f":"IF(DataLog!$C3253=\"Log value\",DataLog!U3253,\"\")","v":""},{"$f":"IF(DataLog!$C3253=\"Log value\",DataLog!V3253,\"\")","v":""},{"$f":"IF(DataLog!$C3253=\"Log value\",DataLog!W3253,\"\")","v":""},{"$f":"IF(DataLog!$C3253=\"Log value\",DataLog!X3253,\"\")","v":""},{"$f":"IF(DataLog!$C3253=\"Log value\",DataLog!Y3253,\"\")","v":""},{"$f":"IF(DataLog!$C3253=\"Log value\",DataLog!Z3253,\"\")","v":""},{"$f":"IF(DataLog!$C3253=\"Log value\",DataLog!AA3253,\"\")","v":""},{"$f":"IF(DataLog!$C3253=\"Log value\",DataLog!AB3253,\"\")","v":""},{"$f":"IF(DataLog!$C3253=\"Log value\",DataLog!AC3253,\"\")","v":""},{"$f":"IF(DataLog!$C3253=\"Log value\",DataLog!AD3253,\"\")","v":""},{"$f":"IF(DataLog!$C3253=\"Log value\",DataLog!AE3253,\"\")","v":""},{"$f":"IF(DataLog!$C3253=\"Log value\",DataLog!AF3253,\"\")","v":""},{"$f":"IF(DataLog!$C3253=\"Log value\",DataLog!AG3253,\"\")","v":""},{"$f":"IF(DataLog!$C3253=\"Log value\",DataLog!AH3253,\"\")","v":""},{"$f":"IF(DataLog!$C3253=\"Log value\",DataLog!AI3253,\"\")","v":""},{"$f":"IF(DataLog!$C3253=\"Log value\",DataLog!AJ3253,\"\")","v":""},{"$f":"IF(DataLog!$C3253=\"Log value\",DataLog!AK3253,\"\")","v":""},{"$f":"IF(DataLog!$C3253=\"Log value\",DataLog!AL3253,\"\")","v":""},{"$f":"IF(DataLog!$C3253=\"Log value\",DataLog!AM3253,\"\")","v":""}]
[null,null,null,null,null,null,{"$f":"IF(DataLog!$C3254=\"Log value\",DataLog!D3254&\"_\"&TEXT(DataLog!B3254,\"åååå-mm-dd\"),\"\")","v":""},{"$f":"IF(DataLog!$C3254=\"Log value\",DataLog!E3254,\"\")","v":""},{"$f":"IF(DataLog!$C3254=\"Log value\",DataLog!F3254,\"\")","v":""},{"$f":"IF(DataLog!$C3254=\"Log value\",DataLog!G3254,\"\")","v":""},{"$f":"IF(DataLog!$C3254=\"Log value\",DataLog!H3254,\"\")","v":""},{"$f":"IF(DataLog!$C3254=\"Log value\",DataLog!I3254,\"\")","v":""},{"$f":"IF(DataLog!$C3254=\"Log value\",DataLog!J3254,\"\")","v":""},{"$f":"IF(DataLog!$C3254=\"Log value\",DataLog!K3254,\"\")","v":""},{"$f":"IF(DataLog!$C3254=\"Log value\",DataLog!L3254,\"\")","v":""},{"$f":"IF(DataLog!$C3254=\"Log value\",DataLog!M3254,\"\")","v":""},{"$f":"IF(DataLog!$C3254=\"Log value\",DataLog!N3254,\"\")","v":""},{"$f":"IF(DataLog!$C3254=\"Log value\",DataLog!O3254,\"\")","v":""},{"$f":"IF(DataLog!$C3254=\"Log value\",DataLog!P3254,\"\")","v":""},{"$f":"IF(DataLog!$C3254=\"Log value\",DataLog!Q3254,\"\")","v":""},{"$f":"IF(DataLog!$C3254=\"Log value\",DataLog!R3254,\"\")","v":""},{"$f":"IF(DataLog!$C3254=\"Log value\",DataLog!S3254,\"\")","v":""},{"$f":"IF(DataLog!$C3254=\"Log value\",DataLog!T3254,\"\")","v":""},{"$f":"IF(DataLog!$C3254=\"Log value\",DataLog!U3254,\"\")","v":""},{"$f":"IF(DataLog!$C3254=\"Log value\",DataLog!V3254,\"\")","v":""},{"$f":"IF(DataLog!$C3254=\"Log value\",DataLog!W3254,\"\")","v":""},{"$f":"IF(DataLog!$C3254=\"Log value\",DataLog!X3254,\"\")","v":""},{"$f":"IF(DataLog!$C3254=\"Log value\",DataLog!Y3254,\"\")","v":""},{"$f":"IF(DataLog!$C3254=\"Log value\",DataLog!Z3254,\"\")","v":""},{"$f":"IF(DataLog!$C3254=\"Log value\",DataLog!AA3254,\"\")","v":""},{"$f":"IF(DataLog!$C3254=\"Log value\",DataLog!AB3254,\"\")","v":""},{"$f":"IF(DataLog!$C3254=\"Log value\",DataLog!AC3254,\"\")","v":""},{"$f":"IF(DataLog!$C3254=\"Log value\",DataLog!AD3254,\"\")","v":""},{"$f":"IF(DataLog!$C3254=\"Log value\",DataLog!AE3254,\"\")","v":""},{"$f":"IF(DataLog!$C3254=\"Log value\",DataLog!AF3254,\"\")","v":""},{"$f":"IF(DataLog!$C3254=\"Log value\",DataLog!AG3254,\"\")","v":""},{"$f":"IF(DataLog!$C3254=\"Log value\",DataLog!AH3254,\"\")","v":""},{"$f":"IF(DataLog!$C3254=\"Log value\",DataLog!AI3254,\"\")","v":""},{"$f":"IF(DataLog!$C3254=\"Log value\",DataLog!AJ3254,\"\")","v":""},{"$f":"IF(DataLog!$C3254=\"Log value\",DataLog!AK3254,\"\")","v":""},{"$f":"IF(DataLog!$C3254=\"Log value\",DataLog!AL3254,\"\")","v":""},{"$f":"IF(DataLog!$C3254=\"Log value\",DataLog!AM3254,\"\")","v":""}]
[null,null,null,null,null,null,{"$f":"IF(DataLog!$C3255=\"Log value\",DataLog!D3255&\"_\"&TEXT(DataLog!B3255,\"åååå-mm-dd\"),\"\")","v":""},{"$f":"IF(DataLog!$C3255=\"Log value\",DataLog!E3255,\"\")","v":""},{"$f":"IF(DataLog!$C3255=\"Log value\",DataLog!F3255,\"\")","v":""},{"$f":"IF(DataLog!$C3255=\"Log value\",DataLog!G3255,\"\")","v":""},{"$f":"IF(DataLog!$C3255=\"Log value\",DataLog!H3255,\"\")","v":""},{"$f":"IF(DataLog!$C3255=\"Log value\",DataLog!I3255,\"\")","v":""},{"$f":"IF(DataLog!$C3255=\"Log value\",DataLog!J3255,\"\")","v":""},{"$f":"IF(DataLog!$C3255=\"Log value\",DataLog!K3255,\"\")","v":""},{"$f":"IF(DataLog!$C3255=\"Log value\",DataLog!L3255,\"\")","v":""},{"$f":"IF(DataLog!$C3255=\"Log value\",DataLog!M3255,\"\")","v":""},{"$f":"IF(DataLog!$C3255=\"Log value\",DataLog!N3255,\"\")","v":""},{"$f":"IF(DataLog!$C3255=\"Log value\",DataLog!O3255,\"\")","v":""},{"$f":"IF(DataLog!$C3255=\"Log value\",DataLog!P3255,\"\")","v":""},{"$f":"IF(DataLog!$C3255=\"Log value\",DataLog!Q3255,\"\")","v":""},{"$f":"IF(DataLog!$C3255=\"Log value\",DataLog!R3255,\"\")","v":""},{"$f":"IF(DataLog!$C3255=\"Log value\",DataLog!S3255,\"\")","v":""},{"$f":"IF(DataLog!$C3255=\"Log value\",DataLog!T3255,\"\")","v":""},{"$f":"IF(DataLog!$C3255=\"Log value\",DataLog!U3255,\"\")","v":""},{"$f":"IF(DataLog!$C3255=\"Log value\",DataLog!V3255,\"\")","v":""},{"$f":"IF(DataLog!$C3255=\"Log value\",DataLog!W3255,\"\")","v":""},{"$f":"IF(DataLog!$C3255=\"Log value\",DataLog!X3255,\"\")","v":""},{"$f":"IF(DataLog!$C3255=\"Log value\",DataLog!Y3255,\"\")","v":""},{"$f":"IF(DataLog!$C3255=\"Log value\",DataLog!Z3255,\"\")","v":""},{"$f":"IF(DataLog!$C3255=\"Log value\",DataLog!AA3255,\"\")","v":""},{"$f":"IF(DataLog!$C3255=\"Log value\",DataLog!AB3255,\"\")","v":""},{"$f":"IF(DataLog!$C3255=\"Log value\",DataLog!AC3255,\"\")","v":""},{"$f":"IF(DataLog!$C3255=\"Log value\",DataLog!AD3255,\"\")","v":""},{"$f":"IF(DataLog!$C3255=\"Log value\",DataLog!AE3255,\"\")","v":""},{"$f":"IF(DataLog!$C3255=\"Log value\",DataLog!AF3255,\"\")","v":""},{"$f":"IF(DataLog!$C3255=\"Log value\",DataLog!AG3255,\"\")","v":""},{"$f":"IF(DataLog!$C3255=\"Log value\",DataLog!AH3255,\"\")","v":""},{"$f":"IF(DataLog!$C3255=\"Log value\",DataLog!AI3255,\"\")","v":""},{"$f":"IF(DataLog!$C3255=\"Log value\",DataLog!AJ3255,\"\")","v":""},{"$f":"IF(DataLog!$C3255=\"Log value\",DataLog!AK3255,\"\")","v":""},{"$f":"IF(DataLog!$C3255=\"Log value\",DataLog!AL3255,\"\")","v":""},{"$f":"IF(DataLog!$C3255=\"Log value\",DataLog!AM3255,\"\")","v":""}]
[null,null,null,null,null,null,{"$f":"IF(DataLog!$C3256=\"Log value\",DataLog!D3256&\"_\"&TEXT(DataLog!B3256,\"åååå-mm-dd\"),\"\")","v":""},{"$f":"IF(DataLog!$C3256=\"Log value\",DataLog!E3256,\"\")","v":""},{"$f":"IF(DataLog!$C3256=\"Log value\",DataLog!F3256,\"\")","v":""},{"$f":"IF(DataLog!$C3256=\"Log value\",DataLog!G3256,\"\")","v":""},{"$f":"IF(DataLog!$C3256=\"Log value\",DataLog!H3256,\"\")","v":""},{"$f":"IF(DataLog!$C3256=\"Log value\",DataLog!I3256,\"\")","v":""},{"$f":"IF(DataLog!$C3256=\"Log value\",DataLog!J3256,\"\")","v":""},{"$f":"IF(DataLog!$C3256=\"Log value\",DataLog!K3256,\"\")","v":""},{"$f":"IF(DataLog!$C3256=\"Log value\",DataLog!L3256,\"\")","v":""},{"$f":"IF(DataLog!$C3256=\"Log value\",DataLog!M3256,\"\")","v":""},{"$f":"IF(DataLog!$C3256=\"Log value\",DataLog!N3256,\"\")","v":""},{"$f":"IF(DataLog!$C3256=\"Log value\",DataLog!O3256,\"\")","v":""},{"$f":"IF(DataLog!$C3256=\"Log value\",DataLog!P3256,\"\")","v":""},{"$f":"IF(DataLog!$C3256=\"Log value\",DataLog!Q3256,\"\")","v":""},{"$f":"IF(DataLog!$C3256=\"Log value\",DataLog!R3256,\"\")","v":""},{"$f":"IF(DataLog!$C3256=\"Log value\",DataLog!S3256,\"\")","v":""},{"$f":"IF(DataLog!$C3256=\"Log value\",DataLog!T3256,\"\")","v":""},{"$f":"IF(DataLog!$C3256=\"Log value\",DataLog!U3256,\"\")","v":""},{"$f":"IF(DataLog!$C3256=\"Log value\",DataLog!V3256,\"\")","v":""},{"$f":"IF(DataLog!$C3256=\"Log value\",DataLog!W3256,\"\")","v":""},{"$f":"IF(DataLog!$C3256=\"Log value\",DataLog!X3256,\"\")","v":""},{"$f":"IF(DataLog!$C3256=\"Log value\",DataLog!Y3256,\"\")","v":""},{"$f":"IF(DataLog!$C3256=\"Log value\",DataLog!Z3256,\"\")","v":""},{"$f":"IF(DataLog!$C3256=\"Log value\",DataLog!AA3256,\"\")","v":""},{"$f":"IF(DataLog!$C3256=\"Log value\",DataLog!AB3256,\"\")","v":""},{"$f":"IF(DataLog!$C3256=\"Log value\",DataLog!AC3256,\"\")","v":""},{"$f":"IF(DataLog!$C3256=\"Log value\",DataLog!AD3256,\"\")","v":""},{"$f":"IF(DataLog!$C3256=\"Log value\",DataLog!AE3256,\"\")","v":""},{"$f":"IF(DataLog!$C3256=\"Log value\",DataLog!AF3256,\"\")","v":""},{"$f":"IF(DataLog!$C3256=\"Log value\",DataLog!AG3256,\"\")","v":""},{"$f":"IF(DataLog!$C3256=\"Log value\",DataLog!AH3256,\"\")","v":""},{"$f":"IF(DataLog!$C3256=\"Log value\",DataLog!AI3256,\"\")","v":""},{"$f":"IF(DataLog!$C3256=\"Log value\",DataLog!AJ3256,\"\")","v":""},{"$f":"IF(DataLog!$C3256=\"Log value\",DataLog!AK3256,\"\")","v":""},{"$f":"IF(DataLog!$C3256=\"Log value\",DataLog!AL3256,\"\")","v":""},{"$f":"IF(DataLog!$C3256=\"Log value\",DataLog!AM3256,\"\")","v":""}]
[null,null,null,null,null,null,{"$f":"IF(DataLog!$C3257=\"Log value\",DataLog!D3257&\"_\"&TEXT(DataLog!B3257,\"åååå-mm-dd\"),\"\")","v":""},{"$f":"IF(DataLog!$C3257=\"Log value\",DataLog!E3257,\"\")","v":""},{"$f":"IF(DataLog!$C3257=\"Log value\",DataLog!F3257,\"\")","v":""},{"$f":"IF(DataLog!$C3257=\"Log value\",DataLog!G3257,\"\")","v":""},{"$f":"IF(DataLog!$C3257=\"Log value\",DataLog!H3257,\"\")","v":""},{"$f":"IF(DataLog!$C3257=\"Log value\",DataLog!I3257,\"\")","v":""},{"$f":"IF(DataLog!$C3257=\"Log value\",DataLog!J3257,\"\")","v":""},{"$f":"IF(DataLog!$C3257=\"Log value\",DataLog!K3257,\"\")","v":""},{"$f":"IF(DataLog!$C3257=\"Log value\",DataLog!L3257,\"\")","v":""},{"$f":"IF(DataLog!$C3257=\"Log value\",DataLog!M3257,\"\")","v":""},{"$f":"IF(DataLog!$C3257=\"Log value\",DataLog!N3257,\"\")","v":""},{"$f":"IF(DataLog!$C3257=\"Log value\",DataLog!O3257,\"\")","v":""},{"$f":"IF(DataLog!$C3257=\"Log value\",DataLog!P3257,\"\")","v":""},{"$f":"IF(DataLog!$C3257=\"Log value\",DataLog!Q3257,\"\")","v":""},{"$f":"IF(DataLog!$C3257=\"Log value\",DataLog!R3257,\"\")","v":""},{"$f":"IF(DataLog!$C3257=\"Log value\",DataLog!S3257,\"\")","v":""},{"$f":"IF(DataLog!$C3257=\"Log value\",DataLog!T3257,\"\")","v":""},{"$f":"IF(DataLog!$C3257=\"Log value\",DataLog!U3257,\"\")","v":""},{"$f":"IF(DataLog!$C3257=\"Log value\",DataLog!V3257,\"\")","v":""},{"$f":"IF(DataLog!$C3257=\"Log value\",DataLog!W3257,\"\")","v":""},{"$f":"IF(DataLog!$C3257=\"Log value\",DataLog!X3257,\"\")","v":""},{"$f":"IF(DataLog!$C3257=\"Log value\",DataLog!Y3257,\"\")","v":""},{"$f":"IF(DataLog!$C3257=\"Log value\",DataLog!Z3257,\"\")","v":""},{"$f":"IF(DataLog!$C3257=\"Log value\",DataLog!AA3257,\"\")","v":""},{"$f":"IF(DataLog!$C3257=\"Log value\",DataLog!AB3257,\"\")","v":""},{"$f":"IF(DataLog!$C3257=\"Log value\",DataLog!AC3257,\"\")","v":""},{"$f":"IF(DataLog!$C3257=\"Log value\",DataLog!AD3257,\"\")","v":""},{"$f":"IF(DataLog!$C3257=\"Log value\",DataLog!AE3257,\"\")","v":""},{"$f":"IF(DataLog!$C3257=\"Log value\",DataLog!AF3257,\"\")","v":""},{"$f":"IF(DataLog!$C3257=\"Log value\",DataLog!AG3257,\"\")","v":""},{"$f":"IF(DataLog!$C3257=\"Log value\",DataLog!AH3257,\"\")","v":""},{"$f":"IF(DataLog!$C3257=\"Log value\",DataLog!AI3257,\"\")","v":""},{"$f":"IF(DataLog!$C3257=\"Log value\",DataLog!AJ3257,\"\")","v":""},{"$f":"IF(DataLog!$C3257=\"Log value\",DataLog!AK3257,\"\")","v":""},{"$f":"IF(DataLog!$C3257=\"Log value\",DataLog!AL3257,\"\")","v":""},{"$f":"IF(DataLog!$C3257=\"Log value\",DataLog!AM3257,\"\")","v":""}]
[null,null,null,null,null,null,{"$f":"IF(DataLog!$C3258=\"Log value\",DataLog!D3258&\"_\"&TEXT(DataLog!B3258,\"åååå-mm-dd\"),\"\")","v":""},{"$f":"IF(DataLog!$C3258=\"Log value\",DataLog!E3258,\"\")","v":""},{"$f":"IF(DataLog!$C3258=\"Log value\",DataLog!F3258,\"\")","v":""},{"$f":"IF(DataLog!$C3258=\"Log value\",DataLog!G3258,\"\")","v":""},{"$f":"IF(DataLog!$C3258=\"Log value\",DataLog!H3258,\"\")","v":""},{"$f":"IF(DataLog!$C3258=\"Log value\",DataLog!I3258,\"\")","v":""},{"$f":"IF(DataLog!$C3258=\"Log value\",DataLog!J3258,\"\")","v":""},{"$f":"IF(DataLog!$C3258=\"Log value\",DataLog!K3258,\"\")","v":""},{"$f":"IF(DataLog!$C3258=\"Log value\",DataLog!L3258,\"\")","v":""},{"$f":"IF(DataLog!$C3258=\"Log value\",DataLog!M3258,\"\")","v":""},{"$f":"IF(DataLog!$C3258=\"Log value\",DataLog!N3258,\"\")","v":""},{"$f":"IF(DataLog!$C3258=\"Log value\",DataLog!O3258,\"\")","v":""},{"$f":"IF(DataLog!$C3258=\"Log value\",DataLog!P3258,\"\")","v":""},{"$f":"IF(DataLog!$C3258=\"Log value\",DataLog!Q3258,\"\")","v":""},{"$f":"IF(DataLog!$C3258=\"Log value\",DataLog!R3258,\"\")","v":""},{"$f":"IF(DataLog!$C3258=\"Log value\",DataLog!S3258,\"\")","v":""},{"$f":"IF(DataLog!$C3258=\"Log value\",DataLog!T3258,\"\")","v":""},{"$f":"IF(DataLog!$C3258=\"Log value\",DataLog!U3258,\"\")","v":""},{"$f":"IF(DataLog!$C3258=\"Log value\",DataLog!V3258,\"\")","v":""},{"$f":"IF(DataLog!$C3258=\"Log value\",DataLog!W3258,\"\")","v":""},{"$f":"IF(DataLog!$C3258=\"Log value\",DataLog!X3258,\"\")","v":""},{"$f":"IF(DataLog!$C3258=\"Log value\",DataLog!Y3258,\"\")","v":""},{"$f":"IF(DataLog!$C3258=\"Log value\",DataLog!Z3258,\"\")","v":""},{"$f":"IF(DataLog!$C3258=\"Log value\",DataLog!AA3258,\"\")","v":""},{"$f":"IF(DataLog!$C3258=\"Log value\",DataLog!AB3258,\"\")","v":""},{"$f":"IF(DataLog!$C3258=\"Log value\",DataLog!AC3258,\"\")","v":""},{"$f":"IF(DataLog!$C3258=\"Log value\",DataLog!AD3258,\"\")","v":""},{"$f":"IF(DataLog!$C3258=\"Log value\",DataLog!AE3258,\"\")","v":""},{"$f":"IF(DataLog!$C3258=\"Log value\",DataLog!AF3258,\"\")","v":""},{"$f":"IF(DataLog!$C3258=\"Log value\",DataLog!AG3258,\"\")","v":""},{"$f":"IF(DataLog!$C3258=\"Log value\",DataLog!AH3258,\"\")","v":""},{"$f":"IF(DataLog!$C3258=\"Log value\",DataLog!AI3258,\"\")","v":""},{"$f":"IF(DataLog!$C3258=\"Log value\",DataLog!AJ3258,\"\")","v":""},{"$f":"IF(DataLog!$C3258=\"Log value\",DataLog!AK3258,\"\")","v":""},{"$f":"IF(DataLog!$C3258=\"Log value\",DataLog!AL3258,\"\")","v":""},{"$f":"IF(DataLog!$C3258=\"Log value\",DataLog!AM3258,\"\")","v":""}]
[null,null,null,null,null,null,{"$f":"IF(DataLog!$C3259=\"Log value\",DataLog!D3259&\"_\"&TEXT(DataLog!B3259,\"åååå-mm-dd\"),\"\")","v":""},{"$f":"IF(DataLog!$C3259=\"Log value\",DataLog!E3259,\"\")","v":""},{"$f":"IF(DataLog!$C3259=\"Log value\",DataLog!F3259,\"\")","v":""},{"$f":"IF(DataLog!$C3259=\"Log value\",DataLog!G3259,\"\")","v":""},{"$f":"IF(DataLog!$C3259=\"Log value\",DataLog!H3259,\"\")","v":""},{"$f":"IF(DataLog!$C3259=\"Log value\",DataLog!I3259,\"\")","v":""},{"$f":"IF(DataLog!$C3259=\"Log value\",DataLog!J3259,\"\")","v":""},{"$f":"IF(DataLog!$C3259=\"Log value\",DataLog!K3259,\"\")","v":""},{"$f":"IF(DataLog!$C3259=\"Log value\",DataLog!L3259,\"\")","v":""},{"$f":"IF(DataLog!$C3259=\"Log value\",DataLog!M3259,\"\")","v":""},{"$f":"IF(DataLog!$C3259=\"Log value\",DataLog!N3259,\"\")","v":""},{"$f":"IF(DataLog!$C3259=\"Log value\",DataLog!O3259,\"\")","v":""},{"$f":"IF(DataLog!$C3259=\"Log value\",DataLog!P3259,\"\")","v":""},{"$f":"IF(DataLog!$C3259=\"Log value\",DataLog!Q3259,\"\")","v":""},{"$f":"IF(DataLog!$C3259=\"Log value\",DataLog!R3259,\"\")","v":""},{"$f":"IF(DataLog!$C3259=\"Log value\",DataLog!S3259,\"\")","v":""},{"$f":"IF(DataLog!$C3259=\"Log value\",DataLog!T3259,\"\")","v":""},{"$f":"IF(DataLog!$C3259=\"Log value\",DataLog!U3259,\"\")","v":""},{"$f":"IF(DataLog!$C3259=\"Log value\",DataLog!V3259,\"\")","v":""},{"$f":"IF(DataLog!$C3259=\"Log value\",DataLog!W3259,\"\")","v":""},{"$f":"IF(DataLog!$C3259=\"Log value\",DataLog!X3259,\"\")","v":""},{"$f":"IF(DataLog!$C3259=\"Log value\",DataLog!Y3259,\"\")","v":""},{"$f":"IF(DataLog!$C3259=\"Log value\",DataLog!Z3259,\"\")","v":""},{"$f":"IF(DataLog!$C3259=\"Log value\",DataLog!AA3259,\"\")","v":""},{"$f":"IF(DataLog!$C3259=\"Log value\",DataLog!AB3259,\"\")","v":""},{"$f":"IF(DataLog!$C3259=\"Log value\",DataLog!AC3259,\"\")","v":""},{"$f":"IF(DataLog!$C3259=\"Log value\",DataLog!AD3259,\"\")","v":""},{"$f":"IF(DataLog!$C3259=\"Log value\",DataLog!AE3259,\"\")","v":""},{"$f":"IF(DataLog!$C3259=\"Log value\",DataLog!AF3259,\"\")","v":""},{"$f":"IF(DataLog!$C3259=\"Log value\",DataLog!AG3259,\"\")","v":""},{"$f":"IF(DataLog!$C3259=\"Log value\",DataLog!AH3259,\"\")","v":""},{"$f":"IF(DataLog!$C3259=\"Log value\",DataLog!AI3259,\"\")","v":""},{"$f":"IF(DataLog!$C3259=\"Log value\",DataLog!AJ3259,\"\")","v":""},{"$f":"IF(DataLog!$C3259=\"Log value\",DataLog!AK3259,\"\")","v":""},{"$f":"IF(DataLog!$C3259=\"Log value\",DataLog!AL3259,\"\")","v":""},{"$f":"IF(DataLog!$C3259=\"Log value\",DataLog!AM3259,\"\")","v":""}]
[null,null,null,null,null,null,{"$f":"IF(DataLog!$C3260=\"Log value\",DataLog!D3260&\"_\"&TEXT(DataLog!B3260,\"åååå-mm-dd\"),\"\")","v":""},{"$f":"IF(DataLog!$C3260=\"Log value\",DataLog!E3260,\"\")","v":""},{"$f":"IF(DataLog!$C3260=\"Log value\",DataLog!F3260,\"\")","v":""},{"$f":"IF(DataLog!$C3260=\"Log value\",DataLog!G3260,\"\")","v":""},{"$f":"IF(DataLog!$C3260=\"Log value\",DataLog!H3260,\"\")","v":""},{"$f":"IF(DataLog!$C3260=\"Log value\",DataLog!I3260,\"\")","v":""},{"$f":"IF(DataLog!$C3260=\"Log value\",DataLog!J3260,\"\")","v":""},{"$f":"IF(DataLog!$C3260=\"Log value\",DataLog!K3260,\"\")","v":""},{"$f":"IF(DataLog!$C3260=\"Log value\",DataLog!L3260,\"\")","v":""},{"$f":"IF(DataLog!$C3260=\"Log value\",DataLog!M3260,\"\")","v":""},{"$f":"IF(DataLog!$C3260=\"Log value\",DataLog!N3260,\"\")","v":""},{"$f":"IF(DataLog!$C3260=\"Log value\",DataLog!O3260,\"\")","v":""},{"$f":"IF(DataLog!$C3260=\"Log value\",DataLog!P3260,\"\")","v":""},{"$f":"IF(DataLog!$C3260=\"Log value\",DataLog!Q3260,\"\")","v":""},{"$f":"IF(DataLog!$C3260=\"Log value\",DataLog!R3260,\"\")","v":""},{"$f":"IF(DataLog!$C3260=\"Log value\",DataLog!S3260,\"\")","v":""},{"$f":"IF(DataLog!$C3260=\"Log value\",DataLog!T3260,\"\")","v":""},{"$f":"IF(DataLog!$C3260=\"Log value\",DataLog!U3260,\"\")","v":""},{"$f":"IF(DataLog!$C3260=\"Log value\",DataLog!V3260,\"\")","v":""},{"$f":"IF(DataLog!$C3260=\"Log value\",DataLog!W3260,\"\")","v":""},{"$f":"IF(DataLog!$C3260=\"Log value\",DataLog!X3260,\"\")","v":""},{"$f":"IF(DataLog!$C3260=\"Log value\",DataLog!Y3260,\"\")","v":""},{"$f":"IF(DataLog!$C3260=\"Log value\",DataLog!Z3260,\"\")","v":""},{"$f":"IF(DataLog!$C3260=\"Log value\",DataLog!AA3260,\"\")","v":""},{"$f":"IF(DataLog!$C3260=\"Log value\",DataLog!AB3260,\"\")","v":""},{"$f":"IF(DataLog!$C3260=\"Log value\",DataLog!AC3260,\"\")","v":""},{"$f":"IF(DataLog!$C3260=\"Log value\",DataLog!AD3260,\"\")","v":""},{"$f":"IF(DataLog!$C3260=\"Log value\",DataLog!AE3260,\"\")","v":""},{"$f":"IF(DataLog!$C3260=\"Log value\",DataLog!AF3260,\"\")","v":""},{"$f":"IF(DataLog!$C3260=\"Log value\",DataLog!AG3260,\"\")","v":""},{"$f":"IF(DataLog!$C3260=\"Log value\",DataLog!AH3260,\"\")","v":""},{"$f":"IF(DataLog!$C3260=\"Log value\",DataLog!AI3260,\"\")","v":""},{"$f":"IF(DataLog!$C3260=\"Log value\",DataLog!AJ3260,\"\")","v":""},{"$f":"IF(DataLog!$C3260=\"Log value\",DataLog!AK3260,\"\")","v":""},{"$f":"IF(DataLog!$C3260=\"Log value\",DataLog!AL3260,\"\")","v":""},{"$f":"IF(DataLog!$C3260=\"Log value\",DataLog!AM3260,\"\")","v":""}]
[null,null,null,null,null,null,{"$f":"IF(DataLog!$C3261=\"Log value\",DataLog!D3261&\"_\"&TEXT(DataLog!B3261,\"åååå-mm-dd\"),\"\")","v":""},{"$f":"IF(DataLog!$C3261=\"Log value\",DataLog!E3261,\"\")","v":""},{"$f":"IF(DataLog!$C3261=\"Log value\",DataLog!F3261,\"\")","v":""},{"$f":"IF(DataLog!$C3261=\"Log value\",DataLog!G3261,\"\")","v":""},{"$f":"IF(DataLog!$C3261=\"Log value\",DataLog!H3261,\"\")","v":""},{"$f":"IF(DataLog!$C3261=\"Log value\",DataLog!I3261,\"\")","v":""},{"$f":"IF(DataLog!$C3261=\"Log value\",DataLog!J3261,\"\")","v":""},{"$f":"IF(DataLog!$C3261=\"Log value\",DataLog!K3261,\"\")","v":""},{"$f":"IF(DataLog!$C3261=\"Log value\",DataLog!L3261,\"\")","v":""},{"$f":"IF(DataLog!$C3261=\"Log value\",DataLog!M3261,\"\")","v":""},{"$f":"IF(DataLog!$C3261=\"Log value\",DataLog!N3261,\"\")","v":""},{"$f":"IF(DataLog!$C3261=\"Log value\",DataLog!O3261,\"\")","v":""},{"$f":"IF(DataLog!$C3261=\"Log value\",DataLog!P3261,\"\")","v":""},{"$f":"IF(DataLog!$C3261=\"Log value\",DataLog!Q3261,\"\")","v":""},{"$f":"IF(DataLog!$C3261=\"Log value\",DataLog!R3261,\"\")","v":""},{"$f":"IF(DataLog!$C3261=\"Log value\",DataLog!S3261,\"\")","v":""},{"$f":"IF(DataLog!$C3261=\"Log value\",DataLog!T3261,\"\")","v":""},{"$f":"IF(DataLog!$C3261=\"Log value\",DataLog!U3261,\"\")","v":""},{"$f":"IF(DataLog!$C3261=\"Log value\",DataLog!V3261,\"\")","v":""},{"$f":"IF(DataLog!$C3261=\"Log value\",DataLog!W3261,\"\")","v":""},{"$f":"IF(DataLog!$C3261=\"Log value\",DataLog!X3261,\"\")","v":""},{"$f":"IF(DataLog!$C3261=\"Log value\",DataLog!Y3261,\"\")","v":""},{"$f":"IF(DataLog!$C3261=\"Log value\",DataLog!Z3261,\"\")","v":""},{"$f":"IF(DataLog!$C3261=\"Log value\",DataLog!AA3261,\"\")","v":""},{"$f":"IF(DataLog!$C3261=\"Log value\",DataLog!AB3261,\"\")","v":""},{"$f":"IF(DataLog!$C3261=\"Log value\",DataLog!AC3261,\"\")","v":""},{"$f":"IF(DataLog!$C3261=\"Log value\",DataLog!AD3261,\"\")","v":""},{"$f":"IF(DataLog!$C3261=\"Log value\",DataLog!AE3261,\"\")","v":""},{"$f":"IF(DataLog!$C3261=\"Log value\",DataLog!AF3261,\"\")","v":""},{"$f":"IF(DataLog!$C3261=\"Log value\",DataLog!AG3261,\"\")","v":""},{"$f":"IF(DataLog!$C3261=\"Log value\",DataLog!AH3261,\"\")","v":""},{"$f":"IF(DataLog!$C3261=\"Log value\",DataLog!AI3261,\"\")","v":""},{"$f":"IF(DataLog!$C3261=\"Log value\",DataLog!AJ3261,\"\")","v":""},{"$f":"IF(DataLog!$C3261=\"Log value\",DataLog!AK3261,\"\")","v":""},{"$f":"IF(DataLog!$C3261=\"Log value\",DataLog!AL3261,\"\")","v":""},{"$f":"IF(DataLog!$C3261=\"Log value\",DataLog!AM3261,\"\")","v":""}]
[null,null,null,null,null,null,{"$f":"IF(DataLog!$C3262=\"Log value\",DataLog!D3262&\"_\"&TEXT(DataLog!B3262,\"åååå-mm-dd\"),\"\")","v":""},{"$f":"IF(DataLog!$C3262=\"Log value\",DataLog!E3262,\"\")","v":""},{"$f":"IF(DataLog!$C3262=\"Log value\",DataLog!F3262,\"\")","v":""},{"$f":"IF(DataLog!$C3262=\"Log value\",DataLog!G3262,\"\")","v":""},{"$f":"IF(DataLog!$C3262=\"Log value\",DataLog!H3262,\"\")","v":""},{"$f":"IF(DataLog!$C3262=\"Log value\",DataLog!I3262,\"\")","v":""},{"$f":"IF(DataLog!$C3262=\"Log value\",DataLog!J3262,\"\")","v":""},{"$f":"IF(DataLog!$C3262=\"Log value\",DataLog!K3262,\"\")","v":""},{"$f":"IF(DataLog!$C3262=\"Log value\",DataLog!L3262,\"\")","v":""},{"$f":"IF(DataLog!$C3262=\"Log value\",DataLog!M3262,\"\")","v":""},{"$f":"IF(DataLog!$C3262=\"Log value\",DataLog!N3262,\"\")","v":""},{"$f":"IF(DataLog!$C3262=\"Log value\",DataLog!O3262,\"\")","v":""},{"$f":"IF(DataLog!$C3262=\"Log value\",DataLog!P3262,\"\")","v":""},{"$f":"IF(DataLog!$C3262=\"Log value\",DataLog!Q3262,\"\")","v":""},{"$f":"IF(DataLog!$C3262=\"Log value\",DataLog!R3262,\"\")","v":""},{"$f":"IF(DataLog!$C3262=\"Log value\",DataLog!S3262,\"\")","v":""},{"$f":"IF(DataLog!$C3262=\"Log value\",DataLog!T3262,\"\")","v":""},{"$f":"IF(DataLog!$C3262=\"Log value\",DataLog!U3262,\"\")","v":""},{"$f":"IF(DataLog!$C3262=\"Log value\",DataLog!V3262,\"\")","v":""},{"$f":"IF(DataLog!$C3262=\"Log value\",DataLog!W3262,\"\")","v":""},{"$f":"IF(DataLog!$C3262=\"Log value\",DataLog!X3262,\"\")","v":""},{"$f":"IF(DataLog!$C3262=\"Log value\",DataLog!Y3262,\"\")","v":""},{"$f":"IF(DataLog!$C3262=\"Log value\",DataLog!Z3262,\"\")","v":""},{"$f":"IF(DataLog!$C3262=\"Log value\",DataLog!AA3262,\"\")","v":""},{"$f":"IF(DataLog!$C3262=\"Log value\",DataLog!AB3262,\"\")","v":""},{"$f":"IF(DataLog!$C3262=\"Log value\",DataLog!AC3262,\"\")","v":""},{"$f":"IF(DataLog!$C3262=\"Log value\",DataLog!AD3262,\"\")","v":""},{"$f":"IF(DataLog!$C3262=\"Log value\",DataLog!AE3262,\"\")","v":""},{"$f":"IF(DataLog!$C3262=\"Log value\",DataLog!AF3262,\"\")","v":""},{"$f":"IF(DataLog!$C3262=\"Log value\",DataLog!AG3262,\"\")","v":""},{"$f":"IF(DataLog!$C3262=\"Log value\",DataLog!AH3262,\"\")","v":""},{"$f":"IF(DataLog!$C3262=\"Log value\",DataLog!AI3262,\"\")","v":""},{"$f":"IF(DataLog!$C3262=\"Log value\",DataLog!AJ3262,\"\")","v":""},{"$f":"IF(DataLog!$C3262=\"Log value\",DataLog!AK3262,\"\")","v":""},{"$f":"IF(DataLog!$C3262=\"Log value\",DataLog!AL3262,\"\")","v":""},{"$f":"IF(DataLog!$C3262=\"Log value\",DataLog!AM3262,\"\")","v":""}]
[null,null,null,null,null,null,{"$f":"IF(DataLog!$C3263=\"Log value\",DataLog!D3263&\"_\"&TEXT(DataLog!B3263,\"åååå-mm-dd\"),\"\")","v":""},{"$f":"IF(DataLog!$C3263=\"Log value\",DataLog!E3263,\"\")","v":""},{"$f":"IF(DataLog!$C3263=\"Log value\",DataLog!F3263,\"\")","v":""},{"$f":"IF(DataLog!$C3263=\"Log value\",DataLog!G3263,\"\")","v":""},{"$f":"IF(DataLog!$C3263=\"Log value\",DataLog!H3263,\"\")","v":""},{"$f":"IF(DataLog!$C3263=\"Log value\",DataLog!I3263,\"\")","v":""},{"$f":"IF(DataLog!$C3263=\"Log value\",DataLog!J3263,\"\")","v":""},{"$f":"IF(DataLog!$C3263=\"Log value\",DataLog!K3263,\"\")","v":""},{"$f":"IF(DataLog!$C3263=\"Log value\",DataLog!L3263,\"\")","v":""},{"$f":"IF(DataLog!$C3263=\"Log value\",DataLog!M3263,\"\")","v":""},{"$f":"IF(DataLog!$C3263=\"Log value\",DataLog!N3263,\"\")","v":""},{"$f":"IF(DataLog!$C3263=\"Log value\",DataLog!O3263,\"\")","v":""},{"$f":"IF(DataLog!$C3263=\"Log value\",DataLog!P3263,\"\")","v":""},{"$f":"IF(DataLog!$C3263=\"Log value\",DataLog!Q3263,\"\")","v":""},{"$f":"IF(DataLog!$C3263=\"Log value\",DataLog!R3263,\"\")","v":""},{"$f":"IF(DataLog!$C3263=\"Log value\",DataLog!S3263,\"\")","v":""},{"$f":"IF(DataLog!$C3263=\"Log value\",DataLog!T3263,\"\")","v":""},{"$f":"IF(DataLog!$C3263=\"Log value\",DataLog!U3263,\"\")","v":""},{"$f":"IF(DataLog!$C3263=\"Log value\",DataLog!V3263,\"\")","v":""},{"$f":"IF(DataLog!$C3263=\"Log value\",DataLog!W3263,\"\")","v":""},{"$f":"IF(DataLog!$C3263=\"Log value\",DataLog!X3263,\"\")","v":""},{"$f":"IF(DataLog!$C3263=\"Log value\",DataLog!Y3263,\"\")","v":""},{"$f":"IF(DataLog!$C3263=\"Log value\",DataLog!Z3263,\"\")","v":""},{"$f":"IF(DataLog!$C3263=\"Log value\",DataLog!AA3263,\"\")","v":""},{"$f":"IF(DataLog!$C3263=\"Log value\",DataLog!AB3263,\"\")","v":""},{"$f":"IF(DataLog!$C3263=\"Log value\",DataLog!AC3263,\"\")","v":""},{"$f":"IF(DataLog!$C3263=\"Log value\",DataLog!AD3263,\"\")","v":""},{"$f":"IF(DataLog!$C3263=\"Log value\",DataLog!AE3263,\"\")","v":""},{"$f":"IF(DataLog!$C3263=\"Log value\",DataLog!AF3263,\"\")","v":""},{"$f":"IF(DataLog!$C3263=\"Log value\",DataLog!AG3263,\"\")","v":""},{"$f":"IF(DataLog!$C3263=\"Log value\",DataLog!AH3263,\"\")","v":""},{"$f":"IF(DataLog!$C3263=\"Log value\",DataLog!AI3263,\"\")","v":""},{"$f":"IF(DataLog!$C3263=\"Log value\",DataLog!AJ3263,\"\")","v":""},{"$f":"IF(DataLog!$C3263=\"Log value\",DataLog!AK3263,\"\")","v":""},{"$f":"IF(DataLog!$C3263=\"Log value\",DataLog!AL3263,\"\")","v":""},{"$f":"IF(DataLog!$C3263=\"Log value\",DataLog!AM3263,\"\")","v":""}]
[null,null,null,null,null,null,{"$f":"IF(DataLog!$C3264=\"Log value\",DataLog!D3264&\"_\"&TEXT(DataLog!B3264,\"åååå-mm-dd\"),\"\")","v":""},{"$f":"IF(DataLog!$C3264=\"Log value\",DataLog!E3264,\"\")","v":""},{"$f":"IF(DataLog!$C3264=\"Log value\",DataLog!F3264,\"\")","v":""},{"$f":"IF(DataLog!$C3264=\"Log value\",DataLog!G3264,\"\")","v":""},{"$f":"IF(DataLog!$C3264=\"Log value\",DataLog!H3264,\"\")","v":""},{"$f":"IF(DataLog!$C3264=\"Log value\",DataLog!I3264,\"\")","v":""},{"$f":"IF(DataLog!$C3264=\"Log value\",DataLog!J3264,\"\")","v":""},{"$f":"IF(DataLog!$C3264=\"Log value\",DataLog!K3264,\"\")","v":""},{"$f":"IF(DataLog!$C3264=\"Log value\",DataLog!L3264,\"\")","v":""},{"$f":"IF(DataLog!$C3264=\"Log value\",DataLog!M3264,\"\")","v":""},{"$f":"IF(DataLog!$C3264=\"Log value\",DataLog!N3264,\"\")","v":""},{"$f":"IF(DataLog!$C3264=\"Log value\",DataLog!O3264,\"\")","v":""},{"$f":"IF(DataLog!$C3264=\"Log value\",DataLog!P3264,\"\")","v":""},{"$f":"IF(DataLog!$C3264=\"Log value\",DataLog!Q3264,\"\")","v":""},{"$f":"IF(DataLog!$C3264=\"Log value\",DataLog!R3264,\"\")","v":""},{"$f":"IF(DataLog!$C3264=\"Log value\",DataLog!S3264,\"\")","v":""},{"$f":"IF(DataLog!$C3264=\"Log value\",DataLog!T3264,\"\")","v":""},{"$f":"IF(DataLog!$C3264=\"Log value\",DataLog!U3264,\"\")","v":""},{"$f":"IF(DataLog!$C3264=\"Log value\",DataLog!V3264,\"\")","v":""},{"$f":"IF(DataLog!$C3264=\"Log value\",DataLog!W3264,\"\")","v":""},{"$f":"IF(DataLog!$C3264=\"Log value\",DataLog!X3264,\"\")","v":""},{"$f":"IF(DataLog!$C3264=\"Log value\",DataLog!Y3264,\"\")","v":""},{"$f":"IF(DataLog!$C3264=\"Log value\",DataLog!Z3264,\"\")","v":""},{"$f":"IF(DataLog!$C3264=\"Log value\",DataLog!AA3264,\"\")","v":""},{"$f":"IF(DataLog!$C3264=\"Log value\",DataLog!AB3264,\"\")","v":""},{"$f":"IF(DataLog!$C3264=\"Log value\",DataLog!AC3264,\"\")","v":""},{"$f":"IF(DataLog!$C3264=\"Log value\",DataLog!AD3264,\"\")","v":""},{"$f":"IF(DataLog!$C3264=\"Log value\",DataLog!AE3264,\"\")","v":""},{"$f":"IF(DataLog!$C3264=\"Log value\",DataLog!AF3264,\"\")","v":""},{"$f":"IF(DataLog!$C3264=\"Log value\",DataLog!AG3264,\"\")","v":""},{"$f":"IF(DataLog!$C3264=\"Log value\",DataLog!AH3264,\"\")","v":""},{"$f":"IF(DataLog!$C3264=\"Log value\",DataLog!AI3264,\"\")","v":""},{"$f":"IF(DataLog!$C3264=\"Log value\",DataLog!AJ3264,\"\")","v":""},{"$f":"IF(DataLog!$C3264=\"Log value\",DataLog!AK3264,\"\")","v":""},{"$f":"IF(DataLog!$C3264=\"Log value\",DataLog!AL3264,\"\")","v":""},{"$f":"IF(DataLog!$C3264=\"Log value\",DataLog!AM3264,\"\")","v":""}]
[null,null,null,null,null,null,{"$f":"IF(DataLog!$C3265=\"Log value\",DataLog!D3265&\"_\"&TEXT(DataLog!B3265,\"åååå-mm-dd\"),\"\")","v":""},{"$f":"IF(DataLog!$C3265=\"Log value\",DataLog!E3265,\"\")","v":""},{"$f":"IF(DataLog!$C3265=\"Log value\",DataLog!F3265,\"\")","v":""},{"$f":"IF(DataLog!$C3265=\"Log value\",DataLog!G3265,\"\")","v":""},{"$f":"IF(DataLog!$C3265=\"Log value\",DataLog!H3265,\"\")","v":""},{"$f":"IF(DataLog!$C3265=\"Log value\",DataLog!I3265,\"\")","v":""},{"$f":"IF(DataLog!$C3265=\"Log value\",DataLog!J3265,\"\")","v":""},{"$f":"IF(DataLog!$C3265=\"Log value\",DataLog!K3265,\"\")","v":""},{"$f":"IF(DataLog!$C3265=\"Log value\",DataLog!L3265,\"\")","v":""},{"$f":"IF(DataLog!$C3265=\"Log value\",DataLog!M3265,\"\")","v":""},{"$f":"IF(DataLog!$C3265=\"Log value\",DataLog!N3265,\"\")","v":""},{"$f":"IF(DataLog!$C3265=\"Log value\",DataLog!O3265,\"\")","v":""},{"$f":"IF(DataLog!$C3265=\"Log value\",DataLog!P3265,\"\")","v":""},{"$f":"IF(DataLog!$C3265=\"Log value\",DataLog!Q3265,\"\")","v":""},{"$f":"IF(DataLog!$C3265=\"Log value\",DataLog!R3265,\"\")","v":""},{"$f":"IF(DataLog!$C3265=\"Log value\",DataLog!S3265,\"\")","v":""},{"$f":"IF(DataLog!$C3265=\"Log value\",DataLog!T3265,\"\")","v":""},{"$f":"IF(DataLog!$C3265=\"Log value\",DataLog!U3265,\"\")","v":""},{"$f":"IF(DataLog!$C3265=\"Log value\",DataLog!V3265,\"\")","v":""},{"$f":"IF(DataLog!$C3265=\"Log value\",DataLog!W3265,\"\")","v":""},{"$f":"IF(DataLog!$C3265=\"Log value\",DataLog!X3265,\"\")","v":""},{"$f":"IF(DataLog!$C3265=\"Log value\",DataLog!Y3265,\"\")","v":""},{"$f":"IF(DataLog!$C3265=\"Log value\",DataLog!Z3265,\"\")","v":""},{"$f":"IF(DataLog!$C3265=\"Log value\",DataLog!AA3265,\"\")","v":""},{"$f":"IF(DataLog!$C3265=\"Log value\",DataLog!AB3265,\"\")","v":""},{"$f":"IF(DataLog!$C3265=\"Log value\",DataLog!AC3265,\"\")","v":""},{"$f":"IF(DataLog!$C3265=\"Log value\",DataLog!AD3265,\"\")","v":""},{"$f":"IF(DataLog!$C3265=\"Log value\",DataLog!AE3265,\"\")","v":""},{"$f":"IF(DataLog!$C3265=\"Log value\",DataLog!AF3265,\"\")","v":""},{"$f":"IF(DataLog!$C3265=\"Log value\",DataLog!AG3265,\"\")","v":""},{"$f":"IF(DataLog!$C3265=\"Log value\",DataLog!AH3265,\"\")","v":""},{"$f":"IF(DataLog!$C3265=\"Log value\",DataLog!AI3265,\"\")","v":""},{"$f":"IF(DataLog!$C3265=\"Log value\",DataLog!AJ3265,\"\")","v":""},{"$f":"IF(DataLog!$C3265=\"Log value\",DataLog!AK3265,\"\")","v":""},{"$f":"IF(DataLog!$C3265=\"Log value\",DataLog!AL3265,\"\")","v":""},{"$f":"IF(DataLog!$C3265=\"Log value\",DataLog!AM3265,\"\")","v":""}]
[null,null,null,null,null,null,{"$f":"IF(DataLog!$C3266=\"Log value\",DataLog!D3266&\"_\"&TEXT(DataLog!B3266,\"åååå-mm-dd\"),\"\")","v":""},{"$f":"IF(DataLog!$C3266=\"Log value\",DataLog!E3266,\"\")","v":""},{"$f":"IF(DataLog!$C3266=\"Log value\",DataLog!F3266,\"\")","v":""},{"$f":"IF(DataLog!$C3266=\"Log value\",DataLog!G3266,\"\")","v":""},{"$f":"IF(DataLog!$C3266=\"Log value\",DataLog!H3266,\"\")","v":""},{"$f":"IF(DataLog!$C3266=\"Log value\",DataLog!I3266,\"\")","v":""},{"$f":"IF(DataLog!$C3266=\"Log value\",DataLog!J3266,\"\")","v":""},{"$f":"IF(DataLog!$C3266=\"Log value\",DataLog!K3266,\"\")","v":""},{"$f":"IF(DataLog!$C3266=\"Log value\",DataLog!L3266,\"\")","v":""},{"$f":"IF(DataLog!$C3266=\"Log value\",DataLog!M3266,\"\")","v":""},{"$f":"IF(DataLog!$C3266=\"Log value\",DataLog!N3266,\"\")","v":""},{"$f":"IF(DataLog!$C3266=\"Log value\",DataLog!O3266,\"\")","v":""},{"$f":"IF(DataLog!$C3266=\"Log value\",DataLog!P3266,\"\")","v":""},{"$f":"IF(DataLog!$C3266=\"Log value\",DataLog!Q3266,\"\")","v":""},{"$f":"IF(DataLog!$C3266=\"Log value\",DataLog!R3266,\"\")","v":""},{"$f":"IF(DataLog!$C3266=\"Log value\",DataLog!S3266,\"\")","v":""},{"$f":"IF(DataLog!$C3266=\"Log value\",DataLog!T3266,\"\")","v":""},{"$f":"IF(DataLog!$C3266=\"Log value\",DataLog!U3266,\"\")","v":""},{"$f":"IF(DataLog!$C3266=\"Log value\",DataLog!V3266,\"\")","v":""},{"$f":"IF(DataLog!$C3266=\"Log value\",DataLog!W3266,\"\")","v":""},{"$f":"IF(DataLog!$C3266=\"Log value\",DataLog!X3266,\"\")","v":""},{"$f":"IF(DataLog!$C3266=\"Log value\",DataLog!Y3266,\"\")","v":""},{"$f":"IF(DataLog!$C3266=\"Log value\",DataLog!Z3266,\"\")","v":""},{"$f":"IF(DataLog!$C3266=\"Log value\",DataLog!AA3266,\"\")","v":""},{"$f":"IF(DataLog!$C3266=\"Log value\",DataLog!AB3266,\"\")","v":""},{"$f":"IF(DataLog!$C3266=\"Log value\",DataLog!AC3266,\"\")","v":""},{"$f":"IF(DataLog!$C3266=\"Log value\",DataLog!AD3266,\"\")","v":""},{"$f":"IF(DataLog!$C3266=\"Log value\",DataLog!AE3266,\"\")","v":""},{"$f":"IF(DataLog!$C3266=\"Log value\",DataLog!AF3266,\"\")","v":""},{"$f":"IF(DataLog!$C3266=\"Log value\",DataLog!AG3266,\"\")","v":""},{"$f":"IF(DataLog!$C3266=\"Log value\",DataLog!AH3266,\"\")","v":""},{"$f":"IF(DataLog!$C3266=\"Log value\",DataLog!AI3266,\"\")","v":""},{"$f":"IF(DataLog!$C3266=\"Log value\",DataLog!AJ3266,\"\")","v":""},{"$f":"IF(DataLog!$C3266=\"Log value\",DataLog!AK3266,\"\")","v":""},{"$f":"IF(DataLog!$C3266=\"Log value\",DataLog!AL3266,\"\")","v":""},{"$f":"IF(DataLog!$C3266=\"Log value\",DataLog!AM3266,\"\")","v":""}]
[null,null,null,null,null,null,{"$f":"IF(DataLog!$C3267=\"Log value\",DataLog!D3267&\"_\"&TEXT(DataLog!B3267,\"åååå-mm-dd\"),\"\")","v":""},{"$f":"IF(DataLog!$C3267=\"Log value\",DataLog!E3267,\"\")","v":""},{"$f":"IF(DataLog!$C3267=\"Log value\",DataLog!F3267,\"\")","v":""},{"$f":"IF(DataLog!$C3267=\"Log value\",DataLog!G3267,\"\")","v":""},{"$f":"IF(DataLog!$C3267=\"Log value\",DataLog!H3267,\"\")","v":""},{"$f":"IF(DataLog!$C3267=\"Log value\",DataLog!I3267,\"\")","v":""},{"$f":"IF(DataLog!$C3267=\"Log value\",DataLog!J3267,\"\")","v":""},{"$f":"IF(DataLog!$C3267=\"Log value\",DataLog!K3267,\"\")","v":""},{"$f":"IF(DataLog!$C3267=\"Log value\",DataLog!L3267,\"\")","v":""},{"$f":"IF(DataLog!$C3267=\"Log value\",DataLog!M3267,\"\")","v":""},{"$f":"IF(DataLog!$C3267=\"Log value\",DataLog!N3267,\"\")","v":""},{"$f":"IF(DataLog!$C3267=\"Log value\",DataLog!O3267,\"\")","v":""},{"$f":"IF(DataLog!$C3267=\"Log value\",DataLog!P3267,\"\")","v":""},{"$f":"IF(DataLog!$C3267=\"Log value\",DataLog!Q3267,\"\")","v":""},{"$f":"IF(DataLog!$C3267=\"Log value\",DataLog!R3267,\"\")","v":""},{"$f":"IF(DataLog!$C3267=\"Log value\",DataLog!S3267,\"\")","v":""},{"$f":"IF(DataLog!$C3267=\"Log value\",DataLog!T3267,\"\")","v":""},{"$f":"IF(DataLog!$C3267=\"Log value\",DataLog!U3267,\"\")","v":""},{"$f":"IF(DataLog!$C3267=\"Log value\",DataLog!V3267,\"\")","v":""},{"$f":"IF(DataLog!$C3267=\"Log value\",DataLog!W3267,\"\")","v":""},{"$f":"IF(DataLog!$C3267=\"Log value\",DataLog!X3267,\"\")","v":""},{"$f":"IF(DataLog!$C3267=\"Log value\",DataLog!Y3267,\"\")","v":""},{"$f":"IF(DataLog!$C3267=\"Log value\",DataLog!Z3267,\"\")","v":""},{"$f":"IF(DataLog!$C3267=\"Log value\",DataLog!AA3267,\"\")","v":""},{"$f":"IF(DataLog!$C3267=\"Log value\",DataLog!AB3267,\"\")","v":""},{"$f":"IF(DataLog!$C3267=\"Log value\",DataLog!AC3267,\"\")","v":""},{"$f":"IF(DataLog!$C3267=\"Log value\",DataLog!AD3267,\"\")","v":""},{"$f":"IF(DataLog!$C3267=\"Log value\",DataLog!AE3267,\"\")","v":""},{"$f":"IF(DataLog!$C3267=\"Log value\",DataLog!AF3267,\"\")","v":""},{"$f":"IF(DataLog!$C3267=\"Log value\",DataLog!AG3267,\"\")","v":""},{"$f":"IF(DataLog!$C3267=\"Log value\",DataLog!AH3267,\"\")","v":""},{"$f":"IF(DataLog!$C3267=\"Log value\",DataLog!AI3267,\"\")","v":""},{"$f":"IF(DataLog!$C3267=\"Log value\",DataLog!AJ3267,\"\")","v":""},{"$f":"IF(DataLog!$C3267=\"Log value\",DataLog!AK3267,\"\")","v":""},{"$f":"IF(DataLog!$C3267=\"Log value\",DataLog!AL3267,\"\")","v":""},{"$f":"IF(DataLog!$C3267=\"Log value\",DataLog!AM3267,\"\")","v":""}]
[null,null,null,null,null,null,{"$f":"IF(DataLog!$C3268=\"Log value\",DataLog!D3268&\"_\"&TEXT(DataLog!B3268,\"åååå-mm-dd\"),\"\")","v":""},{"$f":"IF(DataLog!$C3268=\"Log value\",DataLog!E3268,\"\")","v":""},{"$f":"IF(DataLog!$C3268=\"Log value\",DataLog!F3268,\"\")","v":""},{"$f":"IF(DataLog!$C3268=\"Log value\",DataLog!G3268,\"\")","v":""},{"$f":"IF(DataLog!$C3268=\"Log value\",DataLog!H3268,\"\")","v":""},{"$f":"IF(DataLog!$C3268=\"Log value\",DataLog!I3268,\"\")","v":""},{"$f":"IF(DataLog!$C3268=\"Log value\",DataLog!J3268,\"\")","v":""},{"$f":"IF(DataLog!$C3268=\"Log value\",DataLog!K3268,\"\")","v":""},{"$f":"IF(DataLog!$C3268=\"Log value\",DataLog!L3268,\"\")","v":""},{"$f":"IF(DataLog!$C3268=\"Log value\",DataLog!M3268,\"\")","v":""},{"$f":"IF(DataLog!$C3268=\"Log value\",DataLog!N3268,\"\")","v":""},{"$f":"IF(DataLog!$C3268=\"Log value\",DataLog!O3268,\"\")","v":""},{"$f":"IF(DataLog!$C3268=\"Log value\",DataLog!P3268,\"\")","v":""},{"$f":"IF(DataLog!$C3268=\"Log value\",DataLog!Q3268,\"\")","v":""},{"$f":"IF(DataLog!$C3268=\"Log value\",DataLog!R3268,\"\")","v":""},{"$f":"IF(DataLog!$C3268=\"Log value\",DataLog!S3268,\"\")","v":""},{"$f":"IF(DataLog!$C3268=\"Log value\",DataLog!T3268,\"\")","v":""},{"$f":"IF(DataLog!$C3268=\"Log value\",DataLog!U3268,\"\")","v":""},{"$f":"IF(DataLog!$C3268=\"Log value\",DataLog!V3268,\"\")","v":""},{"$f":"IF(DataLog!$C3268=\"Log value\",DataLog!W3268,\"\")","v":""},{"$f":"IF(DataLog!$C3268=\"Log value\",DataLog!X3268,\"\")","v":""},{"$f":"IF(DataLog!$C3268=\"Log value\",DataLog!Y3268,\"\")","v":""},{"$f":"IF(DataLog!$C3268=\"Log value\",DataLog!Z3268,\"\")","v":""},{"$f":"IF(DataLog!$C3268=\"Log value\",DataLog!AA3268,\"\")","v":""},{"$f":"IF(DataLog!$C3268=\"Log value\",DataLog!AB3268,\"\")","v":""},{"$f":"IF(DataLog!$C3268=\"Log value\",DataLog!AC3268,\"\")","v":""},{"$f":"IF(DataLog!$C3268=\"Log value\",DataLog!AD3268,\"\")","v":""},{"$f":"IF(DataLog!$C3268=\"Log value\",DataLog!AE3268,\"\")","v":""},{"$f":"IF(DataLog!$C3268=\"Log value\",DataLog!AF3268,\"\")","v":""},{"$f":"IF(DataLog!$C3268=\"Log value\",DataLog!AG3268,\"\")","v":""},{"$f":"IF(DataLog!$C3268=\"Log value\",DataLog!AH3268,\"\")","v":""},{"$f":"IF(DataLog!$C3268=\"Log value\",DataLog!AI3268,\"\")","v":""},{"$f":"IF(DataLog!$C3268=\"Log value\",DataLog!AJ3268,\"\")","v":""},{"$f":"IF(DataLog!$C3268=\"Log value\",DataLog!AK3268,\"\")","v":""},{"$f":"IF(DataLog!$C3268=\"Log value\",DataLog!AL3268,\"\")","v":""},{"$f":"IF(DataLog!$C3268=\"Log value\",DataLog!AM3268,\"\")","v":""}]
[null,null,null,null,null,null,{"$f":"IF(DataLog!$C3269=\"Log value\",DataLog!D3269&\"_\"&TEXT(DataLog!B3269,\"åååå-mm-dd\"),\"\")","v":""},{"$f":"IF(DataLog!$C3269=\"Log value\",DataLog!E3269,\"\")","v":""},{"$f":"IF(DataLog!$C3269=\"Log value\",DataLog!F3269,\"\")","v":""},{"$f":"IF(DataLog!$C3269=\"Log value\",DataLog!G3269,\"\")","v":""},{"$f":"IF(DataLog!$C3269=\"Log value\",DataLog!H3269,\"\")","v":""},{"$f":"IF(DataLog!$C3269=\"Log value\",DataLog!I3269,\"\")","v":""},{"$f":"IF(DataLog!$C3269=\"Log value\",DataLog!J3269,\"\")","v":""},{"$f":"IF(DataLog!$C3269=\"Log value\",DataLog!K3269,\"\")","v":""},{"$f":"IF(DataLog!$C3269=\"Log value\",DataLog!L3269,\"\")","v":""},{"$f":"IF(DataLog!$C3269=\"Log value\",DataLog!M3269,\"\")","v":""},{"$f":"IF(DataLog!$C3269=\"Log value\",DataLog!N3269,\"\")","v":""},{"$f":"IF(DataLog!$C3269=\"Log value\",DataLog!O3269,\"\")","v":""},{"$f":"IF(DataLog!$C3269=\"Log value\",DataLog!P3269,\"\")","v":""},{"$f":"IF(DataLog!$C3269=\"Log value\",DataLog!Q3269,\"\")","v":""},{"$f":"IF(DataLog!$C3269=\"Log value\",DataLog!R3269,\"\")","v":""},{"$f":"IF(DataLog!$C3269=\"Log value\",DataLog!S3269,\"\")","v":""},{"$f":"IF(DataLog!$C3269=\"Log value\",DataLog!T3269,\"\")","v":""},{"$f":"IF(DataLog!$C3269=\"Log value\",DataLog!U3269,\"\")","v":""},{"$f":"IF(DataLog!$C3269=\"Log value\",DataLog!V3269,\"\")","v":""},{"$f":"IF(DataLog!$C3269=\"Log value\",DataLog!W3269,\"\")","v":""},{"$f":"IF(DataLog!$C3269=\"Log value\",DataLog!X3269,\"\")","v":""},{"$f":"IF(DataLog!$C3269=\"Log value\",DataLog!Y3269,\"\")","v":""},{"$f":"IF(DataLog!$C3269=\"Log value\",DataLog!Z3269,\"\")","v":""},{"$f":"IF(DataLog!$C3269=\"Log value\",DataLog!AA3269,\"\")","v":""},{"$f":"IF(DataLog!$C3269=\"Log value\",DataLog!AB3269,\"\")","v":""},{"$f":"IF(DataLog!$C3269=\"Log value\",DataLog!AC3269,\"\")","v":""},{"$f":"IF(DataLog!$C3269=\"Log value\",DataLog!AD3269,\"\")","v":""},{"$f":"IF(DataLog!$C3269=\"Log value\",DataLog!AE3269,\"\")","v":""},{"$f":"IF(DataLog!$C3269=\"Log value\",DataLog!AF3269,\"\")","v":""},{"$f":"IF(DataLog!$C3269=\"Log value\",DataLog!AG3269,\"\")","v":""},{"$f":"IF(DataLog!$C3269=\"Log value\",DataLog!AH3269,\"\")","v":""},{"$f":"IF(DataLog!$C3269=\"Log value\",DataLog!AI3269,\"\")","v":""},{"$f":"IF(DataLog!$C3269=\"Log value\",DataLog!AJ3269,\"\")","v":""},{"$f":"IF(DataLog!$C3269=\"Log value\",DataLog!AK3269,\"\")","v":""},{"$f":"IF(DataLog!$C3269=\"Log value\",DataLog!AL3269,\"\")","v":""},{"$f":"IF(DataLog!$C3269=\"Log value\",DataLog!AM3269,\"\")","v":""}]
[null,null,null,null,null,null,{"$f":"IF(DataLog!$C3270=\"Log value\",DataLog!D3270&\"_\"&TEXT(DataLog!B3270,\"åååå-mm-dd\"),\"\")","v":""},{"$f":"IF(DataLog!$C3270=\"Log value\",DataLog!E3270,\"\")","v":""},{"$f":"IF(DataLog!$C3270=\"Log value\",DataLog!F3270,\"\")","v":""},{"$f":"IF(DataLog!$C3270=\"Log value\",DataLog!G3270,\"\")","v":""},{"$f":"IF(DataLog!$C3270=\"Log value\",DataLog!H3270,\"\")","v":""},{"$f":"IF(DataLog!$C3270=\"Log value\",DataLog!I3270,\"\")","v":""},{"$f":"IF(DataLog!$C3270=\"Log value\",DataLog!J3270,\"\")","v":""},{"$f":"IF(DataLog!$C3270=\"Log value\",DataLog!K3270,\"\")","v":""},{"$f":"IF(DataLog!$C3270=\"Log value\",DataLog!L3270,\"\")","v":""},{"$f":"IF(DataLog!$C3270=\"Log value\",DataLog!M3270,\"\")","v":""},{"$f":"IF(DataLog!$C3270=\"Log value\",DataLog!N3270,\"\")","v":""},{"$f":"IF(DataLog!$C3270=\"Log value\",DataLog!O3270,\"\")","v":""},{"$f":"IF(DataLog!$C3270=\"Log value\",DataLog!P3270,\"\")","v":""},{"$f":"IF(DataLog!$C3270=\"Log value\",DataLog!Q3270,\"\")","v":""},{"$f":"IF(DataLog!$C3270=\"Log value\",DataLog!R3270,\"\")","v":""},{"$f":"IF(DataLog!$C3270=\"Log value\",DataLog!S3270,\"\")","v":""},{"$f":"IF(DataLog!$C3270=\"Log value\",DataLog!T3270,\"\")","v":""},{"$f":"IF(DataLog!$C3270=\"Log value\",DataLog!U3270,\"\")","v":""},{"$f":"IF(DataLog!$C3270=\"Log value\",DataLog!V3270,\"\")","v":""},{"$f":"IF(DataLog!$C3270=\"Log value\",DataLog!W3270,\"\")","v":""},{"$f":"IF(DataLog!$C3270=\"Log value\",DataLog!X3270,\"\")","v":""},{"$f":"IF(DataLog!$C3270=\"Log value\",DataLog!Y3270,\"\")","v":""},{"$f":"IF(DataLog!$C3270=\"Log value\",DataLog!Z3270,\"\")","v":""},{"$f":"IF(DataLog!$C3270=\"Log value\",DataLog!AA3270,\"\")","v":""},{"$f":"IF(DataLog!$C3270=\"Log value\",DataLog!AB3270,\"\")","v":""},{"$f":"IF(DataLog!$C3270=\"Log value\",DataLog!AC3270,\"\")","v":""},{"$f":"IF(DataLog!$C3270=\"Log value\",DataLog!AD3270,\"\")","v":""},{"$f":"IF(DataLog!$C3270=\"Log value\",DataLog!AE3270,\"\")","v":""},{"$f":"IF(DataLog!$C3270=\"Log value\",DataLog!AF3270,\"\")","v":""},{"$f":"IF(DataLog!$C3270=\"Log value\",DataLog!AG3270,\"\")","v":""},{"$f":"IF(DataLog!$C3270=\"Log value\",DataLog!AH3270,\"\")","v":""},{"$f":"IF(DataLog!$C3270=\"Log value\",DataLog!AI3270,\"\")","v":""},{"$f":"IF(DataLog!$C3270=\"Log value\",DataLog!AJ3270,\"\")","v":""},{"$f":"IF(DataLog!$C3270=\"Log value\",DataLog!AK3270,\"\")","v":""},{"$f":"IF(DataLog!$C3270=\"Log value\",DataLog!AL3270,\"\")","v":""},{"$f":"IF(DataLog!$C3270=\"Log value\",DataLog!AM3270,\"\")","v":""}]
[null,null,null,null,null,null,{"$f":"IF(DataLog!$C3271=\"Log value\",DataLog!D3271&\"_\"&TEXT(DataLog!B3271,\"åååå-mm-dd\"),\"\")","v":""},{"$f":"IF(DataLog!$C3271=\"Log value\",DataLog!E3271,\"\")","v":""},{"$f":"IF(DataLog!$C3271=\"Log value\",DataLog!F3271,\"\")","v":""},{"$f":"IF(DataLog!$C3271=\"Log value\",DataLog!G3271,\"\")","v":""},{"$f":"IF(DataLog!$C3271=\"Log value\",DataLog!H3271,\"\")","v":""},{"$f":"IF(DataLog!$C3271=\"Log value\",DataLog!I3271,\"\")","v":""},{"$f":"IF(DataLog!$C3271=\"Log value\",DataLog!J3271,\"\")","v":""},{"$f":"IF(DataLog!$C3271=\"Log value\",DataLog!K3271,\"\")","v":""},{"$f":"IF(DataLog!$C3271=\"Log value\",DataLog!L3271,\"\")","v":""},{"$f":"IF(DataLog!$C3271=\"Log value\",DataLog!M3271,\"\")","v":""},{"$f":"IF(DataLog!$C3271=\"Log value\",DataLog!N3271,\"\")","v":""},{"$f":"IF(DataLog!$C3271=\"Log value\",DataLog!O3271,\"\")","v":""},{"$f":"IF(DataLog!$C3271=\"Log value\",DataLog!P3271,\"\")","v":""},{"$f":"IF(DataLog!$C3271=\"Log value\",DataLog!Q3271,\"\")","v":""},{"$f":"IF(DataLog!$C3271=\"Log value\",DataLog!R3271,\"\")","v":""},{"$f":"IF(DataLog!$C3271=\"Log value\",DataLog!S3271,\"\")","v":""},{"$f":"IF(DataLog!$C3271=\"Log value\",DataLog!T3271,\"\")","v":""},{"$f":"IF(DataLog!$C3271=\"Log value\",DataLog!U3271,\"\")","v":""},{"$f":"IF(DataLog!$C3271=\"Log value\",DataLog!V3271,\"\")","v":""},{"$f":"IF(DataLog!$C3271=\"Log value\",DataLog!W3271,\"\")","v":""},{"$f":"IF(DataLog!$C3271=\"Log value\",DataLog!X3271,\"\")","v":""},{"$f":"IF(DataLog!$C3271=\"Log value\",DataLog!Y3271,\"\")","v":""},{"$f":"IF(DataLog!$C3271=\"Log value\",DataLog!Z3271,\"\")","v":""},{"$f":"IF(DataLog!$C3271=\"Log value\",DataLog!AA3271,\"\")","v":""},{"$f":"IF(DataLog!$C3271=\"Log value\",DataLog!AB3271,\"\")","v":""},{"$f":"IF(DataLog!$C3271=\"Log value\",DataLog!AC3271,\"\")","v":""},{"$f":"IF(DataLog!$C3271=\"Log value\",DataLog!AD3271,\"\")","v":""},{"$f":"IF(DataLog!$C3271=\"Log value\",DataLog!AE3271,\"\")","v":""},{"$f":"IF(DataLog!$C3271=\"Log value\",DataLog!AF3271,\"\")","v":""},{"$f":"IF(DataLog!$C3271=\"Log value\",DataLog!AG3271,\"\")","v":""},{"$f":"IF(DataLog!$C3271=\"Log value\",DataLog!AH3271,\"\")","v":""},{"$f":"IF(DataLog!$C3271=\"Log value\",DataLog!AI3271,\"\")","v":""},{"$f":"IF(DataLog!$C3271=\"Log value\",DataLog!AJ3271,\"\")","v":""},{"$f":"IF(DataLog!$C3271=\"Log value\",DataLog!AK3271,\"\")","v":""},{"$f":"IF(DataLog!$C3271=\"Log value\",DataLog!AL3271,\"\")","v":""},{"$f":"IF(DataLog!$C3271=\"Log value\",DataLog!AM3271,\"\")","v":""}]
[null,null,null,null,null,null,{"$f":"IF(DataLog!$C3272=\"Log value\",DataLog!D3272&\"_\"&TEXT(DataLog!B3272,\"åååå-mm-dd\"),\"\")","v":""},{"$f":"IF(DataLog!$C3272=\"Log value\",DataLog!E3272,\"\")","v":""},{"$f":"IF(DataLog!$C3272=\"Log value\",DataLog!F3272,\"\")","v":""},{"$f":"IF(DataLog!$C3272=\"Log value\",DataLog!G3272,\"\")","v":""},{"$f":"IF(DataLog!$C3272=\"Log value\",DataLog!H3272,\"\")","v":""},{"$f":"IF(DataLog!$C3272=\"Log value\",DataLog!I3272,\"\")","v":""},{"$f":"IF(DataLog!$C3272=\"Log value\",DataLog!J3272,\"\")","v":""},{"$f":"IF(DataLog!$C3272=\"Log value\",DataLog!K3272,\"\")","v":""},{"$f":"IF(DataLog!$C3272=\"Log value\",DataLog!L3272,\"\")","v":""},{"$f":"IF(DataLog!$C3272=\"Log value\",DataLog!M3272,\"\")","v":""},{"$f":"IF(DataLog!$C3272=\"Log value\",DataLog!N3272,\"\")","v":""},{"$f":"IF(DataLog!$C3272=\"Log value\",DataLog!O3272,\"\")","v":""},{"$f":"IF(DataLog!$C3272=\"Log value\",DataLog!P3272,\"\")","v":""},{"$f":"IF(DataLog!$C3272=\"Log value\",DataLog!Q3272,\"\")","v":""},{"$f":"IF(DataLog!$C3272=\"Log value\",DataLog!R3272,\"\")","v":""},{"$f":"IF(DataLog!$C3272=\"Log value\",DataLog!S3272,\"\")","v":""},{"$f":"IF(DataLog!$C3272=\"Log value\",DataLog!T3272,\"\")","v":""},{"$f":"IF(DataLog!$C3272=\"Log value\",DataLog!U3272,\"\")","v":""},{"$f":"IF(DataLog!$C3272=\"Log value\",DataLog!V3272,\"\")","v":""},{"$f":"IF(DataLog!$C3272=\"Log value\",DataLog!W3272,\"\")","v":""},{"$f":"IF(DataLog!$C3272=\"Log value\",DataLog!X3272,\"\")","v":""},{"$f":"IF(DataLog!$C3272=\"Log value\",DataLog!Y3272,\"\")","v":""},{"$f":"IF(DataLog!$C3272=\"Log value\",DataLog!Z3272,\"\")","v":""},{"$f":"IF(DataLog!$C3272=\"Log value\",DataLog!AA3272,\"\")","v":""},{"$f":"IF(DataLog!$C3272=\"Log value\",DataLog!AB3272,\"\")","v":""},{"$f":"IF(DataLog!$C3272=\"Log value\",DataLog!AC3272,\"\")","v":""},{"$f":"IF(DataLog!$C3272=\"Log value\",DataLog!AD3272,\"\")","v":""},{"$f":"IF(DataLog!$C3272=\"Log value\",DataLog!AE3272,\"\")","v":""},{"$f":"IF(DataLog!$C3272=\"Log value\",DataLog!AF3272,\"\")","v":""},{"$f":"IF(DataLog!$C3272=\"Log value\",DataLog!AG3272,\"\")","v":""},{"$f":"IF(DataLog!$C3272=\"Log value\",DataLog!AH3272,\"\")","v":""},{"$f":"IF(DataLog!$C3272=\"Log value\",DataLog!AI3272,\"\")","v":""},{"$f":"IF(DataLog!$C3272=\"Log value\",DataLog!AJ3272,\"\")","v":""},{"$f":"IF(DataLog!$C3272=\"Log value\",DataLog!AK3272,\"\")","v":""},{"$f":"IF(DataLog!$C3272=\"Log value\",DataLog!AL3272,\"\")","v":""},{"$f":"IF(DataLog!$C3272=\"Log value\",DataLog!AM3272,\"\")","v":""}]
[null,null,null,null,null,null,{"$f":"IF(DataLog!$C3273=\"Log value\",DataLog!D3273&\"_\"&TEXT(DataLog!B3273,\"åååå-mm-dd\"),\"\")","v":""},{"$f":"IF(DataLog!$C3273=\"Log value\",DataLog!E3273,\"\")","v":""},{"$f":"IF(DataLog!$C3273=\"Log value\",DataLog!F3273,\"\")","v":""},{"$f":"IF(DataLog!$C3273=\"Log value\",DataLog!G3273,\"\")","v":""},{"$f":"IF(DataLog!$C3273=\"Log value\",DataLog!H3273,\"\")","v":""},{"$f":"IF(DataLog!$C3273=\"Log value\",DataLog!I3273,\"\")","v":""},{"$f":"IF(DataLog!$C3273=\"Log value\",DataLog!J3273,\"\")","v":""},{"$f":"IF(DataLog!$C3273=\"Log value\",DataLog!K3273,\"\")","v":""},{"$f":"IF(DataLog!$C3273=\"Log value\",DataLog!L3273,\"\")","v":""},{"$f":"IF(DataLog!$C3273=\"Log value\",DataLog!M3273,\"\")","v":""},{"$f":"IF(DataLog!$C3273=\"Log value\",DataLog!N3273,\"\")","v":""},{"$f":"IF(DataLog!$C3273=\"Log value\",DataLog!O3273,\"\")","v":""},{"$f":"IF(DataLog!$C3273=\"Log value\",DataLog!P3273,\"\")","v":""},{"$f":"IF(DataLog!$C3273=\"Log value\",DataLog!Q3273,\"\")","v":""},{"$f":"IF(DataLog!$C3273=\"Log value\",DataLog!R3273,\"\")","v":""},{"$f":"IF(DataLog!$C3273=\"Log value\",DataLog!S3273,\"\")","v":""},{"$f":"IF(DataLog!$C3273=\"Log value\",DataLog!T3273,\"\")","v":""},{"$f":"IF(DataLog!$C3273=\"Log value\",DataLog!U3273,\"\")","v":""},{"$f":"IF(DataLog!$C3273=\"Log value\",DataLog!V3273,\"\")","v":""},{"$f":"IF(DataLog!$C3273=\"Log value\",DataLog!W3273,\"\")","v":""},{"$f":"IF(DataLog!$C3273=\"Log value\",DataLog!X3273,\"\")","v":""},{"$f":"IF(DataLog!$C3273=\"Log value\",DataLog!Y3273,\"\")","v":""},{"$f":"IF(DataLog!$C3273=\"Log value\",DataLog!Z3273,\"\")","v":""},{"$f":"IF(DataLog!$C3273=\"Log value\",DataLog!AA3273,\"\")","v":""},{"$f":"IF(DataLog!$C3273=\"Log value\",DataLog!AB3273,\"\")","v":""},{"$f":"IF(DataLog!$C3273=\"Log value\",DataLog!AC3273,\"\")","v":""},{"$f":"IF(DataLog!$C3273=\"Log value\",DataLog!AD3273,\"\")","v":""},{"$f":"IF(DataLog!$C3273=\"Log value\",DataLog!AE3273,\"\")","v":""},{"$f":"IF(DataLog!$C3273=\"Log value\",DataLog!AF3273,\"\")","v":""},{"$f":"IF(DataLog!$C3273=\"Log value\",DataLog!AG3273,\"\")","v":""},{"$f":"IF(DataLog!$C3273=\"Log value\",DataLog!AH3273,\"\")","v":""},{"$f":"IF(DataLog!$C3273=\"Log value\",DataLog!AI3273,\"\")","v":""},{"$f":"IF(DataLog!$C3273=\"Log value\",DataLog!AJ3273,\"\")","v":""},{"$f":"IF(DataLog!$C3273=\"Log value\",DataLog!AK3273,\"\")","v":""},{"$f":"IF(DataLog!$C3273=\"Log value\",DataLog!AL3273,\"\")","v":""},{"$f":"IF(DataLog!$C3273=\"Log value\",DataLog!AM3273,\"\")","v":""}]
[null,null,null,null,null,null,{"$f":"IF(DataLog!$C3274=\"Log value\",DataLog!D3274&\"_\"&TEXT(DataLog!B3274,\"åååå-mm-dd\"),\"\")","v":""},{"$f":"IF(DataLog!$C3274=\"Log value\",DataLog!E3274,\"\")","v":""},{"$f":"IF(DataLog!$C3274=\"Log value\",DataLog!F3274,\"\")","v":""},{"$f":"IF(DataLog!$C3274=\"Log value\",DataLog!G3274,\"\")","v":""},{"$f":"IF(DataLog!$C3274=\"Log value\",DataLog!H3274,\"\")","v":""},{"$f":"IF(DataLog!$C3274=\"Log value\",DataLog!I3274,\"\")","v":""},{"$f":"IF(DataLog!$C3274=\"Log value\",DataLog!J3274,\"\")","v":""},{"$f":"IF(DataLog!$C3274=\"Log value\",DataLog!K3274,\"\")","v":""},{"$f":"IF(DataLog!$C3274=\"Log value\",DataLog!L3274,\"\")","v":""},{"$f":"IF(DataLog!$C3274=\"Log value\",DataLog!M3274,\"\")","v":""},{"$f":"IF(DataLog!$C3274=\"Log value\",DataLog!N3274,\"\")","v":""},{"$f":"IF(DataLog!$C3274=\"Log value\",DataLog!O3274,\"\")","v":""},{"$f":"IF(DataLog!$C3274=\"Log value\",DataLog!P3274,\"\")","v":""},{"$f":"IF(DataLog!$C3274=\"Log value\",DataLog!Q3274,\"\")","v":""},{"$f":"IF(DataLog!$C3274=\"Log value\",DataLog!R3274,\"\")","v":""},{"$f":"IF(DataLog!$C3274=\"Log value\",DataLog!S3274,\"\")","v":""},{"$f":"IF(DataLog!$C3274=\"Log value\",DataLog!T3274,\"\")","v":""},{"$f":"IF(DataLog!$C3274=\"Log value\",DataLog!U3274,\"\")","v":""},{"$f":"IF(DataLog!$C3274=\"Log value\",DataLog!V3274,\"\")","v":""},{"$f":"IF(DataLog!$C3274=\"Log value\",DataLog!W3274,\"\")","v":""},{"$f":"IF(DataLog!$C3274=\"Log value\",DataLog!X3274,\"\")","v":""},{"$f":"IF(DataLog!$C3274=\"Log value\",DataLog!Y3274,\"\")","v":""},{"$f":"IF(DataLog!$C3274=\"Log value\",DataLog!Z3274,\"\")","v":""},{"$f":"IF(DataLog!$C3274=\"Log value\",DataLog!AA3274,\"\")","v":""},{"$f":"IF(DataLog!$C3274=\"Log value\",DataLog!AB3274,\"\")","v":""},{"$f":"IF(DataLog!$C3274=\"Log value\",DataLog!AC3274,\"\")","v":""},{"$f":"IF(DataLog!$C3274=\"Log value\",DataLog!AD3274,\"\")","v":""},{"$f":"IF(DataLog!$C3274=\"Log value\",DataLog!AE3274,\"\")","v":""},{"$f":"IF(DataLog!$C3274=\"Log value\",DataLog!AF3274,\"\")","v":""},{"$f":"IF(DataLog!$C3274=\"Log value\",DataLog!AG3274,\"\")","v":""},{"$f":"IF(DataLog!$C3274=\"Log value\",DataLog!AH3274,\"\")","v":""},{"$f":"IF(DataLog!$C3274=\"Log value\",DataLog!AI3274,\"\")","v":""},{"$f":"IF(DataLog!$C3274=\"Log value\",DataLog!AJ3274,\"\")","v":""},{"$f":"IF(DataLog!$C3274=\"Log value\",DataLog!AK3274,\"\")","v":""},{"$f":"IF(DataLog!$C3274=\"Log value\",DataLog!AL3274,\"\")","v":""},{"$f":"IF(DataLog!$C3274=\"Log value\",DataLog!AM3274,\"\")","v":""}]
[null,null,null,null,null,null,{"$f":"IF(DataLog!$C3275=\"Log value\",DataLog!D3275&\"_\"&TEXT(DataLog!B3275,\"åååå-mm-dd\"),\"\")","v":""},{"$f":"IF(DataLog!$C3275=\"Log value\",DataLog!E3275,\"\")","v":""},{"$f":"IF(DataLog!$C3275=\"Log value\",DataLog!F3275,\"\")","v":""},{"$f":"IF(DataLog!$C3275=\"Log value\",DataLog!G3275,\"\")","v":""},{"$f":"IF(DataLog!$C3275=\"Log value\",DataLog!H3275,\"\")","v":""},{"$f":"IF(DataLog!$C3275=\"Log value\",DataLog!I3275,\"\")","v":""},{"$f":"IF(DataLog!$C3275=\"Log value\",DataLog!J3275,\"\")","v":""},{"$f":"IF(DataLog!$C3275=\"Log value\",DataLog!K3275,\"\")","v":""},{"$f":"IF(DataLog!$C3275=\"Log value\",DataLog!L3275,\"\")","v":""},{"$f":"IF(DataLog!$C3275=\"Log value\",DataLog!M3275,\"\")","v":""},{"$f":"IF(DataLog!$C3275=\"Log value\",DataLog!N3275,\"\")","v":""},{"$f":"IF(DataLog!$C3275=\"Log value\",DataLog!O3275,\"\")","v":""},{"$f":"IF(DataLog!$C3275=\"Log value\",DataLog!P3275,\"\")","v":""},{"$f":"IF(DataLog!$C3275=\"Log value\",DataLog!Q3275,\"\")","v":""},{"$f":"IF(DataLog!$C3275=\"Log value\",DataLog!R3275,\"\")","v":""},{"$f":"IF(DataLog!$C3275=\"Log value\",DataLog!S3275,\"\")","v":""},{"$f":"IF(DataLog!$C3275=\"Log value\",DataLog!T3275,\"\")","v":""},{"$f":"IF(DataLog!$C3275=\"Log value\",DataLog!U3275,\"\")","v":""},{"$f":"IF(DataLog!$C3275=\"Log value\",DataLog!V3275,\"\")","v":""},{"$f":"IF(DataLog!$C3275=\"Log value\",DataLog!W3275,\"\")","v":""},{"$f":"IF(DataLog!$C3275=\"Log value\",DataLog!X3275,\"\")","v":""},{"$f":"IF(DataLog!$C3275=\"Log value\",DataLog!Y3275,\"\")","v":""},{"$f":"IF(DataLog!$C3275=\"Log value\",DataLog!Z3275,\"\")","v":""},{"$f":"IF(DataLog!$C3275=\"Log value\",DataLog!AA3275,\"\")","v":""},{"$f":"IF(DataLog!$C3275=\"Log value\",DataLog!AB3275,\"\")","v":""},{"$f":"IF(DataLog!$C3275=\"Log value\",DataLog!AC3275,\"\")","v":""},{"$f":"IF(DataLog!$C3275=\"Log value\",DataLog!AD3275,\"\")","v":""},{"$f":"IF(DataLog!$C3275=\"Log value\",DataLog!AE3275,\"\")","v":""},{"$f":"IF(DataLog!$C3275=\"Log value\",DataLog!AF3275,\"\")","v":""},{"$f":"IF(DataLog!$C3275=\"Log value\",DataLog!AG3275,\"\")","v":""},{"$f":"IF(DataLog!$C3275=\"Log value\",DataLog!AH3275,\"\")","v":""},{"$f":"IF(DataLog!$C3275=\"Log value\",DataLog!AI3275,\"\")","v":""},{"$f":"IF(DataLog!$C3275=\"Log value\",DataLog!AJ3275,\"\")","v":""},{"$f":"IF(DataLog!$C3275=\"Log value\",DataLog!AK3275,\"\")","v":""},{"$f":"IF(DataLog!$C3275=\"Log value\",DataLog!AL3275,\"\")","v":""},{"$f":"IF(DataLog!$C3275=\"Log value\",DataLog!AM3275,\"\")","v":""}]
[null,null,null,null,null,null,{"$f":"IF(DataLog!$C3276=\"Log value\",DataLog!D3276&\"_\"&TEXT(DataLog!B3276,\"åååå-mm-dd\"),\"\")","v":""},{"$f":"IF(DataLog!$C3276=\"Log value\",DataLog!E3276,\"\")","v":""},{"$f":"IF(DataLog!$C3276=\"Log value\",DataLog!F3276,\"\")","v":""},{"$f":"IF(DataLog!$C3276=\"Log value\",DataLog!G3276,\"\")","v":""},{"$f":"IF(DataLog!$C3276=\"Log value\",DataLog!H3276,\"\")","v":""},{"$f":"IF(DataLog!$C3276=\"Log value\",DataLog!I3276,\"\")","v":""},{"$f":"IF(DataLog!$C3276=\"Log value\",DataLog!J3276,\"\")","v":""},{"$f":"IF(DataLog!$C3276=\"Log value\",DataLog!K3276,\"\")","v":""},{"$f":"IF(DataLog!$C3276=\"Log value\",DataLog!L3276,\"\")","v":""},{"$f":"IF(DataLog!$C3276=\"Log value\",DataLog!M3276,\"\")","v":""},{"$f":"IF(DataLog!$C3276=\"Log value\",DataLog!N3276,\"\")","v":""},{"$f":"IF(DataLog!$C3276=\"Log value\",DataLog!O3276,\"\")","v":""},{"$f":"IF(DataLog!$C3276=\"Log value\",DataLog!P3276,\"\")","v":""},{"$f":"IF(DataLog!$C3276=\"Log value\",DataLog!Q3276,\"\")","v":""},{"$f":"IF(DataLog!$C3276=\"Log value\",DataLog!R3276,\"\")","v":""},{"$f":"IF(DataLog!$C3276=\"Log value\",DataLog!S3276,\"\")","v":""},{"$f":"IF(DataLog!$C3276=\"Log value\",DataLog!T3276,\"\")","v":""},{"$f":"IF(DataLog!$C3276=\"Log value\",DataLog!U3276,\"\")","v":""},{"$f":"IF(DataLog!$C3276=\"Log value\",DataLog!V3276,\"\")","v":""},{"$f":"IF(DataLog!$C3276=\"Log value\",DataLog!W3276,\"\")","v":""},{"$f":"IF(DataLog!$C3276=\"Log value\",DataLog!X3276,\"\")","v":""},{"$f":"IF(DataLog!$C3276=\"Log value\",DataLog!Y3276,\"\")","v":""},{"$f":"IF(DataLog!$C3276=\"Log value\",DataLog!Z3276,\"\")","v":""},{"$f":"IF(DataLog!$C3276=\"Log value\",DataLog!AA3276,\"\")","v":""},{"$f":"IF(DataLog!$C3276=\"Log value\",DataLog!AB3276,\"\")","v":""},{"$f":"IF(DataLog!$C3276=\"Log value\",DataLog!AC3276,\"\")","v":""},{"$f":"IF(DataLog!$C3276=\"Log value\",DataLog!AD3276,\"\")","v":""},{"$f":"IF(DataLog!$C3276=\"Log value\",DataLog!AE3276,\"\")","v":""},{"$f":"IF(DataLog!$C3276=\"Log value\",DataLog!AF3276,\"\")","v":""},{"$f":"IF(DataLog!$C3276=\"Log value\",DataLog!AG3276,\"\")","v":""},{"$f":"IF(DataLog!$C3276=\"Log value\",DataLog!AH3276,\"\")","v":""},{"$f":"IF(DataLog!$C3276=\"Log value\",DataLog!AI3276,\"\")","v":""},{"$f":"IF(DataLog!$C3276=\"Log value\",DataLog!AJ3276,\"\")","v":""},{"$f":"IF(DataLog!$C3276=\"Log value\",DataLog!AK3276,\"\")","v":""},{"$f":"IF(DataLog!$C3276=\"Log value\",DataLog!AL3276,\"\")","v":""},{"$f":"IF(DataLog!$C3276=\"Log value\",DataLog!AM3276,\"\")","v":""}]
[null,null,null,null,null,null,{"$f":"IF(DataLog!$C3277=\"Log value\",DataLog!D3277&\"_\"&TEXT(DataLog!B3277,\"åååå-mm-dd\"),\"\")","v":""},{"$f":"IF(DataLog!$C3277=\"Log value\",DataLog!E3277,\"\")","v":""},{"$f":"IF(DataLog!$C3277=\"Log value\",DataLog!F3277,\"\")","v":""},{"$f":"IF(DataLog!$C3277=\"Log value\",DataLog!G3277,\"\")","v":""},{"$f":"IF(DataLog!$C3277=\"Log value\",DataLog!H3277,\"\")","v":""},{"$f":"IF(DataLog!$C3277=\"Log value\",DataLog!I3277,\"\")","v":""},{"$f":"IF(DataLog!$C3277=\"Log value\",DataLog!J3277,\"\")","v":""},{"$f":"IF(DataLog!$C3277=\"Log value\",DataLog!K3277,\"\")","v":""},{"$f":"IF(DataLog!$C3277=\"Log value\",DataLog!L3277,\"\")","v":""},{"$f":"IF(DataLog!$C3277=\"Log value\",DataLog!M3277,\"\")","v":""},{"$f":"IF(DataLog!$C3277=\"Log value\",DataLog!N3277,\"\")","v":""},{"$f":"IF(DataLog!$C3277=\"Log value\",DataLog!O3277,\"\")","v":""},{"$f":"IF(DataLog!$C3277=\"Log value\",DataLog!P3277,\"\")","v":""},{"$f":"IF(DataLog!$C3277=\"Log value\",DataLog!Q3277,\"\")","v":""},{"$f":"IF(DataLog!$C3277=\"Log value\",DataLog!R3277,\"\")","v":""},{"$f":"IF(DataLog!$C3277=\"Log value\",DataLog!S3277,\"\")","v":""},{"$f":"IF(DataLog!$C3277=\"Log value\",DataLog!T3277,\"\")","v":""},{"$f":"IF(DataLog!$C3277=\"Log value\",DataLog!U3277,\"\")","v":""},{"$f":"IF(DataLog!$C3277=\"Log value\",DataLog!V3277,\"\")","v":""},{"$f":"IF(DataLog!$C3277=\"Log value\",DataLog!W3277,\"\")","v":""},{"$f":"IF(DataLog!$C3277=\"Log value\",DataLog!X3277,\"\")","v":""},{"$f":"IF(DataLog!$C3277=\"Log value\",DataLog!Y3277,\"\")","v":""},{"$f":"IF(DataLog!$C3277=\"Log value\",DataLog!Z3277,\"\")","v":""},{"$f":"IF(DataLog!$C3277=\"Log value\",DataLog!AA3277,\"\")","v":""},{"$f":"IF(DataLog!$C3277=\"Log value\",DataLog!AB3277,\"\")","v":""},{"$f":"IF(DataLog!$C3277=\"Log value\",DataLog!AC3277,\"\")","v":""},{"$f":"IF(DataLog!$C3277=\"Log value\",DataLog!AD3277,\"\")","v":""},{"$f":"IF(DataLog!$C3277=\"Log value\",DataLog!AE3277,\"\")","v":""},{"$f":"IF(DataLog!$C3277=\"Log value\",DataLog!AF3277,\"\")","v":""},{"$f":"IF(DataLog!$C3277=\"Log value\",DataLog!AG3277,\"\")","v":""},{"$f":"IF(DataLog!$C3277=\"Log value\",DataLog!AH3277,\"\")","v":""},{"$f":"IF(DataLog!$C3277=\"Log value\",DataLog!AI3277,\"\")","v":""},{"$f":"IF(DataLog!$C3277=\"Log value\",DataLog!AJ3277,\"\")","v":""},{"$f":"IF(DataLog!$C3277=\"Log value\",DataLog!AK3277,\"\")","v":""},{"$f":"IF(DataLog!$C3277=\"Log value\",DataLog!AL3277,\"\")","v":""},{"$f":"IF(DataLog!$C3277=\"Log value\",DataLog!AM3277,\"\")","v":""}]
[null,null,null,null,null,null,{"$f":"IF(DataLog!$C3278=\"Log value\",DataLog!D3278&\"_\"&TEXT(DataLog!B3278,\"åååå-mm-dd\"),\"\")","v":""},{"$f":"IF(DataLog!$C3278=\"Log value\",DataLog!E3278,\"\")","v":""},{"$f":"IF(DataLog!$C3278=\"Log value\",DataLog!F3278,\"\")","v":""},{"$f":"IF(DataLog!$C3278=\"Log value\",DataLog!G3278,\"\")","v":""},{"$f":"IF(DataLog!$C3278=\"Log value\",DataLog!H3278,\"\")","v":""},{"$f":"IF(DataLog!$C3278=\"Log value\",DataLog!I3278,\"\")","v":""},{"$f":"IF(DataLog!$C3278=\"Log value\",DataLog!J3278,\"\")","v":""},{"$f":"IF(DataLog!$C3278=\"Log value\",DataLog!K3278,\"\")","v":""},{"$f":"IF(DataLog!$C3278=\"Log value\",DataLog!L3278,\"\")","v":""},{"$f":"IF(DataLog!$C3278=\"Log value\",DataLog!M3278,\"\")","v":""},{"$f":"IF(DataLog!$C3278=\"Log value\",DataLog!N3278,\"\")","v":""},{"$f":"IF(DataLog!$C3278=\"Log value\",DataLog!O3278,\"\")","v":""},{"$f":"IF(DataLog!$C3278=\"Log value\",DataLog!P3278,\"\")","v":""},{"$f":"IF(DataLog!$C3278=\"Log value\",DataLog!Q3278,\"\")","v":""},{"$f":"IF(DataLog!$C3278=\"Log value\",DataLog!R3278,\"\")","v":""},{"$f":"IF(DataLog!$C3278=\"Log value\",DataLog!S3278,\"\")","v":""},{"$f":"IF(DataLog!$C3278=\"Log value\",DataLog!T3278,\"\")","v":""},{"$f":"IF(DataLog!$C3278=\"Log value\",DataLog!U3278,\"\")","v":""},{"$f":"IF(DataLog!$C3278=\"Log value\",DataLog!V3278,\"\")","v":""},{"$f":"IF(DataLog!$C3278=\"Log value\",DataLog!W3278,\"\")","v":""},{"$f":"IF(DataLog!$C3278=\"Log value\",DataLog!X3278,\"\")","v":""},{"$f":"IF(DataLog!$C3278=\"Log value\",DataLog!Y3278,\"\")","v":""},{"$f":"IF(DataLog!$C3278=\"Log value\",DataLog!Z3278,\"\")","v":""},{"$f":"IF(DataLog!$C3278=\"Log value\",DataLog!AA3278,\"\")","v":""},{"$f":"IF(DataLog!$C3278=\"Log value\",DataLog!AB3278,\"\")","v":""},{"$f":"IF(DataLog!$C3278=\"Log value\",DataLog!AC3278,\"\")","v":""},{"$f":"IF(DataLog!$C3278=\"Log value\",DataLog!AD3278,\"\")","v":""},{"$f":"IF(DataLog!$C3278=\"Log value\",DataLog!AE3278,\"\")","v":""},{"$f":"IF(DataLog!$C3278=\"Log value\",DataLog!AF3278,\"\")","v":""},{"$f":"IF(DataLog!$C3278=\"Log value\",DataLog!AG3278,\"\")","v":""},{"$f":"IF(DataLog!$C3278=\"Log value\",DataLog!AH3278,\"\")","v":""},{"$f":"IF(DataLog!$C3278=\"Log value\",DataLog!AI3278,\"\")","v":""},{"$f":"IF(DataLog!$C3278=\"Log value\",DataLog!AJ3278,\"\")","v":""},{"$f":"IF(DataLog!$C3278=\"Log value\",DataLog!AK3278,\"\")","v":""},{"$f":"IF(DataLog!$C3278=\"Log value\",DataLog!AL3278,\"\")","v":""},{"$f":"IF(DataLog!$C3278=\"Log value\",DataLog!AM3278,\"\")","v":""}]
[null,null,null,null,null,null,{"$f":"IF(DataLog!$C3279=\"Log value\",DataLog!D3279&\"_\"&TEXT(DataLog!B3279,\"åååå-mm-dd\"),\"\")","v":""},{"$f":"IF(DataLog!$C3279=\"Log value\",DataLog!E3279,\"\")","v":""},{"$f":"IF(DataLog!$C3279=\"Log value\",DataLog!F3279,\"\")","v":""},{"$f":"IF(DataLog!$C3279=\"Log value\",DataLog!G3279,\"\")","v":""},{"$f":"IF(DataLog!$C3279=\"Log value\",DataLog!H3279,\"\")","v":""},{"$f":"IF(DataLog!$C3279=\"Log value\",DataLog!I3279,\"\")","v":""},{"$f":"IF(DataLog!$C3279=\"Log value\",DataLog!J3279,\"\")","v":""},{"$f":"IF(DataLog!$C3279=\"Log value\",DataLog!K3279,\"\")","v":""},{"$f":"IF(DataLog!$C3279=\"Log value\",DataLog!L3279,\"\")","v":""},{"$f":"IF(DataLog!$C3279=\"Log value\",DataLog!M3279,\"\")","v":""},{"$f":"IF(DataLog!$C3279=\"Log value\",DataLog!N3279,\"\")","v":""},{"$f":"IF(DataLog!$C3279=\"Log value\",DataLog!O3279,\"\")","v":""},{"$f":"IF(DataLog!$C3279=\"Log value\",DataLog!P3279,\"\")","v":""},{"$f":"IF(DataLog!$C3279=\"Log value\",DataLog!Q3279,\"\")","v":""},{"$f":"IF(DataLog!$C3279=\"Log value\",DataLog!R3279,\"\")","v":""},{"$f":"IF(DataLog!$C3279=\"Log value\",DataLog!S3279,\"\")","v":""},{"$f":"IF(DataLog!$C3279=\"Log value\",DataLog!T3279,\"\")","v":""},{"$f":"IF(DataLog!$C3279=\"Log value\",DataLog!U3279,\"\")","v":""},{"$f":"IF(DataLog!$C3279=\"Log value\",DataLog!V3279,\"\")","v":""},{"$f":"IF(DataLog!$C3279=\"Log value\",DataLog!W3279,\"\")","v":""},{"$f":"IF(DataLog!$C3279=\"Log value\",DataLog!X3279,\"\")","v":""},{"$f":"IF(DataLog!$C3279=\"Log value\",DataLog!Y3279,\"\")","v":""},{"$f":"IF(DataLog!$C3279=\"Log value\",DataLog!Z3279,\"\")","v":""},{"$f":"IF(DataLog!$C3279=\"Log value\",DataLog!AA3279,\"\")","v":""},{"$f":"IF(DataLog!$C3279=\"Log value\",DataLog!AB3279,\"\")","v":""},{"$f":"IF(DataLog!$C3279=\"Log value\",DataLog!AC3279,\"\")","v":""},{"$f":"IF(DataLog!$C3279=\"Log value\",DataLog!AD3279,\"\")","v":""},{"$f":"IF(DataLog!$C3279=\"Log value\",DataLog!AE3279,\"\")","v":""},{"$f":"IF(DataLog!$C3279=\"Log value\",DataLog!AF3279,\"\")","v":""},{"$f":"IF(DataLog!$C3279=\"Log value\",DataLog!AG3279,\"\")","v":""},{"$f":"IF(DataLog!$C3279=\"Log value\",DataLog!AH3279,\"\")","v":""},{"$f":"IF(DataLog!$C3279=\"Log value\",DataLog!AI3279,\"\")","v":""},{"$f":"IF(DataLog!$C3279=\"Log value\",DataLog!AJ3279,\"\")","v":""},{"$f":"IF(DataLog!$C3279=\"Log value\",DataLog!AK3279,\"\")","v":""},{"$f":"IF(DataLog!$C3279=\"Log value\",DataLog!AL3279,\"\")","v":""},{"$f":"IF(DataLog!$C3279=\"Log value\",DataLog!AM3279,\"\")","v":""}]
[null,null,null,null,null,null,{"$f":"IF(DataLog!$C3280=\"Log value\",DataLog!D3280&\"_\"&TEXT(DataLog!B3280,\"åååå-mm-dd\"),\"\")","v":""},{"$f":"IF(DataLog!$C3280=\"Log value\",DataLog!E3280,\"\")","v":""},{"$f":"IF(DataLog!$C3280=\"Log value\",DataLog!F3280,\"\")","v":""},{"$f":"IF(DataLog!$C3280=\"Log value\",DataLog!G3280,\"\")","v":""},{"$f":"IF(DataLog!$C3280=\"Log value\",DataLog!H3280,\"\")","v":""},{"$f":"IF(DataLog!$C3280=\"Log value\",DataLog!I3280,\"\")","v":""},{"$f":"IF(DataLog!$C3280=\"Log value\",DataLog!J3280,\"\")","v":""},{"$f":"IF(DataLog!$C3280=\"Log value\",DataLog!K3280,\"\")","v":""},{"$f":"IF(DataLog!$C3280=\"Log value\",DataLog!L3280,\"\")","v":""},{"$f":"IF(DataLog!$C3280=\"Log value\",DataLog!M3280,\"\")","v":""},{"$f":"IF(DataLog!$C3280=\"Log value\",DataLog!N3280,\"\")","v":""},{"$f":"IF(DataLog!$C3280=\"Log value\",DataLog!O3280,\"\")","v":""},{"$f":"IF(DataLog!$C3280=\"Log value\",DataLog!P3280,\"\")","v":""},{"$f":"IF(DataLog!$C3280=\"Log value\",DataLog!Q3280,\"\")","v":""},{"$f":"IF(DataLog!$C3280=\"Log value\",DataLog!R3280,\"\")","v":""},{"$f":"IF(DataLog!$C3280=\"Log value\",DataLog!S3280,\"\")","v":""},{"$f":"IF(DataLog!$C3280=\"Log value\",DataLog!T3280,\"\")","v":""},{"$f":"IF(DataLog!$C3280=\"Log value\",DataLog!U3280,\"\")","v":""},{"$f":"IF(DataLog!$C3280=\"Log value\",DataLog!V3280,\"\")","v":""},{"$f":"IF(DataLog!$C3280=\"Log value\",DataLog!W3280,\"\")","v":""},{"$f":"IF(DataLog!$C3280=\"Log value\",DataLog!X3280,\"\")","v":""},{"$f":"IF(DataLog!$C3280=\"Log value\",DataLog!Y3280,\"\")","v":""},{"$f":"IF(DataLog!$C3280=\"Log value\",DataLog!Z3280,\"\")","v":""},{"$f":"IF(DataLog!$C3280=\"Log value\",DataLog!AA3280,\"\")","v":""},{"$f":"IF(DataLog!$C3280=\"Log value\",DataLog!AB3280,\"\")","v":""},{"$f":"IF(DataLog!$C3280=\"Log value\",DataLog!AC3280,\"\")","v":""},{"$f":"IF(DataLog!$C3280=\"Log value\",DataLog!AD3280,\"\")","v":""},{"$f":"IF(DataLog!$C3280=\"Log value\",DataLog!AE3280,\"\")","v":""},{"$f":"IF(DataLog!$C3280=\"Log value\",DataLog!AF3280,\"\")","v":""},{"$f":"IF(DataLog!$C3280=\"Log value\",DataLog!AG3280,\"\")","v":""},{"$f":"IF(DataLog!$C3280=\"Log value\",DataLog!AH3280,\"\")","v":""},{"$f":"IF(DataLog!$C3280=\"Log value\",DataLog!AI3280,\"\")","v":""},{"$f":"IF(DataLog!$C3280=\"Log value\",DataLog!AJ3280,\"\")","v":""},{"$f":"IF(DataLog!$C3280=\"Log value\",DataLog!AK3280,\"\")","v":""},{"$f":"IF(DataLog!$C3280=\"Log value\",DataLog!AL3280,\"\")","v":""},{"$f":"IF(DataLog!$C3280=\"Log value\",DataLog!AM3280,\"\")","v":""}]
[null,null,null,null,null,null,{"$f":"IF(DataLog!$C3281=\"Log value\",DataLog!D3281&\"_\"&TEXT(DataLog!B3281,\"åååå-mm-dd\"),\"\")","v":""},{"$f":"IF(DataLog!$C3281=\"Log value\",DataLog!E3281,\"\")","v":""},{"$f":"IF(DataLog!$C3281=\"Log value\",DataLog!F3281,\"\")","v":""},{"$f":"IF(DataLog!$C3281=\"Log value\",DataLog!G3281,\"\")","v":""},{"$f":"IF(DataLog!$C3281=\"Log value\",DataLog!H3281,\"\")","v":""},{"$f":"IF(DataLog!$C3281=\"Log value\",DataLog!I3281,\"\")","v":""},{"$f":"IF(DataLog!$C3281=\"Log value\",DataLog!J3281,\"\")","v":""},{"$f":"IF(DataLog!$C3281=\"Log value\",DataLog!K3281,\"\")","v":""},{"$f":"IF(DataLog!$C3281=\"Log value\",DataLog!L3281,\"\")","v":""},{"$f":"IF(DataLog!$C3281=\"Log value\",DataLog!M3281,\"\")","v":""},{"$f":"IF(DataLog!$C3281=\"Log value\",DataLog!N3281,\"\")","v":""},{"$f":"IF(DataLog!$C3281=\"Log value\",DataLog!O3281,\"\")","v":""},{"$f":"IF(DataLog!$C3281=\"Log value\",DataLog!P3281,\"\")","v":""},{"$f":"IF(DataLog!$C3281=\"Log value\",DataLog!Q3281,\"\")","v":""},{"$f":"IF(DataLog!$C3281=\"Log value\",DataLog!R3281,\"\")","v":""},{"$f":"IF(DataLog!$C3281=\"Log value\",DataLog!S3281,\"\")","v":""},{"$f":"IF(DataLog!$C3281=\"Log value\",DataLog!T3281,\"\")","v":""},{"$f":"IF(DataLog!$C3281=\"Log value\",DataLog!U3281,\"\")","v":""},{"$f":"IF(DataLog!$C3281=\"Log value\",DataLog!V3281,\"\")","v":""},{"$f":"IF(DataLog!$C3281=\"Log value\",DataLog!W3281,\"\")","v":""},{"$f":"IF(DataLog!$C3281=\"Log value\",DataLog!X3281,\"\")","v":""},{"$f":"IF(DataLog!$C3281=\"Log value\",DataLog!Y3281,\"\")","v":""},{"$f":"IF(DataLog!$C3281=\"Log value\",DataLog!Z3281,\"\")","v":""},{"$f":"IF(DataLog!$C3281=\"Log value\",DataLog!AA3281,\"\")","v":""},{"$f":"IF(DataLog!$C3281=\"Log value\",DataLog!AB3281,\"\")","v":""},{"$f":"IF(DataLog!$C3281=\"Log value\",DataLog!AC3281,\"\")","v":""},{"$f":"IF(DataLog!$C3281=\"Log value\",DataLog!AD3281,\"\")","v":""},{"$f":"IF(DataLog!$C3281=\"Log value\",DataLog!AE3281,\"\")","v":""},{"$f":"IF(DataLog!$C3281=\"Log value\",DataLog!AF3281,\"\")","v":""},{"$f":"IF(DataLog!$C3281=\"Log value\",DataLog!AG3281,\"\")","v":""},{"$f":"IF(DataLog!$C3281=\"Log value\",DataLog!AH3281,\"\")","v":""},{"$f":"IF(DataLog!$C3281=\"Log value\",DataLog!AI3281,\"\")","v":""},{"$f":"IF(DataLog!$C3281=\"Log value\",DataLog!AJ3281,\"\")","v":""},{"$f":"IF(DataLog!$C3281=\"Log value\",DataLog!AK3281,\"\")","v":""},{"$f":"IF(DataLog!$C3281=\"Log value\",DataLog!AL3281,\"\")","v":""},{"$f":"IF(DataLog!$C3281=\"Log value\",DataLog!AM3281,\"\")","v":""}]
[null,null,null,null,null,null,{"$f":"IF(DataLog!$C3282=\"Log value\",DataLog!D3282&\"_\"&TEXT(DataLog!B3282,\"åååå-mm-dd\"),\"\")","v":""},{"$f":"IF(DataLog!$C3282=\"Log value\",DataLog!E3282,\"\")","v":""},{"$f":"IF(DataLog!$C3282=\"Log value\",DataLog!F3282,\"\")","v":""},{"$f":"IF(DataLog!$C3282=\"Log value\",DataLog!G3282,\"\")","v":""},{"$f":"IF(DataLog!$C3282=\"Log value\",DataLog!H3282,\"\")","v":""},{"$f":"IF(DataLog!$C3282=\"Log value\",DataLog!I3282,\"\")","v":""},{"$f":"IF(DataLog!$C3282=\"Log value\",DataLog!J3282,\"\")","v":""},{"$f":"IF(DataLog!$C3282=\"Log value\",DataLog!K3282,\"\")","v":""},{"$f":"IF(DataLog!$C3282=\"Log value\",DataLog!L3282,\"\")","v":""},{"$f":"IF(DataLog!$C3282=\"Log value\",DataLog!M3282,\"\")","v":""},{"$f":"IF(DataLog!$C3282=\"Log value\",DataLog!N3282,\"\")","v":""},{"$f":"IF(DataLog!$C3282=\"Log value\",DataLog!O3282,\"\")","v":""},{"$f":"IF(DataLog!$C3282=\"Log value\",DataLog!P3282,\"\")","v":""},{"$f":"IF(DataLog!$C3282=\"Log value\",DataLog!Q3282,\"\")","v":""},{"$f":"IF(DataLog!$C3282=\"Log value\",DataLog!R3282,\"\")","v":""},{"$f":"IF(DataLog!$C3282=\"Log value\",DataLog!S3282,\"\")","v":""},{"$f":"IF(DataLog!$C3282=\"Log value\",DataLog!T3282,\"\")","v":""},{"$f":"IF(DataLog!$C3282=\"Log value\",DataLog!U3282,\"\")","v":""},{"$f":"IF(DataLog!$C3282=\"Log value\",DataLog!V3282,\"\")","v":""},{"$f":"IF(DataLog!$C3282=\"Log value\",DataLog!W3282,\"\")","v":""},{"$f":"IF(DataLog!$C3282=\"Log value\",DataLog!X3282,\"\")","v":""},{"$f":"IF(DataLog!$C3282=\"Log value\",DataLog!Y3282,\"\")","v":""},{"$f":"IF(DataLog!$C3282=\"Log value\",DataLog!Z3282,\"\")","v":""},{"$f":"IF(DataLog!$C3282=\"Log value\",DataLog!AA3282,\"\")","v":""},{"$f":"IF(DataLog!$C3282=\"Log value\",DataLog!AB3282,\"\")","v":""},{"$f":"IF(DataLog!$C3282=\"Log value\",DataLog!AC3282,\"\")","v":""},{"$f":"IF(DataLog!$C3282=\"Log value\",DataLog!AD3282,\"\")","v":""},{"$f":"IF(DataLog!$C3282=\"Log value\",DataLog!AE3282,\"\")","v":""},{"$f":"IF(DataLog!$C3282=\"Log value\",DataLog!AF3282,\"\")","v":""},{"$f":"IF(DataLog!$C3282=\"Log value\",DataLog!AG3282,\"\")","v":""},{"$f":"IF(DataLog!$C3282=\"Log value\",DataLog!AH3282,\"\")","v":""},{"$f":"IF(DataLog!$C3282=\"Log value\",DataLog!AI3282,\"\")","v":""},{"$f":"IF(DataLog!$C3282=\"Log value\",DataLog!AJ3282,\"\")","v":""},{"$f":"IF(DataLog!$C3282=\"Log value\",DataLog!AK3282,\"\")","v":""},{"$f":"IF(DataLog!$C3282=\"Log value\",DataLog!AL3282,\"\")","v":""},{"$f":"IF(DataLog!$C3282=\"Log value\",DataLog!AM3282,\"\")","v":""}]
[null,null,null,null,null,null,{"$f":"IF(DataLog!$C3283=\"Log value\",DataLog!D3283&\"_\"&TEXT(DataLog!B3283,\"åååå-mm-dd\"),\"\")","v":""},{"$f":"IF(DataLog!$C3283=\"Log value\",DataLog!E3283,\"\")","v":""},{"$f":"IF(DataLog!$C3283=\"Log value\",DataLog!F3283,\"\")","v":""},{"$f":"IF(DataLog!$C3283=\"Log value\",DataLog!G3283,\"\")","v":""},{"$f":"IF(DataLog!$C3283=\"Log value\",DataLog!H3283,\"\")","v":""},{"$f":"IF(DataLog!$C3283=\"Log value\",DataLog!I3283,\"\")","v":""},{"$f":"IF(DataLog!$C3283=\"Log value\",DataLog!J3283,\"\")","v":""},{"$f":"IF(DataLog!$C3283=\"Log value\",DataLog!K3283,\"\")","v":""},{"$f":"IF(DataLog!$C3283=\"Log value\",DataLog!L3283,\"\")","v":""},{"$f":"IF(DataLog!$C3283=\"Log value\",DataLog!M3283,\"\")","v":""},{"$f":"IF(DataLog!$C3283=\"Log value\",DataLog!N3283,\"\")","v":""},{"$f":"IF(DataLog!$C3283=\"Log value\",DataLog!O3283,\"\")","v":""},{"$f":"IF(DataLog!$C3283=\"Log value\",DataLog!P3283,\"\")","v":""},{"$f":"IF(DataLog!$C3283=\"Log value\",DataLog!Q3283,\"\")","v":""},{"$f":"IF(DataLog!$C3283=\"Log value\",DataLog!R3283,\"\")","v":""},{"$f":"IF(DataLog!$C3283=\"Log value\",DataLog!S3283,\"\")","v":""},{"$f":"IF(DataLog!$C3283=\"Log value\",DataLog!T3283,\"\")","v":""},{"$f":"IF(DataLog!$C3283=\"Log value\",DataLog!U3283,\"\")","v":""},{"$f":"IF(DataLog!$C3283=\"Log value\",DataLog!V3283,\"\")","v":""},{"$f":"IF(DataLog!$C3283=\"Log value\",DataLog!W3283,\"\")","v":""},{"$f":"IF(DataLog!$C3283=\"Log value\",DataLog!X3283,\"\")","v":""},{"$f":"IF(DataLog!$C3283=\"Log value\",DataLog!Y3283,\"\")","v":""},{"$f":"IF(DataLog!$C3283=\"Log value\",DataLog!Z3283,\"\")","v":""},{"$f":"IF(DataLog!$C3283=\"Log value\",DataLog!AA3283,\"\")","v":""},{"$f":"IF(DataLog!$C3283=\"Log value\",DataLog!AB3283,\"\")","v":""},{"$f":"IF(DataLog!$C3283=\"Log value\",DataLog!AC3283,\"\")","v":""},{"$f":"IF(DataLog!$C3283=\"Log value\",DataLog!AD3283,\"\")","v":""},{"$f":"IF(DataLog!$C3283=\"Log value\",DataLog!AE3283,\"\")","v":""},{"$f":"IF(DataLog!$C3283=\"Log value\",DataLog!AF3283,\"\")","v":""},{"$f":"IF(DataLog!$C3283=\"Log value\",DataLog!AG3283,\"\")","v":""},{"$f":"IF(DataLog!$C3283=\"Log value\",DataLog!AH3283,\"\")","v":""},{"$f":"IF(DataLog!$C3283=\"Log value\",DataLog!AI3283,\"\")","v":""},{"$f":"IF(DataLog!$C3283=\"Log value\",DataLog!AJ3283,\"\")","v":""},{"$f":"IF(DataLog!$C3283=\"Log value\",DataLog!AK3283,\"\")","v":""},{"$f":"IF(DataLog!$C3283=\"Log value\",DataLog!AL3283,\"\")","v":""},{"$f":"IF(DataLog!$C3283=\"Log value\",DataLog!AM3283,\"\")","v":""}]
[null,null,null,null,null,null,{"$f":"IF(DataLog!$C3284=\"Log value\",DataLog!D3284&\"_\"&TEXT(DataLog!B3284,\"åååå-mm-dd\"),\"\")","v":""},{"$f":"IF(DataLog!$C3284=\"Log value\",DataLog!E3284,\"\")","v":""},{"$f":"IF(DataLog!$C3284=\"Log value\",DataLog!F3284,\"\")","v":""},{"$f":"IF(DataLog!$C3284=\"Log value\",DataLog!G3284,\"\")","v":""},{"$f":"IF(DataLog!$C3284=\"Log value\",DataLog!H3284,\"\")","v":""},{"$f":"IF(DataLog!$C3284=\"Log value\",DataLog!I3284,\"\")","v":""},{"$f":"IF(DataLog!$C3284=\"Log value\",DataLog!J3284,\"\")","v":""},{"$f":"IF(DataLog!$C3284=\"Log value\",DataLog!K3284,\"\")","v":""},{"$f":"IF(DataLog!$C3284=\"Log value\",DataLog!L3284,\"\")","v":""},{"$f":"IF(DataLog!$C3284=\"Log value\",DataLog!M3284,\"\")","v":""},{"$f":"IF(DataLog!$C3284=\"Log value\",DataLog!N3284,\"\")","v":""},{"$f":"IF(DataLog!$C3284=\"Log value\",DataLog!O3284,\"\")","v":""},{"$f":"IF(DataLog!$C3284=\"Log value\",DataLog!P3284,\"\")","v":""},{"$f":"IF(DataLog!$C3284=\"Log value\",DataLog!Q3284,\"\")","v":""},{"$f":"IF(DataLog!$C3284=\"Log value\",DataLog!R3284,\"\")","v":""},{"$f":"IF(DataLog!$C3284=\"Log value\",DataLog!S3284,\"\")","v":""},{"$f":"IF(DataLog!$C3284=\"Log value\",DataLog!T3284,\"\")","v":""},{"$f":"IF(DataLog!$C3284=\"Log value\",DataLog!U3284,\"\")","v":""},{"$f":"IF(DataLog!$C3284=\"Log value\",DataLog!V3284,\"\")","v":""},{"$f":"IF(DataLog!$C3284=\"Log value\",DataLog!W3284,\"\")","v":""},{"$f":"IF(DataLog!$C3284=\"Log value\",DataLog!X3284,\"\")","v":""},{"$f":"IF(DataLog!$C3284=\"Log value\",DataLog!Y3284,\"\")","v":""},{"$f":"IF(DataLog!$C3284=\"Log value\",DataLog!Z3284,\"\")","v":""},{"$f":"IF(DataLog!$C3284=\"Log value\",DataLog!AA3284,\"\")","v":""},{"$f":"IF(DataLog!$C3284=\"Log value\",DataLog!AB3284,\"\")","v":""},{"$f":"IF(DataLog!$C3284=\"Log value\",DataLog!AC3284,\"\")","v":""},{"$f":"IF(DataLog!$C3284=\"Log value\",DataLog!AD3284,\"\")","v":""},{"$f":"IF(DataLog!$C3284=\"Log value\",DataLog!AE3284,\"\")","v":""},{"$f":"IF(DataLog!$C3284=\"Log value\",DataLog!AF3284,\"\")","v":""},{"$f":"IF(DataLog!$C3284=\"Log value\",DataLog!AG3284,\"\")","v":""},{"$f":"IF(DataLog!$C3284=\"Log value\",DataLog!AH3284,\"\")","v":""},{"$f":"IF(DataLog!$C3284=\"Log value\",DataLog!AI3284,\"\")","v":""},{"$f":"IF(DataLog!$C3284=\"Log value\",DataLog!AJ3284,\"\")","v":""},{"$f":"IF(DataLog!$C3284=\"Log value\",DataLog!AK3284,\"\")","v":""},{"$f":"IF(DataLog!$C3284=\"Log value\",DataLog!AL3284,\"\")","v":""},{"$f":"IF(DataLog!$C3284=\"Log value\",DataLog!AM3284,\"\")","v":""}]
[null,null,null,null,null,null,{"$f":"IF(DataLog!$C3285=\"Log value\",DataLog!D3285&\"_\"&TEXT(DataLog!B3285,\"åååå-mm-dd\"),\"\")","v":""},{"$f":"IF(DataLog!$C3285=\"Log value\",DataLog!E3285,\"\")","v":""},{"$f":"IF(DataLog!$C3285=\"Log value\",DataLog!F3285,\"\")","v":""},{"$f":"IF(DataLog!$C3285=\"Log value\",DataLog!G3285,\"\")","v":""},{"$f":"IF(DataLog!$C3285=\"Log value\",DataLog!H3285,\"\")","v":""},{"$f":"IF(DataLog!$C3285=\"Log value\",DataLog!I3285,\"\")","v":""},{"$f":"IF(DataLog!$C3285=\"Log value\",DataLog!J3285,\"\")","v":""},{"$f":"IF(DataLog!$C3285=\"Log value\",DataLog!K3285,\"\")","v":""},{"$f":"IF(DataLog!$C3285=\"Log value\",DataLog!L3285,\"\")","v":""},{"$f":"IF(DataLog!$C3285=\"Log value\",DataLog!M3285,\"\")","v":""},{"$f":"IF(DataLog!$C3285=\"Log value\",DataLog!N3285,\"\")","v":""},{"$f":"IF(DataLog!$C3285=\"Log value\",DataLog!O3285,\"\")","v":""},{"$f":"IF(DataLog!$C3285=\"Log value\",DataLog!P3285,\"\")","v":""},{"$f":"IF(DataLog!$C3285=\"Log value\",DataLog!Q3285,\"\")","v":""},{"$f":"IF(DataLog!$C3285=\"Log value\",DataLog!R3285,\"\")","v":""},{"$f":"IF(DataLog!$C3285=\"Log value\",DataLog!S3285,\"\")","v":""},{"$f":"IF(DataLog!$C3285=\"Log value\",DataLog!T3285,\"\")","v":""},{"$f":"IF(DataLog!$C3285=\"Log value\",DataLog!U3285,\"\")","v":""},{"$f":"IF(DataLog!$C3285=\"Log value\",DataLog!V3285,\"\")","v":""},{"$f":"IF(DataLog!$C3285=\"Log value\",DataLog!W3285,\"\")","v":""},{"$f":"IF(DataLog!$C3285=\"Log value\",DataLog!X3285,\"\")","v":""},{"$f":"IF(DataLog!$C3285=\"Log value\",DataLog!Y3285,\"\")","v":""},{"$f":"IF(DataLog!$C3285=\"Log value\",DataLog!Z3285,\"\")","v":""},{"$f":"IF(DataLog!$C3285=\"Log value\",DataLog!AA3285,\"\")","v":""},{"$f":"IF(DataLog!$C3285=\"Log value\",DataLog!AB3285,\"\")","v":""},{"$f":"IF(DataLog!$C3285=\"Log value\",DataLog!AC3285,\"\")","v":""},{"$f":"IF(DataLog!$C3285=\"Log value\",DataLog!AD3285,\"\")","v":""},{"$f":"IF(DataLog!$C3285=\"Log value\",DataLog!AE3285,\"\")","v":""},{"$f":"IF(DataLog!$C3285=\"Log value\",DataLog!AF3285,\"\")","v":""},{"$f":"IF(DataLog!$C3285=\"Log value\",DataLog!AG3285,\"\")","v":""},{"$f":"IF(DataLog!$C3285=\"Log value\",DataLog!AH3285,\"\")","v":""},{"$f":"IF(DataLog!$C3285=\"Log value\",DataLog!AI3285,\"\")","v":""},{"$f":"IF(DataLog!$C3285=\"Log value\",DataLog!AJ3285,\"\")","v":""},{"$f":"IF(DataLog!$C3285=\"Log value\",DataLog!AK3285,\"\")","v":""},{"$f":"IF(DataLog!$C3285=\"Log value\",DataLog!AL3285,\"\")","v":""},{"$f":"IF(DataLog!$C3285=\"Log value\",DataLog!AM3285,\"\")","v":""}]
[null,null,null,null,null,null,{"$f":"IF(DataLog!$C3286=\"Log value\",DataLog!D3286&\"_\"&TEXT(DataLog!B3286,\"åååå-mm-dd\"),\"\")","v":""},{"$f":"IF(DataLog!$C3286=\"Log value\",DataLog!E3286,\"\")","v":""},{"$f":"IF(DataLog!$C3286=\"Log value\",DataLog!F3286,\"\")","v":""},{"$f":"IF(DataLog!$C3286=\"Log value\",DataLog!G3286,\"\")","v":""},{"$f":"IF(DataLog!$C3286=\"Log value\",DataLog!H3286,\"\")","v":""},{"$f":"IF(DataLog!$C3286=\"Log value\",DataLog!I3286,\"\")","v":""},{"$f":"IF(DataLog!$C3286=\"Log value\",DataLog!J3286,\"\")","v":""},{"$f":"IF(DataLog!$C3286=\"Log value\",DataLog!K3286,\"\")","v":""},{"$f":"IF(DataLog!$C3286=\"Log value\",DataLog!L3286,\"\")","v":""},{"$f":"IF(DataLog!$C3286=\"Log value\",DataLog!M3286,\"\")","v":""},{"$f":"IF(DataLog!$C3286=\"Log value\",DataLog!N3286,\"\")","v":""},{"$f":"IF(DataLog!$C3286=\"Log value\",DataLog!O3286,\"\")","v":""},{"$f":"IF(DataLog!$C3286=\"Log value\",DataLog!P3286,\"\")","v":""},{"$f":"IF(DataLog!$C3286=\"Log value\",DataLog!Q3286,\"\")","v":""},{"$f":"IF(DataLog!$C3286=\"Log value\",DataLog!R3286,\"\")","v":""},{"$f":"IF(DataLog!$C3286=\"Log value\",DataLog!S3286,\"\")","v":""},{"$f":"IF(DataLog!$C3286=\"Log value\",DataLog!T3286,\"\")","v":""},{"$f":"IF(DataLog!$C3286=\"Log value\",DataLog!U3286,\"\")","v":""},{"$f":"IF(DataLog!$C3286=\"Log value\",DataLog!V3286,\"\")","v":""},{"$f":"IF(DataLog!$C3286=\"Log value\",DataLog!W3286,\"\")","v":""},{"$f":"IF(DataLog!$C3286=\"Log value\",DataLog!X3286,\"\")","v":""},{"$f":"IF(DataLog!$C3286=\"Log value\",DataLog!Y3286,\"\")","v":""},{"$f":"IF(DataLog!$C3286=\"Log value\",DataLog!Z3286,\"\")","v":""},{"$f":"IF(DataLog!$C3286=\"Log value\",DataLog!AA3286,\"\")","v":""},{"$f":"IF(DataLog!$C3286=\"Log value\",DataLog!AB3286,\"\")","v":""},{"$f":"IF(DataLog!$C3286=\"Log value\",DataLog!AC3286,\"\")","v":""},{"$f":"IF(DataLog!$C3286=\"Log value\",DataLog!AD3286,\"\")","v":""},{"$f":"IF(DataLog!$C3286=\"Log value\",DataLog!AE3286,\"\")","v":""},{"$f":"IF(DataLog!$C3286=\"Log value\",DataLog!AF3286,\"\")","v":""},{"$f":"IF(DataLog!$C3286=\"Log value\",DataLog!AG3286,\"\")","v":""},{"$f":"IF(DataLog!$C3286=\"Log value\",DataLog!AH3286,\"\")","v":""},{"$f":"IF(DataLog!$C3286=\"Log value\",DataLog!AI3286,\"\")","v":""},{"$f":"IF(DataLog!$C3286=\"Log value\",DataLog!AJ3286,\"\")","v":""},{"$f":"IF(DataLog!$C3286=\"Log value\",DataLog!AK3286,\"\")","v":""},{"$f":"IF(DataLog!$C3286=\"Log value\",DataLog!AL3286,\"\")","v":""},{"$f":"IF(DataLog!$C3286=\"Log value\",DataLog!AM3286,\"\")","v":""}]
[null,null,null,null,null,null,{"$f":"IF(DataLog!$C3287=\"Log value\",DataLog!D3287&\"_\"&TEXT(DataLog!B3287,\"åååå-mm-dd\"),\"\")","v":""},{"$f":"IF(DataLog!$C3287=\"Log value\",DataLog!E3287,\"\")","v":""},{"$f":"IF(DataLog!$C3287=\"Log value\",DataLog!F3287,\"\")","v":""},{"$f":"IF(DataLog!$C3287=\"Log value\",DataLog!G3287,\"\")","v":""},{"$f":"IF(DataLog!$C3287=\"Log value\",DataLog!H3287,\"\")","v":""},{"$f":"IF(DataLog!$C3287=\"Log value\",DataLog!I3287,\"\")","v":""},{"$f":"IF(DataLog!$C3287=\"Log value\",DataLog!J3287,\"\")","v":""},{"$f":"IF(DataLog!$C3287=\"Log value\",DataLog!K3287,\"\")","v":""},{"$f":"IF(DataLog!$C3287=\"Log value\",DataLog!L3287,\"\")","v":""},{"$f":"IF(DataLog!$C3287=\"Log value\",DataLog!M3287,\"\")","v":""},{"$f":"IF(DataLog!$C3287=\"Log value\",DataLog!N3287,\"\")","v":""},{"$f":"IF(DataLog!$C3287=\"Log value\",DataLog!O3287,\"\")","v":""},{"$f":"IF(DataLog!$C3287=\"Log value\",DataLog!P3287,\"\")","v":""},{"$f":"IF(DataLog!$C3287=\"Log value\",DataLog!Q3287,\"\")","v":""},{"$f":"IF(DataLog!$C3287=\"Log value\",DataLog!R3287,\"\")","v":""},{"$f":"IF(DataLog!$C3287=\"Log value\",DataLog!S3287,\"\")","v":""},{"$f":"IF(DataLog!$C3287=\"Log value\",DataLog!T3287,\"\")","v":""},{"$f":"IF(DataLog!$C3287=\"Log value\",DataLog!U3287,\"\")","v":""},{"$f":"IF(DataLog!$C3287=\"Log value\",DataLog!V3287,\"\")","v":""},{"$f":"IF(DataLog!$C3287=\"Log value\",DataLog!W3287,\"\")","v":""},{"$f":"IF(DataLog!$C3287=\"Log value\",DataLog!X3287,\"\")","v":""},{"$f":"IF(DataLog!$C3287=\"Log value\",DataLog!Y3287,\"\")","v":""},{"$f":"IF(DataLog!$C3287=\"Log value\",DataLog!Z3287,\"\")","v":""},{"$f":"IF(DataLog!$C3287=\"Log value\",DataLog!AA3287,\"\")","v":""},{"$f":"IF(DataLog!$C3287=\"Log value\",DataLog!AB3287,\"\")","v":""},{"$f":"IF(DataLog!$C3287=\"Log value\",DataLog!AC3287,\"\")","v":""},{"$f":"IF(DataLog!$C3287=\"Log value\",DataLog!AD3287,\"\")","v":""},{"$f":"IF(DataLog!$C3287=\"Log value\",DataLog!AE3287,\"\")","v":""},{"$f":"IF(DataLog!$C3287=\"Log value\",DataLog!AF3287,\"\")","v":""},{"$f":"IF(DataLog!$C3287=\"Log value\",DataLog!AG3287,\"\")","v":""},{"$f":"IF(DataLog!$C3287=\"Log value\",DataLog!AH3287,\"\")","v":""},{"$f":"IF(DataLog!$C3287=\"Log value\",DataLog!AI3287,\"\")","v":""},{"$f":"IF(DataLog!$C3287=\"Log value\",DataLog!AJ3287,\"\")","v":""},{"$f":"IF(DataLog!$C3287=\"Log value\",DataLog!AK3287,\"\")","v":""},{"$f":"IF(DataLog!$C3287=\"Log value\",DataLog!AL3287,\"\")","v":""},{"$f":"IF(DataLog!$C3287=\"Log value\",DataLog!AM3287,\"\")","v":""}]
[null,null,null,null,null,null,{"$f":"IF(DataLog!$C3288=\"Log value\",DataLog!D3288&\"_\"&TEXT(DataLog!B3288,\"åååå-mm-dd\"),\"\")","v":""},{"$f":"IF(DataLog!$C3288=\"Log value\",DataLog!E3288,\"\")","v":""},{"$f":"IF(DataLog!$C3288=\"Log value\",DataLog!F3288,\"\")","v":""},{"$f":"IF(DataLog!$C3288=\"Log value\",DataLog!G3288,\"\")","v":""},{"$f":"IF(DataLog!$C3288=\"Log value\",DataLog!H3288,\"\")","v":""},{"$f":"IF(DataLog!$C3288=\"Log value\",DataLog!I3288,\"\")","v":""},{"$f":"IF(DataLog!$C3288=\"Log value\",DataLog!J3288,\"\")","v":""},{"$f":"IF(DataLog!$C3288=\"Log value\",DataLog!K3288,\"\")","v":""},{"$f":"IF(DataLog!$C3288=\"Log value\",DataLog!L3288,\"\")","v":""},{"$f":"IF(DataLog!$C3288=\"Log value\",DataLog!M3288,\"\")","v":""},{"$f":"IF(DataLog!$C3288=\"Log value\",DataLog!N3288,\"\")","v":""},{"$f":"IF(DataLog!$C3288=\"Log value\",DataLog!O3288,\"\")","v":""},{"$f":"IF(DataLog!$C3288=\"Log value\",DataLog!P3288,\"\")","v":""},{"$f":"IF(DataLog!$C3288=\"Log value\",DataLog!Q3288,\"\")","v":""},{"$f":"IF(DataLog!$C3288=\"Log value\",DataLog!R3288,\"\")","v":""},{"$f":"IF(DataLog!$C3288=\"Log value\",DataLog!S3288,\"\")","v":""},{"$f":"IF(DataLog!$C3288=\"Log value\",DataLog!T3288,\"\")","v":""},{"$f":"IF(DataLog!$C3288=\"Log value\",DataLog!U3288,\"\")","v":""},{"$f":"IF(DataLog!$C3288=\"Log value\",DataLog!V3288,\"\")","v":""},{"$f":"IF(DataLog!$C3288=\"Log value\",DataLog!W3288,\"\")","v":""},{"$f":"IF(DataLog!$C3288=\"Log value\",DataLog!X3288,\"\")","v":""},{"$f":"IF(DataLog!$C3288=\"Log value\",DataLog!Y3288,\"\")","v":""},{"$f":"IF(DataLog!$C3288=\"Log value\",DataLog!Z3288,\"\")","v":""},{"$f":"IF(DataLog!$C3288=\"Log value\",DataLog!AA3288,\"\")","v":""},{"$f":"IF(DataLog!$C3288=\"Log value\",DataLog!AB3288,\"\")","v":""},{"$f":"IF(DataLog!$C3288=\"Log value\",DataLog!AC3288,\"\")","v":""},{"$f":"IF(DataLog!$C3288=\"Log value\",DataLog!AD3288,\"\")","v":""},{"$f":"IF(DataLog!$C3288=\"Log value\",DataLog!AE3288,\"\")","v":""},{"$f":"IF(DataLog!$C3288=\"Log value\",DataLog!AF3288,\"\")","v":""},{"$f":"IF(DataLog!$C3288=\"Log value\",DataLog!AG3288,\"\")","v":""},{"$f":"IF(DataLog!$C3288=\"Log value\",DataLog!AH3288,\"\")","v":""},{"$f":"IF(DataLog!$C3288=\"Log value\",DataLog!AI3288,\"\")","v":""},{"$f":"IF(DataLog!$C3288=\"Log value\",DataLog!AJ3288,\"\")","v":""},{"$f":"IF(DataLog!$C3288=\"Log value\",DataLog!AK3288,\"\")","v":""},{"$f":"IF(DataLog!$C3288=\"Log value\",DataLog!AL3288,\"\")","v":""},{"$f":"IF(DataLog!$C3288=\"Log value\",DataLog!AM3288,\"\")","v":""}]
[null,null,null,null,null,null,{"$f":"IF(DataLog!$C3289=\"Log value\",DataLog!D3289&\"_\"&TEXT(DataLog!B3289,\"åååå-mm-dd\"),\"\")","v":""},{"$f":"IF(DataLog!$C3289=\"Log value\",DataLog!E3289,\"\")","v":""},{"$f":"IF(DataLog!$C3289=\"Log value\",DataLog!F3289,\"\")","v":""},{"$f":"IF(DataLog!$C3289=\"Log value\",DataLog!G3289,\"\")","v":""},{"$f":"IF(DataLog!$C3289=\"Log value\",DataLog!H3289,\"\")","v":""},{"$f":"IF(DataLog!$C3289=\"Log value\",DataLog!I3289,\"\")","v":""},{"$f":"IF(DataLog!$C3289=\"Log value\",DataLog!J3289,\"\")","v":""},{"$f":"IF(DataLog!$C3289=\"Log value\",DataLog!K3289,\"\")","v":""},{"$f":"IF(DataLog!$C3289=\"Log value\",DataLog!L3289,\"\")","v":""},{"$f":"IF(DataLog!$C3289=\"Log value\",DataLog!M3289,\"\")","v":""},{"$f":"IF(DataLog!$C3289=\"Log value\",DataLog!N3289,\"\")","v":""},{"$f":"IF(DataLog!$C3289=\"Log value\",DataLog!O3289,\"\")","v":""},{"$f":"IF(DataLog!$C3289=\"Log value\",DataLog!P3289,\"\")","v":""},{"$f":"IF(DataLog!$C3289=\"Log value\",DataLog!Q3289,\"\")","v":""},{"$f":"IF(DataLog!$C3289=\"Log value\",DataLog!R3289,\"\")","v":""},{"$f":"IF(DataLog!$C3289=\"Log value\",DataLog!S3289,\"\")","v":""},{"$f":"IF(DataLog!$C3289=\"Log value\",DataLog!T3289,\"\")","v":""},{"$f":"IF(DataLog!$C3289=\"Log value\",DataLog!U3289,\"\")","v":""},{"$f":"IF(DataLog!$C3289=\"Log value\",DataLog!V3289,\"\")","v":""},{"$f":"IF(DataLog!$C3289=\"Log value\",DataLog!W3289,\"\")","v":""},{"$f":"IF(DataLog!$C3289=\"Log value\",DataLog!X3289,\"\")","v":""},{"$f":"IF(DataLog!$C3289=\"Log value\",DataLog!Y3289,\"\")","v":""},{"$f":"IF(DataLog!$C3289=\"Log value\",DataLog!Z3289,\"\")","v":""},{"$f":"IF(DataLog!$C3289=\"Log value\",DataLog!AA3289,\"\")","v":""},{"$f":"IF(DataLog!$C3289=\"Log value\",DataLog!AB3289,\"\")","v":""},{"$f":"IF(DataLog!$C3289=\"Log value\",DataLog!AC3289,\"\")","v":""},{"$f":"IF(DataLog!$C3289=\"Log value\",DataLog!AD3289,\"\")","v":""},{"$f":"IF(DataLog!$C3289=\"Log value\",DataLog!AE3289,\"\")","v":""},{"$f":"IF(DataLog!$C3289=\"Log value\",DataLog!AF3289,\"\")","v":""},{"$f":"IF(DataLog!$C3289=\"Log value\",DataLog!AG3289,\"\")","v":""},{"$f":"IF(DataLog!$C3289=\"Log value\",DataLog!AH3289,\"\")","v":""},{"$f":"IF(DataLog!$C3289=\"Log value\",DataLog!AI3289,\"\")","v":""},{"$f":"IF(DataLog!$C3289=\"Log value\",DataLog!AJ3289,\"\")","v":""},{"$f":"IF(DataLog!$C3289=\"Log value\",DataLog!AK3289,\"\")","v":""},{"$f":"IF(DataLog!$C3289=\"Log value\",DataLog!AL3289,\"\")","v":""},{"$f":"IF(DataLog!$C3289=\"Log value\",DataLog!AM3289,\"\")","v":""}]
[null,null,null,null,null,null,{"$f":"IF(DataLog!$C3290=\"Log value\",DataLog!D3290&\"_\"&TEXT(DataLog!B3290,\"åååå-mm-dd\"),\"\")","v":""},{"$f":"IF(DataLog!$C3290=\"Log value\",DataLog!E3290,\"\")","v":""},{"$f":"IF(DataLog!$C3290=\"Log value\",DataLog!F3290,\"\")","v":""},{"$f":"IF(DataLog!$C3290=\"Log value\",DataLog!G3290,\"\")","v":""},{"$f":"IF(DataLog!$C3290=\"Log value\",DataLog!H3290,\"\")","v":""},{"$f":"IF(DataLog!$C3290=\"Log value\",DataLog!I3290,\"\")","v":""},{"$f":"IF(DataLog!$C3290=\"Log value\",DataLog!J3290,\"\")","v":""},{"$f":"IF(DataLog!$C3290=\"Log value\",DataLog!K3290,\"\")","v":""},{"$f":"IF(DataLog!$C3290=\"Log value\",DataLog!L3290,\"\")","v":""},{"$f":"IF(DataLog!$C3290=\"Log value\",DataLog!M3290,\"\")","v":""},{"$f":"IF(DataLog!$C3290=\"Log value\",DataLog!N3290,\"\")","v":""},{"$f":"IF(DataLog!$C3290=\"Log value\",DataLog!O3290,\"\")","v":""},{"$f":"IF(DataLog!$C3290=\"Log value\",DataLog!P3290,\"\")","v":""},{"$f":"IF(DataLog!$C3290=\"Log value\",DataLog!Q3290,\"\")","v":""},{"$f":"IF(DataLog!$C3290=\"Log value\",DataLog!R3290,\"\")","v":""},{"$f":"IF(DataLog!$C3290=\"Log value\",DataLog!S3290,\"\")","v":""},{"$f":"IF(DataLog!$C3290=\"Log value\",DataLog!T3290,\"\")","v":""},{"$f":"IF(DataLog!$C3290=\"Log value\",DataLog!U3290,\"\")","v":""},{"$f":"IF(DataLog!$C3290=\"Log value\",DataLog!V3290,\"\")","v":""},{"$f":"IF(DataLog!$C3290=\"Log value\",DataLog!W3290,\"\")","v":""},{"$f":"IF(DataLog!$C3290=\"Log value\",DataLog!X3290,\"\")","v":""},{"$f":"IF(DataLog!$C3290=\"Log value\",DataLog!Y3290,\"\")","v":""},{"$f":"IF(DataLog!$C3290=\"Log value\",DataLog!Z3290,\"\")","v":""},{"$f":"IF(DataLog!$C3290=\"Log value\",DataLog!AA3290,\"\")","v":""},{"$f":"IF(DataLog!$C3290=\"Log value\",DataLog!AB3290,\"\")","v":""},{"$f":"IF(DataLog!$C3290=\"Log value\",DataLog!AC3290,\"\")","v":""},{"$f":"IF(DataLog!$C3290=\"Log value\",DataLog!AD3290,\"\")","v":""},{"$f":"IF(DataLog!$C3290=\"Log value\",DataLog!AE3290,\"\")","v":""},{"$f":"IF(DataLog!$C3290=\"Log value\",DataLog!AF3290,\"\")","v":""},{"$f":"IF(DataLog!$C3290=\"Log value\",DataLog!AG3290,\"\")","v":""},{"$f":"IF(DataLog!$C3290=\"Log value\",DataLog!AH3290,\"\")","v":""},{"$f":"IF(DataLog!$C3290=\"Log value\",DataLog!AI3290,\"\")","v":""},{"$f":"IF(DataLog!$C3290=\"Log value\",DataLog!AJ3290,\"\")","v":""},{"$f":"IF(DataLog!$C3290=\"Log value\",DataLog!AK3290,\"\")","v":""},{"$f":"IF(DataLog!$C3290=\"Log value\",DataLog!AL3290,\"\")","v":""},{"$f":"IF(DataLog!$C3290=\"Log value\",DataLog!AM3290,\"\")","v":""}]
[null,null,null,null,null,null,{"$f":"IF(DataLog!$C3291=\"Log value\",DataLog!D3291&\"_\"&TEXT(DataLog!B3291,\"åååå-mm-dd\"),\"\")","v":""},{"$f":"IF(DataLog!$C3291=\"Log value\",DataLog!E3291,\"\")","v":""},{"$f":"IF(DataLog!$C3291=\"Log value\",DataLog!F3291,\"\")","v":""},{"$f":"IF(DataLog!$C3291=\"Log value\",DataLog!G3291,\"\")","v":""},{"$f":"IF(DataLog!$C3291=\"Log value\",DataLog!H3291,\"\")","v":""},{"$f":"IF(DataLog!$C3291=\"Log value\",DataLog!I3291,\"\")","v":""},{"$f":"IF(DataLog!$C3291=\"Log value\",DataLog!J3291,\"\")","v":""},{"$f":"IF(DataLog!$C3291=\"Log value\",DataLog!K3291,\"\")","v":""},{"$f":"IF(DataLog!$C3291=\"Log value\",DataLog!L3291,\"\")","v":""},{"$f":"IF(DataLog!$C3291=\"Log value\",DataLog!M3291,\"\")","v":""},{"$f":"IF(DataLog!$C3291=\"Log value\",DataLog!N3291,\"\")","v":""},{"$f":"IF(DataLog!$C3291=\"Log value\",DataLog!O3291,\"\")","v":""},{"$f":"IF(DataLog!$C3291=\"Log value\",DataLog!P3291,\"\")","v":""},{"$f":"IF(DataLog!$C3291=\"Log value\",DataLog!Q3291,\"\")","v":""},{"$f":"IF(DataLog!$C3291=\"Log value\",DataLog!R3291,\"\")","v":""},{"$f":"IF(DataLog!$C3291=\"Log value\",DataLog!S3291,\"\")","v":""},{"$f":"IF(DataLog!$C3291=\"Log value\",DataLog!T3291,\"\")","v":""},{"$f":"IF(DataLog!$C3291=\"Log value\",DataLog!U3291,\"\")","v":""},{"$f":"IF(DataLog!$C3291=\"Log value\",DataLog!V3291,\"\")","v":""},{"$f":"IF(DataLog!$C3291=\"Log value\",DataLog!W3291,\"\")","v":""},{"$f":"IF(DataLog!$C3291=\"Log value\",DataLog!X3291,\"\")","v":""},{"$f":"IF(DataLog!$C3291=\"Log value\",DataLog!Y3291,\"\")","v":""},{"$f":"IF(DataLog!$C3291=\"Log value\",DataLog!Z3291,\"\")","v":""},{"$f":"IF(DataLog!$C3291=\"Log value\",DataLog!AA3291,\"\")","v":""},{"$f":"IF(DataLog!$C3291=\"Log value\",DataLog!AB3291,\"\")","v":""},{"$f":"IF(DataLog!$C3291=\"Log value\",DataLog!AC3291,\"\")","v":""},{"$f":"IF(DataLog!$C3291=\"Log value\",DataLog!AD3291,\"\")","v":""},{"$f":"IF(DataLog!$C3291=\"Log value\",DataLog!AE3291,\"\")","v":""},{"$f":"IF(DataLog!$C3291=\"Log value\",DataLog!AF3291,\"\")","v":""},{"$f":"IF(DataLog!$C3291=\"Log value\",DataLog!AG3291,\"\")","v":""},{"$f":"IF(DataLog!$C3291=\"Log value\",DataLog!AH3291,\"\")","v":""},{"$f":"IF(DataLog!$C3291=\"Log value\",DataLog!AI3291,\"\")","v":""},{"$f":"IF(DataLog!$C3291=\"Log value\",DataLog!AJ3291,\"\")","v":""},{"$f":"IF(DataLog!$C3291=\"Log value\",DataLog!AK3291,\"\")","v":""},{"$f":"IF(DataLog!$C3291=\"Log value\",DataLog!AL3291,\"\")","v":""},{"$f":"IF(DataLog!$C3291=\"Log value\",DataLog!AM3291,\"\")","v":""}]
[null,null,null,null,null,null,{"$f":"IF(DataLog!$C3292=\"Log value\",DataLog!D3292&\"_\"&TEXT(DataLog!B3292,\"åååå-mm-dd\"),\"\")","v":""},{"$f":"IF(DataLog!$C3292=\"Log value\",DataLog!E3292,\"\")","v":""},{"$f":"IF(DataLog!$C3292=\"Log value\",DataLog!F3292,\"\")","v":""},{"$f":"IF(DataLog!$C3292=\"Log value\",DataLog!G3292,\"\")","v":""},{"$f":"IF(DataLog!$C3292=\"Log value\",DataLog!H3292,\"\")","v":""},{"$f":"IF(DataLog!$C3292=\"Log value\",DataLog!I3292,\"\")","v":""},{"$f":"IF(DataLog!$C3292=\"Log value\",DataLog!J3292,\"\")","v":""},{"$f":"IF(DataLog!$C3292=\"Log value\",DataLog!K3292,\"\")","v":""},{"$f":"IF(DataLog!$C3292=\"Log value\",DataLog!L3292,\"\")","v":""},{"$f":"IF(DataLog!$C3292=\"Log value\",DataLog!M3292,\"\")","v":""},{"$f":"IF(DataLog!$C3292=\"Log value\",DataLog!N3292,\"\")","v":""},{"$f":"IF(DataLog!$C3292=\"Log value\",DataLog!O3292,\"\")","v":""},{"$f":"IF(DataLog!$C3292=\"Log value\",DataLog!P3292,\"\")","v":""},{"$f":"IF(DataLog!$C3292=\"Log value\",DataLog!Q3292,\"\")","v":""},{"$f":"IF(DataLog!$C3292=\"Log value\",DataLog!R3292,\"\")","v":""},{"$f":"IF(DataLog!$C3292=\"Log value\",DataLog!S3292,\"\")","v":""},{"$f":"IF(DataLog!$C3292=\"Log value\",DataLog!T3292,\"\")","v":""},{"$f":"IF(DataLog!$C3292=\"Log value\",DataLog!U3292,\"\")","v":""},{"$f":"IF(DataLog!$C3292=\"Log value\",DataLog!V3292,\"\")","v":""},{"$f":"IF(DataLog!$C3292=\"Log value\",DataLog!W3292,\"\")","v":""},{"$f":"IF(DataLog!$C3292=\"Log value\",DataLog!X3292,\"\")","v":""},{"$f":"IF(DataLog!$C3292=\"Log value\",DataLog!Y3292,\"\")","v":""},{"$f":"IF(DataLog!$C3292=\"Log value\",DataLog!Z3292,\"\")","v":""},{"$f":"IF(DataLog!$C3292=\"Log value\",DataLog!AA3292,\"\")","v":""},{"$f":"IF(DataLog!$C3292=\"Log value\",DataLog!AB3292,\"\")","v":""},{"$f":"IF(DataLog!$C3292=\"Log value\",DataLog!AC3292,\"\")","v":""},{"$f":"IF(DataLog!$C3292=\"Log value\",DataLog!AD3292,\"\")","v":""},{"$f":"IF(DataLog!$C3292=\"Log value\",DataLog!AE3292,\"\")","v":""},{"$f":"IF(DataLog!$C3292=\"Log value\",DataLog!AF3292,\"\")","v":""},{"$f":"IF(DataLog!$C3292=\"Log value\",DataLog!AG3292,\"\")","v":""},{"$f":"IF(DataLog!$C3292=\"Log value\",DataLog!AH3292,\"\")","v":""},{"$f":"IF(DataLog!$C3292=\"Log value\",DataLog!AI3292,\"\")","v":""},{"$f":"IF(DataLog!$C3292=\"Log value\",DataLog!AJ3292,\"\")","v":""},{"$f":"IF(DataLog!$C3292=\"Log value\",DataLog!AK3292,\"\")","v":""},{"$f":"IF(DataLog!$C3292=\"Log value\",DataLog!AL3292,\"\")","v":""},{"$f":"IF(DataLog!$C3292=\"Log value\",DataLog!AM3292,\"\")","v":""}]
[null,null,null,null,null,null,{"$f":"IF(DataLog!$C3293=\"Log value\",DataLog!D3293&\"_\"&TEXT(DataLog!B3293,\"åååå-mm-dd\"),\"\")","v":""},{"$f":"IF(DataLog!$C3293=\"Log value\",DataLog!E3293,\"\")","v":""},{"$f":"IF(DataLog!$C3293=\"Log value\",DataLog!F3293,\"\")","v":""},{"$f":"IF(DataLog!$C3293=\"Log value\",DataLog!G3293,\"\")","v":""},{"$f":"IF(DataLog!$C3293=\"Log value\",DataLog!H3293,\"\")","v":""},{"$f":"IF(DataLog!$C3293=\"Log value\",DataLog!I3293,\"\")","v":""},{"$f":"IF(DataLog!$C3293=\"Log value\",DataLog!J3293,\"\")","v":""},{"$f":"IF(DataLog!$C3293=\"Log value\",DataLog!K3293,\"\")","v":""},{"$f":"IF(DataLog!$C3293=\"Log value\",DataLog!L3293,\"\")","v":""},{"$f":"IF(DataLog!$C3293=\"Log value\",DataLog!M3293,\"\")","v":""},{"$f":"IF(DataLog!$C3293=\"Log value\",DataLog!N3293,\"\")","v":""},{"$f":"IF(DataLog!$C3293=\"Log value\",DataLog!O3293,\"\")","v":""},{"$f":"IF(DataLog!$C3293=\"Log value\",DataLog!P3293,\"\")","v":""},{"$f":"IF(DataLog!$C3293=\"Log value\",DataLog!Q3293,\"\")","v":""},{"$f":"IF(DataLog!$C3293=\"Log value\",DataLog!R3293,\"\")","v":""},{"$f":"IF(DataLog!$C3293=\"Log value\",DataLog!S3293,\"\")","v":""},{"$f":"IF(DataLog!$C3293=\"Log value\",DataLog!T3293,\"\")","v":""},{"$f":"IF(DataLog!$C3293=\"Log value\",DataLog!U3293,\"\")","v":""},{"$f":"IF(DataLog!$C3293=\"Log value\",DataLog!V3293,\"\")","v":""},{"$f":"IF(DataLog!$C3293=\"Log value\",DataLog!W3293,\"\")","v":""},{"$f":"IF(DataLog!$C3293=\"Log value\",DataLog!X3293,\"\")","v":""},{"$f":"IF(DataLog!$C3293=\"Log value\",DataLog!Y3293,\"\")","v":""},{"$f":"IF(DataLog!$C3293=\"Log value\",DataLog!Z3293,\"\")","v":""},{"$f":"IF(DataLog!$C3293=\"Log value\",DataLog!AA3293,\"\")","v":""},{"$f":"IF(DataLog!$C3293=\"Log value\",DataLog!AB3293,\"\")","v":""},{"$f":"IF(DataLog!$C3293=\"Log value\",DataLog!AC3293,\"\")","v":""},{"$f":"IF(DataLog!$C3293=\"Log value\",DataLog!AD3293,\"\")","v":""},{"$f":"IF(DataLog!$C3293=\"Log value\",DataLog!AE3293,\"\")","v":""},{"$f":"IF(DataLog!$C3293=\"Log value\",DataLog!AF3293,\"\")","v":""},{"$f":"IF(DataLog!$C3293=\"Log value\",DataLog!AG3293,\"\")","v":""},{"$f":"IF(DataLog!$C3293=\"Log value\",DataLog!AH3293,\"\")","v":""},{"$f":"IF(DataLog!$C3293=\"Log value\",DataLog!AI3293,\"\")","v":""},{"$f":"IF(DataLog!$C3293=\"Log value\",DataLog!AJ3293,\"\")","v":""},{"$f":"IF(DataLog!$C3293=\"Log value\",DataLog!AK3293,\"\")","v":""},{"$f":"IF(DataLog!$C3293=\"Log value\",DataLog!AL3293,\"\")","v":""},{"$f":"IF(DataLog!$C3293=\"Log value\",DataLog!AM3293,\"\")","v":""}]
[null,null,null,null,null,null,{"$f":"IF(DataLog!$C3294=\"Log value\",DataLog!D3294&\"_\"&TEXT(DataLog!B3294,\"åååå-mm-dd\"),\"\")","v":""},{"$f":"IF(DataLog!$C3294=\"Log value\",DataLog!E3294,\"\")","v":""},{"$f":"IF(DataLog!$C3294=\"Log value\",DataLog!F3294,\"\")","v":""},{"$f":"IF(DataLog!$C3294=\"Log value\",DataLog!G3294,\"\")","v":""},{"$f":"IF(DataLog!$C3294=\"Log value\",DataLog!H3294,\"\")","v":""},{"$f":"IF(DataLog!$C3294=\"Log value\",DataLog!I3294,\"\")","v":""},{"$f":"IF(DataLog!$C3294=\"Log value\",DataLog!J3294,\"\")","v":""},{"$f":"IF(DataLog!$C3294=\"Log value\",DataLog!K3294,\"\")","v":""},{"$f":"IF(DataLog!$C3294=\"Log value\",DataLog!L3294,\"\")","v":""},{"$f":"IF(DataLog!$C3294=\"Log value\",DataLog!M3294,\"\")","v":""},{"$f":"IF(DataLog!$C3294=\"Log value\",DataLog!N3294,\"\")","v":""},{"$f":"IF(DataLog!$C3294=\"Log value\",DataLog!O3294,\"\")","v":""},{"$f":"IF(DataLog!$C3294=\"Log value\",DataLog!P3294,\"\")","v":""},{"$f":"IF(DataLog!$C3294=\"Log value\",DataLog!Q3294,\"\")","v":""},{"$f":"IF(DataLog!$C3294=\"Log value\",DataLog!R3294,\"\")","v":""},{"$f":"IF(DataLog!$C3294=\"Log value\",DataLog!S3294,\"\")","v":""},{"$f":"IF(DataLog!$C3294=\"Log value\",DataLog!T3294,\"\")","v":""},{"$f":"IF(DataLog!$C3294=\"Log value\",DataLog!U3294,\"\")","v":""},{"$f":"IF(DataLog!$C3294=\"Log value\",DataLog!V3294,\"\")","v":""},{"$f":"IF(DataLog!$C3294=\"Log value\",DataLog!W3294,\"\")","v":""},{"$f":"IF(DataLog!$C3294=\"Log value\",DataLog!X3294,\"\")","v":""},{"$f":"IF(DataLog!$C3294=\"Log value\",DataLog!Y3294,\"\")","v":""},{"$f":"IF(DataLog!$C3294=\"Log value\",DataLog!Z3294,\"\")","v":""},{"$f":"IF(DataLog!$C3294=\"Log value\",DataLog!AA3294,\"\")","v":""},{"$f":"IF(DataLog!$C3294=\"Log value\",DataLog!AB3294,\"\")","v":""},{"$f":"IF(DataLog!$C3294=\"Log value\",DataLog!AC3294,\"\")","v":""},{"$f":"IF(DataLog!$C3294=\"Log value\",DataLog!AD3294,\"\")","v":""},{"$f":"IF(DataLog!$C3294=\"Log value\",DataLog!AE3294,\"\")","v":""},{"$f":"IF(DataLog!$C3294=\"Log value\",DataLog!AF3294,\"\")","v":""},{"$f":"IF(DataLog!$C3294=\"Log value\",DataLog!AG3294,\"\")","v":""},{"$f":"IF(DataLog!$C3294=\"Log value\",DataLog!AH3294,\"\")","v":""},{"$f":"IF(DataLog!$C3294=\"Log value\",DataLog!AI3294,\"\")","v":""},{"$f":"IF(DataLog!$C3294=\"Log value\",DataLog!AJ3294,\"\")","v":""},{"$f":"IF(DataLog!$C3294=\"Log value\",DataLog!AK3294,\"\")","v":""},{"$f":"IF(DataLog!$C3294=\"Log value\",DataLog!AL3294,\"\")","v":""},{"$f":"IF(DataLog!$C3294=\"Log value\",DataLog!AM3294,\"\")","v":""}]
[null,null,null,null,null,null,{"$f":"IF(DataLog!$C3295=\"Log value\",DataLog!D3295&\"_\"&TEXT(DataLog!B3295,\"åååå-mm-dd\"),\"\")","v":""},{"$f":"IF(DataLog!$C3295=\"Log value\",DataLog!E3295,\"\")","v":""},{"$f":"IF(DataLog!$C3295=\"Log value\",DataLog!F3295,\"\")","v":""},{"$f":"IF(DataLog!$C3295=\"Log value\",DataLog!G3295,\"\")","v":""},{"$f":"IF(DataLog!$C3295=\"Log value\",DataLog!H3295,\"\")","v":""},{"$f":"IF(DataLog!$C3295=\"Log value\",DataLog!I3295,\"\")","v":""},{"$f":"IF(DataLog!$C3295=\"Log value\",DataLog!J3295,\"\")","v":""},{"$f":"IF(DataLog!$C3295=\"Log value\",DataLog!K3295,\"\")","v":""},{"$f":"IF(DataLog!$C3295=\"Log value\",DataLog!L3295,\"\")","v":""},{"$f":"IF(DataLog!$C3295=\"Log value\",DataLog!M3295,\"\")","v":""},{"$f":"IF(DataLog!$C3295=\"Log value\",DataLog!N3295,\"\")","v":""},{"$f":"IF(DataLog!$C3295=\"Log value\",DataLog!O3295,\"\")","v":""},{"$f":"IF(DataLog!$C3295=\"Log value\",DataLog!P3295,\"\")","v":""},{"$f":"IF(DataLog!$C3295=\"Log value\",DataLog!Q3295,\"\")","v":""},{"$f":"IF(DataLog!$C3295=\"Log value\",DataLog!R3295,\"\")","v":""},{"$f":"IF(DataLog!$C3295=\"Log value\",DataLog!S3295,\"\")","v":""},{"$f":"IF(DataLog!$C3295=\"Log value\",DataLog!T3295,\"\")","v":""},{"$f":"IF(DataLog!$C3295=\"Log value\",DataLog!U3295,\"\")","v":""},{"$f":"IF(DataLog!$C3295=\"Log value\",DataLog!V3295,\"\")","v":""},{"$f":"IF(DataLog!$C3295=\"Log value\",DataLog!W3295,\"\")","v":""},{"$f":"IF(DataLog!$C3295=\"Log value\",DataLog!X3295,\"\")","v":""},{"$f":"IF(DataLog!$C3295=\"Log value\",DataLog!Y3295,\"\")","v":""},{"$f":"IF(DataLog!$C3295=\"Log value\",DataLog!Z3295,\"\")","v":""},{"$f":"IF(DataLog!$C3295=\"Log value\",DataLog!AA3295,\"\")","v":""},{"$f":"IF(DataLog!$C3295=\"Log value\",DataLog!AB3295,\"\")","v":""},{"$f":"IF(DataLog!$C3295=\"Log value\",DataLog!AC3295,\"\")","v":""},{"$f":"IF(DataLog!$C3295=\"Log value\",DataLog!AD3295,\"\")","v":""},{"$f":"IF(DataLog!$C3295=\"Log value\",DataLog!AE3295,\"\")","v":""},{"$f":"IF(DataLog!$C3295=\"Log value\",DataLog!AF3295,\"\")","v":""},{"$f":"IF(DataLog!$C3295=\"Log value\",DataLog!AG3295,\"\")","v":""},{"$f":"IF(DataLog!$C3295=\"Log value\",DataLog!AH3295,\"\")","v":""},{"$f":"IF(DataLog!$C3295=\"Log value\",DataLog!AI3295,\"\")","v":""},{"$f":"IF(DataLog!$C3295=\"Log value\",DataLog!AJ3295,\"\")","v":""},{"$f":"IF(DataLog!$C3295=\"Log value\",DataLog!AK3295,\"\")","v":""},{"$f":"IF(DataLog!$C3295=\"Log value\",DataLog!AL3295,\"\")","v":""},{"$f":"IF(DataLog!$C3295=\"Log value\",DataLog!AM3295,\"\")","v":""}]
[null,null,null,null,null,null,{"$f":"IF(DataLog!$C3296=\"Log value\",DataLog!D3296&\"_\"&TEXT(DataLog!B3296,\"åååå-mm-dd\"),\"\")","v":""},{"$f":"IF(DataLog!$C3296=\"Log value\",DataLog!E3296,\"\")","v":""},{"$f":"IF(DataLog!$C3296=\"Log value\",DataLog!F3296,\"\")","v":""},{"$f":"IF(DataLog!$C3296=\"Log value\",DataLog!G3296,\"\")","v":""},{"$f":"IF(DataLog!$C3296=\"Log value\",DataLog!H3296,\"\")","v":""},{"$f":"IF(DataLog!$C3296=\"Log value\",DataLog!I3296,\"\")","v":""},{"$f":"IF(DataLog!$C3296=\"Log value\",DataLog!J3296,\"\")","v":""},{"$f":"IF(DataLog!$C3296=\"Log value\",DataLog!K3296,\"\")","v":""},{"$f":"IF(DataLog!$C3296=\"Log value\",DataLog!L3296,\"\")","v":""},{"$f":"IF(DataLog!$C3296=\"Log value\",DataLog!M3296,\"\")","v":""},{"$f":"IF(DataLog!$C3296=\"Log value\",DataLog!N3296,\"\")","v":""},{"$f":"IF(DataLog!$C3296=\"Log value\",DataLog!O3296,\"\")","v":""},{"$f":"IF(DataLog!$C3296=\"Log value\",DataLog!P3296,\"\")","v":""},{"$f":"IF(DataLog!$C3296=\"Log value\",DataLog!Q3296,\"\")","v":""},{"$f":"IF(DataLog!$C3296=\"Log value\",DataLog!R3296,\"\")","v":""},{"$f":"IF(DataLog!$C3296=\"Log value\",DataLog!S3296,\"\")","v":""},{"$f":"IF(DataLog!$C3296=\"Log value\",DataLog!T3296,\"\")","v":""},{"$f":"IF(DataLog!$C3296=\"Log value\",DataLog!U3296,\"\")","v":""},{"$f":"IF(DataLog!$C3296=\"Log value\",DataLog!V3296,\"\")","v":""},{"$f":"IF(DataLog!$C3296=\"Log value\",DataLog!W3296,\"\")","v":""},{"$f":"IF(DataLog!$C3296=\"Log value\",DataLog!X3296,\"\")","v":""},{"$f":"IF(DataLog!$C3296=\"Log value\",DataLog!Y3296,\"\")","v":""},{"$f":"IF(DataLog!$C3296=\"Log value\",DataLog!Z3296,\"\")","v":""},{"$f":"IF(DataLog!$C3296=\"Log value\",DataLog!AA3296,\"\")","v":""},{"$f":"IF(DataLog!$C3296=\"Log value\",DataLog!AB3296,\"\")","v":""},{"$f":"IF(DataLog!$C3296=\"Log value\",DataLog!AC3296,\"\")","v":""},{"$f":"IF(DataLog!$C3296=\"Log value\",DataLog!AD3296,\"\")","v":""},{"$f":"IF(DataLog!$C3296=\"Log value\",DataLog!AE3296,\"\")","v":""},{"$f":"IF(DataLog!$C3296=\"Log value\",DataLog!AF3296,\"\")","v":""},{"$f":"IF(DataLog!$C3296=\"Log value\",DataLog!AG3296,\"\")","v":""},{"$f":"IF(DataLog!$C3296=\"Log value\",DataLog!AH3296,\"\")","v":""},{"$f":"IF(DataLog!$C3296=\"Log value\",DataLog!AI3296,\"\")","v":""},{"$f":"IF(DataLog!$C3296=\"Log value\",DataLog!AJ3296,\"\")","v":""},{"$f":"IF(DataLog!$C3296=\"Log value\",DataLog!AK3296,\"\")","v":""},{"$f":"IF(DataLog!$C3296=\"Log value\",DataLog!AL3296,\"\")","v":""},{"$f":"IF(DataLog!$C3296=\"Log value\",DataLog!AM3296,\"\")","v":""}]
[null,null,null,null,null,null,{"$f":"IF(DataLog!$C3297=\"Log value\",DataLog!D3297&\"_\"&TEXT(DataLog!B3297,\"åååå-mm-dd\"),\"\")","v":""},{"$f":"IF(DataLog!$C3297=\"Log value\",DataLog!E3297,\"\")","v":""},{"$f":"IF(DataLog!$C3297=\"Log value\",DataLog!F3297,\"\")","v":""},{"$f":"IF(DataLog!$C3297=\"Log value\",DataLog!G3297,\"\")","v":""},{"$f":"IF(DataLog!$C3297=\"Log value\",DataLog!H3297,\"\")","v":""},{"$f":"IF(DataLog!$C3297=\"Log value\",DataLog!I3297,\"\")","v":""},{"$f":"IF(DataLog!$C3297=\"Log value\",DataLog!J3297,\"\")","v":""},{"$f":"IF(DataLog!$C3297=\"Log value\",DataLog!K3297,\"\")","v":""},{"$f":"IF(DataLog!$C3297=\"Log value\",DataLog!L3297,\"\")","v":""},{"$f":"IF(DataLog!$C3297=\"Log value\",DataLog!M3297,\"\")","v":""},{"$f":"IF(DataLog!$C3297=\"Log value\",DataLog!N3297,\"\")","v":""},{"$f":"IF(DataLog!$C3297=\"Log value\",DataLog!O3297,\"\")","v":""},{"$f":"IF(DataLog!$C3297=\"Log value\",DataLog!P3297,\"\")","v":""},{"$f":"IF(DataLog!$C3297=\"Log value\",DataLog!Q3297,\"\")","v":""},{"$f":"IF(DataLog!$C3297=\"Log value\",DataLog!R3297,\"\")","v":""},{"$f":"IF(DataLog!$C3297=\"Log value\",DataLog!S3297,\"\")","v":""},{"$f":"IF(DataLog!$C3297=\"Log value\",DataLog!T3297,\"\")","v":""},{"$f":"IF(DataLog!$C3297=\"Log value\",DataLog!U3297,\"\")","v":""},{"$f":"IF(DataLog!$C3297=\"Log value\",DataLog!V3297,\"\")","v":""},{"$f":"IF(DataLog!$C3297=\"Log value\",DataLog!W3297,\"\")","v":""},{"$f":"IF(DataLog!$C3297=\"Log value\",DataLog!X3297,\"\")","v":""},{"$f":"IF(DataLog!$C3297=\"Log value\",DataLog!Y3297,\"\")","v":""},{"$f":"IF(DataLog!$C3297=\"Log value\",DataLog!Z3297,\"\")","v":""},{"$f":"IF(DataLog!$C3297=\"Log value\",DataLog!AA3297,\"\")","v":""},{"$f":"IF(DataLog!$C3297=\"Log value\",DataLog!AB3297,\"\")","v":""},{"$f":"IF(DataLog!$C3297=\"Log value\",DataLog!AC3297,\"\")","v":""},{"$f":"IF(DataLog!$C3297=\"Log value\",DataLog!AD3297,\"\")","v":""},{"$f":"IF(DataLog!$C3297=\"Log value\",DataLog!AE3297,\"\")","v":""},{"$f":"IF(DataLog!$C3297=\"Log value\",DataLog!AF3297,\"\")","v":""},{"$f":"IF(DataLog!$C3297=\"Log value\",DataLog!AG3297,\"\")","v":""},{"$f":"IF(DataLog!$C3297=\"Log value\",DataLog!AH3297,\"\")","v":""},{"$f":"IF(DataLog!$C3297=\"Log value\",DataLog!AI3297,\"\")","v":""},{"$f":"IF(DataLog!$C3297=\"Log value\",DataLog!AJ3297,\"\")","v":""},{"$f":"IF(DataLog!$C3297=\"Log value\",DataLog!AK3297,\"\")","v":""},{"$f":"IF(DataLog!$C3297=\"Log value\",DataLog!AL3297,\"\")","v":""},{"$f":"IF(DataLog!$C3297=\"Log value\",DataLog!AM3297,\"\")","v":""}]
[null,null,null,null,null,null,{"$f":"IF(DataLog!$C3298=\"Log value\",DataLog!D3298&\"_\"&TEXT(DataLog!B3298,\"åååå-mm-dd\"),\"\")","v":""},{"$f":"IF(DataLog!$C3298=\"Log value\",DataLog!E3298,\"\")","v":""},{"$f":"IF(DataLog!$C3298=\"Log value\",DataLog!F3298,\"\")","v":""},{"$f":"IF(DataLog!$C3298=\"Log value\",DataLog!G3298,\"\")","v":""},{"$f":"IF(DataLog!$C3298=\"Log value\",DataLog!H3298,\"\")","v":""},{"$f":"IF(DataLog!$C3298=\"Log value\",DataLog!I3298,\"\")","v":""},{"$f":"IF(DataLog!$C3298=\"Log value\",DataLog!J3298,\"\")","v":""},{"$f":"IF(DataLog!$C3298=\"Log value\",DataLog!K3298,\"\")","v":""},{"$f":"IF(DataLog!$C3298=\"Log value\",DataLog!L3298,\"\")","v":""},{"$f":"IF(DataLog!$C3298=\"Log value\",DataLog!M3298,\"\")","v":""},{"$f":"IF(DataLog!$C3298=\"Log value\",DataLog!N3298,\"\")","v":""},{"$f":"IF(DataLog!$C3298=\"Log value\",DataLog!O3298,\"\")","v":""},{"$f":"IF(DataLog!$C3298=\"Log value\",DataLog!P3298,\"\")","v":""},{"$f":"IF(DataLog!$C3298=\"Log value\",DataLog!Q3298,\"\")","v":""},{"$f":"IF(DataLog!$C3298=\"Log value\",DataLog!R3298,\"\")","v":""},{"$f":"IF(DataLog!$C3298=\"Log value\",DataLog!S3298,\"\")","v":""},{"$f":"IF(DataLog!$C3298=\"Log value\",DataLog!T3298,\"\")","v":""},{"$f":"IF(DataLog!$C3298=\"Log value\",DataLog!U3298,\"\")","v":""},{"$f":"IF(DataLog!$C3298=\"Log value\",DataLog!V3298,\"\")","v":""},{"$f":"IF(DataLog!$C3298=\"Log value\",DataLog!W3298,\"\")","v":""},{"$f":"IF(DataLog!$C3298=\"Log value\",DataLog!X3298,\"\")","v":""},{"$f":"IF(DataLog!$C3298=\"Log value\",DataLog!Y3298,\"\")","v":""},{"$f":"IF(DataLog!$C3298=\"Log value\",DataLog!Z3298,\"\")","v":""},{"$f":"IF(DataLog!$C3298=\"Log value\",DataLog!AA3298,\"\")","v":""},{"$f":"IF(DataLog!$C3298=\"Log value\",DataLog!AB3298,\"\")","v":""},{"$f":"IF(DataLog!$C3298=\"Log value\",DataLog!AC3298,\"\")","v":""},{"$f":"IF(DataLog!$C3298=\"Log value\",DataLog!AD3298,\"\")","v":""},{"$f":"IF(DataLog!$C3298=\"Log value\",DataLog!AE3298,\"\")","v":""},{"$f":"IF(DataLog!$C3298=\"Log value\",DataLog!AF3298,\"\")","v":""},{"$f":"IF(DataLog!$C3298=\"Log value\",DataLog!AG3298,\"\")","v":""},{"$f":"IF(DataLog!$C3298=\"Log value\",DataLog!AH3298,\"\")","v":""},{"$f":"IF(DataLog!$C3298=\"Log value\",DataLog!AI3298,\"\")","v":""},{"$f":"IF(DataLog!$C3298=\"Log value\",DataLog!AJ3298,\"\")","v":""},{"$f":"IF(DataLog!$C3298=\"Log value\",DataLog!AK3298,\"\")","v":""},{"$f":"IF(DataLog!$C3298=\"Log value\",DataLog!AL3298,\"\")","v":""},{"$f":"IF(DataLog!$C3298=\"Log value\",DataLog!AM3298,\"\")","v":""}]
[null,null,null,null,null,null,{"$f":"IF(DataLog!$C3299=\"Log value\",DataLog!D3299&\"_\"&TEXT(DataLog!B3299,\"åååå-mm-dd\"),\"\")","v":""},{"$f":"IF(DataLog!$C3299=\"Log value\",DataLog!E3299,\"\")","v":""},{"$f":"IF(DataLog!$C3299=\"Log value\",DataLog!F3299,\"\")","v":""},{"$f":"IF(DataLog!$C3299=\"Log value\",DataLog!G3299,\"\")","v":""},{"$f":"IF(DataLog!$C3299=\"Log value\",DataLog!H3299,\"\")","v":""},{"$f":"IF(DataLog!$C3299=\"Log value\",DataLog!I3299,\"\")","v":""},{"$f":"IF(DataLog!$C3299=\"Log value\",DataLog!J3299,\"\")","v":""},{"$f":"IF(DataLog!$C3299=\"Log value\",DataLog!K3299,\"\")","v":""},{"$f":"IF(DataLog!$C3299=\"Log value\",DataLog!L3299,\"\")","v":""},{"$f":"IF(DataLog!$C3299=\"Log value\",DataLog!M3299,\"\")","v":""},{"$f":"IF(DataLog!$C3299=\"Log value\",DataLog!N3299,\"\")","v":""},{"$f":"IF(DataLog!$C3299=\"Log value\",DataLog!O3299,\"\")","v":""},{"$f":"IF(DataLog!$C3299=\"Log value\",DataLog!P3299,\"\")","v":""},{"$f":"IF(DataLog!$C3299=\"Log value\",DataLog!Q3299,\"\")","v":""},{"$f":"IF(DataLog!$C3299=\"Log value\",DataLog!R3299,\"\")","v":""},{"$f":"IF(DataLog!$C3299=\"Log value\",DataLog!S3299,\"\")","v":""},{"$f":"IF(DataLog!$C3299=\"Log value\",DataLog!T3299,\"\")","v":""},{"$f":"IF(DataLog!$C3299=\"Log value\",DataLog!U3299,\"\")","v":""},{"$f":"IF(DataLog!$C3299=\"Log value\",DataLog!V3299,\"\")","v":""},{"$f":"IF(DataLog!$C3299=\"Log value\",DataLog!W3299,\"\")","v":""},{"$f":"IF(DataLog!$C3299=\"Log value\",DataLog!X3299,\"\")","v":""},{"$f":"IF(DataLog!$C3299=\"Log value\",DataLog!Y3299,\"\")","v":""},{"$f":"IF(DataLog!$C3299=\"Log value\",DataLog!Z3299,\"\")","v":""},{"$f":"IF(DataLog!$C3299=\"Log value\",DataLog!AA3299,\"\")","v":""},{"$f":"IF(DataLog!$C3299=\"Log value\",DataLog!AB3299,\"\")","v":""},{"$f":"IF(DataLog!$C3299=\"Log value\",DataLog!AC3299,\"\")","v":""},{"$f":"IF(DataLog!$C3299=\"Log value\",DataLog!AD3299,\"\")","v":""},{"$f":"IF(DataLog!$C3299=\"Log value\",DataLog!AE3299,\"\")","v":""},{"$f":"IF(DataLog!$C3299=\"Log value\",DataLog!AF3299,\"\")","v":""},{"$f":"IF(DataLog!$C3299=\"Log value\",DataLog!AG3299,\"\")","v":""},{"$f":"IF(DataLog!$C3299=\"Log value\",DataLog!AH3299,\"\")","v":""},{"$f":"IF(DataLog!$C3299=\"Log value\",DataLog!AI3299,\"\")","v":""},{"$f":"IF(DataLog!$C3299=\"Log value\",DataLog!AJ3299,\"\")","v":""},{"$f":"IF(DataLog!$C3299=\"Log value\",DataLog!AK3299,\"\")","v":""},{"$f":"IF(DataLog!$C3299=\"Log value\",DataLog!AL3299,\"\")","v":""},{"$f":"IF(DataLog!$C3299=\"Log value\",DataLog!AM3299,\"\")","v":""}]
[null,null,null,null,null,null,{"$f":"IF(DataLog!$C3300=\"Log value\",DataLog!D3300&\"_\"&TEXT(DataLog!B3300,\"åååå-mm-dd\"),\"\")","v":""},{"$f":"IF(DataLog!$C3300=\"Log value\",DataLog!E3300,\"\")","v":""},{"$f":"IF(DataLog!$C3300=\"Log value\",DataLog!F3300,\"\")","v":""},{"$f":"IF(DataLog!$C3300=\"Log value\",DataLog!G3300,\"\")","v":""},{"$f":"IF(DataLog!$C3300=\"Log value\",DataLog!H3300,\"\")","v":""},{"$f":"IF(DataLog!$C3300=\"Log value\",DataLog!I3300,\"\")","v":""},{"$f":"IF(DataLog!$C3300=\"Log value\",DataLog!J3300,\"\")","v":""},{"$f":"IF(DataLog!$C3300=\"Log value\",DataLog!K3300,\"\")","v":""},{"$f":"IF(DataLog!$C3300=\"Log value\",DataLog!L3300,\"\")","v":""},{"$f":"IF(DataLog!$C3300=\"Log value\",DataLog!M3300,\"\")","v":""},{"$f":"IF(DataLog!$C3300=\"Log value\",DataLog!N3300,\"\")","v":""},{"$f":"IF(DataLog!$C3300=\"Log value\",DataLog!O3300,\"\")","v":""},{"$f":"IF(DataLog!$C3300=\"Log value\",DataLog!P3300,\"\")","v":""},{"$f":"IF(DataLog!$C3300=\"Log value\",DataLog!Q3300,\"\")","v":""},{"$f":"IF(DataLog!$C3300=\"Log value\",DataLog!R3300,\"\")","v":""},{"$f":"IF(DataLog!$C3300=\"Log value\",DataLog!S3300,\"\")","v":""},{"$f":"IF(DataLog!$C3300=\"Log value\",DataLog!T3300,\"\")","v":""},{"$f":"IF(DataLog!$C3300=\"Log value\",DataLog!U3300,\"\")","v":""},{"$f":"IF(DataLog!$C3300=\"Log value\",DataLog!V3300,\"\")","v":""},{"$f":"IF(DataLog!$C3300=\"Log value\",DataLog!W3300,\"\")","v":""},{"$f":"IF(DataLog!$C3300=\"Log value\",DataLog!X3300,\"\")","v":""},{"$f":"IF(DataLog!$C3300=\"Log value\",DataLog!Y3300,\"\")","v":""},{"$f":"IF(DataLog!$C3300=\"Log value\",DataLog!Z3300,\"\")","v":""},{"$f":"IF(DataLog!$C3300=\"Log value\",DataLog!AA3300,\"\")","v":""},{"$f":"IF(DataLog!$C3300=\"Log value\",DataLog!AB3300,\"\")","v":""},{"$f":"IF(DataLog!$C3300=\"Log value\",DataLog!AC3300,\"\")","v":""},{"$f":"IF(DataLog!$C3300=\"Log value\",DataLog!AD3300,\"\")","v":""},{"$f":"IF(DataLog!$C3300=\"Log value\",DataLog!AE3300,\"\")","v":""},{"$f":"IF(DataLog!$C3300=\"Log value\",DataLog!AF3300,\"\")","v":""},{"$f":"IF(DataLog!$C3300=\"Log value\",DataLog!AG3300,\"\")","v":""},{"$f":"IF(DataLog!$C3300=\"Log value\",DataLog!AH3300,\"\")","v":""},{"$f":"IF(DataLog!$C3300=\"Log value\",DataLog!AI3300,\"\")","v":""},{"$f":"IF(DataLog!$C3300=\"Log value\",DataLog!AJ3300,\"\")","v":""},{"$f":"IF(DataLog!$C3300=\"Log value\",DataLog!AK3300,\"\")","v":""},{"$f":"IF(DataLog!$C3300=\"Log value\",DataLog!AL3300,\"\")","v":""},{"$f":"IF(DataLog!$C3300=\"Log value\",DataLog!AM3300,\"\")","v":""}]
[null,null,null,null,null,null,{"$f":"IF(DataLog!$C3301=\"Log value\",DataLog!D3301&\"_\"&TEXT(DataLog!B3301,\"åååå-mm-dd\"),\"\")","v":""},{"$f":"IF(DataLog!$C3301=\"Log value\",DataLog!E3301,\"\")","v":""},{"$f":"IF(DataLog!$C3301=\"Log value\",DataLog!F3301,\"\")","v":""},{"$f":"IF(DataLog!$C3301=\"Log value\",DataLog!G3301,\"\")","v":""},{"$f":"IF(DataLog!$C3301=\"Log value\",DataLog!H3301,\"\")","v":""},{"$f":"IF(DataLog!$C3301=\"Log value\",DataLog!I3301,\"\")","v":""},{"$f":"IF(DataLog!$C3301=\"Log value\",DataLog!J3301,\"\")","v":""},{"$f":"IF(DataLog!$C3301=\"Log value\",DataLog!K3301,\"\")","v":""},{"$f":"IF(DataLog!$C3301=\"Log value\",DataLog!L3301,\"\")","v":""},{"$f":"IF(DataLog!$C3301=\"Log value\",DataLog!M3301,\"\")","v":""},{"$f":"IF(DataLog!$C3301=\"Log value\",DataLog!N3301,\"\")","v":""},{"$f":"IF(DataLog!$C3301=\"Log value\",DataLog!O3301,\"\")","v":""},{"$f":"IF(DataLog!$C3301=\"Log value\",DataLog!P3301,\"\")","v":""},{"$f":"IF(DataLog!$C3301=\"Log value\",DataLog!Q3301,\"\")","v":""},{"$f":"IF(DataLog!$C3301=\"Log value\",DataLog!R3301,\"\")","v":""},{"$f":"IF(DataLog!$C3301=\"Log value\",DataLog!S3301,\"\")","v":""},{"$f":"IF(DataLog!$C3301=\"Log value\",DataLog!T3301,\"\")","v":""},{"$f":"IF(DataLog!$C3301=\"Log value\",DataLog!U3301,\"\")","v":""},{"$f":"IF(DataLog!$C3301=\"Log value\",DataLog!V3301,\"\")","v":""},{"$f":"IF(DataLog!$C3301=\"Log value\",DataLog!W3301,\"\")","v":""},{"$f":"IF(DataLog!$C3301=\"Log value\",DataLog!X3301,\"\")","v":""},{"$f":"IF(DataLog!$C3301=\"Log value\",DataLog!Y3301,\"\")","v":""},{"$f":"IF(DataLog!$C3301=\"Log value\",DataLog!Z3301,\"\")","v":""},{"$f":"IF(DataLog!$C3301=\"Log value\",DataLog!AA3301,\"\")","v":""},{"$f":"IF(DataLog!$C3301=\"Log value\",DataLog!AB3301,\"\")","v":""},{"$f":"IF(DataLog!$C3301=\"Log value\",DataLog!AC3301,\"\")","v":""},{"$f":"IF(DataLog!$C3301=\"Log value\",DataLog!AD3301,\"\")","v":""},{"$f":"IF(DataLog!$C3301=\"Log value\",DataLog!AE3301,\"\")","v":""},{"$f":"IF(DataLog!$C3301=\"Log value\",DataLog!AF3301,\"\")","v":""},{"$f":"IF(DataLog!$C3301=\"Log value\",DataLog!AG3301,\"\")","v":""},{"$f":"IF(DataLog!$C3301=\"Log value\",DataLog!AH3301,\"\")","v":""},{"$f":"IF(DataLog!$C3301=\"Log value\",DataLog!AI3301,\"\")","v":""},{"$f":"IF(DataLog!$C3301=\"Log value\",DataLog!AJ3301,\"\")","v":""},{"$f":"IF(DataLog!$C3301=\"Log value\",DataLog!AK3301,\"\")","v":""},{"$f":"IF(DataLog!$C3301=\"Log value\",DataLog!AL3301,\"\")","v":""},{"$f":"IF(DataLog!$C3301=\"Log value\",DataLog!AM3301,\"\")","v":""}]
[null,null,null,null,null,null,{"$f":"IF(DataLog!$C3302=\"Log value\",DataLog!D3302&\"_\"&TEXT(DataLog!B3302,\"åååå-mm-dd\"),\"\")","v":""},{"$f":"IF(DataLog!$C3302=\"Log value\",DataLog!E3302,\"\")","v":""},{"$f":"IF(DataLog!$C3302=\"Log value\",DataLog!F3302,\"\")","v":""},{"$f":"IF(DataLog!$C3302=\"Log value\",DataLog!G3302,\"\")","v":""},{"$f":"IF(DataLog!$C3302=\"Log value\",DataLog!H3302,\"\")","v":""},{"$f":"IF(DataLog!$C3302=\"Log value\",DataLog!I3302,\"\")","v":""},{"$f":"IF(DataLog!$C3302=\"Log value\",DataLog!J3302,\"\")","v":""},{"$f":"IF(DataLog!$C3302=\"Log value\",DataLog!K3302,\"\")","v":""},{"$f":"IF(DataLog!$C3302=\"Log value\",DataLog!L3302,\"\")","v":""},{"$f":"IF(DataLog!$C3302=\"Log value\",DataLog!M3302,\"\")","v":""},{"$f":"IF(DataLog!$C3302=\"Log value\",DataLog!N3302,\"\")","v":""},{"$f":"IF(DataLog!$C3302=\"Log value\",DataLog!O3302,\"\")","v":""},{"$f":"IF(DataLog!$C3302=\"Log value\",DataLog!P3302,\"\")","v":""},{"$f":"IF(DataLog!$C3302=\"Log value\",DataLog!Q3302,\"\")","v":""},{"$f":"IF(DataLog!$C3302=\"Log value\",DataLog!R3302,\"\")","v":""},{"$f":"IF(DataLog!$C3302=\"Log value\",DataLog!S3302,\"\")","v":""},{"$f":"IF(DataLog!$C3302=\"Log value\",DataLog!T3302,\"\")","v":""},{"$f":"IF(DataLog!$C3302=\"Log value\",DataLog!U3302,\"\")","v":""},{"$f":"IF(DataLog!$C3302=\"Log value\",DataLog!V3302,\"\")","v":""},{"$f":"IF(DataLog!$C3302=\"Log value\",DataLog!W3302,\"\")","v":""},{"$f":"IF(DataLog!$C3302=\"Log value\",DataLog!X3302,\"\")","v":""},{"$f":"IF(DataLog!$C3302=\"Log value\",DataLog!Y3302,\"\")","v":""},{"$f":"IF(DataLog!$C3302=\"Log value\",DataLog!Z3302,\"\")","v":""},{"$f":"IF(DataLog!$C3302=\"Log value\",DataLog!AA3302,\"\")","v":""},{"$f":"IF(DataLog!$C3302=\"Log value\",DataLog!AB3302,\"\")","v":""},{"$f":"IF(DataLog!$C3302=\"Log value\",DataLog!AC3302,\"\")","v":""},{"$f":"IF(DataLog!$C3302=\"Log value\",DataLog!AD3302,\"\")","v":""},{"$f":"IF(DataLog!$C3302=\"Log value\",DataLog!AE3302,\"\")","v":""},{"$f":"IF(DataLog!$C3302=\"Log value\",DataLog!AF3302,\"\")","v":""},{"$f":"IF(DataLog!$C3302=\"Log value\",DataLog!AG3302,\"\")","v":""},{"$f":"IF(DataLog!$C3302=\"Log value\",DataLog!AH3302,\"\")","v":""},{"$f":"IF(DataLog!$C3302=\"Log value\",DataLog!AI3302,\"\")","v":""},{"$f":"IF(DataLog!$C3302=\"Log value\",DataLog!AJ3302,\"\")","v":""},{"$f":"IF(DataLog!$C3302=\"Log value\",DataLog!AK3302,\"\")","v":""},{"$f":"IF(DataLog!$C3302=\"Log value\",DataLog!AL3302,\"\")","v":""},{"$f":"IF(DataLog!$C3302=\"Log value\",DataLog!AM3302,\"\")","v":""}]
[null,null,null,null,null,null,{"$f":"IF(DataLog!$C3303=\"Log value\",DataLog!D3303&\"_\"&TEXT(DataLog!B3303,\"åååå-mm-dd\"),\"\")","v":""},{"$f":"IF(DataLog!$C3303=\"Log value\",DataLog!E3303,\"\")","v":""},{"$f":"IF(DataLog!$C3303=\"Log value\",DataLog!F3303,\"\")","v":""},{"$f":"IF(DataLog!$C3303=\"Log value\",DataLog!G3303,\"\")","v":""},{"$f":"IF(DataLog!$C3303=\"Log value\",DataLog!H3303,\"\")","v":""},{"$f":"IF(DataLog!$C3303=\"Log value\",DataLog!I3303,\"\")","v":""},{"$f":"IF(DataLog!$C3303=\"Log value\",DataLog!J3303,\"\")","v":""},{"$f":"IF(DataLog!$C3303=\"Log value\",DataLog!K3303,\"\")","v":""},{"$f":"IF(DataLog!$C3303=\"Log value\",DataLog!L3303,\"\")","v":""},{"$f":"IF(DataLog!$C3303=\"Log value\",DataLog!M3303,\"\")","v":""},{"$f":"IF(DataLog!$C3303=\"Log value\",DataLog!N3303,\"\")","v":""},{"$f":"IF(DataLog!$C3303=\"Log value\",DataLog!O3303,\"\")","v":""},{"$f":"IF(DataLog!$C3303=\"Log value\",DataLog!P3303,\"\")","v":""},{"$f":"IF(DataLog!$C3303=\"Log value\",DataLog!Q3303,\"\")","v":""},{"$f":"IF(DataLog!$C3303=\"Log value\",DataLog!R3303,\"\")","v":""},{"$f":"IF(DataLog!$C3303=\"Log value\",DataLog!S3303,\"\")","v":""},{"$f":"IF(DataLog!$C3303=\"Log value\",DataLog!T3303,\"\")","v":""},{"$f":"IF(DataLog!$C3303=\"Log value\",DataLog!U3303,\"\")","v":""},{"$f":"IF(DataLog!$C3303=\"Log value\",DataLog!V3303,\"\")","v":""},{"$f":"IF(DataLog!$C3303=\"Log value\",DataLog!W3303,\"\")","v":""},{"$f":"IF(DataLog!$C3303=\"Log value\",DataLog!X3303,\"\")","v":""},{"$f":"IF(DataLog!$C3303=\"Log value\",DataLog!Y3303,\"\")","v":""},{"$f":"IF(DataLog!$C3303=\"Log value\",DataLog!Z3303,\"\")","v":""},{"$f":"IF(DataLog!$C3303=\"Log value\",DataLog!AA3303,\"\")","v":""},{"$f":"IF(DataLog!$C3303=\"Log value\",DataLog!AB3303,\"\")","v":""},{"$f":"IF(DataLog!$C3303=\"Log value\",DataLog!AC3303,\"\")","v":""},{"$f":"IF(DataLog!$C3303=\"Log value\",DataLog!AD3303,\"\")","v":""},{"$f":"IF(DataLog!$C3303=\"Log value\",DataLog!AE3303,\"\")","v":""},{"$f":"IF(DataLog!$C3303=\"Log value\",DataLog!AF3303,\"\")","v":""},{"$f":"IF(DataLog!$C3303=\"Log value\",DataLog!AG3303,\"\")","v":""},{"$f":"IF(DataLog!$C3303=\"Log value\",DataLog!AH3303,\"\")","v":""},{"$f":"IF(DataLog!$C3303=\"Log value\",DataLog!AI3303,\"\")","v":""},{"$f":"IF(DataLog!$C3303=\"Log value\",DataLog!AJ3303,\"\")","v":""},{"$f":"IF(DataLog!$C3303=\"Log value\",DataLog!AK3303,\"\")","v":""},{"$f":"IF(DataLog!$C3303=\"Log value\",DataLog!AL3303,\"\")","v":""},{"$f":"IF(DataLog!$C3303=\"Log value\",DataLog!AM3303,\"\")","v":""}]
[null,null,null,null,null,null,{"$f":"IF(DataLog!$C3304=\"Log value\",DataLog!D3304&\"_\"&TEXT(DataLog!B3304,\"åååå-mm-dd\"),\"\")","v":""},{"$f":"IF(DataLog!$C3304=\"Log value\",DataLog!E3304,\"\")","v":""},{"$f":"IF(DataLog!$C3304=\"Log value\",DataLog!F3304,\"\")","v":""},{"$f":"IF(DataLog!$C3304=\"Log value\",DataLog!G3304,\"\")","v":""},{"$f":"IF(DataLog!$C3304=\"Log value\",DataLog!H3304,\"\")","v":""},{"$f":"IF(DataLog!$C3304=\"Log value\",DataLog!I3304,\"\")","v":""},{"$f":"IF(DataLog!$C3304=\"Log value\",DataLog!J3304,\"\")","v":""},{"$f":"IF(DataLog!$C3304=\"Log value\",DataLog!K3304,\"\")","v":""},{"$f":"IF(DataLog!$C3304=\"Log value\",DataLog!L3304,\"\")","v":""},{"$f":"IF(DataLog!$C3304=\"Log value\",DataLog!M3304,\"\")","v":""},{"$f":"IF(DataLog!$C3304=\"Log value\",DataLog!N3304,\"\")","v":""},{"$f":"IF(DataLog!$C3304=\"Log value\",DataLog!O3304,\"\")","v":""},{"$f":"IF(DataLog!$C3304=\"Log value\",DataLog!P3304,\"\")","v":""},{"$f":"IF(DataLog!$C3304=\"Log value\",DataLog!Q3304,\"\")","v":""},{"$f":"IF(DataLog!$C3304=\"Log value\",DataLog!R3304,\"\")","v":""},{"$f":"IF(DataLog!$C3304=\"Log value\",DataLog!S3304,\"\")","v":""},{"$f":"IF(DataLog!$C3304=\"Log value\",DataLog!T3304,\"\")","v":""},{"$f":"IF(DataLog!$C3304=\"Log value\",DataLog!U3304,\"\")","v":""},{"$f":"IF(DataLog!$C3304=\"Log value\",DataLog!V3304,\"\")","v":""},{"$f":"IF(DataLog!$C3304=\"Log value\",DataLog!W3304,\"\")","v":""},{"$f":"IF(DataLog!$C3304=\"Log value\",DataLog!X3304,\"\")","v":""},{"$f":"IF(DataLog!$C3304=\"Log value\",DataLog!Y3304,\"\")","v":""},{"$f":"IF(DataLog!$C3304=\"Log value\",DataLog!Z3304,\"\")","v":""},{"$f":"IF(DataLog!$C3304=\"Log value\",DataLog!AA3304,\"\")","v":""},{"$f":"IF(DataLog!$C3304=\"Log value\",DataLog!AB3304,\"\")","v":""},{"$f":"IF(DataLog!$C3304=\"Log value\",DataLog!AC3304,\"\")","v":""},{"$f":"IF(DataLog!$C3304=\"Log value\",DataLog!AD3304,\"\")","v":""},{"$f":"IF(DataLog!$C3304=\"Log value\",DataLog!AE3304,\"\")","v":""},{"$f":"IF(DataLog!$C3304=\"Log value\",DataLog!AF3304,\"\")","v":""},{"$f":"IF(DataLog!$C3304=\"Log value\",DataLog!AG3304,\"\")","v":""},{"$f":"IF(DataLog!$C3304=\"Log value\",DataLog!AH3304,\"\")","v":""},{"$f":"IF(DataLog!$C3304=\"Log value\",DataLog!AI3304,\"\")","v":""},{"$f":"IF(DataLog!$C3304=\"Log value\",DataLog!AJ3304,\"\")","v":""},{"$f":"IF(DataLog!$C3304=\"Log value\",DataLog!AK3304,\"\")","v":""},{"$f":"IF(DataLog!$C3304=\"Log value\",DataLog!AL3304,\"\")","v":""},{"$f":"IF(DataLog!$C3304=\"Log value\",DataLog!AM3304,\"\")","v":""}]
[null,null,null,null,null,null,{"$f":"IF(DataLog!$C3305=\"Log value\",DataLog!D3305&\"_\"&TEXT(DataLog!B3305,\"åååå-mm-dd\"),\"\")","v":""},{"$f":"IF(DataLog!$C3305=\"Log value\",DataLog!E3305,\"\")","v":""},{"$f":"IF(DataLog!$C3305=\"Log value\",DataLog!F3305,\"\")","v":""},{"$f":"IF(DataLog!$C3305=\"Log value\",DataLog!G3305,\"\")","v":""},{"$f":"IF(DataLog!$C3305=\"Log value\",DataLog!H3305,\"\")","v":""},{"$f":"IF(DataLog!$C3305=\"Log value\",DataLog!I3305,\"\")","v":""},{"$f":"IF(DataLog!$C3305=\"Log value\",DataLog!J3305,\"\")","v":""},{"$f":"IF(DataLog!$C3305=\"Log value\",DataLog!K3305,\"\")","v":""},{"$f":"IF(DataLog!$C3305=\"Log value\",DataLog!L3305,\"\")","v":""},{"$f":"IF(DataLog!$C3305=\"Log value\",DataLog!M3305,\"\")","v":""},{"$f":"IF(DataLog!$C3305=\"Log value\",DataLog!N3305,\"\")","v":""},{"$f":"IF(DataLog!$C3305=\"Log value\",DataLog!O3305,\"\")","v":""},{"$f":"IF(DataLog!$C3305=\"Log value\",DataLog!P3305,\"\")","v":""},{"$f":"IF(DataLog!$C3305=\"Log value\",DataLog!Q3305,\"\")","v":""},{"$f":"IF(DataLog!$C3305=\"Log value\",DataLog!R3305,\"\")","v":""},{"$f":"IF(DataLog!$C3305=\"Log value\",DataLog!S3305,\"\")","v":""},{"$f":"IF(DataLog!$C3305=\"Log value\",DataLog!T3305,\"\")","v":""},{"$f":"IF(DataLog!$C3305=\"Log value\",DataLog!U3305,\"\")","v":""},{"$f":"IF(DataLog!$C3305=\"Log value\",DataLog!V3305,\"\")","v":""},{"$f":"IF(DataLog!$C3305=\"Log value\",DataLog!W3305,\"\")","v":""},{"$f":"IF(DataLog!$C3305=\"Log value\",DataLog!X3305,\"\")","v":""},{"$f":"IF(DataLog!$C3305=\"Log value\",DataLog!Y3305,\"\")","v":""},{"$f":"IF(DataLog!$C3305=\"Log value\",DataLog!Z3305,\"\")","v":""},{"$f":"IF(DataLog!$C3305=\"Log value\",DataLog!AA3305,\"\")","v":""},{"$f":"IF(DataLog!$C3305=\"Log value\",DataLog!AB3305,\"\")","v":""},{"$f":"IF(DataLog!$C3305=\"Log value\",DataLog!AC3305,\"\")","v":""},{"$f":"IF(DataLog!$C3305=\"Log value\",DataLog!AD3305,\"\")","v":""},{"$f":"IF(DataLog!$C3305=\"Log value\",DataLog!AE3305,\"\")","v":""},{"$f":"IF(DataLog!$C3305=\"Log value\",DataLog!AF3305,\"\")","v":""},{"$f":"IF(DataLog!$C3305=\"Log value\",DataLog!AG3305,\"\")","v":""},{"$f":"IF(DataLog!$C3305=\"Log value\",DataLog!AH3305,\"\")","v":""},{"$f":"IF(DataLog!$C3305=\"Log value\",DataLog!AI3305,\"\")","v":""},{"$f":"IF(DataLog!$C3305=\"Log value\",DataLog!AJ3305,\"\")","v":""},{"$f":"IF(DataLog!$C3305=\"Log value\",DataLog!AK3305,\"\")","v":""},{"$f":"IF(DataLog!$C3305=\"Log value\",DataLog!AL3305,\"\")","v":""},{"$f":"IF(DataLog!$C3305=\"Log value\",DataLog!AM3305,\"\")","v":""}]
[null,null,null,null,null,null,{"$f":"IF(DataLog!$C3306=\"Log value\",DataLog!D3306&\"_\"&TEXT(DataLog!B3306,\"åååå-mm-dd\"),\"\")","v":""},{"$f":"IF(DataLog!$C3306=\"Log value\",DataLog!E3306,\"\")","v":""},{"$f":"IF(DataLog!$C3306=\"Log value\",DataLog!F3306,\"\")","v":""},{"$f":"IF(DataLog!$C3306=\"Log value\",DataLog!G3306,\"\")","v":""},{"$f":"IF(DataLog!$C3306=\"Log value\",DataLog!H3306,\"\")","v":""},{"$f":"IF(DataLog!$C3306=\"Log value\",DataLog!I3306,\"\")","v":""},{"$f":"IF(DataLog!$C3306=\"Log value\",DataLog!J3306,\"\")","v":""},{"$f":"IF(DataLog!$C3306=\"Log value\",DataLog!K3306,\"\")","v":""},{"$f":"IF(DataLog!$C3306=\"Log value\",DataLog!L3306,\"\")","v":""},{"$f":"IF(DataLog!$C3306=\"Log value\",DataLog!M3306,\"\")","v":""},{"$f":"IF(DataLog!$C3306=\"Log value\",DataLog!N3306,\"\")","v":""},{"$f":"IF(DataLog!$C3306=\"Log value\",DataLog!O3306,\"\")","v":""},{"$f":"IF(DataLog!$C3306=\"Log value\",DataLog!P3306,\"\")","v":""},{"$f":"IF(DataLog!$C3306=\"Log value\",DataLog!Q3306,\"\")","v":""},{"$f":"IF(DataLog!$C3306=\"Log value\",DataLog!R3306,\"\")","v":""},{"$f":"IF(DataLog!$C3306=\"Log value\",DataLog!S3306,\"\")","v":""},{"$f":"IF(DataLog!$C3306=\"Log value\",DataLog!T3306,\"\")","v":""},{"$f":"IF(DataLog!$C3306=\"Log value\",DataLog!U3306,\"\")","v":""},{"$f":"IF(DataLog!$C3306=\"Log value\",DataLog!V3306,\"\")","v":""},{"$f":"IF(DataLog!$C3306=\"Log value\",DataLog!W3306,\"\")","v":""},{"$f":"IF(DataLog!$C3306=\"Log value\",DataLog!X3306,\"\")","v":""},{"$f":"IF(DataLog!$C3306=\"Log value\",DataLog!Y3306,\"\")","v":""},{"$f":"IF(DataLog!$C3306=\"Log value\",DataLog!Z3306,\"\")","v":""},{"$f":"IF(DataLog!$C3306=\"Log value\",DataLog!AA3306,\"\")","v":""},{"$f":"IF(DataLog!$C3306=\"Log value\",DataLog!AB3306,\"\")","v":""},{"$f":"IF(DataLog!$C3306=\"Log value\",DataLog!AC3306,\"\")","v":""},{"$f":"IF(DataLog!$C3306=\"Log value\",DataLog!AD3306,\"\")","v":""},{"$f":"IF(DataLog!$C3306=\"Log value\",DataLog!AE3306,\"\")","v":""},{"$f":"IF(DataLog!$C3306=\"Log value\",DataLog!AF3306,\"\")","v":""},{"$f":"IF(DataLog!$C3306=\"Log value\",DataLog!AG3306,\"\")","v":""},{"$f":"IF(DataLog!$C3306=\"Log value\",DataLog!AH3306,\"\")","v":""},{"$f":"IF(DataLog!$C3306=\"Log value\",DataLog!AI3306,\"\")","v":""},{"$f":"IF(DataLog!$C3306=\"Log value\",DataLog!AJ3306,\"\")","v":""},{"$f":"IF(DataLog!$C3306=\"Log value\",DataLog!AK3306,\"\")","v":""},{"$f":"IF(DataLog!$C3306=\"Log value\",DataLog!AL3306,\"\")","v":""},{"$f":"IF(DataLog!$C3306=\"Log value\",DataLog!AM3306,\"\")","v":""}]
[null,null,null,null,null,null,{"$f":"IF(DataLog!$C3307=\"Log value\",DataLog!D3307&\"_\"&TEXT(DataLog!B3307,\"åååå-mm-dd\"),\"\")","v":""},{"$f":"IF(DataLog!$C3307=\"Log value\",DataLog!E3307,\"\")","v":""},{"$f":"IF(DataLog!$C3307=\"Log value\",DataLog!F3307,\"\")","v":""},{"$f":"IF(DataLog!$C3307=\"Log value\",DataLog!G3307,\"\")","v":""},{"$f":"IF(DataLog!$C3307=\"Log value\",DataLog!H3307,\"\")","v":""},{"$f":"IF(DataLog!$C3307=\"Log value\",DataLog!I3307,\"\")","v":""},{"$f":"IF(DataLog!$C3307=\"Log value\",DataLog!J3307,\"\")","v":""},{"$f":"IF(DataLog!$C3307=\"Log value\",DataLog!K3307,\"\")","v":""},{"$f":"IF(DataLog!$C3307=\"Log value\",DataLog!L3307,\"\")","v":""},{"$f":"IF(DataLog!$C3307=\"Log value\",DataLog!M3307,\"\")","v":""},{"$f":"IF(DataLog!$C3307=\"Log value\",DataLog!N3307,\"\")","v":""},{"$f":"IF(DataLog!$C3307=\"Log value\",DataLog!O3307,\"\")","v":""},{"$f":"IF(DataLog!$C3307=\"Log value\",DataLog!P3307,\"\")","v":""},{"$f":"IF(DataLog!$C3307=\"Log value\",DataLog!Q3307,\"\")","v":""},{"$f":"IF(DataLog!$C3307=\"Log value\",DataLog!R3307,\"\")","v":""},{"$f":"IF(DataLog!$C3307=\"Log value\",DataLog!S3307,\"\")","v":""},{"$f":"IF(DataLog!$C3307=\"Log value\",DataLog!T3307,\"\")","v":""},{"$f":"IF(DataLog!$C3307=\"Log value\",DataLog!U3307,\"\")","v":""},{"$f":"IF(DataLog!$C3307=\"Log value\",DataLog!V3307,\"\")","v":""},{"$f":"IF(DataLog!$C3307=\"Log value\",DataLog!W3307,\"\")","v":""},{"$f":"IF(DataLog!$C3307=\"Log value\",DataLog!X3307,\"\")","v":""},{"$f":"IF(DataLog!$C3307=\"Log value\",DataLog!Y3307,\"\")","v":""},{"$f":"IF(DataLog!$C3307=\"Log value\",DataLog!Z3307,\"\")","v":""},{"$f":"IF(DataLog!$C3307=\"Log value\",DataLog!AA3307,\"\")","v":""},{"$f":"IF(DataLog!$C3307=\"Log value\",DataLog!AB3307,\"\")","v":""},{"$f":"IF(DataLog!$C3307=\"Log value\",DataLog!AC3307,\"\")","v":""},{"$f":"IF(DataLog!$C3307=\"Log value\",DataLog!AD3307,\"\")","v":""},{"$f":"IF(DataLog!$C3307=\"Log value\",DataLog!AE3307,\"\")","v":""},{"$f":"IF(DataLog!$C3307=\"Log value\",DataLog!AF3307,\"\")","v":""},{"$f":"IF(DataLog!$C3307=\"Log value\",DataLog!AG3307,\"\")","v":""},{"$f":"IF(DataLog!$C3307=\"Log value\",DataLog!AH3307,\"\")","v":""},{"$f":"IF(DataLog!$C3307=\"Log value\",DataLog!AI3307,\"\")","v":""},{"$f":"IF(DataLog!$C3307=\"Log value\",DataLog!AJ3307,\"\")","v":""},{"$f":"IF(DataLog!$C3307=\"Log value\",DataLog!AK3307,\"\")","v":""},{"$f":"IF(DataLog!$C3307=\"Log value\",DataLog!AL3307,\"\")","v":""},{"$f":"IF(DataLog!$C3307=\"Log value\",DataLog!AM3307,\"\")","v":""}]
[null,null,null,null,null,null,{"$f":"IF(DataLog!$C3308=\"Log value\",DataLog!D3308&\"_\"&TEXT(DataLog!B3308,\"åååå-mm-dd\"),\"\")","v":""},{"$f":"IF(DataLog!$C3308=\"Log value\",DataLog!E3308,\"\")","v":""},{"$f":"IF(DataLog!$C3308=\"Log value\",DataLog!F3308,\"\")","v":""},{"$f":"IF(DataLog!$C3308=\"Log value\",DataLog!G3308,\"\")","v":""},{"$f":"IF(DataLog!$C3308=\"Log value\",DataLog!H3308,\"\")","v":""},{"$f":"IF(DataLog!$C3308=\"Log value\",DataLog!I3308,\"\")","v":""},{"$f":"IF(DataLog!$C3308=\"Log value\",DataLog!J3308,\"\")","v":""},{"$f":"IF(DataLog!$C3308=\"Log value\",DataLog!K3308,\"\")","v":""},{"$f":"IF(DataLog!$C3308=\"Log value\",DataLog!L3308,\"\")","v":""},{"$f":"IF(DataLog!$C3308=\"Log value\",DataLog!M3308,\"\")","v":""},{"$f":"IF(DataLog!$C3308=\"Log value\",DataLog!N3308,\"\")","v":""},{"$f":"IF(DataLog!$C3308=\"Log value\",DataLog!O3308,\"\")","v":""},{"$f":"IF(DataLog!$C3308=\"Log value\",DataLog!P3308,\"\")","v":""},{"$f":"IF(DataLog!$C3308=\"Log value\",DataLog!Q3308,\"\")","v":""},{"$f":"IF(DataLog!$C3308=\"Log value\",DataLog!R3308,\"\")","v":""},{"$f":"IF(DataLog!$C3308=\"Log value\",DataLog!S3308,\"\")","v":""},{"$f":"IF(DataLog!$C3308=\"Log value\",DataLog!T3308,\"\")","v":""},{"$f":"IF(DataLog!$C3308=\"Log value\",DataLog!U3308,\"\")","v":""},{"$f":"IF(DataLog!$C3308=\"Log value\",DataLog!V3308,\"\")","v":""},{"$f":"IF(DataLog!$C3308=\"Log value\",DataLog!W3308,\"\")","v":""},{"$f":"IF(DataLog!$C3308=\"Log value\",DataLog!X3308,\"\")","v":""},{"$f":"IF(DataLog!$C3308=\"Log value\",DataLog!Y3308,\"\")","v":""},{"$f":"IF(DataLog!$C3308=\"Log value\",DataLog!Z3308,\"\")","v":""},{"$f":"IF(DataLog!$C3308=\"Log value\",DataLog!AA3308,\"\")","v":""},{"$f":"IF(DataLog!$C3308=\"Log value\",DataLog!AB3308,\"\")","v":""},{"$f":"IF(DataLog!$C3308=\"Log value\",DataLog!AC3308,\"\")","v":""},{"$f":"IF(DataLog!$C3308=\"Log value\",DataLog!AD3308,\"\")","v":""},{"$f":"IF(DataLog!$C3308=\"Log value\",DataLog!AE3308,\"\")","v":""},{"$f":"IF(DataLog!$C3308=\"Log value\",DataLog!AF3308,\"\")","v":""},{"$f":"IF(DataLog!$C3308=\"Log value\",DataLog!AG3308,\"\")","v":""},{"$f":"IF(DataLog!$C3308=\"Log value\",DataLog!AH3308,\"\")","v":""},{"$f":"IF(DataLog!$C3308=\"Log value\",DataLog!AI3308,\"\")","v":""},{"$f":"IF(DataLog!$C3308=\"Log value\",DataLog!AJ3308,\"\")","v":""},{"$f":"IF(DataLog!$C3308=\"Log value\",DataLog!AK3308,\"\")","v":""},{"$f":"IF(DataLog!$C3308=\"Log value\",DataLog!AL3308,\"\")","v":""},{"$f":"IF(DataLog!$C3308=\"Log value\",DataLog!AM3308,\"\")","v":""}]
[null,null,null,null,null,null,{"$f":"IF(DataLog!$C3309=\"Log value\",DataLog!D3309&\"_\"&TEXT(DataLog!B3309,\"åååå-mm-dd\"),\"\")","v":""},{"$f":"IF(DataLog!$C3309=\"Log value\",DataLog!E3309,\"\")","v":""},{"$f":"IF(DataLog!$C3309=\"Log value\",DataLog!F3309,\"\")","v":""},{"$f":"IF(DataLog!$C3309=\"Log value\",DataLog!G3309,\"\")","v":""},{"$f":"IF(DataLog!$C3309=\"Log value\",DataLog!H3309,\"\")","v":""},{"$f":"IF(DataLog!$C3309=\"Log value\",DataLog!I3309,\"\")","v":""},{"$f":"IF(DataLog!$C3309=\"Log value\",DataLog!J3309,\"\")","v":""},{"$f":"IF(DataLog!$C3309=\"Log value\",DataLog!K3309,\"\")","v":""},{"$f":"IF(DataLog!$C3309=\"Log value\",DataLog!L3309,\"\")","v":""},{"$f":"IF(DataLog!$C3309=\"Log value\",DataLog!M3309,\"\")","v":""},{"$f":"IF(DataLog!$C3309=\"Log value\",DataLog!N3309,\"\")","v":""},{"$f":"IF(DataLog!$C3309=\"Log value\",DataLog!O3309,\"\")","v":""},{"$f":"IF(DataLog!$C3309=\"Log value\",DataLog!P3309,\"\")","v":""},{"$f":"IF(DataLog!$C3309=\"Log value\",DataLog!Q3309,\"\")","v":""},{"$f":"IF(DataLog!$C3309=\"Log value\",DataLog!R3309,\"\")","v":""},{"$f":"IF(DataLog!$C3309=\"Log value\",DataLog!S3309,\"\")","v":""},{"$f":"IF(DataLog!$C3309=\"Log value\",DataLog!T3309,\"\")","v":""},{"$f":"IF(DataLog!$C3309=\"Log value\",DataLog!U3309,\"\")","v":""},{"$f":"IF(DataLog!$C3309=\"Log value\",DataLog!V3309,\"\")","v":""},{"$f":"IF(DataLog!$C3309=\"Log value\",DataLog!W3309,\"\")","v":""},{"$f":"IF(DataLog!$C3309=\"Log value\",DataLog!X3309,\"\")","v":""},{"$f":"IF(DataLog!$C3309=\"Log value\",DataLog!Y3309,\"\")","v":""},{"$f":"IF(DataLog!$C3309=\"Log value\",DataLog!Z3309,\"\")","v":""},{"$f":"IF(DataLog!$C3309=\"Log value\",DataLog!AA3309,\"\")","v":""},{"$f":"IF(DataLog!$C3309=\"Log value\",DataLog!AB3309,\"\")","v":""},{"$f":"IF(DataLog!$C3309=\"Log value\",DataLog!AC3309,\"\")","v":""},{"$f":"IF(DataLog!$C3309=\"Log value\",DataLog!AD3309,\"\")","v":""},{"$f":"IF(DataLog!$C3309=\"Log value\",DataLog!AE3309,\"\")","v":""},{"$f":"IF(DataLog!$C3309=\"Log value\",DataLog!AF3309,\"\")","v":""},{"$f":"IF(DataLog!$C3309=\"Log value\",DataLog!AG3309,\"\")","v":""},{"$f":"IF(DataLog!$C3309=\"Log value\",DataLog!AH3309,\"\")","v":""},{"$f":"IF(DataLog!$C3309=\"Log value\",DataLog!AI3309,\"\")","v":""},{"$f":"IF(DataLog!$C3309=\"Log value\",DataLog!AJ3309,\"\")","v":""},{"$f":"IF(DataLog!$C3309=\"Log value\",DataLog!AK3309,\"\")","v":""},{"$f":"IF(DataLog!$C3309=\"Log value\",DataLog!AL3309,\"\")","v":""},{"$f":"IF(DataLog!$C3309=\"Log value\",DataLog!AM3309,\"\")","v":""}]
[null,null,null,null,null,null,{"$f":"IF(DataLog!$C3310=\"Log value\",DataLog!D3310&\"_\"&TEXT(DataLog!B3310,\"åååå-mm-dd\"),\"\")","v":""},{"$f":"IF(DataLog!$C3310=\"Log value\",DataLog!E3310,\"\")","v":""},{"$f":"IF(DataLog!$C3310=\"Log value\",DataLog!F3310,\"\")","v":""},{"$f":"IF(DataLog!$C3310=\"Log value\",DataLog!G3310,\"\")","v":""},{"$f":"IF(DataLog!$C3310=\"Log value\",DataLog!H3310,\"\")","v":""},{"$f":"IF(DataLog!$C3310=\"Log value\",DataLog!I3310,\"\")","v":""},{"$f":"IF(DataLog!$C3310=\"Log value\",DataLog!J3310,\"\")","v":""},{"$f":"IF(DataLog!$C3310=\"Log value\",DataLog!K3310,\"\")","v":""},{"$f":"IF(DataLog!$C3310=\"Log value\",DataLog!L3310,\"\")","v":""},{"$f":"IF(DataLog!$C3310=\"Log value\",DataLog!M3310,\"\")","v":""},{"$f":"IF(DataLog!$C3310=\"Log value\",DataLog!N3310,\"\")","v":""},{"$f":"IF(DataLog!$C3310=\"Log value\",DataLog!O3310,\"\")","v":""},{"$f":"IF(DataLog!$C3310=\"Log value\",DataLog!P3310,\"\")","v":""},{"$f":"IF(DataLog!$C3310=\"Log value\",DataLog!Q3310,\"\")","v":""},{"$f":"IF(DataLog!$C3310=\"Log value\",DataLog!R3310,\"\")","v":""},{"$f":"IF(DataLog!$C3310=\"Log value\",DataLog!S3310,\"\")","v":""},{"$f":"IF(DataLog!$C3310=\"Log value\",DataLog!T3310,\"\")","v":""},{"$f":"IF(DataLog!$C3310=\"Log value\",DataLog!U3310,\"\")","v":""},{"$f":"IF(DataLog!$C3310=\"Log value\",DataLog!V3310,\"\")","v":""},{"$f":"IF(DataLog!$C3310=\"Log value\",DataLog!W3310,\"\")","v":""},{"$f":"IF(DataLog!$C3310=\"Log value\",DataLog!X3310,\"\")","v":""},{"$f":"IF(DataLog!$C3310=\"Log value\",DataLog!Y3310,\"\")","v":""},{"$f":"IF(DataLog!$C3310=\"Log value\",DataLog!Z3310,\"\")","v":""},{"$f":"IF(DataLog!$C3310=\"Log value\",DataLog!AA3310,\"\")","v":""},{"$f":"IF(DataLog!$C3310=\"Log value\",DataLog!AB3310,\"\")","v":""},{"$f":"IF(DataLog!$C3310=\"Log value\",DataLog!AC3310,\"\")","v":""},{"$f":"IF(DataLog!$C3310=\"Log value\",DataLog!AD3310,\"\")","v":""},{"$f":"IF(DataLog!$C3310=\"Log value\",DataLog!AE3310,\"\")","v":""},{"$f":"IF(DataLog!$C3310=\"Log value\",DataLog!AF3310,\"\")","v":""},{"$f":"IF(DataLog!$C3310=\"Log value\",DataLog!AG3310,\"\")","v":""},{"$f":"IF(DataLog!$C3310=\"Log value\",DataLog!AH3310,\"\")","v":""},{"$f":"IF(DataLog!$C3310=\"Log value\",DataLog!AI3310,\"\")","v":""},{"$f":"IF(DataLog!$C3310=\"Log value\",DataLog!AJ3310,\"\")","v":""},{"$f":"IF(DataLog!$C3310=\"Log value\",DataLog!AK3310,\"\")","v":""},{"$f":"IF(DataLog!$C3310=\"Log value\",DataLog!AL3310,\"\")","v":""},{"$f":"IF(DataLog!$C3310=\"Log value\",DataLog!AM3310,\"\")","v":""}]
[null,null,null,null,null,null,{"$f":"IF(DataLog!$C3311=\"Log value\",DataLog!D3311&\"_\"&TEXT(DataLog!B3311,\"åååå-mm-dd\"),\"\")","v":""},{"$f":"IF(DataLog!$C3311=\"Log value\",DataLog!E3311,\"\")","v":""},{"$f":"IF(DataLog!$C3311=\"Log value\",DataLog!F3311,\"\")","v":""},{"$f":"IF(DataLog!$C3311=\"Log value\",DataLog!G3311,\"\")","v":""},{"$f":"IF(DataLog!$C3311=\"Log value\",DataLog!H3311,\"\")","v":""},{"$f":"IF(DataLog!$C3311=\"Log value\",DataLog!I3311,\"\")","v":""},{"$f":"IF(DataLog!$C3311=\"Log value\",DataLog!J3311,\"\")","v":""},{"$f":"IF(DataLog!$C3311=\"Log value\",DataLog!K3311,\"\")","v":""},{"$f":"IF(DataLog!$C3311=\"Log value\",DataLog!L3311,\"\")","v":""},{"$f":"IF(DataLog!$C3311=\"Log value\",DataLog!M3311,\"\")","v":""},{"$f":"IF(DataLog!$C3311=\"Log value\",DataLog!N3311,\"\")","v":""},{"$f":"IF(DataLog!$C3311=\"Log value\",DataLog!O3311,\"\")","v":""},{"$f":"IF(DataLog!$C3311=\"Log value\",DataLog!P3311,\"\")","v":""},{"$f":"IF(DataLog!$C3311=\"Log value\",DataLog!Q3311,\"\")","v":""},{"$f":"IF(DataLog!$C3311=\"Log value\",DataLog!R3311,\"\")","v":""},{"$f":"IF(DataLog!$C3311=\"Log value\",DataLog!S3311,\"\")","v":""},{"$f":"IF(DataLog!$C3311=\"Log value\",DataLog!T3311,\"\")","v":""},{"$f":"IF(DataLog!$C3311=\"Log value\",DataLog!U3311,\"\")","v":""},{"$f":"IF(DataLog!$C3311=\"Log value\",DataLog!V3311,\"\")","v":""},{"$f":"IF(DataLog!$C3311=\"Log value\",DataLog!W3311,\"\")","v":""},{"$f":"IF(DataLog!$C3311=\"Log value\",DataLog!X3311,\"\")","v":""},{"$f":"IF(DataLog!$C3311=\"Log value\",DataLog!Y3311,\"\")","v":""},{"$f":"IF(DataLog!$C3311=\"Log value\",DataLog!Z3311,\"\")","v":""},{"$f":"IF(DataLog!$C3311=\"Log value\",DataLog!AA3311,\"\")","v":""},{"$f":"IF(DataLog!$C3311=\"Log value\",DataLog!AB3311,\"\")","v":""},{"$f":"IF(DataLog!$C3311=\"Log value\",DataLog!AC3311,\"\")","v":""},{"$f":"IF(DataLog!$C3311=\"Log value\",DataLog!AD3311,\"\")","v":""},{"$f":"IF(DataLog!$C3311=\"Log value\",DataLog!AE3311,\"\")","v":""},{"$f":"IF(DataLog!$C3311=\"Log value\",DataLog!AF3311,\"\")","v":""},{"$f":"IF(DataLog!$C3311=\"Log value\",DataLog!AG3311,\"\")","v":""},{"$f":"IF(DataLog!$C3311=\"Log value\",DataLog!AH3311,\"\")","v":""},{"$f":"IF(DataLog!$C3311=\"Log value\",DataLog!AI3311,\"\")","v":""},{"$f":"IF(DataLog!$C3311=\"Log value\",DataLog!AJ3311,\"\")","v":""},{"$f":"IF(DataLog!$C3311=\"Log value\",DataLog!AK3311,\"\")","v":""},{"$f":"IF(DataLog!$C3311=\"Log value\",DataLog!AL3311,\"\")","v":""},{"$f":"IF(DataLog!$C3311=\"Log value\",DataLog!AM3311,\"\")","v":""}]
[null,null,null,null,null,null,{"$f":"IF(DataLog!$C3312=\"Log value\",DataLog!D3312&\"_\"&TEXT(DataLog!B3312,\"åååå-mm-dd\"),\"\")","v":""},{"$f":"IF(DataLog!$C3312=\"Log value\",DataLog!E3312,\"\")","v":""},{"$f":"IF(DataLog!$C3312=\"Log value\",DataLog!F3312,\"\")","v":""},{"$f":"IF(DataLog!$C3312=\"Log value\",DataLog!G3312,\"\")","v":""},{"$f":"IF(DataLog!$C3312=\"Log value\",DataLog!H3312,\"\")","v":""},{"$f":"IF(DataLog!$C3312=\"Log value\",DataLog!I3312,\"\")","v":""},{"$f":"IF(DataLog!$C3312=\"Log value\",DataLog!J3312,\"\")","v":""},{"$f":"IF(DataLog!$C3312=\"Log value\",DataLog!K3312,\"\")","v":""},{"$f":"IF(DataLog!$C3312=\"Log value\",DataLog!L3312,\"\")","v":""},{"$f":"IF(DataLog!$C3312=\"Log value\",DataLog!M3312,\"\")","v":""},{"$f":"IF(DataLog!$C3312=\"Log value\",DataLog!N3312,\"\")","v":""},{"$f":"IF(DataLog!$C3312=\"Log value\",DataLog!O3312,\"\")","v":""},{"$f":"IF(DataLog!$C3312=\"Log value\",DataLog!P3312,\"\")","v":""},{"$f":"IF(DataLog!$C3312=\"Log value\",DataLog!Q3312,\"\")","v":""},{"$f":"IF(DataLog!$C3312=\"Log value\",DataLog!R3312,\"\")","v":""},{"$f":"IF(DataLog!$C3312=\"Log value\",DataLog!S3312,\"\")","v":""},{"$f":"IF(DataLog!$C3312=\"Log value\",DataLog!T3312,\"\")","v":""},{"$f":"IF(DataLog!$C3312=\"Log value\",DataLog!U3312,\"\")","v":""},{"$f":"IF(DataLog!$C3312=\"Log value\",DataLog!V3312,\"\")","v":""},{"$f":"IF(DataLog!$C3312=\"Log value\",DataLog!W3312,\"\")","v":""},{"$f":"IF(DataLog!$C3312=\"Log value\",DataLog!X3312,\"\")","v":""},{"$f":"IF(DataLog!$C3312=\"Log value\",DataLog!Y3312,\"\")","v":""},{"$f":"IF(DataLog!$C3312=\"Log value\",DataLog!Z3312,\"\")","v":""},{"$f":"IF(DataLog!$C3312=\"Log value\",DataLog!AA3312,\"\")","v":""},{"$f":"IF(DataLog!$C3312=\"Log value\",DataLog!AB3312,\"\")","v":""},{"$f":"IF(DataLog!$C3312=\"Log value\",DataLog!AC3312,\"\")","v":""},{"$f":"IF(DataLog!$C3312=\"Log value\",DataLog!AD3312,\"\")","v":""},{"$f":"IF(DataLog!$C3312=\"Log value\",DataLog!AE3312,\"\")","v":""},{"$f":"IF(DataLog!$C3312=\"Log value\",DataLog!AF3312,\"\")","v":""},{"$f":"IF(DataLog!$C3312=\"Log value\",DataLog!AG3312,\"\")","v":""},{"$f":"IF(DataLog!$C3312=\"Log value\",DataLog!AH3312,\"\")","v":""},{"$f":"IF(DataLog!$C3312=\"Log value\",DataLog!AI3312,\"\")","v":""},{"$f":"IF(DataLog!$C3312=\"Log value\",DataLog!AJ3312,\"\")","v":""},{"$f":"IF(DataLog!$C3312=\"Log value\",DataLog!AK3312,\"\")","v":""},{"$f":"IF(DataLog!$C3312=\"Log value\",DataLog!AL3312,\"\")","v":""},{"$f":"IF(DataLog!$C3312=\"Log value\",DataLog!AM3312,\"\")","v":""}]
[null,null,null,null,null,null,{"$f":"IF(DataLog!$C3313=\"Log value\",DataLog!D3313&\"_\"&TEXT(DataLog!B3313,\"åååå-mm-dd\"),\"\")","v":""},{"$f":"IF(DataLog!$C3313=\"Log value\",DataLog!E3313,\"\")","v":""},{"$f":"IF(DataLog!$C3313=\"Log value\",DataLog!F3313,\"\")","v":""},{"$f":"IF(DataLog!$C3313=\"Log value\",DataLog!G3313,\"\")","v":""},{"$f":"IF(DataLog!$C3313=\"Log value\",DataLog!H3313,\"\")","v":""},{"$f":"IF(DataLog!$C3313=\"Log value\",DataLog!I3313,\"\")","v":""},{"$f":"IF(DataLog!$C3313=\"Log value\",DataLog!J3313,\"\")","v":""},{"$f":"IF(DataLog!$C3313=\"Log value\",DataLog!K3313,\"\")","v":""},{"$f":"IF(DataLog!$C3313=\"Log value\",DataLog!L3313,\"\")","v":""},{"$f":"IF(DataLog!$C3313=\"Log value\",DataLog!M3313,\"\")","v":""},{"$f":"IF(DataLog!$C3313=\"Log value\",DataLog!N3313,\"\")","v":""},{"$f":"IF(DataLog!$C3313=\"Log value\",DataLog!O3313,\"\")","v":""},{"$f":"IF(DataLog!$C3313=\"Log value\",DataLog!P3313,\"\")","v":""},{"$f":"IF(DataLog!$C3313=\"Log value\",DataLog!Q3313,\"\")","v":""},{"$f":"IF(DataLog!$C3313=\"Log value\",DataLog!R3313,\"\")","v":""},{"$f":"IF(DataLog!$C3313=\"Log value\",DataLog!S3313,\"\")","v":""},{"$f":"IF(DataLog!$C3313=\"Log value\",DataLog!T3313,\"\")","v":""},{"$f":"IF(DataLog!$C3313=\"Log value\",DataLog!U3313,\"\")","v":""},{"$f":"IF(DataLog!$C3313=\"Log value\",DataLog!V3313,\"\")","v":""},{"$f":"IF(DataLog!$C3313=\"Log value\",DataLog!W3313,\"\")","v":""},{"$f":"IF(DataLog!$C3313=\"Log value\",DataLog!X3313,\"\")","v":""},{"$f":"IF(DataLog!$C3313=\"Log value\",DataLog!Y3313,\"\")","v":""},{"$f":"IF(DataLog!$C3313=\"Log value\",DataLog!Z3313,\"\")","v":""},{"$f":"IF(DataLog!$C3313=\"Log value\",DataLog!AA3313,\"\")","v":""},{"$f":"IF(DataLog!$C3313=\"Log value\",DataLog!AB3313,\"\")","v":""},{"$f":"IF(DataLog!$C3313=\"Log value\",DataLog!AC3313,\"\")","v":""},{"$f":"IF(DataLog!$C3313=\"Log value\",DataLog!AD3313,\"\")","v":""},{"$f":"IF(DataLog!$C3313=\"Log value\",DataLog!AE3313,\"\")","v":""},{"$f":"IF(DataLog!$C3313=\"Log value\",DataLog!AF3313,\"\")","v":""},{"$f":"IF(DataLog!$C3313=\"Log value\",DataLog!AG3313,\"\")","v":""},{"$f":"IF(DataLog!$C3313=\"Log value\",DataLog!AH3313,\"\")","v":""},{"$f":"IF(DataLog!$C3313=\"Log value\",DataLog!AI3313,\"\")","v":""},{"$f":"IF(DataLog!$C3313=\"Log value\",DataLog!AJ3313,\"\")","v":""},{"$f":"IF(DataLog!$C3313=\"Log value\",DataLog!AK3313,\"\")","v":""},{"$f":"IF(DataLog!$C3313=\"Log value\",DataLog!AL3313,\"\")","v":""},{"$f":"IF(DataLog!$C3313=\"Log value\",DataLog!AM3313,\"\")","v":""}]
[null,null,null,null,null,null,{"$f":"IF(DataLog!$C3314=\"Log value\",DataLog!D3314&\"_\"&TEXT(DataLog!B3314,\"åååå-mm-dd\"),\"\")","v":""},{"$f":"IF(DataLog!$C3314=\"Log value\",DataLog!E3314,\"\")","v":""},{"$f":"IF(DataLog!$C3314=\"Log value\",DataLog!F3314,\"\")","v":""},{"$f":"IF(DataLog!$C3314=\"Log value\",DataLog!G3314,\"\")","v":""},{"$f":"IF(DataLog!$C3314=\"Log value\",DataLog!H3314,\"\")","v":""},{"$f":"IF(DataLog!$C3314=\"Log value\",DataLog!I3314,\"\")","v":""},{"$f":"IF(DataLog!$C3314=\"Log value\",DataLog!J3314,\"\")","v":""},{"$f":"IF(DataLog!$C3314=\"Log value\",DataLog!K3314,\"\")","v":""},{"$f":"IF(DataLog!$C3314=\"Log value\",DataLog!L3314,\"\")","v":""},{"$f":"IF(DataLog!$C3314=\"Log value\",DataLog!M3314,\"\")","v":""},{"$f":"IF(DataLog!$C3314=\"Log value\",DataLog!N3314,\"\")","v":""},{"$f":"IF(DataLog!$C3314=\"Log value\",DataLog!O3314,\"\")","v":""},{"$f":"IF(DataLog!$C3314=\"Log value\",DataLog!P3314,\"\")","v":""},{"$f":"IF(DataLog!$C3314=\"Log value\",DataLog!Q3314,\"\")","v":""},{"$f":"IF(DataLog!$C3314=\"Log value\",DataLog!R3314,\"\")","v":""},{"$f":"IF(DataLog!$C3314=\"Log value\",DataLog!S3314,\"\")","v":""},{"$f":"IF(DataLog!$C3314=\"Log value\",DataLog!T3314,\"\")","v":""},{"$f":"IF(DataLog!$C3314=\"Log value\",DataLog!U3314,\"\")","v":""},{"$f":"IF(DataLog!$C3314=\"Log value\",DataLog!V3314,\"\")","v":""},{"$f":"IF(DataLog!$C3314=\"Log value\",DataLog!W3314,\"\")","v":""},{"$f":"IF(DataLog!$C3314=\"Log value\",DataLog!X3314,\"\")","v":""},{"$f":"IF(DataLog!$C3314=\"Log value\",DataLog!Y3314,\"\")","v":""},{"$f":"IF(DataLog!$C3314=\"Log value\",DataLog!Z3314,\"\")","v":""},{"$f":"IF(DataLog!$C3314=\"Log value\",DataLog!AA3314,\"\")","v":""},{"$f":"IF(DataLog!$C3314=\"Log value\",DataLog!AB3314,\"\")","v":""},{"$f":"IF(DataLog!$C3314=\"Log value\",DataLog!AC3314,\"\")","v":""},{"$f":"IF(DataLog!$C3314=\"Log value\",DataLog!AD3314,\"\")","v":""},{"$f":"IF(DataLog!$C3314=\"Log value\",DataLog!AE3314,\"\")","v":""},{"$f":"IF(DataLog!$C3314=\"Log value\",DataLog!AF3314,\"\")","v":""},{"$f":"IF(DataLog!$C3314=\"Log value\",DataLog!AG3314,\"\")","v":""},{"$f":"IF(DataLog!$C3314=\"Log value\",DataLog!AH3314,\"\")","v":""},{"$f":"IF(DataLog!$C3314=\"Log value\",DataLog!AI3314,\"\")","v":""},{"$f":"IF(DataLog!$C3314=\"Log value\",DataLog!AJ3314,\"\")","v":""},{"$f":"IF(DataLog!$C3314=\"Log value\",DataLog!AK3314,\"\")","v":""},{"$f":"IF(DataLog!$C3314=\"Log value\",DataLog!AL3314,\"\")","v":""},{"$f":"IF(DataLog!$C3314=\"Log value\",DataLog!AM3314,\"\")","v":""}]
[null,null,null,null,null,null,{"$f":"IF(DataLog!$C3315=\"Log value\",DataLog!D3315&\"_\"&TEXT(DataLog!B3315,\"åååå-mm-dd\"),\"\")","v":""},{"$f":"IF(DataLog!$C3315=\"Log value\",DataLog!E3315,\"\")","v":""},{"$f":"IF(DataLog!$C3315=\"Log value\",DataLog!F3315,\"\")","v":""},{"$f":"IF(DataLog!$C3315=\"Log value\",DataLog!G3315,\"\")","v":""},{"$f":"IF(DataLog!$C3315=\"Log value\",DataLog!H3315,\"\")","v":""},{"$f":"IF(DataLog!$C3315=\"Log value\",DataLog!I3315,\"\")","v":""},{"$f":"IF(DataLog!$C3315=\"Log value\",DataLog!J3315,\"\")","v":""},{"$f":"IF(DataLog!$C3315=\"Log value\",DataLog!K3315,\"\")","v":""},{"$f":"IF(DataLog!$C3315=\"Log value\",DataLog!L3315,\"\")","v":""},{"$f":"IF(DataLog!$C3315=\"Log value\",DataLog!M3315,\"\")","v":""},{"$f":"IF(DataLog!$C3315=\"Log value\",DataLog!N3315,\"\")","v":""},{"$f":"IF(DataLog!$C3315=\"Log value\",DataLog!O3315,\"\")","v":""},{"$f":"IF(DataLog!$C3315=\"Log value\",DataLog!P3315,\"\")","v":""},{"$f":"IF(DataLog!$C3315=\"Log value\",DataLog!Q3315,\"\")","v":""},{"$f":"IF(DataLog!$C3315=\"Log value\",DataLog!R3315,\"\")","v":""},{"$f":"IF(DataLog!$C3315=\"Log value\",DataLog!S3315,\"\")","v":""},{"$f":"IF(DataLog!$C3315=\"Log value\",DataLog!T3315,\"\")","v":""},{"$f":"IF(DataLog!$C3315=\"Log value\",DataLog!U3315,\"\")","v":""},{"$f":"IF(DataLog!$C3315=\"Log value\",DataLog!V3315,\"\")","v":""},{"$f":"IF(DataLog!$C3315=\"Log value\",DataLog!W3315,\"\")","v":""},{"$f":"IF(DataLog!$C3315=\"Log value\",DataLog!X3315,\"\")","v":""},{"$f":"IF(DataLog!$C3315=\"Log value\",DataLog!Y3315,\"\")","v":""},{"$f":"IF(DataLog!$C3315=\"Log value\",DataLog!Z3315,\"\")","v":""},{"$f":"IF(DataLog!$C3315=\"Log value\",DataLog!AA3315,\"\")","v":""},{"$f":"IF(DataLog!$C3315=\"Log value\",DataLog!AB3315,\"\")","v":""},{"$f":"IF(DataLog!$C3315=\"Log value\",DataLog!AC3315,\"\")","v":""},{"$f":"IF(DataLog!$C3315=\"Log value\",DataLog!AD3315,\"\")","v":""},{"$f":"IF(DataLog!$C3315=\"Log value\",DataLog!AE3315,\"\")","v":""},{"$f":"IF(DataLog!$C3315=\"Log value\",DataLog!AF3315,\"\")","v":""},{"$f":"IF(DataLog!$C3315=\"Log value\",DataLog!AG3315,\"\")","v":""},{"$f":"IF(DataLog!$C3315=\"Log value\",DataLog!AH3315,\"\")","v":""},{"$f":"IF(DataLog!$C3315=\"Log value\",DataLog!AI3315,\"\")","v":""},{"$f":"IF(DataLog!$C3315=\"Log value\",DataLog!AJ3315,\"\")","v":""},{"$f":"IF(DataLog!$C3315=\"Log value\",DataLog!AK3315,\"\")","v":""},{"$f":"IF(DataLog!$C3315=\"Log value\",DataLog!AL3315,\"\")","v":""},{"$f":"IF(DataLog!$C3315=\"Log value\",DataLog!AM3315,\"\")","v":""}]
[null,null,null,null,null,null,{"$f":"IF(DataLog!$C3316=\"Log value\",DataLog!D3316&\"_\"&TEXT(DataLog!B3316,\"åååå-mm-dd\"),\"\")","v":""},{"$f":"IF(DataLog!$C3316=\"Log value\",DataLog!E3316,\"\")","v":""},{"$f":"IF(DataLog!$C3316=\"Log value\",DataLog!F3316,\"\")","v":""},{"$f":"IF(DataLog!$C3316=\"Log value\",DataLog!G3316,\"\")","v":""},{"$f":"IF(DataLog!$C3316=\"Log value\",DataLog!H3316,\"\")","v":""},{"$f":"IF(DataLog!$C3316=\"Log value\",DataLog!I3316,\"\")","v":""},{"$f":"IF(DataLog!$C3316=\"Log value\",DataLog!J3316,\"\")","v":""},{"$f":"IF(DataLog!$C3316=\"Log value\",DataLog!K3316,\"\")","v":""},{"$f":"IF(DataLog!$C3316=\"Log value\",DataLog!L3316,\"\")","v":""},{"$f":"IF(DataLog!$C3316=\"Log value\",DataLog!M3316,\"\")","v":""},{"$f":"IF(DataLog!$C3316=\"Log value\",DataLog!N3316,\"\")","v":""},{"$f":"IF(DataLog!$C3316=\"Log value\",DataLog!O3316,\"\")","v":""},{"$f":"IF(DataLog!$C3316=\"Log value\",DataLog!P3316,\"\")","v":""},{"$f":"IF(DataLog!$C3316=\"Log value\",DataLog!Q3316,\"\")","v":""},{"$f":"IF(DataLog!$C3316=\"Log value\",DataLog!R3316,\"\")","v":""},{"$f":"IF(DataLog!$C3316=\"Log value\",DataLog!S3316,\"\")","v":""},{"$f":"IF(DataLog!$C3316=\"Log value\",DataLog!T3316,\"\")","v":""},{"$f":"IF(DataLog!$C3316=\"Log value\",DataLog!U3316,\"\")","v":""},{"$f":"IF(DataLog!$C3316=\"Log value\",DataLog!V3316,\"\")","v":""},{"$f":"IF(DataLog!$C3316=\"Log value\",DataLog!W3316,\"\")","v":""},{"$f":"IF(DataLog!$C3316=\"Log value\",DataLog!X3316,\"\")","v":""},{"$f":"IF(DataLog!$C3316=\"Log value\",DataLog!Y3316,\"\")","v":""},{"$f":"IF(DataLog!$C3316=\"Log value\",DataLog!Z3316,\"\")","v":""},{"$f":"IF(DataLog!$C3316=\"Log value\",DataLog!AA3316,\"\")","v":""},{"$f":"IF(DataLog!$C3316=\"Log value\",DataLog!AB3316,\"\")","v":""},{"$f":"IF(DataLog!$C3316=\"Log value\",DataLog!AC3316,\"\")","v":""},{"$f":"IF(DataLog!$C3316=\"Log value\",DataLog!AD3316,\"\")","v":""},{"$f":"IF(DataLog!$C3316=\"Log value\",DataLog!AE3316,\"\")","v":""},{"$f":"IF(DataLog!$C3316=\"Log value\",DataLog!AF3316,\"\")","v":""},{"$f":"IF(DataLog!$C3316=\"Log value\",DataLog!AG3316,\"\")","v":""},{"$f":"IF(DataLog!$C3316=\"Log value\",DataLog!AH3316,\"\")","v":""},{"$f":"IF(DataLog!$C3316=\"Log value\",DataLog!AI3316,\"\")","v":""},{"$f":"IF(DataLog!$C3316=\"Log value\",DataLog!AJ3316,\"\")","v":""},{"$f":"IF(DataLog!$C3316=\"Log value\",DataLog!AK3316,\"\")","v":""},{"$f":"IF(DataLog!$C3316=\"Log value\",DataLog!AL3316,\"\")","v":""},{"$f":"IF(DataLog!$C3316=\"Log value\",DataLog!AM3316,\"\")","v":""}]
[null,null,null,null,null,null,{"$f":"IF(DataLog!$C3317=\"Log value\",DataLog!D3317&\"_\"&TEXT(DataLog!B3317,\"åååå-mm-dd\"),\"\")","v":""},{"$f":"IF(DataLog!$C3317=\"Log value\",DataLog!E3317,\"\")","v":""},{"$f":"IF(DataLog!$C3317=\"Log value\",DataLog!F3317,\"\")","v":""},{"$f":"IF(DataLog!$C3317=\"Log value\",DataLog!G3317,\"\")","v":""},{"$f":"IF(DataLog!$C3317=\"Log value\",DataLog!H3317,\"\")","v":""},{"$f":"IF(DataLog!$C3317=\"Log value\",DataLog!I3317,\"\")","v":""},{"$f":"IF(DataLog!$C3317=\"Log value\",DataLog!J3317,\"\")","v":""},{"$f":"IF(DataLog!$C3317=\"Log value\",DataLog!K3317,\"\")","v":""},{"$f":"IF(DataLog!$C3317=\"Log value\",DataLog!L3317,\"\")","v":""},{"$f":"IF(DataLog!$C3317=\"Log value\",DataLog!M3317,\"\")","v":""},{"$f":"IF(DataLog!$C3317=\"Log value\",DataLog!N3317,\"\")","v":""},{"$f":"IF(DataLog!$C3317=\"Log value\",DataLog!O3317,\"\")","v":""},{"$f":"IF(DataLog!$C3317=\"Log value\",DataLog!P3317,\"\")","v":""},{"$f":"IF(DataLog!$C3317=\"Log value\",DataLog!Q3317,\"\")","v":""},{"$f":"IF(DataLog!$C3317=\"Log value\",DataLog!R3317,\"\")","v":""},{"$f":"IF(DataLog!$C3317=\"Log value\",DataLog!S3317,\"\")","v":""},{"$f":"IF(DataLog!$C3317=\"Log value\",DataLog!T3317,\"\")","v":""},{"$f":"IF(DataLog!$C3317=\"Log value\",DataLog!U3317,\"\")","v":""},{"$f":"IF(DataLog!$C3317=\"Log value\",DataLog!V3317,\"\")","v":""},{"$f":"IF(DataLog!$C3317=\"Log value\",DataLog!W3317,\"\")","v":""},{"$f":"IF(DataLog!$C3317=\"Log value\",DataLog!X3317,\"\")","v":""},{"$f":"IF(DataLog!$C3317=\"Log value\",DataLog!Y3317,\"\")","v":""},{"$f":"IF(DataLog!$C3317=\"Log value\",DataLog!Z3317,\"\")","v":""},{"$f":"IF(DataLog!$C3317=\"Log value\",DataLog!AA3317,\"\")","v":""},{"$f":"IF(DataLog!$C3317=\"Log value\",DataLog!AB3317,\"\")","v":""},{"$f":"IF(DataLog!$C3317=\"Log value\",DataLog!AC3317,\"\")","v":""},{"$f":"IF(DataLog!$C3317=\"Log value\",DataLog!AD3317,\"\")","v":""},{"$f":"IF(DataLog!$C3317=\"Log value\",DataLog!AE3317,\"\")","v":""},{"$f":"IF(DataLog!$C3317=\"Log value\",DataLog!AF3317,\"\")","v":""},{"$f":"IF(DataLog!$C3317=\"Log value\",DataLog!AG3317,\"\")","v":""},{"$f":"IF(DataLog!$C3317=\"Log value\",DataLog!AH3317,\"\")","v":""},{"$f":"IF(DataLog!$C3317=\"Log value\",DataLog!AI3317,\"\")","v":""},{"$f":"IF(DataLog!$C3317=\"Log value\",DataLog!AJ3317,\"\")","v":""},{"$f":"IF(DataLog!$C3317=\"Log value\",DataLog!AK3317,\"\")","v":""},{"$f":"IF(DataLog!$C3317=\"Log value\",DataLog!AL3317,\"\")","v":""},{"$f":"IF(DataLog!$C3317=\"Log value\",DataLog!AM3317,\"\")","v":""}]
[null,null,null,null,null,null,{"$f":"IF(DataLog!$C3318=\"Log value\",DataLog!D3318&\"_\"&TEXT(DataLog!B3318,\"åååå-mm-dd\"),\"\")","v":""},{"$f":"IF(DataLog!$C3318=\"Log value\",DataLog!E3318,\"\")","v":""},{"$f":"IF(DataLog!$C3318=\"Log value\",DataLog!F3318,\"\")","v":""},{"$f":"IF(DataLog!$C3318=\"Log value\",DataLog!G3318,\"\")","v":""},{"$f":"IF(DataLog!$C3318=\"Log value\",DataLog!H3318,\"\")","v":""},{"$f":"IF(DataLog!$C3318=\"Log value\",DataLog!I3318,\"\")","v":""},{"$f":"IF(DataLog!$C3318=\"Log value\",DataLog!J3318,\"\")","v":""},{"$f":"IF(DataLog!$C3318=\"Log value\",DataLog!K3318,\"\")","v":""},{"$f":"IF(DataLog!$C3318=\"Log value\",DataLog!L3318,\"\")","v":""},{"$f":"IF(DataLog!$C3318=\"Log value\",DataLog!M3318,\"\")","v":""},{"$f":"IF(DataLog!$C3318=\"Log value\",DataLog!N3318,\"\")","v":""},{"$f":"IF(DataLog!$C3318=\"Log value\",DataLog!O3318,\"\")","v":""},{"$f":"IF(DataLog!$C3318=\"Log value\",DataLog!P3318,\"\")","v":""},{"$f":"IF(DataLog!$C3318=\"Log value\",DataLog!Q3318,\"\")","v":""},{"$f":"IF(DataLog!$C3318=\"Log value\",DataLog!R3318,\"\")","v":""},{"$f":"IF(DataLog!$C3318=\"Log value\",DataLog!S3318,\"\")","v":""},{"$f":"IF(DataLog!$C3318=\"Log value\",DataLog!T3318,\"\")","v":""},{"$f":"IF(DataLog!$C3318=\"Log value\",DataLog!U3318,\"\")","v":""},{"$f":"IF(DataLog!$C3318=\"Log value\",DataLog!V3318,\"\")","v":""},{"$f":"IF(DataLog!$C3318=\"Log value\",DataLog!W3318,\"\")","v":""},{"$f":"IF(DataLog!$C3318=\"Log value\",DataLog!X3318,\"\")","v":""},{"$f":"IF(DataLog!$C3318=\"Log value\",DataLog!Y3318,\"\")","v":""},{"$f":"IF(DataLog!$C3318=\"Log value\",DataLog!Z3318,\"\")","v":""},{"$f":"IF(DataLog!$C3318=\"Log value\",DataLog!AA3318,\"\")","v":""},{"$f":"IF(DataLog!$C3318=\"Log value\",DataLog!AB3318,\"\")","v":""},{"$f":"IF(DataLog!$C3318=\"Log value\",DataLog!AC3318,\"\")","v":""},{"$f":"IF(DataLog!$C3318=\"Log value\",DataLog!AD3318,\"\")","v":""},{"$f":"IF(DataLog!$C3318=\"Log value\",DataLog!AE3318,\"\")","v":""},{"$f":"IF(DataLog!$C3318=\"Log value\",DataLog!AF3318,\"\")","v":""},{"$f":"IF(DataLog!$C3318=\"Log value\",DataLog!AG3318,\"\")","v":""},{"$f":"IF(DataLog!$C3318=\"Log value\",DataLog!AH3318,\"\")","v":""},{"$f":"IF(DataLog!$C3318=\"Log value\",DataLog!AI3318,\"\")","v":""},{"$f":"IF(DataLog!$C3318=\"Log value\",DataLog!AJ3318,\"\")","v":""},{"$f":"IF(DataLog!$C3318=\"Log value\",DataLog!AK3318,\"\")","v":""},{"$f":"IF(DataLog!$C3318=\"Log value\",DataLog!AL3318,\"\")","v":""},{"$f":"IF(DataLog!$C3318=\"Log value\",DataLog!AM3318,\"\")","v":""}]
[null,null,null,null,null,null,{"$f":"IF(DataLog!$C3319=\"Log value\",DataLog!D3319&\"_\"&TEXT(DataLog!B3319,\"åååå-mm-dd\"),\"\")","v":""},{"$f":"IF(DataLog!$C3319=\"Log value\",DataLog!E3319,\"\")","v":""},{"$f":"IF(DataLog!$C3319=\"Log value\",DataLog!F3319,\"\")","v":""},{"$f":"IF(DataLog!$C3319=\"Log value\",DataLog!G3319,\"\")","v":""},{"$f":"IF(DataLog!$C3319=\"Log value\",DataLog!H3319,\"\")","v":""},{"$f":"IF(DataLog!$C3319=\"Log value\",DataLog!I3319,\"\")","v":""},{"$f":"IF(DataLog!$C3319=\"Log value\",DataLog!J3319,\"\")","v":""},{"$f":"IF(DataLog!$C3319=\"Log value\",DataLog!K3319,\"\")","v":""},{"$f":"IF(DataLog!$C3319=\"Log value\",DataLog!L3319,\"\")","v":""},{"$f":"IF(DataLog!$C3319=\"Log value\",DataLog!M3319,\"\")","v":""},{"$f":"IF(DataLog!$C3319=\"Log value\",DataLog!N3319,\"\")","v":""},{"$f":"IF(DataLog!$C3319=\"Log value\",DataLog!O3319,\"\")","v":""},{"$f":"IF(DataLog!$C3319=\"Log value\",DataLog!P3319,\"\")","v":""},{"$f":"IF(DataLog!$C3319=\"Log value\",DataLog!Q3319,\"\")","v":""},{"$f":"IF(DataLog!$C3319=\"Log value\",DataLog!R3319,\"\")","v":""},{"$f":"IF(DataLog!$C3319=\"Log value\",DataLog!S3319,\"\")","v":""},{"$f":"IF(DataLog!$C3319=\"Log value\",DataLog!T3319,\"\")","v":""},{"$f":"IF(DataLog!$C3319=\"Log value\",DataLog!U3319,\"\")","v":""},{"$f":"IF(DataLog!$C3319=\"Log value\",DataLog!V3319,\"\")","v":""},{"$f":"IF(DataLog!$C3319=\"Log value\",DataLog!W3319,\"\")","v":""},{"$f":"IF(DataLog!$C3319=\"Log value\",DataLog!X3319,\"\")","v":""},{"$f":"IF(DataLog!$C3319=\"Log value\",DataLog!Y3319,\"\")","v":""},{"$f":"IF(DataLog!$C3319=\"Log value\",DataLog!Z3319,\"\")","v":""},{"$f":"IF(DataLog!$C3319=\"Log value\",DataLog!AA3319,\"\")","v":""},{"$f":"IF(DataLog!$C3319=\"Log value\",DataLog!AB3319,\"\")","v":""},{"$f":"IF(DataLog!$C3319=\"Log value\",DataLog!AC3319,\"\")","v":""},{"$f":"IF(DataLog!$C3319=\"Log value\",DataLog!AD3319,\"\")","v":""},{"$f":"IF(DataLog!$C3319=\"Log value\",DataLog!AE3319,\"\")","v":""},{"$f":"IF(DataLog!$C3319=\"Log value\",DataLog!AF3319,\"\")","v":""},{"$f":"IF(DataLog!$C3319=\"Log value\",DataLog!AG3319,\"\")","v":""},{"$f":"IF(DataLog!$C3319=\"Log value\",DataLog!AH3319,\"\")","v":""},{"$f":"IF(DataLog!$C3319=\"Log value\",DataLog!AI3319,\"\")","v":""},{"$f":"IF(DataLog!$C3319=\"Log value\",DataLog!AJ3319,\"\")","v":""},{"$f":"IF(DataLog!$C3319=\"Log value\",DataLog!AK3319,\"\")","v":""},{"$f":"IF(DataLog!$C3319=\"Log value\",DataLog!AL3319,\"\")","v":""},{"$f":"IF(DataLog!$C3319=\"Log value\",DataLog!AM3319,\"\")","v":""}]
[null,null,null,null,null,null,{"$f":"IF(DataLog!$C3320=\"Log value\",DataLog!D3320&\"_\"&TEXT(DataLog!B3320,\"åååå-mm-dd\"),\"\")","v":""},{"$f":"IF(DataLog!$C3320=\"Log value\",DataLog!E3320,\"\")","v":""},{"$f":"IF(DataLog!$C3320=\"Log value\",DataLog!F3320,\"\")","v":""},{"$f":"IF(DataLog!$C3320=\"Log value\",DataLog!G3320,\"\")","v":""},{"$f":"IF(DataLog!$C3320=\"Log value\",DataLog!H3320,\"\")","v":""},{"$f":"IF(DataLog!$C3320=\"Log value\",DataLog!I3320,\"\")","v":""},{"$f":"IF(DataLog!$C3320=\"Log value\",DataLog!J3320,\"\")","v":""},{"$f":"IF(DataLog!$C3320=\"Log value\",DataLog!K3320,\"\")","v":""},{"$f":"IF(DataLog!$C3320=\"Log value\",DataLog!L3320,\"\")","v":""},{"$f":"IF(DataLog!$C3320=\"Log value\",DataLog!M3320,\"\")","v":""},{"$f":"IF(DataLog!$C3320=\"Log value\",DataLog!N3320,\"\")","v":""},{"$f":"IF(DataLog!$C3320=\"Log value\",DataLog!O3320,\"\")","v":""},{"$f":"IF(DataLog!$C3320=\"Log value\",DataLog!P3320,\"\")","v":""},{"$f":"IF(DataLog!$C3320=\"Log value\",DataLog!Q3320,\"\")","v":""},{"$f":"IF(DataLog!$C3320=\"Log value\",DataLog!R3320,\"\")","v":""},{"$f":"IF(DataLog!$C3320=\"Log value\",DataLog!S3320,\"\")","v":""},{"$f":"IF(DataLog!$C3320=\"Log value\",DataLog!T3320,\"\")","v":""},{"$f":"IF(DataLog!$C3320=\"Log value\",DataLog!U3320,\"\")","v":""},{"$f":"IF(DataLog!$C3320=\"Log value\",DataLog!V3320,\"\")","v":""},{"$f":"IF(DataLog!$C3320=\"Log value\",DataLog!W3320,\"\")","v":""},{"$f":"IF(DataLog!$C3320=\"Log value\",DataLog!X3320,\"\")","v":""},{"$f":"IF(DataLog!$C3320=\"Log value\",DataLog!Y3320,\"\")","v":""},{"$f":"IF(DataLog!$C3320=\"Log value\",DataLog!Z3320,\"\")","v":""},{"$f":"IF(DataLog!$C3320=\"Log value\",DataLog!AA3320,\"\")","v":""},{"$f":"IF(DataLog!$C3320=\"Log value\",DataLog!AB3320,\"\")","v":""},{"$f":"IF(DataLog!$C3320=\"Log value\",DataLog!AC3320,\"\")","v":""},{"$f":"IF(DataLog!$C3320=\"Log value\",DataLog!AD3320,\"\")","v":""},{"$f":"IF(DataLog!$C3320=\"Log value\",DataLog!AE3320,\"\")","v":""},{"$f":"IF(DataLog!$C3320=\"Log value\",DataLog!AF3320,\"\")","v":""},{"$f":"IF(DataLog!$C3320=\"Log value\",DataLog!AG3320,\"\")","v":""},{"$f":"IF(DataLog!$C3320=\"Log value\",DataLog!AH3320,\"\")","v":""},{"$f":"IF(DataLog!$C3320=\"Log value\",DataLog!AI3320,\"\")","v":""},{"$f":"IF(DataLog!$C3320=\"Log value\",DataLog!AJ3320,\"\")","v":""},{"$f":"IF(DataLog!$C3320=\"Log value\",DataLog!AK3320,\"\")","v":""},{"$f":"IF(DataLog!$C3320=\"Log value\",DataLog!AL3320,\"\")","v":""},{"$f":"IF(DataLog!$C3320=\"Log value\",DataLog!AM3320,\"\")","v":""}]
[null,null,null,null,null,null,{"$f":"IF(DataLog!$C3321=\"Log value\",DataLog!D3321&\"_\"&TEXT(DataLog!B3321,\"åååå-mm-dd\"),\"\")","v":""},{"$f":"IF(DataLog!$C3321=\"Log value\",DataLog!E3321,\"\")","v":""},{"$f":"IF(DataLog!$C3321=\"Log value\",DataLog!F3321,\"\")","v":""},{"$f":"IF(DataLog!$C3321=\"Log value\",DataLog!G3321,\"\")","v":""},{"$f":"IF(DataLog!$C3321=\"Log value\",DataLog!H3321,\"\")","v":""},{"$f":"IF(DataLog!$C3321=\"Log value\",DataLog!I3321,\"\")","v":""},{"$f":"IF(DataLog!$C3321=\"Log value\",DataLog!J3321,\"\")","v":""},{"$f":"IF(DataLog!$C3321=\"Log value\",DataLog!K3321,\"\")","v":""},{"$f":"IF(DataLog!$C3321=\"Log value\",DataLog!L3321,\"\")","v":""},{"$f":"IF(DataLog!$C3321=\"Log value\",DataLog!M3321,\"\")","v":""},{"$f":"IF(DataLog!$C3321=\"Log value\",DataLog!N3321,\"\")","v":""},{"$f":"IF(DataLog!$C3321=\"Log value\",DataLog!O3321,\"\")","v":""},{"$f":"IF(DataLog!$C3321=\"Log value\",DataLog!P3321,\"\")","v":""},{"$f":"IF(DataLog!$C3321=\"Log value\",DataLog!Q3321,\"\")","v":""},{"$f":"IF(DataLog!$C3321=\"Log value\",DataLog!R3321,\"\")","v":""},{"$f":"IF(DataLog!$C3321=\"Log value\",DataLog!S3321,\"\")","v":""},{"$f":"IF(DataLog!$C3321=\"Log value\",DataLog!T3321,\"\")","v":""},{"$f":"IF(DataLog!$C3321=\"Log value\",DataLog!U3321,\"\")","v":""},{"$f":"IF(DataLog!$C3321=\"Log value\",DataLog!V3321,\"\")","v":""},{"$f":"IF(DataLog!$C3321=\"Log value\",DataLog!W3321,\"\")","v":""},{"$f":"IF(DataLog!$C3321=\"Log value\",DataLog!X3321,\"\")","v":""},{"$f":"IF(DataLog!$C3321=\"Log value\",DataLog!Y3321,\"\")","v":""},{"$f":"IF(DataLog!$C3321=\"Log value\",DataLog!Z3321,\"\")","v":""},{"$f":"IF(DataLog!$C3321=\"Log value\",DataLog!AA3321,\"\")","v":""},{"$f":"IF(DataLog!$C3321=\"Log value\",DataLog!AB3321,\"\")","v":""},{"$f":"IF(DataLog!$C3321=\"Log value\",DataLog!AC3321,\"\")","v":""},{"$f":"IF(DataLog!$C3321=\"Log value\",DataLog!AD3321,\"\")","v":""},{"$f":"IF(DataLog!$C3321=\"Log value\",DataLog!AE3321,\"\")","v":""},{"$f":"IF(DataLog!$C3321=\"Log value\",DataLog!AF3321,\"\")","v":""},{"$f":"IF(DataLog!$C3321=\"Log value\",DataLog!AG3321,\"\")","v":""},{"$f":"IF(DataLog!$C3321=\"Log value\",DataLog!AH3321,\"\")","v":""},{"$f":"IF(DataLog!$C3321=\"Log value\",DataLog!AI3321,\"\")","v":""},{"$f":"IF(DataLog!$C3321=\"Log value\",DataLog!AJ3321,\"\")","v":""},{"$f":"IF(DataLog!$C3321=\"Log value\",DataLog!AK3321,\"\")","v":""},{"$f":"IF(DataLog!$C3321=\"Log value\",DataLog!AL3321,\"\")","v":""},{"$f":"IF(DataLog!$C3321=\"Log value\",DataLog!AM3321,\"\")","v":""}]
[null,null,null,null,null,null,{"$f":"IF(DataLog!$C3322=\"Log value\",DataLog!D3322&\"_\"&TEXT(DataLog!B3322,\"åååå-mm-dd\"),\"\")","v":""},{"$f":"IF(DataLog!$C3322=\"Log value\",DataLog!E3322,\"\")","v":""},{"$f":"IF(DataLog!$C3322=\"Log value\",DataLog!F3322,\"\")","v":""},{"$f":"IF(DataLog!$C3322=\"Log value\",DataLog!G3322,\"\")","v":""},{"$f":"IF(DataLog!$C3322=\"Log value\",DataLog!H3322,\"\")","v":""},{"$f":"IF(DataLog!$C3322=\"Log value\",DataLog!I3322,\"\")","v":""},{"$f":"IF(DataLog!$C3322=\"Log value\",DataLog!J3322,\"\")","v":""},{"$f":"IF(DataLog!$C3322=\"Log value\",DataLog!K3322,\"\")","v":""},{"$f":"IF(DataLog!$C3322=\"Log value\",DataLog!L3322,\"\")","v":""},{"$f":"IF(DataLog!$C3322=\"Log value\",DataLog!M3322,\"\")","v":""},{"$f":"IF(DataLog!$C3322=\"Log value\",DataLog!N3322,\"\")","v":""},{"$f":"IF(DataLog!$C3322=\"Log value\",DataLog!O3322,\"\")","v":""},{"$f":"IF(DataLog!$C3322=\"Log value\",DataLog!P3322,\"\")","v":""},{"$f":"IF(DataLog!$C3322=\"Log value\",DataLog!Q3322,\"\")","v":""},{"$f":"IF(DataLog!$C3322=\"Log value\",DataLog!R3322,\"\")","v":""},{"$f":"IF(DataLog!$C3322=\"Log value\",DataLog!S3322,\"\")","v":""},{"$f":"IF(DataLog!$C3322=\"Log value\",DataLog!T3322,\"\")","v":""},{"$f":"IF(DataLog!$C3322=\"Log value\",DataLog!U3322,\"\")","v":""},{"$f":"IF(DataLog!$C3322=\"Log value\",DataLog!V3322,\"\")","v":""},{"$f":"IF(DataLog!$C3322=\"Log value\",DataLog!W3322,\"\")","v":""},{"$f":"IF(DataLog!$C3322=\"Log value\",DataLog!X3322,\"\")","v":""},{"$f":"IF(DataLog!$C3322=\"Log value\",DataLog!Y3322,\"\")","v":""},{"$f":"IF(DataLog!$C3322=\"Log value\",DataLog!Z3322,\"\")","v":""},{"$f":"IF(DataLog!$C3322=\"Log value\",DataLog!AA3322,\"\")","v":""},{"$f":"IF(DataLog!$C3322=\"Log value\",DataLog!AB3322,\"\")","v":""},{"$f":"IF(DataLog!$C3322=\"Log value\",DataLog!AC3322,\"\")","v":""},{"$f":"IF(DataLog!$C3322=\"Log value\",DataLog!AD3322,\"\")","v":""},{"$f":"IF(DataLog!$C3322=\"Log value\",DataLog!AE3322,\"\")","v":""},{"$f":"IF(DataLog!$C3322=\"Log value\",DataLog!AF3322,\"\")","v":""},{"$f":"IF(DataLog!$C3322=\"Log value\",DataLog!AG3322,\"\")","v":""},{"$f":"IF(DataLog!$C3322=\"Log value\",DataLog!AH3322,\"\")","v":""},{"$f":"IF(DataLog!$C3322=\"Log value\",DataLog!AI3322,\"\")","v":""},{"$f":"IF(DataLog!$C3322=\"Log value\",DataLog!AJ3322,\"\")","v":""},{"$f":"IF(DataLog!$C3322=\"Log value\",DataLog!AK3322,\"\")","v":""},{"$f":"IF(DataLog!$C3322=\"Log value\",DataLog!AL3322,\"\")","v":""},{"$f":"IF(DataLog!$C3322=\"Log value\",DataLog!AM3322,\"\")","v":""}]
[null,null,null,null,null,null,{"$f":"IF(DataLog!$C3323=\"Log value\",DataLog!D3323&\"_\"&TEXT(DataLog!B3323,\"åååå-mm-dd\"),\"\")","v":""},{"$f":"IF(DataLog!$C3323=\"Log value\",DataLog!E3323,\"\")","v":""},{"$f":"IF(DataLog!$C3323=\"Log value\",DataLog!F3323,\"\")","v":""},{"$f":"IF(DataLog!$C3323=\"Log value\",DataLog!G3323,\"\")","v":""},{"$f":"IF(DataLog!$C3323=\"Log value\",DataLog!H3323,\"\")","v":""},{"$f":"IF(DataLog!$C3323=\"Log value\",DataLog!I3323,\"\")","v":""},{"$f":"IF(DataLog!$C3323=\"Log value\",DataLog!J3323,\"\")","v":""},{"$f":"IF(DataLog!$C3323=\"Log value\",DataLog!K3323,\"\")","v":""},{"$f":"IF(DataLog!$C3323=\"Log value\",DataLog!L3323,\"\")","v":""},{"$f":"IF(DataLog!$C3323=\"Log value\",DataLog!M3323,\"\")","v":""},{"$f":"IF(DataLog!$C3323=\"Log value\",DataLog!N3323,\"\")","v":""},{"$f":"IF(DataLog!$C3323=\"Log value\",DataLog!O3323,\"\")","v":""},{"$f":"IF(DataLog!$C3323=\"Log value\",DataLog!P3323,\"\")","v":""},{"$f":"IF(DataLog!$C3323=\"Log value\",DataLog!Q3323,\"\")","v":""},{"$f":"IF(DataLog!$C3323=\"Log value\",DataLog!R3323,\"\")","v":""},{"$f":"IF(DataLog!$C3323=\"Log value\",DataLog!S3323,\"\")","v":""},{"$f":"IF(DataLog!$C3323=\"Log value\",DataLog!T3323,\"\")","v":""},{"$f":"IF(DataLog!$C3323=\"Log value\",DataLog!U3323,\"\")","v":""},{"$f":"IF(DataLog!$C3323=\"Log value\",DataLog!V3323,\"\")","v":""},{"$f":"IF(DataLog!$C3323=\"Log value\",DataLog!W3323,\"\")","v":""},{"$f":"IF(DataLog!$C3323=\"Log value\",DataLog!X3323,\"\")","v":""},{"$f":"IF(DataLog!$C3323=\"Log value\",DataLog!Y3323,\"\")","v":""},{"$f":"IF(DataLog!$C3323=\"Log value\",DataLog!Z3323,\"\")","v":""},{"$f":"IF(DataLog!$C3323=\"Log value\",DataLog!AA3323,\"\")","v":""},{"$f":"IF(DataLog!$C3323=\"Log value\",DataLog!AB3323,\"\")","v":""},{"$f":"IF(DataLog!$C3323=\"Log value\",DataLog!AC3323,\"\")","v":""},{"$f":"IF(DataLog!$C3323=\"Log value\",DataLog!AD3323,\"\")","v":""},{"$f":"IF(DataLog!$C3323=\"Log value\",DataLog!AE3323,\"\")","v":""},{"$f":"IF(DataLog!$C3323=\"Log value\",DataLog!AF3323,\"\")","v":""},{"$f":"IF(DataLog!$C3323=\"Log value\",DataLog!AG3323,\"\")","v":""},{"$f":"IF(DataLog!$C3323=\"Log value\",DataLog!AH3323,\"\")","v":""},{"$f":"IF(DataLog!$C3323=\"Log value\",DataLog!AI3323,\"\")","v":""},{"$f":"IF(DataLog!$C3323=\"Log value\",DataLog!AJ3323,\"\")","v":""},{"$f":"IF(DataLog!$C3323=\"Log value\",DataLog!AK3323,\"\")","v":""},{"$f":"IF(DataLog!$C3323=\"Log value\",DataLog!AL3323,\"\")","v":""},{"$f":"IF(DataLog!$C3323=\"Log value\",DataLog!AM3323,\"\")","v":""}]
[null,null,null,null,null,null,{"$f":"IF(DataLog!$C3324=\"Log value\",DataLog!D3324&\"_\"&TEXT(DataLog!B3324,\"åååå-mm-dd\"),\"\")","v":""},{"$f":"IF(DataLog!$C3324=\"Log value\",DataLog!E3324,\"\")","v":""},{"$f":"IF(DataLog!$C3324=\"Log value\",DataLog!F3324,\"\")","v":""},{"$f":"IF(DataLog!$C3324=\"Log value\",DataLog!G3324,\"\")","v":""},{"$f":"IF(DataLog!$C3324=\"Log value\",DataLog!H3324,\"\")","v":""},{"$f":"IF(DataLog!$C3324=\"Log value\",DataLog!I3324,\"\")","v":""},{"$f":"IF(DataLog!$C3324=\"Log value\",DataLog!J3324,\"\")","v":""},{"$f":"IF(DataLog!$C3324=\"Log value\",DataLog!K3324,\"\")","v":""},{"$f":"IF(DataLog!$C3324=\"Log value\",DataLog!L3324,\"\")","v":""},{"$f":"IF(DataLog!$C3324=\"Log value\",DataLog!M3324,\"\")","v":""},{"$f":"IF(DataLog!$C3324=\"Log value\",DataLog!N3324,\"\")","v":""},{"$f":"IF(DataLog!$C3324=\"Log value\",DataLog!O3324,\"\")","v":""},{"$f":"IF(DataLog!$C3324=\"Log value\",DataLog!P3324,\"\")","v":""},{"$f":"IF(DataLog!$C3324=\"Log value\",DataLog!Q3324,\"\")","v":""},{"$f":"IF(DataLog!$C3324=\"Log value\",DataLog!R3324,\"\")","v":""},{"$f":"IF(DataLog!$C3324=\"Log value\",DataLog!S3324,\"\")","v":""},{"$f":"IF(DataLog!$C3324=\"Log value\",DataLog!T3324,\"\")","v":""},{"$f":"IF(DataLog!$C3324=\"Log value\",DataLog!U3324,\"\")","v":""},{"$f":"IF(DataLog!$C3324=\"Log value\",DataLog!V3324,\"\")","v":""},{"$f":"IF(DataLog!$C3324=\"Log value\",DataLog!W3324,\"\")","v":""},{"$f":"IF(DataLog!$C3324=\"Log value\",DataLog!X3324,\"\")","v":""},{"$f":"IF(DataLog!$C3324=\"Log value\",DataLog!Y3324,\"\")","v":""},{"$f":"IF(DataLog!$C3324=\"Log value\",DataLog!Z3324,\"\")","v":""},{"$f":"IF(DataLog!$C3324=\"Log value\",DataLog!AA3324,\"\")","v":""},{"$f":"IF(DataLog!$C3324=\"Log value\",DataLog!AB3324,\"\")","v":""},{"$f":"IF(DataLog!$C3324=\"Log value\",DataLog!AC3324,\"\")","v":""},{"$f":"IF(DataLog!$C3324=\"Log value\",DataLog!AD3324,\"\")","v":""},{"$f":"IF(DataLog!$C3324=\"Log value\",DataLog!AE3324,\"\")","v":""},{"$f":"IF(DataLog!$C3324=\"Log value\",DataLog!AF3324,\"\")","v":""},{"$f":"IF(DataLog!$C3324=\"Log value\",DataLog!AG3324,\"\")","v":""},{"$f":"IF(DataLog!$C3324=\"Log value\",DataLog!AH3324,\"\")","v":""},{"$f":"IF(DataLog!$C3324=\"Log value\",DataLog!AI3324,\"\")","v":""},{"$f":"IF(DataLog!$C3324=\"Log value\",DataLog!AJ3324,\"\")","v":""},{"$f":"IF(DataLog!$C3324=\"Log value\",DataLog!AK3324,\"\")","v":""},{"$f":"IF(DataLog!$C3324=\"Log value\",DataLog!AL3324,\"\")","v":""},{"$f":"IF(DataLog!$C3324=\"Log value\",DataLog!AM3324,\"\")","v":""}]
[null,null,null,null,null,null,{"$f":"IF(DataLog!$C3325=\"Log value\",DataLog!D3325&\"_\"&TEXT(DataLog!B3325,\"åååå-mm-dd\"),\"\")","v":""},{"$f":"IF(DataLog!$C3325=\"Log value\",DataLog!E3325,\"\")","v":""},{"$f":"IF(DataLog!$C3325=\"Log value\",DataLog!F3325,\"\")","v":""},{"$f":"IF(DataLog!$C3325=\"Log value\",DataLog!G3325,\"\")","v":""},{"$f":"IF(DataLog!$C3325=\"Log value\",DataLog!H3325,\"\")","v":""},{"$f":"IF(DataLog!$C3325=\"Log value\",DataLog!I3325,\"\")","v":""},{"$f":"IF(DataLog!$C3325=\"Log value\",DataLog!J3325,\"\")","v":""},{"$f":"IF(DataLog!$C3325=\"Log value\",DataLog!K3325,\"\")","v":""},{"$f":"IF(DataLog!$C3325=\"Log value\",DataLog!L3325,\"\")","v":""},{"$f":"IF(DataLog!$C3325=\"Log value\",DataLog!M3325,\"\")","v":""},{"$f":"IF(DataLog!$C3325=\"Log value\",DataLog!N3325,\"\")","v":""},{"$f":"IF(DataLog!$C3325=\"Log value\",DataLog!O3325,\"\")","v":""},{"$f":"IF(DataLog!$C3325=\"Log value\",DataLog!P3325,\"\")","v":""},{"$f":"IF(DataLog!$C3325=\"Log value\",DataLog!Q3325,\"\")","v":""},{"$f":"IF(DataLog!$C3325=\"Log value\",DataLog!R3325,\"\")","v":""},{"$f":"IF(DataLog!$C3325=\"Log value\",DataLog!S3325,\"\")","v":""},{"$f":"IF(DataLog!$C3325=\"Log value\",DataLog!T3325,\"\")","v":""},{"$f":"IF(DataLog!$C3325=\"Log value\",DataLog!U3325,\"\")","v":""},{"$f":"IF(DataLog!$C3325=\"Log value\",DataLog!V3325,\"\")","v":""},{"$f":"IF(DataLog!$C3325=\"Log value\",DataLog!W3325,\"\")","v":""},{"$f":"IF(DataLog!$C3325=\"Log value\",DataLog!X3325,\"\")","v":""},{"$f":"IF(DataLog!$C3325=\"Log value\",DataLog!Y3325,\"\")","v":""},{"$f":"IF(DataLog!$C3325=\"Log value\",DataLog!Z3325,\"\")","v":""},{"$f":"IF(DataLog!$C3325=\"Log value\",DataLog!AA3325,\"\")","v":""},{"$f":"IF(DataLog!$C3325=\"Log value\",DataLog!AB3325,\"\")","v":""},{"$f":"IF(DataLog!$C3325=\"Log value\",DataLog!AC3325,\"\")","v":""},{"$f":"IF(DataLog!$C3325=\"Log value\",DataLog!AD3325,\"\")","v":""},{"$f":"IF(DataLog!$C3325=\"Log value\",DataLog!AE3325,\"\")","v":""},{"$f":"IF(DataLog!$C3325=\"Log value\",DataLog!AF3325,\"\")","v":""},{"$f":"IF(DataLog!$C3325=\"Log value\",DataLog!AG3325,\"\")","v":""},{"$f":"IF(DataLog!$C3325=\"Log value\",DataLog!AH3325,\"\")","v":""},{"$f":"IF(DataLog!$C3325=\"Log value\",DataLog!AI3325,\"\")","v":""},{"$f":"IF(DataLog!$C3325=\"Log value\",DataLog!AJ3325,\"\")","v":""},{"$f":"IF(DataLog!$C3325=\"Log value\",DataLog!AK3325,\"\")","v":""},{"$f":"IF(DataLog!$C3325=\"Log value\",DataLog!AL3325,\"\")","v":""},{"$f":"IF(DataLog!$C3325=\"Log value\",DataLog!AM3325,\"\")","v":""}]
[null,null,null,null,null,null,{"$f":"IF(DataLog!$C3326=\"Log value\",DataLog!D3326&\"_\"&TEXT(DataLog!B3326,\"åååå-mm-dd\"),\"\")","v":""},{"$f":"IF(DataLog!$C3326=\"Log value\",DataLog!E3326,\"\")","v":""},{"$f":"IF(DataLog!$C3326=\"Log value\",DataLog!F3326,\"\")","v":""},{"$f":"IF(DataLog!$C3326=\"Log value\",DataLog!G3326,\"\")","v":""},{"$f":"IF(DataLog!$C3326=\"Log value\",DataLog!H3326,\"\")","v":""},{"$f":"IF(DataLog!$C3326=\"Log value\",DataLog!I3326,\"\")","v":""},{"$f":"IF(DataLog!$C3326=\"Log value\",DataLog!J3326,\"\")","v":""},{"$f":"IF(DataLog!$C3326=\"Log value\",DataLog!K3326,\"\")","v":""},{"$f":"IF(DataLog!$C3326=\"Log value\",DataLog!L3326,\"\")","v":""},{"$f":"IF(DataLog!$C3326=\"Log value\",DataLog!M3326,\"\")","v":""},{"$f":"IF(DataLog!$C3326=\"Log value\",DataLog!N3326,\"\")","v":""},{"$f":"IF(DataLog!$C3326=\"Log value\",DataLog!O3326,\"\")","v":""},{"$f":"IF(DataLog!$C3326=\"Log value\",DataLog!P3326,\"\")","v":""},{"$f":"IF(DataLog!$C3326=\"Log value\",DataLog!Q3326,\"\")","v":""},{"$f":"IF(DataLog!$C3326=\"Log value\",DataLog!R3326,\"\")","v":""},{"$f":"IF(DataLog!$C3326=\"Log value\",DataLog!S3326,\"\")","v":""},{"$f":"IF(DataLog!$C3326=\"Log value\",DataLog!T3326,\"\")","v":""},{"$f":"IF(DataLog!$C3326=\"Log value\",DataLog!U3326,\"\")","v":""},{"$f":"IF(DataLog!$C3326=\"Log value\",DataLog!V3326,\"\")","v":""},{"$f":"IF(DataLog!$C3326=\"Log value\",DataLog!W3326,\"\")","v":""},{"$f":"IF(DataLog!$C3326=\"Log value\",DataLog!X3326,\"\")","v":""},{"$f":"IF(DataLog!$C3326=\"Log value\",DataLog!Y3326,\"\")","v":""},{"$f":"IF(DataLog!$C3326=\"Log value\",DataLog!Z3326,\"\")","v":""},{"$f":"IF(DataLog!$C3326=\"Log value\",DataLog!AA3326,\"\")","v":""},{"$f":"IF(DataLog!$C3326=\"Log value\",DataLog!AB3326,\"\")","v":""},{"$f":"IF(DataLog!$C3326=\"Log value\",DataLog!AC3326,\"\")","v":""},{"$f":"IF(DataLog!$C3326=\"Log value\",DataLog!AD3326,\"\")","v":""},{"$f":"IF(DataLog!$C3326=\"Log value\",DataLog!AE3326,\"\")","v":""},{"$f":"IF(DataLog!$C3326=\"Log value\",DataLog!AF3326,\"\")","v":""},{"$f":"IF(DataLog!$C3326=\"Log value\",DataLog!AG3326,\"\")","v":""},{"$f":"IF(DataLog!$C3326=\"Log value\",DataLog!AH3326,\"\")","v":""},{"$f":"IF(DataLog!$C3326=\"Log value\",DataLog!AI3326,\"\")","v":""},{"$f":"IF(DataLog!$C3326=\"Log value\",DataLog!AJ3326,\"\")","v":""},{"$f":"IF(DataLog!$C3326=\"Log value\",DataLog!AK3326,\"\")","v":""},{"$f":"IF(DataLog!$C3326=\"Log value\",DataLog!AL3326,\"\")","v":""},{"$f":"IF(DataLog!$C3326=\"Log value\",DataLog!AM3326,\"\")","v":""}]
[null,null,null,null,null,null,{"$f":"IF(DataLog!$C3327=\"Log value\",DataLog!D3327&\"_\"&TEXT(DataLog!B3327,\"åååå-mm-dd\"),\"\")","v":""},{"$f":"IF(DataLog!$C3327=\"Log value\",DataLog!E3327,\"\")","v":""},{"$f":"IF(DataLog!$C3327=\"Log value\",DataLog!F3327,\"\")","v":""},{"$f":"IF(DataLog!$C3327=\"Log value\",DataLog!G3327,\"\")","v":""},{"$f":"IF(DataLog!$C3327=\"Log value\",DataLog!H3327,\"\")","v":""},{"$f":"IF(DataLog!$C3327=\"Log value\",DataLog!I3327,\"\")","v":""},{"$f":"IF(DataLog!$C3327=\"Log value\",DataLog!J3327,\"\")","v":""},{"$f":"IF(DataLog!$C3327=\"Log value\",DataLog!K3327,\"\")","v":""},{"$f":"IF(DataLog!$C3327=\"Log value\",DataLog!L3327,\"\")","v":""},{"$f":"IF(DataLog!$C3327=\"Log value\",DataLog!M3327,\"\")","v":""},{"$f":"IF(DataLog!$C3327=\"Log value\",DataLog!N3327,\"\")","v":""},{"$f":"IF(DataLog!$C3327=\"Log value\",DataLog!O3327,\"\")","v":""},{"$f":"IF(DataLog!$C3327=\"Log value\",DataLog!P3327,\"\")","v":""},{"$f":"IF(DataLog!$C3327=\"Log value\",DataLog!Q3327,\"\")","v":""},{"$f":"IF(DataLog!$C3327=\"Log value\",DataLog!R3327,\"\")","v":""},{"$f":"IF(DataLog!$C3327=\"Log value\",DataLog!S3327,\"\")","v":""},{"$f":"IF(DataLog!$C3327=\"Log value\",DataLog!T3327,\"\")","v":""},{"$f":"IF(DataLog!$C3327=\"Log value\",DataLog!U3327,\"\")","v":""},{"$f":"IF(DataLog!$C3327=\"Log value\",DataLog!V3327,\"\")","v":""},{"$f":"IF(DataLog!$C3327=\"Log value\",DataLog!W3327,\"\")","v":""},{"$f":"IF(DataLog!$C3327=\"Log value\",DataLog!X3327,\"\")","v":""},{"$f":"IF(DataLog!$C3327=\"Log value\",DataLog!Y3327,\"\")","v":""},{"$f":"IF(DataLog!$C3327=\"Log value\",DataLog!Z3327,\"\")","v":""},{"$f":"IF(DataLog!$C3327=\"Log value\",DataLog!AA3327,\"\")","v":""},{"$f":"IF(DataLog!$C3327=\"Log value\",DataLog!AB3327,\"\")","v":""},{"$f":"IF(DataLog!$C3327=\"Log value\",DataLog!AC3327,\"\")","v":""},{"$f":"IF(DataLog!$C3327=\"Log value\",DataLog!AD3327,\"\")","v":""},{"$f":"IF(DataLog!$C3327=\"Log value\",DataLog!AE3327,\"\")","v":""},{"$f":"IF(DataLog!$C3327=\"Log value\",DataLog!AF3327,\"\")","v":""},{"$f":"IF(DataLog!$C3327=\"Log value\",DataLog!AG3327,\"\")","v":""},{"$f":"IF(DataLog!$C3327=\"Log value\",DataLog!AH3327,\"\")","v":""},{"$f":"IF(DataLog!$C3327=\"Log value\",DataLog!AI3327,\"\")","v":""},{"$f":"IF(DataLog!$C3327=\"Log value\",DataLog!AJ3327,\"\")","v":""},{"$f":"IF(DataLog!$C3327=\"Log value\",DataLog!AK3327,\"\")","v":""},{"$f":"IF(DataLog!$C3327=\"Log value\",DataLog!AL3327,\"\")","v":""},{"$f":"IF(DataLog!$C3327=\"Log value\",DataLog!AM3327,\"\")","v":""}]
[null,null,null,null,null,null,{"$f":"IF(DataLog!$C3328=\"Log value\",DataLog!D3328&\"_\"&TEXT(DataLog!B3328,\"åååå-mm-dd\"),\"\")","v":""},{"$f":"IF(DataLog!$C3328=\"Log value\",DataLog!E3328,\"\")","v":""},{"$f":"IF(DataLog!$C3328=\"Log value\",DataLog!F3328,\"\")","v":""},{"$f":"IF(DataLog!$C3328=\"Log value\",DataLog!G3328,\"\")","v":""},{"$f":"IF(DataLog!$C3328=\"Log value\",DataLog!H3328,\"\")","v":""},{"$f":"IF(DataLog!$C3328=\"Log value\",DataLog!I3328,\"\")","v":""},{"$f":"IF(DataLog!$C3328=\"Log value\",DataLog!J3328,\"\")","v":""},{"$f":"IF(DataLog!$C3328=\"Log value\",DataLog!K3328,\"\")","v":""},{"$f":"IF(DataLog!$C3328=\"Log value\",DataLog!L3328,\"\")","v":""},{"$f":"IF(DataLog!$C3328=\"Log value\",DataLog!M3328,\"\")","v":""},{"$f":"IF(DataLog!$C3328=\"Log value\",DataLog!N3328,\"\")","v":""},{"$f":"IF(DataLog!$C3328=\"Log value\",DataLog!O3328,\"\")","v":""},{"$f":"IF(DataLog!$C3328=\"Log value\",DataLog!P3328,\"\")","v":""},{"$f":"IF(DataLog!$C3328=\"Log value\",DataLog!Q3328,\"\")","v":""},{"$f":"IF(DataLog!$C3328=\"Log value\",DataLog!R3328,\"\")","v":""},{"$f":"IF(DataLog!$C3328=\"Log value\",DataLog!S3328,\"\")","v":""},{"$f":"IF(DataLog!$C3328=\"Log value\",DataLog!T3328,\"\")","v":""},{"$f":"IF(DataLog!$C3328=\"Log value\",DataLog!U3328,\"\")","v":""},{"$f":"IF(DataLog!$C3328=\"Log value\",DataLog!V3328,\"\")","v":""},{"$f":"IF(DataLog!$C3328=\"Log value\",DataLog!W3328,\"\")","v":""},{"$f":"IF(DataLog!$C3328=\"Log value\",DataLog!X3328,\"\")","v":""},{"$f":"IF(DataLog!$C3328=\"Log value\",DataLog!Y3328,\"\")","v":""},{"$f":"IF(DataLog!$C3328=\"Log value\",DataLog!Z3328,\"\")","v":""},{"$f":"IF(DataLog!$C3328=\"Log value\",DataLog!AA3328,\"\")","v":""},{"$f":"IF(DataLog!$C3328=\"Log value\",DataLog!AB3328,\"\")","v":""},{"$f":"IF(DataLog!$C3328=\"Log value\",DataLog!AC3328,\"\")","v":""},{"$f":"IF(DataLog!$C3328=\"Log value\",DataLog!AD3328,\"\")","v":""},{"$f":"IF(DataLog!$C3328=\"Log value\",DataLog!AE3328,\"\")","v":""},{"$f":"IF(DataLog!$C3328=\"Log value\",DataLog!AF3328,\"\")","v":""},{"$f":"IF(DataLog!$C3328=\"Log value\",DataLog!AG3328,\"\")","v":""},{"$f":"IF(DataLog!$C3328=\"Log value\",DataLog!AH3328,\"\")","v":""},{"$f":"IF(DataLog!$C3328=\"Log value\",DataLog!AI3328,\"\")","v":""},{"$f":"IF(DataLog!$C3328=\"Log value\",DataLog!AJ3328,\"\")","v":""},{"$f":"IF(DataLog!$C3328=\"Log value\",DataLog!AK3328,\"\")","v":""},{"$f":"IF(DataLog!$C3328=\"Log value\",DataLog!AL3328,\"\")","v":""},{"$f":"IF(DataLog!$C3328=\"Log value\",DataLog!AM3328,\"\")","v":""}]
[null,null,null,null,null,null,{"$f":"IF(DataLog!$C3329=\"Log value\",DataLog!D3329&\"_\"&TEXT(DataLog!B3329,\"åååå-mm-dd\"),\"\")","v":""},{"$f":"IF(DataLog!$C3329=\"Log value\",DataLog!E3329,\"\")","v":""},{"$f":"IF(DataLog!$C3329=\"Log value\",DataLog!F3329,\"\")","v":""},{"$f":"IF(DataLog!$C3329=\"Log value\",DataLog!G3329,\"\")","v":""},{"$f":"IF(DataLog!$C3329=\"Log value\",DataLog!H3329,\"\")","v":""},{"$f":"IF(DataLog!$C3329=\"Log value\",DataLog!I3329,\"\")","v":""},{"$f":"IF(DataLog!$C3329=\"Log value\",DataLog!J3329,\"\")","v":""},{"$f":"IF(DataLog!$C3329=\"Log value\",DataLog!K3329,\"\")","v":""},{"$f":"IF(DataLog!$C3329=\"Log value\",DataLog!L3329,\"\")","v":""},{"$f":"IF(DataLog!$C3329=\"Log value\",DataLog!M3329,\"\")","v":""},{"$f":"IF(DataLog!$C3329=\"Log value\",DataLog!N3329,\"\")","v":""},{"$f":"IF(DataLog!$C3329=\"Log value\",DataLog!O3329,\"\")","v":""},{"$f":"IF(DataLog!$C3329=\"Log value\",DataLog!P3329,\"\")","v":""},{"$f":"IF(DataLog!$C3329=\"Log value\",DataLog!Q3329,\"\")","v":""},{"$f":"IF(DataLog!$C3329=\"Log value\",DataLog!R3329,\"\")","v":""},{"$f":"IF(DataLog!$C3329=\"Log value\",DataLog!S3329,\"\")","v":""},{"$f":"IF(DataLog!$C3329=\"Log value\",DataLog!T3329,\"\")","v":""},{"$f":"IF(DataLog!$C3329=\"Log value\",DataLog!U3329,\"\")","v":""},{"$f":"IF(DataLog!$C3329=\"Log value\",DataLog!V3329,\"\")","v":""},{"$f":"IF(DataLog!$C3329=\"Log value\",DataLog!W3329,\"\")","v":""},{"$f":"IF(DataLog!$C3329=\"Log value\",DataLog!X3329,\"\")","v":""},{"$f":"IF(DataLog!$C3329=\"Log value\",DataLog!Y3329,\"\")","v":""},{"$f":"IF(DataLog!$C3329=\"Log value\",DataLog!Z3329,\"\")","v":""},{"$f":"IF(DataLog!$C3329=\"Log value\",DataLog!AA3329,\"\")","v":""},{"$f":"IF(DataLog!$C3329=\"Log value\",DataLog!AB3329,\"\")","v":""},{"$f":"IF(DataLog!$C3329=\"Log value\",DataLog!AC3329,\"\")","v":""},{"$f":"IF(DataLog!$C3329=\"Log value\",DataLog!AD3329,\"\")","v":""},{"$f":"IF(DataLog!$C3329=\"Log value\",DataLog!AE3329,\"\")","v":""},{"$f":"IF(DataLog!$C3329=\"Log value\",DataLog!AF3329,\"\")","v":""},{"$f":"IF(DataLog!$C3329=\"Log value\",DataLog!AG3329,\"\")","v":""},{"$f":"IF(DataLog!$C3329=\"Log value\",DataLog!AH3329,\"\")","v":""},{"$f":"IF(DataLog!$C3329=\"Log value\",DataLog!AI3329,\"\")","v":""},{"$f":"IF(DataLog!$C3329=\"Log value\",DataLog!AJ3329,\"\")","v":""},{"$f":"IF(DataLog!$C3329=\"Log value\",DataLog!AK3329,\"\")","v":""},{"$f":"IF(DataLog!$C3329=\"Log value\",DataLog!AL3329,\"\")","v":""},{"$f":"IF(DataLog!$C3329=\"Log value\",DataLog!AM3329,\"\")","v":""}]
[null,null,null,null,null,null,{"$f":"IF(DataLog!$C3330=\"Log value\",DataLog!D3330&\"_\"&TEXT(DataLog!B3330,\"åååå-mm-dd\"),\"\")","v":""},{"$f":"IF(DataLog!$C3330=\"Log value\",DataLog!E3330,\"\")","v":""},{"$f":"IF(DataLog!$C3330=\"Log value\",DataLog!F3330,\"\")","v":""},{"$f":"IF(DataLog!$C3330=\"Log value\",DataLog!G3330,\"\")","v":""},{"$f":"IF(DataLog!$C3330=\"Log value\",DataLog!H3330,\"\")","v":""},{"$f":"IF(DataLog!$C3330=\"Log value\",DataLog!I3330,\"\")","v":""},{"$f":"IF(DataLog!$C3330=\"Log value\",DataLog!J3330,\"\")","v":""},{"$f":"IF(DataLog!$C3330=\"Log value\",DataLog!K3330,\"\")","v":""},{"$f":"IF(DataLog!$C3330=\"Log value\",DataLog!L3330,\"\")","v":""},{"$f":"IF(DataLog!$C3330=\"Log value\",DataLog!M3330,\"\")","v":""},{"$f":"IF(DataLog!$C3330=\"Log value\",DataLog!N3330,\"\")","v":""},{"$f":"IF(DataLog!$C3330=\"Log value\",DataLog!O3330,\"\")","v":""},{"$f":"IF(DataLog!$C3330=\"Log value\",DataLog!P3330,\"\")","v":""},{"$f":"IF(DataLog!$C3330=\"Log value\",DataLog!Q3330,\"\")","v":""},{"$f":"IF(DataLog!$C3330=\"Log value\",DataLog!R3330,\"\")","v":""},{"$f":"IF(DataLog!$C3330=\"Log value\",DataLog!S3330,\"\")","v":""},{"$f":"IF(DataLog!$C3330=\"Log value\",DataLog!T3330,\"\")","v":""},{"$f":"IF(DataLog!$C3330=\"Log value\",DataLog!U3330,\"\")","v":""},{"$f":"IF(DataLog!$C3330=\"Log value\",DataLog!V3330,\"\")","v":""},{"$f":"IF(DataLog!$C3330=\"Log value\",DataLog!W3330,\"\")","v":""},{"$f":"IF(DataLog!$C3330=\"Log value\",DataLog!X3330,\"\")","v":""},{"$f":"IF(DataLog!$C3330=\"Log value\",DataLog!Y3330,\"\")","v":""},{"$f":"IF(DataLog!$C3330=\"Log value\",DataLog!Z3330,\"\")","v":""},{"$f":"IF(DataLog!$C3330=\"Log value\",DataLog!AA3330,\"\")","v":""},{"$f":"IF(DataLog!$C3330=\"Log value\",DataLog!AB3330,\"\")","v":""},{"$f":"IF(DataLog!$C3330=\"Log value\",DataLog!AC3330,\"\")","v":""},{"$f":"IF(DataLog!$C3330=\"Log value\",DataLog!AD3330,\"\")","v":""},{"$f":"IF(DataLog!$C3330=\"Log value\",DataLog!AE3330,\"\")","v":""},{"$f":"IF(DataLog!$C3330=\"Log value\",DataLog!AF3330,\"\")","v":""},{"$f":"IF(DataLog!$C3330=\"Log value\",DataLog!AG3330,\"\")","v":""},{"$f":"IF(DataLog!$C3330=\"Log value\",DataLog!AH3330,\"\")","v":""},{"$f":"IF(DataLog!$C3330=\"Log value\",DataLog!AI3330,\"\")","v":""},{"$f":"IF(DataLog!$C3330=\"Log value\",DataLog!AJ3330,\"\")","v":""},{"$f":"IF(DataLog!$C3330=\"Log value\",DataLog!AK3330,\"\")","v":""},{"$f":"IF(DataLog!$C3330=\"Log value\",DataLog!AL3330,\"\")","v":""},{"$f":"IF(DataLog!$C3330=\"Log value\",DataLog!AM3330,\"\")","v":""}]
[null,null,null,null,null,null,{"$f":"IF(DataLog!$C3331=\"Log value\",DataLog!D3331&\"_\"&TEXT(DataLog!B3331,\"åååå-mm-dd\"),\"\")","v":""},{"$f":"IF(DataLog!$C3331=\"Log value\",DataLog!E3331,\"\")","v":""},{"$f":"IF(DataLog!$C3331=\"Log value\",DataLog!F3331,\"\")","v":""},{"$f":"IF(DataLog!$C3331=\"Log value\",DataLog!G3331,\"\")","v":""},{"$f":"IF(DataLog!$C3331=\"Log value\",DataLog!H3331,\"\")","v":""},{"$f":"IF(DataLog!$C3331=\"Log value\",DataLog!I3331,\"\")","v":""},{"$f":"IF(DataLog!$C3331=\"Log value\",DataLog!J3331,\"\")","v":""},{"$f":"IF(DataLog!$C3331=\"Log value\",DataLog!K3331,\"\")","v":""},{"$f":"IF(DataLog!$C3331=\"Log value\",DataLog!L3331,\"\")","v":""},{"$f":"IF(DataLog!$C3331=\"Log value\",DataLog!M3331,\"\")","v":""},{"$f":"IF(DataLog!$C3331=\"Log value\",DataLog!N3331,\"\")","v":""},{"$f":"IF(DataLog!$C3331=\"Log value\",DataLog!O3331,\"\")","v":""},{"$f":"IF(DataLog!$C3331=\"Log value\",DataLog!P3331,\"\")","v":""},{"$f":"IF(DataLog!$C3331=\"Log value\",DataLog!Q3331,\"\")","v":""},{"$f":"IF(DataLog!$C3331=\"Log value\",DataLog!R3331,\"\")","v":""},{"$f":"IF(DataLog!$C3331=\"Log value\",DataLog!S3331,\"\")","v":""},{"$f":"IF(DataLog!$C3331=\"Log value\",DataLog!T3331,\"\")","v":""},{"$f":"IF(DataLog!$C3331=\"Log value\",DataLog!U3331,\"\")","v":""},{"$f":"IF(DataLog!$C3331=\"Log value\",DataLog!V3331,\"\")","v":""},{"$f":"IF(DataLog!$C3331=\"Log value\",DataLog!W3331,\"\")","v":""},{"$f":"IF(DataLog!$C3331=\"Log value\",DataLog!X3331,\"\")","v":""},{"$f":"IF(DataLog!$C3331=\"Log value\",DataLog!Y3331,\"\")","v":""},{"$f":"IF(DataLog!$C3331=\"Log value\",DataLog!Z3331,\"\")","v":""},{"$f":"IF(DataLog!$C3331=\"Log value\",DataLog!AA3331,\"\")","v":""},{"$f":"IF(DataLog!$C3331=\"Log value\",DataLog!AB3331,\"\")","v":""},{"$f":"IF(DataLog!$C3331=\"Log value\",DataLog!AC3331,\"\")","v":""},{"$f":"IF(DataLog!$C3331=\"Log value\",DataLog!AD3331,\"\")","v":""},{"$f":"IF(DataLog!$C3331=\"Log value\",DataLog!AE3331,\"\")","v":""},{"$f":"IF(DataLog!$C3331=\"Log value\",DataLog!AF3331,\"\")","v":""},{"$f":"IF(DataLog!$C3331=\"Log value\",DataLog!AG3331,\"\")","v":""},{"$f":"IF(DataLog!$C3331=\"Log value\",DataLog!AH3331,\"\")","v":""},{"$f":"IF(DataLog!$C3331=\"Log value\",DataLog!AI3331,\"\")","v":""},{"$f":"IF(DataLog!$C3331=\"Log value\",DataLog!AJ3331,\"\")","v":""},{"$f":"IF(DataLog!$C3331=\"Log value\",DataLog!AK3331,\"\")","v":""},{"$f":"IF(DataLog!$C3331=\"Log value\",DataLog!AL3331,\"\")","v":""},{"$f":"IF(DataLog!$C3331=\"Log value\",DataLog!AM3331,\"\")","v":""}]
[null,null,null,null,null,null,{"$f":"IF(DataLog!$C3332=\"Log value\",DataLog!D3332&\"_\"&TEXT(DataLog!B3332,\"åååå-mm-dd\"),\"\")","v":""},{"$f":"IF(DataLog!$C3332=\"Log value\",DataLog!E3332,\"\")","v":""},{"$f":"IF(DataLog!$C3332=\"Log value\",DataLog!F3332,\"\")","v":""},{"$f":"IF(DataLog!$C3332=\"Log value\",DataLog!G3332,\"\")","v":""},{"$f":"IF(DataLog!$C3332=\"Log value\",DataLog!H3332,\"\")","v":""},{"$f":"IF(DataLog!$C3332=\"Log value\",DataLog!I3332,\"\")","v":""},{"$f":"IF(DataLog!$C3332=\"Log value\",DataLog!J3332,\"\")","v":""},{"$f":"IF(DataLog!$C3332=\"Log value\",DataLog!K3332,\"\")","v":""},{"$f":"IF(DataLog!$C3332=\"Log value\",DataLog!L3332,\"\")","v":""},{"$f":"IF(DataLog!$C3332=\"Log value\",DataLog!M3332,\"\")","v":""},{"$f":"IF(DataLog!$C3332=\"Log value\",DataLog!N3332,\"\")","v":""},{"$f":"IF(DataLog!$C3332=\"Log value\",DataLog!O3332,\"\")","v":""},{"$f":"IF(DataLog!$C3332=\"Log value\",DataLog!P3332,\"\")","v":""},{"$f":"IF(DataLog!$C3332=\"Log value\",DataLog!Q3332,\"\")","v":""},{"$f":"IF(DataLog!$C3332=\"Log value\",DataLog!R3332,\"\")","v":""},{"$f":"IF(DataLog!$C3332=\"Log value\",DataLog!S3332,\"\")","v":""},{"$f":"IF(DataLog!$C3332=\"Log value\",DataLog!T3332,\"\")","v":""},{"$f":"IF(DataLog!$C3332=\"Log value\",DataLog!U3332,\"\")","v":""},{"$f":"IF(DataLog!$C3332=\"Log value\",DataLog!V3332,\"\")","v":""},{"$f":"IF(DataLog!$C3332=\"Log value\",DataLog!W3332,\"\")","v":""},{"$f":"IF(DataLog!$C3332=\"Log value\",DataLog!X3332,\"\")","v":""},{"$f":"IF(DataLog!$C3332=\"Log value\",DataLog!Y3332,\"\")","v":""},{"$f":"IF(DataLog!$C3332=\"Log value\",DataLog!Z3332,\"\")","v":""},{"$f":"IF(DataLog!$C3332=\"Log value\",DataLog!AA3332,\"\")","v":""},{"$f":"IF(DataLog!$C3332=\"Log value\",DataLog!AB3332,\"\")","v":""},{"$f":"IF(DataLog!$C3332=\"Log value\",DataLog!AC3332,\"\")","v":""},{"$f":"IF(DataLog!$C3332=\"Log value\",DataLog!AD3332,\"\")","v":""},{"$f":"IF(DataLog!$C3332=\"Log value\",DataLog!AE3332,\"\")","v":""},{"$f":"IF(DataLog!$C3332=\"Log value\",DataLog!AF3332,\"\")","v":""},{"$f":"IF(DataLog!$C3332=\"Log value\",DataLog!AG3332,\"\")","v":""},{"$f":"IF(DataLog!$C3332=\"Log value\",DataLog!AH3332,\"\")","v":""},{"$f":"IF(DataLog!$C3332=\"Log value\",DataLog!AI3332,\"\")","v":""},{"$f":"IF(DataLog!$C3332=\"Log value\",DataLog!AJ3332,\"\")","v":""},{"$f":"IF(DataLog!$C3332=\"Log value\",DataLog!AK3332,\"\")","v":""},{"$f":"IF(DataLog!$C3332=\"Log value\",DataLog!AL3332,\"\")","v":""},{"$f":"IF(DataLog!$C3332=\"Log value\",DataLog!AM3332,\"\")","v":""}]
[null,null,null,null,null,null,{"$f":"IF(DataLog!$C3333=\"Log value\",DataLog!D3333&\"_\"&TEXT(DataLog!B3333,\"åååå-mm-dd\"),\"\")","v":""},{"$f":"IF(DataLog!$C3333=\"Log value\",DataLog!E3333,\"\")","v":""},{"$f":"IF(DataLog!$C3333=\"Log value\",DataLog!F3333,\"\")","v":""},{"$f":"IF(DataLog!$C3333=\"Log value\",DataLog!G3333,\"\")","v":""},{"$f":"IF(DataLog!$C3333=\"Log value\",DataLog!H3333,\"\")","v":""},{"$f":"IF(DataLog!$C3333=\"Log value\",DataLog!I3333,\"\")","v":""},{"$f":"IF(DataLog!$C3333=\"Log value\",DataLog!J3333,\"\")","v":""},{"$f":"IF(DataLog!$C3333=\"Log value\",DataLog!K3333,\"\")","v":""},{"$f":"IF(DataLog!$C3333=\"Log value\",DataLog!L3333,\"\")","v":""},{"$f":"IF(DataLog!$C3333=\"Log value\",DataLog!M3333,\"\")","v":""},{"$f":"IF(DataLog!$C3333=\"Log value\",DataLog!N3333,\"\")","v":""},{"$f":"IF(DataLog!$C3333=\"Log value\",DataLog!O3333,\"\")","v":""},{"$f":"IF(DataLog!$C3333=\"Log value\",DataLog!P3333,\"\")","v":""},{"$f":"IF(DataLog!$C3333=\"Log value\",DataLog!Q3333,\"\")","v":""},{"$f":"IF(DataLog!$C3333=\"Log value\",DataLog!R3333,\"\")","v":""},{"$f":"IF(DataLog!$C3333=\"Log value\",DataLog!S3333,\"\")","v":""},{"$f":"IF(DataLog!$C3333=\"Log value\",DataLog!T3333,\"\")","v":""},{"$f":"IF(DataLog!$C3333=\"Log value\",DataLog!U3333,\"\")","v":""},{"$f":"IF(DataLog!$C3333=\"Log value\",DataLog!V3333,\"\")","v":""},{"$f":"IF(DataLog!$C3333=\"Log value\",DataLog!W3333,\"\")","v":""},{"$f":"IF(DataLog!$C3333=\"Log value\",DataLog!X3333,\"\")","v":""},{"$f":"IF(DataLog!$C3333=\"Log value\",DataLog!Y3333,\"\")","v":""},{"$f":"IF(DataLog!$C3333=\"Log value\",DataLog!Z3333,\"\")","v":""},{"$f":"IF(DataLog!$C3333=\"Log value\",DataLog!AA3333,\"\")","v":""},{"$f":"IF(DataLog!$C3333=\"Log value\",DataLog!AB3333,\"\")","v":""},{"$f":"IF(DataLog!$C3333=\"Log value\",DataLog!AC3333,\"\")","v":""},{"$f":"IF(DataLog!$C3333=\"Log value\",DataLog!AD3333,\"\")","v":""},{"$f":"IF(DataLog!$C3333=\"Log value\",DataLog!AE3333,\"\")","v":""},{"$f":"IF(DataLog!$C3333=\"Log value\",DataLog!AF3333,\"\")","v":""},{"$f":"IF(DataLog!$C3333=\"Log value\",DataLog!AG3333,\"\")","v":""},{"$f":"IF(DataLog!$C3333=\"Log value\",DataLog!AH3333,\"\")","v":""},{"$f":"IF(DataLog!$C3333=\"Log value\",DataLog!AI3333,\"\")","v":""},{"$f":"IF(DataLog!$C3333=\"Log value\",DataLog!AJ3333,\"\")","v":""},{"$f":"IF(DataLog!$C3333=\"Log value\",DataLog!AK3333,\"\")","v":""},{"$f":"IF(DataLog!$C3333=\"Log value\",DataLog!AL3333,\"\")","v":""},{"$f":"IF(DataLog!$C3333=\"Log value\",DataLog!AM3333,\"\")","v":""}]
[null,null,null,null,null,null,{"$f":"IF(DataLog!$C3334=\"Log value\",DataLog!D3334&\"_\"&TEXT(DataLog!B3334,\"åååå-mm-dd\"),\"\")","v":""},{"$f":"IF(DataLog!$C3334=\"Log value\",DataLog!E3334,\"\")","v":""},{"$f":"IF(DataLog!$C3334=\"Log value\",DataLog!F3334,\"\")","v":""},{"$f":"IF(DataLog!$C3334=\"Log value\",DataLog!G3334,\"\")","v":""},{"$f":"IF(DataLog!$C3334=\"Log value\",DataLog!H3334,\"\")","v":""},{"$f":"IF(DataLog!$C3334=\"Log value\",DataLog!I3334,\"\")","v":""},{"$f":"IF(DataLog!$C3334=\"Log value\",DataLog!J3334,\"\")","v":""},{"$f":"IF(DataLog!$C3334=\"Log value\",DataLog!K3334,\"\")","v":""},{"$f":"IF(DataLog!$C3334=\"Log value\",DataLog!L3334,\"\")","v":""},{"$f":"IF(DataLog!$C3334=\"Log value\",DataLog!M3334,\"\")","v":""},{"$f":"IF(DataLog!$C3334=\"Log value\",DataLog!N3334,\"\")","v":""},{"$f":"IF(DataLog!$C3334=\"Log value\",DataLog!O3334,\"\")","v":""},{"$f":"IF(DataLog!$C3334=\"Log value\",DataLog!P3334,\"\")","v":""},{"$f":"IF(DataLog!$C3334=\"Log value\",DataLog!Q3334,\"\")","v":""},{"$f":"IF(DataLog!$C3334=\"Log value\",DataLog!R3334,\"\")","v":""},{"$f":"IF(DataLog!$C3334=\"Log value\",DataLog!S3334,\"\")","v":""},{"$f":"IF(DataLog!$C3334=\"Log value\",DataLog!T3334,\"\")","v":""},{"$f":"IF(DataLog!$C3334=\"Log value\",DataLog!U3334,\"\")","v":""},{"$f":"IF(DataLog!$C3334=\"Log value\",DataLog!V3334,\"\")","v":""},{"$f":"IF(DataLog!$C3334=\"Log value\",DataLog!W3334,\"\")","v":""},{"$f":"IF(DataLog!$C3334=\"Log value\",DataLog!X3334,\"\")","v":""},{"$f":"IF(DataLog!$C3334=\"Log value\",DataLog!Y3334,\"\")","v":""},{"$f":"IF(DataLog!$C3334=\"Log value\",DataLog!Z3334,\"\")","v":""},{"$f":"IF(DataLog!$C3334=\"Log value\",DataLog!AA3334,\"\")","v":""},{"$f":"IF(DataLog!$C3334=\"Log value\",DataLog!AB3334,\"\")","v":""},{"$f":"IF(DataLog!$C3334=\"Log value\",DataLog!AC3334,\"\")","v":""},{"$f":"IF(DataLog!$C3334=\"Log value\",DataLog!AD3334,\"\")","v":""},{"$f":"IF(DataLog!$C3334=\"Log value\",DataLog!AE3334,\"\")","v":""},{"$f":"IF(DataLog!$C3334=\"Log value\",DataLog!AF3334,\"\")","v":""},{"$f":"IF(DataLog!$C3334=\"Log value\",DataLog!AG3334,\"\")","v":""},{"$f":"IF(DataLog!$C3334=\"Log value\",DataLog!AH3334,\"\")","v":""},{"$f":"IF(DataLog!$C3334=\"Log value\",DataLog!AI3334,\"\")","v":""},{"$f":"IF(DataLog!$C3334=\"Log value\",DataLog!AJ3334,\"\")","v":""},{"$f":"IF(DataLog!$C3334=\"Log value\",DataLog!AK3334,\"\")","v":""},{"$f":"IF(DataLog!$C3334=\"Log value\",DataLog!AL3334,\"\")","v":""},{"$f":"IF(DataLog!$C3334=\"Log value\",DataLog!AM3334,\"\")","v":""}]
[null,null,null,null,null,null,{"$f":"IF(DataLog!$C3335=\"Log value\",DataLog!D3335&\"_\"&TEXT(DataLog!B3335,\"åååå-mm-dd\"),\"\")","v":""},{"$f":"IF(DataLog!$C3335=\"Log value\",DataLog!E3335,\"\")","v":""},{"$f":"IF(DataLog!$C3335=\"Log value\",DataLog!F3335,\"\")","v":""},{"$f":"IF(DataLog!$C3335=\"Log value\",DataLog!G3335,\"\")","v":""},{"$f":"IF(DataLog!$C3335=\"Log value\",DataLog!H3335,\"\")","v":""},{"$f":"IF(DataLog!$C3335=\"Log value\",DataLog!I3335,\"\")","v":""},{"$f":"IF(DataLog!$C3335=\"Log value\",DataLog!J3335,\"\")","v":""},{"$f":"IF(DataLog!$C3335=\"Log value\",DataLog!K3335,\"\")","v":""},{"$f":"IF(DataLog!$C3335=\"Log value\",DataLog!L3335,\"\")","v":""},{"$f":"IF(DataLog!$C3335=\"Log value\",DataLog!M3335,\"\")","v":""},{"$f":"IF(DataLog!$C3335=\"Log value\",DataLog!N3335,\"\")","v":""},{"$f":"IF(DataLog!$C3335=\"Log value\",DataLog!O3335,\"\")","v":""},{"$f":"IF(DataLog!$C3335=\"Log value\",DataLog!P3335,\"\")","v":""},{"$f":"IF(DataLog!$C3335=\"Log value\",DataLog!Q3335,\"\")","v":""},{"$f":"IF(DataLog!$C3335=\"Log value\",DataLog!R3335,\"\")","v":""},{"$f":"IF(DataLog!$C3335=\"Log value\",DataLog!S3335,\"\")","v":""},{"$f":"IF(DataLog!$C3335=\"Log value\",DataLog!T3335,\"\")","v":""},{"$f":"IF(DataLog!$C3335=\"Log value\",DataLog!U3335,\"\")","v":""},{"$f":"IF(DataLog!$C3335=\"Log value\",DataLog!V3335,\"\")","v":""},{"$f":"IF(DataLog!$C3335=\"Log value\",DataLog!W3335,\"\")","v":""},{"$f":"IF(DataLog!$C3335=\"Log value\",DataLog!X3335,\"\")","v":""},{"$f":"IF(DataLog!$C3335=\"Log value\",DataLog!Y3335,\"\")","v":""},{"$f":"IF(DataLog!$C3335=\"Log value\",DataLog!Z3335,\"\")","v":""},{"$f":"IF(DataLog!$C3335=\"Log value\",DataLog!AA3335,\"\")","v":""},{"$f":"IF(DataLog!$C3335=\"Log value\",DataLog!AB3335,\"\")","v":""},{"$f":"IF(DataLog!$C3335=\"Log value\",DataLog!AC3335,\"\")","v":""},{"$f":"IF(DataLog!$C3335=\"Log value\",DataLog!AD3335,\"\")","v":""},{"$f":"IF(DataLog!$C3335=\"Log value\",DataLog!AE3335,\"\")","v":""},{"$f":"IF(DataLog!$C3335=\"Log value\",DataLog!AF3335,\"\")","v":""},{"$f":"IF(DataLog!$C3335=\"Log value\",DataLog!AG3335,\"\")","v":""},{"$f":"IF(DataLog!$C3335=\"Log value\",DataLog!AH3335,\"\")","v":""},{"$f":"IF(DataLog!$C3335=\"Log value\",DataLog!AI3335,\"\")","v":""},{"$f":"IF(DataLog!$C3335=\"Log value\",DataLog!AJ3335,\"\")","v":""},{"$f":"IF(DataLog!$C3335=\"Log value\",DataLog!AK3335,\"\")","v":""},{"$f":"IF(DataLog!$C3335=\"Log value\",DataLog!AL3335,\"\")","v":""},{"$f":"IF(DataLog!$C3335=\"Log value\",DataLog!AM3335,\"\")","v":""}]
[null,null,null,null,null,null,{"$f":"IF(DataLog!$C3336=\"Log value\",DataLog!D3336&\"_\"&TEXT(DataLog!B3336,\"åååå-mm-dd\"),\"\")","v":""},{"$f":"IF(DataLog!$C3336=\"Log value\",DataLog!E3336,\"\")","v":""},{"$f":"IF(DataLog!$C3336=\"Log value\",DataLog!F3336,\"\")","v":""},{"$f":"IF(DataLog!$C3336=\"Log value\",DataLog!G3336,\"\")","v":""},{"$f":"IF(DataLog!$C3336=\"Log value\",DataLog!H3336,\"\")","v":""},{"$f":"IF(DataLog!$C3336=\"Log value\",DataLog!I3336,\"\")","v":""},{"$f":"IF(DataLog!$C3336=\"Log value\",DataLog!J3336,\"\")","v":""},{"$f":"IF(DataLog!$C3336=\"Log value\",DataLog!K3336,\"\")","v":""},{"$f":"IF(DataLog!$C3336=\"Log value\",DataLog!L3336,\"\")","v":""},{"$f":"IF(DataLog!$C3336=\"Log value\",DataLog!M3336,\"\")","v":""},{"$f":"IF(DataLog!$C3336=\"Log value\",DataLog!N3336,\"\")","v":""},{"$f":"IF(DataLog!$C3336=\"Log value\",DataLog!O3336,\"\")","v":""},{"$f":"IF(DataLog!$C3336=\"Log value\",DataLog!P3336,\"\")","v":""},{"$f":"IF(DataLog!$C3336=\"Log value\",DataLog!Q3336,\"\")","v":""},{"$f":"IF(DataLog!$C3336=\"Log value\",DataLog!R3336,\"\")","v":""},{"$f":"IF(DataLog!$C3336=\"Log value\",DataLog!S3336,\"\")","v":""},{"$f":"IF(DataLog!$C3336=\"Log value\",DataLog!T3336,\"\")","v":""},{"$f":"IF(DataLog!$C3336=\"Log value\",DataLog!U3336,\"\")","v":""},{"$f":"IF(DataLog!$C3336=\"Log value\",DataLog!V3336,\"\")","v":""},{"$f":"IF(DataLog!$C3336=\"Log value\",DataLog!W3336,\"\")","v":""},{"$f":"IF(DataLog!$C3336=\"Log value\",DataLog!X3336,\"\")","v":""},{"$f":"IF(DataLog!$C3336=\"Log value\",DataLog!Y3336,\"\")","v":""},{"$f":"IF(DataLog!$C3336=\"Log value\",DataLog!Z3336,\"\")","v":""},{"$f":"IF(DataLog!$C3336=\"Log value\",DataLog!AA3336,\"\")","v":""},{"$f":"IF(DataLog!$C3336=\"Log value\",DataLog!AB3336,\"\")","v":""},{"$f":"IF(DataLog!$C3336=\"Log value\",DataLog!AC3336,\"\")","v":""},{"$f":"IF(DataLog!$C3336=\"Log value\",DataLog!AD3336,\"\")","v":""},{"$f":"IF(DataLog!$C3336=\"Log value\",DataLog!AE3336,\"\")","v":""},{"$f":"IF(DataLog!$C3336=\"Log value\",DataLog!AF3336,\"\")","v":""},{"$f":"IF(DataLog!$C3336=\"Log value\",DataLog!AG3336,\"\")","v":""},{"$f":"IF(DataLog!$C3336=\"Log value\",DataLog!AH3336,\"\")","v":""},{"$f":"IF(DataLog!$C3336=\"Log value\",DataLog!AI3336,\"\")","v":""},{"$f":"IF(DataLog!$C3336=\"Log value\",DataLog!AJ3336,\"\")","v":""},{"$f":"IF(DataLog!$C3336=\"Log value\",DataLog!AK3336,\"\")","v":""},{"$f":"IF(DataLog!$C3336=\"Log value\",DataLog!AL3336,\"\")","v":""},{"$f":"IF(DataLog!$C3336=\"Log value\",DataLog!AM3336,\"\")","v":""}]
[null,null,null,null,null,null,{"$f":"IF(DataLog!$C3337=\"Log value\",DataLog!D3337&\"_\"&TEXT(DataLog!B3337,\"åååå-mm-dd\"),\"\")","v":""},{"$f":"IF(DataLog!$C3337=\"Log value\",DataLog!E3337,\"\")","v":""},{"$f":"IF(DataLog!$C3337=\"Log value\",DataLog!F3337,\"\")","v":""},{"$f":"IF(DataLog!$C3337=\"Log value\",DataLog!G3337,\"\")","v":""},{"$f":"IF(DataLog!$C3337=\"Log value\",DataLog!H3337,\"\")","v":""},{"$f":"IF(DataLog!$C3337=\"Log value\",DataLog!I3337,\"\")","v":""},{"$f":"IF(DataLog!$C3337=\"Log value\",DataLog!J3337,\"\")","v":""},{"$f":"IF(DataLog!$C3337=\"Log value\",DataLog!K3337,\"\")","v":""},{"$f":"IF(DataLog!$C3337=\"Log value\",DataLog!L3337,\"\")","v":""},{"$f":"IF(DataLog!$C3337=\"Log value\",DataLog!M3337,\"\")","v":""},{"$f":"IF(DataLog!$C3337=\"Log value\",DataLog!N3337,\"\")","v":""},{"$f":"IF(DataLog!$C3337=\"Log value\",DataLog!O3337,\"\")","v":""},{"$f":"IF(DataLog!$C3337=\"Log value\",DataLog!P3337,\"\")","v":""},{"$f":"IF(DataLog!$C3337=\"Log value\",DataLog!Q3337,\"\")","v":""},{"$f":"IF(DataLog!$C3337=\"Log value\",DataLog!R3337,\"\")","v":""},{"$f":"IF(DataLog!$C3337=\"Log value\",DataLog!S3337,\"\")","v":""},{"$f":"IF(DataLog!$C3337=\"Log value\",DataLog!T3337,\"\")","v":""},{"$f":"IF(DataLog!$C3337=\"Log value\",DataLog!U3337,\"\")","v":""},{"$f":"IF(DataLog!$C3337=\"Log value\",DataLog!V3337,\"\")","v":""},{"$f":"IF(DataLog!$C3337=\"Log value\",DataLog!W3337,\"\")","v":""},{"$f":"IF(DataLog!$C3337=\"Log value\",DataLog!X3337,\"\")","v":""},{"$f":"IF(DataLog!$C3337=\"Log value\",DataLog!Y3337,\"\")","v":""},{"$f":"IF(DataLog!$C3337=\"Log value\",DataLog!Z3337,\"\")","v":""},{"$f":"IF(DataLog!$C3337=\"Log value\",DataLog!AA3337,\"\")","v":""},{"$f":"IF(DataLog!$C3337=\"Log value\",DataLog!AB3337,\"\")","v":""},{"$f":"IF(DataLog!$C3337=\"Log value\",DataLog!AC3337,\"\")","v":""},{"$f":"IF(DataLog!$C3337=\"Log value\",DataLog!AD3337,\"\")","v":""},{"$f":"IF(DataLog!$C3337=\"Log value\",DataLog!AE3337,\"\")","v":""},{"$f":"IF(DataLog!$C3337=\"Log value\",DataLog!AF3337,\"\")","v":""},{"$f":"IF(DataLog!$C3337=\"Log value\",DataLog!AG3337,\"\")","v":""},{"$f":"IF(DataLog!$C3337=\"Log value\",DataLog!AH3337,\"\")","v":""},{"$f":"IF(DataLog!$C3337=\"Log value\",DataLog!AI3337,\"\")","v":""},{"$f":"IF(DataLog!$C3337=\"Log value\",DataLog!AJ3337,\"\")","v":""},{"$f":"IF(DataLog!$C3337=\"Log value\",DataLog!AK3337,\"\")","v":""},{"$f":"IF(DataLog!$C3337=\"Log value\",DataLog!AL3337,\"\")","v":""},{"$f":"IF(DataLog!$C3337=\"Log value\",DataLog!AM3337,\"\")","v":""}]
[null,null,null,null,null,null,{"$f":"IF(DataLog!$C3338=\"Log value\",DataLog!D3338&\"_\"&TEXT(DataLog!B3338,\"åååå-mm-dd\"),\"\")","v":""},{"$f":"IF(DataLog!$C3338=\"Log value\",DataLog!E3338,\"\")","v":""},{"$f":"IF(DataLog!$C3338=\"Log value\",DataLog!F3338,\"\")","v":""},{"$f":"IF(DataLog!$C3338=\"Log value\",DataLog!G3338,\"\")","v":""},{"$f":"IF(DataLog!$C3338=\"Log value\",DataLog!H3338,\"\")","v":""},{"$f":"IF(DataLog!$C3338=\"Log value\",DataLog!I3338,\"\")","v":""},{"$f":"IF(DataLog!$C3338=\"Log value\",DataLog!J3338,\"\")","v":""},{"$f":"IF(DataLog!$C3338=\"Log value\",DataLog!K3338,\"\")","v":""},{"$f":"IF(DataLog!$C3338=\"Log value\",DataLog!L3338,\"\")","v":""},{"$f":"IF(DataLog!$C3338=\"Log value\",DataLog!M3338,\"\")","v":""},{"$f":"IF(DataLog!$C3338=\"Log value\",DataLog!N3338,\"\")","v":""},{"$f":"IF(DataLog!$C3338=\"Log value\",DataLog!O3338,\"\")","v":""},{"$f":"IF(DataLog!$C3338=\"Log value\",DataLog!P3338,\"\")","v":""},{"$f":"IF(DataLog!$C3338=\"Log value\",DataLog!Q3338,\"\")","v":""},{"$f":"IF(DataLog!$C3338=\"Log value\",DataLog!R3338,\"\")","v":""},{"$f":"IF(DataLog!$C3338=\"Log value\",DataLog!S3338,\"\")","v":""},{"$f":"IF(DataLog!$C3338=\"Log value\",DataLog!T3338,\"\")","v":""},{"$f":"IF(DataLog!$C3338=\"Log value\",DataLog!U3338,\"\")","v":""},{"$f":"IF(DataLog!$C3338=\"Log value\",DataLog!V3338,\"\")","v":""},{"$f":"IF(DataLog!$C3338=\"Log value\",DataLog!W3338,\"\")","v":""},{"$f":"IF(DataLog!$C3338=\"Log value\",DataLog!X3338,\"\")","v":""},{"$f":"IF(DataLog!$C3338=\"Log value\",DataLog!Y3338,\"\")","v":""},{"$f":"IF(DataLog!$C3338=\"Log value\",DataLog!Z3338,\"\")","v":""},{"$f":"IF(DataLog!$C3338=\"Log value\",DataLog!AA3338,\"\")","v":""},{"$f":"IF(DataLog!$C3338=\"Log value\",DataLog!AB3338,\"\")","v":""},{"$f":"IF(DataLog!$C3338=\"Log value\",DataLog!AC3338,\"\")","v":""},{"$f":"IF(DataLog!$C3338=\"Log value\",DataLog!AD3338,\"\")","v":""},{"$f":"IF(DataLog!$C3338=\"Log value\",DataLog!AE3338,\"\")","v":""},{"$f":"IF(DataLog!$C3338=\"Log value\",DataLog!AF3338,\"\")","v":""},{"$f":"IF(DataLog!$C3338=\"Log value\",DataLog!AG3338,\"\")","v":""},{"$f":"IF(DataLog!$C3338=\"Log value\",DataLog!AH3338,\"\")","v":""},{"$f":"IF(DataLog!$C3338=\"Log value\",DataLog!AI3338,\"\")","v":""},{"$f":"IF(DataLog!$C3338=\"Log value\",DataLog!AJ3338,\"\")","v":""},{"$f":"IF(DataLog!$C3338=\"Log value\",DataLog!AK3338,\"\")","v":""},{"$f":"IF(DataLog!$C3338=\"Log value\",DataLog!AL3338,\"\")","v":""},{"$f":"IF(DataLog!$C3338=\"Log value\",DataLog!AM3338,\"\")","v":""}]
[null,null,null,null,null,null,{"$f":"IF(DataLog!$C3339=\"Log value\",DataLog!D3339&\"_\"&TEXT(DataLog!B3339,\"åååå-mm-dd\"),\"\")","v":""},{"$f":"IF(DataLog!$C3339=\"Log value\",DataLog!E3339,\"\")","v":""},{"$f":"IF(DataLog!$C3339=\"Log value\",DataLog!F3339,\"\")","v":""},{"$f":"IF(DataLog!$C3339=\"Log value\",DataLog!G3339,\"\")","v":""},{"$f":"IF(DataLog!$C3339=\"Log value\",DataLog!H3339,\"\")","v":""},{"$f":"IF(DataLog!$C3339=\"Log value\",DataLog!I3339,\"\")","v":""},{"$f":"IF(DataLog!$C3339=\"Log value\",DataLog!J3339,\"\")","v":""},{"$f":"IF(DataLog!$C3339=\"Log value\",DataLog!K3339,\"\")","v":""},{"$f":"IF(DataLog!$C3339=\"Log value\",DataLog!L3339,\"\")","v":""},{"$f":"IF(DataLog!$C3339=\"Log value\",DataLog!M3339,\"\")","v":""},{"$f":"IF(DataLog!$C3339=\"Log value\",DataLog!N3339,\"\")","v":""},{"$f":"IF(DataLog!$C3339=\"Log value\",DataLog!O3339,\"\")","v":""},{"$f":"IF(DataLog!$C3339=\"Log value\",DataLog!P3339,\"\")","v":""},{"$f":"IF(DataLog!$C3339=\"Log value\",DataLog!Q3339,\"\")","v":""},{"$f":"IF(DataLog!$C3339=\"Log value\",DataLog!R3339,\"\")","v":""},{"$f":"IF(DataLog!$C3339=\"Log value\",DataLog!S3339,\"\")","v":""},{"$f":"IF(DataLog!$C3339=\"Log value\",DataLog!T3339,\"\")","v":""},{"$f":"IF(DataLog!$C3339=\"Log value\",DataLog!U3339,\"\")","v":""},{"$f":"IF(DataLog!$C3339=\"Log value\",DataLog!V3339,\"\")","v":""},{"$f":"IF(DataLog!$C3339=\"Log value\",DataLog!W3339,\"\")","v":""},{"$f":"IF(DataLog!$C3339=\"Log value\",DataLog!X3339,\"\")","v":""},{"$f":"IF(DataLog!$C3339=\"Log value\",DataLog!Y3339,\"\")","v":""},{"$f":"IF(DataLog!$C3339=\"Log value\",DataLog!Z3339,\"\")","v":""},{"$f":"IF(DataLog!$C3339=\"Log value\",DataLog!AA3339,\"\")","v":""},{"$f":"IF(DataLog!$C3339=\"Log value\",DataLog!AB3339,\"\")","v":""},{"$f":"IF(DataLog!$C3339=\"Log value\",DataLog!AC3339,\"\")","v":""},{"$f":"IF(DataLog!$C3339=\"Log value\",DataLog!AD3339,\"\")","v":""},{"$f":"IF(DataLog!$C3339=\"Log value\",DataLog!AE3339,\"\")","v":""},{"$f":"IF(DataLog!$C3339=\"Log value\",DataLog!AF3339,\"\")","v":""},{"$f":"IF(DataLog!$C3339=\"Log value\",DataLog!AG3339,\"\")","v":""},{"$f":"IF(DataLog!$C3339=\"Log value\",DataLog!AH3339,\"\")","v":""},{"$f":"IF(DataLog!$C3339=\"Log value\",DataLog!AI3339,\"\")","v":""},{"$f":"IF(DataLog!$C3339=\"Log value\",DataLog!AJ3339,\"\")","v":""},{"$f":"IF(DataLog!$C3339=\"Log value\",DataLog!AK3339,\"\")","v":""},{"$f":"IF(DataLog!$C3339=\"Log value\",DataLog!AL3339,\"\")","v":""},{"$f":"IF(DataLog!$C3339=\"Log value\",DataLog!AM3339,\"\")","v":""}]
[null,null,null,null,null,null,{"$f":"IF(DataLog!$C3340=\"Log value\",DataLog!D3340&\"_\"&TEXT(DataLog!B3340,\"åååå-mm-dd\"),\"\")","v":""},{"$f":"IF(DataLog!$C3340=\"Log value\",DataLog!E3340,\"\")","v":""},{"$f":"IF(DataLog!$C3340=\"Log value\",DataLog!F3340,\"\")","v":""},{"$f":"IF(DataLog!$C3340=\"Log value\",DataLog!G3340,\"\")","v":""},{"$f":"IF(DataLog!$C3340=\"Log value\",DataLog!H3340,\"\")","v":""},{"$f":"IF(DataLog!$C3340=\"Log value\",DataLog!I3340,\"\")","v":""},{"$f":"IF(DataLog!$C3340=\"Log value\",DataLog!J3340,\"\")","v":""},{"$f":"IF(DataLog!$C3340=\"Log value\",DataLog!K3340,\"\")","v":""},{"$f":"IF(DataLog!$C3340=\"Log value\",DataLog!L3340,\"\")","v":""},{"$f":"IF(DataLog!$C3340=\"Log value\",DataLog!M3340,\"\")","v":""},{"$f":"IF(DataLog!$C3340=\"Log value\",DataLog!N3340,\"\")","v":""},{"$f":"IF(DataLog!$C3340=\"Log value\",DataLog!O3340,\"\")","v":""},{"$f":"IF(DataLog!$C3340=\"Log value\",DataLog!P3340,\"\")","v":""},{"$f":"IF(DataLog!$C3340=\"Log value\",DataLog!Q3340,\"\")","v":""},{"$f":"IF(DataLog!$C3340=\"Log value\",DataLog!R3340,\"\")","v":""},{"$f":"IF(DataLog!$C3340=\"Log value\",DataLog!S3340,\"\")","v":""},{"$f":"IF(DataLog!$C3340=\"Log value\",DataLog!T3340,\"\")","v":""},{"$f":"IF(DataLog!$C3340=\"Log value\",DataLog!U3340,\"\")","v":""},{"$f":"IF(DataLog!$C3340=\"Log value\",DataLog!V3340,\"\")","v":""},{"$f":"IF(DataLog!$C3340=\"Log value\",DataLog!W3340,\"\")","v":""},{"$f":"IF(DataLog!$C3340=\"Log value\",DataLog!X3340,\"\")","v":""},{"$f":"IF(DataLog!$C3340=\"Log value\",DataLog!Y3340,\"\")","v":""},{"$f":"IF(DataLog!$C3340=\"Log value\",DataLog!Z3340,\"\")","v":""},{"$f":"IF(DataLog!$C3340=\"Log value\",DataLog!AA3340,\"\")","v":""},{"$f":"IF(DataLog!$C3340=\"Log value\",DataLog!AB3340,\"\")","v":""},{"$f":"IF(DataLog!$C3340=\"Log value\",DataLog!AC3340,\"\")","v":""},{"$f":"IF(DataLog!$C3340=\"Log value\",DataLog!AD3340,\"\")","v":""},{"$f":"IF(DataLog!$C3340=\"Log value\",DataLog!AE3340,\"\")","v":""},{"$f":"IF(DataLog!$C3340=\"Log value\",DataLog!AF3340,\"\")","v":""},{"$f":"IF(DataLog!$C3340=\"Log value\",DataLog!AG3340,\"\")","v":""},{"$f":"IF(DataLog!$C3340=\"Log value\",DataLog!AH3340,\"\")","v":""},{"$f":"IF(DataLog!$C3340=\"Log value\",DataLog!AI3340,\"\")","v":""},{"$f":"IF(DataLog!$C3340=\"Log value\",DataLog!AJ3340,\"\")","v":""},{"$f":"IF(DataLog!$C3340=\"Log value\",DataLog!AK3340,\"\")","v":""},{"$f":"IF(DataLog!$C3340=\"Log value\",DataLog!AL3340,\"\")","v":""},{"$f":"IF(DataLog!$C3340=\"Log value\",DataLog!AM3340,\"\")","v":""}]
[null,null,null,null,null,null,{"$f":"IF(DataLog!$C3341=\"Log value\",DataLog!D3341&\"_\"&TEXT(DataLog!B3341,\"åååå-mm-dd\"),\"\")","v":""},{"$f":"IF(DataLog!$C3341=\"Log value\",DataLog!E3341,\"\")","v":""},{"$f":"IF(DataLog!$C3341=\"Log value\",DataLog!F3341,\"\")","v":""},{"$f":"IF(DataLog!$C3341=\"Log value\",DataLog!G3341,\"\")","v":""},{"$f":"IF(DataLog!$C3341=\"Log value\",DataLog!H3341,\"\")","v":""},{"$f":"IF(DataLog!$C3341=\"Log value\",DataLog!I3341,\"\")","v":""},{"$f":"IF(DataLog!$C3341=\"Log value\",DataLog!J3341,\"\")","v":""},{"$f":"IF(DataLog!$C3341=\"Log value\",DataLog!K3341,\"\")","v":""},{"$f":"IF(DataLog!$C3341=\"Log value\",DataLog!L3341,\"\")","v":""},{"$f":"IF(DataLog!$C3341=\"Log value\",DataLog!M3341,\"\")","v":""},{"$f":"IF(DataLog!$C3341=\"Log value\",DataLog!N3341,\"\")","v":""},{"$f":"IF(DataLog!$C3341=\"Log value\",DataLog!O3341,\"\")","v":""},{"$f":"IF(DataLog!$C3341=\"Log value\",DataLog!P3341,\"\")","v":""},{"$f":"IF(DataLog!$C3341=\"Log value\",DataLog!Q3341,\"\")","v":""},{"$f":"IF(DataLog!$C3341=\"Log value\",DataLog!R3341,\"\")","v":""},{"$f":"IF(DataLog!$C3341=\"Log value\",DataLog!S3341,\"\")","v":""},{"$f":"IF(DataLog!$C3341=\"Log value\",DataLog!T3341,\"\")","v":""},{"$f":"IF(DataLog!$C3341=\"Log value\",DataLog!U3341,\"\")","v":""},{"$f":"IF(DataLog!$C3341=\"Log value\",DataLog!V3341,\"\")","v":""},{"$f":"IF(DataLog!$C3341=\"Log value\",DataLog!W3341,\"\")","v":""},{"$f":"IF(DataLog!$C3341=\"Log value\",DataLog!X3341,\"\")","v":""},{"$f":"IF(DataLog!$C3341=\"Log value\",DataLog!Y3341,\"\")","v":""},{"$f":"IF(DataLog!$C3341=\"Log value\",DataLog!Z3341,\"\")","v":""},{"$f":"IF(DataLog!$C3341=\"Log value\",DataLog!AA3341,\"\")","v":""},{"$f":"IF(DataLog!$C3341=\"Log value\",DataLog!AB3341,\"\")","v":""},{"$f":"IF(DataLog!$C3341=\"Log value\",DataLog!AC3341,\"\")","v":""},{"$f":"IF(DataLog!$C3341=\"Log value\",DataLog!AD3341,\"\")","v":""},{"$f":"IF(DataLog!$C3341=\"Log value\",DataLog!AE3341,\"\")","v":""},{"$f":"IF(DataLog!$C3341=\"Log value\",DataLog!AF3341,\"\")","v":""},{"$f":"IF(DataLog!$C3341=\"Log value\",DataLog!AG3341,\"\")","v":""},{"$f":"IF(DataLog!$C3341=\"Log value\",DataLog!AH3341,\"\")","v":""},{"$f":"IF(DataLog!$C3341=\"Log value\",DataLog!AI3341,\"\")","v":""},{"$f":"IF(DataLog!$C3341=\"Log value\",DataLog!AJ3341,\"\")","v":""},{"$f":"IF(DataLog!$C3341=\"Log value\",DataLog!AK3341,\"\")","v":""},{"$f":"IF(DataLog!$C3341=\"Log value\",DataLog!AL3341,\"\")","v":""},{"$f":"IF(DataLog!$C3341=\"Log value\",DataLog!AM3341,\"\")","v":""}]
[null,null,null,null,null,null,{"$f":"IF(DataLog!$C3342=\"Log value\",DataLog!D3342&\"_\"&TEXT(DataLog!B3342,\"åååå-mm-dd\"),\"\")","v":""},{"$f":"IF(DataLog!$C3342=\"Log value\",DataLog!E3342,\"\")","v":""},{"$f":"IF(DataLog!$C3342=\"Log value\",DataLog!F3342,\"\")","v":""},{"$f":"IF(DataLog!$C3342=\"Log value\",DataLog!G3342,\"\")","v":""},{"$f":"IF(DataLog!$C3342=\"Log value\",DataLog!H3342,\"\")","v":""},{"$f":"IF(DataLog!$C3342=\"Log value\",DataLog!I3342,\"\")","v":""},{"$f":"IF(DataLog!$C3342=\"Log value\",DataLog!J3342,\"\")","v":""},{"$f":"IF(DataLog!$C3342=\"Log value\",DataLog!K3342,\"\")","v":""},{"$f":"IF(DataLog!$C3342=\"Log value\",DataLog!L3342,\"\")","v":""},{"$f":"IF(DataLog!$C3342=\"Log value\",DataLog!M3342,\"\")","v":""},{"$f":"IF(DataLog!$C3342=\"Log value\",DataLog!N3342,\"\")","v":""},{"$f":"IF(DataLog!$C3342=\"Log value\",DataLog!O3342,\"\")","v":""},{"$f":"IF(DataLog!$C3342=\"Log value\",DataLog!P3342,\"\")","v":""},{"$f":"IF(DataLog!$C3342=\"Log value\",DataLog!Q3342,\"\")","v":""},{"$f":"IF(DataLog!$C3342=\"Log value\",DataLog!R3342,\"\")","v":""},{"$f":"IF(DataLog!$C3342=\"Log value\",DataLog!S3342,\"\")","v":""},{"$f":"IF(DataLog!$C3342=\"Log value\",DataLog!T3342,\"\")","v":""},{"$f":"IF(DataLog!$C3342=\"Log value\",DataLog!U3342,\"\")","v":""},{"$f":"IF(DataLog!$C3342=\"Log value\",DataLog!V3342,\"\")","v":""},{"$f":"IF(DataLog!$C3342=\"Log value\",DataLog!W3342,\"\")","v":""},{"$f":"IF(DataLog!$C3342=\"Log value\",DataLog!X3342,\"\")","v":""},{"$f":"IF(DataLog!$C3342=\"Log value\",DataLog!Y3342,\"\")","v":""},{"$f":"IF(DataLog!$C3342=\"Log value\",DataLog!Z3342,\"\")","v":""},{"$f":"IF(DataLog!$C3342=\"Log value\",DataLog!AA3342,\"\")","v":""},{"$f":"IF(DataLog!$C3342=\"Log value\",DataLog!AB3342,\"\")","v":""},{"$f":"IF(DataLog!$C3342=\"Log value\",DataLog!AC3342,\"\")","v":""},{"$f":"IF(DataLog!$C3342=\"Log value\",DataLog!AD3342,\"\")","v":""},{"$f":"IF(DataLog!$C3342=\"Log value\",DataLog!AE3342,\"\")","v":""},{"$f":"IF(DataLog!$C3342=\"Log value\",DataLog!AF3342,\"\")","v":""},{"$f":"IF(DataLog!$C3342=\"Log value\",DataLog!AG3342,\"\")","v":""},{"$f":"IF(DataLog!$C3342=\"Log value\",DataLog!AH3342,\"\")","v":""},{"$f":"IF(DataLog!$C3342=\"Log value\",DataLog!AI3342,\"\")","v":""},{"$f":"IF(DataLog!$C3342=\"Log value\",DataLog!AJ3342,\"\")","v":""},{"$f":"IF(DataLog!$C3342=\"Log value\",DataLog!AK3342,\"\")","v":""},{"$f":"IF(DataLog!$C3342=\"Log value\",DataLog!AL3342,\"\")","v":""},{"$f":"IF(DataLog!$C3342=\"Log value\",DataLog!AM3342,\"\")","v":""}]
[null,null,null,null,null,null,{"$f":"IF(DataLog!$C3343=\"Log value\",DataLog!D3343&\"_\"&TEXT(DataLog!B3343,\"åååå-mm-dd\"),\"\")","v":""},{"$f":"IF(DataLog!$C3343=\"Log value\",DataLog!E3343,\"\")","v":""},{"$f":"IF(DataLog!$C3343=\"Log value\",DataLog!F3343,\"\")","v":""},{"$f":"IF(DataLog!$C3343=\"Log value\",DataLog!G3343,\"\")","v":""},{"$f":"IF(DataLog!$C3343=\"Log value\",DataLog!H3343,\"\")","v":""},{"$f":"IF(DataLog!$C3343=\"Log value\",DataLog!I3343,\"\")","v":""},{"$f":"IF(DataLog!$C3343=\"Log value\",DataLog!J3343,\"\")","v":""},{"$f":"IF(DataLog!$C3343=\"Log value\",DataLog!K3343,\"\")","v":""},{"$f":"IF(DataLog!$C3343=\"Log value\",DataLog!L3343,\"\")","v":""},{"$f":"IF(DataLog!$C3343=\"Log value\",DataLog!M3343,\"\")","v":""},{"$f":"IF(DataLog!$C3343=\"Log value\",DataLog!N3343,\"\")","v":""},{"$f":"IF(DataLog!$C3343=\"Log value\",DataLog!O3343,\"\")","v":""},{"$f":"IF(DataLog!$C3343=\"Log value\",DataLog!P3343,\"\")","v":""},{"$f":"IF(DataLog!$C3343=\"Log value\",DataLog!Q3343,\"\")","v":""},{"$f":"IF(DataLog!$C3343=\"Log value\",DataLog!R3343,\"\")","v":""},{"$f":"IF(DataLog!$C3343=\"Log value\",DataLog!S3343,\"\")","v":""},{"$f":"IF(DataLog!$C3343=\"Log value\",DataLog!T3343,\"\")","v":""},{"$f":"IF(DataLog!$C3343=\"Log value\",DataLog!U3343,\"\")","v":""},{"$f":"IF(DataLog!$C3343=\"Log value\",DataLog!V3343,\"\")","v":""},{"$f":"IF(DataLog!$C3343=\"Log value\",DataLog!W3343,\"\")","v":""},{"$f":"IF(DataLog!$C3343=\"Log value\",DataLog!X3343,\"\")","v":""},{"$f":"IF(DataLog!$C3343=\"Log value\",DataLog!Y3343,\"\")","v":""},{"$f":"IF(DataLog!$C3343=\"Log value\",DataLog!Z3343,\"\")","v":""},{"$f":"IF(DataLog!$C3343=\"Log value\",DataLog!AA3343,\"\")","v":""},{"$f":"IF(DataLog!$C3343=\"Log value\",DataLog!AB3343,\"\")","v":""},{"$f":"IF(DataLog!$C3343=\"Log value\",DataLog!AC3343,\"\")","v":""},{"$f":"IF(DataLog!$C3343=\"Log value\",DataLog!AD3343,\"\")","v":""},{"$f":"IF(DataLog!$C3343=\"Log value\",DataLog!AE3343,\"\")","v":""},{"$f":"IF(DataLog!$C3343=\"Log value\",DataLog!AF3343,\"\")","v":""},{"$f":"IF(DataLog!$C3343=\"Log value\",DataLog!AG3343,\"\")","v":""},{"$f":"IF(DataLog!$C3343=\"Log value\",DataLog!AH3343,\"\")","v":""},{"$f":"IF(DataLog!$C3343=\"Log value\",DataLog!AI3343,\"\")","v":""},{"$f":"IF(DataLog!$C3343=\"Log value\",DataLog!AJ3343,\"\")","v":""},{"$f":"IF(DataLog!$C3343=\"Log value\",DataLog!AK3343,\"\")","v":""},{"$f":"IF(DataLog!$C3343=\"Log value\",DataLog!AL3343,\"\")","v":""},{"$f":"IF(DataLog!$C3343=\"Log value\",DataLog!AM3343,\"\")","v":""}]
[null,null,null,null,null,null,{"$f":"IF(DataLog!$C3344=\"Log value\",DataLog!D3344&\"_\"&TEXT(DataLog!B3344,\"åååå-mm-dd\"),\"\")","v":""},{"$f":"IF(DataLog!$C3344=\"Log value\",DataLog!E3344,\"\")","v":""},{"$f":"IF(DataLog!$C3344=\"Log value\",DataLog!F3344,\"\")","v":""},{"$f":"IF(DataLog!$C3344=\"Log value\",DataLog!G3344,\"\")","v":""},{"$f":"IF(DataLog!$C3344=\"Log value\",DataLog!H3344,\"\")","v":""},{"$f":"IF(DataLog!$C3344=\"Log value\",DataLog!I3344,\"\")","v":""},{"$f":"IF(DataLog!$C3344=\"Log value\",DataLog!J3344,\"\")","v":""},{"$f":"IF(DataLog!$C3344=\"Log value\",DataLog!K3344,\"\")","v":""},{"$f":"IF(DataLog!$C3344=\"Log value\",DataLog!L3344,\"\")","v":""},{"$f":"IF(DataLog!$C3344=\"Log value\",DataLog!M3344,\"\")","v":""},{"$f":"IF(DataLog!$C3344=\"Log value\",DataLog!N3344,\"\")","v":""},{"$f":"IF(DataLog!$C3344=\"Log value\",DataLog!O3344,\"\")","v":""},{"$f":"IF(DataLog!$C3344=\"Log value\",DataLog!P3344,\"\")","v":""},{"$f":"IF(DataLog!$C3344=\"Log value\",DataLog!Q3344,\"\")","v":""},{"$f":"IF(DataLog!$C3344=\"Log value\",DataLog!R3344,\"\")","v":""},{"$f":"IF(DataLog!$C3344=\"Log value\",DataLog!S3344,\"\")","v":""},{"$f":"IF(DataLog!$C3344=\"Log value\",DataLog!T3344,\"\")","v":""},{"$f":"IF(DataLog!$C3344=\"Log value\",DataLog!U3344,\"\")","v":""},{"$f":"IF(DataLog!$C3344=\"Log value\",DataLog!V3344,\"\")","v":""},{"$f":"IF(DataLog!$C3344=\"Log value\",DataLog!W3344,\"\")","v":""},{"$f":"IF(DataLog!$C3344=\"Log value\",DataLog!X3344,\"\")","v":""},{"$f":"IF(DataLog!$C3344=\"Log value\",DataLog!Y3344,\"\")","v":""},{"$f":"IF(DataLog!$C3344=\"Log value\",DataLog!Z3344,\"\")","v":""},{"$f":"IF(DataLog!$C3344=\"Log value\",DataLog!AA3344,\"\")","v":""},{"$f":"IF(DataLog!$C3344=\"Log value\",DataLog!AB3344,\"\")","v":""},{"$f":"IF(DataLog!$C3344=\"Log value\",DataLog!AC3344,\"\")","v":""},{"$f":"IF(DataLog!$C3344=\"Log value\",DataLog!AD3344,\"\")","v":""},{"$f":"IF(DataLog!$C3344=\"Log value\",DataLog!AE3344,\"\")","v":""},{"$f":"IF(DataLog!$C3344=\"Log value\",DataLog!AF3344,\"\")","v":""},{"$f":"IF(DataLog!$C3344=\"Log value\",DataLog!AG3344,\"\")","v":""},{"$f":"IF(DataLog!$C3344=\"Log value\",DataLog!AH3344,\"\")","v":""},{"$f":"IF(DataLog!$C3344=\"Log value\",DataLog!AI3344,\"\")","v":""},{"$f":"IF(DataLog!$C3344=\"Log value\",DataLog!AJ3344,\"\")","v":""},{"$f":"IF(DataLog!$C3344=\"Log value\",DataLog!AK3344,\"\")","v":""},{"$f":"IF(DataLog!$C3344=\"Log value\",DataLog!AL3344,\"\")","v":""},{"$f":"IF(DataLog!$C3344=\"Log value\",DataLog!AM3344,\"\")","v":""}]
[null,null,null,null,null,null,{"$f":"IF(DataLog!$C3345=\"Log value\",DataLog!D3345&\"_\"&TEXT(DataLog!B3345,\"åååå-mm-dd\"),\"\")","v":""},{"$f":"IF(DataLog!$C3345=\"Log value\",DataLog!E3345,\"\")","v":""},{"$f":"IF(DataLog!$C3345=\"Log value\",DataLog!F3345,\"\")","v":""},{"$f":"IF(DataLog!$C3345=\"Log value\",DataLog!G3345,\"\")","v":""},{"$f":"IF(DataLog!$C3345=\"Log value\",DataLog!H3345,\"\")","v":""},{"$f":"IF(DataLog!$C3345=\"Log value\",DataLog!I3345,\"\")","v":""},{"$f":"IF(DataLog!$C3345=\"Log value\",DataLog!J3345,\"\")","v":""},{"$f":"IF(DataLog!$C3345=\"Log value\",DataLog!K3345,\"\")","v":""},{"$f":"IF(DataLog!$C3345=\"Log value\",DataLog!L3345,\"\")","v":""},{"$f":"IF(DataLog!$C3345=\"Log value\",DataLog!M3345,\"\")","v":""},{"$f":"IF(DataLog!$C3345=\"Log value\",DataLog!N3345,\"\")","v":""},{"$f":"IF(DataLog!$C3345=\"Log value\",DataLog!O3345,\"\")","v":""},{"$f":"IF(DataLog!$C3345=\"Log value\",DataLog!P3345,\"\")","v":""},{"$f":"IF(DataLog!$C3345=\"Log value\",DataLog!Q3345,\"\")","v":""},{"$f":"IF(DataLog!$C3345=\"Log value\",DataLog!R3345,\"\")","v":""},{"$f":"IF(DataLog!$C3345=\"Log value\",DataLog!S3345,\"\")","v":""},{"$f":"IF(DataLog!$C3345=\"Log value\",DataLog!T3345,\"\")","v":""},{"$f":"IF(DataLog!$C3345=\"Log value\",DataLog!U3345,\"\")","v":""},{"$f":"IF(DataLog!$C3345=\"Log value\",DataLog!V3345,\"\")","v":""},{"$f":"IF(DataLog!$C3345=\"Log value\",DataLog!W3345,\"\")","v":""},{"$f":"IF(DataLog!$C3345=\"Log value\",DataLog!X3345,\"\")","v":""},{"$f":"IF(DataLog!$C3345=\"Log value\",DataLog!Y3345,\"\")","v":""},{"$f":"IF(DataLog!$C3345=\"Log value\",DataLog!Z3345,\"\")","v":""},{"$f":"IF(DataLog!$C3345=\"Log value\",DataLog!AA3345,\"\")","v":""},{"$f":"IF(DataLog!$C3345=\"Log value\",DataLog!AB3345,\"\")","v":""},{"$f":"IF(DataLog!$C3345=\"Log value\",DataLog!AC3345,\"\")","v":""},{"$f":"IF(DataLog!$C3345=\"Log value\",DataLog!AD3345,\"\")","v":""},{"$f":"IF(DataLog!$C3345=\"Log value\",DataLog!AE3345,\"\")","v":""},{"$f":"IF(DataLog!$C3345=\"Log value\",DataLog!AF3345,\"\")","v":""},{"$f":"IF(DataLog!$C3345=\"Log value\",DataLog!AG3345,\"\")","v":""},{"$f":"IF(DataLog!$C3345=\"Log value\",DataLog!AH3345,\"\")","v":""},{"$f":"IF(DataLog!$C3345=\"Log value\",DataLog!AI3345,\"\")","v":""},{"$f":"IF(DataLog!$C3345=\"Log value\",DataLog!AJ3345,\"\")","v":""},{"$f":"IF(DataLog!$C3345=\"Log value\",DataLog!AK3345,\"\")","v":""},{"$f":"IF(DataLog!$C3345=\"Log value\",DataLog!AL3345,\"\")","v":""},{"$f":"IF(DataLog!$C3345=\"Log value\",DataLog!AM3345,\"\")","v":""}]
[null,null,null,null,null,null,{"$f":"IF(DataLog!$C3346=\"Log value\",DataLog!D3346&\"_\"&TEXT(DataLog!B3346,\"åååå-mm-dd\"),\"\")","v":""},{"$f":"IF(DataLog!$C3346=\"Log value\",DataLog!E3346,\"\")","v":""},{"$f":"IF(DataLog!$C3346=\"Log value\",DataLog!F3346,\"\")","v":""},{"$f":"IF(DataLog!$C3346=\"Log value\",DataLog!G3346,\"\")","v":""},{"$f":"IF(DataLog!$C3346=\"Log value\",DataLog!H3346,\"\")","v":""},{"$f":"IF(DataLog!$C3346=\"Log value\",DataLog!I3346,\"\")","v":""},{"$f":"IF(DataLog!$C3346=\"Log value\",DataLog!J3346,\"\")","v":""},{"$f":"IF(DataLog!$C3346=\"Log value\",DataLog!K3346,\"\")","v":""},{"$f":"IF(DataLog!$C3346=\"Log value\",DataLog!L3346,\"\")","v":""},{"$f":"IF(DataLog!$C3346=\"Log value\",DataLog!M3346,\"\")","v":""},{"$f":"IF(DataLog!$C3346=\"Log value\",DataLog!N3346,\"\")","v":""},{"$f":"IF(DataLog!$C3346=\"Log value\",DataLog!O3346,\"\")","v":""},{"$f":"IF(DataLog!$C3346=\"Log value\",DataLog!P3346,\"\")","v":""},{"$f":"IF(DataLog!$C3346=\"Log value\",DataLog!Q3346,\"\")","v":""},{"$f":"IF(DataLog!$C3346=\"Log value\",DataLog!R3346,\"\")","v":""},{"$f":"IF(DataLog!$C3346=\"Log value\",DataLog!S3346,\"\")","v":""},{"$f":"IF(DataLog!$C3346=\"Log value\",DataLog!T3346,\"\")","v":""},{"$f":"IF(DataLog!$C3346=\"Log value\",DataLog!U3346,\"\")","v":""},{"$f":"IF(DataLog!$C3346=\"Log value\",DataLog!V3346,\"\")","v":""},{"$f":"IF(DataLog!$C3346=\"Log value\",DataLog!W3346,\"\")","v":""},{"$f":"IF(DataLog!$C3346=\"Log value\",DataLog!X3346,\"\")","v":""},{"$f":"IF(DataLog!$C3346=\"Log value\",DataLog!Y3346,\"\")","v":""},{"$f":"IF(DataLog!$C3346=\"Log value\",DataLog!Z3346,\"\")","v":""},{"$f":"IF(DataLog!$C3346=\"Log value\",DataLog!AA3346,\"\")","v":""},{"$f":"IF(DataLog!$C3346=\"Log value\",DataLog!AB3346,\"\")","v":""},{"$f":"IF(DataLog!$C3346=\"Log value\",DataLog!AC3346,\"\")","v":""},{"$f":"IF(DataLog!$C3346=\"Log value\",DataLog!AD3346,\"\")","v":""},{"$f":"IF(DataLog!$C3346=\"Log value\",DataLog!AE3346,\"\")","v":""},{"$f":"IF(DataLog!$C3346=\"Log value\",DataLog!AF3346,\"\")","v":""},{"$f":"IF(DataLog!$C3346=\"Log value\",DataLog!AG3346,\"\")","v":""},{"$f":"IF(DataLog!$C3346=\"Log value\",DataLog!AH3346,\"\")","v":""},{"$f":"IF(DataLog!$C3346=\"Log value\",DataLog!AI3346,\"\")","v":""},{"$f":"IF(DataLog!$C3346=\"Log value\",DataLog!AJ3346,\"\")","v":""},{"$f":"IF(DataLog!$C3346=\"Log value\",DataLog!AK3346,\"\")","v":""},{"$f":"IF(DataLog!$C3346=\"Log value\",DataLog!AL3346,\"\")","v":""},{"$f":"IF(DataLog!$C3346=\"Log value\",DataLog!AM3346,\"\")","v":""}]
[null,null,null,null,null,null,{"$f":"IF(DataLog!$C3347=\"Log value\",DataLog!D3347&\"_\"&TEXT(DataLog!B3347,\"åååå-mm-dd\"),\"\")","v":""},{"$f":"IF(DataLog!$C3347=\"Log value\",DataLog!E3347,\"\")","v":""},{"$f":"IF(DataLog!$C3347=\"Log value\",DataLog!F3347,\"\")","v":""},{"$f":"IF(DataLog!$C3347=\"Log value\",DataLog!G3347,\"\")","v":""},{"$f":"IF(DataLog!$C3347=\"Log value\",DataLog!H3347,\"\")","v":""},{"$f":"IF(DataLog!$C3347=\"Log value\",DataLog!I3347,\"\")","v":""},{"$f":"IF(DataLog!$C3347=\"Log value\",DataLog!J3347,\"\")","v":""},{"$f":"IF(DataLog!$C3347=\"Log value\",DataLog!K3347,\"\")","v":""},{"$f":"IF(DataLog!$C3347=\"Log value\",DataLog!L3347,\"\")","v":""},{"$f":"IF(DataLog!$C3347=\"Log value\",DataLog!M3347,\"\")","v":""},{"$f":"IF(DataLog!$C3347=\"Log value\",DataLog!N3347,\"\")","v":""},{"$f":"IF(DataLog!$C3347=\"Log value\",DataLog!O3347,\"\")","v":""},{"$f":"IF(DataLog!$C3347=\"Log value\",DataLog!P3347,\"\")","v":""},{"$f":"IF(DataLog!$C3347=\"Log value\",DataLog!Q3347,\"\")","v":""},{"$f":"IF(DataLog!$C3347=\"Log value\",DataLog!R3347,\"\")","v":""},{"$f":"IF(DataLog!$C3347=\"Log value\",DataLog!S3347,\"\")","v":""},{"$f":"IF(DataLog!$C3347=\"Log value\",DataLog!T3347,\"\")","v":""},{"$f":"IF(DataLog!$C3347=\"Log value\",DataLog!U3347,\"\")","v":""},{"$f":"IF(DataLog!$C3347=\"Log value\",DataLog!V3347,\"\")","v":""},{"$f":"IF(DataLog!$C3347=\"Log value\",DataLog!W3347,\"\")","v":""},{"$f":"IF(DataLog!$C3347=\"Log value\",DataLog!X3347,\"\")","v":""},{"$f":"IF(DataLog!$C3347=\"Log value\",DataLog!Y3347,\"\")","v":""},{"$f":"IF(DataLog!$C3347=\"Log value\",DataLog!Z3347,\"\")","v":""},{"$f":"IF(DataLog!$C3347=\"Log value\",DataLog!AA3347,\"\")","v":""},{"$f":"IF(DataLog!$C3347=\"Log value\",DataLog!AB3347,\"\")","v":""},{"$f":"IF(DataLog!$C3347=\"Log value\",DataLog!AC3347,\"\")","v":""},{"$f":"IF(DataLog!$C3347=\"Log value\",DataLog!AD3347,\"\")","v":""},{"$f":"IF(DataLog!$C3347=\"Log value\",DataLog!AE3347,\"\")","v":""},{"$f":"IF(DataLog!$C3347=\"Log value\",DataLog!AF3347,\"\")","v":""},{"$f":"IF(DataLog!$C3347=\"Log value\",DataLog!AG3347,\"\")","v":""},{"$f":"IF(DataLog!$C3347=\"Log value\",DataLog!AH3347,\"\")","v":""},{"$f":"IF(DataLog!$C3347=\"Log value\",DataLog!AI3347,\"\")","v":""},{"$f":"IF(DataLog!$C3347=\"Log value\",DataLog!AJ3347,\"\")","v":""},{"$f":"IF(DataLog!$C3347=\"Log value\",DataLog!AK3347,\"\")","v":""},{"$f":"IF(DataLog!$C3347=\"Log value\",DataLog!AL3347,\"\")","v":""},{"$f":"IF(DataLog!$C3347=\"Log value\",DataLog!AM3347,\"\")","v":""}]
[null,null,null,null,null,null,{"$f":"IF(DataLog!$C3348=\"Log value\",DataLog!D3348&\"_\"&TEXT(DataLog!B3348,\"åååå-mm-dd\"),\"\")","v":""},{"$f":"IF(DataLog!$C3348=\"Log value\",DataLog!E3348,\"\")","v":""},{"$f":"IF(DataLog!$C3348=\"Log value\",DataLog!F3348,\"\")","v":""},{"$f":"IF(DataLog!$C3348=\"Log value\",DataLog!G3348,\"\")","v":""},{"$f":"IF(DataLog!$C3348=\"Log value\",DataLog!H3348,\"\")","v":""},{"$f":"IF(DataLog!$C3348=\"Log value\",DataLog!I3348,\"\")","v":""},{"$f":"IF(DataLog!$C3348=\"Log value\",DataLog!J3348,\"\")","v":""},{"$f":"IF(DataLog!$C3348=\"Log value\",DataLog!K3348,\"\")","v":""},{"$f":"IF(DataLog!$C3348=\"Log value\",DataLog!L3348,\"\")","v":""},{"$f":"IF(DataLog!$C3348=\"Log value\",DataLog!M3348,\"\")","v":""},{"$f":"IF(DataLog!$C3348=\"Log value\",DataLog!N3348,\"\")","v":""},{"$f":"IF(DataLog!$C3348=\"Log value\",DataLog!O3348,\"\")","v":""},{"$f":"IF(DataLog!$C3348=\"Log value\",DataLog!P3348,\"\")","v":""},{"$f":"IF(DataLog!$C3348=\"Log value\",DataLog!Q3348,\"\")","v":""},{"$f":"IF(DataLog!$C3348=\"Log value\",DataLog!R3348,\"\")","v":""},{"$f":"IF(DataLog!$C3348=\"Log value\",DataLog!S3348,\"\")","v":""},{"$f":"IF(DataLog!$C3348=\"Log value\",DataLog!T3348,\"\")","v":""},{"$f":"IF(DataLog!$C3348=\"Log value\",DataLog!U3348,\"\")","v":""},{"$f":"IF(DataLog!$C3348=\"Log value\",DataLog!V3348,\"\")","v":""},{"$f":"IF(DataLog!$C3348=\"Log value\",DataLog!W3348,\"\")","v":""},{"$f":"IF(DataLog!$C3348=\"Log value\",DataLog!X3348,\"\")","v":""},{"$f":"IF(DataLog!$C3348=\"Log value\",DataLog!Y3348,\"\")","v":""},{"$f":"IF(DataLog!$C3348=\"Log value\",DataLog!Z3348,\"\")","v":""},{"$f":"IF(DataLog!$C3348=\"Log value\",DataLog!AA3348,\"\")","v":""},{"$f":"IF(DataLog!$C3348=\"Log value\",DataLog!AB3348,\"\")","v":""},{"$f":"IF(DataLog!$C3348=\"Log value\",DataLog!AC3348,\"\")","v":""},{"$f":"IF(DataLog!$C3348=\"Log value\",DataLog!AD3348,\"\")","v":""},{"$f":"IF(DataLog!$C3348=\"Log value\",DataLog!AE3348,\"\")","v":""},{"$f":"IF(DataLog!$C3348=\"Log value\",DataLog!AF3348,\"\")","v":""},{"$f":"IF(DataLog!$C3348=\"Log value\",DataLog!AG3348,\"\")","v":""},{"$f":"IF(DataLog!$C3348=\"Log value\",DataLog!AH3348,\"\")","v":""},{"$f":"IF(DataLog!$C3348=\"Log value\",DataLog!AI3348,\"\")","v":""},{"$f":"IF(DataLog!$C3348=\"Log value\",DataLog!AJ3348,\"\")","v":""},{"$f":"IF(DataLog!$C3348=\"Log value\",DataLog!AK3348,\"\")","v":""},{"$f":"IF(DataLog!$C3348=\"Log value\",DataLog!AL3348,\"\")","v":""},{"$f":"IF(DataLog!$C3348=\"Log value\",DataLog!AM3348,\"\")","v":""}]
[null,null,null,null,null,null,{"$f":"IF(DataLog!$C3349=\"Log value\",DataLog!D3349&\"_\"&TEXT(DataLog!B3349,\"åååå-mm-dd\"),\"\")","v":""},{"$f":"IF(DataLog!$C3349=\"Log value\",DataLog!E3349,\"\")","v":""},{"$f":"IF(DataLog!$C3349=\"Log value\",DataLog!F3349,\"\")","v":""},{"$f":"IF(DataLog!$C3349=\"Log value\",DataLog!G3349,\"\")","v":""},{"$f":"IF(DataLog!$C3349=\"Log value\",DataLog!H3349,\"\")","v":""},{"$f":"IF(DataLog!$C3349=\"Log value\",DataLog!I3349,\"\")","v":""},{"$f":"IF(DataLog!$C3349=\"Log value\",DataLog!J3349,\"\")","v":""},{"$f":"IF(DataLog!$C3349=\"Log value\",DataLog!K3349,\"\")","v":""},{"$f":"IF(DataLog!$C3349=\"Log value\",DataLog!L3349,\"\")","v":""},{"$f":"IF(DataLog!$C3349=\"Log value\",DataLog!M3349,\"\")","v":""},{"$f":"IF(DataLog!$C3349=\"Log value\",DataLog!N3349,\"\")","v":""},{"$f":"IF(DataLog!$C3349=\"Log value\",DataLog!O3349,\"\")","v":""},{"$f":"IF(DataLog!$C3349=\"Log value\",DataLog!P3349,\"\")","v":""},{"$f":"IF(DataLog!$C3349=\"Log value\",DataLog!Q3349,\"\")","v":""},{"$f":"IF(DataLog!$C3349=\"Log value\",DataLog!R3349,\"\")","v":""},{"$f":"IF(DataLog!$C3349=\"Log value\",DataLog!S3349,\"\")","v":""},{"$f":"IF(DataLog!$C3349=\"Log value\",DataLog!T3349,\"\")","v":""},{"$f":"IF(DataLog!$C3349=\"Log value\",DataLog!U3349,\"\")","v":""},{"$f":"IF(DataLog!$C3349=\"Log value\",DataLog!V3349,\"\")","v":""},{"$f":"IF(DataLog!$C3349=\"Log value\",DataLog!W3349,\"\")","v":""},{"$f":"IF(DataLog!$C3349=\"Log value\",DataLog!X3349,\"\")","v":""},{"$f":"IF(DataLog!$C3349=\"Log value\",DataLog!Y3349,\"\")","v":""},{"$f":"IF(DataLog!$C3349=\"Log value\",DataLog!Z3349,\"\")","v":""},{"$f":"IF(DataLog!$C3349=\"Log value\",DataLog!AA3349,\"\")","v":""},{"$f":"IF(DataLog!$C3349=\"Log value\",DataLog!AB3349,\"\")","v":""},{"$f":"IF(DataLog!$C3349=\"Log value\",DataLog!AC3349,\"\")","v":""},{"$f":"IF(DataLog!$C3349=\"Log value\",DataLog!AD3349,\"\")","v":""},{"$f":"IF(DataLog!$C3349=\"Log value\",DataLog!AE3349,\"\")","v":""},{"$f":"IF(DataLog!$C3349=\"Log value\",DataLog!AF3349,\"\")","v":""},{"$f":"IF(DataLog!$C3349=\"Log value\",DataLog!AG3349,\"\")","v":""},{"$f":"IF(DataLog!$C3349=\"Log value\",DataLog!AH3349,\"\")","v":""},{"$f":"IF(DataLog!$C3349=\"Log value\",DataLog!AI3349,\"\")","v":""},{"$f":"IF(DataLog!$C3349=\"Log value\",DataLog!AJ3349,\"\")","v":""},{"$f":"IF(DataLog!$C3349=\"Log value\",DataLog!AK3349,\"\")","v":""},{"$f":"IF(DataLog!$C3349=\"Log value\",DataLog!AL3349,\"\")","v":""},{"$f":"IF(DataLog!$C3349=\"Log value\",DataLog!AM3349,\"\")","v":""}]
[null,null,null,null,null,null,{"$f":"IF(DataLog!$C3350=\"Log value\",DataLog!D3350&\"_\"&TEXT(DataLog!B3350,\"åååå-mm-dd\"),\"\")","v":""},{"$f":"IF(DataLog!$C3350=\"Log value\",DataLog!E3350,\"\")","v":""},{"$f":"IF(DataLog!$C3350=\"Log value\",DataLog!F3350,\"\")","v":""},{"$f":"IF(DataLog!$C3350=\"Log value\",DataLog!G3350,\"\")","v":""},{"$f":"IF(DataLog!$C3350=\"Log value\",DataLog!H3350,\"\")","v":""},{"$f":"IF(DataLog!$C3350=\"Log value\",DataLog!I3350,\"\")","v":""},{"$f":"IF(DataLog!$C3350=\"Log value\",DataLog!J3350,\"\")","v":""},{"$f":"IF(DataLog!$C3350=\"Log value\",DataLog!K3350,\"\")","v":""},{"$f":"IF(DataLog!$C3350=\"Log value\",DataLog!L3350,\"\")","v":""},{"$f":"IF(DataLog!$C3350=\"Log value\",DataLog!M3350,\"\")","v":""},{"$f":"IF(DataLog!$C3350=\"Log value\",DataLog!N3350,\"\")","v":""},{"$f":"IF(DataLog!$C3350=\"Log value\",DataLog!O3350,\"\")","v":""},{"$f":"IF(DataLog!$C3350=\"Log value\",DataLog!P3350,\"\")","v":""},{"$f":"IF(DataLog!$C3350=\"Log value\",DataLog!Q3350,\"\")","v":""},{"$f":"IF(DataLog!$C3350=\"Log value\",DataLog!R3350,\"\")","v":""},{"$f":"IF(DataLog!$C3350=\"Log value\",DataLog!S3350,\"\")","v":""},{"$f":"IF(DataLog!$C3350=\"Log value\",DataLog!T3350,\"\")","v":""},{"$f":"IF(DataLog!$C3350=\"Log value\",DataLog!U3350,\"\")","v":""},{"$f":"IF(DataLog!$C3350=\"Log value\",DataLog!V3350,\"\")","v":""},{"$f":"IF(DataLog!$C3350=\"Log value\",DataLog!W3350,\"\")","v":""},{"$f":"IF(DataLog!$C3350=\"Log value\",DataLog!X3350,\"\")","v":""},{"$f":"IF(DataLog!$C3350=\"Log value\",DataLog!Y3350,\"\")","v":""},{"$f":"IF(DataLog!$C3350=\"Log value\",DataLog!Z3350,\"\")","v":""},{"$f":"IF(DataLog!$C3350=\"Log value\",DataLog!AA3350,\"\")","v":""},{"$f":"IF(DataLog!$C3350=\"Log value\",DataLog!AB3350,\"\")","v":""},{"$f":"IF(DataLog!$C3350=\"Log value\",DataLog!AC3350,\"\")","v":""},{"$f":"IF(DataLog!$C3350=\"Log value\",DataLog!AD3350,\"\")","v":""},{"$f":"IF(DataLog!$C3350=\"Log value\",DataLog!AE3350,\"\")","v":""},{"$f":"IF(DataLog!$C3350=\"Log value\",DataLog!AF3350,\"\")","v":""},{"$f":"IF(DataLog!$C3350=\"Log value\",DataLog!AG3350,\"\")","v":""},{"$f":"IF(DataLog!$C3350=\"Log value\",DataLog!AH3350,\"\")","v":""},{"$f":"IF(DataLog!$C3350=\"Log value\",DataLog!AI3350,\"\")","v":""},{"$f":"IF(DataLog!$C3350=\"Log value\",DataLog!AJ3350,\"\")","v":""},{"$f":"IF(DataLog!$C3350=\"Log value\",DataLog!AK3350,\"\")","v":""},{"$f":"IF(DataLog!$C3350=\"Log value\",DataLog!AL3350,\"\")","v":""},{"$f":"IF(DataLog!$C3350=\"Log value\",DataLog!AM3350,\"\")","v":""}]
[null,null,null,null,null,null,{"$f":"IF(DataLog!$C3351=\"Log value\",DataLog!D3351&\"_\"&TEXT(DataLog!B3351,\"åååå-mm-dd\"),\"\")","v":""},{"$f":"IF(DataLog!$C3351=\"Log value\",DataLog!E3351,\"\")","v":""},{"$f":"IF(DataLog!$C3351=\"Log value\",DataLog!F3351,\"\")","v":""},{"$f":"IF(DataLog!$C3351=\"Log value\",DataLog!G3351,\"\")","v":""},{"$f":"IF(DataLog!$C3351=\"Log value\",DataLog!H3351,\"\")","v":""},{"$f":"IF(DataLog!$C3351=\"Log value\",DataLog!I3351,\"\")","v":""},{"$f":"IF(DataLog!$C3351=\"Log value\",DataLog!J3351,\"\")","v":""},{"$f":"IF(DataLog!$C3351=\"Log value\",DataLog!K3351,\"\")","v":""},{"$f":"IF(DataLog!$C3351=\"Log value\",DataLog!L3351,\"\")","v":""},{"$f":"IF(DataLog!$C3351=\"Log value\",DataLog!M3351,\"\")","v":""},{"$f":"IF(DataLog!$C3351=\"Log value\",DataLog!N3351,\"\")","v":""},{"$f":"IF(DataLog!$C3351=\"Log value\",DataLog!O3351,\"\")","v":""},{"$f":"IF(DataLog!$C3351=\"Log value\",DataLog!P3351,\"\")","v":""},{"$f":"IF(DataLog!$C3351=\"Log value\",DataLog!Q3351,\"\")","v":""},{"$f":"IF(DataLog!$C3351=\"Log value\",DataLog!R3351,\"\")","v":""},{"$f":"IF(DataLog!$C3351=\"Log value\",DataLog!S3351,\"\")","v":""},{"$f":"IF(DataLog!$C3351=\"Log value\",DataLog!T3351,\"\")","v":""},{"$f":"IF(DataLog!$C3351=\"Log value\",DataLog!U3351,\"\")","v":""},{"$f":"IF(DataLog!$C3351=\"Log value\",DataLog!V3351,\"\")","v":""},{"$f":"IF(DataLog!$C3351=\"Log value\",DataLog!W3351,\"\")","v":""},{"$f":"IF(DataLog!$C3351=\"Log value\",DataLog!X3351,\"\")","v":""},{"$f":"IF(DataLog!$C3351=\"Log value\",DataLog!Y3351,\"\")","v":""},{"$f":"IF(DataLog!$C3351=\"Log value\",DataLog!Z3351,\"\")","v":""},{"$f":"IF(DataLog!$C3351=\"Log value\",DataLog!AA3351,\"\")","v":""},{"$f":"IF(DataLog!$C3351=\"Log value\",DataLog!AB3351,\"\")","v":""},{"$f":"IF(DataLog!$C3351=\"Log value\",DataLog!AC3351,\"\")","v":""},{"$f":"IF(DataLog!$C3351=\"Log value\",DataLog!AD3351,\"\")","v":""},{"$f":"IF(DataLog!$C3351=\"Log value\",DataLog!AE3351,\"\")","v":""},{"$f":"IF(DataLog!$C3351=\"Log value\",DataLog!AF3351,\"\")","v":""},{"$f":"IF(DataLog!$C3351=\"Log value\",DataLog!AG3351,\"\")","v":""},{"$f":"IF(DataLog!$C3351=\"Log value\",DataLog!AH3351,\"\")","v":""},{"$f":"IF(DataLog!$C3351=\"Log value\",DataLog!AI3351,\"\")","v":""},{"$f":"IF(DataLog!$C3351=\"Log value\",DataLog!AJ3351,\"\")","v":""},{"$f":"IF(DataLog!$C3351=\"Log value\",DataLog!AK3351,\"\")","v":""},{"$f":"IF(DataLog!$C3351=\"Log value\",DataLog!AL3351,\"\")","v":""},{"$f":"IF(DataLog!$C3351=\"Log value\",DataLog!AM3351,\"\")","v":""}]
[null,null,null,null,null,null,{"$f":"IF(DataLog!$C3352=\"Log value\",DataLog!D3352&\"_\"&TEXT(DataLog!B3352,\"åååå-mm-dd\"),\"\")","v":""},{"$f":"IF(DataLog!$C3352=\"Log value\",DataLog!E3352,\"\")","v":""},{"$f":"IF(DataLog!$C3352=\"Log value\",DataLog!F3352,\"\")","v":""},{"$f":"IF(DataLog!$C3352=\"Log value\",DataLog!G3352,\"\")","v":""},{"$f":"IF(DataLog!$C3352=\"Log value\",DataLog!H3352,\"\")","v":""},{"$f":"IF(DataLog!$C3352=\"Log value\",DataLog!I3352,\"\")","v":""},{"$f":"IF(DataLog!$C3352=\"Log value\",DataLog!J3352,\"\")","v":""},{"$f":"IF(DataLog!$C3352=\"Log value\",DataLog!K3352,\"\")","v":""},{"$f":"IF(DataLog!$C3352=\"Log value\",DataLog!L3352,\"\")","v":""},{"$f":"IF(DataLog!$C3352=\"Log value\",DataLog!M3352,\"\")","v":""},{"$f":"IF(DataLog!$C3352=\"Log value\",DataLog!N3352,\"\")","v":""},{"$f":"IF(DataLog!$C3352=\"Log value\",DataLog!O3352,\"\")","v":""},{"$f":"IF(DataLog!$C3352=\"Log value\",DataLog!P3352,\"\")","v":""},{"$f":"IF(DataLog!$C3352=\"Log value\",DataLog!Q3352,\"\")","v":""},{"$f":"IF(DataLog!$C3352=\"Log value\",DataLog!R3352,\"\")","v":""},{"$f":"IF(DataLog!$C3352=\"Log value\",DataLog!S3352,\"\")","v":""},{"$f":"IF(DataLog!$C3352=\"Log value\",DataLog!T3352,\"\")","v":""},{"$f":"IF(DataLog!$C3352=\"Log value\",DataLog!U3352,\"\")","v":""},{"$f":"IF(DataLog!$C3352=\"Log value\",DataLog!V3352,\"\")","v":""},{"$f":"IF(DataLog!$C3352=\"Log value\",DataLog!W3352,\"\")","v":""},{"$f":"IF(DataLog!$C3352=\"Log value\",DataLog!X3352,\"\")","v":""},{"$f":"IF(DataLog!$C3352=\"Log value\",DataLog!Y3352,\"\")","v":""},{"$f":"IF(DataLog!$C3352=\"Log value\",DataLog!Z3352,\"\")","v":""},{"$f":"IF(DataLog!$C3352=\"Log value\",DataLog!AA3352,\"\")","v":""},{"$f":"IF(DataLog!$C3352=\"Log value\",DataLog!AB3352,\"\")","v":""},{"$f":"IF(DataLog!$C3352=\"Log value\",DataLog!AC3352,\"\")","v":""},{"$f":"IF(DataLog!$C3352=\"Log value\",DataLog!AD3352,\"\")","v":""},{"$f":"IF(DataLog!$C3352=\"Log value\",DataLog!AE3352,\"\")","v":""},{"$f":"IF(DataLog!$C3352=\"Log value\",DataLog!AF3352,\"\")","v":""},{"$f":"IF(DataLog!$C3352=\"Log value\",DataLog!AG3352,\"\")","v":""},{"$f":"IF(DataLog!$C3352=\"Log value\",DataLog!AH3352,\"\")","v":""},{"$f":"IF(DataLog!$C3352=\"Log value\",DataLog!AI3352,\"\")","v":""},{"$f":"IF(DataLog!$C3352=\"Log value\",DataLog!AJ3352,\"\")","v":""},{"$f":"IF(DataLog!$C3352=\"Log value\",DataLog!AK3352,\"\")","v":""},{"$f":"IF(DataLog!$C3352=\"Log value\",DataLog!AL3352,\"\")","v":""},{"$f":"IF(DataLog!$C3352=\"Log value\",DataLog!AM3352,\"\")","v":""}]
[null,null,null,null,null,null,{"$f":"IF(DataLog!$C3353=\"Log value\",DataLog!D3353&\"_\"&TEXT(DataLog!B3353,\"åååå-mm-dd\"),\"\")","v":""},{"$f":"IF(DataLog!$C3353=\"Log value\",DataLog!E3353,\"\")","v":""},{"$f":"IF(DataLog!$C3353=\"Log value\",DataLog!F3353,\"\")","v":""},{"$f":"IF(DataLog!$C3353=\"Log value\",DataLog!G3353,\"\")","v":""},{"$f":"IF(DataLog!$C3353=\"Log value\",DataLog!H3353,\"\")","v":""},{"$f":"IF(DataLog!$C3353=\"Log value\",DataLog!I3353,\"\")","v":""},{"$f":"IF(DataLog!$C3353=\"Log value\",DataLog!J3353,\"\")","v":""},{"$f":"IF(DataLog!$C3353=\"Log value\",DataLog!K3353,\"\")","v":""},{"$f":"IF(DataLog!$C3353=\"Log value\",DataLog!L3353,\"\")","v":""},{"$f":"IF(DataLog!$C3353=\"Log value\",DataLog!M3353,\"\")","v":""},{"$f":"IF(DataLog!$C3353=\"Log value\",DataLog!N3353,\"\")","v":""},{"$f":"IF(DataLog!$C3353=\"Log value\",DataLog!O3353,\"\")","v":""},{"$f":"IF(DataLog!$C3353=\"Log value\",DataLog!P3353,\"\")","v":""},{"$f":"IF(DataLog!$C3353=\"Log value\",DataLog!Q3353,\"\")","v":""},{"$f":"IF(DataLog!$C3353=\"Log value\",DataLog!R3353,\"\")","v":""},{"$f":"IF(DataLog!$C3353=\"Log value\",DataLog!S3353,\"\")","v":""},{"$f":"IF(DataLog!$C3353=\"Log value\",DataLog!T3353,\"\")","v":""},{"$f":"IF(DataLog!$C3353=\"Log value\",DataLog!U3353,\"\")","v":""},{"$f":"IF(DataLog!$C3353=\"Log value\",DataLog!V3353,\"\")","v":""},{"$f":"IF(DataLog!$C3353=\"Log value\",DataLog!W3353,\"\")","v":""},{"$f":"IF(DataLog!$C3353=\"Log value\",DataLog!X3353,\"\")","v":""},{"$f":"IF(DataLog!$C3353=\"Log value\",DataLog!Y3353,\"\")","v":""},{"$f":"IF(DataLog!$C3353=\"Log value\",DataLog!Z3353,\"\")","v":""},{"$f":"IF(DataLog!$C3353=\"Log value\",DataLog!AA3353,\"\")","v":""},{"$f":"IF(DataLog!$C3353=\"Log value\",DataLog!AB3353,\"\")","v":""},{"$f":"IF(DataLog!$C3353=\"Log value\",DataLog!AC3353,\"\")","v":""},{"$f":"IF(DataLog!$C3353=\"Log value\",DataLog!AD3353,\"\")","v":""},{"$f":"IF(DataLog!$C3353=\"Log value\",DataLog!AE3353,\"\")","v":""},{"$f":"IF(DataLog!$C3353=\"Log value\",DataLog!AF3353,\"\")","v":""},{"$f":"IF(DataLog!$C3353=\"Log value\",DataLog!AG3353,\"\")","v":""},{"$f":"IF(DataLog!$C3353=\"Log value\",DataLog!AH3353,\"\")","v":""},{"$f":"IF(DataLog!$C3353=\"Log value\",DataLog!AI3353,\"\")","v":""},{"$f":"IF(DataLog!$C3353=\"Log value\",DataLog!AJ3353,\"\")","v":""},{"$f":"IF(DataLog!$C3353=\"Log value\",DataLog!AK3353,\"\")","v":""},{"$f":"IF(DataLog!$C3353=\"Log value\",DataLog!AL3353,\"\")","v":""},{"$f":"IF(DataLog!$C3353=\"Log value\",DataLog!AM3353,\"\")","v":""}]
[null,null,null,null,null,null,{"$f":"IF(DataLog!$C3354=\"Log value\",DataLog!D3354&\"_\"&TEXT(DataLog!B3354,\"åååå-mm-dd\"),\"\")","v":""},{"$f":"IF(DataLog!$C3354=\"Log value\",DataLog!E3354,\"\")","v":""},{"$f":"IF(DataLog!$C3354=\"Log value\",DataLog!F3354,\"\")","v":""},{"$f":"IF(DataLog!$C3354=\"Log value\",DataLog!G3354,\"\")","v":""},{"$f":"IF(DataLog!$C3354=\"Log value\",DataLog!H3354,\"\")","v":""},{"$f":"IF(DataLog!$C3354=\"Log value\",DataLog!I3354,\"\")","v":""},{"$f":"IF(DataLog!$C3354=\"Log value\",DataLog!J3354,\"\")","v":""},{"$f":"IF(DataLog!$C3354=\"Log value\",DataLog!K3354,\"\")","v":""},{"$f":"IF(DataLog!$C3354=\"Log value\",DataLog!L3354,\"\")","v":""},{"$f":"IF(DataLog!$C3354=\"Log value\",DataLog!M3354,\"\")","v":""},{"$f":"IF(DataLog!$C3354=\"Log value\",DataLog!N3354,\"\")","v":""},{"$f":"IF(DataLog!$C3354=\"Log value\",DataLog!O3354,\"\")","v":""},{"$f":"IF(DataLog!$C3354=\"Log value\",DataLog!P3354,\"\")","v":""},{"$f":"IF(DataLog!$C3354=\"Log value\",DataLog!Q3354,\"\")","v":""},{"$f":"IF(DataLog!$C3354=\"Log value\",DataLog!R3354,\"\")","v":""},{"$f":"IF(DataLog!$C3354=\"Log value\",DataLog!S3354,\"\")","v":""},{"$f":"IF(DataLog!$C3354=\"Log value\",DataLog!T3354,\"\")","v":""},{"$f":"IF(DataLog!$C3354=\"Log value\",DataLog!U3354,\"\")","v":""},{"$f":"IF(DataLog!$C3354=\"Log value\",DataLog!V3354,\"\")","v":""},{"$f":"IF(DataLog!$C3354=\"Log value\",DataLog!W3354,\"\")","v":""},{"$f":"IF(DataLog!$C3354=\"Log value\",DataLog!X3354,\"\")","v":""},{"$f":"IF(DataLog!$C3354=\"Log value\",DataLog!Y3354,\"\")","v":""},{"$f":"IF(DataLog!$C3354=\"Log value\",DataLog!Z3354,\"\")","v":""},{"$f":"IF(DataLog!$C3354=\"Log value\",DataLog!AA3354,\"\")","v":""},{"$f":"IF(DataLog!$C3354=\"Log value\",DataLog!AB3354,\"\")","v":""},{"$f":"IF(DataLog!$C3354=\"Log value\",DataLog!AC3354,\"\")","v":""},{"$f":"IF(DataLog!$C3354=\"Log value\",DataLog!AD3354,\"\")","v":""},{"$f":"IF(DataLog!$C3354=\"Log value\",DataLog!AE3354,\"\")","v":""},{"$f":"IF(DataLog!$C3354=\"Log value\",DataLog!AF3354,\"\")","v":""},{"$f":"IF(DataLog!$C3354=\"Log value\",DataLog!AG3354,\"\")","v":""},{"$f":"IF(DataLog!$C3354=\"Log value\",DataLog!AH3354,\"\")","v":""},{"$f":"IF(DataLog!$C3354=\"Log value\",DataLog!AI3354,\"\")","v":""},{"$f":"IF(DataLog!$C3354=\"Log value\",DataLog!AJ3354,\"\")","v":""},{"$f":"IF(DataLog!$C3354=\"Log value\",DataLog!AK3354,\"\")","v":""},{"$f":"IF(DataLog!$C3354=\"Log value\",DataLog!AL3354,\"\")","v":""},{"$f":"IF(DataLog!$C3354=\"Log value\",DataLog!AM3354,\"\")","v":""}]
[null,null,null,null,null,null,{"$f":"IF(DataLog!$C3355=\"Log value\",DataLog!D3355&\"_\"&TEXT(DataLog!B3355,\"åååå-mm-dd\"),\"\")","v":""},{"$f":"IF(DataLog!$C3355=\"Log value\",DataLog!E3355,\"\")","v":""},{"$f":"IF(DataLog!$C3355=\"Log value\",DataLog!F3355,\"\")","v":""},{"$f":"IF(DataLog!$C3355=\"Log value\",DataLog!G3355,\"\")","v":""},{"$f":"IF(DataLog!$C3355=\"Log value\",DataLog!H3355,\"\")","v":""},{"$f":"IF(DataLog!$C3355=\"Log value\",DataLog!I3355,\"\")","v":""},{"$f":"IF(DataLog!$C3355=\"Log value\",DataLog!J3355,\"\")","v":""},{"$f":"IF(DataLog!$C3355=\"Log value\",DataLog!K3355,\"\")","v":""},{"$f":"IF(DataLog!$C3355=\"Log value\",DataLog!L3355,\"\")","v":""},{"$f":"IF(DataLog!$C3355=\"Log value\",DataLog!M3355,\"\")","v":""},{"$f":"IF(DataLog!$C3355=\"Log value\",DataLog!N3355,\"\")","v":""},{"$f":"IF(DataLog!$C3355=\"Log value\",DataLog!O3355,\"\")","v":""},{"$f":"IF(DataLog!$C3355=\"Log value\",DataLog!P3355,\"\")","v":""},{"$f":"IF(DataLog!$C3355=\"Log value\",DataLog!Q3355,\"\")","v":""},{"$f":"IF(DataLog!$C3355=\"Log value\",DataLog!R3355,\"\")","v":""},{"$f":"IF(DataLog!$C3355=\"Log value\",DataLog!S3355,\"\")","v":""},{"$f":"IF(DataLog!$C3355=\"Log value\",DataLog!T3355,\"\")","v":""},{"$f":"IF(DataLog!$C3355=\"Log value\",DataLog!U3355,\"\")","v":""},{"$f":"IF(DataLog!$C3355=\"Log value\",DataLog!V3355,\"\")","v":""},{"$f":"IF(DataLog!$C3355=\"Log value\",DataLog!W3355,\"\")","v":""},{"$f":"IF(DataLog!$C3355=\"Log value\",DataLog!X3355,\"\")","v":""},{"$f":"IF(DataLog!$C3355=\"Log value\",DataLog!Y3355,\"\")","v":""},{"$f":"IF(DataLog!$C3355=\"Log value\",DataLog!Z3355,\"\")","v":""},{"$f":"IF(DataLog!$C3355=\"Log value\",DataLog!AA3355,\"\")","v":""},{"$f":"IF(DataLog!$C3355=\"Log value\",DataLog!AB3355,\"\")","v":""},{"$f":"IF(DataLog!$C3355=\"Log value\",DataLog!AC3355,\"\")","v":""},{"$f":"IF(DataLog!$C3355=\"Log value\",DataLog!AD3355,\"\")","v":""},{"$f":"IF(DataLog!$C3355=\"Log value\",DataLog!AE3355,\"\")","v":""},{"$f":"IF(DataLog!$C3355=\"Log value\",DataLog!AF3355,\"\")","v":""},{"$f":"IF(DataLog!$C3355=\"Log value\",DataLog!AG3355,\"\")","v":""},{"$f":"IF(DataLog!$C3355=\"Log value\",DataLog!AH3355,\"\")","v":""},{"$f":"IF(DataLog!$C3355=\"Log value\",DataLog!AI3355,\"\")","v":""},{"$f":"IF(DataLog!$C3355=\"Log value\",DataLog!AJ3355,\"\")","v":""},{"$f":"IF(DataLog!$C3355=\"Log value\",DataLog!AK3355,\"\")","v":""},{"$f":"IF(DataLog!$C3355=\"Log value\",DataLog!AL3355,\"\")","v":""},{"$f":"IF(DataLog!$C3355=\"Log value\",DataLog!AM3355,\"\")","v":""}]
[null,null,null,null,null,null,{"$f":"IF(DataLog!$C3356=\"Log value\",DataLog!D3356&\"_\"&TEXT(DataLog!B3356,\"åååå-mm-dd\"),\"\")","v":""},{"$f":"IF(DataLog!$C3356=\"Log value\",DataLog!E3356,\"\")","v":""},{"$f":"IF(DataLog!$C3356=\"Log value\",DataLog!F3356,\"\")","v":""},{"$f":"IF(DataLog!$C3356=\"Log value\",DataLog!G3356,\"\")","v":""},{"$f":"IF(DataLog!$C3356=\"Log value\",DataLog!H3356,\"\")","v":""},{"$f":"IF(DataLog!$C3356=\"Log value\",DataLog!I3356,\"\")","v":""},{"$f":"IF(DataLog!$C3356=\"Log value\",DataLog!J3356,\"\")","v":""},{"$f":"IF(DataLog!$C3356=\"Log value\",DataLog!K3356,\"\")","v":""},{"$f":"IF(DataLog!$C3356=\"Log value\",DataLog!L3356,\"\")","v":""},{"$f":"IF(DataLog!$C3356=\"Log value\",DataLog!M3356,\"\")","v":""},{"$f":"IF(DataLog!$C3356=\"Log value\",DataLog!N3356,\"\")","v":""},{"$f":"IF(DataLog!$C3356=\"Log value\",DataLog!O3356,\"\")","v":""},{"$f":"IF(DataLog!$C3356=\"Log value\",DataLog!P3356,\"\")","v":""},{"$f":"IF(DataLog!$C3356=\"Log value\",DataLog!Q3356,\"\")","v":""},{"$f":"IF(DataLog!$C3356=\"Log value\",DataLog!R3356,\"\")","v":""},{"$f":"IF(DataLog!$C3356=\"Log value\",DataLog!S3356,\"\")","v":""},{"$f":"IF(DataLog!$C3356=\"Log value\",DataLog!T3356,\"\")","v":""},{"$f":"IF(DataLog!$C3356=\"Log value\",DataLog!U3356,\"\")","v":""},{"$f":"IF(DataLog!$C3356=\"Log value\",DataLog!V3356,\"\")","v":""},{"$f":"IF(DataLog!$C3356=\"Log value\",DataLog!W3356,\"\")","v":""},{"$f":"IF(DataLog!$C3356=\"Log value\",DataLog!X3356,\"\")","v":""},{"$f":"IF(DataLog!$C3356=\"Log value\",DataLog!Y3356,\"\")","v":""},{"$f":"IF(DataLog!$C3356=\"Log value\",DataLog!Z3356,\"\")","v":""},{"$f":"IF(DataLog!$C3356=\"Log value\",DataLog!AA3356,\"\")","v":""},{"$f":"IF(DataLog!$C3356=\"Log value\",DataLog!AB3356,\"\")","v":""},{"$f":"IF(DataLog!$C3356=\"Log value\",DataLog!AC3356,\"\")","v":""},{"$f":"IF(DataLog!$C3356=\"Log value\",DataLog!AD3356,\"\")","v":""},{"$f":"IF(DataLog!$C3356=\"Log value\",DataLog!AE3356,\"\")","v":""},{"$f":"IF(DataLog!$C3356=\"Log value\",DataLog!AF3356,\"\")","v":""},{"$f":"IF(DataLog!$C3356=\"Log value\",DataLog!AG3356,\"\")","v":""},{"$f":"IF(DataLog!$C3356=\"Log value\",DataLog!AH3356,\"\")","v":""},{"$f":"IF(DataLog!$C3356=\"Log value\",DataLog!AI3356,\"\")","v":""},{"$f":"IF(DataLog!$C3356=\"Log value\",DataLog!AJ3356,\"\")","v":""},{"$f":"IF(DataLog!$C3356=\"Log value\",DataLog!AK3356,\"\")","v":""},{"$f":"IF(DataLog!$C3356=\"Log value\",DataLog!AL3356,\"\")","v":""},{"$f":"IF(DataLog!$C3356=\"Log value\",DataLog!AM3356,\"\")","v":""}]
[null,null,null,null,null,null,{"$f":"IF(DataLog!$C3357=\"Log value\",DataLog!D3357&\"_\"&TEXT(DataLog!B3357,\"åååå-mm-dd\"),\"\")","v":""},{"$f":"IF(DataLog!$C3357=\"Log value\",DataLog!E3357,\"\")","v":""},{"$f":"IF(DataLog!$C3357=\"Log value\",DataLog!F3357,\"\")","v":""},{"$f":"IF(DataLog!$C3357=\"Log value\",DataLog!G3357,\"\")","v":""},{"$f":"IF(DataLog!$C3357=\"Log value\",DataLog!H3357,\"\")","v":""},{"$f":"IF(DataLog!$C3357=\"Log value\",DataLog!I3357,\"\")","v":""},{"$f":"IF(DataLog!$C3357=\"Log value\",DataLog!J3357,\"\")","v":""},{"$f":"IF(DataLog!$C3357=\"Log value\",DataLog!K3357,\"\")","v":""},{"$f":"IF(DataLog!$C3357=\"Log value\",DataLog!L3357,\"\")","v":""},{"$f":"IF(DataLog!$C3357=\"Log value\",DataLog!M3357,\"\")","v":""},{"$f":"IF(DataLog!$C3357=\"Log value\",DataLog!N3357,\"\")","v":""},{"$f":"IF(DataLog!$C3357=\"Log value\",DataLog!O3357,\"\")","v":""},{"$f":"IF(DataLog!$C3357=\"Log value\",DataLog!P3357,\"\")","v":""},{"$f":"IF(DataLog!$C3357=\"Log value\",DataLog!Q3357,\"\")","v":""},{"$f":"IF(DataLog!$C3357=\"Log value\",DataLog!R3357,\"\")","v":""},{"$f":"IF(DataLog!$C3357=\"Log value\",DataLog!S3357,\"\")","v":""},{"$f":"IF(DataLog!$C3357=\"Log value\",DataLog!T3357,\"\")","v":""},{"$f":"IF(DataLog!$C3357=\"Log value\",DataLog!U3357,\"\")","v":""},{"$f":"IF(DataLog!$C3357=\"Log value\",DataLog!V3357,\"\")","v":""},{"$f":"IF(DataLog!$C3357=\"Log value\",DataLog!W3357,\"\")","v":""},{"$f":"IF(DataLog!$C3357=\"Log value\",DataLog!X3357,\"\")","v":""},{"$f":"IF(DataLog!$C3357=\"Log value\",DataLog!Y3357,\"\")","v":""},{"$f":"IF(DataLog!$C3357=\"Log value\",DataLog!Z3357,\"\")","v":""},{"$f":"IF(DataLog!$C3357=\"Log value\",DataLog!AA3357,\"\")","v":""},{"$f":"IF(DataLog!$C3357=\"Log value\",DataLog!AB3357,\"\")","v":""},{"$f":"IF(DataLog!$C3357=\"Log value\",DataLog!AC3357,\"\")","v":""},{"$f":"IF(DataLog!$C3357=\"Log value\",DataLog!AD3357,\"\")","v":""},{"$f":"IF(DataLog!$C3357=\"Log value\",DataLog!AE3357,\"\")","v":""},{"$f":"IF(DataLog!$C3357=\"Log value\",DataLog!AF3357,\"\")","v":""},{"$f":"IF(DataLog!$C3357=\"Log value\",DataLog!AG3357,\"\")","v":""},{"$f":"IF(DataLog!$C3357=\"Log value\",DataLog!AH3357,\"\")","v":""},{"$f":"IF(DataLog!$C3357=\"Log value\",DataLog!AI3357,\"\")","v":""},{"$f":"IF(DataLog!$C3357=\"Log value\",DataLog!AJ3357,\"\")","v":""},{"$f":"IF(DataLog!$C3357=\"Log value\",DataLog!AK3357,\"\")","v":""},{"$f":"IF(DataLog!$C3357=\"Log value\",DataLog!AL3357,\"\")","v":""},{"$f":"IF(DataLog!$C3357=\"Log value\",DataLog!AM3357,\"\")","v":""}]
[null,null,null,null,null,null,{"$f":"IF(DataLog!$C3358=\"Log value\",DataLog!D3358&\"_\"&TEXT(DataLog!B3358,\"åååå-mm-dd\"),\"\")","v":""},{"$f":"IF(DataLog!$C3358=\"Log value\",DataLog!E3358,\"\")","v":""},{"$f":"IF(DataLog!$C3358=\"Log value\",DataLog!F3358,\"\")","v":""},{"$f":"IF(DataLog!$C3358=\"Log value\",DataLog!G3358,\"\")","v":""},{"$f":"IF(DataLog!$C3358=\"Log value\",DataLog!H3358,\"\")","v":""},{"$f":"IF(DataLog!$C3358=\"Log value\",DataLog!I3358,\"\")","v":""},{"$f":"IF(DataLog!$C3358=\"Log value\",DataLog!J3358,\"\")","v":""},{"$f":"IF(DataLog!$C3358=\"Log value\",DataLog!K3358,\"\")","v":""},{"$f":"IF(DataLog!$C3358=\"Log value\",DataLog!L3358,\"\")","v":""},{"$f":"IF(DataLog!$C3358=\"Log value\",DataLog!M3358,\"\")","v":""},{"$f":"IF(DataLog!$C3358=\"Log value\",DataLog!N3358,\"\")","v":""},{"$f":"IF(DataLog!$C3358=\"Log value\",DataLog!O3358,\"\")","v":""},{"$f":"IF(DataLog!$C3358=\"Log value\",DataLog!P3358,\"\")","v":""},{"$f":"IF(DataLog!$C3358=\"Log value\",DataLog!Q3358,\"\")","v":""},{"$f":"IF(DataLog!$C3358=\"Log value\",DataLog!R3358,\"\")","v":""},{"$f":"IF(DataLog!$C3358=\"Log value\",DataLog!S3358,\"\")","v":""},{"$f":"IF(DataLog!$C3358=\"Log value\",DataLog!T3358,\"\")","v":""},{"$f":"IF(DataLog!$C3358=\"Log value\",DataLog!U3358,\"\")","v":""},{"$f":"IF(DataLog!$C3358=\"Log value\",DataLog!V3358,\"\")","v":""},{"$f":"IF(DataLog!$C3358=\"Log value\",DataLog!W3358,\"\")","v":""},{"$f":"IF(DataLog!$C3358=\"Log value\",DataLog!X3358,\"\")","v":""},{"$f":"IF(DataLog!$C3358=\"Log value\",DataLog!Y3358,\"\")","v":""},{"$f":"IF(DataLog!$C3358=\"Log value\",DataLog!Z3358,\"\")","v":""},{"$f":"IF(DataLog!$C3358=\"Log value\",DataLog!AA3358,\"\")","v":""},{"$f":"IF(DataLog!$C3358=\"Log value\",DataLog!AB3358,\"\")","v":""},{"$f":"IF(DataLog!$C3358=\"Log value\",DataLog!AC3358,\"\")","v":""},{"$f":"IF(DataLog!$C3358=\"Log value\",DataLog!AD3358,\"\")","v":""},{"$f":"IF(DataLog!$C3358=\"Log value\",DataLog!AE3358,\"\")","v":""},{"$f":"IF(DataLog!$C3358=\"Log value\",DataLog!AF3358,\"\")","v":""},{"$f":"IF(DataLog!$C3358=\"Log value\",DataLog!AG3358,\"\")","v":""},{"$f":"IF(DataLog!$C3358=\"Log value\",DataLog!AH3358,\"\")","v":""},{"$f":"IF(DataLog!$C3358=\"Log value\",DataLog!AI3358,\"\")","v":""},{"$f":"IF(DataLog!$C3358=\"Log value\",DataLog!AJ3358,\"\")","v":""},{"$f":"IF(DataLog!$C3358=\"Log value\",DataLog!AK3358,\"\")","v":""},{"$f":"IF(DataLog!$C3358=\"Log value\",DataLog!AL3358,\"\")","v":""},{"$f":"IF(DataLog!$C3358=\"Log value\",DataLog!AM3358,\"\")","v":""}]
[null,null,null,null,null,null,{"$f":"IF(DataLog!$C3359=\"Log value\",DataLog!D3359&\"_\"&TEXT(DataLog!B3359,\"åååå-mm-dd\"),\"\")","v":""},{"$f":"IF(DataLog!$C3359=\"Log value\",DataLog!E3359,\"\")","v":""},{"$f":"IF(DataLog!$C3359=\"Log value\",DataLog!F3359,\"\")","v":""},{"$f":"IF(DataLog!$C3359=\"Log value\",DataLog!G3359,\"\")","v":""},{"$f":"IF(DataLog!$C3359=\"Log value\",DataLog!H3359,\"\")","v":""},{"$f":"IF(DataLog!$C3359=\"Log value\",DataLog!I3359,\"\")","v":""},{"$f":"IF(DataLog!$C3359=\"Log value\",DataLog!J3359,\"\")","v":""},{"$f":"IF(DataLog!$C3359=\"Log value\",DataLog!K3359,\"\")","v":""},{"$f":"IF(DataLog!$C3359=\"Log value\",DataLog!L3359,\"\")","v":""},{"$f":"IF(DataLog!$C3359=\"Log value\",DataLog!M3359,\"\")","v":""},{"$f":"IF(DataLog!$C3359=\"Log value\",DataLog!N3359,\"\")","v":""},{"$f":"IF(DataLog!$C3359=\"Log value\",DataLog!O3359,\"\")","v":""},{"$f":"IF(DataLog!$C3359=\"Log value\",DataLog!P3359,\"\")","v":""},{"$f":"IF(DataLog!$C3359=\"Log value\",DataLog!Q3359,\"\")","v":""},{"$f":"IF(DataLog!$C3359=\"Log value\",DataLog!R3359,\"\")","v":""},{"$f":"IF(DataLog!$C3359=\"Log value\",DataLog!S3359,\"\")","v":""},{"$f":"IF(DataLog!$C3359=\"Log value\",DataLog!T3359,\"\")","v":""},{"$f":"IF(DataLog!$C3359=\"Log value\",DataLog!U3359,\"\")","v":""},{"$f":"IF(DataLog!$C3359=\"Log value\",DataLog!V3359,\"\")","v":""},{"$f":"IF(DataLog!$C3359=\"Log value\",DataLog!W3359,\"\")","v":""},{"$f":"IF(DataLog!$C3359=\"Log value\",DataLog!X3359,\"\")","v":""},{"$f":"IF(DataLog!$C3359=\"Log value\",DataLog!Y3359,\"\")","v":""},{"$f":"IF(DataLog!$C3359=\"Log value\",DataLog!Z3359,\"\")","v":""},{"$f":"IF(DataLog!$C3359=\"Log value\",DataLog!AA3359,\"\")","v":""},{"$f":"IF(DataLog!$C3359=\"Log value\",DataLog!AB3359,\"\")","v":""},{"$f":"IF(DataLog!$C3359=\"Log value\",DataLog!AC3359,\"\")","v":""},{"$f":"IF(DataLog!$C3359=\"Log value\",DataLog!AD3359,\"\")","v":""},{"$f":"IF(DataLog!$C3359=\"Log value\",DataLog!AE3359,\"\")","v":""},{"$f":"IF(DataLog!$C3359=\"Log value\",DataLog!AF3359,\"\")","v":""},{"$f":"IF(DataLog!$C3359=\"Log value\",DataLog!AG3359,\"\")","v":""},{"$f":"IF(DataLog!$C3359=\"Log value\",DataLog!AH3359,\"\")","v":""},{"$f":"IF(DataLog!$C3359=\"Log value\",DataLog!AI3359,\"\")","v":""},{"$f":"IF(DataLog!$C3359=\"Log value\",DataLog!AJ3359,\"\")","v":""},{"$f":"IF(DataLog!$C3359=\"Log value\",DataLog!AK3359,\"\")","v":""},{"$f":"IF(DataLog!$C3359=\"Log value\",DataLog!AL3359,\"\")","v":""},{"$f":"IF(DataLog!$C3359=\"Log value\",DataLog!AM3359,\"\")","v":""}]
[null,null,null,null,null,null,{"$f":"IF(DataLog!$C3360=\"Log value\",DataLog!D3360&\"_\"&TEXT(DataLog!B3360,\"åååå-mm-dd\"),\"\")","v":""},{"$f":"IF(DataLog!$C3360=\"Log value\",DataLog!E3360,\"\")","v":""},{"$f":"IF(DataLog!$C3360=\"Log value\",DataLog!F3360,\"\")","v":""},{"$f":"IF(DataLog!$C3360=\"Log value\",DataLog!G3360,\"\")","v":""},{"$f":"IF(DataLog!$C3360=\"Log value\",DataLog!H3360,\"\")","v":""},{"$f":"IF(DataLog!$C3360=\"Log value\",DataLog!I3360,\"\")","v":""},{"$f":"IF(DataLog!$C3360=\"Log value\",DataLog!J3360,\"\")","v":""},{"$f":"IF(DataLog!$C3360=\"Log value\",DataLog!K3360,\"\")","v":""},{"$f":"IF(DataLog!$C3360=\"Log value\",DataLog!L3360,\"\")","v":""},{"$f":"IF(DataLog!$C3360=\"Log value\",DataLog!M3360,\"\")","v":""},{"$f":"IF(DataLog!$C3360=\"Log value\",DataLog!N3360,\"\")","v":""},{"$f":"IF(DataLog!$C3360=\"Log value\",DataLog!O3360,\"\")","v":""},{"$f":"IF(DataLog!$C3360=\"Log value\",DataLog!P3360,\"\")","v":""},{"$f":"IF(DataLog!$C3360=\"Log value\",DataLog!Q3360,\"\")","v":""},{"$f":"IF(DataLog!$C3360=\"Log value\",DataLog!R3360,\"\")","v":""},{"$f":"IF(DataLog!$C3360=\"Log value\",DataLog!S3360,\"\")","v":""},{"$f":"IF(DataLog!$C3360=\"Log value\",DataLog!T3360,\"\")","v":""},{"$f":"IF(DataLog!$C3360=\"Log value\",DataLog!U3360,\"\")","v":""},{"$f":"IF(DataLog!$C3360=\"Log value\",DataLog!V3360,\"\")","v":""},{"$f":"IF(DataLog!$C3360=\"Log value\",DataLog!W3360,\"\")","v":""},{"$f":"IF(DataLog!$C3360=\"Log value\",DataLog!X3360,\"\")","v":""},{"$f":"IF(DataLog!$C3360=\"Log value\",DataLog!Y3360,\"\")","v":""},{"$f":"IF(DataLog!$C3360=\"Log value\",DataLog!Z3360,\"\")","v":""},{"$f":"IF(DataLog!$C3360=\"Log value\",DataLog!AA3360,\"\")","v":""},{"$f":"IF(DataLog!$C3360=\"Log value\",DataLog!AB3360,\"\")","v":""},{"$f":"IF(DataLog!$C3360=\"Log value\",DataLog!AC3360,\"\")","v":""},{"$f":"IF(DataLog!$C3360=\"Log value\",DataLog!AD3360,\"\")","v":""},{"$f":"IF(DataLog!$C3360=\"Log value\",DataLog!AE3360,\"\")","v":""},{"$f":"IF(DataLog!$C3360=\"Log value\",DataLog!AF3360,\"\")","v":""},{"$f":"IF(DataLog!$C3360=\"Log value\",DataLog!AG3360,\"\")","v":""},{"$f":"IF(DataLog!$C3360=\"Log value\",DataLog!AH3360,\"\")","v":""},{"$f":"IF(DataLog!$C3360=\"Log value\",DataLog!AI3360,\"\")","v":""},{"$f":"IF(DataLog!$C3360=\"Log value\",DataLog!AJ3360,\"\")","v":""},{"$f":"IF(DataLog!$C3360=\"Log value\",DataLog!AK3360,\"\")","v":""},{"$f":"IF(DataLog!$C3360=\"Log value\",DataLog!AL3360,\"\")","v":""},{"$f":"IF(DataLog!$C3360=\"Log value\",DataLog!AM3360,\"\")","v":""}]
[null,null,null,null,null,null,{"$f":"IF(DataLog!$C3361=\"Log value\",DataLog!D3361&\"_\"&TEXT(DataLog!B3361,\"åååå-mm-dd\"),\"\")","v":""},{"$f":"IF(DataLog!$C3361=\"Log value\",DataLog!E3361,\"\")","v":""},{"$f":"IF(DataLog!$C3361=\"Log value\",DataLog!F3361,\"\")","v":""},{"$f":"IF(DataLog!$C3361=\"Log value\",DataLog!G3361,\"\")","v":""},{"$f":"IF(DataLog!$C3361=\"Log value\",DataLog!H3361,\"\")","v":""},{"$f":"IF(DataLog!$C3361=\"Log value\",DataLog!I3361,\"\")","v":""},{"$f":"IF(DataLog!$C3361=\"Log value\",DataLog!J3361,\"\")","v":""},{"$f":"IF(DataLog!$C3361=\"Log value\",DataLog!K3361,\"\")","v":""},{"$f":"IF(DataLog!$C3361=\"Log value\",DataLog!L3361,\"\")","v":""},{"$f":"IF(DataLog!$C3361=\"Log value\",DataLog!M3361,\"\")","v":""},{"$f":"IF(DataLog!$C3361=\"Log value\",DataLog!N3361,\"\")","v":""},{"$f":"IF(DataLog!$C3361=\"Log value\",DataLog!O3361,\"\")","v":""},{"$f":"IF(DataLog!$C3361=\"Log value\",DataLog!P3361,\"\")","v":""},{"$f":"IF(DataLog!$C3361=\"Log value\",DataLog!Q3361,\"\")","v":""},{"$f":"IF(DataLog!$C3361=\"Log value\",DataLog!R3361,\"\")","v":""},{"$f":"IF(DataLog!$C3361=\"Log value\",DataLog!S3361,\"\")","v":""},{"$f":"IF(DataLog!$C3361=\"Log value\",DataLog!T3361,\"\")","v":""},{"$f":"IF(DataLog!$C3361=\"Log value\",DataLog!U3361,\"\")","v":""},{"$f":"IF(DataLog!$C3361=\"Log value\",DataLog!V3361,\"\")","v":""},{"$f":"IF(DataLog!$C3361=\"Log value\",DataLog!W3361,\"\")","v":""},{"$f":"IF(DataLog!$C3361=\"Log value\",DataLog!X3361,\"\")","v":""},{"$f":"IF(DataLog!$C3361=\"Log value\",DataLog!Y3361,\"\")","v":""},{"$f":"IF(DataLog!$C3361=\"Log value\",DataLog!Z3361,\"\")","v":""},{"$f":"IF(DataLog!$C3361=\"Log value\",DataLog!AA3361,\"\")","v":""},{"$f":"IF(DataLog!$C3361=\"Log value\",DataLog!AB3361,\"\")","v":""},{"$f":"IF(DataLog!$C3361=\"Log value\",DataLog!AC3361,\"\")","v":""},{"$f":"IF(DataLog!$C3361=\"Log value\",DataLog!AD3361,\"\")","v":""},{"$f":"IF(DataLog!$C3361=\"Log value\",DataLog!AE3361,\"\")","v":""},{"$f":"IF(DataLog!$C3361=\"Log value\",DataLog!AF3361,\"\")","v":""},{"$f":"IF(DataLog!$C3361=\"Log value\",DataLog!AG3361,\"\")","v":""},{"$f":"IF(DataLog!$C3361=\"Log value\",DataLog!AH3361,\"\")","v":""},{"$f":"IF(DataLog!$C3361=\"Log value\",DataLog!AI3361,\"\")","v":""},{"$f":"IF(DataLog!$C3361=\"Log value\",DataLog!AJ3361,\"\")","v":""},{"$f":"IF(DataLog!$C3361=\"Log value\",DataLog!AK3361,\"\")","v":""},{"$f":"IF(DataLog!$C3361=\"Log value\",DataLog!AL3361,\"\")","v":""},{"$f":"IF(DataLog!$C3361=\"Log value\",DataLog!AM3361,\"\")","v":""}]
[null,null,null,null,null,null,{"$f":"IF(DataLog!$C3362=\"Log value\",DataLog!D3362&\"_\"&TEXT(DataLog!B3362,\"åååå-mm-dd\"),\"\")","v":""},{"$f":"IF(DataLog!$C3362=\"Log value\",DataLog!E3362,\"\")","v":""},{"$f":"IF(DataLog!$C3362=\"Log value\",DataLog!F3362,\"\")","v":""},{"$f":"IF(DataLog!$C3362=\"Log value\",DataLog!G3362,\"\")","v":""},{"$f":"IF(DataLog!$C3362=\"Log value\",DataLog!H3362,\"\")","v":""},{"$f":"IF(DataLog!$C3362=\"Log value\",DataLog!I3362,\"\")","v":""},{"$f":"IF(DataLog!$C3362=\"Log value\",DataLog!J3362,\"\")","v":""},{"$f":"IF(DataLog!$C3362=\"Log value\",DataLog!K3362,\"\")","v":""},{"$f":"IF(DataLog!$C3362=\"Log value\",DataLog!L3362,\"\")","v":""},{"$f":"IF(DataLog!$C3362=\"Log value\",DataLog!M3362,\"\")","v":""},{"$f":"IF(DataLog!$C3362=\"Log value\",DataLog!N3362,\"\")","v":""},{"$f":"IF(DataLog!$C3362=\"Log value\",DataLog!O3362,\"\")","v":""},{"$f":"IF(DataLog!$C3362=\"Log value\",DataLog!P3362,\"\")","v":""},{"$f":"IF(DataLog!$C3362=\"Log value\",DataLog!Q3362,\"\")","v":""},{"$f":"IF(DataLog!$C3362=\"Log value\",DataLog!R3362,\"\")","v":""},{"$f":"IF(DataLog!$C3362=\"Log value\",DataLog!S3362,\"\")","v":""},{"$f":"IF(DataLog!$C3362=\"Log value\",DataLog!T3362,\"\")","v":""},{"$f":"IF(DataLog!$C3362=\"Log value\",DataLog!U3362,\"\")","v":""},{"$f":"IF(DataLog!$C3362=\"Log value\",DataLog!V3362,\"\")","v":""},{"$f":"IF(DataLog!$C3362=\"Log value\",DataLog!W3362,\"\")","v":""},{"$f":"IF(DataLog!$C3362=\"Log value\",DataLog!X3362,\"\")","v":""},{"$f":"IF(DataLog!$C3362=\"Log value\",DataLog!Y3362,\"\")","v":""},{"$f":"IF(DataLog!$C3362=\"Log value\",DataLog!Z3362,\"\")","v":""},{"$f":"IF(DataLog!$C3362=\"Log value\",DataLog!AA3362,\"\")","v":""},{"$f":"IF(DataLog!$C3362=\"Log value\",DataLog!AB3362,\"\")","v":""},{"$f":"IF(DataLog!$C3362=\"Log value\",DataLog!AC3362,\"\")","v":""},{"$f":"IF(DataLog!$C3362=\"Log value\",DataLog!AD3362,\"\")","v":""},{"$f":"IF(DataLog!$C3362=\"Log value\",DataLog!AE3362,\"\")","v":""},{"$f":"IF(DataLog!$C3362=\"Log value\",DataLog!AF3362,\"\")","v":""},{"$f":"IF(DataLog!$C3362=\"Log value\",DataLog!AG3362,\"\")","v":""},{"$f":"IF(DataLog!$C3362=\"Log value\",DataLog!AH3362,\"\")","v":""},{"$f":"IF(DataLog!$C3362=\"Log value\",DataLog!AI3362,\"\")","v":""},{"$f":"IF(DataLog!$C3362=\"Log value\",DataLog!AJ3362,\"\")","v":""},{"$f":"IF(DataLog!$C3362=\"Log value\",DataLog!AK3362,\"\")","v":""},{"$f":"IF(DataLog!$C3362=\"Log value\",DataLog!AL3362,\"\")","v":""},{"$f":"IF(DataLog!$C3362=\"Log value\",DataLog!AM3362,\"\")","v":""}]
[null,null,null,null,null,null,{"$f":"IF(DataLog!$C3363=\"Log value\",DataLog!D3363&\"_\"&TEXT(DataLog!B3363,\"åååå-mm-dd\"),\"\")","v":""},{"$f":"IF(DataLog!$C3363=\"Log value\",DataLog!E3363,\"\")","v":""},{"$f":"IF(DataLog!$C3363=\"Log value\",DataLog!F3363,\"\")","v":""},{"$f":"IF(DataLog!$C3363=\"Log value\",DataLog!G3363,\"\")","v":""},{"$f":"IF(DataLog!$C3363=\"Log value\",DataLog!H3363,\"\")","v":""},{"$f":"IF(DataLog!$C3363=\"Log value\",DataLog!I3363,\"\")","v":""},{"$f":"IF(DataLog!$C3363=\"Log value\",DataLog!J3363,\"\")","v":""},{"$f":"IF(DataLog!$C3363=\"Log value\",DataLog!K3363,\"\")","v":""},{"$f":"IF(DataLog!$C3363=\"Log value\",DataLog!L3363,\"\")","v":""},{"$f":"IF(DataLog!$C3363=\"Log value\",DataLog!M3363,\"\")","v":""},{"$f":"IF(DataLog!$C3363=\"Log value\",DataLog!N3363,\"\")","v":""},{"$f":"IF(DataLog!$C3363=\"Log value\",DataLog!O3363,\"\")","v":""},{"$f":"IF(DataLog!$C3363=\"Log value\",DataLog!P3363,\"\")","v":""},{"$f":"IF(DataLog!$C3363=\"Log value\",DataLog!Q3363,\"\")","v":""},{"$f":"IF(DataLog!$C3363=\"Log value\",DataLog!R3363,\"\")","v":""},{"$f":"IF(DataLog!$C3363=\"Log value\",DataLog!S3363,\"\")","v":""},{"$f":"IF(DataLog!$C3363=\"Log value\",DataLog!T3363,\"\")","v":""},{"$f":"IF(DataLog!$C3363=\"Log value\",DataLog!U3363,\"\")","v":""},{"$f":"IF(DataLog!$C3363=\"Log value\",DataLog!V3363,\"\")","v":""},{"$f":"IF(DataLog!$C3363=\"Log value\",DataLog!W3363,\"\")","v":""},{"$f":"IF(DataLog!$C3363=\"Log value\",DataLog!X3363,\"\")","v":""},{"$f":"IF(DataLog!$C3363=\"Log value\",DataLog!Y3363,\"\")","v":""},{"$f":"IF(DataLog!$C3363=\"Log value\",DataLog!Z3363,\"\")","v":""},{"$f":"IF(DataLog!$C3363=\"Log value\",DataLog!AA3363,\"\")","v":""},{"$f":"IF(DataLog!$C3363=\"Log value\",DataLog!AB3363,\"\")","v":""},{"$f":"IF(DataLog!$C3363=\"Log value\",DataLog!AC3363,\"\")","v":""},{"$f":"IF(DataLog!$C3363=\"Log value\",DataLog!AD3363,\"\")","v":""},{"$f":"IF(DataLog!$C3363=\"Log value\",DataLog!AE3363,\"\")","v":""},{"$f":"IF(DataLog!$C3363=\"Log value\",DataLog!AF3363,\"\")","v":""},{"$f":"IF(DataLog!$C3363=\"Log value\",DataLog!AG3363,\"\")","v":""},{"$f":"IF(DataLog!$C3363=\"Log value\",DataLog!AH3363,\"\")","v":""},{"$f":"IF(DataLog!$C3363=\"Log value\",DataLog!AI3363,\"\")","v":""},{"$f":"IF(DataLog!$C3363=\"Log value\",DataLog!AJ3363,\"\")","v":""},{"$f":"IF(DataLog!$C3363=\"Log value\",DataLog!AK3363,\"\")","v":""},{"$f":"IF(DataLog!$C3363=\"Log value\",DataLog!AL3363,\"\")","v":""},{"$f":"IF(DataLog!$C3363=\"Log value\",DataLog!AM3363,\"\")","v":""}]
[null,null,null,null,null,null,{"$f":"IF(DataLog!$C3364=\"Log value\",DataLog!D3364&\"_\"&TEXT(DataLog!B3364,\"åååå-mm-dd\"),\"\")","v":""},{"$f":"IF(DataLog!$C3364=\"Log value\",DataLog!E3364,\"\")","v":""},{"$f":"IF(DataLog!$C3364=\"Log value\",DataLog!F3364,\"\")","v":""},{"$f":"IF(DataLog!$C3364=\"Log value\",DataLog!G3364,\"\")","v":""},{"$f":"IF(DataLog!$C3364=\"Log value\",DataLog!H3364,\"\")","v":""},{"$f":"IF(DataLog!$C3364=\"Log value\",DataLog!I3364,\"\")","v":""},{"$f":"IF(DataLog!$C3364=\"Log value\",DataLog!J3364,\"\")","v":""},{"$f":"IF(DataLog!$C3364=\"Log value\",DataLog!K3364,\"\")","v":""},{"$f":"IF(DataLog!$C3364=\"Log value\",DataLog!L3364,\"\")","v":""},{"$f":"IF(DataLog!$C3364=\"Log value\",DataLog!M3364,\"\")","v":""},{"$f":"IF(DataLog!$C3364=\"Log value\",DataLog!N3364,\"\")","v":""},{"$f":"IF(DataLog!$C3364=\"Log value\",DataLog!O3364,\"\")","v":""},{"$f":"IF(DataLog!$C3364=\"Log value\",DataLog!P3364,\"\")","v":""},{"$f":"IF(DataLog!$C3364=\"Log value\",DataLog!Q3364,\"\")","v":""},{"$f":"IF(DataLog!$C3364=\"Log value\",DataLog!R3364,\"\")","v":""},{"$f":"IF(DataLog!$C3364=\"Log value\",DataLog!S3364,\"\")","v":""},{"$f":"IF(DataLog!$C3364=\"Log value\",DataLog!T3364,\"\")","v":""},{"$f":"IF(DataLog!$C3364=\"Log value\",DataLog!U3364,\"\")","v":""},{"$f":"IF(DataLog!$C3364=\"Log value\",DataLog!V3364,\"\")","v":""},{"$f":"IF(DataLog!$C3364=\"Log value\",DataLog!W3364,\"\")","v":""},{"$f":"IF(DataLog!$C3364=\"Log value\",DataLog!X3364,\"\")","v":""},{"$f":"IF(DataLog!$C3364=\"Log value\",DataLog!Y3364,\"\")","v":""},{"$f":"IF(DataLog!$C3364=\"Log value\",DataLog!Z3364,\"\")","v":""},{"$f":"IF(DataLog!$C3364=\"Log value\",DataLog!AA3364,\"\")","v":""},{"$f":"IF(DataLog!$C3364=\"Log value\",DataLog!AB3364,\"\")","v":""},{"$f":"IF(DataLog!$C3364=\"Log value\",DataLog!AC3364,\"\")","v":""},{"$f":"IF(DataLog!$C3364=\"Log value\",DataLog!AD3364,\"\")","v":""},{"$f":"IF(DataLog!$C3364=\"Log value\",DataLog!AE3364,\"\")","v":""},{"$f":"IF(DataLog!$C3364=\"Log value\",DataLog!AF3364,\"\")","v":""},{"$f":"IF(DataLog!$C3364=\"Log value\",DataLog!AG3364,\"\")","v":""},{"$f":"IF(DataLog!$C3364=\"Log value\",DataLog!AH3364,\"\")","v":""},{"$f":"IF(DataLog!$C3364=\"Log value\",DataLog!AI3364,\"\")","v":""},{"$f":"IF(DataLog!$C3364=\"Log value\",DataLog!AJ3364,\"\")","v":""},{"$f":"IF(DataLog!$C3364=\"Log value\",DataLog!AK3364,\"\")","v":""},{"$f":"IF(DataLog!$C3364=\"Log value\",DataLog!AL3364,\"\")","v":""},{"$f":"IF(DataLog!$C3364=\"Log value\",DataLog!AM3364,\"\")","v":""}]
[null,null,null,null,null,null,{"$f":"IF(DataLog!$C3365=\"Log value\",DataLog!D3365&\"_\"&TEXT(DataLog!B3365,\"åååå-mm-dd\"),\"\")","v":""},{"$f":"IF(DataLog!$C3365=\"Log value\",DataLog!E3365,\"\")","v":""},{"$f":"IF(DataLog!$C3365=\"Log value\",DataLog!F3365,\"\")","v":""},{"$f":"IF(DataLog!$C3365=\"Log value\",DataLog!G3365,\"\")","v":""},{"$f":"IF(DataLog!$C3365=\"Log value\",DataLog!H3365,\"\")","v":""},{"$f":"IF(DataLog!$C3365=\"Log value\",DataLog!I3365,\"\")","v":""},{"$f":"IF(DataLog!$C3365=\"Log value\",DataLog!J3365,\"\")","v":""},{"$f":"IF(DataLog!$C3365=\"Log value\",DataLog!K3365,\"\")","v":""},{"$f":"IF(DataLog!$C3365=\"Log value\",DataLog!L3365,\"\")","v":""},{"$f":"IF(DataLog!$C3365=\"Log value\",DataLog!M3365,\"\")","v":""},{"$f":"IF(DataLog!$C3365=\"Log value\",DataLog!N3365,\"\")","v":""},{"$f":"IF(DataLog!$C3365=\"Log value\",DataLog!O3365,\"\")","v":""},{"$f":"IF(DataLog!$C3365=\"Log value\",DataLog!P3365,\"\")","v":""},{"$f":"IF(DataLog!$C3365=\"Log value\",DataLog!Q3365,\"\")","v":""},{"$f":"IF(DataLog!$C3365=\"Log value\",DataLog!R3365,\"\")","v":""},{"$f":"IF(DataLog!$C3365=\"Log value\",DataLog!S3365,\"\")","v":""},{"$f":"IF(DataLog!$C3365=\"Log value\",DataLog!T3365,\"\")","v":""},{"$f":"IF(DataLog!$C3365=\"Log value\",DataLog!U3365,\"\")","v":""},{"$f":"IF(DataLog!$C3365=\"Log value\",DataLog!V3365,\"\")","v":""},{"$f":"IF(DataLog!$C3365=\"Log value\",DataLog!W3365,\"\")","v":""},{"$f":"IF(DataLog!$C3365=\"Log value\",DataLog!X3365,\"\")","v":""},{"$f":"IF(DataLog!$C3365=\"Log value\",DataLog!Y3365,\"\")","v":""},{"$f":"IF(DataLog!$C3365=\"Log value\",DataLog!Z3365,\"\")","v":""},{"$f":"IF(DataLog!$C3365=\"Log value\",DataLog!AA3365,\"\")","v":""},{"$f":"IF(DataLog!$C3365=\"Log value\",DataLog!AB3365,\"\")","v":""},{"$f":"IF(DataLog!$C3365=\"Log value\",DataLog!AC3365,\"\")","v":""},{"$f":"IF(DataLog!$C3365=\"Log value\",DataLog!AD3365,\"\")","v":""},{"$f":"IF(DataLog!$C3365=\"Log value\",DataLog!AE3365,\"\")","v":""},{"$f":"IF(DataLog!$C3365=\"Log value\",DataLog!AF3365,\"\")","v":""},{"$f":"IF(DataLog!$C3365=\"Log value\",DataLog!AG3365,\"\")","v":""},{"$f":"IF(DataLog!$C3365=\"Log value\",DataLog!AH3365,\"\")","v":""},{"$f":"IF(DataLog!$C3365=\"Log value\",DataLog!AI3365,\"\")","v":""},{"$f":"IF(DataLog!$C3365=\"Log value\",DataLog!AJ3365,\"\")","v":""},{"$f":"IF(DataLog!$C3365=\"Log value\",DataLog!AK3365,\"\")","v":""},{"$f":"IF(DataLog!$C3365=\"Log value\",DataLog!AL3365,\"\")","v":""},{"$f":"IF(DataLog!$C3365=\"Log value\",DataLog!AM3365,\"\")","v":""}]
[null,null,null,null,null,null,{"$f":"IF(DataLog!$C3366=\"Log value\",DataLog!D3366&\"_\"&TEXT(DataLog!B3366,\"åååå-mm-dd\"),\"\")","v":""},{"$f":"IF(DataLog!$C3366=\"Log value\",DataLog!E3366,\"\")","v":""},{"$f":"IF(DataLog!$C3366=\"Log value\",DataLog!F3366,\"\")","v":""},{"$f":"IF(DataLog!$C3366=\"Log value\",DataLog!G3366,\"\")","v":""},{"$f":"IF(DataLog!$C3366=\"Log value\",DataLog!H3366,\"\")","v":""},{"$f":"IF(DataLog!$C3366=\"Log value\",DataLog!I3366,\"\")","v":""},{"$f":"IF(DataLog!$C3366=\"Log value\",DataLog!J3366,\"\")","v":""},{"$f":"IF(DataLog!$C3366=\"Log value\",DataLog!K3366,\"\")","v":""},{"$f":"IF(DataLog!$C3366=\"Log value\",DataLog!L3366,\"\")","v":""},{"$f":"IF(DataLog!$C3366=\"Log value\",DataLog!M3366,\"\")","v":""},{"$f":"IF(DataLog!$C3366=\"Log value\",DataLog!N3366,\"\")","v":""},{"$f":"IF(DataLog!$C3366=\"Log value\",DataLog!O3366,\"\")","v":""},{"$f":"IF(DataLog!$C3366=\"Log value\",DataLog!P3366,\"\")","v":""},{"$f":"IF(DataLog!$C3366=\"Log value\",DataLog!Q3366,\"\")","v":""},{"$f":"IF(DataLog!$C3366=\"Log value\",DataLog!R3366,\"\")","v":""},{"$f":"IF(DataLog!$C3366=\"Log value\",DataLog!S3366,\"\")","v":""},{"$f":"IF(DataLog!$C3366=\"Log value\",DataLog!T3366,\"\")","v":""},{"$f":"IF(DataLog!$C3366=\"Log value\",DataLog!U3366,\"\")","v":""},{"$f":"IF(DataLog!$C3366=\"Log value\",DataLog!V3366,\"\")","v":""},{"$f":"IF(DataLog!$C3366=\"Log value\",DataLog!W3366,\"\")","v":""},{"$f":"IF(DataLog!$C3366=\"Log value\",DataLog!X3366,\"\")","v":""},{"$f":"IF(DataLog!$C3366=\"Log value\",DataLog!Y3366,\"\")","v":""},{"$f":"IF(DataLog!$C3366=\"Log value\",DataLog!Z3366,\"\")","v":""},{"$f":"IF(DataLog!$C3366=\"Log value\",DataLog!AA3366,\"\")","v":""},{"$f":"IF(DataLog!$C3366=\"Log value\",DataLog!AB3366,\"\")","v":""},{"$f":"IF(DataLog!$C3366=\"Log value\",DataLog!AC3366,\"\")","v":""},{"$f":"IF(DataLog!$C3366=\"Log value\",DataLog!AD3366,\"\")","v":""},{"$f":"IF(DataLog!$C3366=\"Log value\",DataLog!AE3366,\"\")","v":""},{"$f":"IF(DataLog!$C3366=\"Log value\",DataLog!AF3366,\"\")","v":""},{"$f":"IF(DataLog!$C3366=\"Log value\",DataLog!AG3366,\"\")","v":""},{"$f":"IF(DataLog!$C3366=\"Log value\",DataLog!AH3366,\"\")","v":""},{"$f":"IF(DataLog!$C3366=\"Log value\",DataLog!AI3366,\"\")","v":""},{"$f":"IF(DataLog!$C3366=\"Log value\",DataLog!AJ3366,\"\")","v":""},{"$f":"IF(DataLog!$C3366=\"Log value\",DataLog!AK3366,\"\")","v":""},{"$f":"IF(DataLog!$C3366=\"Log value\",DataLog!AL3366,\"\")","v":""},{"$f":"IF(DataLog!$C3366=\"Log value\",DataLog!AM3366,\"\")","v":""}]
[null,null,null,null,null,null,{"$f":"IF(DataLog!$C3367=\"Log value\",DataLog!D3367&\"_\"&TEXT(DataLog!B3367,\"åååå-mm-dd\"),\"\")","v":""},{"$f":"IF(DataLog!$C3367=\"Log value\",DataLog!E3367,\"\")","v":""},{"$f":"IF(DataLog!$C3367=\"Log value\",DataLog!F3367,\"\")","v":""},{"$f":"IF(DataLog!$C3367=\"Log value\",DataLog!G3367,\"\")","v":""},{"$f":"IF(DataLog!$C3367=\"Log value\",DataLog!H3367,\"\")","v":""},{"$f":"IF(DataLog!$C3367=\"Log value\",DataLog!I3367,\"\")","v":""},{"$f":"IF(DataLog!$C3367=\"Log value\",DataLog!J3367,\"\")","v":""},{"$f":"IF(DataLog!$C3367=\"Log value\",DataLog!K3367,\"\")","v":""},{"$f":"IF(DataLog!$C3367=\"Log value\",DataLog!L3367,\"\")","v":""},{"$f":"IF(DataLog!$C3367=\"Log value\",DataLog!M3367,\"\")","v":""},{"$f":"IF(DataLog!$C3367=\"Log value\",DataLog!N3367,\"\")","v":""},{"$f":"IF(DataLog!$C3367=\"Log value\",DataLog!O3367,\"\")","v":""},{"$f":"IF(DataLog!$C3367=\"Log value\",DataLog!P3367,\"\")","v":""},{"$f":"IF(DataLog!$C3367=\"Log value\",DataLog!Q3367,\"\")","v":""},{"$f":"IF(DataLog!$C3367=\"Log value\",DataLog!R3367,\"\")","v":""},{"$f":"IF(DataLog!$C3367=\"Log value\",DataLog!S3367,\"\")","v":""},{"$f":"IF(DataLog!$C3367=\"Log value\",DataLog!T3367,\"\")","v":""},{"$f":"IF(DataLog!$C3367=\"Log value\",DataLog!U3367,\"\")","v":""},{"$f":"IF(DataLog!$C3367=\"Log value\",DataLog!V3367,\"\")","v":""},{"$f":"IF(DataLog!$C3367=\"Log value\",DataLog!W3367,\"\")","v":""},{"$f":"IF(DataLog!$C3367=\"Log value\",DataLog!X3367,\"\")","v":""},{"$f":"IF(DataLog!$C3367=\"Log value\",DataLog!Y3367,\"\")","v":""},{"$f":"IF(DataLog!$C3367=\"Log value\",DataLog!Z3367,\"\")","v":""},{"$f":"IF(DataLog!$C3367=\"Log value\",DataLog!AA3367,\"\")","v":""},{"$f":"IF(DataLog!$C3367=\"Log value\",DataLog!AB3367,\"\")","v":""},{"$f":"IF(DataLog!$C3367=\"Log value\",DataLog!AC3367,\"\")","v":""},{"$f":"IF(DataLog!$C3367=\"Log value\",DataLog!AD3367,\"\")","v":""},{"$f":"IF(DataLog!$C3367=\"Log value\",DataLog!AE3367,\"\")","v":""},{"$f":"IF(DataLog!$C3367=\"Log value\",DataLog!AF3367,\"\")","v":""},{"$f":"IF(DataLog!$C3367=\"Log value\",DataLog!AG3367,\"\")","v":""},{"$f":"IF(DataLog!$C3367=\"Log value\",DataLog!AH3367,\"\")","v":""},{"$f":"IF(DataLog!$C3367=\"Log value\",DataLog!AI3367,\"\")","v":""},{"$f":"IF(DataLog!$C3367=\"Log value\",DataLog!AJ3367,\"\")","v":""},{"$f":"IF(DataLog!$C3367=\"Log value\",DataLog!AK3367,\"\")","v":""},{"$f":"IF(DataLog!$C3367=\"Log value\",DataLog!AL3367,\"\")","v":""},{"$f":"IF(DataLog!$C3367=\"Log value\",DataLog!AM3367,\"\")","v":""}]
[null,null,null,null,null,null,{"$f":"IF(DataLog!$C3368=\"Log value\",DataLog!D3368&\"_\"&TEXT(DataLog!B3368,\"åååå-mm-dd\"),\"\")","v":""},{"$f":"IF(DataLog!$C3368=\"Log value\",DataLog!E3368,\"\")","v":""},{"$f":"IF(DataLog!$C3368=\"Log value\",DataLog!F3368,\"\")","v":""},{"$f":"IF(DataLog!$C3368=\"Log value\",DataLog!G3368,\"\")","v":""},{"$f":"IF(DataLog!$C3368=\"Log value\",DataLog!H3368,\"\")","v":""},{"$f":"IF(DataLog!$C3368=\"Log value\",DataLog!I3368,\"\")","v":""},{"$f":"IF(DataLog!$C3368=\"Log value\",DataLog!J3368,\"\")","v":""},{"$f":"IF(DataLog!$C3368=\"Log value\",DataLog!K3368,\"\")","v":""},{"$f":"IF(DataLog!$C3368=\"Log value\",DataLog!L3368,\"\")","v":""},{"$f":"IF(DataLog!$C3368=\"Log value\",DataLog!M3368,\"\")","v":""},{"$f":"IF(DataLog!$C3368=\"Log value\",DataLog!N3368,\"\")","v":""},{"$f":"IF(DataLog!$C3368=\"Log value\",DataLog!O3368,\"\")","v":""},{"$f":"IF(DataLog!$C3368=\"Log value\",DataLog!P3368,\"\")","v":""},{"$f":"IF(DataLog!$C3368=\"Log value\",DataLog!Q3368,\"\")","v":""},{"$f":"IF(DataLog!$C3368=\"Log value\",DataLog!R3368,\"\")","v":""},{"$f":"IF(DataLog!$C3368=\"Log value\",DataLog!S3368,\"\")","v":""},{"$f":"IF(DataLog!$C3368=\"Log value\",DataLog!T3368,\"\")","v":""},{"$f":"IF(DataLog!$C3368=\"Log value\",DataLog!U3368,\"\")","v":""},{"$f":"IF(DataLog!$C3368=\"Log value\",DataLog!V3368,\"\")","v":""},{"$f":"IF(DataLog!$C3368=\"Log value\",DataLog!W3368,\"\")","v":""},{"$f":"IF(DataLog!$C3368=\"Log value\",DataLog!X3368,\"\")","v":""},{"$f":"IF(DataLog!$C3368=\"Log value\",DataLog!Y3368,\"\")","v":""},{"$f":"IF(DataLog!$C3368=\"Log value\",DataLog!Z3368,\"\")","v":""},{"$f":"IF(DataLog!$C3368=\"Log value\",DataLog!AA3368,\"\")","v":""},{"$f":"IF(DataLog!$C3368=\"Log value\",DataLog!AB3368,\"\")","v":""},{"$f":"IF(DataLog!$C3368=\"Log value\",DataLog!AC3368,\"\")","v":""},{"$f":"IF(DataLog!$C3368=\"Log value\",DataLog!AD3368,\"\")","v":""},{"$f":"IF(DataLog!$C3368=\"Log value\",DataLog!AE3368,\"\")","v":""},{"$f":"IF(DataLog!$C3368=\"Log value\",DataLog!AF3368,\"\")","v":""},{"$f":"IF(DataLog!$C3368=\"Log value\",DataLog!AG3368,\"\")","v":""},{"$f":"IF(DataLog!$C3368=\"Log value\",DataLog!AH3368,\"\")","v":""},{"$f":"IF(DataLog!$C3368=\"Log value\",DataLog!AI3368,\"\")","v":""},{"$f":"IF(DataLog!$C3368=\"Log value\",DataLog!AJ3368,\"\")","v":""},{"$f":"IF(DataLog!$C3368=\"Log value\",DataLog!AK3368,\"\")","v":""},{"$f":"IF(DataLog!$C3368=\"Log value\",DataLog!AL3368,\"\")","v":""},{"$f":"IF(DataLog!$C3368=\"Log value\",DataLog!AM3368,\"\")","v":""}]
[null,null,null,null,null,null,{"$f":"IF(DataLog!$C3369=\"Log value\",DataLog!D3369&\"_\"&TEXT(DataLog!B3369,\"åååå-mm-dd\"),\"\")","v":""},{"$f":"IF(DataLog!$C3369=\"Log value\",DataLog!E3369,\"\")","v":""},{"$f":"IF(DataLog!$C3369=\"Log value\",DataLog!F3369,\"\")","v":""},{"$f":"IF(DataLog!$C3369=\"Log value\",DataLog!G3369,\"\")","v":""},{"$f":"IF(DataLog!$C3369=\"Log value\",DataLog!H3369,\"\")","v":""},{"$f":"IF(DataLog!$C3369=\"Log value\",DataLog!I3369,\"\")","v":""},{"$f":"IF(DataLog!$C3369=\"Log value\",DataLog!J3369,\"\")","v":""},{"$f":"IF(DataLog!$C3369=\"Log value\",DataLog!K3369,\"\")","v":""},{"$f":"IF(DataLog!$C3369=\"Log value\",DataLog!L3369,\"\")","v":""},{"$f":"IF(DataLog!$C3369=\"Log value\",DataLog!M3369,\"\")","v":""},{"$f":"IF(DataLog!$C3369=\"Log value\",DataLog!N3369,\"\")","v":""},{"$f":"IF(DataLog!$C3369=\"Log value\",DataLog!O3369,\"\")","v":""},{"$f":"IF(DataLog!$C3369=\"Log value\",DataLog!P3369,\"\")","v":""},{"$f":"IF(DataLog!$C3369=\"Log value\",DataLog!Q3369,\"\")","v":""},{"$f":"IF(DataLog!$C3369=\"Log value\",DataLog!R3369,\"\")","v":""},{"$f":"IF(DataLog!$C3369=\"Log value\",DataLog!S3369,\"\")","v":""},{"$f":"IF(DataLog!$C3369=\"Log value\",DataLog!T3369,\"\")","v":""},{"$f":"IF(DataLog!$C3369=\"Log value\",DataLog!U3369,\"\")","v":""},{"$f":"IF(DataLog!$C3369=\"Log value\",DataLog!V3369,\"\")","v":""},{"$f":"IF(DataLog!$C3369=\"Log value\",DataLog!W3369,\"\")","v":""},{"$f":"IF(DataLog!$C3369=\"Log value\",DataLog!X3369,\"\")","v":""},{"$f":"IF(DataLog!$C3369=\"Log value\",DataLog!Y3369,\"\")","v":""},{"$f":"IF(DataLog!$C3369=\"Log value\",DataLog!Z3369,\"\")","v":""},{"$f":"IF(DataLog!$C3369=\"Log value\",DataLog!AA3369,\"\")","v":""},{"$f":"IF(DataLog!$C3369=\"Log value\",DataLog!AB3369,\"\")","v":""},{"$f":"IF(DataLog!$C3369=\"Log value\",DataLog!AC3369,\"\")","v":""},{"$f":"IF(DataLog!$C3369=\"Log value\",DataLog!AD3369,\"\")","v":""},{"$f":"IF(DataLog!$C3369=\"Log value\",DataLog!AE3369,\"\")","v":""},{"$f":"IF(DataLog!$C3369=\"Log value\",DataLog!AF3369,\"\")","v":""},{"$f":"IF(DataLog!$C3369=\"Log value\",DataLog!AG3369,\"\")","v":""},{"$f":"IF(DataLog!$C3369=\"Log value\",DataLog!AH3369,\"\")","v":""},{"$f":"IF(DataLog!$C3369=\"Log value\",DataLog!AI3369,\"\")","v":""},{"$f":"IF(DataLog!$C3369=\"Log value\",DataLog!AJ3369,\"\")","v":""},{"$f":"IF(DataLog!$C3369=\"Log value\",DataLog!AK3369,\"\")","v":""},{"$f":"IF(DataLog!$C3369=\"Log value\",DataLog!AL3369,\"\")","v":""},{"$f":"IF(DataLog!$C3369=\"Log value\",DataLog!AM3369,\"\")","v":""}]
[null,null,null,null,null,null,{"$f":"IF(DataLog!$C3370=\"Log value\",DataLog!D3370&\"_\"&TEXT(DataLog!B3370,\"åååå-mm-dd\"),\"\")","v":""},{"$f":"IF(DataLog!$C3370=\"Log value\",DataLog!E3370,\"\")","v":""},{"$f":"IF(DataLog!$C3370=\"Log value\",DataLog!F3370,\"\")","v":""},{"$f":"IF(DataLog!$C3370=\"Log value\",DataLog!G3370,\"\")","v":""},{"$f":"IF(DataLog!$C3370=\"Log value\",DataLog!H3370,\"\")","v":""},{"$f":"IF(DataLog!$C3370=\"Log value\",DataLog!I3370,\"\")","v":""},{"$f":"IF(DataLog!$C3370=\"Log value\",DataLog!J3370,\"\")","v":""},{"$f":"IF(DataLog!$C3370=\"Log value\",DataLog!K3370,\"\")","v":""},{"$f":"IF(DataLog!$C3370=\"Log value\",DataLog!L3370,\"\")","v":""},{"$f":"IF(DataLog!$C3370=\"Log value\",DataLog!M3370,\"\")","v":""},{"$f":"IF(DataLog!$C3370=\"Log value\",DataLog!N3370,\"\")","v":""},{"$f":"IF(DataLog!$C3370=\"Log value\",DataLog!O3370,\"\")","v":""},{"$f":"IF(DataLog!$C3370=\"Log value\",DataLog!P3370,\"\")","v":""},{"$f":"IF(DataLog!$C3370=\"Log value\",DataLog!Q3370,\"\")","v":""},{"$f":"IF(DataLog!$C3370=\"Log value\",DataLog!R3370,\"\")","v":""},{"$f":"IF(DataLog!$C3370=\"Log value\",DataLog!S3370,\"\")","v":""},{"$f":"IF(DataLog!$C3370=\"Log value\",DataLog!T3370,\"\")","v":""},{"$f":"IF(DataLog!$C3370=\"Log value\",DataLog!U3370,\"\")","v":""},{"$f":"IF(DataLog!$C3370=\"Log value\",DataLog!V3370,\"\")","v":""},{"$f":"IF(DataLog!$C3370=\"Log value\",DataLog!W3370,\"\")","v":""},{"$f":"IF(DataLog!$C3370=\"Log value\",DataLog!X3370,\"\")","v":""},{"$f":"IF(DataLog!$C3370=\"Log value\",DataLog!Y3370,\"\")","v":""},{"$f":"IF(DataLog!$C3370=\"Log value\",DataLog!Z3370,\"\")","v":""},{"$f":"IF(DataLog!$C3370=\"Log value\",DataLog!AA3370,\"\")","v":""},{"$f":"IF(DataLog!$C3370=\"Log value\",DataLog!AB3370,\"\")","v":""},{"$f":"IF(DataLog!$C3370=\"Log value\",DataLog!AC3370,\"\")","v":""},{"$f":"IF(DataLog!$C3370=\"Log value\",DataLog!AD3370,\"\")","v":""},{"$f":"IF(DataLog!$C3370=\"Log value\",DataLog!AE3370,\"\")","v":""},{"$f":"IF(DataLog!$C3370=\"Log value\",DataLog!AF3370,\"\")","v":""},{"$f":"IF(DataLog!$C3370=\"Log value\",DataLog!AG3370,\"\")","v":""},{"$f":"IF(DataLog!$C3370=\"Log value\",DataLog!AH3370,\"\")","v":""},{"$f":"IF(DataLog!$C3370=\"Log value\",DataLog!AI3370,\"\")","v":""},{"$f":"IF(DataLog!$C3370=\"Log value\",DataLog!AJ3370,\"\")","v":""},{"$f":"IF(DataLog!$C3370=\"Log value\",DataLog!AK3370,\"\")","v":""},{"$f":"IF(DataLog!$C3370=\"Log value\",DataLog!AL3370,\"\")","v":""},{"$f":"IF(DataLog!$C3370=\"Log value\",DataLog!AM3370,\"\")","v":""}]
[null,null,null,null,null,null,{"$f":"IF(DataLog!$C3371=\"Log value\",DataLog!D3371&\"_\"&TEXT(DataLog!B3371,\"åååå-mm-dd\"),\"\")","v":""},{"$f":"IF(DataLog!$C3371=\"Log value\",DataLog!E3371,\"\")","v":""},{"$f":"IF(DataLog!$C3371=\"Log value\",DataLog!F3371,\"\")","v":""},{"$f":"IF(DataLog!$C3371=\"Log value\",DataLog!G3371,\"\")","v":""},{"$f":"IF(DataLog!$C3371=\"Log value\",DataLog!H3371,\"\")","v":""},{"$f":"IF(DataLog!$C3371=\"Log value\",DataLog!I3371,\"\")","v":""},{"$f":"IF(DataLog!$C3371=\"Log value\",DataLog!J3371,\"\")","v":""},{"$f":"IF(DataLog!$C3371=\"Log value\",DataLog!K3371,\"\")","v":""},{"$f":"IF(DataLog!$C3371=\"Log value\",DataLog!L3371,\"\")","v":""},{"$f":"IF(DataLog!$C3371=\"Log value\",DataLog!M3371,\"\")","v":""},{"$f":"IF(DataLog!$C3371=\"Log value\",DataLog!N3371,\"\")","v":""},{"$f":"IF(DataLog!$C3371=\"Log value\",DataLog!O3371,\"\")","v":""},{"$f":"IF(DataLog!$C3371=\"Log value\",DataLog!P3371,\"\")","v":""},{"$f":"IF(DataLog!$C3371=\"Log value\",DataLog!Q3371,\"\")","v":""},{"$f":"IF(DataLog!$C3371=\"Log value\",DataLog!R3371,\"\")","v":""},{"$f":"IF(DataLog!$C3371=\"Log value\",DataLog!S3371,\"\")","v":""},{"$f":"IF(DataLog!$C3371=\"Log value\",DataLog!T3371,\"\")","v":""},{"$f":"IF(DataLog!$C3371=\"Log value\",DataLog!U3371,\"\")","v":""},{"$f":"IF(DataLog!$C3371=\"Log value\",DataLog!V3371,\"\")","v":""},{"$f":"IF(DataLog!$C3371=\"Log value\",DataLog!W3371,\"\")","v":""},{"$f":"IF(DataLog!$C3371=\"Log value\",DataLog!X3371,\"\")","v":""},{"$f":"IF(DataLog!$C3371=\"Log value\",DataLog!Y3371,\"\")","v":""},{"$f":"IF(DataLog!$C3371=\"Log value\",DataLog!Z3371,\"\")","v":""},{"$f":"IF(DataLog!$C3371=\"Log value\",DataLog!AA3371,\"\")","v":""},{"$f":"IF(DataLog!$C3371=\"Log value\",DataLog!AB3371,\"\")","v":""},{"$f":"IF(DataLog!$C3371=\"Log value\",DataLog!AC3371,\"\")","v":""},{"$f":"IF(DataLog!$C3371=\"Log value\",DataLog!AD3371,\"\")","v":""},{"$f":"IF(DataLog!$C3371=\"Log value\",DataLog!AE3371,\"\")","v":""},{"$f":"IF(DataLog!$C3371=\"Log value\",DataLog!AF3371,\"\")","v":""},{"$f":"IF(DataLog!$C3371=\"Log value\",DataLog!AG3371,\"\")","v":""},{"$f":"IF(DataLog!$C3371=\"Log value\",DataLog!AH3371,\"\")","v":""},{"$f":"IF(DataLog!$C3371=\"Log value\",DataLog!AI3371,\"\")","v":""},{"$f":"IF(DataLog!$C3371=\"Log value\",DataLog!AJ3371,\"\")","v":""},{"$f":"IF(DataLog!$C3371=\"Log value\",DataLog!AK3371,\"\")","v":""},{"$f":"IF(DataLog!$C3371=\"Log value\",DataLog!AL3371,\"\")","v":""},{"$f":"IF(DataLog!$C3371=\"Log value\",DataLog!AM3371,\"\")","v":""}]
[null,null,null,null,null,null,{"$f":"IF(DataLog!$C3372=\"Log value\",DataLog!D3372&\"_\"&TEXT(DataLog!B3372,\"åååå-mm-dd\"),\"\")","v":""},{"$f":"IF(DataLog!$C3372=\"Log value\",DataLog!E3372,\"\")","v":""},{"$f":"IF(DataLog!$C3372=\"Log value\",DataLog!F3372,\"\")","v":""},{"$f":"IF(DataLog!$C3372=\"Log value\",DataLog!G3372,\"\")","v":""},{"$f":"IF(DataLog!$C3372=\"Log value\",DataLog!H3372,\"\")","v":""},{"$f":"IF(DataLog!$C3372=\"Log value\",DataLog!I3372,\"\")","v":""},{"$f":"IF(DataLog!$C3372=\"Log value\",DataLog!J3372,\"\")","v":""},{"$f":"IF(DataLog!$C3372=\"Log value\",DataLog!K3372,\"\")","v":""},{"$f":"IF(DataLog!$C3372=\"Log value\",DataLog!L3372,\"\")","v":""},{"$f":"IF(DataLog!$C3372=\"Log value\",DataLog!M3372,\"\")","v":""},{"$f":"IF(DataLog!$C3372=\"Log value\",DataLog!N3372,\"\")","v":""},{"$f":"IF(DataLog!$C3372=\"Log value\",DataLog!O3372,\"\")","v":""},{"$f":"IF(DataLog!$C3372=\"Log value\",DataLog!P3372,\"\")","v":""},{"$f":"IF(DataLog!$C3372=\"Log value\",DataLog!Q3372,\"\")","v":""},{"$f":"IF(DataLog!$C3372=\"Log value\",DataLog!R3372,\"\")","v":""},{"$f":"IF(DataLog!$C3372=\"Log value\",DataLog!S3372,\"\")","v":""},{"$f":"IF(DataLog!$C3372=\"Log value\",DataLog!T3372,\"\")","v":""},{"$f":"IF(DataLog!$C3372=\"Log value\",DataLog!U3372,\"\")","v":""},{"$f":"IF(DataLog!$C3372=\"Log value\",DataLog!V3372,\"\")","v":""},{"$f":"IF(DataLog!$C3372=\"Log value\",DataLog!W3372,\"\")","v":""},{"$f":"IF(DataLog!$C3372=\"Log value\",DataLog!X3372,\"\")","v":""},{"$f":"IF(DataLog!$C3372=\"Log value\",DataLog!Y3372,\"\")","v":""},{"$f":"IF(DataLog!$C3372=\"Log value\",DataLog!Z3372,\"\")","v":""},{"$f":"IF(DataLog!$C3372=\"Log value\",DataLog!AA3372,\"\")","v":""},{"$f":"IF(DataLog!$C3372=\"Log value\",DataLog!AB3372,\"\")","v":""},{"$f":"IF(DataLog!$C3372=\"Log value\",DataLog!AC3372,\"\")","v":""},{"$f":"IF(DataLog!$C3372=\"Log value\",DataLog!AD3372,\"\")","v":""},{"$f":"IF(DataLog!$C3372=\"Log value\",DataLog!AE3372,\"\")","v":""},{"$f":"IF(DataLog!$C3372=\"Log value\",DataLog!AF3372,\"\")","v":""},{"$f":"IF(DataLog!$C3372=\"Log value\",DataLog!AG3372,\"\")","v":""},{"$f":"IF(DataLog!$C3372=\"Log value\",DataLog!AH3372,\"\")","v":""},{"$f":"IF(DataLog!$C3372=\"Log value\",DataLog!AI3372,\"\")","v":""},{"$f":"IF(DataLog!$C3372=\"Log value\",DataLog!AJ3372,\"\")","v":""},{"$f":"IF(DataLog!$C3372=\"Log value\",DataLog!AK3372,\"\")","v":""},{"$f":"IF(DataLog!$C3372=\"Log value\",DataLog!AL3372,\"\")","v":""},{"$f":"IF(DataLog!$C3372=\"Log value\",DataLog!AM3372,\"\")","v":""}]
[null,null,null,null,null,null,{"$f":"IF(DataLog!$C3373=\"Log value\",DataLog!D3373&\"_\"&TEXT(DataLog!B3373,\"åååå-mm-dd\"),\"\")","v":""},{"$f":"IF(DataLog!$C3373=\"Log value\",DataLog!E3373,\"\")","v":""},{"$f":"IF(DataLog!$C3373=\"Log value\",DataLog!F3373,\"\")","v":""},{"$f":"IF(DataLog!$C3373=\"Log value\",DataLog!G3373,\"\")","v":""},{"$f":"IF(DataLog!$C3373=\"Log value\",DataLog!H3373,\"\")","v":""},{"$f":"IF(DataLog!$C3373=\"Log value\",DataLog!I3373,\"\")","v":""},{"$f":"IF(DataLog!$C3373=\"Log value\",DataLog!J3373,\"\")","v":""},{"$f":"IF(DataLog!$C3373=\"Log value\",DataLog!K3373,\"\")","v":""},{"$f":"IF(DataLog!$C3373=\"Log value\",DataLog!L3373,\"\")","v":""},{"$f":"IF(DataLog!$C3373=\"Log value\",DataLog!M3373,\"\")","v":""},{"$f":"IF(DataLog!$C3373=\"Log value\",DataLog!N3373,\"\")","v":""},{"$f":"IF(DataLog!$C3373=\"Log value\",DataLog!O3373,\"\")","v":""},{"$f":"IF(DataLog!$C3373=\"Log value\",DataLog!P3373,\"\")","v":""},{"$f":"IF(DataLog!$C3373=\"Log value\",DataLog!Q3373,\"\")","v":""},{"$f":"IF(DataLog!$C3373=\"Log value\",DataLog!R3373,\"\")","v":""},{"$f":"IF(DataLog!$C3373=\"Log value\",DataLog!S3373,\"\")","v":""},{"$f":"IF(DataLog!$C3373=\"Log value\",DataLog!T3373,\"\")","v":""},{"$f":"IF(DataLog!$C3373=\"Log value\",DataLog!U3373,\"\")","v":""},{"$f":"IF(DataLog!$C3373=\"Log value\",DataLog!V3373,\"\")","v":""},{"$f":"IF(DataLog!$C3373=\"Log value\",DataLog!W3373,\"\")","v":""},{"$f":"IF(DataLog!$C3373=\"Log value\",DataLog!X3373,\"\")","v":""},{"$f":"IF(DataLog!$C3373=\"Log value\",DataLog!Y3373,\"\")","v":""},{"$f":"IF(DataLog!$C3373=\"Log value\",DataLog!Z3373,\"\")","v":""},{"$f":"IF(DataLog!$C3373=\"Log value\",DataLog!AA3373,\"\")","v":""},{"$f":"IF(DataLog!$C3373=\"Log value\",DataLog!AB3373,\"\")","v":""},{"$f":"IF(DataLog!$C3373=\"Log value\",DataLog!AC3373,\"\")","v":""},{"$f":"IF(DataLog!$C3373=\"Log value\",DataLog!AD3373,\"\")","v":""},{"$f":"IF(DataLog!$C3373=\"Log value\",DataLog!AE3373,\"\")","v":""},{"$f":"IF(DataLog!$C3373=\"Log value\",DataLog!AF3373,\"\")","v":""},{"$f":"IF(DataLog!$C3373=\"Log value\",DataLog!AG3373,\"\")","v":""},{"$f":"IF(DataLog!$C3373=\"Log value\",DataLog!AH3373,\"\")","v":""},{"$f":"IF(DataLog!$C3373=\"Log value\",DataLog!AI3373,\"\")","v":""},{"$f":"IF(DataLog!$C3373=\"Log value\",DataLog!AJ3373,\"\")","v":""},{"$f":"IF(DataLog!$C3373=\"Log value\",DataLog!AK3373,\"\")","v":""},{"$f":"IF(DataLog!$C3373=\"Log value\",DataLog!AL3373,\"\")","v":""},{"$f":"IF(DataLog!$C3373=\"Log value\",DataLog!AM3373,\"\")","v":""}]
[null,null,null,null,null,null,{"$f":"IF(DataLog!$C3374=\"Log value\",DataLog!D3374&\"_\"&TEXT(DataLog!B3374,\"åååå-mm-dd\"),\"\")","v":""},{"$f":"IF(DataLog!$C3374=\"Log value\",DataLog!E3374,\"\")","v":""},{"$f":"IF(DataLog!$C3374=\"Log value\",DataLog!F3374,\"\")","v":""},{"$f":"IF(DataLog!$C3374=\"Log value\",DataLog!G3374,\"\")","v":""},{"$f":"IF(DataLog!$C3374=\"Log value\",DataLog!H3374,\"\")","v":""},{"$f":"IF(DataLog!$C3374=\"Log value\",DataLog!I3374,\"\")","v":""},{"$f":"IF(DataLog!$C3374=\"Log value\",DataLog!J3374,\"\")","v":""},{"$f":"IF(DataLog!$C3374=\"Log value\",DataLog!K3374,\"\")","v":""},{"$f":"IF(DataLog!$C3374=\"Log value\",DataLog!L3374,\"\")","v":""},{"$f":"IF(DataLog!$C3374=\"Log value\",DataLog!M3374,\"\")","v":""},{"$f":"IF(DataLog!$C3374=\"Log value\",DataLog!N3374,\"\")","v":""},{"$f":"IF(DataLog!$C3374=\"Log value\",DataLog!O3374,\"\")","v":""},{"$f":"IF(DataLog!$C3374=\"Log value\",DataLog!P3374,\"\")","v":""},{"$f":"IF(DataLog!$C3374=\"Log value\",DataLog!Q3374,\"\")","v":""},{"$f":"IF(DataLog!$C3374=\"Log value\",DataLog!R3374,\"\")","v":""},{"$f":"IF(DataLog!$C3374=\"Log value\",DataLog!S3374,\"\")","v":""},{"$f":"IF(DataLog!$C3374=\"Log value\",DataLog!T3374,\"\")","v":""},{"$f":"IF(DataLog!$C3374=\"Log value\",DataLog!U3374,\"\")","v":""},{"$f":"IF(DataLog!$C3374=\"Log value\",DataLog!V3374,\"\")","v":""},{"$f":"IF(DataLog!$C3374=\"Log value\",DataLog!W3374,\"\")","v":""},{"$f":"IF(DataLog!$C3374=\"Log value\",DataLog!X3374,\"\")","v":""},{"$f":"IF(DataLog!$C3374=\"Log value\",DataLog!Y3374,\"\")","v":""},{"$f":"IF(DataLog!$C3374=\"Log value\",DataLog!Z3374,\"\")","v":""},{"$f":"IF(DataLog!$C3374=\"Log value\",DataLog!AA3374,\"\")","v":""},{"$f":"IF(DataLog!$C3374=\"Log value\",DataLog!AB3374,\"\")","v":""},{"$f":"IF(DataLog!$C3374=\"Log value\",DataLog!AC3374,\"\")","v":""},{"$f":"IF(DataLog!$C3374=\"Log value\",DataLog!AD3374,\"\")","v":""},{"$f":"IF(DataLog!$C3374=\"Log value\",DataLog!AE3374,\"\")","v":""},{"$f":"IF(DataLog!$C3374=\"Log value\",DataLog!AF3374,\"\")","v":""},{"$f":"IF(DataLog!$C3374=\"Log value\",DataLog!AG3374,\"\")","v":""},{"$f":"IF(DataLog!$C3374=\"Log value\",DataLog!AH3374,\"\")","v":""},{"$f":"IF(DataLog!$C3374=\"Log value\",DataLog!AI3374,\"\")","v":""},{"$f":"IF(DataLog!$C3374=\"Log value\",DataLog!AJ3374,\"\")","v":""},{"$f":"IF(DataLog!$C3374=\"Log value\",DataLog!AK3374,\"\")","v":""},{"$f":"IF(DataLog!$C3374=\"Log value\",DataLog!AL3374,\"\")","v":""},{"$f":"IF(DataLog!$C3374=\"Log value\",DataLog!AM3374,\"\")","v":""}]
[null,null,null,null,null,null,{"$f":"IF(DataLog!$C3375=\"Log value\",DataLog!D3375&\"_\"&TEXT(DataLog!B3375,\"åååå-mm-dd\"),\"\")","v":""},{"$f":"IF(DataLog!$C3375=\"Log value\",DataLog!E3375,\"\")","v":""},{"$f":"IF(DataLog!$C3375=\"Log value\",DataLog!F3375,\"\")","v":""},{"$f":"IF(DataLog!$C3375=\"Log value\",DataLog!G3375,\"\")","v":""},{"$f":"IF(DataLog!$C3375=\"Log value\",DataLog!H3375,\"\")","v":""},{"$f":"IF(DataLog!$C3375=\"Log value\",DataLog!I3375,\"\")","v":""},{"$f":"IF(DataLog!$C3375=\"Log value\",DataLog!J3375,\"\")","v":""},{"$f":"IF(DataLog!$C3375=\"Log value\",DataLog!K3375,\"\")","v":""},{"$f":"IF(DataLog!$C3375=\"Log value\",DataLog!L3375,\"\")","v":""},{"$f":"IF(DataLog!$C3375=\"Log value\",DataLog!M3375,\"\")","v":""},{"$f":"IF(DataLog!$C3375=\"Log value\",DataLog!N3375,\"\")","v":""},{"$f":"IF(DataLog!$C3375=\"Log value\",DataLog!O3375,\"\")","v":""},{"$f":"IF(DataLog!$C3375=\"Log value\",DataLog!P3375,\"\")","v":""},{"$f":"IF(DataLog!$C3375=\"Log value\",DataLog!Q3375,\"\")","v":""},{"$f":"IF(DataLog!$C3375=\"Log value\",DataLog!R3375,\"\")","v":""},{"$f":"IF(DataLog!$C3375=\"Log value\",DataLog!S3375,\"\")","v":""},{"$f":"IF(DataLog!$C3375=\"Log value\",DataLog!T3375,\"\")","v":""},{"$f":"IF(DataLog!$C3375=\"Log value\",DataLog!U3375,\"\")","v":""},{"$f":"IF(DataLog!$C3375=\"Log value\",DataLog!V3375,\"\")","v":""},{"$f":"IF(DataLog!$C3375=\"Log value\",DataLog!W3375,\"\")","v":""},{"$f":"IF(DataLog!$C3375=\"Log value\",DataLog!X3375,\"\")","v":""},{"$f":"IF(DataLog!$C3375=\"Log value\",DataLog!Y3375,\"\")","v":""},{"$f":"IF(DataLog!$C3375=\"Log value\",DataLog!Z3375,\"\")","v":""},{"$f":"IF(DataLog!$C3375=\"Log value\",DataLog!AA3375,\"\")","v":""},{"$f":"IF(DataLog!$C3375=\"Log value\",DataLog!AB3375,\"\")","v":""},{"$f":"IF(DataLog!$C3375=\"Log value\",DataLog!AC3375,\"\")","v":""},{"$f":"IF(DataLog!$C3375=\"Log value\",DataLog!AD3375,\"\")","v":""},{"$f":"IF(DataLog!$C3375=\"Log value\",DataLog!AE3375,\"\")","v":""},{"$f":"IF(DataLog!$C3375=\"Log value\",DataLog!AF3375,\"\")","v":""},{"$f":"IF(DataLog!$C3375=\"Log value\",DataLog!AG3375,\"\")","v":""},{"$f":"IF(DataLog!$C3375=\"Log value\",DataLog!AH3375,\"\")","v":""},{"$f":"IF(DataLog!$C3375=\"Log value\",DataLog!AI3375,\"\")","v":""},{"$f":"IF(DataLog!$C3375=\"Log value\",DataLog!AJ3375,\"\")","v":""},{"$f":"IF(DataLog!$C3375=\"Log value\",DataLog!AK3375,\"\")","v":""},{"$f":"IF(DataLog!$C3375=\"Log value\",DataLog!AL3375,\"\")","v":""},{"$f":"IF(DataLog!$C3375=\"Log value\",DataLog!AM3375,\"\")","v":""}]
[null,null,null,null,null,null,{"$f":"IF(DataLog!$C3376=\"Log value\",DataLog!D3376&\"_\"&TEXT(DataLog!B3376,\"åååå-mm-dd\"),\"\")","v":""},{"$f":"IF(DataLog!$C3376=\"Log value\",DataLog!E3376,\"\")","v":""},{"$f":"IF(DataLog!$C3376=\"Log value\",DataLog!F3376,\"\")","v":""},{"$f":"IF(DataLog!$C3376=\"Log value\",DataLog!G3376,\"\")","v":""},{"$f":"IF(DataLog!$C3376=\"Log value\",DataLog!H3376,\"\")","v":""},{"$f":"IF(DataLog!$C3376=\"Log value\",DataLog!I3376,\"\")","v":""},{"$f":"IF(DataLog!$C3376=\"Log value\",DataLog!J3376,\"\")","v":""},{"$f":"IF(DataLog!$C3376=\"Log value\",DataLog!K3376,\"\")","v":""},{"$f":"IF(DataLog!$C3376=\"Log value\",DataLog!L3376,\"\")","v":""},{"$f":"IF(DataLog!$C3376=\"Log value\",DataLog!M3376,\"\")","v":""},{"$f":"IF(DataLog!$C3376=\"Log value\",DataLog!N3376,\"\")","v":""},{"$f":"IF(DataLog!$C3376=\"Log value\",DataLog!O3376,\"\")","v":""},{"$f":"IF(DataLog!$C3376=\"Log value\",DataLog!P3376,\"\")","v":""},{"$f":"IF(DataLog!$C3376=\"Log value\",DataLog!Q3376,\"\")","v":""},{"$f":"IF(DataLog!$C3376=\"Log value\",DataLog!R3376,\"\")","v":""},{"$f":"IF(DataLog!$C3376=\"Log value\",DataLog!S3376,\"\")","v":""},{"$f":"IF(DataLog!$C3376=\"Log value\",DataLog!T3376,\"\")","v":""},{"$f":"IF(DataLog!$C3376=\"Log value\",DataLog!U3376,\"\")","v":""},{"$f":"IF(DataLog!$C3376=\"Log value\",DataLog!V3376,\"\")","v":""},{"$f":"IF(DataLog!$C3376=\"Log value\",DataLog!W3376,\"\")","v":""},{"$f":"IF(DataLog!$C3376=\"Log value\",DataLog!X3376,\"\")","v":""},{"$f":"IF(DataLog!$C3376=\"Log value\",DataLog!Y3376,\"\")","v":""},{"$f":"IF(DataLog!$C3376=\"Log value\",DataLog!Z3376,\"\")","v":""},{"$f":"IF(DataLog!$C3376=\"Log value\",DataLog!AA3376,\"\")","v":""},{"$f":"IF(DataLog!$C3376=\"Log value\",DataLog!AB3376,\"\")","v":""},{"$f":"IF(DataLog!$C3376=\"Log value\",DataLog!AC3376,\"\")","v":""},{"$f":"IF(DataLog!$C3376=\"Log value\",DataLog!AD3376,\"\")","v":""},{"$f":"IF(DataLog!$C3376=\"Log value\",DataLog!AE3376,\"\")","v":""},{"$f":"IF(DataLog!$C3376=\"Log value\",DataLog!AF3376,\"\")","v":""},{"$f":"IF(DataLog!$C3376=\"Log value\",DataLog!AG3376,\"\")","v":""},{"$f":"IF(DataLog!$C3376=\"Log value\",DataLog!AH3376,\"\")","v":""},{"$f":"IF(DataLog!$C3376=\"Log value\",DataLog!AI3376,\"\")","v":""},{"$f":"IF(DataLog!$C3376=\"Log value\",DataLog!AJ3376,\"\")","v":""},{"$f":"IF(DataLog!$C3376=\"Log value\",DataLog!AK3376,\"\")","v":""},{"$f":"IF(DataLog!$C3376=\"Log value\",DataLog!AL3376,\"\")","v":""},{"$f":"IF(DataLog!$C3376=\"Log value\",DataLog!AM3376,\"\")","v":""}]
[null,null,null,null,null,null,{"$f":"IF(DataLog!$C3377=\"Log value\",DataLog!D3377&\"_\"&TEXT(DataLog!B3377,\"åååå-mm-dd\"),\"\")","v":""},{"$f":"IF(DataLog!$C3377=\"Log value\",DataLog!E3377,\"\")","v":""},{"$f":"IF(DataLog!$C3377=\"Log value\",DataLog!F3377,\"\")","v":""},{"$f":"IF(DataLog!$C3377=\"Log value\",DataLog!G3377,\"\")","v":""},{"$f":"IF(DataLog!$C3377=\"Log value\",DataLog!H3377,\"\")","v":""},{"$f":"IF(DataLog!$C3377=\"Log value\",DataLog!I3377,\"\")","v":""},{"$f":"IF(DataLog!$C3377=\"Log value\",DataLog!J3377,\"\")","v":""},{"$f":"IF(DataLog!$C3377=\"Log value\",DataLog!K3377,\"\")","v":""},{"$f":"IF(DataLog!$C3377=\"Log value\",DataLog!L3377,\"\")","v":""},{"$f":"IF(DataLog!$C3377=\"Log value\",DataLog!M3377,\"\")","v":""},{"$f":"IF(DataLog!$C3377=\"Log value\",DataLog!N3377,\"\")","v":""},{"$f":"IF(DataLog!$C3377=\"Log value\",DataLog!O3377,\"\")","v":""},{"$f":"IF(DataLog!$C3377=\"Log value\",DataLog!P3377,\"\")","v":""},{"$f":"IF(DataLog!$C3377=\"Log value\",DataLog!Q3377,\"\")","v":""},{"$f":"IF(DataLog!$C3377=\"Log value\",DataLog!R3377,\"\")","v":""},{"$f":"IF(DataLog!$C3377=\"Log value\",DataLog!S3377,\"\")","v":""},{"$f":"IF(DataLog!$C3377=\"Log value\",DataLog!T3377,\"\")","v":""},{"$f":"IF(DataLog!$C3377=\"Log value\",DataLog!U3377,\"\")","v":""},{"$f":"IF(DataLog!$C3377=\"Log value\",DataLog!V3377,\"\")","v":""},{"$f":"IF(DataLog!$C3377=\"Log value\",DataLog!W3377,\"\")","v":""},{"$f":"IF(DataLog!$C3377=\"Log value\",DataLog!X3377,\"\")","v":""},{"$f":"IF(DataLog!$C3377=\"Log value\",DataLog!Y3377,\"\")","v":""},{"$f":"IF(DataLog!$C3377=\"Log value\",DataLog!Z3377,\"\")","v":""},{"$f":"IF(DataLog!$C3377=\"Log value\",DataLog!AA3377,\"\")","v":""},{"$f":"IF(DataLog!$C3377=\"Log value\",DataLog!AB3377,\"\")","v":""},{"$f":"IF(DataLog!$C3377=\"Log value\",DataLog!AC3377,\"\")","v":""},{"$f":"IF(DataLog!$C3377=\"Log value\",DataLog!AD3377,\"\")","v":""},{"$f":"IF(DataLog!$C3377=\"Log value\",DataLog!AE3377,\"\")","v":""},{"$f":"IF(DataLog!$C3377=\"Log value\",DataLog!AF3377,\"\")","v":""},{"$f":"IF(DataLog!$C3377=\"Log value\",DataLog!AG3377,\"\")","v":""},{"$f":"IF(DataLog!$C3377=\"Log value\",DataLog!AH3377,\"\")","v":""},{"$f":"IF(DataLog!$C3377=\"Log value\",DataLog!AI3377,\"\")","v":""},{"$f":"IF(DataLog!$C3377=\"Log value\",DataLog!AJ3377,\"\")","v":""},{"$f":"IF(DataLog!$C3377=\"Log value\",DataLog!AK3377,\"\")","v":""},{"$f":"IF(DataLog!$C3377=\"Log value\",DataLog!AL3377,\"\")","v":""},{"$f":"IF(DataLog!$C3377=\"Log value\",DataLog!AM3377,\"\")","v":""}]
[null,null,null,null,null,null,{"$f":"IF(DataLog!$C3378=\"Log value\",DataLog!D3378&\"_\"&TEXT(DataLog!B3378,\"åååå-mm-dd\"),\"\")","v":""},{"$f":"IF(DataLog!$C3378=\"Log value\",DataLog!E3378,\"\")","v":""},{"$f":"IF(DataLog!$C3378=\"Log value\",DataLog!F3378,\"\")","v":""},{"$f":"IF(DataLog!$C3378=\"Log value\",DataLog!G3378,\"\")","v":""},{"$f":"IF(DataLog!$C3378=\"Log value\",DataLog!H3378,\"\")","v":""},{"$f":"IF(DataLog!$C3378=\"Log value\",DataLog!I3378,\"\")","v":""},{"$f":"IF(DataLog!$C3378=\"Log value\",DataLog!J3378,\"\")","v":""},{"$f":"IF(DataLog!$C3378=\"Log value\",DataLog!K3378,\"\")","v":""},{"$f":"IF(DataLog!$C3378=\"Log value\",DataLog!L3378,\"\")","v":""},{"$f":"IF(DataLog!$C3378=\"Log value\",DataLog!M3378,\"\")","v":""},{"$f":"IF(DataLog!$C3378=\"Log value\",DataLog!N3378,\"\")","v":""},{"$f":"IF(DataLog!$C3378=\"Log value\",DataLog!O3378,\"\")","v":""},{"$f":"IF(DataLog!$C3378=\"Log value\",DataLog!P3378,\"\")","v":""},{"$f":"IF(DataLog!$C3378=\"Log value\",DataLog!Q3378,\"\")","v":""},{"$f":"IF(DataLog!$C3378=\"Log value\",DataLog!R3378,\"\")","v":""},{"$f":"IF(DataLog!$C3378=\"Log value\",DataLog!S3378,\"\")","v":""},{"$f":"IF(DataLog!$C3378=\"Log value\",DataLog!T3378,\"\")","v":""},{"$f":"IF(DataLog!$C3378=\"Log value\",DataLog!U3378,\"\")","v":""},{"$f":"IF(DataLog!$C3378=\"Log value\",DataLog!V3378,\"\")","v":""},{"$f":"IF(DataLog!$C3378=\"Log value\",DataLog!W3378,\"\")","v":""},{"$f":"IF(DataLog!$C3378=\"Log value\",DataLog!X3378,\"\")","v":""},{"$f":"IF(DataLog!$C3378=\"Log value\",DataLog!Y3378,\"\")","v":""},{"$f":"IF(DataLog!$C3378=\"Log value\",DataLog!Z3378,\"\")","v":""},{"$f":"IF(DataLog!$C3378=\"Log value\",DataLog!AA3378,\"\")","v":""},{"$f":"IF(DataLog!$C3378=\"Log value\",DataLog!AB3378,\"\")","v":""},{"$f":"IF(DataLog!$C3378=\"Log value\",DataLog!AC3378,\"\")","v":""},{"$f":"IF(DataLog!$C3378=\"Log value\",DataLog!AD3378,\"\")","v":""},{"$f":"IF(DataLog!$C3378=\"Log value\",DataLog!AE3378,\"\")","v":""},{"$f":"IF(DataLog!$C3378=\"Log value\",DataLog!AF3378,\"\")","v":""},{"$f":"IF(DataLog!$C3378=\"Log value\",DataLog!AG3378,\"\")","v":""},{"$f":"IF(DataLog!$C3378=\"Log value\",DataLog!AH3378,\"\")","v":""},{"$f":"IF(DataLog!$C3378=\"Log value\",DataLog!AI3378,\"\")","v":""},{"$f":"IF(DataLog!$C3378=\"Log value\",DataLog!AJ3378,\"\")","v":""},{"$f":"IF(DataLog!$C3378=\"Log value\",DataLog!AK3378,\"\")","v":""},{"$f":"IF(DataLog!$C3378=\"Log value\",DataLog!AL3378,\"\")","v":""},{"$f":"IF(DataLog!$C3378=\"Log value\",DataLog!AM3378,\"\")","v":""}]
[null,null,null,null,null,null,{"$f":"IF(DataLog!$C3379=\"Log value\",DataLog!D3379&\"_\"&TEXT(DataLog!B3379,\"åååå-mm-dd\"),\"\")","v":""},{"$f":"IF(DataLog!$C3379=\"Log value\",DataLog!E3379,\"\")","v":""},{"$f":"IF(DataLog!$C3379=\"Log value\",DataLog!F3379,\"\")","v":""},{"$f":"IF(DataLog!$C3379=\"Log value\",DataLog!G3379,\"\")","v":""},{"$f":"IF(DataLog!$C3379=\"Log value\",DataLog!H3379,\"\")","v":""},{"$f":"IF(DataLog!$C3379=\"Log value\",DataLog!I3379,\"\")","v":""},{"$f":"IF(DataLog!$C3379=\"Log value\",DataLog!J3379,\"\")","v":""},{"$f":"IF(DataLog!$C3379=\"Log value\",DataLog!K3379,\"\")","v":""},{"$f":"IF(DataLog!$C3379=\"Log value\",DataLog!L3379,\"\")","v":""},{"$f":"IF(DataLog!$C3379=\"Log value\",DataLog!M3379,\"\")","v":""},{"$f":"IF(DataLog!$C3379=\"Log value\",DataLog!N3379,\"\")","v":""},{"$f":"IF(DataLog!$C3379=\"Log value\",DataLog!O3379,\"\")","v":""},{"$f":"IF(DataLog!$C3379=\"Log value\",DataLog!P3379,\"\")","v":""},{"$f":"IF(DataLog!$C3379=\"Log value\",DataLog!Q3379,\"\")","v":""},{"$f":"IF(DataLog!$C3379=\"Log value\",DataLog!R3379,\"\")","v":""},{"$f":"IF(DataLog!$C3379=\"Log value\",DataLog!S3379,\"\")","v":""},{"$f":"IF(DataLog!$C3379=\"Log value\",DataLog!T3379,\"\")","v":""},{"$f":"IF(DataLog!$C3379=\"Log value\",DataLog!U3379,\"\")","v":""},{"$f":"IF(DataLog!$C3379=\"Log value\",DataLog!V3379,\"\")","v":""},{"$f":"IF(DataLog!$C3379=\"Log value\",DataLog!W3379,\"\")","v":""},{"$f":"IF(DataLog!$C3379=\"Log value\",DataLog!X3379,\"\")","v":""},{"$f":"IF(DataLog!$C3379=\"Log value\",DataLog!Y3379,\"\")","v":""},{"$f":"IF(DataLog!$C3379=\"Log value\",DataLog!Z3379,\"\")","v":""},{"$f":"IF(DataLog!$C3379=\"Log value\",DataLog!AA3379,\"\")","v":""},{"$f":"IF(DataLog!$C3379=\"Log value\",DataLog!AB3379,\"\")","v":""},{"$f":"IF(DataLog!$C3379=\"Log value\",DataLog!AC3379,\"\")","v":""},{"$f":"IF(DataLog!$C3379=\"Log value\",DataLog!AD3379,\"\")","v":""},{"$f":"IF(DataLog!$C3379=\"Log value\",DataLog!AE3379,\"\")","v":""},{"$f":"IF(DataLog!$C3379=\"Log value\",DataLog!AF3379,\"\")","v":""},{"$f":"IF(DataLog!$C3379=\"Log value\",DataLog!AG3379,\"\")","v":""},{"$f":"IF(DataLog!$C3379=\"Log value\",DataLog!AH3379,\"\")","v":""},{"$f":"IF(DataLog!$C3379=\"Log value\",DataLog!AI3379,\"\")","v":""},{"$f":"IF(DataLog!$C3379=\"Log value\",DataLog!AJ3379,\"\")","v":""},{"$f":"IF(DataLog!$C3379=\"Log value\",DataLog!AK3379,\"\")","v":""},{"$f":"IF(DataLog!$C3379=\"Log value\",DataLog!AL3379,\"\")","v":""},{"$f":"IF(DataLog!$C3379=\"Log value\",DataLog!AM3379,\"\")","v":""}]
[null,null,null,null,null,null,{"$f":"IF(DataLog!$C3380=\"Log value\",DataLog!D3380&\"_\"&TEXT(DataLog!B3380,\"åååå-mm-dd\"),\"\")","v":""},{"$f":"IF(DataLog!$C3380=\"Log value\",DataLog!E3380,\"\")","v":""},{"$f":"IF(DataLog!$C3380=\"Log value\",DataLog!F3380,\"\")","v":""},{"$f":"IF(DataLog!$C3380=\"Log value\",DataLog!G3380,\"\")","v":""},{"$f":"IF(DataLog!$C3380=\"Log value\",DataLog!H3380,\"\")","v":""},{"$f":"IF(DataLog!$C3380=\"Log value\",DataLog!I3380,\"\")","v":""},{"$f":"IF(DataLog!$C3380=\"Log value\",DataLog!J3380,\"\")","v":""},{"$f":"IF(DataLog!$C3380=\"Log value\",DataLog!K3380,\"\")","v":""},{"$f":"IF(DataLog!$C3380=\"Log value\",DataLog!L3380,\"\")","v":""},{"$f":"IF(DataLog!$C3380=\"Log value\",DataLog!M3380,\"\")","v":""},{"$f":"IF(DataLog!$C3380=\"Log value\",DataLog!N3380,\"\")","v":""},{"$f":"IF(DataLog!$C3380=\"Log value\",DataLog!O3380,\"\")","v":""},{"$f":"IF(DataLog!$C3380=\"Log value\",DataLog!P3380,\"\")","v":""},{"$f":"IF(DataLog!$C3380=\"Log value\",DataLog!Q3380,\"\")","v":""},{"$f":"IF(DataLog!$C3380=\"Log value\",DataLog!R3380,\"\")","v":""},{"$f":"IF(DataLog!$C3380=\"Log value\",DataLog!S3380,\"\")","v":""},{"$f":"IF(DataLog!$C3380=\"Log value\",DataLog!T3380,\"\")","v":""},{"$f":"IF(DataLog!$C3380=\"Log value\",DataLog!U3380,\"\")","v":""},{"$f":"IF(DataLog!$C3380=\"Log value\",DataLog!V3380,\"\")","v":""},{"$f":"IF(DataLog!$C3380=\"Log value\",DataLog!W3380,\"\")","v":""},{"$f":"IF(DataLog!$C3380=\"Log value\",DataLog!X3380,\"\")","v":""},{"$f":"IF(DataLog!$C3380=\"Log value\",DataLog!Y3380,\"\")","v":""},{"$f":"IF(DataLog!$C3380=\"Log value\",DataLog!Z3380,\"\")","v":""},{"$f":"IF(DataLog!$C3380=\"Log value\",DataLog!AA3380,\"\")","v":""},{"$f":"IF(DataLog!$C3380=\"Log value\",DataLog!AB3380,\"\")","v":""},{"$f":"IF(DataLog!$C3380=\"Log value\",DataLog!AC3380,\"\")","v":""},{"$f":"IF(DataLog!$C3380=\"Log value\",DataLog!AD3380,\"\")","v":""},{"$f":"IF(DataLog!$C3380=\"Log value\",DataLog!AE3380,\"\")","v":""},{"$f":"IF(DataLog!$C3380=\"Log value\",DataLog!AF3380,\"\")","v":""},{"$f":"IF(DataLog!$C3380=\"Log value\",DataLog!AG3380,\"\")","v":""},{"$f":"IF(DataLog!$C3380=\"Log value\",DataLog!AH3380,\"\")","v":""},{"$f":"IF(DataLog!$C3380=\"Log value\",DataLog!AI3380,\"\")","v":""},{"$f":"IF(DataLog!$C3380=\"Log value\",DataLog!AJ3380,\"\")","v":""},{"$f":"IF(DataLog!$C3380=\"Log value\",DataLog!AK3380,\"\")","v":""},{"$f":"IF(DataLog!$C3380=\"Log value\",DataLog!AL3380,\"\")","v":""},{"$f":"IF(DataLog!$C3380=\"Log value\",DataLog!AM3380,\"\")","v":""}]
[null,null,null,null,null,null,{"$f":"IF(DataLog!$C3381=\"Log value\",DataLog!D3381&\"_\"&TEXT(DataLog!B3381,\"åååå-mm-dd\"),\"\")","v":""},{"$f":"IF(DataLog!$C3381=\"Log value\",DataLog!E3381,\"\")","v":""},{"$f":"IF(DataLog!$C3381=\"Log value\",DataLog!F3381,\"\")","v":""},{"$f":"IF(DataLog!$C3381=\"Log value\",DataLog!G3381,\"\")","v":""},{"$f":"IF(DataLog!$C3381=\"Log value\",DataLog!H3381,\"\")","v":""},{"$f":"IF(DataLog!$C3381=\"Log value\",DataLog!I3381,\"\")","v":""},{"$f":"IF(DataLog!$C3381=\"Log value\",DataLog!J3381,\"\")","v":""},{"$f":"IF(DataLog!$C3381=\"Log value\",DataLog!K3381,\"\")","v":""},{"$f":"IF(DataLog!$C3381=\"Log value\",DataLog!L3381,\"\")","v":""},{"$f":"IF(DataLog!$C3381=\"Log value\",DataLog!M3381,\"\")","v":""},{"$f":"IF(DataLog!$C3381=\"Log value\",DataLog!N3381,\"\")","v":""},{"$f":"IF(DataLog!$C3381=\"Log value\",DataLog!O3381,\"\")","v":""},{"$f":"IF(DataLog!$C3381=\"Log value\",DataLog!P3381,\"\")","v":""},{"$f":"IF(DataLog!$C3381=\"Log value\",DataLog!Q3381,\"\")","v":""},{"$f":"IF(DataLog!$C3381=\"Log value\",DataLog!R3381,\"\")","v":""},{"$f":"IF(DataLog!$C3381=\"Log value\",DataLog!S3381,\"\")","v":""},{"$f":"IF(DataLog!$C3381=\"Log value\",DataLog!T3381,\"\")","v":""},{"$f":"IF(DataLog!$C3381=\"Log value\",DataLog!U3381,\"\")","v":""},{"$f":"IF(DataLog!$C3381=\"Log value\",DataLog!V3381,\"\")","v":""},{"$f":"IF(DataLog!$C3381=\"Log value\",DataLog!W3381,\"\")","v":""},{"$f":"IF(DataLog!$C3381=\"Log value\",DataLog!X3381,\"\")","v":""},{"$f":"IF(DataLog!$C3381=\"Log value\",DataLog!Y3381,\"\")","v":""},{"$f":"IF(DataLog!$C3381=\"Log value\",DataLog!Z3381,\"\")","v":""},{"$f":"IF(DataLog!$C3381=\"Log value\",DataLog!AA3381,\"\")","v":""},{"$f":"IF(DataLog!$C3381=\"Log value\",DataLog!AB3381,\"\")","v":""},{"$f":"IF(DataLog!$C3381=\"Log value\",DataLog!AC3381,\"\")","v":""},{"$f":"IF(DataLog!$C3381=\"Log value\",DataLog!AD3381,\"\")","v":""},{"$f":"IF(DataLog!$C3381=\"Log value\",DataLog!AE3381,\"\")","v":""},{"$f":"IF(DataLog!$C3381=\"Log value\",DataLog!AF3381,\"\")","v":""},{"$f":"IF(DataLog!$C3381=\"Log value\",DataLog!AG3381,\"\")","v":""},{"$f":"IF(DataLog!$C3381=\"Log value\",DataLog!AH3381,\"\")","v":""},{"$f":"IF(DataLog!$C3381=\"Log value\",DataLog!AI3381,\"\")","v":""},{"$f":"IF(DataLog!$C3381=\"Log value\",DataLog!AJ3381,\"\")","v":""},{"$f":"IF(DataLog!$C3381=\"Log value\",DataLog!AK3381,\"\")","v":""},{"$f":"IF(DataLog!$C3381=\"Log value\",DataLog!AL3381,\"\")","v":""},{"$f":"IF(DataLog!$C3381=\"Log value\",DataLog!AM3381,\"\")","v":""}]
[null,null,null,null,null,null,{"$f":"IF(DataLog!$C3382=\"Log value\",DataLog!D3382&\"_\"&TEXT(DataLog!B3382,\"åååå-mm-dd\"),\"\")","v":""},{"$f":"IF(DataLog!$C3382=\"Log value\",DataLog!E3382,\"\")","v":""},{"$f":"IF(DataLog!$C3382=\"Log value\",DataLog!F3382,\"\")","v":""},{"$f":"IF(DataLog!$C3382=\"Log value\",DataLog!G3382,\"\")","v":""},{"$f":"IF(DataLog!$C3382=\"Log value\",DataLog!H3382,\"\")","v":""},{"$f":"IF(DataLog!$C3382=\"Log value\",DataLog!I3382,\"\")","v":""},{"$f":"IF(DataLog!$C3382=\"Log value\",DataLog!J3382,\"\")","v":""},{"$f":"IF(DataLog!$C3382=\"Log value\",DataLog!K3382,\"\")","v":""},{"$f":"IF(DataLog!$C3382=\"Log value\",DataLog!L3382,\"\")","v":""},{"$f":"IF(DataLog!$C3382=\"Log value\",DataLog!M3382,\"\")","v":""},{"$f":"IF(DataLog!$C3382=\"Log value\",DataLog!N3382,\"\")","v":""},{"$f":"IF(DataLog!$C3382=\"Log value\",DataLog!O3382,\"\")","v":""},{"$f":"IF(DataLog!$C3382=\"Log value\",DataLog!P3382,\"\")","v":""},{"$f":"IF(DataLog!$C3382=\"Log value\",DataLog!Q3382,\"\")","v":""},{"$f":"IF(DataLog!$C3382=\"Log value\",DataLog!R3382,\"\")","v":""},{"$f":"IF(DataLog!$C3382=\"Log value\",DataLog!S3382,\"\")","v":""},{"$f":"IF(DataLog!$C3382=\"Log value\",DataLog!T3382,\"\")","v":""},{"$f":"IF(DataLog!$C3382=\"Log value\",DataLog!U3382,\"\")","v":""},{"$f":"IF(DataLog!$C3382=\"Log value\",DataLog!V3382,\"\")","v":""},{"$f":"IF(DataLog!$C3382=\"Log value\",DataLog!W3382,\"\")","v":""},{"$f":"IF(DataLog!$C3382=\"Log value\",DataLog!X3382,\"\")","v":""},{"$f":"IF(DataLog!$C3382=\"Log value\",DataLog!Y3382,\"\")","v":""},{"$f":"IF(DataLog!$C3382=\"Log value\",DataLog!Z3382,\"\")","v":""},{"$f":"IF(DataLog!$C3382=\"Log value\",DataLog!AA3382,\"\")","v":""},{"$f":"IF(DataLog!$C3382=\"Log value\",DataLog!AB3382,\"\")","v":""},{"$f":"IF(DataLog!$C3382=\"Log value\",DataLog!AC3382,\"\")","v":""},{"$f":"IF(DataLog!$C3382=\"Log value\",DataLog!AD3382,\"\")","v":""},{"$f":"IF(DataLog!$C3382=\"Log value\",DataLog!AE3382,\"\")","v":""},{"$f":"IF(DataLog!$C3382=\"Log value\",DataLog!AF3382,\"\")","v":""},{"$f":"IF(DataLog!$C3382=\"Log value\",DataLog!AG3382,\"\")","v":""},{"$f":"IF(DataLog!$C3382=\"Log value\",DataLog!AH3382,\"\")","v":""},{"$f":"IF(DataLog!$C3382=\"Log value\",DataLog!AI3382,\"\")","v":""},{"$f":"IF(DataLog!$C3382=\"Log value\",DataLog!AJ3382,\"\")","v":""},{"$f":"IF(DataLog!$C3382=\"Log value\",DataLog!AK3382,\"\")","v":""},{"$f":"IF(DataLog!$C3382=\"Log value\",DataLog!AL3382,\"\")","v":""},{"$f":"IF(DataLog!$C3382=\"Log value\",DataLog!AM3382,\"\")","v":""}]
[null,null,null,null,null,null,{"$f":"IF(DataLog!$C3383=\"Log value\",DataLog!D3383&\"_\"&TEXT(DataLog!B3383,\"åååå-mm-dd\"),\"\")","v":""},{"$f":"IF(DataLog!$C3383=\"Log value\",DataLog!E3383,\"\")","v":""},{"$f":"IF(DataLog!$C3383=\"Log value\",DataLog!F3383,\"\")","v":""},{"$f":"IF(DataLog!$C3383=\"Log value\",DataLog!G3383,\"\")","v":""},{"$f":"IF(DataLog!$C3383=\"Log value\",DataLog!H3383,\"\")","v":""},{"$f":"IF(DataLog!$C3383=\"Log value\",DataLog!I3383,\"\")","v":""},{"$f":"IF(DataLog!$C3383=\"Log value\",DataLog!J3383,\"\")","v":""},{"$f":"IF(DataLog!$C3383=\"Log value\",DataLog!K3383,\"\")","v":""},{"$f":"IF(DataLog!$C3383=\"Log value\",DataLog!L3383,\"\")","v":""},{"$f":"IF(DataLog!$C3383=\"Log value\",DataLog!M3383,\"\")","v":""},{"$f":"IF(DataLog!$C3383=\"Log value\",DataLog!N3383,\"\")","v":""},{"$f":"IF(DataLog!$C3383=\"Log value\",DataLog!O3383,\"\")","v":""},{"$f":"IF(DataLog!$C3383=\"Log value\",DataLog!P3383,\"\")","v":""},{"$f":"IF(DataLog!$C3383=\"Log value\",DataLog!Q3383,\"\")","v":""},{"$f":"IF(DataLog!$C3383=\"Log value\",DataLog!R3383,\"\")","v":""},{"$f":"IF(DataLog!$C3383=\"Log value\",DataLog!S3383,\"\")","v":""},{"$f":"IF(DataLog!$C3383=\"Log value\",DataLog!T3383,\"\")","v":""},{"$f":"IF(DataLog!$C3383=\"Log value\",DataLog!U3383,\"\")","v":""},{"$f":"IF(DataLog!$C3383=\"Log value\",DataLog!V3383,\"\")","v":""},{"$f":"IF(DataLog!$C3383=\"Log value\",DataLog!W3383,\"\")","v":""},{"$f":"IF(DataLog!$C3383=\"Log value\",DataLog!X3383,\"\")","v":""},{"$f":"IF(DataLog!$C3383=\"Log value\",DataLog!Y3383,\"\")","v":""},{"$f":"IF(DataLog!$C3383=\"Log value\",DataLog!Z3383,\"\")","v":""},{"$f":"IF(DataLog!$C3383=\"Log value\",DataLog!AA3383,\"\")","v":""},{"$f":"IF(DataLog!$C3383=\"Log value\",DataLog!AB3383,\"\")","v":""},{"$f":"IF(DataLog!$C3383=\"Log value\",DataLog!AC3383,\"\")","v":""},{"$f":"IF(DataLog!$C3383=\"Log value\",DataLog!AD3383,\"\")","v":""},{"$f":"IF(DataLog!$C3383=\"Log value\",DataLog!AE3383,\"\")","v":""},{"$f":"IF(DataLog!$C3383=\"Log value\",DataLog!AF3383,\"\")","v":""},{"$f":"IF(DataLog!$C3383=\"Log value\",DataLog!AG3383,\"\")","v":""},{"$f":"IF(DataLog!$C3383=\"Log value\",DataLog!AH3383,\"\")","v":""},{"$f":"IF(DataLog!$C3383=\"Log value\",DataLog!AI3383,\"\")","v":""},{"$f":"IF(DataLog!$C3383=\"Log value\",DataLog!AJ3383,\"\")","v":""},{"$f":"IF(DataLog!$C3383=\"Log value\",DataLog!AK3383,\"\")","v":""},{"$f":"IF(DataLog!$C3383=\"Log value\",DataLog!AL3383,\"\")","v":""},{"$f":"IF(DataLog!$C3383=\"Log value\",DataLog!AM3383,\"\")","v":""}]
[null,null,null,null,null,null,{"$f":"IF(DataLog!$C3384=\"Log value\",DataLog!D3384&\"_\"&TEXT(DataLog!B3384,\"åååå-mm-dd\"),\"\")","v":""},{"$f":"IF(DataLog!$C3384=\"Log value\",DataLog!E3384,\"\")","v":""},{"$f":"IF(DataLog!$C3384=\"Log value\",DataLog!F3384,\"\")","v":""},{"$f":"IF(DataLog!$C3384=\"Log value\",DataLog!G3384,\"\")","v":""},{"$f":"IF(DataLog!$C3384=\"Log value\",DataLog!H3384,\"\")","v":""},{"$f":"IF(DataLog!$C3384=\"Log value\",DataLog!I3384,\"\")","v":""},{"$f":"IF(DataLog!$C3384=\"Log value\",DataLog!J3384,\"\")","v":""},{"$f":"IF(DataLog!$C3384=\"Log value\",DataLog!K3384,\"\")","v":""},{"$f":"IF(DataLog!$C3384=\"Log value\",DataLog!L3384,\"\")","v":""},{"$f":"IF(DataLog!$C3384=\"Log value\",DataLog!M3384,\"\")","v":""},{"$f":"IF(DataLog!$C3384=\"Log value\",DataLog!N3384,\"\")","v":""},{"$f":"IF(DataLog!$C3384=\"Log value\",DataLog!O3384,\"\")","v":""},{"$f":"IF(DataLog!$C3384=\"Log value\",DataLog!P3384,\"\")","v":""},{"$f":"IF(DataLog!$C3384=\"Log value\",DataLog!Q3384,\"\")","v":""},{"$f":"IF(DataLog!$C3384=\"Log value\",DataLog!R3384,\"\")","v":""},{"$f":"IF(DataLog!$C3384=\"Log value\",DataLog!S3384,\"\")","v":""},{"$f":"IF(DataLog!$C3384=\"Log value\",DataLog!T3384,\"\")","v":""},{"$f":"IF(DataLog!$C3384=\"Log value\",DataLog!U3384,\"\")","v":""},{"$f":"IF(DataLog!$C3384=\"Log value\",DataLog!V3384,\"\")","v":""},{"$f":"IF(DataLog!$C3384=\"Log value\",DataLog!W3384,\"\")","v":""},{"$f":"IF(DataLog!$C3384=\"Log value\",DataLog!X3384,\"\")","v":""},{"$f":"IF(DataLog!$C3384=\"Log value\",DataLog!Y3384,\"\")","v":""},{"$f":"IF(DataLog!$C3384=\"Log value\",DataLog!Z3384,\"\")","v":""},{"$f":"IF(DataLog!$C3384=\"Log value\",DataLog!AA3384,\"\")","v":""},{"$f":"IF(DataLog!$C3384=\"Log value\",DataLog!AB3384,\"\")","v":""},{"$f":"IF(DataLog!$C3384=\"Log value\",DataLog!AC3384,\"\")","v":""},{"$f":"IF(DataLog!$C3384=\"Log value\",DataLog!AD3384,\"\")","v":""},{"$f":"IF(DataLog!$C3384=\"Log value\",DataLog!AE3384,\"\")","v":""},{"$f":"IF(DataLog!$C3384=\"Log value\",DataLog!AF3384,\"\")","v":""},{"$f":"IF(DataLog!$C3384=\"Log value\",DataLog!AG3384,\"\")","v":""},{"$f":"IF(DataLog!$C3384=\"Log value\",DataLog!AH3384,\"\")","v":""},{"$f":"IF(DataLog!$C3384=\"Log value\",DataLog!AI3384,\"\")","v":""},{"$f":"IF(DataLog!$C3384=\"Log value\",DataLog!AJ3384,\"\")","v":""},{"$f":"IF(DataLog!$C3384=\"Log value\",DataLog!AK3384,\"\")","v":""},{"$f":"IF(DataLog!$C3384=\"Log value\",DataLog!AL3384,\"\")","v":""},{"$f":"IF(DataLog!$C3384=\"Log value\",DataLog!AM3384,\"\")","v":""}]
[null,null,null,null,null,null,{"$f":"IF(DataLog!$C3385=\"Log value\",DataLog!D3385&\"_\"&TEXT(DataLog!B3385,\"åååå-mm-dd\"),\"\")","v":""},{"$f":"IF(DataLog!$C3385=\"Log value\",DataLog!E3385,\"\")","v":""},{"$f":"IF(DataLog!$C3385=\"Log value\",DataLog!F3385,\"\")","v":""},{"$f":"IF(DataLog!$C3385=\"Log value\",DataLog!G3385,\"\")","v":""},{"$f":"IF(DataLog!$C3385=\"Log value\",DataLog!H3385,\"\")","v":""},{"$f":"IF(DataLog!$C3385=\"Log value\",DataLog!I3385,\"\")","v":""},{"$f":"IF(DataLog!$C3385=\"Log value\",DataLog!J3385,\"\")","v":""},{"$f":"IF(DataLog!$C3385=\"Log value\",DataLog!K3385,\"\")","v":""},{"$f":"IF(DataLog!$C3385=\"Log value\",DataLog!L3385,\"\")","v":""},{"$f":"IF(DataLog!$C3385=\"Log value\",DataLog!M3385,\"\")","v":""},{"$f":"IF(DataLog!$C3385=\"Log value\",DataLog!N3385,\"\")","v":""},{"$f":"IF(DataLog!$C3385=\"Log value\",DataLog!O3385,\"\")","v":""},{"$f":"IF(DataLog!$C3385=\"Log value\",DataLog!P3385,\"\")","v":""},{"$f":"IF(DataLog!$C3385=\"Log value\",DataLog!Q3385,\"\")","v":""},{"$f":"IF(DataLog!$C3385=\"Log value\",DataLog!R3385,\"\")","v":""},{"$f":"IF(DataLog!$C3385=\"Log value\",DataLog!S3385,\"\")","v":""},{"$f":"IF(DataLog!$C3385=\"Log value\",DataLog!T3385,\"\")","v":""},{"$f":"IF(DataLog!$C3385=\"Log value\",DataLog!U3385,\"\")","v":""},{"$f":"IF(DataLog!$C3385=\"Log value\",DataLog!V3385,\"\")","v":""},{"$f":"IF(DataLog!$C3385=\"Log value\",DataLog!W3385,\"\")","v":""},{"$f":"IF(DataLog!$C3385=\"Log value\",DataLog!X3385,\"\")","v":""},{"$f":"IF(DataLog!$C3385=\"Log value\",DataLog!Y3385,\"\")","v":""},{"$f":"IF(DataLog!$C3385=\"Log value\",DataLog!Z3385,\"\")","v":""},{"$f":"IF(DataLog!$C3385=\"Log value\",DataLog!AA3385,\"\")","v":""},{"$f":"IF(DataLog!$C3385=\"Log value\",DataLog!AB3385,\"\")","v":""},{"$f":"IF(DataLog!$C3385=\"Log value\",DataLog!AC3385,\"\")","v":""},{"$f":"IF(DataLog!$C3385=\"Log value\",DataLog!AD3385,\"\")","v":""},{"$f":"IF(DataLog!$C3385=\"Log value\",DataLog!AE3385,\"\")","v":""},{"$f":"IF(DataLog!$C3385=\"Log value\",DataLog!AF3385,\"\")","v":""},{"$f":"IF(DataLog!$C3385=\"Log value\",DataLog!AG3385,\"\")","v":""},{"$f":"IF(DataLog!$C3385=\"Log value\",DataLog!AH3385,\"\")","v":""},{"$f":"IF(DataLog!$C3385=\"Log value\",DataLog!AI3385,\"\")","v":""},{"$f":"IF(DataLog!$C3385=\"Log value\",DataLog!AJ3385,\"\")","v":""},{"$f":"IF(DataLog!$C3385=\"Log value\",DataLog!AK3385,\"\")","v":""},{"$f":"IF(DataLog!$C3385=\"Log value\",DataLog!AL3385,\"\")","v":""},{"$f":"IF(DataLog!$C3385=\"Log value\",DataLog!AM3385,\"\")","v":""}]
[null,null,null,null,null,null,{"$f":"IF(DataLog!$C3386=\"Log value\",DataLog!D3386&\"_\"&TEXT(DataLog!B3386,\"åååå-mm-dd\"),\"\")","v":""},{"$f":"IF(DataLog!$C3386=\"Log value\",DataLog!E3386,\"\")","v":""},{"$f":"IF(DataLog!$C3386=\"Log value\",DataLog!F3386,\"\")","v":""},{"$f":"IF(DataLog!$C3386=\"Log value\",DataLog!G3386,\"\")","v":""},{"$f":"IF(DataLog!$C3386=\"Log value\",DataLog!H3386,\"\")","v":""},{"$f":"IF(DataLog!$C3386=\"Log value\",DataLog!I3386,\"\")","v":""},{"$f":"IF(DataLog!$C3386=\"Log value\",DataLog!J3386,\"\")","v":""},{"$f":"IF(DataLog!$C3386=\"Log value\",DataLog!K3386,\"\")","v":""},{"$f":"IF(DataLog!$C3386=\"Log value\",DataLog!L3386,\"\")","v":""},{"$f":"IF(DataLog!$C3386=\"Log value\",DataLog!M3386,\"\")","v":""},{"$f":"IF(DataLog!$C3386=\"Log value\",DataLog!N3386,\"\")","v":""},{"$f":"IF(DataLog!$C3386=\"Log value\",DataLog!O3386,\"\")","v":""},{"$f":"IF(DataLog!$C3386=\"Log value\",DataLog!P3386,\"\")","v":""},{"$f":"IF(DataLog!$C3386=\"Log value\",DataLog!Q3386,\"\")","v":""},{"$f":"IF(DataLog!$C3386=\"Log value\",DataLog!R3386,\"\")","v":""},{"$f":"IF(DataLog!$C3386=\"Log value\",DataLog!S3386,\"\")","v":""},{"$f":"IF(DataLog!$C3386=\"Log value\",DataLog!T3386,\"\")","v":""},{"$f":"IF(DataLog!$C3386=\"Log value\",DataLog!U3386,\"\")","v":""},{"$f":"IF(DataLog!$C3386=\"Log value\",DataLog!V3386,\"\")","v":""},{"$f":"IF(DataLog!$C3386=\"Log value\",DataLog!W3386,\"\")","v":""},{"$f":"IF(DataLog!$C3386=\"Log value\",DataLog!X3386,\"\")","v":""},{"$f":"IF(DataLog!$C3386=\"Log value\",DataLog!Y3386,\"\")","v":""},{"$f":"IF(DataLog!$C3386=\"Log value\",DataLog!Z3386,\"\")","v":""},{"$f":"IF(DataLog!$C3386=\"Log value\",DataLog!AA3386,\"\")","v":""},{"$f":"IF(DataLog!$C3386=\"Log value\",DataLog!AB3386,\"\")","v":""},{"$f":"IF(DataLog!$C3386=\"Log value\",DataLog!AC3386,\"\")","v":""},{"$f":"IF(DataLog!$C3386=\"Log value\",DataLog!AD3386,\"\")","v":""},{"$f":"IF(DataLog!$C3386=\"Log value\",DataLog!AE3386,\"\")","v":""},{"$f":"IF(DataLog!$C3386=\"Log value\",DataLog!AF3386,\"\")","v":""},{"$f":"IF(DataLog!$C3386=\"Log value\",DataLog!AG3386,\"\")","v":""},{"$f":"IF(DataLog!$C3386=\"Log value\",DataLog!AH3386,\"\")","v":""},{"$f":"IF(DataLog!$C3386=\"Log value\",DataLog!AI3386,\"\")","v":""},{"$f":"IF(DataLog!$C3386=\"Log value\",DataLog!AJ3386,\"\")","v":""},{"$f":"IF(DataLog!$C3386=\"Log value\",DataLog!AK3386,\"\")","v":""},{"$f":"IF(DataLog!$C3386=\"Log value\",DataLog!AL3386,\"\")","v":""},{"$f":"IF(DataLog!$C3386=\"Log value\",DataLog!AM3386,\"\")","v":""}]
[null,null,null,null,null,null,{"$f":"IF(DataLog!$C3387=\"Log value\",DataLog!D3387&\"_\"&TEXT(DataLog!B3387,\"åååå-mm-dd\"),\"\")","v":""},{"$f":"IF(DataLog!$C3387=\"Log value\",DataLog!E3387,\"\")","v":""},{"$f":"IF(DataLog!$C3387=\"Log value\",DataLog!F3387,\"\")","v":""},{"$f":"IF(DataLog!$C3387=\"Log value\",DataLog!G3387,\"\")","v":""},{"$f":"IF(DataLog!$C3387=\"Log value\",DataLog!H3387,\"\")","v":""},{"$f":"IF(DataLog!$C3387=\"Log value\",DataLog!I3387,\"\")","v":""},{"$f":"IF(DataLog!$C3387=\"Log value\",DataLog!J3387,\"\")","v":""},{"$f":"IF(DataLog!$C3387=\"Log value\",DataLog!K3387,\"\")","v":""},{"$f":"IF(DataLog!$C3387=\"Log value\",DataLog!L3387,\"\")","v":""},{"$f":"IF(DataLog!$C3387=\"Log value\",DataLog!M3387,\"\")","v":""},{"$f":"IF(DataLog!$C3387=\"Log value\",DataLog!N3387,\"\")","v":""},{"$f":"IF(DataLog!$C3387=\"Log value\",DataLog!O3387,\"\")","v":""},{"$f":"IF(DataLog!$C3387=\"Log value\",DataLog!P3387,\"\")","v":""},{"$f":"IF(DataLog!$C3387=\"Log value\",DataLog!Q3387,\"\")","v":""},{"$f":"IF(DataLog!$C3387=\"Log value\",DataLog!R3387,\"\")","v":""},{"$f":"IF(DataLog!$C3387=\"Log value\",DataLog!S3387,\"\")","v":""},{"$f":"IF(DataLog!$C3387=\"Log value\",DataLog!T3387,\"\")","v":""},{"$f":"IF(DataLog!$C3387=\"Log value\",DataLog!U3387,\"\")","v":""},{"$f":"IF(DataLog!$C3387=\"Log value\",DataLog!V3387,\"\")","v":""},{"$f":"IF(DataLog!$C3387=\"Log value\",DataLog!W3387,\"\")","v":""},{"$f":"IF(DataLog!$C3387=\"Log value\",DataLog!X3387,\"\")","v":""},{"$f":"IF(DataLog!$C3387=\"Log value\",DataLog!Y3387,\"\")","v":""},{"$f":"IF(DataLog!$C3387=\"Log value\",DataLog!Z3387,\"\")","v":""},{"$f":"IF(DataLog!$C3387=\"Log value\",DataLog!AA3387,\"\")","v":""},{"$f":"IF(DataLog!$C3387=\"Log value\",DataLog!AB3387,\"\")","v":""},{"$f":"IF(DataLog!$C3387=\"Log value\",DataLog!AC3387,\"\")","v":""},{"$f":"IF(DataLog!$C3387=\"Log value\",DataLog!AD3387,\"\")","v":""},{"$f":"IF(DataLog!$C3387=\"Log value\",DataLog!AE3387,\"\")","v":""},{"$f":"IF(DataLog!$C3387=\"Log value\",DataLog!AF3387,\"\")","v":""},{"$f":"IF(DataLog!$C3387=\"Log value\",DataLog!AG3387,\"\")","v":""},{"$f":"IF(DataLog!$C3387=\"Log value\",DataLog!AH3387,\"\")","v":""},{"$f":"IF(DataLog!$C3387=\"Log value\",DataLog!AI3387,\"\")","v":""},{"$f":"IF(DataLog!$C3387=\"Log value\",DataLog!AJ3387,\"\")","v":""},{"$f":"IF(DataLog!$C3387=\"Log value\",DataLog!AK3387,\"\")","v":""},{"$f":"IF(DataLog!$C3387=\"Log value\",DataLog!AL3387,\"\")","v":""},{"$f":"IF(DataLog!$C3387=\"Log value\",DataLog!AM3387,\"\")","v":""}]
[null,null,null,null,null,null,{"$f":"IF(DataLog!$C3388=\"Log value\",DataLog!D3388&\"_\"&TEXT(DataLog!B3388,\"åååå-mm-dd\"),\"\")","v":""},{"$f":"IF(DataLog!$C3388=\"Log value\",DataLog!E3388,\"\")","v":""},{"$f":"IF(DataLog!$C3388=\"Log value\",DataLog!F3388,\"\")","v":""},{"$f":"IF(DataLog!$C3388=\"Log value\",DataLog!G3388,\"\")","v":""},{"$f":"IF(DataLog!$C3388=\"Log value\",DataLog!H3388,\"\")","v":""},{"$f":"IF(DataLog!$C3388=\"Log value\",DataLog!I3388,\"\")","v":""},{"$f":"IF(DataLog!$C3388=\"Log value\",DataLog!J3388,\"\")","v":""},{"$f":"IF(DataLog!$C3388=\"Log value\",DataLog!K3388,\"\")","v":""},{"$f":"IF(DataLog!$C3388=\"Log value\",DataLog!L3388,\"\")","v":""},{"$f":"IF(DataLog!$C3388=\"Log value\",DataLog!M3388,\"\")","v":""},{"$f":"IF(DataLog!$C3388=\"Log value\",DataLog!N3388,\"\")","v":""},{"$f":"IF(DataLog!$C3388=\"Log value\",DataLog!O3388,\"\")","v":""},{"$f":"IF(DataLog!$C3388=\"Log value\",DataLog!P3388,\"\")","v":""},{"$f":"IF(DataLog!$C3388=\"Log value\",DataLog!Q3388,\"\")","v":""},{"$f":"IF(DataLog!$C3388=\"Log value\",DataLog!R3388,\"\")","v":""},{"$f":"IF(DataLog!$C3388=\"Log value\",DataLog!S3388,\"\")","v":""},{"$f":"IF(DataLog!$C3388=\"Log value\",DataLog!T3388,\"\")","v":""},{"$f":"IF(DataLog!$C3388=\"Log value\",DataLog!U3388,\"\")","v":""},{"$f":"IF(DataLog!$C3388=\"Log value\",DataLog!V3388,\"\")","v":""},{"$f":"IF(DataLog!$C3388=\"Log value\",DataLog!W3388,\"\")","v":""},{"$f":"IF(DataLog!$C3388=\"Log value\",DataLog!X3388,\"\")","v":""},{"$f":"IF(DataLog!$C3388=\"Log value\",DataLog!Y3388,\"\")","v":""},{"$f":"IF(DataLog!$C3388=\"Log value\",DataLog!Z3388,\"\")","v":""},{"$f":"IF(DataLog!$C3388=\"Log value\",DataLog!AA3388,\"\")","v":""},{"$f":"IF(DataLog!$C3388=\"Log value\",DataLog!AB3388,\"\")","v":""},{"$f":"IF(DataLog!$C3388=\"Log value\",DataLog!AC3388,\"\")","v":""},{"$f":"IF(DataLog!$C3388=\"Log value\",DataLog!AD3388,\"\")","v":""},{"$f":"IF(DataLog!$C3388=\"Log value\",DataLog!AE3388,\"\")","v":""},{"$f":"IF(DataLog!$C3388=\"Log value\",DataLog!AF3388,\"\")","v":""},{"$f":"IF(DataLog!$C3388=\"Log value\",DataLog!AG3388,\"\")","v":""},{"$f":"IF(DataLog!$C3388=\"Log value\",DataLog!AH3388,\"\")","v":""},{"$f":"IF(DataLog!$C3388=\"Log value\",DataLog!AI3388,\"\")","v":""},{"$f":"IF(DataLog!$C3388=\"Log value\",DataLog!AJ3388,\"\")","v":""},{"$f":"IF(DataLog!$C3388=\"Log value\",DataLog!AK3388,\"\")","v":""},{"$f":"IF(DataLog!$C3388=\"Log value\",DataLog!AL3388,\"\")","v":""},{"$f":"IF(DataLog!$C3388=\"Log value\",DataLog!AM3388,\"\")","v":""}]
[null,null,null,null,null,null,{"$f":"IF(DataLog!$C3389=\"Log value\",DataLog!D3389&\"_\"&TEXT(DataLog!B3389,\"åååå-mm-dd\"),\"\")","v":""},{"$f":"IF(DataLog!$C3389=\"Log value\",DataLog!E3389,\"\")","v":""},{"$f":"IF(DataLog!$C3389=\"Log value\",DataLog!F3389,\"\")","v":""},{"$f":"IF(DataLog!$C3389=\"Log value\",DataLog!G3389,\"\")","v":""},{"$f":"IF(DataLog!$C3389=\"Log value\",DataLog!H3389,\"\")","v":""},{"$f":"IF(DataLog!$C3389=\"Log value\",DataLog!I3389,\"\")","v":""},{"$f":"IF(DataLog!$C3389=\"Log value\",DataLog!J3389,\"\")","v":""},{"$f":"IF(DataLog!$C3389=\"Log value\",DataLog!K3389,\"\")","v":""},{"$f":"IF(DataLog!$C3389=\"Log value\",DataLog!L3389,\"\")","v":""},{"$f":"IF(DataLog!$C3389=\"Log value\",DataLog!M3389,\"\")","v":""},{"$f":"IF(DataLog!$C3389=\"Log value\",DataLog!N3389,\"\")","v":""},{"$f":"IF(DataLog!$C3389=\"Log value\",DataLog!O3389,\"\")","v":""},{"$f":"IF(DataLog!$C3389=\"Log value\",DataLog!P3389,\"\")","v":""},{"$f":"IF(DataLog!$C3389=\"Log value\",DataLog!Q3389,\"\")","v":""},{"$f":"IF(DataLog!$C3389=\"Log value\",DataLog!R3389,\"\")","v":""},{"$f":"IF(DataLog!$C3389=\"Log value\",DataLog!S3389,\"\")","v":""},{"$f":"IF(DataLog!$C3389=\"Log value\",DataLog!T3389,\"\")","v":""},{"$f":"IF(DataLog!$C3389=\"Log value\",DataLog!U3389,\"\")","v":""},{"$f":"IF(DataLog!$C3389=\"Log value\",DataLog!V3389,\"\")","v":""},{"$f":"IF(DataLog!$C3389=\"Log value\",DataLog!W3389,\"\")","v":""},{"$f":"IF(DataLog!$C3389=\"Log value\",DataLog!X3389,\"\")","v":""},{"$f":"IF(DataLog!$C3389=\"Log value\",DataLog!Y3389,\"\")","v":""},{"$f":"IF(DataLog!$C3389=\"Log value\",DataLog!Z3389,\"\")","v":""},{"$f":"IF(DataLog!$C3389=\"Log value\",DataLog!AA3389,\"\")","v":""},{"$f":"IF(DataLog!$C3389=\"Log value\",DataLog!AB3389,\"\")","v":""},{"$f":"IF(DataLog!$C3389=\"Log value\",DataLog!AC3389,\"\")","v":""},{"$f":"IF(DataLog!$C3389=\"Log value\",DataLog!AD3389,\"\")","v":""},{"$f":"IF(DataLog!$C3389=\"Log value\",DataLog!AE3389,\"\")","v":""},{"$f":"IF(DataLog!$C3389=\"Log value\",DataLog!AF3389,\"\")","v":""},{"$f":"IF(DataLog!$C3389=\"Log value\",DataLog!AG3389,\"\")","v":""},{"$f":"IF(DataLog!$C3389=\"Log value\",DataLog!AH3389,\"\")","v":""},{"$f":"IF(DataLog!$C3389=\"Log value\",DataLog!AI3389,\"\")","v":""},{"$f":"IF(DataLog!$C3389=\"Log value\",DataLog!AJ3389,\"\")","v":""},{"$f":"IF(DataLog!$C3389=\"Log value\",DataLog!AK3389,\"\")","v":""},{"$f":"IF(DataLog!$C3389=\"Log value\",DataLog!AL3389,\"\")","v":""},{"$f":"IF(DataLog!$C3389=\"Log value\",DataLog!AM3389,\"\")","v":""}]
[null,null,null,null,null,null,{"$f":"IF(DataLog!$C3390=\"Log value\",DataLog!D3390&\"_\"&TEXT(DataLog!B3390,\"åååå-mm-dd\"),\"\")","v":""},{"$f":"IF(DataLog!$C3390=\"Log value\",DataLog!E3390,\"\")","v":""},{"$f":"IF(DataLog!$C3390=\"Log value\",DataLog!F3390,\"\")","v":""},{"$f":"IF(DataLog!$C3390=\"Log value\",DataLog!G3390,\"\")","v":""},{"$f":"IF(DataLog!$C3390=\"Log value\",DataLog!H3390,\"\")","v":""},{"$f":"IF(DataLog!$C3390=\"Log value\",DataLog!I3390,\"\")","v":""},{"$f":"IF(DataLog!$C3390=\"Log value\",DataLog!J3390,\"\")","v":""},{"$f":"IF(DataLog!$C3390=\"Log value\",DataLog!K3390,\"\")","v":""},{"$f":"IF(DataLog!$C3390=\"Log value\",DataLog!L3390,\"\")","v":""},{"$f":"IF(DataLog!$C3390=\"Log value\",DataLog!M3390,\"\")","v":""},{"$f":"IF(DataLog!$C3390=\"Log value\",DataLog!N3390,\"\")","v":""},{"$f":"IF(DataLog!$C3390=\"Log value\",DataLog!O3390,\"\")","v":""},{"$f":"IF(DataLog!$C3390=\"Log value\",DataLog!P3390,\"\")","v":""},{"$f":"IF(DataLog!$C3390=\"Log value\",DataLog!Q3390,\"\")","v":""},{"$f":"IF(DataLog!$C3390=\"Log value\",DataLog!R3390,\"\")","v":""},{"$f":"IF(DataLog!$C3390=\"Log value\",DataLog!S3390,\"\")","v":""},{"$f":"IF(DataLog!$C3390=\"Log value\",DataLog!T3390,\"\")","v":""},{"$f":"IF(DataLog!$C3390=\"Log value\",DataLog!U3390,\"\")","v":""},{"$f":"IF(DataLog!$C3390=\"Log value\",DataLog!V3390,\"\")","v":""},{"$f":"IF(DataLog!$C3390=\"Log value\",DataLog!W3390,\"\")","v":""},{"$f":"IF(DataLog!$C3390=\"Log value\",DataLog!X3390,\"\")","v":""},{"$f":"IF(DataLog!$C3390=\"Log value\",DataLog!Y3390,\"\")","v":""},{"$f":"IF(DataLog!$C3390=\"Log value\",DataLog!Z3390,\"\")","v":""},{"$f":"IF(DataLog!$C3390=\"Log value\",DataLog!AA3390,\"\")","v":""},{"$f":"IF(DataLog!$C3390=\"Log value\",DataLog!AB3390,\"\")","v":""},{"$f":"IF(DataLog!$C3390=\"Log value\",DataLog!AC3390,\"\")","v":""},{"$f":"IF(DataLog!$C3390=\"Log value\",DataLog!AD3390,\"\")","v":""},{"$f":"IF(DataLog!$C3390=\"Log value\",DataLog!AE3390,\"\")","v":""},{"$f":"IF(DataLog!$C3390=\"Log value\",DataLog!AF3390,\"\")","v":""},{"$f":"IF(DataLog!$C3390=\"Log value\",DataLog!AG3390,\"\")","v":""},{"$f":"IF(DataLog!$C3390=\"Log value\",DataLog!AH3390,\"\")","v":""},{"$f":"IF(DataLog!$C3390=\"Log value\",DataLog!AI3390,\"\")","v":""},{"$f":"IF(DataLog!$C3390=\"Log value\",DataLog!AJ3390,\"\")","v":""},{"$f":"IF(DataLog!$C3390=\"Log value\",DataLog!AK3390,\"\")","v":""},{"$f":"IF(DataLog!$C3390=\"Log value\",DataLog!AL3390,\"\")","v":""},{"$f":"IF(DataLog!$C3390=\"Log value\",DataLog!AM3390,\"\")","v":""}]
[null,null,null,null,null,null,{"$f":"IF(DataLog!$C3391=\"Log value\",DataLog!D3391&\"_\"&TEXT(DataLog!B3391,\"åååå-mm-dd\"),\"\")","v":""},{"$f":"IF(DataLog!$C3391=\"Log value\",DataLog!E3391,\"\")","v":""},{"$f":"IF(DataLog!$C3391=\"Log value\",DataLog!F3391,\"\")","v":""},{"$f":"IF(DataLog!$C3391=\"Log value\",DataLog!G3391,\"\")","v":""},{"$f":"IF(DataLog!$C3391=\"Log value\",DataLog!H3391,\"\")","v":""},{"$f":"IF(DataLog!$C3391=\"Log value\",DataLog!I3391,\"\")","v":""},{"$f":"IF(DataLog!$C3391=\"Log value\",DataLog!J3391,\"\")","v":""},{"$f":"IF(DataLog!$C3391=\"Log value\",DataLog!K3391,\"\")","v":""},{"$f":"IF(DataLog!$C3391=\"Log value\",DataLog!L3391,\"\")","v":""},{"$f":"IF(DataLog!$C3391=\"Log value\",DataLog!M3391,\"\")","v":""},{"$f":"IF(DataLog!$C3391=\"Log value\",DataLog!N3391,\"\")","v":""},{"$f":"IF(DataLog!$C3391=\"Log value\",DataLog!O3391,\"\")","v":""},{"$f":"IF(DataLog!$C3391=\"Log value\",DataLog!P3391,\"\")","v":""},{"$f":"IF(DataLog!$C3391=\"Log value\",DataLog!Q3391,\"\")","v":""},{"$f":"IF(DataLog!$C3391=\"Log value\",DataLog!R3391,\"\")","v":""},{"$f":"IF(DataLog!$C3391=\"Log value\",DataLog!S3391,\"\")","v":""},{"$f":"IF(DataLog!$C3391=\"Log value\",DataLog!T3391,\"\")","v":""},{"$f":"IF(DataLog!$C3391=\"Log value\",DataLog!U3391,\"\")","v":""},{"$f":"IF(DataLog!$C3391=\"Log value\",DataLog!V3391,\"\")","v":""},{"$f":"IF(DataLog!$C3391=\"Log value\",DataLog!W3391,\"\")","v":""},{"$f":"IF(DataLog!$C3391=\"Log value\",DataLog!X3391,\"\")","v":""},{"$f":"IF(DataLog!$C3391=\"Log value\",DataLog!Y3391,\"\")","v":""},{"$f":"IF(DataLog!$C3391=\"Log value\",DataLog!Z3391,\"\")","v":""},{"$f":"IF(DataLog!$C3391=\"Log value\",DataLog!AA3391,\"\")","v":""},{"$f":"IF(DataLog!$C3391=\"Log value\",DataLog!AB3391,\"\")","v":""},{"$f":"IF(DataLog!$C3391=\"Log value\",DataLog!AC3391,\"\")","v":""},{"$f":"IF(DataLog!$C3391=\"Log value\",DataLog!AD3391,\"\")","v":""},{"$f":"IF(DataLog!$C3391=\"Log value\",DataLog!AE3391,\"\")","v":""},{"$f":"IF(DataLog!$C3391=\"Log value\",DataLog!AF3391,\"\")","v":""},{"$f":"IF(DataLog!$C3391=\"Log value\",DataLog!AG3391,\"\")","v":""},{"$f":"IF(DataLog!$C3391=\"Log value\",DataLog!AH3391,\"\")","v":""},{"$f":"IF(DataLog!$C3391=\"Log value\",DataLog!AI3391,\"\")","v":""},{"$f":"IF(DataLog!$C3391=\"Log value\",DataLog!AJ3391,\"\")","v":""},{"$f":"IF(DataLog!$C3391=\"Log value\",DataLog!AK3391,\"\")","v":""},{"$f":"IF(DataLog!$C3391=\"Log value\",DataLog!AL3391,\"\")","v":""},{"$f":"IF(DataLog!$C3391=\"Log value\",DataLog!AM3391,\"\")","v":""}]
[null,null,null,null,null,null,{"$f":"IF(DataLog!$C3392=\"Log value\",DataLog!D3392&\"_\"&TEXT(DataLog!B3392,\"åååå-mm-dd\"),\"\")","v":""},{"$f":"IF(DataLog!$C3392=\"Log value\",DataLog!E3392,\"\")","v":""},{"$f":"IF(DataLog!$C3392=\"Log value\",DataLog!F3392,\"\")","v":""},{"$f":"IF(DataLog!$C3392=\"Log value\",DataLog!G3392,\"\")","v":""},{"$f":"IF(DataLog!$C3392=\"Log value\",DataLog!H3392,\"\")","v":""},{"$f":"IF(DataLog!$C3392=\"Log value\",DataLog!I3392,\"\")","v":""},{"$f":"IF(DataLog!$C3392=\"Log value\",DataLog!J3392,\"\")","v":""},{"$f":"IF(DataLog!$C3392=\"Log value\",DataLog!K3392,\"\")","v":""},{"$f":"IF(DataLog!$C3392=\"Log value\",DataLog!L3392,\"\")","v":""},{"$f":"IF(DataLog!$C3392=\"Log value\",DataLog!M3392,\"\")","v":""},{"$f":"IF(DataLog!$C3392=\"Log value\",DataLog!N3392,\"\")","v":""},{"$f":"IF(DataLog!$C3392=\"Log value\",DataLog!O3392,\"\")","v":""},{"$f":"IF(DataLog!$C3392=\"Log value\",DataLog!P3392,\"\")","v":""},{"$f":"IF(DataLog!$C3392=\"Log value\",DataLog!Q3392,\"\")","v":""},{"$f":"IF(DataLog!$C3392=\"Log value\",DataLog!R3392,\"\")","v":""},{"$f":"IF(DataLog!$C3392=\"Log value\",DataLog!S3392,\"\")","v":""},{"$f":"IF(DataLog!$C3392=\"Log value\",DataLog!T3392,\"\")","v":""},{"$f":"IF(DataLog!$C3392=\"Log value\",DataLog!U3392,\"\")","v":""},{"$f":"IF(DataLog!$C3392=\"Log value\",DataLog!V3392,\"\")","v":""},{"$f":"IF(DataLog!$C3392=\"Log value\",DataLog!W3392,\"\")","v":""},{"$f":"IF(DataLog!$C3392=\"Log value\",DataLog!X3392,\"\")","v":""},{"$f":"IF(DataLog!$C3392=\"Log value\",DataLog!Y3392,\"\")","v":""},{"$f":"IF(DataLog!$C3392=\"Log value\",DataLog!Z3392,\"\")","v":""},{"$f":"IF(DataLog!$C3392=\"Log value\",DataLog!AA3392,\"\")","v":""},{"$f":"IF(DataLog!$C3392=\"Log value\",DataLog!AB3392,\"\")","v":""},{"$f":"IF(DataLog!$C3392=\"Log value\",DataLog!AC3392,\"\")","v":""},{"$f":"IF(DataLog!$C3392=\"Log value\",DataLog!AD3392,\"\")","v":""},{"$f":"IF(DataLog!$C3392=\"Log value\",DataLog!AE3392,\"\")","v":""},{"$f":"IF(DataLog!$C3392=\"Log value\",DataLog!AF3392,\"\")","v":""},{"$f":"IF(DataLog!$C3392=\"Log value\",DataLog!AG3392,\"\")","v":""},{"$f":"IF(DataLog!$C3392=\"Log value\",DataLog!AH3392,\"\")","v":""},{"$f":"IF(DataLog!$C3392=\"Log value\",DataLog!AI3392,\"\")","v":""},{"$f":"IF(DataLog!$C3392=\"Log value\",DataLog!AJ3392,\"\")","v":""},{"$f":"IF(DataLog!$C3392=\"Log value\",DataLog!AK3392,\"\")","v":""},{"$f":"IF(DataLog!$C3392=\"Log value\",DataLog!AL3392,\"\")","v":""},{"$f":"IF(DataLog!$C3392=\"Log value\",DataLog!AM3392,\"\")","v":""}]
[null,null,null,null,null,null,{"$f":"IF(DataLog!$C3393=\"Log value\",DataLog!D3393&\"_\"&TEXT(DataLog!B3393,\"åååå-mm-dd\"),\"\")","v":""},{"$f":"IF(DataLog!$C3393=\"Log value\",DataLog!E3393,\"\")","v":""},{"$f":"IF(DataLog!$C3393=\"Log value\",DataLog!F3393,\"\")","v":""},{"$f":"IF(DataLog!$C3393=\"Log value\",DataLog!G3393,\"\")","v":""},{"$f":"IF(DataLog!$C3393=\"Log value\",DataLog!H3393,\"\")","v":""},{"$f":"IF(DataLog!$C3393=\"Log value\",DataLog!I3393,\"\")","v":""},{"$f":"IF(DataLog!$C3393=\"Log value\",DataLog!J3393,\"\")","v":""},{"$f":"IF(DataLog!$C3393=\"Log value\",DataLog!K3393,\"\")","v":""},{"$f":"IF(DataLog!$C3393=\"Log value\",DataLog!L3393,\"\")","v":""},{"$f":"IF(DataLog!$C3393=\"Log value\",DataLog!M3393,\"\")","v":""},{"$f":"IF(DataLog!$C3393=\"Log value\",DataLog!N3393,\"\")","v":""},{"$f":"IF(DataLog!$C3393=\"Log value\",DataLog!O3393,\"\")","v":""},{"$f":"IF(DataLog!$C3393=\"Log value\",DataLog!P3393,\"\")","v":""},{"$f":"IF(DataLog!$C3393=\"Log value\",DataLog!Q3393,\"\")","v":""},{"$f":"IF(DataLog!$C3393=\"Log value\",DataLog!R3393,\"\")","v":""},{"$f":"IF(DataLog!$C3393=\"Log value\",DataLog!S3393,\"\")","v":""},{"$f":"IF(DataLog!$C3393=\"Log value\",DataLog!T3393,\"\")","v":""},{"$f":"IF(DataLog!$C3393=\"Log value\",DataLog!U3393,\"\")","v":""},{"$f":"IF(DataLog!$C3393=\"Log value\",DataLog!V3393,\"\")","v":""},{"$f":"IF(DataLog!$C3393=\"Log value\",DataLog!W3393,\"\")","v":""},{"$f":"IF(DataLog!$C3393=\"Log value\",DataLog!X3393,\"\")","v":""},{"$f":"IF(DataLog!$C3393=\"Log value\",DataLog!Y3393,\"\")","v":""},{"$f":"IF(DataLog!$C3393=\"Log value\",DataLog!Z3393,\"\")","v":""},{"$f":"IF(DataLog!$C3393=\"Log value\",DataLog!AA3393,\"\")","v":""},{"$f":"IF(DataLog!$C3393=\"Log value\",DataLog!AB3393,\"\")","v":""},{"$f":"IF(DataLog!$C3393=\"Log value\",DataLog!AC3393,\"\")","v":""},{"$f":"IF(DataLog!$C3393=\"Log value\",DataLog!AD3393,\"\")","v":""},{"$f":"IF(DataLog!$C3393=\"Log value\",DataLog!AE3393,\"\")","v":""},{"$f":"IF(DataLog!$C3393=\"Log value\",DataLog!AF3393,\"\")","v":""},{"$f":"IF(DataLog!$C3393=\"Log value\",DataLog!AG3393,\"\")","v":""},{"$f":"IF(DataLog!$C3393=\"Log value\",DataLog!AH3393,\"\")","v":""},{"$f":"IF(DataLog!$C3393=\"Log value\",DataLog!AI3393,\"\")","v":""},{"$f":"IF(DataLog!$C3393=\"Log value\",DataLog!AJ3393,\"\")","v":""},{"$f":"IF(DataLog!$C3393=\"Log value\",DataLog!AK3393,\"\")","v":""},{"$f":"IF(DataLog!$C3393=\"Log value\",DataLog!AL3393,\"\")","v":""},{"$f":"IF(DataLog!$C3393=\"Log value\",DataLog!AM3393,\"\")","v":""}]
[null,null,null,null,null,null,{"$f":"IF(DataLog!$C3394=\"Log value\",DataLog!D3394&\"_\"&TEXT(DataLog!B3394,\"åååå-mm-dd\"),\"\")","v":""},{"$f":"IF(DataLog!$C3394=\"Log value\",DataLog!E3394,\"\")","v":""},{"$f":"IF(DataLog!$C3394=\"Log value\",DataLog!F3394,\"\")","v":""},{"$f":"IF(DataLog!$C3394=\"Log value\",DataLog!G3394,\"\")","v":""},{"$f":"IF(DataLog!$C3394=\"Log value\",DataLog!H3394,\"\")","v":""},{"$f":"IF(DataLog!$C3394=\"Log value\",DataLog!I3394,\"\")","v":""},{"$f":"IF(DataLog!$C3394=\"Log value\",DataLog!J3394,\"\")","v":""},{"$f":"IF(DataLog!$C3394=\"Log value\",DataLog!K3394,\"\")","v":""},{"$f":"IF(DataLog!$C3394=\"Log value\",DataLog!L3394,\"\")","v":""},{"$f":"IF(DataLog!$C3394=\"Log value\",DataLog!M3394,\"\")","v":""},{"$f":"IF(DataLog!$C3394=\"Log value\",DataLog!N3394,\"\")","v":""},{"$f":"IF(DataLog!$C3394=\"Log value\",DataLog!O3394,\"\")","v":""},{"$f":"IF(DataLog!$C3394=\"Log value\",DataLog!P3394,\"\")","v":""},{"$f":"IF(DataLog!$C3394=\"Log value\",DataLog!Q3394,\"\")","v":""},{"$f":"IF(DataLog!$C3394=\"Log value\",DataLog!R3394,\"\")","v":""},{"$f":"IF(DataLog!$C3394=\"Log value\",DataLog!S3394,\"\")","v":""},{"$f":"IF(DataLog!$C3394=\"Log value\",DataLog!T3394,\"\")","v":""},{"$f":"IF(DataLog!$C3394=\"Log value\",DataLog!U3394,\"\")","v":""},{"$f":"IF(DataLog!$C3394=\"Log value\",DataLog!V3394,\"\")","v":""},{"$f":"IF(DataLog!$C3394=\"Log value\",DataLog!W3394,\"\")","v":""},{"$f":"IF(DataLog!$C3394=\"Log value\",DataLog!X3394,\"\")","v":""},{"$f":"IF(DataLog!$C3394=\"Log value\",DataLog!Y3394,\"\")","v":""},{"$f":"IF(DataLog!$C3394=\"Log value\",DataLog!Z3394,\"\")","v":""},{"$f":"IF(DataLog!$C3394=\"Log value\",DataLog!AA3394,\"\")","v":""},{"$f":"IF(DataLog!$C3394=\"Log value\",DataLog!AB3394,\"\")","v":""},{"$f":"IF(DataLog!$C3394=\"Log value\",DataLog!AC3394,\"\")","v":""},{"$f":"IF(DataLog!$C3394=\"Log value\",DataLog!AD3394,\"\")","v":""},{"$f":"IF(DataLog!$C3394=\"Log value\",DataLog!AE3394,\"\")","v":""},{"$f":"IF(DataLog!$C3394=\"Log value\",DataLog!AF3394,\"\")","v":""},{"$f":"IF(DataLog!$C3394=\"Log value\",DataLog!AG3394,\"\")","v":""},{"$f":"IF(DataLog!$C3394=\"Log value\",DataLog!AH3394,\"\")","v":""},{"$f":"IF(DataLog!$C3394=\"Log value\",DataLog!AI3394,\"\")","v":""},{"$f":"IF(DataLog!$C3394=\"Log value\",DataLog!AJ3394,\"\")","v":""},{"$f":"IF(DataLog!$C3394=\"Log value\",DataLog!AK3394,\"\")","v":""},{"$f":"IF(DataLog!$C3394=\"Log value\",DataLog!AL3394,\"\")","v":""},{"$f":"IF(DataLog!$C3394=\"Log value\",DataLog!AM3394,\"\")","v":""}]
[null,null,null,null,null,null,{"$f":"IF(DataLog!$C3395=\"Log value\",DataLog!D3395&\"_\"&TEXT(DataLog!B3395,\"åååå-mm-dd\"),\"\")","v":""},{"$f":"IF(DataLog!$C3395=\"Log value\",DataLog!E3395,\"\")","v":""},{"$f":"IF(DataLog!$C3395=\"Log value\",DataLog!F3395,\"\")","v":""},{"$f":"IF(DataLog!$C3395=\"Log value\",DataLog!G3395,\"\")","v":""},{"$f":"IF(DataLog!$C3395=\"Log value\",DataLog!H3395,\"\")","v":""},{"$f":"IF(DataLog!$C3395=\"Log value\",DataLog!I3395,\"\")","v":""},{"$f":"IF(DataLog!$C3395=\"Log value\",DataLog!J3395,\"\")","v":""},{"$f":"IF(DataLog!$C3395=\"Log value\",DataLog!K3395,\"\")","v":""},{"$f":"IF(DataLog!$C3395=\"Log value\",DataLog!L3395,\"\")","v":""},{"$f":"IF(DataLog!$C3395=\"Log value\",DataLog!M3395,\"\")","v":""},{"$f":"IF(DataLog!$C3395=\"Log value\",DataLog!N3395,\"\")","v":""},{"$f":"IF(DataLog!$C3395=\"Log value\",DataLog!O3395,\"\")","v":""},{"$f":"IF(DataLog!$C3395=\"Log value\",DataLog!P3395,\"\")","v":""},{"$f":"IF(DataLog!$C3395=\"Log value\",DataLog!Q3395,\"\")","v":""},{"$f":"IF(DataLog!$C3395=\"Log value\",DataLog!R3395,\"\")","v":""},{"$f":"IF(DataLog!$C3395=\"Log value\",DataLog!S3395,\"\")","v":""},{"$f":"IF(DataLog!$C3395=\"Log value\",DataLog!T3395,\"\")","v":""},{"$f":"IF(DataLog!$C3395=\"Log value\",DataLog!U3395,\"\")","v":""},{"$f":"IF(DataLog!$C3395=\"Log value\",DataLog!V3395,\"\")","v":""},{"$f":"IF(DataLog!$C3395=\"Log value\",DataLog!W3395,\"\")","v":""},{"$f":"IF(DataLog!$C3395=\"Log value\",DataLog!X3395,\"\")","v":""},{"$f":"IF(DataLog!$C3395=\"Log value\",DataLog!Y3395,\"\")","v":""},{"$f":"IF(DataLog!$C3395=\"Log value\",DataLog!Z3395,\"\")","v":""},{"$f":"IF(DataLog!$C3395=\"Log value\",DataLog!AA3395,\"\")","v":""},{"$f":"IF(DataLog!$C3395=\"Log value\",DataLog!AB3395,\"\")","v":""},{"$f":"IF(DataLog!$C3395=\"Log value\",DataLog!AC3395,\"\")","v":""},{"$f":"IF(DataLog!$C3395=\"Log value\",DataLog!AD3395,\"\")","v":""},{"$f":"IF(DataLog!$C3395=\"Log value\",DataLog!AE3395,\"\")","v":""},{"$f":"IF(DataLog!$C3395=\"Log value\",DataLog!AF3395,\"\")","v":""},{"$f":"IF(DataLog!$C3395=\"Log value\",DataLog!AG3395,\"\")","v":""},{"$f":"IF(DataLog!$C3395=\"Log value\",DataLog!AH3395,\"\")","v":""},{"$f":"IF(DataLog!$C3395=\"Log value\",DataLog!AI3395,\"\")","v":""},{"$f":"IF(DataLog!$C3395=\"Log value\",DataLog!AJ3395,\"\")","v":""},{"$f":"IF(DataLog!$C3395=\"Log value\",DataLog!AK3395,\"\")","v":""},{"$f":"IF(DataLog!$C3395=\"Log value\",DataLog!AL3395,\"\")","v":""},{"$f":"IF(DataLog!$C3395=\"Log value\",DataLog!AM3395,\"\")","v":""}]
[null,null,null,null,null,null,{"$f":"IF(DataLog!$C3396=\"Log value\",DataLog!D3396&\"_\"&TEXT(DataLog!B3396,\"åååå-mm-dd\"),\"\")","v":""},{"$f":"IF(DataLog!$C3396=\"Log value\",DataLog!E3396,\"\")","v":""},{"$f":"IF(DataLog!$C3396=\"Log value\",DataLog!F3396,\"\")","v":""},{"$f":"IF(DataLog!$C3396=\"Log value\",DataLog!G3396,\"\")","v":""},{"$f":"IF(DataLog!$C3396=\"Log value\",DataLog!H3396,\"\")","v":""},{"$f":"IF(DataLog!$C3396=\"Log value\",DataLog!I3396,\"\")","v":""},{"$f":"IF(DataLog!$C3396=\"Log value\",DataLog!J3396,\"\")","v":""},{"$f":"IF(DataLog!$C3396=\"Log value\",DataLog!K3396,\"\")","v":""},{"$f":"IF(DataLog!$C3396=\"Log value\",DataLog!L3396,\"\")","v":""},{"$f":"IF(DataLog!$C3396=\"Log value\",DataLog!M3396,\"\")","v":""},{"$f":"IF(DataLog!$C3396=\"Log value\",DataLog!N3396,\"\")","v":""},{"$f":"IF(DataLog!$C3396=\"Log value\",DataLog!O3396,\"\")","v":""},{"$f":"IF(DataLog!$C3396=\"Log value\",DataLog!P3396,\"\")","v":""},{"$f":"IF(DataLog!$C3396=\"Log value\",DataLog!Q3396,\"\")","v":""},{"$f":"IF(DataLog!$C3396=\"Log value\",DataLog!R3396,\"\")","v":""},{"$f":"IF(DataLog!$C3396=\"Log value\",DataLog!S3396,\"\")","v":""},{"$f":"IF(DataLog!$C3396=\"Log value\",DataLog!T3396,\"\")","v":""},{"$f":"IF(DataLog!$C3396=\"Log value\",DataLog!U3396,\"\")","v":""},{"$f":"IF(DataLog!$C3396=\"Log value\",DataLog!V3396,\"\")","v":""},{"$f":"IF(DataLog!$C3396=\"Log value\",DataLog!W3396,\"\")","v":""},{"$f":"IF(DataLog!$C3396=\"Log value\",DataLog!X3396,\"\")","v":""},{"$f":"IF(DataLog!$C3396=\"Log value\",DataLog!Y3396,\"\")","v":""},{"$f":"IF(DataLog!$C3396=\"Log value\",DataLog!Z3396,\"\")","v":""},{"$f":"IF(DataLog!$C3396=\"Log value\",DataLog!AA3396,\"\")","v":""},{"$f":"IF(DataLog!$C3396=\"Log value\",DataLog!AB3396,\"\")","v":""},{"$f":"IF(DataLog!$C3396=\"Log value\",DataLog!AC3396,\"\")","v":""},{"$f":"IF(DataLog!$C3396=\"Log value\",DataLog!AD3396,\"\")","v":""},{"$f":"IF(DataLog!$C3396=\"Log value\",DataLog!AE3396,\"\")","v":""},{"$f":"IF(DataLog!$C3396=\"Log value\",DataLog!AF3396,\"\")","v":""},{"$f":"IF(DataLog!$C3396=\"Log value\",DataLog!AG3396,\"\")","v":""},{"$f":"IF(DataLog!$C3396=\"Log value\",DataLog!AH3396,\"\")","v":""},{"$f":"IF(DataLog!$C3396=\"Log value\",DataLog!AI3396,\"\")","v":""},{"$f":"IF(DataLog!$C3396=\"Log value\",DataLog!AJ3396,\"\")","v":""},{"$f":"IF(DataLog!$C3396=\"Log value\",DataLog!AK3396,\"\")","v":""},{"$f":"IF(DataLog!$C3396=\"Log value\",DataLog!AL3396,\"\")","v":""},{"$f":"IF(DataLog!$C3396=\"Log value\",DataLog!AM3396,\"\")","v":""}]
[null,null,null,null,null,null,{"$f":"IF(DataLog!$C3397=\"Log value\",DataLog!D3397&\"_\"&TEXT(DataLog!B3397,\"åååå-mm-dd\"),\"\")","v":""},{"$f":"IF(DataLog!$C3397=\"Log value\",DataLog!E3397,\"\")","v":""},{"$f":"IF(DataLog!$C3397=\"Log value\",DataLog!F3397,\"\")","v":""},{"$f":"IF(DataLog!$C3397=\"Log value\",DataLog!G3397,\"\")","v":""},{"$f":"IF(DataLog!$C3397=\"Log value\",DataLog!H3397,\"\")","v":""},{"$f":"IF(DataLog!$C3397=\"Log value\",DataLog!I3397,\"\")","v":""},{"$f":"IF(DataLog!$C3397=\"Log value\",DataLog!J3397,\"\")","v":""},{"$f":"IF(DataLog!$C3397=\"Log value\",DataLog!K3397,\"\")","v":""},{"$f":"IF(DataLog!$C3397=\"Log value\",DataLog!L3397,\"\")","v":""},{"$f":"IF(DataLog!$C3397=\"Log value\",DataLog!M3397,\"\")","v":""},{"$f":"IF(DataLog!$C3397=\"Log value\",DataLog!N3397,\"\")","v":""},{"$f":"IF(DataLog!$C3397=\"Log value\",DataLog!O3397,\"\")","v":""},{"$f":"IF(DataLog!$C3397=\"Log value\",DataLog!P3397,\"\")","v":""},{"$f":"IF(DataLog!$C3397=\"Log value\",DataLog!Q3397,\"\")","v":""},{"$f":"IF(DataLog!$C3397=\"Log value\",DataLog!R3397,\"\")","v":""},{"$f":"IF(DataLog!$C3397=\"Log value\",DataLog!S3397,\"\")","v":""},{"$f":"IF(DataLog!$C3397=\"Log value\",DataLog!T3397,\"\")","v":""},{"$f":"IF(DataLog!$C3397=\"Log value\",DataLog!U3397,\"\")","v":""},{"$f":"IF(DataLog!$C3397=\"Log value\",DataLog!V3397,\"\")","v":""},{"$f":"IF(DataLog!$C3397=\"Log value\",DataLog!W3397,\"\")","v":""},{"$f":"IF(DataLog!$C3397=\"Log value\",DataLog!X3397,\"\")","v":""},{"$f":"IF(DataLog!$C3397=\"Log value\",DataLog!Y3397,\"\")","v":""},{"$f":"IF(DataLog!$C3397=\"Log value\",DataLog!Z3397,\"\")","v":""},{"$f":"IF(DataLog!$C3397=\"Log value\",DataLog!AA3397,\"\")","v":""},{"$f":"IF(DataLog!$C3397=\"Log value\",DataLog!AB3397,\"\")","v":""},{"$f":"IF(DataLog!$C3397=\"Log value\",DataLog!AC3397,\"\")","v":""},{"$f":"IF(DataLog!$C3397=\"Log value\",DataLog!AD3397,\"\")","v":""},{"$f":"IF(DataLog!$C3397=\"Log value\",DataLog!AE3397,\"\")","v":""},{"$f":"IF(DataLog!$C3397=\"Log value\",DataLog!AF3397,\"\")","v":""},{"$f":"IF(DataLog!$C3397=\"Log value\",DataLog!AG3397,\"\")","v":""},{"$f":"IF(DataLog!$C3397=\"Log value\",DataLog!AH3397,\"\")","v":""},{"$f":"IF(DataLog!$C3397=\"Log value\",DataLog!AI3397,\"\")","v":""},{"$f":"IF(DataLog!$C3397=\"Log value\",DataLog!AJ3397,\"\")","v":""},{"$f":"IF(DataLog!$C3397=\"Log value\",DataLog!AK3397,\"\")","v":""},{"$f":"IF(DataLog!$C3397=\"Log value\",DataLog!AL3397,\"\")","v":""},{"$f":"IF(DataLog!$C3397=\"Log value\",DataLog!AM3397,\"\")","v":""}]
[null,null,null,null,null,null,{"$f":"IF(DataLog!$C3398=\"Log value\",DataLog!D3398&\"_\"&TEXT(DataLog!B3398,\"åååå-mm-dd\"),\"\")","v":""},{"$f":"IF(DataLog!$C3398=\"Log value\",DataLog!E3398,\"\")","v":""},{"$f":"IF(DataLog!$C3398=\"Log value\",DataLog!F3398,\"\")","v":""},{"$f":"IF(DataLog!$C3398=\"Log value\",DataLog!G3398,\"\")","v":""},{"$f":"IF(DataLog!$C3398=\"Log value\",DataLog!H3398,\"\")","v":""},{"$f":"IF(DataLog!$C3398=\"Log value\",DataLog!I3398,\"\")","v":""},{"$f":"IF(DataLog!$C3398=\"Log value\",DataLog!J3398,\"\")","v":""},{"$f":"IF(DataLog!$C3398=\"Log value\",DataLog!K3398,\"\")","v":""},{"$f":"IF(DataLog!$C3398=\"Log value\",DataLog!L3398,\"\")","v":""},{"$f":"IF(DataLog!$C3398=\"Log value\",DataLog!M3398,\"\")","v":""},{"$f":"IF(DataLog!$C3398=\"Log value\",DataLog!N3398,\"\")","v":""},{"$f":"IF(DataLog!$C3398=\"Log value\",DataLog!O3398,\"\")","v":""},{"$f":"IF(DataLog!$C3398=\"Log value\",DataLog!P3398,\"\")","v":""},{"$f":"IF(DataLog!$C3398=\"Log value\",DataLog!Q3398,\"\")","v":""},{"$f":"IF(DataLog!$C3398=\"Log value\",DataLog!R3398,\"\")","v":""},{"$f":"IF(DataLog!$C3398=\"Log value\",DataLog!S3398,\"\")","v":""},{"$f":"IF(DataLog!$C3398=\"Log value\",DataLog!T3398,\"\")","v":""},{"$f":"IF(DataLog!$C3398=\"Log value\",DataLog!U3398,\"\")","v":""},{"$f":"IF(DataLog!$C3398=\"Log value\",DataLog!V3398,\"\")","v":""},{"$f":"IF(DataLog!$C3398=\"Log value\",DataLog!W3398,\"\")","v":""},{"$f":"IF(DataLog!$C3398=\"Log value\",DataLog!X3398,\"\")","v":""},{"$f":"IF(DataLog!$C3398=\"Log value\",DataLog!Y3398,\"\")","v":""},{"$f":"IF(DataLog!$C3398=\"Log value\",DataLog!Z3398,\"\")","v":""},{"$f":"IF(DataLog!$C3398=\"Log value\",DataLog!AA3398,\"\")","v":""},{"$f":"IF(DataLog!$C3398=\"Log value\",DataLog!AB3398,\"\")","v":""},{"$f":"IF(DataLog!$C3398=\"Log value\",DataLog!AC3398,\"\")","v":""},{"$f":"IF(DataLog!$C3398=\"Log value\",DataLog!AD3398,\"\")","v":""},{"$f":"IF(DataLog!$C3398=\"Log value\",DataLog!AE3398,\"\")","v":""},{"$f":"IF(DataLog!$C3398=\"Log value\",DataLog!AF3398,\"\")","v":""},{"$f":"IF(DataLog!$C3398=\"Log value\",DataLog!AG3398,\"\")","v":""},{"$f":"IF(DataLog!$C3398=\"Log value\",DataLog!AH3398,\"\")","v":""},{"$f":"IF(DataLog!$C3398=\"Log value\",DataLog!AI3398,\"\")","v":""},{"$f":"IF(DataLog!$C3398=\"Log value\",DataLog!AJ3398,\"\")","v":""},{"$f":"IF(DataLog!$C3398=\"Log value\",DataLog!AK3398,\"\")","v":""},{"$f":"IF(DataLog!$C3398=\"Log value\",DataLog!AL3398,\"\")","v":""},{"$f":"IF(DataLog!$C3398=\"Log value\",DataLog!AM3398,\"\")","v":""}]
[null,null,null,null,null,null,{"$f":"IF(DataLog!$C3399=\"Log value\",DataLog!D3399&\"_\"&TEXT(DataLog!B3399,\"åååå-mm-dd\"),\"\")","v":""},{"$f":"IF(DataLog!$C3399=\"Log value\",DataLog!E3399,\"\")","v":""},{"$f":"IF(DataLog!$C3399=\"Log value\",DataLog!F3399,\"\")","v":""},{"$f":"IF(DataLog!$C3399=\"Log value\",DataLog!G3399,\"\")","v":""},{"$f":"IF(DataLog!$C3399=\"Log value\",DataLog!H3399,\"\")","v":""},{"$f":"IF(DataLog!$C3399=\"Log value\",DataLog!I3399,\"\")","v":""},{"$f":"IF(DataLog!$C3399=\"Log value\",DataLog!J3399,\"\")","v":""},{"$f":"IF(DataLog!$C3399=\"Log value\",DataLog!K3399,\"\")","v":""},{"$f":"IF(DataLog!$C3399=\"Log value\",DataLog!L3399,\"\")","v":""},{"$f":"IF(DataLog!$C3399=\"Log value\",DataLog!M3399,\"\")","v":""},{"$f":"IF(DataLog!$C3399=\"Log value\",DataLog!N3399,\"\")","v":""},{"$f":"IF(DataLog!$C3399=\"Log value\",DataLog!O3399,\"\")","v":""},{"$f":"IF(DataLog!$C3399=\"Log value\",DataLog!P3399,\"\")","v":""},{"$f":"IF(DataLog!$C3399=\"Log value\",DataLog!Q3399,\"\")","v":""},{"$f":"IF(DataLog!$C3399=\"Log value\",DataLog!R3399,\"\")","v":""},{"$f":"IF(DataLog!$C3399=\"Log value\",DataLog!S3399,\"\")","v":""},{"$f":"IF(DataLog!$C3399=\"Log value\",DataLog!T3399,\"\")","v":""},{"$f":"IF(DataLog!$C3399=\"Log value\",DataLog!U3399,\"\")","v":""},{"$f":"IF(DataLog!$C3399=\"Log value\",DataLog!V3399,\"\")","v":""},{"$f":"IF(DataLog!$C3399=\"Log value\",DataLog!W3399,\"\")","v":""},{"$f":"IF(DataLog!$C3399=\"Log value\",DataLog!X3399,\"\")","v":""},{"$f":"IF(DataLog!$C3399=\"Log value\",DataLog!Y3399,\"\")","v":""},{"$f":"IF(DataLog!$C3399=\"Log value\",DataLog!Z3399,\"\")","v":""},{"$f":"IF(DataLog!$C3399=\"Log value\",DataLog!AA3399,\"\")","v":""},{"$f":"IF(DataLog!$C3399=\"Log value\",DataLog!AB3399,\"\")","v":""},{"$f":"IF(DataLog!$C3399=\"Log value\",DataLog!AC3399,\"\")","v":""},{"$f":"IF(DataLog!$C3399=\"Log value\",DataLog!AD3399,\"\")","v":""},{"$f":"IF(DataLog!$C3399=\"Log value\",DataLog!AE3399,\"\")","v":""},{"$f":"IF(DataLog!$C3399=\"Log value\",DataLog!AF3399,\"\")","v":""},{"$f":"IF(DataLog!$C3399=\"Log value\",DataLog!AG3399,\"\")","v":""},{"$f":"IF(DataLog!$C3399=\"Log value\",DataLog!AH3399,\"\")","v":""},{"$f":"IF(DataLog!$C3399=\"Log value\",DataLog!AI3399,\"\")","v":""},{"$f":"IF(DataLog!$C3399=\"Log value\",DataLog!AJ3399,\"\")","v":""},{"$f":"IF(DataLog!$C3399=\"Log value\",DataLog!AK3399,\"\")","v":""},{"$f":"IF(DataLog!$C3399=\"Log value\",DataLog!AL3399,\"\")","v":""},{"$f":"IF(DataLog!$C3399=\"Log value\",DataLog!AM3399,\"\")","v":""}]
[null,null,null,null,null,null,{"$f":"IF(DataLog!$C3400=\"Log value\",DataLog!D3400&\"_\"&TEXT(DataLog!B3400,\"åååå-mm-dd\"),\"\")","v":""},{"$f":"IF(DataLog!$C3400=\"Log value\",DataLog!E3400,\"\")","v":""},{"$f":"IF(DataLog!$C3400=\"Log value\",DataLog!F3400,\"\")","v":""},{"$f":"IF(DataLog!$C3400=\"Log value\",DataLog!G3400,\"\")","v":""},{"$f":"IF(DataLog!$C3400=\"Log value\",DataLog!H3400,\"\")","v":""},{"$f":"IF(DataLog!$C3400=\"Log value\",DataLog!I3400,\"\")","v":""},{"$f":"IF(DataLog!$C3400=\"Log value\",DataLog!J3400,\"\")","v":""},{"$f":"IF(DataLog!$C3400=\"Log value\",DataLog!K3400,\"\")","v":""},{"$f":"IF(DataLog!$C3400=\"Log value\",DataLog!L3400,\"\")","v":""},{"$f":"IF(DataLog!$C3400=\"Log value\",DataLog!M3400,\"\")","v":""},{"$f":"IF(DataLog!$C3400=\"Log value\",DataLog!N3400,\"\")","v":""},{"$f":"IF(DataLog!$C3400=\"Log value\",DataLog!O3400,\"\")","v":""},{"$f":"IF(DataLog!$C3400=\"Log value\",DataLog!P3400,\"\")","v":""},{"$f":"IF(DataLog!$C3400=\"Log value\",DataLog!Q3400,\"\")","v":""},{"$f":"IF(DataLog!$C3400=\"Log value\",DataLog!R3400,\"\")","v":""},{"$f":"IF(DataLog!$C3400=\"Log value\",DataLog!S3400,\"\")","v":""},{"$f":"IF(DataLog!$C3400=\"Log value\",DataLog!T3400,\"\")","v":""},{"$f":"IF(DataLog!$C3400=\"Log value\",DataLog!U3400,\"\")","v":""},{"$f":"IF(DataLog!$C3400=\"Log value\",DataLog!V3400,\"\")","v":""},{"$f":"IF(DataLog!$C3400=\"Log value\",DataLog!W3400,\"\")","v":""},{"$f":"IF(DataLog!$C3400=\"Log value\",DataLog!X3400,\"\")","v":""},{"$f":"IF(DataLog!$C3400=\"Log value\",DataLog!Y3400,\"\")","v":""},{"$f":"IF(DataLog!$C3400=\"Log value\",DataLog!Z3400,\"\")","v":""},{"$f":"IF(DataLog!$C3400=\"Log value\",DataLog!AA3400,\"\")","v":""},{"$f":"IF(DataLog!$C3400=\"Log value\",DataLog!AB3400,\"\")","v":""},{"$f":"IF(DataLog!$C3400=\"Log value\",DataLog!AC3400,\"\")","v":""},{"$f":"IF(DataLog!$C3400=\"Log value\",DataLog!AD3400,\"\")","v":""},{"$f":"IF(DataLog!$C3400=\"Log value\",DataLog!AE3400,\"\")","v":""},{"$f":"IF(DataLog!$C3400=\"Log value\",DataLog!AF3400,\"\")","v":""},{"$f":"IF(DataLog!$C3400=\"Log value\",DataLog!AG3400,\"\")","v":""},{"$f":"IF(DataLog!$C3400=\"Log value\",DataLog!AH3400,\"\")","v":""},{"$f":"IF(DataLog!$C3400=\"Log value\",DataLog!AI3400,\"\")","v":""},{"$f":"IF(DataLog!$C3400=\"Log value\",DataLog!AJ3400,\"\")","v":""},{"$f":"IF(DataLog!$C3400=\"Log value\",DataLog!AK3400,\"\")","v":""},{"$f":"IF(DataLog!$C3400=\"Log value\",DataLog!AL3400,\"\")","v":""},{"$f":"IF(DataLog!$C3400=\"Log value\",DataLog!AM3400,\"\")","v":""}]
[null,null,null,null,null,null,{"$f":"IF(DataLog!$C3401=\"Log value\",DataLog!D3401&\"_\"&TEXT(DataLog!B3401,\"åååå-mm-dd\"),\"\")","v":""},{"$f":"IF(DataLog!$C3401=\"Log value\",DataLog!E3401,\"\")","v":""},{"$f":"IF(DataLog!$C3401=\"Log value\",DataLog!F3401,\"\")","v":""},{"$f":"IF(DataLog!$C3401=\"Log value\",DataLog!G3401,\"\")","v":""},{"$f":"IF(DataLog!$C3401=\"Log value\",DataLog!H3401,\"\")","v":""},{"$f":"IF(DataLog!$C3401=\"Log value\",DataLog!I3401,\"\")","v":""},{"$f":"IF(DataLog!$C3401=\"Log value\",DataLog!J3401,\"\")","v":""},{"$f":"IF(DataLog!$C3401=\"Log value\",DataLog!K3401,\"\")","v":""},{"$f":"IF(DataLog!$C3401=\"Log value\",DataLog!L3401,\"\")","v":""},{"$f":"IF(DataLog!$C3401=\"Log value\",DataLog!M3401,\"\")","v":""},{"$f":"IF(DataLog!$C3401=\"Log value\",DataLog!N3401,\"\")","v":""},{"$f":"IF(DataLog!$C3401=\"Log value\",DataLog!O3401,\"\")","v":""},{"$f":"IF(DataLog!$C3401=\"Log value\",DataLog!P3401,\"\")","v":""},{"$f":"IF(DataLog!$C3401=\"Log value\",DataLog!Q3401,\"\")","v":""},{"$f":"IF(DataLog!$C3401=\"Log value\",DataLog!R3401,\"\")","v":""},{"$f":"IF(DataLog!$C3401=\"Log value\",DataLog!S3401,\"\")","v":""},{"$f":"IF(DataLog!$C3401=\"Log value\",DataLog!T3401,\"\")","v":""},{"$f":"IF(DataLog!$C3401=\"Log value\",DataLog!U3401,\"\")","v":""},{"$f":"IF(DataLog!$C3401=\"Log value\",DataLog!V3401,\"\")","v":""},{"$f":"IF(DataLog!$C3401=\"Log value\",DataLog!W3401,\"\")","v":""},{"$f":"IF(DataLog!$C3401=\"Log value\",DataLog!X3401,\"\")","v":""},{"$f":"IF(DataLog!$C3401=\"Log value\",DataLog!Y3401,\"\")","v":""},{"$f":"IF(DataLog!$C3401=\"Log value\",DataLog!Z3401,\"\")","v":""},{"$f":"IF(DataLog!$C3401=\"Log value\",DataLog!AA3401,\"\")","v":""},{"$f":"IF(DataLog!$C3401=\"Log value\",DataLog!AB3401,\"\")","v":""},{"$f":"IF(DataLog!$C3401=\"Log value\",DataLog!AC3401,\"\")","v":""},{"$f":"IF(DataLog!$C3401=\"Log value\",DataLog!AD3401,\"\")","v":""},{"$f":"IF(DataLog!$C3401=\"Log value\",DataLog!AE3401,\"\")","v":""},{"$f":"IF(DataLog!$C3401=\"Log value\",DataLog!AF3401,\"\")","v":""},{"$f":"IF(DataLog!$C3401=\"Log value\",DataLog!AG3401,\"\")","v":""},{"$f":"IF(DataLog!$C3401=\"Log value\",DataLog!AH3401,\"\")","v":""},{"$f":"IF(DataLog!$C3401=\"Log value\",DataLog!AI3401,\"\")","v":""},{"$f":"IF(DataLog!$C3401=\"Log value\",DataLog!AJ3401,\"\")","v":""},{"$f":"IF(DataLog!$C3401=\"Log value\",DataLog!AK3401,\"\")","v":""},{"$f":"IF(DataLog!$C3401=\"Log value\",DataLog!AL3401,\"\")","v":""},{"$f":"IF(DataLog!$C3401=\"Log value\",DataLog!AM3401,\"\")","v":""}]
[null,null,null,null,null,null,{"$f":"IF(DataLog!$C3402=\"Log value\",DataLog!D3402&\"_\"&TEXT(DataLog!B3402,\"åååå-mm-dd\"),\"\")","v":""},{"$f":"IF(DataLog!$C3402=\"Log value\",DataLog!E3402,\"\")","v":""},{"$f":"IF(DataLog!$C3402=\"Log value\",DataLog!F3402,\"\")","v":""},{"$f":"IF(DataLog!$C3402=\"Log value\",DataLog!G3402,\"\")","v":""},{"$f":"IF(DataLog!$C3402=\"Log value\",DataLog!H3402,\"\")","v":""},{"$f":"IF(DataLog!$C3402=\"Log value\",DataLog!I3402,\"\")","v":""},{"$f":"IF(DataLog!$C3402=\"Log value\",DataLog!J3402,\"\")","v":""},{"$f":"IF(DataLog!$C3402=\"Log value\",DataLog!K3402,\"\")","v":""},{"$f":"IF(DataLog!$C3402=\"Log value\",DataLog!L3402,\"\")","v":""},{"$f":"IF(DataLog!$C3402=\"Log value\",DataLog!M3402,\"\")","v":""},{"$f":"IF(DataLog!$C3402=\"Log value\",DataLog!N3402,\"\")","v":""},{"$f":"IF(DataLog!$C3402=\"Log value\",DataLog!O3402,\"\")","v":""},{"$f":"IF(DataLog!$C3402=\"Log value\",DataLog!P3402,\"\")","v":""},{"$f":"IF(DataLog!$C3402=\"Log value\",DataLog!Q3402,\"\")","v":""},{"$f":"IF(DataLog!$C3402=\"Log value\",DataLog!R3402,\"\")","v":""},{"$f":"IF(DataLog!$C3402=\"Log value\",DataLog!S3402,\"\")","v":""},{"$f":"IF(DataLog!$C3402=\"Log value\",DataLog!T3402,\"\")","v":""},{"$f":"IF(DataLog!$C3402=\"Log value\",DataLog!U3402,\"\")","v":""},{"$f":"IF(DataLog!$C3402=\"Log value\",DataLog!V3402,\"\")","v":""},{"$f":"IF(DataLog!$C3402=\"Log value\",DataLog!W3402,\"\")","v":""},{"$f":"IF(DataLog!$C3402=\"Log value\",DataLog!X3402,\"\")","v":""},{"$f":"IF(DataLog!$C3402=\"Log value\",DataLog!Y3402,\"\")","v":""},{"$f":"IF(DataLog!$C3402=\"Log value\",DataLog!Z3402,\"\")","v":""},{"$f":"IF(DataLog!$C3402=\"Log value\",DataLog!AA3402,\"\")","v":""},{"$f":"IF(DataLog!$C3402=\"Log value\",DataLog!AB3402,\"\")","v":""},{"$f":"IF(DataLog!$C3402=\"Log value\",DataLog!AC3402,\"\")","v":""},{"$f":"IF(DataLog!$C3402=\"Log value\",DataLog!AD3402,\"\")","v":""},{"$f":"IF(DataLog!$C3402=\"Log value\",DataLog!AE3402,\"\")","v":""},{"$f":"IF(DataLog!$C3402=\"Log value\",DataLog!AF3402,\"\")","v":""},{"$f":"IF(DataLog!$C3402=\"Log value\",DataLog!AG3402,\"\")","v":""},{"$f":"IF(DataLog!$C3402=\"Log value\",DataLog!AH3402,\"\")","v":""},{"$f":"IF(DataLog!$C3402=\"Log value\",DataLog!AI3402,\"\")","v":""},{"$f":"IF(DataLog!$C3402=\"Log value\",DataLog!AJ3402,\"\")","v":""},{"$f":"IF(DataLog!$C3402=\"Log value\",DataLog!AK3402,\"\")","v":""},{"$f":"IF(DataLog!$C3402=\"Log value\",DataLog!AL3402,\"\")","v":""},{"$f":"IF(DataLog!$C3402=\"Log value\",DataLog!AM3402,\"\")","v":""}]
[null,null,null,null,null,null,{"$f":"IF(DataLog!$C3403=\"Log value\",DataLog!D3403&\"_\"&TEXT(DataLog!B3403,\"åååå-mm-dd\"),\"\")","v":""},{"$f":"IF(DataLog!$C3403=\"Log value\",DataLog!E3403,\"\")","v":""},{"$f":"IF(DataLog!$C3403=\"Log value\",DataLog!F3403,\"\")","v":""},{"$f":"IF(DataLog!$C3403=\"Log value\",DataLog!G3403,\"\")","v":""},{"$f":"IF(DataLog!$C3403=\"Log value\",DataLog!H3403,\"\")","v":""},{"$f":"IF(DataLog!$C3403=\"Log value\",DataLog!I3403,\"\")","v":""},{"$f":"IF(DataLog!$C3403=\"Log value\",DataLog!J3403,\"\")","v":""},{"$f":"IF(DataLog!$C3403=\"Log value\",DataLog!K3403,\"\")","v":""},{"$f":"IF(DataLog!$C3403=\"Log value\",DataLog!L3403,\"\")","v":""},{"$f":"IF(DataLog!$C3403=\"Log value\",DataLog!M3403,\"\")","v":""},{"$f":"IF(DataLog!$C3403=\"Log value\",DataLog!N3403,\"\")","v":""},{"$f":"IF(DataLog!$C3403=\"Log value\",DataLog!O3403,\"\")","v":""},{"$f":"IF(DataLog!$C3403=\"Log value\",DataLog!P3403,\"\")","v":""},{"$f":"IF(DataLog!$C3403=\"Log value\",DataLog!Q3403,\"\")","v":""},{"$f":"IF(DataLog!$C3403=\"Log value\",DataLog!R3403,\"\")","v":""},{"$f":"IF(DataLog!$C3403=\"Log value\",DataLog!S3403,\"\")","v":""},{"$f":"IF(DataLog!$C3403=\"Log value\",DataLog!T3403,\"\")","v":""},{"$f":"IF(DataLog!$C3403=\"Log value\",DataLog!U3403,\"\")","v":""},{"$f":"IF(DataLog!$C3403=\"Log value\",DataLog!V3403,\"\")","v":""},{"$f":"IF(DataLog!$C3403=\"Log value\",DataLog!W3403,\"\")","v":""},{"$f":"IF(DataLog!$C3403=\"Log value\",DataLog!X3403,\"\")","v":""},{"$f":"IF(DataLog!$C3403=\"Log value\",DataLog!Y3403,\"\")","v":""},{"$f":"IF(DataLog!$C3403=\"Log value\",DataLog!Z3403,\"\")","v":""},{"$f":"IF(DataLog!$C3403=\"Log value\",DataLog!AA3403,\"\")","v":""},{"$f":"IF(DataLog!$C3403=\"Log value\",DataLog!AB3403,\"\")","v":""},{"$f":"IF(DataLog!$C3403=\"Log value\",DataLog!AC3403,\"\")","v":""},{"$f":"IF(DataLog!$C3403=\"Log value\",DataLog!AD3403,\"\")","v":""},{"$f":"IF(DataLog!$C3403=\"Log value\",DataLog!AE3403,\"\")","v":""},{"$f":"IF(DataLog!$C3403=\"Log value\",DataLog!AF3403,\"\")","v":""},{"$f":"IF(DataLog!$C3403=\"Log value\",DataLog!AG3403,\"\")","v":""},{"$f":"IF(DataLog!$C3403=\"Log value\",DataLog!AH3403,\"\")","v":""},{"$f":"IF(DataLog!$C3403=\"Log value\",DataLog!AI3403,\"\")","v":""},{"$f":"IF(DataLog!$C3403=\"Log value\",DataLog!AJ3403,\"\")","v":""},{"$f":"IF(DataLog!$C3403=\"Log value\",DataLog!AK3403,\"\")","v":""},{"$f":"IF(DataLog!$C3403=\"Log value\",DataLog!AL3403,\"\")","v":""},{"$f":"IF(DataLog!$C3403=\"Log value\",DataLog!AM3403,\"\")","v":""}]
[null,null,null,null,null,null,{"$f":"IF(DataLog!$C3404=\"Log value\",DataLog!D3404&\"_\"&TEXT(DataLog!B3404,\"åååå-mm-dd\"),\"\")","v":""},{"$f":"IF(DataLog!$C3404=\"Log value\",DataLog!E3404,\"\")","v":""},{"$f":"IF(DataLog!$C3404=\"Log value\",DataLog!F3404,\"\")","v":""},{"$f":"IF(DataLog!$C3404=\"Log value\",DataLog!G3404,\"\")","v":""},{"$f":"IF(DataLog!$C3404=\"Log value\",DataLog!H3404,\"\")","v":""},{"$f":"IF(DataLog!$C3404=\"Log value\",DataLog!I3404,\"\")","v":""},{"$f":"IF(DataLog!$C3404=\"Log value\",DataLog!J3404,\"\")","v":""},{"$f":"IF(DataLog!$C3404=\"Log value\",DataLog!K3404,\"\")","v":""},{"$f":"IF(DataLog!$C3404=\"Log value\",DataLog!L3404,\"\")","v":""},{"$f":"IF(DataLog!$C3404=\"Log value\",DataLog!M3404,\"\")","v":""},{"$f":"IF(DataLog!$C3404=\"Log value\",DataLog!N3404,\"\")","v":""},{"$f":"IF(DataLog!$C3404=\"Log value\",DataLog!O3404,\"\")","v":""},{"$f":"IF(DataLog!$C3404=\"Log value\",DataLog!P3404,\"\")","v":""},{"$f":"IF(DataLog!$C3404=\"Log value\",DataLog!Q3404,\"\")","v":""},{"$f":"IF(DataLog!$C3404=\"Log value\",DataLog!R3404,\"\")","v":""},{"$f":"IF(DataLog!$C3404=\"Log value\",DataLog!S3404,\"\")","v":""},{"$f":"IF(DataLog!$C3404=\"Log value\",DataLog!T3404,\"\")","v":""},{"$f":"IF(DataLog!$C3404=\"Log value\",DataLog!U3404,\"\")","v":""},{"$f":"IF(DataLog!$C3404=\"Log value\",DataLog!V3404,\"\")","v":""},{"$f":"IF(DataLog!$C3404=\"Log value\",DataLog!W3404,\"\")","v":""},{"$f":"IF(DataLog!$C3404=\"Log value\",DataLog!X3404,\"\")","v":""},{"$f":"IF(DataLog!$C3404=\"Log value\",DataLog!Y3404,\"\")","v":""},{"$f":"IF(DataLog!$C3404=\"Log value\",DataLog!Z3404,\"\")","v":""},{"$f":"IF(DataLog!$C3404=\"Log value\",DataLog!AA3404,\"\")","v":""},{"$f":"IF(DataLog!$C3404=\"Log value\",DataLog!AB3404,\"\")","v":""},{"$f":"IF(DataLog!$C3404=\"Log value\",DataLog!AC3404,\"\")","v":""},{"$f":"IF(DataLog!$C3404=\"Log value\",DataLog!AD3404,\"\")","v":""},{"$f":"IF(DataLog!$C3404=\"Log value\",DataLog!AE3404,\"\")","v":""},{"$f":"IF(DataLog!$C3404=\"Log value\",DataLog!AF3404,\"\")","v":""},{"$f":"IF(DataLog!$C3404=\"Log value\",DataLog!AG3404,\"\")","v":""},{"$f":"IF(DataLog!$C3404=\"Log value\",DataLog!AH3404,\"\")","v":""},{"$f":"IF(DataLog!$C3404=\"Log value\",DataLog!AI3404,\"\")","v":""},{"$f":"IF(DataLog!$C3404=\"Log value\",DataLog!AJ3404,\"\")","v":""},{"$f":"IF(DataLog!$C3404=\"Log value\",DataLog!AK3404,\"\")","v":""},{"$f":"IF(DataLog!$C3404=\"Log value\",DataLog!AL3404,\"\")","v":""},{"$f":"IF(DataLog!$C3404=\"Log value\",DataLog!AM3404,\"\")","v":""}]
[null,null,null,null,null,null,{"$f":"IF(DataLog!$C3405=\"Log value\",DataLog!D3405&\"_\"&TEXT(DataLog!B3405,\"åååå-mm-dd\"),\"\")","v":""},{"$f":"IF(DataLog!$C3405=\"Log value\",DataLog!E3405,\"\")","v":""},{"$f":"IF(DataLog!$C3405=\"Log value\",DataLog!F3405,\"\")","v":""},{"$f":"IF(DataLog!$C3405=\"Log value\",DataLog!G3405,\"\")","v":""},{"$f":"IF(DataLog!$C3405=\"Log value\",DataLog!H3405,\"\")","v":""},{"$f":"IF(DataLog!$C3405=\"Log value\",DataLog!I3405,\"\")","v":""},{"$f":"IF(DataLog!$C3405=\"Log value\",DataLog!J3405,\"\")","v":""},{"$f":"IF(DataLog!$C3405=\"Log value\",DataLog!K3405,\"\")","v":""},{"$f":"IF(DataLog!$C3405=\"Log value\",DataLog!L3405,\"\")","v":""},{"$f":"IF(DataLog!$C3405=\"Log value\",DataLog!M3405,\"\")","v":""},{"$f":"IF(DataLog!$C3405=\"Log value\",DataLog!N3405,\"\")","v":""},{"$f":"IF(DataLog!$C3405=\"Log value\",DataLog!O3405,\"\")","v":""},{"$f":"IF(DataLog!$C3405=\"Log value\",DataLog!P3405,\"\")","v":""},{"$f":"IF(DataLog!$C3405=\"Log value\",DataLog!Q3405,\"\")","v":""},{"$f":"IF(DataLog!$C3405=\"Log value\",DataLog!R3405,\"\")","v":""},{"$f":"IF(DataLog!$C3405=\"Log value\",DataLog!S3405,\"\")","v":""},{"$f":"IF(DataLog!$C3405=\"Log value\",DataLog!T3405,\"\")","v":""},{"$f":"IF(DataLog!$C3405=\"Log value\",DataLog!U3405,\"\")","v":""},{"$f":"IF(DataLog!$C3405=\"Log value\",DataLog!V3405,\"\")","v":""},{"$f":"IF(DataLog!$C3405=\"Log value\",DataLog!W3405,\"\")","v":""},{"$f":"IF(DataLog!$C3405=\"Log value\",DataLog!X3405,\"\")","v":""},{"$f":"IF(DataLog!$C3405=\"Log value\",DataLog!Y3405,\"\")","v":""},{"$f":"IF(DataLog!$C3405=\"Log value\",DataLog!Z3405,\"\")","v":""},{"$f":"IF(DataLog!$C3405=\"Log value\",DataLog!AA3405,\"\")","v":""},{"$f":"IF(DataLog!$C3405=\"Log value\",DataLog!AB3405,\"\")","v":""},{"$f":"IF(DataLog!$C3405=\"Log value\",DataLog!AC3405,\"\")","v":""},{"$f":"IF(DataLog!$C3405=\"Log value\",DataLog!AD3405,\"\")","v":""},{"$f":"IF(DataLog!$C3405=\"Log value\",DataLog!AE3405,\"\")","v":""},{"$f":"IF(DataLog!$C3405=\"Log value\",DataLog!AF3405,\"\")","v":""},{"$f":"IF(DataLog!$C3405=\"Log value\",DataLog!AG3405,\"\")","v":""},{"$f":"IF(DataLog!$C3405=\"Log value\",DataLog!AH3405,\"\")","v":""},{"$f":"IF(DataLog!$C3405=\"Log value\",DataLog!AI3405,\"\")","v":""},{"$f":"IF(DataLog!$C3405=\"Log value\",DataLog!AJ3405,\"\")","v":""},{"$f":"IF(DataLog!$C3405=\"Log value\",DataLog!AK3405,\"\")","v":""},{"$f":"IF(DataLog!$C3405=\"Log value\",DataLog!AL3405,\"\")","v":""},{"$f":"IF(DataLog!$C3405=\"Log value\",DataLog!AM3405,\"\")","v":""}]
[null,null,null,null,null,null,{"$f":"IF(DataLog!$C3406=\"Log value\",DataLog!D3406&\"_\"&TEXT(DataLog!B3406,\"åååå-mm-dd\"),\"\")","v":""},{"$f":"IF(DataLog!$C3406=\"Log value\",DataLog!E3406,\"\")","v":""},{"$f":"IF(DataLog!$C3406=\"Log value\",DataLog!F3406,\"\")","v":""},{"$f":"IF(DataLog!$C3406=\"Log value\",DataLog!G3406,\"\")","v":""},{"$f":"IF(DataLog!$C3406=\"Log value\",DataLog!H3406,\"\")","v":""},{"$f":"IF(DataLog!$C3406=\"Log value\",DataLog!I3406,\"\")","v":""},{"$f":"IF(DataLog!$C3406=\"Log value\",DataLog!J3406,\"\")","v":""},{"$f":"IF(DataLog!$C3406=\"Log value\",DataLog!K3406,\"\")","v":""},{"$f":"IF(DataLog!$C3406=\"Log value\",DataLog!L3406,\"\")","v":""},{"$f":"IF(DataLog!$C3406=\"Log value\",DataLog!M3406,\"\")","v":""},{"$f":"IF(DataLog!$C3406=\"Log value\",DataLog!N3406,\"\")","v":""},{"$f":"IF(DataLog!$C3406=\"Log value\",DataLog!O3406,\"\")","v":""},{"$f":"IF(DataLog!$C3406=\"Log value\",DataLog!P3406,\"\")","v":""},{"$f":"IF(DataLog!$C3406=\"Log value\",DataLog!Q3406,\"\")","v":""},{"$f":"IF(DataLog!$C3406=\"Log value\",DataLog!R3406,\"\")","v":""},{"$f":"IF(DataLog!$C3406=\"Log value\",DataLog!S3406,\"\")","v":""},{"$f":"IF(DataLog!$C3406=\"Log value\",DataLog!T3406,\"\")","v":""},{"$f":"IF(DataLog!$C3406=\"Log value\",DataLog!U3406,\"\")","v":""},{"$f":"IF(DataLog!$C3406=\"Log value\",DataLog!V3406,\"\")","v":""},{"$f":"IF(DataLog!$C3406=\"Log value\",DataLog!W3406,\"\")","v":""},{"$f":"IF(DataLog!$C3406=\"Log value\",DataLog!X3406,\"\")","v":""},{"$f":"IF(DataLog!$C3406=\"Log value\",DataLog!Y3406,\"\")","v":""},{"$f":"IF(DataLog!$C3406=\"Log value\",DataLog!Z3406,\"\")","v":""},{"$f":"IF(DataLog!$C3406=\"Log value\",DataLog!AA3406,\"\")","v":""},{"$f":"IF(DataLog!$C3406=\"Log value\",DataLog!AB3406,\"\")","v":""},{"$f":"IF(DataLog!$C3406=\"Log value\",DataLog!AC3406,\"\")","v":""},{"$f":"IF(DataLog!$C3406=\"Log value\",DataLog!AD3406,\"\")","v":""},{"$f":"IF(DataLog!$C3406=\"Log value\",DataLog!AE3406,\"\")","v":""},{"$f":"IF(DataLog!$C3406=\"Log value\",DataLog!AF3406,\"\")","v":""},{"$f":"IF(DataLog!$C3406=\"Log value\",DataLog!AG3406,\"\")","v":""},{"$f":"IF(DataLog!$C3406=\"Log value\",DataLog!AH3406,\"\")","v":""},{"$f":"IF(DataLog!$C3406=\"Log value\",DataLog!AI3406,\"\")","v":""},{"$f":"IF(DataLog!$C3406=\"Log value\",DataLog!AJ3406,\"\")","v":""},{"$f":"IF(DataLog!$C3406=\"Log value\",DataLog!AK3406,\"\")","v":""},{"$f":"IF(DataLog!$C3406=\"Log value\",DataLog!AL3406,\"\")","v":""},{"$f":"IF(DataLog!$C3406=\"Log value\",DataLog!AM3406,\"\")","v":""}]
[null,null,null,null,null,null,{"$f":"IF(DataLog!$C3407=\"Log value\",DataLog!D3407&\"_\"&TEXT(DataLog!B3407,\"åååå-mm-dd\"),\"\")","v":""},{"$f":"IF(DataLog!$C3407=\"Log value\",DataLog!E3407,\"\")","v":""},{"$f":"IF(DataLog!$C3407=\"Log value\",DataLog!F3407,\"\")","v":""},{"$f":"IF(DataLog!$C3407=\"Log value\",DataLog!G3407,\"\")","v":""},{"$f":"IF(DataLog!$C3407=\"Log value\",DataLog!H3407,\"\")","v":""},{"$f":"IF(DataLog!$C3407=\"Log value\",DataLog!I3407,\"\")","v":""},{"$f":"IF(DataLog!$C3407=\"Log value\",DataLog!J3407,\"\")","v":""},{"$f":"IF(DataLog!$C3407=\"Log value\",DataLog!K3407,\"\")","v":""},{"$f":"IF(DataLog!$C3407=\"Log value\",DataLog!L3407,\"\")","v":""},{"$f":"IF(DataLog!$C3407=\"Log value\",DataLog!M3407,\"\")","v":""},{"$f":"IF(DataLog!$C3407=\"Log value\",DataLog!N3407,\"\")","v":""},{"$f":"IF(DataLog!$C3407=\"Log value\",DataLog!O3407,\"\")","v":""},{"$f":"IF(DataLog!$C3407=\"Log value\",DataLog!P3407,\"\")","v":""},{"$f":"IF(DataLog!$C3407=\"Log value\",DataLog!Q3407,\"\")","v":""},{"$f":"IF(DataLog!$C3407=\"Log value\",DataLog!R3407,\"\")","v":""},{"$f":"IF(DataLog!$C3407=\"Log value\",DataLog!S3407,\"\")","v":""},{"$f":"IF(DataLog!$C3407=\"Log value\",DataLog!T3407,\"\")","v":""},{"$f":"IF(DataLog!$C3407=\"Log value\",DataLog!U3407,\"\")","v":""},{"$f":"IF(DataLog!$C3407=\"Log value\",DataLog!V3407,\"\")","v":""},{"$f":"IF(DataLog!$C3407=\"Log value\",DataLog!W3407,\"\")","v":""},{"$f":"IF(DataLog!$C3407=\"Log value\",DataLog!X3407,\"\")","v":""},{"$f":"IF(DataLog!$C3407=\"Log value\",DataLog!Y3407,\"\")","v":""},{"$f":"IF(DataLog!$C3407=\"Log value\",DataLog!Z3407,\"\")","v":""},{"$f":"IF(DataLog!$C3407=\"Log value\",DataLog!AA3407,\"\")","v":""},{"$f":"IF(DataLog!$C3407=\"Log value\",DataLog!AB3407,\"\")","v":""},{"$f":"IF(DataLog!$C3407=\"Log value\",DataLog!AC3407,\"\")","v":""},{"$f":"IF(DataLog!$C3407=\"Log value\",DataLog!AD3407,\"\")","v":""},{"$f":"IF(DataLog!$C3407=\"Log value\",DataLog!AE3407,\"\")","v":""},{"$f":"IF(DataLog!$C3407=\"Log value\",DataLog!AF3407,\"\")","v":""},{"$f":"IF(DataLog!$C3407=\"Log value\",DataLog!AG3407,\"\")","v":""},{"$f":"IF(DataLog!$C3407=\"Log value\",DataLog!AH3407,\"\")","v":""},{"$f":"IF(DataLog!$C3407=\"Log value\",DataLog!AI3407,\"\")","v":""},{"$f":"IF(DataLog!$C3407=\"Log value\",DataLog!AJ3407,\"\")","v":""},{"$f":"IF(DataLog!$C3407=\"Log value\",DataLog!AK3407,\"\")","v":""},{"$f":"IF(DataLog!$C3407=\"Log value\",DataLog!AL3407,\"\")","v":""},{"$f":"IF(DataLog!$C3407=\"Log value\",DataLog!AM3407,\"\")","v":""}]
[null,null,null,null,null,null,{"$f":"IF(DataLog!$C3408=\"Log value\",DataLog!D3408&\"_\"&TEXT(DataLog!B3408,\"åååå-mm-dd\"),\"\")","v":""},{"$f":"IF(DataLog!$C3408=\"Log value\",DataLog!E3408,\"\")","v":""},{"$f":"IF(DataLog!$C3408=\"Log value\",DataLog!F3408,\"\")","v":""},{"$f":"IF(DataLog!$C3408=\"Log value\",DataLog!G3408,\"\")","v":""},{"$f":"IF(DataLog!$C3408=\"Log value\",DataLog!H3408,\"\")","v":""},{"$f":"IF(DataLog!$C3408=\"Log value\",DataLog!I3408,\"\")","v":""},{"$f":"IF(DataLog!$C3408=\"Log value\",DataLog!J3408,\"\")","v":""},{"$f":"IF(DataLog!$C3408=\"Log value\",DataLog!K3408,\"\")","v":""},{"$f":"IF(DataLog!$C3408=\"Log value\",DataLog!L3408,\"\")","v":""},{"$f":"IF(DataLog!$C3408=\"Log value\",DataLog!M3408,\"\")","v":""},{"$f":"IF(DataLog!$C3408=\"Log value\",DataLog!N3408,\"\")","v":""},{"$f":"IF(DataLog!$C3408=\"Log value\",DataLog!O3408,\"\")","v":""},{"$f":"IF(DataLog!$C3408=\"Log value\",DataLog!P3408,\"\")","v":""},{"$f":"IF(DataLog!$C3408=\"Log value\",DataLog!Q3408,\"\")","v":""},{"$f":"IF(DataLog!$C3408=\"Log value\",DataLog!R3408,\"\")","v":""},{"$f":"IF(DataLog!$C3408=\"Log value\",DataLog!S3408,\"\")","v":""},{"$f":"IF(DataLog!$C3408=\"Log value\",DataLog!T3408,\"\")","v":""},{"$f":"IF(DataLog!$C3408=\"Log value\",DataLog!U3408,\"\")","v":""},{"$f":"IF(DataLog!$C3408=\"Log value\",DataLog!V3408,\"\")","v":""},{"$f":"IF(DataLog!$C3408=\"Log value\",DataLog!W3408,\"\")","v":""},{"$f":"IF(DataLog!$C3408=\"Log value\",DataLog!X3408,\"\")","v":""},{"$f":"IF(DataLog!$C3408=\"Log value\",DataLog!Y3408,\"\")","v":""},{"$f":"IF(DataLog!$C3408=\"Log value\",DataLog!Z3408,\"\")","v":""},{"$f":"IF(DataLog!$C3408=\"Log value\",DataLog!AA3408,\"\")","v":""},{"$f":"IF(DataLog!$C3408=\"Log value\",DataLog!AB3408,\"\")","v":""},{"$f":"IF(DataLog!$C3408=\"Log value\",DataLog!AC3408,\"\")","v":""},{"$f":"IF(DataLog!$C3408=\"Log value\",DataLog!AD3408,\"\")","v":""},{"$f":"IF(DataLog!$C3408=\"Log value\",DataLog!AE3408,\"\")","v":""},{"$f":"IF(DataLog!$C3408=\"Log value\",DataLog!AF3408,\"\")","v":""},{"$f":"IF(DataLog!$C3408=\"Log value\",DataLog!AG3408,\"\")","v":""},{"$f":"IF(DataLog!$C3408=\"Log value\",DataLog!AH3408,\"\")","v":""},{"$f":"IF(DataLog!$C3408=\"Log value\",DataLog!AI3408,\"\")","v":""},{"$f":"IF(DataLog!$C3408=\"Log value\",DataLog!AJ3408,\"\")","v":""},{"$f":"IF(DataLog!$C3408=\"Log value\",DataLog!AK3408,\"\")","v":""},{"$f":"IF(DataLog!$C3408=\"Log value\",DataLog!AL3408,\"\")","v":""},{"$f":"IF(DataLog!$C3408=\"Log value\",DataLog!AM3408,\"\")","v":""}]
[null,null,null,null,null,null,{"$f":"IF(DataLog!$C3409=\"Log value\",DataLog!D3409&\"_\"&TEXT(DataLog!B3409,\"åååå-mm-dd\"),\"\")","v":""},{"$f":"IF(DataLog!$C3409=\"Log value\",DataLog!E3409,\"\")","v":""},{"$f":"IF(DataLog!$C3409=\"Log value\",DataLog!F3409,\"\")","v":""},{"$f":"IF(DataLog!$C3409=\"Log value\",DataLog!G3409,\"\")","v":""},{"$f":"IF(DataLog!$C3409=\"Log value\",DataLog!H3409,\"\")","v":""},{"$f":"IF(DataLog!$C3409=\"Log value\",DataLog!I3409,\"\")","v":""},{"$f":"IF(DataLog!$C3409=\"Log value\",DataLog!J3409,\"\")","v":""},{"$f":"IF(DataLog!$C3409=\"Log value\",DataLog!K3409,\"\")","v":""},{"$f":"IF(DataLog!$C3409=\"Log value\",DataLog!L3409,\"\")","v":""},{"$f":"IF(DataLog!$C3409=\"Log value\",DataLog!M3409,\"\")","v":""},{"$f":"IF(DataLog!$C3409=\"Log value\",DataLog!N3409,\"\")","v":""},{"$f":"IF(DataLog!$C3409=\"Log value\",DataLog!O3409,\"\")","v":""},{"$f":"IF(DataLog!$C3409=\"Log value\",DataLog!P3409,\"\")","v":""},{"$f":"IF(DataLog!$C3409=\"Log value\",DataLog!Q3409,\"\")","v":""},{"$f":"IF(DataLog!$C3409=\"Log value\",DataLog!R3409,\"\")","v":""},{"$f":"IF(DataLog!$C3409=\"Log value\",DataLog!S3409,\"\")","v":""},{"$f":"IF(DataLog!$C3409=\"Log value\",DataLog!T3409,\"\")","v":""},{"$f":"IF(DataLog!$C3409=\"Log value\",DataLog!U3409,\"\")","v":""},{"$f":"IF(DataLog!$C3409=\"Log value\",DataLog!V3409,\"\")","v":""},{"$f":"IF(DataLog!$C3409=\"Log value\",DataLog!W3409,\"\")","v":""},{"$f":"IF(DataLog!$C3409=\"Log value\",DataLog!X3409,\"\")","v":""},{"$f":"IF(DataLog!$C3409=\"Log value\",DataLog!Y3409,\"\")","v":""},{"$f":"IF(DataLog!$C3409=\"Log value\",DataLog!Z3409,\"\")","v":""},{"$f":"IF(DataLog!$C3409=\"Log value\",DataLog!AA3409,\"\")","v":""},{"$f":"IF(DataLog!$C3409=\"Log value\",DataLog!AB3409,\"\")","v":""},{"$f":"IF(DataLog!$C3409=\"Log value\",DataLog!AC3409,\"\")","v":""},{"$f":"IF(DataLog!$C3409=\"Log value\",DataLog!AD3409,\"\")","v":""},{"$f":"IF(DataLog!$C3409=\"Log value\",DataLog!AE3409,\"\")","v":""},{"$f":"IF(DataLog!$C3409=\"Log value\",DataLog!AF3409,\"\")","v":""},{"$f":"IF(DataLog!$C3409=\"Log value\",DataLog!AG3409,\"\")","v":""},{"$f":"IF(DataLog!$C3409=\"Log value\",DataLog!AH3409,\"\")","v":""},{"$f":"IF(DataLog!$C3409=\"Log value\",DataLog!AI3409,\"\")","v":""},{"$f":"IF(DataLog!$C3409=\"Log value\",DataLog!AJ3409,\"\")","v":""},{"$f":"IF(DataLog!$C3409=\"Log value\",DataLog!AK3409,\"\")","v":""},{"$f":"IF(DataLog!$C3409=\"Log value\",DataLog!AL3409,\"\")","v":""},{"$f":"IF(DataLog!$C3409=\"Log value\",DataLog!AM3409,\"\")","v":""}]
[null,null,null,null,null,null,{"$f":"IF(DataLog!$C3410=\"Log value\",DataLog!D3410&\"_\"&TEXT(DataLog!B3410,\"åååå-mm-dd\"),\"\")","v":""},{"$f":"IF(DataLog!$C3410=\"Log value\",DataLog!E3410,\"\")","v":""},{"$f":"IF(DataLog!$C3410=\"Log value\",DataLog!F3410,\"\")","v":""},{"$f":"IF(DataLog!$C3410=\"Log value\",DataLog!G3410,\"\")","v":""},{"$f":"IF(DataLog!$C3410=\"Log value\",DataLog!H3410,\"\")","v":""},{"$f":"IF(DataLog!$C3410=\"Log value\",DataLog!I3410,\"\")","v":""},{"$f":"IF(DataLog!$C3410=\"Log value\",DataLog!J3410,\"\")","v":""},{"$f":"IF(DataLog!$C3410=\"Log value\",DataLog!K3410,\"\")","v":""},{"$f":"IF(DataLog!$C3410=\"Log value\",DataLog!L3410,\"\")","v":""},{"$f":"IF(DataLog!$C3410=\"Log value\",DataLog!M3410,\"\")","v":""},{"$f":"IF(DataLog!$C3410=\"Log value\",DataLog!N3410,\"\")","v":""},{"$f":"IF(DataLog!$C3410=\"Log value\",DataLog!O3410,\"\")","v":""},{"$f":"IF(DataLog!$C3410=\"Log value\",DataLog!P3410,\"\")","v":""},{"$f":"IF(DataLog!$C3410=\"Log value\",DataLog!Q3410,\"\")","v":""},{"$f":"IF(DataLog!$C3410=\"Log value\",DataLog!R3410,\"\")","v":""},{"$f":"IF(DataLog!$C3410=\"Log value\",DataLog!S3410,\"\")","v":""},{"$f":"IF(DataLog!$C3410=\"Log value\",DataLog!T3410,\"\")","v":""},{"$f":"IF(DataLog!$C3410=\"Log value\",DataLog!U3410,\"\")","v":""},{"$f":"IF(DataLog!$C3410=\"Log value\",DataLog!V3410,\"\")","v":""},{"$f":"IF(DataLog!$C3410=\"Log value\",DataLog!W3410,\"\")","v":""},{"$f":"IF(DataLog!$C3410=\"Log value\",DataLog!X3410,\"\")","v":""},{"$f":"IF(DataLog!$C3410=\"Log value\",DataLog!Y3410,\"\")","v":""},{"$f":"IF(DataLog!$C3410=\"Log value\",DataLog!Z3410,\"\")","v":""},{"$f":"IF(DataLog!$C3410=\"Log value\",DataLog!AA3410,\"\")","v":""},{"$f":"IF(DataLog!$C3410=\"Log value\",DataLog!AB3410,\"\")","v":""},{"$f":"IF(DataLog!$C3410=\"Log value\",DataLog!AC3410,\"\")","v":""},{"$f":"IF(DataLog!$C3410=\"Log value\",DataLog!AD3410,\"\")","v":""},{"$f":"IF(DataLog!$C3410=\"Log value\",DataLog!AE3410,\"\")","v":""},{"$f":"IF(DataLog!$C3410=\"Log value\",DataLog!AF3410,\"\")","v":""},{"$f":"IF(DataLog!$C3410=\"Log value\",DataLog!AG3410,\"\")","v":""},{"$f":"IF(DataLog!$C3410=\"Log value\",DataLog!AH3410,\"\")","v":""},{"$f":"IF(DataLog!$C3410=\"Log value\",DataLog!AI3410,\"\")","v":""},{"$f":"IF(DataLog!$C3410=\"Log value\",DataLog!AJ3410,\"\")","v":""},{"$f":"IF(DataLog!$C3410=\"Log value\",DataLog!AK3410,\"\")","v":""},{"$f":"IF(DataLog!$C3410=\"Log value\",DataLog!AL3410,\"\")","v":""},{"$f":"IF(DataLog!$C3410=\"Log value\",DataLog!AM3410,\"\")","v":""}]
[null,null,null,null,null,null,{"$f":"IF(DataLog!$C3411=\"Log value\",DataLog!D3411&\"_\"&TEXT(DataLog!B3411,\"åååå-mm-dd\"),\"\")","v":""},{"$f":"IF(DataLog!$C3411=\"Log value\",DataLog!E3411,\"\")","v":""},{"$f":"IF(DataLog!$C3411=\"Log value\",DataLog!F3411,\"\")","v":""},{"$f":"IF(DataLog!$C3411=\"Log value\",DataLog!G3411,\"\")","v":""},{"$f":"IF(DataLog!$C3411=\"Log value\",DataLog!H3411,\"\")","v":""},{"$f":"IF(DataLog!$C3411=\"Log value\",DataLog!I3411,\"\")","v":""},{"$f":"IF(DataLog!$C3411=\"Log value\",DataLog!J3411,\"\")","v":""},{"$f":"IF(DataLog!$C3411=\"Log value\",DataLog!K3411,\"\")","v":""},{"$f":"IF(DataLog!$C3411=\"Log value\",DataLog!L3411,\"\")","v":""},{"$f":"IF(DataLog!$C3411=\"Log value\",DataLog!M3411,\"\")","v":""},{"$f":"IF(DataLog!$C3411=\"Log value\",DataLog!N3411,\"\")","v":""},{"$f":"IF(DataLog!$C3411=\"Log value\",DataLog!O3411,\"\")","v":""},{"$f":"IF(DataLog!$C3411=\"Log value\",DataLog!P3411,\"\")","v":""},{"$f":"IF(DataLog!$C3411=\"Log value\",DataLog!Q3411,\"\")","v":""},{"$f":"IF(DataLog!$C3411=\"Log value\",DataLog!R3411,\"\")","v":""},{"$f":"IF(DataLog!$C3411=\"Log value\",DataLog!S3411,\"\")","v":""},{"$f":"IF(DataLog!$C3411=\"Log value\",DataLog!T3411,\"\")","v":""},{"$f":"IF(DataLog!$C3411=\"Log value\",DataLog!U3411,\"\")","v":""},{"$f":"IF(DataLog!$C3411=\"Log value\",DataLog!V3411,\"\")","v":""},{"$f":"IF(DataLog!$C3411=\"Log value\",DataLog!W3411,\"\")","v":""},{"$f":"IF(DataLog!$C3411=\"Log value\",DataLog!X3411,\"\")","v":""},{"$f":"IF(DataLog!$C3411=\"Log value\",DataLog!Y3411,\"\")","v":""},{"$f":"IF(DataLog!$C3411=\"Log value\",DataLog!Z3411,\"\")","v":""},{"$f":"IF(DataLog!$C3411=\"Log value\",DataLog!AA3411,\"\")","v":""},{"$f":"IF(DataLog!$C3411=\"Log value\",DataLog!AB3411,\"\")","v":""},{"$f":"IF(DataLog!$C3411=\"Log value\",DataLog!AC3411,\"\")","v":""},{"$f":"IF(DataLog!$C3411=\"Log value\",DataLog!AD3411,\"\")","v":""},{"$f":"IF(DataLog!$C3411=\"Log value\",DataLog!AE3411,\"\")","v":""},{"$f":"IF(DataLog!$C3411=\"Log value\",DataLog!AF3411,\"\")","v":""},{"$f":"IF(DataLog!$C3411=\"Log value\",DataLog!AG3411,\"\")","v":""},{"$f":"IF(DataLog!$C3411=\"Log value\",DataLog!AH3411,\"\")","v":""},{"$f":"IF(DataLog!$C3411=\"Log value\",DataLog!AI3411,\"\")","v":""},{"$f":"IF(DataLog!$C3411=\"Log value\",DataLog!AJ3411,\"\")","v":""},{"$f":"IF(DataLog!$C3411=\"Log value\",DataLog!AK3411,\"\")","v":""},{"$f":"IF(DataLog!$C3411=\"Log value\",DataLog!AL3411,\"\")","v":""},{"$f":"IF(DataLog!$C3411=\"Log value\",DataLog!AM3411,\"\")","v":""}]
[null,null,null,null,null,null,{"$f":"IF(DataLog!$C3412=\"Log value\",DataLog!D3412&\"_\"&TEXT(DataLog!B3412,\"åååå-mm-dd\"),\"\")","v":""},{"$f":"IF(DataLog!$C3412=\"Log value\",DataLog!E3412,\"\")","v":""},{"$f":"IF(DataLog!$C3412=\"Log value\",DataLog!F3412,\"\")","v":""},{"$f":"IF(DataLog!$C3412=\"Log value\",DataLog!G3412,\"\")","v":""},{"$f":"IF(DataLog!$C3412=\"Log value\",DataLog!H3412,\"\")","v":""},{"$f":"IF(DataLog!$C3412=\"Log value\",DataLog!I3412,\"\")","v":""},{"$f":"IF(DataLog!$C3412=\"Log value\",DataLog!J3412,\"\")","v":""},{"$f":"IF(DataLog!$C3412=\"Log value\",DataLog!K3412,\"\")","v":""},{"$f":"IF(DataLog!$C3412=\"Log value\",DataLog!L3412,\"\")","v":""},{"$f":"IF(DataLog!$C3412=\"Log value\",DataLog!M3412,\"\")","v":""},{"$f":"IF(DataLog!$C3412=\"Log value\",DataLog!N3412,\"\")","v":""},{"$f":"IF(DataLog!$C3412=\"Log value\",DataLog!O3412,\"\")","v":""},{"$f":"IF(DataLog!$C3412=\"Log value\",DataLog!P3412,\"\")","v":""},{"$f":"IF(DataLog!$C3412=\"Log value\",DataLog!Q3412,\"\")","v":""},{"$f":"IF(DataLog!$C3412=\"Log value\",DataLog!R3412,\"\")","v":""},{"$f":"IF(DataLog!$C3412=\"Log value\",DataLog!S3412,\"\")","v":""},{"$f":"IF(DataLog!$C3412=\"Log value\",DataLog!T3412,\"\")","v":""},{"$f":"IF(DataLog!$C3412=\"Log value\",DataLog!U3412,\"\")","v":""},{"$f":"IF(DataLog!$C3412=\"Log value\",DataLog!V3412,\"\")","v":""},{"$f":"IF(DataLog!$C3412=\"Log value\",DataLog!W3412,\"\")","v":""},{"$f":"IF(DataLog!$C3412=\"Log value\",DataLog!X3412,\"\")","v":""},{"$f":"IF(DataLog!$C3412=\"Log value\",DataLog!Y3412,\"\")","v":""},{"$f":"IF(DataLog!$C3412=\"Log value\",DataLog!Z3412,\"\")","v":""},{"$f":"IF(DataLog!$C3412=\"Log value\",DataLog!AA3412,\"\")","v":""},{"$f":"IF(DataLog!$C3412=\"Log value\",DataLog!AB3412,\"\")","v":""},{"$f":"IF(DataLog!$C3412=\"Log value\",DataLog!AC3412,\"\")","v":""},{"$f":"IF(DataLog!$C3412=\"Log value\",DataLog!AD3412,\"\")","v":""},{"$f":"IF(DataLog!$C3412=\"Log value\",DataLog!AE3412,\"\")","v":""},{"$f":"IF(DataLog!$C3412=\"Log value\",DataLog!AF3412,\"\")","v":""},{"$f":"IF(DataLog!$C3412=\"Log value\",DataLog!AG3412,\"\")","v":""},{"$f":"IF(DataLog!$C3412=\"Log value\",DataLog!AH3412,\"\")","v":""},{"$f":"IF(DataLog!$C3412=\"Log value\",DataLog!AI3412,\"\")","v":""},{"$f":"IF(DataLog!$C3412=\"Log value\",DataLog!AJ3412,\"\")","v":""},{"$f":"IF(DataLog!$C3412=\"Log value\",DataLog!AK3412,\"\")","v":""},{"$f":"IF(DataLog!$C3412=\"Log value\",DataLog!AL3412,\"\")","v":""},{"$f":"IF(DataLog!$C3412=\"Log value\",DataLog!AM3412,\"\")","v":""}]
[null,null,null,null,null,null,{"$f":"IF(DataLog!$C3413=\"Log value\",DataLog!D3413&\"_\"&TEXT(DataLog!B3413,\"åååå-mm-dd\"),\"\")","v":""},{"$f":"IF(DataLog!$C3413=\"Log value\",DataLog!E3413,\"\")","v":""},{"$f":"IF(DataLog!$C3413=\"Log value\",DataLog!F3413,\"\")","v":""},{"$f":"IF(DataLog!$C3413=\"Log value\",DataLog!G3413,\"\")","v":""},{"$f":"IF(DataLog!$C3413=\"Log value\",DataLog!H3413,\"\")","v":""},{"$f":"IF(DataLog!$C3413=\"Log value\",DataLog!I3413,\"\")","v":""},{"$f":"IF(DataLog!$C3413=\"Log value\",DataLog!J3413,\"\")","v":""},{"$f":"IF(DataLog!$C3413=\"Log value\",DataLog!K3413,\"\")","v":""},{"$f":"IF(DataLog!$C3413=\"Log value\",DataLog!L3413,\"\")","v":""},{"$f":"IF(DataLog!$C3413=\"Log value\",DataLog!M3413,\"\")","v":""},{"$f":"IF(DataLog!$C3413=\"Log value\",DataLog!N3413,\"\")","v":""},{"$f":"IF(DataLog!$C3413=\"Log value\",DataLog!O3413,\"\")","v":""},{"$f":"IF(DataLog!$C3413=\"Log value\",DataLog!P3413,\"\")","v":""},{"$f":"IF(DataLog!$C3413=\"Log value\",DataLog!Q3413,\"\")","v":""},{"$f":"IF(DataLog!$C3413=\"Log value\",DataLog!R3413,\"\")","v":""},{"$f":"IF(DataLog!$C3413=\"Log value\",DataLog!S3413,\"\")","v":""},{"$f":"IF(DataLog!$C3413=\"Log value\",DataLog!T3413,\"\")","v":""},{"$f":"IF(DataLog!$C3413=\"Log value\",DataLog!U3413,\"\")","v":""},{"$f":"IF(DataLog!$C3413=\"Log value\",DataLog!V3413,\"\")","v":""},{"$f":"IF(DataLog!$C3413=\"Log value\",DataLog!W3413,\"\")","v":""},{"$f":"IF(DataLog!$C3413=\"Log value\",DataLog!X3413,\"\")","v":""},{"$f":"IF(DataLog!$C3413=\"Log value\",DataLog!Y3413,\"\")","v":""},{"$f":"IF(DataLog!$C3413=\"Log value\",DataLog!Z3413,\"\")","v":""},{"$f":"IF(DataLog!$C3413=\"Log value\",DataLog!AA3413,\"\")","v":""},{"$f":"IF(DataLog!$C3413=\"Log value\",DataLog!AB3413,\"\")","v":""},{"$f":"IF(DataLog!$C3413=\"Log value\",DataLog!AC3413,\"\")","v":""},{"$f":"IF(DataLog!$C3413=\"Log value\",DataLog!AD3413,\"\")","v":""},{"$f":"IF(DataLog!$C3413=\"Log value\",DataLog!AE3413,\"\")","v":""},{"$f":"IF(DataLog!$C3413=\"Log value\",DataLog!AF3413,\"\")","v":""},{"$f":"IF(DataLog!$C3413=\"Log value\",DataLog!AG3413,\"\")","v":""},{"$f":"IF(DataLog!$C3413=\"Log value\",DataLog!AH3413,\"\")","v":""},{"$f":"IF(DataLog!$C3413=\"Log value\",DataLog!AI3413,\"\")","v":""},{"$f":"IF(DataLog!$C3413=\"Log value\",DataLog!AJ3413,\"\")","v":""},{"$f":"IF(DataLog!$C3413=\"Log value\",DataLog!AK3413,\"\")","v":""},{"$f":"IF(DataLog!$C3413=\"Log value\",DataLog!AL3413,\"\")","v":""},{"$f":"IF(DataLog!$C3413=\"Log value\",DataLog!AM3413,\"\")","v":""}]
[null,null,null,null,null,null,{"$f":"IF(DataLog!$C3414=\"Log value\",DataLog!D3414&\"_\"&TEXT(DataLog!B3414,\"åååå-mm-dd\"),\"\")","v":""},{"$f":"IF(DataLog!$C3414=\"Log value\",DataLog!E3414,\"\")","v":""},{"$f":"IF(DataLog!$C3414=\"Log value\",DataLog!F3414,\"\")","v":""},{"$f":"IF(DataLog!$C3414=\"Log value\",DataLog!G3414,\"\")","v":""},{"$f":"IF(DataLog!$C3414=\"Log value\",DataLog!H3414,\"\")","v":""},{"$f":"IF(DataLog!$C3414=\"Log value\",DataLog!I3414,\"\")","v":""},{"$f":"IF(DataLog!$C3414=\"Log value\",DataLog!J3414,\"\")","v":""},{"$f":"IF(DataLog!$C3414=\"Log value\",DataLog!K3414,\"\")","v":""},{"$f":"IF(DataLog!$C3414=\"Log value\",DataLog!L3414,\"\")","v":""},{"$f":"IF(DataLog!$C3414=\"Log value\",DataLog!M3414,\"\")","v":""},{"$f":"IF(DataLog!$C3414=\"Log value\",DataLog!N3414,\"\")","v":""},{"$f":"IF(DataLog!$C3414=\"Log value\",DataLog!O3414,\"\")","v":""},{"$f":"IF(DataLog!$C3414=\"Log value\",DataLog!P3414,\"\")","v":""},{"$f":"IF(DataLog!$C3414=\"Log value\",DataLog!Q3414,\"\")","v":""},{"$f":"IF(DataLog!$C3414=\"Log value\",DataLog!R3414,\"\")","v":""},{"$f":"IF(DataLog!$C3414=\"Log value\",DataLog!S3414,\"\")","v":""},{"$f":"IF(DataLog!$C3414=\"Log value\",DataLog!T3414,\"\")","v":""},{"$f":"IF(DataLog!$C3414=\"Log value\",DataLog!U3414,\"\")","v":""},{"$f":"IF(DataLog!$C3414=\"Log value\",DataLog!V3414,\"\")","v":""},{"$f":"IF(DataLog!$C3414=\"Log value\",DataLog!W3414,\"\")","v":""},{"$f":"IF(DataLog!$C3414=\"Log value\",DataLog!X3414,\"\")","v":""},{"$f":"IF(DataLog!$C3414=\"Log value\",DataLog!Y3414,\"\")","v":""},{"$f":"IF(DataLog!$C3414=\"Log value\",DataLog!Z3414,\"\")","v":""},{"$f":"IF(DataLog!$C3414=\"Log value\",DataLog!AA3414,\"\")","v":""},{"$f":"IF(DataLog!$C3414=\"Log value\",DataLog!AB3414,\"\")","v":""},{"$f":"IF(DataLog!$C3414=\"Log value\",DataLog!AC3414,\"\")","v":""},{"$f":"IF(DataLog!$C3414=\"Log value\",DataLog!AD3414,\"\")","v":""},{"$f":"IF(DataLog!$C3414=\"Log value\",DataLog!AE3414,\"\")","v":""},{"$f":"IF(DataLog!$C3414=\"Log value\",DataLog!AF3414,\"\")","v":""},{"$f":"IF(DataLog!$C3414=\"Log value\",DataLog!AG3414,\"\")","v":""},{"$f":"IF(DataLog!$C3414=\"Log value\",DataLog!AH3414,\"\")","v":""},{"$f":"IF(DataLog!$C3414=\"Log value\",DataLog!AI3414,\"\")","v":""},{"$f":"IF(DataLog!$C3414=\"Log value\",DataLog!AJ3414,\"\")","v":""},{"$f":"IF(DataLog!$C3414=\"Log value\",DataLog!AK3414,\"\")","v":""},{"$f":"IF(DataLog!$C3414=\"Log value\",DataLog!AL3414,\"\")","v":""},{"$f":"IF(DataLog!$C3414=\"Log value\",DataLog!AM3414,\"\")","v":""}]
[null,null,null,null,null,null,{"$f":"IF(DataLog!$C3415=\"Log value\",DataLog!D3415&\"_\"&TEXT(DataLog!B3415,\"åååå-mm-dd\"),\"\")","v":""},{"$f":"IF(DataLog!$C3415=\"Log value\",DataLog!E3415,\"\")","v":""},{"$f":"IF(DataLog!$C3415=\"Log value\",DataLog!F3415,\"\")","v":""},{"$f":"IF(DataLog!$C3415=\"Log value\",DataLog!G3415,\"\")","v":""},{"$f":"IF(DataLog!$C3415=\"Log value\",DataLog!H3415,\"\")","v":""},{"$f":"IF(DataLog!$C3415=\"Log value\",DataLog!I3415,\"\")","v":""},{"$f":"IF(DataLog!$C3415=\"Log value\",DataLog!J3415,\"\")","v":""},{"$f":"IF(DataLog!$C3415=\"Log value\",DataLog!K3415,\"\")","v":""},{"$f":"IF(DataLog!$C3415=\"Log value\",DataLog!L3415,\"\")","v":""},{"$f":"IF(DataLog!$C3415=\"Log value\",DataLog!M3415,\"\")","v":""},{"$f":"IF(DataLog!$C3415=\"Log value\",DataLog!N3415,\"\")","v":""},{"$f":"IF(DataLog!$C3415=\"Log value\",DataLog!O3415,\"\")","v":""},{"$f":"IF(DataLog!$C3415=\"Log value\",DataLog!P3415,\"\")","v":""},{"$f":"IF(DataLog!$C3415=\"Log value\",DataLog!Q3415,\"\")","v":""},{"$f":"IF(DataLog!$C3415=\"Log value\",DataLog!R3415,\"\")","v":""},{"$f":"IF(DataLog!$C3415=\"Log value\",DataLog!S3415,\"\")","v":""},{"$f":"IF(DataLog!$C3415=\"Log value\",DataLog!T3415,\"\")","v":""},{"$f":"IF(DataLog!$C3415=\"Log value\",DataLog!U3415,\"\")","v":""},{"$f":"IF(DataLog!$C3415=\"Log value\",DataLog!V3415,\"\")","v":""},{"$f":"IF(DataLog!$C3415=\"Log value\",DataLog!W3415,\"\")","v":""},{"$f":"IF(DataLog!$C3415=\"Log value\",DataLog!X3415,\"\")","v":""},{"$f":"IF(DataLog!$C3415=\"Log value\",DataLog!Y3415,\"\")","v":""},{"$f":"IF(DataLog!$C3415=\"Log value\",DataLog!Z3415,\"\")","v":""},{"$f":"IF(DataLog!$C3415=\"Log value\",DataLog!AA3415,\"\")","v":""},{"$f":"IF(DataLog!$C3415=\"Log value\",DataLog!AB3415,\"\")","v":""},{"$f":"IF(DataLog!$C3415=\"Log value\",DataLog!AC3415,\"\")","v":""},{"$f":"IF(DataLog!$C3415=\"Log value\",DataLog!AD3415,\"\")","v":""},{"$f":"IF(DataLog!$C3415=\"Log value\",DataLog!AE3415,\"\")","v":""},{"$f":"IF(DataLog!$C3415=\"Log value\",DataLog!AF3415,\"\")","v":""},{"$f":"IF(DataLog!$C3415=\"Log value\",DataLog!AG3415,\"\")","v":""},{"$f":"IF(DataLog!$C3415=\"Log value\",DataLog!AH3415,\"\")","v":""},{"$f":"IF(DataLog!$C3415=\"Log value\",DataLog!AI3415,\"\")","v":""},{"$f":"IF(DataLog!$C3415=\"Log value\",DataLog!AJ3415,\"\")","v":""},{"$f":"IF(DataLog!$C3415=\"Log value\",DataLog!AK3415,\"\")","v":""},{"$f":"IF(DataLog!$C3415=\"Log value\",DataLog!AL3415,\"\")","v":""},{"$f":"IF(DataLog!$C3415=\"Log value\",DataLog!AM3415,\"\")","v":""}]
[null,null,null,null,null,null,{"$f":"IF(DataLog!$C3416=\"Log value\",DataLog!D3416&\"_\"&TEXT(DataLog!B3416,\"åååå-mm-dd\"),\"\")","v":""},{"$f":"IF(DataLog!$C3416=\"Log value\",DataLog!E3416,\"\")","v":""},{"$f":"IF(DataLog!$C3416=\"Log value\",DataLog!F3416,\"\")","v":""},{"$f":"IF(DataLog!$C3416=\"Log value\",DataLog!G3416,\"\")","v":""},{"$f":"IF(DataLog!$C3416=\"Log value\",DataLog!H3416,\"\")","v":""},{"$f":"IF(DataLog!$C3416=\"Log value\",DataLog!I3416,\"\")","v":""},{"$f":"IF(DataLog!$C3416=\"Log value\",DataLog!J3416,\"\")","v":""},{"$f":"IF(DataLog!$C3416=\"Log value\",DataLog!K3416,\"\")","v":""},{"$f":"IF(DataLog!$C3416=\"Log value\",DataLog!L3416,\"\")","v":""},{"$f":"IF(DataLog!$C3416=\"Log value\",DataLog!M3416,\"\")","v":""},{"$f":"IF(DataLog!$C3416=\"Log value\",DataLog!N3416,\"\")","v":""},{"$f":"IF(DataLog!$C3416=\"Log value\",DataLog!O3416,\"\")","v":""},{"$f":"IF(DataLog!$C3416=\"Log value\",DataLog!P3416,\"\")","v":""},{"$f":"IF(DataLog!$C3416=\"Log value\",DataLog!Q3416,\"\")","v":""},{"$f":"IF(DataLog!$C3416=\"Log value\",DataLog!R3416,\"\")","v":""},{"$f":"IF(DataLog!$C3416=\"Log value\",DataLog!S3416,\"\")","v":""},{"$f":"IF(DataLog!$C3416=\"Log value\",DataLog!T3416,\"\")","v":""},{"$f":"IF(DataLog!$C3416=\"Log value\",DataLog!U3416,\"\")","v":""},{"$f":"IF(DataLog!$C3416=\"Log value\",DataLog!V3416,\"\")","v":""},{"$f":"IF(DataLog!$C3416=\"Log value\",DataLog!W3416,\"\")","v":""},{"$f":"IF(DataLog!$C3416=\"Log value\",DataLog!X3416,\"\")","v":""},{"$f":"IF(DataLog!$C3416=\"Log value\",DataLog!Y3416,\"\")","v":""},{"$f":"IF(DataLog!$C3416=\"Log value\",DataLog!Z3416,\"\")","v":""},{"$f":"IF(DataLog!$C3416=\"Log value\",DataLog!AA3416,\"\")","v":""},{"$f":"IF(DataLog!$C3416=\"Log value\",DataLog!AB3416,\"\")","v":""},{"$f":"IF(DataLog!$C3416=\"Log value\",DataLog!AC3416,\"\")","v":""},{"$f":"IF(DataLog!$C3416=\"Log value\",DataLog!AD3416,\"\")","v":""},{"$f":"IF(DataLog!$C3416=\"Log value\",DataLog!AE3416,\"\")","v":""},{"$f":"IF(DataLog!$C3416=\"Log value\",DataLog!AF3416,\"\")","v":""},{"$f":"IF(DataLog!$C3416=\"Log value\",DataLog!AG3416,\"\")","v":""},{"$f":"IF(DataLog!$C3416=\"Log value\",DataLog!AH3416,\"\")","v":""},{"$f":"IF(DataLog!$C3416=\"Log value\",DataLog!AI3416,\"\")","v":""},{"$f":"IF(DataLog!$C3416=\"Log value\",DataLog!AJ3416,\"\")","v":""},{"$f":"IF(DataLog!$C3416=\"Log value\",DataLog!AK3416,\"\")","v":""},{"$f":"IF(DataLog!$C3416=\"Log value\",DataLog!AL3416,\"\")","v":""},{"$f":"IF(DataLog!$C3416=\"Log value\",DataLog!AM3416,\"\")","v":""}]
[null,null,null,null,null,null,{"$f":"IF(DataLog!$C3417=\"Log value\",DataLog!D3417&\"_\"&TEXT(DataLog!B3417,\"åååå-mm-dd\"),\"\")","v":""},{"$f":"IF(DataLog!$C3417=\"Log value\",DataLog!E3417,\"\")","v":""},{"$f":"IF(DataLog!$C3417=\"Log value\",DataLog!F3417,\"\")","v":""},{"$f":"IF(DataLog!$C3417=\"Log value\",DataLog!G3417,\"\")","v":""},{"$f":"IF(DataLog!$C3417=\"Log value\",DataLog!H3417,\"\")","v":""},{"$f":"IF(DataLog!$C3417=\"Log value\",DataLog!I3417,\"\")","v":""},{"$f":"IF(DataLog!$C3417=\"Log value\",DataLog!J3417,\"\")","v":""},{"$f":"IF(DataLog!$C3417=\"Log value\",DataLog!K3417,\"\")","v":""},{"$f":"IF(DataLog!$C3417=\"Log value\",DataLog!L3417,\"\")","v":""},{"$f":"IF(DataLog!$C3417=\"Log value\",DataLog!M3417,\"\")","v":""},{"$f":"IF(DataLog!$C3417=\"Log value\",DataLog!N3417,\"\")","v":""},{"$f":"IF(DataLog!$C3417=\"Log value\",DataLog!O3417,\"\")","v":""},{"$f":"IF(DataLog!$C3417=\"Log value\",DataLog!P3417,\"\")","v":""},{"$f":"IF(DataLog!$C3417=\"Log value\",DataLog!Q3417,\"\")","v":""},{"$f":"IF(DataLog!$C3417=\"Log value\",DataLog!R3417,\"\")","v":""},{"$f":"IF(DataLog!$C3417=\"Log value\",DataLog!S3417,\"\")","v":""},{"$f":"IF(DataLog!$C3417=\"Log value\",DataLog!T3417,\"\")","v":""},{"$f":"IF(DataLog!$C3417=\"Log value\",DataLog!U3417,\"\")","v":""},{"$f":"IF(DataLog!$C3417=\"Log value\",DataLog!V3417,\"\")","v":""},{"$f":"IF(DataLog!$C3417=\"Log value\",DataLog!W3417,\"\")","v":""},{"$f":"IF(DataLog!$C3417=\"Log value\",DataLog!X3417,\"\")","v":""},{"$f":"IF(DataLog!$C3417=\"Log value\",DataLog!Y3417,\"\")","v":""},{"$f":"IF(DataLog!$C3417=\"Log value\",DataLog!Z3417,\"\")","v":""},{"$f":"IF(DataLog!$C3417=\"Log value\",DataLog!AA3417,\"\")","v":""},{"$f":"IF(DataLog!$C3417=\"Log value\",DataLog!AB3417,\"\")","v":""},{"$f":"IF(DataLog!$C3417=\"Log value\",DataLog!AC3417,\"\")","v":""},{"$f":"IF(DataLog!$C3417=\"Log value\",DataLog!AD3417,\"\")","v":""},{"$f":"IF(DataLog!$C3417=\"Log value\",DataLog!AE3417,\"\")","v":""},{"$f":"IF(DataLog!$C3417=\"Log value\",DataLog!AF3417,\"\")","v":""},{"$f":"IF(DataLog!$C3417=\"Log value\",DataLog!AG3417,\"\")","v":""},{"$f":"IF(DataLog!$C3417=\"Log value\",DataLog!AH3417,\"\")","v":""},{"$f":"IF(DataLog!$C3417=\"Log value\",DataLog!AI3417,\"\")","v":""},{"$f":"IF(DataLog!$C3417=\"Log value\",DataLog!AJ3417,\"\")","v":""},{"$f":"IF(DataLog!$C3417=\"Log value\",DataLog!AK3417,\"\")","v":""},{"$f":"IF(DataLog!$C3417=\"Log value\",DataLog!AL3417,\"\")","v":""},{"$f":"IF(DataLog!$C3417=\"Log value\",DataLog!AM3417,\"\")","v":""}]
[null,null,null,null,null,null,{"$f":"IF(DataLog!$C3418=\"Log value\",DataLog!D3418&\"_\"&TEXT(DataLog!B3418,\"åååå-mm-dd\"),\"\")","v":""},{"$f":"IF(DataLog!$C3418=\"Log value\",DataLog!E3418,\"\")","v":""},{"$f":"IF(DataLog!$C3418=\"Log value\",DataLog!F3418,\"\")","v":""},{"$f":"IF(DataLog!$C3418=\"Log value\",DataLog!G3418,\"\")","v":""},{"$f":"IF(DataLog!$C3418=\"Log value\",DataLog!H3418,\"\")","v":""},{"$f":"IF(DataLog!$C3418=\"Log value\",DataLog!I3418,\"\")","v":""},{"$f":"IF(DataLog!$C3418=\"Log value\",DataLog!J3418,\"\")","v":""},{"$f":"IF(DataLog!$C3418=\"Log value\",DataLog!K3418,\"\")","v":""},{"$f":"IF(DataLog!$C3418=\"Log value\",DataLog!L3418,\"\")","v":""},{"$f":"IF(DataLog!$C3418=\"Log value\",DataLog!M3418,\"\")","v":""},{"$f":"IF(DataLog!$C3418=\"Log value\",DataLog!N3418,\"\")","v":""},{"$f":"IF(DataLog!$C3418=\"Log value\",DataLog!O3418,\"\")","v":""},{"$f":"IF(DataLog!$C3418=\"Log value\",DataLog!P3418,\"\")","v":""},{"$f":"IF(DataLog!$C3418=\"Log value\",DataLog!Q3418,\"\")","v":""},{"$f":"IF(DataLog!$C3418=\"Log value\",DataLog!R3418,\"\")","v":""},{"$f":"IF(DataLog!$C3418=\"Log value\",DataLog!S3418,\"\")","v":""},{"$f":"IF(DataLog!$C3418=\"Log value\",DataLog!T3418,\"\")","v":""},{"$f":"IF(DataLog!$C3418=\"Log value\",DataLog!U3418,\"\")","v":""},{"$f":"IF(DataLog!$C3418=\"Log value\",DataLog!V3418,\"\")","v":""},{"$f":"IF(DataLog!$C3418=\"Log value\",DataLog!W3418,\"\")","v":""},{"$f":"IF(DataLog!$C3418=\"Log value\",DataLog!X3418,\"\")","v":""},{"$f":"IF(DataLog!$C3418=\"Log value\",DataLog!Y3418,\"\")","v":""},{"$f":"IF(DataLog!$C3418=\"Log value\",DataLog!Z3418,\"\")","v":""},{"$f":"IF(DataLog!$C3418=\"Log value\",DataLog!AA3418,\"\")","v":""},{"$f":"IF(DataLog!$C3418=\"Log value\",DataLog!AB3418,\"\")","v":""},{"$f":"IF(DataLog!$C3418=\"Log value\",DataLog!AC3418,\"\")","v":""},{"$f":"IF(DataLog!$C3418=\"Log value\",DataLog!AD3418,\"\")","v":""},{"$f":"IF(DataLog!$C3418=\"Log value\",DataLog!AE3418,\"\")","v":""},{"$f":"IF(DataLog!$C3418=\"Log value\",DataLog!AF3418,\"\")","v":""},{"$f":"IF(DataLog!$C3418=\"Log value\",DataLog!AG3418,\"\")","v":""},{"$f":"IF(DataLog!$C3418=\"Log value\",DataLog!AH3418,\"\")","v":""},{"$f":"IF(DataLog!$C3418=\"Log value\",DataLog!AI3418,\"\")","v":""},{"$f":"IF(DataLog!$C3418=\"Log value\",DataLog!AJ3418,\"\")","v":""},{"$f":"IF(DataLog!$C3418=\"Log value\",DataLog!AK3418,\"\")","v":""},{"$f":"IF(DataLog!$C3418=\"Log value\",DataLog!AL3418,\"\")","v":""},{"$f":"IF(DataLog!$C3418=\"Log value\",DataLog!AM3418,\"\")","v":""}]
[null,null,null,null,null,null,{"$f":"IF(DataLog!$C3419=\"Log value\",DataLog!D3419&\"_\"&TEXT(DataLog!B3419,\"åååå-mm-dd\"),\"\")","v":""},{"$f":"IF(DataLog!$C3419=\"Log value\",DataLog!E3419,\"\")","v":""},{"$f":"IF(DataLog!$C3419=\"Log value\",DataLog!F3419,\"\")","v":""},{"$f":"IF(DataLog!$C3419=\"Log value\",DataLog!G3419,\"\")","v":""},{"$f":"IF(DataLog!$C3419=\"Log value\",DataLog!H3419,\"\")","v":""},{"$f":"IF(DataLog!$C3419=\"Log value\",DataLog!I3419,\"\")","v":""},{"$f":"IF(DataLog!$C3419=\"Log value\",DataLog!J3419,\"\")","v":""},{"$f":"IF(DataLog!$C3419=\"Log value\",DataLog!K3419,\"\")","v":""},{"$f":"IF(DataLog!$C3419=\"Log value\",DataLog!L3419,\"\")","v":""},{"$f":"IF(DataLog!$C3419=\"Log value\",DataLog!M3419,\"\")","v":""},{"$f":"IF(DataLog!$C3419=\"Log value\",DataLog!N3419,\"\")","v":""},{"$f":"IF(DataLog!$C3419=\"Log value\",DataLog!O3419,\"\")","v":""},{"$f":"IF(DataLog!$C3419=\"Log value\",DataLog!P3419,\"\")","v":""},{"$f":"IF(DataLog!$C3419=\"Log value\",DataLog!Q3419,\"\")","v":""},{"$f":"IF(DataLog!$C3419=\"Log value\",DataLog!R3419,\"\")","v":""},{"$f":"IF(DataLog!$C3419=\"Log value\",DataLog!S3419,\"\")","v":""},{"$f":"IF(DataLog!$C3419=\"Log value\",DataLog!T3419,\"\")","v":""},{"$f":"IF(DataLog!$C3419=\"Log value\",DataLog!U3419,\"\")","v":""},{"$f":"IF(DataLog!$C3419=\"Log value\",DataLog!V3419,\"\")","v":""},{"$f":"IF(DataLog!$C3419=\"Log value\",DataLog!W3419,\"\")","v":""},{"$f":"IF(DataLog!$C3419=\"Log value\",DataLog!X3419,\"\")","v":""},{"$f":"IF(DataLog!$C3419=\"Log value\",DataLog!Y3419,\"\")","v":""},{"$f":"IF(DataLog!$C3419=\"Log value\",DataLog!Z3419,\"\")","v":""},{"$f":"IF(DataLog!$C3419=\"Log value\",DataLog!AA3419,\"\")","v":""},{"$f":"IF(DataLog!$C3419=\"Log value\",DataLog!AB3419,\"\")","v":""},{"$f":"IF(DataLog!$C3419=\"Log value\",DataLog!AC3419,\"\")","v":""},{"$f":"IF(DataLog!$C3419=\"Log value\",DataLog!AD3419,\"\")","v":""},{"$f":"IF(DataLog!$C3419=\"Log value\",DataLog!AE3419,\"\")","v":""},{"$f":"IF(DataLog!$C3419=\"Log value\",DataLog!AF3419,\"\")","v":""},{"$f":"IF(DataLog!$C3419=\"Log value\",DataLog!AG3419,\"\")","v":""},{"$f":"IF(DataLog!$C3419=\"Log value\",DataLog!AH3419,\"\")","v":""},{"$f":"IF(DataLog!$C3419=\"Log value\",DataLog!AI3419,\"\")","v":""},{"$f":"IF(DataLog!$C3419=\"Log value\",DataLog!AJ3419,\"\")","v":""},{"$f":"IF(DataLog!$C3419=\"Log value\",DataLog!AK3419,\"\")","v":""},{"$f":"IF(DataLog!$C3419=\"Log value\",DataLog!AL3419,\"\")","v":""},{"$f":"IF(DataLog!$C3419=\"Log value\",DataLog!AM3419,\"\")","v":""}]
[null,null,null,null,null,null,{"$f":"IF(DataLog!$C3420=\"Log value\",DataLog!D3420&\"_\"&TEXT(DataLog!B3420,\"åååå-mm-dd\"),\"\")","v":""},{"$f":"IF(DataLog!$C3420=\"Log value\",DataLog!E3420,\"\")","v":""},{"$f":"IF(DataLog!$C3420=\"Log value\",DataLog!F3420,\"\")","v":""},{"$f":"IF(DataLog!$C3420=\"Log value\",DataLog!G3420,\"\")","v":""},{"$f":"IF(DataLog!$C3420=\"Log value\",DataLog!H3420,\"\")","v":""},{"$f":"IF(DataLog!$C3420=\"Log value\",DataLog!I3420,\"\")","v":""},{"$f":"IF(DataLog!$C3420=\"Log value\",DataLog!J3420,\"\")","v":""},{"$f":"IF(DataLog!$C3420=\"Log value\",DataLog!K3420,\"\")","v":""},{"$f":"IF(DataLog!$C3420=\"Log value\",DataLog!L3420,\"\")","v":""},{"$f":"IF(DataLog!$C3420=\"Log value\",DataLog!M3420,\"\")","v":""},{"$f":"IF(DataLog!$C3420=\"Log value\",DataLog!N3420,\"\")","v":""},{"$f":"IF(DataLog!$C3420=\"Log value\",DataLog!O3420,\"\")","v":""},{"$f":"IF(DataLog!$C3420=\"Log value\",DataLog!P3420,\"\")","v":""},{"$f":"IF(DataLog!$C3420=\"Log value\",DataLog!Q3420,\"\")","v":""},{"$f":"IF(DataLog!$C3420=\"Log value\",DataLog!R3420,\"\")","v":""},{"$f":"IF(DataLog!$C3420=\"Log value\",DataLog!S3420,\"\")","v":""},{"$f":"IF(DataLog!$C3420=\"Log value\",DataLog!T3420,\"\")","v":""},{"$f":"IF(DataLog!$C3420=\"Log value\",DataLog!U3420,\"\")","v":""},{"$f":"IF(DataLog!$C3420=\"Log value\",DataLog!V3420,\"\")","v":""},{"$f":"IF(DataLog!$C3420=\"Log value\",DataLog!W3420,\"\")","v":""},{"$f":"IF(DataLog!$C3420=\"Log value\",DataLog!X3420,\"\")","v":""},{"$f":"IF(DataLog!$C3420=\"Log value\",DataLog!Y3420,\"\")","v":""},{"$f":"IF(DataLog!$C3420=\"Log value\",DataLog!Z3420,\"\")","v":""},{"$f":"IF(DataLog!$C3420=\"Log value\",DataLog!AA3420,\"\")","v":""},{"$f":"IF(DataLog!$C3420=\"Log value\",DataLog!AB3420,\"\")","v":""},{"$f":"IF(DataLog!$C3420=\"Log value\",DataLog!AC3420,\"\")","v":""},{"$f":"IF(DataLog!$C3420=\"Log value\",DataLog!AD3420,\"\")","v":""},{"$f":"IF(DataLog!$C3420=\"Log value\",DataLog!AE3420,\"\")","v":""},{"$f":"IF(DataLog!$C3420=\"Log value\",DataLog!AF3420,\"\")","v":""},{"$f":"IF(DataLog!$C3420=\"Log value\",DataLog!AG3420,\"\")","v":""},{"$f":"IF(DataLog!$C3420=\"Log value\",DataLog!AH3420,\"\")","v":""},{"$f":"IF(DataLog!$C3420=\"Log value\",DataLog!AI3420,\"\")","v":""},{"$f":"IF(DataLog!$C3420=\"Log value\",DataLog!AJ3420,\"\")","v":""},{"$f":"IF(DataLog!$C3420=\"Log value\",DataLog!AK3420,\"\")","v":""},{"$f":"IF(DataLog!$C3420=\"Log value\",DataLog!AL3420,\"\")","v":""},{"$f":"IF(DataLog!$C3420=\"Log value\",DataLog!AM3420,\"\")","v":""}]
[null,null,null,null,null,null,{"$f":"IF(DataLog!$C3421=\"Log value\",DataLog!D3421&\"_\"&TEXT(DataLog!B3421,\"åååå-mm-dd\"),\"\")","v":""},{"$f":"IF(DataLog!$C3421=\"Log value\",DataLog!E3421,\"\")","v":""},{"$f":"IF(DataLog!$C3421=\"Log value\",DataLog!F3421,\"\")","v":""},{"$f":"IF(DataLog!$C3421=\"Log value\",DataLog!G3421,\"\")","v":""},{"$f":"IF(DataLog!$C3421=\"Log value\",DataLog!H3421,\"\")","v":""},{"$f":"IF(DataLog!$C3421=\"Log value\",DataLog!I3421,\"\")","v":""},{"$f":"IF(DataLog!$C3421=\"Log value\",DataLog!J3421,\"\")","v":""},{"$f":"IF(DataLog!$C3421=\"Log value\",DataLog!K3421,\"\")","v":""},{"$f":"IF(DataLog!$C3421=\"Log value\",DataLog!L3421,\"\")","v":""},{"$f":"IF(DataLog!$C3421=\"Log value\",DataLog!M3421,\"\")","v":""},{"$f":"IF(DataLog!$C3421=\"Log value\",DataLog!N3421,\"\")","v":""},{"$f":"IF(DataLog!$C3421=\"Log value\",DataLog!O3421,\"\")","v":""},{"$f":"IF(DataLog!$C3421=\"Log value\",DataLog!P3421,\"\")","v":""},{"$f":"IF(DataLog!$C3421=\"Log value\",DataLog!Q3421,\"\")","v":""},{"$f":"IF(DataLog!$C3421=\"Log value\",DataLog!R3421,\"\")","v":""},{"$f":"IF(DataLog!$C3421=\"Log value\",DataLog!S3421,\"\")","v":""},{"$f":"IF(DataLog!$C3421=\"Log value\",DataLog!T3421,\"\")","v":""},{"$f":"IF(DataLog!$C3421=\"Log value\",DataLog!U3421,\"\")","v":""},{"$f":"IF(DataLog!$C3421=\"Log value\",DataLog!V3421,\"\")","v":""},{"$f":"IF(DataLog!$C3421=\"Log value\",DataLog!W3421,\"\")","v":""},{"$f":"IF(DataLog!$C3421=\"Log value\",DataLog!X3421,\"\")","v":""},{"$f":"IF(DataLog!$C3421=\"Log value\",DataLog!Y3421,\"\")","v":""},{"$f":"IF(DataLog!$C3421=\"Log value\",DataLog!Z3421,\"\")","v":""},{"$f":"IF(DataLog!$C3421=\"Log value\",DataLog!AA3421,\"\")","v":""},{"$f":"IF(DataLog!$C3421=\"Log value\",DataLog!AB3421,\"\")","v":""},{"$f":"IF(DataLog!$C3421=\"Log value\",DataLog!AC3421,\"\")","v":""},{"$f":"IF(DataLog!$C3421=\"Log value\",DataLog!AD3421,\"\")","v":""},{"$f":"IF(DataLog!$C3421=\"Log value\",DataLog!AE3421,\"\")","v":""},{"$f":"IF(DataLog!$C3421=\"Log value\",DataLog!AF3421,\"\")","v":""},{"$f":"IF(DataLog!$C3421=\"Log value\",DataLog!AG3421,\"\")","v":""},{"$f":"IF(DataLog!$C3421=\"Log value\",DataLog!AH3421,\"\")","v":""},{"$f":"IF(DataLog!$C3421=\"Log value\",DataLog!AI3421,\"\")","v":""},{"$f":"IF(DataLog!$C3421=\"Log value\",DataLog!AJ3421,\"\")","v":""},{"$f":"IF(DataLog!$C3421=\"Log value\",DataLog!AK3421,\"\")","v":""},{"$f":"IF(DataLog!$C3421=\"Log value\",DataLog!AL3421,\"\")","v":""},{"$f":"IF(DataLog!$C3421=\"Log value\",DataLog!AM3421,\"\")","v":""}]
[null,null,null,null,null,null,{"$f":"IF(DataLog!$C3422=\"Log value\",DataLog!D3422&\"_\"&TEXT(DataLog!B3422,\"åååå-mm-dd\"),\"\")","v":""},{"$f":"IF(DataLog!$C3422=\"Log value\",DataLog!E3422,\"\")","v":""},{"$f":"IF(DataLog!$C3422=\"Log value\",DataLog!F3422,\"\")","v":""},{"$f":"IF(DataLog!$C3422=\"Log value\",DataLog!G3422,\"\")","v":""},{"$f":"IF(DataLog!$C3422=\"Log value\",DataLog!H3422,\"\")","v":""},{"$f":"IF(DataLog!$C3422=\"Log value\",DataLog!I3422,\"\")","v":""},{"$f":"IF(DataLog!$C3422=\"Log value\",DataLog!J3422,\"\")","v":""},{"$f":"IF(DataLog!$C3422=\"Log value\",DataLog!K3422,\"\")","v":""},{"$f":"IF(DataLog!$C3422=\"Log value\",DataLog!L3422,\"\")","v":""},{"$f":"IF(DataLog!$C3422=\"Log value\",DataLog!M3422,\"\")","v":""},{"$f":"IF(DataLog!$C3422=\"Log value\",DataLog!N3422,\"\")","v":""},{"$f":"IF(DataLog!$C3422=\"Log value\",DataLog!O3422,\"\")","v":""},{"$f":"IF(DataLog!$C3422=\"Log value\",DataLog!P3422,\"\")","v":""},{"$f":"IF(DataLog!$C3422=\"Log value\",DataLog!Q3422,\"\")","v":""},{"$f":"IF(DataLog!$C3422=\"Log value\",DataLog!R3422,\"\")","v":""},{"$f":"IF(DataLog!$C3422=\"Log value\",DataLog!S3422,\"\")","v":""},{"$f":"IF(DataLog!$C3422=\"Log value\",DataLog!T3422,\"\")","v":""},{"$f":"IF(DataLog!$C3422=\"Log value\",DataLog!U3422,\"\")","v":""},{"$f":"IF(DataLog!$C3422=\"Log value\",DataLog!V3422,\"\")","v":""},{"$f":"IF(DataLog!$C3422=\"Log value\",DataLog!W3422,\"\")","v":""},{"$f":"IF(DataLog!$C3422=\"Log value\",DataLog!X3422,\"\")","v":""},{"$f":"IF(DataLog!$C3422=\"Log value\",DataLog!Y3422,\"\")","v":""},{"$f":"IF(DataLog!$C3422=\"Log value\",DataLog!Z3422,\"\")","v":""},{"$f":"IF(DataLog!$C3422=\"Log value\",DataLog!AA3422,\"\")","v":""},{"$f":"IF(DataLog!$C3422=\"Log value\",DataLog!AB3422,\"\")","v":""},{"$f":"IF(DataLog!$C3422=\"Log value\",DataLog!AC3422,\"\")","v":""},{"$f":"IF(DataLog!$C3422=\"Log value\",DataLog!AD3422,\"\")","v":""},{"$f":"IF(DataLog!$C3422=\"Log value\",DataLog!AE3422,\"\")","v":""},{"$f":"IF(DataLog!$C3422=\"Log value\",DataLog!AF3422,\"\")","v":""},{"$f":"IF(DataLog!$C3422=\"Log value\",DataLog!AG3422,\"\")","v":""},{"$f":"IF(DataLog!$C3422=\"Log value\",DataLog!AH3422,\"\")","v":""},{"$f":"IF(DataLog!$C3422=\"Log value\",DataLog!AI3422,\"\")","v":""},{"$f":"IF(DataLog!$C3422=\"Log value\",DataLog!AJ3422,\"\")","v":""},{"$f":"IF(DataLog!$C3422=\"Log value\",DataLog!AK3422,\"\")","v":""},{"$f":"IF(DataLog!$C3422=\"Log value\",DataLog!AL3422,\"\")","v":""},{"$f":"IF(DataLog!$C3422=\"Log value\",DataLog!AM3422,\"\")","v":""}]
[null,null,null,null,null,null,{"$f":"IF(DataLog!$C3423=\"Log value\",DataLog!D3423&\"_\"&TEXT(DataLog!B3423,\"åååå-mm-dd\"),\"\")","v":""},{"$f":"IF(DataLog!$C3423=\"Log value\",DataLog!E3423,\"\")","v":""},{"$f":"IF(DataLog!$C3423=\"Log value\",DataLog!F3423,\"\")","v":""},{"$f":"IF(DataLog!$C3423=\"Log value\",DataLog!G3423,\"\")","v":""},{"$f":"IF(DataLog!$C3423=\"Log value\",DataLog!H3423,\"\")","v":""},{"$f":"IF(DataLog!$C3423=\"Log value\",DataLog!I3423,\"\")","v":""},{"$f":"IF(DataLog!$C3423=\"Log value\",DataLog!J3423,\"\")","v":""},{"$f":"IF(DataLog!$C3423=\"Log value\",DataLog!K3423,\"\")","v":""},{"$f":"IF(DataLog!$C3423=\"Log value\",DataLog!L3423,\"\")","v":""},{"$f":"IF(DataLog!$C3423=\"Log value\",DataLog!M3423,\"\")","v":""},{"$f":"IF(DataLog!$C3423=\"Log value\",DataLog!N3423,\"\")","v":""},{"$f":"IF(DataLog!$C3423=\"Log value\",DataLog!O3423,\"\")","v":""},{"$f":"IF(DataLog!$C3423=\"Log value\",DataLog!P3423,\"\")","v":""},{"$f":"IF(DataLog!$C3423=\"Log value\",DataLog!Q3423,\"\")","v":""},{"$f":"IF(DataLog!$C3423=\"Log value\",DataLog!R3423,\"\")","v":""},{"$f":"IF(DataLog!$C3423=\"Log value\",DataLog!S3423,\"\")","v":""},{"$f":"IF(DataLog!$C3423=\"Log value\",DataLog!T3423,\"\")","v":""},{"$f":"IF(DataLog!$C3423=\"Log value\",DataLog!U3423,\"\")","v":""},{"$f":"IF(DataLog!$C3423=\"Log value\",DataLog!V3423,\"\")","v":""},{"$f":"IF(DataLog!$C3423=\"Log value\",DataLog!W3423,\"\")","v":""},{"$f":"IF(DataLog!$C3423=\"Log value\",DataLog!X3423,\"\")","v":""},{"$f":"IF(DataLog!$C3423=\"Log value\",DataLog!Y3423,\"\")","v":""},{"$f":"IF(DataLog!$C3423=\"Log value\",DataLog!Z3423,\"\")","v":""},{"$f":"IF(DataLog!$C3423=\"Log value\",DataLog!AA3423,\"\")","v":""},{"$f":"IF(DataLog!$C3423=\"Log value\",DataLog!AB3423,\"\")","v":""},{"$f":"IF(DataLog!$C3423=\"Log value\",DataLog!AC3423,\"\")","v":""},{"$f":"IF(DataLog!$C3423=\"Log value\",DataLog!AD3423,\"\")","v":""},{"$f":"IF(DataLog!$C3423=\"Log value\",DataLog!AE3423,\"\")","v":""},{"$f":"IF(DataLog!$C3423=\"Log value\",DataLog!AF3423,\"\")","v":""},{"$f":"IF(DataLog!$C3423=\"Log value\",DataLog!AG3423,\"\")","v":""},{"$f":"IF(DataLog!$C3423=\"Log value\",DataLog!AH3423,\"\")","v":""},{"$f":"IF(DataLog!$C3423=\"Log value\",DataLog!AI3423,\"\")","v":""},{"$f":"IF(DataLog!$C3423=\"Log value\",DataLog!AJ3423,\"\")","v":""},{"$f":"IF(DataLog!$C3423=\"Log value\",DataLog!AK3423,\"\")","v":""},{"$f":"IF(DataLog!$C3423=\"Log value\",DataLog!AL3423,\"\")","v":""},{"$f":"IF(DataLog!$C3423=\"Log value\",DataLog!AM3423,\"\")","v":""}]
[null,null,null,null,null,null,{"$f":"IF(DataLog!$C3424=\"Log value\",DataLog!D3424&\"_\"&TEXT(DataLog!B3424,\"åååå-mm-dd\"),\"\")","v":""},{"$f":"IF(DataLog!$C3424=\"Log value\",DataLog!E3424,\"\")","v":""},{"$f":"IF(DataLog!$C3424=\"Log value\",DataLog!F3424,\"\")","v":""},{"$f":"IF(DataLog!$C3424=\"Log value\",DataLog!G3424,\"\")","v":""},{"$f":"IF(DataLog!$C3424=\"Log value\",DataLog!H3424,\"\")","v":""},{"$f":"IF(DataLog!$C3424=\"Log value\",DataLog!I3424,\"\")","v":""},{"$f":"IF(DataLog!$C3424=\"Log value\",DataLog!J3424,\"\")","v":""},{"$f":"IF(DataLog!$C3424=\"Log value\",DataLog!K3424,\"\")","v":""},{"$f":"IF(DataLog!$C3424=\"Log value\",DataLog!L3424,\"\")","v":""},{"$f":"IF(DataLog!$C3424=\"Log value\",DataLog!M3424,\"\")","v":""},{"$f":"IF(DataLog!$C3424=\"Log value\",DataLog!N3424,\"\")","v":""},{"$f":"IF(DataLog!$C3424=\"Log value\",DataLog!O3424,\"\")","v":""},{"$f":"IF(DataLog!$C3424=\"Log value\",DataLog!P3424,\"\")","v":""},{"$f":"IF(DataLog!$C3424=\"Log value\",DataLog!Q3424,\"\")","v":""},{"$f":"IF(DataLog!$C3424=\"Log value\",DataLog!R3424,\"\")","v":""},{"$f":"IF(DataLog!$C3424=\"Log value\",DataLog!S3424,\"\")","v":""},{"$f":"IF(DataLog!$C3424=\"Log value\",DataLog!T3424,\"\")","v":""},{"$f":"IF(DataLog!$C3424=\"Log value\",DataLog!U3424,\"\")","v":""},{"$f":"IF(DataLog!$C3424=\"Log value\",DataLog!V3424,\"\")","v":""},{"$f":"IF(DataLog!$C3424=\"Log value\",DataLog!W3424,\"\")","v":""},{"$f":"IF(DataLog!$C3424=\"Log value\",DataLog!X3424,\"\")","v":""},{"$f":"IF(DataLog!$C3424=\"Log value\",DataLog!Y3424,\"\")","v":""},{"$f":"IF(DataLog!$C3424=\"Log value\",DataLog!Z3424,\"\")","v":""},{"$f":"IF(DataLog!$C3424=\"Log value\",DataLog!AA3424,\"\")","v":""},{"$f":"IF(DataLog!$C3424=\"Log value\",DataLog!AB3424,\"\")","v":""},{"$f":"IF(DataLog!$C3424=\"Log value\",DataLog!AC3424,\"\")","v":""},{"$f":"IF(DataLog!$C3424=\"Log value\",DataLog!AD3424,\"\")","v":""},{"$f":"IF(DataLog!$C3424=\"Log value\",DataLog!AE3424,\"\")","v":""},{"$f":"IF(DataLog!$C3424=\"Log value\",DataLog!AF3424,\"\")","v":""},{"$f":"IF(DataLog!$C3424=\"Log value\",DataLog!AG3424,\"\")","v":""},{"$f":"IF(DataLog!$C3424=\"Log value\",DataLog!AH3424,\"\")","v":""},{"$f":"IF(DataLog!$C3424=\"Log value\",DataLog!AI3424,\"\")","v":""},{"$f":"IF(DataLog!$C3424=\"Log value\",DataLog!AJ3424,\"\")","v":""},{"$f":"IF(DataLog!$C3424=\"Log value\",DataLog!AK3424,\"\")","v":""},{"$f":"IF(DataLog!$C3424=\"Log value\",DataLog!AL3424,\"\")","v":""},{"$f":"IF(DataLog!$C3424=\"Log value\",DataLog!AM3424,\"\")","v":""}]
[null,null,null,null,null,null,{"$f":"IF(DataLog!$C3425=\"Log value\",DataLog!D3425&\"_\"&TEXT(DataLog!B3425,\"åååå-mm-dd\"),\"\")","v":""},{"$f":"IF(DataLog!$C3425=\"Log value\",DataLog!E3425,\"\")","v":""},{"$f":"IF(DataLog!$C3425=\"Log value\",DataLog!F3425,\"\")","v":""},{"$f":"IF(DataLog!$C3425=\"Log value\",DataLog!G3425,\"\")","v":""},{"$f":"IF(DataLog!$C3425=\"Log value\",DataLog!H3425,\"\")","v":""},{"$f":"IF(DataLog!$C3425=\"Log value\",DataLog!I3425,\"\")","v":""},{"$f":"IF(DataLog!$C3425=\"Log value\",DataLog!J3425,\"\")","v":""},{"$f":"IF(DataLog!$C3425=\"Log value\",DataLog!K3425,\"\")","v":""},{"$f":"IF(DataLog!$C3425=\"Log value\",DataLog!L3425,\"\")","v":""},{"$f":"IF(DataLog!$C3425=\"Log value\",DataLog!M3425,\"\")","v":""},{"$f":"IF(DataLog!$C3425=\"Log value\",DataLog!N3425,\"\")","v":""},{"$f":"IF(DataLog!$C3425=\"Log value\",DataLog!O3425,\"\")","v":""},{"$f":"IF(DataLog!$C3425=\"Log value\",DataLog!P3425,\"\")","v":""},{"$f":"IF(DataLog!$C3425=\"Log value\",DataLog!Q3425,\"\")","v":""},{"$f":"IF(DataLog!$C3425=\"Log value\",DataLog!R3425,\"\")","v":""},{"$f":"IF(DataLog!$C3425=\"Log value\",DataLog!S3425,\"\")","v":""},{"$f":"IF(DataLog!$C3425=\"Log value\",DataLog!T3425,\"\")","v":""},{"$f":"IF(DataLog!$C3425=\"Log value\",DataLog!U3425,\"\")","v":""},{"$f":"IF(DataLog!$C3425=\"Log value\",DataLog!V3425,\"\")","v":""},{"$f":"IF(DataLog!$C3425=\"Log value\",DataLog!W3425,\"\")","v":""},{"$f":"IF(DataLog!$C3425=\"Log value\",DataLog!X3425,\"\")","v":""},{"$f":"IF(DataLog!$C3425=\"Log value\",DataLog!Y3425,\"\")","v":""},{"$f":"IF(DataLog!$C3425=\"Log value\",DataLog!Z3425,\"\")","v":""},{"$f":"IF(DataLog!$C3425=\"Log value\",DataLog!AA3425,\"\")","v":""},{"$f":"IF(DataLog!$C3425=\"Log value\",DataLog!AB3425,\"\")","v":""},{"$f":"IF(DataLog!$C3425=\"Log value\",DataLog!AC3425,\"\")","v":""},{"$f":"IF(DataLog!$C3425=\"Log value\",DataLog!AD3425,\"\")","v":""},{"$f":"IF(DataLog!$C3425=\"Log value\",DataLog!AE3425,\"\")","v":""},{"$f":"IF(DataLog!$C3425=\"Log value\",DataLog!AF3425,\"\")","v":""},{"$f":"IF(DataLog!$C3425=\"Log value\",DataLog!AG3425,\"\")","v":""},{"$f":"IF(DataLog!$C3425=\"Log value\",DataLog!AH3425,\"\")","v":""},{"$f":"IF(DataLog!$C3425=\"Log value\",DataLog!AI3425,\"\")","v":""},{"$f":"IF(DataLog!$C3425=\"Log value\",DataLog!AJ3425,\"\")","v":""},{"$f":"IF(DataLog!$C3425=\"Log value\",DataLog!AK3425,\"\")","v":""},{"$f":"IF(DataLog!$C3425=\"Log value\",DataLog!AL3425,\"\")","v":""},{"$f":"IF(DataLog!$C3425=\"Log value\",DataLog!AM3425,\"\")","v":""}]
[null,null,null,null,null,null,{"$f":"IF(DataLog!$C3426=\"Log value\",DataLog!D3426&\"_\"&TEXT(DataLog!B3426,\"åååå-mm-dd\"),\"\")","v":""},{"$f":"IF(DataLog!$C3426=\"Log value\",DataLog!E3426,\"\")","v":""},{"$f":"IF(DataLog!$C3426=\"Log value\",DataLog!F3426,\"\")","v":""},{"$f":"IF(DataLog!$C3426=\"Log value\",DataLog!G3426,\"\")","v":""},{"$f":"IF(DataLog!$C3426=\"Log value\",DataLog!H3426,\"\")","v":""},{"$f":"IF(DataLog!$C3426=\"Log value\",DataLog!I3426,\"\")","v":""},{"$f":"IF(DataLog!$C3426=\"Log value\",DataLog!J3426,\"\")","v":""},{"$f":"IF(DataLog!$C3426=\"Log value\",DataLog!K3426,\"\")","v":""},{"$f":"IF(DataLog!$C3426=\"Log value\",DataLog!L3426,\"\")","v":""},{"$f":"IF(DataLog!$C3426=\"Log value\",DataLog!M3426,\"\")","v":""},{"$f":"IF(DataLog!$C3426=\"Log value\",DataLog!N3426,\"\")","v":""},{"$f":"IF(DataLog!$C3426=\"Log value\",DataLog!O3426,\"\")","v":""},{"$f":"IF(DataLog!$C3426=\"Log value\",DataLog!P3426,\"\")","v":""},{"$f":"IF(DataLog!$C3426=\"Log value\",DataLog!Q3426,\"\")","v":""},{"$f":"IF(DataLog!$C3426=\"Log value\",DataLog!R3426,\"\")","v":""},{"$f":"IF(DataLog!$C3426=\"Log value\",DataLog!S3426,\"\")","v":""},{"$f":"IF(DataLog!$C3426=\"Log value\",DataLog!T3426,\"\")","v":""},{"$f":"IF(DataLog!$C3426=\"Log value\",DataLog!U3426,\"\")","v":""},{"$f":"IF(DataLog!$C3426=\"Log value\",DataLog!V3426,\"\")","v":""},{"$f":"IF(DataLog!$C3426=\"Log value\",DataLog!W3426,\"\")","v":""},{"$f":"IF(DataLog!$C3426=\"Log value\",DataLog!X3426,\"\")","v":""},{"$f":"IF(DataLog!$C3426=\"Log value\",DataLog!Y3426,\"\")","v":""},{"$f":"IF(DataLog!$C3426=\"Log value\",DataLog!Z3426,\"\")","v":""},{"$f":"IF(DataLog!$C3426=\"Log value\",DataLog!AA3426,\"\")","v":""},{"$f":"IF(DataLog!$C3426=\"Log value\",DataLog!AB3426,\"\")","v":""},{"$f":"IF(DataLog!$C3426=\"Log value\",DataLog!AC3426,\"\")","v":""},{"$f":"IF(DataLog!$C3426=\"Log value\",DataLog!AD3426,\"\")","v":""},{"$f":"IF(DataLog!$C3426=\"Log value\",DataLog!AE3426,\"\")","v":""},{"$f":"IF(DataLog!$C3426=\"Log value\",DataLog!AF3426,\"\")","v":""},{"$f":"IF(DataLog!$C3426=\"Log value\",DataLog!AG3426,\"\")","v":""},{"$f":"IF(DataLog!$C3426=\"Log value\",DataLog!AH3426,\"\")","v":""},{"$f":"IF(DataLog!$C3426=\"Log value\",DataLog!AI3426,\"\")","v":""},{"$f":"IF(DataLog!$C3426=\"Log value\",DataLog!AJ3426,\"\")","v":""},{"$f":"IF(DataLog!$C3426=\"Log value\",DataLog!AK3426,\"\")","v":""},{"$f":"IF(DataLog!$C3426=\"Log value\",DataLog!AL3426,\"\")","v":""},{"$f":"IF(DataLog!$C3426=\"Log value\",DataLog!AM3426,\"\")","v":""}]
[null,null,null,null,null,null,{"$f":"IF(DataLog!$C3427=\"Log value\",DataLog!D3427&\"_\"&TEXT(DataLog!B3427,\"åååå-mm-dd\"),\"\")","v":""},{"$f":"IF(DataLog!$C3427=\"Log value\",DataLog!E3427,\"\")","v":""},{"$f":"IF(DataLog!$C3427=\"Log value\",DataLog!F3427,\"\")","v":""},{"$f":"IF(DataLog!$C3427=\"Log value\",DataLog!G3427,\"\")","v":""},{"$f":"IF(DataLog!$C3427=\"Log value\",DataLog!H3427,\"\")","v":""},{"$f":"IF(DataLog!$C3427=\"Log value\",DataLog!I3427,\"\")","v":""},{"$f":"IF(DataLog!$C3427=\"Log value\",DataLog!J3427,\"\")","v":""},{"$f":"IF(DataLog!$C3427=\"Log value\",DataLog!K3427,\"\")","v":""},{"$f":"IF(DataLog!$C3427=\"Log value\",DataLog!L3427,\"\")","v":""},{"$f":"IF(DataLog!$C3427=\"Log value\",DataLog!M3427,\"\")","v":""},{"$f":"IF(DataLog!$C3427=\"Log value\",DataLog!N3427,\"\")","v":""},{"$f":"IF(DataLog!$C3427=\"Log value\",DataLog!O3427,\"\")","v":""},{"$f":"IF(DataLog!$C3427=\"Log value\",DataLog!P3427,\"\")","v":""},{"$f":"IF(DataLog!$C3427=\"Log value\",DataLog!Q3427,\"\")","v":""},{"$f":"IF(DataLog!$C3427=\"Log value\",DataLog!R3427,\"\")","v":""},{"$f":"IF(DataLog!$C3427=\"Log value\",DataLog!S3427,\"\")","v":""},{"$f":"IF(DataLog!$C3427=\"Log value\",DataLog!T3427,\"\")","v":""},{"$f":"IF(DataLog!$C3427=\"Log value\",DataLog!U3427,\"\")","v":""},{"$f":"IF(DataLog!$C3427=\"Log value\",DataLog!V3427,\"\")","v":""},{"$f":"IF(DataLog!$C3427=\"Log value\",DataLog!W3427,\"\")","v":""},{"$f":"IF(DataLog!$C3427=\"Log value\",DataLog!X3427,\"\")","v":""},{"$f":"IF(DataLog!$C3427=\"Log value\",DataLog!Y3427,\"\")","v":""},{"$f":"IF(DataLog!$C3427=\"Log value\",DataLog!Z3427,\"\")","v":""},{"$f":"IF(DataLog!$C3427=\"Log value\",DataLog!AA3427,\"\")","v":""},{"$f":"IF(DataLog!$C3427=\"Log value\",DataLog!AB3427,\"\")","v":""},{"$f":"IF(DataLog!$C3427=\"Log value\",DataLog!AC3427,\"\")","v":""},{"$f":"IF(DataLog!$C3427=\"Log value\",DataLog!AD3427,\"\")","v":""},{"$f":"IF(DataLog!$C3427=\"Log value\",DataLog!AE3427,\"\")","v":""},{"$f":"IF(DataLog!$C3427=\"Log value\",DataLog!AF3427,\"\")","v":""},{"$f":"IF(DataLog!$C3427=\"Log value\",DataLog!AG3427,\"\")","v":""},{"$f":"IF(DataLog!$C3427=\"Log value\",DataLog!AH3427,\"\")","v":""},{"$f":"IF(DataLog!$C3427=\"Log value\",DataLog!AI3427,\"\")","v":""},{"$f":"IF(DataLog!$C3427=\"Log value\",DataLog!AJ3427,\"\")","v":""},{"$f":"IF(DataLog!$C3427=\"Log value\",DataLog!AK3427,\"\")","v":""},{"$f":"IF(DataLog!$C3427=\"Log value\",DataLog!AL3427,\"\")","v":""},{"$f":"IF(DataLog!$C3427=\"Log value\",DataLog!AM3427,\"\")","v":""}]
[null,null,null,null,null,null,{"$f":"IF(DataLog!$C3428=\"Log value\",DataLog!D3428&\"_\"&TEXT(DataLog!B3428,\"åååå-mm-dd\"),\"\")","v":""},{"$f":"IF(DataLog!$C3428=\"Log value\",DataLog!E3428,\"\")","v":""},{"$f":"IF(DataLog!$C3428=\"Log value\",DataLog!F3428,\"\")","v":""},{"$f":"IF(DataLog!$C3428=\"Log value\",DataLog!G3428,\"\")","v":""},{"$f":"IF(DataLog!$C3428=\"Log value\",DataLog!H3428,\"\")","v":""},{"$f":"IF(DataLog!$C3428=\"Log value\",DataLog!I3428,\"\")","v":""},{"$f":"IF(DataLog!$C3428=\"Log value\",DataLog!J3428,\"\")","v":""},{"$f":"IF(DataLog!$C3428=\"Log value\",DataLog!K3428,\"\")","v":""},{"$f":"IF(DataLog!$C3428=\"Log value\",DataLog!L3428,\"\")","v":""},{"$f":"IF(DataLog!$C3428=\"Log value\",DataLog!M3428,\"\")","v":""},{"$f":"IF(DataLog!$C3428=\"Log value\",DataLog!N3428,\"\")","v":""},{"$f":"IF(DataLog!$C3428=\"Log value\",DataLog!O3428,\"\")","v":""},{"$f":"IF(DataLog!$C3428=\"Log value\",DataLog!P3428,\"\")","v":""},{"$f":"IF(DataLog!$C3428=\"Log value\",DataLog!Q3428,\"\")","v":""},{"$f":"IF(DataLog!$C3428=\"Log value\",DataLog!R3428,\"\")","v":""},{"$f":"IF(DataLog!$C3428=\"Log value\",DataLog!S3428,\"\")","v":""},{"$f":"IF(DataLog!$C3428=\"Log value\",DataLog!T3428,\"\")","v":""},{"$f":"IF(DataLog!$C3428=\"Log value\",DataLog!U3428,\"\")","v":""},{"$f":"IF(DataLog!$C3428=\"Log value\",DataLog!V3428,\"\")","v":""},{"$f":"IF(DataLog!$C3428=\"Log value\",DataLog!W3428,\"\")","v":""},{"$f":"IF(DataLog!$C3428=\"Log value\",DataLog!X3428,\"\")","v":""},{"$f":"IF(DataLog!$C3428=\"Log value\",DataLog!Y3428,\"\")","v":""},{"$f":"IF(DataLog!$C3428=\"Log value\",DataLog!Z3428,\"\")","v":""},{"$f":"IF(DataLog!$C3428=\"Log value\",DataLog!AA3428,\"\")","v":""},{"$f":"IF(DataLog!$C3428=\"Log value\",DataLog!AB3428,\"\")","v":""},{"$f":"IF(DataLog!$C3428=\"Log value\",DataLog!AC3428,\"\")","v":""},{"$f":"IF(DataLog!$C3428=\"Log value\",DataLog!AD3428,\"\")","v":""},{"$f":"IF(DataLog!$C3428=\"Log value\",DataLog!AE3428,\"\")","v":""},{"$f":"IF(DataLog!$C3428=\"Log value\",DataLog!AF3428,\"\")","v":""},{"$f":"IF(DataLog!$C3428=\"Log value\",DataLog!AG3428,\"\")","v":""},{"$f":"IF(DataLog!$C3428=\"Log value\",DataLog!AH3428,\"\")","v":""},{"$f":"IF(DataLog!$C3428=\"Log value\",DataLog!AI3428,\"\")","v":""},{"$f":"IF(DataLog!$C3428=\"Log value\",DataLog!AJ3428,\"\")","v":""},{"$f":"IF(DataLog!$C3428=\"Log value\",DataLog!AK3428,\"\")","v":""},{"$f":"IF(DataLog!$C3428=\"Log value\",DataLog!AL3428,\"\")","v":""},{"$f":"IF(DataLog!$C3428=\"Log value\",DataLog!AM3428,\"\")","v":""}]
[null,null,null,null,null,null,{"$f":"IF(DataLog!$C3429=\"Log value\",DataLog!D3429&\"_\"&TEXT(DataLog!B3429,\"åååå-mm-dd\"),\"\")","v":""},{"$f":"IF(DataLog!$C3429=\"Log value\",DataLog!E3429,\"\")","v":""},{"$f":"IF(DataLog!$C3429=\"Log value\",DataLog!F3429,\"\")","v":""},{"$f":"IF(DataLog!$C3429=\"Log value\",DataLog!G3429,\"\")","v":""},{"$f":"IF(DataLog!$C3429=\"Log value\",DataLog!H3429,\"\")","v":""},{"$f":"IF(DataLog!$C3429=\"Log value\",DataLog!I3429,\"\")","v":""},{"$f":"IF(DataLog!$C3429=\"Log value\",DataLog!J3429,\"\")","v":""},{"$f":"IF(DataLog!$C3429=\"Log value\",DataLog!K3429,\"\")","v":""},{"$f":"IF(DataLog!$C3429=\"Log value\",DataLog!L3429,\"\")","v":""},{"$f":"IF(DataLog!$C3429=\"Log value\",DataLog!M3429,\"\")","v":""},{"$f":"IF(DataLog!$C3429=\"Log value\",DataLog!N3429,\"\")","v":""},{"$f":"IF(DataLog!$C3429=\"Log value\",DataLog!O3429,\"\")","v":""},{"$f":"IF(DataLog!$C3429=\"Log value\",DataLog!P3429,\"\")","v":""},{"$f":"IF(DataLog!$C3429=\"Log value\",DataLog!Q3429,\"\")","v":""},{"$f":"IF(DataLog!$C3429=\"Log value\",DataLog!R3429,\"\")","v":""},{"$f":"IF(DataLog!$C3429=\"Log value\",DataLog!S3429,\"\")","v":""},{"$f":"IF(DataLog!$C3429=\"Log value\",DataLog!T3429,\"\")","v":""},{"$f":"IF(DataLog!$C3429=\"Log value\",DataLog!U3429,\"\")","v":""},{"$f":"IF(DataLog!$C3429=\"Log value\",DataLog!V3429,\"\")","v":""},{"$f":"IF(DataLog!$C3429=\"Log value\",DataLog!W3429,\"\")","v":""},{"$f":"IF(DataLog!$C3429=\"Log value\",DataLog!X3429,\"\")","v":""},{"$f":"IF(DataLog!$C3429=\"Log value\",DataLog!Y3429,\"\")","v":""},{"$f":"IF(DataLog!$C3429=\"Log value\",DataLog!Z3429,\"\")","v":""},{"$f":"IF(DataLog!$C3429=\"Log value\",DataLog!AA3429,\"\")","v":""},{"$f":"IF(DataLog!$C3429=\"Log value\",DataLog!AB3429,\"\")","v":""},{"$f":"IF(DataLog!$C3429=\"Log value\",DataLog!AC3429,\"\")","v":""},{"$f":"IF(DataLog!$C3429=\"Log value\",DataLog!AD3429,\"\")","v":""},{"$f":"IF(DataLog!$C3429=\"Log value\",DataLog!AE3429,\"\")","v":""},{"$f":"IF(DataLog!$C3429=\"Log value\",DataLog!AF3429,\"\")","v":""},{"$f":"IF(DataLog!$C3429=\"Log value\",DataLog!AG3429,\"\")","v":""},{"$f":"IF(DataLog!$C3429=\"Log value\",DataLog!AH3429,\"\")","v":""},{"$f":"IF(DataLog!$C3429=\"Log value\",DataLog!AI3429,\"\")","v":""},{"$f":"IF(DataLog!$C3429=\"Log value\",DataLog!AJ3429,\"\")","v":""},{"$f":"IF(DataLog!$C3429=\"Log value\",DataLog!AK3429,\"\")","v":""},{"$f":"IF(DataLog!$C3429=\"Log value\",DataLog!AL3429,\"\")","v":""},{"$f":"IF(DataLog!$C3429=\"Log value\",DataLog!AM3429,\"\")","v":""}]
[null,null,null,null,null,null,{"$f":"IF(DataLog!$C3430=\"Log value\",DataLog!D3430&\"_\"&TEXT(DataLog!B3430,\"åååå-mm-dd\"),\"\")","v":""},{"$f":"IF(DataLog!$C3430=\"Log value\",DataLog!E3430,\"\")","v":""},{"$f":"IF(DataLog!$C3430=\"Log value\",DataLog!F3430,\"\")","v":""},{"$f":"IF(DataLog!$C3430=\"Log value\",DataLog!G3430,\"\")","v":""},{"$f":"IF(DataLog!$C3430=\"Log value\",DataLog!H3430,\"\")","v":""},{"$f":"IF(DataLog!$C3430=\"Log value\",DataLog!I3430,\"\")","v":""},{"$f":"IF(DataLog!$C3430=\"Log value\",DataLog!J3430,\"\")","v":""},{"$f":"IF(DataLog!$C3430=\"Log value\",DataLog!K3430,\"\")","v":""},{"$f":"IF(DataLog!$C3430=\"Log value\",DataLog!L3430,\"\")","v":""},{"$f":"IF(DataLog!$C3430=\"Log value\",DataLog!M3430,\"\")","v":""},{"$f":"IF(DataLog!$C3430=\"Log value\",DataLog!N3430,\"\")","v":""},{"$f":"IF(DataLog!$C3430=\"Log value\",DataLog!O3430,\"\")","v":""},{"$f":"IF(DataLog!$C3430=\"Log value\",DataLog!P3430,\"\")","v":""},{"$f":"IF(DataLog!$C3430=\"Log value\",DataLog!Q3430,\"\")","v":""},{"$f":"IF(DataLog!$C3430=\"Log value\",DataLog!R3430,\"\")","v":""},{"$f":"IF(DataLog!$C3430=\"Log value\",DataLog!S3430,\"\")","v":""},{"$f":"IF(DataLog!$C3430=\"Log value\",DataLog!T3430,\"\")","v":""},{"$f":"IF(DataLog!$C3430=\"Log value\",DataLog!U3430,\"\")","v":""},{"$f":"IF(DataLog!$C3430=\"Log value\",DataLog!V3430,\"\")","v":""},{"$f":"IF(DataLog!$C3430=\"Log value\",DataLog!W3430,\"\")","v":""},{"$f":"IF(DataLog!$C3430=\"Log value\",DataLog!X3430,\"\")","v":""},{"$f":"IF(DataLog!$C3430=\"Log value\",DataLog!Y3430,\"\")","v":""},{"$f":"IF(DataLog!$C3430=\"Log value\",DataLog!Z3430,\"\")","v":""},{"$f":"IF(DataLog!$C3430=\"Log value\",DataLog!AA3430,\"\")","v":""},{"$f":"IF(DataLog!$C3430=\"Log value\",DataLog!AB3430,\"\")","v":""},{"$f":"IF(DataLog!$C3430=\"Log value\",DataLog!AC3430,\"\")","v":""},{"$f":"IF(DataLog!$C3430=\"Log value\",DataLog!AD3430,\"\")","v":""},{"$f":"IF(DataLog!$C3430=\"Log value\",DataLog!AE3430,\"\")","v":""},{"$f":"IF(DataLog!$C3430=\"Log value\",DataLog!AF3430,\"\")","v":""},{"$f":"IF(DataLog!$C3430=\"Log value\",DataLog!AG3430,\"\")","v":""},{"$f":"IF(DataLog!$C3430=\"Log value\",DataLog!AH3430,\"\")","v":""},{"$f":"IF(DataLog!$C3430=\"Log value\",DataLog!AI3430,\"\")","v":""},{"$f":"IF(DataLog!$C3430=\"Log value\",DataLog!AJ3430,\"\")","v":""},{"$f":"IF(DataLog!$C3430=\"Log value\",DataLog!AK3430,\"\")","v":""},{"$f":"IF(DataLog!$C3430=\"Log value\",DataLog!AL3430,\"\")","v":""},{"$f":"IF(DataLog!$C3430=\"Log value\",DataLog!AM3430,\"\")","v":""}]
[null,null,null,null,null,null,{"$f":"IF(DataLog!$C3431=\"Log value\",DataLog!D3431&\"_\"&TEXT(DataLog!B3431,\"åååå-mm-dd\"),\"\")","v":""},{"$f":"IF(DataLog!$C3431=\"Log value\",DataLog!E3431,\"\")","v":""},{"$f":"IF(DataLog!$C3431=\"Log value\",DataLog!F3431,\"\")","v":""},{"$f":"IF(DataLog!$C3431=\"Log value\",DataLog!G3431,\"\")","v":""},{"$f":"IF(DataLog!$C3431=\"Log value\",DataLog!H3431,\"\")","v":""},{"$f":"IF(DataLog!$C3431=\"Log value\",DataLog!I3431,\"\")","v":""},{"$f":"IF(DataLog!$C3431=\"Log value\",DataLog!J3431,\"\")","v":""},{"$f":"IF(DataLog!$C3431=\"Log value\",DataLog!K3431,\"\")","v":""},{"$f":"IF(DataLog!$C3431=\"Log value\",DataLog!L3431,\"\")","v":""},{"$f":"IF(DataLog!$C3431=\"Log value\",DataLog!M3431,\"\")","v":""},{"$f":"IF(DataLog!$C3431=\"Log value\",DataLog!N3431,\"\")","v":""},{"$f":"IF(DataLog!$C3431=\"Log value\",DataLog!O3431,\"\")","v":""},{"$f":"IF(DataLog!$C3431=\"Log value\",DataLog!P3431,\"\")","v":""},{"$f":"IF(DataLog!$C3431=\"Log value\",DataLog!Q3431,\"\")","v":""},{"$f":"IF(DataLog!$C3431=\"Log value\",DataLog!R3431,\"\")","v":""},{"$f":"IF(DataLog!$C3431=\"Log value\",DataLog!S3431,\"\")","v":""},{"$f":"IF(DataLog!$C3431=\"Log value\",DataLog!T3431,\"\")","v":""},{"$f":"IF(DataLog!$C3431=\"Log value\",DataLog!U3431,\"\")","v":""},{"$f":"IF(DataLog!$C3431=\"Log value\",DataLog!V3431,\"\")","v":""},{"$f":"IF(DataLog!$C3431=\"Log value\",DataLog!W3431,\"\")","v":""},{"$f":"IF(DataLog!$C3431=\"Log value\",DataLog!X3431,\"\")","v":""},{"$f":"IF(DataLog!$C3431=\"Log value\",DataLog!Y3431,\"\")","v":""},{"$f":"IF(DataLog!$C3431=\"Log value\",DataLog!Z3431,\"\")","v":""},{"$f":"IF(DataLog!$C3431=\"Log value\",DataLog!AA3431,\"\")","v":""},{"$f":"IF(DataLog!$C3431=\"Log value\",DataLog!AB3431,\"\")","v":""},{"$f":"IF(DataLog!$C3431=\"Log value\",DataLog!AC3431,\"\")","v":""},{"$f":"IF(DataLog!$C3431=\"Log value\",DataLog!AD3431,\"\")","v":""},{"$f":"IF(DataLog!$C3431=\"Log value\",DataLog!AE3431,\"\")","v":""},{"$f":"IF(DataLog!$C3431=\"Log value\",DataLog!AF3431,\"\")","v":""},{"$f":"IF(DataLog!$C3431=\"Log value\",DataLog!AG3431,\"\")","v":""},{"$f":"IF(DataLog!$C3431=\"Log value\",DataLog!AH3431,\"\")","v":""},{"$f":"IF(DataLog!$C3431=\"Log value\",DataLog!AI3431,\"\")","v":""},{"$f":"IF(DataLog!$C3431=\"Log value\",DataLog!AJ3431,\"\")","v":""},{"$f":"IF(DataLog!$C3431=\"Log value\",DataLog!AK3431,\"\")","v":""},{"$f":"IF(DataLog!$C3431=\"Log value\",DataLog!AL3431,\"\")","v":""},{"$f":"IF(DataLog!$C3431=\"Log value\",DataLog!AM3431,\"\")","v":""}]
[null,null,null,null,null,null,{"$f":"IF(DataLog!$C3432=\"Log value\",DataLog!D3432&\"_\"&TEXT(DataLog!B3432,\"åååå-mm-dd\"),\"\")","v":""},{"$f":"IF(DataLog!$C3432=\"Log value\",DataLog!E3432,\"\")","v":""},{"$f":"IF(DataLog!$C3432=\"Log value\",DataLog!F3432,\"\")","v":""},{"$f":"IF(DataLog!$C3432=\"Log value\",DataLog!G3432,\"\")","v":""},{"$f":"IF(DataLog!$C3432=\"Log value\",DataLog!H3432,\"\")","v":""},{"$f":"IF(DataLog!$C3432=\"Log value\",DataLog!I3432,\"\")","v":""},{"$f":"IF(DataLog!$C3432=\"Log value\",DataLog!J3432,\"\")","v":""},{"$f":"IF(DataLog!$C3432=\"Log value\",DataLog!K3432,\"\")","v":""},{"$f":"IF(DataLog!$C3432=\"Log value\",DataLog!L3432,\"\")","v":""},{"$f":"IF(DataLog!$C3432=\"Log value\",DataLog!M3432,\"\")","v":""},{"$f":"IF(DataLog!$C3432=\"Log value\",DataLog!N3432,\"\")","v":""},{"$f":"IF(DataLog!$C3432=\"Log value\",DataLog!O3432,\"\")","v":""},{"$f":"IF(DataLog!$C3432=\"Log value\",DataLog!P3432,\"\")","v":""},{"$f":"IF(DataLog!$C3432=\"Log value\",DataLog!Q3432,\"\")","v":""},{"$f":"IF(DataLog!$C3432=\"Log value\",DataLog!R3432,\"\")","v":""},{"$f":"IF(DataLog!$C3432=\"Log value\",DataLog!S3432,\"\")","v":""},{"$f":"IF(DataLog!$C3432=\"Log value\",DataLog!T3432,\"\")","v":""},{"$f":"IF(DataLog!$C3432=\"Log value\",DataLog!U3432,\"\")","v":""},{"$f":"IF(DataLog!$C3432=\"Log value\",DataLog!V3432,\"\")","v":""},{"$f":"IF(DataLog!$C3432=\"Log value\",DataLog!W3432,\"\")","v":""},{"$f":"IF(DataLog!$C3432=\"Log value\",DataLog!X3432,\"\")","v":""},{"$f":"IF(DataLog!$C3432=\"Log value\",DataLog!Y3432,\"\")","v":""},{"$f":"IF(DataLog!$C3432=\"Log value\",DataLog!Z3432,\"\")","v":""},{"$f":"IF(DataLog!$C3432=\"Log value\",DataLog!AA3432,\"\")","v":""},{"$f":"IF(DataLog!$C3432=\"Log value\",DataLog!AB3432,\"\")","v":""},{"$f":"IF(DataLog!$C3432=\"Log value\",DataLog!AC3432,\"\")","v":""},{"$f":"IF(DataLog!$C3432=\"Log value\",DataLog!AD3432,\"\")","v":""},{"$f":"IF(DataLog!$C3432=\"Log value\",DataLog!AE3432,\"\")","v":""},{"$f":"IF(DataLog!$C3432=\"Log value\",DataLog!AF3432,\"\")","v":""},{"$f":"IF(DataLog!$C3432=\"Log value\",DataLog!AG3432,\"\")","v":""},{"$f":"IF(DataLog!$C3432=\"Log value\",DataLog!AH3432,\"\")","v":""},{"$f":"IF(DataLog!$C3432=\"Log value\",DataLog!AI3432,\"\")","v":""},{"$f":"IF(DataLog!$C3432=\"Log value\",DataLog!AJ3432,\"\")","v":""},{"$f":"IF(DataLog!$C3432=\"Log value\",DataLog!AK3432,\"\")","v":""},{"$f":"IF(DataLog!$C3432=\"Log value\",DataLog!AL3432,\"\")","v":""},{"$f":"IF(DataLog!$C3432=\"Log value\",DataLog!AM3432,\"\")","v":""}]
[null,null,null,null,null,null,{"$f":"IF(DataLog!$C3433=\"Log value\",DataLog!D3433&\"_\"&TEXT(DataLog!B3433,\"åååå-mm-dd\"),\"\")","v":""},{"$f":"IF(DataLog!$C3433=\"Log value\",DataLog!E3433,\"\")","v":""},{"$f":"IF(DataLog!$C3433=\"Log value\",DataLog!F3433,\"\")","v":""},{"$f":"IF(DataLog!$C3433=\"Log value\",DataLog!G3433,\"\")","v":""},{"$f":"IF(DataLog!$C3433=\"Log value\",DataLog!H3433,\"\")","v":""},{"$f":"IF(DataLog!$C3433=\"Log value\",DataLog!I3433,\"\")","v":""},{"$f":"IF(DataLog!$C3433=\"Log value\",DataLog!J3433,\"\")","v":""},{"$f":"IF(DataLog!$C3433=\"Log value\",DataLog!K3433,\"\")","v":""},{"$f":"IF(DataLog!$C3433=\"Log value\",DataLog!L3433,\"\")","v":""},{"$f":"IF(DataLog!$C3433=\"Log value\",DataLog!M3433,\"\")","v":""},{"$f":"IF(DataLog!$C3433=\"Log value\",DataLog!N3433,\"\")","v":""},{"$f":"IF(DataLog!$C3433=\"Log value\",DataLog!O3433,\"\")","v":""},{"$f":"IF(DataLog!$C3433=\"Log value\",DataLog!P3433,\"\")","v":""},{"$f":"IF(DataLog!$C3433=\"Log value\",DataLog!Q3433,\"\")","v":""},{"$f":"IF(DataLog!$C3433=\"Log value\",DataLog!R3433,\"\")","v":""},{"$f":"IF(DataLog!$C3433=\"Log value\",DataLog!S3433,\"\")","v":""},{"$f":"IF(DataLog!$C3433=\"Log value\",DataLog!T3433,\"\")","v":""},{"$f":"IF(DataLog!$C3433=\"Log value\",DataLog!U3433,\"\")","v":""},{"$f":"IF(DataLog!$C3433=\"Log value\",DataLog!V3433,\"\")","v":""},{"$f":"IF(DataLog!$C3433=\"Log value\",DataLog!W3433,\"\")","v":""},{"$f":"IF(DataLog!$C3433=\"Log value\",DataLog!X3433,\"\")","v":""},{"$f":"IF(DataLog!$C3433=\"Log value\",DataLog!Y3433,\"\")","v":""},{"$f":"IF(DataLog!$C3433=\"Log value\",DataLog!Z3433,\"\")","v":""},{"$f":"IF(DataLog!$C3433=\"Log value\",DataLog!AA3433,\"\")","v":""},{"$f":"IF(DataLog!$C3433=\"Log value\",DataLog!AB3433,\"\")","v":""},{"$f":"IF(DataLog!$C3433=\"Log value\",DataLog!AC3433,\"\")","v":""},{"$f":"IF(DataLog!$C3433=\"Log value\",DataLog!AD3433,\"\")","v":""},{"$f":"IF(DataLog!$C3433=\"Log value\",DataLog!AE3433,\"\")","v":""},{"$f":"IF(DataLog!$C3433=\"Log value\",DataLog!AF3433,\"\")","v":""},{"$f":"IF(DataLog!$C3433=\"Log value\",DataLog!AG3433,\"\")","v":""},{"$f":"IF(DataLog!$C3433=\"Log value\",DataLog!AH3433,\"\")","v":""},{"$f":"IF(DataLog!$C3433=\"Log value\",DataLog!AI3433,\"\")","v":""},{"$f":"IF(DataLog!$C3433=\"Log value\",DataLog!AJ3433,\"\")","v":""},{"$f":"IF(DataLog!$C3433=\"Log value\",DataLog!AK3433,\"\")","v":""},{"$f":"IF(DataLog!$C3433=\"Log value\",DataLog!AL3433,\"\")","v":""},{"$f":"IF(DataLog!$C3433=\"Log value\",DataLog!AM3433,\"\")","v":""}]
[null,null,null,null,null,null,{"$f":"IF(DataLog!$C3434=\"Log value\",DataLog!D3434&\"_\"&TEXT(DataLog!B3434,\"åååå-mm-dd\"),\"\")","v":""},{"$f":"IF(DataLog!$C3434=\"Log value\",DataLog!E3434,\"\")","v":""},{"$f":"IF(DataLog!$C3434=\"Log value\",DataLog!F3434,\"\")","v":""},{"$f":"IF(DataLog!$C3434=\"Log value\",DataLog!G3434,\"\")","v":""},{"$f":"IF(DataLog!$C3434=\"Log value\",DataLog!H3434,\"\")","v":""},{"$f":"IF(DataLog!$C3434=\"Log value\",DataLog!I3434,\"\")","v":""},{"$f":"IF(DataLog!$C3434=\"Log value\",DataLog!J3434,\"\")","v":""},{"$f":"IF(DataLog!$C3434=\"Log value\",DataLog!K3434,\"\")","v":""},{"$f":"IF(DataLog!$C3434=\"Log value\",DataLog!L3434,\"\")","v":""},{"$f":"IF(DataLog!$C3434=\"Log value\",DataLog!M3434,\"\")","v":""},{"$f":"IF(DataLog!$C3434=\"Log value\",DataLog!N3434,\"\")","v":""},{"$f":"IF(DataLog!$C3434=\"Log value\",DataLog!O3434,\"\")","v":""},{"$f":"IF(DataLog!$C3434=\"Log value\",DataLog!P3434,\"\")","v":""},{"$f":"IF(DataLog!$C3434=\"Log value\",DataLog!Q3434,\"\")","v":""},{"$f":"IF(DataLog!$C3434=\"Log value\",DataLog!R3434,\"\")","v":""},{"$f":"IF(DataLog!$C3434=\"Log value\",DataLog!S3434,\"\")","v":""},{"$f":"IF(DataLog!$C3434=\"Log value\",DataLog!T3434,\"\")","v":""},{"$f":"IF(DataLog!$C3434=\"Log value\",DataLog!U3434,\"\")","v":""},{"$f":"IF(DataLog!$C3434=\"Log value\",DataLog!V3434,\"\")","v":""},{"$f":"IF(DataLog!$C3434=\"Log value\",DataLog!W3434,\"\")","v":""},{"$f":"IF(DataLog!$C3434=\"Log value\",DataLog!X3434,\"\")","v":""},{"$f":"IF(DataLog!$C3434=\"Log value\",DataLog!Y3434,\"\")","v":""},{"$f":"IF(DataLog!$C3434=\"Log value\",DataLog!Z3434,\"\")","v":""},{"$f":"IF(DataLog!$C3434=\"Log value\",DataLog!AA3434,\"\")","v":""},{"$f":"IF(DataLog!$C3434=\"Log value\",DataLog!AB3434,\"\")","v":""},{"$f":"IF(DataLog!$C3434=\"Log value\",DataLog!AC3434,\"\")","v":""},{"$f":"IF(DataLog!$C3434=\"Log value\",DataLog!AD3434,\"\")","v":""},{"$f":"IF(DataLog!$C3434=\"Log value\",DataLog!AE3434,\"\")","v":""},{"$f":"IF(DataLog!$C3434=\"Log value\",DataLog!AF3434,\"\")","v":""},{"$f":"IF(DataLog!$C3434=\"Log value\",DataLog!AG3434,\"\")","v":""},{"$f":"IF(DataLog!$C3434=\"Log value\",DataLog!AH3434,\"\")","v":""},{"$f":"IF(DataLog!$C3434=\"Log value\",DataLog!AI3434,\"\")","v":""},{"$f":"IF(DataLog!$C3434=\"Log value\",DataLog!AJ3434,\"\")","v":""},{"$f":"IF(DataLog!$C3434=\"Log value\",DataLog!AK3434,\"\")","v":""},{"$f":"IF(DataLog!$C3434=\"Log value\",DataLog!AL3434,\"\")","v":""},{"$f":"IF(DataLog!$C3434=\"Log value\",DataLog!AM3434,\"\")","v":""}]
[null,null,null,null,null,null,{"$f":"IF(DataLog!$C3435=\"Log value\",DataLog!D3435&\"_\"&TEXT(DataLog!B3435,\"åååå-mm-dd\"),\"\")","v":""},{"$f":"IF(DataLog!$C3435=\"Log value\",DataLog!E3435,\"\")","v":""},{"$f":"IF(DataLog!$C3435=\"Log value\",DataLog!F3435,\"\")","v":""},{"$f":"IF(DataLog!$C3435=\"Log value\",DataLog!G3435,\"\")","v":""},{"$f":"IF(DataLog!$C3435=\"Log value\",DataLog!H3435,\"\")","v":""},{"$f":"IF(DataLog!$C3435=\"Log value\",DataLog!I3435,\"\")","v":""},{"$f":"IF(DataLog!$C3435=\"Log value\",DataLog!J3435,\"\")","v":""},{"$f":"IF(DataLog!$C3435=\"Log value\",DataLog!K3435,\"\")","v":""},{"$f":"IF(DataLog!$C3435=\"Log value\",DataLog!L3435,\"\")","v":""},{"$f":"IF(DataLog!$C3435=\"Log value\",DataLog!M3435,\"\")","v":""},{"$f":"IF(DataLog!$C3435=\"Log value\",DataLog!N3435,\"\")","v":""},{"$f":"IF(DataLog!$C3435=\"Log value\",DataLog!O3435,\"\")","v":""},{"$f":"IF(DataLog!$C3435=\"Log value\",DataLog!P3435,\"\")","v":""},{"$f":"IF(DataLog!$C3435=\"Log value\",DataLog!Q3435,\"\")","v":""},{"$f":"IF(DataLog!$C3435=\"Log value\",DataLog!R3435,\"\")","v":""},{"$f":"IF(DataLog!$C3435=\"Log value\",DataLog!S3435,\"\")","v":""},{"$f":"IF(DataLog!$C3435=\"Log value\",DataLog!T3435,\"\")","v":""},{"$f":"IF(DataLog!$C3435=\"Log value\",DataLog!U3435,\"\")","v":""},{"$f":"IF(DataLog!$C3435=\"Log value\",DataLog!V3435,\"\")","v":""},{"$f":"IF(DataLog!$C3435=\"Log value\",DataLog!W3435,\"\")","v":""},{"$f":"IF(DataLog!$C3435=\"Log value\",DataLog!X3435,\"\")","v":""},{"$f":"IF(DataLog!$C3435=\"Log value\",DataLog!Y3435,\"\")","v":""},{"$f":"IF(DataLog!$C3435=\"Log value\",DataLog!Z3435,\"\")","v":""},{"$f":"IF(DataLog!$C3435=\"Log value\",DataLog!AA3435,\"\")","v":""},{"$f":"IF(DataLog!$C3435=\"Log value\",DataLog!AB3435,\"\")","v":""},{"$f":"IF(DataLog!$C3435=\"Log value\",DataLog!AC3435,\"\")","v":""},{"$f":"IF(DataLog!$C3435=\"Log value\",DataLog!AD3435,\"\")","v":""},{"$f":"IF(DataLog!$C3435=\"Log value\",DataLog!AE3435,\"\")","v":""},{"$f":"IF(DataLog!$C3435=\"Log value\",DataLog!AF3435,\"\")","v":""},{"$f":"IF(DataLog!$C3435=\"Log value\",DataLog!AG3435,\"\")","v":""},{"$f":"IF(DataLog!$C3435=\"Log value\",DataLog!AH3435,\"\")","v":""},{"$f":"IF(DataLog!$C3435=\"Log value\",DataLog!AI3435,\"\")","v":""},{"$f":"IF(DataLog!$C3435=\"Log value\",DataLog!AJ3435,\"\")","v":""},{"$f":"IF(DataLog!$C3435=\"Log value\",DataLog!AK3435,\"\")","v":""},{"$f":"IF(DataLog!$C3435=\"Log value\",DataLog!AL3435,\"\")","v":""},{"$f":"IF(DataLog!$C3435=\"Log value\",DataLog!AM3435,\"\")","v":""}]
[null,null,null,null,null,null,{"$f":"IF(DataLog!$C3436=\"Log value\",DataLog!D3436&\"_\"&TEXT(DataLog!B3436,\"åååå-mm-dd\"),\"\")","v":""},{"$f":"IF(DataLog!$C3436=\"Log value\",DataLog!E3436,\"\")","v":""},{"$f":"IF(DataLog!$C3436=\"Log value\",DataLog!F3436,\"\")","v":""},{"$f":"IF(DataLog!$C3436=\"Log value\",DataLog!G3436,\"\")","v":""},{"$f":"IF(DataLog!$C3436=\"Log value\",DataLog!H3436,\"\")","v":""},{"$f":"IF(DataLog!$C3436=\"Log value\",DataLog!I3436,\"\")","v":""},{"$f":"IF(DataLog!$C3436=\"Log value\",DataLog!J3436,\"\")","v":""},{"$f":"IF(DataLog!$C3436=\"Log value\",DataLog!K3436,\"\")","v":""},{"$f":"IF(DataLog!$C3436=\"Log value\",DataLog!L3436,\"\")","v":""},{"$f":"IF(DataLog!$C3436=\"Log value\",DataLog!M3436,\"\")","v":""},{"$f":"IF(DataLog!$C3436=\"Log value\",DataLog!N3436,\"\")","v":""},{"$f":"IF(DataLog!$C3436=\"Log value\",DataLog!O3436,\"\")","v":""},{"$f":"IF(DataLog!$C3436=\"Log value\",DataLog!P3436,\"\")","v":""},{"$f":"IF(DataLog!$C3436=\"Log value\",DataLog!Q3436,\"\")","v":""},{"$f":"IF(DataLog!$C3436=\"Log value\",DataLog!R3436,\"\")","v":""},{"$f":"IF(DataLog!$C3436=\"Log value\",DataLog!S3436,\"\")","v":""},{"$f":"IF(DataLog!$C3436=\"Log value\",DataLog!T3436,\"\")","v":""},{"$f":"IF(DataLog!$C3436=\"Log value\",DataLog!U3436,\"\")","v":""},{"$f":"IF(DataLog!$C3436=\"Log value\",DataLog!V3436,\"\")","v":""},{"$f":"IF(DataLog!$C3436=\"Log value\",DataLog!W3436,\"\")","v":""},{"$f":"IF(DataLog!$C3436=\"Log value\",DataLog!X3436,\"\")","v":""},{"$f":"IF(DataLog!$C3436=\"Log value\",DataLog!Y3436,\"\")","v":""},{"$f":"IF(DataLog!$C3436=\"Log value\",DataLog!Z3436,\"\")","v":""},{"$f":"IF(DataLog!$C3436=\"Log value\",DataLog!AA3436,\"\")","v":""},{"$f":"IF(DataLog!$C3436=\"Log value\",DataLog!AB3436,\"\")","v":""},{"$f":"IF(DataLog!$C3436=\"Log value\",DataLog!AC3436,\"\")","v":""},{"$f":"IF(DataLog!$C3436=\"Log value\",DataLog!AD3436,\"\")","v":""},{"$f":"IF(DataLog!$C3436=\"Log value\",DataLog!AE3436,\"\")","v":""},{"$f":"IF(DataLog!$C3436=\"Log value\",DataLog!AF3436,\"\")","v":""},{"$f":"IF(DataLog!$C3436=\"Log value\",DataLog!AG3436,\"\")","v":""},{"$f":"IF(DataLog!$C3436=\"Log value\",DataLog!AH3436,\"\")","v":""},{"$f":"IF(DataLog!$C3436=\"Log value\",DataLog!AI3436,\"\")","v":""},{"$f":"IF(DataLog!$C3436=\"Log value\",DataLog!AJ3436,\"\")","v":""},{"$f":"IF(DataLog!$C3436=\"Log value\",DataLog!AK3436,\"\")","v":""},{"$f":"IF(DataLog!$C3436=\"Log value\",DataLog!AL3436,\"\")","v":""},{"$f":"IF(DataLog!$C3436=\"Log value\",DataLog!AM3436,\"\")","v":""}]
[null,null,null,null,null,null,{"$f":"IF(DataLog!$C3437=\"Log value\",DataLog!D3437&\"_\"&TEXT(DataLog!B3437,\"åååå-mm-dd\"),\"\")","v":""},{"$f":"IF(DataLog!$C3437=\"Log value\",DataLog!E3437,\"\")","v":""},{"$f":"IF(DataLog!$C3437=\"Log value\",DataLog!F3437,\"\")","v":""},{"$f":"IF(DataLog!$C3437=\"Log value\",DataLog!G3437,\"\")","v":""},{"$f":"IF(DataLog!$C3437=\"Log value\",DataLog!H3437,\"\")","v":""},{"$f":"IF(DataLog!$C3437=\"Log value\",DataLog!I3437,\"\")","v":""},{"$f":"IF(DataLog!$C3437=\"Log value\",DataLog!J3437,\"\")","v":""},{"$f":"IF(DataLog!$C3437=\"Log value\",DataLog!K3437,\"\")","v":""},{"$f":"IF(DataLog!$C3437=\"Log value\",DataLog!L3437,\"\")","v":""},{"$f":"IF(DataLog!$C3437=\"Log value\",DataLog!M3437,\"\")","v":""},{"$f":"IF(DataLog!$C3437=\"Log value\",DataLog!N3437,\"\")","v":""},{"$f":"IF(DataLog!$C3437=\"Log value\",DataLog!O3437,\"\")","v":""},{"$f":"IF(DataLog!$C3437=\"Log value\",DataLog!P3437,\"\")","v":""},{"$f":"IF(DataLog!$C3437=\"Log value\",DataLog!Q3437,\"\")","v":""},{"$f":"IF(DataLog!$C3437=\"Log value\",DataLog!R3437,\"\")","v":""},{"$f":"IF(DataLog!$C3437=\"Log value\",DataLog!S3437,\"\")","v":""},{"$f":"IF(DataLog!$C3437=\"Log value\",DataLog!T3437,\"\")","v":""},{"$f":"IF(DataLog!$C3437=\"Log value\",DataLog!U3437,\"\")","v":""},{"$f":"IF(DataLog!$C3437=\"Log value\",DataLog!V3437,\"\")","v":""},{"$f":"IF(DataLog!$C3437=\"Log value\",DataLog!W3437,\"\")","v":""},{"$f":"IF(DataLog!$C3437=\"Log value\",DataLog!X3437,\"\")","v":""},{"$f":"IF(DataLog!$C3437=\"Log value\",DataLog!Y3437,\"\")","v":""},{"$f":"IF(DataLog!$C3437=\"Log value\",DataLog!Z3437,\"\")","v":""},{"$f":"IF(DataLog!$C3437=\"Log value\",DataLog!AA3437,\"\")","v":""},{"$f":"IF(DataLog!$C3437=\"Log value\",DataLog!AB3437,\"\")","v":""},{"$f":"IF(DataLog!$C3437=\"Log value\",DataLog!AC3437,\"\")","v":""},{"$f":"IF(DataLog!$C3437=\"Log value\",DataLog!AD3437,\"\")","v":""},{"$f":"IF(DataLog!$C3437=\"Log value\",DataLog!AE3437,\"\")","v":""},{"$f":"IF(DataLog!$C3437=\"Log value\",DataLog!AF3437,\"\")","v":""},{"$f":"IF(DataLog!$C3437=\"Log value\",DataLog!AG3437,\"\")","v":""},{"$f":"IF(DataLog!$C3437=\"Log value\",DataLog!AH3437,\"\")","v":""},{"$f":"IF(DataLog!$C3437=\"Log value\",DataLog!AI3437,\"\")","v":""},{"$f":"IF(DataLog!$C3437=\"Log value\",DataLog!AJ3437,\"\")","v":""},{"$f":"IF(DataLog!$C3437=\"Log value\",DataLog!AK3437,\"\")","v":""},{"$f":"IF(DataLog!$C3437=\"Log value\",DataLog!AL3437,\"\")","v":""},{"$f":"IF(DataLog!$C3437=\"Log value\",DataLog!AM3437,\"\")","v":""}]
[null,null,null,null,null,null,{"$f":"IF(DataLog!$C3438=\"Log value\",DataLog!D3438&\"_\"&TEXT(DataLog!B3438,\"åååå-mm-dd\"),\"\")","v":""},{"$f":"IF(DataLog!$C3438=\"Log value\",DataLog!E3438,\"\")","v":""},{"$f":"IF(DataLog!$C3438=\"Log value\",DataLog!F3438,\"\")","v":""},{"$f":"IF(DataLog!$C3438=\"Log value\",DataLog!G3438,\"\")","v":""},{"$f":"IF(DataLog!$C3438=\"Log value\",DataLog!H3438,\"\")","v":""},{"$f":"IF(DataLog!$C3438=\"Log value\",DataLog!I3438,\"\")","v":""},{"$f":"IF(DataLog!$C3438=\"Log value\",DataLog!J3438,\"\")","v":""},{"$f":"IF(DataLog!$C3438=\"Log value\",DataLog!K3438,\"\")","v":""},{"$f":"IF(DataLog!$C3438=\"Log value\",DataLog!L3438,\"\")","v":""},{"$f":"IF(DataLog!$C3438=\"Log value\",DataLog!M3438,\"\")","v":""},{"$f":"IF(DataLog!$C3438=\"Log value\",DataLog!N3438,\"\")","v":""},{"$f":"IF(DataLog!$C3438=\"Log value\",DataLog!O3438,\"\")","v":""},{"$f":"IF(DataLog!$C3438=\"Log value\",DataLog!P3438,\"\")","v":""},{"$f":"IF(DataLog!$C3438=\"Log value\",DataLog!Q3438,\"\")","v":""},{"$f":"IF(DataLog!$C3438=\"Log value\",DataLog!R3438,\"\")","v":""},{"$f":"IF(DataLog!$C3438=\"Log value\",DataLog!S3438,\"\")","v":""},{"$f":"IF(DataLog!$C3438=\"Log value\",DataLog!T3438,\"\")","v":""},{"$f":"IF(DataLog!$C3438=\"Log value\",DataLog!U3438,\"\")","v":""},{"$f":"IF(DataLog!$C3438=\"Log value\",DataLog!V3438,\"\")","v":""},{"$f":"IF(DataLog!$C3438=\"Log value\",DataLog!W3438,\"\")","v":""},{"$f":"IF(DataLog!$C3438=\"Log value\",DataLog!X3438,\"\")","v":""},{"$f":"IF(DataLog!$C3438=\"Log value\",DataLog!Y3438,\"\")","v":""},{"$f":"IF(DataLog!$C3438=\"Log value\",DataLog!Z3438,\"\")","v":""},{"$f":"IF(DataLog!$C3438=\"Log value\",DataLog!AA3438,\"\")","v":""},{"$f":"IF(DataLog!$C3438=\"Log value\",DataLog!AB3438,\"\")","v":""},{"$f":"IF(DataLog!$C3438=\"Log value\",DataLog!AC3438,\"\")","v":""},{"$f":"IF(DataLog!$C3438=\"Log value\",DataLog!AD3438,\"\")","v":""},{"$f":"IF(DataLog!$C3438=\"Log value\",DataLog!AE3438,\"\")","v":""},{"$f":"IF(DataLog!$C3438=\"Log value\",DataLog!AF3438,\"\")","v":""},{"$f":"IF(DataLog!$C3438=\"Log value\",DataLog!AG3438,\"\")","v":""},{"$f":"IF(DataLog!$C3438=\"Log value\",DataLog!AH3438,\"\")","v":""},{"$f":"IF(DataLog!$C3438=\"Log value\",DataLog!AI3438,\"\")","v":""},{"$f":"IF(DataLog!$C3438=\"Log value\",DataLog!AJ3438,\"\")","v":""},{"$f":"IF(DataLog!$C3438=\"Log value\",DataLog!AK3438,\"\")","v":""},{"$f":"IF(DataLog!$C3438=\"Log value\",DataLog!AL3438,\"\")","v":""},{"$f":"IF(DataLog!$C3438=\"Log value\",DataLog!AM3438,\"\")","v":""}]
[null,null,null,null,null,null,{"$f":"IF(DataLog!$C3439=\"Log value\",DataLog!D3439&\"_\"&TEXT(DataLog!B3439,\"åååå-mm-dd\"),\"\")","v":""},{"$f":"IF(DataLog!$C3439=\"Log value\",DataLog!E3439,\"\")","v":""},{"$f":"IF(DataLog!$C3439=\"Log value\",DataLog!F3439,\"\")","v":""},{"$f":"IF(DataLog!$C3439=\"Log value\",DataLog!G3439,\"\")","v":""},{"$f":"IF(DataLog!$C3439=\"Log value\",DataLog!H3439,\"\")","v":""},{"$f":"IF(DataLog!$C3439=\"Log value\",DataLog!I3439,\"\")","v":""},{"$f":"IF(DataLog!$C3439=\"Log value\",DataLog!J3439,\"\")","v":""},{"$f":"IF(DataLog!$C3439=\"Log value\",DataLog!K3439,\"\")","v":""},{"$f":"IF(DataLog!$C3439=\"Log value\",DataLog!L3439,\"\")","v":""},{"$f":"IF(DataLog!$C3439=\"Log value\",DataLog!M3439,\"\")","v":""},{"$f":"IF(DataLog!$C3439=\"Log value\",DataLog!N3439,\"\")","v":""},{"$f":"IF(DataLog!$C3439=\"Log value\",DataLog!O3439,\"\")","v":""},{"$f":"IF(DataLog!$C3439=\"Log value\",DataLog!P3439,\"\")","v":""},{"$f":"IF(DataLog!$C3439=\"Log value\",DataLog!Q3439,\"\")","v":""},{"$f":"IF(DataLog!$C3439=\"Log value\",DataLog!R3439,\"\")","v":""},{"$f":"IF(DataLog!$C3439=\"Log value\",DataLog!S3439,\"\")","v":""},{"$f":"IF(DataLog!$C3439=\"Log value\",DataLog!T3439,\"\")","v":""},{"$f":"IF(DataLog!$C3439=\"Log value\",DataLog!U3439,\"\")","v":""},{"$f":"IF(DataLog!$C3439=\"Log value\",DataLog!V3439,\"\")","v":""},{"$f":"IF(DataLog!$C3439=\"Log value\",DataLog!W3439,\"\")","v":""},{"$f":"IF(DataLog!$C3439=\"Log value\",DataLog!X3439,\"\")","v":""},{"$f":"IF(DataLog!$C3439=\"Log value\",DataLog!Y3439,\"\")","v":""},{"$f":"IF(DataLog!$C3439=\"Log value\",DataLog!Z3439,\"\")","v":""},{"$f":"IF(DataLog!$C3439=\"Log value\",DataLog!AA3439,\"\")","v":""},{"$f":"IF(DataLog!$C3439=\"Log value\",DataLog!AB3439,\"\")","v":""},{"$f":"IF(DataLog!$C3439=\"Log value\",DataLog!AC3439,\"\")","v":""},{"$f":"IF(DataLog!$C3439=\"Log value\",DataLog!AD3439,\"\")","v":""},{"$f":"IF(DataLog!$C3439=\"Log value\",DataLog!AE3439,\"\")","v":""},{"$f":"IF(DataLog!$C3439=\"Log value\",DataLog!AF3439,\"\")","v":""},{"$f":"IF(DataLog!$C3439=\"Log value\",DataLog!AG3439,\"\")","v":""},{"$f":"IF(DataLog!$C3439=\"Log value\",DataLog!AH3439,\"\")","v":""},{"$f":"IF(DataLog!$C3439=\"Log value\",DataLog!AI3439,\"\")","v":""},{"$f":"IF(DataLog!$C3439=\"Log value\",DataLog!AJ3439,\"\")","v":""},{"$f":"IF(DataLog!$C3439=\"Log value\",DataLog!AK3439,\"\")","v":""},{"$f":"IF(DataLog!$C3439=\"Log value\",DataLog!AL3439,\"\")","v":""},{"$f":"IF(DataLog!$C3439=\"Log value\",DataLog!AM3439,\"\")","v":""}]
[null,null,null,null,null,null,{"$f":"IF(DataLog!$C3440=\"Log value\",DataLog!D3440&\"_\"&TEXT(DataLog!B3440,\"åååå-mm-dd\"),\"\")","v":""},{"$f":"IF(DataLog!$C3440=\"Log value\",DataLog!E3440,\"\")","v":""},{"$f":"IF(DataLog!$C3440=\"Log value\",DataLog!F3440,\"\")","v":""},{"$f":"IF(DataLog!$C3440=\"Log value\",DataLog!G3440,\"\")","v":""},{"$f":"IF(DataLog!$C3440=\"Log value\",DataLog!H3440,\"\")","v":""},{"$f":"IF(DataLog!$C3440=\"Log value\",DataLog!I3440,\"\")","v":""},{"$f":"IF(DataLog!$C3440=\"Log value\",DataLog!J3440,\"\")","v":""},{"$f":"IF(DataLog!$C3440=\"Log value\",DataLog!K3440,\"\")","v":""},{"$f":"IF(DataLog!$C3440=\"Log value\",DataLog!L3440,\"\")","v":""},{"$f":"IF(DataLog!$C3440=\"Log value\",DataLog!M3440,\"\")","v":""},{"$f":"IF(DataLog!$C3440=\"Log value\",DataLog!N3440,\"\")","v":""},{"$f":"IF(DataLog!$C3440=\"Log value\",DataLog!O3440,\"\")","v":""},{"$f":"IF(DataLog!$C3440=\"Log value\",DataLog!P3440,\"\")","v":""},{"$f":"IF(DataLog!$C3440=\"Log value\",DataLog!Q3440,\"\")","v":""},{"$f":"IF(DataLog!$C3440=\"Log value\",DataLog!R3440,\"\")","v":""},{"$f":"IF(DataLog!$C3440=\"Log value\",DataLog!S3440,\"\")","v":""},{"$f":"IF(DataLog!$C3440=\"Log value\",DataLog!T3440,\"\")","v":""},{"$f":"IF(DataLog!$C3440=\"Log value\",DataLog!U3440,\"\")","v":""},{"$f":"IF(DataLog!$C3440=\"Log value\",DataLog!V3440,\"\")","v":""},{"$f":"IF(DataLog!$C3440=\"Log value\",DataLog!W3440,\"\")","v":""},{"$f":"IF(DataLog!$C3440=\"Log value\",DataLog!X3440,\"\")","v":""},{"$f":"IF(DataLog!$C3440=\"Log value\",DataLog!Y3440,\"\")","v":""},{"$f":"IF(DataLog!$C3440=\"Log value\",DataLog!Z3440,\"\")","v":""},{"$f":"IF(DataLog!$C3440=\"Log value\",DataLog!AA3440,\"\")","v":""},{"$f":"IF(DataLog!$C3440=\"Log value\",DataLog!AB3440,\"\")","v":""},{"$f":"IF(DataLog!$C3440=\"Log value\",DataLog!AC3440,\"\")","v":""},{"$f":"IF(DataLog!$C3440=\"Log value\",DataLog!AD3440,\"\")","v":""},{"$f":"IF(DataLog!$C3440=\"Log value\",DataLog!AE3440,\"\")","v":""},{"$f":"IF(DataLog!$C3440=\"Log value\",DataLog!AF3440,\"\")","v":""},{"$f":"IF(DataLog!$C3440=\"Log value\",DataLog!AG3440,\"\")","v":""},{"$f":"IF(DataLog!$C3440=\"Log value\",DataLog!AH3440,\"\")","v":""},{"$f":"IF(DataLog!$C3440=\"Log value\",DataLog!AI3440,\"\")","v":""},{"$f":"IF(DataLog!$C3440=\"Log value\",DataLog!AJ3440,\"\")","v":""},{"$f":"IF(DataLog!$C3440=\"Log value\",DataLog!AK3440,\"\")","v":""},{"$f":"IF(DataLog!$C3440=\"Log value\",DataLog!AL3440,\"\")","v":""},{"$f":"IF(DataLog!$C3440=\"Log value\",DataLog!AM3440,\"\")","v":""}]
[null,null,null,null,null,null,{"$f":"IF(DataLog!$C3441=\"Log value\",DataLog!D3441&\"_\"&TEXT(DataLog!B3441,\"åååå-mm-dd\"),\"\")","v":""},{"$f":"IF(DataLog!$C3441=\"Log value\",DataLog!E3441,\"\")","v":""},{"$f":"IF(DataLog!$C3441=\"Log value\",DataLog!F3441,\"\")","v":""},{"$f":"IF(DataLog!$C3441=\"Log value\",DataLog!G3441,\"\")","v":""},{"$f":"IF(DataLog!$C3441=\"Log value\",DataLog!H3441,\"\")","v":""},{"$f":"IF(DataLog!$C3441=\"Log value\",DataLog!I3441,\"\")","v":""},{"$f":"IF(DataLog!$C3441=\"Log value\",DataLog!J3441,\"\")","v":""},{"$f":"IF(DataLog!$C3441=\"Log value\",DataLog!K3441,\"\")","v":""},{"$f":"IF(DataLog!$C3441=\"Log value\",DataLog!L3441,\"\")","v":""},{"$f":"IF(DataLog!$C3441=\"Log value\",DataLog!M3441,\"\")","v":""},{"$f":"IF(DataLog!$C3441=\"Log value\",DataLog!N3441,\"\")","v":""},{"$f":"IF(DataLog!$C3441=\"Log value\",DataLog!O3441,\"\")","v":""},{"$f":"IF(DataLog!$C3441=\"Log value\",DataLog!P3441,\"\")","v":""},{"$f":"IF(DataLog!$C3441=\"Log value\",DataLog!Q3441,\"\")","v":""},{"$f":"IF(DataLog!$C3441=\"Log value\",DataLog!R3441,\"\")","v":""},{"$f":"IF(DataLog!$C3441=\"Log value\",DataLog!S3441,\"\")","v":""},{"$f":"IF(DataLog!$C3441=\"Log value\",DataLog!T3441,\"\")","v":""},{"$f":"IF(DataLog!$C3441=\"Log value\",DataLog!U3441,\"\")","v":""},{"$f":"IF(DataLog!$C3441=\"Log value\",DataLog!V3441,\"\")","v":""},{"$f":"IF(DataLog!$C3441=\"Log value\",DataLog!W3441,\"\")","v":""},{"$f":"IF(DataLog!$C3441=\"Log value\",DataLog!X3441,\"\")","v":""},{"$f":"IF(DataLog!$C3441=\"Log value\",DataLog!Y3441,\"\")","v":""},{"$f":"IF(DataLog!$C3441=\"Log value\",DataLog!Z3441,\"\")","v":""},{"$f":"IF(DataLog!$C3441=\"Log value\",DataLog!AA3441,\"\")","v":""},{"$f":"IF(DataLog!$C3441=\"Log value\",DataLog!AB3441,\"\")","v":""},{"$f":"IF(DataLog!$C3441=\"Log value\",DataLog!AC3441,\"\")","v":""},{"$f":"IF(DataLog!$C3441=\"Log value\",DataLog!AD3441,\"\")","v":""},{"$f":"IF(DataLog!$C3441=\"Log value\",DataLog!AE3441,\"\")","v":""},{"$f":"IF(DataLog!$C3441=\"Log value\",DataLog!AF3441,\"\")","v":""},{"$f":"IF(DataLog!$C3441=\"Log value\",DataLog!AG3441,\"\")","v":""},{"$f":"IF(DataLog!$C3441=\"Log value\",DataLog!AH3441,\"\")","v":""},{"$f":"IF(DataLog!$C3441=\"Log value\",DataLog!AI3441,\"\")","v":""},{"$f":"IF(DataLog!$C3441=\"Log value\",DataLog!AJ3441,\"\")","v":""},{"$f":"IF(DataLog!$C3441=\"Log value\",DataLog!AK3441,\"\")","v":""},{"$f":"IF(DataLog!$C3441=\"Log value\",DataLog!AL3441,\"\")","v":""},{"$f":"IF(DataLog!$C3441=\"Log value\",DataLog!AM3441,\"\")","v":""}]
[null,null,null,null,null,null,{"$f":"IF(DataLog!$C3442=\"Log value\",DataLog!D3442&\"_\"&TEXT(DataLog!B3442,\"åååå-mm-dd\"),\"\")","v":""},{"$f":"IF(DataLog!$C3442=\"Log value\",DataLog!E3442,\"\")","v":""},{"$f":"IF(DataLog!$C3442=\"Log value\",DataLog!F3442,\"\")","v":""},{"$f":"IF(DataLog!$C3442=\"Log value\",DataLog!G3442,\"\")","v":""},{"$f":"IF(DataLog!$C3442=\"Log value\",DataLog!H3442,\"\")","v":""},{"$f":"IF(DataLog!$C3442=\"Log value\",DataLog!I3442,\"\")","v":""},{"$f":"IF(DataLog!$C3442=\"Log value\",DataLog!J3442,\"\")","v":""},{"$f":"IF(DataLog!$C3442=\"Log value\",DataLog!K3442,\"\")","v":""},{"$f":"IF(DataLog!$C3442=\"Log value\",DataLog!L3442,\"\")","v":""},{"$f":"IF(DataLog!$C3442=\"Log value\",DataLog!M3442,\"\")","v":""},{"$f":"IF(DataLog!$C3442=\"Log value\",DataLog!N3442,\"\")","v":""},{"$f":"IF(DataLog!$C3442=\"Log value\",DataLog!O3442,\"\")","v":""},{"$f":"IF(DataLog!$C3442=\"Log value\",DataLog!P3442,\"\")","v":""},{"$f":"IF(DataLog!$C3442=\"Log value\",DataLog!Q3442,\"\")","v":""},{"$f":"IF(DataLog!$C3442=\"Log value\",DataLog!R3442,\"\")","v":""},{"$f":"IF(DataLog!$C3442=\"Log value\",DataLog!S3442,\"\")","v":""},{"$f":"IF(DataLog!$C3442=\"Log value\",DataLog!T3442,\"\")","v":""},{"$f":"IF(DataLog!$C3442=\"Log value\",DataLog!U3442,\"\")","v":""},{"$f":"IF(DataLog!$C3442=\"Log value\",DataLog!V3442,\"\")","v":""},{"$f":"IF(DataLog!$C3442=\"Log value\",DataLog!W3442,\"\")","v":""},{"$f":"IF(DataLog!$C3442=\"Log value\",DataLog!X3442,\"\")","v":""},{"$f":"IF(DataLog!$C3442=\"Log value\",DataLog!Y3442,\"\")","v":""},{"$f":"IF(DataLog!$C3442=\"Log value\",DataLog!Z3442,\"\")","v":""},{"$f":"IF(DataLog!$C3442=\"Log value\",DataLog!AA3442,\"\")","v":""},{"$f":"IF(DataLog!$C3442=\"Log value\",DataLog!AB3442,\"\")","v":""},{"$f":"IF(DataLog!$C3442=\"Log value\",DataLog!AC3442,\"\")","v":""},{"$f":"IF(DataLog!$C3442=\"Log value\",DataLog!AD3442,\"\")","v":""},{"$f":"IF(DataLog!$C3442=\"Log value\",DataLog!AE3442,\"\")","v":""},{"$f":"IF(DataLog!$C3442=\"Log value\",DataLog!AF3442,\"\")","v":""},{"$f":"IF(DataLog!$C3442=\"Log value\",DataLog!AG3442,\"\")","v":""},{"$f":"IF(DataLog!$C3442=\"Log value\",DataLog!AH3442,\"\")","v":""},{"$f":"IF(DataLog!$C3442=\"Log value\",DataLog!AI3442,\"\")","v":""},{"$f":"IF(DataLog!$C3442=\"Log value\",DataLog!AJ3442,\"\")","v":""},{"$f":"IF(DataLog!$C3442=\"Log value\",DataLog!AK3442,\"\")","v":""},{"$f":"IF(DataLog!$C3442=\"Log value\",DataLog!AL3442,\"\")","v":""},{"$f":"IF(DataLog!$C3442=\"Log value\",DataLog!AM3442,\"\")","v":""}]
[null,null,null,null,null,null,{"$f":"IF(DataLog!$C3443=\"Log value\",DataLog!D3443&\"_\"&TEXT(DataLog!B3443,\"åååå-mm-dd\"),\"\")","v":""},{"$f":"IF(DataLog!$C3443=\"Log value\",DataLog!E3443,\"\")","v":""},{"$f":"IF(DataLog!$C3443=\"Log value\",DataLog!F3443,\"\")","v":""},{"$f":"IF(DataLog!$C3443=\"Log value\",DataLog!G3443,\"\")","v":""},{"$f":"IF(DataLog!$C3443=\"Log value\",DataLog!H3443,\"\")","v":""},{"$f":"IF(DataLog!$C3443=\"Log value\",DataLog!I3443,\"\")","v":""},{"$f":"IF(DataLog!$C3443=\"Log value\",DataLog!J3443,\"\")","v":""},{"$f":"IF(DataLog!$C3443=\"Log value\",DataLog!K3443,\"\")","v":""},{"$f":"IF(DataLog!$C3443=\"Log value\",DataLog!L3443,\"\")","v":""},{"$f":"IF(DataLog!$C3443=\"Log value\",DataLog!M3443,\"\")","v":""},{"$f":"IF(DataLog!$C3443=\"Log value\",DataLog!N3443,\"\")","v":""},{"$f":"IF(DataLog!$C3443=\"Log value\",DataLog!O3443,\"\")","v":""},{"$f":"IF(DataLog!$C3443=\"Log value\",DataLog!P3443,\"\")","v":""},{"$f":"IF(DataLog!$C3443=\"Log value\",DataLog!Q3443,\"\")","v":""},{"$f":"IF(DataLog!$C3443=\"Log value\",DataLog!R3443,\"\")","v":""},{"$f":"IF(DataLog!$C3443=\"Log value\",DataLog!S3443,\"\")","v":""},{"$f":"IF(DataLog!$C3443=\"Log value\",DataLog!T3443,\"\")","v":""},{"$f":"IF(DataLog!$C3443=\"Log value\",DataLog!U3443,\"\")","v":""},{"$f":"IF(DataLog!$C3443=\"Log value\",DataLog!V3443,\"\")","v":""},{"$f":"IF(DataLog!$C3443=\"Log value\",DataLog!W3443,\"\")","v":""},{"$f":"IF(DataLog!$C3443=\"Log value\",DataLog!X3443,\"\")","v":""},{"$f":"IF(DataLog!$C3443=\"Log value\",DataLog!Y3443,\"\")","v":""},{"$f":"IF(DataLog!$C3443=\"Log value\",DataLog!Z3443,\"\")","v":""},{"$f":"IF(DataLog!$C3443=\"Log value\",DataLog!AA3443,\"\")","v":""},{"$f":"IF(DataLog!$C3443=\"Log value\",DataLog!AB3443,\"\")","v":""},{"$f":"IF(DataLog!$C3443=\"Log value\",DataLog!AC3443,\"\")","v":""},{"$f":"IF(DataLog!$C3443=\"Log value\",DataLog!AD3443,\"\")","v":""},{"$f":"IF(DataLog!$C3443=\"Log value\",DataLog!AE3443,\"\")","v":""},{"$f":"IF(DataLog!$C3443=\"Log value\",DataLog!AF3443,\"\")","v":""},{"$f":"IF(DataLog!$C3443=\"Log value\",DataLog!AG3443,\"\")","v":""},{"$f":"IF(DataLog!$C3443=\"Log value\",DataLog!AH3443,\"\")","v":""},{"$f":"IF(DataLog!$C3443=\"Log value\",DataLog!AI3443,\"\")","v":""},{"$f":"IF(DataLog!$C3443=\"Log value\",DataLog!AJ3443,\"\")","v":""},{"$f":"IF(DataLog!$C3443=\"Log value\",DataLog!AK3443,\"\")","v":""},{"$f":"IF(DataLog!$C3443=\"Log value\",DataLog!AL3443,\"\")","v":""},{"$f":"IF(DataLog!$C3443=\"Log value\",DataLog!AM3443,\"\")","v":""}]
[null,null,null,null,null,null,{"$f":"IF(DataLog!$C3444=\"Log value\",DataLog!D3444&\"_\"&TEXT(DataLog!B3444,\"åååå-mm-dd\"),\"\")","v":""},{"$f":"IF(DataLog!$C3444=\"Log value\",DataLog!E3444,\"\")","v":""},{"$f":"IF(DataLog!$C3444=\"Log value\",DataLog!F3444,\"\")","v":""},{"$f":"IF(DataLog!$C3444=\"Log value\",DataLog!G3444,\"\")","v":""},{"$f":"IF(DataLog!$C3444=\"Log value\",DataLog!H3444,\"\")","v":""},{"$f":"IF(DataLog!$C3444=\"Log value\",DataLog!I3444,\"\")","v":""},{"$f":"IF(DataLog!$C3444=\"Log value\",DataLog!J3444,\"\")","v":""},{"$f":"IF(DataLog!$C3444=\"Log value\",DataLog!K3444,\"\")","v":""},{"$f":"IF(DataLog!$C3444=\"Log value\",DataLog!L3444,\"\")","v":""},{"$f":"IF(DataLog!$C3444=\"Log value\",DataLog!M3444,\"\")","v":""},{"$f":"IF(DataLog!$C3444=\"Log value\",DataLog!N3444,\"\")","v":""},{"$f":"IF(DataLog!$C3444=\"Log value\",DataLog!O3444,\"\")","v":""},{"$f":"IF(DataLog!$C3444=\"Log value\",DataLog!P3444,\"\")","v":""},{"$f":"IF(DataLog!$C3444=\"Log value\",DataLog!Q3444,\"\")","v":""},{"$f":"IF(DataLog!$C3444=\"Log value\",DataLog!R3444,\"\")","v":""},{"$f":"IF(DataLog!$C3444=\"Log value\",DataLog!S3444,\"\")","v":""},{"$f":"IF(DataLog!$C3444=\"Log value\",DataLog!T3444,\"\")","v":""},{"$f":"IF(DataLog!$C3444=\"Log value\",DataLog!U3444,\"\")","v":""},{"$f":"IF(DataLog!$C3444=\"Log value\",DataLog!V3444,\"\")","v":""},{"$f":"IF(DataLog!$C3444=\"Log value\",DataLog!W3444,\"\")","v":""},{"$f":"IF(DataLog!$C3444=\"Log value\",DataLog!X3444,\"\")","v":""},{"$f":"IF(DataLog!$C3444=\"Log value\",DataLog!Y3444,\"\")","v":""},{"$f":"IF(DataLog!$C3444=\"Log value\",DataLog!Z3444,\"\")","v":""},{"$f":"IF(DataLog!$C3444=\"Log value\",DataLog!AA3444,\"\")","v":""},{"$f":"IF(DataLog!$C3444=\"Log value\",DataLog!AB3444,\"\")","v":""},{"$f":"IF(DataLog!$C3444=\"Log value\",DataLog!AC3444,\"\")","v":""},{"$f":"IF(DataLog!$C3444=\"Log value\",DataLog!AD3444,\"\")","v":""},{"$f":"IF(DataLog!$C3444=\"Log value\",DataLog!AE3444,\"\")","v":""},{"$f":"IF(DataLog!$C3444=\"Log value\",DataLog!AF3444,\"\")","v":""},{"$f":"IF(DataLog!$C3444=\"Log value\",DataLog!AG3444,\"\")","v":""},{"$f":"IF(DataLog!$C3444=\"Log value\",DataLog!AH3444,\"\")","v":""},{"$f":"IF(DataLog!$C3444=\"Log value\",DataLog!AI3444,\"\")","v":""},{"$f":"IF(DataLog!$C3444=\"Log value\",DataLog!AJ3444,\"\")","v":""},{"$f":"IF(DataLog!$C3444=\"Log value\",DataLog!AK3444,\"\")","v":""},{"$f":"IF(DataLog!$C3444=\"Log value\",DataLog!AL3444,\"\")","v":""},{"$f":"IF(DataLog!$C3444=\"Log value\",DataLog!AM3444,\"\")","v":""}]
[null,null,null,null,null,null,{"$f":"IF(DataLog!$C3445=\"Log value\",DataLog!D3445&\"_\"&TEXT(DataLog!B3445,\"åååå-mm-dd\"),\"\")","v":""},{"$f":"IF(DataLog!$C3445=\"Log value\",DataLog!E3445,\"\")","v":""},{"$f":"IF(DataLog!$C3445=\"Log value\",DataLog!F3445,\"\")","v":""},{"$f":"IF(DataLog!$C3445=\"Log value\",DataLog!G3445,\"\")","v":""},{"$f":"IF(DataLog!$C3445=\"Log value\",DataLog!H3445,\"\")","v":""},{"$f":"IF(DataLog!$C3445=\"Log value\",DataLog!I3445,\"\")","v":""},{"$f":"IF(DataLog!$C3445=\"Log value\",DataLog!J3445,\"\")","v":""},{"$f":"IF(DataLog!$C3445=\"Log value\",DataLog!K3445,\"\")","v":""},{"$f":"IF(DataLog!$C3445=\"Log value\",DataLog!L3445,\"\")","v":""},{"$f":"IF(DataLog!$C3445=\"Log value\",DataLog!M3445,\"\")","v":""},{"$f":"IF(DataLog!$C3445=\"Log value\",DataLog!N3445,\"\")","v":""},{"$f":"IF(DataLog!$C3445=\"Log value\",DataLog!O3445,\"\")","v":""},{"$f":"IF(DataLog!$C3445=\"Log value\",DataLog!P3445,\"\")","v":""},{"$f":"IF(DataLog!$C3445=\"Log value\",DataLog!Q3445,\"\")","v":""},{"$f":"IF(DataLog!$C3445=\"Log value\",DataLog!R3445,\"\")","v":""},{"$f":"IF(DataLog!$C3445=\"Log value\",DataLog!S3445,\"\")","v":""},{"$f":"IF(DataLog!$C3445=\"Log value\",DataLog!T3445,\"\")","v":""},{"$f":"IF(DataLog!$C3445=\"Log value\",DataLog!U3445,\"\")","v":""},{"$f":"IF(DataLog!$C3445=\"Log value\",DataLog!V3445,\"\")","v":""},{"$f":"IF(DataLog!$C3445=\"Log value\",DataLog!W3445,\"\")","v":""},{"$f":"IF(DataLog!$C3445=\"Log value\",DataLog!X3445,\"\")","v":""},{"$f":"IF(DataLog!$C3445=\"Log value\",DataLog!Y3445,\"\")","v":""},{"$f":"IF(DataLog!$C3445=\"Log value\",DataLog!Z3445,\"\")","v":""},{"$f":"IF(DataLog!$C3445=\"Log value\",DataLog!AA3445,\"\")","v":""},{"$f":"IF(DataLog!$C3445=\"Log value\",DataLog!AB3445,\"\")","v":""},{"$f":"IF(DataLog!$C3445=\"Log value\",DataLog!AC3445,\"\")","v":""},{"$f":"IF(DataLog!$C3445=\"Log value\",DataLog!AD3445,\"\")","v":""},{"$f":"IF(DataLog!$C3445=\"Log value\",DataLog!AE3445,\"\")","v":""},{"$f":"IF(DataLog!$C3445=\"Log value\",DataLog!AF3445,\"\")","v":""},{"$f":"IF(DataLog!$C3445=\"Log value\",DataLog!AG3445,\"\")","v":""},{"$f":"IF(DataLog!$C3445=\"Log value\",DataLog!AH3445,\"\")","v":""},{"$f":"IF(DataLog!$C3445=\"Log value\",DataLog!AI3445,\"\")","v":""},{"$f":"IF(DataLog!$C3445=\"Log value\",DataLog!AJ3445,\"\")","v":""},{"$f":"IF(DataLog!$C3445=\"Log value\",DataLog!AK3445,\"\")","v":""},{"$f":"IF(DataLog!$C3445=\"Log value\",DataLog!AL3445,\"\")","v":""},{"$f":"IF(DataLog!$C3445=\"Log value\",DataLog!AM3445,\"\")","v":""}]
[null,null,null,null,null,null,{"$f":"IF(DataLog!$C3446=\"Log value\",DataLog!D3446&\"_\"&TEXT(DataLog!B3446,\"åååå-mm-dd\"),\"\")","v":""},{"$f":"IF(DataLog!$C3446=\"Log value\",DataLog!E3446,\"\")","v":""},{"$f":"IF(DataLog!$C3446=\"Log value\",DataLog!F3446,\"\")","v":""},{"$f":"IF(DataLog!$C3446=\"Log value\",DataLog!G3446,\"\")","v":""},{"$f":"IF(DataLog!$C3446=\"Log value\",DataLog!H3446,\"\")","v":""},{"$f":"IF(DataLog!$C3446=\"Log value\",DataLog!I3446,\"\")","v":""},{"$f":"IF(DataLog!$C3446=\"Log value\",DataLog!J3446,\"\")","v":""},{"$f":"IF(DataLog!$C3446=\"Log value\",DataLog!K3446,\"\")","v":""},{"$f":"IF(DataLog!$C3446=\"Log value\",DataLog!L3446,\"\")","v":""},{"$f":"IF(DataLog!$C3446=\"Log value\",DataLog!M3446,\"\")","v":""},{"$f":"IF(DataLog!$C3446=\"Log value\",DataLog!N3446,\"\")","v":""},{"$f":"IF(DataLog!$C3446=\"Log value\",DataLog!O3446,\"\")","v":""},{"$f":"IF(DataLog!$C3446=\"Log value\",DataLog!P3446,\"\")","v":""},{"$f":"IF(DataLog!$C3446=\"Log value\",DataLog!Q3446,\"\")","v":""},{"$f":"IF(DataLog!$C3446=\"Log value\",DataLog!R3446,\"\")","v":""},{"$f":"IF(DataLog!$C3446=\"Log value\",DataLog!S3446,\"\")","v":""},{"$f":"IF(DataLog!$C3446=\"Log value\",DataLog!T3446,\"\")","v":""},{"$f":"IF(DataLog!$C3446=\"Log value\",DataLog!U3446,\"\")","v":""},{"$f":"IF(DataLog!$C3446=\"Log value\",DataLog!V3446,\"\")","v":""},{"$f":"IF(DataLog!$C3446=\"Log value\",DataLog!W3446,\"\")","v":""},{"$f":"IF(DataLog!$C3446=\"Log value\",DataLog!X3446,\"\")","v":""},{"$f":"IF(DataLog!$C3446=\"Log value\",DataLog!Y3446,\"\")","v":""},{"$f":"IF(DataLog!$C3446=\"Log value\",DataLog!Z3446,\"\")","v":""},{"$f":"IF(DataLog!$C3446=\"Log value\",DataLog!AA3446,\"\")","v":""},{"$f":"IF(DataLog!$C3446=\"Log value\",DataLog!AB3446,\"\")","v":""},{"$f":"IF(DataLog!$C3446=\"Log value\",DataLog!AC3446,\"\")","v":""},{"$f":"IF(DataLog!$C3446=\"Log value\",DataLog!AD3446,\"\")","v":""},{"$f":"IF(DataLog!$C3446=\"Log value\",DataLog!AE3446,\"\")","v":""},{"$f":"IF(DataLog!$C3446=\"Log value\",DataLog!AF3446,\"\")","v":""},{"$f":"IF(DataLog!$C3446=\"Log value\",DataLog!AG3446,\"\")","v":""},{"$f":"IF(DataLog!$C3446=\"Log value\",DataLog!AH3446,\"\")","v":""},{"$f":"IF(DataLog!$C3446=\"Log value\",DataLog!AI3446,\"\")","v":""},{"$f":"IF(DataLog!$C3446=\"Log value\",DataLog!AJ3446,\"\")","v":""},{"$f":"IF(DataLog!$C3446=\"Log value\",DataLog!AK3446,\"\")","v":""},{"$f":"IF(DataLog!$C3446=\"Log value\",DataLog!AL3446,\"\")","v":""},{"$f":"IF(DataLog!$C3446=\"Log value\",DataLog!AM3446,\"\")","v":""}]
[null,null,null,null,null,null,{"$f":"IF(DataLog!$C3447=\"Log value\",DataLog!D3447&\"_\"&TEXT(DataLog!B3447,\"åååå-mm-dd\"),\"\")","v":""},{"$f":"IF(DataLog!$C3447=\"Log value\",DataLog!E3447,\"\")","v":""},{"$f":"IF(DataLog!$C3447=\"Log value\",DataLog!F3447,\"\")","v":""},{"$f":"IF(DataLog!$C3447=\"Log value\",DataLog!G3447,\"\")","v":""},{"$f":"IF(DataLog!$C3447=\"Log value\",DataLog!H3447,\"\")","v":""},{"$f":"IF(DataLog!$C3447=\"Log value\",DataLog!I3447,\"\")","v":""},{"$f":"IF(DataLog!$C3447=\"Log value\",DataLog!J3447,\"\")","v":""},{"$f":"IF(DataLog!$C3447=\"Log value\",DataLog!K3447,\"\")","v":""},{"$f":"IF(DataLog!$C3447=\"Log value\",DataLog!L3447,\"\")","v":""},{"$f":"IF(DataLog!$C3447=\"Log value\",DataLog!M3447,\"\")","v":""},{"$f":"IF(DataLog!$C3447=\"Log value\",DataLog!N3447,\"\")","v":""},{"$f":"IF(DataLog!$C3447=\"Log value\",DataLog!O3447,\"\")","v":""},{"$f":"IF(DataLog!$C3447=\"Log value\",DataLog!P3447,\"\")","v":""},{"$f":"IF(DataLog!$C3447=\"Log value\",DataLog!Q3447,\"\")","v":""},{"$f":"IF(DataLog!$C3447=\"Log value\",DataLog!R3447,\"\")","v":""},{"$f":"IF(DataLog!$C3447=\"Log value\",DataLog!S3447,\"\")","v":""},{"$f":"IF(DataLog!$C3447=\"Log value\",DataLog!T3447,\"\")","v":""},{"$f":"IF(DataLog!$C3447=\"Log value\",DataLog!U3447,\"\")","v":""},{"$f":"IF(DataLog!$C3447=\"Log value\",DataLog!V3447,\"\")","v":""},{"$f":"IF(DataLog!$C3447=\"Log value\",DataLog!W3447,\"\")","v":""},{"$f":"IF(DataLog!$C3447=\"Log value\",DataLog!X3447,\"\")","v":""},{"$f":"IF(DataLog!$C3447=\"Log value\",DataLog!Y3447,\"\")","v":""},{"$f":"IF(DataLog!$C3447=\"Log value\",DataLog!Z3447,\"\")","v":""},{"$f":"IF(DataLog!$C3447=\"Log value\",DataLog!AA3447,\"\")","v":""},{"$f":"IF(DataLog!$C3447=\"Log value\",DataLog!AB3447,\"\")","v":""},{"$f":"IF(DataLog!$C3447=\"Log value\",DataLog!AC3447,\"\")","v":""},{"$f":"IF(DataLog!$C3447=\"Log value\",DataLog!AD3447,\"\")","v":""},{"$f":"IF(DataLog!$C3447=\"Log value\",DataLog!AE3447,\"\")","v":""},{"$f":"IF(DataLog!$C3447=\"Log value\",DataLog!AF3447,\"\")","v":""},{"$f":"IF(DataLog!$C3447=\"Log value\",DataLog!AG3447,\"\")","v":""},{"$f":"IF(DataLog!$C3447=\"Log value\",DataLog!AH3447,\"\")","v":""},{"$f":"IF(DataLog!$C3447=\"Log value\",DataLog!AI3447,\"\")","v":""},{"$f":"IF(DataLog!$C3447=\"Log value\",DataLog!AJ3447,\"\")","v":""},{"$f":"IF(DataLog!$C3447=\"Log value\",DataLog!AK3447,\"\")","v":""},{"$f":"IF(DataLog!$C3447=\"Log value\",DataLog!AL3447,\"\")","v":""},{"$f":"IF(DataLog!$C3447=\"Log value\",DataLog!AM3447,\"\")","v":""}]
[null,null,null,null,null,null,{"$f":"IF(DataLog!$C3448=\"Log value\",DataLog!D3448&\"_\"&TEXT(DataLog!B3448,\"åååå-mm-dd\"),\"\")","v":""},{"$f":"IF(DataLog!$C3448=\"Log value\",DataLog!E3448,\"\")","v":""},{"$f":"IF(DataLog!$C3448=\"Log value\",DataLog!F3448,\"\")","v":""},{"$f":"IF(DataLog!$C3448=\"Log value\",DataLog!G3448,\"\")","v":""},{"$f":"IF(DataLog!$C3448=\"Log value\",DataLog!H3448,\"\")","v":""},{"$f":"IF(DataLog!$C3448=\"Log value\",DataLog!I3448,\"\")","v":""},{"$f":"IF(DataLog!$C3448=\"Log value\",DataLog!J3448,\"\")","v":""},{"$f":"IF(DataLog!$C3448=\"Log value\",DataLog!K3448,\"\")","v":""},{"$f":"IF(DataLog!$C3448=\"Log value\",DataLog!L3448,\"\")","v":""},{"$f":"IF(DataLog!$C3448=\"Log value\",DataLog!M3448,\"\")","v":""},{"$f":"IF(DataLog!$C3448=\"Log value\",DataLog!N3448,\"\")","v":""},{"$f":"IF(DataLog!$C3448=\"Log value\",DataLog!O3448,\"\")","v":""},{"$f":"IF(DataLog!$C3448=\"Log value\",DataLog!P3448,\"\")","v":""},{"$f":"IF(DataLog!$C3448=\"Log value\",DataLog!Q3448,\"\")","v":""},{"$f":"IF(DataLog!$C3448=\"Log value\",DataLog!R3448,\"\")","v":""},{"$f":"IF(DataLog!$C3448=\"Log value\",DataLog!S3448,\"\")","v":""},{"$f":"IF(DataLog!$C3448=\"Log value\",DataLog!T3448,\"\")","v":""},{"$f":"IF(DataLog!$C3448=\"Log value\",DataLog!U3448,\"\")","v":""},{"$f":"IF(DataLog!$C3448=\"Log value\",DataLog!V3448,\"\")","v":""},{"$f":"IF(DataLog!$C3448=\"Log value\",DataLog!W3448,\"\")","v":""},{"$f":"IF(DataLog!$C3448=\"Log value\",DataLog!X3448,\"\")","v":""},{"$f":"IF(DataLog!$C3448=\"Log value\",DataLog!Y3448,\"\")","v":""},{"$f":"IF(DataLog!$C3448=\"Log value\",DataLog!Z3448,\"\")","v":""},{"$f":"IF(DataLog!$C3448=\"Log value\",DataLog!AA3448,\"\")","v":""},{"$f":"IF(DataLog!$C3448=\"Log value\",DataLog!AB3448,\"\")","v":""},{"$f":"IF(DataLog!$C3448=\"Log value\",DataLog!AC3448,\"\")","v":""},{"$f":"IF(DataLog!$C3448=\"Log value\",DataLog!AD3448,\"\")","v":""},{"$f":"IF(DataLog!$C3448=\"Log value\",DataLog!AE3448,\"\")","v":""},{"$f":"IF(DataLog!$C3448=\"Log value\",DataLog!AF3448,\"\")","v":""},{"$f":"IF(DataLog!$C3448=\"Log value\",DataLog!AG3448,\"\")","v":""},{"$f":"IF(DataLog!$C3448=\"Log value\",DataLog!AH3448,\"\")","v":""},{"$f":"IF(DataLog!$C3448=\"Log value\",DataLog!AI3448,\"\")","v":""},{"$f":"IF(DataLog!$C3448=\"Log value\",DataLog!AJ3448,\"\")","v":""},{"$f":"IF(DataLog!$C3448=\"Log value\",DataLog!AK3448,\"\")","v":""},{"$f":"IF(DataLog!$C3448=\"Log value\",DataLog!AL3448,\"\")","v":""},{"$f":"IF(DataLog!$C3448=\"Log value\",DataLog!AM3448,\"\")","v":""}]
[null,null,null,null,null,null,{"$f":"IF(DataLog!$C3449=\"Log value\",DataLog!D3449&\"_\"&TEXT(DataLog!B3449,\"åååå-mm-dd\"),\"\")","v":""},{"$f":"IF(DataLog!$C3449=\"Log value\",DataLog!E3449,\"\")","v":""},{"$f":"IF(DataLog!$C3449=\"Log value\",DataLog!F3449,\"\")","v":""},{"$f":"IF(DataLog!$C3449=\"Log value\",DataLog!G3449,\"\")","v":""},{"$f":"IF(DataLog!$C3449=\"Log value\",DataLog!H3449,\"\")","v":""},{"$f":"IF(DataLog!$C3449=\"Log value\",DataLog!I3449,\"\")","v":""},{"$f":"IF(DataLog!$C3449=\"Log value\",DataLog!J3449,\"\")","v":""},{"$f":"IF(DataLog!$C3449=\"Log value\",DataLog!K3449,\"\")","v":""},{"$f":"IF(DataLog!$C3449=\"Log value\",DataLog!L3449,\"\")","v":""},{"$f":"IF(DataLog!$C3449=\"Log value\",DataLog!M3449,\"\")","v":""},{"$f":"IF(DataLog!$C3449=\"Log value\",DataLog!N3449,\"\")","v":""},{"$f":"IF(DataLog!$C3449=\"Log value\",DataLog!O3449,\"\")","v":""},{"$f":"IF(DataLog!$C3449=\"Log value\",DataLog!P3449,\"\")","v":""},{"$f":"IF(DataLog!$C3449=\"Log value\",DataLog!Q3449,\"\")","v":""},{"$f":"IF(DataLog!$C3449=\"Log value\",DataLog!R3449,\"\")","v":""},{"$f":"IF(DataLog!$C3449=\"Log value\",DataLog!S3449,\"\")","v":""},{"$f":"IF(DataLog!$C3449=\"Log value\",DataLog!T3449,\"\")","v":""},{"$f":"IF(DataLog!$C3449=\"Log value\",DataLog!U3449,\"\")","v":""},{"$f":"IF(DataLog!$C3449=\"Log value\",DataLog!V3449,\"\")","v":""},{"$f":"IF(DataLog!$C3449=\"Log value\",DataLog!W3449,\"\")","v":""},{"$f":"IF(DataLog!$C3449=\"Log value\",DataLog!X3449,\"\")","v":""},{"$f":"IF(DataLog!$C3449=\"Log value\",DataLog!Y3449,\"\")","v":""},{"$f":"IF(DataLog!$C3449=\"Log value\",DataLog!Z3449,\"\")","v":""},{"$f":"IF(DataLog!$C3449=\"Log value\",DataLog!AA3449,\"\")","v":""},{"$f":"IF(DataLog!$C3449=\"Log value\",DataLog!AB3449,\"\")","v":""},{"$f":"IF(DataLog!$C3449=\"Log value\",DataLog!AC3449,\"\")","v":""},{"$f":"IF(DataLog!$C3449=\"Log value\",DataLog!AD3449,\"\")","v":""},{"$f":"IF(DataLog!$C3449=\"Log value\",DataLog!AE3449,\"\")","v":""},{"$f":"IF(DataLog!$C3449=\"Log value\",DataLog!AF3449,\"\")","v":""},{"$f":"IF(DataLog!$C3449=\"Log value\",DataLog!AG3449,\"\")","v":""},{"$f":"IF(DataLog!$C3449=\"Log value\",DataLog!AH3449,\"\")","v":""},{"$f":"IF(DataLog!$C3449=\"Log value\",DataLog!AI3449,\"\")","v":""},{"$f":"IF(DataLog!$C3449=\"Log value\",DataLog!AJ3449,\"\")","v":""},{"$f":"IF(DataLog!$C3449=\"Log value\",DataLog!AK3449,\"\")","v":""},{"$f":"IF(DataLog!$C3449=\"Log value\",DataLog!AL3449,\"\")","v":""},{"$f":"IF(DataLog!$C3449=\"Log value\",DataLog!AM3449,\"\")","v":""}]
[null,null,null,null,null,null,{"$f":"IF(DataLog!$C3450=\"Log value\",DataLog!D3450&\"_\"&TEXT(DataLog!B3450,\"åååå-mm-dd\"),\"\")","v":""},{"$f":"IF(DataLog!$C3450=\"Log value\",DataLog!E3450,\"\")","v":""},{"$f":"IF(DataLog!$C3450=\"Log value\",DataLog!F3450,\"\")","v":""},{"$f":"IF(DataLog!$C3450=\"Log value\",DataLog!G3450,\"\")","v":""},{"$f":"IF(DataLog!$C3450=\"Log value\",DataLog!H3450,\"\")","v":""},{"$f":"IF(DataLog!$C3450=\"Log value\",DataLog!I3450,\"\")","v":""},{"$f":"IF(DataLog!$C3450=\"Log value\",DataLog!J3450,\"\")","v":""},{"$f":"IF(DataLog!$C3450=\"Log value\",DataLog!K3450,\"\")","v":""},{"$f":"IF(DataLog!$C3450=\"Log value\",DataLog!L3450,\"\")","v":""},{"$f":"IF(DataLog!$C3450=\"Log value\",DataLog!M3450,\"\")","v":""},{"$f":"IF(DataLog!$C3450=\"Log value\",DataLog!N3450,\"\")","v":""},{"$f":"IF(DataLog!$C3450=\"Log value\",DataLog!O3450,\"\")","v":""},{"$f":"IF(DataLog!$C3450=\"Log value\",DataLog!P3450,\"\")","v":""},{"$f":"IF(DataLog!$C3450=\"Log value\",DataLog!Q3450,\"\")","v":""},{"$f":"IF(DataLog!$C3450=\"Log value\",DataLog!R3450,\"\")","v":""},{"$f":"IF(DataLog!$C3450=\"Log value\",DataLog!S3450,\"\")","v":""},{"$f":"IF(DataLog!$C3450=\"Log value\",DataLog!T3450,\"\")","v":""},{"$f":"IF(DataLog!$C3450=\"Log value\",DataLog!U3450,\"\")","v":""},{"$f":"IF(DataLog!$C3450=\"Log value\",DataLog!V3450,\"\")","v":""},{"$f":"IF(DataLog!$C3450=\"Log value\",DataLog!W3450,\"\")","v":""},{"$f":"IF(DataLog!$C3450=\"Log value\",DataLog!X3450,\"\")","v":""},{"$f":"IF(DataLog!$C3450=\"Log value\",DataLog!Y3450,\"\")","v":""},{"$f":"IF(DataLog!$C3450=\"Log value\",DataLog!Z3450,\"\")","v":""},{"$f":"IF(DataLog!$C3450=\"Log value\",DataLog!AA3450,\"\")","v":""},{"$f":"IF(DataLog!$C3450=\"Log value\",DataLog!AB3450,\"\")","v":""},{"$f":"IF(DataLog!$C3450=\"Log value\",DataLog!AC3450,\"\")","v":""},{"$f":"IF(DataLog!$C3450=\"Log value\",DataLog!AD3450,\"\")","v":""},{"$f":"IF(DataLog!$C3450=\"Log value\",DataLog!AE3450,\"\")","v":""},{"$f":"IF(DataLog!$C3450=\"Log value\",DataLog!AF3450,\"\")","v":""},{"$f":"IF(DataLog!$C3450=\"Log value\",DataLog!AG3450,\"\")","v":""},{"$f":"IF(DataLog!$C3450=\"Log value\",DataLog!AH3450,\"\")","v":""},{"$f":"IF(DataLog!$C3450=\"Log value\",DataLog!AI3450,\"\")","v":""},{"$f":"IF(DataLog!$C3450=\"Log value\",DataLog!AJ3450,\"\")","v":""},{"$f":"IF(DataLog!$C3450=\"Log value\",DataLog!AK3450,\"\")","v":""},{"$f":"IF(DataLog!$C3450=\"Log value\",DataLog!AL3450,\"\")","v":""},{"$f":"IF(DataLog!$C3450=\"Log value\",DataLog!AM3450,\"\")","v":""}]
[null,null,null,null,null,null,{"$f":"IF(DataLog!$C3451=\"Log value\",DataLog!D3451&\"_\"&TEXT(DataLog!B3451,\"åååå-mm-dd\"),\"\")","v":""},{"$f":"IF(DataLog!$C3451=\"Log value\",DataLog!E3451,\"\")","v":""},{"$f":"IF(DataLog!$C3451=\"Log value\",DataLog!F3451,\"\")","v":""},{"$f":"IF(DataLog!$C3451=\"Log value\",DataLog!G3451,\"\")","v":""},{"$f":"IF(DataLog!$C3451=\"Log value\",DataLog!H3451,\"\")","v":""},{"$f":"IF(DataLog!$C3451=\"Log value\",DataLog!I3451,\"\")","v":""},{"$f":"IF(DataLog!$C3451=\"Log value\",DataLog!J3451,\"\")","v":""},{"$f":"IF(DataLog!$C3451=\"Log value\",DataLog!K3451,\"\")","v":""},{"$f":"IF(DataLog!$C3451=\"Log value\",DataLog!L3451,\"\")","v":""},{"$f":"IF(DataLog!$C3451=\"Log value\",DataLog!M3451,\"\")","v":""},{"$f":"IF(DataLog!$C3451=\"Log value\",DataLog!N3451,\"\")","v":""},{"$f":"IF(DataLog!$C3451=\"Log value\",DataLog!O3451,\"\")","v":""},{"$f":"IF(DataLog!$C3451=\"Log value\",DataLog!P3451,\"\")","v":""},{"$f":"IF(DataLog!$C3451=\"Log value\",DataLog!Q3451,\"\")","v":""},{"$f":"IF(DataLog!$C3451=\"Log value\",DataLog!R3451,\"\")","v":""},{"$f":"IF(DataLog!$C3451=\"Log value\",DataLog!S3451,\"\")","v":""},{"$f":"IF(DataLog!$C3451=\"Log value\",DataLog!T3451,\"\")","v":""},{"$f":"IF(DataLog!$C3451=\"Log value\",DataLog!U3451,\"\")","v":""},{"$f":"IF(DataLog!$C3451=\"Log value\",DataLog!V3451,\"\")","v":""},{"$f":"IF(DataLog!$C3451=\"Log value\",DataLog!W3451,\"\")","v":""},{"$f":"IF(DataLog!$C3451=\"Log value\",DataLog!X3451,\"\")","v":""},{"$f":"IF(DataLog!$C3451=\"Log value\",DataLog!Y3451,\"\")","v":""},{"$f":"IF(DataLog!$C3451=\"Log value\",DataLog!Z3451,\"\")","v":""},{"$f":"IF(DataLog!$C3451=\"Log value\",DataLog!AA3451,\"\")","v":""},{"$f":"IF(DataLog!$C3451=\"Log value\",DataLog!AB3451,\"\")","v":""},{"$f":"IF(DataLog!$C3451=\"Log value\",DataLog!AC3451,\"\")","v":""},{"$f":"IF(DataLog!$C3451=\"Log value\",DataLog!AD3451,\"\")","v":""},{"$f":"IF(DataLog!$C3451=\"Log value\",DataLog!AE3451,\"\")","v":""},{"$f":"IF(DataLog!$C3451=\"Log value\",DataLog!AF3451,\"\")","v":""},{"$f":"IF(DataLog!$C3451=\"Log value\",DataLog!AG3451,\"\")","v":""},{"$f":"IF(DataLog!$C3451=\"Log value\",DataLog!AH3451,\"\")","v":""},{"$f":"IF(DataLog!$C3451=\"Log value\",DataLog!AI3451,\"\")","v":""},{"$f":"IF(DataLog!$C3451=\"Log value\",DataLog!AJ3451,\"\")","v":""},{"$f":"IF(DataLog!$C3451=\"Log value\",DataLog!AK3451,\"\")","v":""},{"$f":"IF(DataLog!$C3451=\"Log value\",DataLog!AL3451,\"\")","v":""},{"$f":"IF(DataLog!$C3451=\"Log value\",DataLog!AM3451,\"\")","v":""}]
[null,null,null,null,null,null,{"$f":"IF(DataLog!$C3452=\"Log value\",DataLog!D3452&\"_\"&TEXT(DataLog!B3452,\"åååå-mm-dd\"),\"\")","v":""},{"$f":"IF(DataLog!$C3452=\"Log value\",DataLog!E3452,\"\")","v":""},{"$f":"IF(DataLog!$C3452=\"Log value\",DataLog!F3452,\"\")","v":""},{"$f":"IF(DataLog!$C3452=\"Log value\",DataLog!G3452,\"\")","v":""},{"$f":"IF(DataLog!$C3452=\"Log value\",DataLog!H3452,\"\")","v":""},{"$f":"IF(DataLog!$C3452=\"Log value\",DataLog!I3452,\"\")","v":""},{"$f":"IF(DataLog!$C3452=\"Log value\",DataLog!J3452,\"\")","v":""},{"$f":"IF(DataLog!$C3452=\"Log value\",DataLog!K3452,\"\")","v":""},{"$f":"IF(DataLog!$C3452=\"Log value\",DataLog!L3452,\"\")","v":""},{"$f":"IF(DataLog!$C3452=\"Log value\",DataLog!M3452,\"\")","v":""},{"$f":"IF(DataLog!$C3452=\"Log value\",DataLog!N3452,\"\")","v":""},{"$f":"IF(DataLog!$C3452=\"Log value\",DataLog!O3452,\"\")","v":""},{"$f":"IF(DataLog!$C3452=\"Log value\",DataLog!P3452,\"\")","v":""},{"$f":"IF(DataLog!$C3452=\"Log value\",DataLog!Q3452,\"\")","v":""},{"$f":"IF(DataLog!$C3452=\"Log value\",DataLog!R3452,\"\")","v":""},{"$f":"IF(DataLog!$C3452=\"Log value\",DataLog!S3452,\"\")","v":""},{"$f":"IF(DataLog!$C3452=\"Log value\",DataLog!T3452,\"\")","v":""},{"$f":"IF(DataLog!$C3452=\"Log value\",DataLog!U3452,\"\")","v":""},{"$f":"IF(DataLog!$C3452=\"Log value\",DataLog!V3452,\"\")","v":""},{"$f":"IF(DataLog!$C3452=\"Log value\",DataLog!W3452,\"\")","v":""},{"$f":"IF(DataLog!$C3452=\"Log value\",DataLog!X3452,\"\")","v":""},{"$f":"IF(DataLog!$C3452=\"Log value\",DataLog!Y3452,\"\")","v":""},{"$f":"IF(DataLog!$C3452=\"Log value\",DataLog!Z3452,\"\")","v":""},{"$f":"IF(DataLog!$C3452=\"Log value\",DataLog!AA3452,\"\")","v":""},{"$f":"IF(DataLog!$C3452=\"Log value\",DataLog!AB3452,\"\")","v":""},{"$f":"IF(DataLog!$C3452=\"Log value\",DataLog!AC3452,\"\")","v":""},{"$f":"IF(DataLog!$C3452=\"Log value\",DataLog!AD3452,\"\")","v":""},{"$f":"IF(DataLog!$C3452=\"Log value\",DataLog!AE3452,\"\")","v":""},{"$f":"IF(DataLog!$C3452=\"Log value\",DataLog!AF3452,\"\")","v":""},{"$f":"IF(DataLog!$C3452=\"Log value\",DataLog!AG3452,\"\")","v":""},{"$f":"IF(DataLog!$C3452=\"Log value\",DataLog!AH3452,\"\")","v":""},{"$f":"IF(DataLog!$C3452=\"Log value\",DataLog!AI3452,\"\")","v":""},{"$f":"IF(DataLog!$C3452=\"Log value\",DataLog!AJ3452,\"\")","v":""},{"$f":"IF(DataLog!$C3452=\"Log value\",DataLog!AK3452,\"\")","v":""},{"$f":"IF(DataLog!$C3452=\"Log value\",DataLog!AL3452,\"\")","v":""},{"$f":"IF(DataLog!$C3452=\"Log value\",DataLog!AM3452,\"\")","v":""}]
[null,null,null,null,null,null,{"$f":"IF(DataLog!$C3453=\"Log value\",DataLog!D3453&\"_\"&TEXT(DataLog!B3453,\"åååå-mm-dd\"),\"\")","v":""},{"$f":"IF(DataLog!$C3453=\"Log value\",DataLog!E3453,\"\")","v":""},{"$f":"IF(DataLog!$C3453=\"Log value\",DataLog!F3453,\"\")","v":""},{"$f":"IF(DataLog!$C3453=\"Log value\",DataLog!G3453,\"\")","v":""},{"$f":"IF(DataLog!$C3453=\"Log value\",DataLog!H3453,\"\")","v":""},{"$f":"IF(DataLog!$C3453=\"Log value\",DataLog!I3453,\"\")","v":""},{"$f":"IF(DataLog!$C3453=\"Log value\",DataLog!J3453,\"\")","v":""},{"$f":"IF(DataLog!$C3453=\"Log value\",DataLog!K3453,\"\")","v":""},{"$f":"IF(DataLog!$C3453=\"Log value\",DataLog!L3453,\"\")","v":""},{"$f":"IF(DataLog!$C3453=\"Log value\",DataLog!M3453,\"\")","v":""},{"$f":"IF(DataLog!$C3453=\"Log value\",DataLog!N3453,\"\")","v":""},{"$f":"IF(DataLog!$C3453=\"Log value\",DataLog!O3453,\"\")","v":""},{"$f":"IF(DataLog!$C3453=\"Log value\",DataLog!P3453,\"\")","v":""},{"$f":"IF(DataLog!$C3453=\"Log value\",DataLog!Q3453,\"\")","v":""},{"$f":"IF(DataLog!$C3453=\"Log value\",DataLog!R3453,\"\")","v":""},{"$f":"IF(DataLog!$C3453=\"Log value\",DataLog!S3453,\"\")","v":""},{"$f":"IF(DataLog!$C3453=\"Log value\",DataLog!T3453,\"\")","v":""},{"$f":"IF(DataLog!$C3453=\"Log value\",DataLog!U3453,\"\")","v":""},{"$f":"IF(DataLog!$C3453=\"Log value\",DataLog!V3453,\"\")","v":""},{"$f":"IF(DataLog!$C3453=\"Log value\",DataLog!W3453,\"\")","v":""},{"$f":"IF(DataLog!$C3453=\"Log value\",DataLog!X3453,\"\")","v":""},{"$f":"IF(DataLog!$C3453=\"Log value\",DataLog!Y3453,\"\")","v":""},{"$f":"IF(DataLog!$C3453=\"Log value\",DataLog!Z3453,\"\")","v":""},{"$f":"IF(DataLog!$C3453=\"Log value\",DataLog!AA3453,\"\")","v":""},{"$f":"IF(DataLog!$C3453=\"Log value\",DataLog!AB3453,\"\")","v":""},{"$f":"IF(DataLog!$C3453=\"Log value\",DataLog!AC3453,\"\")","v":""},{"$f":"IF(DataLog!$C3453=\"Log value\",DataLog!AD3453,\"\")","v":""},{"$f":"IF(DataLog!$C3453=\"Log value\",DataLog!AE3453,\"\")","v":""},{"$f":"IF(DataLog!$C3453=\"Log value\",DataLog!AF3453,\"\")","v":""},{"$f":"IF(DataLog!$C3453=\"Log value\",DataLog!AG3453,\"\")","v":""},{"$f":"IF(DataLog!$C3453=\"Log value\",DataLog!AH3453,\"\")","v":""},{"$f":"IF(DataLog!$C3453=\"Log value\",DataLog!AI3453,\"\")","v":""},{"$f":"IF(DataLog!$C3453=\"Log value\",DataLog!AJ3453,\"\")","v":""},{"$f":"IF(DataLog!$C3453=\"Log value\",DataLog!AK3453,\"\")","v":""},{"$f":"IF(DataLog!$C3453=\"Log value\",DataLog!AL3453,\"\")","v":""},{"$f":"IF(DataLog!$C3453=\"Log value\",DataLog!AM3453,\"\")","v":""}]
[null,null,null,null,null,null,{"$f":"IF(DataLog!$C3454=\"Log value\",DataLog!D3454&\"_\"&TEXT(DataLog!B3454,\"åååå-mm-dd\"),\"\")","v":""},{"$f":"IF(DataLog!$C3454=\"Log value\",DataLog!E3454,\"\")","v":""},{"$f":"IF(DataLog!$C3454=\"Log value\",DataLog!F3454,\"\")","v":""},{"$f":"IF(DataLog!$C3454=\"Log value\",DataLog!G3454,\"\")","v":""},{"$f":"IF(DataLog!$C3454=\"Log value\",DataLog!H3454,\"\")","v":""},{"$f":"IF(DataLog!$C3454=\"Log value\",DataLog!I3454,\"\")","v":""},{"$f":"IF(DataLog!$C3454=\"Log value\",DataLog!J3454,\"\")","v":""},{"$f":"IF(DataLog!$C3454=\"Log value\",DataLog!K3454,\"\")","v":""},{"$f":"IF(DataLog!$C3454=\"Log value\",DataLog!L3454,\"\")","v":""},{"$f":"IF(DataLog!$C3454=\"Log value\",DataLog!M3454,\"\")","v":""},{"$f":"IF(DataLog!$C3454=\"Log value\",DataLog!N3454,\"\")","v":""},{"$f":"IF(DataLog!$C3454=\"Log value\",DataLog!O3454,\"\")","v":""},{"$f":"IF(DataLog!$C3454=\"Log value\",DataLog!P3454,\"\")","v":""},{"$f":"IF(DataLog!$C3454=\"Log value\",DataLog!Q3454,\"\")","v":""},{"$f":"IF(DataLog!$C3454=\"Log value\",DataLog!R3454,\"\")","v":""},{"$f":"IF(DataLog!$C3454=\"Log value\",DataLog!S3454,\"\")","v":""},{"$f":"IF(DataLog!$C3454=\"Log value\",DataLog!T3454,\"\")","v":""},{"$f":"IF(DataLog!$C3454=\"Log value\",DataLog!U3454,\"\")","v":""},{"$f":"IF(DataLog!$C3454=\"Log value\",DataLog!V3454,\"\")","v":""},{"$f":"IF(DataLog!$C3454=\"Log value\",DataLog!W3454,\"\")","v":""},{"$f":"IF(DataLog!$C3454=\"Log value\",DataLog!X3454,\"\")","v":""},{"$f":"IF(DataLog!$C3454=\"Log value\",DataLog!Y3454,\"\")","v":""},{"$f":"IF(DataLog!$C3454=\"Log value\",DataLog!Z3454,\"\")","v":""},{"$f":"IF(DataLog!$C3454=\"Log value\",DataLog!AA3454,\"\")","v":""},{"$f":"IF(DataLog!$C3454=\"Log value\",DataLog!AB3454,\"\")","v":""},{"$f":"IF(DataLog!$C3454=\"Log value\",DataLog!AC3454,\"\")","v":""},{"$f":"IF(DataLog!$C3454=\"Log value\",DataLog!AD3454,\"\")","v":""},{"$f":"IF(DataLog!$C3454=\"Log value\",DataLog!AE3454,\"\")","v":""},{"$f":"IF(DataLog!$C3454=\"Log value\",DataLog!AF3454,\"\")","v":""},{"$f":"IF(DataLog!$C3454=\"Log value\",DataLog!AG3454,\"\")","v":""},{"$f":"IF(DataLog!$C3454=\"Log value\",DataLog!AH3454,\"\")","v":""},{"$f":"IF(DataLog!$C3454=\"Log value\",DataLog!AI3454,\"\")","v":""},{"$f":"IF(DataLog!$C3454=\"Log value\",DataLog!AJ3454,\"\")","v":""},{"$f":"IF(DataLog!$C3454=\"Log value\",DataLog!AK3454,\"\")","v":""},{"$f":"IF(DataLog!$C3454=\"Log value\",DataLog!AL3454,\"\")","v":""},{"$f":"IF(DataLog!$C3454=\"Log value\",DataLog!AM3454,\"\")","v":""}]
[null,null,null,null,null,null,{"$f":"IF(DataLog!$C3455=\"Log value\",DataLog!D3455&\"_\"&TEXT(DataLog!B3455,\"åååå-mm-dd\"),\"\")","v":""},{"$f":"IF(DataLog!$C3455=\"Log value\",DataLog!E3455,\"\")","v":""},{"$f":"IF(DataLog!$C3455=\"Log value\",DataLog!F3455,\"\")","v":""},{"$f":"IF(DataLog!$C3455=\"Log value\",DataLog!G3455,\"\")","v":""},{"$f":"IF(DataLog!$C3455=\"Log value\",DataLog!H3455,\"\")","v":""},{"$f":"IF(DataLog!$C3455=\"Log value\",DataLog!I3455,\"\")","v":""},{"$f":"IF(DataLog!$C3455=\"Log value\",DataLog!J3455,\"\")","v":""},{"$f":"IF(DataLog!$C3455=\"Log value\",DataLog!K3455,\"\")","v":""},{"$f":"IF(DataLog!$C3455=\"Log value\",DataLog!L3455,\"\")","v":""},{"$f":"IF(DataLog!$C3455=\"Log value\",DataLog!M3455,\"\")","v":""},{"$f":"IF(DataLog!$C3455=\"Log value\",DataLog!N3455,\"\")","v":""},{"$f":"IF(DataLog!$C3455=\"Log value\",DataLog!O3455,\"\")","v":""},{"$f":"IF(DataLog!$C3455=\"Log value\",DataLog!P3455,\"\")","v":""},{"$f":"IF(DataLog!$C3455=\"Log value\",DataLog!Q3455,\"\")","v":""},{"$f":"IF(DataLog!$C3455=\"Log value\",DataLog!R3455,\"\")","v":""},{"$f":"IF(DataLog!$C3455=\"Log value\",DataLog!S3455,\"\")","v":""},{"$f":"IF(DataLog!$C3455=\"Log value\",DataLog!T3455,\"\")","v":""},{"$f":"IF(DataLog!$C3455=\"Log value\",DataLog!U3455,\"\")","v":""},{"$f":"IF(DataLog!$C3455=\"Log value\",DataLog!V3455,\"\")","v":""},{"$f":"IF(DataLog!$C3455=\"Log value\",DataLog!W3455,\"\")","v":""},{"$f":"IF(DataLog!$C3455=\"Log value\",DataLog!X3455,\"\")","v":""},{"$f":"IF(DataLog!$C3455=\"Log value\",DataLog!Y3455,\"\")","v":""},{"$f":"IF(DataLog!$C3455=\"Log value\",DataLog!Z3455,\"\")","v":""},{"$f":"IF(DataLog!$C3455=\"Log value\",DataLog!AA3455,\"\")","v":""},{"$f":"IF(DataLog!$C3455=\"Log value\",DataLog!AB3455,\"\")","v":""},{"$f":"IF(DataLog!$C3455=\"Log value\",DataLog!AC3455,\"\")","v":""},{"$f":"IF(DataLog!$C3455=\"Log value\",DataLog!AD3455,\"\")","v":""},{"$f":"IF(DataLog!$C3455=\"Log value\",DataLog!AE3455,\"\")","v":""},{"$f":"IF(DataLog!$C3455=\"Log value\",DataLog!AF3455,\"\")","v":""},{"$f":"IF(DataLog!$C3455=\"Log value\",DataLog!AG3455,\"\")","v":""},{"$f":"IF(DataLog!$C3455=\"Log value\",DataLog!AH3455,\"\")","v":""},{"$f":"IF(DataLog!$C3455=\"Log value\",DataLog!AI3455,\"\")","v":""},{"$f":"IF(DataLog!$C3455=\"Log value\",DataLog!AJ3455,\"\")","v":""},{"$f":"IF(DataLog!$C3455=\"Log value\",DataLog!AK3455,\"\")","v":""},{"$f":"IF(DataLog!$C3455=\"Log value\",DataLog!AL3455,\"\")","v":""},{"$f":"IF(DataLog!$C3455=\"Log value\",DataLog!AM3455,\"\")","v":""}]
[null,null,null,null,null,null,{"$f":"IF(DataLog!$C3456=\"Log value\",DataLog!D3456&\"_\"&TEXT(DataLog!B3456,\"åååå-mm-dd\"),\"\")","v":""},{"$f":"IF(DataLog!$C3456=\"Log value\",DataLog!E3456,\"\")","v":""},{"$f":"IF(DataLog!$C3456=\"Log value\",DataLog!F3456,\"\")","v":""},{"$f":"IF(DataLog!$C3456=\"Log value\",DataLog!G3456,\"\")","v":""},{"$f":"IF(DataLog!$C3456=\"Log value\",DataLog!H3456,\"\")","v":""},{"$f":"IF(DataLog!$C3456=\"Log value\",DataLog!I3456,\"\")","v":""},{"$f":"IF(DataLog!$C3456=\"Log value\",DataLog!J3456,\"\")","v":""},{"$f":"IF(DataLog!$C3456=\"Log value\",DataLog!K3456,\"\")","v":""},{"$f":"IF(DataLog!$C3456=\"Log value\",DataLog!L3456,\"\")","v":""},{"$f":"IF(DataLog!$C3456=\"Log value\",DataLog!M3456,\"\")","v":""},{"$f":"IF(DataLog!$C3456=\"Log value\",DataLog!N3456,\"\")","v":""},{"$f":"IF(DataLog!$C3456=\"Log value\",DataLog!O3456,\"\")","v":""},{"$f":"IF(DataLog!$C3456=\"Log value\",DataLog!P3456,\"\")","v":""},{"$f":"IF(DataLog!$C3456=\"Log value\",DataLog!Q3456,\"\")","v":""},{"$f":"IF(DataLog!$C3456=\"Log value\",DataLog!R3456,\"\")","v":""},{"$f":"IF(DataLog!$C3456=\"Log value\",DataLog!S3456,\"\")","v":""},{"$f":"IF(DataLog!$C3456=\"Log value\",DataLog!T3456,\"\")","v":""},{"$f":"IF(DataLog!$C3456=\"Log value\",DataLog!U3456,\"\")","v":""},{"$f":"IF(DataLog!$C3456=\"Log value\",DataLog!V3456,\"\")","v":""},{"$f":"IF(DataLog!$C3456=\"Log value\",DataLog!W3456,\"\")","v":""},{"$f":"IF(DataLog!$C3456=\"Log value\",DataLog!X3456,\"\")","v":""},{"$f":"IF(DataLog!$C3456=\"Log value\",DataLog!Y3456,\"\")","v":""},{"$f":"IF(DataLog!$C3456=\"Log value\",DataLog!Z3456,\"\")","v":""},{"$f":"IF(DataLog!$C3456=\"Log value\",DataLog!AA3456,\"\")","v":""},{"$f":"IF(DataLog!$C3456=\"Log value\",DataLog!AB3456,\"\")","v":""},{"$f":"IF(DataLog!$C3456=\"Log value\",DataLog!AC3456,\"\")","v":""},{"$f":"IF(DataLog!$C3456=\"Log value\",DataLog!AD3456,\"\")","v":""},{"$f":"IF(DataLog!$C3456=\"Log value\",DataLog!AE3456,\"\")","v":""},{"$f":"IF(DataLog!$C3456=\"Log value\",DataLog!AF3456,\"\")","v":""},{"$f":"IF(DataLog!$C3456=\"Log value\",DataLog!AG3456,\"\")","v":""},{"$f":"IF(DataLog!$C3456=\"Log value\",DataLog!AH3456,\"\")","v":""},{"$f":"IF(DataLog!$C3456=\"Log value\",DataLog!AI3456,\"\")","v":""},{"$f":"IF(DataLog!$C3456=\"Log value\",DataLog!AJ3456,\"\")","v":""},{"$f":"IF(DataLog!$C3456=\"Log value\",DataLog!AK3456,\"\")","v":""},{"$f":"IF(DataLog!$C3456=\"Log value\",DataLog!AL3456,\"\")","v":""},{"$f":"IF(DataLog!$C3456=\"Log value\",DataLog!AM3456,\"\")","v":""}]
[null,null,null,null,null,null,{"$f":"IF(DataLog!$C3457=\"Log value\",DataLog!D3457&\"_\"&TEXT(DataLog!B3457,\"åååå-mm-dd\"),\"\")","v":""},{"$f":"IF(DataLog!$C3457=\"Log value\",DataLog!E3457,\"\")","v":""},{"$f":"IF(DataLog!$C3457=\"Log value\",DataLog!F3457,\"\")","v":""},{"$f":"IF(DataLog!$C3457=\"Log value\",DataLog!G3457,\"\")","v":""},{"$f":"IF(DataLog!$C3457=\"Log value\",DataLog!H3457,\"\")","v":""},{"$f":"IF(DataLog!$C3457=\"Log value\",DataLog!I3457,\"\")","v":""},{"$f":"IF(DataLog!$C3457=\"Log value\",DataLog!J3457,\"\")","v":""},{"$f":"IF(DataLog!$C3457=\"Log value\",DataLog!K3457,\"\")","v":""},{"$f":"IF(DataLog!$C3457=\"Log value\",DataLog!L3457,\"\")","v":""},{"$f":"IF(DataLog!$C3457=\"Log value\",DataLog!M3457,\"\")","v":""},{"$f":"IF(DataLog!$C3457=\"Log value\",DataLog!N3457,\"\")","v":""},{"$f":"IF(DataLog!$C3457=\"Log value\",DataLog!O3457,\"\")","v":""},{"$f":"IF(DataLog!$C3457=\"Log value\",DataLog!P3457,\"\")","v":""},{"$f":"IF(DataLog!$C3457=\"Log value\",DataLog!Q3457,\"\")","v":""},{"$f":"IF(DataLog!$C3457=\"Log value\",DataLog!R3457,\"\")","v":""},{"$f":"IF(DataLog!$C3457=\"Log value\",DataLog!S3457,\"\")","v":""},{"$f":"IF(DataLog!$C3457=\"Log value\",DataLog!T3457,\"\")","v":""},{"$f":"IF(DataLog!$C3457=\"Log value\",DataLog!U3457,\"\")","v":""},{"$f":"IF(DataLog!$C3457=\"Log value\",DataLog!V3457,\"\")","v":""},{"$f":"IF(DataLog!$C3457=\"Log value\",DataLog!W3457,\"\")","v":""},{"$f":"IF(DataLog!$C3457=\"Log value\",DataLog!X3457,\"\")","v":""},{"$f":"IF(DataLog!$C3457=\"Log value\",DataLog!Y3457,\"\")","v":""},{"$f":"IF(DataLog!$C3457=\"Log value\",DataLog!Z3457,\"\")","v":""},{"$f":"IF(DataLog!$C3457=\"Log value\",DataLog!AA3457,\"\")","v":""},{"$f":"IF(DataLog!$C3457=\"Log value\",DataLog!AB3457,\"\")","v":""},{"$f":"IF(DataLog!$C3457=\"Log value\",DataLog!AC3457,\"\")","v":""},{"$f":"IF(DataLog!$C3457=\"Log value\",DataLog!AD3457,\"\")","v":""},{"$f":"IF(DataLog!$C3457=\"Log value\",DataLog!AE3457,\"\")","v":""},{"$f":"IF(DataLog!$C3457=\"Log value\",DataLog!AF3457,\"\")","v":""},{"$f":"IF(DataLog!$C3457=\"Log value\",DataLog!AG3457,\"\")","v":""},{"$f":"IF(DataLog!$C3457=\"Log value\",DataLog!AH3457,\"\")","v":""},{"$f":"IF(DataLog!$C3457=\"Log value\",DataLog!AI3457,\"\")","v":""},{"$f":"IF(DataLog!$C3457=\"Log value\",DataLog!AJ3457,\"\")","v":""},{"$f":"IF(DataLog!$C3457=\"Log value\",DataLog!AK3457,\"\")","v":""},{"$f":"IF(DataLog!$C3457=\"Log value\",DataLog!AL3457,\"\")","v":""},{"$f":"IF(DataLog!$C3457=\"Log value\",DataLog!AM3457,\"\")","v":""}]
[null,null,null,null,null,null,{"$f":"IF(DataLog!$C3458=\"Log value\",DataLog!D3458&\"_\"&TEXT(DataLog!B3458,\"åååå-mm-dd\"),\"\")","v":""},{"$f":"IF(DataLog!$C3458=\"Log value\",DataLog!E3458,\"\")","v":""},{"$f":"IF(DataLog!$C3458=\"Log value\",DataLog!F3458,\"\")","v":""},{"$f":"IF(DataLog!$C3458=\"Log value\",DataLog!G3458,\"\")","v":""},{"$f":"IF(DataLog!$C3458=\"Log value\",DataLog!H3458,\"\")","v":""},{"$f":"IF(DataLog!$C3458=\"Log value\",DataLog!I3458,\"\")","v":""},{"$f":"IF(DataLog!$C3458=\"Log value\",DataLog!J3458,\"\")","v":""},{"$f":"IF(DataLog!$C3458=\"Log value\",DataLog!K3458,\"\")","v":""},{"$f":"IF(DataLog!$C3458=\"Log value\",DataLog!L3458,\"\")","v":""},{"$f":"IF(DataLog!$C3458=\"Log value\",DataLog!M3458,\"\")","v":""},{"$f":"IF(DataLog!$C3458=\"Log value\",DataLog!N3458,\"\")","v":""},{"$f":"IF(DataLog!$C3458=\"Log value\",DataLog!O3458,\"\")","v":""},{"$f":"IF(DataLog!$C3458=\"Log value\",DataLog!P3458,\"\")","v":""},{"$f":"IF(DataLog!$C3458=\"Log value\",DataLog!Q3458,\"\")","v":""},{"$f":"IF(DataLog!$C3458=\"Log value\",DataLog!R3458,\"\")","v":""},{"$f":"IF(DataLog!$C3458=\"Log value\",DataLog!S3458,\"\")","v":""},{"$f":"IF(DataLog!$C3458=\"Log value\",DataLog!T3458,\"\")","v":""},{"$f":"IF(DataLog!$C3458=\"Log value\",DataLog!U3458,\"\")","v":""},{"$f":"IF(DataLog!$C3458=\"Log value\",DataLog!V3458,\"\")","v":""},{"$f":"IF(DataLog!$C3458=\"Log value\",DataLog!W3458,\"\")","v":""},{"$f":"IF(DataLog!$C3458=\"Log value\",DataLog!X3458,\"\")","v":""},{"$f":"IF(DataLog!$C3458=\"Log value\",DataLog!Y3458,\"\")","v":""},{"$f":"IF(DataLog!$C3458=\"Log value\",DataLog!Z3458,\"\")","v":""},{"$f":"IF(DataLog!$C3458=\"Log value\",DataLog!AA3458,\"\")","v":""},{"$f":"IF(DataLog!$C3458=\"Log value\",DataLog!AB3458,\"\")","v":""},{"$f":"IF(DataLog!$C3458=\"Log value\",DataLog!AC3458,\"\")","v":""},{"$f":"IF(DataLog!$C3458=\"Log value\",DataLog!AD3458,\"\")","v":""},{"$f":"IF(DataLog!$C3458=\"Log value\",DataLog!AE3458,\"\")","v":""},{"$f":"IF(DataLog!$C3458=\"Log value\",DataLog!AF3458,\"\")","v":""},{"$f":"IF(DataLog!$C3458=\"Log value\",DataLog!AG3458,\"\")","v":""},{"$f":"IF(DataLog!$C3458=\"Log value\",DataLog!AH3458,\"\")","v":""},{"$f":"IF(DataLog!$C3458=\"Log value\",DataLog!AI3458,\"\")","v":""},{"$f":"IF(DataLog!$C3458=\"Log value\",DataLog!AJ3458,\"\")","v":""},{"$f":"IF(DataLog!$C3458=\"Log value\",DataLog!AK3458,\"\")","v":""},{"$f":"IF(DataLog!$C3458=\"Log value\",DataLog!AL3458,\"\")","v":""},{"$f":"IF(DataLog!$C3458=\"Log value\",DataLog!AM3458,\"\")","v":""}]
[null,null,null,null,null,null,{"$f":"IF(DataLog!$C3459=\"Log value\",DataLog!D3459&\"_\"&TEXT(DataLog!B3459,\"åååå-mm-dd\"),\"\")","v":""},{"$f":"IF(DataLog!$C3459=\"Log value\",DataLog!E3459,\"\")","v":""},{"$f":"IF(DataLog!$C3459=\"Log value\",DataLog!F3459,\"\")","v":""},{"$f":"IF(DataLog!$C3459=\"Log value\",DataLog!G3459,\"\")","v":""},{"$f":"IF(DataLog!$C3459=\"Log value\",DataLog!H3459,\"\")","v":""},{"$f":"IF(DataLog!$C3459=\"Log value\",DataLog!I3459,\"\")","v":""},{"$f":"IF(DataLog!$C3459=\"Log value\",DataLog!J3459,\"\")","v":""},{"$f":"IF(DataLog!$C3459=\"Log value\",DataLog!K3459,\"\")","v":""},{"$f":"IF(DataLog!$C3459=\"Log value\",DataLog!L3459,\"\")","v":""},{"$f":"IF(DataLog!$C3459=\"Log value\",DataLog!M3459,\"\")","v":""},{"$f":"IF(DataLog!$C3459=\"Log value\",DataLog!N3459,\"\")","v":""},{"$f":"IF(DataLog!$C3459=\"Log value\",DataLog!O3459,\"\")","v":""},{"$f":"IF(DataLog!$C3459=\"Log value\",DataLog!P3459,\"\")","v":""},{"$f":"IF(DataLog!$C3459=\"Log value\",DataLog!Q3459,\"\")","v":""},{"$f":"IF(DataLog!$C3459=\"Log value\",DataLog!R3459,\"\")","v":""},{"$f":"IF(DataLog!$C3459=\"Log value\",DataLog!S3459,\"\")","v":""},{"$f":"IF(DataLog!$C3459=\"Log value\",DataLog!T3459,\"\")","v":""},{"$f":"IF(DataLog!$C3459=\"Log value\",DataLog!U3459,\"\")","v":""},{"$f":"IF(DataLog!$C3459=\"Log value\",DataLog!V3459,\"\")","v":""},{"$f":"IF(DataLog!$C3459=\"Log value\",DataLog!W3459,\"\")","v":""},{"$f":"IF(DataLog!$C3459=\"Log value\",DataLog!X3459,\"\")","v":""},{"$f":"IF(DataLog!$C3459=\"Log value\",DataLog!Y3459,\"\")","v":""},{"$f":"IF(DataLog!$C3459=\"Log value\",DataLog!Z3459,\"\")","v":""},{"$f":"IF(DataLog!$C3459=\"Log value\",DataLog!AA3459,\"\")","v":""},{"$f":"IF(DataLog!$C3459=\"Log value\",DataLog!AB3459,\"\")","v":""},{"$f":"IF(DataLog!$C3459=\"Log value\",DataLog!AC3459,\"\")","v":""},{"$f":"IF(DataLog!$C3459=\"Log value\",DataLog!AD3459,\"\")","v":""},{"$f":"IF(DataLog!$C3459=\"Log value\",DataLog!AE3459,\"\")","v":""},{"$f":"IF(DataLog!$C3459=\"Log value\",DataLog!AF3459,\"\")","v":""},{"$f":"IF(DataLog!$C3459=\"Log value\",DataLog!AG3459,\"\")","v":""},{"$f":"IF(DataLog!$C3459=\"Log value\",DataLog!AH3459,\"\")","v":""},{"$f":"IF(DataLog!$C3459=\"Log value\",DataLog!AI3459,\"\")","v":""},{"$f":"IF(DataLog!$C3459=\"Log value\",DataLog!AJ3459,\"\")","v":""},{"$f":"IF(DataLog!$C3459=\"Log value\",DataLog!AK3459,\"\")","v":""},{"$f":"IF(DataLog!$C3459=\"Log value\",DataLog!AL3459,\"\")","v":""},{"$f":"IF(DataLog!$C3459=\"Log value\",DataLog!AM3459,\"\")","v":""}]
[null,null,null,null,null,null,{"$f":"IF(DataLog!$C3460=\"Log value\",DataLog!D3460&\"_\"&TEXT(DataLog!B3460,\"åååå-mm-dd\"),\"\")","v":""},{"$f":"IF(DataLog!$C3460=\"Log value\",DataLog!E3460,\"\")","v":""},{"$f":"IF(DataLog!$C3460=\"Log value\",DataLog!F3460,\"\")","v":""},{"$f":"IF(DataLog!$C3460=\"Log value\",DataLog!G3460,\"\")","v":""},{"$f":"IF(DataLog!$C3460=\"Log value\",DataLog!H3460,\"\")","v":""},{"$f":"IF(DataLog!$C3460=\"Log value\",DataLog!I3460,\"\")","v":""},{"$f":"IF(DataLog!$C3460=\"Log value\",DataLog!J3460,\"\")","v":""},{"$f":"IF(DataLog!$C3460=\"Log value\",DataLog!K3460,\"\")","v":""},{"$f":"IF(DataLog!$C3460=\"Log value\",DataLog!L3460,\"\")","v":""},{"$f":"IF(DataLog!$C3460=\"Log value\",DataLog!M3460,\"\")","v":""},{"$f":"IF(DataLog!$C3460=\"Log value\",DataLog!N3460,\"\")","v":""},{"$f":"IF(DataLog!$C3460=\"Log value\",DataLog!O3460,\"\")","v":""},{"$f":"IF(DataLog!$C3460=\"Log value\",DataLog!P3460,\"\")","v":""},{"$f":"IF(DataLog!$C3460=\"Log value\",DataLog!Q3460,\"\")","v":""},{"$f":"IF(DataLog!$C3460=\"Log value\",DataLog!R3460,\"\")","v":""},{"$f":"IF(DataLog!$C3460=\"Log value\",DataLog!S3460,\"\")","v":""},{"$f":"IF(DataLog!$C3460=\"Log value\",DataLog!T3460,\"\")","v":""},{"$f":"IF(DataLog!$C3460=\"Log value\",DataLog!U3460,\"\")","v":""},{"$f":"IF(DataLog!$C3460=\"Log value\",DataLog!V3460,\"\")","v":""},{"$f":"IF(DataLog!$C3460=\"Log value\",DataLog!W3460,\"\")","v":""},{"$f":"IF(DataLog!$C3460=\"Log value\",DataLog!X3460,\"\")","v":""},{"$f":"IF(DataLog!$C3460=\"Log value\",DataLog!Y3460,\"\")","v":""},{"$f":"IF(DataLog!$C3460=\"Log value\",DataLog!Z3460,\"\")","v":""},{"$f":"IF(DataLog!$C3460=\"Log value\",DataLog!AA3460,\"\")","v":""},{"$f":"IF(DataLog!$C3460=\"Log value\",DataLog!AB3460,\"\")","v":""},{"$f":"IF(DataLog!$C3460=\"Log value\",DataLog!AC3460,\"\")","v":""},{"$f":"IF(DataLog!$C3460=\"Log value\",DataLog!AD3460,\"\")","v":""},{"$f":"IF(DataLog!$C3460=\"Log value\",DataLog!AE3460,\"\")","v":""},{"$f":"IF(DataLog!$C3460=\"Log value\",DataLog!AF3460,\"\")","v":""},{"$f":"IF(DataLog!$C3460=\"Log value\",DataLog!AG3460,\"\")","v":""},{"$f":"IF(DataLog!$C3460=\"Log value\",DataLog!AH3460,\"\")","v":""},{"$f":"IF(DataLog!$C3460=\"Log value\",DataLog!AI3460,\"\")","v":""},{"$f":"IF(DataLog!$C3460=\"Log value\",DataLog!AJ3460,\"\")","v":""},{"$f":"IF(DataLog!$C3460=\"Log value\",DataLog!AK3460,\"\")","v":""},{"$f":"IF(DataLog!$C3460=\"Log value\",DataLog!AL3460,\"\")","v":""},{"$f":"IF(DataLog!$C3460=\"Log value\",DataLog!AM3460,\"\")","v":""}]
[null,null,null,null,null,null,{"$f":"IF(DataLog!$C3461=\"Log value\",DataLog!D3461&\"_\"&TEXT(DataLog!B3461,\"åååå-mm-dd\"),\"\")","v":""},{"$f":"IF(DataLog!$C3461=\"Log value\",DataLog!E3461,\"\")","v":""},{"$f":"IF(DataLog!$C3461=\"Log value\",DataLog!F3461,\"\")","v":""},{"$f":"IF(DataLog!$C3461=\"Log value\",DataLog!G3461,\"\")","v":""},{"$f":"IF(DataLog!$C3461=\"Log value\",DataLog!H3461,\"\")","v":""},{"$f":"IF(DataLog!$C3461=\"Log value\",DataLog!I3461,\"\")","v":""},{"$f":"IF(DataLog!$C3461=\"Log value\",DataLog!J3461,\"\")","v":""},{"$f":"IF(DataLog!$C3461=\"Log value\",DataLog!K3461,\"\")","v":""},{"$f":"IF(DataLog!$C3461=\"Log value\",DataLog!L3461,\"\")","v":""},{"$f":"IF(DataLog!$C3461=\"Log value\",DataLog!M3461,\"\")","v":""},{"$f":"IF(DataLog!$C3461=\"Log value\",DataLog!N3461,\"\")","v":""},{"$f":"IF(DataLog!$C3461=\"Log value\",DataLog!O3461,\"\")","v":""},{"$f":"IF(DataLog!$C3461=\"Log value\",DataLog!P3461,\"\")","v":""},{"$f":"IF(DataLog!$C3461=\"Log value\",DataLog!Q3461,\"\")","v":""},{"$f":"IF(DataLog!$C3461=\"Log value\",DataLog!R3461,\"\")","v":""},{"$f":"IF(DataLog!$C3461=\"Log value\",DataLog!S3461,\"\")","v":""},{"$f":"IF(DataLog!$C3461=\"Log value\",DataLog!T3461,\"\")","v":""},{"$f":"IF(DataLog!$C3461=\"Log value\",DataLog!U3461,\"\")","v":""},{"$f":"IF(DataLog!$C3461=\"Log value\",DataLog!V3461,\"\")","v":""},{"$f":"IF(DataLog!$C3461=\"Log value\",DataLog!W3461,\"\")","v":""},{"$f":"IF(DataLog!$C3461=\"Log value\",DataLog!X3461,\"\")","v":""},{"$f":"IF(DataLog!$C3461=\"Log value\",DataLog!Y3461,\"\")","v":""},{"$f":"IF(DataLog!$C3461=\"Log value\",DataLog!Z3461,\"\")","v":""},{"$f":"IF(DataLog!$C3461=\"Log value\",DataLog!AA3461,\"\")","v":""},{"$f":"IF(DataLog!$C3461=\"Log value\",DataLog!AB3461,\"\")","v":""},{"$f":"IF(DataLog!$C3461=\"Log value\",DataLog!AC3461,\"\")","v":""},{"$f":"IF(DataLog!$C3461=\"Log value\",DataLog!AD3461,\"\")","v":""},{"$f":"IF(DataLog!$C3461=\"Log value\",DataLog!AE3461,\"\")","v":""},{"$f":"IF(DataLog!$C3461=\"Log value\",DataLog!AF3461,\"\")","v":""},{"$f":"IF(DataLog!$C3461=\"Log value\",DataLog!AG3461,\"\")","v":""},{"$f":"IF(DataLog!$C3461=\"Log value\",DataLog!AH3461,\"\")","v":""},{"$f":"IF(DataLog!$C3461=\"Log value\",DataLog!AI3461,\"\")","v":""},{"$f":"IF(DataLog!$C3461=\"Log value\",DataLog!AJ3461,\"\")","v":""},{"$f":"IF(DataLog!$C3461=\"Log value\",DataLog!AK3461,\"\")","v":""},{"$f":"IF(DataLog!$C3461=\"Log value\",DataLog!AL3461,\"\")","v":""},{"$f":"IF(DataLog!$C3461=\"Log value\",DataLog!AM3461,\"\")","v":""}]
[null,null,null,null,null,null,{"$f":"IF(DataLog!$C3462=\"Log value\",DataLog!D3462&\"_\"&TEXT(DataLog!B3462,\"åååå-mm-dd\"),\"\")","v":""},{"$f":"IF(DataLog!$C3462=\"Log value\",DataLog!E3462,\"\")","v":""},{"$f":"IF(DataLog!$C3462=\"Log value\",DataLog!F3462,\"\")","v":""},{"$f":"IF(DataLog!$C3462=\"Log value\",DataLog!G3462,\"\")","v":""},{"$f":"IF(DataLog!$C3462=\"Log value\",DataLog!H3462,\"\")","v":""},{"$f":"IF(DataLog!$C3462=\"Log value\",DataLog!I3462,\"\")","v":""},{"$f":"IF(DataLog!$C3462=\"Log value\",DataLog!J3462,\"\")","v":""},{"$f":"IF(DataLog!$C3462=\"Log value\",DataLog!K3462,\"\")","v":""},{"$f":"IF(DataLog!$C3462=\"Log value\",DataLog!L3462,\"\")","v":""},{"$f":"IF(DataLog!$C3462=\"Log value\",DataLog!M3462,\"\")","v":""},{"$f":"IF(DataLog!$C3462=\"Log value\",DataLog!N3462,\"\")","v":""},{"$f":"IF(DataLog!$C3462=\"Log value\",DataLog!O3462,\"\")","v":""},{"$f":"IF(DataLog!$C3462=\"Log value\",DataLog!P3462,\"\")","v":""},{"$f":"IF(DataLog!$C3462=\"Log value\",DataLog!Q3462,\"\")","v":""},{"$f":"IF(DataLog!$C3462=\"Log value\",DataLog!R3462,\"\")","v":""},{"$f":"IF(DataLog!$C3462=\"Log value\",DataLog!S3462,\"\")","v":""},{"$f":"IF(DataLog!$C3462=\"Log value\",DataLog!T3462,\"\")","v":""},{"$f":"IF(DataLog!$C3462=\"Log value\",DataLog!U3462,\"\")","v":""},{"$f":"IF(DataLog!$C3462=\"Log value\",DataLog!V3462,\"\")","v":""},{"$f":"IF(DataLog!$C3462=\"Log value\",DataLog!W3462,\"\")","v":""},{"$f":"IF(DataLog!$C3462=\"Log value\",DataLog!X3462,\"\")","v":""},{"$f":"IF(DataLog!$C3462=\"Log value\",DataLog!Y3462,\"\")","v":""},{"$f":"IF(DataLog!$C3462=\"Log value\",DataLog!Z3462,\"\")","v":""},{"$f":"IF(DataLog!$C3462=\"Log value\",DataLog!AA3462,\"\")","v":""},{"$f":"IF(DataLog!$C3462=\"Log value\",DataLog!AB3462,\"\")","v":""},{"$f":"IF(DataLog!$C3462=\"Log value\",DataLog!AC3462,\"\")","v":""},{"$f":"IF(DataLog!$C3462=\"Log value\",DataLog!AD3462,\"\")","v":""},{"$f":"IF(DataLog!$C3462=\"Log value\",DataLog!AE3462,\"\")","v":""},{"$f":"IF(DataLog!$C3462=\"Log value\",DataLog!AF3462,\"\")","v":""},{"$f":"IF(DataLog!$C3462=\"Log value\",DataLog!AG3462,\"\")","v":""},{"$f":"IF(DataLog!$C3462=\"Log value\",DataLog!AH3462,\"\")","v":""},{"$f":"IF(DataLog!$C3462=\"Log value\",DataLog!AI3462,\"\")","v":""},{"$f":"IF(DataLog!$C3462=\"Log value\",DataLog!AJ3462,\"\")","v":""},{"$f":"IF(DataLog!$C3462=\"Log value\",DataLog!AK3462,\"\")","v":""},{"$f":"IF(DataLog!$C3462=\"Log value\",DataLog!AL3462,\"\")","v":""},{"$f":"IF(DataLog!$C3462=\"Log value\",DataLog!AM3462,\"\")","v":""}]
[null,null,null,null,null,null,{"$f":"IF(DataLog!$C3463=\"Log value\",DataLog!D3463&\"_\"&TEXT(DataLog!B3463,\"åååå-mm-dd\"),\"\")","v":""},{"$f":"IF(DataLog!$C3463=\"Log value\",DataLog!E3463,\"\")","v":""},{"$f":"IF(DataLog!$C3463=\"Log value\",DataLog!F3463,\"\")","v":""},{"$f":"IF(DataLog!$C3463=\"Log value\",DataLog!G3463,\"\")","v":""},{"$f":"IF(DataLog!$C3463=\"Log value\",DataLog!H3463,\"\")","v":""},{"$f":"IF(DataLog!$C3463=\"Log value\",DataLog!I3463,\"\")","v":""},{"$f":"IF(DataLog!$C3463=\"Log value\",DataLog!J3463,\"\")","v":""},{"$f":"IF(DataLog!$C3463=\"Log value\",DataLog!K3463,\"\")","v":""},{"$f":"IF(DataLog!$C3463=\"Log value\",DataLog!L3463,\"\")","v":""},{"$f":"IF(DataLog!$C3463=\"Log value\",DataLog!M3463,\"\")","v":""},{"$f":"IF(DataLog!$C3463=\"Log value\",DataLog!N3463,\"\")","v":""},{"$f":"IF(DataLog!$C3463=\"Log value\",DataLog!O3463,\"\")","v":""},{"$f":"IF(DataLog!$C3463=\"Log value\",DataLog!P3463,\"\")","v":""},{"$f":"IF(DataLog!$C3463=\"Log value\",DataLog!Q3463,\"\")","v":""},{"$f":"IF(DataLog!$C3463=\"Log value\",DataLog!R3463,\"\")","v":""},{"$f":"IF(DataLog!$C3463=\"Log value\",DataLog!S3463,\"\")","v":""},{"$f":"IF(DataLog!$C3463=\"Log value\",DataLog!T3463,\"\")","v":""},{"$f":"IF(DataLog!$C3463=\"Log value\",DataLog!U3463,\"\")","v":""},{"$f":"IF(DataLog!$C3463=\"Log value\",DataLog!V3463,\"\")","v":""},{"$f":"IF(DataLog!$C3463=\"Log value\",DataLog!W3463,\"\")","v":""},{"$f":"IF(DataLog!$C3463=\"Log value\",DataLog!X3463,\"\")","v":""},{"$f":"IF(DataLog!$C3463=\"Log value\",DataLog!Y3463,\"\")","v":""},{"$f":"IF(DataLog!$C3463=\"Log value\",DataLog!Z3463,\"\")","v":""},{"$f":"IF(DataLog!$C3463=\"Log value\",DataLog!AA3463,\"\")","v":""},{"$f":"IF(DataLog!$C3463=\"Log value\",DataLog!AB3463,\"\")","v":""},{"$f":"IF(DataLog!$C3463=\"Log value\",DataLog!AC3463,\"\")","v":""},{"$f":"IF(DataLog!$C3463=\"Log value\",DataLog!AD3463,\"\")","v":""},{"$f":"IF(DataLog!$C3463=\"Log value\",DataLog!AE3463,\"\")","v":""},{"$f":"IF(DataLog!$C3463=\"Log value\",DataLog!AF3463,\"\")","v":""},{"$f":"IF(DataLog!$C3463=\"Log value\",DataLog!AG3463,\"\")","v":""},{"$f":"IF(DataLog!$C3463=\"Log value\",DataLog!AH3463,\"\")","v":""},{"$f":"IF(DataLog!$C3463=\"Log value\",DataLog!AI3463,\"\")","v":""},{"$f":"IF(DataLog!$C3463=\"Log value\",DataLog!AJ3463,\"\")","v":""},{"$f":"IF(DataLog!$C3463=\"Log value\",DataLog!AK3463,\"\")","v":""},{"$f":"IF(DataLog!$C3463=\"Log value\",DataLog!AL3463,\"\")","v":""},{"$f":"IF(DataLog!$C3463=\"Log value\",DataLog!AM3463,\"\")","v":""}]
[null,null,null,null,null,null,{"$f":"IF(DataLog!$C3464=\"Log value\",DataLog!D3464&\"_\"&TEXT(DataLog!B3464,\"åååå-mm-dd\"),\"\")","v":""},{"$f":"IF(DataLog!$C3464=\"Log value\",DataLog!E3464,\"\")","v":""},{"$f":"IF(DataLog!$C3464=\"Log value\",DataLog!F3464,\"\")","v":""},{"$f":"IF(DataLog!$C3464=\"Log value\",DataLog!G3464,\"\")","v":""},{"$f":"IF(DataLog!$C3464=\"Log value\",DataLog!H3464,\"\")","v":""},{"$f":"IF(DataLog!$C3464=\"Log value\",DataLog!I3464,\"\")","v":""},{"$f":"IF(DataLog!$C3464=\"Log value\",DataLog!J3464,\"\")","v":""},{"$f":"IF(DataLog!$C3464=\"Log value\",DataLog!K3464,\"\")","v":""},{"$f":"IF(DataLog!$C3464=\"Log value\",DataLog!L3464,\"\")","v":""},{"$f":"IF(DataLog!$C3464=\"Log value\",DataLog!M3464,\"\")","v":""},{"$f":"IF(DataLog!$C3464=\"Log value\",DataLog!N3464,\"\")","v":""},{"$f":"IF(DataLog!$C3464=\"Log value\",DataLog!O3464,\"\")","v":""},{"$f":"IF(DataLog!$C3464=\"Log value\",DataLog!P3464,\"\")","v":""},{"$f":"IF(DataLog!$C3464=\"Log value\",DataLog!Q3464,\"\")","v":""},{"$f":"IF(DataLog!$C3464=\"Log value\",DataLog!R3464,\"\")","v":""},{"$f":"IF(DataLog!$C3464=\"Log value\",DataLog!S3464,\"\")","v":""},{"$f":"IF(DataLog!$C3464=\"Log value\",DataLog!T3464,\"\")","v":""},{"$f":"IF(DataLog!$C3464=\"Log value\",DataLog!U3464,\"\")","v":""},{"$f":"IF(DataLog!$C3464=\"Log value\",DataLog!V3464,\"\")","v":""},{"$f":"IF(DataLog!$C3464=\"Log value\",DataLog!W3464,\"\")","v":""},{"$f":"IF(DataLog!$C3464=\"Log value\",DataLog!X3464,\"\")","v":""},{"$f":"IF(DataLog!$C3464=\"Log value\",DataLog!Y3464,\"\")","v":""},{"$f":"IF(DataLog!$C3464=\"Log value\",DataLog!Z3464,\"\")","v":""},{"$f":"IF(DataLog!$C3464=\"Log value\",DataLog!AA3464,\"\")","v":""},{"$f":"IF(DataLog!$C3464=\"Log value\",DataLog!AB3464,\"\")","v":""},{"$f":"IF(DataLog!$C3464=\"Log value\",DataLog!AC3464,\"\")","v":""},{"$f":"IF(DataLog!$C3464=\"Log value\",DataLog!AD3464,\"\")","v":""},{"$f":"IF(DataLog!$C3464=\"Log value\",DataLog!AE3464,\"\")","v":""},{"$f":"IF(DataLog!$C3464=\"Log value\",DataLog!AF3464,\"\")","v":""},{"$f":"IF(DataLog!$C3464=\"Log value\",DataLog!AG3464,\"\")","v":""},{"$f":"IF(DataLog!$C3464=\"Log value\",DataLog!AH3464,\"\")","v":""},{"$f":"IF(DataLog!$C3464=\"Log value\",DataLog!AI3464,\"\")","v":""},{"$f":"IF(DataLog!$C3464=\"Log value\",DataLog!AJ3464,\"\")","v":""},{"$f":"IF(DataLog!$C3464=\"Log value\",DataLog!AK3464,\"\")","v":""},{"$f":"IF(DataLog!$C3464=\"Log value\",DataLog!AL3464,\"\")","v":""},{"$f":"IF(DataLog!$C3464=\"Log value\",DataLog!AM3464,\"\")","v":""}]
[null,null,null,null,null,null,{"$f":"IF(DataLog!$C3465=\"Log value\",DataLog!D3465&\"_\"&TEXT(DataLog!B3465,\"åååå-mm-dd\"),\"\")","v":""},{"$f":"IF(DataLog!$C3465=\"Log value\",DataLog!E3465,\"\")","v":""},{"$f":"IF(DataLog!$C3465=\"Log value\",DataLog!F3465,\"\")","v":""},{"$f":"IF(DataLog!$C3465=\"Log value\",DataLog!G3465,\"\")","v":""},{"$f":"IF(DataLog!$C3465=\"Log value\",DataLog!H3465,\"\")","v":""},{"$f":"IF(DataLog!$C3465=\"Log value\",DataLog!I3465,\"\")","v":""},{"$f":"IF(DataLog!$C3465=\"Log value\",DataLog!J3465,\"\")","v":""},{"$f":"IF(DataLog!$C3465=\"Log value\",DataLog!K3465,\"\")","v":""},{"$f":"IF(DataLog!$C3465=\"Log value\",DataLog!L3465,\"\")","v":""},{"$f":"IF(DataLog!$C3465=\"Log value\",DataLog!M3465,\"\")","v":""},{"$f":"IF(DataLog!$C3465=\"Log value\",DataLog!N3465,\"\")","v":""},{"$f":"IF(DataLog!$C3465=\"Log value\",DataLog!O3465,\"\")","v":""},{"$f":"IF(DataLog!$C3465=\"Log value\",DataLog!P3465,\"\")","v":""},{"$f":"IF(DataLog!$C3465=\"Log value\",DataLog!Q3465,\"\")","v":""},{"$f":"IF(DataLog!$C3465=\"Log value\",DataLog!R3465,\"\")","v":""},{"$f":"IF(DataLog!$C3465=\"Log value\",DataLog!S3465,\"\")","v":""},{"$f":"IF(DataLog!$C3465=\"Log value\",DataLog!T3465,\"\")","v":""},{"$f":"IF(DataLog!$C3465=\"Log value\",DataLog!U3465,\"\")","v":""},{"$f":"IF(DataLog!$C3465=\"Log value\",DataLog!V3465,\"\")","v":""},{"$f":"IF(DataLog!$C3465=\"Log value\",DataLog!W3465,\"\")","v":""},{"$f":"IF(DataLog!$C3465=\"Log value\",DataLog!X3465,\"\")","v":""},{"$f":"IF(DataLog!$C3465=\"Log value\",DataLog!Y3465,\"\")","v":""},{"$f":"IF(DataLog!$C3465=\"Log value\",DataLog!Z3465,\"\")","v":""},{"$f":"IF(DataLog!$C3465=\"Log value\",DataLog!AA3465,\"\")","v":""},{"$f":"IF(DataLog!$C3465=\"Log value\",DataLog!AB3465,\"\")","v":""},{"$f":"IF(DataLog!$C3465=\"Log value\",DataLog!AC3465,\"\")","v":""},{"$f":"IF(DataLog!$C3465=\"Log value\",DataLog!AD3465,\"\")","v":""},{"$f":"IF(DataLog!$C3465=\"Log value\",DataLog!AE3465,\"\")","v":""},{"$f":"IF(DataLog!$C3465=\"Log value\",DataLog!AF3465,\"\")","v":""},{"$f":"IF(DataLog!$C3465=\"Log value\",DataLog!AG3465,\"\")","v":""},{"$f":"IF(DataLog!$C3465=\"Log value\",DataLog!AH3465,\"\")","v":""},{"$f":"IF(DataLog!$C3465=\"Log value\",DataLog!AI3465,\"\")","v":""},{"$f":"IF(DataLog!$C3465=\"Log value\",DataLog!AJ3465,\"\")","v":""},{"$f":"IF(DataLog!$C3465=\"Log value\",DataLog!AK3465,\"\")","v":""},{"$f":"IF(DataLog!$C3465=\"Log value\",DataLog!AL3465,\"\")","v":""},{"$f":"IF(DataLog!$C3465=\"Log value\",DataLog!AM3465,\"\")","v":""}]
[null,null,null,null,null,null,{"$f":"IF(DataLog!$C3466=\"Log value\",DataLog!D3466&\"_\"&TEXT(DataLog!B3466,\"åååå-mm-dd\"),\"\")","v":""},{"$f":"IF(DataLog!$C3466=\"Log value\",DataLog!E3466,\"\")","v":""},{"$f":"IF(DataLog!$C3466=\"Log value\",DataLog!F3466,\"\")","v":""},{"$f":"IF(DataLog!$C3466=\"Log value\",DataLog!G3466,\"\")","v":""},{"$f":"IF(DataLog!$C3466=\"Log value\",DataLog!H3466,\"\")","v":""},{"$f":"IF(DataLog!$C3466=\"Log value\",DataLog!I3466,\"\")","v":""},{"$f":"IF(DataLog!$C3466=\"Log value\",DataLog!J3466,\"\")","v":""},{"$f":"IF(DataLog!$C3466=\"Log value\",DataLog!K3466,\"\")","v":""},{"$f":"IF(DataLog!$C3466=\"Log value\",DataLog!L3466,\"\")","v":""},{"$f":"IF(DataLog!$C3466=\"Log value\",DataLog!M3466,\"\")","v":""},{"$f":"IF(DataLog!$C3466=\"Log value\",DataLog!N3466,\"\")","v":""},{"$f":"IF(DataLog!$C3466=\"Log value\",DataLog!O3466,\"\")","v":""},{"$f":"IF(DataLog!$C3466=\"Log value\",DataLog!P3466,\"\")","v":""},{"$f":"IF(DataLog!$C3466=\"Log value\",DataLog!Q3466,\"\")","v":""},{"$f":"IF(DataLog!$C3466=\"Log value\",DataLog!R3466,\"\")","v":""},{"$f":"IF(DataLog!$C3466=\"Log value\",DataLog!S3466,\"\")","v":""},{"$f":"IF(DataLog!$C3466=\"Log value\",DataLog!T3466,\"\")","v":""},{"$f":"IF(DataLog!$C3466=\"Log value\",DataLog!U3466,\"\")","v":""},{"$f":"IF(DataLog!$C3466=\"Log value\",DataLog!V3466,\"\")","v":""},{"$f":"IF(DataLog!$C3466=\"Log value\",DataLog!W3466,\"\")","v":""},{"$f":"IF(DataLog!$C3466=\"Log value\",DataLog!X3466,\"\")","v":""},{"$f":"IF(DataLog!$C3466=\"Log value\",DataLog!Y3466,\"\")","v":""},{"$f":"IF(DataLog!$C3466=\"Log value\",DataLog!Z3466,\"\")","v":""},{"$f":"IF(DataLog!$C3466=\"Log value\",DataLog!AA3466,\"\")","v":""},{"$f":"IF(DataLog!$C3466=\"Log value\",DataLog!AB3466,\"\")","v":""},{"$f":"IF(DataLog!$C3466=\"Log value\",DataLog!AC3466,\"\")","v":""},{"$f":"IF(DataLog!$C3466=\"Log value\",DataLog!AD3466,\"\")","v":""},{"$f":"IF(DataLog!$C3466=\"Log value\",DataLog!AE3466,\"\")","v":""},{"$f":"IF(DataLog!$C3466=\"Log value\",DataLog!AF3466,\"\")","v":""},{"$f":"IF(DataLog!$C3466=\"Log value\",DataLog!AG3466,\"\")","v":""},{"$f":"IF(DataLog!$C3466=\"Log value\",DataLog!AH3466,\"\")","v":""},{"$f":"IF(DataLog!$C3466=\"Log value\",DataLog!AI3466,\"\")","v":""},{"$f":"IF(DataLog!$C3466=\"Log value\",DataLog!AJ3466,\"\")","v":""},{"$f":"IF(DataLog!$C3466=\"Log value\",DataLog!AK3466,\"\")","v":""},{"$f":"IF(DataLog!$C3466=\"Log value\",DataLog!AL3466,\"\")","v":""},{"$f":"IF(DataLog!$C3466=\"Log value\",DataLog!AM3466,\"\")","v":""}]
[null,null,null,null,null,null,{"$f":"IF(DataLog!$C3467=\"Log value\",DataLog!D3467&\"_\"&TEXT(DataLog!B3467,\"åååå-mm-dd\"),\"\")","v":""},{"$f":"IF(DataLog!$C3467=\"Log value\",DataLog!E3467,\"\")","v":""},{"$f":"IF(DataLog!$C3467=\"Log value\",DataLog!F3467,\"\")","v":""},{"$f":"IF(DataLog!$C3467=\"Log value\",DataLog!G3467,\"\")","v":""},{"$f":"IF(DataLog!$C3467=\"Log value\",DataLog!H3467,\"\")","v":""},{"$f":"IF(DataLog!$C3467=\"Log value\",DataLog!I3467,\"\")","v":""},{"$f":"IF(DataLog!$C3467=\"Log value\",DataLog!J3467,\"\")","v":""},{"$f":"IF(DataLog!$C3467=\"Log value\",DataLog!K3467,\"\")","v":""},{"$f":"IF(DataLog!$C3467=\"Log value\",DataLog!L3467,\"\")","v":""},{"$f":"IF(DataLog!$C3467=\"Log value\",DataLog!M3467,\"\")","v":""},{"$f":"IF(DataLog!$C3467=\"Log value\",DataLog!N3467,\"\")","v":""},{"$f":"IF(DataLog!$C3467=\"Log value\",DataLog!O3467,\"\")","v":""},{"$f":"IF(DataLog!$C3467=\"Log value\",DataLog!P3467,\"\")","v":""},{"$f":"IF(DataLog!$C3467=\"Log value\",DataLog!Q3467,\"\")","v":""},{"$f":"IF(DataLog!$C3467=\"Log value\",DataLog!R3467,\"\")","v":""},{"$f":"IF(DataLog!$C3467=\"Log value\",DataLog!S3467,\"\")","v":""},{"$f":"IF(DataLog!$C3467=\"Log value\",DataLog!T3467,\"\")","v":""},{"$f":"IF(DataLog!$C3467=\"Log value\",DataLog!U3467,\"\")","v":""},{"$f":"IF(DataLog!$C3467=\"Log value\",DataLog!V3467,\"\")","v":""},{"$f":"IF(DataLog!$C3467=\"Log value\",DataLog!W3467,\"\")","v":""},{"$f":"IF(DataLog!$C3467=\"Log value\",DataLog!X3467,\"\")","v":""},{"$f":"IF(DataLog!$C3467=\"Log value\",DataLog!Y3467,\"\")","v":""},{"$f":"IF(DataLog!$C3467=\"Log value\",DataLog!Z3467,\"\")","v":""},{"$f":"IF(DataLog!$C3467=\"Log value\",DataLog!AA3467,\"\")","v":""},{"$f":"IF(DataLog!$C3467=\"Log value\",DataLog!AB3467,\"\")","v":""},{"$f":"IF(DataLog!$C3467=\"Log value\",DataLog!AC3467,\"\")","v":""},{"$f":"IF(DataLog!$C3467=\"Log value\",DataLog!AD3467,\"\")","v":""},{"$f":"IF(DataLog!$C3467=\"Log value\",DataLog!AE3467,\"\")","v":""},{"$f":"IF(DataLog!$C3467=\"Log value\",DataLog!AF3467,\"\")","v":""},{"$f":"IF(DataLog!$C3467=\"Log value\",DataLog!AG3467,\"\")","v":""},{"$f":"IF(DataLog!$C3467=\"Log value\",DataLog!AH3467,\"\")","v":""},{"$f":"IF(DataLog!$C3467=\"Log value\",DataLog!AI3467,\"\")","v":""},{"$f":"IF(DataLog!$C3467=\"Log value\",DataLog!AJ3467,\"\")","v":""},{"$f":"IF(DataLog!$C3467=\"Log value\",DataLog!AK3467,\"\")","v":""},{"$f":"IF(DataLog!$C3467=\"Log value\",DataLog!AL3467,\"\")","v":""},{"$f":"IF(DataLog!$C3467=\"Log value\",DataLog!AM3467,\"\")","v":""}]
[null,null,null,null,null,null,{"$f":"IF(DataLog!$C3468=\"Log value\",DataLog!D3468&\"_\"&TEXT(DataLog!B3468,\"åååå-mm-dd\"),\"\")","v":""},{"$f":"IF(DataLog!$C3468=\"Log value\",DataLog!E3468,\"\")","v":""},{"$f":"IF(DataLog!$C3468=\"Log value\",DataLog!F3468,\"\")","v":""},{"$f":"IF(DataLog!$C3468=\"Log value\",DataLog!G3468,\"\")","v":""},{"$f":"IF(DataLog!$C3468=\"Log value\",DataLog!H3468,\"\")","v":""},{"$f":"IF(DataLog!$C3468=\"Log value\",DataLog!I3468,\"\")","v":""},{"$f":"IF(DataLog!$C3468=\"Log value\",DataLog!J3468,\"\")","v":""},{"$f":"IF(DataLog!$C3468=\"Log value\",DataLog!K3468,\"\")","v":""},{"$f":"IF(DataLog!$C3468=\"Log value\",DataLog!L3468,\"\")","v":""},{"$f":"IF(DataLog!$C3468=\"Log value\",DataLog!M3468,\"\")","v":""},{"$f":"IF(DataLog!$C3468=\"Log value\",DataLog!N3468,\"\")","v":""},{"$f":"IF(DataLog!$C3468=\"Log value\",DataLog!O3468,\"\")","v":""},{"$f":"IF(DataLog!$C3468=\"Log value\",DataLog!P3468,\"\")","v":""},{"$f":"IF(DataLog!$C3468=\"Log value\",DataLog!Q3468,\"\")","v":""},{"$f":"IF(DataLog!$C3468=\"Log value\",DataLog!R3468,\"\")","v":""},{"$f":"IF(DataLog!$C3468=\"Log value\",DataLog!S3468,\"\")","v":""},{"$f":"IF(DataLog!$C3468=\"Log value\",DataLog!T3468,\"\")","v":""},{"$f":"IF(DataLog!$C3468=\"Log value\",DataLog!U3468,\"\")","v":""},{"$f":"IF(DataLog!$C3468=\"Log value\",DataLog!V3468,\"\")","v":""},{"$f":"IF(DataLog!$C3468=\"Log value\",DataLog!W3468,\"\")","v":""},{"$f":"IF(DataLog!$C3468=\"Log value\",DataLog!X3468,\"\")","v":""},{"$f":"IF(DataLog!$C3468=\"Log value\",DataLog!Y3468,\"\")","v":""},{"$f":"IF(DataLog!$C3468=\"Log value\",DataLog!Z3468,\"\")","v":""},{"$f":"IF(DataLog!$C3468=\"Log value\",DataLog!AA3468,\"\")","v":""},{"$f":"IF(DataLog!$C3468=\"Log value\",DataLog!AB3468,\"\")","v":""},{"$f":"IF(DataLog!$C3468=\"Log value\",DataLog!AC3468,\"\")","v":""},{"$f":"IF(DataLog!$C3468=\"Log value\",DataLog!AD3468,\"\")","v":""},{"$f":"IF(DataLog!$C3468=\"Log value\",DataLog!AE3468,\"\")","v":""},{"$f":"IF(DataLog!$C3468=\"Log value\",DataLog!AF3468,\"\")","v":""},{"$f":"IF(DataLog!$C3468=\"Log value\",DataLog!AG3468,\"\")","v":""},{"$f":"IF(DataLog!$C3468=\"Log value\",DataLog!AH3468,\"\")","v":""},{"$f":"IF(DataLog!$C3468=\"Log value\",DataLog!AI3468,\"\")","v":""},{"$f":"IF(DataLog!$C3468=\"Log value\",DataLog!AJ3468,\"\")","v":""},{"$f":"IF(DataLog!$C3468=\"Log value\",DataLog!AK3468,\"\")","v":""},{"$f":"IF(DataLog!$C3468=\"Log value\",DataLog!AL3468,\"\")","v":""},{"$f":"IF(DataLog!$C3468=\"Log value\",DataLog!AM3468,\"\")","v":""}]
[null,null,null,null,null,null,{"$f":"IF(DataLog!$C3469=\"Log value\",DataLog!D3469&\"_\"&TEXT(DataLog!B3469,\"åååå-mm-dd\"),\"\")","v":""},{"$f":"IF(DataLog!$C3469=\"Log value\",DataLog!E3469,\"\")","v":""},{"$f":"IF(DataLog!$C3469=\"Log value\",DataLog!F3469,\"\")","v":""},{"$f":"IF(DataLog!$C3469=\"Log value\",DataLog!G3469,\"\")","v":""},{"$f":"IF(DataLog!$C3469=\"Log value\",DataLog!H3469,\"\")","v":""},{"$f":"IF(DataLog!$C3469=\"Log value\",DataLog!I3469,\"\")","v":""},{"$f":"IF(DataLog!$C3469=\"Log value\",DataLog!J3469,\"\")","v":""},{"$f":"IF(DataLog!$C3469=\"Log value\",DataLog!K3469,\"\")","v":""},{"$f":"IF(DataLog!$C3469=\"Log value\",DataLog!L3469,\"\")","v":""},{"$f":"IF(DataLog!$C3469=\"Log value\",DataLog!M3469,\"\")","v":""},{"$f":"IF(DataLog!$C3469=\"Log value\",DataLog!N3469,\"\")","v":""},{"$f":"IF(DataLog!$C3469=\"Log value\",DataLog!O3469,\"\")","v":""},{"$f":"IF(DataLog!$C3469=\"Log value\",DataLog!P3469,\"\")","v":""},{"$f":"IF(DataLog!$C3469=\"Log value\",DataLog!Q3469,\"\")","v":""},{"$f":"IF(DataLog!$C3469=\"Log value\",DataLog!R3469,\"\")","v":""},{"$f":"IF(DataLog!$C3469=\"Log value\",DataLog!S3469,\"\")","v":""},{"$f":"IF(DataLog!$C3469=\"Log value\",DataLog!T3469,\"\")","v":""},{"$f":"IF(DataLog!$C3469=\"Log value\",DataLog!U3469,\"\")","v":""},{"$f":"IF(DataLog!$C3469=\"Log value\",DataLog!V3469,\"\")","v":""},{"$f":"IF(DataLog!$C3469=\"Log value\",DataLog!W3469,\"\")","v":""},{"$f":"IF(DataLog!$C3469=\"Log value\",DataLog!X3469,\"\")","v":""},{"$f":"IF(DataLog!$C3469=\"Log value\",DataLog!Y3469,\"\")","v":""},{"$f":"IF(DataLog!$C3469=\"Log value\",DataLog!Z3469,\"\")","v":""},{"$f":"IF(DataLog!$C3469=\"Log value\",DataLog!AA3469,\"\")","v":""},{"$f":"IF(DataLog!$C3469=\"Log value\",DataLog!AB3469,\"\")","v":""},{"$f":"IF(DataLog!$C3469=\"Log value\",DataLog!AC3469,\"\")","v":""},{"$f":"IF(DataLog!$C3469=\"Log value\",DataLog!AD3469,\"\")","v":""},{"$f":"IF(DataLog!$C3469=\"Log value\",DataLog!AE3469,\"\")","v":""},{"$f":"IF(DataLog!$C3469=\"Log value\",DataLog!AF3469,\"\")","v":""},{"$f":"IF(DataLog!$C3469=\"Log value\",DataLog!AG3469,\"\")","v":""},{"$f":"IF(DataLog!$C3469=\"Log value\",DataLog!AH3469,\"\")","v":""},{"$f":"IF(DataLog!$C3469=\"Log value\",DataLog!AI3469,\"\")","v":""},{"$f":"IF(DataLog!$C3469=\"Log value\",DataLog!AJ3469,\"\")","v":""},{"$f":"IF(DataLog!$C3469=\"Log value\",DataLog!AK3469,\"\")","v":""},{"$f":"IF(DataLog!$C3469=\"Log value\",DataLog!AL3469,\"\")","v":""},{"$f":"IF(DataLog!$C3469=\"Log value\",DataLog!AM3469,\"\")","v":""}]
[null,null,null,null,null,null,{"$f":"IF(DataLog!$C3470=\"Log value\",DataLog!D3470&\"_\"&TEXT(DataLog!B3470,\"åååå-mm-dd\"),\"\")","v":""},{"$f":"IF(DataLog!$C3470=\"Log value\",DataLog!E3470,\"\")","v":""},{"$f":"IF(DataLog!$C3470=\"Log value\",DataLog!F3470,\"\")","v":""},{"$f":"IF(DataLog!$C3470=\"Log value\",DataLog!G3470,\"\")","v":""},{"$f":"IF(DataLog!$C3470=\"Log value\",DataLog!H3470,\"\")","v":""},{"$f":"IF(DataLog!$C3470=\"Log value\",DataLog!I3470,\"\")","v":""},{"$f":"IF(DataLog!$C3470=\"Log value\",DataLog!J3470,\"\")","v":""},{"$f":"IF(DataLog!$C3470=\"Log value\",DataLog!K3470,\"\")","v":""},{"$f":"IF(DataLog!$C3470=\"Log value\",DataLog!L3470,\"\")","v":""},{"$f":"IF(DataLog!$C3470=\"Log value\",DataLog!M3470,\"\")","v":""},{"$f":"IF(DataLog!$C3470=\"Log value\",DataLog!N3470,\"\")","v":""},{"$f":"IF(DataLog!$C3470=\"Log value\",DataLog!O3470,\"\")","v":""},{"$f":"IF(DataLog!$C3470=\"Log value\",DataLog!P3470,\"\")","v":""},{"$f":"IF(DataLog!$C3470=\"Log value\",DataLog!Q3470,\"\")","v":""},{"$f":"IF(DataLog!$C3470=\"Log value\",DataLog!R3470,\"\")","v":""},{"$f":"IF(DataLog!$C3470=\"Log value\",DataLog!S3470,\"\")","v":""},{"$f":"IF(DataLog!$C3470=\"Log value\",DataLog!T3470,\"\")","v":""},{"$f":"IF(DataLog!$C3470=\"Log value\",DataLog!U3470,\"\")","v":""},{"$f":"IF(DataLog!$C3470=\"Log value\",DataLog!V3470,\"\")","v":""},{"$f":"IF(DataLog!$C3470=\"Log value\",DataLog!W3470,\"\")","v":""},{"$f":"IF(DataLog!$C3470=\"Log value\",DataLog!X3470,\"\")","v":""},{"$f":"IF(DataLog!$C3470=\"Log value\",DataLog!Y3470,\"\")","v":""},{"$f":"IF(DataLog!$C3470=\"Log value\",DataLog!Z3470,\"\")","v":""},{"$f":"IF(DataLog!$C3470=\"Log value\",DataLog!AA3470,\"\")","v":""},{"$f":"IF(DataLog!$C3470=\"Log value\",DataLog!AB3470,\"\")","v":""},{"$f":"IF(DataLog!$C3470=\"Log value\",DataLog!AC3470,\"\")","v":""},{"$f":"IF(DataLog!$C3470=\"Log value\",DataLog!AD3470,\"\")","v":""},{"$f":"IF(DataLog!$C3470=\"Log value\",DataLog!AE3470,\"\")","v":""},{"$f":"IF(DataLog!$C3470=\"Log value\",DataLog!AF3470,\"\")","v":""},{"$f":"IF(DataLog!$C3470=\"Log value\",DataLog!AG3470,\"\")","v":""},{"$f":"IF(DataLog!$C3470=\"Log value\",DataLog!AH3470,\"\")","v":""},{"$f":"IF(DataLog!$C3470=\"Log value\",DataLog!AI3470,\"\")","v":""},{"$f":"IF(DataLog!$C3470=\"Log value\",DataLog!AJ3470,\"\")","v":""},{"$f":"IF(DataLog!$C3470=\"Log value\",DataLog!AK3470,\"\")","v":""},{"$f":"IF(DataLog!$C3470=\"Log value\",DataLog!AL3470,\"\")","v":""},{"$f":"IF(DataLog!$C3470=\"Log value\",DataLog!AM3470,\"\")","v":""}]
[null,null,null,null,null,null,{"$f":"IF(DataLog!$C3471=\"Log value\",DataLog!D3471&\"_\"&TEXT(DataLog!B3471,\"åååå-mm-dd\"),\"\")","v":""},{"$f":"IF(DataLog!$C3471=\"Log value\",DataLog!E3471,\"\")","v":""},{"$f":"IF(DataLog!$C3471=\"Log value\",DataLog!F3471,\"\")","v":""},{"$f":"IF(DataLog!$C3471=\"Log value\",DataLog!G3471,\"\")","v":""},{"$f":"IF(DataLog!$C3471=\"Log value\",DataLog!H3471,\"\")","v":""},{"$f":"IF(DataLog!$C3471=\"Log value\",DataLog!I3471,\"\")","v":""},{"$f":"IF(DataLog!$C3471=\"Log value\",DataLog!J3471,\"\")","v":""},{"$f":"IF(DataLog!$C3471=\"Log value\",DataLog!K3471,\"\")","v":""},{"$f":"IF(DataLog!$C3471=\"Log value\",DataLog!L3471,\"\")","v":""},{"$f":"IF(DataLog!$C3471=\"Log value\",DataLog!M3471,\"\")","v":""},{"$f":"IF(DataLog!$C3471=\"Log value\",DataLog!N3471,\"\")","v":""},{"$f":"IF(DataLog!$C3471=\"Log value\",DataLog!O3471,\"\")","v":""},{"$f":"IF(DataLog!$C3471=\"Log value\",DataLog!P3471,\"\")","v":""},{"$f":"IF(DataLog!$C3471=\"Log value\",DataLog!Q3471,\"\")","v":""},{"$f":"IF(DataLog!$C3471=\"Log value\",DataLog!R3471,\"\")","v":""},{"$f":"IF(DataLog!$C3471=\"Log value\",DataLog!S3471,\"\")","v":""},{"$f":"IF(DataLog!$C3471=\"Log value\",DataLog!T3471,\"\")","v":""},{"$f":"IF(DataLog!$C3471=\"Log value\",DataLog!U3471,\"\")","v":""},{"$f":"IF(DataLog!$C3471=\"Log value\",DataLog!V3471,\"\")","v":""},{"$f":"IF(DataLog!$C3471=\"Log value\",DataLog!W3471,\"\")","v":""},{"$f":"IF(DataLog!$C3471=\"Log value\",DataLog!X3471,\"\")","v":""},{"$f":"IF(DataLog!$C3471=\"Log value\",DataLog!Y3471,\"\")","v":""},{"$f":"IF(DataLog!$C3471=\"Log value\",DataLog!Z3471,\"\")","v":""},{"$f":"IF(DataLog!$C3471=\"Log value\",DataLog!AA3471,\"\")","v":""},{"$f":"IF(DataLog!$C3471=\"Log value\",DataLog!AB3471,\"\")","v":""},{"$f":"IF(DataLog!$C3471=\"Log value\",DataLog!AC3471,\"\")","v":""},{"$f":"IF(DataLog!$C3471=\"Log value\",DataLog!AD3471,\"\")","v":""},{"$f":"IF(DataLog!$C3471=\"Log value\",DataLog!AE3471,\"\")","v":""},{"$f":"IF(DataLog!$C3471=\"Log value\",DataLog!AF3471,\"\")","v":""},{"$f":"IF(DataLog!$C3471=\"Log value\",DataLog!AG3471,\"\")","v":""},{"$f":"IF(DataLog!$C3471=\"Log value\",DataLog!AH3471,\"\")","v":""},{"$f":"IF(DataLog!$C3471=\"Log value\",DataLog!AI3471,\"\")","v":""},{"$f":"IF(DataLog!$C3471=\"Log value\",DataLog!AJ3471,\"\")","v":""},{"$f":"IF(DataLog!$C3471=\"Log value\",DataLog!AK3471,\"\")","v":""},{"$f":"IF(DataLog!$C3471=\"Log value\",DataLog!AL3471,\"\")","v":""},{"$f":"IF(DataLog!$C3471=\"Log value\",DataLog!AM3471,\"\")","v":""}]
[null,null,null,null,null,null,{"$f":"IF(DataLog!$C3472=\"Log value\",DataLog!D3472&\"_\"&TEXT(DataLog!B3472,\"åååå-mm-dd\"),\"\")","v":""},{"$f":"IF(DataLog!$C3472=\"Log value\",DataLog!E3472,\"\")","v":""},{"$f":"IF(DataLog!$C3472=\"Log value\",DataLog!F3472,\"\")","v":""},{"$f":"IF(DataLog!$C3472=\"Log value\",DataLog!G3472,\"\")","v":""},{"$f":"IF(DataLog!$C3472=\"Log value\",DataLog!H3472,\"\")","v":""},{"$f":"IF(DataLog!$C3472=\"Log value\",DataLog!I3472,\"\")","v":""},{"$f":"IF(DataLog!$C3472=\"Log value\",DataLog!J3472,\"\")","v":""},{"$f":"IF(DataLog!$C3472=\"Log value\",DataLog!K3472,\"\")","v":""},{"$f":"IF(DataLog!$C3472=\"Log value\",DataLog!L3472,\"\")","v":""},{"$f":"IF(DataLog!$C3472=\"Log value\",DataLog!M3472,\"\")","v":""},{"$f":"IF(DataLog!$C3472=\"Log value\",DataLog!N3472,\"\")","v":""},{"$f":"IF(DataLog!$C3472=\"Log value\",DataLog!O3472,\"\")","v":""},{"$f":"IF(DataLog!$C3472=\"Log value\",DataLog!P3472,\"\")","v":""},{"$f":"IF(DataLog!$C3472=\"Log value\",DataLog!Q3472,\"\")","v":""},{"$f":"IF(DataLog!$C3472=\"Log value\",DataLog!R3472,\"\")","v":""},{"$f":"IF(DataLog!$C3472=\"Log value\",DataLog!S3472,\"\")","v":""},{"$f":"IF(DataLog!$C3472=\"Log value\",DataLog!T3472,\"\")","v":""},{"$f":"IF(DataLog!$C3472=\"Log value\",DataLog!U3472,\"\")","v":""},{"$f":"IF(DataLog!$C3472=\"Log value\",DataLog!V3472,\"\")","v":""},{"$f":"IF(DataLog!$C3472=\"Log value\",DataLog!W3472,\"\")","v":""},{"$f":"IF(DataLog!$C3472=\"Log value\",DataLog!X3472,\"\")","v":""},{"$f":"IF(DataLog!$C3472=\"Log value\",DataLog!Y3472,\"\")","v":""},{"$f":"IF(DataLog!$C3472=\"Log value\",DataLog!Z3472,\"\")","v":""},{"$f":"IF(DataLog!$C3472=\"Log value\",DataLog!AA3472,\"\")","v":""},{"$f":"IF(DataLog!$C3472=\"Log value\",DataLog!AB3472,\"\")","v":""},{"$f":"IF(DataLog!$C3472=\"Log value\",DataLog!AC3472,\"\")","v":""},{"$f":"IF(DataLog!$C3472=\"Log value\",DataLog!AD3472,\"\")","v":""},{"$f":"IF(DataLog!$C3472=\"Log value\",DataLog!AE3472,\"\")","v":""},{"$f":"IF(DataLog!$C3472=\"Log value\",DataLog!AF3472,\"\")","v":""},{"$f":"IF(DataLog!$C3472=\"Log value\",DataLog!AG3472,\"\")","v":""},{"$f":"IF(DataLog!$C3472=\"Log value\",DataLog!AH3472,\"\")","v":""},{"$f":"IF(DataLog!$C3472=\"Log value\",DataLog!AI3472,\"\")","v":""},{"$f":"IF(DataLog!$C3472=\"Log value\",DataLog!AJ3472,\"\")","v":""},{"$f":"IF(DataLog!$C3472=\"Log value\",DataLog!AK3472,\"\")","v":""},{"$f":"IF(DataLog!$C3472=\"Log value\",DataLog!AL3472,\"\")","v":""},{"$f":"IF(DataLog!$C3472=\"Log value\",DataLog!AM3472,\"\")","v":""}]
[null,null,null,null,null,null,{"$f":"IF(DataLog!$C3473=\"Log value\",DataLog!D3473&\"_\"&TEXT(DataLog!B3473,\"åååå-mm-dd\"),\"\")","v":""},{"$f":"IF(DataLog!$C3473=\"Log value\",DataLog!E3473,\"\")","v":""},{"$f":"IF(DataLog!$C3473=\"Log value\",DataLog!F3473,\"\")","v":""},{"$f":"IF(DataLog!$C3473=\"Log value\",DataLog!G3473,\"\")","v":""},{"$f":"IF(DataLog!$C3473=\"Log value\",DataLog!H3473,\"\")","v":""},{"$f":"IF(DataLog!$C3473=\"Log value\",DataLog!I3473,\"\")","v":""},{"$f":"IF(DataLog!$C3473=\"Log value\",DataLog!J3473,\"\")","v":""},{"$f":"IF(DataLog!$C3473=\"Log value\",DataLog!K3473,\"\")","v":""},{"$f":"IF(DataLog!$C3473=\"Log value\",DataLog!L3473,\"\")","v":""},{"$f":"IF(DataLog!$C3473=\"Log value\",DataLog!M3473,\"\")","v":""},{"$f":"IF(DataLog!$C3473=\"Log value\",DataLog!N3473,\"\")","v":""},{"$f":"IF(DataLog!$C3473=\"Log value\",DataLog!O3473,\"\")","v":""},{"$f":"IF(DataLog!$C3473=\"Log value\",DataLog!P3473,\"\")","v":""},{"$f":"IF(DataLog!$C3473=\"Log value\",DataLog!Q3473,\"\")","v":""},{"$f":"IF(DataLog!$C3473=\"Log value\",DataLog!R3473,\"\")","v":""},{"$f":"IF(DataLog!$C3473=\"Log value\",DataLog!S3473,\"\")","v":""},{"$f":"IF(DataLog!$C3473=\"Log value\",DataLog!T3473,\"\")","v":""},{"$f":"IF(DataLog!$C3473=\"Log value\",DataLog!U3473,\"\")","v":""},{"$f":"IF(DataLog!$C3473=\"Log value\",DataLog!V3473,\"\")","v":""},{"$f":"IF(DataLog!$C3473=\"Log value\",DataLog!W3473,\"\")","v":""},{"$f":"IF(DataLog!$C3473=\"Log value\",DataLog!X3473,\"\")","v":""},{"$f":"IF(DataLog!$C3473=\"Log value\",DataLog!Y3473,\"\")","v":""},{"$f":"IF(DataLog!$C3473=\"Log value\",DataLog!Z3473,\"\")","v":""},{"$f":"IF(DataLog!$C3473=\"Log value\",DataLog!AA3473,\"\")","v":""},{"$f":"IF(DataLog!$C3473=\"Log value\",DataLog!AB3473,\"\")","v":""},{"$f":"IF(DataLog!$C3473=\"Log value\",DataLog!AC3473,\"\")","v":""},{"$f":"IF(DataLog!$C3473=\"Log value\",DataLog!AD3473,\"\")","v":""},{"$f":"IF(DataLog!$C3473=\"Log value\",DataLog!AE3473,\"\")","v":""},{"$f":"IF(DataLog!$C3473=\"Log value\",DataLog!AF3473,\"\")","v":""},{"$f":"IF(DataLog!$C3473=\"Log value\",DataLog!AG3473,\"\")","v":""},{"$f":"IF(DataLog!$C3473=\"Log value\",DataLog!AH3473,\"\")","v":""},{"$f":"IF(DataLog!$C3473=\"Log value\",DataLog!AI3473,\"\")","v":""},{"$f":"IF(DataLog!$C3473=\"Log value\",DataLog!AJ3473,\"\")","v":""},{"$f":"IF(DataLog!$C3473=\"Log value\",DataLog!AK3473,\"\")","v":""},{"$f":"IF(DataLog!$C3473=\"Log value\",DataLog!AL3473,\"\")","v":""},{"$f":"IF(DataLog!$C3473=\"Log value\",DataLog!AM3473,\"\")","v":""}]
[null,null,null,null,null,null,{"$f":"IF(DataLog!$C3474=\"Log value\",DataLog!D3474&\"_\"&TEXT(DataLog!B3474,\"åååå-mm-dd\"),\"\")","v":""},{"$f":"IF(DataLog!$C3474=\"Log value\",DataLog!E3474,\"\")","v":""},{"$f":"IF(DataLog!$C3474=\"Log value\",DataLog!F3474,\"\")","v":""},{"$f":"IF(DataLog!$C3474=\"Log value\",DataLog!G3474,\"\")","v":""},{"$f":"IF(DataLog!$C3474=\"Log value\",DataLog!H3474,\"\")","v":""},{"$f":"IF(DataLog!$C3474=\"Log value\",DataLog!I3474,\"\")","v":""},{"$f":"IF(DataLog!$C3474=\"Log value\",DataLog!J3474,\"\")","v":""},{"$f":"IF(DataLog!$C3474=\"Log value\",DataLog!K3474,\"\")","v":""},{"$f":"IF(DataLog!$C3474=\"Log value\",DataLog!L3474,\"\")","v":""},{"$f":"IF(DataLog!$C3474=\"Log value\",DataLog!M3474,\"\")","v":""},{"$f":"IF(DataLog!$C3474=\"Log value\",DataLog!N3474,\"\")","v":""},{"$f":"IF(DataLog!$C3474=\"Log value\",DataLog!O3474,\"\")","v":""},{"$f":"IF(DataLog!$C3474=\"Log value\",DataLog!P3474,\"\")","v":""},{"$f":"IF(DataLog!$C3474=\"Log value\",DataLog!Q3474,\"\")","v":""},{"$f":"IF(DataLog!$C3474=\"Log value\",DataLog!R3474,\"\")","v":""},{"$f":"IF(DataLog!$C3474=\"Log value\",DataLog!S3474,\"\")","v":""},{"$f":"IF(DataLog!$C3474=\"Log value\",DataLog!T3474,\"\")","v":""},{"$f":"IF(DataLog!$C3474=\"Log value\",DataLog!U3474,\"\")","v":""},{"$f":"IF(DataLog!$C3474=\"Log value\",DataLog!V3474,\"\")","v":""},{"$f":"IF(DataLog!$C3474=\"Log value\",DataLog!W3474,\"\")","v":""},{"$f":"IF(DataLog!$C3474=\"Log value\",DataLog!X3474,\"\")","v":""},{"$f":"IF(DataLog!$C3474=\"Log value\",DataLog!Y3474,\"\")","v":""},{"$f":"IF(DataLog!$C3474=\"Log value\",DataLog!Z3474,\"\")","v":""},{"$f":"IF(DataLog!$C3474=\"Log value\",DataLog!AA3474,\"\")","v":""},{"$f":"IF(DataLog!$C3474=\"Log value\",DataLog!AB3474,\"\")","v":""},{"$f":"IF(DataLog!$C3474=\"Log value\",DataLog!AC3474,\"\")","v":""},{"$f":"IF(DataLog!$C3474=\"Log value\",DataLog!AD3474,\"\")","v":""},{"$f":"IF(DataLog!$C3474=\"Log value\",DataLog!AE3474,\"\")","v":""},{"$f":"IF(DataLog!$C3474=\"Log value\",DataLog!AF3474,\"\")","v":""},{"$f":"IF(DataLog!$C3474=\"Log value\",DataLog!AG3474,\"\")","v":""},{"$f":"IF(DataLog!$C3474=\"Log value\",DataLog!AH3474,\"\")","v":""},{"$f":"IF(DataLog!$C3474=\"Log value\",DataLog!AI3474,\"\")","v":""},{"$f":"IF(DataLog!$C3474=\"Log value\",DataLog!AJ3474,\"\")","v":""},{"$f":"IF(DataLog!$C3474=\"Log value\",DataLog!AK3474,\"\")","v":""},{"$f":"IF(DataLog!$C3474=\"Log value\",DataLog!AL3474,\"\")","v":""},{"$f":"IF(DataLog!$C3474=\"Log value\",DataLog!AM3474,\"\")","v":""}]
[null,null,null,null,null,null,{"$f":"IF(DataLog!$C3475=\"Log value\",DataLog!D3475&\"_\"&TEXT(DataLog!B3475,\"åååå-mm-dd\"),\"\")","v":""},{"$f":"IF(DataLog!$C3475=\"Log value\",DataLog!E3475,\"\")","v":""},{"$f":"IF(DataLog!$C3475=\"Log value\",DataLog!F3475,\"\")","v":""},{"$f":"IF(DataLog!$C3475=\"Log value\",DataLog!G3475,\"\")","v":""},{"$f":"IF(DataLog!$C3475=\"Log value\",DataLog!H3475,\"\")","v":""},{"$f":"IF(DataLog!$C3475=\"Log value\",DataLog!I3475,\"\")","v":""},{"$f":"IF(DataLog!$C3475=\"Log value\",DataLog!J3475,\"\")","v":""},{"$f":"IF(DataLog!$C3475=\"Log value\",DataLog!K3475,\"\")","v":""},{"$f":"IF(DataLog!$C3475=\"Log value\",DataLog!L3475,\"\")","v":""},{"$f":"IF(DataLog!$C3475=\"Log value\",DataLog!M3475,\"\")","v":""},{"$f":"IF(DataLog!$C3475=\"Log value\",DataLog!N3475,\"\")","v":""},{"$f":"IF(DataLog!$C3475=\"Log value\",DataLog!O3475,\"\")","v":""},{"$f":"IF(DataLog!$C3475=\"Log value\",DataLog!P3475,\"\")","v":""},{"$f":"IF(DataLog!$C3475=\"Log value\",DataLog!Q3475,\"\")","v":""},{"$f":"IF(DataLog!$C3475=\"Log value\",DataLog!R3475,\"\")","v":""},{"$f":"IF(DataLog!$C3475=\"Log value\",DataLog!S3475,\"\")","v":""},{"$f":"IF(DataLog!$C3475=\"Log value\",DataLog!T3475,\"\")","v":""},{"$f":"IF(DataLog!$C3475=\"Log value\",DataLog!U3475,\"\")","v":""},{"$f":"IF(DataLog!$C3475=\"Log value\",DataLog!V3475,\"\")","v":""},{"$f":"IF(DataLog!$C3475=\"Log value\",DataLog!W3475,\"\")","v":""},{"$f":"IF(DataLog!$C3475=\"Log value\",DataLog!X3475,\"\")","v":""},{"$f":"IF(DataLog!$C3475=\"Log value\",DataLog!Y3475,\"\")","v":""},{"$f":"IF(DataLog!$C3475=\"Log value\",DataLog!Z3475,\"\")","v":""},{"$f":"IF(DataLog!$C3475=\"Log value\",DataLog!AA3475,\"\")","v":""},{"$f":"IF(DataLog!$C3475=\"Log value\",DataLog!AB3475,\"\")","v":""},{"$f":"IF(DataLog!$C3475=\"Log value\",DataLog!AC3475,\"\")","v":""},{"$f":"IF(DataLog!$C3475=\"Log value\",DataLog!AD3475,\"\")","v":""},{"$f":"IF(DataLog!$C3475=\"Log value\",DataLog!AE3475,\"\")","v":""},{"$f":"IF(DataLog!$C3475=\"Log value\",DataLog!AF3475,\"\")","v":""},{"$f":"IF(DataLog!$C3475=\"Log value\",DataLog!AG3475,\"\")","v":""},{"$f":"IF(DataLog!$C3475=\"Log value\",DataLog!AH3475,\"\")","v":""},{"$f":"IF(DataLog!$C3475=\"Log value\",DataLog!AI3475,\"\")","v":""},{"$f":"IF(DataLog!$C3475=\"Log value\",DataLog!AJ3475,\"\")","v":""},{"$f":"IF(DataLog!$C3475=\"Log value\",DataLog!AK3475,\"\")","v":""},{"$f":"IF(DataLog!$C3475=\"Log value\",DataLog!AL3475,\"\")","v":""},{"$f":"IF(DataLog!$C3475=\"Log value\",DataLog!AM3475,\"\")","v":""}]
[null,null,null,null,null,null,{"$f":"IF(DataLog!$C3476=\"Log value\",DataLog!D3476&\"_\"&TEXT(DataLog!B3476,\"åååå-mm-dd\"),\"\")","v":""},{"$f":"IF(DataLog!$C3476=\"Log value\",DataLog!E3476,\"\")","v":""},{"$f":"IF(DataLog!$C3476=\"Log value\",DataLog!F3476,\"\")","v":""},{"$f":"IF(DataLog!$C3476=\"Log value\",DataLog!G3476,\"\")","v":""},{"$f":"IF(DataLog!$C3476=\"Log value\",DataLog!H3476,\"\")","v":""},{"$f":"IF(DataLog!$C3476=\"Log value\",DataLog!I3476,\"\")","v":""},{"$f":"IF(DataLog!$C3476=\"Log value\",DataLog!J3476,\"\")","v":""},{"$f":"IF(DataLog!$C3476=\"Log value\",DataLog!K3476,\"\")","v":""},{"$f":"IF(DataLog!$C3476=\"Log value\",DataLog!L3476,\"\")","v":""},{"$f":"IF(DataLog!$C3476=\"Log value\",DataLog!M3476,\"\")","v":""},{"$f":"IF(DataLog!$C3476=\"Log value\",DataLog!N3476,\"\")","v":""},{"$f":"IF(DataLog!$C3476=\"Log value\",DataLog!O3476,\"\")","v":""},{"$f":"IF(DataLog!$C3476=\"Log value\",DataLog!P3476,\"\")","v":""},{"$f":"IF(DataLog!$C3476=\"Log value\",DataLog!Q3476,\"\")","v":""},{"$f":"IF(DataLog!$C3476=\"Log value\",DataLog!R3476,\"\")","v":""},{"$f":"IF(DataLog!$C3476=\"Log value\",DataLog!S3476,\"\")","v":""},{"$f":"IF(DataLog!$C3476=\"Log value\",DataLog!T3476,\"\")","v":""},{"$f":"IF(DataLog!$C3476=\"Log value\",DataLog!U3476,\"\")","v":""},{"$f":"IF(DataLog!$C3476=\"Log value\",DataLog!V3476,\"\")","v":""},{"$f":"IF(DataLog!$C3476=\"Log value\",DataLog!W3476,\"\")","v":""},{"$f":"IF(DataLog!$C3476=\"Log value\",DataLog!X3476,\"\")","v":""},{"$f":"IF(DataLog!$C3476=\"Log value\",DataLog!Y3476,\"\")","v":""},{"$f":"IF(DataLog!$C3476=\"Log value\",DataLog!Z3476,\"\")","v":""},{"$f":"IF(DataLog!$C3476=\"Log value\",DataLog!AA3476,\"\")","v":""},{"$f":"IF(DataLog!$C3476=\"Log value\",DataLog!AB3476,\"\")","v":""},{"$f":"IF(DataLog!$C3476=\"Log value\",DataLog!AC3476,\"\")","v":""},{"$f":"IF(DataLog!$C3476=\"Log value\",DataLog!AD3476,\"\")","v":""},{"$f":"IF(DataLog!$C3476=\"Log value\",DataLog!AE3476,\"\")","v":""},{"$f":"IF(DataLog!$C3476=\"Log value\",DataLog!AF3476,\"\")","v":""},{"$f":"IF(DataLog!$C3476=\"Log value\",DataLog!AG3476,\"\")","v":""},{"$f":"IF(DataLog!$C3476=\"Log value\",DataLog!AH3476,\"\")","v":""},{"$f":"IF(DataLog!$C3476=\"Log value\",DataLog!AI3476,\"\")","v":""},{"$f":"IF(DataLog!$C3476=\"Log value\",DataLog!AJ3476,\"\")","v":""},{"$f":"IF(DataLog!$C3476=\"Log value\",DataLog!AK3476,\"\")","v":""},{"$f":"IF(DataLog!$C3476=\"Log value\",DataLog!AL3476,\"\")","v":""},{"$f":"IF(DataLog!$C3476=\"Log value\",DataLog!AM3476,\"\")","v":""}]
[null,null,null,null,null,null,{"$f":"IF(DataLog!$C3477=\"Log value\",DataLog!D3477&\"_\"&TEXT(DataLog!B3477,\"åååå-mm-dd\"),\"\")","v":""},{"$f":"IF(DataLog!$C3477=\"Log value\",DataLog!E3477,\"\")","v":""},{"$f":"IF(DataLog!$C3477=\"Log value\",DataLog!F3477,\"\")","v":""},{"$f":"IF(DataLog!$C3477=\"Log value\",DataLog!G3477,\"\")","v":""},{"$f":"IF(DataLog!$C3477=\"Log value\",DataLog!H3477,\"\")","v":""},{"$f":"IF(DataLog!$C3477=\"Log value\",DataLog!I3477,\"\")","v":""},{"$f":"IF(DataLog!$C3477=\"Log value\",DataLog!J3477,\"\")","v":""},{"$f":"IF(DataLog!$C3477=\"Log value\",DataLog!K3477,\"\")","v":""},{"$f":"IF(DataLog!$C3477=\"Log value\",DataLog!L3477,\"\")","v":""},{"$f":"IF(DataLog!$C3477=\"Log value\",DataLog!M3477,\"\")","v":""},{"$f":"IF(DataLog!$C3477=\"Log value\",DataLog!N3477,\"\")","v":""},{"$f":"IF(DataLog!$C3477=\"Log value\",DataLog!O3477,\"\")","v":""},{"$f":"IF(DataLog!$C3477=\"Log value\",DataLog!P3477,\"\")","v":""},{"$f":"IF(DataLog!$C3477=\"Log value\",DataLog!Q3477,\"\")","v":""},{"$f":"IF(DataLog!$C3477=\"Log value\",DataLog!R3477,\"\")","v":""},{"$f":"IF(DataLog!$C3477=\"Log value\",DataLog!S3477,\"\")","v":""},{"$f":"IF(DataLog!$C3477=\"Log value\",DataLog!T3477,\"\")","v":""},{"$f":"IF(DataLog!$C3477=\"Log value\",DataLog!U3477,\"\")","v":""},{"$f":"IF(DataLog!$C3477=\"Log value\",DataLog!V3477,\"\")","v":""},{"$f":"IF(DataLog!$C3477=\"Log value\",DataLog!W3477,\"\")","v":""},{"$f":"IF(DataLog!$C3477=\"Log value\",DataLog!X3477,\"\")","v":""},{"$f":"IF(DataLog!$C3477=\"Log value\",DataLog!Y3477,\"\")","v":""},{"$f":"IF(DataLog!$C3477=\"Log value\",DataLog!Z3477,\"\")","v":""},{"$f":"IF(DataLog!$C3477=\"Log value\",DataLog!AA3477,\"\")","v":""},{"$f":"IF(DataLog!$C3477=\"Log value\",DataLog!AB3477,\"\")","v":""},{"$f":"IF(DataLog!$C3477=\"Log value\",DataLog!AC3477,\"\")","v":""},{"$f":"IF(DataLog!$C3477=\"Log value\",DataLog!AD3477,\"\")","v":""},{"$f":"IF(DataLog!$C3477=\"Log value\",DataLog!AE3477,\"\")","v":""},{"$f":"IF(DataLog!$C3477=\"Log value\",DataLog!AF3477,\"\")","v":""},{"$f":"IF(DataLog!$C3477=\"Log value\",DataLog!AG3477,\"\")","v":""},{"$f":"IF(DataLog!$C3477=\"Log value\",DataLog!AH3477,\"\")","v":""},{"$f":"IF(DataLog!$C3477=\"Log value\",DataLog!AI3477,\"\")","v":""},{"$f":"IF(DataLog!$C3477=\"Log value\",DataLog!AJ3477,\"\")","v":""},{"$f":"IF(DataLog!$C3477=\"Log value\",DataLog!AK3477,\"\")","v":""},{"$f":"IF(DataLog!$C3477=\"Log value\",DataLog!AL3477,\"\")","v":""},{"$f":"IF(DataLog!$C3477=\"Log value\",DataLog!AM3477,\"\")","v":""}]
[null,null,null,null,null,null,{"$f":"IF(DataLog!$C3478=\"Log value\",DataLog!D3478&\"_\"&TEXT(DataLog!B3478,\"åååå-mm-dd\"),\"\")","v":""},{"$f":"IF(DataLog!$C3478=\"Log value\",DataLog!E3478,\"\")","v":""},{"$f":"IF(DataLog!$C3478=\"Log value\",DataLog!F3478,\"\")","v":""},{"$f":"IF(DataLog!$C3478=\"Log value\",DataLog!G3478,\"\")","v":""},{"$f":"IF(DataLog!$C3478=\"Log value\",DataLog!H3478,\"\")","v":""},{"$f":"IF(DataLog!$C3478=\"Log value\",DataLog!I3478,\"\")","v":""},{"$f":"IF(DataLog!$C3478=\"Log value\",DataLog!J3478,\"\")","v":""},{"$f":"IF(DataLog!$C3478=\"Log value\",DataLog!K3478,\"\")","v":""},{"$f":"IF(DataLog!$C3478=\"Log value\",DataLog!L3478,\"\")","v":""},{"$f":"IF(DataLog!$C3478=\"Log value\",DataLog!M3478,\"\")","v":""},{"$f":"IF(DataLog!$C3478=\"Log value\",DataLog!N3478,\"\")","v":""},{"$f":"IF(DataLog!$C3478=\"Log value\",DataLog!O3478,\"\")","v":""},{"$f":"IF(DataLog!$C3478=\"Log value\",DataLog!P3478,\"\")","v":""},{"$f":"IF(DataLog!$C3478=\"Log value\",DataLog!Q3478,\"\")","v":""},{"$f":"IF(DataLog!$C3478=\"Log value\",DataLog!R3478,\"\")","v":""},{"$f":"IF(DataLog!$C3478=\"Log value\",DataLog!S3478,\"\")","v":""},{"$f":"IF(DataLog!$C3478=\"Log value\",DataLog!T3478,\"\")","v":""},{"$f":"IF(DataLog!$C3478=\"Log value\",DataLog!U3478,\"\")","v":""},{"$f":"IF(DataLog!$C3478=\"Log value\",DataLog!V3478,\"\")","v":""},{"$f":"IF(DataLog!$C3478=\"Log value\",DataLog!W3478,\"\")","v":""},{"$f":"IF(DataLog!$C3478=\"Log value\",DataLog!X3478,\"\")","v":""},{"$f":"IF(DataLog!$C3478=\"Log value\",DataLog!Y3478,\"\")","v":""},{"$f":"IF(DataLog!$C3478=\"Log value\",DataLog!Z3478,\"\")","v":""},{"$f":"IF(DataLog!$C3478=\"Log value\",DataLog!AA3478,\"\")","v":""},{"$f":"IF(DataLog!$C3478=\"Log value\",DataLog!AB3478,\"\")","v":""},{"$f":"IF(DataLog!$C3478=\"Log value\",DataLog!AC3478,\"\")","v":""},{"$f":"IF(DataLog!$C3478=\"Log value\",DataLog!AD3478,\"\")","v":""},{"$f":"IF(DataLog!$C3478=\"Log value\",DataLog!AE3478,\"\")","v":""},{"$f":"IF(DataLog!$C3478=\"Log value\",DataLog!AF3478,\"\")","v":""},{"$f":"IF(DataLog!$C3478=\"Log value\",DataLog!AG3478,\"\")","v":""},{"$f":"IF(DataLog!$C3478=\"Log value\",DataLog!AH3478,\"\")","v":""},{"$f":"IF(DataLog!$C3478=\"Log value\",DataLog!AI3478,\"\")","v":""},{"$f":"IF(DataLog!$C3478=\"Log value\",DataLog!AJ3478,\"\")","v":""},{"$f":"IF(DataLog!$C3478=\"Log value\",DataLog!AK3478,\"\")","v":""},{"$f":"IF(DataLog!$C3478=\"Log value\",DataLog!AL3478,\"\")","v":""},{"$f":"IF(DataLog!$C3478=\"Log value\",DataLog!AM3478,\"\")","v":""}]
[null,null,null,null,null,null,{"$f":"IF(DataLog!$C3479=\"Log value\",DataLog!D3479&\"_\"&TEXT(DataLog!B3479,\"åååå-mm-dd\"),\"\")","v":""},{"$f":"IF(DataLog!$C3479=\"Log value\",DataLog!E3479,\"\")","v":""},{"$f":"IF(DataLog!$C3479=\"Log value\",DataLog!F3479,\"\")","v":""},{"$f":"IF(DataLog!$C3479=\"Log value\",DataLog!G3479,\"\")","v":""},{"$f":"IF(DataLog!$C3479=\"Log value\",DataLog!H3479,\"\")","v":""},{"$f":"IF(DataLog!$C3479=\"Log value\",DataLog!I3479,\"\")","v":""},{"$f":"IF(DataLog!$C3479=\"Log value\",DataLog!J3479,\"\")","v":""},{"$f":"IF(DataLog!$C3479=\"Log value\",DataLog!K3479,\"\")","v":""},{"$f":"IF(DataLog!$C3479=\"Log value\",DataLog!L3479,\"\")","v":""},{"$f":"IF(DataLog!$C3479=\"Log value\",DataLog!M3479,\"\")","v":""},{"$f":"IF(DataLog!$C3479=\"Log value\",DataLog!N3479,\"\")","v":""},{"$f":"IF(DataLog!$C3479=\"Log value\",DataLog!O3479,\"\")","v":""},{"$f":"IF(DataLog!$C3479=\"Log value\",DataLog!P3479,\"\")","v":""},{"$f":"IF(DataLog!$C3479=\"Log value\",DataLog!Q3479,\"\")","v":""},{"$f":"IF(DataLog!$C3479=\"Log value\",DataLog!R3479,\"\")","v":""},{"$f":"IF(DataLog!$C3479=\"Log value\",DataLog!S3479,\"\")","v":""},{"$f":"IF(DataLog!$C3479=\"Log value\",DataLog!T3479,\"\")","v":""},{"$f":"IF(DataLog!$C3479=\"Log value\",DataLog!U3479,\"\")","v":""},{"$f":"IF(DataLog!$C3479=\"Log value\",DataLog!V3479,\"\")","v":""},{"$f":"IF(DataLog!$C3479=\"Log value\",DataLog!W3479,\"\")","v":""},{"$f":"IF(DataLog!$C3479=\"Log value\",DataLog!X3479,\"\")","v":""},{"$f":"IF(DataLog!$C3479=\"Log value\",DataLog!Y3479,\"\")","v":""},{"$f":"IF(DataLog!$C3479=\"Log value\",DataLog!Z3479,\"\")","v":""},{"$f":"IF(DataLog!$C3479=\"Log value\",DataLog!AA3479,\"\")","v":""},{"$f":"IF(DataLog!$C3479=\"Log value\",DataLog!AB3479,\"\")","v":""},{"$f":"IF(DataLog!$C3479=\"Log value\",DataLog!AC3479,\"\")","v":""},{"$f":"IF(DataLog!$C3479=\"Log value\",DataLog!AD3479,\"\")","v":""},{"$f":"IF(DataLog!$C3479=\"Log value\",DataLog!AE3479,\"\")","v":""},{"$f":"IF(DataLog!$C3479=\"Log value\",DataLog!AF3479,\"\")","v":""},{"$f":"IF(DataLog!$C3479=\"Log value\",DataLog!AG3479,\"\")","v":""},{"$f":"IF(DataLog!$C3479=\"Log value\",DataLog!AH3479,\"\")","v":""},{"$f":"IF(DataLog!$C3479=\"Log value\",DataLog!AI3479,\"\")","v":""},{"$f":"IF(DataLog!$C3479=\"Log value\",DataLog!AJ3479,\"\")","v":""},{"$f":"IF(DataLog!$C3479=\"Log value\",DataLog!AK3479,\"\")","v":""},{"$f":"IF(DataLog!$C3479=\"Log value\",DataLog!AL3479,\"\")","v":""},{"$f":"IF(DataLog!$C3479=\"Log value\",DataLog!AM3479,\"\")","v":""}]

{"sheet":"TechData","index":12,"n_rows":1107,"n_cols":42,"rows_kept":1107,"cut":false,"hidden":false,"merged":[[64,1,115,1],[116,1,140,1]]}
[]
[null,null,null,null,null,null,"Technology data"]
[]
[null,null,null,null,null,null,"User instruction"]
[null,null,null,null,null,null,"In this sheet the approved current data for the power generation technologies are listed. New technologies are added in the TestTech sheet. Columns C-F are used for lookup-functions and should not be changed. Hidden by default."]
[null,null,null,null,null,null,"3 different technologies scenarios are defined:","TechBase","Basic technology definitions"]
[null,null,null,null,null,null,null,"TechHigh","Higher technology cost (investment cost and O&M cost)"]
[null,null,null,null,null,null,null,"TechLow","Lower technology cost (investment cost and O&M cost)"]
[null,null,null,null,null,null,"Should you change technology names in this sheet, you need to update the technology lists, to make them chooseable in' UserSettings&Results'"]
[null,null,null,null,null,null,"Settnings"]
[null,null,null,null,null,null,"Relative difference in cost (investment and O&M cost) for TechLow and TechHigh compared to TechBase"]
[null,null,null,null,null,null,"TechHigh",0.25]
[null,null,null,null,null,null,"TechLow",-0.25]
[null,null,null,null,null,null,"Data sources:"]
[null,null,null,null,null,null,"Technology data for energy plants, Danish Energy Agency and Energinet.dk, 2014; Power Generation Technology Data for Integrated Resource Plan of South Africa, Palo Alto, EPRI 2012; Projected Costs of Generating Electricity, IEA, 2015; Faktablad, Danish Wind association; Socio-economic assumptions 2014, Danish Energy Agency."]
[]
[null,null,null,null,null,null,"Applied data in the calculation"]
[]
[null,null,null,null,null,null,"Settings done i:"]
[null,null,null,null,null,null,"(Used to look up the data corresponding to chosen price scenario and price year"]
[null,null,null,null,null,null,"Current scenario",{"$f":"TechScenario","v":"TechBase"}]
[null,null,null,null,null,null,"Price year",{"$f":"PriceYear","v":2020}]
[null,null,null,null,null,null,"Currency",{"$f":"chosencurrency","v":"EUR"}]
[]
[]
[null,null,null,null,null,null,"Applied data in the calculation sheet (this table displays the applied technical data according to technology year and price year)"]
[null,null,"Tech scenario","Full Name","Row for lookup","Adjustment for price level","Technology","Source name","Year","Combined heat and power (CHP)","Fuel","Investment","Grid investment","Fixed O&M","Var. O&M","Other costs","CV","CB","Total efficiency","Electric efficiency condensing","Electric efficiency CHP","Heat efficiency","Full load hours","Profile costs","Balancing costs","Condensing ratio","Technical lifetime","Construction time","Desulphur","Emission factor NOx","Emission factor CH4","Emission factor N2O","Emission factor PM2,5","Geography","Date for data input/update","Desk officer","QA date","QA officer","Reference","Price year in reference","Currency in reference","Comment"]
[null,null,null,null,null,null,null,null,null,null,null,{"$f":"\"mio.\"&chosencurrency&\"/MW\"","v":"mio.EUR/MW"},{"$f":"\"mio.\"&chosencurrency&\"/MW\"","v":"mio.EUR/MW"},{"$f":"chosencurrency&\"/MW/år\"","v":"EUR/MW/år"},{"$f":"chosencurrency&\"/MWh\"","v":"EUR/MWh"},{"$f":"chosencurrency&\"/MWh\"","v":"EUR/MWh"},null,null,null,null,null,null,null,{"$f":"chosencurrency&\"/MWh\"","v":"EUR/MWh"},{"$f":"chosencurrency&\"/MWh\"","v":"EUR/MWh"},null,"years","years","%","g/GJ fuel","g/GJ fuel","g/GJ fuel","g/GJ fuel"]
[null,null,null,null,null,null,null,null,null,"Text","Text","Economy","Economy","Economy","Economy","Economy","Technical","Technical","Technical","Technical","Technical","Technical","Technical","Economy","Economy","Technical","Technical","Technical","Technical","Technical","Technical","Technical","Technical","Text","Text","Text","Text","Text","Text","Technical","Text","Text"]
[null,null,null,null,null,null,"Column for lookup",null,null,{"$f":"COLUMN(J$28)-COLUMN($D$28)+1","v":7},8,9,10,11,12,13,14,15,16,17,18,19,20,21,22,23,24,25,26,27,28,29,30,31,32,33,34,35,36,37,38,39]
[null,null,{"$f":"$H$21","v":"TechBase"},{"$f":"C31&\" - \"&G31&\" - \"&I31","v":"TechBase - 25WIN_OF_in Offshore wind AC incl. Grid - 2030"},{"$f":"IFERROR(MATCH(D31,INDEX(TechDataGross,,1),0),\"\")","v":159},{"$f":"IFERROR(VLOOKUP(PriceYear,PriceAdjust,2,FALSE)/VLOOKUP(AN31,PriceAdjust,2,FALSE)*VLOOKUP(chosencurrency,Currency,2,FALSE)/VLOOKUP(AO31,Currency,2,FALSE),\"\")","v":1},{"$f":"TRANSPOSE(CalcTech)","v":"25WIN_OF_in Offshore wind AC incl. Grid"},null,{"$f":"TRANSPOSE(CalcTechYear)","v":2030},{"$f":"IFERROR(IF(J$29=\"Text\",INDEX(TechDataGross,$E31,J$30),INDEX(TechDataGross,$E31,J$30)*IF(J$29=\"Economy\",$F31,1)),\"\")","v":"NO"},"Wind",{"$f":"IFERROR(IF(L$29=\"Text\",INDEX(TechDataGross,$E31,L$30),INDEX(TechDataGross,$E31,L$30)*IF(L$29=\"Economy\",$F31,1)),\"\")","v":1.5546525809093286},0.83848190644307141,34000,3.4466987330489469,0,0,0,1,{"$f":"IFERROR(IF(T$29=\"Text\",INDEX(TechDataGross,$E31,T$30),INDEX(TechDataGross,$E31,T$30)*IF(T$29=\"Economy\",$F31,1)),\"\")","v":1},0,0,4550,0,0,0,30,3.5,0,{"$f":"IFERROR(IF(AD$29=\"Text\",INDEX(TechDataGross,$E31,AD$30),INDEX(TechDataGross,$E31,AD$30)*IF(AD$29=\"Economy\",$F31,1)),\"\")","v":0},0,0,0,"Central","2025-01-17","chwo","00:00:00",0,"Tech Cat 2025 Update",2020,"EUR",0]
[null,null,"TechBase","TechBase - 25WIN_NS_in Nearshore wind incl. Grid - 2030",171,1,"25WIN_NS_in Nearshore wind incl. Grid",null,2030,"NO","Wind",1.45,0.09,34000,3.45,0,0,0,1,1,0,0,4150,0,0,0,30,3.5,0,0,0,0,0,"Central","2025-01-23","chwo","00:00:00",0,"Tech Cat 2025 Update",2020,"EUR",0]
[null,null,"TechBase","TechBase - 24WIN_ON_in Onshore wind incl. Grid - 2030",114,1,"24WIN_ON_in Onshore wind incl. Grid",null,2030,"NO","Wind",1.1295667254452977,1.70781742147024E-2,16662.667964091601,1.9751844870564499,0,0,0,1,1,0,0,3600,0,0,0,30,1.5,0,0,0,0,0,"Central","2024-03-26","thoda","00:00:00",0,"Tech Cat 2024 Update",2020,"EUR",0]
[null,null,"TechBase","TechBase - 22PV_La_Utility scale PV - 2030",149,1,"22PV_La_Utility scale PV",null,2030,"NO","solar",0.26757897585894125,3.9406003115420092E-2,7600,0,0,0,0,1,1,0,0,1187.0819999999999,0,0,0,40,0.5,0,0,0,0,0,"Decentral","2022-02-21","chwo","00:00:00",0,"Tech Cat 2022 Update",2020,"EUR","DC-values are used for financial data and full-load hours"]
[null,null,"TechBase","TechBase - 22PV_La_Utility scale PV_tracker - 2030",154,1,"22PV_La_Utility scale PV_tracker",null,2030,"NO","solar",0.32414890376055078,3.9427356966160301E-2,8300,0,0,0,0,1,1,0,0,1369.71,0,0,0,40,0.5,0,0,0,0,0,"Decentral","2022-02-21","chwo","00:00:00",0,"Tech Cat 2022 Update",2020,"EUR","DC-values are used for financial data and full-load hours"]
[null,null,"TechBase","TechBase - 22PV_Me_roof commercial industrial - 2030",144,1,"22PV_Me_roof commercial industrial",null,2030,"NO","solar",0.48242608897196271,3.1943814950791558E-2,8100,0,0,0,0,1,1,0,0,1116.0600000000002,0,0,0,30,0.5,0,0,0,0,0,"Decentral","2022-02-21","chwo","00:00:00",0,"Tech Cat 2022 Update",2020,"EUR","DC-values are used for financial data and full-load hours"]
[null,null,"TechBase","TechBase - 22PV_Sm_roof residential - 2030",139,1,"22PV_Sm_roof residential",null,2030,"NO","solar",0.77602889450917067,2.4015045257147854E-2,10200,0,0,0,0,1,1,0,0,1116.0600000000002,0,0,0,40,0.5,0,0,0,0,0,"Decentral","2022-02-21","chwo","00:00:00",0,"Tech Cat 2022 Update",2020,"EUR","DC-values are used for financial data and full-load hours"]
[null,null,"TechBase","TechBase - 18Me BP WPE in_st 80 MW input, woodpellets storage for 10 days   - 2030",10,1.0703816410876448,"18Me BP WPE in_st 80 MW input, woodpellets storage for 10 days  ",null,2030,"YES","Wood pellets",3.2959619645027192,0,132020.83990221791,1.8285941720790391,0,0,0.42294158174211172,0.96647900563145583,0.28726699999999999,0.28726699999999999,0.67921200563145578,4000,0,0,0,25,2.5,0.98250000000000004,35,0,1,0.3,"Decentral","02.03-18","mka","2018-04-23","rin","Tech Cat  2018 Update",2015,"EUR",0]
[null,null,"TechBase","TechBase - 18Me BP WCH in_st 80 MW input, woodchips storage for 10 days   - 2030",6,1.0703816410876448,"18Me BP WCH in_st 80 MW input, woodchips storage for 10 days  ",null,2030,"YES","Wood chips",3.866218487608573,0,154134.95631662084,4.0823315502269635,0,0,0.3303464138167973,1.1093825224040659,0.27547752526785418,0.27547752526785418,0.8339049971362118,4000,0,0,0,25,2.5,0.97970000000000002,40.6,1.5189999999999999,0.51968000000000014,0.3,"Central","02.03-18","mka","2018-04-23","rin","Tech Cat  2018 Update",2015,"EUR",0]
[null,null,"TechBase","TechBase - 16La REF_EX  WCH_COA_Newboi_ no_inv_exipla Wood chips CHP refurb.  \nCoal plants, new Boiler, no invest cost for existing plant  - 2030",79,1.0703816410876448,"16La REF_EX  WCH_COA_Newboi_ no_inv_exipla Wood chips CHP refurb.  \nCoal plants, new Boiler, no invest cost for existing plant ",null,2030,"YES","Wood chips",1.7126106257402318,0,38268.202943456658,4.6694721684161786,0,0.15,0.66999999999999993,0.89609756097560977,0.44,0.35951219512195121,0.53658536585365857,5000,0,0,0.2,15,2.5,0.97,35,0.5,5,0.3,"Central","02.03-18","mka","2018-10-16","Rin","Tech Cat  Aug 2016, Coal Update 2017",2015,"EUR","It is assumed that the coal plants that are rebuild in 2030  is commissioned in 2005 and have an electric efficiency of 45% and a CB factor of 0.74. The estimates for 2015, 2020 and 2030 are made based on Danish CHP plants that are commissioned in 1985, 1990 and 2000. Data for fixed O&M expenses are in the Technology catalogue given per electricity capacity and for variable O&M expenses per electricity production. Based on an expectation that the O&M cost in relation to energy input has not changed over time. Therefore O&M for the existing plants is calculated multipling  O&M for a new plant with the relationship between the power efficiency of the new plants and of the  existing plant."]
[null,null,"TechBase","TechBase - 16La REF_EX WCH_COA_exi_exibo_no_inv_exipla Wood chips CHP refurb.  \nCoal plants, existing boiler, no invest cost for existing plant  - 2030",83,1.0703816410876448,"16La REF_EX WCH_COA_exi_exibo_no_inv_exipla Wood chips CHP refurb.  \nCoal plants, existing boiler, no invest cost for existing plant ",null,2030,{"$f":"IFERROR(IF(J$29=\"Text\",INDEX(TechDataGross,$E41,J$30),INDEX(TechDataGross,$E41,J$30)*IF(J$29=\"Economy\",$F41,1)),\"\")","v":"YES"},"Wood chips",1.7126106257402318,0,48251.212406967097,4.5138230961356394,0,0.15,0.66999999999999993,0.85536585365853668,{"$f":"IFERROR(IF(T$29=\"Text\",INDEX(TechDataGross,$E41,T$30),INDEX(TechDataGross,$E41,T$30)*IF(T$29=\"Economy\",$F41,1)),\"\")","v":0.42000000000000004},0.3431707317073171,0.51219512195121963,5000,0,0,0.2,15,2,1,{"$f":"IFERROR(IF(AD$29=\"Text\",INDEX(TechDataGross,$E41,AD$30),INDEX(TechDataGross,$E41,AD$30)*IF(AD$29=\"Economy\",$F41,1)),\"\")","v":35},3.1,6,0.3,"Central","2017-08-11","mka // 04.06","2018-10-16","Rin","Tech Cat  Aug 2016, Coal Update 2017",2015,"EUR","It is assumed that the coal plants that are rebuild in 2030  is commissioned in 2005 and have an electric efficiency of 45% and a CB factor of 0.74. The estimates for 2015, 2020 and 2030 are made based on Danish CHP plants that are commissioned in 1985, 1990 and 2000. Data for fixed O&M expenses are in the Technology catalogue given per electricity capacity and for variable O&M expenses per electricity production. Based on an expectation that the O&M cost in relation to energy input has not changed over time. Therefore O&M for the existing plants is calculated multipling  O&M for a new plant with the relationship between the power efficiency of the new plants and of the  existing plant."]
[null,null,"TechBase","TechBase - 17La_EX_COA CHP coal 400-700 MWwe - 2030",30,1.0703816410876448,"17La_EX_COA CHP coal 400-700 MWwe",null,2030,"YES","Coal",1.9914182315024531,0,32491.560619250533,3.0395330901879589,0,0.15,1.01,0.90103448275862097,0.52,0.452758620689655,0.44827586206896602,5000,0,0,0.2,25,4.5,0.97,35,1.5,0.8,2.1,"Central","02.03-18","mka","00:00:00",0,"Tech Cat Oct. 2017 update",2015,"EUR",0]
[null,null,"TechBase","TechBase - 16 La EX LTE COA no_inv_exipla  - Coal CHP Life time extension of coal power plant no invest cost for existing plant  - 2030",71,1.0703816410876448,"16 La EX LTE COA no_inv_exipla  - Coal CHP Life time extension of coal power plant no invest cost for existing plant ",null,2030,"YES","Coal",0.25689159386103472,0,33276.698211701441,3.112981445610786,0,0.15,0.74,0.87977528089887636,0.45,0.37415730337078651,0.5056179775280899,5000,0,0,0.2,15,0.5,0.97,35,1.5,0.8,2.1,"Central","13.09-18","mka","2018-10-16","Rin","Tech Cat Aug 2016, coal note 2017 data for ex. Plant",2015,"EUR","It is assumed that plants that are refurbished in 2030  is commissioned in 2005 and have an electric efficiency of 45% and a CB factor of 0.74.  The estimates for 2015, 2020 and 2030 are made based on Danish CHP plants that are commissioned in 1985, 1990 and 2000.  Data for fixed O&M expenses are in the Technology catalogue given per electricity capacity and for variable O&M expenses per electricity production. Based on an expectation that the O&M cost in relation to energy input has not changed over time. Therefore O&M for the existing plants is calculated multipling  O&M for a new plant with the relationship between the power efficiency of the new plants and of the  existing plant."]
[null,null,"TechBase","TechBase - 16La EX CC NGA CC large CHP Gas Turbine combined Cycle natural Gas  \n - 2030",26,1.0703816410876448,"16La EX CC NGA CC large CHP Gas Turbine combined Cycle natural Gas  \n",null,2030,"YES","Natural gas",0.88841676210274512,0,29756.609622236523,4.4956028925681082,0,0.15,2,0.85116279069767442,0.57999999999999996,0.56744186046511624,0.28372093023255812,5000,0,0,0.2,25,2.5,0,10,1.5,1,0,"Central","02.03-18","mka","00:00:00",0,"Tech Cat 2016",2015,"EUR",0]
[null,null,"TechBase","TechBase - Nuclear INT - 2030",47,1.1310039154982301,"Nuclear INT",null,2030,"NO","Uranium",4.2189710320160154,0,59237.797347490174,5.9410000246756143,4.5240156619929204,0,0,1,1,0,0,7000,0,0,1,60,7,0,0,0,0,0,"Central","00:00:00",0,"00:00:00",0,"IEA, 2015, Projected cost of generating electricity 2015” ",2011,"EUR",0]
[null,null,"TechBase","TechBase - Coal FGD INT - 2030",35,1.1310039154982301,"Coal FGD INT",null,2030,"NO","Coal",1.9089951176475433,0,28660.206128631296,2.81796496061818,0,0,0,0.45,0.45,0,0,5000,0,0,1,40,4,0.95,196.30555555555557,1.5,0.8,13.361111111111111,"Central","00:00:00",0,"00:00:00",0,"IEA 2015, Projected cost of generating electricity 2015",2011,"EUR",0]
[null,null,"TechBase","TechBase - Natural gas CCGT INT - 2030",43,1.1310039154982301,"Natural gas CCGT INT",null,2030,"NO","Natural gas",0.80361352990781243,0,23569.884380504896,2.1697565307510938,0,0,0,0.59,0.58344676845207699,0,0,5000,0,0,1,30,2,0,39,2,1,0,"Central","00:00:00",0,"00:00:00",0,"IEA, 2015, Projected cost of generating electricity 2015” ",2011,"EUR",0]
[null,null,"TechBase","TechBase - 19WIN_ON_in Onshore wind incl. Grid - 2030",109,1.0703816410876448,"19WIN_ON_in Onshore wind incl. Grid",null,2030,"NO","Wind",1.0596778246767684,5.3519082054382244E-2,13486.808677704325,1.4450152154683205,0,0,0,1,1,0,0,3600,0,0,0,30,1.5,0,0,0,0,0,"Decentral","2019-05-28","chwo","00:00:00",0,"Tech Cat 2019 Update",2015,"EUR",0]
[null,null,"TechBase","TechBase - 0 - 2030","","",0,null,2030,"","","","","","","","","","","","","","","","","","","","","","","","","","","","","","","","",""]
[null,null,"TechBase","TechBase - 0 - 2030","","",0,null,2030,"","","","","","","","","","","","","","","","","","","","","","","","","","","","","","","","",""]
[null,null,"TechBase","TechBase - 0 - 2030","","",0,null,2030,{"$f":"IFERROR(IF(J$29=\"Text\",INDEX(TechDataGross,$E51,J$30),INDEX(TechDataGross,$E51,J$30)*IF(J$29=\"Economy\",$F51,1)),\"\")","v":""},"","","","","","","","","",{"$f":"IFERROR(IF(T$29=\"Text\",INDEX(TechDataGross,$E51,T$30),INDEX(TechDataGross,$E51,T$30)*IF(T$29=\"Economy\",$F51,1)),\"\")","v":""},"","","","","","","","","",{"$f":"IFERROR(IF(AD$29=\"Text\",INDEX(TechDataGross,$E51,AD$30),INDEX(TechDataGross,$E51,AD$30)*IF(AD$29=\"Economy\",$F51,1)),\"\")","v":""},"","","","","","","","","","","",""]
[null,null,"TechBase","TechBase - 0 - 2030","","",0,null,2030,"","","","","","","","","","","","","","","","","","","","","","","","","","","","","","","","",""]
[null,null,"TechBase","TechBase - 0 - 2030","","",0,null,2030,"","","","","","","","","","","","","","","","","","","","","","","","","","","","","","","","",""]
[null,null,"TechBase","TechBase - 0 - 2030","","",0,null,2030,"","","","","","","","","","","","","","","","","","","","","","","","","","","","","","","","",""]
[null,null,"TechBase","TechBase - 0 - 2030","","",0,null,2030,"","","","","","","","","","","","","","","","","","","","","","","","","","","","","","","","",""]
[null,null,"TechBase","TechBase - 0 - 2030","","",0,null,2030,"","","","","","","","","","","","","","","","","","","","","","","","","","","","","","","","",""]
[null,null,"TechBase","TechBase - 0 - 2030","","",0,null,2030,"","","","","","","","","","","","","","","","","","","","","","","","","","","","","","","","",""]
[]
[null,"Data scenarios "]
[]
[null,null,null,null,null,null,"TechBase"]
[null,null,{"$f":"C$27","v":"Tech scenario"},{"$f":"D$27","v":"Full Name"},"Row for lookup","Adjustment for price level",{"$f":"G$27","v":"Technology"},"Source name","Year","Combined heat and power (CHP)","Fuel","Investment","Grid investment","Fixed O&M","Var. O&M","Other costs","CV","CB","Total efficiency","Electric efficiency condensing","Electric efficiency CHP","Heat efficiency","Full load hours","Profile costs","Balancing costs","Condensing ratio","Technical lifetime","Construction time","Desulphur","Emission factor NOx","Emission factor CH4","Emission factor N2O","Emission factor PM2,5","Geography","Date for data input/update","Desk officer","QA date","QA officer","Reference","Price year in reference","Currency in reference","Comment"]
[null,null,null,null,null,null,{"$f":"IF(G$28=\"\",\"\",G$28)","v":""},{"$f":"IF(H$28=\"\",\"\",H$28)","v":""},"","","","mio.EUR/MW","mio.EUR/MW","EUR/MW/år","EUR/MWh","EUR/MWh","","","","","","","","EUR/MWh","EUR/MWh","","years","years","%","g/GJ fuel","g/GJ fuel","g/GJ fuel","g/GJ fuel","","","",null,null,"","",""]
[null,"techbase",{"$f":"$G$61","v":"TechBase"},{"$f":"C64&\" - \"&G64&\" - \"&I64","v":"TechBase - 18Me BP WCH in_st 80 MW input, woodchips storage for 10 days   - 2015"},null,null,"18Me BP WCH in_st 80 MW input, woodchips storage for 10 days  ","09  Biomass Woodchips  medium CHP, Tech Cat  2018 Update",2015,"YES","Wood chips",3.8200000000000003,null,158400,3.8285617242601986,null,null,0.32864648877678909,1.1094317462152197,0.27442276859272824,0.27442276859272824,0.83500897762249138,4000,null,null,null,25,2.5,0.97970000000000002,90,3.1,0.81200000000000006,2,"Central","02.03-18","mka","2018-04-23","rin","Tech Cat  2018 Update",2015,"EUR"]
[null,null,"TechBase","TechBase - 18Me BP WCH in_st 80 MW input, woodchips storage for 10 days   - 2020",null,null,"18Me BP WCH in_st 80 MW input, woodchips storage for 10 days  ","09  Biomass Woodchips  medium CHP, Tech Cat  2018 Update",2020,"YES","Wood chips",3.72,null,153600,3.8285617337336895,null,null,0.32864648768847199,1.1094317462351564,0.27442276791368952,0.27442276791368952,0.83500897832146681,4000,null,null,null,25,2.5,0.97970000000000002,72,2.17,0.64960000000000007,0.3,"Central","02.03-18","mka","2018-04-23","rin","Tech Cat  2018 Update",2015,"EUR"]
[null,null,"TechBase","TechBase - 18Me BP WCH in_st 80 MW input, woodchips storage for 10 days   - 2030",null,null,"18Me BP WCH in_st 80 MW input, woodchips storage for 10 days  ","09  Biomass Woodchips  medium CHP, Tech Cat  2018 Update",2030,"YES","Wood chips",3.6120000000000001,null,144000,3.8139028114110705,null,null,0.3303464138167973,1.1093825224040659,0.27547752526785418,0.27547752526785418,0.8339049971362118,4000,null,null,null,25,2.5,0.97970000000000002,40.6,1.5189999999999999,0.51968000000000014,0.3,"Central","02.03-18","mka","2018-04-23","rin","Tech Cat  2018 Update",2015,"EUR"]
[null,null,"TechBase","TechBase - 18Me BP WCH in_st 80 MW input, woodchips storage for 10 days   - 2050",null,null,"18Me BP WCH in_st 80 MW input, woodchips storage for 10 days  ","09  Biomass Woodchips  medium CHP, Tech Cat  2018 Update",2050,"YES","Wood chips",3.4039999999999999,null,132800,3.8848167707471326,null,null,0.32228094383407324,1.1096202328416156,0.27044892207298926,0.27044892207298926,0.83917131076862628,4000,null,null,null,25,2.5,0.97970000000000002,24.360000000000003,0.75949999999999995,1,0.3,"Central","02.03-18","mka","2018-04-23","rin","Tech Cat  2018 Update",2015,"EUR"]
[null,null,"TechBase","TechBase - 18Me BP WPE in_st 80 MW input, woodpellets storage for 10 days   - 2015",null,null,"18Me BP WPE in_st 80 MW input, woodpellets storage for 10 days  ","09  Biomass wood pellets medium CHP,Tech Cat  2018 Update",2015,"YES","Wood pellets",3.1779999999999999,null,130834.05288197054,1.6902018036010542,null,null,0.42121001842934896,0.9665169079884679,0.2864507,0.2864507,0.68006620798846784,4000,null,null,0,25,2.5,0.98250000000000004,77.58620689655173,0,1,2,"Decentral","02.03-18","mka","2018-04-23","rin","Tech Cat  2018 Update",2015,"EUR"]
[null,null,"TechBase","TechBase - 18Me BP WPE in_st 80 MW input, woodpellets storage for 10 days   - 2020",null,null,"18Me BP WPE in_st 80 MW input, woodpellets storage for 10 days  ","09  Biomass wood pellets medium CHP,Tech Cat  2018 Update",2020,"YES","Wood pellets",3.09944,null,127078.41302300352,1.6902018020330134,null,null,0.42121001859877616,0.96651690771491849,0.2864507,0.2864507,0.68006620771491855,4000,null,null,0,25,2.5,0.98250000000000004,62.068965517241388,0,1,0.3,"Decentral","02.03-18","mka","2018-04-23","rin","Tech Cat  2018 Update",2015,"EUR"]
[null,null,"TechBase","TechBase - 18Me BP WPE in_st 80 MW input, woodpellets storage for 10 days   - 2030",null,null,"18Me BP WPE in_st 80 MW input, woodpellets storage for 10 days  ","09  Biomass wood pellets medium CHP,Tech Cat  2018 Update",2030,"YES","Wood pellets",3.07924,null,123339.97037548946,1.7083571895169589,null,null,0.42294158174211172,0.96647900563145583,0.28726699999999999,0.28726699999999999,0.67921200563145578,4000,null,null,0,25,2.5,0.98250000000000004,35,0,1,0.3,"Decentral","02.03-18","mka","2018-04-23","rin","Tech Cat  2018 Update",2015,"EUR"]
[null,null,"TechBase","TechBase - 18Me BP WPE in_st 80 MW input, woodpellets storage for 10 days   - 2050",null,null,"18Me BP WPE in_st 80 MW input, woodpellets storage for 10 days  ","09  Biomass wood pellets medium CHP,Tech Cat  2018 Update",2050,"YES","Wood pellets",2.7951600000000001,null,110824.99417221779,1.7083571915981082,null,null,0.41478871798494993,0.96666124207186899,0.2834064,0.2834064,0.68325484207186904,4000,null,null,0,25,2.5,0.98250000000000004,21.000000000000004,0,0,0.3,"Decentral","02.03-18","mka","2018-04-23","rin","Tech Cat  2018 Update",2015,"EUR"]
[null,null,"TechBase",{"$f":"C72&\" - \"&G72&\" - \"&I72","v":"TechBase - 18La BP WPE in_st 800 MW input, woodpellets storage for 10 days   - 2015"},null,null,"18La BP WPE in_st 800 MW input, woodpellets storage for 10 days  ","09  Biomass wood pellets Large CHP, Tech Cat  2018 Update",2015,"YES","Wood pellets",2.3945261980446499,null,65665.324252910839,1.5646984412158398,null,0.18,0.47311648536684831,0.96344457926184712,0.4271498850931264,0.30942665954389503,0.65401791971795209,5000,null,null,0.2,25,5,0.98250000000000004,20,0,1,0.3,"central","02.03-18","mka","2018-04-23","rin","Tech Cat  2018 Update",2015,"EUR"]
[null,null,"TechBase","TechBase - 18La BP WPE in_st 800 MW input, woodpellets storage for 10 days   - 2020",null,null,"18La BP WPE in_st 800 MW input, woodpellets storage for 10 days  ","09  Biomass wood pellets Large CHP, Tech Cat  2018 Update",2020,"YES","Wood pellets",2.3240888420235999,null,64012.323839235803,1.5611796372489781,null,0.18,0.47332375190847281,0.96532908746550539,0.42806098824674721,0.3101240884182393,0.65520499904726603,5000,null,null,0.2,25,5,0.98250000000000004,20.689655172413797,0,1,0.3,"central","02.03-18","mka","2018-04-23","rin","Tech Cat  2018 Update",2015,"EUR"]
[null,null,"TechBase","TechBase - 18La BP WPE in_st 800 MW input, woodpellets storage for 10 days   - 2030",null,null,"18La BP WPE in_st 800 MW input, woodpellets storage for 10 days  ","09  Biomass wood pellets Large CHP, Tech Cat  2018 Update",2030,"YES","Wood pellets",2.20826031176126,null,61006.990857100493,1.5570451463468089,null,0.15,0.47520905914218764,0.96528605715728899,0.40909834701619185,0.31094757463835121,0.65433848251893778,5000,null,null,0.2,25,5,0.98250000000000004,17.5,0,1,0.3,"central","02.03-18","mka","2018-04-23","rin","Tech Cat  2018 Update",2015,"EUR"]
[null,null,"TechBase","TechBase - 18La BP WPE in_st 800 MW input, woodpellets storage for 10 days   - 2050",null,null,"18La BP WPE in_st 800 MW input, woodpellets storage for 10 days  ","09  Biomass wood pellets Large CHP, Tech Cat  2018 Update",2050,"YES","Wood pellets",2.00465808640487,null,55940.460890428876,1.5570451462584083,null,0.15,0.47520905918216289,0.96528605715704896,0.40909834703116171,0.31094757465600514,0.65433848250104376,5000,null,null,0.2,25,5,0.98250000000000004,10.500000000000002,0,0,0.3,"central","02.03-18","mka","2018-04-23","rin","Tech Cat  2018 Update",2015,"EUR"]
[null,null,"TechBase","TechBase - 18 Me BP STR 80MW input, Straw CHP Medium, 2 days storage - 2015",null,null,"18 Me BP STR 80MW input, Straw CHP Medium, 2 days storage","09  Biomass straw medium CHP, Tech Cat March 2018 Update",2015,"YES","Straw",3.7380880501483702,null,150355.01551455201,1.9366863071145599,null,1,0.46027125616611103,0.98251242861562371,0.29419953068156074,0.29419953068156074,0.68831289793406303,4000,null,null,0,25,2.5,0.95499999999999996,90,0.5,1.1000000000000001,1.1100000000000001,"Decentral","02.03-18","mka","2018-04-23","rin","Tech Cat March 2018 Update",2015,"EUR"]
[null,null,"TechBase","TechBase - 18 Me BP STR 80MW input, Straw CHP Medium, 2 days storage - 2020",null,null,"18 Me BP STR 80MW input, Straw CHP Medium, 2 days storage","09  Biomass straw medium CHP, Tech Cat March 2018 Update",2020,"YES","Straw",3.7957187494237301,null,149946.23767975299,1.9642599999999999,null,1,0.46027125728065016,0.98273106065086102,0.29006989021729701,0.29006989021729701,0.69266117043356401,4000,null,null,0,25,2.5,0.96250000000000002,70,0.5,1.1000000000000001,1.1100000000000001,"Decentral","02.03-18","mka","2018-04-23","rin","Tech Cat March 2018 Update",2015,"EUR"]
[null,null,"TechBase","TechBase - 18 Me BP STR 80MW input, Straw CHP Medium, 2 days storage - 2030",null,null,"18 Me BP STR 80MW input, Straw CHP Medium, 2 days storage","09  Biomass straw medium CHP, Tech Cat March 2018 Update",2030,"YES","Straw",3.6042404269245498,null,141072.20045603201,1.9584390289092699,null,1,0.46231220649304788,0.98268643536897815,0.29093180585809203,0.29093180585809203,0.69175462951088607,4000,null,null,0,25,2.5,0.99,50,0.5,1.1000000000000001,1.1100000000000001,"Decentral","02.03-18","mka","2018-04-23","rin","Tech Cat March 2018 Update",2015,"EUR"]
[null,null,"TechBase","TechBase - 18 Me BP STR 80MW input, Straw CHP Medium, 2 days storage - 2050",null,null,"18 Me BP STR 80MW input, Straw CHP Medium, 2 days storage","09  Biomass straw medium CHP, Tech Cat March 2018 Update",2050,"YES","Straw",3.26977813008767,null,126266.50953492,1.9584390289092699,null,1,0.45272737543362335,0.98268643537966793,0.29093180549400899,0.29093180549400899,0.69175462988565894,4000,null,null,0,25,2.5,0.99750000000000005,30,0.5,1.1000000000000001,1.1100000000000001,"Decentral","02.03-18","mka","2018-04-23","rin","Tech Cat March 2018 Update",2015,"EUR"]
[null,null,"TechBase","TechBase - 16 ME BP SC NGA - Gas Turbine Single Cycle, medium,natural gas  - 2015",null,null,"16 ME BP SC NGA - Gas Turbine Single Cycle, medium,natural gas ","04  Gas Turbine Single Cycle - Large Scale Plant, Tech Cat 2016",2015,"YES","Natural gas",0.6,null,20000,4.5,null,0,0.95,0.84157894736842098,0.39,0.39,0.41052631578947374,5000,null,null,0.2,25,1.5,0,20,1.5,1,0,"Central","2018-02-01","mka",null,null,"Tech Cat 2016",2015,"EUR"]
[null,null,"TechBase","TechBase - 16 ME BP SC NGA - Gas Turbine Single Cycle, medium,natural gas  - 2020",null,null,"16 ME BP SC NGA - Gas Turbine Single Cycle, medium,natural gas ","04  Gas Turbine Single Cycle - Large Scale Plant, Tech Cat 2016",2020,"YES","Natural gas",0.59,null,19500,4.4000000000000004,null,0,0.96,0.85749999999999993,0.4,0.4,0.41666666666666669,5000,null,null,0.2,25,1.5,0,15,1.5,1,0,"Central","2018-02-01","mka",null,null,"Tech Cat 2016",2015,"EUR"]
[null,null,"TechBase","TechBase - 16 ME BP SC NGA - Gas Turbine Single Cycle, medium,natural gas  - 2030",null,null,"16 ME BP SC NGA - Gas Turbine Single Cycle, medium,natural gas ","04  Gas Turbine Single Cycle - Large Scale Plant, Tech Cat 2016",2030,"YES","Natural gas",0.56000000000000005,null,18600,4.2,null,0,1,0.86,0.41,0.41,0.41,5000,null,null,0.2,25,1.5,0,10,1.5,1,0,"Central","2018-02-01","mka",null,null,"Tech Cat 2016",2015,"EUR"]
[null,null,"TechBase","TechBase - 16 ME BP SC NGA - Gas Turbine Single Cycle, medium,natural gas  - 2050",null,null,"16 ME BP SC NGA - Gas Turbine Single Cycle, medium,natural gas ","04  Gas Turbine Single Cycle - Large Scale Plant, Tech Cat 2016",2050,"YES","Natural gas",0.52,null,18000,4,null,0,1,0.9,0.43,0.43,0.43,5000,null,null,0.2,25,1.5,0,10,1.5,1,0,"Central","2018-02-01","mka",null,null,"Tech Cat 2016",2015,"EUR"]
[null,null,"TechBase","TechBase - 16La EX CC NGA CC large CHP Gas Turbine combined Cycle natural Gas  \n - 2015",null,null,"16La EX CC NGA CC large CHP Gas Turbine combined Cycle natural Gas  \n"," 05  Gas Turbine Combined Cycle - Extraction plant, Tech Cat 2016",2015,"YES","Natural gas",0.9,null,30000,4.5,null,0.15,1.7,0.8464864864864865,0.55000000000000004,0.53297297297297297,0.31351351351351353,5000,null,null,0.2,25,2.5,0,20,1.5,1,0,"Central","02.03-18","mka",null,null,"Tech Cat 2016",2015,"EUR"]
[null,null,"TechBase","TechBase - 16La EX CC NGA CC large CHP Gas Turbine combined Cycle natural Gas  \n - 2020",null,null,"16La EX CC NGA CC large CHP Gas Turbine combined Cycle natural Gas  \n"," 05  Gas Turbine Combined Cycle - Extraction plant, Tech Cat 2016",2020,"YES","Natural gas",0.88,null,29300,4.4000000000000004,null,0.15,1.8,0.8471794871794871,0.56000000000000005,0.54461538461538461,0.30256410256410254,5000,null,null,0.2,25,2.5,0,15,1.5,1,0,"Central","02.03-18","mka",null,null,"Tech Cat 2016",2015,"EUR"]
[null,null,"TechBase","TechBase - 16La EX CC NGA CC large CHP Gas Turbine combined Cycle natural Gas  \n - 2030",null,null,"16La EX CC NGA CC large CHP Gas Turbine combined Cycle natural Gas  \n"," 05  Gas Turbine Combined Cycle - Extraction plant, Tech Cat 2016",2030,"YES","Natural gas",0.83,null,27800,4.2,null,0.15,2,0.85116279069767442,0.57999999999999996,0.56744186046511624,0.28372093023255812,5000,null,null,0.2,25,2.5,0,10,1.5,1,0,"Central","02.03-18","mka",null,null,"Tech Cat 2016",2015,"EUR"]
[null,null,"TechBase","TechBase - 16La EX CC NGA CC large CHP Gas Turbine combined Cycle natural Gas  \n - 2050",null,null,"16La EX CC NGA CC large CHP Gas Turbine combined Cycle natural Gas  \n"," 05  Gas Turbine Combined Cycle - Extraction plant, Tech Cat 2016",2050,"YES","Natural gas",0.8,null,26000,4,null,0.15,2.2000000000000002,0.85787234042553195,0.6,0.58978723404255318,0.26808510638297872,5000,null,null,0.2,25,2.5,0,8,1.5,1,0,"Central","02.03-18","mka",null,null,"Tech Cat 2016",2015,"EUR"]
[null,null,"TechBase","TechBase - 17La_EX_COA CHP coal 400-700 MWwe - 2015",null,null,"17La_EX_COA CHP coal 400-700 MWwe","01  Advanced Pulverized Fuel Power Plant - Coal, Tech Cat 2017",2015,"YES","Coal",1.93,null,31500,2.95,null,0.15,0.75,0.89444444444444438,0.45999999999999996,0.3833333333333333,0.51111111111111107,5000,null,null,0.2,25,4.5,0.97,38,1.5,0.8,2.1,"Central","02.03-18","mka",null,null,"Tech Cat Oct. 2017 update",2015,"EUR"]
[null,null,"TechBase","TechBase - 17La_EX_COA CHP coal 400-700 MWwe - 2020",null,null,"17La_EX_COA CHP coal 400-700 MWwe","01  Advanced Pulverized Fuel Power Plant - Coal, Tech Cat 2017",2020,"YES","Coal",1.9,null,31000,2.9,null,0.15,0.84,0.90141414141414145,0.48499999999999999,0.4115151515151515,0.48989898989898989,5000,null,null,0.2,25,4.5,0.97,35,1.5,0.8,2.1,"Central","02.03-18","mka",null,null,"Tech Cat Oct. 2017 update",2015,"EUR"]
[null,null,"TechBase","TechBase - 17La_EX_COA CHP coal 400-700 MWwe - 2030",null,null,"17La_EX_COA CHP coal 400-700 MWwe","01  Advanced Pulverized Fuel Power Plant - Coal, Tech Cat 2017",2030,"YES","Coal",1.86047495123227,null,30355.117625368599,2.8396722939861001,null,0.15,1.01,0.90103448275862097,0.52,0.452758620689655,0.44827586206896602,5000,null,null,0.2,25,4.5,0.97,35,1.5,0.8,2.1,"Central","02.03-18","mka",null,null,"Tech Cat Oct. 2017 update",2015,"EUR"]
[null,null,"TechBase","TechBase - 17La_EX_COA CHP coal 400-700 MWwe - 2040",null,null,"17La_EX_COA CHP coal 400-700 MWwe","01  Advanced Pulverized Fuel Power Plant - Coal, Tech Cat 2017",2040,"YES","Coal",1.8221746892845001,null,29730.218614641901,2.78121399943424,null,0.15,1.01,0.91403017241379303,0.52749999999999997,0.459288793103448,0.45474137931034497,5000,null,null,0.2,25,4.5,0.97,35,1.5,0.8,2.1,"Central","06.05-24","thoda - average of 2030 and 2050",null,null,"Tech Cat May. 2024 update",2015,"EUR"]
[null,null,"TechBase","TechBase - 17La_EX_COA CHP coal 400-700 MWwe - 2050",null,null,"17La_EX_COA CHP coal 400-700 MWwe","01  Advanced Pulverized Fuel Power Plant - Coal, Tech Cat 2017",2050,"YES","Coal",1.78387442733674,null,29105.319603915199,2.72275570488239,null,0.15,1.01,0.92702586206896598,0.53500000000000003,0.465818965517241,0.46120689655172398,5000,null,null,0.2,25,4.5,0.97,35,1.5,0.8,2.1,"Central","02.03-18","mka",null,null,"Tech Cat Oct. 2017 update",2015,"EUR"]
[null,null,"TechBase","TechBase - Coal FGD INT - 2015",null,null,"Coal FGD INT","Table 6.2 , Projected cost of generating electricity 2015” (IEA, 2015)",2015,"NO","Coal",1.7509517999203041,null,26296.250901237891,2.5883635303169714,null,0,0,0.45,0.45,{"$f":"IF(R93=0,0,R93*T93/(R93+Q93))","v":0},{"$f":"IF(R93=0,0,T93/(R93+Q93))","v":0},5000,null,null,1,40,4,0.95,196.30555555555557,1.5,0.8,13.361111111111111,"Central",null,null,null,null,"IEA 2015, Projected cost of generating electricity 2015",2011,"EUR"]
[null,null,"TechBase","TechBase - Coal FGD INT - 2020",null,null,"Coal FGD INT","Table 6.2 , Projected cost of generating electricity 2015” (IEA, 2015)",2020,{"$f":"J93","v":"NO"},"Coal",{"$f":"(1+(L89-L88)/L88)*L93","v":1.7237349325640299},null,{"$f":"(1+(N89-N88)/N88)*N93","v":25878.850093281733},{"$f":"(1+(O89-O88)/O88)*O93","v":2.544492962006514},null,0,0,0.45,0.45,null,null,5000,null,null,1,40,4,0.95,196.30555555555557,1.5,0.8,13.361111111111111,"Central",null,null,null,null,"IEA 2015, Projected cost of generating electricity 2015",2011,"EUR"]
[null,null,"TechBase","TechBase - Coal FGD INT - 2030",null,null,"Coal FGD INT","Table 6.2 , Projected cost of generating electricity 2015” (IEA, 2015)",2030,{"$f":"J94","v":"NO"},"Coal",{"$f":"(1+(L90-L89)/L89)*L94","v":1.6878766655786441},null,{"$f":"(1+(N90-N89)/N89)*N94","v":25340.501244866067},{"$f":"(1+(O90-O89)/O89)*O94","v":2.4915607470525947},null,0,0,0.45,0.45,null,null,5000,null,null,1,40,4,0.95,196.30555555555557,1.5,0.8,13.361111111111111,"Central",null,null,null,null,"IEA 2015, Projected cost of generating electricity 2015",2011,"EUR"]
[null,null,"TechBase","TechBase - Coal FGD INT - 2050",null,null,"Coal FGD INT","Table 6.2 , Projected cost of generating electricity 2015” (IEA, 2015)",2050,{"$f":"J95","v":"NO"},"Coal",{"$f":"(1+(L92-L90)/L90)*L95","v":1.6183824556357858},null,{"$f":"(1+(N92-N90)/N90)*N95","v":24297.167836992758},2.3889768028745952,null,0,0,0.45,0.45,null,null,5000,null,null,1,40,4,0.95,196.30555555555557,1.5,0.8,13.361111111111111,"Central",null,null,null,null,"IEA 2015, Projected cost of generating electricity 2015",2011,"EUR"]
[null,null,"TechBase","TechBase - Coal no FGD INT - 2015",null,null,"Coal no FGD INT","Table 6.2 , Projected cost of generating electricity 2015” (IEA, 2015)",2015,"NO","Coal",1.4883090299322586,null,22351.813266052206,2.2001090007694257,null,0,0,0.45,0.45,{"$f":"IF(R97=0,0,R97*T97/(R97+Q97))","v":0},{"$f":"IF(R97=0,0,T97/(R97+Q97))","v":0},5000,null,null,{"$f":"Z93","v":1},40,4,0,196,2,1,13,"Central",null,null,null,null,"IEA 2015, Projected cost of generating electricity 2015",2011,"EUR"]
[null,null,"TechBase","TechBase - Coal no FGD INT - 2020",null,null,"Coal no FGD INT","Table 6.2 , Projected cost of generating electricity 2015” (IEA, 2015)",2020,"NO","Coal",{"$f":"(1+(L89-L88)/L88)*L97","v":1.4651746926794254},null,{"$f":"(1+(N89-N88)/N88)*N97","v":21997.022579289474},{"$f":"(1+(O89-O88)/O88)*O97","v":2.1628190177055369},null,0,0,0.45,0.45,0,0,5000,null,null,1,40,4,0,196,2,1,13,"Central",null,null,null,null,"IEA 2015, Projected cost of generating electricity 2015",2011,"EUR"]
[null,null,"TechBase","TechBase - Coal no FGD INT - 2030",null,null,"Coal no FGD INT","Table 6.2 , Projected cost of generating electricity 2015” (IEA, 2015)",2030,"NO","Coal",{"$f":"(1+(L90-L89)/L89)*L98","v":1.4346951657418476},null,{"$f":"(1+(N90-N89)/N89)*N98","v":21539.42605813616},{"$f":"(1+(O90-O89)/O89)*O98","v":2.1178266349947052},null,0,0,0.45,0.45,0,0,5000,null,null,1,40,4,0,196,2,1,13,"Central",null,null,null,null,"IEA 2015, Projected cost of generating electricity 2015",2011,"EUR"]
[null,null,"TechBase","TechBase - Coal no FGD INT - 2050",null,null,"Coal no FGD INT","Table 6.2 , Projected cost of generating electricity 2015” (IEA, 2015)",2050,"NO","Coal",{"$f":"(1+(L92-L90)/L90)*L99","v":1.3756250872904179},null,{"$f":"(1+(N92-N90)/N90)*N99","v":20652.592661443847},2.0306302824434059,null,0,0,0.45,0.45,0,0,5000,null,null,1,40,4,0,196,2,1,13,"Central",null,null,null,null,"IEA 2015, Projected cost of generating electricity 2015",2011,"EUR"]
[null,null,{"$f":"$G$61","v":"TechBase"},{"$f":"C101&\" - \"&G101&\" - \"&I101","v":"TechBase - Natural gas CCGT INT - 2015"},null,null,"Natural gas CCGT INT","Table 6.1,  Projected cost of generating electricity 2015” (IEA, 2015)",2015,"NO","Natural gas",0.76128339126969746,null,22408.376622023545,2.0554651564281836,null,0,0,0.59,0.59,0,0,5000,null,null,1,30,2,0,39,2,1,0,"Central",null,null,null,null,"IEA, 2015, Projected cost of generating electricity 2015” ",2011,"EUR"]
[null,null,"TechBase","TechBase - Natural gas CCGT INT - 2020",null,null,"Natural gas CCGT INT","Table 6.1,  Projected cost of generating electricity 2015” (IEA, 2015)",2020,"NO","Natural gas",{"$f":"(1+(L81-L80)/L80)*L101","v":0.74859533474853579},null,{"$f":"(1+(N81-N80)/N80)*N101","v":21848.167206472957},2.0097881529520021,null,0,0,0.59,0.58171824690450358,0,0,5000,null,null,1,{"$f":"AA101","v":30},2,0,39,2,1,0,"Central",null,null,null,null,"IEA, 2015, Projected cost of generating electricity 2015” ",2011,"EUR"]
[null,null,"TechBase","TechBase - Natural gas CCGT INT - 2030",null,null,"Natural gas CCGT INT","Table 6.1,  Projected cost of generating electricity 2015” (IEA, 2015)",2030,"NO","Natural gas",{"$f":"(1+(L82-L81)/L81)*L102","v":0.71053116518505099},null,20839.790258481895,1.9184341459996381,null,0,0,0.59,0.58344676845207699,0,0,5000,null,null,1,{"$f":"AA102","v":30},2,0,39,2,1,0,"Central",null,null,null,null,"IEA, 2015, Projected cost of generating electricity 2015” ",2011,"EUR"]
[null,null,"TechBase","TechBase - Natural gas CCGT INT - 2050",null,null,"Natural gas CCGT INT","Table 6.1,  Projected cost of generating electricity 2015” (IEA, 2015)",2050,"NO","Natural gas",{"$f":"(1+(L83-L82)/L82)*L103","v":0.65977893910040442},null,20167.538959821188,1.8270801390472744,null,0,0,0.59,0.58344676772192972,0,0,5000,null,null,1,{"$f":"AA103","v":30},2,0,39,2,1,0,"Central",null,null,null,null,"IEA, 2015, Projected cost of generating electricity 2015” ",2011,"EUR"]
[null,null,"TechBase","TechBase - Nuclear INT - 2015",null,null,"Nuclear INT","Table 6.3,  Projected cost of generating electricity 2015” (IEA, 2015)",2015,"NO","Uranium",3.7302886172215182,null,52376.297319355188,5.2528553997609135,4,0,0,1,1,0,0,7000,null,null,1,60,7,0,0,0,0,0,"Central",null,null,null,null,"IEA, 2015, Projected cost of generating electricity 2015” ",2011,"EUR"]
[null,null,"TechBase","TechBase - Nuclear INT - 2020",null,null,"Nuclear INT","Table 6.3,  Projected cost of generating electricity 2015” (IEA, 2015)",2020,"NO","Uranium",3.7302886172215182,null,52376.297319355188,5.2528553997609135,4,0,0,1,1,0,0,{"$f":"W105","v":7000},null,null,1,60,7,0,0,0,0,0,"Central",null,null,null,null,"IEA, 2015, Projected cost of generating electricity 2015” ",2011,"EUR"]
[null,null,"TechBase","TechBase - Nuclear INT - 2030",null,null,"Nuclear INT","Table 6.3,  Projected cost of generating electricity 2015” (IEA, 2015)",2030,"NO","Uranium",3.7302886172215182,null,52376.297319355188,5.2528553997609135,4,0,0,1,1,0,0,{"$f":"W106","v":7000},null,null,1,60,7,0,0,0,0,0,"Central",null,null,null,null,"IEA, 2015, Projected cost of generating electricity 2015” ",2011,"EUR"]
[null,null,"TechBase","TechBase - Nuclear INT - 2050",null,null,"Nuclear INT","Table 6.3,  Projected cost of generating electricity 2015” (IEA, 2015)",2050,"NO","Uranium",3.7302886172215182,null,52376.297319355188,5.2528553997609135,4,0,0,1,1,0,0,{"$f":"W107","v":7000},null,null,1,60,7,0,0,0,0,0,"Central",null,null,null,null,"IEA, 2015, Projected cost of generating electricity 2015” ",2011,"EUR"]
[null,null,"TechBase","TechBase - Solar PV INT - 2015",null,null,"Solar PV INT","Table 6.6, Projected cost of generating electricity 2015” (IEA, 2015)",2015,"NO","Solar",1.2,null,12000,0,0,0,0,1,1,0,0,1700,null,null,0,25,1,0,0,0,0,0,"Decentral",null,null,null,null,"IEA, 2015, Projected cost of generating electricity 2015” ",2011,"EUR"]
[null,null,"TechBase","TechBase - Solar PV INT - 2020",null,null,"Solar PV INT","Table 6.7, Projected cost of generating electricity 2015” (IEA, 2015)",2020,"NO","Solar",{"$f":"(1+(L77-L76)/L76)*L109","v":1.21850059126555},null,{"$f":"(1+(N77-N76)/N76)*N109","v":11967.374989116253},0,0,0,0,1,1,0,0,1700,null,null,0,25,1,0,0,0,0,0,"Decentral",null,null,null,null,"IEA, 2015, Projected cost of generating electricity 2015” ",2011,"EUR"]
[null,null,"TechBase","TechBase - Solar PV INT - 2030",null,null,"Solar PV INT","Table 6.8, Projected cost of generating electricity 2015” (IEA, 2015)",2030,"NO","Solar",{"$f":"(1+(L78-L77)/L77)*L110","v":1.157032272725034},null,{"$f":"(1+(N78-N77)/N77)*N110","v":11259.128268378525},0,0,0,0,1,1,0,0,1700,null,null,0,25,1,0,0,0,0,0,"Decentral",null,null,null,null,"IEA, 2015, Projected cost of generating electricity 2015” ",2011,"EUR"]
[null,null,"TechBase","TechBase - Solar PV INT - 2050",null,null,"Solar PV INT","Table 6.9, Projected cost of generating electricity 2015” (IEA, 2015)",2050,"NO","Solar",{"$f":"(1+(L79-L78)/L78)*L111","v":1.0496632779823003},null,{"$f":"(1+(N79-N78)/N78)*N111","v":10077.469708833176},0,0,0,0,1,1,0,0,1700,null,null,0,25,1,0,0,0,0,0,"Decentral",null,null,null,null,"IEA, 2015, Projected cost of generating electricity 2015” ",2011,"EUR"]
[null,null,"TechBase","TechBase - Solar PV INT(/DK)* - 2015",null,null,"Solar PV INT(/DK)*","Table 6.6 /22 PV Large Tech kat 2017",2015,"NO","Solar",1.08,null,9500,0,0,0,0,1,1,0,0,1700,null,null,0,25,1,0,0,0,0,0,null,null,null,"2018-04-23","rin","The value for investement and O&M euqual to large PV DK update  oct 2017",2015,"EUR"]
[null,null,"TechBase","TechBase - Solar PV INT(/DK)* - 2020",null,null,"Solar PV INT(/DK)*","Table 6.7 /22 PV Large Tech kat 2017",2020,"NO","Solar",0.62,null,8100,0,0,0,0,1,1,0,0,1700,null,null,0,25,1,0,0,0,0,0,null,null,null,"2018-04-23","rin","The value for investement and O&M euqual to large PV DK update  oct 2017. But FLH 1700 h/y which is app. 90 %higher than in DK ",2015,"EUR"]
[null,null,"TechBase","TechBase - Solar PV INT(/DK)* - 2030",null,null,"Solar PV INT(/DK)*","Table 6.8/22 PV Large Tech kat 2017",2030,"NO","Solar",0.51,null,6500,0,0,0,0,1,1,0,0,1700,null,null,0,25,1,0,0,0,0,0,null,null,null,"2018-04-23","rin","The value for investement and O&M euqual to large PV DK update  oct 2017",2015,"EUR"]
[null,null,"TechBase","TechBase - Solar PV INT(/DK)* - 2050",null,null,"Solar PV INT(/DK)*","Table 6.9/22 PV Large Tech kat 2017",2050,"NO","Solar",0.41,null,5500,0,0,0,0,1,1,0,0,1700,null,null,0,25,1,0,0,0,0,0,null,null,null,"2018-04-23","rin","The value for investement and O&M euqual to large PV DK update  oct 2017",2015,"EUR"]
[null,null,"TechBase","TechBase - Wind onshore INT - 2015",null,null,"Wind onshore INT","Table 6.7, Projected cost of generating electricity 2015” (IEA, 2015)",2015,"NO","Wind",1.3703101042854555,null,34619.362217989496,4.4915720084912163,0,0,0,1,1,{"$f":"IF(R117=0,0,R117*T117/(R117+Q117))","v":0},{"$f":"IF(R117=0,0,T117/(R117+Q117))","v":0},3100,null,null,{"$f":"Z109","v":0},25,1,0,0,0,0,0,"Decentral",null,null,null,null,"IEA, 2015, Projected cost of generating electricity 2015” ",2011,"EUR"]
[null,null,"TechBase","TechBase - Wind onshore INT - 2020",null,null,"Wind onshore INT","Table 6.8, Projected cost of generating electricity 2015” (IEA, 2015)",2020,"NO","Wind",1.2628348019885569,null,32320.420195701132,4.010332150438586,{"$f":"P117","v":0},0,0,1,1,0,0,3150,null,null,{"$f":"Z110","v":0},25,1,0,0,0,0,0,"Decentral",null,null,null,null,"IEA, 2015, Projected cost of generating electricity 2015” ",2011,"EUR"]
[null,null,"TechBase","TechBase - Wind onshore INT - 2030",null,null,"Wind onshore INT","Table 6.9, Projected cost of generating electricity 2015” (IEA, 2015)",2030,"NO","Wind",1.1553594996916585,null,30156.710057076791,3.6895055784034989,{"$f":"P118","v":0},0,0,1,1,0,0,3200,null,null,{"$f":"Z111","v":0},30,1,0,0,0,0,0,"Decentral",null,null,null,null,"IEA, 2015, Projected cost of generating electricity 2015” ",2011,"EUR"]
[null,null,"TechBase","TechBase - Wind onshore INT - 2050",null,null,"Wind onshore INT","Table 6.10, Projected cost of generating electricity 2015” (IEA, 2015)",2050,"NO","Wind",1.0613186101818723,null,28669.159336772555,3.3686790063684122,{"$f":"P119","v":0},0,0,1,1,0,0,3300,null,null,{"$f":"Z112","v":0},35,1,0,0,0,0,0,"Decentral",null,null,null,null,"IEA, 2015, Projected cost of generating electricity 2015” ",2011,"EUR"]
[null,null,"TechBase","TechBase - Biomass plant INT - 2015",null,null,"Biomass plant INT","Irena 2015, Renewable Power Generation Costs in 2014 ",2015,"NO","local biomass",2.5260331192282415,null,80833.059815303728,3.5522340739147142,0,0,0,0.34,0.34,0,0,5000,null,null,1,40,4,0,42.7,3.1,0.8,13.25,"Central",null,null,null,null,"Irena 2015, Renewable Power Generation Costs in 2014 ",2011,"EUR"]
[null,null,"TechBase","TechBase - Biomass plant INT - 2020",null,null,"Biomass plant INT","Irena 2015, Renewable Power Generation Costs in 2014 ",2020,"NO","local biomass",{"$f":"(1+(L69-L68)/L68)*L121","v":2.4635897076969102},null,{"$f":"(1+(N69-N68)/N68)*N121","v":78512.716948309549},3.5522340706192215,0,0,0,0.34,0.34,0,0,5000,null,null,{"$f":"Z121","v":1},40,4,0,42.7,3.1,0.8,13.25,"Central",null,null,null,null,"Irena 2015, Renewable Power Generation Costs in 2014, Investment data for 2020,2030,2050 is estimated  from the development for large wood pellets ( 800MW / DK)",2011,"EUR"]
[null,null,"TechBase","TechBase - Biomass plant INT - 2030",null,null,"Biomass plant INT","Irena 2015, Renewable Power Generation Costs in 2014 ",2030,"NO","local biomass",{"$f":"(1+(L70-L69)/L69)*L122","v":2.4475337388459315},null,76202.999015660913,3.5903905711673767,0,0,0,0.34,0.34,0,0,5000,null,null,{"$f":"Z122","v":1},40,4,0,42.7,3.1,0.8,13.25,"Central",null,null,null,null,"Irena 2015, Renewable Power Generation Costs in 2014, Investment data for 2020,2030,2050 is estimated  from the development for large wood pellets ( 800MW / DK)",2011,"EUR"]
[null,null,"TechBase","TechBase - Biomass plant INT - 2050",null,null,"Biomass plant INT","Irena 2015, Renewable Power Generation Costs in 2014 ",2050,"NO","local biomass",{"$f":"(1+(L71-L70)/L70)*L123","v":2.2217327670050384},null,68470.884954050533,3.5903905755412504,0,0,0,0.34,0.34,0,0,5000,null,null,{"$f":"Z123","v":1},40,4,0,42.7,1.5,0.8,13.25,"Central",null,null,null,null,"Irena 2015, Renewable Power Generation Costs in 2014, Investment data for 2020,2030,2050 is estimated  from the development for large wood pellets ( 800MW / DK)",2011,"EUR"]
[null,null,"TechBase","TechBase - 18La BP WCH in_st 600 MW input, woodchips storage for 10 days   - 2015",null,null,"18La BP WCH in_st 600 MW input, woodchips storage for 10 days  ","09  Biomass  Woodchips  large  CHP, Tech Cat  2018 Update",2015,"YES","Wood chips",3.58,null,100500,3.8,null,null,0.33476794894938888,1.114150474243941,0.27943573965587898,0.27943573965587898,0.83471473458806189,5000,null,null,0,25,5,0.97970000000000002,30,3,10,0.3,"Central","02.03-18","mka","2018-04-23","rin","Tech Cat  2018 Update",2015,"EUR"]
[null,null,"TechBase","TechBase - 18La BP WCH in_st 600 MW input, woodchips storage for 10 days   - 2020",null,null,"18La BP WCH in_st 600 MW input, woodchips storage for 10 days  ","09  Biomass  Woodchips  large  CHP, Tech Cat  2018 Update",2020,"YES","Wood chips",3.48,null,97600,3.8,null,null,0.33489945243003943,1.114150474243941,0.28006476672356151,0.28006476672356151,0.83626522734332365,5000,null,null,0,25,5,0.97970000000000002,24,2,8,0.3,"Central","02.03-18","mka","2018-04-23","rin","Tech Cat  2018 Update",2015,"EUR"]
[null,null,"TechBase","TechBase - 18La BP WCH in_st 600 MW input, woodchips storage for 10 days   - 2030",null,null,"18La BP WCH in_st 600 MW input, woodchips storage for 10 days  ","09  Biomass  Woodchips  large  CHP, Tech Cat  2018 Update",2030,"YES","Wood chips",3.2720000000000002,null,92300,3.7,null,null,0.33654656787794884,1.114150474243941,0.28108745620779174,0.28108745620779174,0.83521118037290532,5000,null,null,0,25,5,0.97970000000000002,20,2,6,0.3,"Central","02.03-18","mka","2018-04-23","rin","Tech Cat  2018 Update",2015,"EUR"]
[null,null,"TechBase","TechBase - 18La BP WCH in_st 600 MW input, woodchips storage for 10 days   - 2050",null,null,"18La BP WCH in_st 600 MW input, woodchips storage for 10 days  ","09  Biomass  Woodchips  large  CHP, Tech Cat  2018 Update",2050,"YES","Wood chips",3.0640000000000001,null,86300,3.8,null,null,0.32861052349957437,1.114150474243941,0.27613651786294091,0.27613651786294091,0.84031550457421234,5000,null,null,0,25,5,0.97970000000000002,12,1,5,0.3,"Central","02.03-18","mka","2018-04-23","rin","Tech Cat  2018 Update",2015,"EUR"]
[null,null,"TechBase","TechBase - 16 La EX LTE COA no_inv_exipla  - Coal CHP Life time extension of coal power plant no invest cost for existing plant  - 2015",null,null,"16 La EX LTE COA no_inv_exipla  - Coal CHP Life time extension of coal power plant no invest cost for existing plant ","02 Life time extension of coal power plant, no investmentcost for existing coal plant, , Tech cat update 2016 and coal update(O&M) 2017  ",2015,"YES","Coal",0.24,null,33102.691850089228,3.1000933637385155,null,0.15,0.64,0.85113924050632905,0.41,0.33215189873417716,0.51898734177215189,5000,null,null,0.2,15,0.5,0.97,38,1.5,0.8,2.1,"Central","13.09-18","mka","2018-10-16","Rin","Tech Cat Aug 2016, coal note 2017 data for ex. Plant",2015,"EUR","It is assumed that plants that are refurbished in 2015 is commissioned in 1990 and have an electric efficiency of 41% and a CB factor of 0.64. The estimates for 2015, 2020 and 2030 are made based on Danish CHP plants that are commissioned in 1985, 1990 and 2000. Data for fixed O&M expenses are in the Technology catalogue given per electricity capacity and for variable O&M expenses per electricity production. Based on an expectation that the O&M cost in relation to energy input has not changed over time. Therefore O&M for the existing plants is calculated multipling  O&M for a new plant with the relationship between the power efficiency of the new plants and of the  existing plant."]
[null,null,"TechBase","TechBase - 16 La EX LTE COA no_inv_exipla  - Coal CHP Life time extension of coal power plant no invest cost for existing plant  - 2020",null,null,"16 La EX LTE COA no_inv_exipla  - Coal CHP Life time extension of coal power plant no invest cost for existing plant ","02 Life time extension of coal power plant, no investmentcost for existing coal plant, , Tech cat update 2016 and coal update(O&M) 2017  ",2020,"YES","Coal",0.24,null,32106.015861829819,3.0034659999776281,null,0.15,0.68,0.87036144578313257,0.43,0.35228915662650601,0.51807228915662651,5000,null,null,0.2,15,0.5,0.97,35,1.5,0.8,2.1,"Central","13.09-18","mka","2018-10-16","Rin","Tech Cat Aug 2016, coal note 2017 data for ex. Plant",2015,"EUR","It is assumed that plants that are refurbished in 2020  is commissioned in 1995 and have an electric efficiency of 43% and a CB factor of 0.68.  The estimates for 2015, 2020 and 2030 are made based on Danish CHP plants that are commissioned in 1985, 1990 and 2000.  Data for fixed O&M expenses are in the Technology catalogue given per electricity capacity and for variable O&M expenses per electricity production. Based on an expectation that the O&M cost in relation to energy input has not changed over time. Therefore O&M for the existing plants is calculated multipling  O&M for a new plant with the relationship between the power efficiency of the new plants and of the  existing plant."]
[null,null,"TechBase","TechBase - 16 La EX LTE COA no_inv_exipla  - Coal CHP Life time extension of coal power plant no invest cost for existing plant  - 2030",null,null,"16 La EX LTE COA no_inv_exipla  - Coal CHP Life time extension of coal power plant no invest cost for existing plant ","02 Life time extension of coal power plant, no investmentcost for existing coal plant, , Tech cat update 2016 and coal update(O&M) 2017  ",2030,"YES","Coal",0.24,null,31088.62945172346,2.9082911422580064,null,0.15,0.74,0.87977528089887636,0.45,0.37415730337078651,0.5056179775280899,5000,null,null,0.2,15,0.5,0.97,35,1.5,0.8,2.1,"Central","13.09-18","mka","2018-10-16","Rin","Tech Cat Aug 2016, coal note 2017 data for ex. Plant",2015,"EUR","It is assumed that plants that are refurbished in 2030  is commissioned in 2005 and have an electric efficiency of 45% and a CB factor of 0.74.  The estimates for 2015, 2020 and 2030 are made based on Danish CHP plants that are commissioned in 1985, 1990 and 2000.  Data for fixed O&M expenses are in the Technology catalogue given per electricity capacity and for variable O&M expenses per electricity production. Based on an expectation that the O&M cost in relation to energy input has not changed over time. Therefore O&M for the existing plants is calculated multipling  O&M for a new plant with the relationship between the power efficiency of the new plants and of the  existing plant."]
[null,null,"TechBase","TechBase - 16 La EX LTE COA no_inv_exipla  - Coal CHP Life time extension of coal power plant no invest cost for existing plant  - 2050",null,null,"16 La EX LTE COA no_inv_exipla  - Coal CHP Life time extension of coal power plant no invest cost for existing plant ","02 Life time extension of coal power plant, no investmentcost for existing coal plant, , Tech cat update 2016 and coal update(O&M) 2017  ",2050,"YES","Coal",null,null,null,null,null,null,null,null,null,null,null,null,null,null,null,null,null,null,null,null,null,null,null,"13.09-18","mka","2018-10-16","Rin"]
[null,null,{"$f":"$G$61","v":"TechBase"},{"$f":"C133&\" - \"&G133&\" - \"&I133","v":"TechBase - 16La REF_EX  WPE_COA_exibo_no_inv_exipla Woodpellets CHP  refurb.  \nCoal plants, existing Boiler,  no invest cost in existing plant - 2015"},null,null,"16La REF_EX  WPE_COA_exibo_no_inv_exipla Woodpellets CHP  refurb.  \nCoal plants, existing Boiler,  no invest cost in existing plant","03a Rebuilding coal power plants to biomass,a) Wood pellets, existing boiler, no investmentcost for existing coal plant Tech Cat aug 2016, and coal update(O&M) 2017  ",2015,"YES","Wood pellets",0.56999999999999995,null,38068.095627602612,3.1000933637385155,null,0.15,0.62,0.84155844155844139,0.39999999999999997,0.32207792207792202,0.51948051948051943,5000,null,null,0.2,15,2,0.97,38,3.1,0.8,2.1,"Central","02.03-18","mka","2018-10-16","Rin","Tech Cat  Aug 2016, Coal Update 2017",2015,"EUR","It is assumed that the coal plants that are rebuild in 2015 is commissioned in 1990 and have an electric efficiency of 41% and a CB factor of 0.64. The estimates for 2015, 2020 and 2030 are made based on Danish CHP plants that are commissioned in 1985, 1990 and 2000. Data for fixed O&M expenses are in the Technology catalogue given per electricity capacity and for variable O&M expenses per electricity production. Based on an expectation that the O&M cost in relation to energy input has not changed over time. Therefore O&M for the existing plants is calculated multipling  O&M for a new plant with the relationship between the power efficiency of the new plants and of the  existing plant."]
[null,null,"TechBase","TechBase - 16La REF_EX  WPE_COA_exibo_no_inv_exipla Woodpellets CHP  refurb.  \nCoal plants, existing Boiler,  no invest cost in existing plant - 2020",null,null,"16La REF_EX  WPE_COA_exibo_no_inv_exipla Woodpellets CHP  refurb.  \nCoal plants, existing Boiler,  no invest cost in existing plant","03a Rebuilding coal power plants to biomass,a) Wood pellets, existing boiler, no investmentcost for existing coal plant Tech Cat aug 2016, and coal update(O&M) 2017  ",2020,"YES","Wood pellets",0.56000000000000005,null,36921.918241104286,3.0034659999776281,null,0.15,0.66,0.8607407407407407,0.42,0.34222222222222221,0.51851851851851849,5000,null,null,0.2,15,2,0.97,35,3.1,0.8,2.1,"Central","02.03-18","mka","2018-10-16","Rin","Tech Cat  Aug 2016, Coal Update 2017",2015,"EUR","It is assumed that the coal plants that are rebuild in 2020  is commissioned in 1995 and have an electric efficiency of 43% and a CB factor of 0.68. The estimates for 2015, 2020 and 2030 are made based on Danish CHP plants that are commissioned in 1985, 1990 and 2000.Data for fixed O&M expenses are in the Technology catalogue given per electricity capacity and for variable O&M expenses per electricity production. Based on an expectation that the O&M cost in relation to energy input has not changed over time. Therefore O&M for the existing plants is calculated multipling  O&M for a new plant with the relationship between the power efficiency of the new plants and of the  existing plant."]
[null,null,"TechBase","TechBase - 16La REF_EX  WPE_COA_exibo_no_inv_exipla Woodpellets CHP  refurb.  \nCoal plants, existing Boiler,  no invest cost in existing plant - 2030",null,null,"16La REF_EX  WPE_COA_exibo_no_inv_exipla Woodpellets CHP  refurb.  \nCoal plants, existing Boiler,  no invest cost in existing plant","03a Rebuilding coal power plants to biomass,a) Wood pellets, existing boiler, no investmentcost for existing coal plant Tech Cat aug 2016, and coal update(O&M) 2017  ",2030,"YES","Wood pellets",0.55000000000000004,null,35751.92386948198,2.9082911422580064,null,0.15,0.72,0.86988505747126443,0.44,0.36413793103448272,0.50574712643678166,5000,null,null,0.2,15,2,0.97,35,3.1,0.8,2.1,"Central","02.03-18","mka","2018-10-16","Rin","Tech Cat  Aug 2016, Coal Update 2017",2015,"EUR","It is assumed that the coal plants that are rebuild in 2030  is commissioned in 2005 and have an electric efficiency of 45% and a CB factor of 0.74. The estimates for 2015, 2020 and 2030 are made based on Danish CHP plants that are commissioned in 1985, 1990 and 2000. Data for fixed O&M expenses are in the Technology catalogue given per electricity capacity and for variable O&M expenses per electricity production. Based on an expectation that the O&M cost in relation to energy input has not changed over time. Therefore O&M for the existing plants is calculated multipling  O&M for a new plant with the relationship between the power efficiency of the new plants and of the  existing plant."]
[null,null,"TechBase","TechBase - 16La REF_EX  WPE_COA_exibo_no_inv_exipla Woodpellets CHP  refurb.  \nCoal plants, existing Boiler,  no invest cost in existing plant - 2050",null,null,"16La REF_EX  WPE_COA_exibo_no_inv_exipla Woodpellets CHP  refurb.  \nCoal plants, existing Boiler,  no invest cost in existing plant","03a Rebuilding coal power plants to biomass,a) Wood pellets, existing boiler, no investmentcost for existing coal plant Tech Cat aug 2016, and coal update(O&M) 2017  ",2050,"YES","Wood pellets"," ",null,null,null,null,null,null,null,null,null,null,null,null,null,null,null,null,null,null,null,null,null,null,"02.03-18","mka","2018-10-16","Rin","Tech Cat  Aug 2016, Coal Update 2017",2015,"EUR"]
[null,null,"TechBase","TechBase - 16La REF_EX  WCH_COA_Newboi_ no_inv_exipla Wood chips CHP refurb.  \nCoal plants, new Boiler, no invest cost for existing plant  - 2015",null,null,"16La REF_EX  WCH_COA_Newboi_ no_inv_exipla Wood chips CHP refurb.  \nCoal plants, new Boiler, no invest cost for existing plant ","03b  Rebuilding coal power plants to biomass,c) Wood chips, new boiler, no investmentcost for existing coal plant Tech Cat aug 2016, and coal update(O&M) 2017  ",2015,"YES","Wood chips",1.6,null,38068.095627602612,4.6501400456077731,null,0.15,0.57000000000000006,0.87222222222222212,0.39999999999999997,0.31666666666666665,0.55555555555555547,5000,null,null,0.2,15,2.5,0.97,55,0.5,5,0.3,"Central","02.03-18","mka","2018-10-16","Rin","Tech Cat  Aug 2016, Coal Update 2017",2015,"EUR","It is assumed that the coal plants that are rebuild in 2015 is commissioned in 1990 and have an electric efficiency of 41% and a CB factor of 0.64. The estimates for 2015, 2020 and 2030 are made based on Danish CHP plants that are commissioned in 1985, 1990 and 2000. Data for fixed O&M expenses are in the Technology catalogue given per electricity capacity and for variable O&M expenses per electricity production. Based on an expectation that the O&M cost in relation to energy input has not changed over time. Therefore O&M for the existing plants is calculated multipling  O&M for a new plant with the relationship between the power efficiency of the new plants and of the  existing plant."]
[null,null,"TechBase","TechBase - 16La REF_EX  WCH_COA_Newboi_ no_inv_exipla Wood chips CHP refurb.  \nCoal plants, new Boiler, no invest cost for existing plant  - 2020",null,null,"16La REF_EX  WCH_COA_Newboi_ no_inv_exipla Wood chips CHP refurb.  \nCoal plants, new Boiler, no invest cost for existing plant ","03b  Rebuilding coal power plants to biomass,c) Wood chips, new boiler, no investmentcost for existing coal plant Tech Cat aug 2016, and coal update(O&M) 2017  ",2020,"YES","Wood chips",1.6,null,36921.918241104286,4.5051989999664421,null,0.15,0.6100000000000001,0.88973684210526316,0.42,0.33710526315789474,0.55263157894736836,5000,null,null,0.2,15,2.5,0.97,35,0.5,5,0.3,"Central","02.03-18","mka","2018-10-16","Rin","Tech Cat  Aug 2016, Coal Update 2017",2015,"EUR","It is assumed that the coal plants that are rebuild in 2020  is commissioned in 1995 and have an electric efficiency of 43% and a CB factor of 0.68. The estimates for 2015, 2020 and 2030 are made based on Danish CHP plants that are commissioned in 1985, 1990 and 2000.Data for fixed O&M expenses are in the Technology catalogue given per electricity capacity and for variable O&M expenses per electricity production. Based on an expectation that the O&M cost in relation to energy input has not changed over time. Therefore O&M for the existing plants is calculated multipling  O&M for a new plant with the relationship between the power efficiency of the new plants and of the  existing plant."]
[null,null,"TechBase","TechBase - 16La REF_EX  WCH_COA_Newboi_ no_inv_exipla Wood chips CHP refurb.  \nCoal plants, new Boiler, no invest cost for existing plant  - 2030",null,null,"16La REF_EX  WCH_COA_Newboi_ no_inv_exipla Wood chips CHP refurb.  \nCoal plants, new Boiler, no invest cost for existing plant ","03b  Rebuilding coal power plants to biomass,c) Wood chips, new boiler, no investmentcost for existing coal plant Tech Cat aug 2016, and coal update(O&M) 2017  ",2030,"YES","Wood chips",1.6,null,35751.92386948198,4.3624367133870097,null,0.15,0.66999999999999993,0.89609756097560977,0.44,0.35951219512195121,0.53658536585365857,5000,null,null,0.2,15,2.5,0.97,35,0.5,5,0.3,"Central","02.03-18","mka","2018-10-16","Rin","Tech Cat  Aug 2016, Coal Update 2017",2015,"EUR","It is assumed that the coal plants that are rebuild in 2030  is commissioned in 2005 and have an electric efficiency of 45% and a CB factor of 0.74. The estimates for 2015, 2020 and 2030 are made based on Danish CHP plants that are commissioned in 1985, 1990 and 2000. Data for fixed O&M expenses are in the Technology catalogue given per electricity capacity and for variable O&M expenses per electricity production. Based on an expectation that the O&M cost in relation to energy input has not changed over time. Therefore O&M for the existing plants is calculated multipling  O&M for a new plant with the relationship between the power efficiency of the new plants and of the  existing plant."]
[null,null,"TechBase","TechBase - 16La REF_EX  WCH_COA_Newboi_ no_inv_exipla Wood chips CHP refurb.  \nCoal plants, new Boiler, no invest cost for existing plant  - 2050",null,null,"16La REF_EX  WCH_COA_Newboi_ no_inv_exipla Wood chips CHP refurb.  \nCoal plants, new Boiler, no invest cost for existing plant ","03b  Rebuilding coal power plants to biomass,c) Wood chips, new boiler, no investmentcost for existing coal plant Tech Cat aug 2016, and coal update(O&M) 2017  ",2050,"YES","Wood chips",null,null,null,null,null,null,null,null,null,null,null,null,null,null,null,null,null,null,null,null,null,null,null,null,null,"2018-10-16","Rin","Tech Cat  Aug 2016, Coal Update 2017",2015,"EUR"]
[null,null,"TechBase","TechBase - 16La REF_EX WCH_COA_exi_exibo_no_inv_exipla Wood chips CHP refurb.  \nCoal plants, existing boiler, no invest cost for existing plant  - 2015",null,null,"16La REF_EX WCH_COA_exi_exibo_no_inv_exipla Wood chips CHP refurb.  \nCoal plants, existing boiler, no invest cost for existing plant ","03c Rebuilding power plants from coal to biomass b) Wood chips, existing boiler, no investmentcost for existing coal plant Tech Cat aug 2016, and coal update(O&M) 2017  ",2015,"YES","Wood chips",1.6,null,47998.903182629379,4.4951353774208478,null,0.15,0.57000000000000006,0.82861111111111097,0.38,0.30083333333333334,0.52777777777777768,5000,null,null,0.2,15,2,1,38,3.1,10,0.3,"Central","2017-08-11","mka // 04.04","2018-10-16","Rin","Tech Cat  Aug 2016, Coal Update 2017",2015,"EUR","It is assumed that the coal plants that are rebuild in 2015 is commissioned in 1990 and have an electric efficiency of 41% and a CB factor of 0.64. The estimates for 2015, 2020 and 2030 are made based on Danish CHP plants that are commissioned in 1985, 1990 and 2000. Data for fixed O&M expenses are in the Technology catalogue given per electricity capacity and for variable O&M expenses per electricity production. Based on an expectation that the O&M cost in relation to energy input has not changed over time. Therefore O&M for the existing plants is calculated multipling  O&M for a new plant with the relationship between the power efficiency of the new plants and of the  existing plant."]
[null,null,"TechBase","TechBase - 16La REF_EX WCH_COA_exi_exibo_no_inv_exipla Wood chips CHP refurb.  \nCoal plants, existing boiler, no invest cost for existing plant  - 2020",null,null,"16La REF_EX WCH_COA_exi_exibo_no_inv_exipla Wood chips CHP refurb.  \nCoal plants, existing boiler, no invest cost for existing plant ","03c Rebuilding power plants from coal to biomass b) Wood chips, existing boiler, no investmentcost for existing coal plant Tech Cat aug 2016, and coal update(O&M) 2017  ",2020,"YES","Wood chips",1.6,null,46553.722999653233,4.3550256999675607,null,0.15,0.6100000000000001,0.84736842105263155,0.4,0.32105263157894737,0.52631578947368418,5000,null,null,0.2,15,2,1,35,3.1,8,0.3,"Central","2017-08-11","mka // 04.05","2018-10-16","Rin","Tech Cat  Aug 2016, Coal Update 2017",2015,"EUR","It is assumed that the coal plants that are rebuild in 2020  is commissioned in 1995 and have an electric efficiency of 43% and a CB factor of 0.68. The estimates for 2015, 2020 and 2030 are made based on Danish CHP plants that are commissioned in 1985, 1990 and 2000.Data for fixed O&M expenses are in the Technology catalogue given per electricity capacity and for variable O&M expenses per electricity production. Based on an expectation that the O&M cost in relation to energy input has not changed over time. Therefore O&M for the existing plants is calculated multipling  O&M for a new plant with the relationship between the power efficiency of the new plants and of the  existing plant."]
[null,null,"TechBase","TechBase - 16La REF_EX WCH_COA_exi_exibo_no_inv_exipla Wood chips CHP refurb.  \nCoal plants, existing boiler, no invest cost for existing plant  - 2030",null,null,"16La REF_EX WCH_COA_exi_exibo_no_inv_exipla Wood chips CHP refurb.  \nCoal plants, existing boiler, no invest cost for existing plant ","03c Rebuilding power plants from coal to biomass b) Wood chips, existing boiler, no investmentcost for existing coal plant Tech Cat aug 2016, and coal update(O&M) 2017  ",2030,"YES","Wood chips",1.6,null,45078.512704999019,4.2170221562741093,null,0.15,0.66999999999999993,0.85536585365853668,0.42000000000000004,0.3431707317073171,0.51219512195121963,5000,null,null,0.2,15,2,1,35,3.1,6,0.3,"Central","2017-08-11","mka // 04.06","2018-10-16","Rin","Tech Cat  Aug 2016, Coal Update 2017",2015,"EUR","It is assumed that the coal plants that are rebuild in 2030  is commissioned in 2005 and have an electric efficiency of 45% and a CB factor of 0.74. The estimates for 2015, 2020 and 2030 are made based on Danish CHP plants that are commissioned in 1985, 1990 and 2000. Data for fixed O&M expenses are in the Technology catalogue given per electricity capacity and for variable O&M expenses per electricity production. Based on an expectation that the O&M cost in relation to energy input has not changed over time. Therefore O&M for the existing plants is calculated multipling  O&M for a new plant with the relationship between the power efficiency of the new plants and of the  existing plant."]
[null,null,"TechBase","TechBase - 16La REF_EX WCH_COA_exi_exibo_no_inv_exipla Wood chips CHP refurb.  \nCoal plants, existing boiler, no invest cost for existing plant  - 2050",null,null,"16La REF_EX WCH_COA_exi_exibo_no_inv_exipla Wood chips CHP refurb.  \nCoal plants, existing boiler, no invest cost for existing plant ","03c Rebuilding power plants from coal to biomass b) Wood chips, existing boiler, no investmentcost for existing coal plant Tech Cat aug 2016, and coal update(O&M) 2017  ",2050,"YES","Wood chips",null,null,null,null,null,null,null,null,null,null,null,null,null,null,null,null,null,null,null,null,null,null,null,null,null,"2018-10-16","Rin","Tech Cat  Aug 2016, Coal Update 2017",2015,"EUR"]
[null,null,"TechBase",{"$f":"C145&\" - \"&G145&\" - \"&I145","v":"TechBase - 18La_EX_EXI_COA ex_inv_cost - Coal CHP existing, no investment cost - 2015"},null,null,"18La_EX_EXI_COA ex_inv_cost - Coal CHP existing, no investment cost","01_02 Existing Coal - Data is a mix of data for 01 and 02",2015,"YES","Coal",1,0,39847.5,3.3925000000000001,0,0,0,0,0,0,0,0,0,0,0,40,0,0,0,0,0,0]
[null,null,"TechBase","TechBase - 18La_EX_EXI_COA ex_inv_cost - Coal CHP existing, no investment cost - 2020",null,null,"18La_EX_EXI_COA ex_inv_cost - Coal CHP existing, no investment cost","01_02 Existing Coal - Data is a mix of data for 01 and 02",2020,"YES","Coal",1,0,39215,3.3349999999999995,null,0.15,0.77,0.84652173913043471,0.44,0.36826086956521736,0.47826086956521735,5000,null,null,0.2,40,4.5,0.97,35,1.5,0.8,2.1,"Central","2018-08-30","mka"]
[null,null,"TechBase","TechBase - 18La_EX_EXI_COA ex_inv_cost - Coal CHP existing, no investment cost - 2030",null,null,"18La_EX_EXI_COA ex_inv_cost - Coal CHP existing, no investment cost","01_02 Existing Coal - Data is a mix of data for 01 and 02",2030,"YES","Coal",1,0,38399.223796091275,3.2656231380840151,null,0.15,0.77,0.86576086956521747,0.45,0.37663043478260871,0.4891304347826087,5000,null,null,0.2,40,4.5,0.97,35,1.5,0.8,2.1,"Central","2018-08-30","mka"]
[null,null,"TechBase","TechBase - 18La_EX_EXI_COA ex_inv_cost - Coal CHP existing, no investment cost - 2050",null,null,"18La_EX_EXI_COA ex_inv_cost - Coal CHP existing, no investment cost","01_02 Existing Coal - Data is a mix of data for 01 and 02",2050,"YES","Coal",1,0,0,0,0,0,0,0,0,0,0,0,0,0,0,40,0,0,0,0,0,0]
[null,null,"TechBase","TechBase - 18Sm_PV_roof - 2015",null,null,"18Sm_PV_roof","22 PV small roof mounted residential systems, Tech Kat July 2018",2015,"NO","solar",1.58,null,15750,null,null,0,null,1,1,0,0,981.45684945000016,null,null,0,30,0.5,null,null,null,null,null,"Decentral","2018-07-19","FGB",null,null,"Tech Cat  Aug 2016, Update July 2018",2015,"EUR"]
[null,null,"TechBase","TechBase - 18Sm_PV_roof - 2020",null,null,"18Sm_PV_roof","22 PV small roof mounted residential systems, Tech Kat July 2018",2020,"NO","solar",1.1284318489085394,null,13440,null,null,0,null,1,1,0,0,1042.5016602000001,null,null,0,35,0.5,null,null,null,null,null,"Decentral","2018-07-19","FGB",null,null,"Tech Cat  Aug 2016, Update July 2018",2015,"EUR"]
[null,null,"TechBase","TechBase - 18Sm_PV_roof - 2030",null,null,"18Sm_PV_roof","22 PV small roof mounted residential systems, Tech Kat July 2018",2030,"NO","solar",0.86945763413437305,null,10815,null,null,0,null,1,1,0,0,1077.1302118500003,null,null,0,40,0.5,null,null,null,null,null,"Decentral","2018-07-19","FGB",null,null,"Tech Cat  Aug 2016, Update July 2018",2015,"EUR"]
[null,null,"TechBase","TechBase - 18Sm_PV_roof - 2050",null,null,"18Sm_PV_roof","22 PV small roof mounted residential systems, Tech Kat July 2018",2050,"NO","solar",0.58749565976216922,null,9135,null,null,0,null,1,1,0,0,1124.3630752200002,null,null,0,40,0.5,null,null,null,null,null,"Decentral","2018-07-19","FGB",null,null,"Tech Cat  Aug 2016, Update July 2018",2015,"EUR"]
[null,null,"TechBase","TechBase - 18Me_PV_roof - 2015",null,null,"18Me_PV_roof","22 PV medium sized roof mounted commercial systems, Tech Kat July 2018",2015,"NO","solar",1.3442880000000001,null,13420.000000000002,null,null,0,null,1,1,0,0,1045.6515927000003,null,null,0,30,0.5,null,null,null,null,null,"Decentral","2018-07-19","FGB",null,null,"Tech Cat  Aug 2016, Update July 2018",2015,"EUR"]
[null,null,"TechBase","TechBase - 18Me_PV_roof - 2020",null,null,"18Me_PV_roof","22 PV medium sized roof mounted commercial systems, Tech Kat July 2018",2020,"NO","solar",0.80370688944083057,null,11440.000000000002,null,null,0,null,1,1,0,0,1129.3767985500001,null,null,0,35,0.5,null,null,null,null,null,"Decentral","2018-07-19","FGB",null,null,"Tech Cat  Aug 2016, Update July 2018",2015,"EUR"]
[null,null,"TechBase","TechBase - 18Me_PV_roof - 2030",null,null,"18Me_PV_roof","22 PV medium sized roof mounted commercial systems, Tech Kat July 2018",2030,"NO","solar",0.63169424673768337,null,9240,null,null,0,null,1,1,0,0,1166.03619759,null,null,0,40,0.5,null,null,null,null,null,"Decentral","2018-07-19","FGB",null,null,"Tech Cat  Aug 2016, Update July 2018",2015,"EUR"]
[null,null,"TechBase","TechBase - 18Me_PV_roof - 2050",null,null,"18Me_PV_roof","22 PV medium sized roof mounted commercial systems, Tech Kat July 2018",2050,"NO","solar",0.49405367403762707,null,7810.0000000000009,null,null,0,null,1,1,0,0,1203.2354466000002,null,null,0,40,0.5,null,null,null,null,null,"Decentral","2018-07-19","FGB",null,null,"Tech Cat  Aug 2016, Update July 2018",2015,"EUR"]
[null,null,"TechBase","TechBase - 19PV_La_Utility scale PV - 2015",null,null,"19PV_La_Utility scale PV","22 PV utility scale, Tech Kat Update 2019",2015,"NO","solar",{"$f":"1.08-M157","v":1.06},0.02,9500,0,0,null,null,1,1,null,null,981,null,null,null,30,0.5,null,null,null,null,null,"Decentral","2019-11-25","chwo",null,null,"Tech Cat 2019 Update",2015,"EUR","DC-values are used for financial data and full-load hours"]
[null,null,"TechBase","TechBase - 19PV_La_Utility scale PV - 2020",null,null,"19PV_La_Utility scale PV","22 PV utility scale, Tech Kat Update 2019",2020,"NO","solar",{"$f":"0.423386261191158-M158","v":0.41392233299982623},9.4639281913317785E-3,7000,0,0,null,null,1,1,null,null,1075,null,null,null,35,0.5,null,null,null,null,null,"Decentral","2019-11-25","chwo",null,null,"Tech Cat 2019 Update",2015,"EUR","DC-values are used for financial data and full-load hours"]
[null,null,"TechBase","TechBase - 19PV_La_Utility scale PV - 2030",null,null,"19PV_La_Utility scale PV","22 PV utility scale, Tech Kat Update 2019",2030,"NO","solar",{"$f":"0.301033457159422-M159","v":0.29309488327231353},7.9385738871084709E-3,5800,0,0,null,null,1,1,null,null,1187,null,null,null,40,0.5,null,null,null,null,null,"Decentral","2019-11-25","chwo",null,null,"Tech Cat 2019 Update",2015,"EUR","DC-values are used for financial data and full-load hours"]
[null,null,"TechBase","TechBase - 19PV_La_Utility scale PV - 2040",null,null,"19PV_La_Utility scale PV","22 PV utility scale, Tech Kat Update 2019",2040,"NO","solar",{"$f":"0.263598006778545-M160","v":0.2562057342661479},7.3922725123971231E-3,5300,0,0,null,null,1,1,null,null,1200,null,null,null,40,0.5,null,null,null,null,null,"Decentral","2019-11-25","chwo",null,null,"Tech Cat 2019 Update",2015,"EUR","DC-values are used for financial data and full-load hours"]
[null,null,"TechBase","TechBase - 19PV_La_Utility scale PV - 2050",null,null,"19PV_La_Utility scale PV","22 PV utility scale, Tech Kat Update 2019",2050,"NO","solar",{"$f":"0.241292173290051-M161","v":0.23424966796285526},7.042505327195748E-3,5000,0,0,null,null,1,1,null,null,1212,null,null,null,40,0.5,null,null,null,null,null,"Decentral","2019-11-25","chwo",null,null,"Tech Cat 2019 Update",2015,"EUR","DC-values are used for financial data and full-load hours"]
[null,null,"TechBase","TechBase - 19PV_La_Utility scale PV_tracker - 2015",null,null,"19PV_La_Utility scale PV_tracker","22 PV tracker utility scale, Tech Kat Update 2019",2015,"NO","solar",null,null,null,null,null,null,null,null,null,null,null,null,null,null,null,null,null,null,null,null,null,null,"Decentral","2019-11-25","chwo",null,null,"Tech Cat 2019 Update",2015,"EUR","DC-values are used for financial data and full-load hours"]
[null,null,"TechBase","TechBase - 19PV_La_Utility scale PV_tracker - 2020",null,null,"19PV_La_Utility scale PV_tracker","22 PV tracker utility scale, Tech Kat Update 2019",2020,"NO","solar",{"$f":"0.493386261191158-M163","v":0.48392233299982623},9.4639281913317785E-3,7400,0,0,null,null,1,1,null,null,1193,null,null,null,35,0.5,null,null,null,null,null,"Decentral","2019-11-25","chwo",null,null,"Tech Cat 2019 Update",2015,"EUR","DC-values are used for financial data and full-load hours"]
[null,null,"TechBase","TechBase - 19PV_La_Utility scale PV_tracker - 2030",null,null,"19PV_La_Utility scale PV_tracker","22 PV tracker utility scale, Tech Kat Update 2019",2030,"NO","solar",{"$f":"0.351362921161777-M164","v":0.34342434727466853},7.9385738871084709E-3,6200,0,0,null,null,1,1,null,null,1318,null,null,null,40,0.5,null,null,null,null,null,"Decentral","2019-11-25","chwo",null,null,"Tech Cat 2019 Update",2015,"EUR","DC-values are used for financial data and full-load hours"]
[null,null,"TechBase","TechBase - 19PV_La_Utility scale PV_tracker - 2040",null,null,"19PV_La_Utility scale PV_tracker","22 PV tracker utility scale, Tech Kat Update 2019",2040,"NO","solar",{"$f":"0.310463995380411-M165","v":0.30307172286801387},7.3922725123971231E-3,5700,0,0,null,null,1,1,null,null,1332,null,null,null,40,0.5,null,null,null,null,null,"Decentral","2019-11-25","chwo",null,null,"Tech Cat 2019 Update",2015,"EUR","DC-values are used for financial data and full-load hours"]
[null,null,"TechBase","TechBase - 19PV_La_Utility scale PV_tracker - 2050",null,null,"19PV_La_Utility scale PV_tracker","22 PV tracker utility scale, Tech Kat Update 2019",2050,"NO","solar",{"$f":"0.285940686157971-M166","v":0.27889818083077528},7.042505327195748E-3,5400,0,0,null,null,1,1,null,null,1345,null,null,null,40,0.5,null,null,null,null,null,"Decentral","2019-11-25","chwo",null,null,"Tech Cat 2019 Update",2015,"EUR","DC-values are used for financial data and full-load hours"]
[null,null,"TechBase","TechBase - 19WIN_ON_in Onshore wind incl. Grid - 2020",null,null,"19WIN_ON_in Onshore wind incl. Grid","21 Wind Turbines Onshore, Tech Kat update 2019",2020,"NO","Wind",{"$f":"1.12-M167","v":1.07},0.05,14000,1.5,null,null,null,1,1,null,null,3400,null,null,null,27,1.5,null,null,null,null,null,"Decentral","2019-05-28","chwo",null,null,"Tech Cat 2019 Update",2015,"EUR"]
[null,null,"TechBase","TechBase - 19WIN_ON_in Onshore wind incl. Grid - 2025",null,null,"19WIN_ON_in Onshore wind incl. Grid","21 Wind Turbines Onshore, Tech Kat update 2019",2025,"NO","Wind",{"$f":"AVERAGE(L167,L169)","v":1.03},{"$f":"AVERAGE(M167,M169)","v":0.05},{"$f":"AVERAGE(N167,N169)","v":13300},{"$f":"AVERAGE(O167,O169)","v":1.425},null,null,null,{"$f":"AVERAGE(S167,S169)","v":1},{"$f":"AVERAGE(T167,T169)","v":1},null,null,{"$f":"AVERAGE(W167,W169)","v":3500},null,null,null,{"$f":"AVERAGE(AA167,AA169)","v":28.5},{"$f":"AVERAGE(AB167,AB169)","v":1.5},null,null,null,null,null,"Decentral","2024-05-26","chwo - average of 2020 and 2030",null,null,"Tech Cat 2019 Update",2015,"EUR"]
[null,null,"TechBase","TechBase - 19WIN_ON_in Onshore wind incl. Grid - 2030",null,null,"19WIN_ON_in Onshore wind incl. Grid","21 Wind Turbines Onshore, Tech Kat update 2019",2030,"NO","Wind",{"$f":"1.04-M169","v":0.99},0.05,12600,1.35,null,null,null,1,1,null,null,3600,null,null,null,30,1.5,null,null,null,null,null,"Decentral","2019-05-28","chwo",null,null,"Tech Cat 2019 Update",2015,"EUR"]
[null,null,"TechBase","TechBase - 19WIN_ON_in Onshore wind incl. Grid - 2040",null,null,"19WIN_ON_in Onshore wind incl. Grid","21 Wind Turbines Onshore, Tech Kat update 2019",2040,"NO","Wind",{"$f":"0.98-M170","v":0.92999999999999994},0.05,11592,1.24,null,null,null,1,1,null,null,3700,null,null,null,30,1.5,null,null,null,null,null,"Decentral","2019-05-28","chwo",null,null,"Tech Cat 2019 Update",2015,"EUR"]
[null,null,"TechBase","TechBase - 19WIN_ON_in Onshore wind incl. Grid - 2050",null,null,"19WIN_ON_in Onshore wind incl. Grid","21 Wind Turbines Onshore, Tech Kat update 2019",2050,"NO","Wind",{"$f":"0.96-M171","v":0.90999999999999992},0.05,11340,1.22,null,null,null,1,1,null,null,3800,null,null,null,30,1.5,null,null,null,null,null,"Decentral","2019-05-28","chwo",null,null,"Tech Cat 2019 Update",2015,"EUR"]
[null,null,"TechBase","TechBase - 24WIN_ON_in Onshore wind incl. Grid - 2020",null,null,"24WIN_ON_in Onshore wind incl. Grid","21 Wind Turbines Onshore, Tech Kat update 2024",2020,"NO","Wind",{"$f":"1.10551387329-M172","v":1.0885687919293259},1.6945081360674099E-2,16396.952973721302,2.1132622205094602,null,null,null,1,1,null,null,3400,null,null,null,27,1.5,null,null,null,null,null,"Central","2024-03-26","thoda",null,null,"Tech Cat 2024 Update",2020,"EUR"]
[null,null,"TechBase","TechBase - 24WIN_ON_in Onshore wind incl. Grid - 2025",null,null,"24WIN_ON_in Onshore wind incl. Grid","21 Wind Turbines Onshore, Tech Kat update 2024",2025,"NO","Wind",{"$f":"1.18463198962-M173","v":1.1671924873916892},1.74395022283108E-2,17386.633918245501,2.0610030561405499,null,null,null,1,1,null,null,3500,null,null,null,27,1.5,null,null,null,null,null,"Central","2024-03-26","thoda",null,null,"Tech Cat 2024 Update",2020,"EUR"]
[null,null,"TechBase","TechBase - 24WIN_ON_in Onshore wind incl. Grid - 2030",null,null,"24WIN_ON_in Onshore wind incl. Grid","21 Wind Turbines Onshore, Tech Kat update 2024",2030,"NO","Wind",{"$f":"1.14664489966-M174","v":1.1295667254452977},1.70781742147024E-2,16662.667964091601,1.9751844870564499,null,null,null,1,1,null,null,3600,null,null,null,30,1.5,null,null,null,null,null,"Central","2024-03-26","thoda",null,null,"Tech Cat 2024 Update",2020,"EUR"]
[null,null,"TechBase","TechBase - 24WIN_ON_in Onshore wind incl. Grid - 2040",null,null,"24WIN_ON_in Onshore wind incl. Grid","21 Wind Turbines Onshore, Tech Kat update 2024",2040,"NO","Wind",{"$f":"1.1096904384-M175","v":1.0929679014110845},1.6722536988915401E-2,15965.364846295,1.89252651751543,null,null,null,1,1,null,null,3700,null,null,null,30,1.5,null,null,null,null,null,"Central","2024-03-26","thoda",null,null,"Tech Cat 2024 Update",2020,"EUR"]
[null,null,"TechBase","TechBase - 24WIN_ON_in Onshore wind incl. Grid - 2050",null,null,"24WIN_ON_in Onshore wind incl. Grid","21 Wind Turbines Onshore, Tech Kat update 2024",2050,"NO","Wind",{"$f":"1.09028817467-M176","v":1.0737540522653195},1.6534122404680499E-2,15602.069282318,1.8494616395661001,null,null,null,1,1,null,null,3800,null,null,null,30,1.5,null,null,null,null,null,"Central","2024-03-26","thoda",null,null,"Tech Cat 2024 Update",2020,"EUR"]
[null,null,"TechBase","TechBase - 19WIN_OF_in Offshore wind incl. Grid - 2015",null,null,"19WIN_OF_in Offshore wind incl. Grid","21 Wind Turbines Offshore, Tech Kat Update 2019",2015,"NO","Wind",2.46,0.4,57300,4.3,null,null,null,1,1,null,null,4400,null,null,null,25,3,null,null,null,null,null,"Central","2019-09-10","chwo",null,null,"Tech Cat 2019 Update",2015,"EUR"]
[null,null,"TechBase","TechBase - 19WIN_OF_in Offshore wind incl. Grid - 2020",null,null,"19WIN_OF_in Offshore wind incl. Grid","21 Wind Turbines Offshore, Tech Kat Update 2019",2020,"NO","Wind",1.75,0.38,40059,3,null,null,null,1,1,null,null,4500,null,null,null,27,2.5,null,null,null,null,null,"Central","2019-09-10","chwo",null,null,"Tech Cat 2019 Update",2015,"EUR"]
[null,null,"TechBase","TechBase - 19WIN_OF_in Offshore wind incl. Grid - 2030",null,null,"19WIN_OF_in Offshore wind incl. Grid","21 Wind Turbines Offshore, Tech Kat Update 2019",2030,"NO","Wind",1.5699999999999998,0.36,36053,2.7,null,null,null,1,1,null,null,4650,null,null,null,30,2.5,null,null,null,null,null,"Central","2019-09-10","chwo",null,null,"Tech Cat 2019 Update",2015,"EUR"]
[null,null,{"$f":"$G$61","v":"TechBase"},{"$f":"C180&\" - \"&G180&\" - \"&I180","v":"TechBase - 19WIN_OF_in Offshore wind incl. Grid - 2040"},null,null,"19WIN_OF_in Offshore wind incl. Grid","21 Wind Turbines Offshore, Tech Kat Update 2019",2040,"NO","Wind",1.4500000000000002,0.36,33169,2.5,null,null,null,1,1,null,null,4700,null,null,null,30,2.5,null,null,null,null,null,"Central","2019-09-10","chwo",null,null,"Tech Cat 2019 Update",2015,"EUR"]
[null,null,"TechBase","TechBase - 19WIN_OF_in Offshore wind incl. Grid - 2050",null,null,"19WIN_OF_in Offshore wind incl. Grid","21 Wind Turbines Offshore, Tech Kat Update 2019",2050,"NO","Wind",1.42,0.36,32448,2.4,null,null,null,1,1,null,null,4900,null,null,null,30,2,null,null,null,null,null,"Central","2019-09-10","chwo",null,null,"Tech Cat 2019 Update",2015,"EUR"]
[null,null,"TechBase","TechBase - 19WIN_OF_ex Offshore wind excl. Grid - 2015",null,null,"19WIN_OF_ex Offshore wind excl. Grid","21 Wind Turbines Offshore, Tech Kat Update 2019",2015,"NO","Wind",{"$f":"L177","v":2.46},null,57300,4.3,null,null,null,1,1,null,null,4400,null,null,null,25,3,null,null,null,null,null,"Central","2019-09-10","chwo",null,null,"Tech Cat 2019 Update",2015,"EUR"]
[null,null,"TechBase","TechBase - 19WIN_OF_ex Offshore wind excl. Grid - 2020",null,null,"19WIN_OF_ex Offshore wind excl. Grid","21 Wind Turbines Offshore, Tech Kat Update 2019",2020,"NO","Wind",{"$f":"L178","v":1.75},null,40059,3,null,null,null,1,1,null,null,4500,null,null,null,27,2.5,null,null,null,null,null,"Central","2019-09-10","chwo",null,null,"Tech Cat 2019 Update",2015,"EUR"]
[null,null,"TechBase","TechBase - 19WIN_OF_ex Offshore wind excl. Grid - 2030",null,null,"19WIN_OF_ex Offshore wind excl. Grid","21 Wind Turbines Offshore, Tech Kat Update 2019",2030,"NO","Wind",1.5699999999999998,null,36053,2.7,null,null,null,1,1,null,null,4650,null,null,null,30,2.5,null,null,null,null,null,"Central","2019-09-10","chwo",null,null,"Tech Cat 2019 Update",2015,"EUR"]
[null,null,"TechBase","TechBase - 19WIN_OF_ex Offshore wind excl. Grid - 2040",null,null,"19WIN_OF_ex Offshore wind excl. Grid","21 Wind Turbines Offshore, Tech Kat Update 2019",2040,"NO","Wind",1.4500000000000002,null,33169,2.5,null,null,null,1,1,null,null,4700,null,null,null,30,2.5,null,null,null,null,null,"Central","2019-09-10","chwo",null,null,"Tech Cat 2019 Update",2015,"EUR"]
[null,null,"TechBase","TechBase - 19WIN_OF_ex Offshore wind excl. Grid - 2050",null,null,"19WIN_OF_ex Offshore wind excl. Grid","21 Wind Turbines Offshore, Tech Kat Update 2019",2050,"NO","Wind",1.42,null,32448,2.4,null,null,null,1,1,null,null,4900,null,null,null,30,2,null,null,null,null,null,"Central","2019-09-10","chwo",null,null,"Tech Cat 2019 Update",2015,"EUR"]
[null,null,"TechBase","TechBase - 19WIN_NS_in Nearshore wind incl. Grid - 2015",null,null,"19WIN_NS_in Nearshore wind incl. Grid","21 Wind Turbines Nearshore, Tech Kat Update 2019",2015,"NO","Wind",2.2199999999999998,0.28000000000000003,51570,3.9,null,null,null,1,1,null,null,4400,null,null,null,25,2,null,null,null,null,null,"Central","2019-09-10","chwo",null,null,"Tech Cat 2019 Update",2015,"EUR"]
[null,null,"TechBase","TechBase - 19WIN_NS_in Nearshore wind incl. Grid - 2020",null,null,"19WIN_NS_in Nearshore wind incl. Grid","21 Wind Turbines Nearshore, Tech Kat Update 2019",2020,"NO","Wind",1.48,0.27,36053,2.7,null,null,null,1,1,null,null,4500,null,null,null,27,2,null,null,null,null,null,"Central","2019-09-10","chwo",null,null,"Tech Cat 2019 Update",2015,"EUR"]
[null,null,"TechBase","TechBase - 19WIN_NS_in Nearshore wind incl. Grid - 2030",null,null,"19WIN_NS_in Nearshore wind incl. Grid","21 Wind Turbines Nearshore, Tech Kat Update 2019",2030,"NO","Wind",1.41,0.25,34250,3,null,null,null,1,1,null,null,4650,null,null,null,30,2,null,null,null,null,null,"Central","2019-09-10","chwo",null,null,"Tech Cat 2019 Update",2015,"EUR"]
[null,null,"TechBase","TechBase - 19WIN_NS_in Nearshore wind incl. Grid - 2040",null,null,"19WIN_NS_in Nearshore wind incl. Grid","21 Wind Turbines Nearshore, Tech Kat Update 2019",2040,"NO","Wind",1.35,0.25,32880,2.4,null,null,null,1,1,null,null,4700,null,null,null,30,2,null,null,null,null,null,"Central","2019-09-10","chwo",null,null,"Tech Cat 2019 Update",2015,"EUR"]
[null,null,"TechBase","TechBase - 19WIN_NS_in Nearshore wind incl. Grid - 2050",null,null,"19WIN_NS_in Nearshore wind incl. Grid","21 Wind Turbines Nearshore, Tech Kat Update 2019",2050,"NO","Wind",1.3370000000000002,0.24299999999999999,32538,2.4,null,null,null,1,1,null,null,4900,null,null,null,30,2,null,null,null,null,null,"Central","2019-09-10","chwo",null,null,"Tech Cat 2019 Update",2015,"EUR"]
[null,null,"TechBase","TechBase - 19WIN_NS_ex Nearshore wind excl. Grid - 2015",null,null,"19WIN_NS_ex Nearshore wind excl. Grid","21 Wind Turbines Nearshore, Tech Kat Update 2019",2015,"NO","Wind",{"$f":"L187","v":2.2199999999999998},null,51570,3.9,null,null,null,1,1,null,null,4400,null,null,null,25,2,null,null,null,null,null,"Central","2019-09-10","chwo",null,null,"Tech Cat 2019 Update",2015,"EUR"]
[null,null,"TechBase","TechBase - 19WIN_NS_ex Nearshore wind excl. Grid - 2020",null,null,"19WIN_NS_ex Nearshore wind excl. Grid","21 Wind Turbines Nearshore, Tech Kat Update 2019",2020,"NO","Wind",{"$f":"L188","v":1.48},null,36053,2.7,null,null,null,1,1,null,null,4500,null,null,null,27,2,null,null,null,null,null,"Central","2019-09-10","chwo",null,null,"Tech Cat 2019 Update",2015,"EUR"]
[null,null,"TechBase","TechBase - 19WIN_NS_ex Nearshore wind excl. Grid - 2030",null,null,"19WIN_NS_ex Nearshore wind excl. Grid","21 Wind Turbines Nearshore, Tech Kat Update 2019",2030,"NO","Wind",1.41,null,34250,3,null,null,null,1,1,null,null,4650,null,null,null,30,2,null,null,null,null,null,"Central","2019-09-10","chwo",null,null,"Tech Cat 2019 Update",2015,"EUR"]
[null,null,"TechBase","TechBase - 19WIN_NS_ex Nearshore wind excl. Grid - 2040",null,null,"19WIN_NS_ex Nearshore wind excl. Grid","21 Wind Turbines Nearshore, Tech Kat Update 2019",2040,"NO","Wind",1.35,null,32880,2.4,null,null,null,1,1,null,null,4700,null,null,null,30,2,null,null,null,null,null,"Central","2019-09-10","chwo",null,null,"Tech Cat 2019 Update",2015,"EUR"]
[null,null,"TechBase","TechBase - 19WIN_NS_ex Nearshore wind excl. Grid - 2050",null,null,"19WIN_NS_ex Nearshore wind excl. Grid","21 Wind Turbines Nearshore, Tech Kat Update 2019",2050,"NO","Wind",1.3370000000000002,null,32538,2.4,null,null,null,1,1,null,null,4900,null,null,null,30,2,null,null,null,null,null,"Central","2019-09-10","chwo",null,null,"Tech Cat 2019 Update",2015,"EUR"]
[null,null,"TechBase","TechBase - 22PV_Sm_roof residential - 2020",null,null,"22PV_Sm_roof residential","22 PV small roof mounted residential systems, Tech Kat Update 2022",2020,"NO","solar",1.1529868155077876,2.9808883416943644E-2,12800,0,0,null,null,1,1,null,null,1010.3280000000001,null,null,null,35,0.5,null,null,null,null,null,"Decentral","2022-02-21","chwo",null,null,"Tech Cat 2022 Update",2020,"EUR","DC-values are used for financial data and full-load hours"]
[null,null,"TechBase","TechBase - 22PV_Sm_roof residential - 2025",null,null,"22PV_Sm_roof residential","22 PV small roof mounted residential systems, Tech Kat Update 2022",2025,"NO","solar",{"$f":"AVERAGE(L197,L199)","v":0.96450785500847913},{"$f":"AVERAGE(M197,M199)","v":2.6911964337045749E-2},{"$f":"AVERAGE(N197,N199)","v":11500},{"$f":"AVERAGE(O197,O199)","v":0},null,null,null,{"$f":"AVERAGE(S197,S199)","v":1},{"$f":"AVERAGE(T197,T199)","v":1},null,null,{"$f":"AVERAGE(W197,W199)","v":1063.1940000000002},null,null,null,{"$f":"AVERAGE(AA197,AA199)","v":37.5},{"$f":"AVERAGE(AB197,AB199)","v":0.5},null,null,null,null,null,"Decentral","2024-05-26","chwo - average of 2020 and 2030",null,null,"Tech Cat 2022 Update",2020,"EUR","DC-values are used for financial data and full-load hours"]
[null,null,"TechBase","TechBase - 22PV_Sm_roof residential - 2030",null,null,"22PV_Sm_roof residential","22 PV small roof mounted residential systems, Tech Kat Update 2022",2030,"NO","solar",0.77602889450917067,2.4015045257147854E-2,10200,0,0,null,null,1,1,null,null,1116.0600000000002,null,null,null,40,0.5,null,null,null,null,null,"Decentral","2022-02-21","chwo",null,null,"Tech Cat 2022 Update",2020,"EUR","DC-values are used for financial data and full-load hours"]
[null,null,"TechBase","TechBase - 22PV_Sm_roof residential - 2040",null,null,"22PV_Sm_roof residential","22 PV small roof mounted residential systems, Tech Kat Update 2022",2040,"NO","solar",0.64427429719455442,2.1557253415009397E-2,9100,0,0,null,null,1,1,null,null,1127.8080000000002,null,null,null,40,0.5,null,null,null,null,null,"Decentral","2022-02-21","chwo",null,null,"Tech Cat 2022 Update",2020,"EUR","DC-values are used for financial data and full-load hours"]
[null,null,"TechBase","TechBase - 22PV_Sm_roof residential - 2050",null,null,"22PV_Sm_roof residential","22 PV small roof mounted residential systems, Tech Kat Update 2022",2050,"NO","solar",0.58518365991875165,2.0353461493342027E-2,8500,0,0,null,null,1,1,null,null,1139.556,null,null,null,40,0.5,null,null,null,null,null,"Decentral","2022-02-21","chwo",null,null,"Tech Cat 2019 Update",2020,"EUR","DC-values are used for financial data and full-load hours"]
[null,null,"TechBase","TechBase - 22PV_Me_roof commercial industrial - 2020",null,null,"22PV_Me_roof commercial industrial","22 PV medium sized roof mounted commercial systems, Tech Kat 2022",2020,"NO","solar",0.75336021505376338,3.9650537634408602E-2,9600,0,0,null,null,1,1,null,null,1010.3280000000001,null,null,null,35,0.5,null,null,null,null,null,"Decentral","2022-02-21","chwo",null,null,"Tech Cat 2022 Update",2020,"EUR","DC-values are used for financial data and full-load hours"]
[null,null,"TechBase","TechBase - 22PV_Me_roof commercial industrial - 2025",null,null,"22PV_Me_roof commercial industrial","22 PV medium sized roof mounted commercial systems, Tech Kat 2022",2025,"NO","solar",{"$f":"AVERAGE(L202,L204)","v":0.61789315201286299},{"$f":"AVERAGE(M202,M204)","v":3.5797176292600083E-2},{"$f":"AVERAGE(N202,N204)","v":8850},{"$f":"AVERAGE(O202,O204)","v":0},null,null,null,{"$f":"AVERAGE(S202,S204)","v":1},{"$f":"AVERAGE(T202,T204)","v":1},null,null,{"$f":"AVERAGE(W202,W204)","v":1063.1940000000002},null,null,null,{"$f":"AVERAGE(AA202,AA204)","v":32.5},{"$f":"AVERAGE(AB202,AB204)","v":0.5},null,null,null,null,null,"Decentral","2024-05-26","chwo - average of 2020 and 2030",null,null,"Tech Cat 2022 Update",2020,"EUR","DC-values are used for financial data and full-load hours"]
[null,null,"TechBase","TechBase - 22PV_Me_roof commercial industrial - 2030",null,null,"22PV_Me_roof commercial industrial","22 PV medium sized roof mounted commercial systems, Tech Kat 2022",2030,"NO","solar",0.48242608897196271,3.1943814950791558E-2,8100,0,0,null,null,1,1,null,null,1116.0600000000002,null,null,null,30,0.5,null,null,null,null,null,"Decentral","2022-02-21","chwo",null,null,"Tech Cat 2022 Update",2020,"EUR","DC-values are used for financial data and full-load hours"]
[null,null,"TechBase","TechBase - 22PV_Me_roof commercial industrial - 2040",null,null,"22PV_Me_roof commercial industrial","22 PV medium sized roof mounted commercial systems, Tech Kat 2022",2040,"NO","solar",0.38997634562358618,2.8674562407140079E-2,7300,0,0,null,null,1,1,null,null,1127.8080000000002,null,null,null,40,0.5,null,null,null,null,null,"Decentral","2022-02-21","chwo",null,null,"Tech Cat 2022 Update",2020,"EUR","DC-values are used for financial data and full-load hours"]
[null,null,"TechBase","TechBase - 22PV_Me_roof commercial industrial - 2050",null,null,"22PV_Me_roof commercial industrial","22 PV medium sized roof mounted commercial systems, Tech Kat 2022",2050,"NO","solar",0.3492010409373591,2.7073328431803101E-2,6800,0,0,null,null,1,1,null,null,1139.556,null,null,null,40,0.5,null,null,null,null,null,"Decentral","2022-02-21","chwo",null,null,"Tech Cat 2022 Update",2020,"EUR","DC-values are used for financial data and full-load hours"]
[null,null,{"$f":"$G$61","v":"TechBase"},{"$f":"C207&\" - \"&G207&\" - \"&I207","v":"TechBase - 22PV_La_Utility scale PV - 2020"},null,null,"22PV_La_Utility scale PV","22 PV utility scale, Tech Kat Update 2022",2020,"NO","solar",0.40108695652173915,4.8913043478260872E-2,9000,0,0,null,null,1,1,null,null,1074.6215999999999,null,null,null,35,0.5,null,null,null,null,null,"Decentral","2022-02-21","chwo",null,null,"Tech Cat 2022 Update",2020,"EUR","DC-values are used for financial data and full-load hours"]
[null,null,"TechBase","TechBase - 22PV_La_Utility scale PV - 2025",null,null,"22PV_La_Utility scale PV","22 PV utility scale, Tech Kat Update 2022",2025,"NO","solar",{"$f":"AVERAGE(L207,L209)","v":0.3343329661903402},{"$f":"AVERAGE(M207,M209)","v":4.4159523296840482E-2},{"$f":"AVERAGE(N207,N209)","v":8300},{"$f":"AVERAGE(O207,O209)","v":0},null,null,null,{"$f":"AVERAGE(S207,S209)","v":1},{"$f":"AVERAGE(T207,T209)","v":1},null,null,{"$f":"AVERAGE(W207,W209)","v":1130.8517999999999},null,null,null,{"$f":"AVERAGE(AA207,AA209)","v":37.5},{"$f":"AVERAGE(AB207,AB209)","v":0.5},null,null,null,null,null,"Decentral","2024-05-26","chwo - average of 2020 and 2030",null,null,"Tech Cat 2022 Update",2020,"EUR","DC-values are used for financial data and full-load hours"]
[null,null,"TechBase","TechBase - 22PV_La_Utility scale PV - 2030",null,null,"22PV_La_Utility scale PV","22 PV utility scale, Tech Kat Update 2022",2030,"NO","solar",0.26757897585894125,3.9406003115420092E-2,7600,0,0,null,null,1,1,null,null,1187.0819999999999,null,null,null,40,0.5,null,null,null,null,null,"Decentral","2022-02-21","chwo",null,null,"Tech Cat 2022 Update",2020,"EUR","DC-values are used for financial data and full-load hours"]
[null,null,"TechBase","TechBase - 22PV_La_Utility scale PV - 2040",null,null,"22PV_La_Utility scale PV","22 PV utility scale, Tech Kat Update 2022",2040,"NO","solar",0.22128666524589038,3.5373041613524316E-2,6500,0,0,null,null,1,1,null,null,1199.5775999999998,null,null,null,40,0.5,null,null,null,null,null,"Decentral","2022-02-21","chwo",null,null,"Tech Cat 2022 Update",2020,"EUR","DC-values are used for financial data and full-load hours"]
[null,null,"TechBase","TechBase - 22PV_La_Utility scale PV - 2050",null,null,"22PV_La_Utility scale PV","22 PV utility scale, Tech Kat Update 2022",2050,"NO","solar",0.20066380256151636,3.3397753717640671E-2,5900,0,0,null,null,1,1,null,null,1212.0731999999998,null,null,null,40,0.5,null,null,null,null,null,"Decentral","2022-02-21","chwo",null,null,"Tech Cat 2019 Update",2020,"EUR","DC-values are used for financial data and full-load hours"]
[null,null,"TechBase","TechBase - 22PV_La_Utility scale PV_tracker - 2020",null,null,"22PV_La_Utility scale PV_tracker","22 PV tracker utility scale, Tech Kat Update 2022",2020,"NO","solar",0.47134223540718612,4.8939549130879959E-2,9700,0,0,null,null,1,1,null,null,1235.8148399999998,null,null,null,35,0.5,null,null,null,null,null,"Decentral","2022-02-21","chwo",null,null,"Tech Cat 2022 Update",2020,"EUR","DC-values are used for financial data and full-load hours"]
[null,null,"TechBase","TechBase - 22PV_La_Utility scale PV_tracker - 2025",null,null,"22PV_La_Utility scale PV_tracker","22 PV tracker utility scale, Tech Kat Update 2022",2025,"NO","solar",{"$f":"AVERAGE(L212,L214)","v":0.39774556958386842},{"$f":"AVERAGE(M212,M214)","v":4.418345304852013E-2},{"$f":"AVERAGE(N212,N214)","v":9000},{"$f":"AVERAGE(O212,O214)","v":0},null,null,null,{"$f":"AVERAGE(S212,S214)","v":1},{"$f":"AVERAGE(T212,T214)","v":1},null,null,{"$f":"AVERAGE(W212,W214)","v":1302.76242},null,null,null,{"$f":"AVERAGE(AA212,AA214)","v":37.5},{"$f":"AVERAGE(AB212,AB214)","v":0.5},null,null,null,null,null,"Decentral","2024-05-26","chwo - average of 2020 and 2030",null,null,"Tech Cat 2022 Update",2020,"EUR","DC-values are used for financial data and full-load hours"]
[null,null,"TechBase","TechBase - 22PV_La_Utility scale PV_tracker - 2030",null,null,"22PV_La_Utility scale PV_tracker","22 PV tracker utility scale, Tech Kat Update 2022",2030,"NO","solar",0.32414890376055078,3.9427356966160301E-2,8300,0,0,null,null,1,1,null,null,1369.71,null,null,null,40,0.5,null,null,null,null,null,"Decentral","2022-02-21","chwo",null,null,"Tech Cat 2022 Update",2020,"EUR","DC-values are used for financial data and full-load hours"]
[null,null,"TechBase","TechBase - 22PV_La_Utility scale PV_tracker - 2040",null,null,"22PV_La_Utility scale PV_tracker","22 PV tracker utility scale, Tech Kat Update 2022",2040,"NO","solar",0.27205676403623219,3.5392210029276346E-2,7500,0,0,null,null,1,1,null,null,1379.51424,null,null,null,40,0.5,null,null,null,null,null,"Decentral","2022-02-21","chwo",null,null,"Tech Cat 2022 Update",2020,"EUR","DC-values are used for financial data and full-load hours"]
[null,null,"TechBase","TechBase - 22PV_La_Utility scale PV_tracker - 2050",null,null,"22PV_La_Utility scale PV_tracker","22 PV tracker utility scale, Tech Kat Update 2022",2050,"NO","solar",0.24859433764973199,3.3415851738032534E-2,7200,0,0,null,null,1,1,null,null,1393.8841799999998,null,null,null,40,0.5,null,null,null,null,null,"Decentral","2022-02-21","chwo",null,null,"Tech Cat 2022 Update",2020,"EUR","DC-values are used for financial data and full-load hours"]
[null,null,"TechBase","TechBase - 25WIN_OF_in Offshore wind AC incl. Grid - 2020",null,null,{"$f":"G218","v":"25WIN_OF_in Offshore wind AC incl. Grid"},"21 Wind Turbines Offshore, Tech Kat Update 2025",2020,"NO","Wind",{"$f":"L277","v":1.7459437919546248},0.37,50000,5,0,0,0,1,1,0,0,4400,0,0,0,27,2.5,0,0,0,0,0,"Central","2022-03-03","chwo",null,null,"Tech Cat 2022 Update",2020,"EUR"]
[null,null,"TechBase","TechBase - 25WIN_OF_in Offshore wind AC incl. Grid - 2025",null,null,"25WIN_OF_in Offshore wind AC incl. Grid","21 Wind Turbines Offshore, Tech Kat Update 2025",2025,"NO","Wind",{"$f":"2.78022947925861-M218","v":1.9417475728155384},0.83848190644307141,44000,4.4130626654898499,null,null,null,1,1,null,null,4400,null,null,null,30,3.5,null,null,null,null,null,"Central","2025-01-17","chwo",null,null,"Tech Cat 2025 Update",2020,"EUR"]
[null,null,"TechBase","TechBase - 25WIN_OF_in Offshore wind AC incl. Grid - 2030",null,null,"25WIN_OF_in Offshore wind AC incl. Grid","21 Wind Turbines Offshore, Tech Kat Update 2025",2030,"NO","Wind",{"$f":"2.3931344873524-M219","v":1.5546525809093286},0.83848190644307141,34000,3.4466987330489469,null,null,null,1,1,null,null,4550,null,null,null,30,3.5,null,null,null,null,null,"Central","2025-01-17","chwo",null,null,"Tech Cat 2025 Update",2020,"EUR"]
[null,null,"TechBase","TechBase - 25WIN_OF_in Offshore wind AC incl. Grid - 2035",null,null,"25WIN_OF_in Offshore wind AC incl. Grid","21 Wind Turbines Offshore, Tech Kat Update 2025",2035,"NO","Wind",{"$f":"2.24822430463098-M220","v":1.4400206396688708},0.80820366496210916,32000,3.1616292694315389,null,null,null,1,1,null,null,4600,null,null,null,30,3.5,null,null,null,null,null,"Central","2025-01-17","chwo",null,null,"Tech Cat 2025 Update",2020,"EUR"]
[null,null,"TechBase","TechBase - 25WIN_OF_in Offshore wind AC incl. Grid - 2040",null,null,"25WIN_OF_in Offshore wind AC incl. Grid","21 Wind Turbines Offshore, Tech Kat Update 2025",2040,"NO","Wind",{"$f":"2.14056609196769-M221","v":1.3722023042617715},0.76836378770591851,30000,2.9932755899777126,null,null,null,1,1,null,null,4650,null,null,null,30,3.5,null,null,null,null,null,"Central","2025-01-17","chwo",null,null,"Tech Cat 2025 Update",2020,"EUR"]
[null,null,"TechBase","TechBase - 25WIN_OF_in Offshore wind AC incl. Grid - 2050",null,null,"25WIN_OF_in Offshore wind AC incl. Grid","21 Wind Turbines Offshore, Tech Kat Update 2025",2050,"NO","Wind",{"$f":"1.98569299199925-M222","v":1.2874473230304846},0.6982456689687655,28000,2.7832311024966878,null,null,null,1,1,null,null,4650,null,null,null,30,3.5,null,null,null,null,null,"Central","2025-01-17","chwo",null,null,"Tech Cat 2025 Update",2020,"EUR"]
[null,null,"TechBase","TechBase - 25WIN_OF_ex Offshore wind excl. Grid - 2020",null,null,"25WIN_OF_ex Offshore wind excl. Grid","21 Wind Turbines Offshore, Tech Kat Update 2025",{"$f":"I217","v":2020},"NO",{"$f":"K217","v":"Wind"},{"$f":"L217","v":1.7459437919546248},null,50000,{"$f":"O217","v":5},null,null,null,{"$f":"S217","v":1},1,null,null,{"$f":"W217","v":4400},null,null,null,{"$f":"AA217","v":27},2.5,null,null,null,null,null,{"$f":"AH217","v":"Central"},{"$f":"AI217","v":"2022-03-03"},{"$f":"AJ217","v":"chwo"},null,null,{"$f":"AM217","v":"Tech Cat 2022 Update"},2020,"EUR"]
[null,null,"TechBase","TechBase - 25WIN_OF_ex Offshore wind AC excl. Grid - 2025",null,null,"25WIN_OF_ex Offshore wind AC excl. Grid","21 Wind Turbines Offshore, Tech Kat Update 2025",{"$f":"I218","v":2025},"NO","Wind",{"$f":"L218","v":1.9417475728155384},null,44000,{"$f":"O218","v":4.4130626654898499},null,null,null,{"$f":"S218","v":1},1,null,null,{"$f":"W218","v":4400},null,null,null,{"$f":"AA218","v":30},3.5,null,null,null,null,null,"Central","2025-01-17",{"$f":"AJ218","v":"chwo"},null,null,{"$f":"AM218","v":"Tech Cat 2025 Update"},2020,"EUR"]
[null,null,"TechBase","TechBase - 25WIN_OF_ex Offshore wind AC excl. Grid - 2030",null,null,"25WIN_OF_ex Offshore wind AC excl. Grid","21 Wind Turbines Offshore, Tech Kat Update 2025",2030,"NO","Wind",{"$f":"L219","v":1.5546525809093286},null,34000,{"$f":"O219","v":3.4466987330489469},null,null,null,{"$f":"S219","v":1},1,null,null,{"$f":"W219","v":4550},null,null,null,{"$f":"AA219","v":30},3.5,null,null,null,null,null,{"$f":"AH219","v":"Central"},"2025-01-17",{"$f":"AJ219","v":"chwo"},null,null,{"$f":"AM219","v":"Tech Cat 2025 Update"},2020,"EUR"]
[null,null,"TechBase","TechBase - 25WIN_OF_ex Offshore wind AC excl. Grid - 2035",null,null,"25WIN_OF_ex Offshore wind AC excl. Grid","21 Wind Turbines Offshore, Tech Kat Update 2025",2035,"NO","Wind",{"$f":"L220","v":1.4400206396688708},null,32000,{"$f":"O220","v":3.1616292694315389},null,null,null,{"$f":"S220","v":1},1,null,null,{"$f":"W220","v":4600},null,null,null,{"$f":"AA220","v":30},3.5,null,null,null,null,null,{"$f":"AH220","v":"Central"},"2025-01-17",{"$f":"AJ220","v":"chwo"},null,null,{"$f":"AM220","v":"Tech Cat 2025 Update"},2020,"EUR"]
[null,null,"TechBase","TechBase - 25WIN_OF_ex Offshore wind AC excl. Grid - 2040",null,null,"25WIN_OF_ex Offshore wind AC excl. Grid","21 Wind Turbines Offshore, Tech Kat Update 2025",2040,"NO","Wind",{"$f":"L221","v":1.3722023042617715},null,30000,{"$f":"O221","v":2.9932755899777126},null,null,null,{"$f":"S221","v":1},1,null,null,{"$f":"W221","v":4650},null,null,null,{"$f":"AA221","v":30},3.5,null,null,null,null,null,{"$f":"AH221","v":"Central"},"2025-01-17",{"$f":"AJ221","v":"chwo"},null,null,{"$f":"AM221","v":"Tech Cat 2025 Update"},2020,"EUR"]
[null,null,"TechBase","TechBase - 25WIN_OF_ex Offshore wind AC excl. Grid - 2050",null,null,"25WIN_OF_ex Offshore wind AC excl. Grid","21 Wind Turbines Offshore, Tech Kat Update 2025",2050,"NO","Wind",{"$f":"L222","v":1.2874473230304846},null,28000,{"$f":"O222","v":2.7832311024966878},null,null,null,{"$f":"S222","v":1},1,null,null,{"$f":"W222","v":4650},null,null,null,{"$f":"AA222","v":30},3.5,null,null,null,null,null,{"$f":"AH222","v":"Central"},"2025-01-17",{"$f":"AJ222","v":"chwo"},null,null,{"$f":"AM222","v":"Tech Cat 2025 Update"},2020,"EUR"]
[null,null,"TechBase","TechBase - 25WIN_NS_in Nearshore wind incl. Grid - 2020",null,null,{"$f":"G230","v":"25WIN_NS_in Nearshore wind incl. Grid"},"21 Wind Turbines Offshore, Tech Kat Update 2025",2020,"NO","Wind",{"$f":"L282","v":1.6218694385012524},{"$f":"M282","v":7.8E-2},50000,5,0,0,0,1,1,0,0,4100,0,0,0,27,2.5,0,0,0,0,0,"Central","2025-01-23","chwo",0,0,"Tech Cat 2022 Update",2020,"EUR"]
[null,null,"TechBase","TechBase - 25WIN_NS_in Nearshore wind incl. Grid - 2025",null,null,"25WIN_NS_in Nearshore wind incl. Grid","21 Wind Turbines Offshore, Tech Kat Update 2025",2025,"NO","Wind",1.83,0.09,44000,4.41,null,null,null,1,1,null,null,4000,null,null,null,30,3.5,null,null,null,null,null,"Central","2025-01-23","chwo",null,null,"Tech Cat 2025 Update",2020,"EUR"]
[null,null,"TechBase","TechBase - 25WIN_NS_in Nearshore wind incl. Grid - 2030",null,null,"25WIN_NS_in Nearshore wind incl. Grid","21 Wind Turbines Offshore, Tech Kat Update 2025",2030,"NO","Wind",1.45,0.09,34000,3.45,null,null,null,1,1,null,null,4150,null,null,null,30,3.5,null,null,null,null,null,"Central","2025-01-23","chwo",null,null,"Tech Cat 2025 Update",2020,"EUR"]
[null,null,"TechBase","TechBase - 25WIN_NS_in Nearshore wind incl. Grid - 2035",null,null,"25WIN_NS_in Nearshore wind incl. Grid","21 Wind Turbines Offshore, Tech Kat Update 2025",2035,"NO","Wind",null,null,null,null,null,null,null,null,null,null,null,null,null,null,null,null,null,null,null,null,null,null,null,null,"chwo",null,null,"Tech Cat 2025 Update"]
[null,null,"TechBase","TechBase - 25WIN_NS_in Nearshore wind incl. Grid - 2040",null,null,"25WIN_NS_in Nearshore wind incl. Grid","21 Wind Turbines Offshore, Tech Kat Update 2025",2040,"NO","Wind"]
[null,null,"TechBase","TechBase - 25WIN_NS_in Nearshore wind incl. Grid - 2050",null,null,"25WIN_NS_in Nearshore wind incl. Grid","21 Wind Turbines Offshore, Tech Kat Update 2025",2050,"NO","Wind"]
[null,null,"TechBase","TechBase - 25WIN_NS_ex Nearshore wind excl. Grid - 2020",null,null,"25WIN_NS_ex Nearshore wind excl. Grid","21 Wind Turbines Offshore, Tech Kat Update 2025",{"$f":"I229","v":2020},"NO",{"$f":"K229","v":"Wind"},{"$f":"L292","v":1.6218694385012524},{"$f":"M292","v":0},50000,5,null,null,null,1,1,null,null,4100,null,null,null,27,2.5,null,null,null,null,null,"Central","2025-01-23","chwo",null,null,"Tech Cat 2022 Update",2020,"EUR"]
[null,null,"TechBase","TechBase - 25WIN_NS_ex Nearshore wind excl. Grid - 2025",null,null,"25WIN_NS_ex Nearshore wind excl. Grid","21 Wind Turbines Offshore, Tech Kat Update 2025",{"$f":"I230","v":2025},"NO",{"$f":"K230","v":"Wind"},1.83,0.09,44000,4.41,null,null,null,1,1,null,null,4000,null,null,null,30,3.5,null,null,null,null,null,{"$f":"AH293","v":"Central"},"2025-01-23",{"$f":"AJ230","v":"chwo"},null,null,{"$f":"AM230","v":"Tech Cat 2025 Update"},2020,"EUR"]
[null,null,"TechBase","TechBase - 25WIN_NS_ex Nearshore wind excl. Grid - 2030",null,null,"25WIN_NS_ex Nearshore wind excl. Grid","21 Wind Turbines Offshore, Tech Kat Update 2025",{"$f":"I231","v":2030},"NO",{"$f":"K231","v":"Wind"},1.45,0.09,34000,3.45,null,null,null,1,1,null,null,4150,null,null,null,30,3.5,null,null,null,null,null,{"$f":"AH294","v":"Central"},"2025-01-23","chwo",null,null,"Tech Cat 2025 Update",2020,"EUR"]
[null,null,"TechBase","TechBase - 25WIN_NS_ex Nearshore wind excl. Grid - 2035",null,null,"25WIN_NS_ex Nearshore wind excl. Grid","21 Wind Turbines Offshore, Tech Kat Update 2025",{"$f":"I232","v":2035},"NO",{"$f":"K232","v":"Wind"}]
[null,null,"TechBase","TechBase - 25WIN_NS_ex Nearshore wind excl. Grid - 2040",null,null,"25WIN_NS_ex Nearshore wind excl. Grid","21 Wind Turbines Offshore, Tech Kat Update 2025",{"$f":"I233","v":2040},"NO",{"$f":"K233","v":"Wind"}]
[null,null,"TechBase","TechBase - 25WIN_NS_ex Nearshore wind excl. Grid - 2050",null,null,"25WIN_NS_ex Nearshore wind excl. Grid","21 Wind Turbines Offshore, Tech Kat Update 2025",{"$f":"I234","v":2050},"NO",{"$f":"K234","v":"Wind"}]
[null,null,"TechBase","TechBase - 25WIN_FOA_in Floating offshore AC incl. Grid - 2020",null,null,{"$f":"G242","v":"25WIN_FOA_in Floating offshore AC incl. Grid"},"21 Wind Turbines Offshore, Tech Kat Update 2025",2020,"NO","Wind",null,null,null,null,null,null,null,null,null,null,null,null,null,null,null,null,null,null,null,null,null,null,"Central","2025-01-23","chwo",null,null,{"$f":"AM217","v":"Tech Cat 2022 Update"},2020,"EUR"]
[null,null,"TechBase","TechBase - 25WIN_FOA_in Floating offshore AC incl. Grid - 2025",null,null,"25WIN_FOA_in Floating offshore AC incl. Grid","21 Wind Turbines Offshore, Tech Kat Update 2025",2025,"NO","Wind",null,null,null,null,null,null,null,null,null,null,null,null,null,null,null,null,null,null,null,null,null,null,"Central","2025-01-23","chwo",null,null,"Tech Cat 2025 Update",2020,"EUR"]
[null,null,"TechBase","TechBase - 25WIN_FOA_in Floating offshore AC incl. Grid - 2030",null,null,{"$f":"G242","v":"25WIN_FOA_in Floating offshore AC incl. Grid"},"21 Wind Turbines Offshore, Tech Kat Update 2025",2030,"NO","Wind",2.81,0.75,62000,6.22,null,null,null,1,1,null,null,4150,null,null,null,30,3.5,null,null,null,null,null,"Central","2025-01-23","chwo",null,null,"Tech Cat 2025 Update",2020,"EUR"]
[null,null,"TechBase","TechBase - 25WIN_FOA_in Floating offshore AC incl. Grid - 2035",null,null,{"$f":"G243","v":"25WIN_FOA_in Floating offshore AC incl. Grid"},"21 Wind Turbines Offshore, Tech Kat Update 2025",2035,"NO","Wind",2.1800000000000002,0.72,42000,4.21,null,null,null,1,1,null,null,4200,null,null,null,30,3.5,null,null,null,null,null,"Central","2025-01-23","chwo",null,null,"Tech Cat 2025 Update",2020,"EUR"]
[null,null,"TechBase","TechBase - 25WIN_FOA_in Floating offshore AC incl. Grid - 2040",null,null,"25WIN_FOA_in Floating offshore AC incl. Grid","21 Wind Turbines Offshore, Tech Kat Update 2025",2040,"NO","Wind",1.81,0.69,33000,3.24,null,null,null,1,1,null,null,4250,null,null,null,30,3.5,null,null,null,null,null,"Central","2025-01-23","chwo",null,null,"Tech Cat 2025 Update",2020,"EUR"]
[null,null,"TechBase","TechBase - 25WIN_FOA_in Floating offshore AC incl. Grid - 2050",null,null,"25WIN_FOA_in Floating offshore AC incl. Grid","21 Wind Turbines Offshore, Tech Kat Update 2025",2050,"NO","Wind",1.63,0.62,28000,2.79,null,null,null,1,1,null,null,4250,null,null,null,30,3.5,null,null,null,null,null,"Central","2025-01-23","chwo",null,null,"Tech Cat 2025 Update",2020,"EUR"]
[null,null,"TechBase","TechBase - 25WIN_FOA_ex Floating offshore AC excl. Grid - 2020",null,null,{"$f":"G248","v":"25WIN_FOA_ex Floating offshore AC excl. Grid"},"21 Wind Turbines Offshore, Tech Kat Update 2025",{"$f":"I241","v":2020},"NO",{"$f":"K241","v":"Wind"},null,null,null,null,null,null,null,null,null,null,null,null,null,null,null,null,null,null,null,null,null,null,"Central","2025-01-23",{"$f":"AJ241","v":"chwo"},null,null,{"$f":"AM241","v":"Tech Cat 2022 Update"},2020,"EUR"]
[null,null,"TechBase","TechBase - 25WIN_FOA_ex Floating offshore AC excl. Grid - 2025",null,null,"25WIN_FOA_ex Floating offshore AC excl. Grid","21 Wind Turbines Offshore, Tech Kat Update 2025",{"$f":"I242","v":2025},"NO",{"$f":"K242","v":"Wind"},null,null,null,null,null,null,null,null,null,null,null,null,null,null,null,null,null,null,null,null,null,null,"Central","2025-01-23","chwo",null,null,"Tech Cat 2025 Update",2020,"EUR"]
[null,null,"TechBase","TechBase - 25WIN_FOA_ex Floating offshore AC excl. Grid - 2030",null,null,{"$f":"G248","v":"25WIN_FOA_ex Floating offshore AC excl. Grid"},"21 Wind Turbines Offshore, Tech Kat Update 2025",{"$f":"I243","v":2030},"NO",{"$f":"K243","v":"Wind"},2.81,null,62000,6.22,null,null,null,1,1,null,null,4150,null,null,null,30,3.5,null,null,null,null,null,"Central","2025-01-23","chwo",null,null,"Tech Cat 2025 Update",2020,"EUR"]
[null,null,"TechBase","TechBase - 25WIN_FOA_ex Floating offshore AC excl. Grid - 2035",null,null,{"$f":"G249","v":"25WIN_FOA_ex Floating offshore AC excl. Grid"},"21 Wind Turbines Offshore, Tech Kat Update 2025",{"$f":"I244","v":2035},"NO",{"$f":"K244","v":"Wind"},2.1800000000000002,null,42000,4.21,null,null,null,1,1,null,null,4200,null,null,null,30,3.5,null,null,null,null,null,"Central","2025-01-23","chwo",null,null,"Tech Cat 2025 Update",2020,"EUR"]
[null,null,"TechBase","TechBase - 25WIN_FOA_ex Floating offshore AC excl. Grid - 2040",null,null,"25WIN_FOA_ex Floating offshore AC excl. Grid","21 Wind Turbines Offshore, Tech Kat Update 2025",{"$f":"I245","v":2040},"NO",{"$f":"K245","v":"Wind"},1.81,null,33000,3.24,null,null,null,1,1,null,null,4250,null,null,null,30,3.5,null,null,null,null,null,"Central","2025-01-23","chwo",null,null,"Tech Cat 2025 Update",2020,"EUR"]
[null,null,"TechBase","TechBase - 25WIN_FOA_ex Floating offshore AC excl. Grid - 2050",null,null,"25WIN_FOA_ex Floating offshore AC excl. Grid","21 Wind Turbines Offshore, Tech Kat Update 2025",{"$f":"I246","v":2050},"NO",{"$f":"K246","v":"Wind"},1.63,null,28000,2.79,null,null,null,1,1,null,null,4250,null,null,null,30,3.5,null,null,null,null,null,"Central","2025-01-23","chwo",null,null,"Tech Cat 2025 Update",2020,"EUR"]
[null,null,"TechBase","TechBase - 25WIN_FSA_in Far Offshore AC incl. Grid - 2020",null,null,{"$f":"G254","v":"25WIN_FSA_in Far Offshore AC incl. Grid"},"21 Wind Turbines Offshore, Tech Kat Update 2025",2020,"NO","Wind",null,null,null,null,null,null,null,null,null,null,null,null,null,null,null,null,null,null,null,null,null,null,"Central","2025-01-23","chwo",null,null,{"$f":"AM229","v":"Tech Cat 2022 Update"},2020,"EUR"]
[null,null,"TechBase","TechBase - 25WIN_FSA_in Far Offshore AC incl. Grid - 2025",null,null,"25WIN_FSA_in Far Offshore AC incl. Grid","21 Wind Turbines Offshore, Tech Kat Update 2025",2025,"NO","Wind",1.99,1.85,44000,4.41,null,null,null,1,1,null,null,4500,null,null,null,30,3.5,null,null,null,null,null,"Central","2025-01-23","chwo",null,null,"Tech Cat 2025 Update",2020,"EUR"]
[null,null,"TechBase","TechBase - 25WIN_FSA_in Far Offshore AC incl. Grid - 2030",null,null,{"$f":"G254","v":"25WIN_FSA_in Far Offshore AC incl. Grid"},"21 Wind Turbines Offshore, Tech Kat Update 2025",2030,"NO","Wind",1.59,1.85,34000,3.45,null,null,null,1,1,null,null,4650,null,null,null,30,3.5,null,null,null,null,null,"Central","2025-01-23","chwo",null,null,"Tech Cat 2025 Update",2020,"EUR"]
[null,null,"TechBase","TechBase - 25WIN_FSA_in Far Offshore AC incl. Grid - 2035",null,null,{"$f":"G255","v":"25WIN_FSA_in Far Offshore AC incl. Grid"},"21 Wind Turbines Offshore, Tech Kat Update 2025",2035,"NO","Wind",1.47,1.77,32000,3.16,null,null,null,1,1,null,null,4700,null,null,null,30,3.5,null,null,null,null,null,"Central","2025-01-23","chwo",null,null,"Tech Cat 2025 Update",2020,"EUR"]
[null,null,"TechBase","TechBase - 25WIN_FSA_in Far Offshore AC incl. Grid - 2040",null,null,"25WIN_FSA_in Far Offshore AC incl. Grid","21 Wind Turbines Offshore, Tech Kat Update 2025",2040,"NO","Wind",1.4,1.7,30000,2.99,null,null,null,1,1,null,null,4750,null,null,null,30,3.5,null,null,null,null,null,"Central","2025-01-23","chwo",null,null,"Tech Cat 2025 Update",2020,"EUR"]
[null,null,"TechBase","TechBase - 25WIN_FSA_in Far Offshore AC incl. Grid - 2050",null,null,"25WIN_FSA_in Far Offshore AC incl. Grid","21 Wind Turbines Offshore, Tech Kat Update 2025",2050,"NO","Wind",1.32,1.55,28000,2.78,null,null,null,1,1,null,null,4750,null,null,null,30,3.5,null,null,null,null,null,"Central","2025-01-23","chwo",null,null,"Tech Cat 2025 Update",2020,"EUR"]
[null,null,"TechBase","TechBase - 25WIN_FSA_ex Far Offshore AC excl. Grid - 2020",null,null,{"$f":"G260","v":"25WIN_FSA_ex Far Offshore AC excl. Grid"},"21 Wind Turbines Offshore, Tech Kat Update 2025",{"$f":"I253","v":2020},"NO",{"$f":"K253","v":"Wind"},null,null,null,null,null,null,null,null,null,null,null,null,null,null,null,null,null,null,null,null,null,null,"Central","2025-01-23",{"$f":"AJ253","v":"chwo"},null,null,{"$f":"AM253","v":"Tech Cat 2022 Update"},2020,"EUR"]
[null,null,"TechBase","TechBase - 25WIN_FSA_ex Far Offshore AC excl. Grid - 2025",null,null,"25WIN_FSA_ex Far Offshore AC excl. Grid","21 Wind Turbines Offshore, Tech Kat Update 2025",{"$f":"I254","v":2025},"NO",{"$f":"K254","v":"Wind"},{"$f":"L254","v":1.99},null,{"$f":"N254","v":44000},{"$f":"O254","v":4.41},null,null,null,{"$f":"S254","v":1},{"$f":"T254","v":1},null,null,{"$f":"W254","v":4500},null,null,null,{"$f":"AA254","v":30},{"$f":"AB254","v":3.5},null,null,null,null,null,"Central","2025-01-23","chwo",null,null,"Tech Cat 2025 Update",2020,"EUR"]
[null,null,"TechBase","TechBase - 25WIN_FSA_ex Far Offshore AC excl. Grid - 2030",null,null,{"$f":"G260","v":"25WIN_FSA_ex Far Offshore AC excl. Grid"},"21 Wind Turbines Offshore, Tech Kat Update 2025",{"$f":"I255","v":2030},"NO",{"$f":"K255","v":"Wind"},1.59,null,{"$f":"N255","v":34000},3.45,null,null,null,{"$f":"S255","v":1},1,null,null,{"$f":"W255","v":4650},null,null,null,{"$f":"AA255","v":30},3.5,null,null,null,null,null,"Central","2025-01-23","chwo",null,null,"Tech Cat 2025 Update",2020,"EUR"]
[null,null,"TechBase","TechBase - 25WIN_FSA_ex Far Offshore AC excl. Grid - 2035",null,null,{"$f":"G261","v":"25WIN_FSA_ex Far Offshore AC excl. Grid"},"21 Wind Turbines Offshore, Tech Kat Update 2025",{"$f":"I256","v":2035},"NO",{"$f":"K256","v":"Wind"},1.47,null,{"$f":"N256","v":32000},3.16,null,null,null,{"$f":"S256","v":1},1,null,null,{"$f":"W256","v":4700},null,null,null,{"$f":"AA256","v":30},3.5,null,null,null,null,null,"Central","2025-01-23","chwo",null,null,"Tech Cat 2025 Update",2020,"EUR"]
[null,null,"TechBase","TechBase - 25WIN_FSA_ex Far Offshore AC excl. Grid - 2040",null,null,"25WIN_FSA_ex Far Offshore AC excl. Grid","21 Wind Turbines Offshore, Tech Kat Update 2025",{"$f":"I257","v":2040},"NO",{"$f":"K257","v":"Wind"},1.4,null,{"$f":"N257","v":30000},2.99,null,null,null,{"$f":"S257","v":1},1,null,null,{"$f":"W257","v":4750},null,null,null,{"$f":"AA257","v":30},3.5,null,null,null,null,null,"Central","2025-01-23","chwo",null,null,"Tech Cat 2025 Update",2020,"EUR"]
[null,null,"TechBase","TechBase - 25WIN_FSA_ex Far Offshore AC excl. Grid - 2050",null,null,"25WIN_FSA_ex Far Offshore AC excl. Grid","21 Wind Turbines Offshore, Tech Kat Update 2025",{"$f":"I258","v":2050},"NO",{"$f":"K258","v":"Wind"},1.32,null,{"$f":"N258","v":28000},2.78,null,null,null,{"$f":"S258","v":1},1,null,null,{"$f":"W258","v":4750},null,null,null,{"$f":"AA258","v":30},3.5,null,null,null,null,null,"Central","2025-01-23","chwo",null,null,"Tech Cat 2025 Update",2020,"EUR"]
[null,null,"TechBase","TechBase - 25WIN_FSA_in Far Offshore DC incl. Grid - 2020",null,null,{"$f":"G266","v":"25WIN_FSA_in Far Offshore DC incl. Grid"},"21 Wind Turbines Offshore, Tech Kat Update 2025",2020,"NO","Wind",null,null,null,null,null,null,null,null,null,null,null,null,null,null,null,null,null,null,null,null,null,null,"Central","2025-01-23","chwo",null,null,{"$f":"AM241","v":"Tech Cat 2022 Update"},2020,"EUR"]
[null,null,"TechBase","TechBase - 25WIN_FSA_in Far Offshore DC incl. Grid - 2025",null,null,"25WIN_FSA_in Far Offshore DC incl. Grid","21 Wind Turbines Offshore, Tech Kat Update 2025",2025,"NO","Wind",null,null,null,null,null,null,null,null,null,null,null,null,null,null,null,null,null,null,null,null,null,null,"Central","2025-01-23","chwo",null,null,"Tech Cat 2025 Update",2020,"EUR"]
[null,null,"TechBase","TechBase - 25WIN_FSA_in Far Offshore DC incl. Grid - 2030",null,null,{"$f":"G266","v":"25WIN_FSA_in Far Offshore DC incl. Grid"},"21 Wind Turbines Offshore, Tech Kat Update 2025",2030,"NO","Wind",2.81,1.72,62000,6.22,null,null,null,1,1,null,null,4650,null,null,null,30,3.5,null,null,null,null,null,"Central","2025-01-23","chwo",null,null,"Tech Cat 2025 Update",2020,"EUR"]
[null,null,"TechBase","TechBase - 25WIN_FSA_in Far Offshore DC incl. Grid - 2035",null,null,{"$f":"G267","v":"25WIN_FSA_in Far Offshore DC incl. Grid"},"21 Wind Turbines Offshore, Tech Kat Update 2025",2035,"NO","Wind",2.1800000000000002,1.64,42000,4.21,null,null,null,1,1,null,null,4700,null,null,null,30,3.5,null,null,null,null,null,"Central","2025-01-23","chwo",null,null,"Tech Cat 2025 Update",2020,"EUR"]
[null,null,"TechBase","TechBase - 25WIN_FSA_in Far Offshore DC incl. Grid - 2040",null,null,"25WIN_FSA_in Far Offshore DC incl. Grid","21 Wind Turbines Offshore, Tech Kat Update 2025",2040,"NO","Wind",1.81,1.58,33000,3.24,null,null,null,1,1,null,null,4750,null,null,null,30,3.5,null,null,null,null,null,"Central","2025-01-23","chwo",null,null,"Tech Cat 2025 Update",2020,"EUR"]
[null,null,"TechBase","TechBase - 25WIN_FSA_in Far Offshore DC incl. Grid - 2050",null,null,"25WIN_FSA_in Far Offshore DC incl. Grid","21 Wind Turbines Offshore, Tech Kat Update 2025",2050,"NO","Wind",1.63,1.44,28000,2.79,null,null,null,1,1,null,null,4750,null,null,null,30,3.5,null,null,null,null,null,"Central","2025-01-23","chwo",null,null,"Tech Cat 2025 Update",2020,"EUR"]
[null,null,"TechBase",{"$f":"C271&\" - \"&G271&\" - \"&I271","v":"TechBase - 25WIN_FSA_ex Far Offshore DC excl. Grid - 2020"},null,null,{"$f":"G272","v":"25WIN_FSA_ex Far Offshore DC excl. Grid"},"21 Wind Turbines Offshore, Tech Kat Update 2025",{"$f":"I265","v":2020},"NO",{"$f":"K265","v":"Wind"},null,null,null,null,null,null,null,null,null,null,null,null,null,null,null,null,null,null,null,null,null,null,"Central","2025-01-23",{"$f":"AJ265","v":"chwo"},null,null,{"$f":"AM265","v":"Tech Cat 2022 Update"},2020,"EUR"]
[null,null,"TechBase","TechBase - 25WIN_FSA_ex Far Offshore DC excl. Grid - 2025",null,null,"25WIN_FSA_ex Far Offshore DC excl. Grid","21 Wind Turbines Offshore, Tech Kat Update 2025",{"$f":"I266","v":2025},"NO",{"$f":"K266","v":"Wind"},null,null,null,null,null,null,null,null,null,null,null,null,null,null,null,null,null,null,null,null,null,null,"Central","2025-01-23","chwo",null,null,"Tech Cat 2025 Update",2020,"EUR"]
[null,null,"TechBase","TechBase - 25WIN_FSA_ex Far Offshore DC excl. Grid - 2030",null,null,{"$f":"G272","v":"25WIN_FSA_ex Far Offshore DC excl. Grid"},"21 Wind Turbines Offshore, Tech Kat Update 2025",{"$f":"I267","v":2030},"NO",{"$f":"K267","v":"Wind"},{"$f":"L267","v":2.81},null,{"$f":"N267","v":62000},{"$f":"O267","v":6.22},null,null,null,{"$f":"S267","v":1},{"$f":"T267","v":1},null,null,{"$f":"W267","v":4650},null,null,null,{"$f":"AA267","v":30},{"$f":"AB267","v":3.5},null,null,null,null,null,"Central","2025-01-23","chwo",null,null,"Tech Cat 2025 Update",2020,"EUR"]
[null,null,"TechBase","TechBase - 25WIN_FSA_ex Far Offshore DC excl. Grid - 2035",null,null,{"$f":"G273","v":"25WIN_FSA_ex Far Offshore DC excl. Grid"},"21 Wind Turbines Offshore, Tech Kat Update 2025",{"$f":"I268","v":2035},"NO",{"$f":"K268","v":"Wind"},2.1800000000000002,null,{"$f":"N268","v":42000},4.21,null,null,null,{"$f":"S268","v":1},1,null,null,{"$f":"W268","v":4700},null,null,null,{"$f":"AA268","v":30},3.5,null,null,null,null,null,"Central","2025-01-23","chwo",null,null,"Tech Cat 2025 Update",2020,"EUR"]
[null,null,"TechBase","TechBase - 25WIN_FSA_ex Far Offshore DC excl. Grid - 2040",null,null,"25WIN_FSA_ex Far Offshore DC excl. Grid","21 Wind Turbines Offshore, Tech Kat Update 2025",{"$f":"I269","v":2040},"NO",{"$f":"K269","v":"Wind"},1.81,null,{"$f":"N269","v":33000},3.24,null,null,null,{"$f":"S269","v":1},1,null,null,{"$f":"W269","v":4750},null,null,null,{"$f":"AA269","v":30},3.5,null,null,null,null,null,"Central","2025-01-23","chwo",null,null,"Tech Cat 2025 Update",2020,"EUR"]
[null,null,"TechBase","TechBase - 25WIN_FSA_ex Far Offshore DC excl. Grid - 2050",null,null,"25WIN_FSA_ex Far Offshore DC excl. Grid","21 Wind Turbines Offshore, Tech Kat Update 2025",{"$f":"I270","v":2050},"NO",{"$f":"K270","v":"Wind"},1.63,null,{"$f":"N270","v":28000},2.79,null,null,null,{"$f":"S270","v":1},1,null,null,{"$f":"W270","v":4750},null,null,null,{"$f":"AA270","v":30},3.5,null,null,null,null,null,"Central","2025-01-23","chwo",null,null,"Tech Cat 2025 Update",2020,"EUR"]
[null,null,"TechBase",{"$f":"C277&\" - \"&G277&\" - \"&I277","v":"TechBase - 25WIN_OF_in Offshore wind incl. Grid - 2020"},null,null,"25WIN_OF_in Offshore wind incl. Grid","21 Wind Turbines Offshore, Tech Kat Update 2022",2020,"NO","Wind",1.7459437919546248,0.37,50000,5,null,null,null,1,1,null,null,4400,null,null,null,27,2.5,null,null,null,null,null,"Central","2022-03-03","chwo",null,null,"Tech Cat 2022 Update",2020,"EUR"]
[null,null,{"$f":"$G$61","v":"TechBase"},"TechBase - 22WIN_OF_in Offshore wind incl. Grid - 2025",null,null,"22WIN_OF_in Offshore wind incl. Grid","21 Wind Turbines Offshore, Tech Kat Update 2022",2025,"NO","Wind",1.5294617142921365,0.35423760525411679,42000,4.17,null,null,null,1,1,null,null,4775,null,null,null,30,2.5,null,null,null,null,null,"Central","2022-03-03","chwo",null,null,"Tech Cat 2022 Update",2020,"EUR"]
[null,null,"TechBase","TechBase - 22WIN_OF_in Offshore wind incl. Grid - 2030",null,null,"22WIN_OF_in Offshore wind incl. Grid","21 Wind Turbines Offshore, Tech Kat Update 2022",2030,"NO","Wind",1.4411591231142331,0.35422717192883701,39000,3.89,null,null,null,1,1,null,null,4800,null,null,null,30,2.5,null,null,null,null,null,"Central","2022-03-03","chwo",null,null,"Tech Cat 2022 Update",2020,"EUR"]
[null,null,"TechBase","TechBase - 22WIN_OF_in Offshore wind incl. Grid - 2040",null,null,"22WIN_OF_in Offshore wind incl. Grid","21 Wind Turbines Offshore, Tech Kat Update 2022",2040,"NO","Wind",1.3118324045426579,0.36457769482576424,34000,3.42,null,null,null,1,1,null,null,4850,null,null,null,30,2.5,null,null,null,null,null,"Central","2022-03-03","chwo",null,null,"Tech Cat 2022 Update",2020,"EUR"]
[null,null,"TechBase","TechBase - 22WIN_OF_in Offshore wind incl. Grid - 2050",null,null,"22WIN_OF_in Offshore wind incl. Grid","21 Wind Turbines Offshore, Tech Kat Update 2022",2050,"NO","Wind",1.2596332807191448,0.38311038252848439,33000,3.25,null,null,null,1,1,null,null,4900,null,null,null,30,2,null,null,null,null,null,"Central","2022-03-03","chwo",null,null,"Tech Cat 2022 Update",2020,"EUR"]
[null,null,"TechBase","TechBase - 22WIN_NS_ex Nearshore wind incl. Grid - 2020",null,null,"22WIN_NS_ex Nearshore wind incl. Grid","21 Wind Turbines Nearshore, Tech Kat Update 2022",2020,"NO","Wind",1.6218694385012524,7.8E-2,50000,5,null,null,null,1,1,null,null,4100,null,null,null,27,2.5,null,null,null,null,null,"Central","2022-03-03","chwo",null,null,"Tech Cat 2022 Update",2020,"EUR"]
[null,null,"TechBase","TechBase - 22WIN_NS_ex Nearshore wind incl. Grid - 2025",null,null,"22WIN_NS_ex Nearshore wind incl. Grid","21 Wind Turbines Nearshore, Tech Kat Update 2022",2025,"NO","Wind",1.4144467889365788,7.3563719940950775E-2,42000,4.17,null,null,null,1,1,null,null,4325,null,null,null,30,2.5,null,null,null,null,null,"Central","2022-03-03","chwo",null,null,"Tech Cat 2022 Update",2020,"EUR"]
[null,null,"TechBase","TechBase - 22WIN_NS_ex Nearshore wind incl. Grid - 2030",null,null,"22WIN_NS_ex Nearshore wind incl. Grid","21 Wind Turbines Nearshore, Tech Kat Update 2022",2030,"NO","Wind",1.3124070858790762,7.1952394298045022E-2,39000,3.89,null,null,null,1,1,null,null,4450,null,null,null,30,2.5,null,null,null,null,null,"Central","2022-03-03","chwo",null,null,"Tech Cat 2022 Update",2020,"EUR"]
[null,null,{"$f":"$G$61","v":"TechBase"},{"$f":"C285&\" - \"&G285&\" - \"&I285","v":"TechBase - 22WIN_NS_ex Nearshore wind incl. Grid - 2040"},null,null,"22WIN_NS_ex Nearshore wind incl. Grid","21 Wind Turbines Nearshore, Tech Kat Update 2022",2040,"NO","Wind",1.1694011452929025,6.9021990767984501E-2,34000,3.42,null,null,null,1,1,null,null,4450,null,null,null,30,2.5,null,null,null,null,null,"Central","2022-03-03","chwo",null,null,"Tech Cat 2022 Update",2020,"EUR"]
[null,null,"TechBase","TechBase - 22WIN_NS_ex Nearshore wind incl. Grid - 2050",null,null,"22WIN_NS_ex Nearshore wind incl. Grid","21 Wind Turbines Nearshore, Tech Kat Update 2022",2050,"NO","Wind",1.1179560578390741,6.7915022357322219E-2,33000,3.25,null,null,null,1,1,null,null,4450,null,null,null,30,2,null,null,null,null,null,"Central","2022-03-03","chwo",null,null,"Tech Cat 2022 Update",2020,"EUR"]
[null,null,"TechBase","TechBase - 22WIN_OF_in Offshore wind excl. Grid - 2020",null,null,"22WIN_OF_in Offshore wind excl. Grid","21 Wind Turbines Offshore, Tech Kat Update 2022",{"$f":"I277","v":2020},{"$f":"J277","v":"NO"},"Wind",1.7459437919546248,null,50000,5,null,null,null,1,1,null,null,{"$f":"W277","v":4400},null,null,null,27,2.5,null,null,null,null,null,"Central","2022-03-03","chwo",null,null,"Tech Cat 2022 Update",2020,"EUR"]
[null,null,"TechBase",{"$f":"C288&\" - \"&G288&\" - \"&I288","v":"TechBase - 22WIN_OF_in Offshore wind excl. Grid - 2025"},null,null,"22WIN_OF_in Offshore wind excl. Grid","21 Wind Turbines Offshore, Tech Kat Update 2022",{"$f":"I278","v":2025},{"$f":"J278","v":"NO"},"Wind",1.5294617142921365,null,42000,4.17,null,null,null,1,1,null,null,{"$f":"W278","v":4775},null,null,null,30,2.5,null,null,null,null,null,"Central","2022-03-03","chwo",null,null,"Tech Cat 2022 Update",2020,"EUR"]
[null,null,"TechBase","TechBase - 22WIN_OF_in Offshore wind excl. Grid - 2030",null,null,"22WIN_OF_in Offshore wind excl. Grid","21 Wind Turbines Offshore, Tech Kat Update 2022",{"$f":"I279","v":2030},"NO","Wind",1.4411591231142331,null,39000,3.89,null,null,null,1,1,null,null,4800,null,null,null,30,2.5,null,null,null,null,null,"Central","2022-03-03","chwo",null,null,"Tech Cat 2022 Update",2020,"EUR"]
[null,null,"TechBase","TechBase - 22WIN_OF_in Offshore wind excl. Grid - 2040",null,null,"22WIN_OF_in Offshore wind excl. Grid","21 Wind Turbines Offshore, Tech Kat Update 2022",2040,"NO","Wind",1.3118324045426579,null,34000,3.42,null,null,null,1,1,null,null,4850,null,null,null,30,2.5,null,null,null,null,null,"Central","2022-03-03","chwo",null,null,"Tech Cat 2022 Update",2020,"EUR"]
[null,null,"TechBase","TechBase - 22WIN_OF_in Offshore wind excl. Grid - 2050",null,null,"22WIN_OF_in Offshore wind excl. Grid","21 Wind Turbines Offshore, Tech Kat Update 2022",2050,"NO","Wind",1.2596332807191448,null,33000,3.25,null,null,null,1,1,null,null,4900,null,null,null,30,2,null,null,null,null,null,"Central","2022-03-03","chwo",null,null,"Tech Cat 2022 Update",2020,"EUR"]
[null,null,"TechBase","TechBase - 22WIN_NS_ex Nearshore wind excl. Grid - 2020",null,null,"22WIN_NS_ex Nearshore wind excl. Grid","21 Wind Turbines Nearshore, Tech Kat Update 2022",2020,"NO","Wind",1.6218694385012524,null,50000,5,null,null,null,1,1,null,null,4100,null,null,null,27,2.5,null,null,null,null,null,"Central","2022-03-03","chwo",null,null,"Tech Cat 2022 Update",2020,"EUR"]
[null,null,"TechBase","TechBase - 22WIN_NS_ex Nearshore wind excl. Grid - 2025",null,null,"22WIN_NS_ex Nearshore wind excl. Grid","21 Wind Turbines Nearshore, Tech Kat Update 2022",2025,"NO","Wind",1.4144467889365788,null,42000,4.17,null,null,null,1,1,null,null,4325,null,null,null,30,2.5,null,null,null,null,null,"Central","2022-03-03","chwo",null,null,"Tech Cat 2022 Update",2020,"EUR"]
[null,null,"TechBase","TechBase - 22WIN_NS_ex Nearshore wind excl. Grid - 2030",null,null,"22WIN_NS_ex Nearshore wind excl. Grid","21 Wind Turbines Nearshore, Tech Kat Update 2022",2030,"NO","Wind",1.3124070858790762,null,39000,3.89,null,null,null,1,1,null,null,4450,null,null,null,30,2.5,null,null,null,null,null,"Central","2022-03-03","chwo",null,null,"Tech Cat 2022 Update",2020,"EUR"]
[null,null,"TechBase","TechBase - 22WIN_NS_ex Nearshore wind excl. Grid - 2040",null,null,"22WIN_NS_ex Nearshore wind excl. Grid","21 Wind Turbines Nearshore, Tech Kat Update 2022",2040,"NO","Wind",1.1694011452929025,null,34000,3.42,null,null,null,1,1,null,null,4450,null,null,null,30,2.5,null,null,null,null,null,"Central","2022-03-03","chwo",null,null,"Tech Cat 2022 Update",2020,"EUR"]
[null,null,"TechBase","TechBase - 22WIN_NS_ex Nearshore wind excl. Grid - 2050",null,null,"22WIN_NS_ex Nearshore wind excl. Grid","21 Wind Turbines Nearshore, Tech Kat Update 2022",2050,"NO","Wind",1.1179560578390741,null,33000,3.25,null,null,null,1,1,null,null,4450,null,null,null,{"$f":"AA286","v":30},2,null,null,null,null,null,"Central","2022-03-03","chwo",null,null,"Tech Cat 2022 Update",2020,"EUR"]
[null,null,"TechBase","TechBase -  - "]
[null,null,"TechBase","TechBase -  - "]
[null,null,"TechBase","TechBase -  - "]
[null,null,"TechBase","TechBase -  - "]
[null,null,"TechBase","TechBase -  - "]
[null,null,"TechBase","TechBase -  - "]
[null,null,"TechBase","TechBase -  - "]
[null,null,"TechBase","TechBase -  - "]
[null,null,"TechBase","TechBase -  - "]
[null,null,"TechBase","TechBase -  - "]
[null,null,"TechBase","TechBase -  - "]
[null,null,"TechBase","TechBase -  - "]
[null,null,"TechBase","TechBase -  - "]
[null,null,"TechBase","TechBase -  - "]
[null,null,"TechBase","TechBase -  - "]
[]
[]
[]
[]
[]
[]
[]
[]
[]
[]
[]
[]
[]
[]
[]
[]
[]
[]
[]
[]
[]
[]
[]
[]
[]
[]
[]
[]
[]
[]
[]
[]
[]
[]
[]
[]
[]
[]
[]
[]
[]
[]
[]
[]
[]
[]
[]
[]
[]
[]
[]
[]
[]
[]
[]
[]
[]
[]
[]
[]
[]
[]
[]
[]
[]
[]
[]
[]
[]
[]
[]
[]
[]
[]
[]
[]
[]
[]
[]
[]
[]
[]
[]
[]
[]
[]
[]
[]
[]
[]
[]
[]
[]
[]
[]
[]
[]
[]
[]
[]
[]
[]
[]
[]
[]
[]
[]
[]
[]
[]
[]
[]
[]
[]
[]
[]
[]
[]
[]
[]
[]
[]
[]
[]
[]
[]
[]
[null,null,null,null,null,null,"Cost increase compared to base scenario",{"$f":"$H$13","v":-0.25}]
[null,null,null,null,null,null,"TechLow"]
[null,null,{"$f":"C$27","v":"Tech scenario"},{"$f":"D$27","v":"Full Name"},"Row for lookup","Adjustment for price level",{"$f":"G$27","v":"Technology"},"Source name","Year","Combined heat and power (CHP)","Fuel","Investment","Grid investment","Fixed O&M","Var. O&M","Other costs","CV","CB","Total efficiency","Electric efficiency condensing","Electric efficiency CHP","Heat efficiency","Full load hours","Profile costs","Balancing costs","Condensing ratio","Technical lifetime","Construction time","Desulphur","Emission factor NOx","Emission factor CH4","Emission factor N2O","Emission factor PM2,5","Geography","Date for data input/update","Desk officer","QA date","QA officer","Reference","Price year in reference","Currency in reference","Comment"]
[null,null,null,null,null,null,{"$f":"IF(G$28=\"\",\"\",G$28)","v":""},{"$f":"IF(H$28=\"\",\"\",H$28)","v":""},"","","","mio.EUR/MW","mio.EUR/MW","EUR/MW/år","EUR/MWh","EUR/MWh","","","","","","","","EUR/MWh","EUR/MWh","","years","years","%","g/GJ fuel","g/GJ fuel","g/GJ fuel","g/GJ fuel","","","",null,null,"","",""]
[null,"TechLow",{"$f":"$G$440","v":"TechLow"},{"$f":"C443&\" - \"&G443&\" - \"&I443","v":"TechLow - 18Me BP WCH in_st 80 MW input, woodchips storage for 10 days   - 2015"},null,null,{"$f":"G64","v":"18Me BP WCH in_st 80 MW input, woodchips storage for 10 days  "},"09  Biomass Woodchips  medium CHP, Tech Cat  2018 Update",2015,"YES","Wood chips",{"$f":"L64*(1+$H$439)","v":2.8650000000000002},0,118800,2.8714212931951488,{"$f":"P64","v":0},0,0.32864648877678909,1.1094317462152197,0.27442276859272824,{"$f":"IF(R443=0,0,R443*T443/(R443+Q443))","v":0.27442276859272824},{"$f":"IF(R443=0,0,T443/(R443+Q443))","v":0.83500897762249138},{"$f":"W64","v":4000},0,0,0,25,2.5,0.97970000000000002,90,3.1,0.81200000000000006,2,"Central","02.03-18","mka",null,null,{"$f":"AM64","v":"Tech Cat  2018 Update"},2015,"EUR"]
[null,null,"TechLow","TechLow - 18Me BP WCH in_st 80 MW input, woodchips storage for 10 days   - 2020",null,null,"18Me BP WCH in_st 80 MW input, woodchips storage for 10 days  ","09  Biomass Woodchips  medium CHP, Tech Cat  2018 Update",2020,"YES","Wood chips",2.79,0,115200,2.8714213003002671,0,0,0.32864648768847199,1.1094317462351564,0.27442276791368952,{"$f":"IF(R444=0,0,R444*T444/(R444+Q444))","v":0.27442276791368952},{"$f":"IF(R444=0,0,T444/(R444+Q444))","v":0.83500897832146681},{"$f":"W65","v":4000},0,0,0,25,2.5,0.97970000000000002,72,2.17,0.64960000000000007,0.3,"Central","02.03-18","mka",null,null,"Tech Cat  2018 Update",2015,"EUR"]
[null,null,"TechLow","TechLow - 18Me BP WCH in_st 80 MW input, woodchips storage for 10 days   - 2030",null,null,"18Me BP WCH in_st 80 MW input, woodchips storage for 10 days  ","09  Biomass Woodchips  medium CHP, Tech Cat  2018 Update",2030,"YES","Wood chips",2.7090000000000001,0,108000,2.8604271085583028,0,0,0.3303464138167973,1.1093825224040659,0.27547752526785418,0.27547752526785418,0.8339049971362118,{"$f":"W66","v":4000},0,0,0,25,2.5,0.97970000000000002,40.6,1.5189999999999999,0.51968000000000014,0.3,"Central","02.03-18","mka",null,null,"Tech Cat  2018 Update",2015,"EUR"]
[null,null,"TechLow","TechLow - 18Me BP WCH in_st 80 MW input, woodchips storage for 10 days   - 2050",null,null,"18Me BP WCH in_st 80 MW input, woodchips storage for 10 days  ","09  Biomass Woodchips  medium CHP, Tech Cat  2018 Update",2050,"YES","Wood chips",2.5529999999999999,0,99600,2.9136125780603495,0,0,0.32228094383407324,1.1096202328416156,0.27044892207298926,0.27044892207298926,0.83917131076862628,{"$f":"W67","v":4000},0,0,0,25,2.5,0.97970000000000002,24.360000000000003,0.75949999999999995,1,0.3,"Central","02.03-18","mka",null,null,"Tech Cat  2018 Update",2015,"EUR"]
[null,null,"TechLow","TechLow - 18Me BP WPE in_st 80 MW input, woodpellets storage for 10 days   - 2015",null,null,"18Me BP WPE in_st 80 MW input, woodpellets storage for 10 days  ","09  Biomass wood pellets medium CHP,Tech Cat  2018 Update",2015,"YES","Wood pellets",2.3834999999999997,0,98125.539661477902,1.2676513527007907,0,0,0.42121001842934896,0.9665169079884679,0.2864507,0.2864507,0.68006620798846784,{"$f":"W68","v":4000},0,0,0,25,2.5,0.98250000000000004,77.58620689655173,0,1,2,"Decentral","02.03-18","mka",null,null,"Tech Cat  2018 Update",2015,"EUR"]
[null,null,"TechLow","TechLow - 18Me BP WPE in_st 80 MW input, woodpellets storage for 10 days   - 2020",null,null,"18Me BP WPE in_st 80 MW input, woodpellets storage for 10 days  ","09  Biomass wood pellets medium CHP,Tech Cat  2018 Update",2020,"YES","Wood pellets",2.3245800000000001,0,95308.809767252649,1.2676513515247601,0,0,0.42121001859877616,0.96651690771491849,0.2864507,0.2864507,0.68006620771491855,{"$f":"W69","v":4000},0,0,0,25,2.5,0.98250000000000004,62.068965517241388,0,1,0.3,"Decentral","02.03-18","mka",null,null,"Tech Cat  2018 Update",2015,"EUR"]
[null,null,"TechLow","TechLow - 18Me BP WPE in_st 80 MW input, woodpellets storage for 10 days   - 2030",null,null,"18Me BP WPE in_st 80 MW input, woodpellets storage for 10 days  ","09  Biomass wood pellets medium CHP,Tech Cat  2018 Update",2030,"YES","Wood pellets",2.3094299999999999,0,92504.977781617097,1.2812678921377192,0,0,0.42294158174211172,0.96647900563145583,0.28726699999999999,0.28726699999999999,0.67921200563145578,{"$f":"W70","v":4000},0,0,0,25,2.5,0.98250000000000004,35,0,1,0.3,"Decentral","02.03-18","mka",null,null,"Tech Cat  2018 Update",2015,"EUR"]
[null,null,"TechLow","TechLow - 18Me BP WPE in_st 80 MW input, woodpellets storage for 10 days   - 2050",null,null,"18Me BP WPE in_st 80 MW input, woodpellets storage for 10 days  ","09  Biomass wood pellets medium CHP,Tech Cat  2018 Update",2050,"YES","Wood pellets",2.0963700000000003,0,83118.745629163343,1.2812678936985811,0,0,0.41478871798494993,0.96666124207186899,0.2834064,0.2834064,0.68325484207186904,{"$f":"W71","v":4000},0,0,0,25,2.5,0.98250000000000004,21.000000000000004,0,0,0.3,"Decentral","02.03-18","mka",null,null,"Tech Cat  2018 Update",2015,"EUR"]
[null,null,"TechLow",{"$f":"C451&\" - \"&G451&\" - \"&I451","v":"TechLow - 18La BP WPE in_st 800 MW input, woodpellets storage for 10 days   - 2015"},null,null,"18La BP WPE in_st 800 MW input, woodpellets storage for 10 days  ","09  Biomass wood pellets Large CHP, Tech Cat  2018 Update",2015,"YES","Wood pellets",1.7958946485334875,0,49248.993189683126,1.1735238309118798,0,0.18,0.47311648536684831,0.96344457926184712,0.4271498850931264,{"$f":"IF(R451=0,0,R451*T451/(R451+Q451))","v":0.30942665954389503},{"$f":"IF(R451=0,0,T451/(R451+Q451))","v":0.65401791971795209},{"$f":"W72","v":5000},0,0,0.2,25,5,0.98250000000000004,20,0,1,0.3,"central","02.03-18","mka",null,null,"Tech Cat  2018 Update",2015,"EUR"]
[null,null,"TechLow","TechLow - 18La BP WPE in_st 800 MW input, woodpellets storage for 10 days   - 2020",null,null,"18La BP WPE in_st 800 MW input, woodpellets storage for 10 days  ","09  Biomass wood pellets Large CHP, Tech Cat  2018 Update",2020,"YES","Wood pellets",1.7430666315176999,0,48009.242879426849,1.1708847279367336,0,0.18,0.47332375190847281,0.96532908746550539,0.42806098824674721,0.3101240884182393,0.65520499904726603,{"$f":"W73","v":5000},0,0,0.2,25,5,0.98250000000000004,20.689655172413797,0,1,0.3,"central","02.03-18","mka",null,null,"Tech Cat  2018 Update",2015,"EUR"]
[null,null,"TechLow","TechLow - 18La BP WPE in_st 800 MW input, woodpellets storage for 10 days   - 2030",null,null,{"$f":"G74","v":"18La BP WPE in_st 800 MW input, woodpellets storage for 10 days  "},"09  Biomass wood pellets Large CHP, Tech Cat  2018 Update",2030,"YES","Wood pellets",1.6561952338209451,0,45755.243142825369,1.1677838597601067,{"$f":"P74","v":0},0.15,0.47520905914218764,0.96528605715728899,0.40909834701619185,0.31094757463835121,0.65433848251893778,{"$f":"W74","v":5000},0,0,0.2,25,5,0.98250000000000004,17.5,0,1,0.3,"central","02.03-18","mka",null,null,"Tech Cat  2018 Update",2015,"EUR"]
[null,null,"TechLow","TechLow - 18La BP WPE in_st 800 MW input, woodpellets storage for 10 days   - 2050",null,null,"18La BP WPE in_st 800 MW input, woodpellets storage for 10 days  ","09  Biomass wood pellets Large CHP, Tech Cat  2018 Update",2050,"YES","Wood pellets",1.5034935648036525,0,41955.345667821661,1.1677838596938062,0,0.15,0.47520905918216289,0.96528605715704896,0.40909834703116171,0.3109475746560052,0.65433848250104376,{"$f":"W75","v":5000},0,0,0.2,25,5,0.98250000000000004,10.500000000000002,0,0,0.3,"central","02.03-18","mka",null,null,"Tech Cat  2018 Update",2015,"EUR"]
[null,null,"TechLow","TechLow - 18 Me BP STR 80MW input, Straw CHP Medium, 2 days storage - 2015",null,null,"18 Me BP STR 80MW input, Straw CHP Medium, 2 days storage","09  Biomass straw medium CHP, Tech Cat March 2018 Update",2015,"YES","Straw",2.8035660376112777,0,112766.26163591401,1.45251473033592,0,1,0.46027125616611103,0.98251242861562371,0.29419953068156074,9.2730434142626675E-2,0.20146909653893405,{"$f":"W76","v":4000},0,0,0,25,2.5,0.95499999999999996,90,0.5,1.1000000000000001,1.1100000000000001,"Decentral","02.03-18","mka",null,null,"Tech Cat March 2018 Update",2015,"EUR"]
[null,null,"TechLow","TechLow - 18 Me BP STR 80MW input, Straw CHP Medium, 2 days storage - 2020",null,null,"18 Me BP STR 80MW input, Straw CHP Medium, 2 days storage","09  Biomass straw medium CHP, Tech Cat March 2018 Update",2020,"YES","Straw",2.8467890620677974,0,112459.67825981474,1.473195,0,1,0.46027125728065016,0.98273106065086102,0.29006989021729701,9.1428789277276004E-2,0.19864110094002099,{"$f":"W77","v":4000},0,0,0,25,2.5,0.96250000000000002,70,0.5,1.1000000000000001,1.1100000000000001,"Decentral","02.03-18","mka",null,null,"Tech Cat March 2018 Update",2015,"EUR"]
[null,null,"TechLow","TechLow - 18 Me BP STR 80MW input, Straw CHP Medium, 2 days storage - 2030",null,null,"18 Me BP STR 80MW input, Straw CHP Medium, 2 days storage","09  Biomass straw medium CHP, Tech Cat March 2018 Update",2030,"YES","Straw",2.7031803201934124,0,105804.150342024,1.4688292716819524,0,1,0.46231220649304788,0.98268643536897815,0.29093180585809203,9.1978528598777046E-2,0.198953277259315,{"$f":"W78","v":4000},0,0,0,25,2.5,0.99,50,0.5,1.1000000000000001,1.1100000000000001,"Decentral","02.03-18","mka",null,null,"Tech Cat March 2018 Update",2015,"EUR"]
[null,null,"TechLow","TechLow - 18 Me BP STR 80MW input, Straw CHP Medium, 2 days storage - 2050",null,null,"18 Me BP STR 80MW input, Straw CHP Medium, 2 days storage","09  Biomass straw medium CHP, Tech Cat March 2018 Update",2050,"YES","Straw",2.4523335975657528,0,94699.882151190002,1.4688292716819524,0,1,0.45272737543362335,0.98268643537966793,0.29093180549400899,9.0665870939585794E-2,0.20026593455442318,{"$f":"W79","v":4000},0,0,0,25,2.5,0.99750000000000005,30,0.5,1.1000000000000001,1.1100000000000001,"Decentral","02.03-18","mka",null,null,"Tech Cat March 2018 Update",2015,"EUR"]
[null,null,"TechLow","TechLow - 16 ME BP SC NGA - Gas Turbine Single Cycle, medium,natural gas  - 2015",null,null,"16 ME BP SC NGA - Gas Turbine Single Cycle, medium,natural gas ","04  Gas Turbine Single Cycle - Large Scale Plant, Tech Cat 2016",2015,"YES","Natural gas",0.44999999999999996,0,15000,3.375,0,0,0.95,0.84157894736842098,0.39,0.39,0.41052631578947374,{"$f":"W80","v":5000},0,0,0.2,25,1.5,0,20,1.5,1,0,"Central","2018-02-01","mka",null,null,"Tech Cat 2016",2015,"EUR"]
[null,null,"TechLow","TechLow - 16 ME BP SC NGA - Gas Turbine Single Cycle, medium,natural gas  - 2020",null,null,"16 ME BP SC NGA - Gas Turbine Single Cycle, medium,natural gas ","04  Gas Turbine Single Cycle - Large Scale Plant, Tech Cat 2016",2020,"YES","Natural gas",0.4425,0,14625,3.3000000000000003,0,0,0.96,0.85749999999999993,0.4,0.4,0.41666666666666669,{"$f":"W81","v":5000},0,0,0.2,25,1.5,0,15,1.5,1,0,"Central","2018-02-01","mka",null,null,"Tech Cat 2016",2015,"EUR"]
[null,null,"TechLow","TechLow - 16 ME BP SC NGA - Gas Turbine Single Cycle, medium,natural gas  - 2030",null,null,"16 ME BP SC NGA - Gas Turbine Single Cycle, medium,natural gas ","04  Gas Turbine Single Cycle - Large Scale Plant, Tech Cat 2016",2030,"YES","Natural gas",0.42000000000000004,0,13950,3.1500000000000004,0,0,1,0.86,0.41,0.41,0.41,{"$f":"W82","v":5000},0,0,0.2,25,1.5,0,10,1.5,1,0,"Central","2018-02-01","mka",null,null,"Tech Cat 2016",2015,"EUR"]
[null,null,"TechLow","TechLow - 16 ME BP SC NGA - Gas Turbine Single Cycle, medium,natural gas  - 2050",null,null,"16 ME BP SC NGA - Gas Turbine Single Cycle, medium,natural gas ","04  Gas Turbine Single Cycle - Large Scale Plant, Tech Cat 2016",2050,"YES","Natural gas",0.39,0,13500,3,0,0,1,0.9,0.43,0.43,0.43,{"$f":"W83","v":5000},0,0,0.2,25,1.5,0,10,1.5,1,0,"Central","2018-02-01","mka",null,null,"Tech Cat 2016",2015,"EUR"]
[null,null,"TechLow","TechLow - 16La EX CC NGA CC large CHP Gas Turbine combined Cycle natural Gas  \n - 2015",null,null,{"$f":"G84","v":"16La EX CC NGA CC large CHP Gas Turbine combined Cycle natural Gas  \n"}," 05  Gas Turbine Combined Cycle - Extraction plant, Tech Cat 2016",2015,"YES","Natural gas",0.67500000000000004,0,22500,3.375,{"$f":"P84","v":0},0.15,1.7,0.8464864864864865,0.55000000000000004,0.50540540540540546,0.29729729729729737,{"$f":"W84","v":5000},0,0,0.2,25,2.5,0,20,1.5,1,0,"Central","02.03-18","mka",null,null,"Tech Cat 2016",2015,"EUR"]
[null,null,"TechLow","TechLow - 16La EX CC NGA CC large CHP Gas Turbine combined Cycle natural Gas  \n - 2020",null,null,"16La EX CC NGA CC large CHP Gas Turbine combined Cycle natural Gas  \n"," 05  Gas Turbine Combined Cycle - Extraction plant, Tech Cat 2016",2020,"YES","Natural gas",0.66,0,21975,3.3000000000000003,0,0.15,1.8,0.8471794871794871,0.56000000000000005,0.51692307692307704,0.28717948717948721,{"$f":"W85","v":5000},0,0,0.2,25,2.5,0,15,1.5,1,0,"Central","02.03-18","mka",null,null,"Tech Cat 2016",2015,"EUR"]
[null,null,"TechLow","TechLow - 16La EX CC NGA CC large CHP Gas Turbine combined Cycle natural Gas  \n - 2030",null,null,"16La EX CC NGA CC large CHP Gas Turbine combined Cycle natural Gas  \n"," 05  Gas Turbine Combined Cycle - Extraction plant, Tech Cat 2016",2030,"YES","Natural gas",0.62249999999999994,0,20850,3.1500000000000004,0,0.15,2,0.85116279069767442,0.57999999999999996,0.53953488372093017,0.26976744186046508,{"$f":"W86","v":5000},0,0,0.2,25,2.5,0,10,1.5,1,0,"Central","02.03-18","mka",null,null,"Tech Cat 2016",2015,"EUR"]
[null,null,"TechLow","TechLow - 16La EX CC NGA CC large CHP Gas Turbine combined Cycle natural Gas  \n - 2050",null,null,"16La EX CC NGA CC large CHP Gas Turbine combined Cycle natural Gas  \n"," 05  Gas Turbine Combined Cycle - Extraction plant, Tech Cat 2016",2050,"YES","Natural gas",0.60000000000000009,0,19500,3,0,0.15,2.2000000000000002,0.85787234042553195,0.6,0.5617021276595745,0.25531914893617019,{"$f":"W87","v":5000},0,0,0.2,25,2.5,0,8,1.5,1,0,"Central","02.03-18","mka",null,null,"Tech Cat 2016",2015,"EUR"]
[null,null,"TechLow","TechLow - 17La_EX_COA CHP coal 400-700 MWwe - 2015",null,null,"17La_EX_COA CHP coal 400-700 MWwe","01  Advanced Pulverized Fuel Power Plant - Coal, Tech Cat 2017",2015,"YES","Coal",1.4475,0,23625,2.2125000000000004,0,0.15,0.75,0.89444444444444438,0.45999999999999996,0.3833333333333333,0.51111111111111107,{"$f":"W88","v":5000},0,0,0.2,25,4.5,0.97,38,1.5,0.8,2.1,"Central","02.03-18","mka",null,null,"Tech Cat Oct. 2017 update",2015,"EUR"]
[null,null,"TechLow","TechLow - 17La_EX_COA CHP coal 400-700 MWwe - 2020",null,null,"17La_EX_COA CHP coal 400-700 MWwe","01  Advanced Pulverized Fuel Power Plant - Coal, Tech Cat 2017",2020,"YES","Coal",1.4249999999999998,0,23250,2.1749999999999998,0,0.15,0.84,0.90141414141414145,0.48499999999999999,0.4115151515151515,0.48989898989898989,{"$f":"W89","v":5000},0,0,0.2,25,4.5,0.97,35,1.5,0.8,2.1,"Central","02.03-18","mka",null,null,"Tech Cat Oct. 2017 update",2015,"EUR"]
[null,null,"TechLow","TechLow - 17La_EX_COA CHP coal 400-700 MWwe - 2030",null,null,"17La_EX_COA CHP coal 400-700 MWwe","01  Advanced Pulverized Fuel Power Plant - Coal, Tech Cat 2017",2030,"YES","Coal",1.3953562134242026,0,22766.338219026449,2.1297542204895752,0,0.15,1.01,0.90103448275862097,0.52,0.45275862068965522,0.44827586206896558,{"$f":"W90","v":5000},0,0,0.2,25,4.5,0.97,35,1.5,0.8,2.1,"Central","02.03-18","mka",null,null,"Tech Cat Oct. 2017 update",2015,"EUR"]
[null,null,"TechLow","TechLow - 17La_EX_COA CHP coal 400-700 MWwe - 2050",null,null,{"$f":"G92","v":"17La_EX_COA CHP coal 400-700 MWwe"},"01  Advanced Pulverized Fuel Power Plant - Coal, Tech Cat 2017",2050,"YES","Coal",{"$f":"L92*(1+$H$439)","v":1.3379058205025549},0,21828.9897029364,2.0420667786617925,{"$f":"P92","v":0},0.15,1.01,0.92702586206896598,0.53500000000000003,0.46581896551724139,0.4612068965517242,{"$f":"W92","v":5000},0,0,0.2,25,4.5,0.97,35,1.5,0.8,2.1,"Central","02.03-18","mka",null,null,{"$f":"AM92","v":"Tech Cat Oct. 2017 update"},2015,"EUR"]
[null,null,"TechLow","TechLow - Coal FGD INT - 2015",null,null,"Coal FGD INT","Table 6.2 , Projected cost of generating electricity 2015” (IEA, 2015)",2015,"NO","Coal",1.3132138499402282,0,19722.188175928419,1.9412726477377285,0,0,0,0.45,0.45,0,0,{"$f":"W93","v":5000},0,0,1,40,4,0.95,196.30555555555557,1.5,0.8,13.361111111111111,"Central","00:00:00",0,null,null,"IEA 2015, Projected cost of generating electricity 2015",2011,"EUR"]
[null,null,"TechLow","TechLow - Coal FGD INT - 2020",null,null,"Coal FGD INT","Table 6.2 , Projected cost of generating electricity 2015” (IEA, 2015)",2020,"NO","Coal",1.2928011994230224,0,19409.137569961298,1.9083697215048856,0,0,0,0.45,0.45,0,0,{"$f":"W94","v":5000},0,0,1,40,4,0.95,196.30555555555557,1.5,0.8,13.361111111111111,"Central","00:00:00",0,null,null,"IEA 2015, Projected cost of generating electricity 2015",2011,"EUR"]
[null,null,"TechLow","TechLow - Coal FGD INT - 2030",null,null,"Coal FGD INT","Table 6.2 , Projected cost of generating electricity 2015” (IEA, 2015)",2030,"NO","Coal",1.2659074991839832,0,19005.37593364955,1.868670560289446,0,0,0,0.45,0.45,0,0,{"$f":"W95","v":5000},0,0,1,40,4,0.95,196.30555555555557,1.5,0.8,13.361111111111111,"Central","00:00:00",0,null,null,"IEA 2015, Projected cost of generating electricity 2015",2011,"EUR"]
[null,null,"TechLow","TechLow - Coal FGD INT - 2050",null,null,"Coal FGD INT","Table 6.2 , Projected cost of generating electricity 2015” (IEA, 2015)",2050,"NO","Coal",1.2137868417268394,0,18222.875877744569,1.7917326021559465,0,0,0,0.45,0.45,0,0,{"$f":"W96","v":5000},0,0,1,40,4,0.95,196.30555555555557,1.5,0.8,13.361111111111111,"Central","00:00:00",0,null,null,"IEA 2015, Projected cost of generating electricity 2015",2011,"EUR"]
[null,null,"TechLow","TechLow - Coal no FGD INT - 2015",null,null,"Coal no FGD INT","Table 6.2 , Projected cost of generating electricity 2015” (IEA, 2015)",2015,"NO","Coal",1.1162317724491939,0,16763.859949539154,1.6500817505770693,0,0,0,0.45,0.45,0,0,{"$f":"W97","v":5000},0,0,1,40,4,0,196,2,1,13,"Central","00:00:00",0,null,null,"IEA 2015, Projected cost of generating electricity 2015",2011,"EUR"]
[null,null,"TechLow","TechLow - Coal no FGD INT - 2020",null,null,"Coal no FGD INT","Table 6.2 , Projected cost of generating electricity 2015” (IEA, 2015)",2020,"NO","Coal",1.0988810195095691,0,16497.766934467105,1.6221142632791525,0,0,0,0.45,0.45,0,0,{"$f":"W98","v":5000},0,0,1,40,4,0,196,2,1,13,"Central","00:00:00",0,null,null,"IEA 2015, Projected cost of generating electricity 2015",2011,"EUR"]
[null,null,"TechLow","TechLow - Coal no FGD INT - 2030",null,null,"Coal no FGD INT","Table 6.2 , Projected cost of generating electricity 2015” (IEA, 2015)",2030,"NO","Coal",1.0760213743063858,0,16154.56954360212,1.588369976246029,0,0,0,0.45,0.45,0,0,{"$f":"W99","v":5000},0,0,1,40,4,0,196,2,1,13,"Central","00:00:00",0,null,null,"IEA 2015, Projected cost of generating electricity 2015",2011,"EUR"]
[null,null,"TechLow","TechLow - Coal no FGD INT - 2050",null,null,"Coal no FGD INT","Table 6.2 , Projected cost of generating electricity 2015” (IEA, 2015)",2050,"NO","Coal",1.0317188154678134,0,15489.444496082884,1.5229727118325544,0,0,0,0.45,0.45,0,0,{"$f":"W100","v":5000},0,0,1,40,4,0,196,2,1,13,"Central","00:00:00",0,null,null,"IEA 2015, Projected cost of generating electricity 2015",2011,"EUR"]
[null,null,"TechLow","TechLow - Natural gas CCGT INT - 2015",null,null,"Natural gas CCGT INT","Table 6.1,  Projected cost of generating electricity 2015” (IEA, 2015)",2015,"NO","Natural gas",0.57096254345227315,0,16806.282466517659,1.5415988673211376,0,0,0,0.59,0.59,0,0,{"$f":"W101","v":5000},0,0,1,30,2,0,39,2,1,0,"Central","00:00:00",0,null,null,"IEA, 2015, Projected cost of generating electricity 2015” ",2011,"EUR"]
[null,null,"TechLow","TechLow - Natural gas CCGT INT - 2020",null,null,{"$f":"G102","v":"Natural gas CCGT INT"},"Table 6.1,  Projected cost of generating electricity 2015” (IEA, 2015)",2020,"NO","Natural gas",0.56144650106140181,0,16386.12540485472,1.5073411147140017,{"$f":"P102","v":0},0,0,0.59,0.58171824690450358,0,0,{"$f":"W102","v":5000},0,0,1,30,2,0,39,2,1,0,"Central","00:00:00",0,null,null,"IEA, 2015, Projected cost of generating electricity 2015” ",2011,"EUR"]
[null,null,"TechLow","TechLow - Natural gas CCGT INT - 2030",null,null,"Natural gas CCGT INT","Table 6.1,  Projected cost of generating electricity 2015” (IEA, 2015)",2030,"NO","Natural gas",0.53289837388878825,0,15629.842693861421,1.4388256094997285,0,0,0,0.59,0.58344676845207699,0,0,{"$f":"W103","v":5000},0,0,1,30,2,0,39,2,1,0,"Central","00:00:00",0,null,null,"IEA, 2015, Projected cost of generating electricity 2015” ",2011,"EUR"]
[null,null,"TechLow","TechLow - Natural gas CCGT INT - 2050",null,null,"Natural gas CCGT INT","Table 6.1,  Projected cost of generating electricity 2015” (IEA, 2015)",2050,"NO","Natural gas",0.49483420432530334,0,15125.65421986589,1.3703101042854557,0,0,0,0.59,0.58344676772192972,0,0,{"$f":"W104","v":5000},0,0,1,30,2,0,39,2,1,0,"Central","00:00:00",0,null,null,"IEA, 2015, Projected cost of generating electricity 2015” ",2011,"EUR"]
[null,null,"TechLow","TechLow - Nuclear INT - 2015",null,null,"Nuclear INT","Table 6.3,  Projected cost of generating electricity 2015” (IEA, 2015)",2015,"NO","Uranium",2.7977164629161386,0,39282.222989516391,3.9396415498206849,4,0,0,1,1,{"$f":"IF(R483=0,0,R483*T483/(R483+Q483))","v":0},{"$f":"IF(R483=0,0,T483/(R483+Q483))","v":0},{"$f":"W105","v":7000},0,0,1,60,7,0,0,0,0,0,"Central","00:00:00",0,null,null,"IEA, 2015, Projected cost of generating electricity 2015” ",2011,"EUR"]
[null,null,"TechLow","TechLow - Nuclear INT - 2020",null,null,"Nuclear INT","Table 6.3,  Projected cost of generating electricity 2015” (IEA, 2015)",2020,"NO","Uranium",2.7977164629161386,0,39282.222989516391,3.9396415498206849,4,0,0,1,1,{"$f":"IF(R484=0,0,R484*T484/(R484+Q484))","v":0},{"$f":"IF(R484=0,0,T484/(R484+Q484))","v":0},{"$f":"W106","v":7000},0,0,1,60,7,0,0,0,0,0,"Central","00:00:00",0,null,null,"IEA, 2015, Projected cost of generating electricity 2015” ",2011,"EUR"]
[null,null,"TechLow","TechLow - Nuclear INT - 2030",null,null,"Nuclear INT","Table 6.3,  Projected cost of generating electricity 2015” (IEA, 2015)",2030,"NO","Uranium",2.7977164629161386,0,39282.222989516391,3.9396415498206849,4,0,0,1,1,{"$f":"IF(R485=0,0,R485*T485/(R485+Q485))","v":0},{"$f":"IF(R485=0,0,T485/(R485+Q485))","v":0},{"$f":"W107","v":7000},0,0,1,60,7,0,0,0,0,0,"Central","00:00:00",0,null,null,"IEA, 2015, Projected cost of generating electricity 2015” ",2011,"EUR"]
[null,null,"TechLow","TechLow - Nuclear INT - 2050",null,null,"Nuclear INT","Table 6.3,  Projected cost of generating electricity 2015” (IEA, 2015)",2050,"NO","Uranium",2.7977164629161386,0,39282.222989516391,3.9396415498206849,4,0,0,1,1,{"$f":"IF(R486=0,0,R486*T486/(R486+Q486))","v":0},{"$f":"IF(R486=0,0,T486/(R486+Q486))","v":0},{"$f":"W108","v":7000},0,0,1,60,7,0,0,0,0,0,"Central","00:00:00",0,null,null,"IEA, 2015, Projected cost of generating electricity 2015” ",2011,"EUR"]
[null,null,"TechLow","TechLow - Solar PV INT - 2015",null,null,"Solar PV INT","Table 6.6, Projected cost of generating electricity 2015” (IEA, 2015)",2015,"NO","Solar",0.89999999999999991,0,9000,0,0,0,0,1,1,0,0,{"$f":"W109","v":1700},0,0,0,25,1,0,0,0,0,0,"Decentral","00:00:00",0,null,null,"IEA, 2015, Projected cost of generating electricity 2015” ",2011,"EUR"]
[null,null,"TechLow","TechLow - Solar PV INT - 2020",null,null,"Solar PV INT","Table 6.7, Projected cost of generating electricity 2015” (IEA, 2015)",2020,"NO","Solar",0.91387544344916249,0,8975.5312418371905,0,0,0,0,1,1,0,0,{"$f":"W110","v":1700},0,0,0,25,1,0,0,0,0,0,"Decentral","00:00:00",0,null,null,"IEA, 2015, Projected cost of generating electricity 2015” ",2011,"EUR"]
[null,null,"TechLow","TechLow - Solar PV INT - 2030",null,null,"Solar PV INT","Table 6.8, Projected cost of generating electricity 2015” (IEA, 2015)",2030,"NO","Solar",0.86777420454377552,0,8444.3462012838936,0,0,0,0,1,1,0,0,{"$f":"W111","v":1700},0,0,0,25,1,0,0,0,0,0,"Decentral","00:00:00",0,null,null,"IEA, 2015, Projected cost of generating electricity 2015” ",2011,"EUR"]
[null,null,"TechLow","TechLow - Solar PV INT - 2050",null,null,{"$f":"G112","v":"Solar PV INT"},"Table 6.9, Projected cost of generating electricity 2015” (IEA, 2015)",2050,"NO","Solar",{"$f":"L112*(1+$H$439)","v":0.78724745848672528},0,7558.1022816248824,0,{"$f":"P112","v":0},0,0,1,1,0,0,{"$f":"W112","v":1700},0,0,0,25,1,0,0,0,0,0,"Decentral","00:00:00",0,null,null,{"$f":"AM112","v":"IEA, 2015, Projected cost of generating electricity 2015” "},2011,"EUR"]
[null,null,"TechLow","TechLow - Solar PV INT(/DK)* - 2015",null,null,"Solar PV INT(/DK)*","Table 6.6 /22 PV Large Tech kat 2017",2015,"NO","Solar",0.81,0,7125,0,0,0,0,1,1,{"$f":"IF(R491=0,0,R491*T491/(R491+Q491))","v":0},{"$f":"IF(R491=0,0,T491/(R491+Q491))","v":0},{"$f":"W113","v":1700},0,0,0,25,1,0,0,0,0,0,0,"00:00:00",0,null,null,"The value for investement and O&M euqual to large PV DK update  oct 2017",2015,"EUR"]
[null,null,"TechLow","TechLow - Solar PV INT(/DK)* - 2020",null,null,"Solar PV INT(/DK)*","Table 6.7 /22 PV Large Tech kat 2017",2020,"NO","Solar",0.46499999999999997,0,6075,0,0,0,0,1,1,{"$f":"IF(R492=0,0,R492*T492/(R492+Q492))","v":0},{"$f":"IF(R492=0,0,T492/(R492+Q492))","v":0},{"$f":"W114","v":1700},0,0,0,25,1,0,0,0,0,0,0,"00:00:00",0,null,null,"The value for investement and O&M euqual to large PV DK update  oct 2017. But FLH 1700 h/y which is app. 90 %higher than in DK ",2015,"EUR"]
[null,null,"TechLow","TechLow - Solar PV INT(/DK)* - 2030",null,null,"Solar PV INT(/DK)*","Table 6.8/22 PV Large Tech kat 2017",2030,"NO","Solar",0.38250000000000001,0,4875,0,0,0,0,1,1,{"$f":"IF(R493=0,0,R493*T493/(R493+Q493))","v":0},{"$f":"IF(R493=0,0,T493/(R493+Q493))","v":0},{"$f":"W115","v":1700},0,0,0,25,1,0,0,0,0,0,0,"00:00:00",0,null,null,"The value for investement and O&M euqual to large PV DK update  oct 2017",2015,"EUR"]
[null,null,"TechLow","TechLow - Solar PV INT(/DK)* - 2050",null,null,"Solar PV INT(/DK)*","Table 6.9/22 PV Large Tech kat 2017",2050,"NO","Solar",0.3075,0,4125,0,0,0,0,1,1,{"$f":"IF(R494=0,0,R494*T494/(R494+Q494))","v":0},{"$f":"IF(R494=0,0,T494/(R494+Q494))","v":0},{"$f":"W116","v":1700},0,0,0,25,1,0,0,0,0,0,0,"00:00:00",0,null,null,"The value for investement and O&M euqual to large PV DK update  oct 2017",2015,"EUR"]
[null,null,"TechLow","TechLow - Wind onshore INT - 2015",null,null,"Wind onshore INT","Table 6.7, Projected cost of generating electricity 2015” (IEA, 2015)",2015,"NO","Wind",1.0277325782140916,0,25964.521663492123,3.3686790063684122,0,0,0,1,1,{"$f":"IF(R495=0,0,R495*T495/(R495+Q495))","v":0},{"$f":"IF(R495=0,0,T495/(R495+Q495))","v":0},{"$f":"W117","v":3100},0,0,0,25,1,0,0,0,0,0,"Decentral","00:00:00",0,null,null,"IEA, 2015, Projected cost of generating electricity 2015” ",2011,"EUR"]
[null,null,"TechLow","TechLow - Wind onshore INT - 2020",null,null,"Wind onshore INT","Table 6.8, Projected cost of generating electricity 2015” (IEA, 2015)",2020,"NO","Wind",0.94712610149141763,0,24240.315146775851,3.0077491128289395,0,0,0,1,1,{"$f":"IF(R496=0,0,R496*T496/(R496+Q496))","v":0},{"$f":"IF(R496=0,0,T496/(R496+Q496))","v":0},{"$f":"W118","v":3150},0,0,0,25,1,0,0,0,0,0,"Decentral","00:00:00",0,null,null,"IEA, 2015, Projected cost of generating electricity 2015” ",2011,"EUR"]
[null,null,"TechLow","TechLow - Wind onshore INT - 2030",null,null,"Wind onshore INT","Table 6.9, Projected cost of generating electricity 2015” (IEA, 2015)",2030,"NO","Wind",0.86651962476874389,0,22617.532542807592,2.7671291838026244,0,0,0,1,1,0,0,{"$f":"W119","v":3200},0,0,0,30,1,0,0,0,0,0,"Decentral","00:00:00",0,null,null,"IEA, 2015, Projected cost of generating electricity 2015” ",2011,"EUR"]
[null,null,"TechLow","TechLow - Wind onshore INT - 2050",null,null,"Wind onshore INT","Table 6.10, Projected cost of generating electricity 2015” (IEA, 2015)",2050,"NO","Wind",0.79598895763640432,0,21501.869502579415,2.5265092547763093,0,0,0,1,1,0,0,{"$f":"W120","v":3300},0,0,0,35,1,0,0,0,0,0,"Decentral","00:00:00",0,null,null,"IEA, 2015, Projected cost of generating electricity 2015” ",2011,"EUR"]
[null,null,"TechLow","TechLow - Biomass plant INT - 2015",null,null,"Biomass plant INT","Irena 2015, Renewable Power Generation Costs in 2014 ",2015,"NO","local biomass",1.8945248394211811,0,60624.7948614778,2.6641755554360356,0,0,0,0.34,0.34,0,0,{"$f":"W121","v":5000},0,0,1,40,4,0,42.7,3.1,0.8,13.25,"Central","00:00:00",0,null,null,"Irena 2015, Renewable Power Generation Costs in 2014 ",2011,"EUR"]
[null,null,"TechLow","TechLow - Biomass plant INT - 2020",null,null,{"$f":"G122","v":"Biomass plant INT"},"Irena 2015, Renewable Power Generation Costs in 2014 ",2020,"NO","local biomass",1.8476922807726828,0,58884.537711232158,2.6641755529644162,{"$f":"P122","v":0},0,0,0.34,0.34,0,0,{"$f":"W122","v":5000},0,0,1,40,4,0,42.7,3.1,0.8,13.25,"Central","00:00:00",0,null,null,"Irena 2015, Renewable Power Generation Costs in 2014, Investment data for 2020,2030,2050 is estimated  from the development for large wood pellets ( 800MW / DK)",2011,"EUR"]
[null,null,"TechLow","TechLow - Biomass plant INT - 2030",null,null,"Biomass plant INT","Irena 2015, Renewable Power Generation Costs in 2014 ",2030,"NO","local biomass",1.8356503041344485,0,57152.249261745688,2.6927929283755327,0,0,0,0.34,0.34,0,0,{"$f":"W123","v":5000},0,0,1,40,4,0,42.7,3.1,0.8,13.25,"Central","00:00:00",0,null,null,"Irena 2015, Renewable Power Generation Costs in 2014, Investment data for 2020,2030,2050 is estimated  from the development for large wood pellets ( 800MW / DK)",2011,"EUR"]
[null,null,"TechLow","TechLow - Biomass plant INT - 2050",null,null,"Biomass plant INT","Irena 2015, Renewable Power Generation Costs in 2014 ",2050,"NO","local biomass",1.6662995752537788,0,51353.163715537899,2.692792931655938,0,0,0,0.34,0.34,0,0,{"$f":"W124","v":5000},0,0,1,40,4,0,42.7,1.5,0.8,13.25,"Central","00:00:00",0,null,null,"Irena 2015, Renewable Power Generation Costs in 2014, Investment data for 2020,2030,2050 is estimated  from the development for large wood pellets ( 800MW / DK)",2011,"EUR"]
[null,null,"TechLow","TechLow - 18La BP WCH in_st 600 MW input, woodchips storage for 10 days   - 2015",null,null,"18La BP WCH in_st 600 MW input, woodchips storage for 10 days  ","09  Biomass  Woodchips  large  CHP, Tech Cat  2018 Update",2015,"YES","Wood chips",2.6850000000000001,0,75375,2.8499999999999996,0,0,0.33476794894938888,1.114150474243941,0.27943573965587898,0.27943573965587898,0.83471473458806189,{"$f":"W125","v":5000},0,0,0,25,5,0.97970000000000002,30,3,10,0.3,"Central","02.03-18","mka",null,null,"Tech Cat  2018 Update",2015,"EUR"]
[null,null,"TechLow","TechLow - 18La BP WCH in_st 600 MW input, woodchips storage for 10 days   - 2020",null,null,"18La BP WCH in_st 600 MW input, woodchips storage for 10 days  ","09  Biomass  Woodchips  large  CHP, Tech Cat  2018 Update",2020,"YES","Wood chips",2.61,0,73200,2.8499999999999996,0,0,0.33489945243003943,1.114150474243941,0.28006476672356151,0.28006476672356151,0.83626522734332354,{"$f":"W126","v":5000},0,0,0,25,5,0.97970000000000002,24,2,8,0.3,"Central","02.03-18","mka",null,null,"Tech Cat  2018 Update",2015,"EUR"]
[null,null,"TechLow","TechLow - 18La BP WCH in_st 600 MW input, woodchips storage for 10 days   - 2030",null,null,"18La BP WCH in_st 600 MW input, woodchips storage for 10 days  ","09  Biomass  Woodchips  large  CHP, Tech Cat  2018 Update",2030,"YES","Wood chips",2.4540000000000002,0,69225,2.7750000000000004,0,0,0.33654656787794884,1.114150474243941,0.28108745620779174,0.28108745620779174,0.83521118037290532,{"$f":"W127","v":5000},0,0,0,25,5,0.97970000000000002,20,2,6,0.3,"Central","02.03-18","mka",null,null,"Tech Cat  2018 Update",2015,"EUR"]
[null,null,"TechLow","TechLow - 18La BP WCH in_st 600 MW input, woodchips storage for 10 days   - 2050",null,null,"18La BP WCH in_st 600 MW input, woodchips storage for 10 days  ","09  Biomass  Woodchips  large  CHP, Tech Cat  2018 Update",2050,"YES","Wood chips",2.298,0,64725,2.8499999999999996,0,0,0.32861052349957437,1.114150474243941,0.27613651786294091,0.27613651786294091,0.84031550457421234,{"$f":"W128","v":5000},0,0,0,25,5,0.97970000000000002,12,1,5,0.3,"Central","02.03-18","mka",null,null,"Tech Cat  2018 Update",2015,"EUR"]
[null,null,"TechLow","TechLow - 16 La EX LTE COA no_inv_exipla  - Coal CHP Life time extension of coal power plant no invest cost for existing plant  - 2015",null,null,"16 La EX LTE COA no_inv_exipla  - Coal CHP Life time extension of coal power plant no invest cost for existing plant ","02 Life time extension of coal power plant, no investmentcost for existing coal plant, , Tech cat update 2016 and coal update(O&M) 2017  ",2015,"YES","Coal",0.18,0,24827.018887566919,2.3250700228038865,0,0.15,0.64,0.85113924050632905,0.41,0.33215189873417716,0.51898734177215189,{"$f":"W129","v":5000},0,0,0.2,15,0.5,0.97,38,1.5,0.8,2.1,"Central","13.09-18","mka",null,null,"Tech Cat Aug 2016, coal note 2017 data for ex. Plant",2015,"EUR"]
[null,null,"TechLow","TechLow - 16 La EX LTE COA no_inv_exipla  - Coal CHP Life time extension of coal power plant no invest cost for existing plant  - 2020",null,null,"16 La EX LTE COA no_inv_exipla  - Coal CHP Life time extension of coal power plant no invest cost for existing plant ","02 Life time extension of coal power plant, no investmentcost for existing coal plant, , Tech cat update 2016 and coal update(O&M) 2017  ",2020,"YES","Coal",0.18,0,24079.511896372365,2.2525994999832211,0,0.15,0.68,0.87036144578313257,0.43,0.35228915662650601,0.51807228915662651,{"$f":"W130","v":5000},0,0,0.2,15,0.5,0.97,35,1.5,0.8,2.1,"Central","13.09-18","mka",null,null,"Tech Cat Aug 2016, coal note 2017 data for ex. Plant",2015,"EUR"]
[null,null,"TechLow","TechLow - 16 La EX LTE COA no_inv_exipla  - Coal CHP Life time extension of coal power plant no invest cost for existing plant  - 2030",null,null,"16 La EX LTE COA no_inv_exipla  - Coal CHP Life time extension of coal power plant no invest cost for existing plant ","02 Life time extension of coal power plant, no investmentcost for existing coal plant, , Tech cat update 2016 and coal update(O&M) 2017  ",2030,"YES","Coal",0.18,0,23316.472088792594,2.1812183566935048,0,0.15,0.74,0.87977528089887636,0.45,0.37415730337078651,0.5056179775280899,{"$f":"W131","v":5000},0,0,0.2,15,0.5,0.97,35,1.5,0.8,2.1,"Central","13.09-18","mka",null,null,"Tech Cat Aug 2016, coal note 2017 data for ex. Plant",2015,"EUR"]
[null,null,"TechLow","TechLow - 16 La EX LTE COA no_inv_exipla  - Coal CHP Life time extension of coal power plant no invest cost for existing plant  - 2050",null,null,{"$f":"G132","v":"16 La EX LTE COA no_inv_exipla  - Coal CHP Life time extension of coal power plant no invest cost for existing plant "},"02 Life time extension of coal power plant, no investmentcost for existing coal plant, , Tech cat update 2016 and coal update(O&M) 2017  ",2050,"YES","Coal",{"$f":"L132*(1+$H$439)","v":0},0,0,0,{"$f":"P132","v":0},0,0,0,0,0,0,{"$f":"W132","v":0},0,0,0,0,0,0,0,0,0,0,0,"13.09-18","mka",null,null,{"$f":"AM132","v":0},0,0]
[null,null,{"$f":"$G$440","v":"TechLow"},{"$f":"C511&\" - \"&G511&\" - \"&I511","v":"TechLow - 16La REF_EX  WPE_COA_exibo_no_inv_exipla Woodpellets CHP  refurb.  \nCoal plants, existing Boiler,  no invest cost in existing plant - 2015"},null,null,"16La REF_EX  WPE_COA_exibo_no_inv_exipla Woodpellets CHP  refurb.  \nCoal plants, existing Boiler,  no invest cost in existing plant","03a Rebuilding coal power plants to biomass,a) Wood pellets, existing boiler, no investmentcost for existing coal plant Tech Cat aug 2016, and coal update(O&M) 2017  ",2015,"YES","Wood pellets",0.42749999999999999,0,28551.071720701959,2.3250700228038865,0,0.15,0.62,0.84155844155844139,0.39999999999999997,0.32207792207792202,0.51948051948051943,{"$f":"W133","v":5000},0,0,0.2,15,2,0.97,38,3.1,0.8,2.1,"Central","02.03-18","mka",null,null,"Tech Cat  Aug 2016, Coal Update 2017",2015,"EUR"]
[null,null,"TechLow","TechLow - 16La REF_EX  WPE_COA_exibo_no_inv_exipla Woodpellets CHP  refurb.  \nCoal plants, existing Boiler,  no invest cost in existing plant - 2020",null,null,"16La REF_EX  WPE_COA_exibo_no_inv_exipla Woodpellets CHP  refurb.  \nCoal plants, existing Boiler,  no invest cost in existing plant","03a Rebuilding coal power plants to biomass,a) Wood pellets, existing boiler, no investmentcost for existing coal plant Tech Cat aug 2016, and coal update(O&M) 2017  ",2020,"YES","Wood pellets",0.42000000000000004,0,27691.438680828214,2.2525994999832211,0,0.15,0.66,0.8607407407407407,0.42,0.34222222222222221,0.51851851851851849,{"$f":"W134","v":5000},0,0,0.2,15,2,0.97,35,3.1,0.8,2.1,"Central","02.03-18","mka",null,null,"Tech Cat  Aug 2016, Coal Update 2017",2015,"EUR"]
[null,null,"TechLow","TechLow - 16La REF_EX  WPE_COA_exibo_no_inv_exipla Woodpellets CHP  refurb.  \nCoal plants, existing Boiler,  no invest cost in existing plant - 2030",null,null,"16La REF_EX  WPE_COA_exibo_no_inv_exipla Woodpellets CHP  refurb.  \nCoal plants, existing Boiler,  no invest cost in existing plant","03a Rebuilding coal power plants to biomass,a) Wood pellets, existing boiler, no investmentcost for existing coal plant Tech Cat aug 2016, and coal update(O&M) 2017  ",2030,"YES","Wood pellets",0.41250000000000003,0,26813.942902111485,2.1812183566935048,0,0.15,0.72,0.86988505747126443,0.44,0.36413793103448272,0.50574712643678166,{"$f":"W135","v":5000},0,0,0.2,15,2,0.97,35,3.1,0.8,2.1,"Central","02.03-18","mka",null,null,"Tech Cat  Aug 2016, Coal Update 2017",2015,"EUR"]
[null,null,"TechLow","TechLow - 16La REF_EX  WPE_COA_exibo_no_inv_exipla Woodpellets CHP  refurb.  \nCoal plants, existing Boiler,  no invest cost in existing plant - 2050",null,null,"16La REF_EX  WPE_COA_exibo_no_inv_exipla Woodpellets CHP  refurb.  \nCoal plants, existing Boiler,  no invest cost in existing plant","03a Rebuilding coal power plants to biomass,a) Wood pellets, existing boiler, no investmentcost for existing coal plant Tech Cat aug 2016, and coal update(O&M) 2017  ",2050,"YES","Wood pellets",{"$error":"#VALUE!"},0,0,0,0,0,0,0,0,0,0,{"$f":"W136","v":0},0,0,0,0,0,0,0,0,0,0,0,"02.03-18","mka",null,null,"Tech Cat  Aug 2016, Coal Update 2017",2015,"EUR"]
[null,null,"TechLow","TechLow - 16La REF_EX  WCH_COA_Newboi_ no_inv_exipla Wood chips CHP refurb.  \nCoal plants, new Boiler, no invest cost for existing plant  - 2015",null,null,"16La REF_EX  WCH_COA_Newboi_ no_inv_exipla Wood chips CHP refurb.  \nCoal plants, new Boiler, no invest cost for existing plant ","03b  Rebuilding coal power plants to biomass,c) Wood chips, new boiler, no investmentcost for existing coal plant Tech Cat aug 2016, and coal update(O&M) 2017  ",2015,"YES","Wood chips",1.2000000000000002,0,28551.071720701959,3.4876050342058296,0,0.15,0.57000000000000006,0.87222222222222212,0.39999999999999997,0.31666666666666665,0.55555555555555547,{"$f":"W137","v":5000},0,0,0.2,15,2.5,0.97,55,0.5,5,0.3,"Central","02.03-18","mka",null,null,"Tech Cat  Aug 2016, Coal Update 2017",2015,"EUR"]
[null,null,"TechLow","TechLow - 16La REF_EX  WCH_COA_Newboi_ no_inv_exipla Wood chips CHP refurb.  \nCoal plants, new Boiler, no invest cost for existing plant  - 2020",null,null,"16La REF_EX  WCH_COA_Newboi_ no_inv_exipla Wood chips CHP refurb.  \nCoal plants, new Boiler, no invest cost for existing plant ","03b  Rebuilding coal power plants to biomass,c) Wood chips, new boiler, no investmentcost for existing coal plant Tech Cat aug 2016, and coal update(O&M) 2017  ",2020,"YES","Wood chips",1.2000000000000002,0,27691.438680828214,3.3788992499748316,0,0.15,0.6100000000000001,0.88973684210526316,0.42,0.33710526315789474,0.55263157894736836,{"$f":"W138","v":5000},0,0,0.2,15,2.5,0.97,35,0.5,5,0.3,"Central","02.03-18","mka",null,null,"Tech Cat  Aug 2016, Coal Update 2017",2015,"EUR"]
[null,null,"TechLow","TechLow - 16La REF_EX  WCH_COA_Newboi_ no_inv_exipla Wood chips CHP refurb.  \nCoal plants, new Boiler, no invest cost for existing plant  - 2030",null,null,"16La REF_EX  WCH_COA_Newboi_ no_inv_exipla Wood chips CHP refurb.  \nCoal plants, new Boiler, no invest cost for existing plant ","03b  Rebuilding coal power plants to biomass,c) Wood chips, new boiler, no investmentcost for existing coal plant Tech Cat aug 2016, and coal update(O&M) 2017  ",2030,"YES","Wood chips",1.2000000000000002,0,26813.942902111485,3.2718275350402575,0,0.15,0.66999999999999993,0.89609756097560977,0.44,0.35951219512195121,0.53658536585365857,{"$f":"W139","v":5000},0,0,0.2,15,2.5,0.97,35,0.5,5,0.3,"Central","02.03-18","mka",null,null,"Tech Cat  Aug 2016, Coal Update 2017",2015,"EUR"]
[null,null,"TechLow","TechLow - 16La REF_EX  WCH_COA_Newboi_ no_inv_exipla Wood chips CHP refurb.  \nCoal plants, new Boiler, no invest cost for existing plant  - 2050",null,null,"16La REF_EX  WCH_COA_Newboi_ no_inv_exipla Wood chips CHP refurb.  \nCoal plants, new Boiler, no invest cost for existing plant ","03b  Rebuilding coal power plants to biomass,c) Wood chips, new boiler, no investmentcost for existing coal plant Tech Cat aug 2016, and coal update(O&M) 2017  ",2050,"YES","Wood chips",0,0,0,0,0,0,0,0,0,0,0,{"$f":"W140","v":0},0,0,0,0,0,0,0,0,0,0,0,"00:00:00",0,null,null,"Tech Cat  Aug 2016, Coal Update 2017",2015,"EUR"]
[null,null,"TechLow","TechLow - 16La REF_EX WCH_COA_exi_exibo_no_inv_exipla Wood chips CHP refurb.  \nCoal plants, existing boiler, no invest cost for existing plant  - 2015",null,null,"16La REF_EX WCH_COA_exi_exibo_no_inv_exipla Wood chips CHP refurb.  \nCoal plants, existing boiler, no invest cost for existing plant ","03c Rebuilding power plants from coal to biomass b) Wood chips, existing boiler, no investmentcost for existing coal plant Tech Cat aug 2016, and coal update(O&M) 2017  ",2015,"YES","Wood chips",1.2000000000000002,0,35999.177386972035,3.3713515330656358,0,0.15,0.57000000000000006,0.82861111111111097,0.38,0.30083333333333334,0.52777777777777768,{"$f":"W141","v":5000},0,0,0.2,15,2,1,38,3.1,10,0.3,"Central","2017-08-11","mka // 04.04",null,null,"Tech Cat  Aug 2016, Coal Update 2017",2015,"EUR"]
[null,null,"TechLow","TechLow - 16La REF_EX WCH_COA_exi_exibo_no_inv_exipla Wood chips CHP refurb.  \nCoal plants, existing boiler, no invest cost for existing plant  - 2020",null,null,{"$f":"G142","v":"16La REF_EX WCH_COA_exi_exibo_no_inv_exipla Wood chips CHP refurb.  \nCoal plants, existing boiler, no invest cost for existing plant "},"03c Rebuilding power plants from coal to biomass b) Wood chips, existing boiler, no investmentcost for existing coal plant Tech Cat aug 2016, and coal update(O&M) 2017  ",2020,"YES","Wood chips",1.2000000000000002,0,34915.292249739927,3.2662692749756705,{"$f":"P142","v":0},0.15,0.6100000000000001,0.84736842105263155,0.4,0.32105263157894737,0.52631578947368418,{"$f":"W142","v":5000},0,0,0.2,15,2,1,35,3.1,8,0.3,"Central","2017-08-11","mka // 04.05",null,null,"Tech Cat  Aug 2016, Coal Update 2017",2015,"EUR"]
[null,null,"TechLow","TechLow - 16La REF_EX WCH_COA_exi_exibo_no_inv_exipla Wood chips CHP refurb.  \nCoal plants, existing boiler, no invest cost for existing plant  - 2030",null,null,"16La REF_EX WCH_COA_exi_exibo_no_inv_exipla Wood chips CHP refurb.  \nCoal plants, existing boiler, no invest cost for existing plant ","03c Rebuilding power plants from coal to biomass b) Wood chips, existing boiler, no investmentcost for existing coal plant Tech Cat aug 2016, and coal update(O&M) 2017  ",2030,"YES","Wood chips",1.2000000000000002,0,33808.884528749266,3.1627666172055822,0,0.15,0.66999999999999993,0.85536585365853668,0.42000000000000004,0.3431707317073171,0.51219512195121963,{"$f":"W143","v":5000},0,0,0.2,15,2,1,35,3.1,6,0.3,"Central","2017-08-11","mka // 04.06",null,null,"Tech Cat  Aug 2016, Coal Update 2017",2015,"EUR"]
[null,null,"TechLow","TechLow - 16La REF_EX WCH_COA_exi_exibo_no_inv_exipla Wood chips CHP refurb.  \nCoal plants, existing boiler, no invest cost for existing plant  - 2050",null,null,"16La REF_EX WCH_COA_exi_exibo_no_inv_exipla Wood chips CHP refurb.  \nCoal plants, existing boiler, no invest cost for existing plant ","03c Rebuilding power plants from coal to biomass b) Wood chips, existing boiler, no investmentcost for existing coal plant Tech Cat aug 2016, and coal update(O&M) 2017  ",2050,"YES","Wood chips",0,0,0,0,0,0,0,0,0,0,0,{"$f":"W144","v":0},0,0,0,0,0,0,0,0,0,0,0,"00:00:00",0,null,null,"Tech Cat  Aug 2016, Coal Update 2017",2015,"EUR"]
[null,null,"TechLow","TechLow - 18Sm_PV_roof - 2015",null,null,{"$f":"G149","v":"18Sm_PV_roof"},"22 PV small roof mounted residential systems, Tech Kat July 2018",2015,"NO","solar",{"$f":"L149*(1+$H$439)","v":1.1850000000000001},0,11812.5,0,{"$f":"P149","v":0},0,0,1,1,{"$f":"IF(R523=0,0,R523*T523/(R523+Q523))","v":0},{"$f":"IF(R523=0,0,T523/(R523+Q523))","v":0},{"$f":"W149","v":981.45684945000016},0,0,0,30,0.5,0,0,0,0,0,"Decentral","2018-07-19","FGB",null,null,{"$f":"AM149","v":"Tech Cat  Aug 2016, Update July 2018"},2015,"EUR"]
[null,null,"TechLow","TechLow - 18Sm_PV_roof - 2020",null,null,"18Sm_PV_roof","22 PV small roof mounted residential systems, Tech Kat July 2018",2020,"NO","solar",0.84632388668140457,0,10080,0,0,0,0,1,1,0,0,{"$f":"W150","v":1042.5016602000001},0,0,0,35,0.5,0,0,0,0,0,"Decentral","2018-07-19","FGB",null,null,"Tech Cat  Aug 2016, Update July 2018",2015,"EUR"]
[null,null,"TechLow","TechLow - 18Sm_PV_roof - 2030",null,null,"18Sm_PV_roof","22 PV small roof mounted residential systems, Tech Kat July 2018",2030,"NO","solar",0.65209322560077976,0,8111.25,0,0,0,0,1,1,0,0,{"$f":"W151","v":1077.1302118500003},0,0,0,40,0.5,0,0,0,0,0,"Decentral","2018-07-19","FGB",null,null,"Tech Cat  Aug 2016, Update July 2018",2015,"EUR"]
[null,null,"TechLow","TechLow - 18Sm_PV_roof - 2050",null,null,"18Sm_PV_roof","22 PV small roof mounted residential systems, Tech Kat July 2018",2050,"NO","solar",0.44062174482162692,0,6851.25,0,0,0,0,1,1,0,0,{"$f":"W152","v":1124.3630752200002},0,0,0,40,0.5,0,0,0,0,0,"Decentral","2018-07-19","FGB",null,null,"Tech Cat  Aug 2016, Update July 2018",2015,"EUR"]
[null,null,"TechLow","TechLow - 18Me_PV_roof - 2015",null,null,"18Me_PV_roof","22 PV medium sized roof mounted commercial systems, Tech Kat July 2018",2015,"NO","solar",1.008216,0,10065.000000000002,0,0,0,0,1,1,0,0,{"$f":"W153","v":1045.6515927000003},0,0,0,30,0.5,0,0,0,0,0,"Decentral","2018-07-19","FGB",null,null,"Tech Cat  Aug 2016, Update July 2018",2015,"EUR"]
[null,null,"TechLow","TechLow - 18Me_PV_roof - 2020",null,null,"18Me_PV_roof","22 PV medium sized roof mounted commercial systems, Tech Kat July 2018",2020,"NO","solar",0.60278016708062299,0,8580.0000000000018,0,0,0,0,1,1,0,0,{"$f":"W154","v":1129.3767985500001},0,0,0,35,0.5,0,0,0,0,0,"Decentral","2018-07-19","FGB",null,null,"Tech Cat  Aug 2016, Update July 2018",2015,"EUR"]
[null,null,"TechLow","TechLow - 18Me_PV_roof - 2030",null,null,"18Me_PV_roof","22 PV medium sized roof mounted commercial systems, Tech Kat July 2018",2030,"NO","solar",0.47377068505326253,0,6930,0,0,0,0,1,1,0,0,{"$f":"W155","v":1166.03619759},0,0,0,40,0.5,0,0,0,0,0,"Decentral","2018-07-19","FGB",null,null,"Tech Cat  Aug 2016, Update July 2018",2015,"EUR"]
[null,null,"TechLow","TechLow - 18Me_PV_roof - 2050",null,null,"18Me_PV_roof","22 PV medium sized roof mounted commercial systems, Tech Kat July 2018",2050,"NO","solar",0.37054025552822029,0,5857.5000000000009,0,0,0,0,1,1,0,0,{"$f":"W156","v":1203.2354466000002},0,0,0,40,0.5,0,0,0,0,0,"Decentral","2018-07-19","FGB",null,null,"Tech Cat  Aug 2016, Update July 2018",2015,"EUR"]
[null,null,"TechLow",{"$error":"#REF!"},null,null,{"$f":"#REF!","v":{"$error":"#REF!"}},{"$f":"#REF!","v":{"$error":"#REF!"}},{"$f":"#REF!","v":{"$error":"#REF!"}},{"$f":"#REF!","v":{"$error":"#REF!"}},{"$f":"#REF!","v":{"$error":"#REF!"}},{"$f":"#REF!*(1+$H$439)","v":{"$error":"#REF!"}},{"$f":"#REF!*(1+$H$439)","v":{"$error":"#REF!"}},{"$f":"#REF!*(1+$H$439)","v":{"$error":"#REF!"}},{"$f":"#REF!*(1+$H$439)","v":{"$error":"#REF!"}},{"$f":"#REF!","v":{"$error":"#REF!"}},{"$f":"#REF!","v":{"$error":"#REF!"}},{"$f":"#REF!","v":{"$error":"#REF!"}},{"$f":"#REF!","v":{"$error":"#REF!"}},{"$f":"#REF!","v":{"$error":"#REF!"}},{"$f":"IF(R531=0,0,R531*T531/(R531+Q531))","v":{"$error":"#REF!"}},{"$f":"IF(R531=0,0,T531/(R531+Q531))","v":{"$error":"#REF!"}},{"$f":"#REF!","v":{"$error":"#REF!"}},{"$f":"#REF!","v":{"$error":"#REF!"}},{"$f":"#REF!","v":{"$error":"#REF!"}},{"$f":"#REF!","v":{"$error":"#REF!"}},{"$f":"#REF!","v":{"$error":"#REF!"}},{"$f":"#REF!","v":{"$error":"#REF!"}},{"$f":"#REF!","v":{"$error":"#REF!"}},{"$f":"#REF!","v":{"$error":"#REF!"}},{"$f":"#REF!","v":{"$error":"#REF!"}},{"$f":"#REF!","v":{"$error":"#REF!"}},{"$f":"#REF!","v":{"$error":"#REF!"}},{"$f":"#REF!","v":{"$error":"#REF!"}},{"$f":"#REF!","v":{"$error":"#REF!"}},{"$f":"#REF!","v":{"$error":"#REF!"}},null,null,{"$f":"#REF!","v":{"$error":"#REF!"}},{"$f":"#REF!","v":{"$error":"#REF!"}},{"$f":"#REF!","v":{"$error":"#REF!"}}]
[null,null,"TechLow",{"$error":"#REF!"},null,null,{"$f":"#REF!","v":{"$error":"#REF!"}},{"$f":"#REF!","v":{"$error":"#REF!"}},{"$f":"#REF!","v":{"$error":"#REF!"}},{"$f":"#REF!","v":{"$error":"#REF!"}},{"$f":"#REF!","v":{"$error":"#REF!"}},{"$f":"#REF!*(1+$H$439)","v":{"$error":"#REF!"}},{"$f":"#REF!*(1+$H$439)","v":{"$error":"#REF!"}},{"$f":"#REF!*(1+$H$439)","v":{"$error":"#REF!"}},{"$f":"#REF!*(1+$H$439)","v":{"$error":"#REF!"}},{"$f":"#REF!","v":{"$error":"#REF!"}},{"$f":"#REF!","v":{"$error":"#REF!"}},{"$f":"#REF!","v":{"$error":"#REF!"}},{"$f":"#REF!","v":{"$error":"#REF!"}},{"$f":"#REF!","v":{"$error":"#REF!"}},{"$error":"#REF!"},{"$error":"#REF!"},{"$f":"#REF!","v":{"$error":"#REF!"}},{"$f":"#REF!","v":{"$error":"#REF!"}},{"$f":"#REF!","v":{"$error":"#REF!"}},{"$f":"#REF!","v":{"$error":"#REF!"}},{"$f":"#REF!","v":{"$error":"#REF!"}},{"$f":"#REF!","v":{"$error":"#REF!"}},{"$f":"#REF!","v":{"$error":"#REF!"}},{"$f":"#REF!","v":{"$error":"#REF!"}},{"$f":"#REF!","v":{"$error":"#REF!"}},{"$f":"#REF!","v":{"$error":"#REF!"}},{"$f":"#REF!","v":{"$error":"#REF!"}},{"$f":"#REF!","v":{"$error":"#REF!"}},{"$f":"#REF!","v":{"$error":"#REF!"}},{"$f":"#REF!","v":{"$error":"#REF!"}},null,null,{"$f":"#REF!","v":{"$error":"#REF!"}},{"$f":"#REF!","v":{"$error":"#REF!"}},{"$f":"#REF!","v":{"$error":"#REF!"}}]
[null,null,"TechLow",{"$error":"#REF!"},null,null,{"$f":"#REF!","v":{"$error":"#REF!"}},{"$f":"#REF!","v":{"$error":"#REF!"}},{"$f":"#REF!","v":{"$error":"#REF!"}},{"$f":"#REF!","v":{"$error":"#REF!"}},{"$f":"#REF!","v":{"$error":"#REF!"}},{"$f":"#REF!*(1+$H$439)","v":{"$error":"#REF!"}},{"$f":"#REF!*(1+$H$439)","v":{"$error":"#REF!"}},{"$f":"#REF!*(1+$H$439)","v":{"$error":"#REF!"}},{"$f":"#REF!*(1+$H$439)","v":{"$error":"#REF!"}},{"$f":"#REF!","v":{"$error":"#REF!"}},{"$f":"#REF!","v":{"$error":"#REF!"}},{"$f":"#REF!","v":{"$error":"#REF!"}},{"$f":"#REF!","v":{"$error":"#REF!"}},{"$f":"#REF!","v":{"$error":"#REF!"}},{"$f":"IF(R533=0,0,R533*T533/(R533+Q533))","v":{"$error":"#REF!"}},{"$f":"IF(R533=0,0,T533/(R533+Q533))","v":{"$error":"#REF!"}},{"$f":"#REF!","v":{"$error":"#REF!"}},{"$f":"#REF!","v":{"$error":"#REF!"}},{"$f":"#REF!","v":{"$error":"#REF!"}},{"$f":"#REF!","v":{"$error":"#REF!"}},{"$f":"#REF!","v":{"$error":"#REF!"}},{"$f":"#REF!","v":{"$error":"#REF!"}},{"$f":"#REF!","v":{"$error":"#REF!"}},{"$f":"#REF!","v":{"$error":"#REF!"}},{"$f":"#REF!","v":{"$error":"#REF!"}},{"$f":"#REF!","v":{"$error":"#REF!"}},{"$f":"#REF!","v":{"$error":"#REF!"}},{"$f":"#REF!","v":{"$error":"#REF!"}},{"$f":"#REF!","v":{"$error":"#REF!"}},{"$f":"#REF!","v":{"$error":"#REF!"}},null,null,{"$f":"#REF!","v":{"$error":"#REF!"}},{"$f":"#REF!","v":{"$error":"#REF!"}},{"$f":"#REF!","v":{"$error":"#REF!"}}]
[null,null,"TechLow",{"$error":"#REF!"},null,null,{"$f":"#REF!","v":{"$error":"#REF!"}},{"$f":"#REF!","v":{"$error":"#REF!"}},{"$f":"#REF!","v":{"$error":"#REF!"}},{"$f":"#REF!","v":{"$error":"#REF!"}},{"$f":"#REF!","v":{"$error":"#REF!"}},{"$f":"#REF!*(1+$H$439)","v":{"$error":"#REF!"}},{"$f":"#REF!*(1+$H$439)","v":{"$error":"#REF!"}},{"$f":"#REF!*(1+$H$439)","v":{"$error":"#REF!"}},{"$f":"#REF!*(1+$H$439)","v":{"$error":"#REF!"}},{"$f":"#REF!","v":{"$error":"#REF!"}},{"$f":"#REF!","v":{"$error":"#REF!"}},{"$f":"#REF!","v":{"$error":"#REF!"}},{"$f":"#REF!","v":{"$error":"#REF!"}},{"$f":"#REF!","v":{"$error":"#REF!"}},{"$error":"#REF!"},{"$error":"#REF!"},{"$f":"#REF!","v":{"$error":"#REF!"}},{"$f":"#REF!","v":{"$error":"#REF!"}},{"$f":"#REF!","v":{"$error":"#REF!"}},{"$f":"#REF!","v":{"$error":"#REF!"}},{"$f":"#REF!","v":{"$error":"#REF!"}},{"$f":"#REF!","v":{"$error":"#REF!"}},{"$f":"#REF!","v":{"$error":"#REF!"}},{"$f":"#REF!","v":{"$error":"#REF!"}},{"$f":"#REF!","v":{"$error":"#REF!"}},{"$f":"#REF!","v":{"$error":"#REF!"}},{"$f":"#REF!","v":{"$error":"#REF!"}},{"$f":"#REF!","v":{"$error":"#REF!"}},{"$f":"#REF!","v":{"$error":"#REF!"}},{"$f":"#REF!","v":{"$error":"#REF!"}},null,null,{"$f":"#REF!","v":{"$error":"#REF!"}},{"$f":"#REF!","v":{"$error":"#REF!"}},{"$f":"#REF!","v":{"$error":"#REF!"}}]
[null,null,"TechLow",{"$error":"#REF!"},null,null,{"$f":"G167","v":"19WIN_ON_in Onshore wind incl. Grid"},"21 Wind Turbines Onshore, Tech Kat update 2019",{"$f":"#REF!","v":{"$error":"#REF!"}},{"$f":"#REF!","v":{"$error":"#REF!"}},{"$f":"#REF!","v":{"$error":"#REF!"}},{"$f":"#REF!*(1+$H$439)","v":{"$error":"#REF!"}},{"$f":"#REF!*(1+$H$439)","v":{"$error":"#REF!"}},{"$f":"#REF!*(1+$H$439)","v":{"$error":"#REF!"}},{"$f":"#REF!*(1+$H$439)","v":{"$error":"#REF!"}},{"$f":"#REF!","v":{"$error":"#REF!"}},{"$f":"#REF!","v":{"$error":"#REF!"}},{"$f":"#REF!","v":{"$error":"#REF!"}},{"$f":"#REF!","v":{"$error":"#REF!"}},{"$f":"#REF!","v":{"$error":"#REF!"}},{"$error":"#REF!"},{"$error":"#REF!"},{"$f":"#REF!","v":{"$error":"#REF!"}},{"$f":"#REF!","v":{"$error":"#REF!"}},{"$f":"#REF!","v":{"$error":"#REF!"}},{"$f":"#REF!","v":{"$error":"#REF!"}},{"$f":"#REF!","v":{"$error":"#REF!"}},{"$f":"#REF!","v":{"$error":"#REF!"}},{"$f":"#REF!","v":{"$error":"#REF!"}},{"$f":"#REF!","v":{"$error":"#REF!"}},{"$f":"#REF!","v":{"$error":"#REF!"}},{"$f":"#REF!","v":{"$error":"#REF!"}},{"$f":"#REF!","v":{"$error":"#REF!"}},{"$f":"#REF!","v":{"$error":"#REF!"}},{"$f":"#REF!","v":{"$error":"#REF!"}},{"$f":"#REF!","v":{"$error":"#REF!"}},null,null,{"$f":"#REF!","v":{"$error":"#REF!"}},{"$f":"#REF!","v":{"$error":"#REF!"}},{"$f":"#REF!","v":{"$error":"#REF!"}}]
[null,null,"TechLow","TechLow - 19WIN_ON_in Onshore wind incl. Grid - 2020",null,null,"19WIN_ON_in Onshore wind incl. Grid","21 Wind Turbines Onshore, Tech Kat update 2019",{"$f":"I167","v":2020},"NO","Wind",{"$f":"L167*(1+$H$439)","v":0.80249999999999999},3.7500000000000006E-2,10500,1.125,{"$f":"P167","v":0},0,0,1,1,0,0,{"$f":"W167","v":3400},0,0,0,27,1.5,0,0,0,0,0,"Decentral","2019-05-28","chwo",null,null,{"$f":"AM167","v":"Tech Cat 2019 Update"},2015,"EUR"]
[null,null,"TechLow","TechLow - 19WIN_ON_in Onshore wind incl. Grid - 2025",null,null,"19WIN_ON_in Onshore wind incl. Grid","21 Wind Turbines Onshore, Tech Kat update 2019",2025,"NO","Wind",0.77249999999999996,3.7500000000000006E-2,9975,1.0687500000000001,0,0,0,1,1,0,0,{"$f":"W168","v":3500},0,0,0,28.5,1.5,0,0,0,0,0,"Decentral","2024-05-26","chwo - average of 2020 and 2030",null,null,"Tech Cat 2019 Update",2015,"EUR"]
[null,null,"TechLow","TechLow - 19WIN_ON_in Onshore wind incl. Grid - 2030",null,null,"19WIN_ON_in Onshore wind incl. Grid","21 Wind Turbines Onshore, Tech Kat update 2019",2030,"NO","Wind",0.74249999999999994,3.7500000000000006E-2,9450,1.0125000000000002,0,0,0,1,1,0,0,{"$f":"W169","v":3600},0,0,0,30,1.5,0,0,0,0,0,"Decentral","2019-05-28","chwo",null,null,"Tech Cat 2019 Update",2015,"EUR"]
[null,null,"TechLow","TechLow - 19WIN_ON_in Onshore wind incl. Grid - 2040",null,null,"19WIN_ON_in Onshore wind incl. Grid","21 Wind Turbines Onshore, Tech Kat update 2019",2040,"NO","Wind",0.69750000000000001,3.7500000000000006E-2,8694,0.92999999999999994,0,0,0,1,1,0,0,{"$f":"W170","v":3700},0,0,0,30,1.5,0,0,0,0,0,"Decentral","2019-05-28","chwo",null,null,"Tech Cat 2019 Update",2015,"EUR"]
[null,null,"TechLow","TechLow - 19WIN_OF_in Offshore wind incl. Grid - 2050",null,null,{"$f":"G177","v":"19WIN_OF_in Offshore wind incl. Grid"},"21 Wind Turbines Offshore, Tech Kat Update 2019",2050,"NO","Wind",0.68249999999999988,3.7500000000000006E-2,8505,0.91500000000000004,0,0,0,1,1,0,0,{"$f":"W171","v":3800},0,0,0,30,1.5,0,0,0,0,0,"Decentral","2019-05-28","chwo",null,null,"Tech Cat 2019 Update",2015,"EUR"]
[null,null,"TechLow","TechLow - 19WIN_OF_in Offshore wind incl. Grid - 2015",null,null,"19WIN_OF_in Offshore wind incl. Grid","21 Wind Turbines Offshore, Tech Kat Update 2019",{"$f":"I177","v":2015},"NO","Wind",{"$f":"L177*(1+$H$439)","v":1.845},0.30000000000000004,42975,3.2249999999999996,{"$f":"P177","v":0},0,0,1,1,0,0,{"$f":"W177","v":4400},0,0,0,25,3,0,0,0,0,0,"Central","2019-09-10","chwo",null,null,{"$f":"AM177","v":"Tech Cat 2019 Update"},2015,"EUR"]
[null,null,"TechLow","TechLow - 19WIN_OF_in Offshore wind incl. Grid - 2020",null,null,"19WIN_OF_in Offshore wind incl. Grid","21 Wind Turbines Offshore, Tech Kat Update 2019",2020,"NO","Wind",1.3125,0.28500000000000003,30044.25,2.25,0,0,0,1,1,0,0,{"$f":"W178","v":4500},0,0,0,27,2.5,0,0,0,0,0,"Central","2019-09-10","chwo",null,null,"Tech Cat 2019 Update",2015,"EUR"]
[null,null,"TechLow","TechLow - 19WIN_OF_in Offshore wind incl. Grid - 2030",null,null,"19WIN_OF_in Offshore wind incl. Grid","21 Wind Turbines Offshore, Tech Kat Update 2019",2030,"NO","Wind",1.1774999999999998,0.27,27039.75,2.0250000000000004,0,0,0,1,1,0,0,{"$f":"W179","v":4650},0,0,0,30,2.5,0,0,0,0,0,"Central","2019-09-10","chwo",null,null,"Tech Cat 2019 Update",2015,"EUR"]
[null,null,"TechLow","TechLow - 19WIN_OF_in Offshore wind incl. Grid - 2040",null,null,"19WIN_OF_in Offshore wind incl. Grid","21 Wind Turbines Offshore, Tech Kat Update 2019",2040,"NO","Wind",1.0875000000000001,0.27,24876.75,1.875,0,0,0,1,1,0,0,{"$f":"W180","v":4700},0,0,0,30,2.5,0,0,0,0,0,"Central","2019-09-10","chwo",null,null,"Tech Cat 2019 Update",2015,"EUR"]
[null,null,"TechLow","TechLow - 19WIN_OF_ex Offshore wind excl. Grid - 2050",null,null,"19WIN_OF_ex Offshore wind excl. Grid","21 Wind Turbines Offshore, Tech Kat Update 2019",2050,"NO","Wind",1.0649999999999999,0.27,24336,1.7999999999999998,0,0,0,1,1,0,0,{"$f":"W181","v":4900},0,0,0,30,2,0,0,0,0,0,"Central","2019-09-10","chwo",null,null,"Tech Cat 2019 Update",2015,"EUR"]
[null,null,"TechLow","TechLow - 19WIN_OF_ex Offshore wind excl. Grid - 2015",null,null,"19WIN_OF_ex Offshore wind excl. Grid","21 Wind Turbines Offshore, Tech Kat Update 2019",2015,"NO","Wind",1.845,0,42975,3.2249999999999996,0,0,0,1,1,0,0,{"$f":"W182","v":4400},0,0,0,25,3,0,0,0,0,0,"Central","2019-09-10","chwo",null,null,"Tech Cat 2019 Update",2015,"EUR"]
[null,null,"TechLow","TechLow - 19WIN_OF_ex Offshore wind excl. Grid - 2020",null,null,"19WIN_OF_ex Offshore wind excl. Grid","21 Wind Turbines Offshore, Tech Kat Update 2019",2020,"NO","Wind",1.3125,0,30044.25,2.25,0,0,0,1,1,0,0,{"$f":"W183","v":4500},0,0,0,27,2.5,0,0,0,0,0,"Central","2019-09-10","chwo",null,null,"Tech Cat 2019 Update",2015,"EUR"]
[null,null,"TechLow","TechLow - 19WIN_OF_ex Offshore wind excl. Grid - 2030",null,null,"19WIN_OF_ex Offshore wind excl. Grid","21 Wind Turbines Offshore, Tech Kat Update 2019",2030,"NO","Wind",1.1774999999999998,0,27039.75,2.0250000000000004,0,0,0,1,1,0,0,{"$f":"W184","v":4650},0,0,0,30,2.5,0,0,0,0,0,"Central","2019-09-10","chwo",null,null,"Tech Cat 2019 Update",2015,"EUR"]
[null,null,"TechLow","TechLow - 19WIN_OF_ex Offshore wind excl. Grid - 2040",null,null,"19WIN_OF_ex Offshore wind excl. Grid","21 Wind Turbines Offshore, Tech Kat Update 2019",2040,"NO","Wind",1.0875000000000001,0,24876.75,1.875,0,0,0,1,1,0,0,{"$f":"W185","v":4700},0,0,0,30,2.5,0,0,0,0,0,"Central","2019-09-10","chwo",null,null,"Tech Cat 2019 Update",2015,"EUR"]
[null,null,"TechLow","TechLow - 19WIN_NS_in Nearshore wind incl. Grid - 2050",null,null,"19WIN_NS_in Nearshore wind incl. Grid","21 Wind Turbines Nearshore, Tech Kat Update 2019",2050,"NO","Wind",1.0649999999999999,0,24336,1.7999999999999998,0,0,0,1,1,0,0,{"$f":"W186","v":4900},0,0,0,30,2,0,0,0,0,0,"Central","2019-09-10","chwo",null,null,"Tech Cat 2019 Update",2015,"EUR"]
[null,null,"TechLow","TechLow - 19WIN_NS_in Nearshore wind incl. Grid - 2015",null,null,"19WIN_NS_in Nearshore wind incl. Grid","21 Wind Turbines Nearshore, Tech Kat Update 2019",2015,"NO","Wind",1.6649999999999998,0.21000000000000002,38677.5,2.9249999999999998,{"$f":"P187","v":0},0,0,1,1,0,0,{"$f":"W187","v":4400},0,0,0,25,2,0,0,0,0,0,"Central","2019-09-10","chwo",null,null,"Tech Cat 2019 Update",2015,"EUR"]
[null,null,"TechLow","TechLow - 19WIN_NS_in Nearshore wind incl. Grid - 2020",null,null,"19WIN_NS_in Nearshore wind incl. Grid","21 Wind Turbines Nearshore, Tech Kat Update 2019",2020,"NO","Wind",1.1099999999999999,0.20250000000000001,27039.75,2.0250000000000004,0,0,0,1,1,0,0,{"$f":"W188","v":4500},0,0,0,27,2,0,0,0,0,0,"Central","2019-09-10","chwo",null,null,"Tech Cat 2019 Update",2015,"EUR"]
[null,null,"TechLow","TechLow - 19WIN_NS_in Nearshore wind incl. Grid - 2030",null,null,"19WIN_NS_in Nearshore wind incl. Grid","21 Wind Turbines Nearshore, Tech Kat Update 2019",2030,"NO","Wind",1.0574999999999999,0.1875,25687.5,2.25,0,0,0,1,1,0,0,{"$f":"W189","v":4650},0,0,0,30,2,0,0,0,0,0,"Central","2019-09-10","chwo",null,null,"Tech Cat 2019 Update",2015,"EUR"]
[null,null,"TechLow","TechLow - 19WIN_NS_in Nearshore wind incl. Grid - 2040",null,null,"19WIN_NS_in Nearshore wind incl. Grid","21 Wind Turbines Nearshore, Tech Kat Update 2019",2040,"NO","Wind",1.0125000000000002,0.1875,24660,1.7999999999999998,0,0,0,1,1,0,0,{"$f":"W190","v":4700},0,0,0,30,2,0,0,0,0,0,"Central","2019-09-10","chwo",null,null,"Tech Cat 2019 Update",2015,"EUR"]
[null,null,"TechLow","TechLow - 19WIN_NS_ex Nearshore wind excl. Grid - 2050",null,null,"19WIN_NS_ex Nearshore wind excl. Grid","21 Wind Turbines Nearshore, Tech Kat Update 2019",2050,"NO","Wind",1.0027500000000003,0.18225,24403.5,1.7999999999999998,0,0,0,1,1,{"$f":"IF(R555=0,0,R555*T555/(R555+Q555))","v":0},{"$f":"IF(R555=0,0,T555/(R555+Q555))","v":0},{"$f":"W191","v":4900},0,0,0,30,2,0,0,0,0,0,"Central","2019-09-10","chwo",null,null,"Tech Cat 2019 Update",2015,"EUR"]
[null,null,"TechLow","TechLow - 19WIN_NS_ex Nearshore wind excl. Grid - 2015",null,null,"19WIN_NS_ex Nearshore wind excl. Grid","21 Wind Turbines Nearshore, Tech Kat Update 2019",2015,"NO","Wind",1.6649999999999998,0,38677.5,2.9249999999999998,0,0,0,1,1,0,0,{"$f":"W192","v":4400},0,0,0,25,2,0,0,0,0,0,"Central","2019-09-10","chwo",null,null,"Tech Cat 2019 Update",2015,"EUR"]
[null,null,"TechLow","TechLow - 19WIN_NS_ex Nearshore wind excl. Grid - 2020",null,null,"19WIN_NS_ex Nearshore wind excl. Grid","21 Wind Turbines Nearshore, Tech Kat Update 2019",2020,"NO","Wind",1.1099999999999999,0,27039.75,2.0250000000000004,0,0,0,1,1,0,0,{"$f":"W193","v":4500},0,0,0,27,2,0,0,0,0,0,"Central","2019-09-10","chwo",null,null,"Tech Cat 2019 Update",2015,"EUR"]
[null,null,"TechLow","TechLow - 19WIN_NS_ex Nearshore wind excl. Grid - 2030",null,null,"19WIN_NS_ex Nearshore wind excl. Grid","21 Wind Turbines Nearshore, Tech Kat Update 2019",2030,"NO","Wind",1.0574999999999999,0,25687.5,2.25,0,0,0,1,1,0,0,{"$f":"W194","v":4650},0,0,0,30,2,0,0,0,0,0,"Central","2019-09-10","chwo",null,null,"Tech Cat 2019 Update",2015,"EUR"]
[null,null,"TechLow","TechLow - 19WIN_NS_ex Nearshore wind excl. Grid - 2040",null,null,"19WIN_NS_ex Nearshore wind excl. Grid","21 Wind Turbines Nearshore, Tech Kat Update 2019",2040,"NO","Wind",1.0125000000000002,0,24660,1.7999999999999998,0,0,0,1,1,0,0,{"$f":"W195","v":4700},0,0,0,30,2,0,0,0,0,0,"Central","2019-09-10","chwo",null,null,"Tech Cat 2019 Update",2015,"EUR"]
[null,null,"TechLow",{"$error":"#REF!"},null,null,{"$f":"#REF!","v":{"$error":"#REF!"}},{"$f":"#REF!","v":{"$error":"#REF!"}},2050,"NO","Wind",1.0027500000000003,0,24403.5,1.7999999999999998,0,0,0,1,1,0,0,{"$f":"W196","v":4900},0,0,0,30,2,0,0,0,0,0,"Central","2019-09-10","chwo",null,null,"Tech Cat 2019 Update",2015,"EUR"]
[null,null,"TechLow",{"$error":"#REF!"},null,null,{"$f":"#REF!","v":{"$error":"#REF!"}},{"$f":"#REF!","v":{"$error":"#REF!"}},{"$f":"#REF!","v":{"$error":"#REF!"}},{"$f":"#REF!","v":{"$error":"#REF!"}},{"$f":"#REF!","v":{"$error":"#REF!"}},{"$f":"#REF!*(1+$H$439)","v":{"$error":"#REF!"}},{"$f":"#REF!*(1+$H$439)","v":{"$error":"#REF!"}},{"$f":"#REF!*(1+$H$439)","v":{"$error":"#REF!"}},{"$f":"#REF!*(1+$H$439)","v":{"$error":"#REF!"}},{"$f":"#REF!","v":{"$error":"#REF!"}},{"$f":"#REF!","v":{"$error":"#REF!"}},{"$f":"#REF!","v":{"$error":"#REF!"}},{"$f":"#REF!","v":{"$error":"#REF!"}},{"$f":"#REF!","v":{"$error":"#REF!"}},{"$error":"#REF!"},{"$error":"#REF!"},{"$f":"#REF!","v":{"$error":"#REF!"}},{"$f":"#REF!","v":{"$error":"#REF!"}},{"$f":"#REF!","v":{"$error":"#REF!"}},{"$f":"#REF!","v":{"$error":"#REF!"}},{"$f":"#REF!","v":{"$error":"#REF!"}},{"$f":"#REF!","v":{"$error":"#REF!"}},{"$f":"#REF!","v":{"$error":"#REF!"}},{"$f":"#REF!","v":{"$error":"#REF!"}},{"$f":"#REF!","v":{"$error":"#REF!"}},{"$f":"#REF!","v":{"$error":"#REF!"}},{"$f":"#REF!","v":{"$error":"#REF!"}},{"$f":"#REF!","v":{"$error":"#REF!"}},{"$f":"#REF!","v":{"$error":"#REF!"}},{"$f":"#REF!","v":{"$error":"#REF!"}},null,null,{"$f":"#REF!","v":{"$error":"#REF!"}},{"$f":"#REF!","v":{"$error":"#REF!"}},{"$f":"#REF!","v":{"$error":"#REF!"}}]
[null,null,"TechLow",{"$error":"#REF!"},null,null,{"$f":"#REF!","v":{"$error":"#REF!"}},{"$f":"#REF!","v":{"$error":"#REF!"}},{"$f":"#REF!","v":{"$error":"#REF!"}},{"$f":"#REF!","v":{"$error":"#REF!"}},{"$f":"#REF!","v":{"$error":"#REF!"}},{"$f":"#REF!*(1+$H$439)","v":{"$error":"#REF!"}},{"$f":"#REF!*(1+$H$439)","v":{"$error":"#REF!"}},{"$f":"#REF!*(1+$H$439)","v":{"$error":"#REF!"}},{"$f":"#REF!*(1+$H$439)","v":{"$error":"#REF!"}},{"$f":"#REF!","v":{"$error":"#REF!"}},{"$f":"#REF!","v":{"$error":"#REF!"}},{"$f":"#REF!","v":{"$error":"#REF!"}},{"$f":"#REF!","v":{"$error":"#REF!"}},{"$f":"#REF!","v":{"$error":"#REF!"}},{"$error":"#REF!"},{"$error":"#REF!"},{"$f":"#REF!","v":{"$error":"#REF!"}},{"$f":"#REF!","v":{"$error":"#REF!"}},{"$f":"#REF!","v":{"$error":"#REF!"}},{"$f":"#REF!","v":{"$error":"#REF!"}},{"$f":"#REF!","v":{"$error":"#REF!"}},{"$f":"#REF!","v":{"$error":"#REF!"}},{"$f":"#REF!","v":{"$error":"#REF!"}},{"$f":"#REF!","v":{"$error":"#REF!"}},{"$f":"#REF!","v":{"$error":"#REF!"}},{"$f":"#REF!","v":{"$error":"#REF!"}},{"$f":"#REF!","v":{"$error":"#REF!"}},{"$f":"#REF!","v":{"$error":"#REF!"}},{"$f":"#REF!","v":{"$error":"#REF!"}},{"$f":"#REF!","v":{"$error":"#REF!"}},null,null,{"$f":"#REF!","v":{"$error":"#REF!"}},{"$f":"#REF!","v":{"$error":"#REF!"}},{"$f":"#REF!","v":{"$error":"#REF!"}}]
[null,null,"TechLow","TechLow - 19WIN_NS_ex Nearshore wind excl. Grid - 2040",null,null,{"$f":"G196","v":"19WIN_NS_ex Nearshore wind excl. Grid"},{"$f":"H196","v":"21 Wind Turbines Nearshore, Tech Kat Update 2019"},{"$f":"I195","v":2040},"NO","Wind",{"$f":"L195*(1+$H$439)","v":1.0125000000000002},0,24660,1.7999999999999998,{"$f":"P195","v":0},0,0,1,1,0,0,{"$f":"W195","v":4700},0,0,0,30,2,0,0,0,0,0,"Central","2019-09-10","chwo",null,null,{"$f":"AM195","v":"Tech Cat 2019 Update"},2015,"EUR"]
[null,null,"TechLow",{"$error":"#REF!"},null,null,{"$f":"#REF!","v":{"$error":"#REF!"}},{"$f":"#REF!","v":{"$error":"#REF!"}},2050,"NO","Wind",1.0027500000000003,0,24403.5,1.7999999999999998,0,0,0,1,1,0,0,{"$f":"W196","v":4900},0,0,0,30,2,0,0,0,0,0,"Central","2019-09-10","chwo",null,null,"Tech Cat 2019 Update",2015,"EUR"]
[null,null,"TechLow",{"$error":"#REF!"},null,null,{"$f":"#REF!","v":{"$error":"#REF!"}},{"$f":"#REF!","v":{"$error":"#REF!"}},{"$f":"#REF!","v":{"$error":"#REF!"}},{"$f":"#REF!","v":{"$error":"#REF!"}},{"$f":"#REF!","v":{"$error":"#REF!"}},{"$f":"#REF!*(1+$H$439)","v":{"$error":"#REF!"}},{"$f":"#REF!*(1+$H$439)","v":{"$error":"#REF!"}},{"$f":"#REF!*(1+$H$439)","v":{"$error":"#REF!"}},{"$f":"#REF!*(1+$H$439)","v":{"$error":"#REF!"}},{"$f":"#REF!","v":{"$error":"#REF!"}},{"$f":"#REF!","v":{"$error":"#REF!"}},{"$f":"#REF!","v":{"$error":"#REF!"}},{"$f":"#REF!","v":{"$error":"#REF!"}},{"$f":"#REF!","v":{"$error":"#REF!"}},{"$error":"#REF!"},{"$error":"#REF!"},{"$f":"#REF!","v":{"$error":"#REF!"}},{"$f":"#REF!","v":{"$error":"#REF!"}},{"$f":"#REF!","v":{"$error":"#REF!"}},{"$f":"#REF!","v":{"$error":"#REF!"}},{"$f":"#REF!","v":{"$error":"#REF!"}},{"$f":"#REF!","v":{"$error":"#REF!"}},{"$f":"#REF!","v":{"$error":"#REF!"}},{"$f":"#REF!","v":{"$error":"#REF!"}},{"$f":"#REF!","v":{"$error":"#REF!"}},{"$f":"#REF!","v":{"$error":"#REF!"}},{"$f":"#REF!","v":{"$error":"#REF!"}},{"$f":"#REF!","v":{"$error":"#REF!"}},{"$f":"#REF!","v":{"$error":"#REF!"}},{"$f":"#REF!","v":{"$error":"#REF!"}},null,null,{"$f":"#REF!","v":{"$error":"#REF!"}},{"$f":"#REF!","v":{"$error":"#REF!"}},{"$f":"#REF!","v":{"$error":"#REF!"}}]
[null,null,"TechLow",{"$error":"#REF!"},null,null,{"$f":"#REF!","v":{"$error":"#REF!"}},{"$f":"#REF!","v":{"$error":"#REF!"}},{"$f":"#REF!","v":{"$error":"#REF!"}},{"$f":"#REF!","v":{"$error":"#REF!"}},{"$f":"#REF!","v":{"$error":"#REF!"}},{"$f":"#REF!*(1+$H$439)","v":{"$error":"#REF!"}},{"$f":"#REF!*(1+$H$439)","v":{"$error":"#REF!"}},{"$f":"#REF!*(1+$H$439)","v":{"$error":"#REF!"}},{"$f":"#REF!*(1+$H$439)","v":{"$error":"#REF!"}},{"$f":"#REF!","v":{"$error":"#REF!"}},{"$f":"#REF!","v":{"$error":"#REF!"}},{"$f":"#REF!","v":{"$error":"#REF!"}},{"$f":"#REF!","v":{"$error":"#REF!"}},{"$f":"#REF!","v":{"$error":"#REF!"}},{"$error":"#REF!"},{"$error":"#REF!"},{"$f":"#REF!","v":{"$error":"#REF!"}},{"$f":"#REF!","v":{"$error":"#REF!"}},{"$f":"#REF!","v":{"$error":"#REF!"}},{"$f":"#REF!","v":{"$error":"#REF!"}},{"$f":"#REF!","v":{"$error":"#REF!"}},{"$f":"#REF!","v":{"$error":"#REF!"}},{"$f":"#REF!","v":{"$error":"#REF!"}},{"$f":"#REF!","v":{"$error":"#REF!"}},{"$f":"#REF!","v":{"$error":"#REF!"}},{"$f":"#REF!","v":{"$error":"#REF!"}},{"$f":"#REF!","v":{"$error":"#REF!"}},{"$f":"#REF!","v":{"$error":"#REF!"}},{"$f":"#REF!","v":{"$error":"#REF!"}},{"$f":"#REF!","v":{"$error":"#REF!"}},null,null,{"$f":"#REF!","v":{"$error":"#REF!"}},{"$f":"#REF!","v":{"$error":"#REF!"}},{"$f":"#REF!","v":{"$error":"#REF!"}}]
[null,null,"TechLow",{"$error":"#REF!"},null,null,{"$f":"#REF!","v":{"$error":"#REF!"}},{"$f":"#REF!","v":{"$error":"#REF!"}},{"$f":"#REF!","v":{"$error":"#REF!"}},{"$f":"#REF!","v":{"$error":"#REF!"}},{"$f":"#REF!","v":{"$error":"#REF!"}},{"$f":"#REF!*(1+$H$439)","v":{"$error":"#REF!"}},{"$f":"#REF!*(1+$H$439)","v":{"$error":"#REF!"}},{"$f":"#REF!*(1+$H$439)","v":{"$error":"#REF!"}},{"$f":"#REF!*(1+$H$439)","v":{"$error":"#REF!"}},{"$f":"#REF!","v":{"$error":"#REF!"}},{"$f":"#REF!","v":{"$error":"#REF!"}},{"$f":"#REF!","v":{"$error":"#REF!"}},{"$f":"#REF!","v":{"$error":"#REF!"}},{"$f":"#REF!","v":{"$error":"#REF!"}},{"$error":"#REF!"},{"$error":"#REF!"},{"$f":"#REF!","v":{"$error":"#REF!"}},{"$f":"#REF!","v":{"$error":"#REF!"}},{"$f":"#REF!","v":{"$error":"#REF!"}},{"$f":"#REF!","v":{"$error":"#REF!"}},{"$f":"#REF!","v":{"$error":"#REF!"}},{"$f":"#REF!","v":{"$error":"#REF!"}},{"$f":"#REF!","v":{"$error":"#REF!"}},{"$f":"#REF!","v":{"$error":"#REF!"}},{"$f":"#REF!","v":{"$error":"#REF!"}},{"$f":"#REF!","v":{"$error":"#REF!"}},{"$f":"#REF!","v":{"$error":"#REF!"}},{"$f":"#REF!","v":{"$error":"#REF!"}},{"$f":"#REF!","v":{"$error":"#REF!"}},{"$f":"#REF!","v":{"$error":"#REF!"}},null,null,{"$f":"#REF!","v":{"$error":"#REF!"}},{"$f":"#REF!","v":{"$error":"#REF!"}},{"$f":"#REF!","v":{"$error":"#REF!"}}]
[null,null,"TechLow",{"$error":"#REF!"},null,null,{"$f":"#REF!","v":{"$error":"#REF!"}},{"$f":"#REF!","v":{"$error":"#REF!"}},{"$f":"#REF!","v":{"$error":"#REF!"}},{"$f":"#REF!","v":{"$error":"#REF!"}},{"$f":"#REF!","v":{"$error":"#REF!"}},{"$f":"#REF!*(1+$H$439)","v":{"$error":"#REF!"}},{"$f":"#REF!*(1+$H$439)","v":{"$error":"#REF!"}},{"$f":"#REF!*(1+$H$439)","v":{"$error":"#REF!"}},{"$f":"#REF!*(1+$H$439)","v":{"$error":"#REF!"}},{"$f":"#REF!","v":{"$error":"#REF!"}},{"$f":"#REF!","v":{"$error":"#REF!"}},{"$f":"#REF!","v":{"$error":"#REF!"}},{"$f":"#REF!","v":{"$error":"#REF!"}},{"$f":"#REF!","v":{"$error":"#REF!"}},{"$error":"#REF!"},{"$error":"#REF!"},{"$f":"#REF!","v":{"$error":"#REF!"}},{"$f":"#REF!","v":{"$error":"#REF!"}},{"$f":"#REF!","v":{"$error":"#REF!"}},{"$f":"#REF!","v":{"$error":"#REF!"}},{"$f":"#REF!","v":{"$error":"#REF!"}},{"$f":"#REF!","v":{"$error":"#REF!"}},{"$f":"#REF!","v":{"$error":"#REF!"}},{"$f":"#REF!","v":{"$error":"#REF!"}},{"$f":"#REF!","v":{"$error":"#REF!"}},{"$f":"#REF!","v":{"$error":"#REF!"}},{"$f":"#REF!","v":{"$error":"#REF!"}},{"$f":"#REF!","v":{"$error":"#REF!"}},{"$f":"#REF!","v":{"$error":"#REF!"}},{"$f":"#REF!","v":{"$error":"#REF!"}},null,null,{"$f":"#REF!","v":{"$error":"#REF!"}},{"$f":"#REF!","v":{"$error":"#REF!"}},{"$f":"#REF!","v":{"$error":"#REF!"}}]
[null,null,"TechLow",{"$error":"#REF!"},null,null,{"$f":"#REF!","v":{"$error":"#REF!"}},{"$f":"#REF!","v":{"$error":"#REF!"}},{"$f":"#REF!","v":{"$error":"#REF!"}},{"$f":"#REF!","v":{"$error":"#REF!"}},{"$f":"#REF!","v":{"$error":"#REF!"}},{"$f":"#REF!*(1+$H$439)","v":{"$error":"#REF!"}},{"$f":"#REF!*(1+$H$439)","v":{"$error":"#REF!"}},{"$f":"#REF!*(1+$H$439)","v":{"$error":"#REF!"}},{"$f":"#REF!*(1+$H$439)","v":{"$error":"#REF!"}},{"$f":"#REF!","v":{"$error":"#REF!"}},{"$f":"#REF!","v":{"$error":"#REF!"}},{"$f":"#REF!","v":{"$error":"#REF!"}},{"$f":"#REF!","v":{"$error":"#REF!"}},{"$f":"#REF!","v":{"$error":"#REF!"}},{"$error":"#REF!"},{"$error":"#REF!"},{"$f":"#REF!","v":{"$error":"#REF!"}},{"$f":"#REF!","v":{"$error":"#REF!"}},{"$f":"#REF!","v":{"$error":"#REF!"}},{"$f":"#REF!","v":{"$error":"#REF!"}},{"$f":"#REF!","v":{"$error":"#REF!"}},{"$f":"#REF!","v":{"$error":"#REF!"}},{"$f":"#REF!","v":{"$error":"#REF!"}},{"$f":"#REF!","v":{"$error":"#REF!"}},{"$f":"#REF!","v":{"$error":"#REF!"}},{"$f":"#REF!","v":{"$error":"#REF!"}},{"$f":"#REF!","v":{"$error":"#REF!"}},{"$f":"#REF!","v":{"$error":"#REF!"}},{"$f":"#REF!","v":{"$error":"#REF!"}},{"$f":"#REF!","v":{"$error":"#REF!"}},null,null,{"$f":"#REF!","v":{"$error":"#REF!"}},{"$f":"#REF!","v":{"$error":"#REF!"}},{"$f":"#REF!","v":{"$error":"#REF!"}}]
[null,null,"TechLow",{"$error":"#REF!"},null,null,{"$f":"#REF!","v":{"$error":"#REF!"}},{"$f":"#REF!","v":{"$error":"#REF!"}},{"$f":"#REF!","v":{"$error":"#REF!"}},{"$f":"#REF!","v":{"$error":"#REF!"}},{"$f":"#REF!","v":{"$error":"#REF!"}},{"$f":"#REF!*(1+$H$439)","v":{"$error":"#REF!"}},{"$f":"#REF!*(1+$H$439)","v":{"$error":"#REF!"}},{"$f":"#REF!*(1+$H$439)","v":{"$error":"#REF!"}},{"$f":"#REF!*(1+$H$439)","v":{"$error":"#REF!"}},{"$f":"#REF!","v":{"$error":"#REF!"}},{"$f":"#REF!","v":{"$error":"#REF!"}},{"$f":"#REF!","v":{"$error":"#REF!"}},{"$f":"#REF!","v":{"$error":"#REF!"}},{"$f":"#REF!","v":{"$error":"#REF!"}},{"$error":"#REF!"},{"$error":"#REF!"},{"$f":"#REF!","v":{"$error":"#REF!"}},{"$f":"#REF!","v":{"$error":"#REF!"}},{"$f":"#REF!","v":{"$error":"#REF!"}},{"$f":"#REF!","v":{"$error":"#REF!"}},{"$f":"#REF!","v":{"$error":"#REF!"}},{"$f":"#REF!","v":{"$error":"#REF!"}},{"$f":"#REF!","v":{"$error":"#REF!"}},{"$f":"#REF!","v":{"$error":"#REF!"}},{"$f":"#REF!","v":{"$error":"#REF!"}},{"$f":"#REF!","v":{"$error":"#REF!"}},{"$f":"#REF!","v":{"$error":"#REF!"}},{"$f":"#REF!","v":{"$error":"#REF!"}},{"$f":"#REF!","v":{"$error":"#REF!"}},{"$f":"#REF!","v":{"$error":"#REF!"}},null,null,{"$f":"#REF!","v":{"$error":"#REF!"}},{"$f":"#REF!","v":{"$error":"#REF!"}},{"$f":"#REF!","v":{"$error":"#REF!"}}]
[null,null,"TechLow",{"$error":"#REF!"},null,null,{"$f":"#REF!","v":{"$error":"#REF!"}},{"$f":"#REF!","v":{"$error":"#REF!"}},{"$f":"#REF!","v":{"$error":"#REF!"}},{"$f":"#REF!","v":{"$error":"#REF!"}},{"$f":"#REF!","v":{"$error":"#REF!"}},{"$f":"#REF!*(1+$H$439)","v":{"$error":"#REF!"}},{"$f":"#REF!*(1+$H$439)","v":{"$error":"#REF!"}},{"$f":"#REF!*(1+$H$439)","v":{"$error":"#REF!"}},{"$f":"#REF!*(1+$H$439)","v":{"$error":"#REF!"}},{"$f":"#REF!","v":{"$error":"#REF!"}},{"$f":"#REF!","v":{"$error":"#REF!"}},{"$f":"#REF!","v":{"$error":"#REF!"}},{"$f":"#REF!","v":{"$error":"#REF!"}},{"$f":"#REF!","v":{"$error":"#REF!"}},{"$error":"#REF!"},{"$error":"#REF!"},{"$f":"#REF!","v":{"$error":"#REF!"}},{"$f":"#REF!","v":{"$error":"#REF!"}},{"$f":"#REF!","v":{"$error":"#REF!"}},{"$f":"#REF!","v":{"$error":"#REF!"}},{"$f":"#REF!","v":{"$error":"#REF!"}},{"$f":"#REF!","v":{"$error":"#REF!"}},{"$f":"#REF!","v":{"$error":"#REF!"}},{"$f":"#REF!","v":{"$error":"#REF!"}},{"$f":"#REF!","v":{"$error":"#REF!"}},{"$f":"#REF!","v":{"$error":"#REF!"}},{"$f":"#REF!","v":{"$error":"#REF!"}},{"$f":"#REF!","v":{"$error":"#REF!"}},{"$f":"#REF!","v":{"$error":"#REF!"}},{"$f":"#REF!","v":{"$error":"#REF!"}},null,null,{"$f":"#REF!","v":{"$error":"#REF!"}},{"$f":"#REF!","v":{"$error":"#REF!"}},{"$f":"#REF!","v":{"$error":"#REF!"}}]
[null,null,"TechLow",{"$error":"#REF!"},null,null,{"$f":"#REF!","v":{"$error":"#REF!"}},{"$f":"#REF!","v":{"$error":"#REF!"}},{"$f":"#REF!","v":{"$error":"#REF!"}},{"$f":"#REF!","v":{"$error":"#REF!"}},{"$f":"#REF!","v":{"$error":"#REF!"}},{"$f":"#REF!*(1+$H$439)","v":{"$error":"#REF!"}},{"$f":"#REF!*(1+$H$439)","v":{"$error":"#REF!"}},{"$f":"#REF!*(1+$H$439)","v":{"$error":"#REF!"}},{"$f":"#REF!*(1+$H$439)","v":{"$error":"#REF!"}},{"$f":"#REF!","v":{"$error":"#REF!"}},{"$f":"#REF!","v":{"$error":"#REF!"}},{"$f":"#REF!","v":{"$error":"#REF!"}},{"$f":"#REF!","v":{"$error":"#REF!"}},{"$f":"#REF!","v":{"$error":"#REF!"}},{"$error":"#REF!"},{"$error":"#REF!"},{"$f":"#REF!","v":{"$error":"#REF!"}},{"$f":"#REF!","v":{"$error":"#REF!"}},{"$f":"#REF!","v":{"$error":"#REF!"}},{"$f":"#REF!","v":{"$error":"#REF!"}},{"$f":"#REF!","v":{"$error":"#REF!"}},{"$f":"#REF!","v":{"$error":"#REF!"}},{"$f":"#REF!","v":{"$error":"#REF!"}},{"$f":"#REF!","v":{"$error":"#REF!"}},{"$f":"#REF!","v":{"$error":"#REF!"}},{"$f":"#REF!","v":{"$error":"#REF!"}},{"$f":"#REF!","v":{"$error":"#REF!"}},{"$f":"#REF!","v":{"$error":"#REF!"}},{"$f":"#REF!","v":{"$error":"#REF!"}},{"$f":"#REF!","v":{"$error":"#REF!"}},null,null,{"$f":"#REF!","v":{"$error":"#REF!"}},{"$f":"#REF!","v":{"$error":"#REF!"}},{"$f":"#REF!","v":{"$error":"#REF!"}}]
[null,null,"TechLow",{"$error":"#REF!"},null,null,{"$f":"#REF!","v":{"$error":"#REF!"}},{"$f":"#REF!","v":{"$error":"#REF!"}},{"$f":"#REF!","v":{"$error":"#REF!"}},{"$f":"#REF!","v":{"$error":"#REF!"}},{"$f":"#REF!","v":{"$error":"#REF!"}},{"$f":"#REF!*(1+$H$439)","v":{"$error":"#REF!"}},{"$f":"#REF!*(1+$H$439)","v":{"$error":"#REF!"}},{"$f":"#REF!*(1+$H$439)","v":{"$error":"#REF!"}},{"$f":"#REF!*(1+$H$439)","v":{"$error":"#REF!"}},{"$f":"#REF!","v":{"$error":"#REF!"}},{"$f":"#REF!","v":{"$error":"#REF!"}},{"$f":"#REF!","v":{"$error":"#REF!"}},{"$f":"#REF!","v":{"$error":"#REF!"}},{"$f":"#REF!","v":{"$error":"#REF!"}},{"$error":"#REF!"},{"$error":"#REF!"},{"$f":"#REF!","v":{"$error":"#REF!"}},{"$f":"#REF!","v":{"$error":"#REF!"}},{"$f":"#REF!","v":{"$error":"#REF!"}},{"$f":"#REF!","v":{"$error":"#REF!"}},{"$f":"#REF!","v":{"$error":"#REF!"}},{"$f":"#REF!","v":{"$error":"#REF!"}},{"$f":"#REF!","v":{"$error":"#REF!"}},{"$f":"#REF!","v":{"$error":"#REF!"}},{"$f":"#REF!","v":{"$error":"#REF!"}},{"$f":"#REF!","v":{"$error":"#REF!"}},{"$f":"#REF!","v":{"$error":"#REF!"}},{"$f":"#REF!","v":{"$error":"#REF!"}},{"$f":"#REF!","v":{"$error":"#REF!"}},{"$f":"#REF!","v":{"$error":"#REF!"}},null,null,{"$f":"#REF!","v":{"$error":"#REF!"}},{"$f":"#REF!","v":{"$error":"#REF!"}},{"$f":"#REF!","v":{"$error":"#REF!"}}]
[null,null,"TechLow",{"$error":"#REF!"},null,null,{"$f":"#REF!","v":{"$error":"#REF!"}},{"$f":"#REF!","v":{"$error":"#REF!"}},{"$f":"#REF!","v":{"$error":"#REF!"}},{"$f":"#REF!","v":{"$error":"#REF!"}},{"$f":"#REF!","v":{"$error":"#REF!"}},{"$f":"#REF!*(1+$H$439)","v":{"$error":"#REF!"}},{"$f":"#REF!*(1+$H$439)","v":{"$error":"#REF!"}},{"$f":"#REF!*(1+$H$439)","v":{"$error":"#REF!"}},{"$f":"#REF!*(1+$H$439)","v":{"$error":"#REF!"}},{"$f":"#REF!","v":{"$error":"#REF!"}},{"$f":"#REF!","v":{"$error":"#REF!"}},{"$f":"#REF!","v":{"$error":"#REF!"}},{"$f":"#REF!","v":{"$error":"#REF!"}},{"$f":"#REF!","v":{"$error":"#REF!"}},{"$error":"#REF!"},{"$error":"#REF!"},{"$f":"#REF!","v":{"$error":"#REF!"}},{"$f":"#REF!","v":{"$error":"#REF!"}},{"$f":"#REF!","v":{"$error":"#REF!"}},{"$f":"#REF!","v":{"$error":"#REF!"}},{"$f":"#REF!","v":{"$error":"#REF!"}},{"$f":"#REF!","v":{"$error":"#REF!"}},{"$f":"#REF!","v":{"$error":"#REF!"}},{"$f":"#REF!","v":{"$error":"#REF!"}},{"$f":"#REF!","v":{"$error":"#REF!"}},{"$f":"#REF!","v":{"$error":"#REF!"}},{"$f":"#REF!","v":{"$error":"#REF!"}},{"$f":"#REF!","v":{"$error":"#REF!"}},{"$f":"#REF!","v":{"$error":"#REF!"}},{"$f":"#REF!","v":{"$error":"#REF!"}},null,null,{"$f":"#REF!","v":{"$error":"#REF!"}},{"$f":"#REF!","v":{"$error":"#REF!"}},{"$f":"#REF!","v":{"$error":"#REF!"}}]
[null,null,{"$f":"$G$440","v":"TechLow"},{"$f":"C575&\" - \"&G575&\" - \"&I575","v":{"$error":"#REF!"}},null,null,{"$f":"#REF!","v":{"$error":"#REF!"}},{"$f":"#REF!","v":{"$error":"#REF!"}},{"$f":"#REF!","v":{"$error":"#REF!"}},{"$f":"#REF!","v":{"$error":"#REF!"}},{"$f":"#REF!","v":{"$error":"#REF!"}},{"$f":"#REF!*(1+$H$439)","v":{"$error":"#REF!"}},{"$f":"#REF!*(1+$H$439)","v":{"$error":"#REF!"}},{"$f":"#REF!*(1+$H$439)","v":{"$error":"#REF!"}},{"$f":"#REF!*(1+$H$439)","v":{"$error":"#REF!"}},{"$f":"#REF!","v":{"$error":"#REF!"}},{"$f":"#REF!","v":{"$error":"#REF!"}},{"$f":"#REF!","v":{"$error":"#REF!"}},{"$f":"#REF!","v":{"$error":"#REF!"}},{"$f":"#REF!","v":{"$error":"#REF!"}},{"$error":"#REF!"},{"$error":"#REF!"},{"$f":"#REF!","v":{"$error":"#REF!"}},{"$f":"#REF!","v":{"$error":"#REF!"}},{"$f":"#REF!","v":{"$error":"#REF!"}},{"$f":"#REF!","v":{"$error":"#REF!"}},{"$f":"#REF!","v":{"$error":"#REF!"}},{"$f":"#REF!","v":{"$error":"#REF!"}},{"$f":"#REF!","v":{"$error":"#REF!"}},{"$f":"#REF!","v":{"$error":"#REF!"}},{"$f":"#REF!","v":{"$error":"#REF!"}},{"$f":"#REF!","v":{"$error":"#REF!"}},{"$f":"#REF!","v":{"$error":"#REF!"}},{"$f":"#REF!","v":{"$error":"#REF!"}},{"$f":"#REF!","v":{"$error":"#REF!"}},{"$f":"#REF!","v":{"$error":"#REF!"}},null,null,{"$f":"#REF!","v":{"$error":"#REF!"}},{"$f":"#REF!","v":{"$error":"#REF!"}},{"$f":"#REF!","v":{"$error":"#REF!"}}]
[null,null,"TechLow",{"$error":"#REF!"},null,null,{"$f":"#REF!","v":{"$error":"#REF!"}},{"$f":"#REF!","v":{"$error":"#REF!"}},{"$f":"#REF!","v":{"$error":"#REF!"}},{"$f":"#REF!","v":{"$error":"#REF!"}},{"$f":"#REF!","v":{"$error":"#REF!"}},{"$f":"#REF!*(1+$H$439)","v":{"$error":"#REF!"}},{"$f":"#REF!*(1+$H$439)","v":{"$error":"#REF!"}},{"$f":"#REF!*(1+$H$439)","v":{"$error":"#REF!"}},{"$f":"#REF!*(1+$H$439)","v":{"$error":"#REF!"}},{"$f":"#REF!","v":{"$error":"#REF!"}},{"$f":"#REF!","v":{"$error":"#REF!"}},{"$f":"#REF!","v":{"$error":"#REF!"}},{"$f":"#REF!","v":{"$error":"#REF!"}},{"$f":"#REF!","v":{"$error":"#REF!"}},{"$error":"#REF!"},{"$error":"#REF!"},{"$f":"#REF!","v":{"$error":"#REF!"}},{"$f":"#REF!","v":{"$error":"#REF!"}},{"$f":"#REF!","v":{"$error":"#REF!"}},{"$f":"#REF!","v":{"$error":"#REF!"}},{"$f":"#REF!","v":{"$error":"#REF!"}},{"$f":"#REF!","v":{"$error":"#REF!"}},{"$f":"#REF!","v":{"$error":"#REF!"}},{"$f":"#REF!","v":{"$error":"#REF!"}},{"$f":"#REF!","v":{"$error":"#REF!"}},{"$f":"#REF!","v":{"$error":"#REF!"}},{"$f":"#REF!","v":{"$error":"#REF!"}},{"$f":"#REF!","v":{"$error":"#REF!"}},{"$f":"#REF!","v":{"$error":"#REF!"}},{"$f":"#REF!","v":{"$error":"#REF!"}},null,null,{"$f":"#REF!","v":{"$error":"#REF!"}},{"$f":"#REF!","v":{"$error":"#REF!"}},{"$f":"#REF!","v":{"$error":"#REF!"}}]
[null,null,"TechLow",{"$error":"#REF!"},null,null,{"$f":"#REF!","v":{"$error":"#REF!"}},{"$f":"#REF!","v":{"$error":"#REF!"}},{"$f":"#REF!","v":{"$error":"#REF!"}},{"$f":"#REF!","v":{"$error":"#REF!"}},{"$f":"#REF!","v":{"$error":"#REF!"}},{"$f":"#REF!*(1+$H$439)","v":{"$error":"#REF!"}},{"$f":"#REF!*(1+$H$439)","v":{"$error":"#REF!"}},{"$f":"#REF!*(1+$H$439)","v":{"$error":"#REF!"}},{"$f":"#REF!*(1+$H$439)","v":{"$error":"#REF!"}},{"$f":"#REF!","v":{"$error":"#REF!"}},{"$f":"#REF!","v":{"$error":"#REF!"}},{"$f":"#REF!","v":{"$error":"#REF!"}},{"$f":"#REF!","v":{"$error":"#REF!"}},{"$f":"#REF!","v":{"$error":"#REF!"}},{"$error":"#REF!"},{"$error":"#REF!"},{"$f":"#REF!","v":{"$error":"#REF!"}},{"$f":"#REF!","v":{"$error":"#REF!"}},{"$f":"#REF!","v":{"$error":"#REF!"}},{"$f":"#REF!","v":{"$error":"#REF!"}},{"$f":"#REF!","v":{"$error":"#REF!"}},{"$f":"#REF!","v":{"$error":"#REF!"}},{"$f":"#REF!","v":{"$error":"#REF!"}},{"$f":"#REF!","v":{"$error":"#REF!"}},{"$f":"#REF!","v":{"$error":"#REF!"}},{"$f":"#REF!","v":{"$error":"#REF!"}},{"$f":"#REF!","v":{"$error":"#REF!"}},{"$f":"#REF!","v":{"$error":"#REF!"}},{"$f":"#REF!","v":{"$error":"#REF!"}},{"$f":"#REF!","v":{"$error":"#REF!"}},null,null,{"$f":"#REF!","v":{"$error":"#REF!"}},{"$f":"#REF!","v":{"$error":"#REF!"}},{"$f":"#REF!","v":{"$error":"#REF!"}}]
[null,null,"TechLow",{"$error":"#REF!"},null,null,{"$f":"#REF!","v":{"$error":"#REF!"}},{"$f":"#REF!","v":{"$error":"#REF!"}},{"$f":"#REF!","v":{"$error":"#REF!"}},{"$f":"#REF!","v":{"$error":"#REF!"}},{"$f":"#REF!","v":{"$error":"#REF!"}},{"$f":"#REF!*(1+$H$439)","v":{"$error":"#REF!"}},{"$f":"#REF!*(1+$H$439)","v":{"$error":"#REF!"}},{"$f":"#REF!*(1+$H$439)","v":{"$error":"#REF!"}},{"$f":"#REF!*(1+$H$439)","v":{"$error":"#REF!"}},{"$f":"#REF!","v":{"$error":"#REF!"}},{"$f":"#REF!","v":{"$error":"#REF!"}},{"$f":"#REF!","v":{"$error":"#REF!"}},{"$f":"#REF!","v":{"$error":"#REF!"}},{"$f":"#REF!","v":{"$error":"#REF!"}},{"$error":"#REF!"},{"$error":"#REF!"},{"$f":"#REF!","v":{"$error":"#REF!"}},{"$f":"#REF!","v":{"$error":"#REF!"}},{"$f":"#REF!","v":{"$error":"#REF!"}},{"$f":"#REF!","v":{"$error":"#REF!"}},{"$f":"#REF!","v":{"$error":"#REF!"}},{"$f":"#REF!","v":{"$error":"#REF!"}},{"$f":"#REF!","v":{"$error":"#REF!"}},{"$f":"#REF!","v":{"$error":"#REF!"}},{"$f":"#REF!","v":{"$error":"#REF!"}},{"$f":"#REF!","v":{"$error":"#REF!"}},{"$f":"#REF!","v":{"$error":"#REF!"}},{"$f":"#REF!","v":{"$error":"#REF!"}},{"$f":"#REF!","v":{"$error":"#REF!"}},{"$f":"#REF!","v":{"$error":"#REF!"}},null,null,{"$f":"#REF!","v":{"$error":"#REF!"}},{"$f":"#REF!","v":{"$error":"#REF!"}},{"$f":"#REF!","v":{"$error":"#REF!"}}]
[null,null,"TechLow",{"$error":"#REF!"},null,null,{"$f":"#REF!","v":{"$error":"#REF!"}},{"$f":"#REF!","v":{"$error":"#REF!"}},{"$f":"#REF!","v":{"$error":"#REF!"}},{"$f":"#REF!","v":{"$error":"#REF!"}},{"$f":"#REF!","v":{"$error":"#REF!"}},{"$f":"#REF!*(1+$H$439)","v":{"$error":"#REF!"}},{"$f":"#REF!*(1+$H$439)","v":{"$error":"#REF!"}},{"$f":"#REF!*(1+$H$439)","v":{"$error":"#REF!"}},{"$f":"#REF!*(1+$H$439)","v":{"$error":"#REF!"}},{"$f":"#REF!","v":{"$error":"#REF!"}},{"$f":"#REF!","v":{"$error":"#REF!"}},{"$f":"#REF!","v":{"$error":"#REF!"}},{"$f":"#REF!","v":{"$error":"#REF!"}},{"$f":"#REF!","v":{"$error":"#REF!"}},{"$error":"#REF!"},{"$error":"#REF!"},{"$f":"#REF!","v":{"$error":"#REF!"}},{"$f":"#REF!","v":{"$error":"#REF!"}},{"$f":"#REF!","v":{"$error":"#REF!"}},{"$f":"#REF!","v":{"$error":"#REF!"}},{"$f":"#REF!","v":{"$error":"#REF!"}},{"$f":"#REF!","v":{"$error":"#REF!"}},{"$f":"#REF!","v":{"$error":"#REF!"}},{"$f":"#REF!","v":{"$error":"#REF!"}},{"$f":"#REF!","v":{"$error":"#REF!"}},{"$f":"#REF!","v":{"$error":"#REF!"}},{"$f":"#REF!","v":{"$error":"#REF!"}},{"$f":"#REF!","v":{"$error":"#REF!"}},{"$f":"#REF!","v":{"$error":"#REF!"}},{"$f":"#REF!","v":{"$error":"#REF!"}},null,null,{"$f":"#REF!","v":{"$error":"#REF!"}},{"$f":"#REF!","v":{"$error":"#REF!"}},{"$f":"#REF!","v":{"$error":"#REF!"}}]
[null,null,"TechLow",{"$error":"#REF!"},null,null,{"$f":"#REF!","v":{"$error":"#REF!"}},{"$f":"#REF!","v":{"$error":"#REF!"}},{"$f":"#REF!","v":{"$error":"#REF!"}},{"$f":"#REF!","v":{"$error":"#REF!"}},{"$f":"#REF!","v":{"$error":"#REF!"}},{"$f":"#REF!*(1+$H$439)","v":{"$error":"#REF!"}},{"$f":"#REF!*(1+$H$439)","v":{"$error":"#REF!"}},{"$f":"#REF!*(1+$H$439)","v":{"$error":"#REF!"}},{"$f":"#REF!*(1+$H$439)","v":{"$error":"#REF!"}},{"$f":"#REF!","v":{"$error":"#REF!"}},{"$f":"#REF!","v":{"$error":"#REF!"}},{"$f":"#REF!","v":{"$error":"#REF!"}},{"$f":"#REF!","v":{"$error":"#REF!"}},{"$f":"#REF!","v":{"$error":"#REF!"}},{"$error":"#REF!"},{"$error":"#REF!"},{"$f":"#REF!","v":{"$error":"#REF!"}},{"$f":"#REF!","v":{"$error":"#REF!"}},{"$f":"#REF!","v":{"$error":"#REF!"}},{"$f":"#REF!","v":{"$error":"#REF!"}},{"$f":"#REF!","v":{"$error":"#REF!"}},{"$f":"#REF!","v":{"$error":"#REF!"}},{"$f":"#REF!","v":{"$error":"#REF!"}},{"$f":"#REF!","v":{"$error":"#REF!"}},{"$f":"#REF!","v":{"$error":"#REF!"}},{"$f":"#REF!","v":{"$error":"#REF!"}},{"$f":"#REF!","v":{"$error":"#REF!"}},{"$f":"#REF!","v":{"$error":"#REF!"}},{"$f":"#REF!","v":{"$error":"#REF!"}},{"$f":"#REF!","v":{"$error":"#REF!"}},null,null,{"$f":"#REF!","v":{"$error":"#REF!"}},{"$f":"#REF!","v":{"$error":"#REF!"}},{"$f":"#REF!","v":{"$error":"#REF!"}}]
[null,null,"TechLow",{"$error":"#REF!"},null,null,{"$f":"#REF!","v":{"$error":"#REF!"}},{"$f":"#REF!","v":{"$error":"#REF!"}},{"$f":"#REF!","v":{"$error":"#REF!"}},{"$f":"#REF!","v":{"$error":"#REF!"}},{"$f":"#REF!","v":{"$error":"#REF!"}},{"$f":"#REF!*(1+$H$439)","v":{"$error":"#REF!"}},{"$f":"#REF!*(1+$H$439)","v":{"$error":"#REF!"}},{"$f":"#REF!*(1+$H$439)","v":{"$error":"#REF!"}},{"$f":"#REF!*(1+$H$439)","v":{"$error":"#REF!"}},{"$f":"#REF!","v":{"$error":"#REF!"}},{"$f":"#REF!","v":{"$error":"#REF!"}},{"$f":"#REF!","v":{"$error":"#REF!"}},{"$f":"#REF!","v":{"$error":"#REF!"}},{"$f":"#REF!","v":{"$error":"#REF!"}},{"$error":"#REF!"},{"$error":"#REF!"},{"$f":"#REF!","v":{"$error":"#REF!"}},{"$f":"#REF!","v":{"$error":"#REF!"}},{"$f":"#REF!","v":{"$error":"#REF!"}},{"$f":"#REF!","v":{"$error":"#REF!"}},{"$f":"#REF!","v":{"$error":"#REF!"}},{"$f":"#REF!","v":{"$error":"#REF!"}},{"$f":"#REF!","v":{"$error":"#REF!"}},{"$f":"#REF!","v":{"$error":"#REF!"}},{"$f":"#REF!","v":{"$error":"#REF!"}},{"$f":"#REF!","v":{"$error":"#REF!"}},{"$f":"#REF!","v":{"$error":"#REF!"}},{"$f":"#REF!","v":{"$error":"#REF!"}},{"$f":"#REF!","v":{"$error":"#REF!"}},{"$f":"#REF!","v":{"$error":"#REF!"}},null,null,{"$f":"#REF!","v":{"$error":"#REF!"}},{"$f":"#REF!","v":{"$error":"#REF!"}},{"$f":"#REF!","v":{"$error":"#REF!"}}]
[null,null,"TechLow",{"$error":"#REF!"},null,null,{"$f":"#REF!","v":{"$error":"#REF!"}},{"$f":"#REF!","v":{"$error":"#REF!"}},{"$f":"#REF!","v":{"$error":"#REF!"}},{"$f":"#REF!","v":{"$error":"#REF!"}},{"$f":"#REF!","v":{"$error":"#REF!"}},{"$f":"#REF!*(1+$H$439)","v":{"$error":"#REF!"}},{"$f":"#REF!*(1+$H$439)","v":{"$error":"#REF!"}},{"$f":"#REF!*(1+$H$439)","v":{"$error":"#REF!"}},{"$f":"#REF!*(1+$H$439)","v":{"$error":"#REF!"}},{"$f":"#REF!","v":{"$error":"#REF!"}},{"$f":"#REF!","v":{"$error":"#REF!"}},{"$f":"#REF!","v":{"$error":"#REF!"}},{"$f":"#REF!","v":{"$error":"#REF!"}},{"$f":"#REF!","v":{"$error":"#REF!"}},{"$error":"#REF!"},{"$error":"#REF!"},{"$f":"#REF!","v":{"$error":"#REF!"}},{"$f":"#REF!","v":{"$error":"#REF!"}},{"$f":"#REF!","v":{"$error":"#REF!"}},{"$f":"#REF!","v":{"$error":"#REF!"}},{"$f":"#REF!","v":{"$error":"#REF!"}},{"$f":"#REF!","v":{"$error":"#REF!"}},{"$f":"#REF!","v":{"$error":"#REF!"}},{"$f":"#REF!","v":{"$error":"#REF!"}},{"$f":"#REF!","v":{"$error":"#REF!"}},{"$f":"#REF!","v":{"$error":"#REF!"}},{"$f":"#REF!","v":{"$error":"#REF!"}},{"$f":"#REF!","v":{"$error":"#REF!"}},{"$f":"#REF!","v":{"$error":"#REF!"}},{"$f":"#REF!","v":{"$error":"#REF!"}},null,null,{"$f":"#REF!","v":{"$error":"#REF!"}},{"$f":"#REF!","v":{"$error":"#REF!"}},{"$f":"#REF!","v":{"$error":"#REF!"}}]
[null,null,"TechLow",{"$error":"#REF!"},null,null,{"$f":"#REF!","v":{"$error":"#REF!"}},{"$f":"#REF!","v":{"$error":"#REF!"}},{"$f":"#REF!","v":{"$error":"#REF!"}},{"$f":"#REF!","v":{"$error":"#REF!"}},{"$f":"#REF!","v":{"$error":"#REF!"}},{"$f":"#REF!*(1+$H$439)","v":{"$error":"#REF!"}},{"$f":"#REF!*(1+$H$439)","v":{"$error":"#REF!"}},{"$f":"#REF!*(1+$H$439)","v":{"$error":"#REF!"}},{"$f":"#REF!*(1+$H$439)","v":{"$error":"#REF!"}},{"$f":"#REF!","v":{"$error":"#REF!"}},{"$f":"#REF!","v":{"$error":"#REF!"}},{"$f":"#REF!","v":{"$error":"#REF!"}},{"$f":"#REF!","v":{"$error":"#REF!"}},{"$f":"#REF!","v":{"$error":"#REF!"}},{"$error":"#REF!"},{"$error":"#REF!"},{"$f":"#REF!","v":{"$error":"#REF!"}},{"$f":"#REF!","v":{"$error":"#REF!"}},{"$f":"#REF!","v":{"$error":"#REF!"}},{"$f":"#REF!","v":{"$error":"#REF!"}},{"$f":"#REF!","v":{"$error":"#REF!"}},{"$f":"#REF!","v":{"$error":"#REF!"}},{"$f":"#REF!","v":{"$error":"#REF!"}},{"$f":"#REF!","v":{"$error":"#REF!"}},{"$f":"#REF!","v":{"$error":"#REF!"}},{"$f":"#REF!","v":{"$error":"#REF!"}},{"$f":"#REF!","v":{"$error":"#REF!"}},{"$f":"#REF!","v":{"$error":"#REF!"}},{"$f":"#REF!","v":{"$error":"#REF!"}},{"$f":"#REF!","v":{"$error":"#REF!"}},null,null,{"$f":"#REF!","v":{"$error":"#REF!"}},{"$f":"#REF!","v":{"$error":"#REF!"}},{"$f":"#REF!","v":{"$error":"#REF!"}}]
[null,null,"TechLow",{"$error":"#REF!"},null,null,{"$f":"#REF!","v":{"$error":"#REF!"}},{"$f":"#REF!","v":{"$error":"#REF!"}},{"$f":"#REF!","v":{"$error":"#REF!"}},{"$f":"#REF!","v":{"$error":"#REF!"}},{"$f":"#REF!","v":{"$error":"#REF!"}},{"$f":"#REF!*(1+$H$439)","v":{"$error":"#REF!"}},{"$f":"#REF!*(1+$H$439)","v":{"$error":"#REF!"}},{"$f":"#REF!*(1+$H$439)","v":{"$error":"#REF!"}},{"$f":"#REF!*(1+$H$439)","v":{"$error":"#REF!"}},{"$f":"#REF!","v":{"$error":"#REF!"}},{"$f":"#REF!","v":{"$error":"#REF!"}},{"$f":"#REF!","v":{"$error":"#REF!"}},{"$f":"#REF!","v":{"$error":"#REF!"}},{"$f":"#REF!","v":{"$error":"#REF!"}},{"$error":"#REF!"},{"$error":"#REF!"},{"$f":"#REF!","v":{"$error":"#REF!"}},{"$f":"#REF!","v":{"$error":"#REF!"}},{"$f":"#REF!","v":{"$error":"#REF!"}},{"$f":"#REF!","v":{"$error":"#REF!"}},{"$f":"#REF!","v":{"$error":"#REF!"}},{"$f":"#REF!","v":{"$error":"#REF!"}},{"$f":"#REF!","v":{"$error":"#REF!"}},{"$f":"#REF!","v":{"$error":"#REF!"}},{"$f":"#REF!","v":{"$error":"#REF!"}},{"$f":"#REF!","v":{"$error":"#REF!"}},{"$f":"#REF!","v":{"$error":"#REF!"}},{"$f":"#REF!","v":{"$error":"#REF!"}},{"$f":"#REF!","v":{"$error":"#REF!"}},{"$f":"#REF!","v":{"$error":"#REF!"}},null,null,{"$f":"#REF!","v":{"$error":"#REF!"}},{"$f":"#REF!","v":{"$error":"#REF!"}},{"$f":"#REF!","v":{"$error":"#REF!"}}]
[null,null,"TechLow",{"$error":"#REF!"},null,null,{"$f":"#REF!","v":{"$error":"#REF!"}},{"$f":"#REF!","v":{"$error":"#REF!"}},{"$f":"#REF!","v":{"$error":"#REF!"}},{"$f":"#REF!","v":{"$error":"#REF!"}},{"$f":"#REF!","v":{"$error":"#REF!"}},{"$f":"#REF!*(1+$H$439)","v":{"$error":"#REF!"}},{"$f":"#REF!*(1+$H$439)","v":{"$error":"#REF!"}},{"$f":"#REF!*(1+$H$439)","v":{"$error":"#REF!"}},{"$f":"#REF!*(1+$H$439)","v":{"$error":"#REF!"}},{"$f":"#REF!","v":{"$error":"#REF!"}},{"$f":"#REF!","v":{"$error":"#REF!"}},{"$f":"#REF!","v":{"$error":"#REF!"}},{"$f":"#REF!","v":{"$error":"#REF!"}},{"$f":"#REF!","v":{"$error":"#REF!"}},{"$error":"#REF!"},{"$error":"#REF!"},{"$f":"#REF!","v":{"$error":"#REF!"}},{"$f":"#REF!","v":{"$error":"#REF!"}},{"$f":"#REF!","v":{"$error":"#REF!"}},{"$f":"#REF!","v":{"$error":"#REF!"}},{"$f":"#REF!","v":{"$error":"#REF!"}},{"$f":"#REF!","v":{"$error":"#REF!"}},{"$f":"#REF!","v":{"$error":"#REF!"}},{"$f":"#REF!","v":{"$error":"#REF!"}},{"$f":"#REF!","v":{"$error":"#REF!"}},{"$f":"#REF!","v":{"$error":"#REF!"}},{"$f":"#REF!","v":{"$error":"#REF!"}},{"$f":"#REF!","v":{"$error":"#REF!"}},{"$f":"#REF!","v":{"$error":"#REF!"}},{"$f":"#REF!","v":{"$error":"#REF!"}},null,null,{"$f":"#REF!","v":{"$error":"#REF!"}},{"$f":"#REF!","v":{"$error":"#REF!"}},{"$f":"#REF!","v":{"$error":"#REF!"}}]
[null,null,"TechLow",{"$error":"#REF!"},null,null,{"$f":"#REF!","v":{"$error":"#REF!"}},{"$f":"#REF!","v":{"$error":"#REF!"}},{"$f":"#REF!","v":{"$error":"#REF!"}},{"$f":"#REF!","v":{"$error":"#REF!"}},{"$f":"#REF!","v":{"$error":"#REF!"}},{"$f":"#REF!*(1+$H$439)","v":{"$error":"#REF!"}},{"$f":"#REF!*(1+$H$439)","v":{"$error":"#REF!"}},{"$f":"#REF!*(1+$H$439)","v":{"$error":"#REF!"}},{"$f":"#REF!*(1+$H$439)","v":{"$error":"#REF!"}},{"$f":"#REF!","v":{"$error":"#REF!"}},{"$f":"#REF!","v":{"$error":"#REF!"}},{"$f":"#REF!","v":{"$error":"#REF!"}},{"$f":"#REF!","v":{"$error":"#REF!"}},{"$f":"#REF!","v":{"$error":"#REF!"}},{"$error":"#REF!"},{"$error":"#REF!"},{"$f":"#REF!","v":{"$error":"#REF!"}},{"$f":"#REF!","v":{"$error":"#REF!"}},{"$f":"#REF!","v":{"$error":"#REF!"}},{"$f":"#REF!","v":{"$error":"#REF!"}},{"$f":"#REF!","v":{"$error":"#REF!"}},{"$f":"#REF!","v":{"$error":"#REF!"}},{"$f":"#REF!","v":{"$error":"#REF!"}},{"$f":"#REF!","v":{"$error":"#REF!"}},{"$f":"#REF!","v":{"$error":"#REF!"}},{"$f":"#REF!","v":{"$error":"#REF!"}},{"$f":"#REF!","v":{"$error":"#REF!"}},{"$f":"#REF!","v":{"$error":"#REF!"}},{"$f":"#REF!","v":{"$error":"#REF!"}},{"$f":"#REF!","v":{"$error":"#REF!"}},null,null,{"$f":"#REF!","v":{"$error":"#REF!"}},{"$f":"#REF!","v":{"$error":"#REF!"}},{"$f":"#REF!","v":{"$error":"#REF!"}}]
[null,null,"TechLow",{"$error":"#REF!"},null,null,{"$f":"#REF!","v":{"$error":"#REF!"}},{"$f":"#REF!","v":{"$error":"#REF!"}},{"$f":"#REF!","v":{"$error":"#REF!"}},{"$f":"#REF!","v":{"$error":"#REF!"}},{"$f":"#REF!","v":{"$error":"#REF!"}},{"$f":"#REF!*(1+$H$439)","v":{"$error":"#REF!"}},{"$f":"#REF!*(1+$H$439)","v":{"$error":"#REF!"}},{"$f":"#REF!*(1+$H$439)","v":{"$error":"#REF!"}},{"$f":"#REF!*(1+$H$439)","v":{"$error":"#REF!"}},{"$f":"#REF!","v":{"$error":"#REF!"}},{"$f":"#REF!","v":{"$error":"#REF!"}},{"$f":"#REF!","v":{"$error":"#REF!"}},{"$f":"#REF!","v":{"$error":"#REF!"}},{"$f":"#REF!","v":{"$error":"#REF!"}},{"$error":"#REF!"},{"$error":"#REF!"},{"$f":"#REF!","v":{"$error":"#REF!"}},{"$f":"#REF!","v":{"$error":"#REF!"}},{"$f":"#REF!","v":{"$error":"#REF!"}},{"$f":"#REF!","v":{"$error":"#REF!"}},{"$f":"#REF!","v":{"$error":"#REF!"}},{"$f":"#REF!","v":{"$error":"#REF!"}},{"$f":"#REF!","v":{"$error":"#REF!"}},{"$f":"#REF!","v":{"$error":"#REF!"}},{"$f":"#REF!","v":{"$error":"#REF!"}},{"$f":"#REF!","v":{"$error":"#REF!"}},{"$f":"#REF!","v":{"$error":"#REF!"}},{"$f":"#REF!","v":{"$error":"#REF!"}},{"$f":"#REF!","v":{"$error":"#REF!"}},{"$f":"#REF!","v":{"$error":"#REF!"}},null,null,{"$f":"#REF!","v":{"$error":"#REF!"}},{"$f":"#REF!","v":{"$error":"#REF!"}},{"$f":"#REF!","v":{"$error":"#REF!"}}]
[null,null,"TechLow",{"$error":"#REF!"},null,null,{"$f":"#REF!","v":{"$error":"#REF!"}},{"$f":"#REF!","v":{"$error":"#REF!"}},{"$f":"#REF!","v":{"$error":"#REF!"}},{"$f":"#REF!","v":{"$error":"#REF!"}},{"$f":"#REF!","v":{"$error":"#REF!"}},{"$f":"#REF!*(1+$H$439)","v":{"$error":"#REF!"}},{"$f":"#REF!*(1+$H$439)","v":{"$error":"#REF!"}},{"$f":"#REF!*(1+$H$439)","v":{"$error":"#REF!"}},{"$f":"#REF!*(1+$H$439)","v":{"$error":"#REF!"}},{"$f":"#REF!","v":{"$error":"#REF!"}},{"$f":"#REF!","v":{"$error":"#REF!"}},{"$f":"#REF!","v":{"$error":"#REF!"}},{"$f":"#REF!","v":{"$error":"#REF!"}},{"$f":"#REF!","v":{"$error":"#REF!"}},{"$error":"#REF!"},{"$error":"#REF!"},{"$f":"#REF!","v":{"$error":"#REF!"}},{"$f":"#REF!","v":{"$error":"#REF!"}},{"$f":"#REF!","v":{"$error":"#REF!"}},{"$f":"#REF!","v":{"$error":"#REF!"}},{"$f":"#REF!","v":{"$error":"#REF!"}},{"$f":"#REF!","v":{"$error":"#REF!"}},{"$f":"#REF!","v":{"$error":"#REF!"}},{"$f":"#REF!","v":{"$error":"#REF!"}},{"$f":"#REF!","v":{"$error":"#REF!"}},{"$f":"#REF!","v":{"$error":"#REF!"}},{"$f":"#REF!","v":{"$error":"#REF!"}},{"$f":"#REF!","v":{"$error":"#REF!"}},{"$f":"#REF!","v":{"$error":"#REF!"}},{"$f":"#REF!","v":{"$error":"#REF!"}},null,null,{"$f":"#REF!","v":{"$error":"#REF!"}},{"$f":"#REF!","v":{"$error":"#REF!"}},{"$f":"#REF!","v":{"$error":"#REF!"}}]
[null,null,"TechLow",{"$error":"#REF!"},null,null,{"$f":"#REF!","v":{"$error":"#REF!"}},{"$f":"#REF!","v":{"$error":"#REF!"}},{"$f":"#REF!","v":{"$error":"#REF!"}},{"$f":"#REF!","v":{"$error":"#REF!"}},{"$f":"#REF!","v":{"$error":"#REF!"}},{"$f":"#REF!*(1+$H$439)","v":{"$error":"#REF!"}},{"$f":"#REF!*(1+$H$439)","v":{"$error":"#REF!"}},{"$f":"#REF!*(1+$H$439)","v":{"$error":"#REF!"}},{"$f":"#REF!*(1+$H$439)","v":{"$error":"#REF!"}},{"$f":"#REF!","v":{"$error":"#REF!"}},{"$f":"#REF!","v":{"$error":"#REF!"}},{"$f":"#REF!","v":{"$error":"#REF!"}},{"$f":"#REF!","v":{"$error":"#REF!"}},{"$f":"#REF!","v":{"$error":"#REF!"}},{"$error":"#REF!"},{"$error":"#REF!"},{"$f":"#REF!","v":{"$error":"#REF!"}},{"$f":"#REF!","v":{"$error":"#REF!"}},{"$f":"#REF!","v":{"$error":"#REF!"}},{"$f":"#REF!","v":{"$error":"#REF!"}},{"$f":"#REF!","v":{"$error":"#REF!"}},{"$f":"#REF!","v":{"$error":"#REF!"}},{"$f":"#REF!","v":{"$error":"#REF!"}},{"$f":"#REF!","v":{"$error":"#REF!"}},{"$f":"#REF!","v":{"$error":"#REF!"}},{"$f":"#REF!","v":{"$error":"#REF!"}},{"$f":"#REF!","v":{"$error":"#REF!"}},{"$f":"#REF!","v":{"$error":"#REF!"}},{"$f":"#REF!","v":{"$error":"#REF!"}},{"$f":"#REF!","v":{"$error":"#REF!"}},null,null,{"$f":"#REF!","v":{"$error":"#REF!"}},{"$f":"#REF!","v":{"$error":"#REF!"}},{"$f":"#REF!","v":{"$error":"#REF!"}}]
[null,null,"TechLow",{"$error":"#REF!"},null,null,{"$f":"#REF!","v":{"$error":"#REF!"}},{"$f":"#REF!","v":{"$error":"#REF!"}},{"$f":"#REF!","v":{"$error":"#REF!"}},{"$f":"#REF!","v":{"$error":"#REF!"}},{"$f":"#REF!","v":{"$error":"#REF!"}},{"$f":"#REF!*(1+$H$439)","v":{"$error":"#REF!"}},{"$f":"#REF!*(1+$H$439)","v":{"$error":"#REF!"}},{"$f":"#REF!*(1+$H$439)","v":{"$error":"#REF!"}},{"$f":"#REF!*(1+$H$439)","v":{"$error":"#REF!"}},{"$f":"#REF!","v":{"$error":"#REF!"}},{"$f":"#REF!","v":{"$error":"#REF!"}},{"$f":"#REF!","v":{"$error":"#REF!"}},{"$f":"#REF!","v":{"$error":"#REF!"}},{"$f":"#REF!","v":{"$error":"#REF!"}},{"$error":"#REF!"},{"$error":"#REF!"},{"$f":"#REF!","v":{"$error":"#REF!"}},{"$f":"#REF!","v":{"$error":"#REF!"}},{"$f":"#REF!","v":{"$error":"#REF!"}},{"$f":"#REF!","v":{"$error":"#REF!"}},{"$f":"#REF!","v":{"$error":"#REF!"}},{"$f":"#REF!","v":{"$error":"#REF!"}},{"$f":"#REF!","v":{"$error":"#REF!"}},{"$f":"#REF!","v":{"$error":"#REF!"}},{"$f":"#REF!","v":{"$error":"#REF!"}},{"$f":"#REF!","v":{"$error":"#REF!"}},{"$f":"#REF!","v":{"$error":"#REF!"}},{"$f":"#REF!","v":{"$error":"#REF!"}},{"$f":"#REF!","v":{"$error":"#REF!"}},{"$f":"#REF!","v":{"$error":"#REF!"}},null,null,{"$f":"#REF!","v":{"$error":"#REF!"}},{"$f":"#REF!","v":{"$error":"#REF!"}},{"$f":"#REF!","v":{"$error":"#REF!"}}]
[null,null,"TechLow",{"$error":"#REF!"},null,null,{"$f":"#REF!","v":{"$error":"#REF!"}},{"$f":"#REF!","v":{"$error":"#REF!"}},{"$f":"#REF!","v":{"$error":"#REF!"}},{"$f":"#REF!","v":{"$error":"#REF!"}},{"$f":"#REF!","v":{"$error":"#REF!"}},{"$f":"#REF!*(1+$H$439)","v":{"$error":"#REF!"}},{"$f":"#REF!*(1+$H$439)","v":{"$error":"#REF!"}},{"$f":"#REF!*(1+$H$439)","v":{"$error":"#REF!"}},{"$f":"#REF!*(1+$H$439)","v":{"$error":"#REF!"}},{"$f":"#REF!","v":{"$error":"#REF!"}},{"$f":"#REF!","v":{"$error":"#REF!"}},{"$f":"#REF!","v":{"$error":"#REF!"}},{"$f":"#REF!","v":{"$error":"#REF!"}},{"$f":"#REF!","v":{"$error":"#REF!"}},{"$error":"#REF!"},{"$error":"#REF!"},{"$f":"#REF!","v":{"$error":"#REF!"}},{"$f":"#REF!","v":{"$error":"#REF!"}},{"$f":"#REF!","v":{"$error":"#REF!"}},{"$f":"#REF!","v":{"$error":"#REF!"}},{"$f":"#REF!","v":{"$error":"#REF!"}},{"$f":"#REF!","v":{"$error":"#REF!"}},{"$f":"#REF!","v":{"$error":"#REF!"}},{"$f":"#REF!","v":{"$error":"#REF!"}},{"$f":"#REF!","v":{"$error":"#REF!"}},{"$f":"#REF!","v":{"$error":"#REF!"}},{"$f":"#REF!","v":{"$error":"#REF!"}},{"$f":"#REF!","v":{"$error":"#REF!"}},{"$f":"#REF!","v":{"$error":"#REF!"}},{"$f":"#REF!","v":{"$error":"#REF!"}},null,null,{"$f":"#REF!","v":{"$error":"#REF!"}},{"$f":"#REF!","v":{"$error":"#REF!"}},{"$f":"#REF!","v":{"$error":"#REF!"}}]
[null,null,"TechLow",{"$error":"#REF!"},null,null,{"$f":"#REF!","v":{"$error":"#REF!"}},{"$f":"#REF!","v":{"$error":"#REF!"}},{"$f":"#REF!","v":{"$error":"#REF!"}},{"$f":"#REF!","v":{"$error":"#REF!"}},{"$f":"#REF!","v":{"$error":"#REF!"}},{"$f":"#REF!*(1+$H$439)","v":{"$error":"#REF!"}},{"$f":"#REF!*(1+$H$439)","v":{"$error":"#REF!"}},{"$f":"#REF!*(1+$H$439)","v":{"$error":"#REF!"}},{"$f":"#REF!*(1+$H$439)","v":{"$error":"#REF!"}},{"$f":"#REF!","v":{"$error":"#REF!"}},{"$f":"#REF!","v":{"$error":"#REF!"}},{"$f":"#REF!","v":{"$error":"#REF!"}},{"$f":"#REF!","v":{"$error":"#REF!"}},{"$f":"#REF!","v":{"$error":"#REF!"}},{"$error":"#REF!"},{"$error":"#REF!"},{"$f":"#REF!","v":{"$error":"#REF!"}},{"$f":"#REF!","v":{"$error":"#REF!"}},{"$f":"#REF!","v":{"$error":"#REF!"}},{"$f":"#REF!","v":{"$error":"#REF!"}},{"$f":"#REF!","v":{"$error":"#REF!"}},{"$f":"#REF!","v":{"$error":"#REF!"}},{"$f":"#REF!","v":{"$error":"#REF!"}},{"$f":"#REF!","v":{"$error":"#REF!"}},{"$f":"#REF!","v":{"$error":"#REF!"}},{"$f":"#REF!","v":{"$error":"#REF!"}},{"$f":"#REF!","v":{"$error":"#REF!"}},{"$f":"#REF!","v":{"$error":"#REF!"}},{"$f":"#REF!","v":{"$error":"#REF!"}},{"$f":"#REF!","v":{"$error":"#REF!"}},null,null,{"$f":"#REF!","v":{"$error":"#REF!"}},{"$f":"#REF!","v":{"$error":"#REF!"}},{"$f":"#REF!","v":{"$error":"#REF!"}}]
[null,null,"TechLow",{"$error":"#REF!"},null,null,{"$f":"#REF!","v":{"$error":"#REF!"}},{"$f":"#REF!","v":{"$error":"#REF!"}},{"$f":"#REF!","v":{"$error":"#REF!"}},{"$f":"#REF!","v":{"$error":"#REF!"}},{"$f":"#REF!","v":{"$error":"#REF!"}},{"$f":"#REF!*(1+$H$439)","v":{"$error":"#REF!"}},{"$f":"#REF!*(1+$H$439)","v":{"$error":"#REF!"}},{"$f":"#REF!*(1+$H$439)","v":{"$error":"#REF!"}},{"$f":"#REF!*(1+$H$439)","v":{"$error":"#REF!"}},{"$f":"#REF!","v":{"$error":"#REF!"}},{"$f":"#REF!","v":{"$error":"#REF!"}},{"$f":"#REF!","v":{"$error":"#REF!"}},{"$f":"#REF!","v":{"$error":"#REF!"}},{"$f":"#REF!","v":{"$error":"#REF!"}},{"$error":"#REF!"},{"$error":"#REF!"},{"$f":"#REF!","v":{"$error":"#REF!"}},{"$f":"#REF!","v":{"$error":"#REF!"}},{"$f":"#REF!","v":{"$error":"#REF!"}},{"$f":"#REF!","v":{"$error":"#REF!"}},{"$f":"#REF!","v":{"$error":"#REF!"}},{"$f":"#REF!","v":{"$error":"#REF!"}},{"$f":"#REF!","v":{"$error":"#REF!"}},{"$f":"#REF!","v":{"$error":"#REF!"}},{"$f":"#REF!","v":{"$error":"#REF!"}},{"$f":"#REF!","v":{"$error":"#REF!"}},{"$f":"#REF!","v":{"$error":"#REF!"}},{"$f":"#REF!","v":{"$error":"#REF!"}},{"$f":"#REF!","v":{"$error":"#REF!"}},{"$f":"#REF!","v":{"$error":"#REF!"}},null,null,{"$f":"#REF!","v":{"$error":"#REF!"}},{"$f":"#REF!","v":{"$error":"#REF!"}},{"$f":"#REF!","v":{"$error":"#REF!"}}]
[null,null,"TechLow",{"$error":"#REF!"},null,null,{"$f":"G277","v":"25WIN_OF_in Offshore wind incl. Grid"},"21 Wind Turbines Offshore, Tech Kat Update 2022",{"$f":"#REF!","v":{"$error":"#REF!"}},{"$f":"#REF!","v":{"$error":"#REF!"}},{"$f":"#REF!","v":{"$error":"#REF!"}},{"$f":"#REF!*(1+$H$439)","v":{"$error":"#REF!"}},{"$f":"#REF!*(1+$H$439)","v":{"$error":"#REF!"}},{"$f":"#REF!*(1+$H$439)","v":{"$error":"#REF!"}},{"$f":"#REF!*(1+$H$439)","v":{"$error":"#REF!"}},{"$f":"#REF!","v":{"$error":"#REF!"}},{"$f":"#REF!","v":{"$error":"#REF!"}},{"$f":"#REF!","v":{"$error":"#REF!"}},{"$f":"#REF!","v":{"$error":"#REF!"}},{"$f":"#REF!","v":{"$error":"#REF!"}},{"$error":"#REF!"},{"$error":"#REF!"},{"$f":"#REF!","v":{"$error":"#REF!"}},{"$f":"#REF!","v":{"$error":"#REF!"}},{"$f":"#REF!","v":{"$error":"#REF!"}},{"$f":"#REF!","v":{"$error":"#REF!"}},{"$f":"#REF!","v":{"$error":"#REF!"}},{"$f":"#REF!","v":{"$error":"#REF!"}},{"$f":"#REF!","v":{"$error":"#REF!"}},{"$f":"#REF!","v":{"$error":"#REF!"}},{"$f":"#REF!","v":{"$error":"#REF!"}},{"$f":"#REF!","v":{"$error":"#REF!"}},{"$f":"#REF!","v":{"$error":"#REF!"}},{"$f":"#REF!","v":{"$error":"#REF!"}},{"$f":"#REF!","v":{"$error":"#REF!"}},{"$f":"#REF!","v":{"$error":"#REF!"}},null,null,{"$f":"#REF!","v":{"$error":"#REF!"}},{"$f":"#REF!","v":{"$error":"#REF!"}},{"$f":"#REF!","v":{"$error":"#REF!"}}]
[null,null,"TechLow","TechLow - 22WIN_OF_in Offshore wind incl. Grid - 2020",null,null,"22WIN_OF_in Offshore wind incl. Grid","21 Wind Turbines Offshore, Tech Kat Update 2022",{"$f":"I277","v":2020},"NO","Wind",{"$f":"L277*(1+$H$439)","v":1.3094578439659685},0.27749999999999997,37500,3.75,{"$f":"P277","v":0},0,0,1,1,0,0,{"$f":"W277","v":4400},0,0,0,27,2.5,0,0,0,0,0,"Central",44623,"chwo",null,null,{"$f":"AM277","v":"Tech Cat 2022 Update"},2020,"EUR"]
[null,null,"TechLow","TechLow - 22WIN_OF_in Offshore wind incl. Grid - 2025",null,null,"22WIN_OF_in Offshore wind incl. Grid","21 Wind Turbines Offshore, Tech Kat Update 2022",2025,"NO","Wind",1.1470962857191025,0.26567820394058761,31500,3.1274999999999999,0,0,0,1,1,0,0,{"$f":"W278","v":4775},0,0,0,30,2.5,0,0,0,0,0,"Central",44623,"chwo",null,null,"Tech Cat 2022 Update",2020,"EUR"]
[null,null,"TechLow","TechLow - 22WIN_OF_in Offshore wind incl. Grid - 2030",null,null,"22WIN_OF_in Offshore wind incl. Grid","21 Wind Turbines Offshore, Tech Kat Update 2022",2030,"NO","Wind",1.0808693423356748,0.26567037894662776,29250,2.9175,0,0,0,1,1,{"$f":"IF(R597=0,0,R597*T597/(R597+Q597))","v":0},{"$f":"IF(R597=0,0,T597/(R597+Q597))","v":0},{"$f":"W279","v":4800},0,0,0,30,2.5,0,0,0,0,0,"Central",44623,"chwo",null,null,"Tech Cat 2022 Update",2020,"EUR"]
[null,null,"TechLow","TechLow - 22WIN_OF_in Offshore wind incl. Grid - 2040",null,null,"22WIN_OF_in Offshore wind incl. Grid","21 Wind Turbines Offshore, Tech Kat Update 2022",2040,"NO","Wind",0.98387430340699344,0.2734332711193232,25500,2.5649999999999999,0,0,0,1,1,0,0,{"$f":"W280","v":4850},0,0,0,30,2.5,0,0,0,0,0,"Central",44623,"chwo",null,null,"Tech Cat 2022 Update",2020,"EUR"]
[null,null,"TechLow",{"$error":"#REF!"},null,null,{"$f":"#REF!","v":{"$error":"#REF!"}},{"$f":"#REF!","v":{"$error":"#REF!"}},2050,"NO","Wind",0.94472496053935862,0.28733278689636332,24750,2.4375,0,0,0,1,1,0,0,{"$f":"W281","v":4900},0,0,0,30,2,0,0,0,0,0,"Central",44623,"chwo",null,null,"Tech Cat 2022 Update",2020,"EUR"]
[null,null,"TechLow",{"$error":"#REF!"},null,null,{"$f":"#REF!","v":{"$error":"#REF!"}},{"$f":"#REF!","v":{"$error":"#REF!"}},{"$f":"#REF!","v":{"$error":"#REF!"}},{"$f":"#REF!","v":{"$error":"#REF!"}},{"$f":"#REF!","v":{"$error":"#REF!"}},{"$f":"#REF!*(1+$H$439)","v":{"$error":"#REF!"}},{"$f":"#REF!*(1+$H$439)","v":{"$error":"#REF!"}},{"$f":"#REF!*(1+$H$439)","v":{"$error":"#REF!"}},{"$f":"#REF!*(1+$H$439)","v":{"$error":"#REF!"}},{"$f":"#REF!","v":{"$error":"#REF!"}},{"$f":"#REF!","v":{"$error":"#REF!"}},{"$f":"#REF!","v":{"$error":"#REF!"}},{"$f":"#REF!","v":{"$error":"#REF!"}},{"$f":"#REF!","v":{"$error":"#REF!"}},{"$error":"#REF!"},{"$error":"#REF!"},{"$f":"#REF!","v":{"$error":"#REF!"}},{"$f":"#REF!","v":{"$error":"#REF!"}},{"$f":"#REF!","v":{"$error":"#REF!"}},{"$f":"#REF!","v":{"$error":"#REF!"}},{"$f":"#REF!","v":{"$error":"#REF!"}},{"$f":"#REF!","v":{"$error":"#REF!"}},{"$f":"#REF!","v":{"$error":"#REF!"}},{"$f":"#REF!","v":{"$error":"#REF!"}},{"$f":"#REF!","v":{"$error":"#REF!"}},{"$f":"#REF!","v":{"$error":"#REF!"}},{"$f":"#REF!","v":{"$error":"#REF!"}},{"$f":"#REF!","v":{"$error":"#REF!"}},{"$f":"#REF!","v":{"$error":"#REF!"}},{"$f":"#REF!","v":{"$error":"#REF!"}},null,null,{"$f":"#REF!","v":{"$error":"#REF!"}},{"$f":"#REF!","v":{"$error":"#REF!"}},{"$f":"#REF!","v":{"$error":"#REF!"}}]
[null,null,"TechLow",{"$error":"#REF!"},null,null,{"$f":"#REF!","v":{"$error":"#REF!"}},{"$f":"#REF!","v":{"$error":"#REF!"}},{"$f":"#REF!","v":{"$error":"#REF!"}},{"$f":"#REF!","v":{"$error":"#REF!"}},{"$f":"#REF!","v":{"$error":"#REF!"}},{"$f":"#REF!*(1+$H$439)","v":{"$error":"#REF!"}},{"$f":"#REF!*(1+$H$439)","v":{"$error":"#REF!"}},{"$f":"#REF!*(1+$H$439)","v":{"$error":"#REF!"}},{"$f":"#REF!*(1+$H$439)","v":{"$error":"#REF!"}},{"$f":"#REF!","v":{"$error":"#REF!"}},{"$f":"#REF!","v":{"$error":"#REF!"}},{"$f":"#REF!","v":{"$error":"#REF!"}},{"$f":"#REF!","v":{"$error":"#REF!"}},{"$f":"#REF!","v":{"$error":"#REF!"}},{"$error":"#REF!"},{"$error":"#REF!"},{"$f":"#REF!","v":{"$error":"#REF!"}},{"$f":"#REF!","v":{"$error":"#REF!"}},{"$f":"#REF!","v":{"$error":"#REF!"}},{"$f":"#REF!","v":{"$error":"#REF!"}},{"$f":"#REF!","v":{"$error":"#REF!"}},{"$f":"#REF!","v":{"$error":"#REF!"}},{"$f":"#REF!","v":{"$error":"#REF!"}},{"$f":"#REF!","v":{"$error":"#REF!"}},{"$f":"#REF!","v":{"$error":"#REF!"}},{"$f":"#REF!","v":{"$error":"#REF!"}},{"$f":"#REF!","v":{"$error":"#REF!"}},{"$f":"#REF!","v":{"$error":"#REF!"}},{"$f":"#REF!","v":{"$error":"#REF!"}},{"$f":"#REF!","v":{"$error":"#REF!"}},null,null,{"$f":"#REF!","v":{"$error":"#REF!"}},{"$f":"#REF!","v":{"$error":"#REF!"}},{"$f":"#REF!","v":{"$error":"#REF!"}}]
[null,null,"TechLow",{"$error":"#REF!"},null,null,{"$f":"#REF!","v":{"$error":"#REF!"}},{"$f":"#REF!","v":{"$error":"#REF!"}},{"$f":"#REF!","v":{"$error":"#REF!"}},{"$f":"#REF!","v":{"$error":"#REF!"}},{"$f":"#REF!","v":{"$error":"#REF!"}},{"$f":"#REF!*(1+$H$439)","v":{"$error":"#REF!"}},{"$f":"#REF!*(1+$H$439)","v":{"$error":"#REF!"}},{"$f":"#REF!*(1+$H$439)","v":{"$error":"#REF!"}},{"$f":"#REF!*(1+$H$439)","v":{"$error":"#REF!"}},{"$f":"#REF!","v":{"$error":"#REF!"}},{"$f":"#REF!","v":{"$error":"#REF!"}},{"$f":"#REF!","v":{"$error":"#REF!"}},{"$f":"#REF!","v":{"$error":"#REF!"}},{"$f":"#REF!","v":{"$error":"#REF!"}},{"$error":"#REF!"},{"$error":"#REF!"},{"$f":"#REF!","v":{"$error":"#REF!"}},{"$f":"#REF!","v":{"$error":"#REF!"}},{"$f":"#REF!","v":{"$error":"#REF!"}},{"$f":"#REF!","v":{"$error":"#REF!"}},{"$f":"#REF!","v":{"$error":"#REF!"}},{"$f":"#REF!","v":{"$error":"#REF!"}},{"$f":"#REF!","v":{"$error":"#REF!"}},{"$f":"#REF!","v":{"$error":"#REF!"}},{"$f":"#REF!","v":{"$error":"#REF!"}},{"$f":"#REF!","v":{"$error":"#REF!"}},{"$f":"#REF!","v":{"$error":"#REF!"}},{"$f":"#REF!","v":{"$error":"#REF!"}},{"$f":"#REF!","v":{"$error":"#REF!"}},{"$f":"#REF!","v":{"$error":"#REF!"}},null,null,{"$f":"#REF!","v":{"$error":"#REF!"}},{"$f":"#REF!","v":{"$error":"#REF!"}},{"$f":"#REF!","v":{"$error":"#REF!"}}]
[null,null,"TechLow",{"$error":"#REF!"},null,null,{"$f":"#REF!","v":{"$error":"#REF!"}},{"$f":"#REF!","v":{"$error":"#REF!"}},{"$f":"#REF!","v":{"$error":"#REF!"}},{"$f":"#REF!","v":{"$error":"#REF!"}},{"$f":"#REF!","v":{"$error":"#REF!"}},{"$f":"#REF!*(1+$H$439)","v":{"$error":"#REF!"}},{"$f":"#REF!*(1+$H$439)","v":{"$error":"#REF!"}},{"$f":"#REF!*(1+$H$439)","v":{"$error":"#REF!"}},{"$f":"#REF!*(1+$H$439)","v":{"$error":"#REF!"}},{"$f":"#REF!","v":{"$error":"#REF!"}},{"$f":"#REF!","v":{"$error":"#REF!"}},{"$f":"#REF!","v":{"$error":"#REF!"}},{"$f":"#REF!","v":{"$error":"#REF!"}},{"$f":"#REF!","v":{"$error":"#REF!"}},{"$error":"#REF!"},{"$error":"#REF!"},{"$f":"#REF!","v":{"$error":"#REF!"}},{"$f":"#REF!","v":{"$error":"#REF!"}},{"$f":"#REF!","v":{"$error":"#REF!"}},{"$f":"#REF!","v":{"$error":"#REF!"}},{"$f":"#REF!","v":{"$error":"#REF!"}},{"$f":"#REF!","v":{"$error":"#REF!"}},{"$f":"#REF!","v":{"$error":"#REF!"}},{"$f":"#REF!","v":{"$error":"#REF!"}},{"$f":"#REF!","v":{"$error":"#REF!"}},{"$f":"#REF!","v":{"$error":"#REF!"}},{"$f":"#REF!","v":{"$error":"#REF!"}},{"$f":"#REF!","v":{"$error":"#REF!"}},{"$f":"#REF!","v":{"$error":"#REF!"}},{"$f":"#REF!","v":{"$error":"#REF!"}},null,null,{"$f":"#REF!","v":{"$error":"#REF!"}},{"$f":"#REF!","v":{"$error":"#REF!"}},{"$f":"#REF!","v":{"$error":"#REF!"}}]
[null,null,"TechLow",{"$error":"#REF!"},null,null,{"$f":"G282","v":"22WIN_NS_ex Nearshore wind incl. Grid"},"21 Wind Turbines Nearshore, Tech Kat Update 2022",{"$f":"#REF!","v":{"$error":"#REF!"}},{"$f":"#REF!","v":{"$error":"#REF!"}},{"$f":"#REF!","v":{"$error":"#REF!"}},{"$f":"#REF!*(1+$H$439)","v":{"$error":"#REF!"}},{"$f":"#REF!*(1+$H$439)","v":{"$error":"#REF!"}},{"$f":"#REF!*(1+$H$439)","v":{"$error":"#REF!"}},{"$f":"#REF!*(1+$H$439)","v":{"$error":"#REF!"}},{"$f":"#REF!","v":{"$error":"#REF!"}},{"$f":"#REF!","v":{"$error":"#REF!"}},{"$f":"#REF!","v":{"$error":"#REF!"}},{"$f":"#REF!","v":{"$error":"#REF!"}},{"$f":"#REF!","v":{"$error":"#REF!"}},{"$error":"#REF!"},{"$error":"#REF!"},{"$f":"#REF!","v":{"$error":"#REF!"}},{"$f":"#REF!","v":{"$error":"#REF!"}},{"$f":"#REF!","v":{"$error":"#REF!"}},{"$f":"#REF!","v":{"$error":"#REF!"}},{"$f":"#REF!","v":{"$error":"#REF!"}},{"$f":"#REF!","v":{"$error":"#REF!"}},{"$f":"#REF!","v":{"$error":"#REF!"}},{"$f":"#REF!","v":{"$error":"#REF!"}},{"$f":"#REF!","v":{"$error":"#REF!"}},{"$f":"#REF!","v":{"$error":"#REF!"}},{"$f":"#REF!","v":{"$error":"#REF!"}},{"$f":"#REF!","v":{"$error":"#REF!"}},{"$f":"#REF!","v":{"$error":"#REF!"}},{"$f":"#REF!","v":{"$error":"#REF!"}},null,null,{"$f":"#REF!","v":{"$error":"#REF!"}},{"$f":"#REF!","v":{"$error":"#REF!"}},{"$f":"#REF!","v":{"$error":"#REF!"}}]
[null,null,"TechLow","TechLow - 22WIN_NS_ex Nearshore wind incl. Grid - 2020",null,null,"22WIN_NS_ex Nearshore wind incl. Grid","21 Wind Turbines Nearshore, Tech Kat Update 2022",{"$f":"I282","v":2020},"NO","Wind",{"$f":"L282*(1+$H$439)","v":1.2164020788759393},5.8499999999999996E-2,37500,3.75,{"$f":"P282","v":0},0,0,1,1,0,0,{"$f":"W282","v":4100},0,0,0,27,2.5,0,0,0,0,0,"Central",44623,"chwo",null,null,{"$f":"AM282","v":"Tech Cat 2022 Update"},2020,"EUR"]
[null,null,"TechLow","TechLow - 22WIN_NS_ex Nearshore wind incl. Grid - 2025",null,null,"22WIN_NS_ex Nearshore wind incl. Grid","21 Wind Turbines Nearshore, Tech Kat Update 2022",2025,"NO","Wind",1.0608350917024341,5.5172789955713078E-2,31500,3.1274999999999999,0,0,0,1,1,0,0,{"$f":"W283","v":4325},0,0,0,30,2.5,0,0,0,0,0,"Central",44623,"chwo",null,null,"Tech Cat 2022 Update",2020,"EUR"]
[null,null,"TechLow","TechLow - 22WIN_NS_ex Nearshore wind incl. Grid - 2030",null,null,"22WIN_NS_ex Nearshore wind incl. Grid","21 Wind Turbines Nearshore, Tech Kat Update 2022",2030,"NO","Wind",0.98430531440930713,5.396429572353377E-2,29250,2.9175,0,0,0,1,1,0,0,{"$f":"W284","v":4450},0,0,0,30,2.5,0,0,0,0,0,"Central",44623,"chwo",null,null,"Tech Cat 2022 Update",2020,"EUR"]
[null,null,"TechLow","TechLow - 22WIN_NS_ex Nearshore wind incl. Grid - 2040",null,null,"22WIN_NS_ex Nearshore wind incl. Grid","21 Wind Turbines Nearshore, Tech Kat Update 2022",2040,"NO","Wind",0.87705085896967683,5.1766493075988379E-2,25500,2.5649999999999999,0,0,0,1,1,0,0,{"$f":"W285","v":4450},0,0,0,30,2.5,0,0,0,0,0,"Central",44623,"chwo",null,null,"Tech Cat 2022 Update",2020,"EUR"]
[null,null,"TechLow",{"$error":"#REF!"},null,null,{"$f":"#REF!","v":{"$error":"#REF!"}},{"$f":"#REF!","v":{"$error":"#REF!"}},2050,"NO","Wind",0.83846704337930555,5.0936266767991664E-2,24750,2.4375,0,0,0,1,1,0,0,{"$f":"W286","v":4450},0,0,0,30,2,0,0,0,0,0,"Central",44623,"chwo",null,null,"Tech Cat 2022 Update",2020,"EUR"]
[null,null,"TechLow",{"$error":"#REF!"},null,null,{"$f":"#REF!","v":{"$error":"#REF!"}},{"$f":"#REF!","v":{"$error":"#REF!"}},{"$f":"#REF!","v":{"$error":"#REF!"}},{"$f":"#REF!","v":{"$error":"#REF!"}},{"$f":"#REF!","v":{"$error":"#REF!"}},{"$f":"#REF!*(1+$H$439)","v":{"$error":"#REF!"}},{"$f":"#REF!*(1+$H$439)","v":{"$error":"#REF!"}},{"$f":"#REF!*(1+$H$439)","v":{"$error":"#REF!"}},{"$f":"#REF!*(1+$H$439)","v":{"$error":"#REF!"}},{"$f":"#REF!","v":{"$error":"#REF!"}},{"$f":"#REF!","v":{"$error":"#REF!"}},{"$f":"#REF!","v":{"$error":"#REF!"}},{"$f":"#REF!","v":{"$error":"#REF!"}},{"$f":"#REF!","v":{"$error":"#REF!"}},{"$error":"#REF!"},{"$error":"#REF!"},{"$f":"#REF!","v":{"$error":"#REF!"}},{"$f":"#REF!","v":{"$error":"#REF!"}},{"$f":"#REF!","v":{"$error":"#REF!"}},{"$f":"#REF!","v":{"$error":"#REF!"}},{"$f":"#REF!","v":{"$error":"#REF!"}},{"$f":"#REF!","v":{"$error":"#REF!"}},{"$f":"#REF!","v":{"$error":"#REF!"}},{"$f":"#REF!","v":{"$error":"#REF!"}},{"$f":"#REF!","v":{"$error":"#REF!"}},{"$f":"#REF!","v":{"$error":"#REF!"}},{"$f":"#REF!","v":{"$error":"#REF!"}},{"$f":"#REF!","v":{"$error":"#REF!"}},{"$f":"#REF!","v":{"$error":"#REF!"}},{"$f":"#REF!","v":{"$error":"#REF!"}},null,null,{"$f":"#REF!","v":{"$error":"#REF!"}},{"$f":"#REF!","v":{"$error":"#REF!"}},{"$f":"#REF!","v":{"$error":"#REF!"}}]
[null,null,"TechLow",{"$error":"#REF!"},null,null,{"$f":"#REF!","v":{"$error":"#REF!"}},{"$f":"#REF!","v":{"$error":"#REF!"}},{"$f":"#REF!","v":{"$error":"#REF!"}},{"$f":"#REF!","v":{"$error":"#REF!"}},{"$f":"#REF!","v":{"$error":"#REF!"}},{"$f":"#REF!*(1+$H$439)","v":{"$error":"#REF!"}},{"$f":"#REF!*(1+$H$439)","v":{"$error":"#REF!"}},{"$f":"#REF!*(1+$H$439)","v":{"$error":"#REF!"}},{"$f":"#REF!*(1+$H$439)","v":{"$error":"#REF!"}},{"$f":"#REF!","v":{"$error":"#REF!"}},{"$f":"#REF!","v":{"$error":"#REF!"}},{"$f":"#REF!","v":{"$error":"#REF!"}},{"$f":"#REF!","v":{"$error":"#REF!"}},{"$f":"#REF!","v":{"$error":"#REF!"}},{"$error":"#REF!"},{"$error":"#REF!"},{"$f":"#REF!","v":{"$error":"#REF!"}},{"$f":"#REF!","v":{"$error":"#REF!"}},{"$f":"#REF!","v":{"$error":"#REF!"}},{"$f":"#REF!","v":{"$error":"#REF!"}},{"$f":"#REF!","v":{"$error":"#REF!"}},{"$f":"#REF!","v":{"$error":"#REF!"}},{"$f":"#REF!","v":{"$error":"#REF!"}},{"$f":"#REF!","v":{"$error":"#REF!"}},{"$f":"#REF!","v":{"$error":"#REF!"}},{"$f":"#REF!","v":{"$error":"#REF!"}},{"$f":"#REF!","v":{"$error":"#REF!"}},{"$f":"#REF!","v":{"$error":"#REF!"}},{"$f":"#REF!","v":{"$error":"#REF!"}},{"$f":"#REF!","v":{"$error":"#REF!"}},null,null,{"$f":"#REF!","v":{"$error":"#REF!"}},{"$f":"#REF!","v":{"$error":"#REF!"}},{"$f":"#REF!","v":{"$error":"#REF!"}}]
[null,null,"TechLow",{"$error":"#REF!"},null,null,{"$f":"#REF!","v":{"$error":"#REF!"}},{"$f":"#REF!","v":{"$error":"#REF!"}},{"$f":"#REF!","v":{"$error":"#REF!"}},{"$f":"#REF!","v":{"$error":"#REF!"}},{"$f":"#REF!","v":{"$error":"#REF!"}},{"$f":"#REF!*(1+$H$439)","v":{"$error":"#REF!"}},{"$f":"#REF!*(1+$H$439)","v":{"$error":"#REF!"}},{"$f":"#REF!*(1+$H$439)","v":{"$error":"#REF!"}},{"$f":"#REF!*(1+$H$439)","v":{"$error":"#REF!"}},{"$f":"#REF!","v":{"$error":"#REF!"}},{"$f":"#REF!","v":{"$error":"#REF!"}},{"$f":"#REF!","v":{"$error":"#REF!"}},{"$f":"#REF!","v":{"$error":"#REF!"}},{"$f":"#REF!","v":{"$error":"#REF!"}},{"$error":"#REF!"},{"$error":"#REF!"},{"$f":"#REF!","v":{"$error":"#REF!"}},{"$f":"#REF!","v":{"$error":"#REF!"}},{"$f":"#REF!","v":{"$error":"#REF!"}},{"$f":"#REF!","v":{"$error":"#REF!"}},{"$f":"#REF!","v":{"$error":"#REF!"}},{"$f":"#REF!","v":{"$error":"#REF!"}},{"$f":"#REF!","v":{"$error":"#REF!"}},{"$f":"#REF!","v":{"$error":"#REF!"}},{"$f":"#REF!","v":{"$error":"#REF!"}},{"$f":"#REF!","v":{"$error":"#REF!"}},{"$f":"#REF!","v":{"$error":"#REF!"}},{"$f":"#REF!","v":{"$error":"#REF!"}},{"$f":"#REF!","v":{"$error":"#REF!"}},{"$f":"#REF!","v":{"$error":"#REF!"}},null,null,{"$f":"#REF!","v":{"$error":"#REF!"}},{"$f":"#REF!","v":{"$error":"#REF!"}},{"$f":"#REF!","v":{"$error":"#REF!"}}]
[null,null,"TechLow",{"$error":"#REF!"},null,null,{"$f":"#REF!","v":{"$error":"#REF!"}},{"$f":"#REF!","v":{"$error":"#REF!"}},{"$f":"#REF!","v":{"$error":"#REF!"}},{"$f":"#REF!","v":{"$error":"#REF!"}},{"$f":"#REF!","v":{"$error":"#REF!"}},{"$f":"#REF!*(1+$H$439)","v":{"$error":"#REF!"}},{"$f":"#REF!*(1+$H$439)","v":{"$error":"#REF!"}},{"$f":"#REF!*(1+$H$439)","v":{"$error":"#REF!"}},{"$f":"#REF!*(1+$H$439)","v":{"$error":"#REF!"}},{"$f":"#REF!","v":{"$error":"#REF!"}},{"$f":"#REF!","v":{"$error":"#REF!"}},{"$f":"#REF!","v":{"$error":"#REF!"}},{"$f":"#REF!","v":{"$error":"#REF!"}},{"$f":"#REF!","v":{"$error":"#REF!"}},{"$error":"#REF!"},{"$error":"#REF!"},{"$f":"#REF!","v":{"$error":"#REF!"}},{"$f":"#REF!","v":{"$error":"#REF!"}},{"$f":"#REF!","v":{"$error":"#REF!"}},{"$f":"#REF!","v":{"$error":"#REF!"}},{"$f":"#REF!","v":{"$error":"#REF!"}},{"$f":"#REF!","v":{"$error":"#REF!"}},{"$f":"#REF!","v":{"$error":"#REF!"}},{"$f":"#REF!","v":{"$error":"#REF!"}},{"$f":"#REF!","v":{"$error":"#REF!"}},{"$f":"#REF!","v":{"$error":"#REF!"}},{"$f":"#REF!","v":{"$error":"#REF!"}},{"$f":"#REF!","v":{"$error":"#REF!"}},{"$f":"#REF!","v":{"$error":"#REF!"}},{"$f":"#REF!","v":{"$error":"#REF!"}},null,null,{"$f":"#REF!","v":{"$error":"#REF!"}},{"$f":"#REF!","v":{"$error":"#REF!"}},{"$f":"#REF!","v":{"$error":"#REF!"}}]
[null,null,"TechLow",{"$error":"#REF!"},null,null,{"$f":"G287","v":"22WIN_OF_in Offshore wind excl. Grid"},"21 Wind Turbines Offshore, Tech Kat Update 2022",{"$f":"#REF!","v":{"$error":"#REF!"}},{"$f":"#REF!","v":{"$error":"#REF!"}},{"$f":"#REF!","v":{"$error":"#REF!"}},{"$f":"#REF!*(1+$H$439)","v":{"$error":"#REF!"}},{"$f":"#REF!*(1+$H$439)","v":{"$error":"#REF!"}},{"$f":"#REF!*(1+$H$439)","v":{"$error":"#REF!"}},{"$f":"#REF!*(1+$H$439)","v":{"$error":"#REF!"}},{"$f":"#REF!","v":{"$error":"#REF!"}},{"$f":"#REF!","v":{"$error":"#REF!"}},{"$f":"#REF!","v":{"$error":"#REF!"}},{"$f":"#REF!","v":{"$error":"#REF!"}},{"$f":"#REF!","v":{"$error":"#REF!"}},{"$error":"#REF!"},{"$error":"#REF!"},{"$f":"#REF!","v":{"$error":"#REF!"}},{"$f":"#REF!","v":{"$error":"#REF!"}},{"$f":"#REF!","v":{"$error":"#REF!"}},{"$f":"#REF!","v":{"$error":"#REF!"}},{"$f":"#REF!","v":{"$error":"#REF!"}},{"$f":"#REF!","v":{"$error":"#REF!"}},{"$f":"#REF!","v":{"$error":"#REF!"}},{"$f":"#REF!","v":{"$error":"#REF!"}},{"$f":"#REF!","v":{"$error":"#REF!"}},{"$f":"#REF!","v":{"$error":"#REF!"}},{"$f":"#REF!","v":{"$error":"#REF!"}},{"$f":"#REF!","v":{"$error":"#REF!"}},{"$f":"#REF!","v":{"$error":"#REF!"}},{"$f":"#REF!","v":{"$error":"#REF!"}},null,null,{"$f":"#REF!","v":{"$error":"#REF!"}},{"$f":"#REF!","v":{"$error":"#REF!"}},{"$f":"#REF!","v":{"$error":"#REF!"}}]
[null,null,"TechLow","TechLow - 22WIN_OF_in Offshore wind excl. Grid - 2020",null,null,"22WIN_OF_in Offshore wind excl. Grid","21 Wind Turbines Offshore, Tech Kat Update 2022",{"$f":"I287","v":2020},"NO","Wind",{"$f":"L287*(1+$H$439)","v":1.3094578439659685},0,37500,3.75,{"$f":"P287","v":0},0,0,1,1,0,0,{"$f":"W287","v":4400},0,0,0,27,2.5,0,0,0,0,0,"Central",44623,"chwo",null,null,{"$f":"AM287","v":"Tech Cat 2022 Update"},2020,"EUR"]
[null,null,"TechLow","TechLow - 22WIN_OF_in Offshore wind excl. Grid - 2025",null,null,"22WIN_OF_in Offshore wind excl. Grid","21 Wind Turbines Offshore, Tech Kat Update 2022",2025,"NO","Wind",1.1470962857191025,0,31500,3.1274999999999999,0,0,0,1,1,0,0,{"$f":"W288","v":4775},0,0,0,30,2.5,0,0,0,0,0,"Central",44623,"chwo",null,null,"Tech Cat 2022 Update",2020,"EUR"]
[null,null,"TechLow","TechLow - 22WIN_OF_in Offshore wind excl. Grid - 2030",null,null,"22WIN_OF_in Offshore wind excl. Grid","21 Wind Turbines Offshore, Tech Kat Update 2022",2030,"NO","Wind",1.0808693423356748,0,29250,2.9175,0,0,0,1,1,0,0,{"$f":"W289","v":4800},0,0,0,30,2.5,0,0,0,0,0,"Central",44623,"chwo",null,null,"Tech Cat 2022 Update",2020,"EUR"]
[null,null,"TechLow","TechLow - 22WIN_OF_in Offshore wind excl. Grid - 2040",null,null,"22WIN_OF_in Offshore wind excl. Grid","21 Wind Turbines Offshore, Tech Kat Update 2022",2040,"NO","Wind",0.98387430340699344,0,25500,2.5649999999999999,0,0,0,1,1,0,0,{"$f":"W290","v":4850},0,0,0,30,2.5,0,0,0,0,0,"Central",44623,"chwo",null,null,"Tech Cat 2022 Update",2020,"EUR"]
[null,null,"TechLow","TechLow - 22WIN_NS_ex Nearshore wind excl. Grid - 2050",null,null,{"$f":"G292","v":"22WIN_NS_ex Nearshore wind excl. Grid"},"21 Wind Turbines Nearshore, Tech Kat Update 2022",2050,"NO","Wind",0.94472496053935862,0,24750,2.4375,0,0,0,1,1,0,0,{"$f":"W291","v":4900},0,0,0,30,2,0,0,0,0,0,"Central",44623,"chwo",null,null,"Tech Cat 2022 Update",2020,"EUR"]
[null,null,"TechLow","TechLow - 22WIN_NS_ex Nearshore wind excl. Grid - 2020",null,null,"22WIN_NS_ex Nearshore wind excl. Grid","21 Wind Turbines Nearshore, Tech Kat Update 2022",{"$f":"I292","v":2020},"NO","Wind",{"$f":"L292*(1+$H$439)","v":1.2164020788759393},0,37500,3.75,{"$f":"P292","v":0},0,0,1,1,0,0,{"$f":"W292","v":4100},0,0,0,27,2.5,0,0,0,0,0,"Central",44623,"chwo",null,null,{"$f":"AM292","v":"Tech Cat 2022 Update"},2020,"EUR"]
[null,null,"TechLow","TechLow - 22WIN_NS_ex Nearshore wind excl. Grid - 2025",null,null,"22WIN_NS_ex Nearshore wind excl. Grid","21 Wind Turbines Nearshore, Tech Kat Update 2022",2025,"NO","Wind",1.0608350917024341,0,31500,3.1274999999999999,0,0,0,1,1,0,0,{"$f":"W293","v":4325},0,0,0,30,2.5,0,0,0,0,0,"Central",44623,"chwo",null,null,"Tech Cat 2022 Update",2020,"EUR"]
[null,null,"TechLow","TechLow - 22WIN_NS_ex Nearshore wind excl. Grid - 2030",null,null,"22WIN_NS_ex Nearshore wind excl. Grid","21 Wind Turbines Nearshore, Tech Kat Update 2022",2030,"NO","Wind",0.98430531440930713,0,29250,2.9175,0,0,0,1,1,0,0,{"$f":"W294","v":4450},0,0,0,30,2.5,0,0,0,0,0,"Central",44623,"chwo",null,null,"Tech Cat 2022 Update",2020,"EUR"]
[null,null,"TechLow","TechLow - 22WIN_NS_ex Nearshore wind excl. Grid - 2040",null,null,"22WIN_NS_ex Nearshore wind excl. Grid","21 Wind Turbines Nearshore, Tech Kat Update 2022",2040,"NO","Wind",0.87705085896967683,0,25500,2.5649999999999999,0,0,0,1,1,0,0,{"$f":"W295","v":4450},0,0,0,30,2.5,0,0,0,0,0,"Central",44623,"chwo",null,null,"Tech Cat 2022 Update",2020,"EUR"]
[null,null,"TechLow","TechLow - 0 - 2050",null,null,0,0,2050,"NO","Wind",0.83846704337930555,0,24750,2.4375,0,0,0,1,1,0,0,{"$f":"W296","v":4450},0,0,0,30,2,0,0,0,0,0,"Central",44623,"chwo",null,null,"Tech Cat 2022 Update",2020,"EUR"]
[null,null,"TechLow","TechLow - 0 - 0",null,null,0,0,0,0,0,0,0,0,0,0,0,0,0,0,0,0,{"$f":"W297","v":0},0,0,0,0,0,0,0,0,0,0,0,0,0,null,null,0,0,0]
[null,null,"TechLow","TechLow - 0 - 0",null,null,0,0,0,0,0,0,0,0,0,0,0,0,0,0,0,0,{"$f":"W298","v":0},0,0,0,0,0,0,0,0,0,0,0,0,0,null,null,0,0,0]
[null,null,"TechLow","TechLow - 0 - 0",null,null,0,0,0,0,0,0,0,0,0,0,0,0,0,0,0,0,{"$f":"W299","v":0},0,0,0,0,0,0,0,0,0,0,0,0,0,null,null,0,0,0]
[null,null,"TechLow","TechLow - 0 - 0",null,null,0,0,0,0,0,0,0,0,0,0,0,0,0,0,0,0,{"$f":"W300","v":0},0,0,0,0,0,0,0,0,0,0,0,0,0,null,null,0,0,0]
[null,null,"TechLow","TechLow - 0 - 0",null,null,0,0,0,0,0,0,0,0,0,0,0,0,0,0,0,0,{"$f":"W301","v":0},0,0,0,0,0,0,0,0,0,0,0,0,0,null,null,0,0,0]
[null,null,"TechLow","TechLow - 0 - 0",null,null,0,0,0,0,0,0,0,0,0,{"$f":"P302","v":0},0,0,0,0,0,0,{"$f":"W302","v":0},0,0,0,0,0,0,0,0,0,0,0,0,0,null,null,0,0,0]
[null,null,"TechLow","TechLow - 0 - 0",null,null,0,0,0,0,0,0,0,0,0,0,0,0,0,0,0,0,{"$f":"W303","v":0},0,0,0,0,0,0,0,0,0,0,0,0,0,null,null,0,0,0]
[null,null,"TechLow","TechLow - 0 - 0",null,null,0,0,0,0,0,0,0,0,0,0,0,0,0,0,0,0,{"$f":"W304","v":0},0,0,0,0,0,0,0,0,0,0,0,0,0,null,null,0,0,0]
[null,null,"TechLow","TechLow - 0 - 0",null,null,0,0,0,0,0,0,0,0,0,0,0,0,0,0,0,0,{"$f":"W305","v":0},0,0,0,0,0,0,0,0,0,0,0,0,0,null,null,0,0,0]
[null,null,"TechLow","TechLow - 0 - 0",null,null,0,0,0,0,0,0,0,0,0,0,0,0,0,0,0,0,{"$f":"W306","v":0},0,0,0,0,0,0,0,0,0,0,0,0,0,null,null,0,0,0]
[null,null,"TechLow","TechLow - 0 - 0",null,null,0,0,0,0,0,0,0,0,0,0,0,0,0,0,0,0,{"$f":"W307","v":0},0,0,0,0,0,0,0,0,0,0,0,"00:00:00",0,null,null,0,0,0]
[null,null,"TechLow","TechLow - 0 - 0",null,null,0,0,0,0,0,0,0,0,0,0,0,0,0,0,0,0,{"$f":"W308","v":0},0,0,0,0,0,0,0,0,0,0,0,"00:00:00",0,null,null,0,0,0]
[null,null,"TechLow","TechLow - 0 - 0",null,null,0,0,0,0,0,0,0,0,0,0,0,0,0,0,0,0,{"$f":"W309","v":0},0,0,0,0,0,0,0,0,0,0,0,"00:00:00",0,null,null,0,0,0]
[null,null,"TechLow","TechLow - 0 - 0",null,null,0,0,0,0,0,0,0,0,0,0,0,0,0,0,0,0,{"$f":"W310","v":0},0,0,0,0,0,0,0,0,0,0,0,"00:00:00",0,null,null,0,0,0]
[null,null,{"$f":"$G$440","v":"TechLow"},{"$f":"C639&\" - \"&G639&\" - \"&I639","v":"TechLow - 0 - 0"},null,null,{"$f":"G312","v":0},0,0,0,0,0,0,0,0,0,0,0,0,0,0,0,{"$f":"W311","v":0},0,0,0,0,0,0,0,0,0,0,0,0,0,null,null,0,0,0]
[null,null,"TechLow","TechLow - 0 - 0",null,null,0,0,{"$f":"I312","v":0},0,0,{"$f":"L312*(1+$H$439)","v":0},0,0,0,{"$f":"P312","v":0},0,0,0,0,0,0,{"$f":"W312","v":0},0,0,0,0,0,0,0,0,0,0,0,0,0,null,null,{"$f":"AM312","v":0},0,0]
[null,null,"TechLow","TechLow - 0 - 0",null,null,0,0,0,0,0,0,0,0,0,0,0,0,0,0,0,0,{"$f":"W313","v":0},0,0,0,0,0,0,0,0,0,0,0,0,0,null,null,0,0,0]
[null,null,"TechLow","TechLow - 0 - 0",null,null,0,0,0,0,0,0,0,0,0,0,0,0,0,0,0,0,{"$f":"W314","v":0},0,0,0,0,0,0,0,0,0,0,0,0,0,null,null,0,0,0]
[null,null,"TechLow","TechLow - 0 - 0",null,null,0,0,0,0,0,0,0,0,0,0,0,0,0,0,0,0,{"$f":"W315","v":0},0,0,0,0,0,0,0,0,0,0,0,0,0,null,null,0,0,0]
[null,null,"TechLow","TechLow - 0 - 0",null,null,0,0,0,0,0,0,0,0,0,0,0,0,0,0,0,0,{"$f":"W316","v":0},0,0,0,0,0,0,0,0,0,0,0,0,0,null,null,0,0,0]
[null,null,"TechLow","TechLow - 0 - 0",null,null,0,0,0,0,0,0,0,0,0,0,0,0,0,0,0,0,{"$f":"W317","v":0},0,0,0,0,0,0,0,0,0,0,0,0,0,null,null,0,0,0]
[null,null,"TechLow","TechLow - 0 - 0",null,null,0,0,0,0,0,0,0,0,0,0,0,0,0,0,0,0,{"$f":"W318","v":0},0,0,0,0,0,0,0,0,0,0,0,0,0,null,null,0,0,0]
[null,null,"TechLow","TechLow - 0 - 0",null,null,0,0,0,0,0,0,0,0,0,0,0,0,0,0,0,0,{"$f":"W319","v":0},0,0,0,0,0,0,0,0,0,0,0,0,0,null,null,0,0,0]
[null,null,"TechLow","TechLow - 0 - 0",null,null,0,0,0,0,0,0,0,0,0,0,0,0,0,0,0,0,{"$f":"W320","v":0},0,0,0,0,0,0,0,0,0,0,0,0,0,null,null,0,0,0]
[null,null,"TechLow","TechLow - 0 - 0",null,null,0,0,0,0,0,0,0,0,0,0,0,0,0,0,0,0,{"$f":"W321","v":0},0,0,0,0,0,0,0,0,0,0,0,0,0,null,null,0,0,0]
[null,null,"TechLow","TechLow - 0 - 0",null,null,0,0,0,0,0,0,0,0,0,{"$f":"P322","v":0},0,0,0,0,0,0,{"$f":"W322","v":0},0,0,0,0,0,0,0,0,0,0,0,0,0,null,null,0,0,0]
[null,null,"TechLow","TechLow - 0 - 0",null,null,0,0,0,0,0,0,0,0,0,0,0,0,0,0,0,0,{"$f":"W323","v":0},0,0,0,0,0,0,0,0,0,0,0,0,0,null,null,0,0,0]
[null,null,"TechLow","TechLow - 0 - 0",null,null,0,0,0,0,0,0,0,0,0,0,0,0,0,0,0,0,{"$f":"W324","v":0},0,0,0,0,0,0,0,0,0,0,0,0,0,null,null,0,0,0]
[null,null,"TechLow","TechLow - 0 - 0",null,null,0,0,0,0,0,0,0,0,0,0,0,0,0,0,0,0,{"$f":"W325","v":0},0,0,0,0,0,0,0,0,0,0,0,0,0,null,null,0,0,0]
[null,null,"TechLow","TechLow - 0 - 0",null,null,0,0,0,0,0,0,0,0,0,0,0,0,0,0,0,0,{"$f":"W326","v":0},0,0,0,0,0,0,0,0,0,0,0,0,0,null,null,0,0,0]
[null,null,"TechLow","TechLow - 0 - 0",null,null,0,0,0,0,0,0,0,0,0,0,0,0,0,0,0,0,{"$f":"W327","v":0},0,0,0,0,0,0,0,0,0,0,0,0,0,null,null,0,0,0]
[null,null,"TechLow","TechLow - 0 - 0",null,null,0,0,0,0,0,0,0,0,0,0,0,0,0,0,0,0,{"$f":"W328","v":0},0,0,0,0,0,0,0,0,0,0,0,0,0,null,null,0,0,0]
[null,null,"TechLow","TechLow - 0 - 0",null,null,0,0,0,0,0,0,0,0,0,0,0,0,0,0,0,0,{"$f":"W329","v":0},0,0,0,0,0,0,0,0,0,0,0,0,0,null,null,0,0,0]
[null,null,"TechLow","TechLow - 0 - 0",null,null,0,0,0,0,0,0,0,0,0,0,0,0,0,0,0,0,{"$f":"W330","v":0},0,0,0,0,0,0,0,0,0,0,0,0,0,null,null,0,0,0]
[null,null,"TechLow","TechLow - 0 - 0",null,null,{"$f":"G332","v":0},0,0,0,0,0,0,0,0,0,0,0,0,0,0,0,{"$f":"W331","v":0},0,0,0,0,0,0,0,0,0,0,0,0,0,null,null,0,0,0]
[null,null,"TechLow","TechLow - 0 - 0",null,null,0,0,{"$f":"I332","v":0},0,0,{"$f":"L332*(1+$H$439)","v":0},0,0,0,{"$f":"P332","v":0},0,0,0,0,0,0,{"$f":"W332","v":0},0,0,0,0,0,0,0,0,0,0,0,0,0,null,null,{"$f":"AM332","v":0},0,0]
[null,null,"TechLow","TechLow - 0 - 0",null,null,0,0,0,0,0,0,0,0,0,0,0,0,0,0,{"$f":"IF(R661=0,0,R661*T661/(R661+Q661))","v":0},{"$f":"IF(R661=0,0,T661/(R661+Q661))","v":0},{"$f":"W333","v":0},0,0,0,0,0,0,0,0,0,0,0,0,0,null,null,0,0,0]
[null,null,"TechLow","TechLow - 0 - 0",null,null,0,0,0,0,0,0,0,0,0,0,0,0,0,0,0,0,{"$f":"W334","v":0},0,0,0,0,0,0,0,0,0,0,0,0,0,null,null,0,0,0]
[null,null,"TechLow","TechLow - 0 - 0",null,null,0,0,0,0,0,0,0,0,0,0,0,0,0,0,0,0,{"$f":"W335","v":0},0,0,0,0,0,0,0,0,0,0,0,0,0,null,null,0,0,0]
[null,null,"TechLow","TechLow - 0 - 0",null,null,0,0,0,0,0,0,0,0,0,0,0,0,0,0,0,0,{"$f":"W336","v":0},0,0,0,0,0,0,0,0,0,0,0,0,0,null,null,0,0,0]
[null,null,"TechLow","TechLow - 0 - 0",null,null,0,0,0,0,0,0,0,0,0,0,0,0,0,0,0,0,{"$f":"W337","v":0},0,0,0,0,0,0,0,0,0,0,0,0,0,null,null,0,0,0]
[null,null,"TechLow","TechLow - 0 - 0",null,null,0,0,0,0,0,0,0,0,0,0,0,0,0,0,0,0,{"$f":"W338","v":0},0,0,0,0,0,0,0,0,0,0,0,0,0,null,null,0,0,0]
[null,null,"TechLow","TechLow - 0 - 0",null,null,0,0,0,0,0,0,0,0,0,0,0,0,0,0,0,0,{"$f":"W339","v":0},0,0,0,0,0,0,0,0,0,0,0,0,0,null,null,0,0,0]
[null,null,"TechLow","TechLow - 0 - 0",null,null,0,0,0,0,0,0,0,0,0,0,0,0,0,0,0,0,{"$f":"W340","v":0},0,0,0,0,0,0,0,0,0,0,0,0,0,null,null,0,0,0]
[null,null,"TechLow","TechLow - 0 - 0",null,null,0,0,0,0,0,0,0,0,0,0,0,0,0,0,0,0,{"$f":"W341","v":0},0,0,0,0,0,0,0,0,0,0,0,0,0,null,null,0,0,0]
[null,null,"TechLow","TechLow - 0 - 0",null,null,0,0,0,0,0,0,0,0,0,{"$f":"P342","v":0},0,0,0,0,0,0,{"$f":"W342","v":0},0,0,0,0,0,0,0,0,0,0,0,0,0,null,null,0,0,0]
[null,null,"TechLow","TechLow - 0 - 0",null,null,0,0,0,0,0,0,0,0,0,0,0,0,0,0,0,0,{"$f":"W343","v":0},0,0,0,0,0,0,0,0,0,0,0,0,0,null,null,0,0,0]
[null,null,"TechLow","TechLow - 0 - 0",null,null,0,0,0,0,0,0,0,0,0,0,0,0,0,0,0,0,{"$f":"W344","v":0},0,0,0,0,0,0,0,0,0,0,0,0,0,null,null,0,0,0]
[null,null,"TechLow","TechLow - 0 - 0",null,null,0,0,0,0,0,0,0,0,0,0,0,0,0,0,0,0,{"$f":"W345","v":0},0,0,0,0,0,0,0,0,0,0,0,0,0,null,null,0,0,0]
[null,null,"TechLow","TechLow - 0 - 0",null,null,0,0,0,0,0,0,0,0,0,0,0,0,0,0,0,0,{"$f":"W346","v":0},0,0,0,0,0,0,0,0,0,0,0,0,0,null,null,0,0,0]
[null,null,"TechLow","TechLow - 0 - 0",null,null,0,0,0,0,0,0,0,0,0,0,0,0,0,0,0,0,{"$f":"W347","v":0},0,0,0,0,0,0,0,0,0,0,0,0,0,null,null,0,0,0]
[null,null,"TechLow","TechLow - 0 - 0",null,null,0,0,0,0,0,0,0,0,0,0,0,0,0,0,0,0,{"$f":"W348","v":0},0,0,0,0,0,0,0,0,0,0,0,0,0,null,null,0,0,0]
[null,null,"TechLow","TechLow - 0 - 0",null,null,0,0,0,0,0,0,0,0,0,0,0,0,0,0,0,0,{"$f":"W349","v":0},0,0,0,0,0,0,0,0,0,0,0,0,0,null,null,0,0,0]
[null,null,"TechLow","TechLow - 0 - 0",null,null,0,0,0,0,0,0,0,0,0,0,0,0,0,0,0,0,{"$f":"W350","v":0},0,0,0,0,0,0,0,0,0,0,0,0,0,null,null,0,0,0]
[null,null,"TechLow","TechLow - 0 - 0",null,null,{"$f":"G352","v":0},0,0,0,0,0,0,0,0,0,0,0,0,0,0,0,{"$f":"W351","v":0},0,0,0,0,0,0,0,0,0,0,0,0,0,null,null,0,0,0]
[null,null,"TechLow","TechLow - 0 - 0",null,null,0,0,{"$f":"I352","v":0},0,0,{"$f":"L352*(1+$H$439)","v":0},0,0,0,{"$f":"P352","v":0},0,0,0,0,0,0,{"$f":"W352","v":0},0,0,0,0,0,0,0,0,0,0,0,0,0,null,null,{"$f":"AM352","v":0},0,0]
[null,null,"TechLow","TechLow - 0 - 0",null,null,0,0,0,0,0,0,0,0,0,0,0,0,0,0,0,0,{"$f":"W353","v":0},0,0,0,0,0,0,0,0,0,0,0,0,0,null,null,0,0,0]
[null,null,"TechLow","TechLow - 0 - 0",null,null,0,0,0,0,0,0,0,0,0,0,0,0,0,0,0,0,{"$f":"W354","v":0},0,0,0,0,0,0,0,0,0,0,0,0,0,null,null,0,0,0]
[null,null,"TechLow","TechLow - 0 - 0",null,null,0,0,0,0,0,0,0,0,0,0,0,0,0,0,0,0,{"$f":"W355","v":0},0,0,0,0,0,0,0,0,0,0,0,0,0,null,null,0,0,0]
[null,null,"TechLow","TechLow - 0 - 0",null,null,0,0,0,0,0,0,0,0,0,0,0,0,0,0,0,0,{"$f":"W356","v":0},0,0,0,0,0,0,0,0,0,0,0,0,0,null,null,0,0,0]
[null,null,"TechLow","TechLow - 0 - 0",null,null,0,0,0,0,0,0,0,0,0,0,0,0,0,0,0,0,{"$f":"W357","v":0},0,0,0,0,0,0,0,0,0,0,0,0,0,null,null,0,0,0]
[null,null,"TechLow","TechLow - 0 - 0",null,null,0,0,0,0,0,0,0,0,0,0,0,0,0,0,0,0,{"$f":"W358","v":0},0,0,0,0,0,0,0,0,0,0,0,0,0,null,null,0,0,0]
[null,null,"TechLow","TechLow - 0 - 0",null,null,0,0,0,0,0,0,0,0,0,0,0,0,0,0,0,0,{"$f":"W359","v":0},0,0,0,0,0,0,0,0,0,0,0,0,0,null,null,0,0,0]
[null,null,"TechLow","TechLow - 0 - 0",null,null,0,0,0,0,0,0,0,0,0,0,0,0,0,0,0,0,{"$f":"W360","v":0},0,0,0,0,0,0,0,0,0,0,0,0,0,null,null,0,0,0]
[null,null,"TechLow","TechLow - 0 - 0",null,null,0,0,0,0,0,0,0,0,0,0,0,0,0,0,0,0,{"$f":"W361","v":0},0,0,0,0,0,0,0,0,0,0,0,0,0,null,null,0,0,0]
[null,null,"TechLow","TechLow - 0 - 0",null,null,0,0,0,0,0,0,0,0,0,{"$f":"P362","v":0},0,0,0,0,0,0,{"$f":"W362","v":0},0,0,0,0,0,0,0,0,0,0,0,0,0,null,null,0,0,0]
[null,null,"TechLow","TechLow - 0 - 0",null,null,0,0,0,0,0,0,0,0,0,0,0,0,0,0,0,0,{"$f":"W363","v":0},0,0,0,0,0,0,0,0,0,0,0,0,0,null,null,0,0,0]
[null,null,"TechLow","TechLow - 0 - 0",null,null,0,0,0,0,0,0,0,0,0,0,0,0,0,0,0,0,{"$f":"W364","v":0},0,0,0,0,0,0,0,0,0,0,0,0,0,null,null,0,0,0]
[null,null,"TechLow","TechLow - 0 - 0",null,null,0,0,0,0,0,0,0,0,0,0,0,0,0,0,0,0,{"$f":"W365","v":0},0,0,0,0,0,0,0,0,0,0,0,0,0,null,null,0,0,0]
[null,null,"TechLow","TechLow - 0 - 0",null,null,0,0,0,0,0,0,0,0,0,0,0,0,0,0,0,0,{"$f":"W366","v":0},0,0,0,0,0,0,0,0,0,0,0,0,0,null,null,0,0,0]
[null,null,"TechLow","TechLow - 0 - 0",null,null,0,0,0,0,0,0,0,0,0,0,0,0,0,0,0,0,{"$f":"W367","v":0},0,0,0,0,0,0,0,0,0,0,0,0,0,null,null,0,0,0]
[null,null,"TechLow","TechLow - 0 - 0",null,null,0,0,0,0,0,0,0,0,0,0,0,0,0,0,0,0,{"$f":"W368","v":0},0,0,0,0,0,0,0,0,0,0,0,0,0,null,null,0,0,0]
[null,null,"TechLow","TechLow - 0 - 0",null,null,0,0,0,0,0,0,0,0,0,0,0,0,0,0,0,0,{"$f":"W369","v":0},0,0,0,0,0,0,0,0,0,0,0,0,0,null,null,0,0,0]
[null,null,"TechLow","TechLow - 0 - 0",null,null,0,0,0,0,0,0,0,0,0,0,0,0,0,0,0,0,{"$f":"W370","v":0},0,0,0,0,0,0,0,0,0,0,0,0,0,null,null,0,0,0]
[null,null,"TechLow","TechLow - 0 - 0",null,null,{"$f":"G372","v":0},0,0,0,0,0,0,0,0,0,0,0,0,0,0,0,{"$f":"W371","v":0},0,0,0,0,0,0,0,0,0,0,0,0,0,null,null,0,0,0]
[null,null,"TechLow","TechLow - 0 - 0",null,null,0,0,{"$f":"I372","v":0},0,0,{"$f":"L372*(1+$H$439)","v":0},0,0,0,{"$f":"P372","v":0},0,0,0,0,0,0,{"$f":"W372","v":0},0,0,0,0,0,0,0,0,0,0,0,0,0,null,null,{"$f":"AM372","v":0},0,0]
[null,null,"TechLow","TechLow - 0 - 0",null,null,0,0,0,0,0,0,0,0,0,0,0,0,0,0,0,0,{"$f":"W373","v":0},0,0,0,0,0,0,0,0,0,0,0,0,0,null,null,0,0,0]
[null,null,"TechLow","TechLow - 0 - 0",null,null,0,0,0,0,0,0,0,0,0,0,0,0,0,0,0,0,{"$f":"W374","v":0},0,0,0,0,0,0,0,0,0,0,0,0,0,null,null,0,0,0]
[null,null,{"$f":"$G$440","v":"TechLow"},{"$f":"C703&\" - \"&G703&\" - \"&I703","v":"TechLow - 0 - 0"},null,null,0,0,0,0,0,0,0,0,0,0,0,0,0,0,0,0,{"$f":"W375","v":0},0,0,0,0,0,0,0,0,0,0,0,0,0,null,null,0,0,0]
[null,null,"TechLow","TechLow - 0 - 0",null,null,0,0,0,0,0,0,0,0,0,0,0,0,0,0,0,0,{"$f":"W376","v":0},0,0,0,0,0,0,0,0,0,0,0,0,0,null,null,0,0,0]
[null,null,"TechLow","TechLow - 0 - 0",null,null,0,0,0,0,0,0,0,0,0,0,0,0,0,0,0,0,{"$f":"W377","v":0},0,0,0,0,0,0,0,0,0,0,0,0,0,null,null,0,0,0]
[null,null,"TechLow","TechLow - 0 - 0",null,null,0,0,0,0,0,0,0,0,0,0,0,0,0,0,0,0,{"$f":"W378","v":0},0,0,0,0,0,0,0,0,0,0,0,0,0,null,null,0,0,0]
[null,null,"TechLow","TechLow - 0 - 0",null,null,0,0,0,0,0,0,0,0,0,0,0,0,0,0,0,0,{"$f":"W379","v":0},0,0,0,0,0,0,0,0,0,0,0,0,0,null,null,0,0,0]
[null,null,"TechLow","TechLow - 0 - 0",null,null,0,0,0,0,0,0,0,0,0,0,0,0,0,0,0,0,{"$f":"W380","v":0},0,0,0,0,0,0,0,0,0,0,0,0,0,null,null,0,0,0]
[null,null,"TechLow","TechLow - 0 - 0",null,null,0,0,0,0,0,0,0,0,0,0,0,0,0,0,0,0,{"$f":"W381","v":0},0,0,0,0,0,0,0,0,0,0,0,0,0,null,null,0,0,0]
[null,null,"TechLow","TechLow - 0 - 0",null,null,0,0,0,0,0,0,0,0,0,{"$f":"P382","v":0},0,0,0,0,0,0,{"$f":"W382","v":0},0,0,0,0,0,0,0,0,0,0,0,0,0,null,null,0,0,0]
[null,null,"TechLow","TechLow - 0 - 0",null,null,0,0,0,0,0,0,0,0,0,0,0,0,0,0,0,0,{"$f":"W383","v":0},0,0,0,0,0,0,0,0,0,0,0,0,0,null,null,0,0,0]
[null,null,"TechLow","TechLow - 0 - 0",null,null,0,0,0,0,0,0,0,0,0,0,0,0,0,0,0,0,{"$f":"W384","v":0},0,0,0,0,0,0,0,0,0,0,0,0,0,null,null,0,0,0]
[null,null,"TechLow","TechLow - 0 - 0",null,null,0,0,0,0,0,0,0,0,0,0,0,0,0,0,0,0,{"$f":"W385","v":0},0,0,0,0,0,0,0,0,0,0,0,0,0,null,null,0,0,0]
[null,null,"TechLow","TechLow - 0 - 0",null,null,0,0,0,0,0,0,0,0,0,0,0,0,0,0,0,0,{"$f":"W386","v":0},0,0,0,0,0,0,0,0,0,0,0,0,0,null,null,0,0,0]
[null,null,"TechLow","TechLow - 0 - 0",null,null,0,0,0,0,0,0,0,0,0,0,0,0,0,0,0,0,{"$f":"W387","v":0},0,0,0,0,0,0,0,0,0,0,0,0,0,null,null,0,0,0]
[null,null,"TechLow","TechLow - 0 - 0",null,null,0,0,0,0,0,0,0,0,0,0,0,0,0,0,0,0,{"$f":"W388","v":0},0,0,0,0,0,0,0,0,0,0,0,0,0,null,null,0,0,0]
[null,null,"TechLow","TechLow - 0 - 0",null,null,0,0,0,0,0,0,0,0,0,0,0,0,0,0,0,0,{"$f":"W389","v":0},0,0,0,0,0,0,0,0,0,0,0,0,0,null,null,0,0,0]
[null,null,"TechLow","TechLow - 0 - 0",null,null,0,0,0,0,0,0,0,0,0,0,0,0,0,0,0,0,{"$f":"W390","v":0},0,0,0,0,0,0,0,0,0,0,0,0,0,null,null,0,0,0]
[null,null,"TechLow","TechLow - 0 - 0",null,null,{"$f":"G392","v":0},0,0,0,0,0,0,0,0,0,0,0,0,0,0,0,{"$f":"W391","v":0},0,0,0,0,0,0,0,0,0,0,0,0,0,null,null,0,0,0]
[null,null,"TechLow","TechLow - 0 - 0",null,null,0,0,{"$f":"I392","v":0},0,0,{"$f":"L392*(1+$H$439)","v":0},0,0,0,{"$f":"P392","v":0},0,0,0,0,0,0,{"$f":"W392","v":0},0,0,0,0,0,0,0,0,0,0,0,0,0,null,null,{"$f":"AM392","v":0},0,0]
[null,null,"TechLow","TechLow - 0 - 0",null,null,0,0,0,0,0,0,0,0,0,0,0,0,0,0,0,0,{"$f":"W393","v":0},0,0,0,0,0,0,0,0,0,0,0,0,0,null,null,0,0,0]
[null,null,"TechLow","TechLow - 0 - 0",null,null,0,0,0,0,0,0,0,0,0,0,0,0,0,0,0,0,{"$f":"W394","v":0},0,0,0,0,0,0,0,0,0,0,0,0,0,null,null,0,0,0]
[null,null,"TechLow","TechLow - 0 - 0",null,null,0,0,0,0,0,0,0,0,0,0,0,0,0,0,0,0,{"$f":"W395","v":0},0,0,0,0,0,0,0,0,0,0,0,0,0,null,null,0,0,0]
[null,null,"TechLow","TechLow - 0 - 0",null,null,0,0,0,0,0,0,0,0,0,0,0,0,0,0,0,0,{"$f":"W396","v":0},0,0,0,0,0,0,0,0,0,0,0,0,0,null,null,0,0,0]
[null,null,"TechLow","TechLow - 0 - 0",null,null,0,0,0,0,0,0,0,0,0,0,0,0,0,0,{"$f":"IF(R725=0,0,R725*T725/(R725+Q725))","v":0},{"$f":"IF(R725=0,0,T725/(R725+Q725))","v":0},{"$f":"W397","v":0},0,0,0,0,0,0,0,0,0,0,0,0,0,null,null,0,0,0]
[null,null,"TechLow","TechLow - 0 - 0",null,null,0,0,0,0,0,0,0,0,0,0,0,0,0,0,0,0,{"$f":"W398","v":0},0,0,0,0,0,0,0,0,0,0,0,0,0,null,null,0,0,0]
[null,null,"TechLow","TechLow - 0 - 0",null,null,0,0,0,0,0,0,0,0,0,0,0,0,0,0,0,0,{"$f":"W399","v":0},0,0,0,0,0,0,0,0,0,0,0,0,0,null,null,0,0,0]
[null,null,"TechLow","TechLow - 0 - 0",null,null,0,0,0,0,0,0,0,0,0,0,0,0,0,0,0,0,{"$f":"W400","v":0},0,0,0,0,0,0,0,0,0,0,0,0,0,null,null,0,0,0]
[null,null,"TechLow","TechLow - 0 - 0",null,null,0,0,0,0,0,0,0,0,0,0,0,0,0,0,0,0,{"$f":"W401","v":0},0,0,0,0,0,0,0,0,0,0,0,0,0,null,null,0,0,0]
[null,null,"TechLow","TechLow - 0 - 0",null,null,0,0,0,0,0,0,0,0,0,{"$f":"P402","v":0},0,0,0,0,0,0,{"$f":"W402","v":0},0,0,0,0,0,0,0,0,0,0,0,0,0,null,null,0,0,0]
[null,null,"TechLow","TechLow - 0 - 0",null,null,0,0,0,0,0,0,0,0,0,0,0,0,0,0,0,0,{"$f":"W403","v":0},0,0,0,0,0,0,0,0,0,0,0,0,0,null,null,0,0,0]
[null,null,"TechLow","TechLow - 0 - 0",null,null,0,0,0,0,0,0,0,0,0,0,0,0,0,0,0,0,{"$f":"W404","v":0},0,0,0,0,0,0,0,0,0,0,0,0,0,null,null,0,0,0]
[null,null,"TechLow","TechLow - 0 - 0",null,null,0,0,0,0,0,0,0,0,0,0,0,0,0,0,0,0,{"$f":"W405","v":0},0,0,0,0,0,0,0,0,0,0,0,0,0,null,null,0,0,0]
[null,null,"TechLow","TechLow - 0 - 0",null,null,0,0,0,0,0,0,0,0,0,0,0,0,0,0,0,0,{"$f":"W406","v":0},0,0,0,0,0,0,0,0,0,0,0,0,0,null,null,0,0,0]
[null,null,"TechLow","TechLow - 0 - 0",null,null,0,0,0,0,0,0,0,0,0,0,0,0,0,0,0,0,{"$f":"W407","v":0},0,0,0,0,0,0,0,0,0,0,0,0,0,null,null,0,0,0]
[null,null,"TechLow","TechLow - 0 - 0",null,null,0,0,0,0,0,0,0,0,0,0,0,0,0,0,0,0,{"$f":"W408","v":0},0,0,0,0,0,0,0,0,0,0,0,0,0,null,null,0,0,0]
[null,null,"TechLow","TechLow - 0 - 0",null,null,0,0,0,0,0,0,0,0,0,0,0,0,0,0,0,0,{"$f":"W409","v":0},0,0,0,0,0,0,0,0,0,0,0,0,0,null,null,0,0,0]
[null,null,"TechLow","TechLow - 0 - 0",null,null,0,0,0,0,0,0,0,0,0,0,0,0,0,0,0,0,{"$f":"W410","v":0},0,0,0,0,0,0,0,0,0,0,0,0,0,null,null,0,0,0]
[null,null,"TechLow","TechLow - 0 - 0",null,null,{"$f":"G412","v":0},0,0,0,0,0,0,0,0,0,0,0,0,0,0,0,{"$f":"W411","v":0},0,0,0,0,0,0,0,0,0,0,0,0,0,null,null,0,0,0]
[null,null,"TechLow","TechLow - 0 - 0",null,null,0,0,{"$f":"I412","v":0},0,0,{"$f":"L412*(1+$H$439)","v":0},0,0,0,{"$f":"P412","v":0},0,0,0,0,0,0,{"$f":"W412","v":0},0,0,0,0,0,0,0,0,0,0,0,0,0,null,null,{"$f":"AM412","v":0},0,0]
[null,null,"TechLow","TechLow - 0 - 0",null,null,0,0,0,0,0,0,0,0,0,0,0,0,0,0,0,0,{"$f":"W413","v":0},0,0,0,0,0,0,0,0,0,0,0,0,0,null,null,0,0,0]
[null,null,"TechLow","TechLow - 0 - 0",null,null,0,0,0,0,0,0,0,0,0,0,0,0,0,0,0,0,{"$f":"W414","v":0},0,0,0,0,0,0,0,0,0,0,0,0,0,null,null,0,0,0]
[null,null,"TechLow","TechLow - 0 - 0",null,null,0,0,0,0,0,0,0,0,0,0,0,0,0,0,0,0,{"$f":"W415","v":0},0,0,0,0,0,0,0,0,0,0,0,0,0,null,null,0,0,0]
[null,null,"TechLow","TechLow - 0 - 0",null,null,0,0,0,0,0,0,0,0,0,0,0,0,0,0,0,0,{"$f":"W416","v":0},0,0,0,0,0,0,0,0,0,0,0,0,0,null,null,0,0,0]
[null,null,"TechLow","TechLow - 0 - 0",null,null,0,0,0,0,0,0,0,0,0,0,0,0,0,0,0,0,{"$f":"W417","v":0},0,0,0,0,0,0,0,0,0,0,0,0,0,null,null,0,0,0]
[null,null,"TechLow","TechLow - 0 - 0",null,null,0,0,0,0,0,0,0,0,0,0,0,0,0,0,0,0,{"$f":"W418","v":0},0,0,0,0,0,0,0,0,0,0,0,0,0,null,null,0,0,0]
[null,null,"TechLow","TechLow - 0 - 0",null,null,0,0,0,0,0,0,0,0,0,0,0,0,0,0,0,0,{"$f":"W419","v":0},0,0,0,0,0,0,0,0,0,0,0,0,0,null,null,0,0,0]
[null,null,"TechLow","TechLow - 0 - 0",null,null,0,0,0,0,0,0,0,0,0,0,0,0,0,0,0,0,{"$f":"W420","v":0},0,0,0,0,0,0,0,0,0,0,0,0,0,null,null,0,0,0]
[null,null,"TechLow","TechLow - 0 - 0",null,null,0,0,0,0,0,0,0,0,0,0,0,0,0,0,0,0,{"$f":"W421","v":0},0,0,0,0,0,0,0,0,0,0,0,0,0,null,null,0,0,0]
[null,null,"TechLow","TechLow - 0 - 0",null,null,0,0,0,0,0,0,0,0,0,{"$f":"P422","v":0},0,0,0,0,0,0,{"$f":"W422","v":0},0,0,0,0,0,0,0,0,0,0,0,0,0,null,null,0,0,0]
[null,null,"TechLow","TechLow - 0 - 0",null,null,0,0,0,0,0,0,0,0,0,0,0,0,0,0,0,0,{"$f":"W423","v":0},0,0,0,0,0,0,0,0,0,0,0,0,0,null,null,0,0,0]
[null,null,"TechLow","TechLow - 0 - 0",null,null,0,0,0,0,0,0,0,0,0,0,0,0,0,0,0,0,{"$f":"W424","v":0},0,0,0,0,0,0,0,0,0,0,0,0,0,null,null,0,0,0]
[null,null,"TechLow","TechLow - 0 - 0",null,null,0,0,0,0,0,0,0,0,0,0,0,0,0,0,0,0,{"$f":"W425","v":0},0,0,0,0,0,0,0,0,0,0,0,0,0,null,null,0,0,0]
[null,null,"TechLow","TechLow - 0 - 0",null,null,0,0,0,0,0,0,0,0,0,0,0,0,0,0,0,0,{"$f":"W426","v":0},0,0,0,0,0,0,0,0,0,0,0,0,0,null,null,0,0,0]
[null,null,"TechLow","TechLow - 0 - 0",null,null,0,0,0,0,0,0,0,0,0,0,0,0,0,0,0,0,{"$f":"W427","v":0},0,0,0,0,0,0,0,0,0,0,0,0,0,null,null,0,0,0]
[null,null,"TechLow","TechLow - 0 - 0",null,null,0,0,0,0,0,0,0,0,0,0,0,0,0,0,0,0,{"$f":"W428","v":0},0,0,0,0,0,0,0,0,0,0,0,0,0,null,null,0,0,0]
[null,null,"TechLow","TechLow - 0 - 0",null,null,0,0,0,0,0,0,0,0,0,0,0,0,0,0,0,0,{"$f":"W429","v":0},0,0,0,0,0,0,0,0,0,0,0,0,0,null,null,0,0,0]
[null,null,"TechLow","TechLow - 0 - 0",null,null,0,0,0,0,0,0,0,0,0,0,0,0,0,0,0,0,{"$f":"W430","v":0},0,0,0,0,0,0,0,0,0,0,0,0,0,null,null,0,0,0]
[null,null,"TechLow","TechLow - 0 - 0",null,null,{"$f":"G432","v":0},0,0,0,0,0,0,0,0,0,0,0,0,0,0,0,{"$f":"W431","v":0},0,0,0,0,0,0,0,0,0,0,0,0,0,null,null,0,0,0]
[null,null,"TechLow","TechLow - 0 - 0",null,null,0,0,{"$f":"I432","v":0},0,0,{"$f":"L432*(1+$H$439)","v":0},0,0,0,{"$f":"P432","v":0},0,0,0,0,0,0,{"$f":"W432","v":0},0,0,0,0,0,0,0,0,0,0,0,0,0,null,null,{"$f":"AM432","v":0},0,0]
[null,null,"TechLow","TechLow - 0 - 0",null,null,0,0,0,0,0,0,0,0,0,0,0,0,0,0,0,0,{"$f":"W433","v":0},0,0,0,0,0,0,0,0,0,0,0,0,0,null,null,0,0,0]
[null,null,"TechLow","TechLow - 0 - 0",null,null,0,0,0,0,0,0,0,0,0,0,0,0,0,0,0,0,{"$f":"W434","v":0},0,0,0,0,0,0,0,0,0,0,0,0,0,null,null,0,0,0]
[null,null,"TechLow","TechLow - 0 - 0",null,null,0,0,0,0,0,0,0,0,0,0,0,0,0,0,0,0,{"$f":"W435","v":0},0,0,0,0,0,0,0,0,0,0,0,0,0,null,null,0,0,0]
[null,null,"TechLow","TechLow - 0 - 0",null,null,0,0,0,0,0,0,0,0,0,0,0,0,0,0,0,0,{"$f":"W436","v":0},0,0,0,0,0,0,0,0,0,0,0,0,0,null,null,0,0,0]
[null,null,"TechLow",{"$error":"#REF!"},null,null,{"$f":"#REF!","v":{"$error":"#REF!"}},{"$f":"#REF!","v":{"$error":"#REF!"}},0,0,0,0,0,0,0,0,0,0,0,0,0,0,{"$f":"W437","v":0},0,0,0,0,0,0,0,0,0,0,0,0,0,null,null,0,0,0]
[null,null,"TechLow",{"$error":"#REF!"},null,null,{"$f":"#REF!","v":{"$error":"#REF!"}},{"$f":"#REF!","v":{"$error":"#REF!"}},{"$f":"#REF!","v":{"$error":"#REF!"}},{"$f":"#REF!","v":{"$error":"#REF!"}},{"$f":"#REF!","v":{"$error":"#REF!"}},{"$f":"#REF!*(1+$H$439)","v":{"$error":"#REF!"}},{"$f":"#REF!*(1+$H$439)","v":{"$error":"#REF!"}},{"$f":"#REF!*(1+$H$439)","v":{"$error":"#REF!"}},{"$f":"#REF!*(1+$H$439)","v":{"$error":"#REF!"}},{"$f":"#REF!","v":{"$error":"#REF!"}},{"$f":"#REF!","v":{"$error":"#REF!"}},{"$f":"#REF!","v":{"$error":"#REF!"}},{"$f":"#REF!","v":{"$error":"#REF!"}},{"$f":"#REF!","v":{"$error":"#REF!"}},{"$error":"#REF!"},{"$error":"#REF!"},{"$f":"#REF!","v":{"$error":"#REF!"}},{"$f":"#REF!","v":{"$error":"#REF!"}},{"$f":"#REF!","v":{"$error":"#REF!"}},{"$f":"#REF!","v":{"$error":"#REF!"}},{"$f":"#REF!","v":{"$error":"#REF!"}},{"$f":"#REF!","v":{"$error":"#REF!"}},{"$f":"#REF!","v":{"$error":"#REF!"}},{"$f":"#REF!","v":{"$error":"#REF!"}},{"$f":"#REF!","v":{"$error":"#REF!"}},{"$f":"#REF!","v":{"$error":"#REF!"}},{"$f":"#REF!","v":{"$error":"#REF!"}},{"$f":"#REF!","v":{"$error":"#REF!"}},{"$f":"#REF!","v":{"$error":"#REF!"}},{"$f":"#REF!","v":{"$error":"#REF!"}},null,null,{"$f":"#REF!","v":{"$error":"#REF!"}},{"$f":"#REF!","v":{"$error":"#REF!"}},{"$f":"#REF!","v":{"$error":"#REF!"}}]
[null,null,{"$f":"$G$440","v":"TechLow"},{"$f":"C767&\" - \"&G767&\" - \"&I767","v":{"$error":"#REF!"}},null,null,{"$f":"#REF!","v":{"$error":"#REF!"}},{"$f":"#REF!","v":{"$error":"#REF!"}},{"$f":"#REF!","v":{"$error":"#REF!"}},{"$f":"#REF!","v":{"$error":"#REF!"}},{"$f":"#REF!","v":{"$error":"#REF!"}},{"$f":"#REF!*(1+$H$439)","v":{"$error":"#REF!"}},{"$f":"#REF!*(1+$H$439)","v":{"$error":"#REF!"}},{"$f":"#REF!*(1+$H$439)","v":{"$error":"#REF!"}},{"$f":"#REF!*(1+$H$439)","v":{"$error":"#REF!"}},{"$f":"#REF!","v":{"$error":"#REF!"}},{"$f":"#REF!","v":{"$error":"#REF!"}},{"$f":"#REF!","v":{"$error":"#REF!"}},{"$f":"#REF!","v":{"$error":"#REF!"}},{"$f":"#REF!","v":{"$error":"#REF!"}},{"$error":"#REF!"},{"$error":"#REF!"},{"$f":"#REF!","v":{"$error":"#REF!"}},{"$f":"#REF!","v":{"$error":"#REF!"}},{"$f":"#REF!","v":{"$error":"#REF!"}},{"$f":"#REF!","v":{"$error":"#REF!"}},{"$f":"#REF!","v":{"$error":"#REF!"}},{"$f":"#REF!","v":{"$error":"#REF!"}},{"$f":"#REF!","v":{"$error":"#REF!"}},{"$f":"#REF!","v":{"$error":"#REF!"}},{"$f":"#REF!","v":{"$error":"#REF!"}},{"$f":"#REF!","v":{"$error":"#REF!"}},{"$f":"#REF!","v":{"$error":"#REF!"}},{"$f":"#REF!","v":{"$error":"#REF!"}},{"$f":"#REF!","v":{"$error":"#REF!"}},{"$f":"#REF!","v":{"$error":"#REF!"}},null,null,{"$f":"#REF!","v":{"$error":"#REF!"}},{"$f":"#REF!","v":{"$error":"#REF!"}},{"$f":"#REF!","v":{"$error":"#REF!"}}]
[null,null,"TechLow",{"$error":"#REF!"},null,null,{"$f":"#REF!","v":{"$error":"#REF!"}},{"$f":"#REF!","v":{"$error":"#REF!"}},{"$f":"#REF!","v":{"$error":"#REF!"}},{"$f":"#REF!","v":{"$error":"#REF!"}},{"$f":"#REF!","v":{"$error":"#REF!"}},{"$f":"#REF!*(1+$H$439)","v":{"$error":"#REF!"}},{"$f":"#REF!*(1+$H$439)","v":{"$error":"#REF!"}},{"$f":"#REF!*(1+$H$439)","v":{"$error":"#REF!"}},{"$f":"#REF!*(1+$H$439)","v":{"$error":"#REF!"}},{"$f":"#REF!","v":{"$error":"#REF!"}},{"$f":"#REF!","v":{"$error":"#REF!"}},{"$f":"#REF!","v":{"$error":"#REF!"}},{"$f":"#REF!","v":{"$error":"#REF!"}},{"$f":"#REF!","v":{"$error":"#REF!"}},{"$error":"#REF!"},{"$error":"#REF!"},{"$f":"#REF!","v":{"$error":"#REF!"}},{"$f":"#REF!","v":{"$error":"#REF!"}},{"$f":"#REF!","v":{"$error":"#REF!"}},{"$f":"#REF!","v":{"$error":"#REF!"}},{"$f":"#REF!","v":{"$error":"#REF!"}},{"$f":"#REF!","v":{"$error":"#REF!"}},{"$f":"#REF!","v":{"$error":"#REF!"}},{"$f":"#REF!","v":{"$error":"#REF!"}},{"$f":"#REF!","v":{"$error":"#REF!"}},{"$f":"#REF!","v":{"$error":"#REF!"}},{"$f":"#REF!","v":{"$error":"#REF!"}},{"$f":"#REF!","v":{"$error":"#REF!"}},{"$f":"#REF!","v":{"$error":"#REF!"}},{"$f":"#REF!","v":{"$error":"#REF!"}},null,null,{"$f":"#REF!","v":{"$error":"#REF!"}},{"$f":"#REF!","v":{"$error":"#REF!"}},{"$f":"#REF!","v":{"$error":"#REF!"}}]
[null,null,"TechLow",{"$error":"#REF!"},null,null,{"$f":"#REF!","v":{"$error":"#REF!"}},{"$f":"#REF!","v":{"$error":"#REF!"}},{"$f":"#REF!","v":{"$error":"#REF!"}},{"$f":"#REF!","v":{"$error":"#REF!"}},{"$f":"#REF!","v":{"$error":"#REF!"}},{"$f":"#REF!*(1+$H$439)","v":{"$error":"#REF!"}},{"$f":"#REF!*(1+$H$439)","v":{"$error":"#REF!"}},{"$f":"#REF!*(1+$H$439)","v":{"$error":"#REF!"}},{"$f":"#REF!*(1+$H$439)","v":{"$error":"#REF!"}},{"$f":"#REF!","v":{"$error":"#REF!"}},{"$f":"#REF!","v":{"$error":"#REF!"}},{"$f":"#REF!","v":{"$error":"#REF!"}},{"$f":"#REF!","v":{"$error":"#REF!"}},{"$f":"#REF!","v":{"$error":"#REF!"}},{"$error":"#REF!"},{"$error":"#REF!"},{"$f":"#REF!","v":{"$error":"#REF!"}},{"$f":"#REF!","v":{"$error":"#REF!"}},{"$f":"#REF!","v":{"$error":"#REF!"}},{"$f":"#REF!","v":{"$error":"#REF!"}},{"$f":"#REF!","v":{"$error":"#REF!"}},{"$f":"#REF!","v":{"$error":"#REF!"}},{"$f":"#REF!","v":{"$error":"#REF!"}},{"$f":"#REF!","v":{"$error":"#REF!"}},{"$f":"#REF!","v":{"$error":"#REF!"}},{"$f":"#REF!","v":{"$error":"#REF!"}},{"$f":"#REF!","v":{"$error":"#REF!"}},{"$f":"#REF!","v":{"$error":"#REF!"}},{"$f":"#REF!","v":{"$error":"#REF!"}},{"$f":"#REF!","v":{"$error":"#REF!"}},null,null,{"$f":"#REF!","v":{"$error":"#REF!"}},{"$f":"#REF!","v":{"$error":"#REF!"}},{"$f":"#REF!","v":{"$error":"#REF!"}}]
[null,null,"TechLow",{"$error":"#REF!"},null,null,{"$f":"#REF!","v":{"$error":"#REF!"}},{"$f":"#REF!","v":{"$error":"#REF!"}},{"$f":"#REF!","v":{"$error":"#REF!"}},{"$f":"#REF!","v":{"$error":"#REF!"}},{"$f":"#REF!","v":{"$error":"#REF!"}},{"$f":"#REF!*(1+$H$439)","v":{"$error":"#REF!"}},{"$f":"#REF!*(1+$H$439)","v":{"$error":"#REF!"}},{"$f":"#REF!*(1+$H$439)","v":{"$error":"#REF!"}},{"$f":"#REF!*(1+$H$439)","v":{"$error":"#REF!"}},{"$f":"#REF!","v":{"$error":"#REF!"}},{"$f":"#REF!","v":{"$error":"#REF!"}},{"$f":"#REF!","v":{"$error":"#REF!"}},{"$f":"#REF!","v":{"$error":"#REF!"}},{"$f":"#REF!","v":{"$error":"#REF!"}},{"$error":"#REF!"},{"$error":"#REF!"},{"$f":"#REF!","v":{"$error":"#REF!"}},{"$f":"#REF!","v":{"$error":"#REF!"}},{"$f":"#REF!","v":{"$error":"#REF!"}},{"$f":"#REF!","v":{"$error":"#REF!"}},{"$f":"#REF!","v":{"$error":"#REF!"}},{"$f":"#REF!","v":{"$error":"#REF!"}},{"$f":"#REF!","v":{"$error":"#REF!"}},{"$f":"#REF!","v":{"$error":"#REF!"}},{"$f":"#REF!","v":{"$error":"#REF!"}},{"$f":"#REF!","v":{"$error":"#REF!"}},{"$f":"#REF!","v":{"$error":"#REF!"}},{"$f":"#REF!","v":{"$error":"#REF!"}},{"$f":"#REF!","v":{"$error":"#REF!"}},{"$f":"#REF!","v":{"$error":"#REF!"}},null,null,{"$f":"#REF!","v":{"$error":"#REF!"}},{"$f":"#REF!","v":{"$error":"#REF!"}},{"$f":"#REF!","v":{"$error":"#REF!"}}]
[null,null,"TechLow",{"$error":"#REF!"},null,null,{"$f":"#REF!","v":{"$error":"#REF!"}},{"$f":"#REF!","v":{"$error":"#REF!"}},{"$f":"#REF!","v":{"$error":"#REF!"}},{"$f":"#REF!","v":{"$error":"#REF!"}},{"$f":"#REF!","v":{"$error":"#REF!"}},{"$f":"#REF!*(1+$H$439)","v":{"$error":"#REF!"}},{"$f":"#REF!*(1+$H$439)","v":{"$error":"#REF!"}},{"$f":"#REF!*(1+$H$439)","v":{"$error":"#REF!"}},{"$f":"#REF!*(1+$H$439)","v":{"$error":"#REF!"}},{"$f":"#REF!","v":{"$error":"#REF!"}},{"$f":"#REF!","v":{"$error":"#REF!"}},{"$f":"#REF!","v":{"$error":"#REF!"}},{"$f":"#REF!","v":{"$error":"#REF!"}},{"$f":"#REF!","v":{"$error":"#REF!"}},{"$error":"#REF!"},{"$error":"#REF!"},{"$f":"#REF!","v":{"$error":"#REF!"}},{"$f":"#REF!","v":{"$error":"#REF!"}},{"$f":"#REF!","v":{"$error":"#REF!"}},{"$f":"#REF!","v":{"$error":"#REF!"}},{"$f":"#REF!","v":{"$error":"#REF!"}},{"$f":"#REF!","v":{"$error":"#REF!"}},{"$f":"#REF!","v":{"$error":"#REF!"}},{"$f":"#REF!","v":{"$error":"#REF!"}},{"$f":"#REF!","v":{"$error":"#REF!"}},{"$f":"#REF!","v":{"$error":"#REF!"}},{"$f":"#REF!","v":{"$error":"#REF!"}},{"$f":"#REF!","v":{"$error":"#REF!"}},{"$f":"#REF!","v":{"$error":"#REF!"}},{"$f":"#REF!","v":{"$error":"#REF!"}},null,null,{"$f":"#REF!","v":{"$error":"#REF!"}},{"$f":"#REF!","v":{"$error":"#REF!"}},{"$f":"#REF!","v":{"$error":"#REF!"}}]
[null,null,"TechLow",{"$error":"#REF!"},null,null,{"$f":"#REF!","v":{"$error":"#REF!"}},{"$f":"#REF!","v":{"$error":"#REF!"}},{"$f":"#REF!","v":{"$error":"#REF!"}},{"$f":"#REF!","v":{"$error":"#REF!"}},{"$f":"#REF!","v":{"$error":"#REF!"}},{"$f":"#REF!*(1+$H$439)","v":{"$error":"#REF!"}},{"$f":"#REF!*(1+$H$439)","v":{"$error":"#REF!"}},{"$f":"#REF!*(1+$H$439)","v":{"$error":"#REF!"}},{"$f":"#REF!*(1+$H$439)","v":{"$error":"#REF!"}},{"$f":"#REF!","v":{"$error":"#REF!"}},{"$f":"#REF!","v":{"$error":"#REF!"}},{"$f":"#REF!","v":{"$error":"#REF!"}},{"$f":"#REF!","v":{"$error":"#REF!"}},{"$f":"#REF!","v":{"$error":"#REF!"}},{"$error":"#REF!"},{"$error":"#REF!"},{"$f":"#REF!","v":{"$error":"#REF!"}},{"$f":"#REF!","v":{"$error":"#REF!"}},{"$f":"#REF!","v":{"$error":"#REF!"}},{"$f":"#REF!","v":{"$error":"#REF!"}},{"$f":"#REF!","v":{"$error":"#REF!"}},{"$f":"#REF!","v":{"$error":"#REF!"}},{"$f":"#REF!","v":{"$error":"#REF!"}},{"$f":"#REF!","v":{"$error":"#REF!"}},{"$f":"#REF!","v":{"$error":"#REF!"}},{"$f":"#REF!","v":{"$error":"#REF!"}},{"$f":"#REF!","v":{"$error":"#REF!"}},{"$f":"#REF!","v":{"$error":"#REF!"}},{"$f":"#REF!","v":{"$error":"#REF!"}},{"$f":"#REF!","v":{"$error":"#REF!"}},null,null,{"$f":"#REF!","v":{"$error":"#REF!"}},{"$f":"#REF!","v":{"$error":"#REF!"}},{"$f":"#REF!","v":{"$error":"#REF!"}}]
[]
[null,null,null,null,null,null,"Cost increase compared to base scenario",null,{"$f":"$H$12","v":0.25}]
[null,null,null,null,null,null,"TechHigh"]
[null,null,{"$f":"C$27","v":"Tech scenario"},{"$f":"D$27","v":"Full Name"},"Row for lookup","Adjustment for price level",{"$f":"G$27","v":"Technology"},"Source name","Year","Combined heat and power (CHP)","Fuel","Investment","Grid investment","Fixed O&M","Var. O&M","Other costs","CV","CB","Total efficiency","Electric efficiency condensing","Electric efficiency CHP","Heat efficiency","Full load hours","Profile costs","Balancing costs","Condensing ratio","Technical lifetime","Construction time","Desulphur","Emission factor NOx","Emission factor CH4","Emission factor N2O","Emission factor PM2,5","Geography","Date for data input/update","Desk officer","QA date","QA officer","Reference","Price year in reference","Currency in reference","Comment"]
[null,null,null,null,null,null,{"$f":"IF(G$28=\"\",\"\",G$28)","v":""},{"$f":"IF(H$28=\"\",\"\",H$28)","v":""},"","","","mio.EUR/MW","mio.EUR/MW","EUR/MW/år","EUR/MWh","EUR/MWh","","","","","","","","EUR/MWh","EUR/MWh","","years","years","%","g/GJ fuel","g/GJ fuel","g/GJ fuel","g/GJ fuel","","","",null,null,"","",""]
[null,"TechHigh",{"$f":"$G$775","v":"TechHigh"},{"$f":"C778&\" - \"&G778&\" - \"&I778","v":"TechHigh - 18Me BP WCH in_st 80 MW input, woodchips storage for 10 days   - 2015"},null,null,{"$f":"G64","v":"18Me BP WCH in_st 80 MW input, woodchips storage for 10 days  "},"09  Biomass Woodchips  medium CHP, Tech Cat  2018 Update",2015,"YES","Wood chips",{"$f":"L64*(1+$I$774)","v":4.7750000000000004},0,198000,4.7857021553252483,{"$f":"P64","v":0},0,"07:53:15.057",1.1094317462152197,"06:35:10.127",{"$f":"IF(R778=0,0,R778*T778/(R778+Q778))","v":0.27442276859272824},{"$f":"IF(R778=0,0,T778/(R778+Q778))","v":0.83500897762249138},{"$f":"W64","v":4000},0,0,0,25,2.5,0.97970000000000002,90,3.1,0.81200000000000006,2,"Central","02.03-18","mka",null,null,{"$f":"AM64","v":"Tech Cat  2018 Update"},2015,"EUR"]
[null,null,"TechHigh","TechHigh - 18Me BP WCH in_st 80 MW input, woodchips storage for 10 days   - 2020",null,null,"18Me BP WCH in_st 80 MW input, woodchips storage for 10 days  ","09  Biomass Woodchips  medium CHP, Tech Cat  2018 Update",2020,"YES","Wood chips",4.6500000000000004,0,192000,4.7857021671671118,0,0,"07:53:15.057",1.1094317462351564,"06:35:10.127",{"$f":"IF(R779=0,0,R779*T779/(R779+Q779))","v":0.27442276791368952},{"$f":"IF(R779=0,0,T779/(R779+Q779))","v":0.83500897832146681},{"$f":"W65","v":4000},0,0,0,25,2.5,0.97970000000000002,72,2.17,0.64960000000000007,0.3,"Central","02.03-18","mka",null,null,"Tech Cat  2018 Update",2015,"EUR"]
[null,null,"TechHigh","TechHigh - 18Me BP WCH in_st 80 MW input, woodchips storage for 10 days   - 2030",null,null,"18Me BP WCH in_st 80 MW input, woodchips storage for 10 days  ","09  Biomass Woodchips  medium CHP, Tech Cat  2018 Update",2030,"YES","Wood chips",4.5150000000000006,0,180000,4.7673785142638376,0,0,"07:55:41.930",1.1093825224040659,"06:36:41.258",0.27547752526785418,0.8339049971362118,{"$f":"W66","v":4000},0,0,0,25,2.5,0.97970000000000002,40.6,1.5189999999999999,0.51968000000000014,0.3,"Central","02.03-18","mka",null,null,"Tech Cat  2018 Update",2015,"EUR"]
[null,null,"TechHigh","TechHigh - 18Me BP WCH in_st 80 MW input, woodchips storage for 10 days   - 2050",null,null,"18Me BP WCH in_st 80 MW input, woodchips storage for 10 days  ","09  Biomass Woodchips  medium CHP, Tech Cat  2018 Update",2050,"YES","Wood chips",4.2549999999999999,0,166000,4.8560209634339158,0,0,"07:44:05.074",1.1096202328416156,"06:29:26.787",0.27044892207298926,0.83917131076862628,{"$f":"W67","v":4000},0,0,0,25,2.5,0.97970000000000002,24.360000000000003,0.75949999999999995,1,0.3,"Central","02.03-18","mka",null,null,"Tech Cat  2018 Update",2015,"EUR"]
[null,null,"TechHigh","TechHigh - 18Me BP WPE in_st 80 MW input, woodpellets storage for 10 days   - 2015",null,null,"18Me BP WPE in_st 80 MW input, woodpellets storage for 10 days  ","09  Biomass wood pellets medium CHP,Tech Cat  2018 Update",2015,"YES","Wood pellets",3.9725000000000001,0,163542.56610246317,2.1127522545013178,0,0,"10:06:32.546",0.9665169079884679,"06:52:29.340",0.2864507,0.68006620798846784,{"$f":"W68","v":4000},0,0,0,25,2.5,0.98250000000000004,77.58620689655173,0,1,2,"Decentral","02.03-18","mka",null,null,"Tech Cat  2018 Update",2015,"EUR"]
[null,null,"TechHigh","TechHigh - 18Me BP WPE in_st 80 MW input, woodpellets storage for 10 days   - 2020",null,null,"18Me BP WPE in_st 80 MW input, woodpellets storage for 10 days  ","09  Biomass wood pellets medium CHP,Tech Cat  2018 Update",2020,"YES","Wood pellets",3.8742999999999999,0,158848.0162787544,2.1127522525412665,0,0,"10:06:32.546",0.96651690771491849,"06:52:29.340",0.2864507,0.68006620771491855,{"$f":"W69","v":4000},0,0,0,25,2.5,0.98250000000000004,62.068965517241388,0,1,0.3,"Decentral","02.03-18","mka",null,null,"Tech Cat  2018 Update",2015,"EUR"]
[null,null,"TechHigh","TechHigh - 18Me BP WPE in_st 80 MW input, woodpellets storage for 10 days   - 2030",null,null,"18Me BP WPE in_st 80 MW input, woodpellets storage for 10 days  ","09  Biomass wood pellets medium CHP,Tech Cat  2018 Update",2030,"YES","Wood pellets",3.8490500000000001,0,154174.96296936183,2.1354464868961989,0,0,"10:09:02.153",0.96647900563145583,"06:53:39.869",0.28726699999999999,0.67921200563145578,{"$f":"W70","v":4000},0,0,0,25,2.5,0.98250000000000004,35,0,1,0.3,"Decentral","02.03-18","mka",null,null,"Tech Cat  2018 Update",2015,"EUR"]
[null,null,"TechHigh","TechHigh - 18Me BP WPE in_st 80 MW input, woodpellets storage for 10 days   - 2050",null,null,"18Me BP WPE in_st 80 MW input, woodpellets storage for 10 days  ","09  Biomass wood pellets medium CHP,Tech Cat  2018 Update",2050,"YES","Wood pellets",3.4939499999999999,0,138531.24271527224,2.1354464894976353,0,0,"09:57:17.745",0.96666124207186899,"06:48:06.313",0.2834064,0.68325484207186904,{"$f":"W71","v":4000},0,0,0,25,2.5,0.98250000000000004,21.000000000000004,0,0,0.3,"Decentral","02.03-18","mka",null,null,"Tech Cat  2018 Update",2015,"EUR"]
[null,null,"TechHigh",{"$f":"C786&\" - \"&G786&\" - \"&I786","v":"TechHigh - 18La BP WPE in_st 800 MW input, woodpellets storage for 10 days   - 2015"},null,null,"18La BP WPE in_st 800 MW input, woodpellets storage for 10 days  ","09  Biomass wood pellets Large CHP, Tech Cat  2018 Update",2015,"YES","Wood pellets",2.9931577475558124,0,82081.655316138553,1.9558730515197997,0,0.18,"11:21:17.264",0.96344457926184712,"10:15:05.750",{"$f":"IF(R786=0,0,R786*T786/(R786+Q786))","v":0.30942665954389503},{"$f":"IF(R786=0,0,T786/(R786+Q786))","v":0.65401791971795209},{"$f":"W72","v":5000},0,0,0.2,25,5,0.98250000000000004,20,0,1,0.3,"central","02.03-18","mka",null,null,"Tech Cat  2018 Update",2015,"EUR"]
[null,null,"TechHigh","TechHigh - 18La BP WPE in_st 800 MW input, woodpellets storage for 10 days   - 2020",null,null,"18La BP WPE in_st 800 MW input, woodpellets storage for 10 days  ","09  Biomass wood pellets Large CHP, Tech Cat  2018 Update",2020,"YES","Wood pellets",2.9051110525294996,0,80015.404799044758,1.9514745465612227,0,0.18,"11:21:35.172",0.96532908746550539,"10:16:24.469",0.3101240884182393,0.65520499904726603,{"$f":"W73","v":5000},0,0,0.2,25,5,0.98250000000000004,20.689655172413797,0,1,0.3,"central","02.03-18","mka",null,null,"Tech Cat  2018 Update",2015,"EUR"]
[null,null,"TechHigh","TechHigh - 18La BP WPE in_st 800 MW input, woodpellets storage for 10 days   - 2030",null,null,{"$f":"G74","v":"18La BP WPE in_st 800 MW input, woodpellets storage for 10 days  "},"09  Biomass wood pellets Large CHP, Tech Cat  2018 Update",2030,"YES","Wood pellets",2.7603253897015749,0,76258.738571375608,1.9463064329335111,{"$f":"P74","v":0},0.15,"11:24:18.063",0.96528605715728899,"09:49:06.097",0.31094757463835121,0.65433848251893778,{"$f":"W74","v":5000},0,0,0.2,25,5,0.98250000000000004,17.5,0,1,0.3,"central","02.03-18","mka",null,null,"Tech Cat  2018 Update",2015,"EUR"]
[null,null,"TechHigh","TechHigh - 18La BP WPE in_st 800 MW input, woodpellets storage for 10 days   - 2050",null,null,"18La BP WPE in_st 800 MW input, woodpellets storage for 10 days  ","09  Biomass wood pellets Large CHP, Tech Cat  2018 Update",2050,"YES","Wood pellets",2.5058226080060875,0,69925.576113036092,1.9463064328230104,0,0.15,"11:24:18.063",0.96528605715704896,"09:49:06.097",0.3109475746560052,0.65433848250104376,{"$f":"W75","v":5000},0,0,0.2,25,5,0.98250000000000004,10.500000000000002,0,0,0.3,"central","02.03-18","mka",null,null,"Tech Cat  2018 Update",2015,"EUR"]
[null,null,"TechHigh","TechHigh - 18 Me BP STR 80MW input, Straw CHP Medium, 2 days storage - 2015",null,null,"18 Me BP STR 80MW input, Straw CHP Medium, 2 days storage","09  Biomass straw medium CHP, Tech Cat March 2018 Update",2015,"YES","Straw",4.6726100626854628,0,187943.76939319001,2.4208578838931998,0,1,"11:02:47.437",0.98251242861562371,"07:03:38.839",9.2730434142626675E-2,0.20146909653893405,{"$f":"W76","v":4000},0,0,0,25,2.5,0.95499999999999996,90,0.5,1.1000000000000001,1.1100000000000001,"Decentral","02.03-18","mka",null,null,"Tech Cat March 2018 Update",2015,"EUR"]
[null,null,"TechHigh","TechHigh - 18 Me BP STR 80MW input, Straw CHP Medium, 2 days storage - 2020",null,null,"18 Me BP STR 80MW input, Straw CHP Medium, 2 days storage","09  Biomass straw medium CHP, Tech Cat March 2018 Update",2020,"YES","Straw",4.7446484367796629,0,187432.79709969123,2.4553249999999998,0,1,"11:02:47.437",0.98273106065086102,"06:57:42.039",9.1428789277276004E-2,0.19864110094002099,{"$f":"W77","v":4000},0,0,0,25,2.5,0.96250000000000002,70,0.5,1.1000000000000001,1.1100000000000001,"Decentral","02.03-18","mka",null,null,"Tech Cat March 2018 Update",2015,"EUR"]
[null,null,"TechHigh","TechHigh - 18 Me BP STR 80MW input, Straw CHP Medium, 2 days storage - 2030",null,null,"18 Me BP STR 80MW input, Straw CHP Medium, 2 days storage","09  Biomass straw medium CHP, Tech Cat March 2018 Update",2030,"YES","Straw",4.5053005336556868,0,176340.25057004002,2.4480487861365874,0,1,"11:05:43.775",0.98268643536897815,"06:58:56.508",9.1978528598777046E-2,0.198953277259315,{"$f":"W78","v":4000},0,0,0,25,2.5,0.99,50,0.5,1.1000000000000001,1.1100000000000001,"Decentral","02.03-18","mka",null,null,"Tech Cat March 2018 Update",2015,"EUR"]
[null,null,"TechHigh","TechHigh - 18 Me BP STR 80MW input, Straw CHP Medium, 2 days storage - 2050",null,null,"18 Me BP STR 80MW input, Straw CHP Medium, 2 days storage","09  Biomass straw medium CHP, Tech Cat March 2018 Update",2050,"YES","Straw",4.0872226626095873,0,157833.13691865001,2.4480487861365874,0,1,"10:51:55.645",0.98268643537966793,"06:58:56.508",9.0665870939585794E-2,0.20026593455442318,{"$f":"W79","v":4000},0,0,0,25,2.5,0.99750000000000005,30,0.5,1.1000000000000001,1.1100000000000001,"Decentral","02.03-18","mka",null,null,"Tech Cat March 2018 Update",2015,"EUR"]
[null,null,"TechHigh","TechHigh - 16 ME BP SC NGA - Gas Turbine Single Cycle, medium,natural gas  - 2015",null,null,"16 ME BP SC NGA - Gas Turbine Single Cycle, medium,natural gas ","04  Gas Turbine Single Cycle - Large Scale Plant, Tech Cat 2016",2015,"YES","Natural gas",0.75,0,25000,5.625,0,0,"22:48:00",0.84157894736842098,"09:21:36",0.39,0.41052631578947374,{"$f":"W80","v":5000},0,0,0.2,25,1.5,0,20,1.5,1,0,"Central","2018-02-01","mka",null,null,"Tech Cat 2016",2015,"EUR"]
[null,null,"TechHigh","TechHigh - 16 ME BP SC NGA - Gas Turbine Single Cycle, medium,natural gas  - 2020",null,null,"16 ME BP SC NGA - Gas Turbine Single Cycle, medium,natural gas ","04  Gas Turbine Single Cycle - Large Scale Plant, Tech Cat 2016",2020,"YES","Natural gas",0.73749999999999993,0,24375,5.5,0,0,"23:02:24",0.85749999999999993,"09:36:00",0.4,0.41666666666666669,{"$f":"W81","v":5000},0,0,0.2,25,1.5,0,15,1.5,1,0,"Central","2018-02-01","mka",null,null,"Tech Cat 2016",2015,"EUR"]
[null,null,"TechHigh","TechHigh - 16 ME BP SC NGA - Gas Turbine Single Cycle, medium,natural gas  - 2030",null,null,"16 ME BP SC NGA - Gas Turbine Single Cycle, medium,natural gas ","04  Gas Turbine Single Cycle - Large Scale Plant, Tech Cat 2016",2030,"YES","Natural gas",0.70000000000000007,0,23250,5.25,0,0,"1900-01-01",0.86,"09:50:24",0.41,0.41,{"$f":"W82","v":5000},0,0,0.2,25,1.5,0,10,1.5,1,0,"Central","2018-02-01","mka",null,null,"Tech Cat 2016",2015,"EUR"]
[null,null,"TechHigh","TechHigh - 16 ME BP SC NGA - Gas Turbine Single Cycle, medium,natural gas  - 2050",null,null,"16 ME BP SC NGA - Gas Turbine Single Cycle, medium,natural gas ","04  Gas Turbine Single Cycle - Large Scale Plant, Tech Cat 2016",2050,"YES","Natural gas",0.65,0,22500,5,0,0,"1900-01-01",0.9,"10:19:12",0.43,0.43,{"$f":"W83","v":5000},0,0,0.2,25,1.5,0,10,1.5,1,0,"Central","2018-02-01","mka",null,null,"Tech Cat 2016",2015,"EUR"]
[null,null,"TechHigh","TechHigh - 16La EX CC NGA CC large CHP Gas Turbine combined Cycle natural Gas  \n - 2015",null,null,{"$f":"G84","v":"16La EX CC NGA CC large CHP Gas Turbine combined Cycle natural Gas  \n"}," 05  Gas Turbine Combined Cycle - Extraction plant, Tech Cat 2016",2015,"YES","Natural gas",1.125,0,37500,5.625,{"$f":"P84","v":0},0.15,"1900-01-01T16:48:00",0.8464864864864865,"13:12:00",0.50540540540540546,0.29729729729729737,{"$f":"W84","v":5000},0,0,0.2,25,2.5,0,20,1.5,1,0,"Central","02.03-18","mka",null,null,"Tech Cat 2016",2015,"EUR"]
[null,null,"TechHigh","TechHigh - 16La EX CC NGA CC large CHP Gas Turbine combined Cycle natural Gas  \n - 2020",null,null,"16La EX CC NGA CC large CHP Gas Turbine combined Cycle natural Gas  \n"," 05  Gas Turbine Combined Cycle - Extraction plant, Tech Cat 2016",2020,"YES","Natural gas",1.1000000000000001,0,36625,5.5,0,0.15,"1900-01-01T19:12:00",0.8471794871794871,"13:26:24",0.51692307692307704,0.28717948717948721,{"$f":"W85","v":5000},0,0,0.2,25,2.5,0,15,1.5,1,0,"Central","02.03-18","mka",null,null,"Tech Cat 2016",2015,"EUR"]
[null,null,"TechHigh","TechHigh - 16La EX CC NGA CC large CHP Gas Turbine combined Cycle natural Gas  \n - 2030",null,null,"16La EX CC NGA CC large CHP Gas Turbine combined Cycle natural Gas  \n"," 05  Gas Turbine Combined Cycle - Extraction plant, Tech Cat 2016",2030,"YES","Natural gas",1.0374999999999999,0,34750,5.25,0,0.15,"1900-01-02",0.85116279069767442,"13:55:12",0.53953488372093017,0.26976744186046508,{"$f":"W86","v":5000},0,0,0.2,25,2.5,0,10,1.5,1,0,"Central","02.03-18","mka",null,null,"Tech Cat 2016",2015,"EUR"]
[null,null,"TechHigh","TechHigh - 16La EX CC NGA CC large CHP Gas Turbine combined Cycle natural Gas  \n - 2050",null,null,"16La EX CC NGA CC large CHP Gas Turbine combined Cycle natural Gas  \n"," 05  Gas Turbine Combined Cycle - Extraction plant, Tech Cat 2016",2050,"YES","Natural gas",1,0,32500,5,0,0.15,"1900-01-02T04:48:00",0.85787234042553195,"14:24:00",0.5617021276595745,0.25531914893617019,{"$f":"W87","v":5000},0,0,0.2,25,2.5,0,8,1.5,1,0,"Central","02.03-18","mka",null,null,"Tech Cat 2016",2015,"EUR"]
[null,null,"TechHigh","TechHigh - 17La_EX_COA CHP coal 400-700 MWwe - 2015",null,null,"17La_EX_COA CHP coal 400-700 MWwe","01  Advanced Pulverized Fuel Power Plant - Coal, Tech Cat 2017",2015,"YES","Coal",2.4125000000000001,0,39375,3.6875,0,0.15,"18:00:00",0.89444444444444438,"11:02:24",0.3833333333333333,0.51111111111111107,{"$f":"W88","v":5000},0,0,0.2,25,4.5,0.97,38,1.5,0.8,2.1,"Central","02.03-18","mka",null,null,"Tech Cat Oct. 2017 update",2015,"EUR"]
[null,null,"TechHigh","TechHigh - 17La_EX_COA CHP coal 400-700 MWwe - 2020",null,null,"17La_EX_COA CHP coal 400-700 MWwe","01  Advanced Pulverized Fuel Power Plant - Coal, Tech Cat 2017",2020,"YES","Coal",2.375,0,38750,3.625,0,0.15,"20:09:36",0.90141414141414145,"11:38:24",0.4115151515151515,0.48989898989898989,{"$f":"W89","v":5000},0,0,0.2,25,4.5,0.97,35,1.5,0.8,2.1,"Central","02.03-18","mka",null,null,"Tech Cat Oct. 2017 update",2015,"EUR"]
[null,null,"TechHigh","TechHigh - 17La_EX_COA CHP coal 400-700 MWwe - 2030",null,null,"17La_EX_COA CHP coal 400-700 MWwe","01  Advanced Pulverized Fuel Power Plant - Coal, Tech Cat 2017",2030,"YES","Coal",2.3255936890403377,0,37943.897031710745,3.549590367482625,0,0.15,"1900-01-01T00:14:24",0.90103448275862097,"12:28:48",0.45275862068965522,0.44827586206896558,{"$f":"W90","v":5000},0,0,0.2,25,4.5,0.97,35,1.5,0.8,2.1,"Central","02.03-18","mka",null,null,"Tech Cat Oct. 2017 update",2015,"EUR"]
[null,null,"TechHigh","TechHigh - 17La_EX_COA CHP coal 400-700 MWwe - 2050",null,null,{"$f":"G92","v":"17La_EX_COA CHP coal 400-700 MWwe"},"01  Advanced Pulverized Fuel Power Plant - Coal, Tech Cat 2017",2050,"YES","Coal",{"$f":"L92*(1+$I$774)","v":2.229843034170925},0,36381.649504893998,3.4034446311029876,{"$f":"P92","v":0},0.15,"1900-01-01T00:14:24",0.92702586206896598,"12:50:24",0.46581896551724139,0.4612068965517242,{"$f":"W92","v":5000},0,0,0.2,25,4.5,0.97,35,1.5,0.8,2.1,"Central","02.03-18","mka",null,null,{"$f":"AM92","v":"Tech Cat Oct. 2017 update"},2015,"EUR"]
[null,null,"TechHigh","TechHigh - Coal FGD INT - 2015",null,null,"Coal FGD INT","Table 6.2 , Projected cost of generating electricity 2015” (IEA, 2015)",2015,"NO","Coal",2.1886897499003801,0,32870.313626547366,3.2354544128962144,0,0,"00:00:00",0.45,"10:48:00",0,0,{"$f":"W93","v":5000},0,0,1,40,4,0.95,196.30555555555557,1.5,0.8,13.361111111111111,"Central","00:00:00",0,null,null,"IEA 2015, Projected cost of generating electricity 2015",2011,"EUR"]
[null,null,"TechHigh","TechHigh - Coal FGD INT - 2020",null,null,"Coal FGD INT","Table 6.2 , Projected cost of generating electricity 2015” (IEA, 2015)",2020,"NO","Coal",2.1546686657050373,0,32348.562616602168,3.1806162025081424,0,0,"00:00:00",0.45,"10:48:00",0,0,{"$f":"W94","v":5000},0,0,1,40,4,0.95,196.30555555555557,1.5,0.8,13.361111111111111,"Central","00:00:00",0,null,null,"IEA 2015, Projected cost of generating electricity 2015",2011,"EUR"]
[null,null,"TechHigh","TechHigh - Coal FGD INT - 2030",null,null,"Coal FGD INT","Table 6.2 , Projected cost of generating electricity 2015” (IEA, 2015)",2030,"NO","Coal",2.1098458319733053,0,31675.626556082585,3.1144509338157436,0,0,"00:00:00",0.45,"10:48:00",0,0,{"$f":"W95","v":5000},0,0,1,40,4,0.95,196.30555555555557,1.5,0.8,13.361111111111111,"Central","00:00:00",0,null,null,"IEA 2015, Projected cost of generating electricity 2015",2011,"EUR"]
[null,null,"TechHigh","TechHigh - Coal FGD INT - 2050",null,null,"Coal FGD INT","Table 6.2 , Projected cost of generating electricity 2015” (IEA, 2015)",2050,"NO","Coal",2.0229780695447324,0,30371.459796240946,2.9862210035932439,0,0,"00:00:00",0.45,"10:48:00",0,0,{"$f":"W96","v":5000},0,0,1,40,4,0.95,196.30555555555557,1.5,0.8,13.361111111111111,"Central","00:00:00",0,null,null,"IEA 2015, Projected cost of generating electricity 2015",2011,"EUR"]
[null,null,"TechHigh","TechHigh - Coal no FGD INT - 2015",null,null,"Coal no FGD INT","Table 6.2 , Projected cost of generating electricity 2015” (IEA, 2015)",2015,"NO","Coal",1.8603862874153232,0,27939.766582565258,2.7501362509617824,0,0,"00:00:00",0.45,"10:48:00",0,0,{"$f":"W97","v":5000},0,0,1,40,4,0,196,2,1,13,"Central","00:00:00",0,null,null,"IEA 2015, Projected cost of generating electricity 2015",2011,"EUR"]
[null,null,"TechHigh","TechHigh - Coal no FGD INT - 2020",null,null,"Coal no FGD INT","Table 6.2 , Projected cost of generating electricity 2015” (IEA, 2015)",2020,"NO","Coal",1.8314683658492816,0,27496.278224111844,2.7035237721319212,0,0,"00:00:00",0.45,"10:48:00",0,0,{"$f":"W98","v":5000},0,0,1,40,4,0,196,2,1,13,"Central","00:00:00",0,null,null,"IEA 2015, Projected cost of generating electricity 2015",2011,"EUR"]
[null,null,"TechHigh","TechHigh - Coal no FGD INT - 2030",null,null,"Coal no FGD INT","Table 6.2 , Projected cost of generating electricity 2015” (IEA, 2015)",2030,"NO","Coal",1.7933689571773095,0,26924.282572670199,2.6472832937433814,0,0,"00:00:00",0.45,"10:48:00",0,0,{"$f":"W99","v":5000},0,0,1,40,4,0,196,2,1,13,"Central","00:00:00",0,null,null,"IEA 2015, Projected cost of generating electricity 2015",2011,"EUR"]
[null,null,"TechHigh","TechHigh - Coal no FGD INT - 2050",null,null,"Coal no FGD INT","Table 6.2 , Projected cost of generating electricity 2015” (IEA, 2015)",2050,"NO","Coal",1.7195313591130224,0,25815.740826804809,2.5382878530542574,0,0,"00:00:00",0.45,"10:48:00",0,0,{"$f":"W100","v":5000},0,0,1,40,4,0,196,2,1,13,"Central","00:00:00",0,null,null,"IEA 2015, Projected cost of generating electricity 2015",2011,"EUR"]
[null,null,"TechHigh","TechHigh - Natural gas CCGT INT - 2015",null,null,"Natural gas CCGT INT","Table 6.1,  Projected cost of generating electricity 2015” (IEA, 2015)",2015,"NO","Natural gas",0.95160423908712177,0,28010.47077752943,2.5693314455352296,0,0,"00:00:00",0.59,"14:09:36",0,0,{"$f":"W101","v":5000},0,0,1,30,2,0,39,2,1,0,"Central","00:00:00",0,null,null,"IEA, 2015, Projected cost of generating electricity 2015” ",2011,"EUR"]
[null,null,"TechHigh","TechHigh - Natural gas CCGT INT - 2020",null,null,{"$f":"G102","v":"Natural gas CCGT INT"},"Table 6.1,  Projected cost of generating electricity 2015” (IEA, 2015)",2020,"NO","Natural gas",0.93574416843566977,0,27310.209008091195,2.5122351911900025,{"$f":"P102","v":0},0,"00:00:00",0.59,"13:57:40.457",0,0,{"$f":"W102","v":5000},0,0,1,30,2,0,39,2,1,0,"Central","00:00:00",0,null,null,"IEA, 2015, Projected cost of generating electricity 2015” ",2011,"EUR"]
[null,null,"TechHigh","TechHigh - Natural gas CCGT INT - 2030",null,null,"Natural gas CCGT INT","Table 6.1,  Projected cost of generating electricity 2015” (IEA, 2015)",2030,"NO","Natural gas",0.88816395648131374,0,26049.737823102369,2.3980426824995478,0,0,"00:00:00",0.59,"14:00:09.801",0,0,{"$f":"W103","v":5000},0,0,1,30,2,0,39,2,1,0,"Central","00:00:00",0,null,null,"IEA, 2015, Projected cost of generating electricity 2015” ",2011,"EUR"]
[null,null,"TechHigh","TechHigh - Natural gas CCGT INT - 2050",null,null,"Natural gas CCGT INT","Table 6.1,  Projected cost of generating electricity 2015” (IEA, 2015)",2050,"NO","Natural gas",0.82472367387550549,0,25209.423699776486,2.2838501738090931,0,0,"00:00:00",0.59,"14:00:09.801",0,0,{"$f":"W104","v":5000},0,0,1,30,2,0,39,2,1,0,"Central","00:00:00",0,null,null,"IEA, 2015, Projected cost of generating electricity 2015” ",2011,"EUR"]
[null,null,"TechHigh","TechHigh - Nuclear INT - 2015",null,null,"Nuclear INT","Table 6.3,  Projected cost of generating electricity 2015” (IEA, 2015)",2015,"NO","Uranium",4.6628607715268977,0,65470.371649193985,6.5660692497011421,4,0,"00:00:00",1,"1900-01-01",{"$f":"IF(R818=0,0,R818*T818/(R818+Q818))","v":0},{"$f":"IF(R818=0,0,T818/(R818+Q818))","v":0},{"$f":"W105","v":7000},0,0,1,60,7,0,0,0,0,0,"Central","00:00:00",0,null,null,"IEA, 2015, Projected cost of generating electricity 2015” ",2011,"EUR"]
[null,null,"TechHigh","TechHigh - Nuclear INT - 2020",null,null,"Nuclear INT","Table 6.3,  Projected cost of generating electricity 2015” (IEA, 2015)",2020,"NO","Uranium",4.6628607715268977,0,65470.371649193985,6.5660692497011421,4,0,"00:00:00",1,"1900-01-01",{"$f":"IF(R819=0,0,R819*T819/(R819+Q819))","v":0},{"$f":"IF(R819=0,0,T819/(R819+Q819))","v":0},{"$f":"W106","v":7000},0,0,1,60,7,0,0,0,0,0,"Central","00:00:00",0,null,null,"IEA, 2015, Projected cost of generating electricity 2015” ",2011,"EUR"]
[null,null,"TechHigh","TechHigh - Nuclear INT - 2030",null,null,"Nuclear INT","Table 6.3,  Projected cost of generating electricity 2015” (IEA, 2015)",2030,"NO","Uranium",4.6628607715268977,0,65470.371649193985,6.5660692497011421,4,0,"00:00:00",1,"1900-01-01",{"$f":"IF(R820=0,0,R820*T820/(R820+Q820))","v":0},{"$f":"IF(R820=0,0,T820/(R820+Q820))","v":0},{"$f":"W107","v":7000},0,0,1,60,7,0,0,0,0,0,"Central","00:00:00",0,null,null,"IEA, 2015, Projected cost of generating electricity 2015” ",2011,"EUR"]
[null,null,"TechHigh","TechHigh - Nuclear INT - 2050",null,null,"Nuclear INT","Table 6.3,  Projected cost of generating electricity 2015” (IEA, 2015)",2050,"NO","Uranium",4.6628607715268977,0,65470.371649193985,6.5660692497011421,4,0,"00:00:00",1,"1900-01-01",{"$f":"IF(R821=0,0,R821*T821/(R821+Q821))","v":0},{"$f":"IF(R821=0,0,T821/(R821+Q821))","v":0},{"$f":"W108","v":7000},0,0,1,60,7,0,0,0,0,0,"Central","00:00:00",0,null,null,"IEA, 2015, Projected cost of generating electricity 2015” ",2011,"EUR"]
[null,null,"TechHigh","TechHigh - Solar PV INT - 2015",null,null,"Solar PV INT","Table 6.6, Projected cost of generating electricity 2015” (IEA, 2015)",2015,"NO","Solar",1.5,0,15000,0,0,0,"00:00:00",1,"1900-01-01",0,0,{"$f":"W109","v":1700},0,0,0,25,1,0,0,0,0,0,"Decentral","00:00:00",0,null,null,"IEA, 2015, Projected cost of generating electricity 2015” ",2011,"EUR"]
[null,null,"TechHigh","TechHigh - Solar PV INT - 2020",null,null,"Solar PV INT","Table 6.7, Projected cost of generating electricity 2015” (IEA, 2015)",2020,"NO","Solar",1.5231257390819375,0,14959.218736395316,0,0,0,"00:00:00",1,"1900-01-01",0,0,{"$f":"W110","v":1700},0,0,0,25,1,0,0,0,0,0,"Decentral","00:00:00",0,null,null,"IEA, 2015, Projected cost of generating electricity 2015” ",2011,"EUR"]
[null,null,"TechHigh","TechHigh - Solar PV INT - 2030",null,null,"Solar PV INT","Table 6.8, Projected cost of generating electricity 2015” (IEA, 2015)",2030,"NO","Solar",1.4462903409062924,0,14073.910335473156,0,0,0,"00:00:00",1,"1900-01-01",0,0,{"$f":"W111","v":1700},0,0,0,25,1,0,0,0,0,0,"Decentral","00:00:00",0,null,null,"IEA, 2015, Projected cost of generating electricity 2015” ",2011,"EUR"]
[null,null,"TechHigh","TechHigh - Solar PV INT - 2050",null,null,{"$f":"G112","v":"Solar PV INT"},"Table 6.9, Projected cost of generating electricity 2015” (IEA, 2015)",2050,"NO","Solar",{"$f":"L112*(1+$I$774)","v":1.3120790974778753},0,12596.837136041469,0,{"$f":"P112","v":0},0,"00:00:00",1,"1900-01-01",0,0,{"$f":"W112","v":1700},0,0,0,25,1,0,0,0,0,0,"Decentral","00:00:00",0,null,null,{"$f":"AM112","v":"IEA, 2015, Projected cost of generating electricity 2015” "},2011,"EUR"]
[null,null,"TechHigh","TechHigh - Solar PV INT(/DK)* - 2015",null,null,"Solar PV INT(/DK)*","Table 6.6 /22 PV Large Tech kat 2017",2015,"NO","Solar",1.35,0,11875,0,0,0,"00:00:00",1,"1900-01-01",{"$f":"IF(R826=0,0,R826*T826/(R826+Q826))","v":0},{"$f":"IF(R826=0,0,T826/(R826+Q826))","v":0},{"$f":"W113","v":1700},0,0,0,25,1,0,0,0,0,0,0,"00:00:00",0,null,null,"The value for investement and O&M euqual to large PV DK update  oct 2017",2015,"EUR"]
[null,null,"TechHigh","TechHigh - Solar PV INT(/DK)* - 2020",null,null,"Solar PV INT(/DK)*","Table 6.7 /22 PV Large Tech kat 2017",2020,"NO","Solar",0.77500000000000002,0,10125,0,0,0,"00:00:00",1,"1900-01-01",{"$f":"IF(R827=0,0,R827*T827/(R827+Q827))","v":0},{"$f":"IF(R827=0,0,T827/(R827+Q827))","v":0},{"$f":"W114","v":1700},0,0,0,25,1,0,0,0,0,0,0,"00:00:00",0,null,null,"The value for investement and O&M euqual to large PV DK update  oct 2017. But FLH 1700 h/y which is app. 90 %higher than in DK ",2015,"EUR"]
[null,null,"TechHigh","TechHigh - Solar PV INT(/DK)* - 2030",null,null,"Solar PV INT(/DK)*","Table 6.8/22 PV Large Tech kat 2017",2030,"NO","Solar",0.63749999999999996,0,8125,0,0,0,"00:00:00",1,"1900-01-01",{"$f":"IF(R828=0,0,R828*T828/(R828+Q828))","v":0},{"$f":"IF(R828=0,0,T828/(R828+Q828))","v":0},{"$f":"W115","v":1700},0,0,0,25,1,0,0,0,0,0,0,"00:00:00",0,null,null,"The value for investement and O&M euqual to large PV DK update  oct 2017",2015,"EUR"]
[null,null,"TechHigh","TechHigh - Solar PV INT(/DK)* - 2050",null,null,"Solar PV INT(/DK)*","Table 6.9/22 PV Large Tech kat 2017",2050,"NO","Solar",0.51249999999999996,0,6875,0,0,0,"00:00:00",1,"1900-01-01",{"$f":"IF(R829=0,0,R829*T829/(R829+Q829))","v":0},{"$f":"IF(R829=0,0,T829/(R829+Q829))","v":0},{"$f":"W116","v":1700},0,0,0,25,1,0,0,0,0,0,0,"00:00:00",0,null,null,"The value for investement and O&M euqual to large PV DK update  oct 2017",2015,"EUR"]
[null,null,"TechHigh","TechHigh - Wind onshore INT - 2015",null,null,"Wind onshore INT","Table 6.7, Projected cost of generating electricity 2015” (IEA, 2015)",2015,"NO","Wind",1.7128876303568195,0,43274.202772486868,5.6144650106140208,0,0,"00:00:00",1,"1900-01-01",{"$f":"IF(R830=0,0,R830*T830/(R830+Q830))","v":0},{"$f":"IF(R830=0,0,T830/(R830+Q830))","v":0},{"$f":"W117","v":3100},0,0,0,25,1,0,0,0,0,0,"Decentral","00:00:00",0,null,null,"IEA, 2015, Projected cost of generating electricity 2015” ",2011,"EUR"]
[null,null,"TechHigh","TechHigh - Wind onshore INT - 2020",null,null,"Wind onshore INT","Table 6.8, Projected cost of generating electricity 2015” (IEA, 2015)",2020,"NO","Wind",1.5785435024856962,0,40400.525244626413,5.0129151880482326,0,0,"00:00:00",1,"1900-01-01",{"$f":"IF(R831=0,0,R831*T831/(R831+Q831))","v":0},{"$f":"IF(R831=0,0,T831/(R831+Q831))","v":0},{"$f":"W118","v":3150},0,0,0,25,1,0,0,0,0,0,"Decentral","00:00:00",0,null,null,"IEA, 2015, Projected cost of generating electricity 2015” ",2011,"EUR"]
[null,null,"TechHigh","TechHigh - Wind onshore INT - 2030",null,null,"Wind onshore INT","Table 6.9, Projected cost of generating electricity 2015” (IEA, 2015)",2030,"NO","Wind",1.4441993746145732,0,37695.887571345986,4.6118819730043734,0,0,"00:00:00",1,"1900-01-01",0,0,{"$f":"W119","v":3200},0,0,0,30,1,0,0,0,0,0,"Decentral","00:00:00",0,null,null,"IEA, 2015, Projected cost of generating electricity 2015” ",2011,"EUR"]
[null,null,"TechHigh","TechHigh - Wind onshore INT - 2050",null,null,"Wind onshore INT","Table 6.10, Projected cost of generating electricity 2015” (IEA, 2015)",2050,"NO","Wind",1.3266482627273404,0,35836.449170965694,4.2108487579605152,0,0,"00:00:00",1,"1900-01-01",0,0,{"$f":"W120","v":3300},0,0,0,35,1,0,0,0,0,0,"Decentral","00:00:00",0,null,null,"IEA, 2015, Projected cost of generating electricity 2015” ",2011,"EUR"]
[null,null,"TechHigh","TechHigh - Biomass plant INT - 2015",null,null,"Biomass plant INT","Irena 2015, Renewable Power Generation Costs in 2014 ",2015,"NO","local biomass",3.1575413990353018,0,101041.32476912966,4.4402925923933925,0,0,"00:00:00",0.34,"08:09:36",0,0,{"$f":"W121","v":5000},0,0,1,40,4,0,42.7,3.1,0.8,13.25,"Central","00:00:00",0,null,null,"Irena 2015, Renewable Power Generation Costs in 2014 ",2011,"EUR"]
[null,null,"TechHigh","TechHigh - Biomass plant INT - 2020",null,null,{"$f":"G122","v":"Biomass plant INT"},"Irena 2015, Renewable Power Generation Costs in 2014 ",2020,"NO","local biomass",3.0794871346211377,0,98140.89618538694,4.4402925882740272,{"$f":"P122","v":0},0,"00:00:00",0.34,"08:09:36",0,0,{"$f":"W122","v":5000},0,0,1,40,4,0,42.7,3.1,0.8,13.25,"Central","00:00:00",0,null,null,"Irena 2015, Renewable Power Generation Costs in 2014, Investment data for 2020,2030,2050 is estimated  from the development for large wood pellets ( 800MW / DK)",2011,"EUR"]
[null,null,"TechHigh","TechHigh - Biomass plant INT - 2030",null,null,"Biomass plant INT","Irena 2015, Renewable Power Generation Costs in 2014 ",2030,"NO","local biomass",3.0594171735574145,0,95253.748769576137,4.4879882139592207,0,0,"00:00:00",0.34,"08:09:36",0,0,{"$f":"W123","v":5000},0,0,1,40,4,0,42.7,3.1,0.8,13.25,"Central","00:00:00",0,null,null,"Irena 2015, Renewable Power Generation Costs in 2014, Investment data for 2020,2030,2050 is estimated  from the development for large wood pellets ( 800MW / DK)",2011,"EUR"]
[null,null,"TechHigh","TechHigh - Biomass plant INT - 2050",null,null,"Biomass plant INT","Irena 2015, Renewable Power Generation Costs in 2014 ",2050,"NO","local biomass",2.777165958756298,0,85588.606192563166,4.4879882194265628,0,0,"00:00:00",0.34,"08:09:36",0,0,{"$f":"W124","v":5000},0,0,1,40,4,0,42.7,1.5,0.8,13.25,"Central","00:00:00",0,null,null,"Irena 2015, Renewable Power Generation Costs in 2014, Investment data for 2020,2030,2050 is estimated  from the development for large wood pellets ( 800MW / DK)",2011,"EUR"]
[null,null,"TechHigh","TechHigh - 18La BP WCH in_st 600 MW input, woodchips storage for 10 days   - 2015",null,null,"18La BP WCH in_st 600 MW input, woodchips storage for 10 days  ","09  Biomass  Woodchips  large  CHP, Tech Cat  2018 Update",2015,"YES","Wood chips",4.4749999999999996,0,125625,4.75,0,0,"08:02:03.951",1.114150474243941,"06:42:23.248",0.27943573965587898,0.83471473458806189,{"$f":"W125","v":5000},0,0,0,25,5,0.97970000000000002,30,3,10,0.3,"Central","02.03-18","mka",null,null,"Tech Cat  2018 Update",2015,"EUR"]
[null,null,"TechHigh","TechHigh - 18La BP WCH in_st 600 MW input, woodchips storage for 10 days   - 2020",null,null,"18La BP WCH in_st 600 MW input, woodchips storage for 10 days  ","09  Biomass  Woodchips  large  CHP, Tech Cat  2018 Update",2020,"YES","Wood chips",4.3499999999999996,0,122000,4.75,0,0,"08:02:15.313",1.114150474243941,"06:43:17.596",0.28006476672356151,0.83626522734332354,{"$f":"W126","v":5000},0,0,0,25,5,0.97970000000000002,24,2,8,0.3,"Central","02.03-18","mka",null,null,"Tech Cat  2018 Update",2015,"EUR"]
[null,null,"TechHigh","TechHigh - 18La BP WCH in_st 600 MW input, woodchips storage for 10 days   - 2030",null,null,"18La BP WCH in_st 600 MW input, woodchips storage for 10 days  ","09  Biomass  Woodchips  large  CHP, Tech Cat  2018 Update",2030,"YES","Wood chips",4.09,0,115375,4.625,0,0,"08:04:37.623",1.114150474243941,"06:44:45.956",0.28108745620779174,0.83521118037290532,{"$f":"W127","v":5000},0,0,0,25,5,0.97970000000000002,20,2,6,0.3,"Central","02.03-18","mka",null,null,"Tech Cat  2018 Update",2015,"EUR"]
[null,null,"TechHigh","TechHigh - 18La BP WCH in_st 600 MW input, woodchips storage for 10 days   - 2050",null,null,"18La BP WCH in_st 600 MW input, woodchips storage for 10 days  ","09  Biomass  Woodchips  large  CHP, Tech Cat  2018 Update",2050,"YES","Wood chips",3.83,0,107875,4.75,0,0,"07:53:11.949",1.114150474243941,"06:37:38.195",0.27613651786294091,0.84031550457421234,{"$f":"W128","v":5000},0,0,0,25,5,0.97970000000000002,12,1,5,0.3,"Central","02.03-18","mka",null,null,"Tech Cat  2018 Update",2015,"EUR"]
[null,null,"TechHigh","TechHigh - 16 La EX LTE COA no_inv_exipla  - Coal CHP Life time extension of coal power plant no invest cost for existing plant  - 2015",null,null,"16 La EX LTE COA no_inv_exipla  - Coal CHP Life time extension of coal power plant no invest cost for existing plant ","02 Life time extension of coal power plant, no investmentcost for existing coal plant, , Tech cat update 2016 and coal update(O&M) 2017  ",2015,"YES","Coal",0.3,0,41378.364812611537,3.8751167046731445,0,0.15,"15:21:36",0.85113924050632905,"09:50:24",0.33215189873417716,0.51898734177215189,{"$f":"W129","v":5000},0,0,0.2,15,0.5,0.97,38,1.5,0.8,2.1,"Central","13.09-18","mka",null,null,"Tech Cat Aug 2016, coal note 2017 data for ex. Plant",2015,"EUR"]
[null,null,"TechHigh","TechHigh - 16 La EX LTE COA no_inv_exipla  - Coal CHP Life time extension of coal power plant no invest cost for existing plant  - 2020",null,null,"16 La EX LTE COA no_inv_exipla  - Coal CHP Life time extension of coal power plant no invest cost for existing plant ","02 Life time extension of coal power plant, no investmentcost for existing coal plant, , Tech cat update 2016 and coal update(O&M) 2017  ",2020,"YES","Coal",0.3,0,40132.519827287273,3.7543324999720351,0,0.15,"16:19:12",0.87036144578313257,"10:19:12",0.35228915662650601,0.51807228915662651,{"$f":"W130","v":5000},0,0,0.2,15,0.5,0.97,35,1.5,0.8,2.1,"Central","13.09-18","mka",null,null,"Tech Cat Aug 2016, coal note 2017 data for ex. Plant",2015,"EUR"]
[null,null,"TechHigh","TechHigh - 16 La EX LTE COA no_inv_exipla  - Coal CHP Life time extension of coal power plant no invest cost for existing plant  - 2030",null,null,"16 La EX LTE COA no_inv_exipla  - Coal CHP Life time extension of coal power plant no invest cost for existing plant ","02 Life time extension of coal power plant, no investmentcost for existing coal plant, , Tech cat update 2016 and coal update(O&M) 2017  ",2030,"YES","Coal",0.3,0,38860.786814654326,3.6353639278225081,0,0.15,"17:45:36",0.87977528089887636,"10:48:00",0.37415730337078651,0.5056179775280899,{"$f":"W131","v":5000},0,0,0.2,15,0.5,0.97,35,1.5,0.8,2.1,"Central","13.09-18","mka",null,null,"Tech Cat Aug 2016, coal note 2017 data for ex. Plant",2015,"EUR"]
[null,null,"TechHigh","TechHigh - 16 La EX LTE COA no_inv_exipla  - Coal CHP Life time extension of coal power plant no invest cost for existing plant  - 2050",null,null,{"$f":"G132","v":"16 La EX LTE COA no_inv_exipla  - Coal CHP Life time extension of coal power plant no invest cost for existing plant "},"02 Life time extension of coal power plant, no investmentcost for existing coal plant, , Tech cat update 2016 and coal update(O&M) 2017  ",2050,"YES","Coal",{"$f":"L132*(1+$I$774)","v":0},0,0,0,{"$f":"P132","v":0},0,"00:00:00",0,"00:00:00",0,0,{"$f":"W132","v":0},0,0,0,0,0,0,0,0,0,0,0,"13.09-18","mka",null,null,{"$f":"AM132","v":0},0,0]
[null,null,{"$f":"$G$775","v":"TechHigh"},{"$f":"C846&\" - \"&G846&\" - \"&I846","v":"TechHigh - 16La REF_EX  WPE_COA_exibo_no_inv_exipla Woodpellets CHP  refurb.  \nCoal plants, existing Boiler,  no invest cost in existing plant - 2015"},null,null,"16La REF_EX  WPE_COA_exibo_no_inv_exipla Woodpellets CHP  refurb.  \nCoal plants, existing Boiler,  no invest cost in existing plant","03a Rebuilding coal power plants to biomass,a) Wood pellets, existing boiler, no investmentcost for existing coal plant Tech Cat aug 2016, and coal update(O&M) 2017  ",2015,"YES","Wood pellets",0.71249999999999991,0,47585.119534503261,3.8751167046731445,0,0.15,"14:52:48",0.84155844155844139,"09:36:00",0.32207792207792202,0.51948051948051943,{"$f":"W133","v":5000},0,0,0.2,15,2,0.97,38,3.1,0.8,2.1,"Central","02.03-18","mka",null,null,"Tech Cat  Aug 2016, Coal Update 2017",2015,"EUR"]
[null,null,"TechHigh","TechHigh - 16La REF_EX  WPE_COA_exibo_no_inv_exipla Woodpellets CHP  refurb.  \nCoal plants, existing Boiler,  no invest cost in existing plant - 2020",null,null,"16La REF_EX  WPE_COA_exibo_no_inv_exipla Woodpellets CHP  refurb.  \nCoal plants, existing Boiler,  no invest cost in existing plant","03a Rebuilding coal power plants to biomass,a) Wood pellets, existing boiler, no investmentcost for existing coal plant Tech Cat aug 2016, and coal update(O&M) 2017  ",2020,"YES","Wood pellets",0.70000000000000007,0,46152.397801380357,3.7543324999720351,0,0.15,"15:50:24",0.8607407407407407,"10:04:48",0.34222222222222221,0.51851851851851849,{"$f":"W134","v":5000},0,0,0.2,15,2,0.97,35,3.1,0.8,2.1,"Central","02.03-18","mka",null,null,"Tech Cat  Aug 2016, Coal Update 2017",2015,"EUR"]
[null,null,"TechHigh","TechHigh - 16La REF_EX  WPE_COA_exibo_no_inv_exipla Woodpellets CHP  refurb.  \nCoal plants, existing Boiler,  no invest cost in existing plant - 2030",null,null,"16La REF_EX  WPE_COA_exibo_no_inv_exipla Woodpellets CHP  refurb.  \nCoal plants, existing Boiler,  no invest cost in existing plant","03a Rebuilding coal power plants to biomass,a) Wood pellets, existing boiler, no investmentcost for existing coal plant Tech Cat aug 2016, and coal update(O&M) 2017  ",2030,"YES","Wood pellets",0.6875,0,44689.904836852475,3.6353639278225081,0,0.15,"17:16:48",0.86988505747126443,"10:33:36",0.36413793103448272,0.50574712643678166,{"$f":"W135","v":5000},0,0,0.2,15,2,0.97,35,3.1,0.8,2.1,"Central","02.03-18","mka",null,null,"Tech Cat  Aug 2016, Coal Update 2017",2015,"EUR"]
[null,null,"TechHigh","TechHigh - 16La REF_EX  WPE_COA_exibo_no_inv_exipla Woodpellets CHP  refurb.  \nCoal plants, existing Boiler,  no invest cost in existing plant - 2050",null,null,"16La REF_EX  WPE_COA_exibo_no_inv_exipla Woodpellets CHP  refurb.  \nCoal plants, existing Boiler,  no invest cost in existing plant","03a Rebuilding coal power plants to biomass,a) Wood pellets, existing boiler, no investmentcost for existing coal plant Tech Cat aug 2016, and coal update(O&M) 2017  ",2050,"YES","Wood pellets",{"$error":"#VALUE!"},0,0,0,0,0,"00:00:00",0,"00:00:00",0,0,{"$f":"W136","v":0},0,0,0,0,0,0,0,0,0,0,0,"02.03-18","mka",null,null,"Tech Cat  Aug 2016, Coal Update 2017",2015,"EUR"]
[null,null,"TechHigh","TechHigh - 16La REF_EX  WCH_COA_Newboi_ no_inv_exipla Wood chips CHP refurb.  \nCoal plants, new Boiler, no invest cost for existing plant  - 2015",null,null,"16La REF_EX  WCH_COA_Newboi_ no_inv_exipla Wood chips CHP refurb.  \nCoal plants, new Boiler, no invest cost for existing plant ","03b  Rebuilding coal power plants to biomass,c) Wood chips, new boiler, no investmentcost for existing coal plant Tech Cat aug 2016, and coal update(O&M) 2017  ",2015,"YES","Wood chips",2,0,47585.119534503261,5.8126750570097165,0,0.15,"13:40:48",0.87222222222222212,"09:36:00",0.31666666666666665,0.55555555555555547,{"$f":"W137","v":5000},0,0,0.2,15,2.5,0.97,55,0.5,5,0.3,"Central","02.03-18","mka",null,null,"Tech Cat  Aug 2016, Coal Update 2017",2015,"EUR"]
[null,null,"TechHigh","TechHigh - 16La REF_EX  WCH_COA_Newboi_ no_inv_exipla Wood chips CHP refurb.  \nCoal plants, new Boiler, no invest cost for existing plant  - 2020",null,null,"16La REF_EX  WCH_COA_Newboi_ no_inv_exipla Wood chips CHP refurb.  \nCoal plants, new Boiler, no invest cost for existing plant ","03b  Rebuilding coal power plants to biomass,c) Wood chips, new boiler, no investmentcost for existing coal plant Tech Cat aug 2016, and coal update(O&M) 2017  ",2020,"YES","Wood chips",2,0,46152.397801380357,5.6314987499580527,0,0.15,"14:38:24",0.88973684210526316,"10:04:48",0.33710526315789474,0.55263157894736836,{"$f":"W138","v":5000},0,0,0.2,15,2.5,0.97,35,0.5,5,0.3,"Central","02.03-18","mka",null,null,"Tech Cat  Aug 2016, Coal Update 2017",2015,"EUR"]
[null,null,"TechHigh","TechHigh - 16La REF_EX  WCH_COA_Newboi_ no_inv_exipla Wood chips CHP refurb.  \nCoal plants, new Boiler, no invest cost for existing plant  - 2030",null,null,"16La REF_EX  WCH_COA_Newboi_ no_inv_exipla Wood chips CHP refurb.  \nCoal plants, new Boiler, no invest cost for existing plant ","03b  Rebuilding coal power plants to biomass,c) Wood chips, new boiler, no investmentcost for existing coal plant Tech Cat aug 2016, and coal update(O&M) 2017  ",2030,"YES","Wood chips",2,0,44689.904836852475,5.4530458917337619,0,0.15,"16:04:48",0.89609756097560977,"10:33:36",0.35951219512195121,0.53658536585365857,{"$f":"W139","v":5000},0,0,0.2,15,2.5,0.97,35,0.5,5,0.3,"Central","02.03-18","mka",null,null,"Tech Cat  Aug 2016, Coal Update 2017",2015,"EUR"]
[null,null,"TechHigh","TechHigh - 16La REF_EX  WCH_COA_Newboi_ no_inv_exipla Wood chips CHP refurb.  \nCoal plants, new Boiler, no invest cost for existing plant  - 2050",null,null,"16La REF_EX  WCH_COA_Newboi_ no_inv_exipla Wood chips CHP refurb.  \nCoal plants, new Boiler, no invest cost for existing plant ","03b  Rebuilding coal power plants to biomass,c) Wood chips, new boiler, no investmentcost for existing coal plant Tech Cat aug 2016, and coal update(O&M) 2017  ",2050,"YES","Wood chips",0,0,0,0,0,0,"00:00:00",0,"00:00:00",0,0,{"$f":"W140","v":0},0,0,0,0,0,0,0,0,0,0,0,"00:00:00",0,null,null,"Tech Cat  Aug 2016, Coal Update 2017",2015,"EUR"]
[null,null,"TechHigh","TechHigh - 16La REF_EX WCH_COA_exi_exibo_no_inv_exipla Wood chips CHP refurb.  \nCoal plants, existing boiler, no invest cost for existing plant  - 2015",null,null,"16La REF_EX WCH_COA_exi_exibo_no_inv_exipla Wood chips CHP refurb.  \nCoal plants, existing boiler, no invest cost for existing plant ","03c Rebuilding power plants from coal to biomass b) Wood chips, existing boiler, no investmentcost for existing coal plant Tech Cat aug 2016, and coal update(O&M) 2017  ",2015,"YES","Wood chips",2,0,59998.628978286724,5.6189192217760597,0,0.15,"13:40:48",0.82861111111111097,"09:07:12",0.30083333333333334,0.52777777777777768,{"$f":"W141","v":5000},0,0,0.2,15,2,1,38,3.1,10,0.3,"Central","2017-08-11","mka // 04.04",null,null,"Tech Cat  Aug 2016, Coal Update 2017",2015,"EUR"]
[null,null,"TechHigh","TechHigh - 16La REF_EX WCH_COA_exi_exibo_no_inv_exipla Wood chips CHP refurb.  \nCoal plants, existing boiler, no invest cost for existing plant  - 2020",null,null,{"$f":"G142","v":"16La REF_EX WCH_COA_exi_exibo_no_inv_exipla Wood chips CHP refurb.  \nCoal plants, existing boiler, no invest cost for existing plant "},"03c Rebuilding power plants from coal to biomass b) Wood chips, existing boiler, no investmentcost for existing coal plant Tech Cat aug 2016, and coal update(O&M) 2017  ",2020,"YES","Wood chips",2,0,58192.15374956654,5.4437821249594514,{"$f":"P142","v":0},0.15,"14:38:24",0.84736842105263155,"09:36:00",0.32105263157894737,0.52631578947368418,{"$f":"W142","v":5000},0,0,0.2,15,2,1,35,3.1,8,0.3,"Central","2017-08-11","mka // 04.05",null,null,"Tech Cat  Aug 2016, Coal Update 2017",2015,"EUR"]
[null,null,"TechHigh","TechHigh - 16La REF_EX WCH_COA_exi_exibo_no_inv_exipla Wood chips CHP refurb.  \nCoal plants, existing boiler, no invest cost for existing plant  - 2030",null,null,"16La REF_EX WCH_COA_exi_exibo_no_inv_exipla Wood chips CHP refurb.  \nCoal plants, existing boiler, no invest cost for existing plant ","03c Rebuilding power plants from coal to biomass b) Wood chips, existing boiler, no investmentcost for existing coal plant Tech Cat aug 2016, and coal update(O&M) 2017  ",2030,"YES","Wood chips",2,0,56348.140881248772,5.2712776953426363,0,0.15,"16:04:48",0.85536585365853668,"10:04:48",0.3431707317073171,0.51219512195121963,{"$f":"W143","v":5000},0,0,0.2,15,2,1,35,3.1,6,0.3,"Central","2017-08-11","mka // 04.06",null,null,"Tech Cat  Aug 2016, Coal Update 2017",2015,"EUR"]
[null,null,"TechHigh","TechHigh - 16La REF_EX WCH_COA_exi_exibo_no_inv_exipla Wood chips CHP refurb.  \nCoal plants, existing boiler, no invest cost for existing plant  - 2050",null,null,"16La REF_EX WCH_COA_exi_exibo_no_inv_exipla Wood chips CHP refurb.  \nCoal plants, existing boiler, no invest cost for existing plant ","03c Rebuilding power plants from coal to biomass b) Wood chips, existing boiler, no investmentcost for existing coal plant Tech Cat aug 2016, and coal update(O&M) 2017  ",2050,"YES","Wood chips",0,0,0,0,0,0,"00:00:00",0,"00:00:00",0,0,{"$f":"W144","v":0},0,0,0,0,0,0,0,0,0,0,0,"00:00:00",0,null,null,"Tech Cat  Aug 2016, Coal Update 2017",2015,"EUR"]
[null,null,"TechHigh","TechHigh - 18Sm_PV_roof - 2015",null,null,{"$f":"G149","v":"18Sm_PV_roof"},"22 PV small roof mounted residential systems, Tech Kat July 2018",2015,"NO","solar",{"$f":"L149*(1+$I$774)","v":1.9750000000000001},0,19687.5,0,{"$f":"P149","v":0},0,"00:00:00",1,"1900-01-01",{"$f":"IF(R858=0,0,R858*T858/(R858+Q858))","v":0},{"$f":"IF(R858=0,0,T858/(R858+Q858))","v":0},{"$f":"W149","v":981.45684945000016},0,0,0,30,0.5,0,0,0,0,0,"Decentral","2018-07-19","FGB",null,null,{"$f":"AM149","v":"Tech Cat  Aug 2016, Update July 2018"},2015,"EUR"]
[null,null,"TechHigh","TechHigh - 18Sm_PV_roof - 2020",null,null,"18Sm_PV_roof","22 PV small roof mounted residential systems, Tech Kat July 2018",2020,"NO","solar",1.4105398111356742,0,16800,0,0,0,"00:00:00",1,"1900-01-01",{"$f":"IF(R859=0,0,R859*T859/(R859+Q859))","v":0},{"$f":"IF(R859=0,0,T859/(R859+Q859))","v":0},{"$f":"W150","v":1042.5016602000001},0,0,0,35,0.5,0,0,0,0,0,"Decentral","2018-07-19","FGB",null,null,"Tech Cat  Aug 2016, Update July 2018",2015,"EUR"]
[null,null,"TechHigh","TechHigh - 18Sm_PV_roof - 2030",null,null,"18Sm_PV_roof","22 PV small roof mounted residential systems, Tech Kat July 2018",2030,"NO","solar",1.0868220426679662,0,13518.75,0,0,0,"00:00:00",1,"1900-01-01",0,0,{"$f":"W151","v":1077.1302118500003},0,0,0,40,0.5,0,0,0,0,0,"Decentral","2018-07-19","FGB",null,null,"Tech Cat  Aug 2016, Update July 2018",2015,"EUR"]
[null,null,"TechHigh","TechHigh - 18Sm_PV_roof - 2050",null,null,"18Sm_PV_roof","22 PV small roof mounted residential systems, Tech Kat July 2018",2050,"NO","solar",0.73436957470271147,0,11418.75,0,0,0,"00:00:00",1,"1900-01-01",0,0,{"$f":"W152","v":1124.3630752200002},0,0,0,40,0.5,0,0,0,0,0,"Decentral","2018-07-19","FGB",null,null,"Tech Cat  Aug 2016, Update July 2018",2015,"EUR"]
[null,null,"TechHigh","TechHigh - 18Me_PV_roof - 2015",null,null,"18Me_PV_roof","22 PV medium sized roof mounted commercial systems, Tech Kat July 2018",2015,"NO","solar",1.6803600000000003,0,16775.000000000004,0,0,0,"00:00:00",1,"1900-01-01",0,0,{"$f":"W153","v":1045.6515927000003},0,0,0,30,0.5,0,0,0,0,0,"Decentral","2018-07-19","FGB",null,null,"Tech Cat  Aug 2016, Update July 2018",2015,"EUR"]
[null,null,"TechHigh","TechHigh - 18Me_PV_roof - 2020",null,null,"18Me_PV_roof","22 PV medium sized roof mounted commercial systems, Tech Kat July 2018",2020,"NO","solar",1.0046336118010382,0,14300.000000000002,0,0,0,"00:00:00",1,"1900-01-01",0,0,{"$f":"W154","v":1129.3767985500001},0,0,0,35,0.5,0,0,0,0,0,"Decentral","2018-07-19","FGB",null,null,"Tech Cat  Aug 2016, Update July 2018",2015,"EUR"]
[null,null,"TechHigh","TechHigh - 18Me_PV_roof - 2030",null,null,"18Me_PV_roof","22 PV medium sized roof mounted commercial systems, Tech Kat July 2018",2030,"NO","solar",0.78961780842210416,0,11550,0,0,0,"00:00:00",1,"1900-01-01",0,0,{"$f":"W155","v":1166.03619759},0,0,0,40,0.5,0,0,0,0,0,"Decentral","2018-07-19","FGB",null,null,"Tech Cat  Aug 2016, Update July 2018",2015,"EUR"]
[null,null,"TechHigh","TechHigh - 18Me_PV_roof - 2050",null,null,"18Me_PV_roof","22 PV medium sized roof mounted commercial systems, Tech Kat July 2018",2050,"NO","solar",0.61756709254703379,0,9762.5000000000018,0,0,0,"00:00:00",1,"1900-01-01",0,0,{"$f":"W156","v":1203.2354466000002},0,0,0,40,0.5,0,0,0,0,0,"Decentral","2018-07-19","FGB",null,null,"Tech Cat  Aug 2016, Update July 2018",2015,"EUR"]
[null,null,"TechHigh",{"$error":"#REF!"},null,null,{"$f":"#REF!","v":{"$error":"#REF!"}},{"$f":"#REF!","v":{"$error":"#REF!"}},{"$f":"#REF!","v":{"$error":"#REF!"}},{"$f":"#REF!","v":{"$error":"#REF!"}},{"$f":"#REF!","v":{"$error":"#REF!"}},{"$f":"#REF!*(1+$I$774)","v":{"$error":"#REF!"}},{"$f":"#REF!*(1+$I$774)","v":{"$error":"#REF!"}},{"$f":"#REF!*(1+$I$774)","v":{"$error":"#REF!"}},{"$f":"#REF!*(1+$I$774)","v":{"$error":"#REF!"}},{"$f":"#REF!","v":{"$error":"#REF!"}},{"$f":"#REF!","v":{"$error":"#REF!"}},{"$f":"#REF!","v":{"$error":"#REF!"}},{"$f":"#REF!","v":{"$error":"#REF!"}},{"$f":"#REF!","v":{"$error":"#REF!"}},{"$error":"#REF!"},{"$error":"#REF!"},{"$f":"#REF!","v":{"$error":"#REF!"}},{"$f":"#REF!","v":{"$error":"#REF!"}},{"$f":"#REF!","v":{"$error":"#REF!"}},{"$f":"#REF!","v":{"$error":"#REF!"}},{"$f":"#REF!","v":{"$error":"#REF!"}},{"$f":"#REF!","v":{"$error":"#REF!"}},{"$f":"#REF!","v":{"$error":"#REF!"}},{"$f":"#REF!","v":{"$error":"#REF!"}},{"$f":"#REF!","v":{"$error":"#REF!"}},{"$f":"#REF!","v":{"$error":"#REF!"}},{"$f":"#REF!","v":{"$error":"#REF!"}},{"$f":"#REF!","v":{"$error":"#REF!"}},{"$f":"#REF!","v":{"$error":"#REF!"}},{"$f":"#REF!","v":{"$error":"#REF!"}},null,null,{"$f":"#REF!","v":{"$error":"#REF!"}},{"$f":"#REF!","v":{"$error":"#REF!"}},{"$f":"#REF!","v":{"$error":"#REF!"}}]
[null,null,"TechHigh",{"$error":"#REF!"},null,null,{"$f":"#REF!","v":{"$error":"#REF!"}},{"$f":"#REF!","v":{"$error":"#REF!"}},{"$f":"#REF!","v":{"$error":"#REF!"}},{"$f":"#REF!","v":{"$error":"#REF!"}},{"$f":"#REF!","v":{"$error":"#REF!"}},{"$f":"#REF!*(1+$I$774)","v":{"$error":"#REF!"}},{"$f":"#REF!*(1+$I$774)","v":{"$error":"#REF!"}},{"$f":"#REF!*(1+$I$774)","v":{"$error":"#REF!"}},{"$f":"#REF!*(1+$I$774)","v":{"$error":"#REF!"}},{"$f":"#REF!","v":{"$error":"#REF!"}},{"$f":"#REF!","v":{"$error":"#REF!"}},{"$f":"#REF!","v":{"$error":"#REF!"}},{"$f":"#REF!","v":{"$error":"#REF!"}},{"$f":"#REF!","v":{"$error":"#REF!"}},{"$error":"#REF!"},{"$error":"#REF!"},{"$f":"#REF!","v":{"$error":"#REF!"}},{"$f":"#REF!","v":{"$error":"#REF!"}},{"$f":"#REF!","v":{"$error":"#REF!"}},{"$f":"#REF!","v":{"$error":"#REF!"}},{"$f":"#REF!","v":{"$error":"#REF!"}},{"$f":"#REF!","v":{"$error":"#REF!"}},{"$f":"#REF!","v":{"$error":"#REF!"}},{"$f":"#REF!","v":{"$error":"#REF!"}},{"$f":"#REF!","v":{"$error":"#REF!"}},{"$f":"#REF!","v":{"$error":"#REF!"}},{"$f":"#REF!","v":{"$error":"#REF!"}},{"$f":"#REF!","v":{"$error":"#REF!"}},{"$f":"#REF!","v":{"$error":"#REF!"}},{"$f":"#REF!","v":{"$error":"#REF!"}},null,null,{"$f":"#REF!","v":{"$error":"#REF!"}},{"$f":"#REF!","v":{"$error":"#REF!"}},{"$f":"#REF!","v":{"$error":"#REF!"}}]
[null,null,"TechHigh",{"$error":"#REF!"},null,null,{"$f":"#REF!","v":{"$error":"#REF!"}},{"$f":"#REF!","v":{"$error":"#REF!"}},{"$f":"#REF!","v":{"$error":"#REF!"}},{"$f":"#REF!","v":{"$error":"#REF!"}},{"$f":"#REF!","v":{"$error":"#REF!"}},{"$f":"#REF!*(1+$I$774)","v":{"$error":"#REF!"}},{"$f":"#REF!*(1+$I$774)","v":{"$error":"#REF!"}},{"$f":"#REF!*(1+$I$774)","v":{"$error":"#REF!"}},{"$f":"#REF!*(1+$I$774)","v":{"$error":"#REF!"}},{"$f":"#REF!","v":{"$error":"#REF!"}},{"$f":"#REF!","v":{"$error":"#REF!"}},{"$f":"#REF!","v":{"$error":"#REF!"}},{"$f":"#REF!","v":{"$error":"#REF!"}},{"$f":"#REF!","v":{"$error":"#REF!"}},{"$f":"IF(R868=0,0,R868*T868/(R868+Q868))","v":{"$error":"#REF!"}},{"$f":"IF(R868=0,0,T868/(R868+Q868))","v":{"$error":"#REF!"}},{"$f":"#REF!","v":{"$error":"#REF!"}},{"$f":"#REF!","v":{"$error":"#REF!"}},{"$f":"#REF!","v":{"$error":"#REF!"}},{"$f":"#REF!","v":{"$error":"#REF!"}},{"$f":"#REF!","v":{"$error":"#REF!"}},{"$f":"#REF!","v":{"$error":"#REF!"}},{"$f":"#REF!","v":{"$error":"#REF!"}},{"$f":"#REF!","v":{"$error":"#REF!"}},{"$f":"#REF!","v":{"$error":"#REF!"}},{"$f":"#REF!","v":{"$error":"#REF!"}},{"$f":"#REF!","v":{"$error":"#REF!"}},{"$f":"#REF!","v":{"$error":"#REF!"}},{"$f":"#REF!","v":{"$error":"#REF!"}},{"$f":"#REF!","v":{"$error":"#REF!"}},null,null,{"$f":"#REF!","v":{"$error":"#REF!"}},{"$f":"#REF!","v":{"$error":"#REF!"}},{"$f":"#REF!","v":{"$error":"#REF!"}}]
[null,null,"TechHigh",{"$error":"#REF!"},null,null,{"$f":"#REF!","v":{"$error":"#REF!"}},{"$f":"#REF!","v":{"$error":"#REF!"}},{"$f":"#REF!","v":{"$error":"#REF!"}},{"$f":"#REF!","v":{"$error":"#REF!"}},{"$f":"#REF!","v":{"$error":"#REF!"}},{"$f":"#REF!*(1+$I$774)","v":{"$error":"#REF!"}},{"$f":"#REF!*(1+$I$774)","v":{"$error":"#REF!"}},{"$f":"#REF!*(1+$I$774)","v":{"$error":"#REF!"}},{"$f":"#REF!*(1+$I$774)","v":{"$error":"#REF!"}},{"$f":"#REF!","v":{"$error":"#REF!"}},{"$f":"#REF!","v":{"$error":"#REF!"}},{"$f":"#REF!","v":{"$error":"#REF!"}},{"$f":"#REF!","v":{"$error":"#REF!"}},{"$f":"#REF!","v":{"$error":"#REF!"}},{"$error":"#REF!"},{"$error":"#REF!"},{"$f":"#REF!","v":{"$error":"#REF!"}},{"$f":"#REF!","v":{"$error":"#REF!"}},{"$f":"#REF!","v":{"$error":"#REF!"}},{"$f":"#REF!","v":{"$error":"#REF!"}},{"$f":"#REF!","v":{"$error":"#REF!"}},{"$f":"#REF!","v":{"$error":"#REF!"}},{"$f":"#REF!","v":{"$error":"#REF!"}},{"$f":"#REF!","v":{"$error":"#REF!"}},{"$f":"#REF!","v":{"$error":"#REF!"}},{"$f":"#REF!","v":{"$error":"#REF!"}},{"$f":"#REF!","v":{"$error":"#REF!"}},{"$f":"#REF!","v":{"$error":"#REF!"}},{"$f":"#REF!","v":{"$error":"#REF!"}},{"$f":"#REF!","v":{"$error":"#REF!"}},null,null,{"$f":"#REF!","v":{"$error":"#REF!"}},{"$f":"#REF!","v":{"$error":"#REF!"}},{"$f":"#REF!","v":{"$error":"#REF!"}}]
[null,null,"TechHigh","TechHigh - 19WIN_ON_in Onshore wind incl. Grid - 2020",null,null,{"$f":"G167","v":"19WIN_ON_in Onshore wind incl. Grid"},"21 Wind Turbines Onshore, Tech Kat update 2019",2020,"NO","Wind",{"$f":"L167*(1+$I$774)","v":1.3375000000000001},6.25E-2,17500,1.875,{"$f":"P167","v":0},0,"00:00:00",1,"1900-01-01",0,0,{"$f":"W167","v":3400},0,0,0,27,1.5,0,0,0,0,0,"Decentral","2019-05-28","chwo",null,null,{"$f":"AM167","v":"Tech Cat 2019 Update"},2015,"EUR"]
[null,null,"TechHigh","TechHigh - 19WIN_ON_in Onshore wind incl. Grid - 2025",null,null,"19WIN_ON_in Onshore wind incl. Grid","21 Wind Turbines Onshore, Tech Kat update 2019",2025,"NO","Wind",1.2875000000000001,6.25E-2,16625,1.78125,0,0,"00:00:00",1,"1900-01-01",0,0,{"$f":"W168","v":3500},0,0,0,28.5,1.5,0,0,0,0,0,"Decentral","2024-05-26","chwo - average of 2020 and 2030",null,null,"Tech Cat 2019 Update",2015,"EUR"]
[null,null,"TechHigh","TechHigh - 19WIN_ON_in Onshore wind incl. Grid - 2030",null,null,"19WIN_ON_in Onshore wind incl. Grid","21 Wind Turbines Onshore, Tech Kat update 2019",2030,"NO","Wind",1.2375,6.25E-2,15750,1.6875,0,0,"00:00:00",1,"1900-01-01",0,0,{"$f":"W169","v":3600},0,0,0,30,1.5,0,0,0,0,0,"Decentral","2019-05-28","chwo",null,null,"Tech Cat 2019 Update",2015,"EUR"]
[null,null,"TechHigh","TechHigh - 19WIN_ON_in Onshore wind incl. Grid - 2040",null,null,"19WIN_ON_in Onshore wind incl. Grid","21 Wind Turbines Onshore, Tech Kat update 2019",2040,"NO","Wind",1.1624999999999999,6.25E-2,14490,1.55,0,0,"00:00:00",1,"1900-01-01",0,0,{"$f":"W170","v":3700},0,0,0,30,1.5,0,0,0,0,0,"Decentral","2019-05-28","chwo",null,null,"Tech Cat 2019 Update",2015,"EUR"]
[null,null,"TechHigh","TechHigh - 19WIN_ON_in Onshore wind incl. Grid - 2050",null,null,"19WIN_ON_in Onshore wind incl. Grid","21 Wind Turbines Onshore, Tech Kat update 2019",2050,"NO","Wind",1.1375,6.25E-2,14175,1.5249999999999999,0,0,"00:00:00",1,"1900-01-01",0,0,{"$f":"W171","v":3800},0,0,0,30,1.5,0,0,0,0,0,"Decentral","2019-05-28","chwo",null,null,"Tech Cat 2019 Update",2015,"EUR"]
[null,null,"TechHigh","TechHigh - 19WIN_OF_in Offshore wind incl. Grid - 2015",null,null,{"$f":"G177","v":"19WIN_OF_in Offshore wind incl. Grid"},"21 Wind Turbines Offshore, Tech Kat Update 2019",2015,"NO","Wind",{"$f":"L177*(1+$I$774)","v":3.0750000000000002},0.5,71625,5.375,{"$f":"P177","v":0},0,"00:00:00",1,"1900-01-01",0,0,{"$f":"W177","v":4400},0,0,0,25,3,0,0,0,0,0,"Central","2019-09-10","chwo",null,null,{"$f":"AM177","v":"Tech Cat 2019 Update"},2015,"EUR"]
[null,null,"TechHigh","TechHigh - 19WIN_OF_in Offshore wind incl. Grid - 2020",null,null,"19WIN_OF_in Offshore wind incl. Grid","21 Wind Turbines Offshore, Tech Kat Update 2019",2020,"NO","Wind",2.1875,0.47499999999999998,50073.75,3.75,0,0,"00:00:00",1,"1900-01-01",0,0,{"$f":"W178","v":4500},0,0,0,27,2.5,0,0,0,0,0,"Central","2019-09-10","chwo",null,null,"Tech Cat 2019 Update",2015,"EUR"]
[null,null,"TechHigh","TechHigh - 19WIN_OF_in Offshore wind incl. Grid - 2030",null,null,"19WIN_OF_in Offshore wind incl. Grid","21 Wind Turbines Offshore, Tech Kat Update 2019",2030,"NO","Wind",1.9624999999999999,0.44999999999999996,45066.25,3.375,0,0,"00:00:00",1,"1900-01-01",0,0,{"$f":"W179","v":4650},0,0,0,30,2.5,0,0,0,0,0,"Central","2019-09-10","chwo",null,null,"Tech Cat 2019 Update",2015,"EUR"]
[null,null,"TechHigh","TechHigh - 19WIN_OF_in Offshore wind incl. Grid - 2040",null,null,"19WIN_OF_in Offshore wind incl. Grid","21 Wind Turbines Offshore, Tech Kat Update 2019",2040,"NO","Wind",1.8125000000000002,0.44999999999999996,41461.25,3.125,0,0,"00:00:00",1,"1900-01-01",0,0,{"$f":"W180","v":4700},0,0,0,30,2.5,0,0,0,0,0,"Central","2019-09-10","chwo",null,null,"Tech Cat 2019 Update",2015,"EUR"]
[null,null,"TechHigh","TechHigh - 19WIN_OF_in Offshore wind incl. Grid - 2050",null,null,"19WIN_OF_in Offshore wind incl. Grid","21 Wind Turbines Offshore, Tech Kat Update 2019",2050,"NO","Wind",1.7749999999999999,0.44999999999999996,40560,3,0,0,"00:00:00",1,"1900-01-01",0,0,{"$f":"W181","v":4900},0,0,0,30,2,0,0,0,0,0,"Central","2019-09-10","chwo",null,null,"Tech Cat 2019 Update",2015,"EUR"]
[null,null,"TechHigh","TechHigh - 19WIN_OF_ex Offshore wind excl. Grid - 2015",null,null,"19WIN_OF_ex Offshore wind excl. Grid","21 Wind Turbines Offshore, Tech Kat Update 2019",2015,"NO","Wind",3.0750000000000002,0,71625,5.375,0,0,"00:00:00",1,"1900-01-01",0,0,{"$f":"W182","v":4400},0,0,0,25,3,0,0,0,0,0,"Central","2019-09-10","chwo",null,null,"Tech Cat 2019 Update",2015,"EUR"]
[null,null,"TechHigh","TechHigh - 19WIN_OF_ex Offshore wind excl. Grid - 2020",null,null,"19WIN_OF_ex Offshore wind excl. Grid","21 Wind Turbines Offshore, Tech Kat Update 2019",2020,"NO","Wind",2.1875,0,50073.75,3.75,0,0,"00:00:00",1,"1900-01-01",0,0,{"$f":"W183","v":4500},0,0,0,27,2.5,0,0,0,0,0,"Central","2019-09-10","chwo",null,null,"Tech Cat 2019 Update",2015,"EUR"]
[null,null,"TechHigh","TechHigh - 19WIN_OF_ex Offshore wind excl. Grid - 2030",null,null,"19WIN_OF_ex Offshore wind excl. Grid","21 Wind Turbines Offshore, Tech Kat Update 2019",2030,"NO","Wind",1.9624999999999999,0,45066.25,3.375,0,0,"00:00:00",1,"1900-01-01",0,0,{"$f":"W184","v":4650},0,0,0,30,2.5,0,0,0,0,0,"Central","2019-09-10","chwo",null,null,"Tech Cat 2019 Update",2015,"EUR"]
[null,null,"TechHigh","TechHigh - 19WIN_OF_ex Offshore wind excl. Grid - 2040",null,null,"19WIN_OF_ex Offshore wind excl. Grid","21 Wind Turbines Offshore, Tech Kat Update 2019",2040,"NO","Wind",1.8125000000000002,0,41461.25,3.125,0,0,"00:00:00",1,"1900-01-01",0,0,{"$f":"W185","v":4700},0,0,0,30,2.5,0,0,0,0,0,"Central","2019-09-10","chwo",null,null,"Tech Cat 2019 Update",2015,"EUR"]
[null,null,"TechHigh","TechHigh - 19WIN_OF_ex Offshore wind excl. Grid - 2050",null,null,"19WIN_OF_ex Offshore wind excl. Grid","21 Wind Turbines Offshore, Tech Kat Update 2019",2050,"NO","Wind",1.7749999999999999,0,40560,3,0,0,"00:00:00",1,"1900-01-01",0,0,{"$f":"W186","v":4900},0,0,0,30,2,0,0,0,0,0,"Central","2019-09-10","chwo",null,null,"Tech Cat 2019 Update",2015,"EUR"]
[null,null,"TechHigh","TechHigh - 19WIN_NS_in Nearshore wind incl. Grid - 2015",null,null,{"$f":"G187","v":"19WIN_NS_in Nearshore wind incl. Grid"},"21 Wind Turbines Nearshore, Tech Kat Update 2019",2015,"NO","Wind",2.7749999999999995,0.35000000000000003,64462.5,4.875,{"$f":"P187","v":0},0,"00:00:00",1,"1900-01-01",0,0,{"$f":"W187","v":4400},0,0,0,25,2,0,0,0,0,0,"Central","2019-09-10","chwo",null,null,"Tech Cat 2019 Update",2015,"EUR"]
[null,null,"TechHigh","TechHigh - 19WIN_NS_in Nearshore wind incl. Grid - 2020",null,null,"19WIN_NS_in Nearshore wind incl. Grid","21 Wind Turbines Nearshore, Tech Kat Update 2019",2020,"NO","Wind",1.85,0.33750000000000002,45066.25,3.375,0,0,"00:00:00",1,"1900-01-01",0,0,{"$f":"W188","v":4500},0,0,0,27,2,0,0,0,0,0,"Central","2019-09-10","chwo",null,null,"Tech Cat 2019 Update",2015,"EUR"]
[null,null,"TechHigh","TechHigh - 19WIN_NS_in Nearshore wind incl. Grid - 2030",null,null,"19WIN_NS_in Nearshore wind incl. Grid","21 Wind Turbines Nearshore, Tech Kat Update 2019",2030,"NO","Wind",1.7625,0.3125,42812.5,3.75,0,0,"00:00:00",1,"1900-01-01",0,0,{"$f":"W189","v":4650},0,0,0,30,2,0,0,0,0,0,"Central","2019-09-10","chwo",null,null,"Tech Cat 2019 Update",2015,"EUR"]
[null,null,"TechHigh","TechHigh - 19WIN_NS_in Nearshore wind incl. Grid - 2040",null,null,"19WIN_NS_in Nearshore wind incl. Grid","21 Wind Turbines Nearshore, Tech Kat Update 2019",2040,"NO","Wind",1.6875,0.3125,41100,3,0,0,"00:00:00",1,"1900-01-01",0,0,{"$f":"W190","v":4700},0,0,0,30,2,0,0,0,0,0,"Central","2019-09-10","chwo",null,null,"Tech Cat 2019 Update",2015,"EUR"]
[null,null,"TechHigh","TechHigh - 19WIN_NS_in Nearshore wind incl. Grid - 2050",null,null,"19WIN_NS_in Nearshore wind incl. Grid","21 Wind Turbines Nearshore, Tech Kat Update 2019",2050,"NO","Wind",1.6712500000000001,0.30374999999999996,40672.5,3,0,0,"00:00:00",1,"1900-01-01",0,0,{"$f":"W191","v":4900},0,0,0,30,2,0,0,0,0,0,"Central","2019-09-10","chwo",null,null,"Tech Cat 2019 Update",2015,"EUR"]
[null,null,"TechHigh","TechHigh - 19WIN_NS_ex Nearshore wind excl. Grid - 2015",null,null,"19WIN_NS_ex Nearshore wind excl. Grid","21 Wind Turbines Nearshore, Tech Kat Update 2019",2015,"NO","Wind",2.7749999999999995,0,64462.5,4.875,0,0,"00:00:00",1,"1900-01-01",{"$f":"IF(R890=0,0,R890*T890/(R890+Q890))","v":0},{"$f":"IF(R890=0,0,T890/(R890+Q890))","v":0},{"$f":"W192","v":4400},0,0,0,25,2,0,0,0,0,0,"Central","2019-09-10","chwo",null,null,"Tech Cat 2019 Update",2015,"EUR"]
[null,null,"TechHigh","TechHigh - 19WIN_NS_ex Nearshore wind excl. Grid - 2020",null,null,"19WIN_NS_ex Nearshore wind excl. Grid","21 Wind Turbines Nearshore, Tech Kat Update 2019",2020,"NO","Wind",1.85,0,45066.25,3.375,0,0,"00:00:00",1,"1900-01-01",0,0,{"$f":"W193","v":4500},0,0,0,27,2,0,0,0,0,0,"Central","2019-09-10","chwo",null,null,"Tech Cat 2019 Update",2015,"EUR"]
[null,null,"TechHigh","TechHigh - 19WIN_NS_ex Nearshore wind excl. Grid - 2030",null,null,"19WIN_NS_ex Nearshore wind excl. Grid","21 Wind Turbines Nearshore, Tech Kat Update 2019",2030,"NO","Wind",1.7625,0,42812.5,3.75,0,0,"00:00:00",1,"1900-01-01",0,0,{"$f":"W194","v":4650},0,0,0,30,2,0,0,0,0,0,"Central","2019-09-10","chwo",null,null,"Tech Cat 2019 Update",2015,"EUR"]
[null,null,"TechHigh","TechHigh - 19WIN_NS_ex Nearshore wind excl. Grid - 2040",null,null,"19WIN_NS_ex Nearshore wind excl. Grid","21 Wind Turbines Nearshore, Tech Kat Update 2019",2040,"NO","Wind",1.6875,0,41100,3,0,0,"00:00:00",1,"1900-01-01",0,0,{"$f":"W195","v":4700},0,0,0,30,2,0,0,0,0,0,"Central","2019-09-10","chwo",null,null,"Tech Cat 2019 Update",2015,"EUR"]
[null,null,"TechHigh","TechHigh - 19WIN_NS_ex Nearshore wind excl. Grid - 2050",null,null,"19WIN_NS_ex Nearshore wind excl. Grid","21 Wind Turbines Nearshore, Tech Kat Update 2019",2050,"NO","Wind",1.6712500000000001,0,40672.5,3,0,0,"00:00:00",1,"1900-01-01",0,0,{"$f":"W196","v":4900},0,0,0,30,2,0,0,0,0,0,"Central","2019-09-10","chwo",null,null,"Tech Cat 2019 Update",2015,"EUR"]
[null,null,"TechHigh","TechHigh - 19WIN_NS_ex Nearshore wind excl. Grid - 2020",null,null,{"$f":"G193","v":"19WIN_NS_ex Nearshore wind excl. Grid"},"21 Wind Turbines Nearshore, Tech Kat Update 2019",2020,"NO","Wind",{"$f":"L193*(1+$I$774)","v":1.85},0,45066.25,3.375,{"$f":"P193","v":0},0,"00:00:00",1,"1900-01-01",0,0,{"$f":"W193","v":4500},0,0,0,27,2,0,0,0,0,0,"Central","2019-09-10","chwo",null,null,{"$f":"AM193","v":"Tech Cat 2019 Update"},2015,"EUR"]
[null,null,"TechHigh","TechHigh - 19WIN_NS_ex Nearshore wind excl. Grid - 2030",null,null,"19WIN_NS_ex Nearshore wind excl. Grid","21 Wind Turbines Nearshore, Tech Kat Update 2019",2030,"NO","Wind",1.7625,0,42812.5,3.75,0,0,"00:00:00",1,"1900-01-01",0,0,{"$f":"W194","v":4650},0,0,0,30,2,0,0,0,0,0,"Central","2019-09-10","chwo",null,null,"Tech Cat 2019 Update",2015,"EUR"]
[null,null,"TechHigh","TechHigh - 19WIN_NS_ex Nearshore wind excl. Grid - 2040",null,null,"19WIN_NS_ex Nearshore wind excl. Grid","21 Wind Turbines Nearshore, Tech Kat Update 2019",2040,"NO","Wind",1.6875,0,41100,3,0,0,"00:00:00",1,"1900-01-01",0,0,{"$f":"W195","v":4700},0,0,0,30,2,0,0,0,0,0,"Central","2019-09-10","chwo",null,null,"Tech Cat 2019 Update",2015,"EUR"]
[null,null,"TechHigh","TechHigh - 19WIN_NS_ex Nearshore wind excl. Grid - 2050",null,null,"19WIN_NS_ex Nearshore wind excl. Grid","21 Wind Turbines Nearshore, Tech Kat Update 2019",2050,"NO","Wind",1.6712500000000001,0,40672.5,3,0,0,"00:00:00",1,"1900-01-01",0,0,{"$f":"W196","v":4900},0,0,0,30,2,0,0,0,0,0,"Central","2019-09-10","chwo",null,null,"Tech Cat 2019 Update",2015,"EUR"]
[null,null,"TechHigh",{"$error":"#REF!"},null,null,{"$f":"#REF!","v":{"$error":"#REF!"}},{"$f":"#REF!","v":{"$error":"#REF!"}},{"$f":"#REF!","v":{"$error":"#REF!"}},{"$f":"#REF!","v":{"$error":"#REF!"}},{"$f":"#REF!","v":{"$error":"#REF!"}},{"$f":"#REF!*(1+$I$774)","v":{"$error":"#REF!"}},{"$f":"#REF!*(1+$I$774)","v":{"$error":"#REF!"}},{"$f":"#REF!*(1+$I$774)","v":{"$error":"#REF!"}},{"$f":"#REF!*(1+$I$774)","v":{"$error":"#REF!"}},{"$f":"#REF!","v":{"$error":"#REF!"}},{"$f":"#REF!","v":{"$error":"#REF!"}},{"$f":"#REF!","v":{"$error":"#REF!"}},{"$f":"#REF!","v":{"$error":"#REF!"}},{"$f":"#REF!","v":{"$error":"#REF!"}},{"$error":"#REF!"},{"$error":"#REF!"},{"$f":"#REF!","v":{"$error":"#REF!"}},{"$f":"#REF!","v":{"$error":"#REF!"}},{"$f":"#REF!","v":{"$error":"#REF!"}},{"$f":"#REF!","v":{"$error":"#REF!"}},{"$f":"#REF!","v":{"$error":"#REF!"}},{"$f":"#REF!","v":{"$error":"#REF!"}},{"$f":"#REF!","v":{"$error":"#REF!"}},{"$f":"#REF!","v":{"$error":"#REF!"}},{"$f":"#REF!","v":{"$error":"#REF!"}},{"$f":"#REF!","v":{"$error":"#REF!"}},{"$f":"#REF!","v":{"$error":"#REF!"}},{"$f":"#REF!","v":{"$error":"#REF!"}},{"$f":"#REF!","v":{"$error":"#REF!"}},{"$f":"#REF!","v":{"$error":"#REF!"}},null,null,{"$f":"#REF!","v":{"$error":"#REF!"}},{"$f":"#REF!","v":{"$error":"#REF!"}},{"$f":"#REF!","v":{"$error":"#REF!"}}]
[null,null,"TechHigh",{"$error":"#REF!"},null,null,{"$f":"#REF!","v":{"$error":"#REF!"}},{"$f":"#REF!","v":{"$error":"#REF!"}},{"$f":"#REF!","v":{"$error":"#REF!"}},{"$f":"#REF!","v":{"$error":"#REF!"}},{"$f":"#REF!","v":{"$error":"#REF!"}},{"$f":"#REF!*(1+$I$774)","v":{"$error":"#REF!"}},{"$f":"#REF!*(1+$I$774)","v":{"$error":"#REF!"}},{"$f":"#REF!*(1+$I$774)","v":{"$error":"#REF!"}},{"$f":"#REF!*(1+$I$774)","v":{"$error":"#REF!"}},{"$f":"#REF!","v":{"$error":"#REF!"}},{"$f":"#REF!","v":{"$error":"#REF!"}},{"$f":"#REF!","v":{"$error":"#REF!"}},{"$f":"#REF!","v":{"$error":"#REF!"}},{"$f":"#REF!","v":{"$error":"#REF!"}},{"$error":"#REF!"},{"$error":"#REF!"},{"$f":"#REF!","v":{"$error":"#REF!"}},{"$f":"#REF!","v":{"$error":"#REF!"}},{"$f":"#REF!","v":{"$error":"#REF!"}},{"$f":"#REF!","v":{"$error":"#REF!"}},{"$f":"#REF!","v":{"$error":"#REF!"}},{"$f":"#REF!","v":{"$error":"#REF!"}},{"$f":"#REF!","v":{"$error":"#REF!"}},{"$f":"#REF!","v":{"$error":"#REF!"}},{"$f":"#REF!","v":{"$error":"#REF!"}},{"$f":"#REF!","v":{"$error":"#REF!"}},{"$f":"#REF!","v":{"$error":"#REF!"}},{"$f":"#REF!","v":{"$error":"#REF!"}},{"$f":"#REF!","v":{"$error":"#REF!"}},{"$f":"#REF!","v":{"$error":"#REF!"}},null,null,{"$f":"#REF!","v":{"$error":"#REF!"}},{"$f":"#REF!","v":{"$error":"#REF!"}},{"$f":"#REF!","v":{"$error":"#REF!"}}]
[null,null,"TechHigh",{"$error":"#REF!"},null,null,{"$f":"#REF!","v":{"$error":"#REF!"}},{"$f":"#REF!","v":{"$error":"#REF!"}},{"$f":"#REF!","v":{"$error":"#REF!"}},{"$f":"#REF!","v":{"$error":"#REF!"}},{"$f":"#REF!","v":{"$error":"#REF!"}},{"$f":"#REF!*(1+$I$774)","v":{"$error":"#REF!"}},{"$f":"#REF!*(1+$I$774)","v":{"$error":"#REF!"}},{"$f":"#REF!*(1+$I$774)","v":{"$error":"#REF!"}},{"$f":"#REF!*(1+$I$774)","v":{"$error":"#REF!"}},{"$f":"#REF!","v":{"$error":"#REF!"}},{"$f":"#REF!","v":{"$error":"#REF!"}},{"$f":"#REF!","v":{"$error":"#REF!"}},{"$f":"#REF!","v":{"$error":"#REF!"}},{"$f":"#REF!","v":{"$error":"#REF!"}},{"$error":"#REF!"},{"$error":"#REF!"},{"$f":"#REF!","v":{"$error":"#REF!"}},{"$f":"#REF!","v":{"$error":"#REF!"}},{"$f":"#REF!","v":{"$error":"#REF!"}},{"$f":"#REF!","v":{"$error":"#REF!"}},{"$f":"#REF!","v":{"$error":"#REF!"}},{"$f":"#REF!","v":{"$error":"#REF!"}},{"$f":"#REF!","v":{"$error":"#REF!"}},{"$f":"#REF!","v":{"$error":"#REF!"}},{"$f":"#REF!","v":{"$error":"#REF!"}},{"$f":"#REF!","v":{"$error":"#REF!"}},{"$f":"#REF!","v":{"$error":"#REF!"}},{"$f":"#REF!","v":{"$error":"#REF!"}},{"$f":"#REF!","v":{"$error":"#REF!"}},{"$f":"#REF!","v":{"$error":"#REF!"}},null,null,{"$f":"#REF!","v":{"$error":"#REF!"}},{"$f":"#REF!","v":{"$error":"#REF!"}},{"$f":"#REF!","v":{"$error":"#REF!"}}]
[null,null,"TechHigh",{"$error":"#REF!"},null,null,{"$f":"#REF!","v":{"$error":"#REF!"}},{"$f":"#REF!","v":{"$error":"#REF!"}},{"$f":"#REF!","v":{"$error":"#REF!"}},{"$f":"#REF!","v":{"$error":"#REF!"}},{"$f":"#REF!","v":{"$error":"#REF!"}},{"$f":"#REF!*(1+$I$774)","v":{"$error":"#REF!"}},{"$f":"#REF!*(1+$I$774)","v":{"$error":"#REF!"}},{"$f":"#REF!*(1+$I$774)","v":{"$error":"#REF!"}},{"$f":"#REF!*(1+$I$774)","v":{"$error":"#REF!"}},{"$f":"#REF!","v":{"$error":"#REF!"}},{"$f":"#REF!","v":{"$error":"#REF!"}},{"$f":"#REF!","v":{"$error":"#REF!"}},{"$f":"#REF!","v":{"$error":"#REF!"}},{"$f":"#REF!","v":{"$error":"#REF!"}},{"$error":"#REF!"},{"$error":"#REF!"},{"$f":"#REF!","v":{"$error":"#REF!"}},{"$f":"#REF!","v":{"$error":"#REF!"}},{"$f":"#REF!","v":{"$error":"#REF!"}},{"$f":"#REF!","v":{"$error":"#REF!"}},{"$f":"#REF!","v":{"$error":"#REF!"}},{"$f":"#REF!","v":{"$error":"#REF!"}},{"$f":"#REF!","v":{"$error":"#REF!"}},{"$f":"#REF!","v":{"$error":"#REF!"}},{"$f":"#REF!","v":{"$error":"#REF!"}},{"$f":"#REF!","v":{"$error":"#REF!"}},{"$f":"#REF!","v":{"$error":"#REF!"}},{"$f":"#REF!","v":{"$error":"#REF!"}},{"$f":"#REF!","v":{"$error":"#REF!"}},{"$f":"#REF!","v":{"$error":"#REF!"}},null,null,{"$f":"#REF!","v":{"$error":"#REF!"}},{"$f":"#REF!","v":{"$error":"#REF!"}},{"$f":"#REF!","v":{"$error":"#REF!"}}]
[null,null,"TechHigh",{"$error":"#REF!"},null,null,{"$f":"#REF!","v":{"$error":"#REF!"}},{"$f":"#REF!","v":{"$error":"#REF!"}},{"$f":"#REF!","v":{"$error":"#REF!"}},{"$f":"#REF!","v":{"$error":"#REF!"}},{"$f":"#REF!","v":{"$error":"#REF!"}},{"$f":"#REF!*(1+$I$774)","v":{"$error":"#REF!"}},{"$f":"#REF!*(1+$I$774)","v":{"$error":"#REF!"}},{"$f":"#REF!*(1+$I$774)","v":{"$error":"#REF!"}},{"$f":"#REF!*(1+$I$774)","v":{"$error":"#REF!"}},{"$f":"#REF!","v":{"$error":"#REF!"}},{"$f":"#REF!","v":{"$error":"#REF!"}},{"$f":"#REF!","v":{"$error":"#REF!"}},{"$f":"#REF!","v":{"$error":"#REF!"}},{"$f":"#REF!","v":{"$error":"#REF!"}},{"$error":"#REF!"},{"$error":"#REF!"},{"$f":"#REF!","v":{"$error":"#REF!"}},{"$f":"#REF!","v":{"$error":"#REF!"}},{"$f":"#REF!","v":{"$error":"#REF!"}},{"$f":"#REF!","v":{"$error":"#REF!"}},{"$f":"#REF!","v":{"$error":"#REF!"}},{"$f":"#REF!","v":{"$error":"#REF!"}},{"$f":"#REF!","v":{"$error":"#REF!"}},{"$f":"#REF!","v":{"$error":"#REF!"}},{"$f":"#REF!","v":{"$error":"#REF!"}},{"$f":"#REF!","v":{"$error":"#REF!"}},{"$f":"#REF!","v":{"$error":"#REF!"}},{"$f":"#REF!","v":{"$error":"#REF!"}},{"$f":"#REF!","v":{"$error":"#REF!"}},{"$f":"#REF!","v":{"$error":"#REF!"}},null,null,{"$f":"#REF!","v":{"$error":"#REF!"}},{"$f":"#REF!","v":{"$error":"#REF!"}},{"$f":"#REF!","v":{"$error":"#REF!"}}]
[null,null,"TechHigh",{"$error":"#REF!"},null,null,{"$f":"#REF!","v":{"$error":"#REF!"}},{"$f":"#REF!","v":{"$error":"#REF!"}},{"$f":"#REF!","v":{"$error":"#REF!"}},{"$f":"#REF!","v":{"$error":"#REF!"}},{"$f":"#REF!","v":{"$error":"#REF!"}},{"$f":"#REF!*(1+$I$774)","v":{"$error":"#REF!"}},{"$f":"#REF!*(1+$I$774)","v":{"$error":"#REF!"}},{"$f":"#REF!*(1+$I$774)","v":{"$error":"#REF!"}},{"$f":"#REF!*(1+$I$774)","v":{"$error":"#REF!"}},{"$f":"#REF!","v":{"$error":"#REF!"}},{"$f":"#REF!","v":{"$error":"#REF!"}},{"$f":"#REF!","v":{"$error":"#REF!"}},{"$f":"#REF!","v":{"$error":"#REF!"}},{"$f":"#REF!","v":{"$error":"#REF!"}},{"$error":"#REF!"},{"$error":"#REF!"},{"$f":"#REF!","v":{"$error":"#REF!"}},{"$f":"#REF!","v":{"$error":"#REF!"}},{"$f":"#REF!","v":{"$error":"#REF!"}},{"$f":"#REF!","v":{"$error":"#REF!"}},{"$f":"#REF!","v":{"$error":"#REF!"}},{"$f":"#REF!","v":{"$error":"#REF!"}},{"$f":"#REF!","v":{"$error":"#REF!"}},{"$f":"#REF!","v":{"$error":"#REF!"}},{"$f":"#REF!","v":{"$error":"#REF!"}},{"$f":"#REF!","v":{"$error":"#REF!"}},{"$f":"#REF!","v":{"$error":"#REF!"}},{"$f":"#REF!","v":{"$error":"#REF!"}},{"$f":"#REF!","v":{"$error":"#REF!"}},{"$f":"#REF!","v":{"$error":"#REF!"}},null,null,{"$f":"#REF!","v":{"$error":"#REF!"}},{"$f":"#REF!","v":{"$error":"#REF!"}},{"$f":"#REF!","v":{"$error":"#REF!"}}]
[null,null,"TechHigh",{"$error":"#REF!"},null,null,{"$f":"#REF!","v":{"$error":"#REF!"}},{"$f":"#REF!","v":{"$error":"#REF!"}},{"$f":"#REF!","v":{"$error":"#REF!"}},{"$f":"#REF!","v":{"$error":"#REF!"}},{"$f":"#REF!","v":{"$error":"#REF!"}},{"$f":"#REF!*(1+$I$774)","v":{"$error":"#REF!"}},{"$f":"#REF!*(1+$I$774)","v":{"$error":"#REF!"}},{"$f":"#REF!*(1+$I$774)","v":{"$error":"#REF!"}},{"$f":"#REF!*(1+$I$774)","v":{"$error":"#REF!"}},{"$f":"#REF!","v":{"$error":"#REF!"}},{"$f":"#REF!","v":{"$error":"#REF!"}},{"$f":"#REF!","v":{"$error":"#REF!"}},{"$f":"#REF!","v":{"$error":"#REF!"}},{"$f":"#REF!","v":{"$error":"#REF!"}},{"$error":"#REF!"},{"$error":"#REF!"},{"$f":"#REF!","v":{"$error":"#REF!"}},{"$f":"#REF!","v":{"$error":"#REF!"}},{"$f":"#REF!","v":{"$error":"#REF!"}},{"$f":"#REF!","v":{"$error":"#REF!"}},{"$f":"#REF!","v":{"$error":"#REF!"}},{"$f":"#REF!","v":{"$error":"#REF!"}},{"$f":"#REF!","v":{"$error":"#REF!"}},{"$f":"#REF!","v":{"$error":"#REF!"}},{"$f":"#REF!","v":{"$error":"#REF!"}},{"$f":"#REF!","v":{"$error":"#REF!"}},{"$f":"#REF!","v":{"$error":"#REF!"}},{"$f":"#REF!","v":{"$error":"#REF!"}},{"$f":"#REF!","v":{"$error":"#REF!"}},{"$f":"#REF!","v":{"$error":"#REF!"}},null,null,{"$f":"#REF!","v":{"$error":"#REF!"}},{"$f":"#REF!","v":{"$error":"#REF!"}},{"$f":"#REF!","v":{"$error":"#REF!"}}]
[null,null,"TechHigh",{"$error":"#REF!"},null,null,{"$f":"#REF!","v":{"$error":"#REF!"}},{"$f":"#REF!","v":{"$error":"#REF!"}},{"$f":"#REF!","v":{"$error":"#REF!"}},{"$f":"#REF!","v":{"$error":"#REF!"}},{"$f":"#REF!","v":{"$error":"#REF!"}},{"$f":"#REF!*(1+$I$774)","v":{"$error":"#REF!"}},{"$f":"#REF!*(1+$I$774)","v":{"$error":"#REF!"}},{"$f":"#REF!*(1+$I$774)","v":{"$error":"#REF!"}},{"$f":"#REF!*(1+$I$774)","v":{"$error":"#REF!"}},{"$f":"#REF!","v":{"$error":"#REF!"}},{"$f":"#REF!","v":{"$error":"#REF!"}},{"$f":"#REF!","v":{"$error":"#REF!"}},{"$f":"#REF!","v":{"$error":"#REF!"}},{"$f":"#REF!","v":{"$error":"#REF!"}},{"$error":"#REF!"},{"$error":"#REF!"},{"$f":"#REF!","v":{"$error":"#REF!"}},{"$f":"#REF!","v":{"$error":"#REF!"}},{"$f":"#REF!","v":{"$error":"#REF!"}},{"$f":"#REF!","v":{"$error":"#REF!"}},{"$f":"#REF!","v":{"$error":"#REF!"}},{"$f":"#REF!","v":{"$error":"#REF!"}},{"$f":"#REF!","v":{"$error":"#REF!"}},{"$f":"#REF!","v":{"$error":"#REF!"}},{"$f":"#REF!","v":{"$error":"#REF!"}},{"$f":"#REF!","v":{"$error":"#REF!"}},{"$f":"#REF!","v":{"$error":"#REF!"}},{"$f":"#REF!","v":{"$error":"#REF!"}},{"$f":"#REF!","v":{"$error":"#REF!"}},{"$f":"#REF!","v":{"$error":"#REF!"}},null,null,{"$f":"#REF!","v":{"$error":"#REF!"}},{"$f":"#REF!","v":{"$error":"#REF!"}},{"$f":"#REF!","v":{"$error":"#REF!"}}]
[null,null,"TechHigh",{"$error":"#REF!"},null,null,{"$f":"#REF!","v":{"$error":"#REF!"}},{"$f":"#REF!","v":{"$error":"#REF!"}},{"$f":"#REF!","v":{"$error":"#REF!"}},{"$f":"#REF!","v":{"$error":"#REF!"}},{"$f":"#REF!","v":{"$error":"#REF!"}},{"$f":"#REF!*(1+$I$774)","v":{"$error":"#REF!"}},{"$f":"#REF!*(1+$I$774)","v":{"$error":"#REF!"}},{"$f":"#REF!*(1+$I$774)","v":{"$error":"#REF!"}},{"$f":"#REF!*(1+$I$774)","v":{"$error":"#REF!"}},{"$f":"#REF!","v":{"$error":"#REF!"}},{"$f":"#REF!","v":{"$error":"#REF!"}},{"$f":"#REF!","v":{"$error":"#REF!"}},{"$f":"#REF!","v":{"$error":"#REF!"}},{"$f":"#REF!","v":{"$error":"#REF!"}},{"$error":"#REF!"},{"$error":"#REF!"},{"$f":"#REF!","v":{"$error":"#REF!"}},{"$f":"#REF!","v":{"$error":"#REF!"}},{"$f":"#REF!","v":{"$error":"#REF!"}},{"$f":"#REF!","v":{"$error":"#REF!"}},{"$f":"#REF!","v":{"$error":"#REF!"}},{"$f":"#REF!","v":{"$error":"#REF!"}},{"$f":"#REF!","v":{"$error":"#REF!"}},{"$f":"#REF!","v":{"$error":"#REF!"}},{"$f":"#REF!","v":{"$error":"#REF!"}},{"$f":"#REF!","v":{"$error":"#REF!"}},{"$f":"#REF!","v":{"$error":"#REF!"}},{"$f":"#REF!","v":{"$error":"#REF!"}},{"$f":"#REF!","v":{"$error":"#REF!"}},{"$f":"#REF!","v":{"$error":"#REF!"}},null,null,{"$f":"#REF!","v":{"$error":"#REF!"}},{"$f":"#REF!","v":{"$error":"#REF!"}},{"$f":"#REF!","v":{"$error":"#REF!"}}]
[null,null,"TechHigh",{"$error":"#REF!"},null,null,{"$f":"#REF!","v":{"$error":"#REF!"}},{"$f":"#REF!","v":{"$error":"#REF!"}},{"$f":"#REF!","v":{"$error":"#REF!"}},{"$f":"#REF!","v":{"$error":"#REF!"}},{"$f":"#REF!","v":{"$error":"#REF!"}},{"$f":"#REF!*(1+$I$774)","v":{"$error":"#REF!"}},{"$f":"#REF!*(1+$I$774)","v":{"$error":"#REF!"}},{"$f":"#REF!*(1+$I$774)","v":{"$error":"#REF!"}},{"$f":"#REF!*(1+$I$774)","v":{"$error":"#REF!"}},{"$f":"#REF!","v":{"$error":"#REF!"}},{"$f":"#REF!","v":{"$error":"#REF!"}},{"$f":"#REF!","v":{"$error":"#REF!"}},{"$f":"#REF!","v":{"$error":"#REF!"}},{"$f":"#REF!","v":{"$error":"#REF!"}},{"$error":"#REF!"},{"$error":"#REF!"},{"$f":"#REF!","v":{"$error":"#REF!"}},{"$f":"#REF!","v":{"$error":"#REF!"}},{"$f":"#REF!","v":{"$error":"#REF!"}},{"$f":"#REF!","v":{"$error":"#REF!"}},{"$f":"#REF!","v":{"$error":"#REF!"}},{"$f":"#REF!","v":{"$error":"#REF!"}},{"$f":"#REF!","v":{"$error":"#REF!"}},{"$f":"#REF!","v":{"$error":"#REF!"}},{"$f":"#REF!","v":{"$error":"#REF!"}},{"$f":"#REF!","v":{"$error":"#REF!"}},{"$f":"#REF!","v":{"$error":"#REF!"}},{"$f":"#REF!","v":{"$error":"#REF!"}},{"$f":"#REF!","v":{"$error":"#REF!"}},{"$f":"#REF!","v":{"$error":"#REF!"}},null,null,{"$f":"#REF!","v":{"$error":"#REF!"}},{"$f":"#REF!","v":{"$error":"#REF!"}},{"$f":"#REF!","v":{"$error":"#REF!"}}]
[null,null,"TechHigh",{"$error":"#REF!"},null,null,{"$f":"#REF!","v":{"$error":"#REF!"}},{"$f":"#REF!","v":{"$error":"#REF!"}},{"$f":"#REF!","v":{"$error":"#REF!"}},{"$f":"#REF!","v":{"$error":"#REF!"}},{"$f":"#REF!","v":{"$error":"#REF!"}},{"$f":"#REF!*(1+$I$774)","v":{"$error":"#REF!"}},{"$f":"#REF!*(1+$I$774)","v":{"$error":"#REF!"}},{"$f":"#REF!*(1+$I$774)","v":{"$error":"#REF!"}},{"$f":"#REF!*(1+$I$774)","v":{"$error":"#REF!"}},{"$f":"#REF!","v":{"$error":"#REF!"}},{"$f":"#REF!","v":{"$error":"#REF!"}},{"$f":"#REF!","v":{"$error":"#REF!"}},{"$f":"#REF!","v":{"$error":"#REF!"}},{"$f":"#REF!","v":{"$error":"#REF!"}},{"$error":"#REF!"},{"$error":"#REF!"},{"$f":"#REF!","v":{"$error":"#REF!"}},{"$f":"#REF!","v":{"$error":"#REF!"}},{"$f":"#REF!","v":{"$error":"#REF!"}},{"$f":"#REF!","v":{"$error":"#REF!"}},{"$f":"#REF!","v":{"$error":"#REF!"}},{"$f":"#REF!","v":{"$error":"#REF!"}},{"$f":"#REF!","v":{"$error":"#REF!"}},{"$f":"#REF!","v":{"$error":"#REF!"}},{"$f":"#REF!","v":{"$error":"#REF!"}},{"$f":"#REF!","v":{"$error":"#REF!"}},{"$f":"#REF!","v":{"$error":"#REF!"}},{"$f":"#REF!","v":{"$error":"#REF!"}},{"$f":"#REF!","v":{"$error":"#REF!"}},{"$f":"#REF!","v":{"$error":"#REF!"}},null,null,{"$f":"#REF!","v":{"$error":"#REF!"}},{"$f":"#REF!","v":{"$error":"#REF!"}},{"$f":"#REF!","v":{"$error":"#REF!"}}]
[null,null,{"$f":"$G$775","v":"TechHigh"},{"$f":"C910&\" - \"&G910&\" - \"&I910","v":{"$error":"#REF!"}},null,null,{"$f":"#REF!","v":{"$error":"#REF!"}},{"$f":"#REF!","v":{"$error":"#REF!"}},{"$f":"#REF!","v":{"$error":"#REF!"}},{"$f":"#REF!","v":{"$error":"#REF!"}},{"$f":"#REF!","v":{"$error":"#REF!"}},{"$f":"#REF!*(1+$I$774)","v":{"$error":"#REF!"}},{"$f":"#REF!*(1+$I$774)","v":{"$error":"#REF!"}},{"$f":"#REF!*(1+$I$774)","v":{"$error":"#REF!"}},{"$f":"#REF!*(1+$I$774)","v":{"$error":"#REF!"}},{"$f":"#REF!","v":{"$error":"#REF!"}},{"$f":"#REF!","v":{"$error":"#REF!"}},{"$f":"#REF!","v":{"$error":"#REF!"}},{"$f":"#REF!","v":{"$error":"#REF!"}},{"$f":"#REF!","v":{"$error":"#REF!"}},{"$error":"#REF!"},{"$error":"#REF!"},{"$f":"#REF!","v":{"$error":"#REF!"}},{"$f":"#REF!","v":{"$error":"#REF!"}},{"$f":"#REF!","v":{"$error":"#REF!"}},{"$f":"#REF!","v":{"$error":"#REF!"}},{"$f":"#REF!","v":{"$error":"#REF!"}},{"$f":"#REF!","v":{"$error":"#REF!"}},{"$f":"#REF!","v":{"$error":"#REF!"}},{"$f":"#REF!","v":{"$error":"#REF!"}},{"$f":"#REF!","v":{"$error":"#REF!"}},{"$f":"#REF!","v":{"$error":"#REF!"}},{"$f":"#REF!","v":{"$error":"#REF!"}},{"$f":"#REF!","v":{"$error":"#REF!"}},{"$f":"#REF!","v":{"$error":"#REF!"}},{"$f":"#REF!","v":{"$error":"#REF!"}},null,null,{"$f":"#REF!","v":{"$error":"#REF!"}},{"$f":"#REF!","v":{"$error":"#REF!"}},{"$f":"#REF!","v":{"$error":"#REF!"}}]
[null,null,"TechHigh",{"$error":"#REF!"},null,null,{"$f":"#REF!","v":{"$error":"#REF!"}},{"$f":"#REF!","v":{"$error":"#REF!"}},{"$f":"#REF!","v":{"$error":"#REF!"}},{"$f":"#REF!","v":{"$error":"#REF!"}},{"$f":"#REF!","v":{"$error":"#REF!"}},{"$f":"#REF!*(1+$I$774)","v":{"$error":"#REF!"}},{"$f":"#REF!*(1+$I$774)","v":{"$error":"#REF!"}},{"$f":"#REF!*(1+$I$774)","v":{"$error":"#REF!"}},{"$f":"#REF!*(1+$I$774)","v":{"$error":"#REF!"}},{"$f":"#REF!","v":{"$error":"#REF!"}},{"$f":"#REF!","v":{"$error":"#REF!"}},{"$f":"#REF!","v":{"$error":"#REF!"}},{"$f":"#REF!","v":{"$error":"#REF!"}},{"$f":"#REF!","v":{"$error":"#REF!"}},{"$error":"#REF!"},{"$error":"#REF!"},{"$f":"#REF!","v":{"$error":"#REF!"}},{"$f":"#REF!","v":{"$error":"#REF!"}},{"$f":"#REF!","v":{"$error":"#REF!"}},{"$f":"#REF!","v":{"$error":"#REF!"}},{"$f":"#REF!","v":{"$error":"#REF!"}},{"$f":"#REF!","v":{"$error":"#REF!"}},{"$f":"#REF!","v":{"$error":"#REF!"}},{"$f":"#REF!","v":{"$error":"#REF!"}},{"$f":"#REF!","v":{"$error":"#REF!"}},{"$f":"#REF!","v":{"$error":"#REF!"}},{"$f":"#REF!","v":{"$error":"#REF!"}},{"$f":"#REF!","v":{"$error":"#REF!"}},{"$f":"#REF!","v":{"$error":"#REF!"}},{"$f":"#REF!","v":{"$error":"#REF!"}},null,null,{"$f":"#REF!","v":{"$error":"#REF!"}},{"$f":"#REF!","v":{"$error":"#REF!"}},{"$f":"#REF!","v":{"$error":"#REF!"}}]
[null,null,"TechHigh",{"$error":"#REF!"},null,null,{"$f":"#REF!","v":{"$error":"#REF!"}},{"$f":"#REF!","v":{"$error":"#REF!"}},{"$f":"#REF!","v":{"$error":"#REF!"}},{"$f":"#REF!","v":{"$error":"#REF!"}},{"$f":"#REF!","v":{"$error":"#REF!"}},{"$f":"#REF!*(1+$I$774)","v":{"$error":"#REF!"}},{"$f":"#REF!*(1+$I$774)","v":{"$error":"#REF!"}},{"$f":"#REF!*(1+$I$774)","v":{"$error":"#REF!"}},{"$f":"#REF!*(1+$I$774)","v":{"$error":"#REF!"}},{"$f":"#REF!","v":{"$error":"#REF!"}},{"$f":"#REF!","v":{"$error":"#REF!"}},{"$f":"#REF!","v":{"$error":"#REF!"}},{"$f":"#REF!","v":{"$error":"#REF!"}},{"$f":"#REF!","v":{"$error":"#REF!"}},{"$error":"#REF!"},{"$error":"#REF!"},{"$f":"#REF!","v":{"$error":"#REF!"}},{"$f":"#REF!","v":{"$error":"#REF!"}},{"$f":"#REF!","v":{"$error":"#REF!"}},{"$f":"#REF!","v":{"$error":"#REF!"}},{"$f":"#REF!","v":{"$error":"#REF!"}},{"$f":"#REF!","v":{"$error":"#REF!"}},{"$f":"#REF!","v":{"$error":"#REF!"}},{"$f":"#REF!","v":{"$error":"#REF!"}},{"$f":"#REF!","v":{"$error":"#REF!"}},{"$f":"#REF!","v":{"$error":"#REF!"}},{"$f":"#REF!","v":{"$error":"#REF!"}},{"$f":"#REF!","v":{"$error":"#REF!"}},{"$f":"#REF!","v":{"$error":"#REF!"}},{"$f":"#REF!","v":{"$error":"#REF!"}},null,null,{"$f":"#REF!","v":{"$error":"#REF!"}},{"$f":"#REF!","v":{"$error":"#REF!"}},{"$f":"#REF!","v":{"$error":"#REF!"}}]
[null,null,"TechHigh",{"$error":"#REF!"},null,null,{"$f":"#REF!","v":{"$error":"#REF!"}},{"$f":"#REF!","v":{"$error":"#REF!"}},{"$f":"#REF!","v":{"$error":"#REF!"}},{"$f":"#REF!","v":{"$error":"#REF!"}},{"$f":"#REF!","v":{"$error":"#REF!"}},{"$f":"#REF!*(1+$I$774)","v":{"$error":"#REF!"}},{"$f":"#REF!*(1+$I$774)","v":{"$error":"#REF!"}},{"$f":"#REF!*(1+$I$774)","v":{"$error":"#REF!"}},{"$f":"#REF!*(1+$I$774)","v":{"$error":"#REF!"}},{"$f":"#REF!","v":{"$error":"#REF!"}},{"$f":"#REF!","v":{"$error":"#REF!"}},{"$f":"#REF!","v":{"$error":"#REF!"}},{"$f":"#REF!","v":{"$error":"#REF!"}},{"$f":"#REF!","v":{"$error":"#REF!"}},{"$error":"#REF!"},{"$error":"#REF!"},{"$f":"#REF!","v":{"$error":"#REF!"}},{"$f":"#REF!","v":{"$error":"#REF!"}},{"$f":"#REF!","v":{"$error":"#REF!"}},{"$f":"#REF!","v":{"$error":"#REF!"}},{"$f":"#REF!","v":{"$error":"#REF!"}},{"$f":"#REF!","v":{"$error":"#REF!"}},{"$f":"#REF!","v":{"$error":"#REF!"}},{"$f":"#REF!","v":{"$error":"#REF!"}},{"$f":"#REF!","v":{"$error":"#REF!"}},{"$f":"#REF!","v":{"$error":"#REF!"}},{"$f":"#REF!","v":{"$error":"#REF!"}},{"$f":"#REF!","v":{"$error":"#REF!"}},{"$f":"#REF!","v":{"$error":"#REF!"}},{"$f":"#REF!","v":{"$error":"#REF!"}},null,null,{"$f":"#REF!","v":{"$error":"#REF!"}},{"$f":"#REF!","v":{"$error":"#REF!"}},{"$f":"#REF!","v":{"$error":"#REF!"}}]
[null,null,"TechHigh",{"$error":"#REF!"},null,null,{"$f":"#REF!","v":{"$error":"#REF!"}},{"$f":"#REF!","v":{"$error":"#REF!"}},{"$f":"#REF!","v":{"$error":"#REF!"}},{"$f":"#REF!","v":{"$error":"#REF!"}},{"$f":"#REF!","v":{"$error":"#REF!"}},{"$f":"#REF!*(1+$I$774)","v":{"$error":"#REF!"}},{"$f":"#REF!*(1+$I$774)","v":{"$error":"#REF!"}},{"$f":"#REF!*(1+$I$774)","v":{"$error":"#REF!"}},{"$f":"#REF!*(1+$I$774)","v":{"$error":"#REF!"}},{"$f":"#REF!","v":{"$error":"#REF!"}},{"$f":"#REF!","v":{"$error":"#REF!"}},{"$f":"#REF!","v":{"$error":"#REF!"}},{"$f":"#REF!","v":{"$error":"#REF!"}},{"$f":"#REF!","v":{"$error":"#REF!"}},{"$error":"#REF!"},{"$error":"#REF!"},{"$f":"#REF!","v":{"$error":"#REF!"}},{"$f":"#REF!","v":{"$error":"#REF!"}},{"$f":"#REF!","v":{"$error":"#REF!"}},{"$f":"#REF!","v":{"$error":"#REF!"}},{"$f":"#REF!","v":{"$error":"#REF!"}},{"$f":"#REF!","v":{"$error":"#REF!"}},{"$f":"#REF!","v":{"$error":"#REF!"}},{"$f":"#REF!","v":{"$error":"#REF!"}},{"$f":"#REF!","v":{"$error":"#REF!"}},{"$f":"#REF!","v":{"$error":"#REF!"}},{"$f":"#REF!","v":{"$error":"#REF!"}},{"$f":"#REF!","v":{"$error":"#REF!"}},{"$f":"#REF!","v":{"$error":"#REF!"}},{"$f":"#REF!","v":{"$error":"#REF!"}},null,null,{"$f":"#REF!","v":{"$error":"#REF!"}},{"$f":"#REF!","v":{"$error":"#REF!"}},{"$f":"#REF!","v":{"$error":"#REF!"}}]
[null,null,"TechHigh",{"$error":"#REF!"},null,null,{"$f":"#REF!","v":{"$error":"#REF!"}},{"$f":"#REF!","v":{"$error":"#REF!"}},{"$f":"#REF!","v":{"$error":"#REF!"}},{"$f":"#REF!","v":{"$error":"#REF!"}},{"$f":"#REF!","v":{"$error":"#REF!"}},{"$f":"#REF!*(1+$I$774)","v":{"$error":"#REF!"}},{"$f":"#REF!*(1+$I$774)","v":{"$error":"#REF!"}},{"$f":"#REF!*(1+$I$774)","v":{"$error":"#REF!"}},{"$f":"#REF!*(1+$I$774)","v":{"$error":"#REF!"}},{"$f":"#REF!","v":{"$error":"#REF!"}},{"$f":"#REF!","v":{"$error":"#REF!"}},{"$f":"#REF!","v":{"$error":"#REF!"}},{"$f":"#REF!","v":{"$error":"#REF!"}},{"$f":"#REF!","v":{"$error":"#REF!"}},{"$error":"#REF!"},{"$error":"#REF!"},{"$f":"#REF!","v":{"$error":"#REF!"}},{"$f":"#REF!","v":{"$error":"#REF!"}},{"$f":"#REF!","v":{"$error":"#REF!"}},{"$f":"#REF!","v":{"$error":"#REF!"}},{"$f":"#REF!","v":{"$error":"#REF!"}},{"$f":"#REF!","v":{"$error":"#REF!"}},{"$f":"#REF!","v":{"$error":"#REF!"}},{"$f":"#REF!","v":{"$error":"#REF!"}},{"$f":"#REF!","v":{"$error":"#REF!"}},{"$f":"#REF!","v":{"$error":"#REF!"}},{"$f":"#REF!","v":{"$error":"#REF!"}},{"$f":"#REF!","v":{"$error":"#REF!"}},{"$f":"#REF!","v":{"$error":"#REF!"}},{"$f":"#REF!","v":{"$error":"#REF!"}},null,null,{"$f":"#REF!","v":{"$error":"#REF!"}},{"$f":"#REF!","v":{"$error":"#REF!"}},{"$f":"#REF!","v":{"$error":"#REF!"}}]
[null,null,"TechHigh",{"$error":"#REF!"},null,null,{"$f":"#REF!","v":{"$error":"#REF!"}},{"$f":"#REF!","v":{"$error":"#REF!"}},{"$f":"#REF!","v":{"$error":"#REF!"}},{"$f":"#REF!","v":{"$error":"#REF!"}},{"$f":"#REF!","v":{"$error":"#REF!"}},{"$f":"#REF!*(1+$I$774)","v":{"$error":"#REF!"}},{"$f":"#REF!*(1+$I$774)","v":{"$error":"#REF!"}},{"$f":"#REF!*(1+$I$774)","v":{"$error":"#REF!"}},{"$f":"#REF!*(1+$I$774)","v":{"$error":"#REF!"}},{"$f":"#REF!","v":{"$error":"#REF!"}},{"$f":"#REF!","v":{"$error":"#REF!"}},{"$f":"#REF!","v":{"$error":"#REF!"}},{"$f":"#REF!","v":{"$error":"#REF!"}},{"$f":"#REF!","v":{"$error":"#REF!"}},{"$error":"#REF!"},{"$error":"#REF!"},{"$f":"#REF!","v":{"$error":"#REF!"}},{"$f":"#REF!","v":{"$error":"#REF!"}},{"$f":"#REF!","v":{"$error":"#REF!"}},{"$f":"#REF!","v":{"$error":"#REF!"}},{"$f":"#REF!","v":{"$error":"#REF!"}},{"$f":"#REF!","v":{"$error":"#REF!"}},{"$f":"#REF!","v":{"$error":"#REF!"}},{"$f":"#REF!","v":{"$error":"#REF!"}},{"$f":"#REF!","v":{"$error":"#REF!"}},{"$f":"#REF!","v":{"$error":"#REF!"}},{"$f":"#REF!","v":{"$error":"#REF!"}},{"$f":"#REF!","v":{"$error":"#REF!"}},{"$f":"#REF!","v":{"$error":"#REF!"}},{"$f":"#REF!","v":{"$error":"#REF!"}},null,null,{"$f":"#REF!","v":{"$error":"#REF!"}},{"$f":"#REF!","v":{"$error":"#REF!"}},{"$f":"#REF!","v":{"$error":"#REF!"}}]
[null,null,"TechHigh",{"$error":"#REF!"},null,null,{"$f":"#REF!","v":{"$error":"#REF!"}},{"$f":"#REF!","v":{"$error":"#REF!"}},{"$f":"#REF!","v":{"$error":"#REF!"}},{"$f":"#REF!","v":{"$error":"#REF!"}},{"$f":"#REF!","v":{"$error":"#REF!"}},{"$f":"#REF!*(1+$I$774)","v":{"$error":"#REF!"}},{"$f":"#REF!*(1+$I$774)","v":{"$error":"#REF!"}},{"$f":"#REF!*(1+$I$774)","v":{"$error":"#REF!"}},{"$f":"#REF!*(1+$I$774)","v":{"$error":"#REF!"}},{"$f":"#REF!","v":{"$error":"#REF!"}},{"$f":"#REF!","v":{"$error":"#REF!"}},{"$f":"#REF!","v":{"$error":"#REF!"}},{"$f":"#REF!","v":{"$error":"#REF!"}},{"$f":"#REF!","v":{"$error":"#REF!"}},{"$error":"#REF!"},{"$error":"#REF!"},{"$f":"#REF!","v":{"$error":"#REF!"}},{"$f":"#REF!","v":{"$error":"#REF!"}},{"$f":"#REF!","v":{"$error":"#REF!"}},{"$f":"#REF!","v":{"$error":"#REF!"}},{"$f":"#REF!","v":{"$error":"#REF!"}},{"$f":"#REF!","v":{"$error":"#REF!"}},{"$f":"#REF!","v":{"$error":"#REF!"}},{"$f":"#REF!","v":{"$error":"#REF!"}},{"$f":"#REF!","v":{"$error":"#REF!"}},{"$f":"#REF!","v":{"$error":"#REF!"}},{"$f":"#REF!","v":{"$error":"#REF!"}},{"$f":"#REF!","v":{"$error":"#REF!"}},{"$f":"#REF!","v":{"$error":"#REF!"}},{"$f":"#REF!","v":{"$error":"#REF!"}},null,null,{"$f":"#REF!","v":{"$error":"#REF!"}},{"$f":"#REF!","v":{"$error":"#REF!"}},{"$f":"#REF!","v":{"$error":"#REF!"}}]
[null,null,"TechHigh",{"$error":"#REF!"},null,null,{"$f":"#REF!","v":{"$error":"#REF!"}},{"$f":"#REF!","v":{"$error":"#REF!"}},{"$f":"#REF!","v":{"$error":"#REF!"}},{"$f":"#REF!","v":{"$error":"#REF!"}},{"$f":"#REF!","v":{"$error":"#REF!"}},{"$f":"#REF!*(1+$I$774)","v":{"$error":"#REF!"}},{"$f":"#REF!*(1+$I$774)","v":{"$error":"#REF!"}},{"$f":"#REF!*(1+$I$774)","v":{"$error":"#REF!"}},{"$f":"#REF!*(1+$I$774)","v":{"$error":"#REF!"}},{"$f":"#REF!","v":{"$error":"#REF!"}},{"$f":"#REF!","v":{"$error":"#REF!"}},{"$f":"#REF!","v":{"$error":"#REF!"}},{"$f":"#REF!","v":{"$error":"#REF!"}},{"$f":"#REF!","v":{"$error":"#REF!"}},{"$error":"#REF!"},{"$error":"#REF!"},{"$f":"#REF!","v":{"$error":"#REF!"}},{"$f":"#REF!","v":{"$error":"#REF!"}},{"$f":"#REF!","v":{"$error":"#REF!"}},{"$f":"#REF!","v":{"$error":"#REF!"}},{"$f":"#REF!","v":{"$error":"#REF!"}},{"$f":"#REF!","v":{"$error":"#REF!"}},{"$f":"#REF!","v":{"$error":"#REF!"}},{"$f":"#REF!","v":{"$error":"#REF!"}},{"$f":"#REF!","v":{"$error":"#REF!"}},{"$f":"#REF!","v":{"$error":"#REF!"}},{"$f":"#REF!","v":{"$error":"#REF!"}},{"$f":"#REF!","v":{"$error":"#REF!"}},{"$f":"#REF!","v":{"$error":"#REF!"}},{"$f":"#REF!","v":{"$error":"#REF!"}},null,null,{"$f":"#REF!","v":{"$error":"#REF!"}},{"$f":"#REF!","v":{"$error":"#REF!"}},{"$f":"#REF!","v":{"$error":"#REF!"}}]
[null,null,"TechHigh",{"$error":"#REF!"},null,null,{"$f":"#REF!","v":{"$error":"#REF!"}},{"$f":"#REF!","v":{"$error":"#REF!"}},{"$f":"#REF!","v":{"$error":"#REF!"}},{"$f":"#REF!","v":{"$error":"#REF!"}},{"$f":"#REF!","v":{"$error":"#REF!"}},{"$f":"#REF!*(1+$I$774)","v":{"$error":"#REF!"}},{"$f":"#REF!*(1+$I$774)","v":{"$error":"#REF!"}},{"$f":"#REF!*(1+$I$774)","v":{"$error":"#REF!"}},{"$f":"#REF!*(1+$I$774)","v":{"$error":"#REF!"}},{"$f":"#REF!","v":{"$error":"#REF!"}},{"$f":"#REF!","v":{"$error":"#REF!"}},{"$f":"#REF!","v":{"$error":"#REF!"}},{"$f":"#REF!","v":{"$error":"#REF!"}},{"$f":"#REF!","v":{"$error":"#REF!"}},{"$error":"#REF!"},{"$error":"#REF!"},{"$f":"#REF!","v":{"$error":"#REF!"}},{"$f":"#REF!","v":{"$error":"#REF!"}},{"$f":"#REF!","v":{"$error":"#REF!"}},{"$f":"#REF!","v":{"$error":"#REF!"}},{"$f":"#REF!","v":{"$error":"#REF!"}},{"$f":"#REF!","v":{"$error":"#REF!"}},{"$f":"#REF!","v":{"$error":"#REF!"}},{"$f":"#REF!","v":{"$error":"#REF!"}},{"$f":"#REF!","v":{"$error":"#REF!"}},{"$f":"#REF!","v":{"$error":"#REF!"}},{"$f":"#REF!","v":{"$error":"#REF!"}},{"$f":"#REF!","v":{"$error":"#REF!"}},{"$f":"#REF!","v":{"$error":"#REF!"}},{"$f":"#REF!","v":{"$error":"#REF!"}},null,null,{"$f":"#REF!","v":{"$error":"#REF!"}},{"$f":"#REF!","v":{"$error":"#REF!"}},{"$f":"#REF!","v":{"$error":"#REF!"}}]
[null,null,"TechHigh",{"$error":"#REF!"},null,null,{"$f":"#REF!","v":{"$error":"#REF!"}},{"$f":"#REF!","v":{"$error":"#REF!"}},{"$f":"#REF!","v":{"$error":"#REF!"}},{"$f":"#REF!","v":{"$error":"#REF!"}},{"$f":"#REF!","v":{"$error":"#REF!"}},{"$f":"#REF!*(1+$I$774)","v":{"$error":"#REF!"}},{"$f":"#REF!*(1+$I$774)","v":{"$error":"#REF!"}},{"$f":"#REF!*(1+$I$774)","v":{"$error":"#REF!"}},{"$f":"#REF!*(1+$I$774)","v":{"$error":"#REF!"}},{"$f":"#REF!","v":{"$error":"#REF!"}},{"$f":"#REF!","v":{"$error":"#REF!"}},{"$f":"#REF!","v":{"$error":"#REF!"}},{"$f":"#REF!","v":{"$error":"#REF!"}},{"$f":"#REF!","v":{"$error":"#REF!"}},{"$error":"#REF!"},{"$error":"#REF!"},{"$f":"#REF!","v":{"$error":"#REF!"}},{"$f":"#REF!","v":{"$error":"#REF!"}},{"$f":"#REF!","v":{"$error":"#REF!"}},{"$f":"#REF!","v":{"$error":"#REF!"}},{"$f":"#REF!","v":{"$error":"#REF!"}},{"$f":"#REF!","v":{"$error":"#REF!"}},{"$f":"#REF!","v":{"$error":"#REF!"}},{"$f":"#REF!","v":{"$error":"#REF!"}},{"$f":"#REF!","v":{"$error":"#REF!"}},{"$f":"#REF!","v":{"$error":"#REF!"}},{"$f":"#REF!","v":{"$error":"#REF!"}},{"$f":"#REF!","v":{"$error":"#REF!"}},{"$f":"#REF!","v":{"$error":"#REF!"}},{"$f":"#REF!","v":{"$error":"#REF!"}},null,null,{"$f":"#REF!","v":{"$error":"#REF!"}},{"$f":"#REF!","v":{"$error":"#REF!"}},{"$f":"#REF!","v":{"$error":"#REF!"}}]
[null,null,"TechHigh",{"$error":"#REF!"},null,null,{"$f":"#REF!","v":{"$error":"#REF!"}},{"$f":"#REF!","v":{"$error":"#REF!"}},{"$f":"#REF!","v":{"$error":"#REF!"}},{"$f":"#REF!","v":{"$error":"#REF!"}},{"$f":"#REF!","v":{"$error":"#REF!"}},{"$f":"#REF!*(1+$I$774)","v":{"$error":"#REF!"}},{"$f":"#REF!*(1+$I$774)","v":{"$error":"#REF!"}},{"$f":"#REF!*(1+$I$774)","v":{"$error":"#REF!"}},{"$f":"#REF!*(1+$I$774)","v":{"$error":"#REF!"}},{"$f":"#REF!","v":{"$error":"#REF!"}},{"$f":"#REF!","v":{"$error":"#REF!"}},{"$f":"#REF!","v":{"$error":"#REF!"}},{"$f":"#REF!","v":{"$error":"#REF!"}},{"$f":"#REF!","v":{"$error":"#REF!"}},{"$error":"#REF!"},{"$error":"#REF!"},{"$f":"#REF!","v":{"$error":"#REF!"}},{"$f":"#REF!","v":{"$error":"#REF!"}},{"$f":"#REF!","v":{"$error":"#REF!"}},{"$f":"#REF!","v":{"$error":"#REF!"}},{"$f":"#REF!","v":{"$error":"#REF!"}},{"$f":"#REF!","v":{"$error":"#REF!"}},{"$f":"#REF!","v":{"$error":"#REF!"}},{"$f":"#REF!","v":{"$error":"#REF!"}},{"$f":"#REF!","v":{"$error":"#REF!"}},{"$f":"#REF!","v":{"$error":"#REF!"}},{"$f":"#REF!","v":{"$error":"#REF!"}},{"$f":"#REF!","v":{"$error":"#REF!"}},{"$f":"#REF!","v":{"$error":"#REF!"}},{"$f":"#REF!","v":{"$error":"#REF!"}},null,null,{"$f":"#REF!","v":{"$error":"#REF!"}},{"$f":"#REF!","v":{"$error":"#REF!"}},{"$f":"#REF!","v":{"$error":"#REF!"}}]
[null,null,"TechHigh",{"$error":"#REF!"},null,null,{"$f":"#REF!","v":{"$error":"#REF!"}},{"$f":"#REF!","v":{"$error":"#REF!"}},{"$f":"#REF!","v":{"$error":"#REF!"}},{"$f":"#REF!","v":{"$error":"#REF!"}},{"$f":"#REF!","v":{"$error":"#REF!"}},{"$f":"#REF!*(1+$I$774)","v":{"$error":"#REF!"}},{"$f":"#REF!*(1+$I$774)","v":{"$error":"#REF!"}},{"$f":"#REF!*(1+$I$774)","v":{"$error":"#REF!"}},{"$f":"#REF!*(1+$I$774)","v":{"$error":"#REF!"}},{"$f":"#REF!","v":{"$error":"#REF!"}},{"$f":"#REF!","v":{"$error":"#REF!"}},{"$f":"#REF!","v":{"$error":"#REF!"}},{"$f":"#REF!","v":{"$error":"#REF!"}},{"$f":"#REF!","v":{"$error":"#REF!"}},{"$error":"#REF!"},{"$error":"#REF!"},{"$f":"#REF!","v":{"$error":"#REF!"}},{"$f":"#REF!","v":{"$error":"#REF!"}},{"$f":"#REF!","v":{"$error":"#REF!"}},{"$f":"#REF!","v":{"$error":"#REF!"}},{"$f":"#REF!","v":{"$error":"#REF!"}},{"$f":"#REF!","v":{"$error":"#REF!"}},{"$f":"#REF!","v":{"$error":"#REF!"}},{"$f":"#REF!","v":{"$error":"#REF!"}},{"$f":"#REF!","v":{"$error":"#REF!"}},{"$f":"#REF!","v":{"$error":"#REF!"}},{"$f":"#REF!","v":{"$error":"#REF!"}},{"$f":"#REF!","v":{"$error":"#REF!"}},{"$f":"#REF!","v":{"$error":"#REF!"}},{"$f":"#REF!","v":{"$error":"#REF!"}},null,null,{"$f":"#REF!","v":{"$error":"#REF!"}},{"$f":"#REF!","v":{"$error":"#REF!"}},{"$f":"#REF!","v":{"$error":"#REF!"}}]
[null,null,"TechHigh",{"$error":"#REF!"},null,null,{"$f":"#REF!","v":{"$error":"#REF!"}},{"$f":"#REF!","v":{"$error":"#REF!"}},{"$f":"#REF!","v":{"$error":"#REF!"}},{"$f":"#REF!","v":{"$error":"#REF!"}},{"$f":"#REF!","v":{"$error":"#REF!"}},{"$f":"#REF!*(1+$I$774)","v":{"$error":"#REF!"}},{"$f":"#REF!*(1+$I$774)","v":{"$error":"#REF!"}},{"$f":"#REF!*(1+$I$774)","v":{"$error":"#REF!"}},{"$f":"#REF!*(1+$I$774)","v":{"$error":"#REF!"}},{"$f":"#REF!","v":{"$error":"#REF!"}},{"$f":"#REF!","v":{"$error":"#REF!"}},{"$f":"#REF!","v":{"$error":"#REF!"}},{"$f":"#REF!","v":{"$error":"#REF!"}},{"$f":"#REF!","v":{"$error":"#REF!"}},{"$error":"#REF!"},{"$error":"#REF!"},{"$f":"#REF!","v":{"$error":"#REF!"}},{"$f":"#REF!","v":{"$error":"#REF!"}},{"$f":"#REF!","v":{"$error":"#REF!"}},{"$f":"#REF!","v":{"$error":"#REF!"}},{"$f":"#REF!","v":{"$error":"#REF!"}},{"$f":"#REF!","v":{"$error":"#REF!"}},{"$f":"#REF!","v":{"$error":"#REF!"}},{"$f":"#REF!","v":{"$error":"#REF!"}},{"$f":"#REF!","v":{"$error":"#REF!"}},{"$f":"#REF!","v":{"$error":"#REF!"}},{"$f":"#REF!","v":{"$error":"#REF!"}},{"$f":"#REF!","v":{"$error":"#REF!"}},{"$f":"#REF!","v":{"$error":"#REF!"}},{"$f":"#REF!","v":{"$error":"#REF!"}},null,null,{"$f":"#REF!","v":{"$error":"#REF!"}},{"$f":"#REF!","v":{"$error":"#REF!"}},{"$f":"#REF!","v":{"$error":"#REF!"}}]
[null,null,"TechHigh",{"$error":"#REF!"},null,null,{"$f":"#REF!","v":{"$error":"#REF!"}},{"$f":"#REF!","v":{"$error":"#REF!"}},{"$f":"#REF!","v":{"$error":"#REF!"}},{"$f":"#REF!","v":{"$error":"#REF!"}},{"$f":"#REF!","v":{"$error":"#REF!"}},{"$f":"#REF!*(1+$I$774)","v":{"$error":"#REF!"}},{"$f":"#REF!*(1+$I$774)","v":{"$error":"#REF!"}},{"$f":"#REF!*(1+$I$774)","v":{"$error":"#REF!"}},{"$f":"#REF!*(1+$I$774)","v":{"$error":"#REF!"}},{"$f":"#REF!","v":{"$error":"#REF!"}},{"$f":"#REF!","v":{"$error":"#REF!"}},{"$f":"#REF!","v":{"$error":"#REF!"}},{"$f":"#REF!","v":{"$error":"#REF!"}},{"$f":"#REF!","v":{"$error":"#REF!"}},{"$error":"#REF!"},{"$error":"#REF!"},{"$f":"#REF!","v":{"$error":"#REF!"}},{"$f":"#REF!","v":{"$error":"#REF!"}},{"$f":"#REF!","v":{"$error":"#REF!"}},{"$f":"#REF!","v":{"$error":"#REF!"}},{"$f":"#REF!","v":{"$error":"#REF!"}},{"$f":"#REF!","v":{"$error":"#REF!"}},{"$f":"#REF!","v":{"$error":"#REF!"}},{"$f":"#REF!","v":{"$error":"#REF!"}},{"$f":"#REF!","v":{"$error":"#REF!"}},{"$f":"#REF!","v":{"$error":"#REF!"}},{"$f":"#REF!","v":{"$error":"#REF!"}},{"$f":"#REF!","v":{"$error":"#REF!"}},{"$f":"#REF!","v":{"$error":"#REF!"}},{"$f":"#REF!","v":{"$error":"#REF!"}},null,null,{"$f":"#REF!","v":{"$error":"#REF!"}},{"$f":"#REF!","v":{"$error":"#REF!"}},{"$f":"#REF!","v":{"$error":"#REF!"}}]
[null,null,"TechHigh",{"$error":"#REF!"},null,null,{"$f":"#REF!","v":{"$error":"#REF!"}},{"$f":"#REF!","v":{"$error":"#REF!"}},{"$f":"#REF!","v":{"$error":"#REF!"}},{"$f":"#REF!","v":{"$error":"#REF!"}},{"$f":"#REF!","v":{"$error":"#REF!"}},{"$f":"#REF!*(1+$I$774)","v":{"$error":"#REF!"}},{"$f":"#REF!*(1+$I$774)","v":{"$error":"#REF!"}},{"$f":"#REF!*(1+$I$774)","v":{"$error":"#REF!"}},{"$f":"#REF!*(1+$I$774)","v":{"$error":"#REF!"}},{"$f":"#REF!","v":{"$error":"#REF!"}},{"$f":"#REF!","v":{"$error":"#REF!"}},{"$f":"#REF!","v":{"$error":"#REF!"}},{"$f":"#REF!","v":{"$error":"#REF!"}},{"$f":"#REF!","v":{"$error":"#REF!"}},{"$error":"#REF!"},{"$error":"#REF!"},{"$f":"#REF!","v":{"$error":"#REF!"}},{"$f":"#REF!","v":{"$error":"#REF!"}},{"$f":"#REF!","v":{"$error":"#REF!"}},{"$f":"#REF!","v":{"$error":"#REF!"}},{"$f":"#REF!","v":{"$error":"#REF!"}},{"$f":"#REF!","v":{"$error":"#REF!"}},{"$f":"#REF!","v":{"$error":"#REF!"}},{"$f":"#REF!","v":{"$error":"#REF!"}},{"$f":"#REF!","v":{"$error":"#REF!"}},{"$f":"#REF!","v":{"$error":"#REF!"}},{"$f":"#REF!","v":{"$error":"#REF!"}},{"$f":"#REF!","v":{"$error":"#REF!"}},{"$f":"#REF!","v":{"$error":"#REF!"}},{"$f":"#REF!","v":{"$error":"#REF!"}},null,null,{"$f":"#REF!","v":{"$error":"#REF!"}},{"$f":"#REF!","v":{"$error":"#REF!"}},{"$f":"#REF!","v":{"$error":"#REF!"}}]
[null,null,"TechHigh",{"$error":"#REF!"},null,null,{"$f":"#REF!","v":{"$error":"#REF!"}},{"$f":"#REF!","v":{"$error":"#REF!"}},{"$f":"#REF!","v":{"$error":"#REF!"}},{"$f":"#REF!","v":{"$error":"#REF!"}},{"$f":"#REF!","v":{"$error":"#REF!"}},{"$f":"#REF!*(1+$I$774)","v":{"$error":"#REF!"}},{"$f":"#REF!*(1+$I$774)","v":{"$error":"#REF!"}},{"$f":"#REF!*(1+$I$774)","v":{"$error":"#REF!"}},{"$f":"#REF!*(1+$I$774)","v":{"$error":"#REF!"}},{"$f":"#REF!","v":{"$error":"#REF!"}},{"$f":"#REF!","v":{"$error":"#REF!"}},{"$f":"#REF!","v":{"$error":"#REF!"}},{"$f":"#REF!","v":{"$error":"#REF!"}},{"$f":"#REF!","v":{"$error":"#REF!"}},{"$error":"#REF!"},{"$error":"#REF!"},{"$f":"#REF!","v":{"$error":"#REF!"}},{"$f":"#REF!","v":{"$error":"#REF!"}},{"$f":"#REF!","v":{"$error":"#REF!"}},{"$f":"#REF!","v":{"$error":"#REF!"}},{"$f":"#REF!","v":{"$error":"#REF!"}},{"$f":"#REF!","v":{"$error":"#REF!"}},{"$f":"#REF!","v":{"$error":"#REF!"}},{"$f":"#REF!","v":{"$error":"#REF!"}},{"$f":"#REF!","v":{"$error":"#REF!"}},{"$f":"#REF!","v":{"$error":"#REF!"}},{"$f":"#REF!","v":{"$error":"#REF!"}},{"$f":"#REF!","v":{"$error":"#REF!"}},{"$f":"#REF!","v":{"$error":"#REF!"}},{"$f":"#REF!","v":{"$error":"#REF!"}},null,null,{"$f":"#REF!","v":{"$error":"#REF!"}},{"$f":"#REF!","v":{"$error":"#REF!"}},{"$f":"#REF!","v":{"$error":"#REF!"}}]
[null,null,"TechHigh",{"$error":"#REF!"},null,null,{"$f":"#REF!","v":{"$error":"#REF!"}},{"$f":"#REF!","v":{"$error":"#REF!"}},{"$f":"#REF!","v":{"$error":"#REF!"}},{"$f":"#REF!","v":{"$error":"#REF!"}},{"$f":"#REF!","v":{"$error":"#REF!"}},{"$f":"#REF!*(1+$I$774)","v":{"$error":"#REF!"}},{"$f":"#REF!*(1+$I$774)","v":{"$error":"#REF!"}},{"$f":"#REF!*(1+$I$774)","v":{"$error":"#REF!"}},{"$f":"#REF!*(1+$I$774)","v":{"$error":"#REF!"}},{"$f":"#REF!","v":{"$error":"#REF!"}},{"$f":"#REF!","v":{"$error":"#REF!"}},{"$f":"#REF!","v":{"$error":"#REF!"}},{"$f":"#REF!","v":{"$error":"#REF!"}},{"$f":"#REF!","v":{"$error":"#REF!"}},{"$error":"#REF!"},{"$error":"#REF!"},{"$f":"#REF!","v":{"$error":"#REF!"}},{"$f":"#REF!","v":{"$error":"#REF!"}},{"$f":"#REF!","v":{"$error":"#REF!"}},{"$f":"#REF!","v":{"$error":"#REF!"}},{"$f":"#REF!","v":{"$error":"#REF!"}},{"$f":"#REF!","v":{"$error":"#REF!"}},{"$f":"#REF!","v":{"$error":"#REF!"}},{"$f":"#REF!","v":{"$error":"#REF!"}},{"$f":"#REF!","v":{"$error":"#REF!"}},{"$f":"#REF!","v":{"$error":"#REF!"}},{"$f":"#REF!","v":{"$error":"#REF!"}},{"$f":"#REF!","v":{"$error":"#REF!"}},{"$f":"#REF!","v":{"$error":"#REF!"}},{"$f":"#REF!","v":{"$error":"#REF!"}},null,null,{"$f":"#REF!","v":{"$error":"#REF!"}},{"$f":"#REF!","v":{"$error":"#REF!"}},{"$f":"#REF!","v":{"$error":"#REF!"}}]
[null,null,"TechHigh",{"$error":"#REF!"},null,null,{"$f":"#REF!","v":{"$error":"#REF!"}},{"$f":"#REF!","v":{"$error":"#REF!"}},{"$f":"#REF!","v":{"$error":"#REF!"}},{"$f":"#REF!","v":{"$error":"#REF!"}},{"$f":"#REF!","v":{"$error":"#REF!"}},{"$f":"#REF!*(1+$I$774)","v":{"$error":"#REF!"}},{"$f":"#REF!*(1+$I$774)","v":{"$error":"#REF!"}},{"$f":"#REF!*(1+$I$774)","v":{"$error":"#REF!"}},{"$f":"#REF!*(1+$I$774)","v":{"$error":"#REF!"}},{"$f":"#REF!","v":{"$error":"#REF!"}},{"$f":"#REF!","v":{"$error":"#REF!"}},{"$f":"#REF!","v":{"$error":"#REF!"}},{"$f":"#REF!","v":{"$error":"#REF!"}},{"$f":"#REF!","v":{"$error":"#REF!"}},{"$error":"#REF!"},{"$error":"#REF!"},{"$f":"#REF!","v":{"$error":"#REF!"}},{"$f":"#REF!","v":{"$error":"#REF!"}},{"$f":"#REF!","v":{"$error":"#REF!"}},{"$f":"#REF!","v":{"$error":"#REF!"}},{"$f":"#REF!","v":{"$error":"#REF!"}},{"$f":"#REF!","v":{"$error":"#REF!"}},{"$f":"#REF!","v":{"$error":"#REF!"}},{"$f":"#REF!","v":{"$error":"#REF!"}},{"$f":"#REF!","v":{"$error":"#REF!"}},{"$f":"#REF!","v":{"$error":"#REF!"}},{"$f":"#REF!","v":{"$error":"#REF!"}},{"$f":"#REF!","v":{"$error":"#REF!"}},{"$f":"#REF!","v":{"$error":"#REF!"}},{"$f":"#REF!","v":{"$error":"#REF!"}},null,null,{"$f":"#REF!","v":{"$error":"#REF!"}},{"$f":"#REF!","v":{"$error":"#REF!"}},{"$f":"#REF!","v":{"$error":"#REF!"}}]
[null,null,"TechHigh","TechHigh - 25WIN_OF_in Offshore wind incl. Grid - 2020",null,null,{"$f":"G277","v":"25WIN_OF_in Offshore wind incl. Grid"},"21 Wind Turbines Offshore, Tech Kat Update 2022",2020,"NO","Wind",{"$f":"L277*(1+$I$774)","v":2.1824297399432808},0.46250000000000002,62500,6.25,{"$f":"P277","v":0},0,"00:00:00",1,"1900-01-01",0,0,{"$f":"W277","v":4400},0,0,0,27,2.5,0,0,0,0,0,"Central","2022-03-03","chwo",null,null,{"$f":"AM277","v":"Tech Cat 2022 Update"},2020,"EUR"]
[null,null,"TechHigh","TechHigh - 22WIN_OF_in Offshore wind incl. Grid - 2025",null,null,"22WIN_OF_in Offshore wind incl. Grid","21 Wind Turbines Offshore, Tech Kat Update 2022",2025,"NO","Wind",1.9118271428651705,0.44279700656764598,52500,5.2125000000000004,0,0,0,1,"1900-01-01",0,0,{"$f":"W278","v":4775},0,0,0,30,2.5,0,0,0,0,0,"Central",44623,"chwo",null,null,"Tech Cat 2022 Update",2020,"EUR"]
[null,null,"TechHigh","TechHigh - 22WIN_OF_in Offshore wind incl. Grid - 2030",null,null,"22WIN_OF_in Offshore wind incl. Grid","21 Wind Turbines Offshore, Tech Kat Update 2022",2030,"NO","Wind",1.8014489038927914,0.44278396491104627,48750,4.8624999999999998,0,0,0,1,"1900-01-01",0,0,{"$f":"W279","v":4800},0,0,0,30,2.5,0,0,0,0,0,"Central",44623,"chwo",null,null,"Tech Cat 2022 Update",2020,"EUR"]
[null,null,"TechHigh","TechHigh - 22WIN_OF_in Offshore wind incl. Grid - 2040",null,null,"22WIN_OF_in Offshore wind incl. Grid","21 Wind Turbines Offshore, Tech Kat Update 2022",2040,"NO","Wind",1.6397905056783224,0.45572211853220529,42500,4.2750000000000004,0,0,0,1,"1900-01-01",{"$f":"IF(R932=0,0,R932*T932/(R932+Q932))","v":0},{"$f":"IF(R932=0,0,T932/(R932+Q932))","v":0},{"$f":"W280","v":4850},0,0,0,30,2.5,0,0,0,0,0,"Central",44623,"chwo",null,null,"Tech Cat 2022 Update",2020,"EUR"]
[null,null,"TechHigh","TechHigh - 22WIN_OF_in Offshore wind incl. Grid - 2050",null,null,"22WIN_OF_in Offshore wind incl. Grid","21 Wind Turbines Offshore, Tech Kat Update 2022",2050,"NO","Wind",1.574541600898931,0.47888797816060547,41250,4.0625,0,0,0,1,"1900-01-01",0,0,{"$f":"W281","v":4900},0,0,0,30,2,0,0,0,0,0,"Central",44623,"chwo",null,null,"Tech Cat 2022 Update",2020,"EUR"]
[null,null,"TechHigh",{"$error":"#REF!"},null,null,{"$f":"#REF!","v":{"$error":"#REF!"}},{"$f":"#REF!","v":{"$error":"#REF!"}},{"$f":"#REF!","v":{"$error":"#REF!"}},{"$f":"#REF!","v":{"$error":"#REF!"}},{"$f":"#REF!","v":{"$error":"#REF!"}},{"$f":"#REF!*(1+$I$774)","v":{"$error":"#REF!"}},{"$f":"#REF!*(1+$I$774)","v":{"$error":"#REF!"}},{"$f":"#REF!*(1+$I$774)","v":{"$error":"#REF!"}},{"$f":"#REF!*(1+$I$774)","v":{"$error":"#REF!"}},{"$f":"#REF!","v":{"$error":"#REF!"}},{"$f":"#REF!","v":{"$error":"#REF!"}},{"$f":"#REF!","v":{"$error":"#REF!"}},{"$f":"#REF!","v":{"$error":"#REF!"}},{"$f":"#REF!","v":{"$error":"#REF!"}},{"$error":"#REF!"},{"$error":"#REF!"},{"$f":"#REF!","v":{"$error":"#REF!"}},{"$f":"#REF!","v":{"$error":"#REF!"}},{"$f":"#REF!","v":{"$error":"#REF!"}},{"$f":"#REF!","v":{"$error":"#REF!"}},{"$f":"#REF!","v":{"$error":"#REF!"}},{"$f":"#REF!","v":{"$error":"#REF!"}},{"$f":"#REF!","v":{"$error":"#REF!"}},{"$f":"#REF!","v":{"$error":"#REF!"}},{"$f":"#REF!","v":{"$error":"#REF!"}},{"$f":"#REF!","v":{"$error":"#REF!"}},{"$f":"#REF!","v":{"$error":"#REF!"}},{"$f":"#REF!","v":{"$error":"#REF!"}},{"$f":"#REF!","v":{"$error":"#REF!"}},{"$f":"#REF!","v":{"$error":"#REF!"}},null,null,{"$f":"#REF!","v":{"$error":"#REF!"}},{"$f":"#REF!","v":{"$error":"#REF!"}},{"$f":"#REF!","v":{"$error":"#REF!"}}]
[null,null,"TechHigh",{"$error":"#REF!"},null,null,{"$f":"#REF!","v":{"$error":"#REF!"}},{"$f":"#REF!","v":{"$error":"#REF!"}},{"$f":"#REF!","v":{"$error":"#REF!"}},{"$f":"#REF!","v":{"$error":"#REF!"}},{"$f":"#REF!","v":{"$error":"#REF!"}},{"$f":"#REF!*(1+$I$774)","v":{"$error":"#REF!"}},{"$f":"#REF!*(1+$I$774)","v":{"$error":"#REF!"}},{"$f":"#REF!*(1+$I$774)","v":{"$error":"#REF!"}},{"$f":"#REF!*(1+$I$774)","v":{"$error":"#REF!"}},{"$f":"#REF!","v":{"$error":"#REF!"}},{"$f":"#REF!","v":{"$error":"#REF!"}},{"$f":"#REF!","v":{"$error":"#REF!"}},{"$f":"#REF!","v":{"$error":"#REF!"}},{"$f":"#REF!","v":{"$error":"#REF!"}},{"$error":"#REF!"},{"$error":"#REF!"},{"$f":"#REF!","v":{"$error":"#REF!"}},{"$f":"#REF!","v":{"$error":"#REF!"}},{"$f":"#REF!","v":{"$error":"#REF!"}},{"$f":"#REF!","v":{"$error":"#REF!"}},{"$f":"#REF!","v":{"$error":"#REF!"}},{"$f":"#REF!","v":{"$error":"#REF!"}},{"$f":"#REF!","v":{"$error":"#REF!"}},{"$f":"#REF!","v":{"$error":"#REF!"}},{"$f":"#REF!","v":{"$error":"#REF!"}},{"$f":"#REF!","v":{"$error":"#REF!"}},{"$f":"#REF!","v":{"$error":"#REF!"}},{"$f":"#REF!","v":{"$error":"#REF!"}},{"$f":"#REF!","v":{"$error":"#REF!"}},{"$f":"#REF!","v":{"$error":"#REF!"}},null,null,{"$f":"#REF!","v":{"$error":"#REF!"}},{"$f":"#REF!","v":{"$error":"#REF!"}},{"$f":"#REF!","v":{"$error":"#REF!"}}]
[null,null,"TechHigh",{"$error":"#REF!"},null,null,{"$f":"#REF!","v":{"$error":"#REF!"}},{"$f":"#REF!","v":{"$error":"#REF!"}},{"$f":"#REF!","v":{"$error":"#REF!"}},{"$f":"#REF!","v":{"$error":"#REF!"}},{"$f":"#REF!","v":{"$error":"#REF!"}},{"$f":"#REF!*(1+$I$774)","v":{"$error":"#REF!"}},{"$f":"#REF!*(1+$I$774)","v":{"$error":"#REF!"}},{"$f":"#REF!*(1+$I$774)","v":{"$error":"#REF!"}},{"$f":"#REF!*(1+$I$774)","v":{"$error":"#REF!"}},{"$f":"#REF!","v":{"$error":"#REF!"}},{"$f":"#REF!","v":{"$error":"#REF!"}},{"$f":"#REF!","v":{"$error":"#REF!"}},{"$f":"#REF!","v":{"$error":"#REF!"}},{"$f":"#REF!","v":{"$error":"#REF!"}},{"$error":"#REF!"},{"$error":"#REF!"},{"$f":"#REF!","v":{"$error":"#REF!"}},{"$f":"#REF!","v":{"$error":"#REF!"}},{"$f":"#REF!","v":{"$error":"#REF!"}},{"$f":"#REF!","v":{"$error":"#REF!"}},{"$f":"#REF!","v":{"$error":"#REF!"}},{"$f":"#REF!","v":{"$error":"#REF!"}},{"$f":"#REF!","v":{"$error":"#REF!"}},{"$f":"#REF!","v":{"$error":"#REF!"}},{"$f":"#REF!","v":{"$error":"#REF!"}},{"$f":"#REF!","v":{"$error":"#REF!"}},{"$f":"#REF!","v":{"$error":"#REF!"}},{"$f":"#REF!","v":{"$error":"#REF!"}},{"$f":"#REF!","v":{"$error":"#REF!"}},{"$f":"#REF!","v":{"$error":"#REF!"}},null,null,{"$f":"#REF!","v":{"$error":"#REF!"}},{"$f":"#REF!","v":{"$error":"#REF!"}},{"$f":"#REF!","v":{"$error":"#REF!"}}]
[null,null,"TechHigh",{"$error":"#REF!"},null,null,{"$f":"#REF!","v":{"$error":"#REF!"}},{"$f":"#REF!","v":{"$error":"#REF!"}},{"$f":"#REF!","v":{"$error":"#REF!"}},{"$f":"#REF!","v":{"$error":"#REF!"}},{"$f":"#REF!","v":{"$error":"#REF!"}},{"$f":"#REF!*(1+$I$774)","v":{"$error":"#REF!"}},{"$f":"#REF!*(1+$I$774)","v":{"$error":"#REF!"}},{"$f":"#REF!*(1+$I$774)","v":{"$error":"#REF!"}},{"$f":"#REF!*(1+$I$774)","v":{"$error":"#REF!"}},{"$f":"#REF!","v":{"$error":"#REF!"}},{"$f":"#REF!","v":{"$error":"#REF!"}},{"$f":"#REF!","v":{"$error":"#REF!"}},{"$f":"#REF!","v":{"$error":"#REF!"}},{"$f":"#REF!","v":{"$error":"#REF!"}},{"$error":"#REF!"},{"$error":"#REF!"},{"$f":"#REF!","v":{"$error":"#REF!"}},{"$f":"#REF!","v":{"$error":"#REF!"}},{"$f":"#REF!","v":{"$error":"#REF!"}},{"$f":"#REF!","v":{"$error":"#REF!"}},{"$f":"#REF!","v":{"$error":"#REF!"}},{"$f":"#REF!","v":{"$error":"#REF!"}},{"$f":"#REF!","v":{"$error":"#REF!"}},{"$f":"#REF!","v":{"$error":"#REF!"}},{"$f":"#REF!","v":{"$error":"#REF!"}},{"$f":"#REF!","v":{"$error":"#REF!"}},{"$f":"#REF!","v":{"$error":"#REF!"}},{"$f":"#REF!","v":{"$error":"#REF!"}},{"$f":"#REF!","v":{"$error":"#REF!"}},{"$f":"#REF!","v":{"$error":"#REF!"}},null,null,{"$f":"#REF!","v":{"$error":"#REF!"}},{"$f":"#REF!","v":{"$error":"#REF!"}},{"$f":"#REF!","v":{"$error":"#REF!"}}]
[null,null,"TechHigh",{"$error":"#REF!"},null,null,{"$f":"#REF!","v":{"$error":"#REF!"}},{"$f":"#REF!","v":{"$error":"#REF!"}},{"$f":"#REF!","v":{"$error":"#REF!"}},{"$f":"#REF!","v":{"$error":"#REF!"}},{"$f":"#REF!","v":{"$error":"#REF!"}},{"$f":"#REF!*(1+$I$774)","v":{"$error":"#REF!"}},{"$f":"#REF!*(1+$I$774)","v":{"$error":"#REF!"}},{"$f":"#REF!*(1+$I$774)","v":{"$error":"#REF!"}},{"$f":"#REF!*(1+$I$774)","v":{"$error":"#REF!"}},{"$f":"#REF!","v":{"$error":"#REF!"}},{"$f":"#REF!","v":{"$error":"#REF!"}},{"$f":"#REF!","v":{"$error":"#REF!"}},{"$f":"#REF!","v":{"$error":"#REF!"}},{"$f":"#REF!","v":{"$error":"#REF!"}},{"$error":"#REF!"},{"$error":"#REF!"},{"$f":"#REF!","v":{"$error":"#REF!"}},{"$f":"#REF!","v":{"$error":"#REF!"}},{"$f":"#REF!","v":{"$error":"#REF!"}},{"$f":"#REF!","v":{"$error":"#REF!"}},{"$f":"#REF!","v":{"$error":"#REF!"}},{"$f":"#REF!","v":{"$error":"#REF!"}},{"$f":"#REF!","v":{"$error":"#REF!"}},{"$f":"#REF!","v":{"$error":"#REF!"}},{"$f":"#REF!","v":{"$error":"#REF!"}},{"$f":"#REF!","v":{"$error":"#REF!"}},{"$f":"#REF!","v":{"$error":"#REF!"}},{"$f":"#REF!","v":{"$error":"#REF!"}},{"$f":"#REF!","v":{"$error":"#REF!"}},{"$f":"#REF!","v":{"$error":"#REF!"}},null,null,{"$f":"#REF!","v":{"$error":"#REF!"}},{"$f":"#REF!","v":{"$error":"#REF!"}},{"$f":"#REF!","v":{"$error":"#REF!"}}]
[null,null,"TechHigh","TechHigh - 22WIN_NS_ex Nearshore wind incl. Grid - 2020",null,null,{"$f":"G282","v":"22WIN_NS_ex Nearshore wind incl. Grid"},"21 Wind Turbines Nearshore, Tech Kat Update 2022",2020,"NO","Wind",{"$f":"L282*(1+$I$774)","v":2.0273367981265658},9.7500000000000003E-2,62500,6.25,{"$f":"P282","v":0},0,0,1,"1900-01-01",0,0,{"$f":"W282","v":4100},0,0,0,27,2.5,0,0,0,0,0,"Central",44623,"chwo",null,null,{"$f":"AM282","v":"Tech Cat 2022 Update"},2020,"EUR"]
[null,null,"TechHigh","TechHigh - 22WIN_NS_ex Nearshore wind incl. Grid - 2025",null,null,"22WIN_NS_ex Nearshore wind incl. Grid","21 Wind Turbines Nearshore, Tech Kat Update 2022",2025,"NO","Wind",1.7680584861707236,9.1954649926188473E-2,52500,5.2125000000000004,0,0,0,1,"1900-01-01",0,0,{"$f":"W283","v":4325},0,0,0,30,2.5,0,0,0,0,0,"Central",44623,"chwo",null,null,"Tech Cat 2022 Update",2020,"EUR"]
[null,null,"TechHigh","TechHigh - 22WIN_NS_ex Nearshore wind incl. Grid - 2030",null,null,"22WIN_NS_ex Nearshore wind incl. Grid","21 Wind Turbines Nearshore, Tech Kat Update 2022",2030,"NO","Wind",1.6405088573488453,8.9940492872556274E-2,48750,4.8624999999999998,0,0,0,1,"1900-01-01",0,0,{"$f":"W284","v":4450},0,0,0,30,2.5,0,0,0,0,0,"Central",44623,"chwo",null,null,"Tech Cat 2022 Update",2020,"EUR"]
[null,null,"TechHigh","TechHigh - 22WIN_NS_ex Nearshore wind incl. Grid - 2040",null,null,"22WIN_NS_ex Nearshore wind incl. Grid","21 Wind Turbines Nearshore, Tech Kat Update 2022",2040,"NO","Wind",1.4617514316161282,8.6277488459980622E-2,42500,4.2750000000000004,0,0,0,1,"1900-01-01",0,0,{"$f":"W285","v":4450},0,0,0,30,2.5,0,0,0,0,0,"Central",44623,"chwo",null,null,"Tech Cat 2022 Update",2020,"EUR"]
[null,null,"TechHigh","TechHigh - 22WIN_NS_ex Nearshore wind incl. Grid - 2050",null,null,"22WIN_NS_ex Nearshore wind incl. Grid","21 Wind Turbines Nearshore, Tech Kat Update 2022",2050,"NO","Wind",1.3974450722988427,8.4893777946652774E-2,41250,4.0625,0,0,0,1,"1900-01-01",0,0,{"$f":"W286","v":4450},0,0,0,30,2,0,0,0,0,0,"Central",44623,"chwo",null,null,"Tech Cat 2022 Update",2020,"EUR"]
[null,null,"TechHigh",{"$error":"#REF!"},null,null,{"$f":"#REF!","v":{"$error":"#REF!"}},{"$f":"#REF!","v":{"$error":"#REF!"}},{"$f":"#REF!","v":{"$error":"#REF!"}},{"$f":"#REF!","v":{"$error":"#REF!"}},{"$f":"#REF!","v":{"$error":"#REF!"}},{"$f":"#REF!*(1+$I$774)","v":{"$error":"#REF!"}},{"$f":"#REF!*(1+$I$774)","v":{"$error":"#REF!"}},{"$f":"#REF!*(1+$I$774)","v":{"$error":"#REF!"}},{"$f":"#REF!*(1+$I$774)","v":{"$error":"#REF!"}},{"$f":"#REF!","v":{"$error":"#REF!"}},{"$f":"#REF!","v":{"$error":"#REF!"}},{"$f":"#REF!","v":{"$error":"#REF!"}},{"$f":"#REF!","v":{"$error":"#REF!"}},{"$f":"#REF!","v":{"$error":"#REF!"}},{"$error":"#REF!"},{"$error":"#REF!"},{"$f":"#REF!","v":{"$error":"#REF!"}},{"$f":"#REF!","v":{"$error":"#REF!"}},{"$f":"#REF!","v":{"$error":"#REF!"}},{"$f":"#REF!","v":{"$error":"#REF!"}},{"$f":"#REF!","v":{"$error":"#REF!"}},{"$f":"#REF!","v":{"$error":"#REF!"}},{"$f":"#REF!","v":{"$error":"#REF!"}},{"$f":"#REF!","v":{"$error":"#REF!"}},{"$f":"#REF!","v":{"$error":"#REF!"}},{"$f":"#REF!","v":{"$error":"#REF!"}},{"$f":"#REF!","v":{"$error":"#REF!"}},{"$f":"#REF!","v":{"$error":"#REF!"}},{"$f":"#REF!","v":{"$error":"#REF!"}},{"$f":"#REF!","v":{"$error":"#REF!"}},null,null,{"$f":"#REF!","v":{"$error":"#REF!"}},{"$f":"#REF!","v":{"$error":"#REF!"}},{"$f":"#REF!","v":{"$error":"#REF!"}}]
[null,null,"TechHigh",{"$error":"#REF!"},null,null,{"$f":"#REF!","v":{"$error":"#REF!"}},{"$f":"#REF!","v":{"$error":"#REF!"}},{"$f":"#REF!","v":{"$error":"#REF!"}},{"$f":"#REF!","v":{"$error":"#REF!"}},{"$f":"#REF!","v":{"$error":"#REF!"}},{"$f":"#REF!*(1+$I$774)","v":{"$error":"#REF!"}},{"$f":"#REF!*(1+$I$774)","v":{"$error":"#REF!"}},{"$f":"#REF!*(1+$I$774)","v":{"$error":"#REF!"}},{"$f":"#REF!*(1+$I$774)","v":{"$error":"#REF!"}},{"$f":"#REF!","v":{"$error":"#REF!"}},{"$f":"#REF!","v":{"$error":"#REF!"}},{"$f":"#REF!","v":{"$error":"#REF!"}},{"$f":"#REF!","v":{"$error":"#REF!"}},{"$f":"#REF!","v":{"$error":"#REF!"}},{"$error":"#REF!"},{"$error":"#REF!"},{"$f":"#REF!","v":{"$error":"#REF!"}},{"$f":"#REF!","v":{"$error":"#REF!"}},{"$f":"#REF!","v":{"$error":"#REF!"}},{"$f":"#REF!","v":{"$error":"#REF!"}},{"$f":"#REF!","v":{"$error":"#REF!"}},{"$f":"#REF!","v":{"$error":"#REF!"}},{"$f":"#REF!","v":{"$error":"#REF!"}},{"$f":"#REF!","v":{"$error":"#REF!"}},{"$f":"#REF!","v":{"$error":"#REF!"}},{"$f":"#REF!","v":{"$error":"#REF!"}},{"$f":"#REF!","v":{"$error":"#REF!"}},{"$f":"#REF!","v":{"$error":"#REF!"}},{"$f":"#REF!","v":{"$error":"#REF!"}},{"$f":"#REF!","v":{"$error":"#REF!"}},null,null,{"$f":"#REF!","v":{"$error":"#REF!"}},{"$f":"#REF!","v":{"$error":"#REF!"}},{"$f":"#REF!","v":{"$error":"#REF!"}}]
[null,null,"TechHigh",{"$error":"#REF!"},null,null,{"$f":"#REF!","v":{"$error":"#REF!"}},{"$f":"#REF!","v":{"$error":"#REF!"}},{"$f":"#REF!","v":{"$error":"#REF!"}},{"$f":"#REF!","v":{"$error":"#REF!"}},{"$f":"#REF!","v":{"$error":"#REF!"}},{"$f":"#REF!*(1+$I$774)","v":{"$error":"#REF!"}},{"$f":"#REF!*(1+$I$774)","v":{"$error":"#REF!"}},{"$f":"#REF!*(1+$I$774)","v":{"$error":"#REF!"}},{"$f":"#REF!*(1+$I$774)","v":{"$error":"#REF!"}},{"$f":"#REF!","v":{"$error":"#REF!"}},{"$f":"#REF!","v":{"$error":"#REF!"}},{"$f":"#REF!","v":{"$error":"#REF!"}},{"$f":"#REF!","v":{"$error":"#REF!"}},{"$f":"#REF!","v":{"$error":"#REF!"}},{"$error":"#REF!"},{"$error":"#REF!"},{"$f":"#REF!","v":{"$error":"#REF!"}},{"$f":"#REF!","v":{"$error":"#REF!"}},{"$f":"#REF!","v":{"$error":"#REF!"}},{"$f":"#REF!","v":{"$error":"#REF!"}},{"$f":"#REF!","v":{"$error":"#REF!"}},{"$f":"#REF!","v":{"$error":"#REF!"}},{"$f":"#REF!","v":{"$error":"#REF!"}},{"$f":"#REF!","v":{"$error":"#REF!"}},{"$f":"#REF!","v":{"$error":"#REF!"}},{"$f":"#REF!","v":{"$error":"#REF!"}},{"$f":"#REF!","v":{"$error":"#REF!"}},{"$f":"#REF!","v":{"$error":"#REF!"}},{"$f":"#REF!","v":{"$error":"#REF!"}},{"$f":"#REF!","v":{"$error":"#REF!"}},null,null,{"$f":"#REF!","v":{"$error":"#REF!"}},{"$f":"#REF!","v":{"$error":"#REF!"}},{"$f":"#REF!","v":{"$error":"#REF!"}}]
[null,null,"TechHigh",{"$error":"#REF!"},null,null,{"$f":"#REF!","v":{"$error":"#REF!"}},{"$f":"#REF!","v":{"$error":"#REF!"}},{"$f":"#REF!","v":{"$error":"#REF!"}},{"$f":"#REF!","v":{"$error":"#REF!"}},{"$f":"#REF!","v":{"$error":"#REF!"}},{"$f":"#REF!*(1+$I$774)","v":{"$error":"#REF!"}},{"$f":"#REF!*(1+$I$774)","v":{"$error":"#REF!"}},{"$f":"#REF!*(1+$I$774)","v":{"$error":"#REF!"}},{"$f":"#REF!*(1+$I$774)","v":{"$error":"#REF!"}},{"$f":"#REF!","v":{"$error":"#REF!"}},{"$f":"#REF!","v":{"$error":"#REF!"}},{"$f":"#REF!","v":{"$error":"#REF!"}},{"$f":"#REF!","v":{"$error":"#REF!"}},{"$f":"#REF!","v":{"$error":"#REF!"}},{"$error":"#REF!"},{"$error":"#REF!"},{"$f":"#REF!","v":{"$error":"#REF!"}},{"$f":"#REF!","v":{"$error":"#REF!"}},{"$f":"#REF!","v":{"$error":"#REF!"}},{"$f":"#REF!","v":{"$error":"#REF!"}},{"$f":"#REF!","v":{"$error":"#REF!"}},{"$f":"#REF!","v":{"$error":"#REF!"}},{"$f":"#REF!","v":{"$error":"#REF!"}},{"$f":"#REF!","v":{"$error":"#REF!"}},{"$f":"#REF!","v":{"$error":"#REF!"}},{"$f":"#REF!","v":{"$error":"#REF!"}},{"$f":"#REF!","v":{"$error":"#REF!"}},{"$f":"#REF!","v":{"$error":"#REF!"}},{"$f":"#REF!","v":{"$error":"#REF!"}},{"$f":"#REF!","v":{"$error":"#REF!"}},null,null,{"$f":"#REF!","v":{"$error":"#REF!"}},{"$f":"#REF!","v":{"$error":"#REF!"}},{"$f":"#REF!","v":{"$error":"#REF!"}}]
[null,null,"TechHigh",{"$error":"#REF!"},null,null,{"$f":"#REF!","v":{"$error":"#REF!"}},{"$f":"#REF!","v":{"$error":"#REF!"}},{"$f":"#REF!","v":{"$error":"#REF!"}},{"$f":"#REF!","v":{"$error":"#REF!"}},{"$f":"#REF!","v":{"$error":"#REF!"}},{"$f":"#REF!*(1+$I$774)","v":{"$error":"#REF!"}},{"$f":"#REF!*(1+$I$774)","v":{"$error":"#REF!"}},{"$f":"#REF!*(1+$I$774)","v":{"$error":"#REF!"}},{"$f":"#REF!*(1+$I$774)","v":{"$error":"#REF!"}},{"$f":"#REF!","v":{"$error":"#REF!"}},{"$f":"#REF!","v":{"$error":"#REF!"}},{"$f":"#REF!","v":{"$error":"#REF!"}},{"$f":"#REF!","v":{"$error":"#REF!"}},{"$f":"#REF!","v":{"$error":"#REF!"}},{"$error":"#REF!"},{"$error":"#REF!"},{"$f":"#REF!","v":{"$error":"#REF!"}},{"$f":"#REF!","v":{"$error":"#REF!"}},{"$f":"#REF!","v":{"$error":"#REF!"}},{"$f":"#REF!","v":{"$error":"#REF!"}},{"$f":"#REF!","v":{"$error":"#REF!"}},{"$f":"#REF!","v":{"$error":"#REF!"}},{"$f":"#REF!","v":{"$error":"#REF!"}},{"$f":"#REF!","v":{"$error":"#REF!"}},{"$f":"#REF!","v":{"$error":"#REF!"}},{"$f":"#REF!","v":{"$error":"#REF!"}},{"$f":"#REF!","v":{"$error":"#REF!"}},{"$f":"#REF!","v":{"$error":"#REF!"}},{"$f":"#REF!","v":{"$error":"#REF!"}},{"$f":"#REF!","v":{"$error":"#REF!"}},null,null,{"$f":"#REF!","v":{"$error":"#REF!"}},{"$f":"#REF!","v":{"$error":"#REF!"}},{"$f":"#REF!","v":{"$error":"#REF!"}}]
[null,null,"TechHigh","TechHigh - 22WIN_OF_in Offshore wind excl. Grid - 2020",null,null,{"$f":"G287","v":"22WIN_OF_in Offshore wind excl. Grid"},"21 Wind Turbines Offshore, Tech Kat Update 2022",2020,"NO","Wind",{"$f":"L287*(1+$I$774)","v":2.1824297399432808},0,62500,6.25,{"$f":"P287","v":0},0,0,1,"1900-01-01",0,0,{"$f":"W287","v":4400},0,0,0,27,2.5,0,0,0,0,0,"Central",44623,"chwo",null,null,{"$f":"AM287","v":"Tech Cat 2022 Update"},2020,"EUR"]
[null,null,"TechHigh","TechHigh - 22WIN_OF_in Offshore wind excl. Grid - 2025",null,null,"22WIN_OF_in Offshore wind excl. Grid","21 Wind Turbines Offshore, Tech Kat Update 2022",2025,"NO","Wind",1.9118271428651705,0,52500,5.2125000000000004,0,0,0,1,"1900-01-01",0,0,{"$f":"W288","v":4775},0,0,0,30,2.5,0,0,0,0,0,"Central",44623,"chwo",null,null,"Tech Cat 2022 Update",2020,"EUR"]
[null,null,"TechHigh","TechHigh - 22WIN_OF_in Offshore wind excl. Grid - 2030",null,null,"22WIN_OF_in Offshore wind excl. Grid","21 Wind Turbines Offshore, Tech Kat Update 2022",2030,"NO","Wind",1.8014489038927914,0,48750,4.8624999999999998,0,0,0,1,"1900-01-01",0,0,{"$f":"W289","v":4800},0,0,0,30,2.5,0,0,0,0,0,"Central",44623,"chwo",null,null,"Tech Cat 2022 Update",2020,"EUR"]
[null,null,"TechHigh","TechHigh - 22WIN_OF_in Offshore wind excl. Grid - 2040",null,null,"22WIN_OF_in Offshore wind excl. Grid","21 Wind Turbines Offshore, Tech Kat Update 2022",2040,"NO","Wind",1.6397905056783224,0,42500,4.2750000000000004,0,0,0,1,"1900-01-01",0,0,{"$f":"W290","v":4850},0,0,0,30,2.5,0,0,0,0,0,"Central",44623,"chwo",null,null,"Tech Cat 2022 Update",2020,"EUR"]
[null,null,"TechHigh","TechHigh - 22WIN_OF_in Offshore wind excl. Grid - 2050",null,null,"22WIN_OF_in Offshore wind excl. Grid","21 Wind Turbines Offshore, Tech Kat Update 2022",2050,"NO","Wind",1.574541600898931,0,41250,4.0625,0,0,0,1,"1900-01-01",0,0,{"$f":"W291","v":4900},0,0,0,30,2,0,0,0,0,0,"Central",44623,"chwo",null,null,"Tech Cat 2022 Update",2020,"EUR"]
[null,null,"TechHigh","TechHigh - 22WIN_NS_ex Nearshore wind excl. Grid - 2020",null,null,{"$f":"G292","v":"22WIN_NS_ex Nearshore wind excl. Grid"},"21 Wind Turbines Nearshore, Tech Kat Update 2022",2020,"NO","Wind",{"$f":"L292*(1+$I$774)","v":2.0273367981265658},0,62500,6.25,{"$f":"P292","v":0},0,0,1,"1900-01-01",0,0,{"$f":"W292","v":4100},0,0,0,27,2.5,0,0,0,0,0,"Central",44623,"chwo",null,null,{"$f":"AM292","v":"Tech Cat 2022 Update"},2020,"EUR"]
[null,null,"TechHigh","TechHigh - 22WIN_NS_ex Nearshore wind excl. Grid - 2025",null,null,"22WIN_NS_ex Nearshore wind excl. Grid","21 Wind Turbines Nearshore, Tech Kat Update 2022",2025,"NO","Wind",1.7680584861707236,0,52500,5.2125000000000004,0,0,0,1,"1900-01-01",0,0,{"$f":"W293","v":4325},0,0,0,30,2.5,0,0,0,0,0,"Central",44623,"chwo",null,null,"Tech Cat 2022 Update",2020,"EUR"]
[null,null,"TechHigh","TechHigh - 22WIN_NS_ex Nearshore wind excl. Grid - 2030",null,null,"22WIN_NS_ex Nearshore wind excl. Grid","21 Wind Turbines Nearshore, Tech Kat Update 2022",2030,"NO","Wind",1.6405088573488453,0,48750,4.8624999999999998,0,0,0,1,"1900-01-01",0,0,{"$f":"W294","v":4450},0,0,0,30,2.5,0,0,0,0,0,"Central",44623,"chwo",null,null,"Tech Cat 2022 Update",2020,"EUR"]
[null,null,"TechHigh","TechHigh - 22WIN_NS_ex Nearshore wind excl. Grid - 2040",null,null,"22WIN_NS_ex Nearshore wind excl. Grid","21 Wind Turbines Nearshore, Tech Kat Update 2022",2040,"NO","Wind",1.4617514316161282,0,42500,4.2750000000000004,0,0,0,1,"1900-01-01",0,0,{"$f":"W295","v":4450},0,0,0,30,2.5,0,0,0,0,0,"Central",44623,"chwo",null,null,"Tech Cat 2022 Update",2020,"EUR"]
[null,null,"TechHigh","TechHigh - 22WIN_NS_ex Nearshore wind excl. Grid - 2050",null,null,"22WIN_NS_ex Nearshore wind excl. Grid","21 Wind Turbines Nearshore, Tech Kat Update 2022",2050,"NO","Wind",1.3974450722988427,0,41250,4.0625,0,0,0,1,"1900-01-01",0,0,{"$f":"W296","v":4450},0,0,0,30,2,0,0,0,0,0,"Central",44623,"chwo",null,null,"Tech Cat 2022 Update",2020,"EUR"]
[null,null,"TechHigh","TechHigh - 0 - 0",null,null,0,0,0,0,0,0,0,0,0,0,0,0,0,"00:00:00",0,0,{"$f":"W297","v":0},0,0,0,0,0,0,0,0,0,0,0,0,0,null,null,0,0,0]
[null,null,"TechHigh","TechHigh - 0 - 0",null,null,0,0,0,0,0,0,0,0,0,0,0,0,0,"00:00:00",0,0,{"$f":"W298","v":0},0,0,0,0,0,0,0,0,0,0,0,0,0,null,null,0,0,0]
[null,null,"TechHigh","TechHigh - 0 - 0",null,null,0,0,0,0,0,0,0,0,0,0,0,0,0,"00:00:00",0,0,{"$f":"W299","v":0},0,0,0,0,0,0,0,0,0,0,0,0,0,null,null,0,0,0]
[null,null,"TechHigh","TechHigh - 0 - 0",null,null,0,0,0,0,0,0,0,0,0,0,0,0,0,"00:00:00",0,0,{"$f":"W300","v":0},0,0,0,0,0,0,0,0,0,0,0,0,0,null,null,0,0,0]
[null,null,"TechHigh","TechHigh - 0 - 0",null,null,0,0,0,0,0,0,0,0,0,0,0,0,0,"00:00:00",0,0,{"$f":"W301","v":0},0,0,0,0,0,0,0,0,0,0,0,0,0,null,null,0,0,0]
[null,null,"TechHigh","TechHigh - 0 - 0",null,null,{"$f":"G302","v":0},0,0,0,0,0,0,0,0,{"$f":"P302","v":0},0,0,0,"00:00:00",0,0,{"$f":"W302","v":0},0,0,0,0,0,0,0,0,0,0,0,0,0,null,null,0,0,0]
[null,null,"TechHigh","TechHigh - 0 - 0",null,null,0,0,0,0,0,0,0,0,0,0,0,0,0,"00:00:00",0,0,{"$f":"W303","v":0},0,0,0,0,0,0,0,0,0,0,0,0,0,null,null,0,0,0]
[null,null,"TechHigh","TechHigh - 0 - 0",null,null,0,0,0,0,0,0,0,0,0,0,0,0,0,"00:00:00",0,0,{"$f":"W304","v":0},0,0,0,0,0,0,0,0,0,0,0,0,0,null,null,0,0,0]
[null,null,"TechHigh","TechHigh - 0 - 0",null,null,0,0,0,0,0,0,0,0,0,0,0,0,0,"00:00:00",0,0,{"$f":"W305","v":0},0,0,0,0,0,0,0,0,0,0,0,0,0,null,null,0,0,0]
[null,null,"TechHigh","TechHigh - 0 - 0",null,null,0,0,0,0,0,0,0,0,0,0,0,0,0,"00:00:00",0,0,{"$f":"W306","v":0},0,0,0,0,0,0,0,0,0,0,0,0,0,null,null,0,0,0]
[null,null,"TechHigh","TechHigh - 0 - 0",null,null,0,0,0,0,0,0,0,0,0,0,0,0,0,"00:00:00",0,0,{"$f":"W307","v":0},0,0,0,0,0,0,0,0,0,0,0,0,0,null,null,0,0,0]
[null,null,"TechHigh","TechHigh - 0 - 0",null,null,0,0,0,0,0,0,0,0,0,0,0,"00:00:00",0,"00:00:00",0,0,{"$f":"W308","v":0},0,0,0,0,0,0,0,0,0,0,0,"00:00:00",0,null,null,0,0,0]
[null,null,"TechHigh","TechHigh - 0 - 0",null,null,0,0,0,0,0,0,0,0,0,0,0,"00:00:00",0,"00:00:00",0,0,{"$f":"W309","v":0},0,0,0,0,0,0,0,0,0,0,0,"00:00:00",0,null,null,0,0,0]
[null,null,"TechHigh","TechHigh - 0 - 0",null,null,0,0,0,0,0,0,0,0,0,0,0,"00:00:00",0,"00:00:00",0,0,{"$f":"W310","v":0},0,0,0,0,0,0,0,0,0,0,0,"00:00:00",0,null,null,0,0,0]
[null,null,"TechHigh","TechHigh - 0 - 0",null,null,0,0,0,0,0,0,0,0,0,0,0,"00:00:00",0,"00:00:00",0,0,{"$f":"W311","v":0},0,0,0,0,0,0,0,0,0,0,0,"00:00:00",0,null,null,0,0,0]
[null,null,{"$f":"$G$775","v":"TechHigh"},{"$f":"C974&\" - \"&G974&\" - \"&I974","v":"TechHigh - 0 - 0"},null,null,{"$f":"G312","v":0},0,0,0,0,{"$f":"L312*(1+$I$774)","v":0},0,0,0,{"$f":"P312","v":0},0,0,0,"00:00:00",0,0,{"$f":"W312","v":0},0,0,0,0,0,0,0,0,0,0,0,0,0,null,null,{"$f":"AM312","v":0},0,0]
[null,null,"TechHigh","TechHigh - 0 - 0",null,null,0,0,0,0,0,0,0,0,0,0,0,0,0,"00:00:00",0,0,{"$f":"W313","v":0},0,0,0,0,0,0,0,0,0,0,0,0,0,null,null,0,0,0]
[null,null,"TechHigh","TechHigh - 0 - 0",null,null,0,0,0,0,0,0,0,0,0,0,0,0,0,"00:00:00",0,0,{"$f":"W314","v":0},0,0,0,0,0,0,0,0,0,0,0,0,0,null,null,0,0,0]
[null,null,"TechHigh","TechHigh - 0 - 0",null,null,0,0,0,0,0,0,0,0,0,0,0,0,0,"00:00:00",0,0,{"$f":"W315","v":0},0,0,0,0,0,0,0,0,0,0,0,0,0,null,null,0,0,0]
[null,null,"TechHigh","TechHigh - 0 - 0",null,null,0,0,0,0,0,0,0,0,0,0,0,0,0,"00:00:00",0,0,{"$f":"W316","v":0},0,0,0,0,0,0,0,0,0,0,0,0,0,null,null,0,0,0]
[null,null,"TechHigh","TechHigh - 0 - 0",null,null,0,0,0,0,0,0,0,0,0,0,0,0,0,"00:00:00",0,0,{"$f":"W317","v":0},0,0,0,0,0,0,0,0,0,0,0,0,0,null,null,0,0,0]
[null,null,"TechHigh","TechHigh - 0 - 0",null,null,0,0,0,0,0,0,0,0,0,0,0,0,0,"00:00:00",0,0,{"$f":"W318","v":0},0,0,0,0,0,0,0,0,0,0,0,0,0,null,null,0,0,0]
[null,null,"TechHigh","TechHigh - 0 - 0",null,null,0,0,0,0,0,0,0,0,0,0,0,0,0,"00:00:00",0,0,{"$f":"W319","v":0},0,0,0,0,0,0,0,0,0,0,0,0,0,null,null,0,0,0]
[null,null,"TechHigh","TechHigh - 0 - 0",null,null,0,0,0,0,0,0,0,0,0,0,0,0,0,"00:00:00",0,0,{"$f":"W320","v":0},0,0,0,0,0,0,0,0,0,0,0,0,0,null,null,0,0,0]
[null,null,"TechHigh","TechHigh - 0 - 0",null,null,0,0,0,0,0,0,0,0,0,0,0,0,0,"00:00:00",0,0,{"$f":"W321","v":0},0,0,0,0,0,0,0,0,0,0,0,0,0,null,null,0,0,0]
[null,null,"TechHigh","TechHigh - 0 - 0",null,null,{"$f":"G322","v":0},0,0,0,0,0,0,0,0,{"$f":"P322","v":0},0,0,0,"00:00:00",0,0,{"$f":"W322","v":0},0,0,0,0,0,0,0,0,0,0,0,0,0,null,null,0,0,0]
[null,null,"TechHigh","TechHigh - 0 - 0",null,null,0,0,0,0,0,0,0,0,0,0,0,0,0,"00:00:00",0,0,{"$f":"W323","v":0},0,0,0,0,0,0,0,0,0,0,0,0,0,null,null,0,0,0]
[null,null,"TechHigh","TechHigh - 0 - 0",null,null,0,0,0,0,0,0,0,0,0,0,0,0,0,"00:00:00",0,0,{"$f":"W324","v":0},0,0,0,0,0,0,0,0,0,0,0,0,0,null,null,0,0,0]
[null,null,"TechHigh","TechHigh - 0 - 0",null,null,0,0,0,0,0,0,0,0,0,0,0,0,0,"00:00:00",0,0,{"$f":"W325","v":0},0,0,0,0,0,0,0,0,0,0,0,0,0,null,null,0,0,0]
[null,null,"TechHigh","TechHigh - 0 - 0",null,null,0,0,0,0,0,0,0,0,0,0,0,0,0,"00:00:00",0,0,{"$f":"W326","v":0},0,0,0,0,0,0,0,0,0,0,0,0,0,null,null,0,0,0]
[null,null,"TechHigh","TechHigh - 0 - 0",null,null,0,0,0,0,0,0,0,0,0,0,0,0,0,"00:00:00",0,0,{"$f":"W327","v":0},0,0,0,0,0,0,0,0,0,0,0,0,0,null,null,0,0,0]
[null,null,"TechHigh","TechHigh - 0 - 0",null,null,0,0,0,0,0,0,0,0,0,0,0,0,0,"00:00:00",0,0,{"$f":"W328","v":0},0,0,0,0,0,0,0,0,0,0,0,0,0,null,null,0,0,0]
[null,null,"TechHigh","TechHigh - 0 - 0",null,null,0,0,0,0,0,0,0,0,0,0,0,0,0,"00:00:00",0,0,{"$f":"W329","v":0},0,0,0,0,0,0,0,0,0,0,0,0,0,null,null,0,0,0]
[null,null,"TechHigh","TechHigh - 0 - 0",null,null,0,0,0,0,0,0,0,0,0,0,0,0,0,"00:00:00",0,0,{"$f":"W330","v":0},0,0,0,0,0,0,0,0,0,0,0,0,0,null,null,0,0,0]
[null,null,"TechHigh","TechHigh - 0 - 0",null,null,0,0,0,0,0,0,0,0,0,0,0,0,0,"00:00:00",0,0,{"$f":"W331","v":0},0,0,0,0,0,0,0,0,0,0,0,0,0,null,null,0,0,0]
[null,null,"TechHigh","TechHigh - 0 - 0",null,null,{"$f":"G332","v":0},0,0,0,0,{"$f":"L332*(1+$I$774)","v":0},0,0,0,{"$f":"P332","v":0},0,0,0,"00:00:00",0,0,{"$f":"W332","v":0},0,0,0,0,0,0,0,0,0,0,0,0,0,null,null,{"$f":"AM332","v":0},0,0]
[null,null,"TechHigh","TechHigh - 0 - 0",null,null,0,0,0,0,0,0,0,0,0,0,0,0,0,"00:00:00",0,0,{"$f":"W333","v":0},0,0,0,0,0,0,0,0,0,0,0,0,0,null,null,0,0,0]
[null,null,"TechHigh","TechHigh - 0 - 0",null,null,0,0,0,0,0,0,0,0,0,0,0,0,0,"00:00:00",{"$f":"IF(R996=0,0,R996*T996/(R996+Q996))","v":0},{"$f":"IF(R996=0,0,T996/(R996+Q996))","v":0},{"$f":"W334","v":0},0,0,0,0,0,0,0,0,0,0,0,0,0,null,null,0,0,0]
[null,null,"TechHigh","TechHigh - 0 - 0",null,null,0,0,0,0,0,0,0,0,0,0,0,0,0,"00:00:00",0,0,{"$f":"W335","v":0},0,0,0,0,0,0,0,0,0,0,0,0,0,null,null,0,0,0]
[null,null,"TechHigh","TechHigh - 0 - 0",null,null,0,0,0,0,0,0,0,0,0,0,0,0,0,"00:00:00",0,0,{"$f":"W336","v":0},0,0,0,0,0,0,0,0,0,0,0,0,0,null,null,0,0,0]
[null,null,"TechHigh","TechHigh - 0 - 0",null,null,0,0,0,0,0,0,0,0,0,0,0,0,0,"00:00:00",0,0,{"$f":"W337","v":0},0,0,0,0,0,0,0,0,0,0,0,0,0,null,null,0,0,0]
[null,null,"TechHigh","TechHigh - 0 - 0",null,null,0,0,0,0,0,0,0,0,0,0,0,0,0,"00:00:00",0,0,{"$f":"W338","v":0},0,0,0,0,0,0,0,0,0,0,0,0,0,null,null,0,0,0]
[null,null,"TechHigh","TechHigh - 0 - 0",null,null,0,0,0,0,0,0,0,0,0,0,0,0,0,"00:00:00",0,0,{"$f":"W339","v":0},0,0,0,0,0,0,0,0,0,0,0,0,0,null,null,0,0,0]
[null,null,"TechHigh","TechHigh - 0 - 0",null,null,0,0,0,0,0,0,0,0,0,0,0,0,0,"00:00:00",0,0,{"$f":"W340","v":0},0,0,0,0,0,0,0,0,0,0,0,0,0,null,null,0,0,0]
[null,null,"TechHigh","TechHigh - 0 - 0",null,null,0,0,0,0,0,0,0,0,0,0,0,0,0,"00:00:00",0,0,{"$f":"W341","v":0},0,0,0,0,0,0,0,0,0,0,0,0,0,null,null,0,0,0]
[null,null,"TechHigh","TechHigh - 0 - 0",null,null,{"$f":"G342","v":0},0,0,0,0,0,0,0,0,{"$f":"P342","v":0},0,0,0,"00:00:00",0,0,{"$f":"W342","v":0},0,0,0,0,0,0,0,0,0,0,0,0,0,null,null,0,0,0]
[null,null,"TechHigh","TechHigh - 0 - 0",null,null,0,0,0,0,0,0,0,0,0,0,0,0,0,"00:00:00",0,0,{"$f":"W343","v":0},0,0,0,0,0,0,0,0,0,0,0,0,0,null,null,0,0,0]
[null,null,"TechHigh","TechHigh - 0 - 0",null,null,0,0,0,0,0,0,0,0,0,0,0,0,0,"00:00:00",0,0,{"$f":"W344","v":0},0,0,0,0,0,0,0,0,0,0,0,0,0,null,null,0,0,0]
[null,null,"TechHigh","TechHigh - 0 - 0",null,null,0,0,0,0,0,0,0,0,0,0,0,0,0,"00:00:00",0,0,{"$f":"W345","v":0},0,0,0,0,0,0,0,0,0,0,0,0,0,null,null,0,0,0]
[null,null,"TechHigh","TechHigh - 0 - 0",null,null,0,0,0,0,0,0,0,0,0,0,0,0,0,"00:00:00",0,0,{"$f":"W346","v":0},0,0,0,0,0,0,0,0,0,0,0,0,0,null,null,0,0,0]
[null,null,"TechHigh","TechHigh - 0 - 0",null,null,0,0,0,0,0,0,0,0,0,0,0,0,0,"00:00:00",0,0,{"$f":"W347","v":0},0,0,0,0,0,0,0,0,0,0,0,0,0,null,null,0,0,0]
[null,null,"TechHigh","TechHigh - 0 - 0",null,null,0,0,0,0,0,0,0,0,0,0,0,0,0,"00:00:00",0,0,{"$f":"W348","v":0},0,0,0,0,0,0,0,0,0,0,0,0,0,null,null,0,0,0]
[null,null,"TechHigh","TechHigh - 0 - 0",null,null,0,0,0,0,0,0,0,0,0,0,0,0,0,"00:00:00",0,0,{"$f":"W349","v":0},0,0,0,0,0,0,0,0,0,0,0,0,0,null,null,0,0,0]
[null,null,"TechHigh","TechHigh - 0 - 0",null,null,0,0,0,0,0,0,0,0,0,0,0,0,0,"00:00:00",0,0,{"$f":"W350","v":0},0,0,0,0,0,0,0,0,0,0,0,0,0,null,null,0,0,0]
[null,null,"TechHigh","TechHigh - 0 - 0",null,null,0,0,0,0,0,0,0,0,0,0,0,0,0,"00:00:00",0,0,{"$f":"W351","v":0},0,0,0,0,0,0,0,0,0,0,0,0,0,null,null,0,0,0]
[null,null,"TechHigh","TechHigh - 0 - 0",null,null,{"$f":"G352","v":0},0,0,0,0,{"$f":"L352*(1+$I$774)","v":0},0,0,0,{"$f":"P352","v":0},0,0,0,"00:00:00",0,0,{"$f":"W352","v":0},0,0,0,0,0,0,0,0,0,0,0,0,0,null,null,{"$f":"AM352","v":0},0,0]
[null,null,"TechHigh","TechHigh - 0 - 0",null,null,0,0,0,0,0,0,0,0,0,0,0,0,0,"00:00:00",0,0,{"$f":"W353","v":0},0,0,0,0,0,0,0,0,0,0,0,0,0,null,null,0,0,0]
[null,null,"TechHigh","TechHigh - 0 - 0",null,null,0,0,0,0,0,0,0,0,0,0,0,0,0,"00:00:00",0,0,{"$f":"W354","v":0},0,0,0,0,0,0,0,0,0,0,0,0,0,null,null,0,0,0]
[null,null,"TechHigh","TechHigh - 0 - 0",null,null,0,0,0,0,0,0,0,0,0,0,0,0,0,"00:00:00",0,0,{"$f":"W355","v":0},0,0,0,0,0,0,0,0,0,0,0,0,0,null,null,0,0,0]
[null,null,"TechHigh","TechHigh - 0 - 0",null,null,0,0,0,0,0,0,0,0,0,0,0,0,0,"00:00:00",0,0,{"$f":"W356","v":0},0,0,0,0,0,0,0,0,0,0,0,0,0,null,null,0,0,0]
[null,null,"TechHigh","TechHigh - 0 - 0",null,null,0,0,0,0,0,0,0,0,0,0,0,0,0,"00:00:00",0,0,{"$f":"W357","v":0},0,0,0,0,0,0,0,0,0,0,0,0,0,null,null,0,0,0]
[null,null,"TechHigh","TechHigh - 0 - 0",null,null,0,0,0,0,0,0,0,0,0,0,0,0,0,"00:00:00",0,0,{"$f":"W358","v":0},0,0,0,0,0,0,0,0,0,0,0,0,0,null,null,0,0,0]
[null,null,"TechHigh","TechHigh - 0 - 0",null,null,0,0,0,0,0,0,0,0,0,0,0,0,0,"00:00:00",0,0,{"$f":"W359","v":0},0,0,0,0,0,0,0,0,0,0,0,0,0,null,null,0,0,0]
[null,null,"TechHigh","TechHigh - 0 - 0",null,null,0,0,0,0,0,0,0,0,0,0,0,0,0,"00:00:00",0,0,{"$f":"W360","v":0},0,0,0,0,0,0,0,0,0,0,0,0,0,null,null,0,0,0]
[null,null,"TechHigh","TechHigh - 0 - 0",null,null,0,0,0,0,0,0,0,0,0,0,0,0,0,"00:00:00",0,0,{"$f":"W361","v":0},0,0,0,0,0,0,0,0,0,0,0,0,0,null,null,0,0,0]
[null,null,"TechHigh","TechHigh - 0 - 0",null,null,{"$f":"G362","v":0},0,0,0,0,0,0,0,0,{"$f":"P362","v":0},0,0,0,"00:00:00",0,0,{"$f":"W362","v":0},0,0,0,0,0,0,0,0,0,0,0,0,0,null,null,0,0,0]
[null,null,"TechHigh","TechHigh - 0 - 0",null,null,0,0,0,0,0,0,0,0,0,0,0,0,0,"00:00:00",0,0,{"$f":"W363","v":0},0,0,0,0,0,0,0,0,0,0,0,0,0,null,null,0,0,0]
[null,null,"TechHigh","TechHigh - 0 - 0",null,null,0,0,0,0,0,0,0,0,0,0,0,0,0,"00:00:00",0,0,{"$f":"W364","v":0},0,0,0,0,0,0,0,0,0,0,0,0,0,null,null,0,0,0]
[null,null,"TechHigh","TechHigh - 0 - 0",null,null,0,0,0,0,0,0,0,0,0,0,0,0,0,"00:00:00",0,0,{"$f":"W365","v":0},0,0,0,0,0,0,0,0,0,0,0,0,0,null,null,0,0,0]
[null,null,"TechHigh","TechHigh - 0 - 0",null,null,0,0,0,0,0,0,0,0,0,0,0,0,0,"00:00:00",0,0,{"$f":"W366","v":0},0,0,0,0,0,0,0,0,0,0,0,0,0,null,null,0,0,0]
[null,null,"TechHigh","TechHigh - 0 - 0",null,null,0,0,0,0,0,0,0,0,0,0,0,0,0,"00:00:00",0,0,{"$f":"W367","v":0},0,0,0,0,0,0,0,0,0,0,0,0,0,null,null,0,0,0]
[null,null,"TechHigh","TechHigh - 0 - 0",null,null,0,0,0,0,0,0,0,0,0,0,0,0,0,"00:00:00",0,0,{"$f":"W368","v":0},0,0,0,0,0,0,0,0,0,0,0,0,0,null,null,0,0,0]
[null,null,"TechHigh","TechHigh - 0 - 0",null,null,0,0,0,0,0,0,0,0,0,0,0,0,0,"00:00:00",0,0,{"$f":"W369","v":0},0,0,0,0,0,0,0,0,0,0,0,0,0,null,null,0,0,0]
[null,null,"TechHigh","TechHigh - 0 - 0",null,null,0,0,0,0,0,0,0,0,0,0,0,0,0,"00:00:00",0,0,{"$f":"W370","v":0},0,0,0,0,0,0,0,0,0,0,0,0,0,null,null,0,0,0]
[null,null,"TechHigh","TechHigh - 0 - 0",null,null,0,0,0,0,0,0,0,0,0,0,0,0,0,"00:00:00",0,0,{"$f":"W371","v":0},0,0,0,0,0,0,0,0,0,0,0,0,0,null,null,0,0,0]
[null,null,"TechHigh","TechHigh - 0 - 0",null,null,{"$f":"G372","v":0},0,0,0,0,{"$f":"L372*(1+$I$774)","v":0},0,0,0,{"$f":"P372","v":0},0,0,0,"00:00:00",0,0,{"$f":"W372","v":0},0,0,0,0,0,0,0,0,0,0,0,0,0,null,null,{"$f":"AM372","v":0},0,0]
[null,null,"TechHigh","TechHigh - 0 - 0",null,null,0,0,0,0,0,0,0,0,0,0,0,0,0,"00:00:00",0,0,{"$f":"W373","v":0},0,0,0,0,0,0,0,0,0,0,0,0,0,null,null,0,0,0]
[null,null,"TechHigh","TechHigh - 0 - 0",null,null,0,0,0,0,0,0,0,0,0,0,0,0,0,"00:00:00",0,0,{"$f":"W374","v":0},0,0,0,0,0,0,0,0,0,0,0,0,0,null,null,0,0,0]
[null,null,"TechHigh","TechHigh - 0 - 0",null,null,0,0,0,0,0,0,0,0,0,0,0,0,0,"00:00:00",0,0,{"$f":"W375","v":0},0,0,0,0,0,0,0,0,0,0,0,0,0,null,null,0,0,0]
[null,null,{"$f":"$G$775","v":"TechHigh"},{"$f":"C1038&\" - \"&G1038&\" - \"&I1038","v":"TechHigh - 0 - 0"},null,null,0,0,0,0,0,0,0,0,0,0,0,0,0,"00:00:00",0,0,{"$f":"W376","v":0},0,0,0,0,0,0,0,0,0,0,0,0,0,null,null,0,0,0]
[null,null,"TechHigh","TechHigh - 0 - 0",null,null,0,0,0,0,0,0,0,0,0,0,0,0,0,"00:00:00",0,0,{"$f":"W377","v":0},0,0,0,0,0,0,0,0,0,0,0,0,0,null,null,0,0,0]
[null,null,"TechHigh","TechHigh - 0 - 0",null,null,0,0,0,0,0,0,0,0,0,0,0,0,0,"00:00:00",0,0,{"$f":"W378","v":0},0,0,0,0,0,0,0,0,0,0,0,0,0,null,null,0,0,0]
[null,null,"TechHigh","TechHigh - 0 - 0",null,null,0,0,0,0,0,0,0,0,0,0,0,0,0,"00:00:00",0,0,{"$f":"W379","v":0},0,0,0,0,0,0,0,0,0,0,0,0,0,null,null,0,0,0]
[null,null,"TechHigh","TechHigh - 0 - 0",null,null,0,0,0,0,0,0,0,0,0,0,0,0,0,"00:00:00",0,0,{"$f":"W380","v":0},0,0,0,0,0,0,0,0,0,0,0,0,0,null,null,0,0,0]
[null,null,"TechHigh","TechHigh - 0 - 0",null,null,0,0,0,0,0,0,0,0,0,0,0,0,0,"00:00:00",0,0,{"$f":"W381","v":0},0,0,0,0,0,0,0,0,0,0,0,0,0,null,null,0,0,0]
[null,null,"TechHigh","TechHigh - 0 - 0",null,null,{"$f":"G382","v":0},0,0,0,0,0,0,0,0,{"$f":"P382","v":0},0,0,0,"00:00:00",0,0,{"$f":"W382","v":0},0,0,0,0,0,0,0,0,0,0,0,0,0,null,null,0,0,0]
[null,null,"TechHigh","TechHigh - 0 - 0",null,null,0,0,0,0,0,0,0,0,0,0,0,0,0,"00:00:00",0,0,{"$f":"W383","v":0},0,0,0,0,0,0,0,0,0,0,0,0,0,null,null,0,0,0]
[null,null,"TechHigh","TechHigh - 0 - 0",null,null,0,0,0,0,0,0,0,0,0,0,0,0,0,"00:00:00",0,0,{"$f":"W384","v":0},0,0,0,0,0,0,0,0,0,0,0,0,0,null,null,0,0,0]
[null,null,"TechHigh","TechHigh - 0 - 0",null,null,0,0,0,0,0,0,0,0,0,0,0,0,0,"00:00:00",0,0,{"$f":"W385","v":0},0,0,0,0,0,0,0,0,0,0,0,0,0,null,null,0,0,0]
[null,null,"TechHigh","TechHigh - 0 - 0",null,null,0,0,0,0,0,0,0,0,0,0,0,0,0,"00:00:00",0,0,{"$f":"W386","v":0},0,0,0,0,0,0,0,0,0,0,0,0,0,null,null,0,0,0]
[null,null,"TechHigh","TechHigh - 0 - 0",null,null,0,0,0,0,0,0,0,0,0,0,0,0,0,"00:00:00",0,0,{"$f":"W387","v":0},0,0,0,0,0,0,0,0,0,0,0,0,0,null,null,0,0,0]
[null,null,"TechHigh","TechHigh - 0 - 0",null,null,0,0,0,0,0,0,0,0,0,0,0,0,0,"00:00:00",0,0,{"$f":"W388","v":0},0,0,0,0,0,0,0,0,0,0,0,0,0,null,null,0,0,0]
[null,null,"TechHigh","TechHigh - 0 - 0",null,null,0,0,0,0,0,0,0,0,0,0,0,0,0,"00:00:00",0,0,{"$f":"W389","v":0},0,0,0,0,0,0,0,0,0,0,0,0,0,null,null,0,0,0]
[null,null,"TechHigh","TechHigh - 0 - 0",null,null,0,0,0,0,0,0,0,0,0,0,0,0,0,"00:00:00",0,0,{"$f":"W390","v":0},0,0,0,0,0,0,0,0,0,0,0,0,0,null,null,0,0,0]
[null,null,"TechHigh","TechHigh - 0 - 0",null,null,0,0,0,0,0,0,0,0,0,0,0,0,0,"00:00:00",0,0,{"$f":"W391","v":0},0,0,0,0,0,0,0,0,0,0,0,0,0,null,null,0,0,0]
[null,null,"TechHigh","TechHigh - 0 - 0",null,null,{"$f":"G392","v":0},0,0,0,0,{"$f":"L392*(1+$I$774)","v":0},0,0,0,{"$f":"P392","v":0},0,0,0,"00:00:00",0,0,{"$f":"W392","v":0},0,0,0,0,0,0,0,0,0,0,0,0,0,null,null,{"$f":"AM392","v":0},0,0]
[null,null,"TechHigh","TechHigh - 0 - 0",null,null,0,0,0,0,0,0,0,0,0,0,0,0,0,"00:00:00",0,0,{"$f":"W393","v":0},0,0,0,0,0,0,0,0,0,0,0,0,0,null,null,0,0,0]
[null,null,"TechHigh","TechHigh - 0 - 0",null,null,0,0,0,0,0,0,0,0,0,0,0,0,0,"00:00:00",0,0,{"$f":"W394","v":0},0,0,0,0,0,0,0,0,0,0,0,0,0,null,null,0,0,0]
[null,null,"TechHigh","TechHigh - 0 - 0",null,null,0,0,0,0,0,0,0,0,0,0,0,0,0,"00:00:00",0,0,{"$f":"W395","v":0},0,0,0,0,0,0,0,0,0,0,0,0,0,null,null,0,0,0]
[null,null,"TechHigh","TechHigh - 0 - 0",null,null,0,0,0,0,0,0,0,0,0,0,0,0,0,"00:00:00",0,0,{"$f":"W396","v":0},0,0,0,0,0,0,0,0,0,0,0,0,0,null,null,0,0,0]
[null,null,"TechHigh","TechHigh - 0 - 0",null,null,0,0,0,0,0,0,0,0,0,0,0,0,0,"00:00:00",0,0,{"$f":"W397","v":0},0,0,0,0,0,0,0,0,0,0,0,0,0,null,null,0,0,0]
[null,null,"TechHigh","TechHigh - 0 - 0",null,null,0,0,0,0,0,0,0,0,0,0,0,0,0,"00:00:00",{"$f":"IF(R1060=0,0,R1060*T1060/(R1060+Q1060))","v":0},{"$f":"IF(R1060=0,0,T1060/(R1060+Q1060))","v":0},{"$f":"W398","v":0},0,0,0,0,0,0,0,0,0,0,0,0,0,null,null,0,0,0]
[null,null,"TechHigh","TechHigh - 0 - 0",null,null,0,0,0,0,0,0,0,0,0,0,0,0,0,"00:00:00",0,0,{"$f":"W399","v":0},0,0,0,0,0,0,0,0,0,0,0,0,0,null,null,0,0,0]
[null,null,"TechHigh","TechHigh - 0 - 0",null,null,0,0,0,0,0,0,0,0,0,0,0,0,0,"00:00:00",0,0,{"$f":"W400","v":0},0,0,0,0,0,0,0,0,0,0,0,0,0,null,null,0,0,0]
[null,null,"TechHigh","TechHigh - 0 - 0",null,null,0,0,0,0,0,0,0,0,0,0,0,0,0,"00:00:00",0,0,{"$f":"W401","v":0},0,0,0,0,0,0,0,0,0,0,0,0,0,null,null,0,0,0]
[null,null,"TechHigh","TechHigh - 0 - 0",null,null,{"$f":"G402","v":0},0,0,0,0,0,0,0,0,{"$f":"P402","v":0},0,0,0,"00:00:00",0,0,{"$f":"W402","v":0},0,0,0,0,0,0,0,0,0,0,0,0,0,null,null,0,0,0]
[null,null,"TechHigh","TechHigh - 0 - 0",null,null,0,0,0,0,0,0,0,0,0,0,0,0,0,"00:00:00",0,0,{"$f":"W403","v":0},0,0,0,0,0,0,0,0,0,0,0,0,0,null,null,0,0,0]
[null,null,"TechHigh","TechHigh - 0 - 0",null,null,0,0,0,0,0,0,0,0,0,0,0,0,0,"00:00:00",0,0,{"$f":"W404","v":0},0,0,0,0,0,0,0,0,0,0,0,0,0,null,null,0,0,0]
[null,null,"TechHigh","TechHigh - 0 - 0",null,null,0,0,0,0,0,0,0,0,0,0,0,0,0,"00:00:00",0,0,{"$f":"W405","v":0},0,0,0,0,0,0,0,0,0,0,0,0,0,null,null,0,0,0]
[null,null,"TechHigh","TechHigh - 0 - 0",null,null,0,0,0,0,0,0,0,0,0,0,0,0,0,"00:00:00",0,0,{"$f":"W406","v":0},0,0,0,0,0,0,0,0,0,0,0,0,0,null,null,0,0,0]
[null,null,"TechHigh","TechHigh - 0 - 0",null,null,0,0,0,0,0,0,0,0,0,0,0,0,0,"00:00:00",0,0,{"$f":"W407","v":0},0,0,0,0,0,0,0,0,0,0,0,0,0,null,null,0,0,0]
[null,null,"TechHigh","TechHigh - 0 - 0",null,null,0,0,0,0,0,0,0,0,0,0,0,0,0,"00:00:00",0,0,{"$f":"W408","v":0},0,0,0,0,0,0,0,0,0,0,0,0,0,null,null,0,0,0]
[null,null,"TechHigh","TechHigh - 0 - 0",null,null,0,0,0,0,0,0,0,0,0,0,0,0,0,"00:00:00",0,0,{"$f":"W409","v":0},0,0,0,0,0,0,0,0,0,0,0,0,0,null,null,0,0,0]
[null,null,"TechHigh","TechHigh - 0 - 0",null,null,0,0,0,0,0,0,0,0,0,0,0,0,0,"00:00:00",0,0,{"$f":"W410","v":0},0,0,0,0,0,0,0,0,0,0,0,0,0,null,null,0,0,0]
[null,null,"TechHigh","TechHigh - 0 - 0",null,null,0,0,0,0,0,0,0,0,0,0,0,0,0,"00:00:00",0,0,{"$f":"W411","v":0},0,0,0,0,0,0,0,0,0,0,0,0,0,null,null,0,0,0]
[null,null,"TechHigh","TechHigh - 0 - 0",null,null,{"$f":"G412","v":0},0,0,0,0,{"$f":"L412*(1+$I$774)","v":0},0,0,0,{"$f":"P412","v":0},0,0,0,"00:00:00",0,0,{"$f":"W412","v":0},0,0,0,0,0,0,0,0,0,0,0,0,0,null,null,{"$f":"AM412","v":0},0,0]
[null,null,"TechHigh","TechHigh - 0 - 0",null,null,0,0,0,0,0,0,0,0,0,0,0,0,0,"00:00:00",0,0,{"$f":"W413","v":0},0,0,0,0,0,0,0,0,0,0,0,0,0,null,null,0,0,0]
[null,null,"TechHigh","TechHigh - 0 - 0",null,null,0,0,0,0,0,0,0,0,0,0,0,0,0,"00:00:00",0,0,{"$f":"W414","v":0},0,0,0,0,0,0,0,0,0,0,0,0,0,null,null,0,0,0]
[null,null,"TechHigh","TechHigh - 0 - 0",null,null,0,0,0,0,0,0,0,0,0,0,0,0,0,"00:00:00",0,0,{"$f":"W415","v":0},0,0,0,0,0,0,0,0,0,0,0,0,0,null,null,0,0,0]
[null,null,"TechHigh","TechHigh - 0 - 0",null,null,0,0,0,0,0,0,0,0,0,0,0,0,0,"00:00:00",0,0,{"$f":"W416","v":0},0,0,0,0,0,0,0,0,0,0,0,0,0,null,null,0,0,0]
[null,null,"TechHigh","TechHigh - 0 - 0",null,null,0,0,0,0,0,0,0,0,0,0,0,0,0,"00:00:00",0,0,{"$f":"W417","v":0},0,0,0,0,0,0,0,0,0,0,0,0,0,null,null,0,0,0]
[null,null,"TechHigh","TechHigh - 0 - 0",null,null,0,0,0,0,0,0,0,0,0,0,0,0,0,"00:00:00",0,0,{"$f":"W418","v":0},0,0,0,0,0,0,0,0,0,0,0,0,0,null,null,0,0,0]
[null,null,"TechHigh","TechHigh - 0 - 0",null,null,0,0,0,0,0,0,0,0,0,0,0,0,0,"00:00:00",0,0,{"$f":"W419","v":0},0,0,0,0,0,0,0,0,0,0,0,0,0,null,null,0,0,0]
[null,null,"TechHigh","TechHigh - 0 - 0",null,null,0,0,0,0,0,0,0,0,0,0,0,0,0,"00:00:00",0,0,{"$f":"W420","v":0},0,0,0,0,0,0,0,0,0,0,0,0,0,null,null,0,0,0]
[null,null,"TechHigh","TechHigh - 0 - 0",null,null,0,0,0,0,0,0,0,0,0,0,0,0,0,"00:00:00",0,0,{"$f":"W421","v":0},0,0,0,0,0,0,0,0,0,0,0,0,0,null,null,0,0,0]
[null,null,"TechHigh","TechHigh - 0 - 0",null,null,{"$f":"G422","v":0},0,0,0,0,0,0,0,0,{"$f":"P422","v":0},0,0,0,"00:00:00",0,0,{"$f":"W422","v":0},0,0,0,0,0,0,0,0,0,0,0,0,0,null,null,0,0,0]
[null,null,"TechHigh","TechHigh - 0 - 0",null,null,0,0,0,0,0,0,0,0,0,0,0,0,0,"00:00:00",0,0,{"$f":"W423","v":0},0,0,0,0,0,0,0,0,0,0,0,0,0,null,null,0,0,0]
[null,null,"TechHigh","TechHigh - 0 - 0",null,null,0,0,0,0,0,0,0,0,0,0,0,0,0,"00:00:00",0,0,{"$f":"W424","v":0},0,0,0,0,0,0,0,0,0,0,0,0,0,null,null,0,0,0]
[null,null,"TechHigh","TechHigh - 0 - 0",null,null,0,0,0,0,0,0,0,0,0,0,0,0,0,"00:00:00",0,0,{"$f":"W425","v":0},0,0,0,0,0,0,0,0,0,0,0,0,0,null,null,0,0,0]
[null,null,"TechHigh","TechHigh - 0 - 0",null,null,0,0,0,0,0,0,0,0,0,0,0,0,0,"00:00:00",0,0,{"$f":"W426","v":0},0,0,0,0,0,0,0,0,0,0,0,0,0,null,null,0,0,0]
[null,null,"TechHigh","TechHigh - 0 - 0",null,null,0,0,0,0,0,0,0,0,0,0,0,0,0,"00:00:00",0,0,{"$f":"W427","v":0},0,0,0,0,0,0,0,0,0,0,0,0,0,null,null,0,0,0]
[null,null,"TechHigh","TechHigh - 0 - 0",null,null,0,0,0,0,0,0,0,0,0,0,0,0,0,"00:00:00",0,0,{"$f":"W428","v":0},0,0,0,0,0,0,0,0,0,0,0,0,0,null,null,0,0,0]
[null,null,"TechHigh","TechHigh - 0 - 0",null,null,0,0,0,0,0,0,0,0,0,0,0,0,0,"00:00:00",0,0,{"$f":"W429","v":0},0,0,0,0,0,0,0,0,0,0,0,0,0,null,null,0,0,0]
[null,null,"TechHigh","TechHigh - 0 - 0",null,null,0,0,0,0,0,0,0,0,0,0,0,0,0,"00:00:00",0,0,{"$f":"W430","v":0},0,0,0,0,0,0,0,0,0,0,0,0,0,null,null,0,0,0]
[null,null,"TechHigh","TechHigh - 0 - 0",null,null,0,0,0,0,0,0,0,0,0,0,0,0,0,"00:00:00",0,0,{"$f":"W431","v":0},0,0,0,0,0,0,0,0,0,0,0,0,0,null,null,0,0,0]
[null,null,"TechHigh","TechHigh - 0 - 0",null,null,{"$f":"G432","v":0},0,0,0,0,{"$f":"L432*(1+$I$774)","v":0},0,0,0,{"$f":"P432","v":0},0,0,0,"00:00:00",0,0,{"$f":"W432","v":0},0,0,0,0,0,0,0,0,0,0,0,0,0,null,null,{"$f":"AM432","v":0},0,0]
[null,null,"TechHigh","TechHigh - 0 - 0",null,null,0,0,0,0,0,0,0,0,0,0,0,0,0,"00:00:00",0,0,{"$f":"W433","v":0},0,0,0,0,0,0,0,0,0,0,0,0,0,null,null,0,0,0]
[null,null,"TechHigh","TechHigh - 0 - 0",null,null,0,0,0,0,0,0,0,0,0,0,0,0,0,"00:00:00",0,0,{"$f":"W434","v":0},0,0,0,0,0,0,0,0,0,0,0,0,0,null,null,0,0,0]
[null,null,"TechHigh","TechHigh - 0 - 0",null,null,0,0,0,0,0,0,0,0,0,0,0,0,0,"00:00:00",0,0,{"$f":"W435","v":0},0,0,0,0,0,0,0,0,0,0,0,0,0,null,null,0,0,0]
[null,null,"TechHigh","TechHigh - 0 - 0",null,null,0,0,0,0,0,0,0,0,0,0,0,0,0,"00:00:00",0,0,{"$f":"W436","v":0},0,0,0,0,0,0,0,0,0,0,0,0,0,null,null,0,0,0]
[null,null,"TechHigh","TechHigh - 0 - 0",null,null,0,0,0,0,0,0,0,0,0,0,0,0,0,"00:00:00",0,0,{"$f":"W437","v":0},0,0,0,0,0,0,0,0,0,0,0,0,0,null,null,0,0,0]
[null,null,"TechHigh",{"$error":"#REF!"},null,null,{"$f":"#REF!","v":{"$error":"#REF!"}},{"$f":"#REF!","v":{"$error":"#REF!"}},{"$f":"#REF!","v":{"$error":"#REF!"}},{"$f":"#REF!","v":{"$error":"#REF!"}},{"$f":"#REF!","v":{"$error":"#REF!"}},{"$f":"#REF!*(1+$I$774)","v":{"$error":"#REF!"}},{"$f":"#REF!*(1+$I$774)","v":{"$error":"#REF!"}},{"$f":"#REF!*(1+$I$774)","v":{"$error":"#REF!"}},{"$f":"#REF!*(1+$I$774)","v":{"$error":"#REF!"}},{"$f":"#REF!","v":{"$error":"#REF!"}},{"$f":"#REF!","v":{"$error":"#REF!"}},{"$f":"#REF!","v":{"$error":"#REF!"}},{"$f":"#REF!","v":{"$error":"#REF!"}},{"$f":"#REF!","v":{"$error":"#REF!"}},{"$error":"#REF!"},{"$error":"#REF!"},{"$f":"#REF!","v":{"$error":"#REF!"}},{"$f":"#REF!","v":{"$error":"#REF!"}},{"$f":"#REF!","v":{"$error":"#REF!"}},{"$f":"#REF!","v":{"$error":"#REF!"}},{"$f":"#REF!","v":{"$error":"#REF!"}},{"$f":"#REF!","v":{"$error":"#REF!"}},{"$f":"#REF!","v":{"$error":"#REF!"}},{"$f":"#REF!","v":{"$error":"#REF!"}},{"$f":"#REF!","v":{"$error":"#REF!"}},{"$f":"#REF!","v":{"$error":"#REF!"}},{"$f":"#REF!","v":{"$error":"#REF!"}},{"$f":"#REF!","v":{"$error":"#REF!"}},{"$f":"#REF!","v":{"$error":"#REF!"}},{"$f":"#REF!","v":{"$error":"#REF!"}},null,null,{"$f":"#REF!","v":{"$error":"#REF!"}},{"$f":"#REF!","v":{"$error":"#REF!"}},{"$f":"#REF!","v":{"$error":"#REF!"}}]
[null,null,"TechHigh",{"$error":"#REF!"},null,null,{"$f":"#REF!","v":{"$error":"#REF!"}},{"$f":"#REF!","v":{"$error":"#REF!"}},{"$f":"#REF!","v":{"$error":"#REF!"}},{"$f":"#REF!","v":{"$error":"#REF!"}},{"$f":"#REF!","v":{"$error":"#REF!"}},{"$f":"#REF!*(1+$I$774)","v":{"$error":"#REF!"}},{"$f":"#REF!*(1+$I$774)","v":{"$error":"#REF!"}},{"$f":"#REF!*(1+$I$774)","v":{"$error":"#REF!"}},{"$f":"#REF!*(1+$I$774)","v":{"$error":"#REF!"}},{"$f":"#REF!","v":{"$error":"#REF!"}},{"$f":"#REF!","v":{"$error":"#REF!"}},{"$f":"#REF!","v":{"$error":"#REF!"}},{"$f":"#REF!","v":{"$error":"#REF!"}},{"$f":"#REF!","v":{"$error":"#REF!"}},{"$error":"#REF!"},{"$error":"#REF!"},{"$f":"#REF!","v":{"$error":"#REF!"}},{"$f":"#REF!","v":{"$error":"#REF!"}},{"$f":"#REF!","v":{"$error":"#REF!"}},{"$f":"#REF!","v":{"$error":"#REF!"}},{"$f":"#REF!","v":{"$error":"#REF!"}},{"$f":"#REF!","v":{"$error":"#REF!"}},{"$f":"#REF!","v":{"$error":"#REF!"}},{"$f":"#REF!","v":{"$error":"#REF!"}},{"$f":"#REF!","v":{"$error":"#REF!"}},{"$f":"#REF!","v":{"$error":"#REF!"}},{"$f":"#REF!","v":{"$error":"#REF!"}},{"$f":"#REF!","v":{"$error":"#REF!"}},{"$f":"#REF!","v":{"$error":"#REF!"}},{"$f":"#REF!","v":{"$error":"#REF!"}},null,null,{"$f":"#REF!","v":{"$error":"#REF!"}},{"$f":"#REF!","v":{"$error":"#REF!"}},{"$f":"#REF!","v":{"$error":"#REF!"}}]
[null,null,{"$f":"$G$775","v":"TechHigh"},{"$f":"C1102&\" - \"&G1102&\" - \"&I1102","v":{"$error":"#REF!"}},null,null,{"$f":"#REF!","v":{"$error":"#REF!"}},{"$f":"#REF!","v":{"$error":"#REF!"}},{"$f":"#REF!","v":{"$error":"#REF!"}},{"$f":"#REF!","v":{"$error":"#REF!"}},{"$f":"#REF!","v":{"$error":"#REF!"}},{"$f":"#REF!*(1+$I$774)","v":{"$error":"#REF!"}},{"$f":"#REF!*(1+$I$774)","v":{"$error":"#REF!"}},{"$f":"#REF!*(1+$I$774)","v":{"$error":"#REF!"}},{"$f":"#REF!*(1+$I$774)","v":{"$error":"#REF!"}},{"$f":"#REF!","v":{"$error":"#REF!"}},{"$f":"#REF!","v":{"$error":"#REF!"}},{"$f":"#REF!","v":{"$error":"#REF!"}},{"$f":"#REF!","v":{"$error":"#REF!"}},{"$f":"#REF!","v":{"$error":"#REF!"}},{"$error":"#REF!"},{"$error":"#REF!"},{"$f":"#REF!","v":{"$error":"#REF!"}},{"$f":"#REF!","v":{"$error":"#REF!"}},{"$f":"#REF!","v":{"$error":"#REF!"}},{"$f":"#REF!","v":{"$error":"#REF!"}},{"$f":"#REF!","v":{"$error":"#REF!"}},{"$f":"#REF!","v":{"$error":"#REF!"}},{"$f":"#REF!","v":{"$error":"#REF!"}},{"$f":"#REF!","v":{"$error":"#REF!"}},{"$f":"#REF!","v":{"$error":"#REF!"}},{"$f":"#REF!","v":{"$error":"#REF!"}},{"$f":"#REF!","v":{"$error":"#REF!"}},{"$f":"#REF!","v":{"$error":"#REF!"}},{"$f":"#REF!","v":{"$error":"#REF!"}},{"$f":"#REF!","v":{"$error":"#REF!"}},null,null,{"$f":"#REF!","v":{"$error":"#REF!"}},{"$f":"#REF!","v":{"$error":"#REF!"}},{"$f":"#REF!","v":{"$error":"#REF!"}}]
[null,null,"TechHigh",{"$error":"#REF!"},null,null,{"$f":"#REF!","v":{"$error":"#REF!"}},{"$f":"#REF!","v":{"$error":"#REF!"}},{"$f":"#REF!","v":{"$error":"#REF!"}},{"$f":"#REF!","v":{"$error":"#REF!"}},{"$f":"#REF!","v":{"$error":"#REF!"}},{"$f":"#REF!*(1+$I$774)","v":{"$error":"#REF!"}},{"$f":"#REF!*(1+$I$774)","v":{"$error":"#REF!"}},{"$f":"#REF!*(1+$I$774)","v":{"$error":"#REF!"}},{"$f":"#REF!*(1+$I$774)","v":{"$error":"#REF!"}},{"$f":"#REF!","v":{"$error":"#REF!"}},{"$f":"#REF!","v":{"$error":"#REF!"}},{"$f":"#REF!","v":{"$error":"#REF!"}},{"$f":"#REF!","v":{"$error":"#REF!"}},{"$f":"#REF!","v":{"$error":"#REF!"}},{"$error":"#REF!"},{"$error":"#REF!"},{"$f":"#REF!","v":{"$error":"#REF!"}},{"$f":"#REF!","v":{"$error":"#REF!"}},{"$f":"#REF!","v":{"$error":"#REF!"}},{"$f":"#REF!","v":{"$error":"#REF!"}},{"$f":"#REF!","v":{"$error":"#REF!"}},{"$f":"#REF!","v":{"$error":"#REF!"}},{"$f":"#REF!","v":{"$error":"#REF!"}},{"$f":"#REF!","v":{"$error":"#REF!"}},{"$f":"#REF!","v":{"$error":"#REF!"}},{"$f":"#REF!","v":{"$error":"#REF!"}},{"$f":"#REF!","v":{"$error":"#REF!"}},{"$f":"#REF!","v":{"$error":"#REF!"}},{"$f":"#REF!","v":{"$error":"#REF!"}},{"$f":"#REF!","v":{"$error":"#REF!"}},null,null,{"$f":"#REF!","v":{"$error":"#REF!"}},{"$f":"#REF!","v":{"$error":"#REF!"}},{"$f":"#REF!","v":{"$error":"#REF!"}}]
[null,null,"TechHigh",{"$error":"#REF!"},null,null,{"$f":"#REF!","v":{"$error":"#REF!"}},{"$f":"#REF!","v":{"$error":"#REF!"}},{"$f":"#REF!","v":{"$error":"#REF!"}},{"$f":"#REF!","v":{"$error":"#REF!"}},{"$f":"#REF!","v":{"$error":"#REF!"}},{"$f":"#REF!*(1+$I$774)","v":{"$error":"#REF!"}},{"$f":"#REF!*(1+$I$774)","v":{"$error":"#REF!"}},{"$f":"#REF!*(1+$I$774)","v":{"$error":"#REF!"}},{"$f":"#REF!*(1+$I$774)","v":{"$error":"#REF!"}},{"$f":"#REF!","v":{"$error":"#REF!"}},{"$f":"#REF!","v":{"$error":"#REF!"}},{"$f":"#REF!","v":{"$error":"#REF!"}},{"$f":"#REF!","v":{"$error":"#REF!"}},{"$f":"#REF!","v":{"$error":"#REF!"}},{"$error":"#REF!"},{"$error":"#REF!"},{"$f":"#REF!","v":{"$error":"#REF!"}},{"$f":"#REF!","v":{"$error":"#REF!"}},{"$f":"#REF!","v":{"$error":"#REF!"}},{"$f":"#REF!","v":{"$error":"#REF!"}},{"$f":"#REF!","v":{"$error":"#REF!"}},{"$f":"#REF!","v":{"$error":"#REF!"}},{"$f":"#REF!","v":{"$error":"#REF!"}},{"$f":"#REF!","v":{"$error":"#REF!"}},{"$f":"#REF!","v":{"$error":"#REF!"}},{"$f":"#REF!","v":{"$error":"#REF!"}},{"$f":"#REF!","v":{"$error":"#REF!"}},{"$f":"#REF!","v":{"$error":"#REF!"}},{"$f":"#REF!","v":{"$error":"#REF!"}},{"$f":"#REF!","v":{"$error":"#REF!"}},null,null,{"$f":"#REF!","v":{"$error":"#REF!"}},{"$f":"#REF!","v":{"$error":"#REF!"}},{"$f":"#REF!","v":{"$error":"#REF!"}}]
[null,null,"TechHigh",{"$error":"#REF!"},null,null,{"$f":"#REF!","v":{"$error":"#REF!"}},{"$f":"#REF!","v":{"$error":"#REF!"}},{"$f":"#REF!","v":{"$error":"#REF!"}},{"$f":"#REF!","v":{"$error":"#REF!"}},{"$f":"#REF!","v":{"$error":"#REF!"}},{"$f":"#REF!*(1+$I$774)","v":{"$error":"#REF!"}},{"$f":"#REF!*(1+$I$774)","v":{"$error":"#REF!"}},{"$f":"#REF!*(1+$I$774)","v":{"$error":"#REF!"}},{"$f":"#REF!*(1+$I$774)","v":{"$error":"#REF!"}},{"$f":"#REF!","v":{"$error":"#REF!"}},{"$f":"#REF!","v":{"$error":"#REF!"}},{"$f":"#REF!","v":{"$error":"#REF!"}},{"$f":"#REF!","v":{"$error":"#REF!"}},{"$f":"#REF!","v":{"$error":"#REF!"}},{"$error":"#REF!"},{"$error":"#REF!"},{"$f":"#REF!","v":{"$error":"#REF!"}},{"$f":"#REF!","v":{"$error":"#REF!"}},{"$f":"#REF!","v":{"$error":"#REF!"}},{"$f":"#REF!","v":{"$error":"#REF!"}},{"$f":"#REF!","v":{"$error":"#REF!"}},{"$f":"#REF!","v":{"$error":"#REF!"}},{"$f":"#REF!","v":{"$error":"#REF!"}},{"$f":"#REF!","v":{"$error":"#REF!"}},{"$f":"#REF!","v":{"$error":"#REF!"}},{"$f":"#REF!","v":{"$error":"#REF!"}},{"$f":"#REF!","v":{"$error":"#REF!"}},{"$f":"#REF!","v":{"$error":"#REF!"}},{"$f":"#REF!","v":{"$error":"#REF!"}},{"$f":"#REF!","v":{"$error":"#REF!"}},null,null,{"$f":"#REF!","v":{"$error":"#REF!"}},{"$f":"#REF!","v":{"$error":"#REF!"}},{"$f":"#REF!","v":{"$error":"#REF!"}}]
[null,null,"TechHigh",{"$error":"#REF!"},null,null,{"$f":"#REF!","v":{"$error":"#REF!"}},{"$f":"#REF!","v":{"$error":"#REF!"}},{"$f":"#REF!","v":{"$error":"#REF!"}},{"$f":"#REF!","v":{"$error":"#REF!"}},{"$f":"#REF!","v":{"$error":"#REF!"}},{"$f":"#REF!*(1+$I$774)","v":{"$error":"#REF!"}},{"$f":"#REF!*(1+$I$774)","v":{"$error":"#REF!"}},{"$f":"#REF!*(1+$I$774)","v":{"$error":"#REF!"}},{"$f":"#REF!*(1+$I$774)","v":{"$error":"#REF!"}},{"$f":"#REF!","v":{"$error":"#REF!"}},{"$f":"#REF!","v":{"$error":"#REF!"}},{"$f":"#REF!","v":{"$error":"#REF!"}},{"$f":"#REF!","v":{"$error":"#REF!"}},{"$f":"#REF!","v":{"$error":"#REF!"}},{"$error":"#REF!"},{"$error":"#REF!"},{"$f":"#REF!","v":{"$error":"#REF!"}},{"$f":"#REF!","v":{"$error":"#REF!"}},{"$f":"#REF!","v":{"$error":"#REF!"}},{"$f":"#REF!","v":{"$error":"#REF!"}},{"$f":"#REF!","v":{"$error":"#REF!"}},{"$f":"#REF!","v":{"$error":"#REF!"}},{"$f":"#REF!","v":{"$error":"#REF!"}},{"$f":"#REF!","v":{"$error":"#REF!"}},{"$f":"#REF!","v":{"$error":"#REF!"}},{"$f":"#REF!","v":{"$error":"#REF!"}},{"$f":"#REF!","v":{"$error":"#REF!"}},{"$f":"#REF!","v":{"$error":"#REF!"}},{"$f":"#REF!","v":{"$error":"#REF!"}},{"$f":"#REF!","v":{"$error":"#REF!"}},null,null,{"$f":"#REF!","v":{"$error":"#REF!"}},{"$f":"#REF!","v":{"$error":"#REF!"}},{"$f":"#REF!","v":{"$error":"#REF!"}}]
[null,null,"TechHigh",{"$error":"#REF!"},null,null,{"$f":"#REF!","v":{"$error":"#REF!"}},{"$f":"#REF!","v":{"$error":"#REF!"}},{"$f":"#REF!","v":{"$error":"#REF!"}},{"$f":"#REF!","v":{"$error":"#REF!"}},{"$f":"#REF!","v":{"$error":"#REF!"}},{"$f":"#REF!*(1+$I$774)","v":{"$error":"#REF!"}},{"$f":"#REF!*(1+$I$774)","v":{"$error":"#REF!"}},{"$f":"#REF!*(1+$I$774)","v":{"$error":"#REF!"}},{"$f":"#REF!*(1+$I$774)","v":{"$error":"#REF!"}},{"$f":"#REF!","v":{"$error":"#REF!"}},{"$f":"#REF!","v":{"$error":"#REF!"}},{"$f":"#REF!","v":{"$error":"#REF!"}},{"$f":"#REF!","v":{"$error":"#REF!"}},{"$f":"#REF!","v":{"$error":"#REF!"}},{"$error":"#REF!"},{"$error":"#REF!"},{"$f":"#REF!","v":{"$error":"#REF!"}},{"$f":"#REF!","v":{"$error":"#REF!"}},{"$f":"#REF!","v":{"$error":"#REF!"}},{"$f":"#REF!","v":{"$error":"#REF!"}},{"$f":"#REF!","v":{"$error":"#REF!"}},{"$f":"#REF!","v":{"$error":"#REF!"}},{"$f":"#REF!","v":{"$error":"#REF!"}},{"$f":"#REF!","v":{"$error":"#REF!"}},{"$f":"#REF!","v":{"$error":"#REF!"}},{"$f":"#REF!","v":{"$error":"#REF!"}},{"$f":"#REF!","v":{"$error":"#REF!"}},{"$f":"#REF!","v":{"$error":"#REF!"}},{"$f":"#REF!","v":{"$error":"#REF!"}},{"$f":"#REF!","v":{"$error":"#REF!"}},null,null,{"$f":"#REF!","v":{"$error":"#REF!"}},{"$f":"#REF!","v":{"$error":"#REF!"}},{"$f":"#REF!","v":{"$error":"#REF!"}}]

{"sheet":"TestTech","index":13,"n_rows":389,"n_cols":49,"rows_kept":389,"cut":false,"hidden":true,"merged":[]}
[]
[null,null,null,null,null,null,"Technology test data"]
[]
[null,null,null,null,null,null,"User instruction"]
[null,null,null,null,null,null,"Functions: ","Add new technologies in this sheet only"]
[null,null,null,null,null,null,null,"This sheet is used as a 'playground' for new technologies. When adding a new technology names, use \"update technology names\" to enable them as chooseable technology in UserSetting&Results. "]
[]
[null,null,null,null,null,null,null,"If technologies entered in this sheet should be added to TechData, then transfer the technologies as described below: "]
[null,null,null,null,null,null,null,"Transfer technologies by: "]
[null,null,null,null,null,null,null,{"$f":"\"-putting a X in column A next to the technology (in row \"&ROW(TestTechNamesGross)&\" and further down)\"","v":"-putting a X in column A next to the technology (in row 64 and further down)"}]
[null,null,null,null,null,null,null,{"$f":"\"-putting an X in column A in sheet 'TechData' in the row where the technology should be copied (the technology may replace an existing technology) in row \" & ROW(TechDataNamesGross) &\"-\"&ROW(TechDataNamesGross) +ROWS(TechDataNamesGross)","v":"-putting an X in column A in sheet 'TechData' in the row where the technology should be copied (the technology may replace an existing technology) in row 64-438"}]
[null,null,null,null,null,null,null,"-press button \"add new technologies\" below"]
[]
[null,null,null,null,null,null,null,"NB: If no X'es are set, no technologies will be copied."]
[]
[]
[null,null,null,null,null,null,"Applied data in the calculation"]
[]
[null,null,null,null,null,null,"Settings done in"]
[null,null,null,null,null,null,"(Used to look up the data corresponding to chosen price scenario and price year"]
[null,null,null,null,null,null,"Current scenario","Standard"]
[null,null,null,null,null,null,"Price year",{"$f":"PriceYear","v":2020}]
[null,null,null,{"$f":"INDEX(TestTechDataGross,,1)","v":{"$error":"#VALUE!"}},null,null,"Current Currency",{"$f":"chosencurrency","v":"EUR"}]
[null,null,null,{"$f":"INDEX(TestTechDataGross,,1)","v":{"$error":"#VALUE!"}}]
[null,null,null,null,null,null,null,{"$f":"INDEX(TestTechDataGross,$E35,J$30)","v":{"$error":"#VALUE!"}}]
[null,null,null,null,null,null,"Applied data in the calculation sheet (this table displays the applied technical data according to technology year and price year)"]
[null,null,{"$f":"TechData!C27","v":"Tech scenario"},{"$f":"TechData!D27","v":"Full Name"},{"$f":"TechData!E27","v":"Row for lookup"},{"$f":"TechData!F27","v":"Adjustment for price level"},{"$f":"TechData!G27","v":"Technology"},{"$f":"TechData!H27","v":"Source name"},{"$f":"TechData!I27","v":"Year"},{"$f":"TechData!J27","v":"Combined heat and power (CHP)"},{"$f":"TechData!K27","v":"Fuel"},{"$f":"TechData!L27","v":"Investment"},{"$f":"TechData!M27","v":"Grid investment"},{"$f":"TechData!N27","v":"Fixed O&M"},{"$f":"TechData!O27","v":"Var. O&M"},{"$f":"TechData!P27","v":"Other costs"},{"$f":"TechData!Q27","v":"CV"},{"$f":"TechData!R27","v":"CB"},{"$f":"TechData!S27","v":"Total efficiency"},{"$f":"TechData!T27","v":"Electric efficiency condensing"},{"$f":"TechData!U27","v":"Electric efficiency CHP"},{"$f":"TechData!V27","v":"Heat efficiency"},{"$f":"TechData!W27","v":"Full load hours"},{"$f":"TechData!X27","v":"Profile costs"},{"$f":"TechData!Y27","v":"Balancing costs"},{"$f":"TechData!Z27","v":"Condensing ratio"},{"$f":"TechData!AA27","v":"Technical lifetime"},{"$f":"TechData!AB27","v":"Construction time"},{"$f":"TechData!AC27","v":"Desulphur"},{"$f":"TechData!AD27","v":"Emission factor NOx"},{"$f":"TechData!AE27","v":"Emission factor CH4"},{"$f":"TechData!AF27","v":"Emission factor N2O"},{"$f":"TechData!AG27","v":"Emission factor PM2,5"},{"$f":"TechData!AH27","v":"Geography"},{"$f":"TechData!AI27","v":"Date for data input/update"},{"$f":"TechData!AJ27","v":"Desk officer"},{"$f":"TechData!AK27","v":"QA date"},{"$f":"TechData!AL27","v":"QA officer"},{"$f":"TechData!AM27","v":"Reference"},{"$f":"TechData!AN27","v":"Price year in reference"},{"$f":"TechData!AO27","v":"Currency in reference"},"Comment"]
[null,null,null,{"$f":"IF(TechData!D28=\"\",\"\",TechData!D28)","v":""},null,null,{"$f":"IF(TechData!G28=\"\",\"\",TechData!G28)","v":""},{"$f":"IF(TechData!H28=\"\",\"\",TechData!H28)","v":""},{"$f":"IF(TechData!I28=\"\",\"\",TechData!I28)","v":""},{"$f":"IF(TechData!J28=\"\",\"\",TechData!J28)","v":""},{"$f":"IF(TechData!K28=\"\",\"\",TechData!K28)","v":""},{"$f":"IF(TechData!L28=\"\",\"\",TechData!L28)","v":"mio.EUR/MW"},{"$f":"IF(TechData!M28=\"\",\"\",TechData!M28)","v":"mio.EUR/MW"},{"$f":"IF(TechData!N28=\"\",\"\",TechData!N28)","v":"EUR/MW/år"},{"$f":"IF(TechData!O28=\"\",\"\",TechData!O28)","v":"EUR/MWh"},{"$f":"IF(TechData!P28=\"\",\"\",TechData!P28)","v":"EUR/MWh"},{"$f":"IF(TechData!Q28=\"\",\"\",TechData!Q28)","v":""},{"$f":"IF(TechData!R28=\"\",\"\",TechData!R28)","v":""},{"$f":"IF(TechData!S28=\"\",\"\",TechData!S28)","v":""},{"$f":"IF(TechData!T28=\"\",\"\",TechData!T28)","v":""},{"$f":"IF(TechData!U28=\"\",\"\",TechData!U28)","v":""},{"$f":"IF(TechData!V28=\"\",\"\",TechData!V28)","v":""},{"$f":"IF(TechData!W28=\"\",\"\",TechData!W28)","v":""},{"$f":"IF(TechData!X28=\"\",\"\",TechData!X28)","v":"EUR/MWh"},{"$f":"IF(TechData!Y28=\"\",\"\",TechData!Y28)","v":"EUR/MWh"},{"$f":"IF(TechData!Z28=\"\",\"\",TechData!Z28)","v":""},{"$f":"IF(TechData!AA28=\"\",\"\",TechData!AA28)","v":"years"},{"$f":"IF(TechData!AB28=\"\",\"\",TechData!AB28)","v":"years"},{"$f":"IF(TechData!AC28=\"\",\"\",TechData!AC28)","v":"%"},{"$f":"IF(TechData!AD28=\"\",\"\",TechData!AD28)","v":"g/GJ fuel"},{"$f":"IF(TechData!AE28=\"\",\"\",TechData!AE28)","v":"g/GJ fuel"},{"$f":"IF(TechData!AF28=\"\",\"\",TechData!AF28)","v":"g/GJ fuel"},{"$f":"IF(TechData!AG28=\"\",\"\",TechData!AG28)","v":"g/GJ fuel"},{"$f":"IF(TechData!AH28=\"\",\"\",TechData!AH28)","v":""},{"$f":"IF(TechData!AI28=\"\",\"\",TechData!AI28)","v":""},{"$f":"IF(TechData!AJ28=\"\",\"\",TechData!AJ28)","v":""},null,null,{"$f":"IF(TechData!AM28=\"\",\"\",TechData!AM28)","v":""}]
[null,null,null,null,null,null,null,null,null,{"$f":"TechData!J29","v":"Text"},{"$f":"TechData!K29","v":"Text"},{"$f":"TechData!L29","v":"Economy"},{"$f":"TechData!M29","v":"Economy"},{"$f":"TechData!N29","v":"Economy"},{"$f":"TechData!O29","v":"Economy"},{"$f":"TechData!P29","v":"Economy"},{"$f":"TechData!Q29","v":"Technical"},{"$f":"TechData!R29","v":"Technical"},{"$f":"TechData!S29","v":"Technical"},{"$f":"TechData!T29","v":"Technical"},{"$f":"TechData!U29","v":"Technical"},{"$f":"TechData!V29","v":"Technical"},{"$f":"TechData!W29","v":"Technical"},{"$f":"TechData!X29","v":"Economy"},{"$f":"TechData!Y29","v":"Economy"},{"$f":"TechData!Z29","v":"Technical"},{"$f":"TechData!AA29","v":"Technical"},{"$f":"TechData!AB29","v":"Technical"},{"$f":"TechData!AC29","v":"Technical"},{"$f":"TechData!AD29","v":"Technical"},{"$f":"TechData!AE29","v":"Technical"},{"$f":"TechData!AF29","v":"Technical"},{"$f":"TechData!AG29","v":"Technical"},{"$f":"TechData!AH29","v":"Text"},{"$f":"TechData!AI29","v":"Text"},{"$f":"TechData!AJ29","v":"Text"},null,null,{"$f":"TechData!AM29","v":"Text"},{"$f":"TechData!AN29","v":"Technical"},{"$f":"TechData!AO29","v":"Text"}]
[null,null,null,null,null,null,null,null,null,{"$f":"COLUMN(J$28)-COLUMN($D$28)+1","v":7},8,9,10,11,12,13,14,15,16,17,18,19,20,21,22,23,24,25,26,27,28,29,30,31,32,33,null,null,36,37,38]
[null,null,{"$f":"$H$21","v":"Standard"},{"$f":"C31&\" - \"&G31&\" - \"&I31","v":"Standard - 25WIN_OF_in Offshore wind AC incl. Grid - 2030"},{"$f":"IFERROR(MATCH(D31,INDEX(TestTechDataGross,,1),0),\"\")","v":""},{"$f":"IFERROR(VLOOKUP(PriceYear,PriceAdjust,2,FALSE)/VLOOKUP(AN31,PriceAdjust,2,FALSE)*VLOOKUP(chosencurrency,Currency,2,FALSE)/VLOOKUP(AO31,Currency,2,FALSE),\"\")","v":""},{"$f":"TRANSPOSE(CalcTech)","v":"25WIN_OF_in Offshore wind AC incl. Grid"},null,{"$f":"TRANSPOSE(CalcTechYear)","v":2030},{"$f":"IFERROR(IF(J$29=\"Text\",INDEX(TestTechDataGross,$E31,J$30),INDEX(TestTechDataGross,$E31,J$30)*IF(J$29=\"Economy\",$F31,1)),\"\")","v":""},"","","","","","","","","",{"$f":"IFERROR(IF(T$29=\"Text\",INDEX(TestTechDataGross,$E31,T$30),INDEX(TestTechDataGross,$E31,T$30)*IF(T$29=\"Economy\",$F31,1)),\"\")","v":""},"","","","","","","","","",{"$f":"IFERROR(IF(AD$29=\"Text\",INDEX(TestTechDataGross,$E31,AD$30),INDEX(TestTechDataGross,$E31,AD$30)*IF(AD$29=\"Economy\",$F31,1)),\"\")","v":""},"","","","","","",null,null,"","",""]
[null,null,"Standard","Standard - 25WIN_NS_in Nearshore wind incl. Grid - 2030","","","25WIN_NS_in Nearshore wind incl. Grid",null,2030,"","","","","","","","","","","","","","","","","","","","","","","","","","","",null,null,"","",""]
[null,null,"Standard","Standard - 24WIN_ON_in Onshore wind incl. Grid - 2030","","","24WIN_ON_in Onshore wind incl. Grid",null,2030,"","","","","","","","","","","","","","","","","","","","","","","","","","","",null,null,"","",""]
[null,null,"Standard","Standard - 22PV_La_Utility scale PV - 2030","","","22PV_La_Utility scale PV",null,2030,"","","","","","","","","","","","","","","","","","","","","","","","","","","",null,null,"","",""]
[null,null,"Standard","Standard - 22PV_La_Utility scale PV_tracker - 2030","","","22PV_La_Utility scale PV_tracker",null,2030,"","","","","","","","","","","","","","","","","","","","","","","","","","","",null,null,"","",""]
[null,null,"Standard","Standard - 22PV_Me_roof commercial industrial - 2030","","","22PV_Me_roof commercial industrial",null,2030,"","","","","","","","","","","","","","","","","","","","","","","","","","","",null,null,"","",""]
[null,null,"Standard","Standard - 22PV_Sm_roof residential - 2030","","","22PV_Sm_roof residential",null,2030,"","","","","","","","","","","","","","","","","","","","","","","","","","","",null,null,"","",""]
[null,null,"Standard","Standard - 18Me BP WPE in_st 80 MW input, woodpellets storage for 10 days   - 2030","","","18Me BP WPE in_st 80 MW input, woodpellets storage for 10 days  ",null,2030,"","","","","","","","","","","","","","","","","","","","","","","","","","","",null,null,"","",""]
[null,null,"Standard","Standard - 18Me BP WCH in_st 80 MW input, woodchips storage for 10 days   - 2030","","","18Me BP WCH in_st 80 MW input, woodchips storage for 10 days  ",null,2030,"","","","","","","","","","","","","","","","","","","","","","","","","","","",null,null,"","",""]
[null,null,"Standard","Standard - 16La REF_EX  WCH_COA_Newboi_ no_inv_exipla Wood chips CHP refurb.  \nCoal plants, new Boiler, no invest cost for existing plant  - 2030","","","16La REF_EX  WCH_COA_Newboi_ no_inv_exipla Wood chips CHP refurb.  \nCoal plants, new Boiler, no invest cost for existing plant ",null,2030,"","","","","","","","","","","","","","","","","","","","","","","","","","","",null,null,"","",""]
[null,null,"Standard","Standard - 16La REF_EX WCH_COA_exi_exibo_no_inv_exipla Wood chips CHP refurb.  \nCoal plants, existing boiler, no invest cost for existing plant  - 2030","","","16La REF_EX WCH_COA_exi_exibo_no_inv_exipla Wood chips CHP refurb.  \nCoal plants, existing boiler, no invest cost for existing plant ",null,2030,{"$f":"IFERROR(IF(J$29=\"Text\",INDEX(TestTechDataGross,$E41,J$30),INDEX(TestTechDataGross,$E41,J$30)*IF(J$29=\"Economy\",$F41,1)),\"\")","v":""},"","","","","","","","","",{"$f":"IFERROR(IF(T$29=\"Text\",INDEX(TestTechDataGross,$E41,T$30),INDEX(TestTechDataGross,$E41,T$30)*IF(T$29=\"Economy\",$F41,1)),\"\")","v":""},"","","","","","","","","",{"$f":"IFERROR(IF(AD$29=\"Text\",INDEX(TestTechDataGross,$E41,AD$30),INDEX(TestTechDataGross,$E41,AD$30)*IF(AD$29=\"Economy\",$F41,1)),\"\")","v":""},"","","","","","",null,null,"","",""]
[null,null,"Standard","Standard - 17La_EX_COA CHP coal 400-700 MWwe - 2030","","","17La_EX_COA CHP coal 400-700 MWwe",null,2030,"","","","","","","","","","","","","","","","","","","","","","","","","","","",null,null,"","",""]
[null,null,"Standard","Standard - 16 La EX LTE COA no_inv_exipla  - Coal CHP Life time extension of coal power plant no invest cost for existing plant  - 2030","","","16 La EX LTE COA no_inv_exipla  - Coal CHP Life time extension of coal power plant no invest cost for existing plant ",null,2030,"","","","","","","","","","","","","","","","","","","","","","","","","","","",null,null,"","",""]
[null,null,"Standard","Standard - 16La EX CC NGA CC large CHP Gas Turbine combined Cycle natural Gas  \n - 2030","","","16La EX CC NGA CC large CHP Gas Turbine combined Cycle natural Gas  \n",null,2030,"","","","","","","","","","","","","","","","","","","","","","","","","","","",null,null,"","",""]
[null,null,"Standard","Standard - Nuclear INT - 2030","","","Nuclear INT",null,2030,"","","","","","","","","","","","","","","","","","","","","","","","","","","",null,null,"","",""]
[null,null,"Standard","Standard - Coal FGD INT - 2030","","","Coal FGD INT",null,2030,"","","","","","","","","","","","","","","","","","","","","","","","","","","",null,null,"","",""]
[null,null,"Standard","Standard - Natural gas CCGT INT - 2030","","","Natural gas CCGT INT",null,2030,"","","","","","","","","","","","","","","","","","","","","","","","","","","",null,null,"","",""]
[null,null,"Standard","Standard - 19WIN_ON_in Onshore wind incl. Grid - 2030","","","19WIN_ON_in Onshore wind incl. Grid",null,2030,"","","","","","","","","","","","","","","","","","","","","","","","","","","",null,null,"","",""]
[null,null,"Standard","Standard - 0 - 2030","","",0,null,2030,"","","","","","","","","","","","","","","","","","","","","","","","","","","",null,null,"","",""]
[null,null,"Standard","Standard - 0 - 2030","","",0,null,2030,"","","","","","","","","","","","","","","","","","","","","","","","","","","",null,null,"","",""]
[null,null,"Standard","Standard - 0 - 2030","","",0,null,2030,{"$f":"IFERROR(IF(J$29=\"Text\",INDEX(TestTechDataGross,$E51,J$30),INDEX(TestTechDataGross,$E51,J$30)*IF(J$29=\"Economy\",$F51,1)),\"\")","v":""},"","","","","","","","","",{"$f":"IFERROR(IF(T$29=\"Text\",INDEX(TestTechDataGross,$E51,T$30),INDEX(TestTechDataGross,$E51,T$30)*IF(T$29=\"Economy\",$F51,1)),\"\")","v":""},"","","","","","","","","",{"$f":"IFERROR(IF(AD$29=\"Text\",INDEX(TestTechDataGross,$E51,AD$30),INDEX(TestTechDataGross,$E51,AD$30)*IF(AD$29=\"Economy\",$F51,1)),\"\")","v":""},"","","","","","",null,null,"","",""]
[null,null,"Standard","Standard - 0 - 2030","","",0,null,2030,"","","","","","","","","","","","","","","","","","","","","","","","","","","",null,null,"","",""]
[null,null,"Standard","Standard - 0 - 2030","","",0,null,2030,"","","","","","","","","","","","","","","","","","","","","","","","","","","",null,null,"","",""]
[null,null,"Standard","Standard - 0 - 2030","","",0,null,2030,"","","","","","","","","","","","","","","","","","","","","","","","","","","",null,null,"","",""]
[null,null,"Standard","Standard - 0 - 2030","","",0,null,2030,"","","","","","","","","","","","","","","","","","","","","","","","","","","",null,null,"","",""]
[null,null,"Standard","Standard - 0 - 2030","","",0,null,2030,"","","","","","","","","","","","","","","","","","","","","","","","","","","",null,null,"","",""]
[null,null,"Standard","Standard - 0 - 2030","","",0,null,2030,"","","","","","","","","","","","","","","","","","","","","","","","","","","",null,null,"","",""]
[]
[null,"Data "]
[]
[null,null,null,null,null,null,"Data for tested technologies"]
[null,null,{"$f":"C$27","v":"Tech scenario"},"Full Name","Row for lookup","Adjustment for price level","Technology","Source name","Year","Combined heat and power (CHP)","Fuel","Investment","Grid investment","Fixed O&M","Var. O&M","Other costs","CV","CB","Total efficiency","Electric efficiency condensing","Electric efficiency CHP","Heat efficiency","Full load hours","Profile costs","Balancing costs","Condensing ratio","Technical lifetime","Construction time","Desulphur","Emission factor NOx","Emission factor CH4","Emission factor N2O","Emission factor PM2,5","Geography","Date for data input/update","Desk officer","QA date","QA officer","Reference","Price year in reference","Currency in reference","Comment"]
[null,null,null,null,null,null,null,null,null,null,null,"M. EUR/MW","M. EUR/MW","EUR/MW/year","EUR/MWh","EUR/MWh",null,null,null,null,null,null,null,"EUR/MWh","EUR/MWh",null,"years","years","%","g/GJ fuel","g/GJ fuel","g/GJ fuel","g/GJ fuel"]
[null,null,{"$f":"$H$21","v":"Standard"},{"$f":"C64&\" - \"&G64&\" - \"&I64","v":"Standard -  - "}]
[null,null,"Standard","Standard -  - "]
[null,null,"Standard","Standard -  - "]
[null,null,"Standard","Standard -  - "]
[null,null,"Standard","Standard -  - "]
[null,null,"Standard","Standard -  - "]
[null,null,"Standard","Standard -  - "]
[null,null,"Standard","Standard -  - "]
[null,null,"Standard","Standard -  - "]
[null,null,"Standard","Standard -  - "]
[null,null,"Standard","Standard -  - "]
[null,null,"Standard","Standard -  - "]
[null,null,"Standard","Standard -  - "]
[null,null,"Standard","Standard -  - "]
[null,null,"Standard","Standard -  - "]
[null,null,"Standard","Standard -  - "]
[null,null,"Standard","Standard -  - "]
[null,null,"Standard","Standard -  - "]
[null,null,"Standard","Standard -  - "]
[null,null,"Standard","Standard -  - "]
[null,null,"Standard","Standard -  - "]
[null,null,"Standard","Standard -  - "]
[null,null,"Standard","Standard -  - "]
[null,null,"Standard","Standard -  - "]
[null,null,"Standard","Standard -  - "]
[null,null,"Standard","Standard -  - "]
[null,null,"Standard","Standard -  - "]
[null,null,"Standard","Standard -  - "]
[null,null,"Standard","Standard -  - "]
[null,null,"Standard","Standard -  - "]
[null,null,"Standard","Standard -  - "]
[null,null,"Standard","Standard -  - "]
[null,null,"Standard","Standard -  - "]
[null,null,"Standard","Standard -  - "]
[null,null,"Standard","Standard -  - "]
[null,null,"Standard","Standard -  - "]
[null,null,"Standard","Standard -  - "]
[null,null,"Standard","Standard -  - "]
[null,null,"Standard","Standard -  - "]
[null,null,"Standard","Standard -  - "]
[null,null,"Standard","Standard -  - "]
[null,null,"Standard","Standard -  - "]
[null,null,"Standard","Standard -  - "]
[null,null,"Standard","Standard -  - "]
[null,null,"Standard","Standard -  - "]
[null,null,"Standard","Standard -  - "]
[null,null,"Standard","Standard -  - "]
[null,null,"Standard","Standard -  - "]
[null,null,"Standard","Standard -  - "]
[null,null,"Standard","Standard -  - "]
[null,null,"Standard","Standard -  - "]
[null,null,"Standard","Standard -  - "]
[null,null,"Standard","Standard -  - "]
[null,null,"Standard","Standard -  - "]
[null,null,"Standard","Standard -  - "]
[null,null,"Standard","Standard -  - "]
[null,null,"Standard","Standard -  - "]
[null,null,"Standard","Standard -  - "]
[null,null,"Standard","Standard -  - "]
[null,null,"Standard","Standard -  - "]
[null,null,{"$f":"$H$21","v":"Standard"},"Standard -  - "]
[null,null,"Standard","Standard -  - "]
[null,null,"Standard","Standard -  - "]
[null,null,"Standard","Standard -  - "]
[null,null,"Standard",{"$f":"C128&\" - \"&G128&\" - \"&I128","v":"Standard -  - "}]
[null,null,"Standard","Standard -  - "]
[null,null,"Standard","Standard -  - "]
[null,null,"Standard","Standard -  - "]
[null,null,"Standard","Standard -  - "]
[null,null,"Standard","Standard -  - "]
[null,null,"Standard","Standard -  - "]
[null,null,"Standard","Standard -  - "]
[null,null,"Standard","Standard -  - "]
[null,null,"Standard","Standard -  - "]
[null,null,"Standard","Standard -  - "]
[null,null,"Standard","Standard -  - "]
[null,null,"Standard","Standard -  - "]
[null,null,"Standard","Standard -  - "]
[null,null,"Standard","Standard -  - "]
[null,null,"Standard","Standard -  - "]
[null,null,"Standard","Standard -  - "]
[null,null,"Standard","Standard -  - "]
[null,null,"Standard","Standard -  - "]
[null,null,"Standard","Standard -  - "]
[null,null,"Standard","Standard -  - "]
[null,null,"Standard","Standard -  - "]
[null,null,"Standard","Standard -  - "]
[null,null,"Standard","Standard -  - "]
[null,null,"Standard","Standard -  - "]
[null,null,"Standard","Standard -  - "]
[null,null,"Standard","Standard -  - "]
[null,null,"Standard","Standard -  - "]
[null,null,null," -  - "]
[null,null,null," -  - "]
[null,null,null," -  - "]
[null,null,null," -  - "]
[null,null,"Standard","Standard -  - "]
[null,null,"Standard","Standard -  - "]
[null,null,"Standard","Standard -  - "]
[null,null,"Standard","Standard -  - "]
[null,null,"Standard","Standard -  - "]
[null,null,"Standard","Standard -  - "]
[null,null,"Standard","Standard -  - "]
[null,null,"Standard","Standard -  - "]
[null,null,"Standard","Standard -  - "]
[null,null,"Standard","Standard -  - "]
[null,null,"Standard","Standard -  - "]
[null,null,"Standard","Standard -  - "]
[null,null,"Standard","Standard -  - "]
[null,null,"Standard","Standard -  - "]
[null,null,"Standard","Standard -  - "]
[null,null,"Standard","Standard -  - "]
[null,null,"Standard","Standard -  - "]
[null,null,"Standard","Standard -  - "]
[null,null,"Standard","Standard -  - "]
[null,null,"Standard","Standard -  - "]
[null,null,"Standard","Standard -  - "]
[null,null,"Standard","Standard -  - "]
[null,null,"Standard","Standard -  - "]
[null,null,"Standard","Standard -  - "]
[null,null,"Standard","Standard -  - "]
[null,null,"Standard","Standard -  - "]
[null,null,"Standard","Standard -  - "]
[null,null,"Standard","Standard -  - "]
[null,null,{"$f":"$H$21","v":"Standard"},"Standard -  - "]
[null,null,"Standard","Standard -  - "]
[null,null,"Standard","Standard -  - "]
[null,null,"Standard","Standard -  - "]
[null,null,"Standard",{"$f":"C192&\" - \"&G192&\" - \"&I192","v":"Standard -  - "}]
[null,null,"Standard","Standard -  - "]
[null,null,"Standard","Standard -  - "]
[null,null,"Standard","Standard -  - "]
[null,null,"Standard","Standard -  - "]
[null,null,"Standard","Standard -  - "]
[null,null,"Standard","Standard -  - "]
[null,null,"Standard","Standard -  - ",null,null,null,null,null,null,null,null,null,null,null,null,null,null,null,null,null,null,null,null,null,null,null,null,null,null,null,null,null,null,null,null,null,null,null,null,null,null,null,null,null,null,null,"Fixed O&M (€/MWe/year)","Variable O&M (€/MWeh) "]
[null,null,null," -  - "]
[null,null,null," -  - "]
[null,null,null," -  - "]
[null,null,null," -  - "]
[null,null,"Standard",{"$f":"C204&\" - \"&G204&\" - \"&I204","v":"Standard -  - "}]
[null,null,"Standard","Standard -  - "]
[null,null,"Standard","Standard -  - "]
[null,null,"Standard","Standard -  - "]
[null,null,"Standard","Standard -  - "]
[null,null,"Standard","Standard -  - "]
[null,null,"Standard","Standard -  - "]
[null,null,"Standard","Standard -  - "]
[null,null,"Standard","Standard -  - "]
[null,null,"Standard","Standard -  - "]
[null,null,"Standard","Standard -  - "]
[null,null,"Standard","Standard -  - "]
[null,null,"Standard","Standard -  - "]
[null,null,"Standard","Standard -  - "]
[null,null,"Standard","Standard -  - "]
[null,null,"Standard","Standard -  - "]
[null,null,"Standard","Standard -  - "]
[null,null,"Standard","Standard -  - "]
[null,null,"Standard","Standard -  - "]
[null,null,"Standard","Standard -  - "]
[null,null,"Standard","Standard -  - "]
[null,null,"Standard","Standard -  - "]
[null,null,"Standard","Standard -  - "]
[null,null,"Standard","Standard -  - "]
[null,null,"Standard","Standard -  - "]
[null,null,"Standard","Standard -  - "]
[null,null,"Standard","Standard -  - "]
[null,null,"Standard","Standard -  - "]
[null,null,"Standard","Standard -  - "]
[null,null,"Standard","Standard -  - "]
[null,null,"Standard","Standard -  - "]
[null,null,"Standard","Standard -  - "]
[null,null,"Standard","Standard -  - "]
[null,null,"Standard","Standard -  - "]
[null,null,"Standard","Standard -  - "]
[null,null,"Standard","Standard -  - "]
[null,null,"Standard","Standard -  - "]
[null,null,"Standard","Standard -  - "]
[null,null,"Standard","Standard -  - "]
[null,null,"Standard","Standard -  - "]
[null,null,"Standard","Standard -  - "]
[null,null,"Standard","Standard -  - "]
[null,null,"Standard","Standard -  - "]
[null,null,"Standard","Standard -  - "]
[null,null,"Standard","Standard -  - "]
[null,null,"Standard","Standard -  - "]
[null,null,"Standard","Standard -  - "]
[null,null,"Standard","Standard -  - "]
[null,null,{"$f":"$H$21","v":"Standard"},"Standard -  - "]
[null,null,"Standard","Standard -  - "]
[null,null,"Standard","Standard -  - "]
[null,null,"Standard","Standard -  - "]
[null,null,"Standard","Standard -  - "]
[null,null,"Standard","Standard -  - "]
[null,null,"Standard","Standard -  - "]
[null,null,"Standard","Standard -  - "]
[null,null,"Standard","Standard -  - "]
[null,null,"Standard","Standard -  - "]
[null,null,"Standard","Standard -  - "]
[null,null,"Standard","Standard -  - "]
[null,null,"Standard","Standard -  - "]
[null,null,"Standard","Standard -  - "]
[null,null,"Standard","Standard -  - "]
[null,null,"Standard","Standard -  - "]
[null,null,"Standard",{"$f":"C268&\" - \"&G268&\" - \"&I268","v":"Standard -  - "}]
[null,null,"Standard","Standard -  - "]
[null,null,"Standard","Standard -  - "]
[null,null,"Standard","Standard -  - "]
[null,null,"Standard","Standard -  - "]
[null,null,"Standard","Standard -  - "]
[null,null,"Standard","Standard -  - "]
[null,null,"Standard","Standard -  - "]
[null,null,"Standard","Standard -  - "]
[null,null,"Standard","Standard -  - "]
[null,null,"Standard","Standard -  - "]
[null,null,"Standard","Standard -  - "]
[null,null,"Standard","Standard -  - "]
[null,null,"Standard","Standard -  - "]
[null,null,"Standard","Standard -  - "]
[null,null,"Standard","Standard -  - "]
[null,null,"Standard","Standard -  - "]
[null,null,"Standard","Standard -  - "]
[null,null,"Standard","Standard -  - "]
[null,null,"Standard","Standard -  - "]
[null,null,"Standard","Standard -  - "]
[null,null,"Standard","Standard -  - "]
[null,null,"Standard","Standard -  - "]
[null,null,"Standard","Standard -  - "]
[null,null,"Standard","Standard -  - "]
[null,null,"Standard","Standard -  - "]
[null,null,"Standard","Standard -  - "]
[null,null,"Standard","Standard -  - "]
[null,null,"Standard","Standard -  - "]
[null,null,"Standard","Standard -  - "]
[null,null,"Standard","Standard -  - "]
[null,null,"Standard","Standard -  - "]
[null,null,"Standard","Standard -  - "]
[null,null,"Standard","Standard -  - "]
[null,null,"Standard","Standard -  - "]
[null,null,"Standard","Standard -  - "]
[null,null,"Standard","Standard -  - "]
[null,null,"Standard","Standard -  - "]
[null,null,"Standard","Standard -  - "]
[null,null,"Standard","Standard -  - "]
[null,null,"Standard","Standard -  - "]
[null,null,"Standard","Standard -  - "]
[null,null,"Standard","Standard -  - "]
[null,null,"Standard","Standard -  - "]
[null,null,"Standard","Standard -  - "]
[null,null,"Standard","Standard -  - "]
[null,null,"Standard","Standard -  - "]
[null,null,"Standard","Standard -  - "]
[null,null,{"$f":"$H$21","v":"Standard"},"Standard -  - "]
[null,null,"Standard","Standard -  - "]
[null,null,"Standard","Standard -  - "]
[null,null,"Standard","Standard -  - "]
[null,null,"Standard","Standard -  - "]
[null,null,"Standard","Standard -  - "]
[null,null,"Standard","Standard -  - "]
[null,null,"Standard","Standard -  - "]
[null,null,"Standard","Standard -  - "]
[null,null,"Standard","Standard -  - "]
[null,null,"Standard","Standard -  - "]
[null,null,"Standard","Standard -  - "]
[null,null,"Standard","Standard -  - "]
[null,null,"Standard","Standard -  - "]
[null,null,"Standard","Standard -  - "]
[null,null,"Standard","Standard -  - "]
[null,null,"Standard",{"$f":"C332&\" - \"&G332&\" - \"&I332","v":"Standard -  - "}]
[null,null,"Standard","Standard -  - "]
[null,null,"Standard","Standard -  - "]
[null,null,"Standard","Standard -  - "]
[null,null,"Standard","Standard -  - "]
[null,null,"Standard","Standard -  - "]
[null,null,"Standard","Standard -  - "]
[null,null,"Standard","Standard -  - "]
[null,null,"Standard","Standard -  - "]
[null,null,"Standard","Standard -  - "]
[null,null,"Standard","Standard -  - "]
[null,null,"Standard","Standard -  - "]
[null,null,"Standard","Standard -  - "]
[null,null,"Standard","Standard -  - "]
[null,null,"Standard","Standard -  - "]
[null,null,"Standard","Standard -  - "]
[null,null,"Standard","Standard -  - "]
[null,null,"Standard","Standard -  - "]
[null,null,"Standard","Standard -  - "]
[null,null,"Standard","Standard -  - "]
[null,null,"Standard","Standard -  - "]
[null,null,"Standard","Standard -  - "]
[null,null,"Standard","Standard -  - "]
[null,null,"Standard","Standard -  - "]
[null,null,"Standard","Standard -  - "]
[null,null,"Standard","Standard -  - "]
[null,null,"Standard","Standard -  - "]
[null,null,"Standard","Standard -  - "]
[null,null,"Standard","Standard -  - "]
[null,null,"Standard","Standard -  - "]
[null,null,"Standard","Standard -  - "]
[null,null,"Standard","Standard -  - "]
[null,null,"Standard","Standard -  - "]
[null,null,"Standard","Standard -  - "]
[null,null,"Standard","Standard -  - "]
[null,null,"Standard","Standard -  - "]
[null,null,"Standard","Standard -  - "]
[null,null,"Standard","Standard -  - "]
[null,null,"Standard","Standard -  - "]
[null,null,"Standard","Standard -  - "]
[null,null,"Standard","Standard -  - "]
[null,null,"Standard","Standard -  - "]
[null,null,"Standard","Standard -  - "]
[null,null,"Standard","Standard -  - "]
[null,null,"Standard","Standard -  - "]
[null,null,"Standard","Standard -  - "]
[null,null,"Standard","Standard -  - "]
[null,null,"Standard","Standard -  - "]
[null,null,{"$f":"$H$21","v":"Standard"},"Standard -  - "]
[null,null,"Standard","Standard -  - "]
[null,null,"Standard","Standard -  - "]
[null,null,"Standard","Standard -  - "]
[null,null,"Standard","Standard -  - "]
[null,null,"Standard","Standard -  - "]
[null,null,"Standard","Standard -  - "]
[null,null,"Standard","Standard -  - "]
[null,null,"Standard","Standard -  - "]
[null,null,"Standard","Standard -  - "]

{"sheet":"FuelPrices","index":14,"n_rows":516,"n_cols":58,"rows_kept":516,"cut":false,"hidden":false,"merged":[[110,32,110,46],[110,47,110,57],[450,3,450,17],[450,18,450,28],[314,3,314,17],[314,18,314,28],[382,3,382,17],[382,18,382,28],[449,2,449,14],[313,2,313,14],[381,2,381,14],[110,3,110,17],[178,3,178,17],[246,3,246,17],[178,18,178,28],[246,18,246,28],[177,2,177,18],[109,2,109,17],[245,2,245,17],[14,4,15,16],[38,2,38,28],[39,18,39,28],[110,18,110,28],[32,9,32,15],[33,9,33,15],[32,4,32,6],[33,1,33,6],[39,3,39,17]]}
[]
[null,"Fuel prices"]
[]
[null,"User instruction"]
[null,"On this sheet the input data for fuel prices are given. The user has the option to customize a fuel scenario and add new fuels. "]
[null,"Notice that the scenarios for CO2-prices follow the scenarios for fuel prices. "]
[]
[null,"Functions: "]
[null,null,null,null,"Changes are done by overwriting the existing data in the green cells. Fuel prices should be given in 2014-EUR (notice that this is not the same year as the technology data is given in)."]
[null,null,null,null,"Notice that fuels can be used in either central power stations or decentral power stations. The geography is chosen for each technology on the technology sheet."]
[null,null,null,null,"The CostumFuel-scenario is by default set to the New Policy scenario, but is intended to be a scenario with the users own fuel price data. All data or parts of it can be changed "]
[null,null,null,null,"Further custom-fuel scenarios. Useful for e.g. testing different assumptions for selected fuels, such as transport cost for natural gas."]
[null,null,null,null,"CustomFuel: Current DEA, CustomFuel2: DEA2015, CustomFuel3: Not defined."]
[]
[null,null,null,null,"If a new fuel type is needed (e.g. for a new technology) this can be typed in the green marked cells either under cetral power station or decentral power station depending on the placement of the plant. The user can add the fuel prices under one or all price scenarios depending on the need. The fuel price can be constant over the years or be a time series."]
[]
[null,null,null,null,"By default, new fuels in the Current Policy scenario and the 450 ppm scenario is set equal to the New Policy scenario. If the user desires the fuel to vary with each scenario, price series should be typed in each scenario. "]
[]
[null,"Settings"]
[null,"Price-year and currency for custom input data"]
[null,null,null,"Currency","Price year"]
[null,null,"CustomFuel","EUR",2023]
[null,null,"CustomFuel2","EUR",2014]
[null,null,"CustomFuel3","EUR",2014]
[]
[null,"Data source:"]
[null,"IEA World Energy Outlook 2015; Socio-economic assumptions 2015, Danish Energy Agency; Irena; Projected Costs of Generating Electricity 2015, IEA."]
[null,"For year 2020 and onwards the fuel prices for coal, oil and gas is the forecast from IEA's World Economic Outlook 2015 with transport costs according to the Danish Energy Agency. The prices are the European prices from WEO 2015. From 2016 and until 2020 forward prices with transport costs are applied. Previous years are historical data with 2015 being a preliminary estimate. "]
[]
[]
[null,"Applied data in the calculation"]
[]
[null,"Settings done in",null,null,"where they can also be changed:",null,null,null,null,"Counting and adjusting values "]
[null,"(Used to look up the data corresponding to chosen price scenario and price year",null,null,null,null,null,null,null,"(used to look up values and adjust prices -not to be changed)"]
[null,null,"Price year",null,null,null,{"$f":"PriceYear","v":2020},null,null,null,"Offset (used to find the correct cells)",null,null,null,null,{"$f":"MATCH(G36,B:B,0)-1","v":112}]
[null,null,"Current scenario",null,null,null,{"$f":"Scenario","v":"CustomFuel"},null,null,null,"Price adjustment (adjusts the economic values to the chosen price year)",null,null,null,null,{"$f":"VLOOKUP(G36,ScenarioDef,3,FALSE)","v":0.9215586174146938}]
[null,null,"Currency",null,null,null,{"$f":"chosencurrency","v":"EUR"}]
[]
[null,null,"Applied data in the calculation sheet (this table displays the applied technical data according to technology year and price year)"]
[null,null,{"$f":"chosencurrency&PriceYear&\"/GJ\"","v":"EUR2020/GJ"},"Central power station",null,null,null,null,null,null,null,null,null,null,null,null,null,null,"Decentral power station"]
[null,null,null,{"$f":"D316","v":"Natural gas"},{"$f":"E316","v":"Coal"},"Fueloil","Gas oil","Straw","Wood chips","Wood pellets","Energy crops","Uranium","Local biomass","wind","solar","New fuel 3","New fuel 4","New fuel 5","Natural gas","Gas oil","Straw","Wood chips","Wood pellets","Energy crops","New fuel 1","New fuel 2","New fuel 3","New fuel 4","New fuel 5"]
[null,null,null,{"$f":"\"Central-\"&D41","v":"Central-Natural gas"},"Central-Coal","Central-Fueloil","Central-Gas oil","Central-Straw","Central-Wood chips","Central-Wood pellets","Central-Energy crops","Central-Uranium","Central-Local biomass","Central-wind","Central-solar","Central-New fuel 3","Central-New fuel 4","Central-New fuel 5",{"$f":"\"Decentral-\"&S41","v":"Decentral-Natural gas"},"Decentral-Gas oil","Decentral-Straw","Decentral-Wood chips","Decentral-Wood pellets","Decentral-Energy crops","Decentral-New fuel 1","Decentral-New fuel 2","Decentral-New fuel 3","Decentral-New fuel 4","Decentral-New fuel 5"]
[null,null,2012,{"$f":"OFFSET($A1,$P$35,COLUMN(D$42)-1)*$P$36","v":7.3725481990757071},3.3051281002071047,11.980613085969154,14.965569292737932,4.913371755215576,5.4593019502395297,7.4426753893124244,5.9826534847438779,1.7912749548067242,2.4190913707135713,0,0,0,0,0,7.8058883029490174,16.552127952634397,4.913371755215576,5.4593019502395297,7.9676375583962038,5.9826534847438779,0,0,0,0,0]
[null,null,2013,{"$f":"OFFSET($A2,$P$35,COLUMN(D$42)-1)*$P$36","v":9.3926234251115019},2.4337345533569277,11.86143634712521,14.849578348292946,4.9424410547058271,5.491601171895363,8.2728234403722798,5.9820093019085263,1.7912749548067242,2.4190913707135713,0,0,0,0,0,10.064828125144789,16.436137008189412,4.9938416323912884,5.9603440215628964,7.9936040530368206,5.9820093019085263,0,0,0,0,0]
[null,null,2014,{"$f":"OFFSET($A3,$P$35,COLUMN(D$42)-1)*$P$36","v":6.9656489527410272},2.2015414840269214,10.255226211834826,13.803364523107577,4.9715103541960763,5.5239003935511954,8.2855546914383851,0,1.7912749548067242,2.4190913707135713,0,0,0,0,0,7.6378536527743135,15.173876580870212,5.0206991666423839,5.9876575557171074,8.0195705476774375,5.9820093019085263,0,0,0,0,0]
[null,null,2015,{"$f":"OFFSET($A4,$P$35,COLUMN(D$42)-1)*$P$36","v":6.6388945767321825},2.0559239221299084,6.8311075206787288,10.379245831951478,5.0005796536863265,5.5561996152070297,8.2982859425044921,0,1.7912749548067242,2.4190913707135713,0,0,0,0,0,7.3110992767654706,11.749757889714108,5.0475567008934794,6.0149710898713193,8.0455370423180526,5.9820093019085263,0,0,0,0,0]
[null,null,2016,{"$f":"OFFSET($A5,$P$35,COLUMN(D$42)-1)*$P$36","v":6.7082330207154532},1.9780401689588549,7.6379770098449464,11.186115321117697,5.0516682610014607,5.6129647344460682,8.3535853969469827,0,1.7912749548067242,2.4190913707135713,0,0,0,0,0,7.3804377207487386,12.556627378880327,5.1100322926080564,6.0498267737743525,8.0760790821488957,5.9820093019085263,0,0,0,0,0]
[null,null,2017,{"$f":"OFFSET($A6,$P$35,COLUMN(D$42)-1)*$P$36","v":6.6507505944595229},1.9669105812648633,7.8629011134827422,11.411039424755492,5.1027568683165976,5.6697298536851068,8.4088848513894714,0,1.7912749548067242,2.4190913707135713,0,0,0,0,0,7.32295529449281,12.781551482518124,5.1725078843226324,6.0846824576773857,8.1066211219797406,5.9820093019085263,0,0,0,0,0]
[null,null,2018,{"$f":"OFFSET($A7,$P$35,COLUMN(D$42)-1)*$P$36","v":7.8659403191576294},3.6024951992499594,10.009537578840616,14.286296634337528,6.6129614928660869,7.7254223047501016,9.1926054036562466,0,1.7912749548067242,5.5811746167384104,0,0,0,0,0,9.4791131777942397,14.963816674476549,6.1515920863870601,7.186439353255909,9.8289575302529535,5.9820093019085263,0,0,0,0,0]
[null,null,2019,{"$f":"OFFSET($A8,$P$35,COLUMN(D$42)-1)*$P$36","v":4.9282752126026823},2.6734157654838877,9.3897470684429667,13.666506123939881,6.1271996215493303,7.1579434831183768,10.159240765658476,0,1.7912749548067242,5.6152054550819344,0,0,0,0,0,6.5414480712392926,14.344026164078901,5.8661503320874981,6.8529793599153015,10.790817091434855,5.9820093019085263,0,0,0,0,0]
[null,null,2020,{"$f":"OFFSET($A9,$P$35,COLUMN(D$42)-1)*$P$36","v":3.7509006483156209},2.0614194481183574,5.4268811821391632,9.7036402376360762,5.7477622907192689,6.7650111437399723,8.0389293114291274,0,1.7912749548067242,5.6465928035541308,0,0,0,0,0,5.3640735069522298,10.381160277775097,5.5178517990904981,6.8322277420631794,8.6428551299473657,5.9820093019085263,0,0,0,0,0]
[null,null,2021,{"$f":"OFFSET($A10,$P$35,COLUMN(D$42)-1)*$P$36","v":14.754531029919018},3.9789080059805384,9.1265725324650262,13.403331587961938,5.6220407211962922,6.6181401513065898,8.3217374302035747,0,1.7912749548067242,5.6835163526814707,0,0,0,0,0,16.367703888555628,14.080851628100959,5.3971590923484403,6.8975690663608109,8.9520247871574856,5.9820093019085263,0,0,0,0,0]
[null,null,2022,{"$f":"OFFSET($A11,$P$35,COLUMN(D$42)-1)*$P$36","v":34.869300422283864},9.7328499420726438,13.965011159946688,23.808231662914903,10.219737253864579,11.989280960498514,16.223742914878471,0,1.7912749548067242,5.7203522310278796,0,0,0,0,0,36.482473280920473,24.485751703053925,9.5067323291763515,11.156331282124416,16.890495225522461,5.9820093019085263,0,0,0,0,0]
[null,null,2023,{"$f":"OFFSET($A12,$P$35,COLUMN(D$42)-1)*$P$36","v":13.125633790188729},4.839070053859273,11.314480165713746,15.591239221210659,8.9850019604996412,10.546833187875924,11.624652669413019,0,1.7912749548067242,5.7571006841921868,0,0,0,0,0,14.345970026879128,16.268759261349683,8.3581413586043194,9.8145194006150334,12.26630644789069,5.9820093019085263,0,0,0,0,0]
[null,null,2024,{"$f":"OFFSET($A13,$P$35,COLUMN(D$42)-1)*$P$36","v":14.416391969830627},4.0644941631714477,10.766906018527433,15.043665074024345,7.835276152469862,9.2036955616729106,11.222632825454912,0,1.7912749548067242,5.7937619577732224,0,0,0,0,0,16.029564828467233,15.721185114163367,7.2886289790417313,8.5650890506587398,11.86088258282083,5.9820093019085263,0,0,0,0,0]
[null,null,2025,{"$f":"OFFSET($A14,$P$35,COLUMN(D$42)-1)*$P$36","v":13.316781355178708},3.9451190084323553,10.591574249075059,14.868333304571973,7.6678129014926526,9.0080609226808406,11.084206259153548,0,1.7912749548067242,5.8303362973698221,0,0,0,0,0,14.926584484297573,15.545853344710991,7.1328492106908401,8.3831033399684447,11.721557806612669,5.9820093019085263,0,0,0,0,0]
[null,null,2026,{"$f":"OFFSET($A15,$P$35,COLUMN(D$42)-1)*$P$36","v":13.512595735127499},5.0940382281459735,10.30536940752623,14.582128463023144,6.857768994716154,8.0617479474746521,10.12976744788169,0,1.7912749548067242,5.8602976557254207,0,0,0,0,0,15.162474258135958,15.259648503162165,6.3793199950847939,7.5028122002417543,10.765356301971755,5.9820093019085263,0,0,0,0,0]
[null,null,2027,{"$f":"OFFSET($A16,$P$35,COLUMN(D$42)-1)*$P$36","v":12.029203340694243},4.4626782831268708,10.075989414377027,14.352748469873941,6.7927612400538724,7.9858043088504926,10.050477620473027,0,1.7912749548067242,5.8902508069354127,0,0,0,0,0,13.735650775208075,15.030268510012961,6.3188476651663938,7.4321669550099791,10.684586933428664,5.9820093019085263,0,0,0,0,0]
[null,null,2028,{"$f":"OFFSET($A17,$P$35,COLUMN(D$42)-1)*$P$36","v":10.608670133524774},3.9646513928814335,9.8909381017727451,14.167697157269656,6.8021867502032132,7.9968154188380387,10.052441214983801,0,1.7912749548067242,5.920195750999798,0,0,0,0,0,12.383232653915069,14.845217197408678,6.3276155815843849,7.442409848021649,10.685252392012009,5.9820093019085263,0,0,0,0,0]
[null,null,2029,{"$f":"OFFSET($A18,$P$35,COLUMN(D$42)-1)*$P$36","v":9.2459866045745311},3.4869918080529074,9.7423756959766621,14.019134751473574,6.8120417932399473,8.0083283195818868,10.055042011017536,0,1.7912749548067242,5.9501324879185757,0,0,0,0,0,11.07273320486186,14.696654791612595,6.3367830634790199,7.4531195231322052,10.686721162790075,5.9820093019085263,0,0,0,0,0]
[null,null,2030,{"$f":"OFFSET($A19,$P$35,COLUMN(D$42)-1)*$P$36","v":7.9296590875344366},3.0254804967929245,9.4229201073833089,13.699679162880223,6.8185960846719489,8.0159852020959086,10.052044709249541,0,1.7912749548067242,5.9800610176917486,0,0,0,0,0,9.8043513493449215,14.377199203019243,6.3428800787646038,7.4602422045405969,10.681448805675396,5.9820093019085263,0,0,0,0,0]
[null,null,2031,{"$f":"OFFSET($A20,$P$35,COLUMN(D$42)-1)*$P$36","v":7.9883533066021508},3.040919323753323,9.5224713247505104,13.799230380247423,6.8438097051304299,8.0454403661829197,10.067016324570423,0,1.7912749548067242,5.9996915347413466,0,0,0,0,0,9.8885036702076885,14.476750420386443,6.3663346094236575,7.487642357179678,10.697172116491792,5.9820093019085263,0,0,0,0,0]
[null,null,2032,{"$f":"OFFSET($A21,$P$35,COLUMN(D$42)-1)*$P$36","v":8.0416273323283338},3.0549414494610705,9.5032101194213912,13.779969174918305,6.8639311048972571,8.0689466743217348,10.073364844118274,0,1.7912749548067242,6.0193128187521365,0,0,0,0,0,9.9560589941317001,14.457489215057324,6.3850521906020994,7.5095086903320647,10.703434876674027,5.9820093019085263,0,0,0,0,0]
[null,null,2033,{"$f":"OFFSET($A22,$P$35,COLUMN(D$42)-1)*$P$36","v":8.0880305698854009},3.0671698109435837,9.480109978245391,13.756869033742305,6.8838463905845959,8.0922121949845138,10.079247166083425,0,1.7912749548067242,6.0389248697241209,0,0,0,0,0,10.01264529439678,14.434389073881324,6.4035780377531122,7.5311510351346502,10.709206702240337,5.9820093019085263,0,0,0,0,0]
[null,null,2034,{"$f":"OFFSET($A23,$P$35,COLUMN(D$42)-1)*$P$36","v":8.1291601757916379},3.0780200636496859,9.4546301397016599,13.731389195198574,6.9035599198540494,8.1152420188974261,10.084670545390322,0,1.7912749548067242,6.058527687657298,0,0,0,0,0,10.063398121524852,14.408909235337594,6.4219162045153944,7.5525741271466611,10.714495851166591,5.9820093019085263,0,0,0,0,0]
[null,null,2035,{"$f":"OFFSET($A24,$P$35,COLUMN(D$42)-1)*$P$36","v":8.1652433790825256},3.0875515478613553,9.4268900915474667,13.703649147044381,6.923075988930929,8.1380411650152791,10.089642194529434,0,1.7912749548067242,6.0781212725516669,0,0,0,0,0,10.111739094207811,14.381169187183401,6.4400706873776095,7.5737826351632664,10.719310509169913,5.9820093019085263,0,0,0,0,0]
[null,null,2036,{"$f":"OFFSET($A25,$P$35,COLUMN(D$42)-1)*$P$36","v":8.195229500812081},3.0954911334336983,9.3957980436986812,13.672557099195595,6.942238455765656,8.1604272244016407,10.094041158240948,0,1.7912749548067242,6.09602536127798,0,0,0,0,0,10.148565250629357,14.350077139334616,6.457896237921541,7.5946068764529073,10.72353066517635,5.9820093019085263,0,0,0,0,0]
[null,null,2037,{"$f":"OFFSET($A26,$P$35,COLUMN(D$42)-1)*$P$36","v":8.2199554940469177},3.1020567302549158,9.3620776561813344,13.638836711678248,6.961188683748003,8.182565341203448,10.098030582719787,0,1.7912749548067242,6.1139222687518906,0,0,0,0,0,10.171692268935869,14.316356751817267,6.475524356974887,7.6152004734778442,10.727320381290548,5.9820093019085263,0,0,0,0,0]
[null,null,2038,{"$f":"OFFSET($A27,$P$35,COLUMN(D$42)-1)*$P$36","v":8.2395392079612542},3.1072791738314365,9.3257652716674233,13.602524327164337,6.9799305528849631,8.2044600481391488,10.101617691856086,0,1.7912749548067242,6.1318119949733934,0,0,0,0,0,10.186936543794801,14.280044367303358,6.4929586538464781,7.635567642720356,10.73068776978211,5.9820093019085263,0,0,0,0,0]
[null,null,2039,{"$f":"OFFSET($A28,$P$35,COLUMN(D$42)-1)*$P$36","v":8.2540161096807054},3.1111678546988939,9.2868242375535264,13.56358329305044,6.9984679053190542,8.2261158336929938,10.104809628590671,0,1.7912749548067242,6.1496945399424927,0,0,0,0,0,10.201275487755336,14.241103333189459,6.510202702622375,7.6557125595146305,10.733640835168531,5.9820093019085263,0,0,0,0,0]
[null,null,2040,{"$f":"OFFSET($A29,$P$35,COLUMN(D$42)-1)*$P$36","v":8.2643695122362342},3.1139787867340312,9.2461058085385108,13.522864864035423,7.0168045436452688,8.247537140148852,10.107613452405573,0,1.7912749548067242,6.1675699036591851,0,0,0,0,0,10.213283938392811,14.200384904174443,6.5272600406002503,7.6756393562177543,10.736187472415278,5.9820093019085263,0,0,0,0,0]
[null,null,2041,{"$f":"OFFSET($A30,$P$35,COLUMN(D$42)-1)*$P$36","v":8.26971033968894},3.1154807854073567,9.2278011946152478,13.504560250112162,7.0385011653754379,8.2728836608616678,10.115275407894323,0,1.7912749548067242,6.1919868033498497,0,0,0,0,0,10.220099578790817,14.182080290251182,6.5474429445352929,7.699217515020373,10.743750598322748,5.9820093019085263,0,0,0,0,0]
[null,null,2042,{"$f":"OFFSET($A31,$P$35,COLUMN(D$42)-1)*$P$36","v":8.2702714023588406},3.1157345620575394,9.2267804140509959,13.50353946954791,7.060866721900477,8.2990116474563376,10.124087772393288,0,1.7912749548067242,6.2163859597566971,0,0,0,0,0,10.218034103740996,14.181059509686929,6.5682481133957928,7.7235226188293691,10.752586405544978,5.9820093019085263,0,0,0,0,0]
[null,null,2043,{"$f":"OFFSET($A32,$P$35,COLUMN(D$42)-1)*$P$36","v":8.266630125962477},3.1148905079805331,9.2219166857594406,13.498675741256354,7.0829516757112154,8.3248118271417813,10.132464539186655,0,1.7912749548067242,6.2407673728797333,0,0,0,0,0,10.213566860891261,14.176195781395373,6.5887922564755499,7.7475227859786182,10.760958241730199,5.9820093019085263,0,0,0,0,0]
[null,null,2044,{"$f":"OFFSET($A33,$P$35,COLUMN(D$42)-1)*$P$36","v":8.2596341228962658},3.1131693405098382,9.2139953671066994,13.490754422603613,7.104760302250269,8.3502891945939464,10.14041498504022,0,1.7912749548067242,6.2651310427189575,0,0,0,0,0,10.20440492101009,14.168274462742634,6.6090793509304824,7.7712226626783067,10.768876487310903,5.9820093019085263,0,0,0,0,0]
[null,null,2045,{"$f":"OFFSET($A34,$P$35,COLUMN(D$42)-1)*$P$36","v":8.2497209092089498},3.1106850676739737,9.2034207045934426,13.480179760090357,7.126296867520324,8.3754487334608321,10.147948229443282,0,1.7912749548067242,6.2894769692743688,0,0,0,0,0,10.191038758124652,14.157699800229375,6.6291133651351863,7.7946268848800617,10.77635133307067,5.9820093019085263,0,0,0,0,0]
[null,null,2046,{"$f":"OFFSET($A35,$P$35,COLUMN(D$42)-1)*$P$36","v":8.2358565137056576},3.1071687294516059,9.1892305927607776,13.465989648257692,7.1549779548631918,8.4089546766183876,10.161759026240597,0,1.7912749548067242,6.3165577655092768,0,0,0,0,0,10.170779352958126,14.14350968839671,6.6557934463843642,7.8257952040963925,10.790078572621287,5.9820093019085263,0,0,0,0,0]
[null,null,2047,{"$f":"OFFSET($A36,$P$35,COLUMN(D$42)-1)*$P$36","v":8.2187144755854735},3.1027957356705915,9.1720488010839158,13.44880785658083,7.1833473257488194,8.4420964650361778,10.175122114985619,0,1.7912749548067242,6.343636439451025,0,0,0,0,0,10.14920709067667,14.126327896719848,6.6821835588361127,7.8566247747175924,10.803333954580486,5.9820093019085263,0,0,0,0,0]
[null,null,2048,{"$f":"OFFSET($A37,$P$35,COLUMN(D$42)-1)*$P$36","v":8.1978489468213347},3.0974501577638502,9.1514597989362017,13.428218854433114,7.2114087663646123,8.4748785218303286,10.188045995423227,0,1.7912749548067242,6.3707129910996168,0,0,0,0,0,10.122629220643409,14.105738894572136,6.7082872245252201,7.8871197112702909,10.816126957858947,5.9820093019085263,0,0,0,0,0]
[null,null,2049,{"$f":"OFFSET($A38,$P$35,COLUMN(D$42)-1)*$P$36","v":8.1740081464302801},3.0913268437929866,9.1281566694412604,13.404915724938174,7.2391660821990778,8.5073052926649826,10.200539027065965,0,1.7912749548067242,6.3977874204550522,0,0,0,0,0,10.093273670096004,14.082435765077195,6.7341079834410023,7.9172841492560169,10.828466892021057,5.9820093019085263,0,0,0,0,0]
[null,null,2050,{"$f":"OFFSET($A39,$P$35,COLUMN(D$42)-1)*$P$36","v":8.146981822393311},3.0843711738490822,9.1019427504000916,13.378701805897006,7.2666230929750846,8.539381239833217,10.212609429045118,0,1.7912749548067242,6.4248597275173305,0,0,0,0,0,10.062111283441768,14.056221846036026,6.759649388814033,7.9471222396450703,10.840362897901285,5.9820093019085263,0,0,0,0,0]
[null,null,2051,{"$f":"OFFSET($A40,$P$35,COLUMN(D$42)-1)*$P$36","v":10.261570630203165},3.0295466157035063,10.899794800280132,14.84712966776585,7.2666230929750846,8.539381239833217,10.212609429045118,0,1.7912749548067242,6.4248597275173305,0,0,0,0,0,9.8686253807978712,15.612329247750621,6.759649388814033,7.9471222396450703,10.840362897901285,5.9820093019085263,0,0,0,0,0]
[null,null,2052,{"$f":"OFFSET($A41,$P$35,COLUMN(D$42)-1)*$P$36","v":10.316063975107303},3.0410221550793781,10.872274148156686,14.819609015642406,7.2666230929750846,8.539381239833217,10.212609429045118,0,1.7912749548067242,6.4248597275173305,0,0,0,0,0,9.9231187257020057,15.58480859562718,6.759649388814033,7.9471222396450703,10.840362897901285,5.9820093019085263,0,0,0,0,0]
[null,null,2053,{"$f":"OFFSET($A42,$P$35,COLUMN(D$42)-1)*$P$36","v":10.367076078377371},3.0516783092489232,10.847836290012046,14.795171157497768,7.2666230929750846,8.539381239833217,10.212609429045118,0,1.7912749548067242,6.4248597275173305,0,0,0,0,0,9.9741308289720756,15.560370737482534,6.759649388814033,7.9471222396450703,10.840362897901285,5.9820093019085263,0,0,0,0,0]
[null,null,2054,{"$f":"OFFSET($A43,$P$35,COLUMN(D$42)-1)*$P$36","v":10.409924668285418},3.0602353283775376,10.820732215945361,14.768067083431079,7.2666230929750846,8.539381239833217,10.212609429045118,0,1.7912749548067242,6.4248597275173305,0,0,0,0,0,10.016979418880121,15.533266663415853,6.759649388814033,7.9471222396450703,10.840362897901285,5.9820093019085263,0,0,0,0,0]
[null,null,2055,{"$f":"OFFSET($A44,$P$35,COLUMN(D$42)-1)*$P$36","v":10.449501174119348},3.0680210575743363,10.796422828023768,14.743757695509485,7.2666230929750846,8.539381239833217,10.212609429045118,0,1.7912749548067242,6.4248597275173305,0,0,0,0,0,10.056555924714052,15.508957275494254,6.759649388814033,7.9471222396450703,10.840362897901285,5.9820093019085263,0,0,0,0,0]
[null,null,2056,{"$f":"OFFSET($A45,$P$35,COLUMN(D$42)-1)*$P$36","v":10.480991355326461},3.0737231901369766,10.769097969520777,14.716432837006499,7.2666230929750846,8.539381239833217,10.212609429045118,0,1.7912749548067242,6.4248597275173305,0,0,0,0,0,10.088046105921167,15.481632416991271,6.759649388814033,7.9471222396450703,10.840362897901285,5.9820093019085263,0,0,0,0,0]
[null,null,2057,{"$f":"OFFSET($A46,$P$35,COLUMN(D$42)-1)*$P$36","v":10.510024947424712},3.0788676039771592,10.745019292379123,14.692354159864843,7.2666230929750846,8.539381239833217,10.212609429045118,0,1.7912749548067242,6.4248597275173305,0,0,0,0,0,10.117079698019415,15.457553739849615,6.759649388814033,7.9471222396450703,10.840362897901285,5.9820093019085263,0,0,0,0,0]
[null,null,2058,{"$f":"OFFSET($A47,$P$35,COLUMN(D$42)-1)*$P$36","v":10.531527360077085},3.082073984061211,10.718146277132218,14.665481144617937,7.2666230929750846,8.539381239833217,10.212609429045118,0,1.7912749548067242,6.4248597275173305,0,0,0,0,0,10.138582110671788,15.430680724602709,6.759649388814033,7.9471222396450703,10.840362897901285,5.9820093019085263,0,0,0,0,0]
[null,null,2059,{"$f":"OFFSET($A48,$P$35,COLUMN(D$42)-1)*$P$36","v":10.550624090126512},3.084728923984013,10.694120023117748,14.64145489060347,7.2666230929750846,8.539381239833217,10.212609429045118,0,1.7912749548067242,6.4248597275173305,0,0,0,0,0,10.157678840721214,15.406654470588238,6.759649388814033,7.9471222396450703,10.840362897901285,5.9820093019085263,0,0,0,0,0]
[null,null,2060,{"$f":"OFFSET($A49,$P$35,COLUMN(D$42)-1)*$P$36","v":10.562946018966796},3.0856459469928836,10.667765755388521,14.615100622874238,7.2666230929750846,8.539381239833217,10.212609429045118,0,1.7912749548067242,6.4248597275173305,0,0,0,0,0,10.170000769561495,15.380300202859013,6.759649388814033,7.9471222396450703,10.840362897901285,5.9820093019085263,0,0,0,0,0]
[null,null,2061,{"$f":"OFFSET($A50,$P$35,COLUMN(D$42)-1)*$P$36","v":10.562946018966796},3.0856459469928836,10.667765755388521,14.615100622874238,7.2666230929750846,8.539381239833217,10.212609429045118,0,1.7912749548067242,6.4248597275173305,0,0,0,0,0,10.170000769561495,15.380300202859013,6.759649388814033,7.9471222396450703,10.840362897901285,5.9820093019085263,0,0,0,0,0]
[null,null,2062,{"$f":"OFFSET($A51,$P$35,COLUMN(D$42)-1)*$P$36","v":10.562946018966796},3.0856459469928836,10.667765755388521,14.615100622874238,7.2666230929750846,8.539381239833217,10.212609429045118,0,1.7912749548067242,6.4248597275173305,0,0,0,0,0,10.170000769561495,15.380300202859013,6.759649388814033,7.9471222396450703,10.840362897901285,5.9820093019085263,0,0,0,0,0]
[null,null,2063,{"$f":"OFFSET($A52,$P$35,COLUMN(D$42)-1)*$P$36","v":10.562946018966796},3.0856459469928836,10.667765755388521,14.615100622874238,7.2666230929750846,8.539381239833217,10.212609429045118,0,1.7912749548067242,6.4248597275173305,0,0,0,0,0,10.170000769561495,15.380300202859013,6.759649388814033,7.9471222396450703,10.840362897901285,5.9820093019085263,0,0,0,0,0]
[null,null,2064,{"$f":"OFFSET($A53,$P$35,COLUMN(D$42)-1)*$P$36","v":10.562946018966796},3.0856459469928836,10.667765755388521,14.615100622874238,7.2666230929750846,8.539381239833217,10.212609429045118,0,1.7912749548067242,6.4248597275173305,0,0,0,0,0,10.170000769561495,15.380300202859013,6.759649388814033,7.9471222396450703,10.840362897901285,5.9820093019085263,0,0,0,0,0]
[null,null,2065,{"$f":"OFFSET($A54,$P$35,COLUMN(D$42)-1)*$P$36","v":10.562946018966796},3.0856459469928836,10.667765755388521,14.615100622874238,7.2666230929750846,8.539381239833217,10.212609429045118,0,1.7912749548067242,6.4248597275173305,0,0,0,0,0,10.170000769561495,15.380300202859013,6.759649388814033,7.9471222396450703,10.840362897901285,5.9820093019085263,0,0,0,0,0]
[null,null,2066,{"$f":"OFFSET($A55,$P$35,COLUMN(D$42)-1)*$P$36","v":10.562946018966796},3.0856459469928836,10.667765755388521,14.615100622874238,7.2666230929750846,8.539381239833217,10.212609429045118,0,1.7912749548067242,6.4248597275173305,0,0,0,0,0,10.170000769561495,15.380300202859013,6.759649388814033,7.9471222396450703,10.840362897901285,5.9820093019085263,0,0,0,0,0]
[null,null,2067,{"$f":"OFFSET($A56,$P$35,COLUMN(D$42)-1)*$P$36","v":10.562946018966796},3.0856459469928836,10.667765755388521,14.615100622874238,7.2666230929750846,8.539381239833217,10.212609429045118,0,1.7912749548067242,6.4248597275173305,0,0,0,0,0,10.170000769561495,15.380300202859013,6.759649388814033,7.9471222396450703,10.840362897901285,5.9820093019085263,0,0,0,0,0]
[null,null,2068,{"$f":"OFFSET($A57,$P$35,COLUMN(D$42)-1)*$P$36","v":10.562946018966796},3.0856459469928836,10.667765755388521,14.615100622874238,7.2666230929750846,8.539381239833217,10.212609429045118,0,1.7912749548067242,6.4248597275173305,0,0,0,0,0,10.170000769561495,15.380300202859013,6.759649388814033,7.9471222396450703,10.840362897901285,5.9820093019085263,0,0,0,0,0]
[null,null,2069,{"$f":"OFFSET($A58,$P$35,COLUMN(D$42)-1)*$P$36","v":10.562946018966796},3.0856459469928836,10.667765755388521,14.615100622874238,7.2666230929750846,8.539381239833217,10.212609429045118,0,1.7912749548067242,6.4248597275173305,0,0,0,0,0,10.170000769561495,15.380300202859013,6.759649388814033,7.9471222396450703,10.840362897901285,5.9820093019085263,0,0,0,0,0]
[null,null,2070,{"$f":"OFFSET($A59,$P$35,COLUMN(D$42)-1)*$P$36","v":10.562946018966796},3.0856459469928836,10.667765755388521,14.615100622874238,7.2666230929750846,8.539381239833217,10.212609429045118,0,1.7912749548067242,6.4248597275173305,0,0,0,0,0,10.170000769561495,15.380300202859013,6.759649388814033,7.9471222396450703,10.840362897901285,5.9820093019085263,0,0,0,0,0]
[null,null,2071,{"$f":"OFFSET($A60,$P$35,COLUMN(D$42)-1)*$P$36","v":10.562946018966796},3.0856459469928836,10.667765755388521,14.615100622874238,7.2666230929750846,8.539381239833217,10.212609429045118,0,1.7912749548067242,6.4248597275173305,0,0,0,0,0,10.170000769561495,15.380300202859013,6.759649388814033,7.9471222396450703,10.840362897901285,5.9820093019085263,0,0,0,0,0]
[null,null,2072,{"$f":"OFFSET($A61,$P$35,COLUMN(D$42)-1)*$P$36","v":10.562946018966796},3.0856459469928836,10.667765755388521,14.615100622874238,7.2666230929750846,8.539381239833217,10.212609429045118,0,1.7912749548067242,6.4248597275173305,0,0,0,0,0,10.170000769561495,15.380300202859013,6.759649388814033,7.9471222396450703,10.840362897901285,5.9820093019085263,0,0,0,0,0]
[null,null,2073,{"$f":"OFFSET($A62,$P$35,COLUMN(D$42)-1)*$P$36","v":10.562946018966796},3.0856459469928836,10.667765755388521,14.615100622874238,7.2666230929750846,8.539381239833217,10.212609429045118,0,1.7912749548067242,6.4248597275173305,0,0,0,0,0,10.170000769561495,15.380300202859013,6.759649388814033,7.9471222396450703,10.840362897901285,5.9820093019085263,0,0,0,0,0]
[null,null,2074,{"$f":"OFFSET($A63,$P$35,COLUMN(D$42)-1)*$P$36","v":10.562946018966796},3.0856459469928836,10.667765755388521,14.615100622874238,7.2666230929750846,8.539381239833217,10.212609429045118,0,1.7912749548067242,6.4248597275173305,0,0,0,0,0,10.170000769561495,15.380300202859013,6.759649388814033,7.9471222396450703,10.840362897901285,5.9820093019085263,0,0,0,0,0]
[null,null,2075,{"$f":"OFFSET($A64,$P$35,COLUMN(D$42)-1)*$P$36","v":10.562946018966796},3.0856459469928836,10.667765755388521,14.615100622874238,7.2666230929750846,8.539381239833217,10.212609429045118,0,1.7912749548067242,6.4248597275173305,0,0,0,0,0,10.170000769561495,15.380300202859013,6.759649388814033,7.9471222396450703,10.840362897901285,5.9820093019085263,0,0,0,0,0]
[null,null,null,null,null,null,null,null,null,null,null,null,null,null,null,null,null,null,null,null,null,null,null,null,null,null,null,null,null,null,null,"Compare chosen scenarios (Scenario1 compared to scenario2)"]
[null,"Data scenarios ",null,null,null,null,null,null,null,null,null,null,null,null,null,null,null,null,null,null,null,null,null,null,null,null,null,null,null,null,null,null,null,null,"Offset","PriceAdjustment"]
[null,null,null,null,null,null,null,null,null,null,null,null,null,null,null,null,null,null,null,null,null,null,null,null,null,null,null,null,null,null,null,"Scenario1","CustomFuel",null,{"$f":"MATCH(AG109,B:B,0)-1","v":112},{"$f":"VLOOKUP(AG109,ScenarioDef,3,FALSE)","v":0.9215586174146938}]
[null,null,"CustomFuel-scenario(Here the user can include his or her own  fuel price data. By  default the green cells in the table displays the `CustomFuel´-data and the yellow displays by default prices from the latest Danish Outlook) ",null,null,null,null,null,null,null,null,null,null,null,null,null,null,null,null,null,null,null,null,null,null,null,null,null,null,null,null,"Scenario2","CustomFuel2",null,{"$f":"MATCH(AG110,B:B,0)-1","v":180},{"$f":"VLOOKUP(AG110,ScenarioDef,3,FALSE)","v":1.0769543195754832}]
[null,null,null,"Central power station",null,null,null,null,null,null,null,null,null,null,null,null,null,null,"Decentral power station",null,null,null,null,null,null,null,null,null,null,null,null,null,"Central power station",null,null,null,null,null,null,null,null,null,null,null,null,null,null,"Decentral power station"]
[null,null,{"$f":"$D$22&$E$22&\"/GJ\"","v":"EUR2023/GJ"},{"$f":"D316","v":"Natural gas"},{"$f":"E316","v":"Coal"},"Fueloil","Gas oil","Straw","Wood chips","Wood pellets","Energy crops","Uranium","Local biomass","wind","solar","New fuel 3","New fuel 4","New fuel 5","Natural gas","Gas oil","Straw","Wood chips","Wood pellets","Energy crops","New fuel 1","New fuel 2","New fuel 3","New fuel 4","New fuel 5",null,null,"EUR/GJ",{"$f":"D112","v":"Natural gas"},{"$f":"E112","v":"Coal"},"Fueloil","Gas oil","Straw","Wood chips","Wood pellets","Energy crops","Uranium","Local biomass","wind","solar","New fuel 3","New fuel 4","New fuel 5","Natural gas","Gas oil","Straw","Wood chips","Wood pellets","Energy crops","New fuel 1","New fuel 2","New fuel 3","New fuel 4","New fuel 5"]
[null,"CustomFuel",2012,{"$f":"D317","v":8.0000860062036843},{"$f":"E317","v":3.5864545540024224},13.000380941126805,16.239411156201633,5.3315889650073114,5.9239877388970132,8.0761822945043136,6.4918859980143111,{"$f":"L317","v":1.9437450000000001},{"$f":"M317","v":2.625},{"$f":"N317","v":0},0,0,0,0,{"$f":"S317","v":8.4703112264821154},17.961014785005343,5.3315889650073114,5.9239877388970132,8.6458282824681483,6.4918859980143111,{"$f":"Y317","v":0},0,0,0,0,null,null,2012,{"$f":"IFERROR(OFFSET($A1,$AI$109,COLUMN(D$42)-1)*$AJ$109/(OFFSET($A1,$AI$110,COLUMN(D$42)-1)*$AJ$110)-1,\"\")","v":-0.14429182309426425},{"$f":"IFERROR(OFFSET($A1,$AI$109,COLUMN(E$42)-1)*$AJ$109/(OFFSET($A1,$AI$110,COLUMN(E$42)-1)*$AJ$110)-1,\"\")","v":-0.14429182309426425},{"$f":"IFERROR(OFFSET($A1,$AI$109,COLUMN(F$42)-1)*$AJ$109/(OFFSET($A1,$AI$110,COLUMN(F$42)-1)*$AJ$110)-1,\"\")","v":-0.14429182309426425},{"$f":"IFERROR(OFFSET($A1,$AI$109,COLUMN(G$42)-1)*$AJ$109/(OFFSET($A1,$AI$110,COLUMN(G$42)-1)*$AJ$110)-1,\"\")","v":-0.14429182309426425},{"$f":"IFERROR(OFFSET($A1,$AI$109,COLUMN(H$42)-1)*$AJ$109/(OFFSET($A1,$AI$110,COLUMN(H$42)-1)*$AJ$110)-1,\"\")","v":-0.14429182309426425},{"$f":"IFERROR(OFFSET($A1,$AI$109,COLUMN(I$42)-1)*$AJ$109/(OFFSET($A1,$AI$110,COLUMN(I$42)-1)*$AJ$110)-1,\"\")","v":-0.14429182309426425},{"$f":"IFERROR(OFFSET($A1,$AI$109,COLUMN(J$42)-1)*$AJ$109/(OFFSET($A1,$AI$110,COLUMN(J$42)-1)*$AJ$110)-1,\"\")","v":-0.14429182309426436},{"$f":"IFERROR(OFFSET($A1,$AI$109,COLUMN(K$42)-1)*$AJ$109/(OFFSET($A1,$AI$110,COLUMN(K$42)-1)*$AJ$110)-1,\"\")","v":-0.14429182309426425},{"$f":"IFERROR(OFFSET($A1,$AI$109,COLUMN(L$42)-1)*$AJ$109/(OFFSET($A1,$AI$110,COLUMN(L$42)-1)*$AJ$110)-1,\"\")","v":-0.14429182309426425},{"$f":"IFERROR(OFFSET($A1,$AI$109,COLUMN(M$42)-1)*$AJ$109/(OFFSET($A1,$AI$110,COLUMN(M$42)-1)*$AJ$110)-1,\"\")","v":-0.14429182309426436},{"$f":"IFERROR(OFFSET($A1,$AI$109,COLUMN(N$42)-1)*$AJ$109/(OFFSET($A1,$AI$110,COLUMN(N$42)-1)*$AJ$110)-1,\"\")","v":""},{"$f":"IFERROR(OFFSET($A1,$AI$109,COLUMN(O$42)-1)*$AJ$109/(OFFSET($A1,$AI$110,COLUMN(O$42)-1)*$AJ$110)-1,\"\")","v":""},{"$f":"IFERROR(OFFSET($A1,$AI$109,COLUMN(P$42)-1)*$AJ$109/(OFFSET($A1,$AI$110,COLUMN(P$42)-1)*$AJ$110)-1,\"\")","v":""},{"$f":"IFERROR(OFFSET($A1,$AI$109,COLUMN(Q$42)-1)*$AJ$109/(OFFSET($A1,$AI$110,COLUMN(Q$42)-1)*$AJ$110)-1,\"\")","v":""},{"$f":"IFERROR(OFFSET($A1,$AI$109,COLUMN(R$42)-1)*$AJ$109/(OFFSET($A1,$AI$110,COLUMN(R$42)-1)*$AJ$110)-1,\"\")","v":""},{"$f":"IFERROR(OFFSET($A1,$AI$109,COLUMN(S$42)-1)*$AJ$109/(OFFSET($A1,$AI$110,COLUMN(S$42)-1)*$AJ$110)-1,\"\")","v":-0.14429182309426425},{"$f":"IFERROR(OFFSET($A1,$AI$109,COLUMN(T$42)-1)*$AJ$109/(OFFSET($A1,$AI$110,COLUMN(T$42)-1)*$AJ$110)-1,\"\")","v":-0.14429182309426425},{"$f":"IFERROR(OFFSET($A1,$AI$109,COLUMN(U$42)-1)*$AJ$109/(OFFSET($A1,$AI$110,COLUMN(U$42)-1)*$AJ$110)-1,\"\")","v":-0.14429182309426425},{"$f":"IFERROR(OFFSET($A1,$AI$109,COLUMN(V$42)-1)*$AJ$109/(OFFSET($A1,$AI$110,COLUMN(V$42)-1)*$AJ$110)-1,\"\")","v":-0.14429182309426425},{"$f":"IFERROR(OFFSET($A1,$AI$109,COLUMN(W$42)-1)*$AJ$109/(OFFSET($A1,$AI$110,COLUMN(W$42)-1)*$AJ$110)-1,\"\")","v":-0.14429182309426425},{"$f":"IFERROR(OFFSET($A1,$AI$109,COLUMN(X$42)-1)*$AJ$109/(OFFSET($A1,$AI$110,COLUMN(X$42)-1)*$AJ$110)-1,\"\")","v":-0.14429182309426425},{"$f":"IFERROR(OFFSET($A1,$AI$109,COLUMN(Y$42)-1)*$AJ$109/(OFFSET($A1,$AI$110,COLUMN(Y$42)-1)*$AJ$110)-1,\"\")","v":""},{"$f":"IFERROR(OFFSET($A1,$AI$109,COLUMN(Z$42)-1)*$AJ$109/(OFFSET($A1,$AI$110,COLUMN(Z$42)-1)*$AJ$110)-1,\"\")","v":""},{"$f":"IFERROR(OFFSET($A1,$AI$109,COLUMN(AA$42)-1)*$AJ$109/(OFFSET($A1,$AI$110,COLUMN(AA$42)-1)*$AJ$110)-1,\"\")","v":""},{"$f":"IFERROR(OFFSET($A1,$AI$109,COLUMN(AB$42)-1)*$AJ$109/(OFFSET($A1,$AI$110,COLUMN(AB$42)-1)*$AJ$110)-1,\"\")","v":""},{"$f":"IFERROR(OFFSET($A1,$AI$109,COLUMN(AC$42)-1)*$AJ$109/(OFFSET($A1,$AI$110,COLUMN(AC$42)-1)*$AJ$110)-1,\"\")","v":""}]
[null,null,2013,{"$f":"D318","v":10.192106337696909},2.6408895835453592,12.871060096427552,16.113547274888926,5.3631325900583153,5.9590362111759054,8.9769910280699783,6.4911869835152016,1.9437450000000001,2.625,0,0,0,0,0,10.921527871314668,17.835150903692636,5.4189082908267148,6.4676775941652238,8.6740049976004556,6.4911869835152016,0,0,0,0,0,null,null,2013,-0.14429182309426436,-0.14429182309426436,-0.14429182309426425,-0.14429182309426436,-0.14429182309426425,-0.14429182309426414,-0.14429182309426436,-0.14429182309426414,-0.14429182309426425,-0.14429182309426436,"","","","","",-0.14429182309426436,-0.14429182309426425,-0.14429182309426425,-0.14429182309426436,-0.14429182309426425,-0.14429182309426414,"","","","",""]
[null,null,2014,{"$f":"D319","v":7.5585522408571242},2.3889326651874234,11.12813229461676,14.978281644016331,5.3946762151093184,5.9940846834547967,8.9908059399220548,0,1.9437450000000001,2.625,0,0,0,0,0,8.2879737744748816,16.46544917938963,5.4480518892300811,6.4973160063487425,8.702181712732763,6.4911869835152016,0,0,0,0,0,null,null,2014,-0.14429182309426425,-0.14429182309426436,-0.14429182309426436,-0.14429182309426436,-0.14429182309426425,-0.14429182309426414,-0.14429182309426436,"",-0.14429182309426425,-0.14429182309426436,"","","","","",-0.14429182309426425,-0.14429182309426436,-0.14429182309426436,-0.14429182309426425,-0.14429182309426414,-0.14429182309426414,"","","","",""]
[null,null,2015,{"$f":"D320","v":7.2039851304919598},2.2309204029772092,7.4125588883781077,11.262708237777677,5.4262198401603214,6.0291331557336907,9.0046208517741331,0,1.9437450000000001,2.625,0,0,0,0,0,7.933406664109719,12.74987577315097,5.4771954876334474,6.526954418532263,8.7303584278650685,6.4911869835152016,0,0,0,0,0,null,null,2015,-0.14429182309426436,-0.14429182309426436,-0.14429182309426414,-0.14429182309426425,-0.14429182309426425,-0.14429182309426436,-0.14429182309426425,"",-0.14429182309426425,-0.14429182309426436,"","","","","",-0.14429182309426425,-0.14429182309426436,-0.14429182309426425,-0.14429182309426414,-0.14429182309426436,-0.14429182309426414,"","","","",""]
[null,null,2016,{"$f":"D321","v":7.2792255359018618},2.1464073273037965,8.2881076314735598,12.13825698087313,5.4816570162115381,6.0907300180128212,9.0646272945521567,0,1.9437450000000001,2.625,0,0,0,0,0,8.0086470695196184,13.625424516246422,5.5449888873521145,6.5647769544451888,8.7635001502185794,6.4911869835152016,0,0,0,0,0,null,null,2016,-0.14429182309426425,-0.14429182309426425,-0.14429182309426414,-0.14429182309426425,-0.14429182309426425,-0.14429182309426425,-0.14429182309426414,"",-0.14429182309426425,-0.14429182309426436,"","","","","",-0.14429182309426436,-0.14429182309426425,-0.14429182309426414,-0.14429182309426425,-0.14429182309426425,-0.14429182309426414,"","","","",""]
[null,null,2017,7.2168503107456043,2.1343304094781956,8.5321768630855317,12.382326212485101,5.5370941922627575,6.1523268802919509,9.1246337373301802,{"$f":"K322","v":0},1.9437450000000001,2.625,0,0,0,0,0,7.9462718443633635,13.869493747858396,5.6127822870707815,6.6025994903581138,8.7966418725720921,6.4911869835152016,0,0,0,0,0,null,null,2017,-0.14429182309426425,-0.14429182309426425,-0.14429182309426414,-0.14429182309426425,-0.14429182309426436,-0.14429182309426414,-0.14429182309426425,"",-0.14429182309426425,-0.14429182309426436,"","","","","",-0.14429182309426436,-0.14429182309426425,-0.14429182309426425,-0.14429182309426414,-0.14429182309426414,-0.14429182309426414,"","","","",""]
[null,null,2018,8.5354747603841474,3.9091329961801726,10.861531094919387,15.50232005253857,7.1758446699981411,8.3829961098109127,9.9750631483918397,{"$f":"K323","v":0},1.9437450000000001,6.0562339836782488,{"$f":"N323","v":0},0,0,0,0,10.285957939807009,16.23750935828204,6.6752043441843201,7.7981359161031749,10.665580403150853,{"$f":"X323","v":6.4911869835152016},0,0,0,0,0,null,null,2018,1.9937105978536929E-2,0.58277351766171726,7.9029689017750204E-2,6.4325863626436552E-2,9.7969516114498889E-2,0.15440720152225373,-7.0650244990935418E-2,"",-0.14429182309426425,0.97423578708109537,"","","","","",0.11548697681145925,-4.0370422767315173E-3,5.5366312817388685E-3,4.8952674441693489E-3,3.3618124873042943E-2,-0.14429182309426414,"","","","",""]
[null,null,2019,5.3477609774061712,2.90097202170795,10.18898515081397,14.829774108433154,6.6487356373904332,7.7672145296617208,11.023976742964903,{"$f":"K324","v":0},1.9437450000000001,6.0931614646875341,0,0,0,0,0,7.0982441568290326,15.564963414176624,6.3654663102648614,7.4362924185337169,11.70931168947995,6.4911869835152016,0,0,0,0,0,null,null,2019,-0.36097522306830376,0.17159553949951256,1.4241806645694854E-2,1.9558845419410886E-2,7.3316461147225898E-3,5.9110375587909436E-2,2.0407531600012296E-2,"",-0.14429182309426425,0.98627355753906731,"","","","","",-0.23021278508947651,-4.4110398611021506E-2,-4.7160347431112526E-2,-4.7160347431112637E-2,0.13052444874960734,-0.14429182309426414,"","","","",""]
[null,null,2020,4.0701704454115548,2.2368836980781395,5.8888073743627221,10.529596331981905,6.2370012955267313,7.3408365088248893,8.7231882590184444,{"$f":"K325","v":0},1.9437450000000001,6.1272204468065983,0,0,0,0,0,5.8206536248344154,11.264785637725375,5.987521243705662,7.4137744609562182,9.378519137712269,6.4911869835152016,0,0,0,0,0,null,null,2020,-0.51363948913538815,-8.8257619304642931E-2,-0.40644636979166282,-0.26982484700931619,-6.4234026197906191E-2,-8.7584996629189726E-3,-0.19776659384803119,"",-0.14429182309426425,0.99737624306149386,"","","","","",-0.36876435301124466,-0.30286052059141011,-0.10878198185120291,-5.5395466526408588E-2,-9.7885000455354754E-2,-0.14429182309426414,"","","","",""]
[null,null,2021,16.010409702760775,4.3175853719894874,9.9034096800791378,14.544198637698322,6.1005785361414731,7.1814641263654755,9.0300684871778056,{"$f":"K326","v":0},1.9437450000000001,6.1672868608464597,{"$f":"N326","v":0},0,0,0,0,17.760892882183636,15.27938794344179,5.8565553946958131,7.4846775191696366,9.7140047502036957,6.4911869835152016,0,0,0,0,0,null,null,2021,0.92711795266044206,0.69244674151836927,3.4234849637309051E-3,1.2193305988599246E-2,-9.3739487434185809E-2,-3.9853418914521987E-2,-0.17273723793491347,"",-0.14429182309426425,1.0104372556760466,"","","","","",0.93888298187793606,-5.1378062815820913E-2,-0.13280894685045852,-5.1320772856110031E-2,-6.9225824743748277E-2,-0.14429182309426414,"","","","",""]
[null,null,2022,37.837311445369473,10.561292312991243,15.153687346686214,25.834744760681236,11.089622581507239,13.009786609269408,17.604678213950137,{"$f":"K327","v":0},1.9437450000000001,6.2072581417290005,0,0,0,0,0,39.587794624792338,26.569934066424707,10.315927982797431,12.105937779000941,18.328183260774477,{"$f":"X327","v":6.4911869835152016},{"$f":"Y327","v":0},0,0,0,0,null,null,2022,3.5531845206653081,2.9869638854691147,0.52031517921655723,0.78579091297839487,0.63129220763380944,0.72237486230264891,0.60662262092929264,"",-0.14429182309426425,1.0234672563970317,"","","","","",3.3206347817698649,0.63963619857410747,0.51959628022452375,0.52648352812509858,0.74940473271031149,-0.14429182309426414,"","","","",""]
[null,null,2023,14.242863711709292,5.2509628388421126,12.277548006067121,16.918336963686304,9.7497888801754478,11.444560322666851,12.614121825505126,{"$f":"K328","v":0},1.9437450000000001,6.247134555957973,0,0,0,0,0,15.567072735020131,17.653526269429776,9.0695710513259993,10.6499133263474,13.310391999048448,6.4911869835152016,0,0,0,0,0,null,null,2023,0.70064204065650082,0.90775081194391993,0.19226518411886118,0.14335974966574172,0.42031503810387871,0.50048305635007573,0.14678639859786058,"",-0.14429182309426425,1.0364663321004266,"","","","","",0.687046697006503,6.7647585342123007E-2,0.32912454541010372,0.33597634617322369,0.26558997384090088,-0.14429182309426414,"","","","",""]
[null,null,2024,15.643488864847074,4.4104564662135415,11.683365349816281,16.324154307435464,8.5022005159592062,9.9870972803581548,12.177882788333605,{"$f":"K329","v":0},1.9437450000000001,6.2869163700371296,0,0,0,0,0,17.393972044269933,17.059343613178935,7.9090237357760049,9.2941337521067524,12.870459196719258,6.4911869835152016,0,0,0,0,0,null,null,2024,0.83982554113635732,0.54129212361968659,8.8533475394293459E-2,7.16663778373412E-2,0.22669335169542681,0.29684018063314377,0.10291832118786481,"",-0.14429182309426425,1.0494345696622087,"","","","","",0.85929955328694363,5.2390770379835416E-3,0.15311421217441978,0.15993092880886861,0.21908478286959276,-0.14429182309426414,"","","","",""]
[null,null,2025,14.450281407532286,4.2809203168213488,11.493109661095966,16.133898618715151,8.3204830996032015,9.7748105790076814,12.027673606100898,{"$f":"K330","v":0},1.9437450000000001,6.3266038504702289,0,0,0,0,0,16.197108032229199,16.869087924458618,7.7399842787006534,9.0966577508505004,12.719275350596677,6.4911869835152016,0,0,0,0,0,null,null,2025,0.66224978669083612,0.43836418764807239,1.9449279427532495E-2,2.2866939890786364E-2,0.18907252856922963,0.2572182087381667,8.5189341664684726E-2,"",-0.14429182309426425,1.0623720559583569,"","","","","",0.69680949692643801,-3.6665967940830657E-2,0.12225969072429921,0.12903890062315693,0.20017966519958086,-0.14429182309426414,"","","","",""]
[null,null,2026,14.662763149060698,5.5276334374004321,11.182543587337427,15.823332544956612,7.4414897382813079,8.747949175594254,10.991994710330378,{"$f":"K331","v":0},1.9437450000000001,6.3591154648042698,0,0,0,0,0,16.453076311816385,16.558521850700082,6.9223160356105184,8.1414378406984724,11.681683724224168,6.4911869835152016,0,0,0,0,0,null,null,2026,0.63893736816623958,0.78508393193081139,-6.1852711311558561E-2,-3.6290218789706619E-2,5.3863214342127819E-2,0.11499551100641958,-1.2820317334584108E-2,"",-0.14429182309426425,1.072970324236469,"","","","","",0.67906958084415558,-8.8042807937156353E-2,-5.5101317101843295E-3,1.2068588063405272E-3,9.7854863995130215E-2,-0.14429182309426414,"","","","",""]
[null,null,2027,13.05310710938879,4.8425332895766324,10.93363918905542,15.574428146674604,7.3709486425399957,8.6655413534665549,10.905955877954092,{"$f":"K332","v":0},1.9437450000000001,6.3916181734154938,0,0,0,0,0,14.904804225846814,16.309617452418074,6.856696411665113,8.0647794015099148,11.594039414880418,6.4911869835152016,0,0,0,0,0,null,null,2027,0.40922716241070334,0.50272169928234001,-0.13711652874860503,-9.2950152702087063E-2,3.4540842499920732E-2,9.4617694215754389E-2,-2.503628515468348E-2,"",-0.14429182309426425,1.0835656893908343,"","","","","",0.47353211051340516,-0.13743877533511506,-2.3895983746207272E-2,-1.7240080903601629E-2,8.5267579122488169E-2,-0.14429182309426414,"","","","",""]
[null,null,2028,11.511660715935728,4.3021152620803642,10.732836647461898,15.373625605081081,7.3811764348596887,8.6774897089802128,10.90808661003523,{"$f":"K333","v":0},1.9437450000000001,6.4241119763038999,0,0,0,0,0,13.437270749694175,16.108814910824552,6.8662106370787805,8.0758941508249453,11.594761516080244,6.4911869835152016,0,0,0,0,0,null,null,2028,0.19397140100688315,0.28265745837375089,-0.20659363731995495,-0.14718475902599659,2.6796671141314121E-2,8.6414322040513358E-2,-2.9294623213786064E-2,"",-0.14429182309426425,1.0941581514214525,"","","","","",0.28048319331327676,-0.18497662101555024,-3.1350939237284381E-2,-2.4755022958873774E-2,8.1019107664934031E-2,-0.14429182309426414,"","","","",""]
[null,null,2029,10.032988059417075,3.7837981677553882,10.571628881630513,15.212417839249698,7.3918703211198817,8.689982566760813,10.910908781066555,{"$f":"K334","v":0},1.9437450000000001,6.4565968734694881,0,0,0,0,0,12.015223986429527,15.947607144993166,6.8761584382510526,8.0875154138766661,11.59635530593833,6.4911869835152016,0,0,0,0,0,null,null,2029,{"$f":"IFERROR(OFFSET($A26,$AI$109,COLUMN(D$42)-1)*$AJ$109/(OFFSET($A26,$AI$110,COLUMN(D$42)-1)*$AJ$110)-1,\"\")","v":-0.21505297828252967},{"$f":"IFERROR(OFFSET($A26,$AI$109,COLUMN(E$42)-1)*$AJ$109/(OFFSET($A26,$AI$110,COLUMN(E$42)-1)*$AJ$110)-1,\"\")","v":-0.10983130362427873},{"$f":"IFERROR(OFFSET($A26,$AI$109,COLUMN(F$42)-1)*$AJ$109/(OFFSET($A26,$AI$110,COLUMN(F$42)-1)*$AJ$110)-1,\"\")","v":-0.41042038807543524},{"$f":"IFERROR(OFFSET($A26,$AI$109,COLUMN(G$42)-1)*$AJ$109/(OFFSET($A26,$AI$110,COLUMN(G$42)-1)*$AJ$110)-1,\"\")","v":-0.3189325704032403},{"$f":"IFERROR(OFFSET($A26,$AI$109,COLUMN(H$42)-1)*$AJ$109/(OFFSET($A26,$AI$110,COLUMN(H$42)-1)*$AJ$110)-1,\"\")","v":-1.8478477034814089E-2},{"$f":"IFERROR(OFFSET($A26,$AI$109,COLUMN(I$42)-1)*$AJ$109/(OFFSET($A26,$AI$110,COLUMN(I$42)-1)*$AJ$110)-1,\"\")","v":3.8361108181075299E-2},{"$f":"IFERROR(OFFSET($A26,$AI$109,COLUMN(J$42)-1)*$AJ$109/(OFFSET($A26,$AI$110,COLUMN(J$42)-1)*$AJ$110)-1,\"\")","v":-6.3502181861796236E-2},{"$f":"IFERROR(OFFSET($A26,$AI$109,COLUMN(K$42)-1)*$AJ$109/(OFFSET($A26,$AI$110,COLUMN(K$42)-1)*$AJ$110)-1,\"\")","v":""},{"$f":"IFERROR(OFFSET($A26,$AI$109,COLUMN(L$42)-1)*$AJ$109/(OFFSET($A26,$AI$110,COLUMN(L$42)-1)*$AJ$110)-1,\"\")","v":-0.14429182309426425},{"$f":"IFERROR(OFFSET($A26,$AI$109,COLUMN(M$42)-1)*$AJ$109/(OFFSET($A26,$AI$110,COLUMN(M$42)-1)*$AJ$110)-1,\"\")","v":1.1626852716992784},{"$f":"IFERROR(OFFSET($A26,$AI$109,COLUMN(N$42)-1)*$AJ$109/(OFFSET($A26,$AI$110,COLUMN(N$42)-1)*$AJ$110)-1,\"\")","v":""},{"$f":"IFERROR(OFFSET($A26,$AI$109,COLUMN(O$42)-1)*$AJ$109/(OFFSET($A26,$AI$110,COLUMN(O$42)-1)*$AJ$110)-1,\"\")","v":""},{"$f":"IFERROR(OFFSET($A26,$AI$109,COLUMN(P$42)-1)*$AJ$109/(OFFSET($A26,$AI$110,COLUMN(P$42)-1)*$AJ$110)-1,\"\")","v":""},{"$f":"IFERROR(OFFSET($A26,$AI$109,COLUMN(Q$42)-1)*$AJ$109/(OFFSET($A26,$AI$110,COLUMN(Q$42)-1)*$AJ$110)-1,\"\")","v":""},{"$f":"IFERROR(OFFSET($A26,$AI$109,COLUMN(R$42)-1)*$AJ$109/(OFFSET($A26,$AI$110,COLUMN(R$42)-1)*$AJ$110)-1,\"\")","v":""},{"$f":"IFERROR(OFFSET($A26,$AI$109,COLUMN(S$42)-1)*$AJ$109/(OFFSET($A26,$AI$110,COLUMN(S$42)-1)*$AJ$110)-1,\"\")","v":-9.6455255608831614E-2},{"$f":"IFERROR(OFFSET($A26,$AI$109,COLUMN(T$42)-1)*$AJ$109/(OFFSET($A26,$AI$110,COLUMN(T$42)-1)*$AJ$110)-1,\"\")","v":-0.33804201069592121},{"$f":"IFERROR(OFFSET($A26,$AI$109,COLUMN(U$42)-1)*$AJ$109/(OFFSET($A26,$AI$110,COLUMN(U$42)-1)*$AJ$110)-1,\"\")","v":-7.9102352716498125E-2},{"$f":"IFERROR(OFFSET($A26,$AI$109,COLUMN(V$42)-1)*$AJ$109/(OFFSET($A26,$AI$110,COLUMN(V$42)-1)*$AJ$110)-1,\"\")","v":-7.2974826446745689E-2},{"$f":"IFERROR(OFFSET($A26,$AI$109,COLUMN(W$42)-1)*$AJ$109/(OFFSET($A26,$AI$110,COLUMN(W$42)-1)*$AJ$110)-1,\"\")","v":5.1056765990103559E-2},{"$f":"IFERROR(OFFSET($A26,$AI$109,COLUMN(X$42)-1)*$AJ$109/(OFFSET($A26,$AI$110,COLUMN(X$42)-1)*$AJ$110)-1,\"\")","v":-0.14429182309426414},{"$f":"IFERROR(OFFSET($A26,$AI$109,COLUMN(Y$42)-1)*$AJ$109/(OFFSET($A26,$AI$110,COLUMN(Y$42)-1)*$AJ$110)-1,\"\")","v":""},{"$f":"IFERROR(OFFSET($A26,$AI$109,COLUMN(Z$42)-1)*$AJ$109/(OFFSET($A26,$AI$110,COLUMN(Z$42)-1)*$AJ$110)-1,\"\")","v":""},{"$f":"IFERROR(OFFSET($A26,$AI$109,COLUMN(AA$42)-1)*$AJ$109/(OFFSET($A26,$AI$110,COLUMN(AA$42)-1)*$AJ$110)-1,\"\")","v":""},{"$f":"IFERROR(OFFSET($A26,$AI$109,COLUMN(AB$42)-1)*$AJ$109/(OFFSET($A26,$AI$110,COLUMN(AB$42)-1)*$AJ$110)-1,\"\")","v":""},{"$f":"IFERROR(OFFSET($A26,$AI$109,COLUMN(AC$42)-1)*$AJ$109/(OFFSET($A26,$AI$110,COLUMN(AC$42)-1)*$AJ$110)-1,\"\")","v":""}]
[null,null,2030,8.6046171536868776,3.2830038584854155,10.224981818105091,14.865770775724275,7.3989825018408313,8.6982911890983718,10.90765635445868,{"$f":"K335","v":0},1.9437450000000001,6.4890728649122602,0,0,0,0,0,10.638879789165971,15.600960081467745,6.8827744203170527,8.0952443648883481,11.59063417543719,6.4911869835152016,0,0,0,0,0,null,null,2030,-0.22078170497627803,-0.11327034490436827,-0.42074913565235494,-0.32814217659095335,-2.2567539072485099E-2,3.4018170124573643E-2,-6.694517150461532E-2,"",-0.14429182309426425,1.1690134266402921,"","","","","",-0.10323600148965362,-0.34638365395904025,-8.3403667644993851E-2,-7.7321137955704611E-2,4.794048103381443E-2,-0.14429182309426414,"","","","",""]
[null,null,2031,8.6683073172408491,3.2997568101356425,10.333006652864357,14.97379561048354,7.4263422595187691,8.7302535228342801,10.923902326269873,{"$f":"K336","v":0},1.9437450000000001,6.5103742956391182,{"$f":"N336","v":0},0,0,0,0,10.730195001538293,15.70898491622701,6.9082253576918795,8.1249767683636129,11.607695825688484,6.4911869835152016,0,0,0,0,0,null,null,2031,-0.22687917239308275,-0.11705003010059312,-0.43095990312584653,-0.33728181474387331,-2.6629487906140947E-2,2.9704332565358094E-2,-7.0396874655156205E-2,"",-0.14429182309426425,1.1753390413480282,"","","","","",-0.10997490504280583,-0.35467774876402103,-8.7668932063146188E-2,-8.1630742920376198E-2,4.4804228471821528E-2,-0.14429182309426414,"","","","",""]
[null,null,2032,8.7261159305178175,3.3149724735158892,10.312105968995594,14.952894926614778,7.4481763560011771,8.7557606448931669,10.930791220180563,{"$f":"K337","v":0},1.9437450000000001,6.5316657074278055,0,0,0,0,0,10.803500510973526,15.688084232358246,6.9285361451173735,8.1487043237672285,11.614491660553341,{"$f":"X337","v":6.4911869835152016},{"$f":"Y337","v":0},0,0,0,0,null,null,2032,-0.23324366906427452,-0.12109250332709931,-0.44100594339427734,-0.34631257260992054,-3.066434707867316E-2,2.5419558733674297E-2,-7.3856539954646028E-2,"",-0.14429182309426425,1.1816621158224851,"","","","","",-0.11679631711282923,-0.36288751374517569,-9.1898436545762463E-2,-8.590394615884589E-2,4.1648969361142374E-2,-0.14429182309426414,"","","","",""]
[null,null,2033,8.776468926713811,3.3282416907435661,10.287039586087902,14.927828543707086,7.4697867943509468,8.7810064840868236,10.937174234623695,{"$f":"K338","v":0},1.9437450000000001,6.5529471002783257,0,0,0,0,0,10.864903333534965,15.663017849450554,6.9486388784659967,8.1721888253427224,11.620754773346427,6.4911869835152016,0,0,0,0,0,null,null,2033,-0.23994938916418451,-0.1254583657356404,-0.4494504592153783,-0.35408083593627959,-3.4389149632920613E-2,2.1460028939812137E-2,-7.6660207718305173E-2,"",-0.14429182309426425,1.1902991358924733,"","","","","",-0.12394342582863715,-0.3699406974422389,-9.549883560578476E-2,-8.9546517027666916E-2,3.8822672118816959E-2,-0.14429182309426414,"","","","",""]
[null,null,2034,8.8210994093863295,3.3400154970984359,10.259390950328616,14.9001799079478,7.4911783031458583,8.8059965644547109,10.943059242049607,{"$f":"K339","v":0},1.9437450000000001,6.5742184741906771,0,0,0,0,0,10.919976148404247,15.63536921369127,6.9685379564147514,8.1954354117314541,11.626494124947405,6.4911869835152016,0,0,0,0,0,null,null,2034,-0.24696561600146172,-0.13012541151280155,-0.45665791636404274,-0.360868930130674,-3.7971663081466378E-2,1.7650696288591172E-2,-7.9338130480593683E-2,"",-0.14429182309426425,1.1989298796087731,"","","","","",-0.1317211664535044,-0.37609664974592583,-9.896356756763014E-2,-9.3052831578175565E-2,3.6138252506017876E-2,-0.14429182309426414,"","","","",""]
[null,null,2035,8.8602539488904082,3.3503582837986556,10.229289720054176,14.87007867767336,7.5123555442980594,8.8307363321558814,10.948454068862748,{"$f":"K340","v":0},1.9437450000000001,6.5954798291648578,0,0,0,0,0,10.972431816192993,15.60526798341683,6.9882377156261031,8.2184491491278919,11.631718597826655,6.4911869835152016,0,0,0,0,0,null,null,2035,-0.25423167559332904,-0.13504701083510051,-0.46390403585196638,-0.36769683863204528,-4.1543288562870595E-2,1.3853393223473898E-2,-8.2035410854295332E-2,"",-0.14429182309426425,1.2075543469713863,"","","","","",-0.1395674160659981,-0.38230178253054359,-0.10241578575648336,-9.654605539867156E-2,3.3427487480069962E-2,-0.14429182309426414,"","","","",""]
[null,null,2036,8.8927924344114668,3.3589736723613672,10.195551174007035,14.836340131626219,7.5331490852325302,8.8550278519391412,10.953227464313008,{"$f":"K341","v":0},1.9437450000000001,6.6149078811498097,0,0,0,0,0,11.012392547638221,15.571529437369689,7.0075805444023542,8.2410459117169719,11.636297965787291,6.4911869835152016,0,0,0,0,0,null,null,2036,-0.26166495726306482,-0.14015810982856658,-0.47114227268884001,-0.3745269290076052,-4.5103672676444218E-2,1.0068479486024406E-2,-8.4750994349895303E-2,"",-0.14429182309426425,1.216172537980313,"","","","","",-0.14767193964302516,-0.38852079728009248,-0.105855210749354,-0.10002592099132235,3.0691637752249035E-2,-0.14429182309426414,"","","","",""]
[null,null,2037,8.9196230589290941,3.3660981207655678,10.158960568829965,14.799749526449149,7.5537123219320135,8.8790503247189108,10.957556461300774,{"$f":"K342","v":0},1.9437450000000001,6.6343281406273,0,0,0,0,0,11.037488095408577,15.534938832192617,7.0267091366809433,8.2633923980237345,11.640410255599988,6.4911869835152016,0,0,0,0,0,null,null,2037,-0.26922216676929778,-0.14542435727414738,-0.47835000967244135,-0.38134058254047465,-4.8652472791467116E-2,6.2963038124328463E-3,-8.7483856336686538E-2,"",-0.14429182309426425,1.2247844526355527,"","","","","",-0.15598756344344999,-0.394736019310576,-0.10928157195100641,-0.10349216935965755,2.7931928952748653E-2,-0.14429182309426414,"","","","",""]
[null,null,2038,8.9408737027234899,3.3717650891795485,10.11955734061668,14.760346298235865,7.5740494646625951,8.902808669030339,10.961448898600491,{"$f":"K343","v":0},1.9437450000000001,6.6537406075973227,0,0,0,0,0,11.05402993503859,15.495535603979334,7.0456274089884614,8.285493183429713,11.644064270035889,6.4911869835152016,0,0,0,0,0,null,null,2038,-0.27699074130978163,-0.15091678266874287,-0.48558223517824484,-0.38818200574280659,-5.1883697695110365E-2,2.8542866359608787E-3,-9.0662128484331528E-2,"",-0.14429182309426425,1.234363776118689,"","","","","",-0.1647298105527274,-0.40098830234212568,-0.11243542941134965,-0.10668965088577509,2.4715609577354192E-2,-0.14429182309426414,"","","","",""]
[null,null,2039,8.9565828518170818,3.3759847674441463,10.077301716961246,14.718090674580431,7.5941646826029308,8.9263077554092352,10.964912527147026,{"$f":"K344","v":0},1.9437450000000001,6.6731452820598829,0,0,0,0,0,11.069589383661361,15.453279980323899,7.0643392396306322,8.3073527986658959,11.647268694942365,6.4911869835152016,0,0,0,0,0,null,null,2039,-0.28490644344197968,-0.15658412626453977,-0.49280356035887207,-0.39502231295381662,-5.5108509396948557E-2,-5.8033172604232686E-4,-9.3849670759466708E-2,"",-0.14429182309426425,1.243942348880446,"","","","","",-0.17343356157444212,-0.40725044411426281,-0.11558049148650007,-0.10987768451498525,2.1482836316417897E-2,-0.14429182309426414,"","","","",""]
[null,null,2040,8.9678175170460541,3.3790349608686543,10.033117409804264,14.673906367423447,7.6140621020179386,8.9495524042585437,10.967955007312606,{"$f":"K345","v":0},1.9437450000000001,6.6925421640149771,0,0,0,0,0,11.08261997163542,15.409095673166915,7.0828484669934317,8.328975727828043,11.650032097289891,6.4911869835152016,0,0,0,0,0,null,null,2040,-0.29300383653194695,-0.16245498154182614,-0.50003708035250716,-0.40188004562166557,-5.8326553628737177E-2,-4.0071931288394591E-3,-9.7045596600641715E-2,"",-0.14429182309426425,1.2535201709208246,"","","","","",-0.18239803154229317,-0.41353944965025735,-0.11871649135045359,-0.11305601795262821,1.8234716677060447E-2,-0.14429182309426414,"","","","",""]
[null,null,2041,8.9736129459550575,3.380664806919619,10.013254740650765,14.65404369826995,7.6376055004737378,8.9770563744171881,10.976269134427216,{"$f":"K346","v":0},1.9437450000000001,6.7190373855117524,{"$f":"N346","v":0},0,0,0,0,11.090015746867957,15.38923300401342,7.1047493027662689,8.3545608163477123,11.658238982630172,6.4911869835152016,0,0,0,0,0,null,null,2041,-0.30121419765260482,-0.16847375016660882,-0.5072449458482593,-0.40872412428022431,-6.1537483867041831E-2,-7.4259471560151891E-3,-0.10024904872477602,"",-0.14429182309426425,1.2630972422398252,"","","","","",-0.19143834482292044,-0.41982603305630084,-0.12184316770038106,-0.11622440399891887,1.4972323067371285E-2,-0.14429182309426414,"","","","",""]
[null,null,2042,8.9742217652523841,3.3809401845737224,10.012147073113441,14.652936030732626,7.6618747722296483,9.0054083274030639,10.985831591261148,{"$f":"K347","v":0},1.9437450000000001,6.7455133534488718,0,0,0,0,0,11.087774462362782,15.388125336476094,7.1273253695159529,8.3809347261020157,11.667826877589061,{"$f":"X347","v":6.4911869835152016},{"$f":"Y347","v":0},0,0,0,0,null,null,2042,-0.30955241232240438,-0.17465274375343909,-0.51443855333583555,-0.41556353442402461,-6.4740961707354772E-2,-1.0836251527701179E-2,-0.10345919844552498,"",-0.14429182309426425,1.2726735628374475,"","","","","",-0.20047551288721932,-0.42611828897970927,-0.12496026516476255,-0.11938260097274356,1.1696693612274656E-2,-0.14429182309426414,"","","","",""]
[null,null,2043,8.9702705500745825,3.3800242861587373,10.006869353172847,14.647658310792032,7.6858395568818665,9.0334045711556552,10.994921373110149,{"$f":"K348","v":0},1.9437450000000001,6.7719700678263415,0,0,0,0,0,11.082926975979044,15.3828476165355,7.1496181924482478,8.4069777435462871,11.676911309145575,6.4911869835152016,0,0,0,0,0,null,null,2043,-0.13034337846040744,-0.18932325391253679,-0.41852851894350618,-0.35141659386170188,-6.4740961707354772E-2,-1.0836251527701179E-2,-0.10345919844552498,"",-0.14429182309426425,1.2726735628374475,"","","","","",-0.215849693585209,-0.36258616861273096,-0.12496026516476255,-0.11938260097274356,1.1696693612274656E-2,-0.14429182309426414,"","","","",""]
[null,null,2044,8.9626790600336808,3.3781566160635634,9.9982737863764957,14.63906274399568,7.7095044937908543,9.0610505254885858,11.003548546361339,{"$f":"K349","v":0},1.9437450000000001,6.7984075286441596,0,0,0,0,0,11.072985188546276,15.37425204973915,7.1716320872473061,8.4326949103676174,11.685503541295624,6.4911869835152016,0,0,0,0,0,null,null,2044,-0.125725128493269,-0.18625251294007283,-0.4199966634951311,-0.35261880861248451,-6.4740961707354772E-2,-1.0836251527701179E-2,-0.10345919844552498,"",-0.14429182309426425,1.2726735628374475,"","","","","",-0.21151971129737301,-0.36370977060919829,-0.12496026516476255,-0.11938260097274356,1.1696693612274656E-2,-0.14429182309426414,"","","","",""]
[null,null,2045,8.95192205174361,3.3754608864714148,9.9867990279472139,14.627587985566398,7.7328742120736402,9.088351598248849,11.011723006738256,{"$f":"K350","v":0},1.9437450000000001,6.8248257359023272,0,0,0,0,0,11.058481322343024,15.362777291309866,7.1933713600685039,8.4580912571213513,11.693614632243627,6.4911869835152016,0,0,0,0,0,null,null,2045,-0.12140190985684496,-0.1834010313542821,-0.42130035020020995,-0.35368635430170858,-6.4740961707354772E-2,-1.0836251527701179E-2,-0.10345919844552498,"",-0.14429182309426425,1.2726735628374475,"","","","","",-0.20746634470713621,-0.36470750954639897,-0.12496026516476255,-0.11938260097274356,1.1696693612274656E-2,-0.14429182309426414,"","","","",""]
[null,null,2046,8.9368775442740933,3.371645243976277,9.9714010797705992,14.612190037389784,7.7639965810699056,9.1247095059547654,11.026709353278056,{"$f":"K351","v":0},1.9437450000000001,6.854211599940883,0,0,0,0,0,11.036497473693917,15.347379343133252,7.2223224009952611,8.4919125666152269,11.708510309296843,6.4911869835152016,0,0,0,0,0,null,null,2046,-0.11777053983757235,-0.18111125756851632,-0.42274627155735467,-0.35487037121755483,-6.4740961707354772E-2,-1.0836251527701179E-2,-0.10345919844552498,"",-0.14429182309426425,1.2726735628374475,"","","","","",-0.20406164206524524,-0.36581410366332334,-0.12496026516476255,-0.11938260097274356,1.1696693612274656E-2,-0.14429182309426414,"","","","",""]
[null,null,2047,8.9182764072479177,3.3669000289694639,9.9527568054377706,14.593545763056955,7.7947807008746928,9.1606722627360604,11.041209883675688,{"$f":"K352","v":0},1.9437450000000001,6.8835951610405708,0,0,0,0,0,11.013089019935462,15.328735068800423,7.2509587915113434,8.5253662938536401,11.722893965104202,6.4911869835152016,0,0,0,0,0,null,null,2047,-0.11441647527999155,-0.1790278733490881,-0.42404310475993767,-0.35593230480149574,-6.4740961707354772E-2,-1.0836251527701179E-2,-0.10345919844552498,"",-0.14429182309426425,1.2726735628374475,"","","","","",-0.2009169356873044,-0.36680659747048661,-0.12496026516476255,-0.11938260097274356,1.1696693612274656E-2,-0.14429182309426414,"","","","",""]
[null,null,2048,8.8956348428700878,3.3610994452564738,9.9304153051157673,14.57120426273495,7.8252306799487474,9.196244668196405,11.055233821158758,{"$f":"K353","v":0},1.9437450000000001,6.9129764192013932,0,0,0,0,0,10.984248890256223,15.306393568478422,7.279284353440695,8.5584569035841938,11.73677588540391,6.4911869835152016,0,0,0,0,0,null,null,2048,-0.11174771768067793,-0.1775020390055333,-0.42550080430699566,-0.35712596648538264,-6.4740961707354772E-2,-1.0836251527701179E-2,-0.10345919844552498,"",-0.14429182309426425,1.2726735628374475,"","","","","",-0.19841475992423774,-0.3679222056846172,-0.12496026516476255,-0.11938260097274356,1.1696693612274656E-2,-0.14429182309426414,"","","","",""]
[null,null,2049,8.8697647571907439,3.3544549260092427,9.905128655895,14.545917613514185,7.8553506476967945,9.2314315464067391,11.068790236786214,{"$f":"K354","v":0},1.9437450000000001,6.942355374423351,0,0,0,0,0,10.952394648982066,15.281106919257654,7.3073029280900412,8.5911888833147376,11.750166172173437,6.4911869835152016,0,0,0,0,0,null,null,2049,-0.10928715325781979,-0.17612544468251834,-0.42678532977889527,-0.35817782167795542,-6.4740961707354772E-2,-1.0836251527701179E-2,-0.10345919844552498,"",-0.14429182309426425,1.2726735628374475,"","","","","",-0.19610778207659729,-0.36890528012585155,-0.12496026516476255,-0.11938260097274356,1.1696693612274656E-2,-0.14429182309426414,"","","","",""]
[null,null,2050,8.8404380019239035,3.3469072021721877,9.8766834560500811,14.517472413669266,7.8851447489695206,9.2662377394823547,11.081888049286754,{"$f":"K355","v":0},1.9437450000000001,6.9717320267064427,0,0,0,0,0,10.918579777019112,15.252661719412735,7.3350183711344386,8.6235667373385656,11.763074744298343,6.4911869835152016,0,0,0,0,0,null,null,2050,-0.10746484786071286,-0.17526744904720271,-0.42821892483847113,-0.35935174499862832,-6.4740961707354772E-2,-1.0836251527701179E-2,-0.10345919844552498,"",-0.14429182309426425,1.2726735628374475,"","","","","",-0.19439922360777318,-0.37000244066721832,-0.12496026516476255,-0.11938260097274356,1.1696693612274656E-2,-0.14429182309426414,"","","","",""]
[null,null,2051,11.135016738263046,3.2874160779945645,11.82756538141655,16.110890167157716,{"$f":"H151","v":7.8851447489695206},{"$f":"I151","v":9.2662377394823547},{"$f":"J151","v":11.081888049286754},{"$f":"K356","v":0},1.9437450000000001,{"$f":"M151","v":6.9717320267064427},{"$f":"N356","v":0},0,0,0,0,10.708624708521466,16.941222134679688,{"$f":"U151","v":7.3350183711344386},{"$f":"V151","v":8.6235667373385656},{"$f":"W151","v":11.763074744298343},6.4911869835152016,0,0,0,0,0,null,null,2051,-0.10584642137068256,-0.17455701335147245,-0.42950065369319002,-0.36040131013439181,-6.4740961707354772E-2,-1.0836251527701179E-2,-0.10345919844552498,"",-0.14429182309426425,1.2726735628374475,"","","","","",-0.19288181807843607,-0.37098337479832855,-0.12496026516476255,-0.11938260097274356,1.1696693612274656E-2,-0.14429182309426414,"","","","",""]
[null,null,2052,11.194148456934411,3.2998683942759368,11.797702221761389,16.081027007502556,7.8851447489695206,9.2662377394823547,11.081888049286754,{"$f":"K357","v":0},1.9437450000000001,6.9717320267064427,0,0,0,0,0,10.767756427192827,16.91135897502453,7.3350183711344386,8.6235667373385656,11.763074744298343,{"$f":"X357","v":6.4911869835152016},{"$f":"Y357","v":0},0,0,0,0,null,null,2052,-0.10480215169771923,-0.17431162705338243,-0.43090657512285568,-0.36155257243980665,-6.4740961707354772E-2,-1.0836251527701179E-2,-0.10345919844552498,"",-0.14429182309426425,1.2726735628374475,"","","","","",-0.19190273093074395,-0.37205935612693852,-0.12496026516476255,-0.11938260097274356,1.1696693612274656E-2,-0.14429182309426414,"","","","",""]
[null,null,2053,11.249502617056287,3.3114315807821186,11.771184257865398,16.054509043606568,7.8851447489695206,9.2662377394823547,11.081888049286754,{"$f":"K358","v":0},1.9437450000000001,6.9717320267064427,0,0,0,0,0,10.823110587314707,16.884841011128536,7.3350183711344386,8.6235667373385656,11.763074744298343,6.4911869835152016,0,0,0,0,0,null,null,2053,-0.10480215169771923,-0.17431162705338243,-0.43090657512285568,-0.36155257243980665,-6.4740961707354772E-2,-1.0836251527701179E-2,-0.10345919844552498,"",-0.14429182309426425,1.2726735628374475,"","","","","",-0.19190273093074395,-0.37205935612693852,-0.12496026516476255,-0.11938260097274356,1.1696693612274656E-2,-0.14429182309426414,"","","","",""]
[null,null,2054,11.295998400502221,3.3207169577151889,11.741773134628636,16.025097920369802,7.8851447489695206,9.2662377394823547,11.081888049286754,{"$f":"K359","v":0},1.9437450000000001,6.9717320267064427,0,0,0,0,0,10.869606370760637,16.855429887891777,7.3350183711344386,8.6235667373385656,11.763074744298343,6.4911869835152016,0,0,0,0,0,null,null,2054,-0.10480215169771923,-0.17431162705338243,-0.43090657512285568,-0.36155257243980665,-6.4740961707354772E-2,-1.0836251527701179E-2,-0.10345919844552498,"",-0.14429182309426425,1.2726735628374475,"","","","","",-0.19190273093074395,-0.37205935612693852,-0.12496026516476255,-0.11938260097274356,1.1696693612274656E-2,-0.14429182309426414,"","","","",""]
[null,null,2055,11.338943586067254,3.3291653939293067,11.715394576105913,15.998719361847078,7.8851447489695206,9.2662377394823547,11.081888049286754,{"$f":"K360","v":0},1.9437450000000001,6.9717320267064427,0,0,0,0,0,10.912551556325672,16.829051329369047,7.3350183711344386,8.6235667373385656,11.763074744298343,6.4911869835152016,0,0,0,0,0,null,null,2055,-0.10480215169771923,-0.17431162705338243,-0.43090657512285568,-0.36155257243980665,-6.4740961707354772E-2,-1.0836251527701179E-2,-0.10345919844552498,"",-0.14429182309426425,1.2726735628374475,"","","","","",-0.19190273093074395,-0.37205935612693852,-0.12496026516476255,-0.11938260097274356,1.1696693612274656E-2,-0.14429182309426414,"","","","",""]
[null,null,2056,11.373114153855393,3.3353528815778262,11.685743875665775,15.969068661406945,7.8851447489695206,9.2662377394823547,11.081888049286754,{"$f":"K361","v":0},1.9437450000000001,6.9717320267064427,0,0,0,0,0,10.946722124113814,16.799400628928918,7.3350183711344386,8.6235667373385656,11.763074744298343,6.4911869835152016,0,0,0,0,0,null,null,2056,-0.10480215169771923,-0.17431162705338243,-0.43090657512285568,-0.36155257243980665,-6.4740961707354772E-2,-1.0836251527701179E-2,-0.10345919844552498,"",-0.14429182309426425,1.2726735628374475,"","","","","",-0.19190273093074395,-0.37205935612693852,-0.12496026516476255,-0.11938260097274356,1.1696693612274656E-2,-0.14429182309426414,"","","","",""]
[null,null,2057,11.404619032166554,3.3409351785071464,11.65961566560226,15.942940451343427,7.8851447489695206,9.2662377394823547,11.081888049286754,{"$f":"K362","v":0},1.9437450000000001,6.9717320267064427,0,0,0,0,0,10.978227002424971,16.7732724188654,7.3350183711344386,8.6235667373385656,11.763074744298343,6.4911869835152016,0,0,0,0,0,null,null,2057,-0.10480215169771923,-0.17431162705338243,-0.43090657512285568,-0.36155257243980665,-6.4740961707354772E-2,-1.0836251527701179E-2,-0.10345919844552498,"",-0.14429182309426425,1.2726735628374475,"","","","","",-0.19190273093074395,-0.37205935612693852,-0.12496026516476255,-0.11938260097274356,1.1696693612274656E-2,-0.14429182309426414,"","","","",""]
[null,null,2058,11.427951690823358,3.3444144797946187,11.630455268489058,15.913780054230225,7.8851447489695206,9.2662377394823547,11.081888049286754,{"$f":"K363","v":0},1.9437450000000001,6.9717320267064427,0,0,0,0,0,11.001559661081775,16.744112021752198,7.3350183711344386,8.6235667373385656,11.763074744298343,6.4911869835152016,0,0,0,0,0,null,null,2058,-0.10480215169771923,-0.17431162705338243,-0.43090657512285568,-0.36155257243980665,-6.4740961707354772E-2,-1.0836251527701179E-2,-0.10345919844552498,"",-0.14429182309426425,1.2726735628374475,"","","","","",-0.19190273093074395,-0.37205935612693852,-0.12496026516476255,-0.11938260097274356,1.1696693612274656E-2,-0.14429182309426414,"","","","",""]
[null,null,2059,11.448673899577695,3.3472954033437357,11.604383943713351,15.88770872945452,7.8851447489695206,9.2662377394823547,11.081888049286754,{"$f":"K364","v":0},1.9437450000000001,6.9717320267064427,0,0,0,0,0,11.022281869836112,16.718040696976491,7.3350183711344386,8.6235667373385656,11.763074744298343,6.4911869835152016,0,0,0,0,0,null,null,2059,-0.10480215169771923,-0.17431162705338243,-0.43090657512285568,-0.36155257243980665,-6.4740961707354772E-2,-1.0836251527701179E-2,-0.10345919844552498,"",-0.14429182309426425,1.2726735628374475,"","","","","",-0.19190273093074395,-0.37205935612693852,-0.12496026516476255,-0.11938260097274356,1.1696693612274656E-2,-0.14429182309426414,"","","","",""]
[null,null,2060,11.46204464844536,3.3482904816724948,11.575786448956956,15.859111234698121,7.8851447489695206,9.2662377394823547,11.081888049286754,{"$f":"K365","v":0},1.9437450000000001,6.9717320267064427,0,0,0,0,0,11.035652618703775,16.689443202220097,7.3350183711344386,8.6235667373385656,11.763074744298343,6.4911869835152016,0,0,0,0,0,null,null,2060,-0.10480215169771923,-0.17431162705338243,-0.43090657512285568,-0.36155257243980665,-6.4740961707354772E-2,-1.0836251527701179E-2,-0.10345919844552498,"",-0.14429182309426425,1.2726735628374475,"","","","","",-0.19190273093074395,-0.37205935612693852,-0.12496026516476255,-0.11938260097274356,1.1696693612274656E-2,-0.14429182309426414,"","","","",""]
[null,null,2061,{"$f":"D161","v":11.46204464844536},{"$f":"E161","v":3.3482904816724948},{"$f":"F161","v":11.575786448956956},{"$f":"G161","v":15.859111234698121},7.8851447489695206,9.2662377394823547,11.081888049286754,{"$f":"K366","v":0},1.9437450000000001,6.9717320267064427,{"$f":"N366","v":0},0,0,0,0,{"$f":"S161","v":11.035652618703775},{"$f":"T161","v":16.689443202220097},7.3350183711344386,8.6235667373385656,11.763074744298343,6.4911869835152016,0,0,0,0,0,null,null,2061,-0.10480215169771923,-0.17431162705338243,-0.43090657512285568,-0.36155257243980665,-6.4740961707354772E-2,-1.0836251527701179E-2,-0.10345919844552498,"",-0.14429182309426425,1.2726735628374475,"","","","","",-0.19190273093074395,-0.37205935612693852,-0.12496026516476255,-0.11938260097274356,1.1696693612274656E-2,-0.14429182309426414,"","","","",""]
[null,null,2062,11.46204464844536,3.3482904816724948,11.575786448956956,15.859111234698121,7.8851447489695206,9.2662377394823547,11.081888049286754,{"$f":"K367","v":0},1.9437450000000001,6.9717320267064427,0,0,0,0,0,11.035652618703775,16.689443202220097,7.3350183711344386,8.6235667373385656,11.763074744298343,{"$f":"X367","v":6.4911869835152016},{"$f":"Y367","v":0},0,0,0,0,null,null,2062,-0.10480215169771923,-0.17431162705338243,-0.43090657512285568,-0.36155257243980665,-6.4740961707354772E-2,-1.0836251527701179E-2,-0.10345919844552498,"",-0.14429182309426425,1.2726735628374475,"","","","","",-0.19190273093074395,-0.37205935612693852,-0.12496026516476255,-0.11938260097274356,1.1696693612274656E-2,-0.14429182309426414,"","","","",""]
[null,null,2063,11.46204464844536,3.3482904816724948,11.575786448956956,15.859111234698121,7.8851447489695206,9.2662377394823547,11.081888049286754,{"$f":"K368","v":0},1.9437450000000001,6.9717320267064427,0,0,0,0,0,11.035652618703775,16.689443202220097,7.3350183711344386,8.6235667373385656,11.763074744298343,6.4911869835152016,0,0,0,0,0,null,null,2063,-0.10480215169771923,-0.17431162705338243,-0.43090657512285568,-0.36155257243980665,-6.4740961707354772E-2,-1.0836251527701179E-2,-0.10345919844552498,"",-0.14429182309426425,1.2726735628374475,"","","","","",-0.19190273093074395,-0.37205935612693852,-0.12496026516476255,-0.11938260097274356,1.1696693612274656E-2,-0.14429182309426414,"","","","",""]
[null,null,2064,11.46204464844536,3.3482904816724948,11.575786448956956,15.859111234698121,7.8851447489695206,9.2662377394823547,11.081888049286754,{"$f":"K369","v":0},1.9437450000000001,6.9717320267064427,0,0,0,0,0,11.035652618703775,16.689443202220097,7.3350183711344386,8.6235667373385656,11.763074744298343,6.4911869835152016,0,0,0,0,0,null,null,2064,-0.10480215169771923,-0.17431162705338243,-0.43090657512285568,-0.36155257243980665,-6.4740961707354772E-2,-1.0836251527701179E-2,-0.10345919844552498,"",-0.14429182309426425,1.2726735628374475,"","","","","",-0.19190273093074395,-0.37205935612693852,-0.12496026516476255,-0.11938260097274356,1.1696693612274656E-2,-0.14429182309426414,"","","","",""]
[null,null,2065,11.46204464844536,3.3482904816724948,11.575786448956956,15.859111234698121,7.8851447489695206,9.2662377394823547,11.081888049286754,{"$f":"K370","v":0},1.9437450000000001,6.9717320267064427,0,0,0,0,0,11.035652618703775,16.689443202220097,7.3350183711344386,8.6235667373385656,11.763074744298343,6.4911869835152016,0,0,0,0,0,null,null,2065,-0.10480215169771923,-0.17431162705338243,-0.43090657512285568,-0.36155257243980665,-6.4740961707354772E-2,-1.0836251527701179E-2,-0.10345919844552498,"",-0.14429182309426425,1.2726735628374475,"","","","","",-0.19190273093074395,-0.37205935612693852,-0.12496026516476255,-0.11938260097274356,1.1696693612274656E-2,-0.14429182309426414,"","","","",""]
[null,null,2066,11.46204464844536,3.3482904816724948,11.575786448956956,15.859111234698121,7.8851447489695206,9.2662377394823547,11.081888049286754,{"$f":"K371","v":0},1.9437450000000001,6.9717320267064427,0,0,0,0,0,11.035652618703775,16.689443202220097,7.3350183711344386,8.6235667373385656,11.763074744298343,6.4911869835152016,0,0,0,0,0,null,null,2066,-0.10480215169771923,-0.17431162705338243,-0.43090657512285568,-0.36155257243980665,-6.4740961707354772E-2,-1.0836251527701179E-2,-0.10345919844552498,"",-0.14429182309426425,1.2726735628374475,"","","","","",-0.19190273093074395,-0.37205935612693852,-0.12496026516476255,-0.11938260097274356,1.1696693612274656E-2,-0.14429182309426414,"","","","",""]
[null,null,2067,11.46204464844536,3.3482904816724948,11.575786448956956,15.859111234698121,7.8851447489695206,9.2662377394823547,11.081888049286754,{"$f":"K372","v":0},1.9437450000000001,6.9717320267064427,0,0,0,0,0,11.035652618703775,16.689443202220097,7.3350183711344386,8.6235667373385656,11.763074744298343,6.4911869835152016,0,0,0,0,0,null,null,2067,-0.10480215169771923,-0.17431162705338243,-0.43090657512285568,-0.36155257243980665,-6.4740961707354772E-2,-1.0836251527701179E-2,-0.10345919844552498,"",-0.14429182309426425,1.2726735628374475,"","","","","",-0.19190273093074395,-0.37205935612693852,-0.12496026516476255,-0.11938260097274356,1.1696693612274656E-2,-0.14429182309426414,"","","","",""]
[null,null,2068,11.46204464844536,3.3482904816724948,11.575786448956956,15.859111234698121,7.8851447489695206,9.2662377394823547,11.081888049286754,{"$f":"K373","v":0},1.9437450000000001,6.9717320267064427,0,0,0,0,0,11.035652618703775,16.689443202220097,7.3350183711344386,8.6235667373385656,11.763074744298343,6.4911869835152016,0,0,0,0,0,null,null,2068,"","","","","","","","","","","","","","","","","","","","","","","","","",""]
[null,null,2069,11.46204464844536,3.3482904816724948,11.575786448956956,15.859111234698121,7.8851447489695206,9.2662377394823547,11.081888049286754,{"$f":"K374","v":0},1.9437450000000001,6.9717320267064427,0,0,0,0,0,11.035652618703775,16.689443202220097,7.3350183711344386,8.6235667373385656,11.763074744298343,6.4911869835152016,0,0,0,0,0,null,null,2069,"","","","","","","","","","","","","","","","","","","","","","","","","",""]
[null,null,2070,11.46204464844536,3.3482904816724948,11.575786448956956,15.859111234698121,7.8851447489695206,9.2662377394823547,11.081888049286754,{"$f":"K375","v":0},1.9437450000000001,6.9717320267064427,0,0,0,0,0,11.035652618703775,16.689443202220097,7.3350183711344386,8.6235667373385656,11.763074744298343,6.4911869835152016,0,0,0,0,0,null,null,2070,"","","","","","","","","","","","","","","","","","","","","","","","","",""]
[null,null,2071,11.46204464844536,3.3482904816724948,11.575786448956956,15.859111234698121,7.8851447489695206,9.2662377394823547,11.081888049286754,{"$f":"K376","v":0},1.9437450000000001,6.9717320267064427,{"$f":"N376","v":0},0,0,0,0,11.035652618703775,16.689443202220097,7.3350183711344386,8.6235667373385656,11.763074744298343,6.4911869835152016,0,0,0,0,0,null,null,2071,"","","","","","","","","","","","","","","","","","","","","","","","","",""]
[null,null,2072,11.46204464844536,3.3482904816724948,11.575786448956956,15.859111234698121,7.8851447489695206,9.2662377394823547,11.081888049286754,{"$f":"K377","v":0},1.9437450000000001,6.9717320267064427,0,0,0,0,0,11.035652618703775,16.689443202220097,7.3350183711344386,8.6235667373385656,11.763074744298343,{"$f":"X377","v":6.4911869835152016},{"$f":"Y377","v":0},0,0,0,0,null,null,2072,-0.14429182309426425,-0.14429182309426425,-0.14429182309426425,-0.14429182309426425,-0.14429182309426425,-0.14429182309426425,-0.14429182309426436,-0.14429182309426425,-0.14429182309426425,-0.14429182309426436,"","","","","",-0.14429182309426425,-0.14429182309426425,-0.14429182309426425,-0.14429182309426425,-0.14429182309426425,-0.14429182309426425,"","","","",""]
[null,null,2073,11.46204464844536,3.3482904816724948,11.575786448956956,15.859111234698121,7.8851447489695206,9.2662377394823547,11.081888049286754,{"$f":"K378","v":0},1.9437450000000001,6.9717320267064427,0,0,0,0,0,11.035652618703775,16.689443202220097,7.3350183711344386,8.6235667373385656,11.763074744298343,6.4911869835152016,0,0,0,0,0,null,null,2073,-0.14429182309426436,-0.14429182309426436,-0.14429182309426425,-0.14429182309426436,-0.14429182309426425,-0.14429182309426414,-0.14429182309426436,-0.14429182309426414,-0.14429182309426425,-0.14429182309426436,"","","","","",-0.14429182309426436,-0.14429182309426425,-0.14429182309426425,-0.14429182309426436,-0.14429182309426425,-0.14429182309426414,"","","","",""]
[null,null,2074,11.46204464844536,3.3482904816724948,11.575786448956956,15.859111234698121,7.8851447489695206,9.2662377394823547,11.081888049286754,{"$f":"K379","v":0},1.9437450000000001,6.9717320267064427,0,0,0,0,0,11.035652618703775,16.689443202220097,7.3350183711344386,8.6235667373385656,11.763074744298343,6.4911869835152016,0,0,0,0,0,null,null,2074,-0.14429182309426425,-0.14429182309426436,-0.14429182309426436,-0.14429182309426436,-0.14429182309426425,-0.14429182309426414,-0.14429182309426436,"",-0.14429182309426425,-0.14429182309426436,"","","","","",-0.14429182309426425,-0.14429182309426436,-0.14429182309426436,-0.14429182309426425,-0.14429182309426414,-0.14429182309426414,"","","","",""]
[null,null,2075,11.46204464844536,3.3482904816724948,11.575786448956956,15.859111234698121,7.8851447489695206,9.2662377394823547,11.081888049286754,{"$f":"K380","v":0},1.9437450000000001,6.9717320267064427,0,0,0,0,0,11.035652618703775,16.689443202220097,7.3350183711344386,8.6235667373385656,11.763074744298343,6.4911869835152016,0,0,0,0,0,null,null,2075,-0.14429182309426436,-0.14429182309426436,-0.14429182309426414,-0.14429182309426425,-0.14429182309426425,-0.14429182309426436,-0.14429182309426425,"",-0.14429182309426425,-0.14429182309426436,"","","","","",-0.14429182309426425,-0.14429182309426436,-0.14429182309426425,-0.14429182309426414,-0.14429182309426436,-0.14429182309426414,"","","","",""]
[]
[null,null,"CustomFuel2-scenario (Here the user can include his or her own  fuel price data. By  default the green cells in the table displays the `CustomFuel´-data and the yellow displays by default prices from the latest Danish Outlook) "]
[null,null,null,"Central power station",null,null,null,null,null,null,null,null,null,null,null,null,null,null,"Decentral power station"]
[null,null,{"$f":"$D$23&$E$23&\"/GJ\"","v":"EUR2014/GJ"},{"$f":"D316","v":"Natural gas"},{"$f":"E316","v":"Coal"},"Fueloil","Gas oil","Straw","Wood chips","Wood pellets","Energy crops","Uranium","Local biomass","wind","solar","New fuel 3","New fuel 4","New fuel 5","Natural gas","Gas oil","Straw","Wood chips","Wood pellets","Energy crops","New fuel 1","New fuel 2","New fuel 3","New fuel 4","New fuel 5"]
[null,"CustomFuel2",2012,{"$f":"D317","v":8.0000860062036843},3.5864545540024224,13.000380941126805,16.239411156201633,5.3315889650073114,5.9239877388970132,8.0761822945043136,6.4918859980143111,1.9437450000000001,2.625,0,0,0,0,0,8.4703112264821154,17.961014785005343,5.3315889650073114,5.9239877388970132,8.6458282824681483,6.4918859980143111,0,0,0,0,0]
[null,null,2013,{"$f":"D318","v":10.192106337696909},2.6408895835453592,12.871060096427552,16.113547274888926,5.3631325900583153,5.9590362111759054,8.9769910280699783,6.4911869835152016,1.9437450000000001,2.625,0,0,0,0,0,10.921527871314668,17.835150903692636,5.4189082908267148,6.4676775941652238,8.6740049976004556,6.4911869835152016,0,0,0,0,0]
[null,null,2014,{"$f":"D319","v":7.5585522408571242},2.3889326651874234,11.12813229461676,14.978281644016331,5.3946762151093184,5.9940846834547967,8.9908059399220548,0,1.9437450000000001,2.625,0,0,0,0,0,8.2879737744748816,16.46544917938963,5.4480518892300811,6.4973160063487425,8.702181712732763,6.4911869835152016,0,0,0,0,0]
[null,null,2015,{"$f":"D320","v":7.2039851304919598},2.2309204029772092,7.4125588883781077,11.262708237777677,5.4262198401603214,6.0291331557336907,9.0046208517741331,0,1.9437450000000001,2.625,0,0,0,0,0,7.933406664109719,12.74987577315097,5.4771954876334474,6.526954418532263,8.7303584278650685,6.4911869835152016,0,0,0,0,0]
[null,null,2016,{"$f":"D321","v":7.2792255359018618},2.1464073273037965,8.2881076314735598,12.13825698087313,5.4816570162115381,6.0907300180128212,9.0646272945521567,0,1.9437450000000001,2.625,0,0,0,0,0,8.0086470695196184,13.625424516246422,5.5449888873521145,6.5647769544451888,8.7635001502185794,6.4911869835152016,0,0,0,0,0]
[null,null,2017,{"$f":"D322","v":7.2168503107456043},2.1343304094781956,8.5321768630855317,12.382326212485101,5.5370941922627575,6.1523268802919509,9.1246337373301802,0,1.9437450000000001,2.625,0,0,0,0,0,7.9462718443633635,13.869493747858396,5.6127822870707815,6.6025994903581138,8.7966418725720921,6.4911869835152016,0,0,0,0,0]
[null,null,2018,{"$f":"D323","v":7.1611038596598906},2.1134274942792719,8.6135729778659833,12.463722327265552,5.5925313683139741,6.2139237425710814,9.1846401801082038,0,1.9437450000000001,2.625,0,0,0,0,0,7.890525393277648,13.950889862638846,5.6805756867894486,6.6404220262710387,8.8297835949256029,6.4911869835152016,0,0,0,0,0]
[null,null,2019,{"$f":"D324","v":7.1611038596598897},2.1188075545343006,8.5963700675655268,12.446519416965099,5.6479685443651917,6.2755206048502119,9.2446466228862292,0,1.9437450000000001,2.625,0,0,0,0,0,7.890525393277648,13.933686952338391,5.7165773452294744,6.6782445621839654,8.8629253172791138,6.4911869835152016,0,0,0,0,0]
[null,null,2020,{"$f":"D325","v":7.1611038596598906},2.0994084642339059,8.4897140982799719,12.339863447679544,5.7034057204164066,6.3371174671293415,9.3046530656642528,0,1.9437450000000001,2.625,0,0,0,0,0,7.8905253932776498,13.827030983052836,5.7489534359709369,6.7160670980968895,8.8960670396326247,6.4911869835152016,0,0,0,0,0]
[null,null,2021,{"$f":"D326","v":7.1091852366118795},2.1829892880324335,8.4455155470050087,12.295664896404578,5.76028069727111,6.4003118858567891,9.3405672258325474,0,1.9437450000000001,2.625,0,0,0,0,0,7.8386067702296378,13.782832431777871,5.7790060466391884,6.7511752881298923,8.9305800657414949,6.4911869835152016,0,0,0,0,0]
[null,null,2022,{"$f":"D327","v":7.1110003666621964},2.2667333967724015,8.5292407456686359,12.379390095068205,5.8171556741258135,6.4635063045842376,9.3764813860008402,0,1.9437450000000001,2.625,0,0,0,0,0,7.840421900279952,13.866557630441502,5.8090586573074408,6.7862834781628978,8.9650930918503668,6.4911869835152016,0,0,0,0,0]
[null,null,2023,{"$f":"D328","v":7.1665492498108385},2.3552823616659193,8.8117965374530023,12.661945886852573,5.8740306509805187,6.5267007233116869,9.4123955461691349,0,1.9437450000000001,2.625,0,0,0,0,0,7.8959707834285959,14.149113422225867,5.8391112679756931,6.8213916681959041,8.9996061179592353,6.4911869835152016,0,0,0,0,0]
[null,null,2024,{"$f":"D329","v":7.2758318860578068},2.4486361827129874,9.1844224266907144,13.034571776090285,5.9309056278352221,6.5898951420391354,9.4483097063374295,0,1.9437450000000001,2.625,0,0,0,0,0,8.0052534196755651,14.521739311463582,5.8691638786439464,6.8564998582289087,9.0341191440681055,6.4911869835152016,0,0,0,0,0]
[null,null,2025,{"$f":"D330","v":7.4388482754031022},2.5467948599136063,9.6471184133817722,13.497267762781341,5.9877806046899256,6.6530895607665848,9.4842238665057224,0,1.9437450000000001,2.625,0,0,0,0,0,8.1682698090208596,14.984435298154635,5.9016356830311194,6.8944342091485042,9.0686321701769703,6.4911869835152016,0,0,0,0,0]
[null,null,2026,{"$f":"D331","v":7.6555984178467238},2.6497583932677751,10.199884497526163,14.050033846925738,6.042286637153846,6.7136518190598302,9.5280929290784915,0,1.9437450000000001,2.625,0,0,0,0,0,8.3850199514644803,15.537201382299031,5.9563024457795555,6.958297249742472,9.1051309336728572,6.4911869835152016,0,0,0,0,0]
[null,null,2027,{"$f":"D332","v":7.9260823133886706},2.757526782775495,10.842720679123909,14.692870028523478,6.0967926696177681,6.7742140773530748,9.5719619916512624,0,1.9437450000000001,2.625,0,0,0,0,0,8.6555038470064307,16.180037563896772,6.0109692085279915,7.0221602903364388,9.1416296971687441,6.4911869835152016,0,0,0,0,0]
[null,null,2028,{"$f":"D333","v":8.2502999620289472},2.8701000284367644,11.575626958174988,15.425776307574559,6.1512987020816876,6.8347763356463203,9.6158310542240315,0,1.9437450000000001,2.625,0,0,0,0,0,8.9797214956467073,16.912943842947858,6.0656359712764276,7.0860233309304057,9.1781284606646274,6.4911869835152016,0,0,0,0,0]
[null,null,2029,{"$f":"D334","v":8.6282513637675482},2.987478130251584,12.398603334679406,16.248752684078976,6.2058047345456089,6.8953385939395657,9.6597001167968024,0,1.9437450000000001,2.625,0,0,0,0,0,9.3576728973853065,17.735920219452272,6.1203027340248628,7.1498863715243726,9.2146272241605161,6.4911869835152016,0,0,0,0,0]
[null,null,2030,{"$f":"D335","v":9.0599365186044771},3.1096610882199536,13.311649808637176,17.161799158036747,6.2603107670095302,6.9559008522328112,9.7035691793695715,0,1.9437450000000001,2.625,0,0,0,0,0,9.7893580522222354,18.648966693410038,6.1749694967732989,7.2137494121183394,9.2511259876564029,6.4911869835152016,0,0,0,0,0]
[null,null,2031,{"$f":"D336","v":9.1547607887779954},3.1276792987957673,13.516354575576589,17.366503924976158,6.3071993315615931,7.0079992572906589,9.7491036013747205,0,1.9437450000000001,2.625,0,0,0,0,0,9.8841823223957537,18.853671460349453,6.2265139683960067,7.2739649163504758,9.2838211292682207,6.4911869835152016,0,0,0,0,0]
[null,null,2032,{"$f":"D337","v":9.2495850589515118},3.1456975093715807,13.721059342516003,17.571208691915572,6.3540878961136551,7.0600976623485057,9.7946380233798713,0,1.9437450000000001,2.625,0,0,0,0,0,9.9790065925692719,19.058376227288868,6.2780584400187154,7.3341804205826122,9.3165162708800384,6.4911869835152016,0,0,0,0,0]
[null,null,2033,{"$f":"D338","v":9.3444093291250301},3.1637157199473935,13.925764109455415,17.775913458854983,6.400976460665718,7.1121960674063542,9.8401724453850203,0,1.9437450000000001,2.625,0,0,0,0,0,10.073830862742788,19.263080994228279,6.329602911641425,7.3943959248147486,9.3492114124918544,6.4911869835152016,0,0,0,0,0]
[null,null,2034,{"$f":"D339","v":9.4392335992985483},3.1817339305232073,14.130468876394826,17.980618225794398,6.4478650252177818,7.1642944724642019,9.8857068673901694,0,1.9437450000000001,2.625,0,0,0,0,0,10.168655132916307,19.467785761167693,6.3811473832641337,7.454611429046885,9.3819065541036739,6.4911869835152016,0,0,0,0,0]
[null,null,2035,{"$f":"D340","v":9.5340578694720666},3.1997521410990206,14.335173643334242,18.185322992733809,6.4947535897698465,7.2163928775220514,9.9312412893953219,0,1.9437450000000001,2.625,0,0,0,0,0,10.263479403089823,19.672490528107108,6.4326918548868415,7.5148269332790214,9.4146016957154899,6.4911869835152016,0,0,0,0,0]
[null,null,2036,{"$f":"D341","v":9.6288821396455795},3.2177703516748335,14.539878410273653,18.390027759673224,6.5401081556520895,7.2667868396134327,9.9717565273642972,0,1.9437450000000001,2.625,0,0,0,0,0,10.358303673263338,19.877195295046516,6.4809934606046484,7.5712540427624404,9.4457671993259975,6.4911869835152016,0,0,0,0,0]
[null,null,2037,{"$f":"D342","v":9.7237064098190977},3.2357885622506464,14.744583177213066,18.594732526612635,6.5854627215343324,7.3171808017048141,10.012271765333272,0,1.9437450000000001,2.625,0,0,0,0,0,10.453127943436856,20.081900061985934,6.5292950663224563,7.6276811522458603,9.4769327029365069,6.4911869835152016,0,0,0,0,0]
[null,null,2038,{"$f":"D343","v":9.8185306799926177},3.2538067728264597,14.949287944152482,18.79943729355205,6.6308172874165763,7.3675747637961955,10.052787003302248,0,1.9437450000000001,2.625,0,0,0,0,0,10.547952213610376,20.286604828925348,6.5775966720402632,7.6841082617292793,9.5080982065470163,6.4911869835152016,0,0,0,0,0]
[null,null,2039,{"$f":"D344","v":9.9133549501661324},3.2718249834022735,15.153992711091897,19.004142060491464,6.6761718532988192,7.4179687258875768,10.093302241271223,0,1.9437450000000001,2.625,0,0,0,0,0,10.642776483783889,20.491309595864763,6.6258982777580693,7.7405353712126983,9.5392637101575257,6.4911869835152016,0,0,0,0,0]
[null,null,2040,{"$f":"D345","v":10.008179220339651},3.2898431939780868,15.35869747803131,19.208846827430882,6.721526419181064,7.46836268797896,10.1338174792402,0,1.9437450000000001,2.625,0,0,0,0,0,10.737600753957407,20.696014362804174,6.674199883475878,7.7969624806961182,9.5704292137680316,6.4911869835152016,0,0,0,0,0]
[null,null,2041,{"$f":"D346","v":10.103003490513169},3.3078614045539005,15.563402244970723,19.413551594370293,6.7683181855828272,7.5203535395364742,10.172293373209165,0,1.9437450000000001,2.625,0,0,0,0,0,10.832425024130925,20.900719129743592,6.7214861766531779,7.8522034773985725,9.6032274742428978,6.4911869835152016,0,0,0,0,0]
[null,null,2042,{"$f":"D347","v":10.197827760686687},3.3258796151297139,15.768107011910136,19.618256361309705,6.8151099519845895,7.5723443910939894,10.210769267178129,0,1.9437450000000001,2.625,0,0,0,0,0,10.927249294304445,21.105423896682996,6.7687724698304779,7.907444474101025,9.6360257347177622,6.4911869835152016,0,0,0,0,0]
[null,null,2043,{"$f":"D348","v":10.292652030860204},3.3438978257055272,15.972811778849549,19.822961128249123,6.8619017183863518,7.6243352426515036,10.249245161147094,0,1.9437450000000001,2.625,0,0,0,0,0,11.02207356447796,21.310128663622415,6.8160587630077778,7.9626854708034784,9.6688239951926285,6.4911869835152016,0,0,0,0,0]
[null,null,2044,{"$f":"D349","v":10.387476301033722},3.3619160362813409,16.177516545788965,20.027665895188534,6.908693484788115,7.6763260942090188,10.28772105511606,0,1.9437450000000001,2.625,0,0,0,0,0,11.11689783465148,21.514833430561829,6.8633450561850777,8.0179264675059319,9.7016222556674929,6.4911869835152016,0,0,0,0,0]
[null,null,2045,{"$f":"D350","v":10.482300571207238},3.3799342468571538,16.38222131272838,20.232370662127945,6.955485251189879,7.7283169457665331,10.326196949085025,0,1.9437450000000001,2.625,0,0,0,0,0,11.211722104824998,21.719538197501247,6.9106313493623777,8.0731674642083853,9.7344205161423627,6.4911869835152016,0,0,0,0,0]
[null,null,2046,{"$f":"D351","v":10.577124841380755},3.3979524574329667,16.586926079667791,20.437075429067363,7.0072789000027624,7.7858654444475137,10.376391057193979,0,1.9437450000000001,2.625,0,0,0,0,0,11.306546374998511,21.924242964440655,6.9630994065956004,8.1344619235929905,9.7774132817033941,6.4911869835152016,0,0,0,0,0]
[null,null,2047,{"$f":"D352","v":10.671949111554273},3.41597066800878,16.791630846607198,20.641780196006771,7.0590725488156449,7.8434139431284953,10.426585165302933,0,1.9437450000000001,2.625,0,0,0,0,0,11.401370645172031,22.12894773138007,7.0155674638288223,8.1957563829775957,9.8204060472644255,6.4911869835152016,0,0,0,0,0]
[null,null,2048,{"$f":"D353","v":10.766773381727791},3.4339888785845933,16.996335613546616,20.846484962946189,7.1108661976285283,7.9009624418094768,10.476779273411886,0,1.9437450000000001,2.625,0,0,0,0,0,11.496194915345551,22.333652498319484,7.0680355210620451,8.2570508423622027,9.8633988128254568,6.4911869835152016,0,0,0,0,0]
[null,null,2049,{"$f":"D354","v":10.861597651901308},3.4520070891604067,17.201040380486027,21.051189729885596,7.1626598464414117,7.9585109404904575,10.526973381520841,0,1.9437450000000001,2.625,0,0,0,0,0,11.591019185519064,22.538357265258888,7.1205035782952679,8.3183453017468079,9.9063915783864882,6.4911869835152016,0,0,0,0,0]
[null,null,2050,{"$f":"D355","v":10.956421922074826},3.47002529973622,17.405745147425439,21.255894496825015,7.2144534952542934,8.0160594391714373,10.577167489629792,0,1.9437450000000001,2.625,0,0,0,0,0,11.685843455692584,22.743062032198306,7.1729716355284907,8.3796397611314148,9.9493843439475231,6.4911869835152016,0,0,0,0,0]
[null,null,2051,{"$f":"D356","v":10.956421922074826},3.47002529973622,17.405745147425439,21.255894496825015,7.2144534952542934,8.0160594391714373,10.577167489629792,0,1.9437450000000001,2.625,0,0,0,0,0,11.685843455692584,22.743062032198306,7.1729716355284907,8.3796397611314148,9.9493843439475231,6.4911869835152016,0,0,0,0,0]
[null,null,2052,{"$f":"D357","v":10.956421922074826},3.47002529973622,17.405745147425439,21.255894496825015,7.2144534952542934,8.0160594391714373,10.577167489629792,0,1.9437450000000001,2.625,0,0,0,0,0,11.685843455692584,22.743062032198306,7.1729716355284907,8.3796397611314148,9.9493843439475231,6.4911869835152016,0,0,0,0,0]
[null,null,2053,{"$f":"D358","v":10.956421922074826},3.47002529973622,17.405745147425439,21.255894496825015,7.2144534952542934,8.0160594391714373,10.577167489629792,0,1.9437450000000001,2.625,0,0,0,0,0,11.685843455692584,22.743062032198306,7.1729716355284907,8.3796397611314148,9.9493843439475231,6.4911869835152016,0,0,0,0,0]
[null,null,2054,{"$f":"D359","v":10.956421922074826},3.47002529973622,17.405745147425439,21.255894496825015,7.2144534952542934,8.0160594391714373,10.577167489629792,0,1.9437450000000001,2.625,0,0,0,0,0,11.685843455692584,22.743062032198306,7.1729716355284907,8.3796397611314148,9.9493843439475231,6.4911869835152016,0,0,0,0,0]
[null,null,2055,{"$f":"D360","v":10.956421922074826},3.47002529973622,17.405745147425439,21.255894496825015,7.2144534952542934,8.0160594391714373,10.577167489629792,0,1.9437450000000001,2.625,0,0,0,0,0,11.685843455692584,22.743062032198306,7.1729716355284907,8.3796397611314148,9.9493843439475231,6.4911869835152016,0,0,0,0,0]
[null,null,2056,{"$f":"D361","v":10.956421922074826},3.47002529973622,17.405745147425439,21.255894496825015,7.2144534952542934,8.0160594391714373,10.577167489629792,0,1.9437450000000001,2.625,0,0,0,0,0,11.685843455692584,22.743062032198306,7.1729716355284907,8.3796397611314148,9.9493843439475231,6.4911869835152016,0,0,0,0,0]
[null,null,2057,{"$f":"D362","v":10.956421922074826},3.47002529973622,17.405745147425439,21.255894496825015,7.2144534952542934,8.0160594391714373,10.577167489629792,0,1.9437450000000001,2.625,0,0,0,0,0,11.685843455692584,22.743062032198306,7.1729716355284907,8.3796397611314148,9.9493843439475231,6.4911869835152016,0,0,0,0,0]
[null,null,2058,{"$f":"D363","v":10.956421922074826},3.47002529973622,17.405745147425439,21.255894496825015,7.2144534952542934,8.0160594391714373,10.577167489629792,0,1.9437450000000001,2.625,0,0,0,0,0,11.685843455692584,22.743062032198306,7.1729716355284907,8.3796397611314148,9.9493843439475231,6.4911869835152016,0,0,0,0,0]
[null,null,2059,{"$f":"D364","v":10.956421922074826},3.47002529973622,17.405745147425439,21.255894496825015,7.2144534952542934,8.0160594391714373,10.577167489629792,0,1.9437450000000001,2.625,0,0,0,0,0,11.685843455692584,22.743062032198306,7.1729716355284907,8.3796397611314148,9.9493843439475231,6.4911869835152016,0,0,0,0,0]
[null,null,2060,{"$f":"D365","v":10.956421922074826},3.47002529973622,17.405745147425439,21.255894496825015,7.2144534952542934,8.0160594391714373,10.577167489629792,0,1.9437450000000001,2.625,0,0,0,0,0,11.685843455692584,22.743062032198306,7.1729716355284907,8.3796397611314148,9.9493843439475231,6.4911869835152016,0,0,0,0,0]
[null,null,2061,{"$f":"D366","v":10.956421922074826},3.47002529973622,17.405745147425439,21.255894496825015,7.2144534952542934,8.0160594391714373,10.577167489629792,0,1.9437450000000001,2.625,0,0,0,0,0,11.685843455692584,22.743062032198306,7.1729716355284907,8.3796397611314148,9.9493843439475231,6.4911869835152016,0,0,0,0,0]
[null,null,2062,{"$f":"D367","v":10.956421922074826},3.47002529973622,17.405745147425439,21.255894496825015,7.2144534952542934,8.0160594391714373,10.577167489629792,0,1.9437450000000001,2.625,0,0,0,0,0,11.685843455692584,22.743062032198306,7.1729716355284907,8.3796397611314148,9.9493843439475231,6.4911869835152016,0,0,0,0,0]
[null,null,2063,{"$f":"D368","v":10.956421922074826},3.47002529973622,17.405745147425439,21.255894496825015,7.2144534952542934,8.0160594391714373,10.577167489629792,0,1.9437450000000001,2.625,0,0,0,0,0,11.685843455692584,22.743062032198306,7.1729716355284907,8.3796397611314148,9.9493843439475231,6.4911869835152016,0,0,0,0,0]
[null,null,2064,{"$f":"D369","v":10.956421922074826},3.47002529973622,17.405745147425439,21.255894496825015,7.2144534952542934,8.0160594391714373,10.577167489629792,0,1.9437450000000001,2.625,0,0,0,0,0,11.685843455692584,22.743062032198306,7.1729716355284907,8.3796397611314148,9.9493843439475231,6.4911869835152016,0,0,0,0,0]
[null,null,2065,{"$f":"D370","v":10.956421922074826},3.47002529973622,17.405745147425439,21.255894496825015,7.2144534952542934,8.0160594391714373,10.577167489629792,0,1.9437450000000001,2.625,0,0,0,0,0,11.685843455692584,22.743062032198306,7.1729716355284907,8.3796397611314148,9.9493843439475231,6.4911869835152016,0,0,0,0,0]
[null,null,2066,{"$f":"D371","v":10.956421922074826},3.47002529973622,17.405745147425439,21.255894496825015,7.2144534952542934,8.0160594391714373,10.577167489629792,0,1.9437450000000001,2.625,0,0,0,0,0,11.685843455692584,22.743062032198306,7.1729716355284907,8.3796397611314148,9.9493843439475231,6.4911869835152016,0,0,0,0,0]
[null,null,2067,{"$f":"D372","v":10.956421922074826},3.47002529973622,17.405745147425439,21.255894496825015,7.2144534952542934,8.0160594391714373,10.577167489629792,0,1.9437450000000001,2.625,0,0,0,0,0,11.685843455692584,22.743062032198306,7.1729716355284907,8.3796397611314148,9.9493843439475231,6.4911869835152016,0,0,0,0,0]
[null,null,2068,{"$f":"D373","v":10.956421922074826},3.47002529973622,17.405745147425439,21.255894496825015,7.2144534952542934,8.0160594391714373,10.577167489629792,0,1.9437450000000001,2.625,0,0,0,0,0,11.685843455692584,22.743062032198306,7.1729716355284907,8.3796397611314148,9.9493843439475231,6.4911869835152016,0,0,0,0,0]
[null,null,2069,{"$f":"D374","v":10.956421922074826},3.47002529973622,17.405745147425439,21.255894496825015,7.2144534952542934,8.0160594391714373,10.577167489629792,0,1.9437450000000001,2.625,0,0,0,0,0,11.685843455692584,22.743062032198306,7.1729716355284907,8.3796397611314148,9.9493843439475231,6.4911869835152016,0,0,0,0,0]
[null,null,2070,{"$f":"D375","v":10.956421922074826},3.47002529973622,17.405745147425439,21.255894496825015,7.2144534952542934,8.0160594391714373,10.577167489629792,0,1.9437450000000001,2.625,0,0,0,0,0,11.685843455692584,22.743062032198306,7.1729716355284907,8.3796397611314148,9.9493843439475231,6.4911869835152016,0,0,0,0,0]
[null,null,2071,{"$f":"D376","v":10.956421922074826},3.47002529973622,17.405745147425439,21.255894496825015,7.2144534952542934,8.0160594391714373,10.577167489629792,0,1.9437450000000001,2.625,0,0,0,0,0,11.685843455692584,22.743062032198306,7.1729716355284907,8.3796397611314148,9.9493843439475231,6.4911869835152016,0,0,0,0,0]
[null,null,2072,{"$f":"D377","v":10.956421922074826},3.47002529973622,17.405745147425439,21.255894496825015,7.2144534952542934,8.0160594391714373,10.577167489629792,0,1.9437450000000001,2.625,0,0,0,0,0,11.685843455692584,22.743062032198306,7.1729716355284907,8.3796397611314148,9.9493843439475231,6.4911869835152016,0,0,0,0,0]
[null,null,2073,{"$f":"D378","v":10.956421922074826},3.47002529973622,17.405745147425439,21.255894496825015,7.2144534952542934,8.0160594391714373,10.577167489629792,0,1.9437450000000001,2.625,0,0,0,0,0,11.685843455692584,22.743062032198306,7.1729716355284907,8.3796397611314148,9.9493843439475231,6.4911869835152016,0,0,0,0,0]
[null,null,2074,{"$f":"D379","v":10.956421922074826},3.47002529973622,17.405745147425439,21.255894496825015,7.2144534952542934,8.0160594391714373,10.577167489629792,0,1.9437450000000001,2.625,0,0,0,0,0,11.685843455692584,22.743062032198306,7.1729716355284907,8.3796397611314148,9.9493843439475231,6.4911869835152016,0,0,0,0,0]
[null,null,2075,{"$f":"D380","v":10.956421922074826},3.47002529973622,17.405745147425439,21.255894496825015,7.2144534952542934,8.0160594391714373,10.577167489629792,0,1.9437450000000001,2.625,0,0,0,0,0,11.685843455692584,22.743062032198306,7.1729716355284907,8.3796397611314148,9.9493843439475231,6.4911869835152016,0,0,0,0,0]
[]
[null,null,"CustomFuel3-scenario (Here the user can include his or her own  fuel price data. By  default the green cells in the table displays the `CustomFuel´-data and the yellow displays by default prices from the latest Danish Outlook)  "]
[null,null,null,"Central power station",null,null,null,null,null,null,null,null,null,null,null,null,null,null,"Decentral power station"]
[null,null,{"$f":"$D$24&$E$24&\"/GJ\"","v":"EUR2014/GJ"},{"$f":"D384","v":"Natural gas"},{"$f":"E384","v":"Coal"},"Fueloil","Gas oil","Straw","Wood chips","Wood pellets","Energy crops","Uranium","Local biomass","wind","solar","New fuel 3","New fuel 4","New fuel 5","Natural gas","Gas oil","Straw","Wood chips","Wood pellets","Energy crops","New fuel 1","New fuel 2","New fuel 3","New fuel 4","New fuel 5"]
[null,"CustomFuel3",2012,{"$f":"D317","v":8.0000860062036843},3.5864545540024224,13.000380941126805,16.239411156201633,5.3315889650073114,5.9239877388970132,8.0761822945043136,{"$f":"K317","v":6.4918859980143111},1.9437450000000001,2.625,{"$f":"N317","v":0},0,0,0,0,{"$f":"S317","v":8.4703112264821154},17.961014785005343,5.3315889650073114,5.9239877388970132,8.6458282824681483,{"$f":"X317","v":6.4918859980143111},0,0,0,0,0]
[null,null,2013,{"$f":"D318","v":10.192106337696909},2.6408895835453592,12.871060096427552,16.113547274888926,5.3631325900583153,5.9590362111759054,8.9769910280699783,6.4911869835152016,1.9437450000000001,2.625,0,0,0,0,0,10.921527871314668,17.835150903692636,5.4189082908267148,6.4676775941652238,8.6740049976004556,6.4911869835152016,0,0,0,0,0]
[null,null,2014,{"$f":"D319","v":7.5585522408571242},2.3889326651874234,11.12813229461676,14.978281644016331,5.3946762151093184,5.9940846834547967,8.9908059399220548,0,1.9437450000000001,2.625,0,0,0,0,0,8.2879737744748816,16.46544917938963,5.4480518892300811,6.4973160063487425,8.702181712732763,6.4911869835152016,0,0,0,0,0]
[null,null,2015,{"$f":"D320","v":7.2039851304919598},2.2309204029772092,7.4125588883781077,11.262708237777677,5.4262198401603214,6.0291331557336907,9.0046208517741331,0,1.9437450000000001,2.625,0,0,0,0,0,7.933406664109719,12.74987577315097,5.4771954876334474,6.526954418532263,8.7303584278650685,6.4911869835152016,0,0,0,0,0]
[null,null,2016,{"$f":"D321","v":7.2792255359018618},2.1464073273037965,8.2881076314735598,12.13825698087313,5.4816570162115381,6.0907300180128212,9.0646272945521567,0,1.9437450000000001,2.625,0,0,0,0,0,8.0086470695196184,13.625424516246422,5.5449888873521145,6.5647769544451888,8.7635001502185794,6.4911869835152016,0,0,0,0,0]
[null,null,2017,{"$f":"D322","v":7.2168503107456043},2.1343304094781956,8.5321768630855317,12.382326212485101,5.5370941922627575,6.1523268802919509,9.1246337373301802,0,1.9437450000000001,2.625,0,0,0,0,0,7.9462718443633635,13.869493747858396,5.6127822870707815,6.6025994903581138,8.7966418725720921,6.4911869835152016,0,0,0,0,0]
[null,null,2018,{"$f":"D323","v":7.1611038596598906},2.1134274942792719,8.6135729778659833,12.463722327265552,5.5925313683139741,6.2139237425710814,9.1846401801082038,0,1.9437450000000001,2.625,0,0,0,0,0,7.890525393277648,13.950889862638846,5.6805756867894486,6.6404220262710387,8.8297835949256029,6.4911869835152016,0,0,0,0,0]
[null,null,2019,{"$f":"D324","v":7.1611038596598897},2.1188075545343006,8.5963700675655268,12.446519416965099,5.6479685443651917,6.2755206048502119,9.2446466228862292,0,1.9437450000000001,2.625,0,0,0,0,0,7.890525393277648,13.933686952338391,5.7165773452294744,6.6782445621839654,8.8629253172791138,6.4911869835152016,0,0,0,0,0]
[null,null,2020,{"$f":"D325","v":7.1611038596598906},2.0994084642339059,8.4897140982799719,12.339863447679544,5.7034057204164066,6.3371174671293415,9.3046530656642528,0,1.9437450000000001,2.625,0,0,0,0,0,7.8905253932776498,13.827030983052836,5.7489534359709369,6.7160670980968895,8.8960670396326247,6.4911869835152016,0,0,0,0,0]
[null,null,2021,{"$f":"D326","v":7.1091852366118795},2.1829892880324335,8.4455155470050087,12.295664896404578,5.76028069727111,6.4003118858567891,9.3405672258325474,0,1.9437450000000001,2.625,0,0,0,0,0,7.8386067702296378,13.782832431777871,5.7790060466391884,6.7511752881298923,8.9305800657414949,6.4911869835152016,0,0,0,0,0]
[null,null,2022,{"$f":"D327","v":7.1110003666621964},2.2667333967724015,8.5292407456686359,12.379390095068205,5.8171556741258135,6.4635063045842376,9.3764813860008402,0,1.9437450000000001,2.625,0,0,0,0,0,7.840421900279952,13.866557630441502,5.8090586573074408,6.7862834781628978,8.9650930918503668,6.4911869835152016,0,0,0,0,0]
[null,null,2023,{"$f":"D328","v":7.1665492498108385},2.3552823616659193,8.8117965374530023,12.661945886852573,5.8740306509805187,6.5267007233116869,9.4123955461691349,0,1.9437450000000001,2.625,0,0,0,0,0,7.8959707834285959,14.149113422225867,5.8391112679756931,6.8213916681959041,8.9996061179592353,6.4911869835152016,0,0,0,0,0]
[null,null,2024,{"$f":"D329","v":7.2758318860578068},2.4486361827129874,9.1844224266907144,13.034571776090285,5.9309056278352221,6.5898951420391354,9.4483097063374295,0,1.9437450000000001,2.625,0,0,0,0,0,8.0052534196755651,14.521739311463582,5.8691638786439464,6.8564998582289087,9.0341191440681055,6.4911869835152016,0,0,0,0,0]
[null,null,2025,{"$f":"D330","v":7.4388482754031022},2.5467948599136063,9.6471184133817722,13.497267762781341,5.9877806046899256,6.6530895607665848,9.4842238665057224,0,1.9437450000000001,2.625,0,0,0,0,0,8.1682698090208596,14.984435298154635,5.9016356830311194,6.8944342091485042,9.0686321701769703,6.4911869835152016,0,0,0,0,0]
[null,null,2026,{"$f":"D331","v":7.6555984178467238},2.6497583932677751,10.199884497526163,14.050033846925738,6.042286637153846,6.7136518190598302,9.5280929290784915,0,1.9437450000000001,2.625,0,0,0,0,0,8.3850199514644803,15.537201382299031,5.9563024457795555,6.958297249742472,9.1051309336728572,6.4911869835152016,0,0,0,0,0]
[null,null,2027,{"$f":"D332","v":7.9260823133886706},2.757526782775495,10.842720679123909,14.692870028523478,6.0967926696177681,6.7742140773530748,9.5719619916512624,0,1.9437450000000001,2.625,0,0,0,0,0,8.6555038470064307,16.180037563896772,6.0109692085279915,7.0221602903364388,9.1416296971687441,6.4911869835152016,0,0,0,0,0]
[null,null,2028,{"$f":"D333","v":8.2502999620289472},2.8701000284367644,11.575626958174988,15.425776307574559,6.1512987020816876,6.8347763356463203,9.6158310542240315,0,1.9437450000000001,2.625,0,0,0,0,0,8.9797214956467073,16.912943842947858,6.0656359712764276,7.0860233309304057,9.1781284606646274,6.4911869835152016,0,0,0,0,0]
[null,null,2029,{"$f":"D334","v":8.6282513637675482},2.987478130251584,12.398603334679406,16.248752684078976,6.2058047345456089,6.8953385939395657,9.6597001167968024,0,1.9437450000000001,2.625,0,0,0,0,0,9.3576728973853065,17.735920219452272,6.1203027340248628,7.1498863715243726,9.2146272241605161,6.4911869835152016,0,0,0,0,0]
[null,null,2030,{"$f":"D335","v":9.0599365186044771},3.1096610882199536,13.311649808637176,17.161799158036747,6.2603107670095302,6.9559008522328112,9.7035691793695715,0,1.9437450000000001,2.625,0,0,0,0,0,9.7893580522222354,18.648966693410038,6.1749694967732989,7.2137494121183394,9.2511259876564029,6.4911869835152016,0,0,0,0,0]
[null,null,2031,{"$f":"D336","v":9.1547607887779954},3.1276792987957673,13.516354575576589,17.366503924976158,6.3071993315615931,7.0079992572906589,9.7491036013747205,0,1.9437450000000001,2.625,0,0,0,0,0,9.8841823223957537,18.853671460349453,6.2265139683960067,7.2739649163504758,9.2838211292682207,6.4911869835152016,0,0,0,0,0]
[null,null,2032,{"$f":"D337","v":9.2495850589515118},3.1456975093715807,13.721059342516003,17.571208691915572,6.3540878961136551,7.0600976623485057,9.7946380233798713,0,1.9437450000000001,2.625,0,0,0,0,0,9.9790065925692719,19.058376227288868,6.2780584400187154,7.3341804205826122,9.3165162708800384,6.4911869835152016,0,0,0,0,0]
[null,null,2033,{"$f":"D338","v":9.3444093291250301},3.1637157199473935,13.925764109455415,17.775913458854983,6.400976460665718,7.1121960674063542,9.8401724453850203,0,1.9437450000000001,2.625,0,0,0,0,0,10.073830862742788,19.263080994228279,6.329602911641425,7.3943959248147486,9.3492114124918544,6.4911869835152016,0,0,0,0,0]
[null,null,2034,{"$f":"D339","v":9.4392335992985483},3.1817339305232073,14.130468876394826,17.980618225794398,6.4478650252177818,7.1642944724642019,9.8857068673901694,0,1.9437450000000001,2.625,0,0,0,0,0,10.168655132916307,19.467785761167693,6.3811473832641337,7.454611429046885,9.3819065541036739,6.4911869835152016,0,0,0,0,0]
[null,null,2035,{"$f":"D340","v":9.5340578694720666},3.1997521410990206,14.335173643334242,18.185322992733809,6.4947535897698465,7.2163928775220514,9.9312412893953219,0,1.9437450000000001,2.625,0,0,0,0,0,10.263479403089823,19.672490528107108,6.4326918548868415,7.5148269332790214,9.4146016957154899,6.4911869835152016,0,0,0,0,0]
[null,null,2036,{"$f":"D341","v":9.6288821396455795},3.2177703516748335,14.539878410273653,18.390027759673224,6.5401081556520895,7.2667868396134327,9.9717565273642972,0,1.9437450000000001,2.625,0,0,0,0,0,10.358303673263338,19.877195295046516,6.4809934606046484,7.5712540427624404,9.4457671993259975,6.4911869835152016,0,0,0,0,0]
[null,null,2037,{"$f":"D342","v":9.7237064098190977},3.2357885622506464,14.744583177213066,18.594732526612635,6.5854627215343324,7.3171808017048141,10.012271765333272,0,1.9437450000000001,2.625,0,0,0,0,0,10.453127943436856,20.081900061985934,6.5292950663224563,7.6276811522458603,9.4769327029365069,6.4911869835152016,0,0,0,0,0]
[null,null,2038,{"$f":"D343","v":9.8185306799926177},3.2538067728264597,14.949287944152482,18.79943729355205,6.6308172874165763,7.3675747637961955,10.052787003302248,0,1.9437450000000001,2.625,0,0,0,0,0,10.547952213610376,20.286604828925348,6.5775966720402632,7.6841082617292793,9.5080982065470163,6.4911869835152016,0,0,0,0,0]
[null,null,2039,{"$f":"D344","v":9.9133549501661324},3.2718249834022735,15.153992711091897,19.004142060491464,6.6761718532988192,7.4179687258875768,10.093302241271223,0,1.9437450000000001,2.625,0,0,0,0,0,10.642776483783889,20.491309595864763,6.6258982777580693,7.7405353712126983,9.5392637101575257,6.4911869835152016,0,0,0,0,0]
[null,null,2040,{"$f":"D345","v":10.008179220339651},3.2898431939780868,15.35869747803131,19.208846827430882,6.721526419181064,7.46836268797896,10.1338174792402,0,1.9437450000000001,2.625,0,0,0,0,0,10.737600753957407,20.696014362804174,6.674199883475878,7.7969624806961182,9.5704292137680316,6.4911869835152016,0,0,0,0,0]
[null,null,2041,{"$f":"D346","v":10.103003490513169},3.3078614045539005,15.563402244970723,19.413551594370293,6.7683181855828272,7.5203535395364742,10.172293373209165,0,1.9437450000000001,2.625,0,0,0,0,0,10.832425024130925,20.900719129743592,6.7214861766531779,7.8522034773985725,9.6032274742428978,6.4911869835152016,0,0,0,0,0]
[null,null,2042,{"$f":"D347","v":10.197827760686687},3.3258796151297139,15.768107011910136,19.618256361309705,6.8151099519845895,7.5723443910939894,10.210769267178129,0,1.9437450000000001,2.625,0,0,0,0,0,10.927249294304445,21.105423896682996,6.7687724698304779,7.907444474101025,9.6360257347177622,6.4911869835152016,0,0,0,0,0]
[null,null,2043,{"$f":"D348","v":10.292652030860204},3.3438978257055272,15.972811778849549,19.822961128249123,6.8619017183863518,7.6243352426515036,10.249245161147094,0,1.9437450000000001,2.625,0,0,0,0,0,11.02207356447796,21.310128663622415,6.8160587630077778,7.9626854708034784,9.6688239951926285,6.4911869835152016,0,0,0,0,0]
[null,null,2044,{"$f":"D349","v":10.387476301033722},3.3619160362813409,16.177516545788965,20.027665895188534,6.908693484788115,7.6763260942090188,10.28772105511606,0,1.9437450000000001,2.625,0,0,0,0,0,11.11689783465148,21.514833430561829,6.8633450561850777,8.0179264675059319,9.7016222556674929,6.4911869835152016,0,0,0,0,0]
[null,null,2045,{"$f":"D350","v":10.482300571207238},3.3799342468571538,16.38222131272838,20.232370662127945,6.955485251189879,7.7283169457665331,10.326196949085025,0,1.9437450000000001,2.625,0,0,0,0,0,11.211722104824998,21.719538197501247,6.9106313493623777,8.0731674642083853,9.7344205161423627,6.4911869835152016,0,0,0,0,0]
[null,null,2046,{"$f":"D351","v":10.577124841380755},3.3979524574329667,16.586926079667791,20.437075429067363,7.0072789000027624,7.7858654444475137,10.376391057193979,0,1.9437450000000001,2.625,0,0,0,0,0,11.306546374998511,21.924242964440655,6.9630994065956004,8.1344619235929905,9.7774132817033941,6.4911869835152016,0,0,0,0,0]
[null,null,2047,{"$f":"D352","v":10.671949111554273},3.41597066800878,16.791630846607198,20.641780196006771,7.0590725488156449,7.8434139431284953,10.426585165302933,0,1.9437450000000001,2.625,0,0,0,0,0,11.401370645172031,22.12894773138007,7.0155674638288223,8.1957563829775957,9.8204060472644255,6.4911869835152016,0,0,0,0,0]
[null,null,2048,{"$f":"D353","v":10.766773381727791},3.4339888785845933,16.996335613546616,20.846484962946189,7.1108661976285283,7.9009624418094768,10.476779273411886,0,1.9437450000000001,2.625,0,0,0,0,0,11.496194915345551,22.333652498319484,7.0680355210620451,8.2570508423622027,9.8633988128254568,6.4911869835152016,0,0,0,0,0]
[null,null,2049,{"$f":"D354","v":10.861597651901308},3.4520070891604067,17.201040380486027,21.051189729885596,7.1626598464414117,7.9585109404904575,10.526973381520841,0,1.9437450000000001,2.625,0,0,0,0,0,11.591019185519064,22.538357265258888,7.1205035782952679,8.3183453017468079,9.9063915783864882,6.4911869835152016,0,0,0,0,0]
[null,null,2050,{"$f":"D355","v":10.956421922074826},3.47002529973622,17.405745147425439,21.255894496825015,7.2144534952542934,8.0160594391714373,10.577167489629792,0,1.9437450000000001,2.625,0,0,0,0,0,11.685843455692584,22.743062032198306,7.1729716355284907,8.3796397611314148,9.9493843439475231,6.4911869835152016,0,0,0,0,0]
[null,null,2051,{"$f":"D356","v":10.956421922074826},3.47002529973622,17.405745147425439,21.255894496825015,7.2144534952542934,8.0160594391714373,10.577167489629792,0,1.9437450000000001,2.625,0,0,0,0,0,11.685843455692584,22.743062032198306,7.1729716355284907,8.3796397611314148,9.9493843439475231,6.4911869835152016,0,0,0,0,0]
[null,null,2052,{"$f":"D357","v":10.956421922074826},3.47002529973622,17.405745147425439,21.255894496825015,7.2144534952542934,8.0160594391714373,10.577167489629792,0,1.9437450000000001,2.625,0,0,0,0,0,11.685843455692584,22.743062032198306,7.1729716355284907,8.3796397611314148,9.9493843439475231,6.4911869835152016,0,0,0,0,0]
[null,null,2053,{"$f":"D358","v":10.956421922074826},3.47002529973622,17.405745147425439,21.255894496825015,7.2144534952542934,8.0160594391714373,10.577167489629792,0,1.9437450000000001,2.625,0,0,0,0,0,11.685843455692584,22.743062032198306,7.1729716355284907,8.3796397611314148,9.9493843439475231,6.4911869835152016,0,0,0,0,0]
[null,null,2054,{"$f":"D359","v":10.956421922074826},3.47002529973622,17.405745147425439,21.255894496825015,7.2144534952542934,8.0160594391714373,10.577167489629792,0,1.9437450000000001,2.625,0,0,0,0,0,11.685843455692584,22.743062032198306,7.1729716355284907,8.3796397611314148,9.9493843439475231,6.4911869835152016,0,0,0,0,0]
[null,null,2055,{"$f":"D360","v":10.956421922074826},3.47002529973622,17.405745147425439,21.255894496825015,7.2144534952542934,8.0160594391714373,10.577167489629792,0,1.9437450000000001,2.625,0,0,0,0,0,11.685843455692584,22.743062032198306,7.1729716355284907,8.3796397611314148,9.9493843439475231,6.4911869835152016,0,0,0,0,0]
[null,null,2056,{"$f":"D361","v":10.956421922074826},3.47002529973622,17.405745147425439,21.255894496825015,7.2144534952542934,8.0160594391714373,10.577167489629792,0,1.9437450000000001,2.625,0,0,0,0,0,11.685843455692584,22.743062032198306,7.1729716355284907,8.3796397611314148,9.9493843439475231,6.4911869835152016,0,0,0,0,0]
[null,null,2057,{"$f":"D362","v":10.956421922074826},3.47002529973622,17.405745147425439,21.255894496825015,7.2144534952542934,8.0160594391714373,10.577167489629792,0,1.9437450000000001,2.625,0,0,0,0,0,11.685843455692584,22.743062032198306,7.1729716355284907,8.3796397611314148,9.9493843439475231,6.4911869835152016,0,0,0,0,0]
[null,null,2058,{"$f":"D363","v":10.956421922074826},3.47002529973622,17.405745147425439,21.255894496825015,7.2144534952542934,8.0160594391714373,10.577167489629792,0,1.9437450000000001,2.625,0,0,0,0,0,11.685843455692584,22.743062032198306,7.1729716355284907,8.3796397611314148,9.9493843439475231,6.4911869835152016,0,0,0,0,0]
[null,null,2059,{"$f":"D364","v":10.956421922074826},3.47002529973622,17.405745147425439,21.255894496825015,7.2144534952542934,8.0160594391714373,10.577167489629792,0,1.9437450000000001,2.625,0,0,0,0,0,11.685843455692584,22.743062032198306,7.1729716355284907,8.3796397611314148,9.9493843439475231,6.4911869835152016,0,0,0,0,0]
[null,null,2060,{"$f":"D365","v":10.956421922074826},3.47002529973622,17.405745147425439,21.255894496825015,7.2144534952542934,8.0160594391714373,10.577167489629792,0,1.9437450000000001,2.625,0,0,0,0,0,11.685843455692584,22.743062032198306,7.1729716355284907,8.3796397611314148,9.9493843439475231,6.4911869835152016,0,0,0,0,0]
[null,null,2061,{"$f":"D366","v":10.956421922074826},3.47002529973622,17.405745147425439,21.255894496825015,7.2144534952542934,8.0160594391714373,10.577167489629792,0,1.9437450000000001,2.625,0,0,0,0,0,11.685843455692584,22.743062032198306,7.1729716355284907,8.3796397611314148,9.9493843439475231,6.4911869835152016,0,0,0,0,0]
[null,null,2062,{"$f":"D367","v":10.956421922074826},3.47002529973622,17.405745147425439,21.255894496825015,7.2144534952542934,8.0160594391714373,10.577167489629792,0,1.9437450000000001,2.625,0,0,0,0,0,11.685843455692584,22.743062032198306,7.1729716355284907,8.3796397611314148,9.9493843439475231,6.4911869835152016,0,0,0,0,0]
[null,null,2063,{"$f":"D368","v":10.956421922074826},3.47002529973622,17.405745147425439,21.255894496825015,7.2144534952542934,8.0160594391714373,10.577167489629792,0,1.9437450000000001,2.625,0,0,0,0,0,11.685843455692584,22.743062032198306,7.1729716355284907,8.3796397611314148,9.9493843439475231,6.4911869835152016,0,0,0,0,0]
[null,null,2064,{"$f":"D369","v":10.956421922074826},3.47002529973622,17.405745147425439,21.255894496825015,7.2144534952542934,8.0160594391714373,10.577167489629792,0,1.9437450000000001,2.625,0,0,0,0,0,11.685843455692584,22.743062032198306,7.1729716355284907,8.3796397611314148,9.9493843439475231,6.4911869835152016,0,0,0,0,0]
[null,null,2065,{"$f":"D370","v":10.956421922074826},3.47002529973622,17.405745147425439,21.255894496825015,7.2144534952542934,8.0160594391714373,10.577167489629792,0,1.9437450000000001,2.625,0,0,0,0,0,11.685843455692584,22.743062032198306,7.1729716355284907,8.3796397611314148,9.9493843439475231,6.4911869835152016,0,0,0,0,0]
[null,null,2066,{"$f":"D371","v":10.956421922074826},3.47002529973622,17.405745147425439,21.255894496825015,7.2144534952542934,8.0160594391714373,10.577167489629792,0,1.9437450000000001,2.625,0,0,0,0,0,11.685843455692584,22.743062032198306,7.1729716355284907,8.3796397611314148,9.9493843439475231,6.4911869835152016,0,0,0,0,0]
[null,null,2067,{"$f":"D372","v":10.956421922074826},3.47002529973622,17.405745147425439,21.255894496825015,7.2144534952542934,8.0160594391714373,10.577167489629792,0,1.9437450000000001,2.625,0,0,0,0,0,11.685843455692584,22.743062032198306,7.1729716355284907,8.3796397611314148,9.9493843439475231,6.4911869835152016,0,0,0,0,0]
[null,null,2068,{"$f":"D373","v":10.956421922074826},3.47002529973622,17.405745147425439,21.255894496825015,7.2144534952542934,8.0160594391714373,10.577167489629792,0,1.9437450000000001,2.625,0,0,0,0,0,11.685843455692584,22.743062032198306,7.1729716355284907,8.3796397611314148,9.9493843439475231,6.4911869835152016,0,0,0,0,0]
[null,null,2069,{"$f":"D374","v":10.956421922074826},3.47002529973622,17.405745147425439,21.255894496825015,7.2144534952542934,8.0160594391714373,10.577167489629792,0,1.9437450000000001,2.625,0,0,0,0,0,11.685843455692584,22.743062032198306,7.1729716355284907,8.3796397611314148,9.9493843439475231,6.4911869835152016,0,0,0,0,0]
[null,null,2070,{"$f":"D375","v":10.956421922074826},3.47002529973622,17.405745147425439,21.255894496825015,7.2144534952542934,8.0160594391714373,10.577167489629792,0,1.9437450000000001,2.625,0,0,0,0,0,11.685843455692584,22.743062032198306,7.1729716355284907,8.3796397611314148,9.9493843439475231,6.4911869835152016,0,0,0,0,0]
[null,null,2071,{"$f":"D376","v":10.956421922074826},3.47002529973622,17.405745147425439,21.255894496825015,7.2144534952542934,8.0160594391714373,10.577167489629792,0,1.9437450000000001,2.625,0,0,0,0,0,11.685843455692584,22.743062032198306,7.1729716355284907,8.3796397611314148,9.9493843439475231,6.4911869835152016,0,0,0,0,0]
[null,null,2072,{"$f":"D377","v":10.956421922074826},3.47002529973622,17.405745147425439,21.255894496825015,7.2144534952542934,8.0160594391714373,10.577167489629792,0,1.9437450000000001,2.625,0,0,0,0,0,11.685843455692584,22.743062032198306,7.1729716355284907,8.3796397611314148,9.9493843439475231,6.4911869835152016,0,0,0,0,0]
[null,null,2073,{"$f":"D378","v":10.956421922074826},3.47002529973622,17.405745147425439,21.255894496825015,7.2144534952542934,8.0160594391714373,10.577167489629792,0,1.9437450000000001,2.625,0,0,0,0,0,11.685843455692584,22.743062032198306,7.1729716355284907,8.3796397611314148,9.9493843439475231,6.4911869835152016,0,0,0,0,0]
[null,null,2074,{"$f":"D379","v":10.956421922074826},3.47002529973622,17.405745147425439,21.255894496825015,7.2144534952542934,8.0160594391714373,10.577167489629792,0,1.9437450000000001,2.625,0,0,0,0,0,11.685843455692584,22.743062032198306,7.1729716355284907,8.3796397611314148,9.9493843439475231,6.4911869835152016,0,0,0,0,0]
[null,null,2075,{"$f":"D380","v":10.956421922074826},3.47002529973622,17.405745147425439,21.255894496825015,7.2144534952542934,8.0160594391714373,10.577167489629792,0,1.9437450000000001,2.625,0,0,0,0,0,11.685843455692584,22.743062032198306,7.1729716355284907,8.3796397611314148,9.9493843439475231,6.4911869835152016,0,0,0,0,0]
[]
[null,null,"New policy 2015 scenario "]
[null,null,null,"Central power station",null,null,null,null,null,null,null,null,null,null,null,null,null,null,"Decentral power station"]
[null,null,{"$f":"Admin!$T$5&Admin!$R$5&\"/GJ\"","v":"EUR2014/GJ"},"Natural gas","Coal","Fueloil","Gas oil","Straw","Wood chips","Wood pellets","Energy crops","Uranium","Local biomass","wind","solar","New fuel 3","New fuel 4","New fuel 5","Natural gas","Gas oil","Straw","Wood chips","Wood pellets","Energy crops","New fuel 1","New fuel 2","New fuel 3","New fuel 4","New fuel 5"]
[null,"New policy 2015",2012,8.0000860062036843,3.5864545540024224,13.000380941126805,16.239411156201633,5.3315889650073114,5.9239877388970132,8.0761822945043136,6.4918859980143111,{"$f":"2.59166*0.75","v":1.9437450000000001},{"$f":"3.5*0.75","v":2.625},0,0,null,null,null,8.4703112264821154,17.961014785005343,5.3315889650073114,5.9239877388970132,8.6458282824681483,6.4918859980143111]
[null,null,2013,10.192106337696909,2.6408895835453592,12.871060096427552,16.113547274888926,5.3631325900583153,5.9590362111759054,8.9769910280699783,6.4911869835152016,{"$f":"2.59166*0.75","v":1.9437450000000001},{"$f":"3.5*0.75","v":2.625},0,0,null,null,null,10.921527871314668,17.835150903692636,5.4189082908267148,6.4676775941652238,8.6740049976004556,6.4911869835152016]
[null,null,2014,7.5585522408571242,2.3889326651874234,11.12813229461676,14.978281644016331,5.3946762151093184,5.9940846834547967,8.9908059399220548,0,{"$f":"2.59166*0.75","v":1.9437450000000001},2.625,0,0,null,null,null,8.2879737744748816,16.46544917938963,5.4480518892300811,6.4973160063487425,8.702181712732763,{"$f":"X318","v":6.4911869835152016}]
[null,null,2015,7.2039851304919598,2.2309204029772092,7.4125588883781077,11.262708237777677,5.4262198401603214,6.0291331557336907,9.0046208517741331,0,1.9437450000000001,2.625,0,0,null,null,null,7.933406664109719,12.74987577315097,5.4771954876334474,6.526954418532263,8.7303584278650685,{"$f":"X319","v":6.4911869835152016}]
[null,null,2016,7.2792255359018618,2.1464073273037965,8.2881076314735598,12.13825698087313,5.4816570162115381,6.0907300180128212,9.0646272945521567,0,1.9437450000000001,2.625,0,0,null,null,null,8.0086470695196184,13.625424516246422,5.5449888873521145,6.5647769544451888,8.7635001502185794,6.4911869835152016]
[null,null,2017,7.2168503107456043,2.1343304094781956,8.5321768630855317,12.382326212485101,5.5370941922627575,6.1523268802919509,9.1246337373301802,0,1.9437450000000001,2.625,0,0,null,null,null,7.9462718443633635,13.869493747858396,5.6127822870707815,6.6025994903581138,8.7966418725720921,6.4911869835152016]
[null,null,2018,7.1611038596598906,2.1134274942792719,8.6135729778659833,12.463722327265552,5.5925313683139741,6.2139237425710814,9.1846401801082038,0,1.9437450000000001,2.625,0,0,null,null,null,7.890525393277648,13.950889862638846,5.6805756867894486,6.6404220262710387,8.8297835949256029,{"$f":"X322","v":6.4911869835152016}]
[null,null,2019,7.1611038596598897,2.1188075545343006,8.5963700675655268,12.446519416965099,5.6479685443651917,6.2755206048502119,9.2446466228862292,0,1.9437450000000001,2.625,0,0,null,null,null,7.890525393277648,13.933686952338391,5.7165773452294744,6.6782445621839654,8.8629253172791138,6.4911869835152016]
[null,null,2020,7.1611038596598906,2.0994084642339059,8.4897140982799719,12.339863447679544,5.7034057204164066,6.3371174671293415,9.3046530656642528,0,1.9437450000000001,2.625,0,0,null,null,null,7.8905253932776498,13.827030983052836,5.7489534359709369,6.7160670980968895,8.8960670396326247,6.4911869835152016]
[null,null,2021,7.1091852366118795,2.1829892880324335,8.4455155470050087,12.295664896404578,5.76028069727111,6.4003118858567891,9.3405672258325474,0,1.9437450000000001,2.625,0,0,null,null,null,7.8386067702296378,13.782832431777871,5.7790060466391884,6.7511752881298923,8.9305800657414949,6.4911869835152016]
[null,null,2022,7.1110003666621964,2.2667333967724015,8.5292407456686359,12.379390095068205,5.8171556741258135,6.4635063045842376,9.3764813860008402,0,1.9437450000000001,2.625,0,0,null,null,null,7.840421900279952,13.866557630441502,5.8090586573074408,6.7862834781628978,8.9650930918503668,6.4911869835152016]
[null,null,2023,7.1665492498108385,2.3552823616659193,8.8117965374530023,12.661945886852573,5.8740306509805187,6.5267007233116869,9.4123955461691349,0,1.9437450000000001,2.625,0,0,null,null,null,7.8959707834285959,14.149113422225867,5.8391112679756931,6.8213916681959041,8.9996061179592353,6.4911869835152016]
[null,null,2024,7.2758318860578068,2.4486361827129874,9.1844224266907144,13.034571776090285,5.9309056278352221,6.5898951420391354,9.4483097063374295,0,1.9437450000000001,2.625,0,0,null,null,null,8.0052534196755651,14.521739311463582,5.8691638786439464,6.8564998582289087,9.0341191440681055,6.4911869835152016]
[null,null,2025,7.4388482754031022,2.5467948599136063,9.6471184133817722,13.497267762781341,5.9877806046899256,6.6530895607665848,9.4842238665057224,0,1.9437450000000001,2.625,0,0,null,null,null,8.1682698090208596,14.984435298154635,5.9016356830311194,6.8944342091485042,9.0686321701769703,6.4911869835152016]
[null,null,2026,7.6555984178467238,2.6497583932677751,10.199884497526163,14.050033846925738,6.042286637153846,6.7136518190598302,9.5280929290784915,0,1.9437450000000001,2.625,0,0,null,null,null,8.3850199514644803,15.537201382299031,5.9563024457795555,6.958297249742472,9.1051309336728572,6.4911869835152016]
[null,null,2027,7.9260823133886706,2.757526782775495,10.842720679123909,14.692870028523478,6.0967926696177681,6.7742140773530748,9.5719619916512624,0,1.9437450000000001,2.625,0,0,null,null,null,8.6555038470064307,16.180037563896772,6.0109692085279915,7.0221602903364388,9.1416296971687441,6.4911869835152016]
[null,null,2028,8.2502999620289472,2.8701000284367644,11.575626958174988,15.425776307574559,6.1512987020816876,6.8347763356463203,9.6158310542240315,0,1.9437450000000001,2.625,0,0,null,null,null,8.9797214956467073,16.912943842947858,6.0656359712764276,7.0860233309304057,9.1781284606646274,6.4911869835152016]
[null,null,2029,8.6282513637675482,2.987478130251584,12.398603334679406,16.248752684078976,6.2058047345456089,6.8953385939395657,9.6597001167968024,0,1.9437450000000001,2.625,0,0,null,null,null,9.3576728973853065,17.735920219452272,6.1203027340248628,7.1498863715243726,9.2146272241605161,6.4911869835152016]
[null,null,2030,9.0599365186044771,3.1096610882199536,13.311649808637176,17.161799158036747,6.2603107670095302,6.9559008522328112,9.7035691793695715,0,1.9437450000000001,2.625,0,0,null,null,null,9.7893580522222354,18.648966693410038,6.1749694967732989,7.2137494121183394,9.2511259876564029,6.4911869835152016]
[null,null,2031,9.1547607887779954,3.1276792987957673,13.516354575576589,17.366503924976158,6.3071993315615931,7.0079992572906589,9.7491036013747205,0,1.9437450000000001,2.625,0,0,null,null,null,9.8841823223957537,18.853671460349453,6.2265139683960067,7.2739649163504758,9.2838211292682207,6.4911869835152016]
[null,null,2032,9.2495850589515118,3.1456975093715807,13.721059342516003,17.571208691915572,6.3540878961136551,7.0600976623485057,9.7946380233798713,0,1.9437450000000001,2.625,0,0,null,null,null,9.9790065925692719,19.058376227288868,6.2780584400187154,7.3341804205826122,9.3165162708800384,6.4911869835152016]
[null,null,2033,9.3444093291250301,3.1637157199473935,13.925764109455415,17.775913458854983,6.400976460665718,7.1121960674063542,9.8401724453850203,0,1.9437450000000001,2.625,0,0,null,null,null,10.073830862742788,19.263080994228279,6.329602911641425,7.3943959248147486,9.3492114124918544,6.4911869835152016]
[null,null,2034,9.4392335992985483,3.1817339305232073,14.130468876394826,17.980618225794398,6.4478650252177818,7.1642944724642019,9.8857068673901694,0,1.9437450000000001,2.625,0,0,null,null,null,10.168655132916307,19.467785761167693,6.3811473832641337,7.454611429046885,9.3819065541036739,6.4911869835152016]
[null,null,2035,9.5340578694720666,3.1997521410990206,14.335173643334242,18.185322992733809,6.4947535897698465,7.2163928775220514,9.9312412893953219,0,1.9437450000000001,2.625,0,0,null,null,null,10.263479403089823,19.672490528107108,6.4326918548868415,7.5148269332790214,9.4146016957154899,6.4911869835152016]
[null,null,2036,9.6288821396455795,3.2177703516748335,14.539878410273653,18.390027759673224,6.5401081556520895,7.2667868396134327,9.9717565273642972,0,1.9437450000000001,2.625,0,0,null,null,null,10.358303673263338,19.877195295046516,6.4809934606046484,7.5712540427624404,9.4457671993259975,6.4911869835152016]
[null,null,2037,9.7237064098190977,3.2357885622506464,14.744583177213066,18.594732526612635,6.5854627215343324,7.3171808017048141,10.012271765333272,0,1.9437450000000001,2.625,0,0,null,null,null,10.453127943436856,20.081900061985934,6.5292950663224563,7.6276811522458603,9.4769327029365069,6.4911869835152016]
[null,null,2038,9.8185306799926177,3.2538067728264597,14.949287944152482,18.79943729355205,6.6308172874165763,7.3675747637961955,10.052787003302248,0,1.9437450000000001,2.625,0,0,null,null,null,10.547952213610376,20.286604828925348,6.5775966720402632,7.6841082617292793,9.5080982065470163,6.4911869835152016]
[null,null,2039,9.9133549501661324,3.2718249834022735,15.153992711091897,19.004142060491464,6.6761718532988192,7.4179687258875768,10.093302241271223,0,1.9437450000000001,2.625,0,0,null,null,null,10.642776483783889,20.491309595864763,6.6258982777580693,7.7405353712126983,9.5392637101575257,6.4911869835152016]
[null,null,2040,10.008179220339651,3.2898431939780868,15.35869747803131,19.208846827430882,6.721526419181064,7.46836268797896,10.1338174792402,0,1.9437450000000001,2.625,0,0,null,null,null,10.737600753957407,20.696014362804174,6.674199883475878,7.7969624806961182,9.5704292137680316,6.4911869835152016]
[null,null,2041,10.103003490513169,3.3078614045539005,15.563402244970723,19.413551594370293,6.7683181855828272,7.5203535395364742,10.172293373209165,0,1.9437450000000001,2.625,0,0,null,null,null,10.832425024130925,20.900719129743592,6.7214861766531779,7.8522034773985725,9.6032274742428978,6.4911869835152016]
[null,null,2042,10.197827760686687,3.3258796151297139,15.768107011910136,19.618256361309705,6.8151099519845895,7.5723443910939894,10.210769267178129,0,1.9437450000000001,2.625,0,0,null,null,null,10.927249294304445,21.105423896682996,6.7687724698304779,7.907444474101025,9.6360257347177622,6.4911869835152016]
[null,null,2043,10.292652030860204,3.3438978257055272,15.972811778849549,19.822961128249123,6.8619017183863518,7.6243352426515036,10.249245161147094,0,1.9437450000000001,2.625,0,0,null,null,null,11.02207356447796,21.310128663622415,6.8160587630077778,7.9626854708034784,9.6688239951926285,6.4911869835152016]
[null,null,2044,10.387476301033722,3.3619160362813409,16.177516545788965,20.027665895188534,6.908693484788115,7.6763260942090188,10.28772105511606,0,1.9437450000000001,2.625,0,0,null,null,null,11.11689783465148,21.514833430561829,6.8633450561850777,8.0179264675059319,9.7016222556674929,6.4911869835152016]
[null,null,2045,10.482300571207238,3.3799342468571538,16.38222131272838,20.232370662127945,6.955485251189879,7.7283169457665331,10.326196949085025,0,1.9437450000000001,2.625,0,0,null,null,null,11.211722104824998,21.719538197501247,6.9106313493623777,8.0731674642083853,9.7344205161423627,6.4911869835152016]
[null,null,2046,10.577124841380755,3.3979524574329667,16.586926079667791,20.437075429067363,7.0072789000027624,7.7858654444475137,10.376391057193979,0,1.9437450000000001,2.625,0,0,null,null,null,11.306546374998511,21.924242964440655,6.9630994065956004,8.1344619235929905,9.7774132817033941,6.4911869835152016]
[null,null,2047,10.671949111554273,3.41597066800878,16.791630846607198,20.641780196006771,7.0590725488156449,7.8434139431284953,10.426585165302933,0,1.9437450000000001,2.625,0,0,null,null,null,11.401370645172031,22.12894773138007,7.0155674638288223,8.1957563829775957,9.8204060472644255,6.4911869835152016]
[null,null,2048,10.766773381727791,3.4339888785845933,16.996335613546616,20.846484962946189,7.1108661976285283,7.9009624418094768,10.476779273411886,0,1.9437450000000001,2.625,0,0,null,null,null,11.496194915345551,22.333652498319484,7.0680355210620451,8.2570508423622027,9.8633988128254568,6.4911869835152016]
[null,null,2049,10.861597651901308,3.4520070891604067,17.201040380486027,21.051189729885596,7.1626598464414117,7.9585109404904575,10.526973381520841,0,1.9437450000000001,2.625,0,0,null,null,null,11.591019185519064,22.538357265258888,7.1205035782952679,8.3183453017468079,9.9063915783864882,6.4911869835152016]
[null,null,2050,10.956421922074826,3.47002529973622,17.405745147425439,21.255894496825015,7.2144534952542934,8.0160594391714373,10.577167489629792,0,1.9437450000000001,2.625,0,0,null,null,null,11.685843455692584,22.743062032198306,7.1729716355284907,8.3796397611314148,9.9493843439475231,6.4911869835152016]
[null,null,2051,10.956421922074826,3.47002529973622,17.405745147425439,21.255894496825015,7.2144534952542934,8.0160594391714373,10.577167489629792,0,1.9437450000000001,2.625,0,0,null,null,null,11.685843455692584,22.743062032198306,7.1729716355284907,8.3796397611314148,9.9493843439475231,6.4911869835152016]
[null,null,2052,10.956421922074826,3.47002529973622,17.405745147425439,21.255894496825015,7.2144534952542934,8.0160594391714373,10.577167489629792,0,1.9437450000000001,2.625,0,0,null,null,null,11.685843455692584,22.743062032198306,7.1729716355284907,8.3796397611314148,9.9493843439475231,6.4911869835152016]
[null,null,2053,10.956421922074826,3.47002529973622,17.405745147425439,21.255894496825015,7.2144534952542934,8.0160594391714373,10.577167489629792,0,1.9437450000000001,2.625,0,0,null,null,null,11.685843455692584,22.743062032198306,7.1729716355284907,8.3796397611314148,9.9493843439475231,6.4911869835152016]
[null,null,2054,10.956421922074826,3.47002529973622,17.405745147425439,21.255894496825015,7.2144534952542934,8.0160594391714373,10.577167489629792,0,1.9437450000000001,2.625,0,0,null,null,null,11.685843455692584,22.743062032198306,7.1729716355284907,8.3796397611314148,9.9493843439475231,6.4911869835152016]
[null,null,2055,10.956421922074826,3.47002529973622,17.405745147425439,21.255894496825015,7.2144534952542934,8.0160594391714373,10.577167489629792,0,1.9437450000000001,2.625,0,0,null,null,null,11.685843455692584,22.743062032198306,7.1729716355284907,8.3796397611314148,9.9493843439475231,6.4911869835152016]
[null,null,2056,10.956421922074826,3.47002529973622,17.405745147425439,21.255894496825015,7.2144534952542934,8.0160594391714373,10.577167489629792,0,1.9437450000000001,2.625,0,0,null,null,null,11.685843455692584,22.743062032198306,7.1729716355284907,8.3796397611314148,9.9493843439475231,6.4911869835152016]
[null,null,2057,10.956421922074826,3.47002529973622,17.405745147425439,21.255894496825015,7.2144534952542934,8.0160594391714373,10.577167489629792,0,1.9437450000000001,2.625,0,0,null,null,null,11.685843455692584,22.743062032198306,7.1729716355284907,8.3796397611314148,9.9493843439475231,6.4911869835152016]
[null,null,2058,10.956421922074826,3.47002529973622,17.405745147425439,21.255894496825015,7.2144534952542934,8.0160594391714373,10.577167489629792,0,1.9437450000000001,2.625,0,0,null,null,null,11.685843455692584,22.743062032198306,7.1729716355284907,8.3796397611314148,9.9493843439475231,6.4911869835152016]
[null,null,2059,10.956421922074826,3.47002529973622,17.405745147425439,21.255894496825015,7.2144534952542934,8.0160594391714373,10.577167489629792,0,1.9437450000000001,2.625,0,0,null,null,null,11.685843455692584,22.743062032198306,7.1729716355284907,8.3796397611314148,9.9493843439475231,6.4911869835152016]
[null,null,2060,10.956421922074826,3.47002529973622,17.405745147425439,21.255894496825015,7.2144534952542934,8.0160594391714373,10.577167489629792,0,1.9437450000000001,2.625,0,0,null,null,null,11.685843455692584,22.743062032198306,7.1729716355284907,8.3796397611314148,9.9493843439475231,6.4911869835152016]
[null,null,2061,10.956421922074826,3.47002529973622,17.405745147425439,21.255894496825015,7.2144534952542934,8.0160594391714373,10.577167489629792,0,1.9437450000000001,2.625,0,0,null,null,null,11.685843455692584,22.743062032198306,7.1729716355284907,8.3796397611314148,9.9493843439475231,6.4911869835152016]
[null,null,2062,10.956421922074826,3.47002529973622,17.405745147425439,21.255894496825015,7.2144534952542934,8.0160594391714373,10.577167489629792,0,1.9437450000000001,2.625,0,0,null,null,null,11.685843455692584,22.743062032198306,7.1729716355284907,8.3796397611314148,9.9493843439475231,6.4911869835152016]
[null,null,2063,10.956421922074826,3.47002529973622,17.405745147425439,21.255894496825015,7.2144534952542934,8.0160594391714373,10.577167489629792,0,1.9437450000000001,2.625,0,0,null,null,null,11.685843455692584,22.743062032198306,7.1729716355284907,8.3796397611314148,9.9493843439475231,6.4911869835152016]
[null,null,2064,10.956421922074826,3.47002529973622,17.405745147425439,21.255894496825015,7.2144534952542934,8.0160594391714373,10.577167489629792,0,1.9437450000000001,2.625,0,0,null,null,null,11.685843455692584,22.743062032198306,7.1729716355284907,8.3796397611314148,9.9493843439475231,6.4911869835152016]
[null,null,2065,10.956421922074826,3.47002529973622,17.405745147425439,21.255894496825015,7.2144534952542934,8.0160594391714373,10.577167489629792,0,1.9437450000000001,2.625,0,0,null,null,null,11.685843455692584,22.743062032198306,7.1729716355284907,8.3796397611314148,9.9493843439475231,6.4911869835152016]
[null,null,2066,10.956421922074826,3.47002529973622,17.405745147425439,21.255894496825015,7.2144534952542934,8.0160594391714373,10.577167489629792,0,1.9437450000000001,2.625,0,0,null,null,null,11.685843455692584,22.743062032198306,7.1729716355284907,8.3796397611314148,9.9493843439475231,6.4911869835152016]
[null,null,2067,10.956421922074826,3.47002529973622,17.405745147425439,21.255894496825015,7.2144534952542934,8.0160594391714373,10.577167489629792,0,1.9437450000000001,2.625,0,0,null,null,null,11.685843455692584,22.743062032198306,7.1729716355284907,8.3796397611314148,9.9493843439475231,6.4911869835152016]
[null,null,2068,10.956421922074826,3.47002529973622,17.405745147425439,21.255894496825015,7.2144534952542934,8.0160594391714373,10.577167489629792,0,1.9437450000000001,2.625,0,0,null,null,null,11.685843455692584,22.743062032198306,7.1729716355284907,8.3796397611314148,9.9493843439475231,6.4911869835152016]
[null,null,2069,10.956421922074826,3.47002529973622,17.405745147425439,21.255894496825015,7.2144534952542934,8.0160594391714373,10.577167489629792,0,1.9437450000000001,2.625,0,0,null,null,null,11.685843455692584,22.743062032198306,7.1729716355284907,8.3796397611314148,9.9493843439475231,6.4911869835152016]
[null,null,2070,10.956421922074826,3.47002529973622,17.405745147425439,21.255894496825015,7.2144534952542934,8.0160594391714373,10.577167489629792,0,1.9437450000000001,2.625,0,0,null,null,null,11.685843455692584,22.743062032198306,7.1729716355284907,8.3796397611314148,9.9493843439475231,6.4911869835152016]
[null,null,2071,10.956421922074826,3.47002529973622,17.405745147425439,21.255894496825015,7.2144534952542934,8.0160594391714373,10.577167489629792,0,1.9437450000000001,2.625,0,0,null,null,null,11.685843455692584,22.743062032198306,7.1729716355284907,8.3796397611314148,9.9493843439475231,6.4911869835152016]
[null,null,2072,10.956421922074826,3.47002529973622,17.405745147425439,21.255894496825015,7.2144534952542934,8.0160594391714373,10.577167489629792,0,1.9437450000000001,2.625,0,0,null,null,null,11.685843455692584,22.743062032198306,7.1729716355284907,8.3796397611314148,9.9493843439475231,6.4911869835152016]
[null,null,2073,10.956421922074826,3.47002529973622,17.405745147425439,21.255894496825015,7.2144534952542934,8.0160594391714373,10.577167489629792,0,1.9437450000000001,2.625,0,0,null,null,null,11.685843455692584,22.743062032198306,7.1729716355284907,8.3796397611314148,9.9493843439475231,6.4911869835152016]
[null,null,2074,10.956421922074826,3.47002529973622,17.405745147425439,21.255894496825015,7.2144534952542934,8.0160594391714373,10.577167489629792,0,1.9437450000000001,2.625,0,0,null,null,null,11.685843455692584,22.743062032198306,7.1729716355284907,8.3796397611314148,9.9493843439475231,6.4911869835152016]
[null,null,2075,10.956421922074826,3.47002529973622,17.405745147425439,21.255894496825015,7.2144534952542934,8.0160594391714373,10.577167489629792,0,1.9437450000000001,2.625,0,0,null,null,null,11.685843455692584,22.743062032198306,7.1729716355284907,8.3796397611314148,9.9493843439475231,6.4911869835152016]
[]
[null,null,"450 ppm 2015 scenario "]
[null,null,null,"Central power station",null,null,null,null,null,null,null,null,null,null,null,null,null,null,"Decentral power station"]
[null,null,{"$f":"Admin!$T$6&Admin!$R$6&\"/GJ\"","v":"EUR2014/GJ"},{"$f":"D316","v":"Natural gas"},"Coal","Fueloil","Gas oil","Straw","Wood chips","Wood pellets","Energy crops","Uranium","Local biomass","wind","solar","New fuel 3","New fuel 4","New fuel 5","Natural gas","Gas oil","Straw","Wood chips","Wood pellets","Energy crops","New fuel 1","New fuel 2","New fuel 3","New fuel 4","New fuel 5"]
[null,"450ppm 2015",2012,8.0000860062036843,3.5864545540024224,13.000380941126805,16.239411156201633,5.7596278230155011,6.3995864700172227,8.5877306944180241,6.4918859980143111,{"$f":"L317","v":1.9437450000000001},2.625,0,0,0,0,0,8.4703112264821154,17.961014785005343,5.7596278230155011,6.3995864700172227,9.1573766823818588,6.4918859980143111,{"$f":"Y317","v":0},0,0,0,0]
[null,null,2013,10.192106337696909,2.6408895835453592,12.871060096427552,16.113547274888926,5.8328825028551599,6.4809805587279543,9.521966412821623,6.4911869835152016,1.9437450000000001,2.625,0,0,0,0,0,10.921527871314668,17.835150903692636,5.6804908618429533,6.6360874554240112,9.198033931225698,6.4911869835152016,0,0,0,0,0]
[null,null,2014,7.5585522408571242,2.3889326651874234,11.12813229461676,14.978281644016331,5.9061371826948186,6.5623746474386868,9.5428040841437269,0,1.9437450000000001,2.625,0,0,0,0,0,8.2879737744748816,16.46544917938963,5.7407134805579592,6.7064409819602329,9.238691180069539,{"$f":"X386","v":6.4911869835152016},0,0,0,0,0]
[null,null,2015,7.4305743868106511,2.3010902583919828,7.6457084820421635,11.616957814575201,5.9793918625344773,6.6437687361494193,9.5636417554658326,0,1.9437450000000001,2.625,0,0,0,0,0,8.1829386500220238,13.150901707722365,5.8009360992729659,6.7767945084964554,9.2793484289133801,{"$f":"X387","v":6.4911869835152016},0,0,0,0,0]
[null,null,2016,7.4551867843954582,2.1330991659663012,8.4761660636588889,12.413675891773519,6.024299037555287,6.6936655972836512,9.6482132392765791,0,1.9437450000000001,2.625,0,0,0,0,0,8.2022406778158423,13.934587486410372,5.8890291903057461,6.8797069980207315,9.298513490117065,6.4911869835152016,0,0,0,0,0]
[null,null,2017,7.3361426341882376,2.0491448676847073,8.6551450012307534,12.560783788399137,6.0692062125760966,6.7435624584178848,9.7327847230873274,0,1.9437450000000001,2.625,0,0,0,0,0,8.0776212821658149,14.069384801520188,5.9771222813385272,6.9826194875450076,9.3176785513207498,6.4911869835152016,0,0,0,0,0]
[null,null,2018,7.2219397232301406,1.9649160475421741,8.670254424095047,12.545739604964625,6.1141133875969054,6.7934593195521176,9.817356206898074,0,1.9437450000000001,2.625,0,0,0,0,0,7.9575579256539939,14.042693416823472,6.0652153723713074,7.0855319770692846,9.3368436125244365,{"$f":"X390","v":6.4911869835152016},0,0,0,0,0]
[null,null,2019,7.1613842940825974,1.9116899845551649,8.5891460051092281,12.436059835429523,6.1590205626177159,6.8433561806863503,9.9019276907088223,0,1.9437450000000001,2.625,0,0,0,0,0,7.8908343924175695,13.921977611768005,6.1533084634040875,7.1884444665935598,9.3560086737281232,6.4911869835152016,0,0,0,0,0]
[null,null,2020,7.0975641641573288,1.8417122272124893,8.4228001744560288,12.242603554922592,6.2039277376385256,6.8932530418205822,9.9864991745195688,0,1.9437450000000001,2.625,0,0,0,0,0,7.8205136198598151,13.718049586600539,6.2414015544368695,7.2913569561178386,9.3751737349318081,6.4911869835152016,0,0,0,0,0]
[null,null,2021,6.9228426314895968,1.8964995360387198,8.2560240579116204,12.019787854009071,6.2871279997081366,6.9856977774534847,10.036559004628337,0,1.9437450000000001,2.625,0,0,0,0,0,7.6331449124387607,13.473587907049192,6.321411646434961,7.3848266897604695,9.4199978457825218,6.4911869835152016,0,0,0,0,0]
[null,null,2022,6.8112020016150847,1.9503301592198456,8.2231875211045828,11.935182648038886,6.3703282617777477,7.0781425130863864,10.086618834737104,0,{"$f":"L327","v":1.9437450000000001},2.625,0,0,0,0,0,7.5098712680505777,13.368986415963231,6.4014217384330534,7.4782964234030995,9.4648219566332354,6.4911869835152016,{"$f":"Y327","v":0},0,0,0,0]
[null,null,2023,6.7589266528230354,2.0071829601889304,8.3858203773105426,12.049847427033608,6.4535285238473588,7.1705872487192881,10.136678664845872,0,1.9437450000000001,2.625,0,0,0,0,0,7.4468597811472765,13.465122935223311,6.4814318304311449,7.5717661570457304,9.5096460674839474,6.4911869835152016,0,0,0,0,0]
[null,null,2024,6.76285262776151,2.0669680311236944,8.6341096141202982,12.253565467636353,6.5367287859169707,7.2630319843521898,10.186738494954641,0,1.9437450000000001,2.625,0,0,0,0,0,7.4408466238604865,13.651624803154172,6.5614419224292382,7.6652358906883622,9.5544701783346611,6.4911869835152016,0,0,0,0,0]
[null,null,2025,6.8202689145520985,2.1295983999674832,8.96504022991056,12.542973279913555,6.6199290479865827,7.3554767199850914,10.236798325063411,0,1.9437450000000001,2.625,0,0,0,0,0,7.4890352110482485,13.92499392192668,6.6414520144273288,7.7587056243309913,9.5992942891853748,6.4911869835152016,0,0,0,0,0]
[null,null,2026,6.928839194015036,2.194989911572359,9.3759960008278398,12.915152244343695,6.7097649017545828,7.4552943352828676,10.286190375203285,0,1.9437450000000001,2.625,0,0,0,0,0,7.5890154774662797,14.282194867973683,6.7149870808684931,7.84461107578095,9.6580325092389145,6.4911869835152016,0,0,0,0,0]
[null,null,2027,7.0865392681969315,2.2630611145702386,9.8646956608738225,13.367557415291619,6.7996007555225813,7.5551119505806454,10.33558242534316,0,1.9437450000000001,2.625,0,0,0,0,0,7.7386993312231667,14.720580846157562,6.7885221473096582,7.9305165272309095,9.7167707292924526,6.4911869835152016,0,0,0,0,0]
[null,null,2028,7.291606622530006,2.3337331536525778,10.429140958252962,13.897959573460366,6.8894366092905805,7.6549295658784233,10.384974475483036,0,1.9437450000000001,2.625,0,0,0,0,0,7.936268623865927,15.237833423143499,6.8620572137508233,8.016421978680869,9.7755089493459906,6.4911869835152016,0,0,0,0,0]
[null,null,2029,7.5424994625028452,2.4069296669593259,11.067574087146957,14.504397737426451,6.979272463058579,7.7547471811762003,10.434366525622909,0,1.9437450000000001,2.625,0,0,0,0,0,8.1801328940406606,15.83191313843184,6.9355922801919876,8.1023274301308277,9.8342471693995268,6.4911869835152016,0,0,0,0,0]
[null,null,2030,7.8378632115089957,2.482576688296628,11.778442578346368,15.18513999616277,7.0691083168265774,7.8545647964739747,10.483758575762785,0,1.9437450000000001,2.625,0,0,0,0,0,8.4688948078435935,16.501018769386636,7.0091273466331545,8.1882328815807881,9.8929853894530719,6.4911869835152016,0,0,0,0,0]
[null,null,2031,7.7942598235727374,2.4760748362603096,11.778558437336715,15.13369453196985,7.1575978007145595,7.9528864452383994,10.54585889307044,0,1.9437450000000001,2.625,0,0,0,0,0,8.4152810697963218,16.429657110012617,7.0876133965454144,8.2799221922259516,9.9567119116698528,6.4911869835152016,0,0,0,0,0]
[null,null,2032,7.7507168019836605,2.4695766000599488,11.777943700037431,15.08285195398342,7.2460872846025399,8.0512080940028223,10.607959210378095,0,{"$f":"L337","v":1.9437450000000001},2.625,0,0,0,0,0,8.3619377054412176,16.359413410858387,7.1660994464576708,8.3716115028711116,10.020438433886634,6.4911869835152016,{"$f":"Y337","v":0},0,0,0,0]
[null,null,2033,7.7072322668209177,2.4630819169931888,11.776626346731952,15.032589172944508,7.334576768490523,8.1495297427672462,10.670059527685746,0,1.9437450000000001,2.625,0,0,0,0,0,8.3088562948363069,16.290244856426174,7.2445854963699317,8.4633008135162751,10.084164956103415,6.4911869835152016,0,0,0,0,0]
[null,null,2034,7.6638044154206817,2.456590725799106,11.774632946933117,14.982884263758468,7.4230662523785034,8.2478513915316718,10.732159844993401,0,1.9437450000000001,2.625,0,0,0,0,0,8.2560287640646344,16.222110789982793,7.3230715462821889,8.554990124161435,10.147891478320197,6.4911869835152016,0,0,0,0,0]
[null,null,2035,7.6204315184478286,2.4501029666170253,11.771988747190473,14.933716393036587,7.5115557362664838,8.3461730402960921,10.794260162301054,0,1.9437450000000001,2.625,0,0,0,0,0,8.2034473676397628,16.154972579196709,7.4015575961944471,8.6466794348065967,10.211618000536973,6.4911869835152016,0,0,0,0,0]
[null,null,2036,7.5771119162048812,2.4436185809467412,11.768717752419979,14.885065751983076,7.603734786198288,8.4485942068869857,10.856161067574766,0,1.9437450000000001,2.625,0,0,0,0,0,8.1511046719740357,16.08879349168712,7.4790887129926222,8.7372531693839051,10.28150958060931,6.4911869835152016,0,0,0,0,0]
[null,null,2037,7.5338440151617165,2.4371375116100897,11.764842801306857,14.836913494172753,7.6959138361300923,8.5510153734778793,10.918061972848481,0,1.9437450000000001,2.625,0,0,0,0,0,8.0989935398354529,16.023538579642334,7.5566198297907974,8.8278269039612116,10.351401160681645,6.4911869835152016,0,0,0,0,0]
[null,null,2038,7.4906262846907046,2.4306597027138057,11.760385636279448,14.78924167780888,7.7880928860618974,8.6534365400687729,10.979962878122192,0,1.9437450000000001,2.625,0,0,0,0,0,8.0471071157248542,15.959174572745622,7.6341509465889725,8.9184006385385199,10.421292740753982,6.4911869835152016,0,0,0,0,0]
[null,null,2039,7.4474572539933144,2.4241850996136378,11.755366968504658,14.742033212089003,7.8802719359937017,8.7558577066596666,11.041863783395906,0,1.9437450000000001,2.625,0,0,0,0,0,7.9954388121104731,15.895669778718981,7.7116820633871486,9.0089743731158283,10.491184320826319,6.4911869835152016,0,0,0,0,0]
[null,null,2040,7.4043355092051515,2.4177136488796513,11.74980653831345,14.695271807342051,7.9724509859255042,8.858278873250562,11.103764688669619,0,1.9437450000000001,2.625,0,0,0,0,0,7.9439822964617788,15.832993990859947,7.7892131801853202,9.0995481076931313,10.561075900898651,6.4911869835152016,0,0,0,0,0]
[null,null,2041,7.3612596906674828,2.4112452982626817,11.74372317142686,14.64894192863073,8.0632479470424574,8.9591643856027314,11.161395740584503,0,1.9437450000000001,2.625,0,0,0,0,0,7.8927314790289564,15.771118402004404,7.862203352965274,9.1848170011276569,10.631232791776265,6.4911869835152016,0,0,0,0,0]
[null,null,2042,7.3182284903541879,2.4047799966619001,11.737134831319155,14.603028752541613,8.1540449081594115,9.0600498979549027,11.219026792499387,0,{"$f":"L347","v":1.9437450000000001},2.625,0,0,0,0,0,7.8416805013185193,15.710015524400314,7.9351935257452269,9.2700858945621825,10.701389682653879,6.4911869835152016,{"$f":"Y347","v":0},0,0,0,0]
[null,null,2043,7.2752406494438882,2.3983176940934339,11.730058668024261,14.557518126910171,8.2448418692763639,9.1609354103070721,11.276657844414272,0,1.9437450000000001,2.625,0,0,0,0,0,7.7908237252191697,15.64965911502405,8.008183698525178,9.3553547879967045,10.771546573531493,6.4911869835152016,0,0,0,0,0]
[null,null,2044,7.2322949560278058,2.3918583416600177,11.722511063664136,14.512396533250877,8.335638830393318,9.2618209226592416,11.334288896329154,0,1.9437450000000001,2.625,0,0,0,0,0,7.7401557227355759,15.590024105912734,8.0811738713051309,9.4406236814312283,10.841703464409107,6.4911869835152016,0,0,0,0,0]
[null,null,2045,7.1893902429445617,2.3854018915216231,11.714507674953124,14.467651051682745,8.4264357915102703,9.3627064350114093,11.391919948244038,0,1.9437450000000001,2.625,0,0,0,0,0,7.6896712662906825,15.53108653912399,8.1541640440850873,9.5258925748657557,10.911860355286722,6.4911869835152016,0,0,0,0,0]
[null,null,2046,7.1465253857338036,2.3789482968670406,11.706063472910042,14.423269328158984,8.5252091529233809,9.4724546143593109,11.455999754990176,0,1.9437450000000001,2.625,0,0,0,0,0,7.6393653195602527,15.472823505968378,8.2268200951292521,9.6107711391696853,10.997266358671293,6.4911869835152016,0,0,0,0,0]
[null,null,2047,7.1036993007011109,2.3724975118863689,11.697192779989733,14.379239543826165,8.6239825143364914,9.5822027937072107,11.520079561736312,0,1.9437450000000001,2.625,0,0,0,0,0,7.5892330288058316,15.415213090190694,8.299476146173415,9.6956497034736149,11.082672362055865,6.4911869835152016,0,0,0,0,0]
[null,null,2048,7.0609109430872001,2.3660494917443859,11.687909304827533,14.335550386353152,8.7227558757496002,9.6919509730551106,11.584159368482448,0,1.9437450000000001,2.625,0,0,0,0,0,7.5392697146747736,15.358234314803768,8.372132197217578,9.7805282677775445,11.168078365440437,6.4911869835152016,0,0,0,0,0]
[null,null,2049,7.0181593053348879,2.3596041925547642,11.678226174773892,14.292191023083621,8.8215292371627108,9.8016991524030104,11.648239175228584,0,1.9437450000000001,2.625,0,0,0,0,0,7.4894708644382577,15.301867092304013,8.4447882482617391,9.8654068320814723,11.253484368825008,6.4911869835152016,0,0,0,0,0]
[null,null,2050,6.9754434154478409,2.3531615713550975,11.668155966381331,14.249151075878313,8.9203025985758231,9.9114473317509137,11.712318981974722,0,1.9437450000000001,2.625,0,0,0,0,0,7.4398321246402608,15.246092178020165,8.5174442993059074,9.9502853963854072,11.338890372209583,6.4911869835152016,0,0,0,0,0]
[null,null,2051,6.9754434154478409,2.3531615713550975,11.668155966381331,14.249151075878313,8.9203025985758231,9.9114473317509137,11.712318981974722,0,1.9437450000000001,2.625,0,0,0,0,0,7.4398321246402608,15.246092178020165,8.5174442993059074,9.9502853963854072,11.338890372209583,6.4911869835152016,0,0,0,0,0]
[null,null,2052,6.9754434154478409,2.3531615713550975,11.668155966381331,14.249151075878313,8.9203025985758231,9.9114473317509137,11.712318981974722,0,{"$f":"L357","v":1.9437450000000001},2.625,0,0,0,0,0,7.4398321246402608,15.246092178020165,8.5174442993059074,9.9502853963854072,11.338890372209583,6.4911869835152016,{"$f":"Y357","v":0},0,0,0,0]
[null,null,2053,6.9754434154478409,2.3531615713550975,11.668155966381331,14.249151075878313,8.9203025985758231,9.9114473317509137,11.712318981974722,0,1.9437450000000001,2.625,0,0,0,0,0,7.4398321246402608,15.246092178020165,8.5174442993059074,9.9502853963854072,11.338890372209583,6.4911869835152016,0,0,0,0,0]
[null,null,2054,6.9754434154478409,2.3531615713550975,11.668155966381331,14.249151075878313,8.9203025985758231,9.9114473317509137,11.712318981974722,0,1.9437450000000001,2.625,0,0,0,0,0,7.4398321246402608,15.246092178020165,8.5174442993059074,9.9502853963854072,11.338890372209583,6.4911869835152016,0,0,0,0,0]
[null,null,2055,6.9754434154478409,2.3531615713550975,11.668155966381331,14.249151075878313,8.9203025985758231,9.9114473317509137,11.712318981974722,0,1.9437450000000001,2.625,0,0,0,0,0,7.4398321246402608,15.246092178020165,8.5174442993059074,9.9502853963854072,11.338890372209583,6.4911869835152016,0,0,0,0,0]
[null,null,2056,6.9754434154478409,2.3531615713550975,11.668155966381331,14.249151075878313,8.9203025985758231,9.9114473317509137,11.712318981974722,0,1.9437450000000001,2.625,0,0,0,0,0,7.4398321246402608,15.246092178020165,8.5174442993059074,9.9502853963854072,11.338890372209583,6.4911869835152016,0,0,0,0,0]
[null,null,2057,6.9754434154478409,2.3531615713550975,11.668155966381331,14.249151075878313,8.9203025985758231,9.9114473317509137,11.712318981974722,0,1.9437450000000001,2.625,0,0,0,0,0,7.4398321246402608,15.246092178020165,8.5174442993059074,9.9502853963854072,11.338890372209583,6.4911869835152016,0,0,0,0,0]
[null,null,2058,6.9754434154478409,2.3531615713550975,11.668155966381331,14.249151075878313,8.9203025985758231,9.9114473317509137,11.712318981974722,0,1.9437450000000001,2.625,0,0,0,0,0,7.4398321246402608,15.246092178020165,8.5174442993059074,9.9502853963854072,11.338890372209583,6.4911869835152016,0,0,0,0,0]
[null,null,2059,6.9754434154478409,2.3531615713550975,11.668155966381331,14.249151075878313,8.9203025985758231,9.9114473317509137,11.712318981974722,0,1.9437450000000001,2.625,0,0,0,0,0,7.4398321246402608,15.246092178020165,8.5174442993059074,9.9502853963854072,11.338890372209583,6.4911869835152016,0,0,0,0,0]
[null,null,2060,6.9754434154478409,2.3531615713550975,11.668155966381331,14.249151075878313,8.9203025985758231,9.9114473317509137,11.712318981974722,0,1.9437450000000001,2.625,0,0,0,0,0,7.4398321246402608,15.246092178020165,8.5174442993059074,9.9502853963854072,11.338890372209583,6.4911869835152016,0,0,0,0,0]
[null,null,2061,6.9754434154478409,2.3531615713550975,11.668155966381331,14.249151075878313,8.9203025985758231,9.9114473317509137,11.712318981974722,0,1.9437450000000001,2.625,0,0,0,0,0,7.4398321246402608,15.246092178020165,8.5174442993059074,9.9502853963854072,11.338890372209583,6.4911869835152016,0,0,0,0,0]
[null,null,2062,6.9754434154478409,2.3531615713550975,11.668155966381331,14.249151075878313,8.9203025985758231,9.9114473317509137,11.712318981974722,0,{"$f":"L367","v":1.9437450000000001},2.625,0,0,0,0,0,7.4398321246402608,15.246092178020165,8.5174442993059074,9.9502853963854072,11.338890372209583,6.4911869835152016,{"$f":"Y367","v":0},0,0,0,0]
[null,null,2063,6.9754434154478409,2.3531615713550975,11.668155966381331,14.249151075878313,8.9203025985758231,9.9114473317509137,11.712318981974722,0,1.9437450000000001,2.625,0,0,0,0,0,7.4398321246402608,15.246092178020165,8.5174442993059074,9.9502853963854072,11.338890372209583,6.4911869835152016,0,0,0,0,0]
[null,null,2064,6.9754434154478409,2.3531615713550975,11.668155966381331,14.249151075878313,8.9203025985758231,9.9114473317509137,11.712318981974722,0,1.9437450000000001,2.625,0,0,0,0,0,7.4398321246402608,15.246092178020165,8.5174442993059074,9.9502853963854072,11.338890372209583,6.4911869835152016,0,0,0,0,0]
[null,null,2065,6.9754434154478409,2.3531615713550975,11.668155966381331,14.249151075878313,8.9203025985758231,9.9114473317509137,11.712318981974722,0,1.9437450000000001,2.625,0,0,0,0,0,7.4398321246402608,15.246092178020165,8.5174442993059074,9.9502853963854072,11.338890372209583,6.4911869835152016,0,0,0,0,0]
[null,null,2066,6.9754434154478409,2.3531615713550975,11.668155966381331,14.249151075878313,8.9203025985758231,9.9114473317509137,11.712318981974722,0,1.9437450000000001,2.625,0,0,0,0,0,7.4398321246402608,15.246092178020165,8.5174442993059074,9.9502853963854072,11.338890372209583,6.4911869835152016,0,0,0,0,0]
[null,null,2067,6.9754434154478409,2.3531615713550975,11.668155966381331,14.249151075878313,8.9203025985758231,9.9114473317509137,11.712318981974722,0,1.9437450000000001,2.625,0,0,0,0,0,7.4398321246402608,15.246092178020165,8.5174442993059074,9.9502853963854072,11.338890372209583,6.4911869835152016,0,0,0,0,0]
[null,null,2068,6.9754434154478409,2.3531615713550975,11.668155966381331,14.249151075878313,8.9203025985758231,9.9114473317509137,11.712318981974722,0,1.9437450000000001,2.625,0,0,0,0,0,7.4398321246402608,15.246092178020165,8.5174442993059074,9.9502853963854072,11.338890372209583,6.4911869835152016,0,0,0,0,0]
[null,null,2069,6.9754434154478409,2.3531615713550975,11.668155966381331,14.249151075878313,8.9203025985758231,9.9114473317509137,11.712318981974722,0,1.9437450000000001,2.625,0,0,0,0,0,7.4398321246402608,15.246092178020165,8.5174442993059074,9.9502853963854072,11.338890372209583,6.4911869835152016,0,0,0,0,0]
[null,null,2070,6.9754434154478409,2.3531615713550975,11.668155966381331,14.249151075878313,8.9203025985758231,9.9114473317509137,11.712318981974722,0,1.9437450000000001,2.625,0,0,0,0,0,7.4398321246402608,15.246092178020165,8.5174442993059074,9.9502853963854072,11.338890372209583,6.4911869835152016,0,0,0,0,0]
[null,null,2071,6.9754434154478409,2.3531615713550975,11.668155966381331,14.249151075878313,8.9203025985758231,9.9114473317509137,11.712318981974722,0,1.9437450000000001,2.625,0,0,0,0,0,7.4398321246402608,15.246092178020165,8.5174442993059074,9.9502853963854072,11.338890372209583,6.4911869835152016,0,0,0,0,0]
[null,null,2072,6.9754434154478409,2.3531615713550975,11.668155966381331,14.249151075878313,8.9203025985758231,9.9114473317509137,11.712318981974722,0,{"$f":"L377","v":1.9437450000000001},2.625,0,0,0,0,0,7.4398321246402608,15.246092178020165,8.5174442993059074,9.9502853963854072,11.338890372209583,6.4911869835152016,{"$f":"Y377","v":0},0,0,0,0]
[null,null,2073,6.9754434154478409,2.3531615713550975,11.668155966381331,14.249151075878313,8.9203025985758231,9.9114473317509137,11.712318981974722,0,1.9437450000000001,2.625,0,0,0,0,0,7.4398321246402608,15.246092178020165,8.5174442993059074,9.9502853963854072,11.338890372209583,6.4911869835152016,0,0,0,0,0]
[null,null,2074,6.9754434154478409,2.3531615713550975,11.668155966381331,14.249151075878313,8.9203025985758231,9.9114473317509137,11.712318981974722,0,1.9437450000000001,2.625,0,0,0,0,0,7.4398321246402608,15.246092178020165,8.5174442993059074,9.9502853963854072,11.338890372209583,6.4911869835152016,0,0,0,0,0]
[null,null,2075,6.9754434154478409,2.3531615713550975,11.668155966381331,14.249151075878313,8.9203025985758231,9.9114473317509137,11.712318981974722,0,1.9437450000000001,2.625,0,0,0,0,0,7.4398321246402608,15.246092178020165,8.5174442993059074,9.9502853963854072,11.338890372209583,6.4911869835152016,0,0,0,0,0]
[]
[null,null,"Current Policies 2015 scenario "]
[null,null,null,"Central power station",null,null,null,null,null,null,null,null,null,null,null,null,null,null,"Decentral power station"]
[null,null,{"$f":"Admin!$T$7&Admin!$R$7&\"/GJ\"","v":"EUR2014/GJ"},{"$f":"D316","v":"Natural gas"},"Coal","Fueloil","Gas oil","Straw","Wood chips","Wood pellets","Energy crops","Uranium","Local biomass","wind","solar","New fuel 3","New fuel 4","New fuel 5","Natural gas","Gas oil","Straw","Wood chips","Wood pellets","Energy crops","New fuel 1","New fuel 2","New fuel 3","New fuel 4","New fuel 5"]
[null,"Current Policies 2015",2012,8.0000860062036843,3.5864545540024224,13.000380941126805,16.239411156201633,4.9035705903725466,5.4484117670806063,7.3893985214766129,6.4918859980143111,{"$f":"L385","v":1.9437450000000001},2.625,{"$f":"N317","v":0},0,0,0,0,8.4703112264821154,17.961014785005343,4.9035705903725466,5.4484117670806063,7.9590445094404458,6.4918859980143111,{"$f":"Y317","v":0},0,0,0,0]
[null,null,2013,10.192106337696909,2.6408895835453592,12.871060096427552,16.113547274888926,4.9094118732554923,5.4549020813949909,8.2311575275437843,6.4911869835152016,1.9437450000000001,2.625,0,0,0,0,0,10.921527871314668,17.835150903692636,4.9891395004030015,6.4146575666774748,7.9582415495100332,6.4911869835152016,0,0,0,0,0]
[null,null,2014,7.5585522408571242,2.3889326651874234,11.12813229461676,14.978281644016331,4.9152531561384372,5.4613923957093755,8.2222400680228223,0,1.9437450000000001,2.625,0,0,0,0,0,8.2879737744748816,16.46544917938963,4.9987190117309517,6.4416647042975326,7.9574385895796196,{"$f":"X454","v":6.4911869835152016},0,0,0,0,0]
[null,null,2015,7.4305743868106511,2.3010902583919828,7.6457084820421635,11.616957814575201,4.9210944390213829,5.4678827100237584,8.2133226085018585,0,1.9437450000000001,2.625,0,0,0,0,0,8.1829386500220238,13.150901707722365,5.0082985230589019,6.4686718419175886,7.9566356296492078,{"$f":"X455","v":6.4911869835152016},0,0,0,0,0]
[null,null,2016,7.5593857172628489,2.2422986882239222,8.6189108876071714,12.622731255532793,4.9451312835391361,5.4945903150434852,8.2524731280386412,0,1.9437450000000001,2.625,0,0,0,0,0,8.3168809612140837,14.169256111659196,5.0436567044405036,6.5162018903037957,7.973640132357561,6.4911869835152016,0,0,0,0,0]
[null,null,2017,7.5479075491374568,2.2549481328409486,8.9409039140120239,12.975491562623963,4.9691681280568902,5.521297920063212,8.2916236475754257,0,1.9437450000000001,2.625,0,0,0,0,0,8.3107897017434595,14.533900659291728,5.0790148858221054,6.5637319386900028,7.990644635065915,6.4911869835152016,0,0,0,0,0]
[null,null,2018,7.5451952560779967,2.255393657279682,9.0913227670282417,13.155019740003475,4.9932049725746444,5.5480055250829388,8.3307741671122102,0,1.9437450000000001,2.625,0,0,0,0,0,8.3137398831343106,14.724672671193265,5.1143730672037071,6.6112619870762099,8.0076491377742691,{"$f":"X458","v":6.4911869835152016},0,0,0,0,0]
[null,null,2019,7.6037050685542704,2.2815817910226275,9.1347487467897288,13.226027585177516,5.0172418170923994,5.5747131301026656,8.3699246866489947,0,1.9437450000000001,2.625,0,0,0,0,0,8.378209435614993,14.806334351084903,5.1497312485853088,6.6587920354624179,8.0246536404826223,6.4911869835152016,0,0,0,0,0]
[null,null,2020,7.6653692972899137,2.2791188811754552,9.0791222659720834,13.19657266309838,5.0412786616101517,5.6014207351223906,8.4090752061857774,0,1.9437450000000001,2.625,0,0,0,0,0,8.4461547094485976,14.786988515426557,5.1850894299669115,6.7063220838486242,8.0416581431909773,6.4911869835152016,0,0,0,0,0]
[null,null,2021,7.6880463033707604,2.3878329577658977,9.165231770618341,13.343486010083486,5.0615748983340358,5.6239721092600394,8.421742452590399,0,1.9437450000000001,2.625,0,0,0,0,0,8.4768605399514954,14.957388094281189,5.205142639375989,6.7415624588390246,8.054010655108458,6.4911869835152016,0,0,0,0,0]
[null,null,2022,7.7620043114852084,2.4977912565447147,9.3805250240748599,13.614949094799915,5.0818711350579182,5.6465234833976865,8.4344096989950224,0,1.9437450000000001,2.625,{"$f":"N327","v":0},0,0,0,0,8.5582035516616966,15.2505474670988,5.2251958487850656,6.7768028338294268,8.0663631670259388,6.4911869835152016,{"$f":"Y327","v":0},0,0,0,0]
[null,null,2023,7.8896021151912006,2.6141228515384061,9.8103995016488401,14.096869700782692,5.1021673717818024,5.6690748575353345,8.4470769453996439,0,1.9437450000000001,2.625,0,0,0,0,0,8.6926169936068582,15.752571530243177,5.2452490581941431,6.8120432088198282,8.0787156789434196,6.4911869835152016,0,0,0,0,0]
[null,null,2024,8.0728482941559907,2.7369149557843886,10.340615984911135,14.675446642416247,5.1224636085056847,5.6916262316729833,8.4597441918042673,0,1.9437450000000001,2.625,0,0,0,0,0,8.8821728464000476,16.34982829365994,5.2653022676032215,6.8472835838102295,8.0910681908609003,6.4911869835152016,0,0,0,0,0]
[null,null,2025,8.3134638840102504,2.8662519345474311,10.974445798683616,15.354329359894178,5.1427598452295662,5.7141776058106286,8.4724114382088906,0,1.9437450000000001,2.625,0,0,0,0,0,9.1286464702718302,17.046113249255072,5.2853554770122981,6.8825239588006326,8.1034207027783829,6.4911869835152016,0,0,0,0,0]
[null,null,2026,8.612932053671468,3.0022154206140828,11.714727587551188,16.136684601921562,5.145251329758783,5.7169459219542045,8.4730917452346315,0,1.9437450000000001,2.625,0,0,0,0,0,9.4335678504615554,17.844719879985096,5.2904408926391113,6.8901606439931271,8.1003007763619266,6.4911869835152016,0,0,0,0,0]
[null,null,2027,8.9725378276830909,3.144884424030773,12.56393656148655,17.025273675080204,5.1477428142879997,5.7197142380977786,8.4737720522603741,0,1.9437450000000001,2.625,0,0,0,0,0,9.7982625733946787,18.748520000765513,5.2955263082659254,6.8977973291856225,8.0971808499454703,6.4911869835152016,0,0,0,0,0]
[null,null,2028,9.3934001057426464,3.2943354365954329,13.52424085554094,18.022515317842156,5.1502342988172174,5.7224825542413527,8.474452359286115,0,1.9437450000000001,2.625,0,0,0,0,0,10.22388485690932,19.760029148721575,5.3006117238927386,6.9054340143781152,8.094060923529014,6.4911869835152016,0,0,0,0,0]
[null,null,2029,9.8764976675118685,3.4506425313930169,14.597547717047513,19.130537226310892,5.1527257833464342,5.7252508703849267,8.4751326663118576,0,1.9437450000000001,2.625,0,0,0,0,0,10.71144437590992,20.881460171005369,5.3056971395195518,6.9130706995706088,8.0909409971125577,6.4911869835152016,0,0,0,0,0]
[null,null,2030,10.42269044083643,3.6138774576469914,15.785541599845649,20.351218551558354,5.1552172678756527,5.7280191865285035,8.4758129733375984,0,1.9437450000000001,2.625,0,0,0,0,0,11.261828201919672,22.114767422889308,5.3107825551463659,6.9207073847631033,8.0878210706960996,6.4911869835152016,0,0,0,0,0]
[null,null,2031,10.528502841895582,3.6386988076008113,16.061670596368248,20.63685617995889,5.1561603944893104,5.7290671049881219,8.4832798131182319,0,1.9437450000000001,2.625,0,0,0,0,0,11.367379669682091,22.404077877289936,5.3162595129953862,6.9269579035703295,8.0874668577701545,6.4911869835152016,0,0,0,0,0]
[null,null,2032,10.634316816485109,3.6635194855851161,16.337934325103685,20.922382627678868,5.1571035211029672,5.7301150234477412,8.4907466528988653,0,{"$f":"L405","v":1.9437450000000001},2.625,{"$f":"N337","v":0},0,0,0,0,11.472938185099993,22.693182164130686,5.3217364708444075,6.9332084223775556,8.0871126448442077,6.4911869835152016,{"$f":"Y337","v":0},0,0,0,0]
[null,null,2033,10.740132315602336,3.6883395032525566,16.61432762609487,21.207802152701795,5.158046647716624,5.7311629419073604,8.498213492679497,0,1.9437450000000001,2.625,0,0,0,0,0,11.578503528696215,22.982088179190448,5.3272134286934278,6.9394589411847818,8.0867584319182608,6.4911869835152016,0,0,0,0,0]
[null,null,2034,10.8459492922584,3.7131588719879072,16.890845599550627,21.493118798322957,5.1589897743302817,5.7322108603669797,8.5056803324601304,0,1.9437450000000001,2.625,0,0,0,0,0,11.68407549001321,23.270803420141636,5.3326903865424482,6.945709459992008,8.0864042189923158,6.4911869835152016,0,0,0,0,0]
[null,null,2035,10.951767701375839,3.7379776029157177,17.167483589652779,21.778336406511695,5.1599329009439385,5.7332587788265981,8.5131471722407621,0,1.9437450000000001,2.625,0,0,0,0,0,11.789653867154414,23.559335011328539,5.3381673443914703,6.9519599787992323,8.0860500060663689,6.4911869835152016,0,0,0,0,0]
[null,null,2036,11.057587499692398,3.7627957069077071,17.444237169557795,22.063458630288064,5.1608003606763768,5.7342226229737516,8.5174995386086767,0,1.9437450000000001,2.625,0,0,0,0,0,11.895238466353316,23.847689726717856,5.3419380099942675,6.9571153063693432,8.0855261734707877,6.4911869835152016,0,0,0,0,0]
[null,null,2037,11.163408645670566,3.7876131945899068,17.721102127491502,22.348488945197456,5.1616678204088151,5.7351864671209052,8.5218519049765913,0,1.9437450000000001,2.625,0,0,0,0,0,12.000829101568335,24.135874011176742,5.3457086755970646,6.9622706339394549,8.0850023408752083,6.4911869835152016,0,0,0,0,0]
[null,null,2038,11.269231099412458,3.8124300763495609,17.998074453844861,22.633430659959082,5.1625352801412534,5.7361503112680587,8.5262042713445059,0,1.9437450000000001,2.625,0,0,0,0,0,12.106425594101612,24.423894000218667,5.3494793411998627,6.9674259615095648,8.0844785082796271,6.4911869835152016,0,0,0,0,0]
[null,null,2039,11.375054822579731,3.8372463623417947,18.275150329187916,22.918286926356856,5.1634027398736917,5.7371141554152123,8.5305566377124205,0,1.9437450000000001,2.625,0,0,0,0,0,12.212027772240242,24.711755538344637,5.3532500068026598,6.9725812890796766,8.0839546756840459,6.4911869835152016,0,0,0,0,0]
[null,null,2040,11.480879778318101,3.8620620624960655,18.552326113126501,23.203060748434819,5.1642701996061291,5.7380779995623667,8.5349090040803368,0,1.9437450000000001,2.625,0,0,0,0,0,12.317635470918265,24.999464196094657,5.3570206724054579,6.9777366166497856,8.0834308430884647,6.4911869835152016,0,0,0,0,0]
[null,null,2041,11.58670593118622,3.8868771865223959,18.829598333933362,23.487754991053492,5.1661392858824993,5.7401547620916658,8.537473982122302,0,1.9437450000000001,2.625,0,0,0,0,0,12.423248531398121,25.287025285914236,5.3602037711077628,6.9834715899938926,8.0839380430352836,6.4911869835152016,0,0,0,0,0]
[null,null,2042,11.692533247088626,3.9116917439173982,19.106963678891645,23.772372387858436,5.1680083721588685,5.7422315246209648,8.5400389601642672,0,1.9437450000000001,2.625,{"$f":"N347","v":0},0,0,0,0,12.528866800970272,25.574443876930737,5.3633868698100686,6.9892065633379978,8.0844452429821025,6.4911869835152016,{"$f":"Y347","v":0},0,0,0,0]
[null,null,2043,11.798361693212435,3.9365057439701125,19.384418985294328,24.056915548707487,5.1698774584352387,5.7443082871502638,8.5426039382062307,0,1.9437450000000001,2.625,0,0,0,0,0,12.63449013266972,25.861724808726184,5.3665699685123753,6.9949415366821022,8.0849524429289197,6.4911869835152016,0,0,0,0,0]
[null,null,2044,11.904191237967607,3.9613191957676399,19.661961232048125,24.341386966599135,5.1717465447116089,5.7463850496795628,8.5451689162481941,0,1.9437450000000001,2.625,0,0,0,0,0,12.740118385008444,26.148872704184839,5.3697530672146794,7.0006765100262083,8.0854596428757386,6.4911869835152016,0,0,0,0,0]
[null,null,2045,12.010021850930514,3.9861321082006067,19.939587531835102,24.62578902414084,5.1736156309879773,5.7484618122088644,8.5477338942901575,0,1.9437450000000001,2.625,0,0,0,0,0,12.845751421722589,26.435891981487643,5.3729361659169852,7.0064114833703144,8.085966842822554,6.4911869835152016,0,0,0,0,0]
[null,null,2046,12.115853502790566,4.0109444899684394,20.217295123789199,24.910123999592276,5.1772000684814055,5.7524445205348949,8.5578296201541022,0,1.9437450000000001,2.625,0,0,0,0,0,12.951389111533546,26.722786865318525,5.3778352651405728,7.0150189856567691,8.0929825752701827,6.4911869835152016,{"$f":"Y351","v":0},{"$f":"Z351","v":0},{"$f":"AA351","v":0},0,0]
[null,null,2047,12.221686165299809,4.0357563495844833,20.495081366648677,25.19439407251593,5.1807845059748328,5.7564272288609262,8.5679253460180451,0,1.9437450000000001,2.625,0,0,0,0,0,13.057031327922083,27.009561397342669,5.3827343643641603,7.0236264879432246,8.0999983077178115,6.4911869835152016,{"$f":"Y352","v":0},0,0,0,0]
[null,null,2048,12.327519811225184,4.0605676953809473,20.772943732348722,25.478601329064489,5.1843689434682609,5.7604099371869575,8.578021071881988,0,1.9437450000000001,2.625,0,0,0,0,0,13.162677948914547,27.29621944601098,5.387633463587747,7.0322339902296793,8.1070140401654402,6.4911869835152016,0,0,0,0,0]
[null,null,2049,12.433354414303347,4.0853785355136996,21.050879800021608,25.762747766931852,5.1879533809616882,5.7643926455129879,8.588116797745931,0,1.9437450000000001,2.625,0,0,0,0,0,13.26832885688056,27.582764715741142,5.3925325628113336,7.040841492516134,8.114029772613069,6.4911869835152016,0,0,0,0,0]
[null,null,2050,12.539189949197906,4.1101888779669018,21.328887250374478,26.046835299992615,5.1915378184551164,5.7683753538390201,8.5982125236098721,0,1.9437450000000001,2.625,0,0,0,0,0,13.373983938341423,27.869200755520733,5.3974316620349212,7.0494489948025887,8.1210455050606978,6.4911869835152016,0,0,0,0,0]
[null,null,2051,12.539189949197906,4.1101888779669018,21.328887250374478,26.046835299992615,5.1915378184551164,5.7683753538390201,8.5982125236098721,0,1.9437450000000001,2.625,0,0,0,0,0,13.373983938341423,27.869200755520733,5.3974316620349212,7.0494489948025887,8.1210455050606978,6.4911869835152016,0,0,0,0,0]
[null,null,2052,12.539189949197906,4.1101888779669018,21.328887250374478,26.046835299992615,5.1915378184551164,5.7683753538390201,8.5982125236098721,0,{"$f":"L425","v":1.9437450000000001},2.625,{"$f":"N357","v":0},0,0,0,0,13.373983938341423,27.869200755520733,5.3974316620349212,7.0494489948025887,8.1210455050606978,6.4911869835152016,0,0,0,0,0]
[null,null,2053,12.539189949197906,4.1101888779669018,21.328887250374478,26.046835299992615,5.1915378184551164,5.7683753538390201,8.5982125236098721,0,1.9437450000000001,2.625,0,0,0,0,0,13.373983938341423,27.869200755520733,5.3974316620349212,7.0494489948025887,8.1210455050606978,6.4911869835152016,0,0,0,0,0]
[null,null,2054,12.539189949197906,4.1101888779669018,21.328887250374478,26.046835299992615,5.1915378184551164,5.7683753538390201,8.5982125236098721,0,1.9437450000000001,2.625,0,0,0,0,0,13.373983938341423,27.869200755520733,5.3974316620349212,7.0494489948025887,8.1210455050606978,6.4911869835152016,0,0,0,0,0]
[null,null,2055,12.539189949197906,4.1101888779669018,21.328887250374478,26.046835299992615,5.1915378184551164,5.7683753538390201,8.5982125236098721,0,1.9437450000000001,2.625,0,0,0,0,0,13.373983938341423,27.869200755520733,5.3974316620349212,7.0494489948025887,8.1210455050606978,6.4911869835152016,0,0,0,0,0]
[null,null,2056,12.539189949197906,4.1101888779669018,21.328887250374478,26.046835299992615,5.1915378184551164,5.7683753538390201,8.5982125236098721,0,1.9437450000000001,2.625,0,0,0,0,0,13.373983938341423,27.869200755520733,5.3974316620349212,7.0494489948025887,8.1210455050606978,6.4911869835152016,0,0,0,0,0]
[null,null,2057,12.539189949197906,4.1101888779669018,21.328887250374478,26.046835299992615,5.1915378184551164,5.7683753538390201,8.5982125236098721,0,1.9437450000000001,2.625,0,0,0,0,0,13.373983938341423,27.869200755520733,5.3974316620349212,7.0494489948025887,8.1210455050606978,6.4911869835152016,0,0,0,0,0]
[null,null,2058,12.539189949197906,4.1101888779669018,21.328887250374478,26.046835299992615,5.1915378184551164,5.7683753538390201,8.5982125236098721,0,1.9437450000000001,2.625,0,0,0,0,0,13.373983938341423,27.869200755520733,5.3974316620349212,7.0494489948025887,8.1210455050606978,6.4911869835152016,0,0,0,0,0]
[null,null,2059,12.539189949197906,4.1101888779669018,21.328887250374478,26.046835299992615,5.1915378184551164,5.7683753538390201,8.5982125236098721,0,1.9437450000000001,2.625,0,0,0,0,0,13.373983938341423,27.869200755520733,5.3974316620349212,7.0494489948025887,8.1210455050606978,6.4911869835152016,0,0,0,0,0]
[null,null,2060,12.539189949197906,4.1101888779669018,21.328887250374478,26.046835299992615,5.1915378184551164,5.7683753538390201,8.5982125236098721,0,1.9437450000000001,2.625,0,0,0,0,0,13.373983938341423,27.869200755520733,5.3974316620349212,7.0494489948025887,8.1210455050606978,6.4911869835152016,0,0,0,0,0]
[null,null,2061,12.539189949197906,4.1101888779669018,21.328887250374478,26.046835299992615,5.1915378184551164,5.7683753538390201,8.5982125236098721,0,1.9437450000000001,2.625,0,0,0,0,0,13.373983938341423,27.869200755520733,5.3974316620349212,7.0494489948025887,8.1210455050606978,6.4911869835152016,0,0,0,0,0]
[null,null,2062,12.539189949197906,4.1101888779669018,21.328887250374478,26.046835299992615,5.1915378184551164,5.7683753538390201,8.5982125236098721,0,1.9437450000000001,2.625,{"$f":"N367","v":0},{"$f":"O367","v":0},{"$f":"P367","v":0},0,0,13.373983938341423,27.869200755520733,5.3974316620349212,7.0494489948025887,8.1210455050606978,6.4911869835152016,0,{"$f":"Z367","v":0},0,0,0]
[null,null,2063,12.539189949197906,4.1101888779669018,21.328887250374478,26.046835299992615,5.1915378184551164,5.7683753538390201,8.5982125236098721,0,1.9437450000000001,2.625,{"$f":"N368","v":0},0,0,0,0,13.373983938341423,27.869200755520733,5.3974316620349212,7.0494489948025887,8.1210455050606978,6.4911869835152016,0,0,0,0,0]
[null,null,2064,12.539189949197906,4.1101888779669018,21.328887250374478,26.046835299992615,5.1915378184551164,5.7683753538390201,8.5982125236098721,0,1.9437450000000001,2.625,0,0,0,0,0,13.373983938341423,27.869200755520733,5.3974316620349212,7.0494489948025887,8.1210455050606978,6.4911869835152016,0,0,0,0,0]
[null,null,2065,12.539189949197906,4.1101888779669018,21.328887250374478,26.046835299992615,5.1915378184551164,5.7683753538390201,8.5982125236098721,0,1.9437450000000001,2.625,0,0,0,0,0,13.373983938341423,27.869200755520733,5.3974316620349212,7.0494489948025887,8.1210455050606978,6.4911869835152016,0,0,0,0,0]
[null,null,2066,12.539189949197906,4.1101888779669018,21.328887250374478,26.046835299992615,5.1915378184551164,5.7683753538390201,8.5982125236098721,0,1.9437450000000001,2.625,0,0,0,0,0,13.373983938341423,27.869200755520733,5.3974316620349212,7.0494489948025887,8.1210455050606978,6.4911869835152016,0,0,0,0,0]
[null,null,2067,12.539189949197906,4.1101888779669018,21.328887250374478,26.046835299992615,5.1915378184551164,5.7683753538390201,8.5982125236098721,0,1.9437450000000001,2.625,0,0,0,0,0,13.373983938341423,27.869200755520733,5.3974316620349212,7.0494489948025887,8.1210455050606978,6.4911869835152016,0,0,0,0,0]
[null,null,2068,12.539189949197906,4.1101888779669018,21.328887250374478,26.046835299992615,5.1915378184551164,5.7683753538390201,8.5982125236098721,0,1.9437450000000001,2.625,0,0,0,0,0,13.373983938341423,27.869200755520733,5.3974316620349212,7.0494489948025887,8.1210455050606978,6.4911869835152016,0,0,0,0,0]
[null,null,2069,12.539189949197906,4.1101888779669018,21.328887250374478,26.046835299992615,5.1915378184551164,5.7683753538390201,8.5982125236098721,0,1.9437450000000001,2.625,0,0,0,0,0,13.373983938341423,27.869200755520733,5.3974316620349212,7.0494489948025887,8.1210455050606978,6.4911869835152016,0,0,0,0,0]
[null,null,2070,12.539189949197906,4.1101888779669018,21.328887250374478,26.046835299992615,5.1915378184551164,5.7683753538390201,8.5982125236098721,0,1.9437450000000001,2.625,0,0,0,0,0,13.373983938341423,27.869200755520733,5.3974316620349212,7.0494489948025887,8.1210455050606978,6.4911869835152016,0,0,0,0,0]
[null,null,2071,12.539189949197906,4.1101888779669018,21.328887250374478,26.046835299992615,5.1915378184551164,5.7683753538390201,8.5982125236098721,0,1.9437450000000001,2.625,0,0,0,0,0,13.373983938341423,27.869200755520733,5.3974316620349212,7.0494489948025887,8.1210455050606978,6.4911869835152016,0,0,0,0,0]
[null,null,2072,12.539189949197906,4.1101888779669018,21.328887250374478,26.046835299992615,5.1915378184551164,5.7683753538390201,8.5982125236098721,0,{"$f":"L445","v":1.9437450000000001},2.625,0,0,0,0,0,13.373983938341423,27.869200755520733,5.3974316620349212,7.0494489948025887,8.1210455050606978,6.4911869835152016,0,0,0,0,0]
[null,null,2073,12.539189949197906,4.1101888779669018,21.328887250374478,26.046835299992615,5.1915378184551164,5.7683753538390201,8.5982125236098721,0,1.9437450000000001,2.625,0,0,0,0,0,13.373983938341423,27.869200755520733,5.3974316620349212,7.0494489948025887,8.1210455050606978,6.4911869835152016,0,0,0,0,0]
[null,null,2074,12.539189949197906,4.1101888779669018,21.328887250374478,26.046835299992615,5.1915378184551164,5.7683753538390201,8.5982125236098721,0,1.9437450000000001,2.625,0,0,0,0,0,13.373983938341423,27.869200755520733,5.3974316620349212,7.0494489948025887,8.1210455050606978,6.4911869835152016,0,0,0,0,0]
[null,null,2075,12.539189949197906,4.1101888779669018,21.328887250374478,26.046835299992615,5.1915378184551164,5.7683753538390201,8.5982125236098721,0,1.9437450000000001,2.625,0,0,0,0,0,13.373983938341423,27.869200755520733,5.3974316620349212,7.0494489948025887,8.1210455050606978,6.4911869835152016,0,0,0,0,0]

{"sheet":"EmissionPrices","index":15,"n_rows":173,"n_cols":21,"rows_kept":173,"cut":false,"hidden":false,"merged":[[12,3,14,11],[29,2,29,3],[29,4,29,5],[30,2,30,5],[29,7,29,11],[30,7,30,11],[36,2,36,6],[35,2,35,6],[106,10,106,13],[24,1,24,12],[106,2,106,8],[104,10,104,15]]}
[]
[null,"Emission prices"]
[]
[null,"User instruction"]
[null,"In this sheet emission prices for NOx, PM2,5, SO2, CO2 are stated. Emissions of CH4 and N2O are converted to CO2-equivalents and priced at the CO2-price. See the EmissionFactors-sheet to find the factors for this conversion."]
[null,"The user can change the CO2-price related to the CustomFuel-scenario and change default prices for SO2, NOx, and PM2,5."]
[]
[null,"Functions:"]
[null,null,null,"Changes are done by overwriting the existing values in the green marked cells. New data shall be stated in 2014-EUR. "]
[null,null,null,"CO2-prices in the other scenarios (Current policy, New policy, and 450 ppm) can also be changed independently if the user wishes. "]
[null,null,null,"The CustomFuel-price scenario includes the CO2-price.To apply it, the `CustomTech´-scenario should be chosen in"]
[]
[null,null,null,"The SO2-price, the NOx-price, and the PM2,5-price are by default constant over the period. If the user wishes to apply other constant values, this should be typed in the green cells. If a whole time series is applied, cells below the yellow cells will have to be changed as well. "]
[]
[]
[]
[null,"Settings"]
[null,"Price-year and currency for SO2- Nox and PM2,5 costs. Price-year for CO2-prices follows the definitions for fuel-price scenarios and is set in the FuelPrices-sheet"]
[null,null,"Currency","Price year"]
[null,"SO2","EUR",2022]
[null,"NOx","EUR",2022]
[null,"PM2,5","EUR",2022]
[null,"Data sources: "]
[null,"IEA World Energy Outlook 2015; Costs of air pollution from European industrial facilities 2008-2012, European Environment Agency, 2014. "]
[null,"For year 2020 and onwards the CO2-price is the European CO2 quota price forecast from IEA's World Economic Outlook 2015. From 2016 and until 2020 forward prices are applied. Previous years are historical data with 2015 being a preliminary estimate. "]
[]
[]
[null,"Applied data in the calculation"]
[]
[null,null,"Settings done in",null,"where they can also be changed:",null,null,"Counting and adjusting values "]
[null,null,"(Used to look up the data corresponding to chosen price scenario and price year",null,null,null,null,"(used to look up values and adjust prices -not to be changed)"]
[null,null,null,"Price year",null,{"$f":"PriceYear","v":2020},null,null,"CO2-price","SO2-price","NOx-price",{"$f":"N108","v":"PM2,5-price"}]
[null,null,null,"Current scenario",null,{"$f":"Scenario","v":"CustomFuel"},null,"Offset",{"$f":"MATCH(F33,108:108,0)-1","v":6},{"$f":"MATCH(E38,108:108,0)-1","v":11},{"$f":"MATCH(F38,108:108,0)-1","v":12},{"$f":"MATCH(G38,108:108,0)-1","v":13}]
[null,null,null,"Currency",null,{"$f":"chosencurrency","v":"EUR"},null,"Price adjustment",{"$f":"VLOOKUP($F$33,ScenarioDef,3,FALSE)","v":0.9215586174146938},{"$f":"VLOOKUP(PriceYear,PriceAdjust,2,FALSE)/VLOOKUP(D20,PriceAdjust,2,FALSE)*VLOOKUP(chosencurrency,Currency,2,FALSE)/VLOOKUP(C20,Currency,2,FALSE)","v":0.89495005811114925},{"$f":"VLOOKUP(PriceYear,PriceAdjust,2,FALSE)/VLOOKUP(D21,PriceAdjust,2,FALSE)*VLOOKUP(chosencurrency,Currency,2,FALSE)/VLOOKUP(C21,Currency,2,FALSE)","v":0.89495005811114925},{"$f":"VLOOKUP(PriceYear,PriceAdjust,2,FALSE)/VLOOKUP(D22,PriceAdjust,2,FALSE)*VLOOKUP(chosencurrency,Currency,2,FALSE)/VLOOKUP(C22,Currency,2,FALSE)","v":0.89495005811114925}]
[]
[null,null,"Applied data in the calculation sheet"]
[null,null," (this table displays the applied emission prices according to technology scenario and price year)"]
[null,null,null,"CO2-price","SO2-price","NOx-price","PM2,5-price"]
[null,null,null,{"$f":"chosencurrency&PriceYear&\"/ton\"","v":"EUR2020/ton"},{"$f":"chosencurrency&PriceYear&\"/kg\"","v":"EUR2020/kg"},{"$f":"chosencurrency&PriceYear&\"/kg\"","v":"EUR2020/kg"},{"$f":"chosencurrency&PriceYear&\"/kg\"","v":"EUR2020/kg"}]
[null,null,2012,{"$f":"OFFSET($A110,0,$I$33)*$I$34","v":6.6721205572765987},{"$f":"OFFSET($A110,0,$J$33)*$J$34","v":17.168721914804287},{"$f":"OFFSET($A110,0,$K$33)*$K$34","v":7.3318783510755905},{"$f":"OFFSET($A110,0,$L$33)*$L$34","v":61.751554009669299}]
[null,null,2013,{"$f":"OFFSET($A111,0,$I$33)*$I$34","v":4.5797583105419282},{"$f":"OFFSET($A111,0,$J$33)*$J$34","v":17.168721914804287},{"$f":"OFFSET($A111,0,$K$33)*$K$34","v":7.3318783510755905},{"$f":"OFFSET($A111,0,$L$33)*$L$34","v":61.751554009669299}]
[null,null,2014,5.869476249670635,13.093900179075874,9.0095643434008306,18.259383735959016]
[null,null,2015,6.8894138221348609,13.093900179075874,9.0095643434008306,18.259383735959016]
[null,null,2016,8.5703634726650098,13.093900179075874,9.0095643434008306,18.259383735959016]
[null,null,2017,10.25131312319516,13.093900179075874,9.0095643434008306,18.259383735959016]
[null,null,2018,11.932262773725308,25.953551685223328,19.688901278445282,37.587902440668266]
[null,null,2019,24.472638505949398,25.953551685223328,19.688901278445282,37.587902440668266]
[null,null,2020,{"$f":"OFFSET($A118,0,$I$33)*$I$34","v":51.865813784672078},{"$f":"OFFSET($A118,0,$J$33)*$J$34","v":25.953551685223328},{"$f":"OFFSET($A118,0,$K$33)*$K$34","v":19.688901278445282},{"$f":"OFFSET($A118,0,$L$33)*$L$34","v":37.587902440668266}]
[null,null,2021,74.343185109561205,25.953551685223328,19.688901278445282,37.587902440668266]
[null,null,2022,78.238471131358352,17.538618588486944,21.622954424161946,67.751923862374184]
[null,null,2023,80.30424682408659,17.538618588486944,21.622954424161946,67.751923862374184]
[null,null,2024,58.385995626810129,17.538618588486944,21.622954424161946,67.751923862374184]
[null,null,2025,60.736279349075794,17.538618588486944,21.622954424161946,67.751923862374184]
[null,null,2026,62.962863928064323,17.538618588486944,21.622954424161946,67.751923862374184]
[null,null,2027,65.313147650329981,17.538618588486944,21.622954424161946,67.751923862374184]
[null,null,2028,67.910829659149925,17.538618588486944,21.622954424161946,67.751923862374184]
[null,null,2029,70.508511667969856,17.538618588486944,21.622954424161946,67.751923862374184]
[null,null,2030,73.353591963344087,17.538618588486944,21.622954424161946,67.751923862374184]
[null,null,2031,76.32237140199544,17.538618588486944,21.622954424161946,67.751923862374184]
[null,null,2032,79.538549127201094,17.538618588486944,21.622954424161946,67.751923862374184]
[null,null,2033,82.87842599568387,17.538618588486944,21.622954424161946,67.751923862374184]
[null,null,2034,86.342002007443796,17.538618588486944,21.622954424161946,67.751923862374184]
[null,null,2035,90.052976305757994,17.538618588486944,21.622954424161946,67.751923862374184]
[null,null,2036,94.011348890626479,17.538618588486944,21.622954424161946,67.751923862374184]
[null,null,2037,98.217119762049236,17.538618588486944,21.622954424161946,67.751923862374184]
[null,null,2038,102.67028892002629,17.538618588486944,21.622954424161946,67.751923862374184]
[null,null,2039,107.24715722128047,17.538618588486944,21.622954424161946,67.751923862374184]
[null,null,2040,112.19512295236608,17.538618588486944,21.622954424161946,67.751923862374184]
[null,null,2041,117.39048697000597,17.538618588486944,21.622954424161946,67.751923862374184]
[null,null,2042,122.95694841747726,17.538618588486944,21.622954424161946,67.751923862374184]
[null,null,2043,128.77080815150285,17.538618588486944,21.622954424161946,67.751923862374184]
[null,null,2044,134.95576531535986,17.538618588486944,21.622954424161946,67.751923862374184]
[null,null,2045,141.51181990904828,17.538618588486944,21.622954424161946,67.751923862374184]
[null,null,2046,148.43897193256811,17.538618588486944,21.622954424161946,67.751923862374184]
[null,null,2047,155.73722138591938,17.538618588486944,21.622954424161946,67.751923862374184]
[null,null,2048,163.53026741237923,17.538618588486944,21.622954424161946,67.751923862374184]
[null,null,2049,171.69441086867045,17.538618588486944,21.622954424161946,67.751923862374184]
[null,null,2050,180.47705004134741,17.538618588486944,21.622954424161946,67.751923862374184]
[null,null,2051,180.47705004134741,17.538618588486944,21.622954424161946,67.751923862374184]
[null,null,2052,{"$f":"OFFSET($A150,0,$I$33)*$I$34","v":180.47705004134741},{"$f":"OFFSET($A150,0,$J$33)*$J$34","v":17.538618588486944},{"$f":"OFFSET($A150,0,$K$33)*$K$34","v":21.622954424161946},{"$f":"OFFSET($A150,0,$L$33)*$L$34","v":67.751923862374184}]
[null,null,2053,180.47705004134741,17.538618588486944,21.622954424161946,67.751923862374184]
[null,null,2054,180.47705004134741,17.538618588486944,21.622954424161946,67.751923862374184]
[null,null,2055,180.47705004134741,17.538618588486944,21.622954424161946,67.751923862374184]
[null,null,2056,180.47705004134741,17.538618588486944,21.622954424161946,67.751923862374184]
[null,null,2057,180.47705004134741,17.538618588486944,21.622954424161946,67.751923862374184]
[null,null,2058,180.47705004134741,17.538618588486944,21.622954424161946,67.751923862374184]
[null,null,2059,180.47705004134741,17.538618588486944,21.622954424161946,67.751923862374184]
[null,null,2060,180.47705004134741,17.538618588486944,21.622954424161946,67.751923862374184]
[null,null,2061,180.47705004134741,17.538618588486944,21.622954424161946,67.751923862374184]
[null,null,2062,180.47705004134741,17.538618588486944,21.622954424161946,67.751923862374184]
[null,null,2063,180.47705004134741,17.538618588486944,21.622954424161946,67.751923862374184]
[null,null,2064,180.47705004134741,17.538618588486944,21.622954424161946,67.751923862374184]
[null,null,2065,180.47705004134741,17.538618588486944,21.622954424161946,67.751923862374184]
[null,null,2066,180.47705004134741,17.538618588486944,21.622954424161946,67.751923862374184]
[null,null,2067,180.47705004134741,17.538618588486944,21.622954424161946,67.751923862374184]
[null,null,2068,180.47705004134741,17.538618588486944,21.622954424161946,67.751923862374184]
[null,null,2069,180.47705004134741,17.538618588486944,21.622954424161946,67.751923862374184]
[null,null,2070,180.47705004134741,17.538618588486944,21.622954424161946,67.751923862374184]
[null,null,2071,180.47705004134741,17.538618588486944,21.622954424161946,67.751923862374184]
[null,null,2072,180.47705004134741,17.538618588486944,21.622954424161946,67.751923862374184]
[null,null,2073,180.47705004134741,17.538618588486944,21.622954424161946,67.751923862374184]
[null,null,2074,180.47705004134741,17.538618588486944,21.622954424161946,67.751923862374184]
[null,null,2075,180.47705004134741,17.538618588486944,21.622954424161946,67.751923862374184]
[null,null,null,null,null,null,null,null,null,null,null,null,null,null,null,null,"Compare chosen scenarios (Scenario1 compared to scenario2)"]
[null,"Source data",null,null,null,null,null,null,null,null,"MILJØ- OG FØDEVAREMINISTERIETS MILJØØKONOMISKE BEREGNINGSPRISER FOR EMISSIONER 2023, SNAP 3 (Industriens forbrænding)",null,null,null,null,null," ",null,"Offset","PriceAdjustment"]
[null,null,null,null,null,null,null,null,null,null,null,null,null,null,null,null,"Scenario1","CustomFuel",{"$f":"MATCH(R106,108:108,0)-1","v":6},{"$f":"VLOOKUP(R106,ScenarioDef,3,FALSE)","v":0.9215586174146938}]
[null,null,"CO2-prices for different scenarios (also applied to CH4 and N2O)",null,null,null,null,null,null,null,"Prices for other externalities ",null,null,null,null,null,"Scenario2","CustomFuel2",{"$f":"MATCH(R107,108:108,0)-1","v":7},{"$f":"VLOOKUP(R107,ScenarioDef,3,FALSE)","v":1.0769543195754832}]
[null,null,null,{"$f":"Admin!F4","v":"New Policy 2015"},{"$f":"Admin!F5","v":"450ppm 2015"},{"$f":"Admin!F6","v":"Current Policies 2015"},{"$f":"Admin!F7","v":"CustomFuel"},{"$f":"Admin!F8","v":"CustomFuel2"},{"$f":"Admin!F9","v":"CustomFuel3"},null,null,"SO2-price","NOx-price","PM2,5-price",null,null,null,"CO2-price"]
[null,null,null,{"$f":"Admin!$T$5&Admin!$R$5&\"/ton\"","v":"EUR2014/ton"},{"$f":"Admin!$T$6&Admin!$R$6&\"/ton\"","v":"EUR2014/ton"},{"$f":"Admin!$T$7&Admin!$R$7&\"/ton\"","v":"EUR2014/ton"},{"$f":"Admin!$T$8&Admin!$R$8&\"/ton\"","v":"EUR2023/ton"},{"$f":"Admin!$T$9&Admin!$R$9&\"/ton\"","v":"EUR2014/ton"},{"$f":"Admin!$T$10&Admin!$R$10&\"/ton\"","v":"EUR2014/ton"},null,null,{"$f":"$C$20&$D$20&\"/kg\"","v":"EUR2022/kg"},{"$f":"$C$21&$D$21&\"/kg\"","v":"EUR2022/kg"},{"$f":"$C$22&$D$22&\"/kg\"","v":"EUR2022/kg"},null,null,null,"EUR/ton"]
[null,null,2012,7.2400392456795828,7.4900569093973592,7.4900569093973592,{"$f":"D110","v":7.2400392456795828},{"$f":"D110","v":7.2400392456795828},{"$f":"D110","v":7.2400392456795828},null,2012,19.184000000000001,8.1925000000000008,69,null,null,2012,{"$f":"OFFSET($A110,0,$S$106)*$T$106/(OFFSET($A110,0,$S$107)*$T$107)-1","v":-0.14429182309426425}]
[null,null,2013,4.969578954608239,4.969578954608239,4.969578954608239,{"$f":"D111","v":4.969578954608239},{"$f":"D111","v":4.969578954608239},{"$f":"D111","v":4.969578954608239},null,2013,{"$f":"L110","v":19.184000000000001},{"$f":"M110","v":8.1925000000000008},{"$f":"N110","v":69},null,null,2013,{"$f":"OFFSET($A111,0,$S$106)*$T$106/(OFFSET($A111,0,$S$107)*$T$107)-1","v":-0.14429182309426425}]
[null,null,2014,6.369075323864525,6.369075323864525,6.369075323864525,6.369075323864525,6.369075323864525,6.369075323864525,null,2014,14.630872483221475,10.067114093959731,20.402684563758388,null,null,2014,-0.14429182309426425]
[null,null,2015,7.4758281154834902,7.4758281154834902,7.4758281154834902,7.4758281154834902,7.4758281154834902,7.4758281154834902,null,2015,{"$f":"L112","v":14.630872483221475},{"$f":"M112","v":10.067114093959731},{"$f":"N112","v":20.402684563758388},null,null,2015,-0.14429182309426425]
[null,null,2016,9.2998571232592759,9.2998571232592759,8.9981121568163207,9.2998571232592759,9.2998571232592759,9.2998571232592759,null,2016,14.630872483221475,10.067114093959731,20.402684563758388,null,null,2016,-0.14429182309426436]
[null,null,2017,11.123886131035063,11.123886131035063,10.520396198149156,11.123886131035063,11.123886131035063,11.123886131035063,null,2017,14.630872483221475,10.067114093959731,20.402684563758388,null,null,2017,-0.14429182309426414]
[null,null,2018,12.947915138810847,12.947915138810847,12.042680239481987,12.947915138810847,12.947915138810847,12.947915138810847,null,2018,29,22,42,null,null,2018,-0.14429182309426425]
[null,null,2019,14.771944146586632,14.771944146586632,13.564964280814818,26.555704697986577,14.771944146586632,14.771944146586632,null,2019,{"$f":"L116","v":29},{"$f":"M116","v":22},{"$f":"N116","v":42},null,null,2019,{"$f":"OFFSET($A117,0,$S$106)*$T$106/(OFFSET($A117,0,$S$107)*$T$107)-1","v":0.53831705752908743}]
[null,null,2020,16.595973154362415,16.595973154362415,15.087248322147651,56.280536912751678,{"$f":"D118","v":16.595973154362415},{"$f":"D118","v":16.595973154362415},null,2020,29,22,42,null,null,2020,1.9018916329246682]
[null,null,2021,17.727516778523487,22.480000000000004,15.841610738255035,80.671140939597308,17.727516778523487,17.727516778523487,null,2021,29,22,42,null,null,2021,2.8940002598648236,null,null,"Notat fra DCE ang. miljøkonomiske beregningspriser for emissioner (SO2, NOX, PM2,5), nov. 2023:"]
[null,null,2022,18.859060402684566,28.364026845637589,16.595973154362415,84.897986577181214,18.859060402684566,18.859060402684566,null,2022,19.597315436241601,24.161073825503301,75.704697986577102,null,null,2022,2.8521485039936572,null,null,"https://dce.au.dk/fileadmin/dce.au.dk/Udgivelser/Notater_2023/N2023_54.pdf"]
[null,null,2023,19.990604026845638,34.248053691275167,17.350335570469799,87.139597315436248,19.990604026845638,19.990604026845638,null,2023,19.597315436241601,24.161073825503301,75.704697986577102,null,null,2023,2.7300556729029384]
[null,null,2024,21.122147651006713,40.132080536912753,18.104697986577179,63.355704697986575,21.122147651006713,21.122147651006713,null,2024,19.597315436241601,24.161073825503301,75.704697986577102,null,null,2024,1.5666894985988002]
[null,null,2025,22.253691275167785,46.016107382550331,18.859060402684563,65.90604026845638,22.253691275167785,22.253691275167785,null,2025,19.597315436241601,24.161073825503301,75.704697986577102,null,null,2025,1.5342464253617001]
[null,null,2026,23.385234899328857,51.900134228187916,19.613422818791946,68.322147651006716,23.385234899328857,23.385234899328857,null,2026,19.597315436241601,24.161073825503301,75.704697986577102,null,null,2026,1.5000313514235999]
[null,null,2027,24.516778523489933,57.784161073825487,20.367785234899326,70.872483221476514,24.516778523489933,24.516778523489933,null,2027,19.597315436241601,24.161073825503301,75.704697986577102,null,null,2027,1.4736595532780101]
[null,null,2028,25.648322147651008,63.668187919463101,21.122147651006713,73.691275167785236,25.648322147651008,25.648322147651008,null,2028,19.597315436241601,24.161073825503301,75.704697986577102,null,null,2028,1.4585712221124605]
[null,null,2029,26.77986577181208,69.552214765100658,21.876510067114094,76.510067114093957,26.77986577181208,26.77986577181208,null,2029,19.597315436241601,24.161073825503301,75.704697986577102,null,null,2029,1.4447579611862529]
[null,null,2030,27.911409395973152,75.43624161073825,22.630872483221474,79.597315436241615,27.911409395973152,27.911409395973152,null,2030,19.597315436241601,24.161073825503301,75.704697986577102,null,null,2030,1.4402950317644576]
[null,null,2031,28.892080536912747,78.453691275167785,23.385234899328857,82.818791946308721,28.892080536912747,28.892080536912747,null,2031,19.597315436241601,24.161073825503301,75.704697986577102,null,null,2031,1.4528769182741561]
[null,null,2032,29.872751677852349,81.471140939597319,24.139597315436244,86.308724832214764,29.872751677852349,29.872751677852349,null,2032,19.597315436241601,24.161073825503301,75.704697986577102,null,null,2032,1.4723226830151521]
[null,null,2033,30.853422818791945,84.488590604026854,24.893959731543628,89.932885906040269,30.853422818791945,30.853422818791945,null,2033,19.597315436241601,24.161073825503301,75.704697986577102,null,null,2033,1.4942550554117888]
[null,null,2034,31.834093959731554,87.506040268456374,25.648322147651012,93.691275167785236,31.834093959731554,31.834093959731554,null,2034,19.597315436241601,24.161073825503301,75.704697986577102,null,null,2034,1.5184442304911507]
[null,null,2035,32.814765100671138,90.52348993288588,26.402684563758388,97.718120805369125,32.814765100671138,32.814765100671138,null,2035,19.597315436241601,24.161073825503301,75.704697986577102,null,null,2035,1.5481881326435785]
[null,null,2036,33.79543624161073,93.540939597315415,27.157046979865772,102.01342281879194,33.79543624161073,33.79543624161073,null,2036,19.597315436241601,24.161073825503301,75.704697986577102,null,null,2036,1.5830032030390475]
[null,null,2037,34.776107382550329,96.558389261744978,27.911409395973148,106.57718120805369,34.776107382550329,34.776107382550329,null,2037,19.597315436241601,24.161073825503301,75.704697986577102,null,null,2037,1.6224604274444165]
[null,null,2038,35.756778523489928,99.575838926174498,28.665771812080536,111.40939597315436,35.756778523489928,35.756778523489928,null,2038,19.597315436241601,24.161073825503301,75.704697986577102,null,null,2038,1.6661778564791239]
[null,null,2039,36.737449664429533,102.59328859060403,29.420134228187919,116.3758389261745,36.737449664429533,36.737449664429533,null,2039,19.597315436241601,24.161073825503301,75.704697986577102,null,null,2039,1.7106878096606897]
[null,null,2040,37.718120805369125,105.61073825503355,30.174496644295303,121.74496644295301,37.718120805369125,37.718120805369125,null,2040,19.597315436241601,24.161073825503301,75.704697986577102,null,null,2040,1.7620189197633538]
[null,null,2041,38.698791946308731,108.62818791946309,30.92885906040269,127.38255033557047,38.698791946308731,38.698791946308731,null,2041,19.597315436241601,24.161073825503301,75.704697986577102,null,null,2041,1.816684563913145]
[null,null,2042,39.679463087248322,111.64563758389259,31.683221476510067,133.4228187919463,39.679463087248322,39.679463087248322,null,2042,19.597315436241601,24.161073825503301,75.704697986577102,null,null,2042,1.8773322052024319]
[null,null,2043,40.660134228187928,114.66308724832216,32.437583892617454,139.73154362416108,40.660134228187928,40.660134228187928,null,2043,19.597315436241601,24.161073825503301,75.704697986577102,null,null,2043,1.940704125073025]
[null,null,2044,41.64080536912752,117.68053691275168,33.191946308724837,146.44295302013421,41.64080536912752,41.64080536912752,null,2044,19.597315436241601,24.161073825503301,75.704697986577102,null,null,2044,2.0093662031440429]
[null,null,2045,42.621476510067119,120.69798657718123,33.946308724832214,153.55704697986576,42.621476510067119,42.621476510067119,null,2045,19.597315436241601,24.161073825503301,75.704697986577102,null,null,2045,2.0829532780529765]
[null,null,2046,43.60214765100671,123.71543624161075,34.700671140939598,161.07382550335569,43.60214765100671,43.60214765100671,null,2046,19.597315436241601,24.161073825503301,75.704697986577102,null,null,2046,2.1611330403246032]
[null,null,2047,44.582818791946302,126.73288590604025,35.455033557046967,168.99328859060401,44.582818791946302,44.582818791946302,null,2047,19.597315436241601,24.161073825503301,75.704697986577102,null,null,2047,2.2436024192192536]
[null,null,2048,45.563489932885908,129.75033557046979,36.209395973154365,177.4496644295302,45.563489932885908,45.563489932885908,null,2048,19.597315436241601,24.161073825503301,75.704697986577102,null,null,2048,2.3326053176609749]
[null,null,2049,46.544161073825506,132.76778523489932,36.963758389261734,186.30872483221475,46.544161073825506,46.544161073825506,null,2049,19.597315436241601,24.161073825503301,75.704697986577102,null,null,2049,2.4252609906307097]
[null,null,2050,47.524832214765098,135.78523489932886,37.718120805369132,195.83892617449663,47.524832214765098,47.524832214765098,null,2050,19.597315436241601,24.161073825503301,75.704697986577102,null,null,2050,2.5261770041955276]
[null,null,2051,{"$f":"D148","v":47.524832214765098},{"$f":"E148","v":135.78523489932886},{"$f":"F148","v":37.718120805369132},{"$f":"G148","v":195.83892617449663},47.524832214765098,47.524832214765098,null,2051,19.597315436241601,24.161073825503301,75.704697986577102,null,null,2051,{"$f":"OFFSET($A149,0,$S$106)*$T$106/(OFFSET($A149,0,$S$107)*$T$107)-1","v":2.5261770041955276}]
[null,null,2052,47.524832214765098,135.78523489932886,37.718120805369132,195.83892617449663,{"$f":"D150","v":47.524832214765098},{"$f":"D150","v":47.524832214765098},null,2052,19.597315436241601,24.161073825503301,75.704697986577102,null,null,2052,2.5261770041955276]
[null,null,2053,47.524832214765098,135.78523489932886,37.718120805369132,195.83892617449663,47.524832214765098,47.524832214765098,null,2053,19.597315436241601,24.161073825503301,75.704697986577102,null,null,2053,2.5261770041955276]
[null,null,2054,47.524832214765098,135.78523489932886,37.718120805369132,195.83892617449663,47.524832214765098,47.524832214765098,null,2054,19.597315436241601,24.161073825503301,75.704697986577102,null,null,2054,2.5261770041955276]
[null,null,2055,47.524832214765098,135.78523489932886,37.718120805369132,195.83892617449663,47.524832214765098,47.524832214765098,null,2055,19.597315436241601,24.161073825503301,75.704697986577102,null,null,2055,2.5261770041955276]
[null,null,2056,47.524832214765098,135.78523489932886,37.718120805369132,195.83892617449663,47.524832214765098,47.524832214765098,null,2056,19.597315436241601,24.161073825503301,75.704697986577102,null,null,2056,2.5261770041955276]
[null,null,2057,47.524832214765098,135.78523489932886,37.718120805369132,195.83892617449663,47.524832214765098,47.524832214765098,null,2057,19.597315436241601,24.161073825503301,75.704697986577102,null,null,2057,2.5261770041955276]
[null,null,2058,47.524832214765098,135.78523489932886,37.718120805369132,195.83892617449663,47.524832214765098,47.524832214765098,null,2058,19.597315436241601,24.161073825503301,75.704697986577102,null,null,2058,2.5261770041955276]
[null,null,2059,47.524832214765098,135.78523489932886,37.718120805369132,195.83892617449663,47.524832214765098,47.524832214765098,null,2059,19.597315436241601,24.161073825503301,75.704697986577102,null,null,2059,2.5261770041955276]
[null,null,2060,47.524832214765098,135.78523489932886,37.718120805369132,195.83892617449663,47.524832214765098,47.524832214765098,null,2060,19.597315436241601,24.161073825503301,75.704697986577102,null,null,2060,2.5261770041955276]
[null,null,2061,47.524832214765098,135.78523489932886,37.718120805369132,195.83892617449663,47.524832214765098,47.524832214765098,null,2061,19.597315436241601,24.161073825503301,75.704697986577102,null,null,2061,2.5261770041955276]
[null,null,2062,47.524832214765098,135.78523489932886,37.718120805369132,195.83892617449663,47.524832214765098,47.524832214765098,null,2062,19.597315436241601,24.161073825503301,75.704697986577102,null,null,2062,2.5261770041955276]
[null,null,2063,47.524832214765098,135.78523489932886,37.718120805369132,195.83892617449663,47.524832214765098,47.524832214765098,null,2063,19.597315436241601,24.161073825503301,75.704697986577102,null,null,2063,2.5261770041955276]
[null,null,2064,47.524832214765098,135.78523489932886,37.718120805369132,195.83892617449663,47.524832214765098,47.524832214765098,null,2064,19.597315436241601,24.161073825503301,75.704697986577102,null,null,2064,2.5261770041955276]
[null,null,2065,47.524832214765098,135.78523489932886,37.718120805369132,195.83892617449663,47.524832214765098,47.524832214765098,null,2065,19.597315436241601,24.161073825503301,75.704697986577102,null,null,2065,2.5261770041955276]
[null,null,2066,47.524832214765098,135.78523489932886,37.718120805369132,195.83892617449663,47.524832214765098,47.524832214765098,null,2066,19.597315436241601,24.161073825503301,75.704697986577102,null,null,2066,2.5261770041955276]
[null,null,2067,47.524832214765098,135.78523489932886,37.718120805369132,195.83892617449663,47.524832214765098,47.524832214765098,null,2067,19.597315436241601,24.161073825503301,75.704697986577102,null,null,2067,2.5261770041955276]
[null,null,2068,47.524832214765098,135.78523489932886,37.718120805369132,195.83892617449663,47.524832214765098,47.524832214765098,null,2068,19.597315436241601,24.161073825503301,75.704697986577102,null,null,2068,2.5261770041955276]
[null,null,2069,47.524832214765098,135.78523489932886,37.718120805369132,195.83892617449663,47.524832214765098,47.524832214765098,null,2069,19.597315436241601,24.161073825503301,75.704697986577102,null,null,2069,2.5261770041955276]
[null,null,2070,47.524832214765098,135.78523489932886,37.718120805369132,195.83892617449663,47.524832214765098,47.524832214765098,null,2070,19.597315436241601,24.161073825503301,75.704697986577102,null,null,2070,2.5261770041955276]
[null,null,2071,47.524832214765098,135.78523489932886,37.718120805369132,195.83892617449663,47.524832214765098,47.524832214765098,null,2071,19.597315436241601,24.161073825503301,75.704697986577102,null,null,2071,2.5261770041955276]
[null,null,2072,47.524832214765098,135.78523489932886,37.718120805369132,195.83892617449663,47.524832214765098,47.524832214765098,null,2072,19.597315436241601,24.161073825503301,75.704697986577102,null,null,2072,2.5261770041955276]
[null,null,2073,47.524832214765098,135.78523489932886,37.718120805369132,195.83892617449663,47.524832214765098,47.524832214765098,null,2073,19.597315436241601,24.161073825503301,75.704697986577102,null,null,2073,2.5261770041955276]
[null,null,2074,47.524832214765098,135.78523489932886,37.718120805369132,195.83892617449663,47.524832214765098,47.524832214765098,null,2074,19.597315436241601,24.161073825503301,75.704697986577102,null,null,2074,2.5261770041955276]
[null,null,2075,47.524832214765098,135.78523489932886,37.718120805369132,195.83892617449663,47.524832214765098,47.524832214765098,null,2075,19.597315436241601,24.161073825503301,75.704697986577102,null,null,2075,2.5261770041955276]

{"sheet":"EmissionFactors","index":16,"n_rows":79,"n_cols":36,"rows_kept":79,"cut":false,"hidden":false,"merged":[[4,1,4,35]]}
[]
[null,"Emission factors"]
[]
[null,"User instruction"]
[null,"In this sheet the parameters for emission of greenhouse gases (CO2, CH4, N2O) and SO2 content are given. If the user wishes to apply other constant values, this should be typed in the green cells. If a whole time series is applied, cells below the green cells will have to be changed as well.  "]
[null,"CO2-emissions and SO2-content for new fuels can also be applied."]
[]
[null,"Data source:"]
[null,"Socio-economic assumptions 2014, Danish Energy Agency (CO2-factors); Technology data for energy plants, Danish Energy Agency and Energinet.dk, 2014 (SO2-factors)."]
[]
[]
[null,"Data: "]
[]
[null,"CO2-emission",null,null,null,null,null,null,null,null,null,null,null,null,null,null,null,"SO2-content",null,null,null,null,null,null,null,null,null,null,null,null,null,null,null,"CO2-equivalents"]
[null,"kg/GJ","Coal","Natural gas","Fueloil","Gas oil","Straw","Wood chips","Wood pellets","Energy crops","Diesel","Petrol","Municipal waste","New fuel 1","New fuel 2","New fuel 3",null,"kg/GJ","Coal","Natural gas","Fueloil","Gas oil","Straw","Wood chips","Wood pellets","Energy crops","Diesel","Petrol","Municipal waste","New fuel 1","New fuel 2","New fuel 3",null,"kg CO2/kg emission","CH4","N2O"]
[null,2012,94.3,57,79.2,74,0,0,0,0,74,74,37,null,null,null,null,2012,0.27,0,0.25,7.0000000000000007E-2,0.2,4.0000000000000001E-3,{"$f":"X16","v":4.0000000000000001E-3},{"$f":"Y16","v":4.0000000000000001E-3},{"$f":"V16","v":7.0000000000000007E-2},{"$f":"AA16","v":7.0000000000000007E-2},0.27,null,null,null,null,2012,25,298]
[null,2013,{"$f":"C16","v":94.3},{"$f":"D16","v":57},{"$f":"E16","v":79.2},74,0,0,0,0,74,74,37,0,0,0,null,2013,{"$f":"S16","v":0.27},{"$f":"T16","v":0},{"$f":"U16","v":0.25},7.0000000000000007E-2,0.2,4.0000000000000001E-3,4.0000000000000001E-3,4.0000000000000001E-3,7.0000000000000007E-2,7.0000000000000007E-2,0.27,{"$f":"AD16","v":0},{"$f":"AE16","v":0},{"$f":"AF16","v":0},null,2013,25,298]
[null,2014,{"$f":"C17","v":94.3},{"$f":"D17","v":57},79.2,74,0,0,0,0,74,74,37,0,0,0,null,2014,{"$f":"S17","v":0.27},0,{"$f":"U17","v":0.25},7.0000000000000007E-2,0.2,4.0000000000000001E-3,4.0000000000000001E-3,4.0000000000000001E-3,7.0000000000000007E-2,7.0000000000000007E-2,0.27,0,0,0,null,2014,25,298]
[null,2015,94.3,57,79.2,74,0,0,0,0,74,74,37,0,0,0,null,2015,0.27,0,{"$f":"U18","v":0.25},7.0000000000000007E-2,0.2,4.0000000000000001E-3,4.0000000000000001E-3,4.0000000000000001E-3,7.0000000000000007E-2,7.0000000000000007E-2,0.27,0,0,0,null,2015,25,298]
[null,2016,94.3,57,79.2,74,0,0,0,0,74,74,37,0,0,0,null,2016,0.27,0,{"$f":"U19","v":0.25},7.0000000000000007E-2,0.2,4.0000000000000001E-3,4.0000000000000001E-3,4.0000000000000001E-3,7.0000000000000007E-2,7.0000000000000007E-2,0.27,0,0,0,null,2016,25,298]
[null,2017,94.3,57,79.2,74,0,0,0,0,74,74,37,0,0,0,null,2017,0.27,0,{"$f":"U20","v":0.25},7.0000000000000007E-2,0.2,4.0000000000000001E-3,4.0000000000000001E-3,4.0000000000000001E-3,7.0000000000000007E-2,7.0000000000000007E-2,0.27,0,0,0,null,2017,25,298]
[null,2018,94.3,57,79.2,74,0,0,0,0,74,74,37,0,0,0,null,2018,0.27,0,{"$f":"U21","v":0.25},7.0000000000000007E-2,0.2,4.0000000000000001E-3,4.0000000000000001E-3,4.0000000000000001E-3,7.0000000000000007E-2,7.0000000000000007E-2,0.27,0,0,0,null,2018,25,298]
[null,2019,94.3,57,79.2,74,0,0,0,0,74,74,37,0,0,0,null,2019,0.27,0,{"$f":"U22","v":0.25},7.0000000000000007E-2,0.2,4.0000000000000001E-3,4.0000000000000001E-3,4.0000000000000001E-3,7.0000000000000007E-2,7.0000000000000007E-2,0.27,0,0,0,null,2019,25,298]
[null,2020,94.3,57,79.2,74,0,0,0,0,74,74,37,0,0,0,null,2020,0.27,0,{"$f":"U23","v":0.25},7.0000000000000007E-2,0.2,4.0000000000000001E-3,4.0000000000000001E-3,4.0000000000000001E-3,7.0000000000000007E-2,7.0000000000000007E-2,0.27,0,0,0,null,2020,25,298]
[null,2021,94.3,57,79.2,74,0,0,0,0,74,74,37,0,0,0,null,2021,0.27,0,{"$f":"U24","v":0.25},7.0000000000000007E-2,0.2,4.0000000000000001E-3,4.0000000000000001E-3,4.0000000000000001E-3,7.0000000000000007E-2,7.0000000000000007E-2,0.27,0,0,0,null,2021,25,298]
[null,2022,94.3,57,79.2,74,0,0,0,0,74,74,37,0,0,0,null,2022,0.27,0,{"$f":"U25","v":0.25},7.0000000000000007E-2,0.2,4.0000000000000001E-3,4.0000000000000001E-3,4.0000000000000001E-3,7.0000000000000007E-2,7.0000000000000007E-2,0.27,0,0,0,null,2022,25,298]
[null,2023,94.3,57,79.2,74,0,0,0,0,74,74,37,0,0,0,null,2023,0.27,0,{"$f":"U26","v":0.25},7.0000000000000007E-2,0.2,4.0000000000000001E-3,4.0000000000000001E-3,4.0000000000000001E-3,7.0000000000000007E-2,7.0000000000000007E-2,0.27,0,0,0,null,2023,25,298]
[null,2024,94.3,57,79.2,74,0,0,0,0,74,74,37,0,0,0,null,2024,0.27,0,{"$f":"U27","v":0.25},7.0000000000000007E-2,0.2,4.0000000000000001E-3,4.0000000000000001E-3,4.0000000000000001E-3,7.0000000000000007E-2,7.0000000000000007E-2,0.27,0,0,0,null,2024,25,298]
[null,2025,94.3,57,79.2,74,0,0,0,0,74,74,37,0,0,0,null,2025,0.27,0,{"$f":"U28","v":0.25},7.0000000000000007E-2,0.2,4.0000000000000001E-3,4.0000000000000001E-3,4.0000000000000001E-3,7.0000000000000007E-2,7.0000000000000007E-2,0.27,0,0,0,null,2025,25,298]
[null,2026,94.3,57,79.2,74,0,0,0,0,74,74,37,0,0,0,null,2026,0.27,0,{"$f":"U29","v":0.25},7.0000000000000007E-2,0.2,4.0000000000000001E-3,4.0000000000000001E-3,4.0000000000000001E-3,7.0000000000000007E-2,7.0000000000000007E-2,0.27,0,0,0,null,2026,25,298]
[null,2027,94.3,57,79.2,74,0,0,0,0,74,74,37,0,0,0,null,2027,0.27,0,{"$f":"U30","v":0.25},7.0000000000000007E-2,0.2,4.0000000000000001E-3,4.0000000000000001E-3,4.0000000000000001E-3,7.0000000000000007E-2,7.0000000000000007E-2,0.27,0,0,0,null,2027,25,298]
[null,2028,94.3,57,79.2,74,0,0,0,0,74,74,37,0,0,0,null,2028,0.27,0,{"$f":"U31","v":0.25},7.0000000000000007E-2,0.2,4.0000000000000001E-3,4.0000000000000001E-3,4.0000000000000001E-3,7.0000000000000007E-2,7.0000000000000007E-2,0.27,0,0,0,null,2028,25,298]
[null,2029,94.3,57,{"$f":"E32","v":79.2},74,0,0,0,0,74,74,37,0,0,0,null,2029,0.27,0,{"$f":"U32","v":0.25},7.0000000000000007E-2,0.2,4.0000000000000001E-3,4.0000000000000001E-3,4.0000000000000001E-3,7.0000000000000007E-2,7.0000000000000007E-2,0.27,0,0,0,null,2029,25,298]
[null,2030,94.3,57,79.2,74,0,0,0,0,74,74,37,0,0,0,null,2030,{"$f":"S33","v":0.27},0,{"$f":"U33","v":0.25},7.0000000000000007E-2,0.2,4.0000000000000001E-3,4.0000000000000001E-3,4.0000000000000001E-3,7.0000000000000007E-2,7.0000000000000007E-2,0.27,0,0,0,null,2030,25,298]
[null,2031,94.3,57,79.2,74,0,0,0,0,74,74,37,0,0,0,null,2031,0.27,0,{"$f":"U34","v":0.25},7.0000000000000007E-2,0.2,4.0000000000000001E-3,4.0000000000000001E-3,4.0000000000000001E-3,7.0000000000000007E-2,7.0000000000000007E-2,0.27,0,0,0,null,2031,25,298]
[null,2032,94.3,57,79.2,74,0,0,0,0,74,74,37,0,0,0,null,2032,0.27,0,{"$f":"U35","v":0.25},7.0000000000000007E-2,0.2,4.0000000000000001E-3,4.0000000000000001E-3,4.0000000000000001E-3,7.0000000000000007E-2,7.0000000000000007E-2,0.27,0,0,0,null,2032,25,298]
[null,2033,94.3,57,79.2,74,0,0,0,0,74,74,37,0,0,0,null,2033,0.27,0,{"$f":"U36","v":0.25},7.0000000000000007E-2,0.2,4.0000000000000001E-3,4.0000000000000001E-3,4.0000000000000001E-3,7.0000000000000007E-2,7.0000000000000007E-2,0.27,0,0,0,null,2033,25,298]
[null,2034,94.3,57,79.2,74,0,0,0,0,74,74,37,0,0,0,null,2034,0.27,0,{"$f":"U37","v":0.25},7.0000000000000007E-2,0.2,4.0000000000000001E-3,4.0000000000000001E-3,4.0000000000000001E-3,7.0000000000000007E-2,7.0000000000000007E-2,0.27,0,0,0,null,2034,25,298]
[null,2035,94.3,57,79.2,74,0,0,0,0,74,74,37,0,0,0,null,2035,0.27,0,{"$f":"U38","v":0.25},7.0000000000000007E-2,0.2,4.0000000000000001E-3,4.0000000000000001E-3,4.0000000000000001E-3,7.0000000000000007E-2,7.0000000000000007E-2,0.27,0,0,0,null,2035,25,298]
[null,2036,94.3,57,79.2,74,0,0,0,0,74,74,37,0,0,0,null,2036,0.27,0,{"$f":"U39","v":0.25},7.0000000000000007E-2,0.2,4.0000000000000001E-3,4.0000000000000001E-3,4.0000000000000001E-3,7.0000000000000007E-2,7.0000000000000007E-2,0.27,0,0,0,null,2036,25,298]
[null,2037,94.3,57,79.2,74,0,0,0,0,74,74,37,0,0,0,null,2037,0.27,0,{"$f":"U40","v":0.25},7.0000000000000007E-2,0.2,4.0000000000000001E-3,4.0000000000000001E-3,4.0000000000000001E-3,7.0000000000000007E-2,7.0000000000000007E-2,0.27,0,0,0,null,2037,25,298]
[null,2038,94.3,57,79.2,74,0,0,0,0,74,74,37,0,0,0,null,2038,0.27,0,{"$f":"U41","v":0.25},7.0000000000000007E-2,0.2,4.0000000000000001E-3,4.0000000000000001E-3,4.0000000000000001E-3,7.0000000000000007E-2,7.0000000000000007E-2,0.27,0,0,0,null,2038,25,298]
[null,2039,94.3,57,79.2,74,0,0,0,0,74,74,37,0,0,0,null,2039,0.27,0,{"$f":"U42","v":0.25},7.0000000000000007E-2,0.2,4.0000000000000001E-3,4.0000000000000001E-3,4.0000000000000001E-3,7.0000000000000007E-2,7.0000000000000007E-2,0.27,0,0,0,null,2039,25,298]
[null,2040,94.3,57,79.2,74,0,0,0,0,74,74,37,0,0,0,null,2040,0.27,0,{"$f":"U43","v":0.25},7.0000000000000007E-2,0.2,4.0000000000000001E-3,4.0000000000000001E-3,4.0000000000000001E-3,7.0000000000000007E-2,7.0000000000000007E-2,0.27,0,0,0,null,2040,25,298]
[null,2041,94.3,57,79.2,74,0,0,0,0,74,74,37,0,0,0,null,2041,0.27,0,{"$f":"U44","v":0.25},7.0000000000000007E-2,0.2,4.0000000000000001E-3,4.0000000000000001E-3,4.0000000000000001E-3,7.0000000000000007E-2,7.0000000000000007E-2,0.27,0,0,0,null,2041,25,298]
[null,2042,94.3,57,79.2,74,0,0,0,0,74,74,37,0,0,0,null,2042,0.27,0,{"$f":"U45","v":0.25},7.0000000000000007E-2,0.2,4.0000000000000001E-3,4.0000000000000001E-3,4.0000000000000001E-3,7.0000000000000007E-2,7.0000000000000007E-2,0.27,0,0,0,null,2042,25,298]
[null,2043,94.3,57,79.2,74,0,0,0,0,74,74,37,0,0,0,null,2043,0.27,0,{"$f":"U46","v":0.25},7.0000000000000007E-2,0.2,4.0000000000000001E-3,4.0000000000000001E-3,4.0000000000000001E-3,7.0000000000000007E-2,7.0000000000000007E-2,0.27,0,0,0,null,2043,25,298]
[null,2044,94.3,57,79.2,74,0,0,0,0,74,74,37,0,0,0,null,2044,0.27,0,{"$f":"U47","v":0.25},7.0000000000000007E-2,0.2,4.0000000000000001E-3,4.0000000000000001E-3,4.0000000000000001E-3,7.0000000000000007E-2,7.0000000000000007E-2,0.27,0,0,0,null,2044,25,298]
[null,2045,94.3,57,{"$f":"E48","v":79.2},74,0,0,0,0,74,74,37,0,0,0,null,2045,0.27,0,{"$f":"U48","v":0.25},7.0000000000000007E-2,0.2,4.0000000000000001E-3,4.0000000000000001E-3,4.0000000000000001E-3,7.0000000000000007E-2,7.0000000000000007E-2,0.27,0,0,0,null,2045,25,298]
[null,2046,94.3,57,79.2,74,0,0,0,0,74,74,37,0,0,0,null,2046,{"$f":"S49","v":0.27},0,{"$f":"U49","v":0.25},7.0000000000000007E-2,0.2,4.0000000000000001E-3,4.0000000000000001E-3,4.0000000000000001E-3,7.0000000000000007E-2,7.0000000000000007E-2,0.27,0,0,0,null,2046,25,298]
[null,2047,94.3,57,79.2,74,0,0,0,0,74,74,37,0,0,0,null,2047,0.27,0,{"$f":"U50","v":0.25},7.0000000000000007E-2,0.2,4.0000000000000001E-3,4.0000000000000001E-3,4.0000000000000001E-3,7.0000000000000007E-2,7.0000000000000007E-2,0.27,0,0,0,null,2047,25,298]
[null,2048,94.3,57,79.2,74,0,0,0,0,74,74,37,0,0,0,null,2048,0.27,0,{"$f":"U51","v":0.25},7.0000000000000007E-2,0.2,4.0000000000000001E-3,4.0000000000000001E-3,4.0000000000000001E-3,7.0000000000000007E-2,7.0000000000000007E-2,0.27,0,0,0,null,2048,25,298]
[null,2049,94.3,57,79.2,74,0,0,0,0,74,74,37,0,0,0,null,2049,0.27,0,{"$f":"U52","v":0.25},7.0000000000000007E-2,0.2,4.0000000000000001E-3,4.0000000000000001E-3,4.0000000000000001E-3,7.0000000000000007E-2,7.0000000000000007E-2,0.27,0,0,0,null,2049,25,298]
[null,2050,94.3,57,79.2,74,0,0,0,0,74,74,37,0,0,0,null,2050,0.27,0,{"$f":"U53","v":0.25},7.0000000000000007E-2,0.2,4.0000000000000001E-3,4.0000000000000001E-3,4.0000000000000001E-3,7.0000000000000007E-2,7.0000000000000007E-2,0.27,0,0,0,null,2050,25,298]
[null,2051,94.3,57,79.2,74,0,0,0,0,74,74,37,0,0,0,null,2051,{"$f":"S54","v":0.27},0,0.25,7.0000000000000007E-2,0.2,4.0000000000000001E-3,4.0000000000000001E-3,4.0000000000000001E-3,7.0000000000000007E-2,7.0000000000000007E-2,0.27,0,0,0,null,2051,25,298]
[null,2052,94.3,57,79.2,74,0,0,0,0,74,74,37,0,0,0,null,2052,{"$f":"S55","v":0.27},0,0.25,7.0000000000000007E-2,0.2,4.0000000000000001E-3,4.0000000000000001E-3,4.0000000000000001E-3,7.0000000000000007E-2,7.0000000000000007E-2,0.27,0,0,0,null,2052,25,298]
[null,2053,{"$f":"C56","v":94.3},57,79.2,74,0,0,0,0,74,74,37,0,0,0,null,2053,{"$f":"S56","v":0.27},0,0.25,7.0000000000000007E-2,0.2,4.0000000000000001E-3,4.0000000000000001E-3,4.0000000000000001E-3,7.0000000000000007E-2,7.0000000000000007E-2,0.27,0,0,0,null,2053,25,298]
[null,2054,94.3,57,79.2,74,0,0,0,0,74,74,37,0,0,0,null,2054,{"$f":"S57","v":0.27},0,0.25,7.0000000000000007E-2,0.2,4.0000000000000001E-3,4.0000000000000001E-3,4.0000000000000001E-3,7.0000000000000007E-2,7.0000000000000007E-2,0.27,0,0,0,null,2054,25,298]
[null,2055,94.3,57,79.2,74,0,0,0,0,74,74,37,0,0,0,null,2055,{"$f":"S58","v":0.27},0,0.25,7.0000000000000007E-2,0.2,4.0000000000000001E-3,4.0000000000000001E-3,4.0000000000000001E-3,7.0000000000000007E-2,7.0000000000000007E-2,0.27,0,0,0,null,2055,25,298]
[null,2056,94.3,57,79.2,74,0,0,0,0,74,74,37,0,0,0,null,2056,{"$f":"S59","v":0.27},0,0.25,7.0000000000000007E-2,0.2,4.0000000000000001E-3,4.0000000000000001E-3,4.0000000000000001E-3,7.0000000000000007E-2,7.0000000000000007E-2,0.27,0,0,0,null,2056,25,298]
[null,2057,94.3,57,79.2,74,0,0,0,0,74,74,37,0,0,0,null,2057,{"$f":"S60","v":0.27},0,0.25,7.0000000000000007E-2,0.2,4.0000000000000001E-3,4.0000000000000001E-3,4.0000000000000001E-3,7.0000000000000007E-2,7.0000000000000007E-2,0.27,0,0,0,null,2057,25,298]
[null,2058,94.3,57,79.2,74,0,0,0,0,74,74,37,0,0,0,null,2058,{"$f":"S61","v":0.27},0,0.25,7.0000000000000007E-2,0.2,4.0000000000000001E-3,4.0000000000000001E-3,4.0000000000000001E-3,7.0000000000000007E-2,7.0000000000000007E-2,0.27,0,0,0,null,2058,25,298]
[null,2059,94.3,57,79.2,74,0,0,0,0,74,74,37,0,0,0,null,2059,{"$f":"S62","v":0.27},0,0.25,7.0000000000000007E-2,0.2,4.0000000000000001E-3,4.0000000000000001E-3,4.0000000000000001E-3,7.0000000000000007E-2,7.0000000000000007E-2,0.27,0,0,0,null,2059,25,298]
[null,2060,94.3,57,79.2,74,0,0,0,0,74,74,37,0,0,0,null,2060,{"$f":"S63","v":0.27},0,0.25,7.0000000000000007E-2,0.2,4.0000000000000001E-3,4.0000000000000001E-3,4.0000000000000001E-3,7.0000000000000007E-2,7.0000000000000007E-2,0.27,0,0,0,null,2060,25,298]
[null,2061,94.3,57,79.2,74,0,0,0,0,74,74,37,0,0,0,null,2061,{"$f":"S64","v":0.27},0,0.25,7.0000000000000007E-2,0.2,4.0000000000000001E-3,4.0000000000000001E-3,4.0000000000000001E-3,7.0000000000000007E-2,7.0000000000000007E-2,0.27,0,0,0,null,2061,25,298]
[null,2062,94.3,57,79.2,74,0,0,0,0,74,74,37,0,0,0,null,2062,{"$f":"S65","v":0.27},0,0.25,7.0000000000000007E-2,0.2,4.0000000000000001E-3,4.0000000000000001E-3,4.0000000000000001E-3,7.0000000000000007E-2,7.0000000000000007E-2,0.27,0,0,0,null,2062,25,298]
[null,2063,94.3,57,79.2,74,0,0,0,0,74,74,37,0,0,0,null,2063,{"$f":"S66","v":0.27},0,0.25,7.0000000000000007E-2,0.2,4.0000000000000001E-3,4.0000000000000001E-3,4.0000000000000001E-3,7.0000000000000007E-2,7.0000000000000007E-2,0.27,0,0,0,null,2063,25,298]
[null,2064,94.3,57,79.2,74,0,0,0,0,74,74,37,0,0,0,null,2064,{"$f":"S67","v":0.27},0,0.25,7.0000000000000007E-2,0.2,4.0000000000000001E-3,4.0000000000000001E-3,4.0000000000000001E-3,7.0000000000000007E-2,7.0000000000000007E-2,0.27,0,0,0,null,2064,25,298]
[null,2065,94.3,57,79.2,74,0,0,0,0,74,74,37,0,0,0,null,2065,{"$f":"S68","v":0.27},0,0.25,7.0000000000000007E-2,0.2,4.0000000000000001E-3,4.0000000000000001E-3,4.0000000000000001E-3,7.0000000000000007E-2,7.0000000000000007E-2,0.27,0,0,0,null,2065,25,298]
[null,2066,94.3,57,79.2,74,0,0,0,0,74,74,37,0,0,0,null,2066,{"$f":"S69","v":0.27},0,0.25,7.0000000000000007E-2,0.2,4.0000000000000001E-3,4.0000000000000001E-3,4.0000000000000001E-3,7.0000000000000007E-2,7.0000000000000007E-2,0.27,0,0,0,null,2066,25,298]
[null,2067,94.3,57,79.2,74,0,0,0,0,74,74,37,0,0,0,null,2067,{"$f":"S70","v":0.27},0,0.25,7.0000000000000007E-2,0.2,4.0000000000000001E-3,4.0000000000000001E-3,4.0000000000000001E-3,7.0000000000000007E-2,7.0000000000000007E-2,0.27,0,0,0,null,2067,25,298]
[null,2068,94.3,57,79.2,74,0,0,0,0,74,74,37,0,0,0,null,2068,{"$f":"S71","v":0.27},0,0.25,7.0000000000000007E-2,0.2,4.0000000000000001E-3,4.0000000000000001E-3,4.0000000000000001E-3,7.0000000000000007E-2,7.0000000000000007E-2,0.27,0,0,0,null,2068,25,298]
[null,2069,{"$f":"C72","v":94.3},57,79.2,74,0,0,0,0,74,74,37,0,0,0,null,2069,{"$f":"S72","v":0.27},0,0.25,7.0000000000000007E-2,0.2,4.0000000000000001E-3,4.0000000000000001E-3,4.0000000000000001E-3,7.0000000000000007E-2,7.0000000000000007E-2,0.27,0,0,0,null,2069,25,298]
[null,2070,94.3,57,79.2,74,0,0,0,0,74,74,37,0,0,0,null,2070,{"$f":"S73","v":0.27},0,0.25,7.0000000000000007E-2,0.2,4.0000000000000001E-3,4.0000000000000001E-3,4.0000000000000001E-3,7.0000000000000007E-2,7.0000000000000007E-2,0.27,0,0,0,null,2070,25,298]
[null,2071,94.3,57,79.2,74,0,0,0,0,74,74,37,0,0,0,null,2071,{"$f":"S74","v":0.27},0,0.25,7.0000000000000007E-2,0.2,4.0000000000000001E-3,4.0000000000000001E-3,4.0000000000000001E-3,7.0000000000000007E-2,7.0000000000000007E-2,0.27,0,0,0,null,2071,25,298]
[null,2072,94.3,57,79.2,74,0,0,0,0,74,74,37,0,0,0,null,2072,{"$f":"S75","v":0.27},0,0.25,7.0000000000000007E-2,0.2,4.0000000000000001E-3,4.0000000000000001E-3,4.0000000000000001E-3,7.0000000000000007E-2,7.0000000000000007E-2,0.27,0,0,0,null,2072,25,298]
[null,2073,94.3,57,79.2,74,0,0,0,0,74,74,37,0,0,0,null,2073,{"$f":"S76","v":0.27},0,0.25,7.0000000000000007E-2,0.2,4.0000000000000001E-3,4.0000000000000001E-3,4.0000000000000001E-3,7.0000000000000007E-2,7.0000000000000007E-2,0.27,0,0,0,null,2073,25,298]
[null,2074,94.3,57,79.2,74,0,0,0,0,74,74,37,0,0,0,null,2074,{"$f":"S77","v":0.27},0,0.25,7.0000000000000007E-2,0.2,4.0000000000000001E-3,4.0000000000000001E-3,4.0000000000000001E-3,7.0000000000000007E-2,7.0000000000000007E-2,0.27,0,0,0,null,2074,25,298]
[null,2075,94.3,57,79.2,74,0,0,0,0,74,74,37,0,0,0,null,2075,{"$f":"S78","v":0.27},0,0.25,7.0000000000000007E-2,0.2,4.0000000000000001E-3,4.0000000000000001E-3,4.0000000000000001E-3,7.0000000000000007E-2,7.0000000000000007E-2,0.27,0,0,0,null,2075,25,298]

{"sheet":"CurrencyRates","index":17,"n_rows":16,"n_cols":5,"rows_kept":16,"cut":false,"hidden":false,"merged":[[12,2,12,4],[4,1,5,7]]}
[]
[null,"Applied currency rates "]
[]
[null,"User instruction"]
[null,"This sheet shows the applied currency rates. The rates are all from the 7th of May 2024. The user can update the rates needed by overwriting the existing values."]
[]
[null,"Data source:"]
[null,"European Central Bank"]
[]
[]
[null,"Applied data"]
[]
[null,null,"Currency rates as of 7th May 2024"]
[null,null,"Currency","Name","Rate"]
[null,null,"DKK","Danish krone",{"$f":"7.45","v":7.45}]
[null,null,"USD","US dollar",1.0775999999999999]